{"text_format":"1","workbook":"xlsx","n_sheets":18,"sheets":["Cover","Model Index","A. Summary","A. Population Info","A. Age Profile","A. Initial PoF","B. PoF Summary Stats & Params","B. PoF Adj Factor Scoring","B. Population PoF Scores","B. Asset PoF & Health Index","C. PoC Summary Stats & Para","C. PoC Adj Factor Scoring","C. Population PoC Scores","C. Reliability Consequence","C. Population PoC & Risk","D. Risk Index Parameters","D. Population Risk Index","E. Risk Index Prog Evaluation"],"not_rendered":{"charts":19,"images":37,"macros":1,"external_links":0,"defined_names":7,"comments":3,"pivot_tables":0},"unopened":[],"bounds":{"document_bytes":16777216,"sheet_cells":100000,"rows_first":2000,"rows_last":500,"rows_between":2000,"halvings":0,"cell_chars":16384,"cell_head_chars":4096},"cells_cut":0,"cells_raw":0,"read":"whole","date_system":"1900"}

{"sheet":"Cover","index":0,"n_rows":0,"n_cols":0,"rows_kept":0,"cut":false,"hidden":false,"merged":[]}

{"sheet":"Model Index","index":1,"n_rows":21,"n_cols":12,"rows_kept":21,"cut":false,"hidden":false,"merged":[[20,1,20,2],[21,1,21,2],[22,1,22,2],[19,3,19,4],[20,3,20,4],[21,3,21,4],[22,3,22,4],[19,1,19,2],[20,11,20,12],[21,11,21,12],[22,11,22,12],[20,5,20,10],[21,5,21,10],[22,5,22,10],[1,1,5,12],[19,11,19,12],[19,5,19,10],[15,7,15,12],[16,8,16,9],[16,11,16,12],[11,7,11,12],[12,8,12,9],[12,11,12,12],[13,7,13,12],[14,8,14,9],[14,11,14,12],[7,7,7,12],[8,8,8,9],[8,11,8,12],[10,8,10,9],[10,11,10,12],[17,1,17,6],[15,1,15,6],[16,2,16,3],[16,5,16,6],[11,1,11,6],[10,2,10,3],[12,5,12,6],[13,1,13,6],[12,2,12,3],[14,5,14,6],[10,5,10,6],[17,7,17,12],[14,2,14,3],[7,1,7,6],[8,2,8,3],[8,5,8,6],[9,1,9,6],[9,7,9,12]]}
[]
[]
[]
[]
[]
[]
[]
[]
[null,"A.",null,null,"B.",null,null,"C. ",null,null,"D."]
[]
[null,"A. ",null,null,"B.",null,null,"C. ",null,null,"D."]
[]
[null,"A. ",null,null,"B.",null,null,"C. "]
[]
[null,"A. ",null,null,"B.",null,null,"C. ",null,null,"E."]
[]
[null,null,null,null,null,null,null,"C. "]
[]
[]
[null,"Version",null,"Date",null,"Description",null,null,null,null,null,"Approved By:"]
[null,1,null,"2019-01-02",null,"Final",null,null,null,null,null,"Ausgrid"]

{"sheet":"A. Summary","index":2,"n_rows":118,"n_cols":11,"rows_kept":118,"cut":false,"hidden":false,"merged":[[65,1,65,2],[66,1,66,2],[50,0,50,11],[0,0,0,11],[2,0,2,11],[38,0,38,11],[4,1,4,2],[28,1,28,2],[14,1,14,3],[67,1,67,2],[78,0,78,11],[117,0,117,11],[40,4,40,5],[40,1,40,2],[70,0,70,11],[60,0,60,11],[62,1,62,2],[52,1,52,2],[53,1,53,2],[54,1,54,2],[55,1,55,2],[57,1,57,2],[56,1,56,2],[63,1,63,2],[64,1,64,2]]}
["Asset Summary Information"]
[]
["Data Inputs"]
[]
[null,"Data Inputs"]
[null,"Population",{"$f":"'A. Age Profile'!L4","v":568}]
[null,"Object Types","TX_SUBTRAN – Subtransmission Power Tx\nTX_ZONE – Zone Power Tx"]
[null,"Conditional & Function Failures (count)",38]
[null,"Analysis Period (Years)",6]
[null,"Asset RAB Life (Years)",{"$f":"'D. Risk Index Parameters'!E23","v":45.89}]
[null,"Planned Replacement Cost",{"$f":"'D. Risk Index Parameters'!$E$22","v":1120000}]
[null,"WACC",{"$f":"'D. Risk Index Parameters'!$E$21","v":3.9E-2}]
[]
[]
[null,"Loss of Supply Consequence Information"]
[null,{"$f":"'C. PoC Summary Stats & Para'!C16","v":"Proportion Failures Resulting in Unserved Energy"},{"$f":"'C. PoC Summary Stats & Para'!E16","v":0}]
[null,"Value of Customer Reliability (VCR) per kWh",{"$f":"'C. PoC Summary Stats & Para'!F14","v":40.728999999999999}]
[null,"Outage Type (HV / LV / CBD)",{"$f":"'C. PoC Summary Stats & Para'!F18","v":"HV-single"},{"$f":"'C. PoC Summary Stats & Para'!G18","v":"HV"}]
[null,"Automatic Protection Time (minutes)",{"$f":"'C. PoC Summary Stats & Para'!F19","v":0},{"$f":"'C. PoC Summary Stats & Para'!G19","v":0}]
[null,"Switching Time (hours)",{"$f":"'C. PoC Summary Stats & Para'!F20","v":2},{"$f":"'C. PoC Summary Stats & Para'!G20","v":2}]
[null,"Restoration/Repair Time (hours)",{"$f":"'C. PoC Summary Stats & Para'!F21","v":8},{"$f":"'C. PoC Summary Stats & Para'!G21","v":8}]
[null,"Automatic Protection (% load)",{"$f":"'C. PoC Summary Stats & Para'!F22","v":0},{"$f":"'C. PoC Summary Stats & Para'!G22","v":0}]
[null,"Switching (% load)",{"$f":"'C. PoC Summary Stats & Para'!F23","v":0},{"$f":"'C. PoC Summary Stats & Para'!G23","v":0}]
[null,"Restoration/Repair (% load)",{"$f":"'C. PoC Summary Stats & Para'!F24","v":0},{"$f":"'C. PoC Summary Stats & Para'!G24","v":0}]
[null,"Time without Supply (hours)",{"$f":"'C. PoC Summary Stats & Para'!F25","v":0},{"$f":"'C. PoC Summary Stats & Para'!G25","v":0}]
[null,"Avg. Value of Energy Unserved (per asset per event)",{"$f":"AVERAGE('C. Reliability Consequence'!H6:$H$1048576)","v":0},{"$f":"AVERAGE('C. Reliability Consequence'!$H6:I$1048576)","v":0}]
[]
[]
[null,"Finance Consequence Information"]
[null,"Reactive Replacement Cost",{"$f":"'C. PoC Summary Stats & Para'!E31","v":1120000}]
[null,"Repair Cost",{"$f":"'C. PoC Summary Stats & Para'!E33","v":6528}]
[null,"Proportion Replacement",{"$f":"'C. PoC Summary Stats & Para'!E32","v":1}]
[null,{"$f":"'C. PoC Summary Stats & Para'!C35","v":"Weighted Replacement / Repair Cost"},{"$f":"'C. PoC Summary Stats & Para'!E35","v":42985.423484119347}]
[null,"Maintenance original asset per annum",{"$f":"'C. PoC Summary Stats & Para'!E38","v":2928}]
[null,"Maintenance replacement asset per annum",{"$f":"'C. PoC Summary Stats & Para'!E39","v":1983}]
[null,"Maintenance benefit per asset per annum",{"$f":"'C. PoC Summary Stats & Para'!E40","v":945}]
[]
[]
["Failure Model Parameters"]
[]
[null,"Weibull Parameters",null,null,"Crow-AMSAA Parameters"]
[null,"βgood",{"$f":"IF('B. PoF Summary Stats & Params'!$C$12=\"C\", \"Not Applicable\", 'B. PoF Summary Stats & Params'!M12)","v":3.5648},null,"βgood",{"$f":"IF('B. PoF Summary Stats & Params'!$C$12=\"W\", \"Not Applicable\", 'B. PoF Summary Stats & Params'!I12)","v":"Not Applicable"}]
[null,"ηgood",{"$f":"IF('B. PoF Summary Stats & Params'!$C$12=\"C\", \"Not Applicable\", 'B. PoF Summary Stats & Params'!O12)","v":111.5424},null,"βaverage",{"$f":"IF('B. PoF Summary Stats & Params'!$C$12=\"W\", \"Not Applicable\", 'B. PoF Summary Stats & Params'!I6)","v":"Not Applicable"}]
[null,"βaverage",{"$f":"IF('B. PoF Summary Stats & Params'!$C$12=\"C\", \"Not Applicable\", 'B. PoF Summary Stats & Params'!M6)","v":3.7753999999999999},null,"βpoor",{"$f":"IF('B. PoF Summary Stats & Params'!$C$12=\"W\", \"Not Applicable\", 'B. PoF Summary Stats & Params'!I10)","v":"Not Applicable"}]
[null,"ηaverage",{"$f":"IF('B. PoF Summary Stats & Params'!$C$12=\"C\", \"Not Applicable\", 'B. PoF Summary Stats & Params'!M8)","v":85.749700000000004},null,"λaverage",{"$f":"IF('B. PoF Summary Stats & Params'!$C$12=\"W\", \"Not Applicable\", 'B. PoF Summary Stats & Params'!I8)","v":"Not Applicable"}]
[null,"βpoor",{"$f":"IF('B. PoF Summary Stats & Params'!$C$12=\"C\", \"Not Applicable\", 'B. PoF Summary Stats & Params'!M14)","v":3.9860000000000002}]
[null,"ηpoor",{"$f":"IF('B. PoF Summary Stats & Params'!$C$12=\"C\", \"Not Applicable\", 'B. PoF Summary Stats & Params'!O14)","v":67.778700000000001}]
[null,"b (intercept)",{"$f":"IF('B. PoF Summary Stats & Params'!$C$12=\"C\", \"Not Applicable\", 'B. PoF Summary Stats & Params'!M10)","v":-16.806000000000001}]
[]
[]
["Adjustments to Probability of Failure (PoF)"]
[]
[null,"PoF Adjustment Fators"]
[null,{"$f":"IF(ISBLANK('A. Population Info'!G5), \"\", 'A. Population Info'!G5)","v":"Insulation Type"}]
[null,{"$f":"IF(ISBLANK('A. Population Info'!H5), \"\", 'A. Population Info'!H5)","v":"Oil Test Results"}]
[null,{"$f":"IF(ISBLANK('A. Population Info'!I5), \"\", 'A. Population Info'!I5)","v":"Leakages"}]
[null,{"$f":"IF(ISBLANK('A. Population Info'!J5), \"\", 'A. Population Info'!J5)","v":""}]
[null,{"$f":"IF(ISBLANK('A. Population Info'!K5), \"\", 'A. Population Info'!K5)","v":""}]
[]
[]
["Adjustments to Probability of Consequence (PoC)"]
[]
[null,"PoC Adjustment Factors"]
[null,{"$f":"IF(ISBLANK('A. Population Info'!L5), \"\", 'A. Population Info'!L5)","v":"Insulation Type"}]
[null,{"$f":"IF(ISBLANK('A. Population Info'!M5), \"\", 'A. Population Info'!M5)","v":""}]
[null,{"$f":"IF(ISBLANK('A. Population Info'!N5), \"\", 'A. Population Info'!N5)","v":""}]
[null,{"$f":"IF(ISBLANK('A. Population Info'!O5), \"\", 'A. Population Info'!O5)","v":""}]
[null,{"$f":"IF(ISBLANK('A. Population Info'!P5), \"\", 'A. Population Info'!P5)","v":""}]
[]
[]
["Model Calculated Failures"]
[]
[null,null,null,null,"Financial Year","FY19","FY20","FY21","FY22","FY23","FY24"]
[null,null,null,null,"Model Calculated Failures",{"$f":"'B. Asset PoF & Health Index'!J4","v":3.3029239651472655},{"$f":"'B. Asset PoF & Health Index'!K4","v":3.4972289125076683},{"$f":"'B. Asset PoF & Health Index'!L4","v":3.6999834006468912},{"$f":"'B. Asset PoF & Health Index'!M4","v":3.9114151373709856},{"$f":"'B. Asset PoF & Health Index'!N4","v":4.1317489276791743},{"$f":"'B. Asset PoF & Health Index'!O4","v":4.3612070094799371}]
[]
[]
[]
[]
["Asset Health Index"]
[]
[]
[]
[]
[]
[]
[]
[]
[]
[]
[]
[]
[]
[]
[]
[]
[]
[]
[]
[]
[]
[]
[]
[]
[]
[]
[]
[]
[]
[]
[]
[]
[]
[]
[]
[]
[]
[]
["Asset Risk Index"]

{"sheet":"A. Population Info","index":3,"n_rows":573,"n_cols":16,"rows_kept":573,"cut":false,"hidden":false,"merged":[[3,5,4,5],[3,0,4,0],[3,1,4,1],[3,2,4,2],[3,3,4,3],[3,4,4,4]]}
[null,null,"Asset Population Information"]
[]
[]
["Asset Identifier","Asset Age","Asset Length or Number within Asset ID","Reliability Asset ID","Average Energy Usage (kW)","Reliability Asset Voltage","PoF Factor 1","PoF Factor 2","PoF Factor 3","PoF Factor 4","PoF Factor 5","Consequence Factor 1","Consequence Factor 2","Consequence Factor 3","Consequence Factor 4","Consequence Factor 5"]
[null,null,null,null,null,null,"Insulation Type","Oil Test Results","Leakages",null,null,"Insulation Type"]
[1000023626,12,1,"T.S.ZN00340.TXF.T00001/0.TX",2518.7494200280998,"HV","OIL",1,0,null,null,"OIL"]
[1000023638,12,1,"T.S.ZN00340.TXF.T00003/0.TX",2518.7494200280998,"HV","OIL",1,0,null,null,"OIL"]
[1000023649,11,1,"T.S.ZN00384.TXF.T00004/0.TX",2946.7368276576999,"HV","OIL",1,0,null,null,"OIL"]
[1000048071,12,1,"T.S.ZN03672.TXF.T00003/0.TX",8213.0559628606334,"HV","OIL",1,0,null,null,"OIL"]
[1000048606,11,1,"T.S.ZN00526.TXF.T00001/0.TX",2124.2673979634501,"HV","OIL",1,0,null,null,"OIL"]
[1000048621,11,1,"T.S.ZN00526.TXF.T00002/0.TX",2124.2673979634501,"HV","OIL",1,0,null,null,"OIL"]
[1000048751,12,1,"T.S.ZN03155.TXF.T00002/0.TX",7818.88494399705,"HV","OIL",1,0,null,null,"OIL"]
[1000063506,12,1,"T.S.ZN00230.TXF.T00002/0.TX",1860.7861576785001,"HV","OIL",1,0,null,null,"OIL"]
[1000096500,11,1,"T.S.ZN00270.TXF.T00001/0.TX",4174.3842233148498,"HV","OIL",1,0,null,null,"OIL"]
[1000096880,11,1,"T.S.ZN15006.TXF.T00002/0.TX",5814.4695873413002,"HV","OIL",1,0,null,null,"OIL"]
[1000114250,10,1,"T.S.TS07140.TXF.T00002/0.TX",18479.30311848105,"HV","OIL",1,0,null,null,"OIL"]
[1000131033,9,1,"T.S.ZN00224.TXF.T00004/0.TX",6189.4206688755503,"HV","OIL",1,0,null,null,"OIL"]
[1000207623,10,1,"T.S.ZN00630.TXF.T00005/0.TX",3783.3779856536999,"HV","OIL",1,0,null,null,"OIL"]
[1000207714,11,1,"T.S.ZN00813.TXF.T00002/0.TX",2263.9793722615964,"HV","OIL",1,0,null,null,"OIL"]
[1000207726,11,1,"T.S.ZN00813.TXF.T00003/0.TX",2263.9793722615964,"HV","OIL",1,0,null,null,"OIL"]
[1000224415,7,1,"T.S.ZN35500.TXF.T00002/0.TX",8743.2684167117004,"HV","OIL",1,0,null,null,"OIL"]
[1000224424,10,1,"T.S.TS14450.TXF.T00011/0.TX",7650.2940646709276,"HV","OIL",3,0,null,null,"OIL"]
[1000224437,10,1,"T.S.TS14450.TXF.T00012/0.TX",7650.2940646709276,"HV","OIL",1,0,null,null,"OIL"]
[1000224450,10,1,"T.S.TS14450.TXF.T00014/0.TX",7650.2940646709276,"HV","OIL",2,0,null,null,"OIL"]
[1000224464,10,1,"T.S.TS00404.TXF.T00004/0.TX",10276.808016445248,"HV","OIL",1,0,null,null,"OIL"]
[1000224475,3,1,"T.S.ZN05959.TXF.T00003/0.TX",{"$error":"#N/A"},"HV","OIL_FR3",3,0,null,null,"OIL_FR3"]
[1000267271,11,1,"T.S.ZN00931.TXF.T00001/0.TX",5529.7032360865251,"HV","OIL",1,0,null,null,"OIL"]
[1000276491,11,1,"T.S.ZN00340.TXF.T00002/0.TX",2518.7494200280998,"HV","OIL",2,0,null,null,"OIL"]
[1000276518,9,1,"T.S.ZN00224.TXF.T00005/0.TX",6189.4206688755503,"HV","OIL",1,0,null,null,"OIL"]
[1000276530,9,1,"T.S.TS00416.TXF.T00001/0.TX",13031.870019098262,"HV","OIL",1,0,null,null,"OIL"]
[1000276542,9,1,"T.S.TS00416.TXF.T00003/0.TX",13031.870019098262,"HV","OIL",1,0,null,null,"OIL"]
[1000299647,29,1,"T.S.ZN00811.TXF.T00001/0.TX",421.09091536910398,"HV-single","OIL",1,0,null,null,"OIL"]
[1000314154,72,1,"T.S.ZN00630.TXF.T00001/0.TX",3783.3779856536999,"HV","OIL",2,600,null,null,"OIL"]
[1000314337,67,1,"T.S.ZN00711.TXF.T00002/0.TX",2594.8912715780002,"HV","OIL",3,0,null,null,"OIL"]
[1000314363,65,1,"T.S.ZN00630.TXF.T00006/0.TX",3783.3779856536999,"HV","OIL",3,400,null,null,"OIL"]
[1000318066,64,1,"T.S.ZN00711.TXF.T00001/0.TX",2594.8912715780002,"HV","OIL",2,0,null,null,"OIL"]
[1000318448,58,1,"T.S.ZN00072.TXF.T00004/0.TX",832.8119210809275,"HV","OIL",4,0,null,null,"OIL"]
[1000318505,58,1,"T.S.S001586.TXF.T9A",{"$error":"#N/A"},"HV","OIL",2,0,null,null,"OIL"]
[1000318801,56,1,"T.S.ZN00340.TXF.T00004/0.TX",2518.7494200280998,"HV","OIL",1,500,null,null,"OIL"]
[1000318835,56,1,"T.S.ZN00874.TXF.T00001/0.TX",4322.3815876307999,"HV","OIL",2,500,null,null,"OIL"]
[1000318894,55,1,"T.S.ZN12580.TXF.T00001/0.TX",4411.0695171611997,"HV","OIL",2,0,null,null,"OIL"]
[1000318924,56,1,"T.S.ZN01648.TXF.T00001/0.TX",3133.4595018029268,"HV","OIL",3,0,null,null,"OIL"]
[1000318955,56,1,"T.S.ZN01648.TXF.T00003/0.TX",3133.4595018029268,"HV","OIL",3,1500,null,null,"OIL"]
[1000318984,55,1,"T.S.ZN09037.TXF.T00001/0.TX",4752.3407788584664,"HV","OIL",2,500,null,null,"OIL"]
[1000323012,56,1,"T.S.ZN01648.TXF.T00002/0.TX",3133.4595018029268,"HV","OIL",1,0,null,null,"OIL"]
[1000323042,55,1,"T.S.ZN00630.TXF.T00002/0.TX",3783.3779856536999,"HV","OIL",1,0,null,null,"OIL"]
[1000323073,54,1,"T.S.ZN09252.TXF.T00001/0.TX",3602.2828915092668,"HV","OIL",1,0,null,null,"OIL"]
[1000323106,55,1,"T.S.ZN00398.TXF.T00004/0.TX",4869.5002904485,"HV","OIL",3,0,null,null,"OIL"]
[1000323136,56,1,"T.S.ZN01673.TXF.T00002/0.TX",4859.8442495904337,"HV","OIL",3,0,null,null,"OIL"]
[1000323169,55,1,"T.S.ZN00167.TXF.T00004/0.TX",3172.2359036724333,"HV","OIL",1,600,null,null,"OIL"]
[1000323229,56,1,"T.S.ZN01673.TXF.T00001/0.TX",4859.8442495904337,"HV","OIL",1,0,null,null,"OIL"]
[1000323262,54,1,"T.S.ZN00874.TXF.T00003/0.TX",4322.3815876307999,"HV","OIL",2,1800,null,null,"OIL"]
[1000323289,55,1,"T.S.ZN09037.TXF.T00002/0.TX",4752.3407788584664,"HV","OIL",2,1000,null,null,"OIL"]
[1000323320,55,1,"T.S.ZN00167.TXF.T00003/0.TX",3172.2359036724333,"HV","OIL",3,300,null,null,"OIL"]
[1000323378,54,1,"T.S.ZN01600.TXF.T0000D/0.TX",2603.0781252926499,"HV","OIL",3,0,null,null,"OIL"]
[1000323408,54,1,"T.S.ZN01600.TXF.T0000E/0.TX",2603.0781252926499,"HV","OIL",3,0,null,null,"OIL"]
[1000323435,54,1,"T.S.ZN01600.TXF.T0000A/0.TX",2603.0781252926499,"HV","OIL",2,0,null,null,"OIL"]
[1000323556,54,1,"T.S.ZN01068.TXF.T00001/0.TX",3039.30688697609,"HV","OIL",2,0,null,null,"OIL"]
[1000323583,54,1,"T.S.ZN01600.TXF.T0000C/0.TX",2603.0781252926499,"HV","OIL",2,0,null,null,"OIL"]
[1000323796,53,1,"T.S.ZN09037.TXF.T00003/0.TX",4752.3407788584664,"HV","OIL",1,0,null,null,"OIL"]
[1000323882,53,1,"T.S.ZN01788.TXF.T00003/0.TX",5386.2084692045801,"HV","OIL",1,1900,null,null,"OIL"]
[1000323941,53,1,"T.S.ZN01788.TXF.T00002/0.TX",5386.2084692045801,"HV","OIL",2,0,null,null,"OIL"]
[1000323998,52,1,"T.S.ZN00711.TXF.T00004/0.TX",2594.8912715780002,"HV","OIL",1,300,null,null,"OIL"]
[1000328026,53,1,"T.S.ZN01788.TXF.T00001/0.TX",5386.2084692045801,"HV","OIL",1,0,null,null,"OIL"]
[1000328057,52,1,"T.S.ZN01850.TXF.T00001/0.TX",3427.5138350680336,"HV","OIL",2,1100,null,null,"OIL"]
[1000328085,52,1,"T.S.ZN12580.TXF.T00003/0.TX",4411.0695171611997,"HV","OIL",2,0,null,null,"OIL"]
[1000328116,52,1,"T.S.ZN01850.TXF.T00011/0.TX",3427.5138350680336,"HV","OIL",1,800,null,null,"OIL"]
[1000328175,54,1,"T.S.ZN00195.TXF.T00001/0.TX",4347.7996584712337,"HV","OIL",3,0,null,null,"OIL"]
[1000328208,51,1,"T.S.ZN01600.TXF.T0000F/0.TX",2603.0781252926499,"HV","OIL",2,0,null,null,"OIL"]
[1000328413,51,1,"T.S.ZN01600.TXF.T0000B/0.TX",2603.0781252926499,"HV","OIL",2,0,null,null,"OIL"]
[1000328506,51,1,"T.S.ZN02310.TXF.T00013/0.TX",3083.3183316724999,"HV","OIL",3,0,null,null,"OIL"]
[1000328533,51,1,"T.S.ZN02310.TXF.T00002/0.TX",3083.3183316724999,"HV","OIL",2,2160,null,null,"OIL"]
[1000328564,51,1,"T.S.ZN02310.TXF.T00001/0.TX",3083.3183316724999,"HV","OIL",2,1700,null,null,"OIL"]
[1000328590,50,1,"T.S.ZN00398.TXF.T00002/0.TX",4869.5002904485,"HV","OIL",3,1300,null,null,"OIL"]
[1000328647,50,1,"T.S.ZN00398.TXF.T00003/0.TX",4869.5002904485,"HV","OIL",3,0,null,null,"OIL"]
[1000328676,50,1,"T.S.ZN00874.TXF.T00002/0.TX",4322.3815876307999,"HV","OIL",1,0,null,null,"OIL"]
[1000328766,50,1,"T.S.ZN00398.TXF.T00001/0.TX",4869.5002904485,"HV","OIL",3,0,null,null,"OIL"]
[1000328796,50,1,"T.S.ZN01673.TXF.T00003/0.TX",4859.8442495904337,"HV","OIL",4,0,null,null,"OIL"]
[1000328825,50,1,"T.S.ZN00874.TXF.T00004/0.TX",4322.3815876307999,"HV","OIL",3,0,null,null,"OIL"]
[1000328852,35,1,"T.S.ZN00690.TXF.T00002/0.TX",6983.8712946800497,"HV","OIL",1,0,null,null,"OIL"]
[1000328910,49,1,"T.S.ZN03154.TXF.T00001/0.TX",5485.3269493792332,"HV","OIL",2,300,null,null,"OIL"]
[1000332025,49,1,"T.S.ZN00630.TXF.T00003/0.TX",3783.3779856536999,"HV","OIL",2,800,null,null,"OIL"]
[1000332304,49,1,"T.S.ZN00129.TXF.T00002/0.TX",7148.3022660534998,"HV","OIL",1,0,null,null,"OIL"]
[1000332390,49,1,"T.S.ZN02635.TXF.T00002/0.TX",8791.0735296048333,"HV","OIL",3,0,null,null,"OIL"]
[1000332419,47,1,"T.S.ZN01788.TXF.T00004/0.TX",5386.2084692045801,"HV","OIL",1,0,null,null,"OIL"]
[1000332450,48,1,"T.S.ZN12580.TXF.T00002/0.TX",4411.0695171611997,"HV","OIL",2,0,null,null,"OIL"]
[1000332539,28,1,"T.S.ZN00262.TXF.T00001/0.TX",8881.8500580132659,"HV","OIL",1,0,null,null,"OIL"]
[1000332568,48,1,"T.S.ZN00901.TXF.T00004/0.TX",4410.7855744422004,"HV","OIL",1,500,null,null,"OIL"]
[1000332625,48,1,"T.S.ZN02835.TXF.T00001/0.TX",9334.2878786163492,"HV","OIL",5,1000,null,null,"OIL"]
[1000332657,48,1,"T.S.ZN01285.TXF.T00002/0.TX",7059.447825921925,"HV","OIL",3,0,null,null,"OIL"]
[1000332778,47,1,"T.S.ZN00195.TXF.T00004/0.TX",4347.7996584712337,"HV","OIL",2,0,null,null,"OIL"]
[1000332841,46,1,"T.S.ZN09550.TXF.T00003/0.TX",4295.4266139541669,"HV","OIL",1,0,null,null,"OIL"]
[1000332870,46,1,"T.S.ZN09550.TXF.T00001/0.TX",4295.4266139541669,"HV","OIL",1,0,null,null,"OIL"]
[1000332902,46,1,"T.S.ZN01287.TXF.T00003/0.TX",8034.11968564365,"HV","OIL",1,0,null,null,"OIL"]
[1000332930,47,1,"T.S.ZN02310.TXF.T00012/0.TX",3083.3183316724999,"HV","OIL",1,0,null,null,"OIL"]
[1000336019,46,1,"T.S.ZN03425.TXF.T00003/0.TX",7567.3200140371246,"HV","OIL",1,0,null,null,"OIL"]
[1000336048,34,1,"T.S.ZN02466.TXF.T00001/0.TX",10801.897449472899,"HV","OIL",1,0,null,null,"OIL"]
[1000336078,46,1,"T.S.ZN00901.TXF.T00003/0.TX",4410.7855744422004,"HV","OIL",2,500,null,null,"OIL"]
[1000336106,30,1,"T.S.ZN00901.TXF.T00002/0.TX",4410.7855744422004,"HV","OIL",1,0,null,null,"OIL"]
[1000336136,46,1,"T.S.ZN00262.TXF.T00003/0.TX",8881.8500580132659,"HV","OIL",1,700,null,null,"OIL"]
[1000336165,45,1,"T.S.ZN02466.TXF.T00004/0.TX",10801.897449472899,"HV","OIL",3,0,null,null,"OIL"]
[1000336194,45,1,"T.S.ZN03155.TXF.T00001/0.TX",7818.88494399705,"HV","OIL",1,1900,null,null,"OIL"]
[1000336225,45,1,"T.S.ZN03155.TXF.T00003/0.TX",7818.88494399705,"HV","OIL",2,1900,null,null,"OIL"]
[1000336313,45,1,"T.S.ZN02466.TXF.T00002/0.TX",10801.897449472899,"HV","OIL",1,0,null,null,"OIL"]
[1000336348,46,1,"T.S.ZN00180.TXF.T00003/0.TX",7827.3052115617502,"HV","OIL",1,0,null,null,"OIL"]
[1000336383,45,1,"T.S.ZN03425.TXF.T00001/0.TX",7567.3200140371246,"HV","OIL",2,0,null,null,"OIL"]
[1000336450,44,1,"T.S.ZN03154.TXF.T00003/0.TX",5485.3269493792332,"HV","OIL",2,0,null,null,"OIL"]
[1000336477,43,1,"T.S.ZN00690.TXF.T00001/0.TX",6983.8712946800497,"HV","OIL",1,0,null,null,"OIL"]
[1000336508,43,1,"T.S.ZN03472.TXF.T00003/0.TX",5069.5917147683003,"HV","OIL",1,0,null,null,"OIL"]
[1000336536,43,1,"T.S.ZN03472.TXF.T00001/0.TX",5069.5917147683003,"HV","OIL",1,500,null,null,"OIL"]
[1000336594,44,1,"T.S.ZN00180.TXF.T00001/0.TX",7827.3052115617502,"HV","OIL",1,0,null,null,"OIL"]
[1000336623,42,1,"T.S.ZN15001.TXF.T00001/0.TX",6114.4151861479331,"HV","OIL",1,0,null,null,"OIL"]
[1000336651,45,1,"T.S.ZN03155.TXF.T00004/0.TX",7818.88494399705,"HV","OIL",2,0,null,null,"OIL"]
[1000336679,44,1,"T.S.ZN02400.TXF.T00001/0.TX",3172.9798906690503,"HV","OIL",1,0,null,null,"OIL"]
[1000336708,44,1,"T.S.ZN02400.TXF.T00002/0.TX",3172.9798906690503,"HV","OIL",1,0,null,null,"OIL"]
[1000336737,41,1,"T.S.ZN02568.TXF.T00002/0.TX",9522.4053547612748,"HV","OIL",1,0,null,null,"OIL"]
[1000336855,39,1,"T.S.ZN14891.TXF.T00002/0.TX",8268.0129029031505,"HV","OIL",1,0,null,null,"OIL"]
[1000336884,40,1,"T.S.ZN09700.TXF.T00003/0.TX",8385.6364774139001,"HV","OIL",1,0,null,null,"OIL"]
[1000336912,39,1,"T.S.ZN03922.TXF.T00001/0.TX",10988.14217128495,"HV","OIL",1,1400,null,null,"OIL"]
[1000336942,39,1,"T.S.ZN03922.TXF.T00002/0.TX",10988.14217128495,"HV","OIL",2,0,null,null,"OIL"]
[1000336972,43,1,"T.S.ZN01287.TXF.T00001/0.TX",8034.11968564365,"HV","OIL",1,1800,null,null,"OIL"]
[1000340000,39,1,"T.S.ZN00901.TXF.T00001/0.TX",4410.7855744422004,"HV","OIL",1,0,null,null,"OIL"]
[1000340030,39,1,"T.S.ZN02835.TXF.T00003/0.TX",9334.2878786163492,"HV","OIL",1,0,null,null,"OIL"]
[1000340058,38,1,"T.S.ZN03672.TXF.T00002/0.TX",8213.0559628606334,"HV","OIL",1,0,null,null,"OIL"]
[1000340087,38,1,"T.S.ZN04545.TXF.T00001/0.TX",10921.472141929067,"HV","OIL",1,0,null,null,"OIL"]
[1000340114,38,1,"T.S.ZN04545.TXF.T00002/0.TX",10921.472141929067,"HV","OIL",1,0,null,null,"OIL"]
[1000340144,38,1,"T.S.ZN03672.TXF.T00001/0.TX",8213.0559628606334,"HV","OIL",1,600,null,null,"OIL"]
[1000340385,49,1,"T.S.ZN10997.TXF.T00001/0.TX",3160.5263170970552,"HV","OIL",3,500,null,null,"OIL"]
[1000340415,49,1,"T.S.ZN10997.TXF.T00003/0.TX",3160.5263170970552,"HV","OIL",4,0,null,null,"OIL"]
[1000340445,58,1,"T.S.ZN10990.TXF.T00001/0.TX",3541.2902216150351,"HV","OIL",3,1720,null,null,"OIL"]
[1000340477,53,1,"T.S.ZN10990.TXF.T00002/0.TX",3541.2902216150351,"HV","OIL",3,0,null,null,"OIL"]
[1000340534,54,1,"T.S.ZN10991.TXF.T00001/0.TX",2874.8966171107731,"HV","OIL",3,0,null,null,"OIL"]
[1000340565,54,1,"T.S.ZN10991.TXF.T00002/0.TX",2874.8966171107731,"HV","OIL",1,0,null,null,"OIL"]
[1000340593,54,1,"T.S.ZN10991.TXF.T00003/0.TX",2874.8966171107731,"HV","OIL",1,500,null,null,"OIL"]
[1000340623,48,1,"T.S.ZN05868.TXF.T00004/0.TX",7842.4780902971752,"HV","OIL",3,0,null,null,"OIL"]
[1000340657,46,1,"T.S.ZN05868.TXF.T00001/0.TX",7842.4780902971752,"HV","OIL",2,0,null,null,"OIL"]
[1000340689,48,1,"T.S.ZN05868.TXF.T00002/0.TX",7842.4780902971752,"HV","OIL",4,0,null,null,"OIL"]
[1000340819,37,1,"T.S.ZN09118.TXF.T00001/0.TX",10849.1384706104,"HV","OIL",1,0,null,null,"OIL"]
[1000340854,37,1,"T.S.ZN00965.TXF.T00002/0.TX",10411.827225082101,"HV","OIL",1,0,null,null,"OIL"]
[1000340887,37,1,"T.S.ZN00965.TXF.T00001/0.TX",10411.827225082101,"HV","OIL",1,0,null,null,"OIL"]
[1000340972,37,1,"T.S.ZN09118.TXF.T00002/0.TX",10849.1384706104,"HV","OIL",1,0,null,null,"OIL"]
[1000344030,35,1,"T.S.ZN00188.TXF.T00002/0.TX",7495.1161749794001,"HV","OIL",1,0,null,null,"OIL"]
[1000344072,36,1,"T.S.ZN00262.TXF.T00004/0.TX",8881.8500580132659,"HV","OIL",2,500,null,null,"OIL"]
[1000344130,34,1,"T.S.ZN02835.TXF.T00002/0.TX",9334.2878786163492,"HV","OIL",2,1000,null,null,"OIL"]
[1000344161,35,1,"T.S.ZN00188.TXF.T00004/0.TX",7495.1161749794001,"HV","OIL",1,500,null,null,"OIL"]
[1000344307,31,1,"T.S.ZN09900.TXF.T00002/0.TX",7327.8627083518004,"HV","OIL",1,0,null,null,"OIL"]
[1000344336,31,1,"T.S.ZN09900.TXF.T00001/0.TX",7327.8627083518004,"HV","OIL",1,2000,null,null,"OIL"]
[1000344368,58,1,"T.S.ZN14460.TXF.T00002/0.TX",1611.4827402968051,"HV","OIL",3,0,null,null,"OIL"]
[1000344393,58,1,"T.S.ZN14460.TXF.T00001/0.TX",1611.4827402968051,"HV","OIL",3,0,null,null,"OIL"]
[1000344489,26,1,"T.S.ZN05868.TXF.T00003/0.TX",7842.4780902971752,"HV","OIL",1,0,null,null,"OIL"]
[1000344516,25,1,"T.S.ZN03425.TXF.T00002/0.TX",7567.3200140371246,"HV","OIL",1,0,null,null,"OIL"]
[1000344547,24,1,"T.S.ZN02466.TXF.T00003/0.TX",10801.897449472899,"HV","OIL",1,1900,null,null,"OIL"]
[1000344577,26,1,"T.S.ZN09035.TXF.T00001/0.TX",5860.4556983316497,"HV","OIL",2,0,null,null,"OIL"]
[1000344603,26,1,"T.S.ZN09035.TXF.T00002/0.TX",5860.4556983316497,"HV","OIL",1,0,null,null,"OIL"]
[1000344840,25,1,"T.S.ZN02568.TXF.T00001/0.TX",9522.4053547612748,"HV","OIL",1,0,null,null,"OIL"]
[1000344872,24,1,"T.S.ZN14143.TXF.T00001/0.TX",4585.3608747142453,"HV","OIL",1,0,null,null,"OIL"]
[1000344903,24,1,"T.S.ZN14143.TXF.T00002/0.TX",4585.3608747142453,"HV","OIL",2,0,null,null,"OIL"]
[1000344995,56,1,"T.S.TS07150.TXF.T00003/0.TX",8371.0830748668322,"HV","OIL",1,0,null,null,"OIL"]
[1000349025,21,1,"T.S.ZN04545.TXF.T00003/0.TX",10921.472141929067,"HV","OIL",1,0,null,null,"OIL"]
[1000349053,20,1,"T.S.ZN01610.TXF.T00001/0.TX",10055.1070406284,"HV","OIL",1,0,null,null,"OIL"]
[1000349084,20,1,"T.S.ZN01610.TXF.T00002/0.TX",10055.1070406284,"HV","OIL",1,0,null,null,"OIL"]
[1000349112,19,1,"T.S.TS16600.TXF.T00004/0.TX",20854.448960514972,"HV","OIL",1,0,null,null,"OIL"]
[1000349143,18,1,"T.S.TS16600.TXF.T00002/0.TX",20854.448960514972,"HV","OIL",1,0,null,null,"OIL"]
[1000349169,21,1,"T.S.ZN07481.TXF.T00011/0.TX",15375.5013114467,"HV","OIL",1,0,null,null,"OIL"]
[1000349201,21,1,"T.S.ZN07481.TXF.T00012/0.TX",15375.5013114467,"HV","OIL",1,0,null,null,"OIL"]
[1000349231,19,1,"T.S.ZN00188.TXF.T00003/0.TX",7495.1161749794001,"HV","OIL",1,600,null,null,"OIL"]
[1000349259,19,1,"T.S.ZN00847.TXF.T00002/0.TX",11181.798898452065,"HV","OIL",1,0,null,null,"OIL"]
[1000349287,19,1,"T.S.ZN00847.TXF.T00003/0.TX",11181.798898452065,"HV","OIL",1,0,null,null,"OIL"]
[1000349315,18,1,"T.S.ZN00931.TXF.T00002/0.TX",5529.7032360865251,"HV","OIL",1,0,null,null,"OIL"]
[1000349346,18,1,"T.S.ZN00931.TXF.T00003/0.TX",5529.7032360865251,"HV","OIL",1,0,null,null,"OIL"]
[1000349374,18,1,"T.S.ZN00931.TXF.T00004/0.TX",5529.7032360865251,"HV","OIL",1,0,null,null,"OIL"]
[1000349403,18,1,"T.S.ZN00965.TXF.T00003/0.TX",10411.827225082101,"HV","OIL",1,0,null,null,"OIL"]
[1000349461,19,1,"T.S.ZN02835.TXF.T00004/0.TX",9334.2878786163492,"HV","OIL",1,0,null,null,"OIL"]
[1000349494,16,1,"T.S.ZN00532.TXF.T00001/0.TX",5707.8665444852504,"HV","OIL",1,0,null,null,"OIL"]
[1000349615,18,1,"T.S.ZN00340.TXF.T00011/0",2518.7494200280998,"HV","OIL",1,0,null,null,"OIL"]
[1000349645,17,1,"T.S.ZN14892.TXF.T00001/0.TX",8545.5342697128508,"HV","OIL",1,0,null,null,"OIL"]
[1000349674,17,1,"T.S.ZN14892.TXF.T00002/0.TX",8545.5342697128508,"HV","OIL",1,0,null,null,"OIL"]
[1000349704,15,1,"T.S.ZN02196.TXF.T00002/0.TX",10796.7451571566,"HV","OIL",1,0,null,null,"OIL"]
[1000349797,15,1,"T.S.ZN09171.TXF.T00002/0.TX",2485.9424275114152,"HV","OIL",1,0,null,null,"OIL"]
[1000349829,15,1,"T.S.ZN09171.TXF.T00001/0.TX",2485.9424275114152,"HV","OIL",1,0,null,null,"OIL"]
[1000349857,16,1,"T.S.ZN01285.TXF.T00001/0.TX",7059.447825921925,"HV","OIL",1,0,null,null,"OIL"]
[1000349884,17,1,"T.S.ZN00263.TXF.T00003/0.TX",8497.6413623076241,"HV","OIL",1,0,null,null,"OIL"]
[1000349913,18,1,"T.S.ZN00342.TXF.T00003/0.TX",6532.9701660047331,"HV","OIL",1,0,null,null,"OIL"]
[1000349939,17,1,"T.S.ZN08000.TXF.T00001/0.TX",14700.2642144533,"HV","OIL",3,0,null,null,"OIL"]
[1000349972,17,1,"T.S.ZN08000.TXF.T00002/0.TX",14700.2642144533,"HV","OIL",2,0,null,null,"OIL"]
[1000353004,17,1,"T.S.TS10900.TXF.T00004/0.TX",14303.164705002158,"HV","OIL",1,0,null,null,"OIL"]
[1000353037,15,1,"T.S.ZN00116.TXF.T00004/0.TX",3510.8213801948664,"HV","OIL",1,0,null,null,"OIL"]
[1000353068,16,1,"T.S.ZN04990.TXF.T00003/0.TX",11187.439714865324,"HV","OIL",1,0,null,null,"OIL"]
[1000353101,16,1,"T.S.ZN04990.TXF.T00002/0.TX",11187.439714865324,"HV","OIL",1,0,null,null,"OIL"]
[1000353135,16,1,"T.S.ZN04990.TXF.T00004/0.TX",11187.439714865324,"HV","OIL",1,0,null,null,"OIL"]
[1000353167,16,1,"T.S.ZN15002.TXF.T00002/0.TX",2687.8499487062099,"HV","OIL",1,0,null,null,"OIL"]
[1000353227,16,1,"T.S.ZN01193.TXF.T00002/0.TX",4133.8100954997672,"HV","OIL",1,0,null,null,"OIL"]
[1000353258,16,1,"T.S.ZN01193.TXF.T00003/0.TX",4133.8100954997672,"HV","OIL",1,0,null,null,"OIL"]
[1000353287,16,1,"T.S.ZN02310.TXF.T00011/0.TX",3083.3183316724999,"HV","OIL",1,0,null,null,"OIL"]
[1000353314,14,1,"T.S.ZN03425.TXF.T00004/0.TX",7567.3200140371246,"HV","OIL",1,0,null,null,"OIL"]
[1000353347,15,1,"T.S.ZN02196.TXF.T00003/0.TX",10796.7451571566,"HV","OIL",1,0,null,null,"OIL"]
[1000353379,15,1,"T.S.ZN12650.TXF.T00013/0.TX",11089.439279143049,"HV","OIL",3,0,null,null,"OIL"]
[1000353459,15,1,"T.S.ZN12650.TXF.T00011/0.TX",11089.439279143049,"HV","OIL",1,0,null,null,"OIL"]
[1000353491,15,1,"T.S.ZN00210.TXF.T00001/0.TX",3760.3643061560501,"HV","OIL",1,0,null,null,"OIL"]
[1000353523,13,1,"T.S.ZN00210.TXF.T00002/0.TX",3760.3643061560501,"HV","OIL",1,0,null,null,"OIL"]
[1000353554,14,1,"T.S.ZN00263.TXF.T00002/0.TX",8497.6413623076241,"HV","OIL",1,0,null,null,"OIL"]
[1000353588,15,1,"T.S.ZN00205.TXF.T00002/0.TX",4176.4495111529905,"HV","OIL",1,250,null,null,"OIL"]
[1000353620,15,1,"T.S.ZN03472.TXF.T00002/0.TX",5069.5917147683003,"HV","OIL",1,0,null,null,"OIL"]
[1000353653,15,1,"T.S.ZN00263.TXF.T00001/0.TX",8497.6413623076241,"HV","OIL",1,0,null,null,"OIL"]
[1000353684,15,1,"T.S.ZN12570.TXF.T00012/0.TX",5141.6948496801006,"HV","OIL",1,0,null,null,"OIL"]
[1000353713,14,1,"T.S.ZN02602.TXF.T00001/0.TX",8922.2679157638759,"HV","OIL",1,0,null,null,"OIL"]
[1000353747,14,1,"T.S.ZN07900.TXF.T00001/0.TX",10183.725025575901,"HV","OIL",1,0,null,null,"OIL"]
[1000353781,14,1,"T.S.ZN07900.TXF.T00002/0.TX",10183.725025575901,"HV","OIL",1,0,null,null,"OIL"]
[1000353814,16,1,"T.S.ZN00509.TXF.T00002/0.TX",944.96452259430498,"HV","OIL",1,0,null,null,"OIL"]
[1000353845,14,1,"T.S.ZN01193.TXF.T00004/0.TX",4133.8100954997672,"HV","OIL",1,0,null,null,"OIL"]
[1000353873,15,1,"T.S.ZN04990.TXF.T00001/0.TX",11187.439714865324,"HV","OIL",1,0,null,null,"OIL"]
[1000353900,15,1,"T.S.ZN01850.TXF.T00012/0.TX",3427.5138350680336,"HV","OIL",1,0,null,null,"OIL"]
[1000353934,15,1,"T.S.ZN00238.TXF.T00003/0.TX",3117.3881429418466,"HV","OIL",1,0,null,null,"OIL"]
[1000353966,15,1,"T.S.ZN00204.TXF.T00002/0.TX",3659.7152652149548,"HV","OIL",1,0,null,null,"OIL"]
[1000353995,14,1,"T.S.ZN00204.TXF.T00001/0.TX",3659.7152652149548,"HV","OIL",1,0,null,null,"OIL"]
[1000358026,14,1,"T.S.ZN00523.TXF.T00002/0.TX",2666.4031133840199,"HV","OIL",1,0,null,null,"OIL"]
[1000358056,14,1,"T.S.ZN00523.TXF.T00001/0.TX",2666.4031133840199,"HV","OIL",1,0,null,null,"OIL"]
[1000358084,14,1,"T.S.ZN02602.TXF.T00004/0.TX",8922.2679157638759,"HV","OIL",1,0,null,null,"OIL"]
[1000358116,14,1,"T.S.ZN03154.TXF.T00002/0.TX",5485.3269493792332,"HV","OIL",1,0,null,null,"OIL"]
[1000358149,14,1,"T.S.TS00415.TXF.T00003/0.TX",15750.61095216427,"HV","OIL",1,0,null,null,"OIL"]
[1000358181,14,1,"T.S.TS00415.TXF.T00001/0.TX",15750.61095216427,"HV","OIL",1,0,null,null,"OIL"]
[1000358266,14,1,"T.S.ZN15014.TXF.T00001/0.TX",5013.648803058567,"HV","OIL",1,0,null,null,"OIL"]
[1000358298,14,1,"T.S.TS00404.TXF.T00001/0.TX",10276.808016445248,"HV","OIL",1,0,null,null,"OIL"]
[1000358360,14,1,"T.S.ZN00631.TXF.T00001/0.TX",{"$error":"#N/A"},"HV","OIL",1,0,null,null,"OIL"]
[1000358393,13,1,"T.S.ZN15010.TXF.T00001/0.TX",2682.0670025097502,"HV","OIL",1,0,null,null,"OIL"]
[1000358426,13,1,"T.S.TS00404.TXF.T00002/0.TX",10276.808016445248,"HV","OIL",1,0,null,null,"OIL"]
[1000358459,13,1,"T.S.ZN00384.TXF.T00002/0.TX",2946.7368276576999,"HV","OIL",1,0,null,null,"OIL"]
[1000358493,13,1,"T.S.ZN00384.TXF.T00001/0.TX",2946.7368276576999,"HV","OIL",1,0,null,null,"OIL"]
[1000358522,13,1,"T.S.ZN00384.TXF.T00005/0.TX",2946.7368276576999,"HV","OIL",1,0,null,null,"OIL"]
[1000358550,13,1,"T.S.ZN00711.TXF.T00003/0.TX",2594.8912715780002,"HV","OIL",1,0,null,null,"OIL"]
[1000358581,13,1,"T.S.ZN08100.TXF.T00001/0.TX",9722.756606045501,"HV","OIL",1,0,null,null,"OIL"]
[1000358609,13,1,"T.S.ZN00238.TXF.T00002/0.TX",3117.3881429418466,"HV","OIL",1,0,null,null,"OIL"]
[1000358641,13,1,"T.S.ZN00238.TXF.T00001/0.TX",3117.3881429418466,"HV","OIL",1,0,null,null,"OIL"]
[1000358676,12,1,"T.S.ZN00080.TXF.T00012/0.TX",7252.8713430689668,"HV","OIL",2,0,null,null,"OIL"]
[1000358704,13,1,"T.S.ZN02602.TXF.T00003/0.TX",8922.2679157638759,"HV","OIL",1,0,null,null,"OIL"]
[1000358763,13,1,"T.S.ZN10995.TXF.T00002/0.TX",3877.7650077308667,"HV","OIL",1,0,null,null,"OIL"]
[1000358821,13,1,"T.S.ZN00630.TXF.T00004/0.TX",3783.3779856536999,"HV","OIL",1,0,null,null,"OIL"]
[1000358848,12,1,"T.S.ZN03472.TXF.T00004/0.TX",5069.5917147683003,"HV","OIL",1,0,null,null,"OIL"]
[1000358878,13,1,"T.S.ZN00502.TXF.T00001/0.TX",1865.212972806735,"HV","OIL",1,0,null,null,"OIL"]
[1000358906,13,1,"T.S.ZN00195.TXF.T00002/0.TX",4347.7996584712337,"HV","OIL",1,0,null,null,"OIL"]
[1000358936,11,1,"T.S.ZN15009.TXF.T00003/0.TX",4643.4074513087853,"HV","CAST_RESIN","N/A",0,null,null,"CAST_RESIN"]
[1000358963,13,1,"T.S.TS07190.TXF.T00001/0.TX",18826.780952940666,"HV","OIL",1,0,null,null,"OIL"]
[1000358993,12,1,"T.S.TS07190.TXF.T00002/0.TX",18826.780952940666,"HV","OIL",1,0,null,null,"OIL"]
[1000362022,12,1,"T.S.ZN00632.TXF.T00002/0.TX",{"$error":"#N/A"},"HV","OIL",1,0,null,null,"OIL"]
[1000362081,13,1,"T.S.TS07270.TXF.T00002/0.TX",18937.954948640992,"HV","OIL",1,0,null,null,"OIL"]
[1000362111,13,1,"T.S.ZN02602.TXF.T00002/0.TX",8922.2679157638759,"HV","OIL",1,0,null,null,"OIL"]
[1000362141,13,1,"T.S.ZN00228.TXF.T00001/0.TX",1328.7268500221801,"HV","OIL",1,0,null,null,"OIL"]
[1000362166,13,1,"T.S.ZN00228.TXF.T00002/0.TX",1328.7268500221801,"HV","OIL",1,0,null,null,"OIL"]
[1000362199,12,1,"T.S.ZN00129.TXF.T00003/0.TX",7148.3022660534998,"HV","OIL",1,0,null,null,"OIL"]
[1000362227,12,1,"T.S.ZN10995.TXF.T00001/0.TX",3877.7650077308667,"HV","OIL",1,0,null,null,"OIL"]
[1000362285,13,1,"T.S.TS00404.TXF.T00003/0.TX",10276.808016445248,"HV","OIL",1,0,null,null,"OIL"]
[1000362316,12,1,"T.S.TS00412.TXF.T00001/0.TX",15417.063811061294,"HV","OIL",1,0,null,null,"OIL"]
[1000362345,13,1,"T.S.TS00412.TXF.T00002/0.TX",15417.063811061294,"HV","OIL",1,0,null,null,"OIL"]
[1000362379,12,1,"T.S.ZN01068.TXF.T00003/0.TX",3039.30688697609,"HV","OIL",1,0,null,null,"OIL"]
[1000362439,12,1,"T.S.ZN09700.TXF.T00001/0.TX",8385.6364774139001,"HV","OIL",1,0,null,null,"OIL"]
[1000362467,13,1,"T.S.ZN12570.TXF.T00011/0.TX",5141.6948496801006,"HV","OIL",1,0,null,null,"OIL"]
[1000362497,11,1,"T.S.ZN00206.TXF.T00001/0.TX",3308.7142125178052,"HV","OIL",1,0,null,null,"OIL"]
[1000362528,11,1,"T.S.ZN00206.TXF.T00002/0.TX",3308.7142125178052,"HV","OIL",1,0,null,null,"OIL"]
[1000362556,11,1,"T.S.ZN00202.TXF.T00003/0.TX",6174.7274939166336,"HV","OIL",1,0,null,null,"OIL"]
[1000362587,11,1,"T.S.ZN00202.TXF.T00001/0.TX",6174.7274939166336,"HV","OIL",1,0,null,null,"OIL"]
[1000362618,11,1,"T.S.ZN00202.TXF.T00002/0.TX",6174.7274939166336,"HV","OIL",1,0,null,null,"OIL"]
[1000362675,10,1,"T.S.TS07270.TXF.T00003/0.TX",18937.954948640992,"HV","OIL",1,0,null,null,"OIL"]
[1000362711,11,1,"T.S.ZN00525.TXF.T00001/0.TX",459.35510570776302,"HV-single","OIL",2,0,null,null,"OIL"]
[1000362743,12,1,"T.S.ZN15010.TXF.T00003/0.TX",2682.0670025097502,"HV","OIL",2,0,null,null,"OIL"]
[1000362772,11,1,"T.S.ZN02635.TXF.T00001/0.TX",8791.0735296048333,"HV","OIL",1,0,null,null,"OIL"]
[1000362807,11,1,"T.S.ZN15008.TXF.T00002/0.TX",3709.0115294808402,"HV","OIL",1,0,null,null,"OIL"]
[1000362836,11,1,"T.S.ZN12690.TXF.T00013/0.TX",10361.349307822,"HV","OIL",1,0,null,null,"OIL"]
[1000362870,11,1,"T.S.ZN00690.TXF.T00003/0.TX",6983.8712946800497,"HV","OIL",1,0,null,null,"OIL"]
[1000362899,12,1,"T.S.ZN00205.TXF.T00001/0.TX",4176.4495111529905,"HV","OIL",1,0,null,null,"OIL"]
[1000362927,12,1,"T.S.ZN00847.TXF.T00001/0.TX",11181.798898452065,"HV","OIL",2,0,null,null,"OIL"]
[1000362965,11,1,"T.S.ZN15013.TXF.T00002/0.TX",2309.2894413335666,"HV","OIL",2,0,null,null,"OIL"]
[1000362998,10,1,"T.S.ZN00243.TXF.T00002/0.TX",4498.9606184235554,"HV","OIL",1,0,null,null,"OIL"]
[1000366027,11,1,"T.S.ZN00515.TXF.T00001/0.TX",1622.44256064775,"HV","OIL",1,0,null,null,"OIL"]
[1000366060,10,1,"T.S.ZN02568.TXF.T00004/0.TX",9522.4053547612748,"HV","OIL",1,0,null,null,"OIL"]
[1000366091,11,1,"T.S.ZN12600.TXF.T00001/0.TX",5234.8719688691499,"HV","OIL",2,0,null,null,"OIL"]
[1000366122,11,1,"T.S.ZN10994.TXF.T00003/0.TX",5957.5220047965668,"HV","OIL",1,0,null,null,"OIL"]
[1000366153,10,1,"T.S.TS09200.TXF.T00003/0.TX",10011.918622042009,"HV","OIL",1,0,null,null,"OIL"]
[1000366184,10,1,"T.S.ZN08000.TXF.T00003/0.TX",14700.2642144533,"HV","OIL",2,0,null,null,"OIL"]
[1000366216,10,1,"T.S.ZN00129.TXF.T00001/0.TX",7148.3022660534998,"HV","OIL",1,0,null,null,"OIL"]
[1000366244,11,1,"T.S.ZN00813.TXF.T00001/0.TX",2263.9793722615964,"HV","OIL",1,0,null,null,"OIL"]
[1000366397,58,1,"T.S.ZN15015.TXF.T00002/0.TX",1817.6510259410634,"HV","OIL",3,0,null,null,"OIL"]
[1000366483,56,1,"T.S.ZN15015.TXF.T00001/0.TX",1817.6510259410634,"HV","OIL",1,0,null,null,"OIL"]
[1000366599,48,1,"T.S.ZN15005.TXF.T00003/0.TX",3485.410718387167,"HV","OIL",2,0,null,null,"OIL"]
[1000366630,48,1,"T.S.ZN15005.TXF.T00001/0.TX",3485.410718387167,"HV","OIL",4,0,null,null,"OIL"]
[1000366661,50,1,"T.S.ZN15004.TXF.T00002/0.TX",2807.3853147599152,"HV","OIL",4,0,null,null,"OIL"]
[1000366782,53,1,"T.S.ZN15012.TXF.T00001/0.TX",2721.3074925436199,"HV","OIL",2,50,null,null,"OIL"]
[1000366876,42,1,"T.S.ZN12660.TXF.T00001/0.TX",4169.9378584613651,"HV","OIL",1,0,null,null,"OIL"]
[1000366906,42,1,"T.S.ZN12660.TXF.T00002/0.TX",4169.9378584613651,"HV","OIL",2,0,null,null,"OIL"]
[1000367691,13,1,"T.S.ZN00213.TXF.T00002/0.TX",3533.875970062415,"HV","OIL",1,0,null,null,"OIL"]
[1000367704,13,1,"T.S.ZN00213.TXF.T00001/0.TX",3533.875970062415,"HV","OIL",1,0,null,null,"OIL"]
[1000370022,38,1,"T.S.ZN12570.TXF.T00013/0.TX",5141.6948496801006,"HV","OIL",1,0,null,null,"OIL"]
[1000370112,46,1,"T.S.ZN15013.TXF.T00001/0.TX",2309.2894413335666,"HV","OIL",4,0,null,null,"OIL"]
[1000370140,47,1,"T.S.ZN15013.TXF.T00003/0.TX",2309.2894413335666,"HV","OIL",2,60,null,null,"OIL"]
[1000370197,58,1,"T.S.ZN12630.TXF.T00002/0.TX",2541.0203144254901,"HV","OIL",2,0,null,null,"OIL"]
[1000370256,54,1,"T.S.ZN12620.TXF.T00001/0.TX",3127.330764066,"HV","OIL",2,0,null,null,"OIL"]
[1000370289,54,1,"T.S.ZN12620.TXF.T00002/0.TX",3127.330764066,"HV","OIL",3,0,null,null,"OIL"]
[1000370319,52,1,"T.S.ZN12620.TXF.T00003/0.TX",3127.330764066,"HV","OIL",3,0,null,null,"OIL"]
[1000370381,60,1,"T.S.ZN12630.TXF.T00001/0.TX",2541.0203144254901,"HV","OIL",1,0,null,null,"OIL"]
[1000370592,54,1,"T.S.TS07250.TXF.T00001/0.TX",{"$error":"#N/A"},"HV","OIL",3,1600,null,null,"OIL"]
[1000370708,40,1,"T.S.TS14440.TXF.T00001/0.TX",15865.965247112872,"HV","OIL",4,0,null,null,"OIL"]
[1000370828,57,1,"T.S.TS07270.TXF.T00004/0.TX",18937.954948640992,"HV","OIL",4,0,null,null,"OIL"]
[1000370886,56,1,"T.S.TS16600.TXF.T00001/0.TX",20854.448960514972,"HV","OIL",3,0,null,null,"OIL"]
[1000374033,54,1,"T.S.TS10900.TXF.T00003/0.TX",14303.164705002158,"HV","OIL",1,600,null,null,"OIL"]
[1000374059,54,1,"T.S.TS10900.TXF.T00002/0.TX",14303.164705002158,"HV","OIL",1,1200,null,null,"OIL"]
[1000374121,49,1,"T.S.TS07170.TXF.T00001/0.TX",18744.833622971251,"HV","OIL",2,0,null,null,"OIL"]
[1000374180,54,1,"T.S.TS07250.TXF.T00002/0.TX",{"$error":"#N/A"},"HV","OIL",2,1400,null,null,"OIL"]
[1000374211,52,1,"T.S.TS00407.TXF.T00003/0.TX",2255.4251620072664,"HV","OIL",1,0,null,null,"OIL"]
[1000374241,50,1,"T.S.TS07220.TXF.T00003/0.TX",17709.508796798535,"HV","OIL",2,0,null,null,"OIL"]
[1000374449,50,1,"T.S.TS07220.TXF.T00001/0.TX",17709.508796798535,"HV","OIL",3,4600,null,null,"OIL"]
[1000374873,61,1,"T.S.ZN00520.TXF.T00001/0.TX",395.114998698482,"HV-single","OIL",3,0,null,null,"OIL"]
[1000375968,14,1,"T.S.ZN00807.TXF.T0001A/0.TX",538.25717876837746,"HV","OIL",1,0,null,null,"OIL"]
[1000375980,14,1,"T.S.ZN12640.TXF.T00002/0.TX",5712.1209929861498,"HV","OIL",1,0,null,null,"OIL"]
[1000390269,12,1,"T.S.ZN00384.TXF.T00003/0.TX",2946.7368276576999,"HV","OIL",1,0,null,null,"OIL"]
[1000391949,65,1,"T.S.ZN01068.TXF.T00002/0.TX",3039.30688697609,"HV","OIL",1,200,null,null,"OIL"]
[1000395044,64,1,"T.S.ZN00072.TXF.T00002/0.TX",832.8119210809275,"HV","OIL",2,0,null,null,"OIL"]
[1000395120,59,1,"T.S.ZN01290.TXF.T00001/0.TX",4156.759234351367,"HV","OIL",3,0,null,null,"OIL"]
[1000395215,55,1,"T.S.ZN00072.TXF.T00003/0.TX",832.8119210809275,"HV","OIL",1,0,null,null,"OIL"]
[1000395235,55,1,"T.S.ZN00072.TXF.T00001/0.TX",832.8119210809275,"HV","OIL",3,0,null,null,"OIL"]
[1000395352,24,1,"T.S.ZN01285.TXF.T00004/0.TX",7059.447825921925,"HV","OIL",1,0,null,null,"OIL"]
[1000395372,25,1,"T.S.ZN00188.TXF.T00001/0.TX",7495.1161749794001,"HV","OIL",1,0,null,null,"OIL"]
[1000395408,15,1,"T.S.ZN00221.TXF.T00001/0.TX",3443.7886340472601,"HV","OIL",1,50,null,null,"OIL"]
[1000395428,15,1,"T.S.ZN00221.TXF.T00002/0.TX",3443.7886340472601,"HV","OIL",1,0,null,null,"OIL"]
[1000395446,15,1,"T.S.ZN00227.TXF.T00001/0.TX",2057.5824074778852,"HV","OIL",1,0,null,null,"OIL"]
[1000395463,14,1,"T.S.ZN15004.TXF.T00003/0.TX",2807.3853147599152,"HV","OIL",1,0,null,null,"OIL"]
[1000395483,14,1,"T.S.ZN00524.TXF.T00001/0.TX",3815.324461637525,"HV","OIL",1,0,null,null,"OIL"]
[1000395500,14,1,"T.S.ZN00524.TXF.T00002/0.TX",3815.324461637525,"HV","OIL",1,0,null,null,"OIL"]
[1000395521,14,1,"T.S.ZN00232.TXF.T00003/0.TX",3513.2201072383336,"HV","OIL",1,0,null,null,"OIL"]
[1000395538,11,1,"T.S.ZN02400.TXF.T00003/0.TX",3172.9798906690503,"HV","OIL",1,0,null,null,"OIL"]
[1000395577,11,1,"T.S.ZN15009.TXF.T00001/0.TX",4643.4074513087853,"HV","CAST_RESIN","N/A",0,null,null,"CAST_RESIN"]
[1000395597,12,1,"T.S.ZN00222.TXF.T00002/0.TX",2649.1429891191151,"HV","OIL",1,0,null,null,"OIL"]
[1000395616,12,1,"T.S.ZN00222.TXF.T00001/0.TX",2649.1429891191151,"HV","OIL",1,0,null,null,"OIL"]
[1000395639,10,1,"T.S.TS07240.TXF.T00001/0.TX",{"$error":"#N/A"},"HV","OIL",2,0,null,null,"OIL"]
[1000395669,12,1,"T.S.ZN02635.TXF.T00003/0.TX",8791.0735296048333,"HV","OIL",1,0,null,null,"OIL"]
[1000395733,11,1,"T.S.ZN00515.TXF.T00002/0.TX",1622.44256064775,"HV","OIL",1,0,null,null,"OIL"]
[1000395763,11,1,"T.S.TS00409.TXF.T00003/0.TX",8935.9804578713283,"HV","OIL",1,0,null,null,"OIL"]
[1000395789,11,1,"T.S.TS07170.TXF.T00002/0.TX",18744.833622971251,"HV","OIL",1,0,null,null,"OIL"]
[1000395818,11,1,"T.S.ZN14891.TXF.T00001/0.TX",8268.0129029031505,"HV","OIL",1,0,null,null,"OIL"]
[1000395877,11,1,"T.S.TS00412.TXF.T00003/0.TX",15417.063811061294,"HV","OIL",1,0,null,null,"OIL"]
[1000395930,10,1,"T.S.ZN00167.TXF.T00005/0.TX",3172.2359036724333,"HV","OIL",1,0,null,null,"OIL"]
[1000395955,11,1,"T.S.ZN01788.TXF.T00005/0.TX",5386.2084692045801,"HV","OIL",1,0,null,null,"OIL"]
[1000395984,10,1,"T.S.ZN01285.TXF.T00003/0.TX",7059.447825921925,"HV","OIL",1,0,null,null,"OIL"]
[1000400013,11,1,"T.S.ZN14144.TXF.T00001/0.TX",2908.6821936577799,"HV","OIL",1,0,null,null,"OIL"]
[1000400036,10,1,"T.S.ZN15012.TXF.T00002/0.TX",2721.3074925436199,"HV","OIL",1,0,null,null,"OIL"]
[1000400062,10,1,"T.S.ZN12640.TXF.T00003/0.TX",5712.1209929861498,"HV","OIL",1,0,null,null,"OIL"]
[1000400113,10,1,"T.S.ZN00180.TXF.T00002/0.TX",7827.3052115617502,"HV","OIL",3,0,null,null,"OIL"]
[1000400141,10,1,"T.S.ZN00180.TXF.T00004/0.TX",7827.3052115617502,"HV","OIL",1,0,null,null,"OIL"]
[1000400168,10,1,"T.S.TS07300.TXF.T00012/0.TX",19627.701203396238,"HV","OIL",1,0,null,null,"OIL"]
[1000400193,10,1,"T.S.ZN12600.TXF.T00002/0.TX",5234.8719688691499,"HV","OIL",1,0,null,null,"OIL"]
[1000400222,10,1,"T.S.ZN10994.TXF.T00002/0.TX",5957.5220047965668,"HV","OIL",1,0,null,null,"OIL"]
[1000400253,10,1,"T.S.ZN10994.TXF.T00001/0.TX",5957.5220047965668,"HV","OIL",1,0,null,null,"OIL"]
[1000400282,11,1,"T.S.ZN15006.TXF.T00001/0.TX",5814.4695873413002,"HV","OIL",1,0,null,null,"OIL"]
[1000400309,10,1,"T.S.ZN00243.TXF.T00001/0.TX",4498.9606184235554,"HV","OIL",1,0,null,null,"OIL"]
[1000400338,10,1,"T.S.ZN05959.TXF.T00001/0.TX",{"$error":"#N/A"},"HV","OIL_FR3",1,0,null,null,"OIL_FR3"]
[1000400470,45,1,"T.S.ZN15011.TXF.T00002/0.TX",4787.2516709704996,"HV","OIL",3,0,null,null,"OIL"]
[1000400498,45,1,"T.S.ZN15011.TXF.T00001/0.TX",4787.2516709704996,"HV","OIL",1,0,null,null,"OIL"]
[1000400520,42,1,"T.S.ZN15014.TXF.T00002/0.TX",5013.648803058567,"HV","OIL",1,0,null,null,"OIL"]
[1000400548,44,1,"T.S.ZN15001.TXF.T00003/0.TX",6114.4151861479331,"HV","OIL",3,0,null,null,"OIL"]
[1000400598,43,1,"T.S.ZN15006.TXF.T00003/0.TX",5814.4695873413002,"HV","OIL",3,0,null,null,"OIL"]
[1000400719,64,1,"T.S.TS07240.TXF.T00002/0.TX",{"$error":"#N/A"},"HV","OIL",2,0,null,null,"OIL"]
[1000400757,61,1,"T.S.TS07290.TXF.T00003/0.TX",8566.3777211888664,"HV","OIL",3,0,null,null,"OIL"]
[1000400775,61,1,"T.S.TS07290.TXF.T00002/0.TX",8566.3777211888664,"HV","OIL",2,0,null,null,"OIL"]
[1000400898,40,1,"T.S.TS07170.TXF.T00004/0.TX",18744.833622971251,"HV","OIL",5,0,null,null,"OIL"]
[1000400926,47,1,"T.S.TS16700.TXF.T00008/0.TX",19161.709632564074,"HV","OIL",1,2800,null,null,"OIL"]
[1000400951,47,1,"T.S.TS16700.TXF.T00007/0.TX",19161.709632564074,"HV","OIL",1,0,null,null,"OIL"]
[1000400977,56,1,"T.S.TS07190.TXF.T00003/0.TX",18826.780952940666,"HV","OIL",1,0,null,null,"OIL"]
[1000404003,40,1,"T.S.TS14440.TXF.T00002/0.TX",15865.965247112872,"HV","OIL",1,0,null,null,"OIL"]
[1000404028,40,1,"T.S.TS14440.TXF.T00004/0.TX",15865.965247112872,"HV","OIL",1,0,null,null,"OIL"]
[1000404055,27,1,"T.S.TS07150.TXF.T00002/0.TX",8371.0830748668322,"HV","OIL",1,0,null,null,"OIL"]
[1000404080,27,1,"T.S.TS07150.TXF.T00001/0.TX",8371.0830748668322,"HV","OIL",1,0,null,null,"OIL"]
[1000404108,36,1,"T.S.TS14440.TXF.T00003/0.TX",15865.965247112872,"HV","OIL",1,0,null,null,"OIL"]
[1000404159,55,1,"T.S.TS00413.TXF.T00006/0.TX",{"$error":"#N/A"},"HV","OIL",1,0,null,null,"OIL"]
[1000404179,8,1,"T.S.TS07140.TXF.T00004/0.TX",18479.30311848105,"HV","OIL",1,0,null,null,"OIL"]
[1000404301,50,1,"T.S.ZN00214.TXF.T00002/0.TX",3426.1195354588499,"HV","OIL",1,0,null,null,"OIL"]
[1000404323,50,1,"T.S.ZN00214.TXF.T00001/0.TX",3426.1195354588499,"HV","OIL",1,0,null,null,"OIL"]
[1000404408,56,1,"T.S.ZN00223.TXF.T00001/0.TX",2569.1173780704048,"HV","OIL",3,0,null,null,"OIL"]
[1000404433,55,1,"T.S.ZN00223.TXF.T00002/0.TX",2569.1173780704048,"HV","OIL",1,0,null,null,"OIL"]
[1000404524,44,1,"T.S.ZN00227.TXF.T00002/0.TX",2057.5824074778852,"HV","OIL",1,0,null,null,"OIL"]
[1000404605,47,1,"T.S.ZN00217.TXF.T00002/0.TX",2858.7371767852251,"HV","OIL",1,0,null,null,"OIL"]
[1000404625,47,1,"T.S.ZN00217.TXF.T00001/0.TX",2858.7371767852251,"HV","OIL",1,0,null,null,"OIL"]
[1000404725,47,1,"T.S.ZN00232.TXF.T00001/0.TX",3513.2201072383336,"HV","OIL",2,0,null,null,"OIL"]
[1000404743,47,1,"T.S.ZN00232.TXF.T00002/0.TX",3513.2201072383336,"HV","OIL",4,0,null,null,"OIL"]
[1000404873,47,1,"T.S.ZN00235.TXF.T00002/0.TX",5366.6621932662501,"HV","OIL",2,0,null,null,"OIL"]
[1000404895,47,1,"T.S.ZN00235.TXF.T00001/0.TX",5366.6621932662501,"HV","OIL",2,350,null,null,"OIL"]
[1000407011,51,1,"T.S.ZN00230.TXF.T00001/0.TX",1860.7861576785001,"HV","OIL",1,0,null,null,"OIL"]
[1000407031,42,1,"T.S.ZN00801.TXF.T00001/0.TX",2948.4091749123099,"HV","OIL",1,0,null,null,"OIL"]
[1000407052,42,1,"T.S.ZN00801.TXF.T00002/0.TX",2948.4091749123099,"HV","OIL",1,0,null,null,"OIL"]
[1000407221,57,1,"T.S.ZN00806.TXF.T00001/0.TX",224.183110414038,"HV","OIL",1,0,null,null,"OIL"]
[1000407240,57,1,"T.S.ZN00806.TXF.T00002/0.TX",224.183110414038,"HV","OIL",2,0,null,null,"OIL"]
[1000407262,56,1,"T.S.ZN00810.TXF.T00002/0.TX",667.05441443083998,"HV","OIL",3,0,null,null,"OIL"]
[1000407283,56,1,"T.S.ZN00810.TXF.T00001/0.TX",667.05441443083998,"HV","OIL",1,0,null,null,"OIL"]
[1000407304,55,1,"T.S.ZN00802.TXF.T00002/0.TX",174.87038829172101,"HV","OIL",1,0,null,null,"OIL"]
[1000407324,52,1,"T.S.ZN00802.TXF.T00001/0.TX",174.87038829172101,"HV","OIL",1,0,null,null,"OIL"]
[1000407363,34,1,"T.S.ZN00812.TXF.T00002/0.TX",2343.5557278290298,"HV","OIL",1,0,null,null,"OIL"]
[1000407386,34,1,"T.S.ZN00812.TXF.T00001/0.TX",2343.5557278290298,"HV","OIL",1,0,null,null,"OIL"]
[1000407406,34,1,"T.S.ZN00513.TXF.T00002/0.TX",4233.2267584246147,"HV","OIL",1,0,null,null,"OIL"]
[1000407427,44,1,"T.S.ZN00513.TXF.T00001/0.TX",4233.2267584246147,"HV","OIL",1,0,null,null,"OIL"]
[1000407446,35,1,"T.S.ZN00522.TXF.T00002/0.TX",3498.66455996687,"HV","OIL",1,0,null,null,"OIL"]
[1000407467,35,1,"T.S.ZN00522.TXF.T00001/0.TX",3498.66455996687,"HV","OIL",1,0,null,null,"OIL"]
[1000407484,35,1,"T.S.ZN00514.TXF.T00002/0.TX",2542.5598487215502,"HV","OIL",1,40,null,null,"OIL"]
[1000407503,35,1,"T.S.ZN00514.TXF.T00001/0.TX",2542.5598487215502,"HV","OIL",2,0,null,null,"OIL"]
[1000407527,32,1,"T.S.ZN00216.TXF.T00002/0.TX",3438.2990943363802,"HV","OIL",1,0,null,null,"OIL"]
[1000407547,32,1,"T.S.ZN00216.TXF.T00001/0.TX",3438.2990943363802,"HV","OIL",2,0,null,null,"OIL"]
[1000407568,40,1,"T.S.ZN00245.TXF.T00002/0.TX",1794.8153692922399,"HV","OIL",2,0,null,null,"OIL"]
[1000407588,40,1,"T.S.ZN00245.TXF.T00001/0.TX",1794.8153692922399,"HV","OIL",2,0,null,null,"OIL"]
[1000407604,40,1,"T.S.ZN00246.TXF.T00002/0.TX",655.17060575180994,"HV","OIL",1,0,null,null,"OIL"]
[1000407622,40,1,"T.S.ZN00246.TXF.T00001/0.TX",655.17060575180994,"HV","OIL",2,0,null,null,"OIL"]
[1000407678,58,1,"T.S.ZN00502.TXF.T00002/0.TX",1865.212972806735,"HV","OIL",1,0,null,null,"OIL"]
[1000407839,51,1,"T.S.ZN00512.TXF.T00001/0.TX",1932.0540241098599,"HV","OIL",1,0,null,null,"OIL"]
[1000407875,47,1,"T.S.ZN00516.TXF.T00001/0.TX",407.28438151919647,"HV","OIL",3,0,null,null,"OIL"]
[1000407905,47,1,"T.S.ZN00516.TXF.T00002/0.TX",407.28438151919647,"HV","OIL",1,0,null,null,"OIL"]
[1000407934,41,1,"T.S.ZN00807.TXF.T00001/0.TX",538.25717876837746,"HV","OIL",3,0,null,null,"OIL"]
[1000407967,41,1,"T.S.ZN00807.TXF.T00002/0.TX",538.25717876837746,"HV","OIL",3,0,null,null,"OIL"]
[1000410000,41,1,"T.S.ZN01290.TXF.T00002/0.TX",4156.759234351367,"HV","OIL",1,0,null,null,"OIL"]
[1000410034,41,1,"T.S.ZN01290.TXF.T00003/0.TX",4156.759234351367,"HV","OIL",1,0,null,null,"OIL"]
[1000410094,51,1,"T.S.TS00405.TXF.T00001/0.TX",21507.905206226184,"HV","OIL",3,0,null,null,"OIL"]
[1000410124,51,1,"T.S.TS00405.TXF.T00002/0.TX",21507.905206226184,"HV","OIL",2,0,null,null,"OIL"]
[1000410171,58,1,"T.S.TS00413.TXF.T00004/0.TX",{"$error":"#N/A"},"HV","OIL",4,1000,null,null,"OIL"]
[1000410190,58,1,"T.S.TS00413.TXF.T00007/0.TX",{"$error":"#N/A"},"HV","OIL",3,0,null,null,"OIL"]
[1000410281,50,1,"T.S.TS00402.TXF.T00001/0.TX",4507.5683825219348,"HV","OIL",1,0,null,null,"OIL"]
[1000410375,49,1,"T.S.TS00401.TXF.T00002/0.TX",{"$error":"#N/A"},"HV","OIL",3,0,null,null,"OIL"]
[1000410401,49,1,"T.S.TS00401.TXF.T00003/0.TX",{"$error":"#N/A"},"HV","OIL",4,1100,null,null,"OIL"]
[1000410465,49,1,"T.S.ZN00220.TXF.T00001/0.TX",2741.1884847035499,"HV","OIL",2,0,null,null,"OIL"]
[1000410481,49,1,"T.S.ZN00220.TXF.T00002/0.TX",2741.1884847035499,"HV","OIL",3,150,null,null,"OIL"]
[1000410502,46,1,"T.S.TS00405.TXF.T00003/0.TX",21507.905206226184,"HV","OIL",2,0,null,null,"OIL"]
[1000410528,34,1,"T.S.TS00402.TXF.T00002/0.TX",4507.5683825219348,"HV","OIL",1,0,null,null,"OIL"]
[1000410663,17,1,"T.S.ZN00509.TXF.T00001/0.TX",944.96452259430498,"HV","OIL",1,0,null,null,"OIL"]
[1000410716,55,1,"T.S.TS00407.TXF.T00002/0.TX",2255.4251620072664,"HV","OIL",2,0,null,null,"OIL"]
[1000410735,55,1,"T.S.TS00407.TXF.T00001/0.TX",2255.4251620072664,"HV","OIL",2,0,null,null,"OIL"]
[1000410772,36,1,"T.S.TS00406.TXF.T00001/0.TX",8802.9609287153053,"HV","OIL",1,0,null,null,"OIL"]
[1000410800,36,1,"T.S.TS00406.TXF.T00002/0.TX",8802.9609287153053,"HV","OIL",1,0,null,null,"OIL"]
[1000410871,37,1,"T.S.TS00409.TXF.T00001/0.TX",8935.9804578713283,"HV","OIL",1,650,null,null,"OIL"]
[1000410892,37,1,"T.S.TS00409.TXF.T00002/0.TX",8935.9804578713283,"HV","OIL",3,0,null,null,"OIL"]
[1000412867,13,1,"T.S.ZN08100.TXF.T00002/0.TX",9722.756606045501,"HV","OIL",1,0,null,null,"OIL"]
[1000412871,12,1,"T.S.ZN00080.TXF.T00011/0.TX",7252.8713430689668,"HV","OIL",2,0,null,null,"OIL"]
[1000412875,12,1,"T.S.ZN00080.TXF.T00013/0.TX",7252.8713430689668,"HV","OIL",1,0,null,null,"OIL"]
[1000414952,11,1,"T.S.ZN15015.TXF.T00003/0.TX",1817.6510259410634,"HV","OIL",1,0,null,null,"OIL"]
[1000414953,13,1,"T.S.ZN00532.TXF.T00002/0.TX",5707.8665444852504,"HV","OIL",1,0,null,null,"OIL"]
[1001423014,9,1,"T.S.TS09200.TXF.T00002/0.TX",10011.918622042009,"HV","OIL",1,0,null,null,"OIL"]
[1001433025,9,1,"T.S.ZN00690.TXF.T00004/0.TX",6983.8712946800497,"HV","OIL",1,0,null,null,"OIL"]
[1001433198,2,1,"T.S.ZN09252.TXF.T00003/0.TX",3602.2828915092668,"HV","OIL",1,0,null,null,"OIL"]
[1001435539,9,1,"T.S.ZN35600.TXF.T00001/0.TX",12734.352549813,"HV","OIL",1,0,null,null,"OIL"]
[1001435540,9,1,"T.S.ZN35600.TXF.T00002/0.TX",12734.352549813,"HV","OIL",1,0,null,null,"OIL"]
[1001440620,10,1,"T.S.ZN00229.TXF.T00001/0.TX",1220.1063697950599,"HV","OIL",3,0,null,null,"OIL"]
[1001440621,10,1,"T.S.ZN00229.TXF.T00002/0.TX",1220.1063697950599,"HV","OIL",1,0,null,null,"OIL"]
[1001465327,9,1,"T.S.TS07300.TXF.T00014/0.TX",19627.701203396238,"HV","OIL",1,0,null,null,"OIL"]
[1001472087,8,1,"T.S.ZN10995.TXF.T00003/0.TX",3877.7650077308667,"HV","OIL",2,0,null,null,"OIL"]
[1001472088,7,1,"T.S.ZN00342.TXF.T00002/0.TX",6532.9701660047331,"HV","OIL",1,0,null,null,"OIL"]
[1001472089,7,1,"T.S.ZN00342.TXF.T00004/0.TX",6532.9701660047331,"HV","OIL",1,0,null,null,"OIL"]
[1001472169,7,1,"T.S.ZN00530.TXF.T00001/0.TX",6326.7692134703202,"HV-single","OIL",1,0,null,null,"OIL"]
[1001472634,8,1,"T.S.TS07220.TXF.T00002/0.TX",17709.508796798535,"HV","OIL",2,0,null,null,"OIL"]
[1001472635,7,1,"T.S.ZN00265.TXF.T00001/0.TX",3390.4903184667301,"HV","OIL",1,0,null,null,"OIL"]
[1001472636,7,1,"T.S.ZN00265.TXF.T00002/0.TX",3390.4903184667301,"HV","OIL",1,0,null,null,"OIL"]
[1001472637,6,1,"T.S.ZN35900.TXF.T00001/0.TX",9646.9613995309501,"HV","OIL",1,0,null,null,"OIL"]
[1001472638,7,1,"T.S.ZN35500.TXF.T00003/0.TX",8743.2684167117004,"HV","OIL",1,0,null,null,"OIL"]
[1001472639,7,1,"T.S.ZN36300.TXF.T00002/0.TX",4560.3840783220339,"HV","OIL",3,0,null,null,"OIL"]
[1001472640,7,1,"T.S.ZN36300.TXF.T00003/0.TX",4560.3840783220339,"HV","OIL",1,0,null,null,"OIL"]
[1001473129,9,1,"T.S.TS09200.TXF.T00001/0.TX",10011.918622042009,"HV","OIL",1,0,null,null,"OIL"]
[1001474074,4,1,"T.S.ZN36100.TXF.T00002/0.TX",8283.9590461445496,"HV","OIL",1,0,null,null,"OIL"]
[1001474075,6,1,"T.S.ZN00261.TXF.T00002/0.TX",6356.8196244873998,"HV","OIL",1,0,null,null,"OIL"]
[1001474076,6,1,"T.S.ZN35900.TXF.T00002/0.TX",9646.9613995309501,"HV","OIL",1,0,null,null,"OIL"]
[1001476181,9,1,"T.S.ZN12690.TXF.T00012/0.TX",10361.349307822,"HV","OIL",1,0,null,null,"OIL"]
[1001477684,9,1,"T.S.ZN10999.TXF.T00001/0.TX",12666.800445298033,"HV","OIL",2,0,null,null,"OIL"]
[1001477685,9,1,"T.S.ZN10999.TXF.T00002/0.TX",12666.800445298033,"HV","OIL",2,0,null,null,"OIL"]
[1001477686,9,1,"T.S.ZN10999.TXF.T00003/0.TX",12666.800445298033,"HV","OIL",1,0,null,null,"OIL"]
[1001477798,8,1,"T.S.ZN35370.TXF.T00002/0.TX",2040.9922294401449,"HV","OIL",2,0,null,null,"OIL"]
[1001477799,8,1,"T.S.ZN35370.TXF.T00001/0.TX",2040.9922294401449,"HV","OIL",1,0,null,null,"OIL"]
[1001481507,8,1,"T.S.ZN03288.TXF.T00001/0.TX",14364.591366903251,"HV","SF6","N/A",0,null,null,"SF6"]
[1001481508,7,1,"T.S.ZN03288.TXF.T00002/0.TX",14364.591366903251,"HV","SF6","N/A",0,null,null,"SF6"]
[1001481509,6,1,"T.S.ZN03288.TXF.T00004/0.TX",14364.591366903251,"HV","SF6","N/A",0,null,null,"SF6"]
[1001481511,5,1,"T.S.ZN03288.TXF.T00003/0.TX",14364.591366903251,"HV","SF6","N/A",0,null,null,"SF6"]
[1001481559,7,1,"T.S.ZN14144.TXF.T00002/0.TX",2908.6821936577799,"HV","OIL",1,0,null,null,"OIL"]
[1001482403,9,1,"T.S.TS16600.TXF.T00003/0.TX",20854.448960514972,"HV","OIL",1,0,null,null,"OIL"]
[1001485864,9,1,"T.S.ZN00240.TXF.T00001/0.TX",5526.9435938894003,"HV","OIL",1,0,null,null,"OIL"]
[1001485865,9,1,"T.S.ZN00240.TXF.T00002/0.TX",5526.9435938894003,"HV","OIL",1,0,null,null,"OIL"]
[1001485866,8,1,"T.S.ZN00256.TXF.T00001/0.TX",5040.1573975575002,"HV","OIL",1,0,null,null,"OIL"]
[1001485867,8,1,"T.S.ZN00256.TXF.T00002/0.TX",5040.1573975575002,"HV","OIL",1,0,null,null,"OIL"]
[1001485868,8,1,"T.S.ZN00258.TXF.T00001/0.TX",8837.4903110996001,"HV","OIL",1,0,null,null,"OIL"]
[1001485869,8,1,"T.S.ZN00258.TXF.T00002/0.TX",8837.4903110996001,"HV","OIL",1,0,null,null,"OIL"]
[1001485870,9,1,"T.S.TS00417.TXF.T00003/0.TX",{"$error":"#N/A"},"HV","OIL",1,0,null,null,"OIL"]
[1001485871,9,1,"T.S.TS00417.TXF.T00001/0.TX",{"$error":"#N/A"},"HV","OIL",1,0,null,null,"OIL"]
[1001487639,9,1,"T.S.TS07140.TXF.T00003/0.TX",18479.30311848105,"HV","OIL",1,0,null,null,"OIL"]
[1001489786,7,1,"T.S.ZN08100.TXF.T00003/0.TX",9722.756606045501,"HV","OIL",1,0,null,null,"OIL"]
[1001489800,8,1,"T.S.ZN08700.TXF.T00005/0.TX",9073.1770453258196,"HV","OIL",1,0,null,null,"OIL"]
[1001489814,8,1,"T.S.ZN08700.TXF.T00002/0.TX",9073.1770453258196,"HV","OIL",2,0,null,null,"OIL"]
[1001489815,8,1,"T.S.ZN08700.TXF.T00001/0.TX",9073.1770453258196,"HV","OIL",1,0,null,null,"OIL"]
[1001489837,8,1,"T.S.ZN08700.TXF.T00003/0.TX",9073.1770453258196,"HV","OIL",1,0,null,null,"OIL"]
[1001489838,8,1,"T.S.ZN08700.TXF.T00004/0.TX",9073.1770453258196,"HV","OIL",1,0,null,null,"OIL"]
[1001495907,6,1,"T.S.ZN00814.TXF.T00001/0.TX",1144.9969822345649,"HV","OIL",2,0,null,null,"OIL"]
[1001495908,6,1,"T.S.ZN00814.TXF.T00002/0.TX",1144.9969822345649,"HV","OIL",1,0,null,null,"OIL"]
[1001499723,7,1,"T.S.ZN00242.TXF.T00001/0.TX",3236.478046588255,"HV","OIL",1,0,null,null,"OIL"]
[1001499724,7,1,"T.S.ZN00242.TXF.T00002/0.TX",3236.478046588255,"HV","OIL",1,0,null,null,"OIL"]
[1001503043,8,1,"T.S.ZN35700.TXF.T00003/0.TX",3897.3850379462001,"HV","OIL",1,0,null,null,"OIL"]
[1001503044,8,1,"T.S.ZN35700.TXF.T00001/0.TX",3897.3850379462001,"HV","OIL",1,0,null,null,"OIL"]
[1001503045,8,1,"T.S.ZN35700.TXF.T00002/0.TX",3897.3850379462001,"HV","OIL",1,0,null,null,"OIL"]
[1001503857,6,1,"T.S.ZN13000.TXF.T00001/0.TX",4160.3405547621151,"HV","OIL",1,0,null,null,"OIL"]
[1001503858,6,1,"T.S.ZN13000.TXF.T00002/0.TX",4160.3405547621151,"HV","OIL",3,0,null,null,"OIL"]
[1001503867,4,1,"T.S.ZN10993.TXF.T00011/0.TX",5379.0082004327996,"HV","OIL",1,0,null,null,"OIL"]
[1001503868,4,1,"T.S.ZN10993.TXF.T00012/0.TX",5379.0082004327996,"HV","OIL",1,0,null,null,"OIL"]
[1001503871,7,1,"T.S.ZN15001.TXF.T00002/0.TX",6114.4151861479331,"HV","OIL",1,0,null,null,"OIL"]
[1001503879,4,1,"T.S.TS07140.TXF.T00001/0.TX",18479.30311848105,"HV","OIL",1,0,null,null,"OIL"]
[1001505510,3,1,"T.S.ZN35400.TXF.T00013/0.TX",9966.4305021655327,"HV","OIL",2,0,null,null,"OIL"]
[1001505511,3,1,"T.S.ZN35400.TXF.T00012/0.TX",9966.4305021655327,"HV","OIL",2,0,null,null,"OIL"]
[1001505512,3,1,"T.S.ZN35400.TXF.T00011/0.TX",9966.4305021655327,"HV","OIL",2,0,null,null,"OIL"]
[1001505513,4,1,"T.S.ZN36100.TXF.T00001/0.TX",8283.9590461445496,"HV","OIL",1,0,null,null,"OIL"]
[1001505514,6,1,"T.S.ZN00261.TXF.T00001/0.TX",6356.8196244873998,"HV","OIL",2,0,null,null,"OIL"]
[1001505537,8,1,"T.S.ZN00511.TXF.T00001/0.TX",6261.6632808030499,"HV","OIL",1,0,null,null,"OIL"]
[1001505538,8,1,"T.S.ZN00511.TXF.T00002/0.TX",6261.6632808030499,"HV","OIL",1,0,null,null,"OIL"]
[1001509331,7,1,"T.S.ZN00263.TXF.T00004/0.TX",8497.6413623076241,"HV","OIL",1,0,null,null,"OIL"]
[1001509851,5,1,"T.S.ZN36200.TXF.T00001/0.TX",2285.8531236471299,"HV","OIL",1,0,null,null,"OIL"]
[1001509852,5,1,"T.S.ZN36200.TXF.T00002/0.TX",2285.8531236471299,"HV","OIL",1,0,null,null,"OIL"]
[1001511639,8,1,"T.S.ZN15005.TXF.T00002/0.TX",3485.410718387167,"HV","OIL",2,0,null,null,"OIL"]
[1001521524,6,1,"T.S.ZN09550.TXF.T00011/0.TX",4295.4266139541669,"HV","OIL",1,0,null,null,"OIL"]
[1001521525,7,1,"T.S.ZN00508.TXF.T00001/0.TX",1193.2175002850449,"HV","OIL",1,0,null,null,"OIL"]
[1001521526,7,1,"T.S.ZN00508.TXF.T00002/0.TX",1193.2175002850449,"HV","OIL",1,0,null,null,"OIL"]
[1001521527,3,1,"T.S.ZN09245.TXF.T00001/0.TX",5557.0715966406997,"HV","OIL",1,0,null,null,"OIL"]
[1001521528,3,1,"T.S.ZN09245.TXF.T00002/0.TX",5557.0715966406997,"HV","OIL",1,0,null,null,"OIL"]
[1001526010,7,1,"T.S.ZN15002.TXF.T00001/0.TX",2687.8499487062099,"HV","OIL",1,0,null,null,"OIL"]
[1001526011,6,1,"T.S.ZN00233.TXF.T00001/0.TX",1954.8796504611,"HV","OIL",1,0,null,null,"OIL"]
[1001526012,6,1,"T.S.ZN00233.TXF.T00002/0.TX",1954.8796504611,"HV","OIL",1,0,null,null,"OIL"]
[1001528056,6,1,"T.S.ZN00257.TXF.T00001/0.TX",5648.1955066400997,"HV","OIL",1,0,null,null,"OIL"]
[1001528057,6,1,"T.S.ZN00257.TXF.T00002/0.TX",5648.1955066400997,"HV","OIL",2,0,null,null,"OIL"]
[1001528058,6,1,"T.S.ZN00187.TXF.T00011/0.TX",10139.284539735399,"HV","OIL",1,0,null,null,"OIL"]
[1001528059,6,1,"T.S.ZN00187.TXF.T00012/0.TX",10139.284539735399,"HV","OIL",1,0,null,null,"OIL"]
[1001528099,8,1,"T.S.ZN35800.TXF.T00011/0.TX",10300.506396332101,"HV","OIL",1,0,null,null,"OIL"]
[1001528100,8,1,"T.S.ZN35800.TXF.T00012/0.TX",10300.506396332101,"HV","OIL",1,0,null,null,"OIL"]
[1001537307,8,1,"T.S.TS07170.TXF.T00003/0.TX",18744.833622971251,"HV","OIL",1,0,null,null,"OIL"]
[1001538184,8,1,"T.S.ZN00507.TXF.T00001/0.TX",5179.2492060735503,"HV","OIL",1,0,null,null,"OIL"]
[1001538185,8,1,"T.S.ZN00507.TXF.T00002/0.TX",5179.2492060735503,"HV","OIL",1,0,null,null,"OIL"]
[1001542444,8,1,"T.S.ZN35335.TXF.T00001/0.TX",3262.563078797165,"HV","OIL",1,0,null,null,"OIL"]
[1001542445,8,1,"T.S.ZN35335.TXF.T00002/0.TX",3262.563078797165,"HV","OIL",1,0,null,null,"OIL"]
[1001551112,1,1,"T.S.ZN35555.TXF.T00001/0.TX",7266.3000978420996,"HV","OIL",1,0,null,null,"OIL"]
[1001551113,1,1,"T.S.ZN35555.TXF.T00002/0.TX",7266.3000978420996,"HV","OIL",1,0,null,null,"OIL"]
[1001553102,1,1,"T.S.ZN00116.TXF.T00001/0.TX",3510.8213801948664,"HV","OIL",3,0,null,null,"OIL"]
[1001553103,0,1,"T.S.ZN00116.TXF.T00002/0.TX",3510.8213801948664,"HV","OIL",1,0,null,null,"OIL"]
[1001560042,3,1,"T.S.ZN09534.TXF.T00011/0.TX",1798.0469518489999,"HV","OIL",1,0,null,null,"OIL"]
[1001560043,3,1,"T.S.ZN09534.TXF.T00012/0.TX",1798.0469518489999,"HV","OIL",1,0,null,null,"OIL"]
[1001560044,3,1,"T.S.ZN10998.TXF.T00002/0.TX",3908.6981384417049,"HV","OIL",1,0,null,null,"OIL"]
[1001571355,3,1,"T.S.ZN05959.TXF.T00004/0.TX",{"$error":"#N/A"},"HV","OIL_FR3",1,0,null,null,"OIL_FR3"]
[1001571356,3,1,"T.S.ZN05959.TXF.T00002/0.TX",{"$error":"#N/A"},"HV","OIL_FR3",3,0,null,null,"OIL_FR3"]
[1001578289,7,1,"T.S.ZN12610.TXF.T00003/0.TX",5956.2805217206005,"HV","OIL",1,0,null,null,"OIL"]
[1001584020,5,1,"T.S.ZN00528.TXF.T00001/0.TX",3938.10868222813,"HV","OIL",1,0,null,null,"OIL"]
[1001585103,5,1,"T.S.ZN00528.TXF.T00002/0.TX",3938.10868222813,"HV","OIL",1,0,null,null,"OIL"]
[1001589233,7,1,"T.S.ZN12610.TXF.T00002/0.TX",5956.2805217206005,"HV","OIL",1,0,null,null,"OIL"]
[1001589234,7,1,"T.S.ZN12610.TXF.T00001/0.TX",5956.2805217206005,"HV","OIL",1,0,null,null,"OIL"]
[1001613550,8,1,"T.S.ZN00270.TXF.T00002/0.TX",4174.3842233148498,"HV","OIL",1,0,null,null,"OIL"]
[1001617236,7,1,"T.S.ZN36300.TXF.T00001/0.TX",4560.3840783220339,"HV","OIL",1,0,null,null,"OIL"]
[1001618746,7,1,"T.S.ZN00264.TXF.T00001/0.TX",4864.2981627226154,"HV","OIL",1,0,null,null,"OIL"]
[1001618747,7,1,"T.S.ZN00264.TXF.T00003/0.TX",4864.2981627226154,"HV","OIL",1,0,null,null,"OIL"]
[1001626218,1,1,"T.S.ZN10998.TXF.T00001/0.TX",3908.6981384417049,"HV","OIL",1,0,null,null,"OIL"]
[1001631721,4,1,"T.S.ZN36800.TXF.T00012/0.TX",6243.9908001126496,"HV","OIL",1,0,null,null,"OIL"]
[1001631725,4,1,"T.S.ZN36800.TXF.T00011/0.TX",6243.9908001126496,"HV","OIL",1,0,null,null,"OIL"]
[1001642113,5,1,"T.S.ZN00239.TXF.T00001/0.TX",2417.9717781198451,"HV","OIL",1,0,null,null,"OIL"]
[1001642114,5,1,"T.S.ZN00239.TXF.T00002/0.TX",2417.9717781198451,"HV","OIL",1,0,null,null,"OIL"]
[1001687771,6,1,"T.S.ZN00580.TXF.T00001/0.TX",{"$error":"#N/A"},"HV","OIL_FR3",1,0,null,null,"OIL_FR3"]
[1001853912,4,1,"T.S.ZN15014.TXF.T00003/0.TX",5013.648803058567,"HV","OIL",1,0,null,null,"OIL"]
[1001865682,1,1,"T.S.ZN36000.TXF.T00001/0.TX",1072.12868790621,"HV","OIL",1,0,null,null,"OIL"]
[1001865683,1,1,"T.S.ZN36000.TXF.T00002/0.TX",1072.12868790621,"HV","OIL",1,0,null,null,"OIL"]
[1001895048,3,1,"T.S.ZN09252.TXF.T00002/0.TX",3602.2828915092668,"HV","OIL",1,0,null,null,"OIL"]
[1003132771,1,1,"T.S.TS14406.TXF.T00001/0.TX",6302.4788863958047,"HV","OIL",1,0,null,null,"OIL"]
[1003132772,1,1,"T.S.TS14406.TXF.T00002/0.TX",6302.4788863958047,"HV","OIL",1,0,null,null,"OIL"]
[1003132875,1,1,"T.S.TS37000.TXF.T00001/0.TX",{"$error":"#N/A"},"HV","OIL",1,0,null,null,"OIL"]
[1003132876,1,1,"T.S.TS37000.TXF.T00003/0.TX",{"$error":"#N/A"},"HV","OIL",1,0,null,null,"OIL"]
[1000332689,47,1,"T.S.ZN02568.TXF.T00003/0.TX",9522.4053547612748,"HV","OIL",1,600,null,null,"OIL"]
[1000340355,59,1,"T.S.ZN10996.TXF.T00002/0.TX",{"$error":"#N/A"},"HV","OIL",2,0,null,null,"OIL"]
[1000349432,18,1,"T.S.ZN10996.TXF.T00003/0.TX",{"$error":"#N/A"},"HV","OIL",1,0,null,null,"OIL"]
[1000358329,14,1,"T.S.ZN10996.TXF.T00001/0.TX",{"$error":"#N/A"},"HV","OIL",1,0,null,null,"OIL"]
[1000374750,52,1,"T.S.ZN00203.TXF.T00001/0.TX",{"$error":"#N/A"},"HV","OIL",1,0,null,null,"OIL"]
[1000374782,52,1,"T.S.ZN00203.TXF.T00002/0.TX",{"$error":"#N/A"},"HV","OIL",3,0,null,null,"OIL"]
[1000400379,47,1,"T.S.ZN15008.TXF.T00001/0.TX",3709.0115294808402,"HV","OIL",4,0,null,null,"OIL"]
[1000400797,61,1,"T.S.TS07290.TXF.T00004/0.TX",8566.3777211888664,"HV","OIL",2,3700,null,null,"OIL"]
[1000407857,51,1,"T.S.ZN00512.TXF.T00002/0.TX",1932.0540241098599,"HV","OIL",1,1045,null,null,"OIL"]
[1000410265,66,1,"T.S.TS00413.TXF.T00003/0.TX",{"$error":"#N/A"},"HV","OIL",4,800,null,null,"OIL"]
[1000410753,55,1,"T.S.ZN00807.TXF.T0002A/0.TX",538.25717876837746,"HV","OIL",3,0,null,null,"OIL"]

{"sheet":"A. Age Profile","index":4,"n_rows":104,"n_cols":16,"rows_kept":104,"cut":false,"hidden":false,"merged":[[2,10,2,11],[2,13,2,15]]}
[null,null,"Asset Population Age Profile"]
[]
["Asset Age","Median Age\n(x)","Freq. of x\n(f)","Cumulative Freq. of x\n(F)","f.x",null,"E(f)","Asset Units",null,null,"Summary Statisitics",null,null,"Additional Information for Graph"]
[0,0.5,{"$f":"COUNTIF('A. Population Info'!$B:$B, 'A. Age Profile'!A4)","v":1},{"$f":"SUM($C$4:C4)","v":1},{"$f":"B4*C4","v":0.5},{"$f":"(B4-$L$6)^2*C4","v":697.31328419460431},{"$f":"_xlfn.NORM.DIST(B4,$L$6,$L$7,FALSE)*$L$4","v":4.6432897203956394},{"$f":"SUMIF('A. Population Info'!$B:$B, A4,'A. Population Info'!$C:$C)","v":1},null,null,"Population Bins (n)",{"$f":"SUM(C:C)","v":568}]
[1,1.5,{"$f":"COUNTIF('A. Population Info'!$B:$B, 'A. Age Profile'!A5)","v":10},{"$f":"SUM($C$4:C5)","v":11},{"$f":"B5*C5","v":15},6454.9990391291421,{"$f":"_xlfn.NORM.DIST(B5,$L$6,$L$7,FALSE)*$L$4","v":4.9710156927887788},{"$f":"SUMIF('A. Population Info'!$B:$B, A5,'A. Population Info'!$C:$C)","v":10},null,null,"No. of Asset Units",{"$f":"SUM(H:H)","v":568}]
[2,2.5,{"$f":"COUNTIF('A. Population Info'!$B:$B, 'A. Age Profile'!A6)","v":1},{"$f":"SUM($C$4:C6)","v":12},{"$f":"B6*C6","v":2.5},595.68652363122408,5.3078809894318262,{"$f":"SUMIF('A. Population Info'!$B:$B, A6,'A. Population Info'!$C:$C)","v":1},null,null,"Mean Age",{"$f":"SUM(E:E)/SUM(C:C)","v":26.906690140845072},null,"Mean Marker",{"$f":"MATCH(L6,$A$4:$A$104,1)","v":27},{"$f":"P8","v":27}]
[3,3.5,{"$f":"COUNTIF('A. Population Info'!$B:$B, 'A. Age Profile'!A7)","v":12},{"$f":"SUM($C$4:C7)","v":24},42,6574.4777201944062,5.6526736197909235,{"$f":"SUMIF('A. Population Info'!$B:$B, A7,'A. Population Info'!$C:$C)","v":12},null,null,"Standard Deviation",{"$f":"(SUM(F:F)/SUM(C:C))^0.5","v":19.48993305409957}]
[4,4.5,{"$f":"COUNTIF('A. Population Info'!$B:$B, 'A. Age Profile'!A8)","v":8},{"$f":"SUM($C$4:C8)","v":32},36,4016.4781045427499,6.004036656412489,{"$f":"SUMIF('A. Population Info'!$B:$B, A8,'A. Population Info'!$C:$C)","v":8},null,null,"Median Age",{"$f":"L13+(((L4/2)-L10)/L11)*L12","v":15.947368421052632},null,"Median Marker",{"$f":"MATCH(L8,$A$4:$A$104,1)","v":16},{"$f":"INDEX($C$4:$C$104,O8)+8","v":27}]
[5,5.5,{"$f":"COUNTIF('A. Population Info'!$B:$B, 'A. Age Profile'!A9)","v":7},{"$f":"SUM($C$4:C9)","v":39},38.5,3207.7246795030751,6.3604735470857214,{"$f":"SUMIF('A. Population Info'!$B:$B, A9,'A. Population Info'!$C:$C)","v":7},null,null,"Mode Age",{"$f":"MATCH(MAX(C4:C104),C4:C104,0)","v":12}]
[6,6.5,{"$f":"COUNTIF('A. Population Info'!$B:$B, 'A. Age Profile'!A10)","v":17},{"$f":"SUM($C$4:C10)","v":56},110.5,7079.3610425758789,6.7203556552844121,{"$f":"SUMIF('A. Population Info'!$B:$B, A10,'A. Population Info'!$C:$C)","v":17},null,null,"F",{"$f":"INDEX(D4:D104,MATCH(L4/2,$D$4:$D$104,1))","v":266}]
[7,7.5,{"$f":"COUNTIF('A. Population Info'!$B:$B, 'A. Age Profile'!A11)","v":25},{"$f":"SUM($C$4:C11)","v":81},187.5,9415.4905555693331,7.0819320447928868,{"$f":"SUMIF('A. Population Info'!$B:$B, A11,'A. Population Info'!$C:$C)","v":25},null,null,"fm",{"$f":"INDEX(C4:C104,MATCH(L4/2,$D$4:$D$104,1)+1)","v":19}]
[8,8.5,{"$f":"COUNTIF('A. Population Info'!$B:$B, 'A. Age Profile'!A12)","v":29},{"$f":"SUM($C$4:C12)","v":110},246.5,9825.3810162914124,7.4433414829276394,{"$f":"SUMIF('A. Population Info'!$B:$B, A12,'A. Population Info'!$C:$C)","v":29},null,null,"i",{"$f":"B6-B5","v":1}]
[9,9.5,{"$f":"COUNTIF('A. Population Info'!$B:$B, 'A. Age Profile'!A13)","v":20},{"$f":"SUM($C$4:C13)","v":130},190,6059.8572331878604,7.8026265933669201,{"$f":"SUMIF('A. Population Info'!$B:$B, A13,'A. Population Info'!$C:$C)","v":20},null,null,"Lm",{"$f":"INDEX(B4:B104,MATCH(L4/2,$D$4:$D$104,1))+L12/2","v":15}]
[10,10.5,{"$f":"COUNTIF('A. Population Info'!$B:$B, 'A. Age Profile'!A14)","v":27},{"$f":"SUM($C$4:C14)","v":157},283.5,7267.8459971979773,8.1577500452379681,{"$f":"SUMIF('A. Population Info'!$B:$B, A14,'A. Population Info'!$C:$C)","v":27}]
[11,11.5,{"$f":"COUNTIF('A. Population Info'!$B:$B, 'A. Age Profile'!A15)","v":36},{"$f":"SUM($C$4:C15)","v":193},414,8545.179639456459,8.5066126208082551,{"$f":"SUMIF('A. Population Info'!$B:$B, A15,'A. Population Info'!$C:$C)","v":36}]
[12,12.5,{"$f":"COUNTIF('A. Population Info'!$B:$B, 'A. Age Profile'!A16)","v":23},{"$f":"SUM($C$4:C16)","v":216},287.5,4773.712578729419,8.847072960958247,{"$f":"SUMIF('A. Population Info'!$B:$B, A16,'A. Population Info'!$C:$C)","v":23}]
[13,13.5,{"$f":"COUNTIF('A. Population Info'!$B:$B, 'A. Age Profile'!A17)","v":27},{"$f":"SUM($C$4:C17)","v":243},364.5,4852.9621943810762,9.1769687466789112,{"$f":"SUMIF('A. Population Info'!$B:$B, A17,'A. Population Info'!$C:$C)","v":27}]
[14,14.5,{"$f":"COUNTIF('A. Population Info'!$B:$B, 'A. Age Profile'!A18)","v":23},{"$f":"SUM($C$4:C18)","v":266},333.5,3540.2970857716728,9.49413903723004,{"$f":"SUMIF('A. Population Info'!$B:$B, A18,'A. Population Info'!$C:$C)","v":23}]
[15,15.5,{"$f":"COUNTIF('A. Population Info'!$B:$B, 'A. Age Profile'!A19)","v":19},{"$f":"SUM($C$4:C19)","v":285},294.5,2472.1390194157907,9.7964474523689766,{"$f":"SUMIF('A. Population Info'!$B:$B, A19,'A. Population Info'!$C:$C)","v":19}]
[16,16.5,{"$f":"COUNTIF('A. Population Info'!$B:$B, 'A. Age Profile'!A20)","v":10},{"$f":"SUM($C$4:C20)","v":295},165,1082.9919968756203,10.081805858194254,{"$f":"SUMIF('A. Population Info'!$B:$B, A20,'A. Population Info'!$C:$C)","v":10}]
[17,17.5,{"$f":"COUNTIF('A. Population Info'!$B:$B, 'A. Age Profile'!A21)","v":7},{"$f":"SUM($C$4:C21)","v":302},122.5,619.40073584110314,10.348198194522132,{"$f":"SUMIF('A. Population Info'!$B:$B, A21,'A. Population Info'!$C:$C)","v":7}]
[18,18.5,{"$f":"COUNTIF('A. Population Info'!$B:$B, 'A. Age Profile'!A22)","v":8},{"$f":"SUM($C$4:C22)","v":310},148,565.37951299345389,10.593704067068971,{"$f":"SUMIF('A. Population Info'!$B:$B, A22,'A. Population Info'!$C:$C)","v":8}]
[19,19.5,{"$f":"COUNTIF('A. Population Info'!$B:$B, 'A. Age Profile'!A23)","v":5},{"$f":"SUM($C$4:C23)","v":315},97.5,274.29529421245797,10.816521720631332,{"$f":"SUMIF('A. Population Info'!$B:$B, A23,'A. Population Info'!$C:$C)","v":5}]
[20,20.5,{"$f":"COUNTIF('A. Population Info'!$B:$B, 'A. Age Profile'!A24)","v":2},{"$f":"SUM($C$4:C24)","v":317},41,82.091357121602897,11.014990010338405,{"$f":"SUMIF('A. Population Info'!$B:$B, A24,'A. Population Info'!$C:$C)","v":2}]
[21,21.5,{"$f":"COUNTIF('A. Population Info'!$B:$B, 'A. Age Profile'!A25)","v":3},{"$f":"SUM($C$4:C25)","v":320},64.5,87.6968948373339,11.187608997097579,{"$f":"SUMIF('A. Population Info'!$B:$B, A25,'A. Population Info'!$C:$C)","v":3}]
[22,22.5,{"$f":"COUNTIF('A. Population Info'!$B:$B, 'A. Age Profile'!A26)","v":0},{"$f":"SUM($C$4:C26)","v":320},0,0,11.333058810551629,{"$f":"SUMIF('A. Population Info'!$B:$B, A26,'A. Population Info'!$C:$C)","v":0}]
[23,23.5,{"$f":"COUNTIF('A. Population Info'!$B:$B, 'A. Age Profile'!A27)","v":0},{"$f":"SUM($C$4:C27)","v":320},0,0,11.450216447987119,{"$f":"SUMIF('A. Population Info'!$B:$B, A27,'A. Population Info'!$C:$C)","v":0}]
[24,24.5,{"$f":"COUNTIF('A. Population Info'!$B:$B, 'A. Age Profile'!A28)","v":4},{"$f":"SUM($C$4:C28)","v":324},98,23.168629736163485,11.538170210235119,{"$f":"SUMIF('A. Population Info'!$B:$B, A28,'A. Population Info'!$C:$C)","v":4}]
[25,25.5,{"$f":"COUNTIF('A. Population Info'!$B:$B, 'A. Age Profile'!A29)","v":3},{"$f":"SUM($C$4:C29)","v":327},76.5,5.9363314570521837,11.596231515038749,{"$f":"SUMIF('A. Population Info'!$B:$B, A29,'A. Population Info'!$C:$C)","v":3}]
[26,26.5,{"$f":"COUNTIF('A. Population Info'!$B:$B, 'A. Age Profile'!A30)","v":3},{"$f":"SUM($C$4:C30)","v":330},79.5,0.49619061198175307,11.623943873787789,{"$f":"SUMIF('A. Population Info'!$B:$B, A30,'A. Population Info'!$C:$C)","v":3}]
[27,27.5,{"$f":"COUNTIF('A. Population Info'!$B:$B, 'A. Age Profile'!A31)","v":2},{"$f":"SUM($C$4:C31)","v":332},55,0.70403317794088138,11.621088867930609,{"$f":"SUMIF('A. Population Info'!$B:$B, A31,'A. Population Info'!$C:$C)","v":2}]
[28,28.5,{"$f":"COUNTIF('A. Population Info'!$B:$B, 'A. Age Profile'!A32)","v":1},{"$f":"SUM($C$4:C32)","v":333},28.5,2.5386363072802971,11.587689015617881,{"$f":"SUMIF('A. Population Info'!$B:$B, A32,'A. Population Info'!$C:$C)","v":1}]
[29,29.5,{"$f":"COUNTIF('A. Population Info'!$B:$B, 'A. Age Profile'!A33)","v":1},{"$f":"SUM($C$4:C33)","v":334},29.5,6.725256025590153,11.524007475951432,{"$f":"SUMIF('A. Population Info'!$B:$B, A33,'A. Population Info'!$C:$C)","v":1}]
[30,30.5,{"$f":"COUNTIF('A. Population Info'!$B:$B, 'A. Age Profile'!A34)","v":1},{"$f":"SUM($C$4:C34)","v":335},30.5,12.91187574390001,11.43054459627162,{"$f":"SUMIF('A. Population Info'!$B:$B, A34,'A. Population Info'!$C:$C)","v":1}]
[31,31.5,{"$f":"COUNTIF('A. Population Info'!$B:$B, 'A. Age Profile'!A35)","v":2},{"$f":"SUM($C$4:C35)","v":337},63,42.19699092441973,11.30803136584831,{"$f":"SUMIF('A. Population Info'!$B:$B, A35,'A. Population Info'!$C:$C)","v":2}]
[32,32.5,{"$f":"COUNTIF('A. Population Info'!$B:$B, 'A. Age Profile'!A36)","v":2},{"$f":"SUM($C$4:C36)","v":339},65,{"$f":"(B36-$L$6)^2*C36","v":62.570230361039442},11.157419895778462,{"$f":"SUMIF('A. Population Info'!$B:$B, A36,'A. Population Info'!$C:$C)","v":2}]
[33,33.5,{"$f":"COUNTIF('A. Population Info'!$B:$B, 'A. Age Profile'!A37)","v":0},{"$f":"SUM($C$4:C37)","v":339},0,0,10.979871098514844,{"$f":"SUMIF('A. Population Info'!$B:$B, A37,'A. Population Info'!$C:$C)","v":0}]
[34,34.5,{"$f":"COUNTIF('A. Population Info'!$B:$B, 'A. Age Profile'!A38)","v":6},{"$f":"SUM($C$4:C38)","v":345},207,345.95012770283665,10.776739790013584,{"$f":"SUMIF('A. Population Info'!$B:$B, A38,'A. Population Info'!$C:$C)","v":6}]
[35,35.5,{"$f":"COUNTIF('A. Population Info'!$B:$B, 'A. Age Profile'!A39)","v":7},{"$f":"SUM($C$4:C39)","v":352},248.5,516.9148203481451,10.549557481867572,{"$f":"SUMIF('A. Population Info'!$B:$B, A39,'A. Population Info'!$C:$C)","v":7}]
[36,36.5,{"$f":"COUNTIF('A. Population Info'!$B:$B, 'A. Age Profile'!A40)","v":4},{"$f":"SUM($C$4:C40)","v":356},146,368.1263762150366,10.300013169009382,{"$f":"SUMIF('A. Population Info'!$B:$B, A40,'A. Population Info'!$C:$C)","v":4}]
[37,37.5,{"$f":"COUNTIF('A. Population Info'!$B:$B, 'A. Age Profile'!A41)","v":6},{"$f":"SUM($C$4:C41)","v":362},225,673.30928263241401,10.029932449816075,{"$f":"SUMIF('A. Population Info'!$B:$B, A41,'A. Population Info'!$C:$C)","v":6}]
[38,38.5,{"$f":"COUNTIF('A. Population Info'!$B:$B, 'A. Age Profile'!A42)","v":5},{"$f":"SUM($C$4:C42)","v":367},192.5,672.0241674518943,9.7412553391180641,{"$f":"SUMIF('A. Population Info'!$B:$B, A42,'A. Population Info'!$C:$C)","v":5}]
[39,39.5,{"$f":"COUNTIF('A. Population Info'!$B:$B, 'A. Age Profile'!A43)","v":5},{"$f":"SUM($C$4:C43)","v":372},197.5,792.9572660434435,9.4360131503013367,{"$f":"SUMIF('A. Population Info'!$B:$B, A43,'A. Population Info'!$C:$C)","v":5}]
[40,40.5,{"$f":"COUNTIF('A. Population Info'!$B:$B, 'A. Age Profile'!A44)","v":9},{"$f":"SUM($C$4:C44)","v":381},364.5,1663.0026563429869,9.1163048302095859,{"$f":"SUMIF('A. Population Info'!$B:$B, A44,'A. Population Info'!$C:$C)","v":9}]
[41,41.5,{"$f":"COUNTIF('A. Population Info'!$B:$B, 'A. Age Profile'!A45)","v":5},{"$f":"SUM($C$4:C45)","v":386},207.5,1064.8234632265421,8.7842731299279535,{"$f":"SUMIF('A. Population Info'!$B:$B, A45,'A. Population Info'!$C:$C)","v":5}]
[42,42.5,{"$f":"COUNTIF('A. Population Info'!$B:$B, 'A. Age Profile'!A46)","v":6},{"$f":"SUM($C$4:C46)","v":392},255,1458.9078741817098,8.4420809860013701,{"$f":"SUMIF('A. Population Info'!$B:$B, A46,'A. Population Info'!$C:$C)","v":6}]
[43,43.5,{"$f":"COUNTIF('A. Population Info'!$B:$B, 'A. Age Profile'!A47)","v":5},{"$f":"SUM($C$4:C47)","v":397},217.5,1376.6896604096407,8.0918884706431644,{"$f":"SUMIF('A. Population Info'!$B:$B, A47,'A. Population Info'!$C:$C)","v":5}]
[44,44.5,{"$f":"COUNTIF('A. Population Info'!$B:$B, 'A. Age Profile'!A48)","v":7},{"$f":"SUM($C$4:C48)","v":404},311.5,2166.6718626016659,7.7358306466380338,{"$f":"SUMIF('A. Population Info'!$B:$B, A48,'A. Population Info'!$C:$C)","v":7}]
[45,45.5,{"$f":"COUNTIF('A. Population Info'!$B:$B, 'A. Age Profile'!A49)","v":8},{"$f":"SUM($C$4:C49)","v":412},364,2765.689372148383,7.3759966337078255,{"$f":"SUMIF('A. Population Info'!$B:$B, A49,'A. Population Info'!$C:$C)","v":8}]
[46,46.5,{"$f":"COUNTIF('A. Population Info'!$B:$B, 'A. Age Profile'!A50)","v":10},{"$f":"SUM($C$4:C50)","v":422},465,3838.9779123685771,7.0144101589874142,{"$f":"SUMIF('A. Population Info'!$B:$B, A50,'A. Population Info'!$C:$C)","v":10}]
[47,47.5,{"$f":"COUNTIF('A. Population Info'!$B:$B, 'A. Age Profile'!A51)","v":16},{"$f":"SUM($C$4:C51)","v":438},760,6785.3505752826813,6.6530118259484032,{"$f":"SUMIF('A. Population Info'!$B:$B, A51,'A. Population Info'!$C:$C)","v":16}]
[48,48.5,{"$f":"COUNTIF('A. Population Info'!$B:$B, 'A. Age Profile'!A52)","v":8},{"$f":"SUM($C$4:C52)","v":446},388,3730.1682453878193,6.2936432946734326,{"$f":"SUMIF('A. Population Info'!$B:$B, A52,'A. Population Info'!$C:$C)","v":8}]
[49,49.5,{"$f":"COUNTIF('A. Population Info'!$B:$B, 'A. Age Profile'!A53)","v":11},{"$f":"SUM($C$4:C53)","v":457},544.5,5615.0341543096602,5.938033522920156,{"$f":"SUMIF('A. Population Info'!$B:$B, A53,'A. Population Info'!$C:$C)","v":11}]
[50,50.5,{"$f":"COUNTIF('A. Population Info'!$B:$B, 'A. Age Profile'!A54)","v":12},{"$f":"SUM($C$4:C54)","v":469},606,6679.7312413211657,5.5877871730192341,{"$f":"SUMIF('A. Population Info'!$B:$B, A54,'A. Population Info'!$C:$C)","v":12}]
[51,51.5,{"$f":"COUNTIF('A. Population Info'!$B:$B, 'A. Age Profile'!A55)","v":10},{"$f":"SUM($C$4:C55)","v":479},515,6048.3088982840691,5.2443752453922032,{"$f":"SUMIF('A. Population Info'!$B:$B, A55,'A. Population Info'!$C:$C)","v":10}]
[52,52.5,{"$f":"COUNTIF('A. Population Info'!$B:$B, 'A. Age Profile'!A56)","v":9},{"$f":"SUM($C$4:C56)","v":488},472.5,5895.1575859204513,4.9091279563628243,{"$f":"SUMIF('A. Population Info'!$B:$B, A56,'A. Population Info'!$C:$C)","v":9}]
[53,53.5,{"$f":"COUNTIF('A. Population Info'!$B:$B, 'A. Age Profile'!A57)","v":6},{"$f":"SUM($C$4:C57)","v":494},321,4243.2247755901608,4.5832298368945059,{"$f":"SUMIF('A. Population Info'!$B:$B, A57,'A. Population Info'!$C:$C)","v":6}]
[54,54.5,{"$f":"COUNTIF('A. Population Info'!$B:$B, 'A. Age Profile'!A58)","v":17},{"$f":"SUM($C$4:C58)","v":511},926.5,12943.642732716722,4.2677169907378785,{"$f":"SUMIF('A. Population Info'!$B:$B, A58,'A. Population Info'!$C:$C)","v":17}]
[55,55.5,{"$f":"COUNTIF('A. Population Info'!$B:$B, 'A. Age Profile'!A59)","v":15},{"$f":"SUM($C$4:C59)","v":526},832.5,12263.660530524696,3.9634764159153888,{"$f":"SUMIF('A. Population Info'!$B:$B, A59,'A. Population Info'!$C:$C)","v":15}]
[56,56.5,{"$f":"COUNTIF('A. Population Info'!$B:$B, 'A. Age Profile'!A60)","v":14},{"$f":"SUM($C$4:C60)","v":540},791,12260.695837879388,3.6712472630685022,{"$f":"SUMIF('A. Population Info'!$B:$B, A60,'A. Population Info'!$C:$C)","v":14}]
[57,57.5,{"$f":"COUNTIF('A. Population Info'!$B:$B, 'A. Age Profile'!A61)","v":3},{"$f":"SUM($C$4:C61)","v":543},172.5,2807.8518244147986,3.3916238783716608,{"$f":"SUMIF('A. Population Info'!$B:$B, A61,'A. Population Info'!$C:$C)","v":3}]
[58,58.5,{"$f":"COUNTIF('A. Population Info'!$B:$B, 'A. Age Profile'!A62)","v":10},{"$f":"SUM($C$4:C62)","v":553},585,9981.372278565761,3.1250604577544174,{"$f":"SUMIF('A. Population Info'!$B:$B, A62,'A. Population Info'!$C:$C)","v":10}]
[59,59.5,{"$f":"COUNTIF('A. Population Info'!$B:$B, 'A. Age Profile'!A63)","v":2},{"$f":"SUM($C$4:C63)","v":555},119,2124.6476951497716,2.8718771232068763,{"$f":"SUMIF('A. Population Info'!$B:$B, A63,'A. Population Info'!$C:$C)","v":2}]
[60,60.5,{"$f":"COUNTIF('A. Population Info'!$B:$B, 'A. Age Profile'!A64)","v":1},{"$f":"SUM($C$4:C64)","v":556},60.5,1128.5104672931957,2.632267220974831,{"$f":"SUMIF('A. Population Info'!$B:$B, A64,'A. Population Info'!$C:$C)","v":1}]
[61,61.5,{"$f":"COUNTIF('A. Population Info'!$B:$B, 'A. Age Profile'!A65)","v":4},{"$f":"SUM($C$4:C65)","v":560},246,4786.7883480460223,2.4063056353549501,{"$f":"SUMIF('A. Population Info'!$B:$B, A65,'A. Population Info'!$C:$C)","v":4}]
[62,62.5,{"$f":"COUNTIF('A. Population Info'!$B:$B, 'A. Age Profile'!A66)","v":0},{"$f":"SUM($C$4:C66)","v":560},0,0,2.1939579103389604,{"$f":"SUMIF('A. Population Info'!$B:$B, A66,'A. Population Info'!$C:$C)","v":0}]
[63,63.5,{"$f":"COUNTIF('A. Population Info'!$B:$B, 'A. Age Profile'!A67)","v":0},{"$f":"SUM($C$4:C67)","v":560},0,0,1.9950899741929233,{"$f":"SUMIF('A. Population Info'!$B:$B, A67,'A. Population Info'!$C:$C)","v":0}]
[64,64.5,{"$f":"COUNTIF('A. Population Info'!$B:$B, 'A. Age Profile'!A68)","v":3},{"$f":"SUM($C$4:C68)","v":563},193.5,{"$f":"(B68-$L$6)^2*C68","v":4239.7708384993057},1.8094782687763251,{"$f":"SUMIF('A. Population Info'!$B:$B, A68,'A. Population Info'!$C:$C)","v":3}]
[65,65.5,{"$f":"COUNTIF('A. Population Info'!$B:$B, 'A. Age Profile'!A69)","v":2},{"$f":"SUM($C$4:C69)","v":565},131,2978.8871317694898,{"$f":"_xlfn.NORM.DIST(B69,$L$6,$L$7,FALSE)*$L$4","v":1.6368200955263947},{"$f":"SUMIF('A. Population Info'!$B:$B, A69,'A. Population Info'!$C:$C)","v":2}]
[66,66.5,{"$f":"COUNTIF('A. Population Info'!$B:$B, 'A. Age Profile'!A70)","v":1},{"$f":"SUM($C$4:C70)","v":566},{"$f":"B70*C70","v":66.5},1567.6301856030548,1.4767440030317562,{"$f":"SUMIF('A. Population Info'!$B:$B, A70,'A. Population Info'!$C:$C)","v":1}]
[67,67.5,{"$f":"COUNTIF('A. Population Info'!$B:$B, 'A. Age Profile'!A71)","v":1},{"$f":"SUM($C$4:C71)","v":567},67.5,1647.8168053213647,1.3288200564466361,{"$f":"SUMIF('A. Population Info'!$B:$B, A71,'A. Population Info'!$C:$C)","v":1}]
[68,68.5,{"$f":"COUNTIF('A. Population Info'!$B:$B, 'A. Age Profile'!A72)","v":0},{"$f":"SUM($C$4:C72)","v":567},0,0,1.1925698460940799,{"$f":"SUMIF('A. Population Info'!$B:$B, A72,'A. Population Info'!$C:$C)","v":0}]
[69,69.5,{"$f":"COUNTIF('A. Population Info'!$B:$B, 'A. Age Profile'!A73)","v":0},{"$f":"SUM($C$4:C73)","v":567},0,0,1.0674761109233932,{"$f":"SUMIF('A. Population Info'!$B:$B, A73,'A. Population Info'!$C:$C)","v":0}]
[70,70.5,{"$f":"COUNTIF('A. Population Info'!$B:$B, 'A. Age Profile'!A74)","v":0},{"$f":"SUM($C$4:C74)","v":567},0,0,0.95299187149470987,{"$f":"SUMIF('A. Population Info'!$B:$B, A74,'A. Population Info'!$C:$C)","v":0}]
[71,71.5,{"$f":"COUNTIF('A. Population Info'!$B:$B, 'A. Age Profile'!A75)","v":0},{"$f":"SUM($C$4:C75)","v":567},0,0,0.84854898636804488,{"$f":"SUMIF('A. Population Info'!$B:$B, A75,'A. Population Info'!$C:$C)","v":0}]
[72,72.5,{"$f":"COUNTIF('A. Population Info'!$B:$B, 'A. Age Profile'!A76)","v":1},{"$f":"SUM($C$4:C76)","v":568},72.5,2078.7499039129139,0.75356606472566712,{"$f":"SUMIF('A. Population Info'!$B:$B, A76,'A. Population Info'!$C:$C)","v":1}]
[73,73.5,{"$f":"COUNTIF('A. Population Info'!$B:$B, 'A. Age Profile'!A77)","v":0},{"$f":"SUM($C$4:C77)","v":568},0,0,0.66745568635773012,{"$f":"SUMIF('A. Population Info'!$B:$B, A77,'A. Population Info'!$C:$C)","v":0}]
[74,74.5,{"$f":"COUNTIF('A. Population Info'!$B:$B, 'A. Age Profile'!A78)","v":0},{"$f":"SUM($C$4:C78)","v":568},0,0,0.58963089745220076,{"$f":"SUMIF('A. Population Info'!$B:$B, A78,'A. Population Info'!$C:$C)","v":0}]
[75,75.5,{"$f":"COUNTIF('A. Population Info'!$B:$B, 'A. Age Profile'!A79)","v":0},{"$f":"SUM($C$4:C79)","v":568},0,0,0.51951096667240282,{"$f":"SUMIF('A. Population Info'!$B:$B, A79,'A. Population Info'!$C:$C)","v":0}]
[76,76.5,{"$f":"COUNTIF('A. Population Info'!$B:$B, 'A. Age Profile'!A80)","v":0},{"$f":"SUM($C$4:C80)","v":568},0,0,0.45652640056203159,{"$f":"SUMIF('A. Population Info'!$B:$B, A80,'A. Population Info'!$C:$C)","v":0}]
[77,77.5,{"$f":"COUNTIF('A. Population Info'!$B:$B, 'A. Age Profile'!A81)","v":0},{"$f":"SUM($C$4:C81)","v":568},0,0,0.40012323023240937,{"$f":"SUMIF('A. Population Info'!$B:$B, A81,'A. Population Info'!$C:$C)","v":0}]
[78,78.5,{"$f":"COUNTIF('A. Population Info'!$B:$B, 'A. Age Profile'!A82)","v":0},{"$f":"SUM($C$4:C82)","v":568},0,0,0.34976659246230379,{"$f":"SUMIF('A. Population Info'!$B:$B, A82,'A. Population Info'!$C:$C)","v":0}]
[79,79.5,{"$f":"COUNTIF('A. Population Info'!$B:$B, 'A. Age Profile'!A83)","v":0},{"$f":"SUM($C$4:C83)","v":568},0,0,0.30494363773347249,{"$f":"SUMIF('A. Population Info'!$B:$B, A83,'A. Population Info'!$C:$C)","v":0}]
[80,80.5,{"$f":"COUNTIF('A. Population Info'!$B:$B, 'A. Age Profile'!A84)","v":0},{"$f":"SUM($C$4:C84)","v":568},0,0,0.26516580534078693,{"$f":"SUMIF('A. Population Info'!$B:$B, A84,'A. Population Info'!$C:$C)","v":0}]
[81,81.5,{"$f":"COUNTIF('A. Population Info'!$B:$B, 'A. Age Profile'!A85)","v":0},{"$f":"SUM($C$4:C85)","v":568},0,0,0.22997051160301879,{"$f":"SUMIF('A. Population Info'!$B:$B, A85,'A. Population Info'!$C:$C)","v":0}]
[82,82.5,{"$f":"COUNTIF('A. Population Info'!$B:$B, 'A. Age Profile'!A86)","v":0},{"$f":"SUM($C$4:C86)","v":568},0,0,0.19892230144418091,{"$f":"SUMIF('A. Population Info'!$B:$B, A86,'A. Population Info'!$C:$C)","v":0}]
[83,83.5,{"$f":"COUNTIF('A. Population Info'!$B:$B, 'A. Age Profile'!A87)","v":0},{"$f":"SUM($C$4:C87)","v":568},0,0,0.17161351633038671,{"$f":"SUMIF('A. Population Info'!$B:$B, A87,'A. Population Info'!$C:$C)","v":0}]
[84,84.5,{"$f":"COUNTIF('A. Population Info'!$B:$B, 'A. Age Profile'!A88)","v":0},{"$f":"SUM($C$4:C88)","v":568},0,0,0.14766453287103795,{"$f":"SUMIF('A. Population Info'!$B:$B, A88,'A. Population Info'!$C:$C)","v":0}]
[85,85.5,{"$f":"COUNTIF('A. Population Info'!$B:$B, 'A. Age Profile'!A89)","v":0},{"$f":"SUM($C$4:C89)","v":568},0,0,0.12672362647932239,{"$f":"SUMIF('A. Population Info'!$B:$B, A89,'A. Population Info'!$C:$C)","v":0}]
[86,86.5,{"$f":"COUNTIF('A. Population Info'!$B:$B, 'A. Age Profile'!A90)","v":0},{"$f":"SUM($C$4:C90)","v":568},0,0,0.10846651349900384,{"$f":"SUMIF('A. Population Info'!$B:$B, A90,'A. Population Info'!$C:$C)","v":0}]
[87,87.5,{"$f":"COUNTIF('A. Population Info'!$B:$B, 'A. Age Profile'!A91)","v":0},{"$f":"SUM($C$4:C91)","v":568},0,0,9.259562330999796E-2,{"$f":"SUMIF('A. Population Info'!$B:$B, A91,'A. Population Info'!$C:$C)","v":0}]
[88,88.5,{"$f":"COUNTIF('A. Population Info'!$B:$B, 'A. Age Profile'!A92)","v":0},{"$f":"SUM($C$4:C92)","v":568},0,0,7.8839149291007202E-2,{"$f":"SUMIF('A. Population Info'!$B:$B, A92,'A. Population Info'!$C:$C)","v":0}]
[89,89.5,{"$f":"COUNTIF('A. Population Info'!$B:$B, 'A. Age Profile'!A93)","v":0},{"$f":"SUM($C$4:C93)","v":568},0,0,6.694992430511118E-2,{"$f":"SUMIF('A. Population Info'!$B:$B, A93,'A. Population Info'!$C:$C)","v":0}]
[90,90.5,{"$f":"COUNTIF('A. Population Info'!$B:$B, 'A. Age Profile'!A94)","v":0},{"$f":"SUM($C$4:C94)","v":568},{"$f":"B94*C94","v":0},0,5.6704162736403767E-2,{"$f":"SUMIF('A. Population Info'!$B:$B, A94,'A. Population Info'!$C:$C)","v":0}]
[91,91.5,{"$f":"COUNTIF('A. Population Info'!$B:$B, 'A. Age Profile'!A95)","v":0},{"$f":"SUM($C$4:C95)","v":568},{"$f":"B95*C95","v":0},0,4.790010718365903E-2,{"$f":"SUMIF('A. Population Info'!$B:$B, A95,'A. Population Info'!$C:$C)","v":0}]
[92,92.5,{"$f":"COUNTIF('A. Population Info'!$B:$B, 'A. Age Profile'!A96)","v":0},{"$f":"SUM($C$4:C96)","v":568},0,0,4.0356613837971997E-2,{"$f":"SUMIF('A. Population Info'!$B:$B, A96,'A. Population Info'!$C:$C)","v":0}]
[93,93.5,{"$f":"COUNTIF('A. Population Info'!$B:$B, 'A. Age Profile'!A97)","v":0},{"$f":"SUM($C$4:C97)","v":568},0,0,3.391170644767362E-2,{"$f":"SUMIF('A. Population Info'!$B:$B, A97,'A. Population Info'!$C:$C)","v":0}]
[94,94.5,{"$f":"COUNTIF('A. Population Info'!$B:$B, 'A. Age Profile'!A98)","v":0},{"$f":"SUM($C$4:C98)","v":568},0,0,2.8421124702043169E-2,{"$f":"SUMIF('A. Population Info'!$B:$B, A98,'A. Population Info'!$C:$C)","v":0}]
[95,95.5,{"$f":"COUNTIF('A. Population Info'!$B:$B, 'A. Age Profile'!A99)","v":0},{"$f":"SUM($C$4:C99)","v":568},0,0,2.3756888925926079E-2,{"$f":"SUMIF('A. Population Info'!$B:$B, A99,'A. Population Info'!$C:$C)","v":0}]
[96,96.5,{"$f":"COUNTIF('A. Population Info'!$B:$B, 'A. Age Profile'!A100)","v":0},{"$f":"SUM($C$4:C100)","v":568},0,0,1.9805899235141405E-2,{"$f":"SUMIF('A. Population Info'!$B:$B, A100,'A. Population Info'!$C:$C)","v":0}]
[97,97.5,{"$f":"COUNTIF('A. Population Info'!$B:$B, 'A. Age Profile'!A101)","v":0},{"$f":"SUM($C$4:C101)","v":568},0,0,1.6468583807425226E-2,{"$f":"SUMIF('A. Population Info'!$B:$B, A101,'A. Population Info'!$C:$C)","v":0}]
[98,98.5,{"$f":"COUNTIF('A. Population Info'!$B:$B, 'A. Age Profile'!A102)","v":0},{"$f":"SUM($C$4:C102)","v":568},0,0,1.3657607711593049E-2,{"$f":"SUMIF('A. Population Info'!$B:$B, A102,'A. Population Info'!$C:$C)","v":0}]
[99,99.5,{"$f":"COUNTIF('A. Population Info'!$B:$B, 'A. Age Profile'!A103)","v":0},{"$f":"SUM($C$4:C103)","v":568},0,0,1.1296650831997509E-2,{"$f":"SUMIF('A. Population Info'!$B:$B, A103,'A. Population Info'!$C:$C)","v":0}]
[100,100.5,{"$f":"COUNTIF('A. Population Info'!$B:$B, 'A. Age Profile'!A104)","v":0},{"$f":"SUM($C$4:C104)","v":568},0,0,9.3192608384026314E-3,{"$f":"SUMIF('A. Population Info'!$B:$B, A104,'A. Population Info'!$C:$C)","v":0}]

{"sheet":"A. Initial PoF","index":5,"n_rows":104,"n_cols":5,"rows_kept":104,"cut":false,"hidden":false,"merged":[]}
[null,"Initial Probability of Failure"]
[]
["Age Label","No. of Asset Units","PoFpoor (Upper 95%)","PoFavg","PoFgood (Lower 95%)"]
[0,1,{"$f":"IF('B. PoF Summary Stats & Params'!$C$12=\"C\", B4*'B. PoF Summary Stats & Params'!$I$8*'B. PoF Summary Stats & Params'!$I$10*A4^('B. PoF Summary Stats & Params'!$I$10-1), IF('B. PoF Summary Stats & Params'!$C$12=\"W\", B4*(('B. PoF Summary Stats & Params'!$M$14/'B. PoF Summary Stats & Params'!$O$14)*((A4)/'B. PoF Summary Stats & Params'!$O$14)^('B. PoF Summary Stats & Params'!$M$14-1)), \"Choose Model\"))","v":0},{"$f":"IF('B. PoF Summary Stats & Params'!$C$12=\"C\", B4*'B. PoF Summary Stats & Params'!$I$8*'B. PoF Summary Stats & Params'!$I$6*A4^('B. PoF Summary Stats & Params'!$I$6-1), IF('B. PoF Summary Stats & Params'!$C$12=\"W\", B4*(('B. PoF Summary Stats & Params'!$M$6/'B. PoF Summary Stats & Params'!$M$8)*((A4)/'B. PoF Summary Stats & Params'!$M$8)^('B. PoF Summary Stats & Params'!$M$6-1)), \"Choose Model\"))","v":0},{"$f":"IF('B. PoF Summary Stats & Params'!$C$12=\"C\", B4*'B. PoF Summary Stats & Params'!$I$8*'B. PoF Summary Stats & Params'!$I$12*A4^('B. PoF Summary Stats & Params'!$I$12-1), IF('B. PoF Summary Stats & Params'!$C$12=\"W\", B4*(('B. PoF Summary Stats & Params'!$M$12/'B. PoF Summary Stats & Params'!$O$12)*((A4)/'B. PoF Summary Stats & Params'!$O$12)^('B. PoF Summary Stats & Params'!$M$12-1)), \"Choose Model\"))","v":0}]
[1,1,{"$f":"IF('B. PoF Summary Stats & Params'!$C$12=\"C\", B5*'B. PoF Summary Stats & Params'!$I$8*'B. PoF Summary Stats & Params'!$I$10*A5^('B. PoF Summary Stats & Params'!$I$10-1), IF('B. PoF Summary Stats & Params'!$C$12=\"W\", B5*(('B. PoF Summary Stats & Params'!$M$14/'B. PoF Summary Stats & Params'!$O$14)*((A5)/'B. PoF Summary Stats & Params'!$O$14)^('B. PoF Summary Stats & Params'!$M$14-1)), \"Choose Model\"))","v":2.0035475802423848E-7},{"$f":"IF('B. PoF Summary Stats & Params'!$C$12=\"C\", B5*'B. PoF Summary Stats & Params'!$I$8*'B. PoF Summary Stats & Params'!$I$6*A5^('B. PoF Summary Stats & Params'!$I$6-1), IF('B. PoF Summary Stats & Params'!$C$12=\"W\", B5*(('B. PoF Summary Stats & Params'!$M$6/'B. PoF Summary Stats & Params'!$M$8)*((A5)/'B. PoF Summary Stats & Params'!$M$8)^('B. PoF Summary Stats & Params'!$M$6-1)), \"Choose Model\"))","v":1.8977394173356157E-7},{"$f":"IF('B. PoF Summary Stats & Params'!$C$12=\"C\", B5*'B. PoF Summary Stats & Params'!$I$8*'B. PoF Summary Stats & Params'!$I$12*A5^('B. PoF Summary Stats & Params'!$I$12-1), IF('B. PoF Summary Stats & Params'!$C$12=\"W\", B5*(('B. PoF Summary Stats & Params'!$M$12/'B. PoF Summary Stats & Params'!$O$12)*((A5)/'B. PoF Summary Stats & Params'!$O$12)^('B. PoF Summary Stats & Params'!$M$12-1)), \"Choose Model\"))","v":1.7919302936564981E-7}]
[2,1,{"$f":"IF('B. PoF Summary Stats & Params'!$C$12=\"C\", B6*'B. PoF Summary Stats & Params'!$I$8*'B. PoF Summary Stats & Params'!$I$10*A6^('B. PoF Summary Stats & Params'!$I$10-1), IF('B. PoF Summary Stats & Params'!$C$12=\"W\", B6*(('B. PoF Summary Stats & Params'!$M$14/'B. PoF Summary Stats & Params'!$O$14)*((A6)/'B. PoF Summary Stats & Params'!$O$14)^('B. PoF Summary Stats & Params'!$M$14-1)), \"Choose Model\"))","v":1.5873592517373639E-6},{"$f":"IF('B. PoF Summary Stats & Params'!$C$12=\"C\", B6*'B. PoF Summary Stats & Params'!$I$8*'B. PoF Summary Stats & Params'!$I$6*A6^('B. PoF Summary Stats & Params'!$I$6-1), IF('B. PoF Summary Stats & Params'!$C$12=\"W\", B6*(('B. PoF Summary Stats & Params'!$M$6/'B. PoF Summary Stats & Params'!$M$8)*((A6)/'B. PoF Summary Stats & Params'!$M$8)^('B. PoF Summary Stats & Params'!$M$6-1)), \"Choose Model\"))","v":1.2993173217303485E-6},{"$f":"IF('B. PoF Summary Stats & Params'!$C$12=\"C\", B6*'B. PoF Summary Stats & Params'!$I$8*'B. PoF Summary Stats & Params'!$I$12*A6^('B. PoF Summary Stats & Params'!$I$12-1), IF('B. PoF Summary Stats & Params'!$C$12=\"W\", B6*(('B. PoF Summary Stats & Params'!$M$12/'B. PoF Summary Stats & Params'!$O$12)*((A6)/'B. PoF Summary Stats & Params'!$O$12)^('B. PoF Summary Stats & Params'!$M$12-1)), \"Choose Model\"))","v":1.0602367273440052E-6}]
[3,1,{"$f":"IF('B. PoF Summary Stats & Params'!$C$12=\"C\", B7*'B. PoF Summary Stats & Params'!$I$8*'B. PoF Summary Stats & Params'!$I$10*A7^('B. PoF Summary Stats & Params'!$I$10-1), IF('B. PoF Summary Stats & Params'!$C$12=\"W\", B7*(('B. PoF Summary Stats & Params'!$M$14/'B. PoF Summary Stats & Params'!$O$14)*((A7)/'B. PoF Summary Stats & Params'!$O$14)^('B. PoF Summary Stats & Params'!$M$14-1)), \"Choose Model\"))","v":5.3270126378289335E-6},{"$f":"IF('B. PoF Summary Stats & Params'!$C$12=\"C\", B7*'B. PoF Summary Stats & Params'!$I$8*'B. PoF Summary Stats & Params'!$I$6*A7^('B. PoF Summary Stats & Params'!$I$6-1), IF('B. PoF Summary Stats & Params'!$C$12=\"W\", B7*(('B. PoF Summary Stats & Params'!$M$6/'B. PoF Summary Stats & Params'!$M$8)*((A7)/'B. PoF Summary Stats & Params'!$M$8)^('B. PoF Summary Stats & Params'!$M$6-1)), \"Choose Model\"))","v":4.0034914802289474E-6},{"$f":"IF('B. PoF Summary Stats & Params'!$C$12=\"C\", B7*'B. PoF Summary Stats & Params'!$I$8*'B. PoF Summary Stats & Params'!$I$12*A7^('B. PoF Summary Stats & Params'!$I$12-1), IF('B. PoF Summary Stats & Params'!$C$12=\"W\", B7*(('B. PoF Summary Stats & Params'!$M$12/'B. PoF Summary Stats & Params'!$O$12)*((A7)/'B. PoF Summary Stats & Params'!$O$12)^('B. PoF Summary Stats & Params'!$M$12-1)), \"Choose Model\"))","v":2.9994505447653667E-6}]
[4,1,{"$f":"IF('B. PoF Summary Stats & Params'!$C$12=\"C\", B8*'B. PoF Summary Stats & Params'!$I$8*'B. PoF Summary Stats & Params'!$I$10*A8^('B. PoF Summary Stats & Params'!$I$10-1), IF('B. PoF Summary Stats & Params'!$C$12=\"W\", B8*(('B. PoF Summary Stats & Params'!$M$14/'B. PoF Summary Stats & Params'!$O$14)*((A8)/'B. PoF Summary Stats & Params'!$O$14)^('B. PoF Summary Stats & Params'!$M$14-1)), \"Choose Model\"))","v":1.2576239361240323E-5},{"$f":"IF('B. PoF Summary Stats & Params'!$C$12=\"C\", B8*'B. PoF Summary Stats & Params'!$I$8*'B. PoF Summary Stats & Params'!$I$6*A8^('B. PoF Summary Stats & Params'!$I$6-1), IF('B. PoF Summary Stats & Params'!$C$12=\"W\", B8*(('B. PoF Summary Stats & Params'!$M$6/'B. PoF Summary Stats & Params'!$M$8)*((A8)/'B. PoF Summary Stats & Params'!$M$8)^('B. PoF Summary Stats & Params'!$M$6-1)), \"Choose Model\"))","v":8.8959816459878042E-6},{"$f":"IF('B. PoF Summary Stats & Params'!$C$12=\"C\", B8*'B. PoF Summary Stats & Params'!$I$8*'B. PoF Summary Stats & Params'!$I$12*A8^('B. PoF Summary Stats & Params'!$I$12-1), IF('B. PoF Summary Stats & Params'!$C$12=\"W\", B8*(('B. PoF Summary Stats & Params'!$M$12/'B. PoF Summary Stats & Params'!$O$12)*((A8)/'B. PoF Summary Stats & Params'!$O$12)^('B. PoF Summary Stats & Params'!$M$12-1)), \"Choose Model\"))","v":6.2731341837820716E-6}]
[5,1,{"$f":"IF('B. PoF Summary Stats & Params'!$C$12=\"C\", B9*'B. PoF Summary Stats & Params'!$I$8*'B. PoF Summary Stats & Params'!$I$10*A9^('B. PoF Summary Stats & Params'!$I$10-1), IF('B. PoF Summary Stats & Params'!$C$12=\"W\", B9*(('B. PoF Summary Stats & Params'!$M$14/'B. PoF Summary Stats & Params'!$O$14)*((A9)/'B. PoF Summary Stats & Params'!$O$14)^('B. PoF Summary Stats & Params'!$M$14-1)), \"Choose Model\"))","v":2.4486352288878159E-5},{"$f":"IF('B. PoF Summary Stats & Params'!$C$12=\"C\", B9*'B. PoF Summary Stats & Params'!$I$8*'B. PoF Summary Stats & Params'!$I$6*A9^('B. PoF Summary Stats & Params'!$I$6-1), IF('B. PoF Summary Stats & Params'!$C$12=\"W\", B9*(('B. PoF Summary Stats & Params'!$M$6/'B. PoF Summary Stats & Params'!$M$8)*((A9)/'B. PoF Summary Stats & Params'!$M$8)^('B. PoF Summary Stats & Params'!$M$6-1)), \"Choose Model\"))","v":1.6525626324406393E-5},{"$f":"IF('B. PoF Summary Stats & Params'!$C$12=\"C\", B9*'B. PoF Summary Stats & Params'!$I$8*'B. PoF Summary Stats & Params'!$I$12*A9^('B. PoF Summary Stats & Params'!$I$12-1), IF('B. PoF Summary Stats & Params'!$C$12=\"W\", B9*(('B. PoF Summary Stats & Params'!$M$12/'B. PoF Summary Stats & Params'!$O$12)*((A9)/'B. PoF Summary Stats & Params'!$O$12)^('B. PoF Summary Stats & Params'!$M$12-1)), \"Choose Model\"))","v":1.1118325355826922E-5}]
[6,1,{"$f":"IF('B. PoF Summary Stats & Params'!$C$12=\"C\", B10*'B. PoF Summary Stats & Params'!$I$8*'B. PoF Summary Stats & Params'!$I$10*A10^('B. PoF Summary Stats & Params'!$I$10-1), IF('B. PoF Summary Stats & Params'!$C$12=\"W\", B10*(('B. PoF Summary Stats & Params'!$M$14/'B. PoF Summary Stats & Params'!$O$14)*((A10)/'B. PoF Summary Stats & Params'!$O$14)^('B. PoF Summary Stats & Params'!$M$14-1)), \"Choose Model\"))","v":4.220455195656817E-5},{"$f":"IF('B. PoF Summary Stats & Params'!$C$12=\"C\", B10*'B. PoF Summary Stats & Params'!$I$8*'B. PoF Summary Stats & Params'!$I$6*A10^('B. PoF Summary Stats & Params'!$I$6-1), IF('B. PoF Summary Stats & Params'!$C$12=\"W\", B10*(('B. PoF Summary Stats & Params'!$M$6/'B. PoF Summary Stats & Params'!$M$8)*((A10)/'B. PoF Summary Stats & Params'!$M$8)^('B. PoF Summary Stats & Params'!$M$6-1)), \"Choose Model\"))","v":2.7410537928144845E-5},{"$f":"IF('B. PoF Summary Stats & Params'!$C$12=\"C\", B10*'B. PoF Summary Stats & Params'!$I$8*'B. PoF Summary Stats & Params'!$I$12*A10^('B. PoF Summary Stats & Params'!$I$12-1), IF('B. PoF Summary Stats & Params'!$C$12=\"W\", B10*(('B. PoF Summary Stats & Params'!$M$12/'B. PoF Summary Stats & Params'!$O$12)*((A10)/'B. PoF Summary Stats & Params'!$O$12)^('B. PoF Summary Stats & Params'!$M$12-1)), \"Choose Model\"))","v":1.7746938263558545E-5}]
[7,1,{"$f":"IF('B. PoF Summary Stats & Params'!$C$12=\"C\", B11*'B. PoF Summary Stats & Params'!$I$8*'B. PoF Summary Stats & Params'!$I$10*A11^('B. PoF Summary Stats & Params'!$I$10-1), IF('B. PoF Summary Stats & Params'!$C$12=\"W\", B11*(('B. PoF Summary Stats & Params'!$M$14/'B. PoF Summary Stats & Params'!$O$14)*((A11)/'B. PoF Summary Stats & Params'!$O$14)^('B. PoF Summary Stats & Params'!$M$14-1)), \"Choose Model\"))","v":6.687478641779022E-5},{"$f":"IF('B. PoF Summary Stats & Params'!$C$12=\"C\", B11*'B. PoF Summary Stats & Params'!$I$8*'B. PoF Summary Stats & Params'!$I$6*A11^('B. PoF Summary Stats & Params'!$I$6-1), IF('B. PoF Summary Stats & Params'!$C$12=\"W\", B11*(('B. PoF Summary Stats & Params'!$M$6/'B. PoF Summary Stats & Params'!$M$8)*((A11)/'B. PoF Summary Stats & Params'!$M$8)^('B. PoF Summary Stats & Params'!$M$6-1)), \"Choose Model\"))","v":4.2045708837642603E-5},{"$f":"IF('B. PoF Summary Stats & Params'!$C$12=\"C\", B11*'B. PoF Summary Stats & Params'!$I$8*'B. PoF Summary Stats & Params'!$I$12*A11^('B. PoF Summary Stats & Params'!$I$12-1), IF('B. PoF Summary Stats & Params'!$C$12=\"W\", B11*(('B. PoF Summary Stats & Params'!$M$12/'B. PoF Summary Stats & Params'!$O$12)*((A11)/'B. PoF Summary Stats & Params'!$O$12)^('B. PoF Summary Stats & Params'!$M$12-1)), \"Choose Model\"))","v":2.6352909134244925E-5}]
[8,1,{"$f":"IF('B. PoF Summary Stats & Params'!$C$12=\"C\", B12*'B. PoF Summary Stats & Params'!$I$8*'B. PoF Summary Stats & Params'!$I$10*A12^('B. PoF Summary Stats & Params'!$I$10-1), IF('B. PoF Summary Stats & Params'!$C$12=\"W\", B12*(('B. PoF Summary Stats & Params'!$M$14/'B. PoF Summary Stats & Params'!$O$14)*((A12)/'B. PoF Summary Stats & Params'!$O$14)^('B. PoF Summary Stats & Params'!$M$14-1)), \"Choose Model\"))","v":9.9638312057023082E-5},{"$f":"IF('B. PoF Summary Stats & Params'!$C$12=\"C\", B12*'B. PoF Summary Stats & Params'!$I$8*'B. PoF Summary Stats & Params'!$I$6*A12^('B. PoF Summary Stats & Params'!$I$6-1), IF('B. PoF Summary Stats & Params'!$C$12=\"W\", B12*(('B. PoF Summary Stats & Params'!$M$6/'B. PoF Summary Stats & Params'!$M$8)*((A12)/'B. PoF Summary Stats & Params'!$M$8)^('B. PoF Summary Stats & Params'!$M$6-1)), \"Choose Model\"))","v":6.0907746031093006E-5},{"$f":"IF('B. PoF Summary Stats & Params'!$C$12=\"C\", B12*'B. PoF Summary Stats & Params'!$I$8*'B. PoF Summary Stats & Params'!$I$12*A12^('B. PoF Summary Stats & Params'!$I$12-1), IF('B. PoF Summary Stats & Params'!$C$12=\"W\", B12*(('B. PoF Summary Stats & Params'!$M$12/'B. PoF Summary Stats & Params'!$O$12)*((A12)/'B. PoF Summary Stats & Params'!$O$12)^('B. PoF Summary Stats & Params'!$M$12-1)), \"Choose Model\"))","v":3.7116439633548948E-5}]
[9,1,{"$f":"IF('B. PoF Summary Stats & Params'!$C$12=\"C\", B13*'B. PoF Summary Stats & Params'!$I$8*'B. PoF Summary Stats & Params'!$I$10*A13^('B. PoF Summary Stats & Params'!$I$10-1), IF('B. PoF Summary Stats & Params'!$C$12=\"W\", B13*(('B. PoF Summary Stats & Params'!$M$14/'B. PoF Summary Stats & Params'!$O$14)*((A13)/'B. PoF Summary Stats & Params'!$O$14)^('B. PoF Summary Stats & Params'!$M$14-1)), \"Choose Model\"))","v":1.4163408906992962E-4},{"$f":"IF('B. PoF Summary Stats & Params'!$C$12=\"C\", B13*'B. PoF Summary Stats & Params'!$I$8*'B. PoF Summary Stats & Params'!$I$6*A13^('B. PoF Summary Stats & Params'!$I$6-1), IF('B. PoF Summary Stats & Params'!$C$12=\"W\", B13*(('B. PoF Summary Stats & Params'!$M$6/'B. PoF Summary Stats & Params'!$M$8)*((A13)/'B. PoF Summary Stats & Params'!$M$8)^('B. PoF Summary Stats & Params'!$M$6-1)), \"Choose Model\"))","v":8.4458086741796427E-5},{"$f":"IF('B. PoF Summary Stats & Params'!$C$12=\"C\", B13*'B. PoF Summary Stats & Params'!$I$8*'B. PoF Summary Stats & Params'!$I$12*A13^('B. PoF Summary Stats & Params'!$I$12-1), IF('B. PoF Summary Stats & Params'!$C$12=\"W\", B13*(('B. PoF Summary Stats & Params'!$M$12/'B. PoF Summary Stats & Params'!$O$12)*((A13)/'B. PoF Summary Stats & Params'!$O$12)^('B. PoF Summary Stats & Params'!$M$12-1)), \"Choose Model\"))","v":5.0206772006377323E-5}]
[10,1,{"$f":"IF('B. PoF Summary Stats & Params'!$C$12=\"C\", B14*'B. PoF Summary Stats & Params'!$I$8*'B. PoF Summary Stats & Params'!$I$10*A14^('B. PoF Summary Stats & Params'!$I$10-1), IF('B. PoF Summary Stats & Params'!$C$12=\"W\", B14*(('B. PoF Summary Stats & Params'!$M$14/'B. PoF Summary Stats & Params'!$O$14)*((A14)/'B. PoF Summary Stats & Params'!$O$14)^('B. PoF Summary Stats & Params'!$M$14-1)), \"Choose Model\"))","v":1.9399907559145105E-4},{"$f":"IF('B. PoF Summary Stats & Params'!$C$12=\"C\", B14*'B. PoF Summary Stats & Params'!$I$8*'B. PoF Summary Stats & Params'!$I$6*A14^('B. PoF Summary Stats & Params'!$I$6-1), IF('B. PoF Summary Stats & Params'!$C$12=\"W\", B14*(('B. PoF Summary Stats & Params'!$M$6/'B. PoF Summary Stats & Params'!$M$8)*((A14)/'B. PoF Summary Stats & Params'!$M$8)^('B. PoF Summary Stats & Params'!$M$6-1)), \"Choose Model\"))","v":1.1314531562974286E-4},{"$f":"IF('B. PoF Summary Stats & Params'!$C$12=\"C\", B14*'B. PoF Summary Stats & Params'!$I$8*'B. PoF Summary Stats & Params'!$I$12*A14^('B. PoF Summary Stats & Params'!$I$12-1), IF('B. PoF Summary Stats & Params'!$C$12=\"W\", B14*(('B. PoF Summary Stats & Params'!$M$12/'B. PoF Summary Stats & Params'!$O$12)*((A14)/'B. PoF Summary Stats & Params'!$O$12)^('B. PoF Summary Stats & Params'!$M$12-1)), \"Choose Model\"))","v":6.5784126372203045E-5}]
[11,1,{"$f":"IF('B. PoF Summary Stats & Params'!$C$12=\"C\", B15*'B. PoF Summary Stats & Params'!$I$8*'B. PoF Summary Stats & Params'!$I$10*A15^('B. PoF Summary Stats & Params'!$I$10-1), IF('B. PoF Summary Stats & Params'!$C$12=\"W\", B15*(('B. PoF Summary Stats & Params'!$M$14/'B. PoF Summary Stats & Params'!$O$14)*((A15)/'B. PoF Summary Stats & Params'!$O$14)^('B. PoF Summary Stats & Params'!$M$14-1)), \"Choose Model\"))","v":2.5786845510305948E-4},{"$f":"IF('B. PoF Summary Stats & Params'!$C$12=\"C\", B15*'B. PoF Summary Stats & Params'!$I$8*'B. PoF Summary Stats & Params'!$I$6*A15^('B. PoF Summary Stats & Params'!$I$6-1), IF('B. PoF Summary Stats & Params'!$C$12=\"W\", B15*(('B. PoF Summary Stats & Params'!$M$6/'B. PoF Summary Stats & Params'!$M$8)*((A15)/'B. PoF Summary Stats & Params'!$M$8)^('B. PoF Summary Stats & Params'!$M$6-1)), \"Choose Model\"))","v":1.4740690804039002E-4},{"$f":"IF('B. PoF Summary Stats & Params'!$C$12=\"C\", B15*'B. PoF Summary Stats & Params'!$I$8*'B. PoF Summary Stats & Params'!$I$12*A15^('B. PoF Summary Stats & Params'!$I$12-1), IF('B. PoF Summary Stats & Params'!$C$12=\"W\", B15*(('B. PoF Summary Stats & Params'!$M$12/'B. PoF Summary Stats & Params'!$O$12)*((A15)/'B. PoF Summary Stats & Params'!$O$12)^('B. PoF Summary Stats & Params'!$M$12-1)), \"Choose Model\"))","v":8.4001118803692738E-5}]
[12,1,{"$f":"IF('B. PoF Summary Stats & Params'!$C$12=\"C\", B16*'B. PoF Summary Stats & Params'!$I$8*'B. PoF Summary Stats & Params'!$I$10*A16^('B. PoF Summary Stats & Params'!$I$10-1), IF('B. PoF Summary Stats & Params'!$C$12=\"W\", B16*(('B. PoF Summary Stats & Params'!$M$14/'B. PoF Summary Stats & Params'!$O$14)*((A16)/'B. PoF Summary Stats & Params'!$O$14)^('B. PoF Summary Stats & Params'!$M$14-1)), \"Choose Model\"))","v":3.3437581754651441E-4},{"$f":"IF('B. PoF Summary Stats & Params'!$C$12=\"C\", B16*'B. PoF Summary Stats & Params'!$I$8*'B. PoF Summary Stats & Params'!$I$6*A16^('B. PoF Summary Stats & Params'!$I$6-1), IF('B. PoF Summary Stats & Params'!$C$12=\"W\", B16*(('B. PoF Summary Stats & Params'!$M$6/'B. PoF Summary Stats & Params'!$M$8)*((A16)/'B. PoF Summary Stats & Params'!$M$8)^('B. PoF Summary Stats & Params'!$M$6-1)), \"Choose Model\"))","v":1.8767058534299675E-4},{"$f":"IF('B. PoF Summary Stats & Params'!$C$12=\"C\", B16*'B. PoF Summary Stats & Params'!$I$8*'B. PoF Summary Stats & Params'!$I$12*A16^('B. PoF Summary Stats & Params'!$I$12-1), IF('B. PoF Summary Stats & Params'!$C$12=\"W\", B16*(('B. PoF Summary Stats & Params'!$M$12/'B. PoF Summary Stats & Params'!$O$12)*((A16)/'B. PoF Summary Stats & Params'!$O$12)^('B. PoF Summary Stats & Params'!$M$12-1)), \"Choose Model\"))","v":1.0500383754625158E-4}]
[13,1,{"$f":"IF('B. PoF Summary Stats & Params'!$C$12=\"C\", B17*'B. PoF Summary Stats & Params'!$I$8*'B. PoF Summary Stats & Params'!$I$10*A17^('B. PoF Summary Stats & Params'!$I$10-1), IF('B. PoF Summary Stats & Params'!$C$12=\"W\", B17*(('B. PoF Summary Stats & Params'!$M$14/'B. PoF Summary Stats & Params'!$O$14)*((A17)/'B. PoF Summary Stats & Params'!$O$14)^('B. PoF Summary Stats & Params'!$M$14-1)), \"Choose Model\"))","v":4.2465330698892044E-4},{"$f":"IF('B. PoF Summary Stats & Params'!$C$12=\"C\", B17*'B. PoF Summary Stats & Params'!$I$8*'B. PoF Summary Stats & Params'!$I$6*A17^('B. PoF Summary Stats & Params'!$I$6-1), IF('B. PoF Summary Stats & Params'!$C$12=\"W\", B17*(('B. PoF Summary Stats & Params'!$M$6/'B. PoF Summary Stats & Params'!$M$8)*((A17)/'B. PoF Summary Stats & Params'!$M$8)^('B. PoF Summary Stats & Params'!$M$6-1)), \"Choose Model\"))","v":2.3435539639462196E-4},{"$f":"IF('B. PoF Summary Stats & Params'!$C$12=\"C\", B17*'B. PoF Summary Stats & Params'!$I$8*'B. PoF Summary Stats & Params'!$I$12*A17^('B. PoF Summary Stats & Params'!$I$12-1), IF('B. PoF Summary Stats & Params'!$C$12=\"W\", B17*(('B. PoF Summary Stats & Params'!$M$12/'B. PoF Summary Stats & Params'!$O$12)*((A17)/'B. PoF Summary Stats & Params'!$O$12)^('B. PoF Summary Stats & Params'!$M$12-1)), \"Choose Model\"))","v":1.289326834180433E-4}]
[14,1,{"$f":"IF('B. PoF Summary Stats & Params'!$C$12=\"C\", B18*'B. PoF Summary Stats & Params'!$I$8*'B. PoF Summary Stats & Params'!$I$10*A18^('B. PoF Summary Stats & Params'!$I$10-1), IF('B. PoF Summary Stats & Params'!$C$12=\"W\", B18*(('B. PoF Summary Stats & Params'!$M$14/'B. PoF Summary Stats & Params'!$O$14)*((A18)/'B. PoF Summary Stats & Params'!$O$14)^('B. PoF Summary Stats & Params'!$M$14-1)), \"Choose Model\"))","v":5.2983174432721578E-4},{"$f":"IF('B. PoF Summary Stats & Params'!$C$12=\"C\", B18*'B. PoF Summary Stats & Params'!$I$8*'B. PoF Summary Stats & Params'!$I$6*A18^('B. PoF Summary Stats & Params'!$I$6-1), IF('B. PoF Summary Stats & Params'!$C$12=\"W\", B18*(('B. PoF Summary Stats & Params'!$M$6/'B. PoF Summary Stats & Params'!$M$8)*((A18)/'B. PoF Summary Stats & Params'!$M$8)^('B. PoF Summary Stats & Params'!$M$6-1)), \"Choose Model\"))","v":2.8787259883066642E-4},{"$f":"IF('B. PoF Summary Stats & Params'!$C$12=\"C\", B18*'B. PoF Summary Stats & Params'!$I$8*'B. PoF Summary Stats & Params'!$I$12*A18^('B. PoF Summary Stats & Params'!$I$12-1), IF('B. PoF Summary Stats & Params'!$C$12=\"W\", B18*(('B. PoF Summary Stats & Params'!$M$12/'B. PoF Summary Stats & Params'!$O$12)*((A18)/'B. PoF Summary Stats & Params'!$O$12)^('B. PoF Summary Stats & Params'!$M$12-1)), \"Choose Model\"))","v":1.5592304140063661E-4}]
[15,1,{"$f":"IF('B. PoF Summary Stats & Params'!$C$12=\"C\", B19*'B. PoF Summary Stats & Params'!$I$8*'B. PoF Summary Stats & Params'!$I$10*A19^('B. PoF Summary Stats & Params'!$I$10-1), IF('B. PoF Summary Stats & Params'!$C$12=\"W\", B19*(('B. PoF Summary Stats & Params'!$M$14/'B. PoF Summary Stats & Params'!$O$14)*((A19)/'B. PoF Summary Stats & Params'!$O$14)^('B. PoF Summary Stats & Params'!$M$14-1)), \"Choose Model\"))","v":6.5104073086901697E-4},{"$f":"IF('B. PoF Summary Stats & Params'!$C$12=\"C\", B19*'B. PoF Summary Stats & Params'!$I$8*'B. PoF Summary Stats & Params'!$I$6*A19^('B. PoF Summary Stats & Params'!$I$6-1), IF('B. PoF Summary Stats & Params'!$C$12=\"W\", B19*(('B. PoF Summary Stats & Params'!$M$6/'B. PoF Summary Stats & Params'!$M$8)*((A19)/'B. PoF Summary Stats & Params'!$M$8)^('B. PoF Summary Stats & Params'!$M$6-1)), \"Choose Model\"))","v":3.4862638985543997E-4},{"$f":"IF('B. PoF Summary Stats & Params'!$C$12=\"C\", B19*'B. PoF Summary Stats & Params'!$I$8*'B. PoF Summary Stats & Params'!$I$12*A19^('B. PoF Summary Stats & Params'!$I$12-1), IF('B. PoF Summary Stats & Params'!$C$12=\"W\", B19*(('B. PoF Summary Stats & Params'!$M$12/'B. PoF Summary Stats & Params'!$O$12)*((A19)/'B. PoF Summary Stats & Params'!$O$12)^('B. PoF Summary Stats & Params'!$M$12-1)), \"Choose Model\"))","v":1.8610582768464776E-4}]
[16,1,{"$f":"IF('B. PoF Summary Stats & Params'!$C$12=\"C\", B20*'B. PoF Summary Stats & Params'!$I$8*'B. PoF Summary Stats & Params'!$I$10*A20^('B. PoF Summary Stats & Params'!$I$10-1), IF('B. PoF Summary Stats & Params'!$C$12=\"W\", B20*(('B. PoF Summary Stats & Params'!$M$14/'B. PoF Summary Stats & Params'!$O$14)*((A20)/'B. PoF Summary Stats & Params'!$O$14)^('B. PoF Summary Stats & Params'!$M$14-1)), \"Choose Model\"))","v":7.8940873693688913E-4},{"$f":"IF('B. PoF Summary Stats & Params'!$C$12=\"C\", B20*'B. PoF Summary Stats & Params'!$I$8*'B. PoF Summary Stats & Params'!$I$6*A20^('B. PoF Summary Stats & Params'!$I$6-1), IF('B. PoF Summary Stats & Params'!$C$12=\"W\", B20*(('B. PoF Summary Stats & Params'!$M$6/'B. PoF Summary Stats & Params'!$M$8)*((A20)/'B. PoF Summary Stats & Params'!$M$8)^('B. PoF Summary Stats & Params'!$M$6-1)), \"Choose Model\"))","v":4.1701452118679517E-4},{"$f":"IF('B. PoF Summary Stats & Params'!$C$12=\"C\", B20*'B. PoF Summary Stats & Params'!$I$8*'B. PoF Summary Stats & Params'!$I$12*A20^('B. PoF Summary Stats & Params'!$I$12-1), IF('B. PoF Summary Stats & Params'!$C$12=\"W\", B20*(('B. PoF Summary Stats & Params'!$M$12/'B. PoF Summary Stats & Params'!$O$12)*((A20)/'B. PoF Summary Stats & Params'!$O$12)^('B. PoF Summary Stats & Params'!$M$12-1)), \"Choose Model\"))","v":2.1960794249108631E-4}]
[17,1,{"$f":"IF('B. PoF Summary Stats & Params'!$C$12=\"C\", B21*'B. PoF Summary Stats & Params'!$I$8*'B. PoF Summary Stats & Params'!$I$10*A21^('B. PoF Summary Stats & Params'!$I$10-1), IF('B. PoF Summary Stats & Params'!$C$12=\"W\", B21*(('B. PoF Summary Stats & Params'!$M$14/'B. PoF Summary Stats & Params'!$O$14)*((A21)/'B. PoF Summary Stats & Params'!$O$14)^('B. PoF Summary Stats & Params'!$M$14-1)), \"Choose Model\"))","v":9.4606317852413203E-4},{"$f":"IF('B. PoF Summary Stats & Params'!$C$12=\"C\", B21*'B. PoF Summary Stats & Params'!$I$8*'B. PoF Summary Stats & Params'!$I$6*A21^('B. PoF Summary Stats & Params'!$I$6-1), IF('B. PoF Summary Stats & Params'!$C$12=\"W\", B21*(('B. PoF Summary Stats & Params'!$M$6/'B. PoF Summary Stats & Params'!$M$8)*((A21)/'B. PoF Summary Stats & Params'!$M$8)^('B. PoF Summary Stats & Params'!$M$6-1)), \"Choose Model\"))","v":4.9342882303794701E-4},{"$f":"IF('B. PoF Summary Stats & Params'!$C$12=\"C\", B21*'B. PoF Summary Stats & Params'!$I$8*'B. PoF Summary Stats & Params'!$I$12*A21^('B. PoF Summary Stats & Params'!$I$12-1), IF('B. PoF Summary Stats & Params'!$C$12=\"W\", B21*(('B. PoF Summary Stats & Params'!$M$12/'B. PoF Summary Stats & Params'!$O$12)*((A21)/'B. PoF Summary Stats & Params'!$O$12)^('B. PoF Summary Stats & Params'!$M$12-1)), \"Choose Model\"))","v":2.5655265007778637E-4}]
[18,1,{"$f":"IF('B. PoF Summary Stats & Params'!$C$12=\"C\", B22*'B. PoF Summary Stats & Params'!$I$8*'B. PoF Summary Stats & Params'!$I$10*A22^('B. PoF Summary Stats & Params'!$I$10-1), IF('B. PoF Summary Stats & Params'!$C$12=\"W\", B22*(('B. PoF Summary Stats & Params'!$M$14/'B. PoF Summary Stats & Params'!$O$14)*((A22)/'B. PoF Summary Stats & Params'!$O$14)^('B. PoF Summary Stats & Params'!$M$14-1)), \"Choose Model\"))","v":1.1221304842650548E-3},{"$f":"IF('B. PoF Summary Stats & Params'!$C$12=\"C\", B22*'B. PoF Summary Stats & Params'!$I$8*'B. PoF Summary Stats & Params'!$I$6*A22^('B. PoF Summary Stats & Params'!$I$6-1), IF('B. PoF Summary Stats & Params'!$C$12=\"W\", B22*(('B. PoF Summary Stats & Params'!$M$6/'B. PoF Summary Stats & Params'!$M$8)*((A22)/'B. PoF Summary Stats & Params'!$M$8)^('B. PoF Summary Stats & Params'!$M$6-1)), \"Choose Model\"))","v":5.7825565544657241E-4},{"$f":"IF('B. PoF Summary Stats & Params'!$C$12=\"C\", B22*'B. PoF Summary Stats & Params'!$I$8*'B. PoF Summary Stats & Params'!$I$12*A22^('B. PoF Summary Stats & Params'!$I$12-1), IF('B. PoF Summary Stats & Params'!$C$12=\"W\", B22*(('B. PoF Summary Stats & Params'!$M$12/'B. PoF Summary Stats & Params'!$O$12)*((A22)/'B. PoF Summary Stats & Params'!$O$12)^('B. PoF Summary Stats & Params'!$M$12-1)), \"Choose Model\"))","v":2.9705990144252828E-4}]
[19,1,{"$f":"IF('B. PoF Summary Stats & Params'!$C$12=\"C\", B23*'B. PoF Summary Stats & Params'!$I$8*'B. PoF Summary Stats & Params'!$I$10*A23^('B. PoF Summary Stats & Params'!$I$10-1), IF('B. PoF Summary Stats & Params'!$C$12=\"W\", B23*(('B. PoF Summary Stats & Params'!$M$14/'B. PoF Summary Stats & Params'!$O$14)*((A23)/'B. PoF Summary Stats & Params'!$O$14)^('B. PoF Summary Stats & Params'!$M$14-1)), \"Choose Model\"))","v":1.3187361544450217E-3},{"$f":"IF('B. PoF Summary Stats & Params'!$C$12=\"C\", B23*'B. PoF Summary Stats & Params'!$I$8*'B. PoF Summary Stats & Params'!$I$6*A23^('B. PoF Summary Stats & Params'!$I$6-1), IF('B. PoF Summary Stats & Params'!$C$12=\"W\", B23*(('B. PoF Summary Stats & Params'!$M$6/'B. PoF Summary Stats & Params'!$M$8)*((A23)/'B. PoF Summary Stats & Params'!$M$8)^('B. PoF Summary Stats & Params'!$M$6-1)), \"Choose Model\"))","v":6.7187630071137243E-4},{"$f":"IF('B. PoF Summary Stats & Params'!$C$12=\"C\", B23*'B. PoF Summary Stats & Params'!$I$8*'B. PoF Summary Stats & Params'!$I$12*A23^('B. PoF Summary Stats & Params'!$I$12-1), IF('B. PoF Summary Stats & Params'!$C$12=\"W\", B23*(('B. PoF Summary Stats & Params'!$M$12/'B. PoF Summary Stats & Params'!$O$12)*((A23)/'B. PoF Summary Stats & Params'!$O$12)^('B. PoF Summary Stats & Params'!$M$12-1)), \"Choose Model\"))","v":3.4124661121317574E-4}]
[20,1,{"$f":"IF('B. PoF Summary Stats & Params'!$C$12=\"C\", B24*'B. PoF Summary Stats & Params'!$I$8*'B. PoF Summary Stats & Params'!$I$10*A24^('B. PoF Summary Stats & Params'!$I$10-1), IF('B. PoF Summary Stats & Params'!$C$12=\"W\", B24*(('B. PoF Summary Stats & Params'!$M$14/'B. PoF Summary Stats & Params'!$O$14)*((A24)/'B. PoF Summary Stats & Params'!$O$14)^('B. PoF Summary Stats & Params'!$M$14-1)), \"Choose Model\"))","v":1.5370048133887169E-3},{"$f":"IF('B. PoF Summary Stats & Params'!$C$12=\"C\", B24*'B. PoF Summary Stats & Params'!$I$8*'B. PoF Summary Stats & Params'!$I$6*A24^('B. PoF Summary Stats & Params'!$I$6-1), IF('B. PoF Summary Stats & Params'!$C$12=\"W\", B24*(('B. PoF Summary Stats & Params'!$M$6/'B. PoF Summary Stats & Params'!$M$8)*((A24)/'B. PoF Summary Stats & Params'!$M$8)^('B. PoF Summary Stats & Params'!$M$6-1)), \"Choose Model\"))","v":7.7466730746823646E-4},{"$f":"IF('B. PoF Summary Stats & Params'!$C$12=\"C\", B24*'B. PoF Summary Stats & Params'!$I$8*'B. PoF Summary Stats & Params'!$I$12*A24^('B. PoF Summary Stats & Params'!$I$12-1), IF('B. PoF Summary Stats & Params'!$C$12=\"W\", B24*(('B. PoF Summary Stats & Params'!$M$12/'B. PoF Summary Stats & Params'!$O$12)*((A24)/'B. PoF Summary Stats & Params'!$O$12)^('B. PoF Summary Stats & Params'!$M$12-1)), \"Choose Model\"))","v":3.8922689740195245E-4}]
[21,1,{"$f":"IF('B. PoF Summary Stats & Params'!$C$12=\"C\", B25*'B. PoF Summary Stats & Params'!$I$8*'B. PoF Summary Stats & Params'!$I$10*A25^('B. PoF Summary Stats & Params'!$I$10-1), IF('B. PoF Summary Stats & Params'!$C$12=\"W\", B25*(('B. PoF Summary Stats & Params'!$M$14/'B. PoF Summary Stats & Params'!$O$14)*((A25)/'B. PoF Summary Stats & Params'!$O$14)^('B. PoF Summary Stats & Params'!$M$14-1)), \"Choose Model\"))","v":1.7780602562809185E-3},{"$f":"IF('B. PoF Summary Stats & Params'!$C$12=\"C\", B25*'B. PoF Summary Stats & Params'!$I$8*'B. PoF Summary Stats & Params'!$I$6*A25^('B. PoF Summary Stats & Params'!$I$6-1), IF('B. PoF Summary Stats & Params'!$C$12=\"W\", B25*(('B. PoF Summary Stats & Params'!$M$6/'B. PoF Summary Stats & Params'!$M$8)*((A25)/'B. PoF Summary Stats & Params'!$M$8)^('B. PoF Summary Stats & Params'!$M$6-1)), \"Choose Model\"))","v":8.8700079459813413E-4},{"$f":"IF('B. PoF Summary Stats & Params'!$C$12=\"C\", B25*'B. PoF Summary Stats & Params'!$I$8*'B. PoF Summary Stats & Params'!$I$12*A25^('B. PoF Summary Stats & Params'!$I$12-1), IF('B. PoF Summary Stats & Params'!$C$12=\"W\", B25*(('B. PoF Summary Stats & Params'!$M$12/'B. PoF Summary Stats & Params'!$O$12)*((A25)/'B. PoF Summary Stats & Params'!$O$12)^('B. PoF Summary Stats & Params'!$M$12-1)), \"Choose Model\"))","v":4.4111229068833101E-4}]
[22,1,{"$f":"IF('B. PoF Summary Stats & Params'!$C$12=\"C\", B26*'B. PoF Summary Stats & Params'!$I$8*'B. PoF Summary Stats & Params'!$I$10*A26^('B. PoF Summary Stats & Params'!$I$10-1), IF('B. PoF Summary Stats & Params'!$C$12=\"W\", B26*(('B. PoF Summary Stats & Params'!$M$14/'B. PoF Summary Stats & Params'!$O$14)*((A26)/'B. PoF Summary Stats & Params'!$O$14)^('B. PoF Summary Stats & Params'!$M$14-1)), \"Choose Model\"))","v":2.04302549126157E-3},{"$f":"IF('B. PoF Summary Stats & Params'!$C$12=\"C\", B26*'B. PoF Summary Stats & Params'!$I$8*'B. PoF Summary Stats & Params'!$I$6*A26^('B. PoF Summary Stats & Params'!$I$6-1), IF('B. PoF Summary Stats & Params'!$C$12=\"W\", B26*(('B. PoF Summary Stats & Params'!$M$6/'B. PoF Summary Stats & Params'!$M$8)*((A26)/'B. PoF Summary Stats & Params'!$M$8)^('B. PoF Summary Stats & Params'!$M$6-1)), \"Choose Model\"))","v":1.009244721430157E-3},{"$f":"IF('B. PoF Summary Stats & Params'!$C$12=\"C\", B26*'B. PoF Summary Stats & Params'!$I$8*'B. PoF Summary Stats & Params'!$I$12*A26^('B. PoF Summary Stats & Params'!$I$12-1), IF('B. PoF Summary Stats & Params'!$C$12=\"W\", B26*(('B. PoF Summary Stats & Params'!$M$12/'B. PoF Summary Stats & Params'!$O$12)*((A26)/'B. PoF Summary Stats & Params'!$O$12)^('B. PoF Summary Stats & Params'!$M$12-1)), \"Choose Model\"))","v":4.9701191842641207E-4}]
[23,1,{"$f":"IF('B. PoF Summary Stats & Params'!$C$12=\"C\", B27*'B. PoF Summary Stats & Params'!$I$8*'B. PoF Summary Stats & Params'!$I$10*A27^('B. PoF Summary Stats & Params'!$I$10-1), IF('B. PoF Summary Stats & Params'!$C$12=\"W\", B27*(('B. PoF Summary Stats & Params'!$M$14/'B. PoF Summary Stats & Params'!$O$14)*((A27)/'B. PoF Summary Stats & Params'!$O$14)^('B. PoF Summary Stats & Params'!$M$14-1)), \"Choose Model\"))","v":2.3330227774753893E-3},{"$f":"IF('B. PoF Summary Stats & Params'!$C$12=\"C\", B27*'B. PoF Summary Stats & Params'!$I$8*'B. PoF Summary Stats & Params'!$I$6*A27^('B. PoF Summary Stats & Params'!$I$6-1), IF('B. PoF Summary Stats & Params'!$C$12=\"W\", B27*(('B. PoF Summary Stats & Params'!$M$6/'B. PoF Summary Stats & Params'!$M$8)*((A27)/'B. PoF Summary Stats & Params'!$M$8)^('B. PoF Summary Stats & Params'!$M$6-1)), \"Choose Model\"))","v":1.1417631294044345E-3},{"$f":"IF('B. PoF Summary Stats & Params'!$C$12=\"C\", B27*'B. PoF Summary Stats & Params'!$I$8*'B. PoF Summary Stats & Params'!$I$12*A27^('B. PoF Summary Stats & Params'!$I$12-1), IF('B. PoF Summary Stats & Params'!$C$12=\"W\", B27*(('B. PoF Summary Stats & Params'!$M$12/'B. PoF Summary Stats & Params'!$O$12)*((A27)/'B. PoF Summary Stats & Params'!$O$12)^('B. PoF Summary Stats & Params'!$M$12-1)), \"Choose Model\"))","v":5.5703266748214849E-4}]
[24,1,{"$f":"IF('B. PoF Summary Stats & Params'!$C$12=\"C\", B28*'B. PoF Summary Stats & Params'!$I$8*'B. PoF Summary Stats & Params'!$I$10*A28^('B. PoF Summary Stats & Params'!$I$10-1), IF('B. PoF Summary Stats & Params'!$C$12=\"W\", B28*(('B. PoF Summary Stats & Params'!$M$14/'B. PoF Summary Stats & Params'!$O$14)*((A28)/'B. PoF Summary Stats & Params'!$O$14)^('B. PoF Summary Stats & Params'!$M$14-1)), \"Choose Model\"))","v":2.6491736596317467E-3},{"$f":"IF('B. PoF Summary Stats & Params'!$C$12=\"C\", B28*'B. PoF Summary Stats & Params'!$I$8*'B. PoF Summary Stats & Params'!$I$6*A28^('B. PoF Summary Stats & Params'!$I$6-1), IF('B. PoF Summary Stats & Params'!$C$12=\"W\", B28*(('B. PoF Summary Stats & Params'!$M$6/'B. PoF Summary Stats & Params'!$M$8)*((A28)/'B. PoF Summary Stats & Params'!$M$8)^('B. PoF Summary Stats & Params'!$M$6-1)), \"Choose Model\"))","v":1.2849163593691925E-3},{"$f":"IF('B. PoF Summary Stats & Params'!$C$12=\"C\", B28*'B. PoF Summary Stats & Params'!$I$8*'B. PoF Summary Stats & Params'!$I$12*A28^('B. PoF Summary Stats & Params'!$I$12-1), IF('B. PoF Summary Stats & Params'!$C$12=\"W\", B28*(('B. PoF Summary Stats & Params'!$M$12/'B. PoF Summary Stats & Params'!$O$12)*((A28)/'B. PoF Summary Stats & Params'!$O$12)^('B. PoF Summary Stats & Params'!$M$12-1)), \"Choose Model\"))","v":6.2127932918321549E-4}]
[25,1,{"$f":"IF('B. PoF Summary Stats & Params'!$C$12=\"C\", B29*'B. PoF Summary Stats & Params'!$I$8*'B. PoF Summary Stats & Params'!$I$10*A29^('B. PoF Summary Stats & Params'!$I$10-1), IF('B. PoF Summary Stats & Params'!$C$12=\"W\", B29*(('B. PoF Summary Stats & Params'!$M$14/'B. PoF Summary Stats & Params'!$O$14)*((A29)/'B. PoF Summary Stats & Params'!$O$14)^('B. PoF Summary Stats & Params'!$M$14-1)), \"Choose Model\"))","v":2.9925989995331784E-3},{"$f":"IF('B. PoF Summary Stats & Params'!$C$12=\"C\", B29*'B. PoF Summary Stats & Params'!$I$8*'B. PoF Summary Stats & Params'!$I$6*A29^('B. PoF Summary Stats & Params'!$I$6-1), IF('B. PoF Summary Stats & Params'!$C$12=\"W\", B29*(('B. PoF Summary Stats & Params'!$M$6/'B. PoF Summary Stats & Params'!$M$8)*((A29)/'B. PoF Summary Stats & Params'!$M$8)^('B. PoF Summary Stats & Params'!$M$6-1)), \"Choose Model\"))","v":1.4390612479206169E-3},{"$f":"IF('B. PoF Summary Stats & Params'!$C$12=\"C\", B29*'B. PoF Summary Stats & Params'!$I$8*'B. PoF Summary Stats & Params'!$I$12*A29^('B. PoF Summary Stats & Params'!$I$12-1), IF('B. PoF Summary Stats & Params'!$C$12=\"W\", B29*(('B. PoF Summary Stats & Params'!$M$12/'B. PoF Summary Stats & Params'!$O$12)*((A29)/'B. PoF Summary Stats & Params'!$O$12)^('B. PoF Summary Stats & Params'!$M$12-1)), \"Choose Model\"))","v":6.8985472903512692E-4}]
[26,1,{"$f":"IF('B. PoF Summary Stats & Params'!$C$12=\"C\", B30*'B. PoF Summary Stats & Params'!$I$8*'B. PoF Summary Stats & Params'!$I$10*A30^('B. PoF Summary Stats & Params'!$I$10-1), IF('B. PoF Summary Stats & Params'!$C$12=\"W\", B30*(('B. PoF Summary Stats & Params'!$M$14/'B. PoF Summary Stats & Params'!$O$14)*((A30)/'B. PoF Summary Stats & Params'!$O$14)^('B. PoF Summary Stats & Params'!$M$14-1)), \"Choose Model\"))","v":3.3644190049541096E-3},{"$f":"IF('B. PoF Summary Stats & Params'!$C$12=\"C\", B30*'B. PoF Summary Stats & Params'!$I$8*'B. PoF Summary Stats & Params'!$I$6*A30^('B. PoF Summary Stats & Params'!$I$6-1), IF('B. PoF Summary Stats & Params'!$C$12=\"W\", B30*(('B. PoF Summary Stats & Params'!$M$6/'B. PoF Summary Stats & Params'!$M$8)*((A30)/'B. PoF Summary Stats & Params'!$M$8)^('B. PoF Summary Stats & Params'!$M$6-1)), \"Choose Model\"))","v":1.6045513055950975E-3},{"$f":"IF('B. PoF Summary Stats & Params'!$C$12=\"C\", B30*'B. PoF Summary Stats & Params'!$I$8*'B. PoF Summary Stats & Params'!$I$12*A30^('B. PoF Summary Stats & Params'!$I$12-1), IF('B. PoF Summary Stats & Params'!$C$12=\"W\", B30*(('B. PoF Summary Stats & Params'!$M$12/'B. PoF Summary Stats & Params'!$O$12)*((A30)/'B. PoF Summary Stats & Params'!$O$12)^('B. PoF Summary Stats & Params'!$M$12-1)), \"Choose Model\"))","v":7.6285984336972796E-4}]
[27,1,{"$f":"IF('B. PoF Summary Stats & Params'!$C$12=\"C\", B31*'B. PoF Summary Stats & Params'!$I$8*'B. PoF Summary Stats & Params'!$I$10*A31^('B. PoF Summary Stats & Params'!$I$10-1), IF('B. PoF Summary Stats & Params'!$C$12=\"W\", B31*(('B. PoF Summary Stats & Params'!$M$14/'B. PoF Summary Stats & Params'!$O$14)*((A31)/'B. PoF Summary Stats & Params'!$O$14)^('B. PoF Summary Stats & Params'!$M$14-1)), \"Choose Model\"))","v":3.765753256189839E-3},{"$f":"IF('B. PoF Summary Stats & Params'!$C$12=\"C\", B31*'B. PoF Summary Stats & Params'!$I$8*'B. PoF Summary Stats & Params'!$I$6*A31^('B. PoF Summary Stats & Params'!$I$6-1), IF('B. PoF Summary Stats & Params'!$C$12=\"W\", B31*(('B. PoF Summary Stats & Params'!$M$6/'B. PoF Summary Stats & Params'!$M$8)*((A31)/'B. PoF Summary Stats & Params'!$M$8)^('B. PoF Summary Stats & Params'!$M$6-1)), \"Choose Model\"))","v":1.7817368792494306E-3},{"$f":"IF('B. PoF Summary Stats & Params'!$C$12=\"C\", B31*'B. PoF Summary Stats & Params'!$I$8*'B. PoF Summary Stats & Params'!$I$12*A31^('B. PoF Summary Stats & Params'!$I$12-1), IF('B. PoF Summary Stats & Params'!$C$12=\"W\", B31*(('B. PoF Summary Stats & Params'!$M$12/'B. PoF Summary Stats & Params'!$O$12)*((A31)/'B. PoF Summary Stats & Params'!$O$12)^('B. PoF Summary Stats & Params'!$M$12-1)), \"Choose Model\"))","v":8.4039390471015005E-4}]
[28,1,{"$f":"IF('B. PoF Summary Stats & Params'!$C$12=\"C\", B32*'B. PoF Summary Stats & Params'!$I$8*'B. PoF Summary Stats & Params'!$I$10*A32^('B. PoF Summary Stats & Params'!$I$10-1), IF('B. PoF Summary Stats & Params'!$C$12=\"W\", B32*(('B. PoF Summary Stats & Params'!$M$14/'B. PoF Summary Stats & Params'!$O$14)*((A32)/'B. PoF Summary Stats & Params'!$O$14)^('B. PoF Summary Stats & Params'!$M$14-1)), \"Choose Model\"))","v":4.1977207305463901E-3},{"$f":"IF('B. PoF Summary Stats & Params'!$C$12=\"C\", B32*'B. PoF Summary Stats & Params'!$I$8*'B. PoF Summary Stats & Params'!$I$6*A32^('B. PoF Summary Stats & Params'!$I$6-1), IF('B. PoF Summary Stats & Params'!$C$12=\"W\", B32*(('B. PoF Summary Stats & Params'!$M$6/'B. PoF Summary Stats & Params'!$M$8)*((A32)/'B. PoF Summary Stats & Params'!$M$8)^('B. PoF Summary Stats & Params'!$M$6-1)), \"Choose Model\"))","v":1.9709653005856669E-3},{"$f":"IF('B. PoF Summary Stats & Params'!$C$12=\"C\", B32*'B. PoF Summary Stats & Params'!$I$8*'B. PoF Summary Stats & Params'!$I$12*A32^('B. PoF Summary Stats & Params'!$I$12-1), IF('B. PoF Summary Stats & Params'!$C$12=\"W\", B32*(('B. PoF Summary Stats & Params'!$M$12/'B. PoF Summary Stats & Params'!$O$12)*((A32)/'B. PoF Summary Stats & Params'!$O$12)^('B. PoF Summary Stats & Params'!$M$12-1)), \"Choose Model\"))","v":9.225544973337263E-4}]
[29,1,{"$f":"IF('B. PoF Summary Stats & Params'!$C$12=\"C\", B33*'B. PoF Summary Stats & Params'!$I$8*'B. PoF Summary Stats & Params'!$I$10*A33^('B. PoF Summary Stats & Params'!$I$10-1), IF('B. PoF Summary Stats & Params'!$C$12=\"W\", B33*(('B. PoF Summary Stats & Params'!$M$14/'B. PoF Summary Stats & Params'!$O$14)*((A33)/'B. PoF Summary Stats & Params'!$O$14)^('B. PoF Summary Stats & Params'!$M$14-1)), \"Choose Model\"))","v":4.6614398250014533E-3},{"$f":"IF('B. PoF Summary Stats & Params'!$C$12=\"C\", B33*'B. PoF Summary Stats & Params'!$I$8*'B. PoF Summary Stats & Params'!$I$6*A33^('B. PoF Summary Stats & Params'!$I$6-1), IF('B. PoF Summary Stats & Params'!$C$12=\"W\", B33*(('B. PoF Summary Stats & Params'!$M$6/'B. PoF Summary Stats & Params'!$M$8)*((A33)/'B. PoF Summary Stats & Params'!$M$8)^('B. PoF Summary Stats & Params'!$M$6-1)), \"Choose Model\"))","v":2.1725810224717066E-3},{"$f":"IF('B. PoF Summary Stats & Params'!$C$12=\"C\", B33*'B. PoF Summary Stats & Params'!$I$8*'B. PoF Summary Stats & Params'!$I$12*A33^('B. PoF Summary Stats & Params'!$I$12-1), IF('B. PoF Summary Stats & Params'!$C$12=\"W\", B33*(('B. PoF Summary Stats & Params'!$M$12/'B. PoF Summary Stats & Params'!$O$12)*((A33)/'B. PoF Summary Stats & Params'!$O$12)^('B. PoF Summary Stats & Params'!$M$12-1)), \"Choose Model\"))","v":1.0094376442723626E-3}]
[30,1,{"$f":"IF('B. PoF Summary Stats & Params'!$C$12=\"C\", B34*'B. PoF Summary Stats & Params'!$I$8*'B. PoF Summary Stats & Params'!$I$10*A34^('B. PoF Summary Stats & Params'!$I$10-1), IF('B. PoF Summary Stats & Params'!$C$12=\"W\", B34*(('B. PoF Summary Stats & Params'!$M$14/'B. PoF Summary Stats & Params'!$O$14)*((A34)/'B. PoF Summary Stats & Params'!$O$14)^('B. PoF Summary Stats & Params'!$M$14-1)), \"Choose Model\"))","v":5.158028377233584E-3},{"$f":"IF('B. PoF Summary Stats & Params'!$C$12=\"C\", B34*'B. PoF Summary Stats & Params'!$I$8*'B. PoF Summary Stats & Params'!$I$6*A34^('B. PoF Summary Stats & Params'!$I$6-1), IF('B. PoF Summary Stats & Params'!$C$12=\"W\", B34*(('B. PoF Summary Stats & Params'!$M$6/'B. PoF Summary Stats & Params'!$M$8)*((A34)/'B. PoF Summary Stats & Params'!$M$8)^('B. PoF Summary Stats & Params'!$M$6-1)), \"Choose Model\"))","v":2.3869257444600004E-3},{"$f":"IF('B. PoF Summary Stats & Params'!$C$12=\"C\", B34*'B. PoF Summary Stats & Params'!$I$8*'B. PoF Summary Stats & Params'!$I$12*A34^('B. PoF Summary Stats & Params'!$I$12-1), IF('B. PoF Summary Stats & Params'!$C$12=\"W\", B34*(('B. PoF Summary Stats & Params'!$M$12/'B. PoF Summary Stats & Params'!$O$12)*((A34)/'B. PoF Summary Stats & Params'!$O$12)^('B. PoF Summary Stats & Params'!$M$12-1)), \"Choose Model\"))","v":1.1011378867946202E-3}]
[31,1,{"$f":"IF('B. PoF Summary Stats & Params'!$C$12=\"C\", B35*'B. PoF Summary Stats & Params'!$I$8*'B. PoF Summary Stats & Params'!$I$10*A35^('B. PoF Summary Stats & Params'!$I$10-1), IF('B. PoF Summary Stats & Params'!$C$12=\"W\", B35*(('B. PoF Summary Stats & Params'!$M$14/'B. PoF Summary Stats & Params'!$O$14)*((A35)/'B. PoF Summary Stats & Params'!$O$14)^('B. PoF Summary Stats & Params'!$M$14-1)), \"Choose Model\"))","v":5.6886036851895513E-3},{"$f":"IF('B. PoF Summary Stats & Params'!$C$12=\"C\", B35*'B. PoF Summary Stats & Params'!$I$8*'B. PoF Summary Stats & Params'!$I$6*A35^('B. PoF Summary Stats & Params'!$I$6-1), IF('B. PoF Summary Stats & Params'!$C$12=\"W\", B35*(('B. PoF Summary Stats & Params'!$M$6/'B. PoF Summary Stats & Params'!$M$8)*((A35)/'B. PoF Summary Stats & Params'!$M$8)^('B. PoF Summary Stats & Params'!$M$6-1)), \"Choose Model\"))","v":2.6143385287028462E-3},{"$f":"IF('B. PoF Summary Stats & Params'!$C$12=\"C\", B35*'B. PoF Summary Stats & Params'!$I$8*'B. PoF Summary Stats & Params'!$I$12*A35^('B. PoF Summary Stats & Params'!$I$12-1), IF('B. PoF Summary Stats & Params'!$C$12=\"W\", B35*(('B. PoF Summary Stats & Params'!$M$12/'B. PoF Summary Stats & Params'!$O$12)*((A35)/'B. PoF Summary Stats & Params'!$O$12)^('B. PoF Summary Stats & Params'!$M$12-1)), \"Choose Model\"))","v":1.1977483572549099E-3}]
[32,1,{"$f":"IF('B. PoF Summary Stats & Params'!$C$12=\"C\", B36*'B. PoF Summary Stats & Params'!$I$8*'B. PoF Summary Stats & Params'!$I$10*A36^('B. PoF Summary Stats & Params'!$I$10-1), IF('B. PoF Summary Stats & Params'!$C$12=\"W\", B36*(('B. PoF Summary Stats & Params'!$M$14/'B. PoF Summary Stats & Params'!$O$14)*((A36)/'B. PoF Summary Stats & Params'!$O$14)^('B. PoF Summary Stats & Params'!$M$14-1)), \"Choose Model\"))","v":6.2542825253368035E-3},{"$f":"IF('B. PoF Summary Stats & Params'!$C$12=\"C\", B36*'B. PoF Summary Stats & Params'!$I$8*'B. PoF Summary Stats & Params'!$I$6*A36^('B. PoF Summary Stats & Params'!$I$6-1), IF('B. PoF Summary Stats & Params'!$C$12=\"W\", B36*(('B. PoF Summary Stats & Params'!$M$6/'B. PoF Summary Stats & Params'!$M$8)*((A36)/'B. PoF Summary Stats & Params'!$M$8)^('B. PoF Summary Stats & Params'!$M$6-1)), \"Choose Model\"))","v":2.8551559072942313E-3},{"$f":"IF('B. PoF Summary Stats & Params'!$C$12=\"C\", B36*'B. PoF Summary Stats & Params'!$I$8*'B. PoF Summary Stats & Params'!$I$12*A36^('B. PoF Summary Stats & Params'!$I$12-1), IF('B. PoF Summary Stats & Params'!$C$12=\"W\", B36*(('B. PoF Summary Stats & Params'!$M$12/'B. PoF Summary Stats & Params'!$O$12)*((A36)/'B. PoF Summary Stats & Params'!$O$12)^('B. PoF Summary Stats & Params'!$M$12-1)), \"Choose Model\"))","v":1.2993608460649911E-3}]
[33,1,{"$f":"IF('B. PoF Summary Stats & Params'!$C$12=\"C\", B37*'B. PoF Summary Stats & Params'!$I$8*'B. PoF Summary Stats & Params'!$I$10*A37^('B. PoF Summary Stats & Params'!$I$10-1), IF('B. PoF Summary Stats & Params'!$C$12=\"W\", B37*(('B. PoF Summary Stats & Params'!$M$14/'B. PoF Summary Stats & Params'!$O$14)*((A37)/'B. PoF Summary Stats & Params'!$O$14)^('B. PoF Summary Stats & Params'!$M$14-1)), \"Choose Model\"))","v":6.8561811697291329E-3},{"$f":"IF('B. PoF Summary Stats & Params'!$C$12=\"C\", B37*'B. PoF Summary Stats & Params'!$I$8*'B. PoF Summary Stats & Params'!$I$6*A37^('B. PoF Summary Stats & Params'!$I$6-1), IF('B. PoF Summary Stats & Params'!$C$12=\"W\", B37*(('B. PoF Summary Stats & Params'!$M$6/'B. PoF Summary Stats & Params'!$M$8)*((A37)/'B. PoF Summary Stats & Params'!$M$8)^('B. PoF Summary Stats & Params'!$M$6-1)), \"Choose Model\"))","v":3.1097119819281606E-3},{"$f":"IF('B. PoF Summary Stats & Params'!$C$12=\"C\", B37*'B. PoF Summary Stats & Params'!$I$8*'B. PoF Summary Stats & Params'!$I$12*A37^('B. PoF Summary Stats & Params'!$I$12-1), IF('B. PoF Summary Stats & Params'!$C$12=\"W\", B37*(('B. PoF Summary Stats & Params'!$M$12/'B. PoF Summary Stats & Params'!$O$12)*((A37)/'B. PoF Summary Stats & Params'!$O$12)^('B. PoF Summary Stats & Params'!$M$12-1)), \"Choose Model\"))","v":1.4060658634355066E-3}]
[34,1,{"$f":"IF('B. PoF Summary Stats & Params'!$C$12=\"C\", B38*'B. PoF Summary Stats & Params'!$I$8*'B. PoF Summary Stats & Params'!$I$10*A38^('B. PoF Summary Stats & Params'!$I$10-1), IF('B. PoF Summary Stats & Params'!$C$12=\"W\", B38*(('B. PoF Summary Stats & Params'!$M$14/'B. PoF Summary Stats & Params'!$O$14)*((A38)/'B. PoF Summary Stats & Params'!$O$14)^('B. PoF Summary Stats & Params'!$M$14-1)), \"Choose Model\"))","v":7.4954154019973998E-3},{"$f":"IF('B. PoF Summary Stats & Params'!$C$12=\"C\", B38*'B. PoF Summary Stats & Params'!$I$8*'B. PoF Summary Stats & Params'!$I$6*A38^('B. PoF Summary Stats & Params'!$I$6-1), IF('B. PoF Summary Stats & Params'!$C$12=\"W\", B38*(('B. PoF Summary Stats & Params'!$M$6/'B. PoF Summary Stats & Params'!$M$8)*((A38)/'B. PoF Summary Stats & Params'!$M$8)^('B. PoF Summary Stats & Params'!$M$6-1)), \"Choose Model\"))","v":3.3783385166459893E-3},{"$f":"IF('B. PoF Summary Stats & Params'!$C$12=\"C\", B38*'B. PoF Summary Stats & Params'!$I$8*'B. PoF Summary Stats & Params'!$I$12*A38^('B. PoF Summary Stats & Params'!$I$12-1), IF('B. PoF Summary Stats & Params'!$C$12=\"W\", B38*(('B. PoF Summary Stats & Params'!$M$12/'B. PoF Summary Stats & Params'!$O$12)*((A38)/'B. PoF Summary Stats & Params'!$O$12)^('B. PoF Summary Stats & Params'!$M$12-1)), \"Choose Model\"))","v":1.5179526964459347E-3}]
[35,1,{"$f":"IF('B. PoF Summary Stats & Params'!$C$12=\"C\", B39*'B. PoF Summary Stats & Params'!$I$8*'B. PoF Summary Stats & Params'!$I$10*A39^('B. PoF Summary Stats & Params'!$I$10-1), IF('B. PoF Summary Stats & Params'!$C$12=\"W\", B39*(('B. PoF Summary Stats & Params'!$M$14/'B. PoF Summary Stats & Params'!$O$14)*((A39)/'B. PoF Summary Stats & Params'!$O$14)^('B. PoF Summary Stats & Params'!$M$14-1)), \"Choose Model\"))","v":8.1731005323636505E-3},{"$f":"IF('B. PoF Summary Stats & Params'!$C$12=\"C\", B39*'B. PoF Summary Stats & Params'!$I$8*'B. PoF Summary Stats & Params'!$I$6*A39^('B. PoF Summary Stats & Params'!$I$6-1), IF('B. PoF Summary Stats & Params'!$C$12=\"W\", B39*(('B. PoF Summary Stats & Params'!$M$6/'B. PoF Summary Stats & Params'!$M$8)*((A39)/'B. PoF Summary Stats & Params'!$M$8)^('B. PoF Summary Stats & Params'!$M$6-1)), \"Choose Model\"))","v":3.6613650243467115E-3},{"$f":"IF('B. PoF Summary Stats & Params'!$C$12=\"C\", B39*'B. PoF Summary Stats & Params'!$I$8*'B. PoF Summary Stats & Params'!$I$12*A39^('B. PoF Summary Stats & Params'!$I$12-1), IF('B. PoF Summary Stats & Params'!$C$12=\"W\", B39*(('B. PoF Summary Stats & Params'!$M$12/'B. PoF Summary Stats & Params'!$O$12)*((A39)/'B. PoF Summary Stats & Params'!$O$12)^('B. PoF Summary Stats & Params'!$M$12-1)), \"Choose Model\"))","v":1.635109461926674E-3}]
[36,1,{"$f":"IF('B. PoF Summary Stats & Params'!$C$12=\"C\", B40*'B. PoF Summary Stats & Params'!$I$8*'B. PoF Summary Stats & Params'!$I$10*A40^('B. PoF Summary Stats & Params'!$I$10-1), IF('B. PoF Summary Stats & Params'!$C$12=\"W\", B40*(('B. PoF Summary Stats & Params'!$M$14/'B. PoF Summary Stats & Params'!$O$14)*((A40)/'B. PoF Summary Stats & Params'!$O$14)^('B. PoF Summary Stats & Params'!$M$14-1)), \"Choose Model\"))","v":8.8903514117652047E-3},{"$f":"IF('B. PoF Summary Stats & Params'!$C$12=\"C\", B40*'B. PoF Summary Stats & Params'!$I$8*'B. PoF Summary Stats & Params'!$I$6*A40^('B. PoF Summary Stats & Params'!$I$6-1), IF('B. PoF Summary Stats & Params'!$C$12=\"W\", B40*(('B. PoF Summary Stats & Params'!$M$6/'B. PoF Summary Stats & Params'!$M$8)*((A40)/'B. PoF Summary Stats & Params'!$M$8)^('B. PoF Summary Stats & Params'!$M$6-1)), \"Choose Model\"))","v":3.9591188476504752E-3},{"$f":"IF('B. PoF Summary Stats & Params'!$C$12=\"C\", B40*'B. PoF Summary Stats & Params'!$I$8*'B. PoF Summary Stats & Params'!$I$12*A40^('B. PoF Summary Stats & Params'!$I$12-1), IF('B. PoF Summary Stats & Params'!$C$12=\"W\", B40*(('B. PoF Summary Stats & Params'!$M$12/'B. PoF Summary Stats & Params'!$O$12)*((A40)/'B. PoF Summary Stats & Params'!$O$12)^('B. PoF Summary Stats & Params'!$M$12-1)), \"Choose Model\"))","v":1.7576231555742269E-3}]
[37,1,{"$f":"IF('B. PoF Summary Stats & Params'!$C$12=\"C\", B41*'B. PoF Summary Stats & Params'!$I$8*'B. PoF Summary Stats & Params'!$I$10*A41^('B. PoF Summary Stats & Params'!$I$10-1), IF('B. PoF Summary Stats & Params'!$C$12=\"W\", B41*(('B. PoF Summary Stats & Params'!$M$14/'B. PoF Summary Stats & Params'!$O$14)*((A41)/'B. PoF Summary Stats & Params'!$O$14)^('B. PoF Summary Stats & Params'!$M$14-1)), \"Choose Model\"))","v":9.648282445165527E-3},{"$f":"IF('B. PoF Summary Stats & Params'!$C$12=\"C\", B41*'B. PoF Summary Stats & Params'!$I$8*'B. PoF Summary Stats & Params'!$I$6*A41^('B. PoF Summary Stats & Params'!$I$6-1), IF('B. PoF Summary Stats & Params'!$C$12=\"W\", B41*(('B. PoF Summary Stats & Params'!$M$6/'B. PoF Summary Stats & Params'!$M$8)*((A41)/'B. PoF Summary Stats & Params'!$M$8)^('B. PoF Summary Stats & Params'!$M$6-1)), \"Choose Model\"))","v":4.271925234634457E-3},{"$f":"IF('B. PoF Summary Stats & Params'!$C$12=\"C\", B41*'B. PoF Summary Stats & Params'!$I$8*'B. PoF Summary Stats & Params'!$I$12*A41^('B. PoF Summary Stats & Params'!$I$12-1), IF('B. PoF Summary Stats & Params'!$C$12=\"W\", B41*(('B. PoF Summary Stats & Params'!$M$12/'B. PoF Summary Stats & Params'!$O$12)*((A41)/'B. PoF Summary Stats & Params'!$O$12)^('B. PoF Summary Stats & Params'!$M$12-1)), \"Choose Model\"))","v":1.8855796976672749E-3}]
[38,1,{"$f":"IF('B. PoF Summary Stats & Params'!$C$12=\"C\", B42*'B. PoF Summary Stats & Params'!$I$8*'B. PoF Summary Stats & Params'!$I$10*A42^('B. PoF Summary Stats & Params'!$I$10-1), IF('B. PoF Summary Stats & Params'!$C$12=\"W\", B42*(('B. PoF Summary Stats & Params'!$M$14/'B. PoF Summary Stats & Params'!$O$14)*((A42)/'B. PoF Summary Stats & Params'!$O$14)^('B. PoF Summary Stats & Params'!$M$14-1)), \"Choose Model\"))","v":1.044800760411997E-2},{"$f":"IF('B. PoF Summary Stats & Params'!$C$12=\"C\", B42*'B. PoF Summary Stats & Params'!$I$8*'B. PoF Summary Stats & Params'!$I$6*A42^('B. PoF Summary Stats & Params'!$I$6-1), IF('B. PoF Summary Stats & Params'!$C$12=\"W\", B42*(('B. PoF Summary Stats & Params'!$M$6/'B. PoF Summary Stats & Params'!$M$8)*((A42)/'B. PoF Summary Stats & Params'!$M$8)^('B. PoF Summary Stats & Params'!$M$6-1)), \"Choose Model\"))","v":4.6001074098995067E-3},{"$f":"IF('B. PoF Summary Stats & Params'!$C$12=\"C\", B42*'B. PoF Summary Stats & Params'!$I$8*'B. PoF Summary Stats & Params'!$I$12*A42^('B. PoF Summary Stats & Params'!$I$12-1), IF('B. PoF Summary Stats & Params'!$C$12=\"W\", B42*(('B. PoF Summary Stats & Params'!$M$12/'B. PoF Summary Stats & Params'!$O$12)*((A42)/'B. PoF Summary Stats & Params'!$O$12)^('B. PoF Summary Stats & Params'!$M$12-1)), \"Choose Model\"))","v":2.0190639757064355E-3}]
[39,1,{"$f":"IF('B. PoF Summary Stats & Params'!$C$12=\"C\", B43*'B. PoF Summary Stats & Params'!$I$8*'B. PoF Summary Stats & Params'!$I$10*A43^('B. PoF Summary Stats & Params'!$I$10-1), IF('B. PoF Summary Stats & Params'!$C$12=\"W\", B43*(('B. PoF Summary Stats & Params'!$M$14/'B. PoF Summary Stats & Params'!$O$14)*((A43)/'B. PoF Summary Stats & Params'!$O$14)^('B. PoF Summary Stats & Params'!$M$14-1)), \"Choose Model\"))","v":1.1290640438657119E-2},{"$f":"IF('B. PoF Summary Stats & Params'!$C$12=\"C\", B43*'B. PoF Summary Stats & Params'!$I$8*'B. PoF Summary Stats & Params'!$I$6*A43^('B. PoF Summary Stats & Params'!$I$6-1), IF('B. PoF Summary Stats & Params'!$C$12=\"W\", B43*(('B. PoF Summary Stats & Params'!$M$6/'B. PoF Summary Stats & Params'!$M$8)*((A43)/'B. PoF Summary Stats & Params'!$M$8)^('B. PoF Summary Stats & Params'!$M$6-1)), \"Choose Model\"))","v":4.9439866413736331E-3},{"$f":"IF('B. PoF Summary Stats & Params'!$C$12=\"C\", B43*'B. PoF Summary Stats & Params'!$I$8*'B. PoF Summary Stats & Params'!$I$12*A43^('B. PoF Summary Stats & Params'!$I$12-1), IF('B. PoF Summary Stats & Params'!$C$12=\"W\", B43*(('B. PoF Summary Stats & Params'!$M$12/'B. PoF Summary Stats & Params'!$O$12)*((A43)/'B. PoF Summary Stats & Params'!$O$12)^('B. PoF Summary Stats & Params'!$M$12-1)), \"Choose Model\"))","v":2.1581598842619031E-3}]
[40,1,{"$f":"IF('B. PoF Summary Stats & Params'!$C$12=\"C\", B44*'B. PoF Summary Stats & Params'!$I$8*'B. PoF Summary Stats & Params'!$I$10*A44^('B. PoF Summary Stats & Params'!$I$10-1), IF('B. PoF Summary Stats & Params'!$C$12=\"W\", B44*(('B. PoF Summary Stats & Params'!$M$14/'B. PoF Summary Stats & Params'!$O$14)*((A44)/'B. PoF Summary Stats & Params'!$O$14)^('B. PoF Summary Stats & Params'!$M$14-1)), \"Choose Model\"))","v":1.2177294088530121E-2},{"$f":"IF('B. PoF Summary Stats & Params'!$C$12=\"C\", B44*'B. PoF Summary Stats & Params'!$I$8*'B. PoF Summary Stats & Params'!$I$6*A44^('B. PoF Summary Stats & Params'!$I$6-1), IF('B. PoF Summary Stats & Params'!$C$12=\"W\", B44*(('B. PoF Summary Stats & Params'!$M$6/'B. PoF Summary Stats & Params'!$M$8)*((A44)/'B. PoF Summary Stats & Params'!$M$8)^('B. PoF Summary Stats & Params'!$M$6-1)), \"Choose Model\"))","v":5.3038823032134043E-3},{"$f":"IF('B. PoF Summary Stats & Params'!$C$12=\"C\", B44*'B. PoF Summary Stats & Params'!$I$8*'B. PoF Summary Stats & Params'!$I$12*A44^('B. PoF Summary Stats & Params'!$I$12-1), IF('B. PoF Summary Stats & Params'!$C$12=\"W\", B44*(('B. PoF Summary Stats & Params'!$M$12/'B. PoF Summary Stats & Params'!$O$12)*((A44)/'B. PoF Summary Stats & Params'!$O$12)^('B. PoF Summary Stats & Params'!$M$12-1)), \"Choose Model\"))","v":2.3029503622801822E-3}]
[41,1,{"$f":"IF('B. PoF Summary Stats & Params'!$C$12=\"C\", B45*'B. PoF Summary Stats & Params'!$I$8*'B. PoF Summary Stats & Params'!$I$10*A45^('B. PoF Summary Stats & Params'!$I$10-1), IF('B. PoF Summary Stats & Params'!$C$12=\"W\", B45*(('B. PoF Summary Stats & Params'!$M$14/'B. PoF Summary Stats & Params'!$O$14)*((A45)/'B. PoF Summary Stats & Params'!$O$14)^('B. PoF Summary Stats & Params'!$M$14-1)), \"Choose Model\"))","v":1.310908129388672E-2},{"$f":"IF('B. PoF Summary Stats & Params'!$C$12=\"C\", B45*'B. PoF Summary Stats & Params'!$I$8*'B. PoF Summary Stats & Params'!$I$6*A45^('B. PoF Summary Stats & Params'!$I$6-1), IF('B. PoF Summary Stats & Params'!$C$12=\"W\", B45*(('B. PoF Summary Stats & Params'!$M$6/'B. PoF Summary Stats & Params'!$M$8)*((A45)/'B. PoF Summary Stats & Params'!$M$8)^('B. PoF Summary Stats & Params'!$M$6-1)), \"Choose Model\"))","v":5.6801119351251976E-3},{"$f":"IF('B. PoF Summary Stats & Params'!$C$12=\"C\", B45*'B. PoF Summary Stats & Params'!$I$8*'B. PoF Summary Stats & Params'!$I$12*A45^('B. PoF Summary Stats & Params'!$I$12-1), IF('B. PoF Summary Stats & Params'!$C$12=\"W\", B45*(('B. PoF Summary Stats & Params'!$M$12/'B. PoF Summary Stats & Params'!$O$12)*((A45)/'B. PoF Summary Stats & Params'!$O$12)^('B. PoF Summary Stats & Params'!$M$12-1)), \"Choose Model\"))","v":2.4535174280726942E-3}]
[42,1,{"$f":"IF('B. PoF Summary Stats & Params'!$C$12=\"C\", B46*'B. PoF Summary Stats & Params'!$I$8*'B. PoF Summary Stats & Params'!$I$10*A46^('B. PoF Summary Stats & Params'!$I$10-1), IF('B. PoF Summary Stats & Params'!$C$12=\"W\", B46*(('B. PoF Summary Stats & Params'!$M$14/'B. PoF Summary Stats & Params'!$O$14)*((A46)/'B. PoF Summary Stats & Params'!$O$14)^('B. PoF Summary Stats & Params'!$M$14-1)), \"Choose Model\"))","v":1.4087114405401719E-2},{"$f":"IF('B. PoF Summary Stats & Params'!$C$12=\"C\", B46*'B. PoF Summary Stats & Params'!$I$8*'B. PoF Summary Stats & Params'!$I$6*A46^('B. PoF Summary Stats & Params'!$I$6-1), IF('B. PoF Summary Stats & Params'!$C$12=\"W\", B46*(('B. PoF Summary Stats & Params'!$M$6/'B. PoF Summary Stats & Params'!$M$8)*((A46)/'B. PoF Summary Stats & Params'!$M$8)^('B. PoF Summary Stats & Params'!$M$6-1)), \"Choose Model\"))","v":6.0729912983944635E-3},{"$f":"IF('B. PoF Summary Stats & Params'!$C$12=\"C\", B46*'B. PoF Summary Stats & Params'!$I$8*'B. PoF Summary Stats & Params'!$I$12*A46^('B. PoF Summary Stats & Params'!$I$12-1), IF('B. PoF Summary Stats & Params'!$C$12=\"W\", B46*(('B. PoF Summary Stats & Params'!$M$12/'B. PoF Summary Stats & Params'!$O$12)*((A46)/'B. PoF Summary Stats & Params'!$O$12)^('B. PoF Summary Stats & Params'!$M$12-1)), \"Choose Model\"))","v":2.6099422121844264E-3}]
[43,1,{"$f":"IF('B. PoF Summary Stats & Params'!$C$12=\"C\", B47*'B. PoF Summary Stats & Params'!$I$8*'B. PoF Summary Stats & Params'!$I$10*A47^('B. PoF Summary Stats & Params'!$I$10-1), IF('B. PoF Summary Stats & Params'!$C$12=\"W\", B47*(('B. PoF Summary Stats & Params'!$M$14/'B. PoF Summary Stats & Params'!$O$14)*((A47)/'B. PoF Summary Stats & Params'!$O$14)^('B. PoF Summary Stats & Params'!$M$14-1)), \"Choose Model\"))","v":1.511250539391161E-2},{"$f":"IF('B. PoF Summary Stats & Params'!$C$12=\"C\", B47*'B. PoF Summary Stats & Params'!$I$8*'B. PoF Summary Stats & Params'!$I$6*A47^('B. PoF Summary Stats & Params'!$I$6-1), IF('B. PoF Summary Stats & Params'!$C$12=\"W\", B47*(('B. PoF Summary Stats & Params'!$M$6/'B. PoF Summary Stats & Params'!$M$8)*((A47)/'B. PoF Summary Stats & Params'!$M$8)^('B. PoF Summary Stats & Params'!$M$6-1)), \"Choose Model\"))","v":6.4828344288812914E-3},{"$f":"IF('B. PoF Summary Stats & Params'!$C$12=\"C\", B47*'B. PoF Summary Stats & Params'!$I$8*'B. PoF Summary Stats & Params'!$I$12*A47^('B. PoF Summary Stats & Params'!$I$12-1), IF('B. PoF Summary Stats & Params'!$C$12=\"W\", B47*(('B. PoF Summary Stats & Params'!$M$12/'B. PoF Summary Stats & Params'!$O$12)*((A47)/'B. PoF Summary Stats & Params'!$O$12)^('B. PoF Summary Stats & Params'!$M$12-1)), \"Choose Model\"))","v":2.7723049883194247E-3}]
[44,1,{"$f":"IF('B. PoF Summary Stats & Params'!$C$12=\"C\", B48*'B. PoF Summary Stats & Params'!$I$8*'B. PoF Summary Stats & Params'!$I$10*A48^('B. PoF Summary Stats & Params'!$I$10-1), IF('B. PoF Summary Stats & Params'!$C$12=\"W\", B48*(('B. PoF Summary Stats & Params'!$M$14/'B. PoF Summary Stats & Params'!$O$14)*((A48)/'B. PoF Summary Stats & Params'!$O$14)^('B. PoF Summary Stats & Params'!$M$14-1)), \"Choose Model\"))","v":1.6186365859586896E-2},{"$f":"IF('B. PoF Summary Stats & Params'!$C$12=\"C\", B48*'B. PoF Summary Stats & Params'!$I$8*'B. PoF Summary Stats & Params'!$I$6*A48^('B. PoF Summary Stats & Params'!$I$6-1), IF('B. PoF Summary Stats & Params'!$C$12=\"W\", B48*(('B. PoF Summary Stats & Params'!$M$6/'B. PoF Summary Stats & Params'!$M$8)*((A48)/'B. PoF Summary Stats & Params'!$M$8)^('B. PoF Summary Stats & Params'!$M$6-1)), \"Choose Model\"))","v":6.9099536872148605E-3},{"$f":"IF('B. PoF Summary Stats & Params'!$C$12=\"C\", B48*'B. PoF Summary Stats & Params'!$I$8*'B. PoF Summary Stats & Params'!$I$12*A48^('B. PoF Summary Stats & Params'!$I$12-1), IF('B. PoF Summary Stats & Params'!$C$12=\"W\", B48*(('B. PoF Summary Stats & Params'!$M$12/'B. PoF Summary Stats & Params'!$O$12)*((A48)/'B. PoF Summary Stats & Params'!$O$12)^('B. PoF Summary Stats & Params'!$M$12-1)), \"Choose Model\"))","v":2.9406852024814159E-3}]
[45,1,{"$f":"IF('B. PoF Summary Stats & Params'!$C$12=\"C\", B49*'B. PoF Summary Stats & Params'!$I$8*'B. PoF Summary Stats & Params'!$I$10*A49^('B. PoF Summary Stats & Params'!$I$10-1), IF('B. PoF Summary Stats & Params'!$C$12=\"W\", B49*(('B. PoF Summary Stats & Params'!$M$14/'B. PoF Summary Stats & Params'!$O$14)*((A49)/'B. PoF Summary Stats & Params'!$O$14)^('B. PoF Summary Stats & Params'!$M$14-1)), \"Choose Model\"))","v":1.7309807040674703E-2},{"$f":"IF('B. PoF Summary Stats & Params'!$C$12=\"C\", B49*'B. PoF Summary Stats & Params'!$I$8*'B. PoF Summary Stats & Params'!$I$6*A49^('B. PoF Summary Stats & Params'!$I$6-1), IF('B. PoF Summary Stats & Params'!$C$12=\"W\", B49*(('B. PoF Summary Stats & Params'!$M$6/'B. PoF Summary Stats & Params'!$M$8)*((A49)/'B. PoF Summary Stats & Params'!$M$8)^('B. PoF Summary Stats & Params'!$M$6-1)), \"Choose Model\"))","v":7.3546598063963554E-3},{"$f":"IF('B. PoF Summary Stats & Params'!$C$12=\"C\", B49*'B. PoF Summary Stats & Params'!$I$8*'B. PoF Summary Stats & Params'!$I$12*A49^('B. PoF Summary Stats & Params'!$I$12-1), IF('B. PoF Summary Stats & Params'!$C$12=\"W\", B49*(('B. PoF Summary Stats & Params'!$M$12/'B. PoF Summary Stats & Params'!$O$12)*((A49)/'B. PoF Summary Stats & Params'!$O$12)^('B. PoF Summary Stats & Params'!$M$12-1)), \"Choose Model\"))","v":3.1151615004714737E-3}]
[46,1,{"$f":"IF('B. PoF Summary Stats & Params'!$C$12=\"C\", B50*'B. PoF Summary Stats & Params'!$I$8*'B. PoF Summary Stats & Params'!$I$10*A50^('B. PoF Summary Stats & Params'!$I$10-1), IF('B. PoF Summary Stats & Params'!$C$12=\"W\", B50*(('B. PoF Summary Stats & Params'!$M$14/'B. PoF Summary Stats & Params'!$O$14)*((A50)/'B. PoF Summary Stats & Params'!$O$14)^('B. PoF Summary Stats & Params'!$M$14-1)), \"Choose Model\"))","v":1.8483939821841117E-2},{"$f":"IF('B. PoF Summary Stats & Params'!$C$12=\"C\", B50*'B. PoF Summary Stats & Params'!$I$8*'B. PoF Summary Stats & Params'!$I$6*A50^('B. PoF Summary Stats & Params'!$I$6-1), IF('B. PoF Summary Stats & Params'!$C$12=\"W\", B50*(('B. PoF Summary Stats & Params'!$M$6/'B. PoF Summary Stats & Params'!$M$8)*((A50)/'B. PoF Summary Stats & Params'!$M$8)^('B. PoF Summary Stats & Params'!$M$6-1)), \"Choose Model\"))","v":7.817261937000013E-3},{"$f":"IF('B. PoF Summary Stats & Params'!$C$12=\"C\", B50*'B. PoF Summary Stats & Params'!$I$8*'B. PoF Summary Stats & Params'!$I$12*A50^('B. PoF Summary Stats & Params'!$I$12-1), IF('B. PoF Summary Stats & Params'!$C$12=\"W\", B50*(('B. PoF Summary Stats & Params'!$M$12/'B. PoF Summary Stats & Params'!$O$12)*((A50)/'B. PoF Summary Stats & Params'!$O$12)^('B. PoF Summary Stats & Params'!$M$12-1)), \"Choose Model\"))","v":3.295811753870519E-3}]
[47,1,{"$f":"IF('B. PoF Summary Stats & Params'!$C$12=\"C\", B51*'B. PoF Summary Stats & Params'!$I$8*'B. PoF Summary Stats & Params'!$I$10*A51^('B. PoF Summary Stats & Params'!$I$10-1), IF('B. PoF Summary Stats & Params'!$C$12=\"W\", B51*(('B. PoF Summary Stats & Params'!$M$14/'B. PoF Summary Stats & Params'!$O$14)*((A51)/'B. PoF Summary Stats & Params'!$O$14)^('B. PoF Summary Stats & Params'!$M$14-1)), \"Choose Model\"))","v":1.9709874742139876E-2},{"$f":"IF('B. PoF Summary Stats & Params'!$C$12=\"C\", B51*'B. PoF Summary Stats & Params'!$I$8*'B. PoF Summary Stats & Params'!$I$6*A51^('B. PoF Summary Stats & Params'!$I$6-1), IF('B. PoF Summary Stats & Params'!$C$12=\"W\", B51*(('B. PoF Summary Stats & Params'!$M$6/'B. PoF Summary Stats & Params'!$M$8)*((A51)/'B. PoF Summary Stats & Params'!$M$8)^('B. PoF Summary Stats & Params'!$M$6-1)), \"Choose Model\"))","v":8.2980676901440106E-3},{"$f":"IF('B. PoF Summary Stats & Params'!$C$12=\"C\", B51*'B. PoF Summary Stats & Params'!$I$8*'B. PoF Summary Stats & Params'!$I$12*A51^('B. PoF Summary Stats & Params'!$I$12-1), IF('B. PoF Summary Stats & Params'!$C$12=\"W\", B51*(('B. PoF Summary Stats & Params'!$M$12/'B. PoF Summary Stats & Params'!$O$12)*((A51)/'B. PoF Summary Stats & Params'!$O$12)^('B. PoF Summary Stats & Params'!$M$12-1)), \"Choose Model\"))","v":3.4827130846217923E-3}]
[48,1,{"$f":"IF('B. PoF Summary Stats & Params'!$C$12=\"C\", B52*'B. PoF Summary Stats & Params'!$I$8*'B. PoF Summary Stats & Params'!$I$10*A52^('B. PoF Summary Stats & Params'!$I$10-1), IF('B. PoF Summary Stats & Params'!$C$12=\"W\", B52*(('B. PoF Summary Stats & Params'!$M$14/'B. PoF Summary Stats & Params'!$O$14)*((A52)/'B. PoF Summary Stats & Params'!$O$14)^('B. PoF Summary Stats & Params'!$M$14-1)), \"Choose Model\"))","v":2.0988722002632201E-2},{"$f":"IF('B. PoF Summary Stats & Params'!$C$12=\"C\", B52*'B. PoF Summary Stats & Params'!$I$8*'B. PoF Summary Stats & Params'!$I$6*A52^('B. PoF Summary Stats & Params'!$I$6-1), IF('B. PoF Summary Stats & Params'!$C$12=\"W\", B52*(('B. PoF Summary Stats & Params'!$M$6/'B. PoF Summary Stats & Params'!$M$8)*((A52)/'B. PoF Summary Stats & Params'!$M$8)^('B. PoF Summary Stats & Params'!$M$6-1)), \"Choose Model\"))","v":8.7973831783873021E-3},{"$f":"IF('B. PoF Summary Stats & Params'!$C$12=\"C\", B52*'B. PoF Summary Stats & Params'!$I$8*'B. PoF Summary Stats & Params'!$I$12*A52^('B. PoF Summary Stats & Params'!$I$12-1), IF('B. PoF Summary Stats & Params'!$C$12=\"W\", B52*(('B. PoF Summary Stats & Params'!$M$12/'B. PoF Summary Stats & Params'!$O$12)*((A52)/'B. PoF Summary Stats & Params'!$O$12)^('B. PoF Summary Stats & Params'!$M$12-1)), \"Choose Model\"))","v":3.6759418883174455E-3}]
[49,1,{"$f":"IF('B. PoF Summary Stats & Params'!$C$12=\"C\", B53*'B. PoF Summary Stats & Params'!$I$8*'B. PoF Summary Stats & Params'!$I$10*A53^('B. PoF Summary Stats & Params'!$I$10-1), IF('B. PoF Summary Stats & Params'!$C$12=\"W\", B53*(('B. PoF Summary Stats & Params'!$M$14/'B. PoF Summary Stats & Params'!$O$14)*((A53)/'B. PoF Summary Stats & Params'!$O$14)^('B. PoF Summary Stats & Params'!$M$14-1)), \"Choose Model\"))","v":2.2321591473679958E-2},{"$f":"IF('B. PoF Summary Stats & Params'!$C$12=\"C\", B53*'B. PoF Summary Stats & Params'!$I$8*'B. PoF Summary Stats & Params'!$I$6*A53^('B. PoF Summary Stats & Params'!$I$6-1), IF('B. PoF Summary Stats & Params'!$C$12=\"W\", B53*(('B. PoF Summary Stats & Params'!$M$6/'B. PoF Summary Stats & Params'!$M$8)*((A53)/'B. PoF Summary Stats & Params'!$M$8)^('B. PoF Summary Stats & Params'!$M$6-1)), \"Choose Model\"))","v":9.3155130546944565E-3},{"$f":"IF('B. PoF Summary Stats & Params'!$C$12=\"C\", B53*'B. PoF Summary Stats & Params'!$I$8*'B. PoF Summary Stats & Params'!$I$12*A53^('B. PoF Summary Stats & Params'!$I$12-1), IF('B. PoF Summary Stats & Params'!$C$12=\"W\", B53*(('B. PoF Summary Stats & Params'!$M$12/'B. PoF Summary Stats & Params'!$O$12)*((A53)/'B. PoF Summary Stats & Params'!$O$12)^('B. PoF Summary Stats & Params'!$M$12-1)), \"Choose Model\"))","v":3.8755738562835894E-3}]
[50,1,{"$f":"IF('B. PoF Summary Stats & Params'!$C$12=\"C\", B54*'B. PoF Summary Stats & Params'!$I$8*'B. PoF Summary Stats & Params'!$I$10*A54^('B. PoF Summary Stats & Params'!$I$10-1), IF('B. PoF Summary Stats & Params'!$C$12=\"W\", B54*(('B. PoF Summary Stats & Params'!$M$14/'B. PoF Summary Stats & Params'!$O$14)*((A54)/'B. PoF Summary Stats & Params'!$O$14)^('B. PoF Summary Stats & Params'!$M$14-1)), \"Choose Model\"))","v":2.3709592701932677E-2},{"$f":"IF('B. PoF Summary Stats & Params'!$C$12=\"C\", B54*'B. PoF Summary Stats & Params'!$I$8*'B. PoF Summary Stats & Params'!$I$6*A54^('B. PoF Summary Stats & Params'!$I$6-1), IF('B. PoF Summary Stats & Params'!$C$12=\"W\", B54*(('B. PoF Summary Stats & Params'!$M$6/'B. PoF Summary Stats & Params'!$M$8)*((A54)/'B. PoF Summary Stats & Params'!$M$8)^('B. PoF Summary Stats & Params'!$M$6-1)), \"Choose Model\"))","v":9.8527605495980115E-3},{"$f":"IF('B. PoF Summary Stats & Params'!$C$12=\"C\", B54*'B. PoF Summary Stats & Params'!$I$8*'B. PoF Summary Stats & Params'!$I$12*A54^('B. PoF Summary Stats & Params'!$I$12-1), IF('B. PoF Summary Stats & Params'!$C$12=\"W\", B54*(('B. PoF Summary Stats & Params'!$M$12/'B. PoF Summary Stats & Params'!$O$12)*((A54)/'B. PoF Summary Stats & Params'!$O$12)^('B. PoF Summary Stats & Params'!$M$12-1)), \"Choose Model\"))","v":4.0816839965494445E-3}]
[51,1,{"$f":"IF('B. PoF Summary Stats & Params'!$C$12=\"C\", B55*'B. PoF Summary Stats & Params'!$I$8*'B. PoF Summary Stats & Params'!$I$10*A55^('B. PoF Summary Stats & Params'!$I$10-1), IF('B. PoF Summary Stats & Params'!$C$12=\"W\", B55*(('B. PoF Summary Stats & Params'!$M$14/'B. PoF Summary Stats & Params'!$O$14)*((A55)/'B. PoF Summary Stats & Params'!$O$14)^('B. PoF Summary Stats & Params'!$M$14-1)), \"Choose Model\"))","v":2.5153834917027384E-2},{"$f":"IF('B. PoF Summary Stats & Params'!$C$12=\"C\", B55*'B. PoF Summary Stats & Params'!$I$8*'B. PoF Summary Stats & Params'!$I$6*A55^('B. PoF Summary Stats & Params'!$I$6-1), IF('B. PoF Summary Stats & Params'!$C$12=\"W\", B55*(('B. PoF Summary Stats & Params'!$M$6/'B. PoF Summary Stats & Params'!$M$8)*((A55)/'B. PoF Summary Stats & Params'!$M$8)^('B. PoF Summary Stats & Params'!$M$6-1)), \"Choose Model\"))","v":1.0409427506676805E-2},{"$f":"IF('B. PoF Summary Stats & Params'!$C$12=\"C\", B55*'B. PoF Summary Stats & Params'!$I$8*'B. PoF Summary Stats & Params'!$I$12*A55^('B. PoF Summary Stats & Params'!$I$12-1), IF('B. PoF Summary Stats & Params'!$C$12=\"W\", B55*(('B. PoF Summary Stats & Params'!$M$12/'B. PoF Summary Stats & Params'!$O$12)*((A55)/'B. PoF Summary Stats & Params'!$O$12)^('B. PoF Summary Stats & Params'!$M$12-1)), \"Choose Model\"))","v":4.2943466537785219E-3}]
[52,1,{"$f":"IF('B. PoF Summary Stats & Params'!$C$12=\"C\", B56*'B. PoF Summary Stats & Params'!$I$8*'B. PoF Summary Stats & Params'!$I$10*A56^('B. PoF Summary Stats & Params'!$I$10-1), IF('B. PoF Summary Stats & Params'!$C$12=\"W\", B56*(('B. PoF Summary Stats & Params'!$M$14/'B. PoF Summary Stats & Params'!$O$14)*((A56)/'B. PoF Summary Stats & Params'!$O$14)^('B. PoF Summary Stats & Params'!$M$14-1)), \"Choose Model\"))","v":2.6655427038018424E-2},{"$f":"IF('B. PoF Summary Stats & Params'!$C$12=\"C\", B56*'B. PoF Summary Stats & Params'!$I$8*'B. PoF Summary Stats & Params'!$I$6*A56^('B. PoF Summary Stats & Params'!$I$6-1), IF('B. PoF Summary Stats & Params'!$C$12=\"W\", B56*(('B. PoF Summary Stats & Params'!$M$6/'B. PoF Summary Stats & Params'!$M$8)*((A56)/'B. PoF Summary Stats & Params'!$M$8)^('B. PoF Summary Stats & Params'!$M$6-1)), \"Choose Model\"))","v":1.0985814416458704E-2},{"$f":"IF('B. PoF Summary Stats & Params'!$C$12=\"C\", B56*'B. PoF Summary Stats & Params'!$I$8*'B. PoF Summary Stats & Params'!$I$12*A56^('B. PoF Summary Stats & Params'!$I$12-1), IF('B. PoF Summary Stats & Params'!$C$12=\"W\", B56*(('B. PoF Summary Stats & Params'!$M$12/'B. PoF Summary Stats & Params'!$O$12)*((A56)/'B. PoF Summary Stats & Params'!$O$12)^('B. PoF Summary Stats & Params'!$M$12-1)), \"Choose Model\"))","v":4.5136355282329064E-3}]
[53,1,{"$f":"IF('B. PoF Summary Stats & Params'!$C$12=\"C\", B57*'B. PoF Summary Stats & Params'!$I$8*'B. PoF Summary Stats & Params'!$I$10*A57^('B. PoF Summary Stats & Params'!$I$10-1), IF('B. PoF Summary Stats & Params'!$C$12=\"W\", B57*(('B. PoF Summary Stats & Params'!$M$14/'B. PoF Summary Stats & Params'!$O$14)*((A57)/'B. PoF Summary Stats & Params'!$O$14)^('B. PoF Summary Stats & Params'!$M$14-1)), \"Choose Model\"))","v":2.8215477679553329E-2},{"$f":"IF('B. PoF Summary Stats & Params'!$C$12=\"C\", B57*'B. PoF Summary Stats & Params'!$I$8*'B. PoF Summary Stats & Params'!$I$6*A57^('B. PoF Summary Stats & Params'!$I$6-1), IF('B. PoF Summary Stats & Params'!$C$12=\"W\", B57*(('B. PoF Summary Stats & Params'!$M$6/'B. PoF Summary Stats & Params'!$M$8)*((A57)/'B. PoF Summary Stats & Params'!$M$8)^('B. PoF Summary Stats & Params'!$M$6-1)), \"Choose Model\"))","v":1.1582220448847163E-2},{"$f":"IF('B. PoF Summary Stats & Params'!$C$12=\"C\", B57*'B. PoF Summary Stats & Params'!$I$8*'B. PoF Summary Stats & Params'!$I$12*A57^('B. PoF Summary Stats & Params'!$I$12-1), IF('B. PoF Summary Stats & Params'!$C$12=\"W\", B57*(('B. PoF Summary Stats & Params'!$M$12/'B. PoF Summary Stats & Params'!$O$12)*((A57)/'B. PoF Summary Stats & Params'!$O$12)^('B. PoF Summary Stats & Params'!$M$12-1)), \"Choose Model\"))","v":4.7396236938354458E-3}]
[54,1,{"$f":"IF('B. PoF Summary Stats & Params'!$C$12=\"C\", B58*'B. PoF Summary Stats & Params'!$I$8*'B. PoF Summary Stats & Params'!$I$10*A58^('B. PoF Summary Stats & Params'!$I$10-1), IF('B. PoF Summary Stats & Params'!$C$12=\"W\", B58*(('B. PoF Summary Stats & Params'!$M$14/'B. PoF Summary Stats & Params'!$O$14)*((A58)/'B. PoF Summary Stats & Params'!$O$14)^('B. PoF Summary Stats & Params'!$M$14-1)), \"Choose Model\"))","v":2.983509515780949E-2},{"$f":"IF('B. PoF Summary Stats & Params'!$C$12=\"C\", B58*'B. PoF Summary Stats & Params'!$I$8*'B. PoF Summary Stats & Params'!$I$6*A58^('B. PoF Summary Stats & Params'!$I$6-1), IF('B. PoF Summary Stats & Params'!$C$12=\"W\", B58*(('B. PoF Summary Stats & Params'!$M$6/'B. PoF Summary Stats & Params'!$M$8)*((A58)/'B. PoF Summary Stats & Params'!$M$8)^('B. PoF Summary Stats & Params'!$M$6-1)), \"Choose Model\"))","v":1.2198943484162986E-2},{"$f":"IF('B. PoF Summary Stats & Params'!$C$12=\"C\", B58*'B. PoF Summary Stats & Params'!$I$8*'B. PoF Summary Stats & Params'!$I$12*A58^('B. PoF Summary Stats & Params'!$I$12-1), IF('B. PoF Summary Stats & Params'!$C$12=\"W\", B58*(('B. PoF Summary Stats & Params'!$M$12/'B. PoF Summary Stats & Params'!$O$12)*((A58)/'B. PoF Summary Stats & Params'!$O$12)^('B. PoF Summary Stats & Params'!$M$12-1)), \"Choose Model\"))","v":4.9723836153893397E-3}]
[55,1,{"$f":"IF('B. PoF Summary Stats & Params'!$C$12=\"C\", B59*'B. PoF Summary Stats & Params'!$I$8*'B. PoF Summary Stats & Params'!$I$10*A59^('B. PoF Summary Stats & Params'!$I$10-1), IF('B. PoF Summary Stats & Params'!$C$12=\"W\", B59*(('B. PoF Summary Stats & Params'!$M$14/'B. PoF Summary Stats & Params'!$O$14)*((A59)/'B. PoF Summary Stats & Params'!$O$14)^('B. PoF Summary Stats & Params'!$M$14-1)), \"Choose Model\"))","v":3.1515387496205041E-2},{"$f":"IF('B. PoF Summary Stats & Params'!$C$12=\"C\", B59*'B. PoF Summary Stats & Params'!$I$8*'B. PoF Summary Stats & Params'!$I$6*A59^('B. PoF Summary Stats & Params'!$I$6-1), IF('B. PoF Summary Stats & Params'!$C$12=\"W\", B59*(('B. PoF Summary Stats & Params'!$M$6/'B. PoF Summary Stats & Params'!$M$8)*((A59)/'B. PoF Summary Stats & Params'!$M$8)^('B. PoF Summary Stats & Params'!$M$6-1)), \"Choose Model\"))","v":1.2836280142885471E-2},{"$f":"IF('B. PoF Summary Stats & Params'!$C$12=\"C\", B59*'B. PoF Summary Stats & Params'!$I$8*'B. PoF Summary Stats & Params'!$I$12*A59^('B. PoF Summary Stats & Params'!$I$12-1), IF('B. PoF Summary Stats & Params'!$C$12=\"W\", B59*(('B. PoF Summary Stats & Params'!$M$12/'B. PoF Summary Stats & Params'!$O$12)*((A59)/'B. PoF Summary Stats & Params'!$O$12)^('B. PoF Summary Stats & Params'!$M$12-1)), \"Choose Model\"))","v":5.211987165009444E-3}]
[56,1,{"$f":"IF('B. PoF Summary Stats & Params'!$C$12=\"C\", B60*'B. PoF Summary Stats & Params'!$I$8*'B. PoF Summary Stats & Params'!$I$10*A60^('B. PoF Summary Stats & Params'!$I$10-1), IF('B. PoF Summary Stats & Params'!$C$12=\"W\", B60*(('B. PoF Summary Stats & Params'!$M$14/'B. PoF Summary Stats & Params'!$O$14)*((A60)/'B. PoF Summary Stats & Params'!$O$14)^('B. PoF Summary Stats & Params'!$M$14-1)), \"Choose Model\"))","v":3.3257462430896868E-2},{"$f":"IF('B. PoF Summary Stats & Params'!$C$12=\"C\", B60*'B. PoF Summary Stats & Params'!$I$8*'B. PoF Summary Stats & Params'!$I$6*A60^('B. PoF Summary Stats & Params'!$I$6-1), IF('B. PoF Summary Stats & Params'!$C$12=\"W\", B60*(('B. PoF Summary Stats & Params'!$M$6/'B. PoF Summary Stats & Params'!$M$8)*((A60)/'B. PoF Summary Stats & Params'!$M$8)^('B. PoF Summary Stats & Params'!$M$6-1)), \"Choose Model\"))","v":1.349452581417041E-2},{"$f":"IF('B. PoF Summary Stats & Params'!$C$12=\"C\", B60*'B. PoF Summary Stats & Params'!$I$8*'B. PoF Summary Stats & Params'!$I$12*A60^('B. PoF Summary Stats & Params'!$I$12-1), IF('B. PoF Summary Stats & Params'!$C$12=\"W\", B60*(('B. PoF Summary Stats & Params'!$M$12/'B. PoF Summary Stats & Params'!$O$12)*((A60)/'B. PoF Summary Stats & Params'!$O$12)^('B. PoF Summary Stats & Params'!$M$12-1)), \"Choose Model\"))","v":5.4585056378152986E-3}]
[57,1,{"$f":"IF('B. PoF Summary Stats & Params'!$C$12=\"C\", B61*'B. PoF Summary Stats & Params'!$I$8*'B. PoF Summary Stats & Params'!$I$10*A61^('B. PoF Summary Stats & Params'!$I$10-1), IF('B. PoF Summary Stats & Params'!$C$12=\"W\", B61*(('B. PoF Summary Stats & Params'!$M$14/'B. PoF Summary Stats & Params'!$O$14)*((A61)/'B. PoF Summary Stats & Params'!$O$14)^('B. PoF Summary Stats & Params'!$M$14-1)), \"Choose Model\"))","v":3.5062427416077138E-2},{"$f":"IF('B. PoF Summary Stats & Params'!$C$12=\"C\", B61*'B. PoF Summary Stats & Params'!$I$8*'B. PoF Summary Stats & Params'!$I$6*A61^('B. PoF Summary Stats & Params'!$I$6-1), IF('B. PoF Summary Stats & Params'!$C$12=\"W\", B61*(('B. PoF Summary Stats & Params'!$M$6/'B. PoF Summary Stats & Params'!$M$8)*((A61)/'B. PoF Summary Stats & Params'!$M$8)^('B. PoF Summary Stats & Params'!$M$6-1)), \"Choose Model\"))","v":1.4173974683216585E-2},{"$f":"IF('B. PoF Summary Stats & Params'!$C$12=\"C\", B61*'B. PoF Summary Stats & Params'!$I$8*'B. PoF Summary Stats & Params'!$I$12*A61^('B. PoF Summary Stats & Params'!$I$12-1), IF('B. PoF Summary Stats & Params'!$C$12=\"W\", B61*(('B. PoF Summary Stats & Params'!$M$12/'B. PoF Summary Stats & Params'!$O$12)*((A61)/'B. PoF Summary Stats & Params'!$O$12)^('B. PoF Summary Stats & Params'!$M$12-1)), \"Choose Model\"))","v":5.7120097669318397E-3}]
[58,1,{"$f":"IF('B. PoF Summary Stats & Params'!$C$12=\"C\", B62*'B. PoF Summary Stats & Params'!$I$8*'B. PoF Summary Stats & Params'!$I$10*A62^('B. PoF Summary Stats & Params'!$I$10-1), IF('B. PoF Summary Stats & Params'!$C$12=\"W\", B62*(('B. PoF Summary Stats & Params'!$M$14/'B. PoF Summary Stats & Params'!$O$14)*((A62)/'B. PoF Summary Stats & Params'!$O$14)^('B. PoF Summary Stats & Params'!$M$14-1)), \"Choose Model\"))","v":3.6931389629079325E-2},{"$f":"IF('B. PoF Summary Stats & Params'!$C$12=\"C\", B62*'B. PoF Summary Stats & Params'!$I$8*'B. PoF Summary Stats & Params'!$I$6*A62^('B. PoF Summary Stats & Params'!$I$6-1), IF('B. PoF Summary Stats & Params'!$C$12=\"W\", B62*(('B. PoF Summary Stats & Params'!$M$6/'B. PoF Summary Stats & Params'!$M$8)*((A62)/'B. PoF Summary Stats & Params'!$M$8)^('B. PoF Summary Stats & Params'!$M$6-1)), \"Choose Model\"))","v":1.487491975754694E-2},{"$f":"IF('B. PoF Summary Stats & Params'!$C$12=\"C\", B62*'B. PoF Summary Stats & Params'!$I$8*'B. PoF Summary Stats & Params'!$I$12*A62^('B. PoF Summary Stats & Params'!$I$12-1), IF('B. PoF Summary Stats & Params'!$C$12=\"W\", B62*(('B. PoF Summary Stats & Params'!$M$12/'B. PoF Summary Stats & Params'!$O$12)*((A62)/'B. PoF Summary Stats & Params'!$O$12)^('B. PoF Summary Stats & Params'!$M$12-1)), \"Choose Model\"))","v":5.9725697378400873E-3}]
[59,1,{"$f":"IF('B. PoF Summary Stats & Params'!$C$12=\"C\", B63*'B. PoF Summary Stats & Params'!$I$8*'B. PoF Summary Stats & Params'!$I$10*A63^('B. PoF Summary Stats & Params'!$I$10-1), IF('B. PoF Summary Stats & Params'!$C$12=\"W\", B63*(('B. PoF Summary Stats & Params'!$M$14/'B. PoF Summary Stats & Params'!$O$14)*((A63)/'B. PoF Summary Stats & Params'!$O$14)^('B. PoF Summary Stats & Params'!$M$14-1)), \"Choose Model\"))","v":3.8865455975303796E-2},{"$f":"IF('B. PoF Summary Stats & Params'!$C$12=\"C\", B63*'B. PoF Summary Stats & Params'!$I$8*'B. PoF Summary Stats & Params'!$I$6*A63^('B. PoF Summary Stats & Params'!$I$6-1), IF('B. PoF Summary Stats & Params'!$C$12=\"W\", B63*(('B. PoF Summary Stats & Params'!$M$6/'B. PoF Summary Stats & Params'!$M$8)*((A63)/'B. PoF Summary Stats & Params'!$M$8)^('B. PoF Summary Stats & Params'!$M$6-1)), \"Choose Model\"))","v":1.5597652892265765E-2},{"$f":"IF('B. PoF Summary Stats & Params'!$C$12=\"C\", B63*'B. PoF Summary Stats & Params'!$I$8*'B. PoF Summary Stats & Params'!$I$12*A63^('B. PoF Summary Stats & Params'!$I$12-1), IF('B. PoF Summary Stats & Params'!$C$12=\"W\", B63*(('B. PoF Summary Stats & Params'!$M$12/'B. PoF Summary Stats & Params'!$O$12)*((A63)/'B. PoF Summary Stats & Params'!$O$12)^('B. PoF Summary Stats & Params'!$M$12-1)), \"Choose Model\"))","v":6.2402552021168876E-3}]
[60,1,{"$f":"IF('B. PoF Summary Stats & Params'!$C$12=\"C\", B64*'B. PoF Summary Stats & Params'!$I$8*'B. PoF Summary Stats & Params'!$I$10*A64^('B. PoF Summary Stats & Params'!$I$10-1), IF('B. PoF Summary Stats & Params'!$C$12=\"W\", B64*(('B. PoF Summary Stats & Params'!$M$14/'B. PoF Summary Stats & Params'!$O$14)*((A64)/'B. PoF Summary Stats & Params'!$O$14)^('B. PoF Summary Stats & Params'!$M$14-1)), \"Choose Model\"))","v":4.0865733092972388E-2},{"$f":"IF('B. PoF Summary Stats & Params'!$C$12=\"C\", B64*'B. PoF Summary Stats & Params'!$I$8*'B. PoF Summary Stats & Params'!$I$6*A64^('B. PoF Summary Stats & Params'!$I$6-1), IF('B. PoF Summary Stats & Params'!$C$12=\"W\", B64*(('B. PoF Summary Stats & Params'!$M$6/'B. PoF Summary Stats & Params'!$M$8)*((A64)/'B. PoF Summary Stats & Params'!$M$8)^('B. PoF Summary Stats & Params'!$M$6-1)), \"Choose Model\"))","v":1.6342464814348659E-2},{"$f":"IF('B. PoF Summary Stats & Params'!$C$12=\"C\", B64*'B. PoF Summary Stats & Params'!$I$8*'B. PoF Summary Stats & Params'!$I$12*A64^('B. PoF Summary Stats & Params'!$I$12-1), IF('B. PoF Summary Stats & Params'!$C$12=\"W\", B64*(('B. PoF Summary Stats & Params'!$M$12/'B. PoF Summary Stats & Params'!$O$12)*((A64)/'B. PoF Summary Stats & Params'!$O$12)^('B. PoF Summary Stats & Params'!$M$12-1)), \"Choose Model\"))","v":6.515135290599737E-3}]
[61,1,{"$f":"IF('B. PoF Summary Stats & Params'!$C$12=\"C\", B65*'B. PoF Summary Stats & Params'!$I$8*'B. PoF Summary Stats & Params'!$I$10*A65^('B. PoF Summary Stats & Params'!$I$10-1), IF('B. PoF Summary Stats & Params'!$C$12=\"W\", B65*(('B. PoF Summary Stats & Params'!$M$14/'B. PoF Summary Stats & Params'!$O$14)*((A65)/'B. PoF Summary Stats & Params'!$O$14)^('B. PoF Summary Stats & Params'!$M$14-1)), \"Choose Model\"))","v":4.293332735772052E-2},{"$f":"IF('B. PoF Summary Stats & Params'!$C$12=\"C\", B65*'B. PoF Summary Stats & Params'!$I$8*'B. PoF Summary Stats & Params'!$I$6*A65^('B. PoF Summary Stats & Params'!$I$6-1), IF('B. PoF Summary Stats & Params'!$C$12=\"W\", B65*(('B. PoF Summary Stats & Params'!$M$6/'B. PoF Summary Stats & Params'!$M$8)*((A65)/'B. PoF Summary Stats & Params'!$M$8)^('B. PoF Summary Stats & Params'!$M$6-1)), \"Choose Model\"))","v":1.7109645146018197E-2},{"$f":"IF('B. PoF Summary Stats & Params'!$C$12=\"C\", B65*'B. PoF Summary Stats & Params'!$I$8*'B. PoF Summary Stats & Params'!$I$12*A65^('B. PoF Summary Stats & Params'!$I$12-1), IF('B. PoF Summary Stats & Params'!$C$12=\"W\", B65*(('B. PoF Summary Stats & Params'!$M$12/'B. PoF Summary Stats & Params'!$O$12)*((A65)/'B. PoF Summary Stats & Params'!$O$12)^('B. PoF Summary Stats & Params'!$M$12-1)), \"Choose Model\"))","v":6.7972786260100939E-3}]
[62,1,{"$f":"IF('B. PoF Summary Stats & Params'!$C$12=\"C\", B66*'B. PoF Summary Stats & Params'!$I$8*'B. PoF Summary Stats & Params'!$I$10*A66^('B. PoF Summary Stats & Params'!$I$10-1), IF('B. PoF Summary Stats & Params'!$C$12=\"W\", B66*(('B. PoF Summary Stats & Params'!$M$14/'B. PoF Summary Stats & Params'!$O$14)*((A66)/'B. PoF Summary Stats & Params'!$O$14)^('B. PoF Summary Stats & Params'!$M$14-1)), \"Choose Model\"))","v":4.5069344887035283E-2},{"$f":"IF('B. PoF Summary Stats & Params'!$C$12=\"C\", B66*'B. PoF Summary Stats & Params'!$I$8*'B. PoF Summary Stats & Params'!$I$6*A66^('B. PoF Summary Stats & Params'!$I$6-1), IF('B. PoF Summary Stats & Params'!$C$12=\"W\", B66*(('B. PoF Summary Stats & Params'!$M$6/'B. PoF Summary Stats & Params'!$M$8)*((A66)/'B. PoF Summary Stats & Params'!$M$8)^('B. PoF Summary Stats & Params'!$M$6-1)), \"Choose Model\"))","v":1.7899482427254143E-2},{"$f":"IF('B. PoF Summary Stats & Params'!$C$12=\"C\", B66*'B. PoF Summary Stats & Params'!$I$8*'B. PoF Summary Stats & Params'!$I$12*A66^('B. PoF Summary Stats & Params'!$I$12-1), IF('B. PoF Summary Stats & Params'!$C$12=\"W\", B66*(('B. PoF Summary Stats & Params'!$M$12/'B. PoF Summary Stats & Params'!$O$12)*((A66)/'B. PoF Summary Stats & Params'!$O$12)^('B. PoF Summary Stats & Params'!$M$12-1)), \"Choose Model\"))","v":7.0867533350660178E-3}]
[63,1,{"$f":"IF('B. PoF Summary Stats & Params'!$C$12=\"C\", B67*'B. PoF Summary Stats & Params'!$I$8*'B. PoF Summary Stats & Params'!$I$10*A67^('B. PoF Summary Stats & Params'!$I$10-1), IF('B. PoF Summary Stats & Params'!$C$12=\"W\", B67*(('B. PoF Summary Stats & Params'!$M$14/'B. PoF Summary Stats & Params'!$O$14)*((A67)/'B. PoF Summary Stats & Params'!$O$14)^('B. PoF Summary Stats & Params'!$M$14-1)), \"Choose Model\"))","v":4.7274891544546886E-2},{"$f":"IF('B. PoF Summary Stats & Params'!$C$12=\"C\", B67*'B. PoF Summary Stats & Params'!$I$8*'B. PoF Summary Stats & Params'!$I$6*A67^('B. PoF Summary Stats & Params'!$I$6-1), IF('B. PoF Summary Stats & Params'!$C$12=\"W\", B67*(('B. PoF Summary Stats & Params'!$M$6/'B. PoF Summary Stats & Params'!$M$8)*((A67)/'B. PoF Summary Stats & Params'!$M$8)^('B. PoF Summary Stats & Params'!$M$6-1)), \"Choose Model\"))","v":1.871226413748418E-2},{"$f":"IF('B. PoF Summary Stats & Params'!$C$12=\"C\", B67*'B. PoF Summary Stats & Params'!$I$8*'B. PoF Summary Stats & Params'!$I$12*A67^('B. PoF Summary Stats & Params'!$I$12-1), IF('B. PoF Summary Stats & Params'!$C$12=\"W\", B67*(('B. PoF Summary Stats & Params'!$M$12/'B. PoF Summary Stats & Params'!$O$12)*((A67)/'B. PoF Summary Stats & Params'!$O$12)^('B. PoF Summary Stats & Params'!$M$12-1)), \"Choose Model\"))","v":7.3836270601128819E-3}]
[64,1,{"$f":"IF('B. PoF Summary Stats & Params'!$C$12=\"C\", B68*'B. PoF Summary Stats & Params'!$I$8*'B. PoF Summary Stats & Params'!$I$10*A68^('B. PoF Summary Stats & Params'!$I$10-1), IF('B. PoF Summary Stats & Params'!$C$12=\"W\", B68*(('B. PoF Summary Stats & Params'!$M$14/'B. PoF Summary Stats & Params'!$O$14)*((A68)/'B. PoF Summary Stats & Params'!$O$14)^('B. PoF Summary Stats & Params'!$M$14-1)), \"Choose Model\"))","v":4.9551072944180659E-2},{"$f":"IF('B. PoF Summary Stats & Params'!$C$12=\"C\", B68*'B. PoF Summary Stats & Params'!$I$8*'B. PoF Summary Stats & Params'!$I$6*A68^('B. PoF Summary Stats & Params'!$I$6-1), IF('B. PoF Summary Stats & Params'!$C$12=\"W\", B68*(('B. PoF Summary Stats & Params'!$M$6/'B. PoF Summary Stats & Params'!$M$8)*((A68)/'B. PoF Summary Stats & Params'!$M$8)^('B. PoF Summary Stats & Params'!$M$6-1)), \"Choose Model\"))","v":1.9548276716497427E-2},{"$f":"IF('B. PoF Summary Stats & Params'!$C$12=\"C\", B68*'B. PoF Summary Stats & Params'!$I$8*'B. PoF Summary Stats & Params'!$I$12*A68^('B. PoF Summary Stats & Params'!$I$12-1), IF('B. PoF Summary Stats & Params'!$C$12=\"W\", B68*(('B. PoF Summary Stats & Params'!$M$12/'B. PoF Summary Stats & Params'!$O$12)*((A68)/'B. PoF Summary Stats & Params'!$O$12)^('B. PoF Summary Stats & Params'!$M$12-1)), \"Choose Model\"))","v":7.6879669702987043E-3}]
[65,1,{"$f":"IF('B. PoF Summary Stats & Params'!$C$12=\"C\", B69*'B. PoF Summary Stats & Params'!$I$8*'B. PoF Summary Stats & Params'!$I$10*A69^('B. PoF Summary Stats & Params'!$I$10-1), IF('B. PoF Summary Stats & Params'!$C$12=\"W\", B69*(('B. PoF Summary Stats & Params'!$M$14/'B. PoF Summary Stats & Params'!$O$14)*((A69)/'B. PoF Summary Stats & Params'!$O$14)^('B. PoF Summary Stats & Params'!$M$14-1)), \"Choose Model\"))","v":5.1898994454176471E-2},{"$f":"IF('B. PoF Summary Stats & Params'!$C$12=\"C\", B69*'B. PoF Summary Stats & Params'!$I$8*'B. PoF Summary Stats & Params'!$I$6*A69^('B. PoF Summary Stats & Params'!$I$6-1), IF('B. PoF Summary Stats & Params'!$C$12=\"W\", B69*(('B. PoF Summary Stats & Params'!$M$6/'B. PoF Summary Stats & Params'!$M$8)*((A69)/'B. PoF Summary Stats & Params'!$M$8)^('B. PoF Summary Stats & Params'!$M$6-1)), \"Choose Model\"))","v":2.04078055846207E-2},{"$f":"IF('B. PoF Summary Stats & Params'!$C$12=\"C\", B69*'B. PoF Summary Stats & Params'!$I$8*'B. PoF Summary Stats & Params'!$I$12*A69^('B. PoF Summary Stats & Params'!$I$12-1), IF('B. PoF Summary Stats & Params'!$C$12=\"W\", B69*(('B. PoF Summary Stats & Params'!$M$12/'B. PoF Summary Stats & Params'!$O$12)*((A69)/'B. PoF Summary Stats & Params'!$O$12)^('B. PoF Summary Stats & Params'!$M$12-1)), \"Choose Model\"))","v":7.9998397723189119E-3}]
[66,1,{"$f":"IF('B. PoF Summary Stats & Params'!$C$12=\"C\", B70*'B. PoF Summary Stats & Params'!$I$8*'B. PoF Summary Stats & Params'!$I$10*A70^('B. PoF Summary Stats & Params'!$I$10-1), IF('B. PoF Summary Stats & Params'!$C$12=\"W\", B70*(('B. PoF Summary Stats & Params'!$M$14/'B. PoF Summary Stats & Params'!$O$14)*((A70)/'B. PoF Summary Stats & Params'!$O$14)^('B. PoF Summary Stats & Params'!$M$14-1)), \"Choose Model\"))","v":5.4319761200981399E-2},{"$f":"IF('B. PoF Summary Stats & Params'!$C$12=\"C\", B70*'B. PoF Summary Stats & Params'!$I$8*'B. PoF Summary Stats & Params'!$I$6*A70^('B. PoF Summary Stats & Params'!$I$6-1), IF('B. PoF Summary Stats & Params'!$C$12=\"W\", B70*(('B. PoF Summary Stats & Params'!$M$6/'B. PoF Summary Stats & Params'!$M$8)*((A70)/'B. PoF Summary Stats & Params'!$M$8)^('B. PoF Summary Stats & Params'!$M$6-1)), \"Choose Model\"))","v":2.129113516219442E-2},{"$f":"IF('B. PoF Summary Stats & Params'!$C$12=\"C\", B70*'B. PoF Summary Stats & Params'!$I$8*'B. PoF Summary Stats & Params'!$I$12*A70^('B. PoF Summary Stats & Params'!$I$12-1), IF('B. PoF Summary Stats & Params'!$C$12=\"W\", B70*(('B. PoF Summary Stats & Params'!$M$12/'B. PoF Summary Stats & Params'!$O$12)*((A70)/'B. PoF Summary Stats & Params'!$O$12)^('B. PoF Summary Stats & Params'!$M$12-1)), \"Choose Model\"))","v":8.3193117207535309E-3}]
[67,1,{"$f":"IF('B. PoF Summary Stats & Params'!$C$12=\"C\", B71*'B. PoF Summary Stats & Params'!$I$8*'B. PoF Summary Stats & Params'!$I$10*A71^('B. PoF Summary Stats & Params'!$I$10-1), IF('B. PoF Summary Stats & Params'!$C$12=\"W\", B71*(('B. PoF Summary Stats & Params'!$M$14/'B. PoF Summary Stats & Params'!$O$14)*((A71)/'B. PoF Summary Stats & Params'!$O$14)^('B. PoF Summary Stats & Params'!$M$14-1)), \"Choose Model\"))","v":5.6814478073021937E-2},{"$f":"IF('B. PoF Summary Stats & Params'!$C$12=\"C\", B71*'B. PoF Summary Stats & Params'!$I$8*'B. PoF Summary Stats & Params'!$I$6*A71^('B. PoF Summary Stats & Params'!$I$6-1), IF('B. PoF Summary Stats & Params'!$C$12=\"W\", B71*(('B. PoF Summary Stats & Params'!$M$6/'B. PoF Summary Stats & Params'!$M$8)*((A71)/'B. PoF Summary Stats & Params'!$M$8)^('B. PoF Summary Stats & Params'!$M$6-1)), \"Choose Model\"))","v":2.2198548888383046E-2},{"$f":"IF('B. PoF Summary Stats & Params'!$C$12=\"C\", B71*'B. PoF Summary Stats & Params'!$I$8*'B. PoF Summary Stats & Params'!$I$12*A71^('B. PoF Summary Stats & Params'!$I$12-1), IF('B. PoF Summary Stats & Params'!$C$12=\"W\", B71*(('B. PoF Summary Stats & Params'!$M$12/'B. PoF Summary Stats & Params'!$O$12)*((A71)/'B. PoF Summary Stats & Params'!$O$12)^('B. PoF Summary Stats & Params'!$M$12-1)), \"Choose Model\"))","v":8.6464486280182877E-3}]
[68,1,{"$f":"IF('B. PoF Summary Stats & Params'!$C$12=\"C\", B72*'B. PoF Summary Stats & Params'!$I$8*'B. PoF Summary Stats & Params'!$I$10*A72^('B. PoF Summary Stats & Params'!$I$10-1), IF('B. PoF Summary Stats & Params'!$C$12=\"W\", B72*(('B. PoF Summary Stats & Params'!$M$14/'B. PoF Summary Stats & Params'!$O$14)*((A72)/'B. PoF Summary Stats & Params'!$O$14)^('B. PoF Summary Stats & Params'!$M$14-1)), \"Choose Model\"))","v":5.9384249724361057E-2},{"$f":"IF('B. PoF Summary Stats & Params'!$C$12=\"C\", B72*'B. PoF Summary Stats & Params'!$I$8*'B. PoF Summary Stats & Params'!$I$6*A72^('B. PoF Summary Stats & Params'!$I$6-1), IF('B. PoF Summary Stats & Params'!$C$12=\"W\", B72*(('B. PoF Summary Stats & Params'!$M$6/'B. PoF Summary Stats & Params'!$M$8)*((A72)/'B. PoF Summary Stats & Params'!$M$8)^('B. PoF Summary Stats & Params'!$M$6-1)), \"Choose Model\"))","v":2.3130329239352307E-2},{"$f":"IF('B. PoF Summary Stats & Params'!$C$12=\"C\", B72*'B. PoF Summary Stats & Params'!$I$8*'B. PoF Summary Stats & Params'!$I$12*A72^('B. PoF Summary Stats & Params'!$I$12-1), IF('B. PoF Summary Stats & Params'!$C$12=\"W\", B72*(('B. PoF Summary Stats & Params'!$M$12/'B. PoF Summary Stats & Params'!$O$12)*((A72)/'B. PoF Summary Stats & Params'!$O$12)^('B. PoF Summary Stats & Params'!$M$12-1)), \"Choose Model\"))","v":8.9813158739496836E-3}]
[69,1,{"$f":"IF('B. PoF Summary Stats & Params'!$C$12=\"C\", B73*'B. PoF Summary Stats & Params'!$I$8*'B. PoF Summary Stats & Params'!$I$10*A73^('B. PoF Summary Stats & Params'!$I$10-1), IF('B. PoF Summary Stats & Params'!$C$12=\"W\", B73*(('B. PoF Summary Stats & Params'!$M$14/'B. PoF Summary Stats & Params'!$O$14)*((A73)/'B. PoF Summary Stats & Params'!$O$14)^('B. PoF Summary Stats & Params'!$M$14-1)), \"Choose Model\"))","v":6.2030180578245317E-2},{"$f":"IF('B. PoF Summary Stats & Params'!$C$12=\"C\", B73*'B. PoF Summary Stats & Params'!$I$8*'B. PoF Summary Stats & Params'!$I$6*A73^('B. PoF Summary Stats & Params'!$I$6-1), IF('B. PoF Summary Stats & Params'!$C$12=\"W\", B73*(('B. PoF Summary Stats & Params'!$M$6/'B. PoF Summary Stats & Params'!$M$8)*((A73)/'B. PoF Summary Stats & Params'!$M$8)^('B. PoF Summary Stats & Params'!$M$6-1)), \"Choose Model\"))","v":2.408675774584389E-2},{"$f":"IF('B. PoF Summary Stats & Params'!$C$12=\"C\", B73*'B. PoF Summary Stats & Params'!$I$8*'B. PoF Summary Stats & Params'!$I$12*A73^('B. PoF Summary Stats & Params'!$I$12-1), IF('B. PoF Summary Stats & Params'!$C$12=\"W\", B73*(('B. PoF Summary Stats & Params'!$M$12/'B. PoF Summary Stats & Params'!$O$12)*((A73)/'B. PoF Summary Stats & Params'!$O$12)^('B. PoF Summary Stats & Params'!$M$12-1)), \"Choose Model\"))","v":9.3239784150427295E-3}]
[70,1,{"$f":"IF('B. PoF Summary Stats & Params'!$C$12=\"C\", B74*'B. PoF Summary Stats & Params'!$I$8*'B. PoF Summary Stats & Params'!$I$10*A74^('B. PoF Summary Stats & Params'!$I$10-1), IF('B. PoF Summary Stats & Params'!$C$12=\"W\", B74*(('B. PoF Summary Stats & Params'!$M$14/'B. PoF Summary Stats & Params'!$O$14)*((A74)/'B. PoF Summary Stats & Params'!$O$14)^('B. PoF Summary Stats & Params'!$M$14-1)), \"Choose Model\"))","v":6.47533748305468E-2},{"$f":"IF('B. PoF Summary Stats & Params'!$C$12=\"C\", B74*'B. PoF Summary Stats & Params'!$I$8*'B. PoF Summary Stats & Params'!$I$6*A74^('B. PoF Summary Stats & Params'!$I$6-1), IF('B. PoF Summary Stats & Params'!$C$12=\"W\", B74*(('B. PoF Summary Stats & Params'!$M$6/'B. PoF Summary Stats & Params'!$M$8)*((A74)/'B. PoF Summary Stats & Params'!$M$8)^('B. PoF Summary Stats & Params'!$M$6-1)), \"Choose Model\"))","v":2.5068115010175886E-2},{"$f":"IF('B. PoF Summary Stats & Params'!$C$12=\"C\", B74*'B. PoF Summary Stats & Params'!$I$8*'B. PoF Summary Stats & Params'!$I$12*A74^('B. PoF Summary Stats & Params'!$I$12-1), IF('B. PoF Summary Stats & Params'!$C$12=\"W\", B74*(('B. PoF Summary Stats & Params'!$M$12/'B. PoF Summary Stats & Params'!$O$12)*((A74)/'B. PoF Summary Stats & Params'!$O$12)^('B. PoF Summary Stats & Params'!$M$12-1)), \"Choose Model\"))","v":9.6745007933588308E-3}]
[71,1,{"$f":"IF('B. PoF Summary Stats & Params'!$C$12=\"C\", B75*'B. PoF Summary Stats & Params'!$I$8*'B. PoF Summary Stats & Params'!$I$10*A75^('B. PoF Summary Stats & Params'!$I$10-1), IF('B. PoF Summary Stats & Params'!$C$12=\"W\", B75*(('B. PoF Summary Stats & Params'!$M$14/'B. PoF Summary Stats & Params'!$O$14)*((A75)/'B. PoF Summary Stats & Params'!$O$14)^('B. PoF Summary Stats & Params'!$M$14-1)), \"Choose Model\"))","v":6.7554936453104772E-2},{"$f":"IF('B. PoF Summary Stats & Params'!$C$12=\"C\", B75*'B. PoF Summary Stats & Params'!$I$8*'B. PoF Summary Stats & Params'!$I$6*A75^('B. PoF Summary Stats & Params'!$I$6-1), IF('B. PoF Summary Stats & Params'!$C$12=\"W\", B75*(('B. PoF Summary Stats & Params'!$M$6/'B. PoF Summary Stats & Params'!$M$8)*((A75)/'B. PoF Summary Stats & Params'!$M$8)^('B. PoF Summary Stats & Params'!$M$6-1)), \"Choose Model\"))","v":2.6074680722695958E-2},{"$f":"IF('B. PoF Summary Stats & Params'!$C$12=\"C\", B75*'B. PoF Summary Stats & Params'!$I$8*'B. PoF Summary Stats & Params'!$I$12*A75^('B. PoF Summary Stats & Params'!$I$12-1), IF('B. PoF Summary Stats & Params'!$C$12=\"W\", B75*(('B. PoF Summary Stats & Params'!$M$12/'B. PoF Summary Stats & Params'!$O$12)*((A75)/'B. PoF Summary Stats & Params'!$O$12)^('B. PoF Summary Stats & Params'!$M$12-1)), \"Choose Model\"))","v":1.0032947145120236E-2}]
[72,1,{"$f":"IF('B. PoF Summary Stats & Params'!$C$12=\"C\", B76*'B. PoF Summary Stats & Params'!$I$8*'B. PoF Summary Stats & Params'!$I$10*A76^('B. PoF Summary Stats & Params'!$I$10-1), IF('B. PoF Summary Stats & Params'!$C$12=\"W\", B76*(('B. PoF Summary Stats & Params'!$M$14/'B. PoF Summary Stats & Params'!$O$14)*((A76)/'B. PoF Summary Stats & Params'!$O$14)^('B. PoF Summary Stats & Params'!$M$14-1)), \"Choose Model\"))","v":7.0435969196970996E-2},{"$f":"IF('B. PoF Summary Stats & Params'!$C$12=\"C\", B76*'B. PoF Summary Stats & Params'!$I$8*'B. PoF Summary Stats & Params'!$I$6*A76^('B. PoF Summary Stats & Params'!$I$6-1), IF('B. PoF Summary Stats & Params'!$C$12=\"W\", B76*(('B. PoF Summary Stats & Params'!$M$6/'B. PoF Summary Stats & Params'!$M$8)*((A76)/'B. PoF Summary Stats & Params'!$M$8)^('B. PoF Summary Stats & Params'!$M$6-1)), \"Choose Model\"))","v":2.7106733677712352E-2},{"$f":"IF('B. PoF Summary Stats & Params'!$C$12=\"C\", B76*'B. PoF Summary Stats & Params'!$I$8*'B. PoF Summary Stats & Params'!$I$12*A76^('B. PoF Summary Stats & Params'!$I$12-1), IF('B. PoF Summary Stats & Params'!$C$12=\"W\", B76*(('B. PoF Summary Stats & Params'!$M$12/'B. PoF Summary Stats & Params'!$O$12)*((A76)/'B. PoF Summary Stats & Params'!$O$12)^('B. PoF Summary Stats & Params'!$M$12-1)), \"Choose Model\"))","v":1.0399381209006329E-2}]
[73,1,{"$f":"IF('B. PoF Summary Stats & Params'!$C$12=\"C\", B77*'B. PoF Summary Stats & Params'!$I$8*'B. PoF Summary Stats & Params'!$I$10*A77^('B. PoF Summary Stats & Params'!$I$10-1), IF('B. PoF Summary Stats & Params'!$C$12=\"W\", B77*(('B. PoF Summary Stats & Params'!$M$14/'B. PoF Summary Stats & Params'!$O$14)*((A77)/'B. PoF Summary Stats & Params'!$O$14)^('B. PoF Summary Stats & Params'!$M$14-1)), \"Choose Model\"))","v":7.3397576595563077E-2},{"$f":"IF('B. PoF Summary Stats & Params'!$C$12=\"C\", B77*'B. PoF Summary Stats & Params'!$I$8*'B. PoF Summary Stats & Params'!$I$6*A77^('B. PoF Summary Stats & Params'!$I$6-1), IF('B. PoF Summary Stats & Params'!$C$12=\"W\", B77*(('B. PoF Summary Stats & Params'!$M$6/'B. PoF Summary Stats & Params'!$M$8)*((A77)/'B. PoF Summary Stats & Params'!$M$8)^('B. PoF Summary Stats & Params'!$M$6-1)), \"Choose Model\"))","v":2.8164551788926448E-2},{"$f":"IF('B. PoF Summary Stats & Params'!$C$12=\"C\", B77*'B. PoF Summary Stats & Params'!$I$8*'B. PoF Summary Stats & Params'!$I$12*A77^('B. PoF Summary Stats & Params'!$I$12-1), IF('B. PoF Summary Stats & Params'!$C$12=\"W\", B77*(('B. PoF Summary Stats & Params'!$M$12/'B. PoF Summary Stats & Params'!$O$12)*((A77)/'B. PoF Summary Stats & Params'!$O$12)^('B. PoF Summary Stats & Params'!$M$12-1)), \"Choose Model\"))","v":1.0773866334166196E-2}]
[74,1,{"$f":"IF('B. PoF Summary Stats & Params'!$C$12=\"C\", B78*'B. PoF Summary Stats & Params'!$I$8*'B. PoF Summary Stats & Params'!$I$10*A78^('B. PoF Summary Stats & Params'!$I$10-1), IF('B. PoF Summary Stats & Params'!$C$12=\"W\", B78*(('B. PoF Summary Stats & Params'!$M$14/'B. PoF Summary Stats & Params'!$O$14)*((A78)/'B. PoF Summary Stats & Params'!$O$14)^('B. PoF Summary Stats & Params'!$M$14-1)), \"Choose Model\"))","v":7.6440861967729715E-2},{"$f":"IF('B. PoF Summary Stats & Params'!$C$12=\"C\", B78*'B. PoF Summary Stats & Params'!$I$8*'B. PoF Summary Stats & Params'!$I$6*A78^('B. PoF Summary Stats & Params'!$I$6-1), IF('B. PoF Summary Stats & Params'!$C$12=\"W\", B78*(('B. PoF Summary Stats & Params'!$M$6/'B. PoF Summary Stats & Params'!$M$8)*((A78)/'B. PoF Summary Stats & Params'!$M$8)^('B. PoF Summary Stats & Params'!$M$6-1)), \"Choose Model\"))","v":2.9248412104389075E-2},{"$f":"IF('B. PoF Summary Stats & Params'!$C$12=\"C\", B78*'B. PoF Summary Stats & Params'!$I$8*'B. PoF Summary Stats & Params'!$I$12*A78^('B. PoF Summary Stats & Params'!$I$12-1), IF('B. PoF Summary Stats & Params'!$C$12=\"W\", B78*(('B. PoF Summary Stats & Params'!$M$12/'B. PoF Summary Stats & Params'!$O$12)*((A78)/'B. PoF Summary Stats & Params'!$O$12)^('B. PoF Summary Stats & Params'!$M$12-1)), \"Choose Model\"))","v":1.1156465487960961E-2}]
[75,1,{"$f":"IF('B. PoF Summary Stats & Params'!$C$12=\"C\", B79*'B. PoF Summary Stats & Params'!$I$8*'B. PoF Summary Stats & Params'!$I$10*A79^('B. PoF Summary Stats & Params'!$I$10-1), IF('B. PoF Summary Stats & Params'!$C$12=\"W\", B79*(('B. PoF Summary Stats & Params'!$M$14/'B. PoF Summary Stats & Params'!$O$14)*((A79)/'B. PoF Summary Stats & Params'!$O$14)^('B. PoF Summary Stats & Params'!$M$14-1)), \"Choose Model\"))","v":7.9566928420731001E-2},{"$f":"IF('B. PoF Summary Stats & Params'!$C$12=\"C\", B79*'B. PoF Summary Stats & Params'!$I$8*'B. PoF Summary Stats & Params'!$I$6*A79^('B. PoF Summary Stats & Params'!$I$6-1), IF('B. PoF Summary Stats & Params'!$C$12=\"W\", B79*(('B. PoF Summary Stats & Params'!$M$6/'B. PoF Summary Stats & Params'!$M$8)*((A79)/'B. PoF Summary Stats & Params'!$M$8)^('B. PoF Summary Stats & Params'!$M$6-1)), \"Choose Model\"))","v":3.035859082100175E-2},{"$f":"IF('B. PoF Summary Stats & Params'!$C$12=\"C\", B79*'B. PoF Summary Stats & Params'!$I$8*'B. PoF Summary Stats & Params'!$I$12*A79^('B. PoF Summary Stats & Params'!$I$12-1), IF('B. PoF Summary Stats & Params'!$C$12=\"W\", B79*(('B. PoF Summary Stats & Params'!$M$12/'B. PoF Summary Stats & Params'!$O$12)*((A79)/'B. PoF Summary Stats & Params'!$O$12)^('B. PoF Summary Stats & Params'!$M$12-1)), \"Choose Model\"))","v":1.1547241263448537E-2}]
[76,1,{"$f":"IF('B. PoF Summary Stats & Params'!$C$12=\"C\", B80*'B. PoF Summary Stats & Params'!$I$8*'B. PoF Summary Stats & Params'!$I$10*A80^('B. PoF Summary Stats & Params'!$I$10-1), IF('B. PoF Summary Stats & Params'!$C$12=\"W\", B80*(('B. PoF Summary Stats & Params'!$M$14/'B. PoF Summary Stats & Params'!$O$14)*((A80)/'B. PoF Summary Stats & Params'!$O$14)^('B. PoF Summary Stats & Params'!$M$14-1)), \"Choose Model\"))","v":8.2776878853138017E-2},{"$f":"IF('B. PoF Summary Stats & Params'!$C$12=\"C\", B80*'B. PoF Summary Stats & Params'!$I$8*'B. PoF Summary Stats & Params'!$I$6*A80^('B. PoF Summary Stats & Params'!$I$6-1), IF('B. PoF Summary Stats & Params'!$C$12=\"W\", B80*(('B. PoF Summary Stats & Params'!$M$6/'B. PoF Summary Stats & Params'!$M$8)*((A80)/'B. PoF Summary Stats & Params'!$M$8)^('B. PoF Summary Stats & Params'!$M$6-1)), \"Choose Model\"))","v":3.1495363298582511E-2},{"$f":"IF('B. PoF Summary Stats & Params'!$C$12=\"C\", B80*'B. PoF Summary Stats & Params'!$I$8*'B. PoF Summary Stats & Params'!$I$12*A80^('B. PoF Summary Stats & Params'!$I$12-1), IF('B. PoF Summary Stats & Params'!$C$12=\"W\", B80*(('B. PoF Summary Stats & Params'!$M$12/'B. PoF Summary Stats & Params'!$O$12)*((A80)/'B. PoF Summary Stats & Params'!$O$12)^('B. PoF Summary Stats & Params'!$M$12-1)), \"Choose Model\"))","v":1.1946255886622785E-2}]
[77,1,{"$f":"IF('B. PoF Summary Stats & Params'!$C$12=\"C\", B81*'B. PoF Summary Stats & Params'!$I$8*'B. PoF Summary Stats & Params'!$I$10*A81^('B. PoF Summary Stats & Params'!$I$10-1), IF('B. PoF Summary Stats & Params'!$C$12=\"W\", B81*(('B. PoF Summary Stats & Params'!$M$14/'B. PoF Summary Stats & Params'!$O$14)*((A81)/'B. PoF Summary Stats & Params'!$O$14)^('B. PoF Summary Stats & Params'!$M$14-1)), \"Choose Model\"))","v":8.6071815957654313E-2},{"$f":"IF('B. PoF Summary Stats & Params'!$C$12=\"C\", B81*'B. PoF Summary Stats & Params'!$I$8*'B. PoF Summary Stats & Params'!$I$6*A81^('B. PoF Summary Stats & Params'!$I$6-1), IF('B. PoF Summary Stats & Params'!$C$12=\"W\", B81*(('B. PoF Summary Stats & Params'!$M$6/'B. PoF Summary Stats & Params'!$M$8)*((A81)/'B. PoF Summary Stats & Params'!$M$8)^('B. PoF Summary Stats & Params'!$M$6-1)), \"Choose Model\"))","v":3.2659004073515061E-2},{"$f":"IF('B. PoF Summary Stats & Params'!$C$12=\"C\", B81*'B. PoF Summary Stats & Params'!$I$8*'B. PoF Summary Stats & Params'!$I$12*A81^('B. PoF Summary Stats & Params'!$I$12-1), IF('B. PoF Summary Stats & Params'!$C$12=\"W\", B81*(('B. PoF Summary Stats & Params'!$M$12/'B. PoF Summary Stats & Params'!$O$12)*((A81)/'B. PoF Summary Stats & Params'!$O$12)^('B. PoF Summary Stats & Params'!$M$12-1)), \"Choose Model\"))","v":1.2353571223418227E-2}]
[78,1,{"$f":"IF('B. PoF Summary Stats & Params'!$C$12=\"C\", B82*'B. PoF Summary Stats & Params'!$I$8*'B. PoF Summary Stats & Params'!$I$10*A82^('B. PoF Summary Stats & Params'!$I$10-1), IF('B. PoF Summary Stats & Params'!$C$12=\"W\", B82*(('B. PoF Summary Stats & Params'!$M$14/'B. PoF Summary Stats & Params'!$O$14)*((A82)/'B. PoF Summary Stats & Params'!$O$14)^('B. PoF Summary Stats & Params'!$M$14-1)), \"Choose Model\"))","v":8.9452842223862683E-2},{"$f":"IF('B. PoF Summary Stats & Params'!$C$12=\"C\", B82*'B. PoF Summary Stats & Params'!$I$8*'B. PoF Summary Stats & Params'!$I$6*A82^('B. PoF Summary Stats & Params'!$I$6-1), IF('B. PoF Summary Stats & Params'!$C$12=\"W\", B82*(('B. PoF Summary Stats & Params'!$M$6/'B. PoF Summary Stats & Params'!$M$8)*((A82)/'B. PoF Summary Stats & Params'!$M$8)^('B. PoF Summary Stats & Params'!$M$6-1)), \"Choose Model\"))","v":3.3849786871998952E-2},{"$f":"IF('B. PoF Summary Stats & Params'!$C$12=\"C\", B82*'B. PoF Summary Stats & Params'!$I$8*'B. PoF Summary Stats & Params'!$I$12*A82^('B. PoF Summary Stats & Params'!$I$12-1), IF('B. PoF Summary Stats & Params'!$C$12=\"W\", B82*(('B. PoF Summary Stats & Params'!$M$12/'B. PoF Summary Stats & Params'!$O$12)*((A82)/'B. PoF Summary Stats & Params'!$O$12)^('B. PoF Summary Stats & Params'!$M$12-1)), \"Choose Model\"))","v":1.2769248786490908E-2}]
[79,1,{"$f":"IF('B. PoF Summary Stats & Params'!$C$12=\"C\", B83*'B. PoF Summary Stats & Params'!$I$8*'B. PoF Summary Stats & Params'!$I$10*A83^('B. PoF Summary Stats & Params'!$I$10-1), IF('B. PoF Summary Stats & Params'!$C$12=\"W\", B83*(('B. PoF Summary Stats & Params'!$M$14/'B. PoF Summary Stats & Params'!$O$14)*((A83)/'B. PoF Summary Stats & Params'!$O$14)^('B. PoF Summary Stats & Params'!$M$14-1)), \"Choose Model\"))","v":9.2921059940900108E-2},{"$f":"IF('B. PoF Summary Stats & Params'!$C$12=\"C\", B83*'B. PoF Summary Stats & Params'!$I$8*'B. PoF Summary Stats & Params'!$I$6*A83^('B. PoF Summary Stats & Params'!$I$6-1), IF('B. PoF Summary Stats & Params'!$C$12=\"W\", B83*(('B. PoF Summary Stats & Params'!$M$6/'B. PoF Summary Stats & Params'!$M$8)*((A83)/'B. PoF Summary Stats & Params'!$M$8)^('B. PoF Summary Stats & Params'!$M$6-1)), \"Choose Model\"))","v":3.5067984622917443E-2},{"$f":"IF('B. PoF Summary Stats & Params'!$C$12=\"C\", B83*'B. PoF Summary Stats & Params'!$I$8*'B. PoF Summary Stats & Params'!$I$12*A83^('B. PoF Summary Stats & Params'!$I$12-1), IF('B. PoF Summary Stats & Params'!$C$12=\"W\", B83*(('B. PoF Summary Stats & Params'!$M$12/'B. PoF Summary Stats & Params'!$O$12)*((A83)/'B. PoF Summary Stats & Params'!$O$12)^('B. PoF Summary Stats & Params'!$M$12-1)), \"Choose Model\"))","v":1.3193349741785397E-2}]
[80,1,{"$f":"IF('B. PoF Summary Stats & Params'!$C$12=\"C\", B84*'B. PoF Summary Stats & Params'!$I$8*'B. PoF Summary Stats & Params'!$I$10*A84^('B. PoF Summary Stats & Params'!$I$10-1), IF('B. PoF Summary Stats & Params'!$C$12=\"W\", B84*(('B. PoF Summary Stats & Params'!$M$14/'B. PoF Summary Stats & Params'!$O$14)*((A84)/'B. PoF Summary Stats & Params'!$O$14)^('B. PoF Summary Stats & Params'!$M$14-1)), \"Choose Model\"))","v":9.6477571200063714E-2},{"$f":"IF('B. PoF Summary Stats & Params'!$C$12=\"C\", B84*'B. PoF Summary Stats & Params'!$I$8*'B. PoF Summary Stats & Params'!$I$6*A84^('B. PoF Summary Stats & Params'!$I$6-1), IF('B. PoF Summary Stats & Params'!$C$12=\"W\", B84*(('B. PoF Summary Stats & Params'!$M$6/'B. PoF Summary Stats & Params'!$M$8)*((A84)/'B. PoF Summary Stats & Params'!$M$8)^('B. PoF Summary Stats & Params'!$M$6-1)), \"Choose Model\"))","v":3.6313869470338753E-2},{"$f":"IF('B. PoF Summary Stats & Params'!$C$12=\"C\", B84*'B. PoF Summary Stats & Params'!$I$8*'B. PoF Summary Stats & Params'!$I$12*A84^('B. PoF Summary Stats & Params'!$I$12-1), IF('B. PoF Summary Stats & Params'!$C$12=\"W\", B84*(('B. PoF Summary Stats & Params'!$M$12/'B. PoF Summary Stats & Params'!$O$12)*((A84)/'B. PoF Summary Stats & Params'!$O$12)^('B. PoF Summary Stats & Params'!$M$12-1)), \"Choose Model\"))","v":1.3625934914897312E-2}]
[81,1,{"$f":"IF('B. PoF Summary Stats & Params'!$C$12=\"C\", B85*'B. PoF Summary Stats & Params'!$I$8*'B. PoF Summary Stats & Params'!$I$10*A85^('B. PoF Summary Stats & Params'!$I$10-1), IF('B. PoF Summary Stats & Params'!$C$12=\"W\", B85*(('B. PoF Summary Stats & Params'!$M$14/'B. PoF Summary Stats & Params'!$O$14)*((A85)/'B. PoF Summary Stats & Params'!$O$14)^('B. PoF Summary Stats & Params'!$M$14-1)), \"Choose Model\"))","v":0.10012347789734993},{"$f":"IF('B. PoF Summary Stats & Params'!$C$12=\"C\", B85*'B. PoF Summary Stats & Params'!$I$8*'B. PoF Summary Stats & Params'!$I$6*A85^('B. PoF Summary Stats & Params'!$I$6-1), IF('B. PoF Summary Stats & Params'!$C$12=\"W\", B85*(('B. PoF Summary Stats & Params'!$M$6/'B. PoF Summary Stats & Params'!$M$8)*((A85)/'B. PoF Summary Stats & Params'!$M$8)^('B. PoF Summary Stats & Params'!$M$6-1)), \"Choose Model\"))","v":3.7587712785665889E-2},{"$f":"IF('B. PoF Summary Stats & Params'!$C$12=\"C\", B85*'B. PoF Summary Stats & Params'!$I$8*'B. PoF Summary Stats & Params'!$I$12*A85^('B. PoF Summary Stats & Params'!$I$12-1), IF('B. PoF Summary Stats & Params'!$C$12=\"W\", B85*(('B. PoF Summary Stats & Params'!$M$12/'B. PoF Summary Stats & Params'!$O$12)*((A85)/'B. PoF Summary Stats & Params'!$O$12)^('B. PoF Summary Stats & Params'!$M$12-1)), \"Choose Model\"))","v":1.4067064797240155E-2}]
[82,1,{"$f":"IF('B. PoF Summary Stats & Params'!$C$12=\"C\", B86*'B. PoF Summary Stats & Params'!$I$8*'B. PoF Summary Stats & Params'!$I$10*A86^('B. PoF Summary Stats & Params'!$I$10-1), IF('B. PoF Summary Stats & Params'!$C$12=\"W\", B86*(('B. PoF Summary Stats & Params'!$M$14/'B. PoF Summary Stats & Params'!$O$14)*((A86)/'B. PoF Summary Stats & Params'!$O$14)^('B. PoF Summary Stats & Params'!$M$14-1)), \"Choose Model\"))","v":0.10385988173593014},{"$f":"IF('B. PoF Summary Stats & Params'!$C$12=\"C\", B86*'B. PoF Summary Stats & Params'!$I$8*'B. PoF Summary Stats & Params'!$I$6*A86^('B. PoF Summary Stats & Params'!$I$6-1), IF('B. PoF Summary Stats & Params'!$C$12=\"W\", B86*(('B. PoF Summary Stats & Params'!$M$6/'B. PoF Summary Stats & Params'!$M$8)*((A86)/'B. PoF Summary Stats & Params'!$M$8)^('B. PoF Summary Stats & Params'!$M$6-1)), \"Choose Model\"))","v":3.8889785179448862E-2},{"$f":"IF('B. PoF Summary Stats & Params'!$C$12=\"C\", B86*'B. PoF Summary Stats & Params'!$I$8*'B. PoF Summary Stats & Params'!$I$12*A86^('B. PoF Summary Stats & Params'!$I$12-1), IF('B. PoF Summary Stats & Params'!$C$12=\"W\", B86*(('B. PoF Summary Stats & Params'!$M$12/'B. PoF Summary Stats & Params'!$O$12)*((A86)/'B. PoF Summary Stats & Params'!$O$12)^('B. PoF Summary Stats & Params'!$M$12-1)), \"Choose Model\"))","v":1.4516799552025013E-2}]
[83,1,{"$f":"IF('B. PoF Summary Stats & Params'!$C$12=\"C\", B87*'B. PoF Summary Stats & Params'!$I$8*'B. PoF Summary Stats & Params'!$I$10*A87^('B. PoF Summary Stats & Params'!$I$10-1), IF('B. PoF Summary Stats & Params'!$C$12=\"W\", B87*(('B. PoF Summary Stats & Params'!$M$14/'B. PoF Summary Stats & Params'!$O$14)*((A87)/'B. PoF Summary Stats & Params'!$O$14)^('B. PoF Summary Stats & Params'!$M$14-1)), \"Choose Model\"))","v":0.1076878842285646},{"$f":"IF('B. PoF Summary Stats & Params'!$C$12=\"C\", B87*'B. PoF Summary Stats & Params'!$I$8*'B. PoF Summary Stats & Params'!$I$6*A87^('B. PoF Summary Stats & Params'!$I$6-1), IF('B. PoF Summary Stats & Params'!$C$12=\"W\", B87*(('B. PoF Summary Stats & Params'!$M$6/'B. PoF Summary Stats & Params'!$M$8)*((A87)/'B. PoF Summary Stats & Params'!$M$8)^('B. PoF Summary Stats & Params'!$M$6-1)), \"Choose Model\"))","v":4.0220356512872986E-2},{"$f":"IF('B. PoF Summary Stats & Params'!$C$12=\"C\", B87*'B. PoF Summary Stats & Params'!$I$8*'B. PoF Summary Stats & Params'!$I$12*A87^('B. PoF Summary Stats & Params'!$I$12-1), IF('B. PoF Summary Stats & Params'!$C$12=\"W\", B87*(('B. PoF Summary Stats & Params'!$M$12/'B. PoF Summary Stats & Params'!$O$12)*((A87)/'B. PoF Summary Stats & Params'!$O$12)^('B. PoF Summary Stats & Params'!$M$12-1)), \"Choose Model\"))","v":1.497519902006083E-2}]
[84,1,{"$f":"IF('B. PoF Summary Stats & Params'!$C$12=\"C\", B88*'B. PoF Summary Stats & Params'!$I$8*'B. PoF Summary Stats & Params'!$I$10*A88^('B. PoF Summary Stats & Params'!$I$10-1), IF('B. PoF Summary Stats & Params'!$C$12=\"W\", B88*(('B. PoF Summary Stats & Params'!$M$14/'B. PoF Summary Stats & Params'!$O$14)*((A88)/'B. PoF Summary Stats & Params'!$O$14)^('B. PoF Summary Stats & Params'!$M$14-1)), \"Choose Model\"))","v":0.11160858669995699},{"$f":"IF('B. PoF Summary Stats & Params'!$C$12=\"C\", B88*'B. PoF Summary Stats & Params'!$I$8*'B. PoF Summary Stats & Params'!$I$6*A88^('B. PoF Summary Stats & Params'!$I$6-1), IF('B. PoF Summary Stats & Params'!$C$12=\"W\", B88*(('B. PoF Summary Stats & Params'!$M$6/'B. PoF Summary Stats & Params'!$M$8)*((A88)/'B. PoF Summary Stats & Params'!$M$8)^('B. PoF Summary Stats & Params'!$M$6-1)), \"Choose Model\"))","v":4.157969590893585E-2},{"$f":"IF('B. PoF Summary Stats & Params'!$C$12=\"C\", B88*'B. PoF Summary Stats & Params'!$I$8*'B. PoF Summary Stats & Params'!$I$12*A88^('B. PoF Summary Stats & Params'!$I$12-1), IF('B. PoF Summary Stats & Params'!$C$12=\"W\", B88*(('B. PoF Summary Stats & Params'!$M$12/'B. PoF Summary Stats & Params'!$O$12)*((A88)/'B. PoF Summary Stats & Params'!$O$12)^('B. PoF Summary Stats & Params'!$M$12-1)), \"Choose Model\"))","v":1.544232272538293E-2}]
[85,1,{"$f":"IF('B. PoF Summary Stats & Params'!$C$12=\"C\", B89*'B. PoF Summary Stats & Params'!$I$8*'B. PoF Summary Stats & Params'!$I$10*A89^('B. PoF Summary Stats & Params'!$I$10-1), IF('B. PoF Summary Stats & Params'!$C$12=\"W\", B89*(('B. PoF Summary Stats & Params'!$M$14/'B. PoF Summary Stats & Params'!$O$14)*((A89)/'B. PoF Summary Stats & Params'!$O$14)^('B. PoF Summary Stats & Params'!$M$14-1)), \"Choose Model\"))","v":0.11562309028905214},{"$f":"IF('B. PoF Summary Stats & Params'!$C$12=\"C\", B89*'B. PoF Summary Stats & Params'!$I$8*'B. PoF Summary Stats & Params'!$I$6*A89^('B. PoF Summary Stats & Params'!$I$6-1), IF('B. PoF Summary Stats & Params'!$C$12=\"W\", B89*(('B. PoF Summary Stats & Params'!$M$6/'B. PoF Summary Stats & Params'!$M$8)*((A89)/'B. PoF Summary Stats & Params'!$M$8)^('B. PoF Summary Stats & Params'!$M$6-1)), \"Choose Model\"))","v":4.2968071763325143E-2},{"$f":"IF('B. PoF Summary Stats & Params'!$C$12=\"C\", B89*'B. PoF Summary Stats & Params'!$I$8*'B. PoF Summary Stats & Params'!$I$12*A89^('B. PoF Summary Stats & Params'!$I$12-1), IF('B. PoF Summary Stats & Params'!$C$12=\"W\", B89*(('B. PoF Summary Stats & Params'!$M$12/'B. PoF Summary Stats & Params'!$O$12)*((A89)/'B. PoF Summary Stats & Params'!$O$12)^('B. PoF Summary Stats & Params'!$M$12-1)), \"Choose Model\"))","v":1.591822988071678E-2}]
[86,1,{"$f":"IF('B. PoF Summary Stats & Params'!$C$12=\"C\", B90*'B. PoF Summary Stats & Params'!$I$8*'B. PoF Summary Stats & Params'!$I$10*A90^('B. PoF Summary Stats & Params'!$I$10-1), IF('B. PoF Summary Stats & Params'!$C$12=\"W\", B90*(('B. PoF Summary Stats & Params'!$M$14/'B. PoF Summary Stats & Params'!$O$14)*((A90)/'B. PoF Summary Stats & Params'!$O$14)^('B. PoF Summary Stats & Params'!$M$14-1)), \"Choose Model\"))","v":0.11973249595127802},{"$f":"IF('B. PoF Summary Stats & Params'!$C$12=\"C\", B90*'B. PoF Summary Stats & Params'!$I$8*'B. PoF Summary Stats & Params'!$I$6*A90^('B. PoF Summary Stats & Params'!$I$6-1), IF('B. PoF Summary Stats & Params'!$C$12=\"W\", B90*(('B. PoF Summary Stats & Params'!$M$6/'B. PoF Summary Stats & Params'!$M$8)*((A90)/'B. PoF Summary Stats & Params'!$M$8)^('B. PoF Summary Stats & Params'!$M$6-1)), \"Choose Model\"))","v":4.4385751755008578E-2},{"$f":"IF('B. PoF Summary Stats & Params'!$C$12=\"C\", B90*'B. PoF Summary Stats & Params'!$I$8*'B. PoF Summary Stats & Params'!$I$12*A90^('B. PoF Summary Stats & Params'!$I$12-1), IF('B. PoF Summary Stats & Params'!$C$12=\"W\", B90*(('B. PoF Summary Stats & Params'!$M$12/'B. PoF Summary Stats & Params'!$O$12)*((A90)/'B. PoF Summary Stats & Params'!$O$12)^('B. PoF Summary Stats & Params'!$M$12-1)), \"Choose Model\"))","v":1.6402979392783731E-2}]
[87,1,{"$f":"IF('B. PoF Summary Stats & Params'!$C$12=\"C\", B91*'B. PoF Summary Stats & Params'!$I$8*'B. PoF Summary Stats & Params'!$I$10*A91^('B. PoF Summary Stats & Params'!$I$10-1), IF('B. PoF Summary Stats & Params'!$C$12=\"W\", B91*(('B. PoF Summary Stats & Params'!$M$14/'B. PoF Summary Stats & Params'!$O$14)*((A91)/'B. PoF Summary Stats & Params'!$O$14)^('B. PoF Summary Stats & Params'!$M$14-1)), \"Choose Model\"))","v":0.12393790446073538},{"$f":"IF('B. PoF Summary Stats & Params'!$C$12=\"C\", B91*'B. PoF Summary Stats & Params'!$I$8*'B. PoF Summary Stats & Params'!$I$6*A91^('B. PoF Summary Stats & Params'!$I$6-1), IF('B. PoF Summary Stats & Params'!$C$12=\"W\", B91*(('B. PoF Summary Stats & Params'!$M$6/'B. PoF Summary Stats & Params'!$M$8)*((A91)/'B. PoF Summary Stats & Params'!$M$8)^('B. PoF Summary Stats & Params'!$M$6-1)), \"Choose Model\"))","v":4.5833002856547289E-2},{"$f":"IF('B. PoF Summary Stats & Params'!$C$12=\"C\", B91*'B. PoF Summary Stats & Params'!$I$8*'B. PoF Summary Stats & Params'!$I$12*A91^('B. PoF Summary Stats & Params'!$I$12-1), IF('B. PoF Summary Stats & Params'!$C$12=\"W\", B91*(('B. PoF Summary Stats & Params'!$M$12/'B. PoF Summary Stats & Params'!$O$12)*((A91)/'B. PoF Summary Stats & Params'!$O$12)^('B. PoF Summary Stats & Params'!$M$12-1)), \"Choose Model\"))","v":1.6896629867455153E-2}]
[88,1,{"$f":"IF('B. PoF Summary Stats & Params'!$C$12=\"C\", B92*'B. PoF Summary Stats & Params'!$I$8*'B. PoF Summary Stats & Params'!$I$10*A92^('B. PoF Summary Stats & Params'!$I$10-1), IF('B. PoF Summary Stats & Params'!$C$12=\"W\", B92*(('B. PoF Summary Stats & Params'!$M$14/'B. PoF Summary Stats & Params'!$O$14)*((A92)/'B. PoF Summary Stats & Params'!$O$14)^('B. PoF Summary Stats & Params'!$M$14-1)), \"Choose Model\"))","v":0.12824041641233558},{"$f":"IF('B. PoF Summary Stats & Params'!$C$12=\"C\", B92*'B. PoF Summary Stats & Params'!$I$8*'B. PoF Summary Stats & Params'!$I$6*A92^('B. PoF Summary Stats & Params'!$I$6-1), IF('B. PoF Summary Stats & Params'!$C$12=\"W\", B92*(('B. PoF Summary Stats & Params'!$M$6/'B. PoF Summary Stats & Params'!$M$8)*((A92)/'B. PoF Summary Stats & Params'!$M$8)^('B. PoF Summary Stats & Params'!$M$6-1)), \"Choose Model\"))","v":4.731009134414238E-2},{"$f":"IF('B. PoF Summary Stats & Params'!$C$12=\"C\", B92*'B. PoF Summary Stats & Params'!$I$8*'B. PoF Summary Stats & Params'!$I$12*A92^('B. PoF Summary Stats & Params'!$I$12-1), IF('B. PoF Summary Stats & Params'!$C$12=\"W\", B92*(('B. PoF Summary Stats & Params'!$M$12/'B. PoF Summary Stats & Params'!$O$12)*((A92)/'B. PoF Summary Stats & Params'!$O$12)^('B. PoF Summary Stats & Params'!$M$12-1)), \"Choose Model\"))","v":1.7399239614760934E-2}]
[89,1,{"$f":"IF('B. PoF Summary Stats & Params'!$C$12=\"C\", B93*'B. PoF Summary Stats & Params'!$I$8*'B. PoF Summary Stats & Params'!$I$10*A93^('B. PoF Summary Stats & Params'!$I$10-1), IF('B. PoF Summary Stats & Params'!$C$12=\"W\", B93*(('B. PoF Summary Stats & Params'!$M$14/'B. PoF Summary Stats & Params'!$O$14)*((A93)/'B. PoF Summary Stats & Params'!$O$14)^('B. PoF Summary Stats & Params'!$M$14-1)), \"Choose Model\"))","v":0.1326411322238891},{"$f":"IF('B. PoF Summary Stats & Params'!$C$12=\"C\", B93*'B. PoF Summary Stats & Params'!$I$8*'B. PoF Summary Stats & Params'!$I$6*A93^('B. PoF Summary Stats & Params'!$I$6-1), IF('B. PoF Summary Stats & Params'!$C$12=\"W\", B93*(('B. PoF Summary Stats & Params'!$M$6/'B. PoF Summary Stats & Params'!$M$8)*((A93)/'B. PoF Summary Stats & Params'!$M$8)^('B. PoF Summary Stats & Params'!$M$6-1)), \"Choose Model\"))","v":4.8817282807425116E-2},{"$f":"IF('B. PoF Summary Stats & Params'!$C$12=\"C\", B93*'B. PoF Summary Stats & Params'!$I$8*'B. PoF Summary Stats & Params'!$I$12*A93^('B. PoF Summary Stats & Params'!$I$12-1), IF('B. PoF Summary Stats & Params'!$C$12=\"W\", B93*(('B. PoF Summary Stats & Params'!$M$12/'B. PoF Summary Stats & Params'!$O$12)*((A93)/'B. PoF Summary Stats & Params'!$O$12)^('B. PoF Summary Stats & Params'!$M$12-1)), \"Choose Model\"))","v":1.7910866653758153E-2}]
[90,1,{"$f":"IF('B. PoF Summary Stats & Params'!$C$12=\"C\", B94*'B. PoF Summary Stats & Params'!$I$8*'B. PoF Summary Stats & Params'!$I$10*A94^('B. PoF Summary Stats & Params'!$I$10-1), IF('B. PoF Summary Stats & Params'!$C$12=\"W\", B94*(('B. PoF Summary Stats & Params'!$M$14/'B. PoF Summary Stats & Params'!$O$14)*((A94)/'B. PoF Summary Stats & Params'!$O$14)^('B. PoF Summary Stats & Params'!$M$14-1)), \"Choose Model\"))","v":0.13714115213814623},{"$f":"IF('B. PoF Summary Stats & Params'!$C$12=\"C\", B94*'B. PoF Summary Stats & Params'!$I$8*'B. PoF Summary Stats & Params'!$I$6*A94^('B. PoF Summary Stats & Params'!$I$6-1), IF('B. PoF Summary Stats & Params'!$C$12=\"W\", B94*(('B. PoF Summary Stats & Params'!$M$6/'B. PoF Summary Stats & Params'!$M$8)*((A94)/'B. PoF Summary Stats & Params'!$M$8)^('B. PoF Summary Stats & Params'!$M$6-1)), \"Choose Model\"))","v":5.0354842158999963E-2},{"$f":"IF('B. PoF Summary Stats & Params'!$C$12=\"C\", B94*'B. PoF Summary Stats & Params'!$I$8*'B. PoF Summary Stats & Params'!$I$12*A94^('B. PoF Summary Stats & Params'!$I$12-1), IF('B. PoF Summary Stats & Params'!$C$12=\"W\", B94*(('B. PoF Summary Stats & Params'!$M$12/'B. PoF Summary Stats & Params'!$O$12)*((A94)/'B. PoF Summary Stats & Params'!$O$12)^('B. PoF Summary Stats & Params'!$M$12-1)), \"Choose Model\"))","v":1.8431568717265284E-2}]
[91,1,{"$f":"IF('B. PoF Summary Stats & Params'!$C$12=\"C\", B95*'B. PoF Summary Stats & Params'!$I$8*'B. PoF Summary Stats & Params'!$I$10*A95^('B. PoF Summary Stats & Params'!$I$10-1), IF('B. PoF Summary Stats & Params'!$C$12=\"W\", B95*(('B. PoF Summary Stats & Params'!$M$14/'B. PoF Summary Stats & Params'!$O$14)*((A95)/'B. PoF Summary Stats & Params'!$O$14)^('B. PoF Summary Stats & Params'!$M$14-1)), \"Choose Model\"))","v":0.1417415762247918},{"$f":"IF('B. PoF Summary Stats & Params'!$C$12=\"C\", B95*'B. PoF Summary Stats & Params'!$I$8*'B. PoF Summary Stats & Params'!$I$6*A95^('B. PoF Summary Stats & Params'!$I$6-1), IF('B. PoF Summary Stats & Params'!$C$12=\"W\", B95*(('B. PoF Summary Stats & Params'!$M$6/'B. PoF Summary Stats & Params'!$M$8)*((A95)/'B. PoF Summary Stats & Params'!$M$8)^('B. PoF Summary Stats & Params'!$M$6-1)), \"Choose Model\"))","v":5.1923033643749117E-2},{"$f":"IF('B. PoF Summary Stats & Params'!$C$12=\"C\", B95*'B. PoF Summary Stats & Params'!$I$8*'B. PoF Summary Stats & Params'!$I$12*A95^('B. PoF Summary Stats & Params'!$I$12-1), IF('B. PoF Summary Stats & Params'!$C$12=\"W\", B95*(('B. PoF Summary Stats & Params'!$M$12/'B. PoF Summary Stats & Params'!$O$12)*((A95)/'B. PoF Summary Stats & Params'!$O$12)^('B. PoF Summary Stats & Params'!$M$12-1)), \"Choose Model\"))","v":1.8961403256467241E-2}]
[92,1,{"$f":"IF('B. PoF Summary Stats & Params'!$C$12=\"C\", B96*'B. PoF Summary Stats & Params'!$I$8*'B. PoF Summary Stats & Params'!$I$10*A96^('B. PoF Summary Stats & Params'!$I$10-1), IF('B. PoF Summary Stats & Params'!$C$12=\"W\", B96*(('B. PoF Summary Stats & Params'!$M$14/'B. PoF Summary Stats & Params'!$O$14)*((A96)/'B. PoF Summary Stats & Params'!$O$14)^('B. PoF Summary Stats & Params'!$M$14-1)), \"Choose Model\"))","v":0.1464435043823947},{"$f":"IF('B. PoF Summary Stats & Params'!$C$12=\"C\", B96*'B. PoF Summary Stats & Params'!$I$8*'B. PoF Summary Stats & Params'!$I$6*A96^('B. PoF Summary Stats & Params'!$I$6-1), IF('B. PoF Summary Stats & Params'!$C$12=\"W\", B96*(('B. PoF Summary Stats & Params'!$M$6/'B. PoF Summary Stats & Params'!$M$8)*((A96)/'B. PoF Summary Stats & Params'!$M$8)^('B. PoF Summary Stats & Params'!$M$6-1)), \"Choose Model\"))","v":5.3522120847907528E-2},{"$f":"IF('B. PoF Summary Stats & Params'!$C$12=\"C\", B96*'B. PoF Summary Stats & Params'!$I$8*'B. PoF Summary Stats & Params'!$I$12*A96^('B. PoF Summary Stats & Params'!$I$12-1), IF('B. PoF Summary Stats & Params'!$C$12=\"W\", B96*(('B. PoF Summary Stats & Params'!$M$12/'B. PoF Summary Stats & Params'!$O$12)*((A96)/'B. PoF Summary Stats & Params'!$O$12)^('B. PoF Summary Stats & Params'!$M$12-1)), \"Choose Model\"))","v":1.9500427445396061E-2}]
[93,1,{"$f":"IF('B. PoF Summary Stats & Params'!$C$12=\"C\", B97*'B. PoF Summary Stats & Params'!$I$8*'B. PoF Summary Stats & Params'!$I$10*A97^('B. PoF Summary Stats & Params'!$I$10-1), IF('B. PoF Summary Stats & Params'!$C$12=\"W\", B97*(('B. PoF Summary Stats & Params'!$M$14/'B. PoF Summary Stats & Params'!$O$14)*((A97)/'B. PoF Summary Stats & Params'!$O$14)^('B. PoF Summary Stats & Params'!$M$14-1)), \"Choose Model\"))","v":0.15124803634031478},{"$f":"IF('B. PoF Summary Stats & Params'!$C$12=\"C\", B97*'B. PoF Summary Stats & Params'!$I$8*'B. PoF Summary Stats & Params'!$I$6*A97^('B. PoF Summary Stats & Params'!$I$6-1), IF('B. PoF Summary Stats & Params'!$C$12=\"W\", B97*(('B. PoF Summary Stats & Params'!$M$6/'B. PoF Summary Stats & Params'!$M$8)*((A97)/'B. PoF Summary Stats & Params'!$M$8)^('B. PoF Summary Stats & Params'!$M$6-1)), \"Choose Model\"))","v":5.5152366707916234E-2},{"$f":"IF('B. PoF Summary Stats & Params'!$C$12=\"C\", B97*'B. PoF Summary Stats & Params'!$I$8*'B. PoF Summary Stats & Params'!$I$12*A97^('B. PoF Summary Stats & Params'!$I$12-1), IF('B. PoF Summary Stats & Params'!$C$12=\"W\", B97*(('B. PoF Summary Stats & Params'!$M$12/'B. PoF Summary Stats & Params'!$O$12)*((A97)/'B. PoF Summary Stats & Params'!$O$12)^('B. PoF Summary Stats & Params'!$M$12-1)), \"Choose Model\"))","v":2.0048698185291904E-2}]
[94,1,{"$f":"IF('B. PoF Summary Stats & Params'!$C$12=\"C\", B98*'B. PoF Summary Stats & Params'!$I$8*'B. PoF Summary Stats & Params'!$I$10*A98^('B. PoF Summary Stats & Params'!$I$10-1), IF('B. PoF Summary Stats & Params'!$C$12=\"W\", B98*(('B. PoF Summary Stats & Params'!$M$14/'B. PoF Summary Stats & Params'!$O$14)*((A98)/'B. PoF Summary Stats & Params'!$O$14)^('B. PoF Summary Stats & Params'!$M$14-1)), \"Choose Model\"))","v":0.15615627166056795},{"$f":"IF('B. PoF Summary Stats & Params'!$C$12=\"C\", B98*'B. PoF Summary Stats & Params'!$I$8*'B. PoF Summary Stats & Params'!$I$6*A98^('B. PoF Summary Stats & Params'!$I$6-1), IF('B. PoF Summary Stats & Params'!$C$12=\"W\", B98*(('B. PoF Summary Stats & Params'!$M$6/'B. PoF Summary Stats & Params'!$M$8)*((A98)/'B. PoF Summary Stats & Params'!$M$8)^('B. PoF Summary Stats & Params'!$M$6-1)), \"Choose Model\"))","v":5.6814033519061787E-2},{"$f":"IF('B. PoF Summary Stats & Params'!$C$12=\"C\", B98*'B. PoF Summary Stats & Params'!$I$8*'B. PoF Summary Stats & Params'!$I$12*A98^('B. PoF Summary Stats & Params'!$I$12-1), IF('B. PoF Summary Stats & Params'!$C$12=\"W\", B98*(('B. PoF Summary Stats & Params'!$M$12/'B. PoF Summary Stats & Params'!$O$12)*((A98)/'B. PoF Summary Stats & Params'!$O$12)^('B. PoF Summary Stats & Params'!$M$12-1)), \"Choose Model\"))","v":2.0606272108849001E-2}]
[95,1,{"$f":"IF('B. PoF Summary Stats & Params'!$C$12=\"C\", B99*'B. PoF Summary Stats & Params'!$I$8*'B. PoF Summary Stats & Params'!$I$10*A99^('B. PoF Summary Stats & Params'!$I$10-1), IF('B. PoF Summary Stats & Params'!$C$12=\"W\", B99*(('B. PoF Summary Stats & Params'!$M$14/'B. PoF Summary Stats & Params'!$O$14)*((A99)/'B. PoF Summary Stats & Params'!$O$14)^('B. PoF Summary Stats & Params'!$M$14-1)), \"Choose Model\"))","v":0.16116930973965049},{"$f":"IF('B. PoF Summary Stats & Params'!$C$12=\"C\", B99*'B. PoF Summary Stats & Params'!$I$8*'B. PoF Summary Stats & Params'!$I$6*A99^('B. PoF Summary Stats & Params'!$I$6-1), IF('B. PoF Summary Stats & Params'!$C$12=\"W\", B99*(('B. PoF Summary Stats & Params'!$M$6/'B. PoF Summary Stats & Params'!$M$8)*((A99)/'B. PoF Summary Stats & Params'!$M$8)^('B. PoF Summary Stats & Params'!$M$6-1)), \"Choose Model\"))","v":5.8507382943909399E-2},{"$f":"IF('B. PoF Summary Stats & Params'!$C$12=\"C\", B99*'B. PoF Summary Stats & Params'!$I$8*'B. PoF Summary Stats & Params'!$I$12*A99^('B. PoF Summary Stats & Params'!$I$12-1), IF('B. PoF Summary Stats & Params'!$C$12=\"W\", B99*(('B. PoF Summary Stats & Params'!$M$12/'B. PoF Summary Stats & Params'!$O$12)*((A99)/'B. PoF Summary Stats & Params'!$O$12)^('B. PoF Summary Stats & Params'!$M$12-1)), \"Choose Model\"))","v":2.1173205584350537E-2}]
[96,1,{"$f":"IF('B. PoF Summary Stats & Params'!$C$12=\"C\", B100*'B. PoF Summary Stats & Params'!$I$8*'B. PoF Summary Stats & Params'!$I$10*A100^('B. PoF Summary Stats & Params'!$I$10-1), IF('B. PoF Summary Stats & Params'!$C$12=\"W\", B100*(('B. PoF Summary Stats & Params'!$M$14/'B. PoF Summary Stats & Params'!$O$14)*((A100)/'B. PoF Summary Stats & Params'!$O$14)^('B. PoF Summary Stats & Params'!$M$14-1)), \"Choose Model\"))","v":0.16628824981032514},{"$f":"IF('B. PoF Summary Stats & Params'!$C$12=\"C\", B100*'B. PoF Summary Stats & Params'!$I$8*'B. PoF Summary Stats & Params'!$I$6*A100^('B. PoF Summary Stats & Params'!$I$6-1), IF('B. PoF Summary Stats & Params'!$C$12=\"W\", B100*(('B. PoF Summary Stats & Params'!$M$6/'B. PoF Summary Stats & Params'!$M$8)*((A100)/'B. PoF Summary Stats & Params'!$M$8)^('B. PoF Summary Stats & Params'!$M$6-1)), \"Choose Model\"))","v":6.0232676020536592E-2},{"$f":"IF('B. PoF Summary Stats & Params'!$C$12=\"C\", B100*'B. PoF Summary Stats & Params'!$I$8*'B. PoF Summary Stats & Params'!$I$12*A100^('B. PoF Summary Stats & Params'!$I$12-1), IF('B. PoF Summary Stats & Params'!$C$12=\"W\", B100*(('B. PoF Summary Stats & Params'!$M$12/'B. PoF Summary Stats & Params'!$O$12)*((A100)/'B. PoF Summary Stats & Params'!$O$12)^('B. PoF Summary Stats & Params'!$M$12-1)), \"Choose Model\"))","v":2.1749554719696737E-2}]
[97,1,{"$f":"IF('B. PoF Summary Stats & Params'!$C$12=\"C\", B101*'B. PoF Summary Stats & Params'!$I$8*'B. PoF Summary Stats & Params'!$I$10*A101^('B. PoF Summary Stats & Params'!$I$10-1), IF('B. PoF Summary Stats & Params'!$C$12=\"W\", B101*(('B. PoF Summary Stats & Params'!$M$14/'B. PoF Summary Stats & Params'!$O$14)*((A101)/'B. PoF Summary Stats & Params'!$O$14)^('B. PoF Summary Stats & Params'!$M$14-1)), \"Choose Model\"))","v":0.17151419094336784},{"$f":"IF('B. PoF Summary Stats & Params'!$C$12=\"C\", B101*'B. PoF Summary Stats & Params'!$I$8*'B. PoF Summary Stats & Params'!$I$6*A101^('B. PoF Summary Stats & Params'!$I$6-1), IF('B. PoF Summary Stats & Params'!$C$12=\"W\", B101*(('B. PoF Summary Stats & Params'!$M$6/'B. PoF Summary Stats & Params'!$M$8)*((A101)/'B. PoF Summary Stats & Params'!$M$8)^('B. PoF Summary Stats & Params'!$M$6-1)), \"Choose Model\"))","v":6.1990173170574307E-2},{"$f":"IF('B. PoF Summary Stats & Params'!$C$12=\"C\", B101*'B. PoF Summary Stats & Params'!$I$8*'B. PoF Summary Stats & Params'!$I$12*A101^('B. PoF Summary Stats & Params'!$I$12-1), IF('B. PoF Summary Stats & Params'!$C$12=\"W\", B101*(('B. PoF Summary Stats & Params'!$M$12/'B. PoF Summary Stats & Params'!$O$12)*((A101)/'B. PoF Summary Stats & Params'!$O$12)^('B. PoF Summary Stats & Params'!$M$12-1)), \"Choose Model\"))","v":2.2335375366329912E-2}]
[98,1,{"$f":"IF('B. PoF Summary Stats & Params'!$C$12=\"C\", B102*'B. PoF Summary Stats & Params'!$I$8*'B. PoF Summary Stats & Params'!$I$10*A102^('B. PoF Summary Stats & Params'!$I$10-1), IF('B. PoF Summary Stats & Params'!$C$12=\"W\", B102*(('B. PoF Summary Stats & Params'!$M$14/'B. PoF Summary Stats & Params'!$O$14)*((A102)/'B. PoF Summary Stats & Params'!$O$14)^('B. PoF Summary Stats & Params'!$M$14-1)), \"Choose Model\"))","v":0.17684823204927946},{"$f":"IF('B. PoF Summary Stats & Params'!$C$12=\"C\", B102*'B. PoF Summary Stats & Params'!$I$8*'B. PoF Summary Stats & Params'!$I$6*A102^('B. PoF Summary Stats & Params'!$I$6-1), IF('B. PoF Summary Stats & Params'!$C$12=\"W\", B102*(('B. PoF Summary Stats & Params'!$M$6/'B. PoF Summary Stats & Params'!$M$8)*((A102)/'B. PoF Summary Stats & Params'!$M$8)^('B. PoF Summary Stats & Params'!$M$6-1)), \"Choose Model\"))","v":6.3780134207061828E-2},{"$f":"IF('B. PoF Summary Stats & Params'!$C$12=\"C\", B102*'B. PoF Summary Stats & Params'!$I$8*'B. PoF Summary Stats & Params'!$I$12*A102^('B. PoF Summary Stats & Params'!$I$12-1), IF('B. PoF Summary Stats & Params'!$C$12=\"W\", B102*(('B. PoF Summary Stats & Params'!$M$12/'B. PoF Summary Stats & Params'!$O$12)*((A102)/'B. PoF Summary Stats & Params'!$O$12)^('B. PoF Summary Stats & Params'!$M$12-1)), \"Choose Model\"))","v":2.293072312306009E-2}]
[99,1,{"$f":"IF('B. PoF Summary Stats & Params'!$C$12=\"C\", B103*'B. PoF Summary Stats & Params'!$I$8*'B. PoF Summary Stats & Params'!$I$10*A103^('B. PoF Summary Stats & Params'!$I$10-1), IF('B. PoF Summary Stats & Params'!$C$12=\"W\", B103*(('B. PoF Summary Stats & Params'!$M$14/'B. PoF Summary Stats & Params'!$O$14)*((A103)/'B. PoF Summary Stats & Params'!$O$14)^('B. PoF Summary Stats & Params'!$M$14-1)), \"Choose Model\"))","v":0.18229147187996098},{"$f":"IF('B. PoF Summary Stats & Params'!$C$12=\"C\", B103*'B. PoF Summary Stats & Params'!$I$8*'B. PoF Summary Stats & Params'!$I$6*A103^('B. PoF Summary Stats & Params'!$I$6-1), IF('B. PoF Summary Stats & Params'!$C$12=\"W\", B103*(('B. PoF Summary Stats & Params'!$M$6/'B. PoF Summary Stats & Params'!$M$8)*((A103)/'B. PoF Summary Stats & Params'!$M$8)^('B. PoF Summary Stats & Params'!$M$6-1)), \"Choose Model\"))","v":6.5602818342121907E-2},{"$f":"IF('B. PoF Summary Stats & Params'!$C$12=\"C\", B103*'B. PoF Summary Stats & Params'!$I$8*'B. PoF Summary Stats & Params'!$I$12*A103^('B. PoF Summary Stats & Params'!$I$12-1), IF('B. PoF Summary Stats & Params'!$C$12=\"W\", B103*(('B. PoF Summary Stats & Params'!$M$12/'B. PoF Summary Stats & Params'!$O$12)*((A103)/'B. PoF Summary Stats & Params'!$O$12)^('B. PoF Summary Stats & Params'!$M$12-1)), \"Choose Model\"))","v":2.3535653339794883E-2}]
[100,1,{"$f":"IF('B. PoF Summary Stats & Params'!$C$12=\"C\", B104*'B. PoF Summary Stats & Params'!$I$8*'B. PoF Summary Stats & Params'!$I$10*A104^('B. PoF Summary Stats & Params'!$I$10-1), IF('B. PoF Summary Stats & Params'!$C$12=\"W\", B104*(('B. PoF Summary Stats & Params'!$M$14/'B. PoF Summary Stats & Params'!$O$14)*((A104)/'B. PoF Summary Stats & Params'!$O$14)^('B. PoF Summary Stats & Params'!$M$14-1)), \"Choose Model\"))","v":0.18784500903035431},{"$f":"IF('B. PoF Summary Stats & Params'!$C$12=\"C\", B104*'B. PoF Summary Stats & Params'!$I$8*'B. PoF Summary Stats & Params'!$I$6*A104^('B. PoF Summary Stats & Params'!$I$6-1), IF('B. PoF Summary Stats & Params'!$C$12=\"W\", B104*(('B. PoF Summary Stats & Params'!$M$6/'B. PoF Summary Stats & Params'!$M$8)*((A104)/'B. PoF Summary Stats & Params'!$M$8)^('B. PoF Summary Stats & Params'!$M$6-1)), \"Choose Model\"))","v":6.745848419446146E-2},{"$f":"IF('B. PoF Summary Stats & Params'!$C$12=\"C\", B104*'B. PoF Summary Stats & Params'!$I$8*'B. PoF Summary Stats & Params'!$I$12*A104^('B. PoF Summary Stats & Params'!$I$12-1), IF('B. PoF Summary Stats & Params'!$C$12=\"W\", B104*(('B. PoF Summary Stats & Params'!$M$12/'B. PoF Summary Stats & Params'!$O$12)*((A104)/'B. PoF Summary Stats & Params'!$O$12)^('B. PoF Summary Stats & Params'!$M$12-1)), \"Choose Model\"))","v":2.4150221121176825E-2}]

{"sheet":"B. PoF Summary Stats & Params","index":6,"n_rows":26,"n_cols":25,"rows_kept":26,"cut":false,"hidden":false,"merged":[[2,1,3,2],[2,4,3,5],[2,7,3,9],[2,11,3,15],[11,19,11,20],[8,18,8,20],[7,18,7,20],[6,18,6,20],[2,17,3,25],[5,18,5,20]]}
[null,null,"PoF Summary Statistics and Parameters"]
[]
[null,"Summary Statisitics",null,null,"Failure Model Parameters",null,null,"Crow-AMSAA Parameters",null,null,null,"Weibull Parameters",null,null,null,null,null,"Health Index Parameters"]
[]
[null,"Number of PoF Adjustment Factors",{"$f":"COUNTIF('B. Population PoF Scores'!$O$5:$S$5,\">\"&0)","v":3}]
[null,"Min Score",{"$f":"C5*1","v":3},null,"βavg",{"$f":"IF($C$12=\"C\", I6, IF($C$12=\"W\", M6, \"Choose Model\"))","v":3.7753999999999999},null,"βavg",null,null,null,"βavg",3.7753999999999999,null,null,null,null,null,"Earliest Age Asset Considered (Years)",null,null,0.5,null,"Min PoF",{"$f":"IF($C$12=\"C\", I8*I12*V6^(I12-1), IF($C$12=\"W\", (($M12/$O12)*((V6)/$O12)^(M12-1)), \"Choose Model\"))","v":3.0285822915866802E-8}]
[null,"Max Score",{"$f":"C5*5","v":15},null,"95%CI Adj (β)",{"$f":"(F6-F14)/F6","v":5.5782168776818325E-2},null,null,null,null,null,null,null,null,null,null,null,null,"Asset RAB Life (Years)",null,null,45.89,null,"Max PoF",{"$f":"IF($C$12=\"C\",  I8*I10*V9^(I10-1), IF($C$12=\"W\", (($M14/$O14)*((V9)/$O14)^(M14-1)), \"Choose Model\"))","v":2.3709592701932677E-2}]
[null,"No. of Z-Scores",{"$f":"5^C5","v":125},null,null,{"$f":"F6*F7","v":0.2105999999999999},null,"λavg",null,null,null,"havg",85.749700000000004,null,null,null,null,null,"Asset RAB Life Addition (%)",null,null,0.1,null,"HI Categories",10]
[null,null,null,null,"Std. Dev",{"$f":"SQRT(_xlfn.STDEV.P(({1;2;3;4;5}*'B. Population PoF Scores'!O5))^2+_xlfn.STDEV.P(({1;2;3;4;5}*'B. Population PoF Scores'!P5))^2+_xlfn.STDEV.P(({1;2;3;4;5}*'B. Population PoF Scores'!Q5))^2+_xlfn.STDEV.P(({1;2;3;4;5}*'B. Population PoF Scores'!R5))^2+_xlfn.STDEV.P(({1;2;3;4;5}*'B. Population PoF Scores'!S5))^2)","v":2.4494897427831783},null,null,null,null,null,null,null,null,null,null,null,null,"Asset RAB Life + Addition (%)",null,null,{"$f":"ROUND(V7*(1+V8), 0)","v":50},null,"Delta per Cat.",{"$f":"(Y7-Y6)/Y8","v":2.370956241610976E-3}]
[null,"Reference Date",2018,null,"Max Std. Dev",{"$f":"(SUM('B. Population PoF Scores'!O5:S5)-F11)/F9*-1","v":2.4494897427831779},null,"βpoor",null,null,null,"b",-16.806000000000001]
[null,null,null,null,"Average PoF Factor Score",{"$f":"SUM('B. Population PoF Scores'!O5:S5)*3","v":9}]
[null,"Crow-AMSAA or Weibull Failure Model","W",null,"β ZCF Scalar",{"$f":"F8/F10","v":8.5977089971689513E-2},null,"βgood",null,null,null,"βgood",3.5648,"hgood",111.5424,null,null,null,"HEALTH INDEX","PoF Range"]
[null,null,null,null,null,null,null,null,null,null,null,null,null,null,null,null,null,null,1,0,{"$f":"$Y$6+S13*$Y$9","v":2.370986527433892E-3}]
[null,"Replacement Type","Like-for-like",null,"βgood",{"$f":"IF($C$12=\"C\", I12, IF($C$12=\"W\", M12, \"Choose Model\"))","v":3.5648},null,null,null,null,null,"βpoor",3.9860000000000002,"hpoor",67.778700000000001,null,null,null,2,{"$f":"U13","v":2.370986527433892E-3},4.7419427690448676E-3]
[null,null,null,null,"βpoor",{"$f":"IF($C$12=\"C\", I10, IF($C$12=\"W\", M14, \"Choose Model\"))","v":3.9860000000000002},null,null,null,null,null,null,null,null,null,null,null,null,3,4.7419427690448676E-3,7.1128990106558432E-3]
[null,null,null,null,"λpopulation",{"$f":"IF($C$12=\"C\", I8, \"Not Applicable\")","v":"Not Applicable"},null,null,null,null,null,null,null,null,null,null,null,null,4,7.1128990106558432E-3,9.4838552522668196E-3]
[null,null,null,null,null,null,null,null,null,null,null,null,null,null,null,null,null,null,5,9.4838552522668196E-3,1.1854811493877796E-2]
[null,null,null,null,"havg",{"$f":"IF($C$12=\"C\", \"Not Applicable\", M8)","v":85.749700000000004},null,null,null,null,null,null,null,null,null,null,null,null,6,1.1854811493877796E-2,1.4225767735488771E-2]
[null,null,null,null,"Intercept (b)",{"$f":"IF($C$12=\"C\", \"Not Applicable\", M10)","v":-16.806000000000001},null,null,null,null,null,null,null,null,null,null,null,null,7,1.4225767735488771E-2,1.6596723977099749E-2]
[null,null,null,null,"hgood",{"$f":"IF($C$12=\"C\", \"Not Applicable\", O12)","v":111.5424},null,null,null,null,null,null,null,null,null,null,null,null,8,1.6596723977099749E-2,1.8967680218710724E-2]
[null,null,null,null,"95%CI Adj (hgood)",{"$f":"IF($C$12=\"C\", \"Not Applicable\", (F20-M8)/M8)","v":0.30079055670165605},null,null,null,null,null,null,null,null,null,null,null,null,9,1.8967680218710724E-2,2.1338636460321699E-2]
[null,null,null,null,null,null,null,null,null,null,null,null,null,null,null,null,null,null,10,2.1338636460321699E-2,2.3709592701932677E-2]
[null,null,null,null,"hpoor",{"$f":"IF($C$12=\"C\", \"Not Applicable\", O14)","v":67.778700000000001}]
[null,null,null,null,"95%CI Adj (hpoor)",{"$f":"IF($C$12=\"C\", \"Not Applicable\", (F23-M8)/M8)","v":-0.20957507723059093}]
[]
[null,null,null,null,"Replacement Asset PoF",{"$f":"IF($C$14=\"Like-for-like\",IF($C$12=\"C\",I8*I6*V6^(I12-1),IF($C$12=\"W\",(($M6/$M8)*((V6)/$M8)^(M6-1)),\"Choose Model\")),IF($C$14=\"New model\",IF($C$12=\"C\", I8*I12*V6^(I12-1), IF($C$12=\"W\", (($M12/$O12)*((V6)/$O12)^(M12-1)), \"Choose Model\"))))","v":2.7717747126723335E-8}]

{"sheet":"B. PoF Adj Factor Scoring","index":7,"n_rows":10,"n_cols":14,"rows_kept":10,"cut":false,"hidden":false,"merged":[[2,12,2,13],[2,4,2,5],[2,2,4,2],[2,1,4,1],[2,6,2,7],[2,8,2,9],[2,10,2,11]]}
[null,null,"PoF Adjustment Factors and Scores"]
[]
[null,"PoF Affect","PoF Score",null,{"$f":"'B. Population PoF Scores'!B4","v":"Insulation Type"},null,{"$f":"'B. Population PoF Scores'!C4","v":"Oil Test Results"},null,{"$f":"'B. Population PoF Scores'!D4","v":"Leakages"},null,{"$f":"'B. Population PoF Scores'!E4","v":0},null,{"$f":"'B. Population PoF Scores'!F4","v":0}]
[null,null,null,null,"Factor Value","PoF Score","Factor Value","PoF Score","Factor Value","PoF Score","Factor Value","PoF Score","Factor Value","PoF Score"]
[null,null,null,null,"CAST_RESIN",1,1,1,0,1,0,1]
[null,"Insignificant",1,null,"OIL",1,2,2,1000,2]
[null,"Minor",2,null,"OIL_FR3",1,3,3,3000,3]
[null,"Moderate",3,null,"SF6",1,4,4,5000,4]
[null,"Major",4,null,null,null,5,5,20000,5]
[null,"Severe",5,null,null,null,"N/A",1]

{"sheet":"B. Population PoF Scores","index":8,"n_rows":573,"n_cols":19,"rows_kept":573,"cut":false,"hidden":false,"merged":[[2,1,2,5],[2,0,4,0],[2,6,2,10]]}
[null,null,"Population PoF Scores"]
[]
["Asset Identifier","POF ADJUSTMENT FACTORS",null,null,null,null,"POF SCORES"]
[null,{"$f":"'A. Population Info'!G5","v":"Insulation Type"},{"$f":"'A. Population Info'!H5","v":"Oil Test Results"},{"$f":"'A. Population Info'!I5","v":"Leakages"},{"$f":"'A. Population Info'!J5","v":0},{"$f":"'A. Population Info'!K5","v":0},{"$f":"B4","v":"Insulation Type"},{"$f":"C4","v":"Oil Test Results"},{"$f":"D4","v":"Leakages"},{"$f":"E4","v":0},{"$f":"F4","v":0},null,null,null,{"$f":"B4","v":"Insulation Type"},{"$f":"C4","v":"Oil Test Results"},{"$f":"D4","v":"Leakages"},{"$f":"E4","v":0},{"$f":"F4","v":0}]
[null,null,null,null,null,null,{"$f":"O5","v":1},{"$f":"P5","v":1},{"$f":"Q5","v":1},{"$f":"R5","v":0},{"$f":"S5","v":0},null,null,"Weighting 1",1,1,1,0,0]
[{"$f":"'A. Population Info'!A6","v":1000023626},{"$f":"'A. Population Info'!G6","v":"OIL"},{"$f":"'A. Population Info'!H6","v":1},{"$f":"'A. Population Info'!I6","v":0},{"$f":"'A. Population Info'!J6","v":0},{"$f":"'A. Population Info'!K6","v":0},{"$f":"VLOOKUP(B:B,OFFSET('B. PoF Adj Factor Scoring'!$E$5:$F$282,,MATCH(G$4,'B. PoF Adj Factor Scoring'!$E$3:$N$3,0)-1),2,TRUE)","v":1},{"$f":"VLOOKUP(C:C,OFFSET('B. PoF Adj Factor Scoring'!$E$5:$F$282,,MATCH(H$4,'B. PoF Adj Factor Scoring'!$E$3:$N$3,0)-1),2,TRUE)","v":1},{"$f":"VLOOKUP(D:D,OFFSET('B. PoF Adj Factor Scoring'!$E$5:$F$282,,MATCH(I$4,'B. PoF Adj Factor Scoring'!$E$3:$N$3,0)-1),2,TRUE)","v":1},{"$f":"VLOOKUP(E:E,OFFSET('B. PoF Adj Factor Scoring'!$E$5:$F$282,,MATCH(J$4,'B. PoF Adj Factor Scoring'!$E$3:$N$3,0)-1),2,TRUE)","v":1},{"$f":"VLOOKUP(F:F,OFFSET('B. PoF Adj Factor Scoring'!$E$5:$F$282,,MATCH(K$4,'B. PoF Adj Factor Scoring'!$E$3:$N$3,0)-1),2,TRUE)","v":1}]
[{"$f":"'A. Population Info'!A7","v":1000023638},{"$f":"'A. Population Info'!G7","v":"OIL"},{"$f":"'A. Population Info'!H7","v":1},{"$f":"'A. Population Info'!I7","v":0},{"$f":"'A. Population Info'!J7","v":0},{"$f":"'A. Population Info'!K7","v":0},{"$f":"VLOOKUP(B:B,OFFSET('B. PoF Adj Factor Scoring'!$E$5:$F$282,,MATCH(G$4,'B. PoF Adj Factor Scoring'!$E$3:$N$3,0)-1),2,TRUE)","v":1},{"$f":"VLOOKUP(C:C,OFFSET('B. PoF Adj Factor Scoring'!$E$5:$F$282,,MATCH(H$4,'B. PoF Adj Factor Scoring'!$E$3:$N$3,0)-1),2,TRUE)","v":1},{"$f":"VLOOKUP(D:D,OFFSET('B. PoF Adj Factor Scoring'!$E$5:$F$282,,MATCH(I$4,'B. PoF Adj Factor Scoring'!$E$3:$N$3,0)-1),2,TRUE)","v":1},{"$f":"VLOOKUP(E:E,OFFSET('B. PoF Adj Factor Scoring'!$E$5:$F$282,,MATCH(J$4,'B. PoF Adj Factor Scoring'!$E$3:$N$3,0)-1),2,TRUE)","v":1},{"$f":"VLOOKUP(F:F,OFFSET('B. PoF Adj Factor Scoring'!$E$5:$F$282,,MATCH(K$4,'B. PoF Adj Factor Scoring'!$E$3:$N$3,0)-1),2,TRUE)","v":1}]
[{"$f":"'A. Population Info'!A8","v":1000023649},{"$f":"'A. Population Info'!G8","v":"OIL"},{"$f":"'A. Population Info'!H8","v":1},{"$f":"'A. Population Info'!I8","v":0},{"$f":"'A. Population Info'!J8","v":0},{"$f":"'A. Population Info'!K8","v":0},{"$f":"VLOOKUP(B:B,OFFSET('B. PoF Adj Factor Scoring'!$E$5:$F$282,,MATCH(G$4,'B. PoF Adj Factor Scoring'!$E$3:$N$3,0)-1),2,TRUE)","v":1},{"$f":"VLOOKUP(C:C,OFFSET('B. PoF Adj Factor Scoring'!$E$5:$F$282,,MATCH(H$4,'B. PoF Adj Factor Scoring'!$E$3:$N$3,0)-1),2,TRUE)","v":1},{"$f":"VLOOKUP(D:D,OFFSET('B. PoF Adj Factor Scoring'!$E$5:$F$282,,MATCH(I$4,'B. PoF Adj Factor Scoring'!$E$3:$N$3,0)-1),2,TRUE)","v":1},{"$f":"VLOOKUP(E:E,OFFSET('B. PoF Adj Factor Scoring'!$E$5:$F$282,,MATCH(J$4,'B. PoF Adj Factor Scoring'!$E$3:$N$3,0)-1),2,TRUE)","v":1},{"$f":"VLOOKUP(F:F,OFFSET('B. PoF Adj Factor Scoring'!$E$5:$F$282,,MATCH(K$4,'B. PoF Adj Factor Scoring'!$E$3:$N$3,0)-1),2,TRUE)","v":1}]
[{"$f":"'A. Population Info'!A9","v":1000048071},{"$f":"'A. Population Info'!G9","v":"OIL"},{"$f":"'A. Population Info'!H9","v":1},{"$f":"'A. Population Info'!I9","v":0},{"$f":"'A. Population Info'!J9","v":0},{"$f":"'A. Population Info'!K9","v":0},{"$f":"VLOOKUP(B:B,OFFSET('B. PoF Adj Factor Scoring'!$E$5:$F$282,,MATCH(G$4,'B. PoF Adj Factor Scoring'!$E$3:$N$3,0)-1),2,TRUE)","v":1},{"$f":"VLOOKUP(C:C,OFFSET('B. PoF Adj Factor Scoring'!$E$5:$F$282,,MATCH(H$4,'B. PoF Adj Factor Scoring'!$E$3:$N$3,0)-1),2,TRUE)","v":1},{"$f":"VLOOKUP(D:D,OFFSET('B. PoF Adj Factor Scoring'!$E$5:$F$282,,MATCH(I$4,'B. PoF Adj Factor Scoring'!$E$3:$N$3,0)-1),2,TRUE)","v":1},{"$f":"VLOOKUP(E:E,OFFSET('B. PoF Adj Factor Scoring'!$E$5:$F$282,,MATCH(J$4,'B. PoF Adj Factor Scoring'!$E$3:$N$3,0)-1),2,TRUE)","v":1},{"$f":"VLOOKUP(F:F,OFFSET('B. PoF Adj Factor Scoring'!$E$5:$F$282,,MATCH(K$4,'B. PoF Adj Factor Scoring'!$E$3:$N$3,0)-1),2,TRUE)","v":1}]
[{"$f":"'A. Population Info'!A10","v":1000048606},{"$f":"'A. Population Info'!G10","v":"OIL"},{"$f":"'A. Population Info'!H10","v":1},{"$f":"'A. Population Info'!I10","v":0},{"$f":"'A. Population Info'!J10","v":0},{"$f":"'A. Population Info'!K10","v":0},{"$f":"VLOOKUP(B:B,OFFSET('B. PoF Adj Factor Scoring'!$E$5:$F$282,,MATCH(G$4,'B. PoF Adj Factor Scoring'!$E$3:$N$3,0)-1),2,TRUE)","v":1},{"$f":"VLOOKUP(C:C,OFFSET('B. PoF Adj Factor Scoring'!$E$5:$F$282,,MATCH(H$4,'B. PoF Adj Factor Scoring'!$E$3:$N$3,0)-1),2,TRUE)","v":1},{"$f":"VLOOKUP(D:D,OFFSET('B. PoF Adj Factor Scoring'!$E$5:$F$282,,MATCH(I$4,'B. PoF Adj Factor Scoring'!$E$3:$N$3,0)-1),2,TRUE)","v":1},{"$f":"VLOOKUP(E:E,OFFSET('B. PoF Adj Factor Scoring'!$E$5:$F$282,,MATCH(J$4,'B. PoF Adj Factor Scoring'!$E$3:$N$3,0)-1),2,TRUE)","v":1},{"$f":"VLOOKUP(F:F,OFFSET('B. PoF Adj Factor Scoring'!$E$5:$F$282,,MATCH(K$4,'B. PoF Adj Factor Scoring'!$E$3:$N$3,0)-1),2,TRUE)","v":1}]
[{"$f":"'A. Population Info'!A11","v":1000048621},{"$f":"'A. Population Info'!G11","v":"OIL"},{"$f":"'A. Population Info'!H11","v":1},{"$f":"'A. Population Info'!I11","v":0},{"$f":"'A. Population Info'!J11","v":0},{"$f":"'A. Population Info'!K11","v":0},{"$f":"VLOOKUP(B:B,OFFSET('B. PoF Adj Factor Scoring'!$E$5:$F$282,,MATCH(G$4,'B. PoF Adj Factor Scoring'!$E$3:$N$3,0)-1),2,TRUE)","v":1},{"$f":"VLOOKUP(C:C,OFFSET('B. PoF Adj Factor Scoring'!$E$5:$F$282,,MATCH(H$4,'B. PoF Adj Factor Scoring'!$E$3:$N$3,0)-1),2,TRUE)","v":1},{"$f":"VLOOKUP(D:D,OFFSET('B. PoF Adj Factor Scoring'!$E$5:$F$282,,MATCH(I$4,'B. PoF Adj Factor Scoring'!$E$3:$N$3,0)-1),2,TRUE)","v":1},{"$f":"VLOOKUP(E:E,OFFSET('B. PoF Adj Factor Scoring'!$E$5:$F$282,,MATCH(J$4,'B. PoF Adj Factor Scoring'!$E$3:$N$3,0)-1),2,TRUE)","v":1},{"$f":"VLOOKUP(F:F,OFFSET('B. PoF Adj Factor Scoring'!$E$5:$F$282,,MATCH(K$4,'B. PoF Adj Factor Scoring'!$E$3:$N$3,0)-1),2,TRUE)","v":1}]
[{"$f":"'A. Population Info'!A12","v":1000048751},{"$f":"'A. Population Info'!G12","v":"OIL"},{"$f":"'A. Population Info'!H12","v":1},{"$f":"'A. Population Info'!I12","v":0},{"$f":"'A. Population Info'!J12","v":0},{"$f":"'A. Population Info'!K12","v":0},{"$f":"VLOOKUP(B:B,OFFSET('B. PoF Adj Factor Scoring'!$E$5:$F$282,,MATCH(G$4,'B. PoF Adj Factor Scoring'!$E$3:$N$3,0)-1),2,TRUE)","v":1},{"$f":"VLOOKUP(C:C,OFFSET('B. PoF Adj Factor Scoring'!$E$5:$F$282,,MATCH(H$4,'B. PoF Adj Factor Scoring'!$E$3:$N$3,0)-1),2,TRUE)","v":1},{"$f":"VLOOKUP(D:D,OFFSET('B. PoF Adj Factor Scoring'!$E$5:$F$282,,MATCH(I$4,'B. PoF Adj Factor Scoring'!$E$3:$N$3,0)-1),2,TRUE)","v":1},{"$f":"VLOOKUP(E:E,OFFSET('B. PoF Adj Factor Scoring'!$E$5:$F$282,,MATCH(J$4,'B. PoF Adj Factor Scoring'!$E$3:$N$3,0)-1),2,TRUE)","v":1},{"$f":"VLOOKUP(F:F,OFFSET('B. PoF Adj Factor Scoring'!$E$5:$F$282,,MATCH(K$4,'B. PoF Adj Factor Scoring'!$E$3:$N$3,0)-1),2,TRUE)","v":1}]
[{"$f":"'A. Population Info'!A13","v":1000063506},{"$f":"'A. Population Info'!G13","v":"OIL"},{"$f":"'A. Population Info'!H13","v":1},{"$f":"'A. Population Info'!I13","v":0},{"$f":"'A. Population Info'!J13","v":0},{"$f":"'A. Population Info'!K13","v":0},{"$f":"VLOOKUP(B:B,OFFSET('B. PoF Adj Factor Scoring'!$E$5:$F$282,,MATCH(G$4,'B. PoF Adj Factor Scoring'!$E$3:$N$3,0)-1),2,TRUE)","v":1},{"$f":"VLOOKUP(C:C,OFFSET('B. PoF Adj Factor Scoring'!$E$5:$F$282,,MATCH(H$4,'B. PoF Adj Factor Scoring'!$E$3:$N$3,0)-1),2,TRUE)","v":1},{"$f":"VLOOKUP(D:D,OFFSET('B. PoF Adj Factor Scoring'!$E$5:$F$282,,MATCH(I$4,'B. PoF Adj Factor Scoring'!$E$3:$N$3,0)-1),2,TRUE)","v":1},{"$f":"VLOOKUP(E:E,OFFSET('B. PoF Adj Factor Scoring'!$E$5:$F$282,,MATCH(J$4,'B. PoF Adj Factor Scoring'!$E$3:$N$3,0)-1),2,TRUE)","v":1},{"$f":"VLOOKUP(F:F,OFFSET('B. PoF Adj Factor Scoring'!$E$5:$F$282,,MATCH(K$4,'B. PoF Adj Factor Scoring'!$E$3:$N$3,0)-1),2,TRUE)","v":1}]
[{"$f":"'A. Population Info'!A14","v":1000096500},{"$f":"'A. Population Info'!G14","v":"OIL"},{"$f":"'A. Population Info'!H14","v":1},{"$f":"'A. Population Info'!I14","v":0},{"$f":"'A. Population Info'!J14","v":0},{"$f":"'A. Population Info'!K14","v":0},{"$f":"VLOOKUP(B:B,OFFSET('B. PoF Adj Factor Scoring'!$E$5:$F$282,,MATCH(G$4,'B. PoF Adj Factor Scoring'!$E$3:$N$3,0)-1),2,TRUE)","v":1},{"$f":"VLOOKUP(C:C,OFFSET('B. PoF Adj Factor Scoring'!$E$5:$F$282,,MATCH(H$4,'B. PoF Adj Factor Scoring'!$E$3:$N$3,0)-1),2,TRUE)","v":1},{"$f":"VLOOKUP(D:D,OFFSET('B. PoF Adj Factor Scoring'!$E$5:$F$282,,MATCH(I$4,'B. PoF Adj Factor Scoring'!$E$3:$N$3,0)-1),2,TRUE)","v":1},{"$f":"VLOOKUP(E:E,OFFSET('B. PoF Adj Factor Scoring'!$E$5:$F$282,,MATCH(J$4,'B. PoF Adj Factor Scoring'!$E$3:$N$3,0)-1),2,TRUE)","v":1},{"$f":"VLOOKUP(F:F,OFFSET('B. PoF Adj Factor Scoring'!$E$5:$F$282,,MATCH(K$4,'B. PoF Adj Factor Scoring'!$E$3:$N$3,0)-1),2,TRUE)","v":1}]
[{"$f":"'A. Population Info'!A15","v":1000096880},{"$f":"'A. Population Info'!G15","v":"OIL"},{"$f":"'A. Population Info'!H15","v":1},{"$f":"'A. Population Info'!I15","v":0},{"$f":"'A. Population Info'!J15","v":0},{"$f":"'A. Population Info'!K15","v":0},{"$f":"VLOOKUP(B:B,OFFSET('B. PoF Adj Factor Scoring'!$E$5:$F$282,,MATCH(G$4,'B. PoF Adj Factor Scoring'!$E$3:$N$3,0)-1),2,TRUE)","v":1},{"$f":"VLOOKUP(C:C,OFFSET('B. PoF Adj Factor Scoring'!$E$5:$F$282,,MATCH(H$4,'B. PoF Adj Factor Scoring'!$E$3:$N$3,0)-1),2,TRUE)","v":1},{"$f":"VLOOKUP(D:D,OFFSET('B. PoF Adj Factor Scoring'!$E$5:$F$282,,MATCH(I$4,'B. PoF Adj Factor Scoring'!$E$3:$N$3,0)-1),2,TRUE)","v":1},{"$f":"VLOOKUP(E:E,OFFSET('B. PoF Adj Factor Scoring'!$E$5:$F$282,,MATCH(J$4,'B. PoF Adj Factor Scoring'!$E$3:$N$3,0)-1),2,TRUE)","v":1},{"$f":"VLOOKUP(F:F,OFFSET('B. PoF Adj Factor Scoring'!$E$5:$F$282,,MATCH(K$4,'B. PoF Adj Factor Scoring'!$E$3:$N$3,0)-1),2,TRUE)","v":1}]
[{"$f":"'A. Population Info'!A16","v":1000114250},{"$f":"'A. Population Info'!G16","v":"OIL"},{"$f":"'A. Population Info'!H16","v":1},{"$f":"'A. Population Info'!I16","v":0},{"$f":"'A. Population Info'!J16","v":0},{"$f":"'A. Population Info'!K16","v":0},{"$f":"VLOOKUP(B:B,OFFSET('B. PoF Adj Factor Scoring'!$E$5:$F$282,,MATCH(G$4,'B. PoF Adj Factor Scoring'!$E$3:$N$3,0)-1),2,TRUE)","v":1},{"$f":"VLOOKUP(C:C,OFFSET('B. PoF Adj Factor Scoring'!$E$5:$F$282,,MATCH(H$4,'B. PoF Adj Factor Scoring'!$E$3:$N$3,0)-1),2,TRUE)","v":1},{"$f":"VLOOKUP(D:D,OFFSET('B. PoF Adj Factor Scoring'!$E$5:$F$282,,MATCH(I$4,'B. PoF Adj Factor Scoring'!$E$3:$N$3,0)-1),2,TRUE)","v":1},{"$f":"VLOOKUP(E:E,OFFSET('B. PoF Adj Factor Scoring'!$E$5:$F$282,,MATCH(J$4,'B. PoF Adj Factor Scoring'!$E$3:$N$3,0)-1),2,TRUE)","v":1},{"$f":"VLOOKUP(F:F,OFFSET('B. PoF Adj Factor Scoring'!$E$5:$F$282,,MATCH(K$4,'B. PoF Adj Factor Scoring'!$E$3:$N$3,0)-1),2,TRUE)","v":1}]
[{"$f":"'A. Population Info'!A17","v":1000131033},{"$f":"'A. Population Info'!G17","v":"OIL"},{"$f":"'A. Population Info'!H17","v":1},{"$f":"'A. Population Info'!I17","v":0},{"$f":"'A. Population Info'!J17","v":0},{"$f":"'A. Population Info'!K17","v":0},{"$f":"VLOOKUP(B:B,OFFSET('B. PoF Adj Factor Scoring'!$E$5:$F$282,,MATCH(G$4,'B. PoF Adj Factor Scoring'!$E$3:$N$3,0)-1),2,TRUE)","v":1},{"$f":"VLOOKUP(C:C,OFFSET('B. PoF Adj Factor Scoring'!$E$5:$F$282,,MATCH(H$4,'B. PoF Adj Factor Scoring'!$E$3:$N$3,0)-1),2,TRUE)","v":1},{"$f":"VLOOKUP(D:D,OFFSET('B. PoF Adj Factor Scoring'!$E$5:$F$282,,MATCH(I$4,'B. PoF Adj Factor Scoring'!$E$3:$N$3,0)-1),2,TRUE)","v":1},{"$f":"VLOOKUP(E:E,OFFSET('B. PoF Adj Factor Scoring'!$E$5:$F$282,,MATCH(J$4,'B. PoF Adj Factor Scoring'!$E$3:$N$3,0)-1),2,TRUE)","v":1},{"$f":"VLOOKUP(F:F,OFFSET('B. PoF Adj Factor Scoring'!$E$5:$F$282,,MATCH(K$4,'B. PoF Adj Factor Scoring'!$E$3:$N$3,0)-1),2,TRUE)","v":1}]
[{"$f":"'A. Population Info'!A18","v":1000207623},{"$f":"'A. Population Info'!G18","v":"OIL"},{"$f":"'A. Population Info'!H18","v":1},{"$f":"'A. Population Info'!I18","v":0},{"$f":"'A. Population Info'!J18","v":0},{"$f":"'A. Population Info'!K18","v":0},{"$f":"VLOOKUP(B:B,OFFSET('B. PoF Adj Factor Scoring'!$E$5:$F$282,,MATCH(G$4,'B. PoF Adj Factor Scoring'!$E$3:$N$3,0)-1),2,TRUE)","v":1},{"$f":"VLOOKUP(C:C,OFFSET('B. PoF Adj Factor Scoring'!$E$5:$F$282,,MATCH(H$4,'B. PoF Adj Factor Scoring'!$E$3:$N$3,0)-1),2,TRUE)","v":1},{"$f":"VLOOKUP(D:D,OFFSET('B. PoF Adj Factor Scoring'!$E$5:$F$282,,MATCH(I$4,'B. PoF Adj Factor Scoring'!$E$3:$N$3,0)-1),2,TRUE)","v":1},{"$f":"VLOOKUP(E:E,OFFSET('B. PoF Adj Factor Scoring'!$E$5:$F$282,,MATCH(J$4,'B. PoF Adj Factor Scoring'!$E$3:$N$3,0)-1),2,TRUE)","v":1},{"$f":"VLOOKUP(F:F,OFFSET('B. PoF Adj Factor Scoring'!$E$5:$F$282,,MATCH(K$4,'B. PoF Adj Factor Scoring'!$E$3:$N$3,0)-1),2,TRUE)","v":1}]
[{"$f":"'A. Population Info'!A19","v":1000207714},{"$f":"'A. Population Info'!G19","v":"OIL"},{"$f":"'A. Population Info'!H19","v":1},{"$f":"'A. Population Info'!I19","v":0},{"$f":"'A. Population Info'!J19","v":0},{"$f":"'A. Population Info'!K19","v":0},{"$f":"VLOOKUP(B:B,OFFSET('B. PoF Adj Factor Scoring'!$E$5:$F$282,,MATCH(G$4,'B. PoF Adj Factor Scoring'!$E$3:$N$3,0)-1),2,TRUE)","v":1},{"$f":"VLOOKUP(C:C,OFFSET('B. PoF Adj Factor Scoring'!$E$5:$F$282,,MATCH(H$4,'B. PoF Adj Factor Scoring'!$E$3:$N$3,0)-1),2,TRUE)","v":1},{"$f":"VLOOKUP(D:D,OFFSET('B. PoF Adj Factor Scoring'!$E$5:$F$282,,MATCH(I$4,'B. PoF Adj Factor Scoring'!$E$3:$N$3,0)-1),2,TRUE)","v":1},{"$f":"VLOOKUP(E:E,OFFSET('B. PoF Adj Factor Scoring'!$E$5:$F$282,,MATCH(J$4,'B. PoF Adj Factor Scoring'!$E$3:$N$3,0)-1),2,TRUE)","v":1},{"$f":"VLOOKUP(F:F,OFFSET('B. PoF Adj Factor Scoring'!$E$5:$F$282,,MATCH(K$4,'B. PoF Adj Factor Scoring'!$E$3:$N$3,0)-1),2,TRUE)","v":1}]
[{"$f":"'A. Population Info'!A20","v":1000207726},{"$f":"'A. Population Info'!G20","v":"OIL"},{"$f":"'A. Population Info'!H20","v":1},{"$f":"'A. Population Info'!I20","v":0},{"$f":"'A. Population Info'!J20","v":0},{"$f":"'A. Population Info'!K20","v":0},{"$f":"VLOOKUP(B:B,OFFSET('B. PoF Adj Factor Scoring'!$E$5:$F$282,,MATCH(G$4,'B. PoF Adj Factor Scoring'!$E$3:$N$3,0)-1),2,TRUE)","v":1},{"$f":"VLOOKUP(C:C,OFFSET('B. PoF Adj Factor Scoring'!$E$5:$F$282,,MATCH(H$4,'B. PoF Adj Factor Scoring'!$E$3:$N$3,0)-1),2,TRUE)","v":1},{"$f":"VLOOKUP(D:D,OFFSET('B. PoF Adj Factor Scoring'!$E$5:$F$282,,MATCH(I$4,'B. PoF Adj Factor Scoring'!$E$3:$N$3,0)-1),2,TRUE)","v":1},{"$f":"VLOOKUP(E:E,OFFSET('B. PoF Adj Factor Scoring'!$E$5:$F$282,,MATCH(J$4,'B. PoF Adj Factor Scoring'!$E$3:$N$3,0)-1),2,TRUE)","v":1},{"$f":"VLOOKUP(F:F,OFFSET('B. PoF Adj Factor Scoring'!$E$5:$F$282,,MATCH(K$4,'B. PoF Adj Factor Scoring'!$E$3:$N$3,0)-1),2,TRUE)","v":1}]
[{"$f":"'A. Population Info'!A21","v":1000224415},{"$f":"'A. Population Info'!G21","v":"OIL"},{"$f":"'A. Population Info'!H21","v":1},{"$f":"'A. Population Info'!I21","v":0},{"$f":"'A. Population Info'!J21","v":0},{"$f":"'A. Population Info'!K21","v":0},{"$f":"VLOOKUP(B:B,OFFSET('B. PoF Adj Factor Scoring'!$E$5:$F$282,,MATCH(G$4,'B. PoF Adj Factor Scoring'!$E$3:$N$3,0)-1),2,TRUE)","v":1},{"$f":"VLOOKUP(C:C,OFFSET('B. PoF Adj Factor Scoring'!$E$5:$F$282,,MATCH(H$4,'B. PoF Adj Factor Scoring'!$E$3:$N$3,0)-1),2,TRUE)","v":1},{"$f":"VLOOKUP(D:D,OFFSET('B. PoF Adj Factor Scoring'!$E$5:$F$282,,MATCH(I$4,'B. PoF Adj Factor Scoring'!$E$3:$N$3,0)-1),2,TRUE)","v":1},{"$f":"VLOOKUP(E:E,OFFSET('B. PoF Adj Factor Scoring'!$E$5:$F$282,,MATCH(J$4,'B. PoF Adj Factor Scoring'!$E$3:$N$3,0)-1),2,TRUE)","v":1},{"$f":"VLOOKUP(F:F,OFFSET('B. PoF Adj Factor Scoring'!$E$5:$F$282,,MATCH(K$4,'B. PoF Adj Factor Scoring'!$E$3:$N$3,0)-1),2,TRUE)","v":1}]
[{"$f":"'A. Population Info'!A22","v":1000224424},{"$f":"'A. Population Info'!G22","v":"OIL"},{"$f":"'A. Population Info'!H22","v":3},{"$f":"'A. Population Info'!I22","v":0},{"$f":"'A. Population Info'!J22","v":0},{"$f":"'A. Population Info'!K22","v":0},{"$f":"VLOOKUP(B:B,OFFSET('B. PoF Adj Factor Scoring'!$E$5:$F$282,,MATCH(G$4,'B. PoF Adj Factor Scoring'!$E$3:$N$3,0)-1),2,TRUE)","v":1},{"$f":"VLOOKUP(C:C,OFFSET('B. PoF Adj Factor Scoring'!$E$5:$F$282,,MATCH(H$4,'B. PoF Adj Factor Scoring'!$E$3:$N$3,0)-1),2,TRUE)","v":3},{"$f":"VLOOKUP(D:D,OFFSET('B. PoF Adj Factor Scoring'!$E$5:$F$282,,MATCH(I$4,'B. PoF Adj Factor Scoring'!$E$3:$N$3,0)-1),2,TRUE)","v":1},{"$f":"VLOOKUP(E:E,OFFSET('B. PoF Adj Factor Scoring'!$E$5:$F$282,,MATCH(J$4,'B. PoF Adj Factor Scoring'!$E$3:$N$3,0)-1),2,TRUE)","v":1},{"$f":"VLOOKUP(F:F,OFFSET('B. PoF Adj Factor Scoring'!$E$5:$F$282,,MATCH(K$4,'B. PoF Adj Factor Scoring'!$E$3:$N$3,0)-1),2,TRUE)","v":1}]
[{"$f":"'A. Population Info'!A23","v":1000224437},{"$f":"'A. Population Info'!G23","v":"OIL"},{"$f":"'A. Population Info'!H23","v":1},{"$f":"'A. Population Info'!I23","v":0},{"$f":"'A. Population Info'!J23","v":0},{"$f":"'A. Population Info'!K23","v":0},{"$f":"VLOOKUP(B:B,OFFSET('B. PoF Adj Factor Scoring'!$E$5:$F$282,,MATCH(G$4,'B. PoF Adj Factor Scoring'!$E$3:$N$3,0)-1),2,TRUE)","v":1},{"$f":"VLOOKUP(C:C,OFFSET('B. PoF Adj Factor Scoring'!$E$5:$F$282,,MATCH(H$4,'B. PoF Adj Factor Scoring'!$E$3:$N$3,0)-1),2,TRUE)","v":1},{"$f":"VLOOKUP(D:D,OFFSET('B. PoF Adj Factor Scoring'!$E$5:$F$282,,MATCH(I$4,'B. PoF Adj Factor Scoring'!$E$3:$N$3,0)-1),2,TRUE)","v":1},{"$f":"VLOOKUP(E:E,OFFSET('B. PoF Adj Factor Scoring'!$E$5:$F$282,,MATCH(J$4,'B. PoF Adj Factor Scoring'!$E$3:$N$3,0)-1),2,TRUE)","v":1},{"$f":"VLOOKUP(F:F,OFFSET('B. PoF Adj Factor Scoring'!$E$5:$F$282,,MATCH(K$4,'B. PoF Adj Factor Scoring'!$E$3:$N$3,0)-1),2,TRUE)","v":1}]
[{"$f":"'A. Population Info'!A24","v":1000224450},{"$f":"'A. Population Info'!G24","v":"OIL"},{"$f":"'A. Population Info'!H24","v":2},{"$f":"'A. Population Info'!I24","v":0},{"$f":"'A. Population Info'!J24","v":0},{"$f":"'A. Population Info'!K24","v":0},{"$f":"VLOOKUP(B:B,OFFSET('B. PoF Adj Factor Scoring'!$E$5:$F$282,,MATCH(G$4,'B. PoF Adj Factor Scoring'!$E$3:$N$3,0)-1),2,TRUE)","v":1},{"$f":"VLOOKUP(C:C,OFFSET('B. PoF Adj Factor Scoring'!$E$5:$F$282,,MATCH(H$4,'B. PoF Adj Factor Scoring'!$E$3:$N$3,0)-1),2,TRUE)","v":2},{"$f":"VLOOKUP(D:D,OFFSET('B. PoF Adj Factor Scoring'!$E$5:$F$282,,MATCH(I$4,'B. PoF Adj Factor Scoring'!$E$3:$N$3,0)-1),2,TRUE)","v":1},{"$f":"VLOOKUP(E:E,OFFSET('B. PoF Adj Factor Scoring'!$E$5:$F$282,,MATCH(J$4,'B. PoF Adj Factor Scoring'!$E$3:$N$3,0)-1),2,TRUE)","v":1},{"$f":"VLOOKUP(F:F,OFFSET('B. PoF Adj Factor Scoring'!$E$5:$F$282,,MATCH(K$4,'B. PoF Adj Factor Scoring'!$E$3:$N$3,0)-1),2,TRUE)","v":1}]
[{"$f":"'A. Population Info'!A25","v":1000224464},{"$f":"'A. Population Info'!G25","v":"OIL"},{"$f":"'A. Population Info'!H25","v":1},{"$f":"'A. Population Info'!I25","v":0},{"$f":"'A. Population Info'!J25","v":0},{"$f":"'A. Population Info'!K25","v":0},{"$f":"VLOOKUP(B:B,OFFSET('B. PoF Adj Factor Scoring'!$E$5:$F$282,,MATCH(G$4,'B. PoF Adj Factor Scoring'!$E$3:$N$3,0)-1),2,TRUE)","v":1},{"$f":"VLOOKUP(C:C,OFFSET('B. PoF Adj Factor Scoring'!$E$5:$F$282,,MATCH(H$4,'B. PoF Adj Factor Scoring'!$E$3:$N$3,0)-1),2,TRUE)","v":1},{"$f":"VLOOKUP(D:D,OFFSET('B. PoF Adj Factor Scoring'!$E$5:$F$282,,MATCH(I$4,'B. PoF Adj Factor Scoring'!$E$3:$N$3,0)-1),2,TRUE)","v":1},{"$f":"VLOOKUP(E:E,OFFSET('B. PoF Adj Factor Scoring'!$E$5:$F$282,,MATCH(J$4,'B. PoF Adj Factor Scoring'!$E$3:$N$3,0)-1),2,TRUE)","v":1},{"$f":"VLOOKUP(F:F,OFFSET('B. PoF Adj Factor Scoring'!$E$5:$F$282,,MATCH(K$4,'B. PoF Adj Factor Scoring'!$E$3:$N$3,0)-1),2,TRUE)","v":1}]
[{"$f":"'A. Population Info'!A26","v":1000224475},{"$f":"'A. Population Info'!G26","v":"OIL_FR3"},{"$f":"'A. Population Info'!H26","v":3},{"$f":"'A. Population Info'!I26","v":0},{"$f":"'A. Population Info'!J26","v":0},{"$f":"'A. Population Info'!K26","v":0},{"$f":"VLOOKUP(B:B,OFFSET('B. PoF Adj Factor Scoring'!$E$5:$F$282,,MATCH(G$4,'B. PoF Adj Factor Scoring'!$E$3:$N$3,0)-1),2,TRUE)","v":1},{"$f":"VLOOKUP(C:C,OFFSET('B. PoF Adj Factor Scoring'!$E$5:$F$282,,MATCH(H$4,'B. PoF Adj Factor Scoring'!$E$3:$N$3,0)-1),2,TRUE)","v":3},{"$f":"VLOOKUP(D:D,OFFSET('B. PoF Adj Factor Scoring'!$E$5:$F$282,,MATCH(I$4,'B. PoF Adj Factor Scoring'!$E$3:$N$3,0)-1),2,TRUE)","v":1},{"$f":"VLOOKUP(E:E,OFFSET('B. PoF Adj Factor Scoring'!$E$5:$F$282,,MATCH(J$4,'B. PoF Adj Factor Scoring'!$E$3:$N$3,0)-1),2,TRUE)","v":1},{"$f":"VLOOKUP(F:F,OFFSET('B. PoF Adj Factor Scoring'!$E$5:$F$282,,MATCH(K$4,'B. PoF Adj Factor Scoring'!$E$3:$N$3,0)-1),2,TRUE)","v":1}]
[{"$f":"'A. Population Info'!A27","v":1000267271},{"$f":"'A. Population Info'!G27","v":"OIL"},{"$f":"'A. Population Info'!H27","v":1},{"$f":"'A. Population Info'!I27","v":0},{"$f":"'A. Population Info'!J27","v":0},{"$f":"'A. Population Info'!K27","v":0},{"$f":"VLOOKUP(B:B,OFFSET('B. PoF Adj Factor Scoring'!$E$5:$F$282,,MATCH(G$4,'B. PoF Adj Factor Scoring'!$E$3:$N$3,0)-1),2,TRUE)","v":1},{"$f":"VLOOKUP(C:C,OFFSET('B. PoF Adj Factor Scoring'!$E$5:$F$282,,MATCH(H$4,'B. PoF Adj Factor Scoring'!$E$3:$N$3,0)-1),2,TRUE)","v":1},{"$f":"VLOOKUP(D:D,OFFSET('B. PoF Adj Factor Scoring'!$E$5:$F$282,,MATCH(I$4,'B. PoF Adj Factor Scoring'!$E$3:$N$3,0)-1),2,TRUE)","v":1},{"$f":"VLOOKUP(E:E,OFFSET('B. PoF Adj Factor Scoring'!$E$5:$F$282,,MATCH(J$4,'B. PoF Adj Factor Scoring'!$E$3:$N$3,0)-1),2,TRUE)","v":1},{"$f":"VLOOKUP(F:F,OFFSET('B. PoF Adj Factor Scoring'!$E$5:$F$282,,MATCH(K$4,'B. PoF Adj Factor Scoring'!$E$3:$N$3,0)-1),2,TRUE)","v":1}]
[{"$f":"'A. Population Info'!A28","v":1000276491},{"$f":"'A. Population Info'!G28","v":"OIL"},{"$f":"'A. Population Info'!H28","v":2},{"$f":"'A. Population Info'!I28","v":0},{"$f":"'A. Population Info'!J28","v":0},{"$f":"'A. Population Info'!K28","v":0},{"$f":"VLOOKUP(B:B,OFFSET('B. PoF Adj Factor Scoring'!$E$5:$F$282,,MATCH(G$4,'B. PoF Adj Factor Scoring'!$E$3:$N$3,0)-1),2,TRUE)","v":1},{"$f":"VLOOKUP(C:C,OFFSET('B. PoF Adj Factor Scoring'!$E$5:$F$282,,MATCH(H$4,'B. PoF Adj Factor Scoring'!$E$3:$N$3,0)-1),2,TRUE)","v":2},{"$f":"VLOOKUP(D:D,OFFSET('B. PoF Adj Factor Scoring'!$E$5:$F$282,,MATCH(I$4,'B. PoF Adj Factor Scoring'!$E$3:$N$3,0)-1),2,TRUE)","v":1},{"$f":"VLOOKUP(E:E,OFFSET('B. PoF Adj Factor Scoring'!$E$5:$F$282,,MATCH(J$4,'B. PoF Adj Factor Scoring'!$E$3:$N$3,0)-1),2,TRUE)","v":1},{"$f":"VLOOKUP(F:F,OFFSET('B. PoF Adj Factor Scoring'!$E$5:$F$282,,MATCH(K$4,'B. PoF Adj Factor Scoring'!$E$3:$N$3,0)-1),2,TRUE)","v":1}]
[{"$f":"'A. Population Info'!A29","v":1000276518},{"$f":"'A. Population Info'!G29","v":"OIL"},{"$f":"'A. Population Info'!H29","v":1},{"$f":"'A. Population Info'!I29","v":0},{"$f":"'A. Population Info'!J29","v":0},{"$f":"'A. Population Info'!K29","v":0},{"$f":"VLOOKUP(B:B,OFFSET('B. PoF Adj Factor Scoring'!$E$5:$F$282,,MATCH(G$4,'B. PoF Adj Factor Scoring'!$E$3:$N$3,0)-1),2,TRUE)","v":1},{"$f":"VLOOKUP(C:C,OFFSET('B. PoF Adj Factor Scoring'!$E$5:$F$282,,MATCH(H$4,'B. PoF Adj Factor Scoring'!$E$3:$N$3,0)-1),2,TRUE)","v":1},{"$f":"VLOOKUP(D:D,OFFSET('B. PoF Adj Factor Scoring'!$E$5:$F$282,,MATCH(I$4,'B. PoF Adj Factor Scoring'!$E$3:$N$3,0)-1),2,TRUE)","v":1},{"$f":"VLOOKUP(E:E,OFFSET('B. PoF Adj Factor Scoring'!$E$5:$F$282,,MATCH(J$4,'B. PoF Adj Factor Scoring'!$E$3:$N$3,0)-1),2,TRUE)","v":1},{"$f":"VLOOKUP(F:F,OFFSET('B. PoF Adj Factor Scoring'!$E$5:$F$282,,MATCH(K$4,'B. PoF Adj Factor Scoring'!$E$3:$N$3,0)-1),2,TRUE)","v":1}]
[{"$f":"'A. Population Info'!A30","v":1000276530},{"$f":"'A. Population Info'!G30","v":"OIL"},{"$f":"'A. Population Info'!H30","v":1},{"$f":"'A. Population Info'!I30","v":0},{"$f":"'A. Population Info'!J30","v":0},{"$f":"'A. Population Info'!K30","v":0},{"$f":"VLOOKUP(B:B,OFFSET('B. PoF Adj Factor Scoring'!$E$5:$F$282,,MATCH(G$4,'B. PoF Adj Factor Scoring'!$E$3:$N$3,0)-1),2,TRUE)","v":1},{"$f":"VLOOKUP(C:C,OFFSET('B. PoF Adj Factor Scoring'!$E$5:$F$282,,MATCH(H$4,'B. PoF Adj Factor Scoring'!$E$3:$N$3,0)-1),2,TRUE)","v":1},{"$f":"VLOOKUP(D:D,OFFSET('B. PoF Adj Factor Scoring'!$E$5:$F$282,,MATCH(I$4,'B. PoF Adj Factor Scoring'!$E$3:$N$3,0)-1),2,TRUE)","v":1},{"$f":"VLOOKUP(E:E,OFFSET('B. PoF Adj Factor Scoring'!$E$5:$F$282,,MATCH(J$4,'B. PoF Adj Factor Scoring'!$E$3:$N$3,0)-1),2,TRUE)","v":1},{"$f":"VLOOKUP(F:F,OFFSET('B. PoF Adj Factor Scoring'!$E$5:$F$282,,MATCH(K$4,'B. PoF Adj Factor Scoring'!$E$3:$N$3,0)-1),2,TRUE)","v":1}]
[{"$f":"'A. Population Info'!A31","v":1000276542},{"$f":"'A. Population Info'!G31","v":"OIL"},{"$f":"'A. Population Info'!H31","v":1},{"$f":"'A. Population Info'!I31","v":0},{"$f":"'A. Population Info'!J31","v":0},{"$f":"'A. Population Info'!K31","v":0},{"$f":"VLOOKUP(B:B,OFFSET('B. PoF Adj Factor Scoring'!$E$5:$F$282,,MATCH(G$4,'B. PoF Adj Factor Scoring'!$E$3:$N$3,0)-1),2,TRUE)","v":1},{"$f":"VLOOKUP(C:C,OFFSET('B. PoF Adj Factor Scoring'!$E$5:$F$282,,MATCH(H$4,'B. PoF Adj Factor Scoring'!$E$3:$N$3,0)-1),2,TRUE)","v":1},{"$f":"VLOOKUP(D:D,OFFSET('B. PoF Adj Factor Scoring'!$E$5:$F$282,,MATCH(I$4,'B. PoF Adj Factor Scoring'!$E$3:$N$3,0)-1),2,TRUE)","v":1},{"$f":"VLOOKUP(E:E,OFFSET('B. PoF Adj Factor Scoring'!$E$5:$F$282,,MATCH(J$4,'B. PoF Adj Factor Scoring'!$E$3:$N$3,0)-1),2,TRUE)","v":1},{"$f":"VLOOKUP(F:F,OFFSET('B. PoF Adj Factor Scoring'!$E$5:$F$282,,MATCH(K$4,'B. PoF Adj Factor Scoring'!$E$3:$N$3,0)-1),2,TRUE)","v":1}]
[{"$f":"'A. Population Info'!A32","v":1000299647},{"$f":"'A. Population Info'!G32","v":"OIL"},{"$f":"'A. Population Info'!H32","v":1},{"$f":"'A. Population Info'!I32","v":0},{"$f":"'A. Population Info'!J32","v":0},{"$f":"'A. Population Info'!K32","v":0},{"$f":"VLOOKUP(B:B,OFFSET('B. PoF Adj Factor Scoring'!$E$5:$F$282,,MATCH(G$4,'B. PoF Adj Factor Scoring'!$E$3:$N$3,0)-1),2,TRUE)","v":1},{"$f":"VLOOKUP(C:C,OFFSET('B. PoF Adj Factor Scoring'!$E$5:$F$282,,MATCH(H$4,'B. PoF Adj Factor Scoring'!$E$3:$N$3,0)-1),2,TRUE)","v":1},{"$f":"VLOOKUP(D:D,OFFSET('B. PoF Adj Factor Scoring'!$E$5:$F$282,,MATCH(I$4,'B. PoF Adj Factor Scoring'!$E$3:$N$3,0)-1),2,TRUE)","v":1},{"$f":"VLOOKUP(E:E,OFFSET('B. PoF Adj Factor Scoring'!$E$5:$F$282,,MATCH(J$4,'B. PoF Adj Factor Scoring'!$E$3:$N$3,0)-1),2,TRUE)","v":1},{"$f":"VLOOKUP(F:F,OFFSET('B. PoF Adj Factor Scoring'!$E$5:$F$282,,MATCH(K$4,'B. PoF Adj Factor Scoring'!$E$3:$N$3,0)-1),2,TRUE)","v":1}]
[{"$f":"'A. Population Info'!A33","v":1000314154},{"$f":"'A. Population Info'!G33","v":"OIL"},{"$f":"'A. Population Info'!H33","v":2},{"$f":"'A. Population Info'!I33","v":600},{"$f":"'A. Population Info'!J33","v":0},{"$f":"'A. Population Info'!K33","v":0},{"$f":"VLOOKUP(B:B,OFFSET('B. PoF Adj Factor Scoring'!$E$5:$F$282,,MATCH(G$4,'B. PoF Adj Factor Scoring'!$E$3:$N$3,0)-1),2,TRUE)","v":1},{"$f":"VLOOKUP(C:C,OFFSET('B. PoF Adj Factor Scoring'!$E$5:$F$282,,MATCH(H$4,'B. PoF Adj Factor Scoring'!$E$3:$N$3,0)-1),2,TRUE)","v":2},{"$f":"VLOOKUP(D:D,OFFSET('B. PoF Adj Factor Scoring'!$E$5:$F$282,,MATCH(I$4,'B. PoF Adj Factor Scoring'!$E$3:$N$3,0)-1),2,TRUE)","v":1},{"$f":"VLOOKUP(E:E,OFFSET('B. PoF Adj Factor Scoring'!$E$5:$F$282,,MATCH(J$4,'B. PoF Adj Factor Scoring'!$E$3:$N$3,0)-1),2,TRUE)","v":1},{"$f":"VLOOKUP(F:F,OFFSET('B. PoF Adj Factor Scoring'!$E$5:$F$282,,MATCH(K$4,'B. PoF Adj Factor Scoring'!$E$3:$N$3,0)-1),2,TRUE)","v":1}]
[{"$f":"'A. Population Info'!A34","v":1000314337},{"$f":"'A. Population Info'!G34","v":"OIL"},{"$f":"'A. Population Info'!H34","v":3},{"$f":"'A. Population Info'!I34","v":0},{"$f":"'A. Population Info'!J34","v":0},{"$f":"'A. Population Info'!K34","v":0},{"$f":"VLOOKUP(B:B,OFFSET('B. PoF Adj Factor Scoring'!$E$5:$F$282,,MATCH(G$4,'B. PoF Adj Factor Scoring'!$E$3:$N$3,0)-1),2,TRUE)","v":1},{"$f":"VLOOKUP(C:C,OFFSET('B. PoF Adj Factor Scoring'!$E$5:$F$282,,MATCH(H$4,'B. PoF Adj Factor Scoring'!$E$3:$N$3,0)-1),2,TRUE)","v":3},{"$f":"VLOOKUP(D:D,OFFSET('B. PoF Adj Factor Scoring'!$E$5:$F$282,,MATCH(I$4,'B. PoF Adj Factor Scoring'!$E$3:$N$3,0)-1),2,TRUE)","v":1},{"$f":"VLOOKUP(E:E,OFFSET('B. PoF Adj Factor Scoring'!$E$5:$F$282,,MATCH(J$4,'B. PoF Adj Factor Scoring'!$E$3:$N$3,0)-1),2,TRUE)","v":1},{"$f":"VLOOKUP(F:F,OFFSET('B. PoF Adj Factor Scoring'!$E$5:$F$282,,MATCH(K$4,'B. PoF Adj Factor Scoring'!$E$3:$N$3,0)-1),2,TRUE)","v":1}]
[{"$f":"'A. Population Info'!A35","v":1000314363},{"$f":"'A. Population Info'!G35","v":"OIL"},{"$f":"'A. Population Info'!H35","v":3},{"$f":"'A. Population Info'!I35","v":400},{"$f":"'A. Population Info'!J35","v":0},{"$f":"'A. Population Info'!K35","v":0},{"$f":"VLOOKUP(B:B,OFFSET('B. PoF Adj Factor Scoring'!$E$5:$F$282,,MATCH(G$4,'B. PoF Adj Factor Scoring'!$E$3:$N$3,0)-1),2,TRUE)","v":1},{"$f":"VLOOKUP(C:C,OFFSET('B. PoF Adj Factor Scoring'!$E$5:$F$282,,MATCH(H$4,'B. PoF Adj Factor Scoring'!$E$3:$N$3,0)-1),2,TRUE)","v":3},{"$f":"VLOOKUP(D:D,OFFSET('B. PoF Adj Factor Scoring'!$E$5:$F$282,,MATCH(I$4,'B. PoF Adj Factor Scoring'!$E$3:$N$3,0)-1),2,TRUE)","v":1},{"$f":"VLOOKUP(E:E,OFFSET('B. PoF Adj Factor Scoring'!$E$5:$F$282,,MATCH(J$4,'B. PoF Adj Factor Scoring'!$E$3:$N$3,0)-1),2,TRUE)","v":1},{"$f":"VLOOKUP(F:F,OFFSET('B. PoF Adj Factor Scoring'!$E$5:$F$282,,MATCH(K$4,'B. PoF Adj Factor Scoring'!$E$3:$N$3,0)-1),2,TRUE)","v":1}]
[{"$f":"'A. Population Info'!A36","v":1000318066},{"$f":"'A. Population Info'!G36","v":"OIL"},{"$f":"'A. Population Info'!H36","v":2},{"$f":"'A. Population Info'!I36","v":0},{"$f":"'A. Population Info'!J36","v":0},{"$f":"'A. Population Info'!K36","v":0},{"$f":"VLOOKUP(B:B,OFFSET('B. PoF Adj Factor Scoring'!$E$5:$F$282,,MATCH(G$4,'B. PoF Adj Factor Scoring'!$E$3:$N$3,0)-1),2,TRUE)","v":1},{"$f":"VLOOKUP(C:C,OFFSET('B. PoF Adj Factor Scoring'!$E$5:$F$282,,MATCH(H$4,'B. PoF Adj Factor Scoring'!$E$3:$N$3,0)-1),2,TRUE)","v":2},{"$f":"VLOOKUP(D:D,OFFSET('B. PoF Adj Factor Scoring'!$E$5:$F$282,,MATCH(I$4,'B. PoF Adj Factor Scoring'!$E$3:$N$3,0)-1),2,TRUE)","v":1},{"$f":"VLOOKUP(E:E,OFFSET('B. PoF Adj Factor Scoring'!$E$5:$F$282,,MATCH(J$4,'B. PoF Adj Factor Scoring'!$E$3:$N$3,0)-1),2,TRUE)","v":1},{"$f":"VLOOKUP(F:F,OFFSET('B. PoF Adj Factor Scoring'!$E$5:$F$282,,MATCH(K$4,'B. PoF Adj Factor Scoring'!$E$3:$N$3,0)-1),2,TRUE)","v":1}]
[{"$f":"'A. Population Info'!A37","v":1000318448},{"$f":"'A. Population Info'!G37","v":"OIL"},{"$f":"'A. Population Info'!H37","v":4},{"$f":"'A. Population Info'!I37","v":0},{"$f":"'A. Population Info'!J37","v":0},{"$f":"'A. Population Info'!K37","v":0},{"$f":"VLOOKUP(B:B,OFFSET('B. PoF Adj Factor Scoring'!$E$5:$F$282,,MATCH(G$4,'B. PoF Adj Factor Scoring'!$E$3:$N$3,0)-1),2,TRUE)","v":1},{"$f":"VLOOKUP(C:C,OFFSET('B. PoF Adj Factor Scoring'!$E$5:$F$282,,MATCH(H$4,'B. PoF Adj Factor Scoring'!$E$3:$N$3,0)-1),2,TRUE)","v":4},{"$f":"VLOOKUP(D:D,OFFSET('B. PoF Adj Factor Scoring'!$E$5:$F$282,,MATCH(I$4,'B. PoF Adj Factor Scoring'!$E$3:$N$3,0)-1),2,TRUE)","v":1},{"$f":"VLOOKUP(E:E,OFFSET('B. PoF Adj Factor Scoring'!$E$5:$F$282,,MATCH(J$4,'B. PoF Adj Factor Scoring'!$E$3:$N$3,0)-1),2,TRUE)","v":1},{"$f":"VLOOKUP(F:F,OFFSET('B. PoF Adj Factor Scoring'!$E$5:$F$282,,MATCH(K$4,'B. PoF Adj Factor Scoring'!$E$3:$N$3,0)-1),2,TRUE)","v":1}]
[{"$f":"'A. Population Info'!A38","v":1000318505},{"$f":"'A. Population Info'!G38","v":"OIL"},{"$f":"'A. Population Info'!H38","v":2},{"$f":"'A. Population Info'!I38","v":0},{"$f":"'A. Population Info'!J38","v":0},{"$f":"'A. Population Info'!K38","v":0},{"$f":"VLOOKUP(B:B,OFFSET('B. PoF Adj Factor Scoring'!$E$5:$F$282,,MATCH(G$4,'B. PoF Adj Factor Scoring'!$E$3:$N$3,0)-1),2,TRUE)","v":1},{"$f":"VLOOKUP(C:C,OFFSET('B. PoF Adj Factor Scoring'!$E$5:$F$282,,MATCH(H$4,'B. PoF Adj Factor Scoring'!$E$3:$N$3,0)-1),2,TRUE)","v":2},{"$f":"VLOOKUP(D:D,OFFSET('B. PoF Adj Factor Scoring'!$E$5:$F$282,,MATCH(I$4,'B. PoF Adj Factor Scoring'!$E$3:$N$3,0)-1),2,TRUE)","v":1},{"$f":"VLOOKUP(E:E,OFFSET('B. PoF Adj Factor Scoring'!$E$5:$F$282,,MATCH(J$4,'B. PoF Adj Factor Scoring'!$E$3:$N$3,0)-1),2,TRUE)","v":1},{"$f":"VLOOKUP(F:F,OFFSET('B. PoF Adj Factor Scoring'!$E$5:$F$282,,MATCH(K$4,'B. PoF Adj Factor Scoring'!$E$3:$N$3,0)-1),2,TRUE)","v":1}]
[{"$f":"'A. Population Info'!A39","v":1000318801},{"$f":"'A. Population Info'!G39","v":"OIL"},{"$f":"'A. Population Info'!H39","v":1},{"$f":"'A. Population Info'!I39","v":500},{"$f":"'A. Population Info'!J39","v":0},{"$f":"'A. Population Info'!K39","v":0},{"$f":"VLOOKUP(B:B,OFFSET('B. PoF Adj Factor Scoring'!$E$5:$F$282,,MATCH(G$4,'B. PoF Adj Factor Scoring'!$E$3:$N$3,0)-1),2,TRUE)","v":1},{"$f":"VLOOKUP(C:C,OFFSET('B. PoF Adj Factor Scoring'!$E$5:$F$282,,MATCH(H$4,'B. PoF Adj Factor Scoring'!$E$3:$N$3,0)-1),2,TRUE)","v":1},{"$f":"VLOOKUP(D:D,OFFSET('B. PoF Adj Factor Scoring'!$E$5:$F$282,,MATCH(I$4,'B. PoF Adj Factor Scoring'!$E$3:$N$3,0)-1),2,TRUE)","v":1},{"$f":"VLOOKUP(E:E,OFFSET('B. PoF Adj Factor Scoring'!$E$5:$F$282,,MATCH(J$4,'B. PoF Adj Factor Scoring'!$E$3:$N$3,0)-1),2,TRUE)","v":1},{"$f":"VLOOKUP(F:F,OFFSET('B. PoF Adj Factor Scoring'!$E$5:$F$282,,MATCH(K$4,'B. PoF Adj Factor Scoring'!$E$3:$N$3,0)-1),2,TRUE)","v":1}]
[{"$f":"'A. Population Info'!A40","v":1000318835},{"$f":"'A. Population Info'!G40","v":"OIL"},{"$f":"'A. Population Info'!H40","v":2},{"$f":"'A. Population Info'!I40","v":500},{"$f":"'A. Population Info'!J40","v":0},{"$f":"'A. Population Info'!K40","v":0},{"$f":"VLOOKUP(B:B,OFFSET('B. PoF Adj Factor Scoring'!$E$5:$F$282,,MATCH(G$4,'B. PoF Adj Factor Scoring'!$E$3:$N$3,0)-1),2,TRUE)","v":1},{"$f":"VLOOKUP(C:C,OFFSET('B. PoF Adj Factor Scoring'!$E$5:$F$282,,MATCH(H$4,'B. PoF Adj Factor Scoring'!$E$3:$N$3,0)-1),2,TRUE)","v":2},{"$f":"VLOOKUP(D:D,OFFSET('B. PoF Adj Factor Scoring'!$E$5:$F$282,,MATCH(I$4,'B. PoF Adj Factor Scoring'!$E$3:$N$3,0)-1),2,TRUE)","v":1},{"$f":"VLOOKUP(E:E,OFFSET('B. PoF Adj Factor Scoring'!$E$5:$F$282,,MATCH(J$4,'B. PoF Adj Factor Scoring'!$E$3:$N$3,0)-1),2,TRUE)","v":1},{"$f":"VLOOKUP(F:F,OFFSET('B. PoF Adj Factor Scoring'!$E$5:$F$282,,MATCH(K$4,'B. PoF Adj Factor Scoring'!$E$3:$N$3,0)-1),2,TRUE)","v":1}]
[{"$f":"'A. Population Info'!A41","v":1000318894},{"$f":"'A. Population Info'!G41","v":"OIL"},{"$f":"'A. Population Info'!H41","v":2},{"$f":"'A. Population Info'!I41","v":0},{"$f":"'A. Population Info'!J41","v":0},{"$f":"'A. Population Info'!K41","v":0},{"$f":"VLOOKUP(B:B,OFFSET('B. PoF Adj Factor Scoring'!$E$5:$F$282,,MATCH(G$4,'B. PoF Adj Factor Scoring'!$E$3:$N$3,0)-1),2,TRUE)","v":1},{"$f":"VLOOKUP(C:C,OFFSET('B. PoF Adj Factor Scoring'!$E$5:$F$282,,MATCH(H$4,'B. PoF Adj Factor Scoring'!$E$3:$N$3,0)-1),2,TRUE)","v":2},{"$f":"VLOOKUP(D:D,OFFSET('B. PoF Adj Factor Scoring'!$E$5:$F$282,,MATCH(I$4,'B. PoF Adj Factor Scoring'!$E$3:$N$3,0)-1),2,TRUE)","v":1},{"$f":"VLOOKUP(E:E,OFFSET('B. PoF Adj Factor Scoring'!$E$5:$F$282,,MATCH(J$4,'B. PoF Adj Factor Scoring'!$E$3:$N$3,0)-1),2,TRUE)","v":1},{"$f":"VLOOKUP(F:F,OFFSET('B. PoF Adj Factor Scoring'!$E$5:$F$282,,MATCH(K$4,'B. PoF Adj Factor Scoring'!$E$3:$N$3,0)-1),2,TRUE)","v":1}]
[{"$f":"'A. Population Info'!A42","v":1000318924},{"$f":"'A. Population Info'!G42","v":"OIL"},{"$f":"'A. Population Info'!H42","v":3},{"$f":"'A. Population Info'!I42","v":0},{"$f":"'A. Population Info'!J42","v":0},{"$f":"'A. Population Info'!K42","v":0},{"$f":"VLOOKUP(B:B,OFFSET('B. PoF Adj Factor Scoring'!$E$5:$F$282,,MATCH(G$4,'B. PoF Adj Factor Scoring'!$E$3:$N$3,0)-1),2,TRUE)","v":1},{"$f":"VLOOKUP(C:C,OFFSET('B. PoF Adj Factor Scoring'!$E$5:$F$282,,MATCH(H$4,'B. PoF Adj Factor Scoring'!$E$3:$N$3,0)-1),2,TRUE)","v":3},{"$f":"VLOOKUP(D:D,OFFSET('B. PoF Adj Factor Scoring'!$E$5:$F$282,,MATCH(I$4,'B. PoF Adj Factor Scoring'!$E$3:$N$3,0)-1),2,TRUE)","v":1},{"$f":"VLOOKUP(E:E,OFFSET('B. PoF Adj Factor Scoring'!$E$5:$F$282,,MATCH(J$4,'B. PoF Adj Factor Scoring'!$E$3:$N$3,0)-1),2,TRUE)","v":1},{"$f":"VLOOKUP(F:F,OFFSET('B. PoF Adj Factor Scoring'!$E$5:$F$282,,MATCH(K$4,'B. PoF Adj Factor Scoring'!$E$3:$N$3,0)-1),2,TRUE)","v":1}]
[{"$f":"'A. Population Info'!A43","v":1000318955},{"$f":"'A. Population Info'!G43","v":"OIL"},{"$f":"'A. Population Info'!H43","v":3},{"$f":"'A. Population Info'!I43","v":1500},{"$f":"'A. Population Info'!J43","v":0},{"$f":"'A. Population Info'!K43","v":0},{"$f":"VLOOKUP(B:B,OFFSET('B. PoF Adj Factor Scoring'!$E$5:$F$282,,MATCH(G$4,'B. PoF Adj Factor Scoring'!$E$3:$N$3,0)-1),2,TRUE)","v":1},{"$f":"VLOOKUP(C:C,OFFSET('B. PoF Adj Factor Scoring'!$E$5:$F$282,,MATCH(H$4,'B. PoF Adj Factor Scoring'!$E$3:$N$3,0)-1),2,TRUE)","v":3},{"$f":"VLOOKUP(D:D,OFFSET('B. PoF Adj Factor Scoring'!$E$5:$F$282,,MATCH(I$4,'B. PoF Adj Factor Scoring'!$E$3:$N$3,0)-1),2,TRUE)","v":2},{"$f":"VLOOKUP(E:E,OFFSET('B. PoF Adj Factor Scoring'!$E$5:$F$282,,MATCH(J$4,'B. PoF Adj Factor Scoring'!$E$3:$N$3,0)-1),2,TRUE)","v":1},{"$f":"VLOOKUP(F:F,OFFSET('B. PoF Adj Factor Scoring'!$E$5:$F$282,,MATCH(K$4,'B. PoF Adj Factor Scoring'!$E$3:$N$3,0)-1),2,TRUE)","v":1}]
[{"$f":"'A. Population Info'!A44","v":1000318984},{"$f":"'A. Population Info'!G44","v":"OIL"},{"$f":"'A. Population Info'!H44","v":2},{"$f":"'A. Population Info'!I44","v":500},{"$f":"'A. Population Info'!J44","v":0},{"$f":"'A. Population Info'!K44","v":0},{"$f":"VLOOKUP(B:B,OFFSET('B. PoF Adj Factor Scoring'!$E$5:$F$282,,MATCH(G$4,'B. PoF Adj Factor Scoring'!$E$3:$N$3,0)-1),2,TRUE)","v":1},{"$f":"VLOOKUP(C:C,OFFSET('B. PoF Adj Factor Scoring'!$E$5:$F$282,,MATCH(H$4,'B. PoF Adj Factor Scoring'!$E$3:$N$3,0)-1),2,TRUE)","v":2},{"$f":"VLOOKUP(D:D,OFFSET('B. PoF Adj Factor Scoring'!$E$5:$F$282,,MATCH(I$4,'B. PoF Adj Factor Scoring'!$E$3:$N$3,0)-1),2,TRUE)","v":1},{"$f":"VLOOKUP(E:E,OFFSET('B. PoF Adj Factor Scoring'!$E$5:$F$282,,MATCH(J$4,'B. PoF Adj Factor Scoring'!$E$3:$N$3,0)-1),2,TRUE)","v":1},{"$f":"VLOOKUP(F:F,OFFSET('B. PoF Adj Factor Scoring'!$E$5:$F$282,,MATCH(K$4,'B. PoF Adj Factor Scoring'!$E$3:$N$3,0)-1),2,TRUE)","v":1}]
[{"$f":"'A. Population Info'!A45","v":1000323012},{"$f":"'A. Population Info'!G45","v":"OIL"},{"$f":"'A. Population Info'!H45","v":1},{"$f":"'A. Population Info'!I45","v":0},{"$f":"'A. Population Info'!J45","v":0},{"$f":"'A. Population Info'!K45","v":0},{"$f":"VLOOKUP(B:B,OFFSET('B. PoF Adj Factor Scoring'!$E$5:$F$282,,MATCH(G$4,'B. PoF Adj Factor Scoring'!$E$3:$N$3,0)-1),2,TRUE)","v":1},{"$f":"VLOOKUP(C:C,OFFSET('B. PoF Adj Factor Scoring'!$E$5:$F$282,,MATCH(H$4,'B. PoF Adj Factor Scoring'!$E$3:$N$3,0)-1),2,TRUE)","v":1},{"$f":"VLOOKUP(D:D,OFFSET('B. PoF Adj Factor Scoring'!$E$5:$F$282,,MATCH(I$4,'B. PoF Adj Factor Scoring'!$E$3:$N$3,0)-1),2,TRUE)","v":1},{"$f":"VLOOKUP(E:E,OFFSET('B. PoF Adj Factor Scoring'!$E$5:$F$282,,MATCH(J$4,'B. PoF Adj Factor Scoring'!$E$3:$N$3,0)-1),2,TRUE)","v":1},{"$f":"VLOOKUP(F:F,OFFSET('B. PoF Adj Factor Scoring'!$E$5:$F$282,,MATCH(K$4,'B. PoF Adj Factor Scoring'!$E$3:$N$3,0)-1),2,TRUE)","v":1}]
[{"$f":"'A. Population Info'!A46","v":1000323042},{"$f":"'A. Population Info'!G46","v":"OIL"},{"$f":"'A. Population Info'!H46","v":1},{"$f":"'A. Population Info'!I46","v":0},{"$f":"'A. Population Info'!J46","v":0},{"$f":"'A. Population Info'!K46","v":0},{"$f":"VLOOKUP(B:B,OFFSET('B. PoF Adj Factor Scoring'!$E$5:$F$282,,MATCH(G$4,'B. PoF Adj Factor Scoring'!$E$3:$N$3,0)-1),2,TRUE)","v":1},{"$f":"VLOOKUP(C:C,OFFSET('B. PoF Adj Factor Scoring'!$E$5:$F$282,,MATCH(H$4,'B. PoF Adj Factor Scoring'!$E$3:$N$3,0)-1),2,TRUE)","v":1},{"$f":"VLOOKUP(D:D,OFFSET('B. PoF Adj Factor Scoring'!$E$5:$F$282,,MATCH(I$4,'B. PoF Adj Factor Scoring'!$E$3:$N$3,0)-1),2,TRUE)","v":1},{"$f":"VLOOKUP(E:E,OFFSET('B. PoF Adj Factor Scoring'!$E$5:$F$282,,MATCH(J$4,'B. PoF Adj Factor Scoring'!$E$3:$N$3,0)-1),2,TRUE)","v":1},{"$f":"VLOOKUP(F:F,OFFSET('B. PoF Adj Factor Scoring'!$E$5:$F$282,,MATCH(K$4,'B. PoF Adj Factor Scoring'!$E$3:$N$3,0)-1),2,TRUE)","v":1}]
[{"$f":"'A. Population Info'!A47","v":1000323073},{"$f":"'A. Population Info'!G47","v":"OIL"},{"$f":"'A. Population Info'!H47","v":1},{"$f":"'A. Population Info'!I47","v":0},{"$f":"'A. Population Info'!J47","v":0},{"$f":"'A. Population Info'!K47","v":0},{"$f":"VLOOKUP(B:B,OFFSET('B. PoF Adj Factor Scoring'!$E$5:$F$282,,MATCH(G$4,'B. PoF Adj Factor Scoring'!$E$3:$N$3,0)-1),2,TRUE)","v":1},{"$f":"VLOOKUP(C:C,OFFSET('B. PoF Adj Factor Scoring'!$E$5:$F$282,,MATCH(H$4,'B. PoF Adj Factor Scoring'!$E$3:$N$3,0)-1),2,TRUE)","v":1},{"$f":"VLOOKUP(D:D,OFFSET('B. PoF Adj Factor Scoring'!$E$5:$F$282,,MATCH(I$4,'B. PoF Adj Factor Scoring'!$E$3:$N$3,0)-1),2,TRUE)","v":1},{"$f":"VLOOKUP(E:E,OFFSET('B. PoF Adj Factor Scoring'!$E$5:$F$282,,MATCH(J$4,'B. PoF Adj Factor Scoring'!$E$3:$N$3,0)-1),2,TRUE)","v":1},{"$f":"VLOOKUP(F:F,OFFSET('B. PoF Adj Factor Scoring'!$E$5:$F$282,,MATCH(K$4,'B. PoF Adj Factor Scoring'!$E$3:$N$3,0)-1),2,TRUE)","v":1}]
[{"$f":"'A. Population Info'!A48","v":1000323106},{"$f":"'A. Population Info'!G48","v":"OIL"},{"$f":"'A. Population Info'!H48","v":3},{"$f":"'A. Population Info'!I48","v":0},{"$f":"'A. Population Info'!J48","v":0},{"$f":"'A. Population Info'!K48","v":0},{"$f":"VLOOKUP(B:B,OFFSET('B. PoF Adj Factor Scoring'!$E$5:$F$282,,MATCH(G$4,'B. PoF Adj Factor Scoring'!$E$3:$N$3,0)-1),2,TRUE)","v":1},{"$f":"VLOOKUP(C:C,OFFSET('B. PoF Adj Factor Scoring'!$E$5:$F$282,,MATCH(H$4,'B. PoF Adj Factor Scoring'!$E$3:$N$3,0)-1),2,TRUE)","v":3},{"$f":"VLOOKUP(D:D,OFFSET('B. PoF Adj Factor Scoring'!$E$5:$F$282,,MATCH(I$4,'B. PoF Adj Factor Scoring'!$E$3:$N$3,0)-1),2,TRUE)","v":1},{"$f":"VLOOKUP(E:E,OFFSET('B. PoF Adj Factor Scoring'!$E$5:$F$282,,MATCH(J$4,'B. PoF Adj Factor Scoring'!$E$3:$N$3,0)-1),2,TRUE)","v":1},{"$f":"VLOOKUP(F:F,OFFSET('B. PoF Adj Factor Scoring'!$E$5:$F$282,,MATCH(K$4,'B. PoF Adj Factor Scoring'!$E$3:$N$3,0)-1),2,TRUE)","v":1}]
[{"$f":"'A. Population Info'!A49","v":1000323136},{"$f":"'A. Population Info'!G49","v":"OIL"},{"$f":"'A. Population Info'!H49","v":3},{"$f":"'A. Population Info'!I49","v":0},{"$f":"'A. Population Info'!J49","v":0},{"$f":"'A. Population Info'!K49","v":0},{"$f":"VLOOKUP(B:B,OFFSET('B. PoF Adj Factor Scoring'!$E$5:$F$282,,MATCH(G$4,'B. PoF Adj Factor Scoring'!$E$3:$N$3,0)-1),2,TRUE)","v":1},{"$f":"VLOOKUP(C:C,OFFSET('B. PoF Adj Factor Scoring'!$E$5:$F$282,,MATCH(H$4,'B. PoF Adj Factor Scoring'!$E$3:$N$3,0)-1),2,TRUE)","v":3},{"$f":"VLOOKUP(D:D,OFFSET('B. PoF Adj Factor Scoring'!$E$5:$F$282,,MATCH(I$4,'B. PoF Adj Factor Scoring'!$E$3:$N$3,0)-1),2,TRUE)","v":1},{"$f":"VLOOKUP(E:E,OFFSET('B. PoF Adj Factor Scoring'!$E$5:$F$282,,MATCH(J$4,'B. PoF Adj Factor Scoring'!$E$3:$N$3,0)-1),2,TRUE)","v":1},{"$f":"VLOOKUP(F:F,OFFSET('B. PoF Adj Factor Scoring'!$E$5:$F$282,,MATCH(K$4,'B. PoF Adj Factor Scoring'!$E$3:$N$3,0)-1),2,TRUE)","v":1}]
[{"$f":"'A. Population Info'!A50","v":1000323169},{"$f":"'A. Population Info'!G50","v":"OIL"},{"$f":"'A. Population Info'!H50","v":1},{"$f":"'A. Population Info'!I50","v":600},{"$f":"'A. Population Info'!J50","v":0},{"$f":"'A. Population Info'!K50","v":0},{"$f":"VLOOKUP(B:B,OFFSET('B. PoF Adj Factor Scoring'!$E$5:$F$282,,MATCH(G$4,'B. PoF Adj Factor Scoring'!$E$3:$N$3,0)-1),2,TRUE)","v":1},{"$f":"VLOOKUP(C:C,OFFSET('B. PoF Adj Factor Scoring'!$E$5:$F$282,,MATCH(H$4,'B. PoF Adj Factor Scoring'!$E$3:$N$3,0)-1),2,TRUE)","v":1},{"$f":"VLOOKUP(D:D,OFFSET('B. PoF Adj Factor Scoring'!$E$5:$F$282,,MATCH(I$4,'B. PoF Adj Factor Scoring'!$E$3:$N$3,0)-1),2,TRUE)","v":1},{"$f":"VLOOKUP(E:E,OFFSET('B. PoF Adj Factor Scoring'!$E$5:$F$282,,MATCH(J$4,'B. PoF Adj Factor Scoring'!$E$3:$N$3,0)-1),2,TRUE)","v":1},{"$f":"VLOOKUP(F:F,OFFSET('B. PoF Adj Factor Scoring'!$E$5:$F$282,,MATCH(K$4,'B. PoF Adj Factor Scoring'!$E$3:$N$3,0)-1),2,TRUE)","v":1}]
[{"$f":"'A. Population Info'!A51","v":1000323229},{"$f":"'A. Population Info'!G51","v":"OIL"},{"$f":"'A. Population Info'!H51","v":1},{"$f":"'A. Population Info'!I51","v":0},{"$f":"'A. Population Info'!J51","v":0},{"$f":"'A. Population Info'!K51","v":0},{"$f":"VLOOKUP(B:B,OFFSET('B. PoF Adj Factor Scoring'!$E$5:$F$282,,MATCH(G$4,'B. PoF Adj Factor Scoring'!$E$3:$N$3,0)-1),2,TRUE)","v":1},{"$f":"VLOOKUP(C:C,OFFSET('B. PoF Adj Factor Scoring'!$E$5:$F$282,,MATCH(H$4,'B. PoF Adj Factor Scoring'!$E$3:$N$3,0)-1),2,TRUE)","v":1},{"$f":"VLOOKUP(D:D,OFFSET('B. PoF Adj Factor Scoring'!$E$5:$F$282,,MATCH(I$4,'B. PoF Adj Factor Scoring'!$E$3:$N$3,0)-1),2,TRUE)","v":1},{"$f":"VLOOKUP(E:E,OFFSET('B. PoF Adj Factor Scoring'!$E$5:$F$282,,MATCH(J$4,'B. PoF Adj Factor Scoring'!$E$3:$N$3,0)-1),2,TRUE)","v":1},{"$f":"VLOOKUP(F:F,OFFSET('B. PoF Adj Factor Scoring'!$E$5:$F$282,,MATCH(K$4,'B. PoF Adj Factor Scoring'!$E$3:$N$3,0)-1),2,TRUE)","v":1}]
[{"$f":"'A. Population Info'!A52","v":1000323262},{"$f":"'A. Population Info'!G52","v":"OIL"},{"$f":"'A. Population Info'!H52","v":2},{"$f":"'A. Population Info'!I52","v":1800},{"$f":"'A. Population Info'!J52","v":0},{"$f":"'A. Population Info'!K52","v":0},{"$f":"VLOOKUP(B:B,OFFSET('B. PoF Adj Factor Scoring'!$E$5:$F$282,,MATCH(G$4,'B. PoF Adj Factor Scoring'!$E$3:$N$3,0)-1),2,TRUE)","v":1},{"$f":"VLOOKUP(C:C,OFFSET('B. PoF Adj Factor Scoring'!$E$5:$F$282,,MATCH(H$4,'B. PoF Adj Factor Scoring'!$E$3:$N$3,0)-1),2,TRUE)","v":2},{"$f":"VLOOKUP(D:D,OFFSET('B. PoF Adj Factor Scoring'!$E$5:$F$282,,MATCH(I$4,'B. PoF Adj Factor Scoring'!$E$3:$N$3,0)-1),2,TRUE)","v":2},{"$f":"VLOOKUP(E:E,OFFSET('B. PoF Adj Factor Scoring'!$E$5:$F$282,,MATCH(J$4,'B. PoF Adj Factor Scoring'!$E$3:$N$3,0)-1),2,TRUE)","v":1},{"$f":"VLOOKUP(F:F,OFFSET('B. PoF Adj Factor Scoring'!$E$5:$F$282,,MATCH(K$4,'B. PoF Adj Factor Scoring'!$E$3:$N$3,0)-1),2,TRUE)","v":1}]
[{"$f":"'A. Population Info'!A53","v":1000323289},{"$f":"'A. Population Info'!G53","v":"OIL"},{"$f":"'A. Population Info'!H53","v":2},{"$f":"'A. Population Info'!I53","v":1000},{"$f":"'A. Population Info'!J53","v":0},{"$f":"'A. Population Info'!K53","v":0},{"$f":"VLOOKUP(B:B,OFFSET('B. PoF Adj Factor Scoring'!$E$5:$F$282,,MATCH(G$4,'B. PoF Adj Factor Scoring'!$E$3:$N$3,0)-1),2,TRUE)","v":1},{"$f":"VLOOKUP(C:C,OFFSET('B. PoF Adj Factor Scoring'!$E$5:$F$282,,MATCH(H$4,'B. PoF Adj Factor Scoring'!$E$3:$N$3,0)-1),2,TRUE)","v":2},{"$f":"VLOOKUP(D:D,OFFSET('B. PoF Adj Factor Scoring'!$E$5:$F$282,,MATCH(I$4,'B. PoF Adj Factor Scoring'!$E$3:$N$3,0)-1),2,TRUE)","v":2},{"$f":"VLOOKUP(E:E,OFFSET('B. PoF Adj Factor Scoring'!$E$5:$F$282,,MATCH(J$4,'B. PoF Adj Factor Scoring'!$E$3:$N$3,0)-1),2,TRUE)","v":1},{"$f":"VLOOKUP(F:F,OFFSET('B. PoF Adj Factor Scoring'!$E$5:$F$282,,MATCH(K$4,'B. PoF Adj Factor Scoring'!$E$3:$N$3,0)-1),2,TRUE)","v":1}]
[{"$f":"'A. Population Info'!A54","v":1000323320},{"$f":"'A. Population Info'!G54","v":"OIL"},{"$f":"'A. Population Info'!H54","v":3},{"$f":"'A. Population Info'!I54","v":300},{"$f":"'A. Population Info'!J54","v":0},{"$f":"'A. Population Info'!K54","v":0},{"$f":"VLOOKUP(B:B,OFFSET('B. PoF Adj Factor Scoring'!$E$5:$F$282,,MATCH(G$4,'B. PoF Adj Factor Scoring'!$E$3:$N$3,0)-1),2,TRUE)","v":1},{"$f":"VLOOKUP(C:C,OFFSET('B. PoF Adj Factor Scoring'!$E$5:$F$282,,MATCH(H$4,'B. PoF Adj Factor Scoring'!$E$3:$N$3,0)-1),2,TRUE)","v":3},{"$f":"VLOOKUP(D:D,OFFSET('B. PoF Adj Factor Scoring'!$E$5:$F$282,,MATCH(I$4,'B. PoF Adj Factor Scoring'!$E$3:$N$3,0)-1),2,TRUE)","v":1},{"$f":"VLOOKUP(E:E,OFFSET('B. PoF Adj Factor Scoring'!$E$5:$F$282,,MATCH(J$4,'B. PoF Adj Factor Scoring'!$E$3:$N$3,0)-1),2,TRUE)","v":1},{"$f":"VLOOKUP(F:F,OFFSET('B. PoF Adj Factor Scoring'!$E$5:$F$282,,MATCH(K$4,'B. PoF Adj Factor Scoring'!$E$3:$N$3,0)-1),2,TRUE)","v":1}]
[{"$f":"'A. Population Info'!A55","v":1000323378},{"$f":"'A. Population Info'!G55","v":"OIL"},{"$f":"'A. Population Info'!H55","v":3},{"$f":"'A. Population Info'!I55","v":0},{"$f":"'A. Population Info'!J55","v":0},{"$f":"'A. Population Info'!K55","v":0},{"$f":"VLOOKUP(B:B,OFFSET('B. PoF Adj Factor Scoring'!$E$5:$F$282,,MATCH(G$4,'B. PoF Adj Factor Scoring'!$E$3:$N$3,0)-1),2,TRUE)","v":1},{"$f":"VLOOKUP(C:C,OFFSET('B. PoF Adj Factor Scoring'!$E$5:$F$282,,MATCH(H$4,'B. PoF Adj Factor Scoring'!$E$3:$N$3,0)-1),2,TRUE)","v":3},{"$f":"VLOOKUP(D:D,OFFSET('B. PoF Adj Factor Scoring'!$E$5:$F$282,,MATCH(I$4,'B. PoF Adj Factor Scoring'!$E$3:$N$3,0)-1),2,TRUE)","v":1},{"$f":"VLOOKUP(E:E,OFFSET('B. PoF Adj Factor Scoring'!$E$5:$F$282,,MATCH(J$4,'B. PoF Adj Factor Scoring'!$E$3:$N$3,0)-1),2,TRUE)","v":1},{"$f":"VLOOKUP(F:F,OFFSET('B. PoF Adj Factor Scoring'!$E$5:$F$282,,MATCH(K$4,'B. PoF Adj Factor Scoring'!$E$3:$N$3,0)-1),2,TRUE)","v":1}]
[{"$f":"'A. Population Info'!A56","v":1000323408},{"$f":"'A. Population Info'!G56","v":"OIL"},{"$f":"'A. Population Info'!H56","v":3},{"$f":"'A. Population Info'!I56","v":0},{"$f":"'A. Population Info'!J56","v":0},{"$f":"'A. Population Info'!K56","v":0},{"$f":"VLOOKUP(B:B,OFFSET('B. PoF Adj Factor Scoring'!$E$5:$F$282,,MATCH(G$4,'B. PoF Adj Factor Scoring'!$E$3:$N$3,0)-1),2,TRUE)","v":1},{"$f":"VLOOKUP(C:C,OFFSET('B. PoF Adj Factor Scoring'!$E$5:$F$282,,MATCH(H$4,'B. PoF Adj Factor Scoring'!$E$3:$N$3,0)-1),2,TRUE)","v":3},{"$f":"VLOOKUP(D:D,OFFSET('B. PoF Adj Factor Scoring'!$E$5:$F$282,,MATCH(I$4,'B. PoF Adj Factor Scoring'!$E$3:$N$3,0)-1),2,TRUE)","v":1},{"$f":"VLOOKUP(E:E,OFFSET('B. PoF Adj Factor Scoring'!$E$5:$F$282,,MATCH(J$4,'B. PoF Adj Factor Scoring'!$E$3:$N$3,0)-1),2,TRUE)","v":1},{"$f":"VLOOKUP(F:F,OFFSET('B. PoF Adj Factor Scoring'!$E$5:$F$282,,MATCH(K$4,'B. PoF Adj Factor Scoring'!$E$3:$N$3,0)-1),2,TRUE)","v":1}]
[{"$f":"'A. Population Info'!A57","v":1000323435},{"$f":"'A. Population Info'!G57","v":"OIL"},{"$f":"'A. Population Info'!H57","v":2},{"$f":"'A. Population Info'!I57","v":0},{"$f":"'A. Population Info'!J57","v":0},{"$f":"'A. Population Info'!K57","v":0},{"$f":"VLOOKUP(B:B,OFFSET('B. PoF Adj Factor Scoring'!$E$5:$F$282,,MATCH(G$4,'B. PoF Adj Factor Scoring'!$E$3:$N$3,0)-1),2,TRUE)","v":1},{"$f":"VLOOKUP(C:C,OFFSET('B. PoF Adj Factor Scoring'!$E$5:$F$282,,MATCH(H$4,'B. PoF Adj Factor Scoring'!$E$3:$N$3,0)-1),2,TRUE)","v":2},{"$f":"VLOOKUP(D:D,OFFSET('B. PoF Adj Factor Scoring'!$E$5:$F$282,,MATCH(I$4,'B. PoF Adj Factor Scoring'!$E$3:$N$3,0)-1),2,TRUE)","v":1},{"$f":"VLOOKUP(E:E,OFFSET('B. PoF Adj Factor Scoring'!$E$5:$F$282,,MATCH(J$4,'B. PoF Adj Factor Scoring'!$E$3:$N$3,0)-1),2,TRUE)","v":1},{"$f":"VLOOKUP(F:F,OFFSET('B. PoF Adj Factor Scoring'!$E$5:$F$282,,MATCH(K$4,'B. PoF Adj Factor Scoring'!$E$3:$N$3,0)-1),2,TRUE)","v":1}]
[{"$f":"'A. Population Info'!A58","v":1000323556},{"$f":"'A. Population Info'!G58","v":"OIL"},{"$f":"'A. Population Info'!H58","v":2},{"$f":"'A. Population Info'!I58","v":0},{"$f":"'A. Population Info'!J58","v":0},{"$f":"'A. Population Info'!K58","v":0},{"$f":"VLOOKUP(B:B,OFFSET('B. PoF Adj Factor Scoring'!$E$5:$F$282,,MATCH(G$4,'B. PoF Adj Factor Scoring'!$E$3:$N$3,0)-1),2,TRUE)","v":1},{"$f":"VLOOKUP(C:C,OFFSET('B. PoF Adj Factor Scoring'!$E$5:$F$282,,MATCH(H$4,'B. PoF Adj Factor Scoring'!$E$3:$N$3,0)-1),2,TRUE)","v":2},{"$f":"VLOOKUP(D:D,OFFSET('B. PoF Adj Factor Scoring'!$E$5:$F$282,,MATCH(I$4,'B. PoF Adj Factor Scoring'!$E$3:$N$3,0)-1),2,TRUE)","v":1},{"$f":"VLOOKUP(E:E,OFFSET('B. PoF Adj Factor Scoring'!$E$5:$F$282,,MATCH(J$4,'B. PoF Adj Factor Scoring'!$E$3:$N$3,0)-1),2,TRUE)","v":1},{"$f":"VLOOKUP(F:F,OFFSET('B. PoF Adj Factor Scoring'!$E$5:$F$282,,MATCH(K$4,'B. PoF Adj Factor Scoring'!$E$3:$N$3,0)-1),2,TRUE)","v":1}]
[{"$f":"'A. Population Info'!A59","v":1000323583},{"$f":"'A. Population Info'!G59","v":"OIL"},{"$f":"'A. Population Info'!H59","v":2},{"$f":"'A. Population Info'!I59","v":0},{"$f":"'A. Population Info'!J59","v":0},{"$f":"'A. Population Info'!K59","v":0},{"$f":"VLOOKUP(B:B,OFFSET('B. PoF Adj Factor Scoring'!$E$5:$F$282,,MATCH(G$4,'B. PoF Adj Factor Scoring'!$E$3:$N$3,0)-1),2,TRUE)","v":1},{"$f":"VLOOKUP(C:C,OFFSET('B. PoF Adj Factor Scoring'!$E$5:$F$282,,MATCH(H$4,'B. PoF Adj Factor Scoring'!$E$3:$N$3,0)-1),2,TRUE)","v":2},{"$f":"VLOOKUP(D:D,OFFSET('B. PoF Adj Factor Scoring'!$E$5:$F$282,,MATCH(I$4,'B. PoF Adj Factor Scoring'!$E$3:$N$3,0)-1),2,TRUE)","v":1},{"$f":"VLOOKUP(E:E,OFFSET('B. PoF Adj Factor Scoring'!$E$5:$F$282,,MATCH(J$4,'B. PoF Adj Factor Scoring'!$E$3:$N$3,0)-1),2,TRUE)","v":1},{"$f":"VLOOKUP(F:F,OFFSET('B. PoF Adj Factor Scoring'!$E$5:$F$282,,MATCH(K$4,'B. PoF Adj Factor Scoring'!$E$3:$N$3,0)-1),2,TRUE)","v":1}]
[{"$f":"'A. Population Info'!A60","v":1000323796},{"$f":"'A. Population Info'!G60","v":"OIL"},{"$f":"'A. Population Info'!H60","v":1},{"$f":"'A. Population Info'!I60","v":0},{"$f":"'A. Population Info'!J60","v":0},{"$f":"'A. Population Info'!K60","v":0},{"$f":"VLOOKUP(B:B,OFFSET('B. PoF Adj Factor Scoring'!$E$5:$F$282,,MATCH(G$4,'B. PoF Adj Factor Scoring'!$E$3:$N$3,0)-1),2,TRUE)","v":1},{"$f":"VLOOKUP(C:C,OFFSET('B. PoF Adj Factor Scoring'!$E$5:$F$282,,MATCH(H$4,'B. PoF Adj Factor Scoring'!$E$3:$N$3,0)-1),2,TRUE)","v":1},{"$f":"VLOOKUP(D:D,OFFSET('B. PoF Adj Factor Scoring'!$E$5:$F$282,,MATCH(I$4,'B. PoF Adj Factor Scoring'!$E$3:$N$3,0)-1),2,TRUE)","v":1},{"$f":"VLOOKUP(E:E,OFFSET('B. PoF Adj Factor Scoring'!$E$5:$F$282,,MATCH(J$4,'B. PoF Adj Factor Scoring'!$E$3:$N$3,0)-1),2,TRUE)","v":1},{"$f":"VLOOKUP(F:F,OFFSET('B. PoF Adj Factor Scoring'!$E$5:$F$282,,MATCH(K$4,'B. PoF Adj Factor Scoring'!$E$3:$N$3,0)-1),2,TRUE)","v":1}]
[{"$f":"'A. Population Info'!A61","v":1000323882},{"$f":"'A. Population Info'!G61","v":"OIL"},{"$f":"'A. Population Info'!H61","v":1},{"$f":"'A. Population Info'!I61","v":1900},{"$f":"'A. Population Info'!J61","v":0},{"$f":"'A. Population Info'!K61","v":0},{"$f":"VLOOKUP(B:B,OFFSET('B. PoF Adj Factor Scoring'!$E$5:$F$282,,MATCH(G$4,'B. PoF Adj Factor Scoring'!$E$3:$N$3,0)-1),2,TRUE)","v":1},{"$f":"VLOOKUP(C:C,OFFSET('B. PoF Adj Factor Scoring'!$E$5:$F$282,,MATCH(H$4,'B. PoF Adj Factor Scoring'!$E$3:$N$3,0)-1),2,TRUE)","v":1},{"$f":"VLOOKUP(D:D,OFFSET('B. PoF Adj Factor Scoring'!$E$5:$F$282,,MATCH(I$4,'B. PoF Adj Factor Scoring'!$E$3:$N$3,0)-1),2,TRUE)","v":2},{"$f":"VLOOKUP(E:E,OFFSET('B. PoF Adj Factor Scoring'!$E$5:$F$282,,MATCH(J$4,'B. PoF Adj Factor Scoring'!$E$3:$N$3,0)-1),2,TRUE)","v":1},{"$f":"VLOOKUP(F:F,OFFSET('B. PoF Adj Factor Scoring'!$E$5:$F$282,,MATCH(K$4,'B. PoF Adj Factor Scoring'!$E$3:$N$3,0)-1),2,TRUE)","v":1}]
[{"$f":"'A. Population Info'!A62","v":1000323941},{"$f":"'A. Population Info'!G62","v":"OIL"},{"$f":"'A. Population Info'!H62","v":2},{"$f":"'A. Population Info'!I62","v":0},{"$f":"'A. Population Info'!J62","v":0},{"$f":"'A. Population Info'!K62","v":0},{"$f":"VLOOKUP(B:B,OFFSET('B. PoF Adj Factor Scoring'!$E$5:$F$282,,MATCH(G$4,'B. PoF Adj Factor Scoring'!$E$3:$N$3,0)-1),2,TRUE)","v":1},{"$f":"VLOOKUP(C:C,OFFSET('B. PoF Adj Factor Scoring'!$E$5:$F$282,,MATCH(H$4,'B. PoF Adj Factor Scoring'!$E$3:$N$3,0)-1),2,TRUE)","v":2},{"$f":"VLOOKUP(D:D,OFFSET('B. PoF Adj Factor Scoring'!$E$5:$F$282,,MATCH(I$4,'B. PoF Adj Factor Scoring'!$E$3:$N$3,0)-1),2,TRUE)","v":1},{"$f":"VLOOKUP(E:E,OFFSET('B. PoF Adj Factor Scoring'!$E$5:$F$282,,MATCH(J$4,'B. PoF Adj Factor Scoring'!$E$3:$N$3,0)-1),2,TRUE)","v":1},{"$f":"VLOOKUP(F:F,OFFSET('B. PoF Adj Factor Scoring'!$E$5:$F$282,,MATCH(K$4,'B. PoF Adj Factor Scoring'!$E$3:$N$3,0)-1),2,TRUE)","v":1}]
[{"$f":"'A. Population Info'!A63","v":1000323998},{"$f":"'A. Population Info'!G63","v":"OIL"},{"$f":"'A. Population Info'!H63","v":1},{"$f":"'A. Population Info'!I63","v":300},{"$f":"'A. Population Info'!J63","v":0},{"$f":"'A. Population Info'!K63","v":0},{"$f":"VLOOKUP(B:B,OFFSET('B. PoF Adj Factor Scoring'!$E$5:$F$282,,MATCH(G$4,'B. PoF Adj Factor Scoring'!$E$3:$N$3,0)-1),2,TRUE)","v":1},{"$f":"VLOOKUP(C:C,OFFSET('B. PoF Adj Factor Scoring'!$E$5:$F$282,,MATCH(H$4,'B. PoF Adj Factor Scoring'!$E$3:$N$3,0)-1),2,TRUE)","v":1},{"$f":"VLOOKUP(D:D,OFFSET('B. PoF Adj Factor Scoring'!$E$5:$F$282,,MATCH(I$4,'B. PoF Adj Factor Scoring'!$E$3:$N$3,0)-1),2,TRUE)","v":1},{"$f":"VLOOKUP(E:E,OFFSET('B. PoF Adj Factor Scoring'!$E$5:$F$282,,MATCH(J$4,'B. PoF Adj Factor Scoring'!$E$3:$N$3,0)-1),2,TRUE)","v":1},{"$f":"VLOOKUP(F:F,OFFSET('B. PoF Adj Factor Scoring'!$E$5:$F$282,,MATCH(K$4,'B. PoF Adj Factor Scoring'!$E$3:$N$3,0)-1),2,TRUE)","v":1}]
[{"$f":"'A. Population Info'!A64","v":1000328026},{"$f":"'A. Population Info'!G64","v":"OIL"},{"$f":"'A. Population Info'!H64","v":1},{"$f":"'A. Population Info'!I64","v":0},{"$f":"'A. Population Info'!J64","v":0},{"$f":"'A. Population Info'!K64","v":0},{"$f":"VLOOKUP(B:B,OFFSET('B. PoF Adj Factor Scoring'!$E$5:$F$282,,MATCH(G$4,'B. PoF Adj Factor Scoring'!$E$3:$N$3,0)-1),2,TRUE)","v":1},{"$f":"VLOOKUP(C:C,OFFSET('B. PoF Adj Factor Scoring'!$E$5:$F$282,,MATCH(H$4,'B. PoF Adj Factor Scoring'!$E$3:$N$3,0)-1),2,TRUE)","v":1},{"$f":"VLOOKUP(D:D,OFFSET('B. PoF Adj Factor Scoring'!$E$5:$F$282,,MATCH(I$4,'B. PoF Adj Factor Scoring'!$E$3:$N$3,0)-1),2,TRUE)","v":1},{"$f":"VLOOKUP(E:E,OFFSET('B. PoF Adj Factor Scoring'!$E$5:$F$282,,MATCH(J$4,'B. PoF Adj Factor Scoring'!$E$3:$N$3,0)-1),2,TRUE)","v":1},{"$f":"VLOOKUP(F:F,OFFSET('B. PoF Adj Factor Scoring'!$E$5:$F$282,,MATCH(K$4,'B. PoF Adj Factor Scoring'!$E$3:$N$3,0)-1),2,TRUE)","v":1}]
[{"$f":"'A. Population Info'!A65","v":1000328057},{"$f":"'A. Population Info'!G65","v":"OIL"},{"$f":"'A. Population Info'!H65","v":2},{"$f":"'A. Population Info'!I65","v":1100},{"$f":"'A. Population Info'!J65","v":0},{"$f":"'A. Population Info'!K65","v":0},{"$f":"VLOOKUP(B:B,OFFSET('B. PoF Adj Factor Scoring'!$E$5:$F$282,,MATCH(G$4,'B. PoF Adj Factor Scoring'!$E$3:$N$3,0)-1),2,TRUE)","v":1},{"$f":"VLOOKUP(C:C,OFFSET('B. PoF Adj Factor Scoring'!$E$5:$F$282,,MATCH(H$4,'B. PoF Adj Factor Scoring'!$E$3:$N$3,0)-1),2,TRUE)","v":2},{"$f":"VLOOKUP(D:D,OFFSET('B. PoF Adj Factor Scoring'!$E$5:$F$282,,MATCH(I$4,'B. PoF Adj Factor Scoring'!$E$3:$N$3,0)-1),2,TRUE)","v":2},{"$f":"VLOOKUP(E:E,OFFSET('B. PoF Adj Factor Scoring'!$E$5:$F$282,,MATCH(J$4,'B. PoF Adj Factor Scoring'!$E$3:$N$3,0)-1),2,TRUE)","v":1},{"$f":"VLOOKUP(F:F,OFFSET('B. PoF Adj Factor Scoring'!$E$5:$F$282,,MATCH(K$4,'B. PoF Adj Factor Scoring'!$E$3:$N$3,0)-1),2,TRUE)","v":1}]
[{"$f":"'A. Population Info'!A66","v":1000328085},{"$f":"'A. Population Info'!G66","v":"OIL"},{"$f":"'A. Population Info'!H66","v":2},{"$f":"'A. Population Info'!I66","v":0},{"$f":"'A. Population Info'!J66","v":0},{"$f":"'A. Population Info'!K66","v":0},{"$f":"VLOOKUP(B:B,OFFSET('B. PoF Adj Factor Scoring'!$E$5:$F$282,,MATCH(G$4,'B. PoF Adj Factor Scoring'!$E$3:$N$3,0)-1),2,TRUE)","v":1},{"$f":"VLOOKUP(C:C,OFFSET('B. PoF Adj Factor Scoring'!$E$5:$F$282,,MATCH(H$4,'B. PoF Adj Factor Scoring'!$E$3:$N$3,0)-1),2,TRUE)","v":2},{"$f":"VLOOKUP(D:D,OFFSET('B. PoF Adj Factor Scoring'!$E$5:$F$282,,MATCH(I$4,'B. PoF Adj Factor Scoring'!$E$3:$N$3,0)-1),2,TRUE)","v":1},{"$f":"VLOOKUP(E:E,OFFSET('B. PoF Adj Factor Scoring'!$E$5:$F$282,,MATCH(J$4,'B. PoF Adj Factor Scoring'!$E$3:$N$3,0)-1),2,TRUE)","v":1},{"$f":"VLOOKUP(F:F,OFFSET('B. PoF Adj Factor Scoring'!$E$5:$F$282,,MATCH(K$4,'B. PoF Adj Factor Scoring'!$E$3:$N$3,0)-1),2,TRUE)","v":1}]
[{"$f":"'A. Population Info'!A67","v":1000328116},{"$f":"'A. Population Info'!G67","v":"OIL"},{"$f":"'A. Population Info'!H67","v":1},{"$f":"'A. Population Info'!I67","v":800},{"$f":"'A. Population Info'!J67","v":0},{"$f":"'A. Population Info'!K67","v":0},{"$f":"VLOOKUP(B:B,OFFSET('B. PoF Adj Factor Scoring'!$E$5:$F$282,,MATCH(G$4,'B. PoF Adj Factor Scoring'!$E$3:$N$3,0)-1),2,TRUE)","v":1},{"$f":"VLOOKUP(C:C,OFFSET('B. PoF Adj Factor Scoring'!$E$5:$F$282,,MATCH(H$4,'B. PoF Adj Factor Scoring'!$E$3:$N$3,0)-1),2,TRUE)","v":1},{"$f":"VLOOKUP(D:D,OFFSET('B. PoF Adj Factor Scoring'!$E$5:$F$282,,MATCH(I$4,'B. PoF Adj Factor Scoring'!$E$3:$N$3,0)-1),2,TRUE)","v":1},{"$f":"VLOOKUP(E:E,OFFSET('B. PoF Adj Factor Scoring'!$E$5:$F$282,,MATCH(J$4,'B. PoF Adj Factor Scoring'!$E$3:$N$3,0)-1),2,TRUE)","v":1},{"$f":"VLOOKUP(F:F,OFFSET('B. PoF Adj Factor Scoring'!$E$5:$F$282,,MATCH(K$4,'B. PoF Adj Factor Scoring'!$E$3:$N$3,0)-1),2,TRUE)","v":1}]
[{"$f":"'A. Population Info'!A68","v":1000328175},{"$f":"'A. Population Info'!G68","v":"OIL"},{"$f":"'A. Population Info'!H68","v":3},{"$f":"'A. Population Info'!I68","v":0},{"$f":"'A. Population Info'!J68","v":0},{"$f":"'A. Population Info'!K68","v":0},{"$f":"VLOOKUP(B:B,OFFSET('B. PoF Adj Factor Scoring'!$E$5:$F$282,,MATCH(G$4,'B. PoF Adj Factor Scoring'!$E$3:$N$3,0)-1),2,TRUE)","v":1},{"$f":"VLOOKUP(C:C,OFFSET('B. PoF Adj Factor Scoring'!$E$5:$F$282,,MATCH(H$4,'B. PoF Adj Factor Scoring'!$E$3:$N$3,0)-1),2,TRUE)","v":3},{"$f":"VLOOKUP(D:D,OFFSET('B. PoF Adj Factor Scoring'!$E$5:$F$282,,MATCH(I$4,'B. PoF Adj Factor Scoring'!$E$3:$N$3,0)-1),2,TRUE)","v":1},{"$f":"VLOOKUP(E:E,OFFSET('B. PoF Adj Factor Scoring'!$E$5:$F$282,,MATCH(J$4,'B. PoF Adj Factor Scoring'!$E$3:$N$3,0)-1),2,TRUE)","v":1},{"$f":"VLOOKUP(F:F,OFFSET('B. PoF Adj Factor Scoring'!$E$5:$F$282,,MATCH(K$4,'B. PoF Adj Factor Scoring'!$E$3:$N$3,0)-1),2,TRUE)","v":1}]
[{"$f":"'A. Population Info'!A69","v":1000328208},{"$f":"'A. Population Info'!G69","v":"OIL"},{"$f":"'A. Population Info'!H69","v":2},{"$f":"'A. Population Info'!I69","v":0},{"$f":"'A. Population Info'!J69","v":0},{"$f":"'A. Population Info'!K69","v":0},{"$f":"VLOOKUP(B:B,OFFSET('B. PoF Adj Factor Scoring'!$E$5:$F$282,,MATCH(G$4,'B. PoF Adj Factor Scoring'!$E$3:$N$3,0)-1),2,TRUE)","v":1},{"$f":"VLOOKUP(C:C,OFFSET('B. PoF Adj Factor Scoring'!$E$5:$F$282,,MATCH(H$4,'B. PoF Adj Factor Scoring'!$E$3:$N$3,0)-1),2,TRUE)","v":2},{"$f":"VLOOKUP(D:D,OFFSET('B. PoF Adj Factor Scoring'!$E$5:$F$282,,MATCH(I$4,'B. PoF Adj Factor Scoring'!$E$3:$N$3,0)-1),2,TRUE)","v":1},{"$f":"VLOOKUP(E:E,OFFSET('B. PoF Adj Factor Scoring'!$E$5:$F$282,,MATCH(J$4,'B. PoF Adj Factor Scoring'!$E$3:$N$3,0)-1),2,TRUE)","v":1},{"$f":"VLOOKUP(F:F,OFFSET('B. PoF Adj Factor Scoring'!$E$5:$F$282,,MATCH(K$4,'B. PoF Adj Factor Scoring'!$E$3:$N$3,0)-1),2,TRUE)","v":1}]
[{"$f":"'A. Population Info'!A70","v":1000328413},{"$f":"'A. Population Info'!G70","v":"OIL"},{"$f":"'A. Population Info'!H70","v":2},{"$f":"'A. Population Info'!I70","v":0},{"$f":"'A. Population Info'!J70","v":0},{"$f":"'A. Population Info'!K70","v":0},{"$f":"VLOOKUP(B:B,OFFSET('B. PoF Adj Factor Scoring'!$E$5:$F$282,,MATCH(G$4,'B. PoF Adj Factor Scoring'!$E$3:$N$3,0)-1),2,TRUE)","v":1},{"$f":"VLOOKUP(C:C,OFFSET('B. PoF Adj Factor Scoring'!$E$5:$F$282,,MATCH(H$4,'B. PoF Adj Factor Scoring'!$E$3:$N$3,0)-1),2,TRUE)","v":2},{"$f":"VLOOKUP(D:D,OFFSET('B. PoF Adj Factor Scoring'!$E$5:$F$282,,MATCH(I$4,'B. PoF Adj Factor Scoring'!$E$3:$N$3,0)-1),2,TRUE)","v":1},{"$f":"VLOOKUP(E:E,OFFSET('B. PoF Adj Factor Scoring'!$E$5:$F$282,,MATCH(J$4,'B. PoF Adj Factor Scoring'!$E$3:$N$3,0)-1),2,TRUE)","v":1},{"$f":"VLOOKUP(F:F,OFFSET('B. PoF Adj Factor Scoring'!$E$5:$F$282,,MATCH(K$4,'B. PoF Adj Factor Scoring'!$E$3:$N$3,0)-1),2,TRUE)","v":1}]
[{"$f":"'A. Population Info'!A71","v":1000328506},{"$f":"'A. Population Info'!G71","v":"OIL"},{"$f":"'A. Population Info'!H71","v":3},{"$f":"'A. Population Info'!I71","v":0},{"$f":"'A. Population Info'!J71","v":0},{"$f":"'A. Population Info'!K71","v":0},{"$f":"VLOOKUP(B:B,OFFSET('B. PoF Adj Factor Scoring'!$E$5:$F$282,,MATCH(G$4,'B. PoF Adj Factor Scoring'!$E$3:$N$3,0)-1),2,TRUE)","v":1},{"$f":"VLOOKUP(C:C,OFFSET('B. PoF Adj Factor Scoring'!$E$5:$F$282,,MATCH(H$4,'B. PoF Adj Factor Scoring'!$E$3:$N$3,0)-1),2,TRUE)","v":3},{"$f":"VLOOKUP(D:D,OFFSET('B. PoF Adj Factor Scoring'!$E$5:$F$282,,MATCH(I$4,'B. PoF Adj Factor Scoring'!$E$3:$N$3,0)-1),2,TRUE)","v":1},{"$f":"VLOOKUP(E:E,OFFSET('B. PoF Adj Factor Scoring'!$E$5:$F$282,,MATCH(J$4,'B. PoF Adj Factor Scoring'!$E$3:$N$3,0)-1),2,TRUE)","v":1},{"$f":"VLOOKUP(F:F,OFFSET('B. PoF Adj Factor Scoring'!$E$5:$F$282,,MATCH(K$4,'B. PoF Adj Factor Scoring'!$E$3:$N$3,0)-1),2,TRUE)","v":1}]
[{"$f":"'A. Population Info'!A72","v":1000328533},{"$f":"'A. Population Info'!G72","v":"OIL"},{"$f":"'A. Population Info'!H72","v":2},{"$f":"'A. Population Info'!I72","v":2160},{"$f":"'A. Population Info'!J72","v":0},{"$f":"'A. Population Info'!K72","v":0},{"$f":"VLOOKUP(B:B,OFFSET('B. PoF Adj Factor Scoring'!$E$5:$F$282,,MATCH(G$4,'B. PoF Adj Factor Scoring'!$E$3:$N$3,0)-1),2,TRUE)","v":1},{"$f":"VLOOKUP(C:C,OFFSET('B. PoF Adj Factor Scoring'!$E$5:$F$282,,MATCH(H$4,'B. PoF Adj Factor Scoring'!$E$3:$N$3,0)-1),2,TRUE)","v":2},{"$f":"VLOOKUP(D:D,OFFSET('B. PoF Adj Factor Scoring'!$E$5:$F$282,,MATCH(I$4,'B. PoF Adj Factor Scoring'!$E$3:$N$3,0)-1),2,TRUE)","v":2},{"$f":"VLOOKUP(E:E,OFFSET('B. PoF Adj Factor Scoring'!$E$5:$F$282,,MATCH(J$4,'B. PoF Adj Factor Scoring'!$E$3:$N$3,0)-1),2,TRUE)","v":1},{"$f":"VLOOKUP(F:F,OFFSET('B. PoF Adj Factor Scoring'!$E$5:$F$282,,MATCH(K$4,'B. PoF Adj Factor Scoring'!$E$3:$N$3,0)-1),2,TRUE)","v":1}]
[{"$f":"'A. Population Info'!A73","v":1000328564},{"$f":"'A. Population Info'!G73","v":"OIL"},{"$f":"'A. Population Info'!H73","v":2},{"$f":"'A. Population Info'!I73","v":1700},{"$f":"'A. Population Info'!J73","v":0},{"$f":"'A. Population Info'!K73","v":0},{"$f":"VLOOKUP(B:B,OFFSET('B. PoF Adj Factor Scoring'!$E$5:$F$282,,MATCH(G$4,'B. PoF Adj Factor Scoring'!$E$3:$N$3,0)-1),2,TRUE)","v":1},{"$f":"VLOOKUP(C:C,OFFSET('B. PoF Adj Factor Scoring'!$E$5:$F$282,,MATCH(H$4,'B. PoF Adj Factor Scoring'!$E$3:$N$3,0)-1),2,TRUE)","v":2},{"$f":"VLOOKUP(D:D,OFFSET('B. PoF Adj Factor Scoring'!$E$5:$F$282,,MATCH(I$4,'B. PoF Adj Factor Scoring'!$E$3:$N$3,0)-1),2,TRUE)","v":2},{"$f":"VLOOKUP(E:E,OFFSET('B. PoF Adj Factor Scoring'!$E$5:$F$282,,MATCH(J$4,'B. PoF Adj Factor Scoring'!$E$3:$N$3,0)-1),2,TRUE)","v":1},{"$f":"VLOOKUP(F:F,OFFSET('B. PoF Adj Factor Scoring'!$E$5:$F$282,,MATCH(K$4,'B. PoF Adj Factor Scoring'!$E$3:$N$3,0)-1),2,TRUE)","v":1}]
[{"$f":"'A. Population Info'!A74","v":1000328590},{"$f":"'A. Population Info'!G74","v":"OIL"},{"$f":"'A. Population Info'!H74","v":3},{"$f":"'A. Population Info'!I74","v":1300},{"$f":"'A. Population Info'!J74","v":0},{"$f":"'A. Population Info'!K74","v":0},{"$f":"VLOOKUP(B:B,OFFSET('B. PoF Adj Factor Scoring'!$E$5:$F$282,,MATCH(G$4,'B. PoF Adj Factor Scoring'!$E$3:$N$3,0)-1),2,TRUE)","v":1},{"$f":"VLOOKUP(C:C,OFFSET('B. PoF Adj Factor Scoring'!$E$5:$F$282,,MATCH(H$4,'B. PoF Adj Factor Scoring'!$E$3:$N$3,0)-1),2,TRUE)","v":3},{"$f":"VLOOKUP(D:D,OFFSET('B. PoF Adj Factor Scoring'!$E$5:$F$282,,MATCH(I$4,'B. PoF Adj Factor Scoring'!$E$3:$N$3,0)-1),2,TRUE)","v":2},{"$f":"VLOOKUP(E:E,OFFSET('B. PoF Adj Factor Scoring'!$E$5:$F$282,,MATCH(J$4,'B. PoF Adj Factor Scoring'!$E$3:$N$3,0)-1),2,TRUE)","v":1},{"$f":"VLOOKUP(F:F,OFFSET('B. PoF Adj Factor Scoring'!$E$5:$F$282,,MATCH(K$4,'B. PoF Adj Factor Scoring'!$E$3:$N$3,0)-1),2,TRUE)","v":1}]
[{"$f":"'A. Population Info'!A75","v":1000328647},{"$f":"'A. Population Info'!G75","v":"OIL"},{"$f":"'A. Population Info'!H75","v":3},{"$f":"'A. Population Info'!I75","v":0},{"$f":"'A. Population Info'!J75","v":0},{"$f":"'A. Population Info'!K75","v":0},{"$f":"VLOOKUP(B:B,OFFSET('B. PoF Adj Factor Scoring'!$E$5:$F$282,,MATCH(G$4,'B. PoF Adj Factor Scoring'!$E$3:$N$3,0)-1),2,TRUE)","v":1},{"$f":"VLOOKUP(C:C,OFFSET('B. PoF Adj Factor Scoring'!$E$5:$F$282,,MATCH(H$4,'B. PoF Adj Factor Scoring'!$E$3:$N$3,0)-1),2,TRUE)","v":3},{"$f":"VLOOKUP(D:D,OFFSET('B. PoF Adj Factor Scoring'!$E$5:$F$282,,MATCH(I$4,'B. PoF Adj Factor Scoring'!$E$3:$N$3,0)-1),2,TRUE)","v":1},{"$f":"VLOOKUP(E:E,OFFSET('B. PoF Adj Factor Scoring'!$E$5:$F$282,,MATCH(J$4,'B. PoF Adj Factor Scoring'!$E$3:$N$3,0)-1),2,TRUE)","v":1},{"$f":"VLOOKUP(F:F,OFFSET('B. PoF Adj Factor Scoring'!$E$5:$F$282,,MATCH(K$4,'B. PoF Adj Factor Scoring'!$E$3:$N$3,0)-1),2,TRUE)","v":1}]
[{"$f":"'A. Population Info'!A76","v":1000328676},{"$f":"'A. Population Info'!G76","v":"OIL"},{"$f":"'A. Population Info'!H76","v":1},{"$f":"'A. Population Info'!I76","v":0},{"$f":"'A. Population Info'!J76","v":0},{"$f":"'A. Population Info'!K76","v":0},{"$f":"VLOOKUP(B:B,OFFSET('B. PoF Adj Factor Scoring'!$E$5:$F$282,,MATCH(G$4,'B. PoF Adj Factor Scoring'!$E$3:$N$3,0)-1),2,TRUE)","v":1},{"$f":"VLOOKUP(C:C,OFFSET('B. PoF Adj Factor Scoring'!$E$5:$F$282,,MATCH(H$4,'B. PoF Adj Factor Scoring'!$E$3:$N$3,0)-1),2,TRUE)","v":1},{"$f":"VLOOKUP(D:D,OFFSET('B. PoF Adj Factor Scoring'!$E$5:$F$282,,MATCH(I$4,'B. PoF Adj Factor Scoring'!$E$3:$N$3,0)-1),2,TRUE)","v":1},{"$f":"VLOOKUP(E:E,OFFSET('B. PoF Adj Factor Scoring'!$E$5:$F$282,,MATCH(J$4,'B. PoF Adj Factor Scoring'!$E$3:$N$3,0)-1),2,TRUE)","v":1},{"$f":"VLOOKUP(F:F,OFFSET('B. PoF Adj Factor Scoring'!$E$5:$F$282,,MATCH(K$4,'B. PoF Adj Factor Scoring'!$E$3:$N$3,0)-1),2,TRUE)","v":1}]
[{"$f":"'A. Population Info'!A77","v":1000328766},{"$f":"'A. Population Info'!G77","v":"OIL"},{"$f":"'A. Population Info'!H77","v":3},{"$f":"'A. Population Info'!I77","v":0},{"$f":"'A. Population Info'!J77","v":0},{"$f":"'A. Population Info'!K77","v":0},{"$f":"VLOOKUP(B:B,OFFSET('B. PoF Adj Factor Scoring'!$E$5:$F$282,,MATCH(G$4,'B. PoF Adj Factor Scoring'!$E$3:$N$3,0)-1),2,TRUE)","v":1},{"$f":"VLOOKUP(C:C,OFFSET('B. PoF Adj Factor Scoring'!$E$5:$F$282,,MATCH(H$4,'B. PoF Adj Factor Scoring'!$E$3:$N$3,0)-1),2,TRUE)","v":3},{"$f":"VLOOKUP(D:D,OFFSET('B. PoF Adj Factor Scoring'!$E$5:$F$282,,MATCH(I$4,'B. PoF Adj Factor Scoring'!$E$3:$N$3,0)-1),2,TRUE)","v":1},{"$f":"VLOOKUP(E:E,OFFSET('B. PoF Adj Factor Scoring'!$E$5:$F$282,,MATCH(J$4,'B. PoF Adj Factor Scoring'!$E$3:$N$3,0)-1),2,TRUE)","v":1},{"$f":"VLOOKUP(F:F,OFFSET('B. PoF Adj Factor Scoring'!$E$5:$F$282,,MATCH(K$4,'B. PoF Adj Factor Scoring'!$E$3:$N$3,0)-1),2,TRUE)","v":1}]
[{"$f":"'A. Population Info'!A78","v":1000328796},{"$f":"'A. Population Info'!G78","v":"OIL"},{"$f":"'A. Population Info'!H78","v":4},{"$f":"'A. Population Info'!I78","v":0},{"$f":"'A. Population Info'!J78","v":0},{"$f":"'A. Population Info'!K78","v":0},{"$f":"VLOOKUP(B:B,OFFSET('B. PoF Adj Factor Scoring'!$E$5:$F$282,,MATCH(G$4,'B. PoF Adj Factor Scoring'!$E$3:$N$3,0)-1),2,TRUE)","v":1},{"$f":"VLOOKUP(C:C,OFFSET('B. PoF Adj Factor Scoring'!$E$5:$F$282,,MATCH(H$4,'B. PoF Adj Factor Scoring'!$E$3:$N$3,0)-1),2,TRUE)","v":4},{"$f":"VLOOKUP(D:D,OFFSET('B. PoF Adj Factor Scoring'!$E$5:$F$282,,MATCH(I$4,'B. PoF Adj Factor Scoring'!$E$3:$N$3,0)-1),2,TRUE)","v":1},{"$f":"VLOOKUP(E:E,OFFSET('B. PoF Adj Factor Scoring'!$E$5:$F$282,,MATCH(J$4,'B. PoF Adj Factor Scoring'!$E$3:$N$3,0)-1),2,TRUE)","v":1},{"$f":"VLOOKUP(F:F,OFFSET('B. PoF Adj Factor Scoring'!$E$5:$F$282,,MATCH(K$4,'B. PoF Adj Factor Scoring'!$E$3:$N$3,0)-1),2,TRUE)","v":1}]
[{"$f":"'A. Population Info'!A79","v":1000328825},{"$f":"'A. Population Info'!G79","v":"OIL"},{"$f":"'A. Population Info'!H79","v":3},{"$f":"'A. Population Info'!I79","v":0},{"$f":"'A. Population Info'!J79","v":0},{"$f":"'A. Population Info'!K79","v":0},{"$f":"VLOOKUP(B:B,OFFSET('B. PoF Adj Factor Scoring'!$E$5:$F$282,,MATCH(G$4,'B. PoF Adj Factor Scoring'!$E$3:$N$3,0)-1),2,TRUE)","v":1},{"$f":"VLOOKUP(C:C,OFFSET('B. PoF Adj Factor Scoring'!$E$5:$F$282,,MATCH(H$4,'B. PoF Adj Factor Scoring'!$E$3:$N$3,0)-1),2,TRUE)","v":3},{"$f":"VLOOKUP(D:D,OFFSET('B. PoF Adj Factor Scoring'!$E$5:$F$282,,MATCH(I$4,'B. PoF Adj Factor Scoring'!$E$3:$N$3,0)-1),2,TRUE)","v":1},{"$f":"VLOOKUP(E:E,OFFSET('B. PoF Adj Factor Scoring'!$E$5:$F$282,,MATCH(J$4,'B. PoF Adj Factor Scoring'!$E$3:$N$3,0)-1),2,TRUE)","v":1},{"$f":"VLOOKUP(F:F,OFFSET('B. PoF Adj Factor Scoring'!$E$5:$F$282,,MATCH(K$4,'B. PoF Adj Factor Scoring'!$E$3:$N$3,0)-1),2,TRUE)","v":1}]
[{"$f":"'A. Population Info'!A80","v":1000328852},{"$f":"'A. Population Info'!G80","v":"OIL"},{"$f":"'A. Population Info'!H80","v":1},{"$f":"'A. Population Info'!I80","v":0},{"$f":"'A. Population Info'!J80","v":0},{"$f":"'A. Population Info'!K80","v":0},{"$f":"VLOOKUP(B:B,OFFSET('B. PoF Adj Factor Scoring'!$E$5:$F$282,,MATCH(G$4,'B. PoF Adj Factor Scoring'!$E$3:$N$3,0)-1),2,TRUE)","v":1},{"$f":"VLOOKUP(C:C,OFFSET('B. PoF Adj Factor Scoring'!$E$5:$F$282,,MATCH(H$4,'B. PoF Adj Factor Scoring'!$E$3:$N$3,0)-1),2,TRUE)","v":1},{"$f":"VLOOKUP(D:D,OFFSET('B. PoF Adj Factor Scoring'!$E$5:$F$282,,MATCH(I$4,'B. PoF Adj Factor Scoring'!$E$3:$N$3,0)-1),2,TRUE)","v":1},{"$f":"VLOOKUP(E:E,OFFSET('B. PoF Adj Factor Scoring'!$E$5:$F$282,,MATCH(J$4,'B. PoF Adj Factor Scoring'!$E$3:$N$3,0)-1),2,TRUE)","v":1},{"$f":"VLOOKUP(F:F,OFFSET('B. PoF Adj Factor Scoring'!$E$5:$F$282,,MATCH(K$4,'B. PoF Adj Factor Scoring'!$E$3:$N$3,0)-1),2,TRUE)","v":1}]
[{"$f":"'A. Population Info'!A81","v":1000328910},{"$f":"'A. Population Info'!G81","v":"OIL"},{"$f":"'A. Population Info'!H81","v":2},{"$f":"'A. Population Info'!I81","v":300},{"$f":"'A. Population Info'!J81","v":0},{"$f":"'A. Population Info'!K81","v":0},{"$f":"VLOOKUP(B:B,OFFSET('B. PoF Adj Factor Scoring'!$E$5:$F$282,,MATCH(G$4,'B. PoF Adj Factor Scoring'!$E$3:$N$3,0)-1),2,TRUE)","v":1},{"$f":"VLOOKUP(C:C,OFFSET('B. PoF Adj Factor Scoring'!$E$5:$F$282,,MATCH(H$4,'B. PoF Adj Factor Scoring'!$E$3:$N$3,0)-1),2,TRUE)","v":2},{"$f":"VLOOKUP(D:D,OFFSET('B. PoF Adj Factor Scoring'!$E$5:$F$282,,MATCH(I$4,'B. PoF Adj Factor Scoring'!$E$3:$N$3,0)-1),2,TRUE)","v":1},{"$f":"VLOOKUP(E:E,OFFSET('B. PoF Adj Factor Scoring'!$E$5:$F$282,,MATCH(J$4,'B. PoF Adj Factor Scoring'!$E$3:$N$3,0)-1),2,TRUE)","v":1},{"$f":"VLOOKUP(F:F,OFFSET('B. PoF Adj Factor Scoring'!$E$5:$F$282,,MATCH(K$4,'B. PoF Adj Factor Scoring'!$E$3:$N$3,0)-1),2,TRUE)","v":1}]
[{"$f":"'A. Population Info'!A82","v":1000332025},{"$f":"'A. Population Info'!G82","v":"OIL"},{"$f":"'A. Population Info'!H82","v":2},{"$f":"'A. Population Info'!I82","v":800},{"$f":"'A. Population Info'!J82","v":0},{"$f":"'A. Population Info'!K82","v":0},{"$f":"VLOOKUP(B:B,OFFSET('B. PoF Adj Factor Scoring'!$E$5:$F$282,,MATCH(G$4,'B. PoF Adj Factor Scoring'!$E$3:$N$3,0)-1),2,TRUE)","v":1},{"$f":"VLOOKUP(C:C,OFFSET('B. PoF Adj Factor Scoring'!$E$5:$F$282,,MATCH(H$4,'B. PoF Adj Factor Scoring'!$E$3:$N$3,0)-1),2,TRUE)","v":2},{"$f":"VLOOKUP(D:D,OFFSET('B. PoF Adj Factor Scoring'!$E$5:$F$282,,MATCH(I$4,'B. PoF Adj Factor Scoring'!$E$3:$N$3,0)-1),2,TRUE)","v":1},{"$f":"VLOOKUP(E:E,OFFSET('B. PoF Adj Factor Scoring'!$E$5:$F$282,,MATCH(J$4,'B. PoF Adj Factor Scoring'!$E$3:$N$3,0)-1),2,TRUE)","v":1},{"$f":"VLOOKUP(F:F,OFFSET('B. PoF Adj Factor Scoring'!$E$5:$F$282,,MATCH(K$4,'B. PoF Adj Factor Scoring'!$E$3:$N$3,0)-1),2,TRUE)","v":1}]
[{"$f":"'A. Population Info'!A83","v":1000332304},{"$f":"'A. Population Info'!G83","v":"OIL"},{"$f":"'A. Population Info'!H83","v":1},{"$f":"'A. Population Info'!I83","v":0},{"$f":"'A. Population Info'!J83","v":0},{"$f":"'A. Population Info'!K83","v":0},{"$f":"VLOOKUP(B:B,OFFSET('B. PoF Adj Factor Scoring'!$E$5:$F$282,,MATCH(G$4,'B. PoF Adj Factor Scoring'!$E$3:$N$3,0)-1),2,TRUE)","v":1},{"$f":"VLOOKUP(C:C,OFFSET('B. PoF Adj Factor Scoring'!$E$5:$F$282,,MATCH(H$4,'B. PoF Adj Factor Scoring'!$E$3:$N$3,0)-1),2,TRUE)","v":1},{"$f":"VLOOKUP(D:D,OFFSET('B. PoF Adj Factor Scoring'!$E$5:$F$282,,MATCH(I$4,'B. PoF Adj Factor Scoring'!$E$3:$N$3,0)-1),2,TRUE)","v":1},{"$f":"VLOOKUP(E:E,OFFSET('B. PoF Adj Factor Scoring'!$E$5:$F$282,,MATCH(J$4,'B. PoF Adj Factor Scoring'!$E$3:$N$3,0)-1),2,TRUE)","v":1},{"$f":"VLOOKUP(F:F,OFFSET('B. PoF Adj Factor Scoring'!$E$5:$F$282,,MATCH(K$4,'B. PoF Adj Factor Scoring'!$E$3:$N$3,0)-1),2,TRUE)","v":1}]
[{"$f":"'A. Population Info'!A84","v":1000332390},{"$f":"'A. Population Info'!G84","v":"OIL"},{"$f":"'A. Population Info'!H84","v":3},{"$f":"'A. Population Info'!I84","v":0},{"$f":"'A. Population Info'!J84","v":0},{"$f":"'A. Population Info'!K84","v":0},{"$f":"VLOOKUP(B:B,OFFSET('B. PoF Adj Factor Scoring'!$E$5:$F$282,,MATCH(G$4,'B. PoF Adj Factor Scoring'!$E$3:$N$3,0)-1),2,TRUE)","v":1},{"$f":"VLOOKUP(C:C,OFFSET('B. PoF Adj Factor Scoring'!$E$5:$F$282,,MATCH(H$4,'B. PoF Adj Factor Scoring'!$E$3:$N$3,0)-1),2,TRUE)","v":3},{"$f":"VLOOKUP(D:D,OFFSET('B. PoF Adj Factor Scoring'!$E$5:$F$282,,MATCH(I$4,'B. PoF Adj Factor Scoring'!$E$3:$N$3,0)-1),2,TRUE)","v":1},{"$f":"VLOOKUP(E:E,OFFSET('B. PoF Adj Factor Scoring'!$E$5:$F$282,,MATCH(J$4,'B. PoF Adj Factor Scoring'!$E$3:$N$3,0)-1),2,TRUE)","v":1},{"$f":"VLOOKUP(F:F,OFFSET('B. PoF Adj Factor Scoring'!$E$5:$F$282,,MATCH(K$4,'B. PoF Adj Factor Scoring'!$E$3:$N$3,0)-1),2,TRUE)","v":1}]
[{"$f":"'A. Population Info'!A85","v":1000332419},{"$f":"'A. Population Info'!G85","v":"OIL"},{"$f":"'A. Population Info'!H85","v":1},{"$f":"'A. Population Info'!I85","v":0},{"$f":"'A. Population Info'!J85","v":0},{"$f":"'A. Population Info'!K85","v":0},{"$f":"VLOOKUP(B:B,OFFSET('B. PoF Adj Factor Scoring'!$E$5:$F$282,,MATCH(G$4,'B. PoF Adj Factor Scoring'!$E$3:$N$3,0)-1),2,TRUE)","v":1},{"$f":"VLOOKUP(C:C,OFFSET('B. PoF Adj Factor Scoring'!$E$5:$F$282,,MATCH(H$4,'B. PoF Adj Factor Scoring'!$E$3:$N$3,0)-1),2,TRUE)","v":1},{"$f":"VLOOKUP(D:D,OFFSET('B. PoF Adj Factor Scoring'!$E$5:$F$282,,MATCH(I$4,'B. PoF Adj Factor Scoring'!$E$3:$N$3,0)-1),2,TRUE)","v":1},{"$f":"VLOOKUP(E:E,OFFSET('B. PoF Adj Factor Scoring'!$E$5:$F$282,,MATCH(J$4,'B. PoF Adj Factor Scoring'!$E$3:$N$3,0)-1),2,TRUE)","v":1},{"$f":"VLOOKUP(F:F,OFFSET('B. PoF Adj Factor Scoring'!$E$5:$F$282,,MATCH(K$4,'B. PoF Adj Factor Scoring'!$E$3:$N$3,0)-1),2,TRUE)","v":1}]
[{"$f":"'A. Population Info'!A86","v":1000332450},{"$f":"'A. Population Info'!G86","v":"OIL"},{"$f":"'A. Population Info'!H86","v":2},{"$f":"'A. Population Info'!I86","v":0},{"$f":"'A. Population Info'!J86","v":0},{"$f":"'A. Population Info'!K86","v":0},{"$f":"VLOOKUP(B:B,OFFSET('B. PoF Adj Factor Scoring'!$E$5:$F$282,,MATCH(G$4,'B. PoF Adj Factor Scoring'!$E$3:$N$3,0)-1),2,TRUE)","v":1},{"$f":"VLOOKUP(C:C,OFFSET('B. PoF Adj Factor Scoring'!$E$5:$F$282,,MATCH(H$4,'B. PoF Adj Factor Scoring'!$E$3:$N$3,0)-1),2,TRUE)","v":2},{"$f":"VLOOKUP(D:D,OFFSET('B. PoF Adj Factor Scoring'!$E$5:$F$282,,MATCH(I$4,'B. PoF Adj Factor Scoring'!$E$3:$N$3,0)-1),2,TRUE)","v":1},{"$f":"VLOOKUP(E:E,OFFSET('B. PoF Adj Factor Scoring'!$E$5:$F$282,,MATCH(J$4,'B. PoF Adj Factor Scoring'!$E$3:$N$3,0)-1),2,TRUE)","v":1},{"$f":"VLOOKUP(F:F,OFFSET('B. PoF Adj Factor Scoring'!$E$5:$F$282,,MATCH(K$4,'B. PoF Adj Factor Scoring'!$E$3:$N$3,0)-1),2,TRUE)","v":1}]
[{"$f":"'A. Population Info'!A87","v":1000332539},{"$f":"'A. Population Info'!G87","v":"OIL"},{"$f":"'A. Population Info'!H87","v":1},{"$f":"'A. Population Info'!I87","v":0},{"$f":"'A. Population Info'!J87","v":0},{"$f":"'A. Population Info'!K87","v":0},{"$f":"VLOOKUP(B:B,OFFSET('B. PoF Adj Factor Scoring'!$E$5:$F$282,,MATCH(G$4,'B. PoF Adj Factor Scoring'!$E$3:$N$3,0)-1),2,TRUE)","v":1},{"$f":"VLOOKUP(C:C,OFFSET('B. PoF Adj Factor Scoring'!$E$5:$F$282,,MATCH(H$4,'B. PoF Adj Factor Scoring'!$E$3:$N$3,0)-1),2,TRUE)","v":1},{"$f":"VLOOKUP(D:D,OFFSET('B. PoF Adj Factor Scoring'!$E$5:$F$282,,MATCH(I$4,'B. PoF Adj Factor Scoring'!$E$3:$N$3,0)-1),2,TRUE)","v":1},{"$f":"VLOOKUP(E:E,OFFSET('B. PoF Adj Factor Scoring'!$E$5:$F$282,,MATCH(J$4,'B. PoF Adj Factor Scoring'!$E$3:$N$3,0)-1),2,TRUE)","v":1},{"$f":"VLOOKUP(F:F,OFFSET('B. PoF Adj Factor Scoring'!$E$5:$F$282,,MATCH(K$4,'B. PoF Adj Factor Scoring'!$E$3:$N$3,0)-1),2,TRUE)","v":1}]
[{"$f":"'A. Population Info'!A88","v":1000332568},{"$f":"'A. Population Info'!G88","v":"OIL"},{"$f":"'A. Population Info'!H88","v":1},{"$f":"'A. Population Info'!I88","v":500},{"$f":"'A. Population Info'!J88","v":0},{"$f":"'A. Population Info'!K88","v":0},{"$f":"VLOOKUP(B:B,OFFSET('B. PoF Adj Factor Scoring'!$E$5:$F$282,,MATCH(G$4,'B. PoF Adj Factor Scoring'!$E$3:$N$3,0)-1),2,TRUE)","v":1},{"$f":"VLOOKUP(C:C,OFFSET('B. PoF Adj Factor Scoring'!$E$5:$F$282,,MATCH(H$4,'B. PoF Adj Factor Scoring'!$E$3:$N$3,0)-1),2,TRUE)","v":1},{"$f":"VLOOKUP(D:D,OFFSET('B. PoF Adj Factor Scoring'!$E$5:$F$282,,MATCH(I$4,'B. PoF Adj Factor Scoring'!$E$3:$N$3,0)-1),2,TRUE)","v":1},{"$f":"VLOOKUP(E:E,OFFSET('B. PoF Adj Factor Scoring'!$E$5:$F$282,,MATCH(J$4,'B. PoF Adj Factor Scoring'!$E$3:$N$3,0)-1),2,TRUE)","v":1},{"$f":"VLOOKUP(F:F,OFFSET('B. PoF Adj Factor Scoring'!$E$5:$F$282,,MATCH(K$4,'B. PoF Adj Factor Scoring'!$E$3:$N$3,0)-1),2,TRUE)","v":1}]
[{"$f":"'A. Population Info'!A89","v":1000332625},{"$f":"'A. Population Info'!G89","v":"OIL"},{"$f":"'A. Population Info'!H89","v":5},{"$f":"'A. Population Info'!I89","v":1000},{"$f":"'A. Population Info'!J89","v":0},{"$f":"'A. Population Info'!K89","v":0},{"$f":"VLOOKUP(B:B,OFFSET('B. PoF Adj Factor Scoring'!$E$5:$F$282,,MATCH(G$4,'B. PoF Adj Factor Scoring'!$E$3:$N$3,0)-1),2,TRUE)","v":1},{"$f":"VLOOKUP(C:C,OFFSET('B. PoF Adj Factor Scoring'!$E$5:$F$282,,MATCH(H$4,'B. PoF Adj Factor Scoring'!$E$3:$N$3,0)-1),2,TRUE)","v":5},{"$f":"VLOOKUP(D:D,OFFSET('B. PoF Adj Factor Scoring'!$E$5:$F$282,,MATCH(I$4,'B. PoF Adj Factor Scoring'!$E$3:$N$3,0)-1),2,TRUE)","v":2},{"$f":"VLOOKUP(E:E,OFFSET('B. PoF Adj Factor Scoring'!$E$5:$F$282,,MATCH(J$4,'B. PoF Adj Factor Scoring'!$E$3:$N$3,0)-1),2,TRUE)","v":1},{"$f":"VLOOKUP(F:F,OFFSET('B. PoF Adj Factor Scoring'!$E$5:$F$282,,MATCH(K$4,'B. PoF Adj Factor Scoring'!$E$3:$N$3,0)-1),2,TRUE)","v":1}]
[{"$f":"'A. Population Info'!A90","v":1000332657},{"$f":"'A. Population Info'!G90","v":"OIL"},{"$f":"'A. Population Info'!H90","v":3},{"$f":"'A. Population Info'!I90","v":0},{"$f":"'A. Population Info'!J90","v":0},{"$f":"'A. Population Info'!K90","v":0},{"$f":"VLOOKUP(B:B,OFFSET('B. PoF Adj Factor Scoring'!$E$5:$F$282,,MATCH(G$4,'B. PoF Adj Factor Scoring'!$E$3:$N$3,0)-1),2,TRUE)","v":1},{"$f":"VLOOKUP(C:C,OFFSET('B. PoF Adj Factor Scoring'!$E$5:$F$282,,MATCH(H$4,'B. PoF Adj Factor Scoring'!$E$3:$N$3,0)-1),2,TRUE)","v":3},{"$f":"VLOOKUP(D:D,OFFSET('B. PoF Adj Factor Scoring'!$E$5:$F$282,,MATCH(I$4,'B. PoF Adj Factor Scoring'!$E$3:$N$3,0)-1),2,TRUE)","v":1},{"$f":"VLOOKUP(E:E,OFFSET('B. PoF Adj Factor Scoring'!$E$5:$F$282,,MATCH(J$4,'B. PoF Adj Factor Scoring'!$E$3:$N$3,0)-1),2,TRUE)","v":1},{"$f":"VLOOKUP(F:F,OFFSET('B. PoF Adj Factor Scoring'!$E$5:$F$282,,MATCH(K$4,'B. PoF Adj Factor Scoring'!$E$3:$N$3,0)-1),2,TRUE)","v":1}]
[{"$f":"'A. Population Info'!A91","v":1000332778},{"$f":"'A. Population Info'!G91","v":"OIL"},{"$f":"'A. Population Info'!H91","v":2},{"$f":"'A. Population Info'!I91","v":0},{"$f":"'A. Population Info'!J91","v":0},{"$f":"'A. Population Info'!K91","v":0},{"$f":"VLOOKUP(B:B,OFFSET('B. PoF Adj Factor Scoring'!$E$5:$F$282,,MATCH(G$4,'B. PoF Adj Factor Scoring'!$E$3:$N$3,0)-1),2,TRUE)","v":1},{"$f":"VLOOKUP(C:C,OFFSET('B. PoF Adj Factor Scoring'!$E$5:$F$282,,MATCH(H$4,'B. PoF Adj Factor Scoring'!$E$3:$N$3,0)-1),2,TRUE)","v":2},{"$f":"VLOOKUP(D:D,OFFSET('B. PoF Adj Factor Scoring'!$E$5:$F$282,,MATCH(I$4,'B. PoF Adj Factor Scoring'!$E$3:$N$3,0)-1),2,TRUE)","v":1},{"$f":"VLOOKUP(E:E,OFFSET('B. PoF Adj Factor Scoring'!$E$5:$F$282,,MATCH(J$4,'B. PoF Adj Factor Scoring'!$E$3:$N$3,0)-1),2,TRUE)","v":1},{"$f":"VLOOKUP(F:F,OFFSET('B. PoF Adj Factor Scoring'!$E$5:$F$282,,MATCH(K$4,'B. PoF Adj Factor Scoring'!$E$3:$N$3,0)-1),2,TRUE)","v":1}]
[{"$f":"'A. Population Info'!A92","v":1000332841},{"$f":"'A. Population Info'!G92","v":"OIL"},{"$f":"'A. Population Info'!H92","v":1},{"$f":"'A. Population Info'!I92","v":0},{"$f":"'A. Population Info'!J92","v":0},{"$f":"'A. Population Info'!K92","v":0},{"$f":"VLOOKUP(B:B,OFFSET('B. PoF Adj Factor Scoring'!$E$5:$F$282,,MATCH(G$4,'B. PoF Adj Factor Scoring'!$E$3:$N$3,0)-1),2,TRUE)","v":1},{"$f":"VLOOKUP(C:C,OFFSET('B. PoF Adj Factor Scoring'!$E$5:$F$282,,MATCH(H$4,'B. PoF Adj Factor Scoring'!$E$3:$N$3,0)-1),2,TRUE)","v":1},{"$f":"VLOOKUP(D:D,OFFSET('B. PoF Adj Factor Scoring'!$E$5:$F$282,,MATCH(I$4,'B. PoF Adj Factor Scoring'!$E$3:$N$3,0)-1),2,TRUE)","v":1},{"$f":"VLOOKUP(E:E,OFFSET('B. PoF Adj Factor Scoring'!$E$5:$F$282,,MATCH(J$4,'B. PoF Adj Factor Scoring'!$E$3:$N$3,0)-1),2,TRUE)","v":1},{"$f":"VLOOKUP(F:F,OFFSET('B. PoF Adj Factor Scoring'!$E$5:$F$282,,MATCH(K$4,'B. PoF Adj Factor Scoring'!$E$3:$N$3,0)-1),2,TRUE)","v":1}]
[{"$f":"'A. Population Info'!A93","v":1000332870},{"$f":"'A. Population Info'!G93","v":"OIL"},{"$f":"'A. Population Info'!H93","v":1},{"$f":"'A. Population Info'!I93","v":0},{"$f":"'A. Population Info'!J93","v":0},{"$f":"'A. Population Info'!K93","v":0},{"$f":"VLOOKUP(B:B,OFFSET('B. PoF Adj Factor Scoring'!$E$5:$F$282,,MATCH(G$4,'B. PoF Adj Factor Scoring'!$E$3:$N$3,0)-1),2,TRUE)","v":1},{"$f":"VLOOKUP(C:C,OFFSET('B. PoF Adj Factor Scoring'!$E$5:$F$282,,MATCH(H$4,'B. PoF Adj Factor Scoring'!$E$3:$N$3,0)-1),2,TRUE)","v":1},{"$f":"VLOOKUP(D:D,OFFSET('B. PoF Adj Factor Scoring'!$E$5:$F$282,,MATCH(I$4,'B. PoF Adj Factor Scoring'!$E$3:$N$3,0)-1),2,TRUE)","v":1},{"$f":"VLOOKUP(E:E,OFFSET('B. PoF Adj Factor Scoring'!$E$5:$F$282,,MATCH(J$4,'B. PoF Adj Factor Scoring'!$E$3:$N$3,0)-1),2,TRUE)","v":1},{"$f":"VLOOKUP(F:F,OFFSET('B. PoF Adj Factor Scoring'!$E$5:$F$282,,MATCH(K$4,'B. PoF Adj Factor Scoring'!$E$3:$N$3,0)-1),2,TRUE)","v":1}]
[{"$f":"'A. Population Info'!A94","v":1000332902},{"$f":"'A. Population Info'!G94","v":"OIL"},{"$f":"'A. Population Info'!H94","v":1},{"$f":"'A. Population Info'!I94","v":0},{"$f":"'A. Population Info'!J94","v":0},{"$f":"'A. Population Info'!K94","v":0},{"$f":"VLOOKUP(B:B,OFFSET('B. PoF Adj Factor Scoring'!$E$5:$F$282,,MATCH(G$4,'B. PoF Adj Factor Scoring'!$E$3:$N$3,0)-1),2,TRUE)","v":1},{"$f":"VLOOKUP(C:C,OFFSET('B. PoF Adj Factor Scoring'!$E$5:$F$282,,MATCH(H$4,'B. PoF Adj Factor Scoring'!$E$3:$N$3,0)-1),2,TRUE)","v":1},{"$f":"VLOOKUP(D:D,OFFSET('B. PoF Adj Factor Scoring'!$E$5:$F$282,,MATCH(I$4,'B. PoF Adj Factor Scoring'!$E$3:$N$3,0)-1),2,TRUE)","v":1},{"$f":"VLOOKUP(E:E,OFFSET('B. PoF Adj Factor Scoring'!$E$5:$F$282,,MATCH(J$4,'B. PoF Adj Factor Scoring'!$E$3:$N$3,0)-1),2,TRUE)","v":1},{"$f":"VLOOKUP(F:F,OFFSET('B. PoF Adj Factor Scoring'!$E$5:$F$282,,MATCH(K$4,'B. PoF Adj Factor Scoring'!$E$3:$N$3,0)-1),2,TRUE)","v":1}]
[{"$f":"'A. Population Info'!A95","v":1000332930},{"$f":"'A. Population Info'!G95","v":"OIL"},{"$f":"'A. Population Info'!H95","v":1},{"$f":"'A. Population Info'!I95","v":0},{"$f":"'A. Population Info'!J95","v":0},{"$f":"'A. Population Info'!K95","v":0},{"$f":"VLOOKUP(B:B,OFFSET('B. PoF Adj Factor Scoring'!$E$5:$F$282,,MATCH(G$4,'B. PoF Adj Factor Scoring'!$E$3:$N$3,0)-1),2,TRUE)","v":1},{"$f":"VLOOKUP(C:C,OFFSET('B. PoF Adj Factor Scoring'!$E$5:$F$282,,MATCH(H$4,'B. PoF Adj Factor Scoring'!$E$3:$N$3,0)-1),2,TRUE)","v":1},{"$f":"VLOOKUP(D:D,OFFSET('B. PoF Adj Factor Scoring'!$E$5:$F$282,,MATCH(I$4,'B. PoF Adj Factor Scoring'!$E$3:$N$3,0)-1),2,TRUE)","v":1},{"$f":"VLOOKUP(E:E,OFFSET('B. PoF Adj Factor Scoring'!$E$5:$F$282,,MATCH(J$4,'B. PoF Adj Factor Scoring'!$E$3:$N$3,0)-1),2,TRUE)","v":1},{"$f":"VLOOKUP(F:F,OFFSET('B. PoF Adj Factor Scoring'!$E$5:$F$282,,MATCH(K$4,'B. PoF Adj Factor Scoring'!$E$3:$N$3,0)-1),2,TRUE)","v":1}]
[{"$f":"'A. Population Info'!A96","v":1000336019},{"$f":"'A. Population Info'!G96","v":"OIL"},{"$f":"'A. Population Info'!H96","v":1},{"$f":"'A. Population Info'!I96","v":0},{"$f":"'A. Population Info'!J96","v":0},{"$f":"'A. Population Info'!K96","v":0},{"$f":"VLOOKUP(B:B,OFFSET('B. PoF Adj Factor Scoring'!$E$5:$F$282,,MATCH(G$4,'B. PoF Adj Factor Scoring'!$E$3:$N$3,0)-1),2,TRUE)","v":1},{"$f":"VLOOKUP(C:C,OFFSET('B. PoF Adj Factor Scoring'!$E$5:$F$282,,MATCH(H$4,'B. PoF Adj Factor Scoring'!$E$3:$N$3,0)-1),2,TRUE)","v":1},{"$f":"VLOOKUP(D:D,OFFSET('B. PoF Adj Factor Scoring'!$E$5:$F$282,,MATCH(I$4,'B. PoF Adj Factor Scoring'!$E$3:$N$3,0)-1),2,TRUE)","v":1},{"$f":"VLOOKUP(E:E,OFFSET('B. PoF Adj Factor Scoring'!$E$5:$F$282,,MATCH(J$4,'B. PoF Adj Factor Scoring'!$E$3:$N$3,0)-1),2,TRUE)","v":1},{"$f":"VLOOKUP(F:F,OFFSET('B. PoF Adj Factor Scoring'!$E$5:$F$282,,MATCH(K$4,'B. PoF Adj Factor Scoring'!$E$3:$N$3,0)-1),2,TRUE)","v":1}]
[{"$f":"'A. Population Info'!A97","v":1000336048},{"$f":"'A. Population Info'!G97","v":"OIL"},{"$f":"'A. Population Info'!H97","v":1},{"$f":"'A. Population Info'!I97","v":0},{"$f":"'A. Population Info'!J97","v":0},{"$f":"'A. Population Info'!K97","v":0},{"$f":"VLOOKUP(B:B,OFFSET('B. PoF Adj Factor Scoring'!$E$5:$F$282,,MATCH(G$4,'B. PoF Adj Factor Scoring'!$E$3:$N$3,0)-1),2,TRUE)","v":1},{"$f":"VLOOKUP(C:C,OFFSET('B. PoF Adj Factor Scoring'!$E$5:$F$282,,MATCH(H$4,'B. PoF Adj Factor Scoring'!$E$3:$N$3,0)-1),2,TRUE)","v":1},{"$f":"VLOOKUP(D:D,OFFSET('B. PoF Adj Factor Scoring'!$E$5:$F$282,,MATCH(I$4,'B. PoF Adj Factor Scoring'!$E$3:$N$3,0)-1),2,TRUE)","v":1},{"$f":"VLOOKUP(E:E,OFFSET('B. PoF Adj Factor Scoring'!$E$5:$F$282,,MATCH(J$4,'B. PoF Adj Factor Scoring'!$E$3:$N$3,0)-1),2,TRUE)","v":1},{"$f":"VLOOKUP(F:F,OFFSET('B. PoF Adj Factor Scoring'!$E$5:$F$282,,MATCH(K$4,'B. PoF Adj Factor Scoring'!$E$3:$N$3,0)-1),2,TRUE)","v":1}]
[{"$f":"'A. Population Info'!A98","v":1000336078},{"$f":"'A. Population Info'!G98","v":"OIL"},{"$f":"'A. Population Info'!H98","v":2},{"$f":"'A. Population Info'!I98","v":500},{"$f":"'A. Population Info'!J98","v":0},{"$f":"'A. Population Info'!K98","v":0},{"$f":"VLOOKUP(B:B,OFFSET('B. PoF Adj Factor Scoring'!$E$5:$F$282,,MATCH(G$4,'B. PoF Adj Factor Scoring'!$E$3:$N$3,0)-1),2,TRUE)","v":1},{"$f":"VLOOKUP(C:C,OFFSET('B. PoF Adj Factor Scoring'!$E$5:$F$282,,MATCH(H$4,'B. PoF Adj Factor Scoring'!$E$3:$N$3,0)-1),2,TRUE)","v":2},{"$f":"VLOOKUP(D:D,OFFSET('B. PoF Adj Factor Scoring'!$E$5:$F$282,,MATCH(I$4,'B. PoF Adj Factor Scoring'!$E$3:$N$3,0)-1),2,TRUE)","v":1},{"$f":"VLOOKUP(E:E,OFFSET('B. PoF Adj Factor Scoring'!$E$5:$F$282,,MATCH(J$4,'B. PoF Adj Factor Scoring'!$E$3:$N$3,0)-1),2,TRUE)","v":1},{"$f":"VLOOKUP(F:F,OFFSET('B. PoF Adj Factor Scoring'!$E$5:$F$282,,MATCH(K$4,'B. PoF Adj Factor Scoring'!$E$3:$N$3,0)-1),2,TRUE)","v":1}]
[{"$f":"'A. Population Info'!A99","v":1000336106},{"$f":"'A. Population Info'!G99","v":"OIL"},{"$f":"'A. Population Info'!H99","v":1},{"$f":"'A. Population Info'!I99","v":0},{"$f":"'A. Population Info'!J99","v":0},{"$f":"'A. Population Info'!K99","v":0},{"$f":"VLOOKUP(B:B,OFFSET('B. PoF Adj Factor Scoring'!$E$5:$F$282,,MATCH(G$4,'B. PoF Adj Factor Scoring'!$E$3:$N$3,0)-1),2,TRUE)","v":1},{"$f":"VLOOKUP(C:C,OFFSET('B. PoF Adj Factor Scoring'!$E$5:$F$282,,MATCH(H$4,'B. PoF Adj Factor Scoring'!$E$3:$N$3,0)-1),2,TRUE)","v":1},{"$f":"VLOOKUP(D:D,OFFSET('B. PoF Adj Factor Scoring'!$E$5:$F$282,,MATCH(I$4,'B. PoF Adj Factor Scoring'!$E$3:$N$3,0)-1),2,TRUE)","v":1},{"$f":"VLOOKUP(E:E,OFFSET('B. PoF Adj Factor Scoring'!$E$5:$F$282,,MATCH(J$4,'B. PoF Adj Factor Scoring'!$E$3:$N$3,0)-1),2,TRUE)","v":1},{"$f":"VLOOKUP(F:F,OFFSET('B. PoF Adj Factor Scoring'!$E$5:$F$282,,MATCH(K$4,'B. PoF Adj Factor Scoring'!$E$3:$N$3,0)-1),2,TRUE)","v":1}]
[{"$f":"'A. Population Info'!A100","v":1000336136},{"$f":"'A. Population Info'!G100","v":"OIL"},{"$f":"'A. Population Info'!H100","v":1},{"$f":"'A. Population Info'!I100","v":700},{"$f":"'A. Population Info'!J100","v":0},{"$f":"'A. Population Info'!K100","v":0},{"$f":"VLOOKUP(B:B,OFFSET('B. PoF Adj Factor Scoring'!$E$5:$F$282,,MATCH(G$4,'B. PoF Adj Factor Scoring'!$E$3:$N$3,0)-1),2,TRUE)","v":1},{"$f":"VLOOKUP(C:C,OFFSET('B. PoF Adj Factor Scoring'!$E$5:$F$282,,MATCH(H$4,'B. PoF Adj Factor Scoring'!$E$3:$N$3,0)-1),2,TRUE)","v":1},{"$f":"VLOOKUP(D:D,OFFSET('B. PoF Adj Factor Scoring'!$E$5:$F$282,,MATCH(I$4,'B. PoF Adj Factor Scoring'!$E$3:$N$3,0)-1),2,TRUE)","v":1},{"$f":"VLOOKUP(E:E,OFFSET('B. PoF Adj Factor Scoring'!$E$5:$F$282,,MATCH(J$4,'B. PoF Adj Factor Scoring'!$E$3:$N$3,0)-1),2,TRUE)","v":1},{"$f":"VLOOKUP(F:F,OFFSET('B. PoF Adj Factor Scoring'!$E$5:$F$282,,MATCH(K$4,'B. PoF Adj Factor Scoring'!$E$3:$N$3,0)-1),2,TRUE)","v":1}]
[{"$f":"'A. Population Info'!A101","v":1000336165},{"$f":"'A. Population Info'!G101","v":"OIL"},{"$f":"'A. Population Info'!H101","v":3},{"$f":"'A. Population Info'!I101","v":0},{"$f":"'A. Population Info'!J101","v":0},{"$f":"'A. Population Info'!K101","v":0},{"$f":"VLOOKUP(B:B,OFFSET('B. PoF Adj Factor Scoring'!$E$5:$F$282,,MATCH(G$4,'B. PoF Adj Factor Scoring'!$E$3:$N$3,0)-1),2,TRUE)","v":1},{"$f":"VLOOKUP(C:C,OFFSET('B. PoF Adj Factor Scoring'!$E$5:$F$282,,MATCH(H$4,'B. PoF Adj Factor Scoring'!$E$3:$N$3,0)-1),2,TRUE)","v":3},{"$f":"VLOOKUP(D:D,OFFSET('B. PoF Adj Factor Scoring'!$E$5:$F$282,,MATCH(I$4,'B. PoF Adj Factor Scoring'!$E$3:$N$3,0)-1),2,TRUE)","v":1},{"$f":"VLOOKUP(E:E,OFFSET('B. PoF Adj Factor Scoring'!$E$5:$F$282,,MATCH(J$4,'B. PoF Adj Factor Scoring'!$E$3:$N$3,0)-1),2,TRUE)","v":1},{"$f":"VLOOKUP(F:F,OFFSET('B. PoF Adj Factor Scoring'!$E$5:$F$282,,MATCH(K$4,'B. PoF Adj Factor Scoring'!$E$3:$N$3,0)-1),2,TRUE)","v":1}]
[{"$f":"'A. Population Info'!A102","v":1000336194},{"$f":"'A. Population Info'!G102","v":"OIL"},{"$f":"'A. Population Info'!H102","v":1},{"$f":"'A. Population Info'!I102","v":1900},{"$f":"'A. Population Info'!J102","v":0},{"$f":"'A. Population Info'!K102","v":0},{"$f":"VLOOKUP(B:B,OFFSET('B. PoF Adj Factor Scoring'!$E$5:$F$282,,MATCH(G$4,'B. PoF Adj Factor Scoring'!$E$3:$N$3,0)-1),2,TRUE)","v":1},{"$f":"VLOOKUP(C:C,OFFSET('B. PoF Adj Factor Scoring'!$E$5:$F$282,,MATCH(H$4,'B. PoF Adj Factor Scoring'!$E$3:$N$3,0)-1),2,TRUE)","v":1},{"$f":"VLOOKUP(D:D,OFFSET('B. PoF Adj Factor Scoring'!$E$5:$F$282,,MATCH(I$4,'B. PoF Adj Factor Scoring'!$E$3:$N$3,0)-1),2,TRUE)","v":2},{"$f":"VLOOKUP(E:E,OFFSET('B. PoF Adj Factor Scoring'!$E$5:$F$282,,MATCH(J$4,'B. PoF Adj Factor Scoring'!$E$3:$N$3,0)-1),2,TRUE)","v":1},{"$f":"VLOOKUP(F:F,OFFSET('B. PoF Adj Factor Scoring'!$E$5:$F$282,,MATCH(K$4,'B. PoF Adj Factor Scoring'!$E$3:$N$3,0)-1),2,TRUE)","v":1}]
[{"$f":"'A. Population Info'!A103","v":1000336225},{"$f":"'A. Population Info'!G103","v":"OIL"},{"$f":"'A. Population Info'!H103","v":2},{"$f":"'A. Population Info'!I103","v":1900},{"$f":"'A. Population Info'!J103","v":0},{"$f":"'A. Population Info'!K103","v":0},{"$f":"VLOOKUP(B:B,OFFSET('B. PoF Adj Factor Scoring'!$E$5:$F$282,,MATCH(G$4,'B. PoF Adj Factor Scoring'!$E$3:$N$3,0)-1),2,TRUE)","v":1},{"$f":"VLOOKUP(C:C,OFFSET('B. PoF Adj Factor Scoring'!$E$5:$F$282,,MATCH(H$4,'B. PoF Adj Factor Scoring'!$E$3:$N$3,0)-1),2,TRUE)","v":2},{"$f":"VLOOKUP(D:D,OFFSET('B. PoF Adj Factor Scoring'!$E$5:$F$282,,MATCH(I$4,'B. PoF Adj Factor Scoring'!$E$3:$N$3,0)-1),2,TRUE)","v":2},{"$f":"VLOOKUP(E:E,OFFSET('B. PoF Adj Factor Scoring'!$E$5:$F$282,,MATCH(J$4,'B. PoF Adj Factor Scoring'!$E$3:$N$3,0)-1),2,TRUE)","v":1},{"$f":"VLOOKUP(F:F,OFFSET('B. PoF Adj Factor Scoring'!$E$5:$F$282,,MATCH(K$4,'B. PoF Adj Factor Scoring'!$E$3:$N$3,0)-1),2,TRUE)","v":1}]
[{"$f":"'A. Population Info'!A104","v":1000336313},{"$f":"'A. Population Info'!G104","v":"OIL"},{"$f":"'A. Population Info'!H104","v":1},{"$f":"'A. Population Info'!I104","v":0},{"$f":"'A. Population Info'!J104","v":0},{"$f":"'A. Population Info'!K104","v":0},{"$f":"VLOOKUP(B:B,OFFSET('B. PoF Adj Factor Scoring'!$E$5:$F$282,,MATCH(G$4,'B. PoF Adj Factor Scoring'!$E$3:$N$3,0)-1),2,TRUE)","v":1},{"$f":"VLOOKUP(C:C,OFFSET('B. PoF Adj Factor Scoring'!$E$5:$F$282,,MATCH(H$4,'B. PoF Adj Factor Scoring'!$E$3:$N$3,0)-1),2,TRUE)","v":1},{"$f":"VLOOKUP(D:D,OFFSET('B. PoF Adj Factor Scoring'!$E$5:$F$282,,MATCH(I$4,'B. PoF Adj Factor Scoring'!$E$3:$N$3,0)-1),2,TRUE)","v":1},{"$f":"VLOOKUP(E:E,OFFSET('B. PoF Adj Factor Scoring'!$E$5:$F$282,,MATCH(J$4,'B. PoF Adj Factor Scoring'!$E$3:$N$3,0)-1),2,TRUE)","v":1},{"$f":"VLOOKUP(F:F,OFFSET('B. PoF Adj Factor Scoring'!$E$5:$F$282,,MATCH(K$4,'B. PoF Adj Factor Scoring'!$E$3:$N$3,0)-1),2,TRUE)","v":1}]
[{"$f":"'A. Population Info'!A105","v":1000336348},{"$f":"'A. Population Info'!G105","v":"OIL"},{"$f":"'A. Population Info'!H105","v":1},{"$f":"'A. Population Info'!I105","v":0},{"$f":"'A. Population Info'!J105","v":0},{"$f":"'A. Population Info'!K105","v":0},{"$f":"VLOOKUP(B:B,OFFSET('B. PoF Adj Factor Scoring'!$E$5:$F$282,,MATCH(G$4,'B. PoF Adj Factor Scoring'!$E$3:$N$3,0)-1),2,TRUE)","v":1},{"$f":"VLOOKUP(C:C,OFFSET('B. PoF Adj Factor Scoring'!$E$5:$F$282,,MATCH(H$4,'B. PoF Adj Factor Scoring'!$E$3:$N$3,0)-1),2,TRUE)","v":1},{"$f":"VLOOKUP(D:D,OFFSET('B. PoF Adj Factor Scoring'!$E$5:$F$282,,MATCH(I$4,'B. PoF Adj Factor Scoring'!$E$3:$N$3,0)-1),2,TRUE)","v":1},{"$f":"VLOOKUP(E:E,OFFSET('B. PoF Adj Factor Scoring'!$E$5:$F$282,,MATCH(J$4,'B. PoF Adj Factor Scoring'!$E$3:$N$3,0)-1),2,TRUE)","v":1},{"$f":"VLOOKUP(F:F,OFFSET('B. PoF Adj Factor Scoring'!$E$5:$F$282,,MATCH(K$4,'B. PoF Adj Factor Scoring'!$E$3:$N$3,0)-1),2,TRUE)","v":1}]
[{"$f":"'A. Population Info'!A106","v":1000336383},{"$f":"'A. Population Info'!G106","v":"OIL"},{"$f":"'A. Population Info'!H106","v":2},{"$f":"'A. Population Info'!I106","v":0},{"$f":"'A. Population Info'!J106","v":0},{"$f":"'A. Population Info'!K106","v":0},{"$f":"VLOOKUP(B:B,OFFSET('B. PoF Adj Factor Scoring'!$E$5:$F$282,,MATCH(G$4,'B. PoF Adj Factor Scoring'!$E$3:$N$3,0)-1),2,TRUE)","v":1},{"$f":"VLOOKUP(C:C,OFFSET('B. PoF Adj Factor Scoring'!$E$5:$F$282,,MATCH(H$4,'B. PoF Adj Factor Scoring'!$E$3:$N$3,0)-1),2,TRUE)","v":2},{"$f":"VLOOKUP(D:D,OFFSET('B. PoF Adj Factor Scoring'!$E$5:$F$282,,MATCH(I$4,'B. PoF Adj Factor Scoring'!$E$3:$N$3,0)-1),2,TRUE)","v":1},{"$f":"VLOOKUP(E:E,OFFSET('B. PoF Adj Factor Scoring'!$E$5:$F$282,,MATCH(J$4,'B. PoF Adj Factor Scoring'!$E$3:$N$3,0)-1),2,TRUE)","v":1},{"$f":"VLOOKUP(F:F,OFFSET('B. PoF Adj Factor Scoring'!$E$5:$F$282,,MATCH(K$4,'B. PoF Adj Factor Scoring'!$E$3:$N$3,0)-1),2,TRUE)","v":1}]
[{"$f":"'A. Population Info'!A107","v":1000336450},{"$f":"'A. Population Info'!G107","v":"OIL"},{"$f":"'A. Population Info'!H107","v":2},{"$f":"'A. Population Info'!I107","v":0},{"$f":"'A. Population Info'!J107","v":0},{"$f":"'A. Population Info'!K107","v":0},{"$f":"VLOOKUP(B:B,OFFSET('B. PoF Adj Factor Scoring'!$E$5:$F$282,,MATCH(G$4,'B. PoF Adj Factor Scoring'!$E$3:$N$3,0)-1),2,TRUE)","v":1},{"$f":"VLOOKUP(C:C,OFFSET('B. PoF Adj Factor Scoring'!$E$5:$F$282,,MATCH(H$4,'B. PoF Adj Factor Scoring'!$E$3:$N$3,0)-1),2,TRUE)","v":2},{"$f":"VLOOKUP(D:D,OFFSET('B. PoF Adj Factor Scoring'!$E$5:$F$282,,MATCH(I$4,'B. PoF Adj Factor Scoring'!$E$3:$N$3,0)-1),2,TRUE)","v":1},{"$f":"VLOOKUP(E:E,OFFSET('B. PoF Adj Factor Scoring'!$E$5:$F$282,,MATCH(J$4,'B. PoF Adj Factor Scoring'!$E$3:$N$3,0)-1),2,TRUE)","v":1},{"$f":"VLOOKUP(F:F,OFFSET('B. PoF Adj Factor Scoring'!$E$5:$F$282,,MATCH(K$4,'B. PoF Adj Factor Scoring'!$E$3:$N$3,0)-1),2,TRUE)","v":1}]
[{"$f":"'A. Population Info'!A108","v":1000336477},{"$f":"'A. Population Info'!G108","v":"OIL"},{"$f":"'A. Population Info'!H108","v":1},{"$f":"'A. Population Info'!I108","v":0},{"$f":"'A. Population Info'!J108","v":0},{"$f":"'A. Population Info'!K108","v":0},{"$f":"VLOOKUP(B:B,OFFSET('B. PoF Adj Factor Scoring'!$E$5:$F$282,,MATCH(G$4,'B. PoF Adj Factor Scoring'!$E$3:$N$3,0)-1),2,TRUE)","v":1},{"$f":"VLOOKUP(C:C,OFFSET('B. PoF Adj Factor Scoring'!$E$5:$F$282,,MATCH(H$4,'B. PoF Adj Factor Scoring'!$E$3:$N$3,0)-1),2,TRUE)","v":1},{"$f":"VLOOKUP(D:D,OFFSET('B. PoF Adj Factor Scoring'!$E$5:$F$282,,MATCH(I$4,'B. PoF Adj Factor Scoring'!$E$3:$N$3,0)-1),2,TRUE)","v":1},{"$f":"VLOOKUP(E:E,OFFSET('B. PoF Adj Factor Scoring'!$E$5:$F$282,,MATCH(J$4,'B. PoF Adj Factor Scoring'!$E$3:$N$3,0)-1),2,TRUE)","v":1},{"$f":"VLOOKUP(F:F,OFFSET('B. PoF Adj Factor Scoring'!$E$5:$F$282,,MATCH(K$4,'B. PoF Adj Factor Scoring'!$E$3:$N$3,0)-1),2,TRUE)","v":1}]
[{"$f":"'A. Population Info'!A109","v":1000336508},{"$f":"'A. Population Info'!G109","v":"OIL"},{"$f":"'A. Population Info'!H109","v":1},{"$f":"'A. Population Info'!I109","v":0},{"$f":"'A. Population Info'!J109","v":0},{"$f":"'A. Population Info'!K109","v":0},{"$f":"VLOOKUP(B:B,OFFSET('B. PoF Adj Factor Scoring'!$E$5:$F$282,,MATCH(G$4,'B. PoF Adj Factor Scoring'!$E$3:$N$3,0)-1),2,TRUE)","v":1},{"$f":"VLOOKUP(C:C,OFFSET('B. PoF Adj Factor Scoring'!$E$5:$F$282,,MATCH(H$4,'B. PoF Adj Factor Scoring'!$E$3:$N$3,0)-1),2,TRUE)","v":1},{"$f":"VLOOKUP(D:D,OFFSET('B. PoF Adj Factor Scoring'!$E$5:$F$282,,MATCH(I$4,'B. PoF Adj Factor Scoring'!$E$3:$N$3,0)-1),2,TRUE)","v":1},{"$f":"VLOOKUP(E:E,OFFSET('B. PoF Adj Factor Scoring'!$E$5:$F$282,,MATCH(J$4,'B. PoF Adj Factor Scoring'!$E$3:$N$3,0)-1),2,TRUE)","v":1},{"$f":"VLOOKUP(F:F,OFFSET('B. PoF Adj Factor Scoring'!$E$5:$F$282,,MATCH(K$4,'B. PoF Adj Factor Scoring'!$E$3:$N$3,0)-1),2,TRUE)","v":1}]
[{"$f":"'A. Population Info'!A110","v":1000336536},{"$f":"'A. Population Info'!G110","v":"OIL"},{"$f":"'A. Population Info'!H110","v":1},{"$f":"'A. Population Info'!I110","v":500},{"$f":"'A. Population Info'!J110","v":0},{"$f":"'A. Population Info'!K110","v":0},{"$f":"VLOOKUP(B:B,OFFSET('B. PoF Adj Factor Scoring'!$E$5:$F$282,,MATCH(G$4,'B. PoF Adj Factor Scoring'!$E$3:$N$3,0)-1),2,TRUE)","v":1},{"$f":"VLOOKUP(C:C,OFFSET('B. PoF Adj Factor Scoring'!$E$5:$F$282,,MATCH(H$4,'B. PoF Adj Factor Scoring'!$E$3:$N$3,0)-1),2,TRUE)","v":1},{"$f":"VLOOKUP(D:D,OFFSET('B. PoF Adj Factor Scoring'!$E$5:$F$282,,MATCH(I$4,'B. PoF Adj Factor Scoring'!$E$3:$N$3,0)-1),2,TRUE)","v":1},{"$f":"VLOOKUP(E:E,OFFSET('B. PoF Adj Factor Scoring'!$E$5:$F$282,,MATCH(J$4,'B. PoF Adj Factor Scoring'!$E$3:$N$3,0)-1),2,TRUE)","v":1},{"$f":"VLOOKUP(F:F,OFFSET('B. PoF Adj Factor Scoring'!$E$5:$F$282,,MATCH(K$4,'B. PoF Adj Factor Scoring'!$E$3:$N$3,0)-1),2,TRUE)","v":1}]
[{"$f":"'A. Population Info'!A111","v":1000336594},{"$f":"'A. Population Info'!G111","v":"OIL"},{"$f":"'A. Population Info'!H111","v":1},{"$f":"'A. Population Info'!I111","v":0},{"$f":"'A. Population Info'!J111","v":0},{"$f":"'A. Population Info'!K111","v":0},{"$f":"VLOOKUP(B:B,OFFSET('B. PoF Adj Factor Scoring'!$E$5:$F$282,,MATCH(G$4,'B. PoF Adj Factor Scoring'!$E$3:$N$3,0)-1),2,TRUE)","v":1},{"$f":"VLOOKUP(C:C,OFFSET('B. PoF Adj Factor Scoring'!$E$5:$F$282,,MATCH(H$4,'B. PoF Adj Factor Scoring'!$E$3:$N$3,0)-1),2,TRUE)","v":1},{"$f":"VLOOKUP(D:D,OFFSET('B. PoF Adj Factor Scoring'!$E$5:$F$282,,MATCH(I$4,'B. PoF Adj Factor Scoring'!$E$3:$N$3,0)-1),2,TRUE)","v":1},{"$f":"VLOOKUP(E:E,OFFSET('B. PoF Adj Factor Scoring'!$E$5:$F$282,,MATCH(J$4,'B. PoF Adj Factor Scoring'!$E$3:$N$3,0)-1),2,TRUE)","v":1},{"$f":"VLOOKUP(F:F,OFFSET('B. PoF Adj Factor Scoring'!$E$5:$F$282,,MATCH(K$4,'B. PoF Adj Factor Scoring'!$E$3:$N$3,0)-1),2,TRUE)","v":1}]
[{"$f":"'A. Population Info'!A112","v":1000336623},{"$f":"'A. Population Info'!G112","v":"OIL"},{"$f":"'A. Population Info'!H112","v":1},{"$f":"'A. Population Info'!I112","v":0},{"$f":"'A. Population Info'!J112","v":0},{"$f":"'A. Population Info'!K112","v":0},{"$f":"VLOOKUP(B:B,OFFSET('B. PoF Adj Factor Scoring'!$E$5:$F$282,,MATCH(G$4,'B. PoF Adj Factor Scoring'!$E$3:$N$3,0)-1),2,TRUE)","v":1},{"$f":"VLOOKUP(C:C,OFFSET('B. PoF Adj Factor Scoring'!$E$5:$F$282,,MATCH(H$4,'B. PoF Adj Factor Scoring'!$E$3:$N$3,0)-1),2,TRUE)","v":1},{"$f":"VLOOKUP(D:D,OFFSET('B. PoF Adj Factor Scoring'!$E$5:$F$282,,MATCH(I$4,'B. PoF Adj Factor Scoring'!$E$3:$N$3,0)-1),2,TRUE)","v":1},{"$f":"VLOOKUP(E:E,OFFSET('B. PoF Adj Factor Scoring'!$E$5:$F$282,,MATCH(J$4,'B. PoF Adj Factor Scoring'!$E$3:$N$3,0)-1),2,TRUE)","v":1},{"$f":"VLOOKUP(F:F,OFFSET('B. PoF Adj Factor Scoring'!$E$5:$F$282,,MATCH(K$4,'B. PoF Adj Factor Scoring'!$E$3:$N$3,0)-1),2,TRUE)","v":1}]
[{"$f":"'A. Population Info'!A113","v":1000336651},{"$f":"'A. Population Info'!G113","v":"OIL"},{"$f":"'A. Population Info'!H113","v":2},{"$f":"'A. Population Info'!I113","v":0},{"$f":"'A. Population Info'!J113","v":0},{"$f":"'A. Population Info'!K113","v":0},{"$f":"VLOOKUP(B:B,OFFSET('B. PoF Adj Factor Scoring'!$E$5:$F$282,,MATCH(G$4,'B. PoF Adj Factor Scoring'!$E$3:$N$3,0)-1),2,TRUE)","v":1},{"$f":"VLOOKUP(C:C,OFFSET('B. PoF Adj Factor Scoring'!$E$5:$F$282,,MATCH(H$4,'B. PoF Adj Factor Scoring'!$E$3:$N$3,0)-1),2,TRUE)","v":2},{"$f":"VLOOKUP(D:D,OFFSET('B. PoF Adj Factor Scoring'!$E$5:$F$282,,MATCH(I$4,'B. PoF Adj Factor Scoring'!$E$3:$N$3,0)-1),2,TRUE)","v":1},{"$f":"VLOOKUP(E:E,OFFSET('B. PoF Adj Factor Scoring'!$E$5:$F$282,,MATCH(J$4,'B. PoF Adj Factor Scoring'!$E$3:$N$3,0)-1),2,TRUE)","v":1},{"$f":"VLOOKUP(F:F,OFFSET('B. PoF Adj Factor Scoring'!$E$5:$F$282,,MATCH(K$4,'B. PoF Adj Factor Scoring'!$E$3:$N$3,0)-1),2,TRUE)","v":1}]
[{"$f":"'A. Population Info'!A114","v":1000336679},{"$f":"'A. Population Info'!G114","v":"OIL"},{"$f":"'A. Population Info'!H114","v":1},{"$f":"'A. Population Info'!I114","v":0},{"$f":"'A. Population Info'!J114","v":0},{"$f":"'A. Population Info'!K114","v":0},{"$f":"VLOOKUP(B:B,OFFSET('B. PoF Adj Factor Scoring'!$E$5:$F$282,,MATCH(G$4,'B. PoF Adj Factor Scoring'!$E$3:$N$3,0)-1),2,TRUE)","v":1},{"$f":"VLOOKUP(C:C,OFFSET('B. PoF Adj Factor Scoring'!$E$5:$F$282,,MATCH(H$4,'B. PoF Adj Factor Scoring'!$E$3:$N$3,0)-1),2,TRUE)","v":1},{"$f":"VLOOKUP(D:D,OFFSET('B. PoF Adj Factor Scoring'!$E$5:$F$282,,MATCH(I$4,'B. PoF Adj Factor Scoring'!$E$3:$N$3,0)-1),2,TRUE)","v":1},{"$f":"VLOOKUP(E:E,OFFSET('B. PoF Adj Factor Scoring'!$E$5:$F$282,,MATCH(J$4,'B. PoF Adj Factor Scoring'!$E$3:$N$3,0)-1),2,TRUE)","v":1},{"$f":"VLOOKUP(F:F,OFFSET('B. PoF Adj Factor Scoring'!$E$5:$F$282,,MATCH(K$4,'B. PoF Adj Factor Scoring'!$E$3:$N$3,0)-1),2,TRUE)","v":1}]
[{"$f":"'A. Population Info'!A115","v":1000336708},{"$f":"'A. Population Info'!G115","v":"OIL"},{"$f":"'A. Population Info'!H115","v":1},{"$f":"'A. Population Info'!I115","v":0},{"$f":"'A. Population Info'!J115","v":0},{"$f":"'A. Population Info'!K115","v":0},{"$f":"VLOOKUP(B:B,OFFSET('B. PoF Adj Factor Scoring'!$E$5:$F$282,,MATCH(G$4,'B. PoF Adj Factor Scoring'!$E$3:$N$3,0)-1),2,TRUE)","v":1},{"$f":"VLOOKUP(C:C,OFFSET('B. PoF Adj Factor Scoring'!$E$5:$F$282,,MATCH(H$4,'B. PoF Adj Factor Scoring'!$E$3:$N$3,0)-1),2,TRUE)","v":1},{"$f":"VLOOKUP(D:D,OFFSET('B. PoF Adj Factor Scoring'!$E$5:$F$282,,MATCH(I$4,'B. PoF Adj Factor Scoring'!$E$3:$N$3,0)-1),2,TRUE)","v":1},{"$f":"VLOOKUP(E:E,OFFSET('B. PoF Adj Factor Scoring'!$E$5:$F$282,,MATCH(J$4,'B. PoF Adj Factor Scoring'!$E$3:$N$3,0)-1),2,TRUE)","v":1},{"$f":"VLOOKUP(F:F,OFFSET('B. PoF Adj Factor Scoring'!$E$5:$F$282,,MATCH(K$4,'B. PoF Adj Factor Scoring'!$E$3:$N$3,0)-1),2,TRUE)","v":1}]
[{"$f":"'A. Population Info'!A116","v":1000336737},{"$f":"'A. Population Info'!G116","v":"OIL"},{"$f":"'A. Population Info'!H116","v":1},{"$f":"'A. Population Info'!I116","v":0},{"$f":"'A. Population Info'!J116","v":0},{"$f":"'A. Population Info'!K116","v":0},{"$f":"VLOOKUP(B:B,OFFSET('B. PoF Adj Factor Scoring'!$E$5:$F$282,,MATCH(G$4,'B. PoF Adj Factor Scoring'!$E$3:$N$3,0)-1),2,TRUE)","v":1},{"$f":"VLOOKUP(C:C,OFFSET('B. PoF Adj Factor Scoring'!$E$5:$F$282,,MATCH(H$4,'B. PoF Adj Factor Scoring'!$E$3:$N$3,0)-1),2,TRUE)","v":1},{"$f":"VLOOKUP(D:D,OFFSET('B. PoF Adj Factor Scoring'!$E$5:$F$282,,MATCH(I$4,'B. PoF Adj Factor Scoring'!$E$3:$N$3,0)-1),2,TRUE)","v":1},{"$f":"VLOOKUP(E:E,OFFSET('B. PoF Adj Factor Scoring'!$E$5:$F$282,,MATCH(J$4,'B. PoF Adj Factor Scoring'!$E$3:$N$3,0)-1),2,TRUE)","v":1},{"$f":"VLOOKUP(F:F,OFFSET('B. PoF Adj Factor Scoring'!$E$5:$F$282,,MATCH(K$4,'B. PoF Adj Factor Scoring'!$E$3:$N$3,0)-1),2,TRUE)","v":1}]
[{"$f":"'A. Population Info'!A117","v":1000336855},{"$f":"'A. Population Info'!G117","v":"OIL"},{"$f":"'A. Population Info'!H117","v":1},{"$f":"'A. Population Info'!I117","v":0},{"$f":"'A. Population Info'!J117","v":0},{"$f":"'A. Population Info'!K117","v":0},{"$f":"VLOOKUP(B:B,OFFSET('B. PoF Adj Factor Scoring'!$E$5:$F$282,,MATCH(G$4,'B. PoF Adj Factor Scoring'!$E$3:$N$3,0)-1),2,TRUE)","v":1},{"$f":"VLOOKUP(C:C,OFFSET('B. PoF Adj Factor Scoring'!$E$5:$F$282,,MATCH(H$4,'B. PoF Adj Factor Scoring'!$E$3:$N$3,0)-1),2,TRUE)","v":1},{"$f":"VLOOKUP(D:D,OFFSET('B. PoF Adj Factor Scoring'!$E$5:$F$282,,MATCH(I$4,'B. PoF Adj Factor Scoring'!$E$3:$N$3,0)-1),2,TRUE)","v":1},{"$f":"VLOOKUP(E:E,OFFSET('B. PoF Adj Factor Scoring'!$E$5:$F$282,,MATCH(J$4,'B. PoF Adj Factor Scoring'!$E$3:$N$3,0)-1),2,TRUE)","v":1},{"$f":"VLOOKUP(F:F,OFFSET('B. PoF Adj Factor Scoring'!$E$5:$F$282,,MATCH(K$4,'B. PoF Adj Factor Scoring'!$E$3:$N$3,0)-1),2,TRUE)","v":1}]
[{"$f":"'A. Population Info'!A118","v":1000336884},{"$f":"'A. Population Info'!G118","v":"OIL"},{"$f":"'A. Population Info'!H118","v":1},{"$f":"'A. Population Info'!I118","v":0},{"$f":"'A. Population Info'!J118","v":0},{"$f":"'A. Population Info'!K118","v":0},{"$f":"VLOOKUP(B:B,OFFSET('B. PoF Adj Factor Scoring'!$E$5:$F$282,,MATCH(G$4,'B. PoF Adj Factor Scoring'!$E$3:$N$3,0)-1),2,TRUE)","v":1},{"$f":"VLOOKUP(C:C,OFFSET('B. PoF Adj Factor Scoring'!$E$5:$F$282,,MATCH(H$4,'B. PoF Adj Factor Scoring'!$E$3:$N$3,0)-1),2,TRUE)","v":1},{"$f":"VLOOKUP(D:D,OFFSET('B. PoF Adj Factor Scoring'!$E$5:$F$282,,MATCH(I$4,'B. PoF Adj Factor Scoring'!$E$3:$N$3,0)-1),2,TRUE)","v":1},{"$f":"VLOOKUP(E:E,OFFSET('B. PoF Adj Factor Scoring'!$E$5:$F$282,,MATCH(J$4,'B. PoF Adj Factor Scoring'!$E$3:$N$3,0)-1),2,TRUE)","v":1},{"$f":"VLOOKUP(F:F,OFFSET('B. PoF Adj Factor Scoring'!$E$5:$F$282,,MATCH(K$4,'B. PoF Adj Factor Scoring'!$E$3:$N$3,0)-1),2,TRUE)","v":1}]
[{"$f":"'A. Population Info'!A119","v":1000336912},{"$f":"'A. Population Info'!G119","v":"OIL"},{"$f":"'A. Population Info'!H119","v":1},{"$f":"'A. Population Info'!I119","v":1400},{"$f":"'A. Population Info'!J119","v":0},{"$f":"'A. Population Info'!K119","v":0},{"$f":"VLOOKUP(B:B,OFFSET('B. PoF Adj Factor Scoring'!$E$5:$F$282,,MATCH(G$4,'B. PoF Adj Factor Scoring'!$E$3:$N$3,0)-1),2,TRUE)","v":1},{"$f":"VLOOKUP(C:C,OFFSET('B. PoF Adj Factor Scoring'!$E$5:$F$282,,MATCH(H$4,'B. PoF Adj Factor Scoring'!$E$3:$N$3,0)-1),2,TRUE)","v":1},{"$f":"VLOOKUP(D:D,OFFSET('B. PoF Adj Factor Scoring'!$E$5:$F$282,,MATCH(I$4,'B. PoF Adj Factor Scoring'!$E$3:$N$3,0)-1),2,TRUE)","v":2},{"$f":"VLOOKUP(E:E,OFFSET('B. PoF Adj Factor Scoring'!$E$5:$F$282,,MATCH(J$4,'B. PoF Adj Factor Scoring'!$E$3:$N$3,0)-1),2,TRUE)","v":1},{"$f":"VLOOKUP(F:F,OFFSET('B. PoF Adj Factor Scoring'!$E$5:$F$282,,MATCH(K$4,'B. PoF Adj Factor Scoring'!$E$3:$N$3,0)-1),2,TRUE)","v":1}]
[{"$f":"'A. Population Info'!A120","v":1000336942},{"$f":"'A. Population Info'!G120","v":"OIL"},{"$f":"'A. Population Info'!H120","v":2},{"$f":"'A. Population Info'!I120","v":0},{"$f":"'A. Population Info'!J120","v":0},{"$f":"'A. Population Info'!K120","v":0},{"$f":"VLOOKUP(B:B,OFFSET('B. PoF Adj Factor Scoring'!$E$5:$F$282,,MATCH(G$4,'B. PoF Adj Factor Scoring'!$E$3:$N$3,0)-1),2,TRUE)","v":1},{"$f":"VLOOKUP(C:C,OFFSET('B. PoF Adj Factor Scoring'!$E$5:$F$282,,MATCH(H$4,'B. PoF Adj Factor Scoring'!$E$3:$N$3,0)-1),2,TRUE)","v":2},{"$f":"VLOOKUP(D:D,OFFSET('B. PoF Adj Factor Scoring'!$E$5:$F$282,,MATCH(I$4,'B. PoF Adj Factor Scoring'!$E$3:$N$3,0)-1),2,TRUE)","v":1},{"$f":"VLOOKUP(E:E,OFFSET('B. PoF Adj Factor Scoring'!$E$5:$F$282,,MATCH(J$4,'B. PoF Adj Factor Scoring'!$E$3:$N$3,0)-1),2,TRUE)","v":1},{"$f":"VLOOKUP(F:F,OFFSET('B. PoF Adj Factor Scoring'!$E$5:$F$282,,MATCH(K$4,'B. PoF Adj Factor Scoring'!$E$3:$N$3,0)-1),2,TRUE)","v":1}]
[{"$f":"'A. Population Info'!A121","v":1000336972},{"$f":"'A. Population Info'!G121","v":"OIL"},{"$f":"'A. Population Info'!H121","v":1},{"$f":"'A. Population Info'!I121","v":1800},{"$f":"'A. Population Info'!J121","v":0},{"$f":"'A. Population Info'!K121","v":0},{"$f":"VLOOKUP(B:B,OFFSET('B. PoF Adj Factor Scoring'!$E$5:$F$282,,MATCH(G$4,'B. PoF Adj Factor Scoring'!$E$3:$N$3,0)-1),2,TRUE)","v":1},{"$f":"VLOOKUP(C:C,OFFSET('B. PoF Adj Factor Scoring'!$E$5:$F$282,,MATCH(H$4,'B. PoF Adj Factor Scoring'!$E$3:$N$3,0)-1),2,TRUE)","v":1},{"$f":"VLOOKUP(D:D,OFFSET('B. PoF Adj Factor Scoring'!$E$5:$F$282,,MATCH(I$4,'B. PoF Adj Factor Scoring'!$E$3:$N$3,0)-1),2,TRUE)","v":2},{"$f":"VLOOKUP(E:E,OFFSET('B. PoF Adj Factor Scoring'!$E$5:$F$282,,MATCH(J$4,'B. PoF Adj Factor Scoring'!$E$3:$N$3,0)-1),2,TRUE)","v":1},{"$f":"VLOOKUP(F:F,OFFSET('B. PoF Adj Factor Scoring'!$E$5:$F$282,,MATCH(K$4,'B. PoF Adj Factor Scoring'!$E$3:$N$3,0)-1),2,TRUE)","v":1}]
[{"$f":"'A. Population Info'!A122","v":1000340000},{"$f":"'A. Population Info'!G122","v":"OIL"},{"$f":"'A. Population Info'!H122","v":1},{"$f":"'A. Population Info'!I122","v":0},{"$f":"'A. Population Info'!J122","v":0},{"$f":"'A. Population Info'!K122","v":0},{"$f":"VLOOKUP(B:B,OFFSET('B. PoF Adj Factor Scoring'!$E$5:$F$282,,MATCH(G$4,'B. PoF Adj Factor Scoring'!$E$3:$N$3,0)-1),2,TRUE)","v":1},{"$f":"VLOOKUP(C:C,OFFSET('B. PoF Adj Factor Scoring'!$E$5:$F$282,,MATCH(H$4,'B. PoF Adj Factor Scoring'!$E$3:$N$3,0)-1),2,TRUE)","v":1},{"$f":"VLOOKUP(D:D,OFFSET('B. PoF Adj Factor Scoring'!$E$5:$F$282,,MATCH(I$4,'B. PoF Adj Factor Scoring'!$E$3:$N$3,0)-1),2,TRUE)","v":1},{"$f":"VLOOKUP(E:E,OFFSET('B. PoF Adj Factor Scoring'!$E$5:$F$282,,MATCH(J$4,'B. PoF Adj Factor Scoring'!$E$3:$N$3,0)-1),2,TRUE)","v":1},{"$f":"VLOOKUP(F:F,OFFSET('B. PoF Adj Factor Scoring'!$E$5:$F$282,,MATCH(K$4,'B. PoF Adj Factor Scoring'!$E$3:$N$3,0)-1),2,TRUE)","v":1}]
[{"$f":"'A. Population Info'!A123","v":1000340030},{"$f":"'A. Population Info'!G123","v":"OIL"},{"$f":"'A. Population Info'!H123","v":1},{"$f":"'A. Population Info'!I123","v":0},{"$f":"'A. Population Info'!J123","v":0},{"$f":"'A. Population Info'!K123","v":0},{"$f":"VLOOKUP(B:B,OFFSET('B. PoF Adj Factor Scoring'!$E$5:$F$282,,MATCH(G$4,'B. PoF Adj Factor Scoring'!$E$3:$N$3,0)-1),2,TRUE)","v":1},{"$f":"VLOOKUP(C:C,OFFSET('B. PoF Adj Factor Scoring'!$E$5:$F$282,,MATCH(H$4,'B. PoF Adj Factor Scoring'!$E$3:$N$3,0)-1),2,TRUE)","v":1},{"$f":"VLOOKUP(D:D,OFFSET('B. PoF Adj Factor Scoring'!$E$5:$F$282,,MATCH(I$4,'B. PoF Adj Factor Scoring'!$E$3:$N$3,0)-1),2,TRUE)","v":1},{"$f":"VLOOKUP(E:E,OFFSET('B. PoF Adj Factor Scoring'!$E$5:$F$282,,MATCH(J$4,'B. PoF Adj Factor Scoring'!$E$3:$N$3,0)-1),2,TRUE)","v":1},{"$f":"VLOOKUP(F:F,OFFSET('B. PoF Adj Factor Scoring'!$E$5:$F$282,,MATCH(K$4,'B. PoF Adj Factor Scoring'!$E$3:$N$3,0)-1),2,TRUE)","v":1}]
[{"$f":"'A. Population Info'!A124","v":1000340058},{"$f":"'A. Population Info'!G124","v":"OIL"},{"$f":"'A. Population Info'!H124","v":1},{"$f":"'A. Population Info'!I124","v":0},{"$f":"'A. Population Info'!J124","v":0},{"$f":"'A. Population Info'!K124","v":0},{"$f":"VLOOKUP(B:B,OFFSET('B. PoF Adj Factor Scoring'!$E$5:$F$282,,MATCH(G$4,'B. PoF Adj Factor Scoring'!$E$3:$N$3,0)-1),2,TRUE)","v":1},{"$f":"VLOOKUP(C:C,OFFSET('B. PoF Adj Factor Scoring'!$E$5:$F$282,,MATCH(H$4,'B. PoF Adj Factor Scoring'!$E$3:$N$3,0)-1),2,TRUE)","v":1},{"$f":"VLOOKUP(D:D,OFFSET('B. PoF Adj Factor Scoring'!$E$5:$F$282,,MATCH(I$4,'B. PoF Adj Factor Scoring'!$E$3:$N$3,0)-1),2,TRUE)","v":1},{"$f":"VLOOKUP(E:E,OFFSET('B. PoF Adj Factor Scoring'!$E$5:$F$282,,MATCH(J$4,'B. PoF Adj Factor Scoring'!$E$3:$N$3,0)-1),2,TRUE)","v":1},{"$f":"VLOOKUP(F:F,OFFSET('B. PoF Adj Factor Scoring'!$E$5:$F$282,,MATCH(K$4,'B. PoF Adj Factor Scoring'!$E$3:$N$3,0)-1),2,TRUE)","v":1}]
[{"$f":"'A. Population Info'!A125","v":1000340087},{"$f":"'A. Population Info'!G125","v":"OIL"},{"$f":"'A. Population Info'!H125","v":1},{"$f":"'A. Population Info'!I125","v":0},{"$f":"'A. Population Info'!J125","v":0},{"$f":"'A. Population Info'!K125","v":0},{"$f":"VLOOKUP(B:B,OFFSET('B. PoF Adj Factor Scoring'!$E$5:$F$282,,MATCH(G$4,'B. PoF Adj Factor Scoring'!$E$3:$N$3,0)-1),2,TRUE)","v":1},{"$f":"VLOOKUP(C:C,OFFSET('B. PoF Adj Factor Scoring'!$E$5:$F$282,,MATCH(H$4,'B. PoF Adj Factor Scoring'!$E$3:$N$3,0)-1),2,TRUE)","v":1},{"$f":"VLOOKUP(D:D,OFFSET('B. PoF Adj Factor Scoring'!$E$5:$F$282,,MATCH(I$4,'B. PoF Adj Factor Scoring'!$E$3:$N$3,0)-1),2,TRUE)","v":1},{"$f":"VLOOKUP(E:E,OFFSET('B. PoF Adj Factor Scoring'!$E$5:$F$282,,MATCH(J$4,'B. PoF Adj Factor Scoring'!$E$3:$N$3,0)-1),2,TRUE)","v":1},{"$f":"VLOOKUP(F:F,OFFSET('B. PoF Adj Factor Scoring'!$E$5:$F$282,,MATCH(K$4,'B. PoF Adj Factor Scoring'!$E$3:$N$3,0)-1),2,TRUE)","v":1}]
[{"$f":"'A. Population Info'!A126","v":1000340114},{"$f":"'A. Population Info'!G126","v":"OIL"},{"$f":"'A. Population Info'!H126","v":1},{"$f":"'A. Population Info'!I126","v":0},{"$f":"'A. Population Info'!J126","v":0},{"$f":"'A. Population Info'!K126","v":0},{"$f":"VLOOKUP(B:B,OFFSET('B. PoF Adj Factor Scoring'!$E$5:$F$282,,MATCH(G$4,'B. PoF Adj Factor Scoring'!$E$3:$N$3,0)-1),2,TRUE)","v":1},{"$f":"VLOOKUP(C:C,OFFSET('B. PoF Adj Factor Scoring'!$E$5:$F$282,,MATCH(H$4,'B. PoF Adj Factor Scoring'!$E$3:$N$3,0)-1),2,TRUE)","v":1},{"$f":"VLOOKUP(D:D,OFFSET('B. PoF Adj Factor Scoring'!$E$5:$F$282,,MATCH(I$4,'B. PoF Adj Factor Scoring'!$E$3:$N$3,0)-1),2,TRUE)","v":1},{"$f":"VLOOKUP(E:E,OFFSET('B. PoF Adj Factor Scoring'!$E$5:$F$282,,MATCH(J$4,'B. PoF Adj Factor Scoring'!$E$3:$N$3,0)-1),2,TRUE)","v":1},{"$f":"VLOOKUP(F:F,OFFSET('B. PoF Adj Factor Scoring'!$E$5:$F$282,,MATCH(K$4,'B. PoF Adj Factor Scoring'!$E$3:$N$3,0)-1),2,TRUE)","v":1}]
[{"$f":"'A. Population Info'!A127","v":1000340144},{"$f":"'A. Population Info'!G127","v":"OIL"},{"$f":"'A. Population Info'!H127","v":1},{"$f":"'A. Population Info'!I127","v":600},{"$f":"'A. Population Info'!J127","v":0},{"$f":"'A. Population Info'!K127","v":0},{"$f":"VLOOKUP(B:B,OFFSET('B. PoF Adj Factor Scoring'!$E$5:$F$282,,MATCH(G$4,'B. PoF Adj Factor Scoring'!$E$3:$N$3,0)-1),2,TRUE)","v":1},{"$f":"VLOOKUP(C:C,OFFSET('B. PoF Adj Factor Scoring'!$E$5:$F$282,,MATCH(H$4,'B. PoF Adj Factor Scoring'!$E$3:$N$3,0)-1),2,TRUE)","v":1},{"$f":"VLOOKUP(D:D,OFFSET('B. PoF Adj Factor Scoring'!$E$5:$F$282,,MATCH(I$4,'B. PoF Adj Factor Scoring'!$E$3:$N$3,0)-1),2,TRUE)","v":1},{"$f":"VLOOKUP(E:E,OFFSET('B. PoF Adj Factor Scoring'!$E$5:$F$282,,MATCH(J$4,'B. PoF Adj Factor Scoring'!$E$3:$N$3,0)-1),2,TRUE)","v":1},{"$f":"VLOOKUP(F:F,OFFSET('B. PoF Adj Factor Scoring'!$E$5:$F$282,,MATCH(K$4,'B. PoF Adj Factor Scoring'!$E$3:$N$3,0)-1),2,TRUE)","v":1}]
[{"$f":"'A. Population Info'!A128","v":1000340385},{"$f":"'A. Population Info'!G128","v":"OIL"},{"$f":"'A. Population Info'!H128","v":3},{"$f":"'A. Population Info'!I128","v":500},{"$f":"'A. Population Info'!J128","v":0},{"$f":"'A. Population Info'!K128","v":0},{"$f":"VLOOKUP(B:B,OFFSET('B. PoF Adj Factor Scoring'!$E$5:$F$282,,MATCH(G$4,'B. PoF Adj Factor Scoring'!$E$3:$N$3,0)-1),2,TRUE)","v":1},{"$f":"VLOOKUP(C:C,OFFSET('B. PoF Adj Factor Scoring'!$E$5:$F$282,,MATCH(H$4,'B. PoF Adj Factor Scoring'!$E$3:$N$3,0)-1),2,TRUE)","v":3},{"$f":"VLOOKUP(D:D,OFFSET('B. PoF Adj Factor Scoring'!$E$5:$F$282,,MATCH(I$4,'B. PoF Adj Factor Scoring'!$E$3:$N$3,0)-1),2,TRUE)","v":1},{"$f":"VLOOKUP(E:E,OFFSET('B. PoF Adj Factor Scoring'!$E$5:$F$282,,MATCH(J$4,'B. PoF Adj Factor Scoring'!$E$3:$N$3,0)-1),2,TRUE)","v":1},{"$f":"VLOOKUP(F:F,OFFSET('B. PoF Adj Factor Scoring'!$E$5:$F$282,,MATCH(K$4,'B. PoF Adj Factor Scoring'!$E$3:$N$3,0)-1),2,TRUE)","v":1}]
[{"$f":"'A. Population Info'!A129","v":1000340415},{"$f":"'A. Population Info'!G129","v":"OIL"},{"$f":"'A. Population Info'!H129","v":4},{"$f":"'A. Population Info'!I129","v":0},{"$f":"'A. Population Info'!J129","v":0},{"$f":"'A. Population Info'!K129","v":0},{"$f":"VLOOKUP(B:B,OFFSET('B. PoF Adj Factor Scoring'!$E$5:$F$282,,MATCH(G$4,'B. PoF Adj Factor Scoring'!$E$3:$N$3,0)-1),2,TRUE)","v":1},{"$f":"VLOOKUP(C:C,OFFSET('B. PoF Adj Factor Scoring'!$E$5:$F$282,,MATCH(H$4,'B. PoF Adj Factor Scoring'!$E$3:$N$3,0)-1),2,TRUE)","v":4},{"$f":"VLOOKUP(D:D,OFFSET('B. PoF Adj Factor Scoring'!$E$5:$F$282,,MATCH(I$4,'B. PoF Adj Factor Scoring'!$E$3:$N$3,0)-1),2,TRUE)","v":1},{"$f":"VLOOKUP(E:E,OFFSET('B. PoF Adj Factor Scoring'!$E$5:$F$282,,MATCH(J$4,'B. PoF Adj Factor Scoring'!$E$3:$N$3,0)-1),2,TRUE)","v":1},{"$f":"VLOOKUP(F:F,OFFSET('B. PoF Adj Factor Scoring'!$E$5:$F$282,,MATCH(K$4,'B. PoF Adj Factor Scoring'!$E$3:$N$3,0)-1),2,TRUE)","v":1}]
[{"$f":"'A. Population Info'!A130","v":1000340445},{"$f":"'A. Population Info'!G130","v":"OIL"},{"$f":"'A. Population Info'!H130","v":3},{"$f":"'A. Population Info'!I130","v":1720},{"$f":"'A. Population Info'!J130","v":0},{"$f":"'A. Population Info'!K130","v":0},{"$f":"VLOOKUP(B:B,OFFSET('B. PoF Adj Factor Scoring'!$E$5:$F$282,,MATCH(G$4,'B. PoF Adj Factor Scoring'!$E$3:$N$3,0)-1),2,TRUE)","v":1},{"$f":"VLOOKUP(C:C,OFFSET('B. PoF Adj Factor Scoring'!$E$5:$F$282,,MATCH(H$4,'B. PoF Adj Factor Scoring'!$E$3:$N$3,0)-1),2,TRUE)","v":3},{"$f":"VLOOKUP(D:D,OFFSET('B. PoF Adj Factor Scoring'!$E$5:$F$282,,MATCH(I$4,'B. PoF Adj Factor Scoring'!$E$3:$N$3,0)-1),2,TRUE)","v":2},{"$f":"VLOOKUP(E:E,OFFSET('B. PoF Adj Factor Scoring'!$E$5:$F$282,,MATCH(J$4,'B. PoF Adj Factor Scoring'!$E$3:$N$3,0)-1),2,TRUE)","v":1},{"$f":"VLOOKUP(F:F,OFFSET('B. PoF Adj Factor Scoring'!$E$5:$F$282,,MATCH(K$4,'B. PoF Adj Factor Scoring'!$E$3:$N$3,0)-1),2,TRUE)","v":1}]
[{"$f":"'A. Population Info'!A131","v":1000340477},{"$f":"'A. Population Info'!G131","v":"OIL"},{"$f":"'A. Population Info'!H131","v":3},{"$f":"'A. Population Info'!I131","v":0},{"$f":"'A. Population Info'!J131","v":0},{"$f":"'A. Population Info'!K131","v":0},{"$f":"VLOOKUP(B:B,OFFSET('B. PoF Adj Factor Scoring'!$E$5:$F$282,,MATCH(G$4,'B. PoF Adj Factor Scoring'!$E$3:$N$3,0)-1),2,TRUE)","v":1},{"$f":"VLOOKUP(C:C,OFFSET('B. PoF Adj Factor Scoring'!$E$5:$F$282,,MATCH(H$4,'B. PoF Adj Factor Scoring'!$E$3:$N$3,0)-1),2,TRUE)","v":3},{"$f":"VLOOKUP(D:D,OFFSET('B. PoF Adj Factor Scoring'!$E$5:$F$282,,MATCH(I$4,'B. PoF Adj Factor Scoring'!$E$3:$N$3,0)-1),2,TRUE)","v":1},{"$f":"VLOOKUP(E:E,OFFSET('B. PoF Adj Factor Scoring'!$E$5:$F$282,,MATCH(J$4,'B. PoF Adj Factor Scoring'!$E$3:$N$3,0)-1),2,TRUE)","v":1},{"$f":"VLOOKUP(F:F,OFFSET('B. PoF Adj Factor Scoring'!$E$5:$F$282,,MATCH(K$4,'B. PoF Adj Factor Scoring'!$E$3:$N$3,0)-1),2,TRUE)","v":1}]
[{"$f":"'A. Population Info'!A132","v":1000340534},{"$f":"'A. Population Info'!G132","v":"OIL"},{"$f":"'A. Population Info'!H132","v":3},{"$f":"'A. Population Info'!I132","v":0},{"$f":"'A. Population Info'!J132","v":0},{"$f":"'A. Population Info'!K132","v":0},{"$f":"VLOOKUP(B:B,OFFSET('B. PoF Adj Factor Scoring'!$E$5:$F$282,,MATCH(G$4,'B. PoF Adj Factor Scoring'!$E$3:$N$3,0)-1),2,TRUE)","v":1},{"$f":"VLOOKUP(C:C,OFFSET('B. PoF Adj Factor Scoring'!$E$5:$F$282,,MATCH(H$4,'B. PoF Adj Factor Scoring'!$E$3:$N$3,0)-1),2,TRUE)","v":3},{"$f":"VLOOKUP(D:D,OFFSET('B. PoF Adj Factor Scoring'!$E$5:$F$282,,MATCH(I$4,'B. PoF Adj Factor Scoring'!$E$3:$N$3,0)-1),2,TRUE)","v":1},{"$f":"VLOOKUP(E:E,OFFSET('B. PoF Adj Factor Scoring'!$E$5:$F$282,,MATCH(J$4,'B. PoF Adj Factor Scoring'!$E$3:$N$3,0)-1),2,TRUE)","v":1},{"$f":"VLOOKUP(F:F,OFFSET('B. PoF Adj Factor Scoring'!$E$5:$F$282,,MATCH(K$4,'B. PoF Adj Factor Scoring'!$E$3:$N$3,0)-1),2,TRUE)","v":1}]
[{"$f":"'A. Population Info'!A133","v":1000340565},{"$f":"'A. Population Info'!G133","v":"OIL"},{"$f":"'A. Population Info'!H133","v":1},{"$f":"'A. Population Info'!I133","v":0},{"$f":"'A. Population Info'!J133","v":0},{"$f":"'A. Population Info'!K133","v":0},{"$f":"VLOOKUP(B:B,OFFSET('B. PoF Adj Factor Scoring'!$E$5:$F$282,,MATCH(G$4,'B. PoF Adj Factor Scoring'!$E$3:$N$3,0)-1),2,TRUE)","v":1},{"$f":"VLOOKUP(C:C,OFFSET('B. PoF Adj Factor Scoring'!$E$5:$F$282,,MATCH(H$4,'B. PoF Adj Factor Scoring'!$E$3:$N$3,0)-1),2,TRUE)","v":1},{"$f":"VLOOKUP(D:D,OFFSET('B. PoF Adj Factor Scoring'!$E$5:$F$282,,MATCH(I$4,'B. PoF Adj Factor Scoring'!$E$3:$N$3,0)-1),2,TRUE)","v":1},{"$f":"VLOOKUP(E:E,OFFSET('B. PoF Adj Factor Scoring'!$E$5:$F$282,,MATCH(J$4,'B. PoF Adj Factor Scoring'!$E$3:$N$3,0)-1),2,TRUE)","v":1},{"$f":"VLOOKUP(F:F,OFFSET('B. PoF Adj Factor Scoring'!$E$5:$F$282,,MATCH(K$4,'B. PoF Adj Factor Scoring'!$E$3:$N$3,0)-1),2,TRUE)","v":1}]
[{"$f":"'A. Population Info'!A134","v":1000340593},{"$f":"'A. Population Info'!G134","v":"OIL"},{"$f":"'A. Population Info'!H134","v":1},{"$f":"'A. Population Info'!I134","v":500},{"$f":"'A. Population Info'!J134","v":0},{"$f":"'A. Population Info'!K134","v":0},{"$f":"VLOOKUP(B:B,OFFSET('B. PoF Adj Factor Scoring'!$E$5:$F$282,,MATCH(G$4,'B. PoF Adj Factor Scoring'!$E$3:$N$3,0)-1),2,TRUE)","v":1},{"$f":"VLOOKUP(C:C,OFFSET('B. PoF Adj Factor Scoring'!$E$5:$F$282,,MATCH(H$4,'B. PoF Adj Factor Scoring'!$E$3:$N$3,0)-1),2,TRUE)","v":1},{"$f":"VLOOKUP(D:D,OFFSET('B. PoF Adj Factor Scoring'!$E$5:$F$282,,MATCH(I$4,'B. PoF Adj Factor Scoring'!$E$3:$N$3,0)-1),2,TRUE)","v":1},{"$f":"VLOOKUP(E:E,OFFSET('B. PoF Adj Factor Scoring'!$E$5:$F$282,,MATCH(J$4,'B. PoF Adj Factor Scoring'!$E$3:$N$3,0)-1),2,TRUE)","v":1},{"$f":"VLOOKUP(F:F,OFFSET('B. PoF Adj Factor Scoring'!$E$5:$F$282,,MATCH(K$4,'B. PoF Adj Factor Scoring'!$E$3:$N$3,0)-1),2,TRUE)","v":1}]
[{"$f":"'A. Population Info'!A135","v":1000340623},{"$f":"'A. Population Info'!G135","v":"OIL"},{"$f":"'A. Population Info'!H135","v":3},{"$f":"'A. Population Info'!I135","v":0},{"$f":"'A. Population Info'!J135","v":0},{"$f":"'A. Population Info'!K135","v":0},{"$f":"VLOOKUP(B:B,OFFSET('B. PoF Adj Factor Scoring'!$E$5:$F$282,,MATCH(G$4,'B. PoF Adj Factor Scoring'!$E$3:$N$3,0)-1),2,TRUE)","v":1},{"$f":"VLOOKUP(C:C,OFFSET('B. PoF Adj Factor Scoring'!$E$5:$F$282,,MATCH(H$4,'B. PoF Adj Factor Scoring'!$E$3:$N$3,0)-1),2,TRUE)","v":3},{"$f":"VLOOKUP(D:D,OFFSET('B. PoF Adj Factor Scoring'!$E$5:$F$282,,MATCH(I$4,'B. PoF Adj Factor Scoring'!$E$3:$N$3,0)-1),2,TRUE)","v":1},{"$f":"VLOOKUP(E:E,OFFSET('B. PoF Adj Factor Scoring'!$E$5:$F$282,,MATCH(J$4,'B. PoF Adj Factor Scoring'!$E$3:$N$3,0)-1),2,TRUE)","v":1},{"$f":"VLOOKUP(F:F,OFFSET('B. PoF Adj Factor Scoring'!$E$5:$F$282,,MATCH(K$4,'B. PoF Adj Factor Scoring'!$E$3:$N$3,0)-1),2,TRUE)","v":1}]
[{"$f":"'A. Population Info'!A136","v":1000340657},{"$f":"'A. Population Info'!G136","v":"OIL"},{"$f":"'A. Population Info'!H136","v":2},{"$f":"'A. Population Info'!I136","v":0},{"$f":"'A. Population Info'!J136","v":0},{"$f":"'A. Population Info'!K136","v":0},{"$f":"VLOOKUP(B:B,OFFSET('B. PoF Adj Factor Scoring'!$E$5:$F$282,,MATCH(G$4,'B. PoF Adj Factor Scoring'!$E$3:$N$3,0)-1),2,TRUE)","v":1},{"$f":"VLOOKUP(C:C,OFFSET('B. PoF Adj Factor Scoring'!$E$5:$F$282,,MATCH(H$4,'B. PoF Adj Factor Scoring'!$E$3:$N$3,0)-1),2,TRUE)","v":2},{"$f":"VLOOKUP(D:D,OFFSET('B. PoF Adj Factor Scoring'!$E$5:$F$282,,MATCH(I$4,'B. PoF Adj Factor Scoring'!$E$3:$N$3,0)-1),2,TRUE)","v":1},{"$f":"VLOOKUP(E:E,OFFSET('B. PoF Adj Factor Scoring'!$E$5:$F$282,,MATCH(J$4,'B. PoF Adj Factor Scoring'!$E$3:$N$3,0)-1),2,TRUE)","v":1},{"$f":"VLOOKUP(F:F,OFFSET('B. PoF Adj Factor Scoring'!$E$5:$F$282,,MATCH(K$4,'B. PoF Adj Factor Scoring'!$E$3:$N$3,0)-1),2,TRUE)","v":1}]
[{"$f":"'A. Population Info'!A137","v":1000340689},{"$f":"'A. Population Info'!G137","v":"OIL"},{"$f":"'A. Population Info'!H137","v":4},{"$f":"'A. Population Info'!I137","v":0},{"$f":"'A. Population Info'!J137","v":0},{"$f":"'A. Population Info'!K137","v":0},{"$f":"VLOOKUP(B:B,OFFSET('B. PoF Adj Factor Scoring'!$E$5:$F$282,,MATCH(G$4,'B. PoF Adj Factor Scoring'!$E$3:$N$3,0)-1),2,TRUE)","v":1},{"$f":"VLOOKUP(C:C,OFFSET('B. PoF Adj Factor Scoring'!$E$5:$F$282,,MATCH(H$4,'B. PoF Adj Factor Scoring'!$E$3:$N$3,0)-1),2,TRUE)","v":4},{"$f":"VLOOKUP(D:D,OFFSET('B. PoF Adj Factor Scoring'!$E$5:$F$282,,MATCH(I$4,'B. PoF Adj Factor Scoring'!$E$3:$N$3,0)-1),2,TRUE)","v":1},{"$f":"VLOOKUP(E:E,OFFSET('B. PoF Adj Factor Scoring'!$E$5:$F$282,,MATCH(J$4,'B. PoF Adj Factor Scoring'!$E$3:$N$3,0)-1),2,TRUE)","v":1},{"$f":"VLOOKUP(F:F,OFFSET('B. PoF Adj Factor Scoring'!$E$5:$F$282,,MATCH(K$4,'B. PoF Adj Factor Scoring'!$E$3:$N$3,0)-1),2,TRUE)","v":1}]
[{"$f":"'A. Population Info'!A138","v":1000340819},{"$f":"'A. Population Info'!G138","v":"OIL"},{"$f":"'A. Population Info'!H138","v":1},{"$f":"'A. Population Info'!I138","v":0},{"$f":"'A. Population Info'!J138","v":0},{"$f":"'A. Population Info'!K138","v":0},{"$f":"VLOOKUP(B:B,OFFSET('B. PoF Adj Factor Scoring'!$E$5:$F$282,,MATCH(G$4,'B. PoF Adj Factor Scoring'!$E$3:$N$3,0)-1),2,TRUE)","v":1},{"$f":"VLOOKUP(C:C,OFFSET('B. PoF Adj Factor Scoring'!$E$5:$F$282,,MATCH(H$4,'B. PoF Adj Factor Scoring'!$E$3:$N$3,0)-1),2,TRUE)","v":1},{"$f":"VLOOKUP(D:D,OFFSET('B. PoF Adj Factor Scoring'!$E$5:$F$282,,MATCH(I$4,'B. PoF Adj Factor Scoring'!$E$3:$N$3,0)-1),2,TRUE)","v":1},{"$f":"VLOOKUP(E:E,OFFSET('B. PoF Adj Factor Scoring'!$E$5:$F$282,,MATCH(J$4,'B. PoF Adj Factor Scoring'!$E$3:$N$3,0)-1),2,TRUE)","v":1},{"$f":"VLOOKUP(F:F,OFFSET('B. PoF Adj Factor Scoring'!$E$5:$F$282,,MATCH(K$4,'B. PoF Adj Factor Scoring'!$E$3:$N$3,0)-1),2,TRUE)","v":1}]
[{"$f":"'A. Population Info'!A139","v":1000340854},{"$f":"'A. Population Info'!G139","v":"OIL"},{"$f":"'A. Population Info'!H139","v":1},{"$f":"'A. Population Info'!I139","v":0},{"$f":"'A. Population Info'!J139","v":0},{"$f":"'A. Population Info'!K139","v":0},{"$f":"VLOOKUP(B:B,OFFSET('B. PoF Adj Factor Scoring'!$E$5:$F$282,,MATCH(G$4,'B. PoF Adj Factor Scoring'!$E$3:$N$3,0)-1),2,TRUE)","v":1},{"$f":"VLOOKUP(C:C,OFFSET('B. PoF Adj Factor Scoring'!$E$5:$F$282,,MATCH(H$4,'B. PoF Adj Factor Scoring'!$E$3:$N$3,0)-1),2,TRUE)","v":1},{"$f":"VLOOKUP(D:D,OFFSET('B. PoF Adj Factor Scoring'!$E$5:$F$282,,MATCH(I$4,'B. PoF Adj Factor Scoring'!$E$3:$N$3,0)-1),2,TRUE)","v":1},{"$f":"VLOOKUP(E:E,OFFSET('B. PoF Adj Factor Scoring'!$E$5:$F$282,,MATCH(J$4,'B. PoF Adj Factor Scoring'!$E$3:$N$3,0)-1),2,TRUE)","v":1},{"$f":"VLOOKUP(F:F,OFFSET('B. PoF Adj Factor Scoring'!$E$5:$F$282,,MATCH(K$4,'B. PoF Adj Factor Scoring'!$E$3:$N$3,0)-1),2,TRUE)","v":1}]
[{"$f":"'A. Population Info'!A140","v":1000340887},{"$f":"'A. Population Info'!G140","v":"OIL"},{"$f":"'A. Population Info'!H140","v":1},{"$f":"'A. Population Info'!I140","v":0},{"$f":"'A. Population Info'!J140","v":0},{"$f":"'A. Population Info'!K140","v":0},{"$f":"VLOOKUP(B:B,OFFSET('B. PoF Adj Factor Scoring'!$E$5:$F$282,,MATCH(G$4,'B. PoF Adj Factor Scoring'!$E$3:$N$3,0)-1),2,TRUE)","v":1},{"$f":"VLOOKUP(C:C,OFFSET('B. PoF Adj Factor Scoring'!$E$5:$F$282,,MATCH(H$4,'B. PoF Adj Factor Scoring'!$E$3:$N$3,0)-1),2,TRUE)","v":1},{"$f":"VLOOKUP(D:D,OFFSET('B. PoF Adj Factor Scoring'!$E$5:$F$282,,MATCH(I$4,'B. PoF Adj Factor Scoring'!$E$3:$N$3,0)-1),2,TRUE)","v":1},{"$f":"VLOOKUP(E:E,OFFSET('B. PoF Adj Factor Scoring'!$E$5:$F$282,,MATCH(J$4,'B. PoF Adj Factor Scoring'!$E$3:$N$3,0)-1),2,TRUE)","v":1},{"$f":"VLOOKUP(F:F,OFFSET('B. PoF Adj Factor Scoring'!$E$5:$F$282,,MATCH(K$4,'B. PoF Adj Factor Scoring'!$E$3:$N$3,0)-1),2,TRUE)","v":1}]
[{"$f":"'A. Population Info'!A141","v":1000340972},{"$f":"'A. Population Info'!G141","v":"OIL"},{"$f":"'A. Population Info'!H141","v":1},{"$f":"'A. Population Info'!I141","v":0},{"$f":"'A. Population Info'!J141","v":0},{"$f":"'A. Population Info'!K141","v":0},{"$f":"VLOOKUP(B:B,OFFSET('B. PoF Adj Factor Scoring'!$E$5:$F$282,,MATCH(G$4,'B. PoF Adj Factor Scoring'!$E$3:$N$3,0)-1),2,TRUE)","v":1},{"$f":"VLOOKUP(C:C,OFFSET('B. PoF Adj Factor Scoring'!$E$5:$F$282,,MATCH(H$4,'B. PoF Adj Factor Scoring'!$E$3:$N$3,0)-1),2,TRUE)","v":1},{"$f":"VLOOKUP(D:D,OFFSET('B. PoF Adj Factor Scoring'!$E$5:$F$282,,MATCH(I$4,'B. PoF Adj Factor Scoring'!$E$3:$N$3,0)-1),2,TRUE)","v":1},{"$f":"VLOOKUP(E:E,OFFSET('B. PoF Adj Factor Scoring'!$E$5:$F$282,,MATCH(J$4,'B. PoF Adj Factor Scoring'!$E$3:$N$3,0)-1),2,TRUE)","v":1},{"$f":"VLOOKUP(F:F,OFFSET('B. PoF Adj Factor Scoring'!$E$5:$F$282,,MATCH(K$4,'B. PoF Adj Factor Scoring'!$E$3:$N$3,0)-1),2,TRUE)","v":1}]
[{"$f":"'A. Population Info'!A142","v":1000344030},{"$f":"'A. Population Info'!G142","v":"OIL"},{"$f":"'A. Population Info'!H142","v":1},{"$f":"'A. Population Info'!I142","v":0},{"$f":"'A. Population Info'!J142","v":0},{"$f":"'A. Population Info'!K142","v":0},{"$f":"VLOOKUP(B:B,OFFSET('B. PoF Adj Factor Scoring'!$E$5:$F$282,,MATCH(G$4,'B. PoF Adj Factor Scoring'!$E$3:$N$3,0)-1),2,TRUE)","v":1},{"$f":"VLOOKUP(C:C,OFFSET('B. PoF Adj Factor Scoring'!$E$5:$F$282,,MATCH(H$4,'B. PoF Adj Factor Scoring'!$E$3:$N$3,0)-1),2,TRUE)","v":1},{"$f":"VLOOKUP(D:D,OFFSET('B. PoF Adj Factor Scoring'!$E$5:$F$282,,MATCH(I$4,'B. PoF Adj Factor Scoring'!$E$3:$N$3,0)-1),2,TRUE)","v":1},{"$f":"VLOOKUP(E:E,OFFSET('B. PoF Adj Factor Scoring'!$E$5:$F$282,,MATCH(J$4,'B. PoF Adj Factor Scoring'!$E$3:$N$3,0)-1),2,TRUE)","v":1},{"$f":"VLOOKUP(F:F,OFFSET('B. PoF Adj Factor Scoring'!$E$5:$F$282,,MATCH(K$4,'B. PoF Adj Factor Scoring'!$E$3:$N$3,0)-1),2,TRUE)","v":1}]
[{"$f":"'A. Population Info'!A143","v":1000344072},{"$f":"'A. Population Info'!G143","v":"OIL"},{"$f":"'A. Population Info'!H143","v":2},{"$f":"'A. Population Info'!I143","v":500},{"$f":"'A. Population Info'!J143","v":0},{"$f":"'A. Population Info'!K143","v":0},{"$f":"VLOOKUP(B:B,OFFSET('B. PoF Adj Factor Scoring'!$E$5:$F$282,,MATCH(G$4,'B. PoF Adj Factor Scoring'!$E$3:$N$3,0)-1),2,TRUE)","v":1},{"$f":"VLOOKUP(C:C,OFFSET('B. PoF Adj Factor Scoring'!$E$5:$F$282,,MATCH(H$4,'B. PoF Adj Factor Scoring'!$E$3:$N$3,0)-1),2,TRUE)","v":2},{"$f":"VLOOKUP(D:D,OFFSET('B. PoF Adj Factor Scoring'!$E$5:$F$282,,MATCH(I$4,'B. PoF Adj Factor Scoring'!$E$3:$N$3,0)-1),2,TRUE)","v":1},{"$f":"VLOOKUP(E:E,OFFSET('B. PoF Adj Factor Scoring'!$E$5:$F$282,,MATCH(J$4,'B. PoF Adj Factor Scoring'!$E$3:$N$3,0)-1),2,TRUE)","v":1},{"$f":"VLOOKUP(F:F,OFFSET('B. PoF Adj Factor Scoring'!$E$5:$F$282,,MATCH(K$4,'B. PoF Adj Factor Scoring'!$E$3:$N$3,0)-1),2,TRUE)","v":1}]
[{"$f":"'A. Population Info'!A144","v":1000344130},{"$f":"'A. Population Info'!G144","v":"OIL"},{"$f":"'A. Population Info'!H144","v":2},{"$f":"'A. Population Info'!I144","v":1000},{"$f":"'A. Population Info'!J144","v":0},{"$f":"'A. Population Info'!K144","v":0},{"$f":"VLOOKUP(B:B,OFFSET('B. PoF Adj Factor Scoring'!$E$5:$F$282,,MATCH(G$4,'B. PoF Adj Factor Scoring'!$E$3:$N$3,0)-1),2,TRUE)","v":1},{"$f":"VLOOKUP(C:C,OFFSET('B. PoF Adj Factor Scoring'!$E$5:$F$282,,MATCH(H$4,'B. PoF Adj Factor Scoring'!$E$3:$N$3,0)-1),2,TRUE)","v":2},{"$f":"VLOOKUP(D:D,OFFSET('B. PoF Adj Factor Scoring'!$E$5:$F$282,,MATCH(I$4,'B. PoF Adj Factor Scoring'!$E$3:$N$3,0)-1),2,TRUE)","v":2},{"$f":"VLOOKUP(E:E,OFFSET('B. PoF Adj Factor Scoring'!$E$5:$F$282,,MATCH(J$4,'B. PoF Adj Factor Scoring'!$E$3:$N$3,0)-1),2,TRUE)","v":1},{"$f":"VLOOKUP(F:F,OFFSET('B. PoF Adj Factor Scoring'!$E$5:$F$282,,MATCH(K$4,'B. PoF Adj Factor Scoring'!$E$3:$N$3,0)-1),2,TRUE)","v":1}]
[{"$f":"'A. Population Info'!A145","v":1000344161},{"$f":"'A. Population Info'!G145","v":"OIL"},{"$f":"'A. Population Info'!H145","v":1},{"$f":"'A. Population Info'!I145","v":500},{"$f":"'A. Population Info'!J145","v":0},{"$f":"'A. Population Info'!K145","v":0},{"$f":"VLOOKUP(B:B,OFFSET('B. PoF Adj Factor Scoring'!$E$5:$F$282,,MATCH(G$4,'B. PoF Adj Factor Scoring'!$E$3:$N$3,0)-1),2,TRUE)","v":1},{"$f":"VLOOKUP(C:C,OFFSET('B. PoF Adj Factor Scoring'!$E$5:$F$282,,MATCH(H$4,'B. PoF Adj Factor Scoring'!$E$3:$N$3,0)-1),2,TRUE)","v":1},{"$f":"VLOOKUP(D:D,OFFSET('B. PoF Adj Factor Scoring'!$E$5:$F$282,,MATCH(I$4,'B. PoF Adj Factor Scoring'!$E$3:$N$3,0)-1),2,TRUE)","v":1},{"$f":"VLOOKUP(E:E,OFFSET('B. PoF Adj Factor Scoring'!$E$5:$F$282,,MATCH(J$4,'B. PoF Adj Factor Scoring'!$E$3:$N$3,0)-1),2,TRUE)","v":1},{"$f":"VLOOKUP(F:F,OFFSET('B. PoF Adj Factor Scoring'!$E$5:$F$282,,MATCH(K$4,'B. PoF Adj Factor Scoring'!$E$3:$N$3,0)-1),2,TRUE)","v":1}]
[{"$f":"'A. Population Info'!A146","v":1000344307},{"$f":"'A. Population Info'!G146","v":"OIL"},{"$f":"'A. Population Info'!H146","v":1},{"$f":"'A. Population Info'!I146","v":0},{"$f":"'A. Population Info'!J146","v":0},{"$f":"'A. Population Info'!K146","v":0},{"$f":"VLOOKUP(B:B,OFFSET('B. PoF Adj Factor Scoring'!$E$5:$F$282,,MATCH(G$4,'B. PoF Adj Factor Scoring'!$E$3:$N$3,0)-1),2,TRUE)","v":1},{"$f":"VLOOKUP(C:C,OFFSET('B. PoF Adj Factor Scoring'!$E$5:$F$282,,MATCH(H$4,'B. PoF Adj Factor Scoring'!$E$3:$N$3,0)-1),2,TRUE)","v":1},{"$f":"VLOOKUP(D:D,OFFSET('B. PoF Adj Factor Scoring'!$E$5:$F$282,,MATCH(I$4,'B. PoF Adj Factor Scoring'!$E$3:$N$3,0)-1),2,TRUE)","v":1},{"$f":"VLOOKUP(E:E,OFFSET('B. PoF Adj Factor Scoring'!$E$5:$F$282,,MATCH(J$4,'B. PoF Adj Factor Scoring'!$E$3:$N$3,0)-1),2,TRUE)","v":1},{"$f":"VLOOKUP(F:F,OFFSET('B. PoF Adj Factor Scoring'!$E$5:$F$282,,MATCH(K$4,'B. PoF Adj Factor Scoring'!$E$3:$N$3,0)-1),2,TRUE)","v":1}]
[{"$f":"'A. Population Info'!A147","v":1000344336},{"$f":"'A. Population Info'!G147","v":"OIL"},{"$f":"'A. Population Info'!H147","v":1},{"$f":"'A. Population Info'!I147","v":2000},{"$f":"'A. Population Info'!J147","v":0},{"$f":"'A. Population Info'!K147","v":0},{"$f":"VLOOKUP(B:B,OFFSET('B. PoF Adj Factor Scoring'!$E$5:$F$282,,MATCH(G$4,'B. PoF Adj Factor Scoring'!$E$3:$N$3,0)-1),2,TRUE)","v":1},{"$f":"VLOOKUP(C:C,OFFSET('B. PoF Adj Factor Scoring'!$E$5:$F$282,,MATCH(H$4,'B. PoF Adj Factor Scoring'!$E$3:$N$3,0)-1),2,TRUE)","v":1},{"$f":"VLOOKUP(D:D,OFFSET('B. PoF Adj Factor Scoring'!$E$5:$F$282,,MATCH(I$4,'B. PoF Adj Factor Scoring'!$E$3:$N$3,0)-1),2,TRUE)","v":2},{"$f":"VLOOKUP(E:E,OFFSET('B. PoF Adj Factor Scoring'!$E$5:$F$282,,MATCH(J$4,'B. PoF Adj Factor Scoring'!$E$3:$N$3,0)-1),2,TRUE)","v":1},{"$f":"VLOOKUP(F:F,OFFSET('B. PoF Adj Factor Scoring'!$E$5:$F$282,,MATCH(K$4,'B. PoF Adj Factor Scoring'!$E$3:$N$3,0)-1),2,TRUE)","v":1}]
[{"$f":"'A. Population Info'!A148","v":1000344368},{"$f":"'A. Population Info'!G148","v":"OIL"},{"$f":"'A. Population Info'!H148","v":3},{"$f":"'A. Population Info'!I148","v":0},{"$f":"'A. Population Info'!J148","v":0},{"$f":"'A. Population Info'!K148","v":0},{"$f":"VLOOKUP(B:B,OFFSET('B. PoF Adj Factor Scoring'!$E$5:$F$282,,MATCH(G$4,'B. PoF Adj Factor Scoring'!$E$3:$N$3,0)-1),2,TRUE)","v":1},{"$f":"VLOOKUP(C:C,OFFSET('B. PoF Adj Factor Scoring'!$E$5:$F$282,,MATCH(H$4,'B. PoF Adj Factor Scoring'!$E$3:$N$3,0)-1),2,TRUE)","v":3},{"$f":"VLOOKUP(D:D,OFFSET('B. PoF Adj Factor Scoring'!$E$5:$F$282,,MATCH(I$4,'B. PoF Adj Factor Scoring'!$E$3:$N$3,0)-1),2,TRUE)","v":1},{"$f":"VLOOKUP(E:E,OFFSET('B. PoF Adj Factor Scoring'!$E$5:$F$282,,MATCH(J$4,'B. PoF Adj Factor Scoring'!$E$3:$N$3,0)-1),2,TRUE)","v":1},{"$f":"VLOOKUP(F:F,OFFSET('B. PoF Adj Factor Scoring'!$E$5:$F$282,,MATCH(K$4,'B. PoF Adj Factor Scoring'!$E$3:$N$3,0)-1),2,TRUE)","v":1}]
[{"$f":"'A. Population Info'!A149","v":1000344393},{"$f":"'A. Population Info'!G149","v":"OIL"},{"$f":"'A. Population Info'!H149","v":3},{"$f":"'A. Population Info'!I149","v":0},{"$f":"'A. Population Info'!J149","v":0},{"$f":"'A. Population Info'!K149","v":0},{"$f":"VLOOKUP(B:B,OFFSET('B. PoF Adj Factor Scoring'!$E$5:$F$282,,MATCH(G$4,'B. PoF Adj Factor Scoring'!$E$3:$N$3,0)-1),2,TRUE)","v":1},{"$f":"VLOOKUP(C:C,OFFSET('B. PoF Adj Factor Scoring'!$E$5:$F$282,,MATCH(H$4,'B. PoF Adj Factor Scoring'!$E$3:$N$3,0)-1),2,TRUE)","v":3},{"$f":"VLOOKUP(D:D,OFFSET('B. PoF Adj Factor Scoring'!$E$5:$F$282,,MATCH(I$4,'B. PoF Adj Factor Scoring'!$E$3:$N$3,0)-1),2,TRUE)","v":1},{"$f":"VLOOKUP(E:E,OFFSET('B. PoF Adj Factor Scoring'!$E$5:$F$282,,MATCH(J$4,'B. PoF Adj Factor Scoring'!$E$3:$N$3,0)-1),2,TRUE)","v":1},{"$f":"VLOOKUP(F:F,OFFSET('B. PoF Adj Factor Scoring'!$E$5:$F$282,,MATCH(K$4,'B. PoF Adj Factor Scoring'!$E$3:$N$3,0)-1),2,TRUE)","v":1}]
[{"$f":"'A. Population Info'!A150","v":1000344489},{"$f":"'A. Population Info'!G150","v":"OIL"},{"$f":"'A. Population Info'!H150","v":1},{"$f":"'A. Population Info'!I150","v":0},{"$f":"'A. Population Info'!J150","v":0},{"$f":"'A. Population Info'!K150","v":0},{"$f":"VLOOKUP(B:B,OFFSET('B. PoF Adj Factor Scoring'!$E$5:$F$282,,MATCH(G$4,'B. PoF Adj Factor Scoring'!$E$3:$N$3,0)-1),2,TRUE)","v":1},{"$f":"VLOOKUP(C:C,OFFSET('B. PoF Adj Factor Scoring'!$E$5:$F$282,,MATCH(H$4,'B. PoF Adj Factor Scoring'!$E$3:$N$3,0)-1),2,TRUE)","v":1},{"$f":"VLOOKUP(D:D,OFFSET('B. PoF Adj Factor Scoring'!$E$5:$F$282,,MATCH(I$4,'B. PoF Adj Factor Scoring'!$E$3:$N$3,0)-1),2,TRUE)","v":1},{"$f":"VLOOKUP(E:E,OFFSET('B. PoF Adj Factor Scoring'!$E$5:$F$282,,MATCH(J$4,'B. PoF Adj Factor Scoring'!$E$3:$N$3,0)-1),2,TRUE)","v":1},{"$f":"VLOOKUP(F:F,OFFSET('B. PoF Adj Factor Scoring'!$E$5:$F$282,,MATCH(K$4,'B. PoF Adj Factor Scoring'!$E$3:$N$3,0)-1),2,TRUE)","v":1}]
[{"$f":"'A. Population Info'!A151","v":1000344516},{"$f":"'A. Population Info'!G151","v":"OIL"},{"$f":"'A. Population Info'!H151","v":1},{"$f":"'A. Population Info'!I151","v":0},{"$f":"'A. Population Info'!J151","v":0},{"$f":"'A. Population Info'!K151","v":0},{"$f":"VLOOKUP(B:B,OFFSET('B. PoF Adj Factor Scoring'!$E$5:$F$282,,MATCH(G$4,'B. PoF Adj Factor Scoring'!$E$3:$N$3,0)-1),2,TRUE)","v":1},{"$f":"VLOOKUP(C:C,OFFSET('B. PoF Adj Factor Scoring'!$E$5:$F$282,,MATCH(H$4,'B. PoF Adj Factor Scoring'!$E$3:$N$3,0)-1),2,TRUE)","v":1},{"$f":"VLOOKUP(D:D,OFFSET('B. PoF Adj Factor Scoring'!$E$5:$F$282,,MATCH(I$4,'B. PoF Adj Factor Scoring'!$E$3:$N$3,0)-1),2,TRUE)","v":1},{"$f":"VLOOKUP(E:E,OFFSET('B. PoF Adj Factor Scoring'!$E$5:$F$282,,MATCH(J$4,'B. PoF Adj Factor Scoring'!$E$3:$N$3,0)-1),2,TRUE)","v":1},{"$f":"VLOOKUP(F:F,OFFSET('B. PoF Adj Factor Scoring'!$E$5:$F$282,,MATCH(K$4,'B. PoF Adj Factor Scoring'!$E$3:$N$3,0)-1),2,TRUE)","v":1}]
[{"$f":"'A. Population Info'!A152","v":1000344547},{"$f":"'A. Population Info'!G152","v":"OIL"},{"$f":"'A. Population Info'!H152","v":1},{"$f":"'A. Population Info'!I152","v":1900},{"$f":"'A. Population Info'!J152","v":0},{"$f":"'A. Population Info'!K152","v":0},{"$f":"VLOOKUP(B:B,OFFSET('B. PoF Adj Factor Scoring'!$E$5:$F$282,,MATCH(G$4,'B. PoF Adj Factor Scoring'!$E$3:$N$3,0)-1),2,TRUE)","v":1},{"$f":"VLOOKUP(C:C,OFFSET('B. PoF Adj Factor Scoring'!$E$5:$F$282,,MATCH(H$4,'B. PoF Adj Factor Scoring'!$E$3:$N$3,0)-1),2,TRUE)","v":1},{"$f":"VLOOKUP(D:D,OFFSET('B. PoF Adj Factor Scoring'!$E$5:$F$282,,MATCH(I$4,'B. PoF Adj Factor Scoring'!$E$3:$N$3,0)-1),2,TRUE)","v":2},{"$f":"VLOOKUP(E:E,OFFSET('B. PoF Adj Factor Scoring'!$E$5:$F$282,,MATCH(J$4,'B. PoF Adj Factor Scoring'!$E$3:$N$3,0)-1),2,TRUE)","v":1},{"$f":"VLOOKUP(F:F,OFFSET('B. PoF Adj Factor Scoring'!$E$5:$F$282,,MATCH(K$4,'B. PoF Adj Factor Scoring'!$E$3:$N$3,0)-1),2,TRUE)","v":1}]
[{"$f":"'A. Population Info'!A153","v":1000344577},{"$f":"'A. Population Info'!G153","v":"OIL"},{"$f":"'A. Population Info'!H153","v":2},{"$f":"'A. Population Info'!I153","v":0},{"$f":"'A. Population Info'!J153","v":0},{"$f":"'A. Population Info'!K153","v":0},{"$f":"VLOOKUP(B:B,OFFSET('B. PoF Adj Factor Scoring'!$E$5:$F$282,,MATCH(G$4,'B. PoF Adj Factor Scoring'!$E$3:$N$3,0)-1),2,TRUE)","v":1},{"$f":"VLOOKUP(C:C,OFFSET('B. PoF Adj Factor Scoring'!$E$5:$F$282,,MATCH(H$4,'B. PoF Adj Factor Scoring'!$E$3:$N$3,0)-1),2,TRUE)","v":2},{"$f":"VLOOKUP(D:D,OFFSET('B. PoF Adj Factor Scoring'!$E$5:$F$282,,MATCH(I$4,'B. PoF Adj Factor Scoring'!$E$3:$N$3,0)-1),2,TRUE)","v":1},{"$f":"VLOOKUP(E:E,OFFSET('B. PoF Adj Factor Scoring'!$E$5:$F$282,,MATCH(J$4,'B. PoF Adj Factor Scoring'!$E$3:$N$3,0)-1),2,TRUE)","v":1},{"$f":"VLOOKUP(F:F,OFFSET('B. PoF Adj Factor Scoring'!$E$5:$F$282,,MATCH(K$4,'B. PoF Adj Factor Scoring'!$E$3:$N$3,0)-1),2,TRUE)","v":1}]
[{"$f":"'A. Population Info'!A154","v":1000344603},{"$f":"'A. Population Info'!G154","v":"OIL"},{"$f":"'A. Population Info'!H154","v":1},{"$f":"'A. Population Info'!I154","v":0},{"$f":"'A. Population Info'!J154","v":0},{"$f":"'A. Population Info'!K154","v":0},{"$f":"VLOOKUP(B:B,OFFSET('B. PoF Adj Factor Scoring'!$E$5:$F$282,,MATCH(G$4,'B. PoF Adj Factor Scoring'!$E$3:$N$3,0)-1),2,TRUE)","v":1},{"$f":"VLOOKUP(C:C,OFFSET('B. PoF Adj Factor Scoring'!$E$5:$F$282,,MATCH(H$4,'B. PoF Adj Factor Scoring'!$E$3:$N$3,0)-1),2,TRUE)","v":1},{"$f":"VLOOKUP(D:D,OFFSET('B. PoF Adj Factor Scoring'!$E$5:$F$282,,MATCH(I$4,'B. PoF Adj Factor Scoring'!$E$3:$N$3,0)-1),2,TRUE)","v":1},{"$f":"VLOOKUP(E:E,OFFSET('B. PoF Adj Factor Scoring'!$E$5:$F$282,,MATCH(J$4,'B. PoF Adj Factor Scoring'!$E$3:$N$3,0)-1),2,TRUE)","v":1},{"$f":"VLOOKUP(F:F,OFFSET('B. PoF Adj Factor Scoring'!$E$5:$F$282,,MATCH(K$4,'B. PoF Adj Factor Scoring'!$E$3:$N$3,0)-1),2,TRUE)","v":1}]
[{"$f":"'A. Population Info'!A155","v":1000344840},{"$f":"'A. Population Info'!G155","v":"OIL"},{"$f":"'A. Population Info'!H155","v":1},{"$f":"'A. Population Info'!I155","v":0},{"$f":"'A. Population Info'!J155","v":0},{"$f":"'A. Population Info'!K155","v":0},{"$f":"VLOOKUP(B:B,OFFSET('B. PoF Adj Factor Scoring'!$E$5:$F$282,,MATCH(G$4,'B. PoF Adj Factor Scoring'!$E$3:$N$3,0)-1),2,TRUE)","v":1},{"$f":"VLOOKUP(C:C,OFFSET('B. PoF Adj Factor Scoring'!$E$5:$F$282,,MATCH(H$4,'B. PoF Adj Factor Scoring'!$E$3:$N$3,0)-1),2,TRUE)","v":1},{"$f":"VLOOKUP(D:D,OFFSET('B. PoF Adj Factor Scoring'!$E$5:$F$282,,MATCH(I$4,'B. PoF Adj Factor Scoring'!$E$3:$N$3,0)-1),2,TRUE)","v":1},{"$f":"VLOOKUP(E:E,OFFSET('B. PoF Adj Factor Scoring'!$E$5:$F$282,,MATCH(J$4,'B. PoF Adj Factor Scoring'!$E$3:$N$3,0)-1),2,TRUE)","v":1},{"$f":"VLOOKUP(F:F,OFFSET('B. PoF Adj Factor Scoring'!$E$5:$F$282,,MATCH(K$4,'B. PoF Adj Factor Scoring'!$E$3:$N$3,0)-1),2,TRUE)","v":1}]
[{"$f":"'A. Population Info'!A156","v":1000344872},{"$f":"'A. Population Info'!G156","v":"OIL"},{"$f":"'A. Population Info'!H156","v":1},{"$f":"'A. Population Info'!I156","v":0},{"$f":"'A. Population Info'!J156","v":0},{"$f":"'A. Population Info'!K156","v":0},{"$f":"VLOOKUP(B:B,OFFSET('B. PoF Adj Factor Scoring'!$E$5:$F$282,,MATCH(G$4,'B. PoF Adj Factor Scoring'!$E$3:$N$3,0)-1),2,TRUE)","v":1},{"$f":"VLOOKUP(C:C,OFFSET('B. PoF Adj Factor Scoring'!$E$5:$F$282,,MATCH(H$4,'B. PoF Adj Factor Scoring'!$E$3:$N$3,0)-1),2,TRUE)","v":1},{"$f":"VLOOKUP(D:D,OFFSET('B. PoF Adj Factor Scoring'!$E$5:$F$282,,MATCH(I$4,'B. PoF Adj Factor Scoring'!$E$3:$N$3,0)-1),2,TRUE)","v":1},{"$f":"VLOOKUP(E:E,OFFSET('B. PoF Adj Factor Scoring'!$E$5:$F$282,,MATCH(J$4,'B. PoF Adj Factor Scoring'!$E$3:$N$3,0)-1),2,TRUE)","v":1},{"$f":"VLOOKUP(F:F,OFFSET('B. PoF Adj Factor Scoring'!$E$5:$F$282,,MATCH(K$4,'B. PoF Adj Factor Scoring'!$E$3:$N$3,0)-1),2,TRUE)","v":1}]
[{"$f":"'A. Population Info'!A157","v":1000344903},{"$f":"'A. Population Info'!G157","v":"OIL"},{"$f":"'A. Population Info'!H157","v":2},{"$f":"'A. Population Info'!I157","v":0},{"$f":"'A. Population Info'!J157","v":0},{"$f":"'A. Population Info'!K157","v":0},{"$f":"VLOOKUP(B:B,OFFSET('B. PoF Adj Factor Scoring'!$E$5:$F$282,,MATCH(G$4,'B. PoF Adj Factor Scoring'!$E$3:$N$3,0)-1),2,TRUE)","v":1},{"$f":"VLOOKUP(C:C,OFFSET('B. PoF Adj Factor Scoring'!$E$5:$F$282,,MATCH(H$4,'B. PoF Adj Factor Scoring'!$E$3:$N$3,0)-1),2,TRUE)","v":2},{"$f":"VLOOKUP(D:D,OFFSET('B. PoF Adj Factor Scoring'!$E$5:$F$282,,MATCH(I$4,'B. PoF Adj Factor Scoring'!$E$3:$N$3,0)-1),2,TRUE)","v":1},{"$f":"VLOOKUP(E:E,OFFSET('B. PoF Adj Factor Scoring'!$E$5:$F$282,,MATCH(J$4,'B. PoF Adj Factor Scoring'!$E$3:$N$3,0)-1),2,TRUE)","v":1},{"$f":"VLOOKUP(F:F,OFFSET('B. PoF Adj Factor Scoring'!$E$5:$F$282,,MATCH(K$4,'B. PoF Adj Factor Scoring'!$E$3:$N$3,0)-1),2,TRUE)","v":1}]
[{"$f":"'A. Population Info'!A158","v":1000344995},{"$f":"'A. Population Info'!G158","v":"OIL"},{"$f":"'A. Population Info'!H158","v":1},{"$f":"'A. Population Info'!I158","v":0},{"$f":"'A. Population Info'!J158","v":0},{"$f":"'A. Population Info'!K158","v":0},{"$f":"VLOOKUP(B:B,OFFSET('B. PoF Adj Factor Scoring'!$E$5:$F$282,,MATCH(G$4,'B. PoF Adj Factor Scoring'!$E$3:$N$3,0)-1),2,TRUE)","v":1},{"$f":"VLOOKUP(C:C,OFFSET('B. PoF Adj Factor Scoring'!$E$5:$F$282,,MATCH(H$4,'B. PoF Adj Factor Scoring'!$E$3:$N$3,0)-1),2,TRUE)","v":1},{"$f":"VLOOKUP(D:D,OFFSET('B. PoF Adj Factor Scoring'!$E$5:$F$282,,MATCH(I$4,'B. PoF Adj Factor Scoring'!$E$3:$N$3,0)-1),2,TRUE)","v":1},{"$f":"VLOOKUP(E:E,OFFSET('B. PoF Adj Factor Scoring'!$E$5:$F$282,,MATCH(J$4,'B. PoF Adj Factor Scoring'!$E$3:$N$3,0)-1),2,TRUE)","v":1},{"$f":"VLOOKUP(F:F,OFFSET('B. PoF Adj Factor Scoring'!$E$5:$F$282,,MATCH(K$4,'B. PoF Adj Factor Scoring'!$E$3:$N$3,0)-1),2,TRUE)","v":1}]
[{"$f":"'A. Population Info'!A159","v":1000349025},{"$f":"'A. Population Info'!G159","v":"OIL"},{"$f":"'A. Population Info'!H159","v":1},{"$f":"'A. Population Info'!I159","v":0},{"$f":"'A. Population Info'!J159","v":0},{"$f":"'A. Population Info'!K159","v":0},{"$f":"VLOOKUP(B:B,OFFSET('B. PoF Adj Factor Scoring'!$E$5:$F$282,,MATCH(G$4,'B. PoF Adj Factor Scoring'!$E$3:$N$3,0)-1),2,TRUE)","v":1},{"$f":"VLOOKUP(C:C,OFFSET('B. PoF Adj Factor Scoring'!$E$5:$F$282,,MATCH(H$4,'B. PoF Adj Factor Scoring'!$E$3:$N$3,0)-1),2,TRUE)","v":1},{"$f":"VLOOKUP(D:D,OFFSET('B. PoF Adj Factor Scoring'!$E$5:$F$282,,MATCH(I$4,'B. PoF Adj Factor Scoring'!$E$3:$N$3,0)-1),2,TRUE)","v":1},{"$f":"VLOOKUP(E:E,OFFSET('B. PoF Adj Factor Scoring'!$E$5:$F$282,,MATCH(J$4,'B. PoF Adj Factor Scoring'!$E$3:$N$3,0)-1),2,TRUE)","v":1},{"$f":"VLOOKUP(F:F,OFFSET('B. PoF Adj Factor Scoring'!$E$5:$F$282,,MATCH(K$4,'B. PoF Adj Factor Scoring'!$E$3:$N$3,0)-1),2,TRUE)","v":1}]
[{"$f":"'A. Population Info'!A160","v":1000349053},{"$f":"'A. Population Info'!G160","v":"OIL"},{"$f":"'A. Population Info'!H160","v":1},{"$f":"'A. Population Info'!I160","v":0},{"$f":"'A. Population Info'!J160","v":0},{"$f":"'A. Population Info'!K160","v":0},{"$f":"VLOOKUP(B:B,OFFSET('B. PoF Adj Factor Scoring'!$E$5:$F$282,,MATCH(G$4,'B. PoF Adj Factor Scoring'!$E$3:$N$3,0)-1),2,TRUE)","v":1},{"$f":"VLOOKUP(C:C,OFFSET('B. PoF Adj Factor Scoring'!$E$5:$F$282,,MATCH(H$4,'B. PoF Adj Factor Scoring'!$E$3:$N$3,0)-1),2,TRUE)","v":1},{"$f":"VLOOKUP(D:D,OFFSET('B. PoF Adj Factor Scoring'!$E$5:$F$282,,MATCH(I$4,'B. PoF Adj Factor Scoring'!$E$3:$N$3,0)-1),2,TRUE)","v":1},{"$f":"VLOOKUP(E:E,OFFSET('B. PoF Adj Factor Scoring'!$E$5:$F$282,,MATCH(J$4,'B. PoF Adj Factor Scoring'!$E$3:$N$3,0)-1),2,TRUE)","v":1},{"$f":"VLOOKUP(F:F,OFFSET('B. PoF Adj Factor Scoring'!$E$5:$F$282,,MATCH(K$4,'B. PoF Adj Factor Scoring'!$E$3:$N$3,0)-1),2,TRUE)","v":1}]
[{"$f":"'A. Population Info'!A161","v":1000349084},{"$f":"'A. Population Info'!G161","v":"OIL"},{"$f":"'A. Population Info'!H161","v":1},{"$f":"'A. Population Info'!I161","v":0},{"$f":"'A. Population Info'!J161","v":0},{"$f":"'A. Population Info'!K161","v":0},{"$f":"VLOOKUP(B:B,OFFSET('B. PoF Adj Factor Scoring'!$E$5:$F$282,,MATCH(G$4,'B. PoF Adj Factor Scoring'!$E$3:$N$3,0)-1),2,TRUE)","v":1},{"$f":"VLOOKUP(C:C,OFFSET('B. PoF Adj Factor Scoring'!$E$5:$F$282,,MATCH(H$4,'B. PoF Adj Factor Scoring'!$E$3:$N$3,0)-1),2,TRUE)","v":1},{"$f":"VLOOKUP(D:D,OFFSET('B. PoF Adj Factor Scoring'!$E$5:$F$282,,MATCH(I$4,'B. PoF Adj Factor Scoring'!$E$3:$N$3,0)-1),2,TRUE)","v":1},{"$f":"VLOOKUP(E:E,OFFSET('B. PoF Adj Factor Scoring'!$E$5:$F$282,,MATCH(J$4,'B. PoF Adj Factor Scoring'!$E$3:$N$3,0)-1),2,TRUE)","v":1},{"$f":"VLOOKUP(F:F,OFFSET('B. PoF Adj Factor Scoring'!$E$5:$F$282,,MATCH(K$4,'B. PoF Adj Factor Scoring'!$E$3:$N$3,0)-1),2,TRUE)","v":1}]
[{"$f":"'A. Population Info'!A162","v":1000349112},{"$f":"'A. Population Info'!G162","v":"OIL"},{"$f":"'A. Population Info'!H162","v":1},{"$f":"'A. Population Info'!I162","v":0},{"$f":"'A. Population Info'!J162","v":0},{"$f":"'A. Population Info'!K162","v":0},{"$f":"VLOOKUP(B:B,OFFSET('B. PoF Adj Factor Scoring'!$E$5:$F$282,,MATCH(G$4,'B. PoF Adj Factor Scoring'!$E$3:$N$3,0)-1),2,TRUE)","v":1},{"$f":"VLOOKUP(C:C,OFFSET('B. PoF Adj Factor Scoring'!$E$5:$F$282,,MATCH(H$4,'B. PoF Adj Factor Scoring'!$E$3:$N$3,0)-1),2,TRUE)","v":1},{"$f":"VLOOKUP(D:D,OFFSET('B. PoF Adj Factor Scoring'!$E$5:$F$282,,MATCH(I$4,'B. PoF Adj Factor Scoring'!$E$3:$N$3,0)-1),2,TRUE)","v":1},{"$f":"VLOOKUP(E:E,OFFSET('B. PoF Adj Factor Scoring'!$E$5:$F$282,,MATCH(J$4,'B. PoF Adj Factor Scoring'!$E$3:$N$3,0)-1),2,TRUE)","v":1},{"$f":"VLOOKUP(F:F,OFFSET('B. PoF Adj Factor Scoring'!$E$5:$F$282,,MATCH(K$4,'B. PoF Adj Factor Scoring'!$E$3:$N$3,0)-1),2,TRUE)","v":1}]
[{"$f":"'A. Population Info'!A163","v":1000349143},{"$f":"'A. Population Info'!G163","v":"OIL"},{"$f":"'A. Population Info'!H163","v":1},{"$f":"'A. Population Info'!I163","v":0},{"$f":"'A. Population Info'!J163","v":0},{"$f":"'A. Population Info'!K163","v":0},{"$f":"VLOOKUP(B:B,OFFSET('B. PoF Adj Factor Scoring'!$E$5:$F$282,,MATCH(G$4,'B. PoF Adj Factor Scoring'!$E$3:$N$3,0)-1),2,TRUE)","v":1},{"$f":"VLOOKUP(C:C,OFFSET('B. PoF Adj Factor Scoring'!$E$5:$F$282,,MATCH(H$4,'B. PoF Adj Factor Scoring'!$E$3:$N$3,0)-1),2,TRUE)","v":1},{"$f":"VLOOKUP(D:D,OFFSET('B. PoF Adj Factor Scoring'!$E$5:$F$282,,MATCH(I$4,'B. PoF Adj Factor Scoring'!$E$3:$N$3,0)-1),2,TRUE)","v":1},{"$f":"VLOOKUP(E:E,OFFSET('B. PoF Adj Factor Scoring'!$E$5:$F$282,,MATCH(J$4,'B. PoF Adj Factor Scoring'!$E$3:$N$3,0)-1),2,TRUE)","v":1},{"$f":"VLOOKUP(F:F,OFFSET('B. PoF Adj Factor Scoring'!$E$5:$F$282,,MATCH(K$4,'B. PoF Adj Factor Scoring'!$E$3:$N$3,0)-1),2,TRUE)","v":1}]
[{"$f":"'A. Population Info'!A164","v":1000349169},{"$f":"'A. Population Info'!G164","v":"OIL"},{"$f":"'A. Population Info'!H164","v":1},{"$f":"'A. Population Info'!I164","v":0},{"$f":"'A. Population Info'!J164","v":0},{"$f":"'A. Population Info'!K164","v":0},{"$f":"VLOOKUP(B:B,OFFSET('B. PoF Adj Factor Scoring'!$E$5:$F$282,,MATCH(G$4,'B. PoF Adj Factor Scoring'!$E$3:$N$3,0)-1),2,TRUE)","v":1},{"$f":"VLOOKUP(C:C,OFFSET('B. PoF Adj Factor Scoring'!$E$5:$F$282,,MATCH(H$4,'B. PoF Adj Factor Scoring'!$E$3:$N$3,0)-1),2,TRUE)","v":1},{"$f":"VLOOKUP(D:D,OFFSET('B. PoF Adj Factor Scoring'!$E$5:$F$282,,MATCH(I$4,'B. PoF Adj Factor Scoring'!$E$3:$N$3,0)-1),2,TRUE)","v":1},{"$f":"VLOOKUP(E:E,OFFSET('B. PoF Adj Factor Scoring'!$E$5:$F$282,,MATCH(J$4,'B. PoF Adj Factor Scoring'!$E$3:$N$3,0)-1),2,TRUE)","v":1},{"$f":"VLOOKUP(F:F,OFFSET('B. PoF Adj Factor Scoring'!$E$5:$F$282,,MATCH(K$4,'B. PoF Adj Factor Scoring'!$E$3:$N$3,0)-1),2,TRUE)","v":1}]
[{"$f":"'A. Population Info'!A165","v":1000349201},{"$f":"'A. Population Info'!G165","v":"OIL"},{"$f":"'A. Population Info'!H165","v":1},{"$f":"'A. Population Info'!I165","v":0},{"$f":"'A. Population Info'!J165","v":0},{"$f":"'A. Population Info'!K165","v":0},{"$f":"VLOOKUP(B:B,OFFSET('B. PoF Adj Factor Scoring'!$E$5:$F$282,,MATCH(G$4,'B. PoF Adj Factor Scoring'!$E$3:$N$3,0)-1),2,TRUE)","v":1},{"$f":"VLOOKUP(C:C,OFFSET('B. PoF Adj Factor Scoring'!$E$5:$F$282,,MATCH(H$4,'B. PoF Adj Factor Scoring'!$E$3:$N$3,0)-1),2,TRUE)","v":1},{"$f":"VLOOKUP(D:D,OFFSET('B. PoF Adj Factor Scoring'!$E$5:$F$282,,MATCH(I$4,'B. PoF Adj Factor Scoring'!$E$3:$N$3,0)-1),2,TRUE)","v":1},{"$f":"VLOOKUP(E:E,OFFSET('B. PoF Adj Factor Scoring'!$E$5:$F$282,,MATCH(J$4,'B. PoF Adj Factor Scoring'!$E$3:$N$3,0)-1),2,TRUE)","v":1},{"$f":"VLOOKUP(F:F,OFFSET('B. PoF Adj Factor Scoring'!$E$5:$F$282,,MATCH(K$4,'B. PoF Adj Factor Scoring'!$E$3:$N$3,0)-1),2,TRUE)","v":1}]
[{"$f":"'A. Population Info'!A166","v":1000349231},{"$f":"'A. Population Info'!G166","v":"OIL"},{"$f":"'A. Population Info'!H166","v":1},{"$f":"'A. Population Info'!I166","v":600},{"$f":"'A. Population Info'!J166","v":0},{"$f":"'A. Population Info'!K166","v":0},{"$f":"VLOOKUP(B:B,OFFSET('B. PoF Adj Factor Scoring'!$E$5:$F$282,,MATCH(G$4,'B. PoF Adj Factor Scoring'!$E$3:$N$3,0)-1),2,TRUE)","v":1},{"$f":"VLOOKUP(C:C,OFFSET('B. PoF Adj Factor Scoring'!$E$5:$F$282,,MATCH(H$4,'B. PoF Adj Factor Scoring'!$E$3:$N$3,0)-1),2,TRUE)","v":1},{"$f":"VLOOKUP(D:D,OFFSET('B. PoF Adj Factor Scoring'!$E$5:$F$282,,MATCH(I$4,'B. PoF Adj Factor Scoring'!$E$3:$N$3,0)-1),2,TRUE)","v":1},{"$f":"VLOOKUP(E:E,OFFSET('B. PoF Adj Factor Scoring'!$E$5:$F$282,,MATCH(J$4,'B. PoF Adj Factor Scoring'!$E$3:$N$3,0)-1),2,TRUE)","v":1},{"$f":"VLOOKUP(F:F,OFFSET('B. PoF Adj Factor Scoring'!$E$5:$F$282,,MATCH(K$4,'B. PoF Adj Factor Scoring'!$E$3:$N$3,0)-1),2,TRUE)","v":1}]
[{"$f":"'A. Population Info'!A167","v":1000349259},{"$f":"'A. Population Info'!G167","v":"OIL"},{"$f":"'A. Population Info'!H167","v":1},{"$f":"'A. Population Info'!I167","v":0},{"$f":"'A. Population Info'!J167","v":0},{"$f":"'A. Population Info'!K167","v":0},{"$f":"VLOOKUP(B:B,OFFSET('B. PoF Adj Factor Scoring'!$E$5:$F$282,,MATCH(G$4,'B. PoF Adj Factor Scoring'!$E$3:$N$3,0)-1),2,TRUE)","v":1},{"$f":"VLOOKUP(C:C,OFFSET('B. PoF Adj Factor Scoring'!$E$5:$F$282,,MATCH(H$4,'B. PoF Adj Factor Scoring'!$E$3:$N$3,0)-1),2,TRUE)","v":1},{"$f":"VLOOKUP(D:D,OFFSET('B. PoF Adj Factor Scoring'!$E$5:$F$282,,MATCH(I$4,'B. PoF Adj Factor Scoring'!$E$3:$N$3,0)-1),2,TRUE)","v":1},{"$f":"VLOOKUP(E:E,OFFSET('B. PoF Adj Factor Scoring'!$E$5:$F$282,,MATCH(J$4,'B. PoF Adj Factor Scoring'!$E$3:$N$3,0)-1),2,TRUE)","v":1},{"$f":"VLOOKUP(F:F,OFFSET('B. PoF Adj Factor Scoring'!$E$5:$F$282,,MATCH(K$4,'B. PoF Adj Factor Scoring'!$E$3:$N$3,0)-1),2,TRUE)","v":1}]
[{"$f":"'A. Population Info'!A168","v":1000349287},{"$f":"'A. Population Info'!G168","v":"OIL"},{"$f":"'A. Population Info'!H168","v":1},{"$f":"'A. Population Info'!I168","v":0},{"$f":"'A. Population Info'!J168","v":0},{"$f":"'A. Population Info'!K168","v":0},{"$f":"VLOOKUP(B:B,OFFSET('B. PoF Adj Factor Scoring'!$E$5:$F$282,,MATCH(G$4,'B. PoF Adj Factor Scoring'!$E$3:$N$3,0)-1),2,TRUE)","v":1},{"$f":"VLOOKUP(C:C,OFFSET('B. PoF Adj Factor Scoring'!$E$5:$F$282,,MATCH(H$4,'B. PoF Adj Factor Scoring'!$E$3:$N$3,0)-1),2,TRUE)","v":1},{"$f":"VLOOKUP(D:D,OFFSET('B. PoF Adj Factor Scoring'!$E$5:$F$282,,MATCH(I$4,'B. PoF Adj Factor Scoring'!$E$3:$N$3,0)-1),2,TRUE)","v":1},{"$f":"VLOOKUP(E:E,OFFSET('B. PoF Adj Factor Scoring'!$E$5:$F$282,,MATCH(J$4,'B. PoF Adj Factor Scoring'!$E$3:$N$3,0)-1),2,TRUE)","v":1},{"$f":"VLOOKUP(F:F,OFFSET('B. PoF Adj Factor Scoring'!$E$5:$F$282,,MATCH(K$4,'B. PoF Adj Factor Scoring'!$E$3:$N$3,0)-1),2,TRUE)","v":1}]
[{"$f":"'A. Population Info'!A169","v":1000349315},{"$f":"'A. Population Info'!G169","v":"OIL"},{"$f":"'A. Population Info'!H169","v":1},{"$f":"'A. Population Info'!I169","v":0},{"$f":"'A. Population Info'!J169","v":0},{"$f":"'A. Population Info'!K169","v":0},{"$f":"VLOOKUP(B:B,OFFSET('B. PoF Adj Factor Scoring'!$E$5:$F$282,,MATCH(G$4,'B. PoF Adj Factor Scoring'!$E$3:$N$3,0)-1),2,TRUE)","v":1},{"$f":"VLOOKUP(C:C,OFFSET('B. PoF Adj Factor Scoring'!$E$5:$F$282,,MATCH(H$4,'B. PoF Adj Factor Scoring'!$E$3:$N$3,0)-1),2,TRUE)","v":1},{"$f":"VLOOKUP(D:D,OFFSET('B. PoF Adj Factor Scoring'!$E$5:$F$282,,MATCH(I$4,'B. PoF Adj Factor Scoring'!$E$3:$N$3,0)-1),2,TRUE)","v":1},{"$f":"VLOOKUP(E:E,OFFSET('B. PoF Adj Factor Scoring'!$E$5:$F$282,,MATCH(J$4,'B. PoF Adj Factor Scoring'!$E$3:$N$3,0)-1),2,TRUE)","v":1},{"$f":"VLOOKUP(F:F,OFFSET('B. PoF Adj Factor Scoring'!$E$5:$F$282,,MATCH(K$4,'B. PoF Adj Factor Scoring'!$E$3:$N$3,0)-1),2,TRUE)","v":1}]
[{"$f":"'A. Population Info'!A170","v":1000349346},{"$f":"'A. Population Info'!G170","v":"OIL"},{"$f":"'A. Population Info'!H170","v":1},{"$f":"'A. Population Info'!I170","v":0},{"$f":"'A. Population Info'!J170","v":0},{"$f":"'A. Population Info'!K170","v":0},{"$f":"VLOOKUP(B:B,OFFSET('B. PoF Adj Factor Scoring'!$E$5:$F$282,,MATCH(G$4,'B. PoF Adj Factor Scoring'!$E$3:$N$3,0)-1),2,TRUE)","v":1},{"$f":"VLOOKUP(C:C,OFFSET('B. PoF Adj Factor Scoring'!$E$5:$F$282,,MATCH(H$4,'B. PoF Adj Factor Scoring'!$E$3:$N$3,0)-1),2,TRUE)","v":1},{"$f":"VLOOKUP(D:D,OFFSET('B. PoF Adj Factor Scoring'!$E$5:$F$282,,MATCH(I$4,'B. PoF Adj Factor Scoring'!$E$3:$N$3,0)-1),2,TRUE)","v":1},{"$f":"VLOOKUP(E:E,OFFSET('B. PoF Adj Factor Scoring'!$E$5:$F$282,,MATCH(J$4,'B. PoF Adj Factor Scoring'!$E$3:$N$3,0)-1),2,TRUE)","v":1},{"$f":"VLOOKUP(F:F,OFFSET('B. PoF Adj Factor Scoring'!$E$5:$F$282,,MATCH(K$4,'B. PoF Adj Factor Scoring'!$E$3:$N$3,0)-1),2,TRUE)","v":1}]
[{"$f":"'A. Population Info'!A171","v":1000349374},{"$f":"'A. Population Info'!G171","v":"OIL"},{"$f":"'A. Population Info'!H171","v":1},{"$f":"'A. Population Info'!I171","v":0},{"$f":"'A. Population Info'!J171","v":0},{"$f":"'A. Population Info'!K171","v":0},{"$f":"VLOOKUP(B:B,OFFSET('B. PoF Adj Factor Scoring'!$E$5:$F$282,,MATCH(G$4,'B. PoF Adj Factor Scoring'!$E$3:$N$3,0)-1),2,TRUE)","v":1},{"$f":"VLOOKUP(C:C,OFFSET('B. PoF Adj Factor Scoring'!$E$5:$F$282,,MATCH(H$4,'B. PoF Adj Factor Scoring'!$E$3:$N$3,0)-1),2,TRUE)","v":1},{"$f":"VLOOKUP(D:D,OFFSET('B. PoF Adj Factor Scoring'!$E$5:$F$282,,MATCH(I$4,'B. PoF Adj Factor Scoring'!$E$3:$N$3,0)-1),2,TRUE)","v":1},{"$f":"VLOOKUP(E:E,OFFSET('B. PoF Adj Factor Scoring'!$E$5:$F$282,,MATCH(J$4,'B. PoF Adj Factor Scoring'!$E$3:$N$3,0)-1),2,TRUE)","v":1},{"$f":"VLOOKUP(F:F,OFFSET('B. PoF Adj Factor Scoring'!$E$5:$F$282,,MATCH(K$4,'B. PoF Adj Factor Scoring'!$E$3:$N$3,0)-1),2,TRUE)","v":1}]
[{"$f":"'A. Population Info'!A172","v":1000349403},{"$f":"'A. Population Info'!G172","v":"OIL"},{"$f":"'A. Population Info'!H172","v":1},{"$f":"'A. Population Info'!I172","v":0},{"$f":"'A. Population Info'!J172","v":0},{"$f":"'A. Population Info'!K172","v":0},{"$f":"VLOOKUP(B:B,OFFSET('B. PoF Adj Factor Scoring'!$E$5:$F$282,,MATCH(G$4,'B. PoF Adj Factor Scoring'!$E$3:$N$3,0)-1),2,TRUE)","v":1},{"$f":"VLOOKUP(C:C,OFFSET('B. PoF Adj Factor Scoring'!$E$5:$F$282,,MATCH(H$4,'B. PoF Adj Factor Scoring'!$E$3:$N$3,0)-1),2,TRUE)","v":1},{"$f":"VLOOKUP(D:D,OFFSET('B. PoF Adj Factor Scoring'!$E$5:$F$282,,MATCH(I$4,'B. PoF Adj Factor Scoring'!$E$3:$N$3,0)-1),2,TRUE)","v":1},{"$f":"VLOOKUP(E:E,OFFSET('B. PoF Adj Factor Scoring'!$E$5:$F$282,,MATCH(J$4,'B. PoF Adj Factor Scoring'!$E$3:$N$3,0)-1),2,TRUE)","v":1},{"$f":"VLOOKUP(F:F,OFFSET('B. PoF Adj Factor Scoring'!$E$5:$F$282,,MATCH(K$4,'B. PoF Adj Factor Scoring'!$E$3:$N$3,0)-1),2,TRUE)","v":1}]
[{"$f":"'A. Population Info'!A173","v":1000349461},{"$f":"'A. Population Info'!G173","v":"OIL"},{"$f":"'A. Population Info'!H173","v":1},{"$f":"'A. Population Info'!I173","v":0},{"$f":"'A. Population Info'!J173","v":0},{"$f":"'A. Population Info'!K173","v":0},{"$f":"VLOOKUP(B:B,OFFSET('B. PoF Adj Factor Scoring'!$E$5:$F$282,,MATCH(G$4,'B. PoF Adj Factor Scoring'!$E$3:$N$3,0)-1),2,TRUE)","v":1},{"$f":"VLOOKUP(C:C,OFFSET('B. PoF Adj Factor Scoring'!$E$5:$F$282,,MATCH(H$4,'B. PoF Adj Factor Scoring'!$E$3:$N$3,0)-1),2,TRUE)","v":1},{"$f":"VLOOKUP(D:D,OFFSET('B. PoF Adj Factor Scoring'!$E$5:$F$282,,MATCH(I$4,'B. PoF Adj Factor Scoring'!$E$3:$N$3,0)-1),2,TRUE)","v":1},{"$f":"VLOOKUP(E:E,OFFSET('B. PoF Adj Factor Scoring'!$E$5:$F$282,,MATCH(J$4,'B. PoF Adj Factor Scoring'!$E$3:$N$3,0)-1),2,TRUE)","v":1},{"$f":"VLOOKUP(F:F,OFFSET('B. PoF Adj Factor Scoring'!$E$5:$F$282,,MATCH(K$4,'B. PoF Adj Factor Scoring'!$E$3:$N$3,0)-1),2,TRUE)","v":1}]
[{"$f":"'A. Population Info'!A174","v":1000349494},{"$f":"'A. Population Info'!G174","v":"OIL"},{"$f":"'A. Population Info'!H174","v":1},{"$f":"'A. Population Info'!I174","v":0},{"$f":"'A. Population Info'!J174","v":0},{"$f":"'A. Population Info'!K174","v":0},{"$f":"VLOOKUP(B:B,OFFSET('B. PoF Adj Factor Scoring'!$E$5:$F$282,,MATCH(G$4,'B. PoF Adj Factor Scoring'!$E$3:$N$3,0)-1),2,TRUE)","v":1},{"$f":"VLOOKUP(C:C,OFFSET('B. PoF Adj Factor Scoring'!$E$5:$F$282,,MATCH(H$4,'B. PoF Adj Factor Scoring'!$E$3:$N$3,0)-1),2,TRUE)","v":1},{"$f":"VLOOKUP(D:D,OFFSET('B. PoF Adj Factor Scoring'!$E$5:$F$282,,MATCH(I$4,'B. PoF Adj Factor Scoring'!$E$3:$N$3,0)-1),2,TRUE)","v":1},{"$f":"VLOOKUP(E:E,OFFSET('B. PoF Adj Factor Scoring'!$E$5:$F$282,,MATCH(J$4,'B. PoF Adj Factor Scoring'!$E$3:$N$3,0)-1),2,TRUE)","v":1},{"$f":"VLOOKUP(F:F,OFFSET('B. PoF Adj Factor Scoring'!$E$5:$F$282,,MATCH(K$4,'B. PoF Adj Factor Scoring'!$E$3:$N$3,0)-1),2,TRUE)","v":1}]
[{"$f":"'A. Population Info'!A175","v":1000349615},{"$f":"'A. Population Info'!G175","v":"OIL"},{"$f":"'A. Population Info'!H175","v":1},{"$f":"'A. Population Info'!I175","v":0},{"$f":"'A. Population Info'!J175","v":0},{"$f":"'A. Population Info'!K175","v":0},{"$f":"VLOOKUP(B:B,OFFSET('B. PoF Adj Factor Scoring'!$E$5:$F$282,,MATCH(G$4,'B. PoF Adj Factor Scoring'!$E$3:$N$3,0)-1),2,TRUE)","v":1},{"$f":"VLOOKUP(C:C,OFFSET('B. PoF Adj Factor Scoring'!$E$5:$F$282,,MATCH(H$4,'B. PoF Adj Factor Scoring'!$E$3:$N$3,0)-1),2,TRUE)","v":1},{"$f":"VLOOKUP(D:D,OFFSET('B. PoF Adj Factor Scoring'!$E$5:$F$282,,MATCH(I$4,'B. PoF Adj Factor Scoring'!$E$3:$N$3,0)-1),2,TRUE)","v":1},{"$f":"VLOOKUP(E:E,OFFSET('B. PoF Adj Factor Scoring'!$E$5:$F$282,,MATCH(J$4,'B. PoF Adj Factor Scoring'!$E$3:$N$3,0)-1),2,TRUE)","v":1},{"$f":"VLOOKUP(F:F,OFFSET('B. PoF Adj Factor Scoring'!$E$5:$F$282,,MATCH(K$4,'B. PoF Adj Factor Scoring'!$E$3:$N$3,0)-1),2,TRUE)","v":1}]
[{"$f":"'A. Population Info'!A176","v":1000349645},{"$f":"'A. Population Info'!G176","v":"OIL"},{"$f":"'A. Population Info'!H176","v":1},{"$f":"'A. Population Info'!I176","v":0},{"$f":"'A. Population Info'!J176","v":0},{"$f":"'A. Population Info'!K176","v":0},{"$f":"VLOOKUP(B:B,OFFSET('B. PoF Adj Factor Scoring'!$E$5:$F$282,,MATCH(G$4,'B. PoF Adj Factor Scoring'!$E$3:$N$3,0)-1),2,TRUE)","v":1},{"$f":"VLOOKUP(C:C,OFFSET('B. PoF Adj Factor Scoring'!$E$5:$F$282,,MATCH(H$4,'B. PoF Adj Factor Scoring'!$E$3:$N$3,0)-1),2,TRUE)","v":1},{"$f":"VLOOKUP(D:D,OFFSET('B. PoF Adj Factor Scoring'!$E$5:$F$282,,MATCH(I$4,'B. PoF Adj Factor Scoring'!$E$3:$N$3,0)-1),2,TRUE)","v":1},{"$f":"VLOOKUP(E:E,OFFSET('B. PoF Adj Factor Scoring'!$E$5:$F$282,,MATCH(J$4,'B. PoF Adj Factor Scoring'!$E$3:$N$3,0)-1),2,TRUE)","v":1},{"$f":"VLOOKUP(F:F,OFFSET('B. PoF Adj Factor Scoring'!$E$5:$F$282,,MATCH(K$4,'B. PoF Adj Factor Scoring'!$E$3:$N$3,0)-1),2,TRUE)","v":1}]
[{"$f":"'A. Population Info'!A177","v":1000349674},{"$f":"'A. Population Info'!G177","v":"OIL"},{"$f":"'A. Population Info'!H177","v":1},{"$f":"'A. Population Info'!I177","v":0},{"$f":"'A. Population Info'!J177","v":0},{"$f":"'A. Population Info'!K177","v":0},{"$f":"VLOOKUP(B:B,OFFSET('B. PoF Adj Factor Scoring'!$E$5:$F$282,,MATCH(G$4,'B. PoF Adj Factor Scoring'!$E$3:$N$3,0)-1),2,TRUE)","v":1},{"$f":"VLOOKUP(C:C,OFFSET('B. PoF Adj Factor Scoring'!$E$5:$F$282,,MATCH(H$4,'B. PoF Adj Factor Scoring'!$E$3:$N$3,0)-1),2,TRUE)","v":1},{"$f":"VLOOKUP(D:D,OFFSET('B. PoF Adj Factor Scoring'!$E$5:$F$282,,MATCH(I$4,'B. PoF Adj Factor Scoring'!$E$3:$N$3,0)-1),2,TRUE)","v":1},{"$f":"VLOOKUP(E:E,OFFSET('B. PoF Adj Factor Scoring'!$E$5:$F$282,,MATCH(J$4,'B. PoF Adj Factor Scoring'!$E$3:$N$3,0)-1),2,TRUE)","v":1},{"$f":"VLOOKUP(F:F,OFFSET('B. PoF Adj Factor Scoring'!$E$5:$F$282,,MATCH(K$4,'B. PoF Adj Factor Scoring'!$E$3:$N$3,0)-1),2,TRUE)","v":1}]
[{"$f":"'A. Population Info'!A178","v":1000349704},{"$f":"'A. Population Info'!G178","v":"OIL"},{"$f":"'A. Population Info'!H178","v":1},{"$f":"'A. Population Info'!I178","v":0},{"$f":"'A. Population Info'!J178","v":0},{"$f":"'A. Population Info'!K178","v":0},{"$f":"VLOOKUP(B:B,OFFSET('B. PoF Adj Factor Scoring'!$E$5:$F$282,,MATCH(G$4,'B. PoF Adj Factor Scoring'!$E$3:$N$3,0)-1),2,TRUE)","v":1},{"$f":"VLOOKUP(C:C,OFFSET('B. PoF Adj Factor Scoring'!$E$5:$F$282,,MATCH(H$4,'B. PoF Adj Factor Scoring'!$E$3:$N$3,0)-1),2,TRUE)","v":1},{"$f":"VLOOKUP(D:D,OFFSET('B. PoF Adj Factor Scoring'!$E$5:$F$282,,MATCH(I$4,'B. PoF Adj Factor Scoring'!$E$3:$N$3,0)-1),2,TRUE)","v":1},{"$f":"VLOOKUP(E:E,OFFSET('B. PoF Adj Factor Scoring'!$E$5:$F$282,,MATCH(J$4,'B. PoF Adj Factor Scoring'!$E$3:$N$3,0)-1),2,TRUE)","v":1},{"$f":"VLOOKUP(F:F,OFFSET('B. PoF Adj Factor Scoring'!$E$5:$F$282,,MATCH(K$4,'B. PoF Adj Factor Scoring'!$E$3:$N$3,0)-1),2,TRUE)","v":1}]
[{"$f":"'A. Population Info'!A179","v":1000349797},{"$f":"'A. Population Info'!G179","v":"OIL"},{"$f":"'A. Population Info'!H179","v":1},{"$f":"'A. Population Info'!I179","v":0},{"$f":"'A. Population Info'!J179","v":0},{"$f":"'A. Population Info'!K179","v":0},{"$f":"VLOOKUP(B:B,OFFSET('B. PoF Adj Factor Scoring'!$E$5:$F$282,,MATCH(G$4,'B. PoF Adj Factor Scoring'!$E$3:$N$3,0)-1),2,TRUE)","v":1},{"$f":"VLOOKUP(C:C,OFFSET('B. PoF Adj Factor Scoring'!$E$5:$F$282,,MATCH(H$4,'B. PoF Adj Factor Scoring'!$E$3:$N$3,0)-1),2,TRUE)","v":1},{"$f":"VLOOKUP(D:D,OFFSET('B. PoF Adj Factor Scoring'!$E$5:$F$282,,MATCH(I$4,'B. PoF Adj Factor Scoring'!$E$3:$N$3,0)-1),2,TRUE)","v":1},{"$f":"VLOOKUP(E:E,OFFSET('B. PoF Adj Factor Scoring'!$E$5:$F$282,,MATCH(J$4,'B. PoF Adj Factor Scoring'!$E$3:$N$3,0)-1),2,TRUE)","v":1},{"$f":"VLOOKUP(F:F,OFFSET('B. PoF Adj Factor Scoring'!$E$5:$F$282,,MATCH(K$4,'B. PoF Adj Factor Scoring'!$E$3:$N$3,0)-1),2,TRUE)","v":1}]
[{"$f":"'A. Population Info'!A180","v":1000349829},{"$f":"'A. Population Info'!G180","v":"OIL"},{"$f":"'A. Population Info'!H180","v":1},{"$f":"'A. Population Info'!I180","v":0},{"$f":"'A. Population Info'!J180","v":0},{"$f":"'A. Population Info'!K180","v":0},{"$f":"VLOOKUP(B:B,OFFSET('B. PoF Adj Factor Scoring'!$E$5:$F$282,,MATCH(G$4,'B. PoF Adj Factor Scoring'!$E$3:$N$3,0)-1),2,TRUE)","v":1},{"$f":"VLOOKUP(C:C,OFFSET('B. PoF Adj Factor Scoring'!$E$5:$F$282,,MATCH(H$4,'B. PoF Adj Factor Scoring'!$E$3:$N$3,0)-1),2,TRUE)","v":1},{"$f":"VLOOKUP(D:D,OFFSET('B. PoF Adj Factor Scoring'!$E$5:$F$282,,MATCH(I$4,'B. PoF Adj Factor Scoring'!$E$3:$N$3,0)-1),2,TRUE)","v":1},{"$f":"VLOOKUP(E:E,OFFSET('B. PoF Adj Factor Scoring'!$E$5:$F$282,,MATCH(J$4,'B. PoF Adj Factor Scoring'!$E$3:$N$3,0)-1),2,TRUE)","v":1},{"$f":"VLOOKUP(F:F,OFFSET('B. PoF Adj Factor Scoring'!$E$5:$F$282,,MATCH(K$4,'B. PoF Adj Factor Scoring'!$E$3:$N$3,0)-1),2,TRUE)","v":1}]
[{"$f":"'A. Population Info'!A181","v":1000349857},{"$f":"'A. Population Info'!G181","v":"OIL"},{"$f":"'A. Population Info'!H181","v":1},{"$f":"'A. Population Info'!I181","v":0},{"$f":"'A. Population Info'!J181","v":0},{"$f":"'A. Population Info'!K181","v":0},{"$f":"VLOOKUP(B:B,OFFSET('B. PoF Adj Factor Scoring'!$E$5:$F$282,,MATCH(G$4,'B. PoF Adj Factor Scoring'!$E$3:$N$3,0)-1),2,TRUE)","v":1},{"$f":"VLOOKUP(C:C,OFFSET('B. PoF Adj Factor Scoring'!$E$5:$F$282,,MATCH(H$4,'B. PoF Adj Factor Scoring'!$E$3:$N$3,0)-1),2,TRUE)","v":1},{"$f":"VLOOKUP(D:D,OFFSET('B. PoF Adj Factor Scoring'!$E$5:$F$282,,MATCH(I$4,'B. PoF Adj Factor Scoring'!$E$3:$N$3,0)-1),2,TRUE)","v":1},{"$f":"VLOOKUP(E:E,OFFSET('B. PoF Adj Factor Scoring'!$E$5:$F$282,,MATCH(J$4,'B. PoF Adj Factor Scoring'!$E$3:$N$3,0)-1),2,TRUE)","v":1},{"$f":"VLOOKUP(F:F,OFFSET('B. PoF Adj Factor Scoring'!$E$5:$F$282,,MATCH(K$4,'B. PoF Adj Factor Scoring'!$E$3:$N$3,0)-1),2,TRUE)","v":1}]
[{"$f":"'A. Population Info'!A182","v":1000349884},{"$f":"'A. Population Info'!G182","v":"OIL"},{"$f":"'A. Population Info'!H182","v":1},{"$f":"'A. Population Info'!I182","v":0},{"$f":"'A. Population Info'!J182","v":0},{"$f":"'A. Population Info'!K182","v":0},{"$f":"VLOOKUP(B:B,OFFSET('B. PoF Adj Factor Scoring'!$E$5:$F$282,,MATCH(G$4,'B. PoF Adj Factor Scoring'!$E$3:$N$3,0)-1),2,TRUE)","v":1},{"$f":"VLOOKUP(C:C,OFFSET('B. PoF Adj Factor Scoring'!$E$5:$F$282,,MATCH(H$4,'B. PoF Adj Factor Scoring'!$E$3:$N$3,0)-1),2,TRUE)","v":1},{"$f":"VLOOKUP(D:D,OFFSET('B. PoF Adj Factor Scoring'!$E$5:$F$282,,MATCH(I$4,'B. PoF Adj Factor Scoring'!$E$3:$N$3,0)-1),2,TRUE)","v":1},{"$f":"VLOOKUP(E:E,OFFSET('B. PoF Adj Factor Scoring'!$E$5:$F$282,,MATCH(J$4,'B. PoF Adj Factor Scoring'!$E$3:$N$3,0)-1),2,TRUE)","v":1},{"$f":"VLOOKUP(F:F,OFFSET('B. PoF Adj Factor Scoring'!$E$5:$F$282,,MATCH(K$4,'B. PoF Adj Factor Scoring'!$E$3:$N$3,0)-1),2,TRUE)","v":1}]
[{"$f":"'A. Population Info'!A183","v":1000349913},{"$f":"'A. Population Info'!G183","v":"OIL"},{"$f":"'A. Population Info'!H183","v":1},{"$f":"'A. Population Info'!I183","v":0},{"$f":"'A. Population Info'!J183","v":0},{"$f":"'A. Population Info'!K183","v":0},{"$f":"VLOOKUP(B:B,OFFSET('B. PoF Adj Factor Scoring'!$E$5:$F$282,,MATCH(G$4,'B. PoF Adj Factor Scoring'!$E$3:$N$3,0)-1),2,TRUE)","v":1},{"$f":"VLOOKUP(C:C,OFFSET('B. PoF Adj Factor Scoring'!$E$5:$F$282,,MATCH(H$4,'B. PoF Adj Factor Scoring'!$E$3:$N$3,0)-1),2,TRUE)","v":1},{"$f":"VLOOKUP(D:D,OFFSET('B. PoF Adj Factor Scoring'!$E$5:$F$282,,MATCH(I$4,'B. PoF Adj Factor Scoring'!$E$3:$N$3,0)-1),2,TRUE)","v":1},{"$f":"VLOOKUP(E:E,OFFSET('B. PoF Adj Factor Scoring'!$E$5:$F$282,,MATCH(J$4,'B. PoF Adj Factor Scoring'!$E$3:$N$3,0)-1),2,TRUE)","v":1},{"$f":"VLOOKUP(F:F,OFFSET('B. PoF Adj Factor Scoring'!$E$5:$F$282,,MATCH(K$4,'B. PoF Adj Factor Scoring'!$E$3:$N$3,0)-1),2,TRUE)","v":1}]
[{"$f":"'A. Population Info'!A184","v":1000349939},{"$f":"'A. Population Info'!G184","v":"OIL"},{"$f":"'A. Population Info'!H184","v":3},{"$f":"'A. Population Info'!I184","v":0},{"$f":"'A. Population Info'!J184","v":0},{"$f":"'A. Population Info'!K184","v":0},{"$f":"VLOOKUP(B:B,OFFSET('B. PoF Adj Factor Scoring'!$E$5:$F$282,,MATCH(G$4,'B. PoF Adj Factor Scoring'!$E$3:$N$3,0)-1),2,TRUE)","v":1},{"$f":"VLOOKUP(C:C,OFFSET('B. PoF Adj Factor Scoring'!$E$5:$F$282,,MATCH(H$4,'B. PoF Adj Factor Scoring'!$E$3:$N$3,0)-1),2,TRUE)","v":3},{"$f":"VLOOKUP(D:D,OFFSET('B. PoF Adj Factor Scoring'!$E$5:$F$282,,MATCH(I$4,'B. PoF Adj Factor Scoring'!$E$3:$N$3,0)-1),2,TRUE)","v":1},{"$f":"VLOOKUP(E:E,OFFSET('B. PoF Adj Factor Scoring'!$E$5:$F$282,,MATCH(J$4,'B. PoF Adj Factor Scoring'!$E$3:$N$3,0)-1),2,TRUE)","v":1},{"$f":"VLOOKUP(F:F,OFFSET('B. PoF Adj Factor Scoring'!$E$5:$F$282,,MATCH(K$4,'B. PoF Adj Factor Scoring'!$E$3:$N$3,0)-1),2,TRUE)","v":1}]
[{"$f":"'A. Population Info'!A185","v":1000349972},{"$f":"'A. Population Info'!G185","v":"OIL"},{"$f":"'A. Population Info'!H185","v":2},{"$f":"'A. Population Info'!I185","v":0},{"$f":"'A. Population Info'!J185","v":0},{"$f":"'A. Population Info'!K185","v":0},{"$f":"VLOOKUP(B:B,OFFSET('B. PoF Adj Factor Scoring'!$E$5:$F$282,,MATCH(G$4,'B. PoF Adj Factor Scoring'!$E$3:$N$3,0)-1),2,TRUE)","v":1},{"$f":"VLOOKUP(C:C,OFFSET('B. PoF Adj Factor Scoring'!$E$5:$F$282,,MATCH(H$4,'B. PoF Adj Factor Scoring'!$E$3:$N$3,0)-1),2,TRUE)","v":2},{"$f":"VLOOKUP(D:D,OFFSET('B. PoF Adj Factor Scoring'!$E$5:$F$282,,MATCH(I$4,'B. PoF Adj Factor Scoring'!$E$3:$N$3,0)-1),2,TRUE)","v":1},{"$f":"VLOOKUP(E:E,OFFSET('B. PoF Adj Factor Scoring'!$E$5:$F$282,,MATCH(J$4,'B. PoF Adj Factor Scoring'!$E$3:$N$3,0)-1),2,TRUE)","v":1},{"$f":"VLOOKUP(F:F,OFFSET('B. PoF Adj Factor Scoring'!$E$5:$F$282,,MATCH(K$4,'B. PoF Adj Factor Scoring'!$E$3:$N$3,0)-1),2,TRUE)","v":1}]
[{"$f":"'A. Population Info'!A186","v":1000353004},{"$f":"'A. Population Info'!G186","v":"OIL"},{"$f":"'A. Population Info'!H186","v":1},{"$f":"'A. Population Info'!I186","v":0},{"$f":"'A. Population Info'!J186","v":0},{"$f":"'A. Population Info'!K186","v":0},{"$f":"VLOOKUP(B:B,OFFSET('B. PoF Adj Factor Scoring'!$E$5:$F$282,,MATCH(G$4,'B. PoF Adj Factor Scoring'!$E$3:$N$3,0)-1),2,TRUE)","v":1},{"$f":"VLOOKUP(C:C,OFFSET('B. PoF Adj Factor Scoring'!$E$5:$F$282,,MATCH(H$4,'B. PoF Adj Factor Scoring'!$E$3:$N$3,0)-1),2,TRUE)","v":1},{"$f":"VLOOKUP(D:D,OFFSET('B. PoF Adj Factor Scoring'!$E$5:$F$282,,MATCH(I$4,'B. PoF Adj Factor Scoring'!$E$3:$N$3,0)-1),2,TRUE)","v":1},{"$f":"VLOOKUP(E:E,OFFSET('B. PoF Adj Factor Scoring'!$E$5:$F$282,,MATCH(J$4,'B. PoF Adj Factor Scoring'!$E$3:$N$3,0)-1),2,TRUE)","v":1},{"$f":"VLOOKUP(F:F,OFFSET('B. PoF Adj Factor Scoring'!$E$5:$F$282,,MATCH(K$4,'B. PoF Adj Factor Scoring'!$E$3:$N$3,0)-1),2,TRUE)","v":1}]
[{"$f":"'A. Population Info'!A187","v":1000353037},{"$f":"'A. Population Info'!G187","v":"OIL"},{"$f":"'A. Population Info'!H187","v":1},{"$f":"'A. Population Info'!I187","v":0},{"$f":"'A. Population Info'!J187","v":0},{"$f":"'A. Population Info'!K187","v":0},{"$f":"VLOOKUP(B:B,OFFSET('B. PoF Adj Factor Scoring'!$E$5:$F$282,,MATCH(G$4,'B. PoF Adj Factor Scoring'!$E$3:$N$3,0)-1),2,TRUE)","v":1},{"$f":"VLOOKUP(C:C,OFFSET('B. PoF Adj Factor Scoring'!$E$5:$F$282,,MATCH(H$4,'B. PoF Adj Factor Scoring'!$E$3:$N$3,0)-1),2,TRUE)","v":1},{"$f":"VLOOKUP(D:D,OFFSET('B. PoF Adj Factor Scoring'!$E$5:$F$282,,MATCH(I$4,'B. PoF Adj Factor Scoring'!$E$3:$N$3,0)-1),2,TRUE)","v":1},{"$f":"VLOOKUP(E:E,OFFSET('B. PoF Adj Factor Scoring'!$E$5:$F$282,,MATCH(J$4,'B. PoF Adj Factor Scoring'!$E$3:$N$3,0)-1),2,TRUE)","v":1},{"$f":"VLOOKUP(F:F,OFFSET('B. PoF Adj Factor Scoring'!$E$5:$F$282,,MATCH(K$4,'B. PoF Adj Factor Scoring'!$E$3:$N$3,0)-1),2,TRUE)","v":1}]
[{"$f":"'A. Population Info'!A188","v":1000353068},{"$f":"'A. Population Info'!G188","v":"OIL"},{"$f":"'A. Population Info'!H188","v":1},{"$f":"'A. Population Info'!I188","v":0},{"$f":"'A. Population Info'!J188","v":0},{"$f":"'A. Population Info'!K188","v":0},{"$f":"VLOOKUP(B:B,OFFSET('B. PoF Adj Factor Scoring'!$E$5:$F$282,,MATCH(G$4,'B. PoF Adj Factor Scoring'!$E$3:$N$3,0)-1),2,TRUE)","v":1},{"$f":"VLOOKUP(C:C,OFFSET('B. PoF Adj Factor Scoring'!$E$5:$F$282,,MATCH(H$4,'B. PoF Adj Factor Scoring'!$E$3:$N$3,0)-1),2,TRUE)","v":1},{"$f":"VLOOKUP(D:D,OFFSET('B. PoF Adj Factor Scoring'!$E$5:$F$282,,MATCH(I$4,'B. PoF Adj Factor Scoring'!$E$3:$N$3,0)-1),2,TRUE)","v":1},{"$f":"VLOOKUP(E:E,OFFSET('B. PoF Adj Factor Scoring'!$E$5:$F$282,,MATCH(J$4,'B. PoF Adj Factor Scoring'!$E$3:$N$3,0)-1),2,TRUE)","v":1},{"$f":"VLOOKUP(F:F,OFFSET('B. PoF Adj Factor Scoring'!$E$5:$F$282,,MATCH(K$4,'B. PoF Adj Factor Scoring'!$E$3:$N$3,0)-1),2,TRUE)","v":1}]
[{"$f":"'A. Population Info'!A189","v":1000353101},{"$f":"'A. Population Info'!G189","v":"OIL"},{"$f":"'A. Population Info'!H189","v":1},{"$f":"'A. Population Info'!I189","v":0},{"$f":"'A. Population Info'!J189","v":0},{"$f":"'A. Population Info'!K189","v":0},{"$f":"VLOOKUP(B:B,OFFSET('B. PoF Adj Factor Scoring'!$E$5:$F$282,,MATCH(G$4,'B. PoF Adj Factor Scoring'!$E$3:$N$3,0)-1),2,TRUE)","v":1},{"$f":"VLOOKUP(C:C,OFFSET('B. PoF Adj Factor Scoring'!$E$5:$F$282,,MATCH(H$4,'B. PoF Adj Factor Scoring'!$E$3:$N$3,0)-1),2,TRUE)","v":1},{"$f":"VLOOKUP(D:D,OFFSET('B. PoF Adj Factor Scoring'!$E$5:$F$282,,MATCH(I$4,'B. PoF Adj Factor Scoring'!$E$3:$N$3,0)-1),2,TRUE)","v":1},{"$f":"VLOOKUP(E:E,OFFSET('B. PoF Adj Factor Scoring'!$E$5:$F$282,,MATCH(J$4,'B. PoF Adj Factor Scoring'!$E$3:$N$3,0)-1),2,TRUE)","v":1},{"$f":"VLOOKUP(F:F,OFFSET('B. PoF Adj Factor Scoring'!$E$5:$F$282,,MATCH(K$4,'B. PoF Adj Factor Scoring'!$E$3:$N$3,0)-1),2,TRUE)","v":1}]
[{"$f":"'A. Population Info'!A190","v":1000353135},{"$f":"'A. Population Info'!G190","v":"OIL"},{"$f":"'A. Population Info'!H190","v":1},{"$f":"'A. Population Info'!I190","v":0},{"$f":"'A. Population Info'!J190","v":0},{"$f":"'A. Population Info'!K190","v":0},{"$f":"VLOOKUP(B:B,OFFSET('B. PoF Adj Factor Scoring'!$E$5:$F$282,,MATCH(G$4,'B. PoF Adj Factor Scoring'!$E$3:$N$3,0)-1),2,TRUE)","v":1},{"$f":"VLOOKUP(C:C,OFFSET('B. PoF Adj Factor Scoring'!$E$5:$F$282,,MATCH(H$4,'B. PoF Adj Factor Scoring'!$E$3:$N$3,0)-1),2,TRUE)","v":1},{"$f":"VLOOKUP(D:D,OFFSET('B. PoF Adj Factor Scoring'!$E$5:$F$282,,MATCH(I$4,'B. PoF Adj Factor Scoring'!$E$3:$N$3,0)-1),2,TRUE)","v":1},{"$f":"VLOOKUP(E:E,OFFSET('B. PoF Adj Factor Scoring'!$E$5:$F$282,,MATCH(J$4,'B. PoF Adj Factor Scoring'!$E$3:$N$3,0)-1),2,TRUE)","v":1},{"$f":"VLOOKUP(F:F,OFFSET('B. PoF Adj Factor Scoring'!$E$5:$F$282,,MATCH(K$4,'B. PoF Adj Factor Scoring'!$E$3:$N$3,0)-1),2,TRUE)","v":1}]
[{"$f":"'A. Population Info'!A191","v":1000353167},{"$f":"'A. Population Info'!G191","v":"OIL"},{"$f":"'A. Population Info'!H191","v":1},{"$f":"'A. Population Info'!I191","v":0},{"$f":"'A. Population Info'!J191","v":0},{"$f":"'A. Population Info'!K191","v":0},{"$f":"VLOOKUP(B:B,OFFSET('B. PoF Adj Factor Scoring'!$E$5:$F$282,,MATCH(G$4,'B. PoF Adj Factor Scoring'!$E$3:$N$3,0)-1),2,TRUE)","v":1},{"$f":"VLOOKUP(C:C,OFFSET('B. PoF Adj Factor Scoring'!$E$5:$F$282,,MATCH(H$4,'B. PoF Adj Factor Scoring'!$E$3:$N$3,0)-1),2,TRUE)","v":1},{"$f":"VLOOKUP(D:D,OFFSET('B. PoF Adj Factor Scoring'!$E$5:$F$282,,MATCH(I$4,'B. PoF Adj Factor Scoring'!$E$3:$N$3,0)-1),2,TRUE)","v":1},{"$f":"VLOOKUP(E:E,OFFSET('B. PoF Adj Factor Scoring'!$E$5:$F$282,,MATCH(J$4,'B. PoF Adj Factor Scoring'!$E$3:$N$3,0)-1),2,TRUE)","v":1},{"$f":"VLOOKUP(F:F,OFFSET('B. PoF Adj Factor Scoring'!$E$5:$F$282,,MATCH(K$4,'B. PoF Adj Factor Scoring'!$E$3:$N$3,0)-1),2,TRUE)","v":1}]
[{"$f":"'A. Population Info'!A192","v":1000353227},{"$f":"'A. Population Info'!G192","v":"OIL"},{"$f":"'A. Population Info'!H192","v":1},{"$f":"'A. Population Info'!I192","v":0},{"$f":"'A. Population Info'!J192","v":0},{"$f":"'A. Population Info'!K192","v":0},{"$f":"VLOOKUP(B:B,OFFSET('B. PoF Adj Factor Scoring'!$E$5:$F$282,,MATCH(G$4,'B. PoF Adj Factor Scoring'!$E$3:$N$3,0)-1),2,TRUE)","v":1},{"$f":"VLOOKUP(C:C,OFFSET('B. PoF Adj Factor Scoring'!$E$5:$F$282,,MATCH(H$4,'B. PoF Adj Factor Scoring'!$E$3:$N$3,0)-1),2,TRUE)","v":1},{"$f":"VLOOKUP(D:D,OFFSET('B. PoF Adj Factor Scoring'!$E$5:$F$282,,MATCH(I$4,'B. PoF Adj Factor Scoring'!$E$3:$N$3,0)-1),2,TRUE)","v":1},{"$f":"VLOOKUP(E:E,OFFSET('B. PoF Adj Factor Scoring'!$E$5:$F$282,,MATCH(J$4,'B. PoF Adj Factor Scoring'!$E$3:$N$3,0)-1),2,TRUE)","v":1},{"$f":"VLOOKUP(F:F,OFFSET('B. PoF Adj Factor Scoring'!$E$5:$F$282,,MATCH(K$4,'B. PoF Adj Factor Scoring'!$E$3:$N$3,0)-1),2,TRUE)","v":1}]
[{"$f":"'A. Population Info'!A193","v":1000353258},{"$f":"'A. Population Info'!G193","v":"OIL"},{"$f":"'A. Population Info'!H193","v":1},{"$f":"'A. Population Info'!I193","v":0},{"$f":"'A. Population Info'!J193","v":0},{"$f":"'A. Population Info'!K193","v":0},{"$f":"VLOOKUP(B:B,OFFSET('B. PoF Adj Factor Scoring'!$E$5:$F$282,,MATCH(G$4,'B. PoF Adj Factor Scoring'!$E$3:$N$3,0)-1),2,TRUE)","v":1},{"$f":"VLOOKUP(C:C,OFFSET('B. PoF Adj Factor Scoring'!$E$5:$F$282,,MATCH(H$4,'B. PoF Adj Factor Scoring'!$E$3:$N$3,0)-1),2,TRUE)","v":1},{"$f":"VLOOKUP(D:D,OFFSET('B. PoF Adj Factor Scoring'!$E$5:$F$282,,MATCH(I$4,'B. PoF Adj Factor Scoring'!$E$3:$N$3,0)-1),2,TRUE)","v":1},{"$f":"VLOOKUP(E:E,OFFSET('B. PoF Adj Factor Scoring'!$E$5:$F$282,,MATCH(J$4,'B. PoF Adj Factor Scoring'!$E$3:$N$3,0)-1),2,TRUE)","v":1},{"$f":"VLOOKUP(F:F,OFFSET('B. PoF Adj Factor Scoring'!$E$5:$F$282,,MATCH(K$4,'B. PoF Adj Factor Scoring'!$E$3:$N$3,0)-1),2,TRUE)","v":1}]
[{"$f":"'A. Population Info'!A194","v":1000353287},{"$f":"'A. Population Info'!G194","v":"OIL"},{"$f":"'A. Population Info'!H194","v":1},{"$f":"'A. Population Info'!I194","v":0},{"$f":"'A. Population Info'!J194","v":0},{"$f":"'A. Population Info'!K194","v":0},{"$f":"VLOOKUP(B:B,OFFSET('B. PoF Adj Factor Scoring'!$E$5:$F$282,,MATCH(G$4,'B. PoF Adj Factor Scoring'!$E$3:$N$3,0)-1),2,TRUE)","v":1},{"$f":"VLOOKUP(C:C,OFFSET('B. PoF Adj Factor Scoring'!$E$5:$F$282,,MATCH(H$4,'B. PoF Adj Factor Scoring'!$E$3:$N$3,0)-1),2,TRUE)","v":1},{"$f":"VLOOKUP(D:D,OFFSET('B. PoF Adj Factor Scoring'!$E$5:$F$282,,MATCH(I$4,'B. PoF Adj Factor Scoring'!$E$3:$N$3,0)-1),2,TRUE)","v":1},{"$f":"VLOOKUP(E:E,OFFSET('B. PoF Adj Factor Scoring'!$E$5:$F$282,,MATCH(J$4,'B. PoF Adj Factor Scoring'!$E$3:$N$3,0)-1),2,TRUE)","v":1},{"$f":"VLOOKUP(F:F,OFFSET('B. PoF Adj Factor Scoring'!$E$5:$F$282,,MATCH(K$4,'B. PoF Adj Factor Scoring'!$E$3:$N$3,0)-1),2,TRUE)","v":1}]
[{"$f":"'A. Population Info'!A195","v":1000353314},{"$f":"'A. Population Info'!G195","v":"OIL"},{"$f":"'A. Population Info'!H195","v":1},{"$f":"'A. Population Info'!I195","v":0},{"$f":"'A. Population Info'!J195","v":0},{"$f":"'A. Population Info'!K195","v":0},{"$f":"VLOOKUP(B:B,OFFSET('B. PoF Adj Factor Scoring'!$E$5:$F$282,,MATCH(G$4,'B. PoF Adj Factor Scoring'!$E$3:$N$3,0)-1),2,TRUE)","v":1},{"$f":"VLOOKUP(C:C,OFFSET('B. PoF Adj Factor Scoring'!$E$5:$F$282,,MATCH(H$4,'B. PoF Adj Factor Scoring'!$E$3:$N$3,0)-1),2,TRUE)","v":1},{"$f":"VLOOKUP(D:D,OFFSET('B. PoF Adj Factor Scoring'!$E$5:$F$282,,MATCH(I$4,'B. PoF Adj Factor Scoring'!$E$3:$N$3,0)-1),2,TRUE)","v":1},{"$f":"VLOOKUP(E:E,OFFSET('B. PoF Adj Factor Scoring'!$E$5:$F$282,,MATCH(J$4,'B. PoF Adj Factor Scoring'!$E$3:$N$3,0)-1),2,TRUE)","v":1},{"$f":"VLOOKUP(F:F,OFFSET('B. PoF Adj Factor Scoring'!$E$5:$F$282,,MATCH(K$4,'B. PoF Adj Factor Scoring'!$E$3:$N$3,0)-1),2,TRUE)","v":1}]
[{"$f":"'A. Population Info'!A196","v":1000353347},{"$f":"'A. Population Info'!G196","v":"OIL"},{"$f":"'A. Population Info'!H196","v":1},{"$f":"'A. Population Info'!I196","v":0},{"$f":"'A. Population Info'!J196","v":0},{"$f":"'A. Population Info'!K196","v":0},{"$f":"VLOOKUP(B:B,OFFSET('B. PoF Adj Factor Scoring'!$E$5:$F$282,,MATCH(G$4,'B. PoF Adj Factor Scoring'!$E$3:$N$3,0)-1),2,TRUE)","v":1},{"$f":"VLOOKUP(C:C,OFFSET('B. PoF Adj Factor Scoring'!$E$5:$F$282,,MATCH(H$4,'B. PoF Adj Factor Scoring'!$E$3:$N$3,0)-1),2,TRUE)","v":1},{"$f":"VLOOKUP(D:D,OFFSET('B. PoF Adj Factor Scoring'!$E$5:$F$282,,MATCH(I$4,'B. PoF Adj Factor Scoring'!$E$3:$N$3,0)-1),2,TRUE)","v":1},{"$f":"VLOOKUP(E:E,OFFSET('B. PoF Adj Factor Scoring'!$E$5:$F$282,,MATCH(J$4,'B. PoF Adj Factor Scoring'!$E$3:$N$3,0)-1),2,TRUE)","v":1},{"$f":"VLOOKUP(F:F,OFFSET('B. PoF Adj Factor Scoring'!$E$5:$F$282,,MATCH(K$4,'B. PoF Adj Factor Scoring'!$E$3:$N$3,0)-1),2,TRUE)","v":1}]
[{"$f":"'A. Population Info'!A197","v":1000353379},{"$f":"'A. Population Info'!G197","v":"OIL"},{"$f":"'A. Population Info'!H197","v":3},{"$f":"'A. Population Info'!I197","v":0},{"$f":"'A. Population Info'!J197","v":0},{"$f":"'A. Population Info'!K197","v":0},{"$f":"VLOOKUP(B:B,OFFSET('B. PoF Adj Factor Scoring'!$E$5:$F$282,,MATCH(G$4,'B. PoF Adj Factor Scoring'!$E$3:$N$3,0)-1),2,TRUE)","v":1},{"$f":"VLOOKUP(C:C,OFFSET('B. PoF Adj Factor Scoring'!$E$5:$F$282,,MATCH(H$4,'B. PoF Adj Factor Scoring'!$E$3:$N$3,0)-1),2,TRUE)","v":3},{"$f":"VLOOKUP(D:D,OFFSET('B. PoF Adj Factor Scoring'!$E$5:$F$282,,MATCH(I$4,'B. PoF Adj Factor Scoring'!$E$3:$N$3,0)-1),2,TRUE)","v":1},{"$f":"VLOOKUP(E:E,OFFSET('B. PoF Adj Factor Scoring'!$E$5:$F$282,,MATCH(J$4,'B. PoF Adj Factor Scoring'!$E$3:$N$3,0)-1),2,TRUE)","v":1},{"$f":"VLOOKUP(F:F,OFFSET('B. PoF Adj Factor Scoring'!$E$5:$F$282,,MATCH(K$4,'B. PoF Adj Factor Scoring'!$E$3:$N$3,0)-1),2,TRUE)","v":1}]
[{"$f":"'A. Population Info'!A198","v":1000353459},{"$f":"'A. Population Info'!G198","v":"OIL"},{"$f":"'A. Population Info'!H198","v":1},{"$f":"'A. Population Info'!I198","v":0},{"$f":"'A. Population Info'!J198","v":0},{"$f":"'A. Population Info'!K198","v":0},{"$f":"VLOOKUP(B:B,OFFSET('B. PoF Adj Factor Scoring'!$E$5:$F$282,,MATCH(G$4,'B. PoF Adj Factor Scoring'!$E$3:$N$3,0)-1),2,TRUE)","v":1},{"$f":"VLOOKUP(C:C,OFFSET('B. PoF Adj Factor Scoring'!$E$5:$F$282,,MATCH(H$4,'B. PoF Adj Factor Scoring'!$E$3:$N$3,0)-1),2,TRUE)","v":1},{"$f":"VLOOKUP(D:D,OFFSET('B. PoF Adj Factor Scoring'!$E$5:$F$282,,MATCH(I$4,'B. PoF Adj Factor Scoring'!$E$3:$N$3,0)-1),2,TRUE)","v":1},{"$f":"VLOOKUP(E:E,OFFSET('B. PoF Adj Factor Scoring'!$E$5:$F$282,,MATCH(J$4,'B. PoF Adj Factor Scoring'!$E$3:$N$3,0)-1),2,TRUE)","v":1},{"$f":"VLOOKUP(F:F,OFFSET('B. PoF Adj Factor Scoring'!$E$5:$F$282,,MATCH(K$4,'B. PoF Adj Factor Scoring'!$E$3:$N$3,0)-1),2,TRUE)","v":1}]
[{"$f":"'A. Population Info'!A199","v":1000353491},{"$f":"'A. Population Info'!G199","v":"OIL"},{"$f":"'A. Population Info'!H199","v":1},{"$f":"'A. Population Info'!I199","v":0},{"$f":"'A. Population Info'!J199","v":0},{"$f":"'A. Population Info'!K199","v":0},{"$f":"VLOOKUP(B:B,OFFSET('B. PoF Adj Factor Scoring'!$E$5:$F$282,,MATCH(G$4,'B. PoF Adj Factor Scoring'!$E$3:$N$3,0)-1),2,TRUE)","v":1},{"$f":"VLOOKUP(C:C,OFFSET('B. PoF Adj Factor Scoring'!$E$5:$F$282,,MATCH(H$4,'B. PoF Adj Factor Scoring'!$E$3:$N$3,0)-1),2,TRUE)","v":1},{"$f":"VLOOKUP(D:D,OFFSET('B. PoF Adj Factor Scoring'!$E$5:$F$282,,MATCH(I$4,'B. PoF Adj Factor Scoring'!$E$3:$N$3,0)-1),2,TRUE)","v":1},{"$f":"VLOOKUP(E:E,OFFSET('B. PoF Adj Factor Scoring'!$E$5:$F$282,,MATCH(J$4,'B. PoF Adj Factor Scoring'!$E$3:$N$3,0)-1),2,TRUE)","v":1},{"$f":"VLOOKUP(F:F,OFFSET('B. PoF Adj Factor Scoring'!$E$5:$F$282,,MATCH(K$4,'B. PoF Adj Factor Scoring'!$E$3:$N$3,0)-1),2,TRUE)","v":1}]
[{"$f":"'A. Population Info'!A200","v":1000353523},{"$f":"'A. Population Info'!G200","v":"OIL"},{"$f":"'A. Population Info'!H200","v":1},{"$f":"'A. Population Info'!I200","v":0},{"$f":"'A. Population Info'!J200","v":0},{"$f":"'A. Population Info'!K200","v":0},{"$f":"VLOOKUP(B:B,OFFSET('B. PoF Adj Factor Scoring'!$E$5:$F$282,,MATCH(G$4,'B. PoF Adj Factor Scoring'!$E$3:$N$3,0)-1),2,TRUE)","v":1},{"$f":"VLOOKUP(C:C,OFFSET('B. PoF Adj Factor Scoring'!$E$5:$F$282,,MATCH(H$4,'B. PoF Adj Factor Scoring'!$E$3:$N$3,0)-1),2,TRUE)","v":1},{"$f":"VLOOKUP(D:D,OFFSET('B. PoF Adj Factor Scoring'!$E$5:$F$282,,MATCH(I$4,'B. PoF Adj Factor Scoring'!$E$3:$N$3,0)-1),2,TRUE)","v":1},{"$f":"VLOOKUP(E:E,OFFSET('B. PoF Adj Factor Scoring'!$E$5:$F$282,,MATCH(J$4,'B. PoF Adj Factor Scoring'!$E$3:$N$3,0)-1),2,TRUE)","v":1},{"$f":"VLOOKUP(F:F,OFFSET('B. PoF Adj Factor Scoring'!$E$5:$F$282,,MATCH(K$4,'B. PoF Adj Factor Scoring'!$E$3:$N$3,0)-1),2,TRUE)","v":1}]
[{"$f":"'A. Population Info'!A201","v":1000353554},{"$f":"'A. Population Info'!G201","v":"OIL"},{"$f":"'A. Population Info'!H201","v":1},{"$f":"'A. Population Info'!I201","v":0},{"$f":"'A. Population Info'!J201","v":0},{"$f":"'A. Population Info'!K201","v":0},{"$f":"VLOOKUP(B:B,OFFSET('B. PoF Adj Factor Scoring'!$E$5:$F$282,,MATCH(G$4,'B. PoF Adj Factor Scoring'!$E$3:$N$3,0)-1),2,TRUE)","v":1},{"$f":"VLOOKUP(C:C,OFFSET('B. PoF Adj Factor Scoring'!$E$5:$F$282,,MATCH(H$4,'B. PoF Adj Factor Scoring'!$E$3:$N$3,0)-1),2,TRUE)","v":1},{"$f":"VLOOKUP(D:D,OFFSET('B. PoF Adj Factor Scoring'!$E$5:$F$282,,MATCH(I$4,'B. PoF Adj Factor Scoring'!$E$3:$N$3,0)-1),2,TRUE)","v":1},{"$f":"VLOOKUP(E:E,OFFSET('B. PoF Adj Factor Scoring'!$E$5:$F$282,,MATCH(J$4,'B. PoF Adj Factor Scoring'!$E$3:$N$3,0)-1),2,TRUE)","v":1},{"$f":"VLOOKUP(F:F,OFFSET('B. PoF Adj Factor Scoring'!$E$5:$F$282,,MATCH(K$4,'B. PoF Adj Factor Scoring'!$E$3:$N$3,0)-1),2,TRUE)","v":1}]
[{"$f":"'A. Population Info'!A202","v":1000353588},{"$f":"'A. Population Info'!G202","v":"OIL"},{"$f":"'A. Population Info'!H202","v":1},{"$f":"'A. Population Info'!I202","v":250},{"$f":"'A. Population Info'!J202","v":0},{"$f":"'A. Population Info'!K202","v":0},{"$f":"VLOOKUP(B:B,OFFSET('B. PoF Adj Factor Scoring'!$E$5:$F$282,,MATCH(G$4,'B. PoF Adj Factor Scoring'!$E$3:$N$3,0)-1),2,TRUE)","v":1},{"$f":"VLOOKUP(C:C,OFFSET('B. PoF Adj Factor Scoring'!$E$5:$F$282,,MATCH(H$4,'B. PoF Adj Factor Scoring'!$E$3:$N$3,0)-1),2,TRUE)","v":1},{"$f":"VLOOKUP(D:D,OFFSET('B. PoF Adj Factor Scoring'!$E$5:$F$282,,MATCH(I$4,'B. PoF Adj Factor Scoring'!$E$3:$N$3,0)-1),2,TRUE)","v":1},{"$f":"VLOOKUP(E:E,OFFSET('B. PoF Adj Factor Scoring'!$E$5:$F$282,,MATCH(J$4,'B. PoF Adj Factor Scoring'!$E$3:$N$3,0)-1),2,TRUE)","v":1},{"$f":"VLOOKUP(F:F,OFFSET('B. PoF Adj Factor Scoring'!$E$5:$F$282,,MATCH(K$4,'B. PoF Adj Factor Scoring'!$E$3:$N$3,0)-1),2,TRUE)","v":1}]
[{"$f":"'A. Population Info'!A203","v":1000353620},{"$f":"'A. Population Info'!G203","v":"OIL"},{"$f":"'A. Population Info'!H203","v":1},{"$f":"'A. Population Info'!I203","v":0},{"$f":"'A. Population Info'!J203","v":0},{"$f":"'A. Population Info'!K203","v":0},{"$f":"VLOOKUP(B:B,OFFSET('B. PoF Adj Factor Scoring'!$E$5:$F$282,,MATCH(G$4,'B. PoF Adj Factor Scoring'!$E$3:$N$3,0)-1),2,TRUE)","v":1},{"$f":"VLOOKUP(C:C,OFFSET('B. PoF Adj Factor Scoring'!$E$5:$F$282,,MATCH(H$4,'B. PoF Adj Factor Scoring'!$E$3:$N$3,0)-1),2,TRUE)","v":1},{"$f":"VLOOKUP(D:D,OFFSET('B. PoF Adj Factor Scoring'!$E$5:$F$282,,MATCH(I$4,'B. PoF Adj Factor Scoring'!$E$3:$N$3,0)-1),2,TRUE)","v":1},{"$f":"VLOOKUP(E:E,OFFSET('B. PoF Adj Factor Scoring'!$E$5:$F$282,,MATCH(J$4,'B. PoF Adj Factor Scoring'!$E$3:$N$3,0)-1),2,TRUE)","v":1},{"$f":"VLOOKUP(F:F,OFFSET('B. PoF Adj Factor Scoring'!$E$5:$F$282,,MATCH(K$4,'B. PoF Adj Factor Scoring'!$E$3:$N$3,0)-1),2,TRUE)","v":1}]
[{"$f":"'A. Population Info'!A204","v":1000353653},{"$f":"'A. Population Info'!G204","v":"OIL"},{"$f":"'A. Population Info'!H204","v":1},{"$f":"'A. Population Info'!I204","v":0},{"$f":"'A. Population Info'!J204","v":0},{"$f":"'A. Population Info'!K204","v":0},{"$f":"VLOOKUP(B:B,OFFSET('B. PoF Adj Factor Scoring'!$E$5:$F$282,,MATCH(G$4,'B. PoF Adj Factor Scoring'!$E$3:$N$3,0)-1),2,TRUE)","v":1},{"$f":"VLOOKUP(C:C,OFFSET('B. PoF Adj Factor Scoring'!$E$5:$F$282,,MATCH(H$4,'B. PoF Adj Factor Scoring'!$E$3:$N$3,0)-1),2,TRUE)","v":1},{"$f":"VLOOKUP(D:D,OFFSET('B. PoF Adj Factor Scoring'!$E$5:$F$282,,MATCH(I$4,'B. PoF Adj Factor Scoring'!$E$3:$N$3,0)-1),2,TRUE)","v":1},{"$f":"VLOOKUP(E:E,OFFSET('B. PoF Adj Factor Scoring'!$E$5:$F$282,,MATCH(J$4,'B. PoF Adj Factor Scoring'!$E$3:$N$3,0)-1),2,TRUE)","v":1},{"$f":"VLOOKUP(F:F,OFFSET('B. PoF Adj Factor Scoring'!$E$5:$F$282,,MATCH(K$4,'B. PoF Adj Factor Scoring'!$E$3:$N$3,0)-1),2,TRUE)","v":1}]
[{"$f":"'A. Population Info'!A205","v":1000353684},{"$f":"'A. Population Info'!G205","v":"OIL"},{"$f":"'A. Population Info'!H205","v":1},{"$f":"'A. Population Info'!I205","v":0},{"$f":"'A. Population Info'!J205","v":0},{"$f":"'A. Population Info'!K205","v":0},{"$f":"VLOOKUP(B:B,OFFSET('B. PoF Adj Factor Scoring'!$E$5:$F$282,,MATCH(G$4,'B. PoF Adj Factor Scoring'!$E$3:$N$3,0)-1),2,TRUE)","v":1},{"$f":"VLOOKUP(C:C,OFFSET('B. PoF Adj Factor Scoring'!$E$5:$F$282,,MATCH(H$4,'B. PoF Adj Factor Scoring'!$E$3:$N$3,0)-1),2,TRUE)","v":1},{"$f":"VLOOKUP(D:D,OFFSET('B. PoF Adj Factor Scoring'!$E$5:$F$282,,MATCH(I$4,'B. PoF Adj Factor Scoring'!$E$3:$N$3,0)-1),2,TRUE)","v":1},{"$f":"VLOOKUP(E:E,OFFSET('B. PoF Adj Factor Scoring'!$E$5:$F$282,,MATCH(J$4,'B. PoF Adj Factor Scoring'!$E$3:$N$3,0)-1),2,TRUE)","v":1},{"$f":"VLOOKUP(F:F,OFFSET('B. PoF Adj Factor Scoring'!$E$5:$F$282,,MATCH(K$4,'B. PoF Adj Factor Scoring'!$E$3:$N$3,0)-1),2,TRUE)","v":1}]
[{"$f":"'A. Population Info'!A206","v":1000353713},{"$f":"'A. Population Info'!G206","v":"OIL"},{"$f":"'A. Population Info'!H206","v":1},{"$f":"'A. Population Info'!I206","v":0},{"$f":"'A. Population Info'!J206","v":0},{"$f":"'A. Population Info'!K206","v":0},{"$f":"VLOOKUP(B:B,OFFSET('B. PoF Adj Factor Scoring'!$E$5:$F$282,,MATCH(G$4,'B. PoF Adj Factor Scoring'!$E$3:$N$3,0)-1),2,TRUE)","v":1},{"$f":"VLOOKUP(C:C,OFFSET('B. PoF Adj Factor Scoring'!$E$5:$F$282,,MATCH(H$4,'B. PoF Adj Factor Scoring'!$E$3:$N$3,0)-1),2,TRUE)","v":1},{"$f":"VLOOKUP(D:D,OFFSET('B. PoF Adj Factor Scoring'!$E$5:$F$282,,MATCH(I$4,'B. PoF Adj Factor Scoring'!$E$3:$N$3,0)-1),2,TRUE)","v":1},{"$f":"VLOOKUP(E:E,OFFSET('B. PoF Adj Factor Scoring'!$E$5:$F$282,,MATCH(J$4,'B. PoF Adj Factor Scoring'!$E$3:$N$3,0)-1),2,TRUE)","v":1},{"$f":"VLOOKUP(F:F,OFFSET('B. PoF Adj Factor Scoring'!$E$5:$F$282,,MATCH(K$4,'B. PoF Adj Factor Scoring'!$E$3:$N$3,0)-1),2,TRUE)","v":1}]
[{"$f":"'A. Population Info'!A207","v":1000353747},{"$f":"'A. Population Info'!G207","v":"OIL"},{"$f":"'A. Population Info'!H207","v":1},{"$f":"'A. Population Info'!I207","v":0},{"$f":"'A. Population Info'!J207","v":0},{"$f":"'A. Population Info'!K207","v":0},{"$f":"VLOOKUP(B:B,OFFSET('B. PoF Adj Factor Scoring'!$E$5:$F$282,,MATCH(G$4,'B. PoF Adj Factor Scoring'!$E$3:$N$3,0)-1),2,TRUE)","v":1},{"$f":"VLOOKUP(C:C,OFFSET('B. PoF Adj Factor Scoring'!$E$5:$F$282,,MATCH(H$4,'B. PoF Adj Factor Scoring'!$E$3:$N$3,0)-1),2,TRUE)","v":1},{"$f":"VLOOKUP(D:D,OFFSET('B. PoF Adj Factor Scoring'!$E$5:$F$282,,MATCH(I$4,'B. PoF Adj Factor Scoring'!$E$3:$N$3,0)-1),2,TRUE)","v":1},{"$f":"VLOOKUP(E:E,OFFSET('B. PoF Adj Factor Scoring'!$E$5:$F$282,,MATCH(J$4,'B. PoF Adj Factor Scoring'!$E$3:$N$3,0)-1),2,TRUE)","v":1},{"$f":"VLOOKUP(F:F,OFFSET('B. PoF Adj Factor Scoring'!$E$5:$F$282,,MATCH(K$4,'B. PoF Adj Factor Scoring'!$E$3:$N$3,0)-1),2,TRUE)","v":1}]
[{"$f":"'A. Population Info'!A208","v":1000353781},{"$f":"'A. Population Info'!G208","v":"OIL"},{"$f":"'A. Population Info'!H208","v":1},{"$f":"'A. Population Info'!I208","v":0},{"$f":"'A. Population Info'!J208","v":0},{"$f":"'A. Population Info'!K208","v":0},{"$f":"VLOOKUP(B:B,OFFSET('B. PoF Adj Factor Scoring'!$E$5:$F$282,,MATCH(G$4,'B. PoF Adj Factor Scoring'!$E$3:$N$3,0)-1),2,TRUE)","v":1},{"$f":"VLOOKUP(C:C,OFFSET('B. PoF Adj Factor Scoring'!$E$5:$F$282,,MATCH(H$4,'B. PoF Adj Factor Scoring'!$E$3:$N$3,0)-1),2,TRUE)","v":1},{"$f":"VLOOKUP(D:D,OFFSET('B. PoF Adj Factor Scoring'!$E$5:$F$282,,MATCH(I$4,'B. PoF Adj Factor Scoring'!$E$3:$N$3,0)-1),2,TRUE)","v":1},{"$f":"VLOOKUP(E:E,OFFSET('B. PoF Adj Factor Scoring'!$E$5:$F$282,,MATCH(J$4,'B. PoF Adj Factor Scoring'!$E$3:$N$3,0)-1),2,TRUE)","v":1},{"$f":"VLOOKUP(F:F,OFFSET('B. PoF Adj Factor Scoring'!$E$5:$F$282,,MATCH(K$4,'B. PoF Adj Factor Scoring'!$E$3:$N$3,0)-1),2,TRUE)","v":1}]
[{"$f":"'A. Population Info'!A209","v":1000353814},{"$f":"'A. Population Info'!G209","v":"OIL"},{"$f":"'A. Population Info'!H209","v":1},{"$f":"'A. Population Info'!I209","v":0},{"$f":"'A. Population Info'!J209","v":0},{"$f":"'A. Population Info'!K209","v":0},{"$f":"VLOOKUP(B:B,OFFSET('B. PoF Adj Factor Scoring'!$E$5:$F$282,,MATCH(G$4,'B. PoF Adj Factor Scoring'!$E$3:$N$3,0)-1),2,TRUE)","v":1},{"$f":"VLOOKUP(C:C,OFFSET('B. PoF Adj Factor Scoring'!$E$5:$F$282,,MATCH(H$4,'B. PoF Adj Factor Scoring'!$E$3:$N$3,0)-1),2,TRUE)","v":1},{"$f":"VLOOKUP(D:D,OFFSET('B. PoF Adj Factor Scoring'!$E$5:$F$282,,MATCH(I$4,'B. PoF Adj Factor Scoring'!$E$3:$N$3,0)-1),2,TRUE)","v":1},{"$f":"VLOOKUP(E:E,OFFSET('B. PoF Adj Factor Scoring'!$E$5:$F$282,,MATCH(J$4,'B. PoF Adj Factor Scoring'!$E$3:$N$3,0)-1),2,TRUE)","v":1},{"$f":"VLOOKUP(F:F,OFFSET('B. PoF Adj Factor Scoring'!$E$5:$F$282,,MATCH(K$4,'B. PoF Adj Factor Scoring'!$E$3:$N$3,0)-1),2,TRUE)","v":1}]
[{"$f":"'A. Population Info'!A210","v":1000353845},{"$f":"'A. Population Info'!G210","v":"OIL"},{"$f":"'A. Population Info'!H210","v":1},{"$f":"'A. Population Info'!I210","v":0},{"$f":"'A. Population Info'!J210","v":0},{"$f":"'A. Population Info'!K210","v":0},{"$f":"VLOOKUP(B:B,OFFSET('B. PoF Adj Factor Scoring'!$E$5:$F$282,,MATCH(G$4,'B. PoF Adj Factor Scoring'!$E$3:$N$3,0)-1),2,TRUE)","v":1},{"$f":"VLOOKUP(C:C,OFFSET('B. PoF Adj Factor Scoring'!$E$5:$F$282,,MATCH(H$4,'B. PoF Adj Factor Scoring'!$E$3:$N$3,0)-1),2,TRUE)","v":1},{"$f":"VLOOKUP(D:D,OFFSET('B. PoF Adj Factor Scoring'!$E$5:$F$282,,MATCH(I$4,'B. PoF Adj Factor Scoring'!$E$3:$N$3,0)-1),2,TRUE)","v":1},{"$f":"VLOOKUP(E:E,OFFSET('B. PoF Adj Factor Scoring'!$E$5:$F$282,,MATCH(J$4,'B. PoF Adj Factor Scoring'!$E$3:$N$3,0)-1),2,TRUE)","v":1},{"$f":"VLOOKUP(F:F,OFFSET('B. PoF Adj Factor Scoring'!$E$5:$F$282,,MATCH(K$4,'B. PoF Adj Factor Scoring'!$E$3:$N$3,0)-1),2,TRUE)","v":1}]
[{"$f":"'A. Population Info'!A211","v":1000353873},{"$f":"'A. Population Info'!G211","v":"OIL"},{"$f":"'A. Population Info'!H211","v":1},{"$f":"'A. Population Info'!I211","v":0},{"$f":"'A. Population Info'!J211","v":0},{"$f":"'A. Population Info'!K211","v":0},{"$f":"VLOOKUP(B:B,OFFSET('B. PoF Adj Factor Scoring'!$E$5:$F$282,,MATCH(G$4,'B. PoF Adj Factor Scoring'!$E$3:$N$3,0)-1),2,TRUE)","v":1},{"$f":"VLOOKUP(C:C,OFFSET('B. PoF Adj Factor Scoring'!$E$5:$F$282,,MATCH(H$4,'B. PoF Adj Factor Scoring'!$E$3:$N$3,0)-1),2,TRUE)","v":1},{"$f":"VLOOKUP(D:D,OFFSET('B. PoF Adj Factor Scoring'!$E$5:$F$282,,MATCH(I$4,'B. PoF Adj Factor Scoring'!$E$3:$N$3,0)-1),2,TRUE)","v":1},{"$f":"VLOOKUP(E:E,OFFSET('B. PoF Adj Factor Scoring'!$E$5:$F$282,,MATCH(J$4,'B. PoF Adj Factor Scoring'!$E$3:$N$3,0)-1),2,TRUE)","v":1},{"$f":"VLOOKUP(F:F,OFFSET('B. PoF Adj Factor Scoring'!$E$5:$F$282,,MATCH(K$4,'B. PoF Adj Factor Scoring'!$E$3:$N$3,0)-1),2,TRUE)","v":1}]
[{"$f":"'A. Population Info'!A212","v":1000353900},{"$f":"'A. Population Info'!G212","v":"OIL"},{"$f":"'A. Population Info'!H212","v":1},{"$f":"'A. Population Info'!I212","v":0},{"$f":"'A. Population Info'!J212","v":0},{"$f":"'A. Population Info'!K212","v":0},{"$f":"VLOOKUP(B:B,OFFSET('B. PoF Adj Factor Scoring'!$E$5:$F$282,,MATCH(G$4,'B. PoF Adj Factor Scoring'!$E$3:$N$3,0)-1),2,TRUE)","v":1},{"$f":"VLOOKUP(C:C,OFFSET('B. PoF Adj Factor Scoring'!$E$5:$F$282,,MATCH(H$4,'B. PoF Adj Factor Scoring'!$E$3:$N$3,0)-1),2,TRUE)","v":1},{"$f":"VLOOKUP(D:D,OFFSET('B. PoF Adj Factor Scoring'!$E$5:$F$282,,MATCH(I$4,'B. PoF Adj Factor Scoring'!$E$3:$N$3,0)-1),2,TRUE)","v":1},{"$f":"VLOOKUP(E:E,OFFSET('B. PoF Adj Factor Scoring'!$E$5:$F$282,,MATCH(J$4,'B. PoF Adj Factor Scoring'!$E$3:$N$3,0)-1),2,TRUE)","v":1},{"$f":"VLOOKUP(F:F,OFFSET('B. PoF Adj Factor Scoring'!$E$5:$F$282,,MATCH(K$4,'B. PoF Adj Factor Scoring'!$E$3:$N$3,0)-1),2,TRUE)","v":1}]
[{"$f":"'A. Population Info'!A213","v":1000353934},{"$f":"'A. Population Info'!G213","v":"OIL"},{"$f":"'A. Population Info'!H213","v":1},{"$f":"'A. Population Info'!I213","v":0},{"$f":"'A. Population Info'!J213","v":0},{"$f":"'A. Population Info'!K213","v":0},{"$f":"VLOOKUP(B:B,OFFSET('B. PoF Adj Factor Scoring'!$E$5:$F$282,,MATCH(G$4,'B. PoF Adj Factor Scoring'!$E$3:$N$3,0)-1),2,TRUE)","v":1},{"$f":"VLOOKUP(C:C,OFFSET('B. PoF Adj Factor Scoring'!$E$5:$F$282,,MATCH(H$4,'B. PoF Adj Factor Scoring'!$E$3:$N$3,0)-1),2,TRUE)","v":1},{"$f":"VLOOKUP(D:D,OFFSET('B. PoF Adj Factor Scoring'!$E$5:$F$282,,MATCH(I$4,'B. PoF Adj Factor Scoring'!$E$3:$N$3,0)-1),2,TRUE)","v":1},{"$f":"VLOOKUP(E:E,OFFSET('B. PoF Adj Factor Scoring'!$E$5:$F$282,,MATCH(J$4,'B. PoF Adj Factor Scoring'!$E$3:$N$3,0)-1),2,TRUE)","v":1},{"$f":"VLOOKUP(F:F,OFFSET('B. PoF Adj Factor Scoring'!$E$5:$F$282,,MATCH(K$4,'B. PoF Adj Factor Scoring'!$E$3:$N$3,0)-1),2,TRUE)","v":1}]
[{"$f":"'A. Population Info'!A214","v":1000353966},{"$f":"'A. Population Info'!G214","v":"OIL"},{"$f":"'A. Population Info'!H214","v":1},{"$f":"'A. Population Info'!I214","v":0},{"$f":"'A. Population Info'!J214","v":0},{"$f":"'A. Population Info'!K214","v":0},{"$f":"VLOOKUP(B:B,OFFSET('B. PoF Adj Factor Scoring'!$E$5:$F$282,,MATCH(G$4,'B. PoF Adj Factor Scoring'!$E$3:$N$3,0)-1),2,TRUE)","v":1},{"$f":"VLOOKUP(C:C,OFFSET('B. PoF Adj Factor Scoring'!$E$5:$F$282,,MATCH(H$4,'B. PoF Adj Factor Scoring'!$E$3:$N$3,0)-1),2,TRUE)","v":1},{"$f":"VLOOKUP(D:D,OFFSET('B. PoF Adj Factor Scoring'!$E$5:$F$282,,MATCH(I$4,'B. PoF Adj Factor Scoring'!$E$3:$N$3,0)-1),2,TRUE)","v":1},{"$f":"VLOOKUP(E:E,OFFSET('B. PoF Adj Factor Scoring'!$E$5:$F$282,,MATCH(J$4,'B. PoF Adj Factor Scoring'!$E$3:$N$3,0)-1),2,TRUE)","v":1},{"$f":"VLOOKUP(F:F,OFFSET('B. PoF Adj Factor Scoring'!$E$5:$F$282,,MATCH(K$4,'B. PoF Adj Factor Scoring'!$E$3:$N$3,0)-1),2,TRUE)","v":1}]
[{"$f":"'A. Population Info'!A215","v":1000353995},{"$f":"'A. Population Info'!G215","v":"OIL"},{"$f":"'A. Population Info'!H215","v":1},{"$f":"'A. Population Info'!I215","v":0},{"$f":"'A. Population Info'!J215","v":0},{"$f":"'A. Population Info'!K215","v":0},{"$f":"VLOOKUP(B:B,OFFSET('B. PoF Adj Factor Scoring'!$E$5:$F$282,,MATCH(G$4,'B. PoF Adj Factor Scoring'!$E$3:$N$3,0)-1),2,TRUE)","v":1},{"$f":"VLOOKUP(C:C,OFFSET('B. PoF Adj Factor Scoring'!$E$5:$F$282,,MATCH(H$4,'B. PoF Adj Factor Scoring'!$E$3:$N$3,0)-1),2,TRUE)","v":1},{"$f":"VLOOKUP(D:D,OFFSET('B. PoF Adj Factor Scoring'!$E$5:$F$282,,MATCH(I$4,'B. PoF Adj Factor Scoring'!$E$3:$N$3,0)-1),2,TRUE)","v":1},{"$f":"VLOOKUP(E:E,OFFSET('B. PoF Adj Factor Scoring'!$E$5:$F$282,,MATCH(J$4,'B. PoF Adj Factor Scoring'!$E$3:$N$3,0)-1),2,TRUE)","v":1},{"$f":"VLOOKUP(F:F,OFFSET('B. PoF Adj Factor Scoring'!$E$5:$F$282,,MATCH(K$4,'B. PoF Adj Factor Scoring'!$E$3:$N$3,0)-1),2,TRUE)","v":1}]
[{"$f":"'A. Population Info'!A216","v":1000358026},{"$f":"'A. Population Info'!G216","v":"OIL"},{"$f":"'A. Population Info'!H216","v":1},{"$f":"'A. Population Info'!I216","v":0},{"$f":"'A. Population Info'!J216","v":0},{"$f":"'A. Population Info'!K216","v":0},{"$f":"VLOOKUP(B:B,OFFSET('B. PoF Adj Factor Scoring'!$E$5:$F$282,,MATCH(G$4,'B. PoF Adj Factor Scoring'!$E$3:$N$3,0)-1),2,TRUE)","v":1},{"$f":"VLOOKUP(C:C,OFFSET('B. PoF Adj Factor Scoring'!$E$5:$F$282,,MATCH(H$4,'B. PoF Adj Factor Scoring'!$E$3:$N$3,0)-1),2,TRUE)","v":1},{"$f":"VLOOKUP(D:D,OFFSET('B. PoF Adj Factor Scoring'!$E$5:$F$282,,MATCH(I$4,'B. PoF Adj Factor Scoring'!$E$3:$N$3,0)-1),2,TRUE)","v":1},{"$f":"VLOOKUP(E:E,OFFSET('B. PoF Adj Factor Scoring'!$E$5:$F$282,,MATCH(J$4,'B. PoF Adj Factor Scoring'!$E$3:$N$3,0)-1),2,TRUE)","v":1},{"$f":"VLOOKUP(F:F,OFFSET('B. PoF Adj Factor Scoring'!$E$5:$F$282,,MATCH(K$4,'B. PoF Adj Factor Scoring'!$E$3:$N$3,0)-1),2,TRUE)","v":1}]
[{"$f":"'A. Population Info'!A217","v":1000358056},{"$f":"'A. Population Info'!G217","v":"OIL"},{"$f":"'A. Population Info'!H217","v":1},{"$f":"'A. Population Info'!I217","v":0},{"$f":"'A. Population Info'!J217","v":0},{"$f":"'A. Population Info'!K217","v":0},{"$f":"VLOOKUP(B:B,OFFSET('B. PoF Adj Factor Scoring'!$E$5:$F$282,,MATCH(G$4,'B. PoF Adj Factor Scoring'!$E$3:$N$3,0)-1),2,TRUE)","v":1},{"$f":"VLOOKUP(C:C,OFFSET('B. PoF Adj Factor Scoring'!$E$5:$F$282,,MATCH(H$4,'B. PoF Adj Factor Scoring'!$E$3:$N$3,0)-1),2,TRUE)","v":1},{"$f":"VLOOKUP(D:D,OFFSET('B. PoF Adj Factor Scoring'!$E$5:$F$282,,MATCH(I$4,'B. PoF Adj Factor Scoring'!$E$3:$N$3,0)-1),2,TRUE)","v":1},{"$f":"VLOOKUP(E:E,OFFSET('B. PoF Adj Factor Scoring'!$E$5:$F$282,,MATCH(J$4,'B. PoF Adj Factor Scoring'!$E$3:$N$3,0)-1),2,TRUE)","v":1},{"$f":"VLOOKUP(F:F,OFFSET('B. PoF Adj Factor Scoring'!$E$5:$F$282,,MATCH(K$4,'B. PoF Adj Factor Scoring'!$E$3:$N$3,0)-1),2,TRUE)","v":1}]
[{"$f":"'A. Population Info'!A218","v":1000358084},{"$f":"'A. Population Info'!G218","v":"OIL"},{"$f":"'A. Population Info'!H218","v":1},{"$f":"'A. Population Info'!I218","v":0},{"$f":"'A. Population Info'!J218","v":0},{"$f":"'A. Population Info'!K218","v":0},{"$f":"VLOOKUP(B:B,OFFSET('B. PoF Adj Factor Scoring'!$E$5:$F$282,,MATCH(G$4,'B. PoF Adj Factor Scoring'!$E$3:$N$3,0)-1),2,TRUE)","v":1},{"$f":"VLOOKUP(C:C,OFFSET('B. PoF Adj Factor Scoring'!$E$5:$F$282,,MATCH(H$4,'B. PoF Adj Factor Scoring'!$E$3:$N$3,0)-1),2,TRUE)","v":1},{"$f":"VLOOKUP(D:D,OFFSET('B. PoF Adj Factor Scoring'!$E$5:$F$282,,MATCH(I$4,'B. PoF Adj Factor Scoring'!$E$3:$N$3,0)-1),2,TRUE)","v":1},{"$f":"VLOOKUP(E:E,OFFSET('B. PoF Adj Factor Scoring'!$E$5:$F$282,,MATCH(J$4,'B. PoF Adj Factor Scoring'!$E$3:$N$3,0)-1),2,TRUE)","v":1},{"$f":"VLOOKUP(F:F,OFFSET('B. PoF Adj Factor Scoring'!$E$5:$F$282,,MATCH(K$4,'B. PoF Adj Factor Scoring'!$E$3:$N$3,0)-1),2,TRUE)","v":1}]
[{"$f":"'A. Population Info'!A219","v":1000358116},{"$f":"'A. Population Info'!G219","v":"OIL"},{"$f":"'A. Population Info'!H219","v":1},{"$f":"'A. Population Info'!I219","v":0},{"$f":"'A. Population Info'!J219","v":0},{"$f":"'A. Population Info'!K219","v":0},{"$f":"VLOOKUP(B:B,OFFSET('B. PoF Adj Factor Scoring'!$E$5:$F$282,,MATCH(G$4,'B. PoF Adj Factor Scoring'!$E$3:$N$3,0)-1),2,TRUE)","v":1},{"$f":"VLOOKUP(C:C,OFFSET('B. PoF Adj Factor Scoring'!$E$5:$F$282,,MATCH(H$4,'B. PoF Adj Factor Scoring'!$E$3:$N$3,0)-1),2,TRUE)","v":1},{"$f":"VLOOKUP(D:D,OFFSET('B. PoF Adj Factor Scoring'!$E$5:$F$282,,MATCH(I$4,'B. PoF Adj Factor Scoring'!$E$3:$N$3,0)-1),2,TRUE)","v":1},{"$f":"VLOOKUP(E:E,OFFSET('B. PoF Adj Factor Scoring'!$E$5:$F$282,,MATCH(J$4,'B. PoF Adj Factor Scoring'!$E$3:$N$3,0)-1),2,TRUE)","v":1},{"$f":"VLOOKUP(F:F,OFFSET('B. PoF Adj Factor Scoring'!$E$5:$F$282,,MATCH(K$4,'B. PoF Adj Factor Scoring'!$E$3:$N$3,0)-1),2,TRUE)","v":1}]
[{"$f":"'A. Population Info'!A220","v":1000358149},{"$f":"'A. Population Info'!G220","v":"OIL"},{"$f":"'A. Population Info'!H220","v":1},{"$f":"'A. Population Info'!I220","v":0},{"$f":"'A. Population Info'!J220","v":0},{"$f":"'A. Population Info'!K220","v":0},{"$f":"VLOOKUP(B:B,OFFSET('B. PoF Adj Factor Scoring'!$E$5:$F$282,,MATCH(G$4,'B. PoF Adj Factor Scoring'!$E$3:$N$3,0)-1),2,TRUE)","v":1},{"$f":"VLOOKUP(C:C,OFFSET('B. PoF Adj Factor Scoring'!$E$5:$F$282,,MATCH(H$4,'B. PoF Adj Factor Scoring'!$E$3:$N$3,0)-1),2,TRUE)","v":1},{"$f":"VLOOKUP(D:D,OFFSET('B. PoF Adj Factor Scoring'!$E$5:$F$282,,MATCH(I$4,'B. PoF Adj Factor Scoring'!$E$3:$N$3,0)-1),2,TRUE)","v":1},{"$f":"VLOOKUP(E:E,OFFSET('B. PoF Adj Factor Scoring'!$E$5:$F$282,,MATCH(J$4,'B. PoF Adj Factor Scoring'!$E$3:$N$3,0)-1),2,TRUE)","v":1},{"$f":"VLOOKUP(F:F,OFFSET('B. PoF Adj Factor Scoring'!$E$5:$F$282,,MATCH(K$4,'B. PoF Adj Factor Scoring'!$E$3:$N$3,0)-1),2,TRUE)","v":1}]
[{"$f":"'A. Population Info'!A221","v":1000358181},{"$f":"'A. Population Info'!G221","v":"OIL"},{"$f":"'A. Population Info'!H221","v":1},{"$f":"'A. Population Info'!I221","v":0},{"$f":"'A. Population Info'!J221","v":0},{"$f":"'A. Population Info'!K221","v":0},{"$f":"VLOOKUP(B:B,OFFSET('B. PoF Adj Factor Scoring'!$E$5:$F$282,,MATCH(G$4,'B. PoF Adj Factor Scoring'!$E$3:$N$3,0)-1),2,TRUE)","v":1},{"$f":"VLOOKUP(C:C,OFFSET('B. PoF Adj Factor Scoring'!$E$5:$F$282,,MATCH(H$4,'B. PoF Adj Factor Scoring'!$E$3:$N$3,0)-1),2,TRUE)","v":1},{"$f":"VLOOKUP(D:D,OFFSET('B. PoF Adj Factor Scoring'!$E$5:$F$282,,MATCH(I$4,'B. PoF Adj Factor Scoring'!$E$3:$N$3,0)-1),2,TRUE)","v":1},{"$f":"VLOOKUP(E:E,OFFSET('B. PoF Adj Factor Scoring'!$E$5:$F$282,,MATCH(J$4,'B. PoF Adj Factor Scoring'!$E$3:$N$3,0)-1),2,TRUE)","v":1},{"$f":"VLOOKUP(F:F,OFFSET('B. PoF Adj Factor Scoring'!$E$5:$F$282,,MATCH(K$4,'B. PoF Adj Factor Scoring'!$E$3:$N$3,0)-1),2,TRUE)","v":1}]
[{"$f":"'A. Population Info'!A222","v":1000358266},{"$f":"'A. Population Info'!G222","v":"OIL"},{"$f":"'A. Population Info'!H222","v":1},{"$f":"'A. Population Info'!I222","v":0},{"$f":"'A. Population Info'!J222","v":0},{"$f":"'A. Population Info'!K222","v":0},{"$f":"VLOOKUP(B:B,OFFSET('B. PoF Adj Factor Scoring'!$E$5:$F$282,,MATCH(G$4,'B. PoF Adj Factor Scoring'!$E$3:$N$3,0)-1),2,TRUE)","v":1},{"$f":"VLOOKUP(C:C,OFFSET('B. PoF Adj Factor Scoring'!$E$5:$F$282,,MATCH(H$4,'B. PoF Adj Factor Scoring'!$E$3:$N$3,0)-1),2,TRUE)","v":1},{"$f":"VLOOKUP(D:D,OFFSET('B. PoF Adj Factor Scoring'!$E$5:$F$282,,MATCH(I$4,'B. PoF Adj Factor Scoring'!$E$3:$N$3,0)-1),2,TRUE)","v":1},{"$f":"VLOOKUP(E:E,OFFSET('B. PoF Adj Factor Scoring'!$E$5:$F$282,,MATCH(J$4,'B. PoF Adj Factor Scoring'!$E$3:$N$3,0)-1),2,TRUE)","v":1},{"$f":"VLOOKUP(F:F,OFFSET('B. PoF Adj Factor Scoring'!$E$5:$F$282,,MATCH(K$4,'B. PoF Adj Factor Scoring'!$E$3:$N$3,0)-1),2,TRUE)","v":1}]
[{"$f":"'A. Population Info'!A223","v":1000358298},{"$f":"'A. Population Info'!G223","v":"OIL"},{"$f":"'A. Population Info'!H223","v":1},{"$f":"'A. Population Info'!I223","v":0},{"$f":"'A. Population Info'!J223","v":0},{"$f":"'A. Population Info'!K223","v":0},{"$f":"VLOOKUP(B:B,OFFSET('B. PoF Adj Factor Scoring'!$E$5:$F$282,,MATCH(G$4,'B. PoF Adj Factor Scoring'!$E$3:$N$3,0)-1),2,TRUE)","v":1},{"$f":"VLOOKUP(C:C,OFFSET('B. PoF Adj Factor Scoring'!$E$5:$F$282,,MATCH(H$4,'B. PoF Adj Factor Scoring'!$E$3:$N$3,0)-1),2,TRUE)","v":1},{"$f":"VLOOKUP(D:D,OFFSET('B. PoF Adj Factor Scoring'!$E$5:$F$282,,MATCH(I$4,'B. PoF Adj Factor Scoring'!$E$3:$N$3,0)-1),2,TRUE)","v":1},{"$f":"VLOOKUP(E:E,OFFSET('B. PoF Adj Factor Scoring'!$E$5:$F$282,,MATCH(J$4,'B. PoF Adj Factor Scoring'!$E$3:$N$3,0)-1),2,TRUE)","v":1},{"$f":"VLOOKUP(F:F,OFFSET('B. PoF Adj Factor Scoring'!$E$5:$F$282,,MATCH(K$4,'B. PoF Adj Factor Scoring'!$E$3:$N$3,0)-1),2,TRUE)","v":1}]
[{"$f":"'A. Population Info'!A224","v":1000358360},{"$f":"'A. Population Info'!G224","v":"OIL"},{"$f":"'A. Population Info'!H224","v":1},{"$f":"'A. Population Info'!I224","v":0},{"$f":"'A. Population Info'!J224","v":0},{"$f":"'A. Population Info'!K224","v":0},{"$f":"VLOOKUP(B:B,OFFSET('B. PoF Adj Factor Scoring'!$E$5:$F$282,,MATCH(G$4,'B. PoF Adj Factor Scoring'!$E$3:$N$3,0)-1),2,TRUE)","v":1},{"$f":"VLOOKUP(C:C,OFFSET('B. PoF Adj Factor Scoring'!$E$5:$F$282,,MATCH(H$4,'B. PoF Adj Factor Scoring'!$E$3:$N$3,0)-1),2,TRUE)","v":1},{"$f":"VLOOKUP(D:D,OFFSET('B. PoF Adj Factor Scoring'!$E$5:$F$282,,MATCH(I$4,'B. PoF Adj Factor Scoring'!$E$3:$N$3,0)-1),2,TRUE)","v":1},{"$f":"VLOOKUP(E:E,OFFSET('B. PoF Adj Factor Scoring'!$E$5:$F$282,,MATCH(J$4,'B. PoF Adj Factor Scoring'!$E$3:$N$3,0)-1),2,TRUE)","v":1},{"$f":"VLOOKUP(F:F,OFFSET('B. PoF Adj Factor Scoring'!$E$5:$F$282,,MATCH(K$4,'B. PoF Adj Factor Scoring'!$E$3:$N$3,0)-1),2,TRUE)","v":1}]
[{"$f":"'A. Population Info'!A225","v":1000358393},{"$f":"'A. Population Info'!G225","v":"OIL"},{"$f":"'A. Population Info'!H225","v":1},{"$f":"'A. Population Info'!I225","v":0},{"$f":"'A. Population Info'!J225","v":0},{"$f":"'A. Population Info'!K225","v":0},{"$f":"VLOOKUP(B:B,OFFSET('B. PoF Adj Factor Scoring'!$E$5:$F$282,,MATCH(G$4,'B. PoF Adj Factor Scoring'!$E$3:$N$3,0)-1),2,TRUE)","v":1},{"$f":"VLOOKUP(C:C,OFFSET('B. PoF Adj Factor Scoring'!$E$5:$F$282,,MATCH(H$4,'B. PoF Adj Factor Scoring'!$E$3:$N$3,0)-1),2,TRUE)","v":1},{"$f":"VLOOKUP(D:D,OFFSET('B. PoF Adj Factor Scoring'!$E$5:$F$282,,MATCH(I$4,'B. PoF Adj Factor Scoring'!$E$3:$N$3,0)-1),2,TRUE)","v":1},{"$f":"VLOOKUP(E:E,OFFSET('B. PoF Adj Factor Scoring'!$E$5:$F$282,,MATCH(J$4,'B. PoF Adj Factor Scoring'!$E$3:$N$3,0)-1),2,TRUE)","v":1},{"$f":"VLOOKUP(F:F,OFFSET('B. PoF Adj Factor Scoring'!$E$5:$F$282,,MATCH(K$4,'B. PoF Adj Factor Scoring'!$E$3:$N$3,0)-1),2,TRUE)","v":1}]
[{"$f":"'A. Population Info'!A226","v":1000358426},{"$f":"'A. Population Info'!G226","v":"OIL"},{"$f":"'A. Population Info'!H226","v":1},{"$f":"'A. Population Info'!I226","v":0},{"$f":"'A. Population Info'!J226","v":0},{"$f":"'A. Population Info'!K226","v":0},{"$f":"VLOOKUP(B:B,OFFSET('B. PoF Adj Factor Scoring'!$E$5:$F$282,,MATCH(G$4,'B. PoF Adj Factor Scoring'!$E$3:$N$3,0)-1),2,TRUE)","v":1},{"$f":"VLOOKUP(C:C,OFFSET('B. PoF Adj Factor Scoring'!$E$5:$F$282,,MATCH(H$4,'B. PoF Adj Factor Scoring'!$E$3:$N$3,0)-1),2,TRUE)","v":1},{"$f":"VLOOKUP(D:D,OFFSET('B. PoF Adj Factor Scoring'!$E$5:$F$282,,MATCH(I$4,'B. PoF Adj Factor Scoring'!$E$3:$N$3,0)-1),2,TRUE)","v":1},{"$f":"VLOOKUP(E:E,OFFSET('B. PoF Adj Factor Scoring'!$E$5:$F$282,,MATCH(J$4,'B. PoF Adj Factor Scoring'!$E$3:$N$3,0)-1),2,TRUE)","v":1},{"$f":"VLOOKUP(F:F,OFFSET('B. PoF Adj Factor Scoring'!$E$5:$F$282,,MATCH(K$4,'B. PoF Adj Factor Scoring'!$E$3:$N$3,0)-1),2,TRUE)","v":1}]
[{"$f":"'A. Population Info'!A227","v":1000358459},{"$f":"'A. Population Info'!G227","v":"OIL"},{"$f":"'A. Population Info'!H227","v":1},{"$f":"'A. Population Info'!I227","v":0},{"$f":"'A. Population Info'!J227","v":0},{"$f":"'A. Population Info'!K227","v":0},{"$f":"VLOOKUP(B:B,OFFSET('B. PoF Adj Factor Scoring'!$E$5:$F$282,,MATCH(G$4,'B. PoF Adj Factor Scoring'!$E$3:$N$3,0)-1),2,TRUE)","v":1},{"$f":"VLOOKUP(C:C,OFFSET('B. PoF Adj Factor Scoring'!$E$5:$F$282,,MATCH(H$4,'B. PoF Adj Factor Scoring'!$E$3:$N$3,0)-1),2,TRUE)","v":1},{"$f":"VLOOKUP(D:D,OFFSET('B. PoF Adj Factor Scoring'!$E$5:$F$282,,MATCH(I$4,'B. PoF Adj Factor Scoring'!$E$3:$N$3,0)-1),2,TRUE)","v":1},{"$f":"VLOOKUP(E:E,OFFSET('B. PoF Adj Factor Scoring'!$E$5:$F$282,,MATCH(J$4,'B. PoF Adj Factor Scoring'!$E$3:$N$3,0)-1),2,TRUE)","v":1},{"$f":"VLOOKUP(F:F,OFFSET('B. PoF Adj Factor Scoring'!$E$5:$F$282,,MATCH(K$4,'B. PoF Adj Factor Scoring'!$E$3:$N$3,0)-1),2,TRUE)","v":1}]
[{"$f":"'A. Population Info'!A228","v":1000358493},{"$f":"'A. Population Info'!G228","v":"OIL"},{"$f":"'A. Population Info'!H228","v":1},{"$f":"'A. Population Info'!I228","v":0},{"$f":"'A. Population Info'!J228","v":0},{"$f":"'A. Population Info'!K228","v":0},{"$f":"VLOOKUP(B:B,OFFSET('B. PoF Adj Factor Scoring'!$E$5:$F$282,,MATCH(G$4,'B. PoF Adj Factor Scoring'!$E$3:$N$3,0)-1),2,TRUE)","v":1},{"$f":"VLOOKUP(C:C,OFFSET('B. PoF Adj Factor Scoring'!$E$5:$F$282,,MATCH(H$4,'B. PoF Adj Factor Scoring'!$E$3:$N$3,0)-1),2,TRUE)","v":1},{"$f":"VLOOKUP(D:D,OFFSET('B. PoF Adj Factor Scoring'!$E$5:$F$282,,MATCH(I$4,'B. PoF Adj Factor Scoring'!$E$3:$N$3,0)-1),2,TRUE)","v":1},{"$f":"VLOOKUP(E:E,OFFSET('B. PoF Adj Factor Scoring'!$E$5:$F$282,,MATCH(J$4,'B. PoF Adj Factor Scoring'!$E$3:$N$3,0)-1),2,TRUE)","v":1},{"$f":"VLOOKUP(F:F,OFFSET('B. PoF Adj Factor Scoring'!$E$5:$F$282,,MATCH(K$4,'B. PoF Adj Factor Scoring'!$E$3:$N$3,0)-1),2,TRUE)","v":1}]
[{"$f":"'A. Population Info'!A229","v":1000358522},{"$f":"'A. Population Info'!G229","v":"OIL"},{"$f":"'A. Population Info'!H229","v":1},{"$f":"'A. Population Info'!I229","v":0},{"$f":"'A. Population Info'!J229","v":0},{"$f":"'A. Population Info'!K229","v":0},{"$f":"VLOOKUP(B:B,OFFSET('B. PoF Adj Factor Scoring'!$E$5:$F$282,,MATCH(G$4,'B. PoF Adj Factor Scoring'!$E$3:$N$3,0)-1),2,TRUE)","v":1},{"$f":"VLOOKUP(C:C,OFFSET('B. PoF Adj Factor Scoring'!$E$5:$F$282,,MATCH(H$4,'B. PoF Adj Factor Scoring'!$E$3:$N$3,0)-1),2,TRUE)","v":1},{"$f":"VLOOKUP(D:D,OFFSET('B. PoF Adj Factor Scoring'!$E$5:$F$282,,MATCH(I$4,'B. PoF Adj Factor Scoring'!$E$3:$N$3,0)-1),2,TRUE)","v":1},{"$f":"VLOOKUP(E:E,OFFSET('B. PoF Adj Factor Scoring'!$E$5:$F$282,,MATCH(J$4,'B. PoF Adj Factor Scoring'!$E$3:$N$3,0)-1),2,TRUE)","v":1},{"$f":"VLOOKUP(F:F,OFFSET('B. PoF Adj Factor Scoring'!$E$5:$F$282,,MATCH(K$4,'B. PoF Adj Factor Scoring'!$E$3:$N$3,0)-1),2,TRUE)","v":1}]
[{"$f":"'A. Population Info'!A230","v":1000358550},{"$f":"'A. Population Info'!G230","v":"OIL"},{"$f":"'A. Population Info'!H230","v":1},{"$f":"'A. Population Info'!I230","v":0},{"$f":"'A. Population Info'!J230","v":0},{"$f":"'A. Population Info'!K230","v":0},{"$f":"VLOOKUP(B:B,OFFSET('B. PoF Adj Factor Scoring'!$E$5:$F$282,,MATCH(G$4,'B. PoF Adj Factor Scoring'!$E$3:$N$3,0)-1),2,TRUE)","v":1},{"$f":"VLOOKUP(C:C,OFFSET('B. PoF Adj Factor Scoring'!$E$5:$F$282,,MATCH(H$4,'B. PoF Adj Factor Scoring'!$E$3:$N$3,0)-1),2,TRUE)","v":1},{"$f":"VLOOKUP(D:D,OFFSET('B. PoF Adj Factor Scoring'!$E$5:$F$282,,MATCH(I$4,'B. PoF Adj Factor Scoring'!$E$3:$N$3,0)-1),2,TRUE)","v":1},{"$f":"VLOOKUP(E:E,OFFSET('B. PoF Adj Factor Scoring'!$E$5:$F$282,,MATCH(J$4,'B. PoF Adj Factor Scoring'!$E$3:$N$3,0)-1),2,TRUE)","v":1},{"$f":"VLOOKUP(F:F,OFFSET('B. PoF Adj Factor Scoring'!$E$5:$F$282,,MATCH(K$4,'B. PoF Adj Factor Scoring'!$E$3:$N$3,0)-1),2,TRUE)","v":1}]
[{"$f":"'A. Population Info'!A231","v":1000358581},{"$f":"'A. Population Info'!G231","v":"OIL"},{"$f":"'A. Population Info'!H231","v":1},{"$f":"'A. Population Info'!I231","v":0},{"$f":"'A. Population Info'!J231","v":0},{"$f":"'A. Population Info'!K231","v":0},{"$f":"VLOOKUP(B:B,OFFSET('B. PoF Adj Factor Scoring'!$E$5:$F$282,,MATCH(G$4,'B. PoF Adj Factor Scoring'!$E$3:$N$3,0)-1),2,TRUE)","v":1},{"$f":"VLOOKUP(C:C,OFFSET('B. PoF Adj Factor Scoring'!$E$5:$F$282,,MATCH(H$4,'B. PoF Adj Factor Scoring'!$E$3:$N$3,0)-1),2,TRUE)","v":1},{"$f":"VLOOKUP(D:D,OFFSET('B. PoF Adj Factor Scoring'!$E$5:$F$282,,MATCH(I$4,'B. PoF Adj Factor Scoring'!$E$3:$N$3,0)-1),2,TRUE)","v":1},{"$f":"VLOOKUP(E:E,OFFSET('B. PoF Adj Factor Scoring'!$E$5:$F$282,,MATCH(J$4,'B. PoF Adj Factor Scoring'!$E$3:$N$3,0)-1),2,TRUE)","v":1},{"$f":"VLOOKUP(F:F,OFFSET('B. PoF Adj Factor Scoring'!$E$5:$F$282,,MATCH(K$4,'B. PoF Adj Factor Scoring'!$E$3:$N$3,0)-1),2,TRUE)","v":1}]
[{"$f":"'A. Population Info'!A232","v":1000358609},{"$f":"'A. Population Info'!G232","v":"OIL"},{"$f":"'A. Population Info'!H232","v":1},{"$f":"'A. Population Info'!I232","v":0},{"$f":"'A. Population Info'!J232","v":0},{"$f":"'A. Population Info'!K232","v":0},{"$f":"VLOOKUP(B:B,OFFSET('B. PoF Adj Factor Scoring'!$E$5:$F$282,,MATCH(G$4,'B. PoF Adj Factor Scoring'!$E$3:$N$3,0)-1),2,TRUE)","v":1},{"$f":"VLOOKUP(C:C,OFFSET('B. PoF Adj Factor Scoring'!$E$5:$F$282,,MATCH(H$4,'B. PoF Adj Factor Scoring'!$E$3:$N$3,0)-1),2,TRUE)","v":1},{"$f":"VLOOKUP(D:D,OFFSET('B. PoF Adj Factor Scoring'!$E$5:$F$282,,MATCH(I$4,'B. PoF Adj Factor Scoring'!$E$3:$N$3,0)-1),2,TRUE)","v":1},{"$f":"VLOOKUP(E:E,OFFSET('B. PoF Adj Factor Scoring'!$E$5:$F$282,,MATCH(J$4,'B. PoF Adj Factor Scoring'!$E$3:$N$3,0)-1),2,TRUE)","v":1},{"$f":"VLOOKUP(F:F,OFFSET('B. PoF Adj Factor Scoring'!$E$5:$F$282,,MATCH(K$4,'B. PoF Adj Factor Scoring'!$E$3:$N$3,0)-1),2,TRUE)","v":1}]
[{"$f":"'A. Population Info'!A233","v":1000358641},{"$f":"'A. Population Info'!G233","v":"OIL"},{"$f":"'A. Population Info'!H233","v":1},{"$f":"'A. Population Info'!I233","v":0},{"$f":"'A. Population Info'!J233","v":0},{"$f":"'A. Population Info'!K233","v":0},{"$f":"VLOOKUP(B:B,OFFSET('B. PoF Adj Factor Scoring'!$E$5:$F$282,,MATCH(G$4,'B. PoF Adj Factor Scoring'!$E$3:$N$3,0)-1),2,TRUE)","v":1},{"$f":"VLOOKUP(C:C,OFFSET('B. PoF Adj Factor Scoring'!$E$5:$F$282,,MATCH(H$4,'B. PoF Adj Factor Scoring'!$E$3:$N$3,0)-1),2,TRUE)","v":1},{"$f":"VLOOKUP(D:D,OFFSET('B. PoF Adj Factor Scoring'!$E$5:$F$282,,MATCH(I$4,'B. PoF Adj Factor Scoring'!$E$3:$N$3,0)-1),2,TRUE)","v":1},{"$f":"VLOOKUP(E:E,OFFSET('B. PoF Adj Factor Scoring'!$E$5:$F$282,,MATCH(J$4,'B. PoF Adj Factor Scoring'!$E$3:$N$3,0)-1),2,TRUE)","v":1},{"$f":"VLOOKUP(F:F,OFFSET('B. PoF Adj Factor Scoring'!$E$5:$F$282,,MATCH(K$4,'B. PoF Adj Factor Scoring'!$E$3:$N$3,0)-1),2,TRUE)","v":1}]
[{"$f":"'A. Population Info'!A234","v":1000358676},{"$f":"'A. Population Info'!G234","v":"OIL"},{"$f":"'A. Population Info'!H234","v":2},{"$f":"'A. Population Info'!I234","v":0},{"$f":"'A. Population Info'!J234","v":0},{"$f":"'A. Population Info'!K234","v":0},{"$f":"VLOOKUP(B:B,OFFSET('B. PoF Adj Factor Scoring'!$E$5:$F$282,,MATCH(G$4,'B. PoF Adj Factor Scoring'!$E$3:$N$3,0)-1),2,TRUE)","v":1},{"$f":"VLOOKUP(C:C,OFFSET('B. PoF Adj Factor Scoring'!$E$5:$F$282,,MATCH(H$4,'B. PoF Adj Factor Scoring'!$E$3:$N$3,0)-1),2,TRUE)","v":2},{"$f":"VLOOKUP(D:D,OFFSET('B. PoF Adj Factor Scoring'!$E$5:$F$282,,MATCH(I$4,'B. PoF Adj Factor Scoring'!$E$3:$N$3,0)-1),2,TRUE)","v":1},{"$f":"VLOOKUP(E:E,OFFSET('B. PoF Adj Factor Scoring'!$E$5:$F$282,,MATCH(J$4,'B. PoF Adj Factor Scoring'!$E$3:$N$3,0)-1),2,TRUE)","v":1},{"$f":"VLOOKUP(F:F,OFFSET('B. PoF Adj Factor Scoring'!$E$5:$F$282,,MATCH(K$4,'B. PoF Adj Factor Scoring'!$E$3:$N$3,0)-1),2,TRUE)","v":1}]
[{"$f":"'A. Population Info'!A235","v":1000358704},{"$f":"'A. Population Info'!G235","v":"OIL"},{"$f":"'A. Population Info'!H235","v":1},{"$f":"'A. Population Info'!I235","v":0},{"$f":"'A. Population Info'!J235","v":0},{"$f":"'A. Population Info'!K235","v":0},{"$f":"VLOOKUP(B:B,OFFSET('B. PoF Adj Factor Scoring'!$E$5:$F$282,,MATCH(G$4,'B. PoF Adj Factor Scoring'!$E$3:$N$3,0)-1),2,TRUE)","v":1},{"$f":"VLOOKUP(C:C,OFFSET('B. PoF Adj Factor Scoring'!$E$5:$F$282,,MATCH(H$4,'B. PoF Adj Factor Scoring'!$E$3:$N$3,0)-1),2,TRUE)","v":1},{"$f":"VLOOKUP(D:D,OFFSET('B. PoF Adj Factor Scoring'!$E$5:$F$282,,MATCH(I$4,'B. PoF Adj Factor Scoring'!$E$3:$N$3,0)-1),2,TRUE)","v":1},{"$f":"VLOOKUP(E:E,OFFSET('B. PoF Adj Factor Scoring'!$E$5:$F$282,,MATCH(J$4,'B. PoF Adj Factor Scoring'!$E$3:$N$3,0)-1),2,TRUE)","v":1},{"$f":"VLOOKUP(F:F,OFFSET('B. PoF Adj Factor Scoring'!$E$5:$F$282,,MATCH(K$4,'B. PoF Adj Factor Scoring'!$E$3:$N$3,0)-1),2,TRUE)","v":1}]
[{"$f":"'A. Population Info'!A236","v":1000358763},{"$f":"'A. Population Info'!G236","v":"OIL"},{"$f":"'A. Population Info'!H236","v":1},{"$f":"'A. Population Info'!I236","v":0},{"$f":"'A. Population Info'!J236","v":0},{"$f":"'A. Population Info'!K236","v":0},{"$f":"VLOOKUP(B:B,OFFSET('B. PoF Adj Factor Scoring'!$E$5:$F$282,,MATCH(G$4,'B. PoF Adj Factor Scoring'!$E$3:$N$3,0)-1),2,TRUE)","v":1},{"$f":"VLOOKUP(C:C,OFFSET('B. PoF Adj Factor Scoring'!$E$5:$F$282,,MATCH(H$4,'B. PoF Adj Factor Scoring'!$E$3:$N$3,0)-1),2,TRUE)","v":1},{"$f":"VLOOKUP(D:D,OFFSET('B. PoF Adj Factor Scoring'!$E$5:$F$282,,MATCH(I$4,'B. PoF Adj Factor Scoring'!$E$3:$N$3,0)-1),2,TRUE)","v":1},{"$f":"VLOOKUP(E:E,OFFSET('B. PoF Adj Factor Scoring'!$E$5:$F$282,,MATCH(J$4,'B. PoF Adj Factor Scoring'!$E$3:$N$3,0)-1),2,TRUE)","v":1},{"$f":"VLOOKUP(F:F,OFFSET('B. PoF Adj Factor Scoring'!$E$5:$F$282,,MATCH(K$4,'B. PoF Adj Factor Scoring'!$E$3:$N$3,0)-1),2,TRUE)","v":1}]
[{"$f":"'A. Population Info'!A237","v":1000358821},{"$f":"'A. Population Info'!G237","v":"OIL"},{"$f":"'A. Population Info'!H237","v":1},{"$f":"'A. Population Info'!I237","v":0},{"$f":"'A. Population Info'!J237","v":0},{"$f":"'A. Population Info'!K237","v":0},{"$f":"VLOOKUP(B:B,OFFSET('B. PoF Adj Factor Scoring'!$E$5:$F$282,,MATCH(G$4,'B. PoF Adj Factor Scoring'!$E$3:$N$3,0)-1),2,TRUE)","v":1},{"$f":"VLOOKUP(C:C,OFFSET('B. PoF Adj Factor Scoring'!$E$5:$F$282,,MATCH(H$4,'B. PoF Adj Factor Scoring'!$E$3:$N$3,0)-1),2,TRUE)","v":1},{"$f":"VLOOKUP(D:D,OFFSET('B. PoF Adj Factor Scoring'!$E$5:$F$282,,MATCH(I$4,'B. PoF Adj Factor Scoring'!$E$3:$N$3,0)-1),2,TRUE)","v":1},{"$f":"VLOOKUP(E:E,OFFSET('B. PoF Adj Factor Scoring'!$E$5:$F$282,,MATCH(J$4,'B. PoF Adj Factor Scoring'!$E$3:$N$3,0)-1),2,TRUE)","v":1},{"$f":"VLOOKUP(F:F,OFFSET('B. PoF Adj Factor Scoring'!$E$5:$F$282,,MATCH(K$4,'B. PoF Adj Factor Scoring'!$E$3:$N$3,0)-1),2,TRUE)","v":1}]
[{"$f":"'A. Population Info'!A238","v":1000358848},{"$f":"'A. Population Info'!G238","v":"OIL"},{"$f":"'A. Population Info'!H238","v":1},{"$f":"'A. Population Info'!I238","v":0},{"$f":"'A. Population Info'!J238","v":0},{"$f":"'A. Population Info'!K238","v":0},{"$f":"VLOOKUP(B:B,OFFSET('B. PoF Adj Factor Scoring'!$E$5:$F$282,,MATCH(G$4,'B. PoF Adj Factor Scoring'!$E$3:$N$3,0)-1),2,TRUE)","v":1},{"$f":"VLOOKUP(C:C,OFFSET('B. PoF Adj Factor Scoring'!$E$5:$F$282,,MATCH(H$4,'B. PoF Adj Factor Scoring'!$E$3:$N$3,0)-1),2,TRUE)","v":1},{"$f":"VLOOKUP(D:D,OFFSET('B. PoF Adj Factor Scoring'!$E$5:$F$282,,MATCH(I$4,'B. PoF Adj Factor Scoring'!$E$3:$N$3,0)-1),2,TRUE)","v":1},{"$f":"VLOOKUP(E:E,OFFSET('B. PoF Adj Factor Scoring'!$E$5:$F$282,,MATCH(J$4,'B. PoF Adj Factor Scoring'!$E$3:$N$3,0)-1),2,TRUE)","v":1},{"$f":"VLOOKUP(F:F,OFFSET('B. PoF Adj Factor Scoring'!$E$5:$F$282,,MATCH(K$4,'B. PoF Adj Factor Scoring'!$E$3:$N$3,0)-1),2,TRUE)","v":1}]
[{"$f":"'A. Population Info'!A239","v":1000358878},{"$f":"'A. Population Info'!G239","v":"OIL"},{"$f":"'A. Population Info'!H239","v":1},{"$f":"'A. Population Info'!I239","v":0},{"$f":"'A. Population Info'!J239","v":0},{"$f":"'A. Population Info'!K239","v":0},{"$f":"VLOOKUP(B:B,OFFSET('B. PoF Adj Factor Scoring'!$E$5:$F$282,,MATCH(G$4,'B. PoF Adj Factor Scoring'!$E$3:$N$3,0)-1),2,TRUE)","v":1},{"$f":"VLOOKUP(C:C,OFFSET('B. PoF Adj Factor Scoring'!$E$5:$F$282,,MATCH(H$4,'B. PoF Adj Factor Scoring'!$E$3:$N$3,0)-1),2,TRUE)","v":1},{"$f":"VLOOKUP(D:D,OFFSET('B. PoF Adj Factor Scoring'!$E$5:$F$282,,MATCH(I$4,'B. PoF Adj Factor Scoring'!$E$3:$N$3,0)-1),2,TRUE)","v":1},{"$f":"VLOOKUP(E:E,OFFSET('B. PoF Adj Factor Scoring'!$E$5:$F$282,,MATCH(J$4,'B. PoF Adj Factor Scoring'!$E$3:$N$3,0)-1),2,TRUE)","v":1},{"$f":"VLOOKUP(F:F,OFFSET('B. PoF Adj Factor Scoring'!$E$5:$F$282,,MATCH(K$4,'B. PoF Adj Factor Scoring'!$E$3:$N$3,0)-1),2,TRUE)","v":1}]
[{"$f":"'A. Population Info'!A240","v":1000358906},{"$f":"'A. Population Info'!G240","v":"OIL"},{"$f":"'A. Population Info'!H240","v":1},{"$f":"'A. Population Info'!I240","v":0},{"$f":"'A. Population Info'!J240","v":0},{"$f":"'A. Population Info'!K240","v":0},{"$f":"VLOOKUP(B:B,OFFSET('B. PoF Adj Factor Scoring'!$E$5:$F$282,,MATCH(G$4,'B. PoF Adj Factor Scoring'!$E$3:$N$3,0)-1),2,TRUE)","v":1},{"$f":"VLOOKUP(C:C,OFFSET('B. PoF Adj Factor Scoring'!$E$5:$F$282,,MATCH(H$4,'B. PoF Adj Factor Scoring'!$E$3:$N$3,0)-1),2,TRUE)","v":1},{"$f":"VLOOKUP(D:D,OFFSET('B. PoF Adj Factor Scoring'!$E$5:$F$282,,MATCH(I$4,'B. PoF Adj Factor Scoring'!$E$3:$N$3,0)-1),2,TRUE)","v":1},{"$f":"VLOOKUP(E:E,OFFSET('B. PoF Adj Factor Scoring'!$E$5:$F$282,,MATCH(J$4,'B. PoF Adj Factor Scoring'!$E$3:$N$3,0)-1),2,TRUE)","v":1},{"$f":"VLOOKUP(F:F,OFFSET('B. PoF Adj Factor Scoring'!$E$5:$F$282,,MATCH(K$4,'B. PoF Adj Factor Scoring'!$E$3:$N$3,0)-1),2,TRUE)","v":1}]
[{"$f":"'A. Population Info'!A241","v":1000358936},{"$f":"'A. Population Info'!G241","v":"CAST_RESIN"},{"$f":"'A. Population Info'!H241","v":"N/A"},{"$f":"'A. Population Info'!I241","v":0},{"$f":"'A. Population Info'!J241","v":0},{"$f":"'A. Population Info'!K241","v":0},{"$f":"VLOOKUP(B:B,OFFSET('B. PoF Adj Factor Scoring'!$E$5:$F$282,,MATCH(G$4,'B. PoF Adj Factor Scoring'!$E$3:$N$3,0)-1),2,TRUE)","v":1},{"$f":"VLOOKUP(C:C,OFFSET('B. PoF Adj Factor Scoring'!$E$5:$F$282,,MATCH(H$4,'B. PoF Adj Factor Scoring'!$E$3:$N$3,0)-1),2,TRUE)","v":1},{"$f":"VLOOKUP(D:D,OFFSET('B. PoF Adj Factor Scoring'!$E$5:$F$282,,MATCH(I$4,'B. PoF Adj Factor Scoring'!$E$3:$N$3,0)-1),2,TRUE)","v":1},{"$f":"VLOOKUP(E:E,OFFSET('B. PoF Adj Factor Scoring'!$E$5:$F$282,,MATCH(J$4,'B. PoF Adj Factor Scoring'!$E$3:$N$3,0)-1),2,TRUE)","v":1},{"$f":"VLOOKUP(F:F,OFFSET('B. PoF Adj Factor Scoring'!$E$5:$F$282,,MATCH(K$4,'B. PoF Adj Factor Scoring'!$E$3:$N$3,0)-1),2,TRUE)","v":1}]
[{"$f":"'A. Population Info'!A242","v":1000358963},{"$f":"'A. Population Info'!G242","v":"OIL"},{"$f":"'A. Population Info'!H242","v":1},{"$f":"'A. Population Info'!I242","v":0},{"$f":"'A. Population Info'!J242","v":0},{"$f":"'A. Population Info'!K242","v":0},{"$f":"VLOOKUP(B:B,OFFSET('B. PoF Adj Factor Scoring'!$E$5:$F$282,,MATCH(G$4,'B. PoF Adj Factor Scoring'!$E$3:$N$3,0)-1),2,TRUE)","v":1},{"$f":"VLOOKUP(C:C,OFFSET('B. PoF Adj Factor Scoring'!$E$5:$F$282,,MATCH(H$4,'B. PoF Adj Factor Scoring'!$E$3:$N$3,0)-1),2,TRUE)","v":1},{"$f":"VLOOKUP(D:D,OFFSET('B. PoF Adj Factor Scoring'!$E$5:$F$282,,MATCH(I$4,'B. PoF Adj Factor Scoring'!$E$3:$N$3,0)-1),2,TRUE)","v":1},{"$f":"VLOOKUP(E:E,OFFSET('B. PoF Adj Factor Scoring'!$E$5:$F$282,,MATCH(J$4,'B. PoF Adj Factor Scoring'!$E$3:$N$3,0)-1),2,TRUE)","v":1},{"$f":"VLOOKUP(F:F,OFFSET('B. PoF Adj Factor Scoring'!$E$5:$F$282,,MATCH(K$4,'B. PoF Adj Factor Scoring'!$E$3:$N$3,0)-1),2,TRUE)","v":1}]
[{"$f":"'A. Population Info'!A243","v":1000358993},{"$f":"'A. Population Info'!G243","v":"OIL"},{"$f":"'A. Population Info'!H243","v":1},{"$f":"'A. Population Info'!I243","v":0},{"$f":"'A. Population Info'!J243","v":0},{"$f":"'A. Population Info'!K243","v":0},{"$f":"VLOOKUP(B:B,OFFSET('B. PoF Adj Factor Scoring'!$E$5:$F$282,,MATCH(G$4,'B. PoF Adj Factor Scoring'!$E$3:$N$3,0)-1),2,TRUE)","v":1},{"$f":"VLOOKUP(C:C,OFFSET('B. PoF Adj Factor Scoring'!$E$5:$F$282,,MATCH(H$4,'B. PoF Adj Factor Scoring'!$E$3:$N$3,0)-1),2,TRUE)","v":1},{"$f":"VLOOKUP(D:D,OFFSET('B. PoF Adj Factor Scoring'!$E$5:$F$282,,MATCH(I$4,'B. PoF Adj Factor Scoring'!$E$3:$N$3,0)-1),2,TRUE)","v":1},{"$f":"VLOOKUP(E:E,OFFSET('B. PoF Adj Factor Scoring'!$E$5:$F$282,,MATCH(J$4,'B. PoF Adj Factor Scoring'!$E$3:$N$3,0)-1),2,TRUE)","v":1},{"$f":"VLOOKUP(F:F,OFFSET('B. PoF Adj Factor Scoring'!$E$5:$F$282,,MATCH(K$4,'B. PoF Adj Factor Scoring'!$E$3:$N$3,0)-1),2,TRUE)","v":1}]
[{"$f":"'A. Population Info'!A244","v":1000362022},{"$f":"'A. Population Info'!G244","v":"OIL"},{"$f":"'A. Population Info'!H244","v":1},{"$f":"'A. Population Info'!I244","v":0},{"$f":"'A. Population Info'!J244","v":0},{"$f":"'A. Population Info'!K244","v":0},{"$f":"VLOOKUP(B:B,OFFSET('B. PoF Adj Factor Scoring'!$E$5:$F$282,,MATCH(G$4,'B. PoF Adj Factor Scoring'!$E$3:$N$3,0)-1),2,TRUE)","v":1},{"$f":"VLOOKUP(C:C,OFFSET('B. PoF Adj Factor Scoring'!$E$5:$F$282,,MATCH(H$4,'B. PoF Adj Factor Scoring'!$E$3:$N$3,0)-1),2,TRUE)","v":1},{"$f":"VLOOKUP(D:D,OFFSET('B. PoF Adj Factor Scoring'!$E$5:$F$282,,MATCH(I$4,'B. PoF Adj Factor Scoring'!$E$3:$N$3,0)-1),2,TRUE)","v":1},{"$f":"VLOOKUP(E:E,OFFSET('B. PoF Adj Factor Scoring'!$E$5:$F$282,,MATCH(J$4,'B. PoF Adj Factor Scoring'!$E$3:$N$3,0)-1),2,TRUE)","v":1},{"$f":"VLOOKUP(F:F,OFFSET('B. PoF Adj Factor Scoring'!$E$5:$F$282,,MATCH(K$4,'B. PoF Adj Factor Scoring'!$E$3:$N$3,0)-1),2,TRUE)","v":1}]
[{"$f":"'A. Population Info'!A245","v":1000362081},{"$f":"'A. Population Info'!G245","v":"OIL"},{"$f":"'A. Population Info'!H245","v":1},{"$f":"'A. Population Info'!I245","v":0},{"$f":"'A. Population Info'!J245","v":0},{"$f":"'A. Population Info'!K245","v":0},{"$f":"VLOOKUP(B:B,OFFSET('B. PoF Adj Factor Scoring'!$E$5:$F$282,,MATCH(G$4,'B. PoF Adj Factor Scoring'!$E$3:$N$3,0)-1),2,TRUE)","v":1},{"$f":"VLOOKUP(C:C,OFFSET('B. PoF Adj Factor Scoring'!$E$5:$F$282,,MATCH(H$4,'B. PoF Adj Factor Scoring'!$E$3:$N$3,0)-1),2,TRUE)","v":1},{"$f":"VLOOKUP(D:D,OFFSET('B. PoF Adj Factor Scoring'!$E$5:$F$282,,MATCH(I$4,'B. PoF Adj Factor Scoring'!$E$3:$N$3,0)-1),2,TRUE)","v":1},{"$f":"VLOOKUP(E:E,OFFSET('B. PoF Adj Factor Scoring'!$E$5:$F$282,,MATCH(J$4,'B. PoF Adj Factor Scoring'!$E$3:$N$3,0)-1),2,TRUE)","v":1},{"$f":"VLOOKUP(F:F,OFFSET('B. PoF Adj Factor Scoring'!$E$5:$F$282,,MATCH(K$4,'B. PoF Adj Factor Scoring'!$E$3:$N$3,0)-1),2,TRUE)","v":1}]
[{"$f":"'A. Population Info'!A246","v":1000362111},{"$f":"'A. Population Info'!G246","v":"OIL"},{"$f":"'A. Population Info'!H246","v":1},{"$f":"'A. Population Info'!I246","v":0},{"$f":"'A. Population Info'!J246","v":0},{"$f":"'A. Population Info'!K246","v":0},{"$f":"VLOOKUP(B:B,OFFSET('B. PoF Adj Factor Scoring'!$E$5:$F$282,,MATCH(G$4,'B. PoF Adj Factor Scoring'!$E$3:$N$3,0)-1),2,TRUE)","v":1},{"$f":"VLOOKUP(C:C,OFFSET('B. PoF Adj Factor Scoring'!$E$5:$F$282,,MATCH(H$4,'B. PoF Adj Factor Scoring'!$E$3:$N$3,0)-1),2,TRUE)","v":1},{"$f":"VLOOKUP(D:D,OFFSET('B. PoF Adj Factor Scoring'!$E$5:$F$282,,MATCH(I$4,'B. PoF Adj Factor Scoring'!$E$3:$N$3,0)-1),2,TRUE)","v":1},{"$f":"VLOOKUP(E:E,OFFSET('B. PoF Adj Factor Scoring'!$E$5:$F$282,,MATCH(J$4,'B. PoF Adj Factor Scoring'!$E$3:$N$3,0)-1),2,TRUE)","v":1},{"$f":"VLOOKUP(F:F,OFFSET('B. PoF Adj Factor Scoring'!$E$5:$F$282,,MATCH(K$4,'B. PoF Adj Factor Scoring'!$E$3:$N$3,0)-1),2,TRUE)","v":1}]
[{"$f":"'A. Population Info'!A247","v":1000362141},{"$f":"'A. Population Info'!G247","v":"OIL"},{"$f":"'A. Population Info'!H247","v":1},{"$f":"'A. Population Info'!I247","v":0},{"$f":"'A. Population Info'!J247","v":0},{"$f":"'A. Population Info'!K247","v":0},{"$f":"VLOOKUP(B:B,OFFSET('B. PoF Adj Factor Scoring'!$E$5:$F$282,,MATCH(G$4,'B. PoF Adj Factor Scoring'!$E$3:$N$3,0)-1),2,TRUE)","v":1},{"$f":"VLOOKUP(C:C,OFFSET('B. PoF Adj Factor Scoring'!$E$5:$F$282,,MATCH(H$4,'B. PoF Adj Factor Scoring'!$E$3:$N$3,0)-1),2,TRUE)","v":1},{"$f":"VLOOKUP(D:D,OFFSET('B. PoF Adj Factor Scoring'!$E$5:$F$282,,MATCH(I$4,'B. PoF Adj Factor Scoring'!$E$3:$N$3,0)-1),2,TRUE)","v":1},{"$f":"VLOOKUP(E:E,OFFSET('B. PoF Adj Factor Scoring'!$E$5:$F$282,,MATCH(J$4,'B. PoF Adj Factor Scoring'!$E$3:$N$3,0)-1),2,TRUE)","v":1},{"$f":"VLOOKUP(F:F,OFFSET('B. PoF Adj Factor Scoring'!$E$5:$F$282,,MATCH(K$4,'B. PoF Adj Factor Scoring'!$E$3:$N$3,0)-1),2,TRUE)","v":1}]
[{"$f":"'A. Population Info'!A248","v":1000362166},{"$f":"'A. Population Info'!G248","v":"OIL"},{"$f":"'A. Population Info'!H248","v":1},{"$f":"'A. Population Info'!I248","v":0},{"$f":"'A. Population Info'!J248","v":0},{"$f":"'A. Population Info'!K248","v":0},{"$f":"VLOOKUP(B:B,OFFSET('B. PoF Adj Factor Scoring'!$E$5:$F$282,,MATCH(G$4,'B. PoF Adj Factor Scoring'!$E$3:$N$3,0)-1),2,TRUE)","v":1},{"$f":"VLOOKUP(C:C,OFFSET('B. PoF Adj Factor Scoring'!$E$5:$F$282,,MATCH(H$4,'B. PoF Adj Factor Scoring'!$E$3:$N$3,0)-1),2,TRUE)","v":1},{"$f":"VLOOKUP(D:D,OFFSET('B. PoF Adj Factor Scoring'!$E$5:$F$282,,MATCH(I$4,'B. PoF Adj Factor Scoring'!$E$3:$N$3,0)-1),2,TRUE)","v":1},{"$f":"VLOOKUP(E:E,OFFSET('B. PoF Adj Factor Scoring'!$E$5:$F$282,,MATCH(J$4,'B. PoF Adj Factor Scoring'!$E$3:$N$3,0)-1),2,TRUE)","v":1},{"$f":"VLOOKUP(F:F,OFFSET('B. PoF Adj Factor Scoring'!$E$5:$F$282,,MATCH(K$4,'B. PoF Adj Factor Scoring'!$E$3:$N$3,0)-1),2,TRUE)","v":1}]
[{"$f":"'A. Population Info'!A249","v":1000362199},{"$f":"'A. Population Info'!G249","v":"OIL"},{"$f":"'A. Population Info'!H249","v":1},{"$f":"'A. Population Info'!I249","v":0},{"$f":"'A. Population Info'!J249","v":0},{"$f":"'A. Population Info'!K249","v":0},{"$f":"VLOOKUP(B:B,OFFSET('B. PoF Adj Factor Scoring'!$E$5:$F$282,,MATCH(G$4,'B. PoF Adj Factor Scoring'!$E$3:$N$3,0)-1),2,TRUE)","v":1},{"$f":"VLOOKUP(C:C,OFFSET('B. PoF Adj Factor Scoring'!$E$5:$F$282,,MATCH(H$4,'B. PoF Adj Factor Scoring'!$E$3:$N$3,0)-1),2,TRUE)","v":1},{"$f":"VLOOKUP(D:D,OFFSET('B. PoF Adj Factor Scoring'!$E$5:$F$282,,MATCH(I$4,'B. PoF Adj Factor Scoring'!$E$3:$N$3,0)-1),2,TRUE)","v":1},{"$f":"VLOOKUP(E:E,OFFSET('B. PoF Adj Factor Scoring'!$E$5:$F$282,,MATCH(J$4,'B. PoF Adj Factor Scoring'!$E$3:$N$3,0)-1),2,TRUE)","v":1},{"$f":"VLOOKUP(F:F,OFFSET('B. PoF Adj Factor Scoring'!$E$5:$F$282,,MATCH(K$4,'B. PoF Adj Factor Scoring'!$E$3:$N$3,0)-1),2,TRUE)","v":1}]
[{"$f":"'A. Population Info'!A250","v":1000362227},{"$f":"'A. Population Info'!G250","v":"OIL"},{"$f":"'A. Population Info'!H250","v":1},{"$f":"'A. Population Info'!I250","v":0},{"$f":"'A. Population Info'!J250","v":0},{"$f":"'A. Population Info'!K250","v":0},{"$f":"VLOOKUP(B:B,OFFSET('B. PoF Adj Factor Scoring'!$E$5:$F$282,,MATCH(G$4,'B. PoF Adj Factor Scoring'!$E$3:$N$3,0)-1),2,TRUE)","v":1},{"$f":"VLOOKUP(C:C,OFFSET('B. PoF Adj Factor Scoring'!$E$5:$F$282,,MATCH(H$4,'B. PoF Adj Factor Scoring'!$E$3:$N$3,0)-1),2,TRUE)","v":1},{"$f":"VLOOKUP(D:D,OFFSET('B. PoF Adj Factor Scoring'!$E$5:$F$282,,MATCH(I$4,'B. PoF Adj Factor Scoring'!$E$3:$N$3,0)-1),2,TRUE)","v":1},{"$f":"VLOOKUP(E:E,OFFSET('B. PoF Adj Factor Scoring'!$E$5:$F$282,,MATCH(J$4,'B. PoF Adj Factor Scoring'!$E$3:$N$3,0)-1),2,TRUE)","v":1},{"$f":"VLOOKUP(F:F,OFFSET('B. PoF Adj Factor Scoring'!$E$5:$F$282,,MATCH(K$4,'B. PoF Adj Factor Scoring'!$E$3:$N$3,0)-1),2,TRUE)","v":1}]
[{"$f":"'A. Population Info'!A251","v":1000362285},{"$f":"'A. Population Info'!G251","v":"OIL"},{"$f":"'A. Population Info'!H251","v":1},{"$f":"'A. Population Info'!I251","v":0},{"$f":"'A. Population Info'!J251","v":0},{"$f":"'A. Population Info'!K251","v":0},{"$f":"VLOOKUP(B:B,OFFSET('B. PoF Adj Factor Scoring'!$E$5:$F$282,,MATCH(G$4,'B. PoF Adj Factor Scoring'!$E$3:$N$3,0)-1),2,TRUE)","v":1},{"$f":"VLOOKUP(C:C,OFFSET('B. PoF Adj Factor Scoring'!$E$5:$F$282,,MATCH(H$4,'B. PoF Adj Factor Scoring'!$E$3:$N$3,0)-1),2,TRUE)","v":1},{"$f":"VLOOKUP(D:D,OFFSET('B. PoF Adj Factor Scoring'!$E$5:$F$282,,MATCH(I$4,'B. PoF Adj Factor Scoring'!$E$3:$N$3,0)-1),2,TRUE)","v":1},{"$f":"VLOOKUP(E:E,OFFSET('B. PoF Adj Factor Scoring'!$E$5:$F$282,,MATCH(J$4,'B. PoF Adj Factor Scoring'!$E$3:$N$3,0)-1),2,TRUE)","v":1},{"$f":"VLOOKUP(F:F,OFFSET('B. PoF Adj Factor Scoring'!$E$5:$F$282,,MATCH(K$4,'B. PoF Adj Factor Scoring'!$E$3:$N$3,0)-1),2,TRUE)","v":1}]
[{"$f":"'A. Population Info'!A252","v":1000362316},{"$f":"'A. Population Info'!G252","v":"OIL"},{"$f":"'A. Population Info'!H252","v":1},{"$f":"'A. Population Info'!I252","v":0},{"$f":"'A. Population Info'!J252","v":0},{"$f":"'A. Population Info'!K252","v":0},{"$f":"VLOOKUP(B:B,OFFSET('B. PoF Adj Factor Scoring'!$E$5:$F$282,,MATCH(G$4,'B. PoF Adj Factor Scoring'!$E$3:$N$3,0)-1),2,TRUE)","v":1},{"$f":"VLOOKUP(C:C,OFFSET('B. PoF Adj Factor Scoring'!$E$5:$F$282,,MATCH(H$4,'B. PoF Adj Factor Scoring'!$E$3:$N$3,0)-1),2,TRUE)","v":1},{"$f":"VLOOKUP(D:D,OFFSET('B. PoF Adj Factor Scoring'!$E$5:$F$282,,MATCH(I$4,'B. PoF Adj Factor Scoring'!$E$3:$N$3,0)-1),2,TRUE)","v":1},{"$f":"VLOOKUP(E:E,OFFSET('B. PoF Adj Factor Scoring'!$E$5:$F$282,,MATCH(J$4,'B. PoF Adj Factor Scoring'!$E$3:$N$3,0)-1),2,TRUE)","v":1},{"$f":"VLOOKUP(F:F,OFFSET('B. PoF Adj Factor Scoring'!$E$5:$F$282,,MATCH(K$4,'B. PoF Adj Factor Scoring'!$E$3:$N$3,0)-1),2,TRUE)","v":1}]
[{"$f":"'A. Population Info'!A253","v":1000362345},{"$f":"'A. Population Info'!G253","v":"OIL"},{"$f":"'A. Population Info'!H253","v":1},{"$f":"'A. Population Info'!I253","v":0},{"$f":"'A. Population Info'!J253","v":0},{"$f":"'A. Population Info'!K253","v":0},{"$f":"VLOOKUP(B:B,OFFSET('B. PoF Adj Factor Scoring'!$E$5:$F$282,,MATCH(G$4,'B. PoF Adj Factor Scoring'!$E$3:$N$3,0)-1),2,TRUE)","v":1},{"$f":"VLOOKUP(C:C,OFFSET('B. PoF Adj Factor Scoring'!$E$5:$F$282,,MATCH(H$4,'B. PoF Adj Factor Scoring'!$E$3:$N$3,0)-1),2,TRUE)","v":1},{"$f":"VLOOKUP(D:D,OFFSET('B. PoF Adj Factor Scoring'!$E$5:$F$282,,MATCH(I$4,'B. PoF Adj Factor Scoring'!$E$3:$N$3,0)-1),2,TRUE)","v":1},{"$f":"VLOOKUP(E:E,OFFSET('B. PoF Adj Factor Scoring'!$E$5:$F$282,,MATCH(J$4,'B. PoF Adj Factor Scoring'!$E$3:$N$3,0)-1),2,TRUE)","v":1},{"$f":"VLOOKUP(F:F,OFFSET('B. PoF Adj Factor Scoring'!$E$5:$F$282,,MATCH(K$4,'B. PoF Adj Factor Scoring'!$E$3:$N$3,0)-1),2,TRUE)","v":1}]
[{"$f":"'A. Population Info'!A254","v":1000362379},{"$f":"'A. Population Info'!G254","v":"OIL"},{"$f":"'A. Population Info'!H254","v":1},{"$f":"'A. Population Info'!I254","v":0},{"$f":"'A. Population Info'!J254","v":0},{"$f":"'A. Population Info'!K254","v":0},{"$f":"VLOOKUP(B:B,OFFSET('B. PoF Adj Factor Scoring'!$E$5:$F$282,,MATCH(G$4,'B. PoF Adj Factor Scoring'!$E$3:$N$3,0)-1),2,TRUE)","v":1},{"$f":"VLOOKUP(C:C,OFFSET('B. PoF Adj Factor Scoring'!$E$5:$F$282,,MATCH(H$4,'B. PoF Adj Factor Scoring'!$E$3:$N$3,0)-1),2,TRUE)","v":1},{"$f":"VLOOKUP(D:D,OFFSET('B. PoF Adj Factor Scoring'!$E$5:$F$282,,MATCH(I$4,'B. PoF Adj Factor Scoring'!$E$3:$N$3,0)-1),2,TRUE)","v":1},{"$f":"VLOOKUP(E:E,OFFSET('B. PoF Adj Factor Scoring'!$E$5:$F$282,,MATCH(J$4,'B. PoF Adj Factor Scoring'!$E$3:$N$3,0)-1),2,TRUE)","v":1},{"$f":"VLOOKUP(F:F,OFFSET('B. PoF Adj Factor Scoring'!$E$5:$F$282,,MATCH(K$4,'B. PoF Adj Factor Scoring'!$E$3:$N$3,0)-1),2,TRUE)","v":1}]
[{"$f":"'A. Population Info'!A255","v":1000362439},{"$f":"'A. Population Info'!G255","v":"OIL"},{"$f":"'A. Population Info'!H255","v":1},{"$f":"'A. Population Info'!I255","v":0},{"$f":"'A. Population Info'!J255","v":0},{"$f":"'A. Population Info'!K255","v":0},{"$f":"VLOOKUP(B:B,OFFSET('B. PoF Adj Factor Scoring'!$E$5:$F$282,,MATCH(G$4,'B. PoF Adj Factor Scoring'!$E$3:$N$3,0)-1),2,TRUE)","v":1},{"$f":"VLOOKUP(C:C,OFFSET('B. PoF Adj Factor Scoring'!$E$5:$F$282,,MATCH(H$4,'B. PoF Adj Factor Scoring'!$E$3:$N$3,0)-1),2,TRUE)","v":1},{"$f":"VLOOKUP(D:D,OFFSET('B. PoF Adj Factor Scoring'!$E$5:$F$282,,MATCH(I$4,'B. PoF Adj Factor Scoring'!$E$3:$N$3,0)-1),2,TRUE)","v":1},{"$f":"VLOOKUP(E:E,OFFSET('B. PoF Adj Factor Scoring'!$E$5:$F$282,,MATCH(J$4,'B. PoF Adj Factor Scoring'!$E$3:$N$3,0)-1),2,TRUE)","v":1},{"$f":"VLOOKUP(F:F,OFFSET('B. PoF Adj Factor Scoring'!$E$5:$F$282,,MATCH(K$4,'B. PoF Adj Factor Scoring'!$E$3:$N$3,0)-1),2,TRUE)","v":1}]
[{"$f":"'A. Population Info'!A256","v":1000362467},{"$f":"'A. Population Info'!G256","v":"OIL"},{"$f":"'A. Population Info'!H256","v":1},{"$f":"'A. Population Info'!I256","v":0},{"$f":"'A. Population Info'!J256","v":0},{"$f":"'A. Population Info'!K256","v":0},{"$f":"VLOOKUP(B:B,OFFSET('B. PoF Adj Factor Scoring'!$E$5:$F$282,,MATCH(G$4,'B. PoF Adj Factor Scoring'!$E$3:$N$3,0)-1),2,TRUE)","v":1},{"$f":"VLOOKUP(C:C,OFFSET('B. PoF Adj Factor Scoring'!$E$5:$F$282,,MATCH(H$4,'B. PoF Adj Factor Scoring'!$E$3:$N$3,0)-1),2,TRUE)","v":1},{"$f":"VLOOKUP(D:D,OFFSET('B. PoF Adj Factor Scoring'!$E$5:$F$282,,MATCH(I$4,'B. PoF Adj Factor Scoring'!$E$3:$N$3,0)-1),2,TRUE)","v":1},{"$f":"VLOOKUP(E:E,OFFSET('B. PoF Adj Factor Scoring'!$E$5:$F$282,,MATCH(J$4,'B. PoF Adj Factor Scoring'!$E$3:$N$3,0)-1),2,TRUE)","v":1},{"$f":"VLOOKUP(F:F,OFFSET('B. PoF Adj Factor Scoring'!$E$5:$F$282,,MATCH(K$4,'B. PoF Adj Factor Scoring'!$E$3:$N$3,0)-1),2,TRUE)","v":1}]
[{"$f":"'A. Population Info'!A257","v":1000362497},{"$f":"'A. Population Info'!G257","v":"OIL"},{"$f":"'A. Population Info'!H257","v":1},{"$f":"'A. Population Info'!I257","v":0},{"$f":"'A. Population Info'!J257","v":0},{"$f":"'A. Population Info'!K257","v":0},{"$f":"VLOOKUP(B:B,OFFSET('B. PoF Adj Factor Scoring'!$E$5:$F$282,,MATCH(G$4,'B. PoF Adj Factor Scoring'!$E$3:$N$3,0)-1),2,TRUE)","v":1},{"$f":"VLOOKUP(C:C,OFFSET('B. PoF Adj Factor Scoring'!$E$5:$F$282,,MATCH(H$4,'B. PoF Adj Factor Scoring'!$E$3:$N$3,0)-1),2,TRUE)","v":1},{"$f":"VLOOKUP(D:D,OFFSET('B. PoF Adj Factor Scoring'!$E$5:$F$282,,MATCH(I$4,'B. PoF Adj Factor Scoring'!$E$3:$N$3,0)-1),2,TRUE)","v":1},{"$f":"VLOOKUP(E:E,OFFSET('B. PoF Adj Factor Scoring'!$E$5:$F$282,,MATCH(J$4,'B. PoF Adj Factor Scoring'!$E$3:$N$3,0)-1),2,TRUE)","v":1},{"$f":"VLOOKUP(F:F,OFFSET('B. PoF Adj Factor Scoring'!$E$5:$F$282,,MATCH(K$4,'B. PoF Adj Factor Scoring'!$E$3:$N$3,0)-1),2,TRUE)","v":1}]
[{"$f":"'A. Population Info'!A258","v":1000362528},{"$f":"'A. Population Info'!G258","v":"OIL"},{"$f":"'A. Population Info'!H258","v":1},{"$f":"'A. Population Info'!I258","v":0},{"$f":"'A. Population Info'!J258","v":0},{"$f":"'A. Population Info'!K258","v":0},{"$f":"VLOOKUP(B:B,OFFSET('B. PoF Adj Factor Scoring'!$E$5:$F$282,,MATCH(G$4,'B. PoF Adj Factor Scoring'!$E$3:$N$3,0)-1),2,TRUE)","v":1},{"$f":"VLOOKUP(C:C,OFFSET('B. PoF Adj Factor Scoring'!$E$5:$F$282,,MATCH(H$4,'B. PoF Adj Factor Scoring'!$E$3:$N$3,0)-1),2,TRUE)","v":1},{"$f":"VLOOKUP(D:D,OFFSET('B. PoF Adj Factor Scoring'!$E$5:$F$282,,MATCH(I$4,'B. PoF Adj Factor Scoring'!$E$3:$N$3,0)-1),2,TRUE)","v":1},{"$f":"VLOOKUP(E:E,OFFSET('B. PoF Adj Factor Scoring'!$E$5:$F$282,,MATCH(J$4,'B. PoF Adj Factor Scoring'!$E$3:$N$3,0)-1),2,TRUE)","v":1},{"$f":"VLOOKUP(F:F,OFFSET('B. PoF Adj Factor Scoring'!$E$5:$F$282,,MATCH(K$4,'B. PoF Adj Factor Scoring'!$E$3:$N$3,0)-1),2,TRUE)","v":1}]
[{"$f":"'A. Population Info'!A259","v":1000362556},{"$f":"'A. Population Info'!G259","v":"OIL"},{"$f":"'A. Population Info'!H259","v":1},{"$f":"'A. Population Info'!I259","v":0},{"$f":"'A. Population Info'!J259","v":0},{"$f":"'A. Population Info'!K259","v":0},{"$f":"VLOOKUP(B:B,OFFSET('B. PoF Adj Factor Scoring'!$E$5:$F$282,,MATCH(G$4,'B. PoF Adj Factor Scoring'!$E$3:$N$3,0)-1),2,TRUE)","v":1},{"$f":"VLOOKUP(C:C,OFFSET('B. PoF Adj Factor Scoring'!$E$5:$F$282,,MATCH(H$4,'B. PoF Adj Factor Scoring'!$E$3:$N$3,0)-1),2,TRUE)","v":1},{"$f":"VLOOKUP(D:D,OFFSET('B. PoF Adj Factor Scoring'!$E$5:$F$282,,MATCH(I$4,'B. PoF Adj Factor Scoring'!$E$3:$N$3,0)-1),2,TRUE)","v":1},{"$f":"VLOOKUP(E:E,OFFSET('B. PoF Adj Factor Scoring'!$E$5:$F$282,,MATCH(J$4,'B. PoF Adj Factor Scoring'!$E$3:$N$3,0)-1),2,TRUE)","v":1},{"$f":"VLOOKUP(F:F,OFFSET('B. PoF Adj Factor Scoring'!$E$5:$F$282,,MATCH(K$4,'B. PoF Adj Factor Scoring'!$E$3:$N$3,0)-1),2,TRUE)","v":1}]
[{"$f":"'A. Population Info'!A260","v":1000362587},{"$f":"'A. Population Info'!G260","v":"OIL"},{"$f":"'A. Population Info'!H260","v":1},{"$f":"'A. Population Info'!I260","v":0},{"$f":"'A. Population Info'!J260","v":0},{"$f":"'A. Population Info'!K260","v":0},{"$f":"VLOOKUP(B:B,OFFSET('B. PoF Adj Factor Scoring'!$E$5:$F$282,,MATCH(G$4,'B. PoF Adj Factor Scoring'!$E$3:$N$3,0)-1),2,TRUE)","v":1},{"$f":"VLOOKUP(C:C,OFFSET('B. PoF Adj Factor Scoring'!$E$5:$F$282,,MATCH(H$4,'B. PoF Adj Factor Scoring'!$E$3:$N$3,0)-1),2,TRUE)","v":1},{"$f":"VLOOKUP(D:D,OFFSET('B. PoF Adj Factor Scoring'!$E$5:$F$282,,MATCH(I$4,'B. PoF Adj Factor Scoring'!$E$3:$N$3,0)-1),2,TRUE)","v":1},{"$f":"VLOOKUP(E:E,OFFSET('B. PoF Adj Factor Scoring'!$E$5:$F$282,,MATCH(J$4,'B. PoF Adj Factor Scoring'!$E$3:$N$3,0)-1),2,TRUE)","v":1},{"$f":"VLOOKUP(F:F,OFFSET('B. PoF Adj Factor Scoring'!$E$5:$F$282,,MATCH(K$4,'B. PoF Adj Factor Scoring'!$E$3:$N$3,0)-1),2,TRUE)","v":1}]
[{"$f":"'A. Population Info'!A261","v":1000362618},{"$f":"'A. Population Info'!G261","v":"OIL"},{"$f":"'A. Population Info'!H261","v":1},{"$f":"'A. Population Info'!I261","v":0},{"$f":"'A. Population Info'!J261","v":0},{"$f":"'A. Population Info'!K261","v":0},{"$f":"VLOOKUP(B:B,OFFSET('B. PoF Adj Factor Scoring'!$E$5:$F$282,,MATCH(G$4,'B. PoF Adj Factor Scoring'!$E$3:$N$3,0)-1),2,TRUE)","v":1},{"$f":"VLOOKUP(C:C,OFFSET('B. PoF Adj Factor Scoring'!$E$5:$F$282,,MATCH(H$4,'B. PoF Adj Factor Scoring'!$E$3:$N$3,0)-1),2,TRUE)","v":1},{"$f":"VLOOKUP(D:D,OFFSET('B. PoF Adj Factor Scoring'!$E$5:$F$282,,MATCH(I$4,'B. PoF Adj Factor Scoring'!$E$3:$N$3,0)-1),2,TRUE)","v":1},{"$f":"VLOOKUP(E:E,OFFSET('B. PoF Adj Factor Scoring'!$E$5:$F$282,,MATCH(J$4,'B. PoF Adj Factor Scoring'!$E$3:$N$3,0)-1),2,TRUE)","v":1},{"$f":"VLOOKUP(F:F,OFFSET('B. PoF Adj Factor Scoring'!$E$5:$F$282,,MATCH(K$4,'B. PoF Adj Factor Scoring'!$E$3:$N$3,0)-1),2,TRUE)","v":1}]
[{"$f":"'A. Population Info'!A262","v":1000362675},{"$f":"'A. Population Info'!G262","v":"OIL"},{"$f":"'A. Population Info'!H262","v":1},{"$f":"'A. Population Info'!I262","v":0},{"$f":"'A. Population Info'!J262","v":0},{"$f":"'A. Population Info'!K262","v":0},{"$f":"VLOOKUP(B:B,OFFSET('B. PoF Adj Factor Scoring'!$E$5:$F$282,,MATCH(G$4,'B. PoF Adj Factor Scoring'!$E$3:$N$3,0)-1),2,TRUE)","v":1},{"$f":"VLOOKUP(C:C,OFFSET('B. PoF Adj Factor Scoring'!$E$5:$F$282,,MATCH(H$4,'B. PoF Adj Factor Scoring'!$E$3:$N$3,0)-1),2,TRUE)","v":1},{"$f":"VLOOKUP(D:D,OFFSET('B. PoF Adj Factor Scoring'!$E$5:$F$282,,MATCH(I$4,'B. PoF Adj Factor Scoring'!$E$3:$N$3,0)-1),2,TRUE)","v":1},{"$f":"VLOOKUP(E:E,OFFSET('B. PoF Adj Factor Scoring'!$E$5:$F$282,,MATCH(J$4,'B. PoF Adj Factor Scoring'!$E$3:$N$3,0)-1),2,TRUE)","v":1},{"$f":"VLOOKUP(F:F,OFFSET('B. PoF Adj Factor Scoring'!$E$5:$F$282,,MATCH(K$4,'B. PoF Adj Factor Scoring'!$E$3:$N$3,0)-1),2,TRUE)","v":1}]
[{"$f":"'A. Population Info'!A263","v":1000362711},{"$f":"'A. Population Info'!G263","v":"OIL"},{"$f":"'A. Population Info'!H263","v":2},{"$f":"'A. Population Info'!I263","v":0},{"$f":"'A. Population Info'!J263","v":0},{"$f":"'A. Population Info'!K263","v":0},{"$f":"VLOOKUP(B:B,OFFSET('B. PoF Adj Factor Scoring'!$E$5:$F$282,,MATCH(G$4,'B. PoF Adj Factor Scoring'!$E$3:$N$3,0)-1),2,TRUE)","v":1},{"$f":"VLOOKUP(C:C,OFFSET('B. PoF Adj Factor Scoring'!$E$5:$F$282,,MATCH(H$4,'B. PoF Adj Factor Scoring'!$E$3:$N$3,0)-1),2,TRUE)","v":2},{"$f":"VLOOKUP(D:D,OFFSET('B. PoF Adj Factor Scoring'!$E$5:$F$282,,MATCH(I$4,'B. PoF Adj Factor Scoring'!$E$3:$N$3,0)-1),2,TRUE)","v":1},{"$f":"VLOOKUP(E:E,OFFSET('B. PoF Adj Factor Scoring'!$E$5:$F$282,,MATCH(J$4,'B. PoF Adj Factor Scoring'!$E$3:$N$3,0)-1),2,TRUE)","v":1},{"$f":"VLOOKUP(F:F,OFFSET('B. PoF Adj Factor Scoring'!$E$5:$F$282,,MATCH(K$4,'B. PoF Adj Factor Scoring'!$E$3:$N$3,0)-1),2,TRUE)","v":1}]
[{"$f":"'A. Population Info'!A264","v":1000362743},{"$f":"'A. Population Info'!G264","v":"OIL"},{"$f":"'A. Population Info'!H264","v":2},{"$f":"'A. Population Info'!I264","v":0},{"$f":"'A. Population Info'!J264","v":0},{"$f":"'A. Population Info'!K264","v":0},{"$f":"VLOOKUP(B:B,OFFSET('B. PoF Adj Factor Scoring'!$E$5:$F$282,,MATCH(G$4,'B. PoF Adj Factor Scoring'!$E$3:$N$3,0)-1),2,TRUE)","v":1},{"$f":"VLOOKUP(C:C,OFFSET('B. PoF Adj Factor Scoring'!$E$5:$F$282,,MATCH(H$4,'B. PoF Adj Factor Scoring'!$E$3:$N$3,0)-1),2,TRUE)","v":2},{"$f":"VLOOKUP(D:D,OFFSET('B. PoF Adj Factor Scoring'!$E$5:$F$282,,MATCH(I$4,'B. PoF Adj Factor Scoring'!$E$3:$N$3,0)-1),2,TRUE)","v":1},{"$f":"VLOOKUP(E:E,OFFSET('B. PoF Adj Factor Scoring'!$E$5:$F$282,,MATCH(J$4,'B. PoF Adj Factor Scoring'!$E$3:$N$3,0)-1),2,TRUE)","v":1},{"$f":"VLOOKUP(F:F,OFFSET('B. PoF Adj Factor Scoring'!$E$5:$F$282,,MATCH(K$4,'B. PoF Adj Factor Scoring'!$E$3:$N$3,0)-1),2,TRUE)","v":1}]
[{"$f":"'A. Population Info'!A265","v":1000362772},{"$f":"'A. Population Info'!G265","v":"OIL"},{"$f":"'A. Population Info'!H265","v":1},{"$f":"'A. Population Info'!I265","v":0},{"$f":"'A. Population Info'!J265","v":0},{"$f":"'A. Population Info'!K265","v":0},{"$f":"VLOOKUP(B:B,OFFSET('B. PoF Adj Factor Scoring'!$E$5:$F$282,,MATCH(G$4,'B. PoF Adj Factor Scoring'!$E$3:$N$3,0)-1),2,TRUE)","v":1},{"$f":"VLOOKUP(C:C,OFFSET('B. PoF Adj Factor Scoring'!$E$5:$F$282,,MATCH(H$4,'B. PoF Adj Factor Scoring'!$E$3:$N$3,0)-1),2,TRUE)","v":1},{"$f":"VLOOKUP(D:D,OFFSET('B. PoF Adj Factor Scoring'!$E$5:$F$282,,MATCH(I$4,'B. PoF Adj Factor Scoring'!$E$3:$N$3,0)-1),2,TRUE)","v":1},{"$f":"VLOOKUP(E:E,OFFSET('B. PoF Adj Factor Scoring'!$E$5:$F$282,,MATCH(J$4,'B. PoF Adj Factor Scoring'!$E$3:$N$3,0)-1),2,TRUE)","v":1},{"$f":"VLOOKUP(F:F,OFFSET('B. PoF Adj Factor Scoring'!$E$5:$F$282,,MATCH(K$4,'B. PoF Adj Factor Scoring'!$E$3:$N$3,0)-1),2,TRUE)","v":1}]
[{"$f":"'A. Population Info'!A266","v":1000362807},{"$f":"'A. Population Info'!G266","v":"OIL"},{"$f":"'A. Population Info'!H266","v":1},{"$f":"'A. Population Info'!I266","v":0},{"$f":"'A. Population Info'!J266","v":0},{"$f":"'A. Population Info'!K266","v":0},{"$f":"VLOOKUP(B:B,OFFSET('B. PoF Adj Factor Scoring'!$E$5:$F$282,,MATCH(G$4,'B. PoF Adj Factor Scoring'!$E$3:$N$3,0)-1),2,TRUE)","v":1},{"$f":"VLOOKUP(C:C,OFFSET('B. PoF Adj Factor Scoring'!$E$5:$F$282,,MATCH(H$4,'B. PoF Adj Factor Scoring'!$E$3:$N$3,0)-1),2,TRUE)","v":1},{"$f":"VLOOKUP(D:D,OFFSET('B. PoF Adj Factor Scoring'!$E$5:$F$282,,MATCH(I$4,'B. PoF Adj Factor Scoring'!$E$3:$N$3,0)-1),2,TRUE)","v":1},{"$f":"VLOOKUP(E:E,OFFSET('B. PoF Adj Factor Scoring'!$E$5:$F$282,,MATCH(J$4,'B. PoF Adj Factor Scoring'!$E$3:$N$3,0)-1),2,TRUE)","v":1},{"$f":"VLOOKUP(F:F,OFFSET('B. PoF Adj Factor Scoring'!$E$5:$F$282,,MATCH(K$4,'B. PoF Adj Factor Scoring'!$E$3:$N$3,0)-1),2,TRUE)","v":1}]
[{"$f":"'A. Population Info'!A267","v":1000362836},{"$f":"'A. Population Info'!G267","v":"OIL"},{"$f":"'A. Population Info'!H267","v":1},{"$f":"'A. Population Info'!I267","v":0},{"$f":"'A. Population Info'!J267","v":0},{"$f":"'A. Population Info'!K267","v":0},{"$f":"VLOOKUP(B:B,OFFSET('B. PoF Adj Factor Scoring'!$E$5:$F$282,,MATCH(G$4,'B. PoF Adj Factor Scoring'!$E$3:$N$3,0)-1),2,TRUE)","v":1},{"$f":"VLOOKUP(C:C,OFFSET('B. PoF Adj Factor Scoring'!$E$5:$F$282,,MATCH(H$4,'B. PoF Adj Factor Scoring'!$E$3:$N$3,0)-1),2,TRUE)","v":1},{"$f":"VLOOKUP(D:D,OFFSET('B. PoF Adj Factor Scoring'!$E$5:$F$282,,MATCH(I$4,'B. PoF Adj Factor Scoring'!$E$3:$N$3,0)-1),2,TRUE)","v":1},{"$f":"VLOOKUP(E:E,OFFSET('B. PoF Adj Factor Scoring'!$E$5:$F$282,,MATCH(J$4,'B. PoF Adj Factor Scoring'!$E$3:$N$3,0)-1),2,TRUE)","v":1},{"$f":"VLOOKUP(F:F,OFFSET('B. PoF Adj Factor Scoring'!$E$5:$F$282,,MATCH(K$4,'B. PoF Adj Factor Scoring'!$E$3:$N$3,0)-1),2,TRUE)","v":1}]
[{"$f":"'A. Population Info'!A268","v":1000362870},{"$f":"'A. Population Info'!G268","v":"OIL"},{"$f":"'A. Population Info'!H268","v":1},{"$f":"'A. Population Info'!I268","v":0},{"$f":"'A. Population Info'!J268","v":0},{"$f":"'A. Population Info'!K268","v":0},{"$f":"VLOOKUP(B:B,OFFSET('B. PoF Adj Factor Scoring'!$E$5:$F$282,,MATCH(G$4,'B. PoF Adj Factor Scoring'!$E$3:$N$3,0)-1),2,TRUE)","v":1},{"$f":"VLOOKUP(C:C,OFFSET('B. PoF Adj Factor Scoring'!$E$5:$F$282,,MATCH(H$4,'B. PoF Adj Factor Scoring'!$E$3:$N$3,0)-1),2,TRUE)","v":1},{"$f":"VLOOKUP(D:D,OFFSET('B. PoF Adj Factor Scoring'!$E$5:$F$282,,MATCH(I$4,'B. PoF Adj Factor Scoring'!$E$3:$N$3,0)-1),2,TRUE)","v":1},{"$f":"VLOOKUP(E:E,OFFSET('B. PoF Adj Factor Scoring'!$E$5:$F$282,,MATCH(J$4,'B. PoF Adj Factor Scoring'!$E$3:$N$3,0)-1),2,TRUE)","v":1},{"$f":"VLOOKUP(F:F,OFFSET('B. PoF Adj Factor Scoring'!$E$5:$F$282,,MATCH(K$4,'B. PoF Adj Factor Scoring'!$E$3:$N$3,0)-1),2,TRUE)","v":1}]
[{"$f":"'A. Population Info'!A269","v":1000362899},{"$f":"'A. Population Info'!G269","v":"OIL"},{"$f":"'A. Population Info'!H269","v":1},{"$f":"'A. Population Info'!I269","v":0},{"$f":"'A. Population Info'!J269","v":0},{"$f":"'A. Population Info'!K269","v":0},{"$f":"VLOOKUP(B:B,OFFSET('B. PoF Adj Factor Scoring'!$E$5:$F$282,,MATCH(G$4,'B. PoF Adj Factor Scoring'!$E$3:$N$3,0)-1),2,TRUE)","v":1},{"$f":"VLOOKUP(C:C,OFFSET('B. PoF Adj Factor Scoring'!$E$5:$F$282,,MATCH(H$4,'B. PoF Adj Factor Scoring'!$E$3:$N$3,0)-1),2,TRUE)","v":1},{"$f":"VLOOKUP(D:D,OFFSET('B. PoF Adj Factor Scoring'!$E$5:$F$282,,MATCH(I$4,'B. PoF Adj Factor Scoring'!$E$3:$N$3,0)-1),2,TRUE)","v":1},{"$f":"VLOOKUP(E:E,OFFSET('B. PoF Adj Factor Scoring'!$E$5:$F$282,,MATCH(J$4,'B. PoF Adj Factor Scoring'!$E$3:$N$3,0)-1),2,TRUE)","v":1},{"$f":"VLOOKUP(F:F,OFFSET('B. PoF Adj Factor Scoring'!$E$5:$F$282,,MATCH(K$4,'B. PoF Adj Factor Scoring'!$E$3:$N$3,0)-1),2,TRUE)","v":1}]
[{"$f":"'A. Population Info'!A270","v":1000362927},{"$f":"'A. Population Info'!G270","v":"OIL"},{"$f":"'A. Population Info'!H270","v":2},{"$f":"'A. Population Info'!I270","v":0},{"$f":"'A. Population Info'!J270","v":0},{"$f":"'A. Population Info'!K270","v":0},{"$f":"VLOOKUP(B:B,OFFSET('B. PoF Adj Factor Scoring'!$E$5:$F$282,,MATCH(G$4,'B. PoF Adj Factor Scoring'!$E$3:$N$3,0)-1),2,TRUE)","v":1},{"$f":"VLOOKUP(C:C,OFFSET('B. PoF Adj Factor Scoring'!$E$5:$F$282,,MATCH(H$4,'B. PoF Adj Factor Scoring'!$E$3:$N$3,0)-1),2,TRUE)","v":2},{"$f":"VLOOKUP(D:D,OFFSET('B. PoF Adj Factor Scoring'!$E$5:$F$282,,MATCH(I$4,'B. PoF Adj Factor Scoring'!$E$3:$N$3,0)-1),2,TRUE)","v":1},{"$f":"VLOOKUP(E:E,OFFSET('B. PoF Adj Factor Scoring'!$E$5:$F$282,,MATCH(J$4,'B. PoF Adj Factor Scoring'!$E$3:$N$3,0)-1),2,TRUE)","v":1},{"$f":"VLOOKUP(F:F,OFFSET('B. PoF Adj Factor Scoring'!$E$5:$F$282,,MATCH(K$4,'B. PoF Adj Factor Scoring'!$E$3:$N$3,0)-1),2,TRUE)","v":1}]
[{"$f":"'A. Population Info'!A271","v":1000362965},{"$f":"'A. Population Info'!G271","v":"OIL"},{"$f":"'A. Population Info'!H271","v":2},{"$f":"'A. Population Info'!I271","v":0},{"$f":"'A. Population Info'!J271","v":0},{"$f":"'A. Population Info'!K271","v":0},{"$f":"VLOOKUP(B:B,OFFSET('B. PoF Adj Factor Scoring'!$E$5:$F$282,,MATCH(G$4,'B. PoF Adj Factor Scoring'!$E$3:$N$3,0)-1),2,TRUE)","v":1},{"$f":"VLOOKUP(C:C,OFFSET('B. PoF Adj Factor Scoring'!$E$5:$F$282,,MATCH(H$4,'B. PoF Adj Factor Scoring'!$E$3:$N$3,0)-1),2,TRUE)","v":2},{"$f":"VLOOKUP(D:D,OFFSET('B. PoF Adj Factor Scoring'!$E$5:$F$282,,MATCH(I$4,'B. PoF Adj Factor Scoring'!$E$3:$N$3,0)-1),2,TRUE)","v":1},{"$f":"VLOOKUP(E:E,OFFSET('B. PoF Adj Factor Scoring'!$E$5:$F$282,,MATCH(J$4,'B. PoF Adj Factor Scoring'!$E$3:$N$3,0)-1),2,TRUE)","v":1},{"$f":"VLOOKUP(F:F,OFFSET('B. PoF Adj Factor Scoring'!$E$5:$F$282,,MATCH(K$4,'B. PoF Adj Factor Scoring'!$E$3:$N$3,0)-1),2,TRUE)","v":1}]
[{"$f":"'A. Population Info'!A272","v":1000362998},{"$f":"'A. Population Info'!G272","v":"OIL"},{"$f":"'A. Population Info'!H272","v":1},{"$f":"'A. Population Info'!I272","v":0},{"$f":"'A. Population Info'!J272","v":0},{"$f":"'A. Population Info'!K272","v":0},{"$f":"VLOOKUP(B:B,OFFSET('B. PoF Adj Factor Scoring'!$E$5:$F$282,,MATCH(G$4,'B. PoF Adj Factor Scoring'!$E$3:$N$3,0)-1),2,TRUE)","v":1},{"$f":"VLOOKUP(C:C,OFFSET('B. PoF Adj Factor Scoring'!$E$5:$F$282,,MATCH(H$4,'B. PoF Adj Factor Scoring'!$E$3:$N$3,0)-1),2,TRUE)","v":1},{"$f":"VLOOKUP(D:D,OFFSET('B. PoF Adj Factor Scoring'!$E$5:$F$282,,MATCH(I$4,'B. PoF Adj Factor Scoring'!$E$3:$N$3,0)-1),2,TRUE)","v":1},{"$f":"VLOOKUP(E:E,OFFSET('B. PoF Adj Factor Scoring'!$E$5:$F$282,,MATCH(J$4,'B. PoF Adj Factor Scoring'!$E$3:$N$3,0)-1),2,TRUE)","v":1},{"$f":"VLOOKUP(F:F,OFFSET('B. PoF Adj Factor Scoring'!$E$5:$F$282,,MATCH(K$4,'B. PoF Adj Factor Scoring'!$E$3:$N$3,0)-1),2,TRUE)","v":1}]
[{"$f":"'A. Population Info'!A273","v":1000366027},{"$f":"'A. Population Info'!G273","v":"OIL"},{"$f":"'A. Population Info'!H273","v":1},{"$f":"'A. Population Info'!I273","v":0},{"$f":"'A. Population Info'!J273","v":0},{"$f":"'A. Population Info'!K273","v":0},{"$f":"VLOOKUP(B:B,OFFSET('B. PoF Adj Factor Scoring'!$E$5:$F$282,,MATCH(G$4,'B. PoF Adj Factor Scoring'!$E$3:$N$3,0)-1),2,TRUE)","v":1},{"$f":"VLOOKUP(C:C,OFFSET('B. PoF Adj Factor Scoring'!$E$5:$F$282,,MATCH(H$4,'B. PoF Adj Factor Scoring'!$E$3:$N$3,0)-1),2,TRUE)","v":1},{"$f":"VLOOKUP(D:D,OFFSET('B. PoF Adj Factor Scoring'!$E$5:$F$282,,MATCH(I$4,'B. PoF Adj Factor Scoring'!$E$3:$N$3,0)-1),2,TRUE)","v":1},{"$f":"VLOOKUP(E:E,OFFSET('B. PoF Adj Factor Scoring'!$E$5:$F$282,,MATCH(J$4,'B. PoF Adj Factor Scoring'!$E$3:$N$3,0)-1),2,TRUE)","v":1},{"$f":"VLOOKUP(F:F,OFFSET('B. PoF Adj Factor Scoring'!$E$5:$F$282,,MATCH(K$4,'B. PoF Adj Factor Scoring'!$E$3:$N$3,0)-1),2,TRUE)","v":1}]
[{"$f":"'A. Population Info'!A274","v":1000366060},{"$f":"'A. Population Info'!G274","v":"OIL"},{"$f":"'A. Population Info'!H274","v":1},{"$f":"'A. Population Info'!I274","v":0},{"$f":"'A. Population Info'!J274","v":0},{"$f":"'A. Population Info'!K274","v":0},{"$f":"VLOOKUP(B:B,OFFSET('B. PoF Adj Factor Scoring'!$E$5:$F$282,,MATCH(G$4,'B. PoF Adj Factor Scoring'!$E$3:$N$3,0)-1),2,TRUE)","v":1},{"$f":"VLOOKUP(C:C,OFFSET('B. PoF Adj Factor Scoring'!$E$5:$F$282,,MATCH(H$4,'B. PoF Adj Factor Scoring'!$E$3:$N$3,0)-1),2,TRUE)","v":1},{"$f":"VLOOKUP(D:D,OFFSET('B. PoF Adj Factor Scoring'!$E$5:$F$282,,MATCH(I$4,'B. PoF Adj Factor Scoring'!$E$3:$N$3,0)-1),2,TRUE)","v":1},{"$f":"VLOOKUP(E:E,OFFSET('B. PoF Adj Factor Scoring'!$E$5:$F$282,,MATCH(J$4,'B. PoF Adj Factor Scoring'!$E$3:$N$3,0)-1),2,TRUE)","v":1},{"$f":"VLOOKUP(F:F,OFFSET('B. PoF Adj Factor Scoring'!$E$5:$F$282,,MATCH(K$4,'B. PoF Adj Factor Scoring'!$E$3:$N$3,0)-1),2,TRUE)","v":1}]
[{"$f":"'A. Population Info'!A275","v":1000366091},{"$f":"'A. Population Info'!G275","v":"OIL"},{"$f":"'A. Population Info'!H275","v":2},{"$f":"'A. Population Info'!I275","v":0},{"$f":"'A. Population Info'!J275","v":0},{"$f":"'A. Population Info'!K275","v":0},{"$f":"VLOOKUP(B:B,OFFSET('B. PoF Adj Factor Scoring'!$E$5:$F$282,,MATCH(G$4,'B. PoF Adj Factor Scoring'!$E$3:$N$3,0)-1),2,TRUE)","v":1},{"$f":"VLOOKUP(C:C,OFFSET('B. PoF Adj Factor Scoring'!$E$5:$F$282,,MATCH(H$4,'B. PoF Adj Factor Scoring'!$E$3:$N$3,0)-1),2,TRUE)","v":2},{"$f":"VLOOKUP(D:D,OFFSET('B. PoF Adj Factor Scoring'!$E$5:$F$282,,MATCH(I$4,'B. PoF Adj Factor Scoring'!$E$3:$N$3,0)-1),2,TRUE)","v":1},{"$f":"VLOOKUP(E:E,OFFSET('B. PoF Adj Factor Scoring'!$E$5:$F$282,,MATCH(J$4,'B. PoF Adj Factor Scoring'!$E$3:$N$3,0)-1),2,TRUE)","v":1},{"$f":"VLOOKUP(F:F,OFFSET('B. PoF Adj Factor Scoring'!$E$5:$F$282,,MATCH(K$4,'B. PoF Adj Factor Scoring'!$E$3:$N$3,0)-1),2,TRUE)","v":1}]
[{"$f":"'A. Population Info'!A276","v":1000366122},{"$f":"'A. Population Info'!G276","v":"OIL"},{"$f":"'A. Population Info'!H276","v":1},{"$f":"'A. Population Info'!I276","v":0},{"$f":"'A. Population Info'!J276","v":0},{"$f":"'A. Population Info'!K276","v":0},{"$f":"VLOOKUP(B:B,OFFSET('B. PoF Adj Factor Scoring'!$E$5:$F$282,,MATCH(G$4,'B. PoF Adj Factor Scoring'!$E$3:$N$3,0)-1),2,TRUE)","v":1},{"$f":"VLOOKUP(C:C,OFFSET('B. PoF Adj Factor Scoring'!$E$5:$F$282,,MATCH(H$4,'B. PoF Adj Factor Scoring'!$E$3:$N$3,0)-1),2,TRUE)","v":1},{"$f":"VLOOKUP(D:D,OFFSET('B. PoF Adj Factor Scoring'!$E$5:$F$282,,MATCH(I$4,'B. PoF Adj Factor Scoring'!$E$3:$N$3,0)-1),2,TRUE)","v":1},{"$f":"VLOOKUP(E:E,OFFSET('B. PoF Adj Factor Scoring'!$E$5:$F$282,,MATCH(J$4,'B. PoF Adj Factor Scoring'!$E$3:$N$3,0)-1),2,TRUE)","v":1},{"$f":"VLOOKUP(F:F,OFFSET('B. PoF Adj Factor Scoring'!$E$5:$F$282,,MATCH(K$4,'B. PoF Adj Factor Scoring'!$E$3:$N$3,0)-1),2,TRUE)","v":1}]
[{"$f":"'A. Population Info'!A277","v":1000366153},{"$f":"'A. Population Info'!G277","v":"OIL"},{"$f":"'A. Population Info'!H277","v":1},{"$f":"'A. Population Info'!I277","v":0},{"$f":"'A. Population Info'!J277","v":0},{"$f":"'A. Population Info'!K277","v":0},{"$f":"VLOOKUP(B:B,OFFSET('B. PoF Adj Factor Scoring'!$E$5:$F$282,,MATCH(G$4,'B. PoF Adj Factor Scoring'!$E$3:$N$3,0)-1),2,TRUE)","v":1},{"$f":"VLOOKUP(C:C,OFFSET('B. PoF Adj Factor Scoring'!$E$5:$F$282,,MATCH(H$4,'B. PoF Adj Factor Scoring'!$E$3:$N$3,0)-1),2,TRUE)","v":1},{"$f":"VLOOKUP(D:D,OFFSET('B. PoF Adj Factor Scoring'!$E$5:$F$282,,MATCH(I$4,'B. PoF Adj Factor Scoring'!$E$3:$N$3,0)-1),2,TRUE)","v":1},{"$f":"VLOOKUP(E:E,OFFSET('B. PoF Adj Factor Scoring'!$E$5:$F$282,,MATCH(J$4,'B. PoF Adj Factor Scoring'!$E$3:$N$3,0)-1),2,TRUE)","v":1},{"$f":"VLOOKUP(F:F,OFFSET('B. PoF Adj Factor Scoring'!$E$5:$F$282,,MATCH(K$4,'B. PoF Adj Factor Scoring'!$E$3:$N$3,0)-1),2,TRUE)","v":1}]
[{"$f":"'A. Population Info'!A278","v":1000366184},{"$f":"'A. Population Info'!G278","v":"OIL"},{"$f":"'A. Population Info'!H278","v":2},{"$f":"'A. Population Info'!I278","v":0},{"$f":"'A. Population Info'!J278","v":0},{"$f":"'A. Population Info'!K278","v":0},{"$f":"VLOOKUP(B:B,OFFSET('B. PoF Adj Factor Scoring'!$E$5:$F$282,,MATCH(G$4,'B. PoF Adj Factor Scoring'!$E$3:$N$3,0)-1),2,TRUE)","v":1},{"$f":"VLOOKUP(C:C,OFFSET('B. PoF Adj Factor Scoring'!$E$5:$F$282,,MATCH(H$4,'B. PoF Adj Factor Scoring'!$E$3:$N$3,0)-1),2,TRUE)","v":2},{"$f":"VLOOKUP(D:D,OFFSET('B. PoF Adj Factor Scoring'!$E$5:$F$282,,MATCH(I$4,'B. PoF Adj Factor Scoring'!$E$3:$N$3,0)-1),2,TRUE)","v":1},{"$f":"VLOOKUP(E:E,OFFSET('B. PoF Adj Factor Scoring'!$E$5:$F$282,,MATCH(J$4,'B. PoF Adj Factor Scoring'!$E$3:$N$3,0)-1),2,TRUE)","v":1},{"$f":"VLOOKUP(F:F,OFFSET('B. PoF Adj Factor Scoring'!$E$5:$F$282,,MATCH(K$4,'B. PoF Adj Factor Scoring'!$E$3:$N$3,0)-1),2,TRUE)","v":1}]
[{"$f":"'A. Population Info'!A279","v":1000366216},{"$f":"'A. Population Info'!G279","v":"OIL"},{"$f":"'A. Population Info'!H279","v":1},{"$f":"'A. Population Info'!I279","v":0},{"$f":"'A. Population Info'!J279","v":0},{"$f":"'A. Population Info'!K279","v":0},{"$f":"VLOOKUP(B:B,OFFSET('B. PoF Adj Factor Scoring'!$E$5:$F$282,,MATCH(G$4,'B. PoF Adj Factor Scoring'!$E$3:$N$3,0)-1),2,TRUE)","v":1},{"$f":"VLOOKUP(C:C,OFFSET('B. PoF Adj Factor Scoring'!$E$5:$F$282,,MATCH(H$4,'B. PoF Adj Factor Scoring'!$E$3:$N$3,0)-1),2,TRUE)","v":1},{"$f":"VLOOKUP(D:D,OFFSET('B. PoF Adj Factor Scoring'!$E$5:$F$282,,MATCH(I$4,'B. PoF Adj Factor Scoring'!$E$3:$N$3,0)-1),2,TRUE)","v":1},{"$f":"VLOOKUP(E:E,OFFSET('B. PoF Adj Factor Scoring'!$E$5:$F$282,,MATCH(J$4,'B. PoF Adj Factor Scoring'!$E$3:$N$3,0)-1),2,TRUE)","v":1},{"$f":"VLOOKUP(F:F,OFFSET('B. PoF Adj Factor Scoring'!$E$5:$F$282,,MATCH(K$4,'B. PoF Adj Factor Scoring'!$E$3:$N$3,0)-1),2,TRUE)","v":1}]
[{"$f":"'A. Population Info'!A280","v":1000366244},{"$f":"'A. Population Info'!G280","v":"OIL"},{"$f":"'A. Population Info'!H280","v":1},{"$f":"'A. Population Info'!I280","v":0},{"$f":"'A. Population Info'!J280","v":0},{"$f":"'A. Population Info'!K280","v":0},{"$f":"VLOOKUP(B:B,OFFSET('B. PoF Adj Factor Scoring'!$E$5:$F$282,,MATCH(G$4,'B. PoF Adj Factor Scoring'!$E$3:$N$3,0)-1),2,TRUE)","v":1},{"$f":"VLOOKUP(C:C,OFFSET('B. PoF Adj Factor Scoring'!$E$5:$F$282,,MATCH(H$4,'B. PoF Adj Factor Scoring'!$E$3:$N$3,0)-1),2,TRUE)","v":1},{"$f":"VLOOKUP(D:D,OFFSET('B. PoF Adj Factor Scoring'!$E$5:$F$282,,MATCH(I$4,'B. PoF Adj Factor Scoring'!$E$3:$N$3,0)-1),2,TRUE)","v":1},{"$f":"VLOOKUP(E:E,OFFSET('B. PoF Adj Factor Scoring'!$E$5:$F$282,,MATCH(J$4,'B. PoF Adj Factor Scoring'!$E$3:$N$3,0)-1),2,TRUE)","v":1},{"$f":"VLOOKUP(F:F,OFFSET('B. PoF Adj Factor Scoring'!$E$5:$F$282,,MATCH(K$4,'B. PoF Adj Factor Scoring'!$E$3:$N$3,0)-1),2,TRUE)","v":1}]
[{"$f":"'A. Population Info'!A281","v":1000366397},{"$f":"'A. Population Info'!G281","v":"OIL"},{"$f":"'A. Population Info'!H281","v":3},{"$f":"'A. Population Info'!I281","v":0},{"$f":"'A. Population Info'!J281","v":0},{"$f":"'A. Population Info'!K281","v":0},{"$f":"VLOOKUP(B:B,OFFSET('B. PoF Adj Factor Scoring'!$E$5:$F$282,,MATCH(G$4,'B. PoF Adj Factor Scoring'!$E$3:$N$3,0)-1),2,TRUE)","v":1},{"$f":"VLOOKUP(C:C,OFFSET('B. PoF Adj Factor Scoring'!$E$5:$F$282,,MATCH(H$4,'B. PoF Adj Factor Scoring'!$E$3:$N$3,0)-1),2,TRUE)","v":3},{"$f":"VLOOKUP(D:D,OFFSET('B. PoF Adj Factor Scoring'!$E$5:$F$282,,MATCH(I$4,'B. PoF Adj Factor Scoring'!$E$3:$N$3,0)-1),2,TRUE)","v":1},{"$f":"VLOOKUP(E:E,OFFSET('B. PoF Adj Factor Scoring'!$E$5:$F$282,,MATCH(J$4,'B. PoF Adj Factor Scoring'!$E$3:$N$3,0)-1),2,TRUE)","v":1},{"$f":"VLOOKUP(F:F,OFFSET('B. PoF Adj Factor Scoring'!$E$5:$F$282,,MATCH(K$4,'B. PoF Adj Factor Scoring'!$E$3:$N$3,0)-1),2,TRUE)","v":1}]
[{"$f":"'A. Population Info'!A282","v":1000366483},{"$f":"'A. Population Info'!G282","v":"OIL"},{"$f":"'A. Population Info'!H282","v":1},{"$f":"'A. Population Info'!I282","v":0},{"$f":"'A. Population Info'!J282","v":0},{"$f":"'A. Population Info'!K282","v":0},{"$f":"VLOOKUP(B:B,OFFSET('B. PoF Adj Factor Scoring'!$E$5:$F$282,,MATCH(G$4,'B. PoF Adj Factor Scoring'!$E$3:$N$3,0)-1),2,TRUE)","v":1},{"$f":"VLOOKUP(C:C,OFFSET('B. PoF Adj Factor Scoring'!$E$5:$F$282,,MATCH(H$4,'B. PoF Adj Factor Scoring'!$E$3:$N$3,0)-1),2,TRUE)","v":1},{"$f":"VLOOKUP(D:D,OFFSET('B. PoF Adj Factor Scoring'!$E$5:$F$282,,MATCH(I$4,'B. PoF Adj Factor Scoring'!$E$3:$N$3,0)-1),2,TRUE)","v":1},{"$f":"VLOOKUP(E:E,OFFSET('B. PoF Adj Factor Scoring'!$E$5:$F$282,,MATCH(J$4,'B. PoF Adj Factor Scoring'!$E$3:$N$3,0)-1),2,TRUE)","v":1},{"$f":"VLOOKUP(F:F,OFFSET('B. PoF Adj Factor Scoring'!$E$5:$F$282,,MATCH(K$4,'B. PoF Adj Factor Scoring'!$E$3:$N$3,0)-1),2,TRUE)","v":1}]
[{"$f":"'A. Population Info'!A283","v":1000366599},{"$f":"'A. Population Info'!G283","v":"OIL"},{"$f":"'A. Population Info'!H283","v":2},{"$f":"'A. Population Info'!I283","v":0},{"$f":"'A. Population Info'!J283","v":0},{"$f":"'A. Population Info'!K283","v":0},{"$f":"VLOOKUP(B:B,OFFSET('B. PoF Adj Factor Scoring'!$E$5:$F$282,,MATCH(G$4,'B. PoF Adj Factor Scoring'!$E$3:$N$3,0)-1),2,TRUE)","v":1},{"$f":"VLOOKUP(C:C,OFFSET('B. PoF Adj Factor Scoring'!$E$5:$F$282,,MATCH(H$4,'B. PoF Adj Factor Scoring'!$E$3:$N$3,0)-1),2,TRUE)","v":2},{"$f":"VLOOKUP(D:D,OFFSET('B. PoF Adj Factor Scoring'!$E$5:$F$282,,MATCH(I$4,'B. PoF Adj Factor Scoring'!$E$3:$N$3,0)-1),2,TRUE)","v":1},{"$f":"VLOOKUP(E:E,OFFSET('B. PoF Adj Factor Scoring'!$E$5:$F$282,,MATCH(J$4,'B. PoF Adj Factor Scoring'!$E$3:$N$3,0)-1),2,TRUE)","v":1},{"$f":"VLOOKUP(F:F,OFFSET('B. PoF Adj Factor Scoring'!$E$5:$F$282,,MATCH(K$4,'B. PoF Adj Factor Scoring'!$E$3:$N$3,0)-1),2,TRUE)","v":1}]
[{"$f":"'A. Population Info'!A284","v":1000366630},{"$f":"'A. Population Info'!G284","v":"OIL"},{"$f":"'A. Population Info'!H284","v":4},{"$f":"'A. Population Info'!I284","v":0},{"$f":"'A. Population Info'!J284","v":0},{"$f":"'A. Population Info'!K284","v":0},{"$f":"VLOOKUP(B:B,OFFSET('B. PoF Adj Factor Scoring'!$E$5:$F$282,,MATCH(G$4,'B. PoF Adj Factor Scoring'!$E$3:$N$3,0)-1),2,TRUE)","v":1},{"$f":"VLOOKUP(C:C,OFFSET('B. PoF Adj Factor Scoring'!$E$5:$F$282,,MATCH(H$4,'B. PoF Adj Factor Scoring'!$E$3:$N$3,0)-1),2,TRUE)","v":4},{"$f":"VLOOKUP(D:D,OFFSET('B. PoF Adj Factor Scoring'!$E$5:$F$282,,MATCH(I$4,'B. PoF Adj Factor Scoring'!$E$3:$N$3,0)-1),2,TRUE)","v":1},{"$f":"VLOOKUP(E:E,OFFSET('B. PoF Adj Factor Scoring'!$E$5:$F$282,,MATCH(J$4,'B. PoF Adj Factor Scoring'!$E$3:$N$3,0)-1),2,TRUE)","v":1},{"$f":"VLOOKUP(F:F,OFFSET('B. PoF Adj Factor Scoring'!$E$5:$F$282,,MATCH(K$4,'B. PoF Adj Factor Scoring'!$E$3:$N$3,0)-1),2,TRUE)","v":1}]
[{"$f":"'A. Population Info'!A285","v":1000366661},{"$f":"'A. Population Info'!G285","v":"OIL"},{"$f":"'A. Population Info'!H285","v":4},{"$f":"'A. Population Info'!I285","v":0},{"$f":"'A. Population Info'!J285","v":0},{"$f":"'A. Population Info'!K285","v":0},{"$f":"VLOOKUP(B:B,OFFSET('B. PoF Adj Factor Scoring'!$E$5:$F$282,,MATCH(G$4,'B. PoF Adj Factor Scoring'!$E$3:$N$3,0)-1),2,TRUE)","v":1},{"$f":"VLOOKUP(C:C,OFFSET('B. PoF Adj Factor Scoring'!$E$5:$F$282,,MATCH(H$4,'B. PoF Adj Factor Scoring'!$E$3:$N$3,0)-1),2,TRUE)","v":4},{"$f":"VLOOKUP(D:D,OFFSET('B. PoF Adj Factor Scoring'!$E$5:$F$282,,MATCH(I$4,'B. PoF Adj Factor Scoring'!$E$3:$N$3,0)-1),2,TRUE)","v":1},{"$f":"VLOOKUP(E:E,OFFSET('B. PoF Adj Factor Scoring'!$E$5:$F$282,,MATCH(J$4,'B. PoF Adj Factor Scoring'!$E$3:$N$3,0)-1),2,TRUE)","v":1},{"$f":"VLOOKUP(F:F,OFFSET('B. PoF Adj Factor Scoring'!$E$5:$F$282,,MATCH(K$4,'B. PoF Adj Factor Scoring'!$E$3:$N$3,0)-1),2,TRUE)","v":1}]
[{"$f":"'A. Population Info'!A286","v":1000366782},{"$f":"'A. Population Info'!G286","v":"OIL"},{"$f":"'A. Population Info'!H286","v":2},{"$f":"'A. Population Info'!I286","v":50},{"$f":"'A. Population Info'!J286","v":0},{"$f":"'A. Population Info'!K286","v":0},{"$f":"VLOOKUP(B:B,OFFSET('B. PoF Adj Factor Scoring'!$E$5:$F$282,,MATCH(G$4,'B. PoF Adj Factor Scoring'!$E$3:$N$3,0)-1),2,TRUE)","v":1},{"$f":"VLOOKUP(C:C,OFFSET('B. PoF Adj Factor Scoring'!$E$5:$F$282,,MATCH(H$4,'B. PoF Adj Factor Scoring'!$E$3:$N$3,0)-1),2,TRUE)","v":2},{"$f":"VLOOKUP(D:D,OFFSET('B. PoF Adj Factor Scoring'!$E$5:$F$282,,MATCH(I$4,'B. PoF Adj Factor Scoring'!$E$3:$N$3,0)-1),2,TRUE)","v":1},{"$f":"VLOOKUP(E:E,OFFSET('B. PoF Adj Factor Scoring'!$E$5:$F$282,,MATCH(J$4,'B. PoF Adj Factor Scoring'!$E$3:$N$3,0)-1),2,TRUE)","v":1},{"$f":"VLOOKUP(F:F,OFFSET('B. PoF Adj Factor Scoring'!$E$5:$F$282,,MATCH(K$4,'B. PoF Adj Factor Scoring'!$E$3:$N$3,0)-1),2,TRUE)","v":1}]
[{"$f":"'A. Population Info'!A287","v":1000366876},{"$f":"'A. Population Info'!G287","v":"OIL"},{"$f":"'A. Population Info'!H287","v":1},{"$f":"'A. Population Info'!I287","v":0},{"$f":"'A. Population Info'!J287","v":0},{"$f":"'A. Population Info'!K287","v":0},{"$f":"VLOOKUP(B:B,OFFSET('B. PoF Adj Factor Scoring'!$E$5:$F$282,,MATCH(G$4,'B. PoF Adj Factor Scoring'!$E$3:$N$3,0)-1),2,TRUE)","v":1},{"$f":"VLOOKUP(C:C,OFFSET('B. PoF Adj Factor Scoring'!$E$5:$F$282,,MATCH(H$4,'B. PoF Adj Factor Scoring'!$E$3:$N$3,0)-1),2,TRUE)","v":1},{"$f":"VLOOKUP(D:D,OFFSET('B. PoF Adj Factor Scoring'!$E$5:$F$282,,MATCH(I$4,'B. PoF Adj Factor Scoring'!$E$3:$N$3,0)-1),2,TRUE)","v":1},{"$f":"VLOOKUP(E:E,OFFSET('B. PoF Adj Factor Scoring'!$E$5:$F$282,,MATCH(J$4,'B. PoF Adj Factor Scoring'!$E$3:$N$3,0)-1),2,TRUE)","v":1},{"$f":"VLOOKUP(F:F,OFFSET('B. PoF Adj Factor Scoring'!$E$5:$F$282,,MATCH(K$4,'B. PoF Adj Factor Scoring'!$E$3:$N$3,0)-1),2,TRUE)","v":1}]
[{"$f":"'A. Population Info'!A288","v":1000366906},{"$f":"'A. Population Info'!G288","v":"OIL"},{"$f":"'A. Population Info'!H288","v":2},{"$f":"'A. Population Info'!I288","v":0},{"$f":"'A. Population Info'!J288","v":0},{"$f":"'A. Population Info'!K288","v":0},{"$f":"VLOOKUP(B:B,OFFSET('B. PoF Adj Factor Scoring'!$E$5:$F$282,,MATCH(G$4,'B. PoF Adj Factor Scoring'!$E$3:$N$3,0)-1),2,TRUE)","v":1},{"$f":"VLOOKUP(C:C,OFFSET('B. PoF Adj Factor Scoring'!$E$5:$F$282,,MATCH(H$4,'B. PoF Adj Factor Scoring'!$E$3:$N$3,0)-1),2,TRUE)","v":2},{"$f":"VLOOKUP(D:D,OFFSET('B. PoF Adj Factor Scoring'!$E$5:$F$282,,MATCH(I$4,'B. PoF Adj Factor Scoring'!$E$3:$N$3,0)-1),2,TRUE)","v":1},{"$f":"VLOOKUP(E:E,OFFSET('B. PoF Adj Factor Scoring'!$E$5:$F$282,,MATCH(J$4,'B. PoF Adj Factor Scoring'!$E$3:$N$3,0)-1),2,TRUE)","v":1},{"$f":"VLOOKUP(F:F,OFFSET('B. PoF Adj Factor Scoring'!$E$5:$F$282,,MATCH(K$4,'B. PoF Adj Factor Scoring'!$E$3:$N$3,0)-1),2,TRUE)","v":1}]
[{"$f":"'A. Population Info'!A289","v":1000367691},{"$f":"'A. Population Info'!G289","v":"OIL"},{"$f":"'A. Population Info'!H289","v":1},{"$f":"'A. Population Info'!I289","v":0},{"$f":"'A. Population Info'!J289","v":0},{"$f":"'A. Population Info'!K289","v":0},{"$f":"VLOOKUP(B:B,OFFSET('B. PoF Adj Factor Scoring'!$E$5:$F$282,,MATCH(G$4,'B. PoF Adj Factor Scoring'!$E$3:$N$3,0)-1),2,TRUE)","v":1},{"$f":"VLOOKUP(C:C,OFFSET('B. PoF Adj Factor Scoring'!$E$5:$F$282,,MATCH(H$4,'B. PoF Adj Factor Scoring'!$E$3:$N$3,0)-1),2,TRUE)","v":1},{"$f":"VLOOKUP(D:D,OFFSET('B. PoF Adj Factor Scoring'!$E$5:$F$282,,MATCH(I$4,'B. PoF Adj Factor Scoring'!$E$3:$N$3,0)-1),2,TRUE)","v":1},{"$f":"VLOOKUP(E:E,OFFSET('B. PoF Adj Factor Scoring'!$E$5:$F$282,,MATCH(J$4,'B. PoF Adj Factor Scoring'!$E$3:$N$3,0)-1),2,TRUE)","v":1},{"$f":"VLOOKUP(F:F,OFFSET('B. PoF Adj Factor Scoring'!$E$5:$F$282,,MATCH(K$4,'B. PoF Adj Factor Scoring'!$E$3:$N$3,0)-1),2,TRUE)","v":1}]
[{"$f":"'A. Population Info'!A290","v":1000367704},{"$f":"'A. Population Info'!G290","v":"OIL"},{"$f":"'A. Population Info'!H290","v":1},{"$f":"'A. Population Info'!I290","v":0},{"$f":"'A. Population Info'!J290","v":0},{"$f":"'A. Population Info'!K290","v":0},{"$f":"VLOOKUP(B:B,OFFSET('B. PoF Adj Factor Scoring'!$E$5:$F$282,,MATCH(G$4,'B. PoF Adj Factor Scoring'!$E$3:$N$3,0)-1),2,TRUE)","v":1},{"$f":"VLOOKUP(C:C,OFFSET('B. PoF Adj Factor Scoring'!$E$5:$F$282,,MATCH(H$4,'B. PoF Adj Factor Scoring'!$E$3:$N$3,0)-1),2,TRUE)","v":1},{"$f":"VLOOKUP(D:D,OFFSET('B. PoF Adj Factor Scoring'!$E$5:$F$282,,MATCH(I$4,'B. PoF Adj Factor Scoring'!$E$3:$N$3,0)-1),2,TRUE)","v":1},{"$f":"VLOOKUP(E:E,OFFSET('B. PoF Adj Factor Scoring'!$E$5:$F$282,,MATCH(J$4,'B. PoF Adj Factor Scoring'!$E$3:$N$3,0)-1),2,TRUE)","v":1},{"$f":"VLOOKUP(F:F,OFFSET('B. PoF Adj Factor Scoring'!$E$5:$F$282,,MATCH(K$4,'B. PoF Adj Factor Scoring'!$E$3:$N$3,0)-1),2,TRUE)","v":1}]
[{"$f":"'A. Population Info'!A291","v":1000370022},{"$f":"'A. Population Info'!G291","v":"OIL"},{"$f":"'A. Population Info'!H291","v":1},{"$f":"'A. Population Info'!I291","v":0},{"$f":"'A. Population Info'!J291","v":0},{"$f":"'A. Population Info'!K291","v":0},{"$f":"VLOOKUP(B:B,OFFSET('B. PoF Adj Factor Scoring'!$E$5:$F$282,,MATCH(G$4,'B. PoF Adj Factor Scoring'!$E$3:$N$3,0)-1),2,TRUE)","v":1},{"$f":"VLOOKUP(C:C,OFFSET('B. PoF Adj Factor Scoring'!$E$5:$F$282,,MATCH(H$4,'B. PoF Adj Factor Scoring'!$E$3:$N$3,0)-1),2,TRUE)","v":1},{"$f":"VLOOKUP(D:D,OFFSET('B. PoF Adj Factor Scoring'!$E$5:$F$282,,MATCH(I$4,'B. PoF Adj Factor Scoring'!$E$3:$N$3,0)-1),2,TRUE)","v":1},{"$f":"VLOOKUP(E:E,OFFSET('B. PoF Adj Factor Scoring'!$E$5:$F$282,,MATCH(J$4,'B. PoF Adj Factor Scoring'!$E$3:$N$3,0)-1),2,TRUE)","v":1},{"$f":"VLOOKUP(F:F,OFFSET('B. PoF Adj Factor Scoring'!$E$5:$F$282,,MATCH(K$4,'B. PoF Adj Factor Scoring'!$E$3:$N$3,0)-1),2,TRUE)","v":1}]
[{"$f":"'A. Population Info'!A292","v":1000370112},{"$f":"'A. Population Info'!G292","v":"OIL"},{"$f":"'A. Population Info'!H292","v":4},{"$f":"'A. Population Info'!I292","v":0},{"$f":"'A. Population Info'!J292","v":0},{"$f":"'A. Population Info'!K292","v":0},{"$f":"VLOOKUP(B:B,OFFSET('B. PoF Adj Factor Scoring'!$E$5:$F$282,,MATCH(G$4,'B. PoF Adj Factor Scoring'!$E$3:$N$3,0)-1),2,TRUE)","v":1},{"$f":"VLOOKUP(C:C,OFFSET('B. PoF Adj Factor Scoring'!$E$5:$F$282,,MATCH(H$4,'B. PoF Adj Factor Scoring'!$E$3:$N$3,0)-1),2,TRUE)","v":4},{"$f":"VLOOKUP(D:D,OFFSET('B. PoF Adj Factor Scoring'!$E$5:$F$282,,MATCH(I$4,'B. PoF Adj Factor Scoring'!$E$3:$N$3,0)-1),2,TRUE)","v":1},{"$f":"VLOOKUP(E:E,OFFSET('B. PoF Adj Factor Scoring'!$E$5:$F$282,,MATCH(J$4,'B. PoF Adj Factor Scoring'!$E$3:$N$3,0)-1),2,TRUE)","v":1},{"$f":"VLOOKUP(F:F,OFFSET('B. PoF Adj Factor Scoring'!$E$5:$F$282,,MATCH(K$4,'B. PoF Adj Factor Scoring'!$E$3:$N$3,0)-1),2,TRUE)","v":1}]
[{"$f":"'A. Population Info'!A293","v":1000370140},{"$f":"'A. Population Info'!G293","v":"OIL"},{"$f":"'A. Population Info'!H293","v":2},{"$f":"'A. Population Info'!I293","v":60},{"$f":"'A. Population Info'!J293","v":0},{"$f":"'A. Population Info'!K293","v":0},{"$f":"VLOOKUP(B:B,OFFSET('B. PoF Adj Factor Scoring'!$E$5:$F$282,,MATCH(G$4,'B. PoF Adj Factor Scoring'!$E$3:$N$3,0)-1),2,TRUE)","v":1},{"$f":"VLOOKUP(C:C,OFFSET('B. PoF Adj Factor Scoring'!$E$5:$F$282,,MATCH(H$4,'B. PoF Adj Factor Scoring'!$E$3:$N$3,0)-1),2,TRUE)","v":2},{"$f":"VLOOKUP(D:D,OFFSET('B. PoF Adj Factor Scoring'!$E$5:$F$282,,MATCH(I$4,'B. PoF Adj Factor Scoring'!$E$3:$N$3,0)-1),2,TRUE)","v":1},{"$f":"VLOOKUP(E:E,OFFSET('B. PoF Adj Factor Scoring'!$E$5:$F$282,,MATCH(J$4,'B. PoF Adj Factor Scoring'!$E$3:$N$3,0)-1),2,TRUE)","v":1},{"$f":"VLOOKUP(F:F,OFFSET('B. PoF Adj Factor Scoring'!$E$5:$F$282,,MATCH(K$4,'B. PoF Adj Factor Scoring'!$E$3:$N$3,0)-1),2,TRUE)","v":1}]
[{"$f":"'A. Population Info'!A294","v":1000370197},{"$f":"'A. Population Info'!G294","v":"OIL"},{"$f":"'A. Population Info'!H294","v":2},{"$f":"'A. Population Info'!I294","v":0},{"$f":"'A. Population Info'!J294","v":0},{"$f":"'A. Population Info'!K294","v":0},{"$f":"VLOOKUP(B:B,OFFSET('B. PoF Adj Factor Scoring'!$E$5:$F$282,,MATCH(G$4,'B. PoF Adj Factor Scoring'!$E$3:$N$3,0)-1),2,TRUE)","v":1},{"$f":"VLOOKUP(C:C,OFFSET('B. PoF Adj Factor Scoring'!$E$5:$F$282,,MATCH(H$4,'B. PoF Adj Factor Scoring'!$E$3:$N$3,0)-1),2,TRUE)","v":2},{"$f":"VLOOKUP(D:D,OFFSET('B. PoF Adj Factor Scoring'!$E$5:$F$282,,MATCH(I$4,'B. PoF Adj Factor Scoring'!$E$3:$N$3,0)-1),2,TRUE)","v":1},{"$f":"VLOOKUP(E:E,OFFSET('B. PoF Adj Factor Scoring'!$E$5:$F$282,,MATCH(J$4,'B. PoF Adj Factor Scoring'!$E$3:$N$3,0)-1),2,TRUE)","v":1},{"$f":"VLOOKUP(F:F,OFFSET('B. PoF Adj Factor Scoring'!$E$5:$F$282,,MATCH(K$4,'B. PoF Adj Factor Scoring'!$E$3:$N$3,0)-1),2,TRUE)","v":1}]
[{"$f":"'A. Population Info'!A295","v":1000370256},{"$f":"'A. Population Info'!G295","v":"OIL"},{"$f":"'A. Population Info'!H295","v":2},{"$f":"'A. Population Info'!I295","v":0},{"$f":"'A. Population Info'!J295","v":0},{"$f":"'A. Population Info'!K295","v":0},{"$f":"VLOOKUP(B:B,OFFSET('B. PoF Adj Factor Scoring'!$E$5:$F$282,,MATCH(G$4,'B. PoF Adj Factor Scoring'!$E$3:$N$3,0)-1),2,TRUE)","v":1},{"$f":"VLOOKUP(C:C,OFFSET('B. PoF Adj Factor Scoring'!$E$5:$F$282,,MATCH(H$4,'B. PoF Adj Factor Scoring'!$E$3:$N$3,0)-1),2,TRUE)","v":2},{"$f":"VLOOKUP(D:D,OFFSET('B. PoF Adj Factor Scoring'!$E$5:$F$282,,MATCH(I$4,'B. PoF Adj Factor Scoring'!$E$3:$N$3,0)-1),2,TRUE)","v":1},{"$f":"VLOOKUP(E:E,OFFSET('B. PoF Adj Factor Scoring'!$E$5:$F$282,,MATCH(J$4,'B. PoF Adj Factor Scoring'!$E$3:$N$3,0)-1),2,TRUE)","v":1},{"$f":"VLOOKUP(F:F,OFFSET('B. PoF Adj Factor Scoring'!$E$5:$F$282,,MATCH(K$4,'B. PoF Adj Factor Scoring'!$E$3:$N$3,0)-1),2,TRUE)","v":1}]
[{"$f":"'A. Population Info'!A296","v":1000370289},{"$f":"'A. Population Info'!G296","v":"OIL"},{"$f":"'A. Population Info'!H296","v":3},{"$f":"'A. Population Info'!I296","v":0},{"$f":"'A. Population Info'!J296","v":0},{"$f":"'A. Population Info'!K296","v":0},{"$f":"VLOOKUP(B:B,OFFSET('B. PoF Adj Factor Scoring'!$E$5:$F$282,,MATCH(G$4,'B. PoF Adj Factor Scoring'!$E$3:$N$3,0)-1),2,TRUE)","v":1},{"$f":"VLOOKUP(C:C,OFFSET('B. PoF Adj Factor Scoring'!$E$5:$F$282,,MATCH(H$4,'B. PoF Adj Factor Scoring'!$E$3:$N$3,0)-1),2,TRUE)","v":3},{"$f":"VLOOKUP(D:D,OFFSET('B. PoF Adj Factor Scoring'!$E$5:$F$282,,MATCH(I$4,'B. PoF Adj Factor Scoring'!$E$3:$N$3,0)-1),2,TRUE)","v":1},{"$f":"VLOOKUP(E:E,OFFSET('B. PoF Adj Factor Scoring'!$E$5:$F$282,,MATCH(J$4,'B. PoF Adj Factor Scoring'!$E$3:$N$3,0)-1),2,TRUE)","v":1},{"$f":"VLOOKUP(F:F,OFFSET('B. PoF Adj Factor Scoring'!$E$5:$F$282,,MATCH(K$4,'B. PoF Adj Factor Scoring'!$E$3:$N$3,0)-1),2,TRUE)","v":1}]
[{"$f":"'A. Population Info'!A297","v":1000370319},{"$f":"'A. Population Info'!G297","v":"OIL"},{"$f":"'A. Population Info'!H297","v":3},{"$f":"'A. Population Info'!I297","v":0},{"$f":"'A. Population Info'!J297","v":0},{"$f":"'A. Population Info'!K297","v":0},{"$f":"VLOOKUP(B:B,OFFSET('B. PoF Adj Factor Scoring'!$E$5:$F$282,,MATCH(G$4,'B. PoF Adj Factor Scoring'!$E$3:$N$3,0)-1),2,TRUE)","v":1},{"$f":"VLOOKUP(C:C,OFFSET('B. PoF Adj Factor Scoring'!$E$5:$F$282,,MATCH(H$4,'B. PoF Adj Factor Scoring'!$E$3:$N$3,0)-1),2,TRUE)","v":3},{"$f":"VLOOKUP(D:D,OFFSET('B. PoF Adj Factor Scoring'!$E$5:$F$282,,MATCH(I$4,'B. PoF Adj Factor Scoring'!$E$3:$N$3,0)-1),2,TRUE)","v":1},{"$f":"VLOOKUP(E:E,OFFSET('B. PoF Adj Factor Scoring'!$E$5:$F$282,,MATCH(J$4,'B. PoF Adj Factor Scoring'!$E$3:$N$3,0)-1),2,TRUE)","v":1},{"$f":"VLOOKUP(F:F,OFFSET('B. PoF Adj Factor Scoring'!$E$5:$F$282,,MATCH(K$4,'B. PoF Adj Factor Scoring'!$E$3:$N$3,0)-1),2,TRUE)","v":1}]
[{"$f":"'A. Population Info'!A298","v":1000370381},{"$f":"'A. Population Info'!G298","v":"OIL"},{"$f":"'A. Population Info'!H298","v":1},{"$f":"'A. Population Info'!I298","v":0},{"$f":"'A. Population Info'!J298","v":0},{"$f":"'A. Population Info'!K298","v":0},{"$f":"VLOOKUP(B:B,OFFSET('B. PoF Adj Factor Scoring'!$E$5:$F$282,,MATCH(G$4,'B. PoF Adj Factor Scoring'!$E$3:$N$3,0)-1),2,TRUE)","v":1},{"$f":"VLOOKUP(C:C,OFFSET('B. PoF Adj Factor Scoring'!$E$5:$F$282,,MATCH(H$4,'B. PoF Adj Factor Scoring'!$E$3:$N$3,0)-1),2,TRUE)","v":1},{"$f":"VLOOKUP(D:D,OFFSET('B. PoF Adj Factor Scoring'!$E$5:$F$282,,MATCH(I$4,'B. PoF Adj Factor Scoring'!$E$3:$N$3,0)-1),2,TRUE)","v":1},{"$f":"VLOOKUP(E:E,OFFSET('B. PoF Adj Factor Scoring'!$E$5:$F$282,,MATCH(J$4,'B. PoF Adj Factor Scoring'!$E$3:$N$3,0)-1),2,TRUE)","v":1},{"$f":"VLOOKUP(F:F,OFFSET('B. PoF Adj Factor Scoring'!$E$5:$F$282,,MATCH(K$4,'B. PoF Adj Factor Scoring'!$E$3:$N$3,0)-1),2,TRUE)","v":1}]
[{"$f":"'A. Population Info'!A299","v":1000370592},{"$f":"'A. Population Info'!G299","v":"OIL"},{"$f":"'A. Population Info'!H299","v":3},{"$f":"'A. Population Info'!I299","v":1600},{"$f":"'A. Population Info'!J299","v":0},{"$f":"'A. Population Info'!K299","v":0},{"$f":"VLOOKUP(B:B,OFFSET('B. PoF Adj Factor Scoring'!$E$5:$F$282,,MATCH(G$4,'B. PoF Adj Factor Scoring'!$E$3:$N$3,0)-1),2,TRUE)","v":1},{"$f":"VLOOKUP(C:C,OFFSET('B. PoF Adj Factor Scoring'!$E$5:$F$282,,MATCH(H$4,'B. PoF Adj Factor Scoring'!$E$3:$N$3,0)-1),2,TRUE)","v":3},{"$f":"VLOOKUP(D:D,OFFSET('B. PoF Adj Factor Scoring'!$E$5:$F$282,,MATCH(I$4,'B. PoF Adj Factor Scoring'!$E$3:$N$3,0)-1),2,TRUE)","v":2},{"$f":"VLOOKUP(E:E,OFFSET('B. PoF Adj Factor Scoring'!$E$5:$F$282,,MATCH(J$4,'B. PoF Adj Factor Scoring'!$E$3:$N$3,0)-1),2,TRUE)","v":1},{"$f":"VLOOKUP(F:F,OFFSET('B. PoF Adj Factor Scoring'!$E$5:$F$282,,MATCH(K$4,'B. PoF Adj Factor Scoring'!$E$3:$N$3,0)-1),2,TRUE)","v":1}]
[{"$f":"'A. Population Info'!A300","v":1000370708},{"$f":"'A. Population Info'!G300","v":"OIL"},{"$f":"'A. Population Info'!H300","v":4},{"$f":"'A. Population Info'!I300","v":0},{"$f":"'A. Population Info'!J300","v":0},{"$f":"'A. Population Info'!K300","v":0},{"$f":"VLOOKUP(B:B,OFFSET('B. PoF Adj Factor Scoring'!$E$5:$F$282,,MATCH(G$4,'B. PoF Adj Factor Scoring'!$E$3:$N$3,0)-1),2,TRUE)","v":1},{"$f":"VLOOKUP(C:C,OFFSET('B. PoF Adj Factor Scoring'!$E$5:$F$282,,MATCH(H$4,'B. PoF Adj Factor Scoring'!$E$3:$N$3,0)-1),2,TRUE)","v":4},{"$f":"VLOOKUP(D:D,OFFSET('B. PoF Adj Factor Scoring'!$E$5:$F$282,,MATCH(I$4,'B. PoF Adj Factor Scoring'!$E$3:$N$3,0)-1),2,TRUE)","v":1},{"$f":"VLOOKUP(E:E,OFFSET('B. PoF Adj Factor Scoring'!$E$5:$F$282,,MATCH(J$4,'B. PoF Adj Factor Scoring'!$E$3:$N$3,0)-1),2,TRUE)","v":1},{"$f":"VLOOKUP(F:F,OFFSET('B. PoF Adj Factor Scoring'!$E$5:$F$282,,MATCH(K$4,'B. PoF Adj Factor Scoring'!$E$3:$N$3,0)-1),2,TRUE)","v":1}]
[{"$f":"'A. Population Info'!A301","v":1000370828},{"$f":"'A. Population Info'!G301","v":"OIL"},{"$f":"'A. Population Info'!H301","v":4},{"$f":"'A. Population Info'!I301","v":0},{"$f":"'A. Population Info'!J301","v":0},{"$f":"'A. Population Info'!K301","v":0},{"$f":"VLOOKUP(B:B,OFFSET('B. PoF Adj Factor Scoring'!$E$5:$F$282,,MATCH(G$4,'B. PoF Adj Factor Scoring'!$E$3:$N$3,0)-1),2,TRUE)","v":1},{"$f":"VLOOKUP(C:C,OFFSET('B. PoF Adj Factor Scoring'!$E$5:$F$282,,MATCH(H$4,'B. PoF Adj Factor Scoring'!$E$3:$N$3,0)-1),2,TRUE)","v":4},{"$f":"VLOOKUP(D:D,OFFSET('B. PoF Adj Factor Scoring'!$E$5:$F$282,,MATCH(I$4,'B. PoF Adj Factor Scoring'!$E$3:$N$3,0)-1),2,TRUE)","v":1},{"$f":"VLOOKUP(E:E,OFFSET('B. PoF Adj Factor Scoring'!$E$5:$F$282,,MATCH(J$4,'B. PoF Adj Factor Scoring'!$E$3:$N$3,0)-1),2,TRUE)","v":1},{"$f":"VLOOKUP(F:F,OFFSET('B. PoF Adj Factor Scoring'!$E$5:$F$282,,MATCH(K$4,'B. PoF Adj Factor Scoring'!$E$3:$N$3,0)-1),2,TRUE)","v":1}]
[{"$f":"'A. Population Info'!A302","v":1000370886},{"$f":"'A. Population Info'!G302","v":"OIL"},{"$f":"'A. Population Info'!H302","v":3},{"$f":"'A. Population Info'!I302","v":0},{"$f":"'A. Population Info'!J302","v":0},{"$f":"'A. Population Info'!K302","v":0},{"$f":"VLOOKUP(B:B,OFFSET('B. PoF Adj Factor Scoring'!$E$5:$F$282,,MATCH(G$4,'B. PoF Adj Factor Scoring'!$E$3:$N$3,0)-1),2,TRUE)","v":1},{"$f":"VLOOKUP(C:C,OFFSET('B. PoF Adj Factor Scoring'!$E$5:$F$282,,MATCH(H$4,'B. PoF Adj Factor Scoring'!$E$3:$N$3,0)-1),2,TRUE)","v":3},{"$f":"VLOOKUP(D:D,OFFSET('B. PoF Adj Factor Scoring'!$E$5:$F$282,,MATCH(I$4,'B. PoF Adj Factor Scoring'!$E$3:$N$3,0)-1),2,TRUE)","v":1},{"$f":"VLOOKUP(E:E,OFFSET('B. PoF Adj Factor Scoring'!$E$5:$F$282,,MATCH(J$4,'B. PoF Adj Factor Scoring'!$E$3:$N$3,0)-1),2,TRUE)","v":1},{"$f":"VLOOKUP(F:F,OFFSET('B. PoF Adj Factor Scoring'!$E$5:$F$282,,MATCH(K$4,'B. PoF Adj Factor Scoring'!$E$3:$N$3,0)-1),2,TRUE)","v":1}]
[{"$f":"'A. Population Info'!A303","v":1000374033},{"$f":"'A. Population Info'!G303","v":"OIL"},{"$f":"'A. Population Info'!H303","v":1},{"$f":"'A. Population Info'!I303","v":600},{"$f":"'A. Population Info'!J303","v":0},{"$f":"'A. Population Info'!K303","v":0},{"$f":"VLOOKUP(B:B,OFFSET('B. PoF Adj Factor Scoring'!$E$5:$F$282,,MATCH(G$4,'B. PoF Adj Factor Scoring'!$E$3:$N$3,0)-1),2,TRUE)","v":1},{"$f":"VLOOKUP(C:C,OFFSET('B. PoF Adj Factor Scoring'!$E$5:$F$282,,MATCH(H$4,'B. PoF Adj Factor Scoring'!$E$3:$N$3,0)-1),2,TRUE)","v":1},{"$f":"VLOOKUP(D:D,OFFSET('B. PoF Adj Factor Scoring'!$E$5:$F$282,,MATCH(I$4,'B. PoF Adj Factor Scoring'!$E$3:$N$3,0)-1),2,TRUE)","v":1},{"$f":"VLOOKUP(E:E,OFFSET('B. PoF Adj Factor Scoring'!$E$5:$F$282,,MATCH(J$4,'B. PoF Adj Factor Scoring'!$E$3:$N$3,0)-1),2,TRUE)","v":1},{"$f":"VLOOKUP(F:F,OFFSET('B. PoF Adj Factor Scoring'!$E$5:$F$282,,MATCH(K$4,'B. PoF Adj Factor Scoring'!$E$3:$N$3,0)-1),2,TRUE)","v":1}]
[{"$f":"'A. Population Info'!A304","v":1000374059},{"$f":"'A. Population Info'!G304","v":"OIL"},{"$f":"'A. Population Info'!H304","v":1},{"$f":"'A. Population Info'!I304","v":1200},{"$f":"'A. Population Info'!J304","v":0},{"$f":"'A. Population Info'!K304","v":0},{"$f":"VLOOKUP(B:B,OFFSET('B. PoF Adj Factor Scoring'!$E$5:$F$282,,MATCH(G$4,'B. PoF Adj Factor Scoring'!$E$3:$N$3,0)-1),2,TRUE)","v":1},{"$f":"VLOOKUP(C:C,OFFSET('B. PoF Adj Factor Scoring'!$E$5:$F$282,,MATCH(H$4,'B. PoF Adj Factor Scoring'!$E$3:$N$3,0)-1),2,TRUE)","v":1},{"$f":"VLOOKUP(D:D,OFFSET('B. PoF Adj Factor Scoring'!$E$5:$F$282,,MATCH(I$4,'B. PoF Adj Factor Scoring'!$E$3:$N$3,0)-1),2,TRUE)","v":2},{"$f":"VLOOKUP(E:E,OFFSET('B. PoF Adj Factor Scoring'!$E$5:$F$282,,MATCH(J$4,'B. PoF Adj Factor Scoring'!$E$3:$N$3,0)-1),2,TRUE)","v":1},{"$f":"VLOOKUP(F:F,OFFSET('B. PoF Adj Factor Scoring'!$E$5:$F$282,,MATCH(K$4,'B. PoF Adj Factor Scoring'!$E$3:$N$3,0)-1),2,TRUE)","v":1}]
[{"$f":"'A. Population Info'!A305","v":1000374121},{"$f":"'A. Population Info'!G305","v":"OIL"},{"$f":"'A. Population Info'!H305","v":2},{"$f":"'A. Population Info'!I305","v":0},{"$f":"'A. Population Info'!J305","v":0},{"$f":"'A. Population Info'!K305","v":0},{"$f":"VLOOKUP(B:B,OFFSET('B. PoF Adj Factor Scoring'!$E$5:$F$282,,MATCH(G$4,'B. PoF Adj Factor Scoring'!$E$3:$N$3,0)-1),2,TRUE)","v":1},{"$f":"VLOOKUP(C:C,OFFSET('B. PoF Adj Factor Scoring'!$E$5:$F$282,,MATCH(H$4,'B. PoF Adj Factor Scoring'!$E$3:$N$3,0)-1),2,TRUE)","v":2},{"$f":"VLOOKUP(D:D,OFFSET('B. PoF Adj Factor Scoring'!$E$5:$F$282,,MATCH(I$4,'B. PoF Adj Factor Scoring'!$E$3:$N$3,0)-1),2,TRUE)","v":1},{"$f":"VLOOKUP(E:E,OFFSET('B. PoF Adj Factor Scoring'!$E$5:$F$282,,MATCH(J$4,'B. PoF Adj Factor Scoring'!$E$3:$N$3,0)-1),2,TRUE)","v":1},{"$f":"VLOOKUP(F:F,OFFSET('B. PoF Adj Factor Scoring'!$E$5:$F$282,,MATCH(K$4,'B. PoF Adj Factor Scoring'!$E$3:$N$3,0)-1),2,TRUE)","v":1}]
[{"$f":"'A. Population Info'!A306","v":1000374180},{"$f":"'A. Population Info'!G306","v":"OIL"},{"$f":"'A. Population Info'!H306","v":2},{"$f":"'A. Population Info'!I306","v":1400},{"$f":"'A. Population Info'!J306","v":0},{"$f":"'A. Population Info'!K306","v":0},{"$f":"VLOOKUP(B:B,OFFSET('B. PoF Adj Factor Scoring'!$E$5:$F$282,,MATCH(G$4,'B. PoF Adj Factor Scoring'!$E$3:$N$3,0)-1),2,TRUE)","v":1},{"$f":"VLOOKUP(C:C,OFFSET('B. PoF Adj Factor Scoring'!$E$5:$F$282,,MATCH(H$4,'B. PoF Adj Factor Scoring'!$E$3:$N$3,0)-1),2,TRUE)","v":2},{"$f":"VLOOKUP(D:D,OFFSET('B. PoF Adj Factor Scoring'!$E$5:$F$282,,MATCH(I$4,'B. PoF Adj Factor Scoring'!$E$3:$N$3,0)-1),2,TRUE)","v":2},{"$f":"VLOOKUP(E:E,OFFSET('B. PoF Adj Factor Scoring'!$E$5:$F$282,,MATCH(J$4,'B. PoF Adj Factor Scoring'!$E$3:$N$3,0)-1),2,TRUE)","v":1},{"$f":"VLOOKUP(F:F,OFFSET('B. PoF Adj Factor Scoring'!$E$5:$F$282,,MATCH(K$4,'B. PoF Adj Factor Scoring'!$E$3:$N$3,0)-1),2,TRUE)","v":1}]
[{"$f":"'A. Population Info'!A307","v":1000374211},{"$f":"'A. Population Info'!G307","v":"OIL"},{"$f":"'A. Population Info'!H307","v":1},{"$f":"'A. Population Info'!I307","v":0},{"$f":"'A. Population Info'!J307","v":0},{"$f":"'A. Population Info'!K307","v":0},{"$f":"VLOOKUP(B:B,OFFSET('B. PoF Adj Factor Scoring'!$E$5:$F$282,,MATCH(G$4,'B. PoF Adj Factor Scoring'!$E$3:$N$3,0)-1),2,TRUE)","v":1},{"$f":"VLOOKUP(C:C,OFFSET('B. PoF Adj Factor Scoring'!$E$5:$F$282,,MATCH(H$4,'B. PoF Adj Factor Scoring'!$E$3:$N$3,0)-1),2,TRUE)","v":1},{"$f":"VLOOKUP(D:D,OFFSET('B. PoF Adj Factor Scoring'!$E$5:$F$282,,MATCH(I$4,'B. PoF Adj Factor Scoring'!$E$3:$N$3,0)-1),2,TRUE)","v":1},{"$f":"VLOOKUP(E:E,OFFSET('B. PoF Adj Factor Scoring'!$E$5:$F$282,,MATCH(J$4,'B. PoF Adj Factor Scoring'!$E$3:$N$3,0)-1),2,TRUE)","v":1},{"$f":"VLOOKUP(F:F,OFFSET('B. PoF Adj Factor Scoring'!$E$5:$F$282,,MATCH(K$4,'B. PoF Adj Factor Scoring'!$E$3:$N$3,0)-1),2,TRUE)","v":1}]
[{"$f":"'A. Population Info'!A308","v":1000374241},{"$f":"'A. Population Info'!G308","v":"OIL"},{"$f":"'A. Population Info'!H308","v":2},{"$f":"'A. Population Info'!I308","v":0},{"$f":"'A. Population Info'!J308","v":0},{"$f":"'A. Population Info'!K308","v":0},{"$f":"VLOOKUP(B:B,OFFSET('B. PoF Adj Factor Scoring'!$E$5:$F$282,,MATCH(G$4,'B. PoF Adj Factor Scoring'!$E$3:$N$3,0)-1),2,TRUE)","v":1},{"$f":"VLOOKUP(C:C,OFFSET('B. PoF Adj Factor Scoring'!$E$5:$F$282,,MATCH(H$4,'B. PoF Adj Factor Scoring'!$E$3:$N$3,0)-1),2,TRUE)","v":2},{"$f":"VLOOKUP(D:D,OFFSET('B. PoF Adj Factor Scoring'!$E$5:$F$282,,MATCH(I$4,'B. PoF Adj Factor Scoring'!$E$3:$N$3,0)-1),2,TRUE)","v":1},{"$f":"VLOOKUP(E:E,OFFSET('B. PoF Adj Factor Scoring'!$E$5:$F$282,,MATCH(J$4,'B. PoF Adj Factor Scoring'!$E$3:$N$3,0)-1),2,TRUE)","v":1},{"$f":"VLOOKUP(F:F,OFFSET('B. PoF Adj Factor Scoring'!$E$5:$F$282,,MATCH(K$4,'B. PoF Adj Factor Scoring'!$E$3:$N$3,0)-1),2,TRUE)","v":1}]
[{"$f":"'A. Population Info'!A309","v":1000374449},{"$f":"'A. Population Info'!G309","v":"OIL"},{"$f":"'A. Population Info'!H309","v":3},{"$f":"'A. Population Info'!I309","v":4600},{"$f":"'A. Population Info'!J309","v":0},{"$f":"'A. Population Info'!K309","v":0},{"$f":"VLOOKUP(B:B,OFFSET('B. PoF Adj Factor Scoring'!$E$5:$F$282,,MATCH(G$4,'B. PoF Adj Factor Scoring'!$E$3:$N$3,0)-1),2,TRUE)","v":1},{"$f":"VLOOKUP(C:C,OFFSET('B. PoF Adj Factor Scoring'!$E$5:$F$282,,MATCH(H$4,'B. PoF Adj Factor Scoring'!$E$3:$N$3,0)-1),2,TRUE)","v":3},{"$f":"VLOOKUP(D:D,OFFSET('B. PoF Adj Factor Scoring'!$E$5:$F$282,,MATCH(I$4,'B. PoF Adj Factor Scoring'!$E$3:$N$3,0)-1),2,TRUE)","v":3},{"$f":"VLOOKUP(E:E,OFFSET('B. PoF Adj Factor Scoring'!$E$5:$F$282,,MATCH(J$4,'B. PoF Adj Factor Scoring'!$E$3:$N$3,0)-1),2,TRUE)","v":1},{"$f":"VLOOKUP(F:F,OFFSET('B. PoF Adj Factor Scoring'!$E$5:$F$282,,MATCH(K$4,'B. PoF Adj Factor Scoring'!$E$3:$N$3,0)-1),2,TRUE)","v":1}]
[{"$f":"'A. Population Info'!A310","v":1000374873},{"$f":"'A. Population Info'!G310","v":"OIL"},{"$f":"'A. Population Info'!H310","v":3},{"$f":"'A. Population Info'!I310","v":0},{"$f":"'A. Population Info'!J310","v":0},{"$f":"'A. Population Info'!K310","v":0},{"$f":"VLOOKUP(B:B,OFFSET('B. PoF Adj Factor Scoring'!$E$5:$F$282,,MATCH(G$4,'B. PoF Adj Factor Scoring'!$E$3:$N$3,0)-1),2,TRUE)","v":1},{"$f":"VLOOKUP(C:C,OFFSET('B. PoF Adj Factor Scoring'!$E$5:$F$282,,MATCH(H$4,'B. PoF Adj Factor Scoring'!$E$3:$N$3,0)-1),2,TRUE)","v":3},{"$f":"VLOOKUP(D:D,OFFSET('B. PoF Adj Factor Scoring'!$E$5:$F$282,,MATCH(I$4,'B. PoF Adj Factor Scoring'!$E$3:$N$3,0)-1),2,TRUE)","v":1},{"$f":"VLOOKUP(E:E,OFFSET('B. PoF Adj Factor Scoring'!$E$5:$F$282,,MATCH(J$4,'B. PoF Adj Factor Scoring'!$E$3:$N$3,0)-1),2,TRUE)","v":1},{"$f":"VLOOKUP(F:F,OFFSET('B. PoF Adj Factor Scoring'!$E$5:$F$282,,MATCH(K$4,'B. PoF Adj Factor Scoring'!$E$3:$N$3,0)-1),2,TRUE)","v":1}]
[{"$f":"'A. Population Info'!A311","v":1000375968},{"$f":"'A. Population Info'!G311","v":"OIL"},{"$f":"'A. Population Info'!H311","v":1},{"$f":"'A. Population Info'!I311","v":0},{"$f":"'A. Population Info'!J311","v":0},{"$f":"'A. Population Info'!K311","v":0},{"$f":"VLOOKUP(B:B,OFFSET('B. PoF Adj Factor Scoring'!$E$5:$F$282,,MATCH(G$4,'B. PoF Adj Factor Scoring'!$E$3:$N$3,0)-1),2,TRUE)","v":1},{"$f":"VLOOKUP(C:C,OFFSET('B. PoF Adj Factor Scoring'!$E$5:$F$282,,MATCH(H$4,'B. PoF Adj Factor Scoring'!$E$3:$N$3,0)-1),2,TRUE)","v":1},{"$f":"VLOOKUP(D:D,OFFSET('B. PoF Adj Factor Scoring'!$E$5:$F$282,,MATCH(I$4,'B. PoF Adj Factor Scoring'!$E$3:$N$3,0)-1),2,TRUE)","v":1},{"$f":"VLOOKUP(E:E,OFFSET('B. PoF Adj Factor Scoring'!$E$5:$F$282,,MATCH(J$4,'B. PoF Adj Factor Scoring'!$E$3:$N$3,0)-1),2,TRUE)","v":1},{"$f":"VLOOKUP(F:F,OFFSET('B. PoF Adj Factor Scoring'!$E$5:$F$282,,MATCH(K$4,'B. PoF Adj Factor Scoring'!$E$3:$N$3,0)-1),2,TRUE)","v":1}]
[{"$f":"'A. Population Info'!A312","v":1000375980},{"$f":"'A. Population Info'!G312","v":"OIL"},{"$f":"'A. Population Info'!H312","v":1},{"$f":"'A. Population Info'!I312","v":0},{"$f":"'A. Population Info'!J312","v":0},{"$f":"'A. Population Info'!K312","v":0},{"$f":"VLOOKUP(B:B,OFFSET('B. PoF Adj Factor Scoring'!$E$5:$F$282,,MATCH(G$4,'B. PoF Adj Factor Scoring'!$E$3:$N$3,0)-1),2,TRUE)","v":1},{"$f":"VLOOKUP(C:C,OFFSET('B. PoF Adj Factor Scoring'!$E$5:$F$282,,MATCH(H$4,'B. PoF Adj Factor Scoring'!$E$3:$N$3,0)-1),2,TRUE)","v":1},{"$f":"VLOOKUP(D:D,OFFSET('B. PoF Adj Factor Scoring'!$E$5:$F$282,,MATCH(I$4,'B. PoF Adj Factor Scoring'!$E$3:$N$3,0)-1),2,TRUE)","v":1},{"$f":"VLOOKUP(E:E,OFFSET('B. PoF Adj Factor Scoring'!$E$5:$F$282,,MATCH(J$4,'B. PoF Adj Factor Scoring'!$E$3:$N$3,0)-1),2,TRUE)","v":1},{"$f":"VLOOKUP(F:F,OFFSET('B. PoF Adj Factor Scoring'!$E$5:$F$282,,MATCH(K$4,'B. PoF Adj Factor Scoring'!$E$3:$N$3,0)-1),2,TRUE)","v":1}]
[{"$f":"'A. Population Info'!A313","v":1000390269},{"$f":"'A. Population Info'!G313","v":"OIL"},{"$f":"'A. Population Info'!H313","v":1},{"$f":"'A. Population Info'!I313","v":0},{"$f":"'A. Population Info'!J313","v":0},{"$f":"'A. Population Info'!K313","v":0},{"$f":"VLOOKUP(B:B,OFFSET('B. PoF Adj Factor Scoring'!$E$5:$F$282,,MATCH(G$4,'B. PoF Adj Factor Scoring'!$E$3:$N$3,0)-1),2,TRUE)","v":1},{"$f":"VLOOKUP(C:C,OFFSET('B. PoF Adj Factor Scoring'!$E$5:$F$282,,MATCH(H$4,'B. PoF Adj Factor Scoring'!$E$3:$N$3,0)-1),2,TRUE)","v":1},{"$f":"VLOOKUP(D:D,OFFSET('B. PoF Adj Factor Scoring'!$E$5:$F$282,,MATCH(I$4,'B. PoF Adj Factor Scoring'!$E$3:$N$3,0)-1),2,TRUE)","v":1},{"$f":"VLOOKUP(E:E,OFFSET('B. PoF Adj Factor Scoring'!$E$5:$F$282,,MATCH(J$4,'B. PoF Adj Factor Scoring'!$E$3:$N$3,0)-1),2,TRUE)","v":1},{"$f":"VLOOKUP(F:F,OFFSET('B. PoF Adj Factor Scoring'!$E$5:$F$282,,MATCH(K$4,'B. PoF Adj Factor Scoring'!$E$3:$N$3,0)-1),2,TRUE)","v":1}]
[{"$f":"'A. Population Info'!A314","v":1000391949},{"$f":"'A. Population Info'!G314","v":"OIL"},{"$f":"'A. Population Info'!H314","v":1},{"$f":"'A. Population Info'!I314","v":200},{"$f":"'A. Population Info'!J314","v":0},{"$f":"'A. Population Info'!K314","v":0},{"$f":"VLOOKUP(B:B,OFFSET('B. PoF Adj Factor Scoring'!$E$5:$F$282,,MATCH(G$4,'B. PoF Adj Factor Scoring'!$E$3:$N$3,0)-1),2,TRUE)","v":1},{"$f":"VLOOKUP(C:C,OFFSET('B. PoF Adj Factor Scoring'!$E$5:$F$282,,MATCH(H$4,'B. PoF Adj Factor Scoring'!$E$3:$N$3,0)-1),2,TRUE)","v":1},{"$f":"VLOOKUP(D:D,OFFSET('B. PoF Adj Factor Scoring'!$E$5:$F$282,,MATCH(I$4,'B. PoF Adj Factor Scoring'!$E$3:$N$3,0)-1),2,TRUE)","v":1},{"$f":"VLOOKUP(E:E,OFFSET('B. PoF Adj Factor Scoring'!$E$5:$F$282,,MATCH(J$4,'B. PoF Adj Factor Scoring'!$E$3:$N$3,0)-1),2,TRUE)","v":1},{"$f":"VLOOKUP(F:F,OFFSET('B. PoF Adj Factor Scoring'!$E$5:$F$282,,MATCH(K$4,'B. PoF Adj Factor Scoring'!$E$3:$N$3,0)-1),2,TRUE)","v":1}]
[{"$f":"'A. Population Info'!A315","v":1000395044},{"$f":"'A. Population Info'!G315","v":"OIL"},{"$f":"'A. Population Info'!H315","v":2},{"$f":"'A. Population Info'!I315","v":0},{"$f":"'A. Population Info'!J315","v":0},{"$f":"'A. Population Info'!K315","v":0},{"$f":"VLOOKUP(B:B,OFFSET('B. PoF Adj Factor Scoring'!$E$5:$F$282,,MATCH(G$4,'B. PoF Adj Factor Scoring'!$E$3:$N$3,0)-1),2,TRUE)","v":1},{"$f":"VLOOKUP(C:C,OFFSET('B. PoF Adj Factor Scoring'!$E$5:$F$282,,MATCH(H$4,'B. PoF Adj Factor Scoring'!$E$3:$N$3,0)-1),2,TRUE)","v":2},{"$f":"VLOOKUP(D:D,OFFSET('B. PoF Adj Factor Scoring'!$E$5:$F$282,,MATCH(I$4,'B. PoF Adj Factor Scoring'!$E$3:$N$3,0)-1),2,TRUE)","v":1},{"$f":"VLOOKUP(E:E,OFFSET('B. PoF Adj Factor Scoring'!$E$5:$F$282,,MATCH(J$4,'B. PoF Adj Factor Scoring'!$E$3:$N$3,0)-1),2,TRUE)","v":1},{"$f":"VLOOKUP(F:F,OFFSET('B. PoF Adj Factor Scoring'!$E$5:$F$282,,MATCH(K$4,'B. PoF Adj Factor Scoring'!$E$3:$N$3,0)-1),2,TRUE)","v":1}]
[{"$f":"'A. Population Info'!A316","v":1000395120},{"$f":"'A. Population Info'!G316","v":"OIL"},{"$f":"'A. Population Info'!H316","v":3},{"$f":"'A. Population Info'!I316","v":0},{"$f":"'A. Population Info'!J316","v":0},{"$f":"'A. Population Info'!K316","v":0},{"$f":"VLOOKUP(B:B,OFFSET('B. PoF Adj Factor Scoring'!$E$5:$F$282,,MATCH(G$4,'B. PoF Adj Factor Scoring'!$E$3:$N$3,0)-1),2,TRUE)","v":1},{"$f":"VLOOKUP(C:C,OFFSET('B. PoF Adj Factor Scoring'!$E$5:$F$282,,MATCH(H$4,'B. PoF Adj Factor Scoring'!$E$3:$N$3,0)-1),2,TRUE)","v":3},{"$f":"VLOOKUP(D:D,OFFSET('B. PoF Adj Factor Scoring'!$E$5:$F$282,,MATCH(I$4,'B. PoF Adj Factor Scoring'!$E$3:$N$3,0)-1),2,TRUE)","v":1},{"$f":"VLOOKUP(E:E,OFFSET('B. PoF Adj Factor Scoring'!$E$5:$F$282,,MATCH(J$4,'B. PoF Adj Factor Scoring'!$E$3:$N$3,0)-1),2,TRUE)","v":1},{"$f":"VLOOKUP(F:F,OFFSET('B. PoF Adj Factor Scoring'!$E$5:$F$282,,MATCH(K$4,'B. PoF Adj Factor Scoring'!$E$3:$N$3,0)-1),2,TRUE)","v":1}]
[{"$f":"'A. Population Info'!A317","v":1000395215},{"$f":"'A. Population Info'!G317","v":"OIL"},{"$f":"'A. Population Info'!H317","v":1},{"$f":"'A. Population Info'!I317","v":0},{"$f":"'A. Population Info'!J317","v":0},{"$f":"'A. Population Info'!K317","v":0},{"$f":"VLOOKUP(B:B,OFFSET('B. PoF Adj Factor Scoring'!$E$5:$F$282,,MATCH(G$4,'B. PoF Adj Factor Scoring'!$E$3:$N$3,0)-1),2,TRUE)","v":1},{"$f":"VLOOKUP(C:C,OFFSET('B. PoF Adj Factor Scoring'!$E$5:$F$282,,MATCH(H$4,'B. PoF Adj Factor Scoring'!$E$3:$N$3,0)-1),2,TRUE)","v":1},{"$f":"VLOOKUP(D:D,OFFSET('B. PoF Adj Factor Scoring'!$E$5:$F$282,,MATCH(I$4,'B. PoF Adj Factor Scoring'!$E$3:$N$3,0)-1),2,TRUE)","v":1},{"$f":"VLOOKUP(E:E,OFFSET('B. PoF Adj Factor Scoring'!$E$5:$F$282,,MATCH(J$4,'B. PoF Adj Factor Scoring'!$E$3:$N$3,0)-1),2,TRUE)","v":1},{"$f":"VLOOKUP(F:F,OFFSET('B. PoF Adj Factor Scoring'!$E$5:$F$282,,MATCH(K$4,'B. PoF Adj Factor Scoring'!$E$3:$N$3,0)-1),2,TRUE)","v":1}]
[{"$f":"'A. Population Info'!A318","v":1000395235},{"$f":"'A. Population Info'!G318","v":"OIL"},{"$f":"'A. Population Info'!H318","v":3},{"$f":"'A. Population Info'!I318","v":0},{"$f":"'A. Population Info'!J318","v":0},{"$f":"'A. Population Info'!K318","v":0},{"$f":"VLOOKUP(B:B,OFFSET('B. PoF Adj Factor Scoring'!$E$5:$F$282,,MATCH(G$4,'B. PoF Adj Factor Scoring'!$E$3:$N$3,0)-1),2,TRUE)","v":1},{"$f":"VLOOKUP(C:C,OFFSET('B. PoF Adj Factor Scoring'!$E$5:$F$282,,MATCH(H$4,'B. PoF Adj Factor Scoring'!$E$3:$N$3,0)-1),2,TRUE)","v":3},{"$f":"VLOOKUP(D:D,OFFSET('B. PoF Adj Factor Scoring'!$E$5:$F$282,,MATCH(I$4,'B. PoF Adj Factor Scoring'!$E$3:$N$3,0)-1),2,TRUE)","v":1},{"$f":"VLOOKUP(E:E,OFFSET('B. PoF Adj Factor Scoring'!$E$5:$F$282,,MATCH(J$4,'B. PoF Adj Factor Scoring'!$E$3:$N$3,0)-1),2,TRUE)","v":1},{"$f":"VLOOKUP(F:F,OFFSET('B. PoF Adj Factor Scoring'!$E$5:$F$282,,MATCH(K$4,'B. PoF Adj Factor Scoring'!$E$3:$N$3,0)-1),2,TRUE)","v":1}]
[{"$f":"'A. Population Info'!A319","v":1000395352},{"$f":"'A. Population Info'!G319","v":"OIL"},{"$f":"'A. Population Info'!H319","v":1},{"$f":"'A. Population Info'!I319","v":0},{"$f":"'A. Population Info'!J319","v":0},{"$f":"'A. Population Info'!K319","v":0},{"$f":"VLOOKUP(B:B,OFFSET('B. PoF Adj Factor Scoring'!$E$5:$F$282,,MATCH(G$4,'B. PoF Adj Factor Scoring'!$E$3:$N$3,0)-1),2,TRUE)","v":1},{"$f":"VLOOKUP(C:C,OFFSET('B. PoF Adj Factor Scoring'!$E$5:$F$282,,MATCH(H$4,'B. PoF Adj Factor Scoring'!$E$3:$N$3,0)-1),2,TRUE)","v":1},{"$f":"VLOOKUP(D:D,OFFSET('B. PoF Adj Factor Scoring'!$E$5:$F$282,,MATCH(I$4,'B. PoF Adj Factor Scoring'!$E$3:$N$3,0)-1),2,TRUE)","v":1},{"$f":"VLOOKUP(E:E,OFFSET('B. PoF Adj Factor Scoring'!$E$5:$F$282,,MATCH(J$4,'B. PoF Adj Factor Scoring'!$E$3:$N$3,0)-1),2,TRUE)","v":1},{"$f":"VLOOKUP(F:F,OFFSET('B. PoF Adj Factor Scoring'!$E$5:$F$282,,MATCH(K$4,'B. PoF Adj Factor Scoring'!$E$3:$N$3,0)-1),2,TRUE)","v":1}]
[{"$f":"'A. Population Info'!A320","v":1000395372},{"$f":"'A. Population Info'!G320","v":"OIL"},{"$f":"'A. Population Info'!H320","v":1},{"$f":"'A. Population Info'!I320","v":0},{"$f":"'A. Population Info'!J320","v":0},{"$f":"'A. Population Info'!K320","v":0},{"$f":"VLOOKUP(B:B,OFFSET('B. PoF Adj Factor Scoring'!$E$5:$F$282,,MATCH(G$4,'B. PoF Adj Factor Scoring'!$E$3:$N$3,0)-1),2,TRUE)","v":1},{"$f":"VLOOKUP(C:C,OFFSET('B. PoF Adj Factor Scoring'!$E$5:$F$282,,MATCH(H$4,'B. PoF Adj Factor Scoring'!$E$3:$N$3,0)-1),2,TRUE)","v":1},{"$f":"VLOOKUP(D:D,OFFSET('B. PoF Adj Factor Scoring'!$E$5:$F$282,,MATCH(I$4,'B. PoF Adj Factor Scoring'!$E$3:$N$3,0)-1),2,TRUE)","v":1},{"$f":"VLOOKUP(E:E,OFFSET('B. PoF Adj Factor Scoring'!$E$5:$F$282,,MATCH(J$4,'B. PoF Adj Factor Scoring'!$E$3:$N$3,0)-1),2,TRUE)","v":1},{"$f":"VLOOKUP(F:F,OFFSET('B. PoF Adj Factor Scoring'!$E$5:$F$282,,MATCH(K$4,'B. PoF Adj Factor Scoring'!$E$3:$N$3,0)-1),2,TRUE)","v":1}]
[{"$f":"'A. Population Info'!A321","v":1000395408},{"$f":"'A. Population Info'!G321","v":"OIL"},{"$f":"'A. Population Info'!H321","v":1},{"$f":"'A. Population Info'!I321","v":50},{"$f":"'A. Population Info'!J321","v":0},{"$f":"'A. Population Info'!K321","v":0},{"$f":"VLOOKUP(B:B,OFFSET('B. PoF Adj Factor Scoring'!$E$5:$F$282,,MATCH(G$4,'B. PoF Adj Factor Scoring'!$E$3:$N$3,0)-1),2,TRUE)","v":1},{"$f":"VLOOKUP(C:C,OFFSET('B. PoF Adj Factor Scoring'!$E$5:$F$282,,MATCH(H$4,'B. PoF Adj Factor Scoring'!$E$3:$N$3,0)-1),2,TRUE)","v":1},{"$f":"VLOOKUP(D:D,OFFSET('B. PoF Adj Factor Scoring'!$E$5:$F$282,,MATCH(I$4,'B. PoF Adj Factor Scoring'!$E$3:$N$3,0)-1),2,TRUE)","v":1},{"$f":"VLOOKUP(E:E,OFFSET('B. PoF Adj Factor Scoring'!$E$5:$F$282,,MATCH(J$4,'B. PoF Adj Factor Scoring'!$E$3:$N$3,0)-1),2,TRUE)","v":1},{"$f":"VLOOKUP(F:F,OFFSET('B. PoF Adj Factor Scoring'!$E$5:$F$282,,MATCH(K$4,'B. PoF Adj Factor Scoring'!$E$3:$N$3,0)-1),2,TRUE)","v":1}]
[{"$f":"'A. Population Info'!A322","v":1000395428},{"$f":"'A. Population Info'!G322","v":"OIL"},{"$f":"'A. Population Info'!H322","v":1},{"$f":"'A. Population Info'!I322","v":0},{"$f":"'A. Population Info'!J322","v":0},{"$f":"'A. Population Info'!K322","v":0},{"$f":"VLOOKUP(B:B,OFFSET('B. PoF Adj Factor Scoring'!$E$5:$F$282,,MATCH(G$4,'B. PoF Adj Factor Scoring'!$E$3:$N$3,0)-1),2,TRUE)","v":1},{"$f":"VLOOKUP(C:C,OFFSET('B. PoF Adj Factor Scoring'!$E$5:$F$282,,MATCH(H$4,'B. PoF Adj Factor Scoring'!$E$3:$N$3,0)-1),2,TRUE)","v":1},{"$f":"VLOOKUP(D:D,OFFSET('B. PoF Adj Factor Scoring'!$E$5:$F$282,,MATCH(I$4,'B. PoF Adj Factor Scoring'!$E$3:$N$3,0)-1),2,TRUE)","v":1},{"$f":"VLOOKUP(E:E,OFFSET('B. PoF Adj Factor Scoring'!$E$5:$F$282,,MATCH(J$4,'B. PoF Adj Factor Scoring'!$E$3:$N$3,0)-1),2,TRUE)","v":1},{"$f":"VLOOKUP(F:F,OFFSET('B. PoF Adj Factor Scoring'!$E$5:$F$282,,MATCH(K$4,'B. PoF Adj Factor Scoring'!$E$3:$N$3,0)-1),2,TRUE)","v":1}]
[{"$f":"'A. Population Info'!A323","v":1000395446},{"$f":"'A. Population Info'!G323","v":"OIL"},{"$f":"'A. Population Info'!H323","v":1},{"$f":"'A. Population Info'!I323","v":0},{"$f":"'A. Population Info'!J323","v":0},{"$f":"'A. Population Info'!K323","v":0},{"$f":"VLOOKUP(B:B,OFFSET('B. PoF Adj Factor Scoring'!$E$5:$F$282,,MATCH(G$4,'B. PoF Adj Factor Scoring'!$E$3:$N$3,0)-1),2,TRUE)","v":1},{"$f":"VLOOKUP(C:C,OFFSET('B. PoF Adj Factor Scoring'!$E$5:$F$282,,MATCH(H$4,'B. PoF Adj Factor Scoring'!$E$3:$N$3,0)-1),2,TRUE)","v":1},{"$f":"VLOOKUP(D:D,OFFSET('B. PoF Adj Factor Scoring'!$E$5:$F$282,,MATCH(I$4,'B. PoF Adj Factor Scoring'!$E$3:$N$3,0)-1),2,TRUE)","v":1},{"$f":"VLOOKUP(E:E,OFFSET('B. PoF Adj Factor Scoring'!$E$5:$F$282,,MATCH(J$4,'B. PoF Adj Factor Scoring'!$E$3:$N$3,0)-1),2,TRUE)","v":1},{"$f":"VLOOKUP(F:F,OFFSET('B. PoF Adj Factor Scoring'!$E$5:$F$282,,MATCH(K$4,'B. PoF Adj Factor Scoring'!$E$3:$N$3,0)-1),2,TRUE)","v":1}]
[{"$f":"'A. Population Info'!A324","v":1000395463},{"$f":"'A. Population Info'!G324","v":"OIL"},{"$f":"'A. Population Info'!H324","v":1},{"$f":"'A. Population Info'!I324","v":0},{"$f":"'A. Population Info'!J324","v":0},{"$f":"'A. Population Info'!K324","v":0},{"$f":"VLOOKUP(B:B,OFFSET('B. PoF Adj Factor Scoring'!$E$5:$F$282,,MATCH(G$4,'B. PoF Adj Factor Scoring'!$E$3:$N$3,0)-1),2,TRUE)","v":1},{"$f":"VLOOKUP(C:C,OFFSET('B. PoF Adj Factor Scoring'!$E$5:$F$282,,MATCH(H$4,'B. PoF Adj Factor Scoring'!$E$3:$N$3,0)-1),2,TRUE)","v":1},{"$f":"VLOOKUP(D:D,OFFSET('B. PoF Adj Factor Scoring'!$E$5:$F$282,,MATCH(I$4,'B. PoF Adj Factor Scoring'!$E$3:$N$3,0)-1),2,TRUE)","v":1},{"$f":"VLOOKUP(E:E,OFFSET('B. PoF Adj Factor Scoring'!$E$5:$F$282,,MATCH(J$4,'B. PoF Adj Factor Scoring'!$E$3:$N$3,0)-1),2,TRUE)","v":1},{"$f":"VLOOKUP(F:F,OFFSET('B. PoF Adj Factor Scoring'!$E$5:$F$282,,MATCH(K$4,'B. PoF Adj Factor Scoring'!$E$3:$N$3,0)-1),2,TRUE)","v":1}]
[{"$f":"'A. Population Info'!A325","v":1000395483},{"$f":"'A. Population Info'!G325","v":"OIL"},{"$f":"'A. Population Info'!H325","v":1},{"$f":"'A. Population Info'!I325","v":0},{"$f":"'A. Population Info'!J325","v":0},{"$f":"'A. Population Info'!K325","v":0},{"$f":"VLOOKUP(B:B,OFFSET('B. PoF Adj Factor Scoring'!$E$5:$F$282,,MATCH(G$4,'B. PoF Adj Factor Scoring'!$E$3:$N$3,0)-1),2,TRUE)","v":1},{"$f":"VLOOKUP(C:C,OFFSET('B. PoF Adj Factor Scoring'!$E$5:$F$282,,MATCH(H$4,'B. PoF Adj Factor Scoring'!$E$3:$N$3,0)-1),2,TRUE)","v":1},{"$f":"VLOOKUP(D:D,OFFSET('B. PoF Adj Factor Scoring'!$E$5:$F$282,,MATCH(I$4,'B. PoF Adj Factor Scoring'!$E$3:$N$3,0)-1),2,TRUE)","v":1},{"$f":"VLOOKUP(E:E,OFFSET('B. PoF Adj Factor Scoring'!$E$5:$F$282,,MATCH(J$4,'B. PoF Adj Factor Scoring'!$E$3:$N$3,0)-1),2,TRUE)","v":1},{"$f":"VLOOKUP(F:F,OFFSET('B. PoF Adj Factor Scoring'!$E$5:$F$282,,MATCH(K$4,'B. PoF Adj Factor Scoring'!$E$3:$N$3,0)-1),2,TRUE)","v":1}]
[{"$f":"'A. Population Info'!A326","v":1000395500},{"$f":"'A. Population Info'!G326","v":"OIL"},{"$f":"'A. Population Info'!H326","v":1},{"$f":"'A. Population Info'!I326","v":0},{"$f":"'A. Population Info'!J326","v":0},{"$f":"'A. Population Info'!K326","v":0},{"$f":"VLOOKUP(B:B,OFFSET('B. PoF Adj Factor Scoring'!$E$5:$F$282,,MATCH(G$4,'B. PoF Adj Factor Scoring'!$E$3:$N$3,0)-1),2,TRUE)","v":1},{"$f":"VLOOKUP(C:C,OFFSET('B. PoF Adj Factor Scoring'!$E$5:$F$282,,MATCH(H$4,'B. PoF Adj Factor Scoring'!$E$3:$N$3,0)-1),2,TRUE)","v":1},{"$f":"VLOOKUP(D:D,OFFSET('B. PoF Adj Factor Scoring'!$E$5:$F$282,,MATCH(I$4,'B. PoF Adj Factor Scoring'!$E$3:$N$3,0)-1),2,TRUE)","v":1},{"$f":"VLOOKUP(E:E,OFFSET('B. PoF Adj Factor Scoring'!$E$5:$F$282,,MATCH(J$4,'B. PoF Adj Factor Scoring'!$E$3:$N$3,0)-1),2,TRUE)","v":1},{"$f":"VLOOKUP(F:F,OFFSET('B. PoF Adj Factor Scoring'!$E$5:$F$282,,MATCH(K$4,'B. PoF Adj Factor Scoring'!$E$3:$N$3,0)-1),2,TRUE)","v":1}]
[{"$f":"'A. Population Info'!A327","v":1000395521},{"$f":"'A. Population Info'!G327","v":"OIL"},{"$f":"'A. Population Info'!H327","v":1},{"$f":"'A. Population Info'!I327","v":0},{"$f":"'A. Population Info'!J327","v":0},{"$f":"'A. Population Info'!K327","v":0},{"$f":"VLOOKUP(B:B,OFFSET('B. PoF Adj Factor Scoring'!$E$5:$F$282,,MATCH(G$4,'B. PoF Adj Factor Scoring'!$E$3:$N$3,0)-1),2,TRUE)","v":1},{"$f":"VLOOKUP(C:C,OFFSET('B. PoF Adj Factor Scoring'!$E$5:$F$282,,MATCH(H$4,'B. PoF Adj Factor Scoring'!$E$3:$N$3,0)-1),2,TRUE)","v":1},{"$f":"VLOOKUP(D:D,OFFSET('B. PoF Adj Factor Scoring'!$E$5:$F$282,,MATCH(I$4,'B. PoF Adj Factor Scoring'!$E$3:$N$3,0)-1),2,TRUE)","v":1},{"$f":"VLOOKUP(E:E,OFFSET('B. PoF Adj Factor Scoring'!$E$5:$F$282,,MATCH(J$4,'B. PoF Adj Factor Scoring'!$E$3:$N$3,0)-1),2,TRUE)","v":1},{"$f":"VLOOKUP(F:F,OFFSET('B. PoF Adj Factor Scoring'!$E$5:$F$282,,MATCH(K$4,'B. PoF Adj Factor Scoring'!$E$3:$N$3,0)-1),2,TRUE)","v":1}]
[{"$f":"'A. Population Info'!A328","v":1000395538},{"$f":"'A. Population Info'!G328","v":"OIL"},{"$f":"'A. Population Info'!H328","v":1},{"$f":"'A. Population Info'!I328","v":0},{"$f":"'A. Population Info'!J328","v":0},{"$f":"'A. Population Info'!K328","v":0},{"$f":"VLOOKUP(B:B,OFFSET('B. PoF Adj Factor Scoring'!$E$5:$F$282,,MATCH(G$4,'B. PoF Adj Factor Scoring'!$E$3:$N$3,0)-1),2,TRUE)","v":1},{"$f":"VLOOKUP(C:C,OFFSET('B. PoF Adj Factor Scoring'!$E$5:$F$282,,MATCH(H$4,'B. PoF Adj Factor Scoring'!$E$3:$N$3,0)-1),2,TRUE)","v":1},{"$f":"VLOOKUP(D:D,OFFSET('B. PoF Adj Factor Scoring'!$E$5:$F$282,,MATCH(I$4,'B. PoF Adj Factor Scoring'!$E$3:$N$3,0)-1),2,TRUE)","v":1},{"$f":"VLOOKUP(E:E,OFFSET('B. PoF Adj Factor Scoring'!$E$5:$F$282,,MATCH(J$4,'B. PoF Adj Factor Scoring'!$E$3:$N$3,0)-1),2,TRUE)","v":1},{"$f":"VLOOKUP(F:F,OFFSET('B. PoF Adj Factor Scoring'!$E$5:$F$282,,MATCH(K$4,'B. PoF Adj Factor Scoring'!$E$3:$N$3,0)-1),2,TRUE)","v":1}]
[{"$f":"'A. Population Info'!A329","v":1000395577},{"$f":"'A. Population Info'!G329","v":"CAST_RESIN"},{"$f":"'A. Population Info'!H329","v":"N/A"},{"$f":"'A. Population Info'!I329","v":0},{"$f":"'A. Population Info'!J329","v":0},{"$f":"'A. Population Info'!K329","v":0},{"$f":"VLOOKUP(B:B,OFFSET('B. PoF Adj Factor Scoring'!$E$5:$F$282,,MATCH(G$4,'B. PoF Adj Factor Scoring'!$E$3:$N$3,0)-1),2,TRUE)","v":1},{"$f":"VLOOKUP(C:C,OFFSET('B. PoF Adj Factor Scoring'!$E$5:$F$282,,MATCH(H$4,'B. PoF Adj Factor Scoring'!$E$3:$N$3,0)-1),2,TRUE)","v":1},{"$f":"VLOOKUP(D:D,OFFSET('B. PoF Adj Factor Scoring'!$E$5:$F$282,,MATCH(I$4,'B. PoF Adj Factor Scoring'!$E$3:$N$3,0)-1),2,TRUE)","v":1},{"$f":"VLOOKUP(E:E,OFFSET('B. PoF Adj Factor Scoring'!$E$5:$F$282,,MATCH(J$4,'B. PoF Adj Factor Scoring'!$E$3:$N$3,0)-1),2,TRUE)","v":1},{"$f":"VLOOKUP(F:F,OFFSET('B. PoF Adj Factor Scoring'!$E$5:$F$282,,MATCH(K$4,'B. PoF Adj Factor Scoring'!$E$3:$N$3,0)-1),2,TRUE)","v":1}]
[{"$f":"'A. Population Info'!A330","v":1000395597},{"$f":"'A. Population Info'!G330","v":"OIL"},{"$f":"'A. Population Info'!H330","v":1},{"$f":"'A. Population Info'!I330","v":0},{"$f":"'A. Population Info'!J330","v":0},{"$f":"'A. Population Info'!K330","v":0},{"$f":"VLOOKUP(B:B,OFFSET('B. PoF Adj Factor Scoring'!$E$5:$F$282,,MATCH(G$4,'B. PoF Adj Factor Scoring'!$E$3:$N$3,0)-1),2,TRUE)","v":1},{"$f":"VLOOKUP(C:C,OFFSET('B. PoF Adj Factor Scoring'!$E$5:$F$282,,MATCH(H$4,'B. PoF Adj Factor Scoring'!$E$3:$N$3,0)-1),2,TRUE)","v":1},{"$f":"VLOOKUP(D:D,OFFSET('B. PoF Adj Factor Scoring'!$E$5:$F$282,,MATCH(I$4,'B. PoF Adj Factor Scoring'!$E$3:$N$3,0)-1),2,TRUE)","v":1},{"$f":"VLOOKUP(E:E,OFFSET('B. PoF Adj Factor Scoring'!$E$5:$F$282,,MATCH(J$4,'B. PoF Adj Factor Scoring'!$E$3:$N$3,0)-1),2,TRUE)","v":1},{"$f":"VLOOKUP(F:F,OFFSET('B. PoF Adj Factor Scoring'!$E$5:$F$282,,MATCH(K$4,'B. PoF Adj Factor Scoring'!$E$3:$N$3,0)-1),2,TRUE)","v":1}]
[{"$f":"'A. Population Info'!A331","v":1000395616},{"$f":"'A. Population Info'!G331","v":"OIL"},{"$f":"'A. Population Info'!H331","v":1},{"$f":"'A. Population Info'!I331","v":0},{"$f":"'A. Population Info'!J331","v":0},{"$f":"'A. Population Info'!K331","v":0},{"$f":"VLOOKUP(B:B,OFFSET('B. PoF Adj Factor Scoring'!$E$5:$F$282,,MATCH(G$4,'B. PoF Adj Factor Scoring'!$E$3:$N$3,0)-1),2,TRUE)","v":1},{"$f":"VLOOKUP(C:C,OFFSET('B. PoF Adj Factor Scoring'!$E$5:$F$282,,MATCH(H$4,'B. PoF Adj Factor Scoring'!$E$3:$N$3,0)-1),2,TRUE)","v":1},{"$f":"VLOOKUP(D:D,OFFSET('B. PoF Adj Factor Scoring'!$E$5:$F$282,,MATCH(I$4,'B. PoF Adj Factor Scoring'!$E$3:$N$3,0)-1),2,TRUE)","v":1},{"$f":"VLOOKUP(E:E,OFFSET('B. PoF Adj Factor Scoring'!$E$5:$F$282,,MATCH(J$4,'B. PoF Adj Factor Scoring'!$E$3:$N$3,0)-1),2,TRUE)","v":1},{"$f":"VLOOKUP(F:F,OFFSET('B. PoF Adj Factor Scoring'!$E$5:$F$282,,MATCH(K$4,'B. PoF Adj Factor Scoring'!$E$3:$N$3,0)-1),2,TRUE)","v":1}]
[{"$f":"'A. Population Info'!A332","v":1000395639},{"$f":"'A. Population Info'!G332","v":"OIL"},{"$f":"'A. Population Info'!H332","v":2},{"$f":"'A. Population Info'!I332","v":0},{"$f":"'A. Population Info'!J332","v":0},{"$f":"'A. Population Info'!K332","v":0},{"$f":"VLOOKUP(B:B,OFFSET('B. PoF Adj Factor Scoring'!$E$5:$F$282,,MATCH(G$4,'B. PoF Adj Factor Scoring'!$E$3:$N$3,0)-1),2,TRUE)","v":1},{"$f":"VLOOKUP(C:C,OFFSET('B. PoF Adj Factor Scoring'!$E$5:$F$282,,MATCH(H$4,'B. PoF Adj Factor Scoring'!$E$3:$N$3,0)-1),2,TRUE)","v":2},{"$f":"VLOOKUP(D:D,OFFSET('B. PoF Adj Factor Scoring'!$E$5:$F$282,,MATCH(I$4,'B. PoF Adj Factor Scoring'!$E$3:$N$3,0)-1),2,TRUE)","v":1},{"$f":"VLOOKUP(E:E,OFFSET('B. PoF Adj Factor Scoring'!$E$5:$F$282,,MATCH(J$4,'B. PoF Adj Factor Scoring'!$E$3:$N$3,0)-1),2,TRUE)","v":1},{"$f":"VLOOKUP(F:F,OFFSET('B. PoF Adj Factor Scoring'!$E$5:$F$282,,MATCH(K$4,'B. PoF Adj Factor Scoring'!$E$3:$N$3,0)-1),2,TRUE)","v":1}]
[{"$f":"'A. Population Info'!A333","v":1000395669},{"$f":"'A. Population Info'!G333","v":"OIL"},{"$f":"'A. Population Info'!H333","v":1},{"$f":"'A. Population Info'!I333","v":0},{"$f":"'A. Population Info'!J333","v":0},{"$f":"'A. Population Info'!K333","v":0},{"$f":"VLOOKUP(B:B,OFFSET('B. PoF Adj Factor Scoring'!$E$5:$F$282,,MATCH(G$4,'B. PoF Adj Factor Scoring'!$E$3:$N$3,0)-1),2,TRUE)","v":1},{"$f":"VLOOKUP(C:C,OFFSET('B. PoF Adj Factor Scoring'!$E$5:$F$282,,MATCH(H$4,'B. PoF Adj Factor Scoring'!$E$3:$N$3,0)-1),2,TRUE)","v":1},{"$f":"VLOOKUP(D:D,OFFSET('B. PoF Adj Factor Scoring'!$E$5:$F$282,,MATCH(I$4,'B. PoF Adj Factor Scoring'!$E$3:$N$3,0)-1),2,TRUE)","v":1},{"$f":"VLOOKUP(E:E,OFFSET('B. PoF Adj Factor Scoring'!$E$5:$F$282,,MATCH(J$4,'B. PoF Adj Factor Scoring'!$E$3:$N$3,0)-1),2,TRUE)","v":1},{"$f":"VLOOKUP(F:F,OFFSET('B. PoF Adj Factor Scoring'!$E$5:$F$282,,MATCH(K$4,'B. PoF Adj Factor Scoring'!$E$3:$N$3,0)-1),2,TRUE)","v":1}]
[{"$f":"'A. Population Info'!A334","v":1000395733},{"$f":"'A. Population Info'!G334","v":"OIL"},{"$f":"'A. Population Info'!H334","v":1},{"$f":"'A. Population Info'!I334","v":0},{"$f":"'A. Population Info'!J334","v":0},{"$f":"'A. Population Info'!K334","v":0},{"$f":"VLOOKUP(B:B,OFFSET('B. PoF Adj Factor Scoring'!$E$5:$F$282,,MATCH(G$4,'B. PoF Adj Factor Scoring'!$E$3:$N$3,0)-1),2,TRUE)","v":1},{"$f":"VLOOKUP(C:C,OFFSET('B. PoF Adj Factor Scoring'!$E$5:$F$282,,MATCH(H$4,'B. PoF Adj Factor Scoring'!$E$3:$N$3,0)-1),2,TRUE)","v":1},{"$f":"VLOOKUP(D:D,OFFSET('B. PoF Adj Factor Scoring'!$E$5:$F$282,,MATCH(I$4,'B. PoF Adj Factor Scoring'!$E$3:$N$3,0)-1),2,TRUE)","v":1},{"$f":"VLOOKUP(E:E,OFFSET('B. PoF Adj Factor Scoring'!$E$5:$F$282,,MATCH(J$4,'B. PoF Adj Factor Scoring'!$E$3:$N$3,0)-1),2,TRUE)","v":1},{"$f":"VLOOKUP(F:F,OFFSET('B. PoF Adj Factor Scoring'!$E$5:$F$282,,MATCH(K$4,'B. PoF Adj Factor Scoring'!$E$3:$N$3,0)-1),2,TRUE)","v":1}]
[{"$f":"'A. Population Info'!A335","v":1000395763},{"$f":"'A. Population Info'!G335","v":"OIL"},{"$f":"'A. Population Info'!H335","v":1},{"$f":"'A. Population Info'!I335","v":0},{"$f":"'A. Population Info'!J335","v":0},{"$f":"'A. Population Info'!K335","v":0},{"$f":"VLOOKUP(B:B,OFFSET('B. PoF Adj Factor Scoring'!$E$5:$F$282,,MATCH(G$4,'B. PoF Adj Factor Scoring'!$E$3:$N$3,0)-1),2,TRUE)","v":1},{"$f":"VLOOKUP(C:C,OFFSET('B. PoF Adj Factor Scoring'!$E$5:$F$282,,MATCH(H$4,'B. PoF Adj Factor Scoring'!$E$3:$N$3,0)-1),2,TRUE)","v":1},{"$f":"VLOOKUP(D:D,OFFSET('B. PoF Adj Factor Scoring'!$E$5:$F$282,,MATCH(I$4,'B. PoF Adj Factor Scoring'!$E$3:$N$3,0)-1),2,TRUE)","v":1},{"$f":"VLOOKUP(E:E,OFFSET('B. PoF Adj Factor Scoring'!$E$5:$F$282,,MATCH(J$4,'B. PoF Adj Factor Scoring'!$E$3:$N$3,0)-1),2,TRUE)","v":1},{"$f":"VLOOKUP(F:F,OFFSET('B. PoF Adj Factor Scoring'!$E$5:$F$282,,MATCH(K$4,'B. PoF Adj Factor Scoring'!$E$3:$N$3,0)-1),2,TRUE)","v":1}]
[{"$f":"'A. Population Info'!A336","v":1000395789},{"$f":"'A. Population Info'!G336","v":"OIL"},{"$f":"'A. Population Info'!H336","v":1},{"$f":"'A. Population Info'!I336","v":0},{"$f":"'A. Population Info'!J336","v":0},{"$f":"'A. Population Info'!K336","v":0},{"$f":"VLOOKUP(B:B,OFFSET('B. PoF Adj Factor Scoring'!$E$5:$F$282,,MATCH(G$4,'B. PoF Adj Factor Scoring'!$E$3:$N$3,0)-1),2,TRUE)","v":1},{"$f":"VLOOKUP(C:C,OFFSET('B. PoF Adj Factor Scoring'!$E$5:$F$282,,MATCH(H$4,'B. PoF Adj Factor Scoring'!$E$3:$N$3,0)-1),2,TRUE)","v":1},{"$f":"VLOOKUP(D:D,OFFSET('B. PoF Adj Factor Scoring'!$E$5:$F$282,,MATCH(I$4,'B. PoF Adj Factor Scoring'!$E$3:$N$3,0)-1),2,TRUE)","v":1},{"$f":"VLOOKUP(E:E,OFFSET('B. PoF Adj Factor Scoring'!$E$5:$F$282,,MATCH(J$4,'B. PoF Adj Factor Scoring'!$E$3:$N$3,0)-1),2,TRUE)","v":1},{"$f":"VLOOKUP(F:F,OFFSET('B. PoF Adj Factor Scoring'!$E$5:$F$282,,MATCH(K$4,'B. PoF Adj Factor Scoring'!$E$3:$N$3,0)-1),2,TRUE)","v":1}]
[{"$f":"'A. Population Info'!A337","v":1000395818},{"$f":"'A. Population Info'!G337","v":"OIL"},{"$f":"'A. Population Info'!H337","v":1},{"$f":"'A. Population Info'!I337","v":0},{"$f":"'A. Population Info'!J337","v":0},{"$f":"'A. Population Info'!K337","v":0},{"$f":"VLOOKUP(B:B,OFFSET('B. PoF Adj Factor Scoring'!$E$5:$F$282,,MATCH(G$4,'B. PoF Adj Factor Scoring'!$E$3:$N$3,0)-1),2,TRUE)","v":1},{"$f":"VLOOKUP(C:C,OFFSET('B. PoF Adj Factor Scoring'!$E$5:$F$282,,MATCH(H$4,'B. PoF Adj Factor Scoring'!$E$3:$N$3,0)-1),2,TRUE)","v":1},{"$f":"VLOOKUP(D:D,OFFSET('B. PoF Adj Factor Scoring'!$E$5:$F$282,,MATCH(I$4,'B. PoF Adj Factor Scoring'!$E$3:$N$3,0)-1),2,TRUE)","v":1},{"$f":"VLOOKUP(E:E,OFFSET('B. PoF Adj Factor Scoring'!$E$5:$F$282,,MATCH(J$4,'B. PoF Adj Factor Scoring'!$E$3:$N$3,0)-1),2,TRUE)","v":1},{"$f":"VLOOKUP(F:F,OFFSET('B. PoF Adj Factor Scoring'!$E$5:$F$282,,MATCH(K$4,'B. PoF Adj Factor Scoring'!$E$3:$N$3,0)-1),2,TRUE)","v":1}]
[{"$f":"'A. Population Info'!A338","v":1000395877},{"$f":"'A. Population Info'!G338","v":"OIL"},{"$f":"'A. Population Info'!H338","v":1},{"$f":"'A. Population Info'!I338","v":0},{"$f":"'A. Population Info'!J338","v":0},{"$f":"'A. Population Info'!K338","v":0},{"$f":"VLOOKUP(B:B,OFFSET('B. PoF Adj Factor Scoring'!$E$5:$F$282,,MATCH(G$4,'B. PoF Adj Factor Scoring'!$E$3:$N$3,0)-1),2,TRUE)","v":1},{"$f":"VLOOKUP(C:C,OFFSET('B. PoF Adj Factor Scoring'!$E$5:$F$282,,MATCH(H$4,'B. PoF Adj Factor Scoring'!$E$3:$N$3,0)-1),2,TRUE)","v":1},{"$f":"VLOOKUP(D:D,OFFSET('B. PoF Adj Factor Scoring'!$E$5:$F$282,,MATCH(I$4,'B. PoF Adj Factor Scoring'!$E$3:$N$3,0)-1),2,TRUE)","v":1},{"$f":"VLOOKUP(E:E,OFFSET('B. PoF Adj Factor Scoring'!$E$5:$F$282,,MATCH(J$4,'B. PoF Adj Factor Scoring'!$E$3:$N$3,0)-1),2,TRUE)","v":1},{"$f":"VLOOKUP(F:F,OFFSET('B. PoF Adj Factor Scoring'!$E$5:$F$282,,MATCH(K$4,'B. PoF Adj Factor Scoring'!$E$3:$N$3,0)-1),2,TRUE)","v":1}]
[{"$f":"'A. Population Info'!A339","v":1000395930},{"$f":"'A. Population Info'!G339","v":"OIL"},{"$f":"'A. Population Info'!H339","v":1},{"$f":"'A. Population Info'!I339","v":0},{"$f":"'A. Population Info'!J339","v":0},{"$f":"'A. Population Info'!K339","v":0},{"$f":"VLOOKUP(B:B,OFFSET('B. PoF Adj Factor Scoring'!$E$5:$F$282,,MATCH(G$4,'B. PoF Adj Factor Scoring'!$E$3:$N$3,0)-1),2,TRUE)","v":1},{"$f":"VLOOKUP(C:C,OFFSET('B. PoF Adj Factor Scoring'!$E$5:$F$282,,MATCH(H$4,'B. PoF Adj Factor Scoring'!$E$3:$N$3,0)-1),2,TRUE)","v":1},{"$f":"VLOOKUP(D:D,OFFSET('B. PoF Adj Factor Scoring'!$E$5:$F$282,,MATCH(I$4,'B. PoF Adj Factor Scoring'!$E$3:$N$3,0)-1),2,TRUE)","v":1},{"$f":"VLOOKUP(E:E,OFFSET('B. PoF Adj Factor Scoring'!$E$5:$F$282,,MATCH(J$4,'B. PoF Adj Factor Scoring'!$E$3:$N$3,0)-1),2,TRUE)","v":1},{"$f":"VLOOKUP(F:F,OFFSET('B. PoF Adj Factor Scoring'!$E$5:$F$282,,MATCH(K$4,'B. PoF Adj Factor Scoring'!$E$3:$N$3,0)-1),2,TRUE)","v":1}]
[{"$f":"'A. Population Info'!A340","v":1000395955},{"$f":"'A. Population Info'!G340","v":"OIL"},{"$f":"'A. Population Info'!H340","v":1},{"$f":"'A. Population Info'!I340","v":0},{"$f":"'A. Population Info'!J340","v":0},{"$f":"'A. Population Info'!K340","v":0},{"$f":"VLOOKUP(B:B,OFFSET('B. PoF Adj Factor Scoring'!$E$5:$F$282,,MATCH(G$4,'B. PoF Adj Factor Scoring'!$E$3:$N$3,0)-1),2,TRUE)","v":1},{"$f":"VLOOKUP(C:C,OFFSET('B. PoF Adj Factor Scoring'!$E$5:$F$282,,MATCH(H$4,'B. PoF Adj Factor Scoring'!$E$3:$N$3,0)-1),2,TRUE)","v":1},{"$f":"VLOOKUP(D:D,OFFSET('B. PoF Adj Factor Scoring'!$E$5:$F$282,,MATCH(I$4,'B. PoF Adj Factor Scoring'!$E$3:$N$3,0)-1),2,TRUE)","v":1},{"$f":"VLOOKUP(E:E,OFFSET('B. PoF Adj Factor Scoring'!$E$5:$F$282,,MATCH(J$4,'B. PoF Adj Factor Scoring'!$E$3:$N$3,0)-1),2,TRUE)","v":1},{"$f":"VLOOKUP(F:F,OFFSET('B. PoF Adj Factor Scoring'!$E$5:$F$282,,MATCH(K$4,'B. PoF Adj Factor Scoring'!$E$3:$N$3,0)-1),2,TRUE)","v":1}]
[{"$f":"'A. Population Info'!A341","v":1000395984},{"$f":"'A. Population Info'!G341","v":"OIL"},{"$f":"'A. Population Info'!H341","v":1},{"$f":"'A. Population Info'!I341","v":0},{"$f":"'A. Population Info'!J341","v":0},{"$f":"'A. Population Info'!K341","v":0},{"$f":"VLOOKUP(B:B,OFFSET('B. PoF Adj Factor Scoring'!$E$5:$F$282,,MATCH(G$4,'B. PoF Adj Factor Scoring'!$E$3:$N$3,0)-1),2,TRUE)","v":1},{"$f":"VLOOKUP(C:C,OFFSET('B. PoF Adj Factor Scoring'!$E$5:$F$282,,MATCH(H$4,'B. PoF Adj Factor Scoring'!$E$3:$N$3,0)-1),2,TRUE)","v":1},{"$f":"VLOOKUP(D:D,OFFSET('B. PoF Adj Factor Scoring'!$E$5:$F$282,,MATCH(I$4,'B. PoF Adj Factor Scoring'!$E$3:$N$3,0)-1),2,TRUE)","v":1},{"$f":"VLOOKUP(E:E,OFFSET('B. PoF Adj Factor Scoring'!$E$5:$F$282,,MATCH(J$4,'B. PoF Adj Factor Scoring'!$E$3:$N$3,0)-1),2,TRUE)","v":1},{"$f":"VLOOKUP(F:F,OFFSET('B. PoF Adj Factor Scoring'!$E$5:$F$282,,MATCH(K$4,'B. PoF Adj Factor Scoring'!$E$3:$N$3,0)-1),2,TRUE)","v":1}]
[{"$f":"'A. Population Info'!A342","v":1000400013},{"$f":"'A. Population Info'!G342","v":"OIL"},{"$f":"'A. Population Info'!H342","v":1},{"$f":"'A. Population Info'!I342","v":0},{"$f":"'A. Population Info'!J342","v":0},{"$f":"'A. Population Info'!K342","v":0},{"$f":"VLOOKUP(B:B,OFFSET('B. PoF Adj Factor Scoring'!$E$5:$F$282,,MATCH(G$4,'B. PoF Adj Factor Scoring'!$E$3:$N$3,0)-1),2,TRUE)","v":1},{"$f":"VLOOKUP(C:C,OFFSET('B. PoF Adj Factor Scoring'!$E$5:$F$282,,MATCH(H$4,'B. PoF Adj Factor Scoring'!$E$3:$N$3,0)-1),2,TRUE)","v":1},{"$f":"VLOOKUP(D:D,OFFSET('B. PoF Adj Factor Scoring'!$E$5:$F$282,,MATCH(I$4,'B. PoF Adj Factor Scoring'!$E$3:$N$3,0)-1),2,TRUE)","v":1},{"$f":"VLOOKUP(E:E,OFFSET('B. PoF Adj Factor Scoring'!$E$5:$F$282,,MATCH(J$4,'B. PoF Adj Factor Scoring'!$E$3:$N$3,0)-1),2,TRUE)","v":1},{"$f":"VLOOKUP(F:F,OFFSET('B. PoF Adj Factor Scoring'!$E$5:$F$282,,MATCH(K$4,'B. PoF Adj Factor Scoring'!$E$3:$N$3,0)-1),2,TRUE)","v":1}]
[{"$f":"'A. Population Info'!A343","v":1000400036},{"$f":"'A. Population Info'!G343","v":"OIL"},{"$f":"'A. Population Info'!H343","v":1},{"$f":"'A. Population Info'!I343","v":0},{"$f":"'A. Population Info'!J343","v":0},{"$f":"'A. Population Info'!K343","v":0},{"$f":"VLOOKUP(B:B,OFFSET('B. PoF Adj Factor Scoring'!$E$5:$F$282,,MATCH(G$4,'B. PoF Adj Factor Scoring'!$E$3:$N$3,0)-1),2,TRUE)","v":1},{"$f":"VLOOKUP(C:C,OFFSET('B. PoF Adj Factor Scoring'!$E$5:$F$282,,MATCH(H$4,'B. PoF Adj Factor Scoring'!$E$3:$N$3,0)-1),2,TRUE)","v":1},{"$f":"VLOOKUP(D:D,OFFSET('B. PoF Adj Factor Scoring'!$E$5:$F$282,,MATCH(I$4,'B. PoF Adj Factor Scoring'!$E$3:$N$3,0)-1),2,TRUE)","v":1},{"$f":"VLOOKUP(E:E,OFFSET('B. PoF Adj Factor Scoring'!$E$5:$F$282,,MATCH(J$4,'B. PoF Adj Factor Scoring'!$E$3:$N$3,0)-1),2,TRUE)","v":1},{"$f":"VLOOKUP(F:F,OFFSET('B. PoF Adj Factor Scoring'!$E$5:$F$282,,MATCH(K$4,'B. PoF Adj Factor Scoring'!$E$3:$N$3,0)-1),2,TRUE)","v":1}]
[{"$f":"'A. Population Info'!A344","v":1000400062},{"$f":"'A. Population Info'!G344","v":"OIL"},{"$f":"'A. Population Info'!H344","v":1},{"$f":"'A. Population Info'!I344","v":0},{"$f":"'A. Population Info'!J344","v":0},{"$f":"'A. Population Info'!K344","v":0},{"$f":"VLOOKUP(B:B,OFFSET('B. PoF Adj Factor Scoring'!$E$5:$F$282,,MATCH(G$4,'B. PoF Adj Factor Scoring'!$E$3:$N$3,0)-1),2,TRUE)","v":1},{"$f":"VLOOKUP(C:C,OFFSET('B. PoF Adj Factor Scoring'!$E$5:$F$282,,MATCH(H$4,'B. PoF Adj Factor Scoring'!$E$3:$N$3,0)-1),2,TRUE)","v":1},{"$f":"VLOOKUP(D:D,OFFSET('B. PoF Adj Factor Scoring'!$E$5:$F$282,,MATCH(I$4,'B. PoF Adj Factor Scoring'!$E$3:$N$3,0)-1),2,TRUE)","v":1},{"$f":"VLOOKUP(E:E,OFFSET('B. PoF Adj Factor Scoring'!$E$5:$F$282,,MATCH(J$4,'B. PoF Adj Factor Scoring'!$E$3:$N$3,0)-1),2,TRUE)","v":1},{"$f":"VLOOKUP(F:F,OFFSET('B. PoF Adj Factor Scoring'!$E$5:$F$282,,MATCH(K$4,'B. PoF Adj Factor Scoring'!$E$3:$N$3,0)-1),2,TRUE)","v":1}]
[{"$f":"'A. Population Info'!A345","v":1000400113},{"$f":"'A. Population Info'!G345","v":"OIL"},{"$f":"'A. Population Info'!H345","v":3},{"$f":"'A. Population Info'!I345","v":0},{"$f":"'A. Population Info'!J345","v":0},{"$f":"'A. Population Info'!K345","v":0},{"$f":"VLOOKUP(B:B,OFFSET('B. PoF Adj Factor Scoring'!$E$5:$F$282,,MATCH(G$4,'B. PoF Adj Factor Scoring'!$E$3:$N$3,0)-1),2,TRUE)","v":1},{"$f":"VLOOKUP(C:C,OFFSET('B. PoF Adj Factor Scoring'!$E$5:$F$282,,MATCH(H$4,'B. PoF Adj Factor Scoring'!$E$3:$N$3,0)-1),2,TRUE)","v":3},{"$f":"VLOOKUP(D:D,OFFSET('B. PoF Adj Factor Scoring'!$E$5:$F$282,,MATCH(I$4,'B. PoF Adj Factor Scoring'!$E$3:$N$3,0)-1),2,TRUE)","v":1},{"$f":"VLOOKUP(E:E,OFFSET('B. PoF Adj Factor Scoring'!$E$5:$F$282,,MATCH(J$4,'B. PoF Adj Factor Scoring'!$E$3:$N$3,0)-1),2,TRUE)","v":1},{"$f":"VLOOKUP(F:F,OFFSET('B. PoF Adj Factor Scoring'!$E$5:$F$282,,MATCH(K$4,'B. PoF Adj Factor Scoring'!$E$3:$N$3,0)-1),2,TRUE)","v":1}]
[{"$f":"'A. Population Info'!A346","v":1000400141},{"$f":"'A. Population Info'!G346","v":"OIL"},{"$f":"'A. Population Info'!H346","v":1},{"$f":"'A. Population Info'!I346","v":0},{"$f":"'A. Population Info'!J346","v":0},{"$f":"'A. Population Info'!K346","v":0},{"$f":"VLOOKUP(B:B,OFFSET('B. PoF Adj Factor Scoring'!$E$5:$F$282,,MATCH(G$4,'B. PoF Adj Factor Scoring'!$E$3:$N$3,0)-1),2,TRUE)","v":1},{"$f":"VLOOKUP(C:C,OFFSET('B. PoF Adj Factor Scoring'!$E$5:$F$282,,MATCH(H$4,'B. PoF Adj Factor Scoring'!$E$3:$N$3,0)-1),2,TRUE)","v":1},{"$f":"VLOOKUP(D:D,OFFSET('B. PoF Adj Factor Scoring'!$E$5:$F$282,,MATCH(I$4,'B. PoF Adj Factor Scoring'!$E$3:$N$3,0)-1),2,TRUE)","v":1},{"$f":"VLOOKUP(E:E,OFFSET('B. PoF Adj Factor Scoring'!$E$5:$F$282,,MATCH(J$4,'B. PoF Adj Factor Scoring'!$E$3:$N$3,0)-1),2,TRUE)","v":1},{"$f":"VLOOKUP(F:F,OFFSET('B. PoF Adj Factor Scoring'!$E$5:$F$282,,MATCH(K$4,'B. PoF Adj Factor Scoring'!$E$3:$N$3,0)-1),2,TRUE)","v":1}]
[{"$f":"'A. Population Info'!A347","v":1000400168},{"$f":"'A. Population Info'!G347","v":"OIL"},{"$f":"'A. Population Info'!H347","v":1},{"$f":"'A. Population Info'!I347","v":0},{"$f":"'A. Population Info'!J347","v":0},{"$f":"'A. Population Info'!K347","v":0},{"$f":"VLOOKUP(B:B,OFFSET('B. PoF Adj Factor Scoring'!$E$5:$F$282,,MATCH(G$4,'B. PoF Adj Factor Scoring'!$E$3:$N$3,0)-1),2,TRUE)","v":1},{"$f":"VLOOKUP(C:C,OFFSET('B. PoF Adj Factor Scoring'!$E$5:$F$282,,MATCH(H$4,'B. PoF Adj Factor Scoring'!$E$3:$N$3,0)-1),2,TRUE)","v":1},{"$f":"VLOOKUP(D:D,OFFSET('B. PoF Adj Factor Scoring'!$E$5:$F$282,,MATCH(I$4,'B. PoF Adj Factor Scoring'!$E$3:$N$3,0)-1),2,TRUE)","v":1},{"$f":"VLOOKUP(E:E,OFFSET('B. PoF Adj Factor Scoring'!$E$5:$F$282,,MATCH(J$4,'B. PoF Adj Factor Scoring'!$E$3:$N$3,0)-1),2,TRUE)","v":1},{"$f":"VLOOKUP(F:F,OFFSET('B. PoF Adj Factor Scoring'!$E$5:$F$282,,MATCH(K$4,'B. PoF Adj Factor Scoring'!$E$3:$N$3,0)-1),2,TRUE)","v":1}]
[{"$f":"'A. Population Info'!A348","v":1000400193},{"$f":"'A. Population Info'!G348","v":"OIL"},{"$f":"'A. Population Info'!H348","v":1},{"$f":"'A. Population Info'!I348","v":0},{"$f":"'A. Population Info'!J348","v":0},{"$f":"'A. Population Info'!K348","v":0},{"$f":"VLOOKUP(B:B,OFFSET('B. PoF Adj Factor Scoring'!$E$5:$F$282,,MATCH(G$4,'B. PoF Adj Factor Scoring'!$E$3:$N$3,0)-1),2,TRUE)","v":1},{"$f":"VLOOKUP(C:C,OFFSET('B. PoF Adj Factor Scoring'!$E$5:$F$282,,MATCH(H$4,'B. PoF Adj Factor Scoring'!$E$3:$N$3,0)-1),2,TRUE)","v":1},{"$f":"VLOOKUP(D:D,OFFSET('B. PoF Adj Factor Scoring'!$E$5:$F$282,,MATCH(I$4,'B. PoF Adj Factor Scoring'!$E$3:$N$3,0)-1),2,TRUE)","v":1},{"$f":"VLOOKUP(E:E,OFFSET('B. PoF Adj Factor Scoring'!$E$5:$F$282,,MATCH(J$4,'B. PoF Adj Factor Scoring'!$E$3:$N$3,0)-1),2,TRUE)","v":1},{"$f":"VLOOKUP(F:F,OFFSET('B. PoF Adj Factor Scoring'!$E$5:$F$282,,MATCH(K$4,'B. PoF Adj Factor Scoring'!$E$3:$N$3,0)-1),2,TRUE)","v":1}]
[{"$f":"'A. Population Info'!A349","v":1000400222},{"$f":"'A. Population Info'!G349","v":"OIL"},{"$f":"'A. Population Info'!H349","v":1},{"$f":"'A. Population Info'!I349","v":0},{"$f":"'A. Population Info'!J349","v":0},{"$f":"'A. Population Info'!K349","v":0},{"$f":"VLOOKUP(B:B,OFFSET('B. PoF Adj Factor Scoring'!$E$5:$F$282,,MATCH(G$4,'B. PoF Adj Factor Scoring'!$E$3:$N$3,0)-1),2,TRUE)","v":1},{"$f":"VLOOKUP(C:C,OFFSET('B. PoF Adj Factor Scoring'!$E$5:$F$282,,MATCH(H$4,'B. PoF Adj Factor Scoring'!$E$3:$N$3,0)-1),2,TRUE)","v":1},{"$f":"VLOOKUP(D:D,OFFSET('B. PoF Adj Factor Scoring'!$E$5:$F$282,,MATCH(I$4,'B. PoF Adj Factor Scoring'!$E$3:$N$3,0)-1),2,TRUE)","v":1},{"$f":"VLOOKUP(E:E,OFFSET('B. PoF Adj Factor Scoring'!$E$5:$F$282,,MATCH(J$4,'B. PoF Adj Factor Scoring'!$E$3:$N$3,0)-1),2,TRUE)","v":1},{"$f":"VLOOKUP(F:F,OFFSET('B. PoF Adj Factor Scoring'!$E$5:$F$282,,MATCH(K$4,'B. PoF Adj Factor Scoring'!$E$3:$N$3,0)-1),2,TRUE)","v":1}]
[{"$f":"'A. Population Info'!A350","v":1000400253},{"$f":"'A. Population Info'!G350","v":"OIL"},{"$f":"'A. Population Info'!H350","v":1},{"$f":"'A. Population Info'!I350","v":0},{"$f":"'A. Population Info'!J350","v":0},{"$f":"'A. Population Info'!K350","v":0},{"$f":"VLOOKUP(B:B,OFFSET('B. PoF Adj Factor Scoring'!$E$5:$F$282,,MATCH(G$4,'B. PoF Adj Factor Scoring'!$E$3:$N$3,0)-1),2,TRUE)","v":1},{"$f":"VLOOKUP(C:C,OFFSET('B. PoF Adj Factor Scoring'!$E$5:$F$282,,MATCH(H$4,'B. PoF Adj Factor Scoring'!$E$3:$N$3,0)-1),2,TRUE)","v":1},{"$f":"VLOOKUP(D:D,OFFSET('B. PoF Adj Factor Scoring'!$E$5:$F$282,,MATCH(I$4,'B. PoF Adj Factor Scoring'!$E$3:$N$3,0)-1),2,TRUE)","v":1},{"$f":"VLOOKUP(E:E,OFFSET('B. PoF Adj Factor Scoring'!$E$5:$F$282,,MATCH(J$4,'B. PoF Adj Factor Scoring'!$E$3:$N$3,0)-1),2,TRUE)","v":1},{"$f":"VLOOKUP(F:F,OFFSET('B. PoF Adj Factor Scoring'!$E$5:$F$282,,MATCH(K$4,'B. PoF Adj Factor Scoring'!$E$3:$N$3,0)-1),2,TRUE)","v":1}]
[{"$f":"'A. Population Info'!A351","v":1000400282},{"$f":"'A. Population Info'!G351","v":"OIL"},{"$f":"'A. Population Info'!H351","v":1},{"$f":"'A. Population Info'!I351","v":0},{"$f":"'A. Population Info'!J351","v":0},{"$f":"'A. Population Info'!K351","v":0},{"$f":"VLOOKUP(B:B,OFFSET('B. PoF Adj Factor Scoring'!$E$5:$F$282,,MATCH(G$4,'B. PoF Adj Factor Scoring'!$E$3:$N$3,0)-1),2,TRUE)","v":1},{"$f":"VLOOKUP(C:C,OFFSET('B. PoF Adj Factor Scoring'!$E$5:$F$282,,MATCH(H$4,'B. PoF Adj Factor Scoring'!$E$3:$N$3,0)-1),2,TRUE)","v":1},{"$f":"VLOOKUP(D:D,OFFSET('B. PoF Adj Factor Scoring'!$E$5:$F$282,,MATCH(I$4,'B. PoF Adj Factor Scoring'!$E$3:$N$3,0)-1),2,TRUE)","v":1},{"$f":"VLOOKUP(E:E,OFFSET('B. PoF Adj Factor Scoring'!$E$5:$F$282,,MATCH(J$4,'B. PoF Adj Factor Scoring'!$E$3:$N$3,0)-1),2,TRUE)","v":1},{"$f":"VLOOKUP(F:F,OFFSET('B. PoF Adj Factor Scoring'!$E$5:$F$282,,MATCH(K$4,'B. PoF Adj Factor Scoring'!$E$3:$N$3,0)-1),2,TRUE)","v":1}]
[{"$f":"'A. Population Info'!A352","v":1000400309},{"$f":"'A. Population Info'!G352","v":"OIL"},{"$f":"'A. Population Info'!H352","v":1},{"$f":"'A. Population Info'!I352","v":0},{"$f":"'A. Population Info'!J352","v":0},{"$f":"'A. Population Info'!K352","v":0},{"$f":"VLOOKUP(B:B,OFFSET('B. PoF Adj Factor Scoring'!$E$5:$F$282,,MATCH(G$4,'B. PoF Adj Factor Scoring'!$E$3:$N$3,0)-1),2,TRUE)","v":1},{"$f":"VLOOKUP(C:C,OFFSET('B. PoF Adj Factor Scoring'!$E$5:$F$282,,MATCH(H$4,'B. PoF Adj Factor Scoring'!$E$3:$N$3,0)-1),2,TRUE)","v":1},{"$f":"VLOOKUP(D:D,OFFSET('B. PoF Adj Factor Scoring'!$E$5:$F$282,,MATCH(I$4,'B. PoF Adj Factor Scoring'!$E$3:$N$3,0)-1),2,TRUE)","v":1},{"$f":"VLOOKUP(E:E,OFFSET('B. PoF Adj Factor Scoring'!$E$5:$F$282,,MATCH(J$4,'B. PoF Adj Factor Scoring'!$E$3:$N$3,0)-1),2,TRUE)","v":1},{"$f":"VLOOKUP(F:F,OFFSET('B. PoF Adj Factor Scoring'!$E$5:$F$282,,MATCH(K$4,'B. PoF Adj Factor Scoring'!$E$3:$N$3,0)-1),2,TRUE)","v":1}]
[{"$f":"'A. Population Info'!A353","v":1000400338},{"$f":"'A. Population Info'!G353","v":"OIL_FR3"},{"$f":"'A. Population Info'!H353","v":1},{"$f":"'A. Population Info'!I353","v":0},{"$f":"'A. Population Info'!J353","v":0},{"$f":"'A. Population Info'!K353","v":0},{"$f":"VLOOKUP(B:B,OFFSET('B. PoF Adj Factor Scoring'!$E$5:$F$282,,MATCH(G$4,'B. PoF Adj Factor Scoring'!$E$3:$N$3,0)-1),2,TRUE)","v":1},{"$f":"VLOOKUP(C:C,OFFSET('B. PoF Adj Factor Scoring'!$E$5:$F$282,,MATCH(H$4,'B. PoF Adj Factor Scoring'!$E$3:$N$3,0)-1),2,TRUE)","v":1},{"$f":"VLOOKUP(D:D,OFFSET('B. PoF Adj Factor Scoring'!$E$5:$F$282,,MATCH(I$4,'B. PoF Adj Factor Scoring'!$E$3:$N$3,0)-1),2,TRUE)","v":1},{"$f":"VLOOKUP(E:E,OFFSET('B. PoF Adj Factor Scoring'!$E$5:$F$282,,MATCH(J$4,'B. PoF Adj Factor Scoring'!$E$3:$N$3,0)-1),2,TRUE)","v":1},{"$f":"VLOOKUP(F:F,OFFSET('B. PoF Adj Factor Scoring'!$E$5:$F$282,,MATCH(K$4,'B. PoF Adj Factor Scoring'!$E$3:$N$3,0)-1),2,TRUE)","v":1}]
[{"$f":"'A. Population Info'!A354","v":1000400470},{"$f":"'A. Population Info'!G354","v":"OIL"},{"$f":"'A. Population Info'!H354","v":3},{"$f":"'A. Population Info'!I354","v":0},{"$f":"'A. Population Info'!J354","v":0},{"$f":"'A. Population Info'!K354","v":0},{"$f":"VLOOKUP(B:B,OFFSET('B. PoF Adj Factor Scoring'!$E$5:$F$282,,MATCH(G$4,'B. PoF Adj Factor Scoring'!$E$3:$N$3,0)-1),2,TRUE)","v":1},{"$f":"VLOOKUP(C:C,OFFSET('B. PoF Adj Factor Scoring'!$E$5:$F$282,,MATCH(H$4,'B. PoF Adj Factor Scoring'!$E$3:$N$3,0)-1),2,TRUE)","v":3},{"$f":"VLOOKUP(D:D,OFFSET('B. PoF Adj Factor Scoring'!$E$5:$F$282,,MATCH(I$4,'B. PoF Adj Factor Scoring'!$E$3:$N$3,0)-1),2,TRUE)","v":1},{"$f":"VLOOKUP(E:E,OFFSET('B. PoF Adj Factor Scoring'!$E$5:$F$282,,MATCH(J$4,'B. PoF Adj Factor Scoring'!$E$3:$N$3,0)-1),2,TRUE)","v":1},{"$f":"VLOOKUP(F:F,OFFSET('B. PoF Adj Factor Scoring'!$E$5:$F$282,,MATCH(K$4,'B. PoF Adj Factor Scoring'!$E$3:$N$3,0)-1),2,TRUE)","v":1}]
[{"$f":"'A. Population Info'!A355","v":1000400498},{"$f":"'A. Population Info'!G355","v":"OIL"},{"$f":"'A. Population Info'!H355","v":1},{"$f":"'A. Population Info'!I355","v":0},{"$f":"'A. Population Info'!J355","v":0},{"$f":"'A. Population Info'!K355","v":0},{"$f":"VLOOKUP(B:B,OFFSET('B. PoF Adj Factor Scoring'!$E$5:$F$282,,MATCH(G$4,'B. PoF Adj Factor Scoring'!$E$3:$N$3,0)-1),2,TRUE)","v":1},{"$f":"VLOOKUP(C:C,OFFSET('B. PoF Adj Factor Scoring'!$E$5:$F$282,,MATCH(H$4,'B. PoF Adj Factor Scoring'!$E$3:$N$3,0)-1),2,TRUE)","v":1},{"$f":"VLOOKUP(D:D,OFFSET('B. PoF Adj Factor Scoring'!$E$5:$F$282,,MATCH(I$4,'B. PoF Adj Factor Scoring'!$E$3:$N$3,0)-1),2,TRUE)","v":1},{"$f":"VLOOKUP(E:E,OFFSET('B. PoF Adj Factor Scoring'!$E$5:$F$282,,MATCH(J$4,'B. PoF Adj Factor Scoring'!$E$3:$N$3,0)-1),2,TRUE)","v":1},{"$f":"VLOOKUP(F:F,OFFSET('B. PoF Adj Factor Scoring'!$E$5:$F$282,,MATCH(K$4,'B. PoF Adj Factor Scoring'!$E$3:$N$3,0)-1),2,TRUE)","v":1}]
[{"$f":"'A. Population Info'!A356","v":1000400520},{"$f":"'A. Population Info'!G356","v":"OIL"},{"$f":"'A. Population Info'!H356","v":1},{"$f":"'A. Population Info'!I356","v":0},{"$f":"'A. Population Info'!J356","v":0},{"$f":"'A. Population Info'!K356","v":0},{"$f":"VLOOKUP(B:B,OFFSET('B. PoF Adj Factor Scoring'!$E$5:$F$282,,MATCH(G$4,'B. PoF Adj Factor Scoring'!$E$3:$N$3,0)-1),2,TRUE)","v":1},{"$f":"VLOOKUP(C:C,OFFSET('B. PoF Adj Factor Scoring'!$E$5:$F$282,,MATCH(H$4,'B. PoF Adj Factor Scoring'!$E$3:$N$3,0)-1),2,TRUE)","v":1},{"$f":"VLOOKUP(D:D,OFFSET('B. PoF Adj Factor Scoring'!$E$5:$F$282,,MATCH(I$4,'B. PoF Adj Factor Scoring'!$E$3:$N$3,0)-1),2,TRUE)","v":1},{"$f":"VLOOKUP(E:E,OFFSET('B. PoF Adj Factor Scoring'!$E$5:$F$282,,MATCH(J$4,'B. PoF Adj Factor Scoring'!$E$3:$N$3,0)-1),2,TRUE)","v":1},{"$f":"VLOOKUP(F:F,OFFSET('B. PoF Adj Factor Scoring'!$E$5:$F$282,,MATCH(K$4,'B. PoF Adj Factor Scoring'!$E$3:$N$3,0)-1),2,TRUE)","v":1}]
[{"$f":"'A. Population Info'!A357","v":1000400548},{"$f":"'A. Population Info'!G357","v":"OIL"},{"$f":"'A. Population Info'!H357","v":3},{"$f":"'A. Population Info'!I357","v":0},{"$f":"'A. Population Info'!J357","v":0},{"$f":"'A. Population Info'!K357","v":0},{"$f":"VLOOKUP(B:B,OFFSET('B. PoF Adj Factor Scoring'!$E$5:$F$282,,MATCH(G$4,'B. PoF Adj Factor Scoring'!$E$3:$N$3,0)-1),2,TRUE)","v":1},{"$f":"VLOOKUP(C:C,OFFSET('B. PoF Adj Factor Scoring'!$E$5:$F$282,,MATCH(H$4,'B. PoF Adj Factor Scoring'!$E$3:$N$3,0)-1),2,TRUE)","v":3},{"$f":"VLOOKUP(D:D,OFFSET('B. PoF Adj Factor Scoring'!$E$5:$F$282,,MATCH(I$4,'B. PoF Adj Factor Scoring'!$E$3:$N$3,0)-1),2,TRUE)","v":1},{"$f":"VLOOKUP(E:E,OFFSET('B. PoF Adj Factor Scoring'!$E$5:$F$282,,MATCH(J$4,'B. PoF Adj Factor Scoring'!$E$3:$N$3,0)-1),2,TRUE)","v":1},{"$f":"VLOOKUP(F:F,OFFSET('B. PoF Adj Factor Scoring'!$E$5:$F$282,,MATCH(K$4,'B. PoF Adj Factor Scoring'!$E$3:$N$3,0)-1),2,TRUE)","v":1}]
[{"$f":"'A. Population Info'!A358","v":1000400598},{"$f":"'A. Population Info'!G358","v":"OIL"},{"$f":"'A. Population Info'!H358","v":3},{"$f":"'A. Population Info'!I358","v":0},{"$f":"'A. Population Info'!J358","v":0},{"$f":"'A. Population Info'!K358","v":0},{"$f":"VLOOKUP(B:B,OFFSET('B. PoF Adj Factor Scoring'!$E$5:$F$282,,MATCH(G$4,'B. PoF Adj Factor Scoring'!$E$3:$N$3,0)-1),2,TRUE)","v":1},{"$f":"VLOOKUP(C:C,OFFSET('B. PoF Adj Factor Scoring'!$E$5:$F$282,,MATCH(H$4,'B. PoF Adj Factor Scoring'!$E$3:$N$3,0)-1),2,TRUE)","v":3},{"$f":"VLOOKUP(D:D,OFFSET('B. PoF Adj Factor Scoring'!$E$5:$F$282,,MATCH(I$4,'B. PoF Adj Factor Scoring'!$E$3:$N$3,0)-1),2,TRUE)","v":1},{"$f":"VLOOKUP(E:E,OFFSET('B. PoF Adj Factor Scoring'!$E$5:$F$282,,MATCH(J$4,'B. PoF Adj Factor Scoring'!$E$3:$N$3,0)-1),2,TRUE)","v":1},{"$f":"VLOOKUP(F:F,OFFSET('B. PoF Adj Factor Scoring'!$E$5:$F$282,,MATCH(K$4,'B. PoF Adj Factor Scoring'!$E$3:$N$3,0)-1),2,TRUE)","v":1}]
[{"$f":"'A. Population Info'!A359","v":1000400719},{"$f":"'A. Population Info'!G359","v":"OIL"},{"$f":"'A. Population Info'!H359","v":2},{"$f":"'A. Population Info'!I359","v":0},{"$f":"'A. Population Info'!J359","v":0},{"$f":"'A. Population Info'!K359","v":0},{"$f":"VLOOKUP(B:B,OFFSET('B. PoF Adj Factor Scoring'!$E$5:$F$282,,MATCH(G$4,'B. PoF Adj Factor Scoring'!$E$3:$N$3,0)-1),2,TRUE)","v":1},{"$f":"VLOOKUP(C:C,OFFSET('B. PoF Adj Factor Scoring'!$E$5:$F$282,,MATCH(H$4,'B. PoF Adj Factor Scoring'!$E$3:$N$3,0)-1),2,TRUE)","v":2},{"$f":"VLOOKUP(D:D,OFFSET('B. PoF Adj Factor Scoring'!$E$5:$F$282,,MATCH(I$4,'B. PoF Adj Factor Scoring'!$E$3:$N$3,0)-1),2,TRUE)","v":1},{"$f":"VLOOKUP(E:E,OFFSET('B. PoF Adj Factor Scoring'!$E$5:$F$282,,MATCH(J$4,'B. PoF Adj Factor Scoring'!$E$3:$N$3,0)-1),2,TRUE)","v":1},{"$f":"VLOOKUP(F:F,OFFSET('B. PoF Adj Factor Scoring'!$E$5:$F$282,,MATCH(K$4,'B. PoF Adj Factor Scoring'!$E$3:$N$3,0)-1),2,TRUE)","v":1}]
[{"$f":"'A. Population Info'!A360","v":1000400757},{"$f":"'A. Population Info'!G360","v":"OIL"},{"$f":"'A. Population Info'!H360","v":3},{"$f":"'A. Population Info'!I360","v":0},{"$f":"'A. Population Info'!J360","v":0},{"$f":"'A. Population Info'!K360","v":0},{"$f":"VLOOKUP(B:B,OFFSET('B. PoF Adj Factor Scoring'!$E$5:$F$282,,MATCH(G$4,'B. PoF Adj Factor Scoring'!$E$3:$N$3,0)-1),2,TRUE)","v":1},{"$f":"VLOOKUP(C:C,OFFSET('B. PoF Adj Factor Scoring'!$E$5:$F$282,,MATCH(H$4,'B. PoF Adj Factor Scoring'!$E$3:$N$3,0)-1),2,TRUE)","v":3},{"$f":"VLOOKUP(D:D,OFFSET('B. PoF Adj Factor Scoring'!$E$5:$F$282,,MATCH(I$4,'B. PoF Adj Factor Scoring'!$E$3:$N$3,0)-1),2,TRUE)","v":1},{"$f":"VLOOKUP(E:E,OFFSET('B. PoF Adj Factor Scoring'!$E$5:$F$282,,MATCH(J$4,'B. PoF Adj Factor Scoring'!$E$3:$N$3,0)-1),2,TRUE)","v":1},{"$f":"VLOOKUP(F:F,OFFSET('B. PoF Adj Factor Scoring'!$E$5:$F$282,,MATCH(K$4,'B. PoF Adj Factor Scoring'!$E$3:$N$3,0)-1),2,TRUE)","v":1}]
[{"$f":"'A. Population Info'!A361","v":1000400775},{"$f":"'A. Population Info'!G361","v":"OIL"},{"$f":"'A. Population Info'!H361","v":2},{"$f":"'A. Population Info'!I361","v":0},{"$f":"'A. Population Info'!J361","v":0},{"$f":"'A. Population Info'!K361","v":0},{"$f":"VLOOKUP(B:B,OFFSET('B. PoF Adj Factor Scoring'!$E$5:$F$282,,MATCH(G$4,'B. PoF Adj Factor Scoring'!$E$3:$N$3,0)-1),2,TRUE)","v":1},{"$f":"VLOOKUP(C:C,OFFSET('B. PoF Adj Factor Scoring'!$E$5:$F$282,,MATCH(H$4,'B. PoF Adj Factor Scoring'!$E$3:$N$3,0)-1),2,TRUE)","v":2},{"$f":"VLOOKUP(D:D,OFFSET('B. PoF Adj Factor Scoring'!$E$5:$F$282,,MATCH(I$4,'B. PoF Adj Factor Scoring'!$E$3:$N$3,0)-1),2,TRUE)","v":1},{"$f":"VLOOKUP(E:E,OFFSET('B. PoF Adj Factor Scoring'!$E$5:$F$282,,MATCH(J$4,'B. PoF Adj Factor Scoring'!$E$3:$N$3,0)-1),2,TRUE)","v":1},{"$f":"VLOOKUP(F:F,OFFSET('B. PoF Adj Factor Scoring'!$E$5:$F$282,,MATCH(K$4,'B. PoF Adj Factor Scoring'!$E$3:$N$3,0)-1),2,TRUE)","v":1}]
[{"$f":"'A. Population Info'!A362","v":1000400898},{"$f":"'A. Population Info'!G362","v":"OIL"},{"$f":"'A. Population Info'!H362","v":5},{"$f":"'A. Population Info'!I362","v":0},{"$f":"'A. Population Info'!J362","v":0},{"$f":"'A. Population Info'!K362","v":0},{"$f":"VLOOKUP(B:B,OFFSET('B. PoF Adj Factor Scoring'!$E$5:$F$282,,MATCH(G$4,'B. PoF Adj Factor Scoring'!$E$3:$N$3,0)-1),2,TRUE)","v":1},{"$f":"VLOOKUP(C:C,OFFSET('B. PoF Adj Factor Scoring'!$E$5:$F$282,,MATCH(H$4,'B. PoF Adj Factor Scoring'!$E$3:$N$3,0)-1),2,TRUE)","v":5},{"$f":"VLOOKUP(D:D,OFFSET('B. PoF Adj Factor Scoring'!$E$5:$F$282,,MATCH(I$4,'B. PoF Adj Factor Scoring'!$E$3:$N$3,0)-1),2,TRUE)","v":1},{"$f":"VLOOKUP(E:E,OFFSET('B. PoF Adj Factor Scoring'!$E$5:$F$282,,MATCH(J$4,'B. PoF Adj Factor Scoring'!$E$3:$N$3,0)-1),2,TRUE)","v":1},{"$f":"VLOOKUP(F:F,OFFSET('B. PoF Adj Factor Scoring'!$E$5:$F$282,,MATCH(K$4,'B. PoF Adj Factor Scoring'!$E$3:$N$3,0)-1),2,TRUE)","v":1}]
[{"$f":"'A. Population Info'!A363","v":1000400926},{"$f":"'A. Population Info'!G363","v":"OIL"},{"$f":"'A. Population Info'!H363","v":1},{"$f":"'A. Population Info'!I363","v":2800},{"$f":"'A. Population Info'!J363","v":0},{"$f":"'A. Population Info'!K363","v":0},{"$f":"VLOOKUP(B:B,OFFSET('B. PoF Adj Factor Scoring'!$E$5:$F$282,,MATCH(G$4,'B. PoF Adj Factor Scoring'!$E$3:$N$3,0)-1),2,TRUE)","v":1},{"$f":"VLOOKUP(C:C,OFFSET('B. PoF Adj Factor Scoring'!$E$5:$F$282,,MATCH(H$4,'B. PoF Adj Factor Scoring'!$E$3:$N$3,0)-1),2,TRUE)","v":1},{"$f":"VLOOKUP(D:D,OFFSET('B. PoF Adj Factor Scoring'!$E$5:$F$282,,MATCH(I$4,'B. PoF Adj Factor Scoring'!$E$3:$N$3,0)-1),2,TRUE)","v":2},{"$f":"VLOOKUP(E:E,OFFSET('B. PoF Adj Factor Scoring'!$E$5:$F$282,,MATCH(J$4,'B. PoF Adj Factor Scoring'!$E$3:$N$3,0)-1),2,TRUE)","v":1},{"$f":"VLOOKUP(F:F,OFFSET('B. PoF Adj Factor Scoring'!$E$5:$F$282,,MATCH(K$4,'B. PoF Adj Factor Scoring'!$E$3:$N$3,0)-1),2,TRUE)","v":1}]
[{"$f":"'A. Population Info'!A364","v":1000400951},{"$f":"'A. Population Info'!G364","v":"OIL"},{"$f":"'A. Population Info'!H364","v":1},{"$f":"'A. Population Info'!I364","v":0},{"$f":"'A. Population Info'!J364","v":0},{"$f":"'A. Population Info'!K364","v":0},{"$f":"VLOOKUP(B:B,OFFSET('B. PoF Adj Factor Scoring'!$E$5:$F$282,,MATCH(G$4,'B. PoF Adj Factor Scoring'!$E$3:$N$3,0)-1),2,TRUE)","v":1},{"$f":"VLOOKUP(C:C,OFFSET('B. PoF Adj Factor Scoring'!$E$5:$F$282,,MATCH(H$4,'B. PoF Adj Factor Scoring'!$E$3:$N$3,0)-1),2,TRUE)","v":1},{"$f":"VLOOKUP(D:D,OFFSET('B. PoF Adj Factor Scoring'!$E$5:$F$282,,MATCH(I$4,'B. PoF Adj Factor Scoring'!$E$3:$N$3,0)-1),2,TRUE)","v":1},{"$f":"VLOOKUP(E:E,OFFSET('B. PoF Adj Factor Scoring'!$E$5:$F$282,,MATCH(J$4,'B. PoF Adj Factor Scoring'!$E$3:$N$3,0)-1),2,TRUE)","v":1},{"$f":"VLOOKUP(F:F,OFFSET('B. PoF Adj Factor Scoring'!$E$5:$F$282,,MATCH(K$4,'B. PoF Adj Factor Scoring'!$E$3:$N$3,0)-1),2,TRUE)","v":1}]
[{"$f":"'A. Population Info'!A365","v":1000400977},{"$f":"'A. Population Info'!G365","v":"OIL"},{"$f":"'A. Population Info'!H365","v":1},{"$f":"'A. Population Info'!I365","v":0},{"$f":"'A. Population Info'!J365","v":0},{"$f":"'A. Population Info'!K365","v":0},{"$f":"VLOOKUP(B:B,OFFSET('B. PoF Adj Factor Scoring'!$E$5:$F$282,,MATCH(G$4,'B. PoF Adj Factor Scoring'!$E$3:$N$3,0)-1),2,TRUE)","v":1},{"$f":"VLOOKUP(C:C,OFFSET('B. PoF Adj Factor Scoring'!$E$5:$F$282,,MATCH(H$4,'B. PoF Adj Factor Scoring'!$E$3:$N$3,0)-1),2,TRUE)","v":1},{"$f":"VLOOKUP(D:D,OFFSET('B. PoF Adj Factor Scoring'!$E$5:$F$282,,MATCH(I$4,'B. PoF Adj Factor Scoring'!$E$3:$N$3,0)-1),2,TRUE)","v":1},{"$f":"VLOOKUP(E:E,OFFSET('B. PoF Adj Factor Scoring'!$E$5:$F$282,,MATCH(J$4,'B. PoF Adj Factor Scoring'!$E$3:$N$3,0)-1),2,TRUE)","v":1},{"$f":"VLOOKUP(F:F,OFFSET('B. PoF Adj Factor Scoring'!$E$5:$F$282,,MATCH(K$4,'B. PoF Adj Factor Scoring'!$E$3:$N$3,0)-1),2,TRUE)","v":1}]
[{"$f":"'A. Population Info'!A366","v":1000404003},{"$f":"'A. Population Info'!G366","v":"OIL"},{"$f":"'A. Population Info'!H366","v":1},{"$f":"'A. Population Info'!I366","v":0},{"$f":"'A. Population Info'!J366","v":0},{"$f":"'A. Population Info'!K366","v":0},{"$f":"VLOOKUP(B:B,OFFSET('B. PoF Adj Factor Scoring'!$E$5:$F$282,,MATCH(G$4,'B. PoF Adj Factor Scoring'!$E$3:$N$3,0)-1),2,TRUE)","v":1},{"$f":"VLOOKUP(C:C,OFFSET('B. PoF Adj Factor Scoring'!$E$5:$F$282,,MATCH(H$4,'B. PoF Adj Factor Scoring'!$E$3:$N$3,0)-1),2,TRUE)","v":1},{"$f":"VLOOKUP(D:D,OFFSET('B. PoF Adj Factor Scoring'!$E$5:$F$282,,MATCH(I$4,'B. PoF Adj Factor Scoring'!$E$3:$N$3,0)-1),2,TRUE)","v":1},{"$f":"VLOOKUP(E:E,OFFSET('B. PoF Adj Factor Scoring'!$E$5:$F$282,,MATCH(J$4,'B. PoF Adj Factor Scoring'!$E$3:$N$3,0)-1),2,TRUE)","v":1},{"$f":"VLOOKUP(F:F,OFFSET('B. PoF Adj Factor Scoring'!$E$5:$F$282,,MATCH(K$4,'B. PoF Adj Factor Scoring'!$E$3:$N$3,0)-1),2,TRUE)","v":1}]
[{"$f":"'A. Population Info'!A367","v":1000404028},{"$f":"'A. Population Info'!G367","v":"OIL"},{"$f":"'A. Population Info'!H367","v":1},{"$f":"'A. Population Info'!I367","v":0},{"$f":"'A. Population Info'!J367","v":0},{"$f":"'A. Population Info'!K367","v":0},{"$f":"VLOOKUP(B:B,OFFSET('B. PoF Adj Factor Scoring'!$E$5:$F$282,,MATCH(G$4,'B. PoF Adj Factor Scoring'!$E$3:$N$3,0)-1),2,TRUE)","v":1},{"$f":"VLOOKUP(C:C,OFFSET('B. PoF Adj Factor Scoring'!$E$5:$F$282,,MATCH(H$4,'B. PoF Adj Factor Scoring'!$E$3:$N$3,0)-1),2,TRUE)","v":1},{"$f":"VLOOKUP(D:D,OFFSET('B. PoF Adj Factor Scoring'!$E$5:$F$282,,MATCH(I$4,'B. PoF Adj Factor Scoring'!$E$3:$N$3,0)-1),2,TRUE)","v":1},{"$f":"VLOOKUP(E:E,OFFSET('B. PoF Adj Factor Scoring'!$E$5:$F$282,,MATCH(J$4,'B. PoF Adj Factor Scoring'!$E$3:$N$3,0)-1),2,TRUE)","v":1},{"$f":"VLOOKUP(F:F,OFFSET('B. PoF Adj Factor Scoring'!$E$5:$F$282,,MATCH(K$4,'B. PoF Adj Factor Scoring'!$E$3:$N$3,0)-1),2,TRUE)","v":1}]
[{"$f":"'A. Population Info'!A368","v":1000404055},{"$f":"'A. Population Info'!G368","v":"OIL"},{"$f":"'A. Population Info'!H368","v":1},{"$f":"'A. Population Info'!I368","v":0},{"$f":"'A. Population Info'!J368","v":0},{"$f":"'A. Population Info'!K368","v":0},{"$f":"VLOOKUP(B:B,OFFSET('B. PoF Adj Factor Scoring'!$E$5:$F$282,,MATCH(G$4,'B. PoF Adj Factor Scoring'!$E$3:$N$3,0)-1),2,TRUE)","v":1},{"$f":"VLOOKUP(C:C,OFFSET('B. PoF Adj Factor Scoring'!$E$5:$F$282,,MATCH(H$4,'B. PoF Adj Factor Scoring'!$E$3:$N$3,0)-1),2,TRUE)","v":1},{"$f":"VLOOKUP(D:D,OFFSET('B. PoF Adj Factor Scoring'!$E$5:$F$282,,MATCH(I$4,'B. PoF Adj Factor Scoring'!$E$3:$N$3,0)-1),2,TRUE)","v":1},{"$f":"VLOOKUP(E:E,OFFSET('B. PoF Adj Factor Scoring'!$E$5:$F$282,,MATCH(J$4,'B. PoF Adj Factor Scoring'!$E$3:$N$3,0)-1),2,TRUE)","v":1},{"$f":"VLOOKUP(F:F,OFFSET('B. PoF Adj Factor Scoring'!$E$5:$F$282,,MATCH(K$4,'B. PoF Adj Factor Scoring'!$E$3:$N$3,0)-1),2,TRUE)","v":1}]
[{"$f":"'A. Population Info'!A369","v":1000404080},{"$f":"'A. Population Info'!G369","v":"OIL"},{"$f":"'A. Population Info'!H369","v":1},{"$f":"'A. Population Info'!I369","v":0},{"$f":"'A. Population Info'!J369","v":0},{"$f":"'A. Population Info'!K369","v":0},{"$f":"VLOOKUP(B:B,OFFSET('B. PoF Adj Factor Scoring'!$E$5:$F$282,,MATCH(G$4,'B. PoF Adj Factor Scoring'!$E$3:$N$3,0)-1),2,TRUE)","v":1},{"$f":"VLOOKUP(C:C,OFFSET('B. PoF Adj Factor Scoring'!$E$5:$F$282,,MATCH(H$4,'B. PoF Adj Factor Scoring'!$E$3:$N$3,0)-1),2,TRUE)","v":1},{"$f":"VLOOKUP(D:D,OFFSET('B. PoF Adj Factor Scoring'!$E$5:$F$282,,MATCH(I$4,'B. PoF Adj Factor Scoring'!$E$3:$N$3,0)-1),2,TRUE)","v":1},{"$f":"VLOOKUP(E:E,OFFSET('B. PoF Adj Factor Scoring'!$E$5:$F$282,,MATCH(J$4,'B. PoF Adj Factor Scoring'!$E$3:$N$3,0)-1),2,TRUE)","v":1},{"$f":"VLOOKUP(F:F,OFFSET('B. PoF Adj Factor Scoring'!$E$5:$F$282,,MATCH(K$4,'B. PoF Adj Factor Scoring'!$E$3:$N$3,0)-1),2,TRUE)","v":1}]
[{"$f":"'A. Population Info'!A370","v":1000404108},{"$f":"'A. Population Info'!G370","v":"OIL"},{"$f":"'A. Population Info'!H370","v":1},{"$f":"'A. Population Info'!I370","v":0},{"$f":"'A. Population Info'!J370","v":0},{"$f":"'A. Population Info'!K370","v":0},{"$f":"VLOOKUP(B:B,OFFSET('B. PoF Adj Factor Scoring'!$E$5:$F$282,,MATCH(G$4,'B. PoF Adj Factor Scoring'!$E$3:$N$3,0)-1),2,TRUE)","v":1},{"$f":"VLOOKUP(C:C,OFFSET('B. PoF Adj Factor Scoring'!$E$5:$F$282,,MATCH(H$4,'B. PoF Adj Factor Scoring'!$E$3:$N$3,0)-1),2,TRUE)","v":1},{"$f":"VLOOKUP(D:D,OFFSET('B. PoF Adj Factor Scoring'!$E$5:$F$282,,MATCH(I$4,'B. PoF Adj Factor Scoring'!$E$3:$N$3,0)-1),2,TRUE)","v":1},{"$f":"VLOOKUP(E:E,OFFSET('B. PoF Adj Factor Scoring'!$E$5:$F$282,,MATCH(J$4,'B. PoF Adj Factor Scoring'!$E$3:$N$3,0)-1),2,TRUE)","v":1},{"$f":"VLOOKUP(F:F,OFFSET('B. PoF Adj Factor Scoring'!$E$5:$F$282,,MATCH(K$4,'B. PoF Adj Factor Scoring'!$E$3:$N$3,0)-1),2,TRUE)","v":1}]
[{"$f":"'A. Population Info'!A371","v":1000404159},{"$f":"'A. Population Info'!G371","v":"OIL"},{"$f":"'A. Population Info'!H371","v":1},{"$f":"'A. Population Info'!I371","v":0},{"$f":"'A. Population Info'!J371","v":0},{"$f":"'A. Population Info'!K371","v":0},{"$f":"VLOOKUP(B:B,OFFSET('B. PoF Adj Factor Scoring'!$E$5:$F$282,,MATCH(G$4,'B. PoF Adj Factor Scoring'!$E$3:$N$3,0)-1),2,TRUE)","v":1},{"$f":"VLOOKUP(C:C,OFFSET('B. PoF Adj Factor Scoring'!$E$5:$F$282,,MATCH(H$4,'B. PoF Adj Factor Scoring'!$E$3:$N$3,0)-1),2,TRUE)","v":1},{"$f":"VLOOKUP(D:D,OFFSET('B. PoF Adj Factor Scoring'!$E$5:$F$282,,MATCH(I$4,'B. PoF Adj Factor Scoring'!$E$3:$N$3,0)-1),2,TRUE)","v":1},{"$f":"VLOOKUP(E:E,OFFSET('B. PoF Adj Factor Scoring'!$E$5:$F$282,,MATCH(J$4,'B. PoF Adj Factor Scoring'!$E$3:$N$3,0)-1),2,TRUE)","v":1},{"$f":"VLOOKUP(F:F,OFFSET('B. PoF Adj Factor Scoring'!$E$5:$F$282,,MATCH(K$4,'B. PoF Adj Factor Scoring'!$E$3:$N$3,0)-1),2,TRUE)","v":1}]
[{"$f":"'A. Population Info'!A372","v":1000404179},{"$f":"'A. Population Info'!G372","v":"OIL"},{"$f":"'A. Population Info'!H372","v":1},{"$f":"'A. Population Info'!I372","v":0},{"$f":"'A. Population Info'!J372","v":0},{"$f":"'A. Population Info'!K372","v":0},{"$f":"VLOOKUP(B:B,OFFSET('B. PoF Adj Factor Scoring'!$E$5:$F$282,,MATCH(G$4,'B. PoF Adj Factor Scoring'!$E$3:$N$3,0)-1),2,TRUE)","v":1},{"$f":"VLOOKUP(C:C,OFFSET('B. PoF Adj Factor Scoring'!$E$5:$F$282,,MATCH(H$4,'B. PoF Adj Factor Scoring'!$E$3:$N$3,0)-1),2,TRUE)","v":1},{"$f":"VLOOKUP(D:D,OFFSET('B. PoF Adj Factor Scoring'!$E$5:$F$282,,MATCH(I$4,'B. PoF Adj Factor Scoring'!$E$3:$N$3,0)-1),2,TRUE)","v":1},{"$f":"VLOOKUP(E:E,OFFSET('B. PoF Adj Factor Scoring'!$E$5:$F$282,,MATCH(J$4,'B. PoF Adj Factor Scoring'!$E$3:$N$3,0)-1),2,TRUE)","v":1},{"$f":"VLOOKUP(F:F,OFFSET('B. PoF Adj Factor Scoring'!$E$5:$F$282,,MATCH(K$4,'B. PoF Adj Factor Scoring'!$E$3:$N$3,0)-1),2,TRUE)","v":1}]
[{"$f":"'A. Population Info'!A373","v":1000404301},{"$f":"'A. Population Info'!G373","v":"OIL"},{"$f":"'A. Population Info'!H373","v":1},{"$f":"'A. Population Info'!I373","v":0},{"$f":"'A. Population Info'!J373","v":0},{"$f":"'A. Population Info'!K373","v":0},{"$f":"VLOOKUP(B:B,OFFSET('B. PoF Adj Factor Scoring'!$E$5:$F$282,,MATCH(G$4,'B. PoF Adj Factor Scoring'!$E$3:$N$3,0)-1),2,TRUE)","v":1},{"$f":"VLOOKUP(C:C,OFFSET('B. PoF Adj Factor Scoring'!$E$5:$F$282,,MATCH(H$4,'B. PoF Adj Factor Scoring'!$E$3:$N$3,0)-1),2,TRUE)","v":1},{"$f":"VLOOKUP(D:D,OFFSET('B. PoF Adj Factor Scoring'!$E$5:$F$282,,MATCH(I$4,'B. PoF Adj Factor Scoring'!$E$3:$N$3,0)-1),2,TRUE)","v":1},{"$f":"VLOOKUP(E:E,OFFSET('B. PoF Adj Factor Scoring'!$E$5:$F$282,,MATCH(J$4,'B. PoF Adj Factor Scoring'!$E$3:$N$3,0)-1),2,TRUE)","v":1},{"$f":"VLOOKUP(F:F,OFFSET('B. PoF Adj Factor Scoring'!$E$5:$F$282,,MATCH(K$4,'B. PoF Adj Factor Scoring'!$E$3:$N$3,0)-1),2,TRUE)","v":1}]
[{"$f":"'A. Population Info'!A374","v":1000404323},{"$f":"'A. Population Info'!G374","v":"OIL"},{"$f":"'A. Population Info'!H374","v":1},{"$f":"'A. Population Info'!I374","v":0},{"$f":"'A. Population Info'!J374","v":0},{"$f":"'A. Population Info'!K374","v":0},{"$f":"VLOOKUP(B:B,OFFSET('B. PoF Adj Factor Scoring'!$E$5:$F$282,,MATCH(G$4,'B. PoF Adj Factor Scoring'!$E$3:$N$3,0)-1),2,TRUE)","v":1},{"$f":"VLOOKUP(C:C,OFFSET('B. PoF Adj Factor Scoring'!$E$5:$F$282,,MATCH(H$4,'B. PoF Adj Factor Scoring'!$E$3:$N$3,0)-1),2,TRUE)","v":1},{"$f":"VLOOKUP(D:D,OFFSET('B. PoF Adj Factor Scoring'!$E$5:$F$282,,MATCH(I$4,'B. PoF Adj Factor Scoring'!$E$3:$N$3,0)-1),2,TRUE)","v":1},{"$f":"VLOOKUP(E:E,OFFSET('B. PoF Adj Factor Scoring'!$E$5:$F$282,,MATCH(J$4,'B. PoF Adj Factor Scoring'!$E$3:$N$3,0)-1),2,TRUE)","v":1},{"$f":"VLOOKUP(F:F,OFFSET('B. PoF Adj Factor Scoring'!$E$5:$F$282,,MATCH(K$4,'B. PoF Adj Factor Scoring'!$E$3:$N$3,0)-1),2,TRUE)","v":1}]
[{"$f":"'A. Population Info'!A375","v":1000404408},{"$f":"'A. Population Info'!G375","v":"OIL"},{"$f":"'A. Population Info'!H375","v":3},{"$f":"'A. Population Info'!I375","v":0},{"$f":"'A. Population Info'!J375","v":0},{"$f":"'A. Population Info'!K375","v":0},{"$f":"VLOOKUP(B:B,OFFSET('B. PoF Adj Factor Scoring'!$E$5:$F$282,,MATCH(G$4,'B. PoF Adj Factor Scoring'!$E$3:$N$3,0)-1),2,TRUE)","v":1},{"$f":"VLOOKUP(C:C,OFFSET('B. PoF Adj Factor Scoring'!$E$5:$F$282,,MATCH(H$4,'B. PoF Adj Factor Scoring'!$E$3:$N$3,0)-1),2,TRUE)","v":3},{"$f":"VLOOKUP(D:D,OFFSET('B. PoF Adj Factor Scoring'!$E$5:$F$282,,MATCH(I$4,'B. PoF Adj Factor Scoring'!$E$3:$N$3,0)-1),2,TRUE)","v":1},{"$f":"VLOOKUP(E:E,OFFSET('B. PoF Adj Factor Scoring'!$E$5:$F$282,,MATCH(J$4,'B. PoF Adj Factor Scoring'!$E$3:$N$3,0)-1),2,TRUE)","v":1},{"$f":"VLOOKUP(F:F,OFFSET('B. PoF Adj Factor Scoring'!$E$5:$F$282,,MATCH(K$4,'B. PoF Adj Factor Scoring'!$E$3:$N$3,0)-1),2,TRUE)","v":1}]
[{"$f":"'A. Population Info'!A376","v":1000404433},{"$f":"'A. Population Info'!G376","v":"OIL"},{"$f":"'A. Population Info'!H376","v":1},{"$f":"'A. Population Info'!I376","v":0},{"$f":"'A. Population Info'!J376","v":0},{"$f":"'A. Population Info'!K376","v":0},{"$f":"VLOOKUP(B:B,OFFSET('B. PoF Adj Factor Scoring'!$E$5:$F$282,,MATCH(G$4,'B. PoF Adj Factor Scoring'!$E$3:$N$3,0)-1),2,TRUE)","v":1},{"$f":"VLOOKUP(C:C,OFFSET('B. PoF Adj Factor Scoring'!$E$5:$F$282,,MATCH(H$4,'B. PoF Adj Factor Scoring'!$E$3:$N$3,0)-1),2,TRUE)","v":1},{"$f":"VLOOKUP(D:D,OFFSET('B. PoF Adj Factor Scoring'!$E$5:$F$282,,MATCH(I$4,'B. PoF Adj Factor Scoring'!$E$3:$N$3,0)-1),2,TRUE)","v":1},{"$f":"VLOOKUP(E:E,OFFSET('B. PoF Adj Factor Scoring'!$E$5:$F$282,,MATCH(J$4,'B. PoF Adj Factor Scoring'!$E$3:$N$3,0)-1),2,TRUE)","v":1},{"$f":"VLOOKUP(F:F,OFFSET('B. PoF Adj Factor Scoring'!$E$5:$F$282,,MATCH(K$4,'B. PoF Adj Factor Scoring'!$E$3:$N$3,0)-1),2,TRUE)","v":1}]
[{"$f":"'A. Population Info'!A377","v":1000404524},{"$f":"'A. Population Info'!G377","v":"OIL"},{"$f":"'A. Population Info'!H377","v":1},{"$f":"'A. Population Info'!I377","v":0},{"$f":"'A. Population Info'!J377","v":0},{"$f":"'A. Population Info'!K377","v":0},{"$f":"VLOOKUP(B:B,OFFSET('B. PoF Adj Factor Scoring'!$E$5:$F$282,,MATCH(G$4,'B. PoF Adj Factor Scoring'!$E$3:$N$3,0)-1),2,TRUE)","v":1},{"$f":"VLOOKUP(C:C,OFFSET('B. PoF Adj Factor Scoring'!$E$5:$F$282,,MATCH(H$4,'B. PoF Adj Factor Scoring'!$E$3:$N$3,0)-1),2,TRUE)","v":1},{"$f":"VLOOKUP(D:D,OFFSET('B. PoF Adj Factor Scoring'!$E$5:$F$282,,MATCH(I$4,'B. PoF Adj Factor Scoring'!$E$3:$N$3,0)-1),2,TRUE)","v":1},{"$f":"VLOOKUP(E:E,OFFSET('B. PoF Adj Factor Scoring'!$E$5:$F$282,,MATCH(J$4,'B. PoF Adj Factor Scoring'!$E$3:$N$3,0)-1),2,TRUE)","v":1},{"$f":"VLOOKUP(F:F,OFFSET('B. PoF Adj Factor Scoring'!$E$5:$F$282,,MATCH(K$4,'B. PoF Adj Factor Scoring'!$E$3:$N$3,0)-1),2,TRUE)","v":1}]
[{"$f":"'A. Population Info'!A378","v":1000404605},{"$f":"'A. Population Info'!G378","v":"OIL"},{"$f":"'A. Population Info'!H378","v":1},{"$f":"'A. Population Info'!I378","v":0},{"$f":"'A. Population Info'!J378","v":0},{"$f":"'A. Population Info'!K378","v":0},{"$f":"VLOOKUP(B:B,OFFSET('B. PoF Adj Factor Scoring'!$E$5:$F$282,,MATCH(G$4,'B. PoF Adj Factor Scoring'!$E$3:$N$3,0)-1),2,TRUE)","v":1},{"$f":"VLOOKUP(C:C,OFFSET('B. PoF Adj Factor Scoring'!$E$5:$F$282,,MATCH(H$4,'B. PoF Adj Factor Scoring'!$E$3:$N$3,0)-1),2,TRUE)","v":1},{"$f":"VLOOKUP(D:D,OFFSET('B. PoF Adj Factor Scoring'!$E$5:$F$282,,MATCH(I$4,'B. PoF Adj Factor Scoring'!$E$3:$N$3,0)-1),2,TRUE)","v":1},{"$f":"VLOOKUP(E:E,OFFSET('B. PoF Adj Factor Scoring'!$E$5:$F$282,,MATCH(J$4,'B. PoF Adj Factor Scoring'!$E$3:$N$3,0)-1),2,TRUE)","v":1},{"$f":"VLOOKUP(F:F,OFFSET('B. PoF Adj Factor Scoring'!$E$5:$F$282,,MATCH(K$4,'B. PoF Adj Factor Scoring'!$E$3:$N$3,0)-1),2,TRUE)","v":1}]
[{"$f":"'A. Population Info'!A379","v":1000404625},{"$f":"'A. Population Info'!G379","v":"OIL"},{"$f":"'A. Population Info'!H379","v":1},{"$f":"'A. Population Info'!I379","v":0},{"$f":"'A. Population Info'!J379","v":0},{"$f":"'A. Population Info'!K379","v":0},{"$f":"VLOOKUP(B:B,OFFSET('B. PoF Adj Factor Scoring'!$E$5:$F$282,,MATCH(G$4,'B. PoF Adj Factor Scoring'!$E$3:$N$3,0)-1),2,TRUE)","v":1},{"$f":"VLOOKUP(C:C,OFFSET('B. PoF Adj Factor Scoring'!$E$5:$F$282,,MATCH(H$4,'B. PoF Adj Factor Scoring'!$E$3:$N$3,0)-1),2,TRUE)","v":1},{"$f":"VLOOKUP(D:D,OFFSET('B. PoF Adj Factor Scoring'!$E$5:$F$282,,MATCH(I$4,'B. PoF Adj Factor Scoring'!$E$3:$N$3,0)-1),2,TRUE)","v":1},{"$f":"VLOOKUP(E:E,OFFSET('B. PoF Adj Factor Scoring'!$E$5:$F$282,,MATCH(J$4,'B. PoF Adj Factor Scoring'!$E$3:$N$3,0)-1),2,TRUE)","v":1},{"$f":"VLOOKUP(F:F,OFFSET('B. PoF Adj Factor Scoring'!$E$5:$F$282,,MATCH(K$4,'B. PoF Adj Factor Scoring'!$E$3:$N$3,0)-1),2,TRUE)","v":1}]
[{"$f":"'A. Population Info'!A380","v":1000404725},{"$f":"'A. Population Info'!G380","v":"OIL"},{"$f":"'A. Population Info'!H380","v":2},{"$f":"'A. Population Info'!I380","v":0},{"$f":"'A. Population Info'!J380","v":0},{"$f":"'A. Population Info'!K380","v":0},{"$f":"VLOOKUP(B:B,OFFSET('B. PoF Adj Factor Scoring'!$E$5:$F$282,,MATCH(G$4,'B. PoF Adj Factor Scoring'!$E$3:$N$3,0)-1),2,TRUE)","v":1},{"$f":"VLOOKUP(C:C,OFFSET('B. PoF Adj Factor Scoring'!$E$5:$F$282,,MATCH(H$4,'B. PoF Adj Factor Scoring'!$E$3:$N$3,0)-1),2,TRUE)","v":2},{"$f":"VLOOKUP(D:D,OFFSET('B. PoF Adj Factor Scoring'!$E$5:$F$282,,MATCH(I$4,'B. PoF Adj Factor Scoring'!$E$3:$N$3,0)-1),2,TRUE)","v":1},{"$f":"VLOOKUP(E:E,OFFSET('B. PoF Adj Factor Scoring'!$E$5:$F$282,,MATCH(J$4,'B. PoF Adj Factor Scoring'!$E$3:$N$3,0)-1),2,TRUE)","v":1},{"$f":"VLOOKUP(F:F,OFFSET('B. PoF Adj Factor Scoring'!$E$5:$F$282,,MATCH(K$4,'B. PoF Adj Factor Scoring'!$E$3:$N$3,0)-1),2,TRUE)","v":1}]
[{"$f":"'A. Population Info'!A381","v":1000404743},{"$f":"'A. Population Info'!G381","v":"OIL"},{"$f":"'A. Population Info'!H381","v":4},{"$f":"'A. Population Info'!I381","v":0},{"$f":"'A. Population Info'!J381","v":0},{"$f":"'A. Population Info'!K381","v":0},{"$f":"VLOOKUP(B:B,OFFSET('B. PoF Adj Factor Scoring'!$E$5:$F$282,,MATCH(G$4,'B. PoF Adj Factor Scoring'!$E$3:$N$3,0)-1),2,TRUE)","v":1},{"$f":"VLOOKUP(C:C,OFFSET('B. PoF Adj Factor Scoring'!$E$5:$F$282,,MATCH(H$4,'B. PoF Adj Factor Scoring'!$E$3:$N$3,0)-1),2,TRUE)","v":4},{"$f":"VLOOKUP(D:D,OFFSET('B. PoF Adj Factor Scoring'!$E$5:$F$282,,MATCH(I$4,'B. PoF Adj Factor Scoring'!$E$3:$N$3,0)-1),2,TRUE)","v":1},{"$f":"VLOOKUP(E:E,OFFSET('B. PoF Adj Factor Scoring'!$E$5:$F$282,,MATCH(J$4,'B. PoF Adj Factor Scoring'!$E$3:$N$3,0)-1),2,TRUE)","v":1},{"$f":"VLOOKUP(F:F,OFFSET('B. PoF Adj Factor Scoring'!$E$5:$F$282,,MATCH(K$4,'B. PoF Adj Factor Scoring'!$E$3:$N$3,0)-1),2,TRUE)","v":1}]
[{"$f":"'A. Population Info'!A382","v":1000404873},{"$f":"'A. Population Info'!G382","v":"OIL"},{"$f":"'A. Population Info'!H382","v":2},{"$f":"'A. Population Info'!I382","v":0},{"$f":"'A. Population Info'!J382","v":0},{"$f":"'A. Population Info'!K382","v":0},{"$f":"VLOOKUP(B:B,OFFSET('B. PoF Adj Factor Scoring'!$E$5:$F$282,,MATCH(G$4,'B. PoF Adj Factor Scoring'!$E$3:$N$3,0)-1),2,TRUE)","v":1},{"$f":"VLOOKUP(C:C,OFFSET('B. PoF Adj Factor Scoring'!$E$5:$F$282,,MATCH(H$4,'B. PoF Adj Factor Scoring'!$E$3:$N$3,0)-1),2,TRUE)","v":2},{"$f":"VLOOKUP(D:D,OFFSET('B. PoF Adj Factor Scoring'!$E$5:$F$282,,MATCH(I$4,'B. PoF Adj Factor Scoring'!$E$3:$N$3,0)-1),2,TRUE)","v":1},{"$f":"VLOOKUP(E:E,OFFSET('B. PoF Adj Factor Scoring'!$E$5:$F$282,,MATCH(J$4,'B. PoF Adj Factor Scoring'!$E$3:$N$3,0)-1),2,TRUE)","v":1},{"$f":"VLOOKUP(F:F,OFFSET('B. PoF Adj Factor Scoring'!$E$5:$F$282,,MATCH(K$4,'B. PoF Adj Factor Scoring'!$E$3:$N$3,0)-1),2,TRUE)","v":1}]
[{"$f":"'A. Population Info'!A383","v":1000404895},{"$f":"'A. Population Info'!G383","v":"OIL"},{"$f":"'A. Population Info'!H383","v":2},{"$f":"'A. Population Info'!I383","v":350},{"$f":"'A. Population Info'!J383","v":0},{"$f":"'A. Population Info'!K383","v":0},{"$f":"VLOOKUP(B:B,OFFSET('B. PoF Adj Factor Scoring'!$E$5:$F$282,,MATCH(G$4,'B. PoF Adj Factor Scoring'!$E$3:$N$3,0)-1),2,TRUE)","v":1},{"$f":"VLOOKUP(C:C,OFFSET('B. PoF Adj Factor Scoring'!$E$5:$F$282,,MATCH(H$4,'B. PoF Adj Factor Scoring'!$E$3:$N$3,0)-1),2,TRUE)","v":2},{"$f":"VLOOKUP(D:D,OFFSET('B. PoF Adj Factor Scoring'!$E$5:$F$282,,MATCH(I$4,'B. PoF Adj Factor Scoring'!$E$3:$N$3,0)-1),2,TRUE)","v":1},{"$f":"VLOOKUP(E:E,OFFSET('B. PoF Adj Factor Scoring'!$E$5:$F$282,,MATCH(J$4,'B. PoF Adj Factor Scoring'!$E$3:$N$3,0)-1),2,TRUE)","v":1},{"$f":"VLOOKUP(F:F,OFFSET('B. PoF Adj Factor Scoring'!$E$5:$F$282,,MATCH(K$4,'B. PoF Adj Factor Scoring'!$E$3:$N$3,0)-1),2,TRUE)","v":1}]
[{"$f":"'A. Population Info'!A384","v":1000407011},{"$f":"'A. Population Info'!G384","v":"OIL"},{"$f":"'A. Population Info'!H384","v":1},{"$f":"'A. Population Info'!I384","v":0},{"$f":"'A. Population Info'!J384","v":0},{"$f":"'A. Population Info'!K384","v":0},{"$f":"VLOOKUP(B:B,OFFSET('B. PoF Adj Factor Scoring'!$E$5:$F$282,,MATCH(G$4,'B. PoF Adj Factor Scoring'!$E$3:$N$3,0)-1),2,TRUE)","v":1},{"$f":"VLOOKUP(C:C,OFFSET('B. PoF Adj Factor Scoring'!$E$5:$F$282,,MATCH(H$4,'B. PoF Adj Factor Scoring'!$E$3:$N$3,0)-1),2,TRUE)","v":1},{"$f":"VLOOKUP(D:D,OFFSET('B. PoF Adj Factor Scoring'!$E$5:$F$282,,MATCH(I$4,'B. PoF Adj Factor Scoring'!$E$3:$N$3,0)-1),2,TRUE)","v":1},{"$f":"VLOOKUP(E:E,OFFSET('B. PoF Adj Factor Scoring'!$E$5:$F$282,,MATCH(J$4,'B. PoF Adj Factor Scoring'!$E$3:$N$3,0)-1),2,TRUE)","v":1},{"$f":"VLOOKUP(F:F,OFFSET('B. PoF Adj Factor Scoring'!$E$5:$F$282,,MATCH(K$4,'B. PoF Adj Factor Scoring'!$E$3:$N$3,0)-1),2,TRUE)","v":1}]
[{"$f":"'A. Population Info'!A385","v":1000407031},{"$f":"'A. Population Info'!G385","v":"OIL"},{"$f":"'A. Population Info'!H385","v":1},{"$f":"'A. Population Info'!I385","v":0},{"$f":"'A. Population Info'!J385","v":0},{"$f":"'A. Population Info'!K385","v":0},{"$f":"VLOOKUP(B:B,OFFSET('B. PoF Adj Factor Scoring'!$E$5:$F$282,,MATCH(G$4,'B. PoF Adj Factor Scoring'!$E$3:$N$3,0)-1),2,TRUE)","v":1},{"$f":"VLOOKUP(C:C,OFFSET('B. PoF Adj Factor Scoring'!$E$5:$F$282,,MATCH(H$4,'B. PoF Adj Factor Scoring'!$E$3:$N$3,0)-1),2,TRUE)","v":1},{"$f":"VLOOKUP(D:D,OFFSET('B. PoF Adj Factor Scoring'!$E$5:$F$282,,MATCH(I$4,'B. PoF Adj Factor Scoring'!$E$3:$N$3,0)-1),2,TRUE)","v":1},{"$f":"VLOOKUP(E:E,OFFSET('B. PoF Adj Factor Scoring'!$E$5:$F$282,,MATCH(J$4,'B. PoF Adj Factor Scoring'!$E$3:$N$3,0)-1),2,TRUE)","v":1},{"$f":"VLOOKUP(F:F,OFFSET('B. PoF Adj Factor Scoring'!$E$5:$F$282,,MATCH(K$4,'B. PoF Adj Factor Scoring'!$E$3:$N$3,0)-1),2,TRUE)","v":1}]
[{"$f":"'A. Population Info'!A386","v":1000407052},{"$f":"'A. Population Info'!G386","v":"OIL"},{"$f":"'A. Population Info'!H386","v":1},{"$f":"'A. Population Info'!I386","v":0},{"$f":"'A. Population Info'!J386","v":0},{"$f":"'A. Population Info'!K386","v":0},{"$f":"VLOOKUP(B:B,OFFSET('B. PoF Adj Factor Scoring'!$E$5:$F$282,,MATCH(G$4,'B. PoF Adj Factor Scoring'!$E$3:$N$3,0)-1),2,TRUE)","v":1},{"$f":"VLOOKUP(C:C,OFFSET('B. PoF Adj Factor Scoring'!$E$5:$F$282,,MATCH(H$4,'B. PoF Adj Factor Scoring'!$E$3:$N$3,0)-1),2,TRUE)","v":1},{"$f":"VLOOKUP(D:D,OFFSET('B. PoF Adj Factor Scoring'!$E$5:$F$282,,MATCH(I$4,'B. PoF Adj Factor Scoring'!$E$3:$N$3,0)-1),2,TRUE)","v":1},{"$f":"VLOOKUP(E:E,OFFSET('B. PoF Adj Factor Scoring'!$E$5:$F$282,,MATCH(J$4,'B. PoF Adj Factor Scoring'!$E$3:$N$3,0)-1),2,TRUE)","v":1},{"$f":"VLOOKUP(F:F,OFFSET('B. PoF Adj Factor Scoring'!$E$5:$F$282,,MATCH(K$4,'B. PoF Adj Factor Scoring'!$E$3:$N$3,0)-1),2,TRUE)","v":1}]
[{"$f":"'A. Population Info'!A387","v":1000407221},{"$f":"'A. Population Info'!G387","v":"OIL"},{"$f":"'A. Population Info'!H387","v":1},{"$f":"'A. Population Info'!I387","v":0},{"$f":"'A. Population Info'!J387","v":0},{"$f":"'A. Population Info'!K387","v":0},{"$f":"VLOOKUP(B:B,OFFSET('B. PoF Adj Factor Scoring'!$E$5:$F$282,,MATCH(G$4,'B. PoF Adj Factor Scoring'!$E$3:$N$3,0)-1),2,TRUE)","v":1},{"$f":"VLOOKUP(C:C,OFFSET('B. PoF Adj Factor Scoring'!$E$5:$F$282,,MATCH(H$4,'B. PoF Adj Factor Scoring'!$E$3:$N$3,0)-1),2,TRUE)","v":1},{"$f":"VLOOKUP(D:D,OFFSET('B. PoF Adj Factor Scoring'!$E$5:$F$282,,MATCH(I$4,'B. PoF Adj Factor Scoring'!$E$3:$N$3,0)-1),2,TRUE)","v":1},{"$f":"VLOOKUP(E:E,OFFSET('B. PoF Adj Factor Scoring'!$E$5:$F$282,,MATCH(J$4,'B. PoF Adj Factor Scoring'!$E$3:$N$3,0)-1),2,TRUE)","v":1},{"$f":"VLOOKUP(F:F,OFFSET('B. PoF Adj Factor Scoring'!$E$5:$F$282,,MATCH(K$4,'B. PoF Adj Factor Scoring'!$E$3:$N$3,0)-1),2,TRUE)","v":1}]
[{"$f":"'A. Population Info'!A388","v":1000407240},{"$f":"'A. Population Info'!G388","v":"OIL"},{"$f":"'A. Population Info'!H388","v":2},{"$f":"'A. Population Info'!I388","v":0},{"$f":"'A. Population Info'!J388","v":0},{"$f":"'A. Population Info'!K388","v":0},{"$f":"VLOOKUP(B:B,OFFSET('B. PoF Adj Factor Scoring'!$E$5:$F$282,,MATCH(G$4,'B. PoF Adj Factor Scoring'!$E$3:$N$3,0)-1),2,TRUE)","v":1},{"$f":"VLOOKUP(C:C,OFFSET('B. PoF Adj Factor Scoring'!$E$5:$F$282,,MATCH(H$4,'B. PoF Adj Factor Scoring'!$E$3:$N$3,0)-1),2,TRUE)","v":2},{"$f":"VLOOKUP(D:D,OFFSET('B. PoF Adj Factor Scoring'!$E$5:$F$282,,MATCH(I$4,'B. PoF Adj Factor Scoring'!$E$3:$N$3,0)-1),2,TRUE)","v":1},{"$f":"VLOOKUP(E:E,OFFSET('B. PoF Adj Factor Scoring'!$E$5:$F$282,,MATCH(J$4,'B. PoF Adj Factor Scoring'!$E$3:$N$3,0)-1),2,TRUE)","v":1},{"$f":"VLOOKUP(F:F,OFFSET('B. PoF Adj Factor Scoring'!$E$5:$F$282,,MATCH(K$4,'B. PoF Adj Factor Scoring'!$E$3:$N$3,0)-1),2,TRUE)","v":1}]
[{"$f":"'A. Population Info'!A389","v":1000407262},{"$f":"'A. Population Info'!G389","v":"OIL"},{"$f":"'A. Population Info'!H389","v":3},{"$f":"'A. Population Info'!I389","v":0},{"$f":"'A. Population Info'!J389","v":0},{"$f":"'A. Population Info'!K389","v":0},{"$f":"VLOOKUP(B:B,OFFSET('B. PoF Adj Factor Scoring'!$E$5:$F$282,,MATCH(G$4,'B. PoF Adj Factor Scoring'!$E$3:$N$3,0)-1),2,TRUE)","v":1},{"$f":"VLOOKUP(C:C,OFFSET('B. PoF Adj Factor Scoring'!$E$5:$F$282,,MATCH(H$4,'B. PoF Adj Factor Scoring'!$E$3:$N$3,0)-1),2,TRUE)","v":3},{"$f":"VLOOKUP(D:D,OFFSET('B. PoF Adj Factor Scoring'!$E$5:$F$282,,MATCH(I$4,'B. PoF Adj Factor Scoring'!$E$3:$N$3,0)-1),2,TRUE)","v":1},{"$f":"VLOOKUP(E:E,OFFSET('B. PoF Adj Factor Scoring'!$E$5:$F$282,,MATCH(J$4,'B. PoF Adj Factor Scoring'!$E$3:$N$3,0)-1),2,TRUE)","v":1},{"$f":"VLOOKUP(F:F,OFFSET('B. PoF Adj Factor Scoring'!$E$5:$F$282,,MATCH(K$4,'B. PoF Adj Factor Scoring'!$E$3:$N$3,0)-1),2,TRUE)","v":1}]
[{"$f":"'A. Population Info'!A390","v":1000407283},{"$f":"'A. Population Info'!G390","v":"OIL"},{"$f":"'A. Population Info'!H390","v":1},{"$f":"'A. Population Info'!I390","v":0},{"$f":"'A. Population Info'!J390","v":0},{"$f":"'A. Population Info'!K390","v":0},{"$f":"VLOOKUP(B:B,OFFSET('B. PoF Adj Factor Scoring'!$E$5:$F$282,,MATCH(G$4,'B. PoF Adj Factor Scoring'!$E$3:$N$3,0)-1),2,TRUE)","v":1},{"$f":"VLOOKUP(C:C,OFFSET('B. PoF Adj Factor Scoring'!$E$5:$F$282,,MATCH(H$4,'B. PoF Adj Factor Scoring'!$E$3:$N$3,0)-1),2,TRUE)","v":1},{"$f":"VLOOKUP(D:D,OFFSET('B. PoF Adj Factor Scoring'!$E$5:$F$282,,MATCH(I$4,'B. PoF Adj Factor Scoring'!$E$3:$N$3,0)-1),2,TRUE)","v":1},{"$f":"VLOOKUP(E:E,OFFSET('B. PoF Adj Factor Scoring'!$E$5:$F$282,,MATCH(J$4,'B. PoF Adj Factor Scoring'!$E$3:$N$3,0)-1),2,TRUE)","v":1},{"$f":"VLOOKUP(F:F,OFFSET('B. PoF Adj Factor Scoring'!$E$5:$F$282,,MATCH(K$4,'B. PoF Adj Factor Scoring'!$E$3:$N$3,0)-1),2,TRUE)","v":1}]
[{"$f":"'A. Population Info'!A391","v":1000407304},{"$f":"'A. Population Info'!G391","v":"OIL"},{"$f":"'A. Population Info'!H391","v":1},{"$f":"'A. Population Info'!I391","v":0},{"$f":"'A. Population Info'!J391","v":0},{"$f":"'A. Population Info'!K391","v":0},{"$f":"VLOOKUP(B:B,OFFSET('B. PoF Adj Factor Scoring'!$E$5:$F$282,,MATCH(G$4,'B. PoF Adj Factor Scoring'!$E$3:$N$3,0)-1),2,TRUE)","v":1},{"$f":"VLOOKUP(C:C,OFFSET('B. PoF Adj Factor Scoring'!$E$5:$F$282,,MATCH(H$4,'B. PoF Adj Factor Scoring'!$E$3:$N$3,0)-1),2,TRUE)","v":1},{"$f":"VLOOKUP(D:D,OFFSET('B. PoF Adj Factor Scoring'!$E$5:$F$282,,MATCH(I$4,'B. PoF Adj Factor Scoring'!$E$3:$N$3,0)-1),2,TRUE)","v":1},{"$f":"VLOOKUP(E:E,OFFSET('B. PoF Adj Factor Scoring'!$E$5:$F$282,,MATCH(J$4,'B. PoF Adj Factor Scoring'!$E$3:$N$3,0)-1),2,TRUE)","v":1},{"$f":"VLOOKUP(F:F,OFFSET('B. PoF Adj Factor Scoring'!$E$5:$F$282,,MATCH(K$4,'B. PoF Adj Factor Scoring'!$E$3:$N$3,0)-1),2,TRUE)","v":1}]
[{"$f":"'A. Population Info'!A392","v":1000407324},{"$f":"'A. Population Info'!G392","v":"OIL"},{"$f":"'A. Population Info'!H392","v":1},{"$f":"'A. Population Info'!I392","v":0},{"$f":"'A. Population Info'!J392","v":0},{"$f":"'A. Population Info'!K392","v":0},{"$f":"VLOOKUP(B:B,OFFSET('B. PoF Adj Factor Scoring'!$E$5:$F$282,,MATCH(G$4,'B. PoF Adj Factor Scoring'!$E$3:$N$3,0)-1),2,TRUE)","v":1},{"$f":"VLOOKUP(C:C,OFFSET('B. PoF Adj Factor Scoring'!$E$5:$F$282,,MATCH(H$4,'B. PoF Adj Factor Scoring'!$E$3:$N$3,0)-1),2,TRUE)","v":1},{"$f":"VLOOKUP(D:D,OFFSET('B. PoF Adj Factor Scoring'!$E$5:$F$282,,MATCH(I$4,'B. PoF Adj Factor Scoring'!$E$3:$N$3,0)-1),2,TRUE)","v":1},{"$f":"VLOOKUP(E:E,OFFSET('B. PoF Adj Factor Scoring'!$E$5:$F$282,,MATCH(J$4,'B. PoF Adj Factor Scoring'!$E$3:$N$3,0)-1),2,TRUE)","v":1},{"$f":"VLOOKUP(F:F,OFFSET('B. PoF Adj Factor Scoring'!$E$5:$F$282,,MATCH(K$4,'B. PoF Adj Factor Scoring'!$E$3:$N$3,0)-1),2,TRUE)","v":1}]
[{"$f":"'A. Population Info'!A393","v":1000407363},{"$f":"'A. Population Info'!G393","v":"OIL"},{"$f":"'A. Population Info'!H393","v":1},{"$f":"'A. Population Info'!I393","v":0},{"$f":"'A. Population Info'!J393","v":0},{"$f":"'A. Population Info'!K393","v":0},{"$f":"VLOOKUP(B:B,OFFSET('B. PoF Adj Factor Scoring'!$E$5:$F$282,,MATCH(G$4,'B. PoF Adj Factor Scoring'!$E$3:$N$3,0)-1),2,TRUE)","v":1},{"$f":"VLOOKUP(C:C,OFFSET('B. PoF Adj Factor Scoring'!$E$5:$F$282,,MATCH(H$4,'B. PoF Adj Factor Scoring'!$E$3:$N$3,0)-1),2,TRUE)","v":1},{"$f":"VLOOKUP(D:D,OFFSET('B. PoF Adj Factor Scoring'!$E$5:$F$282,,MATCH(I$4,'B. PoF Adj Factor Scoring'!$E$3:$N$3,0)-1),2,TRUE)","v":1},{"$f":"VLOOKUP(E:E,OFFSET('B. PoF Adj Factor Scoring'!$E$5:$F$282,,MATCH(J$4,'B. PoF Adj Factor Scoring'!$E$3:$N$3,0)-1),2,TRUE)","v":1},{"$f":"VLOOKUP(F:F,OFFSET('B. PoF Adj Factor Scoring'!$E$5:$F$282,,MATCH(K$4,'B. PoF Adj Factor Scoring'!$E$3:$N$3,0)-1),2,TRUE)","v":1}]
[{"$f":"'A. Population Info'!A394","v":1000407386},{"$f":"'A. Population Info'!G394","v":"OIL"},{"$f":"'A. Population Info'!H394","v":1},{"$f":"'A. Population Info'!I394","v":0},{"$f":"'A. Population Info'!J394","v":0},{"$f":"'A. Population Info'!K394","v":0},{"$f":"VLOOKUP(B:B,OFFSET('B. PoF Adj Factor Scoring'!$E$5:$F$282,,MATCH(G$4,'B. PoF Adj Factor Scoring'!$E$3:$N$3,0)-1),2,TRUE)","v":1},{"$f":"VLOOKUP(C:C,OFFSET('B. PoF Adj Factor Scoring'!$E$5:$F$282,,MATCH(H$4,'B. PoF Adj Factor Scoring'!$E$3:$N$3,0)-1),2,TRUE)","v":1},{"$f":"VLOOKUP(D:D,OFFSET('B. PoF Adj Factor Scoring'!$E$5:$F$282,,MATCH(I$4,'B. PoF Adj Factor Scoring'!$E$3:$N$3,0)-1),2,TRUE)","v":1},{"$f":"VLOOKUP(E:E,OFFSET('B. PoF Adj Factor Scoring'!$E$5:$F$282,,MATCH(J$4,'B. PoF Adj Factor Scoring'!$E$3:$N$3,0)-1),2,TRUE)","v":1},{"$f":"VLOOKUP(F:F,OFFSET('B. PoF Adj Factor Scoring'!$E$5:$F$282,,MATCH(K$4,'B. PoF Adj Factor Scoring'!$E$3:$N$3,0)-1),2,TRUE)","v":1}]
[{"$f":"'A. Population Info'!A395","v":1000407406},{"$f":"'A. Population Info'!G395","v":"OIL"},{"$f":"'A. Population Info'!H395","v":1},{"$f":"'A. Population Info'!I395","v":0},{"$f":"'A. Population Info'!J395","v":0},{"$f":"'A. Population Info'!K395","v":0},{"$f":"VLOOKUP(B:B,OFFSET('B. PoF Adj Factor Scoring'!$E$5:$F$282,,MATCH(G$4,'B. PoF Adj Factor Scoring'!$E$3:$N$3,0)-1),2,TRUE)","v":1},{"$f":"VLOOKUP(C:C,OFFSET('B. PoF Adj Factor Scoring'!$E$5:$F$282,,MATCH(H$4,'B. PoF Adj Factor Scoring'!$E$3:$N$3,0)-1),2,TRUE)","v":1},{"$f":"VLOOKUP(D:D,OFFSET('B. PoF Adj Factor Scoring'!$E$5:$F$282,,MATCH(I$4,'B. PoF Adj Factor Scoring'!$E$3:$N$3,0)-1),2,TRUE)","v":1},{"$f":"VLOOKUP(E:E,OFFSET('B. PoF Adj Factor Scoring'!$E$5:$F$282,,MATCH(J$4,'B. PoF Adj Factor Scoring'!$E$3:$N$3,0)-1),2,TRUE)","v":1},{"$f":"VLOOKUP(F:F,OFFSET('B. PoF Adj Factor Scoring'!$E$5:$F$282,,MATCH(K$4,'B. PoF Adj Factor Scoring'!$E$3:$N$3,0)-1),2,TRUE)","v":1}]
[{"$f":"'A. Population Info'!A396","v":1000407427},{"$f":"'A. Population Info'!G396","v":"OIL"},{"$f":"'A. Population Info'!H396","v":1},{"$f":"'A. Population Info'!I396","v":0},{"$f":"'A. Population Info'!J396","v":0},{"$f":"'A. Population Info'!K396","v":0},{"$f":"VLOOKUP(B:B,OFFSET('B. PoF Adj Factor Scoring'!$E$5:$F$282,,MATCH(G$4,'B. PoF Adj Factor Scoring'!$E$3:$N$3,0)-1),2,TRUE)","v":1},{"$f":"VLOOKUP(C:C,OFFSET('B. PoF Adj Factor Scoring'!$E$5:$F$282,,MATCH(H$4,'B. PoF Adj Factor Scoring'!$E$3:$N$3,0)-1),2,TRUE)","v":1},{"$f":"VLOOKUP(D:D,OFFSET('B. PoF Adj Factor Scoring'!$E$5:$F$282,,MATCH(I$4,'B. PoF Adj Factor Scoring'!$E$3:$N$3,0)-1),2,TRUE)","v":1},{"$f":"VLOOKUP(E:E,OFFSET('B. PoF Adj Factor Scoring'!$E$5:$F$282,,MATCH(J$4,'B. PoF Adj Factor Scoring'!$E$3:$N$3,0)-1),2,TRUE)","v":1},{"$f":"VLOOKUP(F:F,OFFSET('B. PoF Adj Factor Scoring'!$E$5:$F$282,,MATCH(K$4,'B. PoF Adj Factor Scoring'!$E$3:$N$3,0)-1),2,TRUE)","v":1}]
[{"$f":"'A. Population Info'!A397","v":1000407446},{"$f":"'A. Population Info'!G397","v":"OIL"},{"$f":"'A. Population Info'!H397","v":1},{"$f":"'A. Population Info'!I397","v":0},{"$f":"'A. Population Info'!J397","v":0},{"$f":"'A. Population Info'!K397","v":0},{"$f":"VLOOKUP(B:B,OFFSET('B. PoF Adj Factor Scoring'!$E$5:$F$282,,MATCH(G$4,'B. PoF Adj Factor Scoring'!$E$3:$N$3,0)-1),2,TRUE)","v":1},{"$f":"VLOOKUP(C:C,OFFSET('B. PoF Adj Factor Scoring'!$E$5:$F$282,,MATCH(H$4,'B. PoF Adj Factor Scoring'!$E$3:$N$3,0)-1),2,TRUE)","v":1},{"$f":"VLOOKUP(D:D,OFFSET('B. PoF Adj Factor Scoring'!$E$5:$F$282,,MATCH(I$4,'B. PoF Adj Factor Scoring'!$E$3:$N$3,0)-1),2,TRUE)","v":1},{"$f":"VLOOKUP(E:E,OFFSET('B. PoF Adj Factor Scoring'!$E$5:$F$282,,MATCH(J$4,'B. PoF Adj Factor Scoring'!$E$3:$N$3,0)-1),2,TRUE)","v":1},{"$f":"VLOOKUP(F:F,OFFSET('B. PoF Adj Factor Scoring'!$E$5:$F$282,,MATCH(K$4,'B. PoF Adj Factor Scoring'!$E$3:$N$3,0)-1),2,TRUE)","v":1}]
[{"$f":"'A. Population Info'!A398","v":1000407467},{"$f":"'A. Population Info'!G398","v":"OIL"},{"$f":"'A. Population Info'!H398","v":1},{"$f":"'A. Population Info'!I398","v":0},{"$f":"'A. Population Info'!J398","v":0},{"$f":"'A. Population Info'!K398","v":0},{"$f":"VLOOKUP(B:B,OFFSET('B. PoF Adj Factor Scoring'!$E$5:$F$282,,MATCH(G$4,'B. PoF Adj Factor Scoring'!$E$3:$N$3,0)-1),2,TRUE)","v":1},{"$f":"VLOOKUP(C:C,OFFSET('B. PoF Adj Factor Scoring'!$E$5:$F$282,,MATCH(H$4,'B. PoF Adj Factor Scoring'!$E$3:$N$3,0)-1),2,TRUE)","v":1},{"$f":"VLOOKUP(D:D,OFFSET('B. PoF Adj Factor Scoring'!$E$5:$F$282,,MATCH(I$4,'B. PoF Adj Factor Scoring'!$E$3:$N$3,0)-1),2,TRUE)","v":1},{"$f":"VLOOKUP(E:E,OFFSET('B. PoF Adj Factor Scoring'!$E$5:$F$282,,MATCH(J$4,'B. PoF Adj Factor Scoring'!$E$3:$N$3,0)-1),2,TRUE)","v":1},{"$f":"VLOOKUP(F:F,OFFSET('B. PoF Adj Factor Scoring'!$E$5:$F$282,,MATCH(K$4,'B. PoF Adj Factor Scoring'!$E$3:$N$3,0)-1),2,TRUE)","v":1}]
[{"$f":"'A. Population Info'!A399","v":1000407484},{"$f":"'A. Population Info'!G399","v":"OIL"},{"$f":"'A. Population Info'!H399","v":1},{"$f":"'A. Population Info'!I399","v":40},{"$f":"'A. Population Info'!J399","v":0},{"$f":"'A. Population Info'!K399","v":0},{"$f":"VLOOKUP(B:B,OFFSET('B. PoF Adj Factor Scoring'!$E$5:$F$282,,MATCH(G$4,'B. PoF Adj Factor Scoring'!$E$3:$N$3,0)-1),2,TRUE)","v":1},{"$f":"VLOOKUP(C:C,OFFSET('B. PoF Adj Factor Scoring'!$E$5:$F$282,,MATCH(H$4,'B. PoF Adj Factor Scoring'!$E$3:$N$3,0)-1),2,TRUE)","v":1},{"$f":"VLOOKUP(D:D,OFFSET('B. PoF Adj Factor Scoring'!$E$5:$F$282,,MATCH(I$4,'B. PoF Adj Factor Scoring'!$E$3:$N$3,0)-1),2,TRUE)","v":1},{"$f":"VLOOKUP(E:E,OFFSET('B. PoF Adj Factor Scoring'!$E$5:$F$282,,MATCH(J$4,'B. PoF Adj Factor Scoring'!$E$3:$N$3,0)-1),2,TRUE)","v":1},{"$f":"VLOOKUP(F:F,OFFSET('B. PoF Adj Factor Scoring'!$E$5:$F$282,,MATCH(K$4,'B. PoF Adj Factor Scoring'!$E$3:$N$3,0)-1),2,TRUE)","v":1}]
[{"$f":"'A. Population Info'!A400","v":1000407503},{"$f":"'A. Population Info'!G400","v":"OIL"},{"$f":"'A. Population Info'!H400","v":2},{"$f":"'A. Population Info'!I400","v":0},{"$f":"'A. Population Info'!J400","v":0},{"$f":"'A. Population Info'!K400","v":0},{"$f":"VLOOKUP(B:B,OFFSET('B. PoF Adj Factor Scoring'!$E$5:$F$282,,MATCH(G$4,'B. PoF Adj Factor Scoring'!$E$3:$N$3,0)-1),2,TRUE)","v":1},{"$f":"VLOOKUP(C:C,OFFSET('B. PoF Adj Factor Scoring'!$E$5:$F$282,,MATCH(H$4,'B. PoF Adj Factor Scoring'!$E$3:$N$3,0)-1),2,TRUE)","v":2},{"$f":"VLOOKUP(D:D,OFFSET('B. PoF Adj Factor Scoring'!$E$5:$F$282,,MATCH(I$4,'B. PoF Adj Factor Scoring'!$E$3:$N$3,0)-1),2,TRUE)","v":1},{"$f":"VLOOKUP(E:E,OFFSET('B. PoF Adj Factor Scoring'!$E$5:$F$282,,MATCH(J$4,'B. PoF Adj Factor Scoring'!$E$3:$N$3,0)-1),2,TRUE)","v":1},{"$f":"VLOOKUP(F:F,OFFSET('B. PoF Adj Factor Scoring'!$E$5:$F$282,,MATCH(K$4,'B. PoF Adj Factor Scoring'!$E$3:$N$3,0)-1),2,TRUE)","v":1}]
[{"$f":"'A. Population Info'!A401","v":1000407527},{"$f":"'A. Population Info'!G401","v":"OIL"},{"$f":"'A. Population Info'!H401","v":1},{"$f":"'A. Population Info'!I401","v":0},{"$f":"'A. Population Info'!J401","v":0},{"$f":"'A. Population Info'!K401","v":0},{"$f":"VLOOKUP(B:B,OFFSET('B. PoF Adj Factor Scoring'!$E$5:$F$282,,MATCH(G$4,'B. PoF Adj Factor Scoring'!$E$3:$N$3,0)-1),2,TRUE)","v":1},{"$f":"VLOOKUP(C:C,OFFSET('B. PoF Adj Factor Scoring'!$E$5:$F$282,,MATCH(H$4,'B. PoF Adj Factor Scoring'!$E$3:$N$3,0)-1),2,TRUE)","v":1},{"$f":"VLOOKUP(D:D,OFFSET('B. PoF Adj Factor Scoring'!$E$5:$F$282,,MATCH(I$4,'B. PoF Adj Factor Scoring'!$E$3:$N$3,0)-1),2,TRUE)","v":1},{"$f":"VLOOKUP(E:E,OFFSET('B. PoF Adj Factor Scoring'!$E$5:$F$282,,MATCH(J$4,'B. PoF Adj Factor Scoring'!$E$3:$N$3,0)-1),2,TRUE)","v":1},{"$f":"VLOOKUP(F:F,OFFSET('B. PoF Adj Factor Scoring'!$E$5:$F$282,,MATCH(K$4,'B. PoF Adj Factor Scoring'!$E$3:$N$3,0)-1),2,TRUE)","v":1}]
[{"$f":"'A. Population Info'!A402","v":1000407547},{"$f":"'A. Population Info'!G402","v":"OIL"},{"$f":"'A. Population Info'!H402","v":2},{"$f":"'A. Population Info'!I402","v":0},{"$f":"'A. Population Info'!J402","v":0},{"$f":"'A. Population Info'!K402","v":0},{"$f":"VLOOKUP(B:B,OFFSET('B. PoF Adj Factor Scoring'!$E$5:$F$282,,MATCH(G$4,'B. PoF Adj Factor Scoring'!$E$3:$N$3,0)-1),2,TRUE)","v":1},{"$f":"VLOOKUP(C:C,OFFSET('B. PoF Adj Factor Scoring'!$E$5:$F$282,,MATCH(H$4,'B. PoF Adj Factor Scoring'!$E$3:$N$3,0)-1),2,TRUE)","v":2},{"$f":"VLOOKUP(D:D,OFFSET('B. PoF Adj Factor Scoring'!$E$5:$F$282,,MATCH(I$4,'B. PoF Adj Factor Scoring'!$E$3:$N$3,0)-1),2,TRUE)","v":1},{"$f":"VLOOKUP(E:E,OFFSET('B. PoF Adj Factor Scoring'!$E$5:$F$282,,MATCH(J$4,'B. PoF Adj Factor Scoring'!$E$3:$N$3,0)-1),2,TRUE)","v":1},{"$f":"VLOOKUP(F:F,OFFSET('B. PoF Adj Factor Scoring'!$E$5:$F$282,,MATCH(K$4,'B. PoF Adj Factor Scoring'!$E$3:$N$3,0)-1),2,TRUE)","v":1}]
[{"$f":"'A. Population Info'!A403","v":1000407568},{"$f":"'A. Population Info'!G403","v":"OIL"},{"$f":"'A. Population Info'!H403","v":2},{"$f":"'A. Population Info'!I403","v":0},{"$f":"'A. Population Info'!J403","v":0},{"$f":"'A. Population Info'!K403","v":0},{"$f":"VLOOKUP(B:B,OFFSET('B. PoF Adj Factor Scoring'!$E$5:$F$282,,MATCH(G$4,'B. PoF Adj Factor Scoring'!$E$3:$N$3,0)-1),2,TRUE)","v":1},{"$f":"VLOOKUP(C:C,OFFSET('B. PoF Adj Factor Scoring'!$E$5:$F$282,,MATCH(H$4,'B. PoF Adj Factor Scoring'!$E$3:$N$3,0)-1),2,TRUE)","v":2},{"$f":"VLOOKUP(D:D,OFFSET('B. PoF Adj Factor Scoring'!$E$5:$F$282,,MATCH(I$4,'B. PoF Adj Factor Scoring'!$E$3:$N$3,0)-1),2,TRUE)","v":1},{"$f":"VLOOKUP(E:E,OFFSET('B. PoF Adj Factor Scoring'!$E$5:$F$282,,MATCH(J$4,'B. PoF Adj Factor Scoring'!$E$3:$N$3,0)-1),2,TRUE)","v":1},{"$f":"VLOOKUP(F:F,OFFSET('B. PoF Adj Factor Scoring'!$E$5:$F$282,,MATCH(K$4,'B. PoF Adj Factor Scoring'!$E$3:$N$3,0)-1),2,TRUE)","v":1}]
[{"$f":"'A. Population Info'!A404","v":1000407588},{"$f":"'A. Population Info'!G404","v":"OIL"},{"$f":"'A. Population Info'!H404","v":2},{"$f":"'A. Population Info'!I404","v":0},{"$f":"'A. Population Info'!J404","v":0},{"$f":"'A. Population Info'!K404","v":0},{"$f":"VLOOKUP(B:B,OFFSET('B. PoF Adj Factor Scoring'!$E$5:$F$282,,MATCH(G$4,'B. PoF Adj Factor Scoring'!$E$3:$N$3,0)-1),2,TRUE)","v":1},{"$f":"VLOOKUP(C:C,OFFSET('B. PoF Adj Factor Scoring'!$E$5:$F$282,,MATCH(H$4,'B. PoF Adj Factor Scoring'!$E$3:$N$3,0)-1),2,TRUE)","v":2},{"$f":"VLOOKUP(D:D,OFFSET('B. PoF Adj Factor Scoring'!$E$5:$F$282,,MATCH(I$4,'B. PoF Adj Factor Scoring'!$E$3:$N$3,0)-1),2,TRUE)","v":1},{"$f":"VLOOKUP(E:E,OFFSET('B. PoF Adj Factor Scoring'!$E$5:$F$282,,MATCH(J$4,'B. PoF Adj Factor Scoring'!$E$3:$N$3,0)-1),2,TRUE)","v":1},{"$f":"VLOOKUP(F:F,OFFSET('B. PoF Adj Factor Scoring'!$E$5:$F$282,,MATCH(K$4,'B. PoF Adj Factor Scoring'!$E$3:$N$3,0)-1),2,TRUE)","v":1}]
[{"$f":"'A. Population Info'!A405","v":1000407604},{"$f":"'A. Population Info'!G405","v":"OIL"},{"$f":"'A. Population Info'!H405","v":1},{"$f":"'A. Population Info'!I405","v":0},{"$f":"'A. Population Info'!J405","v":0},{"$f":"'A. Population Info'!K405","v":0},{"$f":"VLOOKUP(B:B,OFFSET('B. PoF Adj Factor Scoring'!$E$5:$F$282,,MATCH(G$4,'B. PoF Adj Factor Scoring'!$E$3:$N$3,0)-1),2,TRUE)","v":1},{"$f":"VLOOKUP(C:C,OFFSET('B. PoF Adj Factor Scoring'!$E$5:$F$282,,MATCH(H$4,'B. PoF Adj Factor Scoring'!$E$3:$N$3,0)-1),2,TRUE)","v":1},{"$f":"VLOOKUP(D:D,OFFSET('B. PoF Adj Factor Scoring'!$E$5:$F$282,,MATCH(I$4,'B. PoF Adj Factor Scoring'!$E$3:$N$3,0)-1),2,TRUE)","v":1},{"$f":"VLOOKUP(E:E,OFFSET('B. PoF Adj Factor Scoring'!$E$5:$F$282,,MATCH(J$4,'B. PoF Adj Factor Scoring'!$E$3:$N$3,0)-1),2,TRUE)","v":1},{"$f":"VLOOKUP(F:F,OFFSET('B. PoF Adj Factor Scoring'!$E$5:$F$282,,MATCH(K$4,'B. PoF Adj Factor Scoring'!$E$3:$N$3,0)-1),2,TRUE)","v":1}]
[{"$f":"'A. Population Info'!A406","v":1000407622},{"$f":"'A. Population Info'!G406","v":"OIL"},{"$f":"'A. Population Info'!H406","v":2},{"$f":"'A. Population Info'!I406","v":0},{"$f":"'A. Population Info'!J406","v":0},{"$f":"'A. Population Info'!K406","v":0},{"$f":"VLOOKUP(B:B,OFFSET('B. PoF Adj Factor Scoring'!$E$5:$F$282,,MATCH(G$4,'B. PoF Adj Factor Scoring'!$E$3:$N$3,0)-1),2,TRUE)","v":1},{"$f":"VLOOKUP(C:C,OFFSET('B. PoF Adj Factor Scoring'!$E$5:$F$282,,MATCH(H$4,'B. PoF Adj Factor Scoring'!$E$3:$N$3,0)-1),2,TRUE)","v":2},{"$f":"VLOOKUP(D:D,OFFSET('B. PoF Adj Factor Scoring'!$E$5:$F$282,,MATCH(I$4,'B. PoF Adj Factor Scoring'!$E$3:$N$3,0)-1),2,TRUE)","v":1},{"$f":"VLOOKUP(E:E,OFFSET('B. PoF Adj Factor Scoring'!$E$5:$F$282,,MATCH(J$4,'B. PoF Adj Factor Scoring'!$E$3:$N$3,0)-1),2,TRUE)","v":1},{"$f":"VLOOKUP(F:F,OFFSET('B. PoF Adj Factor Scoring'!$E$5:$F$282,,MATCH(K$4,'B. PoF Adj Factor Scoring'!$E$3:$N$3,0)-1),2,TRUE)","v":1}]
[{"$f":"'A. Population Info'!A407","v":1000407678},{"$f":"'A. Population Info'!G407","v":"OIL"},{"$f":"'A. Population Info'!H407","v":1},{"$f":"'A. Population Info'!I407","v":0},{"$f":"'A. Population Info'!J407","v":0},{"$f":"'A. Population Info'!K407","v":0},{"$f":"VLOOKUP(B:B,OFFSET('B. PoF Adj Factor Scoring'!$E$5:$F$282,,MATCH(G$4,'B. PoF Adj Factor Scoring'!$E$3:$N$3,0)-1),2,TRUE)","v":1},{"$f":"VLOOKUP(C:C,OFFSET('B. PoF Adj Factor Scoring'!$E$5:$F$282,,MATCH(H$4,'B. PoF Adj Factor Scoring'!$E$3:$N$3,0)-1),2,TRUE)","v":1},{"$f":"VLOOKUP(D:D,OFFSET('B. PoF Adj Factor Scoring'!$E$5:$F$282,,MATCH(I$4,'B. PoF Adj Factor Scoring'!$E$3:$N$3,0)-1),2,TRUE)","v":1},{"$f":"VLOOKUP(E:E,OFFSET('B. PoF Adj Factor Scoring'!$E$5:$F$282,,MATCH(J$4,'B. PoF Adj Factor Scoring'!$E$3:$N$3,0)-1),2,TRUE)","v":1},{"$f":"VLOOKUP(F:F,OFFSET('B. PoF Adj Factor Scoring'!$E$5:$F$282,,MATCH(K$4,'B. PoF Adj Factor Scoring'!$E$3:$N$3,0)-1),2,TRUE)","v":1}]
[{"$f":"'A. Population Info'!A408","v":1000407839},{"$f":"'A. Population Info'!G408","v":"OIL"},{"$f":"'A. Population Info'!H408","v":1},{"$f":"'A. Population Info'!I408","v":0},{"$f":"'A. Population Info'!J408","v":0},{"$f":"'A. Population Info'!K408","v":0},{"$f":"VLOOKUP(B:B,OFFSET('B. PoF Adj Factor Scoring'!$E$5:$F$282,,MATCH(G$4,'B. PoF Adj Factor Scoring'!$E$3:$N$3,0)-1),2,TRUE)","v":1},{"$f":"VLOOKUP(C:C,OFFSET('B. PoF Adj Factor Scoring'!$E$5:$F$282,,MATCH(H$4,'B. PoF Adj Factor Scoring'!$E$3:$N$3,0)-1),2,TRUE)","v":1},{"$f":"VLOOKUP(D:D,OFFSET('B. PoF Adj Factor Scoring'!$E$5:$F$282,,MATCH(I$4,'B. PoF Adj Factor Scoring'!$E$3:$N$3,0)-1),2,TRUE)","v":1},{"$f":"VLOOKUP(E:E,OFFSET('B. PoF Adj Factor Scoring'!$E$5:$F$282,,MATCH(J$4,'B. PoF Adj Factor Scoring'!$E$3:$N$3,0)-1),2,TRUE)","v":1},{"$f":"VLOOKUP(F:F,OFFSET('B. PoF Adj Factor Scoring'!$E$5:$F$282,,MATCH(K$4,'B. PoF Adj Factor Scoring'!$E$3:$N$3,0)-1),2,TRUE)","v":1}]
[{"$f":"'A. Population Info'!A409","v":1000407875},{"$f":"'A. Population Info'!G409","v":"OIL"},{"$f":"'A. Population Info'!H409","v":3},{"$f":"'A. Population Info'!I409","v":0},{"$f":"'A. Population Info'!J409","v":0},{"$f":"'A. Population Info'!K409","v":0},{"$f":"VLOOKUP(B:B,OFFSET('B. PoF Adj Factor Scoring'!$E$5:$F$282,,MATCH(G$4,'B. PoF Adj Factor Scoring'!$E$3:$N$3,0)-1),2,TRUE)","v":1},{"$f":"VLOOKUP(C:C,OFFSET('B. PoF Adj Factor Scoring'!$E$5:$F$282,,MATCH(H$4,'B. PoF Adj Factor Scoring'!$E$3:$N$3,0)-1),2,TRUE)","v":3},{"$f":"VLOOKUP(D:D,OFFSET('B. PoF Adj Factor Scoring'!$E$5:$F$282,,MATCH(I$4,'B. PoF Adj Factor Scoring'!$E$3:$N$3,0)-1),2,TRUE)","v":1},{"$f":"VLOOKUP(E:E,OFFSET('B. PoF Adj Factor Scoring'!$E$5:$F$282,,MATCH(J$4,'B. PoF Adj Factor Scoring'!$E$3:$N$3,0)-1),2,TRUE)","v":1},{"$f":"VLOOKUP(F:F,OFFSET('B. PoF Adj Factor Scoring'!$E$5:$F$282,,MATCH(K$4,'B. PoF Adj Factor Scoring'!$E$3:$N$3,0)-1),2,TRUE)","v":1}]
[{"$f":"'A. Population Info'!A410","v":1000407905},{"$f":"'A. Population Info'!G410","v":"OIL"},{"$f":"'A. Population Info'!H410","v":1},{"$f":"'A. Population Info'!I410","v":0},{"$f":"'A. Population Info'!J410","v":0},{"$f":"'A. Population Info'!K410","v":0},{"$f":"VLOOKUP(B:B,OFFSET('B. PoF Adj Factor Scoring'!$E$5:$F$282,,MATCH(G$4,'B. PoF Adj Factor Scoring'!$E$3:$N$3,0)-1),2,TRUE)","v":1},{"$f":"VLOOKUP(C:C,OFFSET('B. PoF Adj Factor Scoring'!$E$5:$F$282,,MATCH(H$4,'B. PoF Adj Factor Scoring'!$E$3:$N$3,0)-1),2,TRUE)","v":1},{"$f":"VLOOKUP(D:D,OFFSET('B. PoF Adj Factor Scoring'!$E$5:$F$282,,MATCH(I$4,'B. PoF Adj Factor Scoring'!$E$3:$N$3,0)-1),2,TRUE)","v":1},{"$f":"VLOOKUP(E:E,OFFSET('B. PoF Adj Factor Scoring'!$E$5:$F$282,,MATCH(J$4,'B. PoF Adj Factor Scoring'!$E$3:$N$3,0)-1),2,TRUE)","v":1},{"$f":"VLOOKUP(F:F,OFFSET('B. PoF Adj Factor Scoring'!$E$5:$F$282,,MATCH(K$4,'B. PoF Adj Factor Scoring'!$E$3:$N$3,0)-1),2,TRUE)","v":1}]
[{"$f":"'A. Population Info'!A411","v":1000407934},{"$f":"'A. Population Info'!G411","v":"OIL"},{"$f":"'A. Population Info'!H411","v":3},{"$f":"'A. Population Info'!I411","v":0},{"$f":"'A. Population Info'!J411","v":0},{"$f":"'A. Population Info'!K411","v":0},{"$f":"VLOOKUP(B:B,OFFSET('B. PoF Adj Factor Scoring'!$E$5:$F$282,,MATCH(G$4,'B. PoF Adj Factor Scoring'!$E$3:$N$3,0)-1),2,TRUE)","v":1},{"$f":"VLOOKUP(C:C,OFFSET('B. PoF Adj Factor Scoring'!$E$5:$F$282,,MATCH(H$4,'B. PoF Adj Factor Scoring'!$E$3:$N$3,0)-1),2,TRUE)","v":3},{"$f":"VLOOKUP(D:D,OFFSET('B. PoF Adj Factor Scoring'!$E$5:$F$282,,MATCH(I$4,'B. PoF Adj Factor Scoring'!$E$3:$N$3,0)-1),2,TRUE)","v":1},{"$f":"VLOOKUP(E:E,OFFSET('B. PoF Adj Factor Scoring'!$E$5:$F$282,,MATCH(J$4,'B. PoF Adj Factor Scoring'!$E$3:$N$3,0)-1),2,TRUE)","v":1},{"$f":"VLOOKUP(F:F,OFFSET('B. PoF Adj Factor Scoring'!$E$5:$F$282,,MATCH(K$4,'B. PoF Adj Factor Scoring'!$E$3:$N$3,0)-1),2,TRUE)","v":1}]
[{"$f":"'A. Population Info'!A412","v":1000407967},{"$f":"'A. Population Info'!G412","v":"OIL"},{"$f":"'A. Population Info'!H412","v":3},{"$f":"'A. Population Info'!I412","v":0},{"$f":"'A. Population Info'!J412","v":0},{"$f":"'A. Population Info'!K412","v":0},{"$f":"VLOOKUP(B:B,OFFSET('B. PoF Adj Factor Scoring'!$E$5:$F$282,,MATCH(G$4,'B. PoF Adj Factor Scoring'!$E$3:$N$3,0)-1),2,TRUE)","v":1},{"$f":"VLOOKUP(C:C,OFFSET('B. PoF Adj Factor Scoring'!$E$5:$F$282,,MATCH(H$4,'B. PoF Adj Factor Scoring'!$E$3:$N$3,0)-1),2,TRUE)","v":3},{"$f":"VLOOKUP(D:D,OFFSET('B. PoF Adj Factor Scoring'!$E$5:$F$282,,MATCH(I$4,'B. PoF Adj Factor Scoring'!$E$3:$N$3,0)-1),2,TRUE)","v":1},{"$f":"VLOOKUP(E:E,OFFSET('B. PoF Adj Factor Scoring'!$E$5:$F$282,,MATCH(J$4,'B. PoF Adj Factor Scoring'!$E$3:$N$3,0)-1),2,TRUE)","v":1},{"$f":"VLOOKUP(F:F,OFFSET('B. PoF Adj Factor Scoring'!$E$5:$F$282,,MATCH(K$4,'B. PoF Adj Factor Scoring'!$E$3:$N$3,0)-1),2,TRUE)","v":1}]
[{"$f":"'A. Population Info'!A413","v":1000410000},{"$f":"'A. Population Info'!G413","v":"OIL"},{"$f":"'A. Population Info'!H413","v":1},{"$f":"'A. Population Info'!I413","v":0},{"$f":"'A. Population Info'!J413","v":0},{"$f":"'A. Population Info'!K413","v":0},{"$f":"VLOOKUP(B:B,OFFSET('B. PoF Adj Factor Scoring'!$E$5:$F$282,,MATCH(G$4,'B. PoF Adj Factor Scoring'!$E$3:$N$3,0)-1),2,TRUE)","v":1},{"$f":"VLOOKUP(C:C,OFFSET('B. PoF Adj Factor Scoring'!$E$5:$F$282,,MATCH(H$4,'B. PoF Adj Factor Scoring'!$E$3:$N$3,0)-1),2,TRUE)","v":1},{"$f":"VLOOKUP(D:D,OFFSET('B. PoF Adj Factor Scoring'!$E$5:$F$282,,MATCH(I$4,'B. PoF Adj Factor Scoring'!$E$3:$N$3,0)-1),2,TRUE)","v":1},{"$f":"VLOOKUP(E:E,OFFSET('B. PoF Adj Factor Scoring'!$E$5:$F$282,,MATCH(J$4,'B. PoF Adj Factor Scoring'!$E$3:$N$3,0)-1),2,TRUE)","v":1},{"$f":"VLOOKUP(F:F,OFFSET('B. PoF Adj Factor Scoring'!$E$5:$F$282,,MATCH(K$4,'B. PoF Adj Factor Scoring'!$E$3:$N$3,0)-1),2,TRUE)","v":1}]
[{"$f":"'A. Population Info'!A414","v":1000410034},{"$f":"'A. Population Info'!G414","v":"OIL"},{"$f":"'A. Population Info'!H414","v":1},{"$f":"'A. Population Info'!I414","v":0},{"$f":"'A. Population Info'!J414","v":0},{"$f":"'A. Population Info'!K414","v":0},{"$f":"VLOOKUP(B:B,OFFSET('B. PoF Adj Factor Scoring'!$E$5:$F$282,,MATCH(G$4,'B. PoF Adj Factor Scoring'!$E$3:$N$3,0)-1),2,TRUE)","v":1},{"$f":"VLOOKUP(C:C,OFFSET('B. PoF Adj Factor Scoring'!$E$5:$F$282,,MATCH(H$4,'B. PoF Adj Factor Scoring'!$E$3:$N$3,0)-1),2,TRUE)","v":1},{"$f":"VLOOKUP(D:D,OFFSET('B. PoF Adj Factor Scoring'!$E$5:$F$282,,MATCH(I$4,'B. PoF Adj Factor Scoring'!$E$3:$N$3,0)-1),2,TRUE)","v":1},{"$f":"VLOOKUP(E:E,OFFSET('B. PoF Adj Factor Scoring'!$E$5:$F$282,,MATCH(J$4,'B. PoF Adj Factor Scoring'!$E$3:$N$3,0)-1),2,TRUE)","v":1},{"$f":"VLOOKUP(F:F,OFFSET('B. PoF Adj Factor Scoring'!$E$5:$F$282,,MATCH(K$4,'B. PoF Adj Factor Scoring'!$E$3:$N$3,0)-1),2,TRUE)","v":1}]
[{"$f":"'A. Population Info'!A415","v":1000410094},{"$f":"'A. Population Info'!G415","v":"OIL"},{"$f":"'A. Population Info'!H415","v":3},{"$f":"'A. Population Info'!I415","v":0},{"$f":"'A. Population Info'!J415","v":0},{"$f":"'A. Population Info'!K415","v":0},{"$f":"VLOOKUP(B:B,OFFSET('B. PoF Adj Factor Scoring'!$E$5:$F$282,,MATCH(G$4,'B. PoF Adj Factor Scoring'!$E$3:$N$3,0)-1),2,TRUE)","v":1},{"$f":"VLOOKUP(C:C,OFFSET('B. PoF Adj Factor Scoring'!$E$5:$F$282,,MATCH(H$4,'B. PoF Adj Factor Scoring'!$E$3:$N$3,0)-1),2,TRUE)","v":3},{"$f":"VLOOKUP(D:D,OFFSET('B. PoF Adj Factor Scoring'!$E$5:$F$282,,MATCH(I$4,'B. PoF Adj Factor Scoring'!$E$3:$N$3,0)-1),2,TRUE)","v":1},{"$f":"VLOOKUP(E:E,OFFSET('B. PoF Adj Factor Scoring'!$E$5:$F$282,,MATCH(J$4,'B. PoF Adj Factor Scoring'!$E$3:$N$3,0)-1),2,TRUE)","v":1},{"$f":"VLOOKUP(F:F,OFFSET('B. PoF Adj Factor Scoring'!$E$5:$F$282,,MATCH(K$4,'B. PoF Adj Factor Scoring'!$E$3:$N$3,0)-1),2,TRUE)","v":1}]
[{"$f":"'A. Population Info'!A416","v":1000410124},{"$f":"'A. Population Info'!G416","v":"OIL"},{"$f":"'A. Population Info'!H416","v":2},{"$f":"'A. Population Info'!I416","v":0},{"$f":"'A. Population Info'!J416","v":0},{"$f":"'A. Population Info'!K416","v":0},{"$f":"VLOOKUP(B:B,OFFSET('B. PoF Adj Factor Scoring'!$E$5:$F$282,,MATCH(G$4,'B. PoF Adj Factor Scoring'!$E$3:$N$3,0)-1),2,TRUE)","v":1},{"$f":"VLOOKUP(C:C,OFFSET('B. PoF Adj Factor Scoring'!$E$5:$F$282,,MATCH(H$4,'B. PoF Adj Factor Scoring'!$E$3:$N$3,0)-1),2,TRUE)","v":2},{"$f":"VLOOKUP(D:D,OFFSET('B. PoF Adj Factor Scoring'!$E$5:$F$282,,MATCH(I$4,'B. PoF Adj Factor Scoring'!$E$3:$N$3,0)-1),2,TRUE)","v":1},{"$f":"VLOOKUP(E:E,OFFSET('B. PoF Adj Factor Scoring'!$E$5:$F$282,,MATCH(J$4,'B. PoF Adj Factor Scoring'!$E$3:$N$3,0)-1),2,TRUE)","v":1},{"$f":"VLOOKUP(F:F,OFFSET('B. PoF Adj Factor Scoring'!$E$5:$F$282,,MATCH(K$4,'B. PoF Adj Factor Scoring'!$E$3:$N$3,0)-1),2,TRUE)","v":1}]
[{"$f":"'A. Population Info'!A417","v":1000410171},{"$f":"'A. Population Info'!G417","v":"OIL"},{"$f":"'A. Population Info'!H417","v":4},{"$f":"'A. Population Info'!I417","v":1000},{"$f":"'A. Population Info'!J417","v":0},{"$f":"'A. Population Info'!K417","v":0},{"$f":"VLOOKUP(B:B,OFFSET('B. PoF Adj Factor Scoring'!$E$5:$F$282,,MATCH(G$4,'B. PoF Adj Factor Scoring'!$E$3:$N$3,0)-1),2,TRUE)","v":1},{"$f":"VLOOKUP(C:C,OFFSET('B. PoF Adj Factor Scoring'!$E$5:$F$282,,MATCH(H$4,'B. PoF Adj Factor Scoring'!$E$3:$N$3,0)-1),2,TRUE)","v":4},{"$f":"VLOOKUP(D:D,OFFSET('B. PoF Adj Factor Scoring'!$E$5:$F$282,,MATCH(I$4,'B. PoF Adj Factor Scoring'!$E$3:$N$3,0)-1),2,TRUE)","v":2},{"$f":"VLOOKUP(E:E,OFFSET('B. PoF Adj Factor Scoring'!$E$5:$F$282,,MATCH(J$4,'B. PoF Adj Factor Scoring'!$E$3:$N$3,0)-1),2,TRUE)","v":1},{"$f":"VLOOKUP(F:F,OFFSET('B. PoF Adj Factor Scoring'!$E$5:$F$282,,MATCH(K$4,'B. PoF Adj Factor Scoring'!$E$3:$N$3,0)-1),2,TRUE)","v":1}]
[{"$f":"'A. Population Info'!A418","v":1000410190},{"$f":"'A. Population Info'!G418","v":"OIL"},{"$f":"'A. Population Info'!H418","v":3},{"$f":"'A. Population Info'!I418","v":0},{"$f":"'A. Population Info'!J418","v":0},{"$f":"'A. Population Info'!K418","v":0},{"$f":"VLOOKUP(B:B,OFFSET('B. PoF Adj Factor Scoring'!$E$5:$F$282,,MATCH(G$4,'B. PoF Adj Factor Scoring'!$E$3:$N$3,0)-1),2,TRUE)","v":1},{"$f":"VLOOKUP(C:C,OFFSET('B. PoF Adj Factor Scoring'!$E$5:$F$282,,MATCH(H$4,'B. PoF Adj Factor Scoring'!$E$3:$N$3,0)-1),2,TRUE)","v":3},{"$f":"VLOOKUP(D:D,OFFSET('B. PoF Adj Factor Scoring'!$E$5:$F$282,,MATCH(I$4,'B. PoF Adj Factor Scoring'!$E$3:$N$3,0)-1),2,TRUE)","v":1},{"$f":"VLOOKUP(E:E,OFFSET('B. PoF Adj Factor Scoring'!$E$5:$F$282,,MATCH(J$4,'B. PoF Adj Factor Scoring'!$E$3:$N$3,0)-1),2,TRUE)","v":1},{"$f":"VLOOKUP(F:F,OFFSET('B. PoF Adj Factor Scoring'!$E$5:$F$282,,MATCH(K$4,'B. PoF Adj Factor Scoring'!$E$3:$N$3,0)-1),2,TRUE)","v":1}]
[{"$f":"'A. Population Info'!A419","v":1000410281},{"$f":"'A. Population Info'!G419","v":"OIL"},{"$f":"'A. Population Info'!H419","v":1},{"$f":"'A. Population Info'!I419","v":0},{"$f":"'A. Population Info'!J419","v":0},{"$f":"'A. Population Info'!K419","v":0},{"$f":"VLOOKUP(B:B,OFFSET('B. PoF Adj Factor Scoring'!$E$5:$F$282,,MATCH(G$4,'B. PoF Adj Factor Scoring'!$E$3:$N$3,0)-1),2,TRUE)","v":1},{"$f":"VLOOKUP(C:C,OFFSET('B. PoF Adj Factor Scoring'!$E$5:$F$282,,MATCH(H$4,'B. PoF Adj Factor Scoring'!$E$3:$N$3,0)-1),2,TRUE)","v":1},{"$f":"VLOOKUP(D:D,OFFSET('B. PoF Adj Factor Scoring'!$E$5:$F$282,,MATCH(I$4,'B. PoF Adj Factor Scoring'!$E$3:$N$3,0)-1),2,TRUE)","v":1},{"$f":"VLOOKUP(E:E,OFFSET('B. PoF Adj Factor Scoring'!$E$5:$F$282,,MATCH(J$4,'B. PoF Adj Factor Scoring'!$E$3:$N$3,0)-1),2,TRUE)","v":1},{"$f":"VLOOKUP(F:F,OFFSET('B. PoF Adj Factor Scoring'!$E$5:$F$282,,MATCH(K$4,'B. PoF Adj Factor Scoring'!$E$3:$N$3,0)-1),2,TRUE)","v":1}]
[{"$f":"'A. Population Info'!A420","v":1000410375},{"$f":"'A. Population Info'!G420","v":"OIL"},{"$f":"'A. Population Info'!H420","v":3},{"$f":"'A. Population Info'!I420","v":0},{"$f":"'A. Population Info'!J420","v":0},{"$f":"'A. Population Info'!K420","v":0},{"$f":"VLOOKUP(B:B,OFFSET('B. PoF Adj Factor Scoring'!$E$5:$F$282,,MATCH(G$4,'B. PoF Adj Factor Scoring'!$E$3:$N$3,0)-1),2,TRUE)","v":1},{"$f":"VLOOKUP(C:C,OFFSET('B. PoF Adj Factor Scoring'!$E$5:$F$282,,MATCH(H$4,'B. PoF Adj Factor Scoring'!$E$3:$N$3,0)-1),2,TRUE)","v":3},{"$f":"VLOOKUP(D:D,OFFSET('B. PoF Adj Factor Scoring'!$E$5:$F$282,,MATCH(I$4,'B. PoF Adj Factor Scoring'!$E$3:$N$3,0)-1),2,TRUE)","v":1},{"$f":"VLOOKUP(E:E,OFFSET('B. PoF Adj Factor Scoring'!$E$5:$F$282,,MATCH(J$4,'B. PoF Adj Factor Scoring'!$E$3:$N$3,0)-1),2,TRUE)","v":1},{"$f":"VLOOKUP(F:F,OFFSET('B. PoF Adj Factor Scoring'!$E$5:$F$282,,MATCH(K$4,'B. PoF Adj Factor Scoring'!$E$3:$N$3,0)-1),2,TRUE)","v":1}]
[{"$f":"'A. Population Info'!A421","v":1000410401},{"$f":"'A. Population Info'!G421","v":"OIL"},{"$f":"'A. Population Info'!H421","v":4},{"$f":"'A. Population Info'!I421","v":1100},{"$f":"'A. Population Info'!J421","v":0},{"$f":"'A. Population Info'!K421","v":0},{"$f":"VLOOKUP(B:B,OFFSET('B. PoF Adj Factor Scoring'!$E$5:$F$282,,MATCH(G$4,'B. PoF Adj Factor Scoring'!$E$3:$N$3,0)-1),2,TRUE)","v":1},{"$f":"VLOOKUP(C:C,OFFSET('B. PoF Adj Factor Scoring'!$E$5:$F$282,,MATCH(H$4,'B. PoF Adj Factor Scoring'!$E$3:$N$3,0)-1),2,TRUE)","v":4},{"$f":"VLOOKUP(D:D,OFFSET('B. PoF Adj Factor Scoring'!$E$5:$F$282,,MATCH(I$4,'B. PoF Adj Factor Scoring'!$E$3:$N$3,0)-1),2,TRUE)","v":2},{"$f":"VLOOKUP(E:E,OFFSET('B. PoF Adj Factor Scoring'!$E$5:$F$282,,MATCH(J$4,'B. PoF Adj Factor Scoring'!$E$3:$N$3,0)-1),2,TRUE)","v":1},{"$f":"VLOOKUP(F:F,OFFSET('B. PoF Adj Factor Scoring'!$E$5:$F$282,,MATCH(K$4,'B. PoF Adj Factor Scoring'!$E$3:$N$3,0)-1),2,TRUE)","v":1}]
[{"$f":"'A. Population Info'!A422","v":1000410465},{"$f":"'A. Population Info'!G422","v":"OIL"},{"$f":"'A. Population Info'!H422","v":2},{"$f":"'A. Population Info'!I422","v":0},{"$f":"'A. Population Info'!J422","v":0},{"$f":"'A. Population Info'!K422","v":0},{"$f":"VLOOKUP(B:B,OFFSET('B. PoF Adj Factor Scoring'!$E$5:$F$282,,MATCH(G$4,'B. PoF Adj Factor Scoring'!$E$3:$N$3,0)-1),2,TRUE)","v":1},{"$f":"VLOOKUP(C:C,OFFSET('B. PoF Adj Factor Scoring'!$E$5:$F$282,,MATCH(H$4,'B. PoF Adj Factor Scoring'!$E$3:$N$3,0)-1),2,TRUE)","v":2},{"$f":"VLOOKUP(D:D,OFFSET('B. PoF Adj Factor Scoring'!$E$5:$F$282,,MATCH(I$4,'B. PoF Adj Factor Scoring'!$E$3:$N$3,0)-1),2,TRUE)","v":1},{"$f":"VLOOKUP(E:E,OFFSET('B. PoF Adj Factor Scoring'!$E$5:$F$282,,MATCH(J$4,'B. PoF Adj Factor Scoring'!$E$3:$N$3,0)-1),2,TRUE)","v":1},{"$f":"VLOOKUP(F:F,OFFSET('B. PoF Adj Factor Scoring'!$E$5:$F$282,,MATCH(K$4,'B. PoF Adj Factor Scoring'!$E$3:$N$3,0)-1),2,TRUE)","v":1}]
[{"$f":"'A. Population Info'!A423","v":1000410481},{"$f":"'A. Population Info'!G423","v":"OIL"},{"$f":"'A. Population Info'!H423","v":3},{"$f":"'A. Population Info'!I423","v":150},{"$f":"'A. Population Info'!J423","v":0},{"$f":"'A. Population Info'!K423","v":0},{"$f":"VLOOKUP(B:B,OFFSET('B. PoF Adj Factor Scoring'!$E$5:$F$282,,MATCH(G$4,'B. PoF Adj Factor Scoring'!$E$3:$N$3,0)-1),2,TRUE)","v":1},{"$f":"VLOOKUP(C:C,OFFSET('B. PoF Adj Factor Scoring'!$E$5:$F$282,,MATCH(H$4,'B. PoF Adj Factor Scoring'!$E$3:$N$3,0)-1),2,TRUE)","v":3},{"$f":"VLOOKUP(D:D,OFFSET('B. PoF Adj Factor Scoring'!$E$5:$F$282,,MATCH(I$4,'B. PoF Adj Factor Scoring'!$E$3:$N$3,0)-1),2,TRUE)","v":1},{"$f":"VLOOKUP(E:E,OFFSET('B. PoF Adj Factor Scoring'!$E$5:$F$282,,MATCH(J$4,'B. PoF Adj Factor Scoring'!$E$3:$N$3,0)-1),2,TRUE)","v":1},{"$f":"VLOOKUP(F:F,OFFSET('B. PoF Adj Factor Scoring'!$E$5:$F$282,,MATCH(K$4,'B. PoF Adj Factor Scoring'!$E$3:$N$3,0)-1),2,TRUE)","v":1}]
[{"$f":"'A. Population Info'!A424","v":1000410502},{"$f":"'A. Population Info'!G424","v":"OIL"},{"$f":"'A. Population Info'!H424","v":2},{"$f":"'A. Population Info'!I424","v":0},{"$f":"'A. Population Info'!J424","v":0},{"$f":"'A. Population Info'!K424","v":0},{"$f":"VLOOKUP(B:B,OFFSET('B. PoF Adj Factor Scoring'!$E$5:$F$282,,MATCH(G$4,'B. PoF Adj Factor Scoring'!$E$3:$N$3,0)-1),2,TRUE)","v":1},{"$f":"VLOOKUP(C:C,OFFSET('B. PoF Adj Factor Scoring'!$E$5:$F$282,,MATCH(H$4,'B. PoF Adj Factor Scoring'!$E$3:$N$3,0)-1),2,TRUE)","v":2},{"$f":"VLOOKUP(D:D,OFFSET('B. PoF Adj Factor Scoring'!$E$5:$F$282,,MATCH(I$4,'B. PoF Adj Factor Scoring'!$E$3:$N$3,0)-1),2,TRUE)","v":1},{"$f":"VLOOKUP(E:E,OFFSET('B. PoF Adj Factor Scoring'!$E$5:$F$282,,MATCH(J$4,'B. PoF Adj Factor Scoring'!$E$3:$N$3,0)-1),2,TRUE)","v":1},{"$f":"VLOOKUP(F:F,OFFSET('B. PoF Adj Factor Scoring'!$E$5:$F$282,,MATCH(K$4,'B. PoF Adj Factor Scoring'!$E$3:$N$3,0)-1),2,TRUE)","v":1}]
[{"$f":"'A. Population Info'!A425","v":1000410528},{"$f":"'A. Population Info'!G425","v":"OIL"},{"$f":"'A. Population Info'!H425","v":1},{"$f":"'A. Population Info'!I425","v":0},{"$f":"'A. Population Info'!J425","v":0},{"$f":"'A. Population Info'!K425","v":0},{"$f":"VLOOKUP(B:B,OFFSET('B. PoF Adj Factor Scoring'!$E$5:$F$282,,MATCH(G$4,'B. PoF Adj Factor Scoring'!$E$3:$N$3,0)-1),2,TRUE)","v":1},{"$f":"VLOOKUP(C:C,OFFSET('B. PoF Adj Factor Scoring'!$E$5:$F$282,,MATCH(H$4,'B. PoF Adj Factor Scoring'!$E$3:$N$3,0)-1),2,TRUE)","v":1},{"$f":"VLOOKUP(D:D,OFFSET('B. PoF Adj Factor Scoring'!$E$5:$F$282,,MATCH(I$4,'B. PoF Adj Factor Scoring'!$E$3:$N$3,0)-1),2,TRUE)","v":1},{"$f":"VLOOKUP(E:E,OFFSET('B. PoF Adj Factor Scoring'!$E$5:$F$282,,MATCH(J$4,'B. PoF Adj Factor Scoring'!$E$3:$N$3,0)-1),2,TRUE)","v":1},{"$f":"VLOOKUP(F:F,OFFSET('B. PoF Adj Factor Scoring'!$E$5:$F$282,,MATCH(K$4,'B. PoF Adj Factor Scoring'!$E$3:$N$3,0)-1),2,TRUE)","v":1}]
[{"$f":"'A. Population Info'!A426","v":1000410663},{"$f":"'A. Population Info'!G426","v":"OIL"},{"$f":"'A. Population Info'!H426","v":1},{"$f":"'A. Population Info'!I426","v":0},{"$f":"'A. Population Info'!J426","v":0},{"$f":"'A. Population Info'!K426","v":0},{"$f":"VLOOKUP(B:B,OFFSET('B. PoF Adj Factor Scoring'!$E$5:$F$282,,MATCH(G$4,'B. PoF Adj Factor Scoring'!$E$3:$N$3,0)-1),2,TRUE)","v":1},{"$f":"VLOOKUP(C:C,OFFSET('B. PoF Adj Factor Scoring'!$E$5:$F$282,,MATCH(H$4,'B. PoF Adj Factor Scoring'!$E$3:$N$3,0)-1),2,TRUE)","v":1},{"$f":"VLOOKUP(D:D,OFFSET('B. PoF Adj Factor Scoring'!$E$5:$F$282,,MATCH(I$4,'B. PoF Adj Factor Scoring'!$E$3:$N$3,0)-1),2,TRUE)","v":1},{"$f":"VLOOKUP(E:E,OFFSET('B. PoF Adj Factor Scoring'!$E$5:$F$282,,MATCH(J$4,'B. PoF Adj Factor Scoring'!$E$3:$N$3,0)-1),2,TRUE)","v":1},{"$f":"VLOOKUP(F:F,OFFSET('B. PoF Adj Factor Scoring'!$E$5:$F$282,,MATCH(K$4,'B. PoF Adj Factor Scoring'!$E$3:$N$3,0)-1),2,TRUE)","v":1}]
[{"$f":"'A. Population Info'!A427","v":1000410716},{"$f":"'A. Population Info'!G427","v":"OIL"},{"$f":"'A. Population Info'!H427","v":2},{"$f":"'A. Population Info'!I427","v":0},{"$f":"'A. Population Info'!J427","v":0},{"$f":"'A. Population Info'!K427","v":0},{"$f":"VLOOKUP(B:B,OFFSET('B. PoF Adj Factor Scoring'!$E$5:$F$282,,MATCH(G$4,'B. PoF Adj Factor Scoring'!$E$3:$N$3,0)-1),2,TRUE)","v":1},{"$f":"VLOOKUP(C:C,OFFSET('B. PoF Adj Factor Scoring'!$E$5:$F$282,,MATCH(H$4,'B. PoF Adj Factor Scoring'!$E$3:$N$3,0)-1),2,TRUE)","v":2},{"$f":"VLOOKUP(D:D,OFFSET('B. PoF Adj Factor Scoring'!$E$5:$F$282,,MATCH(I$4,'B. PoF Adj Factor Scoring'!$E$3:$N$3,0)-1),2,TRUE)","v":1},{"$f":"VLOOKUP(E:E,OFFSET('B. PoF Adj Factor Scoring'!$E$5:$F$282,,MATCH(J$4,'B. PoF Adj Factor Scoring'!$E$3:$N$3,0)-1),2,TRUE)","v":1},{"$f":"VLOOKUP(F:F,OFFSET('B. PoF Adj Factor Scoring'!$E$5:$F$282,,MATCH(K$4,'B. PoF Adj Factor Scoring'!$E$3:$N$3,0)-1),2,TRUE)","v":1}]
[{"$f":"'A. Population Info'!A428","v":1000410735},{"$f":"'A. Population Info'!G428","v":"OIL"},{"$f":"'A. Population Info'!H428","v":2},{"$f":"'A. Population Info'!I428","v":0},{"$f":"'A. Population Info'!J428","v":0},{"$f":"'A. Population Info'!K428","v":0},{"$f":"VLOOKUP(B:B,OFFSET('B. PoF Adj Factor Scoring'!$E$5:$F$282,,MATCH(G$4,'B. PoF Adj Factor Scoring'!$E$3:$N$3,0)-1),2,TRUE)","v":1},{"$f":"VLOOKUP(C:C,OFFSET('B. PoF Adj Factor Scoring'!$E$5:$F$282,,MATCH(H$4,'B. PoF Adj Factor Scoring'!$E$3:$N$3,0)-1),2,TRUE)","v":2},{"$f":"VLOOKUP(D:D,OFFSET('B. PoF Adj Factor Scoring'!$E$5:$F$282,,MATCH(I$4,'B. PoF Adj Factor Scoring'!$E$3:$N$3,0)-1),2,TRUE)","v":1},{"$f":"VLOOKUP(E:E,OFFSET('B. PoF Adj Factor Scoring'!$E$5:$F$282,,MATCH(J$4,'B. PoF Adj Factor Scoring'!$E$3:$N$3,0)-1),2,TRUE)","v":1},{"$f":"VLOOKUP(F:F,OFFSET('B. PoF Adj Factor Scoring'!$E$5:$F$282,,MATCH(K$4,'B. PoF Adj Factor Scoring'!$E$3:$N$3,0)-1),2,TRUE)","v":1}]
[{"$f":"'A. Population Info'!A429","v":1000410772},{"$f":"'A. Population Info'!G429","v":"OIL"},{"$f":"'A. Population Info'!H429","v":1},{"$f":"'A. Population Info'!I429","v":0},{"$f":"'A. Population Info'!J429","v":0},{"$f":"'A. Population Info'!K429","v":0},{"$f":"VLOOKUP(B:B,OFFSET('B. PoF Adj Factor Scoring'!$E$5:$F$282,,MATCH(G$4,'B. PoF Adj Factor Scoring'!$E$3:$N$3,0)-1),2,TRUE)","v":1},{"$f":"VLOOKUP(C:C,OFFSET('B. PoF Adj Factor Scoring'!$E$5:$F$282,,MATCH(H$4,'B. PoF Adj Factor Scoring'!$E$3:$N$3,0)-1),2,TRUE)","v":1},{"$f":"VLOOKUP(D:D,OFFSET('B. PoF Adj Factor Scoring'!$E$5:$F$282,,MATCH(I$4,'B. PoF Adj Factor Scoring'!$E$3:$N$3,0)-1),2,TRUE)","v":1},{"$f":"VLOOKUP(E:E,OFFSET('B. PoF Adj Factor Scoring'!$E$5:$F$282,,MATCH(J$4,'B. PoF Adj Factor Scoring'!$E$3:$N$3,0)-1),2,TRUE)","v":1},{"$f":"VLOOKUP(F:F,OFFSET('B. PoF Adj Factor Scoring'!$E$5:$F$282,,MATCH(K$4,'B. PoF Adj Factor Scoring'!$E$3:$N$3,0)-1),2,TRUE)","v":1}]
[{"$f":"'A. Population Info'!A430","v":1000410800},{"$f":"'A. Population Info'!G430","v":"OIL"},{"$f":"'A. Population Info'!H430","v":1},{"$f":"'A. Population Info'!I430","v":0},{"$f":"'A. Population Info'!J430","v":0},{"$f":"'A. Population Info'!K430","v":0},{"$f":"VLOOKUP(B:B,OFFSET('B. PoF Adj Factor Scoring'!$E$5:$F$282,,MATCH(G$4,'B. PoF Adj Factor Scoring'!$E$3:$N$3,0)-1),2,TRUE)","v":1},{"$f":"VLOOKUP(C:C,OFFSET('B. PoF Adj Factor Scoring'!$E$5:$F$282,,MATCH(H$4,'B. PoF Adj Factor Scoring'!$E$3:$N$3,0)-1),2,TRUE)","v":1},{"$f":"VLOOKUP(D:D,OFFSET('B. PoF Adj Factor Scoring'!$E$5:$F$282,,MATCH(I$4,'B. PoF Adj Factor Scoring'!$E$3:$N$3,0)-1),2,TRUE)","v":1},{"$f":"VLOOKUP(E:E,OFFSET('B. PoF Adj Factor Scoring'!$E$5:$F$282,,MATCH(J$4,'B. PoF Adj Factor Scoring'!$E$3:$N$3,0)-1),2,TRUE)","v":1},{"$f":"VLOOKUP(F:F,OFFSET('B. PoF Adj Factor Scoring'!$E$5:$F$282,,MATCH(K$4,'B. PoF Adj Factor Scoring'!$E$3:$N$3,0)-1),2,TRUE)","v":1}]
[{"$f":"'A. Population Info'!A431","v":1000410871},{"$f":"'A. Population Info'!G431","v":"OIL"},{"$f":"'A. Population Info'!H431","v":1},{"$f":"'A. Population Info'!I431","v":650},{"$f":"'A. Population Info'!J431","v":0},{"$f":"'A. Population Info'!K431","v":0},{"$f":"VLOOKUP(B:B,OFFSET('B. PoF Adj Factor Scoring'!$E$5:$F$282,,MATCH(G$4,'B. PoF Adj Factor Scoring'!$E$3:$N$3,0)-1),2,TRUE)","v":1},{"$f":"VLOOKUP(C:C,OFFSET('B. PoF Adj Factor Scoring'!$E$5:$F$282,,MATCH(H$4,'B. PoF Adj Factor Scoring'!$E$3:$N$3,0)-1),2,TRUE)","v":1},{"$f":"VLOOKUP(D:D,OFFSET('B. PoF Adj Factor Scoring'!$E$5:$F$282,,MATCH(I$4,'B. PoF Adj Factor Scoring'!$E$3:$N$3,0)-1),2,TRUE)","v":1},{"$f":"VLOOKUP(E:E,OFFSET('B. PoF Adj Factor Scoring'!$E$5:$F$282,,MATCH(J$4,'B. PoF Adj Factor Scoring'!$E$3:$N$3,0)-1),2,TRUE)","v":1},{"$f":"VLOOKUP(F:F,OFFSET('B. PoF Adj Factor Scoring'!$E$5:$F$282,,MATCH(K$4,'B. PoF Adj Factor Scoring'!$E$3:$N$3,0)-1),2,TRUE)","v":1}]
[{"$f":"'A. Population Info'!A432","v":1000410892},{"$f":"'A. Population Info'!G432","v":"OIL"},{"$f":"'A. Population Info'!H432","v":3},{"$f":"'A. Population Info'!I432","v":0},{"$f":"'A. Population Info'!J432","v":0},{"$f":"'A. Population Info'!K432","v":0},{"$f":"VLOOKUP(B:B,OFFSET('B. PoF Adj Factor Scoring'!$E$5:$F$282,,MATCH(G$4,'B. PoF Adj Factor Scoring'!$E$3:$N$3,0)-1),2,TRUE)","v":1},{"$f":"VLOOKUP(C:C,OFFSET('B. PoF Adj Factor Scoring'!$E$5:$F$282,,MATCH(H$4,'B. PoF Adj Factor Scoring'!$E$3:$N$3,0)-1),2,TRUE)","v":3},{"$f":"VLOOKUP(D:D,OFFSET('B. PoF Adj Factor Scoring'!$E$5:$F$282,,MATCH(I$4,'B. PoF Adj Factor Scoring'!$E$3:$N$3,0)-1),2,TRUE)","v":1},{"$f":"VLOOKUP(E:E,OFFSET('B. PoF Adj Factor Scoring'!$E$5:$F$282,,MATCH(J$4,'B. PoF Adj Factor Scoring'!$E$3:$N$3,0)-1),2,TRUE)","v":1},{"$f":"VLOOKUP(F:F,OFFSET('B. PoF Adj Factor Scoring'!$E$5:$F$282,,MATCH(K$4,'B. PoF Adj Factor Scoring'!$E$3:$N$3,0)-1),2,TRUE)","v":1}]
[{"$f":"'A. Population Info'!A433","v":1000412867},{"$f":"'A. Population Info'!G433","v":"OIL"},{"$f":"'A. Population Info'!H433","v":1},{"$f":"'A. Population Info'!I433","v":0},{"$f":"'A. Population Info'!J433","v":0},{"$f":"'A. Population Info'!K433","v":0},{"$f":"VLOOKUP(B:B,OFFSET('B. PoF Adj Factor Scoring'!$E$5:$F$282,,MATCH(G$4,'B. PoF Adj Factor Scoring'!$E$3:$N$3,0)-1),2,TRUE)","v":1},{"$f":"VLOOKUP(C:C,OFFSET('B. PoF Adj Factor Scoring'!$E$5:$F$282,,MATCH(H$4,'B. PoF Adj Factor Scoring'!$E$3:$N$3,0)-1),2,TRUE)","v":1},{"$f":"VLOOKUP(D:D,OFFSET('B. PoF Adj Factor Scoring'!$E$5:$F$282,,MATCH(I$4,'B. PoF Adj Factor Scoring'!$E$3:$N$3,0)-1),2,TRUE)","v":1},{"$f":"VLOOKUP(E:E,OFFSET('B. PoF Adj Factor Scoring'!$E$5:$F$282,,MATCH(J$4,'B. PoF Adj Factor Scoring'!$E$3:$N$3,0)-1),2,TRUE)","v":1},{"$f":"VLOOKUP(F:F,OFFSET('B. PoF Adj Factor Scoring'!$E$5:$F$282,,MATCH(K$4,'B. PoF Adj Factor Scoring'!$E$3:$N$3,0)-1),2,TRUE)","v":1}]
[{"$f":"'A. Population Info'!A434","v":1000412871},{"$f":"'A. Population Info'!G434","v":"OIL"},{"$f":"'A. Population Info'!H434","v":2},{"$f":"'A. Population Info'!I434","v":0},{"$f":"'A. Population Info'!J434","v":0},{"$f":"'A. Population Info'!K434","v":0},{"$f":"VLOOKUP(B:B,OFFSET('B. PoF Adj Factor Scoring'!$E$5:$F$282,,MATCH(G$4,'B. PoF Adj Factor Scoring'!$E$3:$N$3,0)-1),2,TRUE)","v":1},{"$f":"VLOOKUP(C:C,OFFSET('B. PoF Adj Factor Scoring'!$E$5:$F$282,,MATCH(H$4,'B. PoF Adj Factor Scoring'!$E$3:$N$3,0)-1),2,TRUE)","v":2},{"$f":"VLOOKUP(D:D,OFFSET('B. PoF Adj Factor Scoring'!$E$5:$F$282,,MATCH(I$4,'B. PoF Adj Factor Scoring'!$E$3:$N$3,0)-1),2,TRUE)","v":1},{"$f":"VLOOKUP(E:E,OFFSET('B. PoF Adj Factor Scoring'!$E$5:$F$282,,MATCH(J$4,'B. PoF Adj Factor Scoring'!$E$3:$N$3,0)-1),2,TRUE)","v":1},{"$f":"VLOOKUP(F:F,OFFSET('B. PoF Adj Factor Scoring'!$E$5:$F$282,,MATCH(K$4,'B. PoF Adj Factor Scoring'!$E$3:$N$3,0)-1),2,TRUE)","v":1}]
[{"$f":"'A. Population Info'!A435","v":1000412875},{"$f":"'A. Population Info'!G435","v":"OIL"},{"$f":"'A. Population Info'!H435","v":1},{"$f":"'A. Population Info'!I435","v":0},{"$f":"'A. Population Info'!J435","v":0},{"$f":"'A. Population Info'!K435","v":0},{"$f":"VLOOKUP(B:B,OFFSET('B. PoF Adj Factor Scoring'!$E$5:$F$282,,MATCH(G$4,'B. PoF Adj Factor Scoring'!$E$3:$N$3,0)-1),2,TRUE)","v":1},{"$f":"VLOOKUP(C:C,OFFSET('B. PoF Adj Factor Scoring'!$E$5:$F$282,,MATCH(H$4,'B. PoF Adj Factor Scoring'!$E$3:$N$3,0)-1),2,TRUE)","v":1},{"$f":"VLOOKUP(D:D,OFFSET('B. PoF Adj Factor Scoring'!$E$5:$F$282,,MATCH(I$4,'B. PoF Adj Factor Scoring'!$E$3:$N$3,0)-1),2,TRUE)","v":1},{"$f":"VLOOKUP(E:E,OFFSET('B. PoF Adj Factor Scoring'!$E$5:$F$282,,MATCH(J$4,'B. PoF Adj Factor Scoring'!$E$3:$N$3,0)-1),2,TRUE)","v":1},{"$f":"VLOOKUP(F:F,OFFSET('B. PoF Adj Factor Scoring'!$E$5:$F$282,,MATCH(K$4,'B. PoF Adj Factor Scoring'!$E$3:$N$3,0)-1),2,TRUE)","v":1}]
[{"$f":"'A. Population Info'!A436","v":1000414952},{"$f":"'A. Population Info'!G436","v":"OIL"},{"$f":"'A. Population Info'!H436","v":1},{"$f":"'A. Population Info'!I436","v":0},{"$f":"'A. Population Info'!J436","v":0},{"$f":"'A. Population Info'!K436","v":0},{"$f":"VLOOKUP(B:B,OFFSET('B. PoF Adj Factor Scoring'!$E$5:$F$282,,MATCH(G$4,'B. PoF Adj Factor Scoring'!$E$3:$N$3,0)-1),2,TRUE)","v":1},{"$f":"VLOOKUP(C:C,OFFSET('B. PoF Adj Factor Scoring'!$E$5:$F$282,,MATCH(H$4,'B. PoF Adj Factor Scoring'!$E$3:$N$3,0)-1),2,TRUE)","v":1},{"$f":"VLOOKUP(D:D,OFFSET('B. PoF Adj Factor Scoring'!$E$5:$F$282,,MATCH(I$4,'B. PoF Adj Factor Scoring'!$E$3:$N$3,0)-1),2,TRUE)","v":1},{"$f":"VLOOKUP(E:E,OFFSET('B. PoF Adj Factor Scoring'!$E$5:$F$282,,MATCH(J$4,'B. PoF Adj Factor Scoring'!$E$3:$N$3,0)-1),2,TRUE)","v":1},{"$f":"VLOOKUP(F:F,OFFSET('B. PoF Adj Factor Scoring'!$E$5:$F$282,,MATCH(K$4,'B. PoF Adj Factor Scoring'!$E$3:$N$3,0)-1),2,TRUE)","v":1}]
[{"$f":"'A. Population Info'!A437","v":1000414953},{"$f":"'A. Population Info'!G437","v":"OIL"},{"$f":"'A. Population Info'!H437","v":1},{"$f":"'A. Population Info'!I437","v":0},{"$f":"'A. Population Info'!J437","v":0},{"$f":"'A. Population Info'!K437","v":0},{"$f":"VLOOKUP(B:B,OFFSET('B. PoF Adj Factor Scoring'!$E$5:$F$282,,MATCH(G$4,'B. PoF Adj Factor Scoring'!$E$3:$N$3,0)-1),2,TRUE)","v":1},{"$f":"VLOOKUP(C:C,OFFSET('B. PoF Adj Factor Scoring'!$E$5:$F$282,,MATCH(H$4,'B. PoF Adj Factor Scoring'!$E$3:$N$3,0)-1),2,TRUE)","v":1},{"$f":"VLOOKUP(D:D,OFFSET('B. PoF Adj Factor Scoring'!$E$5:$F$282,,MATCH(I$4,'B. PoF Adj Factor Scoring'!$E$3:$N$3,0)-1),2,TRUE)","v":1},{"$f":"VLOOKUP(E:E,OFFSET('B. PoF Adj Factor Scoring'!$E$5:$F$282,,MATCH(J$4,'B. PoF Adj Factor Scoring'!$E$3:$N$3,0)-1),2,TRUE)","v":1},{"$f":"VLOOKUP(F:F,OFFSET('B. PoF Adj Factor Scoring'!$E$5:$F$282,,MATCH(K$4,'B. PoF Adj Factor Scoring'!$E$3:$N$3,0)-1),2,TRUE)","v":1}]
[{"$f":"'A. Population Info'!A438","v":1001423014},{"$f":"'A. Population Info'!G438","v":"OIL"},{"$f":"'A. Population Info'!H438","v":1},{"$f":"'A. Population Info'!I438","v":0},{"$f":"'A. Population Info'!J438","v":0},{"$f":"'A. Population Info'!K438","v":0},{"$f":"VLOOKUP(B:B,OFFSET('B. PoF Adj Factor Scoring'!$E$5:$F$282,,MATCH(G$4,'B. PoF Adj Factor Scoring'!$E$3:$N$3,0)-1),2,TRUE)","v":1},{"$f":"VLOOKUP(C:C,OFFSET('B. PoF Adj Factor Scoring'!$E$5:$F$282,,MATCH(H$4,'B. PoF Adj Factor Scoring'!$E$3:$N$3,0)-1),2,TRUE)","v":1},{"$f":"VLOOKUP(D:D,OFFSET('B. PoF Adj Factor Scoring'!$E$5:$F$282,,MATCH(I$4,'B. PoF Adj Factor Scoring'!$E$3:$N$3,0)-1),2,TRUE)","v":1},{"$f":"VLOOKUP(E:E,OFFSET('B. PoF Adj Factor Scoring'!$E$5:$F$282,,MATCH(J$4,'B. PoF Adj Factor Scoring'!$E$3:$N$3,0)-1),2,TRUE)","v":1},{"$f":"VLOOKUP(F:F,OFFSET('B. PoF Adj Factor Scoring'!$E$5:$F$282,,MATCH(K$4,'B. PoF Adj Factor Scoring'!$E$3:$N$3,0)-1),2,TRUE)","v":1}]
[{"$f":"'A. Population Info'!A439","v":1001433025},{"$f":"'A. Population Info'!G439","v":"OIL"},{"$f":"'A. Population Info'!H439","v":1},{"$f":"'A. Population Info'!I439","v":0},{"$f":"'A. Population Info'!J439","v":0},{"$f":"'A. Population Info'!K439","v":0},{"$f":"VLOOKUP(B:B,OFFSET('B. PoF Adj Factor Scoring'!$E$5:$F$282,,MATCH(G$4,'B. PoF Adj Factor Scoring'!$E$3:$N$3,0)-1),2,TRUE)","v":1},{"$f":"VLOOKUP(C:C,OFFSET('B. PoF Adj Factor Scoring'!$E$5:$F$282,,MATCH(H$4,'B. PoF Adj Factor Scoring'!$E$3:$N$3,0)-1),2,TRUE)","v":1},{"$f":"VLOOKUP(D:D,OFFSET('B. PoF Adj Factor Scoring'!$E$5:$F$282,,MATCH(I$4,'B. PoF Adj Factor Scoring'!$E$3:$N$3,0)-1),2,TRUE)","v":1},{"$f":"VLOOKUP(E:E,OFFSET('B. PoF Adj Factor Scoring'!$E$5:$F$282,,MATCH(J$4,'B. PoF Adj Factor Scoring'!$E$3:$N$3,0)-1),2,TRUE)","v":1},{"$f":"VLOOKUP(F:F,OFFSET('B. PoF Adj Factor Scoring'!$E$5:$F$282,,MATCH(K$4,'B. PoF Adj Factor Scoring'!$E$3:$N$3,0)-1),2,TRUE)","v":1}]
[{"$f":"'A. Population Info'!A440","v":1001433198},{"$f":"'A. Population Info'!G440","v":"OIL"},{"$f":"'A. Population Info'!H440","v":1},{"$f":"'A. Population Info'!I440","v":0},{"$f":"'A. Population Info'!J440","v":0},{"$f":"'A. Population Info'!K440","v":0},{"$f":"VLOOKUP(B:B,OFFSET('B. PoF Adj Factor Scoring'!$E$5:$F$282,,MATCH(G$4,'B. PoF Adj Factor Scoring'!$E$3:$N$3,0)-1),2,TRUE)","v":1},{"$f":"VLOOKUP(C:C,OFFSET('B. PoF Adj Factor Scoring'!$E$5:$F$282,,MATCH(H$4,'B. PoF Adj Factor Scoring'!$E$3:$N$3,0)-1),2,TRUE)","v":1},{"$f":"VLOOKUP(D:D,OFFSET('B. PoF Adj Factor Scoring'!$E$5:$F$282,,MATCH(I$4,'B. PoF Adj Factor Scoring'!$E$3:$N$3,0)-1),2,TRUE)","v":1},{"$f":"VLOOKUP(E:E,OFFSET('B. PoF Adj Factor Scoring'!$E$5:$F$282,,MATCH(J$4,'B. PoF Adj Factor Scoring'!$E$3:$N$3,0)-1),2,TRUE)","v":1},{"$f":"VLOOKUP(F:F,OFFSET('B. PoF Adj Factor Scoring'!$E$5:$F$282,,MATCH(K$4,'B. PoF Adj Factor Scoring'!$E$3:$N$3,0)-1),2,TRUE)","v":1}]
[{"$f":"'A. Population Info'!A441","v":1001435539},{"$f":"'A. Population Info'!G441","v":"OIL"},{"$f":"'A. Population Info'!H441","v":1},{"$f":"'A. Population Info'!I441","v":0},{"$f":"'A. Population Info'!J441","v":0},{"$f":"'A. Population Info'!K441","v":0},{"$f":"VLOOKUP(B:B,OFFSET('B. PoF Adj Factor Scoring'!$E$5:$F$282,,MATCH(G$4,'B. PoF Adj Factor Scoring'!$E$3:$N$3,0)-1),2,TRUE)","v":1},{"$f":"VLOOKUP(C:C,OFFSET('B. PoF Adj Factor Scoring'!$E$5:$F$282,,MATCH(H$4,'B. PoF Adj Factor Scoring'!$E$3:$N$3,0)-1),2,TRUE)","v":1},{"$f":"VLOOKUP(D:D,OFFSET('B. PoF Adj Factor Scoring'!$E$5:$F$282,,MATCH(I$4,'B. PoF Adj Factor Scoring'!$E$3:$N$3,0)-1),2,TRUE)","v":1},{"$f":"VLOOKUP(E:E,OFFSET('B. PoF Adj Factor Scoring'!$E$5:$F$282,,MATCH(J$4,'B. PoF Adj Factor Scoring'!$E$3:$N$3,0)-1),2,TRUE)","v":1},{"$f":"VLOOKUP(F:F,OFFSET('B. PoF Adj Factor Scoring'!$E$5:$F$282,,MATCH(K$4,'B. PoF Adj Factor Scoring'!$E$3:$N$3,0)-1),2,TRUE)","v":1}]
[{"$f":"'A. Population Info'!A442","v":1001435540},{"$f":"'A. Population Info'!G442","v":"OIL"},{"$f":"'A. Population Info'!H442","v":1},{"$f":"'A. Population Info'!I442","v":0},{"$f":"'A. Population Info'!J442","v":0},{"$f":"'A. Population Info'!K442","v":0},{"$f":"VLOOKUP(B:B,OFFSET('B. PoF Adj Factor Scoring'!$E$5:$F$282,,MATCH(G$4,'B. PoF Adj Factor Scoring'!$E$3:$N$3,0)-1),2,TRUE)","v":1},{"$f":"VLOOKUP(C:C,OFFSET('B. PoF Adj Factor Scoring'!$E$5:$F$282,,MATCH(H$4,'B. PoF Adj Factor Scoring'!$E$3:$N$3,0)-1),2,TRUE)","v":1},{"$f":"VLOOKUP(D:D,OFFSET('B. PoF Adj Factor Scoring'!$E$5:$F$282,,MATCH(I$4,'B. PoF Adj Factor Scoring'!$E$3:$N$3,0)-1),2,TRUE)","v":1},{"$f":"VLOOKUP(E:E,OFFSET('B. PoF Adj Factor Scoring'!$E$5:$F$282,,MATCH(J$4,'B. PoF Adj Factor Scoring'!$E$3:$N$3,0)-1),2,TRUE)","v":1},{"$f":"VLOOKUP(F:F,OFFSET('B. PoF Adj Factor Scoring'!$E$5:$F$282,,MATCH(K$4,'B. PoF Adj Factor Scoring'!$E$3:$N$3,0)-1),2,TRUE)","v":1}]
[{"$f":"'A. Population Info'!A443","v":1001440620},{"$f":"'A. Population Info'!G443","v":"OIL"},{"$f":"'A. Population Info'!H443","v":3},{"$f":"'A. Population Info'!I443","v":0},{"$f":"'A. Population Info'!J443","v":0},{"$f":"'A. Population Info'!K443","v":0},{"$f":"VLOOKUP(B:B,OFFSET('B. PoF Adj Factor Scoring'!$E$5:$F$282,,MATCH(G$4,'B. PoF Adj Factor Scoring'!$E$3:$N$3,0)-1),2,TRUE)","v":1},{"$f":"VLOOKUP(C:C,OFFSET('B. PoF Adj Factor Scoring'!$E$5:$F$282,,MATCH(H$4,'B. PoF Adj Factor Scoring'!$E$3:$N$3,0)-1),2,TRUE)","v":3},{"$f":"VLOOKUP(D:D,OFFSET('B. PoF Adj Factor Scoring'!$E$5:$F$282,,MATCH(I$4,'B. PoF Adj Factor Scoring'!$E$3:$N$3,0)-1),2,TRUE)","v":1},{"$f":"VLOOKUP(E:E,OFFSET('B. PoF Adj Factor Scoring'!$E$5:$F$282,,MATCH(J$4,'B. PoF Adj Factor Scoring'!$E$3:$N$3,0)-1),2,TRUE)","v":1},{"$f":"VLOOKUP(F:F,OFFSET('B. PoF Adj Factor Scoring'!$E$5:$F$282,,MATCH(K$4,'B. PoF Adj Factor Scoring'!$E$3:$N$3,0)-1),2,TRUE)","v":1}]
[{"$f":"'A. Population Info'!A444","v":1001440621},{"$f":"'A. Population Info'!G444","v":"OIL"},{"$f":"'A. Population Info'!H444","v":1},{"$f":"'A. Population Info'!I444","v":0},{"$f":"'A. Population Info'!J444","v":0},{"$f":"'A. Population Info'!K444","v":0},{"$f":"VLOOKUP(B:B,OFFSET('B. PoF Adj Factor Scoring'!$E$5:$F$282,,MATCH(G$4,'B. PoF Adj Factor Scoring'!$E$3:$N$3,0)-1),2,TRUE)","v":1},{"$f":"VLOOKUP(C:C,OFFSET('B. PoF Adj Factor Scoring'!$E$5:$F$282,,MATCH(H$4,'B. PoF Adj Factor Scoring'!$E$3:$N$3,0)-1),2,TRUE)","v":1},{"$f":"VLOOKUP(D:D,OFFSET('B. PoF Adj Factor Scoring'!$E$5:$F$282,,MATCH(I$4,'B. PoF Adj Factor Scoring'!$E$3:$N$3,0)-1),2,TRUE)","v":1},{"$f":"VLOOKUP(E:E,OFFSET('B. PoF Adj Factor Scoring'!$E$5:$F$282,,MATCH(J$4,'B. PoF Adj Factor Scoring'!$E$3:$N$3,0)-1),2,TRUE)","v":1},{"$f":"VLOOKUP(F:F,OFFSET('B. PoF Adj Factor Scoring'!$E$5:$F$282,,MATCH(K$4,'B. PoF Adj Factor Scoring'!$E$3:$N$3,0)-1),2,TRUE)","v":1}]
[{"$f":"'A. Population Info'!A445","v":1001465327},{"$f":"'A. Population Info'!G445","v":"OIL"},{"$f":"'A. Population Info'!H445","v":1},{"$f":"'A. Population Info'!I445","v":0},{"$f":"'A. Population Info'!J445","v":0},{"$f":"'A. Population Info'!K445","v":0},{"$f":"VLOOKUP(B:B,OFFSET('B. PoF Adj Factor Scoring'!$E$5:$F$282,,MATCH(G$4,'B. PoF Adj Factor Scoring'!$E$3:$N$3,0)-1),2,TRUE)","v":1},{"$f":"VLOOKUP(C:C,OFFSET('B. PoF Adj Factor Scoring'!$E$5:$F$282,,MATCH(H$4,'B. PoF Adj Factor Scoring'!$E$3:$N$3,0)-1),2,TRUE)","v":1},{"$f":"VLOOKUP(D:D,OFFSET('B. PoF Adj Factor Scoring'!$E$5:$F$282,,MATCH(I$4,'B. PoF Adj Factor Scoring'!$E$3:$N$3,0)-1),2,TRUE)","v":1},{"$f":"VLOOKUP(E:E,OFFSET('B. PoF Adj Factor Scoring'!$E$5:$F$282,,MATCH(J$4,'B. PoF Adj Factor Scoring'!$E$3:$N$3,0)-1),2,TRUE)","v":1},{"$f":"VLOOKUP(F:F,OFFSET('B. PoF Adj Factor Scoring'!$E$5:$F$282,,MATCH(K$4,'B. PoF Adj Factor Scoring'!$E$3:$N$3,0)-1),2,TRUE)","v":1}]
[{"$f":"'A. Population Info'!A446","v":1001472087},{"$f":"'A. Population Info'!G446","v":"OIL"},{"$f":"'A. Population Info'!H446","v":2},{"$f":"'A. Population Info'!I446","v":0},{"$f":"'A. Population Info'!J446","v":0},{"$f":"'A. Population Info'!K446","v":0},{"$f":"VLOOKUP(B:B,OFFSET('B. PoF Adj Factor Scoring'!$E$5:$F$282,,MATCH(G$4,'B. PoF Adj Factor Scoring'!$E$3:$N$3,0)-1),2,TRUE)","v":1},{"$f":"VLOOKUP(C:C,OFFSET('B. PoF Adj Factor Scoring'!$E$5:$F$282,,MATCH(H$4,'B. PoF Adj Factor Scoring'!$E$3:$N$3,0)-1),2,TRUE)","v":2},{"$f":"VLOOKUP(D:D,OFFSET('B. PoF Adj Factor Scoring'!$E$5:$F$282,,MATCH(I$4,'B. PoF Adj Factor Scoring'!$E$3:$N$3,0)-1),2,TRUE)","v":1},{"$f":"VLOOKUP(E:E,OFFSET('B. PoF Adj Factor Scoring'!$E$5:$F$282,,MATCH(J$4,'B. PoF Adj Factor Scoring'!$E$3:$N$3,0)-1),2,TRUE)","v":1},{"$f":"VLOOKUP(F:F,OFFSET('B. PoF Adj Factor Scoring'!$E$5:$F$282,,MATCH(K$4,'B. PoF Adj Factor Scoring'!$E$3:$N$3,0)-1),2,TRUE)","v":1}]
[{"$f":"'A. Population Info'!A447","v":1001472088},{"$f":"'A. Population Info'!G447","v":"OIL"},{"$f":"'A. Population Info'!H447","v":1},{"$f":"'A. Population Info'!I447","v":0},{"$f":"'A. Population Info'!J447","v":0},{"$f":"'A. Population Info'!K447","v":0},{"$f":"VLOOKUP(B:B,OFFSET('B. PoF Adj Factor Scoring'!$E$5:$F$282,,MATCH(G$4,'B. PoF Adj Factor Scoring'!$E$3:$N$3,0)-1),2,TRUE)","v":1},{"$f":"VLOOKUP(C:C,OFFSET('B. PoF Adj Factor Scoring'!$E$5:$F$282,,MATCH(H$4,'B. PoF Adj Factor Scoring'!$E$3:$N$3,0)-1),2,TRUE)","v":1},{"$f":"VLOOKUP(D:D,OFFSET('B. PoF Adj Factor Scoring'!$E$5:$F$282,,MATCH(I$4,'B. PoF Adj Factor Scoring'!$E$3:$N$3,0)-1),2,TRUE)","v":1},{"$f":"VLOOKUP(E:E,OFFSET('B. PoF Adj Factor Scoring'!$E$5:$F$282,,MATCH(J$4,'B. PoF Adj Factor Scoring'!$E$3:$N$3,0)-1),2,TRUE)","v":1},{"$f":"VLOOKUP(F:F,OFFSET('B. PoF Adj Factor Scoring'!$E$5:$F$282,,MATCH(K$4,'B. PoF Adj Factor Scoring'!$E$3:$N$3,0)-1),2,TRUE)","v":1}]
[{"$f":"'A. Population Info'!A448","v":1001472089},{"$f":"'A. Population Info'!G448","v":"OIL"},{"$f":"'A. Population Info'!H448","v":1},{"$f":"'A. Population Info'!I448","v":0},{"$f":"'A. Population Info'!J448","v":0},{"$f":"'A. Population Info'!K448","v":0},{"$f":"VLOOKUP(B:B,OFFSET('B. PoF Adj Factor Scoring'!$E$5:$F$282,,MATCH(G$4,'B. PoF Adj Factor Scoring'!$E$3:$N$3,0)-1),2,TRUE)","v":1},{"$f":"VLOOKUP(C:C,OFFSET('B. PoF Adj Factor Scoring'!$E$5:$F$282,,MATCH(H$4,'B. PoF Adj Factor Scoring'!$E$3:$N$3,0)-1),2,TRUE)","v":1},{"$f":"VLOOKUP(D:D,OFFSET('B. PoF Adj Factor Scoring'!$E$5:$F$282,,MATCH(I$4,'B. PoF Adj Factor Scoring'!$E$3:$N$3,0)-1),2,TRUE)","v":1},{"$f":"VLOOKUP(E:E,OFFSET('B. PoF Adj Factor Scoring'!$E$5:$F$282,,MATCH(J$4,'B. PoF Adj Factor Scoring'!$E$3:$N$3,0)-1),2,TRUE)","v":1},{"$f":"VLOOKUP(F:F,OFFSET('B. PoF Adj Factor Scoring'!$E$5:$F$282,,MATCH(K$4,'B. PoF Adj Factor Scoring'!$E$3:$N$3,0)-1),2,TRUE)","v":1}]
[{"$f":"'A. Population Info'!A449","v":1001472169},{"$f":"'A. Population Info'!G449","v":"OIL"},{"$f":"'A. Population Info'!H449","v":1},{"$f":"'A. Population Info'!I449","v":0},{"$f":"'A. Population Info'!J449","v":0},{"$f":"'A. Population Info'!K449","v":0},{"$f":"VLOOKUP(B:B,OFFSET('B. PoF Adj Factor Scoring'!$E$5:$F$282,,MATCH(G$4,'B. PoF Adj Factor Scoring'!$E$3:$N$3,0)-1),2,TRUE)","v":1},{"$f":"VLOOKUP(C:C,OFFSET('B. PoF Adj Factor Scoring'!$E$5:$F$282,,MATCH(H$4,'B. PoF Adj Factor Scoring'!$E$3:$N$3,0)-1),2,TRUE)","v":1},{"$f":"VLOOKUP(D:D,OFFSET('B. PoF Adj Factor Scoring'!$E$5:$F$282,,MATCH(I$4,'B. PoF Adj Factor Scoring'!$E$3:$N$3,0)-1),2,TRUE)","v":1},{"$f":"VLOOKUP(E:E,OFFSET('B. PoF Adj Factor Scoring'!$E$5:$F$282,,MATCH(J$4,'B. PoF Adj Factor Scoring'!$E$3:$N$3,0)-1),2,TRUE)","v":1},{"$f":"VLOOKUP(F:F,OFFSET('B. PoF Adj Factor Scoring'!$E$5:$F$282,,MATCH(K$4,'B. PoF Adj Factor Scoring'!$E$3:$N$3,0)-1),2,TRUE)","v":1}]
[{"$f":"'A. Population Info'!A450","v":1001472634},{"$f":"'A. Population Info'!G450","v":"OIL"},{"$f":"'A. Population Info'!H450","v":2},{"$f":"'A. Population Info'!I450","v":0},{"$f":"'A. Population Info'!J450","v":0},{"$f":"'A. Population Info'!K450","v":0},{"$f":"VLOOKUP(B:B,OFFSET('B. PoF Adj Factor Scoring'!$E$5:$F$282,,MATCH(G$4,'B. PoF Adj Factor Scoring'!$E$3:$N$3,0)-1),2,TRUE)","v":1},{"$f":"VLOOKUP(C:C,OFFSET('B. PoF Adj Factor Scoring'!$E$5:$F$282,,MATCH(H$4,'B. PoF Adj Factor Scoring'!$E$3:$N$3,0)-1),2,TRUE)","v":2},{"$f":"VLOOKUP(D:D,OFFSET('B. PoF Adj Factor Scoring'!$E$5:$F$282,,MATCH(I$4,'B. PoF Adj Factor Scoring'!$E$3:$N$3,0)-1),2,TRUE)","v":1},{"$f":"VLOOKUP(E:E,OFFSET('B. PoF Adj Factor Scoring'!$E$5:$F$282,,MATCH(J$4,'B. PoF Adj Factor Scoring'!$E$3:$N$3,0)-1),2,TRUE)","v":1},{"$f":"VLOOKUP(F:F,OFFSET('B. PoF Adj Factor Scoring'!$E$5:$F$282,,MATCH(K$4,'B. PoF Adj Factor Scoring'!$E$3:$N$3,0)-1),2,TRUE)","v":1}]
[{"$f":"'A. Population Info'!A451","v":1001472635},{"$f":"'A. Population Info'!G451","v":"OIL"},{"$f":"'A. Population Info'!H451","v":1},{"$f":"'A. Population Info'!I451","v":0},{"$f":"'A. Population Info'!J451","v":0},{"$f":"'A. Population Info'!K451","v":0},{"$f":"VLOOKUP(B:B,OFFSET('B. PoF Adj Factor Scoring'!$E$5:$F$282,,MATCH(G$4,'B. PoF Adj Factor Scoring'!$E$3:$N$3,0)-1),2,TRUE)","v":1},{"$f":"VLOOKUP(C:C,OFFSET('B. PoF Adj Factor Scoring'!$E$5:$F$282,,MATCH(H$4,'B. PoF Adj Factor Scoring'!$E$3:$N$3,0)-1),2,TRUE)","v":1},{"$f":"VLOOKUP(D:D,OFFSET('B. PoF Adj Factor Scoring'!$E$5:$F$282,,MATCH(I$4,'B. PoF Adj Factor Scoring'!$E$3:$N$3,0)-1),2,TRUE)","v":1},{"$f":"VLOOKUP(E:E,OFFSET('B. PoF Adj Factor Scoring'!$E$5:$F$282,,MATCH(J$4,'B. PoF Adj Factor Scoring'!$E$3:$N$3,0)-1),2,TRUE)","v":1},{"$f":"VLOOKUP(F:F,OFFSET('B. PoF Adj Factor Scoring'!$E$5:$F$282,,MATCH(K$4,'B. PoF Adj Factor Scoring'!$E$3:$N$3,0)-1),2,TRUE)","v":1}]
[{"$f":"'A. Population Info'!A452","v":1001472636},{"$f":"'A. Population Info'!G452","v":"OIL"},{"$f":"'A. Population Info'!H452","v":1},{"$f":"'A. Population Info'!I452","v":0},{"$f":"'A. Population Info'!J452","v":0},{"$f":"'A. Population Info'!K452","v":0},{"$f":"VLOOKUP(B:B,OFFSET('B. PoF Adj Factor Scoring'!$E$5:$F$282,,MATCH(G$4,'B. PoF Adj Factor Scoring'!$E$3:$N$3,0)-1),2,TRUE)","v":1},{"$f":"VLOOKUP(C:C,OFFSET('B. PoF Adj Factor Scoring'!$E$5:$F$282,,MATCH(H$4,'B. PoF Adj Factor Scoring'!$E$3:$N$3,0)-1),2,TRUE)","v":1},{"$f":"VLOOKUP(D:D,OFFSET('B. PoF Adj Factor Scoring'!$E$5:$F$282,,MATCH(I$4,'B. PoF Adj Factor Scoring'!$E$3:$N$3,0)-1),2,TRUE)","v":1},{"$f":"VLOOKUP(E:E,OFFSET('B. PoF Adj Factor Scoring'!$E$5:$F$282,,MATCH(J$4,'B. PoF Adj Factor Scoring'!$E$3:$N$3,0)-1),2,TRUE)","v":1},{"$f":"VLOOKUP(F:F,OFFSET('B. PoF Adj Factor Scoring'!$E$5:$F$282,,MATCH(K$4,'B. PoF Adj Factor Scoring'!$E$3:$N$3,0)-1),2,TRUE)","v":1}]
[{"$f":"'A. Population Info'!A453","v":1001472637},{"$f":"'A. Population Info'!G453","v":"OIL"},{"$f":"'A. Population Info'!H453","v":1},{"$f":"'A. Population Info'!I453","v":0},{"$f":"'A. Population Info'!J453","v":0},{"$f":"'A. Population Info'!K453","v":0},{"$f":"VLOOKUP(B:B,OFFSET('B. PoF Adj Factor Scoring'!$E$5:$F$282,,MATCH(G$4,'B. PoF Adj Factor Scoring'!$E$3:$N$3,0)-1),2,TRUE)","v":1},{"$f":"VLOOKUP(C:C,OFFSET('B. PoF Adj Factor Scoring'!$E$5:$F$282,,MATCH(H$4,'B. PoF Adj Factor Scoring'!$E$3:$N$3,0)-1),2,TRUE)","v":1},{"$f":"VLOOKUP(D:D,OFFSET('B. PoF Adj Factor Scoring'!$E$5:$F$282,,MATCH(I$4,'B. PoF Adj Factor Scoring'!$E$3:$N$3,0)-1),2,TRUE)","v":1},{"$f":"VLOOKUP(E:E,OFFSET('B. PoF Adj Factor Scoring'!$E$5:$F$282,,MATCH(J$4,'B. PoF Adj Factor Scoring'!$E$3:$N$3,0)-1),2,TRUE)","v":1},{"$f":"VLOOKUP(F:F,OFFSET('B. PoF Adj Factor Scoring'!$E$5:$F$282,,MATCH(K$4,'B. PoF Adj Factor Scoring'!$E$3:$N$3,0)-1),2,TRUE)","v":1}]
[{"$f":"'A. Population Info'!A454","v":1001472638},{"$f":"'A. Population Info'!G454","v":"OIL"},{"$f":"'A. Population Info'!H454","v":1},{"$f":"'A. Population Info'!I454","v":0},{"$f":"'A. Population Info'!J454","v":0},{"$f":"'A. Population Info'!K454","v":0},{"$f":"VLOOKUP(B:B,OFFSET('B. PoF Adj Factor Scoring'!$E$5:$F$282,,MATCH(G$4,'B. PoF Adj Factor Scoring'!$E$3:$N$3,0)-1),2,TRUE)","v":1},{"$f":"VLOOKUP(C:C,OFFSET('B. PoF Adj Factor Scoring'!$E$5:$F$282,,MATCH(H$4,'B. PoF Adj Factor Scoring'!$E$3:$N$3,0)-1),2,TRUE)","v":1},{"$f":"VLOOKUP(D:D,OFFSET('B. PoF Adj Factor Scoring'!$E$5:$F$282,,MATCH(I$4,'B. PoF Adj Factor Scoring'!$E$3:$N$3,0)-1),2,TRUE)","v":1},{"$f":"VLOOKUP(E:E,OFFSET('B. PoF Adj Factor Scoring'!$E$5:$F$282,,MATCH(J$4,'B. PoF Adj Factor Scoring'!$E$3:$N$3,0)-1),2,TRUE)","v":1},{"$f":"VLOOKUP(F:F,OFFSET('B. PoF Adj Factor Scoring'!$E$5:$F$282,,MATCH(K$4,'B. PoF Adj Factor Scoring'!$E$3:$N$3,0)-1),2,TRUE)","v":1}]
[{"$f":"'A. Population Info'!A455","v":1001472639},{"$f":"'A. Population Info'!G455","v":"OIL"},{"$f":"'A. Population Info'!H455","v":3},{"$f":"'A. Population Info'!I455","v":0},{"$f":"'A. Population Info'!J455","v":0},{"$f":"'A. Population Info'!K455","v":0},{"$f":"VLOOKUP(B:B,OFFSET('B. PoF Adj Factor Scoring'!$E$5:$F$282,,MATCH(G$4,'B. PoF Adj Factor Scoring'!$E$3:$N$3,0)-1),2,TRUE)","v":1},{"$f":"VLOOKUP(C:C,OFFSET('B. PoF Adj Factor Scoring'!$E$5:$F$282,,MATCH(H$4,'B. PoF Adj Factor Scoring'!$E$3:$N$3,0)-1),2,TRUE)","v":3},{"$f":"VLOOKUP(D:D,OFFSET('B. PoF Adj Factor Scoring'!$E$5:$F$282,,MATCH(I$4,'B. PoF Adj Factor Scoring'!$E$3:$N$3,0)-1),2,TRUE)","v":1},{"$f":"VLOOKUP(E:E,OFFSET('B. PoF Adj Factor Scoring'!$E$5:$F$282,,MATCH(J$4,'B. PoF Adj Factor Scoring'!$E$3:$N$3,0)-1),2,TRUE)","v":1},{"$f":"VLOOKUP(F:F,OFFSET('B. PoF Adj Factor Scoring'!$E$5:$F$282,,MATCH(K$4,'B. PoF Adj Factor Scoring'!$E$3:$N$3,0)-1),2,TRUE)","v":1}]
[{"$f":"'A. Population Info'!A456","v":1001472640},{"$f":"'A. Population Info'!G456","v":"OIL"},{"$f":"'A. Population Info'!H456","v":1},{"$f":"'A. Population Info'!I456","v":0},{"$f":"'A. Population Info'!J456","v":0},{"$f":"'A. Population Info'!K456","v":0},{"$f":"VLOOKUP(B:B,OFFSET('B. PoF Adj Factor Scoring'!$E$5:$F$282,,MATCH(G$4,'B. PoF Adj Factor Scoring'!$E$3:$N$3,0)-1),2,TRUE)","v":1},{"$f":"VLOOKUP(C:C,OFFSET('B. PoF Adj Factor Scoring'!$E$5:$F$282,,MATCH(H$4,'B. PoF Adj Factor Scoring'!$E$3:$N$3,0)-1),2,TRUE)","v":1},{"$f":"VLOOKUP(D:D,OFFSET('B. PoF Adj Factor Scoring'!$E$5:$F$282,,MATCH(I$4,'B. PoF Adj Factor Scoring'!$E$3:$N$3,0)-1),2,TRUE)","v":1},{"$f":"VLOOKUP(E:E,OFFSET('B. PoF Adj Factor Scoring'!$E$5:$F$282,,MATCH(J$4,'B. PoF Adj Factor Scoring'!$E$3:$N$3,0)-1),2,TRUE)","v":1},{"$f":"VLOOKUP(F:F,OFFSET('B. PoF Adj Factor Scoring'!$E$5:$F$282,,MATCH(K$4,'B. PoF Adj Factor Scoring'!$E$3:$N$3,0)-1),2,TRUE)","v":1}]
[{"$f":"'A. Population Info'!A457","v":1001473129},{"$f":"'A. Population Info'!G457","v":"OIL"},{"$f":"'A. Population Info'!H457","v":1},{"$f":"'A. Population Info'!I457","v":0},{"$f":"'A. Population Info'!J457","v":0},{"$f":"'A. Population Info'!K457","v":0},{"$f":"VLOOKUP(B:B,OFFSET('B. PoF Adj Factor Scoring'!$E$5:$F$282,,MATCH(G$4,'B. PoF Adj Factor Scoring'!$E$3:$N$3,0)-1),2,TRUE)","v":1},{"$f":"VLOOKUP(C:C,OFFSET('B. PoF Adj Factor Scoring'!$E$5:$F$282,,MATCH(H$4,'B. PoF Adj Factor Scoring'!$E$3:$N$3,0)-1),2,TRUE)","v":1},{"$f":"VLOOKUP(D:D,OFFSET('B. PoF Adj Factor Scoring'!$E$5:$F$282,,MATCH(I$4,'B. PoF Adj Factor Scoring'!$E$3:$N$3,0)-1),2,TRUE)","v":1},{"$f":"VLOOKUP(E:E,OFFSET('B. PoF Adj Factor Scoring'!$E$5:$F$282,,MATCH(J$4,'B. PoF Adj Factor Scoring'!$E$3:$N$3,0)-1),2,TRUE)","v":1},{"$f":"VLOOKUP(F:F,OFFSET('B. PoF Adj Factor Scoring'!$E$5:$F$282,,MATCH(K$4,'B. PoF Adj Factor Scoring'!$E$3:$N$3,0)-1),2,TRUE)","v":1}]
[{"$f":"'A. Population Info'!A458","v":1001474074},{"$f":"'A. Population Info'!G458","v":"OIL"},{"$f":"'A. Population Info'!H458","v":1},{"$f":"'A. Population Info'!I458","v":0},{"$f":"'A. Population Info'!J458","v":0},{"$f":"'A. Population Info'!K458","v":0},{"$f":"VLOOKUP(B:B,OFFSET('B. PoF Adj Factor Scoring'!$E$5:$F$282,,MATCH(G$4,'B. PoF Adj Factor Scoring'!$E$3:$N$3,0)-1),2,TRUE)","v":1},{"$f":"VLOOKUP(C:C,OFFSET('B. PoF Adj Factor Scoring'!$E$5:$F$282,,MATCH(H$4,'B. PoF Adj Factor Scoring'!$E$3:$N$3,0)-1),2,TRUE)","v":1},{"$f":"VLOOKUP(D:D,OFFSET('B. PoF Adj Factor Scoring'!$E$5:$F$282,,MATCH(I$4,'B. PoF Adj Factor Scoring'!$E$3:$N$3,0)-1),2,TRUE)","v":1},{"$f":"VLOOKUP(E:E,OFFSET('B. PoF Adj Factor Scoring'!$E$5:$F$282,,MATCH(J$4,'B. PoF Adj Factor Scoring'!$E$3:$N$3,0)-1),2,TRUE)","v":1},{"$f":"VLOOKUP(F:F,OFFSET('B. PoF Adj Factor Scoring'!$E$5:$F$282,,MATCH(K$4,'B. PoF Adj Factor Scoring'!$E$3:$N$3,0)-1),2,TRUE)","v":1}]
[{"$f":"'A. Population Info'!A459","v":1001474075},{"$f":"'A. Population Info'!G459","v":"OIL"},{"$f":"'A. Population Info'!H459","v":1},{"$f":"'A. Population Info'!I459","v":0},{"$f":"'A. Population Info'!J459","v":0},{"$f":"'A. Population Info'!K459","v":0},{"$f":"VLOOKUP(B:B,OFFSET('B. PoF Adj Factor Scoring'!$E$5:$F$282,,MATCH(G$4,'B. PoF Adj Factor Scoring'!$E$3:$N$3,0)-1),2,TRUE)","v":1},{"$f":"VLOOKUP(C:C,OFFSET('B. PoF Adj Factor Scoring'!$E$5:$F$282,,MATCH(H$4,'B. PoF Adj Factor Scoring'!$E$3:$N$3,0)-1),2,TRUE)","v":1},{"$f":"VLOOKUP(D:D,OFFSET('B. PoF Adj Factor Scoring'!$E$5:$F$282,,MATCH(I$4,'B. PoF Adj Factor Scoring'!$E$3:$N$3,0)-1),2,TRUE)","v":1},{"$f":"VLOOKUP(E:E,OFFSET('B. PoF Adj Factor Scoring'!$E$5:$F$282,,MATCH(J$4,'B. PoF Adj Factor Scoring'!$E$3:$N$3,0)-1),2,TRUE)","v":1},{"$f":"VLOOKUP(F:F,OFFSET('B. PoF Adj Factor Scoring'!$E$5:$F$282,,MATCH(K$4,'B. PoF Adj Factor Scoring'!$E$3:$N$3,0)-1),2,TRUE)","v":1}]
[{"$f":"'A. Population Info'!A460","v":1001474076},{"$f":"'A. Population Info'!G460","v":"OIL"},{"$f":"'A. Population Info'!H460","v":1},{"$f":"'A. Population Info'!I460","v":0},{"$f":"'A. Population Info'!J460","v":0},{"$f":"'A. Population Info'!K460","v":0},{"$f":"VLOOKUP(B:B,OFFSET('B. PoF Adj Factor Scoring'!$E$5:$F$282,,MATCH(G$4,'B. PoF Adj Factor Scoring'!$E$3:$N$3,0)-1),2,TRUE)","v":1},{"$f":"VLOOKUP(C:C,OFFSET('B. PoF Adj Factor Scoring'!$E$5:$F$282,,MATCH(H$4,'B. PoF Adj Factor Scoring'!$E$3:$N$3,0)-1),2,TRUE)","v":1},{"$f":"VLOOKUP(D:D,OFFSET('B. PoF Adj Factor Scoring'!$E$5:$F$282,,MATCH(I$4,'B. PoF Adj Factor Scoring'!$E$3:$N$3,0)-1),2,TRUE)","v":1},{"$f":"VLOOKUP(E:E,OFFSET('B. PoF Adj Factor Scoring'!$E$5:$F$282,,MATCH(J$4,'B. PoF Adj Factor Scoring'!$E$3:$N$3,0)-1),2,TRUE)","v":1},{"$f":"VLOOKUP(F:F,OFFSET('B. PoF Adj Factor Scoring'!$E$5:$F$282,,MATCH(K$4,'B. PoF Adj Factor Scoring'!$E$3:$N$3,0)-1),2,TRUE)","v":1}]
[{"$f":"'A. Population Info'!A461","v":1001476181},{"$f":"'A. Population Info'!G461","v":"OIL"},{"$f":"'A. Population Info'!H461","v":1},{"$f":"'A. Population Info'!I461","v":0},{"$f":"'A. Population Info'!J461","v":0},{"$f":"'A. Population Info'!K461","v":0},{"$f":"VLOOKUP(B:B,OFFSET('B. PoF Adj Factor Scoring'!$E$5:$F$282,,MATCH(G$4,'B. PoF Adj Factor Scoring'!$E$3:$N$3,0)-1),2,TRUE)","v":1},{"$f":"VLOOKUP(C:C,OFFSET('B. PoF Adj Factor Scoring'!$E$5:$F$282,,MATCH(H$4,'B. PoF Adj Factor Scoring'!$E$3:$N$3,0)-1),2,TRUE)","v":1},{"$f":"VLOOKUP(D:D,OFFSET('B. PoF Adj Factor Scoring'!$E$5:$F$282,,MATCH(I$4,'B. PoF Adj Factor Scoring'!$E$3:$N$3,0)-1),2,TRUE)","v":1},{"$f":"VLOOKUP(E:E,OFFSET('B. PoF Adj Factor Scoring'!$E$5:$F$282,,MATCH(J$4,'B. PoF Adj Factor Scoring'!$E$3:$N$3,0)-1),2,TRUE)","v":1},{"$f":"VLOOKUP(F:F,OFFSET('B. PoF Adj Factor Scoring'!$E$5:$F$282,,MATCH(K$4,'B. PoF Adj Factor Scoring'!$E$3:$N$3,0)-1),2,TRUE)","v":1}]
[{"$f":"'A. Population Info'!A462","v":1001477684},{"$f":"'A. Population Info'!G462","v":"OIL"},{"$f":"'A. Population Info'!H462","v":2},{"$f":"'A. Population Info'!I462","v":0},{"$f":"'A. Population Info'!J462","v":0},{"$f":"'A. Population Info'!K462","v":0},{"$f":"VLOOKUP(B:B,OFFSET('B. PoF Adj Factor Scoring'!$E$5:$F$282,,MATCH(G$4,'B. PoF Adj Factor Scoring'!$E$3:$N$3,0)-1),2,TRUE)","v":1},{"$f":"VLOOKUP(C:C,OFFSET('B. PoF Adj Factor Scoring'!$E$5:$F$282,,MATCH(H$4,'B. PoF Adj Factor Scoring'!$E$3:$N$3,0)-1),2,TRUE)","v":2},{"$f":"VLOOKUP(D:D,OFFSET('B. PoF Adj Factor Scoring'!$E$5:$F$282,,MATCH(I$4,'B. PoF Adj Factor Scoring'!$E$3:$N$3,0)-1),2,TRUE)","v":1},{"$f":"VLOOKUP(E:E,OFFSET('B. PoF Adj Factor Scoring'!$E$5:$F$282,,MATCH(J$4,'B. PoF Adj Factor Scoring'!$E$3:$N$3,0)-1),2,TRUE)","v":1},{"$f":"VLOOKUP(F:F,OFFSET('B. PoF Adj Factor Scoring'!$E$5:$F$282,,MATCH(K$4,'B. PoF Adj Factor Scoring'!$E$3:$N$3,0)-1),2,TRUE)","v":1}]
[{"$f":"'A. Population Info'!A463","v":1001477685},{"$f":"'A. Population Info'!G463","v":"OIL"},{"$f":"'A. Population Info'!H463","v":2},{"$f":"'A. Population Info'!I463","v":0},{"$f":"'A. Population Info'!J463","v":0},{"$f":"'A. Population Info'!K463","v":0},{"$f":"VLOOKUP(B:B,OFFSET('B. PoF Adj Factor Scoring'!$E$5:$F$282,,MATCH(G$4,'B. PoF Adj Factor Scoring'!$E$3:$N$3,0)-1),2,TRUE)","v":1},{"$f":"VLOOKUP(C:C,OFFSET('B. PoF Adj Factor Scoring'!$E$5:$F$282,,MATCH(H$4,'B. PoF Adj Factor Scoring'!$E$3:$N$3,0)-1),2,TRUE)","v":2},{"$f":"VLOOKUP(D:D,OFFSET('B. PoF Adj Factor Scoring'!$E$5:$F$282,,MATCH(I$4,'B. PoF Adj Factor Scoring'!$E$3:$N$3,0)-1),2,TRUE)","v":1},{"$f":"VLOOKUP(E:E,OFFSET('B. PoF Adj Factor Scoring'!$E$5:$F$282,,MATCH(J$4,'B. PoF Adj Factor Scoring'!$E$3:$N$3,0)-1),2,TRUE)","v":1},{"$f":"VLOOKUP(F:F,OFFSET('B. PoF Adj Factor Scoring'!$E$5:$F$282,,MATCH(K$4,'B. PoF Adj Factor Scoring'!$E$3:$N$3,0)-1),2,TRUE)","v":1}]
[{"$f":"'A. Population Info'!A464","v":1001477686},{"$f":"'A. Population Info'!G464","v":"OIL"},{"$f":"'A. Population Info'!H464","v":1},{"$f":"'A. Population Info'!I464","v":0},{"$f":"'A. Population Info'!J464","v":0},{"$f":"'A. Population Info'!K464","v":0},{"$f":"VLOOKUP(B:B,OFFSET('B. PoF Adj Factor Scoring'!$E$5:$F$282,,MATCH(G$4,'B. PoF Adj Factor Scoring'!$E$3:$N$3,0)-1),2,TRUE)","v":1},{"$f":"VLOOKUP(C:C,OFFSET('B. PoF Adj Factor Scoring'!$E$5:$F$282,,MATCH(H$4,'B. PoF Adj Factor Scoring'!$E$3:$N$3,0)-1),2,TRUE)","v":1},{"$f":"VLOOKUP(D:D,OFFSET('B. PoF Adj Factor Scoring'!$E$5:$F$282,,MATCH(I$4,'B. PoF Adj Factor Scoring'!$E$3:$N$3,0)-1),2,TRUE)","v":1},{"$f":"VLOOKUP(E:E,OFFSET('B. PoF Adj Factor Scoring'!$E$5:$F$282,,MATCH(J$4,'B. PoF Adj Factor Scoring'!$E$3:$N$3,0)-1),2,TRUE)","v":1},{"$f":"VLOOKUP(F:F,OFFSET('B. PoF Adj Factor Scoring'!$E$5:$F$282,,MATCH(K$4,'B. PoF Adj Factor Scoring'!$E$3:$N$3,0)-1),2,TRUE)","v":1}]
[{"$f":"'A. Population Info'!A465","v":1001477798},{"$f":"'A. Population Info'!G465","v":"OIL"},{"$f":"'A. Population Info'!H465","v":2},{"$f":"'A. Population Info'!I465","v":0},{"$f":"'A. Population Info'!J465","v":0},{"$f":"'A. Population Info'!K465","v":0},{"$f":"VLOOKUP(B:B,OFFSET('B. PoF Adj Factor Scoring'!$E$5:$F$282,,MATCH(G$4,'B. PoF Adj Factor Scoring'!$E$3:$N$3,0)-1),2,TRUE)","v":1},{"$f":"VLOOKUP(C:C,OFFSET('B. PoF Adj Factor Scoring'!$E$5:$F$282,,MATCH(H$4,'B. PoF Adj Factor Scoring'!$E$3:$N$3,0)-1),2,TRUE)","v":2},{"$f":"VLOOKUP(D:D,OFFSET('B. PoF Adj Factor Scoring'!$E$5:$F$282,,MATCH(I$4,'B. PoF Adj Factor Scoring'!$E$3:$N$3,0)-1),2,TRUE)","v":1},{"$f":"VLOOKUP(E:E,OFFSET('B. PoF Adj Factor Scoring'!$E$5:$F$282,,MATCH(J$4,'B. PoF Adj Factor Scoring'!$E$3:$N$3,0)-1),2,TRUE)","v":1},{"$f":"VLOOKUP(F:F,OFFSET('B. PoF Adj Factor Scoring'!$E$5:$F$282,,MATCH(K$4,'B. PoF Adj Factor Scoring'!$E$3:$N$3,0)-1),2,TRUE)","v":1}]
[{"$f":"'A. Population Info'!A466","v":1001477799},{"$f":"'A. Population Info'!G466","v":"OIL"},{"$f":"'A. Population Info'!H466","v":1},{"$f":"'A. Population Info'!I466","v":0},{"$f":"'A. Population Info'!J466","v":0},{"$f":"'A. Population Info'!K466","v":0},{"$f":"VLOOKUP(B:B,OFFSET('B. PoF Adj Factor Scoring'!$E$5:$F$282,,MATCH(G$4,'B. PoF Adj Factor Scoring'!$E$3:$N$3,0)-1),2,TRUE)","v":1},{"$f":"VLOOKUP(C:C,OFFSET('B. PoF Adj Factor Scoring'!$E$5:$F$282,,MATCH(H$4,'B. PoF Adj Factor Scoring'!$E$3:$N$3,0)-1),2,TRUE)","v":1},{"$f":"VLOOKUP(D:D,OFFSET('B. PoF Adj Factor Scoring'!$E$5:$F$282,,MATCH(I$4,'B. PoF Adj Factor Scoring'!$E$3:$N$3,0)-1),2,TRUE)","v":1},{"$f":"VLOOKUP(E:E,OFFSET('B. PoF Adj Factor Scoring'!$E$5:$F$282,,MATCH(J$4,'B. PoF Adj Factor Scoring'!$E$3:$N$3,0)-1),2,TRUE)","v":1},{"$f":"VLOOKUP(F:F,OFFSET('B. PoF Adj Factor Scoring'!$E$5:$F$282,,MATCH(K$4,'B. PoF Adj Factor Scoring'!$E$3:$N$3,0)-1),2,TRUE)","v":1}]
[{"$f":"'A. Population Info'!A467","v":1001481507},{"$f":"'A. Population Info'!G467","v":"SF6"},{"$f":"'A. Population Info'!H467","v":"N/A"},{"$f":"'A. Population Info'!I467","v":0},{"$f":"'A. Population Info'!J467","v":0},{"$f":"'A. Population Info'!K467","v":0},{"$f":"VLOOKUP(B:B,OFFSET('B. PoF Adj Factor Scoring'!$E$5:$F$282,,MATCH(G$4,'B. PoF Adj Factor Scoring'!$E$3:$N$3,0)-1),2,TRUE)","v":1},{"$f":"VLOOKUP(C:C,OFFSET('B. PoF Adj Factor Scoring'!$E$5:$F$282,,MATCH(H$4,'B. PoF Adj Factor Scoring'!$E$3:$N$3,0)-1),2,TRUE)","v":1},{"$f":"VLOOKUP(D:D,OFFSET('B. PoF Adj Factor Scoring'!$E$5:$F$282,,MATCH(I$4,'B. PoF Adj Factor Scoring'!$E$3:$N$3,0)-1),2,TRUE)","v":1},{"$f":"VLOOKUP(E:E,OFFSET('B. PoF Adj Factor Scoring'!$E$5:$F$282,,MATCH(J$4,'B. PoF Adj Factor Scoring'!$E$3:$N$3,0)-1),2,TRUE)","v":1},{"$f":"VLOOKUP(F:F,OFFSET('B. PoF Adj Factor Scoring'!$E$5:$F$282,,MATCH(K$4,'B. PoF Adj Factor Scoring'!$E$3:$N$3,0)-1),2,TRUE)","v":1}]
[{"$f":"'A. Population Info'!A468","v":1001481508},{"$f":"'A. Population Info'!G468","v":"SF6"},{"$f":"'A. Population Info'!H468","v":"N/A"},{"$f":"'A. Population Info'!I468","v":0},{"$f":"'A. Population Info'!J468","v":0},{"$f":"'A. Population Info'!K468","v":0},{"$f":"VLOOKUP(B:B,OFFSET('B. PoF Adj Factor Scoring'!$E$5:$F$282,,MATCH(G$4,'B. PoF Adj Factor Scoring'!$E$3:$N$3,0)-1),2,TRUE)","v":1},{"$f":"VLOOKUP(C:C,OFFSET('B. PoF Adj Factor Scoring'!$E$5:$F$282,,MATCH(H$4,'B. PoF Adj Factor Scoring'!$E$3:$N$3,0)-1),2,TRUE)","v":1},{"$f":"VLOOKUP(D:D,OFFSET('B. PoF Adj Factor Scoring'!$E$5:$F$282,,MATCH(I$4,'B. PoF Adj Factor Scoring'!$E$3:$N$3,0)-1),2,TRUE)","v":1},{"$f":"VLOOKUP(E:E,OFFSET('B. PoF Adj Factor Scoring'!$E$5:$F$282,,MATCH(J$4,'B. PoF Adj Factor Scoring'!$E$3:$N$3,0)-1),2,TRUE)","v":1},{"$f":"VLOOKUP(F:F,OFFSET('B. PoF Adj Factor Scoring'!$E$5:$F$282,,MATCH(K$4,'B. PoF Adj Factor Scoring'!$E$3:$N$3,0)-1),2,TRUE)","v":1}]
[{"$f":"'A. Population Info'!A469","v":1001481509},{"$f":"'A. Population Info'!G469","v":"SF6"},{"$f":"'A. Population Info'!H469","v":"N/A"},{"$f":"'A. Population Info'!I469","v":0},{"$f":"'A. Population Info'!J469","v":0},{"$f":"'A. Population Info'!K469","v":0},{"$f":"VLOOKUP(B:B,OFFSET('B. PoF Adj Factor Scoring'!$E$5:$F$282,,MATCH(G$4,'B. PoF Adj Factor Scoring'!$E$3:$N$3,0)-1),2,TRUE)","v":1},{"$f":"VLOOKUP(C:C,OFFSET('B. PoF Adj Factor Scoring'!$E$5:$F$282,,MATCH(H$4,'B. PoF Adj Factor Scoring'!$E$3:$N$3,0)-1),2,TRUE)","v":1},{"$f":"VLOOKUP(D:D,OFFSET('B. PoF Adj Factor Scoring'!$E$5:$F$282,,MATCH(I$4,'B. PoF Adj Factor Scoring'!$E$3:$N$3,0)-1),2,TRUE)","v":1},{"$f":"VLOOKUP(E:E,OFFSET('B. PoF Adj Factor Scoring'!$E$5:$F$282,,MATCH(J$4,'B. PoF Adj Factor Scoring'!$E$3:$N$3,0)-1),2,TRUE)","v":1},{"$f":"VLOOKUP(F:F,OFFSET('B. PoF Adj Factor Scoring'!$E$5:$F$282,,MATCH(K$4,'B. PoF Adj Factor Scoring'!$E$3:$N$3,0)-1),2,TRUE)","v":1}]
[{"$f":"'A. Population Info'!A470","v":1001481511},{"$f":"'A. Population Info'!G470","v":"SF6"},{"$f":"'A. Population Info'!H470","v":"N/A"},{"$f":"'A. Population Info'!I470","v":0},{"$f":"'A. Population Info'!J470","v":0},{"$f":"'A. Population Info'!K470","v":0},{"$f":"VLOOKUP(B:B,OFFSET('B. PoF Adj Factor Scoring'!$E$5:$F$282,,MATCH(G$4,'B. PoF Adj Factor Scoring'!$E$3:$N$3,0)-1),2,TRUE)","v":1},{"$f":"VLOOKUP(C:C,OFFSET('B. PoF Adj Factor Scoring'!$E$5:$F$282,,MATCH(H$4,'B. PoF Adj Factor Scoring'!$E$3:$N$3,0)-1),2,TRUE)","v":1},{"$f":"VLOOKUP(D:D,OFFSET('B. PoF Adj Factor Scoring'!$E$5:$F$282,,MATCH(I$4,'B. PoF Adj Factor Scoring'!$E$3:$N$3,0)-1),2,TRUE)","v":1},{"$f":"VLOOKUP(E:E,OFFSET('B. PoF Adj Factor Scoring'!$E$5:$F$282,,MATCH(J$4,'B. PoF Adj Factor Scoring'!$E$3:$N$3,0)-1),2,TRUE)","v":1},{"$f":"VLOOKUP(F:F,OFFSET('B. PoF Adj Factor Scoring'!$E$5:$F$282,,MATCH(K$4,'B. PoF Adj Factor Scoring'!$E$3:$N$3,0)-1),2,TRUE)","v":1}]
[{"$f":"'A. Population Info'!A471","v":1001481559},{"$f":"'A. Population Info'!G471","v":"OIL"},{"$f":"'A. Population Info'!H471","v":1},{"$f":"'A. Population Info'!I471","v":0},{"$f":"'A. Population Info'!J471","v":0},{"$f":"'A. Population Info'!K471","v":0},{"$f":"VLOOKUP(B:B,OFFSET('B. PoF Adj Factor Scoring'!$E$5:$F$282,,MATCH(G$4,'B. PoF Adj Factor Scoring'!$E$3:$N$3,0)-1),2,TRUE)","v":1},{"$f":"VLOOKUP(C:C,OFFSET('B. PoF Adj Factor Scoring'!$E$5:$F$282,,MATCH(H$4,'B. PoF Adj Factor Scoring'!$E$3:$N$3,0)-1),2,TRUE)","v":1},{"$f":"VLOOKUP(D:D,OFFSET('B. PoF Adj Factor Scoring'!$E$5:$F$282,,MATCH(I$4,'B. PoF Adj Factor Scoring'!$E$3:$N$3,0)-1),2,TRUE)","v":1},{"$f":"VLOOKUP(E:E,OFFSET('B. PoF Adj Factor Scoring'!$E$5:$F$282,,MATCH(J$4,'B. PoF Adj Factor Scoring'!$E$3:$N$3,0)-1),2,TRUE)","v":1},{"$f":"VLOOKUP(F:F,OFFSET('B. PoF Adj Factor Scoring'!$E$5:$F$282,,MATCH(K$4,'B. PoF Adj Factor Scoring'!$E$3:$N$3,0)-1),2,TRUE)","v":1}]
[{"$f":"'A. Population Info'!A472","v":1001482403},{"$f":"'A. Population Info'!G472","v":"OIL"},{"$f":"'A. Population Info'!H472","v":1},{"$f":"'A. Population Info'!I472","v":0},{"$f":"'A. Population Info'!J472","v":0},{"$f":"'A. Population Info'!K472","v":0},{"$f":"VLOOKUP(B:B,OFFSET('B. PoF Adj Factor Scoring'!$E$5:$F$282,,MATCH(G$4,'B. PoF Adj Factor Scoring'!$E$3:$N$3,0)-1),2,TRUE)","v":1},{"$f":"VLOOKUP(C:C,OFFSET('B. PoF Adj Factor Scoring'!$E$5:$F$282,,MATCH(H$4,'B. PoF Adj Factor Scoring'!$E$3:$N$3,0)-1),2,TRUE)","v":1},{"$f":"VLOOKUP(D:D,OFFSET('B. PoF Adj Factor Scoring'!$E$5:$F$282,,MATCH(I$4,'B. PoF Adj Factor Scoring'!$E$3:$N$3,0)-1),2,TRUE)","v":1},{"$f":"VLOOKUP(E:E,OFFSET('B. PoF Adj Factor Scoring'!$E$5:$F$282,,MATCH(J$4,'B. PoF Adj Factor Scoring'!$E$3:$N$3,0)-1),2,TRUE)","v":1},{"$f":"VLOOKUP(F:F,OFFSET('B. PoF Adj Factor Scoring'!$E$5:$F$282,,MATCH(K$4,'B. PoF Adj Factor Scoring'!$E$3:$N$3,0)-1),2,TRUE)","v":1}]
[{"$f":"'A. Population Info'!A473","v":1001485864},{"$f":"'A. Population Info'!G473","v":"OIL"},{"$f":"'A. Population Info'!H473","v":1},{"$f":"'A. Population Info'!I473","v":0},{"$f":"'A. Population Info'!J473","v":0},{"$f":"'A. Population Info'!K473","v":0},{"$f":"VLOOKUP(B:B,OFFSET('B. PoF Adj Factor Scoring'!$E$5:$F$282,,MATCH(G$4,'B. PoF Adj Factor Scoring'!$E$3:$N$3,0)-1),2,TRUE)","v":1},{"$f":"VLOOKUP(C:C,OFFSET('B. PoF Adj Factor Scoring'!$E$5:$F$282,,MATCH(H$4,'B. PoF Adj Factor Scoring'!$E$3:$N$3,0)-1),2,TRUE)","v":1},{"$f":"VLOOKUP(D:D,OFFSET('B. PoF Adj Factor Scoring'!$E$5:$F$282,,MATCH(I$4,'B. PoF Adj Factor Scoring'!$E$3:$N$3,0)-1),2,TRUE)","v":1},{"$f":"VLOOKUP(E:E,OFFSET('B. PoF Adj Factor Scoring'!$E$5:$F$282,,MATCH(J$4,'B. PoF Adj Factor Scoring'!$E$3:$N$3,0)-1),2,TRUE)","v":1},{"$f":"VLOOKUP(F:F,OFFSET('B. PoF Adj Factor Scoring'!$E$5:$F$282,,MATCH(K$4,'B. PoF Adj Factor Scoring'!$E$3:$N$3,0)-1),2,TRUE)","v":1}]
[{"$f":"'A. Population Info'!A474","v":1001485865},{"$f":"'A. Population Info'!G474","v":"OIL"},{"$f":"'A. Population Info'!H474","v":1},{"$f":"'A. Population Info'!I474","v":0},{"$f":"'A. Population Info'!J474","v":0},{"$f":"'A. Population Info'!K474","v":0},{"$f":"VLOOKUP(B:B,OFFSET('B. PoF Adj Factor Scoring'!$E$5:$F$282,,MATCH(G$4,'B. PoF Adj Factor Scoring'!$E$3:$N$3,0)-1),2,TRUE)","v":1},{"$f":"VLOOKUP(C:C,OFFSET('B. PoF Adj Factor Scoring'!$E$5:$F$282,,MATCH(H$4,'B. PoF Adj Factor Scoring'!$E$3:$N$3,0)-1),2,TRUE)","v":1},{"$f":"VLOOKUP(D:D,OFFSET('B. PoF Adj Factor Scoring'!$E$5:$F$282,,MATCH(I$4,'B. PoF Adj Factor Scoring'!$E$3:$N$3,0)-1),2,TRUE)","v":1},{"$f":"VLOOKUP(E:E,OFFSET('B. PoF Adj Factor Scoring'!$E$5:$F$282,,MATCH(J$4,'B. PoF Adj Factor Scoring'!$E$3:$N$3,0)-1),2,TRUE)","v":1},{"$f":"VLOOKUP(F:F,OFFSET('B. PoF Adj Factor Scoring'!$E$5:$F$282,,MATCH(K$4,'B. PoF Adj Factor Scoring'!$E$3:$N$3,0)-1),2,TRUE)","v":1}]
[{"$f":"'A. Population Info'!A475","v":1001485866},{"$f":"'A. Population Info'!G475","v":"OIL"},{"$f":"'A. Population Info'!H475","v":1},{"$f":"'A. Population Info'!I475","v":0},{"$f":"'A. Population Info'!J475","v":0},{"$f":"'A. Population Info'!K475","v":0},{"$f":"VLOOKUP(B:B,OFFSET('B. PoF Adj Factor Scoring'!$E$5:$F$282,,MATCH(G$4,'B. PoF Adj Factor Scoring'!$E$3:$N$3,0)-1),2,TRUE)","v":1},{"$f":"VLOOKUP(C:C,OFFSET('B. PoF Adj Factor Scoring'!$E$5:$F$282,,MATCH(H$4,'B. PoF Adj Factor Scoring'!$E$3:$N$3,0)-1),2,TRUE)","v":1},{"$f":"VLOOKUP(D:D,OFFSET('B. PoF Adj Factor Scoring'!$E$5:$F$282,,MATCH(I$4,'B. PoF Adj Factor Scoring'!$E$3:$N$3,0)-1),2,TRUE)","v":1},{"$f":"VLOOKUP(E:E,OFFSET('B. PoF Adj Factor Scoring'!$E$5:$F$282,,MATCH(J$4,'B. PoF Adj Factor Scoring'!$E$3:$N$3,0)-1),2,TRUE)","v":1},{"$f":"VLOOKUP(F:F,OFFSET('B. PoF Adj Factor Scoring'!$E$5:$F$282,,MATCH(K$4,'B. PoF Adj Factor Scoring'!$E$3:$N$3,0)-1),2,TRUE)","v":1}]
[{"$f":"'A. Population Info'!A476","v":1001485867},{"$f":"'A. Population Info'!G476","v":"OIL"},{"$f":"'A. Population Info'!H476","v":1},{"$f":"'A. Population Info'!I476","v":0},{"$f":"'A. Population Info'!J476","v":0},{"$f":"'A. Population Info'!K476","v":0},{"$f":"VLOOKUP(B:B,OFFSET('B. PoF Adj Factor Scoring'!$E$5:$F$282,,MATCH(G$4,'B. PoF Adj Factor Scoring'!$E$3:$N$3,0)-1),2,TRUE)","v":1},{"$f":"VLOOKUP(C:C,OFFSET('B. PoF Adj Factor Scoring'!$E$5:$F$282,,MATCH(H$4,'B. PoF Adj Factor Scoring'!$E$3:$N$3,0)-1),2,TRUE)","v":1},{"$f":"VLOOKUP(D:D,OFFSET('B. PoF Adj Factor Scoring'!$E$5:$F$282,,MATCH(I$4,'B. PoF Adj Factor Scoring'!$E$3:$N$3,0)-1),2,TRUE)","v":1},{"$f":"VLOOKUP(E:E,OFFSET('B. PoF Adj Factor Scoring'!$E$5:$F$282,,MATCH(J$4,'B. PoF Adj Factor Scoring'!$E$3:$N$3,0)-1),2,TRUE)","v":1},{"$f":"VLOOKUP(F:F,OFFSET('B. PoF Adj Factor Scoring'!$E$5:$F$282,,MATCH(K$4,'B. PoF Adj Factor Scoring'!$E$3:$N$3,0)-1),2,TRUE)","v":1}]
[{"$f":"'A. Population Info'!A477","v":1001485868},{"$f":"'A. Population Info'!G477","v":"OIL"},{"$f":"'A. Population Info'!H477","v":1},{"$f":"'A. Population Info'!I477","v":0},{"$f":"'A. Population Info'!J477","v":0},{"$f":"'A. Population Info'!K477","v":0},{"$f":"VLOOKUP(B:B,OFFSET('B. PoF Adj Factor Scoring'!$E$5:$F$282,,MATCH(G$4,'B. PoF Adj Factor Scoring'!$E$3:$N$3,0)-1),2,TRUE)","v":1},{"$f":"VLOOKUP(C:C,OFFSET('B. PoF Adj Factor Scoring'!$E$5:$F$282,,MATCH(H$4,'B. PoF Adj Factor Scoring'!$E$3:$N$3,0)-1),2,TRUE)","v":1},{"$f":"VLOOKUP(D:D,OFFSET('B. PoF Adj Factor Scoring'!$E$5:$F$282,,MATCH(I$4,'B. PoF Adj Factor Scoring'!$E$3:$N$3,0)-1),2,TRUE)","v":1},{"$f":"VLOOKUP(E:E,OFFSET('B. PoF Adj Factor Scoring'!$E$5:$F$282,,MATCH(J$4,'B. PoF Adj Factor Scoring'!$E$3:$N$3,0)-1),2,TRUE)","v":1},{"$f":"VLOOKUP(F:F,OFFSET('B. PoF Adj Factor Scoring'!$E$5:$F$282,,MATCH(K$4,'B. PoF Adj Factor Scoring'!$E$3:$N$3,0)-1),2,TRUE)","v":1}]
[{"$f":"'A. Population Info'!A478","v":1001485869},{"$f":"'A. Population Info'!G478","v":"OIL"},{"$f":"'A. Population Info'!H478","v":1},{"$f":"'A. Population Info'!I478","v":0},{"$f":"'A. Population Info'!J478","v":0},{"$f":"'A. Population Info'!K478","v":0},{"$f":"VLOOKUP(B:B,OFFSET('B. PoF Adj Factor Scoring'!$E$5:$F$282,,MATCH(G$4,'B. PoF Adj Factor Scoring'!$E$3:$N$3,0)-1),2,TRUE)","v":1},{"$f":"VLOOKUP(C:C,OFFSET('B. PoF Adj Factor Scoring'!$E$5:$F$282,,MATCH(H$4,'B. PoF Adj Factor Scoring'!$E$3:$N$3,0)-1),2,TRUE)","v":1},{"$f":"VLOOKUP(D:D,OFFSET('B. PoF Adj Factor Scoring'!$E$5:$F$282,,MATCH(I$4,'B. PoF Adj Factor Scoring'!$E$3:$N$3,0)-1),2,TRUE)","v":1},{"$f":"VLOOKUP(E:E,OFFSET('B. PoF Adj Factor Scoring'!$E$5:$F$282,,MATCH(J$4,'B. PoF Adj Factor Scoring'!$E$3:$N$3,0)-1),2,TRUE)","v":1},{"$f":"VLOOKUP(F:F,OFFSET('B. PoF Adj Factor Scoring'!$E$5:$F$282,,MATCH(K$4,'B. PoF Adj Factor Scoring'!$E$3:$N$3,0)-1),2,TRUE)","v":1}]
[{"$f":"'A. Population Info'!A479","v":1001485870},{"$f":"'A. Population Info'!G479","v":"OIL"},{"$f":"'A. Population Info'!H479","v":1},{"$f":"'A. Population Info'!I479","v":0},{"$f":"'A. Population Info'!J479","v":0},{"$f":"'A. Population Info'!K479","v":0},{"$f":"VLOOKUP(B:B,OFFSET('B. PoF Adj Factor Scoring'!$E$5:$F$282,,MATCH(G$4,'B. PoF Adj Factor Scoring'!$E$3:$N$3,0)-1),2,TRUE)","v":1},{"$f":"VLOOKUP(C:C,OFFSET('B. PoF Adj Factor Scoring'!$E$5:$F$282,,MATCH(H$4,'B. PoF Adj Factor Scoring'!$E$3:$N$3,0)-1),2,TRUE)","v":1},{"$f":"VLOOKUP(D:D,OFFSET('B. PoF Adj Factor Scoring'!$E$5:$F$282,,MATCH(I$4,'B. PoF Adj Factor Scoring'!$E$3:$N$3,0)-1),2,TRUE)","v":1},{"$f":"VLOOKUP(E:E,OFFSET('B. PoF Adj Factor Scoring'!$E$5:$F$282,,MATCH(J$4,'B. PoF Adj Factor Scoring'!$E$3:$N$3,0)-1),2,TRUE)","v":1},{"$f":"VLOOKUP(F:F,OFFSET('B. PoF Adj Factor Scoring'!$E$5:$F$282,,MATCH(K$4,'B. PoF Adj Factor Scoring'!$E$3:$N$3,0)-1),2,TRUE)","v":1}]
[{"$f":"'A. Population Info'!A480","v":1001485871},{"$f":"'A. Population Info'!G480","v":"OIL"},{"$f":"'A. Population Info'!H480","v":1},{"$f":"'A. Population Info'!I480","v":0},{"$f":"'A. Population Info'!J480","v":0},{"$f":"'A. Population Info'!K480","v":0},{"$f":"VLOOKUP(B:B,OFFSET('B. PoF Adj Factor Scoring'!$E$5:$F$282,,MATCH(G$4,'B. PoF Adj Factor Scoring'!$E$3:$N$3,0)-1),2,TRUE)","v":1},{"$f":"VLOOKUP(C:C,OFFSET('B. PoF Adj Factor Scoring'!$E$5:$F$282,,MATCH(H$4,'B. PoF Adj Factor Scoring'!$E$3:$N$3,0)-1),2,TRUE)","v":1},{"$f":"VLOOKUP(D:D,OFFSET('B. PoF Adj Factor Scoring'!$E$5:$F$282,,MATCH(I$4,'B. PoF Adj Factor Scoring'!$E$3:$N$3,0)-1),2,TRUE)","v":1},{"$f":"VLOOKUP(E:E,OFFSET('B. PoF Adj Factor Scoring'!$E$5:$F$282,,MATCH(J$4,'B. PoF Adj Factor Scoring'!$E$3:$N$3,0)-1),2,TRUE)","v":1},{"$f":"VLOOKUP(F:F,OFFSET('B. PoF Adj Factor Scoring'!$E$5:$F$282,,MATCH(K$4,'B. PoF Adj Factor Scoring'!$E$3:$N$3,0)-1),2,TRUE)","v":1}]
[{"$f":"'A. Population Info'!A481","v":1001487639},{"$f":"'A. Population Info'!G481","v":"OIL"},{"$f":"'A. Population Info'!H481","v":1},{"$f":"'A. Population Info'!I481","v":0},{"$f":"'A. Population Info'!J481","v":0},{"$f":"'A. Population Info'!K481","v":0},{"$f":"VLOOKUP(B:B,OFFSET('B. PoF Adj Factor Scoring'!$E$5:$F$282,,MATCH(G$4,'B. PoF Adj Factor Scoring'!$E$3:$N$3,0)-1),2,TRUE)","v":1},{"$f":"VLOOKUP(C:C,OFFSET('B. PoF Adj Factor Scoring'!$E$5:$F$282,,MATCH(H$4,'B. PoF Adj Factor Scoring'!$E$3:$N$3,0)-1),2,TRUE)","v":1},{"$f":"VLOOKUP(D:D,OFFSET('B. PoF Adj Factor Scoring'!$E$5:$F$282,,MATCH(I$4,'B. PoF Adj Factor Scoring'!$E$3:$N$3,0)-1),2,TRUE)","v":1},{"$f":"VLOOKUP(E:E,OFFSET('B. PoF Adj Factor Scoring'!$E$5:$F$282,,MATCH(J$4,'B. PoF Adj Factor Scoring'!$E$3:$N$3,0)-1),2,TRUE)","v":1},{"$f":"VLOOKUP(F:F,OFFSET('B. PoF Adj Factor Scoring'!$E$5:$F$282,,MATCH(K$4,'B. PoF Adj Factor Scoring'!$E$3:$N$3,0)-1),2,TRUE)","v":1}]
[{"$f":"'A. Population Info'!A482","v":1001489786},{"$f":"'A. Population Info'!G482","v":"OIL"},{"$f":"'A. Population Info'!H482","v":1},{"$f":"'A. Population Info'!I482","v":0},{"$f":"'A. Population Info'!J482","v":0},{"$f":"'A. Population Info'!K482","v":0},{"$f":"VLOOKUP(B:B,OFFSET('B. PoF Adj Factor Scoring'!$E$5:$F$282,,MATCH(G$4,'B. PoF Adj Factor Scoring'!$E$3:$N$3,0)-1),2,TRUE)","v":1},{"$f":"VLOOKUP(C:C,OFFSET('B. PoF Adj Factor Scoring'!$E$5:$F$282,,MATCH(H$4,'B. PoF Adj Factor Scoring'!$E$3:$N$3,0)-1),2,TRUE)","v":1},{"$f":"VLOOKUP(D:D,OFFSET('B. PoF Adj Factor Scoring'!$E$5:$F$282,,MATCH(I$4,'B. PoF Adj Factor Scoring'!$E$3:$N$3,0)-1),2,TRUE)","v":1},{"$f":"VLOOKUP(E:E,OFFSET('B. PoF Adj Factor Scoring'!$E$5:$F$282,,MATCH(J$4,'B. PoF Adj Factor Scoring'!$E$3:$N$3,0)-1),2,TRUE)","v":1},{"$f":"VLOOKUP(F:F,OFFSET('B. PoF Adj Factor Scoring'!$E$5:$F$282,,MATCH(K$4,'B. PoF Adj Factor Scoring'!$E$3:$N$3,0)-1),2,TRUE)","v":1}]
[{"$f":"'A. Population Info'!A483","v":1001489800},{"$f":"'A. Population Info'!G483","v":"OIL"},{"$f":"'A. Population Info'!H483","v":1},{"$f":"'A. Population Info'!I483","v":0},{"$f":"'A. Population Info'!J483","v":0},{"$f":"'A. Population Info'!K483","v":0},{"$f":"VLOOKUP(B:B,OFFSET('B. PoF Adj Factor Scoring'!$E$5:$F$282,,MATCH(G$4,'B. PoF Adj Factor Scoring'!$E$3:$N$3,0)-1),2,TRUE)","v":1},{"$f":"VLOOKUP(C:C,OFFSET('B. PoF Adj Factor Scoring'!$E$5:$F$282,,MATCH(H$4,'B. PoF Adj Factor Scoring'!$E$3:$N$3,0)-1),2,TRUE)","v":1},{"$f":"VLOOKUP(D:D,OFFSET('B. PoF Adj Factor Scoring'!$E$5:$F$282,,MATCH(I$4,'B. PoF Adj Factor Scoring'!$E$3:$N$3,0)-1),2,TRUE)","v":1},{"$f":"VLOOKUP(E:E,OFFSET('B. PoF Adj Factor Scoring'!$E$5:$F$282,,MATCH(J$4,'B. PoF Adj Factor Scoring'!$E$3:$N$3,0)-1),2,TRUE)","v":1},{"$f":"VLOOKUP(F:F,OFFSET('B. PoF Adj Factor Scoring'!$E$5:$F$282,,MATCH(K$4,'B. PoF Adj Factor Scoring'!$E$3:$N$3,0)-1),2,TRUE)","v":1}]
[{"$f":"'A. Population Info'!A484","v":1001489814},{"$f":"'A. Population Info'!G484","v":"OIL"},{"$f":"'A. Population Info'!H484","v":2},{"$f":"'A. Population Info'!I484","v":0},{"$f":"'A. Population Info'!J484","v":0},{"$f":"'A. Population Info'!K484","v":0},{"$f":"VLOOKUP(B:B,OFFSET('B. PoF Adj Factor Scoring'!$E$5:$F$282,,MATCH(G$4,'B. PoF Adj Factor Scoring'!$E$3:$N$3,0)-1),2,TRUE)","v":1},{"$f":"VLOOKUP(C:C,OFFSET('B. PoF Adj Factor Scoring'!$E$5:$F$282,,MATCH(H$4,'B. PoF Adj Factor Scoring'!$E$3:$N$3,0)-1),2,TRUE)","v":2},{"$f":"VLOOKUP(D:D,OFFSET('B. PoF Adj Factor Scoring'!$E$5:$F$282,,MATCH(I$4,'B. PoF Adj Factor Scoring'!$E$3:$N$3,0)-1),2,TRUE)","v":1},{"$f":"VLOOKUP(E:E,OFFSET('B. PoF Adj Factor Scoring'!$E$5:$F$282,,MATCH(J$4,'B. PoF Adj Factor Scoring'!$E$3:$N$3,0)-1),2,TRUE)","v":1},{"$f":"VLOOKUP(F:F,OFFSET('B. PoF Adj Factor Scoring'!$E$5:$F$282,,MATCH(K$4,'B. PoF Adj Factor Scoring'!$E$3:$N$3,0)-1),2,TRUE)","v":1}]
[{"$f":"'A. Population Info'!A485","v":1001489815},{"$f":"'A. Population Info'!G485","v":"OIL"},{"$f":"'A. Population Info'!H485","v":1},{"$f":"'A. Population Info'!I485","v":0},{"$f":"'A. Population Info'!J485","v":0},{"$f":"'A. Population Info'!K485","v":0},{"$f":"VLOOKUP(B:B,OFFSET('B. PoF Adj Factor Scoring'!$E$5:$F$282,,MATCH(G$4,'B. PoF Adj Factor Scoring'!$E$3:$N$3,0)-1),2,TRUE)","v":1},{"$f":"VLOOKUP(C:C,OFFSET('B. PoF Adj Factor Scoring'!$E$5:$F$282,,MATCH(H$4,'B. PoF Adj Factor Scoring'!$E$3:$N$3,0)-1),2,TRUE)","v":1},{"$f":"VLOOKUP(D:D,OFFSET('B. PoF Adj Factor Scoring'!$E$5:$F$282,,MATCH(I$4,'B. PoF Adj Factor Scoring'!$E$3:$N$3,0)-1),2,TRUE)","v":1},{"$f":"VLOOKUP(E:E,OFFSET('B. PoF Adj Factor Scoring'!$E$5:$F$282,,MATCH(J$4,'B. PoF Adj Factor Scoring'!$E$3:$N$3,0)-1),2,TRUE)","v":1},{"$f":"VLOOKUP(F:F,OFFSET('B. PoF Adj Factor Scoring'!$E$5:$F$282,,MATCH(K$4,'B. PoF Adj Factor Scoring'!$E$3:$N$3,0)-1),2,TRUE)","v":1}]
[{"$f":"'A. Population Info'!A486","v":1001489837},{"$f":"'A. Population Info'!G486","v":"OIL"},{"$f":"'A. Population Info'!H486","v":1},{"$f":"'A. Population Info'!I486","v":0},{"$f":"'A. Population Info'!J486","v":0},{"$f":"'A. Population Info'!K486","v":0},{"$f":"VLOOKUP(B:B,OFFSET('B. PoF Adj Factor Scoring'!$E$5:$F$282,,MATCH(G$4,'B. PoF Adj Factor Scoring'!$E$3:$N$3,0)-1),2,TRUE)","v":1},{"$f":"VLOOKUP(C:C,OFFSET('B. PoF Adj Factor Scoring'!$E$5:$F$282,,MATCH(H$4,'B. PoF Adj Factor Scoring'!$E$3:$N$3,0)-1),2,TRUE)","v":1},{"$f":"VLOOKUP(D:D,OFFSET('B. PoF Adj Factor Scoring'!$E$5:$F$282,,MATCH(I$4,'B. PoF Adj Factor Scoring'!$E$3:$N$3,0)-1),2,TRUE)","v":1},{"$f":"VLOOKUP(E:E,OFFSET('B. PoF Adj Factor Scoring'!$E$5:$F$282,,MATCH(J$4,'B. PoF Adj Factor Scoring'!$E$3:$N$3,0)-1),2,TRUE)","v":1},{"$f":"VLOOKUP(F:F,OFFSET('B. PoF Adj Factor Scoring'!$E$5:$F$282,,MATCH(K$4,'B. PoF Adj Factor Scoring'!$E$3:$N$3,0)-1),2,TRUE)","v":1}]
[{"$f":"'A. Population Info'!A487","v":1001489838},{"$f":"'A. Population Info'!G487","v":"OIL"},{"$f":"'A. Population Info'!H487","v":1},{"$f":"'A. Population Info'!I487","v":0},{"$f":"'A. Population Info'!J487","v":0},{"$f":"'A. Population Info'!K487","v":0},{"$f":"VLOOKUP(B:B,OFFSET('B. PoF Adj Factor Scoring'!$E$5:$F$282,,MATCH(G$4,'B. PoF Adj Factor Scoring'!$E$3:$N$3,0)-1),2,TRUE)","v":1},{"$f":"VLOOKUP(C:C,OFFSET('B. PoF Adj Factor Scoring'!$E$5:$F$282,,MATCH(H$4,'B. PoF Adj Factor Scoring'!$E$3:$N$3,0)-1),2,TRUE)","v":1},{"$f":"VLOOKUP(D:D,OFFSET('B. PoF Adj Factor Scoring'!$E$5:$F$282,,MATCH(I$4,'B. PoF Adj Factor Scoring'!$E$3:$N$3,0)-1),2,TRUE)","v":1},{"$f":"VLOOKUP(E:E,OFFSET('B. PoF Adj Factor Scoring'!$E$5:$F$282,,MATCH(J$4,'B. PoF Adj Factor Scoring'!$E$3:$N$3,0)-1),2,TRUE)","v":1},{"$f":"VLOOKUP(F:F,OFFSET('B. PoF Adj Factor Scoring'!$E$5:$F$282,,MATCH(K$4,'B. PoF Adj Factor Scoring'!$E$3:$N$3,0)-1),2,TRUE)","v":1}]
[{"$f":"'A. Population Info'!A488","v":1001495907},{"$f":"'A. Population Info'!G488","v":"OIL"},{"$f":"'A. Population Info'!H488","v":2},{"$f":"'A. Population Info'!I488","v":0},{"$f":"'A. Population Info'!J488","v":0},{"$f":"'A. Population Info'!K488","v":0},{"$f":"VLOOKUP(B:B,OFFSET('B. PoF Adj Factor Scoring'!$E$5:$F$282,,MATCH(G$4,'B. PoF Adj Factor Scoring'!$E$3:$N$3,0)-1),2,TRUE)","v":1},{"$f":"VLOOKUP(C:C,OFFSET('B. PoF Adj Factor Scoring'!$E$5:$F$282,,MATCH(H$4,'B. PoF Adj Factor Scoring'!$E$3:$N$3,0)-1),2,TRUE)","v":2},{"$f":"VLOOKUP(D:D,OFFSET('B. PoF Adj Factor Scoring'!$E$5:$F$282,,MATCH(I$4,'B. PoF Adj Factor Scoring'!$E$3:$N$3,0)-1),2,TRUE)","v":1},{"$f":"VLOOKUP(E:E,OFFSET('B. PoF Adj Factor Scoring'!$E$5:$F$282,,MATCH(J$4,'B. PoF Adj Factor Scoring'!$E$3:$N$3,0)-1),2,TRUE)","v":1},{"$f":"VLOOKUP(F:F,OFFSET('B. PoF Adj Factor Scoring'!$E$5:$F$282,,MATCH(K$4,'B. PoF Adj Factor Scoring'!$E$3:$N$3,0)-1),2,TRUE)","v":1}]
[{"$f":"'A. Population Info'!A489","v":1001495908},{"$f":"'A. Population Info'!G489","v":"OIL"},{"$f":"'A. Population Info'!H489","v":1},{"$f":"'A. Population Info'!I489","v":0},{"$f":"'A. Population Info'!J489","v":0},{"$f":"'A. Population Info'!K489","v":0},{"$f":"VLOOKUP(B:B,OFFSET('B. PoF Adj Factor Scoring'!$E$5:$F$282,,MATCH(G$4,'B. PoF Adj Factor Scoring'!$E$3:$N$3,0)-1),2,TRUE)","v":1},{"$f":"VLOOKUP(C:C,OFFSET('B. PoF Adj Factor Scoring'!$E$5:$F$282,,MATCH(H$4,'B. PoF Adj Factor Scoring'!$E$3:$N$3,0)-1),2,TRUE)","v":1},{"$f":"VLOOKUP(D:D,OFFSET('B. PoF Adj Factor Scoring'!$E$5:$F$282,,MATCH(I$4,'B. PoF Adj Factor Scoring'!$E$3:$N$3,0)-1),2,TRUE)","v":1},{"$f":"VLOOKUP(E:E,OFFSET('B. PoF Adj Factor Scoring'!$E$5:$F$282,,MATCH(J$4,'B. PoF Adj Factor Scoring'!$E$3:$N$3,0)-1),2,TRUE)","v":1},{"$f":"VLOOKUP(F:F,OFFSET('B. PoF Adj Factor Scoring'!$E$5:$F$282,,MATCH(K$4,'B. PoF Adj Factor Scoring'!$E$3:$N$3,0)-1),2,TRUE)","v":1}]
[{"$f":"'A. Population Info'!A490","v":1001499723},{"$f":"'A. Population Info'!G490","v":"OIL"},{"$f":"'A. Population Info'!H490","v":1},{"$f":"'A. Population Info'!I490","v":0},{"$f":"'A. Population Info'!J490","v":0},{"$f":"'A. Population Info'!K490","v":0},{"$f":"VLOOKUP(B:B,OFFSET('B. PoF Adj Factor Scoring'!$E$5:$F$282,,MATCH(G$4,'B. PoF Adj Factor Scoring'!$E$3:$N$3,0)-1),2,TRUE)","v":1},{"$f":"VLOOKUP(C:C,OFFSET('B. PoF Adj Factor Scoring'!$E$5:$F$282,,MATCH(H$4,'B. PoF Adj Factor Scoring'!$E$3:$N$3,0)-1),2,TRUE)","v":1},{"$f":"VLOOKUP(D:D,OFFSET('B. PoF Adj Factor Scoring'!$E$5:$F$282,,MATCH(I$4,'B. PoF Adj Factor Scoring'!$E$3:$N$3,0)-1),2,TRUE)","v":1},{"$f":"VLOOKUP(E:E,OFFSET('B. PoF Adj Factor Scoring'!$E$5:$F$282,,MATCH(J$4,'B. PoF Adj Factor Scoring'!$E$3:$N$3,0)-1),2,TRUE)","v":1},{"$f":"VLOOKUP(F:F,OFFSET('B. PoF Adj Factor Scoring'!$E$5:$F$282,,MATCH(K$4,'B. PoF Adj Factor Scoring'!$E$3:$N$3,0)-1),2,TRUE)","v":1}]
[{"$f":"'A. Population Info'!A491","v":1001499724},{"$f":"'A. Population Info'!G491","v":"OIL"},{"$f":"'A. Population Info'!H491","v":1},{"$f":"'A. Population Info'!I491","v":0},{"$f":"'A. Population Info'!J491","v":0},{"$f":"'A. Population Info'!K491","v":0},{"$f":"VLOOKUP(B:B,OFFSET('B. PoF Adj Factor Scoring'!$E$5:$F$282,,MATCH(G$4,'B. PoF Adj Factor Scoring'!$E$3:$N$3,0)-1),2,TRUE)","v":1},{"$f":"VLOOKUP(C:C,OFFSET('B. PoF Adj Factor Scoring'!$E$5:$F$282,,MATCH(H$4,'B. PoF Adj Factor Scoring'!$E$3:$N$3,0)-1),2,TRUE)","v":1},{"$f":"VLOOKUP(D:D,OFFSET('B. PoF Adj Factor Scoring'!$E$5:$F$282,,MATCH(I$4,'B. PoF Adj Factor Scoring'!$E$3:$N$3,0)-1),2,TRUE)","v":1},{"$f":"VLOOKUP(E:E,OFFSET('B. PoF Adj Factor Scoring'!$E$5:$F$282,,MATCH(J$4,'B. PoF Adj Factor Scoring'!$E$3:$N$3,0)-1),2,TRUE)","v":1},{"$f":"VLOOKUP(F:F,OFFSET('B. PoF Adj Factor Scoring'!$E$5:$F$282,,MATCH(K$4,'B. PoF Adj Factor Scoring'!$E$3:$N$3,0)-1),2,TRUE)","v":1}]
[{"$f":"'A. Population Info'!A492","v":1001503043},{"$f":"'A. Population Info'!G492","v":"OIL"},{"$f":"'A. Population Info'!H492","v":1},{"$f":"'A. Population Info'!I492","v":0},{"$f":"'A. Population Info'!J492","v":0},{"$f":"'A. Population Info'!K492","v":0},{"$f":"VLOOKUP(B:B,OFFSET('B. PoF Adj Factor Scoring'!$E$5:$F$282,,MATCH(G$4,'B. PoF Adj Factor Scoring'!$E$3:$N$3,0)-1),2,TRUE)","v":1},{"$f":"VLOOKUP(C:C,OFFSET('B. PoF Adj Factor Scoring'!$E$5:$F$282,,MATCH(H$4,'B. PoF Adj Factor Scoring'!$E$3:$N$3,0)-1),2,TRUE)","v":1},{"$f":"VLOOKUP(D:D,OFFSET('B. PoF Adj Factor Scoring'!$E$5:$F$282,,MATCH(I$4,'B. PoF Adj Factor Scoring'!$E$3:$N$3,0)-1),2,TRUE)","v":1},{"$f":"VLOOKUP(E:E,OFFSET('B. PoF Adj Factor Scoring'!$E$5:$F$282,,MATCH(J$4,'B. PoF Adj Factor Scoring'!$E$3:$N$3,0)-1),2,TRUE)","v":1},{"$f":"VLOOKUP(F:F,OFFSET('B. PoF Adj Factor Scoring'!$E$5:$F$282,,MATCH(K$4,'B. PoF Adj Factor Scoring'!$E$3:$N$3,0)-1),2,TRUE)","v":1}]
[{"$f":"'A. Population Info'!A493","v":1001503044},{"$f":"'A. Population Info'!G493","v":"OIL"},{"$f":"'A. Population Info'!H493","v":1},{"$f":"'A. Population Info'!I493","v":0},{"$f":"'A. Population Info'!J493","v":0},{"$f":"'A. Population Info'!K493","v":0},{"$f":"VLOOKUP(B:B,OFFSET('B. PoF Adj Factor Scoring'!$E$5:$F$282,,MATCH(G$4,'B. PoF Adj Factor Scoring'!$E$3:$N$3,0)-1),2,TRUE)","v":1},{"$f":"VLOOKUP(C:C,OFFSET('B. PoF Adj Factor Scoring'!$E$5:$F$282,,MATCH(H$4,'B. PoF Adj Factor Scoring'!$E$3:$N$3,0)-1),2,TRUE)","v":1},{"$f":"VLOOKUP(D:D,OFFSET('B. PoF Adj Factor Scoring'!$E$5:$F$282,,MATCH(I$4,'B. PoF Adj Factor Scoring'!$E$3:$N$3,0)-1),2,TRUE)","v":1},{"$f":"VLOOKUP(E:E,OFFSET('B. PoF Adj Factor Scoring'!$E$5:$F$282,,MATCH(J$4,'B. PoF Adj Factor Scoring'!$E$3:$N$3,0)-1),2,TRUE)","v":1},{"$f":"VLOOKUP(F:F,OFFSET('B. PoF Adj Factor Scoring'!$E$5:$F$282,,MATCH(K$4,'B. PoF Adj Factor Scoring'!$E$3:$N$3,0)-1),2,TRUE)","v":1}]
[{"$f":"'A. Population Info'!A494","v":1001503045},{"$f":"'A. Population Info'!G494","v":"OIL"},{"$f":"'A. Population Info'!H494","v":1},{"$f":"'A. Population Info'!I494","v":0},{"$f":"'A. Population Info'!J494","v":0},{"$f":"'A. Population Info'!K494","v":0},{"$f":"VLOOKUP(B:B,OFFSET('B. PoF Adj Factor Scoring'!$E$5:$F$282,,MATCH(G$4,'B. PoF Adj Factor Scoring'!$E$3:$N$3,0)-1),2,TRUE)","v":1},{"$f":"VLOOKUP(C:C,OFFSET('B. PoF Adj Factor Scoring'!$E$5:$F$282,,MATCH(H$4,'B. PoF Adj Factor Scoring'!$E$3:$N$3,0)-1),2,TRUE)","v":1},{"$f":"VLOOKUP(D:D,OFFSET('B. PoF Adj Factor Scoring'!$E$5:$F$282,,MATCH(I$4,'B. PoF Adj Factor Scoring'!$E$3:$N$3,0)-1),2,TRUE)","v":1},{"$f":"VLOOKUP(E:E,OFFSET('B. PoF Adj Factor Scoring'!$E$5:$F$282,,MATCH(J$4,'B. PoF Adj Factor Scoring'!$E$3:$N$3,0)-1),2,TRUE)","v":1},{"$f":"VLOOKUP(F:F,OFFSET('B. PoF Adj Factor Scoring'!$E$5:$F$282,,MATCH(K$4,'B. PoF Adj Factor Scoring'!$E$3:$N$3,0)-1),2,TRUE)","v":1}]
[{"$f":"'A. Population Info'!A495","v":1001503857},{"$f":"'A. Population Info'!G495","v":"OIL"},{"$f":"'A. Population Info'!H495","v":1},{"$f":"'A. Population Info'!I495","v":0},{"$f":"'A. Population Info'!J495","v":0},{"$f":"'A. Population Info'!K495","v":0},{"$f":"VLOOKUP(B:B,OFFSET('B. PoF Adj Factor Scoring'!$E$5:$F$282,,MATCH(G$4,'B. PoF Adj Factor Scoring'!$E$3:$N$3,0)-1),2,TRUE)","v":1},{"$f":"VLOOKUP(C:C,OFFSET('B. PoF Adj Factor Scoring'!$E$5:$F$282,,MATCH(H$4,'B. PoF Adj Factor Scoring'!$E$3:$N$3,0)-1),2,TRUE)","v":1},{"$f":"VLOOKUP(D:D,OFFSET('B. PoF Adj Factor Scoring'!$E$5:$F$282,,MATCH(I$4,'B. PoF Adj Factor Scoring'!$E$3:$N$3,0)-1),2,TRUE)","v":1},{"$f":"VLOOKUP(E:E,OFFSET('B. PoF Adj Factor Scoring'!$E$5:$F$282,,MATCH(J$4,'B. PoF Adj Factor Scoring'!$E$3:$N$3,0)-1),2,TRUE)","v":1},{"$f":"VLOOKUP(F:F,OFFSET('B. PoF Adj Factor Scoring'!$E$5:$F$282,,MATCH(K$4,'B. PoF Adj Factor Scoring'!$E$3:$N$3,0)-1),2,TRUE)","v":1}]
[{"$f":"'A. Population Info'!A496","v":1001503858},{"$f":"'A. Population Info'!G496","v":"OIL"},{"$f":"'A. Population Info'!H496","v":3},{"$f":"'A. Population Info'!I496","v":0},{"$f":"'A. Population Info'!J496","v":0},{"$f":"'A. Population Info'!K496","v":0},{"$f":"VLOOKUP(B:B,OFFSET('B. PoF Adj Factor Scoring'!$E$5:$F$282,,MATCH(G$4,'B. PoF Adj Factor Scoring'!$E$3:$N$3,0)-1),2,TRUE)","v":1},{"$f":"VLOOKUP(C:C,OFFSET('B. PoF Adj Factor Scoring'!$E$5:$F$282,,MATCH(H$4,'B. PoF Adj Factor Scoring'!$E$3:$N$3,0)-1),2,TRUE)","v":3},{"$f":"VLOOKUP(D:D,OFFSET('B. PoF Adj Factor Scoring'!$E$5:$F$282,,MATCH(I$4,'B. PoF Adj Factor Scoring'!$E$3:$N$3,0)-1),2,TRUE)","v":1},{"$f":"VLOOKUP(E:E,OFFSET('B. PoF Adj Factor Scoring'!$E$5:$F$282,,MATCH(J$4,'B. PoF Adj Factor Scoring'!$E$3:$N$3,0)-1),2,TRUE)","v":1},{"$f":"VLOOKUP(F:F,OFFSET('B. PoF Adj Factor Scoring'!$E$5:$F$282,,MATCH(K$4,'B. PoF Adj Factor Scoring'!$E$3:$N$3,0)-1),2,TRUE)","v":1}]
[{"$f":"'A. Population Info'!A497","v":1001503867},{"$f":"'A. Population Info'!G497","v":"OIL"},{"$f":"'A. Population Info'!H497","v":1},{"$f":"'A. Population Info'!I497","v":0},{"$f":"'A. Population Info'!J497","v":0},{"$f":"'A. Population Info'!K497","v":0},{"$f":"VLOOKUP(B:B,OFFSET('B. PoF Adj Factor Scoring'!$E$5:$F$282,,MATCH(G$4,'B. PoF Adj Factor Scoring'!$E$3:$N$3,0)-1),2,TRUE)","v":1},{"$f":"VLOOKUP(C:C,OFFSET('B. PoF Adj Factor Scoring'!$E$5:$F$282,,MATCH(H$4,'B. PoF Adj Factor Scoring'!$E$3:$N$3,0)-1),2,TRUE)","v":1},{"$f":"VLOOKUP(D:D,OFFSET('B. PoF Adj Factor Scoring'!$E$5:$F$282,,MATCH(I$4,'B. PoF Adj Factor Scoring'!$E$3:$N$3,0)-1),2,TRUE)","v":1},{"$f":"VLOOKUP(E:E,OFFSET('B. PoF Adj Factor Scoring'!$E$5:$F$282,,MATCH(J$4,'B. PoF Adj Factor Scoring'!$E$3:$N$3,0)-1),2,TRUE)","v":1},{"$f":"VLOOKUP(F:F,OFFSET('B. PoF Adj Factor Scoring'!$E$5:$F$282,,MATCH(K$4,'B. PoF Adj Factor Scoring'!$E$3:$N$3,0)-1),2,TRUE)","v":1}]
[{"$f":"'A. Population Info'!A498","v":1001503868},{"$f":"'A. Population Info'!G498","v":"OIL"},{"$f":"'A. Population Info'!H498","v":1},{"$f":"'A. Population Info'!I498","v":0},{"$f":"'A. Population Info'!J498","v":0},{"$f":"'A. Population Info'!K498","v":0},{"$f":"VLOOKUP(B:B,OFFSET('B. PoF Adj Factor Scoring'!$E$5:$F$282,,MATCH(G$4,'B. PoF Adj Factor Scoring'!$E$3:$N$3,0)-1),2,TRUE)","v":1},{"$f":"VLOOKUP(C:C,OFFSET('B. PoF Adj Factor Scoring'!$E$5:$F$282,,MATCH(H$4,'B. PoF Adj Factor Scoring'!$E$3:$N$3,0)-1),2,TRUE)","v":1},{"$f":"VLOOKUP(D:D,OFFSET('B. PoF Adj Factor Scoring'!$E$5:$F$282,,MATCH(I$4,'B. PoF Adj Factor Scoring'!$E$3:$N$3,0)-1),2,TRUE)","v":1},{"$f":"VLOOKUP(E:E,OFFSET('B. PoF Adj Factor Scoring'!$E$5:$F$282,,MATCH(J$4,'B. PoF Adj Factor Scoring'!$E$3:$N$3,0)-1),2,TRUE)","v":1},{"$f":"VLOOKUP(F:F,OFFSET('B. PoF Adj Factor Scoring'!$E$5:$F$282,,MATCH(K$4,'B. PoF Adj Factor Scoring'!$E$3:$N$3,0)-1),2,TRUE)","v":1}]
[{"$f":"'A. Population Info'!A499","v":1001503871},{"$f":"'A. Population Info'!G499","v":"OIL"},{"$f":"'A. Population Info'!H499","v":1},{"$f":"'A. Population Info'!I499","v":0},{"$f":"'A. Population Info'!J499","v":0},{"$f":"'A. Population Info'!K499","v":0},{"$f":"VLOOKUP(B:B,OFFSET('B. PoF Adj Factor Scoring'!$E$5:$F$282,,MATCH(G$4,'B. PoF Adj Factor Scoring'!$E$3:$N$3,0)-1),2,TRUE)","v":1},{"$f":"VLOOKUP(C:C,OFFSET('B. PoF Adj Factor Scoring'!$E$5:$F$282,,MATCH(H$4,'B. PoF Adj Factor Scoring'!$E$3:$N$3,0)-1),2,TRUE)","v":1},{"$f":"VLOOKUP(D:D,OFFSET('B. PoF Adj Factor Scoring'!$E$5:$F$282,,MATCH(I$4,'B. PoF Adj Factor Scoring'!$E$3:$N$3,0)-1),2,TRUE)","v":1},{"$f":"VLOOKUP(E:E,OFFSET('B. PoF Adj Factor Scoring'!$E$5:$F$282,,MATCH(J$4,'B. PoF Adj Factor Scoring'!$E$3:$N$3,0)-1),2,TRUE)","v":1},{"$f":"VLOOKUP(F:F,OFFSET('B. PoF Adj Factor Scoring'!$E$5:$F$282,,MATCH(K$4,'B. PoF Adj Factor Scoring'!$E$3:$N$3,0)-1),2,TRUE)","v":1}]
[{"$f":"'A. Population Info'!A500","v":1001503879},{"$f":"'A. Population Info'!G500","v":"OIL"},{"$f":"'A. Population Info'!H500","v":1},{"$f":"'A. Population Info'!I500","v":0},{"$f":"'A. Population Info'!J500","v":0},{"$f":"'A. Population Info'!K500","v":0},{"$f":"VLOOKUP(B:B,OFFSET('B. PoF Adj Factor Scoring'!$E$5:$F$282,,MATCH(G$4,'B. PoF Adj Factor Scoring'!$E$3:$N$3,0)-1),2,TRUE)","v":1},{"$f":"VLOOKUP(C:C,OFFSET('B. PoF Adj Factor Scoring'!$E$5:$F$282,,MATCH(H$4,'B. PoF Adj Factor Scoring'!$E$3:$N$3,0)-1),2,TRUE)","v":1},{"$f":"VLOOKUP(D:D,OFFSET('B. PoF Adj Factor Scoring'!$E$5:$F$282,,MATCH(I$4,'B. PoF Adj Factor Scoring'!$E$3:$N$3,0)-1),2,TRUE)","v":1},{"$f":"VLOOKUP(E:E,OFFSET('B. PoF Adj Factor Scoring'!$E$5:$F$282,,MATCH(J$4,'B. PoF Adj Factor Scoring'!$E$3:$N$3,0)-1),2,TRUE)","v":1},{"$f":"VLOOKUP(F:F,OFFSET('B. PoF Adj Factor Scoring'!$E$5:$F$282,,MATCH(K$4,'B. PoF Adj Factor Scoring'!$E$3:$N$3,0)-1),2,TRUE)","v":1}]
[{"$f":"'A. Population Info'!A501","v":1001505510},{"$f":"'A. Population Info'!G501","v":"OIL"},{"$f":"'A. Population Info'!H501","v":2},{"$f":"'A. Population Info'!I501","v":0},{"$f":"'A. Population Info'!J501","v":0},{"$f":"'A. Population Info'!K501","v":0},{"$f":"VLOOKUP(B:B,OFFSET('B. PoF Adj Factor Scoring'!$E$5:$F$282,,MATCH(G$4,'B. PoF Adj Factor Scoring'!$E$3:$N$3,0)-1),2,TRUE)","v":1},{"$f":"VLOOKUP(C:C,OFFSET('B. PoF Adj Factor Scoring'!$E$5:$F$282,,MATCH(H$4,'B. PoF Adj Factor Scoring'!$E$3:$N$3,0)-1),2,TRUE)","v":2},{"$f":"VLOOKUP(D:D,OFFSET('B. PoF Adj Factor Scoring'!$E$5:$F$282,,MATCH(I$4,'B. PoF Adj Factor Scoring'!$E$3:$N$3,0)-1),2,TRUE)","v":1},{"$f":"VLOOKUP(E:E,OFFSET('B. PoF Adj Factor Scoring'!$E$5:$F$282,,MATCH(J$4,'B. PoF Adj Factor Scoring'!$E$3:$N$3,0)-1),2,TRUE)","v":1},{"$f":"VLOOKUP(F:F,OFFSET('B. PoF Adj Factor Scoring'!$E$5:$F$282,,MATCH(K$4,'B. PoF Adj Factor Scoring'!$E$3:$N$3,0)-1),2,TRUE)","v":1}]
[{"$f":"'A. Population Info'!A502","v":1001505511},{"$f":"'A. Population Info'!G502","v":"OIL"},{"$f":"'A. Population Info'!H502","v":2},{"$f":"'A. Population Info'!I502","v":0},{"$f":"'A. Population Info'!J502","v":0},{"$f":"'A. Population Info'!K502","v":0},{"$f":"VLOOKUP(B:B,OFFSET('B. PoF Adj Factor Scoring'!$E$5:$F$282,,MATCH(G$4,'B. PoF Adj Factor Scoring'!$E$3:$N$3,0)-1),2,TRUE)","v":1},{"$f":"VLOOKUP(C:C,OFFSET('B. PoF Adj Factor Scoring'!$E$5:$F$282,,MATCH(H$4,'B. PoF Adj Factor Scoring'!$E$3:$N$3,0)-1),2,TRUE)","v":2},{"$f":"VLOOKUP(D:D,OFFSET('B. PoF Adj Factor Scoring'!$E$5:$F$282,,MATCH(I$4,'B. PoF Adj Factor Scoring'!$E$3:$N$3,0)-1),2,TRUE)","v":1},{"$f":"VLOOKUP(E:E,OFFSET('B. PoF Adj Factor Scoring'!$E$5:$F$282,,MATCH(J$4,'B. PoF Adj Factor Scoring'!$E$3:$N$3,0)-1),2,TRUE)","v":1},{"$f":"VLOOKUP(F:F,OFFSET('B. PoF Adj Factor Scoring'!$E$5:$F$282,,MATCH(K$4,'B. PoF Adj Factor Scoring'!$E$3:$N$3,0)-1),2,TRUE)","v":1}]
[{"$f":"'A. Population Info'!A503","v":1001505512},{"$f":"'A. Population Info'!G503","v":"OIL"},{"$f":"'A. Population Info'!H503","v":2},{"$f":"'A. Population Info'!I503","v":0},{"$f":"'A. Population Info'!J503","v":0},{"$f":"'A. Population Info'!K503","v":0},{"$f":"VLOOKUP(B:B,OFFSET('B. PoF Adj Factor Scoring'!$E$5:$F$282,,MATCH(G$4,'B. PoF Adj Factor Scoring'!$E$3:$N$3,0)-1),2,TRUE)","v":1},{"$f":"VLOOKUP(C:C,OFFSET('B. PoF Adj Factor Scoring'!$E$5:$F$282,,MATCH(H$4,'B. PoF Adj Factor Scoring'!$E$3:$N$3,0)-1),2,TRUE)","v":2},{"$f":"VLOOKUP(D:D,OFFSET('B. PoF Adj Factor Scoring'!$E$5:$F$282,,MATCH(I$4,'B. PoF Adj Factor Scoring'!$E$3:$N$3,0)-1),2,TRUE)","v":1},{"$f":"VLOOKUP(E:E,OFFSET('B. PoF Adj Factor Scoring'!$E$5:$F$282,,MATCH(J$4,'B. PoF Adj Factor Scoring'!$E$3:$N$3,0)-1),2,TRUE)","v":1},{"$f":"VLOOKUP(F:F,OFFSET('B. PoF Adj Factor Scoring'!$E$5:$F$282,,MATCH(K$4,'B. PoF Adj Factor Scoring'!$E$3:$N$3,0)-1),2,TRUE)","v":1}]
[{"$f":"'A. Population Info'!A504","v":1001505513},{"$f":"'A. Population Info'!G504","v":"OIL"},{"$f":"'A. Population Info'!H504","v":1},{"$f":"'A. Population Info'!I504","v":0},{"$f":"'A. Population Info'!J504","v":0},{"$f":"'A. Population Info'!K504","v":0},{"$f":"VLOOKUP(B:B,OFFSET('B. PoF Adj Factor Scoring'!$E$5:$F$282,,MATCH(G$4,'B. PoF Adj Factor Scoring'!$E$3:$N$3,0)-1),2,TRUE)","v":1},{"$f":"VLOOKUP(C:C,OFFSET('B. PoF Adj Factor Scoring'!$E$5:$F$282,,MATCH(H$4,'B. PoF Adj Factor Scoring'!$E$3:$N$3,0)-1),2,TRUE)","v":1},{"$f":"VLOOKUP(D:D,OFFSET('B. PoF Adj Factor Scoring'!$E$5:$F$282,,MATCH(I$4,'B. PoF Adj Factor Scoring'!$E$3:$N$3,0)-1),2,TRUE)","v":1},{"$f":"VLOOKUP(E:E,OFFSET('B. PoF Adj Factor Scoring'!$E$5:$F$282,,MATCH(J$4,'B. PoF Adj Factor Scoring'!$E$3:$N$3,0)-1),2,TRUE)","v":1},{"$f":"VLOOKUP(F:F,OFFSET('B. PoF Adj Factor Scoring'!$E$5:$F$282,,MATCH(K$4,'B. PoF Adj Factor Scoring'!$E$3:$N$3,0)-1),2,TRUE)","v":1}]
[{"$f":"'A. Population Info'!A505","v":1001505514},{"$f":"'A. Population Info'!G505","v":"OIL"},{"$f":"'A. Population Info'!H505","v":2},{"$f":"'A. Population Info'!I505","v":0},{"$f":"'A. Population Info'!J505","v":0},{"$f":"'A. Population Info'!K505","v":0},{"$f":"VLOOKUP(B:B,OFFSET('B. PoF Adj Factor Scoring'!$E$5:$F$282,,MATCH(G$4,'B. PoF Adj Factor Scoring'!$E$3:$N$3,0)-1),2,TRUE)","v":1},{"$f":"VLOOKUP(C:C,OFFSET('B. PoF Adj Factor Scoring'!$E$5:$F$282,,MATCH(H$4,'B. PoF Adj Factor Scoring'!$E$3:$N$3,0)-1),2,TRUE)","v":2},{"$f":"VLOOKUP(D:D,OFFSET('B. PoF Adj Factor Scoring'!$E$5:$F$282,,MATCH(I$4,'B. PoF Adj Factor Scoring'!$E$3:$N$3,0)-1),2,TRUE)","v":1},{"$f":"VLOOKUP(E:E,OFFSET('B. PoF Adj Factor Scoring'!$E$5:$F$282,,MATCH(J$4,'B. PoF Adj Factor Scoring'!$E$3:$N$3,0)-1),2,TRUE)","v":1},{"$f":"VLOOKUP(F:F,OFFSET('B. PoF Adj Factor Scoring'!$E$5:$F$282,,MATCH(K$4,'B. PoF Adj Factor Scoring'!$E$3:$N$3,0)-1),2,TRUE)","v":1}]
[{"$f":"'A. Population Info'!A506","v":1001505537},{"$f":"'A. Population Info'!G506","v":"OIL"},{"$f":"'A. Population Info'!H506","v":1},{"$f":"'A. Population Info'!I506","v":0},{"$f":"'A. Population Info'!J506","v":0},{"$f":"'A. Population Info'!K506","v":0},{"$f":"VLOOKUP(B:B,OFFSET('B. PoF Adj Factor Scoring'!$E$5:$F$282,,MATCH(G$4,'B. PoF Adj Factor Scoring'!$E$3:$N$3,0)-1),2,TRUE)","v":1},{"$f":"VLOOKUP(C:C,OFFSET('B. PoF Adj Factor Scoring'!$E$5:$F$282,,MATCH(H$4,'B. PoF Adj Factor Scoring'!$E$3:$N$3,0)-1),2,TRUE)","v":1},{"$f":"VLOOKUP(D:D,OFFSET('B. PoF Adj Factor Scoring'!$E$5:$F$282,,MATCH(I$4,'B. PoF Adj Factor Scoring'!$E$3:$N$3,0)-1),2,TRUE)","v":1},{"$f":"VLOOKUP(E:E,OFFSET('B. PoF Adj Factor Scoring'!$E$5:$F$282,,MATCH(J$4,'B. PoF Adj Factor Scoring'!$E$3:$N$3,0)-1),2,TRUE)","v":1},{"$f":"VLOOKUP(F:F,OFFSET('B. PoF Adj Factor Scoring'!$E$5:$F$282,,MATCH(K$4,'B. PoF Adj Factor Scoring'!$E$3:$N$3,0)-1),2,TRUE)","v":1}]
[{"$f":"'A. Population Info'!A507","v":1001505538},{"$f":"'A. Population Info'!G507","v":"OIL"},{"$f":"'A. Population Info'!H507","v":1},{"$f":"'A. Population Info'!I507","v":0},{"$f":"'A. Population Info'!J507","v":0},{"$f":"'A. Population Info'!K507","v":0},{"$f":"VLOOKUP(B:B,OFFSET('B. PoF Adj Factor Scoring'!$E$5:$F$282,,MATCH(G$4,'B. PoF Adj Factor Scoring'!$E$3:$N$3,0)-1),2,TRUE)","v":1},{"$f":"VLOOKUP(C:C,OFFSET('B. PoF Adj Factor Scoring'!$E$5:$F$282,,MATCH(H$4,'B. PoF Adj Factor Scoring'!$E$3:$N$3,0)-1),2,TRUE)","v":1},{"$f":"VLOOKUP(D:D,OFFSET('B. PoF Adj Factor Scoring'!$E$5:$F$282,,MATCH(I$4,'B. PoF Adj Factor Scoring'!$E$3:$N$3,0)-1),2,TRUE)","v":1},{"$f":"VLOOKUP(E:E,OFFSET('B. PoF Adj Factor Scoring'!$E$5:$F$282,,MATCH(J$4,'B. PoF Adj Factor Scoring'!$E$3:$N$3,0)-1),2,TRUE)","v":1},{"$f":"VLOOKUP(F:F,OFFSET('B. PoF Adj Factor Scoring'!$E$5:$F$282,,MATCH(K$4,'B. PoF Adj Factor Scoring'!$E$3:$N$3,0)-1),2,TRUE)","v":1}]
[{"$f":"'A. Population Info'!A508","v":1001509331},{"$f":"'A. Population Info'!G508","v":"OIL"},{"$f":"'A. Population Info'!H508","v":1},{"$f":"'A. Population Info'!I508","v":0},{"$f":"'A. Population Info'!J508","v":0},{"$f":"'A. Population Info'!K508","v":0},{"$f":"VLOOKUP(B:B,OFFSET('B. PoF Adj Factor Scoring'!$E$5:$F$282,,MATCH(G$4,'B. PoF Adj Factor Scoring'!$E$3:$N$3,0)-1),2,TRUE)","v":1},{"$f":"VLOOKUP(C:C,OFFSET('B. PoF Adj Factor Scoring'!$E$5:$F$282,,MATCH(H$4,'B. PoF Adj Factor Scoring'!$E$3:$N$3,0)-1),2,TRUE)","v":1},{"$f":"VLOOKUP(D:D,OFFSET('B. PoF Adj Factor Scoring'!$E$5:$F$282,,MATCH(I$4,'B. PoF Adj Factor Scoring'!$E$3:$N$3,0)-1),2,TRUE)","v":1},{"$f":"VLOOKUP(E:E,OFFSET('B. PoF Adj Factor Scoring'!$E$5:$F$282,,MATCH(J$4,'B. PoF Adj Factor Scoring'!$E$3:$N$3,0)-1),2,TRUE)","v":1},{"$f":"VLOOKUP(F:F,OFFSET('B. PoF Adj Factor Scoring'!$E$5:$F$282,,MATCH(K$4,'B. PoF Adj Factor Scoring'!$E$3:$N$3,0)-1),2,TRUE)","v":1}]
[{"$f":"'A. Population Info'!A509","v":1001509851},{"$f":"'A. Population Info'!G509","v":"OIL"},{"$f":"'A. Population Info'!H509","v":1},{"$f":"'A. Population Info'!I509","v":0},{"$f":"'A. Population Info'!J509","v":0},{"$f":"'A. Population Info'!K509","v":0},{"$f":"VLOOKUP(B:B,OFFSET('B. PoF Adj Factor Scoring'!$E$5:$F$282,,MATCH(G$4,'B. PoF Adj Factor Scoring'!$E$3:$N$3,0)-1),2,TRUE)","v":1},{"$f":"VLOOKUP(C:C,OFFSET('B. PoF Adj Factor Scoring'!$E$5:$F$282,,MATCH(H$4,'B. PoF Adj Factor Scoring'!$E$3:$N$3,0)-1),2,TRUE)","v":1},{"$f":"VLOOKUP(D:D,OFFSET('B. PoF Adj Factor Scoring'!$E$5:$F$282,,MATCH(I$4,'B. PoF Adj Factor Scoring'!$E$3:$N$3,0)-1),2,TRUE)","v":1},{"$f":"VLOOKUP(E:E,OFFSET('B. PoF Adj Factor Scoring'!$E$5:$F$282,,MATCH(J$4,'B. PoF Adj Factor Scoring'!$E$3:$N$3,0)-1),2,TRUE)","v":1},{"$f":"VLOOKUP(F:F,OFFSET('B. PoF Adj Factor Scoring'!$E$5:$F$282,,MATCH(K$4,'B. PoF Adj Factor Scoring'!$E$3:$N$3,0)-1),2,TRUE)","v":1}]
[{"$f":"'A. Population Info'!A510","v":1001509852},{"$f":"'A. Population Info'!G510","v":"OIL"},{"$f":"'A. Population Info'!H510","v":1},{"$f":"'A. Population Info'!I510","v":0},{"$f":"'A. Population Info'!J510","v":0},{"$f":"'A. Population Info'!K510","v":0},{"$f":"VLOOKUP(B:B,OFFSET('B. PoF Adj Factor Scoring'!$E$5:$F$282,,MATCH(G$4,'B. PoF Adj Factor Scoring'!$E$3:$N$3,0)-1),2,TRUE)","v":1},{"$f":"VLOOKUP(C:C,OFFSET('B. PoF Adj Factor Scoring'!$E$5:$F$282,,MATCH(H$4,'B. PoF Adj Factor Scoring'!$E$3:$N$3,0)-1),2,TRUE)","v":1},{"$f":"VLOOKUP(D:D,OFFSET('B. PoF Adj Factor Scoring'!$E$5:$F$282,,MATCH(I$4,'B. PoF Adj Factor Scoring'!$E$3:$N$3,0)-1),2,TRUE)","v":1},{"$f":"VLOOKUP(E:E,OFFSET('B. PoF Adj Factor Scoring'!$E$5:$F$282,,MATCH(J$4,'B. PoF Adj Factor Scoring'!$E$3:$N$3,0)-1),2,TRUE)","v":1},{"$f":"VLOOKUP(F:F,OFFSET('B. PoF Adj Factor Scoring'!$E$5:$F$282,,MATCH(K$4,'B. PoF Adj Factor Scoring'!$E$3:$N$3,0)-1),2,TRUE)","v":1}]
[{"$f":"'A. Population Info'!A511","v":1001511639},{"$f":"'A. Population Info'!G511","v":"OIL"},{"$f":"'A. Population Info'!H511","v":2},{"$f":"'A. Population Info'!I511","v":0},{"$f":"'A. Population Info'!J511","v":0},{"$f":"'A. Population Info'!K511","v":0},{"$f":"VLOOKUP(B:B,OFFSET('B. PoF Adj Factor Scoring'!$E$5:$F$282,,MATCH(G$4,'B. PoF Adj Factor Scoring'!$E$3:$N$3,0)-1),2,TRUE)","v":1},{"$f":"VLOOKUP(C:C,OFFSET('B. PoF Adj Factor Scoring'!$E$5:$F$282,,MATCH(H$4,'B. PoF Adj Factor Scoring'!$E$3:$N$3,0)-1),2,TRUE)","v":2},{"$f":"VLOOKUP(D:D,OFFSET('B. PoF Adj Factor Scoring'!$E$5:$F$282,,MATCH(I$4,'B. PoF Adj Factor Scoring'!$E$3:$N$3,0)-1),2,TRUE)","v":1},{"$f":"VLOOKUP(E:E,OFFSET('B. PoF Adj Factor Scoring'!$E$5:$F$282,,MATCH(J$4,'B. PoF Adj Factor Scoring'!$E$3:$N$3,0)-1),2,TRUE)","v":1},{"$f":"VLOOKUP(F:F,OFFSET('B. PoF Adj Factor Scoring'!$E$5:$F$282,,MATCH(K$4,'B. PoF Adj Factor Scoring'!$E$3:$N$3,0)-1),2,TRUE)","v":1}]
[{"$f":"'A. Population Info'!A512","v":1001521524},{"$f":"'A. Population Info'!G512","v":"OIL"},{"$f":"'A. Population Info'!H512","v":1},{"$f":"'A. Population Info'!I512","v":0},{"$f":"'A. Population Info'!J512","v":0},{"$f":"'A. Population Info'!K512","v":0},{"$f":"VLOOKUP(B:B,OFFSET('B. PoF Adj Factor Scoring'!$E$5:$F$282,,MATCH(G$4,'B. PoF Adj Factor Scoring'!$E$3:$N$3,0)-1),2,TRUE)","v":1},{"$f":"VLOOKUP(C:C,OFFSET('B. PoF Adj Factor Scoring'!$E$5:$F$282,,MATCH(H$4,'B. PoF Adj Factor Scoring'!$E$3:$N$3,0)-1),2,TRUE)","v":1},{"$f":"VLOOKUP(D:D,OFFSET('B. PoF Adj Factor Scoring'!$E$5:$F$282,,MATCH(I$4,'B. PoF Adj Factor Scoring'!$E$3:$N$3,0)-1),2,TRUE)","v":1},{"$f":"VLOOKUP(E:E,OFFSET('B. PoF Adj Factor Scoring'!$E$5:$F$282,,MATCH(J$4,'B. PoF Adj Factor Scoring'!$E$3:$N$3,0)-1),2,TRUE)","v":1},{"$f":"VLOOKUP(F:F,OFFSET('B. PoF Adj Factor Scoring'!$E$5:$F$282,,MATCH(K$4,'B. PoF Adj Factor Scoring'!$E$3:$N$3,0)-1),2,TRUE)","v":1}]
[{"$f":"'A. Population Info'!A513","v":1001521525},{"$f":"'A. Population Info'!G513","v":"OIL"},{"$f":"'A. Population Info'!H513","v":1},{"$f":"'A. Population Info'!I513","v":0},{"$f":"'A. Population Info'!J513","v":0},{"$f":"'A. Population Info'!K513","v":0},{"$f":"VLOOKUP(B:B,OFFSET('B. PoF Adj Factor Scoring'!$E$5:$F$282,,MATCH(G$4,'B. PoF Adj Factor Scoring'!$E$3:$N$3,0)-1),2,TRUE)","v":1},{"$f":"VLOOKUP(C:C,OFFSET('B. PoF Adj Factor Scoring'!$E$5:$F$282,,MATCH(H$4,'B. PoF Adj Factor Scoring'!$E$3:$N$3,0)-1),2,TRUE)","v":1},{"$f":"VLOOKUP(D:D,OFFSET('B. PoF Adj Factor Scoring'!$E$5:$F$282,,MATCH(I$4,'B. PoF Adj Factor Scoring'!$E$3:$N$3,0)-1),2,TRUE)","v":1},{"$f":"VLOOKUP(E:E,OFFSET('B. PoF Adj Factor Scoring'!$E$5:$F$282,,MATCH(J$4,'B. PoF Adj Factor Scoring'!$E$3:$N$3,0)-1),2,TRUE)","v":1},{"$f":"VLOOKUP(F:F,OFFSET('B. PoF Adj Factor Scoring'!$E$5:$F$282,,MATCH(K$4,'B. PoF Adj Factor Scoring'!$E$3:$N$3,0)-1),2,TRUE)","v":1}]
[{"$f":"'A. Population Info'!A514","v":1001521526},{"$f":"'A. Population Info'!G514","v":"OIL"},{"$f":"'A. Population Info'!H514","v":1},{"$f":"'A. Population Info'!I514","v":0},{"$f":"'A. Population Info'!J514","v":0},{"$f":"'A. Population Info'!K514","v":0},{"$f":"VLOOKUP(B:B,OFFSET('B. PoF Adj Factor Scoring'!$E$5:$F$282,,MATCH(G$4,'B. PoF Adj Factor Scoring'!$E$3:$N$3,0)-1),2,TRUE)","v":1},{"$f":"VLOOKUP(C:C,OFFSET('B. PoF Adj Factor Scoring'!$E$5:$F$282,,MATCH(H$4,'B. PoF Adj Factor Scoring'!$E$3:$N$3,0)-1),2,TRUE)","v":1},{"$f":"VLOOKUP(D:D,OFFSET('B. PoF Adj Factor Scoring'!$E$5:$F$282,,MATCH(I$4,'B. PoF Adj Factor Scoring'!$E$3:$N$3,0)-1),2,TRUE)","v":1},{"$f":"VLOOKUP(E:E,OFFSET('B. PoF Adj Factor Scoring'!$E$5:$F$282,,MATCH(J$4,'B. PoF Adj Factor Scoring'!$E$3:$N$3,0)-1),2,TRUE)","v":1},{"$f":"VLOOKUP(F:F,OFFSET('B. PoF Adj Factor Scoring'!$E$5:$F$282,,MATCH(K$4,'B. PoF Adj Factor Scoring'!$E$3:$N$3,0)-1),2,TRUE)","v":1}]
[{"$f":"'A. Population Info'!A515","v":1001521527},{"$f":"'A. Population Info'!G515","v":"OIL"},{"$f":"'A. Population Info'!H515","v":1},{"$f":"'A. Population Info'!I515","v":0},{"$f":"'A. Population Info'!J515","v":0},{"$f":"'A. Population Info'!K515","v":0},{"$f":"VLOOKUP(B:B,OFFSET('B. PoF Adj Factor Scoring'!$E$5:$F$282,,MATCH(G$4,'B. PoF Adj Factor Scoring'!$E$3:$N$3,0)-1),2,TRUE)","v":1},{"$f":"VLOOKUP(C:C,OFFSET('B. PoF Adj Factor Scoring'!$E$5:$F$282,,MATCH(H$4,'B. PoF Adj Factor Scoring'!$E$3:$N$3,0)-1),2,TRUE)","v":1},{"$f":"VLOOKUP(D:D,OFFSET('B. PoF Adj Factor Scoring'!$E$5:$F$282,,MATCH(I$4,'B. PoF Adj Factor Scoring'!$E$3:$N$3,0)-1),2,TRUE)","v":1},{"$f":"VLOOKUP(E:E,OFFSET('B. PoF Adj Factor Scoring'!$E$5:$F$282,,MATCH(J$4,'B. PoF Adj Factor Scoring'!$E$3:$N$3,0)-1),2,TRUE)","v":1},{"$f":"VLOOKUP(F:F,OFFSET('B. PoF Adj Factor Scoring'!$E$5:$F$282,,MATCH(K$4,'B. PoF Adj Factor Scoring'!$E$3:$N$3,0)-1),2,TRUE)","v":1}]
[{"$f":"'A. Population Info'!A516","v":1001521528},{"$f":"'A. Population Info'!G516","v":"OIL"},{"$f":"'A. Population Info'!H516","v":1},{"$f":"'A. Population Info'!I516","v":0},{"$f":"'A. Population Info'!J516","v":0},{"$f":"'A. Population Info'!K516","v":0},{"$f":"VLOOKUP(B:B,OFFSET('B. PoF Adj Factor Scoring'!$E$5:$F$282,,MATCH(G$4,'B. PoF Adj Factor Scoring'!$E$3:$N$3,0)-1),2,TRUE)","v":1},{"$f":"VLOOKUP(C:C,OFFSET('B. PoF Adj Factor Scoring'!$E$5:$F$282,,MATCH(H$4,'B. PoF Adj Factor Scoring'!$E$3:$N$3,0)-1),2,TRUE)","v":1},{"$f":"VLOOKUP(D:D,OFFSET('B. PoF Adj Factor Scoring'!$E$5:$F$282,,MATCH(I$4,'B. PoF Adj Factor Scoring'!$E$3:$N$3,0)-1),2,TRUE)","v":1},{"$f":"VLOOKUP(E:E,OFFSET('B. PoF Adj Factor Scoring'!$E$5:$F$282,,MATCH(J$4,'B. PoF Adj Factor Scoring'!$E$3:$N$3,0)-1),2,TRUE)","v":1},{"$f":"VLOOKUP(F:F,OFFSET('B. PoF Adj Factor Scoring'!$E$5:$F$282,,MATCH(K$4,'B. PoF Adj Factor Scoring'!$E$3:$N$3,0)-1),2,TRUE)","v":1}]
[{"$f":"'A. Population Info'!A517","v":1001526010},{"$f":"'A. Population Info'!G517","v":"OIL"},{"$f":"'A. Population Info'!H517","v":1},{"$f":"'A. Population Info'!I517","v":0},{"$f":"'A. Population Info'!J517","v":0},{"$f":"'A. Population Info'!K517","v":0},{"$f":"VLOOKUP(B:B,OFFSET('B. PoF Adj Factor Scoring'!$E$5:$F$282,,MATCH(G$4,'B. PoF Adj Factor Scoring'!$E$3:$N$3,0)-1),2,TRUE)","v":1},{"$f":"VLOOKUP(C:C,OFFSET('B. PoF Adj Factor Scoring'!$E$5:$F$282,,MATCH(H$4,'B. PoF Adj Factor Scoring'!$E$3:$N$3,0)-1),2,TRUE)","v":1},{"$f":"VLOOKUP(D:D,OFFSET('B. PoF Adj Factor Scoring'!$E$5:$F$282,,MATCH(I$4,'B. PoF Adj Factor Scoring'!$E$3:$N$3,0)-1),2,TRUE)","v":1},{"$f":"VLOOKUP(E:E,OFFSET('B. PoF Adj Factor Scoring'!$E$5:$F$282,,MATCH(J$4,'B. PoF Adj Factor Scoring'!$E$3:$N$3,0)-1),2,TRUE)","v":1},{"$f":"VLOOKUP(F:F,OFFSET('B. PoF Adj Factor Scoring'!$E$5:$F$282,,MATCH(K$4,'B. PoF Adj Factor Scoring'!$E$3:$N$3,0)-1),2,TRUE)","v":1}]
[{"$f":"'A. Population Info'!A518","v":1001526011},{"$f":"'A. Population Info'!G518","v":"OIL"},{"$f":"'A. Population Info'!H518","v":1},{"$f":"'A. Population Info'!I518","v":0},{"$f":"'A. Population Info'!J518","v":0},{"$f":"'A. Population Info'!K518","v":0},{"$f":"VLOOKUP(B:B,OFFSET('B. PoF Adj Factor Scoring'!$E$5:$F$282,,MATCH(G$4,'B. PoF Adj Factor Scoring'!$E$3:$N$3,0)-1),2,TRUE)","v":1},{"$f":"VLOOKUP(C:C,OFFSET('B. PoF Adj Factor Scoring'!$E$5:$F$282,,MATCH(H$4,'B. PoF Adj Factor Scoring'!$E$3:$N$3,0)-1),2,TRUE)","v":1},{"$f":"VLOOKUP(D:D,OFFSET('B. PoF Adj Factor Scoring'!$E$5:$F$282,,MATCH(I$4,'B. PoF Adj Factor Scoring'!$E$3:$N$3,0)-1),2,TRUE)","v":1},{"$f":"VLOOKUP(E:E,OFFSET('B. PoF Adj Factor Scoring'!$E$5:$F$282,,MATCH(J$4,'B. PoF Adj Factor Scoring'!$E$3:$N$3,0)-1),2,TRUE)","v":1},{"$f":"VLOOKUP(F:F,OFFSET('B. PoF Adj Factor Scoring'!$E$5:$F$282,,MATCH(K$4,'B. PoF Adj Factor Scoring'!$E$3:$N$3,0)-1),2,TRUE)","v":1}]
[{"$f":"'A. Population Info'!A519","v":1001526012},{"$f":"'A. Population Info'!G519","v":"OIL"},{"$f":"'A. Population Info'!H519","v":1},{"$f":"'A. Population Info'!I519","v":0},{"$f":"'A. Population Info'!J519","v":0},{"$f":"'A. Population Info'!K519","v":0},{"$f":"VLOOKUP(B:B,OFFSET('B. PoF Adj Factor Scoring'!$E$5:$F$282,,MATCH(G$4,'B. PoF Adj Factor Scoring'!$E$3:$N$3,0)-1),2,TRUE)","v":1},{"$f":"VLOOKUP(C:C,OFFSET('B. PoF Adj Factor Scoring'!$E$5:$F$282,,MATCH(H$4,'B. PoF Adj Factor Scoring'!$E$3:$N$3,0)-1),2,TRUE)","v":1},{"$f":"VLOOKUP(D:D,OFFSET('B. PoF Adj Factor Scoring'!$E$5:$F$282,,MATCH(I$4,'B. PoF Adj Factor Scoring'!$E$3:$N$3,0)-1),2,TRUE)","v":1},{"$f":"VLOOKUP(E:E,OFFSET('B. PoF Adj Factor Scoring'!$E$5:$F$282,,MATCH(J$4,'B. PoF Adj Factor Scoring'!$E$3:$N$3,0)-1),2,TRUE)","v":1},{"$f":"VLOOKUP(F:F,OFFSET('B. PoF Adj Factor Scoring'!$E$5:$F$282,,MATCH(K$4,'B. PoF Adj Factor Scoring'!$E$3:$N$3,0)-1),2,TRUE)","v":1}]
[{"$f":"'A. Population Info'!A520","v":1001528056},{"$f":"'A. Population Info'!G520","v":"OIL"},{"$f":"'A. Population Info'!H520","v":1},{"$f":"'A. Population Info'!I520","v":0},{"$f":"'A. Population Info'!J520","v":0},{"$f":"'A. Population Info'!K520","v":0},{"$f":"VLOOKUP(B:B,OFFSET('B. PoF Adj Factor Scoring'!$E$5:$F$282,,MATCH(G$4,'B. PoF Adj Factor Scoring'!$E$3:$N$3,0)-1),2,TRUE)","v":1},{"$f":"VLOOKUP(C:C,OFFSET('B. PoF Adj Factor Scoring'!$E$5:$F$282,,MATCH(H$4,'B. PoF Adj Factor Scoring'!$E$3:$N$3,0)-1),2,TRUE)","v":1},{"$f":"VLOOKUP(D:D,OFFSET('B. PoF Adj Factor Scoring'!$E$5:$F$282,,MATCH(I$4,'B. PoF Adj Factor Scoring'!$E$3:$N$3,0)-1),2,TRUE)","v":1},{"$f":"VLOOKUP(E:E,OFFSET('B. PoF Adj Factor Scoring'!$E$5:$F$282,,MATCH(J$4,'B. PoF Adj Factor Scoring'!$E$3:$N$3,0)-1),2,TRUE)","v":1},{"$f":"VLOOKUP(F:F,OFFSET('B. PoF Adj Factor Scoring'!$E$5:$F$282,,MATCH(K$4,'B. PoF Adj Factor Scoring'!$E$3:$N$3,0)-1),2,TRUE)","v":1}]
[{"$f":"'A. Population Info'!A521","v":1001528057},{"$f":"'A. Population Info'!G521","v":"OIL"},{"$f":"'A. Population Info'!H521","v":2},{"$f":"'A. Population Info'!I521","v":0},{"$f":"'A. Population Info'!J521","v":0},{"$f":"'A. Population Info'!K521","v":0},{"$f":"VLOOKUP(B:B,OFFSET('B. PoF Adj Factor Scoring'!$E$5:$F$282,,MATCH(G$4,'B. PoF Adj Factor Scoring'!$E$3:$N$3,0)-1),2,TRUE)","v":1},{"$f":"VLOOKUP(C:C,OFFSET('B. PoF Adj Factor Scoring'!$E$5:$F$282,,MATCH(H$4,'B. PoF Adj Factor Scoring'!$E$3:$N$3,0)-1),2,TRUE)","v":2},{"$f":"VLOOKUP(D:D,OFFSET('B. PoF Adj Factor Scoring'!$E$5:$F$282,,MATCH(I$4,'B. PoF Adj Factor Scoring'!$E$3:$N$3,0)-1),2,TRUE)","v":1},{"$f":"VLOOKUP(E:E,OFFSET('B. PoF Adj Factor Scoring'!$E$5:$F$282,,MATCH(J$4,'B. PoF Adj Factor Scoring'!$E$3:$N$3,0)-1),2,TRUE)","v":1},{"$f":"VLOOKUP(F:F,OFFSET('B. PoF Adj Factor Scoring'!$E$5:$F$282,,MATCH(K$4,'B. PoF Adj Factor Scoring'!$E$3:$N$3,0)-1),2,TRUE)","v":1}]
[{"$f":"'A. Population Info'!A522","v":1001528058},{"$f":"'A. Population Info'!G522","v":"OIL"},{"$f":"'A. Population Info'!H522","v":1},{"$f":"'A. Population Info'!I522","v":0},{"$f":"'A. Population Info'!J522","v":0},{"$f":"'A. Population Info'!K522","v":0},{"$f":"VLOOKUP(B:B,OFFSET('B. PoF Adj Factor Scoring'!$E$5:$F$282,,MATCH(G$4,'B. PoF Adj Factor Scoring'!$E$3:$N$3,0)-1),2,TRUE)","v":1},{"$f":"VLOOKUP(C:C,OFFSET('B. PoF Adj Factor Scoring'!$E$5:$F$282,,MATCH(H$4,'B. PoF Adj Factor Scoring'!$E$3:$N$3,0)-1),2,TRUE)","v":1},{"$f":"VLOOKUP(D:D,OFFSET('B. PoF Adj Factor Scoring'!$E$5:$F$282,,MATCH(I$4,'B. PoF Adj Factor Scoring'!$E$3:$N$3,0)-1),2,TRUE)","v":1},{"$f":"VLOOKUP(E:E,OFFSET('B. PoF Adj Factor Scoring'!$E$5:$F$282,,MATCH(J$4,'B. PoF Adj Factor Scoring'!$E$3:$N$3,0)-1),2,TRUE)","v":1},{"$f":"VLOOKUP(F:F,OFFSET('B. PoF Adj Factor Scoring'!$E$5:$F$282,,MATCH(K$4,'B. PoF Adj Factor Scoring'!$E$3:$N$3,0)-1),2,TRUE)","v":1}]
[{"$f":"'A. Population Info'!A523","v":1001528059},{"$f":"'A. Population Info'!G523","v":"OIL"},{"$f":"'A. Population Info'!H523","v":1},{"$f":"'A. Population Info'!I523","v":0},{"$f":"'A. Population Info'!J523","v":0},{"$f":"'A. Population Info'!K523","v":0},{"$f":"VLOOKUP(B:B,OFFSET('B. PoF Adj Factor Scoring'!$E$5:$F$282,,MATCH(G$4,'B. PoF Adj Factor Scoring'!$E$3:$N$3,0)-1),2,TRUE)","v":1},{"$f":"VLOOKUP(C:C,OFFSET('B. PoF Adj Factor Scoring'!$E$5:$F$282,,MATCH(H$4,'B. PoF Adj Factor Scoring'!$E$3:$N$3,0)-1),2,TRUE)","v":1},{"$f":"VLOOKUP(D:D,OFFSET('B. PoF Adj Factor Scoring'!$E$5:$F$282,,MATCH(I$4,'B. PoF Adj Factor Scoring'!$E$3:$N$3,0)-1),2,TRUE)","v":1},{"$f":"VLOOKUP(E:E,OFFSET('B. PoF Adj Factor Scoring'!$E$5:$F$282,,MATCH(J$4,'B. PoF Adj Factor Scoring'!$E$3:$N$3,0)-1),2,TRUE)","v":1},{"$f":"VLOOKUP(F:F,OFFSET('B. PoF Adj Factor Scoring'!$E$5:$F$282,,MATCH(K$4,'B. PoF Adj Factor Scoring'!$E$3:$N$3,0)-1),2,TRUE)","v":1}]
[{"$f":"'A. Population Info'!A524","v":1001528099},{"$f":"'A. Population Info'!G524","v":"OIL"},{"$f":"'A. Population Info'!H524","v":1},{"$f":"'A. Population Info'!I524","v":0},{"$f":"'A. Population Info'!J524","v":0},{"$f":"'A. Population Info'!K524","v":0},{"$f":"VLOOKUP(B:B,OFFSET('B. PoF Adj Factor Scoring'!$E$5:$F$282,,MATCH(G$4,'B. PoF Adj Factor Scoring'!$E$3:$N$3,0)-1),2,TRUE)","v":1},{"$f":"VLOOKUP(C:C,OFFSET('B. PoF Adj Factor Scoring'!$E$5:$F$282,,MATCH(H$4,'B. PoF Adj Factor Scoring'!$E$3:$N$3,0)-1),2,TRUE)","v":1},{"$f":"VLOOKUP(D:D,OFFSET('B. PoF Adj Factor Scoring'!$E$5:$F$282,,MATCH(I$4,'B. PoF Adj Factor Scoring'!$E$3:$N$3,0)-1),2,TRUE)","v":1},{"$f":"VLOOKUP(E:E,OFFSET('B. PoF Adj Factor Scoring'!$E$5:$F$282,,MATCH(J$4,'B. PoF Adj Factor Scoring'!$E$3:$N$3,0)-1),2,TRUE)","v":1},{"$f":"VLOOKUP(F:F,OFFSET('B. PoF Adj Factor Scoring'!$E$5:$F$282,,MATCH(K$4,'B. PoF Adj Factor Scoring'!$E$3:$N$3,0)-1),2,TRUE)","v":1}]
[{"$f":"'A. Population Info'!A525","v":1001528100},{"$f":"'A. Population Info'!G525","v":"OIL"},{"$f":"'A. Population Info'!H525","v":1},{"$f":"'A. Population Info'!I525","v":0},{"$f":"'A. Population Info'!J525","v":0},{"$f":"'A. Population Info'!K525","v":0},{"$f":"VLOOKUP(B:B,OFFSET('B. PoF Adj Factor Scoring'!$E$5:$F$282,,MATCH(G$4,'B. PoF Adj Factor Scoring'!$E$3:$N$3,0)-1),2,TRUE)","v":1},{"$f":"VLOOKUP(C:C,OFFSET('B. PoF Adj Factor Scoring'!$E$5:$F$282,,MATCH(H$4,'B. PoF Adj Factor Scoring'!$E$3:$N$3,0)-1),2,TRUE)","v":1},{"$f":"VLOOKUP(D:D,OFFSET('B. PoF Adj Factor Scoring'!$E$5:$F$282,,MATCH(I$4,'B. PoF Adj Factor Scoring'!$E$3:$N$3,0)-1),2,TRUE)","v":1},{"$f":"VLOOKUP(E:E,OFFSET('B. PoF Adj Factor Scoring'!$E$5:$F$282,,MATCH(J$4,'B. PoF Adj Factor Scoring'!$E$3:$N$3,0)-1),2,TRUE)","v":1},{"$f":"VLOOKUP(F:F,OFFSET('B. PoF Adj Factor Scoring'!$E$5:$F$282,,MATCH(K$4,'B. PoF Adj Factor Scoring'!$E$3:$N$3,0)-1),2,TRUE)","v":1}]
[{"$f":"'A. Population Info'!A526","v":1001537307},{"$f":"'A. Population Info'!G526","v":"OIL"},{"$f":"'A. Population Info'!H526","v":1},{"$f":"'A. Population Info'!I526","v":0},{"$f":"'A. Population Info'!J526","v":0},{"$f":"'A. Population Info'!K526","v":0},{"$f":"VLOOKUP(B:B,OFFSET('B. PoF Adj Factor Scoring'!$E$5:$F$282,,MATCH(G$4,'B. PoF Adj Factor Scoring'!$E$3:$N$3,0)-1),2,TRUE)","v":1},{"$f":"VLOOKUP(C:C,OFFSET('B. PoF Adj Factor Scoring'!$E$5:$F$282,,MATCH(H$4,'B. PoF Adj Factor Scoring'!$E$3:$N$3,0)-1),2,TRUE)","v":1},{"$f":"VLOOKUP(D:D,OFFSET('B. PoF Adj Factor Scoring'!$E$5:$F$282,,MATCH(I$4,'B. PoF Adj Factor Scoring'!$E$3:$N$3,0)-1),2,TRUE)","v":1},{"$f":"VLOOKUP(E:E,OFFSET('B. PoF Adj Factor Scoring'!$E$5:$F$282,,MATCH(J$4,'B. PoF Adj Factor Scoring'!$E$3:$N$3,0)-1),2,TRUE)","v":1},{"$f":"VLOOKUP(F:F,OFFSET('B. PoF Adj Factor Scoring'!$E$5:$F$282,,MATCH(K$4,'B. PoF Adj Factor Scoring'!$E$3:$N$3,0)-1),2,TRUE)","v":1}]
[{"$f":"'A. Population Info'!A527","v":1001538184},{"$f":"'A. Population Info'!G527","v":"OIL"},{"$f":"'A. Population Info'!H527","v":1},{"$f":"'A. Population Info'!I527","v":0},{"$f":"'A. Population Info'!J527","v":0},{"$f":"'A. Population Info'!K527","v":0},{"$f":"VLOOKUP(B:B,OFFSET('B. PoF Adj Factor Scoring'!$E$5:$F$282,,MATCH(G$4,'B. PoF Adj Factor Scoring'!$E$3:$N$3,0)-1),2,TRUE)","v":1},{"$f":"VLOOKUP(C:C,OFFSET('B. PoF Adj Factor Scoring'!$E$5:$F$282,,MATCH(H$4,'B. PoF Adj Factor Scoring'!$E$3:$N$3,0)-1),2,TRUE)","v":1},{"$f":"VLOOKUP(D:D,OFFSET('B. PoF Adj Factor Scoring'!$E$5:$F$282,,MATCH(I$4,'B. PoF Adj Factor Scoring'!$E$3:$N$3,0)-1),2,TRUE)","v":1},{"$f":"VLOOKUP(E:E,OFFSET('B. PoF Adj Factor Scoring'!$E$5:$F$282,,MATCH(J$4,'B. PoF Adj Factor Scoring'!$E$3:$N$3,0)-1),2,TRUE)","v":1},{"$f":"VLOOKUP(F:F,OFFSET('B. PoF Adj Factor Scoring'!$E$5:$F$282,,MATCH(K$4,'B. PoF Adj Factor Scoring'!$E$3:$N$3,0)-1),2,TRUE)","v":1}]
[{"$f":"'A. Population Info'!A528","v":1001538185},{"$f":"'A. Population Info'!G528","v":"OIL"},{"$f":"'A. Population Info'!H528","v":1},{"$f":"'A. Population Info'!I528","v":0},{"$f":"'A. Population Info'!J528","v":0},{"$f":"'A. Population Info'!K528","v":0},{"$f":"VLOOKUP(B:B,OFFSET('B. PoF Adj Factor Scoring'!$E$5:$F$282,,MATCH(G$4,'B. PoF Adj Factor Scoring'!$E$3:$N$3,0)-1),2,TRUE)","v":1},{"$f":"VLOOKUP(C:C,OFFSET('B. PoF Adj Factor Scoring'!$E$5:$F$282,,MATCH(H$4,'B. PoF Adj Factor Scoring'!$E$3:$N$3,0)-1),2,TRUE)","v":1},{"$f":"VLOOKUP(D:D,OFFSET('B. PoF Adj Factor Scoring'!$E$5:$F$282,,MATCH(I$4,'B. PoF Adj Factor Scoring'!$E$3:$N$3,0)-1),2,TRUE)","v":1},{"$f":"VLOOKUP(E:E,OFFSET('B. PoF Adj Factor Scoring'!$E$5:$F$282,,MATCH(J$4,'B. PoF Adj Factor Scoring'!$E$3:$N$3,0)-1),2,TRUE)","v":1},{"$f":"VLOOKUP(F:F,OFFSET('B. PoF Adj Factor Scoring'!$E$5:$F$282,,MATCH(K$4,'B. PoF Adj Factor Scoring'!$E$3:$N$3,0)-1),2,TRUE)","v":1}]
[{"$f":"'A. Population Info'!A529","v":1001542444},{"$f":"'A. Population Info'!G529","v":"OIL"},{"$f":"'A. Population Info'!H529","v":1},{"$f":"'A. Population Info'!I529","v":0},{"$f":"'A. Population Info'!J529","v":0},{"$f":"'A. Population Info'!K529","v":0},{"$f":"VLOOKUP(B:B,OFFSET('B. PoF Adj Factor Scoring'!$E$5:$F$282,,MATCH(G$4,'B. PoF Adj Factor Scoring'!$E$3:$N$3,0)-1),2,TRUE)","v":1},{"$f":"VLOOKUP(C:C,OFFSET('B. PoF Adj Factor Scoring'!$E$5:$F$282,,MATCH(H$4,'B. PoF Adj Factor Scoring'!$E$3:$N$3,0)-1),2,TRUE)","v":1},{"$f":"VLOOKUP(D:D,OFFSET('B. PoF Adj Factor Scoring'!$E$5:$F$282,,MATCH(I$4,'B. PoF Adj Factor Scoring'!$E$3:$N$3,0)-1),2,TRUE)","v":1},{"$f":"VLOOKUP(E:E,OFFSET('B. PoF Adj Factor Scoring'!$E$5:$F$282,,MATCH(J$4,'B. PoF Adj Factor Scoring'!$E$3:$N$3,0)-1),2,TRUE)","v":1},{"$f":"VLOOKUP(F:F,OFFSET('B. PoF Adj Factor Scoring'!$E$5:$F$282,,MATCH(K$4,'B. PoF Adj Factor Scoring'!$E$3:$N$3,0)-1),2,TRUE)","v":1}]
[{"$f":"'A. Population Info'!A530","v":1001542445},{"$f":"'A. Population Info'!G530","v":"OIL"},{"$f":"'A. Population Info'!H530","v":1},{"$f":"'A. Population Info'!I530","v":0},{"$f":"'A. Population Info'!J530","v":0},{"$f":"'A. Population Info'!K530","v":0},{"$f":"VLOOKUP(B:B,OFFSET('B. PoF Adj Factor Scoring'!$E$5:$F$282,,MATCH(G$4,'B. PoF Adj Factor Scoring'!$E$3:$N$3,0)-1),2,TRUE)","v":1},{"$f":"VLOOKUP(C:C,OFFSET('B. PoF Adj Factor Scoring'!$E$5:$F$282,,MATCH(H$4,'B. PoF Adj Factor Scoring'!$E$3:$N$3,0)-1),2,TRUE)","v":1},{"$f":"VLOOKUP(D:D,OFFSET('B. PoF Adj Factor Scoring'!$E$5:$F$282,,MATCH(I$4,'B. PoF Adj Factor Scoring'!$E$3:$N$3,0)-1),2,TRUE)","v":1},{"$f":"VLOOKUP(E:E,OFFSET('B. PoF Adj Factor Scoring'!$E$5:$F$282,,MATCH(J$4,'B. PoF Adj Factor Scoring'!$E$3:$N$3,0)-1),2,TRUE)","v":1},{"$f":"VLOOKUP(F:F,OFFSET('B. PoF Adj Factor Scoring'!$E$5:$F$282,,MATCH(K$4,'B. PoF Adj Factor Scoring'!$E$3:$N$3,0)-1),2,TRUE)","v":1}]
[{"$f":"'A. Population Info'!A531","v":1001551112},{"$f":"'A. Population Info'!G531","v":"OIL"},{"$f":"'A. Population Info'!H531","v":1},{"$f":"'A. Population Info'!I531","v":0},{"$f":"'A. Population Info'!J531","v":0},{"$f":"'A. Population Info'!K531","v":0},{"$f":"VLOOKUP(B:B,OFFSET('B. PoF Adj Factor Scoring'!$E$5:$F$282,,MATCH(G$4,'B. PoF Adj Factor Scoring'!$E$3:$N$3,0)-1),2,TRUE)","v":1},{"$f":"VLOOKUP(C:C,OFFSET('B. PoF Adj Factor Scoring'!$E$5:$F$282,,MATCH(H$4,'B. PoF Adj Factor Scoring'!$E$3:$N$3,0)-1),2,TRUE)","v":1},{"$f":"VLOOKUP(D:D,OFFSET('B. PoF Adj Factor Scoring'!$E$5:$F$282,,MATCH(I$4,'B. PoF Adj Factor Scoring'!$E$3:$N$3,0)-1),2,TRUE)","v":1},{"$f":"VLOOKUP(E:E,OFFSET('B. PoF Adj Factor Scoring'!$E$5:$F$282,,MATCH(J$4,'B. PoF Adj Factor Scoring'!$E$3:$N$3,0)-1),2,TRUE)","v":1},{"$f":"VLOOKUP(F:F,OFFSET('B. PoF Adj Factor Scoring'!$E$5:$F$282,,MATCH(K$4,'B. PoF Adj Factor Scoring'!$E$3:$N$3,0)-1),2,TRUE)","v":1}]
[{"$f":"'A. Population Info'!A532","v":1001551113},{"$f":"'A. Population Info'!G532","v":"OIL"},{"$f":"'A. Population Info'!H532","v":1},{"$f":"'A. Population Info'!I532","v":0},{"$f":"'A. Population Info'!J532","v":0},{"$f":"'A. Population Info'!K532","v":0},{"$f":"VLOOKUP(B:B,OFFSET('B. PoF Adj Factor Scoring'!$E$5:$F$282,,MATCH(G$4,'B. PoF Adj Factor Scoring'!$E$3:$N$3,0)-1),2,TRUE)","v":1},{"$f":"VLOOKUP(C:C,OFFSET('B. PoF Adj Factor Scoring'!$E$5:$F$282,,MATCH(H$4,'B. PoF Adj Factor Scoring'!$E$3:$N$3,0)-1),2,TRUE)","v":1},{"$f":"VLOOKUP(D:D,OFFSET('B. PoF Adj Factor Scoring'!$E$5:$F$282,,MATCH(I$4,'B. PoF Adj Factor Scoring'!$E$3:$N$3,0)-1),2,TRUE)","v":1},{"$f":"VLOOKUP(E:E,OFFSET('B. PoF Adj Factor Scoring'!$E$5:$F$282,,MATCH(J$4,'B. PoF Adj Factor Scoring'!$E$3:$N$3,0)-1),2,TRUE)","v":1},{"$f":"VLOOKUP(F:F,OFFSET('B. PoF Adj Factor Scoring'!$E$5:$F$282,,MATCH(K$4,'B. PoF Adj Factor Scoring'!$E$3:$N$3,0)-1),2,TRUE)","v":1}]
[{"$f":"'A. Population Info'!A533","v":1001553102},{"$f":"'A. Population Info'!G533","v":"OIL"},{"$f":"'A. Population Info'!H533","v":3},{"$f":"'A. Population Info'!I533","v":0},{"$f":"'A. Population Info'!J533","v":0},{"$f":"'A. Population Info'!K533","v":0},{"$f":"VLOOKUP(B:B,OFFSET('B. PoF Adj Factor Scoring'!$E$5:$F$282,,MATCH(G$4,'B. PoF Adj Factor Scoring'!$E$3:$N$3,0)-1),2,TRUE)","v":1},{"$f":"VLOOKUP(C:C,OFFSET('B. PoF Adj Factor Scoring'!$E$5:$F$282,,MATCH(H$4,'B. PoF Adj Factor Scoring'!$E$3:$N$3,0)-1),2,TRUE)","v":3},{"$f":"VLOOKUP(D:D,OFFSET('B. PoF Adj Factor Scoring'!$E$5:$F$282,,MATCH(I$4,'B. PoF Adj Factor Scoring'!$E$3:$N$3,0)-1),2,TRUE)","v":1},{"$f":"VLOOKUP(E:E,OFFSET('B. PoF Adj Factor Scoring'!$E$5:$F$282,,MATCH(J$4,'B. PoF Adj Factor Scoring'!$E$3:$N$3,0)-1),2,TRUE)","v":1},{"$f":"VLOOKUP(F:F,OFFSET('B. PoF Adj Factor Scoring'!$E$5:$F$282,,MATCH(K$4,'B. PoF Adj Factor Scoring'!$E$3:$N$3,0)-1),2,TRUE)","v":1}]
[{"$f":"'A. Population Info'!A534","v":1001553103},{"$f":"'A. Population Info'!G534","v":"OIL"},{"$f":"'A. Population Info'!H534","v":1},{"$f":"'A. Population Info'!I534","v":0},{"$f":"'A. Population Info'!J534","v":0},{"$f":"'A. Population Info'!K534","v":0},{"$f":"VLOOKUP(B:B,OFFSET('B. PoF Adj Factor Scoring'!$E$5:$F$282,,MATCH(G$4,'B. PoF Adj Factor Scoring'!$E$3:$N$3,0)-1),2,TRUE)","v":1},{"$f":"VLOOKUP(C:C,OFFSET('B. PoF Adj Factor Scoring'!$E$5:$F$282,,MATCH(H$4,'B. PoF Adj Factor Scoring'!$E$3:$N$3,0)-1),2,TRUE)","v":1},{"$f":"VLOOKUP(D:D,OFFSET('B. PoF Adj Factor Scoring'!$E$5:$F$282,,MATCH(I$4,'B. PoF Adj Factor Scoring'!$E$3:$N$3,0)-1),2,TRUE)","v":1},{"$f":"VLOOKUP(E:E,OFFSET('B. PoF Adj Factor Scoring'!$E$5:$F$282,,MATCH(J$4,'B. PoF Adj Factor Scoring'!$E$3:$N$3,0)-1),2,TRUE)","v":1},{"$f":"VLOOKUP(F:F,OFFSET('B. PoF Adj Factor Scoring'!$E$5:$F$282,,MATCH(K$4,'B. PoF Adj Factor Scoring'!$E$3:$N$3,0)-1),2,TRUE)","v":1}]
[{"$f":"'A. Population Info'!A535","v":1001560042},{"$f":"'A. Population Info'!G535","v":"OIL"},{"$f":"'A. Population Info'!H535","v":1},{"$f":"'A. Population Info'!I535","v":0},{"$f":"'A. Population Info'!J535","v":0},{"$f":"'A. Population Info'!K535","v":0},{"$f":"VLOOKUP(B:B,OFFSET('B. PoF Adj Factor Scoring'!$E$5:$F$282,,MATCH(G$4,'B. PoF Adj Factor Scoring'!$E$3:$N$3,0)-1),2,TRUE)","v":1},{"$f":"VLOOKUP(C:C,OFFSET('B. PoF Adj Factor Scoring'!$E$5:$F$282,,MATCH(H$4,'B. PoF Adj Factor Scoring'!$E$3:$N$3,0)-1),2,TRUE)","v":1},{"$f":"VLOOKUP(D:D,OFFSET('B. PoF Adj Factor Scoring'!$E$5:$F$282,,MATCH(I$4,'B. PoF Adj Factor Scoring'!$E$3:$N$3,0)-1),2,TRUE)","v":1},{"$f":"VLOOKUP(E:E,OFFSET('B. PoF Adj Factor Scoring'!$E$5:$F$282,,MATCH(J$4,'B. PoF Adj Factor Scoring'!$E$3:$N$3,0)-1),2,TRUE)","v":1},{"$f":"VLOOKUP(F:F,OFFSET('B. PoF Adj Factor Scoring'!$E$5:$F$282,,MATCH(K$4,'B. PoF Adj Factor Scoring'!$E$3:$N$3,0)-1),2,TRUE)","v":1}]
[{"$f":"'A. Population Info'!A536","v":1001560043},{"$f":"'A. Population Info'!G536","v":"OIL"},{"$f":"'A. Population Info'!H536","v":1},{"$f":"'A. Population Info'!I536","v":0},{"$f":"'A. Population Info'!J536","v":0},{"$f":"'A. Population Info'!K536","v":0},{"$f":"VLOOKUP(B:B,OFFSET('B. PoF Adj Factor Scoring'!$E$5:$F$282,,MATCH(G$4,'B. PoF Adj Factor Scoring'!$E$3:$N$3,0)-1),2,TRUE)","v":1},{"$f":"VLOOKUP(C:C,OFFSET('B. PoF Adj Factor Scoring'!$E$5:$F$282,,MATCH(H$4,'B. PoF Adj Factor Scoring'!$E$3:$N$3,0)-1),2,TRUE)","v":1},{"$f":"VLOOKUP(D:D,OFFSET('B. PoF Adj Factor Scoring'!$E$5:$F$282,,MATCH(I$4,'B. PoF Adj Factor Scoring'!$E$3:$N$3,0)-1),2,TRUE)","v":1},{"$f":"VLOOKUP(E:E,OFFSET('B. PoF Adj Factor Scoring'!$E$5:$F$282,,MATCH(J$4,'B. PoF Adj Factor Scoring'!$E$3:$N$3,0)-1),2,TRUE)","v":1},{"$f":"VLOOKUP(F:F,OFFSET('B. PoF Adj Factor Scoring'!$E$5:$F$282,,MATCH(K$4,'B. PoF Adj Factor Scoring'!$E$3:$N$3,0)-1),2,TRUE)","v":1}]
[{"$f":"'A. Population Info'!A537","v":1001560044},{"$f":"'A. Population Info'!G537","v":"OIL"},{"$f":"'A. Population Info'!H537","v":1},{"$f":"'A. Population Info'!I537","v":0},{"$f":"'A. Population Info'!J537","v":0},{"$f":"'A. Population Info'!K537","v":0},{"$f":"VLOOKUP(B:B,OFFSET('B. PoF Adj Factor Scoring'!$E$5:$F$282,,MATCH(G$4,'B. PoF Adj Factor Scoring'!$E$3:$N$3,0)-1),2,TRUE)","v":1},{"$f":"VLOOKUP(C:C,OFFSET('B. PoF Adj Factor Scoring'!$E$5:$F$282,,MATCH(H$4,'B. PoF Adj Factor Scoring'!$E$3:$N$3,0)-1),2,TRUE)","v":1},{"$f":"VLOOKUP(D:D,OFFSET('B. PoF Adj Factor Scoring'!$E$5:$F$282,,MATCH(I$4,'B. PoF Adj Factor Scoring'!$E$3:$N$3,0)-1),2,TRUE)","v":1},{"$f":"VLOOKUP(E:E,OFFSET('B. PoF Adj Factor Scoring'!$E$5:$F$282,,MATCH(J$4,'B. PoF Adj Factor Scoring'!$E$3:$N$3,0)-1),2,TRUE)","v":1},{"$f":"VLOOKUP(F:F,OFFSET('B. PoF Adj Factor Scoring'!$E$5:$F$282,,MATCH(K$4,'B. PoF Adj Factor Scoring'!$E$3:$N$3,0)-1),2,TRUE)","v":1}]
[{"$f":"'A. Population Info'!A538","v":1001571355},{"$f":"'A. Population Info'!G538","v":"OIL_FR3"},{"$f":"'A. Population Info'!H538","v":1},{"$f":"'A. Population Info'!I538","v":0},{"$f":"'A. Population Info'!J538","v":0},{"$f":"'A. Population Info'!K538","v":0},{"$f":"VLOOKUP(B:B,OFFSET('B. PoF Adj Factor Scoring'!$E$5:$F$282,,MATCH(G$4,'B. PoF Adj Factor Scoring'!$E$3:$N$3,0)-1),2,TRUE)","v":1},{"$f":"VLOOKUP(C:C,OFFSET('B. PoF Adj Factor Scoring'!$E$5:$F$282,,MATCH(H$4,'B. PoF Adj Factor Scoring'!$E$3:$N$3,0)-1),2,TRUE)","v":1},{"$f":"VLOOKUP(D:D,OFFSET('B. PoF Adj Factor Scoring'!$E$5:$F$282,,MATCH(I$4,'B. PoF Adj Factor Scoring'!$E$3:$N$3,0)-1),2,TRUE)","v":1},{"$f":"VLOOKUP(E:E,OFFSET('B. PoF Adj Factor Scoring'!$E$5:$F$282,,MATCH(J$4,'B. PoF Adj Factor Scoring'!$E$3:$N$3,0)-1),2,TRUE)","v":1},{"$f":"VLOOKUP(F:F,OFFSET('B. PoF Adj Factor Scoring'!$E$5:$F$282,,MATCH(K$4,'B. PoF Adj Factor Scoring'!$E$3:$N$3,0)-1),2,TRUE)","v":1}]
[{"$f":"'A. Population Info'!A539","v":1001571356},{"$f":"'A. Population Info'!G539","v":"OIL_FR3"},{"$f":"'A. Population Info'!H539","v":3},{"$f":"'A. Population Info'!I539","v":0},{"$f":"'A. Population Info'!J539","v":0},{"$f":"'A. Population Info'!K539","v":0},{"$f":"VLOOKUP(B:B,OFFSET('B. PoF Adj Factor Scoring'!$E$5:$F$282,,MATCH(G$4,'B. PoF Adj Factor Scoring'!$E$3:$N$3,0)-1),2,TRUE)","v":1},{"$f":"VLOOKUP(C:C,OFFSET('B. PoF Adj Factor Scoring'!$E$5:$F$282,,MATCH(H$4,'B. PoF Adj Factor Scoring'!$E$3:$N$3,0)-1),2,TRUE)","v":3},{"$f":"VLOOKUP(D:D,OFFSET('B. PoF Adj Factor Scoring'!$E$5:$F$282,,MATCH(I$4,'B. PoF Adj Factor Scoring'!$E$3:$N$3,0)-1),2,TRUE)","v":1},{"$f":"VLOOKUP(E:E,OFFSET('B. PoF Adj Factor Scoring'!$E$5:$F$282,,MATCH(J$4,'B. PoF Adj Factor Scoring'!$E$3:$N$3,0)-1),2,TRUE)","v":1},{"$f":"VLOOKUP(F:F,OFFSET('B. PoF Adj Factor Scoring'!$E$5:$F$282,,MATCH(K$4,'B. PoF Adj Factor Scoring'!$E$3:$N$3,0)-1),2,TRUE)","v":1}]
[{"$f":"'A. Population Info'!A540","v":1001578289},{"$f":"'A. Population Info'!G540","v":"OIL"},{"$f":"'A. Population Info'!H540","v":1},{"$f":"'A. Population Info'!I540","v":0},{"$f":"'A. Population Info'!J540","v":0},{"$f":"'A. Population Info'!K540","v":0},{"$f":"VLOOKUP(B:B,OFFSET('B. PoF Adj Factor Scoring'!$E$5:$F$282,,MATCH(G$4,'B. PoF Adj Factor Scoring'!$E$3:$N$3,0)-1),2,TRUE)","v":1},{"$f":"VLOOKUP(C:C,OFFSET('B. PoF Adj Factor Scoring'!$E$5:$F$282,,MATCH(H$4,'B. PoF Adj Factor Scoring'!$E$3:$N$3,0)-1),2,TRUE)","v":1},{"$f":"VLOOKUP(D:D,OFFSET('B. PoF Adj Factor Scoring'!$E$5:$F$282,,MATCH(I$4,'B. PoF Adj Factor Scoring'!$E$3:$N$3,0)-1),2,TRUE)","v":1},{"$f":"VLOOKUP(E:E,OFFSET('B. PoF Adj Factor Scoring'!$E$5:$F$282,,MATCH(J$4,'B. PoF Adj Factor Scoring'!$E$3:$N$3,0)-1),2,TRUE)","v":1},{"$f":"VLOOKUP(F:F,OFFSET('B. PoF Adj Factor Scoring'!$E$5:$F$282,,MATCH(K$4,'B. PoF Adj Factor Scoring'!$E$3:$N$3,0)-1),2,TRUE)","v":1}]
[{"$f":"'A. Population Info'!A541","v":1001584020},{"$f":"'A. Population Info'!G541","v":"OIL"},{"$f":"'A. Population Info'!H541","v":1},{"$f":"'A. Population Info'!I541","v":0},{"$f":"'A. Population Info'!J541","v":0},{"$f":"'A. Population Info'!K541","v":0},{"$f":"VLOOKUP(B:B,OFFSET('B. PoF Adj Factor Scoring'!$E$5:$F$282,,MATCH(G$4,'B. PoF Adj Factor Scoring'!$E$3:$N$3,0)-1),2,TRUE)","v":1},{"$f":"VLOOKUP(C:C,OFFSET('B. PoF Adj Factor Scoring'!$E$5:$F$282,,MATCH(H$4,'B. PoF Adj Factor Scoring'!$E$3:$N$3,0)-1),2,TRUE)","v":1},{"$f":"VLOOKUP(D:D,OFFSET('B. PoF Adj Factor Scoring'!$E$5:$F$282,,MATCH(I$4,'B. PoF Adj Factor Scoring'!$E$3:$N$3,0)-1),2,TRUE)","v":1},{"$f":"VLOOKUP(E:E,OFFSET('B. PoF Adj Factor Scoring'!$E$5:$F$282,,MATCH(J$4,'B. PoF Adj Factor Scoring'!$E$3:$N$3,0)-1),2,TRUE)","v":1},{"$f":"VLOOKUP(F:F,OFFSET('B. PoF Adj Factor Scoring'!$E$5:$F$282,,MATCH(K$4,'B. PoF Adj Factor Scoring'!$E$3:$N$3,0)-1),2,TRUE)","v":1}]
[{"$f":"'A. Population Info'!A542","v":1001585103},{"$f":"'A. Population Info'!G542","v":"OIL"},{"$f":"'A. Population Info'!H542","v":1},{"$f":"'A. Population Info'!I542","v":0},{"$f":"'A. Population Info'!J542","v":0},{"$f":"'A. Population Info'!K542","v":0},{"$f":"VLOOKUP(B:B,OFFSET('B. PoF Adj Factor Scoring'!$E$5:$F$282,,MATCH(G$4,'B. PoF Adj Factor Scoring'!$E$3:$N$3,0)-1),2,TRUE)","v":1},{"$f":"VLOOKUP(C:C,OFFSET('B. PoF Adj Factor Scoring'!$E$5:$F$282,,MATCH(H$4,'B. PoF Adj Factor Scoring'!$E$3:$N$3,0)-1),2,TRUE)","v":1},{"$f":"VLOOKUP(D:D,OFFSET('B. PoF Adj Factor Scoring'!$E$5:$F$282,,MATCH(I$4,'B. PoF Adj Factor Scoring'!$E$3:$N$3,0)-1),2,TRUE)","v":1},{"$f":"VLOOKUP(E:E,OFFSET('B. PoF Adj Factor Scoring'!$E$5:$F$282,,MATCH(J$4,'B. PoF Adj Factor Scoring'!$E$3:$N$3,0)-1),2,TRUE)","v":1},{"$f":"VLOOKUP(F:F,OFFSET('B. PoF Adj Factor Scoring'!$E$5:$F$282,,MATCH(K$4,'B. PoF Adj Factor Scoring'!$E$3:$N$3,0)-1),2,TRUE)","v":1}]
[{"$f":"'A. Population Info'!A543","v":1001589233},{"$f":"'A. Population Info'!G543","v":"OIL"},{"$f":"'A. Population Info'!H543","v":1},{"$f":"'A. Population Info'!I543","v":0},{"$f":"'A. Population Info'!J543","v":0},{"$f":"'A. Population Info'!K543","v":0},{"$f":"VLOOKUP(B:B,OFFSET('B. PoF Adj Factor Scoring'!$E$5:$F$282,,MATCH(G$4,'B. PoF Adj Factor Scoring'!$E$3:$N$3,0)-1),2,TRUE)","v":1},{"$f":"VLOOKUP(C:C,OFFSET('B. PoF Adj Factor Scoring'!$E$5:$F$282,,MATCH(H$4,'B. PoF Adj Factor Scoring'!$E$3:$N$3,0)-1),2,TRUE)","v":1},{"$f":"VLOOKUP(D:D,OFFSET('B. PoF Adj Factor Scoring'!$E$5:$F$282,,MATCH(I$4,'B. PoF Adj Factor Scoring'!$E$3:$N$3,0)-1),2,TRUE)","v":1},{"$f":"VLOOKUP(E:E,OFFSET('B. PoF Adj Factor Scoring'!$E$5:$F$282,,MATCH(J$4,'B. PoF Adj Factor Scoring'!$E$3:$N$3,0)-1),2,TRUE)","v":1},{"$f":"VLOOKUP(F:F,OFFSET('B. PoF Adj Factor Scoring'!$E$5:$F$282,,MATCH(K$4,'B. PoF Adj Factor Scoring'!$E$3:$N$3,0)-1),2,TRUE)","v":1}]
[{"$f":"'A. Population Info'!A544","v":1001589234},{"$f":"'A. Population Info'!G544","v":"OIL"},{"$f":"'A. Population Info'!H544","v":1},{"$f":"'A. Population Info'!I544","v":0},{"$f":"'A. Population Info'!J544","v":0},{"$f":"'A. Population Info'!K544","v":0},{"$f":"VLOOKUP(B:B,OFFSET('B. PoF Adj Factor Scoring'!$E$5:$F$282,,MATCH(G$4,'B. PoF Adj Factor Scoring'!$E$3:$N$3,0)-1),2,TRUE)","v":1},{"$f":"VLOOKUP(C:C,OFFSET('B. PoF Adj Factor Scoring'!$E$5:$F$282,,MATCH(H$4,'B. PoF Adj Factor Scoring'!$E$3:$N$3,0)-1),2,TRUE)","v":1},{"$f":"VLOOKUP(D:D,OFFSET('B. PoF Adj Factor Scoring'!$E$5:$F$282,,MATCH(I$4,'B. PoF Adj Factor Scoring'!$E$3:$N$3,0)-1),2,TRUE)","v":1},{"$f":"VLOOKUP(E:E,OFFSET('B. PoF Adj Factor Scoring'!$E$5:$F$282,,MATCH(J$4,'B. PoF Adj Factor Scoring'!$E$3:$N$3,0)-1),2,TRUE)","v":1},{"$f":"VLOOKUP(F:F,OFFSET('B. PoF Adj Factor Scoring'!$E$5:$F$282,,MATCH(K$4,'B. PoF Adj Factor Scoring'!$E$3:$N$3,0)-1),2,TRUE)","v":1}]
[{"$f":"'A. Population Info'!A545","v":1001613550},{"$f":"'A. Population Info'!G545","v":"OIL"},{"$f":"'A. Population Info'!H545","v":1},{"$f":"'A. Population Info'!I545","v":0},{"$f":"'A. Population Info'!J545","v":0},{"$f":"'A. Population Info'!K545","v":0},{"$f":"VLOOKUP(B:B,OFFSET('B. PoF Adj Factor Scoring'!$E$5:$F$282,,MATCH(G$4,'B. PoF Adj Factor Scoring'!$E$3:$N$3,0)-1),2,TRUE)","v":1},{"$f":"VLOOKUP(C:C,OFFSET('B. PoF Adj Factor Scoring'!$E$5:$F$282,,MATCH(H$4,'B. PoF Adj Factor Scoring'!$E$3:$N$3,0)-1),2,TRUE)","v":1},{"$f":"VLOOKUP(D:D,OFFSET('B. PoF Adj Factor Scoring'!$E$5:$F$282,,MATCH(I$4,'B. PoF Adj Factor Scoring'!$E$3:$N$3,0)-1),2,TRUE)","v":1},{"$f":"VLOOKUP(E:E,OFFSET('B. PoF Adj Factor Scoring'!$E$5:$F$282,,MATCH(J$4,'B. PoF Adj Factor Scoring'!$E$3:$N$3,0)-1),2,TRUE)","v":1},{"$f":"VLOOKUP(F:F,OFFSET('B. PoF Adj Factor Scoring'!$E$5:$F$282,,MATCH(K$4,'B. PoF Adj Factor Scoring'!$E$3:$N$3,0)-1),2,TRUE)","v":1}]
[{"$f":"'A. Population Info'!A546","v":1001617236},{"$f":"'A. Population Info'!G546","v":"OIL"},{"$f":"'A. Population Info'!H546","v":1},{"$f":"'A. Population Info'!I546","v":0},{"$f":"'A. Population Info'!J546","v":0},{"$f":"'A. Population Info'!K546","v":0},{"$f":"VLOOKUP(B:B,OFFSET('B. PoF Adj Factor Scoring'!$E$5:$F$282,,MATCH(G$4,'B. PoF Adj Factor Scoring'!$E$3:$N$3,0)-1),2,TRUE)","v":1},{"$f":"VLOOKUP(C:C,OFFSET('B. PoF Adj Factor Scoring'!$E$5:$F$282,,MATCH(H$4,'B. PoF Adj Factor Scoring'!$E$3:$N$3,0)-1),2,TRUE)","v":1},{"$f":"VLOOKUP(D:D,OFFSET('B. PoF Adj Factor Scoring'!$E$5:$F$282,,MATCH(I$4,'B. PoF Adj Factor Scoring'!$E$3:$N$3,0)-1),2,TRUE)","v":1},{"$f":"VLOOKUP(E:E,OFFSET('B. PoF Adj Factor Scoring'!$E$5:$F$282,,MATCH(J$4,'B. PoF Adj Factor Scoring'!$E$3:$N$3,0)-1),2,TRUE)","v":1},{"$f":"VLOOKUP(F:F,OFFSET('B. PoF Adj Factor Scoring'!$E$5:$F$282,,MATCH(K$4,'B. PoF Adj Factor Scoring'!$E$3:$N$3,0)-1),2,TRUE)","v":1}]
[{"$f":"'A. Population Info'!A547","v":1001618746},{"$f":"'A. Population Info'!G547","v":"OIL"},{"$f":"'A. Population Info'!H547","v":1},{"$f":"'A. Population Info'!I547","v":0},{"$f":"'A. Population Info'!J547","v":0},{"$f":"'A. Population Info'!K547","v":0},{"$f":"VLOOKUP(B:B,OFFSET('B. PoF Adj Factor Scoring'!$E$5:$F$282,,MATCH(G$4,'B. PoF Adj Factor Scoring'!$E$3:$N$3,0)-1),2,TRUE)","v":1},{"$f":"VLOOKUP(C:C,OFFSET('B. PoF Adj Factor Scoring'!$E$5:$F$282,,MATCH(H$4,'B. PoF Adj Factor Scoring'!$E$3:$N$3,0)-1),2,TRUE)","v":1},{"$f":"VLOOKUP(D:D,OFFSET('B. PoF Adj Factor Scoring'!$E$5:$F$282,,MATCH(I$4,'B. PoF Adj Factor Scoring'!$E$3:$N$3,0)-1),2,TRUE)","v":1},{"$f":"VLOOKUP(E:E,OFFSET('B. PoF Adj Factor Scoring'!$E$5:$F$282,,MATCH(J$4,'B. PoF Adj Factor Scoring'!$E$3:$N$3,0)-1),2,TRUE)","v":1},{"$f":"VLOOKUP(F:F,OFFSET('B. PoF Adj Factor Scoring'!$E$5:$F$282,,MATCH(K$4,'B. PoF Adj Factor Scoring'!$E$3:$N$3,0)-1),2,TRUE)","v":1}]
[{"$f":"'A. Population Info'!A548","v":1001618747},{"$f":"'A. Population Info'!G548","v":"OIL"},{"$f":"'A. Population Info'!H548","v":1},{"$f":"'A. Population Info'!I548","v":0},{"$f":"'A. Population Info'!J548","v":0},{"$f":"'A. Population Info'!K548","v":0},{"$f":"VLOOKUP(B:B,OFFSET('B. PoF Adj Factor Scoring'!$E$5:$F$282,,MATCH(G$4,'B. PoF Adj Factor Scoring'!$E$3:$N$3,0)-1),2,TRUE)","v":1},{"$f":"VLOOKUP(C:C,OFFSET('B. PoF Adj Factor Scoring'!$E$5:$F$282,,MATCH(H$4,'B. PoF Adj Factor Scoring'!$E$3:$N$3,0)-1),2,TRUE)","v":1},{"$f":"VLOOKUP(D:D,OFFSET('B. PoF Adj Factor Scoring'!$E$5:$F$282,,MATCH(I$4,'B. PoF Adj Factor Scoring'!$E$3:$N$3,0)-1),2,TRUE)","v":1},{"$f":"VLOOKUP(E:E,OFFSET('B. PoF Adj Factor Scoring'!$E$5:$F$282,,MATCH(J$4,'B. PoF Adj Factor Scoring'!$E$3:$N$3,0)-1),2,TRUE)","v":1},{"$f":"VLOOKUP(F:F,OFFSET('B. PoF Adj Factor Scoring'!$E$5:$F$282,,MATCH(K$4,'B. PoF Adj Factor Scoring'!$E$3:$N$3,0)-1),2,TRUE)","v":1}]
[{"$f":"'A. Population Info'!A549","v":1001626218},{"$f":"'A. Population Info'!G549","v":"OIL"},{"$f":"'A. Population Info'!H549","v":1},{"$f":"'A. Population Info'!I549","v":0},{"$f":"'A. Population Info'!J549","v":0},{"$f":"'A. Population Info'!K549","v":0},{"$f":"VLOOKUP(B:B,OFFSET('B. PoF Adj Factor Scoring'!$E$5:$F$282,,MATCH(G$4,'B. PoF Adj Factor Scoring'!$E$3:$N$3,0)-1),2,TRUE)","v":1},{"$f":"VLOOKUP(C:C,OFFSET('B. PoF Adj Factor Scoring'!$E$5:$F$282,,MATCH(H$4,'B. PoF Adj Factor Scoring'!$E$3:$N$3,0)-1),2,TRUE)","v":1},{"$f":"VLOOKUP(D:D,OFFSET('B. PoF Adj Factor Scoring'!$E$5:$F$282,,MATCH(I$4,'B. PoF Adj Factor Scoring'!$E$3:$N$3,0)-1),2,TRUE)","v":1},{"$f":"VLOOKUP(E:E,OFFSET('B. PoF Adj Factor Scoring'!$E$5:$F$282,,MATCH(J$4,'B. PoF Adj Factor Scoring'!$E$3:$N$3,0)-1),2,TRUE)","v":1},{"$f":"VLOOKUP(F:F,OFFSET('B. PoF Adj Factor Scoring'!$E$5:$F$282,,MATCH(K$4,'B. PoF Adj Factor Scoring'!$E$3:$N$3,0)-1),2,TRUE)","v":1}]
[{"$f":"'A. Population Info'!A550","v":1001631721},{"$f":"'A. Population Info'!G550","v":"OIL"},{"$f":"'A. Population Info'!H550","v":1},{"$f":"'A. Population Info'!I550","v":0},{"$f":"'A. Population Info'!J550","v":0},{"$f":"'A. Population Info'!K550","v":0},{"$f":"VLOOKUP(B:B,OFFSET('B. PoF Adj Factor Scoring'!$E$5:$F$282,,MATCH(G$4,'B. PoF Adj Factor Scoring'!$E$3:$N$3,0)-1),2,TRUE)","v":1},{"$f":"VLOOKUP(C:C,OFFSET('B. PoF Adj Factor Scoring'!$E$5:$F$282,,MATCH(H$4,'B. PoF Adj Factor Scoring'!$E$3:$N$3,0)-1),2,TRUE)","v":1},{"$f":"VLOOKUP(D:D,OFFSET('B. PoF Adj Factor Scoring'!$E$5:$F$282,,MATCH(I$4,'B. PoF Adj Factor Scoring'!$E$3:$N$3,0)-1),2,TRUE)","v":1},{"$f":"VLOOKUP(E:E,OFFSET('B. PoF Adj Factor Scoring'!$E$5:$F$282,,MATCH(J$4,'B. PoF Adj Factor Scoring'!$E$3:$N$3,0)-1),2,TRUE)","v":1},{"$f":"VLOOKUP(F:F,OFFSET('B. PoF Adj Factor Scoring'!$E$5:$F$282,,MATCH(K$4,'B. PoF Adj Factor Scoring'!$E$3:$N$3,0)-1),2,TRUE)","v":1}]
[{"$f":"'A. Population Info'!A551","v":1001631725},{"$f":"'A. Population Info'!G551","v":"OIL"},{"$f":"'A. Population Info'!H551","v":1},{"$f":"'A. Population Info'!I551","v":0},{"$f":"'A. Population Info'!J551","v":0},{"$f":"'A. Population Info'!K551","v":0},{"$f":"VLOOKUP(B:B,OFFSET('B. PoF Adj Factor Scoring'!$E$5:$F$282,,MATCH(G$4,'B. PoF Adj Factor Scoring'!$E$3:$N$3,0)-1),2,TRUE)","v":1},{"$f":"VLOOKUP(C:C,OFFSET('B. PoF Adj Factor Scoring'!$E$5:$F$282,,MATCH(H$4,'B. PoF Adj Factor Scoring'!$E$3:$N$3,0)-1),2,TRUE)","v":1},{"$f":"VLOOKUP(D:D,OFFSET('B. PoF Adj Factor Scoring'!$E$5:$F$282,,MATCH(I$4,'B. PoF Adj Factor Scoring'!$E$3:$N$3,0)-1),2,TRUE)","v":1},{"$f":"VLOOKUP(E:E,OFFSET('B. PoF Adj Factor Scoring'!$E$5:$F$282,,MATCH(J$4,'B. PoF Adj Factor Scoring'!$E$3:$N$3,0)-1),2,TRUE)","v":1},{"$f":"VLOOKUP(F:F,OFFSET('B. PoF Adj Factor Scoring'!$E$5:$F$282,,MATCH(K$4,'B. PoF Adj Factor Scoring'!$E$3:$N$3,0)-1),2,TRUE)","v":1}]
[{"$f":"'A. Population Info'!A552","v":1001642113},{"$f":"'A. Population Info'!G552","v":"OIL"},{"$f":"'A. Population Info'!H552","v":1},{"$f":"'A. Population Info'!I552","v":0},{"$f":"'A. Population Info'!J552","v":0},{"$f":"'A. Population Info'!K552","v":0},{"$f":"VLOOKUP(B:B,OFFSET('B. PoF Adj Factor Scoring'!$E$5:$F$282,,MATCH(G$4,'B. PoF Adj Factor Scoring'!$E$3:$N$3,0)-1),2,TRUE)","v":1},{"$f":"VLOOKUP(C:C,OFFSET('B. PoF Adj Factor Scoring'!$E$5:$F$282,,MATCH(H$4,'B. PoF Adj Factor Scoring'!$E$3:$N$3,0)-1),2,TRUE)","v":1},{"$f":"VLOOKUP(D:D,OFFSET('B. PoF Adj Factor Scoring'!$E$5:$F$282,,MATCH(I$4,'B. PoF Adj Factor Scoring'!$E$3:$N$3,0)-1),2,TRUE)","v":1},{"$f":"VLOOKUP(E:E,OFFSET('B. PoF Adj Factor Scoring'!$E$5:$F$282,,MATCH(J$4,'B. PoF Adj Factor Scoring'!$E$3:$N$3,0)-1),2,TRUE)","v":1},{"$f":"VLOOKUP(F:F,OFFSET('B. PoF Adj Factor Scoring'!$E$5:$F$282,,MATCH(K$4,'B. PoF Adj Factor Scoring'!$E$3:$N$3,0)-1),2,TRUE)","v":1}]
[{"$f":"'A. Population Info'!A553","v":1001642114},{"$f":"'A. Population Info'!G553","v":"OIL"},{"$f":"'A. Population Info'!H553","v":1},{"$f":"'A. Population Info'!I553","v":0},{"$f":"'A. Population Info'!J553","v":0},{"$f":"'A. Population Info'!K553","v":0},{"$f":"VLOOKUP(B:B,OFFSET('B. PoF Adj Factor Scoring'!$E$5:$F$282,,MATCH(G$4,'B. PoF Adj Factor Scoring'!$E$3:$N$3,0)-1),2,TRUE)","v":1},{"$f":"VLOOKUP(C:C,OFFSET('B. PoF Adj Factor Scoring'!$E$5:$F$282,,MATCH(H$4,'B. PoF Adj Factor Scoring'!$E$3:$N$3,0)-1),2,TRUE)","v":1},{"$f":"VLOOKUP(D:D,OFFSET('B. PoF Adj Factor Scoring'!$E$5:$F$282,,MATCH(I$4,'B. PoF Adj Factor Scoring'!$E$3:$N$3,0)-1),2,TRUE)","v":1},{"$f":"VLOOKUP(E:E,OFFSET('B. PoF Adj Factor Scoring'!$E$5:$F$282,,MATCH(J$4,'B. PoF Adj Factor Scoring'!$E$3:$N$3,0)-1),2,TRUE)","v":1},{"$f":"VLOOKUP(F:F,OFFSET('B. PoF Adj Factor Scoring'!$E$5:$F$282,,MATCH(K$4,'B. PoF Adj Factor Scoring'!$E$3:$N$3,0)-1),2,TRUE)","v":1}]
[{"$f":"'A. Population Info'!A554","v":1001687771},{"$f":"'A. Population Info'!G554","v":"OIL_FR3"},{"$f":"'A. Population Info'!H554","v":1},{"$f":"'A. Population Info'!I554","v":0},{"$f":"'A. Population Info'!J554","v":0},{"$f":"'A. Population Info'!K554","v":0},{"$f":"VLOOKUP(B:B,OFFSET('B. PoF Adj Factor Scoring'!$E$5:$F$282,,MATCH(G$4,'B. PoF Adj Factor Scoring'!$E$3:$N$3,0)-1),2,TRUE)","v":1},{"$f":"VLOOKUP(C:C,OFFSET('B. PoF Adj Factor Scoring'!$E$5:$F$282,,MATCH(H$4,'B. PoF Adj Factor Scoring'!$E$3:$N$3,0)-1),2,TRUE)","v":1},{"$f":"VLOOKUP(D:D,OFFSET('B. PoF Adj Factor Scoring'!$E$5:$F$282,,MATCH(I$4,'B. PoF Adj Factor Scoring'!$E$3:$N$3,0)-1),2,TRUE)","v":1},{"$f":"VLOOKUP(E:E,OFFSET('B. PoF Adj Factor Scoring'!$E$5:$F$282,,MATCH(J$4,'B. PoF Adj Factor Scoring'!$E$3:$N$3,0)-1),2,TRUE)","v":1},{"$f":"VLOOKUP(F:F,OFFSET('B. PoF Adj Factor Scoring'!$E$5:$F$282,,MATCH(K$4,'B. PoF Adj Factor Scoring'!$E$3:$N$3,0)-1),2,TRUE)","v":1}]
[{"$f":"'A. Population Info'!A555","v":1001853912},{"$f":"'A. Population Info'!G555","v":"OIL"},{"$f":"'A. Population Info'!H555","v":1},{"$f":"'A. Population Info'!I555","v":0},{"$f":"'A. Population Info'!J555","v":0},{"$f":"'A. Population Info'!K555","v":0},{"$f":"VLOOKUP(B:B,OFFSET('B. PoF Adj Factor Scoring'!$E$5:$F$282,,MATCH(G$4,'B. PoF Adj Factor Scoring'!$E$3:$N$3,0)-1),2,TRUE)","v":1},{"$f":"VLOOKUP(C:C,OFFSET('B. PoF Adj Factor Scoring'!$E$5:$F$282,,MATCH(H$4,'B. PoF Adj Factor Scoring'!$E$3:$N$3,0)-1),2,TRUE)","v":1},{"$f":"VLOOKUP(D:D,OFFSET('B. PoF Adj Factor Scoring'!$E$5:$F$282,,MATCH(I$4,'B. PoF Adj Factor Scoring'!$E$3:$N$3,0)-1),2,TRUE)","v":1},{"$f":"VLOOKUP(E:E,OFFSET('B. PoF Adj Factor Scoring'!$E$5:$F$282,,MATCH(J$4,'B. PoF Adj Factor Scoring'!$E$3:$N$3,0)-1),2,TRUE)","v":1},{"$f":"VLOOKUP(F:F,OFFSET('B. PoF Adj Factor Scoring'!$E$5:$F$282,,MATCH(K$4,'B. PoF Adj Factor Scoring'!$E$3:$N$3,0)-1),2,TRUE)","v":1}]
[{"$f":"'A. Population Info'!A556","v":1001865682},{"$f":"'A. Population Info'!G556","v":"OIL"},{"$f":"'A. Population Info'!H556","v":1},{"$f":"'A. Population Info'!I556","v":0},{"$f":"'A. Population Info'!J556","v":0},{"$f":"'A. Population Info'!K556","v":0},{"$f":"VLOOKUP(B:B,OFFSET('B. PoF Adj Factor Scoring'!$E$5:$F$282,,MATCH(G$4,'B. PoF Adj Factor Scoring'!$E$3:$N$3,0)-1),2,TRUE)","v":1},{"$f":"VLOOKUP(C:C,OFFSET('B. PoF Adj Factor Scoring'!$E$5:$F$282,,MATCH(H$4,'B. PoF Adj Factor Scoring'!$E$3:$N$3,0)-1),2,TRUE)","v":1},{"$f":"VLOOKUP(D:D,OFFSET('B. PoF Adj Factor Scoring'!$E$5:$F$282,,MATCH(I$4,'B. PoF Adj Factor Scoring'!$E$3:$N$3,0)-1),2,TRUE)","v":1},{"$f":"VLOOKUP(E:E,OFFSET('B. PoF Adj Factor Scoring'!$E$5:$F$282,,MATCH(J$4,'B. PoF Adj Factor Scoring'!$E$3:$N$3,0)-1),2,TRUE)","v":1},{"$f":"VLOOKUP(F:F,OFFSET('B. PoF Adj Factor Scoring'!$E$5:$F$282,,MATCH(K$4,'B. PoF Adj Factor Scoring'!$E$3:$N$3,0)-1),2,TRUE)","v":1}]
[{"$f":"'A. Population Info'!A557","v":1001865683},{"$f":"'A. Population Info'!G557","v":"OIL"},{"$f":"'A. Population Info'!H557","v":1},{"$f":"'A. Population Info'!I557","v":0},{"$f":"'A. Population Info'!J557","v":0},{"$f":"'A. Population Info'!K557","v":0},{"$f":"VLOOKUP(B:B,OFFSET('B. PoF Adj Factor Scoring'!$E$5:$F$282,,MATCH(G$4,'B. PoF Adj Factor Scoring'!$E$3:$N$3,0)-1),2,TRUE)","v":1},{"$f":"VLOOKUP(C:C,OFFSET('B. PoF Adj Factor Scoring'!$E$5:$F$282,,MATCH(H$4,'B. PoF Adj Factor Scoring'!$E$3:$N$3,0)-1),2,TRUE)","v":1},{"$f":"VLOOKUP(D:D,OFFSET('B. PoF Adj Factor Scoring'!$E$5:$F$282,,MATCH(I$4,'B. PoF Adj Factor Scoring'!$E$3:$N$3,0)-1),2,TRUE)","v":1},{"$f":"VLOOKUP(E:E,OFFSET('B. PoF Adj Factor Scoring'!$E$5:$F$282,,MATCH(J$4,'B. PoF Adj Factor Scoring'!$E$3:$N$3,0)-1),2,TRUE)","v":1},{"$f":"VLOOKUP(F:F,OFFSET('B. PoF Adj Factor Scoring'!$E$5:$F$282,,MATCH(K$4,'B. PoF Adj Factor Scoring'!$E$3:$N$3,0)-1),2,TRUE)","v":1}]
[{"$f":"'A. Population Info'!A558","v":1001895048},{"$f":"'A. Population Info'!G558","v":"OIL"},{"$f":"'A. Population Info'!H558","v":1},{"$f":"'A. Population Info'!I558","v":0},{"$f":"'A. Population Info'!J558","v":0},{"$f":"'A. Population Info'!K558","v":0},{"$f":"VLOOKUP(B:B,OFFSET('B. PoF Adj Factor Scoring'!$E$5:$F$282,,MATCH(G$4,'B. PoF Adj Factor Scoring'!$E$3:$N$3,0)-1),2,TRUE)","v":1},{"$f":"VLOOKUP(C:C,OFFSET('B. PoF Adj Factor Scoring'!$E$5:$F$282,,MATCH(H$4,'B. PoF Adj Factor Scoring'!$E$3:$N$3,0)-1),2,TRUE)","v":1},{"$f":"VLOOKUP(D:D,OFFSET('B. PoF Adj Factor Scoring'!$E$5:$F$282,,MATCH(I$4,'B. PoF Adj Factor Scoring'!$E$3:$N$3,0)-1),2,TRUE)","v":1},{"$f":"VLOOKUP(E:E,OFFSET('B. PoF Adj Factor Scoring'!$E$5:$F$282,,MATCH(J$4,'B. PoF Adj Factor Scoring'!$E$3:$N$3,0)-1),2,TRUE)","v":1},{"$f":"VLOOKUP(F:F,OFFSET('B. PoF Adj Factor Scoring'!$E$5:$F$282,,MATCH(K$4,'B. PoF Adj Factor Scoring'!$E$3:$N$3,0)-1),2,TRUE)","v":1}]
[{"$f":"'A. Population Info'!A559","v":1003132771},{"$f":"'A. Population Info'!G559","v":"OIL"},{"$f":"'A. Population Info'!H559","v":1},{"$f":"'A. Population Info'!I559","v":0},{"$f":"'A. Population Info'!J559","v":0},{"$f":"'A. Population Info'!K559","v":0},{"$f":"VLOOKUP(B:B,OFFSET('B. PoF Adj Factor Scoring'!$E$5:$F$282,,MATCH(G$4,'B. PoF Adj Factor Scoring'!$E$3:$N$3,0)-1),2,TRUE)","v":1},{"$f":"VLOOKUP(C:C,OFFSET('B. PoF Adj Factor Scoring'!$E$5:$F$282,,MATCH(H$4,'B. PoF Adj Factor Scoring'!$E$3:$N$3,0)-1),2,TRUE)","v":1},{"$f":"VLOOKUP(D:D,OFFSET('B. PoF Adj Factor Scoring'!$E$5:$F$282,,MATCH(I$4,'B. PoF Adj Factor Scoring'!$E$3:$N$3,0)-1),2,TRUE)","v":1},{"$f":"VLOOKUP(E:E,OFFSET('B. PoF Adj Factor Scoring'!$E$5:$F$282,,MATCH(J$4,'B. PoF Adj Factor Scoring'!$E$3:$N$3,0)-1),2,TRUE)","v":1},{"$f":"VLOOKUP(F:F,OFFSET('B. PoF Adj Factor Scoring'!$E$5:$F$282,,MATCH(K$4,'B. PoF Adj Factor Scoring'!$E$3:$N$3,0)-1),2,TRUE)","v":1}]
[{"$f":"'A. Population Info'!A560","v":1003132772},{"$f":"'A. Population Info'!G560","v":"OIL"},{"$f":"'A. Population Info'!H560","v":1},{"$f":"'A. Population Info'!I560","v":0},{"$f":"'A. Population Info'!J560","v":0},{"$f":"'A. Population Info'!K560","v":0},{"$f":"VLOOKUP(B:B,OFFSET('B. PoF Adj Factor Scoring'!$E$5:$F$282,,MATCH(G$4,'B. PoF Adj Factor Scoring'!$E$3:$N$3,0)-1),2,TRUE)","v":1},{"$f":"VLOOKUP(C:C,OFFSET('B. PoF Adj Factor Scoring'!$E$5:$F$282,,MATCH(H$4,'B. PoF Adj Factor Scoring'!$E$3:$N$3,0)-1),2,TRUE)","v":1},{"$f":"VLOOKUP(D:D,OFFSET('B. PoF Adj Factor Scoring'!$E$5:$F$282,,MATCH(I$4,'B. PoF Adj Factor Scoring'!$E$3:$N$3,0)-1),2,TRUE)","v":1},{"$f":"VLOOKUP(E:E,OFFSET('B. PoF Adj Factor Scoring'!$E$5:$F$282,,MATCH(J$4,'B. PoF Adj Factor Scoring'!$E$3:$N$3,0)-1),2,TRUE)","v":1},{"$f":"VLOOKUP(F:F,OFFSET('B. PoF Adj Factor Scoring'!$E$5:$F$282,,MATCH(K$4,'B. PoF Adj Factor Scoring'!$E$3:$N$3,0)-1),2,TRUE)","v":1}]
[{"$f":"'A. Population Info'!A561","v":1003132875},{"$f":"'A. Population Info'!G561","v":"OIL"},{"$f":"'A. Population Info'!H561","v":1},{"$f":"'A. Population Info'!I561","v":0},{"$f":"'A. Population Info'!J561","v":0},{"$f":"'A. Population Info'!K561","v":0},{"$f":"VLOOKUP(B:B,OFFSET('B. PoF Adj Factor Scoring'!$E$5:$F$282,,MATCH(G$4,'B. PoF Adj Factor Scoring'!$E$3:$N$3,0)-1),2,TRUE)","v":1},{"$f":"VLOOKUP(C:C,OFFSET('B. PoF Adj Factor Scoring'!$E$5:$F$282,,MATCH(H$4,'B. PoF Adj Factor Scoring'!$E$3:$N$3,0)-1),2,TRUE)","v":1},{"$f":"VLOOKUP(D:D,OFFSET('B. PoF Adj Factor Scoring'!$E$5:$F$282,,MATCH(I$4,'B. PoF Adj Factor Scoring'!$E$3:$N$3,0)-1),2,TRUE)","v":1},{"$f":"VLOOKUP(E:E,OFFSET('B. PoF Adj Factor Scoring'!$E$5:$F$282,,MATCH(J$4,'B. PoF Adj Factor Scoring'!$E$3:$N$3,0)-1),2,TRUE)","v":1},{"$f":"VLOOKUP(F:F,OFFSET('B. PoF Adj Factor Scoring'!$E$5:$F$282,,MATCH(K$4,'B. PoF Adj Factor Scoring'!$E$3:$N$3,0)-1),2,TRUE)","v":1}]
[{"$f":"'A. Population Info'!A562","v":1003132876},{"$f":"'A. Population Info'!G562","v":"OIL"},{"$f":"'A. Population Info'!H562","v":1},{"$f":"'A. Population Info'!I562","v":0},{"$f":"'A. Population Info'!J562","v":0},{"$f":"'A. Population Info'!K562","v":0},{"$f":"VLOOKUP(B:B,OFFSET('B. PoF Adj Factor Scoring'!$E$5:$F$282,,MATCH(G$4,'B. PoF Adj Factor Scoring'!$E$3:$N$3,0)-1),2,TRUE)","v":1},{"$f":"VLOOKUP(C:C,OFFSET('B. PoF Adj Factor Scoring'!$E$5:$F$282,,MATCH(H$4,'B. PoF Adj Factor Scoring'!$E$3:$N$3,0)-1),2,TRUE)","v":1},{"$f":"VLOOKUP(D:D,OFFSET('B. PoF Adj Factor Scoring'!$E$5:$F$282,,MATCH(I$4,'B. PoF Adj Factor Scoring'!$E$3:$N$3,0)-1),2,TRUE)","v":1},{"$f":"VLOOKUP(E:E,OFFSET('B. PoF Adj Factor Scoring'!$E$5:$F$282,,MATCH(J$4,'B. PoF Adj Factor Scoring'!$E$3:$N$3,0)-1),2,TRUE)","v":1},{"$f":"VLOOKUP(F:F,OFFSET('B. PoF Adj Factor Scoring'!$E$5:$F$282,,MATCH(K$4,'B. PoF Adj Factor Scoring'!$E$3:$N$3,0)-1),2,TRUE)","v":1}]
[{"$f":"'A. Population Info'!A563","v":1000332689},{"$f":"'A. Population Info'!G563","v":"OIL"},{"$f":"'A. Population Info'!H563","v":1},{"$f":"'A. Population Info'!I563","v":600},{"$f":"'A. Population Info'!J563","v":0},{"$f":"'A. Population Info'!K563","v":0},{"$f":"VLOOKUP(B:B,OFFSET('B. PoF Adj Factor Scoring'!$E$5:$F$282,,MATCH(G$4,'B. PoF Adj Factor Scoring'!$E$3:$N$3,0)-1),2,TRUE)","v":1},{"$f":"VLOOKUP(C:C,OFFSET('B. PoF Adj Factor Scoring'!$E$5:$F$282,,MATCH(H$4,'B. PoF Adj Factor Scoring'!$E$3:$N$3,0)-1),2,TRUE)","v":1},{"$f":"VLOOKUP(D:D,OFFSET('B. PoF Adj Factor Scoring'!$E$5:$F$282,,MATCH(I$4,'B. PoF Adj Factor Scoring'!$E$3:$N$3,0)-1),2,TRUE)","v":1},{"$f":"VLOOKUP(E:E,OFFSET('B. PoF Adj Factor Scoring'!$E$5:$F$282,,MATCH(J$4,'B. PoF Adj Factor Scoring'!$E$3:$N$3,0)-1),2,TRUE)","v":1},{"$f":"VLOOKUP(F:F,OFFSET('B. PoF Adj Factor Scoring'!$E$5:$F$282,,MATCH(K$4,'B. PoF Adj Factor Scoring'!$E$3:$N$3,0)-1),2,TRUE)","v":1}]
[{"$f":"'A. Population Info'!A564","v":1000340355},{"$f":"'A. Population Info'!G564","v":"OIL"},{"$f":"'A. Population Info'!H564","v":2},{"$f":"'A. Population Info'!I564","v":0},{"$f":"'A. Population Info'!J564","v":0},{"$f":"'A. Population Info'!K564","v":0},{"$f":"VLOOKUP(B:B,OFFSET('B. PoF Adj Factor Scoring'!$E$5:$F$282,,MATCH(G$4,'B. PoF Adj Factor Scoring'!$E$3:$N$3,0)-1),2,TRUE)","v":1},{"$f":"VLOOKUP(C:C,OFFSET('B. PoF Adj Factor Scoring'!$E$5:$F$282,,MATCH(H$4,'B. PoF Adj Factor Scoring'!$E$3:$N$3,0)-1),2,TRUE)","v":2},{"$f":"VLOOKUP(D:D,OFFSET('B. PoF Adj Factor Scoring'!$E$5:$F$282,,MATCH(I$4,'B. PoF Adj Factor Scoring'!$E$3:$N$3,0)-1),2,TRUE)","v":1},{"$f":"VLOOKUP(E:E,OFFSET('B. PoF Adj Factor Scoring'!$E$5:$F$282,,MATCH(J$4,'B. PoF Adj Factor Scoring'!$E$3:$N$3,0)-1),2,TRUE)","v":1},{"$f":"VLOOKUP(F:F,OFFSET('B. PoF Adj Factor Scoring'!$E$5:$F$282,,MATCH(K$4,'B. PoF Adj Factor Scoring'!$E$3:$N$3,0)-1),2,TRUE)","v":1}]
[{"$f":"'A. Population Info'!A565","v":1000349432},{"$f":"'A. Population Info'!G565","v":"OIL"},{"$f":"'A. Population Info'!H565","v":1},{"$f":"'A. Population Info'!I565","v":0},{"$f":"'A. Population Info'!J565","v":0},{"$f":"'A. Population Info'!K565","v":0},{"$f":"VLOOKUP(B:B,OFFSET('B. PoF Adj Factor Scoring'!$E$5:$F$282,,MATCH(G$4,'B. PoF Adj Factor Scoring'!$E$3:$N$3,0)-1),2,TRUE)","v":1},{"$f":"VLOOKUP(C:C,OFFSET('B. PoF Adj Factor Scoring'!$E$5:$F$282,,MATCH(H$4,'B. PoF Adj Factor Scoring'!$E$3:$N$3,0)-1),2,TRUE)","v":1},{"$f":"VLOOKUP(D:D,OFFSET('B. PoF Adj Factor Scoring'!$E$5:$F$282,,MATCH(I$4,'B. PoF Adj Factor Scoring'!$E$3:$N$3,0)-1),2,TRUE)","v":1},{"$f":"VLOOKUP(E:E,OFFSET('B. PoF Adj Factor Scoring'!$E$5:$F$282,,MATCH(J$4,'B. PoF Adj Factor Scoring'!$E$3:$N$3,0)-1),2,TRUE)","v":1},{"$f":"VLOOKUP(F:F,OFFSET('B. PoF Adj Factor Scoring'!$E$5:$F$282,,MATCH(K$4,'B. PoF Adj Factor Scoring'!$E$3:$N$3,0)-1),2,TRUE)","v":1}]
[{"$f":"'A. Population Info'!A566","v":1000358329},{"$f":"'A. Population Info'!G566","v":"OIL"},{"$f":"'A. Population Info'!H566","v":1},{"$f":"'A. Population Info'!I566","v":0},{"$f":"'A. Population Info'!J566","v":0},{"$f":"'A. Population Info'!K566","v":0},{"$f":"VLOOKUP(B:B,OFFSET('B. PoF Adj Factor Scoring'!$E$5:$F$282,,MATCH(G$4,'B. PoF Adj Factor Scoring'!$E$3:$N$3,0)-1),2,TRUE)","v":1},{"$f":"VLOOKUP(C:C,OFFSET('B. PoF Adj Factor Scoring'!$E$5:$F$282,,MATCH(H$4,'B. PoF Adj Factor Scoring'!$E$3:$N$3,0)-1),2,TRUE)","v":1},{"$f":"VLOOKUP(D:D,OFFSET('B. PoF Adj Factor Scoring'!$E$5:$F$282,,MATCH(I$4,'B. PoF Adj Factor Scoring'!$E$3:$N$3,0)-1),2,TRUE)","v":1},{"$f":"VLOOKUP(E:E,OFFSET('B. PoF Adj Factor Scoring'!$E$5:$F$282,,MATCH(J$4,'B. PoF Adj Factor Scoring'!$E$3:$N$3,0)-1),2,TRUE)","v":1},{"$f":"VLOOKUP(F:F,OFFSET('B. PoF Adj Factor Scoring'!$E$5:$F$282,,MATCH(K$4,'B. PoF Adj Factor Scoring'!$E$3:$N$3,0)-1),2,TRUE)","v":1}]
[{"$f":"'A. Population Info'!A567","v":1000374750},{"$f":"'A. Population Info'!G567","v":"OIL"},{"$f":"'A. Population Info'!H567","v":1},{"$f":"'A. Population Info'!I567","v":0},{"$f":"'A. Population Info'!J567","v":0},{"$f":"'A. Population Info'!K567","v":0},{"$f":"VLOOKUP(B:B,OFFSET('B. PoF Adj Factor Scoring'!$E$5:$F$282,,MATCH(G$4,'B. PoF Adj Factor Scoring'!$E$3:$N$3,0)-1),2,TRUE)","v":1},{"$f":"VLOOKUP(C:C,OFFSET('B. PoF Adj Factor Scoring'!$E$5:$F$282,,MATCH(H$4,'B. PoF Adj Factor Scoring'!$E$3:$N$3,0)-1),2,TRUE)","v":1},{"$f":"VLOOKUP(D:D,OFFSET('B. PoF Adj Factor Scoring'!$E$5:$F$282,,MATCH(I$4,'B. PoF Adj Factor Scoring'!$E$3:$N$3,0)-1),2,TRUE)","v":1},{"$f":"VLOOKUP(E:E,OFFSET('B. PoF Adj Factor Scoring'!$E$5:$F$282,,MATCH(J$4,'B. PoF Adj Factor Scoring'!$E$3:$N$3,0)-1),2,TRUE)","v":1},{"$f":"VLOOKUP(F:F,OFFSET('B. PoF Adj Factor Scoring'!$E$5:$F$282,,MATCH(K$4,'B. PoF Adj Factor Scoring'!$E$3:$N$3,0)-1),2,TRUE)","v":1}]
[{"$f":"'A. Population Info'!A568","v":1000374782},{"$f":"'A. Population Info'!G568","v":"OIL"},{"$f":"'A. Population Info'!H568","v":3},{"$f":"'A. Population Info'!I568","v":0},{"$f":"'A. Population Info'!J568","v":0},{"$f":"'A. Population Info'!K568","v":0},{"$f":"VLOOKUP(B:B,OFFSET('B. PoF Adj Factor Scoring'!$E$5:$F$282,,MATCH(G$4,'B. PoF Adj Factor Scoring'!$E$3:$N$3,0)-1),2,TRUE)","v":1},{"$f":"VLOOKUP(C:C,OFFSET('B. PoF Adj Factor Scoring'!$E$5:$F$282,,MATCH(H$4,'B. PoF Adj Factor Scoring'!$E$3:$N$3,0)-1),2,TRUE)","v":3},{"$f":"VLOOKUP(D:D,OFFSET('B. PoF Adj Factor Scoring'!$E$5:$F$282,,MATCH(I$4,'B. PoF Adj Factor Scoring'!$E$3:$N$3,0)-1),2,TRUE)","v":1},{"$f":"VLOOKUP(E:E,OFFSET('B. PoF Adj Factor Scoring'!$E$5:$F$282,,MATCH(J$4,'B. PoF Adj Factor Scoring'!$E$3:$N$3,0)-1),2,TRUE)","v":1},{"$f":"VLOOKUP(F:F,OFFSET('B. PoF Adj Factor Scoring'!$E$5:$F$282,,MATCH(K$4,'B. PoF Adj Factor Scoring'!$E$3:$N$3,0)-1),2,TRUE)","v":1}]
[{"$f":"'A. Population Info'!A569","v":1000400379},{"$f":"'A. Population Info'!G569","v":"OIL"},{"$f":"'A. Population Info'!H569","v":4},{"$f":"'A. Population Info'!I569","v":0},{"$f":"'A. Population Info'!J569","v":0},{"$f":"'A. Population Info'!K569","v":0},{"$f":"VLOOKUP(B:B,OFFSET('B. PoF Adj Factor Scoring'!$E$5:$F$282,,MATCH(G$4,'B. PoF Adj Factor Scoring'!$E$3:$N$3,0)-1),2,TRUE)","v":1},{"$f":"VLOOKUP(C:C,OFFSET('B. PoF Adj Factor Scoring'!$E$5:$F$282,,MATCH(H$4,'B. PoF Adj Factor Scoring'!$E$3:$N$3,0)-1),2,TRUE)","v":4},{"$f":"VLOOKUP(D:D,OFFSET('B. PoF Adj Factor Scoring'!$E$5:$F$282,,MATCH(I$4,'B. PoF Adj Factor Scoring'!$E$3:$N$3,0)-1),2,TRUE)","v":1},{"$f":"VLOOKUP(E:E,OFFSET('B. PoF Adj Factor Scoring'!$E$5:$F$282,,MATCH(J$4,'B. PoF Adj Factor Scoring'!$E$3:$N$3,0)-1),2,TRUE)","v":1},{"$f":"VLOOKUP(F:F,OFFSET('B. PoF Adj Factor Scoring'!$E$5:$F$282,,MATCH(K$4,'B. PoF Adj Factor Scoring'!$E$3:$N$3,0)-1),2,TRUE)","v":1}]
[{"$f":"'A. Population Info'!A570","v":1000400797},{"$f":"'A. Population Info'!G570","v":"OIL"},{"$f":"'A. Population Info'!H570","v":2},{"$f":"'A. Population Info'!I570","v":3700},{"$f":"'A. Population Info'!J570","v":0},{"$f":"'A. Population Info'!K570","v":0},{"$f":"VLOOKUP(B:B,OFFSET('B. PoF Adj Factor Scoring'!$E$5:$F$282,,MATCH(G$4,'B. PoF Adj Factor Scoring'!$E$3:$N$3,0)-1),2,TRUE)","v":1},{"$f":"VLOOKUP(C:C,OFFSET('B. PoF Adj Factor Scoring'!$E$5:$F$282,,MATCH(H$4,'B. PoF Adj Factor Scoring'!$E$3:$N$3,0)-1),2,TRUE)","v":2},{"$f":"VLOOKUP(D:D,OFFSET('B. PoF Adj Factor Scoring'!$E$5:$F$282,,MATCH(I$4,'B. PoF Adj Factor Scoring'!$E$3:$N$3,0)-1),2,TRUE)","v":3},{"$f":"VLOOKUP(E:E,OFFSET('B. PoF Adj Factor Scoring'!$E$5:$F$282,,MATCH(J$4,'B. PoF Adj Factor Scoring'!$E$3:$N$3,0)-1),2,TRUE)","v":1},{"$f":"VLOOKUP(F:F,OFFSET('B. PoF Adj Factor Scoring'!$E$5:$F$282,,MATCH(K$4,'B. PoF Adj Factor Scoring'!$E$3:$N$3,0)-1),2,TRUE)","v":1}]
[{"$f":"'A. Population Info'!A571","v":1000407857},{"$f":"'A. Population Info'!G571","v":"OIL"},{"$f":"'A. Population Info'!H571","v":1},{"$f":"'A. Population Info'!I571","v":1045},{"$f":"'A. Population Info'!J571","v":0},{"$f":"'A. Population Info'!K571","v":0},{"$f":"VLOOKUP(B:B,OFFSET('B. PoF Adj Factor Scoring'!$E$5:$F$282,,MATCH(G$4,'B. PoF Adj Factor Scoring'!$E$3:$N$3,0)-1),2,TRUE)","v":1},{"$f":"VLOOKUP(C:C,OFFSET('B. PoF Adj Factor Scoring'!$E$5:$F$282,,MATCH(H$4,'B. PoF Adj Factor Scoring'!$E$3:$N$3,0)-1),2,TRUE)","v":1},{"$f":"VLOOKUP(D:D,OFFSET('B. PoF Adj Factor Scoring'!$E$5:$F$282,,MATCH(I$4,'B. PoF Adj Factor Scoring'!$E$3:$N$3,0)-1),2,TRUE)","v":2},{"$f":"VLOOKUP(E:E,OFFSET('B. PoF Adj Factor Scoring'!$E$5:$F$282,,MATCH(J$4,'B. PoF Adj Factor Scoring'!$E$3:$N$3,0)-1),2,TRUE)","v":1},{"$f":"VLOOKUP(F:F,OFFSET('B. PoF Adj Factor Scoring'!$E$5:$F$282,,MATCH(K$4,'B. PoF Adj Factor Scoring'!$E$3:$N$3,0)-1),2,TRUE)","v":1}]
[{"$f":"'A. Population Info'!A572","v":1000410265},{"$f":"'A. Population Info'!G572","v":"OIL"},{"$f":"'A. Population Info'!H572","v":4},{"$f":"'A. Population Info'!I572","v":800},{"$f":"'A. Population Info'!J572","v":0},{"$f":"'A. Population Info'!K572","v":0},{"$f":"VLOOKUP(B:B,OFFSET('B. PoF Adj Factor Scoring'!$E$5:$F$282,,MATCH(G$4,'B. PoF Adj Factor Scoring'!$E$3:$N$3,0)-1),2,TRUE)","v":1},{"$f":"VLOOKUP(C:C,OFFSET('B. PoF Adj Factor Scoring'!$E$5:$F$282,,MATCH(H$4,'B. PoF Adj Factor Scoring'!$E$3:$N$3,0)-1),2,TRUE)","v":4},{"$f":"VLOOKUP(D:D,OFFSET('B. PoF Adj Factor Scoring'!$E$5:$F$282,,MATCH(I$4,'B. PoF Adj Factor Scoring'!$E$3:$N$3,0)-1),2,TRUE)","v":1},{"$f":"VLOOKUP(E:E,OFFSET('B. PoF Adj Factor Scoring'!$E$5:$F$282,,MATCH(J$4,'B. PoF Adj Factor Scoring'!$E$3:$N$3,0)-1),2,TRUE)","v":1},{"$f":"VLOOKUP(F:F,OFFSET('B. PoF Adj Factor Scoring'!$E$5:$F$282,,MATCH(K$4,'B. PoF Adj Factor Scoring'!$E$3:$N$3,0)-1),2,TRUE)","v":1}]
[{"$f":"'A. Population Info'!A573","v":1000410753},{"$f":"'A. Population Info'!G573","v":"OIL"},{"$f":"'A. Population Info'!H573","v":3},{"$f":"'A. Population Info'!I573","v":0},{"$f":"'A. Population Info'!J573","v":0},{"$f":"'A. Population Info'!K573","v":0},{"$f":"VLOOKUP(B:B,OFFSET('B. PoF Adj Factor Scoring'!$E$5:$F$282,,MATCH(G$4,'B. PoF Adj Factor Scoring'!$E$3:$N$3,0)-1),2,TRUE)","v":1},{"$f":"VLOOKUP(C:C,OFFSET('B. PoF Adj Factor Scoring'!$E$5:$F$282,,MATCH(H$4,'B. PoF Adj Factor Scoring'!$E$3:$N$3,0)-1),2,TRUE)","v":3},{"$f":"VLOOKUP(D:D,OFFSET('B. PoF Adj Factor Scoring'!$E$5:$F$282,,MATCH(I$4,'B. PoF Adj Factor Scoring'!$E$3:$N$3,0)-1),2,TRUE)","v":1},{"$f":"VLOOKUP(E:E,OFFSET('B. PoF Adj Factor Scoring'!$E$5:$F$282,,MATCH(J$4,'B. PoF Adj Factor Scoring'!$E$3:$N$3,0)-1),2,TRUE)","v":1},{"$f":"VLOOKUP(F:F,OFFSET('B. PoF Adj Factor Scoring'!$E$5:$F$282,,MATCH(K$4,'B. PoF Adj Factor Scoring'!$E$3:$N$3,0)-1),2,TRUE)","v":1}]

{"sheet":"B. Asset PoF & Health Index","index":9,"n_rows":573,"n_cols":48,"rows_kept":573,"cut":false,"hidden":false,"merged":[[2,21,2,32],[2,34,2,35],[2,1,3,1],[2,0,3,0],[2,2,3,2],[2,9,2,20],[2,7,2,8],[2,5,2,6],[2,4,3,4]]}
[null,null,"Individual Asset Probability of Failure & Health Index"]
[]
["Asset Identifier","Asset Age","Total PoF Score","Population Normalised PoF Score",null,"Crow-AMSAA Parameters",null,"Weibull Parameters",null,"Individual Asset Age Dependant Failure Rate",null,null,null,null,null,null,null,null,null,null,null,"ASSET HEALTH INDEX",null,null,null,null,null,null,null,null,null,null,null,null,"HEALTH INDEX SUMMARY TABLE",null,2019,2020,2021,2022,2023,2024,2025,2026,2027,2028,2029,2030]
[null,null,null,null,null,null,null,null,null,{"$f":"SUM(J6:J1048576)","v":3.3029239651472655},3.4972289125076683,3.6999834006468912,3.9114151373709856,4.1317489276791743,4.3612070094799371,4.6000093075388353,4.8483736358803284,5.1065158644853597,5.3746500597753899,5.6529886050649631,5.9417423052486917,null,null,null,null,null,null,null,null,null,null,null,null,null,"H1($)",1,{"$f":"SUMIF(V:V, $AJ4,'A. Population Info'!$C:$C)","v":335},{"$f":"SUMIF(W:W, $AJ4,'A. Population Info'!$C:$C)","v":334},{"$f":"SUMIF(X:X, $AJ4,'A. Population Info'!$C:$C)","v":332},{"$f":"SUMIF(Y:Y, $AJ4,'A. Population Info'!$C:$C)","v":331},{"$f":"SUMIF(Z:Z, $AJ4,'A. Population Info'!$C:$C)","v":327},{"$f":"SUMIF(AA:AA, $AJ4,'A. Population Info'!$C:$C)","v":325},{"$f":"SUMIF(AB:AB, $AJ4,'A. Population Info'!$C:$C)","v":322},{"$f":"SUMIF(AC:AC, $AJ4,'A. Population Info'!$C:$C)","v":320},{"$f":"SUMIF(AD:AD, $AJ4,'A. Population Info'!$C:$C)","v":319},{"$f":"SUMIF(AE:AE, $AJ4,'A. Population Info'!$C:$C)","v":319},{"$f":"SUMIF(AF:AF, $AJ4,'A. Population Info'!$C:$C)","v":315},{"$f":"SUMIF(AG:AG, $AJ4,'A. Population Info'!$C:$C)","v":312}]
["Blank1","Blank2","Blank2",null,"Blank4","βindivudal","λindividual","βindivudal","hindividual",2019,2020,2021,2022,2023,2024,2025,2026,2027,2028,2029,2030,2019,2020,2021,2022,2023,2024,2025,2026,2027,2028,2029,2030,null,"H2($)",2,{"$f":"SUMIF(V:V, $AJ5,'A. Population Info'!$C:$C)","v":32},{"$f":"SUMIF(W:W, $AJ5,'A. Population Info'!$C:$C)","v":29},{"$f":"SUMIF(X:X, $AJ5,'A. Population Info'!$C:$C)","v":26},{"$f":"SUMIF(Y:Y, $AJ5,'A. Population Info'!$C:$C)","v":22},{"$f":"SUMIF(Z:Z, $AJ5,'A. Population Info'!$C:$C)","v":22},{"$f":"SUMIF(AA:AA, $AJ5,'A. Population Info'!$C:$C)","v":17},{"$f":"SUMIF(AB:AB, $AJ5,'A. Population Info'!$C:$C)","v":15},{"$f":"SUMIF(AC:AC, $AJ5,'A. Population Info'!$C:$C)","v":17},{"$f":"SUMIF(AD:AD, $AJ5,'A. Population Info'!$C:$C)","v":17},{"$f":"SUMIF(AE:AE, $AJ5,'A. Population Info'!$C:$C)","v":16},{"$f":"SUMIF(AF:AF, $AJ5,'A. Population Info'!$C:$C)","v":18},{"$f":"SUMIF(AG:AG, $AJ5,'A. Population Info'!$C:$C)","v":20}]
[1000023626,12,3,7.7142857142857153,-0.5248906591678234,"Not Applicable","Not Applicable",3.7302714285714287,90.495685924941753,2.0623153716586059E-4,2.5248059226310387E-4,3.0481457753673766E-4,3.6354799700535629E-4,4.2898973991092209E-4,5.0144352382806639E-4,5.8120827885803231E-4,6.6857848357752608E-4,7.6384446101957697E-4,8.6729264120025411E-4,9.7920579538369025E-4,1.0998632462725082E-3,1,1,1,1,1,1,1,1,1,1,1,1,null,"H3($)",3,{"$f":"SUMIF(V:V, $AJ6,'A. Population Info'!$C:$C)","v":35},{"$f":"SUMIF(W:W, $AJ6,'A. Population Info'!$C:$C)","v":30},{"$f":"SUMIF(X:X, $AJ6,'A. Population Info'!$C:$C)","v":30},{"$f":"SUMIF(Y:Y, $AJ6,'A. Population Info'!$C:$C)","v":30},{"$f":"SUMIF(Z:Z, $AJ6,'A. Population Info'!$C:$C)","v":31},{"$f":"SUMIF(AA:AA, $AJ6,'A. Population Info'!$C:$C)","v":32},{"$f":"SUMIF(AB:AB, $AJ6,'A. Population Info'!$C:$C)","v":33},{"$f":"SUMIF(AC:AC, $AJ6,'A. Population Info'!$C:$C)","v":29},{"$f":"SUMIF(AD:AD, $AJ6,'A. Population Info'!$C:$C)","v":27},{"$f":"SUMIF(AE:AE, $AJ6,'A. Population Info'!$C:$C)","v":22},{"$f":"SUMIF(AF:AF, $AJ6,'A. Population Info'!$C:$C)","v":18},{"$f":"SUMIF(AG:AG, $AJ6,'A. Population Info'!$C:$C)","v":16}]
[1000023638,12,3,7.7142857142857153,-0.5248906591678234,"Not Applicable","Not Applicable",3.7302714285714287,90.495685924941753,2.0623153716586059E-4,2.5248059226310387E-4,3.0481457753673766E-4,3.6354799700535629E-4,4.2898973991092209E-4,5.0144352382806639E-4,5.8120827885803231E-4,6.6857848357752608E-4,7.6384446101957697E-4,8.6729264120025411E-4,9.7920579538369025E-4,1.0998632462725082E-3,1,1,1,1,1,1,1,1,1,1,1,1,null,"H4($)",4,{"$f":"SUMIF(V:V, $AJ7,'A. Population Info'!$C:$C)","v":22},{"$f":"SUMIF(W:W, $AJ7,'A. Population Info'!$C:$C)","v":26},{"$f":"SUMIF(X:X, $AJ7,'A. Population Info'!$C:$C)","v":26},{"$f":"SUMIF(Y:Y, $AJ7,'A. Population Info'!$C:$C)","v":28},{"$f":"SUMIF(Z:Z, $AJ7,'A. Population Info'!$C:$C)","v":29},{"$f":"SUMIF(AA:AA, $AJ7,'A. Population Info'!$C:$C)","v":28},{"$f":"SUMIF(AB:AB, $AJ7,'A. Population Info'!$C:$C)","v":22},{"$f":"SUMIF(AC:AC, $AJ7,'A. Population Info'!$C:$C)","v":22},{"$f":"SUMIF(AD:AD, $AJ7,'A. Population Info'!$C:$C)","v":20},{"$f":"SUMIF(AE:AE, $AJ7,'A. Population Info'!$C:$C)","v":23},{"$f":"SUMIF(AF:AF, $AJ7,'A. Population Info'!$C:$C)","v":23},{"$f":"SUMIF(AG:AG, $AJ7,'A. Population Info'!$C:$C)","v":22}]
[1000023649,11,3,7.7142857142857153,-0.5248906591678234,"Not Applicable","Not Applicable",3.7302714285714287,90.495685924941753,1.6574677744421492E-4,2.0623153716586059E-4,2.5248059226310387E-4,3.0481457753673766E-4,3.6354799700535629E-4,4.2898973991092209E-4,5.0144352382806639E-4,5.8120827885803231E-4,6.6857848357752608E-4,7.6384446101957697E-4,8.6729264120025411E-4,9.7920579538369025E-4,1,1,1,1,1,1,1,1,1,1,1,1,null,"H5($)",5,{"$f":"SUMIF(V:V, $AJ8,'A. Population Info'!$C:$C)","v":37},{"$f":"SUMIF(W:W, $AJ8,'A. Population Info'!$C:$C)","v":33},{"$f":"SUMIF(X:X, $AJ8,'A. Population Info'!$C:$C)","v":24},{"$f":"SUMIF(Y:Y, $AJ8,'A. Population Info'!$C:$C)","v":20},{"$f":"SUMIF(Z:Z, $AJ8,'A. Population Info'!$C:$C)","v":17},{"$f":"SUMIF(AA:AA, $AJ8,'A. Population Info'!$C:$C)","v":18},{"$f":"SUMIF(AB:AB, $AJ8,'A. Population Info'!$C:$C)","v":24},{"$f":"SUMIF(AC:AC, $AJ8,'A. Population Info'!$C:$C)","v":23},{"$f":"SUMIF(AD:AD, $AJ8,'A. Population Info'!$C:$C)","v":27},{"$f":"SUMIF(AE:AE, $AJ8,'A. Population Info'!$C:$C)","v":25},{"$f":"SUMIF(AF:AF, $AJ8,'A. Population Info'!$C:$C)","v":22},{"$f":"SUMIF(AG:AG, $AJ8,'A. Population Info'!$C:$C)","v":20}]
[1000048071,12,3,7.7142857142857153,-0.5248906591678234,"Not Applicable","Not Applicable",3.7302714285714287,90.495685924941753,2.0623153716586059E-4,2.5248059226310387E-4,3.0481457753673766E-4,3.6354799700535629E-4,4.2898973991092209E-4,5.0144352382806639E-4,5.8120827885803231E-4,6.6857848357752608E-4,7.6384446101957697E-4,8.6729264120025411E-4,9.7920579538369025E-4,1.0998632462725082E-3,1,1,1,1,1,1,1,1,1,1,1,1,null,"H6($)",6,{"$f":"SUMIF(V:V, $AJ9,'A. Population Info'!$C:$C)","v":20},{"$f":"SUMIF(W:W, $AJ9,'A. Population Info'!$C:$C)","v":24},{"$f":"SUMIF(X:X, $AJ9,'A. Population Info'!$C:$C)","v":31},{"$f":"SUMIF(Y:Y, $AJ9,'A. Population Info'!$C:$C)","v":35},{"$f":"SUMIF(Z:Z, $AJ9,'A. Population Info'!$C:$C)","v":35},{"$f":"SUMIF(AA:AA, $AJ9,'A. Population Info'!$C:$C)","v":30},{"$f":"SUMIF(AB:AB, $AJ9,'A. Population Info'!$C:$C)","v":22},{"$f":"SUMIF(AC:AC, $AJ9,'A. Population Info'!$C:$C)","v":20},{"$f":"SUMIF(AD:AD, $AJ9,'A. Population Info'!$C:$C)","v":16},{"$f":"SUMIF(AE:AE, $AJ9,'A. Population Info'!$C:$C)","v":14},{"$f":"SUMIF(AF:AF, $AJ9,'A. Population Info'!$C:$C)","v":20},{"$f":"SUMIF(AG:AG, $AJ9,'A. Population Info'!$C:$C)","v":21}]
[1000048606,11,3,7.7142857142857153,-0.5248906591678234,"Not Applicable","Not Applicable",3.7302714285714287,90.495685924941753,1.6574677744421492E-4,2.0623153716586059E-4,2.5248059226310387E-4,3.0481457753673766E-4,3.6354799700535629E-4,4.2898973991092209E-4,5.0144352382806639E-4,5.8120827885803231E-4,6.6857848357752608E-4,7.6384446101957697E-4,8.6729264120025411E-4,9.7920579538369025E-4,1,1,1,1,1,1,1,1,1,1,1,1,null,"H7($)",7,{"$f":"SUMIF(V:V, $AJ10,'A. Population Info'!$C:$C)","v":15},{"$f":"SUMIF(W:W, $AJ10,'A. Population Info'!$C:$C)","v":14},{"$f":"SUMIF(X:X, $AJ10,'A. Population Info'!$C:$C)","v":15},{"$f":"SUMIF(Y:Y, $AJ10,'A. Population Info'!$C:$C)","v":15},{"$f":"SUMIF(Z:Z, $AJ10,'A. Population Info'!$C:$C)","v":13},{"$f":"SUMIF(AA:AA, $AJ10,'A. Population Info'!$C:$C)","v":19},{"$f":"SUMIF(AB:AB, $AJ10,'A. Population Info'!$C:$C)","v":28},{"$f":"SUMIF(AC:AC, $AJ10,'A. Population Info'!$C:$C)","v":30},{"$f":"SUMIF(AD:AD, $AJ10,'A. Population Info'!$C:$C)","v":24},{"$f":"SUMIF(AE:AE, $AJ10,'A. Population Info'!$C:$C)","v":19},{"$f":"SUMIF(AF:AF, $AJ10,'A. Population Info'!$C:$C)","v":15},{"$f":"SUMIF(AG:AG, $AJ10,'A. Population Info'!$C:$C)","v":15}]
[1000048621,11,3,7.7142857142857153,-0.5248906591678234,"Not Applicable","Not Applicable",3.7302714285714287,90.495685924941753,1.6574677744421492E-4,2.0623153716586059E-4,2.5248059226310387E-4,3.0481457753673766E-4,3.6354799700535629E-4,4.2898973991092209E-4,5.0144352382806639E-4,5.8120827885803231E-4,6.6857848357752608E-4,7.6384446101957697E-4,8.6729264120025411E-4,9.7920579538369025E-4,1,1,1,1,1,1,1,1,1,1,1,1,null,"H8($)",8,{"$f":"SUMIF(V:V, $AJ11,'A. Population Info'!$C:$C)","v":10},{"$f":"SUMIF(W:W, $AJ11,'A. Population Info'!$C:$C)","v":12},{"$f":"SUMIF(X:X, $AJ11,'A. Population Info'!$C:$C)","v":13},{"$f":"SUMIF(Y:Y, $AJ11,'A. Population Info'!$C:$C)","v":9},{"$f":"SUMIF(Z:Z, $AJ11,'A. Population Info'!$C:$C)","v":10},{"$f":"SUMIF(AA:AA, $AJ11,'A. Population Info'!$C:$C)","v":12},{"$f":"SUMIF(AB:AB, $AJ11,'A. Population Info'!$C:$C)","v":9},{"$f":"SUMIF(AC:AC, $AJ11,'A. Population Info'!$C:$C)","v":9},{"$f":"SUMIF(AD:AD, $AJ11,'A. Population Info'!$C:$C)","v":17},{"$f":"SUMIF(AE:AE, $AJ11,'A. Population Info'!$C:$C)","v":25},{"$f":"SUMIF(AF:AF, $AJ11,'A. Population Info'!$C:$C)","v":27},{"$f":"SUMIF(AG:AG, $AJ11,'A. Population Info'!$C:$C)","v":25}]
[1000048751,12,3,7.7142857142857153,-0.5248906591678234,"Not Applicable","Not Applicable",3.7302714285714287,90.495685924941753,2.0623153716586059E-4,2.5248059226310387E-4,3.0481457753673766E-4,3.6354799700535629E-4,4.2898973991092209E-4,5.0144352382806639E-4,5.8120827885803231E-4,6.6857848357752608E-4,7.6384446101957697E-4,8.6729264120025411E-4,9.7920579538369025E-4,1.0998632462725082E-3,1,1,1,1,1,1,1,1,1,1,1,1,null,"H9($)",9,{"$f":"SUMIF(V:V, $AJ12,'A. Population Info'!$C:$C)","v":13},{"$f":"SUMIF(W:W, $AJ12,'A. Population Info'!$C:$C)","v":12},{"$f":"SUMIF(X:X, $AJ12,'A. Population Info'!$C:$C)","v":11},{"$f":"SUMIF(Y:Y, $AJ12,'A. Population Info'!$C:$C)","v":13},{"$f":"SUMIF(Z:Z, $AJ12,'A. Population Info'!$C:$C)","v":14},{"$f":"SUMIF(AA:AA, $AJ12,'A. Population Info'!$C:$C)","v":14},{"$f":"SUMIF(AB:AB, $AJ12,'A. Population Info'!$C:$C)","v":14},{"$f":"SUMIF(AC:AC, $AJ12,'A. Population Info'!$C:$C)","v":14},{"$f":"SUMIF(AD:AD, $AJ12,'A. Population Info'!$C:$C)","v":9},{"$f":"SUMIF(AE:AE, $AJ12,'A. Population Info'!$C:$C)","v":11},{"$f":"SUMIF(AF:AF, $AJ12,'A. Population Info'!$C:$C)","v":11},{"$f":"SUMIF(AG:AG, $AJ12,'A. Population Info'!$C:$C)","v":16}]
[1000063506,12,3,7.7142857142857153,-0.5248906591678234,"Not Applicable","Not Applicable",3.7302714285714287,90.495685924941753,2.0623153716586059E-4,2.5248059226310387E-4,3.0481457753673766E-4,3.6354799700535629E-4,4.2898973991092209E-4,5.0144352382806639E-4,5.8120827885803231E-4,6.6857848357752608E-4,7.6384446101957697E-4,8.6729264120025411E-4,9.7920579538369025E-4,1.0998632462725082E-3,1,1,1,1,1,1,1,1,1,1,1,1,null,"H10($)",10,{"$f":"SUMIF(V:V, $AJ13,'A. Population Info'!$C:$C)","v":49},{"$f":"SUMIF(W:W, $AJ13,'A. Population Info'!$C:$C)","v":54},{"$f":"SUMIF(X:X, $AJ13,'A. Population Info'!$C:$C)","v":60},{"$f":"SUMIF(Y:Y, $AJ13,'A. Population Info'!$C:$C)","v":65},{"$f":"SUMIF(Z:Z, $AJ13,'A. Population Info'!$C:$C)","v":70},{"$f":"SUMIF(AA:AA, $AJ13,'A. Population Info'!$C:$C)","v":73},{"$f":"SUMIF(AB:AB, $AJ13,'A. Population Info'!$C:$C)","v":79},{"$f":"SUMIF(AC:AC, $AJ13,'A. Population Info'!$C:$C)","v":84},{"$f":"SUMIF(AD:AD, $AJ13,'A. Population Info'!$C:$C)","v":92},{"$f":"SUMIF(AE:AE, $AJ13,'A. Population Info'!$C:$C)","v":94},{"$f":"SUMIF(AF:AF, $AJ13,'A. Population Info'!$C:$C)","v":99},{"$f":"SUMIF(AG:AG, $AJ13,'A. Population Info'!$C:$C)","v":101}]
[1000096500,11,3,7.7142857142857153,-0.5248906591678234,"Not Applicable","Not Applicable",3.7302714285714287,90.495685924941753,1.6574677744421492E-4,2.0623153716586059E-4,2.5248059226310387E-4,3.0481457753673766E-4,3.6354799700535629E-4,4.2898973991092209E-4,5.0144352382806639E-4,5.8120827885803231E-4,6.6857848357752608E-4,7.6384446101957697E-4,8.6729264120025411E-4,9.7920579538369025E-4,1,1,1,1,1,1,1,1,1,1,1,1]
[1000096880,11,3,7.7142857142857153,-0.5248906591678234,"Not Applicable","Not Applicable",3.7302714285714287,90.495685924941753,1.6574677744421492E-4,2.0623153716586059E-4,2.5248059226310387E-4,3.0481457753673766E-4,3.6354799700535629E-4,4.2898973991092209E-4,5.0144352382806639E-4,5.8120827885803231E-4,6.6857848357752608E-4,7.6384446101957697E-4,8.6729264120025411E-4,9.7920579538369025E-4,1,1,1,1,1,1,1,1,1,1,1,1]
[1000114250,10,3,7.7142857142857153,-0.5248906591678234,"Not Applicable","Not Applicable",3.7302714285714287,90.495685924941753,1.3069893995203767E-4,1.6574677744421492E-4,2.0623153716586059E-4,2.5248059226310387E-4,3.0481457753673766E-4,3.6354799700535629E-4,4.2898973991092209E-4,5.0144352382806639E-4,5.8120827885803231E-4,6.6857848357752608E-4,7.6384446101957697E-4,8.6729264120025411E-4,1,1,1,1,1,1,1,1,1,1,1,1]
[1000131033,9,3,7.7142857142857153,-0.5248906591678234,"Not Applicable","Not Applicable",3.7302714285714287,90.495685924941753,1.0075318863237906E-4,1.3069893995203767E-4,1.6574677744421492E-4,2.0623153716586059E-4,2.5248059226310387E-4,3.0481457753673766E-4,3.6354799700535629E-4,4.2898973991092209E-4,5.0144352382806639E-4,5.8120827885803231E-4,6.6857848357752608E-4,7.6384446101957697E-4,1,1,1,1,1,1,1,1,1,1,1,1]
[1000207623,10,3,7.7142857142857153,-0.5248906591678234,"Not Applicable","Not Applicable",3.7302714285714287,90.495685924941753,1.3069893995203767E-4,1.6574677744421492E-4,2.0623153716586059E-4,2.5248059226310387E-4,3.0481457753673766E-4,3.6354799700535629E-4,4.2898973991092209E-4,5.0144352382806639E-4,5.8120827885803231E-4,6.6857848357752608E-4,7.6384446101957697E-4,8.6729264120025411E-4,1,1,1,1,1,1,1,1,1,1,1,1]
[1000207714,11,3,7.7142857142857153,-0.5248906591678234,"Not Applicable","Not Applicable",3.7302714285714287,90.495685924941753,1.6574677744421492E-4,2.0623153716586059E-4,2.5248059226310387E-4,3.0481457753673766E-4,3.6354799700535629E-4,4.2898973991092209E-4,5.0144352382806639E-4,5.8120827885803231E-4,6.6857848357752608E-4,7.6384446101957697E-4,8.6729264120025411E-4,9.7920579538369025E-4,1,1,1,1,1,1,1,1,1,1,1,1]
[1000207726,11,3,7.7142857142857153,-0.5248906591678234,"Not Applicable","Not Applicable",3.7302714285714287,90.495685924941753,1.6574677744421492E-4,2.0623153716586059E-4,2.5248059226310387E-4,3.0481457753673766E-4,3.6354799700535629E-4,4.2898973991092209E-4,5.0144352382806639E-4,5.8120827885803231E-4,6.6857848357752608E-4,7.6384446101957697E-4,8.6729264120025411E-4,9.7920579538369025E-4,1,1,1,1,1,1,1,1,1,1,1,1]
[1000224415,7,3,7.7142857142857153,-0.5248906591678234,"Not Applicable","Not Applicable",3.7302714285714287,90.495685924941753,5.4785819195386816E-5,7.556634738586488E-5,1.0075318863237906E-4,1.3069893995203767E-4,1.6574677744421492E-4,2.0623153716586059E-4,2.5248059226310387E-4,3.0481457753673766E-4,3.6354799700535629E-4,4.2898973991092209E-4,5.0144352382806639E-4,5.8120827885803231E-4,1,1,1,1,1,1,1,1,1,1,1,1]
[1000224424,10,5,12.857142857142858,1.5746719775034717,"Not Applicable","Not Applicable",3.9107857142857139,73.504466067305898,2.1124279647594934E-4,2.7212993086824752E-4,3.4352737722408036E-4,4.2623005509803528E-4,5.2102743601057505E-4,6.2870396749631222E-4,7.5003943798022097E-4,8.8580929394114865E-4,1.0367849180545194E-3,1.2037338750248488E-3,1.387420130370311E-3,1.5886042463430481E-3,1,1,1,1,1,1,1,1,1,1,1,1]
[1000224437,10,3,7.7142857142857153,-0.5248906591678234,"Not Applicable","Not Applicable",3.7302714285714287,90.495685924941753,1.3069893995203767E-4,1.6574677744421492E-4,2.0623153716586059E-4,2.5248059226310387E-4,3.0481457753673766E-4,3.6354799700535629E-4,4.2898973991092209E-4,5.0144352382806639E-4,5.8120827885803231E-4,6.6857848357752608E-4,7.6384446101957697E-4,8.6729264120025411E-4,1,1,1,1,1,1,1,1,1,1,1,1]
[1000224450,10,4,10.285714285714286,0.52489065916782418,"Not Applicable","Not Applicable",3.8205285714285715,81.3586997951722,1.6620657937236637E-4,2.1243786456389763E-4,2.6624376195765007E-4,3.2813855412830157E-4,3.9862945674647062E-4,4.7821721233844475E-4,5.6739659787015233E-4,6.6665686328333973E-4,7.7648211389553861E-4,8.9735164657497933E-4,1.029740247420469E-3,1.1741184570606318E-3,1,1,1,1,1,1,1,1,1,1,1,1]
[1000224464,10,3,7.7142857142857153,-0.5248906591678234,"Not Applicable","Not Applicable",3.7302714285714287,90.495685924941753,1.3069893995203767E-4,1.6574677744421492E-4,2.0623153716586059E-4,2.5248059226310387E-4,3.0481457753673766E-4,3.6354799700535629E-4,4.2898973991092209E-4,5.0144352382806639E-4,5.8120827885803231E-4,6.6857848357752608E-4,7.6384446101957697E-4,8.6729264120025411E-4,1,1,1,1,1,1,1,1,1,1,1,1]
[1000224475,3,5,12.857142857142858,1.5746719775034717,"Not Applicable","Not Applicable",3.9107857142857139,73.504466067305898,1.1116768942339205E-5,2.128447098879864E-5,3.618616010485082E-5,5.6677444359269317E-5,8.3601176665095098E-5,1.1778945752365005E-4,1.6006510781928882E-4,2.1124279647594934E-4,2.7212993086824752E-4,3.4352737722408036E-4,4.2623005509803528E-4,5.2102743601057505E-4,1,1,1,1,1,1,1,1,1,1,1,1]
[1000267271,11,3,7.7142857142857153,-0.5248906591678234,"Not Applicable","Not Applicable",3.7302714285714287,90.495685924941753,1.6574677744421492E-4,2.0623153716586059E-4,2.5248059226310387E-4,3.0481457753673766E-4,3.6354799700535629E-4,4.2898973991092209E-4,5.0144352382806639E-4,5.8120827885803231E-4,6.6857848357752608E-4,7.6384446101957697E-4,8.6729264120025411E-4,9.7920579538369025E-4,1,1,1,1,1,1,1,1,1,1,1,1]
[1000276491,11,4,10.285714285714286,0.52489065916782418,"Not Applicable","Not Applicable",3.8205285714285715,81.3586997951722,2.1243786456389763E-4,2.6624376195765007E-4,3.2813855412830157E-4,3.9862945674647062E-4,4.7821721233844475E-4,5.6739659787015233E-4,6.6665686328333973E-4,7.7648211389553861E-4,8.9735164657497933E-4,1.029740247420469E-3,1.1741184570606318E-3,1.3309528084701585E-3,1,1,1,1,1,1,1,1,1,1,1,1]
[1000276518,9,3,7.7142857142857153,-0.5248906591678234,"Not Applicable","Not Applicable",3.7302714285714287,90.495685924941753,1.0075318863237906E-4,1.3069893995203767E-4,1.6574677744421492E-4,2.0623153716586059E-4,2.5248059226310387E-4,3.0481457753673766E-4,3.6354799700535629E-4,4.2898973991092209E-4,5.0144352382806639E-4,5.8120827885803231E-4,6.6857848357752608E-4,7.6384446101957697E-4,1,1,1,1,1,1,1,1,1,1,1,1]
[1000276530,9,3,7.7142857142857153,-0.5248906591678234,"Not Applicable","Not Applicable",3.7302714285714287,90.495685924941753,1.0075318863237906E-4,1.3069893995203767E-4,1.6574677744421492E-4,2.0623153716586059E-4,2.5248059226310387E-4,3.0481457753673766E-4,3.6354799700535629E-4,4.2898973991092209E-4,5.0144352382806639E-4,5.8120827885803231E-4,6.6857848357752608E-4,7.6384446101957697E-4,1,1,1,1,1,1,1,1,1,1,1,1]
[1000276542,9,3,7.7142857142857153,-0.5248906591678234,"Not Applicable","Not Applicable",3.7302714285714287,90.495685924941753,1.0075318863237906E-4,1.3069893995203767E-4,1.6574677744421492E-4,2.0623153716586059E-4,2.5248059226310387E-4,3.0481457753673766E-4,3.6354799700535629E-4,4.2898973991092209E-4,5.0144352382806639E-4,5.8120827885803231E-4,6.6857848357752608E-4,7.6384446101957697E-4,1,1,1,1,1,1,1,1,1,1,1,1]
[1000299647,29,3,7.7142857142857153,-0.5248906591678234,"Not Applicable","Not Applicable",3.7302714285714287,90.495685924941753,2.0226900090022917E-3,2.2121246405756847E-3,2.4124335104901656E-3,2.6238716969322626E-3,2.8466921362306987E-3,3.0811457049862911E-3,3.3274812967358422E-3,3.585945893659289E-3,3.8567846337791045E-3,4.1402408740492556E-3,4.4365562496864993E-3,4.7459707300582417E-3,1,1,2,2,2,2,2,2,2,2,2,3]
[1000314154,72,4,10.285714285714286,0.52489065916782418,"Not Applicable","Not Applicable",3.8205285714285715,81.3586997951722,3.4588024167636067E-2,3.5941141070980967E-2,3.7327959956995525E-2,3.8748854072064146E-2,4.020419577041829E-2,4.1694356527967491E-2,4.3219706955739151E-2,4.4780616812943368E-2,4.6377455019677508E-2,4.8010589669285064E-2,4.9680388040382335E-2,5.1387216608565649E-2,10,10,10,10,10,10,10,10,10,10,10,10]
[1000314337,67,5,12.857142857142858,1.5746719775034717,"Not Applicable","Not Applicable",3.9107857142857139,73.504466067305898,4.241814981337954E-2,4.4259512012284778E-2,4.6152578913568033E-2,4.8098032571796387E-2,5.0096554172756012E-2,5.2148824046773637E-2,5.4255521681651576E-2,5.6417325735232809E-2,5.863491404761139E-2,6.0908963653002871E-2,6.3240150791288655E-2,6.5629150919246898E-2,10,10,10,10,10,10,10,10,10,10,10,10]
[1000314363,65,5,12.857142857142858,1.5746719775034717,"Not Applicable","Not Applicable",3.9107857142857139,73.504466067305898,3.8887806877757371E-2,4.0627809379779202E-2,4.241814981337954E-2,4.4259512012284778E-2,4.6152578913568033E-2,4.8098032571796387E-2,5.0096554172756012E-2,5.2148824046773637E-2,5.4255521681651576E-2,5.6417325735232809E-2,5.863491404761139E-2,6.0908963653002871E-2,10,10,10,10,10,10,10,10,10,10,10,10]
[1000318066,64,4,10.285714285714286,0.52489065916782418,"Not Applicable","Not Applicable",3.8205285714285715,81.3586997951722,2.4931264654322365E-2,2.6028314529103064E-2,2.7156046494914328E-2,2.8314841486244462E-2,2.9505079418460589E-2,3.0727139205464868E-2,3.198139877679361E-2,3.3268235094184535E-2,3.4588024167636067E-2,3.5941141070980967E-2,3.7327959956995525E-2,3.8748854072064146E-2,10,10,10,10,10,10,10,10,10,10,10,10]
[1000318448,58,6,15.428571428571431,2.4494897427831779,"Not Applicable","Not Applicable",3.9859999999999998,67.779304104150881,3.8864075241375327E-2,4.0864281297212438E-2,4.2931802108620576E-2,4.5067743753790905E-2,4.7273212057066728E-2,4.9549312593095363E-2,5.1897150690847348E-2,5.431783143750904E-2,5.6812459682254721E-2,5.9382140039903393E-2,6.2027976894465854E-2,6.4751074402586581E-2,10,10,10,10,10,10,10,10,10,10,10,10]
[1000318505,58,4,10.285714285714286,0.52489065916782418,"Not Applicable","Not Applicable",3.8205285714285715,81.3586997951722,1.897182384775074E-2,1.989284024947063E-2,2.084223066765066E-2,2.1820382557101111E-2,2.2827682234240088E-2,2.386451489872262E-2,2.4931264654322365E-2,2.6028314529103064E-2,2.7156046494914328E-2,2.8314841486244462E-2,2.9505079418460589E-2,3.0727139205464868E-2,9,9,9,10,10,10,10,10,10,10,10,10]
[1000318801,56,3,7.7142857142857153,-0.5248906591678234,"Not Applicable","Not Applicable",3.7302714285714287,90.495685924941753,1.1668158544192762E-2,1.2235576541308146E-2,1.2820177040009317E-2,1.3422175886665352E-2,1.4041787943005819E-2,1.4679227106915316E-2,1.5334706332455605E-2,1.6008437649156285E-2,1.6700632180611713E-2,1.7411500162419602E-2,1.814125095949445E-2,1.8890093082786507E-2,5,6,6,6,6,7,7,7,8,8,8,8]
[1000318835,56,4,10.285714285714286,0.52489065916782418,"Not Applicable","Not Applicable",3.8205285714285715,81.3586997951722,1.7213357447162774E-2,1.807879284687235E-2,1.897182384775074E-2,1.989284024947063E-2,2.084223066765066E-2,2.1820382557101111E-2,2.2827682234240088E-2,2.386451489872262E-2,2.4931264654322365E-2,2.6028314529103064E-2,2.7156046494914328E-2,2.8314841486244462E-2,8,8,9,9,9,10,10,10,10,10,10,10]
[1000318894,55,4,10.285714285714286,0.52489065916782418,"Not Applicable","Not Applicable",3.8205285714285715,81.3586997951722,1.6375126640774437E-2,1.7213357447162774E-2,1.807879284687235E-2,1.897182384775074E-2,1.989284024947063E-2,2.084223066765066E-2,2.1820382557101111E-2,2.2827682234240088E-2,2.386451489872262E-2,2.4931264654322365E-2,2.6028314529103064E-2,2.7156046494914328E-2,7,8,8,9,9,9,10,10,10,10,10,10]
[1000318924,56,5,12.857142857142858,1.5746719775034717,"Not Applicable","Not Applicable",3.9107857142857139,73.504466067305898,2.5379695263869503E-2,2.6697584456155762E-2,2.8059614156563172E-2,2.9466476985654733E-2,3.0918864517361939E-2,3.2417467297974317E-2,3.3962974864479044E-2,3.5556075762282695E-2,3.7197457562345652E-2,3.8887806877757371E-2,4.0627809379779202E-2,4.241814981337954E-2,10,10,10,10,10,10,10,10,10,10,10,10]
[1000318955,56,6,15.428571428571431,2.4494897427831779,"Not Applicable","Not Applicable",3.9859999999999998,67.779304104150881,3.5061181788515763E-2,3.6930077604778885E-2,3.8864075241375327E-2,4.0864281297212438E-2,4.2931802108620576E-2,4.5067743753790905E-2,4.7273212057066728E-2,4.9549312593095363E-2,5.1897150690847348E-2,5.431783143750904E-2,5.6812459682254721E-2,5.9382140039903393E-2,10,10,10,10,10,10,10,10,10,10,10,10]
[1000318984,55,4,10.285714285714286,0.52489065916782418,"Not Applicable","Not Applicable",3.8205285714285715,81.3586997951722,1.6375126640774437E-2,1.7213357447162774E-2,1.807879284687235E-2,1.897182384775074E-2,1.989284024947063E-2,2.084223066765066E-2,2.1820382557101111E-2,2.2827682234240088E-2,2.386451489872262E-2,2.4931264654322365E-2,2.6028314529103064E-2,2.7156046494914328E-2,7,8,8,9,9,9,10,10,10,10,10,10]
[1000323012,56,3,7.7142857142857153,-0.5248906591678234,"Not Applicable","Not Applicable",3.7302714285714287,90.495685924941753,1.1668158544192762E-2,1.2235576541308146E-2,1.2820177040009317E-2,1.3422175886665352E-2,1.4041787943005819E-2,1.4679227106915316E-2,1.5334706332455605E-2,1.6008437649156285E-2,1.6700632180611713E-2,1.7411500162419602E-2,1.814125095949445E-2,1.8890093082786507E-2,5,6,6,6,6,7,7,7,8,8,8,8]
[1000323042,55,3,7.7142857142857153,-0.5248906591678234,"Not Applicable","Not Applicable",3.7302714285714287,90.495685924941753,1.1117706196044316E-2,1.1668158544192762E-2,1.2235576541308146E-2,1.2820177040009317E-2,1.3422175886665352E-2,1.4041787943005819E-2,1.4679227106915316E-2,1.5334706332455605E-2,1.6008437649156285E-2,1.6700632180611713E-2,1.7411500162419602E-2,1.814125095949445E-2,5,5,6,6,6,6,7,7,7,8,8,8]
[1000323073,54,3,7.7142857142857153,-0.5248906591678234,"Not Applicable","Not Applicable",3.7302714285714287,90.495685924941753,1.0584001615520949E-2,1.1117706196044316E-2,1.1668158544192762E-2,1.2235576541308146E-2,1.2820177040009317E-2,1.3422175886665352E-2,1.4041787943005819E-2,1.4679227106915316E-2,1.5334706332455605E-2,1.6008437649156285E-2,1.6700632180611713E-2,1.7411500162419602E-2,5,5,5,6,6,6,6,7,7,7,8,8]
[1000323106,55,5,12.857142857142858,1.5746719775034717,"Not Applicable","Not Applicable",3.9107857142857139,73.504466067305898,2.4105252892835553E-2,2.5379695263869503E-2,2.6697584456155762E-2,2.8059614156563172E-2,2.9466476985654733E-2,3.0918864517361939E-2,3.2417467297974317E-2,3.3962974864479044E-2,3.5556075762282695E-2,3.7197457562345652E-2,3.8887806877757371E-2,4.0627809379779202E-2,10,10,10,10,10,10,10,10,10,10,10,10]
[1000323136,56,5,12.857142857142858,1.5746719775034717,"Not Applicable","Not Applicable",3.9107857142857139,73.504466067305898,2.5379695263869503E-2,2.6697584456155762E-2,2.8059614156563172E-2,2.9466476985654733E-2,3.0918864517361939E-2,3.2417467297974317E-2,3.3962974864479044E-2,3.5556075762282695E-2,3.7197457562345652E-2,3.8887806877757371E-2,4.0627809379779202E-2,4.241814981337954E-2,10,10,10,10,10,10,10,10,10,10,10,10]
[1000323169,55,3,7.7142857142857153,-0.5248906591678234,"Not Applicable","Not Applicable",3.7302714285714287,90.495685924941753,1.1117706196044316E-2,1.1668158544192762E-2,1.2235576541308146E-2,1.2820177040009317E-2,1.3422175886665352E-2,1.4041787943005819E-2,1.4679227106915316E-2,1.5334706332455605E-2,1.6008437649156285E-2,1.6700632180611713E-2,1.7411500162419602E-2,1.814125095949445E-2,5,5,6,6,6,6,7,7,7,8,8,8]
[1000323229,56,3,7.7142857142857153,-0.5248906591678234,"Not Applicable","Not Applicable",3.7302714285714287,90.495685924941753,1.1668158544192762E-2,1.2235576541308146E-2,1.2820177040009317E-2,1.3422175886665352E-2,1.4041787943005819E-2,1.4679227106915316E-2,1.5334706332455605E-2,1.6008437649156285E-2,1.6700632180611713E-2,1.7411500162419602E-2,1.814125095949445E-2,1.8890093082786507E-2,5,6,6,6,6,7,7,7,8,8,8,8]
[1000323262,54,5,12.857142857142858,1.5746719775034717,"Not Applicable","Not Applicable",3.9107857142857139,73.504466067305898,2.2873562569482885E-2,2.4105252892835553E-2,2.5379695263869503E-2,2.6697584456155762E-2,2.8059614156563172E-2,2.9466476985654733E-2,3.0918864517361939E-2,3.2417467297974317E-2,3.3962974864479044E-2,3.5556075762282695E-2,3.7197457562345652E-2,3.8887806877757371E-2,10,10,10,10,10,10,10,10,10,10,10,10]
[1000323289,55,5,12.857142857142858,1.5746719775034717,"Not Applicable","Not Applicable",3.9107857142857139,73.504466067305898,2.4105252892835553E-2,2.5379695263869503E-2,2.6697584456155762E-2,2.8059614156563172E-2,2.9466476985654733E-2,3.0918864517361939E-2,3.2417467297974317E-2,3.3962974864479044E-2,3.5556075762282695E-2,3.7197457562345652E-2,3.8887806877757371E-2,4.0627809379779202E-2,10,10,10,10,10,10,10,10,10,10,10,10]
[1000323320,55,5,12.857142857142858,1.5746719775034717,"Not Applicable","Not Applicable",3.9107857142857139,73.504466067305898,2.4105252892835553E-2,2.5379695263869503E-2,2.6697584456155762E-2,2.8059614156563172E-2,2.9466476985654733E-2,3.0918864517361939E-2,3.2417467297974317E-2,3.3962974864479044E-2,3.5556075762282695E-2,3.7197457562345652E-2,3.8887806877757371E-2,4.0627809379779202E-2,10,10,10,10,10,10,10,10,10,10,10,10]
[1000323378,54,5,12.857142857142858,1.5746719775034717,"Not Applicable","Not Applicable",3.9107857142857139,73.504466067305898,2.2873562569482885E-2,2.4105252892835553E-2,2.5379695263869503E-2,2.6697584456155762E-2,2.8059614156563172E-2,2.9466476985654733E-2,3.0918864517361939E-2,3.2417467297974317E-2,3.3962974864479044E-2,3.5556075762282695E-2,3.7197457562345652E-2,3.8887806877757371E-2,10,10,10,10,10,10,10,10,10,10,10,10]
[1000323408,54,5,12.857142857142858,1.5746719775034717,"Not Applicable","Not Applicable",3.9107857142857139,73.504466067305898,2.2873562569482885E-2,2.4105252892835553E-2,2.5379695263869503E-2,2.6697584456155762E-2,2.8059614156563172E-2,2.9466476985654733E-2,3.0918864517361939E-2,3.2417467297974317E-2,3.3962974864479044E-2,3.5556075762282695E-2,3.7197457562345652E-2,3.8887806877757371E-2,10,10,10,10,10,10,10,10,10,10,10,10]
[1000323435,54,4,10.285714285714286,0.52489065916782418,"Not Applicable","Not Applicable",3.8205285714285715,81.3586997951722,1.5563708186639956E-2,1.6375126640774437E-2,1.7213357447162774E-2,1.807879284687235E-2,1.897182384775074E-2,1.989284024947063E-2,2.084223066765066E-2,2.1820382557101111E-2,2.2827682234240088E-2,2.386451489872262E-2,2.4931264654322365E-2,2.6028314529103064E-2,7,7,8,8,9,9,9,10,10,10,10,10]
[1000323556,54,4,10.285714285714286,0.52489065916782418,"Not Applicable","Not Applicable",3.8205285714285715,81.3586997951722,1.5563708186639956E-2,1.6375126640774437E-2,1.7213357447162774E-2,1.807879284687235E-2,1.897182384775074E-2,1.989284024947063E-2,2.084223066765066E-2,2.1820382557101111E-2,2.2827682234240088E-2,2.386451489872262E-2,2.4931264654322365E-2,2.6028314529103064E-2,7,7,8,8,9,9,9,10,10,10,10,10]
[1000323583,54,4,10.285714285714286,0.52489065916782418,"Not Applicable","Not Applicable",3.8205285714285715,81.3586997951722,1.5563708186639956E-2,1.6375126640774437E-2,1.7213357447162774E-2,1.807879284687235E-2,1.897182384775074E-2,1.989284024947063E-2,2.084223066765066E-2,2.1820382557101111E-2,2.2827682234240088E-2,2.386451489872262E-2,2.4931264654322365E-2,2.6028314529103064E-2,7,7,8,8,9,9,9,10,10,10,10,10]
[1000323796,53,3,7.7142857142857153,-0.5248906591678234,"Not Applicable","Not Applicable",3.7302714285714287,90.495685924941753,1.0066825869171323E-2,1.0584001615520949E-2,1.1117706196044316E-2,1.1668158544192762E-2,1.2235576541308146E-2,1.2820177040009317E-2,1.3422175886665352E-2,1.4041787943005819E-2,1.4679227106915316E-2,1.5334706332455605E-2,1.6008437649156285E-2,1.6700632180611713E-2,5,5,5,5,6,6,6,6,7,7,7,8]
[1000323882,53,4,10.285714285714286,0.52489065916782418,"Not Applicable","Not Applicable",3.8205285714285715,81.3586997951722,1.4778708584450748E-2,1.5563708186639956E-2,1.6375126640774437E-2,1.7213357447162774E-2,1.807879284687235E-2,1.897182384775074E-2,1.989284024947063E-2,2.084223066765066E-2,2.1820382557101111E-2,2.2827682234240088E-2,2.386451489872262E-2,2.4931264654322365E-2,7,7,7,8,8,9,9,9,10,10,10,10]
[1000323941,53,4,10.285714285714286,0.52489065916782418,"Not Applicable","Not Applicable",3.8205285714285715,81.3586997951722,1.4778708584450748E-2,1.5563708186639956E-2,1.6375126640774437E-2,1.7213357447162774E-2,1.807879284687235E-2,1.897182384775074E-2,1.989284024947063E-2,2.084223066765066E-2,2.1820382557101111E-2,2.2827682234240088E-2,2.386451489872262E-2,2.4931264654322365E-2,7,7,7,8,8,9,9,9,10,10,10,10]
[1000323998,52,3,7.7142857142857153,-0.5248906591678234,"Not Applicable","Not Applicable",3.7302714285714287,90.495685924941753,9.5659589470802574E-3,1.0066825869171323E-2,1.0584001615520949E-2,1.1117706196044316E-2,1.1668158544192762E-2,1.2235576541308146E-2,1.2820177040009317E-2,1.3422175886665352E-2,1.4041787943005819E-2,1.4679227106915316E-2,1.5334706332455605E-2,1.6008437649156285E-2,5,5,5,5,5,6,6,6,6,7,7,7]
[1000328026,53,3,7.7142857142857153,-0.5248906591678234,"Not Applicable","Not Applicable",3.7302714285714287,90.495685924941753,1.0066825869171323E-2,1.0584001615520949E-2,1.1117706196044316E-2,1.1668158544192762E-2,1.2235576541308146E-2,1.2820177040009317E-2,1.3422175886665352E-2,1.4041787943005819E-2,1.4679227106915316E-2,1.5334706332455605E-2,1.6008437649156285E-2,1.6700632180611713E-2,5,5,5,5,6,6,6,6,7,7,7,8]
[1000328057,52,5,12.857142857142858,1.5746719775034717,"Not Applicable","Not Applicable",3.9107857142857139,73.504466067305898,2.0535653410273788E-2,2.1683928412380312E-2,2.2873562569482885E-2,2.4105252892835553E-2,2.5379695263869503E-2,2.6697584456155762E-2,2.8059614156563172E-2,2.9466476985654733E-2,3.0918864517361939E-2,3.2417467297974317E-2,3.3962974864479044E-2,3.5556075762282695E-2,9,10,10,10,10,10,10,10,10,10,10,10]
[1000328085,52,4,10.285714285714286,0.52489065916782418,"Not Applicable","Not Applicable",3.8205285714285715,81.3586997951722,1.4019733047602333E-2,1.4778708584450748E-2,1.5563708186639956E-2,1.6375126640774437E-2,1.7213357447162774E-2,1.807879284687235E-2,1.897182384775074E-2,1.989284024947063E-2,2.084223066765066E-2,2.1820382557101111E-2,2.2827682234240088E-2,2.386451489872262E-2,6,7,7,7,8,8,9,9,9,10,10,10]
[1000328116,52,3,7.7142857142857153,-0.5248906591678234,"Not Applicable","Not Applicable",3.7302714285714287,90.495685924941753,9.5659589470802574E-3,1.0066825869171323E-2,1.0584001615520949E-2,1.1117706196044316E-2,1.1668158544192762E-2,1.2235576541308146E-2,1.2820177040009317E-2,1.3422175886665352E-2,1.4041787943005819E-2,1.4679227106915316E-2,1.5334706332455605E-2,1.6008437649156285E-2,5,5,5,5,5,6,6,6,6,7,7,7]
[1000328175,54,5,12.857142857142858,1.5746719775034717,"Not Applicable","Not Applicable",3.9107857142857139,73.504466067305898,2.2873562569482885E-2,2.4105252892835553E-2,2.5379695263869503E-2,2.6697584456155762E-2,2.8059614156563172E-2,2.9466476985654733E-2,3.0918864517361939E-2,3.2417467297974317E-2,3.3962974864479044E-2,3.5556075762282695E-2,3.7197457562345652E-2,3.8887806877757371E-2,10,10,10,10,10,10,10,10,10,10,10,10]
[1000328208,51,4,10.285714285714286,0.52489065916782418,"Not Applicable","Not Applicable",3.8205285714285715,81.3586997951722,1.3286385475045577E-2,1.4019733047602333E-2,1.4778708584450748E-2,1.5563708186639956E-2,1.6375126640774437E-2,1.7213357447162774E-2,1.807879284687235E-2,1.897182384775074E-2,1.989284024947063E-2,2.084223066765066E-2,2.1820382557101111E-2,2.2827682234240088E-2,6,6,7,7,7,8,8,9,9,9,10,10]
[1000328413,51,4,10.285714285714286,0.52489065916782418,"Not Applicable","Not Applicable",3.8205285714285715,81.3586997951722,1.3286385475045577E-2,1.4019733047602333E-2,1.4778708584450748E-2,1.5563708186639956E-2,1.6375126640774437E-2,1.7213357447162774E-2,1.807879284687235E-2,1.897182384775074E-2,1.989284024947063E-2,2.084223066765066E-2,2.1820382557101111E-2,2.2827682234240088E-2,6,6,7,7,7,8,8,9,9,9,10,10]
[1000328506,51,5,12.857142857142858,1.5746719775034717,"Not Applicable","Not Applicable",3.9107857142857139,73.504466067305898,1.9428039399273088E-2,2.0535653410273788E-2,2.1683928412380312E-2,2.2873562569482885E-2,2.4105252892835553E-2,2.5379695263869503E-2,2.6697584456155762E-2,2.8059614156563172E-2,2.9466476985654733E-2,3.0918864517361939E-2,3.2417467297974317E-2,3.3962974864479044E-2,9,9,10,10,10,10,10,10,10,10,10,10]
[1000328533,51,5,12.857142857142858,1.5746719775034717,"Not Applicable","Not Applicable",3.9107857142857139,73.504466067305898,1.9428039399273088E-2,2.0535653410273788E-2,2.1683928412380312E-2,2.2873562569482885E-2,2.4105252892835553E-2,2.5379695263869503E-2,2.6697584456155762E-2,2.8059614156563172E-2,2.9466476985654733E-2,3.0918864517361939E-2,3.2417467297974317E-2,3.3962974864479044E-2,9,9,10,10,10,10,10,10,10,10,10,10]
[1000328564,51,5,12.857142857142858,1.5746719775034717,"Not Applicable","Not Applicable",3.9107857142857139,73.504466067305898,1.9428039399273088E-2,2.0535653410273788E-2,2.1683928412380312E-2,2.2873562569482885E-2,2.4105252892835553E-2,2.5379695263869503E-2,2.6697584456155762E-2,2.8059614156563172E-2,2.9466476985654733E-2,3.0918864517361939E-2,3.2417467297974317E-2,3.3962974864479044E-2,9,9,10,10,10,10,10,10,10,10,10,10]
[1000328590,50,6,15.428571428571431,2.4494897427831779,"Not Applicable","Not Applicable",3.9859999999999998,67.779304104150881,2.5152941302056715E-2,2.6654480077496132E-2,2.8214475296682407E-2,2.9834035236418879E-2,3.1514267880760095E-2,3.3256280926509466E-2,3.5061181788515763E-2,3.6930077604778885E-2,3.8864075241375327E-2,4.0864281297212438E-2,4.2931802108620576E-2,4.5067743753790905E-2,10,10,10,10,10,10,10,10,10,10,10,10]
[1000328647,50,5,12.857142857142858,1.5746719775034717,"Not Applicable","Not Applicable",3.9107857142857139,73.504466067305898,1.8360387039138018E-2,1.9428039399273088E-2,2.0535653410273788E-2,2.1683928412380312E-2,2.2873562569482885E-2,2.4105252892835553E-2,2.5379695263869503E-2,2.6697584456155762E-2,2.8059614156563172E-2,2.9466476985654733E-2,3.0918864517361939E-2,3.2417467297974317E-2,8,9,9,10,10,10,10,10,10,10,10,10]
[1000328676,50,3,7.7142857142857153,-0.5248906591678234,"Not Applicable","Not Applicable",3.7302714285714287,90.495685924941753,8.6122660003184921E-3,9.0811797374878503E-3,9.5659589470802574E-3,1.0066825869171323E-2,1.0584001615520949E-2,1.1117706196044316E-2,1.1668158544192762E-2,1.2235576541308146E-2,1.2820177040009317E-2,1.3422175886665352E-2,1.4041787943005819E-2,1.4679227106915316E-2,4,4,5,5,5,5,5,6,6,6,6,7]
[1000328766,50,5,12.857142857142858,1.5746719775034717,"Not Applicable","Not Applicable",3.9107857142857139,73.504466067305898,1.8360387039138018E-2,1.9428039399273088E-2,2.0535653410273788E-2,2.1683928412380312E-2,2.2873562569482885E-2,2.4105252892835553E-2,2.5379695263869503E-2,2.6697584456155762E-2,2.8059614156563172E-2,2.9466476985654733E-2,3.0918864517361939E-2,3.2417467297974317E-2,8,9,9,10,10,10,10,10,10,10,10,10]
[1000328796,50,6,15.428571428571431,2.4494897427831779,"Not Applicable","Not Applicable",3.9859999999999998,67.779304104150881,2.5152941302056715E-2,2.6654480077496132E-2,2.8214475296682407E-2,2.9834035236418879E-2,3.1514267880760095E-2,3.3256280926509466E-2,3.5061181788515763E-2,3.6930077604778885E-2,3.8864075241375327E-2,4.0864281297212438E-2,4.2931802108620576E-2,4.5067743753790905E-2,10,10,10,10,10,10,10,10,10,10,10,10]
[1000328825,50,5,12.857142857142858,1.5746719775034717,"Not Applicable","Not Applicable",3.9107857142857139,73.504466067305898,1.8360387039138018E-2,1.9428039399273088E-2,2.0535653410273788E-2,2.1683928412380312E-2,2.2873562569482885E-2,2.4105252892835553E-2,2.5379695263869503E-2,2.6697584456155762E-2,2.8059614156563172E-2,2.9466476985654733E-2,3.0918864517361939E-2,3.2417467297974317E-2,8,9,9,10,10,10,10,10,10,10,10,10]
[1000328852,35,3,7.7142857142857153,-0.5248906591678234,"Not Applicable","Not Applicable",3.7302714285714287,90.495685924941753,3.3274812967358422E-3,3.585945893659289E-3,3.8567846337791045E-3,4.1402408740492556E-3,4.4365562496864993E-3,4.7459707300582417E-3,5.0687226714077492E-3,5.4050488666682849E-3,5.7551845925922921E-3,6.1193636543992605E-3,6.4978184281262443E-3,6.8907799008476036E-3,2,2,2,2,2,3,3,3,3,3,3,3]
[1000328910,49,4,10.285714285714286,0.52489065916782418,"Not Applicable","Not Applicable",3.8205285714285715,81.3586997951722,1.1894983069304249E-2,1.2578268421978041E-2,1.3286385475045577E-2,1.4019733047602333E-2,1.4778708584450748E-2,1.5563708186639956E-2,1.6375126640774437E-2,1.7213357447162774E-2,1.807879284687235E-2,1.897182384775074E-2,1.989284024947063E-2,2.084223066765066E-2,6,6,6,6,7,7,7,8,8,9,9,9]
[1000332025,49,4,10.285714285714286,0.52489065916782418,"Not Applicable","Not Applicable",3.8205285714285715,81.3586997951722,1.1894983069304249E-2,1.2578268421978041E-2,1.3286385475045577E-2,1.4019733047602333E-2,1.4778708584450748E-2,1.5563708186639956E-2,1.6375126640774437E-2,1.7213357447162774E-2,1.807879284687235E-2,1.897182384775074E-2,1.989284024947063E-2,2.084223066765066E-2,6,6,6,6,7,7,7,8,8,9,9,9]
[1000332304,49,3,7.7142857142857153,-0.5248906591678234,"Not Applicable","Not Applicable",3.7302714285714287,90.495685924941753,8.1589943395509699E-3,8.6122660003184921E-3,9.0811797374878503E-3,9.5659589470802574E-3,1.0066825869171323E-2,1.0584001615520949E-2,1.1117706196044316E-2,1.1668158544192762E-2,1.2235576541308146E-2,1.2820177040009317E-2,1.3422175886665352E-2,1.4041787943005819E-2,4,4,4,5,5,5,5,5,6,6,6,6]
[1000332390,49,5,12.857142857142858,1.5746719775034717,"Not Applicable","Not Applicable",3.9107857142857139,73.504466067305898,1.7331995788610808E-2,1.8360387039138018E-2,1.9428039399273088E-2,2.0535653410273788E-2,2.1683928412380312E-2,2.2873562569482885E-2,2.4105252892835553E-2,2.5379695263869503E-2,2.6697584456155762E-2,2.8059614156563172E-2,2.9466476985654733E-2,3.0918864517361939E-2,8,8,9,9,10,10,10,10,10,10,10,10]
[1000332419,47,3,7.7142857142857153,-0.5248906591678234,"Not Applicable","Not Applicable",3.7302714285714287,90.495685924941753,7.2984777089150181E-3,7.7211401743552781E-3,8.1589943395509699E-3,8.6122660003184921E-3,9.0811797374878503E-3,9.5659589470802574E-3,1.0066825869171323E-2,1.0584001615520949E-2,1.1117706196044316E-2,1.1668158544192762E-2,1.2235576541308146E-2,1.2820177040009317E-2,4,4,4,4,4,5,5,5,5,5,6,6]
[1000332450,48,4,10.285714285714286,0.52489065916782418,"Not Applicable","Not Applicable",3.8205285714285715,81.3586997951722,1.1236129191788151E-2,1.1894983069304249E-2,1.2578268421978041E-2,1.3286385475045577E-2,1.4019733047602333E-2,1.4778708584450748E-2,1.5563708186639956E-2,1.6375126640774437E-2,1.7213357447162774E-2,1.807879284687235E-2,1.897182384775074E-2,1.989284024947063E-2,5,6,6,6,6,7,7,7,8,8,9,9]
[1000332539,28,3,7.7142857142857153,-0.5248906591678234,"Not Applicable","Not Applicable",3.7302714285714287,90.495685924941753,1.8438723075499394E-3,2.0226900090022917E-3,2.2121246405756847E-3,2.4124335104901656E-3,2.6238716969322626E-3,2.8466921362306987E-3,3.0811457049862911E-3,3.3274812967358422E-3,3.585945893659289E-3,3.8567846337791045E-3,4.1402408740492556E-3,4.4365562496864993E-3,1,1,1,2,2,2,2,2,2,2,2,2]
[1000332568,48,3,7.7142857142857153,-0.5248906591678234,"Not Applicable","Not Applicable",3.7302714285714287,90.495685924941753,7.7211401743552781E-3,8.1589943395509699E-3,8.6122660003184921E-3,9.0811797374878503E-3,9.5659589470802574E-3,1.0066825869171323E-2,1.0584001615520949E-2,1.1117706196044316E-2,1.1668158544192762E-2,1.2235576541308146E-2,1.2820177040009317E-2,1.3422175886665352E-2,4,4,4,4,5,5,5,5,5,6,6,6]
[1000332625,48,8,20.571428571428573,2.4494897427831779,"Not Applicable","Not Applicable",3.9859999999999998,67.779304104150881,2.2320798476970879E-2,2.3708750395101268E-2,2.5152941302056715E-2,2.6654480077496132E-2,2.8214475296682407E-2,2.9834035236418879E-2,3.1514267880760095E-2,3.3256280926509466E-2,3.5061181788515763E-2,3.6930077604778885E-2,3.8864075241375327E-2,4.0864281297212438E-2,10,10,10,10,10,10,10,10,10,10,10,10]
[1000332657,48,5,12.857142857142858,1.5746719775034717,"Not Applicable","Not Applicable",3.9107857142857139,73.504466067305898,1.6342163879736665E-2,1.7331995788610808E-2,1.8360387039138018E-2,1.9428039399273088E-2,2.0535653410273788E-2,2.1683928412380312E-2,2.2873562569482885E-2,2.4105252892835553E-2,2.5379695263869503E-2,2.6697584456155762E-2,2.8059614156563172E-2,2.9466476985654733E-2,7,8,8,9,9,10,10,10,10,10,10,10]
[1000332778,47,4,10.285714285714286,0.52489065916782418,"Not Applicable","Not Applicable",3.8205285714285715,81.3586997951722,1.0601305124814272E-2,1.1236129191788151E-2,1.1894983069304249E-2,1.2578268421978041E-2,1.3286385475045577E-2,1.4019733047602333E-2,1.4778708584450748E-2,1.5563708186639956E-2,1.6375126640774437E-2,1.7213357447162774E-2,1.807879284687235E-2,1.897182384775074E-2,5,5,6,6,6,6,7,7,7,8,8,9]
[1000332841,46,3,7.7142857142857153,-0.5248906591678234,"Not Applicable","Not Applicable",3.7302714285714287,90.495685924941753,6.8907799008476036E-3,7.2984777089150181E-3,7.7211401743552781E-3,8.1589943395509699E-3,8.6122660003184921E-3,9.0811797374878503E-3,9.5659589470802574E-3,1.0066825869171323E-2,1.0584001615520949E-2,1.1117706196044316E-2,1.1668158544192762E-2,1.2235576541308146E-2,3,4,4,4,4,4,5,5,5,5,5,6]
[1000332870,46,3,7.7142857142857153,-0.5248906591678234,"Not Applicable","Not Applicable",3.7302714285714287,90.495685924941753,6.8907799008476036E-3,7.2984777089150181E-3,7.7211401743552781E-3,8.1589943395509699E-3,8.6122660003184921E-3,9.0811797374878503E-3,9.5659589470802574E-3,1.0066825869171323E-2,1.0584001615520949E-2,1.1117706196044316E-2,1.1668158544192762E-2,1.2235576541308146E-2,3,4,4,4,4,4,5,5,5,5,5,6]
[1000332902,46,3,7.7142857142857153,-0.5248906591678234,"Not Applicable","Not Applicable",3.7302714285714287,90.495685924941753,6.8907799008476036E-3,7.2984777089150181E-3,7.7211401743552781E-3,8.1589943395509699E-3,8.6122660003184921E-3,9.0811797374878503E-3,9.5659589470802574E-3,1.0066825869171323E-2,1.0584001615520949E-2,1.1117706196044316E-2,1.1668158544192762E-2,1.2235576541308146E-2,3,4,4,4,4,4,5,5,5,5,5,6]
[1000332930,47,3,7.7142857142857153,-0.5248906591678234,"Not Applicable","Not Applicable",3.7302714285714287,90.495685924941753,7.2984777089150181E-3,7.7211401743552781E-3,8.1589943395509699E-3,8.6122660003184921E-3,9.0811797374878503E-3,9.5659589470802574E-3,1.0066825869171323E-2,1.0584001615520949E-2,1.1117706196044316E-2,1.1668158544192762E-2,1.2235576541308146E-2,1.2820177040009317E-2,4,4,4,4,4,5,5,5,5,5,6,6]
[1000336019,46,3,7.7142857142857153,-0.5248906591678234,"Not Applicable","Not Applicable",3.7302714285714287,90.495685924941753,6.8907799008476036E-3,7.2984777089150181E-3,7.7211401743552781E-3,8.1589943395509699E-3,8.6122660003184921E-3,9.0811797374878503E-3,9.5659589470802574E-3,1.0066825869171323E-2,1.0584001615520949E-2,1.1117706196044316E-2,1.1668158544192762E-2,1.2235576541308146E-2,3,4,4,4,4,4,5,5,5,5,5,6]
[1000336048,34,3,7.7142857142857153,-0.5248906591678234,"Not Applicable","Not Applicable",3.7302714285714287,90.495685924941753,3.0811457049862911E-3,3.3274812967358422E-3,3.585945893659289E-3,3.8567846337791045E-3,4.1402408740492556E-3,4.4365562496864993E-3,4.7459707300582417E-3,5.0687226714077492E-3,5.4050488666682849E-3,5.7551845925922921E-3,6.1193636543992605E-3,6.4978184281262443E-3,2,2,2,2,2,2,3,3,3,3,3,3]
[1000336078,46,4,10.285714285714286,0.52489065916782418,"Not Applicable","Not Applicable",3.8205285714285715,81.3586997951722,9.9901077296670974E-3,1.0601305124814272E-2,1.1236129191788151E-2,1.1894983069304249E-2,1.2578268421978041E-2,1.3286385475045577E-2,1.4019733047602333E-2,1.4778708584450748E-2,1.5563708186639956E-2,1.6375126640774437E-2,1.7213357447162774E-2,1.807879284687235E-2,5,5,5,6,6,6,6,7,7,7,8,8]
[1000336106,30,3,7.7142857142857153,-0.5248906591678234,"Not Applicable","Not Applicable",3.7302714285714287,90.495685924941753,2.2121246405756847E-3,2.4124335104901656E-3,2.6238716969322626E-3,2.8466921362306987E-3,3.0811457049862911E-3,3.3274812967358422E-3,3.585945893659289E-3,3.8567846337791045E-3,4.1402408740492556E-3,4.4365562496864993E-3,4.7459707300582417E-3,5.0687226714077492E-3,1,2,2,2,2,2,2,2,2,2,3,3]
[1000336136,46,3,7.7142857142857153,-0.5248906591678234,"Not Applicable","Not Applicable",3.7302714285714287,90.495685924941753,6.8907799008476036E-3,7.2984777089150181E-3,7.7211401743552781E-3,8.1589943395509699E-3,8.6122660003184921E-3,9.0811797374878503E-3,9.5659589470802574E-3,1.0066825869171323E-2,1.0584001615520949E-2,1.1117706196044316E-2,1.1668158544192762E-2,1.2235576541308146E-2,3,4,4,4,4,4,5,5,5,5,5,6]
[1000336165,45,5,12.857142857142858,1.5746719775034717,"Not Applicable","Not Applicable",3.9107857142857139,73.504466067305898,1.3596987553130841E-2,1.4475364719978449E-2,1.5390188291110024E-2,1.6342163879736665E-2,1.7331995788610808E-2,1.8360387039138018E-2,1.9428039399273088E-2,2.0535653410273788E-2,2.1683928412380312E-2,2.2873562569482885E-2,2.4105252892835553E-2,2.5379695263869503E-2,6,7,7,7,8,8,9,9,10,10,10,10]
[1000336194,45,4,10.285714285714286,0.52489065916782418,"Not Applicable","Not Applicable",3.8205285714285715,81.3586997951722,9.4021323572303396E-3,9.9901077296670974E-3,1.0601305124814272E-2,1.1236129191788151E-2,1.1894983069304249E-2,1.2578268421978041E-2,1.3286385475045577E-2,1.4019733047602333E-2,1.4778708584450748E-2,1.5563708186639956E-2,1.6375126640774437E-2,1.7213357447162774E-2,4,5,5,5,6,6,6,6,7,7,7,8]
[1000336225,45,5,12.857142857142858,1.5746719775034717,"Not Applicable","Not Applicable",3.9107857142857139,73.504466067305898,1.3596987553130841E-2,1.4475364719978449E-2,1.5390188291110024E-2,1.6342163879736665E-2,1.7331995788610808E-2,1.8360387039138018E-2,1.9428039399273088E-2,2.0535653410273788E-2,2.1683928412380312E-2,2.2873562569482885E-2,2.4105252892835553E-2,2.5379695263869503E-2,6,7,7,7,8,8,9,9,10,10,10,10]
[1000336313,45,3,7.7142857142857153,-0.5248906591678234,"Not Applicable","Not Applicable",3.7302714285714287,90.495685924941753,6.4978184281262443E-3,6.8907799008476036E-3,7.2984777089150181E-3,7.7211401743552781E-3,8.1589943395509699E-3,8.6122660003184921E-3,9.0811797374878503E-3,9.5659589470802574E-3,1.0066825869171323E-2,1.0584001615520949E-2,1.1117706196044316E-2,1.1668158544192762E-2,3,3,4,4,4,4,4,5,5,5,5,5]
[1000336348,46,3,7.7142857142857153,-0.5248906591678234,"Not Applicable","Not Applicable",3.7302714285714287,90.495685924941753,6.8907799008476036E-3,7.2984777089150181E-3,7.7211401743552781E-3,8.1589943395509699E-3,8.6122660003184921E-3,9.0811797374878503E-3,9.5659589470802574E-3,1.0066825869171323E-2,1.0584001615520949E-2,1.1117706196044316E-2,1.1668158544192762E-2,1.2235576541308146E-2,3,4,4,4,4,4,5,5,5,5,5,6]
[1000336383,45,4,10.285714285714286,0.52489065916782418,"Not Applicable","Not Applicable",3.8205285714285715,81.3586997951722,9.4021323572303396E-3,9.9901077296670974E-3,1.0601305124814272E-2,1.1236129191788151E-2,1.1894983069304249E-2,1.2578268421978041E-2,1.3286385475045577E-2,1.4019733047602333E-2,1.4778708584450748E-2,1.5563708186639956E-2,1.6375126640774437E-2,1.7213357447162774E-2,4,5,5,5,6,6,6,6,7,7,7,8]
[1000336450,44,4,10.285714285714286,0.52489065916782418,"Not Applicable","Not Applicable",3.8205285714285715,81.3586997951722,8.8369728099988651E-3,9.4021323572303396E-3,9.9901077296670974E-3,1.0601305124814272E-2,1.1236129191788151E-2,1.1894983069304249E-2,1.2578268421978041E-2,1.3286385475045577E-2,1.4019733047602333E-2,1.4778708584450748E-2,1.5563708186639956E-2,1.6375126640774437E-2,4,4,5,5,5,6,6,6,6,7,7,7]
[1000336477,43,3,7.7142857142857153,-0.5248906591678234,"Not Applicable","Not Applicable",3.7302714285714287,90.495685924941753,5.7551845925922921E-3,6.1193636543992605E-3,6.4978184281262443E-3,6.8907799008476036E-3,7.2984777089150181E-3,7.7211401743552781E-3,8.1589943395509699E-3,8.6122660003184921E-3,9.0811797374878503E-3,9.5659589470802574E-3,1.0066825869171323E-2,1.0584001615520949E-2,3,3,3,3,4,4,4,4,4,5,5,5]
[1000336508,43,3,7.7142857142857153,-0.5248906591678234,"Not Applicable","Not Applicable",3.7302714285714287,90.495685924941753,5.7551845925922921E-3,6.1193636543992605E-3,6.4978184281262443E-3,6.8907799008476036E-3,7.2984777089150181E-3,7.7211401743552781E-3,8.1589943395509699E-3,8.6122660003184921E-3,9.0811797374878503E-3,9.5659589470802574E-3,1.0066825869171323E-2,1.0584001615520949E-2,3,3,3,3,4,4,4,4,4,5,5,5]
[1000336536,43,3,7.7142857142857153,-0.5248906591678234,"Not Applicable","Not Applicable",3.7302714285714287,90.495685924941753,5.7551845925922921E-3,6.1193636543992605E-3,6.4978184281262443E-3,6.8907799008476036E-3,7.2984777089150181E-3,7.7211401743552781E-3,8.1589943395509699E-3,8.6122660003184921E-3,9.0811797374878503E-3,9.5659589470802574E-3,1.0066825869171323E-2,1.0584001615520949E-2,3,3,3,3,4,4,4,4,4,5,5,5]
[1000336594,44,3,7.7142857142857153,-0.5248906591678234,"Not Applicable","Not Applicable",3.7302714285714287,90.495685924941753,6.1193636543992605E-3,6.4978184281262443E-3,6.8907799008476036E-3,7.2984777089150181E-3,7.7211401743552781E-3,8.1589943395509699E-3,8.6122660003184921E-3,9.0811797374878503E-3,9.5659589470802574E-3,1.0066825869171323E-2,1.0584001615520949E-2,1.1117706196044316E-2,3,3,3,4,4,4,4,4,5,5,5,5]
[1000336623,42,3,7.7142857142857153,-0.5248906591678234,"Not Applicable","Not Applicable",3.7302714285714287,90.495685924941753,5.4050488666682849E-3,5.7551845925922921E-3,6.1193636543992605E-3,6.4978184281262443E-3,6.8907799008476036E-3,7.2984777089150181E-3,7.7211401743552781E-3,8.1589943395509699E-3,8.6122660003184921E-3,9.0811797374878503E-3,9.5659589470802574E-3,1.0066825869171323E-2,3,3,3,3,3,4,4,4,4,4,5,5]
[1000336651,45,4,10.285714285714286,0.52489065916782418,"Not Applicable","Not Applicable",3.8205285714285715,81.3586997951722,9.4021323572303396E-3,9.9901077296670974E-3,1.0601305124814272E-2,1.1236129191788151E-2,1.1894983069304249E-2,1.2578268421978041E-2,1.3286385475045577E-2,1.4019733047602333E-2,1.4778708584450748E-2,1.5563708186639956E-2,1.6375126640774437E-2,1.7213357447162774E-2,4,5,5,5,6,6,6,6,7,7,7,8]
[1000336679,44,3,7.7142857142857153,-0.5248906591678234,"Not Applicable","Not Applicable",3.7302714285714287,90.495685924941753,6.1193636543992605E-3,6.4978184281262443E-3,6.8907799008476036E-3,7.2984777089150181E-3,7.7211401743552781E-3,8.1589943395509699E-3,8.6122660003184921E-3,9.0811797374878503E-3,9.5659589470802574E-3,1.0066825869171323E-2,1.0584001615520949E-2,1.1117706196044316E-2,3,3,3,4,4,4,4,4,5,5,5,5]
[1000336708,44,3,7.7142857142857153,-0.5248906591678234,"Not Applicable","Not Applicable",3.7302714285714287,90.495685924941753,6.1193636543992605E-3,6.4978184281262443E-3,6.8907799008476036E-3,7.2984777089150181E-3,7.7211401743552781E-3,8.1589943395509699E-3,8.6122660003184921E-3,9.0811797374878503E-3,9.5659589470802574E-3,1.0066825869171323E-2,1.0584001615520949E-2,1.1117706196044316E-2,3,3,3,4,4,4,4,4,5,5,5,5]
[1000336737,41,3,7.7142857142857153,-0.5248906591678234,"Not Applicable","Not Applicable",3.7302714285714287,90.495685924941753,5.0687226714077492E-3,5.4050488666682849E-3,5.7551845925922921E-3,6.1193636543992605E-3,6.4978184281262443E-3,6.8907799008476036E-3,7.2984777089150181E-3,7.7211401743552781E-3,8.1589943395509699E-3,8.6122660003184921E-3,9.0811797374878503E-3,9.5659589470802574E-3,3,3,3,3,3,3,4,4,4,4,4,5]
[1000336855,39,3,7.7142857142857153,-0.5248906591678234,"Not Applicable","Not Applicable",3.7302714285714287,90.495685924941753,4.4365562496864993E-3,4.7459707300582417E-3,5.0687226714077492E-3,5.4050488666682849E-3,5.7551845925922921E-3,6.1193636543992605E-3,6.4978184281262443E-3,6.8907799008476036E-3,7.2984777089150181E-3,7.7211401743552781E-3,8.1589943395509699E-3,8.6122660003184921E-3,2,3,3,3,3,3,3,3,4,4,4,4]
[1000336884,40,3,7.7142857142857153,-0.5248906591678234,"Not Applicable","Not Applicable",3.7302714285714287,90.495685924941753,4.7459707300582417E-3,5.0687226714077492E-3,5.4050488666682849E-3,5.7551845925922921E-3,6.1193636543992605E-3,6.4978184281262443E-3,6.8907799008476036E-3,7.2984777089150181E-3,7.7211401743552781E-3,8.1589943395509699E-3,8.6122660003184921E-3,9.0811797374878503E-3,3,3,3,3,3,3,3,4,4,4,4,4]
[1000336912,39,4,10.285714285714286,0.52489065916782418,"Not Applicable","Not Applicable",3.8205285714285715,81.3586997951722,6.3390819707381876E-3,6.7963124458148786E-3,7.2743030693499158E-3,7.7734684185012887E-3,8.2942213022864208E-3,8.8369728099988651E-3,9.4021323572303396E-3,9.9901077296670974E-3,1.0601305124814272E-2,1.1236129191788151E-2,1.1894983069304249E-2,1.2578268421978041E-2,3,3,4,4,4,4,4,5,5,5,6,6]
[1000336942,39,4,10.285714285714286,0.52489065916782418,"Not Applicable","Not Applicable",3.8205285714285715,81.3586997951722,6.3390819707381876E-3,6.7963124458148786E-3,7.2743030693499158E-3,7.7734684185012887E-3,8.2942213022864208E-3,8.8369728099988651E-3,9.4021323572303396E-3,9.9901077296670974E-3,1.0601305124814272E-2,1.1236129191788151E-2,1.1894983069304249E-2,1.2578268421978041E-2,3,3,4,4,4,4,4,5,5,5,6,6]
[1000336972,43,4,10.285714285714286,0.52489065916782418,"Not Applicable","Not Applicable",3.8205285714285715,81.3586997951722,8.2942213022864208E-3,8.8369728099988651E-3,9.4021323572303396E-3,9.9901077296670974E-3,1.0601305124814272E-2,1.1236129191788151E-2,1.1894983069304249E-2,1.2578268421978041E-2,1.3286385475045577E-2,1.4019733047602333E-2,1.4778708584450748E-2,1.5563708186639956E-2,4,4,4,5,5,5,6,6,6,6,7,7]
[1000340000,39,3,7.7142857142857153,-0.5248906591678234,"Not Applicable","Not Applicable",3.7302714285714287,90.495685924941753,4.4365562496864993E-3,4.7459707300582417E-3,5.0687226714077492E-3,5.4050488666682849E-3,5.7551845925922921E-3,6.1193636543992605E-3,6.4978184281262443E-3,6.8907799008476036E-3,7.2984777089150181E-3,7.7211401743552781E-3,8.1589943395509699E-3,8.6122660003184921E-3,2,3,3,3,3,3,3,3,4,4,4,4]
[1000340030,39,3,7.7142857142857153,-0.5248906591678234,"Not Applicable","Not Applicable",3.7302714285714287,90.495685924941753,4.4365562496864993E-3,4.7459707300582417E-3,5.0687226714077492E-3,5.4050488666682849E-3,5.7551845925922921E-3,6.1193636543992605E-3,6.4978184281262443E-3,6.8907799008476036E-3,7.2984777089150181E-3,7.7211401743552781E-3,8.1589943395509699E-3,8.6122660003184921E-3,2,3,3,3,3,3,3,3,4,4,4,4]
[1000340058,38,3,7.7142857142857153,-0.5248906591678234,"Not Applicable","Not Applicable",3.7302714285714287,90.495685924941753,4.1402408740492556E-3,4.4365562496864993E-3,4.7459707300582417E-3,5.0687226714077492E-3,5.4050488666682849E-3,5.7551845925922921E-3,6.1193636543992605E-3,6.4978184281262443E-3,6.8907799008476036E-3,7.2984777089150181E-3,7.7211401743552781E-3,8.1589943395509699E-3,2,2,3,3,3,3,3,3,3,4,4,4]
[1000340087,38,3,7.7142857142857153,-0.5248906591678234,"Not Applicable","Not Applicable",3.7302714285714287,90.495685924941753,4.1402408740492556E-3,4.4365562496864993E-3,4.7459707300582417E-3,5.0687226714077492E-3,5.4050488666682849E-3,5.7551845925922921E-3,6.1193636543992605E-3,6.4978184281262443E-3,6.8907799008476036E-3,7.2984777089150181E-3,7.7211401743552781E-3,8.1589943395509699E-3,2,2,3,3,3,3,3,3,3,4,4,4]
[1000340114,38,3,7.7142857142857153,-0.5248906591678234,"Not Applicable","Not Applicable",3.7302714285714287,90.495685924941753,4.1402408740492556E-3,4.4365562496864993E-3,4.7459707300582417E-3,5.0687226714077492E-3,5.4050488666682849E-3,5.7551845925922921E-3,6.1193636543992605E-3,6.4978184281262443E-3,6.8907799008476036E-3,7.2984777089150181E-3,7.7211401743552781E-3,8.1589943395509699E-3,2,2,3,3,3,3,3,3,3,4,4,4]
[1000340144,38,3,7.7142857142857153,-0.5248906591678234,"Not Applicable","Not Applicable",3.7302714285714287,90.495685924941753,4.1402408740492556E-3,4.4365562496864993E-3,4.7459707300582417E-3,5.0687226714077492E-3,5.4050488666682849E-3,5.7551845925922921E-3,6.1193636543992605E-3,6.4978184281262443E-3,6.8907799008476036E-3,7.2984777089150181E-3,7.7211401743552781E-3,8.1589943395509699E-3,2,2,3,3,3,3,3,3,3,4,4,4]
[1000340385,49,5,12.857142857142858,1.5746719775034717,"Not Applicable","Not Applicable",3.9107857142857139,73.504466067305898,1.7331995788610808E-2,1.8360387039138018E-2,1.9428039399273088E-2,2.0535653410273788E-2,2.1683928412380312E-2,2.2873562569482885E-2,2.4105252892835553E-2,2.5379695263869503E-2,2.6697584456155762E-2,2.8059614156563172E-2,2.9466476985654733E-2,3.0918864517361939E-2,8,8,9,9,10,10,10,10,10,10,10,10]
[1000340415,49,6,15.428571428571431,2.4494897427831779,"Not Applicable","Not Applicable",3.9859999999999998,67.779304104150881,2.3708750395101268E-2,2.5152941302056715E-2,2.6654480077496132E-2,2.8214475296682407E-2,2.9834035236418879E-2,3.1514267880760095E-2,3.3256280926509466E-2,3.5061181788515763E-2,3.6930077604778885E-2,3.8864075241375327E-2,4.0864281297212438E-2,4.2931802108620576E-2,10,10,10,10,10,10,10,10,10,10,10,10]
[1000340445,58,6,15.428571428571431,2.4494897427831779,"Not Applicable","Not Applicable",3.9859999999999998,67.779304104150881,3.8864075241375327E-2,4.0864281297212438E-2,4.2931802108620576E-2,4.5067743753790905E-2,4.7273212057066728E-2,4.9549312593095363E-2,5.1897150690847348E-2,5.431783143750904E-2,5.6812459682254721E-2,5.9382140039903393E-2,6.2027976894465854E-2,6.4751074402586581E-2,10,10,10,10,10,10,10,10,10,10,10,10]
[1000340477,53,5,12.857142857142858,1.5746719775034717,"Not Applicable","Not Applicable",3.9107857142857139,73.504466067305898,2.1683928412380312E-2,2.2873562569482885E-2,2.4105252892835553E-2,2.5379695263869503E-2,2.6697584456155762E-2,2.8059614156563172E-2,2.9466476985654733E-2,3.0918864517361939E-2,3.2417467297974317E-2,3.3962974864479044E-2,3.5556075762282695E-2,3.7197457562345652E-2,10,10,10,10,10,10,10,10,10,10,10,10]
[1000340534,54,5,12.857142857142858,1.5746719775034717,"Not Applicable","Not Applicable",3.9107857142857139,73.504466067305898,2.2873562569482885E-2,2.4105252892835553E-2,2.5379695263869503E-2,2.6697584456155762E-2,2.8059614156563172E-2,2.9466476985654733E-2,3.0918864517361939E-2,3.2417467297974317E-2,3.3962974864479044E-2,3.5556075762282695E-2,3.7197457562345652E-2,3.8887806877757371E-2,10,10,10,10,10,10,10,10,10,10,10,10]
[1000340565,54,3,7.7142857142857153,-0.5248906591678234,"Not Applicable","Not Applicable",3.7302714285714287,90.495685924941753,1.0584001615520949E-2,1.1117706196044316E-2,1.1668158544192762E-2,1.2235576541308146E-2,1.2820177040009317E-2,1.3422175886665352E-2,1.4041787943005819E-2,1.4679227106915316E-2,1.5334706332455605E-2,1.6008437649156285E-2,1.6700632180611713E-2,1.7411500162419602E-2,5,5,5,6,6,6,6,7,7,7,8,8]
[1000340593,54,3,7.7142857142857153,-0.5248906591678234,"Not Applicable","Not Applicable",3.7302714285714287,90.495685924941753,1.0584001615520949E-2,1.1117706196044316E-2,1.1668158544192762E-2,1.2235576541308146E-2,1.2820177040009317E-2,1.3422175886665352E-2,1.4041787943005819E-2,1.4679227106915316E-2,1.5334706332455605E-2,1.6008437649156285E-2,1.6700632180611713E-2,1.7411500162419602E-2,5,5,5,6,6,6,6,7,7,7,8,8]
[1000340623,48,5,12.857142857142858,1.5746719775034717,"Not Applicable","Not Applicable",3.9107857142857139,73.504466067305898,1.6342163879736665E-2,1.7331995788610808E-2,1.8360387039138018E-2,1.9428039399273088E-2,2.0535653410273788E-2,2.1683928412380312E-2,2.2873562569482885E-2,2.4105252892835553E-2,2.5379695263869503E-2,2.6697584456155762E-2,2.8059614156563172E-2,2.9466476985654733E-2,7,8,8,9,9,10,10,10,10,10,10,10]
[1000340657,46,4,10.285714285714286,0.52489065916782418,"Not Applicable","Not Applicable",3.8205285714285715,81.3586997951722,9.9901077296670974E-3,1.0601305124814272E-2,1.1236129191788151E-2,1.1894983069304249E-2,1.2578268421978041E-2,1.3286385475045577E-2,1.4019733047602333E-2,1.4778708584450748E-2,1.5563708186639956E-2,1.6375126640774437E-2,1.7213357447162774E-2,1.807879284687235E-2,5,5,5,6,6,6,6,7,7,7,8,8]
[1000340689,48,6,15.428571428571431,2.4494897427831779,"Not Applicable","Not Applicable",3.9859999999999998,67.779304104150881,2.2320798476970879E-2,2.3708750395101268E-2,2.5152941302056715E-2,2.6654480077496132E-2,2.8214475296682407E-2,2.9834035236418879E-2,3.1514267880760095E-2,3.3256280926509466E-2,3.5061181788515763E-2,3.6930077604778885E-2,3.8864075241375327E-2,4.0864281297212438E-2,10,10,10,10,10,10,10,10,10,10,10,10]
[1000340819,37,3,7.7142857142857153,-0.5248906591678234,"Not Applicable","Not Applicable",3.7302714285714287,90.495685924941753,3.8567846337791045E-3,4.1402408740492556E-3,4.4365562496864993E-3,4.7459707300582417E-3,5.0687226714077492E-3,5.4050488666682849E-3,5.7551845925922921E-3,6.1193636543992605E-3,6.4978184281262443E-3,6.8907799008476036E-3,7.2984777089150181E-3,7.7211401743552781E-3,2,2,2,3,3,3,3,3,3,3,4,4]
[1000340854,37,3,7.7142857142857153,-0.5248906591678234,"Not Applicable","Not Applicable",3.7302714285714287,90.495685924941753,3.8567846337791045E-3,4.1402408740492556E-3,4.4365562496864993E-3,4.7459707300582417E-3,5.0687226714077492E-3,5.4050488666682849E-3,5.7551845925922921E-3,6.1193636543992605E-3,6.4978184281262443E-3,6.8907799008476036E-3,7.2984777089150181E-3,7.7211401743552781E-3,2,2,2,3,3,3,3,3,3,3,4,4]
[1000340887,37,3,7.7142857142857153,-0.5248906591678234,"Not Applicable","Not Applicable",3.7302714285714287,90.495685924941753,3.8567846337791045E-3,4.1402408740492556E-3,4.4365562496864993E-3,4.7459707300582417E-3,5.0687226714077492E-3,5.4050488666682849E-3,5.7551845925922921E-3,6.1193636543992605E-3,6.4978184281262443E-3,6.8907799008476036E-3,7.2984777089150181E-3,7.7211401743552781E-3,2,2,2,3,3,3,3,3,3,3,4,4]
[1000340972,37,3,7.7142857142857153,-0.5248906591678234,"Not Applicable","Not Applicable",3.7302714285714287,90.495685924941753,3.8567846337791045E-3,4.1402408740492556E-3,4.4365562496864993E-3,4.7459707300582417E-3,5.0687226714077492E-3,5.4050488666682849E-3,5.7551845925922921E-3,6.1193636543992605E-3,6.4978184281262443E-3,6.8907799008476036E-3,7.2984777089150181E-3,7.7211401743552781E-3,2,2,2,3,3,3,3,3,3,3,4,4]
[1000344030,35,3,7.7142857142857153,-0.5248906591678234,"Not Applicable","Not Applicable",3.7302714285714287,90.495685924941753,3.3274812967358422E-3,3.585945893659289E-3,3.8567846337791045E-3,4.1402408740492556E-3,4.4365562496864993E-3,4.7459707300582417E-3,5.0687226714077492E-3,5.4050488666682849E-3,5.7551845925922921E-3,6.1193636543992605E-3,6.4978184281262443E-3,6.8907799008476036E-3,2,2,2,2,2,3,3,3,3,3,3,3]
[1000344072,36,4,10.285714285714286,0.52489065916782418,"Not Applicable","Not Applicable",3.8205285714285715,81.3586997951722,5.0877780518860608E-3,5.4852340078529122E-3,5.9021952478237067E-3,6.3390819707381876E-3,6.7963124458148786E-3,7.2743030693499158E-3,7.7734684185012887E-3,8.2942213022864208E-3,8.8369728099988651E-3,9.4021323572303396E-3,9.9901077296670974E-3,1.0601305124814272E-2,3,3,3,3,3,4,4,4,4,4,5,5]
[1000344130,34,5,12.857142857142858,1.5746719775034717,"Not Applicable","Not Applicable",3.9107857142857139,73.504466067305898,6.1370853418792459E-3,6.6615308511372611E-3,7.2145647040015807E-3,7.7969092950980617E-3,8.40928527886344E-3,9.052411619390589E-3,9.7270056376048877E-3,1.0433783055977672E-2,1.1173458040962325E-2,1.1946743243320439E-2,1.2754349836489721E-2,1.3596987553130841E-2,3,3,4,4,4,4,5,5,5,6,6,6]
[1000344161,35,3,7.7142857142857153,-0.5248906591678234,"Not Applicable","Not Applicable",3.7302714285714287,90.495685924941753,3.3274812967358422E-3,3.585945893659289E-3,3.8567846337791045E-3,4.1402408740492556E-3,4.4365562496864993E-3,4.7459707300582417E-3,5.0687226714077492E-3,5.4050488666682849E-3,5.7551845925922921E-3,6.1193636543992605E-3,6.4978184281262443E-3,6.8907799008476036E-3,2,2,2,2,2,3,3,3,3,3,3,3]
[1000344307,31,3,7.7142857142857153,-0.5248906591678234,"Not Applicable","Not Applicable",3.7302714285714287,90.495685924941753,2.4124335104901656E-3,2.6238716969322626E-3,2.8466921362306987E-3,3.0811457049862911E-3,3.3274812967358422E-3,3.585945893659289E-3,3.8567846337791045E-3,4.1402408740492556E-3,4.4365562496864993E-3,4.7459707300582417E-3,5.0687226714077492E-3,5.4050488666682849E-3,2,2,2,2,2,2,2,2,2,3,3,3]
[1000344336,31,4,10.285714285714286,0.52489065916782418,"Not Applicable","Not Applicable",3.8205285714285715,81.3586997951722,3.3782276105491196E-3,3.6845320833644645E-3,4.0082096662384997E-3,4.3496911836512532E-3,4.7094051911957821E-3,5.0877780518860608E-3,5.4852340078529122E-3,5.9021952478237067E-3,6.3390819707381876E-3,6.7963124458148786E-3,7.2743030693499158E-3,7.7734684185012887E-3,2,2,2,2,2,3,3,3,3,3,4,4]
[1000344368,58,5,12.857142857142858,1.5746719775034717,"Not Applicable","Not Applicable",3.9107857142857139,73.504466067305898,2.8059614156563172E-2,2.9466476985654733E-2,3.0918864517361939E-2,3.2417467297974317E-2,3.3962974864479044E-2,3.5556075762282695E-2,3.7197457562345652E-2,3.8887806877757371E-2,4.0627809379779202E-2,4.241814981337954E-2,4.4259512012284778E-2,4.6152578913568033E-2,10,10,10,10,10,10,10,10,10,10,10,10]
[1000344393,58,5,12.857142857142858,1.5746719775034717,"Not Applicable","Not Applicable",3.9107857142857139,73.504466067305898,2.8059614156563172E-2,2.9466476985654733E-2,3.0918864517361939E-2,3.2417467297974317E-2,3.3962974864479044E-2,3.5556075762282695E-2,3.7197457562345652E-2,3.8887806877757371E-2,4.0627809379779202E-2,4.241814981337954E-2,4.4259512012284778E-2,4.6152578913568033E-2,10,10,10,10,10,10,10,10,10,10,10,10]
[1000344489,26,3,7.7142857142857153,-0.5248906591678234,"Not Applicable","Not Applicable",3.7302714285714287,90.495685924941753,1.5170467351845634E-3,1.6754119030806872E-3,1.8438723075499394E-3,2.0226900090022917E-3,2.2121246405756847E-3,2.4124335104901656E-3,2.6238716969322626E-3,2.8466921362306987E-3,3.0811457049862911E-3,3.3274812967358422E-3,3.585945893659289E-3,3.8567846337791045E-3,1,1,1,1,1,2,2,2,2,2,2,2]
[1000344516,25,3,7.7142857142857153,-0.5248906591678234,"Not Applicable","Not Applicable",3.7302714285714287,90.495685924941753,1.3685122054777532E-3,1.5170467351845634E-3,1.6754119030806872E-3,1.8438723075499394E-3,2.0226900090022917E-3,2.2121246405756847E-3,2.4124335104901656E-3,2.6238716969322626E-3,2.8466921362306987E-3,3.0811457049862911E-3,3.3274812967358422E-3,3.585945893659289E-3,1,1,1,1,1,1,2,2,2,2,2,2]
[1000344547,24,4,10.285714285714286,0.52489065916782418,"Not Applicable","Not Applicable",3.8205285714285715,81.3586997951722,1.6838372957620371E-3,1.8808022893689847E-3,2.0920534777316233E-3,2.3180402023199589E-3,2.5592088261543154E-3,2.8160028589812912E-3,3.0888630730595331E-3,3.3782276105491196E-3,3.6845320833644645E-3,4.0082096662384997E-3,4.3496911836512532E-3,4.7094051911957821E-3,1,1,1,1,2,2,2,2,2,2,2,2]
[1000344577,26,4,10.285714285714286,0.52489065916782418,"Not Applicable","Not Applicable",3.8205285714285715,81.3586997951722,2.0920534777316233E-3,2.3180402023199589E-3,2.5592088261543154E-3,2.8160028589812912E-3,3.0888630730595331E-3,3.3782276105491196E-3,3.6845320833644645E-3,4.0082096662384997E-3,4.3496911836512532E-3,4.7094051911957821E-3,5.0877780518860608E-3,5.4852340078529122E-3,1,1,2,2,2,2,2,2,2,2,3,3]
[1000344603,26,3,7.7142857142857153,-0.5248906591678234,"Not Applicable","Not Applicable",3.7302714285714287,90.495685924941753,1.5170467351845634E-3,1.6754119030806872E-3,1.8438723075499394E-3,2.0226900090022917E-3,2.2121246405756847E-3,2.4124335104901656E-3,2.6238716969322626E-3,2.8466921362306987E-3,3.0811457049862911E-3,3.3274812967358422E-3,3.585945893659289E-3,3.8567846337791045E-3,1,1,1,1,1,2,2,2,2,2,2,2]
[1000344840,25,3,7.7142857142857153,-0.5248906591678234,"Not Applicable","Not Applicable",3.7302714285714287,90.495685924941753,1.3685122054777532E-3,1.5170467351845634E-3,1.6754119030806872E-3,1.8438723075499394E-3,2.0226900090022917E-3,2.2121246405756847E-3,2.4124335104901656E-3,2.6238716969322626E-3,2.8466921362306987E-3,3.0811457049862911E-3,3.3274812967358422E-3,3.585945893659289E-3,1,1,1,1,1,1,2,2,2,2,2,2]
[1000344872,24,3,7.7142857142857153,-0.5248906591678234,"Not Applicable","Not Applicable",3.7302714285714287,90.495685924941753,1.2295410575353508E-3,1.3685122054777532E-3,1.5170467351845634E-3,1.6754119030806872E-3,1.8438723075499394E-3,2.0226900090022917E-3,2.2121246405756847E-3,2.4124335104901656E-3,2.6238716969322626E-3,2.8466921362306987E-3,3.0811457049862911E-3,3.3274812967358422E-3,1,1,1,1,1,1,1,2,2,2,2,2]
[1000344903,24,4,10.285714285714286,0.52489065916782418,"Not Applicable","Not Applicable",3.8205285714285715,81.3586997951722,1.6838372957620371E-3,1.8808022893689847E-3,2.0920534777316233E-3,2.3180402023199589E-3,2.5592088261543154E-3,2.8160028589812912E-3,3.0888630730595331E-3,3.3782276105491196E-3,3.6845320833644645E-3,4.0082096662384997E-3,4.3496911836512532E-3,4.7094051911957821E-3,1,1,1,1,2,2,2,2,2,2,2,2]
[1000344995,56,3,7.7142857142857153,-0.5248906591678234,"Not Applicable","Not Applicable",3.7302714285714287,90.495685924941753,1.1668158544192762E-2,1.2235576541308146E-2,1.2820177040009317E-2,1.3422175886665352E-2,1.4041787943005819E-2,1.4679227106915316E-2,1.5334706332455605E-2,1.6008437649156285E-2,1.6700632180611713E-2,1.7411500162419602E-2,1.814125095949445E-2,1.8890093082786507E-2,5,6,6,6,6,7,7,7,8,8,8,8]
[1000349025,21,3,7.7142857142857153,-0.5248906591678234,"Not Applicable","Not Applicable",3.7302714285714287,90.495685924941753,8.6729264120025411E-4,9.7920579538369025E-4,1.0998632462725082E-3,1.2295410575353508E-3,1.3685122054777532E-3,1.5170467351845634E-3,1.6754119030806872E-3,1.8438723075499394E-3,2.0226900090022917E-3,2.2121246405756847E-3,2.4124335104901656E-3,2.6238716969322626E-3,1,1,1,1,1,1,1,1,1,1,2,2]
[1000349053,20,3,7.7142857142857153,-0.5248906591678234,"Not Applicable","Not Applicable",3.7302714285714287,90.495685924941753,7.6384446101957697E-4,8.6729264120025411E-4,9.7920579538369025E-4,1.0998632462725082E-3,1.2295410575353508E-3,1.3685122054777532E-3,1.5170467351845634E-3,1.6754119030806872E-3,1.8438723075499394E-3,2.0226900090022917E-3,2.2121246405756847E-3,2.4124335104901656E-3,1,1,1,1,1,1,1,1,1,1,1,2]
[1000349084,20,3,7.7142857142857153,-0.5248906591678234,"Not Applicable","Not Applicable",3.7302714285714287,90.495685924941753,7.6384446101957697E-4,8.6729264120025411E-4,9.7920579538369025E-4,1.0998632462725082E-3,1.2295410575353508E-3,1.3685122054777532E-3,1.5170467351845634E-3,1.6754119030806872E-3,1.8438723075499394E-3,2.0226900090022917E-3,2.2121246405756847E-3,2.4124335104901656E-3,1,1,1,1,1,1,1,1,1,1,1,2]
[1000349112,19,3,7.7142857142857153,-0.5248906591678234,"Not Applicable","Not Applicable",3.7302714285714287,90.495685924941753,6.6857848357752608E-4,7.6384446101957697E-4,8.6729264120025411E-4,9.7920579538369025E-4,1.0998632462725082E-3,1.2295410575353508E-3,1.3685122054777532E-3,1.5170467351845634E-3,1.6754119030806872E-3,1.8438723075499394E-3,2.0226900090022917E-3,2.2121246405756847E-3,1,1,1,1,1,1,1,1,1,1,1,1]
[1000349143,18,3,7.7142857142857153,-0.5248906591678234,"Not Applicable","Not Applicable",3.7302714285714287,90.495685924941753,5.8120827885803231E-4,6.6857848357752608E-4,7.6384446101957697E-4,8.6729264120025411E-4,9.7920579538369025E-4,1.0998632462725082E-3,1.2295410575353508E-3,1.3685122054777532E-3,1.5170467351845634E-3,1.6754119030806872E-3,1.8438723075499394E-3,2.0226900090022917E-3,1,1,1,1,1,1,1,1,1,1,1,1]
[1000349169,21,3,7.7142857142857153,-0.5248906591678234,"Not Applicable","Not Applicable",3.7302714285714287,90.495685924941753,8.6729264120025411E-4,9.7920579538369025E-4,1.0998632462725082E-3,1.2295410575353508E-3,1.3685122054777532E-3,1.5170467351845634E-3,1.6754119030806872E-3,1.8438723075499394E-3,2.0226900090022917E-3,2.2121246405756847E-3,2.4124335104901656E-3,2.6238716969322626E-3,1,1,1,1,1,1,1,1,1,1,2,2]
[1000349201,21,3,7.7142857142857153,-0.5248906591678234,"Not Applicable","Not Applicable",3.7302714285714287,90.495685924941753,8.6729264120025411E-4,9.7920579538369025E-4,1.0998632462725082E-3,1.2295410575353508E-3,1.3685122054777532E-3,1.5170467351845634E-3,1.6754119030806872E-3,1.8438723075499394E-3,2.0226900090022917E-3,2.2121246405756847E-3,2.4124335104901656E-3,2.6238716969322626E-3,1,1,1,1,1,1,1,1,1,1,2,2]
[1000349231,19,3,7.7142857142857153,-0.5248906591678234,"Not Applicable","Not Applicable",3.7302714285714287,90.495685924941753,6.6857848357752608E-4,7.6384446101957697E-4,8.6729264120025411E-4,9.7920579538369025E-4,1.0998632462725082E-3,1.2295410575353508E-3,1.3685122054777532E-3,1.5170467351845634E-3,1.6754119030806872E-3,1.8438723075499394E-3,2.0226900090022917E-3,2.2121246405756847E-3,1,1,1,1,1,1,1,1,1,1,1,1]
[1000349259,19,3,7.7142857142857153,-0.5248906591678234,"Not Applicable","Not Applicable",3.7302714285714287,90.495685924941753,6.6857848357752608E-4,7.6384446101957697E-4,8.6729264120025411E-4,9.7920579538369025E-4,1.0998632462725082E-3,1.2295410575353508E-3,1.3685122054777532E-3,1.5170467351845634E-3,1.6754119030806872E-3,1.8438723075499394E-3,2.0226900090022917E-3,2.2121246405756847E-3,1,1,1,1,1,1,1,1,1,1,1,1]
[1000349287,19,3,7.7142857142857153,-0.5248906591678234,"Not Applicable","Not Applicable",3.7302714285714287,90.495685924941753,6.6857848357752608E-4,7.6384446101957697E-4,8.6729264120025411E-4,9.7920579538369025E-4,1.0998632462725082E-3,1.2295410575353508E-3,1.3685122054777532E-3,1.5170467351845634E-3,1.6754119030806872E-3,1.8438723075499394E-3,2.0226900090022917E-3,2.2121246405756847E-3,1,1,1,1,1,1,1,1,1,1,1,1]
[1000349315,18,3,7.7142857142857153,-0.5248906591678234,"Not Applicable","Not Applicable",3.7302714285714287,90.495685924941753,5.8120827885803231E-4,6.6857848357752608E-4,7.6384446101957697E-4,8.6729264120025411E-4,9.7920579538369025E-4,1.0998632462725082E-3,1.2295410575353508E-3,1.3685122054777532E-3,1.5170467351845634E-3,1.6754119030806872E-3,1.8438723075499394E-3,2.0226900090022917E-3,1,1,1,1,1,1,1,1,1,1,1,1]
[1000349346,18,3,7.7142857142857153,-0.5248906591678234,"Not Applicable","Not Applicable",3.7302714285714287,90.495685924941753,5.8120827885803231E-4,6.6857848357752608E-4,7.6384446101957697E-4,8.6729264120025411E-4,9.7920579538369025E-4,1.0998632462725082E-3,1.2295410575353508E-3,1.3685122054777532E-3,1.5170467351845634E-3,1.6754119030806872E-3,1.8438723075499394E-3,2.0226900090022917E-3,1,1,1,1,1,1,1,1,1,1,1,1]
[1000349374,18,3,7.7142857142857153,-0.5248906591678234,"Not Applicable","Not Applicable",3.7302714285714287,90.495685924941753,5.8120827885803231E-4,6.6857848357752608E-4,7.6384446101957697E-4,8.6729264120025411E-4,9.7920579538369025E-4,1.0998632462725082E-3,1.2295410575353508E-3,1.3685122054777532E-3,1.5170467351845634E-3,1.6754119030806872E-3,1.8438723075499394E-3,2.0226900090022917E-3,1,1,1,1,1,1,1,1,1,1,1,1]
[1000349403,18,3,7.7142857142857153,-0.5248906591678234,"Not Applicable","Not Applicable",3.7302714285714287,90.495685924941753,5.8120827885803231E-4,6.6857848357752608E-4,7.6384446101957697E-4,8.6729264120025411E-4,9.7920579538369025E-4,1.0998632462725082E-3,1.2295410575353508E-3,1.3685122054777532E-3,1.5170467351845634E-3,1.6754119030806872E-3,1.8438723075499394E-3,2.0226900090022917E-3,1,1,1,1,1,1,1,1,1,1,1,1]
[1000349461,19,3,7.7142857142857153,-0.5248906591678234,"Not Applicable","Not Applicable",3.7302714285714287,90.495685924941753,6.6857848357752608E-4,7.6384446101957697E-4,8.6729264120025411E-4,9.7920579538369025E-4,1.0998632462725082E-3,1.2295410575353508E-3,1.3685122054777532E-3,1.5170467351845634E-3,1.6754119030806872E-3,1.8438723075499394E-3,2.0226900090022917E-3,2.2121246405756847E-3,1,1,1,1,1,1,1,1,1,1,1,1]
[1000349494,16,3,7.7142857142857153,-0.5248906591678234,"Not Applicable","Not Applicable",3.7302714285714287,90.495685924941753,4.2898973991092209E-4,5.0144352382806639E-4,5.8120827885803231E-4,6.6857848357752608E-4,7.6384446101957697E-4,8.6729264120025411E-4,9.7920579538369025E-4,1.0998632462725082E-3,1.2295410575353508E-3,1.3685122054777532E-3,1.5170467351845634E-3,1.6754119030806872E-3,1,1,1,1,1,1,1,1,1,1,1,1]
[1000349615,18,3,7.7142857142857153,-0.5248906591678234,"Not Applicable","Not Applicable",3.7302714285714287,90.495685924941753,5.8120827885803231E-4,6.6857848357752608E-4,7.6384446101957697E-4,8.6729264120025411E-4,9.7920579538369025E-4,1.0998632462725082E-3,1.2295410575353508E-3,1.3685122054777532E-3,1.5170467351845634E-3,1.6754119030806872E-3,1.8438723075499394E-3,2.0226900090022917E-3,1,1,1,1,1,1,1,1,1,1,1,1]
[1000349645,17,3,7.7142857142857153,-0.5248906591678234,"Not Applicable","Not Applicable",3.7302714285714287,90.495685924941753,5.0144352382806639E-4,5.8120827885803231E-4,6.6857848357752608E-4,7.6384446101957697E-4,8.6729264120025411E-4,9.7920579538369025E-4,1.0998632462725082E-3,1.2295410575353508E-3,1.3685122054777532E-3,1.5170467351845634E-3,1.6754119030806872E-3,1.8438723075499394E-3,1,1,1,1,1,1,1,1,1,1,1,1]
[1000349674,17,3,7.7142857142857153,-0.5248906591678234,"Not Applicable","Not Applicable",3.7302714285714287,90.495685924941753,5.0144352382806639E-4,5.8120827885803231E-4,6.6857848357752608E-4,7.6384446101957697E-4,8.6729264120025411E-4,9.7920579538369025E-4,1.0998632462725082E-3,1.2295410575353508E-3,1.3685122054777532E-3,1.5170467351845634E-3,1.6754119030806872E-3,1.8438723075499394E-3,1,1,1,1,1,1,1,1,1,1,1,1]
[1000349704,15,3,7.7142857142857153,-0.5248906591678234,"Not Applicable","Not Applicable",3.7302714285714287,90.495685924941753,3.6354799700535629E-4,4.2898973991092209E-4,5.0144352382806639E-4,5.8120827885803231E-4,6.6857848357752608E-4,7.6384446101957697E-4,8.6729264120025411E-4,9.7920579538369025E-4,1.0998632462725082E-3,1.2295410575353508E-3,1.3685122054777532E-3,1.5170467351845634E-3,1,1,1,1,1,1,1,1,1,1,1,1]
[1000349797,15,3,7.7142857142857153,-0.5248906591678234,"Not Applicable","Not Applicable",3.7302714285714287,90.495685924941753,3.6354799700535629E-4,4.2898973991092209E-4,5.0144352382806639E-4,5.8120827885803231E-4,6.6857848357752608E-4,7.6384446101957697E-4,8.6729264120025411E-4,9.7920579538369025E-4,1.0998632462725082E-3,1.2295410575353508E-3,1.3685122054777532E-3,1.5170467351845634E-3,1,1,1,1,1,1,1,1,1,1,1,1]
[1000349829,15,3,7.7142857142857153,-0.5248906591678234,"Not Applicable","Not Applicable",3.7302714285714287,90.495685924941753,3.6354799700535629E-4,4.2898973991092209E-4,5.0144352382806639E-4,5.8120827885803231E-4,6.6857848357752608E-4,7.6384446101957697E-4,8.6729264120025411E-4,9.7920579538369025E-4,1.0998632462725082E-3,1.2295410575353508E-3,1.3685122054777532E-3,1.5170467351845634E-3,1,1,1,1,1,1,1,1,1,1,1,1]
[1000349857,16,3,7.7142857142857153,-0.5248906591678234,"Not Applicable","Not Applicable",3.7302714285714287,90.495685924941753,4.2898973991092209E-4,5.0144352382806639E-4,5.8120827885803231E-4,6.6857848357752608E-4,7.6384446101957697E-4,8.6729264120025411E-4,9.7920579538369025E-4,1.0998632462725082E-3,1.2295410575353508E-3,1.3685122054777532E-3,1.5170467351845634E-3,1.6754119030806872E-3,1,1,1,1,1,1,1,1,1,1,1,1]
[1000349884,17,3,7.7142857142857153,-0.5248906591678234,"Not Applicable","Not Applicable",3.7302714285714287,90.495685924941753,5.0144352382806639E-4,5.8120827885803231E-4,6.6857848357752608E-4,7.6384446101957697E-4,8.6729264120025411E-4,9.7920579538369025E-4,1.0998632462725082E-3,1.2295410575353508E-3,1.3685122054777532E-3,1.5170467351845634E-3,1.6754119030806872E-3,1.8438723075499394E-3,1,1,1,1,1,1,1,1,1,1,1,1]
[1000349913,18,3,7.7142857142857153,-0.5248906591678234,"Not Applicable","Not Applicable",3.7302714285714287,90.495685924941753,5.8120827885803231E-4,6.6857848357752608E-4,7.6384446101957697E-4,8.6729264120025411E-4,9.7920579538369025E-4,1.0998632462725082E-3,1.2295410575353508E-3,1.3685122054777532E-3,1.5170467351845634E-3,1.6754119030806872E-3,1.8438723075499394E-3,2.0226900090022917E-3,1,1,1,1,1,1,1,1,1,1,1,1]
[1000349939,17,5,12.857142857142858,1.5746719775034717,"Not Applicable","Not Applicable",3.9107857142857139,73.504466067305898,8.8580929394114865E-4,1.0367849180545194E-3,1.2037338750248488E-3,1.387420130370311E-3,1.5886042463430481E-3,1.8080435583525383E-3,2.0464923346323787E-3,2.3047019214028344E-3,2.5834208753972667E-3,2.8833950853146399E-3,3.2053678835143669E-3,3.5500801490702645E-3,1,1,1,1,1,1,1,1,2,2,2,2]
[1000349972,17,4,10.285714285714286,0.52489065916782418,"Not Applicable","Not Applicable",3.8205285714285715,81.3586997951722,6.6665686328333973E-4,7.7648211389553861E-4,8.9735164657497933E-4,1.029740247420469E-3,1.1741184570606318E-3,1.3309528084701585E-3,1.5007060412705233E-3,1.6838372957620371E-3,1.8808022893689847E-3,2.0920534777316233E-3,2.3180402023199589E-3,2.5592088261543154E-3,1,1,1,1,1,1,1,1,1,1,1,2]
[1000353004,17,3,7.7142857142857153,-0.5248906591678234,"Not Applicable","Not Applicable",3.7302714285714287,90.495685924941753,5.0144352382806639E-4,5.8120827885803231E-4,6.6857848357752608E-4,7.6384446101957697E-4,8.6729264120025411E-4,9.7920579538369025E-4,1.0998632462725082E-3,1.2295410575353508E-3,1.3685122054777532E-3,1.5170467351845634E-3,1.6754119030806872E-3,1.8438723075499394E-3,1,1,1,1,1,1,1,1,1,1,1,1]
[1000353037,15,3,7.7142857142857153,-0.5248906591678234,"Not Applicable","Not Applicable",3.7302714285714287,90.495685924941753,3.6354799700535629E-4,4.2898973991092209E-4,5.0144352382806639E-4,5.8120827885803231E-4,6.6857848357752608E-4,7.6384446101957697E-4,8.6729264120025411E-4,9.7920579538369025E-4,1.0998632462725082E-3,1.2295410575353508E-3,1.3685122054777532E-3,1.5170467351845634E-3,1,1,1,1,1,1,1,1,1,1,1,1]
[1000353068,16,3,7.7142857142857153,-0.5248906591678234,"Not Applicable","Not Applicable",3.7302714285714287,90.495685924941753,4.2898973991092209E-4,5.0144352382806639E-4,5.8120827885803231E-4,6.6857848357752608E-4,7.6384446101957697E-4,8.6729264120025411E-4,9.7920579538369025E-4,1.0998632462725082E-3,1.2295410575353508E-3,1.3685122054777532E-3,1.5170467351845634E-3,1.6754119030806872E-3,1,1,1,1,1,1,1,1,1,1,1,1]
[1000353101,16,3,7.7142857142857153,-0.5248906591678234,"Not Applicable","Not Applicable",3.7302714285714287,90.495685924941753,4.2898973991092209E-4,5.0144352382806639E-4,5.8120827885803231E-4,6.6857848357752608E-4,7.6384446101957697E-4,8.6729264120025411E-4,9.7920579538369025E-4,1.0998632462725082E-3,1.2295410575353508E-3,1.3685122054777532E-3,1.5170467351845634E-3,1.6754119030806872E-3,1,1,1,1,1,1,1,1,1,1,1,1]
[1000353135,16,3,7.7142857142857153,-0.5248906591678234,"Not Applicable","Not Applicable",3.7302714285714287,90.495685924941753,4.2898973991092209E-4,5.0144352382806639E-4,5.8120827885803231E-4,6.6857848357752608E-4,7.6384446101957697E-4,8.6729264120025411E-4,9.7920579538369025E-4,1.0998632462725082E-3,1.2295410575353508E-3,1.3685122054777532E-3,1.5170467351845634E-3,1.6754119030806872E-3,1,1,1,1,1,1,1,1,1,1,1,1]
[1000353167,16,3,7.7142857142857153,-0.5248906591678234,"Not Applicable","Not Applicable",3.7302714285714287,90.495685924941753,4.2898973991092209E-4,5.0144352382806639E-4,5.8120827885803231E-4,6.6857848357752608E-4,7.6384446101957697E-4,8.6729264120025411E-4,9.7920579538369025E-4,1.0998632462725082E-3,1.2295410575353508E-3,1.3685122054777532E-3,1.5170467351845634E-3,1.6754119030806872E-3,1,1,1,1,1,1,1,1,1,1,1,1]
[1000353227,16,3,7.7142857142857153,-0.5248906591678234,"Not Applicable","Not Applicable",3.7302714285714287,90.495685924941753,4.2898973991092209E-4,5.0144352382806639E-4,5.8120827885803231E-4,6.6857848357752608E-4,7.6384446101957697E-4,8.6729264120025411E-4,9.7920579538369025E-4,1.0998632462725082E-3,1.2295410575353508E-3,1.3685122054777532E-3,1.5170467351845634E-3,1.6754119030806872E-3,1,1,1,1,1,1,1,1,1,1,1,1]
[1000353258,16,3,7.7142857142857153,-0.5248906591678234,"Not Applicable","Not Applicable",3.7302714285714287,90.495685924941753,4.2898973991092209E-4,5.0144352382806639E-4,5.8120827885803231E-4,6.6857848357752608E-4,7.6384446101957697E-4,8.6729264120025411E-4,9.7920579538369025E-4,1.0998632462725082E-3,1.2295410575353508E-3,1.3685122054777532E-3,1.5170467351845634E-3,1.6754119030806872E-3,1,1,1,1,1,1,1,1,1,1,1,1]
[1000353287,16,3,7.7142857142857153,-0.5248906591678234,"Not Applicable","Not Applicable",3.7302714285714287,90.495685924941753,4.2898973991092209E-4,5.0144352382806639E-4,5.8120827885803231E-4,6.6857848357752608E-4,7.6384446101957697E-4,8.6729264120025411E-4,9.7920579538369025E-4,1.0998632462725082E-3,1.2295410575353508E-3,1.3685122054777532E-3,1.5170467351845634E-3,1.6754119030806872E-3,1,1,1,1,1,1,1,1,1,1,1,1]
[1000353314,14,3,7.7142857142857153,-0.5248906591678234,"Not Applicable","Not Applicable",3.7302714285714287,90.495685924941753,3.0481457753673766E-4,3.6354799700535629E-4,4.2898973991092209E-4,5.0144352382806639E-4,5.8120827885803231E-4,6.6857848357752608E-4,7.6384446101957697E-4,8.6729264120025411E-4,9.7920579538369025E-4,1.0998632462725082E-3,1.2295410575353508E-3,1.3685122054777532E-3,1,1,1,1,1,1,1,1,1,1,1,1]
[1000353347,15,3,7.7142857142857153,-0.5248906591678234,"Not Applicable","Not Applicable",3.7302714285714287,90.495685924941753,3.6354799700535629E-4,4.2898973991092209E-4,5.0144352382806639E-4,5.8120827885803231E-4,6.6857848357752608E-4,7.6384446101957697E-4,8.6729264120025411E-4,9.7920579538369025E-4,1.0998632462725082E-3,1.2295410575353508E-3,1.3685122054777532E-3,1.5170467351845634E-3,1,1,1,1,1,1,1,1,1,1,1,1]
[1000353379,15,5,12.857142857142858,1.5746719775034717,"Not Applicable","Not Applicable",3.9107857142857139,73.504466067305898,6.2870396749631222E-4,7.5003943798022097E-4,8.8580929394114865E-4,1.0367849180545194E-3,1.2037338750248488E-3,1.387420130370311E-3,1.5886042463430481E-3,1.8080435583525383E-3,2.0464923346323787E-3,2.3047019214028344E-3,2.5834208753972667E-3,2.8833950853146399E-3,1,1,1,1,1,1,1,1,1,1,2,2]
[1000353459,15,3,7.7142857142857153,-0.5248906591678234,"Not Applicable","Not Applicable",3.7302714285714287,90.495685924941753,3.6354799700535629E-4,4.2898973991092209E-4,5.0144352382806639E-4,5.8120827885803231E-4,6.6857848357752608E-4,7.6384446101957697E-4,8.6729264120025411E-4,9.7920579538369025E-4,1.0998632462725082E-3,1.2295410575353508E-3,1.3685122054777532E-3,1.5170467351845634E-3,1,1,1,1,1,1,1,1,1,1,1,1]
[1000353491,15,3,7.7142857142857153,-0.5248906591678234,"Not Applicable","Not Applicable",3.7302714285714287,90.495685924941753,3.6354799700535629E-4,4.2898973991092209E-4,5.0144352382806639E-4,5.8120827885803231E-4,6.6857848357752608E-4,7.6384446101957697E-4,8.6729264120025411E-4,9.7920579538369025E-4,1.0998632462725082E-3,1.2295410575353508E-3,1.3685122054777532E-3,1.5170467351845634E-3,1,1,1,1,1,1,1,1,1,1,1,1]
[1000353523,13,3,7.7142857142857153,-0.5248906591678234,"Not Applicable","Not Applicable",3.7302714285714287,90.495685924941753,2.5248059226310387E-4,3.0481457753673766E-4,3.6354799700535629E-4,4.2898973991092209E-4,5.0144352382806639E-4,5.8120827885803231E-4,6.6857848357752608E-4,7.6384446101957697E-4,8.6729264120025411E-4,9.7920579538369025E-4,1.0998632462725082E-3,1.2295410575353508E-3,1,1,1,1,1,1,1,1,1,1,1,1]
[1000353554,14,3,7.7142857142857153,-0.5248906591678234,"Not Applicable","Not Applicable",3.7302714285714287,90.495685924941753,3.0481457753673766E-4,3.6354799700535629E-4,4.2898973991092209E-4,5.0144352382806639E-4,5.8120827885803231E-4,6.6857848357752608E-4,7.6384446101957697E-4,8.6729264120025411E-4,9.7920579538369025E-4,1.0998632462725082E-3,1.2295410575353508E-3,1.3685122054777532E-3,1,1,1,1,1,1,1,1,1,1,1,1]
[1000353588,15,3,7.7142857142857153,-0.5248906591678234,"Not Applicable","Not Applicable",3.7302714285714287,90.495685924941753,3.6354799700535629E-4,4.2898973991092209E-4,5.0144352382806639E-4,5.8120827885803231E-4,6.6857848357752608E-4,7.6384446101957697E-4,8.6729264120025411E-4,9.7920579538369025E-4,1.0998632462725082E-3,1.2295410575353508E-3,1.3685122054777532E-3,1.5170467351845634E-3,1,1,1,1,1,1,1,1,1,1,1,1]
[1000353620,15,3,7.7142857142857153,-0.5248906591678234,"Not Applicable","Not Applicable",3.7302714285714287,90.495685924941753,3.6354799700535629E-4,4.2898973991092209E-4,5.0144352382806639E-4,5.8120827885803231E-4,6.6857848357752608E-4,7.6384446101957697E-4,8.6729264120025411E-4,9.7920579538369025E-4,1.0998632462725082E-3,1.2295410575353508E-3,1.3685122054777532E-3,1.5170467351845634E-3,1,1,1,1,1,1,1,1,1,1,1,1]
[1000353653,15,3,7.7142857142857153,-0.5248906591678234,"Not Applicable","Not Applicable",3.7302714285714287,90.495685924941753,3.6354799700535629E-4,4.2898973991092209E-4,5.0144352382806639E-4,5.8120827885803231E-4,6.6857848357752608E-4,7.6384446101957697E-4,8.6729264120025411E-4,9.7920579538369025E-4,1.0998632462725082E-3,1.2295410575353508E-3,1.3685122054777532E-3,1.5170467351845634E-3,1,1,1,1,1,1,1,1,1,1,1,1]
[1000353684,15,3,7.7142857142857153,-0.5248906591678234,"Not Applicable","Not Applicable",3.7302714285714287,90.495685924941753,3.6354799700535629E-4,4.2898973991092209E-4,5.0144352382806639E-4,5.8120827885803231E-4,6.6857848357752608E-4,7.6384446101957697E-4,8.6729264120025411E-4,9.7920579538369025E-4,1.0998632462725082E-3,1.2295410575353508E-3,1.3685122054777532E-3,1.5170467351845634E-3,1,1,1,1,1,1,1,1,1,1,1,1]
[1000353713,14,3,7.7142857142857153,-0.5248906591678234,"Not Applicable","Not Applicable",3.7302714285714287,90.495685924941753,3.0481457753673766E-4,3.6354799700535629E-4,4.2898973991092209E-4,5.0144352382806639E-4,5.8120827885803231E-4,6.6857848357752608E-4,7.6384446101957697E-4,8.6729264120025411E-4,9.7920579538369025E-4,1.0998632462725082E-3,1.2295410575353508E-3,1.3685122054777532E-3,1,1,1,1,1,1,1,1,1,1,1,1]
[1000353747,14,3,7.7142857142857153,-0.5248906591678234,"Not Applicable","Not Applicable",3.7302714285714287,90.495685924941753,3.0481457753673766E-4,3.6354799700535629E-4,4.2898973991092209E-4,5.0144352382806639E-4,5.8120827885803231E-4,6.6857848357752608E-4,7.6384446101957697E-4,8.6729264120025411E-4,9.7920579538369025E-4,1.0998632462725082E-3,1.2295410575353508E-3,1.3685122054777532E-3,1,1,1,1,1,1,1,1,1,1,1,1]
[1000353781,14,3,7.7142857142857153,-0.5248906591678234,"Not Applicable","Not Applicable",3.7302714285714287,90.495685924941753,3.0481457753673766E-4,3.6354799700535629E-4,4.2898973991092209E-4,5.0144352382806639E-4,5.8120827885803231E-4,6.6857848357752608E-4,7.6384446101957697E-4,8.6729264120025411E-4,9.7920579538369025E-4,1.0998632462725082E-3,1.2295410575353508E-3,1.3685122054777532E-3,1,1,1,1,1,1,1,1,1,1,1,1]
[1000353814,16,3,7.7142857142857153,-0.5248906591678234,"Not Applicable","Not Applicable",3.7302714285714287,90.495685924941753,4.2898973991092209E-4,5.0144352382806639E-4,5.8120827885803231E-4,6.6857848357752608E-4,7.6384446101957697E-4,8.6729264120025411E-4,9.7920579538369025E-4,1.0998632462725082E-3,1.2295410575353508E-3,1.3685122054777532E-3,1.5170467351845634E-3,1.6754119030806872E-3,1,1,1,1,1,1,1,1,1,1,1,1]
[1000353845,14,3,7.7142857142857153,-0.5248906591678234,"Not Applicable","Not Applicable",3.7302714285714287,90.495685924941753,3.0481457753673766E-4,3.6354799700535629E-4,4.2898973991092209E-4,5.0144352382806639E-4,5.8120827885803231E-4,6.6857848357752608E-4,7.6384446101957697E-4,8.6729264120025411E-4,9.7920579538369025E-4,1.0998632462725082E-3,1.2295410575353508E-3,1.3685122054777532E-3,1,1,1,1,1,1,1,1,1,1,1,1]
[1000353873,15,3,7.7142857142857153,-0.5248906591678234,"Not Applicable","Not Applicable",3.7302714285714287,90.495685924941753,3.6354799700535629E-4,4.2898973991092209E-4,5.0144352382806639E-4,5.8120827885803231E-4,6.6857848357752608E-4,7.6384446101957697E-4,8.6729264120025411E-4,9.7920579538369025E-4,1.0998632462725082E-3,1.2295410575353508E-3,1.3685122054777532E-3,1.5170467351845634E-3,1,1,1,1,1,1,1,1,1,1,1,1]
[1000353900,15,3,7.7142857142857153,-0.5248906591678234,"Not Applicable","Not Applicable",3.7302714285714287,90.495685924941753,3.6354799700535629E-4,4.2898973991092209E-4,5.0144352382806639E-4,5.8120827885803231E-4,6.6857848357752608E-4,7.6384446101957697E-4,8.6729264120025411E-4,9.7920579538369025E-4,1.0998632462725082E-3,1.2295410575353508E-3,1.3685122054777532E-3,1.5170467351845634E-3,1,1,1,1,1,1,1,1,1,1,1,1]
[1000353934,15,3,7.7142857142857153,-0.5248906591678234,"Not Applicable","Not Applicable",3.7302714285714287,90.495685924941753,3.6354799700535629E-4,4.2898973991092209E-4,5.0144352382806639E-4,5.8120827885803231E-4,6.6857848357752608E-4,7.6384446101957697E-4,8.6729264120025411E-4,9.7920579538369025E-4,1.0998632462725082E-3,1.2295410575353508E-3,1.3685122054777532E-3,1.5170467351845634E-3,1,1,1,1,1,1,1,1,1,1,1,1]
[1000353966,15,3,7.7142857142857153,-0.5248906591678234,"Not Applicable","Not Applicable",3.7302714285714287,90.495685924941753,3.6354799700535629E-4,4.2898973991092209E-4,5.0144352382806639E-4,5.8120827885803231E-4,6.6857848357752608E-4,7.6384446101957697E-4,8.6729264120025411E-4,9.7920579538369025E-4,1.0998632462725082E-3,1.2295410575353508E-3,1.3685122054777532E-3,1.5170467351845634E-3,1,1,1,1,1,1,1,1,1,1,1,1]
[1000353995,14,3,7.7142857142857153,-0.5248906591678234,"Not Applicable","Not Applicable",3.7302714285714287,90.495685924941753,3.0481457753673766E-4,3.6354799700535629E-4,4.2898973991092209E-4,5.0144352382806639E-4,5.8120827885803231E-4,6.6857848357752608E-4,7.6384446101957697E-4,8.6729264120025411E-4,9.7920579538369025E-4,1.0998632462725082E-3,1.2295410575353508E-3,1.3685122054777532E-3,1,1,1,1,1,1,1,1,1,1,1,1]
[1000358026,14,3,7.7142857142857153,-0.5248906591678234,"Not Applicable","Not Applicable",3.7302714285714287,90.495685924941753,3.0481457753673766E-4,3.6354799700535629E-4,4.2898973991092209E-4,5.0144352382806639E-4,5.8120827885803231E-4,6.6857848357752608E-4,7.6384446101957697E-4,8.6729264120025411E-4,9.7920579538369025E-4,1.0998632462725082E-3,1.2295410575353508E-3,1.3685122054777532E-3,1,1,1,1,1,1,1,1,1,1,1,1]
[1000358056,14,3,7.7142857142857153,-0.5248906591678234,"Not Applicable","Not Applicable",3.7302714285714287,90.495685924941753,3.0481457753673766E-4,3.6354799700535629E-4,4.2898973991092209E-4,5.0144352382806639E-4,5.8120827885803231E-4,6.6857848357752608E-4,7.6384446101957697E-4,8.6729264120025411E-4,9.7920579538369025E-4,1.0998632462725082E-3,1.2295410575353508E-3,1.3685122054777532E-3,1,1,1,1,1,1,1,1,1,1,1,1]
[1000358084,14,3,7.7142857142857153,-0.5248906591678234,"Not Applicable","Not Applicable",3.7302714285714287,90.495685924941753,3.0481457753673766E-4,3.6354799700535629E-4,4.2898973991092209E-4,5.0144352382806639E-4,5.8120827885803231E-4,6.6857848357752608E-4,7.6384446101957697E-4,8.6729264120025411E-4,9.7920579538369025E-4,1.0998632462725082E-3,1.2295410575353508E-3,1.3685122054777532E-3,1,1,1,1,1,1,1,1,1,1,1,1]
[1000358116,14,3,7.7142857142857153,-0.5248906591678234,"Not Applicable","Not Applicable",3.7302714285714287,90.495685924941753,3.0481457753673766E-4,3.6354799700535629E-4,4.2898973991092209E-4,5.0144352382806639E-4,5.8120827885803231E-4,6.6857848357752608E-4,7.6384446101957697E-4,8.6729264120025411E-4,9.7920579538369025E-4,1.0998632462725082E-3,1.2295410575353508E-3,1.3685122054777532E-3,1,1,1,1,1,1,1,1,1,1,1,1]
[1000358149,14,3,7.7142857142857153,-0.5248906591678234,"Not Applicable","Not Applicable",3.7302714285714287,90.495685924941753,3.0481457753673766E-4,3.6354799700535629E-4,4.2898973991092209E-4,5.0144352382806639E-4,5.8120827885803231E-4,6.6857848357752608E-4,7.6384446101957697E-4,8.6729264120025411E-4,9.7920579538369025E-4,1.0998632462725082E-3,1.2295410575353508E-3,1.3685122054777532E-3,1,1,1,1,1,1,1,1,1,1,1,1]
[1000358181,14,3,7.7142857142857153,-0.5248906591678234,"Not Applicable","Not Applicable",3.7302714285714287,90.495685924941753,3.0481457753673766E-4,3.6354799700535629E-4,4.2898973991092209E-4,5.0144352382806639E-4,5.8120827885803231E-4,6.6857848357752608E-4,7.6384446101957697E-4,8.6729264120025411E-4,9.7920579538369025E-4,1.0998632462725082E-3,1.2295410575353508E-3,1.3685122054777532E-3,1,1,1,1,1,1,1,1,1,1,1,1]
[1000358266,14,3,7.7142857142857153,-0.5248906591678234,"Not Applicable","Not Applicable",3.7302714285714287,90.495685924941753,3.0481457753673766E-4,3.6354799700535629E-4,4.2898973991092209E-4,5.0144352382806639E-4,5.8120827885803231E-4,6.6857848357752608E-4,7.6384446101957697E-4,8.6729264120025411E-4,9.7920579538369025E-4,1.0998632462725082E-3,1.2295410575353508E-3,1.3685122054777532E-3,1,1,1,1,1,1,1,1,1,1,1,1]
[1000358298,14,3,7.7142857142857153,-0.5248906591678234,"Not Applicable","Not Applicable",3.7302714285714287,90.495685924941753,3.0481457753673766E-4,3.6354799700535629E-4,4.2898973991092209E-4,5.0144352382806639E-4,5.8120827885803231E-4,6.6857848357752608E-4,7.6384446101957697E-4,8.6729264120025411E-4,9.7920579538369025E-4,1.0998632462725082E-3,1.2295410575353508E-3,1.3685122054777532E-3,1,1,1,1,1,1,1,1,1,1,1,1]
[1000358360,14,3,7.7142857142857153,-0.5248906591678234,"Not Applicable","Not Applicable",3.7302714285714287,90.495685924941753,3.0481457753673766E-4,3.6354799700535629E-4,4.2898973991092209E-4,5.0144352382806639E-4,5.8120827885803231E-4,6.6857848357752608E-4,7.6384446101957697E-4,8.6729264120025411E-4,9.7920579538369025E-4,1.0998632462725082E-3,1.2295410575353508E-3,1.3685122054777532E-3,1,1,1,1,1,1,1,1,1,1,1,1]
[1000358393,13,3,7.7142857142857153,-0.5248906591678234,"Not Applicable","Not Applicable",3.7302714285714287,90.495685924941753,2.5248059226310387E-4,3.0481457753673766E-4,3.6354799700535629E-4,4.2898973991092209E-4,5.0144352382806639E-4,5.8120827885803231E-4,6.6857848357752608E-4,7.6384446101957697E-4,8.6729264120025411E-4,9.7920579538369025E-4,1.0998632462725082E-3,1.2295410575353508E-3,1,1,1,1,1,1,1,1,1,1,1,1]
[1000358426,13,3,7.7142857142857153,-0.5248906591678234,"Not Applicable","Not Applicable",3.7302714285714287,90.495685924941753,2.5248059226310387E-4,3.0481457753673766E-4,3.6354799700535629E-4,4.2898973991092209E-4,5.0144352382806639E-4,5.8120827885803231E-4,6.6857848357752608E-4,7.6384446101957697E-4,8.6729264120025411E-4,9.7920579538369025E-4,1.0998632462725082E-3,1.2295410575353508E-3,1,1,1,1,1,1,1,1,1,1,1,1]
[1000358459,13,3,7.7142857142857153,-0.5248906591678234,"Not Applicable","Not Applicable",3.7302714285714287,90.495685924941753,2.5248059226310387E-4,3.0481457753673766E-4,3.6354799700535629E-4,4.2898973991092209E-4,5.0144352382806639E-4,5.8120827885803231E-4,6.6857848357752608E-4,7.6384446101957697E-4,8.6729264120025411E-4,9.7920579538369025E-4,1.0998632462725082E-3,1.2295410575353508E-3,1,1,1,1,1,1,1,1,1,1,1,1]
[1000358493,13,3,7.7142857142857153,-0.5248906591678234,"Not Applicable","Not Applicable",3.7302714285714287,90.495685924941753,2.5248059226310387E-4,3.0481457753673766E-4,3.6354799700535629E-4,4.2898973991092209E-4,5.0144352382806639E-4,5.8120827885803231E-4,6.6857848357752608E-4,7.6384446101957697E-4,8.6729264120025411E-4,9.7920579538369025E-4,1.0998632462725082E-3,1.2295410575353508E-3,1,1,1,1,1,1,1,1,1,1,1,1]
[1000358522,13,3,7.7142857142857153,-0.5248906591678234,"Not Applicable","Not Applicable",3.7302714285714287,90.495685924941753,2.5248059226310387E-4,3.0481457753673766E-4,3.6354799700535629E-4,4.2898973991092209E-4,5.0144352382806639E-4,5.8120827885803231E-4,6.6857848357752608E-4,7.6384446101957697E-4,8.6729264120025411E-4,9.7920579538369025E-4,1.0998632462725082E-3,1.2295410575353508E-3,1,1,1,1,1,1,1,1,1,1,1,1]
[1000358550,13,3,7.7142857142857153,-0.5248906591678234,"Not Applicable","Not Applicable",3.7302714285714287,90.495685924941753,2.5248059226310387E-4,3.0481457753673766E-4,3.6354799700535629E-4,4.2898973991092209E-4,5.0144352382806639E-4,5.8120827885803231E-4,6.6857848357752608E-4,7.6384446101957697E-4,8.6729264120025411E-4,9.7920579538369025E-4,1.0998632462725082E-3,1.2295410575353508E-3,1,1,1,1,1,1,1,1,1,1,1,1]
[1000358581,13,3,7.7142857142857153,-0.5248906591678234,"Not Applicable","Not Applicable",3.7302714285714287,90.495685924941753,2.5248059226310387E-4,3.0481457753673766E-4,3.6354799700535629E-4,4.2898973991092209E-4,5.0144352382806639E-4,5.8120827885803231E-4,6.6857848357752608E-4,7.6384446101957697E-4,8.6729264120025411E-4,9.7920579538369025E-4,1.0998632462725082E-3,1.2295410575353508E-3,1,1,1,1,1,1,1,1,1,1,1,1]
[1000358609,13,3,7.7142857142857153,-0.5248906591678234,"Not Applicable","Not Applicable",3.7302714285714287,90.495685924941753,2.5248059226310387E-4,3.0481457753673766E-4,3.6354799700535629E-4,4.2898973991092209E-4,5.0144352382806639E-4,5.8120827885803231E-4,6.6857848357752608E-4,7.6384446101957697E-4,8.6729264120025411E-4,9.7920579538369025E-4,1.0998632462725082E-3,1.2295410575353508E-3,1,1,1,1,1,1,1,1,1,1,1,1]
[1000358641,13,3,7.7142857142857153,-0.5248906591678234,"Not Applicable","Not Applicable",3.7302714285714287,90.495685924941753,2.5248059226310387E-4,3.0481457753673766E-4,3.6354799700535629E-4,4.2898973991092209E-4,5.0144352382806639E-4,5.8120827885803231E-4,6.6857848357752608E-4,7.6384446101957697E-4,8.6729264120025411E-4,9.7920579538369025E-4,1.0998632462725082E-3,1.2295410575353508E-3,1,1,1,1,1,1,1,1,1,1,1,1]
[1000358676,12,4,10.285714285714286,0.52489065916782418,"Not Applicable","Not Applicable",3.8205285714285715,81.3586997951722,2.6624376195765007E-4,3.2813855412830157E-4,3.9862945674647062E-4,4.7821721233844475E-4,5.6739659787015233E-4,6.6665686328333973E-4,7.7648211389553861E-4,8.9735164657497933E-4,1.029740247420469E-3,1.1741184570606318E-3,1.3309528084701585E-3,1.5007060412705233E-3,1,1,1,1,1,1,1,1,1,1,1,1]
[1000358704,13,3,7.7142857142857153,-0.5248906591678234,"Not Applicable","Not Applicable",3.7302714285714287,90.495685924941753,2.5248059226310387E-4,3.0481457753673766E-4,3.6354799700535629E-4,4.2898973991092209E-4,5.0144352382806639E-4,5.8120827885803231E-4,6.6857848357752608E-4,7.6384446101957697E-4,8.6729264120025411E-4,9.7920579538369025E-4,1.0998632462725082E-3,1.2295410575353508E-3,1,1,1,1,1,1,1,1,1,1,1,1]
[1000358763,13,3,7.7142857142857153,-0.5248906591678234,"Not Applicable","Not Applicable",3.7302714285714287,90.495685924941753,2.5248059226310387E-4,3.0481457753673766E-4,3.6354799700535629E-4,4.2898973991092209E-4,5.0144352382806639E-4,5.8120827885803231E-4,6.6857848357752608E-4,7.6384446101957697E-4,8.6729264120025411E-4,9.7920579538369025E-4,1.0998632462725082E-3,1.2295410575353508E-3,1,1,1,1,1,1,1,1,1,1,1,1]
[1000358821,13,3,7.7142857142857153,-0.5248906591678234,"Not Applicable","Not Applicable",3.7302714285714287,90.495685924941753,2.5248059226310387E-4,3.0481457753673766E-4,3.6354799700535629E-4,4.2898973991092209E-4,5.0144352382806639E-4,5.8120827885803231E-4,6.6857848357752608E-4,7.6384446101957697E-4,8.6729264120025411E-4,9.7920579538369025E-4,1.0998632462725082E-3,1.2295410575353508E-3,1,1,1,1,1,1,1,1,1,1,1,1]
[1000358848,12,3,7.7142857142857153,-0.5248906591678234,"Not Applicable","Not Applicable",3.7302714285714287,90.495685924941753,2.0623153716586059E-4,2.5248059226310387E-4,3.0481457753673766E-4,3.6354799700535629E-4,4.2898973991092209E-4,5.0144352382806639E-4,5.8120827885803231E-4,6.6857848357752608E-4,7.6384446101957697E-4,8.6729264120025411E-4,9.7920579538369025E-4,1.0998632462725082E-3,1,1,1,1,1,1,1,1,1,1,1,1]
[1000358878,13,3,7.7142857142857153,-0.5248906591678234,"Not Applicable","Not Applicable",3.7302714285714287,90.495685924941753,2.5248059226310387E-4,3.0481457753673766E-4,3.6354799700535629E-4,4.2898973991092209E-4,5.0144352382806639E-4,5.8120827885803231E-4,6.6857848357752608E-4,7.6384446101957697E-4,8.6729264120025411E-4,9.7920579538369025E-4,1.0998632462725082E-3,1.2295410575353508E-3,1,1,1,1,1,1,1,1,1,1,1,1]
[1000358906,13,3,7.7142857142857153,-0.5248906591678234,"Not Applicable","Not Applicable",3.7302714285714287,90.495685924941753,2.5248059226310387E-4,3.0481457753673766E-4,3.6354799700535629E-4,4.2898973991092209E-4,5.0144352382806639E-4,5.8120827885803231E-4,6.6857848357752608E-4,7.6384446101957697E-4,8.6729264120025411E-4,9.7920579538369025E-4,1.0998632462725082E-3,1.2295410575353508E-3,1,1,1,1,1,1,1,1,1,1,1,1]
[1000358936,11,3,7.7142857142857153,-0.5248906591678234,"Not Applicable","Not Applicable",3.7302714285714287,90.495685924941753,1.6574677744421492E-4,2.0623153716586059E-4,2.5248059226310387E-4,3.0481457753673766E-4,3.6354799700535629E-4,4.2898973991092209E-4,5.0144352382806639E-4,5.8120827885803231E-4,6.6857848357752608E-4,7.6384446101957697E-4,8.6729264120025411E-4,9.7920579538369025E-4,1,1,1,1,1,1,1,1,1,1,1,1]
[1000358963,13,3,7.7142857142857153,-0.5248906591678234,"Not Applicable","Not Applicable",3.7302714285714287,90.495685924941753,2.5248059226310387E-4,3.0481457753673766E-4,3.6354799700535629E-4,4.2898973991092209E-4,5.0144352382806639E-4,5.8120827885803231E-4,6.6857848357752608E-4,7.6384446101957697E-4,8.6729264120025411E-4,9.7920579538369025E-4,1.0998632462725082E-3,1.2295410575353508E-3,1,1,1,1,1,1,1,1,1,1,1,1]
[1000358993,12,3,7.7142857142857153,-0.5248906591678234,"Not Applicable","Not Applicable",3.7302714285714287,90.495685924941753,2.0623153716586059E-4,2.5248059226310387E-4,3.0481457753673766E-4,3.6354799700535629E-4,4.2898973991092209E-4,5.0144352382806639E-4,5.8120827885803231E-4,6.6857848357752608E-4,7.6384446101957697E-4,8.6729264120025411E-4,9.7920579538369025E-4,1.0998632462725082E-3,1,1,1,1,1,1,1,1,1,1,1,1]
[1000362022,12,3,7.7142857142857153,-0.5248906591678234,"Not Applicable","Not Applicable",3.7302714285714287,90.495685924941753,2.0623153716586059E-4,2.5248059226310387E-4,3.0481457753673766E-4,3.6354799700535629E-4,4.2898973991092209E-4,5.0144352382806639E-4,5.8120827885803231E-4,6.6857848357752608E-4,7.6384446101957697E-4,8.6729264120025411E-4,9.7920579538369025E-4,1.0998632462725082E-3,1,1,1,1,1,1,1,1,1,1,1,1]
[1000362081,13,3,7.7142857142857153,-0.5248906591678234,"Not Applicable","Not Applicable",3.7302714285714287,90.495685924941753,2.5248059226310387E-4,3.0481457753673766E-4,3.6354799700535629E-4,4.2898973991092209E-4,5.0144352382806639E-4,5.8120827885803231E-4,6.6857848357752608E-4,7.6384446101957697E-4,8.6729264120025411E-4,9.7920579538369025E-4,1.0998632462725082E-3,1.2295410575353508E-3,1,1,1,1,1,1,1,1,1,1,1,1]
[1000362111,13,3,7.7142857142857153,-0.5248906591678234,"Not Applicable","Not Applicable",3.7302714285714287,90.495685924941753,2.5248059226310387E-4,3.0481457753673766E-4,3.6354799700535629E-4,4.2898973991092209E-4,5.0144352382806639E-4,5.8120827885803231E-4,6.6857848357752608E-4,7.6384446101957697E-4,8.6729264120025411E-4,9.7920579538369025E-4,1.0998632462725082E-3,1.2295410575353508E-3,1,1,1,1,1,1,1,1,1,1,1,1]
[1000362141,13,3,7.7142857142857153,-0.5248906591678234,"Not Applicable","Not Applicable",3.7302714285714287,90.495685924941753,2.5248059226310387E-4,3.0481457753673766E-4,3.6354799700535629E-4,4.2898973991092209E-4,5.0144352382806639E-4,5.8120827885803231E-4,6.6857848357752608E-4,7.6384446101957697E-4,8.6729264120025411E-4,9.7920579538369025E-4,1.0998632462725082E-3,1.2295410575353508E-3,1,1,1,1,1,1,1,1,1,1,1,1]
[1000362166,13,3,7.7142857142857153,-0.5248906591678234,"Not Applicable","Not Applicable",3.7302714285714287,90.495685924941753,2.5248059226310387E-4,3.0481457753673766E-4,3.6354799700535629E-4,4.2898973991092209E-4,5.0144352382806639E-4,5.8120827885803231E-4,6.6857848357752608E-4,7.6384446101957697E-4,8.6729264120025411E-4,9.7920579538369025E-4,1.0998632462725082E-3,1.2295410575353508E-3,1,1,1,1,1,1,1,1,1,1,1,1]
[1000362199,12,3,7.7142857142857153,-0.5248906591678234,"Not Applicable","Not Applicable",3.7302714285714287,90.495685924941753,2.0623153716586059E-4,2.5248059226310387E-4,3.0481457753673766E-4,3.6354799700535629E-4,4.2898973991092209E-4,5.0144352382806639E-4,5.8120827885803231E-4,6.6857848357752608E-4,7.6384446101957697E-4,8.6729264120025411E-4,9.7920579538369025E-4,1.0998632462725082E-3,1,1,1,1,1,1,1,1,1,1,1,1]
[1000362227,12,3,7.7142857142857153,-0.5248906591678234,"Not Applicable","Not Applicable",3.7302714285714287,90.495685924941753,2.0623153716586059E-4,2.5248059226310387E-4,3.0481457753673766E-4,3.6354799700535629E-4,4.2898973991092209E-4,5.0144352382806639E-4,5.8120827885803231E-4,6.6857848357752608E-4,7.6384446101957697E-4,8.6729264120025411E-4,9.7920579538369025E-4,1.0998632462725082E-3,1,1,1,1,1,1,1,1,1,1,1,1]
[1000362285,13,3,7.7142857142857153,-0.5248906591678234,"Not Applicable","Not Applicable",3.7302714285714287,90.495685924941753,2.5248059226310387E-4,3.0481457753673766E-4,3.6354799700535629E-4,4.2898973991092209E-4,5.0144352382806639E-4,5.8120827885803231E-4,6.6857848357752608E-4,7.6384446101957697E-4,8.6729264120025411E-4,9.7920579538369025E-4,1.0998632462725082E-3,1.2295410575353508E-3,1,1,1,1,1,1,1,1,1,1,1,1]
[1000362316,12,3,7.7142857142857153,-0.5248906591678234,"Not Applicable","Not Applicable",3.7302714285714287,90.495685924941753,2.0623153716586059E-4,2.5248059226310387E-4,3.0481457753673766E-4,3.6354799700535629E-4,4.2898973991092209E-4,5.0144352382806639E-4,5.8120827885803231E-4,6.6857848357752608E-4,7.6384446101957697E-4,8.6729264120025411E-4,9.7920579538369025E-4,1.0998632462725082E-3,1,1,1,1,1,1,1,1,1,1,1,1]
[1000362345,13,3,7.7142857142857153,-0.5248906591678234,"Not Applicable","Not Applicable",3.7302714285714287,90.495685924941753,2.5248059226310387E-4,3.0481457753673766E-4,3.6354799700535629E-4,4.2898973991092209E-4,5.0144352382806639E-4,5.8120827885803231E-4,6.6857848357752608E-4,7.6384446101957697E-4,8.6729264120025411E-4,9.7920579538369025E-4,1.0998632462725082E-3,1.2295410575353508E-3,1,1,1,1,1,1,1,1,1,1,1,1]
[1000362379,12,3,7.7142857142857153,-0.5248906591678234,"Not Applicable","Not Applicable",3.7302714285714287,90.495685924941753,2.0623153716586059E-4,2.5248059226310387E-4,3.0481457753673766E-4,3.6354799700535629E-4,4.2898973991092209E-4,5.0144352382806639E-4,5.8120827885803231E-4,6.6857848357752608E-4,7.6384446101957697E-4,8.6729264120025411E-4,9.7920579538369025E-4,1.0998632462725082E-3,1,1,1,1,1,1,1,1,1,1,1,1]
[1000362439,12,3,7.7142857142857153,-0.5248906591678234,"Not Applicable","Not Applicable",3.7302714285714287,90.495685924941753,2.0623153716586059E-4,2.5248059226310387E-4,3.0481457753673766E-4,3.6354799700535629E-4,4.2898973991092209E-4,5.0144352382806639E-4,5.8120827885803231E-4,6.6857848357752608E-4,7.6384446101957697E-4,8.6729264120025411E-4,9.7920579538369025E-4,1.0998632462725082E-3,1,1,1,1,1,1,1,1,1,1,1,1]
[1000362467,13,3,7.7142857142857153,-0.5248906591678234,"Not Applicable","Not Applicable",3.7302714285714287,90.495685924941753,2.5248059226310387E-4,3.0481457753673766E-4,3.6354799700535629E-4,4.2898973991092209E-4,5.0144352382806639E-4,5.8120827885803231E-4,6.6857848357752608E-4,7.6384446101957697E-4,8.6729264120025411E-4,9.7920579538369025E-4,1.0998632462725082E-3,1.2295410575353508E-3,1,1,1,1,1,1,1,1,1,1,1,1]
[1000362497,11,3,7.7142857142857153,-0.5248906591678234,"Not Applicable","Not Applicable",3.7302714285714287,90.495685924941753,1.6574677744421492E-4,2.0623153716586059E-4,2.5248059226310387E-4,3.0481457753673766E-4,3.6354799700535629E-4,4.2898973991092209E-4,5.0144352382806639E-4,5.8120827885803231E-4,6.6857848357752608E-4,7.6384446101957697E-4,8.6729264120025411E-4,9.7920579538369025E-4,1,1,1,1,1,1,1,1,1,1,1,1]
[1000362528,11,3,7.7142857142857153,-0.5248906591678234,"Not Applicable","Not Applicable",3.7302714285714287,90.495685924941753,1.6574677744421492E-4,2.0623153716586059E-4,2.5248059226310387E-4,3.0481457753673766E-4,3.6354799700535629E-4,4.2898973991092209E-4,5.0144352382806639E-4,5.8120827885803231E-4,6.6857848357752608E-4,7.6384446101957697E-4,8.6729264120025411E-4,9.7920579538369025E-4,1,1,1,1,1,1,1,1,1,1,1,1]
[1000362556,11,3,7.7142857142857153,-0.5248906591678234,"Not Applicable","Not Applicable",3.7302714285714287,90.495685924941753,1.6574677744421492E-4,2.0623153716586059E-4,2.5248059226310387E-4,3.0481457753673766E-4,3.6354799700535629E-4,4.2898973991092209E-4,5.0144352382806639E-4,5.8120827885803231E-4,6.6857848357752608E-4,7.6384446101957697E-4,8.6729264120025411E-4,9.7920579538369025E-4,1,1,1,1,1,1,1,1,1,1,1,1]
[1000362587,11,3,7.7142857142857153,-0.5248906591678234,"Not Applicable","Not Applicable",3.7302714285714287,90.495685924941753,1.6574677744421492E-4,2.0623153716586059E-4,2.5248059226310387E-4,3.0481457753673766E-4,3.6354799700535629E-4,4.2898973991092209E-4,5.0144352382806639E-4,5.8120827885803231E-4,6.6857848357752608E-4,7.6384446101957697E-4,8.6729264120025411E-4,9.7920579538369025E-4,1,1,1,1,1,1,1,1,1,1,1,1]
[1000362618,11,3,7.7142857142857153,-0.5248906591678234,"Not Applicable","Not Applicable",3.7302714285714287,90.495685924941753,1.6574677744421492E-4,2.0623153716586059E-4,2.5248059226310387E-4,3.0481457753673766E-4,3.6354799700535629E-4,4.2898973991092209E-4,5.0144352382806639E-4,5.8120827885803231E-4,6.6857848357752608E-4,7.6384446101957697E-4,8.6729264120025411E-4,9.7920579538369025E-4,1,1,1,1,1,1,1,1,1,1,1,1]
[1000362675,10,3,7.7142857142857153,-0.5248906591678234,"Not Applicable","Not Applicable",3.7302714285714287,90.495685924941753,1.3069893995203767E-4,1.6574677744421492E-4,2.0623153716586059E-4,2.5248059226310387E-4,3.0481457753673766E-4,3.6354799700535629E-4,4.2898973991092209E-4,5.0144352382806639E-4,5.8120827885803231E-4,6.6857848357752608E-4,7.6384446101957697E-4,8.6729264120025411E-4,1,1,1,1,1,1,1,1,1,1,1,1]
[1000362711,11,4,10.285714285714286,0.52489065916782418,"Not Applicable","Not Applicable",3.8205285714285715,81.3586997951722,2.1243786456389763E-4,2.6624376195765007E-4,3.2813855412830157E-4,3.9862945674647062E-4,4.7821721233844475E-4,5.6739659787015233E-4,6.6665686328333973E-4,7.7648211389553861E-4,8.9735164657497933E-4,1.029740247420469E-3,1.1741184570606318E-3,1.3309528084701585E-3,1,1,1,1,1,1,1,1,1,1,1,1]
[1000362743,12,4,10.285714285714286,0.52489065916782418,"Not Applicable","Not Applicable",3.8205285714285715,81.3586997951722,2.6624376195765007E-4,3.2813855412830157E-4,3.9862945674647062E-4,4.7821721233844475E-4,5.6739659787015233E-4,6.6665686328333973E-4,7.7648211389553861E-4,8.9735164657497933E-4,1.029740247420469E-3,1.1741184570606318E-3,1.3309528084701585E-3,1.5007060412705233E-3,1,1,1,1,1,1,1,1,1,1,1,1]
[1000362772,11,3,7.7142857142857153,-0.5248906591678234,"Not Applicable","Not Applicable",3.7302714285714287,90.495685924941753,1.6574677744421492E-4,2.0623153716586059E-4,2.5248059226310387E-4,3.0481457753673766E-4,3.6354799700535629E-4,4.2898973991092209E-4,5.0144352382806639E-4,5.8120827885803231E-4,6.6857848357752608E-4,7.6384446101957697E-4,8.6729264120025411E-4,9.7920579538369025E-4,1,1,1,1,1,1,1,1,1,1,1,1]
[1000362807,11,3,7.7142857142857153,-0.5248906591678234,"Not Applicable","Not Applicable",3.7302714285714287,90.495685924941753,1.6574677744421492E-4,2.0623153716586059E-4,2.5248059226310387E-4,3.0481457753673766E-4,3.6354799700535629E-4,4.2898973991092209E-4,5.0144352382806639E-4,5.8120827885803231E-4,6.6857848357752608E-4,7.6384446101957697E-4,8.6729264120025411E-4,9.7920579538369025E-4,1,1,1,1,1,1,1,1,1,1,1,1]
[1000362836,11,3,7.7142857142857153,-0.5248906591678234,"Not Applicable","Not Applicable",3.7302714285714287,90.495685924941753,1.6574677744421492E-4,2.0623153716586059E-4,2.5248059226310387E-4,3.0481457753673766E-4,3.6354799700535629E-4,4.2898973991092209E-4,5.0144352382806639E-4,5.8120827885803231E-4,6.6857848357752608E-4,7.6384446101957697E-4,8.6729264120025411E-4,9.7920579538369025E-4,1,1,1,1,1,1,1,1,1,1,1,1]
[1000362870,11,3,7.7142857142857153,-0.5248906591678234,"Not Applicable","Not Applicable",3.7302714285714287,90.495685924941753,1.6574677744421492E-4,2.0623153716586059E-4,2.5248059226310387E-4,3.0481457753673766E-4,3.6354799700535629E-4,4.2898973991092209E-4,5.0144352382806639E-4,5.8120827885803231E-4,6.6857848357752608E-4,7.6384446101957697E-4,8.6729264120025411E-4,9.7920579538369025E-4,1,1,1,1,1,1,1,1,1,1,1,1]
[1000362899,12,3,7.7142857142857153,-0.5248906591678234,"Not Applicable","Not Applicable",3.7302714285714287,90.495685924941753,2.0623153716586059E-4,2.5248059226310387E-4,3.0481457753673766E-4,3.6354799700535629E-4,4.2898973991092209E-4,5.0144352382806639E-4,5.8120827885803231E-4,6.6857848357752608E-4,7.6384446101957697E-4,8.6729264120025411E-4,9.7920579538369025E-4,1.0998632462725082E-3,1,1,1,1,1,1,1,1,1,1,1,1]
[1000362927,12,4,10.285714285714286,0.52489065916782418,"Not Applicable","Not Applicable",3.8205285714285715,81.3586997951722,2.6624376195765007E-4,3.2813855412830157E-4,3.9862945674647062E-4,4.7821721233844475E-4,5.6739659787015233E-4,6.6665686328333973E-4,7.7648211389553861E-4,8.9735164657497933E-4,1.029740247420469E-3,1.1741184570606318E-3,1.3309528084701585E-3,1.5007060412705233E-3,1,1,1,1,1,1,1,1,1,1,1,1]
[1000362965,11,4,10.285714285714286,0.52489065916782418,"Not Applicable","Not Applicable",3.8205285714285715,81.3586997951722,2.1243786456389763E-4,2.6624376195765007E-4,3.2813855412830157E-4,3.9862945674647062E-4,4.7821721233844475E-4,5.6739659787015233E-4,6.6665686328333973E-4,7.7648211389553861E-4,8.9735164657497933E-4,1.029740247420469E-3,1.1741184570606318E-3,1.3309528084701585E-3,1,1,1,1,1,1,1,1,1,1,1,1]
[1000362998,10,3,7.7142857142857153,-0.5248906591678234,"Not Applicable","Not Applicable",3.7302714285714287,90.495685924941753,1.3069893995203767E-4,1.6574677744421492E-4,2.0623153716586059E-4,2.5248059226310387E-4,3.0481457753673766E-4,3.6354799700535629E-4,4.2898973991092209E-4,5.0144352382806639E-4,5.8120827885803231E-4,6.6857848357752608E-4,7.6384446101957697E-4,8.6729264120025411E-4,1,1,1,1,1,1,1,1,1,1,1,1]
[1000366027,11,3,7.7142857142857153,-0.5248906591678234,"Not Applicable","Not Applicable",3.7302714285714287,90.495685924941753,1.6574677744421492E-4,2.0623153716586059E-4,2.5248059226310387E-4,3.0481457753673766E-4,3.6354799700535629E-4,4.2898973991092209E-4,5.0144352382806639E-4,5.8120827885803231E-4,6.6857848357752608E-4,7.6384446101957697E-4,8.6729264120025411E-4,9.7920579538369025E-4,1,1,1,1,1,1,1,1,1,1,1,1]
[1000366060,10,3,7.7142857142857153,-0.5248906591678234,"Not Applicable","Not Applicable",3.7302714285714287,90.495685924941753,1.3069893995203767E-4,1.6574677744421492E-4,2.0623153716586059E-4,2.5248059226310387E-4,3.0481457753673766E-4,3.6354799700535629E-4,4.2898973991092209E-4,5.0144352382806639E-4,5.8120827885803231E-4,6.6857848357752608E-4,7.6384446101957697E-4,8.6729264120025411E-4,1,1,1,1,1,1,1,1,1,1,1,1]
[1000366091,11,4,10.285714285714286,0.52489065916782418,"Not Applicable","Not Applicable",3.8205285714285715,81.3586997951722,2.1243786456389763E-4,2.6624376195765007E-4,3.2813855412830157E-4,3.9862945674647062E-4,4.7821721233844475E-4,5.6739659787015233E-4,6.6665686328333973E-4,7.7648211389553861E-4,8.9735164657497933E-4,1.029740247420469E-3,1.1741184570606318E-3,1.3309528084701585E-3,1,1,1,1,1,1,1,1,1,1,1,1]
[1000366122,11,3,7.7142857142857153,-0.5248906591678234,"Not Applicable","Not Applicable",3.7302714285714287,90.495685924941753,1.6574677744421492E-4,2.0623153716586059E-4,2.5248059226310387E-4,3.0481457753673766E-4,3.6354799700535629E-4,4.2898973991092209E-4,5.0144352382806639E-4,5.8120827885803231E-4,6.6857848357752608E-4,7.6384446101957697E-4,8.6729264120025411E-4,9.7920579538369025E-4,1,1,1,1,1,1,1,1,1,1,1,1]
[1000366153,10,3,7.7142857142857153,-0.5248906591678234,"Not Applicable","Not Applicable",3.7302714285714287,90.495685924941753,1.3069893995203767E-4,1.6574677744421492E-4,2.0623153716586059E-4,2.5248059226310387E-4,3.0481457753673766E-4,3.6354799700535629E-4,4.2898973991092209E-4,5.0144352382806639E-4,5.8120827885803231E-4,6.6857848357752608E-4,7.6384446101957697E-4,8.6729264120025411E-4,1,1,1,1,1,1,1,1,1,1,1,1]
[1000366184,10,4,10.285714285714286,0.52489065916782418,"Not Applicable","Not Applicable",3.8205285714285715,81.3586997951722,1.6620657937236637E-4,2.1243786456389763E-4,2.6624376195765007E-4,3.2813855412830157E-4,3.9862945674647062E-4,4.7821721233844475E-4,5.6739659787015233E-4,6.6665686328333973E-4,7.7648211389553861E-4,8.9735164657497933E-4,1.029740247420469E-3,1.1741184570606318E-3,1,1,1,1,1,1,1,1,1,1,1,1]
[1000366216,10,3,7.7142857142857153,-0.5248906591678234,"Not Applicable","Not Applicable",3.7302714285714287,90.495685924941753,1.3069893995203767E-4,1.6574677744421492E-4,2.0623153716586059E-4,2.5248059226310387E-4,3.0481457753673766E-4,3.6354799700535629E-4,4.2898973991092209E-4,5.0144352382806639E-4,5.8120827885803231E-4,6.6857848357752608E-4,7.6384446101957697E-4,8.6729264120025411E-4,1,1,1,1,1,1,1,1,1,1,1,1]
[1000366244,11,3,7.7142857142857153,-0.5248906591678234,"Not Applicable","Not Applicable",3.7302714285714287,90.495685924941753,1.6574677744421492E-4,2.0623153716586059E-4,2.5248059226310387E-4,3.0481457753673766E-4,3.6354799700535629E-4,4.2898973991092209E-4,5.0144352382806639E-4,5.8120827885803231E-4,6.6857848357752608E-4,7.6384446101957697E-4,8.6729264120025411E-4,9.7920579538369025E-4,1,1,1,1,1,1,1,1,1,1,1,1]
[1000366397,58,5,12.857142857142858,1.5746719775034717,"Not Applicable","Not Applicable",3.9107857142857139,73.504466067305898,2.8059614156563172E-2,2.9466476985654733E-2,3.0918864517361939E-2,3.2417467297974317E-2,3.3962974864479044E-2,3.5556075762282695E-2,3.7197457562345652E-2,3.8887806877757371E-2,4.0627809379779202E-2,4.241814981337954E-2,4.4259512012284778E-2,4.6152578913568033E-2,10,10,10,10,10,10,10,10,10,10,10,10]
[1000366483,56,3,7.7142857142857153,-0.5248906591678234,"Not Applicable","Not Applicable",3.7302714285714287,90.495685924941753,1.1668158544192762E-2,1.2235576541308146E-2,1.2820177040009317E-2,1.3422175886665352E-2,1.4041787943005819E-2,1.4679227106915316E-2,1.5334706332455605E-2,1.6008437649156285E-2,1.6700632180611713E-2,1.7411500162419602E-2,1.814125095949445E-2,1.8890093082786507E-2,5,6,6,6,6,7,7,7,8,8,8,8]
[1000366599,48,4,10.285714285714286,0.52489065916782418,"Not Applicable","Not Applicable",3.8205285714285715,81.3586997951722,1.1236129191788151E-2,1.1894983069304249E-2,1.2578268421978041E-2,1.3286385475045577E-2,1.4019733047602333E-2,1.4778708584450748E-2,1.5563708186639956E-2,1.6375126640774437E-2,1.7213357447162774E-2,1.807879284687235E-2,1.897182384775074E-2,1.989284024947063E-2,5,6,6,6,6,7,7,7,8,8,9,9]
[1000366630,48,6,15.428571428571431,2.4494897427831779,"Not Applicable","Not Applicable",3.9859999999999998,67.779304104150881,2.2320798476970879E-2,2.3708750395101268E-2,2.5152941302056715E-2,2.6654480077496132E-2,2.8214475296682407E-2,2.9834035236418879E-2,3.1514267880760095E-2,3.3256280926509466E-2,3.5061181788515763E-2,3.6930077604778885E-2,3.8864075241375327E-2,4.0864281297212438E-2,10,10,10,10,10,10,10,10,10,10,10,10]
[1000366661,50,6,15.428571428571431,2.4494897427831779,"Not Applicable","Not Applicable",3.9859999999999998,67.779304104150881,2.5152941302056715E-2,2.6654480077496132E-2,2.8214475296682407E-2,2.9834035236418879E-2,3.1514267880760095E-2,3.3256280926509466E-2,3.5061181788515763E-2,3.6930077604778885E-2,3.8864075241375327E-2,4.0864281297212438E-2,4.2931802108620576E-2,4.5067743753790905E-2,10,10,10,10,10,10,10,10,10,10,10,10]
[1000366782,53,4,10.285714285714286,0.52489065916782418,"Not Applicable","Not Applicable",3.8205285714285715,81.3586997951722,1.4778708584450748E-2,1.5563708186639956E-2,1.6375126640774437E-2,1.7213357447162774E-2,1.807879284687235E-2,1.897182384775074E-2,1.989284024947063E-2,2.084223066765066E-2,2.1820382557101111E-2,2.2827682234240088E-2,2.386451489872262E-2,2.4931264654322365E-2,7,7,7,8,8,9,9,9,10,10,10,10]
[1000366876,42,3,7.7142857142857153,-0.5248906591678234,"Not Applicable","Not Applicable",3.7302714285714287,90.495685924941753,5.4050488666682849E-3,5.7551845925922921E-3,6.1193636543992605E-3,6.4978184281262443E-3,6.8907799008476036E-3,7.2984777089150181E-3,7.7211401743552781E-3,8.1589943395509699E-3,8.6122660003184921E-3,9.0811797374878503E-3,9.5659589470802574E-3,1.0066825869171323E-2,3,3,3,3,3,4,4,4,4,4,5,5]
[1000366906,42,4,10.285714285714286,0.52489065916782418,"Not Applicable","Not Applicable",3.8205285714285715,81.3586997951722,7.7734684185012887E-3,8.2942213022864208E-3,8.8369728099988651E-3,9.4021323572303396E-3,9.9901077296670974E-3,1.0601305124814272E-2,1.1236129191788151E-2,1.1894983069304249E-2,1.2578268421978041E-2,1.3286385475045577E-2,1.4019733047602333E-2,1.4778708584450748E-2,4,4,4,4,5,5,5,6,6,6,6,7]
[1000367691,13,3,7.7142857142857153,-0.5248906591678234,"Not Applicable","Not Applicable",3.7302714285714287,90.495685924941753,2.5248059226310387E-4,3.0481457753673766E-4,3.6354799700535629E-4,4.2898973991092209E-4,5.0144352382806639E-4,5.8120827885803231E-4,6.6857848357752608E-4,7.6384446101957697E-4,8.6729264120025411E-4,9.7920579538369025E-4,1.0998632462725082E-3,1.2295410575353508E-3,1,1,1,1,1,1,1,1,1,1,1,1]
[1000367704,13,3,7.7142857142857153,-0.5248906591678234,"Not Applicable","Not Applicable",3.7302714285714287,90.495685924941753,2.5248059226310387E-4,3.0481457753673766E-4,3.6354799700535629E-4,4.2898973991092209E-4,5.0144352382806639E-4,5.8120827885803231E-4,6.6857848357752608E-4,7.6384446101957697E-4,8.6729264120025411E-4,9.7920579538369025E-4,1.0998632462725082E-3,1.2295410575353508E-3,1,1,1,1,1,1,1,1,1,1,1,1]
[1000370022,38,3,7.7142857142857153,-0.5248906591678234,"Not Applicable","Not Applicable",3.7302714285714287,90.495685924941753,4.1402408740492556E-3,4.4365562496864993E-3,4.7459707300582417E-3,5.0687226714077492E-3,5.4050488666682849E-3,5.7551845925922921E-3,6.1193636543992605E-3,6.4978184281262443E-3,6.8907799008476036E-3,7.2984777089150181E-3,7.7211401743552781E-3,8.1589943395509699E-3,2,2,3,3,3,3,3,3,3,4,4,4]
[1000370112,46,6,15.428571428571431,2.4494897427831779,"Not Applicable","Not Applicable",3.9859999999999998,67.779304104150881,1.9709174529261887E-2,2.0987976357435021E-2,2.2320798476970879E-2,2.3708750395101268E-2,2.5152941302056715E-2,2.6654480077496132E-2,2.8214475296682407E-2,2.9834035236418879E-2,3.1514267880760095E-2,3.3256280926509466E-2,3.5061181788515763E-2,3.6930077604778885E-2,9,9,10,10,10,10,10,10,10,10,10,10]
[1000370140,47,4,10.285714285714286,0.52489065916782418,"Not Applicable","Not Applicable",3.8205285714285715,81.3586997951722,1.0601305124814272E-2,1.1236129191788151E-2,1.1894983069304249E-2,1.2578268421978041E-2,1.3286385475045577E-2,1.4019733047602333E-2,1.4778708584450748E-2,1.5563708186639956E-2,1.6375126640774437E-2,1.7213357447162774E-2,1.807879284687235E-2,1.897182384775074E-2,5,5,6,6,6,6,7,7,7,8,8,9]
[1000370197,58,4,10.285714285714286,0.52489065916782418,"Not Applicable","Not Applicable",3.8205285714285715,81.3586997951722,1.897182384775074E-2,1.989284024947063E-2,2.084223066765066E-2,2.1820382557101111E-2,2.2827682234240088E-2,2.386451489872262E-2,2.4931264654322365E-2,2.6028314529103064E-2,2.7156046494914328E-2,2.8314841486244462E-2,2.9505079418460589E-2,3.0727139205464868E-2,9,9,9,10,10,10,10,10,10,10,10,10]
[1000370256,54,4,10.285714285714286,0.52489065916782418,"Not Applicable","Not Applicable",3.8205285714285715,81.3586997951722,1.5563708186639956E-2,1.6375126640774437E-2,1.7213357447162774E-2,1.807879284687235E-2,1.897182384775074E-2,1.989284024947063E-2,2.084223066765066E-2,2.1820382557101111E-2,2.2827682234240088E-2,2.386451489872262E-2,2.4931264654322365E-2,2.6028314529103064E-2,7,7,8,8,9,9,9,10,10,10,10,10]
[1000370289,54,5,12.857142857142858,1.5746719775034717,"Not Applicable","Not Applicable",3.9107857142857139,73.504466067305898,2.2873562569482885E-2,2.4105252892835553E-2,2.5379695263869503E-2,2.6697584456155762E-2,2.8059614156563172E-2,2.9466476985654733E-2,3.0918864517361939E-2,3.2417467297974317E-2,3.3962974864479044E-2,3.5556075762282695E-2,3.7197457562345652E-2,3.8887806877757371E-2,10,10,10,10,10,10,10,10,10,10,10,10]
[1000370319,52,5,12.857142857142858,1.5746719775034717,"Not Applicable","Not Applicable",3.9107857142857139,73.504466067305898,2.0535653410273788E-2,2.1683928412380312E-2,2.2873562569482885E-2,2.4105252892835553E-2,2.5379695263869503E-2,2.6697584456155762E-2,2.8059614156563172E-2,2.9466476985654733E-2,3.0918864517361939E-2,3.2417467297974317E-2,3.3962974864479044E-2,3.5556075762282695E-2,9,10,10,10,10,10,10,10,10,10,10,10]
[1000370381,60,3,7.7142857142857153,-0.5248906591678234,"Not Applicable","Not Applicable",3.7302714285714287,90.495685924941753,1.4041787943005819E-2,1.4679227106915316E-2,1.5334706332455605E-2,1.6008437649156285E-2,1.6700632180611713E-2,1.7411500162419602E-2,1.814125095949445E-2,1.8890093082786507E-2,1.9658234205435516E-2,2.0445881178386079E-2,2.1253240045490361E-2,2.2080516058121877E-2,6,7,7,7,8,8,8,8,9,9,9,10]
[1000370592,54,6,15.428571428571431,2.4494897427831779,"Not Applicable","Not Applicable",3.9859999999999998,67.779304104150881,3.1514267880760095E-2,3.3256280926509466E-2,3.5061181788515763E-2,3.6930077604778885E-2,3.8864075241375327E-2,4.0864281297212438E-2,4.2931802108620576E-2,4.5067743753790905E-2,4.7273212057066728E-2,4.9549312593095363E-2,5.1897150690847348E-2,5.431783143750904E-2,10,10,10,10,10,10,10,10,10,10,10,10]
[1000370708,40,6,15.428571428571431,2.4494897427831779,"Not Applicable","Not Applicable",3.9859999999999998,67.779304104150881,1.310861558075254E-2,1.4086613946669777E-2,1.511196850714628E-2,1.618579082286186E-2,1.7309192092585805E-2,1.8483283161518895E-2,1.9709174529261887E-2,2.0987976357435021E-2,2.2320798476970879E-2,2.3708750395101268E-2,2.5152941302056715E-2,2.6654480077496132E-2,6,6,7,7,8,8,9,9,10,10,10,10]
[1000370828,57,6,15.428571428571431,2.4494897427831779,"Not Applicable","Not Applicable",3.9859999999999998,67.779304104150881,3.6930077604778885E-2,3.8864075241375327E-2,4.0864281297212438E-2,4.2931802108620576E-2,4.5067743753790905E-2,4.7273212057066728E-2,4.9549312593095363E-2,5.1897150690847348E-2,5.431783143750904E-2,5.6812459682254721E-2,5.9382140039903393E-2,6.2027976894465854E-2,10,10,10,10,10,10,10,10,10,10,10,10]
[1000370886,56,5,12.857142857142858,1.5746719775034717,"Not Applicable","Not Applicable",3.9107857142857139,73.504466067305898,2.5379695263869503E-2,2.6697584456155762E-2,2.8059614156563172E-2,2.9466476985654733E-2,3.0918864517361939E-2,3.2417467297974317E-2,3.3962974864479044E-2,3.5556075762282695E-2,3.7197457562345652E-2,3.8887806877757371E-2,4.0627809379779202E-2,4.241814981337954E-2,10,10,10,10,10,10,10,10,10,10,10,10]
[1000374033,54,3,7.7142857142857153,-0.5248906591678234,"Not Applicable","Not Applicable",3.7302714285714287,90.495685924941753,1.0584001615520949E-2,1.1117706196044316E-2,1.1668158544192762E-2,1.2235576541308146E-2,1.2820177040009317E-2,1.3422175886665352E-2,1.4041787943005819E-2,1.4679227106915316E-2,1.5334706332455605E-2,1.6008437649156285E-2,1.6700632180611713E-2,1.7411500162419602E-2,5,5,5,6,6,6,6,7,7,7,8,8]
[1000374059,54,4,10.285714285714286,0.52489065916782418,"Not Applicable","Not Applicable",3.8205285714285715,81.3586997951722,1.5563708186639956E-2,1.6375126640774437E-2,1.7213357447162774E-2,1.807879284687235E-2,1.897182384775074E-2,1.989284024947063E-2,2.084223066765066E-2,2.1820382557101111E-2,2.2827682234240088E-2,2.386451489872262E-2,2.4931264654322365E-2,2.6028314529103064E-2,7,7,8,8,9,9,9,10,10,10,10,10]
[1000374121,49,4,10.285714285714286,0.52489065916782418,"Not Applicable","Not Applicable",3.8205285714285715,81.3586997951722,1.1894983069304249E-2,1.2578268421978041E-2,1.3286385475045577E-2,1.4019733047602333E-2,1.4778708584450748E-2,1.5563708186639956E-2,1.6375126640774437E-2,1.7213357447162774E-2,1.807879284687235E-2,1.897182384775074E-2,1.989284024947063E-2,2.084223066765066E-2,6,6,6,6,7,7,7,8,8,9,9,9]
[1000374180,54,5,12.857142857142858,1.5746719775034717,"Not Applicable","Not Applicable",3.9107857142857139,73.504466067305898,2.2873562569482885E-2,2.4105252892835553E-2,2.5379695263869503E-2,2.6697584456155762E-2,2.8059614156563172E-2,2.9466476985654733E-2,3.0918864517361939E-2,3.2417467297974317E-2,3.3962974864479044E-2,3.5556075762282695E-2,3.7197457562345652E-2,3.8887806877757371E-2,10,10,10,10,10,10,10,10,10,10,10,10]
[1000374211,52,3,7.7142857142857153,-0.5248906591678234,"Not Applicable","Not Applicable",3.7302714285714287,90.495685924941753,9.5659589470802574E-3,1.0066825869171323E-2,1.0584001615520949E-2,1.1117706196044316E-2,1.1668158544192762E-2,1.2235576541308146E-2,1.2820177040009317E-2,1.3422175886665352E-2,1.4041787943005819E-2,1.4679227106915316E-2,1.5334706332455605E-2,1.6008437649156285E-2,5,5,5,5,5,6,6,6,6,7,7,7]
[1000374241,50,4,10.285714285714286,0.52489065916782418,"Not Applicable","Not Applicable",3.8205285714285715,81.3586997951722,1.2578268421978041E-2,1.3286385475045577E-2,1.4019733047602333E-2,1.4778708584450748E-2,1.5563708186639956E-2,1.6375126640774437E-2,1.7213357447162774E-2,1.807879284687235E-2,1.897182384775074E-2,1.989284024947063E-2,2.084223066765066E-2,2.1820382557101111E-2,6,6,6,7,7,7,8,8,9,9,9,10]
[1000374449,50,7,18,2.4494897427831779,"Not Applicable","Not Applicable",3.9859999999999998,67.779304104150881,2.5152941302056715E-2,2.6654480077496132E-2,2.8214475296682407E-2,2.9834035236418879E-2,3.1514267880760095E-2,3.3256280926509466E-2,3.5061181788515763E-2,3.6930077604778885E-2,3.8864075241375327E-2,4.0864281297212438E-2,4.2931802108620576E-2,4.5067743753790905E-2,10,10,10,10,10,10,10,10,10,10,10,10]
[1000374873,61,5,12.857142857142858,1.5746719775034717,"Not Applicable","Not Applicable",3.9107857142857139,73.504466067305898,3.2417467297974317E-2,3.3962974864479044E-2,3.5556075762282695E-2,3.7197457562345652E-2,3.8887806877757371E-2,4.0627809379779202E-2,4.241814981337954E-2,4.4259512012284778E-2,4.6152578913568033E-2,4.8098032571796387E-2,5.0096554172756012E-2,5.2148824046773637E-2,10,10,10,10,10,10,10,10,10,10,10,10]
[1000375968,14,3,7.7142857142857153,-0.5248906591678234,"Not Applicable","Not Applicable",3.7302714285714287,90.495685924941753,3.0481457753673766E-4,3.6354799700535629E-4,4.2898973991092209E-4,5.0144352382806639E-4,5.8120827885803231E-4,6.6857848357752608E-4,7.6384446101957697E-4,8.6729264120025411E-4,9.7920579538369025E-4,1.0998632462725082E-3,1.2295410575353508E-3,1.3685122054777532E-3,1,1,1,1,1,1,1,1,1,1,1,1]
[1000375980,14,3,7.7142857142857153,-0.5248906591678234,"Not Applicable","Not Applicable",3.7302714285714287,90.495685924941753,3.0481457753673766E-4,3.6354799700535629E-4,4.2898973991092209E-4,5.0144352382806639E-4,5.8120827885803231E-4,6.6857848357752608E-4,7.6384446101957697E-4,8.6729264120025411E-4,9.7920579538369025E-4,1.0998632462725082E-3,1.2295410575353508E-3,1.3685122054777532E-3,1,1,1,1,1,1,1,1,1,1,1,1]
[1000390269,12,3,7.7142857142857153,-0.5248906591678234,"Not Applicable","Not Applicable",3.7302714285714287,90.495685924941753,2.0623153716586059E-4,2.5248059226310387E-4,3.0481457753673766E-4,3.6354799700535629E-4,4.2898973991092209E-4,5.0144352382806639E-4,5.8120827885803231E-4,6.6857848357752608E-4,7.6384446101957697E-4,8.6729264120025411E-4,9.7920579538369025E-4,1.0998632462725082E-3,1,1,1,1,1,1,1,1,1,1,1,1]
[1000391949,65,3,7.7142857142857153,-0.5248906591678234,"Not Applicable","Not Applicable",3.7302714285714287,90.495685924941753,1.7411500162419602E-2,1.814125095949445E-2,1.8890093082786507E-2,1.9658234205435516E-2,2.0445881178386079E-2,2.1253240045490361E-2,2.2080516058121877E-2,2.2927913689322881E-2,2.3795636647506585E-2,2.4683887889733965E-2,2.5592869634584087E-2,2.6522783374635497E-2,8,8,8,9,9,9,10,10,10,10,10,10]
[1000395044,64,4,10.285714285714286,0.52489065916782418,"Not Applicable","Not Applicable",3.8205285714285715,81.3586997951722,2.4931264654322365E-2,2.6028314529103064E-2,2.7156046494914328E-2,2.8314841486244462E-2,2.9505079418460589E-2,3.0727139205464868E-2,3.198139877679361E-2,3.3268235094184535E-2,3.4588024167636067E-2,3.5941141070980967E-2,3.7327959956995525E-2,3.8748854072064146E-2,10,10,10,10,10,10,10,10,10,10,10,10]
[1000395120,59,5,12.857142857142858,1.5746719775034717,"Not Applicable","Not Applicable",3.9107857142857139,73.504466067305898,2.9466476985654733E-2,3.0918864517361939E-2,3.2417467297974317E-2,3.3962974864479044E-2,3.5556075762282695E-2,3.7197457562345652E-2,3.8887806877757371E-2,4.0627809379779202E-2,4.241814981337954E-2,4.4259512012284778E-2,4.6152578913568033E-2,4.8098032571796387E-2,10,10,10,10,10,10,10,10,10,10,10,10]
[1000395215,55,3,7.7142857142857153,-0.5248906591678234,"Not Applicable","Not Applicable",3.7302714285714287,90.495685924941753,1.1117706196044316E-2,1.1668158544192762E-2,1.2235576541308146E-2,1.2820177040009317E-2,1.3422175886665352E-2,1.4041787943005819E-2,1.4679227106915316E-2,1.5334706332455605E-2,1.6008437649156285E-2,1.6700632180611713E-2,1.7411500162419602E-2,1.814125095949445E-2,5,5,6,6,6,6,7,7,7,8,8,8]
[1000395235,55,5,12.857142857142858,1.5746719775034717,"Not Applicable","Not Applicable",3.9107857142857139,73.504466067305898,2.4105252892835553E-2,2.5379695263869503E-2,2.6697584456155762E-2,2.8059614156563172E-2,2.9466476985654733E-2,3.0918864517361939E-2,3.2417467297974317E-2,3.3962974864479044E-2,3.5556075762282695E-2,3.7197457562345652E-2,3.8887806877757371E-2,4.0627809379779202E-2,10,10,10,10,10,10,10,10,10,10,10,10]
[1000395352,24,3,7.7142857142857153,-0.5248906591678234,"Not Applicable","Not Applicable",3.7302714285714287,90.495685924941753,1.2295410575353508E-3,1.3685122054777532E-3,1.5170467351845634E-3,1.6754119030806872E-3,1.8438723075499394E-3,2.0226900090022917E-3,2.2121246405756847E-3,2.4124335104901656E-3,2.6238716969322626E-3,2.8466921362306987E-3,3.0811457049862911E-3,3.3274812967358422E-3,1,1,1,1,1,1,1,2,2,2,2,2]
[1000395372,25,3,7.7142857142857153,-0.5248906591678234,"Not Applicable","Not Applicable",3.7302714285714287,90.495685924941753,1.3685122054777532E-3,1.5170467351845634E-3,1.6754119030806872E-3,1.8438723075499394E-3,2.0226900090022917E-3,2.2121246405756847E-3,2.4124335104901656E-3,2.6238716969322626E-3,2.8466921362306987E-3,3.0811457049862911E-3,3.3274812967358422E-3,3.585945893659289E-3,1,1,1,1,1,1,2,2,2,2,2,2]
[1000395408,15,3,7.7142857142857153,-0.5248906591678234,"Not Applicable","Not Applicable",3.7302714285714287,90.495685924941753,3.6354799700535629E-4,4.2898973991092209E-4,5.0144352382806639E-4,5.8120827885803231E-4,6.6857848357752608E-4,7.6384446101957697E-4,8.6729264120025411E-4,9.7920579538369025E-4,1.0998632462725082E-3,1.2295410575353508E-3,1.3685122054777532E-3,1.5170467351845634E-3,1,1,1,1,1,1,1,1,1,1,1,1]
[1000395428,15,3,7.7142857142857153,-0.5248906591678234,"Not Applicable","Not Applicable",3.7302714285714287,90.495685924941753,3.6354799700535629E-4,4.2898973991092209E-4,5.0144352382806639E-4,5.8120827885803231E-4,6.6857848357752608E-4,7.6384446101957697E-4,8.6729264120025411E-4,9.7920579538369025E-4,1.0998632462725082E-3,1.2295410575353508E-3,1.3685122054777532E-3,1.5170467351845634E-3,1,1,1,1,1,1,1,1,1,1,1,1]
[1000395446,15,3,7.7142857142857153,-0.5248906591678234,"Not Applicable","Not Applicable",3.7302714285714287,90.495685924941753,3.6354799700535629E-4,4.2898973991092209E-4,5.0144352382806639E-4,5.8120827885803231E-4,6.6857848357752608E-4,7.6384446101957697E-4,8.6729264120025411E-4,9.7920579538369025E-4,1.0998632462725082E-3,1.2295410575353508E-3,1.3685122054777532E-3,1.5170467351845634E-3,1,1,1,1,1,1,1,1,1,1,1,1]
[1000395463,14,3,7.7142857142857153,-0.5248906591678234,"Not Applicable","Not Applicable",3.7302714285714287,90.495685924941753,3.0481457753673766E-4,3.6354799700535629E-4,4.2898973991092209E-4,5.0144352382806639E-4,5.8120827885803231E-4,6.6857848357752608E-4,7.6384446101957697E-4,8.6729264120025411E-4,9.7920579538369025E-4,1.0998632462725082E-3,1.2295410575353508E-3,1.3685122054777532E-3,1,1,1,1,1,1,1,1,1,1,1,1]
[1000395483,14,3,7.7142857142857153,-0.5248906591678234,"Not Applicable","Not Applicable",3.7302714285714287,90.495685924941753,3.0481457753673766E-4,3.6354799700535629E-4,4.2898973991092209E-4,5.0144352382806639E-4,5.8120827885803231E-4,6.6857848357752608E-4,7.6384446101957697E-4,8.6729264120025411E-4,9.7920579538369025E-4,1.0998632462725082E-3,1.2295410575353508E-3,1.3685122054777532E-3,1,1,1,1,1,1,1,1,1,1,1,1]
[1000395500,14,3,7.7142857142857153,-0.5248906591678234,"Not Applicable","Not Applicable",3.7302714285714287,90.495685924941753,3.0481457753673766E-4,3.6354799700535629E-4,4.2898973991092209E-4,5.0144352382806639E-4,5.8120827885803231E-4,6.6857848357752608E-4,7.6384446101957697E-4,8.6729264120025411E-4,9.7920579538369025E-4,1.0998632462725082E-3,1.2295410575353508E-3,1.3685122054777532E-3,1,1,1,1,1,1,1,1,1,1,1,1]
[1000395521,14,3,7.7142857142857153,-0.5248906591678234,"Not Applicable","Not Applicable",3.7302714285714287,90.495685924941753,3.0481457753673766E-4,3.6354799700535629E-4,4.2898973991092209E-4,5.0144352382806639E-4,5.8120827885803231E-4,6.6857848357752608E-4,7.6384446101957697E-4,8.6729264120025411E-4,9.7920579538369025E-4,1.0998632462725082E-3,1.2295410575353508E-3,1.3685122054777532E-3,1,1,1,1,1,1,1,1,1,1,1,1]
[1000395538,11,3,7.7142857142857153,-0.5248906591678234,"Not Applicable","Not Applicable",3.7302714285714287,90.495685924941753,1.6574677744421492E-4,2.0623153716586059E-4,2.5248059226310387E-4,3.0481457753673766E-4,3.6354799700535629E-4,4.2898973991092209E-4,5.0144352382806639E-4,5.8120827885803231E-4,6.6857848357752608E-4,7.6384446101957697E-4,8.6729264120025411E-4,9.7920579538369025E-4,1,1,1,1,1,1,1,1,1,1,1,1]
[1000395577,11,3,7.7142857142857153,-0.5248906591678234,"Not Applicable","Not Applicable",3.7302714285714287,90.495685924941753,1.6574677744421492E-4,2.0623153716586059E-4,2.5248059226310387E-4,3.0481457753673766E-4,3.6354799700535629E-4,4.2898973991092209E-4,5.0144352382806639E-4,5.8120827885803231E-4,6.6857848357752608E-4,7.6384446101957697E-4,8.6729264120025411E-4,9.7920579538369025E-4,1,1,1,1,1,1,1,1,1,1,1,1]
[1000395597,12,3,7.7142857142857153,-0.5248906591678234,"Not Applicable","Not Applicable",3.7302714285714287,90.495685924941753,2.0623153716586059E-4,2.5248059226310387E-4,3.0481457753673766E-4,3.6354799700535629E-4,4.2898973991092209E-4,5.0144352382806639E-4,5.8120827885803231E-4,6.6857848357752608E-4,7.6384446101957697E-4,8.6729264120025411E-4,9.7920579538369025E-4,1.0998632462725082E-3,1,1,1,1,1,1,1,1,1,1,1,1]
[1000395616,12,3,7.7142857142857153,-0.5248906591678234,"Not Applicable","Not Applicable",3.7302714285714287,90.495685924941753,2.0623153716586059E-4,2.5248059226310387E-4,3.0481457753673766E-4,3.6354799700535629E-4,4.2898973991092209E-4,5.0144352382806639E-4,5.8120827885803231E-4,6.6857848357752608E-4,7.6384446101957697E-4,8.6729264120025411E-4,9.7920579538369025E-4,1.0998632462725082E-3,1,1,1,1,1,1,1,1,1,1,1,1]
[1000395639,10,4,10.285714285714286,0.52489065916782418,"Not Applicable","Not Applicable",3.8205285714285715,81.3586997951722,1.6620657937236637E-4,2.1243786456389763E-4,2.6624376195765007E-4,3.2813855412830157E-4,3.9862945674647062E-4,4.7821721233844475E-4,5.6739659787015233E-4,6.6665686328333973E-4,7.7648211389553861E-4,8.9735164657497933E-4,1.029740247420469E-3,1.1741184570606318E-3,1,1,1,1,1,1,1,1,1,1,1,1]
[1000395669,12,3,7.7142857142857153,-0.5248906591678234,"Not Applicable","Not Applicable",3.7302714285714287,90.495685924941753,2.0623153716586059E-4,2.5248059226310387E-4,3.0481457753673766E-4,3.6354799700535629E-4,4.2898973991092209E-4,5.0144352382806639E-4,5.8120827885803231E-4,6.6857848357752608E-4,7.6384446101957697E-4,8.6729264120025411E-4,9.7920579538369025E-4,1.0998632462725082E-3,1,1,1,1,1,1,1,1,1,1,1,1]
[1000395733,11,3,7.7142857142857153,-0.5248906591678234,"Not Applicable","Not Applicable",3.7302714285714287,90.495685924941753,1.6574677744421492E-4,2.0623153716586059E-4,2.5248059226310387E-4,3.0481457753673766E-4,3.6354799700535629E-4,4.2898973991092209E-4,5.0144352382806639E-4,5.8120827885803231E-4,6.6857848357752608E-4,7.6384446101957697E-4,8.6729264120025411E-4,9.7920579538369025E-4,1,1,1,1,1,1,1,1,1,1,1,1]
[1000395763,11,3,7.7142857142857153,-0.5248906591678234,"Not Applicable","Not Applicable",3.7302714285714287,90.495685924941753,1.6574677744421492E-4,2.0623153716586059E-4,2.5248059226310387E-4,3.0481457753673766E-4,3.6354799700535629E-4,4.2898973991092209E-4,5.0144352382806639E-4,5.8120827885803231E-4,6.6857848357752608E-4,7.6384446101957697E-4,8.6729264120025411E-4,9.7920579538369025E-4,1,1,1,1,1,1,1,1,1,1,1,1]
[1000395789,11,3,7.7142857142857153,-0.5248906591678234,"Not Applicable","Not Applicable",3.7302714285714287,90.495685924941753,1.6574677744421492E-4,2.0623153716586059E-4,2.5248059226310387E-4,3.0481457753673766E-4,3.6354799700535629E-4,4.2898973991092209E-4,5.0144352382806639E-4,5.8120827885803231E-4,6.6857848357752608E-4,7.6384446101957697E-4,8.6729264120025411E-4,9.7920579538369025E-4,1,1,1,1,1,1,1,1,1,1,1,1]
[1000395818,11,3,7.7142857142857153,-0.5248906591678234,"Not Applicable","Not Applicable",3.7302714285714287,90.495685924941753,1.6574677744421492E-4,2.0623153716586059E-4,2.5248059226310387E-4,3.0481457753673766E-4,3.6354799700535629E-4,4.2898973991092209E-4,5.0144352382806639E-4,5.8120827885803231E-4,6.6857848357752608E-4,7.6384446101957697E-4,8.6729264120025411E-4,9.7920579538369025E-4,1,1,1,1,1,1,1,1,1,1,1,1]
[1000395877,11,3,7.7142857142857153,-0.5248906591678234,"Not Applicable","Not Applicable",3.7302714285714287,90.495685924941753,1.6574677744421492E-4,2.0623153716586059E-4,2.5248059226310387E-4,3.0481457753673766E-4,3.6354799700535629E-4,4.2898973991092209E-4,5.0144352382806639E-4,5.8120827885803231E-4,6.6857848357752608E-4,7.6384446101957697E-4,8.6729264120025411E-4,9.7920579538369025E-4,1,1,1,1,1,1,1,1,1,1,1,1]
[1000395930,10,3,7.7142857142857153,-0.5248906591678234,"Not Applicable","Not Applicable",3.7302714285714287,90.495685924941753,1.3069893995203767E-4,1.6574677744421492E-4,2.0623153716586059E-4,2.5248059226310387E-4,3.0481457753673766E-4,3.6354799700535629E-4,4.2898973991092209E-4,5.0144352382806639E-4,5.8120827885803231E-4,6.6857848357752608E-4,7.6384446101957697E-4,8.6729264120025411E-4,1,1,1,1,1,1,1,1,1,1,1,1]
[1000395955,11,3,7.7142857142857153,-0.5248906591678234,"Not Applicable","Not Applicable",3.7302714285714287,90.495685924941753,1.6574677744421492E-4,2.0623153716586059E-4,2.5248059226310387E-4,3.0481457753673766E-4,3.6354799700535629E-4,4.2898973991092209E-4,5.0144352382806639E-4,5.8120827885803231E-4,6.6857848357752608E-4,7.6384446101957697E-4,8.6729264120025411E-4,9.7920579538369025E-4,1,1,1,1,1,1,1,1,1,1,1,1]
[1000395984,10,3,7.7142857142857153,-0.5248906591678234,"Not Applicable","Not Applicable",3.7302714285714287,90.495685924941753,1.3069893995203767E-4,1.6574677744421492E-4,2.0623153716586059E-4,2.5248059226310387E-4,3.0481457753673766E-4,3.6354799700535629E-4,4.2898973991092209E-4,5.0144352382806639E-4,5.8120827885803231E-4,6.6857848357752608E-4,7.6384446101957697E-4,8.6729264120025411E-4,1,1,1,1,1,1,1,1,1,1,1,1]
[1000400013,11,3,7.7142857142857153,-0.5248906591678234,"Not Applicable","Not Applicable",3.7302714285714287,90.495685924941753,1.6574677744421492E-4,2.0623153716586059E-4,2.5248059226310387E-4,3.0481457753673766E-4,3.6354799700535629E-4,4.2898973991092209E-4,5.0144352382806639E-4,5.8120827885803231E-4,6.6857848357752608E-4,7.6384446101957697E-4,8.6729264120025411E-4,9.7920579538369025E-4,1,1,1,1,1,1,1,1,1,1,1,1]
[1000400036,10,3,7.7142857142857153,-0.5248906591678234,"Not Applicable","Not Applicable",3.7302714285714287,90.495685924941753,1.3069893995203767E-4,1.6574677744421492E-4,2.0623153716586059E-4,2.5248059226310387E-4,3.0481457753673766E-4,3.6354799700535629E-4,4.2898973991092209E-4,5.0144352382806639E-4,5.8120827885803231E-4,6.6857848357752608E-4,7.6384446101957697E-4,8.6729264120025411E-4,1,1,1,1,1,1,1,1,1,1,1,1]
[1000400062,10,3,7.7142857142857153,-0.5248906591678234,"Not Applicable","Not Applicable",3.7302714285714287,90.495685924941753,1.3069893995203767E-4,1.6574677744421492E-4,2.0623153716586059E-4,2.5248059226310387E-4,3.0481457753673766E-4,3.6354799700535629E-4,4.2898973991092209E-4,5.0144352382806639E-4,5.8120827885803231E-4,6.6857848357752608E-4,7.6384446101957697E-4,8.6729264120025411E-4,1,1,1,1,1,1,1,1,1,1,1,1]
[1000400113,10,5,12.857142857142858,1.5746719775034717,"Not Applicable","Not Applicable",3.9107857142857139,73.504466067305898,2.1124279647594934E-4,2.7212993086824752E-4,3.4352737722408036E-4,4.2623005509803528E-4,5.2102743601057505E-4,6.2870396749631222E-4,7.5003943798022097E-4,8.8580929394114865E-4,1.0367849180545194E-3,1.2037338750248488E-3,1.387420130370311E-3,1.5886042463430481E-3,1,1,1,1,1,1,1,1,1,1,1,1]
[1000400141,10,3,7.7142857142857153,-0.5248906591678234,"Not Applicable","Not Applicable",3.7302714285714287,90.495685924941753,1.3069893995203767E-4,1.6574677744421492E-4,2.0623153716586059E-4,2.5248059226310387E-4,3.0481457753673766E-4,3.6354799700535629E-4,4.2898973991092209E-4,5.0144352382806639E-4,5.8120827885803231E-4,6.6857848357752608E-4,7.6384446101957697E-4,8.6729264120025411E-4,1,1,1,1,1,1,1,1,1,1,1,1]
[1000400168,10,3,7.7142857142857153,-0.5248906591678234,"Not Applicable","Not Applicable",3.7302714285714287,90.495685924941753,1.3069893995203767E-4,1.6574677744421492E-4,2.0623153716586059E-4,2.5248059226310387E-4,3.0481457753673766E-4,3.6354799700535629E-4,4.2898973991092209E-4,5.0144352382806639E-4,5.8120827885803231E-4,6.6857848357752608E-4,7.6384446101957697E-4,8.6729264120025411E-4,1,1,1,1,1,1,1,1,1,1,1,1]
[1000400193,10,3,7.7142857142857153,-0.5248906591678234,"Not Applicable","Not Applicable",3.7302714285714287,90.495685924941753,1.3069893995203767E-4,1.6574677744421492E-4,2.0623153716586059E-4,2.5248059226310387E-4,3.0481457753673766E-4,3.6354799700535629E-4,4.2898973991092209E-4,5.0144352382806639E-4,5.8120827885803231E-4,6.6857848357752608E-4,7.6384446101957697E-4,8.6729264120025411E-4,1,1,1,1,1,1,1,1,1,1,1,1]
[1000400222,10,3,7.7142857142857153,-0.5248906591678234,"Not Applicable","Not Applicable",3.7302714285714287,90.495685924941753,1.3069893995203767E-4,1.6574677744421492E-4,2.0623153716586059E-4,2.5248059226310387E-4,3.0481457753673766E-4,3.6354799700535629E-4,4.2898973991092209E-4,5.0144352382806639E-4,5.8120827885803231E-4,6.6857848357752608E-4,7.6384446101957697E-4,8.6729264120025411E-4,1,1,1,1,1,1,1,1,1,1,1,1]
[1000400253,10,3,7.7142857142857153,-0.5248906591678234,"Not Applicable","Not Applicable",3.7302714285714287,90.495685924941753,1.3069893995203767E-4,1.6574677744421492E-4,2.0623153716586059E-4,2.5248059226310387E-4,3.0481457753673766E-4,3.6354799700535629E-4,4.2898973991092209E-4,5.0144352382806639E-4,5.8120827885803231E-4,6.6857848357752608E-4,7.6384446101957697E-4,8.6729264120025411E-4,1,1,1,1,1,1,1,1,1,1,1,1]
[1000400282,11,3,7.7142857142857153,-0.5248906591678234,"Not Applicable","Not Applicable",3.7302714285714287,90.495685924941753,1.6574677744421492E-4,2.0623153716586059E-4,2.5248059226310387E-4,3.0481457753673766E-4,3.6354799700535629E-4,4.2898973991092209E-4,5.0144352382806639E-4,5.8120827885803231E-4,6.6857848357752608E-4,7.6384446101957697E-4,8.6729264120025411E-4,9.7920579538369025E-4,1,1,1,1,1,1,1,1,1,1,1,1]
[1000400309,10,3,7.7142857142857153,-0.5248906591678234,"Not Applicable","Not Applicable",3.7302714285714287,90.495685924941753,1.3069893995203767E-4,1.6574677744421492E-4,2.0623153716586059E-4,2.5248059226310387E-4,3.0481457753673766E-4,3.6354799700535629E-4,4.2898973991092209E-4,5.0144352382806639E-4,5.8120827885803231E-4,6.6857848357752608E-4,7.6384446101957697E-4,8.6729264120025411E-4,1,1,1,1,1,1,1,1,1,1,1,1]
[1000400338,10,3,7.7142857142857153,-0.5248906591678234,"Not Applicable","Not Applicable",3.7302714285714287,90.495685924941753,1.3069893995203767E-4,1.6574677744421492E-4,2.0623153716586059E-4,2.5248059226310387E-4,3.0481457753673766E-4,3.6354799700535629E-4,4.2898973991092209E-4,5.0144352382806639E-4,5.8120827885803231E-4,6.6857848357752608E-4,7.6384446101957697E-4,8.6729264120025411E-4,1,1,1,1,1,1,1,1,1,1,1,1]
[1000400470,45,5,12.857142857142858,1.5746719775034717,"Not Applicable","Not Applicable",3.9107857142857139,73.504466067305898,1.3596987553130841E-2,1.4475364719978449E-2,1.5390188291110024E-2,1.6342163879736665E-2,1.7331995788610808E-2,1.8360387039138018E-2,1.9428039399273088E-2,2.0535653410273788E-2,2.1683928412380312E-2,2.2873562569482885E-2,2.4105252892835553E-2,2.5379695263869503E-2,6,7,7,7,8,8,9,9,10,10,10,10]
[1000400498,45,3,7.7142857142857153,-0.5248906591678234,"Not Applicable","Not Applicable",3.7302714285714287,90.495685924941753,6.4978184281262443E-3,6.8907799008476036E-3,7.2984777089150181E-3,7.7211401743552781E-3,8.1589943395509699E-3,8.6122660003184921E-3,9.0811797374878503E-3,9.5659589470802574E-3,1.0066825869171323E-2,1.0584001615520949E-2,1.1117706196044316E-2,1.1668158544192762E-2,3,3,4,4,4,4,4,5,5,5,5,5]
[1000400520,42,3,7.7142857142857153,-0.5248906591678234,"Not Applicable","Not Applicable",3.7302714285714287,90.495685924941753,5.4050488666682849E-3,5.7551845925922921E-3,6.1193636543992605E-3,6.4978184281262443E-3,6.8907799008476036E-3,7.2984777089150181E-3,7.7211401743552781E-3,8.1589943395509699E-3,8.6122660003184921E-3,9.0811797374878503E-3,9.5659589470802574E-3,1.0066825869171323E-2,3,3,3,3,3,4,4,4,4,4,5,5]
[1000400548,44,5,12.857142857142858,1.5746719775034717,"Not Applicable","Not Applicable",3.9107857142857139,73.504466067305898,1.2754349836489721E-2,1.3596987553130841E-2,1.4475364719978449E-2,1.5390188291110024E-2,1.6342163879736665E-2,1.7331995788610808E-2,1.8360387039138018E-2,1.9428039399273088E-2,2.0535653410273788E-2,2.1683928412380312E-2,2.2873562569482885E-2,2.4105252892835553E-2,6,6,7,7,7,8,8,9,9,10,10,10]
[1000400598,43,5,12.857142857142858,1.5746719775034717,"Not Applicable","Not Applicable",3.9107857142857139,73.504466067305898,1.1946743243320439E-2,1.2754349836489721E-2,1.3596987553130841E-2,1.4475364719978449E-2,1.5390188291110024E-2,1.6342163879736665E-2,1.7331995788610808E-2,1.8360387039138018E-2,1.9428039399273088E-2,2.0535653410273788E-2,2.1683928412380312E-2,2.2873562569482885E-2,6,6,6,7,7,7,8,8,9,9,10,10]
[1000400719,64,4,10.285714285714286,0.52489065916782418,"Not Applicable","Not Applicable",3.8205285714285715,81.3586997951722,2.4931264654322365E-2,2.6028314529103064E-2,2.7156046494914328E-2,2.8314841486244462E-2,2.9505079418460589E-2,3.0727139205464868E-2,3.198139877679361E-2,3.3268235094184535E-2,3.4588024167636067E-2,3.5941141070980967E-2,3.7327959956995525E-2,3.8748854072064146E-2,10,10,10,10,10,10,10,10,10,10,10,10]
[1000400757,61,5,12.857142857142858,1.5746719775034717,"Not Applicable","Not Applicable",3.9107857142857139,73.504466067305898,3.2417467297974317E-2,3.3962974864479044E-2,3.5556075762282695E-2,3.7197457562345652E-2,3.8887806877757371E-2,4.0627809379779202E-2,4.241814981337954E-2,4.4259512012284778E-2,4.6152578913568033E-2,4.8098032571796387E-2,5.0096554172756012E-2,5.2148824046773637E-2,10,10,10,10,10,10,10,10,10,10,10,10]
[1000400775,61,4,10.285714285714286,0.52489065916782418,"Not Applicable","Not Applicable",3.8205285714285715,81.3586997951722,2.1820382557101111E-2,2.2827682234240088E-2,2.386451489872262E-2,2.4931264654322365E-2,2.6028314529103064E-2,2.7156046494914328E-2,2.8314841486244462E-2,2.9505079418460589E-2,3.0727139205464868E-2,3.198139877679361E-2,3.3268235094184535E-2,3.4588024167636067E-2,10,10,10,10,10,10,10,10,10,10,10,10]
[1000400898,40,7,18,2.4494897427831779,"Not Applicable","Not Applicable",3.9859999999999998,67.779304104150881,1.310861558075254E-2,1.4086613946669777E-2,1.511196850714628E-2,1.618579082286186E-2,1.7309192092585805E-2,1.8483283161518895E-2,1.9709174529261887E-2,2.0987976357435021E-2,2.2320798476970879E-2,2.3708750395101268E-2,2.5152941302056715E-2,2.6654480077496132E-2,6,6,7,7,8,8,9,9,10,10,10,10]
[1000400926,47,4,10.285714285714286,0.52489065916782418,"Not Applicable","Not Applicable",3.8205285714285715,81.3586997951722,1.0601305124814272E-2,1.1236129191788151E-2,1.1894983069304249E-2,1.2578268421978041E-2,1.3286385475045577E-2,1.4019733047602333E-2,1.4778708584450748E-2,1.5563708186639956E-2,1.6375126640774437E-2,1.7213357447162774E-2,1.807879284687235E-2,1.897182384775074E-2,5,5,6,6,6,6,7,7,7,8,8,9]
[1000400951,47,3,7.7142857142857153,-0.5248906591678234,"Not Applicable","Not Applicable",3.7302714285714287,90.495685924941753,7.2984777089150181E-3,7.7211401743552781E-3,8.1589943395509699E-3,8.6122660003184921E-3,9.0811797374878503E-3,9.5659589470802574E-3,1.0066825869171323E-2,1.0584001615520949E-2,1.1117706196044316E-2,1.1668158544192762E-2,1.2235576541308146E-2,1.2820177040009317E-2,4,4,4,4,4,5,5,5,5,5,6,6]
[1000400977,56,3,7.7142857142857153,-0.5248906591678234,"Not Applicable","Not Applicable",3.7302714285714287,90.495685924941753,1.1668158544192762E-2,1.2235576541308146E-2,1.2820177040009317E-2,1.3422175886665352E-2,1.4041787943005819E-2,1.4679227106915316E-2,1.5334706332455605E-2,1.6008437649156285E-2,1.6700632180611713E-2,1.7411500162419602E-2,1.814125095949445E-2,1.8890093082786507E-2,5,6,6,6,6,7,7,7,8,8,8,8]
[1000404003,40,3,7.7142857142857153,-0.5248906591678234,"Not Applicable","Not Applicable",3.7302714285714287,90.495685924941753,4.7459707300582417E-3,5.0687226714077492E-3,5.4050488666682849E-3,5.7551845925922921E-3,6.1193636543992605E-3,6.4978184281262443E-3,6.8907799008476036E-3,7.2984777089150181E-3,7.7211401743552781E-3,8.1589943395509699E-3,8.6122660003184921E-3,9.0811797374878503E-3,3,3,3,3,3,3,3,4,4,4,4,4]
[1000404028,40,3,7.7142857142857153,-0.5248906591678234,"Not Applicable","Not Applicable",3.7302714285714287,90.495685924941753,4.7459707300582417E-3,5.0687226714077492E-3,5.4050488666682849E-3,5.7551845925922921E-3,6.1193636543992605E-3,6.4978184281262443E-3,6.8907799008476036E-3,7.2984777089150181E-3,7.7211401743552781E-3,8.1589943395509699E-3,8.6122660003184921E-3,9.0811797374878503E-3,3,3,3,3,3,3,3,4,4,4,4,4]
[1000404055,27,3,7.7142857142857153,-0.5248906591678234,"Not Applicable","Not Applicable",3.7302714285714287,90.495685924941753,1.6754119030806872E-3,1.8438723075499394E-3,2.0226900090022917E-3,2.2121246405756847E-3,2.4124335104901656E-3,2.6238716969322626E-3,2.8466921362306987E-3,3.0811457049862911E-3,3.3274812967358422E-3,3.585945893659289E-3,3.8567846337791045E-3,4.1402408740492556E-3,1,1,1,1,2,2,2,2,2,2,2,2]
[1000404080,27,3,7.7142857142857153,-0.5248906591678234,"Not Applicable","Not Applicable",3.7302714285714287,90.495685924941753,1.6754119030806872E-3,1.8438723075499394E-3,2.0226900090022917E-3,2.2121246405756847E-3,2.4124335104901656E-3,2.6238716969322626E-3,2.8466921362306987E-3,3.0811457049862911E-3,3.3274812967358422E-3,3.585945893659289E-3,3.8567846337791045E-3,4.1402408740492556E-3,1,1,1,1,2,2,2,2,2,2,2,2]
[1000404108,36,3,7.7142857142857153,-0.5248906591678234,"Not Applicable","Not Applicable",3.7302714285714287,90.495685924941753,3.585945893659289E-3,3.8567846337791045E-3,4.1402408740492556E-3,4.4365562496864993E-3,4.7459707300582417E-3,5.0687226714077492E-3,5.4050488666682849E-3,5.7551845925922921E-3,6.1193636543992605E-3,6.4978184281262443E-3,6.8907799008476036E-3,7.2984777089150181E-3,2,2,2,2,3,3,3,3,3,3,3,4]
[1000404159,55,3,7.7142857142857153,-0.5248906591678234,"Not Applicable","Not Applicable",3.7302714285714287,90.495685924941753,1.1117706196044316E-2,1.1668158544192762E-2,1.2235576541308146E-2,1.2820177040009317E-2,1.3422175886665352E-2,1.4041787943005819E-2,1.4679227106915316E-2,1.5334706332455605E-2,1.6008437649156285E-2,1.6700632180611713E-2,1.7411500162419602E-2,1.814125095949445E-2,5,5,6,6,6,6,7,7,7,8,8,8]
[1000404179,8,3,7.7142857142857153,-0.5248906591678234,"Not Applicable","Not Applicable",3.7302714285714287,90.495685924941753,7.556634738586488E-5,1.0075318863237906E-4,1.3069893995203767E-4,1.6574677744421492E-4,2.0623153716586059E-4,2.5248059226310387E-4,3.0481457753673766E-4,3.6354799700535629E-4,4.2898973991092209E-4,5.0144352382806639E-4,5.8120827885803231E-4,6.6857848357752608E-4,1,1,1,1,1,1,1,1,1,1,1,1]
[1000404301,50,3,7.7142857142857153,-0.5248906591678234,"Not Applicable","Not Applicable",3.7302714285714287,90.495685924941753,8.6122660003184921E-3,9.0811797374878503E-3,9.5659589470802574E-3,1.0066825869171323E-2,1.0584001615520949E-2,1.1117706196044316E-2,1.1668158544192762E-2,1.2235576541308146E-2,1.2820177040009317E-2,1.3422175886665352E-2,1.4041787943005819E-2,1.4679227106915316E-2,4,4,5,5,5,5,5,6,6,6,6,7]
[1000404323,50,3,7.7142857142857153,-0.5248906591678234,"Not Applicable","Not Applicable",3.7302714285714287,90.495685924941753,8.6122660003184921E-3,9.0811797374878503E-3,9.5659589470802574E-3,1.0066825869171323E-2,1.0584001615520949E-2,1.1117706196044316E-2,1.1668158544192762E-2,1.2235576541308146E-2,1.2820177040009317E-2,1.3422175886665352E-2,1.4041787943005819E-2,1.4679227106915316E-2,4,4,5,5,5,5,5,6,6,6,6,7]
[1000404408,56,5,12.857142857142858,1.5746719775034717,"Not Applicable","Not Applicable",3.9107857142857139,73.504466067305898,2.5379695263869503E-2,2.6697584456155762E-2,2.8059614156563172E-2,2.9466476985654733E-2,3.0918864517361939E-2,3.2417467297974317E-2,3.3962974864479044E-2,3.5556075762282695E-2,3.7197457562345652E-2,3.8887806877757371E-2,4.0627809379779202E-2,4.241814981337954E-2,10,10,10,10,10,10,10,10,10,10,10,10]
[1000404433,55,3,7.7142857142857153,-0.5248906591678234,"Not Applicable","Not Applicable",3.7302714285714287,90.495685924941753,1.1117706196044316E-2,1.1668158544192762E-2,1.2235576541308146E-2,1.2820177040009317E-2,1.3422175886665352E-2,1.4041787943005819E-2,1.4679227106915316E-2,1.5334706332455605E-2,1.6008437649156285E-2,1.6700632180611713E-2,1.7411500162419602E-2,1.814125095949445E-2,5,5,6,6,6,6,7,7,7,8,8,8]
[1000404524,44,3,7.7142857142857153,-0.5248906591678234,"Not Applicable","Not Applicable",3.7302714285714287,90.495685924941753,6.1193636543992605E-3,6.4978184281262443E-3,6.8907799008476036E-3,7.2984777089150181E-3,7.7211401743552781E-3,8.1589943395509699E-3,8.6122660003184921E-3,9.0811797374878503E-3,9.5659589470802574E-3,1.0066825869171323E-2,1.0584001615520949E-2,1.1117706196044316E-2,3,3,3,4,4,4,4,4,5,5,5,5]
[1000404605,47,3,7.7142857142857153,-0.5248906591678234,"Not Applicable","Not Applicable",3.7302714285714287,90.495685924941753,7.2984777089150181E-3,7.7211401743552781E-3,8.1589943395509699E-3,8.6122660003184921E-3,9.0811797374878503E-3,9.5659589470802574E-3,1.0066825869171323E-2,1.0584001615520949E-2,1.1117706196044316E-2,1.1668158544192762E-2,1.2235576541308146E-2,1.2820177040009317E-2,4,4,4,4,4,5,5,5,5,5,6,6]
[1000404625,47,3,7.7142857142857153,-0.5248906591678234,"Not Applicable","Not Applicable",3.7302714285714287,90.495685924941753,7.2984777089150181E-3,7.7211401743552781E-3,8.1589943395509699E-3,8.6122660003184921E-3,9.0811797374878503E-3,9.5659589470802574E-3,1.0066825869171323E-2,1.0584001615520949E-2,1.1117706196044316E-2,1.1668158544192762E-2,1.2235576541308146E-2,1.2820177040009317E-2,4,4,4,4,4,5,5,5,5,5,6,6]
[1000404725,47,4,10.285714285714286,0.52489065916782418,"Not Applicable","Not Applicable",3.8205285714285715,81.3586997951722,1.0601305124814272E-2,1.1236129191788151E-2,1.1894983069304249E-2,1.2578268421978041E-2,1.3286385475045577E-2,1.4019733047602333E-2,1.4778708584450748E-2,1.5563708186639956E-2,1.6375126640774437E-2,1.7213357447162774E-2,1.807879284687235E-2,1.897182384775074E-2,5,5,6,6,6,6,7,7,7,8,8,9]
[1000404743,47,6,15.428571428571431,2.4494897427831779,"Not Applicable","Not Applicable",3.9859999999999998,67.779304104150881,2.0987976357435021E-2,2.2320798476970879E-2,2.3708750395101268E-2,2.5152941302056715E-2,2.6654480077496132E-2,2.8214475296682407E-2,2.9834035236418879E-2,3.1514267880760095E-2,3.3256280926509466E-2,3.5061181788515763E-2,3.6930077604778885E-2,3.8864075241375327E-2,9,10,10,10,10,10,10,10,10,10,10,10]
[1000404873,47,4,10.285714285714286,0.52489065916782418,"Not Applicable","Not Applicable",3.8205285714285715,81.3586997951722,1.0601305124814272E-2,1.1236129191788151E-2,1.1894983069304249E-2,1.2578268421978041E-2,1.3286385475045577E-2,1.4019733047602333E-2,1.4778708584450748E-2,1.5563708186639956E-2,1.6375126640774437E-2,1.7213357447162774E-2,1.807879284687235E-2,1.897182384775074E-2,5,5,6,6,6,6,7,7,7,8,8,9]
[1000404895,47,4,10.285714285714286,0.52489065916782418,"Not Applicable","Not Applicable",3.8205285714285715,81.3586997951722,1.0601305124814272E-2,1.1236129191788151E-2,1.1894983069304249E-2,1.2578268421978041E-2,1.3286385475045577E-2,1.4019733047602333E-2,1.4778708584450748E-2,1.5563708186639956E-2,1.6375126640774437E-2,1.7213357447162774E-2,1.807879284687235E-2,1.897182384775074E-2,5,5,6,6,6,6,7,7,7,8,8,9]
[1000407011,51,3,7.7142857142857153,-0.5248906591678234,"Not Applicable","Not Applicable",3.7302714285714287,90.495685924941753,9.0811797374878503E-3,9.5659589470802574E-3,1.0066825869171323E-2,1.0584001615520949E-2,1.1117706196044316E-2,1.1668158544192762E-2,1.2235576541308146E-2,1.2820177040009317E-2,1.3422175886665352E-2,1.4041787943005819E-2,1.4679227106915316E-2,1.5334706332455605E-2,4,5,5,5,5,5,6,6,6,6,7,7]
[1000407031,42,3,7.7142857142857153,-0.5248906591678234,"Not Applicable","Not Applicable",3.7302714285714287,90.495685924941753,5.4050488666682849E-3,5.7551845925922921E-3,6.1193636543992605E-3,6.4978184281262443E-3,6.8907799008476036E-3,7.2984777089150181E-3,7.7211401743552781E-3,8.1589943395509699E-3,8.6122660003184921E-3,9.0811797374878503E-3,9.5659589470802574E-3,1.0066825869171323E-2,3,3,3,3,3,4,4,4,4,4,5,5]
[1000407052,42,3,7.7142857142857153,-0.5248906591678234,"Not Applicable","Not Applicable",3.7302714285714287,90.495685924941753,5.4050488666682849E-3,5.7551845925922921E-3,6.1193636543992605E-3,6.4978184281262443E-3,6.8907799008476036E-3,7.2984777089150181E-3,7.7211401743552781E-3,8.1589943395509699E-3,8.6122660003184921E-3,9.0811797374878503E-3,9.5659589470802574E-3,1.0066825869171323E-2,3,3,3,3,3,4,4,4,4,4,5,5]
[1000407221,57,3,7.7142857142857153,-0.5248906591678234,"Not Applicable","Not Applicable",3.7302714285714287,90.495685924941753,1.2235576541308146E-2,1.2820177040009317E-2,1.3422175886665352E-2,1.4041787943005819E-2,1.4679227106915316E-2,1.5334706332455605E-2,1.6008437649156285E-2,1.6700632180611713E-2,1.7411500162419602E-2,1.814125095949445E-2,1.8890093082786507E-2,1.9658234205435516E-2,6,6,6,6,7,7,7,8,8,8,8,9]
[1000407240,57,4,10.285714285714286,0.52489065916782418,"Not Applicable","Not Applicable",3.8205285714285715,81.3586997951722,1.807879284687235E-2,1.897182384775074E-2,1.989284024947063E-2,2.084223066765066E-2,2.1820382557101111E-2,2.2827682234240088E-2,2.386451489872262E-2,2.4931264654322365E-2,2.6028314529103064E-2,2.7156046494914328E-2,2.8314841486244462E-2,2.9505079418460589E-2,8,9,9,9,10,10,10,10,10,10,10,10]
[1000407262,56,5,12.857142857142858,1.5746719775034717,"Not Applicable","Not Applicable",3.9107857142857139,73.504466067305898,2.5379695263869503E-2,2.6697584456155762E-2,2.8059614156563172E-2,2.9466476985654733E-2,3.0918864517361939E-2,3.2417467297974317E-2,3.3962974864479044E-2,3.5556075762282695E-2,3.7197457562345652E-2,3.8887806877757371E-2,4.0627809379779202E-2,4.241814981337954E-2,10,10,10,10,10,10,10,10,10,10,10,10]
[1000407283,56,3,7.7142857142857153,-0.5248906591678234,"Not Applicable","Not Applicable",3.7302714285714287,90.495685924941753,1.1668158544192762E-2,1.2235576541308146E-2,1.2820177040009317E-2,1.3422175886665352E-2,1.4041787943005819E-2,1.4679227106915316E-2,1.5334706332455605E-2,1.6008437649156285E-2,1.6700632180611713E-2,1.7411500162419602E-2,1.814125095949445E-2,1.8890093082786507E-2,5,6,6,6,6,7,7,7,8,8,8,8]
[1000407304,55,3,7.7142857142857153,-0.5248906591678234,"Not Applicable","Not Applicable",3.7302714285714287,90.495685924941753,1.1117706196044316E-2,1.1668158544192762E-2,1.2235576541308146E-2,1.2820177040009317E-2,1.3422175886665352E-2,1.4041787943005819E-2,1.4679227106915316E-2,1.5334706332455605E-2,1.6008437649156285E-2,1.6700632180611713E-2,1.7411500162419602E-2,1.814125095949445E-2,5,5,6,6,6,6,7,7,7,8,8,8]
[1000407324,52,3,7.7142857142857153,-0.5248906591678234,"Not Applicable","Not Applicable",3.7302714285714287,90.495685924941753,9.5659589470802574E-3,1.0066825869171323E-2,1.0584001615520949E-2,1.1117706196044316E-2,1.1668158544192762E-2,1.2235576541308146E-2,1.2820177040009317E-2,1.3422175886665352E-2,1.4041787943005819E-2,1.4679227106915316E-2,1.5334706332455605E-2,1.6008437649156285E-2,5,5,5,5,5,6,6,6,6,7,7,7]
[1000407363,34,3,7.7142857142857153,-0.5248906591678234,"Not Applicable","Not Applicable",3.7302714285714287,90.495685924941753,3.0811457049862911E-3,3.3274812967358422E-3,3.585945893659289E-3,3.8567846337791045E-3,4.1402408740492556E-3,4.4365562496864993E-3,4.7459707300582417E-3,5.0687226714077492E-3,5.4050488666682849E-3,5.7551845925922921E-3,6.1193636543992605E-3,6.4978184281262443E-3,2,2,2,2,2,2,3,3,3,3,3,3]
[1000407386,34,3,7.7142857142857153,-0.5248906591678234,"Not Applicable","Not Applicable",3.7302714285714287,90.495685924941753,3.0811457049862911E-3,3.3274812967358422E-3,3.585945893659289E-3,3.8567846337791045E-3,4.1402408740492556E-3,4.4365562496864993E-3,4.7459707300582417E-3,5.0687226714077492E-3,5.4050488666682849E-3,5.7551845925922921E-3,6.1193636543992605E-3,6.4978184281262443E-3,2,2,2,2,2,2,3,3,3,3,3,3]
[1000407406,34,3,7.7142857142857153,-0.5248906591678234,"Not Applicable","Not Applicable",3.7302714285714287,90.495685924941753,3.0811457049862911E-3,3.3274812967358422E-3,3.585945893659289E-3,3.8567846337791045E-3,4.1402408740492556E-3,4.4365562496864993E-3,4.7459707300582417E-3,5.0687226714077492E-3,5.4050488666682849E-3,5.7551845925922921E-3,6.1193636543992605E-3,6.4978184281262443E-3,2,2,2,2,2,2,3,3,3,3,3,3]
[1000407427,44,3,7.7142857142857153,-0.5248906591678234,"Not Applicable","Not Applicable",3.7302714285714287,90.495685924941753,6.1193636543992605E-3,6.4978184281262443E-3,6.8907799008476036E-3,7.2984777089150181E-3,7.7211401743552781E-3,8.1589943395509699E-3,8.6122660003184921E-3,9.0811797374878503E-3,9.5659589470802574E-3,1.0066825869171323E-2,1.0584001615520949E-2,1.1117706196044316E-2,3,3,3,4,4,4,4,4,5,5,5,5]
[1000407446,35,3,7.7142857142857153,-0.5248906591678234,"Not Applicable","Not Applicable",3.7302714285714287,90.495685924941753,3.3274812967358422E-3,3.585945893659289E-3,3.8567846337791045E-3,4.1402408740492556E-3,4.4365562496864993E-3,4.7459707300582417E-3,5.0687226714077492E-3,5.4050488666682849E-3,5.7551845925922921E-3,6.1193636543992605E-3,6.4978184281262443E-3,6.8907799008476036E-3,2,2,2,2,2,3,3,3,3,3,3,3]
[1000407467,35,3,7.7142857142857153,-0.5248906591678234,"Not Applicable","Not Applicable",3.7302714285714287,90.495685924941753,3.3274812967358422E-3,3.585945893659289E-3,3.8567846337791045E-3,4.1402408740492556E-3,4.4365562496864993E-3,4.7459707300582417E-3,5.0687226714077492E-3,5.4050488666682849E-3,5.7551845925922921E-3,6.1193636543992605E-3,6.4978184281262443E-3,6.8907799008476036E-3,2,2,2,2,2,3,3,3,3,3,3,3]
[1000407484,35,3,7.7142857142857153,-0.5248906591678234,"Not Applicable","Not Applicable",3.7302714285714287,90.495685924941753,3.3274812967358422E-3,3.585945893659289E-3,3.8567846337791045E-3,4.1402408740492556E-3,4.4365562496864993E-3,4.7459707300582417E-3,5.0687226714077492E-3,5.4050488666682849E-3,5.7551845925922921E-3,6.1193636543992605E-3,6.4978184281262443E-3,6.8907799008476036E-3,2,2,2,2,2,3,3,3,3,3,3,3]
[1000407503,35,4,10.285714285714286,0.52489065916782418,"Not Applicable","Not Applicable",3.8205285714285715,81.3586997951722,4.7094051911957821E-3,5.0877780518860608E-3,5.4852340078529122E-3,5.9021952478237067E-3,6.3390819707381876E-3,6.7963124458148786E-3,7.2743030693499158E-3,7.7734684185012887E-3,8.2942213022864208E-3,8.8369728099988651E-3,9.4021323572303396E-3,9.9901077296670974E-3,2,3,3,3,3,3,4,4,4,4,4,5]
[1000407527,32,3,7.7142857142857153,-0.5248906591678234,"Not Applicable","Not Applicable",3.7302714285714287,90.495685924941753,2.6238716969322626E-3,2.8466921362306987E-3,3.0811457049862911E-3,3.3274812967358422E-3,3.585945893659289E-3,3.8567846337791045E-3,4.1402408740492556E-3,4.4365562496864993E-3,4.7459707300582417E-3,5.0687226714077492E-3,5.4050488666682849E-3,5.7551845925922921E-3,2,2,2,2,2,2,2,2,3,3,3,3]
[1000407547,32,4,10.285714285714286,0.52489065916782418,"Not Applicable","Not Applicable",3.8205285714285715,81.3586997951722,3.6845320833644645E-3,4.0082096662384997E-3,4.3496911836512532E-3,4.7094051911957821E-3,5.0877780518860608E-3,5.4852340078529122E-3,5.9021952478237067E-3,6.3390819707381876E-3,6.7963124458148786E-3,7.2743030693499158E-3,7.7734684185012887E-3,8.2942213022864208E-3,2,2,2,2,3,3,3,3,3,4,4,4]
[1000407568,40,4,10.285714285714286,0.52489065916782418,"Not Applicable","Not Applicable",3.8205285714285715,81.3586997951722,6.7963124458148786E-3,7.2743030693499158E-3,7.7734684185012887E-3,8.2942213022864208E-3,8.8369728099988651E-3,9.4021323572303396E-3,9.9901077296670974E-3,1.0601305124814272E-2,1.1236129191788151E-2,1.1894983069304249E-2,1.2578268421978041E-2,1.3286385475045577E-2,3,4,4,4,4,4,5,5,5,6,6,6]
[1000407588,40,4,10.285714285714286,0.52489065916782418,"Not Applicable","Not Applicable",3.8205285714285715,81.3586997951722,6.7963124458148786E-3,7.2743030693499158E-3,7.7734684185012887E-3,8.2942213022864208E-3,8.8369728099988651E-3,9.4021323572303396E-3,9.9901077296670974E-3,1.0601305124814272E-2,1.1236129191788151E-2,1.1894983069304249E-2,1.2578268421978041E-2,1.3286385475045577E-2,3,4,4,4,4,4,5,5,5,6,6,6]
[1000407604,40,3,7.7142857142857153,-0.5248906591678234,"Not Applicable","Not Applicable",3.7302714285714287,90.495685924941753,4.7459707300582417E-3,5.0687226714077492E-3,5.4050488666682849E-3,5.7551845925922921E-3,6.1193636543992605E-3,6.4978184281262443E-3,6.8907799008476036E-3,7.2984777089150181E-3,7.7211401743552781E-3,8.1589943395509699E-3,8.6122660003184921E-3,9.0811797374878503E-3,3,3,3,3,3,3,3,4,4,4,4,4]
[1000407622,40,4,10.285714285714286,0.52489065916782418,"Not Applicable","Not Applicable",3.8205285714285715,81.3586997951722,6.7963124458148786E-3,7.2743030693499158E-3,7.7734684185012887E-3,8.2942213022864208E-3,8.8369728099988651E-3,9.4021323572303396E-3,9.9901077296670974E-3,1.0601305124814272E-2,1.1236129191788151E-2,1.1894983069304249E-2,1.2578268421978041E-2,1.3286385475045577E-2,3,4,4,4,4,4,5,5,5,6,6,6]
[1000407678,58,3,7.7142857142857153,-0.5248906591678234,"Not Applicable","Not Applicable",3.7302714285714287,90.495685924941753,1.2820177040009317E-2,1.3422175886665352E-2,1.4041787943005819E-2,1.4679227106915316E-2,1.5334706332455605E-2,1.6008437649156285E-2,1.6700632180611713E-2,1.7411500162419602E-2,1.814125095949445E-2,1.8890093082786507E-2,1.9658234205435516E-2,2.0445881178386079E-2,6,6,6,7,7,7,8,8,8,8,9,9]
[1000407839,51,3,7.7142857142857153,-0.5248906591678234,"Not Applicable","Not Applicable",3.7302714285714287,90.495685924941753,9.0811797374878503E-3,9.5659589470802574E-3,1.0066825869171323E-2,1.0584001615520949E-2,1.1117706196044316E-2,1.1668158544192762E-2,1.2235576541308146E-2,1.2820177040009317E-2,1.3422175886665352E-2,1.4041787943005819E-2,1.4679227106915316E-2,1.5334706332455605E-2,4,5,5,5,5,5,6,6,6,6,7,7]
[1000407875,47,5,12.857142857142858,1.5746719775034717,"Not Applicable","Not Applicable",3.9107857142857139,73.504466067305898,1.5390188291110024E-2,1.6342163879736665E-2,1.7331995788610808E-2,1.8360387039138018E-2,1.9428039399273088E-2,2.0535653410273788E-2,2.1683928412380312E-2,2.2873562569482885E-2,2.4105252892835553E-2,2.5379695263869503E-2,2.6697584456155762E-2,2.8059614156563172E-2,7,7,8,8,9,9,10,10,10,10,10,10]
[1000407905,47,3,7.7142857142857153,-0.5248906591678234,"Not Applicable","Not Applicable",3.7302714285714287,90.495685924941753,7.2984777089150181E-3,7.7211401743552781E-3,8.1589943395509699E-3,8.6122660003184921E-3,9.0811797374878503E-3,9.5659589470802574E-3,1.0066825869171323E-2,1.0584001615520949E-2,1.1117706196044316E-2,1.1668158544192762E-2,1.2235576541308146E-2,1.2820177040009317E-2,4,4,4,4,4,5,5,5,5,5,6,6]
[1000407934,41,5,12.857142857142858,1.5746719775034717,"Not Applicable","Not Applicable",3.9107857142857139,73.504466067305898,1.0433783055977672E-2,1.1173458040962325E-2,1.1946743243320439E-2,1.2754349836489721E-2,1.3596987553130841E-2,1.4475364719978449E-2,1.5390188291110024E-2,1.6342163879736665E-2,1.7331995788610808E-2,1.8360387039138018E-2,1.9428039399273088E-2,2.0535653410273788E-2,5,5,6,6,6,7,7,7,8,8,9,9]
[1000407967,41,5,12.857142857142858,1.5746719775034717,"Not Applicable","Not Applicable",3.9107857142857139,73.504466067305898,1.0433783055977672E-2,1.1173458040962325E-2,1.1946743243320439E-2,1.2754349836489721E-2,1.3596987553130841E-2,1.4475364719978449E-2,1.5390188291110024E-2,1.6342163879736665E-2,1.7331995788610808E-2,1.8360387039138018E-2,1.9428039399273088E-2,2.0535653410273788E-2,5,5,6,6,6,7,7,7,8,8,9,9]
[1000410000,41,3,7.7142857142857153,-0.5248906591678234,"Not Applicable","Not Applicable",3.7302714285714287,90.495685924941753,5.0687226714077492E-3,5.4050488666682849E-3,5.7551845925922921E-3,6.1193636543992605E-3,6.4978184281262443E-3,6.8907799008476036E-3,7.2984777089150181E-3,7.7211401743552781E-3,8.1589943395509699E-3,8.6122660003184921E-3,9.0811797374878503E-3,9.5659589470802574E-3,3,3,3,3,3,3,4,4,4,4,4,5]
[1000410034,41,3,7.7142857142857153,-0.5248906591678234,"Not Applicable","Not Applicable",3.7302714285714287,90.495685924941753,5.0687226714077492E-3,5.4050488666682849E-3,5.7551845925922921E-3,6.1193636543992605E-3,6.4978184281262443E-3,6.8907799008476036E-3,7.2984777089150181E-3,7.7211401743552781E-3,8.1589943395509699E-3,8.6122660003184921E-3,9.0811797374878503E-3,9.5659589470802574E-3,3,3,3,3,3,3,4,4,4,4,4,5]
[1000410094,51,5,12.857142857142858,1.5746719775034717,"Not Applicable","Not Applicable",3.9107857142857139,73.504466067305898,1.9428039399273088E-2,2.0535653410273788E-2,2.1683928412380312E-2,2.2873562569482885E-2,2.4105252892835553E-2,2.5379695263869503E-2,2.6697584456155762E-2,2.8059614156563172E-2,2.9466476985654733E-2,3.0918864517361939E-2,3.2417467297974317E-2,3.3962974864479044E-2,9,9,10,10,10,10,10,10,10,10,10,10]
[1000410124,51,4,10.285714285714286,0.52489065916782418,"Not Applicable","Not Applicable",3.8205285714285715,81.3586997951722,1.3286385475045577E-2,1.4019733047602333E-2,1.4778708584450748E-2,1.5563708186639956E-2,1.6375126640774437E-2,1.7213357447162774E-2,1.807879284687235E-2,1.897182384775074E-2,1.989284024947063E-2,2.084223066765066E-2,2.1820382557101111E-2,2.2827682234240088E-2,6,6,7,7,7,8,8,9,9,9,10,10]
[1000410171,58,7,18,2.4494897427831779,"Not Applicable","Not Applicable",3.9859999999999998,67.779304104150881,3.8864075241375327E-2,4.0864281297212438E-2,4.2931802108620576E-2,4.5067743753790905E-2,4.7273212057066728E-2,4.9549312593095363E-2,5.1897150690847348E-2,5.431783143750904E-2,5.6812459682254721E-2,5.9382140039903393E-2,6.2027976894465854E-2,6.4751074402586581E-2,10,10,10,10,10,10,10,10,10,10,10,10]
[1000410190,58,5,12.857142857142858,1.5746719775034717,"Not Applicable","Not Applicable",3.9107857142857139,73.504466067305898,2.8059614156563172E-2,2.9466476985654733E-2,3.0918864517361939E-2,3.2417467297974317E-2,3.3962974864479044E-2,3.5556075762282695E-2,3.7197457562345652E-2,3.8887806877757371E-2,4.0627809379779202E-2,4.241814981337954E-2,4.4259512012284778E-2,4.6152578913568033E-2,10,10,10,10,10,10,10,10,10,10,10,10]
[1000410281,50,3,7.7142857142857153,-0.5248906591678234,"Not Applicable","Not Applicable",3.7302714285714287,90.495685924941753,8.6122660003184921E-3,9.0811797374878503E-3,9.5659589470802574E-3,1.0066825869171323E-2,1.0584001615520949E-2,1.1117706196044316E-2,1.1668158544192762E-2,1.2235576541308146E-2,1.2820177040009317E-2,1.3422175886665352E-2,1.4041787943005819E-2,1.4679227106915316E-2,4,4,5,5,5,5,5,6,6,6,6,7]
[1000410375,49,5,12.857142857142858,1.5746719775034717,"Not Applicable","Not Applicable",3.9107857142857139,73.504466067305898,1.7331995788610808E-2,1.8360387039138018E-2,1.9428039399273088E-2,2.0535653410273788E-2,2.1683928412380312E-2,2.2873562569482885E-2,2.4105252892835553E-2,2.5379695263869503E-2,2.6697584456155762E-2,2.8059614156563172E-2,2.9466476985654733E-2,3.0918864517361939E-2,8,8,9,9,10,10,10,10,10,10,10,10]
[1000410401,49,7,18,2.4494897427831779,"Not Applicable","Not Applicable",3.9859999999999998,67.779304104150881,2.3708750395101268E-2,2.5152941302056715E-2,2.6654480077496132E-2,2.8214475296682407E-2,2.9834035236418879E-2,3.1514267880760095E-2,3.3256280926509466E-2,3.5061181788515763E-2,3.6930077604778885E-2,3.8864075241375327E-2,4.0864281297212438E-2,4.2931802108620576E-2,10,10,10,10,10,10,10,10,10,10,10,10]
[1000410465,49,4,10.285714285714286,0.52489065916782418,"Not Applicable","Not Applicable",3.8205285714285715,81.3586997951722,1.1894983069304249E-2,1.2578268421978041E-2,1.3286385475045577E-2,1.4019733047602333E-2,1.4778708584450748E-2,1.5563708186639956E-2,1.6375126640774437E-2,1.7213357447162774E-2,1.807879284687235E-2,1.897182384775074E-2,1.989284024947063E-2,2.084223066765066E-2,6,6,6,6,7,7,7,8,8,9,9,9]
[1000410481,49,5,12.857142857142858,1.5746719775034717,"Not Applicable","Not Applicable",3.9107857142857139,73.504466067305898,1.7331995788610808E-2,1.8360387039138018E-2,1.9428039399273088E-2,2.0535653410273788E-2,2.1683928412380312E-2,2.2873562569482885E-2,2.4105252892835553E-2,2.5379695263869503E-2,2.6697584456155762E-2,2.8059614156563172E-2,2.9466476985654733E-2,3.0918864517361939E-2,8,8,9,9,10,10,10,10,10,10,10,10]
[1000410502,46,4,10.285714285714286,0.52489065916782418,"Not Applicable","Not Applicable",3.8205285714285715,81.3586997951722,9.9901077296670974E-3,1.0601305124814272E-2,1.1236129191788151E-2,1.1894983069304249E-2,1.2578268421978041E-2,1.3286385475045577E-2,1.4019733047602333E-2,1.4778708584450748E-2,1.5563708186639956E-2,1.6375126640774437E-2,1.7213357447162774E-2,1.807879284687235E-2,5,5,5,6,6,6,6,7,7,7,8,8]
[1000410528,34,3,7.7142857142857153,-0.5248906591678234,"Not Applicable","Not Applicable",3.7302714285714287,90.495685924941753,3.0811457049862911E-3,3.3274812967358422E-3,3.585945893659289E-3,3.8567846337791045E-3,4.1402408740492556E-3,4.4365562496864993E-3,4.7459707300582417E-3,5.0687226714077492E-3,5.4050488666682849E-3,5.7551845925922921E-3,6.1193636543992605E-3,6.4978184281262443E-3,2,2,2,2,2,2,3,3,3,3,3,3]
[1000410663,17,3,7.7142857142857153,-0.5248906591678234,"Not Applicable","Not Applicable",3.7302714285714287,90.495685924941753,5.0144352382806639E-4,5.8120827885803231E-4,6.6857848357752608E-4,7.6384446101957697E-4,8.6729264120025411E-4,9.7920579538369025E-4,1.0998632462725082E-3,1.2295410575353508E-3,1.3685122054777532E-3,1.5170467351845634E-3,1.6754119030806872E-3,1.8438723075499394E-3,1,1,1,1,1,1,1,1,1,1,1,1]
[1000410716,55,4,10.285714285714286,0.52489065916782418,"Not Applicable","Not Applicable",3.8205285714285715,81.3586997951722,1.6375126640774437E-2,1.7213357447162774E-2,1.807879284687235E-2,1.897182384775074E-2,1.989284024947063E-2,2.084223066765066E-2,2.1820382557101111E-2,2.2827682234240088E-2,2.386451489872262E-2,2.4931264654322365E-2,2.6028314529103064E-2,2.7156046494914328E-2,7,8,8,9,9,9,10,10,10,10,10,10]
[1000410735,55,4,10.285714285714286,0.52489065916782418,"Not Applicable","Not Applicable",3.8205285714285715,81.3586997951722,1.6375126640774437E-2,1.7213357447162774E-2,1.807879284687235E-2,1.897182384775074E-2,1.989284024947063E-2,2.084223066765066E-2,2.1820382557101111E-2,2.2827682234240088E-2,2.386451489872262E-2,2.4931264654322365E-2,2.6028314529103064E-2,2.7156046494914328E-2,7,8,8,9,9,9,10,10,10,10,10,10]
[1000410772,36,3,7.7142857142857153,-0.5248906591678234,"Not Applicable","Not Applicable",3.7302714285714287,90.495685924941753,3.585945893659289E-3,3.8567846337791045E-3,4.1402408740492556E-3,4.4365562496864993E-3,4.7459707300582417E-3,5.0687226714077492E-3,5.4050488666682849E-3,5.7551845925922921E-3,6.1193636543992605E-3,6.4978184281262443E-3,6.8907799008476036E-3,7.2984777089150181E-3,2,2,2,2,3,3,3,3,3,3,3,4]
[1000410800,36,3,7.7142857142857153,-0.5248906591678234,"Not Applicable","Not Applicable",3.7302714285714287,90.495685924941753,3.585945893659289E-3,3.8567846337791045E-3,4.1402408740492556E-3,4.4365562496864993E-3,4.7459707300582417E-3,5.0687226714077492E-3,5.4050488666682849E-3,5.7551845925922921E-3,6.1193636543992605E-3,6.4978184281262443E-3,6.8907799008476036E-3,7.2984777089150181E-3,2,2,2,2,3,3,3,3,3,3,3,4]
[1000410871,37,3,7.7142857142857153,-0.5248906591678234,"Not Applicable","Not Applicable",3.7302714285714287,90.495685924941753,3.8567846337791045E-3,4.1402408740492556E-3,4.4365562496864993E-3,4.7459707300582417E-3,5.0687226714077492E-3,5.4050488666682849E-3,5.7551845925922921E-3,6.1193636543992605E-3,6.4978184281262443E-3,6.8907799008476036E-3,7.2984777089150181E-3,7.7211401743552781E-3,2,2,2,3,3,3,3,3,3,3,4,4]
[1000410892,37,5,12.857142857142858,1.5746719775034717,"Not Applicable","Not Applicable",3.9107857142857139,73.504466067305898,7.7969092950980617E-3,8.40928527886344E-3,9.052411619390589E-3,9.7270056376048877E-3,1.0433783055977672E-2,1.1173458040962325E-2,1.1946743243320439E-2,1.2754349836489721E-2,1.3596987553130841E-2,1.4475364719978449E-2,1.5390188291110024E-2,1.6342163879736665E-2,4,4,4,5,5,5,6,6,6,7,7,7]
[1000412867,13,3,7.7142857142857153,-0.5248906591678234,"Not Applicable","Not Applicable",3.7302714285714287,90.495685924941753,2.5248059226310387E-4,3.0481457753673766E-4,3.6354799700535629E-4,4.2898973991092209E-4,5.0144352382806639E-4,5.8120827885803231E-4,6.6857848357752608E-4,7.6384446101957697E-4,8.6729264120025411E-4,9.7920579538369025E-4,1.0998632462725082E-3,1.2295410575353508E-3,1,1,1,1,1,1,1,1,1,1,1,1]
[1000412871,12,4,10.285714285714286,0.52489065916782418,"Not Applicable","Not Applicable",3.8205285714285715,81.3586997951722,2.6624376195765007E-4,3.2813855412830157E-4,3.9862945674647062E-4,4.7821721233844475E-4,5.6739659787015233E-4,6.6665686328333973E-4,7.7648211389553861E-4,8.9735164657497933E-4,1.029740247420469E-3,1.1741184570606318E-3,1.3309528084701585E-3,1.5007060412705233E-3,1,1,1,1,1,1,1,1,1,1,1,1]
[1000412875,12,3,7.7142857142857153,-0.5248906591678234,"Not Applicable","Not Applicable",3.7302714285714287,90.495685924941753,2.0623153716586059E-4,2.5248059226310387E-4,3.0481457753673766E-4,3.6354799700535629E-4,4.2898973991092209E-4,5.0144352382806639E-4,5.8120827885803231E-4,6.6857848357752608E-4,7.6384446101957697E-4,8.6729264120025411E-4,9.7920579538369025E-4,1.0998632462725082E-3,1,1,1,1,1,1,1,1,1,1,1,1]
[1000414952,11,3,7.7142857142857153,-0.5248906591678234,"Not Applicable","Not Applicable",3.7302714285714287,90.495685924941753,1.6574677744421492E-4,2.0623153716586059E-4,2.5248059226310387E-4,3.0481457753673766E-4,3.6354799700535629E-4,4.2898973991092209E-4,5.0144352382806639E-4,5.8120827885803231E-4,6.6857848357752608E-4,7.6384446101957697E-4,8.6729264120025411E-4,9.7920579538369025E-4,1,1,1,1,1,1,1,1,1,1,1,1]
[1000414953,13,3,7.7142857142857153,-0.5248906591678234,"Not Applicable","Not Applicable",3.7302714285714287,90.495685924941753,2.5248059226310387E-4,3.0481457753673766E-4,3.6354799700535629E-4,4.2898973991092209E-4,5.0144352382806639E-4,5.8120827885803231E-4,6.6857848357752608E-4,7.6384446101957697E-4,8.6729264120025411E-4,9.7920579538369025E-4,1.0998632462725082E-3,1.2295410575353508E-3,1,1,1,1,1,1,1,1,1,1,1,1]
[1001423014,9,3,7.7142857142857153,-0.5248906591678234,"Not Applicable","Not Applicable",3.7302714285714287,90.495685924941753,1.0075318863237906E-4,1.3069893995203767E-4,1.6574677744421492E-4,2.0623153716586059E-4,2.5248059226310387E-4,3.0481457753673766E-4,3.6354799700535629E-4,4.2898973991092209E-4,5.0144352382806639E-4,5.8120827885803231E-4,6.6857848357752608E-4,7.6384446101957697E-4,1,1,1,1,1,1,1,1,1,1,1,1]
[1001433025,9,3,7.7142857142857153,-0.5248906591678234,"Not Applicable","Not Applicable",3.7302714285714287,90.495685924941753,1.0075318863237906E-4,1.3069893995203767E-4,1.6574677744421492E-4,2.0623153716586059E-4,2.5248059226310387E-4,3.0481457753673766E-4,3.6354799700535629E-4,4.2898973991092209E-4,5.0144352382806639E-4,5.8120827885803231E-4,6.6857848357752608E-4,7.6384446101957697E-4,1,1,1,1,1,1,1,1,1,1,1,1]
[1001433198,2,3,7.7142857142857153,-0.5248906591678234,"Not Applicable","Not Applicable",3.7302714285714287,90.495685924941753,3.7640718145354224E-6,8.2560927570325611E-6,1.5183266092072298E-5,2.4977645472058508E-5,3.8048225246766537E-5,5.4785819195386816E-5,7.556634738586488E-5,1.0075318863237906E-4,1.3069893995203767E-4,1.6574677744421492E-4,2.0623153716586059E-4,2.5248059226310387E-4,1,1,1,1,1,1,1,1,1,1,1,1]
[1001435539,9,3,7.7142857142857153,-0.5248906591678234,"Not Applicable","Not Applicable",3.7302714285714287,90.495685924941753,1.0075318863237906E-4,1.3069893995203767E-4,1.6574677744421492E-4,2.0623153716586059E-4,2.5248059226310387E-4,3.0481457753673766E-4,3.6354799700535629E-4,4.2898973991092209E-4,5.0144352382806639E-4,5.8120827885803231E-4,6.6857848357752608E-4,7.6384446101957697E-4,1,1,1,1,1,1,1,1,1,1,1,1]
[1001435540,9,3,7.7142857142857153,-0.5248906591678234,"Not Applicable","Not Applicable",3.7302714285714287,90.495685924941753,1.0075318863237906E-4,1.3069893995203767E-4,1.6574677744421492E-4,2.0623153716586059E-4,2.5248059226310387E-4,3.0481457753673766E-4,3.6354799700535629E-4,4.2898973991092209E-4,5.0144352382806639E-4,5.8120827885803231E-4,6.6857848357752608E-4,7.6384446101957697E-4,1,1,1,1,1,1,1,1,1,1,1,1]
[1001440620,10,5,12.857142857142858,1.5746719775034717,"Not Applicable","Not Applicable",3.9107857142857139,73.504466067305898,2.1124279647594934E-4,2.7212993086824752E-4,3.4352737722408036E-4,4.2623005509803528E-4,5.2102743601057505E-4,6.2870396749631222E-4,7.5003943798022097E-4,8.8580929394114865E-4,1.0367849180545194E-3,1.2037338750248488E-3,1.387420130370311E-3,1.5886042463430481E-3,1,1,1,1,1,1,1,1,1,1,1,1]
[1001440621,10,3,7.7142857142857153,-0.5248906591678234,"Not Applicable","Not Applicable",3.7302714285714287,90.495685924941753,1.3069893995203767E-4,1.6574677744421492E-4,2.0623153716586059E-4,2.5248059226310387E-4,3.0481457753673766E-4,3.6354799700535629E-4,4.2898973991092209E-4,5.0144352382806639E-4,5.8120827885803231E-4,6.6857848357752608E-4,7.6384446101957697E-4,8.6729264120025411E-4,1,1,1,1,1,1,1,1,1,1,1,1]
[1001465327,9,3,7.7142857142857153,-0.5248906591678234,"Not Applicable","Not Applicable",3.7302714285714287,90.495685924941753,1.0075318863237906E-4,1.3069893995203767E-4,1.6574677744421492E-4,2.0623153716586059E-4,2.5248059226310387E-4,3.0481457753673766E-4,3.6354799700535629E-4,4.2898973991092209E-4,5.0144352382806639E-4,5.8120827885803231E-4,6.6857848357752608E-4,7.6384446101957697E-4,1,1,1,1,1,1,1,1,1,1,1,1]
[1001472087,8,4,10.285714285714286,0.52489065916782418,"Not Applicable","Not Applicable",3.8205285714285715,81.3586997951722,9.4371020398424156E-5,1.2702785376934587E-4,1.6620657937236637E-4,2.1243786456389763E-4,2.6624376195765007E-4,3.2813855412830157E-4,3.9862945674647062E-4,4.7821721233844475E-4,5.6739659787015233E-4,6.6665686328333973E-4,7.7648211389553861E-4,8.9735164657497933E-4,1,1,1,1,1,1,1,1,1,1,1,1]
[1001472088,7,3,7.7142857142857153,-0.5248906591678234,"Not Applicable","Not Applicable",3.7302714285714287,90.495685924941753,5.4785819195386816E-5,7.556634738586488E-5,1.0075318863237906E-4,1.3069893995203767E-4,1.6574677744421492E-4,2.0623153716586059E-4,2.5248059226310387E-4,3.0481457753673766E-4,3.6354799700535629E-4,4.2898973991092209E-4,5.0144352382806639E-4,5.8120827885803231E-4,1,1,1,1,1,1,1,1,1,1,1,1]
[1001472089,7,3,7.7142857142857153,-0.5248906591678234,"Not Applicable","Not Applicable",3.7302714285714287,90.495685924941753,5.4785819195386816E-5,7.556634738586488E-5,1.0075318863237906E-4,1.3069893995203767E-4,1.6574677744421492E-4,2.0623153716586059E-4,2.5248059226310387E-4,3.0481457753673766E-4,3.6354799700535629E-4,4.2898973991092209E-4,5.0144352382806639E-4,5.8120827885803231E-4,1,1,1,1,1,1,1,1,1,1,1,1]
[1001472169,7,3,7.7142857142857153,-0.5248906591678234,"Not Applicable","Not Applicable",3.7302714285714287,90.495685924941753,5.4785819195386816E-5,7.556634738586488E-5,1.0075318863237906E-4,1.3069893995203767E-4,1.6574677744421492E-4,2.0623153716586059E-4,2.5248059226310387E-4,3.0481457753673766E-4,3.6354799700535629E-4,4.2898973991092209E-4,5.0144352382806639E-4,5.8120827885803231E-4,1,1,1,1,1,1,1,1,1,1,1,1]
[1001472634,8,4,10.285714285714286,0.52489065916782418,"Not Applicable","Not Applicable",3.8205285714285715,81.3586997951722,9.4371020398424156E-5,1.2702785376934587E-4,1.6620657937236637E-4,2.1243786456389763E-4,2.6624376195765007E-4,3.2813855412830157E-4,3.9862945674647062E-4,4.7821721233844475E-4,5.6739659787015233E-4,6.6665686328333973E-4,7.7648211389553861E-4,8.9735164657497933E-4,1,1,1,1,1,1,1,1,1,1,1,1]
[1001472635,7,3,7.7142857142857153,-0.5248906591678234,"Not Applicable","Not Applicable",3.7302714285714287,90.495685924941753,5.4785819195386816E-5,7.556634738586488E-5,1.0075318863237906E-4,1.3069893995203767E-4,1.6574677744421492E-4,2.0623153716586059E-4,2.5248059226310387E-4,3.0481457753673766E-4,3.6354799700535629E-4,4.2898973991092209E-4,5.0144352382806639E-4,5.8120827885803231E-4,1,1,1,1,1,1,1,1,1,1,1,1]
[1001472636,7,3,7.7142857142857153,-0.5248906591678234,"Not Applicable","Not Applicable",3.7302714285714287,90.495685924941753,5.4785819195386816E-5,7.556634738586488E-5,1.0075318863237906E-4,1.3069893995203767E-4,1.6574677744421492E-4,2.0623153716586059E-4,2.5248059226310387E-4,3.0481457753673766E-4,3.6354799700535629E-4,4.2898973991092209E-4,5.0144352382806639E-4,5.8120827885803231E-4,1,1,1,1,1,1,1,1,1,1,1,1]
[1001472637,6,3,7.7142857142857153,-0.5248906591678234,"Not Applicable","Not Applicable",3.7302714285714287,90.495685924941753,3.8048225246766537E-5,5.4785819195386816E-5,7.556634738586488E-5,1.0075318863237906E-4,1.3069893995203767E-4,1.6574677744421492E-4,2.0623153716586059E-4,2.5248059226310387E-4,3.0481457753673766E-4,3.6354799700535629E-4,4.2898973991092209E-4,5.0144352382806639E-4,1,1,1,1,1,1,1,1,1,1,1,1]
[1001472638,7,3,7.7142857142857153,-0.5248906591678234,"Not Applicable","Not Applicable",3.7302714285714287,90.495685924941753,5.4785819195386816E-5,7.556634738586488E-5,1.0075318863237906E-4,1.3069893995203767E-4,1.6574677744421492E-4,2.0623153716586059E-4,2.5248059226310387E-4,3.0481457753673766E-4,3.6354799700535629E-4,4.2898973991092209E-4,5.0144352382806639E-4,5.8120827885803231E-4,1,1,1,1,1,1,1,1,1,1,1,1]
[1001472639,7,5,12.857142857142858,1.5746719775034717,"Not Applicable","Not Applicable",3.9107857142857139,73.504466067305898,8.3601176665095098E-5,1.1778945752365005E-4,1.6006510781928882E-4,2.1124279647594934E-4,2.7212993086824752E-4,3.4352737722408036E-4,4.2623005509803528E-4,5.2102743601057505E-4,6.2870396749631222E-4,7.5003943798022097E-4,8.8580929394114865E-4,1.0367849180545194E-3,1,1,1,1,1,1,1,1,1,1,1,1]
[1001472640,7,3,7.7142857142857153,-0.5248906591678234,"Not Applicable","Not Applicable",3.7302714285714287,90.495685924941753,5.4785819195386816E-5,7.556634738586488E-5,1.0075318863237906E-4,1.3069893995203767E-4,1.6574677744421492E-4,2.0623153716586059E-4,2.5248059226310387E-4,3.0481457753673766E-4,3.6354799700535629E-4,4.2898973991092209E-4,5.0144352382806639E-4,5.8120827885803231E-4,1,1,1,1,1,1,1,1,1,1,1,1]
[1001473129,9,3,7.7142857142857153,-0.5248906591678234,"Not Applicable","Not Applicable",3.7302714285714287,90.495685924941753,1.0075318863237906E-4,1.3069893995203767E-4,1.6574677744421492E-4,2.0623153716586059E-4,2.5248059226310387E-4,3.0481457753673766E-4,3.6354799700535629E-4,4.2898973991092209E-4,5.0144352382806639E-4,5.8120827885803231E-4,6.6857848357752608E-4,7.6384446101957697E-4,1,1,1,1,1,1,1,1,1,1,1,1]
[1001474074,4,3,7.7142857142857153,-0.5248906591678234,"Not Applicable","Not Applicable",3.7302714285714287,90.495685924941753,1.5183266092072298E-5,2.4977645472058508E-5,3.8048225246766537E-5,5.4785819195386816E-5,7.556634738586488E-5,1.0075318863237906E-4,1.3069893995203767E-4,1.6574677744421492E-4,2.0623153716586059E-4,2.5248059226310387E-4,3.0481457753673766E-4,3.6354799700535629E-4,1,1,1,1,1,1,1,1,1,1,1,1]
[1001474075,6,3,7.7142857142857153,-0.5248906591678234,"Not Applicable","Not Applicable",3.7302714285714287,90.495685924941753,3.8048225246766537E-5,5.4785819195386816E-5,7.556634738586488E-5,1.0075318863237906E-4,1.3069893995203767E-4,1.6574677744421492E-4,2.0623153716586059E-4,2.5248059226310387E-4,3.0481457753673766E-4,3.6354799700535629E-4,4.2898973991092209E-4,5.0144352382806639E-4,1,1,1,1,1,1,1,1,1,1,1,1]
[1001474076,6,3,7.7142857142857153,-0.5248906591678234,"Not Applicable","Not Applicable",3.7302714285714287,90.495685924941753,3.8048225246766537E-5,5.4785819195386816E-5,7.556634738586488E-5,1.0075318863237906E-4,1.3069893995203767E-4,1.6574677744421492E-4,2.0623153716586059E-4,2.5248059226310387E-4,3.0481457753673766E-4,3.6354799700535629E-4,4.2898973991092209E-4,5.0144352382806639E-4,1,1,1,1,1,1,1,1,1,1,1,1]
[1001476181,9,3,7.7142857142857153,-0.5248906591678234,"Not Applicable","Not Applicable",3.7302714285714287,90.495685924941753,1.0075318863237906E-4,1.3069893995203767E-4,1.6574677744421492E-4,2.0623153716586059E-4,2.5248059226310387E-4,3.0481457753673766E-4,3.6354799700535629E-4,4.2898973991092209E-4,5.0144352382806639E-4,5.8120827885803231E-4,6.6857848357752608E-4,7.6384446101957697E-4,1,1,1,1,1,1,1,1,1,1,1,1]
[1001477684,9,4,10.285714285714286,0.52489065916782418,"Not Applicable","Not Applicable",3.8205285714285715,81.3586997951722,1.2702785376934587E-4,1.6620657937236637E-4,2.1243786456389763E-4,2.6624376195765007E-4,3.2813855412830157E-4,3.9862945674647062E-4,4.7821721233844475E-4,5.6739659787015233E-4,6.6665686328333973E-4,7.7648211389553861E-4,8.9735164657497933E-4,1.029740247420469E-3,1,1,1,1,1,1,1,1,1,1,1,1]
[1001477685,9,4,10.285714285714286,0.52489065916782418,"Not Applicable","Not Applicable",3.8205285714285715,81.3586997951722,1.2702785376934587E-4,1.6620657937236637E-4,2.1243786456389763E-4,2.6624376195765007E-4,3.2813855412830157E-4,3.9862945674647062E-4,4.7821721233844475E-4,5.6739659787015233E-4,6.6665686328333973E-4,7.7648211389553861E-4,8.9735164657497933E-4,1.029740247420469E-3,1,1,1,1,1,1,1,1,1,1,1,1]
[1001477686,9,3,7.7142857142857153,-0.5248906591678234,"Not Applicable","Not Applicable",3.7302714285714287,90.495685924941753,1.0075318863237906E-4,1.3069893995203767E-4,1.6574677744421492E-4,2.0623153716586059E-4,2.5248059226310387E-4,3.0481457753673766E-4,3.6354799700535629E-4,4.2898973991092209E-4,5.0144352382806639E-4,5.8120827885803231E-4,6.6857848357752608E-4,7.6384446101957697E-4,1,1,1,1,1,1,1,1,1,1,1,1]
[1001477798,8,4,10.285714285714286,0.52489065916782418,"Not Applicable","Not Applicable",3.8205285714285715,81.3586997951722,9.4371020398424156E-5,1.2702785376934587E-4,1.6620657937236637E-4,2.1243786456389763E-4,2.6624376195765007E-4,3.2813855412830157E-4,3.9862945674647062E-4,4.7821721233844475E-4,5.6739659787015233E-4,6.6665686328333973E-4,7.7648211389553861E-4,8.9735164657497933E-4,1,1,1,1,1,1,1,1,1,1,1,1]
[1001477799,8,3,7.7142857142857153,-0.5248906591678234,"Not Applicable","Not Applicable",3.7302714285714287,90.495685924941753,7.556634738586488E-5,1.0075318863237906E-4,1.3069893995203767E-4,1.6574677744421492E-4,2.0623153716586059E-4,2.5248059226310387E-4,3.0481457753673766E-4,3.6354799700535629E-4,4.2898973991092209E-4,5.0144352382806639E-4,5.8120827885803231E-4,6.6857848357752608E-4,1,1,1,1,1,1,1,1,1,1,1,1]
[1001481507,8,3,7.7142857142857153,-0.5248906591678234,"Not Applicable","Not Applicable",3.7302714285714287,90.495685924941753,7.556634738586488E-5,1.0075318863237906E-4,1.3069893995203767E-4,1.6574677744421492E-4,2.0623153716586059E-4,2.5248059226310387E-4,3.0481457753673766E-4,3.6354799700535629E-4,4.2898973991092209E-4,5.0144352382806639E-4,5.8120827885803231E-4,6.6857848357752608E-4,1,1,1,1,1,1,1,1,1,1,1,1]
[1001481508,7,3,7.7142857142857153,-0.5248906591678234,"Not Applicable","Not Applicable",3.7302714285714287,90.495685924941753,5.4785819195386816E-5,7.556634738586488E-5,1.0075318863237906E-4,1.3069893995203767E-4,1.6574677744421492E-4,2.0623153716586059E-4,2.5248059226310387E-4,3.0481457753673766E-4,3.6354799700535629E-4,4.2898973991092209E-4,5.0144352382806639E-4,5.8120827885803231E-4,1,1,1,1,1,1,1,1,1,1,1,1]
[1001481509,6,3,7.7142857142857153,-0.5248906591678234,"Not Applicable","Not Applicable",3.7302714285714287,90.495685924941753,3.8048225246766537E-5,5.4785819195386816E-5,7.556634738586488E-5,1.0075318863237906E-4,1.3069893995203767E-4,1.6574677744421492E-4,2.0623153716586059E-4,2.5248059226310387E-4,3.0481457753673766E-4,3.6354799700535629E-4,4.2898973991092209E-4,5.0144352382806639E-4,1,1,1,1,1,1,1,1,1,1,1,1]
[1001481511,5,3,7.7142857142857153,-0.5248906591678234,"Not Applicable","Not Applicable",3.7302714285714287,90.495685924941753,2.4977645472058508E-5,3.8048225246766537E-5,5.4785819195386816E-5,7.556634738586488E-5,1.0075318863237906E-4,1.3069893995203767E-4,1.6574677744421492E-4,2.0623153716586059E-4,2.5248059226310387E-4,3.0481457753673766E-4,3.6354799700535629E-4,4.2898973991092209E-4,1,1,1,1,1,1,1,1,1,1,1,1]
[1001481559,7,3,7.7142857142857153,-0.5248906591678234,"Not Applicable","Not Applicable",3.7302714285714287,90.495685924941753,5.4785819195386816E-5,7.556634738586488E-5,1.0075318863237906E-4,1.3069893995203767E-4,1.6574677744421492E-4,2.0623153716586059E-4,2.5248059226310387E-4,3.0481457753673766E-4,3.6354799700535629E-4,4.2898973991092209E-4,5.0144352382806639E-4,5.8120827885803231E-4,1,1,1,1,1,1,1,1,1,1,1,1]
[1001482403,9,3,7.7142857142857153,-0.5248906591678234,"Not Applicable","Not Applicable",3.7302714285714287,90.495685924941753,1.0075318863237906E-4,1.3069893995203767E-4,1.6574677744421492E-4,2.0623153716586059E-4,2.5248059226310387E-4,3.0481457753673766E-4,3.6354799700535629E-4,4.2898973991092209E-4,5.0144352382806639E-4,5.8120827885803231E-4,6.6857848357752608E-4,7.6384446101957697E-4,1,1,1,1,1,1,1,1,1,1,1,1]
[1001485864,9,3,7.7142857142857153,-0.5248906591678234,"Not Applicable","Not Applicable",3.7302714285714287,90.495685924941753,1.0075318863237906E-4,1.3069893995203767E-4,1.6574677744421492E-4,2.0623153716586059E-4,2.5248059226310387E-4,3.0481457753673766E-4,3.6354799700535629E-4,4.2898973991092209E-4,5.0144352382806639E-4,5.8120827885803231E-4,6.6857848357752608E-4,7.6384446101957697E-4,1,1,1,1,1,1,1,1,1,1,1,1]
[1001485865,9,3,7.7142857142857153,-0.5248906591678234,"Not Applicable","Not Applicable",3.7302714285714287,90.495685924941753,1.0075318863237906E-4,1.3069893995203767E-4,1.6574677744421492E-4,2.0623153716586059E-4,2.5248059226310387E-4,3.0481457753673766E-4,3.6354799700535629E-4,4.2898973991092209E-4,5.0144352382806639E-4,5.8120827885803231E-4,6.6857848357752608E-4,7.6384446101957697E-4,1,1,1,1,1,1,1,1,1,1,1,1]
[1001485866,8,3,7.7142857142857153,-0.5248906591678234,"Not Applicable","Not Applicable",3.7302714285714287,90.495685924941753,7.556634738586488E-5,1.0075318863237906E-4,1.3069893995203767E-4,1.6574677744421492E-4,2.0623153716586059E-4,2.5248059226310387E-4,3.0481457753673766E-4,3.6354799700535629E-4,4.2898973991092209E-4,5.0144352382806639E-4,5.8120827885803231E-4,6.6857848357752608E-4,1,1,1,1,1,1,1,1,1,1,1,1]
[1001485867,8,3,7.7142857142857153,-0.5248906591678234,"Not Applicable","Not Applicable",3.7302714285714287,90.495685924941753,7.556634738586488E-5,1.0075318863237906E-4,1.3069893995203767E-4,1.6574677744421492E-4,2.0623153716586059E-4,2.5248059226310387E-4,3.0481457753673766E-4,3.6354799700535629E-4,4.2898973991092209E-4,5.0144352382806639E-4,5.8120827885803231E-4,6.6857848357752608E-4,1,1,1,1,1,1,1,1,1,1,1,1]
[1001485868,8,3,7.7142857142857153,-0.5248906591678234,"Not Applicable","Not Applicable",3.7302714285714287,90.495685924941753,7.556634738586488E-5,1.0075318863237906E-4,1.3069893995203767E-4,1.6574677744421492E-4,2.0623153716586059E-4,2.5248059226310387E-4,3.0481457753673766E-4,3.6354799700535629E-4,4.2898973991092209E-4,5.0144352382806639E-4,5.8120827885803231E-4,6.6857848357752608E-4,1,1,1,1,1,1,1,1,1,1,1,1]
[1001485869,8,3,7.7142857142857153,-0.5248906591678234,"Not Applicable","Not Applicable",3.7302714285714287,90.495685924941753,7.556634738586488E-5,1.0075318863237906E-4,1.3069893995203767E-4,1.6574677744421492E-4,2.0623153716586059E-4,2.5248059226310387E-4,3.0481457753673766E-4,3.6354799700535629E-4,4.2898973991092209E-4,5.0144352382806639E-4,5.8120827885803231E-4,6.6857848357752608E-4,1,1,1,1,1,1,1,1,1,1,1,1]
[1001485870,9,3,7.7142857142857153,-0.5248906591678234,"Not Applicable","Not Applicable",3.7302714285714287,90.495685924941753,1.0075318863237906E-4,1.3069893995203767E-4,1.6574677744421492E-4,2.0623153716586059E-4,2.5248059226310387E-4,3.0481457753673766E-4,3.6354799700535629E-4,4.2898973991092209E-4,5.0144352382806639E-4,5.8120827885803231E-4,6.6857848357752608E-4,7.6384446101957697E-4,1,1,1,1,1,1,1,1,1,1,1,1]
[1001485871,9,3,7.7142857142857153,-0.5248906591678234,"Not Applicable","Not Applicable",3.7302714285714287,90.495685924941753,1.0075318863237906E-4,1.3069893995203767E-4,1.6574677744421492E-4,2.0623153716586059E-4,2.5248059226310387E-4,3.0481457753673766E-4,3.6354799700535629E-4,4.2898973991092209E-4,5.0144352382806639E-4,5.8120827885803231E-4,6.6857848357752608E-4,7.6384446101957697E-4,1,1,1,1,1,1,1,1,1,1,1,1]
[1001487639,9,3,7.7142857142857153,-0.5248906591678234,"Not Applicable","Not Applicable",3.7302714285714287,90.495685924941753,1.0075318863237906E-4,1.3069893995203767E-4,1.6574677744421492E-4,2.0623153716586059E-4,2.5248059226310387E-4,3.0481457753673766E-4,3.6354799700535629E-4,4.2898973991092209E-4,5.0144352382806639E-4,5.8120827885803231E-4,6.6857848357752608E-4,7.6384446101957697E-4,1,1,1,1,1,1,1,1,1,1,1,1]
[1001489786,7,3,7.7142857142857153,-0.5248906591678234,"Not Applicable","Not Applicable",3.7302714285714287,90.495685924941753,5.4785819195386816E-5,7.556634738586488E-5,1.0075318863237906E-4,1.3069893995203767E-4,1.6574677744421492E-4,2.0623153716586059E-4,2.5248059226310387E-4,3.0481457753673766E-4,3.6354799700535629E-4,4.2898973991092209E-4,5.0144352382806639E-4,5.8120827885803231E-4,1,1,1,1,1,1,1,1,1,1,1,1]
[1001489800,8,3,7.7142857142857153,-0.5248906591678234,"Not Applicable","Not Applicable",3.7302714285714287,90.495685924941753,7.556634738586488E-5,1.0075318863237906E-4,1.3069893995203767E-4,1.6574677744421492E-4,2.0623153716586059E-4,2.5248059226310387E-4,3.0481457753673766E-4,3.6354799700535629E-4,4.2898973991092209E-4,5.0144352382806639E-4,5.8120827885803231E-4,6.6857848357752608E-4,1,1,1,1,1,1,1,1,1,1,1,1]
[1001489814,8,4,10.285714285714286,0.52489065916782418,"Not Applicable","Not Applicable",3.8205285714285715,81.3586997951722,9.4371020398424156E-5,1.2702785376934587E-4,1.6620657937236637E-4,2.1243786456389763E-4,2.6624376195765007E-4,3.2813855412830157E-4,3.9862945674647062E-4,4.7821721233844475E-4,5.6739659787015233E-4,6.6665686328333973E-4,7.7648211389553861E-4,8.9735164657497933E-4,1,1,1,1,1,1,1,1,1,1,1,1]
[1001489815,8,3,7.7142857142857153,-0.5248906591678234,"Not Applicable","Not Applicable",3.7302714285714287,90.495685924941753,7.556634738586488E-5,1.0075318863237906E-4,1.3069893995203767E-4,1.6574677744421492E-4,2.0623153716586059E-4,2.5248059226310387E-4,3.0481457753673766E-4,3.6354799700535629E-4,4.2898973991092209E-4,5.0144352382806639E-4,5.8120827885803231E-4,6.6857848357752608E-4,1,1,1,1,1,1,1,1,1,1,1,1]
[1001489837,8,3,7.7142857142857153,-0.5248906591678234,"Not Applicable","Not Applicable",3.7302714285714287,90.495685924941753,7.556634738586488E-5,1.0075318863237906E-4,1.3069893995203767E-4,1.6574677744421492E-4,2.0623153716586059E-4,2.5248059226310387E-4,3.0481457753673766E-4,3.6354799700535629E-4,4.2898973991092209E-4,5.0144352382806639E-4,5.8120827885803231E-4,6.6857848357752608E-4,1,1,1,1,1,1,1,1,1,1,1,1]
[1001489838,8,3,7.7142857142857153,-0.5248906591678234,"Not Applicable","Not Applicable",3.7302714285714287,90.495685924941753,7.556634738586488E-5,1.0075318863237906E-4,1.3069893995203767E-4,1.6574677744421492E-4,2.0623153716586059E-4,2.5248059226310387E-4,3.0481457753673766E-4,3.6354799700535629E-4,4.2898973991092209E-4,5.0144352382806639E-4,5.8120827885803231E-4,6.6857848357752608E-4,1,1,1,1,1,1,1,1,1,1,1,1]
[1001495907,6,4,10.285714285714286,0.52489065916782418,"Not Applicable","Not Applicable",3.8205285714285715,81.3586997951722,4.6450838340788178E-5,6.7695764922002957E-5,9.4371020398424156E-5,1.2702785376934587E-4,1.6620657937236637E-4,2.1243786456389763E-4,2.6624376195765007E-4,3.2813855412830157E-4,3.9862945674647062E-4,4.7821721233844475E-4,5.6739659787015233E-4,6.6665686328333973E-4,1,1,1,1,1,1,1,1,1,1,1,1]
[1001495908,6,3,7.7142857142857153,-0.5248906591678234,"Not Applicable","Not Applicable",3.7302714285714287,90.495685924941753,3.8048225246766537E-5,5.4785819195386816E-5,7.556634738586488E-5,1.0075318863237906E-4,1.3069893995203767E-4,1.6574677744421492E-4,2.0623153716586059E-4,2.5248059226310387E-4,3.0481457753673766E-4,3.6354799700535629E-4,4.2898973991092209E-4,5.0144352382806639E-4,1,1,1,1,1,1,1,1,1,1,1,1]
[1001499723,7,3,7.7142857142857153,-0.5248906591678234,"Not Applicable","Not Applicable",3.7302714285714287,90.495685924941753,5.4785819195386816E-5,7.556634738586488E-5,1.0075318863237906E-4,1.3069893995203767E-4,1.6574677744421492E-4,2.0623153716586059E-4,2.5248059226310387E-4,3.0481457753673766E-4,3.6354799700535629E-4,4.2898973991092209E-4,5.0144352382806639E-4,5.8120827885803231E-4,1,1,1,1,1,1,1,1,1,1,1,1]
[1001499724,7,3,7.7142857142857153,-0.5248906591678234,"Not Applicable","Not Applicable",3.7302714285714287,90.495685924941753,5.4785819195386816E-5,7.556634738586488E-5,1.0075318863237906E-4,1.3069893995203767E-4,1.6574677744421492E-4,2.0623153716586059E-4,2.5248059226310387E-4,3.0481457753673766E-4,3.6354799700535629E-4,4.2898973991092209E-4,5.0144352382806639E-4,5.8120827885803231E-4,1,1,1,1,1,1,1,1,1,1,1,1]
[1001503043,8,3,7.7142857142857153,-0.5248906591678234,"Not Applicable","Not Applicable",3.7302714285714287,90.495685924941753,7.556634738586488E-5,1.0075318863237906E-4,1.3069893995203767E-4,1.6574677744421492E-4,2.0623153716586059E-4,2.5248059226310387E-4,3.0481457753673766E-4,3.6354799700535629E-4,4.2898973991092209E-4,5.0144352382806639E-4,5.8120827885803231E-4,6.6857848357752608E-4,1,1,1,1,1,1,1,1,1,1,1,1]
[1001503044,8,3,7.7142857142857153,-0.5248906591678234,"Not Applicable","Not Applicable",3.7302714285714287,90.495685924941753,7.556634738586488E-5,1.0075318863237906E-4,1.3069893995203767E-4,1.6574677744421492E-4,2.0623153716586059E-4,2.5248059226310387E-4,3.0481457753673766E-4,3.6354799700535629E-4,4.2898973991092209E-4,5.0144352382806639E-4,5.8120827885803231E-4,6.6857848357752608E-4,1,1,1,1,1,1,1,1,1,1,1,1]
[1001503045,8,3,7.7142857142857153,-0.5248906591678234,"Not Applicable","Not Applicable",3.7302714285714287,90.495685924941753,7.556634738586488E-5,1.0075318863237906E-4,1.3069893995203767E-4,1.6574677744421492E-4,2.0623153716586059E-4,2.5248059226310387E-4,3.0481457753673766E-4,3.6354799700535629E-4,4.2898973991092209E-4,5.0144352382806639E-4,5.8120827885803231E-4,6.6857848357752608E-4,1,1,1,1,1,1,1,1,1,1,1,1]
[1001503857,6,3,7.7142857142857153,-0.5248906591678234,"Not Applicable","Not Applicable",3.7302714285714287,90.495685924941753,3.8048225246766537E-5,5.4785819195386816E-5,7.556634738586488E-5,1.0075318863237906E-4,1.3069893995203767E-4,1.6574677744421492E-4,2.0623153716586059E-4,2.5248059226310387E-4,3.0481457753673766E-4,3.6354799700535629E-4,4.2898973991092209E-4,5.0144352382806639E-4,1,1,1,1,1,1,1,1,1,1,1,1]
[1001503858,6,5,12.857142857142858,1.5746719775034717,"Not Applicable","Not Applicable",3.9107857142857139,73.504466067305898,5.6677444359269317E-5,8.3601176665095098E-5,1.1778945752365005E-4,1.6006510781928882E-4,2.1124279647594934E-4,2.7212993086824752E-4,3.4352737722408036E-4,4.2623005509803528E-4,5.2102743601057505E-4,6.2870396749631222E-4,7.5003943798022097E-4,8.8580929394114865E-4,1,1,1,1,1,1,1,1,1,1,1,1]
[1001503867,4,3,7.7142857142857153,-0.5248906591678234,"Not Applicable","Not Applicable",3.7302714285714287,90.495685924941753,1.5183266092072298E-5,2.4977645472058508E-5,3.8048225246766537E-5,5.4785819195386816E-5,7.556634738586488E-5,1.0075318863237906E-4,1.3069893995203767E-4,1.6574677744421492E-4,2.0623153716586059E-4,2.5248059226310387E-4,3.0481457753673766E-4,3.6354799700535629E-4,1,1,1,1,1,1,1,1,1,1,1,1]
[1001503868,4,3,7.7142857142857153,-0.5248906591678234,"Not Applicable","Not Applicable",3.7302714285714287,90.495685924941753,1.5183266092072298E-5,2.4977645472058508E-5,3.8048225246766537E-5,5.4785819195386816E-5,7.556634738586488E-5,1.0075318863237906E-4,1.3069893995203767E-4,1.6574677744421492E-4,2.0623153716586059E-4,2.5248059226310387E-4,3.0481457753673766E-4,3.6354799700535629E-4,1,1,1,1,1,1,1,1,1,1,1,1]
[1001503871,7,3,7.7142857142857153,-0.5248906591678234,"Not Applicable","Not Applicable",3.7302714285714287,90.495685924941753,5.4785819195386816E-5,7.556634738586488E-5,1.0075318863237906E-4,1.3069893995203767E-4,1.6574677744421492E-4,2.0623153716586059E-4,2.5248059226310387E-4,3.0481457753673766E-4,3.6354799700535629E-4,4.2898973991092209E-4,5.0144352382806639E-4,5.8120827885803231E-4,1,1,1,1,1,1,1,1,1,1,1,1]
[1001503879,4,3,7.7142857142857153,-0.5248906591678234,"Not Applicable","Not Applicable",3.7302714285714287,90.495685924941753,1.5183266092072298E-5,2.4977645472058508E-5,3.8048225246766537E-5,5.4785819195386816E-5,7.556634738586488E-5,1.0075318863237906E-4,1.3069893995203767E-4,1.6574677744421492E-4,2.0623153716586059E-4,2.5248059226310387E-4,3.0481457753673766E-4,3.6354799700535629E-4,1,1,1,1,1,1,1,1,1,1,1,1]
[1001505510,3,4,10.285714285714286,0.52489065916782418,"Not Applicable","Not Applicable",3.8205285714285715,81.3586997951722,9.5829185360476012E-6,1.7981886693844745E-5,3.0072409292269611E-5,4.6450838340788178E-5,6.7695764922002957E-5,9.4371020398424156E-5,1.2702785376934587E-4,1.6620657937236637E-4,2.1243786456389763E-4,2.6624376195765007E-4,3.2813855412830157E-4,3.9862945674647062E-4,1,1,1,1,1,1,1,1,1,1,1,1]
[1001505511,3,4,10.285714285714286,0.52489065916782418,"Not Applicable","Not Applicable",3.8205285714285715,81.3586997951722,9.5829185360476012E-6,1.7981886693844745E-5,3.0072409292269611E-5,4.6450838340788178E-5,6.7695764922002957E-5,9.4371020398424156E-5,1.2702785376934587E-4,1.6620657937236637E-4,2.1243786456389763E-4,2.6624376195765007E-4,3.2813855412830157E-4,3.9862945674647062E-4,1,1,1,1,1,1,1,1,1,1,1,1]
[1001505512,3,4,10.285714285714286,0.52489065916782418,"Not Applicable","Not Applicable",3.8205285714285715,81.3586997951722,9.5829185360476012E-6,1.7981886693844745E-5,3.0072409292269611E-5,4.6450838340788178E-5,6.7695764922002957E-5,9.4371020398424156E-5,1.2702785376934587E-4,1.6620657937236637E-4,2.1243786456389763E-4,2.6624376195765007E-4,3.2813855412830157E-4,3.9862945674647062E-4,1,1,1,1,1,1,1,1,1,1,1,1]
[1001505513,4,3,7.7142857142857153,-0.5248906591678234,"Not Applicable","Not Applicable",3.7302714285714287,90.495685924941753,1.5183266092072298E-5,2.4977645472058508E-5,3.8048225246766537E-5,5.4785819195386816E-5,7.556634738586488E-5,1.0075318863237906E-4,1.3069893995203767E-4,1.6574677744421492E-4,2.0623153716586059E-4,2.5248059226310387E-4,3.0481457753673766E-4,3.6354799700535629E-4,1,1,1,1,1,1,1,1,1,1,1,1]
[1001505514,6,4,10.285714285714286,0.52489065916782418,"Not Applicable","Not Applicable",3.8205285714285715,81.3586997951722,4.6450838340788178E-5,6.7695764922002957E-5,9.4371020398424156E-5,1.2702785376934587E-4,1.6620657937236637E-4,2.1243786456389763E-4,2.6624376195765007E-4,3.2813855412830157E-4,3.9862945674647062E-4,4.7821721233844475E-4,5.6739659787015233E-4,6.6665686328333973E-4,1,1,1,1,1,1,1,1,1,1,1,1]
[1001505537,8,3,7.7142857142857153,-0.5248906591678234,"Not Applicable","Not Applicable",3.7302714285714287,90.495685924941753,7.556634738586488E-5,1.0075318863237906E-4,1.3069893995203767E-4,1.6574677744421492E-4,2.0623153716586059E-4,2.5248059226310387E-4,3.0481457753673766E-4,3.6354799700535629E-4,4.2898973991092209E-4,5.0144352382806639E-4,5.8120827885803231E-4,6.6857848357752608E-4,1,1,1,1,1,1,1,1,1,1,1,1]
[1001505538,8,3,7.7142857142857153,-0.5248906591678234,"Not Applicable","Not Applicable",3.7302714285714287,90.495685924941753,7.556634738586488E-5,1.0075318863237906E-4,1.3069893995203767E-4,1.6574677744421492E-4,2.0623153716586059E-4,2.5248059226310387E-4,3.0481457753673766E-4,3.6354799700535629E-4,4.2898973991092209E-4,5.0144352382806639E-4,5.8120827885803231E-4,6.6857848357752608E-4,1,1,1,1,1,1,1,1,1,1,1,1]
[1001509331,7,3,7.7142857142857153,-0.5248906591678234,"Not Applicable","Not Applicable",3.7302714285714287,90.495685924941753,5.4785819195386816E-5,7.556634738586488E-5,1.0075318863237906E-4,1.3069893995203767E-4,1.6574677744421492E-4,2.0623153716586059E-4,2.5248059226310387E-4,3.0481457753673766E-4,3.6354799700535629E-4,4.2898973991092209E-4,5.0144352382806639E-4,5.8120827885803231E-4,1,1,1,1,1,1,1,1,1,1,1,1]
[1001509851,5,3,7.7142857142857153,-0.5248906591678234,"Not Applicable","Not Applicable",3.7302714285714287,90.495685924941753,2.4977645472058508E-5,3.8048225246766537E-5,5.4785819195386816E-5,7.556634738586488E-5,1.0075318863237906E-4,1.3069893995203767E-4,1.6574677744421492E-4,2.0623153716586059E-4,2.5248059226310387E-4,3.0481457753673766E-4,3.6354799700535629E-4,4.2898973991092209E-4,1,1,1,1,1,1,1,1,1,1,1,1]
[1001509852,5,3,7.7142857142857153,-0.5248906591678234,"Not Applicable","Not Applicable",3.7302714285714287,90.495685924941753,2.4977645472058508E-5,3.8048225246766537E-5,5.4785819195386816E-5,7.556634738586488E-5,1.0075318863237906E-4,1.3069893995203767E-4,1.6574677744421492E-4,2.0623153716586059E-4,2.5248059226310387E-4,3.0481457753673766E-4,3.6354799700535629E-4,4.2898973991092209E-4,1,1,1,1,1,1,1,1,1,1,1,1]
[1001511639,8,4,10.285714285714286,0.52489065916782418,"Not Applicable","Not Applicable",3.8205285714285715,81.3586997951722,9.4371020398424156E-5,1.2702785376934587E-4,1.6620657937236637E-4,2.1243786456389763E-4,2.6624376195765007E-4,3.2813855412830157E-4,3.9862945674647062E-4,4.7821721233844475E-4,5.6739659787015233E-4,6.6665686328333973E-4,7.7648211389553861E-4,8.9735164657497933E-4,1,1,1,1,1,1,1,1,1,1,1,1]
[1001521524,6,3,7.7142857142857153,-0.5248906591678234,"Not Applicable","Not Applicable",3.7302714285714287,90.495685924941753,3.8048225246766537E-5,5.4785819195386816E-5,7.556634738586488E-5,1.0075318863237906E-4,1.3069893995203767E-4,1.6574677744421492E-4,2.0623153716586059E-4,2.5248059226310387E-4,3.0481457753673766E-4,3.6354799700535629E-4,4.2898973991092209E-4,5.0144352382806639E-4,1,1,1,1,1,1,1,1,1,1,1,1]
[1001521525,7,3,7.7142857142857153,-0.5248906591678234,"Not Applicable","Not Applicable",3.7302714285714287,90.495685924941753,5.4785819195386816E-5,7.556634738586488E-5,1.0075318863237906E-4,1.3069893995203767E-4,1.6574677744421492E-4,2.0623153716586059E-4,2.5248059226310387E-4,3.0481457753673766E-4,3.6354799700535629E-4,4.2898973991092209E-4,5.0144352382806639E-4,5.8120827885803231E-4,1,1,1,1,1,1,1,1,1,1,1,1]
[1001521526,7,3,7.7142857142857153,-0.5248906591678234,"Not Applicable","Not Applicable",3.7302714285714287,90.495685924941753,5.4785819195386816E-5,7.556634738586488E-5,1.0075318863237906E-4,1.3069893995203767E-4,1.6574677744421492E-4,2.0623153716586059E-4,2.5248059226310387E-4,3.0481457753673766E-4,3.6354799700535629E-4,4.2898973991092209E-4,5.0144352382806639E-4,5.8120827885803231E-4,1,1,1,1,1,1,1,1,1,1,1,1]
[1001521527,3,3,7.7142857142857153,-0.5248906591678234,"Not Applicable","Not Applicable",3.7302714285714287,90.495685924941753,8.2560927570325611E-6,1.5183266092072298E-5,2.4977645472058508E-5,3.8048225246766537E-5,5.4785819195386816E-5,7.556634738586488E-5,1.0075318863237906E-4,1.3069893995203767E-4,1.6574677744421492E-4,2.0623153716586059E-4,2.5248059226310387E-4,3.0481457753673766E-4,1,1,1,1,1,1,1,1,1,1,1,1]
[1001521528,3,3,7.7142857142857153,-0.5248906591678234,"Not Applicable","Not Applicable",3.7302714285714287,90.495685924941753,8.2560927570325611E-6,1.5183266092072298E-5,2.4977645472058508E-5,3.8048225246766537E-5,5.4785819195386816E-5,7.556634738586488E-5,1.0075318863237906E-4,1.3069893995203767E-4,1.6574677744421492E-4,2.0623153716586059E-4,2.5248059226310387E-4,3.0481457753673766E-4,1,1,1,1,1,1,1,1,1,1,1,1]
[1001526010,7,3,7.7142857142857153,-0.5248906591678234,"Not Applicable","Not Applicable",3.7302714285714287,90.495685924941753,5.4785819195386816E-5,7.556634738586488E-5,1.0075318863237906E-4,1.3069893995203767E-4,1.6574677744421492E-4,2.0623153716586059E-4,2.5248059226310387E-4,3.0481457753673766E-4,3.6354799700535629E-4,4.2898973991092209E-4,5.0144352382806639E-4,5.8120827885803231E-4,1,1,1,1,1,1,1,1,1,1,1,1]
[1001526011,6,3,7.7142857142857153,-0.5248906591678234,"Not Applicable","Not Applicable",3.7302714285714287,90.495685924941753,3.8048225246766537E-5,5.4785819195386816E-5,7.556634738586488E-5,1.0075318863237906E-4,1.3069893995203767E-4,1.6574677744421492E-4,2.0623153716586059E-4,2.5248059226310387E-4,3.0481457753673766E-4,3.6354799700535629E-4,4.2898973991092209E-4,5.0144352382806639E-4,1,1,1,1,1,1,1,1,1,1,1,1]
[1001526012,6,3,7.7142857142857153,-0.5248906591678234,"Not Applicable","Not Applicable",3.7302714285714287,90.495685924941753,3.8048225246766537E-5,5.4785819195386816E-5,7.556634738586488E-5,1.0075318863237906E-4,1.3069893995203767E-4,1.6574677744421492E-4,2.0623153716586059E-4,2.5248059226310387E-4,3.0481457753673766E-4,3.6354799700535629E-4,4.2898973991092209E-4,5.0144352382806639E-4,1,1,1,1,1,1,1,1,1,1,1,1]
[1001528056,6,3,7.7142857142857153,-0.5248906591678234,"Not Applicable","Not Applicable",3.7302714285714287,90.495685924941753,3.8048225246766537E-5,5.4785819195386816E-5,7.556634738586488E-5,1.0075318863237906E-4,1.3069893995203767E-4,1.6574677744421492E-4,2.0623153716586059E-4,2.5248059226310387E-4,3.0481457753673766E-4,3.6354799700535629E-4,4.2898973991092209E-4,5.0144352382806639E-4,1,1,1,1,1,1,1,1,1,1,1,1]
[1001528057,6,4,10.285714285714286,0.52489065916782418,"Not Applicable","Not Applicable",3.8205285714285715,81.3586997951722,4.6450838340788178E-5,6.7695764922002957E-5,9.4371020398424156E-5,1.2702785376934587E-4,1.6620657937236637E-4,2.1243786456389763E-4,2.6624376195765007E-4,3.2813855412830157E-4,3.9862945674647062E-4,4.7821721233844475E-4,5.6739659787015233E-4,6.6665686328333973E-4,1,1,1,1,1,1,1,1,1,1,1,1]
[1001528058,6,3,7.7142857142857153,-0.5248906591678234,"Not Applicable","Not Applicable",3.7302714285714287,90.495685924941753,3.8048225246766537E-5,5.4785819195386816E-5,7.556634738586488E-5,1.0075318863237906E-4,1.3069893995203767E-4,1.6574677744421492E-4,2.0623153716586059E-4,2.5248059226310387E-4,3.0481457753673766E-4,3.6354799700535629E-4,4.2898973991092209E-4,5.0144352382806639E-4,1,1,1,1,1,1,1,1,1,1,1,1]
[1001528059,6,3,7.7142857142857153,-0.5248906591678234,"Not Applicable","Not Applicable",3.7302714285714287,90.495685924941753,3.8048225246766537E-5,5.4785819195386816E-5,7.556634738586488E-5,1.0075318863237906E-4,1.3069893995203767E-4,1.6574677744421492E-4,2.0623153716586059E-4,2.5248059226310387E-4,3.0481457753673766E-4,3.6354799700535629E-4,4.2898973991092209E-4,5.0144352382806639E-4,1,1,1,1,1,1,1,1,1,1,1,1]
[1001528099,8,3,7.7142857142857153,-0.5248906591678234,"Not Applicable","Not Applicable",3.7302714285714287,90.495685924941753,7.556634738586488E-5,1.0075318863237906E-4,1.3069893995203767E-4,1.6574677744421492E-4,2.0623153716586059E-4,2.5248059226310387E-4,3.0481457753673766E-4,3.6354799700535629E-4,4.2898973991092209E-4,5.0144352382806639E-4,5.8120827885803231E-4,6.6857848357752608E-4,1,1,1,1,1,1,1,1,1,1,1,1]
[1001528100,8,3,7.7142857142857153,-0.5248906591678234,"Not Applicable","Not Applicable",3.7302714285714287,90.495685924941753,7.556634738586488E-5,1.0075318863237906E-4,1.3069893995203767E-4,1.6574677744421492E-4,2.0623153716586059E-4,2.5248059226310387E-4,3.0481457753673766E-4,3.6354799700535629E-4,4.2898973991092209E-4,5.0144352382806639E-4,5.8120827885803231E-4,6.6857848357752608E-4,1,1,1,1,1,1,1,1,1,1,1,1]
[1001537307,8,3,7.7142857142857153,-0.5248906591678234,"Not Applicable","Not Applicable",3.7302714285714287,90.495685924941753,7.556634738586488E-5,1.0075318863237906E-4,1.3069893995203767E-4,1.6574677744421492E-4,2.0623153716586059E-4,2.5248059226310387E-4,3.0481457753673766E-4,3.6354799700535629E-4,4.2898973991092209E-4,5.0144352382806639E-4,5.8120827885803231E-4,6.6857848357752608E-4,1,1,1,1,1,1,1,1,1,1,1,1]
[1001538184,8,3,7.7142857142857153,-0.5248906591678234,"Not Applicable","Not Applicable",3.7302714285714287,90.495685924941753,7.556634738586488E-5,1.0075318863237906E-4,1.3069893995203767E-4,1.6574677744421492E-4,2.0623153716586059E-4,2.5248059226310387E-4,3.0481457753673766E-4,3.6354799700535629E-4,4.2898973991092209E-4,5.0144352382806639E-4,5.8120827885803231E-4,6.6857848357752608E-4,1,1,1,1,1,1,1,1,1,1,1,1]
[1001538185,8,3,7.7142857142857153,-0.5248906591678234,"Not Applicable","Not Applicable",3.7302714285714287,90.495685924941753,7.556634738586488E-5,1.0075318863237906E-4,1.3069893995203767E-4,1.6574677744421492E-4,2.0623153716586059E-4,2.5248059226310387E-4,3.0481457753673766E-4,3.6354799700535629E-4,4.2898973991092209E-4,5.0144352382806639E-4,5.8120827885803231E-4,6.6857848357752608E-4,1,1,1,1,1,1,1,1,1,1,1,1]
[1001542444,8,3,7.7142857142857153,-0.5248906591678234,"Not Applicable","Not Applicable",3.7302714285714287,90.495685924941753,7.556634738586488E-5,1.0075318863237906E-4,1.3069893995203767E-4,1.6574677744421492E-4,2.0623153716586059E-4,2.5248059226310387E-4,3.0481457753673766E-4,3.6354799700535629E-4,4.2898973991092209E-4,5.0144352382806639E-4,5.8120827885803231E-4,6.6857848357752608E-4,1,1,1,1,1,1,1,1,1,1,1,1]
[1001542445,8,3,7.7142857142857153,-0.5248906591678234,"Not Applicable","Not Applicable",3.7302714285714287,90.495685924941753,7.556634738586488E-5,1.0075318863237906E-4,1.3069893995203767E-4,1.6574677744421492E-4,2.0623153716586059E-4,2.5248059226310387E-4,3.0481457753673766E-4,3.6354799700535629E-4,4.2898973991092209E-4,5.0144352382806639E-4,5.8120827885803231E-4,6.6857848357752608E-4,1,1,1,1,1,1,1,1,1,1,1,1]
[1001551112,1,3,7.7142857142857153,-0.5248906591678234,"Not Applicable","Not Applicable",3.7302714285714287,90.495685924941753,1.2441735583003762E-6,3.7640718145354224E-6,8.2560927570325611E-6,1.5183266092072298E-5,2.4977645472058508E-5,3.8048225246766537E-5,5.4785819195386816E-5,7.556634738586488E-5,1.0075318863237906E-4,1.3069893995203767E-4,1.6574677744421492E-4,2.0623153716586059E-4,1,1,1,1,1,1,1,1,1,1,1,1]
[1001551113,1,3,7.7142857142857153,-0.5248906591678234,"Not Applicable","Not Applicable",3.7302714285714287,90.495685924941753,1.2441735583003762E-6,3.7640718145354224E-6,8.2560927570325611E-6,1.5183266092072298E-5,2.4977645472058508E-5,3.8048225246766537E-5,5.4785819195386816E-5,7.556634738586488E-5,1.0075318863237906E-4,1.3069893995203767E-4,1.6574677744421492E-4,2.0623153716586059E-4,1,1,1,1,1,1,1,1,1,1,1,1]
[1001553102,1,5,12.857142857142858,1.5746719775034717,"Not Applicable","Not Applicable",3.9107857142857139,73.504466067305898,1.4782393818741015E-6,4.8118124270860379E-6,1.1116768942339205E-5,2.128447098879864E-5,3.618616010485082E-5,5.6677444359269317E-5,8.3601176665095098E-5,1.1778945752365005E-4,1.6006510781928882E-4,2.1124279647594934E-4,2.7212993086824752E-4,3.4352737722408036E-4,1,1,1,1,1,1,1,1,1,1,1,1]
[1001553103,0,3,7.7142857142857153,-0.5248906591678234,"Not Applicable","Not Applicable",3.7302714285714287,90.495685924941753,1.8749399852069933E-7,1.2441735583003762E-6,3.7640718145354224E-6,8.2560927570325611E-6,1.5183266092072298E-5,2.4977645472058508E-5,3.8048225246766537E-5,5.4785819195386816E-5,7.556634738586488E-5,1.0075318863237906E-4,1.3069893995203767E-4,1.6574677744421492E-4,1,1,1,1,1,1,1,1,1,1,1,1]
[1001560042,3,3,7.7142857142857153,-0.5248906591678234,"Not Applicable","Not Applicable",3.7302714285714287,90.495685924941753,8.2560927570325611E-6,1.5183266092072298E-5,2.4977645472058508E-5,3.8048225246766537E-5,5.4785819195386816E-5,7.556634738586488E-5,1.0075318863237906E-4,1.3069893995203767E-4,1.6574677744421492E-4,2.0623153716586059E-4,2.5248059226310387E-4,3.0481457753673766E-4,1,1,1,1,1,1,1,1,1,1,1,1]
[1001560043,3,3,7.7142857142857153,-0.5248906591678234,"Not Applicable","Not Applicable",3.7302714285714287,90.495685924941753,8.2560927570325611E-6,1.5183266092072298E-5,2.4977645472058508E-5,3.8048225246766537E-5,5.4785819195386816E-5,7.556634738586488E-5,1.0075318863237906E-4,1.3069893995203767E-4,1.6574677744421492E-4,2.0623153716586059E-4,2.5248059226310387E-4,3.0481457753673766E-4,1,1,1,1,1,1,1,1,1,1,1,1]
[1001560044,3,3,7.7142857142857153,-0.5248906591678234,"Not Applicable","Not Applicable",3.7302714285714287,90.495685924941753,8.2560927570325611E-6,1.5183266092072298E-5,2.4977645472058508E-5,3.8048225246766537E-5,5.4785819195386816E-5,7.556634738586488E-5,1.0075318863237906E-4,1.3069893995203767E-4,1.6574677744421492E-4,2.0623153716586059E-4,2.5248059226310387E-4,3.0481457753673766E-4,1,1,1,1,1,1,1,1,1,1,1,1]
[1001571355,3,3,7.7142857142857153,-0.5248906591678234,"Not Applicable","Not Applicable",3.7302714285714287,90.495685924941753,8.2560927570325611E-6,1.5183266092072298E-5,2.4977645472058508E-5,3.8048225246766537E-5,5.4785819195386816E-5,7.556634738586488E-5,1.0075318863237906E-4,1.3069893995203767E-4,1.6574677744421492E-4,2.0623153716586059E-4,2.5248059226310387E-4,3.0481457753673766E-4,1,1,1,1,1,1,1,1,1,1,1,1]
[1001571356,3,5,12.857142857142858,1.5746719775034717,"Not Applicable","Not Applicable",3.9107857142857139,73.504466067305898,1.1116768942339205E-5,2.128447098879864E-5,3.618616010485082E-5,5.6677444359269317E-5,8.3601176665095098E-5,1.1778945752365005E-4,1.6006510781928882E-4,2.1124279647594934E-4,2.7212993086824752E-4,3.4352737722408036E-4,4.2623005509803528E-4,5.2102743601057505E-4,1,1,1,1,1,1,1,1,1,1,1,1]
[1001578289,7,3,7.7142857142857153,-0.5248906591678234,"Not Applicable","Not Applicable",3.7302714285714287,90.495685924941753,5.4785819195386816E-5,7.556634738586488E-5,1.0075318863237906E-4,1.3069893995203767E-4,1.6574677744421492E-4,2.0623153716586059E-4,2.5248059226310387E-4,3.0481457753673766E-4,3.6354799700535629E-4,4.2898973991092209E-4,5.0144352382806639E-4,5.8120827885803231E-4,1,1,1,1,1,1,1,1,1,1,1,1]
[1001584020,5,3,7.7142857142857153,-0.5248906591678234,"Not Applicable","Not Applicable",3.7302714285714287,90.495685924941753,2.4977645472058508E-5,3.8048225246766537E-5,5.4785819195386816E-5,7.556634738586488E-5,1.0075318863237906E-4,1.3069893995203767E-4,1.6574677744421492E-4,2.0623153716586059E-4,2.5248059226310387E-4,3.0481457753673766E-4,3.6354799700535629E-4,4.2898973991092209E-4,1,1,1,1,1,1,1,1,1,1,1,1]
[1001585103,5,3,7.7142857142857153,-0.5248906591678234,"Not Applicable","Not Applicable",3.7302714285714287,90.495685924941753,2.4977645472058508E-5,3.8048225246766537E-5,5.4785819195386816E-5,7.556634738586488E-5,1.0075318863237906E-4,1.3069893995203767E-4,1.6574677744421492E-4,2.0623153716586059E-4,2.5248059226310387E-4,3.0481457753673766E-4,3.6354799700535629E-4,4.2898973991092209E-4,1,1,1,1,1,1,1,1,1,1,1,1]
[1001589233,7,3,7.7142857142857153,-0.5248906591678234,"Not Applicable","Not Applicable",3.7302714285714287,90.495685924941753,5.4785819195386816E-5,7.556634738586488E-5,1.0075318863237906E-4,1.3069893995203767E-4,1.6574677744421492E-4,2.0623153716586059E-4,2.5248059226310387E-4,3.0481457753673766E-4,3.6354799700535629E-4,4.2898973991092209E-4,5.0144352382806639E-4,5.8120827885803231E-4,1,1,1,1,1,1,1,1,1,1,1,1]
[1001589234,7,3,7.7142857142857153,-0.5248906591678234,"Not Applicable","Not Applicable",3.7302714285714287,90.495685924941753,5.4785819195386816E-5,7.556634738586488E-5,1.0075318863237906E-4,1.3069893995203767E-4,1.6574677744421492E-4,2.0623153716586059E-4,2.5248059226310387E-4,3.0481457753673766E-4,3.6354799700535629E-4,4.2898973991092209E-4,5.0144352382806639E-4,5.8120827885803231E-4,1,1,1,1,1,1,1,1,1,1,1,1]
[1001613550,8,3,7.7142857142857153,-0.5248906591678234,"Not Applicable","Not Applicable",3.7302714285714287,90.495685924941753,7.556634738586488E-5,1.0075318863237906E-4,1.3069893995203767E-4,1.6574677744421492E-4,2.0623153716586059E-4,2.5248059226310387E-4,3.0481457753673766E-4,3.6354799700535629E-4,4.2898973991092209E-4,5.0144352382806639E-4,5.8120827885803231E-4,6.6857848357752608E-4,1,1,1,1,1,1,1,1,1,1,1,1]
[1001617236,7,3,7.7142857142857153,-0.5248906591678234,"Not Applicable","Not Applicable",3.7302714285714287,90.495685924941753,5.4785819195386816E-5,7.556634738586488E-5,1.0075318863237906E-4,1.3069893995203767E-4,1.6574677744421492E-4,2.0623153716586059E-4,2.5248059226310387E-4,3.0481457753673766E-4,3.6354799700535629E-4,4.2898973991092209E-4,5.0144352382806639E-4,5.8120827885803231E-4,1,1,1,1,1,1,1,1,1,1,1,1]
[1001618746,7,3,7.7142857142857153,-0.5248906591678234,"Not Applicable","Not Applicable",3.7302714285714287,90.495685924941753,5.4785819195386816E-5,7.556634738586488E-5,1.0075318863237906E-4,1.3069893995203767E-4,1.6574677744421492E-4,2.0623153716586059E-4,2.5248059226310387E-4,3.0481457753673766E-4,3.6354799700535629E-4,4.2898973991092209E-4,5.0144352382806639E-4,5.8120827885803231E-4,1,1,1,1,1,1,1,1,1,1,1,1]
[1001618747,7,3,7.7142857142857153,-0.5248906591678234,"Not Applicable","Not Applicable",3.7302714285714287,90.495685924941753,5.4785819195386816E-5,7.556634738586488E-5,1.0075318863237906E-4,1.3069893995203767E-4,1.6574677744421492E-4,2.0623153716586059E-4,2.5248059226310387E-4,3.0481457753673766E-4,3.6354799700535629E-4,4.2898973991092209E-4,5.0144352382806639E-4,5.8120827885803231E-4,1,1,1,1,1,1,1,1,1,1,1,1]
[1001626218,1,3,7.7142857142857153,-0.5248906591678234,"Not Applicable","Not Applicable",3.7302714285714287,90.495685924941753,1.2441735583003762E-6,3.7640718145354224E-6,8.2560927570325611E-6,1.5183266092072298E-5,2.4977645472058508E-5,3.8048225246766537E-5,5.4785819195386816E-5,7.556634738586488E-5,1.0075318863237906E-4,1.3069893995203767E-4,1.6574677744421492E-4,2.0623153716586059E-4,1,1,1,1,1,1,1,1,1,1,1,1]
[1001631721,4,3,7.7142857142857153,-0.5248906591678234,"Not Applicable","Not Applicable",3.7302714285714287,90.495685924941753,1.5183266092072298E-5,2.4977645472058508E-5,3.8048225246766537E-5,5.4785819195386816E-5,7.556634738586488E-5,1.0075318863237906E-4,1.3069893995203767E-4,1.6574677744421492E-4,2.0623153716586059E-4,2.5248059226310387E-4,3.0481457753673766E-4,3.6354799700535629E-4,1,1,1,1,1,1,1,1,1,1,1,1]
[1001631725,4,3,7.7142857142857153,-0.5248906591678234,"Not Applicable","Not Applicable",3.7302714285714287,90.495685924941753,1.5183266092072298E-5,2.4977645472058508E-5,3.8048225246766537E-5,5.4785819195386816E-5,7.556634738586488E-5,1.0075318863237906E-4,1.3069893995203767E-4,1.6574677744421492E-4,2.0623153716586059E-4,2.5248059226310387E-4,3.0481457753673766E-4,3.6354799700535629E-4,1,1,1,1,1,1,1,1,1,1,1,1]
[1001642113,5,3,7.7142857142857153,-0.5248906591678234,"Not Applicable","Not Applicable",3.7302714285714287,90.495685924941753,2.4977645472058508E-5,3.8048225246766537E-5,5.4785819195386816E-5,7.556634738586488E-5,1.0075318863237906E-4,1.3069893995203767E-4,1.6574677744421492E-4,2.0623153716586059E-4,2.5248059226310387E-4,3.0481457753673766E-4,3.6354799700535629E-4,4.2898973991092209E-4,1,1,1,1,1,1,1,1,1,1,1,1]
[1001642114,5,3,7.7142857142857153,-0.5248906591678234,"Not Applicable","Not Applicable",3.7302714285714287,90.495685924941753,2.4977645472058508E-5,3.8048225246766537E-5,5.4785819195386816E-5,7.556634738586488E-5,1.0075318863237906E-4,1.3069893995203767E-4,1.6574677744421492E-4,2.0623153716586059E-4,2.5248059226310387E-4,3.0481457753673766E-4,3.6354799700535629E-4,4.2898973991092209E-4,1,1,1,1,1,1,1,1,1,1,1,1]
[1001687771,6,3,7.7142857142857153,-0.5248906591678234,"Not Applicable","Not Applicable",3.7302714285714287,90.495685924941753,3.8048225246766537E-5,5.4785819195386816E-5,7.556634738586488E-5,1.0075318863237906E-4,1.3069893995203767E-4,1.6574677744421492E-4,2.0623153716586059E-4,2.5248059226310387E-4,3.0481457753673766E-4,3.6354799700535629E-4,4.2898973991092209E-4,5.0144352382806639E-4,1,1,1,1,1,1,1,1,1,1,1,1]
[1001853912,4,3,7.7142857142857153,-0.5248906591678234,"Not Applicable","Not Applicable",3.7302714285714287,90.495685924941753,1.5183266092072298E-5,2.4977645472058508E-5,3.8048225246766537E-5,5.4785819195386816E-5,7.556634738586488E-5,1.0075318863237906E-4,1.3069893995203767E-4,1.6574677744421492E-4,2.0623153716586059E-4,2.5248059226310387E-4,3.0481457753673766E-4,3.6354799700535629E-4,1,1,1,1,1,1,1,1,1,1,1,1]
[1001865682,1,3,7.7142857142857153,-0.5248906591678234,"Not Applicable","Not Applicable",3.7302714285714287,90.495685924941753,1.2441735583003762E-6,3.7640718145354224E-6,8.2560927570325611E-6,1.5183266092072298E-5,2.4977645472058508E-5,3.8048225246766537E-5,5.4785819195386816E-5,7.556634738586488E-5,1.0075318863237906E-4,1.3069893995203767E-4,1.6574677744421492E-4,2.0623153716586059E-4,1,1,1,1,1,1,1,1,1,1,1,1]
[1001865683,1,3,7.7142857142857153,-0.5248906591678234,"Not Applicable","Not Applicable",3.7302714285714287,90.495685924941753,1.2441735583003762E-6,3.7640718145354224E-6,8.2560927570325611E-6,1.5183266092072298E-5,2.4977645472058508E-5,3.8048225246766537E-5,5.4785819195386816E-5,7.556634738586488E-5,1.0075318863237906E-4,1.3069893995203767E-4,1.6574677744421492E-4,2.0623153716586059E-4,1,1,1,1,1,1,1,1,1,1,1,1]
[1001895048,3,3,7.7142857142857153,-0.5248906591678234,"Not Applicable","Not Applicable",3.7302714285714287,90.495685924941753,8.2560927570325611E-6,1.5183266092072298E-5,2.4977645472058508E-5,3.8048225246766537E-5,5.4785819195386816E-5,7.556634738586488E-5,1.0075318863237906E-4,1.3069893995203767E-4,1.6574677744421492E-4,2.0623153716586059E-4,2.5248059226310387E-4,3.0481457753673766E-4,1,1,1,1,1,1,1,1,1,1,1,1]
[1003132771,1,3,7.7142857142857153,-0.5248906591678234,"Not Applicable","Not Applicable",3.7302714285714287,90.495685924941753,1.2441735583003762E-6,3.7640718145354224E-6,8.2560927570325611E-6,1.5183266092072298E-5,2.4977645472058508E-5,3.8048225246766537E-5,5.4785819195386816E-5,7.556634738586488E-5,1.0075318863237906E-4,1.3069893995203767E-4,1.6574677744421492E-4,2.0623153716586059E-4,1,1,1,1,1,1,1,1,1,1,1,1]
[1003132772,1,3,7.7142857142857153,-0.5248906591678234,"Not Applicable","Not Applicable",3.7302714285714287,90.495685924941753,1.2441735583003762E-6,3.7640718145354224E-6,8.2560927570325611E-6,1.5183266092072298E-5,2.4977645472058508E-5,3.8048225246766537E-5,5.4785819195386816E-5,7.556634738586488E-5,1.0075318863237906E-4,1.3069893995203767E-4,1.6574677744421492E-4,2.0623153716586059E-4,1,1,1,1,1,1,1,1,1,1,1,1]
[1003132875,1,3,7.7142857142857153,-0.5248906591678234,"Not Applicable","Not Applicable",3.7302714285714287,90.495685924941753,1.2441735583003762E-6,3.7640718145354224E-6,8.2560927570325611E-6,1.5183266092072298E-5,2.4977645472058508E-5,3.8048225246766537E-5,5.4785819195386816E-5,7.556634738586488E-5,1.0075318863237906E-4,1.3069893995203767E-4,1.6574677744421492E-4,2.0623153716586059E-4,1,1,1,1,1,1,1,1,1,1,1,1]
[1003132876,1,3,7.7142857142857153,-0.5248906591678234,"Not Applicable","Not Applicable",3.7302714285714287,90.495685924941753,1.2441735583003762E-6,3.7640718145354224E-6,8.2560927570325611E-6,1.5183266092072298E-5,2.4977645472058508E-5,3.8048225246766537E-5,5.4785819195386816E-5,7.556634738586488E-5,1.0075318863237906E-4,1.3069893995203767E-4,1.6574677744421492E-4,2.0623153716586059E-4,1,1,1,1,1,1,1,1,1,1,1,1]
[1000332689,47,3,7.7142857142857153,-0.5248906591678234,"Not Applicable","Not Applicable",3.7302714285714287,90.495685924941753,7.2984777089150181E-3,7.7211401743552781E-3,8.1589943395509699E-3,8.6122660003184921E-3,9.0811797374878503E-3,9.5659589470802574E-3,1.0066825869171323E-2,1.0584001615520949E-2,1.1117706196044316E-2,1.1668158544192762E-2,1.2235576541308146E-2,1.2820177040009317E-2,4,4,4,4,4,5,5,5,5,5,6,6]
[1000340355,59,4,10.285714285714286,0.52489065916782418,"Not Applicable","Not Applicable",3.8205285714285715,81.3586997951722,1.989284024947063E-2,2.084223066765066E-2,2.1820382557101111E-2,2.2827682234240088E-2,2.386451489872262E-2,2.4931264654322365E-2,2.6028314529103064E-2,2.7156046494914328E-2,2.8314841486244462E-2,2.9505079418460589E-2,3.0727139205464868E-2,3.198139877679361E-2,9,9,10,10,10,10,10,10,10,10,10,10]
[1000349432,18,3,7.7142857142857153,-0.5248906591678234,"Not Applicable","Not Applicable",3.7302714285714287,90.495685924941753,5.8120827885803231E-4,6.6857848357752608E-4,7.6384446101957697E-4,8.6729264120025411E-4,9.7920579538369025E-4,1.0998632462725082E-3,1.2295410575353508E-3,1.3685122054777532E-3,1.5170467351845634E-3,1.6754119030806872E-3,1.8438723075499394E-3,2.0226900090022917E-3,1,1,1,1,1,1,1,1,1,1,1,1]
[1000358329,14,3,7.7142857142857153,-0.5248906591678234,"Not Applicable","Not Applicable",3.7302714285714287,90.495685924941753,3.0481457753673766E-4,3.6354799700535629E-4,4.2898973991092209E-4,5.0144352382806639E-4,5.8120827885803231E-4,6.6857848357752608E-4,7.6384446101957697E-4,8.6729264120025411E-4,9.7920579538369025E-4,1.0998632462725082E-3,1.2295410575353508E-3,1.3685122054777532E-3,1,1,1,1,1,1,1,1,1,1,1,1]
[1000374750,52,3,7.7142857142857153,-0.5248906591678234,"Not Applicable","Not Applicable",3.7302714285714287,90.495685924941753,9.5659589470802574E-3,1.0066825869171323E-2,1.0584001615520949E-2,1.1117706196044316E-2,1.1668158544192762E-2,1.2235576541308146E-2,1.2820177040009317E-2,1.3422175886665352E-2,1.4041787943005819E-2,1.4679227106915316E-2,1.5334706332455605E-2,1.6008437649156285E-2,5,5,5,5,5,6,6,6,6,7,7,7]
[1000374782,52,5,12.857142857142858,1.5746719775034717,"Not Applicable","Not Applicable",3.9107857142857139,73.504466067305898,2.0535653410273788E-2,2.1683928412380312E-2,2.2873562569482885E-2,2.4105252892835553E-2,2.5379695263869503E-2,2.6697584456155762E-2,2.8059614156563172E-2,2.9466476985654733E-2,3.0918864517361939E-2,3.2417467297974317E-2,3.3962974864479044E-2,3.5556075762282695E-2,9,10,10,10,10,10,10,10,10,10,10,10]
[1000400379,47,6,15.428571428571431,2.4494897427831779,"Not Applicable","Not Applicable",3.9859999999999998,67.779304104150881,2.0987976357435021E-2,2.2320798476970879E-2,2.3708750395101268E-2,2.5152941302056715E-2,2.6654480077496132E-2,2.8214475296682407E-2,2.9834035236418879E-2,3.1514267880760095E-2,3.3256280926509466E-2,3.5061181788515763E-2,3.6930077604778885E-2,3.8864075241375327E-2,9,10,10,10,10,10,10,10,10,10,10,10]
[1000400797,61,6,15.428571428571431,2.4494897427831779,"Not Applicable","Not Applicable",3.9859999999999998,67.779304104150881,4.5067743753790905E-2,4.7273212057066728E-2,4.9549312593095363E-2,5.1897150690847348E-2,5.431783143750904E-2,5.6812459682254721E-2,5.9382140039903393E-2,6.2027976894465854E-2,6.4751074402586581E-2,6.7552536496885099E-2,7.0433466889201421E-2,7.3394969073748942E-2,10,10,10,10,10,10,10,10,10,10,10,10]
[1000407857,51,4,10.285714285714286,0.52489065916782418,"Not Applicable","Not Applicable",3.8205285714285715,81.3586997951722,1.3286385475045577E-2,1.4019733047602333E-2,1.4778708584450748E-2,1.5563708186639956E-2,1.6375126640774437E-2,1.7213357447162774E-2,1.807879284687235E-2,1.897182384775074E-2,1.989284024947063E-2,2.084223066765066E-2,2.1820382557101111E-2,2.2827682234240088E-2,6,6,7,7,7,8,8,9,9,9,10,10]
[1000410265,66,6,15.428571428571431,2.4494897427831779,"Not Applicable","Not Applicable",3.9859999999999998,67.779304104150881,5.6812459682254721E-2,5.9382140039903393E-2,6.2027976894465854E-2,6.4751074402586581E-2,6.7552536496885099E-2,7.0433466889201421E-2,7.3394969073748942E-2,7.6438146330179813E-2,7.9564101726565237E-2,8.277393812229468E-2,8.6068758170897458E-2,8.9449664322789349E-2,10,10,10,10,10,10,10,10,10,10,10,10]
[1000410753,55,5,12.857142857142858,1.5746719775034717,"Not Applicable","Not Applicable",3.9107857142857139,73.504466067305898,2.4105252892835553E-2,2.5379695263869503E-2,2.6697584456155762E-2,2.8059614156563172E-2,2.9466476985654733E-2,3.0918864517361939E-2,3.2417467297974317E-2,3.3962974864479044E-2,3.5556075762282695E-2,3.7197457562345652E-2,3.8887806877757371E-2,4.0627809379779202E-2,10,10,10,10,10,10,10,10,10,10,10,10]

{"sheet":"C. PoC Summary Stats & Para","index":10,"n_rows":53,"n_cols":22,"rows_kept":53,"cut":false,"hidden":false,"merged":[[2,1,3,10],[2,12,3,22]]}
[null,null,null,"PoC Summary Statistics and Parameters"]
[]
[null,"VoC and PoC Information",null,null,null,null,null,null,null,null,null,null,"PoC Parameters"]
[]
[]
[null,null,"Description","Consequence Category ID","VoC","ICR","Cost per event",null,null,null,null,null,null,"Description","Consequence Category ID","Average PoC Score","Std Dev","Max Std. Dev","PoCUpper","PoCLower","Consequence ZCFU Scalar","Consequence ZCFL Scalar"]
[null,null,"Worker Safety","C1",{"$f":"$O$30","v":823694.98677850433},0.1212,{"$f":"E7*F7","v":99831.832397554725},null,null,null,null,null,null,{"$f":"C7","v":"Worker Safety"},"C1",{"$f":"SUM('C. Population PoC Scores'!AI5:AM5)*3","v":3},{"$f":"SQRT(_xlfn.STDEV.P(({1;2;3;4;5}*'C. Population PoC Scores'!AI5))^2+_xlfn.STDEV.P(({1;2;3;4;5}*'C. Population PoC Scores'!AJ5))^2+_xlfn.STDEV.P(({1;2;3;4;5}*'C. Population PoC Scores'!AK5))^2+_xlfn.STDEV.P(({1;2;3;4;5}*'C. Population PoC Scores'!AL5))^2+_xlfn.STDEV.P(({1;2;3;4;5}*'C. Population PoC Scores'!AM5))^2)","v":1.4142135623730951},{"$f":"IFERROR((SUM('C. Population PoC Scores'!$AI$5:$AM$5)-P7)/Q7*-1,\"\")","v":1.4142135623730949},{"$f":"F7*$Q$14","v":0.24118800000000001},{"$f":"F7*$Q$15","v":1.2120000000000011E-3},{"$f":"IFERROR((S7-F7)/R7,\"\")","v":8.4844328461011476E-2},{"$f":"IFERROR((F7-T7)/R7,\"\")","v":8.4844328461011476E-2}]
[null,null,"Physical Impact","C2",{"$f":"$O$30","v":823694.98677850433},0,{"$f":"E8*F8","v":0},null,null,null,null,null,null,{"$f":"C8","v":"Physical Impact"},"C2",{"$f":"SUM('C. Population PoC Scores'!AI6:AM6)*3","v":3},{"$f":"SQRT(_xlfn.STDEV.P(({1;2;3;4;5}*'C. Population PoC Scores'!AI6))^2+_xlfn.STDEV.P(({1;2;3;4;5}*'C. Population PoC Scores'!AJ6))^2+_xlfn.STDEV.P(({1;2;3;4;5}*'C. Population PoC Scores'!AK6))^2+_xlfn.STDEV.P(({1;2;3;4;5}*'C. Population PoC Scores'!AL6))^2+_xlfn.STDEV.P(({1;2;3;4;5}*'C. Population PoC Scores'!AM6))^2)","v":1.4142135623730951},{"$f":"IFERROR((SUM('C. Population PoC Scores'!$AI$5:$AM$5)-P8)/Q8*-1,\"\")","v":1.4142135623730949},{"$f":"F8*$Q$14","v":0},{"$f":"F8*$Q$15","v":0},{"$f":"IFERROR((S8-F8)/R8,\"\")","v":0},{"$f":"IFERROR((F8-T8)/R8,\"\")","v":0}]
[null,null,"Shock","C3",{"$f":"$O$30","v":823694.98677850433},0,0,null,null,null,null,null,null,{"$f":"C9","v":"Shock"},"C3",{"$f":"SUM('C. Population PoC Scores'!AI7:AM7)*3","v":3},{"$f":"SQRT(_xlfn.STDEV.P(({1;2;3;4;5}*'C. Population PoC Scores'!AI7))^2+_xlfn.STDEV.P(({1;2;3;4;5}*'C. Population PoC Scores'!AJ7))^2+_xlfn.STDEV.P(({1;2;3;4;5}*'C. Population PoC Scores'!AK7))^2+_xlfn.STDEV.P(({1;2;3;4;5}*'C. Population PoC Scores'!AL7))^2+_xlfn.STDEV.P(({1;2;3;4;5}*'C. Population PoC Scores'!AM7))^2)","v":1.4142135623730951},{"$f":"IFERROR((SUM('C. Population PoC Scores'!$AI$5:$AM$5)-P9)/Q9*-1,\"\")","v":1.4142135623730949},0,0,{"$f":"IFERROR((S9-F9)/R9,\"\")","v":0},{"$f":"IFERROR((F9-T9)/R9,\"\")","v":0}]
[null,null,"Fire","C4",{"$f":"$O$39","v":13200},0,0,null,null,null,null,null,null,{"$f":"C10","v":"Fire"},"C4",{"$f":"SUM('C. Population PoC Scores'!AI8:AM8)*3","v":3},{"$f":"SQRT(_xlfn.STDEV.P(({1;2;3;4;5}*'C. Population PoC Scores'!AI8))^2+_xlfn.STDEV.P(({1;2;3;4;5}*'C. Population PoC Scores'!AJ8))^2+_xlfn.STDEV.P(({1;2;3;4;5}*'C. Population PoC Scores'!AK8))^2+_xlfn.STDEV.P(({1;2;3;4;5}*'C. Population PoC Scores'!AL8))^2+_xlfn.STDEV.P(({1;2;3;4;5}*'C. Population PoC Scores'!AM8))^2)","v":1.4142135623730951},{"$f":"IFERROR((SUM('C. Population PoC Scores'!$AI$5:$AM$5)-P10)/Q10*-1,\"\")","v":1.4142135623730949},0,0,{"$f":"IFERROR((S10-F10)/R10,\"\")","v":0},{"$f":"IFERROR((F10-T10)/R10,\"\")","v":0}]
[null,null,"Environment","C5",{"$f":"$O$48","v":133653.43000000002},0.36359999999999998,48596.387148000002,null,null,null,null,null,null,{"$f":"C11","v":"Environment"},"C5",{"$f":"SUM('C. Population PoC Scores'!AI9:AM9)*3","v":3},{"$f":"SQRT(_xlfn.STDEV.P(({1;2;3;4;5}*'C. Population PoC Scores'!AI9))^2+_xlfn.STDEV.P(({1;2;3;4;5}*'C. Population PoC Scores'!AJ9))^2+_xlfn.STDEV.P(({1;2;3;4;5}*'C. Population PoC Scores'!AK9))^2+_xlfn.STDEV.P(({1;2;3;4;5}*'C. Population PoC Scores'!AL9))^2+_xlfn.STDEV.P(({1;2;3;4;5}*'C. Population PoC Scores'!AM9))^2)","v":1.4142135623730951},{"$f":"IFERROR((SUM('C. Population PoC Scores'!$AI$5:$AM$5)-P11)/Q11*-1,\"\")","v":1.4142135623730949},0.72356399999999998,3.6360000000000029E-3,{"$f":"IFERROR((S11-F11)/R11,\"\")","v":0.25453298538303443},{"$f":"IFERROR((F11-T11)/R11,\"\")","v":0.25453298538303437}]
[]
[null,null,"Value of Customer Reliability (VCR)",null,"CBD","HV-single","HV"]
[null,null,"VCR",null,47.494,40.728999999999999,40.728999999999999,"per kWh",null,null,null,null,null,"PoC Upper Scalar Bound",null,null,1.99]
[null,null,null,null,null,null,null,null,null,null,null,null,null,"PoC Lower Scalar Bound",null,null,{"$f":"1-(Q14-1)","v":1.0000000000000009E-2}]
[null,null,"Proportion Failures Resulting in Unserved Energy",null,0]
[]
[null,null,"Outage Type (HV / LV / CBD)",null,"CBD","HV-single","HV"]
[null,null,"Automatic Protection Time",null,null,null,null,"minutes"]
[null,null,"Switching Time",null,null,2,2,"hours"]
[null,null,"Restoration/Repair Time",null,null,8,8,"hours"]
[null,null,"Automatic Protection % Lost Prior to",null,null,null,null,"% load"]
[null,null,"Switching Load % Lost Prior to",null,null,0,0,"% load",null,null,null,null,null,"SAFETY",null,null,null,null,null,null,"Annual Asset Failures",{"$f":"'B. Asset PoF & Health Index'!$J$4","v":3.3029239651472655}]
[null,null,"Restoration/Repair Load % Lost Prior to",null,null,0,0,"% load",null,null,null,null,null,"Severity","Cost of Consequence","Probability of Consequence (PoC)","Grossly DF","Probability of Severity (PoS)","Years until event"]
[null,null,"Time without Supply",null,{"$f":"$E$16*((E22*E19)/(60)+(E23*E20)+E24*E21)","v":0},{"$f":"$E$16*((F22*F19)/(60)+(F23*F20)+F24*F21)","v":0},{"$f":"$E$16*((G22*G19)/(60)+(G23*G20)+G24*G21)","v":0},"Hours",null,null,null,null,null,"Severe",4469292.010235996,{"$f":"SUM($F$7:$F$9)*R25","v":1.818E-3},10,1.4999999999999999E-2,{"$f":"1/($V$23*SUM($F$7:$F$9)*R25)","v":166.53577596843806}]
[null,null,null,null,null,null,null,null,null,null,null,null,null,"Major",446929.2010235996,{"$f":"SUM($F$7:$F$9)*R26","v":3.6359999999999999E-3},8,0.03,{"$f":"1/($V$23*SUM($F$7:$F$9)*R26)","v":83.26788798421903}]
[null,null,null,null,null,null,null,null,null,null,null,null,null,"Moderate",44692.92010235996,1.8179999999999998E-2,6,0.15,{"$f":"1/($V$23*SUM($F$7:$F$9)*R27)","v":16.653577596843807}]
[null,null,null,null,null,null,null,null,null,null,null,null,null,"Minor",4469.2920102359958,3.6359999999999996E-2,4,0.3,{"$f":"1/($V$23*SUM($F$7:$F$9)*R28)","v":8.3267887984219033}]
[null,null,"Replacement / Repair Cost (per unit)",null,null,null,null,null,null,null,null,null,null,"Insignificant",446.9292010235996,6.1206000000000003E-2,2,{"$f":"1-SUM(R25:R28)","v":0.505},{"$f":"1/($V$23*SUM($F$7:$F$9)*R29)","v":4.946607206983308}]
[null,null,"Replacement Cost",null,1120000,"per unit",null,"Annual deferral benefit of reactive",null,null,null,null,null,null,{"$f":"SUMPRODUCT(O25:O29,R25:R29,Q25:Q29)","v":823694.98677850433},"<- Weighted Average VoC"]
[null,null,"Replacement Cost (under reactive conditions)",null,{"$f":"(1+G31)*E30","v":1120000},"per unit",0,{"$f":"(E31*'D. Risk Index Parameters'!E21)/(1+'D. Risk Index Parameters'!E21)","v":42040.423484119347}]
[null,null,"Proportion Replacement (%)",null,1,null,null,null,null,null,null,null,null,"FIRE"]
[null,null,"Repair Cost",null,6528,"per unit",null,null,null,null,null,null,null,"Severity","Cost of Consequence","Probability of Consequence (PoC)","Grossly DF","Probability of Severity (PoS)","Years until event"]
[null,null,"Proportion Repair (%)",null,{"$f":"(1-E32)","v":0},null,null,null,null,null,null,null,null,"Severe",66000000,{"$f":"$F$10*R34","v":0},10,0,{"$f":"1/($V$23*$F$10*R34)","v":{"$error":"#DIV/0!"}}]
[null,null,"Weighted Replacement / Repair Cost",null,{"$f":"H31*E32+E33*E34+E40","v":42985.423484119347},"per unit",null,null,null,null,null,null,null,"Major",6600000,{"$f":"$F$10*R35","v":0},8,0,{"$f":"1/($V$23*$F$10*R35)","v":{"$error":"#DIV/0!"}}]
[null,null,null,null,null,null,null,null,null,null,null,null,null,"Moderate",660000,0,6,0,{"$f":"1/($V$23*$F$10*R36)","v":{"$error":"#DIV/0!"}}]
[null,null,"Maintenance (OPEX Benefit)",null,null,null,null,null,null,null,null,null,null,"Minor",66000,0,4,0,{"$f":"1/($V$23*$F$10*R37)","v":{"$error":"#DIV/0!"}}]
[null,null,"Maintenance Cost Original or Aged Asset",null,2928,"per asset, per annum",null,null,null,null,null,null,null,"Insignificant",6600,0,2,{"$f":"1-SUM(R34:R37)","v":1},{"$f":"1/($V$23*$F$10*R38)","v":{"$error":"#DIV/0!"}}]
[null,null,"Maintenance Cost Replacement or New Asset",null,1983,"per asset, per annum",null,null,null,null,null,null,null,null,{"$f":"SUMPRODUCT(O34:O38,R34:R38,Q34:Q38)","v":13200},"<- Weighted Average VoC"]
[null,null,"Maintenance OPEX Delta",null,{"$f":"E38-E39","v":945},"per asset, per annum"]
[null,null,"New Asset Definition or First Maintenance Age",null,0,"years",null,null,null,null,null,null,null,"ENVIRONMENT"]
[null,null,null,null,null,null,null,null,null,null,null,null,null,"Severity","Cost of Consequence","Probability of Consequence (PoC)","Grossly DF","Probability of Severity (PoS)","Years until event"]
[null,null,null,null,null,null,null,null,null,null,null,null,null,"Severe",10193119,{"$f":"$F$11*R43","v":0},1,0,{"$f":"1/($V$23*$F$11*R43)","v":{"$error":"#DIV/0!"}}]
[null,null,null,null,null,null,null,null,null,null,null,null,null,"Major",4558501,{"$f":"$F$11*R44","v":3.6359999999999999E-3},1,0.01,{"$f":"1/($V$23*$F$11*R44)","v":83.267887984219016}]
[null,null,null,null,null,null,null,null,null,null,null,null,null,"Moderate",1019312,1.8179999999999998E-2,1,0.05,{"$f":"1/($V$23*$F$11*R45)","v":16.653577596843803}]
[null,null,null,null,null,null,null,null,null,null,null,null,null,"Minor",101931,0.10908,1,0.3,{"$f":"1/($V$23*$F$11*R46)","v":2.7755962661406341}]
[null,null,null,null,null,null,null,null,null,null,null,null,null,"Insignificant",10193,0.23270399999999999,1,{"$f":"1-SUM(R43:R46)","v":0.64},{"$f":"1/($V$23*$F$11*R47)","v":1.3010607497534221}]
[null,null,null,null,null,null,null,null,null,null,null,null,null,null,{"$f":"SUMPRODUCT(O43:O47,R43:R47,Q43:Q47)","v":133653.43000000002},"<- Weighted Average VoC"]
[]
[null,null,null,null,null,null,null,null,null,null,null,null,null,"Average Consequence (per asset per event)"]
[null,null,null,null,null,null,null,null,null,null,null,null,null,"Safety",{"$f":"SUM(G7:G9)","v":99831.832397554725}]
[null,null,null,null,null,null,null,null,null,null,null,null,null,"Environment",{"$f":"G11","v":48596.387148000002}]
[null,null,null,null,null,null,null,null,null,null,null,null,null,"Fire",{"$f":"G10","v":0}]

{"sheet":"C. PoC Adj Factor Scoring","index":11,"n_rows":10,"n_cols":34,"rows_kept":10,"cut":false,"hidden":false,"merged":[[2,1,4,1],[2,2,4,2],[2,28,2,33],[2,4,2,9],[2,10,2,15],[2,16,2,21],[2,22,2,27]]}
[null,null,"PoC Adjustment Factors and Scores"]
[null,null,null,null,null,{"$f":"'C. PoC Summary Stats & Para'!$C$7","v":"Worker Safety"},{"$f":"'C. PoC Summary Stats & Para'!$C$8","v":"Physical Impact"},{"$f":"'C. PoC Summary Stats & Para'!$C$9","v":"Shock"},{"$f":"'C. PoC Summary Stats & Para'!$C$10","v":"Fire"},{"$f":"'C. PoC Summary Stats & Para'!$C$11","v":"Environment"},null,{"$f":"'C. PoC Summary Stats & Para'!$C$7","v":"Worker Safety"},{"$f":"'C. PoC Summary Stats & Para'!$C$8","v":"Physical Impact"},{"$f":"'C. PoC Summary Stats & Para'!$C$9","v":"Shock"},{"$f":"'C. PoC Summary Stats & Para'!$C$10","v":"Fire"},{"$f":"'C. PoC Summary Stats & Para'!$C$11","v":"Environment"},null,{"$f":"'C. PoC Summary Stats & Para'!$C$7","v":"Worker Safety"},{"$f":"'C. PoC Summary Stats & Para'!$C$8","v":"Physical Impact"},{"$f":"'C. PoC Summary Stats & Para'!$C$9","v":"Shock"},{"$f":"'C. PoC Summary Stats & Para'!$C$10","v":"Fire"},{"$f":"'C. PoC Summary Stats & Para'!$C$11","v":"Environment"},null,{"$f":"'C. PoC Summary Stats & Para'!$C$7","v":"Worker Safety"},{"$f":"'C. PoC Summary Stats & Para'!$C$8","v":"Physical Impact"},{"$f":"'C. PoC Summary Stats & Para'!$C$9","v":"Shock"},{"$f":"'C. PoC Summary Stats & Para'!$C$10","v":"Fire"},{"$f":"'C. PoC Summary Stats & Para'!$C$11","v":"Environment"},null,{"$f":"'C. PoC Summary Stats & Para'!$C$7","v":"Worker Safety"},{"$f":"'C. PoC Summary Stats & Para'!$C$8","v":"Physical Impact"},{"$f":"'C. PoC Summary Stats & Para'!$C$9","v":"Shock"},{"$f":"'C. PoC Summary Stats & Para'!$C$10","v":"Fire"},{"$f":"'C. PoC Summary Stats & Para'!$C$11","v":"Environment"}]
[null,"PoC Affect","PoC Score",null,{"$f":"'C. Population PoC Scores'!B4","v":"Insulation Type"},null,null,null,null,null,{"$f":"'C. Population PoC Scores'!C4","v":0},null,null,null,null,null,{"$f":"'C. Population PoC Scores'!D4","v":0},null,null,null,null,null,{"$f":"'C. Population PoC Scores'!E4","v":0},null,null,null,null,null,{"$f":"'C. Population PoC Scores'!F4","v":0}]
[null,null,null,null,"Factor Value","C1 Score","C2 Score","C3 Score","C4 Score","C5 Score",{"$f":"E4","v":"Factor Value"},{"$f":"F4","v":"C1 Score"},"C2 Score","C3 Score","C4 Score","C5 Score","Factor Value","C1 Score","C2 Score","C3 Score","C4 Score","C5 Score","Factor Value","C1 Score","C2 Score","C3 Score","C4 Score","C5 Score","Factor Value","C1 Score","C2 Score","C3 Score","C4 Score","C5 Score"]
[null,null,null,null,"CAST_RESIN",1,1,1,1,1,0,1,1,1,1,1]
[null,"Insignificant",1,null,"OIL",4,1,1,1,3]
[null,"Minor",2,null,"OIL_FR3",3,1,1,1,2]
[null,"Moderate",3,null,"SF6",1,1,1,1,2]
[null,"Major",4]
[null,"Severe",5]

{"sheet":"C. Population PoC Scores","index":12,"n_rows":573,"n_cols":40,"rows_kept":573,"cut":false,"hidden":false,"merged":[[2,11,2,15],[2,16,2,20],[2,21,2,25],[2,26,2,30],[2,0,4,0],[2,1,2,5],[2,6,2,10]]}
[null,null,"Population PoC Scores",null,null,null,{"$f":"'C. PoC Summary Stats & Para'!$C$7","v":"Worker Safety"},{"$f":"'C. PoC Summary Stats & Para'!$C$7","v":"Worker Safety"},{"$f":"'C. PoC Summary Stats & Para'!$C$7","v":"Worker Safety"},{"$f":"'C. PoC Summary Stats & Para'!$C$7","v":"Worker Safety"},{"$f":"'C. PoC Summary Stats & Para'!$C$7","v":"Worker Safety"},{"$f":"'C. PoC Summary Stats & Para'!$C$8","v":"Physical Impact"},{"$f":"'C. PoC Summary Stats & Para'!$C$8","v":"Physical Impact"},{"$f":"'C. PoC Summary Stats & Para'!$C$8","v":"Physical Impact"},{"$f":"'C. PoC Summary Stats & Para'!$C$8","v":"Physical Impact"},{"$f":"'C. PoC Summary Stats & Para'!$C$8","v":"Physical Impact"},{"$f":"'C. PoC Summary Stats & Para'!$C$9","v":"Shock"},{"$f":"'C. PoC Summary Stats & Para'!$C$9","v":"Shock"},{"$f":"'C. PoC Summary Stats & Para'!$C$9","v":"Shock"},{"$f":"'C. PoC Summary Stats & Para'!$C$9","v":"Shock"},{"$f":"'C. PoC Summary Stats & Para'!$C$9","v":"Shock"},{"$f":"'C. PoC Summary Stats & Para'!$C$10","v":"Fire"},{"$f":"'C. PoC Summary Stats & Para'!$C$10","v":"Fire"},{"$f":"'C. PoC Summary Stats & Para'!$C$10","v":"Fire"},{"$f":"'C. PoC Summary Stats & Para'!$C$10","v":"Fire"},{"$f":"'C. PoC Summary Stats & Para'!$C$10","v":"Fire"},{"$f":"'C. PoC Summary Stats & Para'!$C$11","v":"Environment"},{"$f":"'C. PoC Summary Stats & Para'!$C$11","v":"Environment"},{"$f":"'C. PoC Summary Stats & Para'!$C$11","v":"Environment"},{"$f":"'C. PoC Summary Stats & Para'!$C$11","v":"Environment"},{"$f":"'C. PoC Summary Stats & Para'!$C$11","v":"Environment"}]
[null,null,null,null,null,null,"C1","C1","C1","C1","C1","C2","C2","C2","C2","C2","C3","C3","C3","C3","C3","C4","C4","C4","C4","C4","C5","C5","C5","C5","C5"]
["Asset Identifier","POC ADJUSTMENT FACTORS",null,null,null,null,"POC SCORES (C1)",null,null,null,null,"POC SCORES (C2)",null,null,null,null,"POC SCORES (C3)",null,null,null,null,"POC SCORES (C4)",null,null,null,null,"POC SCORES (C5)"]
[null,{"$f":"'A. Population Info'!L5","v":"Insulation Type"},{"$f":"'A. Population Info'!M5","v":0},{"$f":"'A. Population Info'!N5","v":0},{"$f":"'A. Population Info'!O5","v":0},{"$f":"'A. Population Info'!P5","v":0},{"$f":"B4","v":"Insulation Type"},0,0,0,0,"Insulation Type",0,0,0,0,"Insulation Type",0,0,0,0,"Insulation Type",0,0,0,0,"Insulation Type",0,0,0,0,null,null,null,{"$f":"B4","v":"Insulation Type"},{"$f":"C4","v":0},{"$f":"D4","v":0},{"$f":"E4","v":0},{"$f":"F4","v":0}]
[null,null,null,null,null,null,{"$f":"AI5","v":1},{"$f":"AJ5","v":0},{"$f":"AK5","v":0},{"$f":"AL5","v":0},{"$f":"AM5","v":0},{"$f":"AI6","v":1},0,0,0,0,{"$f":"AI7","v":1},0,0,0,0,{"$f":"AI8","v":1},0,0,0,0,{"$f":"AI9","v":1},0,0,0,0,null,null,"C1",1,0,0,0,0,{"$f":"'C. PoC Summary Stats & Para'!C7","v":"Worker Safety"}]
[{"$f":"'A. Population Info'!A6","v":1000023626},{"$f":"'A. Population Info'!L6","v":"OIL"},{"$f":"'A. Population Info'!M6","v":0},{"$f":"'A. Population Info'!N6","v":0},{"$f":"'A. Population Info'!O6","v":0},{"$f":"'A. Population Info'!P6","v":0},{"$f":"VLOOKUP(OFFSET($B:$B,,MATCH(G$4,$B$4:$F$4,0)-1),OFFSET('C. PoC Adj Factor Scoring'!$E$5:$J$282,,MATCH(G$4,'C. PoC Adj Factor Scoring'!$E$3:$AH$3,0)-1),MATCH(G$2&\" Score\",'C. PoC Adj Factor Scoring'!$E$4:$J$4,0),TRUE)","v":4},{"$f":"VLOOKUP(OFFSET($B:$B,,MATCH(H$4,$B$4:$F$4,0)-1),OFFSET('C. PoC Adj Factor Scoring'!$E$5:$J$282,,MATCH(H$4,'C. PoC Adj Factor Scoring'!$E$3:$AH$3,0)-1),MATCH(H$2&\" Score\",'C. PoC Adj Factor Scoring'!$E$4:$J$4,0),TRUE)","v":1},{"$f":"VLOOKUP(OFFSET($B:$B,,MATCH(I$4,$B$4:$F$4,0)-1),OFFSET('C. PoC Adj Factor Scoring'!$E$5:$J$282,,MATCH(I$4,'C. PoC Adj Factor Scoring'!$E$3:$AH$3,0)-1),MATCH(I$2&\" Score\",'C. PoC Adj Factor Scoring'!$E$4:$J$4,0),TRUE)","v":1},{"$f":"VLOOKUP(OFFSET($B:$B,,MATCH(J$4,$B$4:$F$4,0)-1),OFFSET('C. PoC Adj Factor Scoring'!$E$5:$J$282,,MATCH(J$4,'C. PoC Adj Factor Scoring'!$E$3:$AH$3,0)-1),MATCH(J$2&\" Score\",'C. PoC Adj Factor Scoring'!$E$4:$J$4,0),TRUE)","v":1},{"$f":"VLOOKUP(OFFSET($B:$B,,MATCH(K$4,$B$4:$F$4,0)-1),OFFSET('C. PoC Adj Factor Scoring'!$E$5:$J$282,,MATCH(K$4,'C. PoC Adj Factor Scoring'!$E$3:$AH$3,0)-1),MATCH(K$2&\" Score\",'C. PoC Adj Factor Scoring'!$E$4:$J$4,0),TRUE)","v":1},{"$f":"VLOOKUP(OFFSET($B:$B,,MATCH(L$4,$B$4:$F$4,0)-1),OFFSET('C. PoC Adj Factor Scoring'!$E$5:$J$282,,MATCH(L$4,'C. PoC Adj Factor Scoring'!$E$3:$AH$3,0)-1),MATCH(L$2&\" Score\",'C. PoC Adj Factor Scoring'!$E$4:$J$4,0),TRUE)","v":1},{"$f":"VLOOKUP(OFFSET($B:$B,,MATCH(M$4,$B$4:$F$4,0)-1),OFFSET('C. PoC Adj Factor Scoring'!$E$5:$J$282,,MATCH(M$4,'C. PoC Adj Factor Scoring'!$E$3:$AH$3,0)-1),MATCH(M$2&\" Score\",'C. PoC Adj Factor Scoring'!$E$4:$J$4,0),TRUE)","v":1},{"$f":"VLOOKUP(OFFSET($B:$B,,MATCH(N$4,$B$4:$F$4,0)-1),OFFSET('C. PoC Adj Factor Scoring'!$E$5:$J$282,,MATCH(N$4,'C. PoC Adj Factor Scoring'!$E$3:$AH$3,0)-1),MATCH(N$2&\" Score\",'C. PoC Adj Factor Scoring'!$E$4:$J$4,0),TRUE)","v":1},{"$f":"VLOOKUP(OFFSET($B:$B,,MATCH(O$4,$B$4:$F$4,0)-1),OFFSET('C. PoC Adj Factor Scoring'!$E$5:$J$282,,MATCH(O$4,'C. PoC Adj Factor Scoring'!$E$3:$AH$3,0)-1),MATCH(O$2&\" Score\",'C. PoC Adj Factor Scoring'!$E$4:$J$4,0),TRUE)","v":1},{"$f":"VLOOKUP(OFFSET($B:$B,,MATCH(P$4,$B$4:$F$4,0)-1),OFFSET('C. PoC Adj Factor Scoring'!$E$5:$J$282,,MATCH(P$4,'C. PoC Adj Factor Scoring'!$E$3:$AH$3,0)-1),MATCH(P$2&\" Score\",'C. PoC Adj Factor Scoring'!$E$4:$J$4,0),TRUE)","v":1},{"$f":"VLOOKUP(OFFSET($B:$B,,MATCH(Q$4,$B$4:$F$4,0)-1),OFFSET('C. PoC Adj Factor Scoring'!$E$5:$J$282,,MATCH(Q$4,'C. PoC Adj Factor Scoring'!$E$3:$AH$3,0)-1),MATCH(Q$2&\" Score\",'C. PoC Adj Factor Scoring'!$E$4:$J$4,0),TRUE)","v":1},{"$f":"VLOOKUP(OFFSET($B:$B,,MATCH(R$4,$B$4:$F$4,0)-1),OFFSET('C. PoC Adj Factor Scoring'!$E$5:$J$282,,MATCH(R$4,'C. PoC Adj Factor Scoring'!$E$3:$AH$3,0)-1),MATCH(R$2&\" Score\",'C. PoC Adj Factor Scoring'!$E$4:$J$4,0),TRUE)","v":1},{"$f":"VLOOKUP(OFFSET($B:$B,,MATCH(S$4,$B$4:$F$4,0)-1),OFFSET('C. PoC Adj Factor Scoring'!$E$5:$J$282,,MATCH(S$4,'C. PoC Adj Factor Scoring'!$E$3:$AH$3,0)-1),MATCH(S$2&\" Score\",'C. PoC Adj Factor Scoring'!$E$4:$J$4,0),TRUE)","v":1},{"$f":"VLOOKUP(OFFSET($B:$B,,MATCH(T$4,$B$4:$F$4,0)-1),OFFSET('C. PoC Adj Factor Scoring'!$E$5:$J$282,,MATCH(T$4,'C. PoC Adj Factor Scoring'!$E$3:$AH$3,0)-1),MATCH(T$2&\" Score\",'C. PoC Adj Factor Scoring'!$E$4:$J$4,0),TRUE)","v":1},{"$f":"VLOOKUP(OFFSET($B:$B,,MATCH(U$4,$B$4:$F$4,0)-1),OFFSET('C. PoC Adj Factor Scoring'!$E$5:$J$282,,MATCH(U$4,'C. PoC Adj Factor Scoring'!$E$3:$AH$3,0)-1),MATCH(U$2&\" Score\",'C. PoC Adj Factor Scoring'!$E$4:$J$4,0),TRUE)","v":1},{"$f":"VLOOKUP(OFFSET($B:$B,,MATCH(V$4,$B$4:$F$4,0)-1),OFFSET('C. PoC Adj Factor Scoring'!$E$5:$J$282,,MATCH(V$4,'C. PoC Adj Factor Scoring'!$E$3:$AH$3,0)-1),MATCH(V$2&\" Score\",'C. PoC Adj Factor Scoring'!$E$4:$J$4,0),TRUE)","v":1},{"$f":"VLOOKUP(OFFSET($B:$B,,MATCH(W$4,$B$4:$F$4,0)-1),OFFSET('C. PoC Adj Factor Scoring'!$E$5:$J$282,,MATCH(W$4,'C. PoC Adj Factor Scoring'!$E$3:$AH$3,0)-1),MATCH(W$2&\" Score\",'C. PoC Adj Factor Scoring'!$E$4:$J$4,0),TRUE)","v":1},{"$f":"VLOOKUP(OFFSET($B:$B,,MATCH(X$4,$B$4:$F$4,0)-1),OFFSET('C. PoC Adj Factor Scoring'!$E$5:$J$282,,MATCH(X$4,'C. PoC Adj Factor Scoring'!$E$3:$AH$3,0)-1),MATCH(X$2&\" Score\",'C. PoC Adj Factor Scoring'!$E$4:$J$4,0),TRUE)","v":1},{"$f":"VLOOKUP(OFFSET($B:$B,,MATCH(Y$4,$B$4:$F$4,0)-1),OFFSET('C. PoC Adj Factor Scoring'!$E$5:$J$282,,MATCH(Y$4,'C. PoC Adj Factor Scoring'!$E$3:$AH$3,0)-1),MATCH(Y$2&\" Score\",'C. PoC Adj Factor Scoring'!$E$4:$J$4,0),TRUE)","v":1},{"$f":"VLOOKUP(OFFSET($B:$B,,MATCH(Z$4,$B$4:$F$4,0)-1),OFFSET('C. PoC Adj Factor Scoring'!$E$5:$J$282,,MATCH(Z$4,'C. PoC Adj Factor Scoring'!$E$3:$AH$3,0)-1),MATCH(Z$2&\" Score\",'C. PoC Adj Factor Scoring'!$E$4:$J$4,0),TRUE)","v":1},{"$f":"VLOOKUP(OFFSET($B:$B,,MATCH(AA$4,$B$4:$F$4,0)-1),OFFSET('C. PoC Adj Factor Scoring'!$E$5:$J$282,,MATCH(AA$4,'C. PoC Adj Factor Scoring'!$E$3:$AH$3,0)-1),MATCH(AA$2&\" Score\",'C. PoC Adj Factor Scoring'!$E$4:$J$4,0),TRUE)","v":3},{"$f":"VLOOKUP(OFFSET($B:$B,,MATCH(AB$4,$B$4:$F$4,0)-1),OFFSET('C. PoC Adj Factor Scoring'!$E$5:$J$282,,MATCH(AB$4,'C. PoC Adj Factor Scoring'!$E$3:$AH$3,0)-1),MATCH(AB$2&\" Score\",'C. PoC Adj Factor Scoring'!$E$4:$J$4,0),TRUE)","v":1},{"$f":"VLOOKUP(OFFSET($B:$B,,MATCH(AC$4,$B$4:$F$4,0)-1),OFFSET('C. PoC Adj Factor Scoring'!$E$5:$J$282,,MATCH(AC$4,'C. PoC Adj Factor Scoring'!$E$3:$AH$3,0)-1),MATCH(AC$2&\" Score\",'C. PoC Adj Factor Scoring'!$E$4:$J$4,0),TRUE)","v":1},{"$f":"VLOOKUP(OFFSET($B:$B,,MATCH(AD$4,$B$4:$F$4,0)-1),OFFSET('C. PoC Adj Factor Scoring'!$E$5:$J$282,,MATCH(AD$4,'C. PoC Adj Factor Scoring'!$E$3:$AH$3,0)-1),MATCH(AD$2&\" Score\",'C. PoC Adj Factor Scoring'!$E$4:$J$4,0),TRUE)","v":1},{"$f":"VLOOKUP(OFFSET($B:$B,,MATCH(AE$4,$B$4:$F$4,0)-1),OFFSET('C. PoC Adj Factor Scoring'!$E$5:$J$282,,MATCH(AE$4,'C. PoC Adj Factor Scoring'!$E$3:$AH$3,0)-1),MATCH(AE$2&\" Score\",'C. PoC Adj Factor Scoring'!$E$4:$J$4,0),TRUE)","v":1},null,null,"C2",1,0,0,0,0,{"$f":"'C. PoC Summary Stats & Para'!C8","v":"Physical Impact"}]
[{"$f":"'A. Population Info'!A7","v":1000023638},{"$f":"'A. Population Info'!L7","v":"OIL"},{"$f":"'A. Population Info'!M7","v":0},{"$f":"'A. Population Info'!N7","v":0},{"$f":"'A. Population Info'!O7","v":0},{"$f":"'A. Population Info'!P7","v":0},{"$f":"VLOOKUP(OFFSET($B:$B,,MATCH(G$4,$B$4:$F$4,0)-1),OFFSET('C. PoC Adj Factor Scoring'!$E$5:$J$282,,MATCH(G$4,'C. PoC Adj Factor Scoring'!$E$3:$AH$3,0)-1),MATCH(G$2&\" Score\",'C. PoC Adj Factor Scoring'!$E$4:$J$4,0),TRUE)","v":4},{"$f":"VLOOKUP(OFFSET($B:$B,,MATCH(H$4,$B$4:$F$4,0)-1),OFFSET('C. PoC Adj Factor Scoring'!$E$5:$J$282,,MATCH(H$4,'C. PoC Adj Factor Scoring'!$E$3:$AH$3,0)-1),MATCH(H$2&\" Score\",'C. PoC Adj Factor Scoring'!$E$4:$J$4,0),TRUE)","v":1},{"$f":"VLOOKUP(OFFSET($B:$B,,MATCH(I$4,$B$4:$F$4,0)-1),OFFSET('C. PoC Adj Factor Scoring'!$E$5:$J$282,,MATCH(I$4,'C. PoC Adj Factor Scoring'!$E$3:$AH$3,0)-1),MATCH(I$2&\" Score\",'C. PoC Adj Factor Scoring'!$E$4:$J$4,0),TRUE)","v":1},{"$f":"VLOOKUP(OFFSET($B:$B,,MATCH(J$4,$B$4:$F$4,0)-1),OFFSET('C. PoC Adj Factor Scoring'!$E$5:$J$282,,MATCH(J$4,'C. PoC Adj Factor Scoring'!$E$3:$AH$3,0)-1),MATCH(J$2&\" Score\",'C. PoC Adj Factor Scoring'!$E$4:$J$4,0),TRUE)","v":1},{"$f":"VLOOKUP(OFFSET($B:$B,,MATCH(K$4,$B$4:$F$4,0)-1),OFFSET('C. PoC Adj Factor Scoring'!$E$5:$J$282,,MATCH(K$4,'C. PoC Adj Factor Scoring'!$E$3:$AH$3,0)-1),MATCH(K$2&\" Score\",'C. PoC Adj Factor Scoring'!$E$4:$J$4,0),TRUE)","v":1},{"$f":"VLOOKUP(OFFSET($B:$B,,MATCH(L$4,$B$4:$F$4,0)-1),OFFSET('C. PoC Adj Factor Scoring'!$E$5:$J$282,,MATCH(L$4,'C. PoC Adj Factor Scoring'!$E$3:$AH$3,0)-1),MATCH(L$2&\" Score\",'C. PoC Adj Factor Scoring'!$E$4:$J$4,0),TRUE)","v":1},{"$f":"VLOOKUP(OFFSET($B:$B,,MATCH(M$4,$B$4:$F$4,0)-1),OFFSET('C. PoC Adj Factor Scoring'!$E$5:$J$282,,MATCH(M$4,'C. PoC Adj Factor Scoring'!$E$3:$AH$3,0)-1),MATCH(M$2&\" Score\",'C. PoC Adj Factor Scoring'!$E$4:$J$4,0),TRUE)","v":1},{"$f":"VLOOKUP(OFFSET($B:$B,,MATCH(N$4,$B$4:$F$4,0)-1),OFFSET('C. PoC Adj Factor Scoring'!$E$5:$J$282,,MATCH(N$4,'C. PoC Adj Factor Scoring'!$E$3:$AH$3,0)-1),MATCH(N$2&\" Score\",'C. PoC Adj Factor Scoring'!$E$4:$J$4,0),TRUE)","v":1},{"$f":"VLOOKUP(OFFSET($B:$B,,MATCH(O$4,$B$4:$F$4,0)-1),OFFSET('C. PoC Adj Factor Scoring'!$E$5:$J$282,,MATCH(O$4,'C. PoC Adj Factor Scoring'!$E$3:$AH$3,0)-1),MATCH(O$2&\" Score\",'C. PoC Adj Factor Scoring'!$E$4:$J$4,0),TRUE)","v":1},{"$f":"VLOOKUP(OFFSET($B:$B,,MATCH(P$4,$B$4:$F$4,0)-1),OFFSET('C. PoC Adj Factor Scoring'!$E$5:$J$282,,MATCH(P$4,'C. PoC Adj Factor Scoring'!$E$3:$AH$3,0)-1),MATCH(P$2&\" Score\",'C. PoC Adj Factor Scoring'!$E$4:$J$4,0),TRUE)","v":1},{"$f":"VLOOKUP(OFFSET($B:$B,,MATCH(Q$4,$B$4:$F$4,0)-1),OFFSET('C. PoC Adj Factor Scoring'!$E$5:$J$282,,MATCH(Q$4,'C. PoC Adj Factor Scoring'!$E$3:$AH$3,0)-1),MATCH(Q$2&\" Score\",'C. PoC Adj Factor Scoring'!$E$4:$J$4,0),TRUE)","v":1},{"$f":"VLOOKUP(OFFSET($B:$B,,MATCH(R$4,$B$4:$F$4,0)-1),OFFSET('C. PoC Adj Factor Scoring'!$E$5:$J$282,,MATCH(R$4,'C. PoC Adj Factor Scoring'!$E$3:$AH$3,0)-1),MATCH(R$2&\" Score\",'C. PoC Adj Factor Scoring'!$E$4:$J$4,0),TRUE)","v":1},{"$f":"VLOOKUP(OFFSET($B:$B,,MATCH(S$4,$B$4:$F$4,0)-1),OFFSET('C. PoC Adj Factor Scoring'!$E$5:$J$282,,MATCH(S$4,'C. PoC Adj Factor Scoring'!$E$3:$AH$3,0)-1),MATCH(S$2&\" Score\",'C. PoC Adj Factor Scoring'!$E$4:$J$4,0),TRUE)","v":1},{"$f":"VLOOKUP(OFFSET($B:$B,,MATCH(T$4,$B$4:$F$4,0)-1),OFFSET('C. PoC Adj Factor Scoring'!$E$5:$J$282,,MATCH(T$4,'C. PoC Adj Factor Scoring'!$E$3:$AH$3,0)-1),MATCH(T$2&\" Score\",'C. PoC Adj Factor Scoring'!$E$4:$J$4,0),TRUE)","v":1},{"$f":"VLOOKUP(OFFSET($B:$B,,MATCH(U$4,$B$4:$F$4,0)-1),OFFSET('C. PoC Adj Factor Scoring'!$E$5:$J$282,,MATCH(U$4,'C. PoC Adj Factor Scoring'!$E$3:$AH$3,0)-1),MATCH(U$2&\" Score\",'C. PoC Adj Factor Scoring'!$E$4:$J$4,0),TRUE)","v":1},{"$f":"VLOOKUP(OFFSET($B:$B,,MATCH(V$4,$B$4:$F$4,0)-1),OFFSET('C. PoC Adj Factor Scoring'!$E$5:$J$282,,MATCH(V$4,'C. PoC Adj Factor Scoring'!$E$3:$AH$3,0)-1),MATCH(V$2&\" Score\",'C. PoC Adj Factor Scoring'!$E$4:$J$4,0),TRUE)","v":1},{"$f":"VLOOKUP(OFFSET($B:$B,,MATCH(W$4,$B$4:$F$4,0)-1),OFFSET('C. PoC Adj Factor Scoring'!$E$5:$J$282,,MATCH(W$4,'C. PoC Adj Factor Scoring'!$E$3:$AH$3,0)-1),MATCH(W$2&\" Score\",'C. PoC Adj Factor Scoring'!$E$4:$J$4,0),TRUE)","v":1},{"$f":"VLOOKUP(OFFSET($B:$B,,MATCH(X$4,$B$4:$F$4,0)-1),OFFSET('C. PoC Adj Factor Scoring'!$E$5:$J$282,,MATCH(X$4,'C. PoC Adj Factor Scoring'!$E$3:$AH$3,0)-1),MATCH(X$2&\" Score\",'C. PoC Adj Factor Scoring'!$E$4:$J$4,0),TRUE)","v":1},{"$f":"VLOOKUP(OFFSET($B:$B,,MATCH(Y$4,$B$4:$F$4,0)-1),OFFSET('C. PoC Adj Factor Scoring'!$E$5:$J$282,,MATCH(Y$4,'C. PoC Adj Factor Scoring'!$E$3:$AH$3,0)-1),MATCH(Y$2&\" Score\",'C. PoC Adj Factor Scoring'!$E$4:$J$4,0),TRUE)","v":1},{"$f":"VLOOKUP(OFFSET($B:$B,,MATCH(Z$4,$B$4:$F$4,0)-1),OFFSET('C. PoC Adj Factor Scoring'!$E$5:$J$282,,MATCH(Z$4,'C. PoC Adj Factor Scoring'!$E$3:$AH$3,0)-1),MATCH(Z$2&\" Score\",'C. PoC Adj Factor Scoring'!$E$4:$J$4,0),TRUE)","v":1},{"$f":"VLOOKUP(OFFSET($B:$B,,MATCH(AA$4,$B$4:$F$4,0)-1),OFFSET('C. PoC Adj Factor Scoring'!$E$5:$J$282,,MATCH(AA$4,'C. PoC Adj Factor Scoring'!$E$3:$AH$3,0)-1),MATCH(AA$2&\" Score\",'C. PoC Adj Factor Scoring'!$E$4:$J$4,0),TRUE)","v":3},{"$f":"VLOOKUP(OFFSET($B:$B,,MATCH(AB$4,$B$4:$F$4,0)-1),OFFSET('C. PoC Adj Factor Scoring'!$E$5:$J$282,,MATCH(AB$4,'C. PoC Adj Factor Scoring'!$E$3:$AH$3,0)-1),MATCH(AB$2&\" Score\",'C. PoC Adj Factor Scoring'!$E$4:$J$4,0),TRUE)","v":1},{"$f":"VLOOKUP(OFFSET($B:$B,,MATCH(AC$4,$B$4:$F$4,0)-1),OFFSET('C. PoC Adj Factor Scoring'!$E$5:$J$282,,MATCH(AC$4,'C. PoC Adj Factor Scoring'!$E$3:$AH$3,0)-1),MATCH(AC$2&\" Score\",'C. PoC Adj Factor Scoring'!$E$4:$J$4,0),TRUE)","v":1},{"$f":"VLOOKUP(OFFSET($B:$B,,MATCH(AD$4,$B$4:$F$4,0)-1),OFFSET('C. PoC Adj Factor Scoring'!$E$5:$J$282,,MATCH(AD$4,'C. PoC Adj Factor Scoring'!$E$3:$AH$3,0)-1),MATCH(AD$2&\" Score\",'C. PoC Adj Factor Scoring'!$E$4:$J$4,0),TRUE)","v":1},{"$f":"VLOOKUP(OFFSET($B:$B,,MATCH(AE$4,$B$4:$F$4,0)-1),OFFSET('C. PoC Adj Factor Scoring'!$E$5:$J$282,,MATCH(AE$4,'C. PoC Adj Factor Scoring'!$E$3:$AH$3,0)-1),MATCH(AE$2&\" Score\",'C. PoC Adj Factor Scoring'!$E$4:$J$4,0),TRUE)","v":1},null,null,"C3",1,0,0,0,0,{"$f":"'C. PoC Summary Stats & Para'!C9","v":"Shock"}]
[{"$f":"'A. Population Info'!A8","v":1000023649},{"$f":"'A. Population Info'!L8","v":"OIL"},{"$f":"'A. Population Info'!M8","v":0},{"$f":"'A. Population Info'!N8","v":0},{"$f":"'A. Population Info'!O8","v":0},{"$f":"'A. Population Info'!P8","v":0},{"$f":"VLOOKUP(OFFSET($B:$B,,MATCH(G$4,$B$4:$F$4,0)-1),OFFSET('C. PoC Adj Factor Scoring'!$E$5:$J$282,,MATCH(G$4,'C. PoC Adj Factor Scoring'!$E$3:$AH$3,0)-1),MATCH(G$2&\" Score\",'C. PoC Adj Factor Scoring'!$E$4:$J$4,0),TRUE)","v":4},{"$f":"VLOOKUP(OFFSET($B:$B,,MATCH(H$4,$B$4:$F$4,0)-1),OFFSET('C. PoC Adj Factor Scoring'!$E$5:$J$282,,MATCH(H$4,'C. PoC Adj Factor Scoring'!$E$3:$AH$3,0)-1),MATCH(H$2&\" Score\",'C. PoC Adj Factor Scoring'!$E$4:$J$4,0),TRUE)","v":1},{"$f":"VLOOKUP(OFFSET($B:$B,,MATCH(I$4,$B$4:$F$4,0)-1),OFFSET('C. PoC Adj Factor Scoring'!$E$5:$J$282,,MATCH(I$4,'C. PoC Adj Factor Scoring'!$E$3:$AH$3,0)-1),MATCH(I$2&\" Score\",'C. PoC Adj Factor Scoring'!$E$4:$J$4,0),TRUE)","v":1},{"$f":"VLOOKUP(OFFSET($B:$B,,MATCH(J$4,$B$4:$F$4,0)-1),OFFSET('C. PoC Adj Factor Scoring'!$E$5:$J$282,,MATCH(J$4,'C. PoC Adj Factor Scoring'!$E$3:$AH$3,0)-1),MATCH(J$2&\" Score\",'C. PoC Adj Factor Scoring'!$E$4:$J$4,0),TRUE)","v":1},{"$f":"VLOOKUP(OFFSET($B:$B,,MATCH(K$4,$B$4:$F$4,0)-1),OFFSET('C. PoC Adj Factor Scoring'!$E$5:$J$282,,MATCH(K$4,'C. PoC Adj Factor Scoring'!$E$3:$AH$3,0)-1),MATCH(K$2&\" Score\",'C. PoC Adj Factor Scoring'!$E$4:$J$4,0),TRUE)","v":1},{"$f":"VLOOKUP(OFFSET($B:$B,,MATCH(L$4,$B$4:$F$4,0)-1),OFFSET('C. PoC Adj Factor Scoring'!$E$5:$J$282,,MATCH(L$4,'C. PoC Adj Factor Scoring'!$E$3:$AH$3,0)-1),MATCH(L$2&\" Score\",'C. PoC Adj Factor Scoring'!$E$4:$J$4,0),TRUE)","v":1},{"$f":"VLOOKUP(OFFSET($B:$B,,MATCH(M$4,$B$4:$F$4,0)-1),OFFSET('C. PoC Adj Factor Scoring'!$E$5:$J$282,,MATCH(M$4,'C. PoC Adj Factor Scoring'!$E$3:$AH$3,0)-1),MATCH(M$2&\" Score\",'C. PoC Adj Factor Scoring'!$E$4:$J$4,0),TRUE)","v":1},{"$f":"VLOOKUP(OFFSET($B:$B,,MATCH(N$4,$B$4:$F$4,0)-1),OFFSET('C. PoC Adj Factor Scoring'!$E$5:$J$282,,MATCH(N$4,'C. PoC Adj Factor Scoring'!$E$3:$AH$3,0)-1),MATCH(N$2&\" Score\",'C. PoC Adj Factor Scoring'!$E$4:$J$4,0),TRUE)","v":1},{"$f":"VLOOKUP(OFFSET($B:$B,,MATCH(O$4,$B$4:$F$4,0)-1),OFFSET('C. PoC Adj Factor Scoring'!$E$5:$J$282,,MATCH(O$4,'C. PoC Adj Factor Scoring'!$E$3:$AH$3,0)-1),MATCH(O$2&\" Score\",'C. PoC Adj Factor Scoring'!$E$4:$J$4,0),TRUE)","v":1},{"$f":"VLOOKUP(OFFSET($B:$B,,MATCH(P$4,$B$4:$F$4,0)-1),OFFSET('C. PoC Adj Factor Scoring'!$E$5:$J$282,,MATCH(P$4,'C. PoC Adj Factor Scoring'!$E$3:$AH$3,0)-1),MATCH(P$2&\" Score\",'C. PoC Adj Factor Scoring'!$E$4:$J$4,0),TRUE)","v":1},{"$f":"VLOOKUP(OFFSET($B:$B,,MATCH(Q$4,$B$4:$F$4,0)-1),OFFSET('C. PoC Adj Factor Scoring'!$E$5:$J$282,,MATCH(Q$4,'C. PoC Adj Factor Scoring'!$E$3:$AH$3,0)-1),MATCH(Q$2&\" Score\",'C. PoC Adj Factor Scoring'!$E$4:$J$4,0),TRUE)","v":1},{"$f":"VLOOKUP(OFFSET($B:$B,,MATCH(R$4,$B$4:$F$4,0)-1),OFFSET('C. PoC Adj Factor Scoring'!$E$5:$J$282,,MATCH(R$4,'C. PoC Adj Factor Scoring'!$E$3:$AH$3,0)-1),MATCH(R$2&\" Score\",'C. PoC Adj Factor Scoring'!$E$4:$J$4,0),TRUE)","v":1},{"$f":"VLOOKUP(OFFSET($B:$B,,MATCH(S$4,$B$4:$F$4,0)-1),OFFSET('C. PoC Adj Factor Scoring'!$E$5:$J$282,,MATCH(S$4,'C. PoC Adj Factor Scoring'!$E$3:$AH$3,0)-1),MATCH(S$2&\" Score\",'C. PoC Adj Factor Scoring'!$E$4:$J$4,0),TRUE)","v":1},{"$f":"VLOOKUP(OFFSET($B:$B,,MATCH(T$4,$B$4:$F$4,0)-1),OFFSET('C. PoC Adj Factor Scoring'!$E$5:$J$282,,MATCH(T$4,'C. PoC Adj Factor Scoring'!$E$3:$AH$3,0)-1),MATCH(T$2&\" Score\",'C. PoC Adj Factor Scoring'!$E$4:$J$4,0),TRUE)","v":1},{"$f":"VLOOKUP(OFFSET($B:$B,,MATCH(U$4,$B$4:$F$4,0)-1),OFFSET('C. PoC Adj Factor Scoring'!$E$5:$J$282,,MATCH(U$4,'C. PoC Adj Factor Scoring'!$E$3:$AH$3,0)-1),MATCH(U$2&\" Score\",'C. PoC Adj Factor Scoring'!$E$4:$J$4,0),TRUE)","v":1},{"$f":"VLOOKUP(OFFSET($B:$B,,MATCH(V$4,$B$4:$F$4,0)-1),OFFSET('C. PoC Adj Factor Scoring'!$E$5:$J$282,,MATCH(V$4,'C. PoC Adj Factor Scoring'!$E$3:$AH$3,0)-1),MATCH(V$2&\" Score\",'C. PoC Adj Factor Scoring'!$E$4:$J$4,0),TRUE)","v":1},{"$f":"VLOOKUP(OFFSET($B:$B,,MATCH(W$4,$B$4:$F$4,0)-1),OFFSET('C. PoC Adj Factor Scoring'!$E$5:$J$282,,MATCH(W$4,'C. PoC Adj Factor Scoring'!$E$3:$AH$3,0)-1),MATCH(W$2&\" Score\",'C. PoC Adj Factor Scoring'!$E$4:$J$4,0),TRUE)","v":1},{"$f":"VLOOKUP(OFFSET($B:$B,,MATCH(X$4,$B$4:$F$4,0)-1),OFFSET('C. PoC Adj Factor Scoring'!$E$5:$J$282,,MATCH(X$4,'C. PoC Adj Factor Scoring'!$E$3:$AH$3,0)-1),MATCH(X$2&\" Score\",'C. PoC Adj Factor Scoring'!$E$4:$J$4,0),TRUE)","v":1},{"$f":"VLOOKUP(OFFSET($B:$B,,MATCH(Y$4,$B$4:$F$4,0)-1),OFFSET('C. PoC Adj Factor Scoring'!$E$5:$J$282,,MATCH(Y$4,'C. PoC Adj Factor Scoring'!$E$3:$AH$3,0)-1),MATCH(Y$2&\" Score\",'C. PoC Adj Factor Scoring'!$E$4:$J$4,0),TRUE)","v":1},{"$f":"VLOOKUP(OFFSET($B:$B,,MATCH(Z$4,$B$4:$F$4,0)-1),OFFSET('C. PoC Adj Factor Scoring'!$E$5:$J$282,,MATCH(Z$4,'C. PoC Adj Factor Scoring'!$E$3:$AH$3,0)-1),MATCH(Z$2&\" Score\",'C. PoC Adj Factor Scoring'!$E$4:$J$4,0),TRUE)","v":1},{"$f":"VLOOKUP(OFFSET($B:$B,,MATCH(AA$4,$B$4:$F$4,0)-1),OFFSET('C. PoC Adj Factor Scoring'!$E$5:$J$282,,MATCH(AA$4,'C. PoC Adj Factor Scoring'!$E$3:$AH$3,0)-1),MATCH(AA$2&\" Score\",'C. PoC Adj Factor Scoring'!$E$4:$J$4,0),TRUE)","v":3},{"$f":"VLOOKUP(OFFSET($B:$B,,MATCH(AB$4,$B$4:$F$4,0)-1),OFFSET('C. PoC Adj Factor Scoring'!$E$5:$J$282,,MATCH(AB$4,'C. PoC Adj Factor Scoring'!$E$3:$AH$3,0)-1),MATCH(AB$2&\" Score\",'C. PoC Adj Factor Scoring'!$E$4:$J$4,0),TRUE)","v":1},{"$f":"VLOOKUP(OFFSET($B:$B,,MATCH(AC$4,$B$4:$F$4,0)-1),OFFSET('C. PoC Adj Factor Scoring'!$E$5:$J$282,,MATCH(AC$4,'C. PoC Adj Factor Scoring'!$E$3:$AH$3,0)-1),MATCH(AC$2&\" Score\",'C. PoC Adj Factor Scoring'!$E$4:$J$4,0),TRUE)","v":1},{"$f":"VLOOKUP(OFFSET($B:$B,,MATCH(AD$4,$B$4:$F$4,0)-1),OFFSET('C. PoC Adj Factor Scoring'!$E$5:$J$282,,MATCH(AD$4,'C. PoC Adj Factor Scoring'!$E$3:$AH$3,0)-1),MATCH(AD$2&\" Score\",'C. PoC Adj Factor Scoring'!$E$4:$J$4,0),TRUE)","v":1},{"$f":"VLOOKUP(OFFSET($B:$B,,MATCH(AE$4,$B$4:$F$4,0)-1),OFFSET('C. PoC Adj Factor Scoring'!$E$5:$J$282,,MATCH(AE$4,'C. PoC Adj Factor Scoring'!$E$3:$AH$3,0)-1),MATCH(AE$2&\" Score\",'C. PoC Adj Factor Scoring'!$E$4:$J$4,0),TRUE)","v":1},null,null,"C4",1,0,0,0,0,{"$f":"'C. PoC Summary Stats & Para'!C10","v":"Fire"}]
[{"$f":"'A. Population Info'!A9","v":1000048071},{"$f":"'A. Population Info'!L9","v":"OIL"},{"$f":"'A. Population Info'!M9","v":0},{"$f":"'A. Population Info'!N9","v":0},{"$f":"'A. Population Info'!O9","v":0},{"$f":"'A. Population Info'!P9","v":0},{"$f":"VLOOKUP(OFFSET($B:$B,,MATCH(G$4,$B$4:$F$4,0)-1),OFFSET('C. PoC Adj Factor Scoring'!$E$5:$J$282,,MATCH(G$4,'C. PoC Adj Factor Scoring'!$E$3:$AH$3,0)-1),MATCH(G$2&\" Score\",'C. PoC Adj Factor Scoring'!$E$4:$J$4,0),TRUE)","v":4},{"$f":"VLOOKUP(OFFSET($B:$B,,MATCH(H$4,$B$4:$F$4,0)-1),OFFSET('C. PoC Adj Factor Scoring'!$E$5:$J$282,,MATCH(H$4,'C. PoC Adj Factor Scoring'!$E$3:$AH$3,0)-1),MATCH(H$2&\" Score\",'C. PoC Adj Factor Scoring'!$E$4:$J$4,0),TRUE)","v":1},{"$f":"VLOOKUP(OFFSET($B:$B,,MATCH(I$4,$B$4:$F$4,0)-1),OFFSET('C. PoC Adj Factor Scoring'!$E$5:$J$282,,MATCH(I$4,'C. PoC Adj Factor Scoring'!$E$3:$AH$3,0)-1),MATCH(I$2&\" Score\",'C. PoC Adj Factor Scoring'!$E$4:$J$4,0),TRUE)","v":1},{"$f":"VLOOKUP(OFFSET($B:$B,,MATCH(J$4,$B$4:$F$4,0)-1),OFFSET('C. PoC Adj Factor Scoring'!$E$5:$J$282,,MATCH(J$4,'C. PoC Adj Factor Scoring'!$E$3:$AH$3,0)-1),MATCH(J$2&\" Score\",'C. PoC Adj Factor Scoring'!$E$4:$J$4,0),TRUE)","v":1},{"$f":"VLOOKUP(OFFSET($B:$B,,MATCH(K$4,$B$4:$F$4,0)-1),OFFSET('C. PoC Adj Factor Scoring'!$E$5:$J$282,,MATCH(K$4,'C. PoC Adj Factor Scoring'!$E$3:$AH$3,0)-1),MATCH(K$2&\" Score\",'C. PoC Adj Factor Scoring'!$E$4:$J$4,0),TRUE)","v":1},{"$f":"VLOOKUP(OFFSET($B:$B,,MATCH(L$4,$B$4:$F$4,0)-1),OFFSET('C. PoC Adj Factor Scoring'!$E$5:$J$282,,MATCH(L$4,'C. PoC Adj Factor Scoring'!$E$3:$AH$3,0)-1),MATCH(L$2&\" Score\",'C. PoC Adj Factor Scoring'!$E$4:$J$4,0),TRUE)","v":1},{"$f":"VLOOKUP(OFFSET($B:$B,,MATCH(M$4,$B$4:$F$4,0)-1),OFFSET('C. PoC Adj Factor Scoring'!$E$5:$J$282,,MATCH(M$4,'C. PoC Adj Factor Scoring'!$E$3:$AH$3,0)-1),MATCH(M$2&\" Score\",'C. PoC Adj Factor Scoring'!$E$4:$J$4,0),TRUE)","v":1},{"$f":"VLOOKUP(OFFSET($B:$B,,MATCH(N$4,$B$4:$F$4,0)-1),OFFSET('C. PoC Adj Factor Scoring'!$E$5:$J$282,,MATCH(N$4,'C. PoC Adj Factor Scoring'!$E$3:$AH$3,0)-1),MATCH(N$2&\" Score\",'C. PoC Adj Factor Scoring'!$E$4:$J$4,0),TRUE)","v":1},{"$f":"VLOOKUP(OFFSET($B:$B,,MATCH(O$4,$B$4:$F$4,0)-1),OFFSET('C. PoC Adj Factor Scoring'!$E$5:$J$282,,MATCH(O$4,'C. PoC Adj Factor Scoring'!$E$3:$AH$3,0)-1),MATCH(O$2&\" Score\",'C. PoC Adj Factor Scoring'!$E$4:$J$4,0),TRUE)","v":1},{"$f":"VLOOKUP(OFFSET($B:$B,,MATCH(P$4,$B$4:$F$4,0)-1),OFFSET('C. PoC Adj Factor Scoring'!$E$5:$J$282,,MATCH(P$4,'C. PoC Adj Factor Scoring'!$E$3:$AH$3,0)-1),MATCH(P$2&\" Score\",'C. PoC Adj Factor Scoring'!$E$4:$J$4,0),TRUE)","v":1},{"$f":"VLOOKUP(OFFSET($B:$B,,MATCH(Q$4,$B$4:$F$4,0)-1),OFFSET('C. PoC Adj Factor Scoring'!$E$5:$J$282,,MATCH(Q$4,'C. PoC Adj Factor Scoring'!$E$3:$AH$3,0)-1),MATCH(Q$2&\" Score\",'C. PoC Adj Factor Scoring'!$E$4:$J$4,0),TRUE)","v":1},{"$f":"VLOOKUP(OFFSET($B:$B,,MATCH(R$4,$B$4:$F$4,0)-1),OFFSET('C. PoC Adj Factor Scoring'!$E$5:$J$282,,MATCH(R$4,'C. PoC Adj Factor Scoring'!$E$3:$AH$3,0)-1),MATCH(R$2&\" Score\",'C. PoC Adj Factor Scoring'!$E$4:$J$4,0),TRUE)","v":1},{"$f":"VLOOKUP(OFFSET($B:$B,,MATCH(S$4,$B$4:$F$4,0)-1),OFFSET('C. PoC Adj Factor Scoring'!$E$5:$J$282,,MATCH(S$4,'C. PoC Adj Factor Scoring'!$E$3:$AH$3,0)-1),MATCH(S$2&\" Score\",'C. PoC Adj Factor Scoring'!$E$4:$J$4,0),TRUE)","v":1},{"$f":"VLOOKUP(OFFSET($B:$B,,MATCH(T$4,$B$4:$F$4,0)-1),OFFSET('C. PoC Adj Factor Scoring'!$E$5:$J$282,,MATCH(T$4,'C. PoC Adj Factor Scoring'!$E$3:$AH$3,0)-1),MATCH(T$2&\" Score\",'C. PoC Adj Factor Scoring'!$E$4:$J$4,0),TRUE)","v":1},{"$f":"VLOOKUP(OFFSET($B:$B,,MATCH(U$4,$B$4:$F$4,0)-1),OFFSET('C. PoC Adj Factor Scoring'!$E$5:$J$282,,MATCH(U$4,'C. PoC Adj Factor Scoring'!$E$3:$AH$3,0)-1),MATCH(U$2&\" Score\",'C. PoC Adj Factor Scoring'!$E$4:$J$4,0),TRUE)","v":1},{"$f":"VLOOKUP(OFFSET($B:$B,,MATCH(V$4,$B$4:$F$4,0)-1),OFFSET('C. PoC Adj Factor Scoring'!$E$5:$J$282,,MATCH(V$4,'C. PoC Adj Factor Scoring'!$E$3:$AH$3,0)-1),MATCH(V$2&\" Score\",'C. PoC Adj Factor Scoring'!$E$4:$J$4,0),TRUE)","v":1},{"$f":"VLOOKUP(OFFSET($B:$B,,MATCH(W$4,$B$4:$F$4,0)-1),OFFSET('C. PoC Adj Factor Scoring'!$E$5:$J$282,,MATCH(W$4,'C. PoC Adj Factor Scoring'!$E$3:$AH$3,0)-1),MATCH(W$2&\" Score\",'C. PoC Adj Factor Scoring'!$E$4:$J$4,0),TRUE)","v":1},{"$f":"VLOOKUP(OFFSET($B:$B,,MATCH(X$4,$B$4:$F$4,0)-1),OFFSET('C. PoC Adj Factor Scoring'!$E$5:$J$282,,MATCH(X$4,'C. PoC Adj Factor Scoring'!$E$3:$AH$3,0)-1),MATCH(X$2&\" Score\",'C. PoC Adj Factor Scoring'!$E$4:$J$4,0),TRUE)","v":1},{"$f":"VLOOKUP(OFFSET($B:$B,,MATCH(Y$4,$B$4:$F$4,0)-1),OFFSET('C. PoC Adj Factor Scoring'!$E$5:$J$282,,MATCH(Y$4,'C. PoC Adj Factor Scoring'!$E$3:$AH$3,0)-1),MATCH(Y$2&\" Score\",'C. PoC Adj Factor Scoring'!$E$4:$J$4,0),TRUE)","v":1},{"$f":"VLOOKUP(OFFSET($B:$B,,MATCH(Z$4,$B$4:$F$4,0)-1),OFFSET('C. PoC Adj Factor Scoring'!$E$5:$J$282,,MATCH(Z$4,'C. PoC Adj Factor Scoring'!$E$3:$AH$3,0)-1),MATCH(Z$2&\" Score\",'C. PoC Adj Factor Scoring'!$E$4:$J$4,0),TRUE)","v":1},{"$f":"VLOOKUP(OFFSET($B:$B,,MATCH(AA$4,$B$4:$F$4,0)-1),OFFSET('C. PoC Adj Factor Scoring'!$E$5:$J$282,,MATCH(AA$4,'C. PoC Adj Factor Scoring'!$E$3:$AH$3,0)-1),MATCH(AA$2&\" Score\",'C. PoC Adj Factor Scoring'!$E$4:$J$4,0),TRUE)","v":3},{"$f":"VLOOKUP(OFFSET($B:$B,,MATCH(AB$4,$B$4:$F$4,0)-1),OFFSET('C. PoC Adj Factor Scoring'!$E$5:$J$282,,MATCH(AB$4,'C. PoC Adj Factor Scoring'!$E$3:$AH$3,0)-1),MATCH(AB$2&\" Score\",'C. PoC Adj Factor Scoring'!$E$4:$J$4,0),TRUE)","v":1},{"$f":"VLOOKUP(OFFSET($B:$B,,MATCH(AC$4,$B$4:$F$4,0)-1),OFFSET('C. PoC Adj Factor Scoring'!$E$5:$J$282,,MATCH(AC$4,'C. PoC Adj Factor Scoring'!$E$3:$AH$3,0)-1),MATCH(AC$2&\" Score\",'C. PoC Adj Factor Scoring'!$E$4:$J$4,0),TRUE)","v":1},{"$f":"VLOOKUP(OFFSET($B:$B,,MATCH(AD$4,$B$4:$F$4,0)-1),OFFSET('C. PoC Adj Factor Scoring'!$E$5:$J$282,,MATCH(AD$4,'C. PoC Adj Factor Scoring'!$E$3:$AH$3,0)-1),MATCH(AD$2&\" Score\",'C. PoC Adj Factor Scoring'!$E$4:$J$4,0),TRUE)","v":1},{"$f":"VLOOKUP(OFFSET($B:$B,,MATCH(AE$4,$B$4:$F$4,0)-1),OFFSET('C. PoC Adj Factor Scoring'!$E$5:$J$282,,MATCH(AE$4,'C. PoC Adj Factor Scoring'!$E$3:$AH$3,0)-1),MATCH(AE$2&\" Score\",'C. PoC Adj Factor Scoring'!$E$4:$J$4,0),TRUE)","v":1},null,null,"C5",1,0,0,0,0,{"$f":"'C. PoC Summary Stats & Para'!C11","v":"Environment"}]
[{"$f":"'A. Population Info'!A10","v":1000048606},{"$f":"'A. Population Info'!L10","v":"OIL"},{"$f":"'A. Population Info'!M10","v":0},{"$f":"'A. Population Info'!N10","v":0},{"$f":"'A. Population Info'!O10","v":0},{"$f":"'A. Population Info'!P10","v":0},{"$f":"VLOOKUP(OFFSET($B:$B,,MATCH(G$4,$B$4:$F$4,0)-1),OFFSET('C. PoC Adj Factor Scoring'!$E$5:$J$282,,MATCH(G$4,'C. PoC Adj Factor Scoring'!$E$3:$AH$3,0)-1),MATCH(G$2&\" Score\",'C. PoC Adj Factor Scoring'!$E$4:$J$4,0),TRUE)","v":4},{"$f":"VLOOKUP(OFFSET($B:$B,,MATCH(H$4,$B$4:$F$4,0)-1),OFFSET('C. PoC Adj Factor Scoring'!$E$5:$J$282,,MATCH(H$4,'C. PoC Adj Factor Scoring'!$E$3:$AH$3,0)-1),MATCH(H$2&\" Score\",'C. PoC Adj Factor Scoring'!$E$4:$J$4,0),TRUE)","v":1},{"$f":"VLOOKUP(OFFSET($B:$B,,MATCH(I$4,$B$4:$F$4,0)-1),OFFSET('C. PoC Adj Factor Scoring'!$E$5:$J$282,,MATCH(I$4,'C. PoC Adj Factor Scoring'!$E$3:$AH$3,0)-1),MATCH(I$2&\" Score\",'C. PoC Adj Factor Scoring'!$E$4:$J$4,0),TRUE)","v":1},{"$f":"VLOOKUP(OFFSET($B:$B,,MATCH(J$4,$B$4:$F$4,0)-1),OFFSET('C. PoC Adj Factor Scoring'!$E$5:$J$282,,MATCH(J$4,'C. PoC Adj Factor Scoring'!$E$3:$AH$3,0)-1),MATCH(J$2&\" Score\",'C. PoC Adj Factor Scoring'!$E$4:$J$4,0),TRUE)","v":1},{"$f":"VLOOKUP(OFFSET($B:$B,,MATCH(K$4,$B$4:$F$4,0)-1),OFFSET('C. PoC Adj Factor Scoring'!$E$5:$J$282,,MATCH(K$4,'C. PoC Adj Factor Scoring'!$E$3:$AH$3,0)-1),MATCH(K$2&\" Score\",'C. PoC Adj Factor Scoring'!$E$4:$J$4,0),TRUE)","v":1},{"$f":"VLOOKUP(OFFSET($B:$B,,MATCH(L$4,$B$4:$F$4,0)-1),OFFSET('C. PoC Adj Factor Scoring'!$E$5:$J$282,,MATCH(L$4,'C. PoC Adj Factor Scoring'!$E$3:$AH$3,0)-1),MATCH(L$2&\" Score\",'C. PoC Adj Factor Scoring'!$E$4:$J$4,0),TRUE)","v":1},{"$f":"VLOOKUP(OFFSET($B:$B,,MATCH(M$4,$B$4:$F$4,0)-1),OFFSET('C. PoC Adj Factor Scoring'!$E$5:$J$282,,MATCH(M$4,'C. PoC Adj Factor Scoring'!$E$3:$AH$3,0)-1),MATCH(M$2&\" Score\",'C. PoC Adj Factor Scoring'!$E$4:$J$4,0),TRUE)","v":1},{"$f":"VLOOKUP(OFFSET($B:$B,,MATCH(N$4,$B$4:$F$4,0)-1),OFFSET('C. PoC Adj Factor Scoring'!$E$5:$J$282,,MATCH(N$4,'C. PoC Adj Factor Scoring'!$E$3:$AH$3,0)-1),MATCH(N$2&\" Score\",'C. PoC Adj Factor Scoring'!$E$4:$J$4,0),TRUE)","v":1},{"$f":"VLOOKUP(OFFSET($B:$B,,MATCH(O$4,$B$4:$F$4,0)-1),OFFSET('C. PoC Adj Factor Scoring'!$E$5:$J$282,,MATCH(O$4,'C. PoC Adj Factor Scoring'!$E$3:$AH$3,0)-1),MATCH(O$2&\" Score\",'C. PoC Adj Factor Scoring'!$E$4:$J$4,0),TRUE)","v":1},{"$f":"VLOOKUP(OFFSET($B:$B,,MATCH(P$4,$B$4:$F$4,0)-1),OFFSET('C. PoC Adj Factor Scoring'!$E$5:$J$282,,MATCH(P$4,'C. PoC Adj Factor Scoring'!$E$3:$AH$3,0)-1),MATCH(P$2&\" Score\",'C. PoC Adj Factor Scoring'!$E$4:$J$4,0),TRUE)","v":1},{"$f":"VLOOKUP(OFFSET($B:$B,,MATCH(Q$4,$B$4:$F$4,0)-1),OFFSET('C. PoC Adj Factor Scoring'!$E$5:$J$282,,MATCH(Q$4,'C. PoC Adj Factor Scoring'!$E$3:$AH$3,0)-1),MATCH(Q$2&\" Score\",'C. PoC Adj Factor Scoring'!$E$4:$J$4,0),TRUE)","v":1},{"$f":"VLOOKUP(OFFSET($B:$B,,MATCH(R$4,$B$4:$F$4,0)-1),OFFSET('C. PoC Adj Factor Scoring'!$E$5:$J$282,,MATCH(R$4,'C. PoC Adj Factor Scoring'!$E$3:$AH$3,0)-1),MATCH(R$2&\" Score\",'C. PoC Adj Factor Scoring'!$E$4:$J$4,0),TRUE)","v":1},{"$f":"VLOOKUP(OFFSET($B:$B,,MATCH(S$4,$B$4:$F$4,0)-1),OFFSET('C. PoC Adj Factor Scoring'!$E$5:$J$282,,MATCH(S$4,'C. PoC Adj Factor Scoring'!$E$3:$AH$3,0)-1),MATCH(S$2&\" Score\",'C. PoC Adj Factor Scoring'!$E$4:$J$4,0),TRUE)","v":1},{"$f":"VLOOKUP(OFFSET($B:$B,,MATCH(T$4,$B$4:$F$4,0)-1),OFFSET('C. PoC Adj Factor Scoring'!$E$5:$J$282,,MATCH(T$4,'C. PoC Adj Factor Scoring'!$E$3:$AH$3,0)-1),MATCH(T$2&\" Score\",'C. PoC Adj Factor Scoring'!$E$4:$J$4,0),TRUE)","v":1},{"$f":"VLOOKUP(OFFSET($B:$B,,MATCH(U$4,$B$4:$F$4,0)-1),OFFSET('C. PoC Adj Factor Scoring'!$E$5:$J$282,,MATCH(U$4,'C. PoC Adj Factor Scoring'!$E$3:$AH$3,0)-1),MATCH(U$2&\" Score\",'C. PoC Adj Factor Scoring'!$E$4:$J$4,0),TRUE)","v":1},{"$f":"VLOOKUP(OFFSET($B:$B,,MATCH(V$4,$B$4:$F$4,0)-1),OFFSET('C. PoC Adj Factor Scoring'!$E$5:$J$282,,MATCH(V$4,'C. PoC Adj Factor Scoring'!$E$3:$AH$3,0)-1),MATCH(V$2&\" Score\",'C. PoC Adj Factor Scoring'!$E$4:$J$4,0),TRUE)","v":1},{"$f":"VLOOKUP(OFFSET($B:$B,,MATCH(W$4,$B$4:$F$4,0)-1),OFFSET('C. PoC Adj Factor Scoring'!$E$5:$J$282,,MATCH(W$4,'C. PoC Adj Factor Scoring'!$E$3:$AH$3,0)-1),MATCH(W$2&\" Score\",'C. PoC Adj Factor Scoring'!$E$4:$J$4,0),TRUE)","v":1},{"$f":"VLOOKUP(OFFSET($B:$B,,MATCH(X$4,$B$4:$F$4,0)-1),OFFSET('C. PoC Adj Factor Scoring'!$E$5:$J$282,,MATCH(X$4,'C. PoC Adj Factor Scoring'!$E$3:$AH$3,0)-1),MATCH(X$2&\" Score\",'C. PoC Adj Factor Scoring'!$E$4:$J$4,0),TRUE)","v":1},{"$f":"VLOOKUP(OFFSET($B:$B,,MATCH(Y$4,$B$4:$F$4,0)-1),OFFSET('C. PoC Adj Factor Scoring'!$E$5:$J$282,,MATCH(Y$4,'C. PoC Adj Factor Scoring'!$E$3:$AH$3,0)-1),MATCH(Y$2&\" Score\",'C. PoC Adj Factor Scoring'!$E$4:$J$4,0),TRUE)","v":1},{"$f":"VLOOKUP(OFFSET($B:$B,,MATCH(Z$4,$B$4:$F$4,0)-1),OFFSET('C. PoC Adj Factor Scoring'!$E$5:$J$282,,MATCH(Z$4,'C. PoC Adj Factor Scoring'!$E$3:$AH$3,0)-1),MATCH(Z$2&\" Score\",'C. PoC Adj Factor Scoring'!$E$4:$J$4,0),TRUE)","v":1},{"$f":"VLOOKUP(OFFSET($B:$B,,MATCH(AA$4,$B$4:$F$4,0)-1),OFFSET('C. PoC Adj Factor Scoring'!$E$5:$J$282,,MATCH(AA$4,'C. PoC Adj Factor Scoring'!$E$3:$AH$3,0)-1),MATCH(AA$2&\" Score\",'C. PoC Adj Factor Scoring'!$E$4:$J$4,0),TRUE)","v":3},{"$f":"VLOOKUP(OFFSET($B:$B,,MATCH(AB$4,$B$4:$F$4,0)-1),OFFSET('C. PoC Adj Factor Scoring'!$E$5:$J$282,,MATCH(AB$4,'C. PoC Adj Factor Scoring'!$E$3:$AH$3,0)-1),MATCH(AB$2&\" Score\",'C. PoC Adj Factor Scoring'!$E$4:$J$4,0),TRUE)","v":1},{"$f":"VLOOKUP(OFFSET($B:$B,,MATCH(AC$4,$B$4:$F$4,0)-1),OFFSET('C. PoC Adj Factor Scoring'!$E$5:$J$282,,MATCH(AC$4,'C. PoC Adj Factor Scoring'!$E$3:$AH$3,0)-1),MATCH(AC$2&\" Score\",'C. PoC Adj Factor Scoring'!$E$4:$J$4,0),TRUE)","v":1},{"$f":"VLOOKUP(OFFSET($B:$B,,MATCH(AD$4,$B$4:$F$4,0)-1),OFFSET('C. PoC Adj Factor Scoring'!$E$5:$J$282,,MATCH(AD$4,'C. PoC Adj Factor Scoring'!$E$3:$AH$3,0)-1),MATCH(AD$2&\" Score\",'C. PoC Adj Factor Scoring'!$E$4:$J$4,0),TRUE)","v":1},{"$f":"VLOOKUP(OFFSET($B:$B,,MATCH(AE$4,$B$4:$F$4,0)-1),OFFSET('C. PoC Adj Factor Scoring'!$E$5:$J$282,,MATCH(AE$4,'C. PoC Adj Factor Scoring'!$E$3:$AH$3,0)-1),MATCH(AE$2&\" Score\",'C. PoC Adj Factor Scoring'!$E$4:$J$4,0),TRUE)","v":1}]
[{"$f":"'A. Population Info'!A11","v":1000048621},{"$f":"'A. Population Info'!L11","v":"OIL"},{"$f":"'A. Population Info'!M11","v":0},{"$f":"'A. Population Info'!N11","v":0},{"$f":"'A. Population Info'!O11","v":0},{"$f":"'A. Population Info'!P11","v":0},{"$f":"VLOOKUP(OFFSET($B:$B,,MATCH(G$4,$B$4:$F$4,0)-1),OFFSET('C. PoC Adj Factor Scoring'!$E$5:$J$282,,MATCH(G$4,'C. PoC Adj Factor Scoring'!$E$3:$AH$3,0)-1),MATCH(G$2&\" Score\",'C. PoC Adj Factor Scoring'!$E$4:$J$4,0),TRUE)","v":4},{"$f":"VLOOKUP(OFFSET($B:$B,,MATCH(H$4,$B$4:$F$4,0)-1),OFFSET('C. PoC Adj Factor Scoring'!$E$5:$J$282,,MATCH(H$4,'C. PoC Adj Factor Scoring'!$E$3:$AH$3,0)-1),MATCH(H$2&\" Score\",'C. PoC Adj Factor Scoring'!$E$4:$J$4,0),TRUE)","v":1},{"$f":"VLOOKUP(OFFSET($B:$B,,MATCH(I$4,$B$4:$F$4,0)-1),OFFSET('C. PoC Adj Factor Scoring'!$E$5:$J$282,,MATCH(I$4,'C. PoC Adj Factor Scoring'!$E$3:$AH$3,0)-1),MATCH(I$2&\" Score\",'C. PoC Adj Factor Scoring'!$E$4:$J$4,0),TRUE)","v":1},{"$f":"VLOOKUP(OFFSET($B:$B,,MATCH(J$4,$B$4:$F$4,0)-1),OFFSET('C. PoC Adj Factor Scoring'!$E$5:$J$282,,MATCH(J$4,'C. PoC Adj Factor Scoring'!$E$3:$AH$3,0)-1),MATCH(J$2&\" Score\",'C. PoC Adj Factor Scoring'!$E$4:$J$4,0),TRUE)","v":1},{"$f":"VLOOKUP(OFFSET($B:$B,,MATCH(K$4,$B$4:$F$4,0)-1),OFFSET('C. PoC Adj Factor Scoring'!$E$5:$J$282,,MATCH(K$4,'C. PoC Adj Factor Scoring'!$E$3:$AH$3,0)-1),MATCH(K$2&\" Score\",'C. PoC Adj Factor Scoring'!$E$4:$J$4,0),TRUE)","v":1},{"$f":"VLOOKUP(OFFSET($B:$B,,MATCH(L$4,$B$4:$F$4,0)-1),OFFSET('C. PoC Adj Factor Scoring'!$E$5:$J$282,,MATCH(L$4,'C. PoC Adj Factor Scoring'!$E$3:$AH$3,0)-1),MATCH(L$2&\" Score\",'C. PoC Adj Factor Scoring'!$E$4:$J$4,0),TRUE)","v":1},{"$f":"VLOOKUP(OFFSET($B:$B,,MATCH(M$4,$B$4:$F$4,0)-1),OFFSET('C. PoC Adj Factor Scoring'!$E$5:$J$282,,MATCH(M$4,'C. PoC Adj Factor Scoring'!$E$3:$AH$3,0)-1),MATCH(M$2&\" Score\",'C. PoC Adj Factor Scoring'!$E$4:$J$4,0),TRUE)","v":1},{"$f":"VLOOKUP(OFFSET($B:$B,,MATCH(N$4,$B$4:$F$4,0)-1),OFFSET('C. PoC Adj Factor Scoring'!$E$5:$J$282,,MATCH(N$4,'C. PoC Adj Factor Scoring'!$E$3:$AH$3,0)-1),MATCH(N$2&\" Score\",'C. PoC Adj Factor Scoring'!$E$4:$J$4,0),TRUE)","v":1},{"$f":"VLOOKUP(OFFSET($B:$B,,MATCH(O$4,$B$4:$F$4,0)-1),OFFSET('C. PoC Adj Factor Scoring'!$E$5:$J$282,,MATCH(O$4,'C. PoC Adj Factor Scoring'!$E$3:$AH$3,0)-1),MATCH(O$2&\" Score\",'C. PoC Adj Factor Scoring'!$E$4:$J$4,0),TRUE)","v":1},{"$f":"VLOOKUP(OFFSET($B:$B,,MATCH(P$4,$B$4:$F$4,0)-1),OFFSET('C. PoC Adj Factor Scoring'!$E$5:$J$282,,MATCH(P$4,'C. PoC Adj Factor Scoring'!$E$3:$AH$3,0)-1),MATCH(P$2&\" Score\",'C. PoC Adj Factor Scoring'!$E$4:$J$4,0),TRUE)","v":1},{"$f":"VLOOKUP(OFFSET($B:$B,,MATCH(Q$4,$B$4:$F$4,0)-1),OFFSET('C. PoC Adj Factor Scoring'!$E$5:$J$282,,MATCH(Q$4,'C. PoC Adj Factor Scoring'!$E$3:$AH$3,0)-1),MATCH(Q$2&\" Score\",'C. PoC Adj Factor Scoring'!$E$4:$J$4,0),TRUE)","v":1},{"$f":"VLOOKUP(OFFSET($B:$B,,MATCH(R$4,$B$4:$F$4,0)-1),OFFSET('C. PoC Adj Factor Scoring'!$E$5:$J$282,,MATCH(R$4,'C. PoC Adj Factor Scoring'!$E$3:$AH$3,0)-1),MATCH(R$2&\" Score\",'C. PoC Adj Factor Scoring'!$E$4:$J$4,0),TRUE)","v":1},{"$f":"VLOOKUP(OFFSET($B:$B,,MATCH(S$4,$B$4:$F$4,0)-1),OFFSET('C. PoC Adj Factor Scoring'!$E$5:$J$282,,MATCH(S$4,'C. PoC Adj Factor Scoring'!$E$3:$AH$3,0)-1),MATCH(S$2&\" Score\",'C. PoC Adj Factor Scoring'!$E$4:$J$4,0),TRUE)","v":1},{"$f":"VLOOKUP(OFFSET($B:$B,,MATCH(T$4,$B$4:$F$4,0)-1),OFFSET('C. PoC Adj Factor Scoring'!$E$5:$J$282,,MATCH(T$4,'C. PoC Adj Factor Scoring'!$E$3:$AH$3,0)-1),MATCH(T$2&\" Score\",'C. PoC Adj Factor Scoring'!$E$4:$J$4,0),TRUE)","v":1},{"$f":"VLOOKUP(OFFSET($B:$B,,MATCH(U$4,$B$4:$F$4,0)-1),OFFSET('C. PoC Adj Factor Scoring'!$E$5:$J$282,,MATCH(U$4,'C. PoC Adj Factor Scoring'!$E$3:$AH$3,0)-1),MATCH(U$2&\" Score\",'C. PoC Adj Factor Scoring'!$E$4:$J$4,0),TRUE)","v":1},{"$f":"VLOOKUP(OFFSET($B:$B,,MATCH(V$4,$B$4:$F$4,0)-1),OFFSET('C. PoC Adj Factor Scoring'!$E$5:$J$282,,MATCH(V$4,'C. PoC Adj Factor Scoring'!$E$3:$AH$3,0)-1),MATCH(V$2&\" Score\",'C. PoC Adj Factor Scoring'!$E$4:$J$4,0),TRUE)","v":1},{"$f":"VLOOKUP(OFFSET($B:$B,,MATCH(W$4,$B$4:$F$4,0)-1),OFFSET('C. PoC Adj Factor Scoring'!$E$5:$J$282,,MATCH(W$4,'C. PoC Adj Factor Scoring'!$E$3:$AH$3,0)-1),MATCH(W$2&\" Score\",'C. PoC Adj Factor Scoring'!$E$4:$J$4,0),TRUE)","v":1},{"$f":"VLOOKUP(OFFSET($B:$B,,MATCH(X$4,$B$4:$F$4,0)-1),OFFSET('C. PoC Adj Factor Scoring'!$E$5:$J$282,,MATCH(X$4,'C. PoC Adj Factor Scoring'!$E$3:$AH$3,0)-1),MATCH(X$2&\" Score\",'C. PoC Adj Factor Scoring'!$E$4:$J$4,0),TRUE)","v":1},{"$f":"VLOOKUP(OFFSET($B:$B,,MATCH(Y$4,$B$4:$F$4,0)-1),OFFSET('C. PoC Adj Factor Scoring'!$E$5:$J$282,,MATCH(Y$4,'C. PoC Adj Factor Scoring'!$E$3:$AH$3,0)-1),MATCH(Y$2&\" Score\",'C. PoC Adj Factor Scoring'!$E$4:$J$4,0),TRUE)","v":1},{"$f":"VLOOKUP(OFFSET($B:$B,,MATCH(Z$4,$B$4:$F$4,0)-1),OFFSET('C. PoC Adj Factor Scoring'!$E$5:$J$282,,MATCH(Z$4,'C. PoC Adj Factor Scoring'!$E$3:$AH$3,0)-1),MATCH(Z$2&\" Score\",'C. PoC Adj Factor Scoring'!$E$4:$J$4,0),TRUE)","v":1},{"$f":"VLOOKUP(OFFSET($B:$B,,MATCH(AA$4,$B$4:$F$4,0)-1),OFFSET('C. PoC Adj Factor Scoring'!$E$5:$J$282,,MATCH(AA$4,'C. PoC Adj Factor Scoring'!$E$3:$AH$3,0)-1),MATCH(AA$2&\" Score\",'C. PoC Adj Factor Scoring'!$E$4:$J$4,0),TRUE)","v":3},{"$f":"VLOOKUP(OFFSET($B:$B,,MATCH(AB$4,$B$4:$F$4,0)-1),OFFSET('C. PoC Adj Factor Scoring'!$E$5:$J$282,,MATCH(AB$4,'C. PoC Adj Factor Scoring'!$E$3:$AH$3,0)-1),MATCH(AB$2&\" Score\",'C. PoC Adj Factor Scoring'!$E$4:$J$4,0),TRUE)","v":1},{"$f":"VLOOKUP(OFFSET($B:$B,,MATCH(AC$4,$B$4:$F$4,0)-1),OFFSET('C. PoC Adj Factor Scoring'!$E$5:$J$282,,MATCH(AC$4,'C. PoC Adj Factor Scoring'!$E$3:$AH$3,0)-1),MATCH(AC$2&\" Score\",'C. PoC Adj Factor Scoring'!$E$4:$J$4,0),TRUE)","v":1},{"$f":"VLOOKUP(OFFSET($B:$B,,MATCH(AD$4,$B$4:$F$4,0)-1),OFFSET('C. PoC Adj Factor Scoring'!$E$5:$J$282,,MATCH(AD$4,'C. PoC Adj Factor Scoring'!$E$3:$AH$3,0)-1),MATCH(AD$2&\" Score\",'C. PoC Adj Factor Scoring'!$E$4:$J$4,0),TRUE)","v":1},{"$f":"VLOOKUP(OFFSET($B:$B,,MATCH(AE$4,$B$4:$F$4,0)-1),OFFSET('C. PoC Adj Factor Scoring'!$E$5:$J$282,,MATCH(AE$4,'C. PoC Adj Factor Scoring'!$E$3:$AH$3,0)-1),MATCH(AE$2&\" Score\",'C. PoC Adj Factor Scoring'!$E$4:$J$4,0),TRUE)","v":1}]
[{"$f":"'A. Population Info'!A12","v":1000048751},{"$f":"'A. Population Info'!L12","v":"OIL"},{"$f":"'A. Population Info'!M12","v":0},{"$f":"'A. Population Info'!N12","v":0},{"$f":"'A. Population Info'!O12","v":0},{"$f":"'A. Population Info'!P12","v":0},{"$f":"VLOOKUP(OFFSET($B:$B,,MATCH(G$4,$B$4:$F$4,0)-1),OFFSET('C. PoC Adj Factor Scoring'!$E$5:$J$282,,MATCH(G$4,'C. PoC Adj Factor Scoring'!$E$3:$AH$3,0)-1),MATCH(G$2&\" Score\",'C. PoC Adj Factor Scoring'!$E$4:$J$4,0),TRUE)","v":4},{"$f":"VLOOKUP(OFFSET($B:$B,,MATCH(H$4,$B$4:$F$4,0)-1),OFFSET('C. PoC Adj Factor Scoring'!$E$5:$J$282,,MATCH(H$4,'C. PoC Adj Factor Scoring'!$E$3:$AH$3,0)-1),MATCH(H$2&\" Score\",'C. PoC Adj Factor Scoring'!$E$4:$J$4,0),TRUE)","v":1},{"$f":"VLOOKUP(OFFSET($B:$B,,MATCH(I$4,$B$4:$F$4,0)-1),OFFSET('C. PoC Adj Factor Scoring'!$E$5:$J$282,,MATCH(I$4,'C. PoC Adj Factor Scoring'!$E$3:$AH$3,0)-1),MATCH(I$2&\" Score\",'C. PoC Adj Factor Scoring'!$E$4:$J$4,0),TRUE)","v":1},{"$f":"VLOOKUP(OFFSET($B:$B,,MATCH(J$4,$B$4:$F$4,0)-1),OFFSET('C. PoC Adj Factor Scoring'!$E$5:$J$282,,MATCH(J$4,'C. PoC Adj Factor Scoring'!$E$3:$AH$3,0)-1),MATCH(J$2&\" Score\",'C. PoC Adj Factor Scoring'!$E$4:$J$4,0),TRUE)","v":1},{"$f":"VLOOKUP(OFFSET($B:$B,,MATCH(K$4,$B$4:$F$4,0)-1),OFFSET('C. PoC Adj Factor Scoring'!$E$5:$J$282,,MATCH(K$4,'C. PoC Adj Factor Scoring'!$E$3:$AH$3,0)-1),MATCH(K$2&\" Score\",'C. PoC Adj Factor Scoring'!$E$4:$J$4,0),TRUE)","v":1},{"$f":"VLOOKUP(OFFSET($B:$B,,MATCH(L$4,$B$4:$F$4,0)-1),OFFSET('C. PoC Adj Factor Scoring'!$E$5:$J$282,,MATCH(L$4,'C. PoC Adj Factor Scoring'!$E$3:$AH$3,0)-1),MATCH(L$2&\" Score\",'C. PoC Adj Factor Scoring'!$E$4:$J$4,0),TRUE)","v":1},{"$f":"VLOOKUP(OFFSET($B:$B,,MATCH(M$4,$B$4:$F$4,0)-1),OFFSET('C. PoC Adj Factor Scoring'!$E$5:$J$282,,MATCH(M$4,'C. PoC Adj Factor Scoring'!$E$3:$AH$3,0)-1),MATCH(M$2&\" Score\",'C. PoC Adj Factor Scoring'!$E$4:$J$4,0),TRUE)","v":1},{"$f":"VLOOKUP(OFFSET($B:$B,,MATCH(N$4,$B$4:$F$4,0)-1),OFFSET('C. PoC Adj Factor Scoring'!$E$5:$J$282,,MATCH(N$4,'C. PoC Adj Factor Scoring'!$E$3:$AH$3,0)-1),MATCH(N$2&\" Score\",'C. PoC Adj Factor Scoring'!$E$4:$J$4,0),TRUE)","v":1},{"$f":"VLOOKUP(OFFSET($B:$B,,MATCH(O$4,$B$4:$F$4,0)-1),OFFSET('C. PoC Adj Factor Scoring'!$E$5:$J$282,,MATCH(O$4,'C. PoC Adj Factor Scoring'!$E$3:$AH$3,0)-1),MATCH(O$2&\" Score\",'C. PoC Adj Factor Scoring'!$E$4:$J$4,0),TRUE)","v":1},{"$f":"VLOOKUP(OFFSET($B:$B,,MATCH(P$4,$B$4:$F$4,0)-1),OFFSET('C. PoC Adj Factor Scoring'!$E$5:$J$282,,MATCH(P$4,'C. PoC Adj Factor Scoring'!$E$3:$AH$3,0)-1),MATCH(P$2&\" Score\",'C. PoC Adj Factor Scoring'!$E$4:$J$4,0),TRUE)","v":1},{"$f":"VLOOKUP(OFFSET($B:$B,,MATCH(Q$4,$B$4:$F$4,0)-1),OFFSET('C. PoC Adj Factor Scoring'!$E$5:$J$282,,MATCH(Q$4,'C. PoC Adj Factor Scoring'!$E$3:$AH$3,0)-1),MATCH(Q$2&\" Score\",'C. PoC Adj Factor Scoring'!$E$4:$J$4,0),TRUE)","v":1},{"$f":"VLOOKUP(OFFSET($B:$B,,MATCH(R$4,$B$4:$F$4,0)-1),OFFSET('C. PoC Adj Factor Scoring'!$E$5:$J$282,,MATCH(R$4,'C. PoC Adj Factor Scoring'!$E$3:$AH$3,0)-1),MATCH(R$2&\" Score\",'C. PoC Adj Factor Scoring'!$E$4:$J$4,0),TRUE)","v":1},{"$f":"VLOOKUP(OFFSET($B:$B,,MATCH(S$4,$B$4:$F$4,0)-1),OFFSET('C. PoC Adj Factor Scoring'!$E$5:$J$282,,MATCH(S$4,'C. PoC Adj Factor Scoring'!$E$3:$AH$3,0)-1),MATCH(S$2&\" Score\",'C. PoC Adj Factor Scoring'!$E$4:$J$4,0),TRUE)","v":1},{"$f":"VLOOKUP(OFFSET($B:$B,,MATCH(T$4,$B$4:$F$4,0)-1),OFFSET('C. PoC Adj Factor Scoring'!$E$5:$J$282,,MATCH(T$4,'C. PoC Adj Factor Scoring'!$E$3:$AH$3,0)-1),MATCH(T$2&\" Score\",'C. PoC Adj Factor Scoring'!$E$4:$J$4,0),TRUE)","v":1},{"$f":"VLOOKUP(OFFSET($B:$B,,MATCH(U$4,$B$4:$F$4,0)-1),OFFSET('C. PoC Adj Factor Scoring'!$E$5:$J$282,,MATCH(U$4,'C. PoC Adj Factor Scoring'!$E$3:$AH$3,0)-1),MATCH(U$2&\" Score\",'C. PoC Adj Factor Scoring'!$E$4:$J$4,0),TRUE)","v":1},{"$f":"VLOOKUP(OFFSET($B:$B,,MATCH(V$4,$B$4:$F$4,0)-1),OFFSET('C. PoC Adj Factor Scoring'!$E$5:$J$282,,MATCH(V$4,'C. PoC Adj Factor Scoring'!$E$3:$AH$3,0)-1),MATCH(V$2&\" Score\",'C. PoC Adj Factor Scoring'!$E$4:$J$4,0),TRUE)","v":1},{"$f":"VLOOKUP(OFFSET($B:$B,,MATCH(W$4,$B$4:$F$4,0)-1),OFFSET('C. PoC Adj Factor Scoring'!$E$5:$J$282,,MATCH(W$4,'C. PoC Adj Factor Scoring'!$E$3:$AH$3,0)-1),MATCH(W$2&\" Score\",'C. PoC Adj Factor Scoring'!$E$4:$J$4,0),TRUE)","v":1},{"$f":"VLOOKUP(OFFSET($B:$B,,MATCH(X$4,$B$4:$F$4,0)-1),OFFSET('C. PoC Adj Factor Scoring'!$E$5:$J$282,,MATCH(X$4,'C. PoC Adj Factor Scoring'!$E$3:$AH$3,0)-1),MATCH(X$2&\" Score\",'C. PoC Adj Factor Scoring'!$E$4:$J$4,0),TRUE)","v":1},{"$f":"VLOOKUP(OFFSET($B:$B,,MATCH(Y$4,$B$4:$F$4,0)-1),OFFSET('C. PoC Adj Factor Scoring'!$E$5:$J$282,,MATCH(Y$4,'C. PoC Adj Factor Scoring'!$E$3:$AH$3,0)-1),MATCH(Y$2&\" Score\",'C. PoC Adj Factor Scoring'!$E$4:$J$4,0),TRUE)","v":1},{"$f":"VLOOKUP(OFFSET($B:$B,,MATCH(Z$4,$B$4:$F$4,0)-1),OFFSET('C. PoC Adj Factor Scoring'!$E$5:$J$282,,MATCH(Z$4,'C. PoC Adj Factor Scoring'!$E$3:$AH$3,0)-1),MATCH(Z$2&\" Score\",'C. PoC Adj Factor Scoring'!$E$4:$J$4,0),TRUE)","v":1},{"$f":"VLOOKUP(OFFSET($B:$B,,MATCH(AA$4,$B$4:$F$4,0)-1),OFFSET('C. PoC Adj Factor Scoring'!$E$5:$J$282,,MATCH(AA$4,'C. PoC Adj Factor Scoring'!$E$3:$AH$3,0)-1),MATCH(AA$2&\" Score\",'C. PoC Adj Factor Scoring'!$E$4:$J$4,0),TRUE)","v":3},{"$f":"VLOOKUP(OFFSET($B:$B,,MATCH(AB$4,$B$4:$F$4,0)-1),OFFSET('C. PoC Adj Factor Scoring'!$E$5:$J$282,,MATCH(AB$4,'C. PoC Adj Factor Scoring'!$E$3:$AH$3,0)-1),MATCH(AB$2&\" Score\",'C. PoC Adj Factor Scoring'!$E$4:$J$4,0),TRUE)","v":1},{"$f":"VLOOKUP(OFFSET($B:$B,,MATCH(AC$4,$B$4:$F$4,0)-1),OFFSET('C. PoC Adj Factor Scoring'!$E$5:$J$282,,MATCH(AC$4,'C. PoC Adj Factor Scoring'!$E$3:$AH$3,0)-1),MATCH(AC$2&\" Score\",'C. PoC Adj Factor Scoring'!$E$4:$J$4,0),TRUE)","v":1},{"$f":"VLOOKUP(OFFSET($B:$B,,MATCH(AD$4,$B$4:$F$4,0)-1),OFFSET('C. PoC Adj Factor Scoring'!$E$5:$J$282,,MATCH(AD$4,'C. PoC Adj Factor Scoring'!$E$3:$AH$3,0)-1),MATCH(AD$2&\" Score\",'C. PoC Adj Factor Scoring'!$E$4:$J$4,0),TRUE)","v":1},{"$f":"VLOOKUP(OFFSET($B:$B,,MATCH(AE$4,$B$4:$F$4,0)-1),OFFSET('C. PoC Adj Factor Scoring'!$E$5:$J$282,,MATCH(AE$4,'C. PoC Adj Factor Scoring'!$E$3:$AH$3,0)-1),MATCH(AE$2&\" Score\",'C. PoC Adj Factor Scoring'!$E$4:$J$4,0),TRUE)","v":1}]
[{"$f":"'A. Population Info'!A13","v":1000063506},{"$f":"'A. Population Info'!L13","v":"OIL"},{"$f":"'A. Population Info'!M13","v":0},{"$f":"'A. Population Info'!N13","v":0},{"$f":"'A. Population Info'!O13","v":0},{"$f":"'A. Population Info'!P13","v":0},{"$f":"VLOOKUP(OFFSET($B:$B,,MATCH(G$4,$B$4:$F$4,0)-1),OFFSET('C. PoC Adj Factor Scoring'!$E$5:$J$282,,MATCH(G$4,'C. PoC Adj Factor Scoring'!$E$3:$AH$3,0)-1),MATCH(G$2&\" Score\",'C. PoC Adj Factor Scoring'!$E$4:$J$4,0),TRUE)","v":4},{"$f":"VLOOKUP(OFFSET($B:$B,,MATCH(H$4,$B$4:$F$4,0)-1),OFFSET('C. PoC Adj Factor Scoring'!$E$5:$J$282,,MATCH(H$4,'C. PoC Adj Factor Scoring'!$E$3:$AH$3,0)-1),MATCH(H$2&\" Score\",'C. PoC Adj Factor Scoring'!$E$4:$J$4,0),TRUE)","v":1},{"$f":"VLOOKUP(OFFSET($B:$B,,MATCH(I$4,$B$4:$F$4,0)-1),OFFSET('C. PoC Adj Factor Scoring'!$E$5:$J$282,,MATCH(I$4,'C. PoC Adj Factor Scoring'!$E$3:$AH$3,0)-1),MATCH(I$2&\" Score\",'C. PoC Adj Factor Scoring'!$E$4:$J$4,0),TRUE)","v":1},{"$f":"VLOOKUP(OFFSET($B:$B,,MATCH(J$4,$B$4:$F$4,0)-1),OFFSET('C. PoC Adj Factor Scoring'!$E$5:$J$282,,MATCH(J$4,'C. PoC Adj Factor Scoring'!$E$3:$AH$3,0)-1),MATCH(J$2&\" Score\",'C. PoC Adj Factor Scoring'!$E$4:$J$4,0),TRUE)","v":1},{"$f":"VLOOKUP(OFFSET($B:$B,,MATCH(K$4,$B$4:$F$4,0)-1),OFFSET('C. PoC Adj Factor Scoring'!$E$5:$J$282,,MATCH(K$4,'C. PoC Adj Factor Scoring'!$E$3:$AH$3,0)-1),MATCH(K$2&\" Score\",'C. PoC Adj Factor Scoring'!$E$4:$J$4,0),TRUE)","v":1},{"$f":"VLOOKUP(OFFSET($B:$B,,MATCH(L$4,$B$4:$F$4,0)-1),OFFSET('C. PoC Adj Factor Scoring'!$E$5:$J$282,,MATCH(L$4,'C. PoC Adj Factor Scoring'!$E$3:$AH$3,0)-1),MATCH(L$2&\" Score\",'C. PoC Adj Factor Scoring'!$E$4:$J$4,0),TRUE)","v":1},{"$f":"VLOOKUP(OFFSET($B:$B,,MATCH(M$4,$B$4:$F$4,0)-1),OFFSET('C. PoC Adj Factor Scoring'!$E$5:$J$282,,MATCH(M$4,'C. PoC Adj Factor Scoring'!$E$3:$AH$3,0)-1),MATCH(M$2&\" Score\",'C. PoC Adj Factor Scoring'!$E$4:$J$4,0),TRUE)","v":1},{"$f":"VLOOKUP(OFFSET($B:$B,,MATCH(N$4,$B$4:$F$4,0)-1),OFFSET('C. PoC Adj Factor Scoring'!$E$5:$J$282,,MATCH(N$4,'C. PoC Adj Factor Scoring'!$E$3:$AH$3,0)-1),MATCH(N$2&\" Score\",'C. PoC Adj Factor Scoring'!$E$4:$J$4,0),TRUE)","v":1},{"$f":"VLOOKUP(OFFSET($B:$B,,MATCH(O$4,$B$4:$F$4,0)-1),OFFSET('C. PoC Adj Factor Scoring'!$E$5:$J$282,,MATCH(O$4,'C. PoC Adj Factor Scoring'!$E$3:$AH$3,0)-1),MATCH(O$2&\" Score\",'C. PoC Adj Factor Scoring'!$E$4:$J$4,0),TRUE)","v":1},{"$f":"VLOOKUP(OFFSET($B:$B,,MATCH(P$4,$B$4:$F$4,0)-1),OFFSET('C. PoC Adj Factor Scoring'!$E$5:$J$282,,MATCH(P$4,'C. PoC Adj Factor Scoring'!$E$3:$AH$3,0)-1),MATCH(P$2&\" Score\",'C. PoC Adj Factor Scoring'!$E$4:$J$4,0),TRUE)","v":1},{"$f":"VLOOKUP(OFFSET($B:$B,,MATCH(Q$4,$B$4:$F$4,0)-1),OFFSET('C. PoC Adj Factor Scoring'!$E$5:$J$282,,MATCH(Q$4,'C. PoC Adj Factor Scoring'!$E$3:$AH$3,0)-1),MATCH(Q$2&\" Score\",'C. PoC Adj Factor Scoring'!$E$4:$J$4,0),TRUE)","v":1},{"$f":"VLOOKUP(OFFSET($B:$B,,MATCH(R$4,$B$4:$F$4,0)-1),OFFSET('C. PoC Adj Factor Scoring'!$E$5:$J$282,,MATCH(R$4,'C. PoC Adj Factor Scoring'!$E$3:$AH$3,0)-1),MATCH(R$2&\" Score\",'C. PoC Adj Factor Scoring'!$E$4:$J$4,0),TRUE)","v":1},{"$f":"VLOOKUP(OFFSET($B:$B,,MATCH(S$4,$B$4:$F$4,0)-1),OFFSET('C. PoC Adj Factor Scoring'!$E$5:$J$282,,MATCH(S$4,'C. PoC Adj Factor Scoring'!$E$3:$AH$3,0)-1),MATCH(S$2&\" Score\",'C. PoC Adj Factor Scoring'!$E$4:$J$4,0),TRUE)","v":1},{"$f":"VLOOKUP(OFFSET($B:$B,,MATCH(T$4,$B$4:$F$4,0)-1),OFFSET('C. PoC Adj Factor Scoring'!$E$5:$J$282,,MATCH(T$4,'C. PoC Adj Factor Scoring'!$E$3:$AH$3,0)-1),MATCH(T$2&\" Score\",'C. PoC Adj Factor Scoring'!$E$4:$J$4,0),TRUE)","v":1},{"$f":"VLOOKUP(OFFSET($B:$B,,MATCH(U$4,$B$4:$F$4,0)-1),OFFSET('C. PoC Adj Factor Scoring'!$E$5:$J$282,,MATCH(U$4,'C. PoC Adj Factor Scoring'!$E$3:$AH$3,0)-1),MATCH(U$2&\" Score\",'C. PoC Adj Factor Scoring'!$E$4:$J$4,0),TRUE)","v":1},{"$f":"VLOOKUP(OFFSET($B:$B,,MATCH(V$4,$B$4:$F$4,0)-1),OFFSET('C. PoC Adj Factor Scoring'!$E$5:$J$282,,MATCH(V$4,'C. PoC Adj Factor Scoring'!$E$3:$AH$3,0)-1),MATCH(V$2&\" Score\",'C. PoC Adj Factor Scoring'!$E$4:$J$4,0),TRUE)","v":1},{"$f":"VLOOKUP(OFFSET($B:$B,,MATCH(W$4,$B$4:$F$4,0)-1),OFFSET('C. PoC Adj Factor Scoring'!$E$5:$J$282,,MATCH(W$4,'C. PoC Adj Factor Scoring'!$E$3:$AH$3,0)-1),MATCH(W$2&\" Score\",'C. PoC Adj Factor Scoring'!$E$4:$J$4,0),TRUE)","v":1},{"$f":"VLOOKUP(OFFSET($B:$B,,MATCH(X$4,$B$4:$F$4,0)-1),OFFSET('C. PoC Adj Factor Scoring'!$E$5:$J$282,,MATCH(X$4,'C. PoC Adj Factor Scoring'!$E$3:$AH$3,0)-1),MATCH(X$2&\" Score\",'C. PoC Adj Factor Scoring'!$E$4:$J$4,0),TRUE)","v":1},{"$f":"VLOOKUP(OFFSET($B:$B,,MATCH(Y$4,$B$4:$F$4,0)-1),OFFSET('C. PoC Adj Factor Scoring'!$E$5:$J$282,,MATCH(Y$4,'C. PoC Adj Factor Scoring'!$E$3:$AH$3,0)-1),MATCH(Y$2&\" Score\",'C. PoC Adj Factor Scoring'!$E$4:$J$4,0),TRUE)","v":1},{"$f":"VLOOKUP(OFFSET($B:$B,,MATCH(Z$4,$B$4:$F$4,0)-1),OFFSET('C. PoC Adj Factor Scoring'!$E$5:$J$282,,MATCH(Z$4,'C. PoC Adj Factor Scoring'!$E$3:$AH$3,0)-1),MATCH(Z$2&\" Score\",'C. PoC Adj Factor Scoring'!$E$4:$J$4,0),TRUE)","v":1},{"$f":"VLOOKUP(OFFSET($B:$B,,MATCH(AA$4,$B$4:$F$4,0)-1),OFFSET('C. PoC Adj Factor Scoring'!$E$5:$J$282,,MATCH(AA$4,'C. PoC Adj Factor Scoring'!$E$3:$AH$3,0)-1),MATCH(AA$2&\" Score\",'C. PoC Adj Factor Scoring'!$E$4:$J$4,0),TRUE)","v":3},{"$f":"VLOOKUP(OFFSET($B:$B,,MATCH(AB$4,$B$4:$F$4,0)-1),OFFSET('C. PoC Adj Factor Scoring'!$E$5:$J$282,,MATCH(AB$4,'C. PoC Adj Factor Scoring'!$E$3:$AH$3,0)-1),MATCH(AB$2&\" Score\",'C. PoC Adj Factor Scoring'!$E$4:$J$4,0),TRUE)","v":1},{"$f":"VLOOKUP(OFFSET($B:$B,,MATCH(AC$4,$B$4:$F$4,0)-1),OFFSET('C. PoC Adj Factor Scoring'!$E$5:$J$282,,MATCH(AC$4,'C. PoC Adj Factor Scoring'!$E$3:$AH$3,0)-1),MATCH(AC$2&\" Score\",'C. PoC Adj Factor Scoring'!$E$4:$J$4,0),TRUE)","v":1},{"$f":"VLOOKUP(OFFSET($B:$B,,MATCH(AD$4,$B$4:$F$4,0)-1),OFFSET('C. PoC Adj Factor Scoring'!$E$5:$J$282,,MATCH(AD$4,'C. PoC Adj Factor Scoring'!$E$3:$AH$3,0)-1),MATCH(AD$2&\" Score\",'C. PoC Adj Factor Scoring'!$E$4:$J$4,0),TRUE)","v":1},{"$f":"VLOOKUP(OFFSET($B:$B,,MATCH(AE$4,$B$4:$F$4,0)-1),OFFSET('C. PoC Adj Factor Scoring'!$E$5:$J$282,,MATCH(AE$4,'C. PoC Adj Factor Scoring'!$E$3:$AH$3,0)-1),MATCH(AE$2&\" Score\",'C. PoC Adj Factor Scoring'!$E$4:$J$4,0),TRUE)","v":1}]
[{"$f":"'A. Population Info'!A14","v":1000096500},{"$f":"'A. Population Info'!L14","v":"OIL"},{"$f":"'A. Population Info'!M14","v":0},{"$f":"'A. Population Info'!N14","v":0},{"$f":"'A. Population Info'!O14","v":0},{"$f":"'A. Population Info'!P14","v":0},{"$f":"VLOOKUP(OFFSET($B:$B,,MATCH(G$4,$B$4:$F$4,0)-1),OFFSET('C. PoC Adj Factor Scoring'!$E$5:$J$282,,MATCH(G$4,'C. PoC Adj Factor Scoring'!$E$3:$AH$3,0)-1),MATCH(G$2&\" Score\",'C. PoC Adj Factor Scoring'!$E$4:$J$4,0),TRUE)","v":4},{"$f":"VLOOKUP(OFFSET($B:$B,,MATCH(H$4,$B$4:$F$4,0)-1),OFFSET('C. PoC Adj Factor Scoring'!$E$5:$J$282,,MATCH(H$4,'C. PoC Adj Factor Scoring'!$E$3:$AH$3,0)-1),MATCH(H$2&\" Score\",'C. PoC Adj Factor Scoring'!$E$4:$J$4,0),TRUE)","v":1},{"$f":"VLOOKUP(OFFSET($B:$B,,MATCH(I$4,$B$4:$F$4,0)-1),OFFSET('C. PoC Adj Factor Scoring'!$E$5:$J$282,,MATCH(I$4,'C. PoC Adj Factor Scoring'!$E$3:$AH$3,0)-1),MATCH(I$2&\" Score\",'C. PoC Adj Factor Scoring'!$E$4:$J$4,0),TRUE)","v":1},{"$f":"VLOOKUP(OFFSET($B:$B,,MATCH(J$4,$B$4:$F$4,0)-1),OFFSET('C. PoC Adj Factor Scoring'!$E$5:$J$282,,MATCH(J$4,'C. PoC Adj Factor Scoring'!$E$3:$AH$3,0)-1),MATCH(J$2&\" Score\",'C. PoC Adj Factor Scoring'!$E$4:$J$4,0),TRUE)","v":1},{"$f":"VLOOKUP(OFFSET($B:$B,,MATCH(K$4,$B$4:$F$4,0)-1),OFFSET('C. PoC Adj Factor Scoring'!$E$5:$J$282,,MATCH(K$4,'C. PoC Adj Factor Scoring'!$E$3:$AH$3,0)-1),MATCH(K$2&\" Score\",'C. PoC Adj Factor Scoring'!$E$4:$J$4,0),TRUE)","v":1},{"$f":"VLOOKUP(OFFSET($B:$B,,MATCH(L$4,$B$4:$F$4,0)-1),OFFSET('C. PoC Adj Factor Scoring'!$E$5:$J$282,,MATCH(L$4,'C. PoC Adj Factor Scoring'!$E$3:$AH$3,0)-1),MATCH(L$2&\" Score\",'C. PoC Adj Factor Scoring'!$E$4:$J$4,0),TRUE)","v":1},{"$f":"VLOOKUP(OFFSET($B:$B,,MATCH(M$4,$B$4:$F$4,0)-1),OFFSET('C. PoC Adj Factor Scoring'!$E$5:$J$282,,MATCH(M$4,'C. PoC Adj Factor Scoring'!$E$3:$AH$3,0)-1),MATCH(M$2&\" Score\",'C. PoC Adj Factor Scoring'!$E$4:$J$4,0),TRUE)","v":1},{"$f":"VLOOKUP(OFFSET($B:$B,,MATCH(N$4,$B$4:$F$4,0)-1),OFFSET('C. PoC Adj Factor Scoring'!$E$5:$J$282,,MATCH(N$4,'C. PoC Adj Factor Scoring'!$E$3:$AH$3,0)-1),MATCH(N$2&\" Score\",'C. PoC Adj Factor Scoring'!$E$4:$J$4,0),TRUE)","v":1},{"$f":"VLOOKUP(OFFSET($B:$B,,MATCH(O$4,$B$4:$F$4,0)-1),OFFSET('C. PoC Adj Factor Scoring'!$E$5:$J$282,,MATCH(O$4,'C. PoC Adj Factor Scoring'!$E$3:$AH$3,0)-1),MATCH(O$2&\" Score\",'C. PoC Adj Factor Scoring'!$E$4:$J$4,0),TRUE)","v":1},{"$f":"VLOOKUP(OFFSET($B:$B,,MATCH(P$4,$B$4:$F$4,0)-1),OFFSET('C. PoC Adj Factor Scoring'!$E$5:$J$282,,MATCH(P$4,'C. PoC Adj Factor Scoring'!$E$3:$AH$3,0)-1),MATCH(P$2&\" Score\",'C. PoC Adj Factor Scoring'!$E$4:$J$4,0),TRUE)","v":1},{"$f":"VLOOKUP(OFFSET($B:$B,,MATCH(Q$4,$B$4:$F$4,0)-1),OFFSET('C. PoC Adj Factor Scoring'!$E$5:$J$282,,MATCH(Q$4,'C. PoC Adj Factor Scoring'!$E$3:$AH$3,0)-1),MATCH(Q$2&\" Score\",'C. PoC Adj Factor Scoring'!$E$4:$J$4,0),TRUE)","v":1},{"$f":"VLOOKUP(OFFSET($B:$B,,MATCH(R$4,$B$4:$F$4,0)-1),OFFSET('C. PoC Adj Factor Scoring'!$E$5:$J$282,,MATCH(R$4,'C. PoC Adj Factor Scoring'!$E$3:$AH$3,0)-1),MATCH(R$2&\" Score\",'C. PoC Adj Factor Scoring'!$E$4:$J$4,0),TRUE)","v":1},{"$f":"VLOOKUP(OFFSET($B:$B,,MATCH(S$4,$B$4:$F$4,0)-1),OFFSET('C. PoC Adj Factor Scoring'!$E$5:$J$282,,MATCH(S$4,'C. PoC Adj Factor Scoring'!$E$3:$AH$3,0)-1),MATCH(S$2&\" Score\",'C. PoC Adj Factor Scoring'!$E$4:$J$4,0),TRUE)","v":1},{"$f":"VLOOKUP(OFFSET($B:$B,,MATCH(T$4,$B$4:$F$4,0)-1),OFFSET('C. PoC Adj Factor Scoring'!$E$5:$J$282,,MATCH(T$4,'C. PoC Adj Factor Scoring'!$E$3:$AH$3,0)-1),MATCH(T$2&\" Score\",'C. PoC Adj Factor Scoring'!$E$4:$J$4,0),TRUE)","v":1},{"$f":"VLOOKUP(OFFSET($B:$B,,MATCH(U$4,$B$4:$F$4,0)-1),OFFSET('C. PoC Adj Factor Scoring'!$E$5:$J$282,,MATCH(U$4,'C. PoC Adj Factor Scoring'!$E$3:$AH$3,0)-1),MATCH(U$2&\" Score\",'C. PoC Adj Factor Scoring'!$E$4:$J$4,0),TRUE)","v":1},{"$f":"VLOOKUP(OFFSET($B:$B,,MATCH(V$4,$B$4:$F$4,0)-1),OFFSET('C. PoC Adj Factor Scoring'!$E$5:$J$282,,MATCH(V$4,'C. PoC Adj Factor Scoring'!$E$3:$AH$3,0)-1),MATCH(V$2&\" Score\",'C. PoC Adj Factor Scoring'!$E$4:$J$4,0),TRUE)","v":1},{"$f":"VLOOKUP(OFFSET($B:$B,,MATCH(W$4,$B$4:$F$4,0)-1),OFFSET('C. PoC Adj Factor Scoring'!$E$5:$J$282,,MATCH(W$4,'C. PoC Adj Factor Scoring'!$E$3:$AH$3,0)-1),MATCH(W$2&\" Score\",'C. PoC Adj Factor Scoring'!$E$4:$J$4,0),TRUE)","v":1},{"$f":"VLOOKUP(OFFSET($B:$B,,MATCH(X$4,$B$4:$F$4,0)-1),OFFSET('C. PoC Adj Factor Scoring'!$E$5:$J$282,,MATCH(X$4,'C. PoC Adj Factor Scoring'!$E$3:$AH$3,0)-1),MATCH(X$2&\" Score\",'C. PoC Adj Factor Scoring'!$E$4:$J$4,0),TRUE)","v":1},{"$f":"VLOOKUP(OFFSET($B:$B,,MATCH(Y$4,$B$4:$F$4,0)-1),OFFSET('C. PoC Adj Factor Scoring'!$E$5:$J$282,,MATCH(Y$4,'C. PoC Adj Factor Scoring'!$E$3:$AH$3,0)-1),MATCH(Y$2&\" Score\",'C. PoC Adj Factor Scoring'!$E$4:$J$4,0),TRUE)","v":1},{"$f":"VLOOKUP(OFFSET($B:$B,,MATCH(Z$4,$B$4:$F$4,0)-1),OFFSET('C. PoC Adj Factor Scoring'!$E$5:$J$282,,MATCH(Z$4,'C. PoC Adj Factor Scoring'!$E$3:$AH$3,0)-1),MATCH(Z$2&\" Score\",'C. PoC Adj Factor Scoring'!$E$4:$J$4,0),TRUE)","v":1},{"$f":"VLOOKUP(OFFSET($B:$B,,MATCH(AA$4,$B$4:$F$4,0)-1),OFFSET('C. PoC Adj Factor Scoring'!$E$5:$J$282,,MATCH(AA$4,'C. PoC Adj Factor Scoring'!$E$3:$AH$3,0)-1),MATCH(AA$2&\" Score\",'C. PoC Adj Factor Scoring'!$E$4:$J$4,0),TRUE)","v":3},{"$f":"VLOOKUP(OFFSET($B:$B,,MATCH(AB$4,$B$4:$F$4,0)-1),OFFSET('C. PoC Adj Factor Scoring'!$E$5:$J$282,,MATCH(AB$4,'C. PoC Adj Factor Scoring'!$E$3:$AH$3,0)-1),MATCH(AB$2&\" Score\",'C. PoC Adj Factor Scoring'!$E$4:$J$4,0),TRUE)","v":1},{"$f":"VLOOKUP(OFFSET($B:$B,,MATCH(AC$4,$B$4:$F$4,0)-1),OFFSET('C. PoC Adj Factor Scoring'!$E$5:$J$282,,MATCH(AC$4,'C. PoC Adj Factor Scoring'!$E$3:$AH$3,0)-1),MATCH(AC$2&\" Score\",'C. PoC Adj Factor Scoring'!$E$4:$J$4,0),TRUE)","v":1},{"$f":"VLOOKUP(OFFSET($B:$B,,MATCH(AD$4,$B$4:$F$4,0)-1),OFFSET('C. PoC Adj Factor Scoring'!$E$5:$J$282,,MATCH(AD$4,'C. PoC Adj Factor Scoring'!$E$3:$AH$3,0)-1),MATCH(AD$2&\" Score\",'C. PoC Adj Factor Scoring'!$E$4:$J$4,0),TRUE)","v":1},{"$f":"VLOOKUP(OFFSET($B:$B,,MATCH(AE$4,$B$4:$F$4,0)-1),OFFSET('C. PoC Adj Factor Scoring'!$E$5:$J$282,,MATCH(AE$4,'C. PoC Adj Factor Scoring'!$E$3:$AH$3,0)-1),MATCH(AE$2&\" Score\",'C. PoC Adj Factor Scoring'!$E$4:$J$4,0),TRUE)","v":1}]
[{"$f":"'A. Population Info'!A15","v":1000096880},{"$f":"'A. Population Info'!L15","v":"OIL"},{"$f":"'A. Population Info'!M15","v":0},{"$f":"'A. Population Info'!N15","v":0},{"$f":"'A. Population Info'!O15","v":0},{"$f":"'A. Population Info'!P15","v":0},{"$f":"VLOOKUP(OFFSET($B:$B,,MATCH(G$4,$B$4:$F$4,0)-1),OFFSET('C. PoC Adj Factor Scoring'!$E$5:$J$282,,MATCH(G$4,'C. PoC Adj Factor Scoring'!$E$3:$AH$3,0)-1),MATCH(G$2&\" Score\",'C. PoC Adj Factor Scoring'!$E$4:$J$4,0),TRUE)","v":4},{"$f":"VLOOKUP(OFFSET($B:$B,,MATCH(H$4,$B$4:$F$4,0)-1),OFFSET('C. PoC Adj Factor Scoring'!$E$5:$J$282,,MATCH(H$4,'C. PoC Adj Factor Scoring'!$E$3:$AH$3,0)-1),MATCH(H$2&\" Score\",'C. PoC Adj Factor Scoring'!$E$4:$J$4,0),TRUE)","v":1},{"$f":"VLOOKUP(OFFSET($B:$B,,MATCH(I$4,$B$4:$F$4,0)-1),OFFSET('C. PoC Adj Factor Scoring'!$E$5:$J$282,,MATCH(I$4,'C. PoC Adj Factor Scoring'!$E$3:$AH$3,0)-1),MATCH(I$2&\" Score\",'C. PoC Adj Factor Scoring'!$E$4:$J$4,0),TRUE)","v":1},{"$f":"VLOOKUP(OFFSET($B:$B,,MATCH(J$4,$B$4:$F$4,0)-1),OFFSET('C. PoC Adj Factor Scoring'!$E$5:$J$282,,MATCH(J$4,'C. PoC Adj Factor Scoring'!$E$3:$AH$3,0)-1),MATCH(J$2&\" Score\",'C. PoC Adj Factor Scoring'!$E$4:$J$4,0),TRUE)","v":1},{"$f":"VLOOKUP(OFFSET($B:$B,,MATCH(K$4,$B$4:$F$4,0)-1),OFFSET('C. PoC Adj Factor Scoring'!$E$5:$J$282,,MATCH(K$4,'C. PoC Adj Factor Scoring'!$E$3:$AH$3,0)-1),MATCH(K$2&\" Score\",'C. PoC Adj Factor Scoring'!$E$4:$J$4,0),TRUE)","v":1},{"$f":"VLOOKUP(OFFSET($B:$B,,MATCH(L$4,$B$4:$F$4,0)-1),OFFSET('C. PoC Adj Factor Scoring'!$E$5:$J$282,,MATCH(L$4,'C. PoC Adj Factor Scoring'!$E$3:$AH$3,0)-1),MATCH(L$2&\" Score\",'C. PoC Adj Factor Scoring'!$E$4:$J$4,0),TRUE)","v":1},{"$f":"VLOOKUP(OFFSET($B:$B,,MATCH(M$4,$B$4:$F$4,0)-1),OFFSET('C. PoC Adj Factor Scoring'!$E$5:$J$282,,MATCH(M$4,'C. PoC Adj Factor Scoring'!$E$3:$AH$3,0)-1),MATCH(M$2&\" Score\",'C. PoC Adj Factor Scoring'!$E$4:$J$4,0),TRUE)","v":1},{"$f":"VLOOKUP(OFFSET($B:$B,,MATCH(N$4,$B$4:$F$4,0)-1),OFFSET('C. PoC Adj Factor Scoring'!$E$5:$J$282,,MATCH(N$4,'C. PoC Adj Factor Scoring'!$E$3:$AH$3,0)-1),MATCH(N$2&\" Score\",'C. PoC Adj Factor Scoring'!$E$4:$J$4,0),TRUE)","v":1},{"$f":"VLOOKUP(OFFSET($B:$B,,MATCH(O$4,$B$4:$F$4,0)-1),OFFSET('C. PoC Adj Factor Scoring'!$E$5:$J$282,,MATCH(O$4,'C. PoC Adj Factor Scoring'!$E$3:$AH$3,0)-1),MATCH(O$2&\" Score\",'C. PoC Adj Factor Scoring'!$E$4:$J$4,0),TRUE)","v":1},{"$f":"VLOOKUP(OFFSET($B:$B,,MATCH(P$4,$B$4:$F$4,0)-1),OFFSET('C. PoC Adj Factor Scoring'!$E$5:$J$282,,MATCH(P$4,'C. PoC Adj Factor Scoring'!$E$3:$AH$3,0)-1),MATCH(P$2&\" Score\",'C. PoC Adj Factor Scoring'!$E$4:$J$4,0),TRUE)","v":1},{"$f":"VLOOKUP(OFFSET($B:$B,,MATCH(Q$4,$B$4:$F$4,0)-1),OFFSET('C. PoC Adj Factor Scoring'!$E$5:$J$282,,MATCH(Q$4,'C. PoC Adj Factor Scoring'!$E$3:$AH$3,0)-1),MATCH(Q$2&\" Score\",'C. PoC Adj Factor Scoring'!$E$4:$J$4,0),TRUE)","v":1},{"$f":"VLOOKUP(OFFSET($B:$B,,MATCH(R$4,$B$4:$F$4,0)-1),OFFSET('C. PoC Adj Factor Scoring'!$E$5:$J$282,,MATCH(R$4,'C. PoC Adj Factor Scoring'!$E$3:$AH$3,0)-1),MATCH(R$2&\" Score\",'C. PoC Adj Factor Scoring'!$E$4:$J$4,0),TRUE)","v":1},{"$f":"VLOOKUP(OFFSET($B:$B,,MATCH(S$4,$B$4:$F$4,0)-1),OFFSET('C. PoC Adj Factor Scoring'!$E$5:$J$282,,MATCH(S$4,'C. PoC Adj Factor Scoring'!$E$3:$AH$3,0)-1),MATCH(S$2&\" Score\",'C. PoC Adj Factor Scoring'!$E$4:$J$4,0),TRUE)","v":1},{"$f":"VLOOKUP(OFFSET($B:$B,,MATCH(T$4,$B$4:$F$4,0)-1),OFFSET('C. PoC Adj Factor Scoring'!$E$5:$J$282,,MATCH(T$4,'C. PoC Adj Factor Scoring'!$E$3:$AH$3,0)-1),MATCH(T$2&\" Score\",'C. PoC Adj Factor Scoring'!$E$4:$J$4,0),TRUE)","v":1},{"$f":"VLOOKUP(OFFSET($B:$B,,MATCH(U$4,$B$4:$F$4,0)-1),OFFSET('C. PoC Adj Factor Scoring'!$E$5:$J$282,,MATCH(U$4,'C. PoC Adj Factor Scoring'!$E$3:$AH$3,0)-1),MATCH(U$2&\" Score\",'C. PoC Adj Factor Scoring'!$E$4:$J$4,0),TRUE)","v":1},{"$f":"VLOOKUP(OFFSET($B:$B,,MATCH(V$4,$B$4:$F$4,0)-1),OFFSET('C. PoC Adj Factor Scoring'!$E$5:$J$282,,MATCH(V$4,'C. PoC Adj Factor Scoring'!$E$3:$AH$3,0)-1),MATCH(V$2&\" Score\",'C. PoC Adj Factor Scoring'!$E$4:$J$4,0),TRUE)","v":1},{"$f":"VLOOKUP(OFFSET($B:$B,,MATCH(W$4,$B$4:$F$4,0)-1),OFFSET('C. PoC Adj Factor Scoring'!$E$5:$J$282,,MATCH(W$4,'C. PoC Adj Factor Scoring'!$E$3:$AH$3,0)-1),MATCH(W$2&\" Score\",'C. PoC Adj Factor Scoring'!$E$4:$J$4,0),TRUE)","v":1},{"$f":"VLOOKUP(OFFSET($B:$B,,MATCH(X$4,$B$4:$F$4,0)-1),OFFSET('C. PoC Adj Factor Scoring'!$E$5:$J$282,,MATCH(X$4,'C. PoC Adj Factor Scoring'!$E$3:$AH$3,0)-1),MATCH(X$2&\" Score\",'C. PoC Adj Factor Scoring'!$E$4:$J$4,0),TRUE)","v":1},{"$f":"VLOOKUP(OFFSET($B:$B,,MATCH(Y$4,$B$4:$F$4,0)-1),OFFSET('C. PoC Adj Factor Scoring'!$E$5:$J$282,,MATCH(Y$4,'C. PoC Adj Factor Scoring'!$E$3:$AH$3,0)-1),MATCH(Y$2&\" Score\",'C. PoC Adj Factor Scoring'!$E$4:$J$4,0),TRUE)","v":1},{"$f":"VLOOKUP(OFFSET($B:$B,,MATCH(Z$4,$B$4:$F$4,0)-1),OFFSET('C. PoC Adj Factor Scoring'!$E$5:$J$282,,MATCH(Z$4,'C. PoC Adj Factor Scoring'!$E$3:$AH$3,0)-1),MATCH(Z$2&\" Score\",'C. PoC Adj Factor Scoring'!$E$4:$J$4,0),TRUE)","v":1},{"$f":"VLOOKUP(OFFSET($B:$B,,MATCH(AA$4,$B$4:$F$4,0)-1),OFFSET('C. PoC Adj Factor Scoring'!$E$5:$J$282,,MATCH(AA$4,'C. PoC Adj Factor Scoring'!$E$3:$AH$3,0)-1),MATCH(AA$2&\" Score\",'C. PoC Adj Factor Scoring'!$E$4:$J$4,0),TRUE)","v":3},{"$f":"VLOOKUP(OFFSET($B:$B,,MATCH(AB$4,$B$4:$F$4,0)-1),OFFSET('C. PoC Adj Factor Scoring'!$E$5:$J$282,,MATCH(AB$4,'C. PoC Adj Factor Scoring'!$E$3:$AH$3,0)-1),MATCH(AB$2&\" Score\",'C. PoC Adj Factor Scoring'!$E$4:$J$4,0),TRUE)","v":1},{"$f":"VLOOKUP(OFFSET($B:$B,,MATCH(AC$4,$B$4:$F$4,0)-1),OFFSET('C. PoC Adj Factor Scoring'!$E$5:$J$282,,MATCH(AC$4,'C. PoC Adj Factor Scoring'!$E$3:$AH$3,0)-1),MATCH(AC$2&\" Score\",'C. PoC Adj Factor Scoring'!$E$4:$J$4,0),TRUE)","v":1},{"$f":"VLOOKUP(OFFSET($B:$B,,MATCH(AD$4,$B$4:$F$4,0)-1),OFFSET('C. PoC Adj Factor Scoring'!$E$5:$J$282,,MATCH(AD$4,'C. PoC Adj Factor Scoring'!$E$3:$AH$3,0)-1),MATCH(AD$2&\" Score\",'C. PoC Adj Factor Scoring'!$E$4:$J$4,0),TRUE)","v":1},{"$f":"VLOOKUP(OFFSET($B:$B,,MATCH(AE$4,$B$4:$F$4,0)-1),OFFSET('C. PoC Adj Factor Scoring'!$E$5:$J$282,,MATCH(AE$4,'C. PoC Adj Factor Scoring'!$E$3:$AH$3,0)-1),MATCH(AE$2&\" Score\",'C. PoC Adj Factor Scoring'!$E$4:$J$4,0),TRUE)","v":1}]
[{"$f":"'A. Population Info'!A16","v":1000114250},{"$f":"'A. Population Info'!L16","v":"OIL"},{"$f":"'A. Population Info'!M16","v":0},{"$f":"'A. Population Info'!N16","v":0},{"$f":"'A. Population Info'!O16","v":0},{"$f":"'A. Population Info'!P16","v":0},{"$f":"VLOOKUP(OFFSET($B:$B,,MATCH(G$4,$B$4:$F$4,0)-1),OFFSET('C. PoC Adj Factor Scoring'!$E$5:$J$282,,MATCH(G$4,'C. PoC Adj Factor Scoring'!$E$3:$AH$3,0)-1),MATCH(G$2&\" Score\",'C. PoC Adj Factor Scoring'!$E$4:$J$4,0),TRUE)","v":4},{"$f":"VLOOKUP(OFFSET($B:$B,,MATCH(H$4,$B$4:$F$4,0)-1),OFFSET('C. PoC Adj Factor Scoring'!$E$5:$J$282,,MATCH(H$4,'C. PoC Adj Factor Scoring'!$E$3:$AH$3,0)-1),MATCH(H$2&\" Score\",'C. PoC Adj Factor Scoring'!$E$4:$J$4,0),TRUE)","v":1},{"$f":"VLOOKUP(OFFSET($B:$B,,MATCH(I$4,$B$4:$F$4,0)-1),OFFSET('C. PoC Adj Factor Scoring'!$E$5:$J$282,,MATCH(I$4,'C. PoC Adj Factor Scoring'!$E$3:$AH$3,0)-1),MATCH(I$2&\" Score\",'C. PoC Adj Factor Scoring'!$E$4:$J$4,0),TRUE)","v":1},{"$f":"VLOOKUP(OFFSET($B:$B,,MATCH(J$4,$B$4:$F$4,0)-1),OFFSET('C. PoC Adj Factor Scoring'!$E$5:$J$282,,MATCH(J$4,'C. PoC Adj Factor Scoring'!$E$3:$AH$3,0)-1),MATCH(J$2&\" Score\",'C. PoC Adj Factor Scoring'!$E$4:$J$4,0),TRUE)","v":1},{"$f":"VLOOKUP(OFFSET($B:$B,,MATCH(K$4,$B$4:$F$4,0)-1),OFFSET('C. PoC Adj Factor Scoring'!$E$5:$J$282,,MATCH(K$4,'C. PoC Adj Factor Scoring'!$E$3:$AH$3,0)-1),MATCH(K$2&\" Score\",'C. PoC Adj Factor Scoring'!$E$4:$J$4,0),TRUE)","v":1},{"$f":"VLOOKUP(OFFSET($B:$B,,MATCH(L$4,$B$4:$F$4,0)-1),OFFSET('C. PoC Adj Factor Scoring'!$E$5:$J$282,,MATCH(L$4,'C. PoC Adj Factor Scoring'!$E$3:$AH$3,0)-1),MATCH(L$2&\" Score\",'C. PoC Adj Factor Scoring'!$E$4:$J$4,0),TRUE)","v":1},{"$f":"VLOOKUP(OFFSET($B:$B,,MATCH(M$4,$B$4:$F$4,0)-1),OFFSET('C. PoC Adj Factor Scoring'!$E$5:$J$282,,MATCH(M$4,'C. PoC Adj Factor Scoring'!$E$3:$AH$3,0)-1),MATCH(M$2&\" Score\",'C. PoC Adj Factor Scoring'!$E$4:$J$4,0),TRUE)","v":1},{"$f":"VLOOKUP(OFFSET($B:$B,,MATCH(N$4,$B$4:$F$4,0)-1),OFFSET('C. PoC Adj Factor Scoring'!$E$5:$J$282,,MATCH(N$4,'C. PoC Adj Factor Scoring'!$E$3:$AH$3,0)-1),MATCH(N$2&\" Score\",'C. PoC Adj Factor Scoring'!$E$4:$J$4,0),TRUE)","v":1},{"$f":"VLOOKUP(OFFSET($B:$B,,MATCH(O$4,$B$4:$F$4,0)-1),OFFSET('C. PoC Adj Factor Scoring'!$E$5:$J$282,,MATCH(O$4,'C. PoC Adj Factor Scoring'!$E$3:$AH$3,0)-1),MATCH(O$2&\" Score\",'C. PoC Adj Factor Scoring'!$E$4:$J$4,0),TRUE)","v":1},{"$f":"VLOOKUP(OFFSET($B:$B,,MATCH(P$4,$B$4:$F$4,0)-1),OFFSET('C. PoC Adj Factor Scoring'!$E$5:$J$282,,MATCH(P$4,'C. PoC Adj Factor Scoring'!$E$3:$AH$3,0)-1),MATCH(P$2&\" Score\",'C. PoC Adj Factor Scoring'!$E$4:$J$4,0),TRUE)","v":1},{"$f":"VLOOKUP(OFFSET($B:$B,,MATCH(Q$4,$B$4:$F$4,0)-1),OFFSET('C. PoC Adj Factor Scoring'!$E$5:$J$282,,MATCH(Q$4,'C. PoC Adj Factor Scoring'!$E$3:$AH$3,0)-1),MATCH(Q$2&\" Score\",'C. PoC Adj Factor Scoring'!$E$4:$J$4,0),TRUE)","v":1},{"$f":"VLOOKUP(OFFSET($B:$B,,MATCH(R$4,$B$4:$F$4,0)-1),OFFSET('C. PoC Adj Factor Scoring'!$E$5:$J$282,,MATCH(R$4,'C. PoC Adj Factor Scoring'!$E$3:$AH$3,0)-1),MATCH(R$2&\" Score\",'C. PoC Adj Factor Scoring'!$E$4:$J$4,0),TRUE)","v":1},{"$f":"VLOOKUP(OFFSET($B:$B,,MATCH(S$4,$B$4:$F$4,0)-1),OFFSET('C. PoC Adj Factor Scoring'!$E$5:$J$282,,MATCH(S$4,'C. PoC Adj Factor Scoring'!$E$3:$AH$3,0)-1),MATCH(S$2&\" Score\",'C. PoC Adj Factor Scoring'!$E$4:$J$4,0),TRUE)","v":1},{"$f":"VLOOKUP(OFFSET($B:$B,,MATCH(T$4,$B$4:$F$4,0)-1),OFFSET('C. PoC Adj Factor Scoring'!$E$5:$J$282,,MATCH(T$4,'C. PoC Adj Factor Scoring'!$E$3:$AH$3,0)-1),MATCH(T$2&\" Score\",'C. PoC Adj Factor Scoring'!$E$4:$J$4,0),TRUE)","v":1},{"$f":"VLOOKUP(OFFSET($B:$B,,MATCH(U$4,$B$4:$F$4,0)-1),OFFSET('C. PoC Adj Factor Scoring'!$E$5:$J$282,,MATCH(U$4,'C. PoC Adj Factor Scoring'!$E$3:$AH$3,0)-1),MATCH(U$2&\" Score\",'C. PoC Adj Factor Scoring'!$E$4:$J$4,0),TRUE)","v":1},{"$f":"VLOOKUP(OFFSET($B:$B,,MATCH(V$4,$B$4:$F$4,0)-1),OFFSET('C. PoC Adj Factor Scoring'!$E$5:$J$282,,MATCH(V$4,'C. PoC Adj Factor Scoring'!$E$3:$AH$3,0)-1),MATCH(V$2&\" Score\",'C. PoC Adj Factor Scoring'!$E$4:$J$4,0),TRUE)","v":1},{"$f":"VLOOKUP(OFFSET($B:$B,,MATCH(W$4,$B$4:$F$4,0)-1),OFFSET('C. PoC Adj Factor Scoring'!$E$5:$J$282,,MATCH(W$4,'C. PoC Adj Factor Scoring'!$E$3:$AH$3,0)-1),MATCH(W$2&\" Score\",'C. PoC Adj Factor Scoring'!$E$4:$J$4,0),TRUE)","v":1},{"$f":"VLOOKUP(OFFSET($B:$B,,MATCH(X$4,$B$4:$F$4,0)-1),OFFSET('C. PoC Adj Factor Scoring'!$E$5:$J$282,,MATCH(X$4,'C. PoC Adj Factor Scoring'!$E$3:$AH$3,0)-1),MATCH(X$2&\" Score\",'C. PoC Adj Factor Scoring'!$E$4:$J$4,0),TRUE)","v":1},{"$f":"VLOOKUP(OFFSET($B:$B,,MATCH(Y$4,$B$4:$F$4,0)-1),OFFSET('C. PoC Adj Factor Scoring'!$E$5:$J$282,,MATCH(Y$4,'C. PoC Adj Factor Scoring'!$E$3:$AH$3,0)-1),MATCH(Y$2&\" Score\",'C. PoC Adj Factor Scoring'!$E$4:$J$4,0),TRUE)","v":1},{"$f":"VLOOKUP(OFFSET($B:$B,,MATCH(Z$4,$B$4:$F$4,0)-1),OFFSET('C. PoC Adj Factor Scoring'!$E$5:$J$282,,MATCH(Z$4,'C. PoC Adj Factor Scoring'!$E$3:$AH$3,0)-1),MATCH(Z$2&\" Score\",'C. PoC Adj Factor Scoring'!$E$4:$J$4,0),TRUE)","v":1},{"$f":"VLOOKUP(OFFSET($B:$B,,MATCH(AA$4,$B$4:$F$4,0)-1),OFFSET('C. PoC Adj Factor Scoring'!$E$5:$J$282,,MATCH(AA$4,'C. PoC Adj Factor Scoring'!$E$3:$AH$3,0)-1),MATCH(AA$2&\" Score\",'C. PoC Adj Factor Scoring'!$E$4:$J$4,0),TRUE)","v":3},{"$f":"VLOOKUP(OFFSET($B:$B,,MATCH(AB$4,$B$4:$F$4,0)-1),OFFSET('C. PoC Adj Factor Scoring'!$E$5:$J$282,,MATCH(AB$4,'C. PoC Adj Factor Scoring'!$E$3:$AH$3,0)-1),MATCH(AB$2&\" Score\",'C. PoC Adj Factor Scoring'!$E$4:$J$4,0),TRUE)","v":1},{"$f":"VLOOKUP(OFFSET($B:$B,,MATCH(AC$4,$B$4:$F$4,0)-1),OFFSET('C. PoC Adj Factor Scoring'!$E$5:$J$282,,MATCH(AC$4,'C. PoC Adj Factor Scoring'!$E$3:$AH$3,0)-1),MATCH(AC$2&\" Score\",'C. PoC Adj Factor Scoring'!$E$4:$J$4,0),TRUE)","v":1},{"$f":"VLOOKUP(OFFSET($B:$B,,MATCH(AD$4,$B$4:$F$4,0)-1),OFFSET('C. PoC Adj Factor Scoring'!$E$5:$J$282,,MATCH(AD$4,'C. PoC Adj Factor Scoring'!$E$3:$AH$3,0)-1),MATCH(AD$2&\" Score\",'C. PoC Adj Factor Scoring'!$E$4:$J$4,0),TRUE)","v":1},{"$f":"VLOOKUP(OFFSET($B:$B,,MATCH(AE$4,$B$4:$F$4,0)-1),OFFSET('C. PoC Adj Factor Scoring'!$E$5:$J$282,,MATCH(AE$4,'C. PoC Adj Factor Scoring'!$E$3:$AH$3,0)-1),MATCH(AE$2&\" Score\",'C. PoC Adj Factor Scoring'!$E$4:$J$4,0),TRUE)","v":1}]
[{"$f":"'A. Population Info'!A17","v":1000131033},{"$f":"'A. Population Info'!L17","v":"OIL"},{"$f":"'A. Population Info'!M17","v":0},{"$f":"'A. Population Info'!N17","v":0},{"$f":"'A. Population Info'!O17","v":0},{"$f":"'A. Population Info'!P17","v":0},{"$f":"VLOOKUP(OFFSET($B:$B,,MATCH(G$4,$B$4:$F$4,0)-1),OFFSET('C. PoC Adj Factor Scoring'!$E$5:$J$282,,MATCH(G$4,'C. PoC Adj Factor Scoring'!$E$3:$AH$3,0)-1),MATCH(G$2&\" Score\",'C. PoC Adj Factor Scoring'!$E$4:$J$4,0),TRUE)","v":4},{"$f":"VLOOKUP(OFFSET($B:$B,,MATCH(H$4,$B$4:$F$4,0)-1),OFFSET('C. PoC Adj Factor Scoring'!$E$5:$J$282,,MATCH(H$4,'C. PoC Adj Factor Scoring'!$E$3:$AH$3,0)-1),MATCH(H$2&\" Score\",'C. PoC Adj Factor Scoring'!$E$4:$J$4,0),TRUE)","v":1},{"$f":"VLOOKUP(OFFSET($B:$B,,MATCH(I$4,$B$4:$F$4,0)-1),OFFSET('C. PoC Adj Factor Scoring'!$E$5:$J$282,,MATCH(I$4,'C. PoC Adj Factor Scoring'!$E$3:$AH$3,0)-1),MATCH(I$2&\" Score\",'C. PoC Adj Factor Scoring'!$E$4:$J$4,0),TRUE)","v":1},{"$f":"VLOOKUP(OFFSET($B:$B,,MATCH(J$4,$B$4:$F$4,0)-1),OFFSET('C. PoC Adj Factor Scoring'!$E$5:$J$282,,MATCH(J$4,'C. PoC Adj Factor Scoring'!$E$3:$AH$3,0)-1),MATCH(J$2&\" Score\",'C. PoC Adj Factor Scoring'!$E$4:$J$4,0),TRUE)","v":1},{"$f":"VLOOKUP(OFFSET($B:$B,,MATCH(K$4,$B$4:$F$4,0)-1),OFFSET('C. PoC Adj Factor Scoring'!$E$5:$J$282,,MATCH(K$4,'C. PoC Adj Factor Scoring'!$E$3:$AH$3,0)-1),MATCH(K$2&\" Score\",'C. PoC Adj Factor Scoring'!$E$4:$J$4,0),TRUE)","v":1},{"$f":"VLOOKUP(OFFSET($B:$B,,MATCH(L$4,$B$4:$F$4,0)-1),OFFSET('C. PoC Adj Factor Scoring'!$E$5:$J$282,,MATCH(L$4,'C. PoC Adj Factor Scoring'!$E$3:$AH$3,0)-1),MATCH(L$2&\" Score\",'C. PoC Adj Factor Scoring'!$E$4:$J$4,0),TRUE)","v":1},{"$f":"VLOOKUP(OFFSET($B:$B,,MATCH(M$4,$B$4:$F$4,0)-1),OFFSET('C. PoC Adj Factor Scoring'!$E$5:$J$282,,MATCH(M$4,'C. PoC Adj Factor Scoring'!$E$3:$AH$3,0)-1),MATCH(M$2&\" Score\",'C. PoC Adj Factor Scoring'!$E$4:$J$4,0),TRUE)","v":1},{"$f":"VLOOKUP(OFFSET($B:$B,,MATCH(N$4,$B$4:$F$4,0)-1),OFFSET('C. PoC Adj Factor Scoring'!$E$5:$J$282,,MATCH(N$4,'C. PoC Adj Factor Scoring'!$E$3:$AH$3,0)-1),MATCH(N$2&\" Score\",'C. PoC Adj Factor Scoring'!$E$4:$J$4,0),TRUE)","v":1},{"$f":"VLOOKUP(OFFSET($B:$B,,MATCH(O$4,$B$4:$F$4,0)-1),OFFSET('C. PoC Adj Factor Scoring'!$E$5:$J$282,,MATCH(O$4,'C. PoC Adj Factor Scoring'!$E$3:$AH$3,0)-1),MATCH(O$2&\" Score\",'C. PoC Adj Factor Scoring'!$E$4:$J$4,0),TRUE)","v":1},{"$f":"VLOOKUP(OFFSET($B:$B,,MATCH(P$4,$B$4:$F$4,0)-1),OFFSET('C. PoC Adj Factor Scoring'!$E$5:$J$282,,MATCH(P$4,'C. PoC Adj Factor Scoring'!$E$3:$AH$3,0)-1),MATCH(P$2&\" Score\",'C. PoC Adj Factor Scoring'!$E$4:$J$4,0),TRUE)","v":1},{"$f":"VLOOKUP(OFFSET($B:$B,,MATCH(Q$4,$B$4:$F$4,0)-1),OFFSET('C. PoC Adj Factor Scoring'!$E$5:$J$282,,MATCH(Q$4,'C. PoC Adj Factor Scoring'!$E$3:$AH$3,0)-1),MATCH(Q$2&\" Score\",'C. PoC Adj Factor Scoring'!$E$4:$J$4,0),TRUE)","v":1},{"$f":"VLOOKUP(OFFSET($B:$B,,MATCH(R$4,$B$4:$F$4,0)-1),OFFSET('C. PoC Adj Factor Scoring'!$E$5:$J$282,,MATCH(R$4,'C. PoC Adj Factor Scoring'!$E$3:$AH$3,0)-1),MATCH(R$2&\" Score\",'C. PoC Adj Factor Scoring'!$E$4:$J$4,0),TRUE)","v":1},{"$f":"VLOOKUP(OFFSET($B:$B,,MATCH(S$4,$B$4:$F$4,0)-1),OFFSET('C. PoC Adj Factor Scoring'!$E$5:$J$282,,MATCH(S$4,'C. PoC Adj Factor Scoring'!$E$3:$AH$3,0)-1),MATCH(S$2&\" Score\",'C. PoC Adj Factor Scoring'!$E$4:$J$4,0),TRUE)","v":1},{"$f":"VLOOKUP(OFFSET($B:$B,,MATCH(T$4,$B$4:$F$4,0)-1),OFFSET('C. PoC Adj Factor Scoring'!$E$5:$J$282,,MATCH(T$4,'C. PoC Adj Factor Scoring'!$E$3:$AH$3,0)-1),MATCH(T$2&\" Score\",'C. PoC Adj Factor Scoring'!$E$4:$J$4,0),TRUE)","v":1},{"$f":"VLOOKUP(OFFSET($B:$B,,MATCH(U$4,$B$4:$F$4,0)-1),OFFSET('C. PoC Adj Factor Scoring'!$E$5:$J$282,,MATCH(U$4,'C. PoC Adj Factor Scoring'!$E$3:$AH$3,0)-1),MATCH(U$2&\" Score\",'C. PoC Adj Factor Scoring'!$E$4:$J$4,0),TRUE)","v":1},{"$f":"VLOOKUP(OFFSET($B:$B,,MATCH(V$4,$B$4:$F$4,0)-1),OFFSET('C. PoC Adj Factor Scoring'!$E$5:$J$282,,MATCH(V$4,'C. PoC Adj Factor Scoring'!$E$3:$AH$3,0)-1),MATCH(V$2&\" Score\",'C. PoC Adj Factor Scoring'!$E$4:$J$4,0),TRUE)","v":1},{"$f":"VLOOKUP(OFFSET($B:$B,,MATCH(W$4,$B$4:$F$4,0)-1),OFFSET('C. PoC Adj Factor Scoring'!$E$5:$J$282,,MATCH(W$4,'C. PoC Adj Factor Scoring'!$E$3:$AH$3,0)-1),MATCH(W$2&\" Score\",'C. PoC Adj Factor Scoring'!$E$4:$J$4,0),TRUE)","v":1},{"$f":"VLOOKUP(OFFSET($B:$B,,MATCH(X$4,$B$4:$F$4,0)-1),OFFSET('C. PoC Adj Factor Scoring'!$E$5:$J$282,,MATCH(X$4,'C. PoC Adj Factor Scoring'!$E$3:$AH$3,0)-1),MATCH(X$2&\" Score\",'C. PoC Adj Factor Scoring'!$E$4:$J$4,0),TRUE)","v":1},{"$f":"VLOOKUP(OFFSET($B:$B,,MATCH(Y$4,$B$4:$F$4,0)-1),OFFSET('C. PoC Adj Factor Scoring'!$E$5:$J$282,,MATCH(Y$4,'C. PoC Adj Factor Scoring'!$E$3:$AH$3,0)-1),MATCH(Y$2&\" Score\",'C. PoC Adj Factor Scoring'!$E$4:$J$4,0),TRUE)","v":1},{"$f":"VLOOKUP(OFFSET($B:$B,,MATCH(Z$4,$B$4:$F$4,0)-1),OFFSET('C. PoC Adj Factor Scoring'!$E$5:$J$282,,MATCH(Z$4,'C. PoC Adj Factor Scoring'!$E$3:$AH$3,0)-1),MATCH(Z$2&\" Score\",'C. PoC Adj Factor Scoring'!$E$4:$J$4,0),TRUE)","v":1},{"$f":"VLOOKUP(OFFSET($B:$B,,MATCH(AA$4,$B$4:$F$4,0)-1),OFFSET('C. PoC Adj Factor Scoring'!$E$5:$J$282,,MATCH(AA$4,'C. PoC Adj Factor Scoring'!$E$3:$AH$3,0)-1),MATCH(AA$2&\" Score\",'C. PoC Adj Factor Scoring'!$E$4:$J$4,0),TRUE)","v":3},{"$f":"VLOOKUP(OFFSET($B:$B,,MATCH(AB$4,$B$4:$F$4,0)-1),OFFSET('C. PoC Adj Factor Scoring'!$E$5:$J$282,,MATCH(AB$4,'C. PoC Adj Factor Scoring'!$E$3:$AH$3,0)-1),MATCH(AB$2&\" Score\",'C. PoC Adj Factor Scoring'!$E$4:$J$4,0),TRUE)","v":1},{"$f":"VLOOKUP(OFFSET($B:$B,,MATCH(AC$4,$B$4:$F$4,0)-1),OFFSET('C. PoC Adj Factor Scoring'!$E$5:$J$282,,MATCH(AC$4,'C. PoC Adj Factor Scoring'!$E$3:$AH$3,0)-1),MATCH(AC$2&\" Score\",'C. PoC Adj Factor Scoring'!$E$4:$J$4,0),TRUE)","v":1},{"$f":"VLOOKUP(OFFSET($B:$B,,MATCH(AD$4,$B$4:$F$4,0)-1),OFFSET('C. PoC Adj Factor Scoring'!$E$5:$J$282,,MATCH(AD$4,'C. PoC Adj Factor Scoring'!$E$3:$AH$3,0)-1),MATCH(AD$2&\" Score\",'C. PoC Adj Factor Scoring'!$E$4:$J$4,0),TRUE)","v":1},{"$f":"VLOOKUP(OFFSET($B:$B,,MATCH(AE$4,$B$4:$F$4,0)-1),OFFSET('C. PoC Adj Factor Scoring'!$E$5:$J$282,,MATCH(AE$4,'C. PoC Adj Factor Scoring'!$E$3:$AH$3,0)-1),MATCH(AE$2&\" Score\",'C. PoC Adj Factor Scoring'!$E$4:$J$4,0),TRUE)","v":1}]
[{"$f":"'A. Population Info'!A18","v":1000207623},{"$f":"'A. Population Info'!L18","v":"OIL"},{"$f":"'A. Population Info'!M18","v":0},{"$f":"'A. Population Info'!N18","v":0},{"$f":"'A. Population Info'!O18","v":0},{"$f":"'A. Population Info'!P18","v":0},{"$f":"VLOOKUP(OFFSET($B:$B,,MATCH(G$4,$B$4:$F$4,0)-1),OFFSET('C. PoC Adj Factor Scoring'!$E$5:$J$282,,MATCH(G$4,'C. PoC Adj Factor Scoring'!$E$3:$AH$3,0)-1),MATCH(G$2&\" Score\",'C. PoC Adj Factor Scoring'!$E$4:$J$4,0),TRUE)","v":4},{"$f":"VLOOKUP(OFFSET($B:$B,,MATCH(H$4,$B$4:$F$4,0)-1),OFFSET('C. PoC Adj Factor Scoring'!$E$5:$J$282,,MATCH(H$4,'C. PoC Adj Factor Scoring'!$E$3:$AH$3,0)-1),MATCH(H$2&\" Score\",'C. PoC Adj Factor Scoring'!$E$4:$J$4,0),TRUE)","v":1},{"$f":"VLOOKUP(OFFSET($B:$B,,MATCH(I$4,$B$4:$F$4,0)-1),OFFSET('C. PoC Adj Factor Scoring'!$E$5:$J$282,,MATCH(I$4,'C. PoC Adj Factor Scoring'!$E$3:$AH$3,0)-1),MATCH(I$2&\" Score\",'C. PoC Adj Factor Scoring'!$E$4:$J$4,0),TRUE)","v":1},{"$f":"VLOOKUP(OFFSET($B:$B,,MATCH(J$4,$B$4:$F$4,0)-1),OFFSET('C. PoC Adj Factor Scoring'!$E$5:$J$282,,MATCH(J$4,'C. PoC Adj Factor Scoring'!$E$3:$AH$3,0)-1),MATCH(J$2&\" Score\",'C. PoC Adj Factor Scoring'!$E$4:$J$4,0),TRUE)","v":1},{"$f":"VLOOKUP(OFFSET($B:$B,,MATCH(K$4,$B$4:$F$4,0)-1),OFFSET('C. PoC Adj Factor Scoring'!$E$5:$J$282,,MATCH(K$4,'C. PoC Adj Factor Scoring'!$E$3:$AH$3,0)-1),MATCH(K$2&\" Score\",'C. PoC Adj Factor Scoring'!$E$4:$J$4,0),TRUE)","v":1},{"$f":"VLOOKUP(OFFSET($B:$B,,MATCH(L$4,$B$4:$F$4,0)-1),OFFSET('C. PoC Adj Factor Scoring'!$E$5:$J$282,,MATCH(L$4,'C. PoC Adj Factor Scoring'!$E$3:$AH$3,0)-1),MATCH(L$2&\" Score\",'C. PoC Adj Factor Scoring'!$E$4:$J$4,0),TRUE)","v":1},{"$f":"VLOOKUP(OFFSET($B:$B,,MATCH(M$4,$B$4:$F$4,0)-1),OFFSET('C. PoC Adj Factor Scoring'!$E$5:$J$282,,MATCH(M$4,'C. PoC Adj Factor Scoring'!$E$3:$AH$3,0)-1),MATCH(M$2&\" Score\",'C. PoC Adj Factor Scoring'!$E$4:$J$4,0),TRUE)","v":1},{"$f":"VLOOKUP(OFFSET($B:$B,,MATCH(N$4,$B$4:$F$4,0)-1),OFFSET('C. PoC Adj Factor Scoring'!$E$5:$J$282,,MATCH(N$4,'C. PoC Adj Factor Scoring'!$E$3:$AH$3,0)-1),MATCH(N$2&\" Score\",'C. PoC Adj Factor Scoring'!$E$4:$J$4,0),TRUE)","v":1},{"$f":"VLOOKUP(OFFSET($B:$B,,MATCH(O$4,$B$4:$F$4,0)-1),OFFSET('C. PoC Adj Factor Scoring'!$E$5:$J$282,,MATCH(O$4,'C. PoC Adj Factor Scoring'!$E$3:$AH$3,0)-1),MATCH(O$2&\" Score\",'C. PoC Adj Factor Scoring'!$E$4:$J$4,0),TRUE)","v":1},{"$f":"VLOOKUP(OFFSET($B:$B,,MATCH(P$4,$B$4:$F$4,0)-1),OFFSET('C. PoC Adj Factor Scoring'!$E$5:$J$282,,MATCH(P$4,'C. PoC Adj Factor Scoring'!$E$3:$AH$3,0)-1),MATCH(P$2&\" Score\",'C. PoC Adj Factor Scoring'!$E$4:$J$4,0),TRUE)","v":1},{"$f":"VLOOKUP(OFFSET($B:$B,,MATCH(Q$4,$B$4:$F$4,0)-1),OFFSET('C. PoC Adj Factor Scoring'!$E$5:$J$282,,MATCH(Q$4,'C. PoC Adj Factor Scoring'!$E$3:$AH$3,0)-1),MATCH(Q$2&\" Score\",'C. PoC Adj Factor Scoring'!$E$4:$J$4,0),TRUE)","v":1},{"$f":"VLOOKUP(OFFSET($B:$B,,MATCH(R$4,$B$4:$F$4,0)-1),OFFSET('C. PoC Adj Factor Scoring'!$E$5:$J$282,,MATCH(R$4,'C. PoC Adj Factor Scoring'!$E$3:$AH$3,0)-1),MATCH(R$2&\" Score\",'C. PoC Adj Factor Scoring'!$E$4:$J$4,0),TRUE)","v":1},{"$f":"VLOOKUP(OFFSET($B:$B,,MATCH(S$4,$B$4:$F$4,0)-1),OFFSET('C. PoC Adj Factor Scoring'!$E$5:$J$282,,MATCH(S$4,'C. PoC Adj Factor Scoring'!$E$3:$AH$3,0)-1),MATCH(S$2&\" Score\",'C. PoC Adj Factor Scoring'!$E$4:$J$4,0),TRUE)","v":1},{"$f":"VLOOKUP(OFFSET($B:$B,,MATCH(T$4,$B$4:$F$4,0)-1),OFFSET('C. PoC Adj Factor Scoring'!$E$5:$J$282,,MATCH(T$4,'C. PoC Adj Factor Scoring'!$E$3:$AH$3,0)-1),MATCH(T$2&\" Score\",'C. PoC Adj Factor Scoring'!$E$4:$J$4,0),TRUE)","v":1},{"$f":"VLOOKUP(OFFSET($B:$B,,MATCH(U$4,$B$4:$F$4,0)-1),OFFSET('C. PoC Adj Factor Scoring'!$E$5:$J$282,,MATCH(U$4,'C. PoC Adj Factor Scoring'!$E$3:$AH$3,0)-1),MATCH(U$2&\" Score\",'C. PoC Adj Factor Scoring'!$E$4:$J$4,0),TRUE)","v":1},{"$f":"VLOOKUP(OFFSET($B:$B,,MATCH(V$4,$B$4:$F$4,0)-1),OFFSET('C. PoC Adj Factor Scoring'!$E$5:$J$282,,MATCH(V$4,'C. PoC Adj Factor Scoring'!$E$3:$AH$3,0)-1),MATCH(V$2&\" Score\",'C. PoC Adj Factor Scoring'!$E$4:$J$4,0),TRUE)","v":1},{"$f":"VLOOKUP(OFFSET($B:$B,,MATCH(W$4,$B$4:$F$4,0)-1),OFFSET('C. PoC Adj Factor Scoring'!$E$5:$J$282,,MATCH(W$4,'C. PoC Adj Factor Scoring'!$E$3:$AH$3,0)-1),MATCH(W$2&\" Score\",'C. PoC Adj Factor Scoring'!$E$4:$J$4,0),TRUE)","v":1},{"$f":"VLOOKUP(OFFSET($B:$B,,MATCH(X$4,$B$4:$F$4,0)-1),OFFSET('C. PoC Adj Factor Scoring'!$E$5:$J$282,,MATCH(X$4,'C. PoC Adj Factor Scoring'!$E$3:$AH$3,0)-1),MATCH(X$2&\" Score\",'C. PoC Adj Factor Scoring'!$E$4:$J$4,0),TRUE)","v":1},{"$f":"VLOOKUP(OFFSET($B:$B,,MATCH(Y$4,$B$4:$F$4,0)-1),OFFSET('C. PoC Adj Factor Scoring'!$E$5:$J$282,,MATCH(Y$4,'C. PoC Adj Factor Scoring'!$E$3:$AH$3,0)-1),MATCH(Y$2&\" Score\",'C. PoC Adj Factor Scoring'!$E$4:$J$4,0),TRUE)","v":1},{"$f":"VLOOKUP(OFFSET($B:$B,,MATCH(Z$4,$B$4:$F$4,0)-1),OFFSET('C. PoC Adj Factor Scoring'!$E$5:$J$282,,MATCH(Z$4,'C. PoC Adj Factor Scoring'!$E$3:$AH$3,0)-1),MATCH(Z$2&\" Score\",'C. PoC Adj Factor Scoring'!$E$4:$J$4,0),TRUE)","v":1},{"$f":"VLOOKUP(OFFSET($B:$B,,MATCH(AA$4,$B$4:$F$4,0)-1),OFFSET('C. PoC Adj Factor Scoring'!$E$5:$J$282,,MATCH(AA$4,'C. PoC Adj Factor Scoring'!$E$3:$AH$3,0)-1),MATCH(AA$2&\" Score\",'C. PoC Adj Factor Scoring'!$E$4:$J$4,0),TRUE)","v":3},{"$f":"VLOOKUP(OFFSET($B:$B,,MATCH(AB$4,$B$4:$F$4,0)-1),OFFSET('C. PoC Adj Factor Scoring'!$E$5:$J$282,,MATCH(AB$4,'C. PoC Adj Factor Scoring'!$E$3:$AH$3,0)-1),MATCH(AB$2&\" Score\",'C. PoC Adj Factor Scoring'!$E$4:$J$4,0),TRUE)","v":1},{"$f":"VLOOKUP(OFFSET($B:$B,,MATCH(AC$4,$B$4:$F$4,0)-1),OFFSET('C. PoC Adj Factor Scoring'!$E$5:$J$282,,MATCH(AC$4,'C. PoC Adj Factor Scoring'!$E$3:$AH$3,0)-1),MATCH(AC$2&\" Score\",'C. PoC Adj Factor Scoring'!$E$4:$J$4,0),TRUE)","v":1},{"$f":"VLOOKUP(OFFSET($B:$B,,MATCH(AD$4,$B$4:$F$4,0)-1),OFFSET('C. PoC Adj Factor Scoring'!$E$5:$J$282,,MATCH(AD$4,'C. PoC Adj Factor Scoring'!$E$3:$AH$3,0)-1),MATCH(AD$2&\" Score\",'C. PoC Adj Factor Scoring'!$E$4:$J$4,0),TRUE)","v":1},{"$f":"VLOOKUP(OFFSET($B:$B,,MATCH(AE$4,$B$4:$F$4,0)-1),OFFSET('C. PoC Adj Factor Scoring'!$E$5:$J$282,,MATCH(AE$4,'C. PoC Adj Factor Scoring'!$E$3:$AH$3,0)-1),MATCH(AE$2&\" Score\",'C. PoC Adj Factor Scoring'!$E$4:$J$4,0),TRUE)","v":1}]
[{"$f":"'A. Population Info'!A19","v":1000207714},{"$f":"'A. Population Info'!L19","v":"OIL"},{"$f":"'A. Population Info'!M19","v":0},{"$f":"'A. Population Info'!N19","v":0},{"$f":"'A. Population Info'!O19","v":0},{"$f":"'A. Population Info'!P19","v":0},{"$f":"VLOOKUP(OFFSET($B:$B,,MATCH(G$4,$B$4:$F$4,0)-1),OFFSET('C. PoC Adj Factor Scoring'!$E$5:$J$282,,MATCH(G$4,'C. PoC Adj Factor Scoring'!$E$3:$AH$3,0)-1),MATCH(G$2&\" Score\",'C. PoC Adj Factor Scoring'!$E$4:$J$4,0),TRUE)","v":4},{"$f":"VLOOKUP(OFFSET($B:$B,,MATCH(H$4,$B$4:$F$4,0)-1),OFFSET('C. PoC Adj Factor Scoring'!$E$5:$J$282,,MATCH(H$4,'C. PoC Adj Factor Scoring'!$E$3:$AH$3,0)-1),MATCH(H$2&\" Score\",'C. PoC Adj Factor Scoring'!$E$4:$J$4,0),TRUE)","v":1},{"$f":"VLOOKUP(OFFSET($B:$B,,MATCH(I$4,$B$4:$F$4,0)-1),OFFSET('C. PoC Adj Factor Scoring'!$E$5:$J$282,,MATCH(I$4,'C. PoC Adj Factor Scoring'!$E$3:$AH$3,0)-1),MATCH(I$2&\" Score\",'C. PoC Adj Factor Scoring'!$E$4:$J$4,0),TRUE)","v":1},{"$f":"VLOOKUP(OFFSET($B:$B,,MATCH(J$4,$B$4:$F$4,0)-1),OFFSET('C. PoC Adj Factor Scoring'!$E$5:$J$282,,MATCH(J$4,'C. PoC Adj Factor Scoring'!$E$3:$AH$3,0)-1),MATCH(J$2&\" Score\",'C. PoC Adj Factor Scoring'!$E$4:$J$4,0),TRUE)","v":1},{"$f":"VLOOKUP(OFFSET($B:$B,,MATCH(K$4,$B$4:$F$4,0)-1),OFFSET('C. PoC Adj Factor Scoring'!$E$5:$J$282,,MATCH(K$4,'C. PoC Adj Factor Scoring'!$E$3:$AH$3,0)-1),MATCH(K$2&\" Score\",'C. PoC Adj Factor Scoring'!$E$4:$J$4,0),TRUE)","v":1},{"$f":"VLOOKUP(OFFSET($B:$B,,MATCH(L$4,$B$4:$F$4,0)-1),OFFSET('C. PoC Adj Factor Scoring'!$E$5:$J$282,,MATCH(L$4,'C. PoC Adj Factor Scoring'!$E$3:$AH$3,0)-1),MATCH(L$2&\" Score\",'C. PoC Adj Factor Scoring'!$E$4:$J$4,0),TRUE)","v":1},{"$f":"VLOOKUP(OFFSET($B:$B,,MATCH(M$4,$B$4:$F$4,0)-1),OFFSET('C. PoC Adj Factor Scoring'!$E$5:$J$282,,MATCH(M$4,'C. PoC Adj Factor Scoring'!$E$3:$AH$3,0)-1),MATCH(M$2&\" Score\",'C. PoC Adj Factor Scoring'!$E$4:$J$4,0),TRUE)","v":1},{"$f":"VLOOKUP(OFFSET($B:$B,,MATCH(N$4,$B$4:$F$4,0)-1),OFFSET('C. PoC Adj Factor Scoring'!$E$5:$J$282,,MATCH(N$4,'C. PoC Adj Factor Scoring'!$E$3:$AH$3,0)-1),MATCH(N$2&\" Score\",'C. PoC Adj Factor Scoring'!$E$4:$J$4,0),TRUE)","v":1},{"$f":"VLOOKUP(OFFSET($B:$B,,MATCH(O$4,$B$4:$F$4,0)-1),OFFSET('C. PoC Adj Factor Scoring'!$E$5:$J$282,,MATCH(O$4,'C. PoC Adj Factor Scoring'!$E$3:$AH$3,0)-1),MATCH(O$2&\" Score\",'C. PoC Adj Factor Scoring'!$E$4:$J$4,0),TRUE)","v":1},{"$f":"VLOOKUP(OFFSET($B:$B,,MATCH(P$4,$B$4:$F$4,0)-1),OFFSET('C. PoC Adj Factor Scoring'!$E$5:$J$282,,MATCH(P$4,'C. PoC Adj Factor Scoring'!$E$3:$AH$3,0)-1),MATCH(P$2&\" Score\",'C. PoC Adj Factor Scoring'!$E$4:$J$4,0),TRUE)","v":1},{"$f":"VLOOKUP(OFFSET($B:$B,,MATCH(Q$4,$B$4:$F$4,0)-1),OFFSET('C. PoC Adj Factor Scoring'!$E$5:$J$282,,MATCH(Q$4,'C. PoC Adj Factor Scoring'!$E$3:$AH$3,0)-1),MATCH(Q$2&\" Score\",'C. PoC Adj Factor Scoring'!$E$4:$J$4,0),TRUE)","v":1},{"$f":"VLOOKUP(OFFSET($B:$B,,MATCH(R$4,$B$4:$F$4,0)-1),OFFSET('C. PoC Adj Factor Scoring'!$E$5:$J$282,,MATCH(R$4,'C. PoC Adj Factor Scoring'!$E$3:$AH$3,0)-1),MATCH(R$2&\" Score\",'C. PoC Adj Factor Scoring'!$E$4:$J$4,0),TRUE)","v":1},{"$f":"VLOOKUP(OFFSET($B:$B,,MATCH(S$4,$B$4:$F$4,0)-1),OFFSET('C. PoC Adj Factor Scoring'!$E$5:$J$282,,MATCH(S$4,'C. PoC Adj Factor Scoring'!$E$3:$AH$3,0)-1),MATCH(S$2&\" Score\",'C. PoC Adj Factor Scoring'!$E$4:$J$4,0),TRUE)","v":1},{"$f":"VLOOKUP(OFFSET($B:$B,,MATCH(T$4,$B$4:$F$4,0)-1),OFFSET('C. PoC Adj Factor Scoring'!$E$5:$J$282,,MATCH(T$4,'C. PoC Adj Factor Scoring'!$E$3:$AH$3,0)-1),MATCH(T$2&\" Score\",'C. PoC Adj Factor Scoring'!$E$4:$J$4,0),TRUE)","v":1},{"$f":"VLOOKUP(OFFSET($B:$B,,MATCH(U$4,$B$4:$F$4,0)-1),OFFSET('C. PoC Adj Factor Scoring'!$E$5:$J$282,,MATCH(U$4,'C. PoC Adj Factor Scoring'!$E$3:$AH$3,0)-1),MATCH(U$2&\" Score\",'C. PoC Adj Factor Scoring'!$E$4:$J$4,0),TRUE)","v":1},{"$f":"VLOOKUP(OFFSET($B:$B,,MATCH(V$4,$B$4:$F$4,0)-1),OFFSET('C. PoC Adj Factor Scoring'!$E$5:$J$282,,MATCH(V$4,'C. PoC Adj Factor Scoring'!$E$3:$AH$3,0)-1),MATCH(V$2&\" Score\",'C. PoC Adj Factor Scoring'!$E$4:$J$4,0),TRUE)","v":1},{"$f":"VLOOKUP(OFFSET($B:$B,,MATCH(W$4,$B$4:$F$4,0)-1),OFFSET('C. PoC Adj Factor Scoring'!$E$5:$J$282,,MATCH(W$4,'C. PoC Adj Factor Scoring'!$E$3:$AH$3,0)-1),MATCH(W$2&\" Score\",'C. PoC Adj Factor Scoring'!$E$4:$J$4,0),TRUE)","v":1},{"$f":"VLOOKUP(OFFSET($B:$B,,MATCH(X$4,$B$4:$F$4,0)-1),OFFSET('C. PoC Adj Factor Scoring'!$E$5:$J$282,,MATCH(X$4,'C. PoC Adj Factor Scoring'!$E$3:$AH$3,0)-1),MATCH(X$2&\" Score\",'C. PoC Adj Factor Scoring'!$E$4:$J$4,0),TRUE)","v":1},{"$f":"VLOOKUP(OFFSET($B:$B,,MATCH(Y$4,$B$4:$F$4,0)-1),OFFSET('C. PoC Adj Factor Scoring'!$E$5:$J$282,,MATCH(Y$4,'C. PoC Adj Factor Scoring'!$E$3:$AH$3,0)-1),MATCH(Y$2&\" Score\",'C. PoC Adj Factor Scoring'!$E$4:$J$4,0),TRUE)","v":1},{"$f":"VLOOKUP(OFFSET($B:$B,,MATCH(Z$4,$B$4:$F$4,0)-1),OFFSET('C. PoC Adj Factor Scoring'!$E$5:$J$282,,MATCH(Z$4,'C. PoC Adj Factor Scoring'!$E$3:$AH$3,0)-1),MATCH(Z$2&\" Score\",'C. PoC Adj Factor Scoring'!$E$4:$J$4,0),TRUE)","v":1},{"$f":"VLOOKUP(OFFSET($B:$B,,MATCH(AA$4,$B$4:$F$4,0)-1),OFFSET('C. PoC Adj Factor Scoring'!$E$5:$J$282,,MATCH(AA$4,'C. PoC Adj Factor Scoring'!$E$3:$AH$3,0)-1),MATCH(AA$2&\" Score\",'C. PoC Adj Factor Scoring'!$E$4:$J$4,0),TRUE)","v":3},{"$f":"VLOOKUP(OFFSET($B:$B,,MATCH(AB$4,$B$4:$F$4,0)-1),OFFSET('C. PoC Adj Factor Scoring'!$E$5:$J$282,,MATCH(AB$4,'C. PoC Adj Factor Scoring'!$E$3:$AH$3,0)-1),MATCH(AB$2&\" Score\",'C. PoC Adj Factor Scoring'!$E$4:$J$4,0),TRUE)","v":1},{"$f":"VLOOKUP(OFFSET($B:$B,,MATCH(AC$4,$B$4:$F$4,0)-1),OFFSET('C. PoC Adj Factor Scoring'!$E$5:$J$282,,MATCH(AC$4,'C. PoC Adj Factor Scoring'!$E$3:$AH$3,0)-1),MATCH(AC$2&\" Score\",'C. PoC Adj Factor Scoring'!$E$4:$J$4,0),TRUE)","v":1},{"$f":"VLOOKUP(OFFSET($B:$B,,MATCH(AD$4,$B$4:$F$4,0)-1),OFFSET('C. PoC Adj Factor Scoring'!$E$5:$J$282,,MATCH(AD$4,'C. PoC Adj Factor Scoring'!$E$3:$AH$3,0)-1),MATCH(AD$2&\" Score\",'C. PoC Adj Factor Scoring'!$E$4:$J$4,0),TRUE)","v":1},{"$f":"VLOOKUP(OFFSET($B:$B,,MATCH(AE$4,$B$4:$F$4,0)-1),OFFSET('C. PoC Adj Factor Scoring'!$E$5:$J$282,,MATCH(AE$4,'C. PoC Adj Factor Scoring'!$E$3:$AH$3,0)-1),MATCH(AE$2&\" Score\",'C. PoC Adj Factor Scoring'!$E$4:$J$4,0),TRUE)","v":1}]
[{"$f":"'A. Population Info'!A20","v":1000207726},{"$f":"'A. Population Info'!L20","v":"OIL"},{"$f":"'A. Population Info'!M20","v":0},{"$f":"'A. Population Info'!N20","v":0},{"$f":"'A. Population Info'!O20","v":0},{"$f":"'A. Population Info'!P20","v":0},{"$f":"VLOOKUP(OFFSET($B:$B,,MATCH(G$4,$B$4:$F$4,0)-1),OFFSET('C. PoC Adj Factor Scoring'!$E$5:$J$282,,MATCH(G$4,'C. PoC Adj Factor Scoring'!$E$3:$AH$3,0)-1),MATCH(G$2&\" Score\",'C. PoC Adj Factor Scoring'!$E$4:$J$4,0),TRUE)","v":4},{"$f":"VLOOKUP(OFFSET($B:$B,,MATCH(H$4,$B$4:$F$4,0)-1),OFFSET('C. PoC Adj Factor Scoring'!$E$5:$J$282,,MATCH(H$4,'C. PoC Adj Factor Scoring'!$E$3:$AH$3,0)-1),MATCH(H$2&\" Score\",'C. PoC Adj Factor Scoring'!$E$4:$J$4,0),TRUE)","v":1},{"$f":"VLOOKUP(OFFSET($B:$B,,MATCH(I$4,$B$4:$F$4,0)-1),OFFSET('C. PoC Adj Factor Scoring'!$E$5:$J$282,,MATCH(I$4,'C. PoC Adj Factor Scoring'!$E$3:$AH$3,0)-1),MATCH(I$2&\" Score\",'C. PoC Adj Factor Scoring'!$E$4:$J$4,0),TRUE)","v":1},{"$f":"VLOOKUP(OFFSET($B:$B,,MATCH(J$4,$B$4:$F$4,0)-1),OFFSET('C. PoC Adj Factor Scoring'!$E$5:$J$282,,MATCH(J$4,'C. PoC Adj Factor Scoring'!$E$3:$AH$3,0)-1),MATCH(J$2&\" Score\",'C. PoC Adj Factor Scoring'!$E$4:$J$4,0),TRUE)","v":1},{"$f":"VLOOKUP(OFFSET($B:$B,,MATCH(K$4,$B$4:$F$4,0)-1),OFFSET('C. PoC Adj Factor Scoring'!$E$5:$J$282,,MATCH(K$4,'C. PoC Adj Factor Scoring'!$E$3:$AH$3,0)-1),MATCH(K$2&\" Score\",'C. PoC Adj Factor Scoring'!$E$4:$J$4,0),TRUE)","v":1},{"$f":"VLOOKUP(OFFSET($B:$B,,MATCH(L$4,$B$4:$F$4,0)-1),OFFSET('C. PoC Adj Factor Scoring'!$E$5:$J$282,,MATCH(L$4,'C. PoC Adj Factor Scoring'!$E$3:$AH$3,0)-1),MATCH(L$2&\" Score\",'C. PoC Adj Factor Scoring'!$E$4:$J$4,0),TRUE)","v":1},{"$f":"VLOOKUP(OFFSET($B:$B,,MATCH(M$4,$B$4:$F$4,0)-1),OFFSET('C. PoC Adj Factor Scoring'!$E$5:$J$282,,MATCH(M$4,'C. PoC Adj Factor Scoring'!$E$3:$AH$3,0)-1),MATCH(M$2&\" Score\",'C. PoC Adj Factor Scoring'!$E$4:$J$4,0),TRUE)","v":1},{"$f":"VLOOKUP(OFFSET($B:$B,,MATCH(N$4,$B$4:$F$4,0)-1),OFFSET('C. PoC Adj Factor Scoring'!$E$5:$J$282,,MATCH(N$4,'C. PoC Adj Factor Scoring'!$E$3:$AH$3,0)-1),MATCH(N$2&\" Score\",'C. PoC Adj Factor Scoring'!$E$4:$J$4,0),TRUE)","v":1},{"$f":"VLOOKUP(OFFSET($B:$B,,MATCH(O$4,$B$4:$F$4,0)-1),OFFSET('C. PoC Adj Factor Scoring'!$E$5:$J$282,,MATCH(O$4,'C. PoC Adj Factor Scoring'!$E$3:$AH$3,0)-1),MATCH(O$2&\" Score\",'C. PoC Adj Factor Scoring'!$E$4:$J$4,0),TRUE)","v":1},{"$f":"VLOOKUP(OFFSET($B:$B,,MATCH(P$4,$B$4:$F$4,0)-1),OFFSET('C. PoC Adj Factor Scoring'!$E$5:$J$282,,MATCH(P$4,'C. PoC Adj Factor Scoring'!$E$3:$AH$3,0)-1),MATCH(P$2&\" Score\",'C. PoC Adj Factor Scoring'!$E$4:$J$4,0),TRUE)","v":1},{"$f":"VLOOKUP(OFFSET($B:$B,,MATCH(Q$4,$B$4:$F$4,0)-1),OFFSET('C. PoC Adj Factor Scoring'!$E$5:$J$282,,MATCH(Q$4,'C. PoC Adj Factor Scoring'!$E$3:$AH$3,0)-1),MATCH(Q$2&\" Score\",'C. PoC Adj Factor Scoring'!$E$4:$J$4,0),TRUE)","v":1},{"$f":"VLOOKUP(OFFSET($B:$B,,MATCH(R$4,$B$4:$F$4,0)-1),OFFSET('C. PoC Adj Factor Scoring'!$E$5:$J$282,,MATCH(R$4,'C. PoC Adj Factor Scoring'!$E$3:$AH$3,0)-1),MATCH(R$2&\" Score\",'C. PoC Adj Factor Scoring'!$E$4:$J$4,0),TRUE)","v":1},{"$f":"VLOOKUP(OFFSET($B:$B,,MATCH(S$4,$B$4:$F$4,0)-1),OFFSET('C. PoC Adj Factor Scoring'!$E$5:$J$282,,MATCH(S$4,'C. PoC Adj Factor Scoring'!$E$3:$AH$3,0)-1),MATCH(S$2&\" Score\",'C. PoC Adj Factor Scoring'!$E$4:$J$4,0),TRUE)","v":1},{"$f":"VLOOKUP(OFFSET($B:$B,,MATCH(T$4,$B$4:$F$4,0)-1),OFFSET('C. PoC Adj Factor Scoring'!$E$5:$J$282,,MATCH(T$4,'C. PoC Adj Factor Scoring'!$E$3:$AH$3,0)-1),MATCH(T$2&\" Score\",'C. PoC Adj Factor Scoring'!$E$4:$J$4,0),TRUE)","v":1},{"$f":"VLOOKUP(OFFSET($B:$B,,MATCH(U$4,$B$4:$F$4,0)-1),OFFSET('C. PoC Adj Factor Scoring'!$E$5:$J$282,,MATCH(U$4,'C. PoC Adj Factor Scoring'!$E$3:$AH$3,0)-1),MATCH(U$2&\" Score\",'C. PoC Adj Factor Scoring'!$E$4:$J$4,0),TRUE)","v":1},{"$f":"VLOOKUP(OFFSET($B:$B,,MATCH(V$4,$B$4:$F$4,0)-1),OFFSET('C. PoC Adj Factor Scoring'!$E$5:$J$282,,MATCH(V$4,'C. PoC Adj Factor Scoring'!$E$3:$AH$3,0)-1),MATCH(V$2&\" Score\",'C. PoC Adj Factor Scoring'!$E$4:$J$4,0),TRUE)","v":1},{"$f":"VLOOKUP(OFFSET($B:$B,,MATCH(W$4,$B$4:$F$4,0)-1),OFFSET('C. PoC Adj Factor Scoring'!$E$5:$J$282,,MATCH(W$4,'C. PoC Adj Factor Scoring'!$E$3:$AH$3,0)-1),MATCH(W$2&\" Score\",'C. PoC Adj Factor Scoring'!$E$4:$J$4,0),TRUE)","v":1},{"$f":"VLOOKUP(OFFSET($B:$B,,MATCH(X$4,$B$4:$F$4,0)-1),OFFSET('C. PoC Adj Factor Scoring'!$E$5:$J$282,,MATCH(X$4,'C. PoC Adj Factor Scoring'!$E$3:$AH$3,0)-1),MATCH(X$2&\" Score\",'C. PoC Adj Factor Scoring'!$E$4:$J$4,0),TRUE)","v":1},{"$f":"VLOOKUP(OFFSET($B:$B,,MATCH(Y$4,$B$4:$F$4,0)-1),OFFSET('C. PoC Adj Factor Scoring'!$E$5:$J$282,,MATCH(Y$4,'C. PoC Adj Factor Scoring'!$E$3:$AH$3,0)-1),MATCH(Y$2&\" Score\",'C. PoC Adj Factor Scoring'!$E$4:$J$4,0),TRUE)","v":1},{"$f":"VLOOKUP(OFFSET($B:$B,,MATCH(Z$4,$B$4:$F$4,0)-1),OFFSET('C. PoC Adj Factor Scoring'!$E$5:$J$282,,MATCH(Z$4,'C. PoC Adj Factor Scoring'!$E$3:$AH$3,0)-1),MATCH(Z$2&\" Score\",'C. PoC Adj Factor Scoring'!$E$4:$J$4,0),TRUE)","v":1},{"$f":"VLOOKUP(OFFSET($B:$B,,MATCH(AA$4,$B$4:$F$4,0)-1),OFFSET('C. PoC Adj Factor Scoring'!$E$5:$J$282,,MATCH(AA$4,'C. PoC Adj Factor Scoring'!$E$3:$AH$3,0)-1),MATCH(AA$2&\" Score\",'C. PoC Adj Factor Scoring'!$E$4:$J$4,0),TRUE)","v":3},{"$f":"VLOOKUP(OFFSET($B:$B,,MATCH(AB$4,$B$4:$F$4,0)-1),OFFSET('C. PoC Adj Factor Scoring'!$E$5:$J$282,,MATCH(AB$4,'C. PoC Adj Factor Scoring'!$E$3:$AH$3,0)-1),MATCH(AB$2&\" Score\",'C. PoC Adj Factor Scoring'!$E$4:$J$4,0),TRUE)","v":1},{"$f":"VLOOKUP(OFFSET($B:$B,,MATCH(AC$4,$B$4:$F$4,0)-1),OFFSET('C. PoC Adj Factor Scoring'!$E$5:$J$282,,MATCH(AC$4,'C. PoC Adj Factor Scoring'!$E$3:$AH$3,0)-1),MATCH(AC$2&\" Score\",'C. PoC Adj Factor Scoring'!$E$4:$J$4,0),TRUE)","v":1},{"$f":"VLOOKUP(OFFSET($B:$B,,MATCH(AD$4,$B$4:$F$4,0)-1),OFFSET('C. PoC Adj Factor Scoring'!$E$5:$J$282,,MATCH(AD$4,'C. PoC Adj Factor Scoring'!$E$3:$AH$3,0)-1),MATCH(AD$2&\" Score\",'C. PoC Adj Factor Scoring'!$E$4:$J$4,0),TRUE)","v":1},{"$f":"VLOOKUP(OFFSET($B:$B,,MATCH(AE$4,$B$4:$F$4,0)-1),OFFSET('C. PoC Adj Factor Scoring'!$E$5:$J$282,,MATCH(AE$4,'C. PoC Adj Factor Scoring'!$E$3:$AH$3,0)-1),MATCH(AE$2&\" Score\",'C. PoC Adj Factor Scoring'!$E$4:$J$4,0),TRUE)","v":1}]
[{"$f":"'A. Population Info'!A21","v":1000224415},{"$f":"'A. Population Info'!L21","v":"OIL"},{"$f":"'A. Population Info'!M21","v":0},{"$f":"'A. Population Info'!N21","v":0},{"$f":"'A. Population Info'!O21","v":0},{"$f":"'A. Population Info'!P21","v":0},{"$f":"VLOOKUP(OFFSET($B:$B,,MATCH(G$4,$B$4:$F$4,0)-1),OFFSET('C. PoC Adj Factor Scoring'!$E$5:$J$282,,MATCH(G$4,'C. PoC Adj Factor Scoring'!$E$3:$AH$3,0)-1),MATCH(G$2&\" Score\",'C. PoC Adj Factor Scoring'!$E$4:$J$4,0),TRUE)","v":4},{"$f":"VLOOKUP(OFFSET($B:$B,,MATCH(H$4,$B$4:$F$4,0)-1),OFFSET('C. PoC Adj Factor Scoring'!$E$5:$J$282,,MATCH(H$4,'C. PoC Adj Factor Scoring'!$E$3:$AH$3,0)-1),MATCH(H$2&\" Score\",'C. PoC Adj Factor Scoring'!$E$4:$J$4,0),TRUE)","v":1},{"$f":"VLOOKUP(OFFSET($B:$B,,MATCH(I$4,$B$4:$F$4,0)-1),OFFSET('C. PoC Adj Factor Scoring'!$E$5:$J$282,,MATCH(I$4,'C. PoC Adj Factor Scoring'!$E$3:$AH$3,0)-1),MATCH(I$2&\" Score\",'C. PoC Adj Factor Scoring'!$E$4:$J$4,0),TRUE)","v":1},{"$f":"VLOOKUP(OFFSET($B:$B,,MATCH(J$4,$B$4:$F$4,0)-1),OFFSET('C. PoC Adj Factor Scoring'!$E$5:$J$282,,MATCH(J$4,'C. PoC Adj Factor Scoring'!$E$3:$AH$3,0)-1),MATCH(J$2&\" Score\",'C. PoC Adj Factor Scoring'!$E$4:$J$4,0),TRUE)","v":1},{"$f":"VLOOKUP(OFFSET($B:$B,,MATCH(K$4,$B$4:$F$4,0)-1),OFFSET('C. PoC Adj Factor Scoring'!$E$5:$J$282,,MATCH(K$4,'C. PoC Adj Factor Scoring'!$E$3:$AH$3,0)-1),MATCH(K$2&\" Score\",'C. PoC Adj Factor Scoring'!$E$4:$J$4,0),TRUE)","v":1},{"$f":"VLOOKUP(OFFSET($B:$B,,MATCH(L$4,$B$4:$F$4,0)-1),OFFSET('C. PoC Adj Factor Scoring'!$E$5:$J$282,,MATCH(L$4,'C. PoC Adj Factor Scoring'!$E$3:$AH$3,0)-1),MATCH(L$2&\" Score\",'C. PoC Adj Factor Scoring'!$E$4:$J$4,0),TRUE)","v":1},{"$f":"VLOOKUP(OFFSET($B:$B,,MATCH(M$4,$B$4:$F$4,0)-1),OFFSET('C. PoC Adj Factor Scoring'!$E$5:$J$282,,MATCH(M$4,'C. PoC Adj Factor Scoring'!$E$3:$AH$3,0)-1),MATCH(M$2&\" Score\",'C. PoC Adj Factor Scoring'!$E$4:$J$4,0),TRUE)","v":1},{"$f":"VLOOKUP(OFFSET($B:$B,,MATCH(N$4,$B$4:$F$4,0)-1),OFFSET('C. PoC Adj Factor Scoring'!$E$5:$J$282,,MATCH(N$4,'C. PoC Adj Factor Scoring'!$E$3:$AH$3,0)-1),MATCH(N$2&\" Score\",'C. PoC Adj Factor Scoring'!$E$4:$J$4,0),TRUE)","v":1},{"$f":"VLOOKUP(OFFSET($B:$B,,MATCH(O$4,$B$4:$F$4,0)-1),OFFSET('C. PoC Adj Factor Scoring'!$E$5:$J$282,,MATCH(O$4,'C. PoC Adj Factor Scoring'!$E$3:$AH$3,0)-1),MATCH(O$2&\" Score\",'C. PoC Adj Factor Scoring'!$E$4:$J$4,0),TRUE)","v":1},{"$f":"VLOOKUP(OFFSET($B:$B,,MATCH(P$4,$B$4:$F$4,0)-1),OFFSET('C. PoC Adj Factor Scoring'!$E$5:$J$282,,MATCH(P$4,'C. PoC Adj Factor Scoring'!$E$3:$AH$3,0)-1),MATCH(P$2&\" Score\",'C. PoC Adj Factor Scoring'!$E$4:$J$4,0),TRUE)","v":1},{"$f":"VLOOKUP(OFFSET($B:$B,,MATCH(Q$4,$B$4:$F$4,0)-1),OFFSET('C. PoC Adj Factor Scoring'!$E$5:$J$282,,MATCH(Q$4,'C. PoC Adj Factor Scoring'!$E$3:$AH$3,0)-1),MATCH(Q$2&\" Score\",'C. PoC Adj Factor Scoring'!$E$4:$J$4,0),TRUE)","v":1},{"$f":"VLOOKUP(OFFSET($B:$B,,MATCH(R$4,$B$4:$F$4,0)-1),OFFSET('C. PoC Adj Factor Scoring'!$E$5:$J$282,,MATCH(R$4,'C. PoC Adj Factor Scoring'!$E$3:$AH$3,0)-1),MATCH(R$2&\" Score\",'C. PoC Adj Factor Scoring'!$E$4:$J$4,0),TRUE)","v":1},{"$f":"VLOOKUP(OFFSET($B:$B,,MATCH(S$4,$B$4:$F$4,0)-1),OFFSET('C. PoC Adj Factor Scoring'!$E$5:$J$282,,MATCH(S$4,'C. PoC Adj Factor Scoring'!$E$3:$AH$3,0)-1),MATCH(S$2&\" Score\",'C. PoC Adj Factor Scoring'!$E$4:$J$4,0),TRUE)","v":1},{"$f":"VLOOKUP(OFFSET($B:$B,,MATCH(T$4,$B$4:$F$4,0)-1),OFFSET('C. PoC Adj Factor Scoring'!$E$5:$J$282,,MATCH(T$4,'C. PoC Adj Factor Scoring'!$E$3:$AH$3,0)-1),MATCH(T$2&\" Score\",'C. PoC Adj Factor Scoring'!$E$4:$J$4,0),TRUE)","v":1},{"$f":"VLOOKUP(OFFSET($B:$B,,MATCH(U$4,$B$4:$F$4,0)-1),OFFSET('C. PoC Adj Factor Scoring'!$E$5:$J$282,,MATCH(U$4,'C. PoC Adj Factor Scoring'!$E$3:$AH$3,0)-1),MATCH(U$2&\" Score\",'C. PoC Adj Factor Scoring'!$E$4:$J$4,0),TRUE)","v":1},{"$f":"VLOOKUP(OFFSET($B:$B,,MATCH(V$4,$B$4:$F$4,0)-1),OFFSET('C. PoC Adj Factor Scoring'!$E$5:$J$282,,MATCH(V$4,'C. PoC Adj Factor Scoring'!$E$3:$AH$3,0)-1),MATCH(V$2&\" Score\",'C. PoC Adj Factor Scoring'!$E$4:$J$4,0),TRUE)","v":1},{"$f":"VLOOKUP(OFFSET($B:$B,,MATCH(W$4,$B$4:$F$4,0)-1),OFFSET('C. PoC Adj Factor Scoring'!$E$5:$J$282,,MATCH(W$4,'C. PoC Adj Factor Scoring'!$E$3:$AH$3,0)-1),MATCH(W$2&\" Score\",'C. PoC Adj Factor Scoring'!$E$4:$J$4,0),TRUE)","v":1},{"$f":"VLOOKUP(OFFSET($B:$B,,MATCH(X$4,$B$4:$F$4,0)-1),OFFSET('C. PoC Adj Factor Scoring'!$E$5:$J$282,,MATCH(X$4,'C. PoC Adj Factor Scoring'!$E$3:$AH$3,0)-1),MATCH(X$2&\" Score\",'C. PoC Adj Factor Scoring'!$E$4:$J$4,0),TRUE)","v":1},{"$f":"VLOOKUP(OFFSET($B:$B,,MATCH(Y$4,$B$4:$F$4,0)-1),OFFSET('C. PoC Adj Factor Scoring'!$E$5:$J$282,,MATCH(Y$4,'C. PoC Adj Factor Scoring'!$E$3:$AH$3,0)-1),MATCH(Y$2&\" Score\",'C. PoC Adj Factor Scoring'!$E$4:$J$4,0),TRUE)","v":1},{"$f":"VLOOKUP(OFFSET($B:$B,,MATCH(Z$4,$B$4:$F$4,0)-1),OFFSET('C. PoC Adj Factor Scoring'!$E$5:$J$282,,MATCH(Z$4,'C. PoC Adj Factor Scoring'!$E$3:$AH$3,0)-1),MATCH(Z$2&\" Score\",'C. PoC Adj Factor Scoring'!$E$4:$J$4,0),TRUE)","v":1},{"$f":"VLOOKUP(OFFSET($B:$B,,MATCH(AA$4,$B$4:$F$4,0)-1),OFFSET('C. PoC Adj Factor Scoring'!$E$5:$J$282,,MATCH(AA$4,'C. PoC Adj Factor Scoring'!$E$3:$AH$3,0)-1),MATCH(AA$2&\" Score\",'C. PoC Adj Factor Scoring'!$E$4:$J$4,0),TRUE)","v":3},{"$f":"VLOOKUP(OFFSET($B:$B,,MATCH(AB$4,$B$4:$F$4,0)-1),OFFSET('C. PoC Adj Factor Scoring'!$E$5:$J$282,,MATCH(AB$4,'C. PoC Adj Factor Scoring'!$E$3:$AH$3,0)-1),MATCH(AB$2&\" Score\",'C. PoC Adj Factor Scoring'!$E$4:$J$4,0),TRUE)","v":1},{"$f":"VLOOKUP(OFFSET($B:$B,,MATCH(AC$4,$B$4:$F$4,0)-1),OFFSET('C. PoC Adj Factor Scoring'!$E$5:$J$282,,MATCH(AC$4,'C. PoC Adj Factor Scoring'!$E$3:$AH$3,0)-1),MATCH(AC$2&\" Score\",'C. PoC Adj Factor Scoring'!$E$4:$J$4,0),TRUE)","v":1},{"$f":"VLOOKUP(OFFSET($B:$B,,MATCH(AD$4,$B$4:$F$4,0)-1),OFFSET('C. PoC Adj Factor Scoring'!$E$5:$J$282,,MATCH(AD$4,'C. PoC Adj Factor Scoring'!$E$3:$AH$3,0)-1),MATCH(AD$2&\" Score\",'C. PoC Adj Factor Scoring'!$E$4:$J$4,0),TRUE)","v":1},{"$f":"VLOOKUP(OFFSET($B:$B,,MATCH(AE$4,$B$4:$F$4,0)-1),OFFSET('C. PoC Adj Factor Scoring'!$E$5:$J$282,,MATCH(AE$4,'C. PoC Adj Factor Scoring'!$E$3:$AH$3,0)-1),MATCH(AE$2&\" Score\",'C. PoC Adj Factor Scoring'!$E$4:$J$4,0),TRUE)","v":1}]
[{"$f":"'A. Population Info'!A22","v":1000224424},{"$f":"'A. Population Info'!L22","v":"OIL"},{"$f":"'A. Population Info'!M22","v":0},{"$f":"'A. Population Info'!N22","v":0},{"$f":"'A. Population Info'!O22","v":0},{"$f":"'A. Population Info'!P22","v":0},{"$f":"VLOOKUP(OFFSET($B:$B,,MATCH(G$4,$B$4:$F$4,0)-1),OFFSET('C. PoC Adj Factor Scoring'!$E$5:$J$282,,MATCH(G$4,'C. PoC Adj Factor Scoring'!$E$3:$AH$3,0)-1),MATCH(G$2&\" Score\",'C. PoC Adj Factor Scoring'!$E$4:$J$4,0),TRUE)","v":4},{"$f":"VLOOKUP(OFFSET($B:$B,,MATCH(H$4,$B$4:$F$4,0)-1),OFFSET('C. PoC Adj Factor Scoring'!$E$5:$J$282,,MATCH(H$4,'C. PoC Adj Factor Scoring'!$E$3:$AH$3,0)-1),MATCH(H$2&\" Score\",'C. PoC Adj Factor Scoring'!$E$4:$J$4,0),TRUE)","v":1},{"$f":"VLOOKUP(OFFSET($B:$B,,MATCH(I$4,$B$4:$F$4,0)-1),OFFSET('C. PoC Adj Factor Scoring'!$E$5:$J$282,,MATCH(I$4,'C. PoC Adj Factor Scoring'!$E$3:$AH$3,0)-1),MATCH(I$2&\" Score\",'C. PoC Adj Factor Scoring'!$E$4:$J$4,0),TRUE)","v":1},{"$f":"VLOOKUP(OFFSET($B:$B,,MATCH(J$4,$B$4:$F$4,0)-1),OFFSET('C. PoC Adj Factor Scoring'!$E$5:$J$282,,MATCH(J$4,'C. PoC Adj Factor Scoring'!$E$3:$AH$3,0)-1),MATCH(J$2&\" Score\",'C. PoC Adj Factor Scoring'!$E$4:$J$4,0),TRUE)","v":1},{"$f":"VLOOKUP(OFFSET($B:$B,,MATCH(K$4,$B$4:$F$4,0)-1),OFFSET('C. PoC Adj Factor Scoring'!$E$5:$J$282,,MATCH(K$4,'C. PoC Adj Factor Scoring'!$E$3:$AH$3,0)-1),MATCH(K$2&\" Score\",'C. PoC Adj Factor Scoring'!$E$4:$J$4,0),TRUE)","v":1},{"$f":"VLOOKUP(OFFSET($B:$B,,MATCH(L$4,$B$4:$F$4,0)-1),OFFSET('C. PoC Adj Factor Scoring'!$E$5:$J$282,,MATCH(L$4,'C. PoC Adj Factor Scoring'!$E$3:$AH$3,0)-1),MATCH(L$2&\" Score\",'C. PoC Adj Factor Scoring'!$E$4:$J$4,0),TRUE)","v":1},{"$f":"VLOOKUP(OFFSET($B:$B,,MATCH(M$4,$B$4:$F$4,0)-1),OFFSET('C. PoC Adj Factor Scoring'!$E$5:$J$282,,MATCH(M$4,'C. PoC Adj Factor Scoring'!$E$3:$AH$3,0)-1),MATCH(M$2&\" Score\",'C. PoC Adj Factor Scoring'!$E$4:$J$4,0),TRUE)","v":1},{"$f":"VLOOKUP(OFFSET($B:$B,,MATCH(N$4,$B$4:$F$4,0)-1),OFFSET('C. PoC Adj Factor Scoring'!$E$5:$J$282,,MATCH(N$4,'C. PoC Adj Factor Scoring'!$E$3:$AH$3,0)-1),MATCH(N$2&\" Score\",'C. PoC Adj Factor Scoring'!$E$4:$J$4,0),TRUE)","v":1},{"$f":"VLOOKUP(OFFSET($B:$B,,MATCH(O$4,$B$4:$F$4,0)-1),OFFSET('C. PoC Adj Factor Scoring'!$E$5:$J$282,,MATCH(O$4,'C. PoC Adj Factor Scoring'!$E$3:$AH$3,0)-1),MATCH(O$2&\" Score\",'C. PoC Adj Factor Scoring'!$E$4:$J$4,0),TRUE)","v":1},{"$f":"VLOOKUP(OFFSET($B:$B,,MATCH(P$4,$B$4:$F$4,0)-1),OFFSET('C. PoC Adj Factor Scoring'!$E$5:$J$282,,MATCH(P$4,'C. PoC Adj Factor Scoring'!$E$3:$AH$3,0)-1),MATCH(P$2&\" Score\",'C. PoC Adj Factor Scoring'!$E$4:$J$4,0),TRUE)","v":1},{"$f":"VLOOKUP(OFFSET($B:$B,,MATCH(Q$4,$B$4:$F$4,0)-1),OFFSET('C. PoC Adj Factor Scoring'!$E$5:$J$282,,MATCH(Q$4,'C. PoC Adj Factor Scoring'!$E$3:$AH$3,0)-1),MATCH(Q$2&\" Score\",'C. PoC Adj Factor Scoring'!$E$4:$J$4,0),TRUE)","v":1},{"$f":"VLOOKUP(OFFSET($B:$B,,MATCH(R$4,$B$4:$F$4,0)-1),OFFSET('C. PoC Adj Factor Scoring'!$E$5:$J$282,,MATCH(R$4,'C. PoC Adj Factor Scoring'!$E$3:$AH$3,0)-1),MATCH(R$2&\" Score\",'C. PoC Adj Factor Scoring'!$E$4:$J$4,0),TRUE)","v":1},{"$f":"VLOOKUP(OFFSET($B:$B,,MATCH(S$4,$B$4:$F$4,0)-1),OFFSET('C. PoC Adj Factor Scoring'!$E$5:$J$282,,MATCH(S$4,'C. PoC Adj Factor Scoring'!$E$3:$AH$3,0)-1),MATCH(S$2&\" Score\",'C. PoC Adj Factor Scoring'!$E$4:$J$4,0),TRUE)","v":1},{"$f":"VLOOKUP(OFFSET($B:$B,,MATCH(T$4,$B$4:$F$4,0)-1),OFFSET('C. PoC Adj Factor Scoring'!$E$5:$J$282,,MATCH(T$4,'C. PoC Adj Factor Scoring'!$E$3:$AH$3,0)-1),MATCH(T$2&\" Score\",'C. PoC Adj Factor Scoring'!$E$4:$J$4,0),TRUE)","v":1},{"$f":"VLOOKUP(OFFSET($B:$B,,MATCH(U$4,$B$4:$F$4,0)-1),OFFSET('C. PoC Adj Factor Scoring'!$E$5:$J$282,,MATCH(U$4,'C. PoC Adj Factor Scoring'!$E$3:$AH$3,0)-1),MATCH(U$2&\" Score\",'C. PoC Adj Factor Scoring'!$E$4:$J$4,0),TRUE)","v":1},{"$f":"VLOOKUP(OFFSET($B:$B,,MATCH(V$4,$B$4:$F$4,0)-1),OFFSET('C. PoC Adj Factor Scoring'!$E$5:$J$282,,MATCH(V$4,'C. PoC Adj Factor Scoring'!$E$3:$AH$3,0)-1),MATCH(V$2&\" Score\",'C. PoC Adj Factor Scoring'!$E$4:$J$4,0),TRUE)","v":1},{"$f":"VLOOKUP(OFFSET($B:$B,,MATCH(W$4,$B$4:$F$4,0)-1),OFFSET('C. PoC Adj Factor Scoring'!$E$5:$J$282,,MATCH(W$4,'C. PoC Adj Factor Scoring'!$E$3:$AH$3,0)-1),MATCH(W$2&\" Score\",'C. PoC Adj Factor Scoring'!$E$4:$J$4,0),TRUE)","v":1},{"$f":"VLOOKUP(OFFSET($B:$B,,MATCH(X$4,$B$4:$F$4,0)-1),OFFSET('C. PoC Adj Factor Scoring'!$E$5:$J$282,,MATCH(X$4,'C. PoC Adj Factor Scoring'!$E$3:$AH$3,0)-1),MATCH(X$2&\" Score\",'C. PoC Adj Factor Scoring'!$E$4:$J$4,0),TRUE)","v":1},{"$f":"VLOOKUP(OFFSET($B:$B,,MATCH(Y$4,$B$4:$F$4,0)-1),OFFSET('C. PoC Adj Factor Scoring'!$E$5:$J$282,,MATCH(Y$4,'C. PoC Adj Factor Scoring'!$E$3:$AH$3,0)-1),MATCH(Y$2&\" Score\",'C. PoC Adj Factor Scoring'!$E$4:$J$4,0),TRUE)","v":1},{"$f":"VLOOKUP(OFFSET($B:$B,,MATCH(Z$4,$B$4:$F$4,0)-1),OFFSET('C. PoC Adj Factor Scoring'!$E$5:$J$282,,MATCH(Z$4,'C. PoC Adj Factor Scoring'!$E$3:$AH$3,0)-1),MATCH(Z$2&\" Score\",'C. PoC Adj Factor Scoring'!$E$4:$J$4,0),TRUE)","v":1},{"$f":"VLOOKUP(OFFSET($B:$B,,MATCH(AA$4,$B$4:$F$4,0)-1),OFFSET('C. PoC Adj Factor Scoring'!$E$5:$J$282,,MATCH(AA$4,'C. PoC Adj Factor Scoring'!$E$3:$AH$3,0)-1),MATCH(AA$2&\" Score\",'C. PoC Adj Factor Scoring'!$E$4:$J$4,0),TRUE)","v":3},{"$f":"VLOOKUP(OFFSET($B:$B,,MATCH(AB$4,$B$4:$F$4,0)-1),OFFSET('C. PoC Adj Factor Scoring'!$E$5:$J$282,,MATCH(AB$4,'C. PoC Adj Factor Scoring'!$E$3:$AH$3,0)-1),MATCH(AB$2&\" Score\",'C. PoC Adj Factor Scoring'!$E$4:$J$4,0),TRUE)","v":1},{"$f":"VLOOKUP(OFFSET($B:$B,,MATCH(AC$4,$B$4:$F$4,0)-1),OFFSET('C. PoC Adj Factor Scoring'!$E$5:$J$282,,MATCH(AC$4,'C. PoC Adj Factor Scoring'!$E$3:$AH$3,0)-1),MATCH(AC$2&\" Score\",'C. PoC Adj Factor Scoring'!$E$4:$J$4,0),TRUE)","v":1},{"$f":"VLOOKUP(OFFSET($B:$B,,MATCH(AD$4,$B$4:$F$4,0)-1),OFFSET('C. PoC Adj Factor Scoring'!$E$5:$J$282,,MATCH(AD$4,'C. PoC Adj Factor Scoring'!$E$3:$AH$3,0)-1),MATCH(AD$2&\" Score\",'C. PoC Adj Factor Scoring'!$E$4:$J$4,0),TRUE)","v":1},{"$f":"VLOOKUP(OFFSET($B:$B,,MATCH(AE$4,$B$4:$F$4,0)-1),OFFSET('C. PoC Adj Factor Scoring'!$E$5:$J$282,,MATCH(AE$4,'C. PoC Adj Factor Scoring'!$E$3:$AH$3,0)-1),MATCH(AE$2&\" Score\",'C. PoC Adj Factor Scoring'!$E$4:$J$4,0),TRUE)","v":1}]
[{"$f":"'A. Population Info'!A23","v":1000224437},{"$f":"'A. Population Info'!L23","v":"OIL"},{"$f":"'A. Population Info'!M23","v":0},{"$f":"'A. Population Info'!N23","v":0},{"$f":"'A. Population Info'!O23","v":0},{"$f":"'A. Population Info'!P23","v":0},{"$f":"VLOOKUP(OFFSET($B:$B,,MATCH(G$4,$B$4:$F$4,0)-1),OFFSET('C. PoC Adj Factor Scoring'!$E$5:$J$282,,MATCH(G$4,'C. PoC Adj Factor Scoring'!$E$3:$AH$3,0)-1),MATCH(G$2&\" Score\",'C. PoC Adj Factor Scoring'!$E$4:$J$4,0),TRUE)","v":4},{"$f":"VLOOKUP(OFFSET($B:$B,,MATCH(H$4,$B$4:$F$4,0)-1),OFFSET('C. PoC Adj Factor Scoring'!$E$5:$J$282,,MATCH(H$4,'C. PoC Adj Factor Scoring'!$E$3:$AH$3,0)-1),MATCH(H$2&\" Score\",'C. PoC Adj Factor Scoring'!$E$4:$J$4,0),TRUE)","v":1},{"$f":"VLOOKUP(OFFSET($B:$B,,MATCH(I$4,$B$4:$F$4,0)-1),OFFSET('C. PoC Adj Factor Scoring'!$E$5:$J$282,,MATCH(I$4,'C. PoC Adj Factor Scoring'!$E$3:$AH$3,0)-1),MATCH(I$2&\" Score\",'C. PoC Adj Factor Scoring'!$E$4:$J$4,0),TRUE)","v":1},{"$f":"VLOOKUP(OFFSET($B:$B,,MATCH(J$4,$B$4:$F$4,0)-1),OFFSET('C. PoC Adj Factor Scoring'!$E$5:$J$282,,MATCH(J$4,'C. PoC Adj Factor Scoring'!$E$3:$AH$3,0)-1),MATCH(J$2&\" Score\",'C. PoC Adj Factor Scoring'!$E$4:$J$4,0),TRUE)","v":1},{"$f":"VLOOKUP(OFFSET($B:$B,,MATCH(K$4,$B$4:$F$4,0)-1),OFFSET('C. PoC Adj Factor Scoring'!$E$5:$J$282,,MATCH(K$4,'C. PoC Adj Factor Scoring'!$E$3:$AH$3,0)-1),MATCH(K$2&\" Score\",'C. PoC Adj Factor Scoring'!$E$4:$J$4,0),TRUE)","v":1},{"$f":"VLOOKUP(OFFSET($B:$B,,MATCH(L$4,$B$4:$F$4,0)-1),OFFSET('C. PoC Adj Factor Scoring'!$E$5:$J$282,,MATCH(L$4,'C. PoC Adj Factor Scoring'!$E$3:$AH$3,0)-1),MATCH(L$2&\" Score\",'C. PoC Adj Factor Scoring'!$E$4:$J$4,0),TRUE)","v":1},{"$f":"VLOOKUP(OFFSET($B:$B,,MATCH(M$4,$B$4:$F$4,0)-1),OFFSET('C. PoC Adj Factor Scoring'!$E$5:$J$282,,MATCH(M$4,'C. PoC Adj Factor Scoring'!$E$3:$AH$3,0)-1),MATCH(M$2&\" Score\",'C. PoC Adj Factor Scoring'!$E$4:$J$4,0),TRUE)","v":1},{"$f":"VLOOKUP(OFFSET($B:$B,,MATCH(N$4,$B$4:$F$4,0)-1),OFFSET('C. PoC Adj Factor Scoring'!$E$5:$J$282,,MATCH(N$4,'C. PoC Adj Factor Scoring'!$E$3:$AH$3,0)-1),MATCH(N$2&\" Score\",'C. PoC Adj Factor Scoring'!$E$4:$J$4,0),TRUE)","v":1},{"$f":"VLOOKUP(OFFSET($B:$B,,MATCH(O$4,$B$4:$F$4,0)-1),OFFSET('C. PoC Adj Factor Scoring'!$E$5:$J$282,,MATCH(O$4,'C. PoC Adj Factor Scoring'!$E$3:$AH$3,0)-1),MATCH(O$2&\" Score\",'C. PoC Adj Factor Scoring'!$E$4:$J$4,0),TRUE)","v":1},{"$f":"VLOOKUP(OFFSET($B:$B,,MATCH(P$4,$B$4:$F$4,0)-1),OFFSET('C. PoC Adj Factor Scoring'!$E$5:$J$282,,MATCH(P$4,'C. PoC Adj Factor Scoring'!$E$3:$AH$3,0)-1),MATCH(P$2&\" Score\",'C. PoC Adj Factor Scoring'!$E$4:$J$4,0),TRUE)","v":1},{"$f":"VLOOKUP(OFFSET($B:$B,,MATCH(Q$4,$B$4:$F$4,0)-1),OFFSET('C. PoC Adj Factor Scoring'!$E$5:$J$282,,MATCH(Q$4,'C. PoC Adj Factor Scoring'!$E$3:$AH$3,0)-1),MATCH(Q$2&\" Score\",'C. PoC Adj Factor Scoring'!$E$4:$J$4,0),TRUE)","v":1},{"$f":"VLOOKUP(OFFSET($B:$B,,MATCH(R$4,$B$4:$F$4,0)-1),OFFSET('C. PoC Adj Factor Scoring'!$E$5:$J$282,,MATCH(R$4,'C. PoC Adj Factor Scoring'!$E$3:$AH$3,0)-1),MATCH(R$2&\" Score\",'C. PoC Adj Factor Scoring'!$E$4:$J$4,0),TRUE)","v":1},{"$f":"VLOOKUP(OFFSET($B:$B,,MATCH(S$4,$B$4:$F$4,0)-1),OFFSET('C. PoC Adj Factor Scoring'!$E$5:$J$282,,MATCH(S$4,'C. PoC Adj Factor Scoring'!$E$3:$AH$3,0)-1),MATCH(S$2&\" Score\",'C. PoC Adj Factor Scoring'!$E$4:$J$4,0),TRUE)","v":1},{"$f":"VLOOKUP(OFFSET($B:$B,,MATCH(T$4,$B$4:$F$4,0)-1),OFFSET('C. PoC Adj Factor Scoring'!$E$5:$J$282,,MATCH(T$4,'C. PoC Adj Factor Scoring'!$E$3:$AH$3,0)-1),MATCH(T$2&\" Score\",'C. PoC Adj Factor Scoring'!$E$4:$J$4,0),TRUE)","v":1},{"$f":"VLOOKUP(OFFSET($B:$B,,MATCH(U$4,$B$4:$F$4,0)-1),OFFSET('C. PoC Adj Factor Scoring'!$E$5:$J$282,,MATCH(U$4,'C. PoC Adj Factor Scoring'!$E$3:$AH$3,0)-1),MATCH(U$2&\" Score\",'C. PoC Adj Factor Scoring'!$E$4:$J$4,0),TRUE)","v":1},{"$f":"VLOOKUP(OFFSET($B:$B,,MATCH(V$4,$B$4:$F$4,0)-1),OFFSET('C. PoC Adj Factor Scoring'!$E$5:$J$282,,MATCH(V$4,'C. PoC Adj Factor Scoring'!$E$3:$AH$3,0)-1),MATCH(V$2&\" Score\",'C. PoC Adj Factor Scoring'!$E$4:$J$4,0),TRUE)","v":1},{"$f":"VLOOKUP(OFFSET($B:$B,,MATCH(W$4,$B$4:$F$4,0)-1),OFFSET('C. PoC Adj Factor Scoring'!$E$5:$J$282,,MATCH(W$4,'C. PoC Adj Factor Scoring'!$E$3:$AH$3,0)-1),MATCH(W$2&\" Score\",'C. PoC Adj Factor Scoring'!$E$4:$J$4,0),TRUE)","v":1},{"$f":"VLOOKUP(OFFSET($B:$B,,MATCH(X$4,$B$4:$F$4,0)-1),OFFSET('C. PoC Adj Factor Scoring'!$E$5:$J$282,,MATCH(X$4,'C. PoC Adj Factor Scoring'!$E$3:$AH$3,0)-1),MATCH(X$2&\" Score\",'C. PoC Adj Factor Scoring'!$E$4:$J$4,0),TRUE)","v":1},{"$f":"VLOOKUP(OFFSET($B:$B,,MATCH(Y$4,$B$4:$F$4,0)-1),OFFSET('C. PoC Adj Factor Scoring'!$E$5:$J$282,,MATCH(Y$4,'C. PoC Adj Factor Scoring'!$E$3:$AH$3,0)-1),MATCH(Y$2&\" Score\",'C. PoC Adj Factor Scoring'!$E$4:$J$4,0),TRUE)","v":1},{"$f":"VLOOKUP(OFFSET($B:$B,,MATCH(Z$4,$B$4:$F$4,0)-1),OFFSET('C. PoC Adj Factor Scoring'!$E$5:$J$282,,MATCH(Z$4,'C. PoC Adj Factor Scoring'!$E$3:$AH$3,0)-1),MATCH(Z$2&\" Score\",'C. PoC Adj Factor Scoring'!$E$4:$J$4,0),TRUE)","v":1},{"$f":"VLOOKUP(OFFSET($B:$B,,MATCH(AA$4,$B$4:$F$4,0)-1),OFFSET('C. PoC Adj Factor Scoring'!$E$5:$J$282,,MATCH(AA$4,'C. PoC Adj Factor Scoring'!$E$3:$AH$3,0)-1),MATCH(AA$2&\" Score\",'C. PoC Adj Factor Scoring'!$E$4:$J$4,0),TRUE)","v":3},{"$f":"VLOOKUP(OFFSET($B:$B,,MATCH(AB$4,$B$4:$F$4,0)-1),OFFSET('C. PoC Adj Factor Scoring'!$E$5:$J$282,,MATCH(AB$4,'C. PoC Adj Factor Scoring'!$E$3:$AH$3,0)-1),MATCH(AB$2&\" Score\",'C. PoC Adj Factor Scoring'!$E$4:$J$4,0),TRUE)","v":1},{"$f":"VLOOKUP(OFFSET($B:$B,,MATCH(AC$4,$B$4:$F$4,0)-1),OFFSET('C. PoC Adj Factor Scoring'!$E$5:$J$282,,MATCH(AC$4,'C. PoC Adj Factor Scoring'!$E$3:$AH$3,0)-1),MATCH(AC$2&\" Score\",'C. PoC Adj Factor Scoring'!$E$4:$J$4,0),TRUE)","v":1},{"$f":"VLOOKUP(OFFSET($B:$B,,MATCH(AD$4,$B$4:$F$4,0)-1),OFFSET('C. PoC Adj Factor Scoring'!$E$5:$J$282,,MATCH(AD$4,'C. PoC Adj Factor Scoring'!$E$3:$AH$3,0)-1),MATCH(AD$2&\" Score\",'C. PoC Adj Factor Scoring'!$E$4:$J$4,0),TRUE)","v":1},{"$f":"VLOOKUP(OFFSET($B:$B,,MATCH(AE$4,$B$4:$F$4,0)-1),OFFSET('C. PoC Adj Factor Scoring'!$E$5:$J$282,,MATCH(AE$4,'C. PoC Adj Factor Scoring'!$E$3:$AH$3,0)-1),MATCH(AE$2&\" Score\",'C. PoC Adj Factor Scoring'!$E$4:$J$4,0),TRUE)","v":1}]
[{"$f":"'A. Population Info'!A24","v":1000224450},{"$f":"'A. Population Info'!L24","v":"OIL"},{"$f":"'A. Population Info'!M24","v":0},{"$f":"'A. Population Info'!N24","v":0},{"$f":"'A. Population Info'!O24","v":0},{"$f":"'A. Population Info'!P24","v":0},{"$f":"VLOOKUP(OFFSET($B:$B,,MATCH(G$4,$B$4:$F$4,0)-1),OFFSET('C. PoC Adj Factor Scoring'!$E$5:$J$282,,MATCH(G$4,'C. PoC Adj Factor Scoring'!$E$3:$AH$3,0)-1),MATCH(G$2&\" Score\",'C. PoC Adj Factor Scoring'!$E$4:$J$4,0),TRUE)","v":4},{"$f":"VLOOKUP(OFFSET($B:$B,,MATCH(H$4,$B$4:$F$4,0)-1),OFFSET('C. PoC Adj Factor Scoring'!$E$5:$J$282,,MATCH(H$4,'C. PoC Adj Factor Scoring'!$E$3:$AH$3,0)-1),MATCH(H$2&\" Score\",'C. PoC Adj Factor Scoring'!$E$4:$J$4,0),TRUE)","v":1},{"$f":"VLOOKUP(OFFSET($B:$B,,MATCH(I$4,$B$4:$F$4,0)-1),OFFSET('C. PoC Adj Factor Scoring'!$E$5:$J$282,,MATCH(I$4,'C. PoC Adj Factor Scoring'!$E$3:$AH$3,0)-1),MATCH(I$2&\" Score\",'C. PoC Adj Factor Scoring'!$E$4:$J$4,0),TRUE)","v":1},{"$f":"VLOOKUP(OFFSET($B:$B,,MATCH(J$4,$B$4:$F$4,0)-1),OFFSET('C. PoC Adj Factor Scoring'!$E$5:$J$282,,MATCH(J$4,'C. PoC Adj Factor Scoring'!$E$3:$AH$3,0)-1),MATCH(J$2&\" Score\",'C. PoC Adj Factor Scoring'!$E$4:$J$4,0),TRUE)","v":1},{"$f":"VLOOKUP(OFFSET($B:$B,,MATCH(K$4,$B$4:$F$4,0)-1),OFFSET('C. PoC Adj Factor Scoring'!$E$5:$J$282,,MATCH(K$4,'C. PoC Adj Factor Scoring'!$E$3:$AH$3,0)-1),MATCH(K$2&\" Score\",'C. PoC Adj Factor Scoring'!$E$4:$J$4,0),TRUE)","v":1},{"$f":"VLOOKUP(OFFSET($B:$B,,MATCH(L$4,$B$4:$F$4,0)-1),OFFSET('C. PoC Adj Factor Scoring'!$E$5:$J$282,,MATCH(L$4,'C. PoC Adj Factor Scoring'!$E$3:$AH$3,0)-1),MATCH(L$2&\" Score\",'C. PoC Adj Factor Scoring'!$E$4:$J$4,0),TRUE)","v":1},{"$f":"VLOOKUP(OFFSET($B:$B,,MATCH(M$4,$B$4:$F$4,0)-1),OFFSET('C. PoC Adj Factor Scoring'!$E$5:$J$282,,MATCH(M$4,'C. PoC Adj Factor Scoring'!$E$3:$AH$3,0)-1),MATCH(M$2&\" Score\",'C. PoC Adj Factor Scoring'!$E$4:$J$4,0),TRUE)","v":1},{"$f":"VLOOKUP(OFFSET($B:$B,,MATCH(N$4,$B$4:$F$4,0)-1),OFFSET('C. PoC Adj Factor Scoring'!$E$5:$J$282,,MATCH(N$4,'C. PoC Adj Factor Scoring'!$E$3:$AH$3,0)-1),MATCH(N$2&\" Score\",'C. PoC Adj Factor Scoring'!$E$4:$J$4,0),TRUE)","v":1},{"$f":"VLOOKUP(OFFSET($B:$B,,MATCH(O$4,$B$4:$F$4,0)-1),OFFSET('C. PoC Adj Factor Scoring'!$E$5:$J$282,,MATCH(O$4,'C. PoC Adj Factor Scoring'!$E$3:$AH$3,0)-1),MATCH(O$2&\" Score\",'C. PoC Adj Factor Scoring'!$E$4:$J$4,0),TRUE)","v":1},{"$f":"VLOOKUP(OFFSET($B:$B,,MATCH(P$4,$B$4:$F$4,0)-1),OFFSET('C. PoC Adj Factor Scoring'!$E$5:$J$282,,MATCH(P$4,'C. PoC Adj Factor Scoring'!$E$3:$AH$3,0)-1),MATCH(P$2&\" Score\",'C. PoC Adj Factor Scoring'!$E$4:$J$4,0),TRUE)","v":1},{"$f":"VLOOKUP(OFFSET($B:$B,,MATCH(Q$4,$B$4:$F$4,0)-1),OFFSET('C. PoC Adj Factor Scoring'!$E$5:$J$282,,MATCH(Q$4,'C. PoC Adj Factor Scoring'!$E$3:$AH$3,0)-1),MATCH(Q$2&\" Score\",'C. PoC Adj Factor Scoring'!$E$4:$J$4,0),TRUE)","v":1},{"$f":"VLOOKUP(OFFSET($B:$B,,MATCH(R$4,$B$4:$F$4,0)-1),OFFSET('C. PoC Adj Factor Scoring'!$E$5:$J$282,,MATCH(R$4,'C. PoC Adj Factor Scoring'!$E$3:$AH$3,0)-1),MATCH(R$2&\" Score\",'C. PoC Adj Factor Scoring'!$E$4:$J$4,0),TRUE)","v":1},{"$f":"VLOOKUP(OFFSET($B:$B,,MATCH(S$4,$B$4:$F$4,0)-1),OFFSET('C. PoC Adj Factor Scoring'!$E$5:$J$282,,MATCH(S$4,'C. PoC Adj Factor Scoring'!$E$3:$AH$3,0)-1),MATCH(S$2&\" Score\",'C. PoC Adj Factor Scoring'!$E$4:$J$4,0),TRUE)","v":1},{"$f":"VLOOKUP(OFFSET($B:$B,,MATCH(T$4,$B$4:$F$4,0)-1),OFFSET('C. PoC Adj Factor Scoring'!$E$5:$J$282,,MATCH(T$4,'C. PoC Adj Factor Scoring'!$E$3:$AH$3,0)-1),MATCH(T$2&\" Score\",'C. PoC Adj Factor Scoring'!$E$4:$J$4,0),TRUE)","v":1},{"$f":"VLOOKUP(OFFSET($B:$B,,MATCH(U$4,$B$4:$F$4,0)-1),OFFSET('C. PoC Adj Factor Scoring'!$E$5:$J$282,,MATCH(U$4,'C. PoC Adj Factor Scoring'!$E$3:$AH$3,0)-1),MATCH(U$2&\" Score\",'C. PoC Adj Factor Scoring'!$E$4:$J$4,0),TRUE)","v":1},{"$f":"VLOOKUP(OFFSET($B:$B,,MATCH(V$4,$B$4:$F$4,0)-1),OFFSET('C. PoC Adj Factor Scoring'!$E$5:$J$282,,MATCH(V$4,'C. PoC Adj Factor Scoring'!$E$3:$AH$3,0)-1),MATCH(V$2&\" Score\",'C. PoC Adj Factor Scoring'!$E$4:$J$4,0),TRUE)","v":1},{"$f":"VLOOKUP(OFFSET($B:$B,,MATCH(W$4,$B$4:$F$4,0)-1),OFFSET('C. PoC Adj Factor Scoring'!$E$5:$J$282,,MATCH(W$4,'C. PoC Adj Factor Scoring'!$E$3:$AH$3,0)-1),MATCH(W$2&\" Score\",'C. PoC Adj Factor Scoring'!$E$4:$J$4,0),TRUE)","v":1},{"$f":"VLOOKUP(OFFSET($B:$B,,MATCH(X$4,$B$4:$F$4,0)-1),OFFSET('C. PoC Adj Factor Scoring'!$E$5:$J$282,,MATCH(X$4,'C. PoC Adj Factor Scoring'!$E$3:$AH$3,0)-1),MATCH(X$2&\" Score\",'C. PoC Adj Factor Scoring'!$E$4:$J$4,0),TRUE)","v":1},{"$f":"VLOOKUP(OFFSET($B:$B,,MATCH(Y$4,$B$4:$F$4,0)-1),OFFSET('C. PoC Adj Factor Scoring'!$E$5:$J$282,,MATCH(Y$4,'C. PoC Adj Factor Scoring'!$E$3:$AH$3,0)-1),MATCH(Y$2&\" Score\",'C. PoC Adj Factor Scoring'!$E$4:$J$4,0),TRUE)","v":1},{"$f":"VLOOKUP(OFFSET($B:$B,,MATCH(Z$4,$B$4:$F$4,0)-1),OFFSET('C. PoC Adj Factor Scoring'!$E$5:$J$282,,MATCH(Z$4,'C. PoC Adj Factor Scoring'!$E$3:$AH$3,0)-1),MATCH(Z$2&\" Score\",'C. PoC Adj Factor Scoring'!$E$4:$J$4,0),TRUE)","v":1},{"$f":"VLOOKUP(OFFSET($B:$B,,MATCH(AA$4,$B$4:$F$4,0)-1),OFFSET('C. PoC Adj Factor Scoring'!$E$5:$J$282,,MATCH(AA$4,'C. PoC Adj Factor Scoring'!$E$3:$AH$3,0)-1),MATCH(AA$2&\" Score\",'C. PoC Adj Factor Scoring'!$E$4:$J$4,0),TRUE)","v":3},{"$f":"VLOOKUP(OFFSET($B:$B,,MATCH(AB$4,$B$4:$F$4,0)-1),OFFSET('C. PoC Adj Factor Scoring'!$E$5:$J$282,,MATCH(AB$4,'C. PoC Adj Factor Scoring'!$E$3:$AH$3,0)-1),MATCH(AB$2&\" Score\",'C. PoC Adj Factor Scoring'!$E$4:$J$4,0),TRUE)","v":1},{"$f":"VLOOKUP(OFFSET($B:$B,,MATCH(AC$4,$B$4:$F$4,0)-1),OFFSET('C. PoC Adj Factor Scoring'!$E$5:$J$282,,MATCH(AC$4,'C. PoC Adj Factor Scoring'!$E$3:$AH$3,0)-1),MATCH(AC$2&\" Score\",'C. PoC Adj Factor Scoring'!$E$4:$J$4,0),TRUE)","v":1},{"$f":"VLOOKUP(OFFSET($B:$B,,MATCH(AD$4,$B$4:$F$4,0)-1),OFFSET('C. PoC Adj Factor Scoring'!$E$5:$J$282,,MATCH(AD$4,'C. PoC Adj Factor Scoring'!$E$3:$AH$3,0)-1),MATCH(AD$2&\" Score\",'C. PoC Adj Factor Scoring'!$E$4:$J$4,0),TRUE)","v":1},{"$f":"VLOOKUP(OFFSET($B:$B,,MATCH(AE$4,$B$4:$F$4,0)-1),OFFSET('C. PoC Adj Factor Scoring'!$E$5:$J$282,,MATCH(AE$4,'C. PoC Adj Factor Scoring'!$E$3:$AH$3,0)-1),MATCH(AE$2&\" Score\",'C. PoC Adj Factor Scoring'!$E$4:$J$4,0),TRUE)","v":1}]
[{"$f":"'A. Population Info'!A25","v":1000224464},{"$f":"'A. Population Info'!L25","v":"OIL"},{"$f":"'A. Population Info'!M25","v":0},{"$f":"'A. Population Info'!N25","v":0},{"$f":"'A. Population Info'!O25","v":0},{"$f":"'A. Population Info'!P25","v":0},{"$f":"VLOOKUP(OFFSET($B:$B,,MATCH(G$4,$B$4:$F$4,0)-1),OFFSET('C. PoC Adj Factor Scoring'!$E$5:$J$282,,MATCH(G$4,'C. PoC Adj Factor Scoring'!$E$3:$AH$3,0)-1),MATCH(G$2&\" Score\",'C. PoC Adj Factor Scoring'!$E$4:$J$4,0),TRUE)","v":4},{"$f":"VLOOKUP(OFFSET($B:$B,,MATCH(H$4,$B$4:$F$4,0)-1),OFFSET('C. PoC Adj Factor Scoring'!$E$5:$J$282,,MATCH(H$4,'C. PoC Adj Factor Scoring'!$E$3:$AH$3,0)-1),MATCH(H$2&\" Score\",'C. PoC Adj Factor Scoring'!$E$4:$J$4,0),TRUE)","v":1},{"$f":"VLOOKUP(OFFSET($B:$B,,MATCH(I$4,$B$4:$F$4,0)-1),OFFSET('C. PoC Adj Factor Scoring'!$E$5:$J$282,,MATCH(I$4,'C. PoC Adj Factor Scoring'!$E$3:$AH$3,0)-1),MATCH(I$2&\" Score\",'C. PoC Adj Factor Scoring'!$E$4:$J$4,0),TRUE)","v":1},{"$f":"VLOOKUP(OFFSET($B:$B,,MATCH(J$4,$B$4:$F$4,0)-1),OFFSET('C. PoC Adj Factor Scoring'!$E$5:$J$282,,MATCH(J$4,'C. PoC Adj Factor Scoring'!$E$3:$AH$3,0)-1),MATCH(J$2&\" Score\",'C. PoC Adj Factor Scoring'!$E$4:$J$4,0),TRUE)","v":1},{"$f":"VLOOKUP(OFFSET($B:$B,,MATCH(K$4,$B$4:$F$4,0)-1),OFFSET('C. PoC Adj Factor Scoring'!$E$5:$J$282,,MATCH(K$4,'C. PoC Adj Factor Scoring'!$E$3:$AH$3,0)-1),MATCH(K$2&\" Score\",'C. PoC Adj Factor Scoring'!$E$4:$J$4,0),TRUE)","v":1},{"$f":"VLOOKUP(OFFSET($B:$B,,MATCH(L$4,$B$4:$F$4,0)-1),OFFSET('C. PoC Adj Factor Scoring'!$E$5:$J$282,,MATCH(L$4,'C. PoC Adj Factor Scoring'!$E$3:$AH$3,0)-1),MATCH(L$2&\" Score\",'C. PoC Adj Factor Scoring'!$E$4:$J$4,0),TRUE)","v":1},{"$f":"VLOOKUP(OFFSET($B:$B,,MATCH(M$4,$B$4:$F$4,0)-1),OFFSET('C. PoC Adj Factor Scoring'!$E$5:$J$282,,MATCH(M$4,'C. PoC Adj Factor Scoring'!$E$3:$AH$3,0)-1),MATCH(M$2&\" Score\",'C. PoC Adj Factor Scoring'!$E$4:$J$4,0),TRUE)","v":1},{"$f":"VLOOKUP(OFFSET($B:$B,,MATCH(N$4,$B$4:$F$4,0)-1),OFFSET('C. PoC Adj Factor Scoring'!$E$5:$J$282,,MATCH(N$4,'C. PoC Adj Factor Scoring'!$E$3:$AH$3,0)-1),MATCH(N$2&\" Score\",'C. PoC Adj Factor Scoring'!$E$4:$J$4,0),TRUE)","v":1},{"$f":"VLOOKUP(OFFSET($B:$B,,MATCH(O$4,$B$4:$F$4,0)-1),OFFSET('C. PoC Adj Factor Scoring'!$E$5:$J$282,,MATCH(O$4,'C. PoC Adj Factor Scoring'!$E$3:$AH$3,0)-1),MATCH(O$2&\" Score\",'C. PoC Adj Factor Scoring'!$E$4:$J$4,0),TRUE)","v":1},{"$f":"VLOOKUP(OFFSET($B:$B,,MATCH(P$4,$B$4:$F$4,0)-1),OFFSET('C. PoC Adj Factor Scoring'!$E$5:$J$282,,MATCH(P$4,'C. PoC Adj Factor Scoring'!$E$3:$AH$3,0)-1),MATCH(P$2&\" Score\",'C. PoC Adj Factor Scoring'!$E$4:$J$4,0),TRUE)","v":1},{"$f":"VLOOKUP(OFFSET($B:$B,,MATCH(Q$4,$B$4:$F$4,0)-1),OFFSET('C. PoC Adj Factor Scoring'!$E$5:$J$282,,MATCH(Q$4,'C. PoC Adj Factor Scoring'!$E$3:$AH$3,0)-1),MATCH(Q$2&\" Score\",'C. PoC Adj Factor Scoring'!$E$4:$J$4,0),TRUE)","v":1},{"$f":"VLOOKUP(OFFSET($B:$B,,MATCH(R$4,$B$4:$F$4,0)-1),OFFSET('C. PoC Adj Factor Scoring'!$E$5:$J$282,,MATCH(R$4,'C. PoC Adj Factor Scoring'!$E$3:$AH$3,0)-1),MATCH(R$2&\" Score\",'C. PoC Adj Factor Scoring'!$E$4:$J$4,0),TRUE)","v":1},{"$f":"VLOOKUP(OFFSET($B:$B,,MATCH(S$4,$B$4:$F$4,0)-1),OFFSET('C. PoC Adj Factor Scoring'!$E$5:$J$282,,MATCH(S$4,'C. PoC Adj Factor Scoring'!$E$3:$AH$3,0)-1),MATCH(S$2&\" Score\",'C. PoC Adj Factor Scoring'!$E$4:$J$4,0),TRUE)","v":1},{"$f":"VLOOKUP(OFFSET($B:$B,,MATCH(T$4,$B$4:$F$4,0)-1),OFFSET('C. PoC Adj Factor Scoring'!$E$5:$J$282,,MATCH(T$4,'C. PoC Adj Factor Scoring'!$E$3:$AH$3,0)-1),MATCH(T$2&\" Score\",'C. PoC Adj Factor Scoring'!$E$4:$J$4,0),TRUE)","v":1},{"$f":"VLOOKUP(OFFSET($B:$B,,MATCH(U$4,$B$4:$F$4,0)-1),OFFSET('C. PoC Adj Factor Scoring'!$E$5:$J$282,,MATCH(U$4,'C. PoC Adj Factor Scoring'!$E$3:$AH$3,0)-1),MATCH(U$2&\" Score\",'C. PoC Adj Factor Scoring'!$E$4:$J$4,0),TRUE)","v":1},{"$f":"VLOOKUP(OFFSET($B:$B,,MATCH(V$4,$B$4:$F$4,0)-1),OFFSET('C. PoC Adj Factor Scoring'!$E$5:$J$282,,MATCH(V$4,'C. PoC Adj Factor Scoring'!$E$3:$AH$3,0)-1),MATCH(V$2&\" Score\",'C. PoC Adj Factor Scoring'!$E$4:$J$4,0),TRUE)","v":1},{"$f":"VLOOKUP(OFFSET($B:$B,,MATCH(W$4,$B$4:$F$4,0)-1),OFFSET('C. PoC Adj Factor Scoring'!$E$5:$J$282,,MATCH(W$4,'C. PoC Adj Factor Scoring'!$E$3:$AH$3,0)-1),MATCH(W$2&\" Score\",'C. PoC Adj Factor Scoring'!$E$4:$J$4,0),TRUE)","v":1},{"$f":"VLOOKUP(OFFSET($B:$B,,MATCH(X$4,$B$4:$F$4,0)-1),OFFSET('C. PoC Adj Factor Scoring'!$E$5:$J$282,,MATCH(X$4,'C. PoC Adj Factor Scoring'!$E$3:$AH$3,0)-1),MATCH(X$2&\" Score\",'C. PoC Adj Factor Scoring'!$E$4:$J$4,0),TRUE)","v":1},{"$f":"VLOOKUP(OFFSET($B:$B,,MATCH(Y$4,$B$4:$F$4,0)-1),OFFSET('C. PoC Adj Factor Scoring'!$E$5:$J$282,,MATCH(Y$4,'C. PoC Adj Factor Scoring'!$E$3:$AH$3,0)-1),MATCH(Y$2&\" Score\",'C. PoC Adj Factor Scoring'!$E$4:$J$4,0),TRUE)","v":1},{"$f":"VLOOKUP(OFFSET($B:$B,,MATCH(Z$4,$B$4:$F$4,0)-1),OFFSET('C. PoC Adj Factor Scoring'!$E$5:$J$282,,MATCH(Z$4,'C. PoC Adj Factor Scoring'!$E$3:$AH$3,0)-1),MATCH(Z$2&\" Score\",'C. PoC Adj Factor Scoring'!$E$4:$J$4,0),TRUE)","v":1},{"$f":"VLOOKUP(OFFSET($B:$B,,MATCH(AA$4,$B$4:$F$4,0)-1),OFFSET('C. PoC Adj Factor Scoring'!$E$5:$J$282,,MATCH(AA$4,'C. PoC Adj Factor Scoring'!$E$3:$AH$3,0)-1),MATCH(AA$2&\" Score\",'C. PoC Adj Factor Scoring'!$E$4:$J$4,0),TRUE)","v":3},{"$f":"VLOOKUP(OFFSET($B:$B,,MATCH(AB$4,$B$4:$F$4,0)-1),OFFSET('C. PoC Adj Factor Scoring'!$E$5:$J$282,,MATCH(AB$4,'C. PoC Adj Factor Scoring'!$E$3:$AH$3,0)-1),MATCH(AB$2&\" Score\",'C. PoC Adj Factor Scoring'!$E$4:$J$4,0),TRUE)","v":1},{"$f":"VLOOKUP(OFFSET($B:$B,,MATCH(AC$4,$B$4:$F$4,0)-1),OFFSET('C. PoC Adj Factor Scoring'!$E$5:$J$282,,MATCH(AC$4,'C. PoC Adj Factor Scoring'!$E$3:$AH$3,0)-1),MATCH(AC$2&\" Score\",'C. PoC Adj Factor Scoring'!$E$4:$J$4,0),TRUE)","v":1},{"$f":"VLOOKUP(OFFSET($B:$B,,MATCH(AD$4,$B$4:$F$4,0)-1),OFFSET('C. PoC Adj Factor Scoring'!$E$5:$J$282,,MATCH(AD$4,'C. PoC Adj Factor Scoring'!$E$3:$AH$3,0)-1),MATCH(AD$2&\" Score\",'C. PoC Adj Factor Scoring'!$E$4:$J$4,0),TRUE)","v":1},{"$f":"VLOOKUP(OFFSET($B:$B,,MATCH(AE$4,$B$4:$F$4,0)-1),OFFSET('C. PoC Adj Factor Scoring'!$E$5:$J$282,,MATCH(AE$4,'C. PoC Adj Factor Scoring'!$E$3:$AH$3,0)-1),MATCH(AE$2&\" Score\",'C. PoC Adj Factor Scoring'!$E$4:$J$4,0),TRUE)","v":1}]
[{"$f":"'A. Population Info'!A26","v":1000224475},{"$f":"'A. Population Info'!L26","v":"OIL_FR3"},{"$f":"'A. Population Info'!M26","v":0},{"$f":"'A. Population Info'!N26","v":0},{"$f":"'A. Population Info'!O26","v":0},{"$f":"'A. Population Info'!P26","v":0},{"$f":"VLOOKUP(OFFSET($B:$B,,MATCH(G$4,$B$4:$F$4,0)-1),OFFSET('C. PoC Adj Factor Scoring'!$E$5:$J$282,,MATCH(G$4,'C. PoC Adj Factor Scoring'!$E$3:$AH$3,0)-1),MATCH(G$2&\" Score\",'C. PoC Adj Factor Scoring'!$E$4:$J$4,0),TRUE)","v":3},{"$f":"VLOOKUP(OFFSET($B:$B,,MATCH(H$4,$B$4:$F$4,0)-1),OFFSET('C. PoC Adj Factor Scoring'!$E$5:$J$282,,MATCH(H$4,'C. PoC Adj Factor Scoring'!$E$3:$AH$3,0)-1),MATCH(H$2&\" Score\",'C. PoC Adj Factor Scoring'!$E$4:$J$4,0),TRUE)","v":1},{"$f":"VLOOKUP(OFFSET($B:$B,,MATCH(I$4,$B$4:$F$4,0)-1),OFFSET('C. PoC Adj Factor Scoring'!$E$5:$J$282,,MATCH(I$4,'C. PoC Adj Factor Scoring'!$E$3:$AH$3,0)-1),MATCH(I$2&\" Score\",'C. PoC Adj Factor Scoring'!$E$4:$J$4,0),TRUE)","v":1},{"$f":"VLOOKUP(OFFSET($B:$B,,MATCH(J$4,$B$4:$F$4,0)-1),OFFSET('C. PoC Adj Factor Scoring'!$E$5:$J$282,,MATCH(J$4,'C. PoC Adj Factor Scoring'!$E$3:$AH$3,0)-1),MATCH(J$2&\" Score\",'C. PoC Adj Factor Scoring'!$E$4:$J$4,0),TRUE)","v":1},{"$f":"VLOOKUP(OFFSET($B:$B,,MATCH(K$4,$B$4:$F$4,0)-1),OFFSET('C. PoC Adj Factor Scoring'!$E$5:$J$282,,MATCH(K$4,'C. PoC Adj Factor Scoring'!$E$3:$AH$3,0)-1),MATCH(K$2&\" Score\",'C. PoC Adj Factor Scoring'!$E$4:$J$4,0),TRUE)","v":1},{"$f":"VLOOKUP(OFFSET($B:$B,,MATCH(L$4,$B$4:$F$4,0)-1),OFFSET('C. PoC Adj Factor Scoring'!$E$5:$J$282,,MATCH(L$4,'C. PoC Adj Factor Scoring'!$E$3:$AH$3,0)-1),MATCH(L$2&\" Score\",'C. PoC Adj Factor Scoring'!$E$4:$J$4,0),TRUE)","v":1},{"$f":"VLOOKUP(OFFSET($B:$B,,MATCH(M$4,$B$4:$F$4,0)-1),OFFSET('C. PoC Adj Factor Scoring'!$E$5:$J$282,,MATCH(M$4,'C. PoC Adj Factor Scoring'!$E$3:$AH$3,0)-1),MATCH(M$2&\" Score\",'C. PoC Adj Factor Scoring'!$E$4:$J$4,0),TRUE)","v":1},{"$f":"VLOOKUP(OFFSET($B:$B,,MATCH(N$4,$B$4:$F$4,0)-1),OFFSET('C. PoC Adj Factor Scoring'!$E$5:$J$282,,MATCH(N$4,'C. PoC Adj Factor Scoring'!$E$3:$AH$3,0)-1),MATCH(N$2&\" Score\",'C. PoC Adj Factor Scoring'!$E$4:$J$4,0),TRUE)","v":1},{"$f":"VLOOKUP(OFFSET($B:$B,,MATCH(O$4,$B$4:$F$4,0)-1),OFFSET('C. PoC Adj Factor Scoring'!$E$5:$J$282,,MATCH(O$4,'C. PoC Adj Factor Scoring'!$E$3:$AH$3,0)-1),MATCH(O$2&\" Score\",'C. PoC Adj Factor Scoring'!$E$4:$J$4,0),TRUE)","v":1},{"$f":"VLOOKUP(OFFSET($B:$B,,MATCH(P$4,$B$4:$F$4,0)-1),OFFSET('C. PoC Adj Factor Scoring'!$E$5:$J$282,,MATCH(P$4,'C. PoC Adj Factor Scoring'!$E$3:$AH$3,0)-1),MATCH(P$2&\" Score\",'C. PoC Adj Factor Scoring'!$E$4:$J$4,0),TRUE)","v":1},{"$f":"VLOOKUP(OFFSET($B:$B,,MATCH(Q$4,$B$4:$F$4,0)-1),OFFSET('C. PoC Adj Factor Scoring'!$E$5:$J$282,,MATCH(Q$4,'C. PoC Adj Factor Scoring'!$E$3:$AH$3,0)-1),MATCH(Q$2&\" Score\",'C. PoC Adj Factor Scoring'!$E$4:$J$4,0),TRUE)","v":1},{"$f":"VLOOKUP(OFFSET($B:$B,,MATCH(R$4,$B$4:$F$4,0)-1),OFFSET('C. PoC Adj Factor Scoring'!$E$5:$J$282,,MATCH(R$4,'C. PoC Adj Factor Scoring'!$E$3:$AH$3,0)-1),MATCH(R$2&\" Score\",'C. PoC Adj Factor Scoring'!$E$4:$J$4,0),TRUE)","v":1},{"$f":"VLOOKUP(OFFSET($B:$B,,MATCH(S$4,$B$4:$F$4,0)-1),OFFSET('C. PoC Adj Factor Scoring'!$E$5:$J$282,,MATCH(S$4,'C. PoC Adj Factor Scoring'!$E$3:$AH$3,0)-1),MATCH(S$2&\" Score\",'C. PoC Adj Factor Scoring'!$E$4:$J$4,0),TRUE)","v":1},{"$f":"VLOOKUP(OFFSET($B:$B,,MATCH(T$4,$B$4:$F$4,0)-1),OFFSET('C. PoC Adj Factor Scoring'!$E$5:$J$282,,MATCH(T$4,'C. PoC Adj Factor Scoring'!$E$3:$AH$3,0)-1),MATCH(T$2&\" Score\",'C. PoC Adj Factor Scoring'!$E$4:$J$4,0),TRUE)","v":1},{"$f":"VLOOKUP(OFFSET($B:$B,,MATCH(U$4,$B$4:$F$4,0)-1),OFFSET('C. PoC Adj Factor Scoring'!$E$5:$J$282,,MATCH(U$4,'C. PoC Adj Factor Scoring'!$E$3:$AH$3,0)-1),MATCH(U$2&\" Score\",'C. PoC Adj Factor Scoring'!$E$4:$J$4,0),TRUE)","v":1},{"$f":"VLOOKUP(OFFSET($B:$B,,MATCH(V$4,$B$4:$F$4,0)-1),OFFSET('C. PoC Adj Factor Scoring'!$E$5:$J$282,,MATCH(V$4,'C. PoC Adj Factor Scoring'!$E$3:$AH$3,0)-1),MATCH(V$2&\" Score\",'C. PoC Adj Factor Scoring'!$E$4:$J$4,0),TRUE)","v":1},{"$f":"VLOOKUP(OFFSET($B:$B,,MATCH(W$4,$B$4:$F$4,0)-1),OFFSET('C. PoC Adj Factor Scoring'!$E$5:$J$282,,MATCH(W$4,'C. PoC Adj Factor Scoring'!$E$3:$AH$3,0)-1),MATCH(W$2&\" Score\",'C. PoC Adj Factor Scoring'!$E$4:$J$4,0),TRUE)","v":1},{"$f":"VLOOKUP(OFFSET($B:$B,,MATCH(X$4,$B$4:$F$4,0)-1),OFFSET('C. PoC Adj Factor Scoring'!$E$5:$J$282,,MATCH(X$4,'C. PoC Adj Factor Scoring'!$E$3:$AH$3,0)-1),MATCH(X$2&\" Score\",'C. PoC Adj Factor Scoring'!$E$4:$J$4,0),TRUE)","v":1},{"$f":"VLOOKUP(OFFSET($B:$B,,MATCH(Y$4,$B$4:$F$4,0)-1),OFFSET('C. PoC Adj Factor Scoring'!$E$5:$J$282,,MATCH(Y$4,'C. PoC Adj Factor Scoring'!$E$3:$AH$3,0)-1),MATCH(Y$2&\" Score\",'C. PoC Adj Factor Scoring'!$E$4:$J$4,0),TRUE)","v":1},{"$f":"VLOOKUP(OFFSET($B:$B,,MATCH(Z$4,$B$4:$F$4,0)-1),OFFSET('C. PoC Adj Factor Scoring'!$E$5:$J$282,,MATCH(Z$4,'C. PoC Adj Factor Scoring'!$E$3:$AH$3,0)-1),MATCH(Z$2&\" Score\",'C. PoC Adj Factor Scoring'!$E$4:$J$4,0),TRUE)","v":1},{"$f":"VLOOKUP(OFFSET($B:$B,,MATCH(AA$4,$B$4:$F$4,0)-1),OFFSET('C. PoC Adj Factor Scoring'!$E$5:$J$282,,MATCH(AA$4,'C. PoC Adj Factor Scoring'!$E$3:$AH$3,0)-1),MATCH(AA$2&\" Score\",'C. PoC Adj Factor Scoring'!$E$4:$J$4,0),TRUE)","v":2},{"$f":"VLOOKUP(OFFSET($B:$B,,MATCH(AB$4,$B$4:$F$4,0)-1),OFFSET('C. PoC Adj Factor Scoring'!$E$5:$J$282,,MATCH(AB$4,'C. PoC Adj Factor Scoring'!$E$3:$AH$3,0)-1),MATCH(AB$2&\" Score\",'C. PoC Adj Factor Scoring'!$E$4:$J$4,0),TRUE)","v":1},{"$f":"VLOOKUP(OFFSET($B:$B,,MATCH(AC$4,$B$4:$F$4,0)-1),OFFSET('C. PoC Adj Factor Scoring'!$E$5:$J$282,,MATCH(AC$4,'C. PoC Adj Factor Scoring'!$E$3:$AH$3,0)-1),MATCH(AC$2&\" Score\",'C. PoC Adj Factor Scoring'!$E$4:$J$4,0),TRUE)","v":1},{"$f":"VLOOKUP(OFFSET($B:$B,,MATCH(AD$4,$B$4:$F$4,0)-1),OFFSET('C. PoC Adj Factor Scoring'!$E$5:$J$282,,MATCH(AD$4,'C. PoC Adj Factor Scoring'!$E$3:$AH$3,0)-1),MATCH(AD$2&\" Score\",'C. PoC Adj Factor Scoring'!$E$4:$J$4,0),TRUE)","v":1},{"$f":"VLOOKUP(OFFSET($B:$B,,MATCH(AE$4,$B$4:$F$4,0)-1),OFFSET('C. PoC Adj Factor Scoring'!$E$5:$J$282,,MATCH(AE$4,'C. PoC Adj Factor Scoring'!$E$3:$AH$3,0)-1),MATCH(AE$2&\" Score\",'C. PoC Adj Factor Scoring'!$E$4:$J$4,0),TRUE)","v":1}]
[{"$f":"'A. Population Info'!A27","v":1000267271},{"$f":"'A. Population Info'!L27","v":"OIL"},{"$f":"'A. Population Info'!M27","v":0},{"$f":"'A. Population Info'!N27","v":0},{"$f":"'A. Population Info'!O27","v":0},{"$f":"'A. Population Info'!P27","v":0},{"$f":"VLOOKUP(OFFSET($B:$B,,MATCH(G$4,$B$4:$F$4,0)-1),OFFSET('C. PoC Adj Factor Scoring'!$E$5:$J$282,,MATCH(G$4,'C. PoC Adj Factor Scoring'!$E$3:$AH$3,0)-1),MATCH(G$2&\" Score\",'C. PoC Adj Factor Scoring'!$E$4:$J$4,0),TRUE)","v":4},{"$f":"VLOOKUP(OFFSET($B:$B,,MATCH(H$4,$B$4:$F$4,0)-1),OFFSET('C. PoC Adj Factor Scoring'!$E$5:$J$282,,MATCH(H$4,'C. PoC Adj Factor Scoring'!$E$3:$AH$3,0)-1),MATCH(H$2&\" Score\",'C. PoC Adj Factor Scoring'!$E$4:$J$4,0),TRUE)","v":1},{"$f":"VLOOKUP(OFFSET($B:$B,,MATCH(I$4,$B$4:$F$4,0)-1),OFFSET('C. PoC Adj Factor Scoring'!$E$5:$J$282,,MATCH(I$4,'C. PoC Adj Factor Scoring'!$E$3:$AH$3,0)-1),MATCH(I$2&\" Score\",'C. PoC Adj Factor Scoring'!$E$4:$J$4,0),TRUE)","v":1},{"$f":"VLOOKUP(OFFSET($B:$B,,MATCH(J$4,$B$4:$F$4,0)-1),OFFSET('C. PoC Adj Factor Scoring'!$E$5:$J$282,,MATCH(J$4,'C. PoC Adj Factor Scoring'!$E$3:$AH$3,0)-1),MATCH(J$2&\" Score\",'C. PoC Adj Factor Scoring'!$E$4:$J$4,0),TRUE)","v":1},{"$f":"VLOOKUP(OFFSET($B:$B,,MATCH(K$4,$B$4:$F$4,0)-1),OFFSET('C. PoC Adj Factor Scoring'!$E$5:$J$282,,MATCH(K$4,'C. PoC Adj Factor Scoring'!$E$3:$AH$3,0)-1),MATCH(K$2&\" Score\",'C. PoC Adj Factor Scoring'!$E$4:$J$4,0),TRUE)","v":1},{"$f":"VLOOKUP(OFFSET($B:$B,,MATCH(L$4,$B$4:$F$4,0)-1),OFFSET('C. PoC Adj Factor Scoring'!$E$5:$J$282,,MATCH(L$4,'C. PoC Adj Factor Scoring'!$E$3:$AH$3,0)-1),MATCH(L$2&\" Score\",'C. PoC Adj Factor Scoring'!$E$4:$J$4,0),TRUE)","v":1},{"$f":"VLOOKUP(OFFSET($B:$B,,MATCH(M$4,$B$4:$F$4,0)-1),OFFSET('C. PoC Adj Factor Scoring'!$E$5:$J$282,,MATCH(M$4,'C. PoC Adj Factor Scoring'!$E$3:$AH$3,0)-1),MATCH(M$2&\" Score\",'C. PoC Adj Factor Scoring'!$E$4:$J$4,0),TRUE)","v":1},{"$f":"VLOOKUP(OFFSET($B:$B,,MATCH(N$4,$B$4:$F$4,0)-1),OFFSET('C. PoC Adj Factor Scoring'!$E$5:$J$282,,MATCH(N$4,'C. PoC Adj Factor Scoring'!$E$3:$AH$3,0)-1),MATCH(N$2&\" Score\",'C. PoC Adj Factor Scoring'!$E$4:$J$4,0),TRUE)","v":1},{"$f":"VLOOKUP(OFFSET($B:$B,,MATCH(O$4,$B$4:$F$4,0)-1),OFFSET('C. PoC Adj Factor Scoring'!$E$5:$J$282,,MATCH(O$4,'C. PoC Adj Factor Scoring'!$E$3:$AH$3,0)-1),MATCH(O$2&\" Score\",'C. PoC Adj Factor Scoring'!$E$4:$J$4,0),TRUE)","v":1},{"$f":"VLOOKUP(OFFSET($B:$B,,MATCH(P$4,$B$4:$F$4,0)-1),OFFSET('C. PoC Adj Factor Scoring'!$E$5:$J$282,,MATCH(P$4,'C. PoC Adj Factor Scoring'!$E$3:$AH$3,0)-1),MATCH(P$2&\" Score\",'C. PoC Adj Factor Scoring'!$E$4:$J$4,0),TRUE)","v":1},{"$f":"VLOOKUP(OFFSET($B:$B,,MATCH(Q$4,$B$4:$F$4,0)-1),OFFSET('C. PoC Adj Factor Scoring'!$E$5:$J$282,,MATCH(Q$4,'C. PoC Adj Factor Scoring'!$E$3:$AH$3,0)-1),MATCH(Q$2&\" Score\",'C. PoC Adj Factor Scoring'!$E$4:$J$4,0),TRUE)","v":1},{"$f":"VLOOKUP(OFFSET($B:$B,,MATCH(R$4,$B$4:$F$4,0)-1),OFFSET('C. PoC Adj Factor Scoring'!$E$5:$J$282,,MATCH(R$4,'C. PoC Adj Factor Scoring'!$E$3:$AH$3,0)-1),MATCH(R$2&\" Score\",'C. PoC Adj Factor Scoring'!$E$4:$J$4,0),TRUE)","v":1},{"$f":"VLOOKUP(OFFSET($B:$B,,MATCH(S$4,$B$4:$F$4,0)-1),OFFSET('C. PoC Adj Factor Scoring'!$E$5:$J$282,,MATCH(S$4,'C. PoC Adj Factor Scoring'!$E$3:$AH$3,0)-1),MATCH(S$2&\" Score\",'C. PoC Adj Factor Scoring'!$E$4:$J$4,0),TRUE)","v":1},{"$f":"VLOOKUP(OFFSET($B:$B,,MATCH(T$4,$B$4:$F$4,0)-1),OFFSET('C. PoC Adj Factor Scoring'!$E$5:$J$282,,MATCH(T$4,'C. PoC Adj Factor Scoring'!$E$3:$AH$3,0)-1),MATCH(T$2&\" Score\",'C. PoC Adj Factor Scoring'!$E$4:$J$4,0),TRUE)","v":1},{"$f":"VLOOKUP(OFFSET($B:$B,,MATCH(U$4,$B$4:$F$4,0)-1),OFFSET('C. PoC Adj Factor Scoring'!$E$5:$J$282,,MATCH(U$4,'C. PoC Adj Factor Scoring'!$E$3:$AH$3,0)-1),MATCH(U$2&\" Score\",'C. PoC Adj Factor Scoring'!$E$4:$J$4,0),TRUE)","v":1},{"$f":"VLOOKUP(OFFSET($B:$B,,MATCH(V$4,$B$4:$F$4,0)-1),OFFSET('C. PoC Adj Factor Scoring'!$E$5:$J$282,,MATCH(V$4,'C. PoC Adj Factor Scoring'!$E$3:$AH$3,0)-1),MATCH(V$2&\" Score\",'C. PoC Adj Factor Scoring'!$E$4:$J$4,0),TRUE)","v":1},{"$f":"VLOOKUP(OFFSET($B:$B,,MATCH(W$4,$B$4:$F$4,0)-1),OFFSET('C. PoC Adj Factor Scoring'!$E$5:$J$282,,MATCH(W$4,'C. PoC Adj Factor Scoring'!$E$3:$AH$3,0)-1),MATCH(W$2&\" Score\",'C. PoC Adj Factor Scoring'!$E$4:$J$4,0),TRUE)","v":1},{"$f":"VLOOKUP(OFFSET($B:$B,,MATCH(X$4,$B$4:$F$4,0)-1),OFFSET('C. PoC Adj Factor Scoring'!$E$5:$J$282,,MATCH(X$4,'C. PoC Adj Factor Scoring'!$E$3:$AH$3,0)-1),MATCH(X$2&\" Score\",'C. PoC Adj Factor Scoring'!$E$4:$J$4,0),TRUE)","v":1},{"$f":"VLOOKUP(OFFSET($B:$B,,MATCH(Y$4,$B$4:$F$4,0)-1),OFFSET('C. PoC Adj Factor Scoring'!$E$5:$J$282,,MATCH(Y$4,'C. PoC Adj Factor Scoring'!$E$3:$AH$3,0)-1),MATCH(Y$2&\" Score\",'C. PoC Adj Factor Scoring'!$E$4:$J$4,0),TRUE)","v":1},{"$f":"VLOOKUP(OFFSET($B:$B,,MATCH(Z$4,$B$4:$F$4,0)-1),OFFSET('C. PoC Adj Factor Scoring'!$E$5:$J$282,,MATCH(Z$4,'C. PoC Adj Factor Scoring'!$E$3:$AH$3,0)-1),MATCH(Z$2&\" Score\",'C. PoC Adj Factor Scoring'!$E$4:$J$4,0),TRUE)","v":1},{"$f":"VLOOKUP(OFFSET($B:$B,,MATCH(AA$4,$B$4:$F$4,0)-1),OFFSET('C. PoC Adj Factor Scoring'!$E$5:$J$282,,MATCH(AA$4,'C. PoC Adj Factor Scoring'!$E$3:$AH$3,0)-1),MATCH(AA$2&\" Score\",'C. PoC Adj Factor Scoring'!$E$4:$J$4,0),TRUE)","v":3},{"$f":"VLOOKUP(OFFSET($B:$B,,MATCH(AB$4,$B$4:$F$4,0)-1),OFFSET('C. PoC Adj Factor Scoring'!$E$5:$J$282,,MATCH(AB$4,'C. PoC Adj Factor Scoring'!$E$3:$AH$3,0)-1),MATCH(AB$2&\" Score\",'C. PoC Adj Factor Scoring'!$E$4:$J$4,0),TRUE)","v":1},{"$f":"VLOOKUP(OFFSET($B:$B,,MATCH(AC$4,$B$4:$F$4,0)-1),OFFSET('C. PoC Adj Factor Scoring'!$E$5:$J$282,,MATCH(AC$4,'C. PoC Adj Factor Scoring'!$E$3:$AH$3,0)-1),MATCH(AC$2&\" Score\",'C. PoC Adj Factor Scoring'!$E$4:$J$4,0),TRUE)","v":1},{"$f":"VLOOKUP(OFFSET($B:$B,,MATCH(AD$4,$B$4:$F$4,0)-1),OFFSET('C. PoC Adj Factor Scoring'!$E$5:$J$282,,MATCH(AD$4,'C. PoC Adj Factor Scoring'!$E$3:$AH$3,0)-1),MATCH(AD$2&\" Score\",'C. PoC Adj Factor Scoring'!$E$4:$J$4,0),TRUE)","v":1},{"$f":"VLOOKUP(OFFSET($B:$B,,MATCH(AE$4,$B$4:$F$4,0)-1),OFFSET('C. PoC Adj Factor Scoring'!$E$5:$J$282,,MATCH(AE$4,'C. PoC Adj Factor Scoring'!$E$3:$AH$3,0)-1),MATCH(AE$2&\" Score\",'C. PoC Adj Factor Scoring'!$E$4:$J$4,0),TRUE)","v":1}]
[{"$f":"'A. Population Info'!A28","v":1000276491},{"$f":"'A. Population Info'!L28","v":"OIL"},{"$f":"'A. Population Info'!M28","v":0},{"$f":"'A. Population Info'!N28","v":0},{"$f":"'A. Population Info'!O28","v":0},{"$f":"'A. Population Info'!P28","v":0},{"$f":"VLOOKUP(OFFSET($B:$B,,MATCH(G$4,$B$4:$F$4,0)-1),OFFSET('C. PoC Adj Factor Scoring'!$E$5:$J$282,,MATCH(G$4,'C. PoC Adj Factor Scoring'!$E$3:$AH$3,0)-1),MATCH(G$2&\" Score\",'C. PoC Adj Factor Scoring'!$E$4:$J$4,0),TRUE)","v":4},{"$f":"VLOOKUP(OFFSET($B:$B,,MATCH(H$4,$B$4:$F$4,0)-1),OFFSET('C. PoC Adj Factor Scoring'!$E$5:$J$282,,MATCH(H$4,'C. PoC Adj Factor Scoring'!$E$3:$AH$3,0)-1),MATCH(H$2&\" Score\",'C. PoC Adj Factor Scoring'!$E$4:$J$4,0),TRUE)","v":1},{"$f":"VLOOKUP(OFFSET($B:$B,,MATCH(I$4,$B$4:$F$4,0)-1),OFFSET('C. PoC Adj Factor Scoring'!$E$5:$J$282,,MATCH(I$4,'C. PoC Adj Factor Scoring'!$E$3:$AH$3,0)-1),MATCH(I$2&\" Score\",'C. PoC Adj Factor Scoring'!$E$4:$J$4,0),TRUE)","v":1},{"$f":"VLOOKUP(OFFSET($B:$B,,MATCH(J$4,$B$4:$F$4,0)-1),OFFSET('C. PoC Adj Factor Scoring'!$E$5:$J$282,,MATCH(J$4,'C. PoC Adj Factor Scoring'!$E$3:$AH$3,0)-1),MATCH(J$2&\" Score\",'C. PoC Adj Factor Scoring'!$E$4:$J$4,0),TRUE)","v":1},{"$f":"VLOOKUP(OFFSET($B:$B,,MATCH(K$4,$B$4:$F$4,0)-1),OFFSET('C. PoC Adj Factor Scoring'!$E$5:$J$282,,MATCH(K$4,'C. PoC Adj Factor Scoring'!$E$3:$AH$3,0)-1),MATCH(K$2&\" Score\",'C. PoC Adj Factor Scoring'!$E$4:$J$4,0),TRUE)","v":1},{"$f":"VLOOKUP(OFFSET($B:$B,,MATCH(L$4,$B$4:$F$4,0)-1),OFFSET('C. PoC Adj Factor Scoring'!$E$5:$J$282,,MATCH(L$4,'C. PoC Adj Factor Scoring'!$E$3:$AH$3,0)-1),MATCH(L$2&\" Score\",'C. PoC Adj Factor Scoring'!$E$4:$J$4,0),TRUE)","v":1},{"$f":"VLOOKUP(OFFSET($B:$B,,MATCH(M$4,$B$4:$F$4,0)-1),OFFSET('C. PoC Adj Factor Scoring'!$E$5:$J$282,,MATCH(M$4,'C. PoC Adj Factor Scoring'!$E$3:$AH$3,0)-1),MATCH(M$2&\" Score\",'C. PoC Adj Factor Scoring'!$E$4:$J$4,0),TRUE)","v":1},{"$f":"VLOOKUP(OFFSET($B:$B,,MATCH(N$4,$B$4:$F$4,0)-1),OFFSET('C. PoC Adj Factor Scoring'!$E$5:$J$282,,MATCH(N$4,'C. PoC Adj Factor Scoring'!$E$3:$AH$3,0)-1),MATCH(N$2&\" Score\",'C. PoC Adj Factor Scoring'!$E$4:$J$4,0),TRUE)","v":1},{"$f":"VLOOKUP(OFFSET($B:$B,,MATCH(O$4,$B$4:$F$4,0)-1),OFFSET('C. PoC Adj Factor Scoring'!$E$5:$J$282,,MATCH(O$4,'C. PoC Adj Factor Scoring'!$E$3:$AH$3,0)-1),MATCH(O$2&\" Score\",'C. PoC Adj Factor Scoring'!$E$4:$J$4,0),TRUE)","v":1},{"$f":"VLOOKUP(OFFSET($B:$B,,MATCH(P$4,$B$4:$F$4,0)-1),OFFSET('C. PoC Adj Factor Scoring'!$E$5:$J$282,,MATCH(P$4,'C. PoC Adj Factor Scoring'!$E$3:$AH$3,0)-1),MATCH(P$2&\" Score\",'C. PoC Adj Factor Scoring'!$E$4:$J$4,0),TRUE)","v":1},{"$f":"VLOOKUP(OFFSET($B:$B,,MATCH(Q$4,$B$4:$F$4,0)-1),OFFSET('C. PoC Adj Factor Scoring'!$E$5:$J$282,,MATCH(Q$4,'C. PoC Adj Factor Scoring'!$E$3:$AH$3,0)-1),MATCH(Q$2&\" Score\",'C. PoC Adj Factor Scoring'!$E$4:$J$4,0),TRUE)","v":1},{"$f":"VLOOKUP(OFFSET($B:$B,,MATCH(R$4,$B$4:$F$4,0)-1),OFFSET('C. PoC Adj Factor Scoring'!$E$5:$J$282,,MATCH(R$4,'C. PoC Adj Factor Scoring'!$E$3:$AH$3,0)-1),MATCH(R$2&\" Score\",'C. PoC Adj Factor Scoring'!$E$4:$J$4,0),TRUE)","v":1},{"$f":"VLOOKUP(OFFSET($B:$B,,MATCH(S$4,$B$4:$F$4,0)-1),OFFSET('C. PoC Adj Factor Scoring'!$E$5:$J$282,,MATCH(S$4,'C. PoC Adj Factor Scoring'!$E$3:$AH$3,0)-1),MATCH(S$2&\" Score\",'C. PoC Adj Factor Scoring'!$E$4:$J$4,0),TRUE)","v":1},{"$f":"VLOOKUP(OFFSET($B:$B,,MATCH(T$4,$B$4:$F$4,0)-1),OFFSET('C. PoC Adj Factor Scoring'!$E$5:$J$282,,MATCH(T$4,'C. PoC Adj Factor Scoring'!$E$3:$AH$3,0)-1),MATCH(T$2&\" Score\",'C. PoC Adj Factor Scoring'!$E$4:$J$4,0),TRUE)","v":1},{"$f":"VLOOKUP(OFFSET($B:$B,,MATCH(U$4,$B$4:$F$4,0)-1),OFFSET('C. PoC Adj Factor Scoring'!$E$5:$J$282,,MATCH(U$4,'C. PoC Adj Factor Scoring'!$E$3:$AH$3,0)-1),MATCH(U$2&\" Score\",'C. PoC Adj Factor Scoring'!$E$4:$J$4,0),TRUE)","v":1},{"$f":"VLOOKUP(OFFSET($B:$B,,MATCH(V$4,$B$4:$F$4,0)-1),OFFSET('C. PoC Adj Factor Scoring'!$E$5:$J$282,,MATCH(V$4,'C. PoC Adj Factor Scoring'!$E$3:$AH$3,0)-1),MATCH(V$2&\" Score\",'C. PoC Adj Factor Scoring'!$E$4:$J$4,0),TRUE)","v":1},{"$f":"VLOOKUP(OFFSET($B:$B,,MATCH(W$4,$B$4:$F$4,0)-1),OFFSET('C. PoC Adj Factor Scoring'!$E$5:$J$282,,MATCH(W$4,'C. PoC Adj Factor Scoring'!$E$3:$AH$3,0)-1),MATCH(W$2&\" Score\",'C. PoC Adj Factor Scoring'!$E$4:$J$4,0),TRUE)","v":1},{"$f":"VLOOKUP(OFFSET($B:$B,,MATCH(X$4,$B$4:$F$4,0)-1),OFFSET('C. PoC Adj Factor Scoring'!$E$5:$J$282,,MATCH(X$4,'C. PoC Adj Factor Scoring'!$E$3:$AH$3,0)-1),MATCH(X$2&\" Score\",'C. PoC Adj Factor Scoring'!$E$4:$J$4,0),TRUE)","v":1},{"$f":"VLOOKUP(OFFSET($B:$B,,MATCH(Y$4,$B$4:$F$4,0)-1),OFFSET('C. PoC Adj Factor Scoring'!$E$5:$J$282,,MATCH(Y$4,'C. PoC Adj Factor Scoring'!$E$3:$AH$3,0)-1),MATCH(Y$2&\" Score\",'C. PoC Adj Factor Scoring'!$E$4:$J$4,0),TRUE)","v":1},{"$f":"VLOOKUP(OFFSET($B:$B,,MATCH(Z$4,$B$4:$F$4,0)-1),OFFSET('C. PoC Adj Factor Scoring'!$E$5:$J$282,,MATCH(Z$4,'C. PoC Adj Factor Scoring'!$E$3:$AH$3,0)-1),MATCH(Z$2&\" Score\",'C. PoC Adj Factor Scoring'!$E$4:$J$4,0),TRUE)","v":1},{"$f":"VLOOKUP(OFFSET($B:$B,,MATCH(AA$4,$B$4:$F$4,0)-1),OFFSET('C. PoC Adj Factor Scoring'!$E$5:$J$282,,MATCH(AA$4,'C. PoC Adj Factor Scoring'!$E$3:$AH$3,0)-1),MATCH(AA$2&\" Score\",'C. PoC Adj Factor Scoring'!$E$4:$J$4,0),TRUE)","v":3},{"$f":"VLOOKUP(OFFSET($B:$B,,MATCH(AB$4,$B$4:$F$4,0)-1),OFFSET('C. PoC Adj Factor Scoring'!$E$5:$J$282,,MATCH(AB$4,'C. PoC Adj Factor Scoring'!$E$3:$AH$3,0)-1),MATCH(AB$2&\" Score\",'C. PoC Adj Factor Scoring'!$E$4:$J$4,0),TRUE)","v":1},{"$f":"VLOOKUP(OFFSET($B:$B,,MATCH(AC$4,$B$4:$F$4,0)-1),OFFSET('C. PoC Adj Factor Scoring'!$E$5:$J$282,,MATCH(AC$4,'C. PoC Adj Factor Scoring'!$E$3:$AH$3,0)-1),MATCH(AC$2&\" Score\",'C. PoC Adj Factor Scoring'!$E$4:$J$4,0),TRUE)","v":1},{"$f":"VLOOKUP(OFFSET($B:$B,,MATCH(AD$4,$B$4:$F$4,0)-1),OFFSET('C. PoC Adj Factor Scoring'!$E$5:$J$282,,MATCH(AD$4,'C. PoC Adj Factor Scoring'!$E$3:$AH$3,0)-1),MATCH(AD$2&\" Score\",'C. PoC Adj Factor Scoring'!$E$4:$J$4,0),TRUE)","v":1},{"$f":"VLOOKUP(OFFSET($B:$B,,MATCH(AE$4,$B$4:$F$4,0)-1),OFFSET('C. PoC Adj Factor Scoring'!$E$5:$J$282,,MATCH(AE$4,'C. PoC Adj Factor Scoring'!$E$3:$AH$3,0)-1),MATCH(AE$2&\" Score\",'C. PoC Adj Factor Scoring'!$E$4:$J$4,0),TRUE)","v":1}]
[{"$f":"'A. Population Info'!A29","v":1000276518},{"$f":"'A. Population Info'!L29","v":"OIL"},{"$f":"'A. Population Info'!M29","v":0},{"$f":"'A. Population Info'!N29","v":0},{"$f":"'A. Population Info'!O29","v":0},{"$f":"'A. Population Info'!P29","v":0},{"$f":"VLOOKUP(OFFSET($B:$B,,MATCH(G$4,$B$4:$F$4,0)-1),OFFSET('C. PoC Adj Factor Scoring'!$E$5:$J$282,,MATCH(G$4,'C. PoC Adj Factor Scoring'!$E$3:$AH$3,0)-1),MATCH(G$2&\" Score\",'C. PoC Adj Factor Scoring'!$E$4:$J$4,0),TRUE)","v":4},{"$f":"VLOOKUP(OFFSET($B:$B,,MATCH(H$4,$B$4:$F$4,0)-1),OFFSET('C. PoC Adj Factor Scoring'!$E$5:$J$282,,MATCH(H$4,'C. PoC Adj Factor Scoring'!$E$3:$AH$3,0)-1),MATCH(H$2&\" Score\",'C. PoC Adj Factor Scoring'!$E$4:$J$4,0),TRUE)","v":1},{"$f":"VLOOKUP(OFFSET($B:$B,,MATCH(I$4,$B$4:$F$4,0)-1),OFFSET('C. PoC Adj Factor Scoring'!$E$5:$J$282,,MATCH(I$4,'C. PoC Adj Factor Scoring'!$E$3:$AH$3,0)-1),MATCH(I$2&\" Score\",'C. PoC Adj Factor Scoring'!$E$4:$J$4,0),TRUE)","v":1},{"$f":"VLOOKUP(OFFSET($B:$B,,MATCH(J$4,$B$4:$F$4,0)-1),OFFSET('C. PoC Adj Factor Scoring'!$E$5:$J$282,,MATCH(J$4,'C. PoC Adj Factor Scoring'!$E$3:$AH$3,0)-1),MATCH(J$2&\" Score\",'C. PoC Adj Factor Scoring'!$E$4:$J$4,0),TRUE)","v":1},{"$f":"VLOOKUP(OFFSET($B:$B,,MATCH(K$4,$B$4:$F$4,0)-1),OFFSET('C. PoC Adj Factor Scoring'!$E$5:$J$282,,MATCH(K$4,'C. PoC Adj Factor Scoring'!$E$3:$AH$3,0)-1),MATCH(K$2&\" Score\",'C. PoC Adj Factor Scoring'!$E$4:$J$4,0),TRUE)","v":1},{"$f":"VLOOKUP(OFFSET($B:$B,,MATCH(L$4,$B$4:$F$4,0)-1),OFFSET('C. PoC Adj Factor Scoring'!$E$5:$J$282,,MATCH(L$4,'C. PoC Adj Factor Scoring'!$E$3:$AH$3,0)-1),MATCH(L$2&\" Score\",'C. PoC Adj Factor Scoring'!$E$4:$J$4,0),TRUE)","v":1},{"$f":"VLOOKUP(OFFSET($B:$B,,MATCH(M$4,$B$4:$F$4,0)-1),OFFSET('C. PoC Adj Factor Scoring'!$E$5:$J$282,,MATCH(M$4,'C. PoC Adj Factor Scoring'!$E$3:$AH$3,0)-1),MATCH(M$2&\" Score\",'C. PoC Adj Factor Scoring'!$E$4:$J$4,0),TRUE)","v":1},{"$f":"VLOOKUP(OFFSET($B:$B,,MATCH(N$4,$B$4:$F$4,0)-1),OFFSET('C. PoC Adj Factor Scoring'!$E$5:$J$282,,MATCH(N$4,'C. PoC Adj Factor Scoring'!$E$3:$AH$3,0)-1),MATCH(N$2&\" Score\",'C. PoC Adj Factor Scoring'!$E$4:$J$4,0),TRUE)","v":1},{"$f":"VLOOKUP(OFFSET($B:$B,,MATCH(O$4,$B$4:$F$4,0)-1),OFFSET('C. PoC Adj Factor Scoring'!$E$5:$J$282,,MATCH(O$4,'C. PoC Adj Factor Scoring'!$E$3:$AH$3,0)-1),MATCH(O$2&\" Score\",'C. PoC Adj Factor Scoring'!$E$4:$J$4,0),TRUE)","v":1},{"$f":"VLOOKUP(OFFSET($B:$B,,MATCH(P$4,$B$4:$F$4,0)-1),OFFSET('C. PoC Adj Factor Scoring'!$E$5:$J$282,,MATCH(P$4,'C. PoC Adj Factor Scoring'!$E$3:$AH$3,0)-1),MATCH(P$2&\" Score\",'C. PoC Adj Factor Scoring'!$E$4:$J$4,0),TRUE)","v":1},{"$f":"VLOOKUP(OFFSET($B:$B,,MATCH(Q$4,$B$4:$F$4,0)-1),OFFSET('C. PoC Adj Factor Scoring'!$E$5:$J$282,,MATCH(Q$4,'C. PoC Adj Factor Scoring'!$E$3:$AH$3,0)-1),MATCH(Q$2&\" Score\",'C. PoC Adj Factor Scoring'!$E$4:$J$4,0),TRUE)","v":1},{"$f":"VLOOKUP(OFFSET($B:$B,,MATCH(R$4,$B$4:$F$4,0)-1),OFFSET('C. PoC Adj Factor Scoring'!$E$5:$J$282,,MATCH(R$4,'C. PoC Adj Factor Scoring'!$E$3:$AH$3,0)-1),MATCH(R$2&\" Score\",'C. PoC Adj Factor Scoring'!$E$4:$J$4,0),TRUE)","v":1},{"$f":"VLOOKUP(OFFSET($B:$B,,MATCH(S$4,$B$4:$F$4,0)-1),OFFSET('C. PoC Adj Factor Scoring'!$E$5:$J$282,,MATCH(S$4,'C. PoC Adj Factor Scoring'!$E$3:$AH$3,0)-1),MATCH(S$2&\" Score\",'C. PoC Adj Factor Scoring'!$E$4:$J$4,0),TRUE)","v":1},{"$f":"VLOOKUP(OFFSET($B:$B,,MATCH(T$4,$B$4:$F$4,0)-1),OFFSET('C. PoC Adj Factor Scoring'!$E$5:$J$282,,MATCH(T$4,'C. PoC Adj Factor Scoring'!$E$3:$AH$3,0)-1),MATCH(T$2&\" Score\",'C. PoC Adj Factor Scoring'!$E$4:$J$4,0),TRUE)","v":1},{"$f":"VLOOKUP(OFFSET($B:$B,,MATCH(U$4,$B$4:$F$4,0)-1),OFFSET('C. PoC Adj Factor Scoring'!$E$5:$J$282,,MATCH(U$4,'C. PoC Adj Factor Scoring'!$E$3:$AH$3,0)-1),MATCH(U$2&\" Score\",'C. PoC Adj Factor Scoring'!$E$4:$J$4,0),TRUE)","v":1},{"$f":"VLOOKUP(OFFSET($B:$B,,MATCH(V$4,$B$4:$F$4,0)-1),OFFSET('C. PoC Adj Factor Scoring'!$E$5:$J$282,,MATCH(V$4,'C. PoC Adj Factor Scoring'!$E$3:$AH$3,0)-1),MATCH(V$2&\" Score\",'C. PoC Adj Factor Scoring'!$E$4:$J$4,0),TRUE)","v":1},{"$f":"VLOOKUP(OFFSET($B:$B,,MATCH(W$4,$B$4:$F$4,0)-1),OFFSET('C. PoC Adj Factor Scoring'!$E$5:$J$282,,MATCH(W$4,'C. PoC Adj Factor Scoring'!$E$3:$AH$3,0)-1),MATCH(W$2&\" Score\",'C. PoC Adj Factor Scoring'!$E$4:$J$4,0),TRUE)","v":1},{"$f":"VLOOKUP(OFFSET($B:$B,,MATCH(X$4,$B$4:$F$4,0)-1),OFFSET('C. PoC Adj Factor Scoring'!$E$5:$J$282,,MATCH(X$4,'C. PoC Adj Factor Scoring'!$E$3:$AH$3,0)-1),MATCH(X$2&\" Score\",'C. PoC Adj Factor Scoring'!$E$4:$J$4,0),TRUE)","v":1},{"$f":"VLOOKUP(OFFSET($B:$B,,MATCH(Y$4,$B$4:$F$4,0)-1),OFFSET('C. PoC Adj Factor Scoring'!$E$5:$J$282,,MATCH(Y$4,'C. PoC Adj Factor Scoring'!$E$3:$AH$3,0)-1),MATCH(Y$2&\" Score\",'C. PoC Adj Factor Scoring'!$E$4:$J$4,0),TRUE)","v":1},{"$f":"VLOOKUP(OFFSET($B:$B,,MATCH(Z$4,$B$4:$F$4,0)-1),OFFSET('C. PoC Adj Factor Scoring'!$E$5:$J$282,,MATCH(Z$4,'C. PoC Adj Factor Scoring'!$E$3:$AH$3,0)-1),MATCH(Z$2&\" Score\",'C. PoC Adj Factor Scoring'!$E$4:$J$4,0),TRUE)","v":1},{"$f":"VLOOKUP(OFFSET($B:$B,,MATCH(AA$4,$B$4:$F$4,0)-1),OFFSET('C. PoC Adj Factor Scoring'!$E$5:$J$282,,MATCH(AA$4,'C. PoC Adj Factor Scoring'!$E$3:$AH$3,0)-1),MATCH(AA$2&\" Score\",'C. PoC Adj Factor Scoring'!$E$4:$J$4,0),TRUE)","v":3},{"$f":"VLOOKUP(OFFSET($B:$B,,MATCH(AB$4,$B$4:$F$4,0)-1),OFFSET('C. PoC Adj Factor Scoring'!$E$5:$J$282,,MATCH(AB$4,'C. PoC Adj Factor Scoring'!$E$3:$AH$3,0)-1),MATCH(AB$2&\" Score\",'C. PoC Adj Factor Scoring'!$E$4:$J$4,0),TRUE)","v":1},{"$f":"VLOOKUP(OFFSET($B:$B,,MATCH(AC$4,$B$4:$F$4,0)-1),OFFSET('C. PoC Adj Factor Scoring'!$E$5:$J$282,,MATCH(AC$4,'C. PoC Adj Factor Scoring'!$E$3:$AH$3,0)-1),MATCH(AC$2&\" Score\",'C. PoC Adj Factor Scoring'!$E$4:$J$4,0),TRUE)","v":1},{"$f":"VLOOKUP(OFFSET($B:$B,,MATCH(AD$4,$B$4:$F$4,0)-1),OFFSET('C. PoC Adj Factor Scoring'!$E$5:$J$282,,MATCH(AD$4,'C. PoC Adj Factor Scoring'!$E$3:$AH$3,0)-1),MATCH(AD$2&\" Score\",'C. PoC Adj Factor Scoring'!$E$4:$J$4,0),TRUE)","v":1},{"$f":"VLOOKUP(OFFSET($B:$B,,MATCH(AE$4,$B$4:$F$4,0)-1),OFFSET('C. PoC Adj Factor Scoring'!$E$5:$J$282,,MATCH(AE$4,'C. PoC Adj Factor Scoring'!$E$3:$AH$3,0)-1),MATCH(AE$2&\" Score\",'C. PoC Adj Factor Scoring'!$E$4:$J$4,0),TRUE)","v":1}]
[{"$f":"'A. Population Info'!A30","v":1000276530},{"$f":"'A. Population Info'!L30","v":"OIL"},{"$f":"'A. Population Info'!M30","v":0},{"$f":"'A. Population Info'!N30","v":0},{"$f":"'A. Population Info'!O30","v":0},{"$f":"'A. Population Info'!P30","v":0},{"$f":"VLOOKUP(OFFSET($B:$B,,MATCH(G$4,$B$4:$F$4,0)-1),OFFSET('C. PoC Adj Factor Scoring'!$E$5:$J$282,,MATCH(G$4,'C. PoC Adj Factor Scoring'!$E$3:$AH$3,0)-1),MATCH(G$2&\" Score\",'C. PoC Adj Factor Scoring'!$E$4:$J$4,0),TRUE)","v":4},{"$f":"VLOOKUP(OFFSET($B:$B,,MATCH(H$4,$B$4:$F$4,0)-1),OFFSET('C. PoC Adj Factor Scoring'!$E$5:$J$282,,MATCH(H$4,'C. PoC Adj Factor Scoring'!$E$3:$AH$3,0)-1),MATCH(H$2&\" Score\",'C. PoC Adj Factor Scoring'!$E$4:$J$4,0),TRUE)","v":1},{"$f":"VLOOKUP(OFFSET($B:$B,,MATCH(I$4,$B$4:$F$4,0)-1),OFFSET('C. PoC Adj Factor Scoring'!$E$5:$J$282,,MATCH(I$4,'C. PoC Adj Factor Scoring'!$E$3:$AH$3,0)-1),MATCH(I$2&\" Score\",'C. PoC Adj Factor Scoring'!$E$4:$J$4,0),TRUE)","v":1},{"$f":"VLOOKUP(OFFSET($B:$B,,MATCH(J$4,$B$4:$F$4,0)-1),OFFSET('C. PoC Adj Factor Scoring'!$E$5:$J$282,,MATCH(J$4,'C. PoC Adj Factor Scoring'!$E$3:$AH$3,0)-1),MATCH(J$2&\" Score\",'C. PoC Adj Factor Scoring'!$E$4:$J$4,0),TRUE)","v":1},{"$f":"VLOOKUP(OFFSET($B:$B,,MATCH(K$4,$B$4:$F$4,0)-1),OFFSET('C. PoC Adj Factor Scoring'!$E$5:$J$282,,MATCH(K$4,'C. PoC Adj Factor Scoring'!$E$3:$AH$3,0)-1),MATCH(K$2&\" Score\",'C. PoC Adj Factor Scoring'!$E$4:$J$4,0),TRUE)","v":1},{"$f":"VLOOKUP(OFFSET($B:$B,,MATCH(L$4,$B$4:$F$4,0)-1),OFFSET('C. PoC Adj Factor Scoring'!$E$5:$J$282,,MATCH(L$4,'C. PoC Adj Factor Scoring'!$E$3:$AH$3,0)-1),MATCH(L$2&\" Score\",'C. PoC Adj Factor Scoring'!$E$4:$J$4,0),TRUE)","v":1},{"$f":"VLOOKUP(OFFSET($B:$B,,MATCH(M$4,$B$4:$F$4,0)-1),OFFSET('C. PoC Adj Factor Scoring'!$E$5:$J$282,,MATCH(M$4,'C. PoC Adj Factor Scoring'!$E$3:$AH$3,0)-1),MATCH(M$2&\" Score\",'C. PoC Adj Factor Scoring'!$E$4:$J$4,0),TRUE)","v":1},{"$f":"VLOOKUP(OFFSET($B:$B,,MATCH(N$4,$B$4:$F$4,0)-1),OFFSET('C. PoC Adj Factor Scoring'!$E$5:$J$282,,MATCH(N$4,'C. PoC Adj Factor Scoring'!$E$3:$AH$3,0)-1),MATCH(N$2&\" Score\",'C. PoC Adj Factor Scoring'!$E$4:$J$4,0),TRUE)","v":1},{"$f":"VLOOKUP(OFFSET($B:$B,,MATCH(O$4,$B$4:$F$4,0)-1),OFFSET('C. PoC Adj Factor Scoring'!$E$5:$J$282,,MATCH(O$4,'C. PoC Adj Factor Scoring'!$E$3:$AH$3,0)-1),MATCH(O$2&\" Score\",'C. PoC Adj Factor Scoring'!$E$4:$J$4,0),TRUE)","v":1},{"$f":"VLOOKUP(OFFSET($B:$B,,MATCH(P$4,$B$4:$F$4,0)-1),OFFSET('C. PoC Adj Factor Scoring'!$E$5:$J$282,,MATCH(P$4,'C. PoC Adj Factor Scoring'!$E$3:$AH$3,0)-1),MATCH(P$2&\" Score\",'C. PoC Adj Factor Scoring'!$E$4:$J$4,0),TRUE)","v":1},{"$f":"VLOOKUP(OFFSET($B:$B,,MATCH(Q$4,$B$4:$F$4,0)-1),OFFSET('C. PoC Adj Factor Scoring'!$E$5:$J$282,,MATCH(Q$4,'C. PoC Adj Factor Scoring'!$E$3:$AH$3,0)-1),MATCH(Q$2&\" Score\",'C. PoC Adj Factor Scoring'!$E$4:$J$4,0),TRUE)","v":1},{"$f":"VLOOKUP(OFFSET($B:$B,,MATCH(R$4,$B$4:$F$4,0)-1),OFFSET('C. PoC Adj Factor Scoring'!$E$5:$J$282,,MATCH(R$4,'C. PoC Adj Factor Scoring'!$E$3:$AH$3,0)-1),MATCH(R$2&\" Score\",'C. PoC Adj Factor Scoring'!$E$4:$J$4,0),TRUE)","v":1},{"$f":"VLOOKUP(OFFSET($B:$B,,MATCH(S$4,$B$4:$F$4,0)-1),OFFSET('C. PoC Adj Factor Scoring'!$E$5:$J$282,,MATCH(S$4,'C. PoC Adj Factor Scoring'!$E$3:$AH$3,0)-1),MATCH(S$2&\" Score\",'C. PoC Adj Factor Scoring'!$E$4:$J$4,0),TRUE)","v":1},{"$f":"VLOOKUP(OFFSET($B:$B,,MATCH(T$4,$B$4:$F$4,0)-1),OFFSET('C. PoC Adj Factor Scoring'!$E$5:$J$282,,MATCH(T$4,'C. PoC Adj Factor Scoring'!$E$3:$AH$3,0)-1),MATCH(T$2&\" Score\",'C. PoC Adj Factor Scoring'!$E$4:$J$4,0),TRUE)","v":1},{"$f":"VLOOKUP(OFFSET($B:$B,,MATCH(U$4,$B$4:$F$4,0)-1),OFFSET('C. PoC Adj Factor Scoring'!$E$5:$J$282,,MATCH(U$4,'C. PoC Adj Factor Scoring'!$E$3:$AH$3,0)-1),MATCH(U$2&\" Score\",'C. PoC Adj Factor Scoring'!$E$4:$J$4,0),TRUE)","v":1},{"$f":"VLOOKUP(OFFSET($B:$B,,MATCH(V$4,$B$4:$F$4,0)-1),OFFSET('C. PoC Adj Factor Scoring'!$E$5:$J$282,,MATCH(V$4,'C. PoC Adj Factor Scoring'!$E$3:$AH$3,0)-1),MATCH(V$2&\" Score\",'C. PoC Adj Factor Scoring'!$E$4:$J$4,0),TRUE)","v":1},{"$f":"VLOOKUP(OFFSET($B:$B,,MATCH(W$4,$B$4:$F$4,0)-1),OFFSET('C. PoC Adj Factor Scoring'!$E$5:$J$282,,MATCH(W$4,'C. PoC Adj Factor Scoring'!$E$3:$AH$3,0)-1),MATCH(W$2&\" Score\",'C. PoC Adj Factor Scoring'!$E$4:$J$4,0),TRUE)","v":1},{"$f":"VLOOKUP(OFFSET($B:$B,,MATCH(X$4,$B$4:$F$4,0)-1),OFFSET('C. PoC Adj Factor Scoring'!$E$5:$J$282,,MATCH(X$4,'C. PoC Adj Factor Scoring'!$E$3:$AH$3,0)-1),MATCH(X$2&\" Score\",'C. PoC Adj Factor Scoring'!$E$4:$J$4,0),TRUE)","v":1},{"$f":"VLOOKUP(OFFSET($B:$B,,MATCH(Y$4,$B$4:$F$4,0)-1),OFFSET('C. PoC Adj Factor Scoring'!$E$5:$J$282,,MATCH(Y$4,'C. PoC Adj Factor Scoring'!$E$3:$AH$3,0)-1),MATCH(Y$2&\" Score\",'C. PoC Adj Factor Scoring'!$E$4:$J$4,0),TRUE)","v":1},{"$f":"VLOOKUP(OFFSET($B:$B,,MATCH(Z$4,$B$4:$F$4,0)-1),OFFSET('C. PoC Adj Factor Scoring'!$E$5:$J$282,,MATCH(Z$4,'C. PoC Adj Factor Scoring'!$E$3:$AH$3,0)-1),MATCH(Z$2&\" Score\",'C. PoC Adj Factor Scoring'!$E$4:$J$4,0),TRUE)","v":1},{"$f":"VLOOKUP(OFFSET($B:$B,,MATCH(AA$4,$B$4:$F$4,0)-1),OFFSET('C. PoC Adj Factor Scoring'!$E$5:$J$282,,MATCH(AA$4,'C. PoC Adj Factor Scoring'!$E$3:$AH$3,0)-1),MATCH(AA$2&\" Score\",'C. PoC Adj Factor Scoring'!$E$4:$J$4,0),TRUE)","v":3},{"$f":"VLOOKUP(OFFSET($B:$B,,MATCH(AB$4,$B$4:$F$4,0)-1),OFFSET('C. PoC Adj Factor Scoring'!$E$5:$J$282,,MATCH(AB$4,'C. PoC Adj Factor Scoring'!$E$3:$AH$3,0)-1),MATCH(AB$2&\" Score\",'C. PoC Adj Factor Scoring'!$E$4:$J$4,0),TRUE)","v":1},{"$f":"VLOOKUP(OFFSET($B:$B,,MATCH(AC$4,$B$4:$F$4,0)-1),OFFSET('C. PoC Adj Factor Scoring'!$E$5:$J$282,,MATCH(AC$4,'C. PoC Adj Factor Scoring'!$E$3:$AH$3,0)-1),MATCH(AC$2&\" Score\",'C. PoC Adj Factor Scoring'!$E$4:$J$4,0),TRUE)","v":1},{"$f":"VLOOKUP(OFFSET($B:$B,,MATCH(AD$4,$B$4:$F$4,0)-1),OFFSET('C. PoC Adj Factor Scoring'!$E$5:$J$282,,MATCH(AD$4,'C. PoC Adj Factor Scoring'!$E$3:$AH$3,0)-1),MATCH(AD$2&\" Score\",'C. PoC Adj Factor Scoring'!$E$4:$J$4,0),TRUE)","v":1},{"$f":"VLOOKUP(OFFSET($B:$B,,MATCH(AE$4,$B$4:$F$4,0)-1),OFFSET('C. PoC Adj Factor Scoring'!$E$5:$J$282,,MATCH(AE$4,'C. PoC Adj Factor Scoring'!$E$3:$AH$3,0)-1),MATCH(AE$2&\" Score\",'C. PoC Adj Factor Scoring'!$E$4:$J$4,0),TRUE)","v":1}]
[{"$f":"'A. Population Info'!A31","v":1000276542},{"$f":"'A. Population Info'!L31","v":"OIL"},{"$f":"'A. Population Info'!M31","v":0},{"$f":"'A. Population Info'!N31","v":0},{"$f":"'A. Population Info'!O31","v":0},{"$f":"'A. Population Info'!P31","v":0},{"$f":"VLOOKUP(OFFSET($B:$B,,MATCH(G$4,$B$4:$F$4,0)-1),OFFSET('C. PoC Adj Factor Scoring'!$E$5:$J$282,,MATCH(G$4,'C. PoC Adj Factor Scoring'!$E$3:$AH$3,0)-1),MATCH(G$2&\" Score\",'C. PoC Adj Factor Scoring'!$E$4:$J$4,0),TRUE)","v":4},{"$f":"VLOOKUP(OFFSET($B:$B,,MATCH(H$4,$B$4:$F$4,0)-1),OFFSET('C. PoC Adj Factor Scoring'!$E$5:$J$282,,MATCH(H$4,'C. PoC Adj Factor Scoring'!$E$3:$AH$3,0)-1),MATCH(H$2&\" Score\",'C. PoC Adj Factor Scoring'!$E$4:$J$4,0),TRUE)","v":1},{"$f":"VLOOKUP(OFFSET($B:$B,,MATCH(I$4,$B$4:$F$4,0)-1),OFFSET('C. PoC Adj Factor Scoring'!$E$5:$J$282,,MATCH(I$4,'C. PoC Adj Factor Scoring'!$E$3:$AH$3,0)-1),MATCH(I$2&\" Score\",'C. PoC Adj Factor Scoring'!$E$4:$J$4,0),TRUE)","v":1},{"$f":"VLOOKUP(OFFSET($B:$B,,MATCH(J$4,$B$4:$F$4,0)-1),OFFSET('C. PoC Adj Factor Scoring'!$E$5:$J$282,,MATCH(J$4,'C. PoC Adj Factor Scoring'!$E$3:$AH$3,0)-1),MATCH(J$2&\" Score\",'C. PoC Adj Factor Scoring'!$E$4:$J$4,0),TRUE)","v":1},{"$f":"VLOOKUP(OFFSET($B:$B,,MATCH(K$4,$B$4:$F$4,0)-1),OFFSET('C. PoC Adj Factor Scoring'!$E$5:$J$282,,MATCH(K$4,'C. PoC Adj Factor Scoring'!$E$3:$AH$3,0)-1),MATCH(K$2&\" Score\",'C. PoC Adj Factor Scoring'!$E$4:$J$4,0),TRUE)","v":1},{"$f":"VLOOKUP(OFFSET($B:$B,,MATCH(L$4,$B$4:$F$4,0)-1),OFFSET('C. PoC Adj Factor Scoring'!$E$5:$J$282,,MATCH(L$4,'C. PoC Adj Factor Scoring'!$E$3:$AH$3,0)-1),MATCH(L$2&\" Score\",'C. PoC Adj Factor Scoring'!$E$4:$J$4,0),TRUE)","v":1},{"$f":"VLOOKUP(OFFSET($B:$B,,MATCH(M$4,$B$4:$F$4,0)-1),OFFSET('C. PoC Adj Factor Scoring'!$E$5:$J$282,,MATCH(M$4,'C. PoC Adj Factor Scoring'!$E$3:$AH$3,0)-1),MATCH(M$2&\" Score\",'C. PoC Adj Factor Scoring'!$E$4:$J$4,0),TRUE)","v":1},{"$f":"VLOOKUP(OFFSET($B:$B,,MATCH(N$4,$B$4:$F$4,0)-1),OFFSET('C. PoC Adj Factor Scoring'!$E$5:$J$282,,MATCH(N$4,'C. PoC Adj Factor Scoring'!$E$3:$AH$3,0)-1),MATCH(N$2&\" Score\",'C. PoC Adj Factor Scoring'!$E$4:$J$4,0),TRUE)","v":1},{"$f":"VLOOKUP(OFFSET($B:$B,,MATCH(O$4,$B$4:$F$4,0)-1),OFFSET('C. PoC Adj Factor Scoring'!$E$5:$J$282,,MATCH(O$4,'C. PoC Adj Factor Scoring'!$E$3:$AH$3,0)-1),MATCH(O$2&\" Score\",'C. PoC Adj Factor Scoring'!$E$4:$J$4,0),TRUE)","v":1},{"$f":"VLOOKUP(OFFSET($B:$B,,MATCH(P$4,$B$4:$F$4,0)-1),OFFSET('C. PoC Adj Factor Scoring'!$E$5:$J$282,,MATCH(P$4,'C. PoC Adj Factor Scoring'!$E$3:$AH$3,0)-1),MATCH(P$2&\" Score\",'C. PoC Adj Factor Scoring'!$E$4:$J$4,0),TRUE)","v":1},{"$f":"VLOOKUP(OFFSET($B:$B,,MATCH(Q$4,$B$4:$F$4,0)-1),OFFSET('C. PoC Adj Factor Scoring'!$E$5:$J$282,,MATCH(Q$4,'C. PoC Adj Factor Scoring'!$E$3:$AH$3,0)-1),MATCH(Q$2&\" Score\",'C. PoC Adj Factor Scoring'!$E$4:$J$4,0),TRUE)","v":1},{"$f":"VLOOKUP(OFFSET($B:$B,,MATCH(R$4,$B$4:$F$4,0)-1),OFFSET('C. PoC Adj Factor Scoring'!$E$5:$J$282,,MATCH(R$4,'C. PoC Adj Factor Scoring'!$E$3:$AH$3,0)-1),MATCH(R$2&\" Score\",'C. PoC Adj Factor Scoring'!$E$4:$J$4,0),TRUE)","v":1},{"$f":"VLOOKUP(OFFSET($B:$B,,MATCH(S$4,$B$4:$F$4,0)-1),OFFSET('C. PoC Adj Factor Scoring'!$E$5:$J$282,,MATCH(S$4,'C. PoC Adj Factor Scoring'!$E$3:$AH$3,0)-1),MATCH(S$2&\" Score\",'C. PoC Adj Factor Scoring'!$E$4:$J$4,0),TRUE)","v":1},{"$f":"VLOOKUP(OFFSET($B:$B,,MATCH(T$4,$B$4:$F$4,0)-1),OFFSET('C. PoC Adj Factor Scoring'!$E$5:$J$282,,MATCH(T$4,'C. PoC Adj Factor Scoring'!$E$3:$AH$3,0)-1),MATCH(T$2&\" Score\",'C. PoC Adj Factor Scoring'!$E$4:$J$4,0),TRUE)","v":1},{"$f":"VLOOKUP(OFFSET($B:$B,,MATCH(U$4,$B$4:$F$4,0)-1),OFFSET('C. PoC Adj Factor Scoring'!$E$5:$J$282,,MATCH(U$4,'C. PoC Adj Factor Scoring'!$E$3:$AH$3,0)-1),MATCH(U$2&\" Score\",'C. PoC Adj Factor Scoring'!$E$4:$J$4,0),TRUE)","v":1},{"$f":"VLOOKUP(OFFSET($B:$B,,MATCH(V$4,$B$4:$F$4,0)-1),OFFSET('C. PoC Adj Factor Scoring'!$E$5:$J$282,,MATCH(V$4,'C. PoC Adj Factor Scoring'!$E$3:$AH$3,0)-1),MATCH(V$2&\" Score\",'C. PoC Adj Factor Scoring'!$E$4:$J$4,0),TRUE)","v":1},{"$f":"VLOOKUP(OFFSET($B:$B,,MATCH(W$4,$B$4:$F$4,0)-1),OFFSET('C. PoC Adj Factor Scoring'!$E$5:$J$282,,MATCH(W$4,'C. PoC Adj Factor Scoring'!$E$3:$AH$3,0)-1),MATCH(W$2&\" Score\",'C. PoC Adj Factor Scoring'!$E$4:$J$4,0),TRUE)","v":1},{"$f":"VLOOKUP(OFFSET($B:$B,,MATCH(X$4,$B$4:$F$4,0)-1),OFFSET('C. PoC Adj Factor Scoring'!$E$5:$J$282,,MATCH(X$4,'C. PoC Adj Factor Scoring'!$E$3:$AH$3,0)-1),MATCH(X$2&\" Score\",'C. PoC Adj Factor Scoring'!$E$4:$J$4,0),TRUE)","v":1},{"$f":"VLOOKUP(OFFSET($B:$B,,MATCH(Y$4,$B$4:$F$4,0)-1),OFFSET('C. PoC Adj Factor Scoring'!$E$5:$J$282,,MATCH(Y$4,'C. PoC Adj Factor Scoring'!$E$3:$AH$3,0)-1),MATCH(Y$2&\" Score\",'C. PoC Adj Factor Scoring'!$E$4:$J$4,0),TRUE)","v":1},{"$f":"VLOOKUP(OFFSET($B:$B,,MATCH(Z$4,$B$4:$F$4,0)-1),OFFSET('C. PoC Adj Factor Scoring'!$E$5:$J$282,,MATCH(Z$4,'C. PoC Adj Factor Scoring'!$E$3:$AH$3,0)-1),MATCH(Z$2&\" Score\",'C. PoC Adj Factor Scoring'!$E$4:$J$4,0),TRUE)","v":1},{"$f":"VLOOKUP(OFFSET($B:$B,,MATCH(AA$4,$B$4:$F$4,0)-1),OFFSET('C. PoC Adj Factor Scoring'!$E$5:$J$282,,MATCH(AA$4,'C. PoC Adj Factor Scoring'!$E$3:$AH$3,0)-1),MATCH(AA$2&\" Score\",'C. PoC Adj Factor Scoring'!$E$4:$J$4,0),TRUE)","v":3},{"$f":"VLOOKUP(OFFSET($B:$B,,MATCH(AB$4,$B$4:$F$4,0)-1),OFFSET('C. PoC Adj Factor Scoring'!$E$5:$J$282,,MATCH(AB$4,'C. PoC Adj Factor Scoring'!$E$3:$AH$3,0)-1),MATCH(AB$2&\" Score\",'C. PoC Adj Factor Scoring'!$E$4:$J$4,0),TRUE)","v":1},{"$f":"VLOOKUP(OFFSET($B:$B,,MATCH(AC$4,$B$4:$F$4,0)-1),OFFSET('C. PoC Adj Factor Scoring'!$E$5:$J$282,,MATCH(AC$4,'C. PoC Adj Factor Scoring'!$E$3:$AH$3,0)-1),MATCH(AC$2&\" Score\",'C. PoC Adj Factor Scoring'!$E$4:$J$4,0),TRUE)","v":1},{"$f":"VLOOKUP(OFFSET($B:$B,,MATCH(AD$4,$B$4:$F$4,0)-1),OFFSET('C. PoC Adj Factor Scoring'!$E$5:$J$282,,MATCH(AD$4,'C. PoC Adj Factor Scoring'!$E$3:$AH$3,0)-1),MATCH(AD$2&\" Score\",'C. PoC Adj Factor Scoring'!$E$4:$J$4,0),TRUE)","v":1},{"$f":"VLOOKUP(OFFSET($B:$B,,MATCH(AE$4,$B$4:$F$4,0)-1),OFFSET('C. PoC Adj Factor Scoring'!$E$5:$J$282,,MATCH(AE$4,'C. PoC Adj Factor Scoring'!$E$3:$AH$3,0)-1),MATCH(AE$2&\" Score\",'C. PoC Adj Factor Scoring'!$E$4:$J$4,0),TRUE)","v":1}]
[{"$f":"'A. Population Info'!A32","v":1000299647},{"$f":"'A. Population Info'!L32","v":"OIL"},{"$f":"'A. Population Info'!M32","v":0},{"$f":"'A. Population Info'!N32","v":0},{"$f":"'A. Population Info'!O32","v":0},{"$f":"'A. Population Info'!P32","v":0},{"$f":"VLOOKUP(OFFSET($B:$B,,MATCH(G$4,$B$4:$F$4,0)-1),OFFSET('C. PoC Adj Factor Scoring'!$E$5:$J$282,,MATCH(G$4,'C. PoC Adj Factor Scoring'!$E$3:$AH$3,0)-1),MATCH(G$2&\" Score\",'C. PoC Adj Factor Scoring'!$E$4:$J$4,0),TRUE)","v":4},{"$f":"VLOOKUP(OFFSET($B:$B,,MATCH(H$4,$B$4:$F$4,0)-1),OFFSET('C. PoC Adj Factor Scoring'!$E$5:$J$282,,MATCH(H$4,'C. PoC Adj Factor Scoring'!$E$3:$AH$3,0)-1),MATCH(H$2&\" Score\",'C. PoC Adj Factor Scoring'!$E$4:$J$4,0),TRUE)","v":1},{"$f":"VLOOKUP(OFFSET($B:$B,,MATCH(I$4,$B$4:$F$4,0)-1),OFFSET('C. PoC Adj Factor Scoring'!$E$5:$J$282,,MATCH(I$4,'C. PoC Adj Factor Scoring'!$E$3:$AH$3,0)-1),MATCH(I$2&\" Score\",'C. PoC Adj Factor Scoring'!$E$4:$J$4,0),TRUE)","v":1},{"$f":"VLOOKUP(OFFSET($B:$B,,MATCH(J$4,$B$4:$F$4,0)-1),OFFSET('C. PoC Adj Factor Scoring'!$E$5:$J$282,,MATCH(J$4,'C. PoC Adj Factor Scoring'!$E$3:$AH$3,0)-1),MATCH(J$2&\" Score\",'C. PoC Adj Factor Scoring'!$E$4:$J$4,0),TRUE)","v":1},{"$f":"VLOOKUP(OFFSET($B:$B,,MATCH(K$4,$B$4:$F$4,0)-1),OFFSET('C. PoC Adj Factor Scoring'!$E$5:$J$282,,MATCH(K$4,'C. PoC Adj Factor Scoring'!$E$3:$AH$3,0)-1),MATCH(K$2&\" Score\",'C. PoC Adj Factor Scoring'!$E$4:$J$4,0),TRUE)","v":1},{"$f":"VLOOKUP(OFFSET($B:$B,,MATCH(L$4,$B$4:$F$4,0)-1),OFFSET('C. PoC Adj Factor Scoring'!$E$5:$J$282,,MATCH(L$4,'C. PoC Adj Factor Scoring'!$E$3:$AH$3,0)-1),MATCH(L$2&\" Score\",'C. PoC Adj Factor Scoring'!$E$4:$J$4,0),TRUE)","v":1},{"$f":"VLOOKUP(OFFSET($B:$B,,MATCH(M$4,$B$4:$F$4,0)-1),OFFSET('C. PoC Adj Factor Scoring'!$E$5:$J$282,,MATCH(M$4,'C. PoC Adj Factor Scoring'!$E$3:$AH$3,0)-1),MATCH(M$2&\" Score\",'C. PoC Adj Factor Scoring'!$E$4:$J$4,0),TRUE)","v":1},{"$f":"VLOOKUP(OFFSET($B:$B,,MATCH(N$4,$B$4:$F$4,0)-1),OFFSET('C. PoC Adj Factor Scoring'!$E$5:$J$282,,MATCH(N$4,'C. PoC Adj Factor Scoring'!$E$3:$AH$3,0)-1),MATCH(N$2&\" Score\",'C. PoC Adj Factor Scoring'!$E$4:$J$4,0),TRUE)","v":1},{"$f":"VLOOKUP(OFFSET($B:$B,,MATCH(O$4,$B$4:$F$4,0)-1),OFFSET('C. PoC Adj Factor Scoring'!$E$5:$J$282,,MATCH(O$4,'C. PoC Adj Factor Scoring'!$E$3:$AH$3,0)-1),MATCH(O$2&\" Score\",'C. PoC Adj Factor Scoring'!$E$4:$J$4,0),TRUE)","v":1},{"$f":"VLOOKUP(OFFSET($B:$B,,MATCH(P$4,$B$4:$F$4,0)-1),OFFSET('C. PoC Adj Factor Scoring'!$E$5:$J$282,,MATCH(P$4,'C. PoC Adj Factor Scoring'!$E$3:$AH$3,0)-1),MATCH(P$2&\" Score\",'C. PoC Adj Factor Scoring'!$E$4:$J$4,0),TRUE)","v":1},{"$f":"VLOOKUP(OFFSET($B:$B,,MATCH(Q$4,$B$4:$F$4,0)-1),OFFSET('C. PoC Adj Factor Scoring'!$E$5:$J$282,,MATCH(Q$4,'C. PoC Adj Factor Scoring'!$E$3:$AH$3,0)-1),MATCH(Q$2&\" Score\",'C. PoC Adj Factor Scoring'!$E$4:$J$4,0),TRUE)","v":1},{"$f":"VLOOKUP(OFFSET($B:$B,,MATCH(R$4,$B$4:$F$4,0)-1),OFFSET('C. PoC Adj Factor Scoring'!$E$5:$J$282,,MATCH(R$4,'C. PoC Adj Factor Scoring'!$E$3:$AH$3,0)-1),MATCH(R$2&\" Score\",'C. PoC Adj Factor Scoring'!$E$4:$J$4,0),TRUE)","v":1},{"$f":"VLOOKUP(OFFSET($B:$B,,MATCH(S$4,$B$4:$F$4,0)-1),OFFSET('C. PoC Adj Factor Scoring'!$E$5:$J$282,,MATCH(S$4,'C. PoC Adj Factor Scoring'!$E$3:$AH$3,0)-1),MATCH(S$2&\" Score\",'C. PoC Adj Factor Scoring'!$E$4:$J$4,0),TRUE)","v":1},{"$f":"VLOOKUP(OFFSET($B:$B,,MATCH(T$4,$B$4:$F$4,0)-1),OFFSET('C. PoC Adj Factor Scoring'!$E$5:$J$282,,MATCH(T$4,'C. PoC Adj Factor Scoring'!$E$3:$AH$3,0)-1),MATCH(T$2&\" Score\",'C. PoC Adj Factor Scoring'!$E$4:$J$4,0),TRUE)","v":1},{"$f":"VLOOKUP(OFFSET($B:$B,,MATCH(U$4,$B$4:$F$4,0)-1),OFFSET('C. PoC Adj Factor Scoring'!$E$5:$J$282,,MATCH(U$4,'C. PoC Adj Factor Scoring'!$E$3:$AH$3,0)-1),MATCH(U$2&\" Score\",'C. PoC Adj Factor Scoring'!$E$4:$J$4,0),TRUE)","v":1},{"$f":"VLOOKUP(OFFSET($B:$B,,MATCH(V$4,$B$4:$F$4,0)-1),OFFSET('C. PoC Adj Factor Scoring'!$E$5:$J$282,,MATCH(V$4,'C. PoC Adj Factor Scoring'!$E$3:$AH$3,0)-1),MATCH(V$2&\" Score\",'C. PoC Adj Factor Scoring'!$E$4:$J$4,0),TRUE)","v":1},{"$f":"VLOOKUP(OFFSET($B:$B,,MATCH(W$4,$B$4:$F$4,0)-1),OFFSET('C. PoC Adj Factor Scoring'!$E$5:$J$282,,MATCH(W$4,'C. PoC Adj Factor Scoring'!$E$3:$AH$3,0)-1),MATCH(W$2&\" Score\",'C. PoC Adj Factor Scoring'!$E$4:$J$4,0),TRUE)","v":1},{"$f":"VLOOKUP(OFFSET($B:$B,,MATCH(X$4,$B$4:$F$4,0)-1),OFFSET('C. PoC Adj Factor Scoring'!$E$5:$J$282,,MATCH(X$4,'C. PoC Adj Factor Scoring'!$E$3:$AH$3,0)-1),MATCH(X$2&\" Score\",'C. PoC Adj Factor Scoring'!$E$4:$J$4,0),TRUE)","v":1},{"$f":"VLOOKUP(OFFSET($B:$B,,MATCH(Y$4,$B$4:$F$4,0)-1),OFFSET('C. PoC Adj Factor Scoring'!$E$5:$J$282,,MATCH(Y$4,'C. PoC Adj Factor Scoring'!$E$3:$AH$3,0)-1),MATCH(Y$2&\" Score\",'C. PoC Adj Factor Scoring'!$E$4:$J$4,0),TRUE)","v":1},{"$f":"VLOOKUP(OFFSET($B:$B,,MATCH(Z$4,$B$4:$F$4,0)-1),OFFSET('C. PoC Adj Factor Scoring'!$E$5:$J$282,,MATCH(Z$4,'C. PoC Adj Factor Scoring'!$E$3:$AH$3,0)-1),MATCH(Z$2&\" Score\",'C. PoC Adj Factor Scoring'!$E$4:$J$4,0),TRUE)","v":1},{"$f":"VLOOKUP(OFFSET($B:$B,,MATCH(AA$4,$B$4:$F$4,0)-1),OFFSET('C. PoC Adj Factor Scoring'!$E$5:$J$282,,MATCH(AA$4,'C. PoC Adj Factor Scoring'!$E$3:$AH$3,0)-1),MATCH(AA$2&\" Score\",'C. PoC Adj Factor Scoring'!$E$4:$J$4,0),TRUE)","v":3},{"$f":"VLOOKUP(OFFSET($B:$B,,MATCH(AB$4,$B$4:$F$4,0)-1),OFFSET('C. PoC Adj Factor Scoring'!$E$5:$J$282,,MATCH(AB$4,'C. PoC Adj Factor Scoring'!$E$3:$AH$3,0)-1),MATCH(AB$2&\" Score\",'C. PoC Adj Factor Scoring'!$E$4:$J$4,0),TRUE)","v":1},{"$f":"VLOOKUP(OFFSET($B:$B,,MATCH(AC$4,$B$4:$F$4,0)-1),OFFSET('C. PoC Adj Factor Scoring'!$E$5:$J$282,,MATCH(AC$4,'C. PoC Adj Factor Scoring'!$E$3:$AH$3,0)-1),MATCH(AC$2&\" Score\",'C. PoC Adj Factor Scoring'!$E$4:$J$4,0),TRUE)","v":1},{"$f":"VLOOKUP(OFFSET($B:$B,,MATCH(AD$4,$B$4:$F$4,0)-1),OFFSET('C. PoC Adj Factor Scoring'!$E$5:$J$282,,MATCH(AD$4,'C. PoC Adj Factor Scoring'!$E$3:$AH$3,0)-1),MATCH(AD$2&\" Score\",'C. PoC Adj Factor Scoring'!$E$4:$J$4,0),TRUE)","v":1},{"$f":"VLOOKUP(OFFSET($B:$B,,MATCH(AE$4,$B$4:$F$4,0)-1),OFFSET('C. PoC Adj Factor Scoring'!$E$5:$J$282,,MATCH(AE$4,'C. PoC Adj Factor Scoring'!$E$3:$AH$3,0)-1),MATCH(AE$2&\" Score\",'C. PoC Adj Factor Scoring'!$E$4:$J$4,0),TRUE)","v":1}]
[{"$f":"'A. Population Info'!A33","v":1000314154},{"$f":"'A. Population Info'!L33","v":"OIL"},{"$f":"'A. Population Info'!M33","v":0},{"$f":"'A. Population Info'!N33","v":0},{"$f":"'A. Population Info'!O33","v":0},{"$f":"'A. Population Info'!P33","v":0},{"$f":"VLOOKUP(OFFSET($B:$B,,MATCH(G$4,$B$4:$F$4,0)-1),OFFSET('C. PoC Adj Factor Scoring'!$E$5:$J$282,,MATCH(G$4,'C. PoC Adj Factor Scoring'!$E$3:$AH$3,0)-1),MATCH(G$2&\" Score\",'C. PoC Adj Factor Scoring'!$E$4:$J$4,0),TRUE)","v":4},{"$f":"VLOOKUP(OFFSET($B:$B,,MATCH(H$4,$B$4:$F$4,0)-1),OFFSET('C. PoC Adj Factor Scoring'!$E$5:$J$282,,MATCH(H$4,'C. PoC Adj Factor Scoring'!$E$3:$AH$3,0)-1),MATCH(H$2&\" Score\",'C. PoC Adj Factor Scoring'!$E$4:$J$4,0),TRUE)","v":1},{"$f":"VLOOKUP(OFFSET($B:$B,,MATCH(I$4,$B$4:$F$4,0)-1),OFFSET('C. PoC Adj Factor Scoring'!$E$5:$J$282,,MATCH(I$4,'C. PoC Adj Factor Scoring'!$E$3:$AH$3,0)-1),MATCH(I$2&\" Score\",'C. PoC Adj Factor Scoring'!$E$4:$J$4,0),TRUE)","v":1},{"$f":"VLOOKUP(OFFSET($B:$B,,MATCH(J$4,$B$4:$F$4,0)-1),OFFSET('C. PoC Adj Factor Scoring'!$E$5:$J$282,,MATCH(J$4,'C. PoC Adj Factor Scoring'!$E$3:$AH$3,0)-1),MATCH(J$2&\" Score\",'C. PoC Adj Factor Scoring'!$E$4:$J$4,0),TRUE)","v":1},{"$f":"VLOOKUP(OFFSET($B:$B,,MATCH(K$4,$B$4:$F$4,0)-1),OFFSET('C. PoC Adj Factor Scoring'!$E$5:$J$282,,MATCH(K$4,'C. PoC Adj Factor Scoring'!$E$3:$AH$3,0)-1),MATCH(K$2&\" Score\",'C. PoC Adj Factor Scoring'!$E$4:$J$4,0),TRUE)","v":1},{"$f":"VLOOKUP(OFFSET($B:$B,,MATCH(L$4,$B$4:$F$4,0)-1),OFFSET('C. PoC Adj Factor Scoring'!$E$5:$J$282,,MATCH(L$4,'C. PoC Adj Factor Scoring'!$E$3:$AH$3,0)-1),MATCH(L$2&\" Score\",'C. PoC Adj Factor Scoring'!$E$4:$J$4,0),TRUE)","v":1},{"$f":"VLOOKUP(OFFSET($B:$B,,MATCH(M$4,$B$4:$F$4,0)-1),OFFSET('C. PoC Adj Factor Scoring'!$E$5:$J$282,,MATCH(M$4,'C. PoC Adj Factor Scoring'!$E$3:$AH$3,0)-1),MATCH(M$2&\" Score\",'C. PoC Adj Factor Scoring'!$E$4:$J$4,0),TRUE)","v":1},{"$f":"VLOOKUP(OFFSET($B:$B,,MATCH(N$4,$B$4:$F$4,0)-1),OFFSET('C. PoC Adj Factor Scoring'!$E$5:$J$282,,MATCH(N$4,'C. PoC Adj Factor Scoring'!$E$3:$AH$3,0)-1),MATCH(N$2&\" Score\",'C. PoC Adj Factor Scoring'!$E$4:$J$4,0),TRUE)","v":1},{"$f":"VLOOKUP(OFFSET($B:$B,,MATCH(O$4,$B$4:$F$4,0)-1),OFFSET('C. PoC Adj Factor Scoring'!$E$5:$J$282,,MATCH(O$4,'C. PoC Adj Factor Scoring'!$E$3:$AH$3,0)-1),MATCH(O$2&\" Score\",'C. PoC Adj Factor Scoring'!$E$4:$J$4,0),TRUE)","v":1},{"$f":"VLOOKUP(OFFSET($B:$B,,MATCH(P$4,$B$4:$F$4,0)-1),OFFSET('C. PoC Adj Factor Scoring'!$E$5:$J$282,,MATCH(P$4,'C. PoC Adj Factor Scoring'!$E$3:$AH$3,0)-1),MATCH(P$2&\" Score\",'C. PoC Adj Factor Scoring'!$E$4:$J$4,0),TRUE)","v":1},{"$f":"VLOOKUP(OFFSET($B:$B,,MATCH(Q$4,$B$4:$F$4,0)-1),OFFSET('C. PoC Adj Factor Scoring'!$E$5:$J$282,,MATCH(Q$4,'C. PoC Adj Factor Scoring'!$E$3:$AH$3,0)-1),MATCH(Q$2&\" Score\",'C. PoC Adj Factor Scoring'!$E$4:$J$4,0),TRUE)","v":1},{"$f":"VLOOKUP(OFFSET($B:$B,,MATCH(R$4,$B$4:$F$4,0)-1),OFFSET('C. PoC Adj Factor Scoring'!$E$5:$J$282,,MATCH(R$4,'C. PoC Adj Factor Scoring'!$E$3:$AH$3,0)-1),MATCH(R$2&\" Score\",'C. PoC Adj Factor Scoring'!$E$4:$J$4,0),TRUE)","v":1},{"$f":"VLOOKUP(OFFSET($B:$B,,MATCH(S$4,$B$4:$F$4,0)-1),OFFSET('C. PoC Adj Factor Scoring'!$E$5:$J$282,,MATCH(S$4,'C. PoC Adj Factor Scoring'!$E$3:$AH$3,0)-1),MATCH(S$2&\" Score\",'C. PoC Adj Factor Scoring'!$E$4:$J$4,0),TRUE)","v":1},{"$f":"VLOOKUP(OFFSET($B:$B,,MATCH(T$4,$B$4:$F$4,0)-1),OFFSET('C. PoC Adj Factor Scoring'!$E$5:$J$282,,MATCH(T$4,'C. PoC Adj Factor Scoring'!$E$3:$AH$3,0)-1),MATCH(T$2&\" Score\",'C. PoC Adj Factor Scoring'!$E$4:$J$4,0),TRUE)","v":1},{"$f":"VLOOKUP(OFFSET($B:$B,,MATCH(U$4,$B$4:$F$4,0)-1),OFFSET('C. PoC Adj Factor Scoring'!$E$5:$J$282,,MATCH(U$4,'C. PoC Adj Factor Scoring'!$E$3:$AH$3,0)-1),MATCH(U$2&\" Score\",'C. PoC Adj Factor Scoring'!$E$4:$J$4,0),TRUE)","v":1},{"$f":"VLOOKUP(OFFSET($B:$B,,MATCH(V$4,$B$4:$F$4,0)-1),OFFSET('C. PoC Adj Factor Scoring'!$E$5:$J$282,,MATCH(V$4,'C. PoC Adj Factor Scoring'!$E$3:$AH$3,0)-1),MATCH(V$2&\" Score\",'C. PoC Adj Factor Scoring'!$E$4:$J$4,0),TRUE)","v":1},{"$f":"VLOOKUP(OFFSET($B:$B,,MATCH(W$4,$B$4:$F$4,0)-1),OFFSET('C. PoC Adj Factor Scoring'!$E$5:$J$282,,MATCH(W$4,'C. PoC Adj Factor Scoring'!$E$3:$AH$3,0)-1),MATCH(W$2&\" Score\",'C. PoC Adj Factor Scoring'!$E$4:$J$4,0),TRUE)","v":1},{"$f":"VLOOKUP(OFFSET($B:$B,,MATCH(X$4,$B$4:$F$4,0)-1),OFFSET('C. PoC Adj Factor Scoring'!$E$5:$J$282,,MATCH(X$4,'C. PoC Adj Factor Scoring'!$E$3:$AH$3,0)-1),MATCH(X$2&\" Score\",'C. PoC Adj Factor Scoring'!$E$4:$J$4,0),TRUE)","v":1},{"$f":"VLOOKUP(OFFSET($B:$B,,MATCH(Y$4,$B$4:$F$4,0)-1),OFFSET('C. PoC Adj Factor Scoring'!$E$5:$J$282,,MATCH(Y$4,'C. PoC Adj Factor Scoring'!$E$3:$AH$3,0)-1),MATCH(Y$2&\" Score\",'C. PoC Adj Factor Scoring'!$E$4:$J$4,0),TRUE)","v":1},{"$f":"VLOOKUP(OFFSET($B:$B,,MATCH(Z$4,$B$4:$F$4,0)-1),OFFSET('C. PoC Adj Factor Scoring'!$E$5:$J$282,,MATCH(Z$4,'C. PoC Adj Factor Scoring'!$E$3:$AH$3,0)-1),MATCH(Z$2&\" Score\",'C. PoC Adj Factor Scoring'!$E$4:$J$4,0),TRUE)","v":1},{"$f":"VLOOKUP(OFFSET($B:$B,,MATCH(AA$4,$B$4:$F$4,0)-1),OFFSET('C. PoC Adj Factor Scoring'!$E$5:$J$282,,MATCH(AA$4,'C. PoC Adj Factor Scoring'!$E$3:$AH$3,0)-1),MATCH(AA$2&\" Score\",'C. PoC Adj Factor Scoring'!$E$4:$J$4,0),TRUE)","v":3},{"$f":"VLOOKUP(OFFSET($B:$B,,MATCH(AB$4,$B$4:$F$4,0)-1),OFFSET('C. PoC Adj Factor Scoring'!$E$5:$J$282,,MATCH(AB$4,'C. PoC Adj Factor Scoring'!$E$3:$AH$3,0)-1),MATCH(AB$2&\" Score\",'C. PoC Adj Factor Scoring'!$E$4:$J$4,0),TRUE)","v":1},{"$f":"VLOOKUP(OFFSET($B:$B,,MATCH(AC$4,$B$4:$F$4,0)-1),OFFSET('C. PoC Adj Factor Scoring'!$E$5:$J$282,,MATCH(AC$4,'C. PoC Adj Factor Scoring'!$E$3:$AH$3,0)-1),MATCH(AC$2&\" Score\",'C. PoC Adj Factor Scoring'!$E$4:$J$4,0),TRUE)","v":1},{"$f":"VLOOKUP(OFFSET($B:$B,,MATCH(AD$4,$B$4:$F$4,0)-1),OFFSET('C. PoC Adj Factor Scoring'!$E$5:$J$282,,MATCH(AD$4,'C. PoC Adj Factor Scoring'!$E$3:$AH$3,0)-1),MATCH(AD$2&\" Score\",'C. PoC Adj Factor Scoring'!$E$4:$J$4,0),TRUE)","v":1},{"$f":"VLOOKUP(OFFSET($B:$B,,MATCH(AE$4,$B$4:$F$4,0)-1),OFFSET('C. PoC Adj Factor Scoring'!$E$5:$J$282,,MATCH(AE$4,'C. PoC Adj Factor Scoring'!$E$3:$AH$3,0)-1),MATCH(AE$2&\" Score\",'C. PoC Adj Factor Scoring'!$E$4:$J$4,0),TRUE)","v":1}]
[{"$f":"'A. Population Info'!A34","v":1000314337},{"$f":"'A. Population Info'!L34","v":"OIL"},{"$f":"'A. Population Info'!M34","v":0},{"$f":"'A. Population Info'!N34","v":0},{"$f":"'A. Population Info'!O34","v":0},{"$f":"'A. Population Info'!P34","v":0},{"$f":"VLOOKUP(OFFSET($B:$B,,MATCH(G$4,$B$4:$F$4,0)-1),OFFSET('C. PoC Adj Factor Scoring'!$E$5:$J$282,,MATCH(G$4,'C. PoC Adj Factor Scoring'!$E$3:$AH$3,0)-1),MATCH(G$2&\" Score\",'C. PoC Adj Factor Scoring'!$E$4:$J$4,0),TRUE)","v":4},{"$f":"VLOOKUP(OFFSET($B:$B,,MATCH(H$4,$B$4:$F$4,0)-1),OFFSET('C. PoC Adj Factor Scoring'!$E$5:$J$282,,MATCH(H$4,'C. PoC Adj Factor Scoring'!$E$3:$AH$3,0)-1),MATCH(H$2&\" Score\",'C. PoC Adj Factor Scoring'!$E$4:$J$4,0),TRUE)","v":1},{"$f":"VLOOKUP(OFFSET($B:$B,,MATCH(I$4,$B$4:$F$4,0)-1),OFFSET('C. PoC Adj Factor Scoring'!$E$5:$J$282,,MATCH(I$4,'C. PoC Adj Factor Scoring'!$E$3:$AH$3,0)-1),MATCH(I$2&\" Score\",'C. PoC Adj Factor Scoring'!$E$4:$J$4,0),TRUE)","v":1},{"$f":"VLOOKUP(OFFSET($B:$B,,MATCH(J$4,$B$4:$F$4,0)-1),OFFSET('C. PoC Adj Factor Scoring'!$E$5:$J$282,,MATCH(J$4,'C. PoC Adj Factor Scoring'!$E$3:$AH$3,0)-1),MATCH(J$2&\" Score\",'C. PoC Adj Factor Scoring'!$E$4:$J$4,0),TRUE)","v":1},{"$f":"VLOOKUP(OFFSET($B:$B,,MATCH(K$4,$B$4:$F$4,0)-1),OFFSET('C. PoC Adj Factor Scoring'!$E$5:$J$282,,MATCH(K$4,'C. PoC Adj Factor Scoring'!$E$3:$AH$3,0)-1),MATCH(K$2&\" Score\",'C. PoC Adj Factor Scoring'!$E$4:$J$4,0),TRUE)","v":1},{"$f":"VLOOKUP(OFFSET($B:$B,,MATCH(L$4,$B$4:$F$4,0)-1),OFFSET('C. PoC Adj Factor Scoring'!$E$5:$J$282,,MATCH(L$4,'C. PoC Adj Factor Scoring'!$E$3:$AH$3,0)-1),MATCH(L$2&\" Score\",'C. PoC Adj Factor Scoring'!$E$4:$J$4,0),TRUE)","v":1},{"$f":"VLOOKUP(OFFSET($B:$B,,MATCH(M$4,$B$4:$F$4,0)-1),OFFSET('C. PoC Adj Factor Scoring'!$E$5:$J$282,,MATCH(M$4,'C. PoC Adj Factor Scoring'!$E$3:$AH$3,0)-1),MATCH(M$2&\" Score\",'C. PoC Adj Factor Scoring'!$E$4:$J$4,0),TRUE)","v":1},{"$f":"VLOOKUP(OFFSET($B:$B,,MATCH(N$4,$B$4:$F$4,0)-1),OFFSET('C. PoC Adj Factor Scoring'!$E$5:$J$282,,MATCH(N$4,'C. PoC Adj Factor Scoring'!$E$3:$AH$3,0)-1),MATCH(N$2&\" Score\",'C. PoC Adj Factor Scoring'!$E$4:$J$4,0),TRUE)","v":1},{"$f":"VLOOKUP(OFFSET($B:$B,,MATCH(O$4,$B$4:$F$4,0)-1),OFFSET('C. PoC Adj Factor Scoring'!$E$5:$J$282,,MATCH(O$4,'C. PoC Adj Factor Scoring'!$E$3:$AH$3,0)-1),MATCH(O$2&\" Score\",'C. PoC Adj Factor Scoring'!$E$4:$J$4,0),TRUE)","v":1},{"$f":"VLOOKUP(OFFSET($B:$B,,MATCH(P$4,$B$4:$F$4,0)-1),OFFSET('C. PoC Adj Factor Scoring'!$E$5:$J$282,,MATCH(P$4,'C. PoC Adj Factor Scoring'!$E$3:$AH$3,0)-1),MATCH(P$2&\" Score\",'C. PoC Adj Factor Scoring'!$E$4:$J$4,0),TRUE)","v":1},{"$f":"VLOOKUP(OFFSET($B:$B,,MATCH(Q$4,$B$4:$F$4,0)-1),OFFSET('C. PoC Adj Factor Scoring'!$E$5:$J$282,,MATCH(Q$4,'C. PoC Adj Factor Scoring'!$E$3:$AH$3,0)-1),MATCH(Q$2&\" Score\",'C. PoC Adj Factor Scoring'!$E$4:$J$4,0),TRUE)","v":1},{"$f":"VLOOKUP(OFFSET($B:$B,,MATCH(R$4,$B$4:$F$4,0)-1),OFFSET('C. PoC Adj Factor Scoring'!$E$5:$J$282,,MATCH(R$4,'C. PoC Adj Factor Scoring'!$E$3:$AH$3,0)-1),MATCH(R$2&\" Score\",'C. PoC Adj Factor Scoring'!$E$4:$J$4,0),TRUE)","v":1},{"$f":"VLOOKUP(OFFSET($B:$B,,MATCH(S$4,$B$4:$F$4,0)-1),OFFSET('C. PoC Adj Factor Scoring'!$E$5:$J$282,,MATCH(S$4,'C. PoC Adj Factor Scoring'!$E$3:$AH$3,0)-1),MATCH(S$2&\" Score\",'C. PoC Adj Factor Scoring'!$E$4:$J$4,0),TRUE)","v":1},{"$f":"VLOOKUP(OFFSET($B:$B,,MATCH(T$4,$B$4:$F$4,0)-1),OFFSET('C. PoC Adj Factor Scoring'!$E$5:$J$282,,MATCH(T$4,'C. PoC Adj Factor Scoring'!$E$3:$AH$3,0)-1),MATCH(T$2&\" Score\",'C. PoC Adj Factor Scoring'!$E$4:$J$4,0),TRUE)","v":1},{"$f":"VLOOKUP(OFFSET($B:$B,,MATCH(U$4,$B$4:$F$4,0)-1),OFFSET('C. PoC Adj Factor Scoring'!$E$5:$J$282,,MATCH(U$4,'C. PoC Adj Factor Scoring'!$E$3:$AH$3,0)-1),MATCH(U$2&\" Score\",'C. PoC Adj Factor Scoring'!$E$4:$J$4,0),TRUE)","v":1},{"$f":"VLOOKUP(OFFSET($B:$B,,MATCH(V$4,$B$4:$F$4,0)-1),OFFSET('C. PoC Adj Factor Scoring'!$E$5:$J$282,,MATCH(V$4,'C. PoC Adj Factor Scoring'!$E$3:$AH$3,0)-1),MATCH(V$2&\" Score\",'C. PoC Adj Factor Scoring'!$E$4:$J$4,0),TRUE)","v":1},{"$f":"VLOOKUP(OFFSET($B:$B,,MATCH(W$4,$B$4:$F$4,0)-1),OFFSET('C. PoC Adj Factor Scoring'!$E$5:$J$282,,MATCH(W$4,'C. PoC Adj Factor Scoring'!$E$3:$AH$3,0)-1),MATCH(W$2&\" Score\",'C. PoC Adj Factor Scoring'!$E$4:$J$4,0),TRUE)","v":1},{"$f":"VLOOKUP(OFFSET($B:$B,,MATCH(X$4,$B$4:$F$4,0)-1),OFFSET('C. PoC Adj Factor Scoring'!$E$5:$J$282,,MATCH(X$4,'C. PoC Adj Factor Scoring'!$E$3:$AH$3,0)-1),MATCH(X$2&\" Score\",'C. PoC Adj Factor Scoring'!$E$4:$J$4,0),TRUE)","v":1},{"$f":"VLOOKUP(OFFSET($B:$B,,MATCH(Y$4,$B$4:$F$4,0)-1),OFFSET('C. PoC Adj Factor Scoring'!$E$5:$J$282,,MATCH(Y$4,'C. PoC Adj Factor Scoring'!$E$3:$AH$3,0)-1),MATCH(Y$2&\" Score\",'C. PoC Adj Factor Scoring'!$E$4:$J$4,0),TRUE)","v":1},{"$f":"VLOOKUP(OFFSET($B:$B,,MATCH(Z$4,$B$4:$F$4,0)-1),OFFSET('C. PoC Adj Factor Scoring'!$E$5:$J$282,,MATCH(Z$4,'C. PoC Adj Factor Scoring'!$E$3:$AH$3,0)-1),MATCH(Z$2&\" Score\",'C. PoC Adj Factor Scoring'!$E$4:$J$4,0),TRUE)","v":1},{"$f":"VLOOKUP(OFFSET($B:$B,,MATCH(AA$4,$B$4:$F$4,0)-1),OFFSET('C. PoC Adj Factor Scoring'!$E$5:$J$282,,MATCH(AA$4,'C. PoC Adj Factor Scoring'!$E$3:$AH$3,0)-1),MATCH(AA$2&\" Score\",'C. PoC Adj Factor Scoring'!$E$4:$J$4,0),TRUE)","v":3},{"$f":"VLOOKUP(OFFSET($B:$B,,MATCH(AB$4,$B$4:$F$4,0)-1),OFFSET('C. PoC Adj Factor Scoring'!$E$5:$J$282,,MATCH(AB$4,'C. PoC Adj Factor Scoring'!$E$3:$AH$3,0)-1),MATCH(AB$2&\" Score\",'C. PoC Adj Factor Scoring'!$E$4:$J$4,0),TRUE)","v":1},{"$f":"VLOOKUP(OFFSET($B:$B,,MATCH(AC$4,$B$4:$F$4,0)-1),OFFSET('C. PoC Adj Factor Scoring'!$E$5:$J$282,,MATCH(AC$4,'C. PoC Adj Factor Scoring'!$E$3:$AH$3,0)-1),MATCH(AC$2&\" Score\",'C. PoC Adj Factor Scoring'!$E$4:$J$4,0),TRUE)","v":1},{"$f":"VLOOKUP(OFFSET($B:$B,,MATCH(AD$4,$B$4:$F$4,0)-1),OFFSET('C. PoC Adj Factor Scoring'!$E$5:$J$282,,MATCH(AD$4,'C. PoC Adj Factor Scoring'!$E$3:$AH$3,0)-1),MATCH(AD$2&\" Score\",'C. PoC Adj Factor Scoring'!$E$4:$J$4,0),TRUE)","v":1},{"$f":"VLOOKUP(OFFSET($B:$B,,MATCH(AE$4,$B$4:$F$4,0)-1),OFFSET('C. PoC Adj Factor Scoring'!$E$5:$J$282,,MATCH(AE$4,'C. PoC Adj Factor Scoring'!$E$3:$AH$3,0)-1),MATCH(AE$2&\" Score\",'C. PoC Adj Factor Scoring'!$E$4:$J$4,0),TRUE)","v":1}]
[{"$f":"'A. Population Info'!A35","v":1000314363},{"$f":"'A. Population Info'!L35","v":"OIL"},{"$f":"'A. Population Info'!M35","v":0},{"$f":"'A. Population Info'!N35","v":0},{"$f":"'A. Population Info'!O35","v":0},{"$f":"'A. Population Info'!P35","v":0},{"$f":"VLOOKUP(OFFSET($B:$B,,MATCH(G$4,$B$4:$F$4,0)-1),OFFSET('C. PoC Adj Factor Scoring'!$E$5:$J$282,,MATCH(G$4,'C. PoC Adj Factor Scoring'!$E$3:$AH$3,0)-1),MATCH(G$2&\" Score\",'C. PoC Adj Factor Scoring'!$E$4:$J$4,0),TRUE)","v":4},{"$f":"VLOOKUP(OFFSET($B:$B,,MATCH(H$4,$B$4:$F$4,0)-1),OFFSET('C. PoC Adj Factor Scoring'!$E$5:$J$282,,MATCH(H$4,'C. PoC Adj Factor Scoring'!$E$3:$AH$3,0)-1),MATCH(H$2&\" Score\",'C. PoC Adj Factor Scoring'!$E$4:$J$4,0),TRUE)","v":1},{"$f":"VLOOKUP(OFFSET($B:$B,,MATCH(I$4,$B$4:$F$4,0)-1),OFFSET('C. PoC Adj Factor Scoring'!$E$5:$J$282,,MATCH(I$4,'C. PoC Adj Factor Scoring'!$E$3:$AH$3,0)-1),MATCH(I$2&\" Score\",'C. PoC Adj Factor Scoring'!$E$4:$J$4,0),TRUE)","v":1},{"$f":"VLOOKUP(OFFSET($B:$B,,MATCH(J$4,$B$4:$F$4,0)-1),OFFSET('C. PoC Adj Factor Scoring'!$E$5:$J$282,,MATCH(J$4,'C. PoC Adj Factor Scoring'!$E$3:$AH$3,0)-1),MATCH(J$2&\" Score\",'C. PoC Adj Factor Scoring'!$E$4:$J$4,0),TRUE)","v":1},{"$f":"VLOOKUP(OFFSET($B:$B,,MATCH(K$4,$B$4:$F$4,0)-1),OFFSET('C. PoC Adj Factor Scoring'!$E$5:$J$282,,MATCH(K$4,'C. PoC Adj Factor Scoring'!$E$3:$AH$3,0)-1),MATCH(K$2&\" Score\",'C. PoC Adj Factor Scoring'!$E$4:$J$4,0),TRUE)","v":1},{"$f":"VLOOKUP(OFFSET($B:$B,,MATCH(L$4,$B$4:$F$4,0)-1),OFFSET('C. PoC Adj Factor Scoring'!$E$5:$J$282,,MATCH(L$4,'C. PoC Adj Factor Scoring'!$E$3:$AH$3,0)-1),MATCH(L$2&\" Score\",'C. PoC Adj Factor Scoring'!$E$4:$J$4,0),TRUE)","v":1},{"$f":"VLOOKUP(OFFSET($B:$B,,MATCH(M$4,$B$4:$F$4,0)-1),OFFSET('C. PoC Adj Factor Scoring'!$E$5:$J$282,,MATCH(M$4,'C. PoC Adj Factor Scoring'!$E$3:$AH$3,0)-1),MATCH(M$2&\" Score\",'C. PoC Adj Factor Scoring'!$E$4:$J$4,0),TRUE)","v":1},{"$f":"VLOOKUP(OFFSET($B:$B,,MATCH(N$4,$B$4:$F$4,0)-1),OFFSET('C. PoC Adj Factor Scoring'!$E$5:$J$282,,MATCH(N$4,'C. PoC Adj Factor Scoring'!$E$3:$AH$3,0)-1),MATCH(N$2&\" Score\",'C. PoC Adj Factor Scoring'!$E$4:$J$4,0),TRUE)","v":1},{"$f":"VLOOKUP(OFFSET($B:$B,,MATCH(O$4,$B$4:$F$4,0)-1),OFFSET('C. PoC Adj Factor Scoring'!$E$5:$J$282,,MATCH(O$4,'C. PoC Adj Factor Scoring'!$E$3:$AH$3,0)-1),MATCH(O$2&\" Score\",'C. PoC Adj Factor Scoring'!$E$4:$J$4,0),TRUE)","v":1},{"$f":"VLOOKUP(OFFSET($B:$B,,MATCH(P$4,$B$4:$F$4,0)-1),OFFSET('C. PoC Adj Factor Scoring'!$E$5:$J$282,,MATCH(P$4,'C. PoC Adj Factor Scoring'!$E$3:$AH$3,0)-1),MATCH(P$2&\" Score\",'C. PoC Adj Factor Scoring'!$E$4:$J$4,0),TRUE)","v":1},{"$f":"VLOOKUP(OFFSET($B:$B,,MATCH(Q$4,$B$4:$F$4,0)-1),OFFSET('C. PoC Adj Factor Scoring'!$E$5:$J$282,,MATCH(Q$4,'C. PoC Adj Factor Scoring'!$E$3:$AH$3,0)-1),MATCH(Q$2&\" Score\",'C. PoC Adj Factor Scoring'!$E$4:$J$4,0),TRUE)","v":1},{"$f":"VLOOKUP(OFFSET($B:$B,,MATCH(R$4,$B$4:$F$4,0)-1),OFFSET('C. PoC Adj Factor Scoring'!$E$5:$J$282,,MATCH(R$4,'C. PoC Adj Factor Scoring'!$E$3:$AH$3,0)-1),MATCH(R$2&\" Score\",'C. PoC Adj Factor Scoring'!$E$4:$J$4,0),TRUE)","v":1},{"$f":"VLOOKUP(OFFSET($B:$B,,MATCH(S$4,$B$4:$F$4,0)-1),OFFSET('C. PoC Adj Factor Scoring'!$E$5:$J$282,,MATCH(S$4,'C. PoC Adj Factor Scoring'!$E$3:$AH$3,0)-1),MATCH(S$2&\" Score\",'C. PoC Adj Factor Scoring'!$E$4:$J$4,0),TRUE)","v":1},{"$f":"VLOOKUP(OFFSET($B:$B,,MATCH(T$4,$B$4:$F$4,0)-1),OFFSET('C. PoC Adj Factor Scoring'!$E$5:$J$282,,MATCH(T$4,'C. PoC Adj Factor Scoring'!$E$3:$AH$3,0)-1),MATCH(T$2&\" Score\",'C. PoC Adj Factor Scoring'!$E$4:$J$4,0),TRUE)","v":1},{"$f":"VLOOKUP(OFFSET($B:$B,,MATCH(U$4,$B$4:$F$4,0)-1),OFFSET('C. PoC Adj Factor Scoring'!$E$5:$J$282,,MATCH(U$4,'C. PoC Adj Factor Scoring'!$E$3:$AH$3,0)-1),MATCH(U$2&\" Score\",'C. PoC Adj Factor Scoring'!$E$4:$J$4,0),TRUE)","v":1},{"$f":"VLOOKUP(OFFSET($B:$B,,MATCH(V$4,$B$4:$F$4,0)-1),OFFSET('C. PoC Adj Factor Scoring'!$E$5:$J$282,,MATCH(V$4,'C. PoC Adj Factor Scoring'!$E$3:$AH$3,0)-1),MATCH(V$2&\" Score\",'C. PoC Adj Factor Scoring'!$E$4:$J$4,0),TRUE)","v":1},{"$f":"VLOOKUP(OFFSET($B:$B,,MATCH(W$4,$B$4:$F$4,0)-1),OFFSET('C. PoC Adj Factor Scoring'!$E$5:$J$282,,MATCH(W$4,'C. PoC Adj Factor Scoring'!$E$3:$AH$3,0)-1),MATCH(W$2&\" Score\",'C. PoC Adj Factor Scoring'!$E$4:$J$4,0),TRUE)","v":1},{"$f":"VLOOKUP(OFFSET($B:$B,,MATCH(X$4,$B$4:$F$4,0)-1),OFFSET('C. PoC Adj Factor Scoring'!$E$5:$J$282,,MATCH(X$4,'C. PoC Adj Factor Scoring'!$E$3:$AH$3,0)-1),MATCH(X$2&\" Score\",'C. PoC Adj Factor Scoring'!$E$4:$J$4,0),TRUE)","v":1},{"$f":"VLOOKUP(OFFSET($B:$B,,MATCH(Y$4,$B$4:$F$4,0)-1),OFFSET('C. PoC Adj Factor Scoring'!$E$5:$J$282,,MATCH(Y$4,'C. PoC Adj Factor Scoring'!$E$3:$AH$3,0)-1),MATCH(Y$2&\" Score\",'C. PoC Adj Factor Scoring'!$E$4:$J$4,0),TRUE)","v":1},{"$f":"VLOOKUP(OFFSET($B:$B,,MATCH(Z$4,$B$4:$F$4,0)-1),OFFSET('C. PoC Adj Factor Scoring'!$E$5:$J$282,,MATCH(Z$4,'C. PoC Adj Factor Scoring'!$E$3:$AH$3,0)-1),MATCH(Z$2&\" Score\",'C. PoC Adj Factor Scoring'!$E$4:$J$4,0),TRUE)","v":1},{"$f":"VLOOKUP(OFFSET($B:$B,,MATCH(AA$4,$B$4:$F$4,0)-1),OFFSET('C. PoC Adj Factor Scoring'!$E$5:$J$282,,MATCH(AA$4,'C. PoC Adj Factor Scoring'!$E$3:$AH$3,0)-1),MATCH(AA$2&\" Score\",'C. PoC Adj Factor Scoring'!$E$4:$J$4,0),TRUE)","v":3},{"$f":"VLOOKUP(OFFSET($B:$B,,MATCH(AB$4,$B$4:$F$4,0)-1),OFFSET('C. PoC Adj Factor Scoring'!$E$5:$J$282,,MATCH(AB$4,'C. PoC Adj Factor Scoring'!$E$3:$AH$3,0)-1),MATCH(AB$2&\" Score\",'C. PoC Adj Factor Scoring'!$E$4:$J$4,0),TRUE)","v":1},{"$f":"VLOOKUP(OFFSET($B:$B,,MATCH(AC$4,$B$4:$F$4,0)-1),OFFSET('C. PoC Adj Factor Scoring'!$E$5:$J$282,,MATCH(AC$4,'C. PoC Adj Factor Scoring'!$E$3:$AH$3,0)-1),MATCH(AC$2&\" Score\",'C. PoC Adj Factor Scoring'!$E$4:$J$4,0),TRUE)","v":1},{"$f":"VLOOKUP(OFFSET($B:$B,,MATCH(AD$4,$B$4:$F$4,0)-1),OFFSET('C. PoC Adj Factor Scoring'!$E$5:$J$282,,MATCH(AD$4,'C. PoC Adj Factor Scoring'!$E$3:$AH$3,0)-1),MATCH(AD$2&\" Score\",'C. PoC Adj Factor Scoring'!$E$4:$J$4,0),TRUE)","v":1},{"$f":"VLOOKUP(OFFSET($B:$B,,MATCH(AE$4,$B$4:$F$4,0)-1),OFFSET('C. PoC Adj Factor Scoring'!$E$5:$J$282,,MATCH(AE$4,'C. PoC Adj Factor Scoring'!$E$3:$AH$3,0)-1),MATCH(AE$2&\" Score\",'C. PoC Adj Factor Scoring'!$E$4:$J$4,0),TRUE)","v":1}]
[{"$f":"'A. Population Info'!A36","v":1000318066},{"$f":"'A. Population Info'!L36","v":"OIL"},{"$f":"'A. Population Info'!M36","v":0},{"$f":"'A. Population Info'!N36","v":0},{"$f":"'A. Population Info'!O36","v":0},{"$f":"'A. Population Info'!P36","v":0},{"$f":"VLOOKUP(OFFSET($B:$B,,MATCH(G$4,$B$4:$F$4,0)-1),OFFSET('C. PoC Adj Factor Scoring'!$E$5:$J$282,,MATCH(G$4,'C. PoC Adj Factor Scoring'!$E$3:$AH$3,0)-1),MATCH(G$2&\" Score\",'C. PoC Adj Factor Scoring'!$E$4:$J$4,0),TRUE)","v":4},{"$f":"VLOOKUP(OFFSET($B:$B,,MATCH(H$4,$B$4:$F$4,0)-1),OFFSET('C. PoC Adj Factor Scoring'!$E$5:$J$282,,MATCH(H$4,'C. PoC Adj Factor Scoring'!$E$3:$AH$3,0)-1),MATCH(H$2&\" Score\",'C. PoC Adj Factor Scoring'!$E$4:$J$4,0),TRUE)","v":1},{"$f":"VLOOKUP(OFFSET($B:$B,,MATCH(I$4,$B$4:$F$4,0)-1),OFFSET('C. PoC Adj Factor Scoring'!$E$5:$J$282,,MATCH(I$4,'C. PoC Adj Factor Scoring'!$E$3:$AH$3,0)-1),MATCH(I$2&\" Score\",'C. PoC Adj Factor Scoring'!$E$4:$J$4,0),TRUE)","v":1},{"$f":"VLOOKUP(OFFSET($B:$B,,MATCH(J$4,$B$4:$F$4,0)-1),OFFSET('C. PoC Adj Factor Scoring'!$E$5:$J$282,,MATCH(J$4,'C. PoC Adj Factor Scoring'!$E$3:$AH$3,0)-1),MATCH(J$2&\" Score\",'C. PoC Adj Factor Scoring'!$E$4:$J$4,0),TRUE)","v":1},{"$f":"VLOOKUP(OFFSET($B:$B,,MATCH(K$4,$B$4:$F$4,0)-1),OFFSET('C. PoC Adj Factor Scoring'!$E$5:$J$282,,MATCH(K$4,'C. PoC Adj Factor Scoring'!$E$3:$AH$3,0)-1),MATCH(K$2&\" Score\",'C. PoC Adj Factor Scoring'!$E$4:$J$4,0),TRUE)","v":1},{"$f":"VLOOKUP(OFFSET($B:$B,,MATCH(L$4,$B$4:$F$4,0)-1),OFFSET('C. PoC Adj Factor Scoring'!$E$5:$J$282,,MATCH(L$4,'C. PoC Adj Factor Scoring'!$E$3:$AH$3,0)-1),MATCH(L$2&\" Score\",'C. PoC Adj Factor Scoring'!$E$4:$J$4,0),TRUE)","v":1},{"$f":"VLOOKUP(OFFSET($B:$B,,MATCH(M$4,$B$4:$F$4,0)-1),OFFSET('C. PoC Adj Factor Scoring'!$E$5:$J$282,,MATCH(M$4,'C. PoC Adj Factor Scoring'!$E$3:$AH$3,0)-1),MATCH(M$2&\" Score\",'C. PoC Adj Factor Scoring'!$E$4:$J$4,0),TRUE)","v":1},{"$f":"VLOOKUP(OFFSET($B:$B,,MATCH(N$4,$B$4:$F$4,0)-1),OFFSET('C. PoC Adj Factor Scoring'!$E$5:$J$282,,MATCH(N$4,'C. PoC Adj Factor Scoring'!$E$3:$AH$3,0)-1),MATCH(N$2&\" Score\",'C. PoC Adj Factor Scoring'!$E$4:$J$4,0),TRUE)","v":1},{"$f":"VLOOKUP(OFFSET($B:$B,,MATCH(O$4,$B$4:$F$4,0)-1),OFFSET('C. PoC Adj Factor Scoring'!$E$5:$J$282,,MATCH(O$4,'C. PoC Adj Factor Scoring'!$E$3:$AH$3,0)-1),MATCH(O$2&\" Score\",'C. PoC Adj Factor Scoring'!$E$4:$J$4,0),TRUE)","v":1},{"$f":"VLOOKUP(OFFSET($B:$B,,MATCH(P$4,$B$4:$F$4,0)-1),OFFSET('C. PoC Adj Factor Scoring'!$E$5:$J$282,,MATCH(P$4,'C. PoC Adj Factor Scoring'!$E$3:$AH$3,0)-1),MATCH(P$2&\" Score\",'C. PoC Adj Factor Scoring'!$E$4:$J$4,0),TRUE)","v":1},{"$f":"VLOOKUP(OFFSET($B:$B,,MATCH(Q$4,$B$4:$F$4,0)-1),OFFSET('C. PoC Adj Factor Scoring'!$E$5:$J$282,,MATCH(Q$4,'C. PoC Adj Factor Scoring'!$E$3:$AH$3,0)-1),MATCH(Q$2&\" Score\",'C. PoC Adj Factor Scoring'!$E$4:$J$4,0),TRUE)","v":1},{"$f":"VLOOKUP(OFFSET($B:$B,,MATCH(R$4,$B$4:$F$4,0)-1),OFFSET('C. PoC Adj Factor Scoring'!$E$5:$J$282,,MATCH(R$4,'C. PoC Adj Factor Scoring'!$E$3:$AH$3,0)-1),MATCH(R$2&\" Score\",'C. PoC Adj Factor Scoring'!$E$4:$J$4,0),TRUE)","v":1},{"$f":"VLOOKUP(OFFSET($B:$B,,MATCH(S$4,$B$4:$F$4,0)-1),OFFSET('C. PoC Adj Factor Scoring'!$E$5:$J$282,,MATCH(S$4,'C. PoC Adj Factor Scoring'!$E$3:$AH$3,0)-1),MATCH(S$2&\" Score\",'C. PoC Adj Factor Scoring'!$E$4:$J$4,0),TRUE)","v":1},{"$f":"VLOOKUP(OFFSET($B:$B,,MATCH(T$4,$B$4:$F$4,0)-1),OFFSET('C. PoC Adj Factor Scoring'!$E$5:$J$282,,MATCH(T$4,'C. PoC Adj Factor Scoring'!$E$3:$AH$3,0)-1),MATCH(T$2&\" Score\",'C. PoC Adj Factor Scoring'!$E$4:$J$4,0),TRUE)","v":1},{"$f":"VLOOKUP(OFFSET($B:$B,,MATCH(U$4,$B$4:$F$4,0)-1),OFFSET('C. PoC Adj Factor Scoring'!$E$5:$J$282,,MATCH(U$4,'C. PoC Adj Factor Scoring'!$E$3:$AH$3,0)-1),MATCH(U$2&\" Score\",'C. PoC Adj Factor Scoring'!$E$4:$J$4,0),TRUE)","v":1},{"$f":"VLOOKUP(OFFSET($B:$B,,MATCH(V$4,$B$4:$F$4,0)-1),OFFSET('C. PoC Adj Factor Scoring'!$E$5:$J$282,,MATCH(V$4,'C. PoC Adj Factor Scoring'!$E$3:$AH$3,0)-1),MATCH(V$2&\" Score\",'C. PoC Adj Factor Scoring'!$E$4:$J$4,0),TRUE)","v":1},{"$f":"VLOOKUP(OFFSET($B:$B,,MATCH(W$4,$B$4:$F$4,0)-1),OFFSET('C. PoC Adj Factor Scoring'!$E$5:$J$282,,MATCH(W$4,'C. PoC Adj Factor Scoring'!$E$3:$AH$3,0)-1),MATCH(W$2&\" Score\",'C. PoC Adj Factor Scoring'!$E$4:$J$4,0),TRUE)","v":1},{"$f":"VLOOKUP(OFFSET($B:$B,,MATCH(X$4,$B$4:$F$4,0)-1),OFFSET('C. PoC Adj Factor Scoring'!$E$5:$J$282,,MATCH(X$4,'C. PoC Adj Factor Scoring'!$E$3:$AH$3,0)-1),MATCH(X$2&\" Score\",'C. PoC Adj Factor Scoring'!$E$4:$J$4,0),TRUE)","v":1},{"$f":"VLOOKUP(OFFSET($B:$B,,MATCH(Y$4,$B$4:$F$4,0)-1),OFFSET('C. PoC Adj Factor Scoring'!$E$5:$J$282,,MATCH(Y$4,'C. PoC Adj Factor Scoring'!$E$3:$AH$3,0)-1),MATCH(Y$2&\" Score\",'C. PoC Adj Factor Scoring'!$E$4:$J$4,0),TRUE)","v":1},{"$f":"VLOOKUP(OFFSET($B:$B,,MATCH(Z$4,$B$4:$F$4,0)-1),OFFSET('C. PoC Adj Factor Scoring'!$E$5:$J$282,,MATCH(Z$4,'C. PoC Adj Factor Scoring'!$E$3:$AH$3,0)-1),MATCH(Z$2&\" Score\",'C. PoC Adj Factor Scoring'!$E$4:$J$4,0),TRUE)","v":1},{"$f":"VLOOKUP(OFFSET($B:$B,,MATCH(AA$4,$B$4:$F$4,0)-1),OFFSET('C. PoC Adj Factor Scoring'!$E$5:$J$282,,MATCH(AA$4,'C. PoC Adj Factor Scoring'!$E$3:$AH$3,0)-1),MATCH(AA$2&\" Score\",'C. PoC Adj Factor Scoring'!$E$4:$J$4,0),TRUE)","v":3},{"$f":"VLOOKUP(OFFSET($B:$B,,MATCH(AB$4,$B$4:$F$4,0)-1),OFFSET('C. PoC Adj Factor Scoring'!$E$5:$J$282,,MATCH(AB$4,'C. PoC Adj Factor Scoring'!$E$3:$AH$3,0)-1),MATCH(AB$2&\" Score\",'C. PoC Adj Factor Scoring'!$E$4:$J$4,0),TRUE)","v":1},{"$f":"VLOOKUP(OFFSET($B:$B,,MATCH(AC$4,$B$4:$F$4,0)-1),OFFSET('C. PoC Adj Factor Scoring'!$E$5:$J$282,,MATCH(AC$4,'C. PoC Adj Factor Scoring'!$E$3:$AH$3,0)-1),MATCH(AC$2&\" Score\",'C. PoC Adj Factor Scoring'!$E$4:$J$4,0),TRUE)","v":1},{"$f":"VLOOKUP(OFFSET($B:$B,,MATCH(AD$4,$B$4:$F$4,0)-1),OFFSET('C. PoC Adj Factor Scoring'!$E$5:$J$282,,MATCH(AD$4,'C. PoC Adj Factor Scoring'!$E$3:$AH$3,0)-1),MATCH(AD$2&\" Score\",'C. PoC Adj Factor Scoring'!$E$4:$J$4,0),TRUE)","v":1},{"$f":"VLOOKUP(OFFSET($B:$B,,MATCH(AE$4,$B$4:$F$4,0)-1),OFFSET('C. PoC Adj Factor Scoring'!$E$5:$J$282,,MATCH(AE$4,'C. PoC Adj Factor Scoring'!$E$3:$AH$3,0)-1),MATCH(AE$2&\" Score\",'C. PoC Adj Factor Scoring'!$E$4:$J$4,0),TRUE)","v":1}]
[{"$f":"'A. Population Info'!A37","v":1000318448},{"$f":"'A. Population Info'!L37","v":"OIL"},{"$f":"'A. Population Info'!M37","v":0},{"$f":"'A. Population Info'!N37","v":0},{"$f":"'A. Population Info'!O37","v":0},{"$f":"'A. Population Info'!P37","v":0},{"$f":"VLOOKUP(OFFSET($B:$B,,MATCH(G$4,$B$4:$F$4,0)-1),OFFSET('C. PoC Adj Factor Scoring'!$E$5:$J$282,,MATCH(G$4,'C. PoC Adj Factor Scoring'!$E$3:$AH$3,0)-1),MATCH(G$2&\" Score\",'C. PoC Adj Factor Scoring'!$E$4:$J$4,0),TRUE)","v":4},{"$f":"VLOOKUP(OFFSET($B:$B,,MATCH(H$4,$B$4:$F$4,0)-1),OFFSET('C. PoC Adj Factor Scoring'!$E$5:$J$282,,MATCH(H$4,'C. PoC Adj Factor Scoring'!$E$3:$AH$3,0)-1),MATCH(H$2&\" Score\",'C. PoC Adj Factor Scoring'!$E$4:$J$4,0),TRUE)","v":1},{"$f":"VLOOKUP(OFFSET($B:$B,,MATCH(I$4,$B$4:$F$4,0)-1),OFFSET('C. PoC Adj Factor Scoring'!$E$5:$J$282,,MATCH(I$4,'C. PoC Adj Factor Scoring'!$E$3:$AH$3,0)-1),MATCH(I$2&\" Score\",'C. PoC Adj Factor Scoring'!$E$4:$J$4,0),TRUE)","v":1},{"$f":"VLOOKUP(OFFSET($B:$B,,MATCH(J$4,$B$4:$F$4,0)-1),OFFSET('C. PoC Adj Factor Scoring'!$E$5:$J$282,,MATCH(J$4,'C. PoC Adj Factor Scoring'!$E$3:$AH$3,0)-1),MATCH(J$2&\" Score\",'C. PoC Adj Factor Scoring'!$E$4:$J$4,0),TRUE)","v":1},{"$f":"VLOOKUP(OFFSET($B:$B,,MATCH(K$4,$B$4:$F$4,0)-1),OFFSET('C. PoC Adj Factor Scoring'!$E$5:$J$282,,MATCH(K$4,'C. PoC Adj Factor Scoring'!$E$3:$AH$3,0)-1),MATCH(K$2&\" Score\",'C. PoC Adj Factor Scoring'!$E$4:$J$4,0),TRUE)","v":1},{"$f":"VLOOKUP(OFFSET($B:$B,,MATCH(L$4,$B$4:$F$4,0)-1),OFFSET('C. PoC Adj Factor Scoring'!$E$5:$J$282,,MATCH(L$4,'C. PoC Adj Factor Scoring'!$E$3:$AH$3,0)-1),MATCH(L$2&\" Score\",'C. PoC Adj Factor Scoring'!$E$4:$J$4,0),TRUE)","v":1},{"$f":"VLOOKUP(OFFSET($B:$B,,MATCH(M$4,$B$4:$F$4,0)-1),OFFSET('C. PoC Adj Factor Scoring'!$E$5:$J$282,,MATCH(M$4,'C. PoC Adj Factor Scoring'!$E$3:$AH$3,0)-1),MATCH(M$2&\" Score\",'C. PoC Adj Factor Scoring'!$E$4:$J$4,0),TRUE)","v":1},{"$f":"VLOOKUP(OFFSET($B:$B,,MATCH(N$4,$B$4:$F$4,0)-1),OFFSET('C. PoC Adj Factor Scoring'!$E$5:$J$282,,MATCH(N$4,'C. PoC Adj Factor Scoring'!$E$3:$AH$3,0)-1),MATCH(N$2&\" Score\",'C. PoC Adj Factor Scoring'!$E$4:$J$4,0),TRUE)","v":1},{"$f":"VLOOKUP(OFFSET($B:$B,,MATCH(O$4,$B$4:$F$4,0)-1),OFFSET('C. PoC Adj Factor Scoring'!$E$5:$J$282,,MATCH(O$4,'C. PoC Adj Factor Scoring'!$E$3:$AH$3,0)-1),MATCH(O$2&\" Score\",'C. PoC Adj Factor Scoring'!$E$4:$J$4,0),TRUE)","v":1},{"$f":"VLOOKUP(OFFSET($B:$B,,MATCH(P$4,$B$4:$F$4,0)-1),OFFSET('C. PoC Adj Factor Scoring'!$E$5:$J$282,,MATCH(P$4,'C. PoC Adj Factor Scoring'!$E$3:$AH$3,0)-1),MATCH(P$2&\" Score\",'C. PoC Adj Factor Scoring'!$E$4:$J$4,0),TRUE)","v":1},{"$f":"VLOOKUP(OFFSET($B:$B,,MATCH(Q$4,$B$4:$F$4,0)-1),OFFSET('C. PoC Adj Factor Scoring'!$E$5:$J$282,,MATCH(Q$4,'C. PoC Adj Factor Scoring'!$E$3:$AH$3,0)-1),MATCH(Q$2&\" Score\",'C. PoC Adj Factor Scoring'!$E$4:$J$4,0),TRUE)","v":1},{"$f":"VLOOKUP(OFFSET($B:$B,,MATCH(R$4,$B$4:$F$4,0)-1),OFFSET('C. PoC Adj Factor Scoring'!$E$5:$J$282,,MATCH(R$4,'C. PoC Adj Factor Scoring'!$E$3:$AH$3,0)-1),MATCH(R$2&\" Score\",'C. PoC Adj Factor Scoring'!$E$4:$J$4,0),TRUE)","v":1},{"$f":"VLOOKUP(OFFSET($B:$B,,MATCH(S$4,$B$4:$F$4,0)-1),OFFSET('C. PoC Adj Factor Scoring'!$E$5:$J$282,,MATCH(S$4,'C. PoC Adj Factor Scoring'!$E$3:$AH$3,0)-1),MATCH(S$2&\" Score\",'C. PoC Adj Factor Scoring'!$E$4:$J$4,0),TRUE)","v":1},{"$f":"VLOOKUP(OFFSET($B:$B,,MATCH(T$4,$B$4:$F$4,0)-1),OFFSET('C. PoC Adj Factor Scoring'!$E$5:$J$282,,MATCH(T$4,'C. PoC Adj Factor Scoring'!$E$3:$AH$3,0)-1),MATCH(T$2&\" Score\",'C. PoC Adj Factor Scoring'!$E$4:$J$4,0),TRUE)","v":1},{"$f":"VLOOKUP(OFFSET($B:$B,,MATCH(U$4,$B$4:$F$4,0)-1),OFFSET('C. PoC Adj Factor Scoring'!$E$5:$J$282,,MATCH(U$4,'C. PoC Adj Factor Scoring'!$E$3:$AH$3,0)-1),MATCH(U$2&\" Score\",'C. PoC Adj Factor Scoring'!$E$4:$J$4,0),TRUE)","v":1},{"$f":"VLOOKUP(OFFSET($B:$B,,MATCH(V$4,$B$4:$F$4,0)-1),OFFSET('C. PoC Adj Factor Scoring'!$E$5:$J$282,,MATCH(V$4,'C. PoC Adj Factor Scoring'!$E$3:$AH$3,0)-1),MATCH(V$2&\" Score\",'C. PoC Adj Factor Scoring'!$E$4:$J$4,0),TRUE)","v":1},{"$f":"VLOOKUP(OFFSET($B:$B,,MATCH(W$4,$B$4:$F$4,0)-1),OFFSET('C. PoC Adj Factor Scoring'!$E$5:$J$282,,MATCH(W$4,'C. PoC Adj Factor Scoring'!$E$3:$AH$3,0)-1),MATCH(W$2&\" Score\",'C. PoC Adj Factor Scoring'!$E$4:$J$4,0),TRUE)","v":1},{"$f":"VLOOKUP(OFFSET($B:$B,,MATCH(X$4,$B$4:$F$4,0)-1),OFFSET('C. PoC Adj Factor Scoring'!$E$5:$J$282,,MATCH(X$4,'C. PoC Adj Factor Scoring'!$E$3:$AH$3,0)-1),MATCH(X$2&\" Score\",'C. PoC Adj Factor Scoring'!$E$4:$J$4,0),TRUE)","v":1},{"$f":"VLOOKUP(OFFSET($B:$B,,MATCH(Y$4,$B$4:$F$4,0)-1),OFFSET('C. PoC Adj Factor Scoring'!$E$5:$J$282,,MATCH(Y$4,'C. PoC Adj Factor Scoring'!$E$3:$AH$3,0)-1),MATCH(Y$2&\" Score\",'C. PoC Adj Factor Scoring'!$E$4:$J$4,0),TRUE)","v":1},{"$f":"VLOOKUP(OFFSET($B:$B,,MATCH(Z$4,$B$4:$F$4,0)-1),OFFSET('C. PoC Adj Factor Scoring'!$E$5:$J$282,,MATCH(Z$4,'C. PoC Adj Factor Scoring'!$E$3:$AH$3,0)-1),MATCH(Z$2&\" Score\",'C. PoC Adj Factor Scoring'!$E$4:$J$4,0),TRUE)","v":1},{"$f":"VLOOKUP(OFFSET($B:$B,,MATCH(AA$4,$B$4:$F$4,0)-1),OFFSET('C. PoC Adj Factor Scoring'!$E$5:$J$282,,MATCH(AA$4,'C. PoC Adj Factor Scoring'!$E$3:$AH$3,0)-1),MATCH(AA$2&\" Score\",'C. PoC Adj Factor Scoring'!$E$4:$J$4,0),TRUE)","v":3},{"$f":"VLOOKUP(OFFSET($B:$B,,MATCH(AB$4,$B$4:$F$4,0)-1),OFFSET('C. PoC Adj Factor Scoring'!$E$5:$J$282,,MATCH(AB$4,'C. PoC Adj Factor Scoring'!$E$3:$AH$3,0)-1),MATCH(AB$2&\" Score\",'C. PoC Adj Factor Scoring'!$E$4:$J$4,0),TRUE)","v":1},{"$f":"VLOOKUP(OFFSET($B:$B,,MATCH(AC$4,$B$4:$F$4,0)-1),OFFSET('C. PoC Adj Factor Scoring'!$E$5:$J$282,,MATCH(AC$4,'C. PoC Adj Factor Scoring'!$E$3:$AH$3,0)-1),MATCH(AC$2&\" Score\",'C. PoC Adj Factor Scoring'!$E$4:$J$4,0),TRUE)","v":1},{"$f":"VLOOKUP(OFFSET($B:$B,,MATCH(AD$4,$B$4:$F$4,0)-1),OFFSET('C. PoC Adj Factor Scoring'!$E$5:$J$282,,MATCH(AD$4,'C. PoC Adj Factor Scoring'!$E$3:$AH$3,0)-1),MATCH(AD$2&\" Score\",'C. PoC Adj Factor Scoring'!$E$4:$J$4,0),TRUE)","v":1},{"$f":"VLOOKUP(OFFSET($B:$B,,MATCH(AE$4,$B$4:$F$4,0)-1),OFFSET('C. PoC Adj Factor Scoring'!$E$5:$J$282,,MATCH(AE$4,'C. PoC Adj Factor Scoring'!$E$3:$AH$3,0)-1),MATCH(AE$2&\" Score\",'C. PoC Adj Factor Scoring'!$E$4:$J$4,0),TRUE)","v":1}]
[{"$f":"'A. Population Info'!A38","v":1000318505},{"$f":"'A. Population Info'!L38","v":"OIL"},{"$f":"'A. Population Info'!M38","v":0},{"$f":"'A. Population Info'!N38","v":0},{"$f":"'A. Population Info'!O38","v":0},{"$f":"'A. Population Info'!P38","v":0},{"$f":"VLOOKUP(OFFSET($B:$B,,MATCH(G$4,$B$4:$F$4,0)-1),OFFSET('C. PoC Adj Factor Scoring'!$E$5:$J$282,,MATCH(G$4,'C. PoC Adj Factor Scoring'!$E$3:$AH$3,0)-1),MATCH(G$2&\" Score\",'C. PoC Adj Factor Scoring'!$E$4:$J$4,0),TRUE)","v":4},{"$f":"VLOOKUP(OFFSET($B:$B,,MATCH(H$4,$B$4:$F$4,0)-1),OFFSET('C. PoC Adj Factor Scoring'!$E$5:$J$282,,MATCH(H$4,'C. PoC Adj Factor Scoring'!$E$3:$AH$3,0)-1),MATCH(H$2&\" Score\",'C. PoC Adj Factor Scoring'!$E$4:$J$4,0),TRUE)","v":1},{"$f":"VLOOKUP(OFFSET($B:$B,,MATCH(I$4,$B$4:$F$4,0)-1),OFFSET('C. PoC Adj Factor Scoring'!$E$5:$J$282,,MATCH(I$4,'C. PoC Adj Factor Scoring'!$E$3:$AH$3,0)-1),MATCH(I$2&\" Score\",'C. PoC Adj Factor Scoring'!$E$4:$J$4,0),TRUE)","v":1},{"$f":"VLOOKUP(OFFSET($B:$B,,MATCH(J$4,$B$4:$F$4,0)-1),OFFSET('C. PoC Adj Factor Scoring'!$E$5:$J$282,,MATCH(J$4,'C. PoC Adj Factor Scoring'!$E$3:$AH$3,0)-1),MATCH(J$2&\" Score\",'C. PoC Adj Factor Scoring'!$E$4:$J$4,0),TRUE)","v":1},{"$f":"VLOOKUP(OFFSET($B:$B,,MATCH(K$4,$B$4:$F$4,0)-1),OFFSET('C. PoC Adj Factor Scoring'!$E$5:$J$282,,MATCH(K$4,'C. PoC Adj Factor Scoring'!$E$3:$AH$3,0)-1),MATCH(K$2&\" Score\",'C. PoC Adj Factor Scoring'!$E$4:$J$4,0),TRUE)","v":1},{"$f":"VLOOKUP(OFFSET($B:$B,,MATCH(L$4,$B$4:$F$4,0)-1),OFFSET('C. PoC Adj Factor Scoring'!$E$5:$J$282,,MATCH(L$4,'C. PoC Adj Factor Scoring'!$E$3:$AH$3,0)-1),MATCH(L$2&\" Score\",'C. PoC Adj Factor Scoring'!$E$4:$J$4,0),TRUE)","v":1},{"$f":"VLOOKUP(OFFSET($B:$B,,MATCH(M$4,$B$4:$F$4,0)-1),OFFSET('C. PoC Adj Factor Scoring'!$E$5:$J$282,,MATCH(M$4,'C. PoC Adj Factor Scoring'!$E$3:$AH$3,0)-1),MATCH(M$2&\" Score\",'C. PoC Adj Factor Scoring'!$E$4:$J$4,0),TRUE)","v":1},{"$f":"VLOOKUP(OFFSET($B:$B,,MATCH(N$4,$B$4:$F$4,0)-1),OFFSET('C. PoC Adj Factor Scoring'!$E$5:$J$282,,MATCH(N$4,'C. PoC Adj Factor Scoring'!$E$3:$AH$3,0)-1),MATCH(N$2&\" Score\",'C. PoC Adj Factor Scoring'!$E$4:$J$4,0),TRUE)","v":1},{"$f":"VLOOKUP(OFFSET($B:$B,,MATCH(O$4,$B$4:$F$4,0)-1),OFFSET('C. PoC Adj Factor Scoring'!$E$5:$J$282,,MATCH(O$4,'C. PoC Adj Factor Scoring'!$E$3:$AH$3,0)-1),MATCH(O$2&\" Score\",'C. PoC Adj Factor Scoring'!$E$4:$J$4,0),TRUE)","v":1},{"$f":"VLOOKUP(OFFSET($B:$B,,MATCH(P$4,$B$4:$F$4,0)-1),OFFSET('C. PoC Adj Factor Scoring'!$E$5:$J$282,,MATCH(P$4,'C. PoC Adj Factor Scoring'!$E$3:$AH$3,0)-1),MATCH(P$2&\" Score\",'C. PoC Adj Factor Scoring'!$E$4:$J$4,0),TRUE)","v":1},{"$f":"VLOOKUP(OFFSET($B:$B,,MATCH(Q$4,$B$4:$F$4,0)-1),OFFSET('C. PoC Adj Factor Scoring'!$E$5:$J$282,,MATCH(Q$4,'C. PoC Adj Factor Scoring'!$E$3:$AH$3,0)-1),MATCH(Q$2&\" Score\",'C. PoC Adj Factor Scoring'!$E$4:$J$4,0),TRUE)","v":1},{"$f":"VLOOKUP(OFFSET($B:$B,,MATCH(R$4,$B$4:$F$4,0)-1),OFFSET('C. PoC Adj Factor Scoring'!$E$5:$J$282,,MATCH(R$4,'C. PoC Adj Factor Scoring'!$E$3:$AH$3,0)-1),MATCH(R$2&\" Score\",'C. PoC Adj Factor Scoring'!$E$4:$J$4,0),TRUE)","v":1},{"$f":"VLOOKUP(OFFSET($B:$B,,MATCH(S$4,$B$4:$F$4,0)-1),OFFSET('C. PoC Adj Factor Scoring'!$E$5:$J$282,,MATCH(S$4,'C. PoC Adj Factor Scoring'!$E$3:$AH$3,0)-1),MATCH(S$2&\" Score\",'C. PoC Adj Factor Scoring'!$E$4:$J$4,0),TRUE)","v":1},{"$f":"VLOOKUP(OFFSET($B:$B,,MATCH(T$4,$B$4:$F$4,0)-1),OFFSET('C. PoC Adj Factor Scoring'!$E$5:$J$282,,MATCH(T$4,'C. PoC Adj Factor Scoring'!$E$3:$AH$3,0)-1),MATCH(T$2&\" Score\",'C. PoC Adj Factor Scoring'!$E$4:$J$4,0),TRUE)","v":1},{"$f":"VLOOKUP(OFFSET($B:$B,,MATCH(U$4,$B$4:$F$4,0)-1),OFFSET('C. PoC Adj Factor Scoring'!$E$5:$J$282,,MATCH(U$4,'C. PoC Adj Factor Scoring'!$E$3:$AH$3,0)-1),MATCH(U$2&\" Score\",'C. PoC Adj Factor Scoring'!$E$4:$J$4,0),TRUE)","v":1},{"$f":"VLOOKUP(OFFSET($B:$B,,MATCH(V$4,$B$4:$F$4,0)-1),OFFSET('C. PoC Adj Factor Scoring'!$E$5:$J$282,,MATCH(V$4,'C. PoC Adj Factor Scoring'!$E$3:$AH$3,0)-1),MATCH(V$2&\" Score\",'C. PoC Adj Factor Scoring'!$E$4:$J$4,0),TRUE)","v":1},{"$f":"VLOOKUP(OFFSET($B:$B,,MATCH(W$4,$B$4:$F$4,0)-1),OFFSET('C. PoC Adj Factor Scoring'!$E$5:$J$282,,MATCH(W$4,'C. PoC Adj Factor Scoring'!$E$3:$AH$3,0)-1),MATCH(W$2&\" Score\",'C. PoC Adj Factor Scoring'!$E$4:$J$4,0),TRUE)","v":1},{"$f":"VLOOKUP(OFFSET($B:$B,,MATCH(X$4,$B$4:$F$4,0)-1),OFFSET('C. PoC Adj Factor Scoring'!$E$5:$J$282,,MATCH(X$4,'C. PoC Adj Factor Scoring'!$E$3:$AH$3,0)-1),MATCH(X$2&\" Score\",'C. PoC Adj Factor Scoring'!$E$4:$J$4,0),TRUE)","v":1},{"$f":"VLOOKUP(OFFSET($B:$B,,MATCH(Y$4,$B$4:$F$4,0)-1),OFFSET('C. PoC Adj Factor Scoring'!$E$5:$J$282,,MATCH(Y$4,'C. PoC Adj Factor Scoring'!$E$3:$AH$3,0)-1),MATCH(Y$2&\" Score\",'C. PoC Adj Factor Scoring'!$E$4:$J$4,0),TRUE)","v":1},{"$f":"VLOOKUP(OFFSET($B:$B,,MATCH(Z$4,$B$4:$F$4,0)-1),OFFSET('C. PoC Adj Factor Scoring'!$E$5:$J$282,,MATCH(Z$4,'C. PoC Adj Factor Scoring'!$E$3:$AH$3,0)-1),MATCH(Z$2&\" Score\",'C. PoC Adj Factor Scoring'!$E$4:$J$4,0),TRUE)","v":1},{"$f":"VLOOKUP(OFFSET($B:$B,,MATCH(AA$4,$B$4:$F$4,0)-1),OFFSET('C. PoC Adj Factor Scoring'!$E$5:$J$282,,MATCH(AA$4,'C. PoC Adj Factor Scoring'!$E$3:$AH$3,0)-1),MATCH(AA$2&\" Score\",'C. PoC Adj Factor Scoring'!$E$4:$J$4,0),TRUE)","v":3},{"$f":"VLOOKUP(OFFSET($B:$B,,MATCH(AB$4,$B$4:$F$4,0)-1),OFFSET('C. PoC Adj Factor Scoring'!$E$5:$J$282,,MATCH(AB$4,'C. PoC Adj Factor Scoring'!$E$3:$AH$3,0)-1),MATCH(AB$2&\" Score\",'C. PoC Adj Factor Scoring'!$E$4:$J$4,0),TRUE)","v":1},{"$f":"VLOOKUP(OFFSET($B:$B,,MATCH(AC$4,$B$4:$F$4,0)-1),OFFSET('C. PoC Adj Factor Scoring'!$E$5:$J$282,,MATCH(AC$4,'C. PoC Adj Factor Scoring'!$E$3:$AH$3,0)-1),MATCH(AC$2&\" Score\",'C. PoC Adj Factor Scoring'!$E$4:$J$4,0),TRUE)","v":1},{"$f":"VLOOKUP(OFFSET($B:$B,,MATCH(AD$4,$B$4:$F$4,0)-1),OFFSET('C. PoC Adj Factor Scoring'!$E$5:$J$282,,MATCH(AD$4,'C. PoC Adj Factor Scoring'!$E$3:$AH$3,0)-1),MATCH(AD$2&\" Score\",'C. PoC Adj Factor Scoring'!$E$4:$J$4,0),TRUE)","v":1},{"$f":"VLOOKUP(OFFSET($B:$B,,MATCH(AE$4,$B$4:$F$4,0)-1),OFFSET('C. PoC Adj Factor Scoring'!$E$5:$J$282,,MATCH(AE$4,'C. PoC Adj Factor Scoring'!$E$3:$AH$3,0)-1),MATCH(AE$2&\" Score\",'C. PoC Adj Factor Scoring'!$E$4:$J$4,0),TRUE)","v":1}]
[{"$f":"'A. Population Info'!A39","v":1000318801},{"$f":"'A. Population Info'!L39","v":"OIL"},{"$f":"'A. Population Info'!M39","v":0},{"$f":"'A. Population Info'!N39","v":0},{"$f":"'A. Population Info'!O39","v":0},{"$f":"'A. Population Info'!P39","v":0},{"$f":"VLOOKUP(OFFSET($B:$B,,MATCH(G$4,$B$4:$F$4,0)-1),OFFSET('C. PoC Adj Factor Scoring'!$E$5:$J$282,,MATCH(G$4,'C. PoC Adj Factor Scoring'!$E$3:$AH$3,0)-1),MATCH(G$2&\" Score\",'C. PoC Adj Factor Scoring'!$E$4:$J$4,0),TRUE)","v":4},{"$f":"VLOOKUP(OFFSET($B:$B,,MATCH(H$4,$B$4:$F$4,0)-1),OFFSET('C. PoC Adj Factor Scoring'!$E$5:$J$282,,MATCH(H$4,'C. PoC Adj Factor Scoring'!$E$3:$AH$3,0)-1),MATCH(H$2&\" Score\",'C. PoC Adj Factor Scoring'!$E$4:$J$4,0),TRUE)","v":1},{"$f":"VLOOKUP(OFFSET($B:$B,,MATCH(I$4,$B$4:$F$4,0)-1),OFFSET('C. PoC Adj Factor Scoring'!$E$5:$J$282,,MATCH(I$4,'C. PoC Adj Factor Scoring'!$E$3:$AH$3,0)-1),MATCH(I$2&\" Score\",'C. PoC Adj Factor Scoring'!$E$4:$J$4,0),TRUE)","v":1},{"$f":"VLOOKUP(OFFSET($B:$B,,MATCH(J$4,$B$4:$F$4,0)-1),OFFSET('C. PoC Adj Factor Scoring'!$E$5:$J$282,,MATCH(J$4,'C. PoC Adj Factor Scoring'!$E$3:$AH$3,0)-1),MATCH(J$2&\" Score\",'C. PoC Adj Factor Scoring'!$E$4:$J$4,0),TRUE)","v":1},{"$f":"VLOOKUP(OFFSET($B:$B,,MATCH(K$4,$B$4:$F$4,0)-1),OFFSET('C. PoC Adj Factor Scoring'!$E$5:$J$282,,MATCH(K$4,'C. PoC Adj Factor Scoring'!$E$3:$AH$3,0)-1),MATCH(K$2&\" Score\",'C. PoC Adj Factor Scoring'!$E$4:$J$4,0),TRUE)","v":1},{"$f":"VLOOKUP(OFFSET($B:$B,,MATCH(L$4,$B$4:$F$4,0)-1),OFFSET('C. PoC Adj Factor Scoring'!$E$5:$J$282,,MATCH(L$4,'C. PoC Adj Factor Scoring'!$E$3:$AH$3,0)-1),MATCH(L$2&\" Score\",'C. PoC Adj Factor Scoring'!$E$4:$J$4,0),TRUE)","v":1},{"$f":"VLOOKUP(OFFSET($B:$B,,MATCH(M$4,$B$4:$F$4,0)-1),OFFSET('C. PoC Adj Factor Scoring'!$E$5:$J$282,,MATCH(M$4,'C. PoC Adj Factor Scoring'!$E$3:$AH$3,0)-1),MATCH(M$2&\" Score\",'C. PoC Adj Factor Scoring'!$E$4:$J$4,0),TRUE)","v":1},{"$f":"VLOOKUP(OFFSET($B:$B,,MATCH(N$4,$B$4:$F$4,0)-1),OFFSET('C. PoC Adj Factor Scoring'!$E$5:$J$282,,MATCH(N$4,'C. PoC Adj Factor Scoring'!$E$3:$AH$3,0)-1),MATCH(N$2&\" Score\",'C. PoC Adj Factor Scoring'!$E$4:$J$4,0),TRUE)","v":1},{"$f":"VLOOKUP(OFFSET($B:$B,,MATCH(O$4,$B$4:$F$4,0)-1),OFFSET('C. PoC Adj Factor Scoring'!$E$5:$J$282,,MATCH(O$4,'C. PoC Adj Factor Scoring'!$E$3:$AH$3,0)-1),MATCH(O$2&\" Score\",'C. PoC Adj Factor Scoring'!$E$4:$J$4,0),TRUE)","v":1},{"$f":"VLOOKUP(OFFSET($B:$B,,MATCH(P$4,$B$4:$F$4,0)-1),OFFSET('C. PoC Adj Factor Scoring'!$E$5:$J$282,,MATCH(P$4,'C. PoC Adj Factor Scoring'!$E$3:$AH$3,0)-1),MATCH(P$2&\" Score\",'C. PoC Adj Factor Scoring'!$E$4:$J$4,0),TRUE)","v":1},{"$f":"VLOOKUP(OFFSET($B:$B,,MATCH(Q$4,$B$4:$F$4,0)-1),OFFSET('C. PoC Adj Factor Scoring'!$E$5:$J$282,,MATCH(Q$4,'C. PoC Adj Factor Scoring'!$E$3:$AH$3,0)-1),MATCH(Q$2&\" Score\",'C. PoC Adj Factor Scoring'!$E$4:$J$4,0),TRUE)","v":1},{"$f":"VLOOKUP(OFFSET($B:$B,,MATCH(R$4,$B$4:$F$4,0)-1),OFFSET('C. PoC Adj Factor Scoring'!$E$5:$J$282,,MATCH(R$4,'C. PoC Adj Factor Scoring'!$E$3:$AH$3,0)-1),MATCH(R$2&\" Score\",'C. PoC Adj Factor Scoring'!$E$4:$J$4,0),TRUE)","v":1},{"$f":"VLOOKUP(OFFSET($B:$B,,MATCH(S$4,$B$4:$F$4,0)-1),OFFSET('C. PoC Adj Factor Scoring'!$E$5:$J$282,,MATCH(S$4,'C. PoC Adj Factor Scoring'!$E$3:$AH$3,0)-1),MATCH(S$2&\" Score\",'C. PoC Adj Factor Scoring'!$E$4:$J$4,0),TRUE)","v":1},{"$f":"VLOOKUP(OFFSET($B:$B,,MATCH(T$4,$B$4:$F$4,0)-1),OFFSET('C. PoC Adj Factor Scoring'!$E$5:$J$282,,MATCH(T$4,'C. PoC Adj Factor Scoring'!$E$3:$AH$3,0)-1),MATCH(T$2&\" Score\",'C. PoC Adj Factor Scoring'!$E$4:$J$4,0),TRUE)","v":1},{"$f":"VLOOKUP(OFFSET($B:$B,,MATCH(U$4,$B$4:$F$4,0)-1),OFFSET('C. PoC Adj Factor Scoring'!$E$5:$J$282,,MATCH(U$4,'C. PoC Adj Factor Scoring'!$E$3:$AH$3,0)-1),MATCH(U$2&\" Score\",'C. PoC Adj Factor Scoring'!$E$4:$J$4,0),TRUE)","v":1},{"$f":"VLOOKUP(OFFSET($B:$B,,MATCH(V$4,$B$4:$F$4,0)-1),OFFSET('C. PoC Adj Factor Scoring'!$E$5:$J$282,,MATCH(V$4,'C. PoC Adj Factor Scoring'!$E$3:$AH$3,0)-1),MATCH(V$2&\" Score\",'C. PoC Adj Factor Scoring'!$E$4:$J$4,0),TRUE)","v":1},{"$f":"VLOOKUP(OFFSET($B:$B,,MATCH(W$4,$B$4:$F$4,0)-1),OFFSET('C. PoC Adj Factor Scoring'!$E$5:$J$282,,MATCH(W$4,'C. PoC Adj Factor Scoring'!$E$3:$AH$3,0)-1),MATCH(W$2&\" Score\",'C. PoC Adj Factor Scoring'!$E$4:$J$4,0),TRUE)","v":1},{"$f":"VLOOKUP(OFFSET($B:$B,,MATCH(X$4,$B$4:$F$4,0)-1),OFFSET('C. PoC Adj Factor Scoring'!$E$5:$J$282,,MATCH(X$4,'C. PoC Adj Factor Scoring'!$E$3:$AH$3,0)-1),MATCH(X$2&\" Score\",'C. PoC Adj Factor Scoring'!$E$4:$J$4,0),TRUE)","v":1},{"$f":"VLOOKUP(OFFSET($B:$B,,MATCH(Y$4,$B$4:$F$4,0)-1),OFFSET('C. PoC Adj Factor Scoring'!$E$5:$J$282,,MATCH(Y$4,'C. PoC Adj Factor Scoring'!$E$3:$AH$3,0)-1),MATCH(Y$2&\" Score\",'C. PoC Adj Factor Scoring'!$E$4:$J$4,0),TRUE)","v":1},{"$f":"VLOOKUP(OFFSET($B:$B,,MATCH(Z$4,$B$4:$F$4,0)-1),OFFSET('C. PoC Adj Factor Scoring'!$E$5:$J$282,,MATCH(Z$4,'C. PoC Adj Factor Scoring'!$E$3:$AH$3,0)-1),MATCH(Z$2&\" Score\",'C. PoC Adj Factor Scoring'!$E$4:$J$4,0),TRUE)","v":1},{"$f":"VLOOKUP(OFFSET($B:$B,,MATCH(AA$4,$B$4:$F$4,0)-1),OFFSET('C. PoC Adj Factor Scoring'!$E$5:$J$282,,MATCH(AA$4,'C. PoC Adj Factor Scoring'!$E$3:$AH$3,0)-1),MATCH(AA$2&\" Score\",'C. PoC Adj Factor Scoring'!$E$4:$J$4,0),TRUE)","v":3},{"$f":"VLOOKUP(OFFSET($B:$B,,MATCH(AB$4,$B$4:$F$4,0)-1),OFFSET('C. PoC Adj Factor Scoring'!$E$5:$J$282,,MATCH(AB$4,'C. PoC Adj Factor Scoring'!$E$3:$AH$3,0)-1),MATCH(AB$2&\" Score\",'C. PoC Adj Factor Scoring'!$E$4:$J$4,0),TRUE)","v":1},{"$f":"VLOOKUP(OFFSET($B:$B,,MATCH(AC$4,$B$4:$F$4,0)-1),OFFSET('C. PoC Adj Factor Scoring'!$E$5:$J$282,,MATCH(AC$4,'C. PoC Adj Factor Scoring'!$E$3:$AH$3,0)-1),MATCH(AC$2&\" Score\",'C. PoC Adj Factor Scoring'!$E$4:$J$4,0),TRUE)","v":1},{"$f":"VLOOKUP(OFFSET($B:$B,,MATCH(AD$4,$B$4:$F$4,0)-1),OFFSET('C. PoC Adj Factor Scoring'!$E$5:$J$282,,MATCH(AD$4,'C. PoC Adj Factor Scoring'!$E$3:$AH$3,0)-1),MATCH(AD$2&\" Score\",'C. PoC Adj Factor Scoring'!$E$4:$J$4,0),TRUE)","v":1},{"$f":"VLOOKUP(OFFSET($B:$B,,MATCH(AE$4,$B$4:$F$4,0)-1),OFFSET('C. PoC Adj Factor Scoring'!$E$5:$J$282,,MATCH(AE$4,'C. PoC Adj Factor Scoring'!$E$3:$AH$3,0)-1),MATCH(AE$2&\" Score\",'C. PoC Adj Factor Scoring'!$E$4:$J$4,0),TRUE)","v":1}]
[{"$f":"'A. Population Info'!A40","v":1000318835},{"$f":"'A. Population Info'!L40","v":"OIL"},{"$f":"'A. Population Info'!M40","v":0},{"$f":"'A. Population Info'!N40","v":0},{"$f":"'A. Population Info'!O40","v":0},{"$f":"'A. Population Info'!P40","v":0},{"$f":"VLOOKUP(OFFSET($B:$B,,MATCH(G$4,$B$4:$F$4,0)-1),OFFSET('C. PoC Adj Factor Scoring'!$E$5:$J$282,,MATCH(G$4,'C. PoC Adj Factor Scoring'!$E$3:$AH$3,0)-1),MATCH(G$2&\" Score\",'C. PoC Adj Factor Scoring'!$E$4:$J$4,0),TRUE)","v":4},{"$f":"VLOOKUP(OFFSET($B:$B,,MATCH(H$4,$B$4:$F$4,0)-1),OFFSET('C. PoC Adj Factor Scoring'!$E$5:$J$282,,MATCH(H$4,'C. PoC Adj Factor Scoring'!$E$3:$AH$3,0)-1),MATCH(H$2&\" Score\",'C. PoC Adj Factor Scoring'!$E$4:$J$4,0),TRUE)","v":1},{"$f":"VLOOKUP(OFFSET($B:$B,,MATCH(I$4,$B$4:$F$4,0)-1),OFFSET('C. PoC Adj Factor Scoring'!$E$5:$J$282,,MATCH(I$4,'C. PoC Adj Factor Scoring'!$E$3:$AH$3,0)-1),MATCH(I$2&\" Score\",'C. PoC Adj Factor Scoring'!$E$4:$J$4,0),TRUE)","v":1},{"$f":"VLOOKUP(OFFSET($B:$B,,MATCH(J$4,$B$4:$F$4,0)-1),OFFSET('C. PoC Adj Factor Scoring'!$E$5:$J$282,,MATCH(J$4,'C. PoC Adj Factor Scoring'!$E$3:$AH$3,0)-1),MATCH(J$2&\" Score\",'C. PoC Adj Factor Scoring'!$E$4:$J$4,0),TRUE)","v":1},{"$f":"VLOOKUP(OFFSET($B:$B,,MATCH(K$4,$B$4:$F$4,0)-1),OFFSET('C. PoC Adj Factor Scoring'!$E$5:$J$282,,MATCH(K$4,'C. PoC Adj Factor Scoring'!$E$3:$AH$3,0)-1),MATCH(K$2&\" Score\",'C. PoC Adj Factor Scoring'!$E$4:$J$4,0),TRUE)","v":1},{"$f":"VLOOKUP(OFFSET($B:$B,,MATCH(L$4,$B$4:$F$4,0)-1),OFFSET('C. PoC Adj Factor Scoring'!$E$5:$J$282,,MATCH(L$4,'C. PoC Adj Factor Scoring'!$E$3:$AH$3,0)-1),MATCH(L$2&\" Score\",'C. PoC Adj Factor Scoring'!$E$4:$J$4,0),TRUE)","v":1},{"$f":"VLOOKUP(OFFSET($B:$B,,MATCH(M$4,$B$4:$F$4,0)-1),OFFSET('C. PoC Adj Factor Scoring'!$E$5:$J$282,,MATCH(M$4,'C. PoC Adj Factor Scoring'!$E$3:$AH$3,0)-1),MATCH(M$2&\" Score\",'C. PoC Adj Factor Scoring'!$E$4:$J$4,0),TRUE)","v":1},{"$f":"VLOOKUP(OFFSET($B:$B,,MATCH(N$4,$B$4:$F$4,0)-1),OFFSET('C. PoC Adj Factor Scoring'!$E$5:$J$282,,MATCH(N$4,'C. PoC Adj Factor Scoring'!$E$3:$AH$3,0)-1),MATCH(N$2&\" Score\",'C. PoC Adj Factor Scoring'!$E$4:$J$4,0),TRUE)","v":1},{"$f":"VLOOKUP(OFFSET($B:$B,,MATCH(O$4,$B$4:$F$4,0)-1),OFFSET('C. PoC Adj Factor Scoring'!$E$5:$J$282,,MATCH(O$4,'C. PoC Adj Factor Scoring'!$E$3:$AH$3,0)-1),MATCH(O$2&\" Score\",'C. PoC Adj Factor Scoring'!$E$4:$J$4,0),TRUE)","v":1},{"$f":"VLOOKUP(OFFSET($B:$B,,MATCH(P$4,$B$4:$F$4,0)-1),OFFSET('C. PoC Adj Factor Scoring'!$E$5:$J$282,,MATCH(P$4,'C. PoC Adj Factor Scoring'!$E$3:$AH$3,0)-1),MATCH(P$2&\" Score\",'C. PoC Adj Factor Scoring'!$E$4:$J$4,0),TRUE)","v":1},{"$f":"VLOOKUP(OFFSET($B:$B,,MATCH(Q$4,$B$4:$F$4,0)-1),OFFSET('C. PoC Adj Factor Scoring'!$E$5:$J$282,,MATCH(Q$4,'C. PoC Adj Factor Scoring'!$E$3:$AH$3,0)-1),MATCH(Q$2&\" Score\",'C. PoC Adj Factor Scoring'!$E$4:$J$4,0),TRUE)","v":1},{"$f":"VLOOKUP(OFFSET($B:$B,,MATCH(R$4,$B$4:$F$4,0)-1),OFFSET('C. PoC Adj Factor Scoring'!$E$5:$J$282,,MATCH(R$4,'C. PoC Adj Factor Scoring'!$E$3:$AH$3,0)-1),MATCH(R$2&\" Score\",'C. PoC Adj Factor Scoring'!$E$4:$J$4,0),TRUE)","v":1},{"$f":"VLOOKUP(OFFSET($B:$B,,MATCH(S$4,$B$4:$F$4,0)-1),OFFSET('C. PoC Adj Factor Scoring'!$E$5:$J$282,,MATCH(S$4,'C. PoC Adj Factor Scoring'!$E$3:$AH$3,0)-1),MATCH(S$2&\" Score\",'C. PoC Adj Factor Scoring'!$E$4:$J$4,0),TRUE)","v":1},{"$f":"VLOOKUP(OFFSET($B:$B,,MATCH(T$4,$B$4:$F$4,0)-1),OFFSET('C. PoC Adj Factor Scoring'!$E$5:$J$282,,MATCH(T$4,'C. PoC Adj Factor Scoring'!$E$3:$AH$3,0)-1),MATCH(T$2&\" Score\",'C. PoC Adj Factor Scoring'!$E$4:$J$4,0),TRUE)","v":1},{"$f":"VLOOKUP(OFFSET($B:$B,,MATCH(U$4,$B$4:$F$4,0)-1),OFFSET('C. PoC Adj Factor Scoring'!$E$5:$J$282,,MATCH(U$4,'C. PoC Adj Factor Scoring'!$E$3:$AH$3,0)-1),MATCH(U$2&\" Score\",'C. PoC Adj Factor Scoring'!$E$4:$J$4,0),TRUE)","v":1},{"$f":"VLOOKUP(OFFSET($B:$B,,MATCH(V$4,$B$4:$F$4,0)-1),OFFSET('C. PoC Adj Factor Scoring'!$E$5:$J$282,,MATCH(V$4,'C. PoC Adj Factor Scoring'!$E$3:$AH$3,0)-1),MATCH(V$2&\" Score\",'C. PoC Adj Factor Scoring'!$E$4:$J$4,0),TRUE)","v":1},{"$f":"VLOOKUP(OFFSET($B:$B,,MATCH(W$4,$B$4:$F$4,0)-1),OFFSET('C. PoC Adj Factor Scoring'!$E$5:$J$282,,MATCH(W$4,'C. PoC Adj Factor Scoring'!$E$3:$AH$3,0)-1),MATCH(W$2&\" Score\",'C. PoC Adj Factor Scoring'!$E$4:$J$4,0),TRUE)","v":1},{"$f":"VLOOKUP(OFFSET($B:$B,,MATCH(X$4,$B$4:$F$4,0)-1),OFFSET('C. PoC Adj Factor Scoring'!$E$5:$J$282,,MATCH(X$4,'C. PoC Adj Factor Scoring'!$E$3:$AH$3,0)-1),MATCH(X$2&\" Score\",'C. PoC Adj Factor Scoring'!$E$4:$J$4,0),TRUE)","v":1},{"$f":"VLOOKUP(OFFSET($B:$B,,MATCH(Y$4,$B$4:$F$4,0)-1),OFFSET('C. PoC Adj Factor Scoring'!$E$5:$J$282,,MATCH(Y$4,'C. PoC Adj Factor Scoring'!$E$3:$AH$3,0)-1),MATCH(Y$2&\" Score\",'C. PoC Adj Factor Scoring'!$E$4:$J$4,0),TRUE)","v":1},{"$f":"VLOOKUP(OFFSET($B:$B,,MATCH(Z$4,$B$4:$F$4,0)-1),OFFSET('C. PoC Adj Factor Scoring'!$E$5:$J$282,,MATCH(Z$4,'C. PoC Adj Factor Scoring'!$E$3:$AH$3,0)-1),MATCH(Z$2&\" Score\",'C. PoC Adj Factor Scoring'!$E$4:$J$4,0),TRUE)","v":1},{"$f":"VLOOKUP(OFFSET($B:$B,,MATCH(AA$4,$B$4:$F$4,0)-1),OFFSET('C. PoC Adj Factor Scoring'!$E$5:$J$282,,MATCH(AA$4,'C. PoC Adj Factor Scoring'!$E$3:$AH$3,0)-1),MATCH(AA$2&\" Score\",'C. PoC Adj Factor Scoring'!$E$4:$J$4,0),TRUE)","v":3},{"$f":"VLOOKUP(OFFSET($B:$B,,MATCH(AB$4,$B$4:$F$4,0)-1),OFFSET('C. PoC Adj Factor Scoring'!$E$5:$J$282,,MATCH(AB$4,'C. PoC Adj Factor Scoring'!$E$3:$AH$3,0)-1),MATCH(AB$2&\" Score\",'C. PoC Adj Factor Scoring'!$E$4:$J$4,0),TRUE)","v":1},{"$f":"VLOOKUP(OFFSET($B:$B,,MATCH(AC$4,$B$4:$F$4,0)-1),OFFSET('C. PoC Adj Factor Scoring'!$E$5:$J$282,,MATCH(AC$4,'C. PoC Adj Factor Scoring'!$E$3:$AH$3,0)-1),MATCH(AC$2&\" Score\",'C. PoC Adj Factor Scoring'!$E$4:$J$4,0),TRUE)","v":1},{"$f":"VLOOKUP(OFFSET($B:$B,,MATCH(AD$4,$B$4:$F$4,0)-1),OFFSET('C. PoC Adj Factor Scoring'!$E$5:$J$282,,MATCH(AD$4,'C. PoC Adj Factor Scoring'!$E$3:$AH$3,0)-1),MATCH(AD$2&\" Score\",'C. PoC Adj Factor Scoring'!$E$4:$J$4,0),TRUE)","v":1},{"$f":"VLOOKUP(OFFSET($B:$B,,MATCH(AE$4,$B$4:$F$4,0)-1),OFFSET('C. PoC Adj Factor Scoring'!$E$5:$J$282,,MATCH(AE$4,'C. PoC Adj Factor Scoring'!$E$3:$AH$3,0)-1),MATCH(AE$2&\" Score\",'C. PoC Adj Factor Scoring'!$E$4:$J$4,0),TRUE)","v":1}]
[{"$f":"'A. Population Info'!A41","v":1000318894},{"$f":"'A. Population Info'!L41","v":"OIL"},{"$f":"'A. Population Info'!M41","v":0},{"$f":"'A. Population Info'!N41","v":0},{"$f":"'A. Population Info'!O41","v":0},{"$f":"'A. Population Info'!P41","v":0},{"$f":"VLOOKUP(OFFSET($B:$B,,MATCH(G$4,$B$4:$F$4,0)-1),OFFSET('C. PoC Adj Factor Scoring'!$E$5:$J$282,,MATCH(G$4,'C. PoC Adj Factor Scoring'!$E$3:$AH$3,0)-1),MATCH(G$2&\" Score\",'C. PoC Adj Factor Scoring'!$E$4:$J$4,0),TRUE)","v":4},{"$f":"VLOOKUP(OFFSET($B:$B,,MATCH(H$4,$B$4:$F$4,0)-1),OFFSET('C. PoC Adj Factor Scoring'!$E$5:$J$282,,MATCH(H$4,'C. PoC Adj Factor Scoring'!$E$3:$AH$3,0)-1),MATCH(H$2&\" Score\",'C. PoC Adj Factor Scoring'!$E$4:$J$4,0),TRUE)","v":1},{"$f":"VLOOKUP(OFFSET($B:$B,,MATCH(I$4,$B$4:$F$4,0)-1),OFFSET('C. PoC Adj Factor Scoring'!$E$5:$J$282,,MATCH(I$4,'C. PoC Adj Factor Scoring'!$E$3:$AH$3,0)-1),MATCH(I$2&\" Score\",'C. PoC Adj Factor Scoring'!$E$4:$J$4,0),TRUE)","v":1},{"$f":"VLOOKUP(OFFSET($B:$B,,MATCH(J$4,$B$4:$F$4,0)-1),OFFSET('C. PoC Adj Factor Scoring'!$E$5:$J$282,,MATCH(J$4,'C. PoC Adj Factor Scoring'!$E$3:$AH$3,0)-1),MATCH(J$2&\" Score\",'C. PoC Adj Factor Scoring'!$E$4:$J$4,0),TRUE)","v":1},{"$f":"VLOOKUP(OFFSET($B:$B,,MATCH(K$4,$B$4:$F$4,0)-1),OFFSET('C. PoC Adj Factor Scoring'!$E$5:$J$282,,MATCH(K$4,'C. PoC Adj Factor Scoring'!$E$3:$AH$3,0)-1),MATCH(K$2&\" Score\",'C. PoC Adj Factor Scoring'!$E$4:$J$4,0),TRUE)","v":1},{"$f":"VLOOKUP(OFFSET($B:$B,,MATCH(L$4,$B$4:$F$4,0)-1),OFFSET('C. PoC Adj Factor Scoring'!$E$5:$J$282,,MATCH(L$4,'C. PoC Adj Factor Scoring'!$E$3:$AH$3,0)-1),MATCH(L$2&\" Score\",'C. PoC Adj Factor Scoring'!$E$4:$J$4,0),TRUE)","v":1},{"$f":"VLOOKUP(OFFSET($B:$B,,MATCH(M$4,$B$4:$F$4,0)-1),OFFSET('C. PoC Adj Factor Scoring'!$E$5:$J$282,,MATCH(M$4,'C. PoC Adj Factor Scoring'!$E$3:$AH$3,0)-1),MATCH(M$2&\" Score\",'C. PoC Adj Factor Scoring'!$E$4:$J$4,0),TRUE)","v":1},{"$f":"VLOOKUP(OFFSET($B:$B,,MATCH(N$4,$B$4:$F$4,0)-1),OFFSET('C. PoC Adj Factor Scoring'!$E$5:$J$282,,MATCH(N$4,'C. PoC Adj Factor Scoring'!$E$3:$AH$3,0)-1),MATCH(N$2&\" Score\",'C. PoC Adj Factor Scoring'!$E$4:$J$4,0),TRUE)","v":1},{"$f":"VLOOKUP(OFFSET($B:$B,,MATCH(O$4,$B$4:$F$4,0)-1),OFFSET('C. PoC Adj Factor Scoring'!$E$5:$J$282,,MATCH(O$4,'C. PoC Adj Factor Scoring'!$E$3:$AH$3,0)-1),MATCH(O$2&\" Score\",'C. PoC Adj Factor Scoring'!$E$4:$J$4,0),TRUE)","v":1},{"$f":"VLOOKUP(OFFSET($B:$B,,MATCH(P$4,$B$4:$F$4,0)-1),OFFSET('C. PoC Adj Factor Scoring'!$E$5:$J$282,,MATCH(P$4,'C. PoC Adj Factor Scoring'!$E$3:$AH$3,0)-1),MATCH(P$2&\" Score\",'C. PoC Adj Factor Scoring'!$E$4:$J$4,0),TRUE)","v":1},{"$f":"VLOOKUP(OFFSET($B:$B,,MATCH(Q$4,$B$4:$F$4,0)-1),OFFSET('C. PoC Adj Factor Scoring'!$E$5:$J$282,,MATCH(Q$4,'C. PoC Adj Factor Scoring'!$E$3:$AH$3,0)-1),MATCH(Q$2&\" Score\",'C. PoC Adj Factor Scoring'!$E$4:$J$4,0),TRUE)","v":1},{"$f":"VLOOKUP(OFFSET($B:$B,,MATCH(R$4,$B$4:$F$4,0)-1),OFFSET('C. PoC Adj Factor Scoring'!$E$5:$J$282,,MATCH(R$4,'C. PoC Adj Factor Scoring'!$E$3:$AH$3,0)-1),MATCH(R$2&\" Score\",'C. PoC Adj Factor Scoring'!$E$4:$J$4,0),TRUE)","v":1},{"$f":"VLOOKUP(OFFSET($B:$B,,MATCH(S$4,$B$4:$F$4,0)-1),OFFSET('C. PoC Adj Factor Scoring'!$E$5:$J$282,,MATCH(S$4,'C. PoC Adj Factor Scoring'!$E$3:$AH$3,0)-1),MATCH(S$2&\" Score\",'C. PoC Adj Factor Scoring'!$E$4:$J$4,0),TRUE)","v":1},{"$f":"VLOOKUP(OFFSET($B:$B,,MATCH(T$4,$B$4:$F$4,0)-1),OFFSET('C. PoC Adj Factor Scoring'!$E$5:$J$282,,MATCH(T$4,'C. PoC Adj Factor Scoring'!$E$3:$AH$3,0)-1),MATCH(T$2&\" Score\",'C. PoC Adj Factor Scoring'!$E$4:$J$4,0),TRUE)","v":1},{"$f":"VLOOKUP(OFFSET($B:$B,,MATCH(U$4,$B$4:$F$4,0)-1),OFFSET('C. PoC Adj Factor Scoring'!$E$5:$J$282,,MATCH(U$4,'C. PoC Adj Factor Scoring'!$E$3:$AH$3,0)-1),MATCH(U$2&\" Score\",'C. PoC Adj Factor Scoring'!$E$4:$J$4,0),TRUE)","v":1},{"$f":"VLOOKUP(OFFSET($B:$B,,MATCH(V$4,$B$4:$F$4,0)-1),OFFSET('C. PoC Adj Factor Scoring'!$E$5:$J$282,,MATCH(V$4,'C. PoC Adj Factor Scoring'!$E$3:$AH$3,0)-1),MATCH(V$2&\" Score\",'C. PoC Adj Factor Scoring'!$E$4:$J$4,0),TRUE)","v":1},{"$f":"VLOOKUP(OFFSET($B:$B,,MATCH(W$4,$B$4:$F$4,0)-1),OFFSET('C. PoC Adj Factor Scoring'!$E$5:$J$282,,MATCH(W$4,'C. PoC Adj Factor Scoring'!$E$3:$AH$3,0)-1),MATCH(W$2&\" Score\",'C. PoC Adj Factor Scoring'!$E$4:$J$4,0),TRUE)","v":1},{"$f":"VLOOKUP(OFFSET($B:$B,,MATCH(X$4,$B$4:$F$4,0)-1),OFFSET('C. PoC Adj Factor Scoring'!$E$5:$J$282,,MATCH(X$4,'C. PoC Adj Factor Scoring'!$E$3:$AH$3,0)-1),MATCH(X$2&\" Score\",'C. PoC Adj Factor Scoring'!$E$4:$J$4,0),TRUE)","v":1},{"$f":"VLOOKUP(OFFSET($B:$B,,MATCH(Y$4,$B$4:$F$4,0)-1),OFFSET('C. PoC Adj Factor Scoring'!$E$5:$J$282,,MATCH(Y$4,'C. PoC Adj Factor Scoring'!$E$3:$AH$3,0)-1),MATCH(Y$2&\" Score\",'C. PoC Adj Factor Scoring'!$E$4:$J$4,0),TRUE)","v":1},{"$f":"VLOOKUP(OFFSET($B:$B,,MATCH(Z$4,$B$4:$F$4,0)-1),OFFSET('C. PoC Adj Factor Scoring'!$E$5:$J$282,,MATCH(Z$4,'C. PoC Adj Factor Scoring'!$E$3:$AH$3,0)-1),MATCH(Z$2&\" Score\",'C. PoC Adj Factor Scoring'!$E$4:$J$4,0),TRUE)","v":1},{"$f":"VLOOKUP(OFFSET($B:$B,,MATCH(AA$4,$B$4:$F$4,0)-1),OFFSET('C. PoC Adj Factor Scoring'!$E$5:$J$282,,MATCH(AA$4,'C. PoC Adj Factor Scoring'!$E$3:$AH$3,0)-1),MATCH(AA$2&\" Score\",'C. PoC Adj Factor Scoring'!$E$4:$J$4,0),TRUE)","v":3},{"$f":"VLOOKUP(OFFSET($B:$B,,MATCH(AB$4,$B$4:$F$4,0)-1),OFFSET('C. PoC Adj Factor Scoring'!$E$5:$J$282,,MATCH(AB$4,'C. PoC Adj Factor Scoring'!$E$3:$AH$3,0)-1),MATCH(AB$2&\" Score\",'C. PoC Adj Factor Scoring'!$E$4:$J$4,0),TRUE)","v":1},{"$f":"VLOOKUP(OFFSET($B:$B,,MATCH(AC$4,$B$4:$F$4,0)-1),OFFSET('C. PoC Adj Factor Scoring'!$E$5:$J$282,,MATCH(AC$4,'C. PoC Adj Factor Scoring'!$E$3:$AH$3,0)-1),MATCH(AC$2&\" Score\",'C. PoC Adj Factor Scoring'!$E$4:$J$4,0),TRUE)","v":1},{"$f":"VLOOKUP(OFFSET($B:$B,,MATCH(AD$4,$B$4:$F$4,0)-1),OFFSET('C. PoC Adj Factor Scoring'!$E$5:$J$282,,MATCH(AD$4,'C. PoC Adj Factor Scoring'!$E$3:$AH$3,0)-1),MATCH(AD$2&\" Score\",'C. PoC Adj Factor Scoring'!$E$4:$J$4,0),TRUE)","v":1},{"$f":"VLOOKUP(OFFSET($B:$B,,MATCH(AE$4,$B$4:$F$4,0)-1),OFFSET('C. PoC Adj Factor Scoring'!$E$5:$J$282,,MATCH(AE$4,'C. PoC Adj Factor Scoring'!$E$3:$AH$3,0)-1),MATCH(AE$2&\" Score\",'C. PoC Adj Factor Scoring'!$E$4:$J$4,0),TRUE)","v":1}]
[{"$f":"'A. Population Info'!A42","v":1000318924},{"$f":"'A. Population Info'!L42","v":"OIL"},{"$f":"'A. Population Info'!M42","v":0},{"$f":"'A. Population Info'!N42","v":0},{"$f":"'A. Population Info'!O42","v":0},{"$f":"'A. Population Info'!P42","v":0},{"$f":"VLOOKUP(OFFSET($B:$B,,MATCH(G$4,$B$4:$F$4,0)-1),OFFSET('C. PoC Adj Factor Scoring'!$E$5:$J$282,,MATCH(G$4,'C. PoC Adj Factor Scoring'!$E$3:$AH$3,0)-1),MATCH(G$2&\" Score\",'C. PoC Adj Factor Scoring'!$E$4:$J$4,0),TRUE)","v":4},{"$f":"VLOOKUP(OFFSET($B:$B,,MATCH(H$4,$B$4:$F$4,0)-1),OFFSET('C. PoC Adj Factor Scoring'!$E$5:$J$282,,MATCH(H$4,'C. PoC Adj Factor Scoring'!$E$3:$AH$3,0)-1),MATCH(H$2&\" Score\",'C. PoC Adj Factor Scoring'!$E$4:$J$4,0),TRUE)","v":1},{"$f":"VLOOKUP(OFFSET($B:$B,,MATCH(I$4,$B$4:$F$4,0)-1),OFFSET('C. PoC Adj Factor Scoring'!$E$5:$J$282,,MATCH(I$4,'C. PoC Adj Factor Scoring'!$E$3:$AH$3,0)-1),MATCH(I$2&\" Score\",'C. PoC Adj Factor Scoring'!$E$4:$J$4,0),TRUE)","v":1},{"$f":"VLOOKUP(OFFSET($B:$B,,MATCH(J$4,$B$4:$F$4,0)-1),OFFSET('C. PoC Adj Factor Scoring'!$E$5:$J$282,,MATCH(J$4,'C. PoC Adj Factor Scoring'!$E$3:$AH$3,0)-1),MATCH(J$2&\" Score\",'C. PoC Adj Factor Scoring'!$E$4:$J$4,0),TRUE)","v":1},{"$f":"VLOOKUP(OFFSET($B:$B,,MATCH(K$4,$B$4:$F$4,0)-1),OFFSET('C. PoC Adj Factor Scoring'!$E$5:$J$282,,MATCH(K$4,'C. PoC Adj Factor Scoring'!$E$3:$AH$3,0)-1),MATCH(K$2&\" Score\",'C. PoC Adj Factor Scoring'!$E$4:$J$4,0),TRUE)","v":1},{"$f":"VLOOKUP(OFFSET($B:$B,,MATCH(L$4,$B$4:$F$4,0)-1),OFFSET('C. PoC Adj Factor Scoring'!$E$5:$J$282,,MATCH(L$4,'C. PoC Adj Factor Scoring'!$E$3:$AH$3,0)-1),MATCH(L$2&\" Score\",'C. PoC Adj Factor Scoring'!$E$4:$J$4,0),TRUE)","v":1},{"$f":"VLOOKUP(OFFSET($B:$B,,MATCH(M$4,$B$4:$F$4,0)-1),OFFSET('C. PoC Adj Factor Scoring'!$E$5:$J$282,,MATCH(M$4,'C. PoC Adj Factor Scoring'!$E$3:$AH$3,0)-1),MATCH(M$2&\" Score\",'C. PoC Adj Factor Scoring'!$E$4:$J$4,0),TRUE)","v":1},{"$f":"VLOOKUP(OFFSET($B:$B,,MATCH(N$4,$B$4:$F$4,0)-1),OFFSET('C. PoC Adj Factor Scoring'!$E$5:$J$282,,MATCH(N$4,'C. PoC Adj Factor Scoring'!$E$3:$AH$3,0)-1),MATCH(N$2&\" Score\",'C. PoC Adj Factor Scoring'!$E$4:$J$4,0),TRUE)","v":1},{"$f":"VLOOKUP(OFFSET($B:$B,,MATCH(O$4,$B$4:$F$4,0)-1),OFFSET('C. PoC Adj Factor Scoring'!$E$5:$J$282,,MATCH(O$4,'C. PoC Adj Factor Scoring'!$E$3:$AH$3,0)-1),MATCH(O$2&\" Score\",'C. PoC Adj Factor Scoring'!$E$4:$J$4,0),TRUE)","v":1},{"$f":"VLOOKUP(OFFSET($B:$B,,MATCH(P$4,$B$4:$F$4,0)-1),OFFSET('C. PoC Adj Factor Scoring'!$E$5:$J$282,,MATCH(P$4,'C. PoC Adj Factor Scoring'!$E$3:$AH$3,0)-1),MATCH(P$2&\" Score\",'C. PoC Adj Factor Scoring'!$E$4:$J$4,0),TRUE)","v":1},{"$f":"VLOOKUP(OFFSET($B:$B,,MATCH(Q$4,$B$4:$F$4,0)-1),OFFSET('C. PoC Adj Factor Scoring'!$E$5:$J$282,,MATCH(Q$4,'C. PoC Adj Factor Scoring'!$E$3:$AH$3,0)-1),MATCH(Q$2&\" Score\",'C. PoC Adj Factor Scoring'!$E$4:$J$4,0),TRUE)","v":1},{"$f":"VLOOKUP(OFFSET($B:$B,,MATCH(R$4,$B$4:$F$4,0)-1),OFFSET('C. PoC Adj Factor Scoring'!$E$5:$J$282,,MATCH(R$4,'C. PoC Adj Factor Scoring'!$E$3:$AH$3,0)-1),MATCH(R$2&\" Score\",'C. PoC Adj Factor Scoring'!$E$4:$J$4,0),TRUE)","v":1},{"$f":"VLOOKUP(OFFSET($B:$B,,MATCH(S$4,$B$4:$F$4,0)-1),OFFSET('C. PoC Adj Factor Scoring'!$E$5:$J$282,,MATCH(S$4,'C. PoC Adj Factor Scoring'!$E$3:$AH$3,0)-1),MATCH(S$2&\" Score\",'C. PoC Adj Factor Scoring'!$E$4:$J$4,0),TRUE)","v":1},{"$f":"VLOOKUP(OFFSET($B:$B,,MATCH(T$4,$B$4:$F$4,0)-1),OFFSET('C. PoC Adj Factor Scoring'!$E$5:$J$282,,MATCH(T$4,'C. PoC Adj Factor Scoring'!$E$3:$AH$3,0)-1),MATCH(T$2&\" Score\",'C. PoC Adj Factor Scoring'!$E$4:$J$4,0),TRUE)","v":1},{"$f":"VLOOKUP(OFFSET($B:$B,,MATCH(U$4,$B$4:$F$4,0)-1),OFFSET('C. PoC Adj Factor Scoring'!$E$5:$J$282,,MATCH(U$4,'C. PoC Adj Factor Scoring'!$E$3:$AH$3,0)-1),MATCH(U$2&\" Score\",'C. PoC Adj Factor Scoring'!$E$4:$J$4,0),TRUE)","v":1},{"$f":"VLOOKUP(OFFSET($B:$B,,MATCH(V$4,$B$4:$F$4,0)-1),OFFSET('C. PoC Adj Factor Scoring'!$E$5:$J$282,,MATCH(V$4,'C. PoC Adj Factor Scoring'!$E$3:$AH$3,0)-1),MATCH(V$2&\" Score\",'C. PoC Adj Factor Scoring'!$E$4:$J$4,0),TRUE)","v":1},{"$f":"VLOOKUP(OFFSET($B:$B,,MATCH(W$4,$B$4:$F$4,0)-1),OFFSET('C. PoC Adj Factor Scoring'!$E$5:$J$282,,MATCH(W$4,'C. PoC Adj Factor Scoring'!$E$3:$AH$3,0)-1),MATCH(W$2&\" Score\",'C. PoC Adj Factor Scoring'!$E$4:$J$4,0),TRUE)","v":1},{"$f":"VLOOKUP(OFFSET($B:$B,,MATCH(X$4,$B$4:$F$4,0)-1),OFFSET('C. PoC Adj Factor Scoring'!$E$5:$J$282,,MATCH(X$4,'C. PoC Adj Factor Scoring'!$E$3:$AH$3,0)-1),MATCH(X$2&\" Score\",'C. PoC Adj Factor Scoring'!$E$4:$J$4,0),TRUE)","v":1},{"$f":"VLOOKUP(OFFSET($B:$B,,MATCH(Y$4,$B$4:$F$4,0)-1),OFFSET('C. PoC Adj Factor Scoring'!$E$5:$J$282,,MATCH(Y$4,'C. PoC Adj Factor Scoring'!$E$3:$AH$3,0)-1),MATCH(Y$2&\" Score\",'C. PoC Adj Factor Scoring'!$E$4:$J$4,0),TRUE)","v":1},{"$f":"VLOOKUP(OFFSET($B:$B,,MATCH(Z$4,$B$4:$F$4,0)-1),OFFSET('C. PoC Adj Factor Scoring'!$E$5:$J$282,,MATCH(Z$4,'C. PoC Adj Factor Scoring'!$E$3:$AH$3,0)-1),MATCH(Z$2&\" Score\",'C. PoC Adj Factor Scoring'!$E$4:$J$4,0),TRUE)","v":1},{"$f":"VLOOKUP(OFFSET($B:$B,,MATCH(AA$4,$B$4:$F$4,0)-1),OFFSET('C. PoC Adj Factor Scoring'!$E$5:$J$282,,MATCH(AA$4,'C. PoC Adj Factor Scoring'!$E$3:$AH$3,0)-1),MATCH(AA$2&\" Score\",'C. PoC Adj Factor Scoring'!$E$4:$J$4,0),TRUE)","v":3},{"$f":"VLOOKUP(OFFSET($B:$B,,MATCH(AB$4,$B$4:$F$4,0)-1),OFFSET('C. PoC Adj Factor Scoring'!$E$5:$J$282,,MATCH(AB$4,'C. PoC Adj Factor Scoring'!$E$3:$AH$3,0)-1),MATCH(AB$2&\" Score\",'C. PoC Adj Factor Scoring'!$E$4:$J$4,0),TRUE)","v":1},{"$f":"VLOOKUP(OFFSET($B:$B,,MATCH(AC$4,$B$4:$F$4,0)-1),OFFSET('C. PoC Adj Factor Scoring'!$E$5:$J$282,,MATCH(AC$4,'C. PoC Adj Factor Scoring'!$E$3:$AH$3,0)-1),MATCH(AC$2&\" Score\",'C. PoC Adj Factor Scoring'!$E$4:$J$4,0),TRUE)","v":1},{"$f":"VLOOKUP(OFFSET($B:$B,,MATCH(AD$4,$B$4:$F$4,0)-1),OFFSET('C. PoC Adj Factor Scoring'!$E$5:$J$282,,MATCH(AD$4,'C. PoC Adj Factor Scoring'!$E$3:$AH$3,0)-1),MATCH(AD$2&\" Score\",'C. PoC Adj Factor Scoring'!$E$4:$J$4,0),TRUE)","v":1},{"$f":"VLOOKUP(OFFSET($B:$B,,MATCH(AE$4,$B$4:$F$4,0)-1),OFFSET('C. PoC Adj Factor Scoring'!$E$5:$J$282,,MATCH(AE$4,'C. PoC Adj Factor Scoring'!$E$3:$AH$3,0)-1),MATCH(AE$2&\" Score\",'C. PoC Adj Factor Scoring'!$E$4:$J$4,0),TRUE)","v":1}]
[{"$f":"'A. Population Info'!A43","v":1000318955},{"$f":"'A. Population Info'!L43","v":"OIL"},{"$f":"'A. Population Info'!M43","v":0},{"$f":"'A. Population Info'!N43","v":0},{"$f":"'A. Population Info'!O43","v":0},{"$f":"'A. Population Info'!P43","v":0},{"$f":"VLOOKUP(OFFSET($B:$B,,MATCH(G$4,$B$4:$F$4,0)-1),OFFSET('C. PoC Adj Factor Scoring'!$E$5:$J$282,,MATCH(G$4,'C. PoC Adj Factor Scoring'!$E$3:$AH$3,0)-1),MATCH(G$2&\" Score\",'C. PoC Adj Factor Scoring'!$E$4:$J$4,0),TRUE)","v":4},{"$f":"VLOOKUP(OFFSET($B:$B,,MATCH(H$4,$B$4:$F$4,0)-1),OFFSET('C. PoC Adj Factor Scoring'!$E$5:$J$282,,MATCH(H$4,'C. PoC Adj Factor Scoring'!$E$3:$AH$3,0)-1),MATCH(H$2&\" Score\",'C. PoC Adj Factor Scoring'!$E$4:$J$4,0),TRUE)","v":1},{"$f":"VLOOKUP(OFFSET($B:$B,,MATCH(I$4,$B$4:$F$4,0)-1),OFFSET('C. PoC Adj Factor Scoring'!$E$5:$J$282,,MATCH(I$4,'C. PoC Adj Factor Scoring'!$E$3:$AH$3,0)-1),MATCH(I$2&\" Score\",'C. PoC Adj Factor Scoring'!$E$4:$J$4,0),TRUE)","v":1},{"$f":"VLOOKUP(OFFSET($B:$B,,MATCH(J$4,$B$4:$F$4,0)-1),OFFSET('C. PoC Adj Factor Scoring'!$E$5:$J$282,,MATCH(J$4,'C. PoC Adj Factor Scoring'!$E$3:$AH$3,0)-1),MATCH(J$2&\" Score\",'C. PoC Adj Factor Scoring'!$E$4:$J$4,0),TRUE)","v":1},{"$f":"VLOOKUP(OFFSET($B:$B,,MATCH(K$4,$B$4:$F$4,0)-1),OFFSET('C. PoC Adj Factor Scoring'!$E$5:$J$282,,MATCH(K$4,'C. PoC Adj Factor Scoring'!$E$3:$AH$3,0)-1),MATCH(K$2&\" Score\",'C. PoC Adj Factor Scoring'!$E$4:$J$4,0),TRUE)","v":1},{"$f":"VLOOKUP(OFFSET($B:$B,,MATCH(L$4,$B$4:$F$4,0)-1),OFFSET('C. PoC Adj Factor Scoring'!$E$5:$J$282,,MATCH(L$4,'C. PoC Adj Factor Scoring'!$E$3:$AH$3,0)-1),MATCH(L$2&\" Score\",'C. PoC Adj Factor Scoring'!$E$4:$J$4,0),TRUE)","v":1},{"$f":"VLOOKUP(OFFSET($B:$B,,MATCH(M$4,$B$4:$F$4,0)-1),OFFSET('C. PoC Adj Factor Scoring'!$E$5:$J$282,,MATCH(M$4,'C. PoC Adj Factor Scoring'!$E$3:$AH$3,0)-1),MATCH(M$2&\" Score\",'C. PoC Adj Factor Scoring'!$E$4:$J$4,0),TRUE)","v":1},{"$f":"VLOOKUP(OFFSET($B:$B,,MATCH(N$4,$B$4:$F$4,0)-1),OFFSET('C. PoC Adj Factor Scoring'!$E$5:$J$282,,MATCH(N$4,'C. PoC Adj Factor Scoring'!$E$3:$AH$3,0)-1),MATCH(N$2&\" Score\",'C. PoC Adj Factor Scoring'!$E$4:$J$4,0),TRUE)","v":1},{"$f":"VLOOKUP(OFFSET($B:$B,,MATCH(O$4,$B$4:$F$4,0)-1),OFFSET('C. PoC Adj Factor Scoring'!$E$5:$J$282,,MATCH(O$4,'C. PoC Adj Factor Scoring'!$E$3:$AH$3,0)-1),MATCH(O$2&\" Score\",'C. PoC Adj Factor Scoring'!$E$4:$J$4,0),TRUE)","v":1},{"$f":"VLOOKUP(OFFSET($B:$B,,MATCH(P$4,$B$4:$F$4,0)-1),OFFSET('C. PoC Adj Factor Scoring'!$E$5:$J$282,,MATCH(P$4,'C. PoC Adj Factor Scoring'!$E$3:$AH$3,0)-1),MATCH(P$2&\" Score\",'C. PoC Adj Factor Scoring'!$E$4:$J$4,0),TRUE)","v":1},{"$f":"VLOOKUP(OFFSET($B:$B,,MATCH(Q$4,$B$4:$F$4,0)-1),OFFSET('C. PoC Adj Factor Scoring'!$E$5:$J$282,,MATCH(Q$4,'C. PoC Adj Factor Scoring'!$E$3:$AH$3,0)-1),MATCH(Q$2&\" Score\",'C. PoC Adj Factor Scoring'!$E$4:$J$4,0),TRUE)","v":1},{"$f":"VLOOKUP(OFFSET($B:$B,,MATCH(R$4,$B$4:$F$4,0)-1),OFFSET('C. PoC Adj Factor Scoring'!$E$5:$J$282,,MATCH(R$4,'C. PoC Adj Factor Scoring'!$E$3:$AH$3,0)-1),MATCH(R$2&\" Score\",'C. PoC Adj Factor Scoring'!$E$4:$J$4,0),TRUE)","v":1},{"$f":"VLOOKUP(OFFSET($B:$B,,MATCH(S$4,$B$4:$F$4,0)-1),OFFSET('C. PoC Adj Factor Scoring'!$E$5:$J$282,,MATCH(S$4,'C. PoC Adj Factor Scoring'!$E$3:$AH$3,0)-1),MATCH(S$2&\" Score\",'C. PoC Adj Factor Scoring'!$E$4:$J$4,0),TRUE)","v":1},{"$f":"VLOOKUP(OFFSET($B:$B,,MATCH(T$4,$B$4:$F$4,0)-1),OFFSET('C. PoC Adj Factor Scoring'!$E$5:$J$282,,MATCH(T$4,'C. PoC Adj Factor Scoring'!$E$3:$AH$3,0)-1),MATCH(T$2&\" Score\",'C. PoC Adj Factor Scoring'!$E$4:$J$4,0),TRUE)","v":1},{"$f":"VLOOKUP(OFFSET($B:$B,,MATCH(U$4,$B$4:$F$4,0)-1),OFFSET('C. PoC Adj Factor Scoring'!$E$5:$J$282,,MATCH(U$4,'C. PoC Adj Factor Scoring'!$E$3:$AH$3,0)-1),MATCH(U$2&\" Score\",'C. PoC Adj Factor Scoring'!$E$4:$J$4,0),TRUE)","v":1},{"$f":"VLOOKUP(OFFSET($B:$B,,MATCH(V$4,$B$4:$F$4,0)-1),OFFSET('C. PoC Adj Factor Scoring'!$E$5:$J$282,,MATCH(V$4,'C. PoC Adj Factor Scoring'!$E$3:$AH$3,0)-1),MATCH(V$2&\" Score\",'C. PoC Adj Factor Scoring'!$E$4:$J$4,0),TRUE)","v":1},{"$f":"VLOOKUP(OFFSET($B:$B,,MATCH(W$4,$B$4:$F$4,0)-1),OFFSET('C. PoC Adj Factor Scoring'!$E$5:$J$282,,MATCH(W$4,'C. PoC Adj Factor Scoring'!$E$3:$AH$3,0)-1),MATCH(W$2&\" Score\",'C. PoC Adj Factor Scoring'!$E$4:$J$4,0),TRUE)","v":1},{"$f":"VLOOKUP(OFFSET($B:$B,,MATCH(X$4,$B$4:$F$4,0)-1),OFFSET('C. PoC Adj Factor Scoring'!$E$5:$J$282,,MATCH(X$4,'C. PoC Adj Factor Scoring'!$E$3:$AH$3,0)-1),MATCH(X$2&\" Score\",'C. PoC Adj Factor Scoring'!$E$4:$J$4,0),TRUE)","v":1},{"$f":"VLOOKUP(OFFSET($B:$B,,MATCH(Y$4,$B$4:$F$4,0)-1),OFFSET('C. PoC Adj Factor Scoring'!$E$5:$J$282,,MATCH(Y$4,'C. PoC Adj Factor Scoring'!$E$3:$AH$3,0)-1),MATCH(Y$2&\" Score\",'C. PoC Adj Factor Scoring'!$E$4:$J$4,0),TRUE)","v":1},{"$f":"VLOOKUP(OFFSET($B:$B,,MATCH(Z$4,$B$4:$F$4,0)-1),OFFSET('C. PoC Adj Factor Scoring'!$E$5:$J$282,,MATCH(Z$4,'C. PoC Adj Factor Scoring'!$E$3:$AH$3,0)-1),MATCH(Z$2&\" Score\",'C. PoC Adj Factor Scoring'!$E$4:$J$4,0),TRUE)","v":1},{"$f":"VLOOKUP(OFFSET($B:$B,,MATCH(AA$4,$B$4:$F$4,0)-1),OFFSET('C. PoC Adj Factor Scoring'!$E$5:$J$282,,MATCH(AA$4,'C. PoC Adj Factor Scoring'!$E$3:$AH$3,0)-1),MATCH(AA$2&\" Score\",'C. PoC Adj Factor Scoring'!$E$4:$J$4,0),TRUE)","v":3},{"$f":"VLOOKUP(OFFSET($B:$B,,MATCH(AB$4,$B$4:$F$4,0)-1),OFFSET('C. PoC Adj Factor Scoring'!$E$5:$J$282,,MATCH(AB$4,'C. PoC Adj Factor Scoring'!$E$3:$AH$3,0)-1),MATCH(AB$2&\" Score\",'C. PoC Adj Factor Scoring'!$E$4:$J$4,0),TRUE)","v":1},{"$f":"VLOOKUP(OFFSET($B:$B,,MATCH(AC$4,$B$4:$F$4,0)-1),OFFSET('C. PoC Adj Factor Scoring'!$E$5:$J$282,,MATCH(AC$4,'C. PoC Adj Factor Scoring'!$E$3:$AH$3,0)-1),MATCH(AC$2&\" Score\",'C. PoC Adj Factor Scoring'!$E$4:$J$4,0),TRUE)","v":1},{"$f":"VLOOKUP(OFFSET($B:$B,,MATCH(AD$4,$B$4:$F$4,0)-1),OFFSET('C. PoC Adj Factor Scoring'!$E$5:$J$282,,MATCH(AD$4,'C. PoC Adj Factor Scoring'!$E$3:$AH$3,0)-1),MATCH(AD$2&\" Score\",'C. PoC Adj Factor Scoring'!$E$4:$J$4,0),TRUE)","v":1},{"$f":"VLOOKUP(OFFSET($B:$B,,MATCH(AE$4,$B$4:$F$4,0)-1),OFFSET('C. PoC Adj Factor Scoring'!$E$5:$J$282,,MATCH(AE$4,'C. PoC Adj Factor Scoring'!$E$3:$AH$3,0)-1),MATCH(AE$2&\" Score\",'C. PoC Adj Factor Scoring'!$E$4:$J$4,0),TRUE)","v":1}]
[{"$f":"'A. Population Info'!A44","v":1000318984},{"$f":"'A. Population Info'!L44","v":"OIL"},{"$f":"'A. Population Info'!M44","v":0},{"$f":"'A. Population Info'!N44","v":0},{"$f":"'A. Population Info'!O44","v":0},{"$f":"'A. Population Info'!P44","v":0},{"$f":"VLOOKUP(OFFSET($B:$B,,MATCH(G$4,$B$4:$F$4,0)-1),OFFSET('C. PoC Adj Factor Scoring'!$E$5:$J$282,,MATCH(G$4,'C. PoC Adj Factor Scoring'!$E$3:$AH$3,0)-1),MATCH(G$2&\" Score\",'C. PoC Adj Factor Scoring'!$E$4:$J$4,0),TRUE)","v":4},{"$f":"VLOOKUP(OFFSET($B:$B,,MATCH(H$4,$B$4:$F$4,0)-1),OFFSET('C. PoC Adj Factor Scoring'!$E$5:$J$282,,MATCH(H$4,'C. PoC Adj Factor Scoring'!$E$3:$AH$3,0)-1),MATCH(H$2&\" Score\",'C. PoC Adj Factor Scoring'!$E$4:$J$4,0),TRUE)","v":1},{"$f":"VLOOKUP(OFFSET($B:$B,,MATCH(I$4,$B$4:$F$4,0)-1),OFFSET('C. PoC Adj Factor Scoring'!$E$5:$J$282,,MATCH(I$4,'C. PoC Adj Factor Scoring'!$E$3:$AH$3,0)-1),MATCH(I$2&\" Score\",'C. PoC Adj Factor Scoring'!$E$4:$J$4,0),TRUE)","v":1},{"$f":"VLOOKUP(OFFSET($B:$B,,MATCH(J$4,$B$4:$F$4,0)-1),OFFSET('C. PoC Adj Factor Scoring'!$E$5:$J$282,,MATCH(J$4,'C. PoC Adj Factor Scoring'!$E$3:$AH$3,0)-1),MATCH(J$2&\" Score\",'C. PoC Adj Factor Scoring'!$E$4:$J$4,0),TRUE)","v":1},{"$f":"VLOOKUP(OFFSET($B:$B,,MATCH(K$4,$B$4:$F$4,0)-1),OFFSET('C. PoC Adj Factor Scoring'!$E$5:$J$282,,MATCH(K$4,'C. PoC Adj Factor Scoring'!$E$3:$AH$3,0)-1),MATCH(K$2&\" Score\",'C. PoC Adj Factor Scoring'!$E$4:$J$4,0),TRUE)","v":1},{"$f":"VLOOKUP(OFFSET($B:$B,,MATCH(L$4,$B$4:$F$4,0)-1),OFFSET('C. PoC Adj Factor Scoring'!$E$5:$J$282,,MATCH(L$4,'C. PoC Adj Factor Scoring'!$E$3:$AH$3,0)-1),MATCH(L$2&\" Score\",'C. PoC Adj Factor Scoring'!$E$4:$J$4,0),TRUE)","v":1},{"$f":"VLOOKUP(OFFSET($B:$B,,MATCH(M$4,$B$4:$F$4,0)-1),OFFSET('C. PoC Adj Factor Scoring'!$E$5:$J$282,,MATCH(M$4,'C. PoC Adj Factor Scoring'!$E$3:$AH$3,0)-1),MATCH(M$2&\" Score\",'C. PoC Adj Factor Scoring'!$E$4:$J$4,0),TRUE)","v":1},{"$f":"VLOOKUP(OFFSET($B:$B,,MATCH(N$4,$B$4:$F$4,0)-1),OFFSET('C. PoC Adj Factor Scoring'!$E$5:$J$282,,MATCH(N$4,'C. PoC Adj Factor Scoring'!$E$3:$AH$3,0)-1),MATCH(N$2&\" Score\",'C. PoC Adj Factor Scoring'!$E$4:$J$4,0),TRUE)","v":1},{"$f":"VLOOKUP(OFFSET($B:$B,,MATCH(O$4,$B$4:$F$4,0)-1),OFFSET('C. PoC Adj Factor Scoring'!$E$5:$J$282,,MATCH(O$4,'C. PoC Adj Factor Scoring'!$E$3:$AH$3,0)-1),MATCH(O$2&\" Score\",'C. PoC Adj Factor Scoring'!$E$4:$J$4,0),TRUE)","v":1},{"$f":"VLOOKUP(OFFSET($B:$B,,MATCH(P$4,$B$4:$F$4,0)-1),OFFSET('C. PoC Adj Factor Scoring'!$E$5:$J$282,,MATCH(P$4,'C. PoC Adj Factor Scoring'!$E$3:$AH$3,0)-1),MATCH(P$2&\" Score\",'C. PoC Adj Factor Scoring'!$E$4:$J$4,0),TRUE)","v":1},{"$f":"VLOOKUP(OFFSET($B:$B,,MATCH(Q$4,$B$4:$F$4,0)-1),OFFSET('C. PoC Adj Factor Scoring'!$E$5:$J$282,,MATCH(Q$4,'C. PoC Adj Factor Scoring'!$E$3:$AH$3,0)-1),MATCH(Q$2&\" Score\",'C. PoC Adj Factor Scoring'!$E$4:$J$4,0),TRUE)","v":1},{"$f":"VLOOKUP(OFFSET($B:$B,,MATCH(R$4,$B$4:$F$4,0)-1),OFFSET('C. PoC Adj Factor Scoring'!$E$5:$J$282,,MATCH(R$4,'C. PoC Adj Factor Scoring'!$E$3:$AH$3,0)-1),MATCH(R$2&\" Score\",'C. PoC Adj Factor Scoring'!$E$4:$J$4,0),TRUE)","v":1},{"$f":"VLOOKUP(OFFSET($B:$B,,MATCH(S$4,$B$4:$F$4,0)-1),OFFSET('C. PoC Adj Factor Scoring'!$E$5:$J$282,,MATCH(S$4,'C. PoC Adj Factor Scoring'!$E$3:$AH$3,0)-1),MATCH(S$2&\" Score\",'C. PoC Adj Factor Scoring'!$E$4:$J$4,0),TRUE)","v":1},{"$f":"VLOOKUP(OFFSET($B:$B,,MATCH(T$4,$B$4:$F$4,0)-1),OFFSET('C. PoC Adj Factor Scoring'!$E$5:$J$282,,MATCH(T$4,'C. PoC Adj Factor Scoring'!$E$3:$AH$3,0)-1),MATCH(T$2&\" Score\",'C. PoC Adj Factor Scoring'!$E$4:$J$4,0),TRUE)","v":1},{"$f":"VLOOKUP(OFFSET($B:$B,,MATCH(U$4,$B$4:$F$4,0)-1),OFFSET('C. PoC Adj Factor Scoring'!$E$5:$J$282,,MATCH(U$4,'C. PoC Adj Factor Scoring'!$E$3:$AH$3,0)-1),MATCH(U$2&\" Score\",'C. PoC Adj Factor Scoring'!$E$4:$J$4,0),TRUE)","v":1},{"$f":"VLOOKUP(OFFSET($B:$B,,MATCH(V$4,$B$4:$F$4,0)-1),OFFSET('C. PoC Adj Factor Scoring'!$E$5:$J$282,,MATCH(V$4,'C. PoC Adj Factor Scoring'!$E$3:$AH$3,0)-1),MATCH(V$2&\" Score\",'C. PoC Adj Factor Scoring'!$E$4:$J$4,0),TRUE)","v":1},{"$f":"VLOOKUP(OFFSET($B:$B,,MATCH(W$4,$B$4:$F$4,0)-1),OFFSET('C. PoC Adj Factor Scoring'!$E$5:$J$282,,MATCH(W$4,'C. PoC Adj Factor Scoring'!$E$3:$AH$3,0)-1),MATCH(W$2&\" Score\",'C. PoC Adj Factor Scoring'!$E$4:$J$4,0),TRUE)","v":1},{"$f":"VLOOKUP(OFFSET($B:$B,,MATCH(X$4,$B$4:$F$4,0)-1),OFFSET('C. PoC Adj Factor Scoring'!$E$5:$J$282,,MATCH(X$4,'C. PoC Adj Factor Scoring'!$E$3:$AH$3,0)-1),MATCH(X$2&\" Score\",'C. PoC Adj Factor Scoring'!$E$4:$J$4,0),TRUE)","v":1},{"$f":"VLOOKUP(OFFSET($B:$B,,MATCH(Y$4,$B$4:$F$4,0)-1),OFFSET('C. PoC Adj Factor Scoring'!$E$5:$J$282,,MATCH(Y$4,'C. PoC Adj Factor Scoring'!$E$3:$AH$3,0)-1),MATCH(Y$2&\" Score\",'C. PoC Adj Factor Scoring'!$E$4:$J$4,0),TRUE)","v":1},{"$f":"VLOOKUP(OFFSET($B:$B,,MATCH(Z$4,$B$4:$F$4,0)-1),OFFSET('C. PoC Adj Factor Scoring'!$E$5:$J$282,,MATCH(Z$4,'C. PoC Adj Factor Scoring'!$E$3:$AH$3,0)-1),MATCH(Z$2&\" Score\",'C. PoC Adj Factor Scoring'!$E$4:$J$4,0),TRUE)","v":1},{"$f":"VLOOKUP(OFFSET($B:$B,,MATCH(AA$4,$B$4:$F$4,0)-1),OFFSET('C. PoC Adj Factor Scoring'!$E$5:$J$282,,MATCH(AA$4,'C. PoC Adj Factor Scoring'!$E$3:$AH$3,0)-1),MATCH(AA$2&\" Score\",'C. PoC Adj Factor Scoring'!$E$4:$J$4,0),TRUE)","v":3},{"$f":"VLOOKUP(OFFSET($B:$B,,MATCH(AB$4,$B$4:$F$4,0)-1),OFFSET('C. PoC Adj Factor Scoring'!$E$5:$J$282,,MATCH(AB$4,'C. PoC Adj Factor Scoring'!$E$3:$AH$3,0)-1),MATCH(AB$2&\" Score\",'C. PoC Adj Factor Scoring'!$E$4:$J$4,0),TRUE)","v":1},{"$f":"VLOOKUP(OFFSET($B:$B,,MATCH(AC$4,$B$4:$F$4,0)-1),OFFSET('C. PoC Adj Factor Scoring'!$E$5:$J$282,,MATCH(AC$4,'C. PoC Adj Factor Scoring'!$E$3:$AH$3,0)-1),MATCH(AC$2&\" Score\",'C. PoC Adj Factor Scoring'!$E$4:$J$4,0),TRUE)","v":1},{"$f":"VLOOKUP(OFFSET($B:$B,,MATCH(AD$4,$B$4:$F$4,0)-1),OFFSET('C. PoC Adj Factor Scoring'!$E$5:$J$282,,MATCH(AD$4,'C. PoC Adj Factor Scoring'!$E$3:$AH$3,0)-1),MATCH(AD$2&\" Score\",'C. PoC Adj Factor Scoring'!$E$4:$J$4,0),TRUE)","v":1},{"$f":"VLOOKUP(OFFSET($B:$B,,MATCH(AE$4,$B$4:$F$4,0)-1),OFFSET('C. PoC Adj Factor Scoring'!$E$5:$J$282,,MATCH(AE$4,'C. PoC Adj Factor Scoring'!$E$3:$AH$3,0)-1),MATCH(AE$2&\" Score\",'C. PoC Adj Factor Scoring'!$E$4:$J$4,0),TRUE)","v":1}]
[{"$f":"'A. Population Info'!A45","v":1000323012},{"$f":"'A. Population Info'!L45","v":"OIL"},{"$f":"'A. Population Info'!M45","v":0},{"$f":"'A. Population Info'!N45","v":0},{"$f":"'A. Population Info'!O45","v":0},{"$f":"'A. Population Info'!P45","v":0},{"$f":"VLOOKUP(OFFSET($B:$B,,MATCH(G$4,$B$4:$F$4,0)-1),OFFSET('C. PoC Adj Factor Scoring'!$E$5:$J$282,,MATCH(G$4,'C. PoC Adj Factor Scoring'!$E$3:$AH$3,0)-1),MATCH(G$2&\" Score\",'C. PoC Adj Factor Scoring'!$E$4:$J$4,0),TRUE)","v":4},{"$f":"VLOOKUP(OFFSET($B:$B,,MATCH(H$4,$B$4:$F$4,0)-1),OFFSET('C. PoC Adj Factor Scoring'!$E$5:$J$282,,MATCH(H$4,'C. PoC Adj Factor Scoring'!$E$3:$AH$3,0)-1),MATCH(H$2&\" Score\",'C. PoC Adj Factor Scoring'!$E$4:$J$4,0),TRUE)","v":1},{"$f":"VLOOKUP(OFFSET($B:$B,,MATCH(I$4,$B$4:$F$4,0)-1),OFFSET('C. PoC Adj Factor Scoring'!$E$5:$J$282,,MATCH(I$4,'C. PoC Adj Factor Scoring'!$E$3:$AH$3,0)-1),MATCH(I$2&\" Score\",'C. PoC Adj Factor Scoring'!$E$4:$J$4,0),TRUE)","v":1},{"$f":"VLOOKUP(OFFSET($B:$B,,MATCH(J$4,$B$4:$F$4,0)-1),OFFSET('C. PoC Adj Factor Scoring'!$E$5:$J$282,,MATCH(J$4,'C. PoC Adj Factor Scoring'!$E$3:$AH$3,0)-1),MATCH(J$2&\" Score\",'C. PoC Adj Factor Scoring'!$E$4:$J$4,0),TRUE)","v":1},{"$f":"VLOOKUP(OFFSET($B:$B,,MATCH(K$4,$B$4:$F$4,0)-1),OFFSET('C. PoC Adj Factor Scoring'!$E$5:$J$282,,MATCH(K$4,'C. PoC Adj Factor Scoring'!$E$3:$AH$3,0)-1),MATCH(K$2&\" Score\",'C. PoC Adj Factor Scoring'!$E$4:$J$4,0),TRUE)","v":1},{"$f":"VLOOKUP(OFFSET($B:$B,,MATCH(L$4,$B$4:$F$4,0)-1),OFFSET('C. PoC Adj Factor Scoring'!$E$5:$J$282,,MATCH(L$4,'C. PoC Adj Factor Scoring'!$E$3:$AH$3,0)-1),MATCH(L$2&\" Score\",'C. PoC Adj Factor Scoring'!$E$4:$J$4,0),TRUE)","v":1},{"$f":"VLOOKUP(OFFSET($B:$B,,MATCH(M$4,$B$4:$F$4,0)-1),OFFSET('C. PoC Adj Factor Scoring'!$E$5:$J$282,,MATCH(M$4,'C. PoC Adj Factor Scoring'!$E$3:$AH$3,0)-1),MATCH(M$2&\" Score\",'C. PoC Adj Factor Scoring'!$E$4:$J$4,0),TRUE)","v":1},{"$f":"VLOOKUP(OFFSET($B:$B,,MATCH(N$4,$B$4:$F$4,0)-1),OFFSET('C. PoC Adj Factor Scoring'!$E$5:$J$282,,MATCH(N$4,'C. PoC Adj Factor Scoring'!$E$3:$AH$3,0)-1),MATCH(N$2&\" Score\",'C. PoC Adj Factor Scoring'!$E$4:$J$4,0),TRUE)","v":1},{"$f":"VLOOKUP(OFFSET($B:$B,,MATCH(O$4,$B$4:$F$4,0)-1),OFFSET('C. PoC Adj Factor Scoring'!$E$5:$J$282,,MATCH(O$4,'C. PoC Adj Factor Scoring'!$E$3:$AH$3,0)-1),MATCH(O$2&\" Score\",'C. PoC Adj Factor Scoring'!$E$4:$J$4,0),TRUE)","v":1},{"$f":"VLOOKUP(OFFSET($B:$B,,MATCH(P$4,$B$4:$F$4,0)-1),OFFSET('C. PoC Adj Factor Scoring'!$E$5:$J$282,,MATCH(P$4,'C. PoC Adj Factor Scoring'!$E$3:$AH$3,0)-1),MATCH(P$2&\" Score\",'C. PoC Adj Factor Scoring'!$E$4:$J$4,0),TRUE)","v":1},{"$f":"VLOOKUP(OFFSET($B:$B,,MATCH(Q$4,$B$4:$F$4,0)-1),OFFSET('C. PoC Adj Factor Scoring'!$E$5:$J$282,,MATCH(Q$4,'C. PoC Adj Factor Scoring'!$E$3:$AH$3,0)-1),MATCH(Q$2&\" Score\",'C. PoC Adj Factor Scoring'!$E$4:$J$4,0),TRUE)","v":1},{"$f":"VLOOKUP(OFFSET($B:$B,,MATCH(R$4,$B$4:$F$4,0)-1),OFFSET('C. PoC Adj Factor Scoring'!$E$5:$J$282,,MATCH(R$4,'C. PoC Adj Factor Scoring'!$E$3:$AH$3,0)-1),MATCH(R$2&\" Score\",'C. PoC Adj Factor Scoring'!$E$4:$J$4,0),TRUE)","v":1},{"$f":"VLOOKUP(OFFSET($B:$B,,MATCH(S$4,$B$4:$F$4,0)-1),OFFSET('C. PoC Adj Factor Scoring'!$E$5:$J$282,,MATCH(S$4,'C. PoC Adj Factor Scoring'!$E$3:$AH$3,0)-1),MATCH(S$2&\" Score\",'C. PoC Adj Factor Scoring'!$E$4:$J$4,0),TRUE)","v":1},{"$f":"VLOOKUP(OFFSET($B:$B,,MATCH(T$4,$B$4:$F$4,0)-1),OFFSET('C. PoC Adj Factor Scoring'!$E$5:$J$282,,MATCH(T$4,'C. PoC Adj Factor Scoring'!$E$3:$AH$3,0)-1),MATCH(T$2&\" Score\",'C. PoC Adj Factor Scoring'!$E$4:$J$4,0),TRUE)","v":1},{"$f":"VLOOKUP(OFFSET($B:$B,,MATCH(U$4,$B$4:$F$4,0)-1),OFFSET('C. PoC Adj Factor Scoring'!$E$5:$J$282,,MATCH(U$4,'C. PoC Adj Factor Scoring'!$E$3:$AH$3,0)-1),MATCH(U$2&\" Score\",'C. PoC Adj Factor Scoring'!$E$4:$J$4,0),TRUE)","v":1},{"$f":"VLOOKUP(OFFSET($B:$B,,MATCH(V$4,$B$4:$F$4,0)-1),OFFSET('C. PoC Adj Factor Scoring'!$E$5:$J$282,,MATCH(V$4,'C. PoC Adj Factor Scoring'!$E$3:$AH$3,0)-1),MATCH(V$2&\" Score\",'C. PoC Adj Factor Scoring'!$E$4:$J$4,0),TRUE)","v":1},{"$f":"VLOOKUP(OFFSET($B:$B,,MATCH(W$4,$B$4:$F$4,0)-1),OFFSET('C. PoC Adj Factor Scoring'!$E$5:$J$282,,MATCH(W$4,'C. PoC Adj Factor Scoring'!$E$3:$AH$3,0)-1),MATCH(W$2&\" Score\",'C. PoC Adj Factor Scoring'!$E$4:$J$4,0),TRUE)","v":1},{"$f":"VLOOKUP(OFFSET($B:$B,,MATCH(X$4,$B$4:$F$4,0)-1),OFFSET('C. PoC Adj Factor Scoring'!$E$5:$J$282,,MATCH(X$4,'C. PoC Adj Factor Scoring'!$E$3:$AH$3,0)-1),MATCH(X$2&\" Score\",'C. PoC Adj Factor Scoring'!$E$4:$J$4,0),TRUE)","v":1},{"$f":"VLOOKUP(OFFSET($B:$B,,MATCH(Y$4,$B$4:$F$4,0)-1),OFFSET('C. PoC Adj Factor Scoring'!$E$5:$J$282,,MATCH(Y$4,'C. PoC Adj Factor Scoring'!$E$3:$AH$3,0)-1),MATCH(Y$2&\" Score\",'C. PoC Adj Factor Scoring'!$E$4:$J$4,0),TRUE)","v":1},{"$f":"VLOOKUP(OFFSET($B:$B,,MATCH(Z$4,$B$4:$F$4,0)-1),OFFSET('C. PoC Adj Factor Scoring'!$E$5:$J$282,,MATCH(Z$4,'C. PoC Adj Factor Scoring'!$E$3:$AH$3,0)-1),MATCH(Z$2&\" Score\",'C. PoC Adj Factor Scoring'!$E$4:$J$4,0),TRUE)","v":1},{"$f":"VLOOKUP(OFFSET($B:$B,,MATCH(AA$4,$B$4:$F$4,0)-1),OFFSET('C. PoC Adj Factor Scoring'!$E$5:$J$282,,MATCH(AA$4,'C. PoC Adj Factor Scoring'!$E$3:$AH$3,0)-1),MATCH(AA$2&\" Score\",'C. PoC Adj Factor Scoring'!$E$4:$J$4,0),TRUE)","v":3},{"$f":"VLOOKUP(OFFSET($B:$B,,MATCH(AB$4,$B$4:$F$4,0)-1),OFFSET('C. PoC Adj Factor Scoring'!$E$5:$J$282,,MATCH(AB$4,'C. PoC Adj Factor Scoring'!$E$3:$AH$3,0)-1),MATCH(AB$2&\" Score\",'C. PoC Adj Factor Scoring'!$E$4:$J$4,0),TRUE)","v":1},{"$f":"VLOOKUP(OFFSET($B:$B,,MATCH(AC$4,$B$4:$F$4,0)-1),OFFSET('C. PoC Adj Factor Scoring'!$E$5:$J$282,,MATCH(AC$4,'C. PoC Adj Factor Scoring'!$E$3:$AH$3,0)-1),MATCH(AC$2&\" Score\",'C. PoC Adj Factor Scoring'!$E$4:$J$4,0),TRUE)","v":1},{"$f":"VLOOKUP(OFFSET($B:$B,,MATCH(AD$4,$B$4:$F$4,0)-1),OFFSET('C. PoC Adj Factor Scoring'!$E$5:$J$282,,MATCH(AD$4,'C. PoC Adj Factor Scoring'!$E$3:$AH$3,0)-1),MATCH(AD$2&\" Score\",'C. PoC Adj Factor Scoring'!$E$4:$J$4,0),TRUE)","v":1},{"$f":"VLOOKUP(OFFSET($B:$B,,MATCH(AE$4,$B$4:$F$4,0)-1),OFFSET('C. PoC Adj Factor Scoring'!$E$5:$J$282,,MATCH(AE$4,'C. PoC Adj Factor Scoring'!$E$3:$AH$3,0)-1),MATCH(AE$2&\" Score\",'C. PoC Adj Factor Scoring'!$E$4:$J$4,0),TRUE)","v":1}]
[{"$f":"'A. Population Info'!A46","v":1000323042},{"$f":"'A. Population Info'!L46","v":"OIL"},{"$f":"'A. Population Info'!M46","v":0},{"$f":"'A. Population Info'!N46","v":0},{"$f":"'A. Population Info'!O46","v":0},{"$f":"'A. Population Info'!P46","v":0},{"$f":"VLOOKUP(OFFSET($B:$B,,MATCH(G$4,$B$4:$F$4,0)-1),OFFSET('C. PoC Adj Factor Scoring'!$E$5:$J$282,,MATCH(G$4,'C. PoC Adj Factor Scoring'!$E$3:$AH$3,0)-1),MATCH(G$2&\" Score\",'C. PoC Adj Factor Scoring'!$E$4:$J$4,0),TRUE)","v":4},{"$f":"VLOOKUP(OFFSET($B:$B,,MATCH(H$4,$B$4:$F$4,0)-1),OFFSET('C. PoC Adj Factor Scoring'!$E$5:$J$282,,MATCH(H$4,'C. PoC Adj Factor Scoring'!$E$3:$AH$3,0)-1),MATCH(H$2&\" Score\",'C. PoC Adj Factor Scoring'!$E$4:$J$4,0),TRUE)","v":1},{"$f":"VLOOKUP(OFFSET($B:$B,,MATCH(I$4,$B$4:$F$4,0)-1),OFFSET('C. PoC Adj Factor Scoring'!$E$5:$J$282,,MATCH(I$4,'C. PoC Adj Factor Scoring'!$E$3:$AH$3,0)-1),MATCH(I$2&\" Score\",'C. PoC Adj Factor Scoring'!$E$4:$J$4,0),TRUE)","v":1},{"$f":"VLOOKUP(OFFSET($B:$B,,MATCH(J$4,$B$4:$F$4,0)-1),OFFSET('C. PoC Adj Factor Scoring'!$E$5:$J$282,,MATCH(J$4,'C. PoC Adj Factor Scoring'!$E$3:$AH$3,0)-1),MATCH(J$2&\" Score\",'C. PoC Adj Factor Scoring'!$E$4:$J$4,0),TRUE)","v":1},{"$f":"VLOOKUP(OFFSET($B:$B,,MATCH(K$4,$B$4:$F$4,0)-1),OFFSET('C. PoC Adj Factor Scoring'!$E$5:$J$282,,MATCH(K$4,'C. PoC Adj Factor Scoring'!$E$3:$AH$3,0)-1),MATCH(K$2&\" Score\",'C. PoC Adj Factor Scoring'!$E$4:$J$4,0),TRUE)","v":1},{"$f":"VLOOKUP(OFFSET($B:$B,,MATCH(L$4,$B$4:$F$4,0)-1),OFFSET('C. PoC Adj Factor Scoring'!$E$5:$J$282,,MATCH(L$4,'C. PoC Adj Factor Scoring'!$E$3:$AH$3,0)-1),MATCH(L$2&\" Score\",'C. PoC Adj Factor Scoring'!$E$4:$J$4,0),TRUE)","v":1},{"$f":"VLOOKUP(OFFSET($B:$B,,MATCH(M$4,$B$4:$F$4,0)-1),OFFSET('C. PoC Adj Factor Scoring'!$E$5:$J$282,,MATCH(M$4,'C. PoC Adj Factor Scoring'!$E$3:$AH$3,0)-1),MATCH(M$2&\" Score\",'C. PoC Adj Factor Scoring'!$E$4:$J$4,0),TRUE)","v":1},{"$f":"VLOOKUP(OFFSET($B:$B,,MATCH(N$4,$B$4:$F$4,0)-1),OFFSET('C. PoC Adj Factor Scoring'!$E$5:$J$282,,MATCH(N$4,'C. PoC Adj Factor Scoring'!$E$3:$AH$3,0)-1),MATCH(N$2&\" Score\",'C. PoC Adj Factor Scoring'!$E$4:$J$4,0),TRUE)","v":1},{"$f":"VLOOKUP(OFFSET($B:$B,,MATCH(O$4,$B$4:$F$4,0)-1),OFFSET('C. PoC Adj Factor Scoring'!$E$5:$J$282,,MATCH(O$4,'C. PoC Adj Factor Scoring'!$E$3:$AH$3,0)-1),MATCH(O$2&\" Score\",'C. PoC Adj Factor Scoring'!$E$4:$J$4,0),TRUE)","v":1},{"$f":"VLOOKUP(OFFSET($B:$B,,MATCH(P$4,$B$4:$F$4,0)-1),OFFSET('C. PoC Adj Factor Scoring'!$E$5:$J$282,,MATCH(P$4,'C. PoC Adj Factor Scoring'!$E$3:$AH$3,0)-1),MATCH(P$2&\" Score\",'C. PoC Adj Factor Scoring'!$E$4:$J$4,0),TRUE)","v":1},{"$f":"VLOOKUP(OFFSET($B:$B,,MATCH(Q$4,$B$4:$F$4,0)-1),OFFSET('C. PoC Adj Factor Scoring'!$E$5:$J$282,,MATCH(Q$4,'C. PoC Adj Factor Scoring'!$E$3:$AH$3,0)-1),MATCH(Q$2&\" Score\",'C. PoC Adj Factor Scoring'!$E$4:$J$4,0),TRUE)","v":1},{"$f":"VLOOKUP(OFFSET($B:$B,,MATCH(R$4,$B$4:$F$4,0)-1),OFFSET('C. PoC Adj Factor Scoring'!$E$5:$J$282,,MATCH(R$4,'C. PoC Adj Factor Scoring'!$E$3:$AH$3,0)-1),MATCH(R$2&\" Score\",'C. PoC Adj Factor Scoring'!$E$4:$J$4,0),TRUE)","v":1},{"$f":"VLOOKUP(OFFSET($B:$B,,MATCH(S$4,$B$4:$F$4,0)-1),OFFSET('C. PoC Adj Factor Scoring'!$E$5:$J$282,,MATCH(S$4,'C. PoC Adj Factor Scoring'!$E$3:$AH$3,0)-1),MATCH(S$2&\" Score\",'C. PoC Adj Factor Scoring'!$E$4:$J$4,0),TRUE)","v":1},{"$f":"VLOOKUP(OFFSET($B:$B,,MATCH(T$4,$B$4:$F$4,0)-1),OFFSET('C. PoC Adj Factor Scoring'!$E$5:$J$282,,MATCH(T$4,'C. PoC Adj Factor Scoring'!$E$3:$AH$3,0)-1),MATCH(T$2&\" Score\",'C. PoC Adj Factor Scoring'!$E$4:$J$4,0),TRUE)","v":1},{"$f":"VLOOKUP(OFFSET($B:$B,,MATCH(U$4,$B$4:$F$4,0)-1),OFFSET('C. PoC Adj Factor Scoring'!$E$5:$J$282,,MATCH(U$4,'C. PoC Adj Factor Scoring'!$E$3:$AH$3,0)-1),MATCH(U$2&\" Score\",'C. PoC Adj Factor Scoring'!$E$4:$J$4,0),TRUE)","v":1},{"$f":"VLOOKUP(OFFSET($B:$B,,MATCH(V$4,$B$4:$F$4,0)-1),OFFSET('C. PoC Adj Factor Scoring'!$E$5:$J$282,,MATCH(V$4,'C. PoC Adj Factor Scoring'!$E$3:$AH$3,0)-1),MATCH(V$2&\" Score\",'C. PoC Adj Factor Scoring'!$E$4:$J$4,0),TRUE)","v":1},{"$f":"VLOOKUP(OFFSET($B:$B,,MATCH(W$4,$B$4:$F$4,0)-1),OFFSET('C. PoC Adj Factor Scoring'!$E$5:$J$282,,MATCH(W$4,'C. PoC Adj Factor Scoring'!$E$3:$AH$3,0)-1),MATCH(W$2&\" Score\",'C. PoC Adj Factor Scoring'!$E$4:$J$4,0),TRUE)","v":1},{"$f":"VLOOKUP(OFFSET($B:$B,,MATCH(X$4,$B$4:$F$4,0)-1),OFFSET('C. PoC Adj Factor Scoring'!$E$5:$J$282,,MATCH(X$4,'C. PoC Adj Factor Scoring'!$E$3:$AH$3,0)-1),MATCH(X$2&\" Score\",'C. PoC Adj Factor Scoring'!$E$4:$J$4,0),TRUE)","v":1},{"$f":"VLOOKUP(OFFSET($B:$B,,MATCH(Y$4,$B$4:$F$4,0)-1),OFFSET('C. PoC Adj Factor Scoring'!$E$5:$J$282,,MATCH(Y$4,'C. PoC Adj Factor Scoring'!$E$3:$AH$3,0)-1),MATCH(Y$2&\" Score\",'C. PoC Adj Factor Scoring'!$E$4:$J$4,0),TRUE)","v":1},{"$f":"VLOOKUP(OFFSET($B:$B,,MATCH(Z$4,$B$4:$F$4,0)-1),OFFSET('C. PoC Adj Factor Scoring'!$E$5:$J$282,,MATCH(Z$4,'C. PoC Adj Factor Scoring'!$E$3:$AH$3,0)-1),MATCH(Z$2&\" Score\",'C. PoC Adj Factor Scoring'!$E$4:$J$4,0),TRUE)","v":1},{"$f":"VLOOKUP(OFFSET($B:$B,,MATCH(AA$4,$B$4:$F$4,0)-1),OFFSET('C. PoC Adj Factor Scoring'!$E$5:$J$282,,MATCH(AA$4,'C. PoC Adj Factor Scoring'!$E$3:$AH$3,0)-1),MATCH(AA$2&\" Score\",'C. PoC Adj Factor Scoring'!$E$4:$J$4,0),TRUE)","v":3},{"$f":"VLOOKUP(OFFSET($B:$B,,MATCH(AB$4,$B$4:$F$4,0)-1),OFFSET('C. PoC Adj Factor Scoring'!$E$5:$J$282,,MATCH(AB$4,'C. PoC Adj Factor Scoring'!$E$3:$AH$3,0)-1),MATCH(AB$2&\" Score\",'C. PoC Adj Factor Scoring'!$E$4:$J$4,0),TRUE)","v":1},{"$f":"VLOOKUP(OFFSET($B:$B,,MATCH(AC$4,$B$4:$F$4,0)-1),OFFSET('C. PoC Adj Factor Scoring'!$E$5:$J$282,,MATCH(AC$4,'C. PoC Adj Factor Scoring'!$E$3:$AH$3,0)-1),MATCH(AC$2&\" Score\",'C. PoC Adj Factor Scoring'!$E$4:$J$4,0),TRUE)","v":1},{"$f":"VLOOKUP(OFFSET($B:$B,,MATCH(AD$4,$B$4:$F$4,0)-1),OFFSET('C. PoC Adj Factor Scoring'!$E$5:$J$282,,MATCH(AD$4,'C. PoC Adj Factor Scoring'!$E$3:$AH$3,0)-1),MATCH(AD$2&\" Score\",'C. PoC Adj Factor Scoring'!$E$4:$J$4,0),TRUE)","v":1},{"$f":"VLOOKUP(OFFSET($B:$B,,MATCH(AE$4,$B$4:$F$4,0)-1),OFFSET('C. PoC Adj Factor Scoring'!$E$5:$J$282,,MATCH(AE$4,'C. PoC Adj Factor Scoring'!$E$3:$AH$3,0)-1),MATCH(AE$2&\" Score\",'C. PoC Adj Factor Scoring'!$E$4:$J$4,0),TRUE)","v":1}]
[{"$f":"'A. Population Info'!A47","v":1000323073},{"$f":"'A. Population Info'!L47","v":"OIL"},{"$f":"'A. Population Info'!M47","v":0},{"$f":"'A. Population Info'!N47","v":0},{"$f":"'A. Population Info'!O47","v":0},{"$f":"'A. Population Info'!P47","v":0},{"$f":"VLOOKUP(OFFSET($B:$B,,MATCH(G$4,$B$4:$F$4,0)-1),OFFSET('C. PoC Adj Factor Scoring'!$E$5:$J$282,,MATCH(G$4,'C. PoC Adj Factor Scoring'!$E$3:$AH$3,0)-1),MATCH(G$2&\" Score\",'C. PoC Adj Factor Scoring'!$E$4:$J$4,0),TRUE)","v":4},{"$f":"VLOOKUP(OFFSET($B:$B,,MATCH(H$4,$B$4:$F$4,0)-1),OFFSET('C. PoC Adj Factor Scoring'!$E$5:$J$282,,MATCH(H$4,'C. PoC Adj Factor Scoring'!$E$3:$AH$3,0)-1),MATCH(H$2&\" Score\",'C. PoC Adj Factor Scoring'!$E$4:$J$4,0),TRUE)","v":1},{"$f":"VLOOKUP(OFFSET($B:$B,,MATCH(I$4,$B$4:$F$4,0)-1),OFFSET('C. PoC Adj Factor Scoring'!$E$5:$J$282,,MATCH(I$4,'C. PoC Adj Factor Scoring'!$E$3:$AH$3,0)-1),MATCH(I$2&\" Score\",'C. PoC Adj Factor Scoring'!$E$4:$J$4,0),TRUE)","v":1},{"$f":"VLOOKUP(OFFSET($B:$B,,MATCH(J$4,$B$4:$F$4,0)-1),OFFSET('C. PoC Adj Factor Scoring'!$E$5:$J$282,,MATCH(J$4,'C. PoC Adj Factor Scoring'!$E$3:$AH$3,0)-1),MATCH(J$2&\" Score\",'C. PoC Adj Factor Scoring'!$E$4:$J$4,0),TRUE)","v":1},{"$f":"VLOOKUP(OFFSET($B:$B,,MATCH(K$4,$B$4:$F$4,0)-1),OFFSET('C. PoC Adj Factor Scoring'!$E$5:$J$282,,MATCH(K$4,'C. PoC Adj Factor Scoring'!$E$3:$AH$3,0)-1),MATCH(K$2&\" Score\",'C. PoC Adj Factor Scoring'!$E$4:$J$4,0),TRUE)","v":1},{"$f":"VLOOKUP(OFFSET($B:$B,,MATCH(L$4,$B$4:$F$4,0)-1),OFFSET('C. PoC Adj Factor Scoring'!$E$5:$J$282,,MATCH(L$4,'C. PoC Adj Factor Scoring'!$E$3:$AH$3,0)-1),MATCH(L$2&\" Score\",'C. PoC Adj Factor Scoring'!$E$4:$J$4,0),TRUE)","v":1},{"$f":"VLOOKUP(OFFSET($B:$B,,MATCH(M$4,$B$4:$F$4,0)-1),OFFSET('C. PoC Adj Factor Scoring'!$E$5:$J$282,,MATCH(M$4,'C. PoC Adj Factor Scoring'!$E$3:$AH$3,0)-1),MATCH(M$2&\" Score\",'C. PoC Adj Factor Scoring'!$E$4:$J$4,0),TRUE)","v":1},{"$f":"VLOOKUP(OFFSET($B:$B,,MATCH(N$4,$B$4:$F$4,0)-1),OFFSET('C. PoC Adj Factor Scoring'!$E$5:$J$282,,MATCH(N$4,'C. PoC Adj Factor Scoring'!$E$3:$AH$3,0)-1),MATCH(N$2&\" Score\",'C. PoC Adj Factor Scoring'!$E$4:$J$4,0),TRUE)","v":1},{"$f":"VLOOKUP(OFFSET($B:$B,,MATCH(O$4,$B$4:$F$4,0)-1),OFFSET('C. PoC Adj Factor Scoring'!$E$5:$J$282,,MATCH(O$4,'C. PoC Adj Factor Scoring'!$E$3:$AH$3,0)-1),MATCH(O$2&\" Score\",'C. PoC Adj Factor Scoring'!$E$4:$J$4,0),TRUE)","v":1},{"$f":"VLOOKUP(OFFSET($B:$B,,MATCH(P$4,$B$4:$F$4,0)-1),OFFSET('C. PoC Adj Factor Scoring'!$E$5:$J$282,,MATCH(P$4,'C. PoC Adj Factor Scoring'!$E$3:$AH$3,0)-1),MATCH(P$2&\" Score\",'C. PoC Adj Factor Scoring'!$E$4:$J$4,0),TRUE)","v":1},{"$f":"VLOOKUP(OFFSET($B:$B,,MATCH(Q$4,$B$4:$F$4,0)-1),OFFSET('C. PoC Adj Factor Scoring'!$E$5:$J$282,,MATCH(Q$4,'C. PoC Adj Factor Scoring'!$E$3:$AH$3,0)-1),MATCH(Q$2&\" Score\",'C. PoC Adj Factor Scoring'!$E$4:$J$4,0),TRUE)","v":1},{"$f":"VLOOKUP(OFFSET($B:$B,,MATCH(R$4,$B$4:$F$4,0)-1),OFFSET('C. PoC Adj Factor Scoring'!$E$5:$J$282,,MATCH(R$4,'C. PoC Adj Factor Scoring'!$E$3:$AH$3,0)-1),MATCH(R$2&\" Score\",'C. PoC Adj Factor Scoring'!$E$4:$J$4,0),TRUE)","v":1},{"$f":"VLOOKUP(OFFSET($B:$B,,MATCH(S$4,$B$4:$F$4,0)-1),OFFSET('C. PoC Adj Factor Scoring'!$E$5:$J$282,,MATCH(S$4,'C. PoC Adj Factor Scoring'!$E$3:$AH$3,0)-1),MATCH(S$2&\" Score\",'C. PoC Adj Factor Scoring'!$E$4:$J$4,0),TRUE)","v":1},{"$f":"VLOOKUP(OFFSET($B:$B,,MATCH(T$4,$B$4:$F$4,0)-1),OFFSET('C. PoC Adj Factor Scoring'!$E$5:$J$282,,MATCH(T$4,'C. PoC Adj Factor Scoring'!$E$3:$AH$3,0)-1),MATCH(T$2&\" Score\",'C. PoC Adj Factor Scoring'!$E$4:$J$4,0),TRUE)","v":1},{"$f":"VLOOKUP(OFFSET($B:$B,,MATCH(U$4,$B$4:$F$4,0)-1),OFFSET('C. PoC Adj Factor Scoring'!$E$5:$J$282,,MATCH(U$4,'C. PoC Adj Factor Scoring'!$E$3:$AH$3,0)-1),MATCH(U$2&\" Score\",'C. PoC Adj Factor Scoring'!$E$4:$J$4,0),TRUE)","v":1},{"$f":"VLOOKUP(OFFSET($B:$B,,MATCH(V$4,$B$4:$F$4,0)-1),OFFSET('C. PoC Adj Factor Scoring'!$E$5:$J$282,,MATCH(V$4,'C. PoC Adj Factor Scoring'!$E$3:$AH$3,0)-1),MATCH(V$2&\" Score\",'C. PoC Adj Factor Scoring'!$E$4:$J$4,0),TRUE)","v":1},{"$f":"VLOOKUP(OFFSET($B:$B,,MATCH(W$4,$B$4:$F$4,0)-1),OFFSET('C. PoC Adj Factor Scoring'!$E$5:$J$282,,MATCH(W$4,'C. PoC Adj Factor Scoring'!$E$3:$AH$3,0)-1),MATCH(W$2&\" Score\",'C. PoC Adj Factor Scoring'!$E$4:$J$4,0),TRUE)","v":1},{"$f":"VLOOKUP(OFFSET($B:$B,,MATCH(X$4,$B$4:$F$4,0)-1),OFFSET('C. PoC Adj Factor Scoring'!$E$5:$J$282,,MATCH(X$4,'C. PoC Adj Factor Scoring'!$E$3:$AH$3,0)-1),MATCH(X$2&\" Score\",'C. PoC Adj Factor Scoring'!$E$4:$J$4,0),TRUE)","v":1},{"$f":"VLOOKUP(OFFSET($B:$B,,MATCH(Y$4,$B$4:$F$4,0)-1),OFFSET('C. PoC Adj Factor Scoring'!$E$5:$J$282,,MATCH(Y$4,'C. PoC Adj Factor Scoring'!$E$3:$AH$3,0)-1),MATCH(Y$2&\" Score\",'C. PoC Adj Factor Scoring'!$E$4:$J$4,0),TRUE)","v":1},{"$f":"VLOOKUP(OFFSET($B:$B,,MATCH(Z$4,$B$4:$F$4,0)-1),OFFSET('C. PoC Adj Factor Scoring'!$E$5:$J$282,,MATCH(Z$4,'C. PoC Adj Factor Scoring'!$E$3:$AH$3,0)-1),MATCH(Z$2&\" Score\",'C. PoC Adj Factor Scoring'!$E$4:$J$4,0),TRUE)","v":1},{"$f":"VLOOKUP(OFFSET($B:$B,,MATCH(AA$4,$B$4:$F$4,0)-1),OFFSET('C. PoC Adj Factor Scoring'!$E$5:$J$282,,MATCH(AA$4,'C. PoC Adj Factor Scoring'!$E$3:$AH$3,0)-1),MATCH(AA$2&\" Score\",'C. PoC Adj Factor Scoring'!$E$4:$J$4,0),TRUE)","v":3},{"$f":"VLOOKUP(OFFSET($B:$B,,MATCH(AB$4,$B$4:$F$4,0)-1),OFFSET('C. PoC Adj Factor Scoring'!$E$5:$J$282,,MATCH(AB$4,'C. PoC Adj Factor Scoring'!$E$3:$AH$3,0)-1),MATCH(AB$2&\" Score\",'C. PoC Adj Factor Scoring'!$E$4:$J$4,0),TRUE)","v":1},{"$f":"VLOOKUP(OFFSET($B:$B,,MATCH(AC$4,$B$4:$F$4,0)-1),OFFSET('C. PoC Adj Factor Scoring'!$E$5:$J$282,,MATCH(AC$4,'C. PoC Adj Factor Scoring'!$E$3:$AH$3,0)-1),MATCH(AC$2&\" Score\",'C. PoC Adj Factor Scoring'!$E$4:$J$4,0),TRUE)","v":1},{"$f":"VLOOKUP(OFFSET($B:$B,,MATCH(AD$4,$B$4:$F$4,0)-1),OFFSET('C. PoC Adj Factor Scoring'!$E$5:$J$282,,MATCH(AD$4,'C. PoC Adj Factor Scoring'!$E$3:$AH$3,0)-1),MATCH(AD$2&\" Score\",'C. PoC Adj Factor Scoring'!$E$4:$J$4,0),TRUE)","v":1},{"$f":"VLOOKUP(OFFSET($B:$B,,MATCH(AE$4,$B$4:$F$4,0)-1),OFFSET('C. PoC Adj Factor Scoring'!$E$5:$J$282,,MATCH(AE$4,'C. PoC Adj Factor Scoring'!$E$3:$AH$3,0)-1),MATCH(AE$2&\" Score\",'C. PoC Adj Factor Scoring'!$E$4:$J$4,0),TRUE)","v":1}]
[{"$f":"'A. Population Info'!A48","v":1000323106},{"$f":"'A. Population Info'!L48","v":"OIL"},{"$f":"'A. Population Info'!M48","v":0},{"$f":"'A. Population Info'!N48","v":0},{"$f":"'A. Population Info'!O48","v":0},{"$f":"'A. Population Info'!P48","v":0},{"$f":"VLOOKUP(OFFSET($B:$B,,MATCH(G$4,$B$4:$F$4,0)-1),OFFSET('C. PoC Adj Factor Scoring'!$E$5:$J$282,,MATCH(G$4,'C. PoC Adj Factor Scoring'!$E$3:$AH$3,0)-1),MATCH(G$2&\" Score\",'C. PoC Adj Factor Scoring'!$E$4:$J$4,0),TRUE)","v":4},{"$f":"VLOOKUP(OFFSET($B:$B,,MATCH(H$4,$B$4:$F$4,0)-1),OFFSET('C. PoC Adj Factor Scoring'!$E$5:$J$282,,MATCH(H$4,'C. PoC Adj Factor Scoring'!$E$3:$AH$3,0)-1),MATCH(H$2&\" Score\",'C. PoC Adj Factor Scoring'!$E$4:$J$4,0),TRUE)","v":1},{"$f":"VLOOKUP(OFFSET($B:$B,,MATCH(I$4,$B$4:$F$4,0)-1),OFFSET('C. PoC Adj Factor Scoring'!$E$5:$J$282,,MATCH(I$4,'C. PoC Adj Factor Scoring'!$E$3:$AH$3,0)-1),MATCH(I$2&\" Score\",'C. PoC Adj Factor Scoring'!$E$4:$J$4,0),TRUE)","v":1},{"$f":"VLOOKUP(OFFSET($B:$B,,MATCH(J$4,$B$4:$F$4,0)-1),OFFSET('C. PoC Adj Factor Scoring'!$E$5:$J$282,,MATCH(J$4,'C. PoC Adj Factor Scoring'!$E$3:$AH$3,0)-1),MATCH(J$2&\" Score\",'C. PoC Adj Factor Scoring'!$E$4:$J$4,0),TRUE)","v":1},{"$f":"VLOOKUP(OFFSET($B:$B,,MATCH(K$4,$B$4:$F$4,0)-1),OFFSET('C. PoC Adj Factor Scoring'!$E$5:$J$282,,MATCH(K$4,'C. PoC Adj Factor Scoring'!$E$3:$AH$3,0)-1),MATCH(K$2&\" Score\",'C. PoC Adj Factor Scoring'!$E$4:$J$4,0),TRUE)","v":1},{"$f":"VLOOKUP(OFFSET($B:$B,,MATCH(L$4,$B$4:$F$4,0)-1),OFFSET('C. PoC Adj Factor Scoring'!$E$5:$J$282,,MATCH(L$4,'C. PoC Adj Factor Scoring'!$E$3:$AH$3,0)-1),MATCH(L$2&\" Score\",'C. PoC Adj Factor Scoring'!$E$4:$J$4,0),TRUE)","v":1},{"$f":"VLOOKUP(OFFSET($B:$B,,MATCH(M$4,$B$4:$F$4,0)-1),OFFSET('C. PoC Adj Factor Scoring'!$E$5:$J$282,,MATCH(M$4,'C. PoC Adj Factor Scoring'!$E$3:$AH$3,0)-1),MATCH(M$2&\" Score\",'C. PoC Adj Factor Scoring'!$E$4:$J$4,0),TRUE)","v":1},{"$f":"VLOOKUP(OFFSET($B:$B,,MATCH(N$4,$B$4:$F$4,0)-1),OFFSET('C. PoC Adj Factor Scoring'!$E$5:$J$282,,MATCH(N$4,'C. PoC Adj Factor Scoring'!$E$3:$AH$3,0)-1),MATCH(N$2&\" Score\",'C. PoC Adj Factor Scoring'!$E$4:$J$4,0),TRUE)","v":1},{"$f":"VLOOKUP(OFFSET($B:$B,,MATCH(O$4,$B$4:$F$4,0)-1),OFFSET('C. PoC Adj Factor Scoring'!$E$5:$J$282,,MATCH(O$4,'C. PoC Adj Factor Scoring'!$E$3:$AH$3,0)-1),MATCH(O$2&\" Score\",'C. PoC Adj Factor Scoring'!$E$4:$J$4,0),TRUE)","v":1},{"$f":"VLOOKUP(OFFSET($B:$B,,MATCH(P$4,$B$4:$F$4,0)-1),OFFSET('C. PoC Adj Factor Scoring'!$E$5:$J$282,,MATCH(P$4,'C. PoC Adj Factor Scoring'!$E$3:$AH$3,0)-1),MATCH(P$2&\" Score\",'C. PoC Adj Factor Scoring'!$E$4:$J$4,0),TRUE)","v":1},{"$f":"VLOOKUP(OFFSET($B:$B,,MATCH(Q$4,$B$4:$F$4,0)-1),OFFSET('C. PoC Adj Factor Scoring'!$E$5:$J$282,,MATCH(Q$4,'C. PoC Adj Factor Scoring'!$E$3:$AH$3,0)-1),MATCH(Q$2&\" Score\",'C. PoC Adj Factor Scoring'!$E$4:$J$4,0),TRUE)","v":1},{"$f":"VLOOKUP(OFFSET($B:$B,,MATCH(R$4,$B$4:$F$4,0)-1),OFFSET('C. PoC Adj Factor Scoring'!$E$5:$J$282,,MATCH(R$4,'C. PoC Adj Factor Scoring'!$E$3:$AH$3,0)-1),MATCH(R$2&\" Score\",'C. PoC Adj Factor Scoring'!$E$4:$J$4,0),TRUE)","v":1},{"$f":"VLOOKUP(OFFSET($B:$B,,MATCH(S$4,$B$4:$F$4,0)-1),OFFSET('C. PoC Adj Factor Scoring'!$E$5:$J$282,,MATCH(S$4,'C. PoC Adj Factor Scoring'!$E$3:$AH$3,0)-1),MATCH(S$2&\" Score\",'C. PoC Adj Factor Scoring'!$E$4:$J$4,0),TRUE)","v":1},{"$f":"VLOOKUP(OFFSET($B:$B,,MATCH(T$4,$B$4:$F$4,0)-1),OFFSET('C. PoC Adj Factor Scoring'!$E$5:$J$282,,MATCH(T$4,'C. PoC Adj Factor Scoring'!$E$3:$AH$3,0)-1),MATCH(T$2&\" Score\",'C. PoC Adj Factor Scoring'!$E$4:$J$4,0),TRUE)","v":1},{"$f":"VLOOKUP(OFFSET($B:$B,,MATCH(U$4,$B$4:$F$4,0)-1),OFFSET('C. PoC Adj Factor Scoring'!$E$5:$J$282,,MATCH(U$4,'C. PoC Adj Factor Scoring'!$E$3:$AH$3,0)-1),MATCH(U$2&\" Score\",'C. PoC Adj Factor Scoring'!$E$4:$J$4,0),TRUE)","v":1},{"$f":"VLOOKUP(OFFSET($B:$B,,MATCH(V$4,$B$4:$F$4,0)-1),OFFSET('C. PoC Adj Factor Scoring'!$E$5:$J$282,,MATCH(V$4,'C. PoC Adj Factor Scoring'!$E$3:$AH$3,0)-1),MATCH(V$2&\" Score\",'C. PoC Adj Factor Scoring'!$E$4:$J$4,0),TRUE)","v":1},{"$f":"VLOOKUP(OFFSET($B:$B,,MATCH(W$4,$B$4:$F$4,0)-1),OFFSET('C. PoC Adj Factor Scoring'!$E$5:$J$282,,MATCH(W$4,'C. PoC Adj Factor Scoring'!$E$3:$AH$3,0)-1),MATCH(W$2&\" Score\",'C. PoC Adj Factor Scoring'!$E$4:$J$4,0),TRUE)","v":1},{"$f":"VLOOKUP(OFFSET($B:$B,,MATCH(X$4,$B$4:$F$4,0)-1),OFFSET('C. PoC Adj Factor Scoring'!$E$5:$J$282,,MATCH(X$4,'C. PoC Adj Factor Scoring'!$E$3:$AH$3,0)-1),MATCH(X$2&\" Score\",'C. PoC Adj Factor Scoring'!$E$4:$J$4,0),TRUE)","v":1},{"$f":"VLOOKUP(OFFSET($B:$B,,MATCH(Y$4,$B$4:$F$4,0)-1),OFFSET('C. PoC Adj Factor Scoring'!$E$5:$J$282,,MATCH(Y$4,'C. PoC Adj Factor Scoring'!$E$3:$AH$3,0)-1),MATCH(Y$2&\" Score\",'C. PoC Adj Factor Scoring'!$E$4:$J$4,0),TRUE)","v":1},{"$f":"VLOOKUP(OFFSET($B:$B,,MATCH(Z$4,$B$4:$F$4,0)-1),OFFSET('C. PoC Adj Factor Scoring'!$E$5:$J$282,,MATCH(Z$4,'C. PoC Adj Factor Scoring'!$E$3:$AH$3,0)-1),MATCH(Z$2&\" Score\",'C. PoC Adj Factor Scoring'!$E$4:$J$4,0),TRUE)","v":1},{"$f":"VLOOKUP(OFFSET($B:$B,,MATCH(AA$4,$B$4:$F$4,0)-1),OFFSET('C. PoC Adj Factor Scoring'!$E$5:$J$282,,MATCH(AA$4,'C. PoC Adj Factor Scoring'!$E$3:$AH$3,0)-1),MATCH(AA$2&\" Score\",'C. PoC Adj Factor Scoring'!$E$4:$J$4,0),TRUE)","v":3},{"$f":"VLOOKUP(OFFSET($B:$B,,MATCH(AB$4,$B$4:$F$4,0)-1),OFFSET('C. PoC Adj Factor Scoring'!$E$5:$J$282,,MATCH(AB$4,'C. PoC Adj Factor Scoring'!$E$3:$AH$3,0)-1),MATCH(AB$2&\" Score\",'C. PoC Adj Factor Scoring'!$E$4:$J$4,0),TRUE)","v":1},{"$f":"VLOOKUP(OFFSET($B:$B,,MATCH(AC$4,$B$4:$F$4,0)-1),OFFSET('C. PoC Adj Factor Scoring'!$E$5:$J$282,,MATCH(AC$4,'C. PoC Adj Factor Scoring'!$E$3:$AH$3,0)-1),MATCH(AC$2&\" Score\",'C. PoC Adj Factor Scoring'!$E$4:$J$4,0),TRUE)","v":1},{"$f":"VLOOKUP(OFFSET($B:$B,,MATCH(AD$4,$B$4:$F$4,0)-1),OFFSET('C. PoC Adj Factor Scoring'!$E$5:$J$282,,MATCH(AD$4,'C. PoC Adj Factor Scoring'!$E$3:$AH$3,0)-1),MATCH(AD$2&\" Score\",'C. PoC Adj Factor Scoring'!$E$4:$J$4,0),TRUE)","v":1},{"$f":"VLOOKUP(OFFSET($B:$B,,MATCH(AE$4,$B$4:$F$4,0)-1),OFFSET('C. PoC Adj Factor Scoring'!$E$5:$J$282,,MATCH(AE$4,'C. PoC Adj Factor Scoring'!$E$3:$AH$3,0)-1),MATCH(AE$2&\" Score\",'C. PoC Adj Factor Scoring'!$E$4:$J$4,0),TRUE)","v":1}]
[{"$f":"'A. Population Info'!A49","v":1000323136},{"$f":"'A. Population Info'!L49","v":"OIL"},{"$f":"'A. Population Info'!M49","v":0},{"$f":"'A. Population Info'!N49","v":0},{"$f":"'A. Population Info'!O49","v":0},{"$f":"'A. Population Info'!P49","v":0},{"$f":"VLOOKUP(OFFSET($B:$B,,MATCH(G$4,$B$4:$F$4,0)-1),OFFSET('C. PoC Adj Factor Scoring'!$E$5:$J$282,,MATCH(G$4,'C. PoC Adj Factor Scoring'!$E$3:$AH$3,0)-1),MATCH(G$2&\" Score\",'C. PoC Adj Factor Scoring'!$E$4:$J$4,0),TRUE)","v":4},{"$f":"VLOOKUP(OFFSET($B:$B,,MATCH(H$4,$B$4:$F$4,0)-1),OFFSET('C. PoC Adj Factor Scoring'!$E$5:$J$282,,MATCH(H$4,'C. PoC Adj Factor Scoring'!$E$3:$AH$3,0)-1),MATCH(H$2&\" Score\",'C. PoC Adj Factor Scoring'!$E$4:$J$4,0),TRUE)","v":1},{"$f":"VLOOKUP(OFFSET($B:$B,,MATCH(I$4,$B$4:$F$4,0)-1),OFFSET('C. PoC Adj Factor Scoring'!$E$5:$J$282,,MATCH(I$4,'C. PoC Adj Factor Scoring'!$E$3:$AH$3,0)-1),MATCH(I$2&\" Score\",'C. PoC Adj Factor Scoring'!$E$4:$J$4,0),TRUE)","v":1},{"$f":"VLOOKUP(OFFSET($B:$B,,MATCH(J$4,$B$4:$F$4,0)-1),OFFSET('C. PoC Adj Factor Scoring'!$E$5:$J$282,,MATCH(J$4,'C. PoC Adj Factor Scoring'!$E$3:$AH$3,0)-1),MATCH(J$2&\" Score\",'C. PoC Adj Factor Scoring'!$E$4:$J$4,0),TRUE)","v":1},{"$f":"VLOOKUP(OFFSET($B:$B,,MATCH(K$4,$B$4:$F$4,0)-1),OFFSET('C. PoC Adj Factor Scoring'!$E$5:$J$282,,MATCH(K$4,'C. PoC Adj Factor Scoring'!$E$3:$AH$3,0)-1),MATCH(K$2&\" Score\",'C. PoC Adj Factor Scoring'!$E$4:$J$4,0),TRUE)","v":1},{"$f":"VLOOKUP(OFFSET($B:$B,,MATCH(L$4,$B$4:$F$4,0)-1),OFFSET('C. PoC Adj Factor Scoring'!$E$5:$J$282,,MATCH(L$4,'C. PoC Adj Factor Scoring'!$E$3:$AH$3,0)-1),MATCH(L$2&\" Score\",'C. PoC Adj Factor Scoring'!$E$4:$J$4,0),TRUE)","v":1},{"$f":"VLOOKUP(OFFSET($B:$B,,MATCH(M$4,$B$4:$F$4,0)-1),OFFSET('C. PoC Adj Factor Scoring'!$E$5:$J$282,,MATCH(M$4,'C. PoC Adj Factor Scoring'!$E$3:$AH$3,0)-1),MATCH(M$2&\" Score\",'C. PoC Adj Factor Scoring'!$E$4:$J$4,0),TRUE)","v":1},{"$f":"VLOOKUP(OFFSET($B:$B,,MATCH(N$4,$B$4:$F$4,0)-1),OFFSET('C. PoC Adj Factor Scoring'!$E$5:$J$282,,MATCH(N$4,'C. PoC Adj Factor Scoring'!$E$3:$AH$3,0)-1),MATCH(N$2&\" Score\",'C. PoC Adj Factor Scoring'!$E$4:$J$4,0),TRUE)","v":1},{"$f":"VLOOKUP(OFFSET($B:$B,,MATCH(O$4,$B$4:$F$4,0)-1),OFFSET('C. PoC Adj Factor Scoring'!$E$5:$J$282,,MATCH(O$4,'C. PoC Adj Factor Scoring'!$E$3:$AH$3,0)-1),MATCH(O$2&\" Score\",'C. PoC Adj Factor Scoring'!$E$4:$J$4,0),TRUE)","v":1},{"$f":"VLOOKUP(OFFSET($B:$B,,MATCH(P$4,$B$4:$F$4,0)-1),OFFSET('C. PoC Adj Factor Scoring'!$E$5:$J$282,,MATCH(P$4,'C. PoC Adj Factor Scoring'!$E$3:$AH$3,0)-1),MATCH(P$2&\" Score\",'C. PoC Adj Factor Scoring'!$E$4:$J$4,0),TRUE)","v":1},{"$f":"VLOOKUP(OFFSET($B:$B,,MATCH(Q$4,$B$4:$F$4,0)-1),OFFSET('C. PoC Adj Factor Scoring'!$E$5:$J$282,,MATCH(Q$4,'C. PoC Adj Factor Scoring'!$E$3:$AH$3,0)-1),MATCH(Q$2&\" Score\",'C. PoC Adj Factor Scoring'!$E$4:$J$4,0),TRUE)","v":1},{"$f":"VLOOKUP(OFFSET($B:$B,,MATCH(R$4,$B$4:$F$4,0)-1),OFFSET('C. PoC Adj Factor Scoring'!$E$5:$J$282,,MATCH(R$4,'C. PoC Adj Factor Scoring'!$E$3:$AH$3,0)-1),MATCH(R$2&\" Score\",'C. PoC Adj Factor Scoring'!$E$4:$J$4,0),TRUE)","v":1},{"$f":"VLOOKUP(OFFSET($B:$B,,MATCH(S$4,$B$4:$F$4,0)-1),OFFSET('C. PoC Adj Factor Scoring'!$E$5:$J$282,,MATCH(S$4,'C. PoC Adj Factor Scoring'!$E$3:$AH$3,0)-1),MATCH(S$2&\" Score\",'C. PoC Adj Factor Scoring'!$E$4:$J$4,0),TRUE)","v":1},{"$f":"VLOOKUP(OFFSET($B:$B,,MATCH(T$4,$B$4:$F$4,0)-1),OFFSET('C. PoC Adj Factor Scoring'!$E$5:$J$282,,MATCH(T$4,'C. PoC Adj Factor Scoring'!$E$3:$AH$3,0)-1),MATCH(T$2&\" Score\",'C. PoC Adj Factor Scoring'!$E$4:$J$4,0),TRUE)","v":1},{"$f":"VLOOKUP(OFFSET($B:$B,,MATCH(U$4,$B$4:$F$4,0)-1),OFFSET('C. PoC Adj Factor Scoring'!$E$5:$J$282,,MATCH(U$4,'C. PoC Adj Factor Scoring'!$E$3:$AH$3,0)-1),MATCH(U$2&\" Score\",'C. PoC Adj Factor Scoring'!$E$4:$J$4,0),TRUE)","v":1},{"$f":"VLOOKUP(OFFSET($B:$B,,MATCH(V$4,$B$4:$F$4,0)-1),OFFSET('C. PoC Adj Factor Scoring'!$E$5:$J$282,,MATCH(V$4,'C. PoC Adj Factor Scoring'!$E$3:$AH$3,0)-1),MATCH(V$2&\" Score\",'C. PoC Adj Factor Scoring'!$E$4:$J$4,0),TRUE)","v":1},{"$f":"VLOOKUP(OFFSET($B:$B,,MATCH(W$4,$B$4:$F$4,0)-1),OFFSET('C. PoC Adj Factor Scoring'!$E$5:$J$282,,MATCH(W$4,'C. PoC Adj Factor Scoring'!$E$3:$AH$3,0)-1),MATCH(W$2&\" Score\",'C. PoC Adj Factor Scoring'!$E$4:$J$4,0),TRUE)","v":1},{"$f":"VLOOKUP(OFFSET($B:$B,,MATCH(X$4,$B$4:$F$4,0)-1),OFFSET('C. PoC Adj Factor Scoring'!$E$5:$J$282,,MATCH(X$4,'C. PoC Adj Factor Scoring'!$E$3:$AH$3,0)-1),MATCH(X$2&\" Score\",'C. PoC Adj Factor Scoring'!$E$4:$J$4,0),TRUE)","v":1},{"$f":"VLOOKUP(OFFSET($B:$B,,MATCH(Y$4,$B$4:$F$4,0)-1),OFFSET('C. PoC Adj Factor Scoring'!$E$5:$J$282,,MATCH(Y$4,'C. PoC Adj Factor Scoring'!$E$3:$AH$3,0)-1),MATCH(Y$2&\" Score\",'C. PoC Adj Factor Scoring'!$E$4:$J$4,0),TRUE)","v":1},{"$f":"VLOOKUP(OFFSET($B:$B,,MATCH(Z$4,$B$4:$F$4,0)-1),OFFSET('C. PoC Adj Factor Scoring'!$E$5:$J$282,,MATCH(Z$4,'C. PoC Adj Factor Scoring'!$E$3:$AH$3,0)-1),MATCH(Z$2&\" Score\",'C. PoC Adj Factor Scoring'!$E$4:$J$4,0),TRUE)","v":1},{"$f":"VLOOKUP(OFFSET($B:$B,,MATCH(AA$4,$B$4:$F$4,0)-1),OFFSET('C. PoC Adj Factor Scoring'!$E$5:$J$282,,MATCH(AA$4,'C. PoC Adj Factor Scoring'!$E$3:$AH$3,0)-1),MATCH(AA$2&\" Score\",'C. PoC Adj Factor Scoring'!$E$4:$J$4,0),TRUE)","v":3},{"$f":"VLOOKUP(OFFSET($B:$B,,MATCH(AB$4,$B$4:$F$4,0)-1),OFFSET('C. PoC Adj Factor Scoring'!$E$5:$J$282,,MATCH(AB$4,'C. PoC Adj Factor Scoring'!$E$3:$AH$3,0)-1),MATCH(AB$2&\" Score\",'C. PoC Adj Factor Scoring'!$E$4:$J$4,0),TRUE)","v":1},{"$f":"VLOOKUP(OFFSET($B:$B,,MATCH(AC$4,$B$4:$F$4,0)-1),OFFSET('C. PoC Adj Factor Scoring'!$E$5:$J$282,,MATCH(AC$4,'C. PoC Adj Factor Scoring'!$E$3:$AH$3,0)-1),MATCH(AC$2&\" Score\",'C. PoC Adj Factor Scoring'!$E$4:$J$4,0),TRUE)","v":1},{"$f":"VLOOKUP(OFFSET($B:$B,,MATCH(AD$4,$B$4:$F$4,0)-1),OFFSET('C. PoC Adj Factor Scoring'!$E$5:$J$282,,MATCH(AD$4,'C. PoC Adj Factor Scoring'!$E$3:$AH$3,0)-1),MATCH(AD$2&\" Score\",'C. PoC Adj Factor Scoring'!$E$4:$J$4,0),TRUE)","v":1},{"$f":"VLOOKUP(OFFSET($B:$B,,MATCH(AE$4,$B$4:$F$4,0)-1),OFFSET('C. PoC Adj Factor Scoring'!$E$5:$J$282,,MATCH(AE$4,'C. PoC Adj Factor Scoring'!$E$3:$AH$3,0)-1),MATCH(AE$2&\" Score\",'C. PoC Adj Factor Scoring'!$E$4:$J$4,0),TRUE)","v":1}]
[{"$f":"'A. Population Info'!A50","v":1000323169},{"$f":"'A. Population Info'!L50","v":"OIL"},{"$f":"'A. Population Info'!M50","v":0},{"$f":"'A. Population Info'!N50","v":0},{"$f":"'A. Population Info'!O50","v":0},{"$f":"'A. Population Info'!P50","v":0},{"$f":"VLOOKUP(OFFSET($B:$B,,MATCH(G$4,$B$4:$F$4,0)-1),OFFSET('C. PoC Adj Factor Scoring'!$E$5:$J$282,,MATCH(G$4,'C. PoC Adj Factor Scoring'!$E$3:$AH$3,0)-1),MATCH(G$2&\" Score\",'C. PoC Adj Factor Scoring'!$E$4:$J$4,0),TRUE)","v":4},{"$f":"VLOOKUP(OFFSET($B:$B,,MATCH(H$4,$B$4:$F$4,0)-1),OFFSET('C. PoC Adj Factor Scoring'!$E$5:$J$282,,MATCH(H$4,'C. PoC Adj Factor Scoring'!$E$3:$AH$3,0)-1),MATCH(H$2&\" Score\",'C. PoC Adj Factor Scoring'!$E$4:$J$4,0),TRUE)","v":1},{"$f":"VLOOKUP(OFFSET($B:$B,,MATCH(I$4,$B$4:$F$4,0)-1),OFFSET('C. PoC Adj Factor Scoring'!$E$5:$J$282,,MATCH(I$4,'C. PoC Adj Factor Scoring'!$E$3:$AH$3,0)-1),MATCH(I$2&\" Score\",'C. PoC Adj Factor Scoring'!$E$4:$J$4,0),TRUE)","v":1},{"$f":"VLOOKUP(OFFSET($B:$B,,MATCH(J$4,$B$4:$F$4,0)-1),OFFSET('C. PoC Adj Factor Scoring'!$E$5:$J$282,,MATCH(J$4,'C. PoC Adj Factor Scoring'!$E$3:$AH$3,0)-1),MATCH(J$2&\" Score\",'C. PoC Adj Factor Scoring'!$E$4:$J$4,0),TRUE)","v":1},{"$f":"VLOOKUP(OFFSET($B:$B,,MATCH(K$4,$B$4:$F$4,0)-1),OFFSET('C. PoC Adj Factor Scoring'!$E$5:$J$282,,MATCH(K$4,'C. PoC Adj Factor Scoring'!$E$3:$AH$3,0)-1),MATCH(K$2&\" Score\",'C. PoC Adj Factor Scoring'!$E$4:$J$4,0),TRUE)","v":1},{"$f":"VLOOKUP(OFFSET($B:$B,,MATCH(L$4,$B$4:$F$4,0)-1),OFFSET('C. PoC Adj Factor Scoring'!$E$5:$J$282,,MATCH(L$4,'C. PoC Adj Factor Scoring'!$E$3:$AH$3,0)-1),MATCH(L$2&\" Score\",'C. PoC Adj Factor Scoring'!$E$4:$J$4,0),TRUE)","v":1},{"$f":"VLOOKUP(OFFSET($B:$B,,MATCH(M$4,$B$4:$F$4,0)-1),OFFSET('C. PoC Adj Factor Scoring'!$E$5:$J$282,,MATCH(M$4,'C. PoC Adj Factor Scoring'!$E$3:$AH$3,0)-1),MATCH(M$2&\" Score\",'C. PoC Adj Factor Scoring'!$E$4:$J$4,0),TRUE)","v":1},{"$f":"VLOOKUP(OFFSET($B:$B,,MATCH(N$4,$B$4:$F$4,0)-1),OFFSET('C. PoC Adj Factor Scoring'!$E$5:$J$282,,MATCH(N$4,'C. PoC Adj Factor Scoring'!$E$3:$AH$3,0)-1),MATCH(N$2&\" Score\",'C. PoC Adj Factor Scoring'!$E$4:$J$4,0),TRUE)","v":1},{"$f":"VLOOKUP(OFFSET($B:$B,,MATCH(O$4,$B$4:$F$4,0)-1),OFFSET('C. PoC Adj Factor Scoring'!$E$5:$J$282,,MATCH(O$4,'C. PoC Adj Factor Scoring'!$E$3:$AH$3,0)-1),MATCH(O$2&\" Score\",'C. PoC Adj Factor Scoring'!$E$4:$J$4,0),TRUE)","v":1},{"$f":"VLOOKUP(OFFSET($B:$B,,MATCH(P$4,$B$4:$F$4,0)-1),OFFSET('C. PoC Adj Factor Scoring'!$E$5:$J$282,,MATCH(P$4,'C. PoC Adj Factor Scoring'!$E$3:$AH$3,0)-1),MATCH(P$2&\" Score\",'C. PoC Adj Factor Scoring'!$E$4:$J$4,0),TRUE)","v":1},{"$f":"VLOOKUP(OFFSET($B:$B,,MATCH(Q$4,$B$4:$F$4,0)-1),OFFSET('C. PoC Adj Factor Scoring'!$E$5:$J$282,,MATCH(Q$4,'C. PoC Adj Factor Scoring'!$E$3:$AH$3,0)-1),MATCH(Q$2&\" Score\",'C. PoC Adj Factor Scoring'!$E$4:$J$4,0),TRUE)","v":1},{"$f":"VLOOKUP(OFFSET($B:$B,,MATCH(R$4,$B$4:$F$4,0)-1),OFFSET('C. PoC Adj Factor Scoring'!$E$5:$J$282,,MATCH(R$4,'C. PoC Adj Factor Scoring'!$E$3:$AH$3,0)-1),MATCH(R$2&\" Score\",'C. PoC Adj Factor Scoring'!$E$4:$J$4,0),TRUE)","v":1},{"$f":"VLOOKUP(OFFSET($B:$B,,MATCH(S$4,$B$4:$F$4,0)-1),OFFSET('C. PoC Adj Factor Scoring'!$E$5:$J$282,,MATCH(S$4,'C. PoC Adj Factor Scoring'!$E$3:$AH$3,0)-1),MATCH(S$2&\" Score\",'C. PoC Adj Factor Scoring'!$E$4:$J$4,0),TRUE)","v":1},{"$f":"VLOOKUP(OFFSET($B:$B,,MATCH(T$4,$B$4:$F$4,0)-1),OFFSET('C. PoC Adj Factor Scoring'!$E$5:$J$282,,MATCH(T$4,'C. PoC Adj Factor Scoring'!$E$3:$AH$3,0)-1),MATCH(T$2&\" Score\",'C. PoC Adj Factor Scoring'!$E$4:$J$4,0),TRUE)","v":1},{"$f":"VLOOKUP(OFFSET($B:$B,,MATCH(U$4,$B$4:$F$4,0)-1),OFFSET('C. PoC Adj Factor Scoring'!$E$5:$J$282,,MATCH(U$4,'C. PoC Adj Factor Scoring'!$E$3:$AH$3,0)-1),MATCH(U$2&\" Score\",'C. PoC Adj Factor Scoring'!$E$4:$J$4,0),TRUE)","v":1},{"$f":"VLOOKUP(OFFSET($B:$B,,MATCH(V$4,$B$4:$F$4,0)-1),OFFSET('C. PoC Adj Factor Scoring'!$E$5:$J$282,,MATCH(V$4,'C. PoC Adj Factor Scoring'!$E$3:$AH$3,0)-1),MATCH(V$2&\" Score\",'C. PoC Adj Factor Scoring'!$E$4:$J$4,0),TRUE)","v":1},{"$f":"VLOOKUP(OFFSET($B:$B,,MATCH(W$4,$B$4:$F$4,0)-1),OFFSET('C. PoC Adj Factor Scoring'!$E$5:$J$282,,MATCH(W$4,'C. PoC Adj Factor Scoring'!$E$3:$AH$3,0)-1),MATCH(W$2&\" Score\",'C. PoC Adj Factor Scoring'!$E$4:$J$4,0),TRUE)","v":1},{"$f":"VLOOKUP(OFFSET($B:$B,,MATCH(X$4,$B$4:$F$4,0)-1),OFFSET('C. PoC Adj Factor Scoring'!$E$5:$J$282,,MATCH(X$4,'C. PoC Adj Factor Scoring'!$E$3:$AH$3,0)-1),MATCH(X$2&\" Score\",'C. PoC Adj Factor Scoring'!$E$4:$J$4,0),TRUE)","v":1},{"$f":"VLOOKUP(OFFSET($B:$B,,MATCH(Y$4,$B$4:$F$4,0)-1),OFFSET('C. PoC Adj Factor Scoring'!$E$5:$J$282,,MATCH(Y$4,'C. PoC Adj Factor Scoring'!$E$3:$AH$3,0)-1),MATCH(Y$2&\" Score\",'C. PoC Adj Factor Scoring'!$E$4:$J$4,0),TRUE)","v":1},{"$f":"VLOOKUP(OFFSET($B:$B,,MATCH(Z$4,$B$4:$F$4,0)-1),OFFSET('C. PoC Adj Factor Scoring'!$E$5:$J$282,,MATCH(Z$4,'C. PoC Adj Factor Scoring'!$E$3:$AH$3,0)-1),MATCH(Z$2&\" Score\",'C. PoC Adj Factor Scoring'!$E$4:$J$4,0),TRUE)","v":1},{"$f":"VLOOKUP(OFFSET($B:$B,,MATCH(AA$4,$B$4:$F$4,0)-1),OFFSET('C. PoC Adj Factor Scoring'!$E$5:$J$282,,MATCH(AA$4,'C. PoC Adj Factor Scoring'!$E$3:$AH$3,0)-1),MATCH(AA$2&\" Score\",'C. PoC Adj Factor Scoring'!$E$4:$J$4,0),TRUE)","v":3},{"$f":"VLOOKUP(OFFSET($B:$B,,MATCH(AB$4,$B$4:$F$4,0)-1),OFFSET('C. PoC Adj Factor Scoring'!$E$5:$J$282,,MATCH(AB$4,'C. PoC Adj Factor Scoring'!$E$3:$AH$3,0)-1),MATCH(AB$2&\" Score\",'C. PoC Adj Factor Scoring'!$E$4:$J$4,0),TRUE)","v":1},{"$f":"VLOOKUP(OFFSET($B:$B,,MATCH(AC$4,$B$4:$F$4,0)-1),OFFSET('C. PoC Adj Factor Scoring'!$E$5:$J$282,,MATCH(AC$4,'C. PoC Adj Factor Scoring'!$E$3:$AH$3,0)-1),MATCH(AC$2&\" Score\",'C. PoC Adj Factor Scoring'!$E$4:$J$4,0),TRUE)","v":1},{"$f":"VLOOKUP(OFFSET($B:$B,,MATCH(AD$4,$B$4:$F$4,0)-1),OFFSET('C. PoC Adj Factor Scoring'!$E$5:$J$282,,MATCH(AD$4,'C. PoC Adj Factor Scoring'!$E$3:$AH$3,0)-1),MATCH(AD$2&\" Score\",'C. PoC Adj Factor Scoring'!$E$4:$J$4,0),TRUE)","v":1},{"$f":"VLOOKUP(OFFSET($B:$B,,MATCH(AE$4,$B$4:$F$4,0)-1),OFFSET('C. PoC Adj Factor Scoring'!$E$5:$J$282,,MATCH(AE$4,'C. PoC Adj Factor Scoring'!$E$3:$AH$3,0)-1),MATCH(AE$2&\" Score\",'C. PoC Adj Factor Scoring'!$E$4:$J$4,0),TRUE)","v":1}]
[{"$f":"'A. Population Info'!A51","v":1000323229},{"$f":"'A. Population Info'!L51","v":"OIL"},{"$f":"'A. Population Info'!M51","v":0},{"$f":"'A. Population Info'!N51","v":0},{"$f":"'A. Population Info'!O51","v":0},{"$f":"'A. Population Info'!P51","v":0},{"$f":"VLOOKUP(OFFSET($B:$B,,MATCH(G$4,$B$4:$F$4,0)-1),OFFSET('C. PoC Adj Factor Scoring'!$E$5:$J$282,,MATCH(G$4,'C. PoC Adj Factor Scoring'!$E$3:$AH$3,0)-1),MATCH(G$2&\" Score\",'C. PoC Adj Factor Scoring'!$E$4:$J$4,0),TRUE)","v":4},{"$f":"VLOOKUP(OFFSET($B:$B,,MATCH(H$4,$B$4:$F$4,0)-1),OFFSET('C. PoC Adj Factor Scoring'!$E$5:$J$282,,MATCH(H$4,'C. PoC Adj Factor Scoring'!$E$3:$AH$3,0)-1),MATCH(H$2&\" Score\",'C. PoC Adj Factor Scoring'!$E$4:$J$4,0),TRUE)","v":1},{"$f":"VLOOKUP(OFFSET($B:$B,,MATCH(I$4,$B$4:$F$4,0)-1),OFFSET('C. PoC Adj Factor Scoring'!$E$5:$J$282,,MATCH(I$4,'C. PoC Adj Factor Scoring'!$E$3:$AH$3,0)-1),MATCH(I$2&\" Score\",'C. PoC Adj Factor Scoring'!$E$4:$J$4,0),TRUE)","v":1},{"$f":"VLOOKUP(OFFSET($B:$B,,MATCH(J$4,$B$4:$F$4,0)-1),OFFSET('C. PoC Adj Factor Scoring'!$E$5:$J$282,,MATCH(J$4,'C. PoC Adj Factor Scoring'!$E$3:$AH$3,0)-1),MATCH(J$2&\" Score\",'C. PoC Adj Factor Scoring'!$E$4:$J$4,0),TRUE)","v":1},{"$f":"VLOOKUP(OFFSET($B:$B,,MATCH(K$4,$B$4:$F$4,0)-1),OFFSET('C. PoC Adj Factor Scoring'!$E$5:$J$282,,MATCH(K$4,'C. PoC Adj Factor Scoring'!$E$3:$AH$3,0)-1),MATCH(K$2&\" Score\",'C. PoC Adj Factor Scoring'!$E$4:$J$4,0),TRUE)","v":1},{"$f":"VLOOKUP(OFFSET($B:$B,,MATCH(L$4,$B$4:$F$4,0)-1),OFFSET('C. PoC Adj Factor Scoring'!$E$5:$J$282,,MATCH(L$4,'C. PoC Adj Factor Scoring'!$E$3:$AH$3,0)-1),MATCH(L$2&\" Score\",'C. PoC Adj Factor Scoring'!$E$4:$J$4,0),TRUE)","v":1},{"$f":"VLOOKUP(OFFSET($B:$B,,MATCH(M$4,$B$4:$F$4,0)-1),OFFSET('C. PoC Adj Factor Scoring'!$E$5:$J$282,,MATCH(M$4,'C. PoC Adj Factor Scoring'!$E$3:$AH$3,0)-1),MATCH(M$2&\" Score\",'C. PoC Adj Factor Scoring'!$E$4:$J$4,0),TRUE)","v":1},{"$f":"VLOOKUP(OFFSET($B:$B,,MATCH(N$4,$B$4:$F$4,0)-1),OFFSET('C. PoC Adj Factor Scoring'!$E$5:$J$282,,MATCH(N$4,'C. PoC Adj Factor Scoring'!$E$3:$AH$3,0)-1),MATCH(N$2&\" Score\",'C. PoC Adj Factor Scoring'!$E$4:$J$4,0),TRUE)","v":1},{"$f":"VLOOKUP(OFFSET($B:$B,,MATCH(O$4,$B$4:$F$4,0)-1),OFFSET('C. PoC Adj Factor Scoring'!$E$5:$J$282,,MATCH(O$4,'C. PoC Adj Factor Scoring'!$E$3:$AH$3,0)-1),MATCH(O$2&\" Score\",'C. PoC Adj Factor Scoring'!$E$4:$J$4,0),TRUE)","v":1},{"$f":"VLOOKUP(OFFSET($B:$B,,MATCH(P$4,$B$4:$F$4,0)-1),OFFSET('C. PoC Adj Factor Scoring'!$E$5:$J$282,,MATCH(P$4,'C. PoC Adj Factor Scoring'!$E$3:$AH$3,0)-1),MATCH(P$2&\" Score\",'C. PoC Adj Factor Scoring'!$E$4:$J$4,0),TRUE)","v":1},{"$f":"VLOOKUP(OFFSET($B:$B,,MATCH(Q$4,$B$4:$F$4,0)-1),OFFSET('C. PoC Adj Factor Scoring'!$E$5:$J$282,,MATCH(Q$4,'C. PoC Adj Factor Scoring'!$E$3:$AH$3,0)-1),MATCH(Q$2&\" Score\",'C. PoC Adj Factor Scoring'!$E$4:$J$4,0),TRUE)","v":1},{"$f":"VLOOKUP(OFFSET($B:$B,,MATCH(R$4,$B$4:$F$4,0)-1),OFFSET('C. PoC Adj Factor Scoring'!$E$5:$J$282,,MATCH(R$4,'C. PoC Adj Factor Scoring'!$E$3:$AH$3,0)-1),MATCH(R$2&\" Score\",'C. PoC Adj Factor Scoring'!$E$4:$J$4,0),TRUE)","v":1},{"$f":"VLOOKUP(OFFSET($B:$B,,MATCH(S$4,$B$4:$F$4,0)-1),OFFSET('C. PoC Adj Factor Scoring'!$E$5:$J$282,,MATCH(S$4,'C. PoC Adj Factor Scoring'!$E$3:$AH$3,0)-1),MATCH(S$2&\" Score\",'C. PoC Adj Factor Scoring'!$E$4:$J$4,0),TRUE)","v":1},{"$f":"VLOOKUP(OFFSET($B:$B,,MATCH(T$4,$B$4:$F$4,0)-1),OFFSET('C. PoC Adj Factor Scoring'!$E$5:$J$282,,MATCH(T$4,'C. PoC Adj Factor Scoring'!$E$3:$AH$3,0)-1),MATCH(T$2&\" Score\",'C. PoC Adj Factor Scoring'!$E$4:$J$4,0),TRUE)","v":1},{"$f":"VLOOKUP(OFFSET($B:$B,,MATCH(U$4,$B$4:$F$4,0)-1),OFFSET('C. PoC Adj Factor Scoring'!$E$5:$J$282,,MATCH(U$4,'C. PoC Adj Factor Scoring'!$E$3:$AH$3,0)-1),MATCH(U$2&\" Score\",'C. PoC Adj Factor Scoring'!$E$4:$J$4,0),TRUE)","v":1},{"$f":"VLOOKUP(OFFSET($B:$B,,MATCH(V$4,$B$4:$F$4,0)-1),OFFSET('C. PoC Adj Factor Scoring'!$E$5:$J$282,,MATCH(V$4,'C. PoC Adj Factor Scoring'!$E$3:$AH$3,0)-1),MATCH(V$2&\" Score\",'C. PoC Adj Factor Scoring'!$E$4:$J$4,0),TRUE)","v":1},{"$f":"VLOOKUP(OFFSET($B:$B,,MATCH(W$4,$B$4:$F$4,0)-1),OFFSET('C. PoC Adj Factor Scoring'!$E$5:$J$282,,MATCH(W$4,'C. PoC Adj Factor Scoring'!$E$3:$AH$3,0)-1),MATCH(W$2&\" Score\",'C. PoC Adj Factor Scoring'!$E$4:$J$4,0),TRUE)","v":1},{"$f":"VLOOKUP(OFFSET($B:$B,,MATCH(X$4,$B$4:$F$4,0)-1),OFFSET('C. PoC Adj Factor Scoring'!$E$5:$J$282,,MATCH(X$4,'C. PoC Adj Factor Scoring'!$E$3:$AH$3,0)-1),MATCH(X$2&\" Score\",'C. PoC Adj Factor Scoring'!$E$4:$J$4,0),TRUE)","v":1},{"$f":"VLOOKUP(OFFSET($B:$B,,MATCH(Y$4,$B$4:$F$4,0)-1),OFFSET('C. PoC Adj Factor Scoring'!$E$5:$J$282,,MATCH(Y$4,'C. PoC Adj Factor Scoring'!$E$3:$AH$3,0)-1),MATCH(Y$2&\" Score\",'C. PoC Adj Factor Scoring'!$E$4:$J$4,0),TRUE)","v":1},{"$f":"VLOOKUP(OFFSET($B:$B,,MATCH(Z$4,$B$4:$F$4,0)-1),OFFSET('C. PoC Adj Factor Scoring'!$E$5:$J$282,,MATCH(Z$4,'C. PoC Adj Factor Scoring'!$E$3:$AH$3,0)-1),MATCH(Z$2&\" Score\",'C. PoC Adj Factor Scoring'!$E$4:$J$4,0),TRUE)","v":1},{"$f":"VLOOKUP(OFFSET($B:$B,,MATCH(AA$4,$B$4:$F$4,0)-1),OFFSET('C. PoC Adj Factor Scoring'!$E$5:$J$282,,MATCH(AA$4,'C. PoC Adj Factor Scoring'!$E$3:$AH$3,0)-1),MATCH(AA$2&\" Score\",'C. PoC Adj Factor Scoring'!$E$4:$J$4,0),TRUE)","v":3},{"$f":"VLOOKUP(OFFSET($B:$B,,MATCH(AB$4,$B$4:$F$4,0)-1),OFFSET('C. PoC Adj Factor Scoring'!$E$5:$J$282,,MATCH(AB$4,'C. PoC Adj Factor Scoring'!$E$3:$AH$3,0)-1),MATCH(AB$2&\" Score\",'C. PoC Adj Factor Scoring'!$E$4:$J$4,0),TRUE)","v":1},{"$f":"VLOOKUP(OFFSET($B:$B,,MATCH(AC$4,$B$4:$F$4,0)-1),OFFSET('C. PoC Adj Factor Scoring'!$E$5:$J$282,,MATCH(AC$4,'C. PoC Adj Factor Scoring'!$E$3:$AH$3,0)-1),MATCH(AC$2&\" Score\",'C. PoC Adj Factor Scoring'!$E$4:$J$4,0),TRUE)","v":1},{"$f":"VLOOKUP(OFFSET($B:$B,,MATCH(AD$4,$B$4:$F$4,0)-1),OFFSET('C. PoC Adj Factor Scoring'!$E$5:$J$282,,MATCH(AD$4,'C. PoC Adj Factor Scoring'!$E$3:$AH$3,0)-1),MATCH(AD$2&\" Score\",'C. PoC Adj Factor Scoring'!$E$4:$J$4,0),TRUE)","v":1},{"$f":"VLOOKUP(OFFSET($B:$B,,MATCH(AE$4,$B$4:$F$4,0)-1),OFFSET('C. PoC Adj Factor Scoring'!$E$5:$J$282,,MATCH(AE$4,'C. PoC Adj Factor Scoring'!$E$3:$AH$3,0)-1),MATCH(AE$2&\" Score\",'C. PoC Adj Factor Scoring'!$E$4:$J$4,0),TRUE)","v":1}]
[{"$f":"'A. Population Info'!A52","v":1000323262},{"$f":"'A. Population Info'!L52","v":"OIL"},{"$f":"'A. Population Info'!M52","v":0},{"$f":"'A. Population Info'!N52","v":0},{"$f":"'A. Population Info'!O52","v":0},{"$f":"'A. Population Info'!P52","v":0},{"$f":"VLOOKUP(OFFSET($B:$B,,MATCH(G$4,$B$4:$F$4,0)-1),OFFSET('C. PoC Adj Factor Scoring'!$E$5:$J$282,,MATCH(G$4,'C. PoC Adj Factor Scoring'!$E$3:$AH$3,0)-1),MATCH(G$2&\" Score\",'C. PoC Adj Factor Scoring'!$E$4:$J$4,0),TRUE)","v":4},{"$f":"VLOOKUP(OFFSET($B:$B,,MATCH(H$4,$B$4:$F$4,0)-1),OFFSET('C. PoC Adj Factor Scoring'!$E$5:$J$282,,MATCH(H$4,'C. PoC Adj Factor Scoring'!$E$3:$AH$3,0)-1),MATCH(H$2&\" Score\",'C. PoC Adj Factor Scoring'!$E$4:$J$4,0),TRUE)","v":1},{"$f":"VLOOKUP(OFFSET($B:$B,,MATCH(I$4,$B$4:$F$4,0)-1),OFFSET('C. PoC Adj Factor Scoring'!$E$5:$J$282,,MATCH(I$4,'C. PoC Adj Factor Scoring'!$E$3:$AH$3,0)-1),MATCH(I$2&\" Score\",'C. PoC Adj Factor Scoring'!$E$4:$J$4,0),TRUE)","v":1},{"$f":"VLOOKUP(OFFSET($B:$B,,MATCH(J$4,$B$4:$F$4,0)-1),OFFSET('C. PoC Adj Factor Scoring'!$E$5:$J$282,,MATCH(J$4,'C. PoC Adj Factor Scoring'!$E$3:$AH$3,0)-1),MATCH(J$2&\" Score\",'C. PoC Adj Factor Scoring'!$E$4:$J$4,0),TRUE)","v":1},{"$f":"VLOOKUP(OFFSET($B:$B,,MATCH(K$4,$B$4:$F$4,0)-1),OFFSET('C. PoC Adj Factor Scoring'!$E$5:$J$282,,MATCH(K$4,'C. PoC Adj Factor Scoring'!$E$3:$AH$3,0)-1),MATCH(K$2&\" Score\",'C. PoC Adj Factor Scoring'!$E$4:$J$4,0),TRUE)","v":1},{"$f":"VLOOKUP(OFFSET($B:$B,,MATCH(L$4,$B$4:$F$4,0)-1),OFFSET('C. PoC Adj Factor Scoring'!$E$5:$J$282,,MATCH(L$4,'C. PoC Adj Factor Scoring'!$E$3:$AH$3,0)-1),MATCH(L$2&\" Score\",'C. PoC Adj Factor Scoring'!$E$4:$J$4,0),TRUE)","v":1},{"$f":"VLOOKUP(OFFSET($B:$B,,MATCH(M$4,$B$4:$F$4,0)-1),OFFSET('C. PoC Adj Factor Scoring'!$E$5:$J$282,,MATCH(M$4,'C. PoC Adj Factor Scoring'!$E$3:$AH$3,0)-1),MATCH(M$2&\" Score\",'C. PoC Adj Factor Scoring'!$E$4:$J$4,0),TRUE)","v":1},{"$f":"VLOOKUP(OFFSET($B:$B,,MATCH(N$4,$B$4:$F$4,0)-1),OFFSET('C. PoC Adj Factor Scoring'!$E$5:$J$282,,MATCH(N$4,'C. PoC Adj Factor Scoring'!$E$3:$AH$3,0)-1),MATCH(N$2&\" Score\",'C. PoC Adj Factor Scoring'!$E$4:$J$4,0),TRUE)","v":1},{"$f":"VLOOKUP(OFFSET($B:$B,,MATCH(O$4,$B$4:$F$4,0)-1),OFFSET('C. PoC Adj Factor Scoring'!$E$5:$J$282,,MATCH(O$4,'C. PoC Adj Factor Scoring'!$E$3:$AH$3,0)-1),MATCH(O$2&\" Score\",'C. PoC Adj Factor Scoring'!$E$4:$J$4,0),TRUE)","v":1},{"$f":"VLOOKUP(OFFSET($B:$B,,MATCH(P$4,$B$4:$F$4,0)-1),OFFSET('C. PoC Adj Factor Scoring'!$E$5:$J$282,,MATCH(P$4,'C. PoC Adj Factor Scoring'!$E$3:$AH$3,0)-1),MATCH(P$2&\" Score\",'C. PoC Adj Factor Scoring'!$E$4:$J$4,0),TRUE)","v":1},{"$f":"VLOOKUP(OFFSET($B:$B,,MATCH(Q$4,$B$4:$F$4,0)-1),OFFSET('C. PoC Adj Factor Scoring'!$E$5:$J$282,,MATCH(Q$4,'C. PoC Adj Factor Scoring'!$E$3:$AH$3,0)-1),MATCH(Q$2&\" Score\",'C. PoC Adj Factor Scoring'!$E$4:$J$4,0),TRUE)","v":1},{"$f":"VLOOKUP(OFFSET($B:$B,,MATCH(R$4,$B$4:$F$4,0)-1),OFFSET('C. PoC Adj Factor Scoring'!$E$5:$J$282,,MATCH(R$4,'C. PoC Adj Factor Scoring'!$E$3:$AH$3,0)-1),MATCH(R$2&\" Score\",'C. PoC Adj Factor Scoring'!$E$4:$J$4,0),TRUE)","v":1},{"$f":"VLOOKUP(OFFSET($B:$B,,MATCH(S$4,$B$4:$F$4,0)-1),OFFSET('C. PoC Adj Factor Scoring'!$E$5:$J$282,,MATCH(S$4,'C. PoC Adj Factor Scoring'!$E$3:$AH$3,0)-1),MATCH(S$2&\" Score\",'C. PoC Adj Factor Scoring'!$E$4:$J$4,0),TRUE)","v":1},{"$f":"VLOOKUP(OFFSET($B:$B,,MATCH(T$4,$B$4:$F$4,0)-1),OFFSET('C. PoC Adj Factor Scoring'!$E$5:$J$282,,MATCH(T$4,'C. PoC Adj Factor Scoring'!$E$3:$AH$3,0)-1),MATCH(T$2&\" Score\",'C. PoC Adj Factor Scoring'!$E$4:$J$4,0),TRUE)","v":1},{"$f":"VLOOKUP(OFFSET($B:$B,,MATCH(U$4,$B$4:$F$4,0)-1),OFFSET('C. PoC Adj Factor Scoring'!$E$5:$J$282,,MATCH(U$4,'C. PoC Adj Factor Scoring'!$E$3:$AH$3,0)-1),MATCH(U$2&\" Score\",'C. PoC Adj Factor Scoring'!$E$4:$J$4,0),TRUE)","v":1},{"$f":"VLOOKUP(OFFSET($B:$B,,MATCH(V$4,$B$4:$F$4,0)-1),OFFSET('C. PoC Adj Factor Scoring'!$E$5:$J$282,,MATCH(V$4,'C. PoC Adj Factor Scoring'!$E$3:$AH$3,0)-1),MATCH(V$2&\" Score\",'C. PoC Adj Factor Scoring'!$E$4:$J$4,0),TRUE)","v":1},{"$f":"VLOOKUP(OFFSET($B:$B,,MATCH(W$4,$B$4:$F$4,0)-1),OFFSET('C. PoC Adj Factor Scoring'!$E$5:$J$282,,MATCH(W$4,'C. PoC Adj Factor Scoring'!$E$3:$AH$3,0)-1),MATCH(W$2&\" Score\",'C. PoC Adj Factor Scoring'!$E$4:$J$4,0),TRUE)","v":1},{"$f":"VLOOKUP(OFFSET($B:$B,,MATCH(X$4,$B$4:$F$4,0)-1),OFFSET('C. PoC Adj Factor Scoring'!$E$5:$J$282,,MATCH(X$4,'C. PoC Adj Factor Scoring'!$E$3:$AH$3,0)-1),MATCH(X$2&\" Score\",'C. PoC Adj Factor Scoring'!$E$4:$J$4,0),TRUE)","v":1},{"$f":"VLOOKUP(OFFSET($B:$B,,MATCH(Y$4,$B$4:$F$4,0)-1),OFFSET('C. PoC Adj Factor Scoring'!$E$5:$J$282,,MATCH(Y$4,'C. PoC Adj Factor Scoring'!$E$3:$AH$3,0)-1),MATCH(Y$2&\" Score\",'C. PoC Adj Factor Scoring'!$E$4:$J$4,0),TRUE)","v":1},{"$f":"VLOOKUP(OFFSET($B:$B,,MATCH(Z$4,$B$4:$F$4,0)-1),OFFSET('C. PoC Adj Factor Scoring'!$E$5:$J$282,,MATCH(Z$4,'C. PoC Adj Factor Scoring'!$E$3:$AH$3,0)-1),MATCH(Z$2&\" Score\",'C. PoC Adj Factor Scoring'!$E$4:$J$4,0),TRUE)","v":1},{"$f":"VLOOKUP(OFFSET($B:$B,,MATCH(AA$4,$B$4:$F$4,0)-1),OFFSET('C. PoC Adj Factor Scoring'!$E$5:$J$282,,MATCH(AA$4,'C. PoC Adj Factor Scoring'!$E$3:$AH$3,0)-1),MATCH(AA$2&\" Score\",'C. PoC Adj Factor Scoring'!$E$4:$J$4,0),TRUE)","v":3},{"$f":"VLOOKUP(OFFSET($B:$B,,MATCH(AB$4,$B$4:$F$4,0)-1),OFFSET('C. PoC Adj Factor Scoring'!$E$5:$J$282,,MATCH(AB$4,'C. PoC Adj Factor Scoring'!$E$3:$AH$3,0)-1),MATCH(AB$2&\" Score\",'C. PoC Adj Factor Scoring'!$E$4:$J$4,0),TRUE)","v":1},{"$f":"VLOOKUP(OFFSET($B:$B,,MATCH(AC$4,$B$4:$F$4,0)-1),OFFSET('C. PoC Adj Factor Scoring'!$E$5:$J$282,,MATCH(AC$4,'C. PoC Adj Factor Scoring'!$E$3:$AH$3,0)-1),MATCH(AC$2&\" Score\",'C. PoC Adj Factor Scoring'!$E$4:$J$4,0),TRUE)","v":1},{"$f":"VLOOKUP(OFFSET($B:$B,,MATCH(AD$4,$B$4:$F$4,0)-1),OFFSET('C. PoC Adj Factor Scoring'!$E$5:$J$282,,MATCH(AD$4,'C. PoC Adj Factor Scoring'!$E$3:$AH$3,0)-1),MATCH(AD$2&\" Score\",'C. PoC Adj Factor Scoring'!$E$4:$J$4,0),TRUE)","v":1},{"$f":"VLOOKUP(OFFSET($B:$B,,MATCH(AE$4,$B$4:$F$4,0)-1),OFFSET('C. PoC Adj Factor Scoring'!$E$5:$J$282,,MATCH(AE$4,'C. PoC Adj Factor Scoring'!$E$3:$AH$3,0)-1),MATCH(AE$2&\" Score\",'C. PoC Adj Factor Scoring'!$E$4:$J$4,0),TRUE)","v":1}]
[{"$f":"'A. Population Info'!A53","v":1000323289},{"$f":"'A. Population Info'!L53","v":"OIL"},{"$f":"'A. Population Info'!M53","v":0},{"$f":"'A. Population Info'!N53","v":0},{"$f":"'A. Population Info'!O53","v":0},{"$f":"'A. Population Info'!P53","v":0},{"$f":"VLOOKUP(OFFSET($B:$B,,MATCH(G$4,$B$4:$F$4,0)-1),OFFSET('C. PoC Adj Factor Scoring'!$E$5:$J$282,,MATCH(G$4,'C. PoC Adj Factor Scoring'!$E$3:$AH$3,0)-1),MATCH(G$2&\" Score\",'C. PoC Adj Factor Scoring'!$E$4:$J$4,0),TRUE)","v":4},{"$f":"VLOOKUP(OFFSET($B:$B,,MATCH(H$4,$B$4:$F$4,0)-1),OFFSET('C. PoC Adj Factor Scoring'!$E$5:$J$282,,MATCH(H$4,'C. PoC Adj Factor Scoring'!$E$3:$AH$3,0)-1),MATCH(H$2&\" Score\",'C. PoC Adj Factor Scoring'!$E$4:$J$4,0),TRUE)","v":1},{"$f":"VLOOKUP(OFFSET($B:$B,,MATCH(I$4,$B$4:$F$4,0)-1),OFFSET('C. PoC Adj Factor Scoring'!$E$5:$J$282,,MATCH(I$4,'C. PoC Adj Factor Scoring'!$E$3:$AH$3,0)-1),MATCH(I$2&\" Score\",'C. PoC Adj Factor Scoring'!$E$4:$J$4,0),TRUE)","v":1},{"$f":"VLOOKUP(OFFSET($B:$B,,MATCH(J$4,$B$4:$F$4,0)-1),OFFSET('C. PoC Adj Factor Scoring'!$E$5:$J$282,,MATCH(J$4,'C. PoC Adj Factor Scoring'!$E$3:$AH$3,0)-1),MATCH(J$2&\" Score\",'C. PoC Adj Factor Scoring'!$E$4:$J$4,0),TRUE)","v":1},{"$f":"VLOOKUP(OFFSET($B:$B,,MATCH(K$4,$B$4:$F$4,0)-1),OFFSET('C. PoC Adj Factor Scoring'!$E$5:$J$282,,MATCH(K$4,'C. PoC Adj Factor Scoring'!$E$3:$AH$3,0)-1),MATCH(K$2&\" Score\",'C. PoC Adj Factor Scoring'!$E$4:$J$4,0),TRUE)","v":1},{"$f":"VLOOKUP(OFFSET($B:$B,,MATCH(L$4,$B$4:$F$4,0)-1),OFFSET('C. PoC Adj Factor Scoring'!$E$5:$J$282,,MATCH(L$4,'C. PoC Adj Factor Scoring'!$E$3:$AH$3,0)-1),MATCH(L$2&\" Score\",'C. PoC Adj Factor Scoring'!$E$4:$J$4,0),TRUE)","v":1},{"$f":"VLOOKUP(OFFSET($B:$B,,MATCH(M$4,$B$4:$F$4,0)-1),OFFSET('C. PoC Adj Factor Scoring'!$E$5:$J$282,,MATCH(M$4,'C. PoC Adj Factor Scoring'!$E$3:$AH$3,0)-1),MATCH(M$2&\" Score\",'C. PoC Adj Factor Scoring'!$E$4:$J$4,0),TRUE)","v":1},{"$f":"VLOOKUP(OFFSET($B:$B,,MATCH(N$4,$B$4:$F$4,0)-1),OFFSET('C. PoC Adj Factor Scoring'!$E$5:$J$282,,MATCH(N$4,'C. PoC Adj Factor Scoring'!$E$3:$AH$3,0)-1),MATCH(N$2&\" Score\",'C. PoC Adj Factor Scoring'!$E$4:$J$4,0),TRUE)","v":1},{"$f":"VLOOKUP(OFFSET($B:$B,,MATCH(O$4,$B$4:$F$4,0)-1),OFFSET('C. PoC Adj Factor Scoring'!$E$5:$J$282,,MATCH(O$4,'C. PoC Adj Factor Scoring'!$E$3:$AH$3,0)-1),MATCH(O$2&\" Score\",'C. PoC Adj Factor Scoring'!$E$4:$J$4,0),TRUE)","v":1},{"$f":"VLOOKUP(OFFSET($B:$B,,MATCH(P$4,$B$4:$F$4,0)-1),OFFSET('C. PoC Adj Factor Scoring'!$E$5:$J$282,,MATCH(P$4,'C. PoC Adj Factor Scoring'!$E$3:$AH$3,0)-1),MATCH(P$2&\" Score\",'C. PoC Adj Factor Scoring'!$E$4:$J$4,0),TRUE)","v":1},{"$f":"VLOOKUP(OFFSET($B:$B,,MATCH(Q$4,$B$4:$F$4,0)-1),OFFSET('C. PoC Adj Factor Scoring'!$E$5:$J$282,,MATCH(Q$4,'C. PoC Adj Factor Scoring'!$E$3:$AH$3,0)-1),MATCH(Q$2&\" Score\",'C. PoC Adj Factor Scoring'!$E$4:$J$4,0),TRUE)","v":1},{"$f":"VLOOKUP(OFFSET($B:$B,,MATCH(R$4,$B$4:$F$4,0)-1),OFFSET('C. PoC Adj Factor Scoring'!$E$5:$J$282,,MATCH(R$4,'C. PoC Adj Factor Scoring'!$E$3:$AH$3,0)-1),MATCH(R$2&\" Score\",'C. PoC Adj Factor Scoring'!$E$4:$J$4,0),TRUE)","v":1},{"$f":"VLOOKUP(OFFSET($B:$B,,MATCH(S$4,$B$4:$F$4,0)-1),OFFSET('C. PoC Adj Factor Scoring'!$E$5:$J$282,,MATCH(S$4,'C. PoC Adj Factor Scoring'!$E$3:$AH$3,0)-1),MATCH(S$2&\" Score\",'C. PoC Adj Factor Scoring'!$E$4:$J$4,0),TRUE)","v":1},{"$f":"VLOOKUP(OFFSET($B:$B,,MATCH(T$4,$B$4:$F$4,0)-1),OFFSET('C. PoC Adj Factor Scoring'!$E$5:$J$282,,MATCH(T$4,'C. PoC Adj Factor Scoring'!$E$3:$AH$3,0)-1),MATCH(T$2&\" Score\",'C. PoC Adj Factor Scoring'!$E$4:$J$4,0),TRUE)","v":1},{"$f":"VLOOKUP(OFFSET($B:$B,,MATCH(U$4,$B$4:$F$4,0)-1),OFFSET('C. PoC Adj Factor Scoring'!$E$5:$J$282,,MATCH(U$4,'C. PoC Adj Factor Scoring'!$E$3:$AH$3,0)-1),MATCH(U$2&\" Score\",'C. PoC Adj Factor Scoring'!$E$4:$J$4,0),TRUE)","v":1},{"$f":"VLOOKUP(OFFSET($B:$B,,MATCH(V$4,$B$4:$F$4,0)-1),OFFSET('C. PoC Adj Factor Scoring'!$E$5:$J$282,,MATCH(V$4,'C. PoC Adj Factor Scoring'!$E$3:$AH$3,0)-1),MATCH(V$2&\" Score\",'C. PoC Adj Factor Scoring'!$E$4:$J$4,0),TRUE)","v":1},{"$f":"VLOOKUP(OFFSET($B:$B,,MATCH(W$4,$B$4:$F$4,0)-1),OFFSET('C. PoC Adj Factor Scoring'!$E$5:$J$282,,MATCH(W$4,'C. PoC Adj Factor Scoring'!$E$3:$AH$3,0)-1),MATCH(W$2&\" Score\",'C. PoC Adj Factor Scoring'!$E$4:$J$4,0),TRUE)","v":1},{"$f":"VLOOKUP(OFFSET($B:$B,,MATCH(X$4,$B$4:$F$4,0)-1),OFFSET('C. PoC Adj Factor Scoring'!$E$5:$J$282,,MATCH(X$4,'C. PoC Adj Factor Scoring'!$E$3:$AH$3,0)-1),MATCH(X$2&\" Score\",'C. PoC Adj Factor Scoring'!$E$4:$J$4,0),TRUE)","v":1},{"$f":"VLOOKUP(OFFSET($B:$B,,MATCH(Y$4,$B$4:$F$4,0)-1),OFFSET('C. PoC Adj Factor Scoring'!$E$5:$J$282,,MATCH(Y$4,'C. PoC Adj Factor Scoring'!$E$3:$AH$3,0)-1),MATCH(Y$2&\" Score\",'C. PoC Adj Factor Scoring'!$E$4:$J$4,0),TRUE)","v":1},{"$f":"VLOOKUP(OFFSET($B:$B,,MATCH(Z$4,$B$4:$F$4,0)-1),OFFSET('C. PoC Adj Factor Scoring'!$E$5:$J$282,,MATCH(Z$4,'C. PoC Adj Factor Scoring'!$E$3:$AH$3,0)-1),MATCH(Z$2&\" Score\",'C. PoC Adj Factor Scoring'!$E$4:$J$4,0),TRUE)","v":1},{"$f":"VLOOKUP(OFFSET($B:$B,,MATCH(AA$4,$B$4:$F$4,0)-1),OFFSET('C. PoC Adj Factor Scoring'!$E$5:$J$282,,MATCH(AA$4,'C. PoC Adj Factor Scoring'!$E$3:$AH$3,0)-1),MATCH(AA$2&\" Score\",'C. PoC Adj Factor Scoring'!$E$4:$J$4,0),TRUE)","v":3},{"$f":"VLOOKUP(OFFSET($B:$B,,MATCH(AB$4,$B$4:$F$4,0)-1),OFFSET('C. PoC Adj Factor Scoring'!$E$5:$J$282,,MATCH(AB$4,'C. PoC Adj Factor Scoring'!$E$3:$AH$3,0)-1),MATCH(AB$2&\" Score\",'C. PoC Adj Factor Scoring'!$E$4:$J$4,0),TRUE)","v":1},{"$f":"VLOOKUP(OFFSET($B:$B,,MATCH(AC$4,$B$4:$F$4,0)-1),OFFSET('C. PoC Adj Factor Scoring'!$E$5:$J$282,,MATCH(AC$4,'C. PoC Adj Factor Scoring'!$E$3:$AH$3,0)-1),MATCH(AC$2&\" Score\",'C. PoC Adj Factor Scoring'!$E$4:$J$4,0),TRUE)","v":1},{"$f":"VLOOKUP(OFFSET($B:$B,,MATCH(AD$4,$B$4:$F$4,0)-1),OFFSET('C. PoC Adj Factor Scoring'!$E$5:$J$282,,MATCH(AD$4,'C. PoC Adj Factor Scoring'!$E$3:$AH$3,0)-1),MATCH(AD$2&\" Score\",'C. PoC Adj Factor Scoring'!$E$4:$J$4,0),TRUE)","v":1},{"$f":"VLOOKUP(OFFSET($B:$B,,MATCH(AE$4,$B$4:$F$4,0)-1),OFFSET('C. PoC Adj Factor Scoring'!$E$5:$J$282,,MATCH(AE$4,'C. PoC Adj Factor Scoring'!$E$3:$AH$3,0)-1),MATCH(AE$2&\" Score\",'C. PoC Adj Factor Scoring'!$E$4:$J$4,0),TRUE)","v":1}]
[{"$f":"'A. Population Info'!A54","v":1000323320},{"$f":"'A. Population Info'!L54","v":"OIL"},{"$f":"'A. Population Info'!M54","v":0},{"$f":"'A. Population Info'!N54","v":0},{"$f":"'A. Population Info'!O54","v":0},{"$f":"'A. Population Info'!P54","v":0},{"$f":"VLOOKUP(OFFSET($B:$B,,MATCH(G$4,$B$4:$F$4,0)-1),OFFSET('C. PoC Adj Factor Scoring'!$E$5:$J$282,,MATCH(G$4,'C. PoC Adj Factor Scoring'!$E$3:$AH$3,0)-1),MATCH(G$2&\" Score\",'C. PoC Adj Factor Scoring'!$E$4:$J$4,0),TRUE)","v":4},{"$f":"VLOOKUP(OFFSET($B:$B,,MATCH(H$4,$B$4:$F$4,0)-1),OFFSET('C. PoC Adj Factor Scoring'!$E$5:$J$282,,MATCH(H$4,'C. PoC Adj Factor Scoring'!$E$3:$AH$3,0)-1),MATCH(H$2&\" Score\",'C. PoC Adj Factor Scoring'!$E$4:$J$4,0),TRUE)","v":1},{"$f":"VLOOKUP(OFFSET($B:$B,,MATCH(I$4,$B$4:$F$4,0)-1),OFFSET('C. PoC Adj Factor Scoring'!$E$5:$J$282,,MATCH(I$4,'C. PoC Adj Factor Scoring'!$E$3:$AH$3,0)-1),MATCH(I$2&\" Score\",'C. PoC Adj Factor Scoring'!$E$4:$J$4,0),TRUE)","v":1},{"$f":"VLOOKUP(OFFSET($B:$B,,MATCH(J$4,$B$4:$F$4,0)-1),OFFSET('C. PoC Adj Factor Scoring'!$E$5:$J$282,,MATCH(J$4,'C. PoC Adj Factor Scoring'!$E$3:$AH$3,0)-1),MATCH(J$2&\" Score\",'C. PoC Adj Factor Scoring'!$E$4:$J$4,0),TRUE)","v":1},{"$f":"VLOOKUP(OFFSET($B:$B,,MATCH(K$4,$B$4:$F$4,0)-1),OFFSET('C. PoC Adj Factor Scoring'!$E$5:$J$282,,MATCH(K$4,'C. PoC Adj Factor Scoring'!$E$3:$AH$3,0)-1),MATCH(K$2&\" Score\",'C. PoC Adj Factor Scoring'!$E$4:$J$4,0),TRUE)","v":1},{"$f":"VLOOKUP(OFFSET($B:$B,,MATCH(L$4,$B$4:$F$4,0)-1),OFFSET('C. PoC Adj Factor Scoring'!$E$5:$J$282,,MATCH(L$4,'C. PoC Adj Factor Scoring'!$E$3:$AH$3,0)-1),MATCH(L$2&\" Score\",'C. PoC Adj Factor Scoring'!$E$4:$J$4,0),TRUE)","v":1},{"$f":"VLOOKUP(OFFSET($B:$B,,MATCH(M$4,$B$4:$F$4,0)-1),OFFSET('C. PoC Adj Factor Scoring'!$E$5:$J$282,,MATCH(M$4,'C. PoC Adj Factor Scoring'!$E$3:$AH$3,0)-1),MATCH(M$2&\" Score\",'C. PoC Adj Factor Scoring'!$E$4:$J$4,0),TRUE)","v":1},{"$f":"VLOOKUP(OFFSET($B:$B,,MATCH(N$4,$B$4:$F$4,0)-1),OFFSET('C. PoC Adj Factor Scoring'!$E$5:$J$282,,MATCH(N$4,'C. PoC Adj Factor Scoring'!$E$3:$AH$3,0)-1),MATCH(N$2&\" Score\",'C. PoC Adj Factor Scoring'!$E$4:$J$4,0),TRUE)","v":1},{"$f":"VLOOKUP(OFFSET($B:$B,,MATCH(O$4,$B$4:$F$4,0)-1),OFFSET('C. PoC Adj Factor Scoring'!$E$5:$J$282,,MATCH(O$4,'C. PoC Adj Factor Scoring'!$E$3:$AH$3,0)-1),MATCH(O$2&\" Score\",'C. PoC Adj Factor Scoring'!$E$4:$J$4,0),TRUE)","v":1},{"$f":"VLOOKUP(OFFSET($B:$B,,MATCH(P$4,$B$4:$F$4,0)-1),OFFSET('C. PoC Adj Factor Scoring'!$E$5:$J$282,,MATCH(P$4,'C. PoC Adj Factor Scoring'!$E$3:$AH$3,0)-1),MATCH(P$2&\" Score\",'C. PoC Adj Factor Scoring'!$E$4:$J$4,0),TRUE)","v":1},{"$f":"VLOOKUP(OFFSET($B:$B,,MATCH(Q$4,$B$4:$F$4,0)-1),OFFSET('C. PoC Adj Factor Scoring'!$E$5:$J$282,,MATCH(Q$4,'C. PoC Adj Factor Scoring'!$E$3:$AH$3,0)-1),MATCH(Q$2&\" Score\",'C. PoC Adj Factor Scoring'!$E$4:$J$4,0),TRUE)","v":1},{"$f":"VLOOKUP(OFFSET($B:$B,,MATCH(R$4,$B$4:$F$4,0)-1),OFFSET('C. PoC Adj Factor Scoring'!$E$5:$J$282,,MATCH(R$4,'C. PoC Adj Factor Scoring'!$E$3:$AH$3,0)-1),MATCH(R$2&\" Score\",'C. PoC Adj Factor Scoring'!$E$4:$J$4,0),TRUE)","v":1},{"$f":"VLOOKUP(OFFSET($B:$B,,MATCH(S$4,$B$4:$F$4,0)-1),OFFSET('C. PoC Adj Factor Scoring'!$E$5:$J$282,,MATCH(S$4,'C. PoC Adj Factor Scoring'!$E$3:$AH$3,0)-1),MATCH(S$2&\" Score\",'C. PoC Adj Factor Scoring'!$E$4:$J$4,0),TRUE)","v":1},{"$f":"VLOOKUP(OFFSET($B:$B,,MATCH(T$4,$B$4:$F$4,0)-1),OFFSET('C. PoC Adj Factor Scoring'!$E$5:$J$282,,MATCH(T$4,'C. PoC Adj Factor Scoring'!$E$3:$AH$3,0)-1),MATCH(T$2&\" Score\",'C. PoC Adj Factor Scoring'!$E$4:$J$4,0),TRUE)","v":1},{"$f":"VLOOKUP(OFFSET($B:$B,,MATCH(U$4,$B$4:$F$4,0)-1),OFFSET('C. PoC Adj Factor Scoring'!$E$5:$J$282,,MATCH(U$4,'C. PoC Adj Factor Scoring'!$E$3:$AH$3,0)-1),MATCH(U$2&\" Score\",'C. PoC Adj Factor Scoring'!$E$4:$J$4,0),TRUE)","v":1},{"$f":"VLOOKUP(OFFSET($B:$B,,MATCH(V$4,$B$4:$F$4,0)-1),OFFSET('C. PoC Adj Factor Scoring'!$E$5:$J$282,,MATCH(V$4,'C. PoC Adj Factor Scoring'!$E$3:$AH$3,0)-1),MATCH(V$2&\" Score\",'C. PoC Adj Factor Scoring'!$E$4:$J$4,0),TRUE)","v":1},{"$f":"VLOOKUP(OFFSET($B:$B,,MATCH(W$4,$B$4:$F$4,0)-1),OFFSET('C. PoC Adj Factor Scoring'!$E$5:$J$282,,MATCH(W$4,'C. PoC Adj Factor Scoring'!$E$3:$AH$3,0)-1),MATCH(W$2&\" Score\",'C. PoC Adj Factor Scoring'!$E$4:$J$4,0),TRUE)","v":1},{"$f":"VLOOKUP(OFFSET($B:$B,,MATCH(X$4,$B$4:$F$4,0)-1),OFFSET('C. PoC Adj Factor Scoring'!$E$5:$J$282,,MATCH(X$4,'C. PoC Adj Factor Scoring'!$E$3:$AH$3,0)-1),MATCH(X$2&\" Score\",'C. PoC Adj Factor Scoring'!$E$4:$J$4,0),TRUE)","v":1},{"$f":"VLOOKUP(OFFSET($B:$B,,MATCH(Y$4,$B$4:$F$4,0)-1),OFFSET('C. PoC Adj Factor Scoring'!$E$5:$J$282,,MATCH(Y$4,'C. PoC Adj Factor Scoring'!$E$3:$AH$3,0)-1),MATCH(Y$2&\" Score\",'C. PoC Adj Factor Scoring'!$E$4:$J$4,0),TRUE)","v":1},{"$f":"VLOOKUP(OFFSET($B:$B,,MATCH(Z$4,$B$4:$F$4,0)-1),OFFSET('C. PoC Adj Factor Scoring'!$E$5:$J$282,,MATCH(Z$4,'C. PoC Adj Factor Scoring'!$E$3:$AH$3,0)-1),MATCH(Z$2&\" Score\",'C. PoC Adj Factor Scoring'!$E$4:$J$4,0),TRUE)","v":1},{"$f":"VLOOKUP(OFFSET($B:$B,,MATCH(AA$4,$B$4:$F$4,0)-1),OFFSET('C. PoC Adj Factor Scoring'!$E$5:$J$282,,MATCH(AA$4,'C. PoC Adj Factor Scoring'!$E$3:$AH$3,0)-1),MATCH(AA$2&\" Score\",'C. PoC Adj Factor Scoring'!$E$4:$J$4,0),TRUE)","v":3},{"$f":"VLOOKUP(OFFSET($B:$B,,MATCH(AB$4,$B$4:$F$4,0)-1),OFFSET('C. PoC Adj Factor Scoring'!$E$5:$J$282,,MATCH(AB$4,'C. PoC Adj Factor Scoring'!$E$3:$AH$3,0)-1),MATCH(AB$2&\" Score\",'C. PoC Adj Factor Scoring'!$E$4:$J$4,0),TRUE)","v":1},{"$f":"VLOOKUP(OFFSET($B:$B,,MATCH(AC$4,$B$4:$F$4,0)-1),OFFSET('C. PoC Adj Factor Scoring'!$E$5:$J$282,,MATCH(AC$4,'C. PoC Adj Factor Scoring'!$E$3:$AH$3,0)-1),MATCH(AC$2&\" Score\",'C. PoC Adj Factor Scoring'!$E$4:$J$4,0),TRUE)","v":1},{"$f":"VLOOKUP(OFFSET($B:$B,,MATCH(AD$4,$B$4:$F$4,0)-1),OFFSET('C. PoC Adj Factor Scoring'!$E$5:$J$282,,MATCH(AD$4,'C. PoC Adj Factor Scoring'!$E$3:$AH$3,0)-1),MATCH(AD$2&\" Score\",'C. PoC Adj Factor Scoring'!$E$4:$J$4,0),TRUE)","v":1},{"$f":"VLOOKUP(OFFSET($B:$B,,MATCH(AE$4,$B$4:$F$4,0)-1),OFFSET('C. PoC Adj Factor Scoring'!$E$5:$J$282,,MATCH(AE$4,'C. PoC Adj Factor Scoring'!$E$3:$AH$3,0)-1),MATCH(AE$2&\" Score\",'C. PoC Adj Factor Scoring'!$E$4:$J$4,0),TRUE)","v":1}]
[{"$f":"'A. Population Info'!A55","v":1000323378},{"$f":"'A. Population Info'!L55","v":"OIL"},{"$f":"'A. Population Info'!M55","v":0},{"$f":"'A. Population Info'!N55","v":0},{"$f":"'A. Population Info'!O55","v":0},{"$f":"'A. Population Info'!P55","v":0},{"$f":"VLOOKUP(OFFSET($B:$B,,MATCH(G$4,$B$4:$F$4,0)-1),OFFSET('C. PoC Adj Factor Scoring'!$E$5:$J$282,,MATCH(G$4,'C. PoC Adj Factor Scoring'!$E$3:$AH$3,0)-1),MATCH(G$2&\" Score\",'C. PoC Adj Factor Scoring'!$E$4:$J$4,0),TRUE)","v":4},{"$f":"VLOOKUP(OFFSET($B:$B,,MATCH(H$4,$B$4:$F$4,0)-1),OFFSET('C. PoC Adj Factor Scoring'!$E$5:$J$282,,MATCH(H$4,'C. PoC Adj Factor Scoring'!$E$3:$AH$3,0)-1),MATCH(H$2&\" Score\",'C. PoC Adj Factor Scoring'!$E$4:$J$4,0),TRUE)","v":1},{"$f":"VLOOKUP(OFFSET($B:$B,,MATCH(I$4,$B$4:$F$4,0)-1),OFFSET('C. PoC Adj Factor Scoring'!$E$5:$J$282,,MATCH(I$4,'C. PoC Adj Factor Scoring'!$E$3:$AH$3,0)-1),MATCH(I$2&\" Score\",'C. PoC Adj Factor Scoring'!$E$4:$J$4,0),TRUE)","v":1},{"$f":"VLOOKUP(OFFSET($B:$B,,MATCH(J$4,$B$4:$F$4,0)-1),OFFSET('C. PoC Adj Factor Scoring'!$E$5:$J$282,,MATCH(J$4,'C. PoC Adj Factor Scoring'!$E$3:$AH$3,0)-1),MATCH(J$2&\" Score\",'C. PoC Adj Factor Scoring'!$E$4:$J$4,0),TRUE)","v":1},{"$f":"VLOOKUP(OFFSET($B:$B,,MATCH(K$4,$B$4:$F$4,0)-1),OFFSET('C. PoC Adj Factor Scoring'!$E$5:$J$282,,MATCH(K$4,'C. PoC Adj Factor Scoring'!$E$3:$AH$3,0)-1),MATCH(K$2&\" Score\",'C. PoC Adj Factor Scoring'!$E$4:$J$4,0),TRUE)","v":1},{"$f":"VLOOKUP(OFFSET($B:$B,,MATCH(L$4,$B$4:$F$4,0)-1),OFFSET('C. PoC Adj Factor Scoring'!$E$5:$J$282,,MATCH(L$4,'C. PoC Adj Factor Scoring'!$E$3:$AH$3,0)-1),MATCH(L$2&\" Score\",'C. PoC Adj Factor Scoring'!$E$4:$J$4,0),TRUE)","v":1},{"$f":"VLOOKUP(OFFSET($B:$B,,MATCH(M$4,$B$4:$F$4,0)-1),OFFSET('C. PoC Adj Factor Scoring'!$E$5:$J$282,,MATCH(M$4,'C. PoC Adj Factor Scoring'!$E$3:$AH$3,0)-1),MATCH(M$2&\" Score\",'C. PoC Adj Factor Scoring'!$E$4:$J$4,0),TRUE)","v":1},{"$f":"VLOOKUP(OFFSET($B:$B,,MATCH(N$4,$B$4:$F$4,0)-1),OFFSET('C. PoC Adj Factor Scoring'!$E$5:$J$282,,MATCH(N$4,'C. PoC Adj Factor Scoring'!$E$3:$AH$3,0)-1),MATCH(N$2&\" Score\",'C. PoC Adj Factor Scoring'!$E$4:$J$4,0),TRUE)","v":1},{"$f":"VLOOKUP(OFFSET($B:$B,,MATCH(O$4,$B$4:$F$4,0)-1),OFFSET('C. PoC Adj Factor Scoring'!$E$5:$J$282,,MATCH(O$4,'C. PoC Adj Factor Scoring'!$E$3:$AH$3,0)-1),MATCH(O$2&\" Score\",'C. PoC Adj Factor Scoring'!$E$4:$J$4,0),TRUE)","v":1},{"$f":"VLOOKUP(OFFSET($B:$B,,MATCH(P$4,$B$4:$F$4,0)-1),OFFSET('C. PoC Adj Factor Scoring'!$E$5:$J$282,,MATCH(P$4,'C. PoC Adj Factor Scoring'!$E$3:$AH$3,0)-1),MATCH(P$2&\" Score\",'C. PoC Adj Factor Scoring'!$E$4:$J$4,0),TRUE)","v":1},{"$f":"VLOOKUP(OFFSET($B:$B,,MATCH(Q$4,$B$4:$F$4,0)-1),OFFSET('C. PoC Adj Factor Scoring'!$E$5:$J$282,,MATCH(Q$4,'C. PoC Adj Factor Scoring'!$E$3:$AH$3,0)-1),MATCH(Q$2&\" Score\",'C. PoC Adj Factor Scoring'!$E$4:$J$4,0),TRUE)","v":1},{"$f":"VLOOKUP(OFFSET($B:$B,,MATCH(R$4,$B$4:$F$4,0)-1),OFFSET('C. PoC Adj Factor Scoring'!$E$5:$J$282,,MATCH(R$4,'C. PoC Adj Factor Scoring'!$E$3:$AH$3,0)-1),MATCH(R$2&\" Score\",'C. PoC Adj Factor Scoring'!$E$4:$J$4,0),TRUE)","v":1},{"$f":"VLOOKUP(OFFSET($B:$B,,MATCH(S$4,$B$4:$F$4,0)-1),OFFSET('C. PoC Adj Factor Scoring'!$E$5:$J$282,,MATCH(S$4,'C. PoC Adj Factor Scoring'!$E$3:$AH$3,0)-1),MATCH(S$2&\" Score\",'C. PoC Adj Factor Scoring'!$E$4:$J$4,0),TRUE)","v":1},{"$f":"VLOOKUP(OFFSET($B:$B,,MATCH(T$4,$B$4:$F$4,0)-1),OFFSET('C. PoC Adj Factor Scoring'!$E$5:$J$282,,MATCH(T$4,'C. PoC Adj Factor Scoring'!$E$3:$AH$3,0)-1),MATCH(T$2&\" Score\",'C. PoC Adj Factor Scoring'!$E$4:$J$4,0),TRUE)","v":1},{"$f":"VLOOKUP(OFFSET($B:$B,,MATCH(U$4,$B$4:$F$4,0)-1),OFFSET('C. PoC Adj Factor Scoring'!$E$5:$J$282,,MATCH(U$4,'C. PoC Adj Factor Scoring'!$E$3:$AH$3,0)-1),MATCH(U$2&\" Score\",'C. PoC Adj Factor Scoring'!$E$4:$J$4,0),TRUE)","v":1},{"$f":"VLOOKUP(OFFSET($B:$B,,MATCH(V$4,$B$4:$F$4,0)-1),OFFSET('C. PoC Adj Factor Scoring'!$E$5:$J$282,,MATCH(V$4,'C. PoC Adj Factor Scoring'!$E$3:$AH$3,0)-1),MATCH(V$2&\" Score\",'C. PoC Adj Factor Scoring'!$E$4:$J$4,0),TRUE)","v":1},{"$f":"VLOOKUP(OFFSET($B:$B,,MATCH(W$4,$B$4:$F$4,0)-1),OFFSET('C. PoC Adj Factor Scoring'!$E$5:$J$282,,MATCH(W$4,'C. PoC Adj Factor Scoring'!$E$3:$AH$3,0)-1),MATCH(W$2&\" Score\",'C. PoC Adj Factor Scoring'!$E$4:$J$4,0),TRUE)","v":1},{"$f":"VLOOKUP(OFFSET($B:$B,,MATCH(X$4,$B$4:$F$4,0)-1),OFFSET('C. PoC Adj Factor Scoring'!$E$5:$J$282,,MATCH(X$4,'C. PoC Adj Factor Scoring'!$E$3:$AH$3,0)-1),MATCH(X$2&\" Score\",'C. PoC Adj Factor Scoring'!$E$4:$J$4,0),TRUE)","v":1},{"$f":"VLOOKUP(OFFSET($B:$B,,MATCH(Y$4,$B$4:$F$4,0)-1),OFFSET('C. PoC Adj Factor Scoring'!$E$5:$J$282,,MATCH(Y$4,'C. PoC Adj Factor Scoring'!$E$3:$AH$3,0)-1),MATCH(Y$2&\" Score\",'C. PoC Adj Factor Scoring'!$E$4:$J$4,0),TRUE)","v":1},{"$f":"VLOOKUP(OFFSET($B:$B,,MATCH(Z$4,$B$4:$F$4,0)-1),OFFSET('C. PoC Adj Factor Scoring'!$E$5:$J$282,,MATCH(Z$4,'C. PoC Adj Factor Scoring'!$E$3:$AH$3,0)-1),MATCH(Z$2&\" Score\",'C. PoC Adj Factor Scoring'!$E$4:$J$4,0),TRUE)","v":1},{"$f":"VLOOKUP(OFFSET($B:$B,,MATCH(AA$4,$B$4:$F$4,0)-1),OFFSET('C. PoC Adj Factor Scoring'!$E$5:$J$282,,MATCH(AA$4,'C. PoC Adj Factor Scoring'!$E$3:$AH$3,0)-1),MATCH(AA$2&\" Score\",'C. PoC Adj Factor Scoring'!$E$4:$J$4,0),TRUE)","v":3},{"$f":"VLOOKUP(OFFSET($B:$B,,MATCH(AB$4,$B$4:$F$4,0)-1),OFFSET('C. PoC Adj Factor Scoring'!$E$5:$J$282,,MATCH(AB$4,'C. PoC Adj Factor Scoring'!$E$3:$AH$3,0)-1),MATCH(AB$2&\" Score\",'C. PoC Adj Factor Scoring'!$E$4:$J$4,0),TRUE)","v":1},{"$f":"VLOOKUP(OFFSET($B:$B,,MATCH(AC$4,$B$4:$F$4,0)-1),OFFSET('C. PoC Adj Factor Scoring'!$E$5:$J$282,,MATCH(AC$4,'C. PoC Adj Factor Scoring'!$E$3:$AH$3,0)-1),MATCH(AC$2&\" Score\",'C. PoC Adj Factor Scoring'!$E$4:$J$4,0),TRUE)","v":1},{"$f":"VLOOKUP(OFFSET($B:$B,,MATCH(AD$4,$B$4:$F$4,0)-1),OFFSET('C. PoC Adj Factor Scoring'!$E$5:$J$282,,MATCH(AD$4,'C. PoC Adj Factor Scoring'!$E$3:$AH$3,0)-1),MATCH(AD$2&\" Score\",'C. PoC Adj Factor Scoring'!$E$4:$J$4,0),TRUE)","v":1},{"$f":"VLOOKUP(OFFSET($B:$B,,MATCH(AE$4,$B$4:$F$4,0)-1),OFFSET('C. PoC Adj Factor Scoring'!$E$5:$J$282,,MATCH(AE$4,'C. PoC Adj Factor Scoring'!$E$3:$AH$3,0)-1),MATCH(AE$2&\" Score\",'C. PoC Adj Factor Scoring'!$E$4:$J$4,0),TRUE)","v":1}]
[{"$f":"'A. Population Info'!A56","v":1000323408},{"$f":"'A. Population Info'!L56","v":"OIL"},{"$f":"'A. Population Info'!M56","v":0},{"$f":"'A. Population Info'!N56","v":0},{"$f":"'A. Population Info'!O56","v":0},{"$f":"'A. Population Info'!P56","v":0},{"$f":"VLOOKUP(OFFSET($B:$B,,MATCH(G$4,$B$4:$F$4,0)-1),OFFSET('C. PoC Adj Factor Scoring'!$E$5:$J$282,,MATCH(G$4,'C. PoC Adj Factor Scoring'!$E$3:$AH$3,0)-1),MATCH(G$2&\" Score\",'C. PoC Adj Factor Scoring'!$E$4:$J$4,0),TRUE)","v":4},{"$f":"VLOOKUP(OFFSET($B:$B,,MATCH(H$4,$B$4:$F$4,0)-1),OFFSET('C. PoC Adj Factor Scoring'!$E$5:$J$282,,MATCH(H$4,'C. PoC Adj Factor Scoring'!$E$3:$AH$3,0)-1),MATCH(H$2&\" Score\",'C. PoC Adj Factor Scoring'!$E$4:$J$4,0),TRUE)","v":1},{"$f":"VLOOKUP(OFFSET($B:$B,,MATCH(I$4,$B$4:$F$4,0)-1),OFFSET('C. PoC Adj Factor Scoring'!$E$5:$J$282,,MATCH(I$4,'C. PoC Adj Factor Scoring'!$E$3:$AH$3,0)-1),MATCH(I$2&\" Score\",'C. PoC Adj Factor Scoring'!$E$4:$J$4,0),TRUE)","v":1},{"$f":"VLOOKUP(OFFSET($B:$B,,MATCH(J$4,$B$4:$F$4,0)-1),OFFSET('C. PoC Adj Factor Scoring'!$E$5:$J$282,,MATCH(J$4,'C. PoC Adj Factor Scoring'!$E$3:$AH$3,0)-1),MATCH(J$2&\" Score\",'C. PoC Adj Factor Scoring'!$E$4:$J$4,0),TRUE)","v":1},{"$f":"VLOOKUP(OFFSET($B:$B,,MATCH(K$4,$B$4:$F$4,0)-1),OFFSET('C. PoC Adj Factor Scoring'!$E$5:$J$282,,MATCH(K$4,'C. PoC Adj Factor Scoring'!$E$3:$AH$3,0)-1),MATCH(K$2&\" Score\",'C. PoC Adj Factor Scoring'!$E$4:$J$4,0),TRUE)","v":1},{"$f":"VLOOKUP(OFFSET($B:$B,,MATCH(L$4,$B$4:$F$4,0)-1),OFFSET('C. PoC Adj Factor Scoring'!$E$5:$J$282,,MATCH(L$4,'C. PoC Adj Factor Scoring'!$E$3:$AH$3,0)-1),MATCH(L$2&\" Score\",'C. PoC Adj Factor Scoring'!$E$4:$J$4,0),TRUE)","v":1},{"$f":"VLOOKUP(OFFSET($B:$B,,MATCH(M$4,$B$4:$F$4,0)-1),OFFSET('C. PoC Adj Factor Scoring'!$E$5:$J$282,,MATCH(M$4,'C. PoC Adj Factor Scoring'!$E$3:$AH$3,0)-1),MATCH(M$2&\" Score\",'C. PoC Adj Factor Scoring'!$E$4:$J$4,0),TRUE)","v":1},{"$f":"VLOOKUP(OFFSET($B:$B,,MATCH(N$4,$B$4:$F$4,0)-1),OFFSET('C. PoC Adj Factor Scoring'!$E$5:$J$282,,MATCH(N$4,'C. PoC Adj Factor Scoring'!$E$3:$AH$3,0)-1),MATCH(N$2&\" Score\",'C. PoC Adj Factor Scoring'!$E$4:$J$4,0),TRUE)","v":1},{"$f":"VLOOKUP(OFFSET($B:$B,,MATCH(O$4,$B$4:$F$4,0)-1),OFFSET('C. PoC Adj Factor Scoring'!$E$5:$J$282,,MATCH(O$4,'C. PoC Adj Factor Scoring'!$E$3:$AH$3,0)-1),MATCH(O$2&\" Score\",'C. PoC Adj Factor Scoring'!$E$4:$J$4,0),TRUE)","v":1},{"$f":"VLOOKUP(OFFSET($B:$B,,MATCH(P$4,$B$4:$F$4,0)-1),OFFSET('C. PoC Adj Factor Scoring'!$E$5:$J$282,,MATCH(P$4,'C. PoC Adj Factor Scoring'!$E$3:$AH$3,0)-1),MATCH(P$2&\" Score\",'C. PoC Adj Factor Scoring'!$E$4:$J$4,0),TRUE)","v":1},{"$f":"VLOOKUP(OFFSET($B:$B,,MATCH(Q$4,$B$4:$F$4,0)-1),OFFSET('C. PoC Adj Factor Scoring'!$E$5:$J$282,,MATCH(Q$4,'C. PoC Adj Factor Scoring'!$E$3:$AH$3,0)-1),MATCH(Q$2&\" Score\",'C. PoC Adj Factor Scoring'!$E$4:$J$4,0),TRUE)","v":1},{"$f":"VLOOKUP(OFFSET($B:$B,,MATCH(R$4,$B$4:$F$4,0)-1),OFFSET('C. PoC Adj Factor Scoring'!$E$5:$J$282,,MATCH(R$4,'C. PoC Adj Factor Scoring'!$E$3:$AH$3,0)-1),MATCH(R$2&\" Score\",'C. PoC Adj Factor Scoring'!$E$4:$J$4,0),TRUE)","v":1},{"$f":"VLOOKUP(OFFSET($B:$B,,MATCH(S$4,$B$4:$F$4,0)-1),OFFSET('C. PoC Adj Factor Scoring'!$E$5:$J$282,,MATCH(S$4,'C. PoC Adj Factor Scoring'!$E$3:$AH$3,0)-1),MATCH(S$2&\" Score\",'C. PoC Adj Factor Scoring'!$E$4:$J$4,0),TRUE)","v":1},{"$f":"VLOOKUP(OFFSET($B:$B,,MATCH(T$4,$B$4:$F$4,0)-1),OFFSET('C. PoC Adj Factor Scoring'!$E$5:$J$282,,MATCH(T$4,'C. PoC Adj Factor Scoring'!$E$3:$AH$3,0)-1),MATCH(T$2&\" Score\",'C. PoC Adj Factor Scoring'!$E$4:$J$4,0),TRUE)","v":1},{"$f":"VLOOKUP(OFFSET($B:$B,,MATCH(U$4,$B$4:$F$4,0)-1),OFFSET('C. PoC Adj Factor Scoring'!$E$5:$J$282,,MATCH(U$4,'C. PoC Adj Factor Scoring'!$E$3:$AH$3,0)-1),MATCH(U$2&\" Score\",'C. PoC Adj Factor Scoring'!$E$4:$J$4,0),TRUE)","v":1},{"$f":"VLOOKUP(OFFSET($B:$B,,MATCH(V$4,$B$4:$F$4,0)-1),OFFSET('C. PoC Adj Factor Scoring'!$E$5:$J$282,,MATCH(V$4,'C. PoC Adj Factor Scoring'!$E$3:$AH$3,0)-1),MATCH(V$2&\" Score\",'C. PoC Adj Factor Scoring'!$E$4:$J$4,0),TRUE)","v":1},{"$f":"VLOOKUP(OFFSET($B:$B,,MATCH(W$4,$B$4:$F$4,0)-1),OFFSET('C. PoC Adj Factor Scoring'!$E$5:$J$282,,MATCH(W$4,'C. PoC Adj Factor Scoring'!$E$3:$AH$3,0)-1),MATCH(W$2&\" Score\",'C. PoC Adj Factor Scoring'!$E$4:$J$4,0),TRUE)","v":1},{"$f":"VLOOKUP(OFFSET($B:$B,,MATCH(X$4,$B$4:$F$4,0)-1),OFFSET('C. PoC Adj Factor Scoring'!$E$5:$J$282,,MATCH(X$4,'C. PoC Adj Factor Scoring'!$E$3:$AH$3,0)-1),MATCH(X$2&\" Score\",'C. PoC Adj Factor Scoring'!$E$4:$J$4,0),TRUE)","v":1},{"$f":"VLOOKUP(OFFSET($B:$B,,MATCH(Y$4,$B$4:$F$4,0)-1),OFFSET('C. PoC Adj Factor Scoring'!$E$5:$J$282,,MATCH(Y$4,'C. PoC Adj Factor Scoring'!$E$3:$AH$3,0)-1),MATCH(Y$2&\" Score\",'C. PoC Adj Factor Scoring'!$E$4:$J$4,0),TRUE)","v":1},{"$f":"VLOOKUP(OFFSET($B:$B,,MATCH(Z$4,$B$4:$F$4,0)-1),OFFSET('C. PoC Adj Factor Scoring'!$E$5:$J$282,,MATCH(Z$4,'C. PoC Adj Factor Scoring'!$E$3:$AH$3,0)-1),MATCH(Z$2&\" Score\",'C. PoC Adj Factor Scoring'!$E$4:$J$4,0),TRUE)","v":1},{"$f":"VLOOKUP(OFFSET($B:$B,,MATCH(AA$4,$B$4:$F$4,0)-1),OFFSET('C. PoC Adj Factor Scoring'!$E$5:$J$282,,MATCH(AA$4,'C. PoC Adj Factor Scoring'!$E$3:$AH$3,0)-1),MATCH(AA$2&\" Score\",'C. PoC Adj Factor Scoring'!$E$4:$J$4,0),TRUE)","v":3},{"$f":"VLOOKUP(OFFSET($B:$B,,MATCH(AB$4,$B$4:$F$4,0)-1),OFFSET('C. PoC Adj Factor Scoring'!$E$5:$J$282,,MATCH(AB$4,'C. PoC Adj Factor Scoring'!$E$3:$AH$3,0)-1),MATCH(AB$2&\" Score\",'C. PoC Adj Factor Scoring'!$E$4:$J$4,0),TRUE)","v":1},{"$f":"VLOOKUP(OFFSET($B:$B,,MATCH(AC$4,$B$4:$F$4,0)-1),OFFSET('C. PoC Adj Factor Scoring'!$E$5:$J$282,,MATCH(AC$4,'C. PoC Adj Factor Scoring'!$E$3:$AH$3,0)-1),MATCH(AC$2&\" Score\",'C. PoC Adj Factor Scoring'!$E$4:$J$4,0),TRUE)","v":1},{"$f":"VLOOKUP(OFFSET($B:$B,,MATCH(AD$4,$B$4:$F$4,0)-1),OFFSET('C. PoC Adj Factor Scoring'!$E$5:$J$282,,MATCH(AD$4,'C. PoC Adj Factor Scoring'!$E$3:$AH$3,0)-1),MATCH(AD$2&\" Score\",'C. PoC Adj Factor Scoring'!$E$4:$J$4,0),TRUE)","v":1},{"$f":"VLOOKUP(OFFSET($B:$B,,MATCH(AE$4,$B$4:$F$4,0)-1),OFFSET('C. PoC Adj Factor Scoring'!$E$5:$J$282,,MATCH(AE$4,'C. PoC Adj Factor Scoring'!$E$3:$AH$3,0)-1),MATCH(AE$2&\" Score\",'C. PoC Adj Factor Scoring'!$E$4:$J$4,0),TRUE)","v":1}]
[{"$f":"'A. Population Info'!A57","v":1000323435},{"$f":"'A. Population Info'!L57","v":"OIL"},{"$f":"'A. Population Info'!M57","v":0},{"$f":"'A. Population Info'!N57","v":0},{"$f":"'A. Population Info'!O57","v":0},{"$f":"'A. Population Info'!P57","v":0},{"$f":"VLOOKUP(OFFSET($B:$B,,MATCH(G$4,$B$4:$F$4,0)-1),OFFSET('C. PoC Adj Factor Scoring'!$E$5:$J$282,,MATCH(G$4,'C. PoC Adj Factor Scoring'!$E$3:$AH$3,0)-1),MATCH(G$2&\" Score\",'C. PoC Adj Factor Scoring'!$E$4:$J$4,0),TRUE)","v":4},{"$f":"VLOOKUP(OFFSET($B:$B,,MATCH(H$4,$B$4:$F$4,0)-1),OFFSET('C. PoC Adj Factor Scoring'!$E$5:$J$282,,MATCH(H$4,'C. PoC Adj Factor Scoring'!$E$3:$AH$3,0)-1),MATCH(H$2&\" Score\",'C. PoC Adj Factor Scoring'!$E$4:$J$4,0),TRUE)","v":1},{"$f":"VLOOKUP(OFFSET($B:$B,,MATCH(I$4,$B$4:$F$4,0)-1),OFFSET('C. PoC Adj Factor Scoring'!$E$5:$J$282,,MATCH(I$4,'C. PoC Adj Factor Scoring'!$E$3:$AH$3,0)-1),MATCH(I$2&\" Score\",'C. PoC Adj Factor Scoring'!$E$4:$J$4,0),TRUE)","v":1},{"$f":"VLOOKUP(OFFSET($B:$B,,MATCH(J$4,$B$4:$F$4,0)-1),OFFSET('C. PoC Adj Factor Scoring'!$E$5:$J$282,,MATCH(J$4,'C. PoC Adj Factor Scoring'!$E$3:$AH$3,0)-1),MATCH(J$2&\" Score\",'C. PoC Adj Factor Scoring'!$E$4:$J$4,0),TRUE)","v":1},{"$f":"VLOOKUP(OFFSET($B:$B,,MATCH(K$4,$B$4:$F$4,0)-1),OFFSET('C. PoC Adj Factor Scoring'!$E$5:$J$282,,MATCH(K$4,'C. PoC Adj Factor Scoring'!$E$3:$AH$3,0)-1),MATCH(K$2&\" Score\",'C. PoC Adj Factor Scoring'!$E$4:$J$4,0),TRUE)","v":1},{"$f":"VLOOKUP(OFFSET($B:$B,,MATCH(L$4,$B$4:$F$4,0)-1),OFFSET('C. PoC Adj Factor Scoring'!$E$5:$J$282,,MATCH(L$4,'C. PoC Adj Factor Scoring'!$E$3:$AH$3,0)-1),MATCH(L$2&\" Score\",'C. PoC Adj Factor Scoring'!$E$4:$J$4,0),TRUE)","v":1},{"$f":"VLOOKUP(OFFSET($B:$B,,MATCH(M$4,$B$4:$F$4,0)-1),OFFSET('C. PoC Adj Factor Scoring'!$E$5:$J$282,,MATCH(M$4,'C. PoC Adj Factor Scoring'!$E$3:$AH$3,0)-1),MATCH(M$2&\" Score\",'C. PoC Adj Factor Scoring'!$E$4:$J$4,0),TRUE)","v":1},{"$f":"VLOOKUP(OFFSET($B:$B,,MATCH(N$4,$B$4:$F$4,0)-1),OFFSET('C. PoC Adj Factor Scoring'!$E$5:$J$282,,MATCH(N$4,'C. PoC Adj Factor Scoring'!$E$3:$AH$3,0)-1),MATCH(N$2&\" Score\",'C. PoC Adj Factor Scoring'!$E$4:$J$4,0),TRUE)","v":1},{"$f":"VLOOKUP(OFFSET($B:$B,,MATCH(O$4,$B$4:$F$4,0)-1),OFFSET('C. PoC Adj Factor Scoring'!$E$5:$J$282,,MATCH(O$4,'C. PoC Adj Factor Scoring'!$E$3:$AH$3,0)-1),MATCH(O$2&\" Score\",'C. PoC Adj Factor Scoring'!$E$4:$J$4,0),TRUE)","v":1},{"$f":"VLOOKUP(OFFSET($B:$B,,MATCH(P$4,$B$4:$F$4,0)-1),OFFSET('C. PoC Adj Factor Scoring'!$E$5:$J$282,,MATCH(P$4,'C. PoC Adj Factor Scoring'!$E$3:$AH$3,0)-1),MATCH(P$2&\" Score\",'C. PoC Adj Factor Scoring'!$E$4:$J$4,0),TRUE)","v":1},{"$f":"VLOOKUP(OFFSET($B:$B,,MATCH(Q$4,$B$4:$F$4,0)-1),OFFSET('C. PoC Adj Factor Scoring'!$E$5:$J$282,,MATCH(Q$4,'C. PoC Adj Factor Scoring'!$E$3:$AH$3,0)-1),MATCH(Q$2&\" Score\",'C. PoC Adj Factor Scoring'!$E$4:$J$4,0),TRUE)","v":1},{"$f":"VLOOKUP(OFFSET($B:$B,,MATCH(R$4,$B$4:$F$4,0)-1),OFFSET('C. PoC Adj Factor Scoring'!$E$5:$J$282,,MATCH(R$4,'C. PoC Adj Factor Scoring'!$E$3:$AH$3,0)-1),MATCH(R$2&\" Score\",'C. PoC Adj Factor Scoring'!$E$4:$J$4,0),TRUE)","v":1},{"$f":"VLOOKUP(OFFSET($B:$B,,MATCH(S$4,$B$4:$F$4,0)-1),OFFSET('C. PoC Adj Factor Scoring'!$E$5:$J$282,,MATCH(S$4,'C. PoC Adj Factor Scoring'!$E$3:$AH$3,0)-1),MATCH(S$2&\" Score\",'C. PoC Adj Factor Scoring'!$E$4:$J$4,0),TRUE)","v":1},{"$f":"VLOOKUP(OFFSET($B:$B,,MATCH(T$4,$B$4:$F$4,0)-1),OFFSET('C. PoC Adj Factor Scoring'!$E$5:$J$282,,MATCH(T$4,'C. PoC Adj Factor Scoring'!$E$3:$AH$3,0)-1),MATCH(T$2&\" Score\",'C. PoC Adj Factor Scoring'!$E$4:$J$4,0),TRUE)","v":1},{"$f":"VLOOKUP(OFFSET($B:$B,,MATCH(U$4,$B$4:$F$4,0)-1),OFFSET('C. PoC Adj Factor Scoring'!$E$5:$J$282,,MATCH(U$4,'C. PoC Adj Factor Scoring'!$E$3:$AH$3,0)-1),MATCH(U$2&\" Score\",'C. PoC Adj Factor Scoring'!$E$4:$J$4,0),TRUE)","v":1},{"$f":"VLOOKUP(OFFSET($B:$B,,MATCH(V$4,$B$4:$F$4,0)-1),OFFSET('C. PoC Adj Factor Scoring'!$E$5:$J$282,,MATCH(V$4,'C. PoC Adj Factor Scoring'!$E$3:$AH$3,0)-1),MATCH(V$2&\" Score\",'C. PoC Adj Factor Scoring'!$E$4:$J$4,0),TRUE)","v":1},{"$f":"VLOOKUP(OFFSET($B:$B,,MATCH(W$4,$B$4:$F$4,0)-1),OFFSET('C. PoC Adj Factor Scoring'!$E$5:$J$282,,MATCH(W$4,'C. PoC Adj Factor Scoring'!$E$3:$AH$3,0)-1),MATCH(W$2&\" Score\",'C. PoC Adj Factor Scoring'!$E$4:$J$4,0),TRUE)","v":1},{"$f":"VLOOKUP(OFFSET($B:$B,,MATCH(X$4,$B$4:$F$4,0)-1),OFFSET('C. PoC Adj Factor Scoring'!$E$5:$J$282,,MATCH(X$4,'C. PoC Adj Factor Scoring'!$E$3:$AH$3,0)-1),MATCH(X$2&\" Score\",'C. PoC Adj Factor Scoring'!$E$4:$J$4,0),TRUE)","v":1},{"$f":"VLOOKUP(OFFSET($B:$B,,MATCH(Y$4,$B$4:$F$4,0)-1),OFFSET('C. PoC Adj Factor Scoring'!$E$5:$J$282,,MATCH(Y$4,'C. PoC Adj Factor Scoring'!$E$3:$AH$3,0)-1),MATCH(Y$2&\" Score\",'C. PoC Adj Factor Scoring'!$E$4:$J$4,0),TRUE)","v":1},{"$f":"VLOOKUP(OFFSET($B:$B,,MATCH(Z$4,$B$4:$F$4,0)-1),OFFSET('C. PoC Adj Factor Scoring'!$E$5:$J$282,,MATCH(Z$4,'C. PoC Adj Factor Scoring'!$E$3:$AH$3,0)-1),MATCH(Z$2&\" Score\",'C. PoC Adj Factor Scoring'!$E$4:$J$4,0),TRUE)","v":1},{"$f":"VLOOKUP(OFFSET($B:$B,,MATCH(AA$4,$B$4:$F$4,0)-1),OFFSET('C. PoC Adj Factor Scoring'!$E$5:$J$282,,MATCH(AA$4,'C. PoC Adj Factor Scoring'!$E$3:$AH$3,0)-1),MATCH(AA$2&\" Score\",'C. PoC Adj Factor Scoring'!$E$4:$J$4,0),TRUE)","v":3},{"$f":"VLOOKUP(OFFSET($B:$B,,MATCH(AB$4,$B$4:$F$4,0)-1),OFFSET('C. PoC Adj Factor Scoring'!$E$5:$J$282,,MATCH(AB$4,'C. PoC Adj Factor Scoring'!$E$3:$AH$3,0)-1),MATCH(AB$2&\" Score\",'C. PoC Adj Factor Scoring'!$E$4:$J$4,0),TRUE)","v":1},{"$f":"VLOOKUP(OFFSET($B:$B,,MATCH(AC$4,$B$4:$F$4,0)-1),OFFSET('C. PoC Adj Factor Scoring'!$E$5:$J$282,,MATCH(AC$4,'C. PoC Adj Factor Scoring'!$E$3:$AH$3,0)-1),MATCH(AC$2&\" Score\",'C. PoC Adj Factor Scoring'!$E$4:$J$4,0),TRUE)","v":1},{"$f":"VLOOKUP(OFFSET($B:$B,,MATCH(AD$4,$B$4:$F$4,0)-1),OFFSET('C. PoC Adj Factor Scoring'!$E$5:$J$282,,MATCH(AD$4,'C. PoC Adj Factor Scoring'!$E$3:$AH$3,0)-1),MATCH(AD$2&\" Score\",'C. PoC Adj Factor Scoring'!$E$4:$J$4,0),TRUE)","v":1},{"$f":"VLOOKUP(OFFSET($B:$B,,MATCH(AE$4,$B$4:$F$4,0)-1),OFFSET('C. PoC Adj Factor Scoring'!$E$5:$J$282,,MATCH(AE$4,'C. PoC Adj Factor Scoring'!$E$3:$AH$3,0)-1),MATCH(AE$2&\" Score\",'C. PoC Adj Factor Scoring'!$E$4:$J$4,0),TRUE)","v":1}]
[{"$f":"'A. Population Info'!A58","v":1000323556},{"$f":"'A. Population Info'!L58","v":"OIL"},{"$f":"'A. Population Info'!M58","v":0},{"$f":"'A. Population Info'!N58","v":0},{"$f":"'A. Population Info'!O58","v":0},{"$f":"'A. Population Info'!P58","v":0},{"$f":"VLOOKUP(OFFSET($B:$B,,MATCH(G$4,$B$4:$F$4,0)-1),OFFSET('C. PoC Adj Factor Scoring'!$E$5:$J$282,,MATCH(G$4,'C. PoC Adj Factor Scoring'!$E$3:$AH$3,0)-1),MATCH(G$2&\" Score\",'C. PoC Adj Factor Scoring'!$E$4:$J$4,0),TRUE)","v":4},{"$f":"VLOOKUP(OFFSET($B:$B,,MATCH(H$4,$B$4:$F$4,0)-1),OFFSET('C. PoC Adj Factor Scoring'!$E$5:$J$282,,MATCH(H$4,'C. PoC Adj Factor Scoring'!$E$3:$AH$3,0)-1),MATCH(H$2&\" Score\",'C. PoC Adj Factor Scoring'!$E$4:$J$4,0),TRUE)","v":1},{"$f":"VLOOKUP(OFFSET($B:$B,,MATCH(I$4,$B$4:$F$4,0)-1),OFFSET('C. PoC Adj Factor Scoring'!$E$5:$J$282,,MATCH(I$4,'C. PoC Adj Factor Scoring'!$E$3:$AH$3,0)-1),MATCH(I$2&\" Score\",'C. PoC Adj Factor Scoring'!$E$4:$J$4,0),TRUE)","v":1},{"$f":"VLOOKUP(OFFSET($B:$B,,MATCH(J$4,$B$4:$F$4,0)-1),OFFSET('C. PoC Adj Factor Scoring'!$E$5:$J$282,,MATCH(J$4,'C. PoC Adj Factor Scoring'!$E$3:$AH$3,0)-1),MATCH(J$2&\" Score\",'C. PoC Adj Factor Scoring'!$E$4:$J$4,0),TRUE)","v":1},{"$f":"VLOOKUP(OFFSET($B:$B,,MATCH(K$4,$B$4:$F$4,0)-1),OFFSET('C. PoC Adj Factor Scoring'!$E$5:$J$282,,MATCH(K$4,'C. PoC Adj Factor Scoring'!$E$3:$AH$3,0)-1),MATCH(K$2&\" Score\",'C. PoC Adj Factor Scoring'!$E$4:$J$4,0),TRUE)","v":1},{"$f":"VLOOKUP(OFFSET($B:$B,,MATCH(L$4,$B$4:$F$4,0)-1),OFFSET('C. PoC Adj Factor Scoring'!$E$5:$J$282,,MATCH(L$4,'C. PoC Adj Factor Scoring'!$E$3:$AH$3,0)-1),MATCH(L$2&\" Score\",'C. PoC Adj Factor Scoring'!$E$4:$J$4,0),TRUE)","v":1},{"$f":"VLOOKUP(OFFSET($B:$B,,MATCH(M$4,$B$4:$F$4,0)-1),OFFSET('C. PoC Adj Factor Scoring'!$E$5:$J$282,,MATCH(M$4,'C. PoC Adj Factor Scoring'!$E$3:$AH$3,0)-1),MATCH(M$2&\" Score\",'C. PoC Adj Factor Scoring'!$E$4:$J$4,0),TRUE)","v":1},{"$f":"VLOOKUP(OFFSET($B:$B,,MATCH(N$4,$B$4:$F$4,0)-1),OFFSET('C. PoC Adj Factor Scoring'!$E$5:$J$282,,MATCH(N$4,'C. PoC Adj Factor Scoring'!$E$3:$AH$3,0)-1),MATCH(N$2&\" Score\",'C. PoC Adj Factor Scoring'!$E$4:$J$4,0),TRUE)","v":1},{"$f":"VLOOKUP(OFFSET($B:$B,,MATCH(O$4,$B$4:$F$4,0)-1),OFFSET('C. PoC Adj Factor Scoring'!$E$5:$J$282,,MATCH(O$4,'C. PoC Adj Factor Scoring'!$E$3:$AH$3,0)-1),MATCH(O$2&\" Score\",'C. PoC Adj Factor Scoring'!$E$4:$J$4,0),TRUE)","v":1},{"$f":"VLOOKUP(OFFSET($B:$B,,MATCH(P$4,$B$4:$F$4,0)-1),OFFSET('C. PoC Adj Factor Scoring'!$E$5:$J$282,,MATCH(P$4,'C. PoC Adj Factor Scoring'!$E$3:$AH$3,0)-1),MATCH(P$2&\" Score\",'C. PoC Adj Factor Scoring'!$E$4:$J$4,0),TRUE)","v":1},{"$f":"VLOOKUP(OFFSET($B:$B,,MATCH(Q$4,$B$4:$F$4,0)-1),OFFSET('C. PoC Adj Factor Scoring'!$E$5:$J$282,,MATCH(Q$4,'C. PoC Adj Factor Scoring'!$E$3:$AH$3,0)-1),MATCH(Q$2&\" Score\",'C. PoC Adj Factor Scoring'!$E$4:$J$4,0),TRUE)","v":1},{"$f":"VLOOKUP(OFFSET($B:$B,,MATCH(R$4,$B$4:$F$4,0)-1),OFFSET('C. PoC Adj Factor Scoring'!$E$5:$J$282,,MATCH(R$4,'C. PoC Adj Factor Scoring'!$E$3:$AH$3,0)-1),MATCH(R$2&\" Score\",'C. PoC Adj Factor Scoring'!$E$4:$J$4,0),TRUE)","v":1},{"$f":"VLOOKUP(OFFSET($B:$B,,MATCH(S$4,$B$4:$F$4,0)-1),OFFSET('C. PoC Adj Factor Scoring'!$E$5:$J$282,,MATCH(S$4,'C. PoC Adj Factor Scoring'!$E$3:$AH$3,0)-1),MATCH(S$2&\" Score\",'C. PoC Adj Factor Scoring'!$E$4:$J$4,0),TRUE)","v":1},{"$f":"VLOOKUP(OFFSET($B:$B,,MATCH(T$4,$B$4:$F$4,0)-1),OFFSET('C. PoC Adj Factor Scoring'!$E$5:$J$282,,MATCH(T$4,'C. PoC Adj Factor Scoring'!$E$3:$AH$3,0)-1),MATCH(T$2&\" Score\",'C. PoC Adj Factor Scoring'!$E$4:$J$4,0),TRUE)","v":1},{"$f":"VLOOKUP(OFFSET($B:$B,,MATCH(U$4,$B$4:$F$4,0)-1),OFFSET('C. PoC Adj Factor Scoring'!$E$5:$J$282,,MATCH(U$4,'C. PoC Adj Factor Scoring'!$E$3:$AH$3,0)-1),MATCH(U$2&\" Score\",'C. PoC Adj Factor Scoring'!$E$4:$J$4,0),TRUE)","v":1},{"$f":"VLOOKUP(OFFSET($B:$B,,MATCH(V$4,$B$4:$F$4,0)-1),OFFSET('C. PoC Adj Factor Scoring'!$E$5:$J$282,,MATCH(V$4,'C. PoC Adj Factor Scoring'!$E$3:$AH$3,0)-1),MATCH(V$2&\" Score\",'C. PoC Adj Factor Scoring'!$E$4:$J$4,0),TRUE)","v":1},{"$f":"VLOOKUP(OFFSET($B:$B,,MATCH(W$4,$B$4:$F$4,0)-1),OFFSET('C. PoC Adj Factor Scoring'!$E$5:$J$282,,MATCH(W$4,'C. PoC Adj Factor Scoring'!$E$3:$AH$3,0)-1),MATCH(W$2&\" Score\",'C. PoC Adj Factor Scoring'!$E$4:$J$4,0),TRUE)","v":1},{"$f":"VLOOKUP(OFFSET($B:$B,,MATCH(X$4,$B$4:$F$4,0)-1),OFFSET('C. PoC Adj Factor Scoring'!$E$5:$J$282,,MATCH(X$4,'C. PoC Adj Factor Scoring'!$E$3:$AH$3,0)-1),MATCH(X$2&\" Score\",'C. PoC Adj Factor Scoring'!$E$4:$J$4,0),TRUE)","v":1},{"$f":"VLOOKUP(OFFSET($B:$B,,MATCH(Y$4,$B$4:$F$4,0)-1),OFFSET('C. PoC Adj Factor Scoring'!$E$5:$J$282,,MATCH(Y$4,'C. PoC Adj Factor Scoring'!$E$3:$AH$3,0)-1),MATCH(Y$2&\" Score\",'C. PoC Adj Factor Scoring'!$E$4:$J$4,0),TRUE)","v":1},{"$f":"VLOOKUP(OFFSET($B:$B,,MATCH(Z$4,$B$4:$F$4,0)-1),OFFSET('C. PoC Adj Factor Scoring'!$E$5:$J$282,,MATCH(Z$4,'C. PoC Adj Factor Scoring'!$E$3:$AH$3,0)-1),MATCH(Z$2&\" Score\",'C. PoC Adj Factor Scoring'!$E$4:$J$4,0),TRUE)","v":1},{"$f":"VLOOKUP(OFFSET($B:$B,,MATCH(AA$4,$B$4:$F$4,0)-1),OFFSET('C. PoC Adj Factor Scoring'!$E$5:$J$282,,MATCH(AA$4,'C. PoC Adj Factor Scoring'!$E$3:$AH$3,0)-1),MATCH(AA$2&\" Score\",'C. PoC Adj Factor Scoring'!$E$4:$J$4,0),TRUE)","v":3},{"$f":"VLOOKUP(OFFSET($B:$B,,MATCH(AB$4,$B$4:$F$4,0)-1),OFFSET('C. PoC Adj Factor Scoring'!$E$5:$J$282,,MATCH(AB$4,'C. PoC Adj Factor Scoring'!$E$3:$AH$3,0)-1),MATCH(AB$2&\" Score\",'C. PoC Adj Factor Scoring'!$E$4:$J$4,0),TRUE)","v":1},{"$f":"VLOOKUP(OFFSET($B:$B,,MATCH(AC$4,$B$4:$F$4,0)-1),OFFSET('C. PoC Adj Factor Scoring'!$E$5:$J$282,,MATCH(AC$4,'C. PoC Adj Factor Scoring'!$E$3:$AH$3,0)-1),MATCH(AC$2&\" Score\",'C. PoC Adj Factor Scoring'!$E$4:$J$4,0),TRUE)","v":1},{"$f":"VLOOKUP(OFFSET($B:$B,,MATCH(AD$4,$B$4:$F$4,0)-1),OFFSET('C. PoC Adj Factor Scoring'!$E$5:$J$282,,MATCH(AD$4,'C. PoC Adj Factor Scoring'!$E$3:$AH$3,0)-1),MATCH(AD$2&\" Score\",'C. PoC Adj Factor Scoring'!$E$4:$J$4,0),TRUE)","v":1},{"$f":"VLOOKUP(OFFSET($B:$B,,MATCH(AE$4,$B$4:$F$4,0)-1),OFFSET('C. PoC Adj Factor Scoring'!$E$5:$J$282,,MATCH(AE$4,'C. PoC Adj Factor Scoring'!$E$3:$AH$3,0)-1),MATCH(AE$2&\" Score\",'C. PoC Adj Factor Scoring'!$E$4:$J$4,0),TRUE)","v":1}]
[{"$f":"'A. Population Info'!A59","v":1000323583},{"$f":"'A. Population Info'!L59","v":"OIL"},{"$f":"'A. Population Info'!M59","v":0},{"$f":"'A. Population Info'!N59","v":0},{"$f":"'A. Population Info'!O59","v":0},{"$f":"'A. Population Info'!P59","v":0},{"$f":"VLOOKUP(OFFSET($B:$B,,MATCH(G$4,$B$4:$F$4,0)-1),OFFSET('C. PoC Adj Factor Scoring'!$E$5:$J$282,,MATCH(G$4,'C. PoC Adj Factor Scoring'!$E$3:$AH$3,0)-1),MATCH(G$2&\" Score\",'C. PoC Adj Factor Scoring'!$E$4:$J$4,0),TRUE)","v":4},{"$f":"VLOOKUP(OFFSET($B:$B,,MATCH(H$4,$B$4:$F$4,0)-1),OFFSET('C. PoC Adj Factor Scoring'!$E$5:$J$282,,MATCH(H$4,'C. PoC Adj Factor Scoring'!$E$3:$AH$3,0)-1),MATCH(H$2&\" Score\",'C. PoC Adj Factor Scoring'!$E$4:$J$4,0),TRUE)","v":1},{"$f":"VLOOKUP(OFFSET($B:$B,,MATCH(I$4,$B$4:$F$4,0)-1),OFFSET('C. PoC Adj Factor Scoring'!$E$5:$J$282,,MATCH(I$4,'C. PoC Adj Factor Scoring'!$E$3:$AH$3,0)-1),MATCH(I$2&\" Score\",'C. PoC Adj Factor Scoring'!$E$4:$J$4,0),TRUE)","v":1},{"$f":"VLOOKUP(OFFSET($B:$B,,MATCH(J$4,$B$4:$F$4,0)-1),OFFSET('C. PoC Adj Factor Scoring'!$E$5:$J$282,,MATCH(J$4,'C. PoC Adj Factor Scoring'!$E$3:$AH$3,0)-1),MATCH(J$2&\" Score\",'C. PoC Adj Factor Scoring'!$E$4:$J$4,0),TRUE)","v":1},{"$f":"VLOOKUP(OFFSET($B:$B,,MATCH(K$4,$B$4:$F$4,0)-1),OFFSET('C. PoC Adj Factor Scoring'!$E$5:$J$282,,MATCH(K$4,'C. PoC Adj Factor Scoring'!$E$3:$AH$3,0)-1),MATCH(K$2&\" Score\",'C. PoC Adj Factor Scoring'!$E$4:$J$4,0),TRUE)","v":1},{"$f":"VLOOKUP(OFFSET($B:$B,,MATCH(L$4,$B$4:$F$4,0)-1),OFFSET('C. PoC Adj Factor Scoring'!$E$5:$J$282,,MATCH(L$4,'C. PoC Adj Factor Scoring'!$E$3:$AH$3,0)-1),MATCH(L$2&\" Score\",'C. PoC Adj Factor Scoring'!$E$4:$J$4,0),TRUE)","v":1},{"$f":"VLOOKUP(OFFSET($B:$B,,MATCH(M$4,$B$4:$F$4,0)-1),OFFSET('C. PoC Adj Factor Scoring'!$E$5:$J$282,,MATCH(M$4,'C. PoC Adj Factor Scoring'!$E$3:$AH$3,0)-1),MATCH(M$2&\" Score\",'C. PoC Adj Factor Scoring'!$E$4:$J$4,0),TRUE)","v":1},{"$f":"VLOOKUP(OFFSET($B:$B,,MATCH(N$4,$B$4:$F$4,0)-1),OFFSET('C. PoC Adj Factor Scoring'!$E$5:$J$282,,MATCH(N$4,'C. PoC Adj Factor Scoring'!$E$3:$AH$3,0)-1),MATCH(N$2&\" Score\",'C. PoC Adj Factor Scoring'!$E$4:$J$4,0),TRUE)","v":1},{"$f":"VLOOKUP(OFFSET($B:$B,,MATCH(O$4,$B$4:$F$4,0)-1),OFFSET('C. PoC Adj Factor Scoring'!$E$5:$J$282,,MATCH(O$4,'C. PoC Adj Factor Scoring'!$E$3:$AH$3,0)-1),MATCH(O$2&\" Score\",'C. PoC Adj Factor Scoring'!$E$4:$J$4,0),TRUE)","v":1},{"$f":"VLOOKUP(OFFSET($B:$B,,MATCH(P$4,$B$4:$F$4,0)-1),OFFSET('C. PoC Adj Factor Scoring'!$E$5:$J$282,,MATCH(P$4,'C. PoC Adj Factor Scoring'!$E$3:$AH$3,0)-1),MATCH(P$2&\" Score\",'C. PoC Adj Factor Scoring'!$E$4:$J$4,0),TRUE)","v":1},{"$f":"VLOOKUP(OFFSET($B:$B,,MATCH(Q$4,$B$4:$F$4,0)-1),OFFSET('C. PoC Adj Factor Scoring'!$E$5:$J$282,,MATCH(Q$4,'C. PoC Adj Factor Scoring'!$E$3:$AH$3,0)-1),MATCH(Q$2&\" Score\",'C. PoC Adj Factor Scoring'!$E$4:$J$4,0),TRUE)","v":1},{"$f":"VLOOKUP(OFFSET($B:$B,,MATCH(R$4,$B$4:$F$4,0)-1),OFFSET('C. PoC Adj Factor Scoring'!$E$5:$J$282,,MATCH(R$4,'C. PoC Adj Factor Scoring'!$E$3:$AH$3,0)-1),MATCH(R$2&\" Score\",'C. PoC Adj Factor Scoring'!$E$4:$J$4,0),TRUE)","v":1},{"$f":"VLOOKUP(OFFSET($B:$B,,MATCH(S$4,$B$4:$F$4,0)-1),OFFSET('C. PoC Adj Factor Scoring'!$E$5:$J$282,,MATCH(S$4,'C. PoC Adj Factor Scoring'!$E$3:$AH$3,0)-1),MATCH(S$2&\" Score\",'C. PoC Adj Factor Scoring'!$E$4:$J$4,0),TRUE)","v":1},{"$f":"VLOOKUP(OFFSET($B:$B,,MATCH(T$4,$B$4:$F$4,0)-1),OFFSET('C. PoC Adj Factor Scoring'!$E$5:$J$282,,MATCH(T$4,'C. PoC Adj Factor Scoring'!$E$3:$AH$3,0)-1),MATCH(T$2&\" Score\",'C. PoC Adj Factor Scoring'!$E$4:$J$4,0),TRUE)","v":1},{"$f":"VLOOKUP(OFFSET($B:$B,,MATCH(U$4,$B$4:$F$4,0)-1),OFFSET('C. PoC Adj Factor Scoring'!$E$5:$J$282,,MATCH(U$4,'C. PoC Adj Factor Scoring'!$E$3:$AH$3,0)-1),MATCH(U$2&\" Score\",'C. PoC Adj Factor Scoring'!$E$4:$J$4,0),TRUE)","v":1},{"$f":"VLOOKUP(OFFSET($B:$B,,MATCH(V$4,$B$4:$F$4,0)-1),OFFSET('C. PoC Adj Factor Scoring'!$E$5:$J$282,,MATCH(V$4,'C. PoC Adj Factor Scoring'!$E$3:$AH$3,0)-1),MATCH(V$2&\" Score\",'C. PoC Adj Factor Scoring'!$E$4:$J$4,0),TRUE)","v":1},{"$f":"VLOOKUP(OFFSET($B:$B,,MATCH(W$4,$B$4:$F$4,0)-1),OFFSET('C. PoC Adj Factor Scoring'!$E$5:$J$282,,MATCH(W$4,'C. PoC Adj Factor Scoring'!$E$3:$AH$3,0)-1),MATCH(W$2&\" Score\",'C. PoC Adj Factor Scoring'!$E$4:$J$4,0),TRUE)","v":1},{"$f":"VLOOKUP(OFFSET($B:$B,,MATCH(X$4,$B$4:$F$4,0)-1),OFFSET('C. PoC Adj Factor Scoring'!$E$5:$J$282,,MATCH(X$4,'C. PoC Adj Factor Scoring'!$E$3:$AH$3,0)-1),MATCH(X$2&\" Score\",'C. PoC Adj Factor Scoring'!$E$4:$J$4,0),TRUE)","v":1},{"$f":"VLOOKUP(OFFSET($B:$B,,MATCH(Y$4,$B$4:$F$4,0)-1),OFFSET('C. PoC Adj Factor Scoring'!$E$5:$J$282,,MATCH(Y$4,'C. PoC Adj Factor Scoring'!$E$3:$AH$3,0)-1),MATCH(Y$2&\" Score\",'C. PoC Adj Factor Scoring'!$E$4:$J$4,0),TRUE)","v":1},{"$f":"VLOOKUP(OFFSET($B:$B,,MATCH(Z$4,$B$4:$F$4,0)-1),OFFSET('C. PoC Adj Factor Scoring'!$E$5:$J$282,,MATCH(Z$4,'C. PoC Adj Factor Scoring'!$E$3:$AH$3,0)-1),MATCH(Z$2&\" Score\",'C. PoC Adj Factor Scoring'!$E$4:$J$4,0),TRUE)","v":1},{"$f":"VLOOKUP(OFFSET($B:$B,,MATCH(AA$4,$B$4:$F$4,0)-1),OFFSET('C. PoC Adj Factor Scoring'!$E$5:$J$282,,MATCH(AA$4,'C. PoC Adj Factor Scoring'!$E$3:$AH$3,0)-1),MATCH(AA$2&\" Score\",'C. PoC Adj Factor Scoring'!$E$4:$J$4,0),TRUE)","v":3},{"$f":"VLOOKUP(OFFSET($B:$B,,MATCH(AB$4,$B$4:$F$4,0)-1),OFFSET('C. PoC Adj Factor Scoring'!$E$5:$J$282,,MATCH(AB$4,'C. PoC Adj Factor Scoring'!$E$3:$AH$3,0)-1),MATCH(AB$2&\" Score\",'C. PoC Adj Factor Scoring'!$E$4:$J$4,0),TRUE)","v":1},{"$f":"VLOOKUP(OFFSET($B:$B,,MATCH(AC$4,$B$4:$F$4,0)-1),OFFSET('C. PoC Adj Factor Scoring'!$E$5:$J$282,,MATCH(AC$4,'C. PoC Adj Factor Scoring'!$E$3:$AH$3,0)-1),MATCH(AC$2&\" Score\",'C. PoC Adj Factor Scoring'!$E$4:$J$4,0),TRUE)","v":1},{"$f":"VLOOKUP(OFFSET($B:$B,,MATCH(AD$4,$B$4:$F$4,0)-1),OFFSET('C. PoC Adj Factor Scoring'!$E$5:$J$282,,MATCH(AD$4,'C. PoC Adj Factor Scoring'!$E$3:$AH$3,0)-1),MATCH(AD$2&\" Score\",'C. PoC Adj Factor Scoring'!$E$4:$J$4,0),TRUE)","v":1},{"$f":"VLOOKUP(OFFSET($B:$B,,MATCH(AE$4,$B$4:$F$4,0)-1),OFFSET('C. PoC Adj Factor Scoring'!$E$5:$J$282,,MATCH(AE$4,'C. PoC Adj Factor Scoring'!$E$3:$AH$3,0)-1),MATCH(AE$2&\" Score\",'C. PoC Adj Factor Scoring'!$E$4:$J$4,0),TRUE)","v":1}]
[{"$f":"'A. Population Info'!A60","v":1000323796},{"$f":"'A. Population Info'!L60","v":"OIL"},{"$f":"'A. Population Info'!M60","v":0},{"$f":"'A. Population Info'!N60","v":0},{"$f":"'A. Population Info'!O60","v":0},{"$f":"'A. Population Info'!P60","v":0},{"$f":"VLOOKUP(OFFSET($B:$B,,MATCH(G$4,$B$4:$F$4,0)-1),OFFSET('C. PoC Adj Factor Scoring'!$E$5:$J$282,,MATCH(G$4,'C. PoC Adj Factor Scoring'!$E$3:$AH$3,0)-1),MATCH(G$2&\" Score\",'C. PoC Adj Factor Scoring'!$E$4:$J$4,0),TRUE)","v":4},{"$f":"VLOOKUP(OFFSET($B:$B,,MATCH(H$4,$B$4:$F$4,0)-1),OFFSET('C. PoC Adj Factor Scoring'!$E$5:$J$282,,MATCH(H$4,'C. PoC Adj Factor Scoring'!$E$3:$AH$3,0)-1),MATCH(H$2&\" Score\",'C. PoC Adj Factor Scoring'!$E$4:$J$4,0),TRUE)","v":1},{"$f":"VLOOKUP(OFFSET($B:$B,,MATCH(I$4,$B$4:$F$4,0)-1),OFFSET('C. PoC Adj Factor Scoring'!$E$5:$J$282,,MATCH(I$4,'C. PoC Adj Factor Scoring'!$E$3:$AH$3,0)-1),MATCH(I$2&\" Score\",'C. PoC Adj Factor Scoring'!$E$4:$J$4,0),TRUE)","v":1},{"$f":"VLOOKUP(OFFSET($B:$B,,MATCH(J$4,$B$4:$F$4,0)-1),OFFSET('C. PoC Adj Factor Scoring'!$E$5:$J$282,,MATCH(J$4,'C. PoC Adj Factor Scoring'!$E$3:$AH$3,0)-1),MATCH(J$2&\" Score\",'C. PoC Adj Factor Scoring'!$E$4:$J$4,0),TRUE)","v":1},{"$f":"VLOOKUP(OFFSET($B:$B,,MATCH(K$4,$B$4:$F$4,0)-1),OFFSET('C. PoC Adj Factor Scoring'!$E$5:$J$282,,MATCH(K$4,'C. PoC Adj Factor Scoring'!$E$3:$AH$3,0)-1),MATCH(K$2&\" Score\",'C. PoC Adj Factor Scoring'!$E$4:$J$4,0),TRUE)","v":1},{"$f":"VLOOKUP(OFFSET($B:$B,,MATCH(L$4,$B$4:$F$4,0)-1),OFFSET('C. PoC Adj Factor Scoring'!$E$5:$J$282,,MATCH(L$4,'C. PoC Adj Factor Scoring'!$E$3:$AH$3,0)-1),MATCH(L$2&\" Score\",'C. PoC Adj Factor Scoring'!$E$4:$J$4,0),TRUE)","v":1},{"$f":"VLOOKUP(OFFSET($B:$B,,MATCH(M$4,$B$4:$F$4,0)-1),OFFSET('C. PoC Adj Factor Scoring'!$E$5:$J$282,,MATCH(M$4,'C. PoC Adj Factor Scoring'!$E$3:$AH$3,0)-1),MATCH(M$2&\" Score\",'C. PoC Adj Factor Scoring'!$E$4:$J$4,0),TRUE)","v":1},{"$f":"VLOOKUP(OFFSET($B:$B,,MATCH(N$4,$B$4:$F$4,0)-1),OFFSET('C. PoC Adj Factor Scoring'!$E$5:$J$282,,MATCH(N$4,'C. PoC Adj Factor Scoring'!$E$3:$AH$3,0)-1),MATCH(N$2&\" Score\",'C. PoC Adj Factor Scoring'!$E$4:$J$4,0),TRUE)","v":1},{"$f":"VLOOKUP(OFFSET($B:$B,,MATCH(O$4,$B$4:$F$4,0)-1),OFFSET('C. PoC Adj Factor Scoring'!$E$5:$J$282,,MATCH(O$4,'C. PoC Adj Factor Scoring'!$E$3:$AH$3,0)-1),MATCH(O$2&\" Score\",'C. PoC Adj Factor Scoring'!$E$4:$J$4,0),TRUE)","v":1},{"$f":"VLOOKUP(OFFSET($B:$B,,MATCH(P$4,$B$4:$F$4,0)-1),OFFSET('C. PoC Adj Factor Scoring'!$E$5:$J$282,,MATCH(P$4,'C. PoC Adj Factor Scoring'!$E$3:$AH$3,0)-1),MATCH(P$2&\" Score\",'C. PoC Adj Factor Scoring'!$E$4:$J$4,0),TRUE)","v":1},{"$f":"VLOOKUP(OFFSET($B:$B,,MATCH(Q$4,$B$4:$F$4,0)-1),OFFSET('C. PoC Adj Factor Scoring'!$E$5:$J$282,,MATCH(Q$4,'C. PoC Adj Factor Scoring'!$E$3:$AH$3,0)-1),MATCH(Q$2&\" Score\",'C. PoC Adj Factor Scoring'!$E$4:$J$4,0),TRUE)","v":1},{"$f":"VLOOKUP(OFFSET($B:$B,,MATCH(R$4,$B$4:$F$4,0)-1),OFFSET('C. PoC Adj Factor Scoring'!$E$5:$J$282,,MATCH(R$4,'C. PoC Adj Factor Scoring'!$E$3:$AH$3,0)-1),MATCH(R$2&\" Score\",'C. PoC Adj Factor Scoring'!$E$4:$J$4,0),TRUE)","v":1},{"$f":"VLOOKUP(OFFSET($B:$B,,MATCH(S$4,$B$4:$F$4,0)-1),OFFSET('C. PoC Adj Factor Scoring'!$E$5:$J$282,,MATCH(S$4,'C. PoC Adj Factor Scoring'!$E$3:$AH$3,0)-1),MATCH(S$2&\" Score\",'C. PoC Adj Factor Scoring'!$E$4:$J$4,0),TRUE)","v":1},{"$f":"VLOOKUP(OFFSET($B:$B,,MATCH(T$4,$B$4:$F$4,0)-1),OFFSET('C. PoC Adj Factor Scoring'!$E$5:$J$282,,MATCH(T$4,'C. PoC Adj Factor Scoring'!$E$3:$AH$3,0)-1),MATCH(T$2&\" Score\",'C. PoC Adj Factor Scoring'!$E$4:$J$4,0),TRUE)","v":1},{"$f":"VLOOKUP(OFFSET($B:$B,,MATCH(U$4,$B$4:$F$4,0)-1),OFFSET('C. PoC Adj Factor Scoring'!$E$5:$J$282,,MATCH(U$4,'C. PoC Adj Factor Scoring'!$E$3:$AH$3,0)-1),MATCH(U$2&\" Score\",'C. PoC Adj Factor Scoring'!$E$4:$J$4,0),TRUE)","v":1},{"$f":"VLOOKUP(OFFSET($B:$B,,MATCH(V$4,$B$4:$F$4,0)-1),OFFSET('C. PoC Adj Factor Scoring'!$E$5:$J$282,,MATCH(V$4,'C. PoC Adj Factor Scoring'!$E$3:$AH$3,0)-1),MATCH(V$2&\" Score\",'C. PoC Adj Factor Scoring'!$E$4:$J$4,0),TRUE)","v":1},{"$f":"VLOOKUP(OFFSET($B:$B,,MATCH(W$4,$B$4:$F$4,0)-1),OFFSET('C. PoC Adj Factor Scoring'!$E$5:$J$282,,MATCH(W$4,'C. PoC Adj Factor Scoring'!$E$3:$AH$3,0)-1),MATCH(W$2&\" Score\",'C. PoC Adj Factor Scoring'!$E$4:$J$4,0),TRUE)","v":1},{"$f":"VLOOKUP(OFFSET($B:$B,,MATCH(X$4,$B$4:$F$4,0)-1),OFFSET('C. PoC Adj Factor Scoring'!$E$5:$J$282,,MATCH(X$4,'C. PoC Adj Factor Scoring'!$E$3:$AH$3,0)-1),MATCH(X$2&\" Score\",'C. PoC Adj Factor Scoring'!$E$4:$J$4,0),TRUE)","v":1},{"$f":"VLOOKUP(OFFSET($B:$B,,MATCH(Y$4,$B$4:$F$4,0)-1),OFFSET('C. PoC Adj Factor Scoring'!$E$5:$J$282,,MATCH(Y$4,'C. PoC Adj Factor Scoring'!$E$3:$AH$3,0)-1),MATCH(Y$2&\" Score\",'C. PoC Adj Factor Scoring'!$E$4:$J$4,0),TRUE)","v":1},{"$f":"VLOOKUP(OFFSET($B:$B,,MATCH(Z$4,$B$4:$F$4,0)-1),OFFSET('C. PoC Adj Factor Scoring'!$E$5:$J$282,,MATCH(Z$4,'C. PoC Adj Factor Scoring'!$E$3:$AH$3,0)-1),MATCH(Z$2&\" Score\",'C. PoC Adj Factor Scoring'!$E$4:$J$4,0),TRUE)","v":1},{"$f":"VLOOKUP(OFFSET($B:$B,,MATCH(AA$4,$B$4:$F$4,0)-1),OFFSET('C. PoC Adj Factor Scoring'!$E$5:$J$282,,MATCH(AA$4,'C. PoC Adj Factor Scoring'!$E$3:$AH$3,0)-1),MATCH(AA$2&\" Score\",'C. PoC Adj Factor Scoring'!$E$4:$J$4,0),TRUE)","v":3},{"$f":"VLOOKUP(OFFSET($B:$B,,MATCH(AB$4,$B$4:$F$4,0)-1),OFFSET('C. PoC Adj Factor Scoring'!$E$5:$J$282,,MATCH(AB$4,'C. PoC Adj Factor Scoring'!$E$3:$AH$3,0)-1),MATCH(AB$2&\" Score\",'C. PoC Adj Factor Scoring'!$E$4:$J$4,0),TRUE)","v":1},{"$f":"VLOOKUP(OFFSET($B:$B,,MATCH(AC$4,$B$4:$F$4,0)-1),OFFSET('C. PoC Adj Factor Scoring'!$E$5:$J$282,,MATCH(AC$4,'C. PoC Adj Factor Scoring'!$E$3:$AH$3,0)-1),MATCH(AC$2&\" Score\",'C. PoC Adj Factor Scoring'!$E$4:$J$4,0),TRUE)","v":1},{"$f":"VLOOKUP(OFFSET($B:$B,,MATCH(AD$4,$B$4:$F$4,0)-1),OFFSET('C. PoC Adj Factor Scoring'!$E$5:$J$282,,MATCH(AD$4,'C. PoC Adj Factor Scoring'!$E$3:$AH$3,0)-1),MATCH(AD$2&\" Score\",'C. PoC Adj Factor Scoring'!$E$4:$J$4,0),TRUE)","v":1},{"$f":"VLOOKUP(OFFSET($B:$B,,MATCH(AE$4,$B$4:$F$4,0)-1),OFFSET('C. PoC Adj Factor Scoring'!$E$5:$J$282,,MATCH(AE$4,'C. PoC Adj Factor Scoring'!$E$3:$AH$3,0)-1),MATCH(AE$2&\" Score\",'C. PoC Adj Factor Scoring'!$E$4:$J$4,0),TRUE)","v":1}]
[{"$f":"'A. Population Info'!A61","v":1000323882},{"$f":"'A. Population Info'!L61","v":"OIL"},{"$f":"'A. Population Info'!M61","v":0},{"$f":"'A. Population Info'!N61","v":0},{"$f":"'A. Population Info'!O61","v":0},{"$f":"'A. Population Info'!P61","v":0},{"$f":"VLOOKUP(OFFSET($B:$B,,MATCH(G$4,$B$4:$F$4,0)-1),OFFSET('C. PoC Adj Factor Scoring'!$E$5:$J$282,,MATCH(G$4,'C. PoC Adj Factor Scoring'!$E$3:$AH$3,0)-1),MATCH(G$2&\" Score\",'C. PoC Adj Factor Scoring'!$E$4:$J$4,0),TRUE)","v":4},{"$f":"VLOOKUP(OFFSET($B:$B,,MATCH(H$4,$B$4:$F$4,0)-1),OFFSET('C. PoC Adj Factor Scoring'!$E$5:$J$282,,MATCH(H$4,'C. PoC Adj Factor Scoring'!$E$3:$AH$3,0)-1),MATCH(H$2&\" Score\",'C. PoC Adj Factor Scoring'!$E$4:$J$4,0),TRUE)","v":1},{"$f":"VLOOKUP(OFFSET($B:$B,,MATCH(I$4,$B$4:$F$4,0)-1),OFFSET('C. PoC Adj Factor Scoring'!$E$5:$J$282,,MATCH(I$4,'C. PoC Adj Factor Scoring'!$E$3:$AH$3,0)-1),MATCH(I$2&\" Score\",'C. PoC Adj Factor Scoring'!$E$4:$J$4,0),TRUE)","v":1},{"$f":"VLOOKUP(OFFSET($B:$B,,MATCH(J$4,$B$4:$F$4,0)-1),OFFSET('C. PoC Adj Factor Scoring'!$E$5:$J$282,,MATCH(J$4,'C. PoC Adj Factor Scoring'!$E$3:$AH$3,0)-1),MATCH(J$2&\" Score\",'C. PoC Adj Factor Scoring'!$E$4:$J$4,0),TRUE)","v":1},{"$f":"VLOOKUP(OFFSET($B:$B,,MATCH(K$4,$B$4:$F$4,0)-1),OFFSET('C. PoC Adj Factor Scoring'!$E$5:$J$282,,MATCH(K$4,'C. PoC Adj Factor Scoring'!$E$3:$AH$3,0)-1),MATCH(K$2&\" Score\",'C. PoC Adj Factor Scoring'!$E$4:$J$4,0),TRUE)","v":1},{"$f":"VLOOKUP(OFFSET($B:$B,,MATCH(L$4,$B$4:$F$4,0)-1),OFFSET('C. PoC Adj Factor Scoring'!$E$5:$J$282,,MATCH(L$4,'C. PoC Adj Factor Scoring'!$E$3:$AH$3,0)-1),MATCH(L$2&\" Score\",'C. PoC Adj Factor Scoring'!$E$4:$J$4,0),TRUE)","v":1},{"$f":"VLOOKUP(OFFSET($B:$B,,MATCH(M$4,$B$4:$F$4,0)-1),OFFSET('C. PoC Adj Factor Scoring'!$E$5:$J$282,,MATCH(M$4,'C. PoC Adj Factor Scoring'!$E$3:$AH$3,0)-1),MATCH(M$2&\" Score\",'C. PoC Adj Factor Scoring'!$E$4:$J$4,0),TRUE)","v":1},{"$f":"VLOOKUP(OFFSET($B:$B,,MATCH(N$4,$B$4:$F$4,0)-1),OFFSET('C. PoC Adj Factor Scoring'!$E$5:$J$282,,MATCH(N$4,'C. PoC Adj Factor Scoring'!$E$3:$AH$3,0)-1),MATCH(N$2&\" Score\",'C. PoC Adj Factor Scoring'!$E$4:$J$4,0),TRUE)","v":1},{"$f":"VLOOKUP(OFFSET($B:$B,,MATCH(O$4,$B$4:$F$4,0)-1),OFFSET('C. PoC Adj Factor Scoring'!$E$5:$J$282,,MATCH(O$4,'C. PoC Adj Factor Scoring'!$E$3:$AH$3,0)-1),MATCH(O$2&\" Score\",'C. PoC Adj Factor Scoring'!$E$4:$J$4,0),TRUE)","v":1},{"$f":"VLOOKUP(OFFSET($B:$B,,MATCH(P$4,$B$4:$F$4,0)-1),OFFSET('C. PoC Adj Factor Scoring'!$E$5:$J$282,,MATCH(P$4,'C. PoC Adj Factor Scoring'!$E$3:$AH$3,0)-1),MATCH(P$2&\" Score\",'C. PoC Adj Factor Scoring'!$E$4:$J$4,0),TRUE)","v":1},{"$f":"VLOOKUP(OFFSET($B:$B,,MATCH(Q$4,$B$4:$F$4,0)-1),OFFSET('C. PoC Adj Factor Scoring'!$E$5:$J$282,,MATCH(Q$4,'C. PoC Adj Factor Scoring'!$E$3:$AH$3,0)-1),MATCH(Q$2&\" Score\",'C. PoC Adj Factor Scoring'!$E$4:$J$4,0),TRUE)","v":1},{"$f":"VLOOKUP(OFFSET($B:$B,,MATCH(R$4,$B$4:$F$4,0)-1),OFFSET('C. PoC Adj Factor Scoring'!$E$5:$J$282,,MATCH(R$4,'C. PoC Adj Factor Scoring'!$E$3:$AH$3,0)-1),MATCH(R$2&\" Score\",'C. PoC Adj Factor Scoring'!$E$4:$J$4,0),TRUE)","v":1},{"$f":"VLOOKUP(OFFSET($B:$B,,MATCH(S$4,$B$4:$F$4,0)-1),OFFSET('C. PoC Adj Factor Scoring'!$E$5:$J$282,,MATCH(S$4,'C. PoC Adj Factor Scoring'!$E$3:$AH$3,0)-1),MATCH(S$2&\" Score\",'C. PoC Adj Factor Scoring'!$E$4:$J$4,0),TRUE)","v":1},{"$f":"VLOOKUP(OFFSET($B:$B,,MATCH(T$4,$B$4:$F$4,0)-1),OFFSET('C. PoC Adj Factor Scoring'!$E$5:$J$282,,MATCH(T$4,'C. PoC Adj Factor Scoring'!$E$3:$AH$3,0)-1),MATCH(T$2&\" Score\",'C. PoC Adj Factor Scoring'!$E$4:$J$4,0),TRUE)","v":1},{"$f":"VLOOKUP(OFFSET($B:$B,,MATCH(U$4,$B$4:$F$4,0)-1),OFFSET('C. PoC Adj Factor Scoring'!$E$5:$J$282,,MATCH(U$4,'C. PoC Adj Factor Scoring'!$E$3:$AH$3,0)-1),MATCH(U$2&\" Score\",'C. PoC Adj Factor Scoring'!$E$4:$J$4,0),TRUE)","v":1},{"$f":"VLOOKUP(OFFSET($B:$B,,MATCH(V$4,$B$4:$F$4,0)-1),OFFSET('C. PoC Adj Factor Scoring'!$E$5:$J$282,,MATCH(V$4,'C. PoC Adj Factor Scoring'!$E$3:$AH$3,0)-1),MATCH(V$2&\" Score\",'C. PoC Adj Factor Scoring'!$E$4:$J$4,0),TRUE)","v":1},{"$f":"VLOOKUP(OFFSET($B:$B,,MATCH(W$4,$B$4:$F$4,0)-1),OFFSET('C. PoC Adj Factor Scoring'!$E$5:$J$282,,MATCH(W$4,'C. PoC Adj Factor Scoring'!$E$3:$AH$3,0)-1),MATCH(W$2&\" Score\",'C. PoC Adj Factor Scoring'!$E$4:$J$4,0),TRUE)","v":1},{"$f":"VLOOKUP(OFFSET($B:$B,,MATCH(X$4,$B$4:$F$4,0)-1),OFFSET('C. PoC Adj Factor Scoring'!$E$5:$J$282,,MATCH(X$4,'C. PoC Adj Factor Scoring'!$E$3:$AH$3,0)-1),MATCH(X$2&\" Score\",'C. PoC Adj Factor Scoring'!$E$4:$J$4,0),TRUE)","v":1},{"$f":"VLOOKUP(OFFSET($B:$B,,MATCH(Y$4,$B$4:$F$4,0)-1),OFFSET('C. PoC Adj Factor Scoring'!$E$5:$J$282,,MATCH(Y$4,'C. PoC Adj Factor Scoring'!$E$3:$AH$3,0)-1),MATCH(Y$2&\" Score\",'C. PoC Adj Factor Scoring'!$E$4:$J$4,0),TRUE)","v":1},{"$f":"VLOOKUP(OFFSET($B:$B,,MATCH(Z$4,$B$4:$F$4,0)-1),OFFSET('C. PoC Adj Factor Scoring'!$E$5:$J$282,,MATCH(Z$4,'C. PoC Adj Factor Scoring'!$E$3:$AH$3,0)-1),MATCH(Z$2&\" Score\",'C. PoC Adj Factor Scoring'!$E$4:$J$4,0),TRUE)","v":1},{"$f":"VLOOKUP(OFFSET($B:$B,,MATCH(AA$4,$B$4:$F$4,0)-1),OFFSET('C. PoC Adj Factor Scoring'!$E$5:$J$282,,MATCH(AA$4,'C. PoC Adj Factor Scoring'!$E$3:$AH$3,0)-1),MATCH(AA$2&\" Score\",'C. PoC Adj Factor Scoring'!$E$4:$J$4,0),TRUE)","v":3},{"$f":"VLOOKUP(OFFSET($B:$B,,MATCH(AB$4,$B$4:$F$4,0)-1),OFFSET('C. PoC Adj Factor Scoring'!$E$5:$J$282,,MATCH(AB$4,'C. PoC Adj Factor Scoring'!$E$3:$AH$3,0)-1),MATCH(AB$2&\" Score\",'C. PoC Adj Factor Scoring'!$E$4:$J$4,0),TRUE)","v":1},{"$f":"VLOOKUP(OFFSET($B:$B,,MATCH(AC$4,$B$4:$F$4,0)-1),OFFSET('C. PoC Adj Factor Scoring'!$E$5:$J$282,,MATCH(AC$4,'C. PoC Adj Factor Scoring'!$E$3:$AH$3,0)-1),MATCH(AC$2&\" Score\",'C. PoC Adj Factor Scoring'!$E$4:$J$4,0),TRUE)","v":1},{"$f":"VLOOKUP(OFFSET($B:$B,,MATCH(AD$4,$B$4:$F$4,0)-1),OFFSET('C. PoC Adj Factor Scoring'!$E$5:$J$282,,MATCH(AD$4,'C. PoC Adj Factor Scoring'!$E$3:$AH$3,0)-1),MATCH(AD$2&\" Score\",'C. PoC Adj Factor Scoring'!$E$4:$J$4,0),TRUE)","v":1},{"$f":"VLOOKUP(OFFSET($B:$B,,MATCH(AE$4,$B$4:$F$4,0)-1),OFFSET('C. PoC Adj Factor Scoring'!$E$5:$J$282,,MATCH(AE$4,'C. PoC Adj Factor Scoring'!$E$3:$AH$3,0)-1),MATCH(AE$2&\" Score\",'C. PoC Adj Factor Scoring'!$E$4:$J$4,0),TRUE)","v":1}]
[{"$f":"'A. Population Info'!A62","v":1000323941},{"$f":"'A. Population Info'!L62","v":"OIL"},{"$f":"'A. Population Info'!M62","v":0},{"$f":"'A. Population Info'!N62","v":0},{"$f":"'A. Population Info'!O62","v":0},{"$f":"'A. Population Info'!P62","v":0},{"$f":"VLOOKUP(OFFSET($B:$B,,MATCH(G$4,$B$4:$F$4,0)-1),OFFSET('C. PoC Adj Factor Scoring'!$E$5:$J$282,,MATCH(G$4,'C. PoC Adj Factor Scoring'!$E$3:$AH$3,0)-1),MATCH(G$2&\" Score\",'C. PoC Adj Factor Scoring'!$E$4:$J$4,0),TRUE)","v":4},{"$f":"VLOOKUP(OFFSET($B:$B,,MATCH(H$4,$B$4:$F$4,0)-1),OFFSET('C. PoC Adj Factor Scoring'!$E$5:$J$282,,MATCH(H$4,'C. PoC Adj Factor Scoring'!$E$3:$AH$3,0)-1),MATCH(H$2&\" Score\",'C. PoC Adj Factor Scoring'!$E$4:$J$4,0),TRUE)","v":1},{"$f":"VLOOKUP(OFFSET($B:$B,,MATCH(I$4,$B$4:$F$4,0)-1),OFFSET('C. PoC Adj Factor Scoring'!$E$5:$J$282,,MATCH(I$4,'C. PoC Adj Factor Scoring'!$E$3:$AH$3,0)-1),MATCH(I$2&\" Score\",'C. PoC Adj Factor Scoring'!$E$4:$J$4,0),TRUE)","v":1},{"$f":"VLOOKUP(OFFSET($B:$B,,MATCH(J$4,$B$4:$F$4,0)-1),OFFSET('C. PoC Adj Factor Scoring'!$E$5:$J$282,,MATCH(J$4,'C. PoC Adj Factor Scoring'!$E$3:$AH$3,0)-1),MATCH(J$2&\" Score\",'C. PoC Adj Factor Scoring'!$E$4:$J$4,0),TRUE)","v":1},{"$f":"VLOOKUP(OFFSET($B:$B,,MATCH(K$4,$B$4:$F$4,0)-1),OFFSET('C. PoC Adj Factor Scoring'!$E$5:$J$282,,MATCH(K$4,'C. PoC Adj Factor Scoring'!$E$3:$AH$3,0)-1),MATCH(K$2&\" Score\",'C. PoC Adj Factor Scoring'!$E$4:$J$4,0),TRUE)","v":1},{"$f":"VLOOKUP(OFFSET($B:$B,,MATCH(L$4,$B$4:$F$4,0)-1),OFFSET('C. PoC Adj Factor Scoring'!$E$5:$J$282,,MATCH(L$4,'C. PoC Adj Factor Scoring'!$E$3:$AH$3,0)-1),MATCH(L$2&\" Score\",'C. PoC Adj Factor Scoring'!$E$4:$J$4,0),TRUE)","v":1},{"$f":"VLOOKUP(OFFSET($B:$B,,MATCH(M$4,$B$4:$F$4,0)-1),OFFSET('C. PoC Adj Factor Scoring'!$E$5:$J$282,,MATCH(M$4,'C. PoC Adj Factor Scoring'!$E$3:$AH$3,0)-1),MATCH(M$2&\" Score\",'C. PoC Adj Factor Scoring'!$E$4:$J$4,0),TRUE)","v":1},{"$f":"VLOOKUP(OFFSET($B:$B,,MATCH(N$4,$B$4:$F$4,0)-1),OFFSET('C. PoC Adj Factor Scoring'!$E$5:$J$282,,MATCH(N$4,'C. PoC Adj Factor Scoring'!$E$3:$AH$3,0)-1),MATCH(N$2&\" Score\",'C. PoC Adj Factor Scoring'!$E$4:$J$4,0),TRUE)","v":1},{"$f":"VLOOKUP(OFFSET($B:$B,,MATCH(O$4,$B$4:$F$4,0)-1),OFFSET('C. PoC Adj Factor Scoring'!$E$5:$J$282,,MATCH(O$4,'C. PoC Adj Factor Scoring'!$E$3:$AH$3,0)-1),MATCH(O$2&\" Score\",'C. PoC Adj Factor Scoring'!$E$4:$J$4,0),TRUE)","v":1},{"$f":"VLOOKUP(OFFSET($B:$B,,MATCH(P$4,$B$4:$F$4,0)-1),OFFSET('C. PoC Adj Factor Scoring'!$E$5:$J$282,,MATCH(P$4,'C. PoC Adj Factor Scoring'!$E$3:$AH$3,0)-1),MATCH(P$2&\" Score\",'C. PoC Adj Factor Scoring'!$E$4:$J$4,0),TRUE)","v":1},{"$f":"VLOOKUP(OFFSET($B:$B,,MATCH(Q$4,$B$4:$F$4,0)-1),OFFSET('C. PoC Adj Factor Scoring'!$E$5:$J$282,,MATCH(Q$4,'C. PoC Adj Factor Scoring'!$E$3:$AH$3,0)-1),MATCH(Q$2&\" Score\",'C. PoC Adj Factor Scoring'!$E$4:$J$4,0),TRUE)","v":1},{"$f":"VLOOKUP(OFFSET($B:$B,,MATCH(R$4,$B$4:$F$4,0)-1),OFFSET('C. PoC Adj Factor Scoring'!$E$5:$J$282,,MATCH(R$4,'C. PoC Adj Factor Scoring'!$E$3:$AH$3,0)-1),MATCH(R$2&\" Score\",'C. PoC Adj Factor Scoring'!$E$4:$J$4,0),TRUE)","v":1},{"$f":"VLOOKUP(OFFSET($B:$B,,MATCH(S$4,$B$4:$F$4,0)-1),OFFSET('C. PoC Adj Factor Scoring'!$E$5:$J$282,,MATCH(S$4,'C. PoC Adj Factor Scoring'!$E$3:$AH$3,0)-1),MATCH(S$2&\" Score\",'C. PoC Adj Factor Scoring'!$E$4:$J$4,0),TRUE)","v":1},{"$f":"VLOOKUP(OFFSET($B:$B,,MATCH(T$4,$B$4:$F$4,0)-1),OFFSET('C. PoC Adj Factor Scoring'!$E$5:$J$282,,MATCH(T$4,'C. PoC Adj Factor Scoring'!$E$3:$AH$3,0)-1),MATCH(T$2&\" Score\",'C. PoC Adj Factor Scoring'!$E$4:$J$4,0),TRUE)","v":1},{"$f":"VLOOKUP(OFFSET($B:$B,,MATCH(U$4,$B$4:$F$4,0)-1),OFFSET('C. PoC Adj Factor Scoring'!$E$5:$J$282,,MATCH(U$4,'C. PoC Adj Factor Scoring'!$E$3:$AH$3,0)-1),MATCH(U$2&\" Score\",'C. PoC Adj Factor Scoring'!$E$4:$J$4,0),TRUE)","v":1},{"$f":"VLOOKUP(OFFSET($B:$B,,MATCH(V$4,$B$4:$F$4,0)-1),OFFSET('C. PoC Adj Factor Scoring'!$E$5:$J$282,,MATCH(V$4,'C. PoC Adj Factor Scoring'!$E$3:$AH$3,0)-1),MATCH(V$2&\" Score\",'C. PoC Adj Factor Scoring'!$E$4:$J$4,0),TRUE)","v":1},{"$f":"VLOOKUP(OFFSET($B:$B,,MATCH(W$4,$B$4:$F$4,0)-1),OFFSET('C. PoC Adj Factor Scoring'!$E$5:$J$282,,MATCH(W$4,'C. PoC Adj Factor Scoring'!$E$3:$AH$3,0)-1),MATCH(W$2&\" Score\",'C. PoC Adj Factor Scoring'!$E$4:$J$4,0),TRUE)","v":1},{"$f":"VLOOKUP(OFFSET($B:$B,,MATCH(X$4,$B$4:$F$4,0)-1),OFFSET('C. PoC Adj Factor Scoring'!$E$5:$J$282,,MATCH(X$4,'C. PoC Adj Factor Scoring'!$E$3:$AH$3,0)-1),MATCH(X$2&\" Score\",'C. PoC Adj Factor Scoring'!$E$4:$J$4,0),TRUE)","v":1},{"$f":"VLOOKUP(OFFSET($B:$B,,MATCH(Y$4,$B$4:$F$4,0)-1),OFFSET('C. PoC Adj Factor Scoring'!$E$5:$J$282,,MATCH(Y$4,'C. PoC Adj Factor Scoring'!$E$3:$AH$3,0)-1),MATCH(Y$2&\" Score\",'C. PoC Adj Factor Scoring'!$E$4:$J$4,0),TRUE)","v":1},{"$f":"VLOOKUP(OFFSET($B:$B,,MATCH(Z$4,$B$4:$F$4,0)-1),OFFSET('C. PoC Adj Factor Scoring'!$E$5:$J$282,,MATCH(Z$4,'C. PoC Adj Factor Scoring'!$E$3:$AH$3,0)-1),MATCH(Z$2&\" Score\",'C. PoC Adj Factor Scoring'!$E$4:$J$4,0),TRUE)","v":1},{"$f":"VLOOKUP(OFFSET($B:$B,,MATCH(AA$4,$B$4:$F$4,0)-1),OFFSET('C. PoC Adj Factor Scoring'!$E$5:$J$282,,MATCH(AA$4,'C. PoC Adj Factor Scoring'!$E$3:$AH$3,0)-1),MATCH(AA$2&\" Score\",'C. PoC Adj Factor Scoring'!$E$4:$J$4,0),TRUE)","v":3},{"$f":"VLOOKUP(OFFSET($B:$B,,MATCH(AB$4,$B$4:$F$4,0)-1),OFFSET('C. PoC Adj Factor Scoring'!$E$5:$J$282,,MATCH(AB$4,'C. PoC Adj Factor Scoring'!$E$3:$AH$3,0)-1),MATCH(AB$2&\" Score\",'C. PoC Adj Factor Scoring'!$E$4:$J$4,0),TRUE)","v":1},{"$f":"VLOOKUP(OFFSET($B:$B,,MATCH(AC$4,$B$4:$F$4,0)-1),OFFSET('C. PoC Adj Factor Scoring'!$E$5:$J$282,,MATCH(AC$4,'C. PoC Adj Factor Scoring'!$E$3:$AH$3,0)-1),MATCH(AC$2&\" Score\",'C. PoC Adj Factor Scoring'!$E$4:$J$4,0),TRUE)","v":1},{"$f":"VLOOKUP(OFFSET($B:$B,,MATCH(AD$4,$B$4:$F$4,0)-1),OFFSET('C. PoC Adj Factor Scoring'!$E$5:$J$282,,MATCH(AD$4,'C. PoC Adj Factor Scoring'!$E$3:$AH$3,0)-1),MATCH(AD$2&\" Score\",'C. PoC Adj Factor Scoring'!$E$4:$J$4,0),TRUE)","v":1},{"$f":"VLOOKUP(OFFSET($B:$B,,MATCH(AE$4,$B$4:$F$4,0)-1),OFFSET('C. PoC Adj Factor Scoring'!$E$5:$J$282,,MATCH(AE$4,'C. PoC Adj Factor Scoring'!$E$3:$AH$3,0)-1),MATCH(AE$2&\" Score\",'C. PoC Adj Factor Scoring'!$E$4:$J$4,0),TRUE)","v":1}]
[{"$f":"'A. Population Info'!A63","v":1000323998},{"$f":"'A. Population Info'!L63","v":"OIL"},{"$f":"'A. Population Info'!M63","v":0},{"$f":"'A. Population Info'!N63","v":0},{"$f":"'A. Population Info'!O63","v":0},{"$f":"'A. Population Info'!P63","v":0},{"$f":"VLOOKUP(OFFSET($B:$B,,MATCH(G$4,$B$4:$F$4,0)-1),OFFSET('C. PoC Adj Factor Scoring'!$E$5:$J$282,,MATCH(G$4,'C. PoC Adj Factor Scoring'!$E$3:$AH$3,0)-1),MATCH(G$2&\" Score\",'C. PoC Adj Factor Scoring'!$E$4:$J$4,0),TRUE)","v":4},{"$f":"VLOOKUP(OFFSET($B:$B,,MATCH(H$4,$B$4:$F$4,0)-1),OFFSET('C. PoC Adj Factor Scoring'!$E$5:$J$282,,MATCH(H$4,'C. PoC Adj Factor Scoring'!$E$3:$AH$3,0)-1),MATCH(H$2&\" Score\",'C. PoC Adj Factor Scoring'!$E$4:$J$4,0),TRUE)","v":1},{"$f":"VLOOKUP(OFFSET($B:$B,,MATCH(I$4,$B$4:$F$4,0)-1),OFFSET('C. PoC Adj Factor Scoring'!$E$5:$J$282,,MATCH(I$4,'C. PoC Adj Factor Scoring'!$E$3:$AH$3,0)-1),MATCH(I$2&\" Score\",'C. PoC Adj Factor Scoring'!$E$4:$J$4,0),TRUE)","v":1},{"$f":"VLOOKUP(OFFSET($B:$B,,MATCH(J$4,$B$4:$F$4,0)-1),OFFSET('C. PoC Adj Factor Scoring'!$E$5:$J$282,,MATCH(J$4,'C. PoC Adj Factor Scoring'!$E$3:$AH$3,0)-1),MATCH(J$2&\" Score\",'C. PoC Adj Factor Scoring'!$E$4:$J$4,0),TRUE)","v":1},{"$f":"VLOOKUP(OFFSET($B:$B,,MATCH(K$4,$B$4:$F$4,0)-1),OFFSET('C. PoC Adj Factor Scoring'!$E$5:$J$282,,MATCH(K$4,'C. PoC Adj Factor Scoring'!$E$3:$AH$3,0)-1),MATCH(K$2&\" Score\",'C. PoC Adj Factor Scoring'!$E$4:$J$4,0),TRUE)","v":1},{"$f":"VLOOKUP(OFFSET($B:$B,,MATCH(L$4,$B$4:$F$4,0)-1),OFFSET('C. PoC Adj Factor Scoring'!$E$5:$J$282,,MATCH(L$4,'C. PoC Adj Factor Scoring'!$E$3:$AH$3,0)-1),MATCH(L$2&\" Score\",'C. PoC Adj Factor Scoring'!$E$4:$J$4,0),TRUE)","v":1},{"$f":"VLOOKUP(OFFSET($B:$B,,MATCH(M$4,$B$4:$F$4,0)-1),OFFSET('C. PoC Adj Factor Scoring'!$E$5:$J$282,,MATCH(M$4,'C. PoC Adj Factor Scoring'!$E$3:$AH$3,0)-1),MATCH(M$2&\" Score\",'C. PoC Adj Factor Scoring'!$E$4:$J$4,0),TRUE)","v":1},{"$f":"VLOOKUP(OFFSET($B:$B,,MATCH(N$4,$B$4:$F$4,0)-1),OFFSET('C. PoC Adj Factor Scoring'!$E$5:$J$282,,MATCH(N$4,'C. PoC Adj Factor Scoring'!$E$3:$AH$3,0)-1),MATCH(N$2&\" Score\",'C. PoC Adj Factor Scoring'!$E$4:$J$4,0),TRUE)","v":1},{"$f":"VLOOKUP(OFFSET($B:$B,,MATCH(O$4,$B$4:$F$4,0)-1),OFFSET('C. PoC Adj Factor Scoring'!$E$5:$J$282,,MATCH(O$4,'C. PoC Adj Factor Scoring'!$E$3:$AH$3,0)-1),MATCH(O$2&\" Score\",'C. PoC Adj Factor Scoring'!$E$4:$J$4,0),TRUE)","v":1},{"$f":"VLOOKUP(OFFSET($B:$B,,MATCH(P$4,$B$4:$F$4,0)-1),OFFSET('C. PoC Adj Factor Scoring'!$E$5:$J$282,,MATCH(P$4,'C. PoC Adj Factor Scoring'!$E$3:$AH$3,0)-1),MATCH(P$2&\" Score\",'C. PoC Adj Factor Scoring'!$E$4:$J$4,0),TRUE)","v":1},{"$f":"VLOOKUP(OFFSET($B:$B,,MATCH(Q$4,$B$4:$F$4,0)-1),OFFSET('C. PoC Adj Factor Scoring'!$E$5:$J$282,,MATCH(Q$4,'C. PoC Adj Factor Scoring'!$E$3:$AH$3,0)-1),MATCH(Q$2&\" Score\",'C. PoC Adj Factor Scoring'!$E$4:$J$4,0),TRUE)","v":1},{"$f":"VLOOKUP(OFFSET($B:$B,,MATCH(R$4,$B$4:$F$4,0)-1),OFFSET('C. PoC Adj Factor Scoring'!$E$5:$J$282,,MATCH(R$4,'C. PoC Adj Factor Scoring'!$E$3:$AH$3,0)-1),MATCH(R$2&\" Score\",'C. PoC Adj Factor Scoring'!$E$4:$J$4,0),TRUE)","v":1},{"$f":"VLOOKUP(OFFSET($B:$B,,MATCH(S$4,$B$4:$F$4,0)-1),OFFSET('C. PoC Adj Factor Scoring'!$E$5:$J$282,,MATCH(S$4,'C. PoC Adj Factor Scoring'!$E$3:$AH$3,0)-1),MATCH(S$2&\" Score\",'C. PoC Adj Factor Scoring'!$E$4:$J$4,0),TRUE)","v":1},{"$f":"VLOOKUP(OFFSET($B:$B,,MATCH(T$4,$B$4:$F$4,0)-1),OFFSET('C. PoC Adj Factor Scoring'!$E$5:$J$282,,MATCH(T$4,'C. PoC Adj Factor Scoring'!$E$3:$AH$3,0)-1),MATCH(T$2&\" Score\",'C. PoC Adj Factor Scoring'!$E$4:$J$4,0),TRUE)","v":1},{"$f":"VLOOKUP(OFFSET($B:$B,,MATCH(U$4,$B$4:$F$4,0)-1),OFFSET('C. PoC Adj Factor Scoring'!$E$5:$J$282,,MATCH(U$4,'C. PoC Adj Factor Scoring'!$E$3:$AH$3,0)-1),MATCH(U$2&\" Score\",'C. PoC Adj Factor Scoring'!$E$4:$J$4,0),TRUE)","v":1},{"$f":"VLOOKUP(OFFSET($B:$B,,MATCH(V$4,$B$4:$F$4,0)-1),OFFSET('C. PoC Adj Factor Scoring'!$E$5:$J$282,,MATCH(V$4,'C. PoC Adj Factor Scoring'!$E$3:$AH$3,0)-1),MATCH(V$2&\" Score\",'C. PoC Adj Factor Scoring'!$E$4:$J$4,0),TRUE)","v":1},{"$f":"VLOOKUP(OFFSET($B:$B,,MATCH(W$4,$B$4:$F$4,0)-1),OFFSET('C. PoC Adj Factor Scoring'!$E$5:$J$282,,MATCH(W$4,'C. PoC Adj Factor Scoring'!$E$3:$AH$3,0)-1),MATCH(W$2&\" Score\",'C. PoC Adj Factor Scoring'!$E$4:$J$4,0),TRUE)","v":1},{"$f":"VLOOKUP(OFFSET($B:$B,,MATCH(X$4,$B$4:$F$4,0)-1),OFFSET('C. PoC Adj Factor Scoring'!$E$5:$J$282,,MATCH(X$4,'C. PoC Adj Factor Scoring'!$E$3:$AH$3,0)-1),MATCH(X$2&\" Score\",'C. PoC Adj Factor Scoring'!$E$4:$J$4,0),TRUE)","v":1},{"$f":"VLOOKUP(OFFSET($B:$B,,MATCH(Y$4,$B$4:$F$4,0)-1),OFFSET('C. PoC Adj Factor Scoring'!$E$5:$J$282,,MATCH(Y$4,'C. PoC Adj Factor Scoring'!$E$3:$AH$3,0)-1),MATCH(Y$2&\" Score\",'C. PoC Adj Factor Scoring'!$E$4:$J$4,0),TRUE)","v":1},{"$f":"VLOOKUP(OFFSET($B:$B,,MATCH(Z$4,$B$4:$F$4,0)-1),OFFSET('C. PoC Adj Factor Scoring'!$E$5:$J$282,,MATCH(Z$4,'C. PoC Adj Factor Scoring'!$E$3:$AH$3,0)-1),MATCH(Z$2&\" Score\",'C. PoC Adj Factor Scoring'!$E$4:$J$4,0),TRUE)","v":1},{"$f":"VLOOKUP(OFFSET($B:$B,,MATCH(AA$4,$B$4:$F$4,0)-1),OFFSET('C. PoC Adj Factor Scoring'!$E$5:$J$282,,MATCH(AA$4,'C. PoC Adj Factor Scoring'!$E$3:$AH$3,0)-1),MATCH(AA$2&\" Score\",'C. PoC Adj Factor Scoring'!$E$4:$J$4,0),TRUE)","v":3},{"$f":"VLOOKUP(OFFSET($B:$B,,MATCH(AB$4,$B$4:$F$4,0)-1),OFFSET('C. PoC Adj Factor Scoring'!$E$5:$J$282,,MATCH(AB$4,'C. PoC Adj Factor Scoring'!$E$3:$AH$3,0)-1),MATCH(AB$2&\" Score\",'C. PoC Adj Factor Scoring'!$E$4:$J$4,0),TRUE)","v":1},{"$f":"VLOOKUP(OFFSET($B:$B,,MATCH(AC$4,$B$4:$F$4,0)-1),OFFSET('C. PoC Adj Factor Scoring'!$E$5:$J$282,,MATCH(AC$4,'C. PoC Adj Factor Scoring'!$E$3:$AH$3,0)-1),MATCH(AC$2&\" Score\",'C. PoC Adj Factor Scoring'!$E$4:$J$4,0),TRUE)","v":1},{"$f":"VLOOKUP(OFFSET($B:$B,,MATCH(AD$4,$B$4:$F$4,0)-1),OFFSET('C. PoC Adj Factor Scoring'!$E$5:$J$282,,MATCH(AD$4,'C. PoC Adj Factor Scoring'!$E$3:$AH$3,0)-1),MATCH(AD$2&\" Score\",'C. PoC Adj Factor Scoring'!$E$4:$J$4,0),TRUE)","v":1},{"$f":"VLOOKUP(OFFSET($B:$B,,MATCH(AE$4,$B$4:$F$4,0)-1),OFFSET('C. PoC Adj Factor Scoring'!$E$5:$J$282,,MATCH(AE$4,'C. PoC Adj Factor Scoring'!$E$3:$AH$3,0)-1),MATCH(AE$2&\" Score\",'C. PoC Adj Factor Scoring'!$E$4:$J$4,0),TRUE)","v":1}]
[{"$f":"'A. Population Info'!A64","v":1000328026},{"$f":"'A. Population Info'!L64","v":"OIL"},{"$f":"'A. Population Info'!M64","v":0},{"$f":"'A. Population Info'!N64","v":0},{"$f":"'A. Population Info'!O64","v":0},{"$f":"'A. Population Info'!P64","v":0},{"$f":"VLOOKUP(OFFSET($B:$B,,MATCH(G$4,$B$4:$F$4,0)-1),OFFSET('C. PoC Adj Factor Scoring'!$E$5:$J$282,,MATCH(G$4,'C. PoC Adj Factor Scoring'!$E$3:$AH$3,0)-1),MATCH(G$2&\" Score\",'C. PoC Adj Factor Scoring'!$E$4:$J$4,0),TRUE)","v":4},{"$f":"VLOOKUP(OFFSET($B:$B,,MATCH(H$4,$B$4:$F$4,0)-1),OFFSET('C. PoC Adj Factor Scoring'!$E$5:$J$282,,MATCH(H$4,'C. PoC Adj Factor Scoring'!$E$3:$AH$3,0)-1),MATCH(H$2&\" Score\",'C. PoC Adj Factor Scoring'!$E$4:$J$4,0),TRUE)","v":1},{"$f":"VLOOKUP(OFFSET($B:$B,,MATCH(I$4,$B$4:$F$4,0)-1),OFFSET('C. PoC Adj Factor Scoring'!$E$5:$J$282,,MATCH(I$4,'C. PoC Adj Factor Scoring'!$E$3:$AH$3,0)-1),MATCH(I$2&\" Score\",'C. PoC Adj Factor Scoring'!$E$4:$J$4,0),TRUE)","v":1},{"$f":"VLOOKUP(OFFSET($B:$B,,MATCH(J$4,$B$4:$F$4,0)-1),OFFSET('C. PoC Adj Factor Scoring'!$E$5:$J$282,,MATCH(J$4,'C. PoC Adj Factor Scoring'!$E$3:$AH$3,0)-1),MATCH(J$2&\" Score\",'C. PoC Adj Factor Scoring'!$E$4:$J$4,0),TRUE)","v":1},{"$f":"VLOOKUP(OFFSET($B:$B,,MATCH(K$4,$B$4:$F$4,0)-1),OFFSET('C. PoC Adj Factor Scoring'!$E$5:$J$282,,MATCH(K$4,'C. PoC Adj Factor Scoring'!$E$3:$AH$3,0)-1),MATCH(K$2&\" Score\",'C. PoC Adj Factor Scoring'!$E$4:$J$4,0),TRUE)","v":1},{"$f":"VLOOKUP(OFFSET($B:$B,,MATCH(L$4,$B$4:$F$4,0)-1),OFFSET('C. PoC Adj Factor Scoring'!$E$5:$J$282,,MATCH(L$4,'C. PoC Adj Factor Scoring'!$E$3:$AH$3,0)-1),MATCH(L$2&\" Score\",'C. PoC Adj Factor Scoring'!$E$4:$J$4,0),TRUE)","v":1},{"$f":"VLOOKUP(OFFSET($B:$B,,MATCH(M$4,$B$4:$F$4,0)-1),OFFSET('C. PoC Adj Factor Scoring'!$E$5:$J$282,,MATCH(M$4,'C. PoC Adj Factor Scoring'!$E$3:$AH$3,0)-1),MATCH(M$2&\" Score\",'C. PoC Adj Factor Scoring'!$E$4:$J$4,0),TRUE)","v":1},{"$f":"VLOOKUP(OFFSET($B:$B,,MATCH(N$4,$B$4:$F$4,0)-1),OFFSET('C. PoC Adj Factor Scoring'!$E$5:$J$282,,MATCH(N$4,'C. PoC Adj Factor Scoring'!$E$3:$AH$3,0)-1),MATCH(N$2&\" Score\",'C. PoC Adj Factor Scoring'!$E$4:$J$4,0),TRUE)","v":1},{"$f":"VLOOKUP(OFFSET($B:$B,,MATCH(O$4,$B$4:$F$4,0)-1),OFFSET('C. PoC Adj Factor Scoring'!$E$5:$J$282,,MATCH(O$4,'C. PoC Adj Factor Scoring'!$E$3:$AH$3,0)-1),MATCH(O$2&\" Score\",'C. PoC Adj Factor Scoring'!$E$4:$J$4,0),TRUE)","v":1},{"$f":"VLOOKUP(OFFSET($B:$B,,MATCH(P$4,$B$4:$F$4,0)-1),OFFSET('C. PoC Adj Factor Scoring'!$E$5:$J$282,,MATCH(P$4,'C. PoC Adj Factor Scoring'!$E$3:$AH$3,0)-1),MATCH(P$2&\" Score\",'C. PoC Adj Factor Scoring'!$E$4:$J$4,0),TRUE)","v":1},{"$f":"VLOOKUP(OFFSET($B:$B,,MATCH(Q$4,$B$4:$F$4,0)-1),OFFSET('C. PoC Adj Factor Scoring'!$E$5:$J$282,,MATCH(Q$4,'C. PoC Adj Factor Scoring'!$E$3:$AH$3,0)-1),MATCH(Q$2&\" Score\",'C. PoC Adj Factor Scoring'!$E$4:$J$4,0),TRUE)","v":1},{"$f":"VLOOKUP(OFFSET($B:$B,,MATCH(R$4,$B$4:$F$4,0)-1),OFFSET('C. PoC Adj Factor Scoring'!$E$5:$J$282,,MATCH(R$4,'C. PoC Adj Factor Scoring'!$E$3:$AH$3,0)-1),MATCH(R$2&\" Score\",'C. PoC Adj Factor Scoring'!$E$4:$J$4,0),TRUE)","v":1},{"$f":"VLOOKUP(OFFSET($B:$B,,MATCH(S$4,$B$4:$F$4,0)-1),OFFSET('C. PoC Adj Factor Scoring'!$E$5:$J$282,,MATCH(S$4,'C. PoC Adj Factor Scoring'!$E$3:$AH$3,0)-1),MATCH(S$2&\" Score\",'C. PoC Adj Factor Scoring'!$E$4:$J$4,0),TRUE)","v":1},{"$f":"VLOOKUP(OFFSET($B:$B,,MATCH(T$4,$B$4:$F$4,0)-1),OFFSET('C. PoC Adj Factor Scoring'!$E$5:$J$282,,MATCH(T$4,'C. PoC Adj Factor Scoring'!$E$3:$AH$3,0)-1),MATCH(T$2&\" Score\",'C. PoC Adj Factor Scoring'!$E$4:$J$4,0),TRUE)","v":1},{"$f":"VLOOKUP(OFFSET($B:$B,,MATCH(U$4,$B$4:$F$4,0)-1),OFFSET('C. PoC Adj Factor Scoring'!$E$5:$J$282,,MATCH(U$4,'C. PoC Adj Factor Scoring'!$E$3:$AH$3,0)-1),MATCH(U$2&\" Score\",'C. PoC Adj Factor Scoring'!$E$4:$J$4,0),TRUE)","v":1},{"$f":"VLOOKUP(OFFSET($B:$B,,MATCH(V$4,$B$4:$F$4,0)-1),OFFSET('C. PoC Adj Factor Scoring'!$E$5:$J$282,,MATCH(V$4,'C. PoC Adj Factor Scoring'!$E$3:$AH$3,0)-1),MATCH(V$2&\" Score\",'C. PoC Adj Factor Scoring'!$E$4:$J$4,0),TRUE)","v":1},{"$f":"VLOOKUP(OFFSET($B:$B,,MATCH(W$4,$B$4:$F$4,0)-1),OFFSET('C. PoC Adj Factor Scoring'!$E$5:$J$282,,MATCH(W$4,'C. PoC Adj Factor Scoring'!$E$3:$AH$3,0)-1),MATCH(W$2&\" Score\",'C. PoC Adj Factor Scoring'!$E$4:$J$4,0),TRUE)","v":1},{"$f":"VLOOKUP(OFFSET($B:$B,,MATCH(X$4,$B$4:$F$4,0)-1),OFFSET('C. PoC Adj Factor Scoring'!$E$5:$J$282,,MATCH(X$4,'C. PoC Adj Factor Scoring'!$E$3:$AH$3,0)-1),MATCH(X$2&\" Score\",'C. PoC Adj Factor Scoring'!$E$4:$J$4,0),TRUE)","v":1},{"$f":"VLOOKUP(OFFSET($B:$B,,MATCH(Y$4,$B$4:$F$4,0)-1),OFFSET('C. PoC Adj Factor Scoring'!$E$5:$J$282,,MATCH(Y$4,'C. PoC Adj Factor Scoring'!$E$3:$AH$3,0)-1),MATCH(Y$2&\" Score\",'C. PoC Adj Factor Scoring'!$E$4:$J$4,0),TRUE)","v":1},{"$f":"VLOOKUP(OFFSET($B:$B,,MATCH(Z$4,$B$4:$F$4,0)-1),OFFSET('C. PoC Adj Factor Scoring'!$E$5:$J$282,,MATCH(Z$4,'C. PoC Adj Factor Scoring'!$E$3:$AH$3,0)-1),MATCH(Z$2&\" Score\",'C. PoC Adj Factor Scoring'!$E$4:$J$4,0),TRUE)","v":1},{"$f":"VLOOKUP(OFFSET($B:$B,,MATCH(AA$4,$B$4:$F$4,0)-1),OFFSET('C. PoC Adj Factor Scoring'!$E$5:$J$282,,MATCH(AA$4,'C. PoC Adj Factor Scoring'!$E$3:$AH$3,0)-1),MATCH(AA$2&\" Score\",'C. PoC Adj Factor Scoring'!$E$4:$J$4,0),TRUE)","v":3},{"$f":"VLOOKUP(OFFSET($B:$B,,MATCH(AB$4,$B$4:$F$4,0)-1),OFFSET('C. PoC Adj Factor Scoring'!$E$5:$J$282,,MATCH(AB$4,'C. PoC Adj Factor Scoring'!$E$3:$AH$3,0)-1),MATCH(AB$2&\" Score\",'C. PoC Adj Factor Scoring'!$E$4:$J$4,0),TRUE)","v":1},{"$f":"VLOOKUP(OFFSET($B:$B,,MATCH(AC$4,$B$4:$F$4,0)-1),OFFSET('C. PoC Adj Factor Scoring'!$E$5:$J$282,,MATCH(AC$4,'C. PoC Adj Factor Scoring'!$E$3:$AH$3,0)-1),MATCH(AC$2&\" Score\",'C. PoC Adj Factor Scoring'!$E$4:$J$4,0),TRUE)","v":1},{"$f":"VLOOKUP(OFFSET($B:$B,,MATCH(AD$4,$B$4:$F$4,0)-1),OFFSET('C. PoC Adj Factor Scoring'!$E$5:$J$282,,MATCH(AD$4,'C. PoC Adj Factor Scoring'!$E$3:$AH$3,0)-1),MATCH(AD$2&\" Score\",'C. PoC Adj Factor Scoring'!$E$4:$J$4,0),TRUE)","v":1},{"$f":"VLOOKUP(OFFSET($B:$B,,MATCH(AE$4,$B$4:$F$4,0)-1),OFFSET('C. PoC Adj Factor Scoring'!$E$5:$J$282,,MATCH(AE$4,'C. PoC Adj Factor Scoring'!$E$3:$AH$3,0)-1),MATCH(AE$2&\" Score\",'C. PoC Adj Factor Scoring'!$E$4:$J$4,0),TRUE)","v":1}]
[{"$f":"'A. Population Info'!A65","v":1000328057},{"$f":"'A. Population Info'!L65","v":"OIL"},{"$f":"'A. Population Info'!M65","v":0},{"$f":"'A. Population Info'!N65","v":0},{"$f":"'A. Population Info'!O65","v":0},{"$f":"'A. Population Info'!P65","v":0},{"$f":"VLOOKUP(OFFSET($B:$B,,MATCH(G$4,$B$4:$F$4,0)-1),OFFSET('C. PoC Adj Factor Scoring'!$E$5:$J$282,,MATCH(G$4,'C. PoC Adj Factor Scoring'!$E$3:$AH$3,0)-1),MATCH(G$2&\" Score\",'C. PoC Adj Factor Scoring'!$E$4:$J$4,0),TRUE)","v":4},{"$f":"VLOOKUP(OFFSET($B:$B,,MATCH(H$4,$B$4:$F$4,0)-1),OFFSET('C. PoC Adj Factor Scoring'!$E$5:$J$282,,MATCH(H$4,'C. PoC Adj Factor Scoring'!$E$3:$AH$3,0)-1),MATCH(H$2&\" Score\",'C. PoC Adj Factor Scoring'!$E$4:$J$4,0),TRUE)","v":1},{"$f":"VLOOKUP(OFFSET($B:$B,,MATCH(I$4,$B$4:$F$4,0)-1),OFFSET('C. PoC Adj Factor Scoring'!$E$5:$J$282,,MATCH(I$4,'C. PoC Adj Factor Scoring'!$E$3:$AH$3,0)-1),MATCH(I$2&\" Score\",'C. PoC Adj Factor Scoring'!$E$4:$J$4,0),TRUE)","v":1},{"$f":"VLOOKUP(OFFSET($B:$B,,MATCH(J$4,$B$4:$F$4,0)-1),OFFSET('C. PoC Adj Factor Scoring'!$E$5:$J$282,,MATCH(J$4,'C. PoC Adj Factor Scoring'!$E$3:$AH$3,0)-1),MATCH(J$2&\" Score\",'C. PoC Adj Factor Scoring'!$E$4:$J$4,0),TRUE)","v":1},{"$f":"VLOOKUP(OFFSET($B:$B,,MATCH(K$4,$B$4:$F$4,0)-1),OFFSET('C. PoC Adj Factor Scoring'!$E$5:$J$282,,MATCH(K$4,'C. PoC Adj Factor Scoring'!$E$3:$AH$3,0)-1),MATCH(K$2&\" Score\",'C. PoC Adj Factor Scoring'!$E$4:$J$4,0),TRUE)","v":1},{"$f":"VLOOKUP(OFFSET($B:$B,,MATCH(L$4,$B$4:$F$4,0)-1),OFFSET('C. PoC Adj Factor Scoring'!$E$5:$J$282,,MATCH(L$4,'C. PoC Adj Factor Scoring'!$E$3:$AH$3,0)-1),MATCH(L$2&\" Score\",'C. PoC Adj Factor Scoring'!$E$4:$J$4,0),TRUE)","v":1},{"$f":"VLOOKUP(OFFSET($B:$B,,MATCH(M$4,$B$4:$F$4,0)-1),OFFSET('C. PoC Adj Factor Scoring'!$E$5:$J$282,,MATCH(M$4,'C. PoC Adj Factor Scoring'!$E$3:$AH$3,0)-1),MATCH(M$2&\" Score\",'C. PoC Adj Factor Scoring'!$E$4:$J$4,0),TRUE)","v":1},{"$f":"VLOOKUP(OFFSET($B:$B,,MATCH(N$4,$B$4:$F$4,0)-1),OFFSET('C. PoC Adj Factor Scoring'!$E$5:$J$282,,MATCH(N$4,'C. PoC Adj Factor Scoring'!$E$3:$AH$3,0)-1),MATCH(N$2&\" Score\",'C. PoC Adj Factor Scoring'!$E$4:$J$4,0),TRUE)","v":1},{"$f":"VLOOKUP(OFFSET($B:$B,,MATCH(O$4,$B$4:$F$4,0)-1),OFFSET('C. PoC Adj Factor Scoring'!$E$5:$J$282,,MATCH(O$4,'C. PoC Adj Factor Scoring'!$E$3:$AH$3,0)-1),MATCH(O$2&\" Score\",'C. PoC Adj Factor Scoring'!$E$4:$J$4,0),TRUE)","v":1},{"$f":"VLOOKUP(OFFSET($B:$B,,MATCH(P$4,$B$4:$F$4,0)-1),OFFSET('C. PoC Adj Factor Scoring'!$E$5:$J$282,,MATCH(P$4,'C. PoC Adj Factor Scoring'!$E$3:$AH$3,0)-1),MATCH(P$2&\" Score\",'C. PoC Adj Factor Scoring'!$E$4:$J$4,0),TRUE)","v":1},{"$f":"VLOOKUP(OFFSET($B:$B,,MATCH(Q$4,$B$4:$F$4,0)-1),OFFSET('C. PoC Adj Factor Scoring'!$E$5:$J$282,,MATCH(Q$4,'C. PoC Adj Factor Scoring'!$E$3:$AH$3,0)-1),MATCH(Q$2&\" Score\",'C. PoC Adj Factor Scoring'!$E$4:$J$4,0),TRUE)","v":1},{"$f":"VLOOKUP(OFFSET($B:$B,,MATCH(R$4,$B$4:$F$4,0)-1),OFFSET('C. PoC Adj Factor Scoring'!$E$5:$J$282,,MATCH(R$4,'C. PoC Adj Factor Scoring'!$E$3:$AH$3,0)-1),MATCH(R$2&\" Score\",'C. PoC Adj Factor Scoring'!$E$4:$J$4,0),TRUE)","v":1},{"$f":"VLOOKUP(OFFSET($B:$B,,MATCH(S$4,$B$4:$F$4,0)-1),OFFSET('C. PoC Adj Factor Scoring'!$E$5:$J$282,,MATCH(S$4,'C. PoC Adj Factor Scoring'!$E$3:$AH$3,0)-1),MATCH(S$2&\" Score\",'C. PoC Adj Factor Scoring'!$E$4:$J$4,0),TRUE)","v":1},{"$f":"VLOOKUP(OFFSET($B:$B,,MATCH(T$4,$B$4:$F$4,0)-1),OFFSET('C. PoC Adj Factor Scoring'!$E$5:$J$282,,MATCH(T$4,'C. PoC Adj Factor Scoring'!$E$3:$AH$3,0)-1),MATCH(T$2&\" Score\",'C. PoC Adj Factor Scoring'!$E$4:$J$4,0),TRUE)","v":1},{"$f":"VLOOKUP(OFFSET($B:$B,,MATCH(U$4,$B$4:$F$4,0)-1),OFFSET('C. PoC Adj Factor Scoring'!$E$5:$J$282,,MATCH(U$4,'C. PoC Adj Factor Scoring'!$E$3:$AH$3,0)-1),MATCH(U$2&\" Score\",'C. PoC Adj Factor Scoring'!$E$4:$J$4,0),TRUE)","v":1},{"$f":"VLOOKUP(OFFSET($B:$B,,MATCH(V$4,$B$4:$F$4,0)-1),OFFSET('C. PoC Adj Factor Scoring'!$E$5:$J$282,,MATCH(V$4,'C. PoC Adj Factor Scoring'!$E$3:$AH$3,0)-1),MATCH(V$2&\" Score\",'C. PoC Adj Factor Scoring'!$E$4:$J$4,0),TRUE)","v":1},{"$f":"VLOOKUP(OFFSET($B:$B,,MATCH(W$4,$B$4:$F$4,0)-1),OFFSET('C. PoC Adj Factor Scoring'!$E$5:$J$282,,MATCH(W$4,'C. PoC Adj Factor Scoring'!$E$3:$AH$3,0)-1),MATCH(W$2&\" Score\",'C. PoC Adj Factor Scoring'!$E$4:$J$4,0),TRUE)","v":1},{"$f":"VLOOKUP(OFFSET($B:$B,,MATCH(X$4,$B$4:$F$4,0)-1),OFFSET('C. PoC Adj Factor Scoring'!$E$5:$J$282,,MATCH(X$4,'C. PoC Adj Factor Scoring'!$E$3:$AH$3,0)-1),MATCH(X$2&\" Score\",'C. PoC Adj Factor Scoring'!$E$4:$J$4,0),TRUE)","v":1},{"$f":"VLOOKUP(OFFSET($B:$B,,MATCH(Y$4,$B$4:$F$4,0)-1),OFFSET('C. PoC Adj Factor Scoring'!$E$5:$J$282,,MATCH(Y$4,'C. PoC Adj Factor Scoring'!$E$3:$AH$3,0)-1),MATCH(Y$2&\" Score\",'C. PoC Adj Factor Scoring'!$E$4:$J$4,0),TRUE)","v":1},{"$f":"VLOOKUP(OFFSET($B:$B,,MATCH(Z$4,$B$4:$F$4,0)-1),OFFSET('C. PoC Adj Factor Scoring'!$E$5:$J$282,,MATCH(Z$4,'C. PoC Adj Factor Scoring'!$E$3:$AH$3,0)-1),MATCH(Z$2&\" Score\",'C. PoC Adj Factor Scoring'!$E$4:$J$4,0),TRUE)","v":1},{"$f":"VLOOKUP(OFFSET($B:$B,,MATCH(AA$4,$B$4:$F$4,0)-1),OFFSET('C. PoC Adj Factor Scoring'!$E$5:$J$282,,MATCH(AA$4,'C. PoC Adj Factor Scoring'!$E$3:$AH$3,0)-1),MATCH(AA$2&\" Score\",'C. PoC Adj Factor Scoring'!$E$4:$J$4,0),TRUE)","v":3},{"$f":"VLOOKUP(OFFSET($B:$B,,MATCH(AB$4,$B$4:$F$4,0)-1),OFFSET('C. PoC Adj Factor Scoring'!$E$5:$J$282,,MATCH(AB$4,'C. PoC Adj Factor Scoring'!$E$3:$AH$3,0)-1),MATCH(AB$2&\" Score\",'C. PoC Adj Factor Scoring'!$E$4:$J$4,0),TRUE)","v":1},{"$f":"VLOOKUP(OFFSET($B:$B,,MATCH(AC$4,$B$4:$F$4,0)-1),OFFSET('C. PoC Adj Factor Scoring'!$E$5:$J$282,,MATCH(AC$4,'C. PoC Adj Factor Scoring'!$E$3:$AH$3,0)-1),MATCH(AC$2&\" Score\",'C. PoC Adj Factor Scoring'!$E$4:$J$4,0),TRUE)","v":1},{"$f":"VLOOKUP(OFFSET($B:$B,,MATCH(AD$4,$B$4:$F$4,0)-1),OFFSET('C. PoC Adj Factor Scoring'!$E$5:$J$282,,MATCH(AD$4,'C. PoC Adj Factor Scoring'!$E$3:$AH$3,0)-1),MATCH(AD$2&\" Score\",'C. PoC Adj Factor Scoring'!$E$4:$J$4,0),TRUE)","v":1},{"$f":"VLOOKUP(OFFSET($B:$B,,MATCH(AE$4,$B$4:$F$4,0)-1),OFFSET('C. PoC Adj Factor Scoring'!$E$5:$J$282,,MATCH(AE$4,'C. PoC Adj Factor Scoring'!$E$3:$AH$3,0)-1),MATCH(AE$2&\" Score\",'C. PoC Adj Factor Scoring'!$E$4:$J$4,0),TRUE)","v":1}]
[{"$f":"'A. Population Info'!A66","v":1000328085},{"$f":"'A. Population Info'!L66","v":"OIL"},{"$f":"'A. Population Info'!M66","v":0},{"$f":"'A. Population Info'!N66","v":0},{"$f":"'A. Population Info'!O66","v":0},{"$f":"'A. Population Info'!P66","v":0},{"$f":"VLOOKUP(OFFSET($B:$B,,MATCH(G$4,$B$4:$F$4,0)-1),OFFSET('C. PoC Adj Factor Scoring'!$E$5:$J$282,,MATCH(G$4,'C. PoC Adj Factor Scoring'!$E$3:$AH$3,0)-1),MATCH(G$2&\" Score\",'C. PoC Adj Factor Scoring'!$E$4:$J$4,0),TRUE)","v":4},{"$f":"VLOOKUP(OFFSET($B:$B,,MATCH(H$4,$B$4:$F$4,0)-1),OFFSET('C. PoC Adj Factor Scoring'!$E$5:$J$282,,MATCH(H$4,'C. PoC Adj Factor Scoring'!$E$3:$AH$3,0)-1),MATCH(H$2&\" Score\",'C. PoC Adj Factor Scoring'!$E$4:$J$4,0),TRUE)","v":1},{"$f":"VLOOKUP(OFFSET($B:$B,,MATCH(I$4,$B$4:$F$4,0)-1),OFFSET('C. PoC Adj Factor Scoring'!$E$5:$J$282,,MATCH(I$4,'C. PoC Adj Factor Scoring'!$E$3:$AH$3,0)-1),MATCH(I$2&\" Score\",'C. PoC Adj Factor Scoring'!$E$4:$J$4,0),TRUE)","v":1},{"$f":"VLOOKUP(OFFSET($B:$B,,MATCH(J$4,$B$4:$F$4,0)-1),OFFSET('C. PoC Adj Factor Scoring'!$E$5:$J$282,,MATCH(J$4,'C. PoC Adj Factor Scoring'!$E$3:$AH$3,0)-1),MATCH(J$2&\" Score\",'C. PoC Adj Factor Scoring'!$E$4:$J$4,0),TRUE)","v":1},{"$f":"VLOOKUP(OFFSET($B:$B,,MATCH(K$4,$B$4:$F$4,0)-1),OFFSET('C. PoC Adj Factor Scoring'!$E$5:$J$282,,MATCH(K$4,'C. PoC Adj Factor Scoring'!$E$3:$AH$3,0)-1),MATCH(K$2&\" Score\",'C. PoC Adj Factor Scoring'!$E$4:$J$4,0),TRUE)","v":1},{"$f":"VLOOKUP(OFFSET($B:$B,,MATCH(L$4,$B$4:$F$4,0)-1),OFFSET('C. PoC Adj Factor Scoring'!$E$5:$J$282,,MATCH(L$4,'C. PoC Adj Factor Scoring'!$E$3:$AH$3,0)-1),MATCH(L$2&\" Score\",'C. PoC Adj Factor Scoring'!$E$4:$J$4,0),TRUE)","v":1},{"$f":"VLOOKUP(OFFSET($B:$B,,MATCH(M$4,$B$4:$F$4,0)-1),OFFSET('C. PoC Adj Factor Scoring'!$E$5:$J$282,,MATCH(M$4,'C. PoC Adj Factor Scoring'!$E$3:$AH$3,0)-1),MATCH(M$2&\" Score\",'C. PoC Adj Factor Scoring'!$E$4:$J$4,0),TRUE)","v":1},{"$f":"VLOOKUP(OFFSET($B:$B,,MATCH(N$4,$B$4:$F$4,0)-1),OFFSET('C. PoC Adj Factor Scoring'!$E$5:$J$282,,MATCH(N$4,'C. PoC Adj Factor Scoring'!$E$3:$AH$3,0)-1),MATCH(N$2&\" Score\",'C. PoC Adj Factor Scoring'!$E$4:$J$4,0),TRUE)","v":1},{"$f":"VLOOKUP(OFFSET($B:$B,,MATCH(O$4,$B$4:$F$4,0)-1),OFFSET('C. PoC Adj Factor Scoring'!$E$5:$J$282,,MATCH(O$4,'C. PoC Adj Factor Scoring'!$E$3:$AH$3,0)-1),MATCH(O$2&\" Score\",'C. PoC Adj Factor Scoring'!$E$4:$J$4,0),TRUE)","v":1},{"$f":"VLOOKUP(OFFSET($B:$B,,MATCH(P$4,$B$4:$F$4,0)-1),OFFSET('C. PoC Adj Factor Scoring'!$E$5:$J$282,,MATCH(P$4,'C. PoC Adj Factor Scoring'!$E$3:$AH$3,0)-1),MATCH(P$2&\" Score\",'C. PoC Adj Factor Scoring'!$E$4:$J$4,0),TRUE)","v":1},{"$f":"VLOOKUP(OFFSET($B:$B,,MATCH(Q$4,$B$4:$F$4,0)-1),OFFSET('C. PoC Adj Factor Scoring'!$E$5:$J$282,,MATCH(Q$4,'C. PoC Adj Factor Scoring'!$E$3:$AH$3,0)-1),MATCH(Q$2&\" Score\",'C. PoC Adj Factor Scoring'!$E$4:$J$4,0),TRUE)","v":1},{"$f":"VLOOKUP(OFFSET($B:$B,,MATCH(R$4,$B$4:$F$4,0)-1),OFFSET('C. PoC Adj Factor Scoring'!$E$5:$J$282,,MATCH(R$4,'C. PoC Adj Factor Scoring'!$E$3:$AH$3,0)-1),MATCH(R$2&\" Score\",'C. PoC Adj Factor Scoring'!$E$4:$J$4,0),TRUE)","v":1},{"$f":"VLOOKUP(OFFSET($B:$B,,MATCH(S$4,$B$4:$F$4,0)-1),OFFSET('C. PoC Adj Factor Scoring'!$E$5:$J$282,,MATCH(S$4,'C. PoC Adj Factor Scoring'!$E$3:$AH$3,0)-1),MATCH(S$2&\" Score\",'C. PoC Adj Factor Scoring'!$E$4:$J$4,0),TRUE)","v":1},{"$f":"VLOOKUP(OFFSET($B:$B,,MATCH(T$4,$B$4:$F$4,0)-1),OFFSET('C. PoC Adj Factor Scoring'!$E$5:$J$282,,MATCH(T$4,'C. PoC Adj Factor Scoring'!$E$3:$AH$3,0)-1),MATCH(T$2&\" Score\",'C. PoC Adj Factor Scoring'!$E$4:$J$4,0),TRUE)","v":1},{"$f":"VLOOKUP(OFFSET($B:$B,,MATCH(U$4,$B$4:$F$4,0)-1),OFFSET('C. PoC Adj Factor Scoring'!$E$5:$J$282,,MATCH(U$4,'C. PoC Adj Factor Scoring'!$E$3:$AH$3,0)-1),MATCH(U$2&\" Score\",'C. PoC Adj Factor Scoring'!$E$4:$J$4,0),TRUE)","v":1},{"$f":"VLOOKUP(OFFSET($B:$B,,MATCH(V$4,$B$4:$F$4,0)-1),OFFSET('C. PoC Adj Factor Scoring'!$E$5:$J$282,,MATCH(V$4,'C. PoC Adj Factor Scoring'!$E$3:$AH$3,0)-1),MATCH(V$2&\" Score\",'C. PoC Adj Factor Scoring'!$E$4:$J$4,0),TRUE)","v":1},{"$f":"VLOOKUP(OFFSET($B:$B,,MATCH(W$4,$B$4:$F$4,0)-1),OFFSET('C. PoC Adj Factor Scoring'!$E$5:$J$282,,MATCH(W$4,'C. PoC Adj Factor Scoring'!$E$3:$AH$3,0)-1),MATCH(W$2&\" Score\",'C. PoC Adj Factor Scoring'!$E$4:$J$4,0),TRUE)","v":1},{"$f":"VLOOKUP(OFFSET($B:$B,,MATCH(X$4,$B$4:$F$4,0)-1),OFFSET('C. PoC Adj Factor Scoring'!$E$5:$J$282,,MATCH(X$4,'C. PoC Adj Factor Scoring'!$E$3:$AH$3,0)-1),MATCH(X$2&\" Score\",'C. PoC Adj Factor Scoring'!$E$4:$J$4,0),TRUE)","v":1},{"$f":"VLOOKUP(OFFSET($B:$B,,MATCH(Y$4,$B$4:$F$4,0)-1),OFFSET('C. PoC Adj Factor Scoring'!$E$5:$J$282,,MATCH(Y$4,'C. PoC Adj Factor Scoring'!$E$3:$AH$3,0)-1),MATCH(Y$2&\" Score\",'C. PoC Adj Factor Scoring'!$E$4:$J$4,0),TRUE)","v":1},{"$f":"VLOOKUP(OFFSET($B:$B,,MATCH(Z$4,$B$4:$F$4,0)-1),OFFSET('C. PoC Adj Factor Scoring'!$E$5:$J$282,,MATCH(Z$4,'C. PoC Adj Factor Scoring'!$E$3:$AH$3,0)-1),MATCH(Z$2&\" Score\",'C. PoC Adj Factor Scoring'!$E$4:$J$4,0),TRUE)","v":1},{"$f":"VLOOKUP(OFFSET($B:$B,,MATCH(AA$4,$B$4:$F$4,0)-1),OFFSET('C. PoC Adj Factor Scoring'!$E$5:$J$282,,MATCH(AA$4,'C. PoC Adj Factor Scoring'!$E$3:$AH$3,0)-1),MATCH(AA$2&\" Score\",'C. PoC Adj Factor Scoring'!$E$4:$J$4,0),TRUE)","v":3},{"$f":"VLOOKUP(OFFSET($B:$B,,MATCH(AB$4,$B$4:$F$4,0)-1),OFFSET('C. PoC Adj Factor Scoring'!$E$5:$J$282,,MATCH(AB$4,'C. PoC Adj Factor Scoring'!$E$3:$AH$3,0)-1),MATCH(AB$2&\" Score\",'C. PoC Adj Factor Scoring'!$E$4:$J$4,0),TRUE)","v":1},{"$f":"VLOOKUP(OFFSET($B:$B,,MATCH(AC$4,$B$4:$F$4,0)-1),OFFSET('C. PoC Adj Factor Scoring'!$E$5:$J$282,,MATCH(AC$4,'C. PoC Adj Factor Scoring'!$E$3:$AH$3,0)-1),MATCH(AC$2&\" Score\",'C. PoC Adj Factor Scoring'!$E$4:$J$4,0),TRUE)","v":1},{"$f":"VLOOKUP(OFFSET($B:$B,,MATCH(AD$4,$B$4:$F$4,0)-1),OFFSET('C. PoC Adj Factor Scoring'!$E$5:$J$282,,MATCH(AD$4,'C. PoC Adj Factor Scoring'!$E$3:$AH$3,0)-1),MATCH(AD$2&\" Score\",'C. PoC Adj Factor Scoring'!$E$4:$J$4,0),TRUE)","v":1},{"$f":"VLOOKUP(OFFSET($B:$B,,MATCH(AE$4,$B$4:$F$4,0)-1),OFFSET('C. PoC Adj Factor Scoring'!$E$5:$J$282,,MATCH(AE$4,'C. PoC Adj Factor Scoring'!$E$3:$AH$3,0)-1),MATCH(AE$2&\" Score\",'C. PoC Adj Factor Scoring'!$E$4:$J$4,0),TRUE)","v":1}]
[{"$f":"'A. Population Info'!A67","v":1000328116},{"$f":"'A. Population Info'!L67","v":"OIL"},{"$f":"'A. Population Info'!M67","v":0},{"$f":"'A. Population Info'!N67","v":0},{"$f":"'A. Population Info'!O67","v":0},{"$f":"'A. Population Info'!P67","v":0},{"$f":"VLOOKUP(OFFSET($B:$B,,MATCH(G$4,$B$4:$F$4,0)-1),OFFSET('C. PoC Adj Factor Scoring'!$E$5:$J$282,,MATCH(G$4,'C. PoC Adj Factor Scoring'!$E$3:$AH$3,0)-1),MATCH(G$2&\" Score\",'C. PoC Adj Factor Scoring'!$E$4:$J$4,0),TRUE)","v":4},{"$f":"VLOOKUP(OFFSET($B:$B,,MATCH(H$4,$B$4:$F$4,0)-1),OFFSET('C. PoC Adj Factor Scoring'!$E$5:$J$282,,MATCH(H$4,'C. PoC Adj Factor Scoring'!$E$3:$AH$3,0)-1),MATCH(H$2&\" Score\",'C. PoC Adj Factor Scoring'!$E$4:$J$4,0),TRUE)","v":1},{"$f":"VLOOKUP(OFFSET($B:$B,,MATCH(I$4,$B$4:$F$4,0)-1),OFFSET('C. PoC Adj Factor Scoring'!$E$5:$J$282,,MATCH(I$4,'C. PoC Adj Factor Scoring'!$E$3:$AH$3,0)-1),MATCH(I$2&\" Score\",'C. PoC Adj Factor Scoring'!$E$4:$J$4,0),TRUE)","v":1},{"$f":"VLOOKUP(OFFSET($B:$B,,MATCH(J$4,$B$4:$F$4,0)-1),OFFSET('C. PoC Adj Factor Scoring'!$E$5:$J$282,,MATCH(J$4,'C. PoC Adj Factor Scoring'!$E$3:$AH$3,0)-1),MATCH(J$2&\" Score\",'C. PoC Adj Factor Scoring'!$E$4:$J$4,0),TRUE)","v":1},{"$f":"VLOOKUP(OFFSET($B:$B,,MATCH(K$4,$B$4:$F$4,0)-1),OFFSET('C. PoC Adj Factor Scoring'!$E$5:$J$282,,MATCH(K$4,'C. PoC Adj Factor Scoring'!$E$3:$AH$3,0)-1),MATCH(K$2&\" Score\",'C. PoC Adj Factor Scoring'!$E$4:$J$4,0),TRUE)","v":1},{"$f":"VLOOKUP(OFFSET($B:$B,,MATCH(L$4,$B$4:$F$4,0)-1),OFFSET('C. PoC Adj Factor Scoring'!$E$5:$J$282,,MATCH(L$4,'C. PoC Adj Factor Scoring'!$E$3:$AH$3,0)-1),MATCH(L$2&\" Score\",'C. PoC Adj Factor Scoring'!$E$4:$J$4,0),TRUE)","v":1},{"$f":"VLOOKUP(OFFSET($B:$B,,MATCH(M$4,$B$4:$F$4,0)-1),OFFSET('C. PoC Adj Factor Scoring'!$E$5:$J$282,,MATCH(M$4,'C. PoC Adj Factor Scoring'!$E$3:$AH$3,0)-1),MATCH(M$2&\" Score\",'C. PoC Adj Factor Scoring'!$E$4:$J$4,0),TRUE)","v":1},{"$f":"VLOOKUP(OFFSET($B:$B,,MATCH(N$4,$B$4:$F$4,0)-1),OFFSET('C. PoC Adj Factor Scoring'!$E$5:$J$282,,MATCH(N$4,'C. PoC Adj Factor Scoring'!$E$3:$AH$3,0)-1),MATCH(N$2&\" Score\",'C. PoC Adj Factor Scoring'!$E$4:$J$4,0),TRUE)","v":1},{"$f":"VLOOKUP(OFFSET($B:$B,,MATCH(O$4,$B$4:$F$4,0)-1),OFFSET('C. PoC Adj Factor Scoring'!$E$5:$J$282,,MATCH(O$4,'C. PoC Adj Factor Scoring'!$E$3:$AH$3,0)-1),MATCH(O$2&\" Score\",'C. PoC Adj Factor Scoring'!$E$4:$J$4,0),TRUE)","v":1},{"$f":"VLOOKUP(OFFSET($B:$B,,MATCH(P$4,$B$4:$F$4,0)-1),OFFSET('C. PoC Adj Factor Scoring'!$E$5:$J$282,,MATCH(P$4,'C. PoC Adj Factor Scoring'!$E$3:$AH$3,0)-1),MATCH(P$2&\" Score\",'C. PoC Adj Factor Scoring'!$E$4:$J$4,0),TRUE)","v":1},{"$f":"VLOOKUP(OFFSET($B:$B,,MATCH(Q$4,$B$4:$F$4,0)-1),OFFSET('C. PoC Adj Factor Scoring'!$E$5:$J$282,,MATCH(Q$4,'C. PoC Adj Factor Scoring'!$E$3:$AH$3,0)-1),MATCH(Q$2&\" Score\",'C. PoC Adj Factor Scoring'!$E$4:$J$4,0),TRUE)","v":1},{"$f":"VLOOKUP(OFFSET($B:$B,,MATCH(R$4,$B$4:$F$4,0)-1),OFFSET('C. PoC Adj Factor Scoring'!$E$5:$J$282,,MATCH(R$4,'C. PoC Adj Factor Scoring'!$E$3:$AH$3,0)-1),MATCH(R$2&\" Score\",'C. PoC Adj Factor Scoring'!$E$4:$J$4,0),TRUE)","v":1},{"$f":"VLOOKUP(OFFSET($B:$B,,MATCH(S$4,$B$4:$F$4,0)-1),OFFSET('C. PoC Adj Factor Scoring'!$E$5:$J$282,,MATCH(S$4,'C. PoC Adj Factor Scoring'!$E$3:$AH$3,0)-1),MATCH(S$2&\" Score\",'C. PoC Adj Factor Scoring'!$E$4:$J$4,0),TRUE)","v":1},{"$f":"VLOOKUP(OFFSET($B:$B,,MATCH(T$4,$B$4:$F$4,0)-1),OFFSET('C. PoC Adj Factor Scoring'!$E$5:$J$282,,MATCH(T$4,'C. PoC Adj Factor Scoring'!$E$3:$AH$3,0)-1),MATCH(T$2&\" Score\",'C. PoC Adj Factor Scoring'!$E$4:$J$4,0),TRUE)","v":1},{"$f":"VLOOKUP(OFFSET($B:$B,,MATCH(U$4,$B$4:$F$4,0)-1),OFFSET('C. PoC Adj Factor Scoring'!$E$5:$J$282,,MATCH(U$4,'C. PoC Adj Factor Scoring'!$E$3:$AH$3,0)-1),MATCH(U$2&\" Score\",'C. PoC Adj Factor Scoring'!$E$4:$J$4,0),TRUE)","v":1},{"$f":"VLOOKUP(OFFSET($B:$B,,MATCH(V$4,$B$4:$F$4,0)-1),OFFSET('C. PoC Adj Factor Scoring'!$E$5:$J$282,,MATCH(V$4,'C. PoC Adj Factor Scoring'!$E$3:$AH$3,0)-1),MATCH(V$2&\" Score\",'C. PoC Adj Factor Scoring'!$E$4:$J$4,0),TRUE)","v":1},{"$f":"VLOOKUP(OFFSET($B:$B,,MATCH(W$4,$B$4:$F$4,0)-1),OFFSET('C. PoC Adj Factor Scoring'!$E$5:$J$282,,MATCH(W$4,'C. PoC Adj Factor Scoring'!$E$3:$AH$3,0)-1),MATCH(W$2&\" Score\",'C. PoC Adj Factor Scoring'!$E$4:$J$4,0),TRUE)","v":1},{"$f":"VLOOKUP(OFFSET($B:$B,,MATCH(X$4,$B$4:$F$4,0)-1),OFFSET('C. PoC Adj Factor Scoring'!$E$5:$J$282,,MATCH(X$4,'C. PoC Adj Factor Scoring'!$E$3:$AH$3,0)-1),MATCH(X$2&\" Score\",'C. PoC Adj Factor Scoring'!$E$4:$J$4,0),TRUE)","v":1},{"$f":"VLOOKUP(OFFSET($B:$B,,MATCH(Y$4,$B$4:$F$4,0)-1),OFFSET('C. PoC Adj Factor Scoring'!$E$5:$J$282,,MATCH(Y$4,'C. PoC Adj Factor Scoring'!$E$3:$AH$3,0)-1),MATCH(Y$2&\" Score\",'C. PoC Adj Factor Scoring'!$E$4:$J$4,0),TRUE)","v":1},{"$f":"VLOOKUP(OFFSET($B:$B,,MATCH(Z$4,$B$4:$F$4,0)-1),OFFSET('C. PoC Adj Factor Scoring'!$E$5:$J$282,,MATCH(Z$4,'C. PoC Adj Factor Scoring'!$E$3:$AH$3,0)-1),MATCH(Z$2&\" Score\",'C. PoC Adj Factor Scoring'!$E$4:$J$4,0),TRUE)","v":1},{"$f":"VLOOKUP(OFFSET($B:$B,,MATCH(AA$4,$B$4:$F$4,0)-1),OFFSET('C. PoC Adj Factor Scoring'!$E$5:$J$282,,MATCH(AA$4,'C. PoC Adj Factor Scoring'!$E$3:$AH$3,0)-1),MATCH(AA$2&\" Score\",'C. PoC Adj Factor Scoring'!$E$4:$J$4,0),TRUE)","v":3},{"$f":"VLOOKUP(OFFSET($B:$B,,MATCH(AB$4,$B$4:$F$4,0)-1),OFFSET('C. PoC Adj Factor Scoring'!$E$5:$J$282,,MATCH(AB$4,'C. PoC Adj Factor Scoring'!$E$3:$AH$3,0)-1),MATCH(AB$2&\" Score\",'C. PoC Adj Factor Scoring'!$E$4:$J$4,0),TRUE)","v":1},{"$f":"VLOOKUP(OFFSET($B:$B,,MATCH(AC$4,$B$4:$F$4,0)-1),OFFSET('C. PoC Adj Factor Scoring'!$E$5:$J$282,,MATCH(AC$4,'C. PoC Adj Factor Scoring'!$E$3:$AH$3,0)-1),MATCH(AC$2&\" Score\",'C. PoC Adj Factor Scoring'!$E$4:$J$4,0),TRUE)","v":1},{"$f":"VLOOKUP(OFFSET($B:$B,,MATCH(AD$4,$B$4:$F$4,0)-1),OFFSET('C. PoC Adj Factor Scoring'!$E$5:$J$282,,MATCH(AD$4,'C. PoC Adj Factor Scoring'!$E$3:$AH$3,0)-1),MATCH(AD$2&\" Score\",'C. PoC Adj Factor Scoring'!$E$4:$J$4,0),TRUE)","v":1},{"$f":"VLOOKUP(OFFSET($B:$B,,MATCH(AE$4,$B$4:$F$4,0)-1),OFFSET('C. PoC Adj Factor Scoring'!$E$5:$J$282,,MATCH(AE$4,'C. PoC Adj Factor Scoring'!$E$3:$AH$3,0)-1),MATCH(AE$2&\" Score\",'C. PoC Adj Factor Scoring'!$E$4:$J$4,0),TRUE)","v":1}]
[{"$f":"'A. Population Info'!A68","v":1000328175},{"$f":"'A. Population Info'!L68","v":"OIL"},{"$f":"'A. Population Info'!M68","v":0},{"$f":"'A. Population Info'!N68","v":0},{"$f":"'A. Population Info'!O68","v":0},{"$f":"'A. Population Info'!P68","v":0},{"$f":"VLOOKUP(OFFSET($B:$B,,MATCH(G$4,$B$4:$F$4,0)-1),OFFSET('C. PoC Adj Factor Scoring'!$E$5:$J$282,,MATCH(G$4,'C. PoC Adj Factor Scoring'!$E$3:$AH$3,0)-1),MATCH(G$2&\" Score\",'C. PoC Adj Factor Scoring'!$E$4:$J$4,0),TRUE)","v":4},{"$f":"VLOOKUP(OFFSET($B:$B,,MATCH(H$4,$B$4:$F$4,0)-1),OFFSET('C. PoC Adj Factor Scoring'!$E$5:$J$282,,MATCH(H$4,'C. PoC Adj Factor Scoring'!$E$3:$AH$3,0)-1),MATCH(H$2&\" Score\",'C. PoC Adj Factor Scoring'!$E$4:$J$4,0),TRUE)","v":1},{"$f":"VLOOKUP(OFFSET($B:$B,,MATCH(I$4,$B$4:$F$4,0)-1),OFFSET('C. PoC Adj Factor Scoring'!$E$5:$J$282,,MATCH(I$4,'C. PoC Adj Factor Scoring'!$E$3:$AH$3,0)-1),MATCH(I$2&\" Score\",'C. PoC Adj Factor Scoring'!$E$4:$J$4,0),TRUE)","v":1},{"$f":"VLOOKUP(OFFSET($B:$B,,MATCH(J$4,$B$4:$F$4,0)-1),OFFSET('C. PoC Adj Factor Scoring'!$E$5:$J$282,,MATCH(J$4,'C. PoC Adj Factor Scoring'!$E$3:$AH$3,0)-1),MATCH(J$2&\" Score\",'C. PoC Adj Factor Scoring'!$E$4:$J$4,0),TRUE)","v":1},{"$f":"VLOOKUP(OFFSET($B:$B,,MATCH(K$4,$B$4:$F$4,0)-1),OFFSET('C. PoC Adj Factor Scoring'!$E$5:$J$282,,MATCH(K$4,'C. PoC Adj Factor Scoring'!$E$3:$AH$3,0)-1),MATCH(K$2&\" Score\",'C. PoC Adj Factor Scoring'!$E$4:$J$4,0),TRUE)","v":1},{"$f":"VLOOKUP(OFFSET($B:$B,,MATCH(L$4,$B$4:$F$4,0)-1),OFFSET('C. PoC Adj Factor Scoring'!$E$5:$J$282,,MATCH(L$4,'C. PoC Adj Factor Scoring'!$E$3:$AH$3,0)-1),MATCH(L$2&\" Score\",'C. PoC Adj Factor Scoring'!$E$4:$J$4,0),TRUE)","v":1},{"$f":"VLOOKUP(OFFSET($B:$B,,MATCH(M$4,$B$4:$F$4,0)-1),OFFSET('C. PoC Adj Factor Scoring'!$E$5:$J$282,,MATCH(M$4,'C. PoC Adj Factor Scoring'!$E$3:$AH$3,0)-1),MATCH(M$2&\" Score\",'C. PoC Adj Factor Scoring'!$E$4:$J$4,0),TRUE)","v":1},{"$f":"VLOOKUP(OFFSET($B:$B,,MATCH(N$4,$B$4:$F$4,0)-1),OFFSET('C. PoC Adj Factor Scoring'!$E$5:$J$282,,MATCH(N$4,'C. PoC Adj Factor Scoring'!$E$3:$AH$3,0)-1),MATCH(N$2&\" Score\",'C. PoC Adj Factor Scoring'!$E$4:$J$4,0),TRUE)","v":1},{"$f":"VLOOKUP(OFFSET($B:$B,,MATCH(O$4,$B$4:$F$4,0)-1),OFFSET('C. PoC Adj Factor Scoring'!$E$5:$J$282,,MATCH(O$4,'C. PoC Adj Factor Scoring'!$E$3:$AH$3,0)-1),MATCH(O$2&\" Score\",'C. PoC Adj Factor Scoring'!$E$4:$J$4,0),TRUE)","v":1},{"$f":"VLOOKUP(OFFSET($B:$B,,MATCH(P$4,$B$4:$F$4,0)-1),OFFSET('C. PoC Adj Factor Scoring'!$E$5:$J$282,,MATCH(P$4,'C. PoC Adj Factor Scoring'!$E$3:$AH$3,0)-1),MATCH(P$2&\" Score\",'C. PoC Adj Factor Scoring'!$E$4:$J$4,0),TRUE)","v":1},{"$f":"VLOOKUP(OFFSET($B:$B,,MATCH(Q$4,$B$4:$F$4,0)-1),OFFSET('C. PoC Adj Factor Scoring'!$E$5:$J$282,,MATCH(Q$4,'C. PoC Adj Factor Scoring'!$E$3:$AH$3,0)-1),MATCH(Q$2&\" Score\",'C. PoC Adj Factor Scoring'!$E$4:$J$4,0),TRUE)","v":1},{"$f":"VLOOKUP(OFFSET($B:$B,,MATCH(R$4,$B$4:$F$4,0)-1),OFFSET('C. PoC Adj Factor Scoring'!$E$5:$J$282,,MATCH(R$4,'C. PoC Adj Factor Scoring'!$E$3:$AH$3,0)-1),MATCH(R$2&\" Score\",'C. PoC Adj Factor Scoring'!$E$4:$J$4,0),TRUE)","v":1},{"$f":"VLOOKUP(OFFSET($B:$B,,MATCH(S$4,$B$4:$F$4,0)-1),OFFSET('C. PoC Adj Factor Scoring'!$E$5:$J$282,,MATCH(S$4,'C. PoC Adj Factor Scoring'!$E$3:$AH$3,0)-1),MATCH(S$2&\" Score\",'C. PoC Adj Factor Scoring'!$E$4:$J$4,0),TRUE)","v":1},{"$f":"VLOOKUP(OFFSET($B:$B,,MATCH(T$4,$B$4:$F$4,0)-1),OFFSET('C. PoC Adj Factor Scoring'!$E$5:$J$282,,MATCH(T$4,'C. PoC Adj Factor Scoring'!$E$3:$AH$3,0)-1),MATCH(T$2&\" Score\",'C. PoC Adj Factor Scoring'!$E$4:$J$4,0),TRUE)","v":1},{"$f":"VLOOKUP(OFFSET($B:$B,,MATCH(U$4,$B$4:$F$4,0)-1),OFFSET('C. PoC Adj Factor Scoring'!$E$5:$J$282,,MATCH(U$4,'C. PoC Adj Factor Scoring'!$E$3:$AH$3,0)-1),MATCH(U$2&\" Score\",'C. PoC Adj Factor Scoring'!$E$4:$J$4,0),TRUE)","v":1},{"$f":"VLOOKUP(OFFSET($B:$B,,MATCH(V$4,$B$4:$F$4,0)-1),OFFSET('C. PoC Adj Factor Scoring'!$E$5:$J$282,,MATCH(V$4,'C. PoC Adj Factor Scoring'!$E$3:$AH$3,0)-1),MATCH(V$2&\" Score\",'C. PoC Adj Factor Scoring'!$E$4:$J$4,0),TRUE)","v":1},{"$f":"VLOOKUP(OFFSET($B:$B,,MATCH(W$4,$B$4:$F$4,0)-1),OFFSET('C. PoC Adj Factor Scoring'!$E$5:$J$282,,MATCH(W$4,'C. PoC Adj Factor Scoring'!$E$3:$AH$3,0)-1),MATCH(W$2&\" Score\",'C. PoC Adj Factor Scoring'!$E$4:$J$4,0),TRUE)","v":1},{"$f":"VLOOKUP(OFFSET($B:$B,,MATCH(X$4,$B$4:$F$4,0)-1),OFFSET('C. PoC Adj Factor Scoring'!$E$5:$J$282,,MATCH(X$4,'C. PoC Adj Factor Scoring'!$E$3:$AH$3,0)-1),MATCH(X$2&\" Score\",'C. PoC Adj Factor Scoring'!$E$4:$J$4,0),TRUE)","v":1},{"$f":"VLOOKUP(OFFSET($B:$B,,MATCH(Y$4,$B$4:$F$4,0)-1),OFFSET('C. PoC Adj Factor Scoring'!$E$5:$J$282,,MATCH(Y$4,'C. PoC Adj Factor Scoring'!$E$3:$AH$3,0)-1),MATCH(Y$2&\" Score\",'C. PoC Adj Factor Scoring'!$E$4:$J$4,0),TRUE)","v":1},{"$f":"VLOOKUP(OFFSET($B:$B,,MATCH(Z$4,$B$4:$F$4,0)-1),OFFSET('C. PoC Adj Factor Scoring'!$E$5:$J$282,,MATCH(Z$4,'C. PoC Adj Factor Scoring'!$E$3:$AH$3,0)-1),MATCH(Z$2&\" Score\",'C. PoC Adj Factor Scoring'!$E$4:$J$4,0),TRUE)","v":1},{"$f":"VLOOKUP(OFFSET($B:$B,,MATCH(AA$4,$B$4:$F$4,0)-1),OFFSET('C. PoC Adj Factor Scoring'!$E$5:$J$282,,MATCH(AA$4,'C. PoC Adj Factor Scoring'!$E$3:$AH$3,0)-1),MATCH(AA$2&\" Score\",'C. PoC Adj Factor Scoring'!$E$4:$J$4,0),TRUE)","v":3},{"$f":"VLOOKUP(OFFSET($B:$B,,MATCH(AB$4,$B$4:$F$4,0)-1),OFFSET('C. PoC Adj Factor Scoring'!$E$5:$J$282,,MATCH(AB$4,'C. PoC Adj Factor Scoring'!$E$3:$AH$3,0)-1),MATCH(AB$2&\" Score\",'C. PoC Adj Factor Scoring'!$E$4:$J$4,0),TRUE)","v":1},{"$f":"VLOOKUP(OFFSET($B:$B,,MATCH(AC$4,$B$4:$F$4,0)-1),OFFSET('C. PoC Adj Factor Scoring'!$E$5:$J$282,,MATCH(AC$4,'C. PoC Adj Factor Scoring'!$E$3:$AH$3,0)-1),MATCH(AC$2&\" Score\",'C. PoC Adj Factor Scoring'!$E$4:$J$4,0),TRUE)","v":1},{"$f":"VLOOKUP(OFFSET($B:$B,,MATCH(AD$4,$B$4:$F$4,0)-1),OFFSET('C. PoC Adj Factor Scoring'!$E$5:$J$282,,MATCH(AD$4,'C. PoC Adj Factor Scoring'!$E$3:$AH$3,0)-1),MATCH(AD$2&\" Score\",'C. PoC Adj Factor Scoring'!$E$4:$J$4,0),TRUE)","v":1},{"$f":"VLOOKUP(OFFSET($B:$B,,MATCH(AE$4,$B$4:$F$4,0)-1),OFFSET('C. PoC Adj Factor Scoring'!$E$5:$J$282,,MATCH(AE$4,'C. PoC Adj Factor Scoring'!$E$3:$AH$3,0)-1),MATCH(AE$2&\" Score\",'C. PoC Adj Factor Scoring'!$E$4:$J$4,0),TRUE)","v":1}]
[{"$f":"'A. Population Info'!A69","v":1000328208},{"$f":"'A. Population Info'!L69","v":"OIL"},{"$f":"'A. Population Info'!M69","v":0},{"$f":"'A. Population Info'!N69","v":0},{"$f":"'A. Population Info'!O69","v":0},{"$f":"'A. Population Info'!P69","v":0},{"$f":"VLOOKUP(OFFSET($B:$B,,MATCH(G$4,$B$4:$F$4,0)-1),OFFSET('C. PoC Adj Factor Scoring'!$E$5:$J$282,,MATCH(G$4,'C. PoC Adj Factor Scoring'!$E$3:$AH$3,0)-1),MATCH(G$2&\" Score\",'C. PoC Adj Factor Scoring'!$E$4:$J$4,0),TRUE)","v":4},{"$f":"VLOOKUP(OFFSET($B:$B,,MATCH(H$4,$B$4:$F$4,0)-1),OFFSET('C. PoC Adj Factor Scoring'!$E$5:$J$282,,MATCH(H$4,'C. PoC Adj Factor Scoring'!$E$3:$AH$3,0)-1),MATCH(H$2&\" Score\",'C. PoC Adj Factor Scoring'!$E$4:$J$4,0),TRUE)","v":1},{"$f":"VLOOKUP(OFFSET($B:$B,,MATCH(I$4,$B$4:$F$4,0)-1),OFFSET('C. PoC Adj Factor Scoring'!$E$5:$J$282,,MATCH(I$4,'C. PoC Adj Factor Scoring'!$E$3:$AH$3,0)-1),MATCH(I$2&\" Score\",'C. PoC Adj Factor Scoring'!$E$4:$J$4,0),TRUE)","v":1},{"$f":"VLOOKUP(OFFSET($B:$B,,MATCH(J$4,$B$4:$F$4,0)-1),OFFSET('C. PoC Adj Factor Scoring'!$E$5:$J$282,,MATCH(J$4,'C. PoC Adj Factor Scoring'!$E$3:$AH$3,0)-1),MATCH(J$2&\" Score\",'C. PoC Adj Factor Scoring'!$E$4:$J$4,0),TRUE)","v":1},{"$f":"VLOOKUP(OFFSET($B:$B,,MATCH(K$4,$B$4:$F$4,0)-1),OFFSET('C. PoC Adj Factor Scoring'!$E$5:$J$282,,MATCH(K$4,'C. PoC Adj Factor Scoring'!$E$3:$AH$3,0)-1),MATCH(K$2&\" Score\",'C. PoC Adj Factor Scoring'!$E$4:$J$4,0),TRUE)","v":1},{"$f":"VLOOKUP(OFFSET($B:$B,,MATCH(L$4,$B$4:$F$4,0)-1),OFFSET('C. PoC Adj Factor Scoring'!$E$5:$J$282,,MATCH(L$4,'C. PoC Adj Factor Scoring'!$E$3:$AH$3,0)-1),MATCH(L$2&\" Score\",'C. PoC Adj Factor Scoring'!$E$4:$J$4,0),TRUE)","v":1},{"$f":"VLOOKUP(OFFSET($B:$B,,MATCH(M$4,$B$4:$F$4,0)-1),OFFSET('C. PoC Adj Factor Scoring'!$E$5:$J$282,,MATCH(M$4,'C. PoC Adj Factor Scoring'!$E$3:$AH$3,0)-1),MATCH(M$2&\" Score\",'C. PoC Adj Factor Scoring'!$E$4:$J$4,0),TRUE)","v":1},{"$f":"VLOOKUP(OFFSET($B:$B,,MATCH(N$4,$B$4:$F$4,0)-1),OFFSET('C. PoC Adj Factor Scoring'!$E$5:$J$282,,MATCH(N$4,'C. PoC Adj Factor Scoring'!$E$3:$AH$3,0)-1),MATCH(N$2&\" Score\",'C. PoC Adj Factor Scoring'!$E$4:$J$4,0),TRUE)","v":1},{"$f":"VLOOKUP(OFFSET($B:$B,,MATCH(O$4,$B$4:$F$4,0)-1),OFFSET('C. PoC Adj Factor Scoring'!$E$5:$J$282,,MATCH(O$4,'C. PoC Adj Factor Scoring'!$E$3:$AH$3,0)-1),MATCH(O$2&\" Score\",'C. PoC Adj Factor Scoring'!$E$4:$J$4,0),TRUE)","v":1},{"$f":"VLOOKUP(OFFSET($B:$B,,MATCH(P$4,$B$4:$F$4,0)-1),OFFSET('C. PoC Adj Factor Scoring'!$E$5:$J$282,,MATCH(P$4,'C. PoC Adj Factor Scoring'!$E$3:$AH$3,0)-1),MATCH(P$2&\" Score\",'C. PoC Adj Factor Scoring'!$E$4:$J$4,0),TRUE)","v":1},{"$f":"VLOOKUP(OFFSET($B:$B,,MATCH(Q$4,$B$4:$F$4,0)-1),OFFSET('C. PoC Adj Factor Scoring'!$E$5:$J$282,,MATCH(Q$4,'C. PoC Adj Factor Scoring'!$E$3:$AH$3,0)-1),MATCH(Q$2&\" Score\",'C. PoC Adj Factor Scoring'!$E$4:$J$4,0),TRUE)","v":1},{"$f":"VLOOKUP(OFFSET($B:$B,,MATCH(R$4,$B$4:$F$4,0)-1),OFFSET('C. PoC Adj Factor Scoring'!$E$5:$J$282,,MATCH(R$4,'C. PoC Adj Factor Scoring'!$E$3:$AH$3,0)-1),MATCH(R$2&\" Score\",'C. PoC Adj Factor Scoring'!$E$4:$J$4,0),TRUE)","v":1},{"$f":"VLOOKUP(OFFSET($B:$B,,MATCH(S$4,$B$4:$F$4,0)-1),OFFSET('C. PoC Adj Factor Scoring'!$E$5:$J$282,,MATCH(S$4,'C. PoC Adj Factor Scoring'!$E$3:$AH$3,0)-1),MATCH(S$2&\" Score\",'C. PoC Adj Factor Scoring'!$E$4:$J$4,0),TRUE)","v":1},{"$f":"VLOOKUP(OFFSET($B:$B,,MATCH(T$4,$B$4:$F$4,0)-1),OFFSET('C. PoC Adj Factor Scoring'!$E$5:$J$282,,MATCH(T$4,'C. PoC Adj Factor Scoring'!$E$3:$AH$3,0)-1),MATCH(T$2&\" Score\",'C. PoC Adj Factor Scoring'!$E$4:$J$4,0),TRUE)","v":1},{"$f":"VLOOKUP(OFFSET($B:$B,,MATCH(U$4,$B$4:$F$4,0)-1),OFFSET('C. PoC Adj Factor Scoring'!$E$5:$J$282,,MATCH(U$4,'C. PoC Adj Factor Scoring'!$E$3:$AH$3,0)-1),MATCH(U$2&\" Score\",'C. PoC Adj Factor Scoring'!$E$4:$J$4,0),TRUE)","v":1},{"$f":"VLOOKUP(OFFSET($B:$B,,MATCH(V$4,$B$4:$F$4,0)-1),OFFSET('C. PoC Adj Factor Scoring'!$E$5:$J$282,,MATCH(V$4,'C. PoC Adj Factor Scoring'!$E$3:$AH$3,0)-1),MATCH(V$2&\" Score\",'C. PoC Adj Factor Scoring'!$E$4:$J$4,0),TRUE)","v":1},{"$f":"VLOOKUP(OFFSET($B:$B,,MATCH(W$4,$B$4:$F$4,0)-1),OFFSET('C. PoC Adj Factor Scoring'!$E$5:$J$282,,MATCH(W$4,'C. PoC Adj Factor Scoring'!$E$3:$AH$3,0)-1),MATCH(W$2&\" Score\",'C. PoC Adj Factor Scoring'!$E$4:$J$4,0),TRUE)","v":1},{"$f":"VLOOKUP(OFFSET($B:$B,,MATCH(X$4,$B$4:$F$4,0)-1),OFFSET('C. PoC Adj Factor Scoring'!$E$5:$J$282,,MATCH(X$4,'C. PoC Adj Factor Scoring'!$E$3:$AH$3,0)-1),MATCH(X$2&\" Score\",'C. PoC Adj Factor Scoring'!$E$4:$J$4,0),TRUE)","v":1},{"$f":"VLOOKUP(OFFSET($B:$B,,MATCH(Y$4,$B$4:$F$4,0)-1),OFFSET('C. PoC Adj Factor Scoring'!$E$5:$J$282,,MATCH(Y$4,'C. PoC Adj Factor Scoring'!$E$3:$AH$3,0)-1),MATCH(Y$2&\" Score\",'C. PoC Adj Factor Scoring'!$E$4:$J$4,0),TRUE)","v":1},{"$f":"VLOOKUP(OFFSET($B:$B,,MATCH(Z$4,$B$4:$F$4,0)-1),OFFSET('C. PoC Adj Factor Scoring'!$E$5:$J$282,,MATCH(Z$4,'C. PoC Adj Factor Scoring'!$E$3:$AH$3,0)-1),MATCH(Z$2&\" Score\",'C. PoC Adj Factor Scoring'!$E$4:$J$4,0),TRUE)","v":1},{"$f":"VLOOKUP(OFFSET($B:$B,,MATCH(AA$4,$B$4:$F$4,0)-1),OFFSET('C. PoC Adj Factor Scoring'!$E$5:$J$282,,MATCH(AA$4,'C. PoC Adj Factor Scoring'!$E$3:$AH$3,0)-1),MATCH(AA$2&\" Score\",'C. PoC Adj Factor Scoring'!$E$4:$J$4,0),TRUE)","v":3},{"$f":"VLOOKUP(OFFSET($B:$B,,MATCH(AB$4,$B$4:$F$4,0)-1),OFFSET('C. PoC Adj Factor Scoring'!$E$5:$J$282,,MATCH(AB$4,'C. PoC Adj Factor Scoring'!$E$3:$AH$3,0)-1),MATCH(AB$2&\" Score\",'C. PoC Adj Factor Scoring'!$E$4:$J$4,0),TRUE)","v":1},{"$f":"VLOOKUP(OFFSET($B:$B,,MATCH(AC$4,$B$4:$F$4,0)-1),OFFSET('C. PoC Adj Factor Scoring'!$E$5:$J$282,,MATCH(AC$4,'C. PoC Adj Factor Scoring'!$E$3:$AH$3,0)-1),MATCH(AC$2&\" Score\",'C. PoC Adj Factor Scoring'!$E$4:$J$4,0),TRUE)","v":1},{"$f":"VLOOKUP(OFFSET($B:$B,,MATCH(AD$4,$B$4:$F$4,0)-1),OFFSET('C. PoC Adj Factor Scoring'!$E$5:$J$282,,MATCH(AD$4,'C. PoC Adj Factor Scoring'!$E$3:$AH$3,0)-1),MATCH(AD$2&\" Score\",'C. PoC Adj Factor Scoring'!$E$4:$J$4,0),TRUE)","v":1},{"$f":"VLOOKUP(OFFSET($B:$B,,MATCH(AE$4,$B$4:$F$4,0)-1),OFFSET('C. PoC Adj Factor Scoring'!$E$5:$J$282,,MATCH(AE$4,'C. PoC Adj Factor Scoring'!$E$3:$AH$3,0)-1),MATCH(AE$2&\" Score\",'C. PoC Adj Factor Scoring'!$E$4:$J$4,0),TRUE)","v":1}]
[{"$f":"'A. Population Info'!A70","v":1000328413},{"$f":"'A. Population Info'!L70","v":"OIL"},{"$f":"'A. Population Info'!M70","v":0},{"$f":"'A. Population Info'!N70","v":0},{"$f":"'A. Population Info'!O70","v":0},{"$f":"'A. Population Info'!P70","v":0},{"$f":"VLOOKUP(OFFSET($B:$B,,MATCH(G$4,$B$4:$F$4,0)-1),OFFSET('C. PoC Adj Factor Scoring'!$E$5:$J$282,,MATCH(G$4,'C. PoC Adj Factor Scoring'!$E$3:$AH$3,0)-1),MATCH(G$2&\" Score\",'C. PoC Adj Factor Scoring'!$E$4:$J$4,0),TRUE)","v":4},{"$f":"VLOOKUP(OFFSET($B:$B,,MATCH(H$4,$B$4:$F$4,0)-1),OFFSET('C. PoC Adj Factor Scoring'!$E$5:$J$282,,MATCH(H$4,'C. PoC Adj Factor Scoring'!$E$3:$AH$3,0)-1),MATCH(H$2&\" Score\",'C. PoC Adj Factor Scoring'!$E$4:$J$4,0),TRUE)","v":1},{"$f":"VLOOKUP(OFFSET($B:$B,,MATCH(I$4,$B$4:$F$4,0)-1),OFFSET('C. PoC Adj Factor Scoring'!$E$5:$J$282,,MATCH(I$4,'C. PoC Adj Factor Scoring'!$E$3:$AH$3,0)-1),MATCH(I$2&\" Score\",'C. PoC Adj Factor Scoring'!$E$4:$J$4,0),TRUE)","v":1},{"$f":"VLOOKUP(OFFSET($B:$B,,MATCH(J$4,$B$4:$F$4,0)-1),OFFSET('C. PoC Adj Factor Scoring'!$E$5:$J$282,,MATCH(J$4,'C. PoC Adj Factor Scoring'!$E$3:$AH$3,0)-1),MATCH(J$2&\" Score\",'C. PoC Adj Factor Scoring'!$E$4:$J$4,0),TRUE)","v":1},{"$f":"VLOOKUP(OFFSET($B:$B,,MATCH(K$4,$B$4:$F$4,0)-1),OFFSET('C. PoC Adj Factor Scoring'!$E$5:$J$282,,MATCH(K$4,'C. PoC Adj Factor Scoring'!$E$3:$AH$3,0)-1),MATCH(K$2&\" Score\",'C. PoC Adj Factor Scoring'!$E$4:$J$4,0),TRUE)","v":1},{"$f":"VLOOKUP(OFFSET($B:$B,,MATCH(L$4,$B$4:$F$4,0)-1),OFFSET('C. PoC Adj Factor Scoring'!$E$5:$J$282,,MATCH(L$4,'C. PoC Adj Factor Scoring'!$E$3:$AH$3,0)-1),MATCH(L$2&\" Score\",'C. PoC Adj Factor Scoring'!$E$4:$J$4,0),TRUE)","v":1},{"$f":"VLOOKUP(OFFSET($B:$B,,MATCH(M$4,$B$4:$F$4,0)-1),OFFSET('C. PoC Adj Factor Scoring'!$E$5:$J$282,,MATCH(M$4,'C. PoC Adj Factor Scoring'!$E$3:$AH$3,0)-1),MATCH(M$2&\" Score\",'C. PoC Adj Factor Scoring'!$E$4:$J$4,0),TRUE)","v":1},{"$f":"VLOOKUP(OFFSET($B:$B,,MATCH(N$4,$B$4:$F$4,0)-1),OFFSET('C. PoC Adj Factor Scoring'!$E$5:$J$282,,MATCH(N$4,'C. PoC Adj Factor Scoring'!$E$3:$AH$3,0)-1),MATCH(N$2&\" Score\",'C. PoC Adj Factor Scoring'!$E$4:$J$4,0),TRUE)","v":1},{"$f":"VLOOKUP(OFFSET($B:$B,,MATCH(O$4,$B$4:$F$4,0)-1),OFFSET('C. PoC Adj Factor Scoring'!$E$5:$J$282,,MATCH(O$4,'C. PoC Adj Factor Scoring'!$E$3:$AH$3,0)-1),MATCH(O$2&\" Score\",'C. PoC Adj Factor Scoring'!$E$4:$J$4,0),TRUE)","v":1},{"$f":"VLOOKUP(OFFSET($B:$B,,MATCH(P$4,$B$4:$F$4,0)-1),OFFSET('C. PoC Adj Factor Scoring'!$E$5:$J$282,,MATCH(P$4,'C. PoC Adj Factor Scoring'!$E$3:$AH$3,0)-1),MATCH(P$2&\" Score\",'C. PoC Adj Factor Scoring'!$E$4:$J$4,0),TRUE)","v":1},{"$f":"VLOOKUP(OFFSET($B:$B,,MATCH(Q$4,$B$4:$F$4,0)-1),OFFSET('C. PoC Adj Factor Scoring'!$E$5:$J$282,,MATCH(Q$4,'C. PoC Adj Factor Scoring'!$E$3:$AH$3,0)-1),MATCH(Q$2&\" Score\",'C. PoC Adj Factor Scoring'!$E$4:$J$4,0),TRUE)","v":1},{"$f":"VLOOKUP(OFFSET($B:$B,,MATCH(R$4,$B$4:$F$4,0)-1),OFFSET('C. PoC Adj Factor Scoring'!$E$5:$J$282,,MATCH(R$4,'C. PoC Adj Factor Scoring'!$E$3:$AH$3,0)-1),MATCH(R$2&\" Score\",'C. PoC Adj Factor Scoring'!$E$4:$J$4,0),TRUE)","v":1},{"$f":"VLOOKUP(OFFSET($B:$B,,MATCH(S$4,$B$4:$F$4,0)-1),OFFSET('C. PoC Adj Factor Scoring'!$E$5:$J$282,,MATCH(S$4,'C. PoC Adj Factor Scoring'!$E$3:$AH$3,0)-1),MATCH(S$2&\" Score\",'C. PoC Adj Factor Scoring'!$E$4:$J$4,0),TRUE)","v":1},{"$f":"VLOOKUP(OFFSET($B:$B,,MATCH(T$4,$B$4:$F$4,0)-1),OFFSET('C. PoC Adj Factor Scoring'!$E$5:$J$282,,MATCH(T$4,'C. PoC Adj Factor Scoring'!$E$3:$AH$3,0)-1),MATCH(T$2&\" Score\",'C. PoC Adj Factor Scoring'!$E$4:$J$4,0),TRUE)","v":1},{"$f":"VLOOKUP(OFFSET($B:$B,,MATCH(U$4,$B$4:$F$4,0)-1),OFFSET('C. PoC Adj Factor Scoring'!$E$5:$J$282,,MATCH(U$4,'C. PoC Adj Factor Scoring'!$E$3:$AH$3,0)-1),MATCH(U$2&\" Score\",'C. PoC Adj Factor Scoring'!$E$4:$J$4,0),TRUE)","v":1},{"$f":"VLOOKUP(OFFSET($B:$B,,MATCH(V$4,$B$4:$F$4,0)-1),OFFSET('C. PoC Adj Factor Scoring'!$E$5:$J$282,,MATCH(V$4,'C. PoC Adj Factor Scoring'!$E$3:$AH$3,0)-1),MATCH(V$2&\" Score\",'C. PoC Adj Factor Scoring'!$E$4:$J$4,0),TRUE)","v":1},{"$f":"VLOOKUP(OFFSET($B:$B,,MATCH(W$4,$B$4:$F$4,0)-1),OFFSET('C. PoC Adj Factor Scoring'!$E$5:$J$282,,MATCH(W$4,'C. PoC Adj Factor Scoring'!$E$3:$AH$3,0)-1),MATCH(W$2&\" Score\",'C. PoC Adj Factor Scoring'!$E$4:$J$4,0),TRUE)","v":1},{"$f":"VLOOKUP(OFFSET($B:$B,,MATCH(X$4,$B$4:$F$4,0)-1),OFFSET('C. PoC Adj Factor Scoring'!$E$5:$J$282,,MATCH(X$4,'C. PoC Adj Factor Scoring'!$E$3:$AH$3,0)-1),MATCH(X$2&\" Score\",'C. PoC Adj Factor Scoring'!$E$4:$J$4,0),TRUE)","v":1},{"$f":"VLOOKUP(OFFSET($B:$B,,MATCH(Y$4,$B$4:$F$4,0)-1),OFFSET('C. PoC Adj Factor Scoring'!$E$5:$J$282,,MATCH(Y$4,'C. PoC Adj Factor Scoring'!$E$3:$AH$3,0)-1),MATCH(Y$2&\" Score\",'C. PoC Adj Factor Scoring'!$E$4:$J$4,0),TRUE)","v":1},{"$f":"VLOOKUP(OFFSET($B:$B,,MATCH(Z$4,$B$4:$F$4,0)-1),OFFSET('C. PoC Adj Factor Scoring'!$E$5:$J$282,,MATCH(Z$4,'C. PoC Adj Factor Scoring'!$E$3:$AH$3,0)-1),MATCH(Z$2&\" Score\",'C. PoC Adj Factor Scoring'!$E$4:$J$4,0),TRUE)","v":1},{"$f":"VLOOKUP(OFFSET($B:$B,,MATCH(AA$4,$B$4:$F$4,0)-1),OFFSET('C. PoC Adj Factor Scoring'!$E$5:$J$282,,MATCH(AA$4,'C. PoC Adj Factor Scoring'!$E$3:$AH$3,0)-1),MATCH(AA$2&\" Score\",'C. PoC Adj Factor Scoring'!$E$4:$J$4,0),TRUE)","v":3},{"$f":"VLOOKUP(OFFSET($B:$B,,MATCH(AB$4,$B$4:$F$4,0)-1),OFFSET('C. PoC Adj Factor Scoring'!$E$5:$J$282,,MATCH(AB$4,'C. PoC Adj Factor Scoring'!$E$3:$AH$3,0)-1),MATCH(AB$2&\" Score\",'C. PoC Adj Factor Scoring'!$E$4:$J$4,0),TRUE)","v":1},{"$f":"VLOOKUP(OFFSET($B:$B,,MATCH(AC$4,$B$4:$F$4,0)-1),OFFSET('C. PoC Adj Factor Scoring'!$E$5:$J$282,,MATCH(AC$4,'C. PoC Adj Factor Scoring'!$E$3:$AH$3,0)-1),MATCH(AC$2&\" Score\",'C. PoC Adj Factor Scoring'!$E$4:$J$4,0),TRUE)","v":1},{"$f":"VLOOKUP(OFFSET($B:$B,,MATCH(AD$4,$B$4:$F$4,0)-1),OFFSET('C. PoC Adj Factor Scoring'!$E$5:$J$282,,MATCH(AD$4,'C. PoC Adj Factor Scoring'!$E$3:$AH$3,0)-1),MATCH(AD$2&\" Score\",'C. PoC Adj Factor Scoring'!$E$4:$J$4,0),TRUE)","v":1},{"$f":"VLOOKUP(OFFSET($B:$B,,MATCH(AE$4,$B$4:$F$4,0)-1),OFFSET('C. PoC Adj Factor Scoring'!$E$5:$J$282,,MATCH(AE$4,'C. PoC Adj Factor Scoring'!$E$3:$AH$3,0)-1),MATCH(AE$2&\" Score\",'C. PoC Adj Factor Scoring'!$E$4:$J$4,0),TRUE)","v":1}]
[{"$f":"'A. Population Info'!A71","v":1000328506},{"$f":"'A. Population Info'!L71","v":"OIL"},{"$f":"'A. Population Info'!M71","v":0},{"$f":"'A. Population Info'!N71","v":0},{"$f":"'A. Population Info'!O71","v":0},{"$f":"'A. Population Info'!P71","v":0},{"$f":"VLOOKUP(OFFSET($B:$B,,MATCH(G$4,$B$4:$F$4,0)-1),OFFSET('C. PoC Adj Factor Scoring'!$E$5:$J$282,,MATCH(G$4,'C. PoC Adj Factor Scoring'!$E$3:$AH$3,0)-1),MATCH(G$2&\" Score\",'C. PoC Adj Factor Scoring'!$E$4:$J$4,0),TRUE)","v":4},{"$f":"VLOOKUP(OFFSET($B:$B,,MATCH(H$4,$B$4:$F$4,0)-1),OFFSET('C. PoC Adj Factor Scoring'!$E$5:$J$282,,MATCH(H$4,'C. PoC Adj Factor Scoring'!$E$3:$AH$3,0)-1),MATCH(H$2&\" Score\",'C. PoC Adj Factor Scoring'!$E$4:$J$4,0),TRUE)","v":1},{"$f":"VLOOKUP(OFFSET($B:$B,,MATCH(I$4,$B$4:$F$4,0)-1),OFFSET('C. PoC Adj Factor Scoring'!$E$5:$J$282,,MATCH(I$4,'C. PoC Adj Factor Scoring'!$E$3:$AH$3,0)-1),MATCH(I$2&\" Score\",'C. PoC Adj Factor Scoring'!$E$4:$J$4,0),TRUE)","v":1},{"$f":"VLOOKUP(OFFSET($B:$B,,MATCH(J$4,$B$4:$F$4,0)-1),OFFSET('C. PoC Adj Factor Scoring'!$E$5:$J$282,,MATCH(J$4,'C. PoC Adj Factor Scoring'!$E$3:$AH$3,0)-1),MATCH(J$2&\" Score\",'C. PoC Adj Factor Scoring'!$E$4:$J$4,0),TRUE)","v":1},{"$f":"VLOOKUP(OFFSET($B:$B,,MATCH(K$4,$B$4:$F$4,0)-1),OFFSET('C. PoC Adj Factor Scoring'!$E$5:$J$282,,MATCH(K$4,'C. PoC Adj Factor Scoring'!$E$3:$AH$3,0)-1),MATCH(K$2&\" Score\",'C. PoC Adj Factor Scoring'!$E$4:$J$4,0),TRUE)","v":1},{"$f":"VLOOKUP(OFFSET($B:$B,,MATCH(L$4,$B$4:$F$4,0)-1),OFFSET('C. PoC Adj Factor Scoring'!$E$5:$J$282,,MATCH(L$4,'C. PoC Adj Factor Scoring'!$E$3:$AH$3,0)-1),MATCH(L$2&\" Score\",'C. PoC Adj Factor Scoring'!$E$4:$J$4,0),TRUE)","v":1},{"$f":"VLOOKUP(OFFSET($B:$B,,MATCH(M$4,$B$4:$F$4,0)-1),OFFSET('C. PoC Adj Factor Scoring'!$E$5:$J$282,,MATCH(M$4,'C. PoC Adj Factor Scoring'!$E$3:$AH$3,0)-1),MATCH(M$2&\" Score\",'C. PoC Adj Factor Scoring'!$E$4:$J$4,0),TRUE)","v":1},{"$f":"VLOOKUP(OFFSET($B:$B,,MATCH(N$4,$B$4:$F$4,0)-1),OFFSET('C. PoC Adj Factor Scoring'!$E$5:$J$282,,MATCH(N$4,'C. PoC Adj Factor Scoring'!$E$3:$AH$3,0)-1),MATCH(N$2&\" Score\",'C. PoC Adj Factor Scoring'!$E$4:$J$4,0),TRUE)","v":1},{"$f":"VLOOKUP(OFFSET($B:$B,,MATCH(O$4,$B$4:$F$4,0)-1),OFFSET('C. PoC Adj Factor Scoring'!$E$5:$J$282,,MATCH(O$4,'C. PoC Adj Factor Scoring'!$E$3:$AH$3,0)-1),MATCH(O$2&\" Score\",'C. PoC Adj Factor Scoring'!$E$4:$J$4,0),TRUE)","v":1},{"$f":"VLOOKUP(OFFSET($B:$B,,MATCH(P$4,$B$4:$F$4,0)-1),OFFSET('C. PoC Adj Factor Scoring'!$E$5:$J$282,,MATCH(P$4,'C. PoC Adj Factor Scoring'!$E$3:$AH$3,0)-1),MATCH(P$2&\" Score\",'C. PoC Adj Factor Scoring'!$E$4:$J$4,0),TRUE)","v":1},{"$f":"VLOOKUP(OFFSET($B:$B,,MATCH(Q$4,$B$4:$F$4,0)-1),OFFSET('C. PoC Adj Factor Scoring'!$E$5:$J$282,,MATCH(Q$4,'C. PoC Adj Factor Scoring'!$E$3:$AH$3,0)-1),MATCH(Q$2&\" Score\",'C. PoC Adj Factor Scoring'!$E$4:$J$4,0),TRUE)","v":1},{"$f":"VLOOKUP(OFFSET($B:$B,,MATCH(R$4,$B$4:$F$4,0)-1),OFFSET('C. PoC Adj Factor Scoring'!$E$5:$J$282,,MATCH(R$4,'C. PoC Adj Factor Scoring'!$E$3:$AH$3,0)-1),MATCH(R$2&\" Score\",'C. PoC Adj Factor Scoring'!$E$4:$J$4,0),TRUE)","v":1},{"$f":"VLOOKUP(OFFSET($B:$B,,MATCH(S$4,$B$4:$F$4,0)-1),OFFSET('C. PoC Adj Factor Scoring'!$E$5:$J$282,,MATCH(S$4,'C. PoC Adj Factor Scoring'!$E$3:$AH$3,0)-1),MATCH(S$2&\" Score\",'C. PoC Adj Factor Scoring'!$E$4:$J$4,0),TRUE)","v":1},{"$f":"VLOOKUP(OFFSET($B:$B,,MATCH(T$4,$B$4:$F$4,0)-1),OFFSET('C. PoC Adj Factor Scoring'!$E$5:$J$282,,MATCH(T$4,'C. PoC Adj Factor Scoring'!$E$3:$AH$3,0)-1),MATCH(T$2&\" Score\",'C. PoC Adj Factor Scoring'!$E$4:$J$4,0),TRUE)","v":1},{"$f":"VLOOKUP(OFFSET($B:$B,,MATCH(U$4,$B$4:$F$4,0)-1),OFFSET('C. PoC Adj Factor Scoring'!$E$5:$J$282,,MATCH(U$4,'C. PoC Adj Factor Scoring'!$E$3:$AH$3,0)-1),MATCH(U$2&\" Score\",'C. PoC Adj Factor Scoring'!$E$4:$J$4,0),TRUE)","v":1},{"$f":"VLOOKUP(OFFSET($B:$B,,MATCH(V$4,$B$4:$F$4,0)-1),OFFSET('C. PoC Adj Factor Scoring'!$E$5:$J$282,,MATCH(V$4,'C. PoC Adj Factor Scoring'!$E$3:$AH$3,0)-1),MATCH(V$2&\" Score\",'C. PoC Adj Factor Scoring'!$E$4:$J$4,0),TRUE)","v":1},{"$f":"VLOOKUP(OFFSET($B:$B,,MATCH(W$4,$B$4:$F$4,0)-1),OFFSET('C. PoC Adj Factor Scoring'!$E$5:$J$282,,MATCH(W$4,'C. PoC Adj Factor Scoring'!$E$3:$AH$3,0)-1),MATCH(W$2&\" Score\",'C. PoC Adj Factor Scoring'!$E$4:$J$4,0),TRUE)","v":1},{"$f":"VLOOKUP(OFFSET($B:$B,,MATCH(X$4,$B$4:$F$4,0)-1),OFFSET('C. PoC Adj Factor Scoring'!$E$5:$J$282,,MATCH(X$4,'C. PoC Adj Factor Scoring'!$E$3:$AH$3,0)-1),MATCH(X$2&\" Score\",'C. PoC Adj Factor Scoring'!$E$4:$J$4,0),TRUE)","v":1},{"$f":"VLOOKUP(OFFSET($B:$B,,MATCH(Y$4,$B$4:$F$4,0)-1),OFFSET('C. PoC Adj Factor Scoring'!$E$5:$J$282,,MATCH(Y$4,'C. PoC Adj Factor Scoring'!$E$3:$AH$3,0)-1),MATCH(Y$2&\" Score\",'C. PoC Adj Factor Scoring'!$E$4:$J$4,0),TRUE)","v":1},{"$f":"VLOOKUP(OFFSET($B:$B,,MATCH(Z$4,$B$4:$F$4,0)-1),OFFSET('C. PoC Adj Factor Scoring'!$E$5:$J$282,,MATCH(Z$4,'C. PoC Adj Factor Scoring'!$E$3:$AH$3,0)-1),MATCH(Z$2&\" Score\",'C. PoC Adj Factor Scoring'!$E$4:$J$4,0),TRUE)","v":1},{"$f":"VLOOKUP(OFFSET($B:$B,,MATCH(AA$4,$B$4:$F$4,0)-1),OFFSET('C. PoC Adj Factor Scoring'!$E$5:$J$282,,MATCH(AA$4,'C. PoC Adj Factor Scoring'!$E$3:$AH$3,0)-1),MATCH(AA$2&\" Score\",'C. PoC Adj Factor Scoring'!$E$4:$J$4,0),TRUE)","v":3},{"$f":"VLOOKUP(OFFSET($B:$B,,MATCH(AB$4,$B$4:$F$4,0)-1),OFFSET('C. PoC Adj Factor Scoring'!$E$5:$J$282,,MATCH(AB$4,'C. PoC Adj Factor Scoring'!$E$3:$AH$3,0)-1),MATCH(AB$2&\" Score\",'C. PoC Adj Factor Scoring'!$E$4:$J$4,0),TRUE)","v":1},{"$f":"VLOOKUP(OFFSET($B:$B,,MATCH(AC$4,$B$4:$F$4,0)-1),OFFSET('C. PoC Adj Factor Scoring'!$E$5:$J$282,,MATCH(AC$4,'C. PoC Adj Factor Scoring'!$E$3:$AH$3,0)-1),MATCH(AC$2&\" Score\",'C. PoC Adj Factor Scoring'!$E$4:$J$4,0),TRUE)","v":1},{"$f":"VLOOKUP(OFFSET($B:$B,,MATCH(AD$4,$B$4:$F$4,0)-1),OFFSET('C. PoC Adj Factor Scoring'!$E$5:$J$282,,MATCH(AD$4,'C. PoC Adj Factor Scoring'!$E$3:$AH$3,0)-1),MATCH(AD$2&\" Score\",'C. PoC Adj Factor Scoring'!$E$4:$J$4,0),TRUE)","v":1},{"$f":"VLOOKUP(OFFSET($B:$B,,MATCH(AE$4,$B$4:$F$4,0)-1),OFFSET('C. PoC Adj Factor Scoring'!$E$5:$J$282,,MATCH(AE$4,'C. PoC Adj Factor Scoring'!$E$3:$AH$3,0)-1),MATCH(AE$2&\" Score\",'C. PoC Adj Factor Scoring'!$E$4:$J$4,0),TRUE)","v":1}]
[{"$f":"'A. Population Info'!A72","v":1000328533},{"$f":"'A. Population Info'!L72","v":"OIL"},{"$f":"'A. Population Info'!M72","v":0},{"$f":"'A. Population Info'!N72","v":0},{"$f":"'A. Population Info'!O72","v":0},{"$f":"'A. Population Info'!P72","v":0},{"$f":"VLOOKUP(OFFSET($B:$B,,MATCH(G$4,$B$4:$F$4,0)-1),OFFSET('C. PoC Adj Factor Scoring'!$E$5:$J$282,,MATCH(G$4,'C. PoC Adj Factor Scoring'!$E$3:$AH$3,0)-1),MATCH(G$2&\" Score\",'C. PoC Adj Factor Scoring'!$E$4:$J$4,0),TRUE)","v":4},{"$f":"VLOOKUP(OFFSET($B:$B,,MATCH(H$4,$B$4:$F$4,0)-1),OFFSET('C. PoC Adj Factor Scoring'!$E$5:$J$282,,MATCH(H$4,'C. PoC Adj Factor Scoring'!$E$3:$AH$3,0)-1),MATCH(H$2&\" Score\",'C. PoC Adj Factor Scoring'!$E$4:$J$4,0),TRUE)","v":1},{"$f":"VLOOKUP(OFFSET($B:$B,,MATCH(I$4,$B$4:$F$4,0)-1),OFFSET('C. PoC Adj Factor Scoring'!$E$5:$J$282,,MATCH(I$4,'C. PoC Adj Factor Scoring'!$E$3:$AH$3,0)-1),MATCH(I$2&\" Score\",'C. PoC Adj Factor Scoring'!$E$4:$J$4,0),TRUE)","v":1},{"$f":"VLOOKUP(OFFSET($B:$B,,MATCH(J$4,$B$4:$F$4,0)-1),OFFSET('C. PoC Adj Factor Scoring'!$E$5:$J$282,,MATCH(J$4,'C. PoC Adj Factor Scoring'!$E$3:$AH$3,0)-1),MATCH(J$2&\" Score\",'C. PoC Adj Factor Scoring'!$E$4:$J$4,0),TRUE)","v":1},{"$f":"VLOOKUP(OFFSET($B:$B,,MATCH(K$4,$B$4:$F$4,0)-1),OFFSET('C. PoC Adj Factor Scoring'!$E$5:$J$282,,MATCH(K$4,'C. PoC Adj Factor Scoring'!$E$3:$AH$3,0)-1),MATCH(K$2&\" Score\",'C. PoC Adj Factor Scoring'!$E$4:$J$4,0),TRUE)","v":1},{"$f":"VLOOKUP(OFFSET($B:$B,,MATCH(L$4,$B$4:$F$4,0)-1),OFFSET('C. PoC Adj Factor Scoring'!$E$5:$J$282,,MATCH(L$4,'C. PoC Adj Factor Scoring'!$E$3:$AH$3,0)-1),MATCH(L$2&\" Score\",'C. PoC Adj Factor Scoring'!$E$4:$J$4,0),TRUE)","v":1},{"$f":"VLOOKUP(OFFSET($B:$B,,MATCH(M$4,$B$4:$F$4,0)-1),OFFSET('C. PoC Adj Factor Scoring'!$E$5:$J$282,,MATCH(M$4,'C. PoC Adj Factor Scoring'!$E$3:$AH$3,0)-1),MATCH(M$2&\" Score\",'C. PoC Adj Factor Scoring'!$E$4:$J$4,0),TRUE)","v":1},{"$f":"VLOOKUP(OFFSET($B:$B,,MATCH(N$4,$B$4:$F$4,0)-1),OFFSET('C. PoC Adj Factor Scoring'!$E$5:$J$282,,MATCH(N$4,'C. PoC Adj Factor Scoring'!$E$3:$AH$3,0)-1),MATCH(N$2&\" Score\",'C. PoC Adj Factor Scoring'!$E$4:$J$4,0),TRUE)","v":1},{"$f":"VLOOKUP(OFFSET($B:$B,,MATCH(O$4,$B$4:$F$4,0)-1),OFFSET('C. PoC Adj Factor Scoring'!$E$5:$J$282,,MATCH(O$4,'C. PoC Adj Factor Scoring'!$E$3:$AH$3,0)-1),MATCH(O$2&\" Score\",'C. PoC Adj Factor Scoring'!$E$4:$J$4,0),TRUE)","v":1},{"$f":"VLOOKUP(OFFSET($B:$B,,MATCH(P$4,$B$4:$F$4,0)-1),OFFSET('C. PoC Adj Factor Scoring'!$E$5:$J$282,,MATCH(P$4,'C. PoC Adj Factor Scoring'!$E$3:$AH$3,0)-1),MATCH(P$2&\" Score\",'C. PoC Adj Factor Scoring'!$E$4:$J$4,0),TRUE)","v":1},{"$f":"VLOOKUP(OFFSET($B:$B,,MATCH(Q$4,$B$4:$F$4,0)-1),OFFSET('C. PoC Adj Factor Scoring'!$E$5:$J$282,,MATCH(Q$4,'C. PoC Adj Factor Scoring'!$E$3:$AH$3,0)-1),MATCH(Q$2&\" Score\",'C. PoC Adj Factor Scoring'!$E$4:$J$4,0),TRUE)","v":1},{"$f":"VLOOKUP(OFFSET($B:$B,,MATCH(R$4,$B$4:$F$4,0)-1),OFFSET('C. PoC Adj Factor Scoring'!$E$5:$J$282,,MATCH(R$4,'C. PoC Adj Factor Scoring'!$E$3:$AH$3,0)-1),MATCH(R$2&\" Score\",'C. PoC Adj Factor Scoring'!$E$4:$J$4,0),TRUE)","v":1},{"$f":"VLOOKUP(OFFSET($B:$B,,MATCH(S$4,$B$4:$F$4,0)-1),OFFSET('C. PoC Adj Factor Scoring'!$E$5:$J$282,,MATCH(S$4,'C. PoC Adj Factor Scoring'!$E$3:$AH$3,0)-1),MATCH(S$2&\" Score\",'C. PoC Adj Factor Scoring'!$E$4:$J$4,0),TRUE)","v":1},{"$f":"VLOOKUP(OFFSET($B:$B,,MATCH(T$4,$B$4:$F$4,0)-1),OFFSET('C. PoC Adj Factor Scoring'!$E$5:$J$282,,MATCH(T$4,'C. PoC Adj Factor Scoring'!$E$3:$AH$3,0)-1),MATCH(T$2&\" Score\",'C. PoC Adj Factor Scoring'!$E$4:$J$4,0),TRUE)","v":1},{"$f":"VLOOKUP(OFFSET($B:$B,,MATCH(U$4,$B$4:$F$4,0)-1),OFFSET('C. PoC Adj Factor Scoring'!$E$5:$J$282,,MATCH(U$4,'C. PoC Adj Factor Scoring'!$E$3:$AH$3,0)-1),MATCH(U$2&\" Score\",'C. PoC Adj Factor Scoring'!$E$4:$J$4,0),TRUE)","v":1},{"$f":"VLOOKUP(OFFSET($B:$B,,MATCH(V$4,$B$4:$F$4,0)-1),OFFSET('C. PoC Adj Factor Scoring'!$E$5:$J$282,,MATCH(V$4,'C. PoC Adj Factor Scoring'!$E$3:$AH$3,0)-1),MATCH(V$2&\" Score\",'C. PoC Adj Factor Scoring'!$E$4:$J$4,0),TRUE)","v":1},{"$f":"VLOOKUP(OFFSET($B:$B,,MATCH(W$4,$B$4:$F$4,0)-1),OFFSET('C. PoC Adj Factor Scoring'!$E$5:$J$282,,MATCH(W$4,'C. PoC Adj Factor Scoring'!$E$3:$AH$3,0)-1),MATCH(W$2&\" Score\",'C. PoC Adj Factor Scoring'!$E$4:$J$4,0),TRUE)","v":1},{"$f":"VLOOKUP(OFFSET($B:$B,,MATCH(X$4,$B$4:$F$4,0)-1),OFFSET('C. PoC Adj Factor Scoring'!$E$5:$J$282,,MATCH(X$4,'C. PoC Adj Factor Scoring'!$E$3:$AH$3,0)-1),MATCH(X$2&\" Score\",'C. PoC Adj Factor Scoring'!$E$4:$J$4,0),TRUE)","v":1},{"$f":"VLOOKUP(OFFSET($B:$B,,MATCH(Y$4,$B$4:$F$4,0)-1),OFFSET('C. PoC Adj Factor Scoring'!$E$5:$J$282,,MATCH(Y$4,'C. PoC Adj Factor Scoring'!$E$3:$AH$3,0)-1),MATCH(Y$2&\" Score\",'C. PoC Adj Factor Scoring'!$E$4:$J$4,0),TRUE)","v":1},{"$f":"VLOOKUP(OFFSET($B:$B,,MATCH(Z$4,$B$4:$F$4,0)-1),OFFSET('C. PoC Adj Factor Scoring'!$E$5:$J$282,,MATCH(Z$4,'C. PoC Adj Factor Scoring'!$E$3:$AH$3,0)-1),MATCH(Z$2&\" Score\",'C. PoC Adj Factor Scoring'!$E$4:$J$4,0),TRUE)","v":1},{"$f":"VLOOKUP(OFFSET($B:$B,,MATCH(AA$4,$B$4:$F$4,0)-1),OFFSET('C. PoC Adj Factor Scoring'!$E$5:$J$282,,MATCH(AA$4,'C. PoC Adj Factor Scoring'!$E$3:$AH$3,0)-1),MATCH(AA$2&\" Score\",'C. PoC Adj Factor Scoring'!$E$4:$J$4,0),TRUE)","v":3},{"$f":"VLOOKUP(OFFSET($B:$B,,MATCH(AB$4,$B$4:$F$4,0)-1),OFFSET('C. PoC Adj Factor Scoring'!$E$5:$J$282,,MATCH(AB$4,'C. PoC Adj Factor Scoring'!$E$3:$AH$3,0)-1),MATCH(AB$2&\" Score\",'C. PoC Adj Factor Scoring'!$E$4:$J$4,0),TRUE)","v":1},{"$f":"VLOOKUP(OFFSET($B:$B,,MATCH(AC$4,$B$4:$F$4,0)-1),OFFSET('C. PoC Adj Factor Scoring'!$E$5:$J$282,,MATCH(AC$4,'C. PoC Adj Factor Scoring'!$E$3:$AH$3,0)-1),MATCH(AC$2&\" Score\",'C. PoC Adj Factor Scoring'!$E$4:$J$4,0),TRUE)","v":1},{"$f":"VLOOKUP(OFFSET($B:$B,,MATCH(AD$4,$B$4:$F$4,0)-1),OFFSET('C. PoC Adj Factor Scoring'!$E$5:$J$282,,MATCH(AD$4,'C. PoC Adj Factor Scoring'!$E$3:$AH$3,0)-1),MATCH(AD$2&\" Score\",'C. PoC Adj Factor Scoring'!$E$4:$J$4,0),TRUE)","v":1},{"$f":"VLOOKUP(OFFSET($B:$B,,MATCH(AE$4,$B$4:$F$4,0)-1),OFFSET('C. PoC Adj Factor Scoring'!$E$5:$J$282,,MATCH(AE$4,'C. PoC Adj Factor Scoring'!$E$3:$AH$3,0)-1),MATCH(AE$2&\" Score\",'C. PoC Adj Factor Scoring'!$E$4:$J$4,0),TRUE)","v":1}]
[{"$f":"'A. Population Info'!A73","v":1000328564},{"$f":"'A. Population Info'!L73","v":"OIL"},{"$f":"'A. Population Info'!M73","v":0},{"$f":"'A. Population Info'!N73","v":0},{"$f":"'A. Population Info'!O73","v":0},{"$f":"'A. Population Info'!P73","v":0},{"$f":"VLOOKUP(OFFSET($B:$B,,MATCH(G$4,$B$4:$F$4,0)-1),OFFSET('C. PoC Adj Factor Scoring'!$E$5:$J$282,,MATCH(G$4,'C. PoC Adj Factor Scoring'!$E$3:$AH$3,0)-1),MATCH(G$2&\" Score\",'C. PoC Adj Factor Scoring'!$E$4:$J$4,0),TRUE)","v":4},{"$f":"VLOOKUP(OFFSET($B:$B,,MATCH(H$4,$B$4:$F$4,0)-1),OFFSET('C. PoC Adj Factor Scoring'!$E$5:$J$282,,MATCH(H$4,'C. PoC Adj Factor Scoring'!$E$3:$AH$3,0)-1),MATCH(H$2&\" Score\",'C. PoC Adj Factor Scoring'!$E$4:$J$4,0),TRUE)","v":1},{"$f":"VLOOKUP(OFFSET($B:$B,,MATCH(I$4,$B$4:$F$4,0)-1),OFFSET('C. PoC Adj Factor Scoring'!$E$5:$J$282,,MATCH(I$4,'C. PoC Adj Factor Scoring'!$E$3:$AH$3,0)-1),MATCH(I$2&\" Score\",'C. PoC Adj Factor Scoring'!$E$4:$J$4,0),TRUE)","v":1},{"$f":"VLOOKUP(OFFSET($B:$B,,MATCH(J$4,$B$4:$F$4,0)-1),OFFSET('C. PoC Adj Factor Scoring'!$E$5:$J$282,,MATCH(J$4,'C. PoC Adj Factor Scoring'!$E$3:$AH$3,0)-1),MATCH(J$2&\" Score\",'C. PoC Adj Factor Scoring'!$E$4:$J$4,0),TRUE)","v":1},{"$f":"VLOOKUP(OFFSET($B:$B,,MATCH(K$4,$B$4:$F$4,0)-1),OFFSET('C. PoC Adj Factor Scoring'!$E$5:$J$282,,MATCH(K$4,'C. PoC Adj Factor Scoring'!$E$3:$AH$3,0)-1),MATCH(K$2&\" Score\",'C. PoC Adj Factor Scoring'!$E$4:$J$4,0),TRUE)","v":1},{"$f":"VLOOKUP(OFFSET($B:$B,,MATCH(L$4,$B$4:$F$4,0)-1),OFFSET('C. PoC Adj Factor Scoring'!$E$5:$J$282,,MATCH(L$4,'C. PoC Adj Factor Scoring'!$E$3:$AH$3,0)-1),MATCH(L$2&\" Score\",'C. PoC Adj Factor Scoring'!$E$4:$J$4,0),TRUE)","v":1},{"$f":"VLOOKUP(OFFSET($B:$B,,MATCH(M$4,$B$4:$F$4,0)-1),OFFSET('C. PoC Adj Factor Scoring'!$E$5:$J$282,,MATCH(M$4,'C. PoC Adj Factor Scoring'!$E$3:$AH$3,0)-1),MATCH(M$2&\" Score\",'C. PoC Adj Factor Scoring'!$E$4:$J$4,0),TRUE)","v":1},{"$f":"VLOOKUP(OFFSET($B:$B,,MATCH(N$4,$B$4:$F$4,0)-1),OFFSET('C. PoC Adj Factor Scoring'!$E$5:$J$282,,MATCH(N$4,'C. PoC Adj Factor Scoring'!$E$3:$AH$3,0)-1),MATCH(N$2&\" Score\",'C. PoC Adj Factor Scoring'!$E$4:$J$4,0),TRUE)","v":1},{"$f":"VLOOKUP(OFFSET($B:$B,,MATCH(O$4,$B$4:$F$4,0)-1),OFFSET('C. PoC Adj Factor Scoring'!$E$5:$J$282,,MATCH(O$4,'C. PoC Adj Factor Scoring'!$E$3:$AH$3,0)-1),MATCH(O$2&\" Score\",'C. PoC Adj Factor Scoring'!$E$4:$J$4,0),TRUE)","v":1},{"$f":"VLOOKUP(OFFSET($B:$B,,MATCH(P$4,$B$4:$F$4,0)-1),OFFSET('C. PoC Adj Factor Scoring'!$E$5:$J$282,,MATCH(P$4,'C. PoC Adj Factor Scoring'!$E$3:$AH$3,0)-1),MATCH(P$2&\" Score\",'C. PoC Adj Factor Scoring'!$E$4:$J$4,0),TRUE)","v":1},{"$f":"VLOOKUP(OFFSET($B:$B,,MATCH(Q$4,$B$4:$F$4,0)-1),OFFSET('C. PoC Adj Factor Scoring'!$E$5:$J$282,,MATCH(Q$4,'C. PoC Adj Factor Scoring'!$E$3:$AH$3,0)-1),MATCH(Q$2&\" Score\",'C. PoC Adj Factor Scoring'!$E$4:$J$4,0),TRUE)","v":1},{"$f":"VLOOKUP(OFFSET($B:$B,,MATCH(R$4,$B$4:$F$4,0)-1),OFFSET('C. PoC Adj Factor Scoring'!$E$5:$J$282,,MATCH(R$4,'C. PoC Adj Factor Scoring'!$E$3:$AH$3,0)-1),MATCH(R$2&\" Score\",'C. PoC Adj Factor Scoring'!$E$4:$J$4,0),TRUE)","v":1},{"$f":"VLOOKUP(OFFSET($B:$B,,MATCH(S$4,$B$4:$F$4,0)-1),OFFSET('C. PoC Adj Factor Scoring'!$E$5:$J$282,,MATCH(S$4,'C. PoC Adj Factor Scoring'!$E$3:$AH$3,0)-1),MATCH(S$2&\" Score\",'C. PoC Adj Factor Scoring'!$E$4:$J$4,0),TRUE)","v":1},{"$f":"VLOOKUP(OFFSET($B:$B,,MATCH(T$4,$B$4:$F$4,0)-1),OFFSET('C. PoC Adj Factor Scoring'!$E$5:$J$282,,MATCH(T$4,'C. PoC Adj Factor Scoring'!$E$3:$AH$3,0)-1),MATCH(T$2&\" Score\",'C. PoC Adj Factor Scoring'!$E$4:$J$4,0),TRUE)","v":1},{"$f":"VLOOKUP(OFFSET($B:$B,,MATCH(U$4,$B$4:$F$4,0)-1),OFFSET('C. PoC Adj Factor Scoring'!$E$5:$J$282,,MATCH(U$4,'C. PoC Adj Factor Scoring'!$E$3:$AH$3,0)-1),MATCH(U$2&\" Score\",'C. PoC Adj Factor Scoring'!$E$4:$J$4,0),TRUE)","v":1},{"$f":"VLOOKUP(OFFSET($B:$B,,MATCH(V$4,$B$4:$F$4,0)-1),OFFSET('C. PoC Adj Factor Scoring'!$E$5:$J$282,,MATCH(V$4,'C. PoC Adj Factor Scoring'!$E$3:$AH$3,0)-1),MATCH(V$2&\" Score\",'C. PoC Adj Factor Scoring'!$E$4:$J$4,0),TRUE)","v":1},{"$f":"VLOOKUP(OFFSET($B:$B,,MATCH(W$4,$B$4:$F$4,0)-1),OFFSET('C. PoC Adj Factor Scoring'!$E$5:$J$282,,MATCH(W$4,'C. PoC Adj Factor Scoring'!$E$3:$AH$3,0)-1),MATCH(W$2&\" Score\",'C. PoC Adj Factor Scoring'!$E$4:$J$4,0),TRUE)","v":1},{"$f":"VLOOKUP(OFFSET($B:$B,,MATCH(X$4,$B$4:$F$4,0)-1),OFFSET('C. PoC Adj Factor Scoring'!$E$5:$J$282,,MATCH(X$4,'C. PoC Adj Factor Scoring'!$E$3:$AH$3,0)-1),MATCH(X$2&\" Score\",'C. PoC Adj Factor Scoring'!$E$4:$J$4,0),TRUE)","v":1},{"$f":"VLOOKUP(OFFSET($B:$B,,MATCH(Y$4,$B$4:$F$4,0)-1),OFFSET('C. PoC Adj Factor Scoring'!$E$5:$J$282,,MATCH(Y$4,'C. PoC Adj Factor Scoring'!$E$3:$AH$3,0)-1),MATCH(Y$2&\" Score\",'C. PoC Adj Factor Scoring'!$E$4:$J$4,0),TRUE)","v":1},{"$f":"VLOOKUP(OFFSET($B:$B,,MATCH(Z$4,$B$4:$F$4,0)-1),OFFSET('C. PoC Adj Factor Scoring'!$E$5:$J$282,,MATCH(Z$4,'C. PoC Adj Factor Scoring'!$E$3:$AH$3,0)-1),MATCH(Z$2&\" Score\",'C. PoC Adj Factor Scoring'!$E$4:$J$4,0),TRUE)","v":1},{"$f":"VLOOKUP(OFFSET($B:$B,,MATCH(AA$4,$B$4:$F$4,0)-1),OFFSET('C. PoC Adj Factor Scoring'!$E$5:$J$282,,MATCH(AA$4,'C. PoC Adj Factor Scoring'!$E$3:$AH$3,0)-1),MATCH(AA$2&\" Score\",'C. PoC Adj Factor Scoring'!$E$4:$J$4,0),TRUE)","v":3},{"$f":"VLOOKUP(OFFSET($B:$B,,MATCH(AB$4,$B$4:$F$4,0)-1),OFFSET('C. PoC Adj Factor Scoring'!$E$5:$J$282,,MATCH(AB$4,'C. PoC Adj Factor Scoring'!$E$3:$AH$3,0)-1),MATCH(AB$2&\" Score\",'C. PoC Adj Factor Scoring'!$E$4:$J$4,0),TRUE)","v":1},{"$f":"VLOOKUP(OFFSET($B:$B,,MATCH(AC$4,$B$4:$F$4,0)-1),OFFSET('C. PoC Adj Factor Scoring'!$E$5:$J$282,,MATCH(AC$4,'C. PoC Adj Factor Scoring'!$E$3:$AH$3,0)-1),MATCH(AC$2&\" Score\",'C. PoC Adj Factor Scoring'!$E$4:$J$4,0),TRUE)","v":1},{"$f":"VLOOKUP(OFFSET($B:$B,,MATCH(AD$4,$B$4:$F$4,0)-1),OFFSET('C. PoC Adj Factor Scoring'!$E$5:$J$282,,MATCH(AD$4,'C. PoC Adj Factor Scoring'!$E$3:$AH$3,0)-1),MATCH(AD$2&\" Score\",'C. PoC Adj Factor Scoring'!$E$4:$J$4,0),TRUE)","v":1},{"$f":"VLOOKUP(OFFSET($B:$B,,MATCH(AE$4,$B$4:$F$4,0)-1),OFFSET('C. PoC Adj Factor Scoring'!$E$5:$J$282,,MATCH(AE$4,'C. PoC Adj Factor Scoring'!$E$3:$AH$3,0)-1),MATCH(AE$2&\" Score\",'C. PoC Adj Factor Scoring'!$E$4:$J$4,0),TRUE)","v":1}]
[{"$f":"'A. Population Info'!A74","v":1000328590},{"$f":"'A. Population Info'!L74","v":"OIL"},{"$f":"'A. Population Info'!M74","v":0},{"$f":"'A. Population Info'!N74","v":0},{"$f":"'A. Population Info'!O74","v":0},{"$f":"'A. Population Info'!P74","v":0},{"$f":"VLOOKUP(OFFSET($B:$B,,MATCH(G$4,$B$4:$F$4,0)-1),OFFSET('C. PoC Adj Factor Scoring'!$E$5:$J$282,,MATCH(G$4,'C. PoC Adj Factor Scoring'!$E$3:$AH$3,0)-1),MATCH(G$2&\" Score\",'C. PoC Adj Factor Scoring'!$E$4:$J$4,0),TRUE)","v":4},{"$f":"VLOOKUP(OFFSET($B:$B,,MATCH(H$4,$B$4:$F$4,0)-1),OFFSET('C. PoC Adj Factor Scoring'!$E$5:$J$282,,MATCH(H$4,'C. PoC Adj Factor Scoring'!$E$3:$AH$3,0)-1),MATCH(H$2&\" Score\",'C. PoC Adj Factor Scoring'!$E$4:$J$4,0),TRUE)","v":1},{"$f":"VLOOKUP(OFFSET($B:$B,,MATCH(I$4,$B$4:$F$4,0)-1),OFFSET('C. PoC Adj Factor Scoring'!$E$5:$J$282,,MATCH(I$4,'C. PoC Adj Factor Scoring'!$E$3:$AH$3,0)-1),MATCH(I$2&\" Score\",'C. PoC Adj Factor Scoring'!$E$4:$J$4,0),TRUE)","v":1},{"$f":"VLOOKUP(OFFSET($B:$B,,MATCH(J$4,$B$4:$F$4,0)-1),OFFSET('C. PoC Adj Factor Scoring'!$E$5:$J$282,,MATCH(J$4,'C. PoC Adj Factor Scoring'!$E$3:$AH$3,0)-1),MATCH(J$2&\" Score\",'C. PoC Adj Factor Scoring'!$E$4:$J$4,0),TRUE)","v":1},{"$f":"VLOOKUP(OFFSET($B:$B,,MATCH(K$4,$B$4:$F$4,0)-1),OFFSET('C. PoC Adj Factor Scoring'!$E$5:$J$282,,MATCH(K$4,'C. PoC Adj Factor Scoring'!$E$3:$AH$3,0)-1),MATCH(K$2&\" Score\",'C. PoC Adj Factor Scoring'!$E$4:$J$4,0),TRUE)","v":1},{"$f":"VLOOKUP(OFFSET($B:$B,,MATCH(L$4,$B$4:$F$4,0)-1),OFFSET('C. PoC Adj Factor Scoring'!$E$5:$J$282,,MATCH(L$4,'C. PoC Adj Factor Scoring'!$E$3:$AH$3,0)-1),MATCH(L$2&\" Score\",'C. PoC Adj Factor Scoring'!$E$4:$J$4,0),TRUE)","v":1},{"$f":"VLOOKUP(OFFSET($B:$B,,MATCH(M$4,$B$4:$F$4,0)-1),OFFSET('C. PoC Adj Factor Scoring'!$E$5:$J$282,,MATCH(M$4,'C. PoC Adj Factor Scoring'!$E$3:$AH$3,0)-1),MATCH(M$2&\" Score\",'C. PoC Adj Factor Scoring'!$E$4:$J$4,0),TRUE)","v":1},{"$f":"VLOOKUP(OFFSET($B:$B,,MATCH(N$4,$B$4:$F$4,0)-1),OFFSET('C. PoC Adj Factor Scoring'!$E$5:$J$282,,MATCH(N$4,'C. PoC Adj Factor Scoring'!$E$3:$AH$3,0)-1),MATCH(N$2&\" Score\",'C. PoC Adj Factor Scoring'!$E$4:$J$4,0),TRUE)","v":1},{"$f":"VLOOKUP(OFFSET($B:$B,,MATCH(O$4,$B$4:$F$4,0)-1),OFFSET('C. PoC Adj Factor Scoring'!$E$5:$J$282,,MATCH(O$4,'C. PoC Adj Factor Scoring'!$E$3:$AH$3,0)-1),MATCH(O$2&\" Score\",'C. PoC Adj Factor Scoring'!$E$4:$J$4,0),TRUE)","v":1},{"$f":"VLOOKUP(OFFSET($B:$B,,MATCH(P$4,$B$4:$F$4,0)-1),OFFSET('C. PoC Adj Factor Scoring'!$E$5:$J$282,,MATCH(P$4,'C. PoC Adj Factor Scoring'!$E$3:$AH$3,0)-1),MATCH(P$2&\" Score\",'C. PoC Adj Factor Scoring'!$E$4:$J$4,0),TRUE)","v":1},{"$f":"VLOOKUP(OFFSET($B:$B,,MATCH(Q$4,$B$4:$F$4,0)-1),OFFSET('C. PoC Adj Factor Scoring'!$E$5:$J$282,,MATCH(Q$4,'C. PoC Adj Factor Scoring'!$E$3:$AH$3,0)-1),MATCH(Q$2&\" Score\",'C. PoC Adj Factor Scoring'!$E$4:$J$4,0),TRUE)","v":1},{"$f":"VLOOKUP(OFFSET($B:$B,,MATCH(R$4,$B$4:$F$4,0)-1),OFFSET('C. PoC Adj Factor Scoring'!$E$5:$J$282,,MATCH(R$4,'C. PoC Adj Factor Scoring'!$E$3:$AH$3,0)-1),MATCH(R$2&\" Score\",'C. PoC Adj Factor Scoring'!$E$4:$J$4,0),TRUE)","v":1},{"$f":"VLOOKUP(OFFSET($B:$B,,MATCH(S$4,$B$4:$F$4,0)-1),OFFSET('C. PoC Adj Factor Scoring'!$E$5:$J$282,,MATCH(S$4,'C. PoC Adj Factor Scoring'!$E$3:$AH$3,0)-1),MATCH(S$2&\" Score\",'C. PoC Adj Factor Scoring'!$E$4:$J$4,0),TRUE)","v":1},{"$f":"VLOOKUP(OFFSET($B:$B,,MATCH(T$4,$B$4:$F$4,0)-1),OFFSET('C. PoC Adj Factor Scoring'!$E$5:$J$282,,MATCH(T$4,'C. PoC Adj Factor Scoring'!$E$3:$AH$3,0)-1),MATCH(T$2&\" Score\",'C. PoC Adj Factor Scoring'!$E$4:$J$4,0),TRUE)","v":1},{"$f":"VLOOKUP(OFFSET($B:$B,,MATCH(U$4,$B$4:$F$4,0)-1),OFFSET('C. PoC Adj Factor Scoring'!$E$5:$J$282,,MATCH(U$4,'C. PoC Adj Factor Scoring'!$E$3:$AH$3,0)-1),MATCH(U$2&\" Score\",'C. PoC Adj Factor Scoring'!$E$4:$J$4,0),TRUE)","v":1},{"$f":"VLOOKUP(OFFSET($B:$B,,MATCH(V$4,$B$4:$F$4,0)-1),OFFSET('C. PoC Adj Factor Scoring'!$E$5:$J$282,,MATCH(V$4,'C. PoC Adj Factor Scoring'!$E$3:$AH$3,0)-1),MATCH(V$2&\" Score\",'C. PoC Adj Factor Scoring'!$E$4:$J$4,0),TRUE)","v":1},{"$f":"VLOOKUP(OFFSET($B:$B,,MATCH(W$4,$B$4:$F$4,0)-1),OFFSET('C. PoC Adj Factor Scoring'!$E$5:$J$282,,MATCH(W$4,'C. PoC Adj Factor Scoring'!$E$3:$AH$3,0)-1),MATCH(W$2&\" Score\",'C. PoC Adj Factor Scoring'!$E$4:$J$4,0),TRUE)","v":1},{"$f":"VLOOKUP(OFFSET($B:$B,,MATCH(X$4,$B$4:$F$4,0)-1),OFFSET('C. PoC Adj Factor Scoring'!$E$5:$J$282,,MATCH(X$4,'C. PoC Adj Factor Scoring'!$E$3:$AH$3,0)-1),MATCH(X$2&\" Score\",'C. PoC Adj Factor Scoring'!$E$4:$J$4,0),TRUE)","v":1},{"$f":"VLOOKUP(OFFSET($B:$B,,MATCH(Y$4,$B$4:$F$4,0)-1),OFFSET('C. PoC Adj Factor Scoring'!$E$5:$J$282,,MATCH(Y$4,'C. PoC Adj Factor Scoring'!$E$3:$AH$3,0)-1),MATCH(Y$2&\" Score\",'C. PoC Adj Factor Scoring'!$E$4:$J$4,0),TRUE)","v":1},{"$f":"VLOOKUP(OFFSET($B:$B,,MATCH(Z$4,$B$4:$F$4,0)-1),OFFSET('C. PoC Adj Factor Scoring'!$E$5:$J$282,,MATCH(Z$4,'C. PoC Adj Factor Scoring'!$E$3:$AH$3,0)-1),MATCH(Z$2&\" Score\",'C. PoC Adj Factor Scoring'!$E$4:$J$4,0),TRUE)","v":1},{"$f":"VLOOKUP(OFFSET($B:$B,,MATCH(AA$4,$B$4:$F$4,0)-1),OFFSET('C. PoC Adj Factor Scoring'!$E$5:$J$282,,MATCH(AA$4,'C. PoC Adj Factor Scoring'!$E$3:$AH$3,0)-1),MATCH(AA$2&\" Score\",'C. PoC Adj Factor Scoring'!$E$4:$J$4,0),TRUE)","v":3},{"$f":"VLOOKUP(OFFSET($B:$B,,MATCH(AB$4,$B$4:$F$4,0)-1),OFFSET('C. PoC Adj Factor Scoring'!$E$5:$J$282,,MATCH(AB$4,'C. PoC Adj Factor Scoring'!$E$3:$AH$3,0)-1),MATCH(AB$2&\" Score\",'C. PoC Adj Factor Scoring'!$E$4:$J$4,0),TRUE)","v":1},{"$f":"VLOOKUP(OFFSET($B:$B,,MATCH(AC$4,$B$4:$F$4,0)-1),OFFSET('C. PoC Adj Factor Scoring'!$E$5:$J$282,,MATCH(AC$4,'C. PoC Adj Factor Scoring'!$E$3:$AH$3,0)-1),MATCH(AC$2&\" Score\",'C. PoC Adj Factor Scoring'!$E$4:$J$4,0),TRUE)","v":1},{"$f":"VLOOKUP(OFFSET($B:$B,,MATCH(AD$4,$B$4:$F$4,0)-1),OFFSET('C. PoC Adj Factor Scoring'!$E$5:$J$282,,MATCH(AD$4,'C. PoC Adj Factor Scoring'!$E$3:$AH$3,0)-1),MATCH(AD$2&\" Score\",'C. PoC Adj Factor Scoring'!$E$4:$J$4,0),TRUE)","v":1},{"$f":"VLOOKUP(OFFSET($B:$B,,MATCH(AE$4,$B$4:$F$4,0)-1),OFFSET('C. PoC Adj Factor Scoring'!$E$5:$J$282,,MATCH(AE$4,'C. PoC Adj Factor Scoring'!$E$3:$AH$3,0)-1),MATCH(AE$2&\" Score\",'C. PoC Adj Factor Scoring'!$E$4:$J$4,0),TRUE)","v":1}]
[{"$f":"'A. Population Info'!A75","v":1000328647},{"$f":"'A. Population Info'!L75","v":"OIL"},{"$f":"'A. Population Info'!M75","v":0},{"$f":"'A. Population Info'!N75","v":0},{"$f":"'A. Population Info'!O75","v":0},{"$f":"'A. Population Info'!P75","v":0},{"$f":"VLOOKUP(OFFSET($B:$B,,MATCH(G$4,$B$4:$F$4,0)-1),OFFSET('C. PoC Adj Factor Scoring'!$E$5:$J$282,,MATCH(G$4,'C. PoC Adj Factor Scoring'!$E$3:$AH$3,0)-1),MATCH(G$2&\" Score\",'C. PoC Adj Factor Scoring'!$E$4:$J$4,0),TRUE)","v":4},{"$f":"VLOOKUP(OFFSET($B:$B,,MATCH(H$4,$B$4:$F$4,0)-1),OFFSET('C. PoC Adj Factor Scoring'!$E$5:$J$282,,MATCH(H$4,'C. PoC Adj Factor Scoring'!$E$3:$AH$3,0)-1),MATCH(H$2&\" Score\",'C. PoC Adj Factor Scoring'!$E$4:$J$4,0),TRUE)","v":1},{"$f":"VLOOKUP(OFFSET($B:$B,,MATCH(I$4,$B$4:$F$4,0)-1),OFFSET('C. PoC Adj Factor Scoring'!$E$5:$J$282,,MATCH(I$4,'C. PoC Adj Factor Scoring'!$E$3:$AH$3,0)-1),MATCH(I$2&\" Score\",'C. PoC Adj Factor Scoring'!$E$4:$J$4,0),TRUE)","v":1},{"$f":"VLOOKUP(OFFSET($B:$B,,MATCH(J$4,$B$4:$F$4,0)-1),OFFSET('C. PoC Adj Factor Scoring'!$E$5:$J$282,,MATCH(J$4,'C. PoC Adj Factor Scoring'!$E$3:$AH$3,0)-1),MATCH(J$2&\" Score\",'C. PoC Adj Factor Scoring'!$E$4:$J$4,0),TRUE)","v":1},{"$f":"VLOOKUP(OFFSET($B:$B,,MATCH(K$4,$B$4:$F$4,0)-1),OFFSET('C. PoC Adj Factor Scoring'!$E$5:$J$282,,MATCH(K$4,'C. PoC Adj Factor Scoring'!$E$3:$AH$3,0)-1),MATCH(K$2&\" Score\",'C. PoC Adj Factor Scoring'!$E$4:$J$4,0),TRUE)","v":1},{"$f":"VLOOKUP(OFFSET($B:$B,,MATCH(L$4,$B$4:$F$4,0)-1),OFFSET('C. PoC Adj Factor Scoring'!$E$5:$J$282,,MATCH(L$4,'C. PoC Adj Factor Scoring'!$E$3:$AH$3,0)-1),MATCH(L$2&\" Score\",'C. PoC Adj Factor Scoring'!$E$4:$J$4,0),TRUE)","v":1},{"$f":"VLOOKUP(OFFSET($B:$B,,MATCH(M$4,$B$4:$F$4,0)-1),OFFSET('C. PoC Adj Factor Scoring'!$E$5:$J$282,,MATCH(M$4,'C. PoC Adj Factor Scoring'!$E$3:$AH$3,0)-1),MATCH(M$2&\" Score\",'C. PoC Adj Factor Scoring'!$E$4:$J$4,0),TRUE)","v":1},{"$f":"VLOOKUP(OFFSET($B:$B,,MATCH(N$4,$B$4:$F$4,0)-1),OFFSET('C. PoC Adj Factor Scoring'!$E$5:$J$282,,MATCH(N$4,'C. PoC Adj Factor Scoring'!$E$3:$AH$3,0)-1),MATCH(N$2&\" Score\",'C. PoC Adj Factor Scoring'!$E$4:$J$4,0),TRUE)","v":1},{"$f":"VLOOKUP(OFFSET($B:$B,,MATCH(O$4,$B$4:$F$4,0)-1),OFFSET('C. PoC Adj Factor Scoring'!$E$5:$J$282,,MATCH(O$4,'C. PoC Adj Factor Scoring'!$E$3:$AH$3,0)-1),MATCH(O$2&\" Score\",'C. PoC Adj Factor Scoring'!$E$4:$J$4,0),TRUE)","v":1},{"$f":"VLOOKUP(OFFSET($B:$B,,MATCH(P$4,$B$4:$F$4,0)-1),OFFSET('C. PoC Adj Factor Scoring'!$E$5:$J$282,,MATCH(P$4,'C. PoC Adj Factor Scoring'!$E$3:$AH$3,0)-1),MATCH(P$2&\" Score\",'C. PoC Adj Factor Scoring'!$E$4:$J$4,0),TRUE)","v":1},{"$f":"VLOOKUP(OFFSET($B:$B,,MATCH(Q$4,$B$4:$F$4,0)-1),OFFSET('C. PoC Adj Factor Scoring'!$E$5:$J$282,,MATCH(Q$4,'C. PoC Adj Factor Scoring'!$E$3:$AH$3,0)-1),MATCH(Q$2&\" Score\",'C. PoC Adj Factor Scoring'!$E$4:$J$4,0),TRUE)","v":1},{"$f":"VLOOKUP(OFFSET($B:$B,,MATCH(R$4,$B$4:$F$4,0)-1),OFFSET('C. PoC Adj Factor Scoring'!$E$5:$J$282,,MATCH(R$4,'C. PoC Adj Factor Scoring'!$E$3:$AH$3,0)-1),MATCH(R$2&\" Score\",'C. PoC Adj Factor Scoring'!$E$4:$J$4,0),TRUE)","v":1},{"$f":"VLOOKUP(OFFSET($B:$B,,MATCH(S$4,$B$4:$F$4,0)-1),OFFSET('C. PoC Adj Factor Scoring'!$E$5:$J$282,,MATCH(S$4,'C. PoC Adj Factor Scoring'!$E$3:$AH$3,0)-1),MATCH(S$2&\" Score\",'C. PoC Adj Factor Scoring'!$E$4:$J$4,0),TRUE)","v":1},{"$f":"VLOOKUP(OFFSET($B:$B,,MATCH(T$4,$B$4:$F$4,0)-1),OFFSET('C. PoC Adj Factor Scoring'!$E$5:$J$282,,MATCH(T$4,'C. PoC Adj Factor Scoring'!$E$3:$AH$3,0)-1),MATCH(T$2&\" Score\",'C. PoC Adj Factor Scoring'!$E$4:$J$4,0),TRUE)","v":1},{"$f":"VLOOKUP(OFFSET($B:$B,,MATCH(U$4,$B$4:$F$4,0)-1),OFFSET('C. PoC Adj Factor Scoring'!$E$5:$J$282,,MATCH(U$4,'C. PoC Adj Factor Scoring'!$E$3:$AH$3,0)-1),MATCH(U$2&\" Score\",'C. PoC Adj Factor Scoring'!$E$4:$J$4,0),TRUE)","v":1},{"$f":"VLOOKUP(OFFSET($B:$B,,MATCH(V$4,$B$4:$F$4,0)-1),OFFSET('C. PoC Adj Factor Scoring'!$E$5:$J$282,,MATCH(V$4,'C. PoC Adj Factor Scoring'!$E$3:$AH$3,0)-1),MATCH(V$2&\" Score\",'C. PoC Adj Factor Scoring'!$E$4:$J$4,0),TRUE)","v":1},{"$f":"VLOOKUP(OFFSET($B:$B,,MATCH(W$4,$B$4:$F$4,0)-1),OFFSET('C. PoC Adj Factor Scoring'!$E$5:$J$282,,MATCH(W$4,'C. PoC Adj Factor Scoring'!$E$3:$AH$3,0)-1),MATCH(W$2&\" Score\",'C. PoC Adj Factor Scoring'!$E$4:$J$4,0),TRUE)","v":1},{"$f":"VLOOKUP(OFFSET($B:$B,,MATCH(X$4,$B$4:$F$4,0)-1),OFFSET('C. PoC Adj Factor Scoring'!$E$5:$J$282,,MATCH(X$4,'C. PoC Adj Factor Scoring'!$E$3:$AH$3,0)-1),MATCH(X$2&\" Score\",'C. PoC Adj Factor Scoring'!$E$4:$J$4,0),TRUE)","v":1},{"$f":"VLOOKUP(OFFSET($B:$B,,MATCH(Y$4,$B$4:$F$4,0)-1),OFFSET('C. PoC Adj Factor Scoring'!$E$5:$J$282,,MATCH(Y$4,'C. PoC Adj Factor Scoring'!$E$3:$AH$3,0)-1),MATCH(Y$2&\" Score\",'C. PoC Adj Factor Scoring'!$E$4:$J$4,0),TRUE)","v":1},{"$f":"VLOOKUP(OFFSET($B:$B,,MATCH(Z$4,$B$4:$F$4,0)-1),OFFSET('C. PoC Adj Factor Scoring'!$E$5:$J$282,,MATCH(Z$4,'C. PoC Adj Factor Scoring'!$E$3:$AH$3,0)-1),MATCH(Z$2&\" Score\",'C. PoC Adj Factor Scoring'!$E$4:$J$4,0),TRUE)","v":1},{"$f":"VLOOKUP(OFFSET($B:$B,,MATCH(AA$4,$B$4:$F$4,0)-1),OFFSET('C. PoC Adj Factor Scoring'!$E$5:$J$282,,MATCH(AA$4,'C. PoC Adj Factor Scoring'!$E$3:$AH$3,0)-1),MATCH(AA$2&\" Score\",'C. PoC Adj Factor Scoring'!$E$4:$J$4,0),TRUE)","v":3},{"$f":"VLOOKUP(OFFSET($B:$B,,MATCH(AB$4,$B$4:$F$4,0)-1),OFFSET('C. PoC Adj Factor Scoring'!$E$5:$J$282,,MATCH(AB$4,'C. PoC Adj Factor Scoring'!$E$3:$AH$3,0)-1),MATCH(AB$2&\" Score\",'C. PoC Adj Factor Scoring'!$E$4:$J$4,0),TRUE)","v":1},{"$f":"VLOOKUP(OFFSET($B:$B,,MATCH(AC$4,$B$4:$F$4,0)-1),OFFSET('C. PoC Adj Factor Scoring'!$E$5:$J$282,,MATCH(AC$4,'C. PoC Adj Factor Scoring'!$E$3:$AH$3,0)-1),MATCH(AC$2&\" Score\",'C. PoC Adj Factor Scoring'!$E$4:$J$4,0),TRUE)","v":1},{"$f":"VLOOKUP(OFFSET($B:$B,,MATCH(AD$4,$B$4:$F$4,0)-1),OFFSET('C. PoC Adj Factor Scoring'!$E$5:$J$282,,MATCH(AD$4,'C. PoC Adj Factor Scoring'!$E$3:$AH$3,0)-1),MATCH(AD$2&\" Score\",'C. PoC Adj Factor Scoring'!$E$4:$J$4,0),TRUE)","v":1},{"$f":"VLOOKUP(OFFSET($B:$B,,MATCH(AE$4,$B$4:$F$4,0)-1),OFFSET('C. PoC Adj Factor Scoring'!$E$5:$J$282,,MATCH(AE$4,'C. PoC Adj Factor Scoring'!$E$3:$AH$3,0)-1),MATCH(AE$2&\" Score\",'C. PoC Adj Factor Scoring'!$E$4:$J$4,0),TRUE)","v":1}]
[{"$f":"'A. Population Info'!A76","v":1000328676},{"$f":"'A. Population Info'!L76","v":"OIL"},{"$f":"'A. Population Info'!M76","v":0},{"$f":"'A. Population Info'!N76","v":0},{"$f":"'A. Population Info'!O76","v":0},{"$f":"'A. Population Info'!P76","v":0},{"$f":"VLOOKUP(OFFSET($B:$B,,MATCH(G$4,$B$4:$F$4,0)-1),OFFSET('C. PoC Adj Factor Scoring'!$E$5:$J$282,,MATCH(G$4,'C. PoC Adj Factor Scoring'!$E$3:$AH$3,0)-1),MATCH(G$2&\" Score\",'C. PoC Adj Factor Scoring'!$E$4:$J$4,0),TRUE)","v":4},{"$f":"VLOOKUP(OFFSET($B:$B,,MATCH(H$4,$B$4:$F$4,0)-1),OFFSET('C. PoC Adj Factor Scoring'!$E$5:$J$282,,MATCH(H$4,'C. PoC Adj Factor Scoring'!$E$3:$AH$3,0)-1),MATCH(H$2&\" Score\",'C. PoC Adj Factor Scoring'!$E$4:$J$4,0),TRUE)","v":1},{"$f":"VLOOKUP(OFFSET($B:$B,,MATCH(I$4,$B$4:$F$4,0)-1),OFFSET('C. PoC Adj Factor Scoring'!$E$5:$J$282,,MATCH(I$4,'C. PoC Adj Factor Scoring'!$E$3:$AH$3,0)-1),MATCH(I$2&\" Score\",'C. PoC Adj Factor Scoring'!$E$4:$J$4,0),TRUE)","v":1},{"$f":"VLOOKUP(OFFSET($B:$B,,MATCH(J$4,$B$4:$F$4,0)-1),OFFSET('C. PoC Adj Factor Scoring'!$E$5:$J$282,,MATCH(J$4,'C. PoC Adj Factor Scoring'!$E$3:$AH$3,0)-1),MATCH(J$2&\" Score\",'C. PoC Adj Factor Scoring'!$E$4:$J$4,0),TRUE)","v":1},{"$f":"VLOOKUP(OFFSET($B:$B,,MATCH(K$4,$B$4:$F$4,0)-1),OFFSET('C. PoC Adj Factor Scoring'!$E$5:$J$282,,MATCH(K$4,'C. PoC Adj Factor Scoring'!$E$3:$AH$3,0)-1),MATCH(K$2&\" Score\",'C. PoC Adj Factor Scoring'!$E$4:$J$4,0),TRUE)","v":1},{"$f":"VLOOKUP(OFFSET($B:$B,,MATCH(L$4,$B$4:$F$4,0)-1),OFFSET('C. PoC Adj Factor Scoring'!$E$5:$J$282,,MATCH(L$4,'C. PoC Adj Factor Scoring'!$E$3:$AH$3,0)-1),MATCH(L$2&\" Score\",'C. PoC Adj Factor Scoring'!$E$4:$J$4,0),TRUE)","v":1},{"$f":"VLOOKUP(OFFSET($B:$B,,MATCH(M$4,$B$4:$F$4,0)-1),OFFSET('C. PoC Adj Factor Scoring'!$E$5:$J$282,,MATCH(M$4,'C. PoC Adj Factor Scoring'!$E$3:$AH$3,0)-1),MATCH(M$2&\" Score\",'C. PoC Adj Factor Scoring'!$E$4:$J$4,0),TRUE)","v":1},{"$f":"VLOOKUP(OFFSET($B:$B,,MATCH(N$4,$B$4:$F$4,0)-1),OFFSET('C. PoC Adj Factor Scoring'!$E$5:$J$282,,MATCH(N$4,'C. PoC Adj Factor Scoring'!$E$3:$AH$3,0)-1),MATCH(N$2&\" Score\",'C. PoC Adj Factor Scoring'!$E$4:$J$4,0),TRUE)","v":1},{"$f":"VLOOKUP(OFFSET($B:$B,,MATCH(O$4,$B$4:$F$4,0)-1),OFFSET('C. PoC Adj Factor Scoring'!$E$5:$J$282,,MATCH(O$4,'C. PoC Adj Factor Scoring'!$E$3:$AH$3,0)-1),MATCH(O$2&\" Score\",'C. PoC Adj Factor Scoring'!$E$4:$J$4,0),TRUE)","v":1},{"$f":"VLOOKUP(OFFSET($B:$B,,MATCH(P$4,$B$4:$F$4,0)-1),OFFSET('C. PoC Adj Factor Scoring'!$E$5:$J$282,,MATCH(P$4,'C. PoC Adj Factor Scoring'!$E$3:$AH$3,0)-1),MATCH(P$2&\" Score\",'C. PoC Adj Factor Scoring'!$E$4:$J$4,0),TRUE)","v":1},{"$f":"VLOOKUP(OFFSET($B:$B,,MATCH(Q$4,$B$4:$F$4,0)-1),OFFSET('C. PoC Adj Factor Scoring'!$E$5:$J$282,,MATCH(Q$4,'C. PoC Adj Factor Scoring'!$E$3:$AH$3,0)-1),MATCH(Q$2&\" Score\",'C. PoC Adj Factor Scoring'!$E$4:$J$4,0),TRUE)","v":1},{"$f":"VLOOKUP(OFFSET($B:$B,,MATCH(R$4,$B$4:$F$4,0)-1),OFFSET('C. PoC Adj Factor Scoring'!$E$5:$J$282,,MATCH(R$4,'C. PoC Adj Factor Scoring'!$E$3:$AH$3,0)-1),MATCH(R$2&\" Score\",'C. PoC Adj Factor Scoring'!$E$4:$J$4,0),TRUE)","v":1},{"$f":"VLOOKUP(OFFSET($B:$B,,MATCH(S$4,$B$4:$F$4,0)-1),OFFSET('C. PoC Adj Factor Scoring'!$E$5:$J$282,,MATCH(S$4,'C. PoC Adj Factor Scoring'!$E$3:$AH$3,0)-1),MATCH(S$2&\" Score\",'C. PoC Adj Factor Scoring'!$E$4:$J$4,0),TRUE)","v":1},{"$f":"VLOOKUP(OFFSET($B:$B,,MATCH(T$4,$B$4:$F$4,0)-1),OFFSET('C. PoC Adj Factor Scoring'!$E$5:$J$282,,MATCH(T$4,'C. PoC Adj Factor Scoring'!$E$3:$AH$3,0)-1),MATCH(T$2&\" Score\",'C. PoC Adj Factor Scoring'!$E$4:$J$4,0),TRUE)","v":1},{"$f":"VLOOKUP(OFFSET($B:$B,,MATCH(U$4,$B$4:$F$4,0)-1),OFFSET('C. PoC Adj Factor Scoring'!$E$5:$J$282,,MATCH(U$4,'C. PoC Adj Factor Scoring'!$E$3:$AH$3,0)-1),MATCH(U$2&\" Score\",'C. PoC Adj Factor Scoring'!$E$4:$J$4,0),TRUE)","v":1},{"$f":"VLOOKUP(OFFSET($B:$B,,MATCH(V$4,$B$4:$F$4,0)-1),OFFSET('C. PoC Adj Factor Scoring'!$E$5:$J$282,,MATCH(V$4,'C. PoC Adj Factor Scoring'!$E$3:$AH$3,0)-1),MATCH(V$2&\" Score\",'C. PoC Adj Factor Scoring'!$E$4:$J$4,0),TRUE)","v":1},{"$f":"VLOOKUP(OFFSET($B:$B,,MATCH(W$4,$B$4:$F$4,0)-1),OFFSET('C. PoC Adj Factor Scoring'!$E$5:$J$282,,MATCH(W$4,'C. PoC Adj Factor Scoring'!$E$3:$AH$3,0)-1),MATCH(W$2&\" Score\",'C. PoC Adj Factor Scoring'!$E$4:$J$4,0),TRUE)","v":1},{"$f":"VLOOKUP(OFFSET($B:$B,,MATCH(X$4,$B$4:$F$4,0)-1),OFFSET('C. PoC Adj Factor Scoring'!$E$5:$J$282,,MATCH(X$4,'C. PoC Adj Factor Scoring'!$E$3:$AH$3,0)-1),MATCH(X$2&\" Score\",'C. PoC Adj Factor Scoring'!$E$4:$J$4,0),TRUE)","v":1},{"$f":"VLOOKUP(OFFSET($B:$B,,MATCH(Y$4,$B$4:$F$4,0)-1),OFFSET('C. PoC Adj Factor Scoring'!$E$5:$J$282,,MATCH(Y$4,'C. PoC Adj Factor Scoring'!$E$3:$AH$3,0)-1),MATCH(Y$2&\" Score\",'C. PoC Adj Factor Scoring'!$E$4:$J$4,0),TRUE)","v":1},{"$f":"VLOOKUP(OFFSET($B:$B,,MATCH(Z$4,$B$4:$F$4,0)-1),OFFSET('C. PoC Adj Factor Scoring'!$E$5:$J$282,,MATCH(Z$4,'C. PoC Adj Factor Scoring'!$E$3:$AH$3,0)-1),MATCH(Z$2&\" Score\",'C. PoC Adj Factor Scoring'!$E$4:$J$4,0),TRUE)","v":1},{"$f":"VLOOKUP(OFFSET($B:$B,,MATCH(AA$4,$B$4:$F$4,0)-1),OFFSET('C. PoC Adj Factor Scoring'!$E$5:$J$282,,MATCH(AA$4,'C. PoC Adj Factor Scoring'!$E$3:$AH$3,0)-1),MATCH(AA$2&\" Score\",'C. PoC Adj Factor Scoring'!$E$4:$J$4,0),TRUE)","v":3},{"$f":"VLOOKUP(OFFSET($B:$B,,MATCH(AB$4,$B$4:$F$4,0)-1),OFFSET('C. PoC Adj Factor Scoring'!$E$5:$J$282,,MATCH(AB$4,'C. PoC Adj Factor Scoring'!$E$3:$AH$3,0)-1),MATCH(AB$2&\" Score\",'C. PoC Adj Factor Scoring'!$E$4:$J$4,0),TRUE)","v":1},{"$f":"VLOOKUP(OFFSET($B:$B,,MATCH(AC$4,$B$4:$F$4,0)-1),OFFSET('C. PoC Adj Factor Scoring'!$E$5:$J$282,,MATCH(AC$4,'C. PoC Adj Factor Scoring'!$E$3:$AH$3,0)-1),MATCH(AC$2&\" Score\",'C. PoC Adj Factor Scoring'!$E$4:$J$4,0),TRUE)","v":1},{"$f":"VLOOKUP(OFFSET($B:$B,,MATCH(AD$4,$B$4:$F$4,0)-1),OFFSET('C. PoC Adj Factor Scoring'!$E$5:$J$282,,MATCH(AD$4,'C. PoC Adj Factor Scoring'!$E$3:$AH$3,0)-1),MATCH(AD$2&\" Score\",'C. PoC Adj Factor Scoring'!$E$4:$J$4,0),TRUE)","v":1},{"$f":"VLOOKUP(OFFSET($B:$B,,MATCH(AE$4,$B$4:$F$4,0)-1),OFFSET('C. PoC Adj Factor Scoring'!$E$5:$J$282,,MATCH(AE$4,'C. PoC Adj Factor Scoring'!$E$3:$AH$3,0)-1),MATCH(AE$2&\" Score\",'C. PoC Adj Factor Scoring'!$E$4:$J$4,0),TRUE)","v":1}]
[{"$f":"'A. Population Info'!A77","v":1000328766},{"$f":"'A. Population Info'!L77","v":"OIL"},{"$f":"'A. Population Info'!M77","v":0},{"$f":"'A. Population Info'!N77","v":0},{"$f":"'A. Population Info'!O77","v":0},{"$f":"'A. Population Info'!P77","v":0},{"$f":"VLOOKUP(OFFSET($B:$B,,MATCH(G$4,$B$4:$F$4,0)-1),OFFSET('C. PoC Adj Factor Scoring'!$E$5:$J$282,,MATCH(G$4,'C. PoC Adj Factor Scoring'!$E$3:$AH$3,0)-1),MATCH(G$2&\" Score\",'C. PoC Adj Factor Scoring'!$E$4:$J$4,0),TRUE)","v":4},{"$f":"VLOOKUP(OFFSET($B:$B,,MATCH(H$4,$B$4:$F$4,0)-1),OFFSET('C. PoC Adj Factor Scoring'!$E$5:$J$282,,MATCH(H$4,'C. PoC Adj Factor Scoring'!$E$3:$AH$3,0)-1),MATCH(H$2&\" Score\",'C. PoC Adj Factor Scoring'!$E$4:$J$4,0),TRUE)","v":1},{"$f":"VLOOKUP(OFFSET($B:$B,,MATCH(I$4,$B$4:$F$4,0)-1),OFFSET('C. PoC Adj Factor Scoring'!$E$5:$J$282,,MATCH(I$4,'C. PoC Adj Factor Scoring'!$E$3:$AH$3,0)-1),MATCH(I$2&\" Score\",'C. PoC Adj Factor Scoring'!$E$4:$J$4,0),TRUE)","v":1},{"$f":"VLOOKUP(OFFSET($B:$B,,MATCH(J$4,$B$4:$F$4,0)-1),OFFSET('C. PoC Adj Factor Scoring'!$E$5:$J$282,,MATCH(J$4,'C. PoC Adj Factor Scoring'!$E$3:$AH$3,0)-1),MATCH(J$2&\" Score\",'C. PoC Adj Factor Scoring'!$E$4:$J$4,0),TRUE)","v":1},{"$f":"VLOOKUP(OFFSET($B:$B,,MATCH(K$4,$B$4:$F$4,0)-1),OFFSET('C. PoC Adj Factor Scoring'!$E$5:$J$282,,MATCH(K$4,'C. PoC Adj Factor Scoring'!$E$3:$AH$3,0)-1),MATCH(K$2&\" Score\",'C. PoC Adj Factor Scoring'!$E$4:$J$4,0),TRUE)","v":1},{"$f":"VLOOKUP(OFFSET($B:$B,,MATCH(L$4,$B$4:$F$4,0)-1),OFFSET('C. PoC Adj Factor Scoring'!$E$5:$J$282,,MATCH(L$4,'C. PoC Adj Factor Scoring'!$E$3:$AH$3,0)-1),MATCH(L$2&\" Score\",'C. PoC Adj Factor Scoring'!$E$4:$J$4,0),TRUE)","v":1},{"$f":"VLOOKUP(OFFSET($B:$B,,MATCH(M$4,$B$4:$F$4,0)-1),OFFSET('C. PoC Adj Factor Scoring'!$E$5:$J$282,,MATCH(M$4,'C. PoC Adj Factor Scoring'!$E$3:$AH$3,0)-1),MATCH(M$2&\" Score\",'C. PoC Adj Factor Scoring'!$E$4:$J$4,0),TRUE)","v":1},{"$f":"VLOOKUP(OFFSET($B:$B,,MATCH(N$4,$B$4:$F$4,0)-1),OFFSET('C. PoC Adj Factor Scoring'!$E$5:$J$282,,MATCH(N$4,'C. PoC Adj Factor Scoring'!$E$3:$AH$3,0)-1),MATCH(N$2&\" Score\",'C. PoC Adj Factor Scoring'!$E$4:$J$4,0),TRUE)","v":1},{"$f":"VLOOKUP(OFFSET($B:$B,,MATCH(O$4,$B$4:$F$4,0)-1),OFFSET('C. PoC Adj Factor Scoring'!$E$5:$J$282,,MATCH(O$4,'C. PoC Adj Factor Scoring'!$E$3:$AH$3,0)-1),MATCH(O$2&\" Score\",'C. PoC Adj Factor Scoring'!$E$4:$J$4,0),TRUE)","v":1},{"$f":"VLOOKUP(OFFSET($B:$B,,MATCH(P$4,$B$4:$F$4,0)-1),OFFSET('C. PoC Adj Factor Scoring'!$E$5:$J$282,,MATCH(P$4,'C. PoC Adj Factor Scoring'!$E$3:$AH$3,0)-1),MATCH(P$2&\" Score\",'C. PoC Adj Factor Scoring'!$E$4:$J$4,0),TRUE)","v":1},{"$f":"VLOOKUP(OFFSET($B:$B,,MATCH(Q$4,$B$4:$F$4,0)-1),OFFSET('C. PoC Adj Factor Scoring'!$E$5:$J$282,,MATCH(Q$4,'C. PoC Adj Factor Scoring'!$E$3:$AH$3,0)-1),MATCH(Q$2&\" Score\",'C. PoC Adj Factor Scoring'!$E$4:$J$4,0),TRUE)","v":1},{"$f":"VLOOKUP(OFFSET($B:$B,,MATCH(R$4,$B$4:$F$4,0)-1),OFFSET('C. PoC Adj Factor Scoring'!$E$5:$J$282,,MATCH(R$4,'C. PoC Adj Factor Scoring'!$E$3:$AH$3,0)-1),MATCH(R$2&\" Score\",'C. PoC Adj Factor Scoring'!$E$4:$J$4,0),TRUE)","v":1},{"$f":"VLOOKUP(OFFSET($B:$B,,MATCH(S$4,$B$4:$F$4,0)-1),OFFSET('C. PoC Adj Factor Scoring'!$E$5:$J$282,,MATCH(S$4,'C. PoC Adj Factor Scoring'!$E$3:$AH$3,0)-1),MATCH(S$2&\" Score\",'C. PoC Adj Factor Scoring'!$E$4:$J$4,0),TRUE)","v":1},{"$f":"VLOOKUP(OFFSET($B:$B,,MATCH(T$4,$B$4:$F$4,0)-1),OFFSET('C. PoC Adj Factor Scoring'!$E$5:$J$282,,MATCH(T$4,'C. PoC Adj Factor Scoring'!$E$3:$AH$3,0)-1),MATCH(T$2&\" Score\",'C. PoC Adj Factor Scoring'!$E$4:$J$4,0),TRUE)","v":1},{"$f":"VLOOKUP(OFFSET($B:$B,,MATCH(U$4,$B$4:$F$4,0)-1),OFFSET('C. PoC Adj Factor Scoring'!$E$5:$J$282,,MATCH(U$4,'C. PoC Adj Factor Scoring'!$E$3:$AH$3,0)-1),MATCH(U$2&\" Score\",'C. PoC Adj Factor Scoring'!$E$4:$J$4,0),TRUE)","v":1},{"$f":"VLOOKUP(OFFSET($B:$B,,MATCH(V$4,$B$4:$F$4,0)-1),OFFSET('C. PoC Adj Factor Scoring'!$E$5:$J$282,,MATCH(V$4,'C. PoC Adj Factor Scoring'!$E$3:$AH$3,0)-1),MATCH(V$2&\" Score\",'C. PoC Adj Factor Scoring'!$E$4:$J$4,0),TRUE)","v":1},{"$f":"VLOOKUP(OFFSET($B:$B,,MATCH(W$4,$B$4:$F$4,0)-1),OFFSET('C. PoC Adj Factor Scoring'!$E$5:$J$282,,MATCH(W$4,'C. PoC Adj Factor Scoring'!$E$3:$AH$3,0)-1),MATCH(W$2&\" Score\",'C. PoC Adj Factor Scoring'!$E$4:$J$4,0),TRUE)","v":1},{"$f":"VLOOKUP(OFFSET($B:$B,,MATCH(X$4,$B$4:$F$4,0)-1),OFFSET('C. PoC Adj Factor Scoring'!$E$5:$J$282,,MATCH(X$4,'C. PoC Adj Factor Scoring'!$E$3:$AH$3,0)-1),MATCH(X$2&\" Score\",'C. PoC Adj Factor Scoring'!$E$4:$J$4,0),TRUE)","v":1},{"$f":"VLOOKUP(OFFSET($B:$B,,MATCH(Y$4,$B$4:$F$4,0)-1),OFFSET('C. PoC Adj Factor Scoring'!$E$5:$J$282,,MATCH(Y$4,'C. PoC Adj Factor Scoring'!$E$3:$AH$3,0)-1),MATCH(Y$2&\" Score\",'C. PoC Adj Factor Scoring'!$E$4:$J$4,0),TRUE)","v":1},{"$f":"VLOOKUP(OFFSET($B:$B,,MATCH(Z$4,$B$4:$F$4,0)-1),OFFSET('C. PoC Adj Factor Scoring'!$E$5:$J$282,,MATCH(Z$4,'C. PoC Adj Factor Scoring'!$E$3:$AH$3,0)-1),MATCH(Z$2&\" Score\",'C. PoC Adj Factor Scoring'!$E$4:$J$4,0),TRUE)","v":1},{"$f":"VLOOKUP(OFFSET($B:$B,,MATCH(AA$4,$B$4:$F$4,0)-1),OFFSET('C. PoC Adj Factor Scoring'!$E$5:$J$282,,MATCH(AA$4,'C. PoC Adj Factor Scoring'!$E$3:$AH$3,0)-1),MATCH(AA$2&\" Score\",'C. PoC Adj Factor Scoring'!$E$4:$J$4,0),TRUE)","v":3},{"$f":"VLOOKUP(OFFSET($B:$B,,MATCH(AB$4,$B$4:$F$4,0)-1),OFFSET('C. PoC Adj Factor Scoring'!$E$5:$J$282,,MATCH(AB$4,'C. PoC Adj Factor Scoring'!$E$3:$AH$3,0)-1),MATCH(AB$2&\" Score\",'C. PoC Adj Factor Scoring'!$E$4:$J$4,0),TRUE)","v":1},{"$f":"VLOOKUP(OFFSET($B:$B,,MATCH(AC$4,$B$4:$F$4,0)-1),OFFSET('C. PoC Adj Factor Scoring'!$E$5:$J$282,,MATCH(AC$4,'C. PoC Adj Factor Scoring'!$E$3:$AH$3,0)-1),MATCH(AC$2&\" Score\",'C. PoC Adj Factor Scoring'!$E$4:$J$4,0),TRUE)","v":1},{"$f":"VLOOKUP(OFFSET($B:$B,,MATCH(AD$4,$B$4:$F$4,0)-1),OFFSET('C. PoC Adj Factor Scoring'!$E$5:$J$282,,MATCH(AD$4,'C. PoC Adj Factor Scoring'!$E$3:$AH$3,0)-1),MATCH(AD$2&\" Score\",'C. PoC Adj Factor Scoring'!$E$4:$J$4,0),TRUE)","v":1},{"$f":"VLOOKUP(OFFSET($B:$B,,MATCH(AE$4,$B$4:$F$4,0)-1),OFFSET('C. PoC Adj Factor Scoring'!$E$5:$J$282,,MATCH(AE$4,'C. PoC Adj Factor Scoring'!$E$3:$AH$3,0)-1),MATCH(AE$2&\" Score\",'C. PoC Adj Factor Scoring'!$E$4:$J$4,0),TRUE)","v":1}]
[{"$f":"'A. Population Info'!A78","v":1000328796},{"$f":"'A. Population Info'!L78","v":"OIL"},{"$f":"'A. Population Info'!M78","v":0},{"$f":"'A. Population Info'!N78","v":0},{"$f":"'A. Population Info'!O78","v":0},{"$f":"'A. Population Info'!P78","v":0},{"$f":"VLOOKUP(OFFSET($B:$B,,MATCH(G$4,$B$4:$F$4,0)-1),OFFSET('C. PoC Adj Factor Scoring'!$E$5:$J$282,,MATCH(G$4,'C. PoC Adj Factor Scoring'!$E$3:$AH$3,0)-1),MATCH(G$2&\" Score\",'C. PoC Adj Factor Scoring'!$E$4:$J$4,0),TRUE)","v":4},{"$f":"VLOOKUP(OFFSET($B:$B,,MATCH(H$4,$B$4:$F$4,0)-1),OFFSET('C. PoC Adj Factor Scoring'!$E$5:$J$282,,MATCH(H$4,'C. PoC Adj Factor Scoring'!$E$3:$AH$3,0)-1),MATCH(H$2&\" Score\",'C. PoC Adj Factor Scoring'!$E$4:$J$4,0),TRUE)","v":1},{"$f":"VLOOKUP(OFFSET($B:$B,,MATCH(I$4,$B$4:$F$4,0)-1),OFFSET('C. PoC Adj Factor Scoring'!$E$5:$J$282,,MATCH(I$4,'C. PoC Adj Factor Scoring'!$E$3:$AH$3,0)-1),MATCH(I$2&\" Score\",'C. PoC Adj Factor Scoring'!$E$4:$J$4,0),TRUE)","v":1},{"$f":"VLOOKUP(OFFSET($B:$B,,MATCH(J$4,$B$4:$F$4,0)-1),OFFSET('C. PoC Adj Factor Scoring'!$E$5:$J$282,,MATCH(J$4,'C. PoC Adj Factor Scoring'!$E$3:$AH$3,0)-1),MATCH(J$2&\" Score\",'C. PoC Adj Factor Scoring'!$E$4:$J$4,0),TRUE)","v":1},{"$f":"VLOOKUP(OFFSET($B:$B,,MATCH(K$4,$B$4:$F$4,0)-1),OFFSET('C. PoC Adj Factor Scoring'!$E$5:$J$282,,MATCH(K$4,'C. PoC Adj Factor Scoring'!$E$3:$AH$3,0)-1),MATCH(K$2&\" Score\",'C. PoC Adj Factor Scoring'!$E$4:$J$4,0),TRUE)","v":1},{"$f":"VLOOKUP(OFFSET($B:$B,,MATCH(L$4,$B$4:$F$4,0)-1),OFFSET('C. PoC Adj Factor Scoring'!$E$5:$J$282,,MATCH(L$4,'C. PoC Adj Factor Scoring'!$E$3:$AH$3,0)-1),MATCH(L$2&\" Score\",'C. PoC Adj Factor Scoring'!$E$4:$J$4,0),TRUE)","v":1},{"$f":"VLOOKUP(OFFSET($B:$B,,MATCH(M$4,$B$4:$F$4,0)-1),OFFSET('C. PoC Adj Factor Scoring'!$E$5:$J$282,,MATCH(M$4,'C. PoC Adj Factor Scoring'!$E$3:$AH$3,0)-1),MATCH(M$2&\" Score\",'C. PoC Adj Factor Scoring'!$E$4:$J$4,0),TRUE)","v":1},{"$f":"VLOOKUP(OFFSET($B:$B,,MATCH(N$4,$B$4:$F$4,0)-1),OFFSET('C. PoC Adj Factor Scoring'!$E$5:$J$282,,MATCH(N$4,'C. PoC Adj Factor Scoring'!$E$3:$AH$3,0)-1),MATCH(N$2&\" Score\",'C. PoC Adj Factor Scoring'!$E$4:$J$4,0),TRUE)","v":1},{"$f":"VLOOKUP(OFFSET($B:$B,,MATCH(O$4,$B$4:$F$4,0)-1),OFFSET('C. PoC Adj Factor Scoring'!$E$5:$J$282,,MATCH(O$4,'C. PoC Adj Factor Scoring'!$E$3:$AH$3,0)-1),MATCH(O$2&\" Score\",'C. PoC Adj Factor Scoring'!$E$4:$J$4,0),TRUE)","v":1},{"$f":"VLOOKUP(OFFSET($B:$B,,MATCH(P$4,$B$4:$F$4,0)-1),OFFSET('C. PoC Adj Factor Scoring'!$E$5:$J$282,,MATCH(P$4,'C. PoC Adj Factor Scoring'!$E$3:$AH$3,0)-1),MATCH(P$2&\" Score\",'C. PoC Adj Factor Scoring'!$E$4:$J$4,0),TRUE)","v":1},{"$f":"VLOOKUP(OFFSET($B:$B,,MATCH(Q$4,$B$4:$F$4,0)-1),OFFSET('C. PoC Adj Factor Scoring'!$E$5:$J$282,,MATCH(Q$4,'C. PoC Adj Factor Scoring'!$E$3:$AH$3,0)-1),MATCH(Q$2&\" Score\",'C. PoC Adj Factor Scoring'!$E$4:$J$4,0),TRUE)","v":1},{"$f":"VLOOKUP(OFFSET($B:$B,,MATCH(R$4,$B$4:$F$4,0)-1),OFFSET('C. PoC Adj Factor Scoring'!$E$5:$J$282,,MATCH(R$4,'C. PoC Adj Factor Scoring'!$E$3:$AH$3,0)-1),MATCH(R$2&\" Score\",'C. PoC Adj Factor Scoring'!$E$4:$J$4,0),TRUE)","v":1},{"$f":"VLOOKUP(OFFSET($B:$B,,MATCH(S$4,$B$4:$F$4,0)-1),OFFSET('C. PoC Adj Factor Scoring'!$E$5:$J$282,,MATCH(S$4,'C. PoC Adj Factor Scoring'!$E$3:$AH$3,0)-1),MATCH(S$2&\" Score\",'C. PoC Adj Factor Scoring'!$E$4:$J$4,0),TRUE)","v":1},{"$f":"VLOOKUP(OFFSET($B:$B,,MATCH(T$4,$B$4:$F$4,0)-1),OFFSET('C. PoC Adj Factor Scoring'!$E$5:$J$282,,MATCH(T$4,'C. PoC Adj Factor Scoring'!$E$3:$AH$3,0)-1),MATCH(T$2&\" Score\",'C. PoC Adj Factor Scoring'!$E$4:$J$4,0),TRUE)","v":1},{"$f":"VLOOKUP(OFFSET($B:$B,,MATCH(U$4,$B$4:$F$4,0)-1),OFFSET('C. PoC Adj Factor Scoring'!$E$5:$J$282,,MATCH(U$4,'C. PoC Adj Factor Scoring'!$E$3:$AH$3,0)-1),MATCH(U$2&\" Score\",'C. PoC Adj Factor Scoring'!$E$4:$J$4,0),TRUE)","v":1},{"$f":"VLOOKUP(OFFSET($B:$B,,MATCH(V$4,$B$4:$F$4,0)-1),OFFSET('C. PoC Adj Factor Scoring'!$E$5:$J$282,,MATCH(V$4,'C. PoC Adj Factor Scoring'!$E$3:$AH$3,0)-1),MATCH(V$2&\" Score\",'C. PoC Adj Factor Scoring'!$E$4:$J$4,0),TRUE)","v":1},{"$f":"VLOOKUP(OFFSET($B:$B,,MATCH(W$4,$B$4:$F$4,0)-1),OFFSET('C. PoC Adj Factor Scoring'!$E$5:$J$282,,MATCH(W$4,'C. PoC Adj Factor Scoring'!$E$3:$AH$3,0)-1),MATCH(W$2&\" Score\",'C. PoC Adj Factor Scoring'!$E$4:$J$4,0),TRUE)","v":1},{"$f":"VLOOKUP(OFFSET($B:$B,,MATCH(X$4,$B$4:$F$4,0)-1),OFFSET('C. PoC Adj Factor Scoring'!$E$5:$J$282,,MATCH(X$4,'C. PoC Adj Factor Scoring'!$E$3:$AH$3,0)-1),MATCH(X$2&\" Score\",'C. PoC Adj Factor Scoring'!$E$4:$J$4,0),TRUE)","v":1},{"$f":"VLOOKUP(OFFSET($B:$B,,MATCH(Y$4,$B$4:$F$4,0)-1),OFFSET('C. PoC Adj Factor Scoring'!$E$5:$J$282,,MATCH(Y$4,'C. PoC Adj Factor Scoring'!$E$3:$AH$3,0)-1),MATCH(Y$2&\" Score\",'C. PoC Adj Factor Scoring'!$E$4:$J$4,0),TRUE)","v":1},{"$f":"VLOOKUP(OFFSET($B:$B,,MATCH(Z$4,$B$4:$F$4,0)-1),OFFSET('C. PoC Adj Factor Scoring'!$E$5:$J$282,,MATCH(Z$4,'C. PoC Adj Factor Scoring'!$E$3:$AH$3,0)-1),MATCH(Z$2&\" Score\",'C. PoC Adj Factor Scoring'!$E$4:$J$4,0),TRUE)","v":1},{"$f":"VLOOKUP(OFFSET($B:$B,,MATCH(AA$4,$B$4:$F$4,0)-1),OFFSET('C. PoC Adj Factor Scoring'!$E$5:$J$282,,MATCH(AA$4,'C. PoC Adj Factor Scoring'!$E$3:$AH$3,0)-1),MATCH(AA$2&\" Score\",'C. PoC Adj Factor Scoring'!$E$4:$J$4,0),TRUE)","v":3},{"$f":"VLOOKUP(OFFSET($B:$B,,MATCH(AB$4,$B$4:$F$4,0)-1),OFFSET('C. PoC Adj Factor Scoring'!$E$5:$J$282,,MATCH(AB$4,'C. PoC Adj Factor Scoring'!$E$3:$AH$3,0)-1),MATCH(AB$2&\" Score\",'C. PoC Adj Factor Scoring'!$E$4:$J$4,0),TRUE)","v":1},{"$f":"VLOOKUP(OFFSET($B:$B,,MATCH(AC$4,$B$4:$F$4,0)-1),OFFSET('C. PoC Adj Factor Scoring'!$E$5:$J$282,,MATCH(AC$4,'C. PoC Adj Factor Scoring'!$E$3:$AH$3,0)-1),MATCH(AC$2&\" Score\",'C. PoC Adj Factor Scoring'!$E$4:$J$4,0),TRUE)","v":1},{"$f":"VLOOKUP(OFFSET($B:$B,,MATCH(AD$4,$B$4:$F$4,0)-1),OFFSET('C. PoC Adj Factor Scoring'!$E$5:$J$282,,MATCH(AD$4,'C. PoC Adj Factor Scoring'!$E$3:$AH$3,0)-1),MATCH(AD$2&\" Score\",'C. PoC Adj Factor Scoring'!$E$4:$J$4,0),TRUE)","v":1},{"$f":"VLOOKUP(OFFSET($B:$B,,MATCH(AE$4,$B$4:$F$4,0)-1),OFFSET('C. PoC Adj Factor Scoring'!$E$5:$J$282,,MATCH(AE$4,'C. PoC Adj Factor Scoring'!$E$3:$AH$3,0)-1),MATCH(AE$2&\" Score\",'C. PoC Adj Factor Scoring'!$E$4:$J$4,0),TRUE)","v":1}]
[{"$f":"'A. Population Info'!A79","v":1000328825},{"$f":"'A. Population Info'!L79","v":"OIL"},{"$f":"'A. Population Info'!M79","v":0},{"$f":"'A. Population Info'!N79","v":0},{"$f":"'A. Population Info'!O79","v":0},{"$f":"'A. Population Info'!P79","v":0},{"$f":"VLOOKUP(OFFSET($B:$B,,MATCH(G$4,$B$4:$F$4,0)-1),OFFSET('C. PoC Adj Factor Scoring'!$E$5:$J$282,,MATCH(G$4,'C. PoC Adj Factor Scoring'!$E$3:$AH$3,0)-1),MATCH(G$2&\" Score\",'C. PoC Adj Factor Scoring'!$E$4:$J$4,0),TRUE)","v":4},{"$f":"VLOOKUP(OFFSET($B:$B,,MATCH(H$4,$B$4:$F$4,0)-1),OFFSET('C. PoC Adj Factor Scoring'!$E$5:$J$282,,MATCH(H$4,'C. PoC Adj Factor Scoring'!$E$3:$AH$3,0)-1),MATCH(H$2&\" Score\",'C. PoC Adj Factor Scoring'!$E$4:$J$4,0),TRUE)","v":1},{"$f":"VLOOKUP(OFFSET($B:$B,,MATCH(I$4,$B$4:$F$4,0)-1),OFFSET('C. PoC Adj Factor Scoring'!$E$5:$J$282,,MATCH(I$4,'C. PoC Adj Factor Scoring'!$E$3:$AH$3,0)-1),MATCH(I$2&\" Score\",'C. PoC Adj Factor Scoring'!$E$4:$J$4,0),TRUE)","v":1},{"$f":"VLOOKUP(OFFSET($B:$B,,MATCH(J$4,$B$4:$F$4,0)-1),OFFSET('C. PoC Adj Factor Scoring'!$E$5:$J$282,,MATCH(J$4,'C. PoC Adj Factor Scoring'!$E$3:$AH$3,0)-1),MATCH(J$2&\" Score\",'C. PoC Adj Factor Scoring'!$E$4:$J$4,0),TRUE)","v":1},{"$f":"VLOOKUP(OFFSET($B:$B,,MATCH(K$4,$B$4:$F$4,0)-1),OFFSET('C. PoC Adj Factor Scoring'!$E$5:$J$282,,MATCH(K$4,'C. PoC Adj Factor Scoring'!$E$3:$AH$3,0)-1),MATCH(K$2&\" Score\",'C. PoC Adj Factor Scoring'!$E$4:$J$4,0),TRUE)","v":1},{"$f":"VLOOKUP(OFFSET($B:$B,,MATCH(L$4,$B$4:$F$4,0)-1),OFFSET('C. PoC Adj Factor Scoring'!$E$5:$J$282,,MATCH(L$4,'C. PoC Adj Factor Scoring'!$E$3:$AH$3,0)-1),MATCH(L$2&\" Score\",'C. PoC Adj Factor Scoring'!$E$4:$J$4,0),TRUE)","v":1},{"$f":"VLOOKUP(OFFSET($B:$B,,MATCH(M$4,$B$4:$F$4,0)-1),OFFSET('C. PoC Adj Factor Scoring'!$E$5:$J$282,,MATCH(M$4,'C. PoC Adj Factor Scoring'!$E$3:$AH$3,0)-1),MATCH(M$2&\" Score\",'C. PoC Adj Factor Scoring'!$E$4:$J$4,0),TRUE)","v":1},{"$f":"VLOOKUP(OFFSET($B:$B,,MATCH(N$4,$B$4:$F$4,0)-1),OFFSET('C. PoC Adj Factor Scoring'!$E$5:$J$282,,MATCH(N$4,'C. PoC Adj Factor Scoring'!$E$3:$AH$3,0)-1),MATCH(N$2&\" Score\",'C. PoC Adj Factor Scoring'!$E$4:$J$4,0),TRUE)","v":1},{"$f":"VLOOKUP(OFFSET($B:$B,,MATCH(O$4,$B$4:$F$4,0)-1),OFFSET('C. PoC Adj Factor Scoring'!$E$5:$J$282,,MATCH(O$4,'C. PoC Adj Factor Scoring'!$E$3:$AH$3,0)-1),MATCH(O$2&\" Score\",'C. PoC Adj Factor Scoring'!$E$4:$J$4,0),TRUE)","v":1},{"$f":"VLOOKUP(OFFSET($B:$B,,MATCH(P$4,$B$4:$F$4,0)-1),OFFSET('C. PoC Adj Factor Scoring'!$E$5:$J$282,,MATCH(P$4,'C. PoC Adj Factor Scoring'!$E$3:$AH$3,0)-1),MATCH(P$2&\" Score\",'C. PoC Adj Factor Scoring'!$E$4:$J$4,0),TRUE)","v":1},{"$f":"VLOOKUP(OFFSET($B:$B,,MATCH(Q$4,$B$4:$F$4,0)-1),OFFSET('C. PoC Adj Factor Scoring'!$E$5:$J$282,,MATCH(Q$4,'C. PoC Adj Factor Scoring'!$E$3:$AH$3,0)-1),MATCH(Q$2&\" Score\",'C. PoC Adj Factor Scoring'!$E$4:$J$4,0),TRUE)","v":1},{"$f":"VLOOKUP(OFFSET($B:$B,,MATCH(R$4,$B$4:$F$4,0)-1),OFFSET('C. PoC Adj Factor Scoring'!$E$5:$J$282,,MATCH(R$4,'C. PoC Adj Factor Scoring'!$E$3:$AH$3,0)-1),MATCH(R$2&\" Score\",'C. PoC Adj Factor Scoring'!$E$4:$J$4,0),TRUE)","v":1},{"$f":"VLOOKUP(OFFSET($B:$B,,MATCH(S$4,$B$4:$F$4,0)-1),OFFSET('C. PoC Adj Factor Scoring'!$E$5:$J$282,,MATCH(S$4,'C. PoC Adj Factor Scoring'!$E$3:$AH$3,0)-1),MATCH(S$2&\" Score\",'C. PoC Adj Factor Scoring'!$E$4:$J$4,0),TRUE)","v":1},{"$f":"VLOOKUP(OFFSET($B:$B,,MATCH(T$4,$B$4:$F$4,0)-1),OFFSET('C. PoC Adj Factor Scoring'!$E$5:$J$282,,MATCH(T$4,'C. PoC Adj Factor Scoring'!$E$3:$AH$3,0)-1),MATCH(T$2&\" Score\",'C. PoC Adj Factor Scoring'!$E$4:$J$4,0),TRUE)","v":1},{"$f":"VLOOKUP(OFFSET($B:$B,,MATCH(U$4,$B$4:$F$4,0)-1),OFFSET('C. PoC Adj Factor Scoring'!$E$5:$J$282,,MATCH(U$4,'C. PoC Adj Factor Scoring'!$E$3:$AH$3,0)-1),MATCH(U$2&\" Score\",'C. PoC Adj Factor Scoring'!$E$4:$J$4,0),TRUE)","v":1},{"$f":"VLOOKUP(OFFSET($B:$B,,MATCH(V$4,$B$4:$F$4,0)-1),OFFSET('C. PoC Adj Factor Scoring'!$E$5:$J$282,,MATCH(V$4,'C. PoC Adj Factor Scoring'!$E$3:$AH$3,0)-1),MATCH(V$2&\" Score\",'C. PoC Adj Factor Scoring'!$E$4:$J$4,0),TRUE)","v":1},{"$f":"VLOOKUP(OFFSET($B:$B,,MATCH(W$4,$B$4:$F$4,0)-1),OFFSET('C. PoC Adj Factor Scoring'!$E$5:$J$282,,MATCH(W$4,'C. PoC Adj Factor Scoring'!$E$3:$AH$3,0)-1),MATCH(W$2&\" Score\",'C. PoC Adj Factor Scoring'!$E$4:$J$4,0),TRUE)","v":1},{"$f":"VLOOKUP(OFFSET($B:$B,,MATCH(X$4,$B$4:$F$4,0)-1),OFFSET('C. PoC Adj Factor Scoring'!$E$5:$J$282,,MATCH(X$4,'C. PoC Adj Factor Scoring'!$E$3:$AH$3,0)-1),MATCH(X$2&\" Score\",'C. PoC Adj Factor Scoring'!$E$4:$J$4,0),TRUE)","v":1},{"$f":"VLOOKUP(OFFSET($B:$B,,MATCH(Y$4,$B$4:$F$4,0)-1),OFFSET('C. PoC Adj Factor Scoring'!$E$5:$J$282,,MATCH(Y$4,'C. PoC Adj Factor Scoring'!$E$3:$AH$3,0)-1),MATCH(Y$2&\" Score\",'C. PoC Adj Factor Scoring'!$E$4:$J$4,0),TRUE)","v":1},{"$f":"VLOOKUP(OFFSET($B:$B,,MATCH(Z$4,$B$4:$F$4,0)-1),OFFSET('C. PoC Adj Factor Scoring'!$E$5:$J$282,,MATCH(Z$4,'C. PoC Adj Factor Scoring'!$E$3:$AH$3,0)-1),MATCH(Z$2&\" Score\",'C. PoC Adj Factor Scoring'!$E$4:$J$4,0),TRUE)","v":1},{"$f":"VLOOKUP(OFFSET($B:$B,,MATCH(AA$4,$B$4:$F$4,0)-1),OFFSET('C. PoC Adj Factor Scoring'!$E$5:$J$282,,MATCH(AA$4,'C. PoC Adj Factor Scoring'!$E$3:$AH$3,0)-1),MATCH(AA$2&\" Score\",'C. PoC Adj Factor Scoring'!$E$4:$J$4,0),TRUE)","v":3},{"$f":"VLOOKUP(OFFSET($B:$B,,MATCH(AB$4,$B$4:$F$4,0)-1),OFFSET('C. PoC Adj Factor Scoring'!$E$5:$J$282,,MATCH(AB$4,'C. PoC Adj Factor Scoring'!$E$3:$AH$3,0)-1),MATCH(AB$2&\" Score\",'C. PoC Adj Factor Scoring'!$E$4:$J$4,0),TRUE)","v":1},{"$f":"VLOOKUP(OFFSET($B:$B,,MATCH(AC$4,$B$4:$F$4,0)-1),OFFSET('C. PoC Adj Factor Scoring'!$E$5:$J$282,,MATCH(AC$4,'C. PoC Adj Factor Scoring'!$E$3:$AH$3,0)-1),MATCH(AC$2&\" Score\",'C. PoC Adj Factor Scoring'!$E$4:$J$4,0),TRUE)","v":1},{"$f":"VLOOKUP(OFFSET($B:$B,,MATCH(AD$4,$B$4:$F$4,0)-1),OFFSET('C. PoC Adj Factor Scoring'!$E$5:$J$282,,MATCH(AD$4,'C. PoC Adj Factor Scoring'!$E$3:$AH$3,0)-1),MATCH(AD$2&\" Score\",'C. PoC Adj Factor Scoring'!$E$4:$J$4,0),TRUE)","v":1},{"$f":"VLOOKUP(OFFSET($B:$B,,MATCH(AE$4,$B$4:$F$4,0)-1),OFFSET('C. PoC Adj Factor Scoring'!$E$5:$J$282,,MATCH(AE$4,'C. PoC Adj Factor Scoring'!$E$3:$AH$3,0)-1),MATCH(AE$2&\" Score\",'C. PoC Adj Factor Scoring'!$E$4:$J$4,0),TRUE)","v":1}]
[{"$f":"'A. Population Info'!A80","v":1000328852},{"$f":"'A. Population Info'!L80","v":"OIL"},{"$f":"'A. Population Info'!M80","v":0},{"$f":"'A. Population Info'!N80","v":0},{"$f":"'A. Population Info'!O80","v":0},{"$f":"'A. Population Info'!P80","v":0},{"$f":"VLOOKUP(OFFSET($B:$B,,MATCH(G$4,$B$4:$F$4,0)-1),OFFSET('C. PoC Adj Factor Scoring'!$E$5:$J$282,,MATCH(G$4,'C. PoC Adj Factor Scoring'!$E$3:$AH$3,0)-1),MATCH(G$2&\" Score\",'C. PoC Adj Factor Scoring'!$E$4:$J$4,0),TRUE)","v":4},{"$f":"VLOOKUP(OFFSET($B:$B,,MATCH(H$4,$B$4:$F$4,0)-1),OFFSET('C. PoC Adj Factor Scoring'!$E$5:$J$282,,MATCH(H$4,'C. PoC Adj Factor Scoring'!$E$3:$AH$3,0)-1),MATCH(H$2&\" Score\",'C. PoC Adj Factor Scoring'!$E$4:$J$4,0),TRUE)","v":1},{"$f":"VLOOKUP(OFFSET($B:$B,,MATCH(I$4,$B$4:$F$4,0)-1),OFFSET('C. PoC Adj Factor Scoring'!$E$5:$J$282,,MATCH(I$4,'C. PoC Adj Factor Scoring'!$E$3:$AH$3,0)-1),MATCH(I$2&\" Score\",'C. PoC Adj Factor Scoring'!$E$4:$J$4,0),TRUE)","v":1},{"$f":"VLOOKUP(OFFSET($B:$B,,MATCH(J$4,$B$4:$F$4,0)-1),OFFSET('C. PoC Adj Factor Scoring'!$E$5:$J$282,,MATCH(J$4,'C. PoC Adj Factor Scoring'!$E$3:$AH$3,0)-1),MATCH(J$2&\" Score\",'C. PoC Adj Factor Scoring'!$E$4:$J$4,0),TRUE)","v":1},{"$f":"VLOOKUP(OFFSET($B:$B,,MATCH(K$4,$B$4:$F$4,0)-1),OFFSET('C. PoC Adj Factor Scoring'!$E$5:$J$282,,MATCH(K$4,'C. PoC Adj Factor Scoring'!$E$3:$AH$3,0)-1),MATCH(K$2&\" Score\",'C. PoC Adj Factor Scoring'!$E$4:$J$4,0),TRUE)","v":1},{"$f":"VLOOKUP(OFFSET($B:$B,,MATCH(L$4,$B$4:$F$4,0)-1),OFFSET('C. PoC Adj Factor Scoring'!$E$5:$J$282,,MATCH(L$4,'C. PoC Adj Factor Scoring'!$E$3:$AH$3,0)-1),MATCH(L$2&\" Score\",'C. PoC Adj Factor Scoring'!$E$4:$J$4,0),TRUE)","v":1},{"$f":"VLOOKUP(OFFSET($B:$B,,MATCH(M$4,$B$4:$F$4,0)-1),OFFSET('C. PoC Adj Factor Scoring'!$E$5:$J$282,,MATCH(M$4,'C. PoC Adj Factor Scoring'!$E$3:$AH$3,0)-1),MATCH(M$2&\" Score\",'C. PoC Adj Factor Scoring'!$E$4:$J$4,0),TRUE)","v":1},{"$f":"VLOOKUP(OFFSET($B:$B,,MATCH(N$4,$B$4:$F$4,0)-1),OFFSET('C. PoC Adj Factor Scoring'!$E$5:$J$282,,MATCH(N$4,'C. PoC Adj Factor Scoring'!$E$3:$AH$3,0)-1),MATCH(N$2&\" Score\",'C. PoC Adj Factor Scoring'!$E$4:$J$4,0),TRUE)","v":1},{"$f":"VLOOKUP(OFFSET($B:$B,,MATCH(O$4,$B$4:$F$4,0)-1),OFFSET('C. PoC Adj Factor Scoring'!$E$5:$J$282,,MATCH(O$4,'C. PoC Adj Factor Scoring'!$E$3:$AH$3,0)-1),MATCH(O$2&\" Score\",'C. PoC Adj Factor Scoring'!$E$4:$J$4,0),TRUE)","v":1},{"$f":"VLOOKUP(OFFSET($B:$B,,MATCH(P$4,$B$4:$F$4,0)-1),OFFSET('C. PoC Adj Factor Scoring'!$E$5:$J$282,,MATCH(P$4,'C. PoC Adj Factor Scoring'!$E$3:$AH$3,0)-1),MATCH(P$2&\" Score\",'C. PoC Adj Factor Scoring'!$E$4:$J$4,0),TRUE)","v":1},{"$f":"VLOOKUP(OFFSET($B:$B,,MATCH(Q$4,$B$4:$F$4,0)-1),OFFSET('C. PoC Adj Factor Scoring'!$E$5:$J$282,,MATCH(Q$4,'C. PoC Adj Factor Scoring'!$E$3:$AH$3,0)-1),MATCH(Q$2&\" Score\",'C. PoC Adj Factor Scoring'!$E$4:$J$4,0),TRUE)","v":1},{"$f":"VLOOKUP(OFFSET($B:$B,,MATCH(R$4,$B$4:$F$4,0)-1),OFFSET('C. PoC Adj Factor Scoring'!$E$5:$J$282,,MATCH(R$4,'C. PoC Adj Factor Scoring'!$E$3:$AH$3,0)-1),MATCH(R$2&\" Score\",'C. PoC Adj Factor Scoring'!$E$4:$J$4,0),TRUE)","v":1},{"$f":"VLOOKUP(OFFSET($B:$B,,MATCH(S$4,$B$4:$F$4,0)-1),OFFSET('C. PoC Adj Factor Scoring'!$E$5:$J$282,,MATCH(S$4,'C. PoC Adj Factor Scoring'!$E$3:$AH$3,0)-1),MATCH(S$2&\" Score\",'C. PoC Adj Factor Scoring'!$E$4:$J$4,0),TRUE)","v":1},{"$f":"VLOOKUP(OFFSET($B:$B,,MATCH(T$4,$B$4:$F$4,0)-1),OFFSET('C. PoC Adj Factor Scoring'!$E$5:$J$282,,MATCH(T$4,'C. PoC Adj Factor Scoring'!$E$3:$AH$3,0)-1),MATCH(T$2&\" Score\",'C. PoC Adj Factor Scoring'!$E$4:$J$4,0),TRUE)","v":1},{"$f":"VLOOKUP(OFFSET($B:$B,,MATCH(U$4,$B$4:$F$4,0)-1),OFFSET('C. PoC Adj Factor Scoring'!$E$5:$J$282,,MATCH(U$4,'C. PoC Adj Factor Scoring'!$E$3:$AH$3,0)-1),MATCH(U$2&\" Score\",'C. PoC Adj Factor Scoring'!$E$4:$J$4,0),TRUE)","v":1},{"$f":"VLOOKUP(OFFSET($B:$B,,MATCH(V$4,$B$4:$F$4,0)-1),OFFSET('C. PoC Adj Factor Scoring'!$E$5:$J$282,,MATCH(V$4,'C. PoC Adj Factor Scoring'!$E$3:$AH$3,0)-1),MATCH(V$2&\" Score\",'C. PoC Adj Factor Scoring'!$E$4:$J$4,0),TRUE)","v":1},{"$f":"VLOOKUP(OFFSET($B:$B,,MATCH(W$4,$B$4:$F$4,0)-1),OFFSET('C. PoC Adj Factor Scoring'!$E$5:$J$282,,MATCH(W$4,'C. PoC Adj Factor Scoring'!$E$3:$AH$3,0)-1),MATCH(W$2&\" Score\",'C. PoC Adj Factor Scoring'!$E$4:$J$4,0),TRUE)","v":1},{"$f":"VLOOKUP(OFFSET($B:$B,,MATCH(X$4,$B$4:$F$4,0)-1),OFFSET('C. PoC Adj Factor Scoring'!$E$5:$J$282,,MATCH(X$4,'C. PoC Adj Factor Scoring'!$E$3:$AH$3,0)-1),MATCH(X$2&\" Score\",'C. PoC Adj Factor Scoring'!$E$4:$J$4,0),TRUE)","v":1},{"$f":"VLOOKUP(OFFSET($B:$B,,MATCH(Y$4,$B$4:$F$4,0)-1),OFFSET('C. PoC Adj Factor Scoring'!$E$5:$J$282,,MATCH(Y$4,'C. PoC Adj Factor Scoring'!$E$3:$AH$3,0)-1),MATCH(Y$2&\" Score\",'C. PoC Adj Factor Scoring'!$E$4:$J$4,0),TRUE)","v":1},{"$f":"VLOOKUP(OFFSET($B:$B,,MATCH(Z$4,$B$4:$F$4,0)-1),OFFSET('C. PoC Adj Factor Scoring'!$E$5:$J$282,,MATCH(Z$4,'C. PoC Adj Factor Scoring'!$E$3:$AH$3,0)-1),MATCH(Z$2&\" Score\",'C. PoC Adj Factor Scoring'!$E$4:$J$4,0),TRUE)","v":1},{"$f":"VLOOKUP(OFFSET($B:$B,,MATCH(AA$4,$B$4:$F$4,0)-1),OFFSET('C. PoC Adj Factor Scoring'!$E$5:$J$282,,MATCH(AA$4,'C. PoC Adj Factor Scoring'!$E$3:$AH$3,0)-1),MATCH(AA$2&\" Score\",'C. PoC Adj Factor Scoring'!$E$4:$J$4,0),TRUE)","v":3},{"$f":"VLOOKUP(OFFSET($B:$B,,MATCH(AB$4,$B$4:$F$4,0)-1),OFFSET('C. PoC Adj Factor Scoring'!$E$5:$J$282,,MATCH(AB$4,'C. PoC Adj Factor Scoring'!$E$3:$AH$3,0)-1),MATCH(AB$2&\" Score\",'C. PoC Adj Factor Scoring'!$E$4:$J$4,0),TRUE)","v":1},{"$f":"VLOOKUP(OFFSET($B:$B,,MATCH(AC$4,$B$4:$F$4,0)-1),OFFSET('C. PoC Adj Factor Scoring'!$E$5:$J$282,,MATCH(AC$4,'C. PoC Adj Factor Scoring'!$E$3:$AH$3,0)-1),MATCH(AC$2&\" Score\",'C. PoC Adj Factor Scoring'!$E$4:$J$4,0),TRUE)","v":1},{"$f":"VLOOKUP(OFFSET($B:$B,,MATCH(AD$4,$B$4:$F$4,0)-1),OFFSET('C. PoC Adj Factor Scoring'!$E$5:$J$282,,MATCH(AD$4,'C. PoC Adj Factor Scoring'!$E$3:$AH$3,0)-1),MATCH(AD$2&\" Score\",'C. PoC Adj Factor Scoring'!$E$4:$J$4,0),TRUE)","v":1},{"$f":"VLOOKUP(OFFSET($B:$B,,MATCH(AE$4,$B$4:$F$4,0)-1),OFFSET('C. PoC Adj Factor Scoring'!$E$5:$J$282,,MATCH(AE$4,'C. PoC Adj Factor Scoring'!$E$3:$AH$3,0)-1),MATCH(AE$2&\" Score\",'C. PoC Adj Factor Scoring'!$E$4:$J$4,0),TRUE)","v":1}]
[{"$f":"'A. Population Info'!A81","v":1000328910},{"$f":"'A. Population Info'!L81","v":"OIL"},{"$f":"'A. Population Info'!M81","v":0},{"$f":"'A. Population Info'!N81","v":0},{"$f":"'A. Population Info'!O81","v":0},{"$f":"'A. Population Info'!P81","v":0},{"$f":"VLOOKUP(OFFSET($B:$B,,MATCH(G$4,$B$4:$F$4,0)-1),OFFSET('C. PoC Adj Factor Scoring'!$E$5:$J$282,,MATCH(G$4,'C. PoC Adj Factor Scoring'!$E$3:$AH$3,0)-1),MATCH(G$2&\" Score\",'C. PoC Adj Factor Scoring'!$E$4:$J$4,0),TRUE)","v":4},{"$f":"VLOOKUP(OFFSET($B:$B,,MATCH(H$4,$B$4:$F$4,0)-1),OFFSET('C. PoC Adj Factor Scoring'!$E$5:$J$282,,MATCH(H$4,'C. PoC Adj Factor Scoring'!$E$3:$AH$3,0)-1),MATCH(H$2&\" Score\",'C. PoC Adj Factor Scoring'!$E$4:$J$4,0),TRUE)","v":1},{"$f":"VLOOKUP(OFFSET($B:$B,,MATCH(I$4,$B$4:$F$4,0)-1),OFFSET('C. PoC Adj Factor Scoring'!$E$5:$J$282,,MATCH(I$4,'C. PoC Adj Factor Scoring'!$E$3:$AH$3,0)-1),MATCH(I$2&\" Score\",'C. PoC Adj Factor Scoring'!$E$4:$J$4,0),TRUE)","v":1},{"$f":"VLOOKUP(OFFSET($B:$B,,MATCH(J$4,$B$4:$F$4,0)-1),OFFSET('C. PoC Adj Factor Scoring'!$E$5:$J$282,,MATCH(J$4,'C. PoC Adj Factor Scoring'!$E$3:$AH$3,0)-1),MATCH(J$2&\" Score\",'C. PoC Adj Factor Scoring'!$E$4:$J$4,0),TRUE)","v":1},{"$f":"VLOOKUP(OFFSET($B:$B,,MATCH(K$4,$B$4:$F$4,0)-1),OFFSET('C. PoC Adj Factor Scoring'!$E$5:$J$282,,MATCH(K$4,'C. PoC Adj Factor Scoring'!$E$3:$AH$3,0)-1),MATCH(K$2&\" Score\",'C. PoC Adj Factor Scoring'!$E$4:$J$4,0),TRUE)","v":1},{"$f":"VLOOKUP(OFFSET($B:$B,,MATCH(L$4,$B$4:$F$4,0)-1),OFFSET('C. PoC Adj Factor Scoring'!$E$5:$J$282,,MATCH(L$4,'C. PoC Adj Factor Scoring'!$E$3:$AH$3,0)-1),MATCH(L$2&\" Score\",'C. PoC Adj Factor Scoring'!$E$4:$J$4,0),TRUE)","v":1},{"$f":"VLOOKUP(OFFSET($B:$B,,MATCH(M$4,$B$4:$F$4,0)-1),OFFSET('C. PoC Adj Factor Scoring'!$E$5:$J$282,,MATCH(M$4,'C. PoC Adj Factor Scoring'!$E$3:$AH$3,0)-1),MATCH(M$2&\" Score\",'C. PoC Adj Factor Scoring'!$E$4:$J$4,0),TRUE)","v":1},{"$f":"VLOOKUP(OFFSET($B:$B,,MATCH(N$4,$B$4:$F$4,0)-1),OFFSET('C. PoC Adj Factor Scoring'!$E$5:$J$282,,MATCH(N$4,'C. PoC Adj Factor Scoring'!$E$3:$AH$3,0)-1),MATCH(N$2&\" Score\",'C. PoC Adj Factor Scoring'!$E$4:$J$4,0),TRUE)","v":1},{"$f":"VLOOKUP(OFFSET($B:$B,,MATCH(O$4,$B$4:$F$4,0)-1),OFFSET('C. PoC Adj Factor Scoring'!$E$5:$J$282,,MATCH(O$4,'C. PoC Adj Factor Scoring'!$E$3:$AH$3,0)-1),MATCH(O$2&\" Score\",'C. PoC Adj Factor Scoring'!$E$4:$J$4,0),TRUE)","v":1},{"$f":"VLOOKUP(OFFSET($B:$B,,MATCH(P$4,$B$4:$F$4,0)-1),OFFSET('C. PoC Adj Factor Scoring'!$E$5:$J$282,,MATCH(P$4,'C. PoC Adj Factor Scoring'!$E$3:$AH$3,0)-1),MATCH(P$2&\" Score\",'C. PoC Adj Factor Scoring'!$E$4:$J$4,0),TRUE)","v":1},{"$f":"VLOOKUP(OFFSET($B:$B,,MATCH(Q$4,$B$4:$F$4,0)-1),OFFSET('C. PoC Adj Factor Scoring'!$E$5:$J$282,,MATCH(Q$4,'C. PoC Adj Factor Scoring'!$E$3:$AH$3,0)-1),MATCH(Q$2&\" Score\",'C. PoC Adj Factor Scoring'!$E$4:$J$4,0),TRUE)","v":1},{"$f":"VLOOKUP(OFFSET($B:$B,,MATCH(R$4,$B$4:$F$4,0)-1),OFFSET('C. PoC Adj Factor Scoring'!$E$5:$J$282,,MATCH(R$4,'C. PoC Adj Factor Scoring'!$E$3:$AH$3,0)-1),MATCH(R$2&\" Score\",'C. PoC Adj Factor Scoring'!$E$4:$J$4,0),TRUE)","v":1},{"$f":"VLOOKUP(OFFSET($B:$B,,MATCH(S$4,$B$4:$F$4,0)-1),OFFSET('C. PoC Adj Factor Scoring'!$E$5:$J$282,,MATCH(S$4,'C. PoC Adj Factor Scoring'!$E$3:$AH$3,0)-1),MATCH(S$2&\" Score\",'C. PoC Adj Factor Scoring'!$E$4:$J$4,0),TRUE)","v":1},{"$f":"VLOOKUP(OFFSET($B:$B,,MATCH(T$4,$B$4:$F$4,0)-1),OFFSET('C. PoC Adj Factor Scoring'!$E$5:$J$282,,MATCH(T$4,'C. PoC Adj Factor Scoring'!$E$3:$AH$3,0)-1),MATCH(T$2&\" Score\",'C. PoC Adj Factor Scoring'!$E$4:$J$4,0),TRUE)","v":1},{"$f":"VLOOKUP(OFFSET($B:$B,,MATCH(U$4,$B$4:$F$4,0)-1),OFFSET('C. PoC Adj Factor Scoring'!$E$5:$J$282,,MATCH(U$4,'C. PoC Adj Factor Scoring'!$E$3:$AH$3,0)-1),MATCH(U$2&\" Score\",'C. PoC Adj Factor Scoring'!$E$4:$J$4,0),TRUE)","v":1},{"$f":"VLOOKUP(OFFSET($B:$B,,MATCH(V$4,$B$4:$F$4,0)-1),OFFSET('C. PoC Adj Factor Scoring'!$E$5:$J$282,,MATCH(V$4,'C. PoC Adj Factor Scoring'!$E$3:$AH$3,0)-1),MATCH(V$2&\" Score\",'C. PoC Adj Factor Scoring'!$E$4:$J$4,0),TRUE)","v":1},{"$f":"VLOOKUP(OFFSET($B:$B,,MATCH(W$4,$B$4:$F$4,0)-1),OFFSET('C. PoC Adj Factor Scoring'!$E$5:$J$282,,MATCH(W$4,'C. PoC Adj Factor Scoring'!$E$3:$AH$3,0)-1),MATCH(W$2&\" Score\",'C. PoC Adj Factor Scoring'!$E$4:$J$4,0),TRUE)","v":1},{"$f":"VLOOKUP(OFFSET($B:$B,,MATCH(X$4,$B$4:$F$4,0)-1),OFFSET('C. PoC Adj Factor Scoring'!$E$5:$J$282,,MATCH(X$4,'C. PoC Adj Factor Scoring'!$E$3:$AH$3,0)-1),MATCH(X$2&\" Score\",'C. PoC Adj Factor Scoring'!$E$4:$J$4,0),TRUE)","v":1},{"$f":"VLOOKUP(OFFSET($B:$B,,MATCH(Y$4,$B$4:$F$4,0)-1),OFFSET('C. PoC Adj Factor Scoring'!$E$5:$J$282,,MATCH(Y$4,'C. PoC Adj Factor Scoring'!$E$3:$AH$3,0)-1),MATCH(Y$2&\" Score\",'C. PoC Adj Factor Scoring'!$E$4:$J$4,0),TRUE)","v":1},{"$f":"VLOOKUP(OFFSET($B:$B,,MATCH(Z$4,$B$4:$F$4,0)-1),OFFSET('C. PoC Adj Factor Scoring'!$E$5:$J$282,,MATCH(Z$4,'C. PoC Adj Factor Scoring'!$E$3:$AH$3,0)-1),MATCH(Z$2&\" Score\",'C. PoC Adj Factor Scoring'!$E$4:$J$4,0),TRUE)","v":1},{"$f":"VLOOKUP(OFFSET($B:$B,,MATCH(AA$4,$B$4:$F$4,0)-1),OFFSET('C. PoC Adj Factor Scoring'!$E$5:$J$282,,MATCH(AA$4,'C. PoC Adj Factor Scoring'!$E$3:$AH$3,0)-1),MATCH(AA$2&\" Score\",'C. PoC Adj Factor Scoring'!$E$4:$J$4,0),TRUE)","v":3},{"$f":"VLOOKUP(OFFSET($B:$B,,MATCH(AB$4,$B$4:$F$4,0)-1),OFFSET('C. PoC Adj Factor Scoring'!$E$5:$J$282,,MATCH(AB$4,'C. PoC Adj Factor Scoring'!$E$3:$AH$3,0)-1),MATCH(AB$2&\" Score\",'C. PoC Adj Factor Scoring'!$E$4:$J$4,0),TRUE)","v":1},{"$f":"VLOOKUP(OFFSET($B:$B,,MATCH(AC$4,$B$4:$F$4,0)-1),OFFSET('C. PoC Adj Factor Scoring'!$E$5:$J$282,,MATCH(AC$4,'C. PoC Adj Factor Scoring'!$E$3:$AH$3,0)-1),MATCH(AC$2&\" Score\",'C. PoC Adj Factor Scoring'!$E$4:$J$4,0),TRUE)","v":1},{"$f":"VLOOKUP(OFFSET($B:$B,,MATCH(AD$4,$B$4:$F$4,0)-1),OFFSET('C. PoC Adj Factor Scoring'!$E$5:$J$282,,MATCH(AD$4,'C. PoC Adj Factor Scoring'!$E$3:$AH$3,0)-1),MATCH(AD$2&\" Score\",'C. PoC Adj Factor Scoring'!$E$4:$J$4,0),TRUE)","v":1},{"$f":"VLOOKUP(OFFSET($B:$B,,MATCH(AE$4,$B$4:$F$4,0)-1),OFFSET('C. PoC Adj Factor Scoring'!$E$5:$J$282,,MATCH(AE$4,'C. PoC Adj Factor Scoring'!$E$3:$AH$3,0)-1),MATCH(AE$2&\" Score\",'C. PoC Adj Factor Scoring'!$E$4:$J$4,0),TRUE)","v":1}]
[{"$f":"'A. Population Info'!A82","v":1000332025},{"$f":"'A. Population Info'!L82","v":"OIL"},{"$f":"'A. Population Info'!M82","v":0},{"$f":"'A. Population Info'!N82","v":0},{"$f":"'A. Population Info'!O82","v":0},{"$f":"'A. Population Info'!P82","v":0},{"$f":"VLOOKUP(OFFSET($B:$B,,MATCH(G$4,$B$4:$F$4,0)-1),OFFSET('C. PoC Adj Factor Scoring'!$E$5:$J$282,,MATCH(G$4,'C. PoC Adj Factor Scoring'!$E$3:$AH$3,0)-1),MATCH(G$2&\" Score\",'C. PoC Adj Factor Scoring'!$E$4:$J$4,0),TRUE)","v":4},{"$f":"VLOOKUP(OFFSET($B:$B,,MATCH(H$4,$B$4:$F$4,0)-1),OFFSET('C. PoC Adj Factor Scoring'!$E$5:$J$282,,MATCH(H$4,'C. PoC Adj Factor Scoring'!$E$3:$AH$3,0)-1),MATCH(H$2&\" Score\",'C. PoC Adj Factor Scoring'!$E$4:$J$4,0),TRUE)","v":1},{"$f":"VLOOKUP(OFFSET($B:$B,,MATCH(I$4,$B$4:$F$4,0)-1),OFFSET('C. PoC Adj Factor Scoring'!$E$5:$J$282,,MATCH(I$4,'C. PoC Adj Factor Scoring'!$E$3:$AH$3,0)-1),MATCH(I$2&\" Score\",'C. PoC Adj Factor Scoring'!$E$4:$J$4,0),TRUE)","v":1},{"$f":"VLOOKUP(OFFSET($B:$B,,MATCH(J$4,$B$4:$F$4,0)-1),OFFSET('C. PoC Adj Factor Scoring'!$E$5:$J$282,,MATCH(J$4,'C. PoC Adj Factor Scoring'!$E$3:$AH$3,0)-1),MATCH(J$2&\" Score\",'C. PoC Adj Factor Scoring'!$E$4:$J$4,0),TRUE)","v":1},{"$f":"VLOOKUP(OFFSET($B:$B,,MATCH(K$4,$B$4:$F$4,0)-1),OFFSET('C. PoC Adj Factor Scoring'!$E$5:$J$282,,MATCH(K$4,'C. PoC Adj Factor Scoring'!$E$3:$AH$3,0)-1),MATCH(K$2&\" Score\",'C. PoC Adj Factor Scoring'!$E$4:$J$4,0),TRUE)","v":1},{"$f":"VLOOKUP(OFFSET($B:$B,,MATCH(L$4,$B$4:$F$4,0)-1),OFFSET('C. PoC Adj Factor Scoring'!$E$5:$J$282,,MATCH(L$4,'C. PoC Adj Factor Scoring'!$E$3:$AH$3,0)-1),MATCH(L$2&\" Score\",'C. PoC Adj Factor Scoring'!$E$4:$J$4,0),TRUE)","v":1},{"$f":"VLOOKUP(OFFSET($B:$B,,MATCH(M$4,$B$4:$F$4,0)-1),OFFSET('C. PoC Adj Factor Scoring'!$E$5:$J$282,,MATCH(M$4,'C. PoC Adj Factor Scoring'!$E$3:$AH$3,0)-1),MATCH(M$2&\" Score\",'C. PoC Adj Factor Scoring'!$E$4:$J$4,0),TRUE)","v":1},{"$f":"VLOOKUP(OFFSET($B:$B,,MATCH(N$4,$B$4:$F$4,0)-1),OFFSET('C. PoC Adj Factor Scoring'!$E$5:$J$282,,MATCH(N$4,'C. PoC Adj Factor Scoring'!$E$3:$AH$3,0)-1),MATCH(N$2&\" Score\",'C. PoC Adj Factor Scoring'!$E$4:$J$4,0),TRUE)","v":1},{"$f":"VLOOKUP(OFFSET($B:$B,,MATCH(O$4,$B$4:$F$4,0)-1),OFFSET('C. PoC Adj Factor Scoring'!$E$5:$J$282,,MATCH(O$4,'C. PoC Adj Factor Scoring'!$E$3:$AH$3,0)-1),MATCH(O$2&\" Score\",'C. PoC Adj Factor Scoring'!$E$4:$J$4,0),TRUE)","v":1},{"$f":"VLOOKUP(OFFSET($B:$B,,MATCH(P$4,$B$4:$F$4,0)-1),OFFSET('C. PoC Adj Factor Scoring'!$E$5:$J$282,,MATCH(P$4,'C. PoC Adj Factor Scoring'!$E$3:$AH$3,0)-1),MATCH(P$2&\" Score\",'C. PoC Adj Factor Scoring'!$E$4:$J$4,0),TRUE)","v":1},{"$f":"VLOOKUP(OFFSET($B:$B,,MATCH(Q$4,$B$4:$F$4,0)-1),OFFSET('C. PoC Adj Factor Scoring'!$E$5:$J$282,,MATCH(Q$4,'C. PoC Adj Factor Scoring'!$E$3:$AH$3,0)-1),MATCH(Q$2&\" Score\",'C. PoC Adj Factor Scoring'!$E$4:$J$4,0),TRUE)","v":1},{"$f":"VLOOKUP(OFFSET($B:$B,,MATCH(R$4,$B$4:$F$4,0)-1),OFFSET('C. PoC Adj Factor Scoring'!$E$5:$J$282,,MATCH(R$4,'C. PoC Adj Factor Scoring'!$E$3:$AH$3,0)-1),MATCH(R$2&\" Score\",'C. PoC Adj Factor Scoring'!$E$4:$J$4,0),TRUE)","v":1},{"$f":"VLOOKUP(OFFSET($B:$B,,MATCH(S$4,$B$4:$F$4,0)-1),OFFSET('C. PoC Adj Factor Scoring'!$E$5:$J$282,,MATCH(S$4,'C. PoC Adj Factor Scoring'!$E$3:$AH$3,0)-1),MATCH(S$2&\" Score\",'C. PoC Adj Factor Scoring'!$E$4:$J$4,0),TRUE)","v":1},{"$f":"VLOOKUP(OFFSET($B:$B,,MATCH(T$4,$B$4:$F$4,0)-1),OFFSET('C. PoC Adj Factor Scoring'!$E$5:$J$282,,MATCH(T$4,'C. PoC Adj Factor Scoring'!$E$3:$AH$3,0)-1),MATCH(T$2&\" Score\",'C. PoC Adj Factor Scoring'!$E$4:$J$4,0),TRUE)","v":1},{"$f":"VLOOKUP(OFFSET($B:$B,,MATCH(U$4,$B$4:$F$4,0)-1),OFFSET('C. PoC Adj Factor Scoring'!$E$5:$J$282,,MATCH(U$4,'C. PoC Adj Factor Scoring'!$E$3:$AH$3,0)-1),MATCH(U$2&\" Score\",'C. PoC Adj Factor Scoring'!$E$4:$J$4,0),TRUE)","v":1},{"$f":"VLOOKUP(OFFSET($B:$B,,MATCH(V$4,$B$4:$F$4,0)-1),OFFSET('C. PoC Adj Factor Scoring'!$E$5:$J$282,,MATCH(V$4,'C. PoC Adj Factor Scoring'!$E$3:$AH$3,0)-1),MATCH(V$2&\" Score\",'C. PoC Adj Factor Scoring'!$E$4:$J$4,0),TRUE)","v":1},{"$f":"VLOOKUP(OFFSET($B:$B,,MATCH(W$4,$B$4:$F$4,0)-1),OFFSET('C. PoC Adj Factor Scoring'!$E$5:$J$282,,MATCH(W$4,'C. PoC Adj Factor Scoring'!$E$3:$AH$3,0)-1),MATCH(W$2&\" Score\",'C. PoC Adj Factor Scoring'!$E$4:$J$4,0),TRUE)","v":1},{"$f":"VLOOKUP(OFFSET($B:$B,,MATCH(X$4,$B$4:$F$4,0)-1),OFFSET('C. PoC Adj Factor Scoring'!$E$5:$J$282,,MATCH(X$4,'C. PoC Adj Factor Scoring'!$E$3:$AH$3,0)-1),MATCH(X$2&\" Score\",'C. PoC Adj Factor Scoring'!$E$4:$J$4,0),TRUE)","v":1},{"$f":"VLOOKUP(OFFSET($B:$B,,MATCH(Y$4,$B$4:$F$4,0)-1),OFFSET('C. PoC Adj Factor Scoring'!$E$5:$J$282,,MATCH(Y$4,'C. PoC Adj Factor Scoring'!$E$3:$AH$3,0)-1),MATCH(Y$2&\" Score\",'C. PoC Adj Factor Scoring'!$E$4:$J$4,0),TRUE)","v":1},{"$f":"VLOOKUP(OFFSET($B:$B,,MATCH(Z$4,$B$4:$F$4,0)-1),OFFSET('C. PoC Adj Factor Scoring'!$E$5:$J$282,,MATCH(Z$4,'C. PoC Adj Factor Scoring'!$E$3:$AH$3,0)-1),MATCH(Z$2&\" Score\",'C. PoC Adj Factor Scoring'!$E$4:$J$4,0),TRUE)","v":1},{"$f":"VLOOKUP(OFFSET($B:$B,,MATCH(AA$4,$B$4:$F$4,0)-1),OFFSET('C. PoC Adj Factor Scoring'!$E$5:$J$282,,MATCH(AA$4,'C. PoC Adj Factor Scoring'!$E$3:$AH$3,0)-1),MATCH(AA$2&\" Score\",'C. PoC Adj Factor Scoring'!$E$4:$J$4,0),TRUE)","v":3},{"$f":"VLOOKUP(OFFSET($B:$B,,MATCH(AB$4,$B$4:$F$4,0)-1),OFFSET('C. PoC Adj Factor Scoring'!$E$5:$J$282,,MATCH(AB$4,'C. PoC Adj Factor Scoring'!$E$3:$AH$3,0)-1),MATCH(AB$2&\" Score\",'C. PoC Adj Factor Scoring'!$E$4:$J$4,0),TRUE)","v":1},{"$f":"VLOOKUP(OFFSET($B:$B,,MATCH(AC$4,$B$4:$F$4,0)-1),OFFSET('C. PoC Adj Factor Scoring'!$E$5:$J$282,,MATCH(AC$4,'C. PoC Adj Factor Scoring'!$E$3:$AH$3,0)-1),MATCH(AC$2&\" Score\",'C. PoC Adj Factor Scoring'!$E$4:$J$4,0),TRUE)","v":1},{"$f":"VLOOKUP(OFFSET($B:$B,,MATCH(AD$4,$B$4:$F$4,0)-1),OFFSET('C. PoC Adj Factor Scoring'!$E$5:$J$282,,MATCH(AD$4,'C. PoC Adj Factor Scoring'!$E$3:$AH$3,0)-1),MATCH(AD$2&\" Score\",'C. PoC Adj Factor Scoring'!$E$4:$J$4,0),TRUE)","v":1},{"$f":"VLOOKUP(OFFSET($B:$B,,MATCH(AE$4,$B$4:$F$4,0)-1),OFFSET('C. PoC Adj Factor Scoring'!$E$5:$J$282,,MATCH(AE$4,'C. PoC Adj Factor Scoring'!$E$3:$AH$3,0)-1),MATCH(AE$2&\" Score\",'C. PoC Adj Factor Scoring'!$E$4:$J$4,0),TRUE)","v":1}]
[{"$f":"'A. Population Info'!A83","v":1000332304},{"$f":"'A. Population Info'!L83","v":"OIL"},{"$f":"'A. Population Info'!M83","v":0},{"$f":"'A. Population Info'!N83","v":0},{"$f":"'A. Population Info'!O83","v":0},{"$f":"'A. Population Info'!P83","v":0},{"$f":"VLOOKUP(OFFSET($B:$B,,MATCH(G$4,$B$4:$F$4,0)-1),OFFSET('C. PoC Adj Factor Scoring'!$E$5:$J$282,,MATCH(G$4,'C. PoC Adj Factor Scoring'!$E$3:$AH$3,0)-1),MATCH(G$2&\" Score\",'C. PoC Adj Factor Scoring'!$E$4:$J$4,0),TRUE)","v":4},{"$f":"VLOOKUP(OFFSET($B:$B,,MATCH(H$4,$B$4:$F$4,0)-1),OFFSET('C. PoC Adj Factor Scoring'!$E$5:$J$282,,MATCH(H$4,'C. PoC Adj Factor Scoring'!$E$3:$AH$3,0)-1),MATCH(H$2&\" Score\",'C. PoC Adj Factor Scoring'!$E$4:$J$4,0),TRUE)","v":1},{"$f":"VLOOKUP(OFFSET($B:$B,,MATCH(I$4,$B$4:$F$4,0)-1),OFFSET('C. PoC Adj Factor Scoring'!$E$5:$J$282,,MATCH(I$4,'C. PoC Adj Factor Scoring'!$E$3:$AH$3,0)-1),MATCH(I$2&\" Score\",'C. PoC Adj Factor Scoring'!$E$4:$J$4,0),TRUE)","v":1},{"$f":"VLOOKUP(OFFSET($B:$B,,MATCH(J$4,$B$4:$F$4,0)-1),OFFSET('C. PoC Adj Factor Scoring'!$E$5:$J$282,,MATCH(J$4,'C. PoC Adj Factor Scoring'!$E$3:$AH$3,0)-1),MATCH(J$2&\" Score\",'C. PoC Adj Factor Scoring'!$E$4:$J$4,0),TRUE)","v":1},{"$f":"VLOOKUP(OFFSET($B:$B,,MATCH(K$4,$B$4:$F$4,0)-1),OFFSET('C. PoC Adj Factor Scoring'!$E$5:$J$282,,MATCH(K$4,'C. PoC Adj Factor Scoring'!$E$3:$AH$3,0)-1),MATCH(K$2&\" Score\",'C. PoC Adj Factor Scoring'!$E$4:$J$4,0),TRUE)","v":1},{"$f":"VLOOKUP(OFFSET($B:$B,,MATCH(L$4,$B$4:$F$4,0)-1),OFFSET('C. PoC Adj Factor Scoring'!$E$5:$J$282,,MATCH(L$4,'C. PoC Adj Factor Scoring'!$E$3:$AH$3,0)-1),MATCH(L$2&\" Score\",'C. PoC Adj Factor Scoring'!$E$4:$J$4,0),TRUE)","v":1},{"$f":"VLOOKUP(OFFSET($B:$B,,MATCH(M$4,$B$4:$F$4,0)-1),OFFSET('C. PoC Adj Factor Scoring'!$E$5:$J$282,,MATCH(M$4,'C. PoC Adj Factor Scoring'!$E$3:$AH$3,0)-1),MATCH(M$2&\" Score\",'C. PoC Adj Factor Scoring'!$E$4:$J$4,0),TRUE)","v":1},{"$f":"VLOOKUP(OFFSET($B:$B,,MATCH(N$4,$B$4:$F$4,0)-1),OFFSET('C. PoC Adj Factor Scoring'!$E$5:$J$282,,MATCH(N$4,'C. PoC Adj Factor Scoring'!$E$3:$AH$3,0)-1),MATCH(N$2&\" Score\",'C. PoC Adj Factor Scoring'!$E$4:$J$4,0),TRUE)","v":1},{"$f":"VLOOKUP(OFFSET($B:$B,,MATCH(O$4,$B$4:$F$4,0)-1),OFFSET('C. PoC Adj Factor Scoring'!$E$5:$J$282,,MATCH(O$4,'C. PoC Adj Factor Scoring'!$E$3:$AH$3,0)-1),MATCH(O$2&\" Score\",'C. PoC Adj Factor Scoring'!$E$4:$J$4,0),TRUE)","v":1},{"$f":"VLOOKUP(OFFSET($B:$B,,MATCH(P$4,$B$4:$F$4,0)-1),OFFSET('C. PoC Adj Factor Scoring'!$E$5:$J$282,,MATCH(P$4,'C. PoC Adj Factor Scoring'!$E$3:$AH$3,0)-1),MATCH(P$2&\" Score\",'C. PoC Adj Factor Scoring'!$E$4:$J$4,0),TRUE)","v":1},{"$f":"VLOOKUP(OFFSET($B:$B,,MATCH(Q$4,$B$4:$F$4,0)-1),OFFSET('C. PoC Adj Factor Scoring'!$E$5:$J$282,,MATCH(Q$4,'C. PoC Adj Factor Scoring'!$E$3:$AH$3,0)-1),MATCH(Q$2&\" Score\",'C. PoC Adj Factor Scoring'!$E$4:$J$4,0),TRUE)","v":1},{"$f":"VLOOKUP(OFFSET($B:$B,,MATCH(R$4,$B$4:$F$4,0)-1),OFFSET('C. PoC Adj Factor Scoring'!$E$5:$J$282,,MATCH(R$4,'C. PoC Adj Factor Scoring'!$E$3:$AH$3,0)-1),MATCH(R$2&\" Score\",'C. PoC Adj Factor Scoring'!$E$4:$J$4,0),TRUE)","v":1},{"$f":"VLOOKUP(OFFSET($B:$B,,MATCH(S$4,$B$4:$F$4,0)-1),OFFSET('C. PoC Adj Factor Scoring'!$E$5:$J$282,,MATCH(S$4,'C. PoC Adj Factor Scoring'!$E$3:$AH$3,0)-1),MATCH(S$2&\" Score\",'C. PoC Adj Factor Scoring'!$E$4:$J$4,0),TRUE)","v":1},{"$f":"VLOOKUP(OFFSET($B:$B,,MATCH(T$4,$B$4:$F$4,0)-1),OFFSET('C. PoC Adj Factor Scoring'!$E$5:$J$282,,MATCH(T$4,'C. PoC Adj Factor Scoring'!$E$3:$AH$3,0)-1),MATCH(T$2&\" Score\",'C. PoC Adj Factor Scoring'!$E$4:$J$4,0),TRUE)","v":1},{"$f":"VLOOKUP(OFFSET($B:$B,,MATCH(U$4,$B$4:$F$4,0)-1),OFFSET('C. PoC Adj Factor Scoring'!$E$5:$J$282,,MATCH(U$4,'C. PoC Adj Factor Scoring'!$E$3:$AH$3,0)-1),MATCH(U$2&\" Score\",'C. PoC Adj Factor Scoring'!$E$4:$J$4,0),TRUE)","v":1},{"$f":"VLOOKUP(OFFSET($B:$B,,MATCH(V$4,$B$4:$F$4,0)-1),OFFSET('C. PoC Adj Factor Scoring'!$E$5:$J$282,,MATCH(V$4,'C. PoC Adj Factor Scoring'!$E$3:$AH$3,0)-1),MATCH(V$2&\" Score\",'C. PoC Adj Factor Scoring'!$E$4:$J$4,0),TRUE)","v":1},{"$f":"VLOOKUP(OFFSET($B:$B,,MATCH(W$4,$B$4:$F$4,0)-1),OFFSET('C. PoC Adj Factor Scoring'!$E$5:$J$282,,MATCH(W$4,'C. PoC Adj Factor Scoring'!$E$3:$AH$3,0)-1),MATCH(W$2&\" Score\",'C. PoC Adj Factor Scoring'!$E$4:$J$4,0),TRUE)","v":1},{"$f":"VLOOKUP(OFFSET($B:$B,,MATCH(X$4,$B$4:$F$4,0)-1),OFFSET('C. PoC Adj Factor Scoring'!$E$5:$J$282,,MATCH(X$4,'C. PoC Adj Factor Scoring'!$E$3:$AH$3,0)-1),MATCH(X$2&\" Score\",'C. PoC Adj Factor Scoring'!$E$4:$J$4,0),TRUE)","v":1},{"$f":"VLOOKUP(OFFSET($B:$B,,MATCH(Y$4,$B$4:$F$4,0)-1),OFFSET('C. PoC Adj Factor Scoring'!$E$5:$J$282,,MATCH(Y$4,'C. PoC Adj Factor Scoring'!$E$3:$AH$3,0)-1),MATCH(Y$2&\" Score\",'C. PoC Adj Factor Scoring'!$E$4:$J$4,0),TRUE)","v":1},{"$f":"VLOOKUP(OFFSET($B:$B,,MATCH(Z$4,$B$4:$F$4,0)-1),OFFSET('C. PoC Adj Factor Scoring'!$E$5:$J$282,,MATCH(Z$4,'C. PoC Adj Factor Scoring'!$E$3:$AH$3,0)-1),MATCH(Z$2&\" Score\",'C. PoC Adj Factor Scoring'!$E$4:$J$4,0),TRUE)","v":1},{"$f":"VLOOKUP(OFFSET($B:$B,,MATCH(AA$4,$B$4:$F$4,0)-1),OFFSET('C. PoC Adj Factor Scoring'!$E$5:$J$282,,MATCH(AA$4,'C. PoC Adj Factor Scoring'!$E$3:$AH$3,0)-1),MATCH(AA$2&\" Score\",'C. PoC Adj Factor Scoring'!$E$4:$J$4,0),TRUE)","v":3},{"$f":"VLOOKUP(OFFSET($B:$B,,MATCH(AB$4,$B$4:$F$4,0)-1),OFFSET('C. PoC Adj Factor Scoring'!$E$5:$J$282,,MATCH(AB$4,'C. PoC Adj Factor Scoring'!$E$3:$AH$3,0)-1),MATCH(AB$2&\" Score\",'C. PoC Adj Factor Scoring'!$E$4:$J$4,0),TRUE)","v":1},{"$f":"VLOOKUP(OFFSET($B:$B,,MATCH(AC$4,$B$4:$F$4,0)-1),OFFSET('C. PoC Adj Factor Scoring'!$E$5:$J$282,,MATCH(AC$4,'C. PoC Adj Factor Scoring'!$E$3:$AH$3,0)-1),MATCH(AC$2&\" Score\",'C. PoC Adj Factor Scoring'!$E$4:$J$4,0),TRUE)","v":1},{"$f":"VLOOKUP(OFFSET($B:$B,,MATCH(AD$4,$B$4:$F$4,0)-1),OFFSET('C. PoC Adj Factor Scoring'!$E$5:$J$282,,MATCH(AD$4,'C. PoC Adj Factor Scoring'!$E$3:$AH$3,0)-1),MATCH(AD$2&\" Score\",'C. PoC Adj Factor Scoring'!$E$4:$J$4,0),TRUE)","v":1},{"$f":"VLOOKUP(OFFSET($B:$B,,MATCH(AE$4,$B$4:$F$4,0)-1),OFFSET('C. PoC Adj Factor Scoring'!$E$5:$J$282,,MATCH(AE$4,'C. PoC Adj Factor Scoring'!$E$3:$AH$3,0)-1),MATCH(AE$2&\" Score\",'C. PoC Adj Factor Scoring'!$E$4:$J$4,0),TRUE)","v":1}]
[{"$f":"'A. Population Info'!A84","v":1000332390},{"$f":"'A. Population Info'!L84","v":"OIL"},{"$f":"'A. Population Info'!M84","v":0},{"$f":"'A. Population Info'!N84","v":0},{"$f":"'A. Population Info'!O84","v":0},{"$f":"'A. Population Info'!P84","v":0},{"$f":"VLOOKUP(OFFSET($B:$B,,MATCH(G$4,$B$4:$F$4,0)-1),OFFSET('C. PoC Adj Factor Scoring'!$E$5:$J$282,,MATCH(G$4,'C. PoC Adj Factor Scoring'!$E$3:$AH$3,0)-1),MATCH(G$2&\" Score\",'C. PoC Adj Factor Scoring'!$E$4:$J$4,0),TRUE)","v":4},{"$f":"VLOOKUP(OFFSET($B:$B,,MATCH(H$4,$B$4:$F$4,0)-1),OFFSET('C. PoC Adj Factor Scoring'!$E$5:$J$282,,MATCH(H$4,'C. PoC Adj Factor Scoring'!$E$3:$AH$3,0)-1),MATCH(H$2&\" Score\",'C. PoC Adj Factor Scoring'!$E$4:$J$4,0),TRUE)","v":1},{"$f":"VLOOKUP(OFFSET($B:$B,,MATCH(I$4,$B$4:$F$4,0)-1),OFFSET('C. PoC Adj Factor Scoring'!$E$5:$J$282,,MATCH(I$4,'C. PoC Adj Factor Scoring'!$E$3:$AH$3,0)-1),MATCH(I$2&\" Score\",'C. PoC Adj Factor Scoring'!$E$4:$J$4,0),TRUE)","v":1},{"$f":"VLOOKUP(OFFSET($B:$B,,MATCH(J$4,$B$4:$F$4,0)-1),OFFSET('C. PoC Adj Factor Scoring'!$E$5:$J$282,,MATCH(J$4,'C. PoC Adj Factor Scoring'!$E$3:$AH$3,0)-1),MATCH(J$2&\" Score\",'C. PoC Adj Factor Scoring'!$E$4:$J$4,0),TRUE)","v":1},{"$f":"VLOOKUP(OFFSET($B:$B,,MATCH(K$4,$B$4:$F$4,0)-1),OFFSET('C. PoC Adj Factor Scoring'!$E$5:$J$282,,MATCH(K$4,'C. PoC Adj Factor Scoring'!$E$3:$AH$3,0)-1),MATCH(K$2&\" Score\",'C. PoC Adj Factor Scoring'!$E$4:$J$4,0),TRUE)","v":1},{"$f":"VLOOKUP(OFFSET($B:$B,,MATCH(L$4,$B$4:$F$4,0)-1),OFFSET('C. PoC Adj Factor Scoring'!$E$5:$J$282,,MATCH(L$4,'C. PoC Adj Factor Scoring'!$E$3:$AH$3,0)-1),MATCH(L$2&\" Score\",'C. PoC Adj Factor Scoring'!$E$4:$J$4,0),TRUE)","v":1},{"$f":"VLOOKUP(OFFSET($B:$B,,MATCH(M$4,$B$4:$F$4,0)-1),OFFSET('C. PoC Adj Factor Scoring'!$E$5:$J$282,,MATCH(M$4,'C. PoC Adj Factor Scoring'!$E$3:$AH$3,0)-1),MATCH(M$2&\" Score\",'C. PoC Adj Factor Scoring'!$E$4:$J$4,0),TRUE)","v":1},{"$f":"VLOOKUP(OFFSET($B:$B,,MATCH(N$4,$B$4:$F$4,0)-1),OFFSET('C. PoC Adj Factor Scoring'!$E$5:$J$282,,MATCH(N$4,'C. PoC Adj Factor Scoring'!$E$3:$AH$3,0)-1),MATCH(N$2&\" Score\",'C. PoC Adj Factor Scoring'!$E$4:$J$4,0),TRUE)","v":1},{"$f":"VLOOKUP(OFFSET($B:$B,,MATCH(O$4,$B$4:$F$4,0)-1),OFFSET('C. PoC Adj Factor Scoring'!$E$5:$J$282,,MATCH(O$4,'C. PoC Adj Factor Scoring'!$E$3:$AH$3,0)-1),MATCH(O$2&\" Score\",'C. PoC Adj Factor Scoring'!$E$4:$J$4,0),TRUE)","v":1},{"$f":"VLOOKUP(OFFSET($B:$B,,MATCH(P$4,$B$4:$F$4,0)-1),OFFSET('C. PoC Adj Factor Scoring'!$E$5:$J$282,,MATCH(P$4,'C. PoC Adj Factor Scoring'!$E$3:$AH$3,0)-1),MATCH(P$2&\" Score\",'C. PoC Adj Factor Scoring'!$E$4:$J$4,0),TRUE)","v":1},{"$f":"VLOOKUP(OFFSET($B:$B,,MATCH(Q$4,$B$4:$F$4,0)-1),OFFSET('C. PoC Adj Factor Scoring'!$E$5:$J$282,,MATCH(Q$4,'C. PoC Adj Factor Scoring'!$E$3:$AH$3,0)-1),MATCH(Q$2&\" Score\",'C. PoC Adj Factor Scoring'!$E$4:$J$4,0),TRUE)","v":1},{"$f":"VLOOKUP(OFFSET($B:$B,,MATCH(R$4,$B$4:$F$4,0)-1),OFFSET('C. PoC Adj Factor Scoring'!$E$5:$J$282,,MATCH(R$4,'C. PoC Adj Factor Scoring'!$E$3:$AH$3,0)-1),MATCH(R$2&\" Score\",'C. PoC Adj Factor Scoring'!$E$4:$J$4,0),TRUE)","v":1},{"$f":"VLOOKUP(OFFSET($B:$B,,MATCH(S$4,$B$4:$F$4,0)-1),OFFSET('C. PoC Adj Factor Scoring'!$E$5:$J$282,,MATCH(S$4,'C. PoC Adj Factor Scoring'!$E$3:$AH$3,0)-1),MATCH(S$2&\" Score\",'C. PoC Adj Factor Scoring'!$E$4:$J$4,0),TRUE)","v":1},{"$f":"VLOOKUP(OFFSET($B:$B,,MATCH(T$4,$B$4:$F$4,0)-1),OFFSET('C. PoC Adj Factor Scoring'!$E$5:$J$282,,MATCH(T$4,'C. PoC Adj Factor Scoring'!$E$3:$AH$3,0)-1),MATCH(T$2&\" Score\",'C. PoC Adj Factor Scoring'!$E$4:$J$4,0),TRUE)","v":1},{"$f":"VLOOKUP(OFFSET($B:$B,,MATCH(U$4,$B$4:$F$4,0)-1),OFFSET('C. PoC Adj Factor Scoring'!$E$5:$J$282,,MATCH(U$4,'C. PoC Adj Factor Scoring'!$E$3:$AH$3,0)-1),MATCH(U$2&\" Score\",'C. PoC Adj Factor Scoring'!$E$4:$J$4,0),TRUE)","v":1},{"$f":"VLOOKUP(OFFSET($B:$B,,MATCH(V$4,$B$4:$F$4,0)-1),OFFSET('C. PoC Adj Factor Scoring'!$E$5:$J$282,,MATCH(V$4,'C. PoC Adj Factor Scoring'!$E$3:$AH$3,0)-1),MATCH(V$2&\" Score\",'C. PoC Adj Factor Scoring'!$E$4:$J$4,0),TRUE)","v":1},{"$f":"VLOOKUP(OFFSET($B:$B,,MATCH(W$4,$B$4:$F$4,0)-1),OFFSET('C. PoC Adj Factor Scoring'!$E$5:$J$282,,MATCH(W$4,'C. PoC Adj Factor Scoring'!$E$3:$AH$3,0)-1),MATCH(W$2&\" Score\",'C. PoC Adj Factor Scoring'!$E$4:$J$4,0),TRUE)","v":1},{"$f":"VLOOKUP(OFFSET($B:$B,,MATCH(X$4,$B$4:$F$4,0)-1),OFFSET('C. PoC Adj Factor Scoring'!$E$5:$J$282,,MATCH(X$4,'C. PoC Adj Factor Scoring'!$E$3:$AH$3,0)-1),MATCH(X$2&\" Score\",'C. PoC Adj Factor Scoring'!$E$4:$J$4,0),TRUE)","v":1},{"$f":"VLOOKUP(OFFSET($B:$B,,MATCH(Y$4,$B$4:$F$4,0)-1),OFFSET('C. PoC Adj Factor Scoring'!$E$5:$J$282,,MATCH(Y$4,'C. PoC Adj Factor Scoring'!$E$3:$AH$3,0)-1),MATCH(Y$2&\" Score\",'C. PoC Adj Factor Scoring'!$E$4:$J$4,0),TRUE)","v":1},{"$f":"VLOOKUP(OFFSET($B:$B,,MATCH(Z$4,$B$4:$F$4,0)-1),OFFSET('C. PoC Adj Factor Scoring'!$E$5:$J$282,,MATCH(Z$4,'C. PoC Adj Factor Scoring'!$E$3:$AH$3,0)-1),MATCH(Z$2&\" Score\",'C. PoC Adj Factor Scoring'!$E$4:$J$4,0),TRUE)","v":1},{"$f":"VLOOKUP(OFFSET($B:$B,,MATCH(AA$4,$B$4:$F$4,0)-1),OFFSET('C. PoC Adj Factor Scoring'!$E$5:$J$282,,MATCH(AA$4,'C. PoC Adj Factor Scoring'!$E$3:$AH$3,0)-1),MATCH(AA$2&\" Score\",'C. PoC Adj Factor Scoring'!$E$4:$J$4,0),TRUE)","v":3},{"$f":"VLOOKUP(OFFSET($B:$B,,MATCH(AB$4,$B$4:$F$4,0)-1),OFFSET('C. PoC Adj Factor Scoring'!$E$5:$J$282,,MATCH(AB$4,'C. PoC Adj Factor Scoring'!$E$3:$AH$3,0)-1),MATCH(AB$2&\" Score\",'C. PoC Adj Factor Scoring'!$E$4:$J$4,0),TRUE)","v":1},{"$f":"VLOOKUP(OFFSET($B:$B,,MATCH(AC$4,$B$4:$F$4,0)-1),OFFSET('C. PoC Adj Factor Scoring'!$E$5:$J$282,,MATCH(AC$4,'C. PoC Adj Factor Scoring'!$E$3:$AH$3,0)-1),MATCH(AC$2&\" Score\",'C. PoC Adj Factor Scoring'!$E$4:$J$4,0),TRUE)","v":1},{"$f":"VLOOKUP(OFFSET($B:$B,,MATCH(AD$4,$B$4:$F$4,0)-1),OFFSET('C. PoC Adj Factor Scoring'!$E$5:$J$282,,MATCH(AD$4,'C. PoC Adj Factor Scoring'!$E$3:$AH$3,0)-1),MATCH(AD$2&\" Score\",'C. PoC Adj Factor Scoring'!$E$4:$J$4,0),TRUE)","v":1},{"$f":"VLOOKUP(OFFSET($B:$B,,MATCH(AE$4,$B$4:$F$4,0)-1),OFFSET('C. PoC Adj Factor Scoring'!$E$5:$J$282,,MATCH(AE$4,'C. PoC Adj Factor Scoring'!$E$3:$AH$3,0)-1),MATCH(AE$2&\" Score\",'C. PoC Adj Factor Scoring'!$E$4:$J$4,0),TRUE)","v":1}]
[{"$f":"'A. Population Info'!A85","v":1000332419},{"$f":"'A. Population Info'!L85","v":"OIL"},{"$f":"'A. Population Info'!M85","v":0},{"$f":"'A. Population Info'!N85","v":0},{"$f":"'A. Population Info'!O85","v":0},{"$f":"'A. Population Info'!P85","v":0},{"$f":"VLOOKUP(OFFSET($B:$B,,MATCH(G$4,$B$4:$F$4,0)-1),OFFSET('C. PoC Adj Factor Scoring'!$E$5:$J$282,,MATCH(G$4,'C. PoC Adj Factor Scoring'!$E$3:$AH$3,0)-1),MATCH(G$2&\" Score\",'C. PoC Adj Factor Scoring'!$E$4:$J$4,0),TRUE)","v":4},{"$f":"VLOOKUP(OFFSET($B:$B,,MATCH(H$4,$B$4:$F$4,0)-1),OFFSET('C. PoC Adj Factor Scoring'!$E$5:$J$282,,MATCH(H$4,'C. PoC Adj Factor Scoring'!$E$3:$AH$3,0)-1),MATCH(H$2&\" Score\",'C. PoC Adj Factor Scoring'!$E$4:$J$4,0),TRUE)","v":1},{"$f":"VLOOKUP(OFFSET($B:$B,,MATCH(I$4,$B$4:$F$4,0)-1),OFFSET('C. PoC Adj Factor Scoring'!$E$5:$J$282,,MATCH(I$4,'C. PoC Adj Factor Scoring'!$E$3:$AH$3,0)-1),MATCH(I$2&\" Score\",'C. PoC Adj Factor Scoring'!$E$4:$J$4,0),TRUE)","v":1},{"$f":"VLOOKUP(OFFSET($B:$B,,MATCH(J$4,$B$4:$F$4,0)-1),OFFSET('C. PoC Adj Factor Scoring'!$E$5:$J$282,,MATCH(J$4,'C. PoC Adj Factor Scoring'!$E$3:$AH$3,0)-1),MATCH(J$2&\" Score\",'C. PoC Adj Factor Scoring'!$E$4:$J$4,0),TRUE)","v":1},{"$f":"VLOOKUP(OFFSET($B:$B,,MATCH(K$4,$B$4:$F$4,0)-1),OFFSET('C. PoC Adj Factor Scoring'!$E$5:$J$282,,MATCH(K$4,'C. PoC Adj Factor Scoring'!$E$3:$AH$3,0)-1),MATCH(K$2&\" Score\",'C. PoC Adj Factor Scoring'!$E$4:$J$4,0),TRUE)","v":1},{"$f":"VLOOKUP(OFFSET($B:$B,,MATCH(L$4,$B$4:$F$4,0)-1),OFFSET('C. PoC Adj Factor Scoring'!$E$5:$J$282,,MATCH(L$4,'C. PoC Adj Factor Scoring'!$E$3:$AH$3,0)-1),MATCH(L$2&\" Score\",'C. PoC Adj Factor Scoring'!$E$4:$J$4,0),TRUE)","v":1},{"$f":"VLOOKUP(OFFSET($B:$B,,MATCH(M$4,$B$4:$F$4,0)-1),OFFSET('C. PoC Adj Factor Scoring'!$E$5:$J$282,,MATCH(M$4,'C. PoC Adj Factor Scoring'!$E$3:$AH$3,0)-1),MATCH(M$2&\" Score\",'C. PoC Adj Factor Scoring'!$E$4:$J$4,0),TRUE)","v":1},{"$f":"VLOOKUP(OFFSET($B:$B,,MATCH(N$4,$B$4:$F$4,0)-1),OFFSET('C. PoC Adj Factor Scoring'!$E$5:$J$282,,MATCH(N$4,'C. PoC Adj Factor Scoring'!$E$3:$AH$3,0)-1),MATCH(N$2&\" Score\",'C. PoC Adj Factor Scoring'!$E$4:$J$4,0),TRUE)","v":1},{"$f":"VLOOKUP(OFFSET($B:$B,,MATCH(O$4,$B$4:$F$4,0)-1),OFFSET('C. PoC Adj Factor Scoring'!$E$5:$J$282,,MATCH(O$4,'C. PoC Adj Factor Scoring'!$E$3:$AH$3,0)-1),MATCH(O$2&\" Score\",'C. PoC Adj Factor Scoring'!$E$4:$J$4,0),TRUE)","v":1},{"$f":"VLOOKUP(OFFSET($B:$B,,MATCH(P$4,$B$4:$F$4,0)-1),OFFSET('C. PoC Adj Factor Scoring'!$E$5:$J$282,,MATCH(P$4,'C. PoC Adj Factor Scoring'!$E$3:$AH$3,0)-1),MATCH(P$2&\" Score\",'C. PoC Adj Factor Scoring'!$E$4:$J$4,0),TRUE)","v":1},{"$f":"VLOOKUP(OFFSET($B:$B,,MATCH(Q$4,$B$4:$F$4,0)-1),OFFSET('C. PoC Adj Factor Scoring'!$E$5:$J$282,,MATCH(Q$4,'C. PoC Adj Factor Scoring'!$E$3:$AH$3,0)-1),MATCH(Q$2&\" Score\",'C. PoC Adj Factor Scoring'!$E$4:$J$4,0),TRUE)","v":1},{"$f":"VLOOKUP(OFFSET($B:$B,,MATCH(R$4,$B$4:$F$4,0)-1),OFFSET('C. PoC Adj Factor Scoring'!$E$5:$J$282,,MATCH(R$4,'C. PoC Adj Factor Scoring'!$E$3:$AH$3,0)-1),MATCH(R$2&\" Score\",'C. PoC Adj Factor Scoring'!$E$4:$J$4,0),TRUE)","v":1},{"$f":"VLOOKUP(OFFSET($B:$B,,MATCH(S$4,$B$4:$F$4,0)-1),OFFSET('C. PoC Adj Factor Scoring'!$E$5:$J$282,,MATCH(S$4,'C. PoC Adj Factor Scoring'!$E$3:$AH$3,0)-1),MATCH(S$2&\" Score\",'C. PoC Adj Factor Scoring'!$E$4:$J$4,0),TRUE)","v":1},{"$f":"VLOOKUP(OFFSET($B:$B,,MATCH(T$4,$B$4:$F$4,0)-1),OFFSET('C. PoC Adj Factor Scoring'!$E$5:$J$282,,MATCH(T$4,'C. PoC Adj Factor Scoring'!$E$3:$AH$3,0)-1),MATCH(T$2&\" Score\",'C. PoC Adj Factor Scoring'!$E$4:$J$4,0),TRUE)","v":1},{"$f":"VLOOKUP(OFFSET($B:$B,,MATCH(U$4,$B$4:$F$4,0)-1),OFFSET('C. PoC Adj Factor Scoring'!$E$5:$J$282,,MATCH(U$4,'C. PoC Adj Factor Scoring'!$E$3:$AH$3,0)-1),MATCH(U$2&\" Score\",'C. PoC Adj Factor Scoring'!$E$4:$J$4,0),TRUE)","v":1},{"$f":"VLOOKUP(OFFSET($B:$B,,MATCH(V$4,$B$4:$F$4,0)-1),OFFSET('C. PoC Adj Factor Scoring'!$E$5:$J$282,,MATCH(V$4,'C. PoC Adj Factor Scoring'!$E$3:$AH$3,0)-1),MATCH(V$2&\" Score\",'C. PoC Adj Factor Scoring'!$E$4:$J$4,0),TRUE)","v":1},{"$f":"VLOOKUP(OFFSET($B:$B,,MATCH(W$4,$B$4:$F$4,0)-1),OFFSET('C. PoC Adj Factor Scoring'!$E$5:$J$282,,MATCH(W$4,'C. PoC Adj Factor Scoring'!$E$3:$AH$3,0)-1),MATCH(W$2&\" Score\",'C. PoC Adj Factor Scoring'!$E$4:$J$4,0),TRUE)","v":1},{"$f":"VLOOKUP(OFFSET($B:$B,,MATCH(X$4,$B$4:$F$4,0)-1),OFFSET('C. PoC Adj Factor Scoring'!$E$5:$J$282,,MATCH(X$4,'C. PoC Adj Factor Scoring'!$E$3:$AH$3,0)-1),MATCH(X$2&\" Score\",'C. PoC Adj Factor Scoring'!$E$4:$J$4,0),TRUE)","v":1},{"$f":"VLOOKUP(OFFSET($B:$B,,MATCH(Y$4,$B$4:$F$4,0)-1),OFFSET('C. PoC Adj Factor Scoring'!$E$5:$J$282,,MATCH(Y$4,'C. PoC Adj Factor Scoring'!$E$3:$AH$3,0)-1),MATCH(Y$2&\" Score\",'C. PoC Adj Factor Scoring'!$E$4:$J$4,0),TRUE)","v":1},{"$f":"VLOOKUP(OFFSET($B:$B,,MATCH(Z$4,$B$4:$F$4,0)-1),OFFSET('C. PoC Adj Factor Scoring'!$E$5:$J$282,,MATCH(Z$4,'C. PoC Adj Factor Scoring'!$E$3:$AH$3,0)-1),MATCH(Z$2&\" Score\",'C. PoC Adj Factor Scoring'!$E$4:$J$4,0),TRUE)","v":1},{"$f":"VLOOKUP(OFFSET($B:$B,,MATCH(AA$4,$B$4:$F$4,0)-1),OFFSET('C. PoC Adj Factor Scoring'!$E$5:$J$282,,MATCH(AA$4,'C. PoC Adj Factor Scoring'!$E$3:$AH$3,0)-1),MATCH(AA$2&\" Score\",'C. PoC Adj Factor Scoring'!$E$4:$J$4,0),TRUE)","v":3},{"$f":"VLOOKUP(OFFSET($B:$B,,MATCH(AB$4,$B$4:$F$4,0)-1),OFFSET('C. PoC Adj Factor Scoring'!$E$5:$J$282,,MATCH(AB$4,'C. PoC Adj Factor Scoring'!$E$3:$AH$3,0)-1),MATCH(AB$2&\" Score\",'C. PoC Adj Factor Scoring'!$E$4:$J$4,0),TRUE)","v":1},{"$f":"VLOOKUP(OFFSET($B:$B,,MATCH(AC$4,$B$4:$F$4,0)-1),OFFSET('C. PoC Adj Factor Scoring'!$E$5:$J$282,,MATCH(AC$4,'C. PoC Adj Factor Scoring'!$E$3:$AH$3,0)-1),MATCH(AC$2&\" Score\",'C. PoC Adj Factor Scoring'!$E$4:$J$4,0),TRUE)","v":1},{"$f":"VLOOKUP(OFFSET($B:$B,,MATCH(AD$4,$B$4:$F$4,0)-1),OFFSET('C. PoC Adj Factor Scoring'!$E$5:$J$282,,MATCH(AD$4,'C. PoC Adj Factor Scoring'!$E$3:$AH$3,0)-1),MATCH(AD$2&\" Score\",'C. PoC Adj Factor Scoring'!$E$4:$J$4,0),TRUE)","v":1},{"$f":"VLOOKUP(OFFSET($B:$B,,MATCH(AE$4,$B$4:$F$4,0)-1),OFFSET('C. PoC Adj Factor Scoring'!$E$5:$J$282,,MATCH(AE$4,'C. PoC Adj Factor Scoring'!$E$3:$AH$3,0)-1),MATCH(AE$2&\" Score\",'C. PoC Adj Factor Scoring'!$E$4:$J$4,0),TRUE)","v":1}]
[{"$f":"'A. Population Info'!A86","v":1000332450},{"$f":"'A. Population Info'!L86","v":"OIL"},{"$f":"'A. Population Info'!M86","v":0},{"$f":"'A. Population Info'!N86","v":0},{"$f":"'A. Population Info'!O86","v":0},{"$f":"'A. Population Info'!P86","v":0},{"$f":"VLOOKUP(OFFSET($B:$B,,MATCH(G$4,$B$4:$F$4,0)-1),OFFSET('C. PoC Adj Factor Scoring'!$E$5:$J$282,,MATCH(G$4,'C. PoC Adj Factor Scoring'!$E$3:$AH$3,0)-1),MATCH(G$2&\" Score\",'C. PoC Adj Factor Scoring'!$E$4:$J$4,0),TRUE)","v":4},{"$f":"VLOOKUP(OFFSET($B:$B,,MATCH(H$4,$B$4:$F$4,0)-1),OFFSET('C. PoC Adj Factor Scoring'!$E$5:$J$282,,MATCH(H$4,'C. PoC Adj Factor Scoring'!$E$3:$AH$3,0)-1),MATCH(H$2&\" Score\",'C. PoC Adj Factor Scoring'!$E$4:$J$4,0),TRUE)","v":1},{"$f":"VLOOKUP(OFFSET($B:$B,,MATCH(I$4,$B$4:$F$4,0)-1),OFFSET('C. PoC Adj Factor Scoring'!$E$5:$J$282,,MATCH(I$4,'C. PoC Adj Factor Scoring'!$E$3:$AH$3,0)-1),MATCH(I$2&\" Score\",'C. PoC Adj Factor Scoring'!$E$4:$J$4,0),TRUE)","v":1},{"$f":"VLOOKUP(OFFSET($B:$B,,MATCH(J$4,$B$4:$F$4,0)-1),OFFSET('C. PoC Adj Factor Scoring'!$E$5:$J$282,,MATCH(J$4,'C. PoC Adj Factor Scoring'!$E$3:$AH$3,0)-1),MATCH(J$2&\" Score\",'C. PoC Adj Factor Scoring'!$E$4:$J$4,0),TRUE)","v":1},{"$f":"VLOOKUP(OFFSET($B:$B,,MATCH(K$4,$B$4:$F$4,0)-1),OFFSET('C. PoC Adj Factor Scoring'!$E$5:$J$282,,MATCH(K$4,'C. PoC Adj Factor Scoring'!$E$3:$AH$3,0)-1),MATCH(K$2&\" Score\",'C. PoC Adj Factor Scoring'!$E$4:$J$4,0),TRUE)","v":1},{"$f":"VLOOKUP(OFFSET($B:$B,,MATCH(L$4,$B$4:$F$4,0)-1),OFFSET('C. PoC Adj Factor Scoring'!$E$5:$J$282,,MATCH(L$4,'C. PoC Adj Factor Scoring'!$E$3:$AH$3,0)-1),MATCH(L$2&\" Score\",'C. PoC Adj Factor Scoring'!$E$4:$J$4,0),TRUE)","v":1},{"$f":"VLOOKUP(OFFSET($B:$B,,MATCH(M$4,$B$4:$F$4,0)-1),OFFSET('C. PoC Adj Factor Scoring'!$E$5:$J$282,,MATCH(M$4,'C. PoC Adj Factor Scoring'!$E$3:$AH$3,0)-1),MATCH(M$2&\" Score\",'C. PoC Adj Factor Scoring'!$E$4:$J$4,0),TRUE)","v":1},{"$f":"VLOOKUP(OFFSET($B:$B,,MATCH(N$4,$B$4:$F$4,0)-1),OFFSET('C. PoC Adj Factor Scoring'!$E$5:$J$282,,MATCH(N$4,'C. PoC Adj Factor Scoring'!$E$3:$AH$3,0)-1),MATCH(N$2&\" Score\",'C. PoC Adj Factor Scoring'!$E$4:$J$4,0),TRUE)","v":1},{"$f":"VLOOKUP(OFFSET($B:$B,,MATCH(O$4,$B$4:$F$4,0)-1),OFFSET('C. PoC Adj Factor Scoring'!$E$5:$J$282,,MATCH(O$4,'C. PoC Adj Factor Scoring'!$E$3:$AH$3,0)-1),MATCH(O$2&\" Score\",'C. PoC Adj Factor Scoring'!$E$4:$J$4,0),TRUE)","v":1},{"$f":"VLOOKUP(OFFSET($B:$B,,MATCH(P$4,$B$4:$F$4,0)-1),OFFSET('C. PoC Adj Factor Scoring'!$E$5:$J$282,,MATCH(P$4,'C. PoC Adj Factor Scoring'!$E$3:$AH$3,0)-1),MATCH(P$2&\" Score\",'C. PoC Adj Factor Scoring'!$E$4:$J$4,0),TRUE)","v":1},{"$f":"VLOOKUP(OFFSET($B:$B,,MATCH(Q$4,$B$4:$F$4,0)-1),OFFSET('C. PoC Adj Factor Scoring'!$E$5:$J$282,,MATCH(Q$4,'C. PoC Adj Factor Scoring'!$E$3:$AH$3,0)-1),MATCH(Q$2&\" Score\",'C. PoC Adj Factor Scoring'!$E$4:$J$4,0),TRUE)","v":1},{"$f":"VLOOKUP(OFFSET($B:$B,,MATCH(R$4,$B$4:$F$4,0)-1),OFFSET('C. PoC Adj Factor Scoring'!$E$5:$J$282,,MATCH(R$4,'C. PoC Adj Factor Scoring'!$E$3:$AH$3,0)-1),MATCH(R$2&\" Score\",'C. PoC Adj Factor Scoring'!$E$4:$J$4,0),TRUE)","v":1},{"$f":"VLOOKUP(OFFSET($B:$B,,MATCH(S$4,$B$4:$F$4,0)-1),OFFSET('C. PoC Adj Factor Scoring'!$E$5:$J$282,,MATCH(S$4,'C. PoC Adj Factor Scoring'!$E$3:$AH$3,0)-1),MATCH(S$2&\" Score\",'C. PoC Adj Factor Scoring'!$E$4:$J$4,0),TRUE)","v":1},{"$f":"VLOOKUP(OFFSET($B:$B,,MATCH(T$4,$B$4:$F$4,0)-1),OFFSET('C. PoC Adj Factor Scoring'!$E$5:$J$282,,MATCH(T$4,'C. PoC Adj Factor Scoring'!$E$3:$AH$3,0)-1),MATCH(T$2&\" Score\",'C. PoC Adj Factor Scoring'!$E$4:$J$4,0),TRUE)","v":1},{"$f":"VLOOKUP(OFFSET($B:$B,,MATCH(U$4,$B$4:$F$4,0)-1),OFFSET('C. PoC Adj Factor Scoring'!$E$5:$J$282,,MATCH(U$4,'C. PoC Adj Factor Scoring'!$E$3:$AH$3,0)-1),MATCH(U$2&\" Score\",'C. PoC Adj Factor Scoring'!$E$4:$J$4,0),TRUE)","v":1},{"$f":"VLOOKUP(OFFSET($B:$B,,MATCH(V$4,$B$4:$F$4,0)-1),OFFSET('C. PoC Adj Factor Scoring'!$E$5:$J$282,,MATCH(V$4,'C. PoC Adj Factor Scoring'!$E$3:$AH$3,0)-1),MATCH(V$2&\" Score\",'C. PoC Adj Factor Scoring'!$E$4:$J$4,0),TRUE)","v":1},{"$f":"VLOOKUP(OFFSET($B:$B,,MATCH(W$4,$B$4:$F$4,0)-1),OFFSET('C. PoC Adj Factor Scoring'!$E$5:$J$282,,MATCH(W$4,'C. PoC Adj Factor Scoring'!$E$3:$AH$3,0)-1),MATCH(W$2&\" Score\",'C. PoC Adj Factor Scoring'!$E$4:$J$4,0),TRUE)","v":1},{"$f":"VLOOKUP(OFFSET($B:$B,,MATCH(X$4,$B$4:$F$4,0)-1),OFFSET('C. PoC Adj Factor Scoring'!$E$5:$J$282,,MATCH(X$4,'C. PoC Adj Factor Scoring'!$E$3:$AH$3,0)-1),MATCH(X$2&\" Score\",'C. PoC Adj Factor Scoring'!$E$4:$J$4,0),TRUE)","v":1},{"$f":"VLOOKUP(OFFSET($B:$B,,MATCH(Y$4,$B$4:$F$4,0)-1),OFFSET('C. PoC Adj Factor Scoring'!$E$5:$J$282,,MATCH(Y$4,'C. PoC Adj Factor Scoring'!$E$3:$AH$3,0)-1),MATCH(Y$2&\" Score\",'C. PoC Adj Factor Scoring'!$E$4:$J$4,0),TRUE)","v":1},{"$f":"VLOOKUP(OFFSET($B:$B,,MATCH(Z$4,$B$4:$F$4,0)-1),OFFSET('C. PoC Adj Factor Scoring'!$E$5:$J$282,,MATCH(Z$4,'C. PoC Adj Factor Scoring'!$E$3:$AH$3,0)-1),MATCH(Z$2&\" Score\",'C. PoC Adj Factor Scoring'!$E$4:$J$4,0),TRUE)","v":1},{"$f":"VLOOKUP(OFFSET($B:$B,,MATCH(AA$4,$B$4:$F$4,0)-1),OFFSET('C. PoC Adj Factor Scoring'!$E$5:$J$282,,MATCH(AA$4,'C. PoC Adj Factor Scoring'!$E$3:$AH$3,0)-1),MATCH(AA$2&\" Score\",'C. PoC Adj Factor Scoring'!$E$4:$J$4,0),TRUE)","v":3},{"$f":"VLOOKUP(OFFSET($B:$B,,MATCH(AB$4,$B$4:$F$4,0)-1),OFFSET('C. PoC Adj Factor Scoring'!$E$5:$J$282,,MATCH(AB$4,'C. PoC Adj Factor Scoring'!$E$3:$AH$3,0)-1),MATCH(AB$2&\" Score\",'C. PoC Adj Factor Scoring'!$E$4:$J$4,0),TRUE)","v":1},{"$f":"VLOOKUP(OFFSET($B:$B,,MATCH(AC$4,$B$4:$F$4,0)-1),OFFSET('C. PoC Adj Factor Scoring'!$E$5:$J$282,,MATCH(AC$4,'C. PoC Adj Factor Scoring'!$E$3:$AH$3,0)-1),MATCH(AC$2&\" Score\",'C. PoC Adj Factor Scoring'!$E$4:$J$4,0),TRUE)","v":1},{"$f":"VLOOKUP(OFFSET($B:$B,,MATCH(AD$4,$B$4:$F$4,0)-1),OFFSET('C. PoC Adj Factor Scoring'!$E$5:$J$282,,MATCH(AD$4,'C. PoC Adj Factor Scoring'!$E$3:$AH$3,0)-1),MATCH(AD$2&\" Score\",'C. PoC Adj Factor Scoring'!$E$4:$J$4,0),TRUE)","v":1},{"$f":"VLOOKUP(OFFSET($B:$B,,MATCH(AE$4,$B$4:$F$4,0)-1),OFFSET('C. PoC Adj Factor Scoring'!$E$5:$J$282,,MATCH(AE$4,'C. PoC Adj Factor Scoring'!$E$3:$AH$3,0)-1),MATCH(AE$2&\" Score\",'C. PoC Adj Factor Scoring'!$E$4:$J$4,0),TRUE)","v":1}]
[{"$f":"'A. Population Info'!A87","v":1000332539},{"$f":"'A. Population Info'!L87","v":"OIL"},{"$f":"'A. Population Info'!M87","v":0},{"$f":"'A. Population Info'!N87","v":0},{"$f":"'A. Population Info'!O87","v":0},{"$f":"'A. Population Info'!P87","v":0},{"$f":"VLOOKUP(OFFSET($B:$B,,MATCH(G$4,$B$4:$F$4,0)-1),OFFSET('C. PoC Adj Factor Scoring'!$E$5:$J$282,,MATCH(G$4,'C. PoC Adj Factor Scoring'!$E$3:$AH$3,0)-1),MATCH(G$2&\" Score\",'C. PoC Adj Factor Scoring'!$E$4:$J$4,0),TRUE)","v":4},{"$f":"VLOOKUP(OFFSET($B:$B,,MATCH(H$4,$B$4:$F$4,0)-1),OFFSET('C. PoC Adj Factor Scoring'!$E$5:$J$282,,MATCH(H$4,'C. PoC Adj Factor Scoring'!$E$3:$AH$3,0)-1),MATCH(H$2&\" Score\",'C. PoC Adj Factor Scoring'!$E$4:$J$4,0),TRUE)","v":1},{"$f":"VLOOKUP(OFFSET($B:$B,,MATCH(I$4,$B$4:$F$4,0)-1),OFFSET('C. PoC Adj Factor Scoring'!$E$5:$J$282,,MATCH(I$4,'C. PoC Adj Factor Scoring'!$E$3:$AH$3,0)-1),MATCH(I$2&\" Score\",'C. PoC Adj Factor Scoring'!$E$4:$J$4,0),TRUE)","v":1},{"$f":"VLOOKUP(OFFSET($B:$B,,MATCH(J$4,$B$4:$F$4,0)-1),OFFSET('C. PoC Adj Factor Scoring'!$E$5:$J$282,,MATCH(J$4,'C. PoC Adj Factor Scoring'!$E$3:$AH$3,0)-1),MATCH(J$2&\" Score\",'C. PoC Adj Factor Scoring'!$E$4:$J$4,0),TRUE)","v":1},{"$f":"VLOOKUP(OFFSET($B:$B,,MATCH(K$4,$B$4:$F$4,0)-1),OFFSET('C. PoC Adj Factor Scoring'!$E$5:$J$282,,MATCH(K$4,'C. PoC Adj Factor Scoring'!$E$3:$AH$3,0)-1),MATCH(K$2&\" Score\",'C. PoC Adj Factor Scoring'!$E$4:$J$4,0),TRUE)","v":1},{"$f":"VLOOKUP(OFFSET($B:$B,,MATCH(L$4,$B$4:$F$4,0)-1),OFFSET('C. PoC Adj Factor Scoring'!$E$5:$J$282,,MATCH(L$4,'C. PoC Adj Factor Scoring'!$E$3:$AH$3,0)-1),MATCH(L$2&\" Score\",'C. PoC Adj Factor Scoring'!$E$4:$J$4,0),TRUE)","v":1},{"$f":"VLOOKUP(OFFSET($B:$B,,MATCH(M$4,$B$4:$F$4,0)-1),OFFSET('C. PoC Adj Factor Scoring'!$E$5:$J$282,,MATCH(M$4,'C. PoC Adj Factor Scoring'!$E$3:$AH$3,0)-1),MATCH(M$2&\" Score\",'C. PoC Adj Factor Scoring'!$E$4:$J$4,0),TRUE)","v":1},{"$f":"VLOOKUP(OFFSET($B:$B,,MATCH(N$4,$B$4:$F$4,0)-1),OFFSET('C. PoC Adj Factor Scoring'!$E$5:$J$282,,MATCH(N$4,'C. PoC Adj Factor Scoring'!$E$3:$AH$3,0)-1),MATCH(N$2&\" Score\",'C. PoC Adj Factor Scoring'!$E$4:$J$4,0),TRUE)","v":1},{"$f":"VLOOKUP(OFFSET($B:$B,,MATCH(O$4,$B$4:$F$4,0)-1),OFFSET('C. PoC Adj Factor Scoring'!$E$5:$J$282,,MATCH(O$4,'C. PoC Adj Factor Scoring'!$E$3:$AH$3,0)-1),MATCH(O$2&\" Score\",'C. PoC Adj Factor Scoring'!$E$4:$J$4,0),TRUE)","v":1},{"$f":"VLOOKUP(OFFSET($B:$B,,MATCH(P$4,$B$4:$F$4,0)-1),OFFSET('C. PoC Adj Factor Scoring'!$E$5:$J$282,,MATCH(P$4,'C. PoC Adj Factor Scoring'!$E$3:$AH$3,0)-1),MATCH(P$2&\" Score\",'C. PoC Adj Factor Scoring'!$E$4:$J$4,0),TRUE)","v":1},{"$f":"VLOOKUP(OFFSET($B:$B,,MATCH(Q$4,$B$4:$F$4,0)-1),OFFSET('C. PoC Adj Factor Scoring'!$E$5:$J$282,,MATCH(Q$4,'C. PoC Adj Factor Scoring'!$E$3:$AH$3,0)-1),MATCH(Q$2&\" Score\",'C. PoC Adj Factor Scoring'!$E$4:$J$4,0),TRUE)","v":1},{"$f":"VLOOKUP(OFFSET($B:$B,,MATCH(R$4,$B$4:$F$4,0)-1),OFFSET('C. PoC Adj Factor Scoring'!$E$5:$J$282,,MATCH(R$4,'C. PoC Adj Factor Scoring'!$E$3:$AH$3,0)-1),MATCH(R$2&\" Score\",'C. PoC Adj Factor Scoring'!$E$4:$J$4,0),TRUE)","v":1},{"$f":"VLOOKUP(OFFSET($B:$B,,MATCH(S$4,$B$4:$F$4,0)-1),OFFSET('C. PoC Adj Factor Scoring'!$E$5:$J$282,,MATCH(S$4,'C. PoC Adj Factor Scoring'!$E$3:$AH$3,0)-1),MATCH(S$2&\" Score\",'C. PoC Adj Factor Scoring'!$E$4:$J$4,0),TRUE)","v":1},{"$f":"VLOOKUP(OFFSET($B:$B,,MATCH(T$4,$B$4:$F$4,0)-1),OFFSET('C. PoC Adj Factor Scoring'!$E$5:$J$282,,MATCH(T$4,'C. PoC Adj Factor Scoring'!$E$3:$AH$3,0)-1),MATCH(T$2&\" Score\",'C. PoC Adj Factor Scoring'!$E$4:$J$4,0),TRUE)","v":1},{"$f":"VLOOKUP(OFFSET($B:$B,,MATCH(U$4,$B$4:$F$4,0)-1),OFFSET('C. PoC Adj Factor Scoring'!$E$5:$J$282,,MATCH(U$4,'C. PoC Adj Factor Scoring'!$E$3:$AH$3,0)-1),MATCH(U$2&\" Score\",'C. PoC Adj Factor Scoring'!$E$4:$J$4,0),TRUE)","v":1},{"$f":"VLOOKUP(OFFSET($B:$B,,MATCH(V$4,$B$4:$F$4,0)-1),OFFSET('C. PoC Adj Factor Scoring'!$E$5:$J$282,,MATCH(V$4,'C. PoC Adj Factor Scoring'!$E$3:$AH$3,0)-1),MATCH(V$2&\" Score\",'C. PoC Adj Factor Scoring'!$E$4:$J$4,0),TRUE)","v":1},{"$f":"VLOOKUP(OFFSET($B:$B,,MATCH(W$4,$B$4:$F$4,0)-1),OFFSET('C. PoC Adj Factor Scoring'!$E$5:$J$282,,MATCH(W$4,'C. PoC Adj Factor Scoring'!$E$3:$AH$3,0)-1),MATCH(W$2&\" Score\",'C. PoC Adj Factor Scoring'!$E$4:$J$4,0),TRUE)","v":1},{"$f":"VLOOKUP(OFFSET($B:$B,,MATCH(X$4,$B$4:$F$4,0)-1),OFFSET('C. PoC Adj Factor Scoring'!$E$5:$J$282,,MATCH(X$4,'C. PoC Adj Factor Scoring'!$E$3:$AH$3,0)-1),MATCH(X$2&\" Score\",'C. PoC Adj Factor Scoring'!$E$4:$J$4,0),TRUE)","v":1},{"$f":"VLOOKUP(OFFSET($B:$B,,MATCH(Y$4,$B$4:$F$4,0)-1),OFFSET('C. PoC Adj Factor Scoring'!$E$5:$J$282,,MATCH(Y$4,'C. PoC Adj Factor Scoring'!$E$3:$AH$3,0)-1),MATCH(Y$2&\" Score\",'C. PoC Adj Factor Scoring'!$E$4:$J$4,0),TRUE)","v":1},{"$f":"VLOOKUP(OFFSET($B:$B,,MATCH(Z$4,$B$4:$F$4,0)-1),OFFSET('C. PoC Adj Factor Scoring'!$E$5:$J$282,,MATCH(Z$4,'C. PoC Adj Factor Scoring'!$E$3:$AH$3,0)-1),MATCH(Z$2&\" Score\",'C. PoC Adj Factor Scoring'!$E$4:$J$4,0),TRUE)","v":1},{"$f":"VLOOKUP(OFFSET($B:$B,,MATCH(AA$4,$B$4:$F$4,0)-1),OFFSET('C. PoC Adj Factor Scoring'!$E$5:$J$282,,MATCH(AA$4,'C. PoC Adj Factor Scoring'!$E$3:$AH$3,0)-1),MATCH(AA$2&\" Score\",'C. PoC Adj Factor Scoring'!$E$4:$J$4,0),TRUE)","v":3},{"$f":"VLOOKUP(OFFSET($B:$B,,MATCH(AB$4,$B$4:$F$4,0)-1),OFFSET('C. PoC Adj Factor Scoring'!$E$5:$J$282,,MATCH(AB$4,'C. PoC Adj Factor Scoring'!$E$3:$AH$3,0)-1),MATCH(AB$2&\" Score\",'C. PoC Adj Factor Scoring'!$E$4:$J$4,0),TRUE)","v":1},{"$f":"VLOOKUP(OFFSET($B:$B,,MATCH(AC$4,$B$4:$F$4,0)-1),OFFSET('C. PoC Adj Factor Scoring'!$E$5:$J$282,,MATCH(AC$4,'C. PoC Adj Factor Scoring'!$E$3:$AH$3,0)-1),MATCH(AC$2&\" Score\",'C. PoC Adj Factor Scoring'!$E$4:$J$4,0),TRUE)","v":1},{"$f":"VLOOKUP(OFFSET($B:$B,,MATCH(AD$4,$B$4:$F$4,0)-1),OFFSET('C. PoC Adj Factor Scoring'!$E$5:$J$282,,MATCH(AD$4,'C. PoC Adj Factor Scoring'!$E$3:$AH$3,0)-1),MATCH(AD$2&\" Score\",'C. PoC Adj Factor Scoring'!$E$4:$J$4,0),TRUE)","v":1},{"$f":"VLOOKUP(OFFSET($B:$B,,MATCH(AE$4,$B$4:$F$4,0)-1),OFFSET('C. PoC Adj Factor Scoring'!$E$5:$J$282,,MATCH(AE$4,'C. PoC Adj Factor Scoring'!$E$3:$AH$3,0)-1),MATCH(AE$2&\" Score\",'C. PoC Adj Factor Scoring'!$E$4:$J$4,0),TRUE)","v":1}]
[{"$f":"'A. Population Info'!A88","v":1000332568},{"$f":"'A. Population Info'!L88","v":"OIL"},{"$f":"'A. Population Info'!M88","v":0},{"$f":"'A. Population Info'!N88","v":0},{"$f":"'A. Population Info'!O88","v":0},{"$f":"'A. Population Info'!P88","v":0},{"$f":"VLOOKUP(OFFSET($B:$B,,MATCH(G$4,$B$4:$F$4,0)-1),OFFSET('C. PoC Adj Factor Scoring'!$E$5:$J$282,,MATCH(G$4,'C. PoC Adj Factor Scoring'!$E$3:$AH$3,0)-1),MATCH(G$2&\" Score\",'C. PoC Adj Factor Scoring'!$E$4:$J$4,0),TRUE)","v":4},{"$f":"VLOOKUP(OFFSET($B:$B,,MATCH(H$4,$B$4:$F$4,0)-1),OFFSET('C. PoC Adj Factor Scoring'!$E$5:$J$282,,MATCH(H$4,'C. PoC Adj Factor Scoring'!$E$3:$AH$3,0)-1),MATCH(H$2&\" Score\",'C. PoC Adj Factor Scoring'!$E$4:$J$4,0),TRUE)","v":1},{"$f":"VLOOKUP(OFFSET($B:$B,,MATCH(I$4,$B$4:$F$4,0)-1),OFFSET('C. PoC Adj Factor Scoring'!$E$5:$J$282,,MATCH(I$4,'C. PoC Adj Factor Scoring'!$E$3:$AH$3,0)-1),MATCH(I$2&\" Score\",'C. PoC Adj Factor Scoring'!$E$4:$J$4,0),TRUE)","v":1},{"$f":"VLOOKUP(OFFSET($B:$B,,MATCH(J$4,$B$4:$F$4,0)-1),OFFSET('C. PoC Adj Factor Scoring'!$E$5:$J$282,,MATCH(J$4,'C. PoC Adj Factor Scoring'!$E$3:$AH$3,0)-1),MATCH(J$2&\" Score\",'C. PoC Adj Factor Scoring'!$E$4:$J$4,0),TRUE)","v":1},{"$f":"VLOOKUP(OFFSET($B:$B,,MATCH(K$4,$B$4:$F$4,0)-1),OFFSET('C. PoC Adj Factor Scoring'!$E$5:$J$282,,MATCH(K$4,'C. PoC Adj Factor Scoring'!$E$3:$AH$3,0)-1),MATCH(K$2&\" Score\",'C. PoC Adj Factor Scoring'!$E$4:$J$4,0),TRUE)","v":1},{"$f":"VLOOKUP(OFFSET($B:$B,,MATCH(L$4,$B$4:$F$4,0)-1),OFFSET('C. PoC Adj Factor Scoring'!$E$5:$J$282,,MATCH(L$4,'C. PoC Adj Factor Scoring'!$E$3:$AH$3,0)-1),MATCH(L$2&\" Score\",'C. PoC Adj Factor Scoring'!$E$4:$J$4,0),TRUE)","v":1},{"$f":"VLOOKUP(OFFSET($B:$B,,MATCH(M$4,$B$4:$F$4,0)-1),OFFSET('C. PoC Adj Factor Scoring'!$E$5:$J$282,,MATCH(M$4,'C. PoC Adj Factor Scoring'!$E$3:$AH$3,0)-1),MATCH(M$2&\" Score\",'C. PoC Adj Factor Scoring'!$E$4:$J$4,0),TRUE)","v":1},{"$f":"VLOOKUP(OFFSET($B:$B,,MATCH(N$4,$B$4:$F$4,0)-1),OFFSET('C. PoC Adj Factor Scoring'!$E$5:$J$282,,MATCH(N$4,'C. PoC Adj Factor Scoring'!$E$3:$AH$3,0)-1),MATCH(N$2&\" Score\",'C. PoC Adj Factor Scoring'!$E$4:$J$4,0),TRUE)","v":1},{"$f":"VLOOKUP(OFFSET($B:$B,,MATCH(O$4,$B$4:$F$4,0)-1),OFFSET('C. PoC Adj Factor Scoring'!$E$5:$J$282,,MATCH(O$4,'C. PoC Adj Factor Scoring'!$E$3:$AH$3,0)-1),MATCH(O$2&\" Score\",'C. PoC Adj Factor Scoring'!$E$4:$J$4,0),TRUE)","v":1},{"$f":"VLOOKUP(OFFSET($B:$B,,MATCH(P$4,$B$4:$F$4,0)-1),OFFSET('C. PoC Adj Factor Scoring'!$E$5:$J$282,,MATCH(P$4,'C. PoC Adj Factor Scoring'!$E$3:$AH$3,0)-1),MATCH(P$2&\" Score\",'C. PoC Adj Factor Scoring'!$E$4:$J$4,0),TRUE)","v":1},{"$f":"VLOOKUP(OFFSET($B:$B,,MATCH(Q$4,$B$4:$F$4,0)-1),OFFSET('C. PoC Adj Factor Scoring'!$E$5:$J$282,,MATCH(Q$4,'C. PoC Adj Factor Scoring'!$E$3:$AH$3,0)-1),MATCH(Q$2&\" Score\",'C. PoC Adj Factor Scoring'!$E$4:$J$4,0),TRUE)","v":1},{"$f":"VLOOKUP(OFFSET($B:$B,,MATCH(R$4,$B$4:$F$4,0)-1),OFFSET('C. PoC Adj Factor Scoring'!$E$5:$J$282,,MATCH(R$4,'C. PoC Adj Factor Scoring'!$E$3:$AH$3,0)-1),MATCH(R$2&\" Score\",'C. PoC Adj Factor Scoring'!$E$4:$J$4,0),TRUE)","v":1},{"$f":"VLOOKUP(OFFSET($B:$B,,MATCH(S$4,$B$4:$F$4,0)-1),OFFSET('C. PoC Adj Factor Scoring'!$E$5:$J$282,,MATCH(S$4,'C. PoC Adj Factor Scoring'!$E$3:$AH$3,0)-1),MATCH(S$2&\" Score\",'C. PoC Adj Factor Scoring'!$E$4:$J$4,0),TRUE)","v":1},{"$f":"VLOOKUP(OFFSET($B:$B,,MATCH(T$4,$B$4:$F$4,0)-1),OFFSET('C. PoC Adj Factor Scoring'!$E$5:$J$282,,MATCH(T$4,'C. PoC Adj Factor Scoring'!$E$3:$AH$3,0)-1),MATCH(T$2&\" Score\",'C. PoC Adj Factor Scoring'!$E$4:$J$4,0),TRUE)","v":1},{"$f":"VLOOKUP(OFFSET($B:$B,,MATCH(U$4,$B$4:$F$4,0)-1),OFFSET('C. PoC Adj Factor Scoring'!$E$5:$J$282,,MATCH(U$4,'C. PoC Adj Factor Scoring'!$E$3:$AH$3,0)-1),MATCH(U$2&\" Score\",'C. PoC Adj Factor Scoring'!$E$4:$J$4,0),TRUE)","v":1},{"$f":"VLOOKUP(OFFSET($B:$B,,MATCH(V$4,$B$4:$F$4,0)-1),OFFSET('C. PoC Adj Factor Scoring'!$E$5:$J$282,,MATCH(V$4,'C. PoC Adj Factor Scoring'!$E$3:$AH$3,0)-1),MATCH(V$2&\" Score\",'C. PoC Adj Factor Scoring'!$E$4:$J$4,0),TRUE)","v":1},{"$f":"VLOOKUP(OFFSET($B:$B,,MATCH(W$4,$B$4:$F$4,0)-1),OFFSET('C. PoC Adj Factor Scoring'!$E$5:$J$282,,MATCH(W$4,'C. PoC Adj Factor Scoring'!$E$3:$AH$3,0)-1),MATCH(W$2&\" Score\",'C. PoC Adj Factor Scoring'!$E$4:$J$4,0),TRUE)","v":1},{"$f":"VLOOKUP(OFFSET($B:$B,,MATCH(X$4,$B$4:$F$4,0)-1),OFFSET('C. PoC Adj Factor Scoring'!$E$5:$J$282,,MATCH(X$4,'C. PoC Adj Factor Scoring'!$E$3:$AH$3,0)-1),MATCH(X$2&\" Score\",'C. PoC Adj Factor Scoring'!$E$4:$J$4,0),TRUE)","v":1},{"$f":"VLOOKUP(OFFSET($B:$B,,MATCH(Y$4,$B$4:$F$4,0)-1),OFFSET('C. PoC Adj Factor Scoring'!$E$5:$J$282,,MATCH(Y$4,'C. PoC Adj Factor Scoring'!$E$3:$AH$3,0)-1),MATCH(Y$2&\" Score\",'C. PoC Adj Factor Scoring'!$E$4:$J$4,0),TRUE)","v":1},{"$f":"VLOOKUP(OFFSET($B:$B,,MATCH(Z$4,$B$4:$F$4,0)-1),OFFSET('C. PoC Adj Factor Scoring'!$E$5:$J$282,,MATCH(Z$4,'C. PoC Adj Factor Scoring'!$E$3:$AH$3,0)-1),MATCH(Z$2&\" Score\",'C. PoC Adj Factor Scoring'!$E$4:$J$4,0),TRUE)","v":1},{"$f":"VLOOKUP(OFFSET($B:$B,,MATCH(AA$4,$B$4:$F$4,0)-1),OFFSET('C. PoC Adj Factor Scoring'!$E$5:$J$282,,MATCH(AA$4,'C. PoC Adj Factor Scoring'!$E$3:$AH$3,0)-1),MATCH(AA$2&\" Score\",'C. PoC Adj Factor Scoring'!$E$4:$J$4,0),TRUE)","v":3},{"$f":"VLOOKUP(OFFSET($B:$B,,MATCH(AB$4,$B$4:$F$4,0)-1),OFFSET('C. PoC Adj Factor Scoring'!$E$5:$J$282,,MATCH(AB$4,'C. PoC Adj Factor Scoring'!$E$3:$AH$3,0)-1),MATCH(AB$2&\" Score\",'C. PoC Adj Factor Scoring'!$E$4:$J$4,0),TRUE)","v":1},{"$f":"VLOOKUP(OFFSET($B:$B,,MATCH(AC$4,$B$4:$F$4,0)-1),OFFSET('C. PoC Adj Factor Scoring'!$E$5:$J$282,,MATCH(AC$4,'C. PoC Adj Factor Scoring'!$E$3:$AH$3,0)-1),MATCH(AC$2&\" Score\",'C. PoC Adj Factor Scoring'!$E$4:$J$4,0),TRUE)","v":1},{"$f":"VLOOKUP(OFFSET($B:$B,,MATCH(AD$4,$B$4:$F$4,0)-1),OFFSET('C. PoC Adj Factor Scoring'!$E$5:$J$282,,MATCH(AD$4,'C. PoC Adj Factor Scoring'!$E$3:$AH$3,0)-1),MATCH(AD$2&\" Score\",'C. PoC Adj Factor Scoring'!$E$4:$J$4,0),TRUE)","v":1},{"$f":"VLOOKUP(OFFSET($B:$B,,MATCH(AE$4,$B$4:$F$4,0)-1),OFFSET('C. PoC Adj Factor Scoring'!$E$5:$J$282,,MATCH(AE$4,'C. PoC Adj Factor Scoring'!$E$3:$AH$3,0)-1),MATCH(AE$2&\" Score\",'C. PoC Adj Factor Scoring'!$E$4:$J$4,0),TRUE)","v":1}]
[{"$f":"'A. Population Info'!A89","v":1000332625},{"$f":"'A. Population Info'!L89","v":"OIL"},{"$f":"'A. Population Info'!M89","v":0},{"$f":"'A. Population Info'!N89","v":0},{"$f":"'A. Population Info'!O89","v":0},{"$f":"'A. Population Info'!P89","v":0},{"$f":"VLOOKUP(OFFSET($B:$B,,MATCH(G$4,$B$4:$F$4,0)-1),OFFSET('C. PoC Adj Factor Scoring'!$E$5:$J$282,,MATCH(G$4,'C. PoC Adj Factor Scoring'!$E$3:$AH$3,0)-1),MATCH(G$2&\" Score\",'C. PoC Adj Factor Scoring'!$E$4:$J$4,0),TRUE)","v":4},{"$f":"VLOOKUP(OFFSET($B:$B,,MATCH(H$4,$B$4:$F$4,0)-1),OFFSET('C. PoC Adj Factor Scoring'!$E$5:$J$282,,MATCH(H$4,'C. PoC Adj Factor Scoring'!$E$3:$AH$3,0)-1),MATCH(H$2&\" Score\",'C. PoC Adj Factor Scoring'!$E$4:$J$4,0),TRUE)","v":1},{"$f":"VLOOKUP(OFFSET($B:$B,,MATCH(I$4,$B$4:$F$4,0)-1),OFFSET('C. PoC Adj Factor Scoring'!$E$5:$J$282,,MATCH(I$4,'C. PoC Adj Factor Scoring'!$E$3:$AH$3,0)-1),MATCH(I$2&\" Score\",'C. PoC Adj Factor Scoring'!$E$4:$J$4,0),TRUE)","v":1},{"$f":"VLOOKUP(OFFSET($B:$B,,MATCH(J$4,$B$4:$F$4,0)-1),OFFSET('C. PoC Adj Factor Scoring'!$E$5:$J$282,,MATCH(J$4,'C. PoC Adj Factor Scoring'!$E$3:$AH$3,0)-1),MATCH(J$2&\" Score\",'C. PoC Adj Factor Scoring'!$E$4:$J$4,0),TRUE)","v":1},{"$f":"VLOOKUP(OFFSET($B:$B,,MATCH(K$4,$B$4:$F$4,0)-1),OFFSET('C. PoC Adj Factor Scoring'!$E$5:$J$282,,MATCH(K$4,'C. PoC Adj Factor Scoring'!$E$3:$AH$3,0)-1),MATCH(K$2&\" Score\",'C. PoC Adj Factor Scoring'!$E$4:$J$4,0),TRUE)","v":1},{"$f":"VLOOKUP(OFFSET($B:$B,,MATCH(L$4,$B$4:$F$4,0)-1),OFFSET('C. PoC Adj Factor Scoring'!$E$5:$J$282,,MATCH(L$4,'C. PoC Adj Factor Scoring'!$E$3:$AH$3,0)-1),MATCH(L$2&\" Score\",'C. PoC Adj Factor Scoring'!$E$4:$J$4,0),TRUE)","v":1},{"$f":"VLOOKUP(OFFSET($B:$B,,MATCH(M$4,$B$4:$F$4,0)-1),OFFSET('C. PoC Adj Factor Scoring'!$E$5:$J$282,,MATCH(M$4,'C. PoC Adj Factor Scoring'!$E$3:$AH$3,0)-1),MATCH(M$2&\" Score\",'C. PoC Adj Factor Scoring'!$E$4:$J$4,0),TRUE)","v":1},{"$f":"VLOOKUP(OFFSET($B:$B,,MATCH(N$4,$B$4:$F$4,0)-1),OFFSET('C. PoC Adj Factor Scoring'!$E$5:$J$282,,MATCH(N$4,'C. PoC Adj Factor Scoring'!$E$3:$AH$3,0)-1),MATCH(N$2&\" Score\",'C. PoC Adj Factor Scoring'!$E$4:$J$4,0),TRUE)","v":1},{"$f":"VLOOKUP(OFFSET($B:$B,,MATCH(O$4,$B$4:$F$4,0)-1),OFFSET('C. PoC Adj Factor Scoring'!$E$5:$J$282,,MATCH(O$4,'C. PoC Adj Factor Scoring'!$E$3:$AH$3,0)-1),MATCH(O$2&\" Score\",'C. PoC Adj Factor Scoring'!$E$4:$J$4,0),TRUE)","v":1},{"$f":"VLOOKUP(OFFSET($B:$B,,MATCH(P$4,$B$4:$F$4,0)-1),OFFSET('C. PoC Adj Factor Scoring'!$E$5:$J$282,,MATCH(P$4,'C. PoC Adj Factor Scoring'!$E$3:$AH$3,0)-1),MATCH(P$2&\" Score\",'C. PoC Adj Factor Scoring'!$E$4:$J$4,0),TRUE)","v":1},{"$f":"VLOOKUP(OFFSET($B:$B,,MATCH(Q$4,$B$4:$F$4,0)-1),OFFSET('C. PoC Adj Factor Scoring'!$E$5:$J$282,,MATCH(Q$4,'C. PoC Adj Factor Scoring'!$E$3:$AH$3,0)-1),MATCH(Q$2&\" Score\",'C. PoC Adj Factor Scoring'!$E$4:$J$4,0),TRUE)","v":1},{"$f":"VLOOKUP(OFFSET($B:$B,,MATCH(R$4,$B$4:$F$4,0)-1),OFFSET('C. PoC Adj Factor Scoring'!$E$5:$J$282,,MATCH(R$4,'C. PoC Adj Factor Scoring'!$E$3:$AH$3,0)-1),MATCH(R$2&\" Score\",'C. PoC Adj Factor Scoring'!$E$4:$J$4,0),TRUE)","v":1},{"$f":"VLOOKUP(OFFSET($B:$B,,MATCH(S$4,$B$4:$F$4,0)-1),OFFSET('C. PoC Adj Factor Scoring'!$E$5:$J$282,,MATCH(S$4,'C. PoC Adj Factor Scoring'!$E$3:$AH$3,0)-1),MATCH(S$2&\" Score\",'C. PoC Adj Factor Scoring'!$E$4:$J$4,0),TRUE)","v":1},{"$f":"VLOOKUP(OFFSET($B:$B,,MATCH(T$4,$B$4:$F$4,0)-1),OFFSET('C. PoC Adj Factor Scoring'!$E$5:$J$282,,MATCH(T$4,'C. PoC Adj Factor Scoring'!$E$3:$AH$3,0)-1),MATCH(T$2&\" Score\",'C. PoC Adj Factor Scoring'!$E$4:$J$4,0),TRUE)","v":1},{"$f":"VLOOKUP(OFFSET($B:$B,,MATCH(U$4,$B$4:$F$4,0)-1),OFFSET('C. PoC Adj Factor Scoring'!$E$5:$J$282,,MATCH(U$4,'C. PoC Adj Factor Scoring'!$E$3:$AH$3,0)-1),MATCH(U$2&\" Score\",'C. PoC Adj Factor Scoring'!$E$4:$J$4,0),TRUE)","v":1},{"$f":"VLOOKUP(OFFSET($B:$B,,MATCH(V$4,$B$4:$F$4,0)-1),OFFSET('C. PoC Adj Factor Scoring'!$E$5:$J$282,,MATCH(V$4,'C. PoC Adj Factor Scoring'!$E$3:$AH$3,0)-1),MATCH(V$2&\" Score\",'C. PoC Adj Factor Scoring'!$E$4:$J$4,0),TRUE)","v":1},{"$f":"VLOOKUP(OFFSET($B:$B,,MATCH(W$4,$B$4:$F$4,0)-1),OFFSET('C. PoC Adj Factor Scoring'!$E$5:$J$282,,MATCH(W$4,'C. PoC Adj Factor Scoring'!$E$3:$AH$3,0)-1),MATCH(W$2&\" Score\",'C. PoC Adj Factor Scoring'!$E$4:$J$4,0),TRUE)","v":1},{"$f":"VLOOKUP(OFFSET($B:$B,,MATCH(X$4,$B$4:$F$4,0)-1),OFFSET('C. PoC Adj Factor Scoring'!$E$5:$J$282,,MATCH(X$4,'C. PoC Adj Factor Scoring'!$E$3:$AH$3,0)-1),MATCH(X$2&\" Score\",'C. PoC Adj Factor Scoring'!$E$4:$J$4,0),TRUE)","v":1},{"$f":"VLOOKUP(OFFSET($B:$B,,MATCH(Y$4,$B$4:$F$4,0)-1),OFFSET('C. PoC Adj Factor Scoring'!$E$5:$J$282,,MATCH(Y$4,'C. PoC Adj Factor Scoring'!$E$3:$AH$3,0)-1),MATCH(Y$2&\" Score\",'C. PoC Adj Factor Scoring'!$E$4:$J$4,0),TRUE)","v":1},{"$f":"VLOOKUP(OFFSET($B:$B,,MATCH(Z$4,$B$4:$F$4,0)-1),OFFSET('C. PoC Adj Factor Scoring'!$E$5:$J$282,,MATCH(Z$4,'C. PoC Adj Factor Scoring'!$E$3:$AH$3,0)-1),MATCH(Z$2&\" Score\",'C. PoC Adj Factor Scoring'!$E$4:$J$4,0),TRUE)","v":1},{"$f":"VLOOKUP(OFFSET($B:$B,,MATCH(AA$4,$B$4:$F$4,0)-1),OFFSET('C. PoC Adj Factor Scoring'!$E$5:$J$282,,MATCH(AA$4,'C. PoC Adj Factor Scoring'!$E$3:$AH$3,0)-1),MATCH(AA$2&\" Score\",'C. PoC Adj Factor Scoring'!$E$4:$J$4,0),TRUE)","v":3},{"$f":"VLOOKUP(OFFSET($B:$B,,MATCH(AB$4,$B$4:$F$4,0)-1),OFFSET('C. PoC Adj Factor Scoring'!$E$5:$J$282,,MATCH(AB$4,'C. PoC Adj Factor Scoring'!$E$3:$AH$3,0)-1),MATCH(AB$2&\" Score\",'C. PoC Adj Factor Scoring'!$E$4:$J$4,0),TRUE)","v":1},{"$f":"VLOOKUP(OFFSET($B:$B,,MATCH(AC$4,$B$4:$F$4,0)-1),OFFSET('C. PoC Adj Factor Scoring'!$E$5:$J$282,,MATCH(AC$4,'C. PoC Adj Factor Scoring'!$E$3:$AH$3,0)-1),MATCH(AC$2&\" Score\",'C. PoC Adj Factor Scoring'!$E$4:$J$4,0),TRUE)","v":1},{"$f":"VLOOKUP(OFFSET($B:$B,,MATCH(AD$4,$B$4:$F$4,0)-1),OFFSET('C. PoC Adj Factor Scoring'!$E$5:$J$282,,MATCH(AD$4,'C. PoC Adj Factor Scoring'!$E$3:$AH$3,0)-1),MATCH(AD$2&\" Score\",'C. PoC Adj Factor Scoring'!$E$4:$J$4,0),TRUE)","v":1},{"$f":"VLOOKUP(OFFSET($B:$B,,MATCH(AE$4,$B$4:$F$4,0)-1),OFFSET('C. PoC Adj Factor Scoring'!$E$5:$J$282,,MATCH(AE$4,'C. PoC Adj Factor Scoring'!$E$3:$AH$3,0)-1),MATCH(AE$2&\" Score\",'C. PoC Adj Factor Scoring'!$E$4:$J$4,0),TRUE)","v":1}]
[{"$f":"'A. Population Info'!A90","v":1000332657},{"$f":"'A. Population Info'!L90","v":"OIL"},{"$f":"'A. Population Info'!M90","v":0},{"$f":"'A. Population Info'!N90","v":0},{"$f":"'A. Population Info'!O90","v":0},{"$f":"'A. Population Info'!P90","v":0},{"$f":"VLOOKUP(OFFSET($B:$B,,MATCH(G$4,$B$4:$F$4,0)-1),OFFSET('C. PoC Adj Factor Scoring'!$E$5:$J$282,,MATCH(G$4,'C. PoC Adj Factor Scoring'!$E$3:$AH$3,0)-1),MATCH(G$2&\" Score\",'C. PoC Adj Factor Scoring'!$E$4:$J$4,0),TRUE)","v":4},{"$f":"VLOOKUP(OFFSET($B:$B,,MATCH(H$4,$B$4:$F$4,0)-1),OFFSET('C. PoC Adj Factor Scoring'!$E$5:$J$282,,MATCH(H$4,'C. PoC Adj Factor Scoring'!$E$3:$AH$3,0)-1),MATCH(H$2&\" Score\",'C. PoC Adj Factor Scoring'!$E$4:$J$4,0),TRUE)","v":1},{"$f":"VLOOKUP(OFFSET($B:$B,,MATCH(I$4,$B$4:$F$4,0)-1),OFFSET('C. PoC Adj Factor Scoring'!$E$5:$J$282,,MATCH(I$4,'C. PoC Adj Factor Scoring'!$E$3:$AH$3,0)-1),MATCH(I$2&\" Score\",'C. PoC Adj Factor Scoring'!$E$4:$J$4,0),TRUE)","v":1},{"$f":"VLOOKUP(OFFSET($B:$B,,MATCH(J$4,$B$4:$F$4,0)-1),OFFSET('C. PoC Adj Factor Scoring'!$E$5:$J$282,,MATCH(J$4,'C. PoC Adj Factor Scoring'!$E$3:$AH$3,0)-1),MATCH(J$2&\" Score\",'C. PoC Adj Factor Scoring'!$E$4:$J$4,0),TRUE)","v":1},{"$f":"VLOOKUP(OFFSET($B:$B,,MATCH(K$4,$B$4:$F$4,0)-1),OFFSET('C. PoC Adj Factor Scoring'!$E$5:$J$282,,MATCH(K$4,'C. PoC Adj Factor Scoring'!$E$3:$AH$3,0)-1),MATCH(K$2&\" Score\",'C. PoC Adj Factor Scoring'!$E$4:$J$4,0),TRUE)","v":1},{"$f":"VLOOKUP(OFFSET($B:$B,,MATCH(L$4,$B$4:$F$4,0)-1),OFFSET('C. PoC Adj Factor Scoring'!$E$5:$J$282,,MATCH(L$4,'C. PoC Adj Factor Scoring'!$E$3:$AH$3,0)-1),MATCH(L$2&\" Score\",'C. PoC Adj Factor Scoring'!$E$4:$J$4,0),TRUE)","v":1},{"$f":"VLOOKUP(OFFSET($B:$B,,MATCH(M$4,$B$4:$F$4,0)-1),OFFSET('C. PoC Adj Factor Scoring'!$E$5:$J$282,,MATCH(M$4,'C. PoC Adj Factor Scoring'!$E$3:$AH$3,0)-1),MATCH(M$2&\" Score\",'C. PoC Adj Factor Scoring'!$E$4:$J$4,0),TRUE)","v":1},{"$f":"VLOOKUP(OFFSET($B:$B,,MATCH(N$4,$B$4:$F$4,0)-1),OFFSET('C. PoC Adj Factor Scoring'!$E$5:$J$282,,MATCH(N$4,'C. PoC Adj Factor Scoring'!$E$3:$AH$3,0)-1),MATCH(N$2&\" Score\",'C. PoC Adj Factor Scoring'!$E$4:$J$4,0),TRUE)","v":1},{"$f":"VLOOKUP(OFFSET($B:$B,,MATCH(O$4,$B$4:$F$4,0)-1),OFFSET('C. PoC Adj Factor Scoring'!$E$5:$J$282,,MATCH(O$4,'C. PoC Adj Factor Scoring'!$E$3:$AH$3,0)-1),MATCH(O$2&\" Score\",'C. PoC Adj Factor Scoring'!$E$4:$J$4,0),TRUE)","v":1},{"$f":"VLOOKUP(OFFSET($B:$B,,MATCH(P$4,$B$4:$F$4,0)-1),OFFSET('C. PoC Adj Factor Scoring'!$E$5:$J$282,,MATCH(P$4,'C. PoC Adj Factor Scoring'!$E$3:$AH$3,0)-1),MATCH(P$2&\" Score\",'C. PoC Adj Factor Scoring'!$E$4:$J$4,0),TRUE)","v":1},{"$f":"VLOOKUP(OFFSET($B:$B,,MATCH(Q$4,$B$4:$F$4,0)-1),OFFSET('C. PoC Adj Factor Scoring'!$E$5:$J$282,,MATCH(Q$4,'C. PoC Adj Factor Scoring'!$E$3:$AH$3,0)-1),MATCH(Q$2&\" Score\",'C. PoC Adj Factor Scoring'!$E$4:$J$4,0),TRUE)","v":1},{"$f":"VLOOKUP(OFFSET($B:$B,,MATCH(R$4,$B$4:$F$4,0)-1),OFFSET('C. PoC Adj Factor Scoring'!$E$5:$J$282,,MATCH(R$4,'C. PoC Adj Factor Scoring'!$E$3:$AH$3,0)-1),MATCH(R$2&\" Score\",'C. PoC Adj Factor Scoring'!$E$4:$J$4,0),TRUE)","v":1},{"$f":"VLOOKUP(OFFSET($B:$B,,MATCH(S$4,$B$4:$F$4,0)-1),OFFSET('C. PoC Adj Factor Scoring'!$E$5:$J$282,,MATCH(S$4,'C. PoC Adj Factor Scoring'!$E$3:$AH$3,0)-1),MATCH(S$2&\" Score\",'C. PoC Adj Factor Scoring'!$E$4:$J$4,0),TRUE)","v":1},{"$f":"VLOOKUP(OFFSET($B:$B,,MATCH(T$4,$B$4:$F$4,0)-1),OFFSET('C. PoC Adj Factor Scoring'!$E$5:$J$282,,MATCH(T$4,'C. PoC Adj Factor Scoring'!$E$3:$AH$3,0)-1),MATCH(T$2&\" Score\",'C. PoC Adj Factor Scoring'!$E$4:$J$4,0),TRUE)","v":1},{"$f":"VLOOKUP(OFFSET($B:$B,,MATCH(U$4,$B$4:$F$4,0)-1),OFFSET('C. PoC Adj Factor Scoring'!$E$5:$J$282,,MATCH(U$4,'C. PoC Adj Factor Scoring'!$E$3:$AH$3,0)-1),MATCH(U$2&\" Score\",'C. PoC Adj Factor Scoring'!$E$4:$J$4,0),TRUE)","v":1},{"$f":"VLOOKUP(OFFSET($B:$B,,MATCH(V$4,$B$4:$F$4,0)-1),OFFSET('C. PoC Adj Factor Scoring'!$E$5:$J$282,,MATCH(V$4,'C. PoC Adj Factor Scoring'!$E$3:$AH$3,0)-1),MATCH(V$2&\" Score\",'C. PoC Adj Factor Scoring'!$E$4:$J$4,0),TRUE)","v":1},{"$f":"VLOOKUP(OFFSET($B:$B,,MATCH(W$4,$B$4:$F$4,0)-1),OFFSET('C. PoC Adj Factor Scoring'!$E$5:$J$282,,MATCH(W$4,'C. PoC Adj Factor Scoring'!$E$3:$AH$3,0)-1),MATCH(W$2&\" Score\",'C. PoC Adj Factor Scoring'!$E$4:$J$4,0),TRUE)","v":1},{"$f":"VLOOKUP(OFFSET($B:$B,,MATCH(X$4,$B$4:$F$4,0)-1),OFFSET('C. PoC Adj Factor Scoring'!$E$5:$J$282,,MATCH(X$4,'C. PoC Adj Factor Scoring'!$E$3:$AH$3,0)-1),MATCH(X$2&\" Score\",'C. PoC Adj Factor Scoring'!$E$4:$J$4,0),TRUE)","v":1},{"$f":"VLOOKUP(OFFSET($B:$B,,MATCH(Y$4,$B$4:$F$4,0)-1),OFFSET('C. PoC Adj Factor Scoring'!$E$5:$J$282,,MATCH(Y$4,'C. PoC Adj Factor Scoring'!$E$3:$AH$3,0)-1),MATCH(Y$2&\" Score\",'C. PoC Adj Factor Scoring'!$E$4:$J$4,0),TRUE)","v":1},{"$f":"VLOOKUP(OFFSET($B:$B,,MATCH(Z$4,$B$4:$F$4,0)-1),OFFSET('C. PoC Adj Factor Scoring'!$E$5:$J$282,,MATCH(Z$4,'C. PoC Adj Factor Scoring'!$E$3:$AH$3,0)-1),MATCH(Z$2&\" Score\",'C. PoC Adj Factor Scoring'!$E$4:$J$4,0),TRUE)","v":1},{"$f":"VLOOKUP(OFFSET($B:$B,,MATCH(AA$4,$B$4:$F$4,0)-1),OFFSET('C. PoC Adj Factor Scoring'!$E$5:$J$282,,MATCH(AA$4,'C. PoC Adj Factor Scoring'!$E$3:$AH$3,0)-1),MATCH(AA$2&\" Score\",'C. PoC Adj Factor Scoring'!$E$4:$J$4,0),TRUE)","v":3},{"$f":"VLOOKUP(OFFSET($B:$B,,MATCH(AB$4,$B$4:$F$4,0)-1),OFFSET('C. PoC Adj Factor Scoring'!$E$5:$J$282,,MATCH(AB$4,'C. PoC Adj Factor Scoring'!$E$3:$AH$3,0)-1),MATCH(AB$2&\" Score\",'C. PoC Adj Factor Scoring'!$E$4:$J$4,0),TRUE)","v":1},{"$f":"VLOOKUP(OFFSET($B:$B,,MATCH(AC$4,$B$4:$F$4,0)-1),OFFSET('C. PoC Adj Factor Scoring'!$E$5:$J$282,,MATCH(AC$4,'C. PoC Adj Factor Scoring'!$E$3:$AH$3,0)-1),MATCH(AC$2&\" Score\",'C. PoC Adj Factor Scoring'!$E$4:$J$4,0),TRUE)","v":1},{"$f":"VLOOKUP(OFFSET($B:$B,,MATCH(AD$4,$B$4:$F$4,0)-1),OFFSET('C. PoC Adj Factor Scoring'!$E$5:$J$282,,MATCH(AD$4,'C. PoC Adj Factor Scoring'!$E$3:$AH$3,0)-1),MATCH(AD$2&\" Score\",'C. PoC Adj Factor Scoring'!$E$4:$J$4,0),TRUE)","v":1},{"$f":"VLOOKUP(OFFSET($B:$B,,MATCH(AE$4,$B$4:$F$4,0)-1),OFFSET('C. PoC Adj Factor Scoring'!$E$5:$J$282,,MATCH(AE$4,'C. PoC Adj Factor Scoring'!$E$3:$AH$3,0)-1),MATCH(AE$2&\" Score\",'C. PoC Adj Factor Scoring'!$E$4:$J$4,0),TRUE)","v":1}]
[{"$f":"'A. Population Info'!A91","v":1000332778},{"$f":"'A. Population Info'!L91","v":"OIL"},{"$f":"'A. Population Info'!M91","v":0},{"$f":"'A. Population Info'!N91","v":0},{"$f":"'A. Population Info'!O91","v":0},{"$f":"'A. Population Info'!P91","v":0},{"$f":"VLOOKUP(OFFSET($B:$B,,MATCH(G$4,$B$4:$F$4,0)-1),OFFSET('C. PoC Adj Factor Scoring'!$E$5:$J$282,,MATCH(G$4,'C. PoC Adj Factor Scoring'!$E$3:$AH$3,0)-1),MATCH(G$2&\" Score\",'C. PoC Adj Factor Scoring'!$E$4:$J$4,0),TRUE)","v":4},{"$f":"VLOOKUP(OFFSET($B:$B,,MATCH(H$4,$B$4:$F$4,0)-1),OFFSET('C. PoC Adj Factor Scoring'!$E$5:$J$282,,MATCH(H$4,'C. PoC Adj Factor Scoring'!$E$3:$AH$3,0)-1),MATCH(H$2&\" Score\",'C. PoC Adj Factor Scoring'!$E$4:$J$4,0),TRUE)","v":1},{"$f":"VLOOKUP(OFFSET($B:$B,,MATCH(I$4,$B$4:$F$4,0)-1),OFFSET('C. PoC Adj Factor Scoring'!$E$5:$J$282,,MATCH(I$4,'C. PoC Adj Factor Scoring'!$E$3:$AH$3,0)-1),MATCH(I$2&\" Score\",'C. PoC Adj Factor Scoring'!$E$4:$J$4,0),TRUE)","v":1},{"$f":"VLOOKUP(OFFSET($B:$B,,MATCH(J$4,$B$4:$F$4,0)-1),OFFSET('C. PoC Adj Factor Scoring'!$E$5:$J$282,,MATCH(J$4,'C. PoC Adj Factor Scoring'!$E$3:$AH$3,0)-1),MATCH(J$2&\" Score\",'C. PoC Adj Factor Scoring'!$E$4:$J$4,0),TRUE)","v":1},{"$f":"VLOOKUP(OFFSET($B:$B,,MATCH(K$4,$B$4:$F$4,0)-1),OFFSET('C. PoC Adj Factor Scoring'!$E$5:$J$282,,MATCH(K$4,'C. PoC Adj Factor Scoring'!$E$3:$AH$3,0)-1),MATCH(K$2&\" Score\",'C. PoC Adj Factor Scoring'!$E$4:$J$4,0),TRUE)","v":1},{"$f":"VLOOKUP(OFFSET($B:$B,,MATCH(L$4,$B$4:$F$4,0)-1),OFFSET('C. PoC Adj Factor Scoring'!$E$5:$J$282,,MATCH(L$4,'C. PoC Adj Factor Scoring'!$E$3:$AH$3,0)-1),MATCH(L$2&\" Score\",'C. PoC Adj Factor Scoring'!$E$4:$J$4,0),TRUE)","v":1},{"$f":"VLOOKUP(OFFSET($B:$B,,MATCH(M$4,$B$4:$F$4,0)-1),OFFSET('C. PoC Adj Factor Scoring'!$E$5:$J$282,,MATCH(M$4,'C. PoC Adj Factor Scoring'!$E$3:$AH$3,0)-1),MATCH(M$2&\" Score\",'C. PoC Adj Factor Scoring'!$E$4:$J$4,0),TRUE)","v":1},{"$f":"VLOOKUP(OFFSET($B:$B,,MATCH(N$4,$B$4:$F$4,0)-1),OFFSET('C. PoC Adj Factor Scoring'!$E$5:$J$282,,MATCH(N$4,'C. PoC Adj Factor Scoring'!$E$3:$AH$3,0)-1),MATCH(N$2&\" Score\",'C. PoC Adj Factor Scoring'!$E$4:$J$4,0),TRUE)","v":1},{"$f":"VLOOKUP(OFFSET($B:$B,,MATCH(O$4,$B$4:$F$4,0)-1),OFFSET('C. PoC Adj Factor Scoring'!$E$5:$J$282,,MATCH(O$4,'C. PoC Adj Factor Scoring'!$E$3:$AH$3,0)-1),MATCH(O$2&\" Score\",'C. PoC Adj Factor Scoring'!$E$4:$J$4,0),TRUE)","v":1},{"$f":"VLOOKUP(OFFSET($B:$B,,MATCH(P$4,$B$4:$F$4,0)-1),OFFSET('C. PoC Adj Factor Scoring'!$E$5:$J$282,,MATCH(P$4,'C. PoC Adj Factor Scoring'!$E$3:$AH$3,0)-1),MATCH(P$2&\" Score\",'C. PoC Adj Factor Scoring'!$E$4:$J$4,0),TRUE)","v":1},{"$f":"VLOOKUP(OFFSET($B:$B,,MATCH(Q$4,$B$4:$F$4,0)-1),OFFSET('C. PoC Adj Factor Scoring'!$E$5:$J$282,,MATCH(Q$4,'C. PoC Adj Factor Scoring'!$E$3:$AH$3,0)-1),MATCH(Q$2&\" Score\",'C. PoC Adj Factor Scoring'!$E$4:$J$4,0),TRUE)","v":1},{"$f":"VLOOKUP(OFFSET($B:$B,,MATCH(R$4,$B$4:$F$4,0)-1),OFFSET('C. PoC Adj Factor Scoring'!$E$5:$J$282,,MATCH(R$4,'C. PoC Adj Factor Scoring'!$E$3:$AH$3,0)-1),MATCH(R$2&\" Score\",'C. PoC Adj Factor Scoring'!$E$4:$J$4,0),TRUE)","v":1},{"$f":"VLOOKUP(OFFSET($B:$B,,MATCH(S$4,$B$4:$F$4,0)-1),OFFSET('C. PoC Adj Factor Scoring'!$E$5:$J$282,,MATCH(S$4,'C. PoC Adj Factor Scoring'!$E$3:$AH$3,0)-1),MATCH(S$2&\" Score\",'C. PoC Adj Factor Scoring'!$E$4:$J$4,0),TRUE)","v":1},{"$f":"VLOOKUP(OFFSET($B:$B,,MATCH(T$4,$B$4:$F$4,0)-1),OFFSET('C. PoC Adj Factor Scoring'!$E$5:$J$282,,MATCH(T$4,'C. PoC Adj Factor Scoring'!$E$3:$AH$3,0)-1),MATCH(T$2&\" Score\",'C. PoC Adj Factor Scoring'!$E$4:$J$4,0),TRUE)","v":1},{"$f":"VLOOKUP(OFFSET($B:$B,,MATCH(U$4,$B$4:$F$4,0)-1),OFFSET('C. PoC Adj Factor Scoring'!$E$5:$J$282,,MATCH(U$4,'C. PoC Adj Factor Scoring'!$E$3:$AH$3,0)-1),MATCH(U$2&\" Score\",'C. PoC Adj Factor Scoring'!$E$4:$J$4,0),TRUE)","v":1},{"$f":"VLOOKUP(OFFSET($B:$B,,MATCH(V$4,$B$4:$F$4,0)-1),OFFSET('C. PoC Adj Factor Scoring'!$E$5:$J$282,,MATCH(V$4,'C. PoC Adj Factor Scoring'!$E$3:$AH$3,0)-1),MATCH(V$2&\" Score\",'C. PoC Adj Factor Scoring'!$E$4:$J$4,0),TRUE)","v":1},{"$f":"VLOOKUP(OFFSET($B:$B,,MATCH(W$4,$B$4:$F$4,0)-1),OFFSET('C. PoC Adj Factor Scoring'!$E$5:$J$282,,MATCH(W$4,'C. PoC Adj Factor Scoring'!$E$3:$AH$3,0)-1),MATCH(W$2&\" Score\",'C. PoC Adj Factor Scoring'!$E$4:$J$4,0),TRUE)","v":1},{"$f":"VLOOKUP(OFFSET($B:$B,,MATCH(X$4,$B$4:$F$4,0)-1),OFFSET('C. PoC Adj Factor Scoring'!$E$5:$J$282,,MATCH(X$4,'C. PoC Adj Factor Scoring'!$E$3:$AH$3,0)-1),MATCH(X$2&\" Score\",'C. PoC Adj Factor Scoring'!$E$4:$J$4,0),TRUE)","v":1},{"$f":"VLOOKUP(OFFSET($B:$B,,MATCH(Y$4,$B$4:$F$4,0)-1),OFFSET('C. PoC Adj Factor Scoring'!$E$5:$J$282,,MATCH(Y$4,'C. PoC Adj Factor Scoring'!$E$3:$AH$3,0)-1),MATCH(Y$2&\" Score\",'C. PoC Adj Factor Scoring'!$E$4:$J$4,0),TRUE)","v":1},{"$f":"VLOOKUP(OFFSET($B:$B,,MATCH(Z$4,$B$4:$F$4,0)-1),OFFSET('C. PoC Adj Factor Scoring'!$E$5:$J$282,,MATCH(Z$4,'C. PoC Adj Factor Scoring'!$E$3:$AH$3,0)-1),MATCH(Z$2&\" Score\",'C. PoC Adj Factor Scoring'!$E$4:$J$4,0),TRUE)","v":1},{"$f":"VLOOKUP(OFFSET($B:$B,,MATCH(AA$4,$B$4:$F$4,0)-1),OFFSET('C. PoC Adj Factor Scoring'!$E$5:$J$282,,MATCH(AA$4,'C. PoC Adj Factor Scoring'!$E$3:$AH$3,0)-1),MATCH(AA$2&\" Score\",'C. PoC Adj Factor Scoring'!$E$4:$J$4,0),TRUE)","v":3},{"$f":"VLOOKUP(OFFSET($B:$B,,MATCH(AB$4,$B$4:$F$4,0)-1),OFFSET('C. PoC Adj Factor Scoring'!$E$5:$J$282,,MATCH(AB$4,'C. PoC Adj Factor Scoring'!$E$3:$AH$3,0)-1),MATCH(AB$2&\" Score\",'C. PoC Adj Factor Scoring'!$E$4:$J$4,0),TRUE)","v":1},{"$f":"VLOOKUP(OFFSET($B:$B,,MATCH(AC$4,$B$4:$F$4,0)-1),OFFSET('C. PoC Adj Factor Scoring'!$E$5:$J$282,,MATCH(AC$4,'C. PoC Adj Factor Scoring'!$E$3:$AH$3,0)-1),MATCH(AC$2&\" Score\",'C. PoC Adj Factor Scoring'!$E$4:$J$4,0),TRUE)","v":1},{"$f":"VLOOKUP(OFFSET($B:$B,,MATCH(AD$4,$B$4:$F$4,0)-1),OFFSET('C. PoC Adj Factor Scoring'!$E$5:$J$282,,MATCH(AD$4,'C. PoC Adj Factor Scoring'!$E$3:$AH$3,0)-1),MATCH(AD$2&\" Score\",'C. PoC Adj Factor Scoring'!$E$4:$J$4,0),TRUE)","v":1},{"$f":"VLOOKUP(OFFSET($B:$B,,MATCH(AE$4,$B$4:$F$4,0)-1),OFFSET('C. PoC Adj Factor Scoring'!$E$5:$J$282,,MATCH(AE$4,'C. PoC Adj Factor Scoring'!$E$3:$AH$3,0)-1),MATCH(AE$2&\" Score\",'C. PoC Adj Factor Scoring'!$E$4:$J$4,0),TRUE)","v":1}]
[{"$f":"'A. Population Info'!A92","v":1000332841},{"$f":"'A. Population Info'!L92","v":"OIL"},{"$f":"'A. Population Info'!M92","v":0},{"$f":"'A. Population Info'!N92","v":0},{"$f":"'A. Population Info'!O92","v":0},{"$f":"'A. Population Info'!P92","v":0},{"$f":"VLOOKUP(OFFSET($B:$B,,MATCH(G$4,$B$4:$F$4,0)-1),OFFSET('C. PoC Adj Factor Scoring'!$E$5:$J$282,,MATCH(G$4,'C. PoC Adj Factor Scoring'!$E$3:$AH$3,0)-1),MATCH(G$2&\" Score\",'C. PoC Adj Factor Scoring'!$E$4:$J$4,0),TRUE)","v":4},{"$f":"VLOOKUP(OFFSET($B:$B,,MATCH(H$4,$B$4:$F$4,0)-1),OFFSET('C. PoC Adj Factor Scoring'!$E$5:$J$282,,MATCH(H$4,'C. PoC Adj Factor Scoring'!$E$3:$AH$3,0)-1),MATCH(H$2&\" Score\",'C. PoC Adj Factor Scoring'!$E$4:$J$4,0),TRUE)","v":1},{"$f":"VLOOKUP(OFFSET($B:$B,,MATCH(I$4,$B$4:$F$4,0)-1),OFFSET('C. PoC Adj Factor Scoring'!$E$5:$J$282,,MATCH(I$4,'C. PoC Adj Factor Scoring'!$E$3:$AH$3,0)-1),MATCH(I$2&\" Score\",'C. PoC Adj Factor Scoring'!$E$4:$J$4,0),TRUE)","v":1},{"$f":"VLOOKUP(OFFSET($B:$B,,MATCH(J$4,$B$4:$F$4,0)-1),OFFSET('C. PoC Adj Factor Scoring'!$E$5:$J$282,,MATCH(J$4,'C. PoC Adj Factor Scoring'!$E$3:$AH$3,0)-1),MATCH(J$2&\" Score\",'C. PoC Adj Factor Scoring'!$E$4:$J$4,0),TRUE)","v":1},{"$f":"VLOOKUP(OFFSET($B:$B,,MATCH(K$4,$B$4:$F$4,0)-1),OFFSET('C. PoC Adj Factor Scoring'!$E$5:$J$282,,MATCH(K$4,'C. PoC Adj Factor Scoring'!$E$3:$AH$3,0)-1),MATCH(K$2&\" Score\",'C. PoC Adj Factor Scoring'!$E$4:$J$4,0),TRUE)","v":1},{"$f":"VLOOKUP(OFFSET($B:$B,,MATCH(L$4,$B$4:$F$4,0)-1),OFFSET('C. PoC Adj Factor Scoring'!$E$5:$J$282,,MATCH(L$4,'C. PoC Adj Factor Scoring'!$E$3:$AH$3,0)-1),MATCH(L$2&\" Score\",'C. PoC Adj Factor Scoring'!$E$4:$J$4,0),TRUE)","v":1},{"$f":"VLOOKUP(OFFSET($B:$B,,MATCH(M$4,$B$4:$F$4,0)-1),OFFSET('C. PoC Adj Factor Scoring'!$E$5:$J$282,,MATCH(M$4,'C. PoC Adj Factor Scoring'!$E$3:$AH$3,0)-1),MATCH(M$2&\" Score\",'C. PoC Adj Factor Scoring'!$E$4:$J$4,0),TRUE)","v":1},{"$f":"VLOOKUP(OFFSET($B:$B,,MATCH(N$4,$B$4:$F$4,0)-1),OFFSET('C. PoC Adj Factor Scoring'!$E$5:$J$282,,MATCH(N$4,'C. PoC Adj Factor Scoring'!$E$3:$AH$3,0)-1),MATCH(N$2&\" Score\",'C. PoC Adj Factor Scoring'!$E$4:$J$4,0),TRUE)","v":1},{"$f":"VLOOKUP(OFFSET($B:$B,,MATCH(O$4,$B$4:$F$4,0)-1),OFFSET('C. PoC Adj Factor Scoring'!$E$5:$J$282,,MATCH(O$4,'C. PoC Adj Factor Scoring'!$E$3:$AH$3,0)-1),MATCH(O$2&\" Score\",'C. PoC Adj Factor Scoring'!$E$4:$J$4,0),TRUE)","v":1},{"$f":"VLOOKUP(OFFSET($B:$B,,MATCH(P$4,$B$4:$F$4,0)-1),OFFSET('C. PoC Adj Factor Scoring'!$E$5:$J$282,,MATCH(P$4,'C. PoC Adj Factor Scoring'!$E$3:$AH$3,0)-1),MATCH(P$2&\" Score\",'C. PoC Adj Factor Scoring'!$E$4:$J$4,0),TRUE)","v":1},{"$f":"VLOOKUP(OFFSET($B:$B,,MATCH(Q$4,$B$4:$F$4,0)-1),OFFSET('C. PoC Adj Factor Scoring'!$E$5:$J$282,,MATCH(Q$4,'C. PoC Adj Factor Scoring'!$E$3:$AH$3,0)-1),MATCH(Q$2&\" Score\",'C. PoC Adj Factor Scoring'!$E$4:$J$4,0),TRUE)","v":1},{"$f":"VLOOKUP(OFFSET($B:$B,,MATCH(R$4,$B$4:$F$4,0)-1),OFFSET('C. PoC Adj Factor Scoring'!$E$5:$J$282,,MATCH(R$4,'C. PoC Adj Factor Scoring'!$E$3:$AH$3,0)-1),MATCH(R$2&\" Score\",'C. PoC Adj Factor Scoring'!$E$4:$J$4,0),TRUE)","v":1},{"$f":"VLOOKUP(OFFSET($B:$B,,MATCH(S$4,$B$4:$F$4,0)-1),OFFSET('C. PoC Adj Factor Scoring'!$E$5:$J$282,,MATCH(S$4,'C. PoC Adj Factor Scoring'!$E$3:$AH$3,0)-1),MATCH(S$2&\" Score\",'C. PoC Adj Factor Scoring'!$E$4:$J$4,0),TRUE)","v":1},{"$f":"VLOOKUP(OFFSET($B:$B,,MATCH(T$4,$B$4:$F$4,0)-1),OFFSET('C. PoC Adj Factor Scoring'!$E$5:$J$282,,MATCH(T$4,'C. PoC Adj Factor Scoring'!$E$3:$AH$3,0)-1),MATCH(T$2&\" Score\",'C. PoC Adj Factor Scoring'!$E$4:$J$4,0),TRUE)","v":1},{"$f":"VLOOKUP(OFFSET($B:$B,,MATCH(U$4,$B$4:$F$4,0)-1),OFFSET('C. PoC Adj Factor Scoring'!$E$5:$J$282,,MATCH(U$4,'C. PoC Adj Factor Scoring'!$E$3:$AH$3,0)-1),MATCH(U$2&\" Score\",'C. PoC Adj Factor Scoring'!$E$4:$J$4,0),TRUE)","v":1},{"$f":"VLOOKUP(OFFSET($B:$B,,MATCH(V$4,$B$4:$F$4,0)-1),OFFSET('C. PoC Adj Factor Scoring'!$E$5:$J$282,,MATCH(V$4,'C. PoC Adj Factor Scoring'!$E$3:$AH$3,0)-1),MATCH(V$2&\" Score\",'C. PoC Adj Factor Scoring'!$E$4:$J$4,0),TRUE)","v":1},{"$f":"VLOOKUP(OFFSET($B:$B,,MATCH(W$4,$B$4:$F$4,0)-1),OFFSET('C. PoC Adj Factor Scoring'!$E$5:$J$282,,MATCH(W$4,'C. PoC Adj Factor Scoring'!$E$3:$AH$3,0)-1),MATCH(W$2&\" Score\",'C. PoC Adj Factor Scoring'!$E$4:$J$4,0),TRUE)","v":1},{"$f":"VLOOKUP(OFFSET($B:$B,,MATCH(X$4,$B$4:$F$4,0)-1),OFFSET('C. PoC Adj Factor Scoring'!$E$5:$J$282,,MATCH(X$4,'C. PoC Adj Factor Scoring'!$E$3:$AH$3,0)-1),MATCH(X$2&\" Score\",'C. PoC Adj Factor Scoring'!$E$4:$J$4,0),TRUE)","v":1},{"$f":"VLOOKUP(OFFSET($B:$B,,MATCH(Y$4,$B$4:$F$4,0)-1),OFFSET('C. PoC Adj Factor Scoring'!$E$5:$J$282,,MATCH(Y$4,'C. PoC Adj Factor Scoring'!$E$3:$AH$3,0)-1),MATCH(Y$2&\" Score\",'C. PoC Adj Factor Scoring'!$E$4:$J$4,0),TRUE)","v":1},{"$f":"VLOOKUP(OFFSET($B:$B,,MATCH(Z$4,$B$4:$F$4,0)-1),OFFSET('C. PoC Adj Factor Scoring'!$E$5:$J$282,,MATCH(Z$4,'C. PoC Adj Factor Scoring'!$E$3:$AH$3,0)-1),MATCH(Z$2&\" Score\",'C. PoC Adj Factor Scoring'!$E$4:$J$4,0),TRUE)","v":1},{"$f":"VLOOKUP(OFFSET($B:$B,,MATCH(AA$4,$B$4:$F$4,0)-1),OFFSET('C. PoC Adj Factor Scoring'!$E$5:$J$282,,MATCH(AA$4,'C. PoC Adj Factor Scoring'!$E$3:$AH$3,0)-1),MATCH(AA$2&\" Score\",'C. PoC Adj Factor Scoring'!$E$4:$J$4,0),TRUE)","v":3},{"$f":"VLOOKUP(OFFSET($B:$B,,MATCH(AB$4,$B$4:$F$4,0)-1),OFFSET('C. PoC Adj Factor Scoring'!$E$5:$J$282,,MATCH(AB$4,'C. PoC Adj Factor Scoring'!$E$3:$AH$3,0)-1),MATCH(AB$2&\" Score\",'C. PoC Adj Factor Scoring'!$E$4:$J$4,0),TRUE)","v":1},{"$f":"VLOOKUP(OFFSET($B:$B,,MATCH(AC$4,$B$4:$F$4,0)-1),OFFSET('C. PoC Adj Factor Scoring'!$E$5:$J$282,,MATCH(AC$4,'C. PoC Adj Factor Scoring'!$E$3:$AH$3,0)-1),MATCH(AC$2&\" Score\",'C. PoC Adj Factor Scoring'!$E$4:$J$4,0),TRUE)","v":1},{"$f":"VLOOKUP(OFFSET($B:$B,,MATCH(AD$4,$B$4:$F$4,0)-1),OFFSET('C. PoC Adj Factor Scoring'!$E$5:$J$282,,MATCH(AD$4,'C. PoC Adj Factor Scoring'!$E$3:$AH$3,0)-1),MATCH(AD$2&\" Score\",'C. PoC Adj Factor Scoring'!$E$4:$J$4,0),TRUE)","v":1},{"$f":"VLOOKUP(OFFSET($B:$B,,MATCH(AE$4,$B$4:$F$4,0)-1),OFFSET('C. PoC Adj Factor Scoring'!$E$5:$J$282,,MATCH(AE$4,'C. PoC Adj Factor Scoring'!$E$3:$AH$3,0)-1),MATCH(AE$2&\" Score\",'C. PoC Adj Factor Scoring'!$E$4:$J$4,0),TRUE)","v":1}]
[{"$f":"'A. Population Info'!A93","v":1000332870},{"$f":"'A. Population Info'!L93","v":"OIL"},{"$f":"'A. Population Info'!M93","v":0},{"$f":"'A. Population Info'!N93","v":0},{"$f":"'A. Population Info'!O93","v":0},{"$f":"'A. Population Info'!P93","v":0},{"$f":"VLOOKUP(OFFSET($B:$B,,MATCH(G$4,$B$4:$F$4,0)-1),OFFSET('C. PoC Adj Factor Scoring'!$E$5:$J$282,,MATCH(G$4,'C. PoC Adj Factor Scoring'!$E$3:$AH$3,0)-1),MATCH(G$2&\" Score\",'C. PoC Adj Factor Scoring'!$E$4:$J$4,0),TRUE)","v":4},{"$f":"VLOOKUP(OFFSET($B:$B,,MATCH(H$4,$B$4:$F$4,0)-1),OFFSET('C. PoC Adj Factor Scoring'!$E$5:$J$282,,MATCH(H$4,'C. PoC Adj Factor Scoring'!$E$3:$AH$3,0)-1),MATCH(H$2&\" Score\",'C. PoC Adj Factor Scoring'!$E$4:$J$4,0),TRUE)","v":1},{"$f":"VLOOKUP(OFFSET($B:$B,,MATCH(I$4,$B$4:$F$4,0)-1),OFFSET('C. PoC Adj Factor Scoring'!$E$5:$J$282,,MATCH(I$4,'C. PoC Adj Factor Scoring'!$E$3:$AH$3,0)-1),MATCH(I$2&\" Score\",'C. PoC Adj Factor Scoring'!$E$4:$J$4,0),TRUE)","v":1},{"$f":"VLOOKUP(OFFSET($B:$B,,MATCH(J$4,$B$4:$F$4,0)-1),OFFSET('C. PoC Adj Factor Scoring'!$E$5:$J$282,,MATCH(J$4,'C. PoC Adj Factor Scoring'!$E$3:$AH$3,0)-1),MATCH(J$2&\" Score\",'C. PoC Adj Factor Scoring'!$E$4:$J$4,0),TRUE)","v":1},{"$f":"VLOOKUP(OFFSET($B:$B,,MATCH(K$4,$B$4:$F$4,0)-1),OFFSET('C. PoC Adj Factor Scoring'!$E$5:$J$282,,MATCH(K$4,'C. PoC Adj Factor Scoring'!$E$3:$AH$3,0)-1),MATCH(K$2&\" Score\",'C. PoC Adj Factor Scoring'!$E$4:$J$4,0),TRUE)","v":1},{"$f":"VLOOKUP(OFFSET($B:$B,,MATCH(L$4,$B$4:$F$4,0)-1),OFFSET('C. PoC Adj Factor Scoring'!$E$5:$J$282,,MATCH(L$4,'C. PoC Adj Factor Scoring'!$E$3:$AH$3,0)-1),MATCH(L$2&\" Score\",'C. PoC Adj Factor Scoring'!$E$4:$J$4,0),TRUE)","v":1},{"$f":"VLOOKUP(OFFSET($B:$B,,MATCH(M$4,$B$4:$F$4,0)-1),OFFSET('C. PoC Adj Factor Scoring'!$E$5:$J$282,,MATCH(M$4,'C. PoC Adj Factor Scoring'!$E$3:$AH$3,0)-1),MATCH(M$2&\" Score\",'C. PoC Adj Factor Scoring'!$E$4:$J$4,0),TRUE)","v":1},{"$f":"VLOOKUP(OFFSET($B:$B,,MATCH(N$4,$B$4:$F$4,0)-1),OFFSET('C. PoC Adj Factor Scoring'!$E$5:$J$282,,MATCH(N$4,'C. PoC Adj Factor Scoring'!$E$3:$AH$3,0)-1),MATCH(N$2&\" Score\",'C. PoC Adj Factor Scoring'!$E$4:$J$4,0),TRUE)","v":1},{"$f":"VLOOKUP(OFFSET($B:$B,,MATCH(O$4,$B$4:$F$4,0)-1),OFFSET('C. PoC Adj Factor Scoring'!$E$5:$J$282,,MATCH(O$4,'C. PoC Adj Factor Scoring'!$E$3:$AH$3,0)-1),MATCH(O$2&\" Score\",'C. PoC Adj Factor Scoring'!$E$4:$J$4,0),TRUE)","v":1},{"$f":"VLOOKUP(OFFSET($B:$B,,MATCH(P$4,$B$4:$F$4,0)-1),OFFSET('C. PoC Adj Factor Scoring'!$E$5:$J$282,,MATCH(P$4,'C. PoC Adj Factor Scoring'!$E$3:$AH$3,0)-1),MATCH(P$2&\" Score\",'C. PoC Adj Factor Scoring'!$E$4:$J$4,0),TRUE)","v":1},{"$f":"VLOOKUP(OFFSET($B:$B,,MATCH(Q$4,$B$4:$F$4,0)-1),OFFSET('C. PoC Adj Factor Scoring'!$E$5:$J$282,,MATCH(Q$4,'C. PoC Adj Factor Scoring'!$E$3:$AH$3,0)-1),MATCH(Q$2&\" Score\",'C. PoC Adj Factor Scoring'!$E$4:$J$4,0),TRUE)","v":1},{"$f":"VLOOKUP(OFFSET($B:$B,,MATCH(R$4,$B$4:$F$4,0)-1),OFFSET('C. PoC Adj Factor Scoring'!$E$5:$J$282,,MATCH(R$4,'C. PoC Adj Factor Scoring'!$E$3:$AH$3,0)-1),MATCH(R$2&\" Score\",'C. PoC Adj Factor Scoring'!$E$4:$J$4,0),TRUE)","v":1},{"$f":"VLOOKUP(OFFSET($B:$B,,MATCH(S$4,$B$4:$F$4,0)-1),OFFSET('C. PoC Adj Factor Scoring'!$E$5:$J$282,,MATCH(S$4,'C. PoC Adj Factor Scoring'!$E$3:$AH$3,0)-1),MATCH(S$2&\" Score\",'C. PoC Adj Factor Scoring'!$E$4:$J$4,0),TRUE)","v":1},{"$f":"VLOOKUP(OFFSET($B:$B,,MATCH(T$4,$B$4:$F$4,0)-1),OFFSET('C. PoC Adj Factor Scoring'!$E$5:$J$282,,MATCH(T$4,'C. PoC Adj Factor Scoring'!$E$3:$AH$3,0)-1),MATCH(T$2&\" Score\",'C. PoC Adj Factor Scoring'!$E$4:$J$4,0),TRUE)","v":1},{"$f":"VLOOKUP(OFFSET($B:$B,,MATCH(U$4,$B$4:$F$4,0)-1),OFFSET('C. PoC Adj Factor Scoring'!$E$5:$J$282,,MATCH(U$4,'C. PoC Adj Factor Scoring'!$E$3:$AH$3,0)-1),MATCH(U$2&\" Score\",'C. PoC Adj Factor Scoring'!$E$4:$J$4,0),TRUE)","v":1},{"$f":"VLOOKUP(OFFSET($B:$B,,MATCH(V$4,$B$4:$F$4,0)-1),OFFSET('C. PoC Adj Factor Scoring'!$E$5:$J$282,,MATCH(V$4,'C. PoC Adj Factor Scoring'!$E$3:$AH$3,0)-1),MATCH(V$2&\" Score\",'C. PoC Adj Factor Scoring'!$E$4:$J$4,0),TRUE)","v":1},{"$f":"VLOOKUP(OFFSET($B:$B,,MATCH(W$4,$B$4:$F$4,0)-1),OFFSET('C. PoC Adj Factor Scoring'!$E$5:$J$282,,MATCH(W$4,'C. PoC Adj Factor Scoring'!$E$3:$AH$3,0)-1),MATCH(W$2&\" Score\",'C. PoC Adj Factor Scoring'!$E$4:$J$4,0),TRUE)","v":1},{"$f":"VLOOKUP(OFFSET($B:$B,,MATCH(X$4,$B$4:$F$4,0)-1),OFFSET('C. PoC Adj Factor Scoring'!$E$5:$J$282,,MATCH(X$4,'C. PoC Adj Factor Scoring'!$E$3:$AH$3,0)-1),MATCH(X$2&\" Score\",'C. PoC Adj Factor Scoring'!$E$4:$J$4,0),TRUE)","v":1},{"$f":"VLOOKUP(OFFSET($B:$B,,MATCH(Y$4,$B$4:$F$4,0)-1),OFFSET('C. PoC Adj Factor Scoring'!$E$5:$J$282,,MATCH(Y$4,'C. PoC Adj Factor Scoring'!$E$3:$AH$3,0)-1),MATCH(Y$2&\" Score\",'C. PoC Adj Factor Scoring'!$E$4:$J$4,0),TRUE)","v":1},{"$f":"VLOOKUP(OFFSET($B:$B,,MATCH(Z$4,$B$4:$F$4,0)-1),OFFSET('C. PoC Adj Factor Scoring'!$E$5:$J$282,,MATCH(Z$4,'C. PoC Adj Factor Scoring'!$E$3:$AH$3,0)-1),MATCH(Z$2&\" Score\",'C. PoC Adj Factor Scoring'!$E$4:$J$4,0),TRUE)","v":1},{"$f":"VLOOKUP(OFFSET($B:$B,,MATCH(AA$4,$B$4:$F$4,0)-1),OFFSET('C. PoC Adj Factor Scoring'!$E$5:$J$282,,MATCH(AA$4,'C. PoC Adj Factor Scoring'!$E$3:$AH$3,0)-1),MATCH(AA$2&\" Score\",'C. PoC Adj Factor Scoring'!$E$4:$J$4,0),TRUE)","v":3},{"$f":"VLOOKUP(OFFSET($B:$B,,MATCH(AB$4,$B$4:$F$4,0)-1),OFFSET('C. PoC Adj Factor Scoring'!$E$5:$J$282,,MATCH(AB$4,'C. PoC Adj Factor Scoring'!$E$3:$AH$3,0)-1),MATCH(AB$2&\" Score\",'C. PoC Adj Factor Scoring'!$E$4:$J$4,0),TRUE)","v":1},{"$f":"VLOOKUP(OFFSET($B:$B,,MATCH(AC$4,$B$4:$F$4,0)-1),OFFSET('C. PoC Adj Factor Scoring'!$E$5:$J$282,,MATCH(AC$4,'C. PoC Adj Factor Scoring'!$E$3:$AH$3,0)-1),MATCH(AC$2&\" Score\",'C. PoC Adj Factor Scoring'!$E$4:$J$4,0),TRUE)","v":1},{"$f":"VLOOKUP(OFFSET($B:$B,,MATCH(AD$4,$B$4:$F$4,0)-1),OFFSET('C. PoC Adj Factor Scoring'!$E$5:$J$282,,MATCH(AD$4,'C. PoC Adj Factor Scoring'!$E$3:$AH$3,0)-1),MATCH(AD$2&\" Score\",'C. PoC Adj Factor Scoring'!$E$4:$J$4,0),TRUE)","v":1},{"$f":"VLOOKUP(OFFSET($B:$B,,MATCH(AE$4,$B$4:$F$4,0)-1),OFFSET('C. PoC Adj Factor Scoring'!$E$5:$J$282,,MATCH(AE$4,'C. PoC Adj Factor Scoring'!$E$3:$AH$3,0)-1),MATCH(AE$2&\" Score\",'C. PoC Adj Factor Scoring'!$E$4:$J$4,0),TRUE)","v":1}]
[{"$f":"'A. Population Info'!A94","v":1000332902},{"$f":"'A. Population Info'!L94","v":"OIL"},{"$f":"'A. Population Info'!M94","v":0},{"$f":"'A. Population Info'!N94","v":0},{"$f":"'A. Population Info'!O94","v":0},{"$f":"'A. Population Info'!P94","v":0},{"$f":"VLOOKUP(OFFSET($B:$B,,MATCH(G$4,$B$4:$F$4,0)-1),OFFSET('C. PoC Adj Factor Scoring'!$E$5:$J$282,,MATCH(G$4,'C. PoC Adj Factor Scoring'!$E$3:$AH$3,0)-1),MATCH(G$2&\" Score\",'C. PoC Adj Factor Scoring'!$E$4:$J$4,0),TRUE)","v":4},{"$f":"VLOOKUP(OFFSET($B:$B,,MATCH(H$4,$B$4:$F$4,0)-1),OFFSET('C. PoC Adj Factor Scoring'!$E$5:$J$282,,MATCH(H$4,'C. PoC Adj Factor Scoring'!$E$3:$AH$3,0)-1),MATCH(H$2&\" Score\",'C. PoC Adj Factor Scoring'!$E$4:$J$4,0),TRUE)","v":1},{"$f":"VLOOKUP(OFFSET($B:$B,,MATCH(I$4,$B$4:$F$4,0)-1),OFFSET('C. PoC Adj Factor Scoring'!$E$5:$J$282,,MATCH(I$4,'C. PoC Adj Factor Scoring'!$E$3:$AH$3,0)-1),MATCH(I$2&\" Score\",'C. PoC Adj Factor Scoring'!$E$4:$J$4,0),TRUE)","v":1},{"$f":"VLOOKUP(OFFSET($B:$B,,MATCH(J$4,$B$4:$F$4,0)-1),OFFSET('C. PoC Adj Factor Scoring'!$E$5:$J$282,,MATCH(J$4,'C. PoC Adj Factor Scoring'!$E$3:$AH$3,0)-1),MATCH(J$2&\" Score\",'C. PoC Adj Factor Scoring'!$E$4:$J$4,0),TRUE)","v":1},{"$f":"VLOOKUP(OFFSET($B:$B,,MATCH(K$4,$B$4:$F$4,0)-1),OFFSET('C. PoC Adj Factor Scoring'!$E$5:$J$282,,MATCH(K$4,'C. PoC Adj Factor Scoring'!$E$3:$AH$3,0)-1),MATCH(K$2&\" Score\",'C. PoC Adj Factor Scoring'!$E$4:$J$4,0),TRUE)","v":1},{"$f":"VLOOKUP(OFFSET($B:$B,,MATCH(L$4,$B$4:$F$4,0)-1),OFFSET('C. PoC Adj Factor Scoring'!$E$5:$J$282,,MATCH(L$4,'C. PoC Adj Factor Scoring'!$E$3:$AH$3,0)-1),MATCH(L$2&\" Score\",'C. PoC Adj Factor Scoring'!$E$4:$J$4,0),TRUE)","v":1},{"$f":"VLOOKUP(OFFSET($B:$B,,MATCH(M$4,$B$4:$F$4,0)-1),OFFSET('C. PoC Adj Factor Scoring'!$E$5:$J$282,,MATCH(M$4,'C. PoC Adj Factor Scoring'!$E$3:$AH$3,0)-1),MATCH(M$2&\" Score\",'C. PoC Adj Factor Scoring'!$E$4:$J$4,0),TRUE)","v":1},{"$f":"VLOOKUP(OFFSET($B:$B,,MATCH(N$4,$B$4:$F$4,0)-1),OFFSET('C. PoC Adj Factor Scoring'!$E$5:$J$282,,MATCH(N$4,'C. PoC Adj Factor Scoring'!$E$3:$AH$3,0)-1),MATCH(N$2&\" Score\",'C. PoC Adj Factor Scoring'!$E$4:$J$4,0),TRUE)","v":1},{"$f":"VLOOKUP(OFFSET($B:$B,,MATCH(O$4,$B$4:$F$4,0)-1),OFFSET('C. PoC Adj Factor Scoring'!$E$5:$J$282,,MATCH(O$4,'C. PoC Adj Factor Scoring'!$E$3:$AH$3,0)-1),MATCH(O$2&\" Score\",'C. PoC Adj Factor Scoring'!$E$4:$J$4,0),TRUE)","v":1},{"$f":"VLOOKUP(OFFSET($B:$B,,MATCH(P$4,$B$4:$F$4,0)-1),OFFSET('C. PoC Adj Factor Scoring'!$E$5:$J$282,,MATCH(P$4,'C. PoC Adj Factor Scoring'!$E$3:$AH$3,0)-1),MATCH(P$2&\" Score\",'C. PoC Adj Factor Scoring'!$E$4:$J$4,0),TRUE)","v":1},{"$f":"VLOOKUP(OFFSET($B:$B,,MATCH(Q$4,$B$4:$F$4,0)-1),OFFSET('C. PoC Adj Factor Scoring'!$E$5:$J$282,,MATCH(Q$4,'C. PoC Adj Factor Scoring'!$E$3:$AH$3,0)-1),MATCH(Q$2&\" Score\",'C. PoC Adj Factor Scoring'!$E$4:$J$4,0),TRUE)","v":1},{"$f":"VLOOKUP(OFFSET($B:$B,,MATCH(R$4,$B$4:$F$4,0)-1),OFFSET('C. PoC Adj Factor Scoring'!$E$5:$J$282,,MATCH(R$4,'C. PoC Adj Factor Scoring'!$E$3:$AH$3,0)-1),MATCH(R$2&\" Score\",'C. PoC Adj Factor Scoring'!$E$4:$J$4,0),TRUE)","v":1},{"$f":"VLOOKUP(OFFSET($B:$B,,MATCH(S$4,$B$4:$F$4,0)-1),OFFSET('C. PoC Adj Factor Scoring'!$E$5:$J$282,,MATCH(S$4,'C. PoC Adj Factor Scoring'!$E$3:$AH$3,0)-1),MATCH(S$2&\" Score\",'C. PoC Adj Factor Scoring'!$E$4:$J$4,0),TRUE)","v":1},{"$f":"VLOOKUP(OFFSET($B:$B,,MATCH(T$4,$B$4:$F$4,0)-1),OFFSET('C. PoC Adj Factor Scoring'!$E$5:$J$282,,MATCH(T$4,'C. PoC Adj Factor Scoring'!$E$3:$AH$3,0)-1),MATCH(T$2&\" Score\",'C. PoC Adj Factor Scoring'!$E$4:$J$4,0),TRUE)","v":1},{"$f":"VLOOKUP(OFFSET($B:$B,,MATCH(U$4,$B$4:$F$4,0)-1),OFFSET('C. PoC Adj Factor Scoring'!$E$5:$J$282,,MATCH(U$4,'C. PoC Adj Factor Scoring'!$E$3:$AH$3,0)-1),MATCH(U$2&\" Score\",'C. PoC Adj Factor Scoring'!$E$4:$J$4,0),TRUE)","v":1},{"$f":"VLOOKUP(OFFSET($B:$B,,MATCH(V$4,$B$4:$F$4,0)-1),OFFSET('C. PoC Adj Factor Scoring'!$E$5:$J$282,,MATCH(V$4,'C. PoC Adj Factor Scoring'!$E$3:$AH$3,0)-1),MATCH(V$2&\" Score\",'C. PoC Adj Factor Scoring'!$E$4:$J$4,0),TRUE)","v":1},{"$f":"VLOOKUP(OFFSET($B:$B,,MATCH(W$4,$B$4:$F$4,0)-1),OFFSET('C. PoC Adj Factor Scoring'!$E$5:$J$282,,MATCH(W$4,'C. PoC Adj Factor Scoring'!$E$3:$AH$3,0)-1),MATCH(W$2&\" Score\",'C. PoC Adj Factor Scoring'!$E$4:$J$4,0),TRUE)","v":1},{"$f":"VLOOKUP(OFFSET($B:$B,,MATCH(X$4,$B$4:$F$4,0)-1),OFFSET('C. PoC Adj Factor Scoring'!$E$5:$J$282,,MATCH(X$4,'C. PoC Adj Factor Scoring'!$E$3:$AH$3,0)-1),MATCH(X$2&\" Score\",'C. PoC Adj Factor Scoring'!$E$4:$J$4,0),TRUE)","v":1},{"$f":"VLOOKUP(OFFSET($B:$B,,MATCH(Y$4,$B$4:$F$4,0)-1),OFFSET('C. PoC Adj Factor Scoring'!$E$5:$J$282,,MATCH(Y$4,'C. PoC Adj Factor Scoring'!$E$3:$AH$3,0)-1),MATCH(Y$2&\" Score\",'C. PoC Adj Factor Scoring'!$E$4:$J$4,0),TRUE)","v":1},{"$f":"VLOOKUP(OFFSET($B:$B,,MATCH(Z$4,$B$4:$F$4,0)-1),OFFSET('C. PoC Adj Factor Scoring'!$E$5:$J$282,,MATCH(Z$4,'C. PoC Adj Factor Scoring'!$E$3:$AH$3,0)-1),MATCH(Z$2&\" Score\",'C. PoC Adj Factor Scoring'!$E$4:$J$4,0),TRUE)","v":1},{"$f":"VLOOKUP(OFFSET($B:$B,,MATCH(AA$4,$B$4:$F$4,0)-1),OFFSET('C. PoC Adj Factor Scoring'!$E$5:$J$282,,MATCH(AA$4,'C. PoC Adj Factor Scoring'!$E$3:$AH$3,0)-1),MATCH(AA$2&\" Score\",'C. PoC Adj Factor Scoring'!$E$4:$J$4,0),TRUE)","v":3},{"$f":"VLOOKUP(OFFSET($B:$B,,MATCH(AB$4,$B$4:$F$4,0)-1),OFFSET('C. PoC Adj Factor Scoring'!$E$5:$J$282,,MATCH(AB$4,'C. PoC Adj Factor Scoring'!$E$3:$AH$3,0)-1),MATCH(AB$2&\" Score\",'C. PoC Adj Factor Scoring'!$E$4:$J$4,0),TRUE)","v":1},{"$f":"VLOOKUP(OFFSET($B:$B,,MATCH(AC$4,$B$4:$F$4,0)-1),OFFSET('C. PoC Adj Factor Scoring'!$E$5:$J$282,,MATCH(AC$4,'C. PoC Adj Factor Scoring'!$E$3:$AH$3,0)-1),MATCH(AC$2&\" Score\",'C. PoC Adj Factor Scoring'!$E$4:$J$4,0),TRUE)","v":1},{"$f":"VLOOKUP(OFFSET($B:$B,,MATCH(AD$4,$B$4:$F$4,0)-1),OFFSET('C. PoC Adj Factor Scoring'!$E$5:$J$282,,MATCH(AD$4,'C. PoC Adj Factor Scoring'!$E$3:$AH$3,0)-1),MATCH(AD$2&\" Score\",'C. PoC Adj Factor Scoring'!$E$4:$J$4,0),TRUE)","v":1},{"$f":"VLOOKUP(OFFSET($B:$B,,MATCH(AE$4,$B$4:$F$4,0)-1),OFFSET('C. PoC Adj Factor Scoring'!$E$5:$J$282,,MATCH(AE$4,'C. PoC Adj Factor Scoring'!$E$3:$AH$3,0)-1),MATCH(AE$2&\" Score\",'C. PoC Adj Factor Scoring'!$E$4:$J$4,0),TRUE)","v":1}]
[{"$f":"'A. Population Info'!A95","v":1000332930},{"$f":"'A. Population Info'!L95","v":"OIL"},{"$f":"'A. Population Info'!M95","v":0},{"$f":"'A. Population Info'!N95","v":0},{"$f":"'A. Population Info'!O95","v":0},{"$f":"'A. Population Info'!P95","v":0},{"$f":"VLOOKUP(OFFSET($B:$B,,MATCH(G$4,$B$4:$F$4,0)-1),OFFSET('C. PoC Adj Factor Scoring'!$E$5:$J$282,,MATCH(G$4,'C. PoC Adj Factor Scoring'!$E$3:$AH$3,0)-1),MATCH(G$2&\" Score\",'C. PoC Adj Factor Scoring'!$E$4:$J$4,0),TRUE)","v":4},{"$f":"VLOOKUP(OFFSET($B:$B,,MATCH(H$4,$B$4:$F$4,0)-1),OFFSET('C. PoC Adj Factor Scoring'!$E$5:$J$282,,MATCH(H$4,'C. PoC Adj Factor Scoring'!$E$3:$AH$3,0)-1),MATCH(H$2&\" Score\",'C. PoC Adj Factor Scoring'!$E$4:$J$4,0),TRUE)","v":1},{"$f":"VLOOKUP(OFFSET($B:$B,,MATCH(I$4,$B$4:$F$4,0)-1),OFFSET('C. PoC Adj Factor Scoring'!$E$5:$J$282,,MATCH(I$4,'C. PoC Adj Factor Scoring'!$E$3:$AH$3,0)-1),MATCH(I$2&\" Score\",'C. PoC Adj Factor Scoring'!$E$4:$J$4,0),TRUE)","v":1},{"$f":"VLOOKUP(OFFSET($B:$B,,MATCH(J$4,$B$4:$F$4,0)-1),OFFSET('C. PoC Adj Factor Scoring'!$E$5:$J$282,,MATCH(J$4,'C. PoC Adj Factor Scoring'!$E$3:$AH$3,0)-1),MATCH(J$2&\" Score\",'C. PoC Adj Factor Scoring'!$E$4:$J$4,0),TRUE)","v":1},{"$f":"VLOOKUP(OFFSET($B:$B,,MATCH(K$4,$B$4:$F$4,0)-1),OFFSET('C. PoC Adj Factor Scoring'!$E$5:$J$282,,MATCH(K$4,'C. PoC Adj Factor Scoring'!$E$3:$AH$3,0)-1),MATCH(K$2&\" Score\",'C. PoC Adj Factor Scoring'!$E$4:$J$4,0),TRUE)","v":1},{"$f":"VLOOKUP(OFFSET($B:$B,,MATCH(L$4,$B$4:$F$4,0)-1),OFFSET('C. PoC Adj Factor Scoring'!$E$5:$J$282,,MATCH(L$4,'C. PoC Adj Factor Scoring'!$E$3:$AH$3,0)-1),MATCH(L$2&\" Score\",'C. PoC Adj Factor Scoring'!$E$4:$J$4,0),TRUE)","v":1},{"$f":"VLOOKUP(OFFSET($B:$B,,MATCH(M$4,$B$4:$F$4,0)-1),OFFSET('C. PoC Adj Factor Scoring'!$E$5:$J$282,,MATCH(M$4,'C. PoC Adj Factor Scoring'!$E$3:$AH$3,0)-1),MATCH(M$2&\" Score\",'C. PoC Adj Factor Scoring'!$E$4:$J$4,0),TRUE)","v":1},{"$f":"VLOOKUP(OFFSET($B:$B,,MATCH(N$4,$B$4:$F$4,0)-1),OFFSET('C. PoC Adj Factor Scoring'!$E$5:$J$282,,MATCH(N$4,'C. PoC Adj Factor Scoring'!$E$3:$AH$3,0)-1),MATCH(N$2&\" Score\",'C. PoC Adj Factor Scoring'!$E$4:$J$4,0),TRUE)","v":1},{"$f":"VLOOKUP(OFFSET($B:$B,,MATCH(O$4,$B$4:$F$4,0)-1),OFFSET('C. PoC Adj Factor Scoring'!$E$5:$J$282,,MATCH(O$4,'C. PoC Adj Factor Scoring'!$E$3:$AH$3,0)-1),MATCH(O$2&\" Score\",'C. PoC Adj Factor Scoring'!$E$4:$J$4,0),TRUE)","v":1},{"$f":"VLOOKUP(OFFSET($B:$B,,MATCH(P$4,$B$4:$F$4,0)-1),OFFSET('C. PoC Adj Factor Scoring'!$E$5:$J$282,,MATCH(P$4,'C. PoC Adj Factor Scoring'!$E$3:$AH$3,0)-1),MATCH(P$2&\" Score\",'C. PoC Adj Factor Scoring'!$E$4:$J$4,0),TRUE)","v":1},{"$f":"VLOOKUP(OFFSET($B:$B,,MATCH(Q$4,$B$4:$F$4,0)-1),OFFSET('C. PoC Adj Factor Scoring'!$E$5:$J$282,,MATCH(Q$4,'C. PoC Adj Factor Scoring'!$E$3:$AH$3,0)-1),MATCH(Q$2&\" Score\",'C. PoC Adj Factor Scoring'!$E$4:$J$4,0),TRUE)","v":1},{"$f":"VLOOKUP(OFFSET($B:$B,,MATCH(R$4,$B$4:$F$4,0)-1),OFFSET('C. PoC Adj Factor Scoring'!$E$5:$J$282,,MATCH(R$4,'C. PoC Adj Factor Scoring'!$E$3:$AH$3,0)-1),MATCH(R$2&\" Score\",'C. PoC Adj Factor Scoring'!$E$4:$J$4,0),TRUE)","v":1},{"$f":"VLOOKUP(OFFSET($B:$B,,MATCH(S$4,$B$4:$F$4,0)-1),OFFSET('C. PoC Adj Factor Scoring'!$E$5:$J$282,,MATCH(S$4,'C. PoC Adj Factor Scoring'!$E$3:$AH$3,0)-1),MATCH(S$2&\" Score\",'C. PoC Adj Factor Scoring'!$E$4:$J$4,0),TRUE)","v":1},{"$f":"VLOOKUP(OFFSET($B:$B,,MATCH(T$4,$B$4:$F$4,0)-1),OFFSET('C. PoC Adj Factor Scoring'!$E$5:$J$282,,MATCH(T$4,'C. PoC Adj Factor Scoring'!$E$3:$AH$3,0)-1),MATCH(T$2&\" Score\",'C. PoC Adj Factor Scoring'!$E$4:$J$4,0),TRUE)","v":1},{"$f":"VLOOKUP(OFFSET($B:$B,,MATCH(U$4,$B$4:$F$4,0)-1),OFFSET('C. PoC Adj Factor Scoring'!$E$5:$J$282,,MATCH(U$4,'C. PoC Adj Factor Scoring'!$E$3:$AH$3,0)-1),MATCH(U$2&\" Score\",'C. PoC Adj Factor Scoring'!$E$4:$J$4,0),TRUE)","v":1},{"$f":"VLOOKUP(OFFSET($B:$B,,MATCH(V$4,$B$4:$F$4,0)-1),OFFSET('C. PoC Adj Factor Scoring'!$E$5:$J$282,,MATCH(V$4,'C. PoC Adj Factor Scoring'!$E$3:$AH$3,0)-1),MATCH(V$2&\" Score\",'C. PoC Adj Factor Scoring'!$E$4:$J$4,0),TRUE)","v":1},{"$f":"VLOOKUP(OFFSET($B:$B,,MATCH(W$4,$B$4:$F$4,0)-1),OFFSET('C. PoC Adj Factor Scoring'!$E$5:$J$282,,MATCH(W$4,'C. PoC Adj Factor Scoring'!$E$3:$AH$3,0)-1),MATCH(W$2&\" Score\",'C. PoC Adj Factor Scoring'!$E$4:$J$4,0),TRUE)","v":1},{"$f":"VLOOKUP(OFFSET($B:$B,,MATCH(X$4,$B$4:$F$4,0)-1),OFFSET('C. PoC Adj Factor Scoring'!$E$5:$J$282,,MATCH(X$4,'C. PoC Adj Factor Scoring'!$E$3:$AH$3,0)-1),MATCH(X$2&\" Score\",'C. PoC Adj Factor Scoring'!$E$4:$J$4,0),TRUE)","v":1},{"$f":"VLOOKUP(OFFSET($B:$B,,MATCH(Y$4,$B$4:$F$4,0)-1),OFFSET('C. PoC Adj Factor Scoring'!$E$5:$J$282,,MATCH(Y$4,'C. PoC Adj Factor Scoring'!$E$3:$AH$3,0)-1),MATCH(Y$2&\" Score\",'C. PoC Adj Factor Scoring'!$E$4:$J$4,0),TRUE)","v":1},{"$f":"VLOOKUP(OFFSET($B:$B,,MATCH(Z$4,$B$4:$F$4,0)-1),OFFSET('C. PoC Adj Factor Scoring'!$E$5:$J$282,,MATCH(Z$4,'C. PoC Adj Factor Scoring'!$E$3:$AH$3,0)-1),MATCH(Z$2&\" Score\",'C. PoC Adj Factor Scoring'!$E$4:$J$4,0),TRUE)","v":1},{"$f":"VLOOKUP(OFFSET($B:$B,,MATCH(AA$4,$B$4:$F$4,0)-1),OFFSET('C. PoC Adj Factor Scoring'!$E$5:$J$282,,MATCH(AA$4,'C. PoC Adj Factor Scoring'!$E$3:$AH$3,0)-1),MATCH(AA$2&\" Score\",'C. PoC Adj Factor Scoring'!$E$4:$J$4,0),TRUE)","v":3},{"$f":"VLOOKUP(OFFSET($B:$B,,MATCH(AB$4,$B$4:$F$4,0)-1),OFFSET('C. PoC Adj Factor Scoring'!$E$5:$J$282,,MATCH(AB$4,'C. PoC Adj Factor Scoring'!$E$3:$AH$3,0)-1),MATCH(AB$2&\" Score\",'C. PoC Adj Factor Scoring'!$E$4:$J$4,0),TRUE)","v":1},{"$f":"VLOOKUP(OFFSET($B:$B,,MATCH(AC$4,$B$4:$F$4,0)-1),OFFSET('C. PoC Adj Factor Scoring'!$E$5:$J$282,,MATCH(AC$4,'C. PoC Adj Factor Scoring'!$E$3:$AH$3,0)-1),MATCH(AC$2&\" Score\",'C. PoC Adj Factor Scoring'!$E$4:$J$4,0),TRUE)","v":1},{"$f":"VLOOKUP(OFFSET($B:$B,,MATCH(AD$4,$B$4:$F$4,0)-1),OFFSET('C. PoC Adj Factor Scoring'!$E$5:$J$282,,MATCH(AD$4,'C. PoC Adj Factor Scoring'!$E$3:$AH$3,0)-1),MATCH(AD$2&\" Score\",'C. PoC Adj Factor Scoring'!$E$4:$J$4,0),TRUE)","v":1},{"$f":"VLOOKUP(OFFSET($B:$B,,MATCH(AE$4,$B$4:$F$4,0)-1),OFFSET('C. PoC Adj Factor Scoring'!$E$5:$J$282,,MATCH(AE$4,'C. PoC Adj Factor Scoring'!$E$3:$AH$3,0)-1),MATCH(AE$2&\" Score\",'C. PoC Adj Factor Scoring'!$E$4:$J$4,0),TRUE)","v":1}]
[{"$f":"'A. Population Info'!A96","v":1000336019},{"$f":"'A. Population Info'!L96","v":"OIL"},{"$f":"'A. Population Info'!M96","v":0},{"$f":"'A. Population Info'!N96","v":0},{"$f":"'A. Population Info'!O96","v":0},{"$f":"'A. Population Info'!P96","v":0},{"$f":"VLOOKUP(OFFSET($B:$B,,MATCH(G$4,$B$4:$F$4,0)-1),OFFSET('C. PoC Adj Factor Scoring'!$E$5:$J$282,,MATCH(G$4,'C. PoC Adj Factor Scoring'!$E$3:$AH$3,0)-1),MATCH(G$2&\" Score\",'C. PoC Adj Factor Scoring'!$E$4:$J$4,0),TRUE)","v":4},{"$f":"VLOOKUP(OFFSET($B:$B,,MATCH(H$4,$B$4:$F$4,0)-1),OFFSET('C. PoC Adj Factor Scoring'!$E$5:$J$282,,MATCH(H$4,'C. PoC Adj Factor Scoring'!$E$3:$AH$3,0)-1),MATCH(H$2&\" Score\",'C. PoC Adj Factor Scoring'!$E$4:$J$4,0),TRUE)","v":1},{"$f":"VLOOKUP(OFFSET($B:$B,,MATCH(I$4,$B$4:$F$4,0)-1),OFFSET('C. PoC Adj Factor Scoring'!$E$5:$J$282,,MATCH(I$4,'C. PoC Adj Factor Scoring'!$E$3:$AH$3,0)-1),MATCH(I$2&\" Score\",'C. PoC Adj Factor Scoring'!$E$4:$J$4,0),TRUE)","v":1},{"$f":"VLOOKUP(OFFSET($B:$B,,MATCH(J$4,$B$4:$F$4,0)-1),OFFSET('C. PoC Adj Factor Scoring'!$E$5:$J$282,,MATCH(J$4,'C. PoC Adj Factor Scoring'!$E$3:$AH$3,0)-1),MATCH(J$2&\" Score\",'C. PoC Adj Factor Scoring'!$E$4:$J$4,0),TRUE)","v":1},{"$f":"VLOOKUP(OFFSET($B:$B,,MATCH(K$4,$B$4:$F$4,0)-1),OFFSET('C. PoC Adj Factor Scoring'!$E$5:$J$282,,MATCH(K$4,'C. PoC Adj Factor Scoring'!$E$3:$AH$3,0)-1),MATCH(K$2&\" Score\",'C. PoC Adj Factor Scoring'!$E$4:$J$4,0),TRUE)","v":1},{"$f":"VLOOKUP(OFFSET($B:$B,,MATCH(L$4,$B$4:$F$4,0)-1),OFFSET('C. PoC Adj Factor Scoring'!$E$5:$J$282,,MATCH(L$4,'C. PoC Adj Factor Scoring'!$E$3:$AH$3,0)-1),MATCH(L$2&\" Score\",'C. PoC Adj Factor Scoring'!$E$4:$J$4,0),TRUE)","v":1},{"$f":"VLOOKUP(OFFSET($B:$B,,MATCH(M$4,$B$4:$F$4,0)-1),OFFSET('C. PoC Adj Factor Scoring'!$E$5:$J$282,,MATCH(M$4,'C. PoC Adj Factor Scoring'!$E$3:$AH$3,0)-1),MATCH(M$2&\" Score\",'C. PoC Adj Factor Scoring'!$E$4:$J$4,0),TRUE)","v":1},{"$f":"VLOOKUP(OFFSET($B:$B,,MATCH(N$4,$B$4:$F$4,0)-1),OFFSET('C. PoC Adj Factor Scoring'!$E$5:$J$282,,MATCH(N$4,'C. PoC Adj Factor Scoring'!$E$3:$AH$3,0)-1),MATCH(N$2&\" Score\",'C. PoC Adj Factor Scoring'!$E$4:$J$4,0),TRUE)","v":1},{"$f":"VLOOKUP(OFFSET($B:$B,,MATCH(O$4,$B$4:$F$4,0)-1),OFFSET('C. PoC Adj Factor Scoring'!$E$5:$J$282,,MATCH(O$4,'C. PoC Adj Factor Scoring'!$E$3:$AH$3,0)-1),MATCH(O$2&\" Score\",'C. PoC Adj Factor Scoring'!$E$4:$J$4,0),TRUE)","v":1},{"$f":"VLOOKUP(OFFSET($B:$B,,MATCH(P$4,$B$4:$F$4,0)-1),OFFSET('C. PoC Adj Factor Scoring'!$E$5:$J$282,,MATCH(P$4,'C. PoC Adj Factor Scoring'!$E$3:$AH$3,0)-1),MATCH(P$2&\" Score\",'C. PoC Adj Factor Scoring'!$E$4:$J$4,0),TRUE)","v":1},{"$f":"VLOOKUP(OFFSET($B:$B,,MATCH(Q$4,$B$4:$F$4,0)-1),OFFSET('C. PoC Adj Factor Scoring'!$E$5:$J$282,,MATCH(Q$4,'C. PoC Adj Factor Scoring'!$E$3:$AH$3,0)-1),MATCH(Q$2&\" Score\",'C. PoC Adj Factor Scoring'!$E$4:$J$4,0),TRUE)","v":1},{"$f":"VLOOKUP(OFFSET($B:$B,,MATCH(R$4,$B$4:$F$4,0)-1),OFFSET('C. PoC Adj Factor Scoring'!$E$5:$J$282,,MATCH(R$4,'C. PoC Adj Factor Scoring'!$E$3:$AH$3,0)-1),MATCH(R$2&\" Score\",'C. PoC Adj Factor Scoring'!$E$4:$J$4,0),TRUE)","v":1},{"$f":"VLOOKUP(OFFSET($B:$B,,MATCH(S$4,$B$4:$F$4,0)-1),OFFSET('C. PoC Adj Factor Scoring'!$E$5:$J$282,,MATCH(S$4,'C. PoC Adj Factor Scoring'!$E$3:$AH$3,0)-1),MATCH(S$2&\" Score\",'C. PoC Adj Factor Scoring'!$E$4:$J$4,0),TRUE)","v":1},{"$f":"VLOOKUP(OFFSET($B:$B,,MATCH(T$4,$B$4:$F$4,0)-1),OFFSET('C. PoC Adj Factor Scoring'!$E$5:$J$282,,MATCH(T$4,'C. PoC Adj Factor Scoring'!$E$3:$AH$3,0)-1),MATCH(T$2&\" Score\",'C. PoC Adj Factor Scoring'!$E$4:$J$4,0),TRUE)","v":1},{"$f":"VLOOKUP(OFFSET($B:$B,,MATCH(U$4,$B$4:$F$4,0)-1),OFFSET('C. PoC Adj Factor Scoring'!$E$5:$J$282,,MATCH(U$4,'C. PoC Adj Factor Scoring'!$E$3:$AH$3,0)-1),MATCH(U$2&\" Score\",'C. PoC Adj Factor Scoring'!$E$4:$J$4,0),TRUE)","v":1},{"$f":"VLOOKUP(OFFSET($B:$B,,MATCH(V$4,$B$4:$F$4,0)-1),OFFSET('C. PoC Adj Factor Scoring'!$E$5:$J$282,,MATCH(V$4,'C. PoC Adj Factor Scoring'!$E$3:$AH$3,0)-1),MATCH(V$2&\" Score\",'C. PoC Adj Factor Scoring'!$E$4:$J$4,0),TRUE)","v":1},{"$f":"VLOOKUP(OFFSET($B:$B,,MATCH(W$4,$B$4:$F$4,0)-1),OFFSET('C. PoC Adj Factor Scoring'!$E$5:$J$282,,MATCH(W$4,'C. PoC Adj Factor Scoring'!$E$3:$AH$3,0)-1),MATCH(W$2&\" Score\",'C. PoC Adj Factor Scoring'!$E$4:$J$4,0),TRUE)","v":1},{"$f":"VLOOKUP(OFFSET($B:$B,,MATCH(X$4,$B$4:$F$4,0)-1),OFFSET('C. PoC Adj Factor Scoring'!$E$5:$J$282,,MATCH(X$4,'C. PoC Adj Factor Scoring'!$E$3:$AH$3,0)-1),MATCH(X$2&\" Score\",'C. PoC Adj Factor Scoring'!$E$4:$J$4,0),TRUE)","v":1},{"$f":"VLOOKUP(OFFSET($B:$B,,MATCH(Y$4,$B$4:$F$4,0)-1),OFFSET('C. PoC Adj Factor Scoring'!$E$5:$J$282,,MATCH(Y$4,'C. PoC Adj Factor Scoring'!$E$3:$AH$3,0)-1),MATCH(Y$2&\" Score\",'C. PoC Adj Factor Scoring'!$E$4:$J$4,0),TRUE)","v":1},{"$f":"VLOOKUP(OFFSET($B:$B,,MATCH(Z$4,$B$4:$F$4,0)-1),OFFSET('C. PoC Adj Factor Scoring'!$E$5:$J$282,,MATCH(Z$4,'C. PoC Adj Factor Scoring'!$E$3:$AH$3,0)-1),MATCH(Z$2&\" Score\",'C. PoC Adj Factor Scoring'!$E$4:$J$4,0),TRUE)","v":1},{"$f":"VLOOKUP(OFFSET($B:$B,,MATCH(AA$4,$B$4:$F$4,0)-1),OFFSET('C. PoC Adj Factor Scoring'!$E$5:$J$282,,MATCH(AA$4,'C. PoC Adj Factor Scoring'!$E$3:$AH$3,0)-1),MATCH(AA$2&\" Score\",'C. PoC Adj Factor Scoring'!$E$4:$J$4,0),TRUE)","v":3},{"$f":"VLOOKUP(OFFSET($B:$B,,MATCH(AB$4,$B$4:$F$4,0)-1),OFFSET('C. PoC Adj Factor Scoring'!$E$5:$J$282,,MATCH(AB$4,'C. PoC Adj Factor Scoring'!$E$3:$AH$3,0)-1),MATCH(AB$2&\" Score\",'C. PoC Adj Factor Scoring'!$E$4:$J$4,0),TRUE)","v":1},{"$f":"VLOOKUP(OFFSET($B:$B,,MATCH(AC$4,$B$4:$F$4,0)-1),OFFSET('C. PoC Adj Factor Scoring'!$E$5:$J$282,,MATCH(AC$4,'C. PoC Adj Factor Scoring'!$E$3:$AH$3,0)-1),MATCH(AC$2&\" Score\",'C. PoC Adj Factor Scoring'!$E$4:$J$4,0),TRUE)","v":1},{"$f":"VLOOKUP(OFFSET($B:$B,,MATCH(AD$4,$B$4:$F$4,0)-1),OFFSET('C. PoC Adj Factor Scoring'!$E$5:$J$282,,MATCH(AD$4,'C. PoC Adj Factor Scoring'!$E$3:$AH$3,0)-1),MATCH(AD$2&\" Score\",'C. PoC Adj Factor Scoring'!$E$4:$J$4,0),TRUE)","v":1},{"$f":"VLOOKUP(OFFSET($B:$B,,MATCH(AE$4,$B$4:$F$4,0)-1),OFFSET('C. PoC Adj Factor Scoring'!$E$5:$J$282,,MATCH(AE$4,'C. PoC Adj Factor Scoring'!$E$3:$AH$3,0)-1),MATCH(AE$2&\" Score\",'C. PoC Adj Factor Scoring'!$E$4:$J$4,0),TRUE)","v":1}]
[{"$f":"'A. Population Info'!A97","v":1000336048},{"$f":"'A. Population Info'!L97","v":"OIL"},{"$f":"'A. Population Info'!M97","v":0},{"$f":"'A. Population Info'!N97","v":0},{"$f":"'A. Population Info'!O97","v":0},{"$f":"'A. Population Info'!P97","v":0},{"$f":"VLOOKUP(OFFSET($B:$B,,MATCH(G$4,$B$4:$F$4,0)-1),OFFSET('C. PoC Adj Factor Scoring'!$E$5:$J$282,,MATCH(G$4,'C. PoC Adj Factor Scoring'!$E$3:$AH$3,0)-1),MATCH(G$2&\" Score\",'C. PoC Adj Factor Scoring'!$E$4:$J$4,0),TRUE)","v":4},{"$f":"VLOOKUP(OFFSET($B:$B,,MATCH(H$4,$B$4:$F$4,0)-1),OFFSET('C. PoC Adj Factor Scoring'!$E$5:$J$282,,MATCH(H$4,'C. PoC Adj Factor Scoring'!$E$3:$AH$3,0)-1),MATCH(H$2&\" Score\",'C. PoC Adj Factor Scoring'!$E$4:$J$4,0),TRUE)","v":1},{"$f":"VLOOKUP(OFFSET($B:$B,,MATCH(I$4,$B$4:$F$4,0)-1),OFFSET('C. PoC Adj Factor Scoring'!$E$5:$J$282,,MATCH(I$4,'C. PoC Adj Factor Scoring'!$E$3:$AH$3,0)-1),MATCH(I$2&\" Score\",'C. PoC Adj Factor Scoring'!$E$4:$J$4,0),TRUE)","v":1},{"$f":"VLOOKUP(OFFSET($B:$B,,MATCH(J$4,$B$4:$F$4,0)-1),OFFSET('C. PoC Adj Factor Scoring'!$E$5:$J$282,,MATCH(J$4,'C. PoC Adj Factor Scoring'!$E$3:$AH$3,0)-1),MATCH(J$2&\" Score\",'C. PoC Adj Factor Scoring'!$E$4:$J$4,0),TRUE)","v":1},{"$f":"VLOOKUP(OFFSET($B:$B,,MATCH(K$4,$B$4:$F$4,0)-1),OFFSET('C. PoC Adj Factor Scoring'!$E$5:$J$282,,MATCH(K$4,'C. PoC Adj Factor Scoring'!$E$3:$AH$3,0)-1),MATCH(K$2&\" Score\",'C. PoC Adj Factor Scoring'!$E$4:$J$4,0),TRUE)","v":1},{"$f":"VLOOKUP(OFFSET($B:$B,,MATCH(L$4,$B$4:$F$4,0)-1),OFFSET('C. PoC Adj Factor Scoring'!$E$5:$J$282,,MATCH(L$4,'C. PoC Adj Factor Scoring'!$E$3:$AH$3,0)-1),MATCH(L$2&\" Score\",'C. PoC Adj Factor Scoring'!$E$4:$J$4,0),TRUE)","v":1},{"$f":"VLOOKUP(OFFSET($B:$B,,MATCH(M$4,$B$4:$F$4,0)-1),OFFSET('C. PoC Adj Factor Scoring'!$E$5:$J$282,,MATCH(M$4,'C. PoC Adj Factor Scoring'!$E$3:$AH$3,0)-1),MATCH(M$2&\" Score\",'C. PoC Adj Factor Scoring'!$E$4:$J$4,0),TRUE)","v":1},{"$f":"VLOOKUP(OFFSET($B:$B,,MATCH(N$4,$B$4:$F$4,0)-1),OFFSET('C. PoC Adj Factor Scoring'!$E$5:$J$282,,MATCH(N$4,'C. PoC Adj Factor Scoring'!$E$3:$AH$3,0)-1),MATCH(N$2&\" Score\",'C. PoC Adj Factor Scoring'!$E$4:$J$4,0),TRUE)","v":1},{"$f":"VLOOKUP(OFFSET($B:$B,,MATCH(O$4,$B$4:$F$4,0)-1),OFFSET('C. PoC Adj Factor Scoring'!$E$5:$J$282,,MATCH(O$4,'C. PoC Adj Factor Scoring'!$E$3:$AH$3,0)-1),MATCH(O$2&\" Score\",'C. PoC Adj Factor Scoring'!$E$4:$J$4,0),TRUE)","v":1},{"$f":"VLOOKUP(OFFSET($B:$B,,MATCH(P$4,$B$4:$F$4,0)-1),OFFSET('C. PoC Adj Factor Scoring'!$E$5:$J$282,,MATCH(P$4,'C. PoC Adj Factor Scoring'!$E$3:$AH$3,0)-1),MATCH(P$2&\" Score\",'C. PoC Adj Factor Scoring'!$E$4:$J$4,0),TRUE)","v":1},{"$f":"VLOOKUP(OFFSET($B:$B,,MATCH(Q$4,$B$4:$F$4,0)-1),OFFSET('C. PoC Adj Factor Scoring'!$E$5:$J$282,,MATCH(Q$4,'C. PoC Adj Factor Scoring'!$E$3:$AH$3,0)-1),MATCH(Q$2&\" Score\",'C. PoC Adj Factor Scoring'!$E$4:$J$4,0),TRUE)","v":1},{"$f":"VLOOKUP(OFFSET($B:$B,,MATCH(R$4,$B$4:$F$4,0)-1),OFFSET('C. PoC Adj Factor Scoring'!$E$5:$J$282,,MATCH(R$4,'C. PoC Adj Factor Scoring'!$E$3:$AH$3,0)-1),MATCH(R$2&\" Score\",'C. PoC Adj Factor Scoring'!$E$4:$J$4,0),TRUE)","v":1},{"$f":"VLOOKUP(OFFSET($B:$B,,MATCH(S$4,$B$4:$F$4,0)-1),OFFSET('C. PoC Adj Factor Scoring'!$E$5:$J$282,,MATCH(S$4,'C. PoC Adj Factor Scoring'!$E$3:$AH$3,0)-1),MATCH(S$2&\" Score\",'C. PoC Adj Factor Scoring'!$E$4:$J$4,0),TRUE)","v":1},{"$f":"VLOOKUP(OFFSET($B:$B,,MATCH(T$4,$B$4:$F$4,0)-1),OFFSET('C. PoC Adj Factor Scoring'!$E$5:$J$282,,MATCH(T$4,'C. PoC Adj Factor Scoring'!$E$3:$AH$3,0)-1),MATCH(T$2&\" Score\",'C. PoC Adj Factor Scoring'!$E$4:$J$4,0),TRUE)","v":1},{"$f":"VLOOKUP(OFFSET($B:$B,,MATCH(U$4,$B$4:$F$4,0)-1),OFFSET('C. PoC Adj Factor Scoring'!$E$5:$J$282,,MATCH(U$4,'C. PoC Adj Factor Scoring'!$E$3:$AH$3,0)-1),MATCH(U$2&\" Score\",'C. PoC Adj Factor Scoring'!$E$4:$J$4,0),TRUE)","v":1},{"$f":"VLOOKUP(OFFSET($B:$B,,MATCH(V$4,$B$4:$F$4,0)-1),OFFSET('C. PoC Adj Factor Scoring'!$E$5:$J$282,,MATCH(V$4,'C. PoC Adj Factor Scoring'!$E$3:$AH$3,0)-1),MATCH(V$2&\" Score\",'C. PoC Adj Factor Scoring'!$E$4:$J$4,0),TRUE)","v":1},{"$f":"VLOOKUP(OFFSET($B:$B,,MATCH(W$4,$B$4:$F$4,0)-1),OFFSET('C. PoC Adj Factor Scoring'!$E$5:$J$282,,MATCH(W$4,'C. PoC Adj Factor Scoring'!$E$3:$AH$3,0)-1),MATCH(W$2&\" Score\",'C. PoC Adj Factor Scoring'!$E$4:$J$4,0),TRUE)","v":1},{"$f":"VLOOKUP(OFFSET($B:$B,,MATCH(X$4,$B$4:$F$4,0)-1),OFFSET('C. PoC Adj Factor Scoring'!$E$5:$J$282,,MATCH(X$4,'C. PoC Adj Factor Scoring'!$E$3:$AH$3,0)-1),MATCH(X$2&\" Score\",'C. PoC Adj Factor Scoring'!$E$4:$J$4,0),TRUE)","v":1},{"$f":"VLOOKUP(OFFSET($B:$B,,MATCH(Y$4,$B$4:$F$4,0)-1),OFFSET('C. PoC Adj Factor Scoring'!$E$5:$J$282,,MATCH(Y$4,'C. PoC Adj Factor Scoring'!$E$3:$AH$3,0)-1),MATCH(Y$2&\" Score\",'C. PoC Adj Factor Scoring'!$E$4:$J$4,0),TRUE)","v":1},{"$f":"VLOOKUP(OFFSET($B:$B,,MATCH(Z$4,$B$4:$F$4,0)-1),OFFSET('C. PoC Adj Factor Scoring'!$E$5:$J$282,,MATCH(Z$4,'C. PoC Adj Factor Scoring'!$E$3:$AH$3,0)-1),MATCH(Z$2&\" Score\",'C. PoC Adj Factor Scoring'!$E$4:$J$4,0),TRUE)","v":1},{"$f":"VLOOKUP(OFFSET($B:$B,,MATCH(AA$4,$B$4:$F$4,0)-1),OFFSET('C. PoC Adj Factor Scoring'!$E$5:$J$282,,MATCH(AA$4,'C. PoC Adj Factor Scoring'!$E$3:$AH$3,0)-1),MATCH(AA$2&\" Score\",'C. PoC Adj Factor Scoring'!$E$4:$J$4,0),TRUE)","v":3},{"$f":"VLOOKUP(OFFSET($B:$B,,MATCH(AB$4,$B$4:$F$4,0)-1),OFFSET('C. PoC Adj Factor Scoring'!$E$5:$J$282,,MATCH(AB$4,'C. PoC Adj Factor Scoring'!$E$3:$AH$3,0)-1),MATCH(AB$2&\" Score\",'C. PoC Adj Factor Scoring'!$E$4:$J$4,0),TRUE)","v":1},{"$f":"VLOOKUP(OFFSET($B:$B,,MATCH(AC$4,$B$4:$F$4,0)-1),OFFSET('C. PoC Adj Factor Scoring'!$E$5:$J$282,,MATCH(AC$4,'C. PoC Adj Factor Scoring'!$E$3:$AH$3,0)-1),MATCH(AC$2&\" Score\",'C. PoC Adj Factor Scoring'!$E$4:$J$4,0),TRUE)","v":1},{"$f":"VLOOKUP(OFFSET($B:$B,,MATCH(AD$4,$B$4:$F$4,0)-1),OFFSET('C. PoC Adj Factor Scoring'!$E$5:$J$282,,MATCH(AD$4,'C. PoC Adj Factor Scoring'!$E$3:$AH$3,0)-1),MATCH(AD$2&\" Score\",'C. PoC Adj Factor Scoring'!$E$4:$J$4,0),TRUE)","v":1},{"$f":"VLOOKUP(OFFSET($B:$B,,MATCH(AE$4,$B$4:$F$4,0)-1),OFFSET('C. PoC Adj Factor Scoring'!$E$5:$J$282,,MATCH(AE$4,'C. PoC Adj Factor Scoring'!$E$3:$AH$3,0)-1),MATCH(AE$2&\" Score\",'C. PoC Adj Factor Scoring'!$E$4:$J$4,0),TRUE)","v":1}]
[{"$f":"'A. Population Info'!A98","v":1000336078},{"$f":"'A. Population Info'!L98","v":"OIL"},{"$f":"'A. Population Info'!M98","v":0},{"$f":"'A. Population Info'!N98","v":0},{"$f":"'A. Population Info'!O98","v":0},{"$f":"'A. Population Info'!P98","v":0},{"$f":"VLOOKUP(OFFSET($B:$B,,MATCH(G$4,$B$4:$F$4,0)-1),OFFSET('C. PoC Adj Factor Scoring'!$E$5:$J$282,,MATCH(G$4,'C. PoC Adj Factor Scoring'!$E$3:$AH$3,0)-1),MATCH(G$2&\" Score\",'C. PoC Adj Factor Scoring'!$E$4:$J$4,0),TRUE)","v":4},{"$f":"VLOOKUP(OFFSET($B:$B,,MATCH(H$4,$B$4:$F$4,0)-1),OFFSET('C. PoC Adj Factor Scoring'!$E$5:$J$282,,MATCH(H$4,'C. PoC Adj Factor Scoring'!$E$3:$AH$3,0)-1),MATCH(H$2&\" Score\",'C. PoC Adj Factor Scoring'!$E$4:$J$4,0),TRUE)","v":1},{"$f":"VLOOKUP(OFFSET($B:$B,,MATCH(I$4,$B$4:$F$4,0)-1),OFFSET('C. PoC Adj Factor Scoring'!$E$5:$J$282,,MATCH(I$4,'C. PoC Adj Factor Scoring'!$E$3:$AH$3,0)-1),MATCH(I$2&\" Score\",'C. PoC Adj Factor Scoring'!$E$4:$J$4,0),TRUE)","v":1},{"$f":"VLOOKUP(OFFSET($B:$B,,MATCH(J$4,$B$4:$F$4,0)-1),OFFSET('C. PoC Adj Factor Scoring'!$E$5:$J$282,,MATCH(J$4,'C. PoC Adj Factor Scoring'!$E$3:$AH$3,0)-1),MATCH(J$2&\" Score\",'C. PoC Adj Factor Scoring'!$E$4:$J$4,0),TRUE)","v":1},{"$f":"VLOOKUP(OFFSET($B:$B,,MATCH(K$4,$B$4:$F$4,0)-1),OFFSET('C. PoC Adj Factor Scoring'!$E$5:$J$282,,MATCH(K$4,'C. PoC Adj Factor Scoring'!$E$3:$AH$3,0)-1),MATCH(K$2&\" Score\",'C. PoC Adj Factor Scoring'!$E$4:$J$4,0),TRUE)","v":1},{"$f":"VLOOKUP(OFFSET($B:$B,,MATCH(L$4,$B$4:$F$4,0)-1),OFFSET('C. PoC Adj Factor Scoring'!$E$5:$J$282,,MATCH(L$4,'C. PoC Adj Factor Scoring'!$E$3:$AH$3,0)-1),MATCH(L$2&\" Score\",'C. PoC Adj Factor Scoring'!$E$4:$J$4,0),TRUE)","v":1},{"$f":"VLOOKUP(OFFSET($B:$B,,MATCH(M$4,$B$4:$F$4,0)-1),OFFSET('C. PoC Adj Factor Scoring'!$E$5:$J$282,,MATCH(M$4,'C. PoC Adj Factor Scoring'!$E$3:$AH$3,0)-1),MATCH(M$2&\" Score\",'C. PoC Adj Factor Scoring'!$E$4:$J$4,0),TRUE)","v":1},{"$f":"VLOOKUP(OFFSET($B:$B,,MATCH(N$4,$B$4:$F$4,0)-1),OFFSET('C. PoC Adj Factor Scoring'!$E$5:$J$282,,MATCH(N$4,'C. PoC Adj Factor Scoring'!$E$3:$AH$3,0)-1),MATCH(N$2&\" Score\",'C. PoC Adj Factor Scoring'!$E$4:$J$4,0),TRUE)","v":1},{"$f":"VLOOKUP(OFFSET($B:$B,,MATCH(O$4,$B$4:$F$4,0)-1),OFFSET('C. PoC Adj Factor Scoring'!$E$5:$J$282,,MATCH(O$4,'C. PoC Adj Factor Scoring'!$E$3:$AH$3,0)-1),MATCH(O$2&\" Score\",'C. PoC Adj Factor Scoring'!$E$4:$J$4,0),TRUE)","v":1},{"$f":"VLOOKUP(OFFSET($B:$B,,MATCH(P$4,$B$4:$F$4,0)-1),OFFSET('C. PoC Adj Factor Scoring'!$E$5:$J$282,,MATCH(P$4,'C. PoC Adj Factor Scoring'!$E$3:$AH$3,0)-1),MATCH(P$2&\" Score\",'C. PoC Adj Factor Scoring'!$E$4:$J$4,0),TRUE)","v":1},{"$f":"VLOOKUP(OFFSET($B:$B,,MATCH(Q$4,$B$4:$F$4,0)-1),OFFSET('C. PoC Adj Factor Scoring'!$E$5:$J$282,,MATCH(Q$4,'C. PoC Adj Factor Scoring'!$E$3:$AH$3,0)-1),MATCH(Q$2&\" Score\",'C. PoC Adj Factor Scoring'!$E$4:$J$4,0),TRUE)","v":1},{"$f":"VLOOKUP(OFFSET($B:$B,,MATCH(R$4,$B$4:$F$4,0)-1),OFFSET('C. PoC Adj Factor Scoring'!$E$5:$J$282,,MATCH(R$4,'C. PoC Adj Factor Scoring'!$E$3:$AH$3,0)-1),MATCH(R$2&\" Score\",'C. PoC Adj Factor Scoring'!$E$4:$J$4,0),TRUE)","v":1},{"$f":"VLOOKUP(OFFSET($B:$B,,MATCH(S$4,$B$4:$F$4,0)-1),OFFSET('C. PoC Adj Factor Scoring'!$E$5:$J$282,,MATCH(S$4,'C. PoC Adj Factor Scoring'!$E$3:$AH$3,0)-1),MATCH(S$2&\" Score\",'C. PoC Adj Factor Scoring'!$E$4:$J$4,0),TRUE)","v":1},{"$f":"VLOOKUP(OFFSET($B:$B,,MATCH(T$4,$B$4:$F$4,0)-1),OFFSET('C. PoC Adj Factor Scoring'!$E$5:$J$282,,MATCH(T$4,'C. PoC Adj Factor Scoring'!$E$3:$AH$3,0)-1),MATCH(T$2&\" Score\",'C. PoC Adj Factor Scoring'!$E$4:$J$4,0),TRUE)","v":1},{"$f":"VLOOKUP(OFFSET($B:$B,,MATCH(U$4,$B$4:$F$4,0)-1),OFFSET('C. PoC Adj Factor Scoring'!$E$5:$J$282,,MATCH(U$4,'C. PoC Adj Factor Scoring'!$E$3:$AH$3,0)-1),MATCH(U$2&\" Score\",'C. PoC Adj Factor Scoring'!$E$4:$J$4,0),TRUE)","v":1},{"$f":"VLOOKUP(OFFSET($B:$B,,MATCH(V$4,$B$4:$F$4,0)-1),OFFSET('C. PoC Adj Factor Scoring'!$E$5:$J$282,,MATCH(V$4,'C. PoC Adj Factor Scoring'!$E$3:$AH$3,0)-1),MATCH(V$2&\" Score\",'C. PoC Adj Factor Scoring'!$E$4:$J$4,0),TRUE)","v":1},{"$f":"VLOOKUP(OFFSET($B:$B,,MATCH(W$4,$B$4:$F$4,0)-1),OFFSET('C. PoC Adj Factor Scoring'!$E$5:$J$282,,MATCH(W$4,'C. PoC Adj Factor Scoring'!$E$3:$AH$3,0)-1),MATCH(W$2&\" Score\",'C. PoC Adj Factor Scoring'!$E$4:$J$4,0),TRUE)","v":1},{"$f":"VLOOKUP(OFFSET($B:$B,,MATCH(X$4,$B$4:$F$4,0)-1),OFFSET('C. PoC Adj Factor Scoring'!$E$5:$J$282,,MATCH(X$4,'C. PoC Adj Factor Scoring'!$E$3:$AH$3,0)-1),MATCH(X$2&\" Score\",'C. PoC Adj Factor Scoring'!$E$4:$J$4,0),TRUE)","v":1},{"$f":"VLOOKUP(OFFSET($B:$B,,MATCH(Y$4,$B$4:$F$4,0)-1),OFFSET('C. PoC Adj Factor Scoring'!$E$5:$J$282,,MATCH(Y$4,'C. PoC Adj Factor Scoring'!$E$3:$AH$3,0)-1),MATCH(Y$2&\" Score\",'C. PoC Adj Factor Scoring'!$E$4:$J$4,0),TRUE)","v":1},{"$f":"VLOOKUP(OFFSET($B:$B,,MATCH(Z$4,$B$4:$F$4,0)-1),OFFSET('C. PoC Adj Factor Scoring'!$E$5:$J$282,,MATCH(Z$4,'C. PoC Adj Factor Scoring'!$E$3:$AH$3,0)-1),MATCH(Z$2&\" Score\",'C. PoC Adj Factor Scoring'!$E$4:$J$4,0),TRUE)","v":1},{"$f":"VLOOKUP(OFFSET($B:$B,,MATCH(AA$4,$B$4:$F$4,0)-1),OFFSET('C. PoC Adj Factor Scoring'!$E$5:$J$282,,MATCH(AA$4,'C. PoC Adj Factor Scoring'!$E$3:$AH$3,0)-1),MATCH(AA$2&\" Score\",'C. PoC Adj Factor Scoring'!$E$4:$J$4,0),TRUE)","v":3},{"$f":"VLOOKUP(OFFSET($B:$B,,MATCH(AB$4,$B$4:$F$4,0)-1),OFFSET('C. PoC Adj Factor Scoring'!$E$5:$J$282,,MATCH(AB$4,'C. PoC Adj Factor Scoring'!$E$3:$AH$3,0)-1),MATCH(AB$2&\" Score\",'C. PoC Adj Factor Scoring'!$E$4:$J$4,0),TRUE)","v":1},{"$f":"VLOOKUP(OFFSET($B:$B,,MATCH(AC$4,$B$4:$F$4,0)-1),OFFSET('C. PoC Adj Factor Scoring'!$E$5:$J$282,,MATCH(AC$4,'C. PoC Adj Factor Scoring'!$E$3:$AH$3,0)-1),MATCH(AC$2&\" Score\",'C. PoC Adj Factor Scoring'!$E$4:$J$4,0),TRUE)","v":1},{"$f":"VLOOKUP(OFFSET($B:$B,,MATCH(AD$4,$B$4:$F$4,0)-1),OFFSET('C. PoC Adj Factor Scoring'!$E$5:$J$282,,MATCH(AD$4,'C. PoC Adj Factor Scoring'!$E$3:$AH$3,0)-1),MATCH(AD$2&\" Score\",'C. PoC Adj Factor Scoring'!$E$4:$J$4,0),TRUE)","v":1},{"$f":"VLOOKUP(OFFSET($B:$B,,MATCH(AE$4,$B$4:$F$4,0)-1),OFFSET('C. PoC Adj Factor Scoring'!$E$5:$J$282,,MATCH(AE$4,'C. PoC Adj Factor Scoring'!$E$3:$AH$3,0)-1),MATCH(AE$2&\" Score\",'C. PoC Adj Factor Scoring'!$E$4:$J$4,0),TRUE)","v":1}]
[{"$f":"'A. Population Info'!A99","v":1000336106},{"$f":"'A. Population Info'!L99","v":"OIL"},{"$f":"'A. Population Info'!M99","v":0},{"$f":"'A. Population Info'!N99","v":0},{"$f":"'A. Population Info'!O99","v":0},{"$f":"'A. Population Info'!P99","v":0},{"$f":"VLOOKUP(OFFSET($B:$B,,MATCH(G$4,$B$4:$F$4,0)-1),OFFSET('C. PoC Adj Factor Scoring'!$E$5:$J$282,,MATCH(G$4,'C. PoC Adj Factor Scoring'!$E$3:$AH$3,0)-1),MATCH(G$2&\" Score\",'C. PoC Adj Factor Scoring'!$E$4:$J$4,0),TRUE)","v":4},{"$f":"VLOOKUP(OFFSET($B:$B,,MATCH(H$4,$B$4:$F$4,0)-1),OFFSET('C. PoC Adj Factor Scoring'!$E$5:$J$282,,MATCH(H$4,'C. PoC Adj Factor Scoring'!$E$3:$AH$3,0)-1),MATCH(H$2&\" Score\",'C. PoC Adj Factor Scoring'!$E$4:$J$4,0),TRUE)","v":1},{"$f":"VLOOKUP(OFFSET($B:$B,,MATCH(I$4,$B$4:$F$4,0)-1),OFFSET('C. PoC Adj Factor Scoring'!$E$5:$J$282,,MATCH(I$4,'C. PoC Adj Factor Scoring'!$E$3:$AH$3,0)-1),MATCH(I$2&\" Score\",'C. PoC Adj Factor Scoring'!$E$4:$J$4,0),TRUE)","v":1},{"$f":"VLOOKUP(OFFSET($B:$B,,MATCH(J$4,$B$4:$F$4,0)-1),OFFSET('C. PoC Adj Factor Scoring'!$E$5:$J$282,,MATCH(J$4,'C. PoC Adj Factor Scoring'!$E$3:$AH$3,0)-1),MATCH(J$2&\" Score\",'C. PoC Adj Factor Scoring'!$E$4:$J$4,0),TRUE)","v":1},{"$f":"VLOOKUP(OFFSET($B:$B,,MATCH(K$4,$B$4:$F$4,0)-1),OFFSET('C. PoC Adj Factor Scoring'!$E$5:$J$282,,MATCH(K$4,'C. PoC Adj Factor Scoring'!$E$3:$AH$3,0)-1),MATCH(K$2&\" Score\",'C. PoC Adj Factor Scoring'!$E$4:$J$4,0),TRUE)","v":1},{"$f":"VLOOKUP(OFFSET($B:$B,,MATCH(L$4,$B$4:$F$4,0)-1),OFFSET('C. PoC Adj Factor Scoring'!$E$5:$J$282,,MATCH(L$4,'C. PoC Adj Factor Scoring'!$E$3:$AH$3,0)-1),MATCH(L$2&\" Score\",'C. PoC Adj Factor Scoring'!$E$4:$J$4,0),TRUE)","v":1},{"$f":"VLOOKUP(OFFSET($B:$B,,MATCH(M$4,$B$4:$F$4,0)-1),OFFSET('C. PoC Adj Factor Scoring'!$E$5:$J$282,,MATCH(M$4,'C. PoC Adj Factor Scoring'!$E$3:$AH$3,0)-1),MATCH(M$2&\" Score\",'C. PoC Adj Factor Scoring'!$E$4:$J$4,0),TRUE)","v":1},{"$f":"VLOOKUP(OFFSET($B:$B,,MATCH(N$4,$B$4:$F$4,0)-1),OFFSET('C. PoC Adj Factor Scoring'!$E$5:$J$282,,MATCH(N$4,'C. PoC Adj Factor Scoring'!$E$3:$AH$3,0)-1),MATCH(N$2&\" Score\",'C. PoC Adj Factor Scoring'!$E$4:$J$4,0),TRUE)","v":1},{"$f":"VLOOKUP(OFFSET($B:$B,,MATCH(O$4,$B$4:$F$4,0)-1),OFFSET('C. PoC Adj Factor Scoring'!$E$5:$J$282,,MATCH(O$4,'C. PoC Adj Factor Scoring'!$E$3:$AH$3,0)-1),MATCH(O$2&\" Score\",'C. PoC Adj Factor Scoring'!$E$4:$J$4,0),TRUE)","v":1},{"$f":"VLOOKUP(OFFSET($B:$B,,MATCH(P$4,$B$4:$F$4,0)-1),OFFSET('C. PoC Adj Factor Scoring'!$E$5:$J$282,,MATCH(P$4,'C. PoC Adj Factor Scoring'!$E$3:$AH$3,0)-1),MATCH(P$2&\" Score\",'C. PoC Adj Factor Scoring'!$E$4:$J$4,0),TRUE)","v":1},{"$f":"VLOOKUP(OFFSET($B:$B,,MATCH(Q$4,$B$4:$F$4,0)-1),OFFSET('C. PoC Adj Factor Scoring'!$E$5:$J$282,,MATCH(Q$4,'C. PoC Adj Factor Scoring'!$E$3:$AH$3,0)-1),MATCH(Q$2&\" Score\",'C. PoC Adj Factor Scoring'!$E$4:$J$4,0),TRUE)","v":1},{"$f":"VLOOKUP(OFFSET($B:$B,,MATCH(R$4,$B$4:$F$4,0)-1),OFFSET('C. PoC Adj Factor Scoring'!$E$5:$J$282,,MATCH(R$4,'C. PoC Adj Factor Scoring'!$E$3:$AH$3,0)-1),MATCH(R$2&\" Score\",'C. PoC Adj Factor Scoring'!$E$4:$J$4,0),TRUE)","v":1},{"$f":"VLOOKUP(OFFSET($B:$B,,MATCH(S$4,$B$4:$F$4,0)-1),OFFSET('C. PoC Adj Factor Scoring'!$E$5:$J$282,,MATCH(S$4,'C. PoC Adj Factor Scoring'!$E$3:$AH$3,0)-1),MATCH(S$2&\" Score\",'C. PoC Adj Factor Scoring'!$E$4:$J$4,0),TRUE)","v":1},{"$f":"VLOOKUP(OFFSET($B:$B,,MATCH(T$4,$B$4:$F$4,0)-1),OFFSET('C. PoC Adj Factor Scoring'!$E$5:$J$282,,MATCH(T$4,'C. PoC Adj Factor Scoring'!$E$3:$AH$3,0)-1),MATCH(T$2&\" Score\",'C. PoC Adj Factor Scoring'!$E$4:$J$4,0),TRUE)","v":1},{"$f":"VLOOKUP(OFFSET($B:$B,,MATCH(U$4,$B$4:$F$4,0)-1),OFFSET('C. PoC Adj Factor Scoring'!$E$5:$J$282,,MATCH(U$4,'C. PoC Adj Factor Scoring'!$E$3:$AH$3,0)-1),MATCH(U$2&\" Score\",'C. PoC Adj Factor Scoring'!$E$4:$J$4,0),TRUE)","v":1},{"$f":"VLOOKUP(OFFSET($B:$B,,MATCH(V$4,$B$4:$F$4,0)-1),OFFSET('C. PoC Adj Factor Scoring'!$E$5:$J$282,,MATCH(V$4,'C. PoC Adj Factor Scoring'!$E$3:$AH$3,0)-1),MATCH(V$2&\" Score\",'C. PoC Adj Factor Scoring'!$E$4:$J$4,0),TRUE)","v":1},{"$f":"VLOOKUP(OFFSET($B:$B,,MATCH(W$4,$B$4:$F$4,0)-1),OFFSET('C. PoC Adj Factor Scoring'!$E$5:$J$282,,MATCH(W$4,'C. PoC Adj Factor Scoring'!$E$3:$AH$3,0)-1),MATCH(W$2&\" Score\",'C. PoC Adj Factor Scoring'!$E$4:$J$4,0),TRUE)","v":1},{"$f":"VLOOKUP(OFFSET($B:$B,,MATCH(X$4,$B$4:$F$4,0)-1),OFFSET('C. PoC Adj Factor Scoring'!$E$5:$J$282,,MATCH(X$4,'C. PoC Adj Factor Scoring'!$E$3:$AH$3,0)-1),MATCH(X$2&\" Score\",'C. PoC Adj Factor Scoring'!$E$4:$J$4,0),TRUE)","v":1},{"$f":"VLOOKUP(OFFSET($B:$B,,MATCH(Y$4,$B$4:$F$4,0)-1),OFFSET('C. PoC Adj Factor Scoring'!$E$5:$J$282,,MATCH(Y$4,'C. PoC Adj Factor Scoring'!$E$3:$AH$3,0)-1),MATCH(Y$2&\" Score\",'C. PoC Adj Factor Scoring'!$E$4:$J$4,0),TRUE)","v":1},{"$f":"VLOOKUP(OFFSET($B:$B,,MATCH(Z$4,$B$4:$F$4,0)-1),OFFSET('C. PoC Adj Factor Scoring'!$E$5:$J$282,,MATCH(Z$4,'C. PoC Adj Factor Scoring'!$E$3:$AH$3,0)-1),MATCH(Z$2&\" Score\",'C. PoC Adj Factor Scoring'!$E$4:$J$4,0),TRUE)","v":1},{"$f":"VLOOKUP(OFFSET($B:$B,,MATCH(AA$4,$B$4:$F$4,0)-1),OFFSET('C. PoC Adj Factor Scoring'!$E$5:$J$282,,MATCH(AA$4,'C. PoC Adj Factor Scoring'!$E$3:$AH$3,0)-1),MATCH(AA$2&\" Score\",'C. PoC Adj Factor Scoring'!$E$4:$J$4,0),TRUE)","v":3},{"$f":"VLOOKUP(OFFSET($B:$B,,MATCH(AB$4,$B$4:$F$4,0)-1),OFFSET('C. PoC Adj Factor Scoring'!$E$5:$J$282,,MATCH(AB$4,'C. PoC Adj Factor Scoring'!$E$3:$AH$3,0)-1),MATCH(AB$2&\" Score\",'C. PoC Adj Factor Scoring'!$E$4:$J$4,0),TRUE)","v":1},{"$f":"VLOOKUP(OFFSET($B:$B,,MATCH(AC$4,$B$4:$F$4,0)-1),OFFSET('C. PoC Adj Factor Scoring'!$E$5:$J$282,,MATCH(AC$4,'C. PoC Adj Factor Scoring'!$E$3:$AH$3,0)-1),MATCH(AC$2&\" Score\",'C. PoC Adj Factor Scoring'!$E$4:$J$4,0),TRUE)","v":1},{"$f":"VLOOKUP(OFFSET($B:$B,,MATCH(AD$4,$B$4:$F$4,0)-1),OFFSET('C. PoC Adj Factor Scoring'!$E$5:$J$282,,MATCH(AD$4,'C. PoC Adj Factor Scoring'!$E$3:$AH$3,0)-1),MATCH(AD$2&\" Score\",'C. PoC Adj Factor Scoring'!$E$4:$J$4,0),TRUE)","v":1},{"$f":"VLOOKUP(OFFSET($B:$B,,MATCH(AE$4,$B$4:$F$4,0)-1),OFFSET('C. PoC Adj Factor Scoring'!$E$5:$J$282,,MATCH(AE$4,'C. PoC Adj Factor Scoring'!$E$3:$AH$3,0)-1),MATCH(AE$2&\" Score\",'C. PoC Adj Factor Scoring'!$E$4:$J$4,0),TRUE)","v":1}]
[{"$f":"'A. Population Info'!A100","v":1000336136},{"$f":"'A. Population Info'!L100","v":"OIL"},{"$f":"'A. Population Info'!M100","v":0},{"$f":"'A. Population Info'!N100","v":0},{"$f":"'A. Population Info'!O100","v":0},{"$f":"'A. Population Info'!P100","v":0},{"$f":"VLOOKUP(OFFSET($B:$B,,MATCH(G$4,$B$4:$F$4,0)-1),OFFSET('C. PoC Adj Factor Scoring'!$E$5:$J$282,,MATCH(G$4,'C. PoC Adj Factor Scoring'!$E$3:$AH$3,0)-1),MATCH(G$2&\" Score\",'C. PoC Adj Factor Scoring'!$E$4:$J$4,0),TRUE)","v":4},{"$f":"VLOOKUP(OFFSET($B:$B,,MATCH(H$4,$B$4:$F$4,0)-1),OFFSET('C. PoC Adj Factor Scoring'!$E$5:$J$282,,MATCH(H$4,'C. PoC Adj Factor Scoring'!$E$3:$AH$3,0)-1),MATCH(H$2&\" Score\",'C. PoC Adj Factor Scoring'!$E$4:$J$4,0),TRUE)","v":1},{"$f":"VLOOKUP(OFFSET($B:$B,,MATCH(I$4,$B$4:$F$4,0)-1),OFFSET('C. PoC Adj Factor Scoring'!$E$5:$J$282,,MATCH(I$4,'C. PoC Adj Factor Scoring'!$E$3:$AH$3,0)-1),MATCH(I$2&\" Score\",'C. PoC Adj Factor Scoring'!$E$4:$J$4,0),TRUE)","v":1},{"$f":"VLOOKUP(OFFSET($B:$B,,MATCH(J$4,$B$4:$F$4,0)-1),OFFSET('C. PoC Adj Factor Scoring'!$E$5:$J$282,,MATCH(J$4,'C. PoC Adj Factor Scoring'!$E$3:$AH$3,0)-1),MATCH(J$2&\" Score\",'C. PoC Adj Factor Scoring'!$E$4:$J$4,0),TRUE)","v":1},{"$f":"VLOOKUP(OFFSET($B:$B,,MATCH(K$4,$B$4:$F$4,0)-1),OFFSET('C. PoC Adj Factor Scoring'!$E$5:$J$282,,MATCH(K$4,'C. PoC Adj Factor Scoring'!$E$3:$AH$3,0)-1),MATCH(K$2&\" Score\",'C. PoC Adj Factor Scoring'!$E$4:$J$4,0),TRUE)","v":1},{"$f":"VLOOKUP(OFFSET($B:$B,,MATCH(L$4,$B$4:$F$4,0)-1),OFFSET('C. PoC Adj Factor Scoring'!$E$5:$J$282,,MATCH(L$4,'C. PoC Adj Factor Scoring'!$E$3:$AH$3,0)-1),MATCH(L$2&\" Score\",'C. PoC Adj Factor Scoring'!$E$4:$J$4,0),TRUE)","v":1},{"$f":"VLOOKUP(OFFSET($B:$B,,MATCH(M$4,$B$4:$F$4,0)-1),OFFSET('C. PoC Adj Factor Scoring'!$E$5:$J$282,,MATCH(M$4,'C. PoC Adj Factor Scoring'!$E$3:$AH$3,0)-1),MATCH(M$2&\" Score\",'C. PoC Adj Factor Scoring'!$E$4:$J$4,0),TRUE)","v":1},{"$f":"VLOOKUP(OFFSET($B:$B,,MATCH(N$4,$B$4:$F$4,0)-1),OFFSET('C. PoC Adj Factor Scoring'!$E$5:$J$282,,MATCH(N$4,'C. PoC Adj Factor Scoring'!$E$3:$AH$3,0)-1),MATCH(N$2&\" Score\",'C. PoC Adj Factor Scoring'!$E$4:$J$4,0),TRUE)","v":1},{"$f":"VLOOKUP(OFFSET($B:$B,,MATCH(O$4,$B$4:$F$4,0)-1),OFFSET('C. PoC Adj Factor Scoring'!$E$5:$J$282,,MATCH(O$4,'C. PoC Adj Factor Scoring'!$E$3:$AH$3,0)-1),MATCH(O$2&\" Score\",'C. PoC Adj Factor Scoring'!$E$4:$J$4,0),TRUE)","v":1},{"$f":"VLOOKUP(OFFSET($B:$B,,MATCH(P$4,$B$4:$F$4,0)-1),OFFSET('C. PoC Adj Factor Scoring'!$E$5:$J$282,,MATCH(P$4,'C. PoC Adj Factor Scoring'!$E$3:$AH$3,0)-1),MATCH(P$2&\" Score\",'C. PoC Adj Factor Scoring'!$E$4:$J$4,0),TRUE)","v":1},{"$f":"VLOOKUP(OFFSET($B:$B,,MATCH(Q$4,$B$4:$F$4,0)-1),OFFSET('C. PoC Adj Factor Scoring'!$E$5:$J$282,,MATCH(Q$4,'C. PoC Adj Factor Scoring'!$E$3:$AH$3,0)-1),MATCH(Q$2&\" Score\",'C. PoC Adj Factor Scoring'!$E$4:$J$4,0),TRUE)","v":1},{"$f":"VLOOKUP(OFFSET($B:$B,,MATCH(R$4,$B$4:$F$4,0)-1),OFFSET('C. PoC Adj Factor Scoring'!$E$5:$J$282,,MATCH(R$4,'C. PoC Adj Factor Scoring'!$E$3:$AH$3,0)-1),MATCH(R$2&\" Score\",'C. PoC Adj Factor Scoring'!$E$4:$J$4,0),TRUE)","v":1},{"$f":"VLOOKUP(OFFSET($B:$B,,MATCH(S$4,$B$4:$F$4,0)-1),OFFSET('C. PoC Adj Factor Scoring'!$E$5:$J$282,,MATCH(S$4,'C. PoC Adj Factor Scoring'!$E$3:$AH$3,0)-1),MATCH(S$2&\" Score\",'C. PoC Adj Factor Scoring'!$E$4:$J$4,0),TRUE)","v":1},{"$f":"VLOOKUP(OFFSET($B:$B,,MATCH(T$4,$B$4:$F$4,0)-1),OFFSET('C. PoC Adj Factor Scoring'!$E$5:$J$282,,MATCH(T$4,'C. PoC Adj Factor Scoring'!$E$3:$AH$3,0)-1),MATCH(T$2&\" Score\",'C. PoC Adj Factor Scoring'!$E$4:$J$4,0),TRUE)","v":1},{"$f":"VLOOKUP(OFFSET($B:$B,,MATCH(U$4,$B$4:$F$4,0)-1),OFFSET('C. PoC Adj Factor Scoring'!$E$5:$J$282,,MATCH(U$4,'C. PoC Adj Factor Scoring'!$E$3:$AH$3,0)-1),MATCH(U$2&\" Score\",'C. PoC Adj Factor Scoring'!$E$4:$J$4,0),TRUE)","v":1},{"$f":"VLOOKUP(OFFSET($B:$B,,MATCH(V$4,$B$4:$F$4,0)-1),OFFSET('C. PoC Adj Factor Scoring'!$E$5:$J$282,,MATCH(V$4,'C. PoC Adj Factor Scoring'!$E$3:$AH$3,0)-1),MATCH(V$2&\" Score\",'C. PoC Adj Factor Scoring'!$E$4:$J$4,0),TRUE)","v":1},{"$f":"VLOOKUP(OFFSET($B:$B,,MATCH(W$4,$B$4:$F$4,0)-1),OFFSET('C. PoC Adj Factor Scoring'!$E$5:$J$282,,MATCH(W$4,'C. PoC Adj Factor Scoring'!$E$3:$AH$3,0)-1),MATCH(W$2&\" Score\",'C. PoC Adj Factor Scoring'!$E$4:$J$4,0),TRUE)","v":1},{"$f":"VLOOKUP(OFFSET($B:$B,,MATCH(X$4,$B$4:$F$4,0)-1),OFFSET('C. PoC Adj Factor Scoring'!$E$5:$J$282,,MATCH(X$4,'C. PoC Adj Factor Scoring'!$E$3:$AH$3,0)-1),MATCH(X$2&\" Score\",'C. PoC Adj Factor Scoring'!$E$4:$J$4,0),TRUE)","v":1},{"$f":"VLOOKUP(OFFSET($B:$B,,MATCH(Y$4,$B$4:$F$4,0)-1),OFFSET('C. PoC Adj Factor Scoring'!$E$5:$J$282,,MATCH(Y$4,'C. PoC Adj Factor Scoring'!$E$3:$AH$3,0)-1),MATCH(Y$2&\" Score\",'C. PoC Adj Factor Scoring'!$E$4:$J$4,0),TRUE)","v":1},{"$f":"VLOOKUP(OFFSET($B:$B,,MATCH(Z$4,$B$4:$F$4,0)-1),OFFSET('C. PoC Adj Factor Scoring'!$E$5:$J$282,,MATCH(Z$4,'C. PoC Adj Factor Scoring'!$E$3:$AH$3,0)-1),MATCH(Z$2&\" Score\",'C. PoC Adj Factor Scoring'!$E$4:$J$4,0),TRUE)","v":1},{"$f":"VLOOKUP(OFFSET($B:$B,,MATCH(AA$4,$B$4:$F$4,0)-1),OFFSET('C. PoC Adj Factor Scoring'!$E$5:$J$282,,MATCH(AA$4,'C. PoC Adj Factor Scoring'!$E$3:$AH$3,0)-1),MATCH(AA$2&\" Score\",'C. PoC Adj Factor Scoring'!$E$4:$J$4,0),TRUE)","v":3},{"$f":"VLOOKUP(OFFSET($B:$B,,MATCH(AB$4,$B$4:$F$4,0)-1),OFFSET('C. PoC Adj Factor Scoring'!$E$5:$J$282,,MATCH(AB$4,'C. PoC Adj Factor Scoring'!$E$3:$AH$3,0)-1),MATCH(AB$2&\" Score\",'C. PoC Adj Factor Scoring'!$E$4:$J$4,0),TRUE)","v":1},{"$f":"VLOOKUP(OFFSET($B:$B,,MATCH(AC$4,$B$4:$F$4,0)-1),OFFSET('C. PoC Adj Factor Scoring'!$E$5:$J$282,,MATCH(AC$4,'C. PoC Adj Factor Scoring'!$E$3:$AH$3,0)-1),MATCH(AC$2&\" Score\",'C. PoC Adj Factor Scoring'!$E$4:$J$4,0),TRUE)","v":1},{"$f":"VLOOKUP(OFFSET($B:$B,,MATCH(AD$4,$B$4:$F$4,0)-1),OFFSET('C. PoC Adj Factor Scoring'!$E$5:$J$282,,MATCH(AD$4,'C. PoC Adj Factor Scoring'!$E$3:$AH$3,0)-1),MATCH(AD$2&\" Score\",'C. PoC Adj Factor Scoring'!$E$4:$J$4,0),TRUE)","v":1},{"$f":"VLOOKUP(OFFSET($B:$B,,MATCH(AE$4,$B$4:$F$4,0)-1),OFFSET('C. PoC Adj Factor Scoring'!$E$5:$J$282,,MATCH(AE$4,'C. PoC Adj Factor Scoring'!$E$3:$AH$3,0)-1),MATCH(AE$2&\" Score\",'C. PoC Adj Factor Scoring'!$E$4:$J$4,0),TRUE)","v":1}]
[{"$f":"'A. Population Info'!A101","v":1000336165},{"$f":"'A. Population Info'!L101","v":"OIL"},{"$f":"'A. Population Info'!M101","v":0},{"$f":"'A. Population Info'!N101","v":0},{"$f":"'A. Population Info'!O101","v":0},{"$f":"'A. Population Info'!P101","v":0},{"$f":"VLOOKUP(OFFSET($B:$B,,MATCH(G$4,$B$4:$F$4,0)-1),OFFSET('C. PoC Adj Factor Scoring'!$E$5:$J$282,,MATCH(G$4,'C. PoC Adj Factor Scoring'!$E$3:$AH$3,0)-1),MATCH(G$2&\" Score\",'C. PoC Adj Factor Scoring'!$E$4:$J$4,0),TRUE)","v":4},{"$f":"VLOOKUP(OFFSET($B:$B,,MATCH(H$4,$B$4:$F$4,0)-1),OFFSET('C. PoC Adj Factor Scoring'!$E$5:$J$282,,MATCH(H$4,'C. PoC Adj Factor Scoring'!$E$3:$AH$3,0)-1),MATCH(H$2&\" Score\",'C. PoC Adj Factor Scoring'!$E$4:$J$4,0),TRUE)","v":1},{"$f":"VLOOKUP(OFFSET($B:$B,,MATCH(I$4,$B$4:$F$4,0)-1),OFFSET('C. PoC Adj Factor Scoring'!$E$5:$J$282,,MATCH(I$4,'C. PoC Adj Factor Scoring'!$E$3:$AH$3,0)-1),MATCH(I$2&\" Score\",'C. PoC Adj Factor Scoring'!$E$4:$J$4,0),TRUE)","v":1},{"$f":"VLOOKUP(OFFSET($B:$B,,MATCH(J$4,$B$4:$F$4,0)-1),OFFSET('C. PoC Adj Factor Scoring'!$E$5:$J$282,,MATCH(J$4,'C. PoC Adj Factor Scoring'!$E$3:$AH$3,0)-1),MATCH(J$2&\" Score\",'C. PoC Adj Factor Scoring'!$E$4:$J$4,0),TRUE)","v":1},{"$f":"VLOOKUP(OFFSET($B:$B,,MATCH(K$4,$B$4:$F$4,0)-1),OFFSET('C. PoC Adj Factor Scoring'!$E$5:$J$282,,MATCH(K$4,'C. PoC Adj Factor Scoring'!$E$3:$AH$3,0)-1),MATCH(K$2&\" Score\",'C. PoC Adj Factor Scoring'!$E$4:$J$4,0),TRUE)","v":1},{"$f":"VLOOKUP(OFFSET($B:$B,,MATCH(L$4,$B$4:$F$4,0)-1),OFFSET('C. PoC Adj Factor Scoring'!$E$5:$J$282,,MATCH(L$4,'C. PoC Adj Factor Scoring'!$E$3:$AH$3,0)-1),MATCH(L$2&\" Score\",'C. PoC Adj Factor Scoring'!$E$4:$J$4,0),TRUE)","v":1},{"$f":"VLOOKUP(OFFSET($B:$B,,MATCH(M$4,$B$4:$F$4,0)-1),OFFSET('C. PoC Adj Factor Scoring'!$E$5:$J$282,,MATCH(M$4,'C. PoC Adj Factor Scoring'!$E$3:$AH$3,0)-1),MATCH(M$2&\" Score\",'C. PoC Adj Factor Scoring'!$E$4:$J$4,0),TRUE)","v":1},{"$f":"VLOOKUP(OFFSET($B:$B,,MATCH(N$4,$B$4:$F$4,0)-1),OFFSET('C. PoC Adj Factor Scoring'!$E$5:$J$282,,MATCH(N$4,'C. PoC Adj Factor Scoring'!$E$3:$AH$3,0)-1),MATCH(N$2&\" Score\",'C. PoC Adj Factor Scoring'!$E$4:$J$4,0),TRUE)","v":1},{"$f":"VLOOKUP(OFFSET($B:$B,,MATCH(O$4,$B$4:$F$4,0)-1),OFFSET('C. PoC Adj Factor Scoring'!$E$5:$J$282,,MATCH(O$4,'C. PoC Adj Factor Scoring'!$E$3:$AH$3,0)-1),MATCH(O$2&\" Score\",'C. PoC Adj Factor Scoring'!$E$4:$J$4,0),TRUE)","v":1},{"$f":"VLOOKUP(OFFSET($B:$B,,MATCH(P$4,$B$4:$F$4,0)-1),OFFSET('C. PoC Adj Factor Scoring'!$E$5:$J$282,,MATCH(P$4,'C. PoC Adj Factor Scoring'!$E$3:$AH$3,0)-1),MATCH(P$2&\" Score\",'C. PoC Adj Factor Scoring'!$E$4:$J$4,0),TRUE)","v":1},{"$f":"VLOOKUP(OFFSET($B:$B,,MATCH(Q$4,$B$4:$F$4,0)-1),OFFSET('C. PoC Adj Factor Scoring'!$E$5:$J$282,,MATCH(Q$4,'C. PoC Adj Factor Scoring'!$E$3:$AH$3,0)-1),MATCH(Q$2&\" Score\",'C. PoC Adj Factor Scoring'!$E$4:$J$4,0),TRUE)","v":1},{"$f":"VLOOKUP(OFFSET($B:$B,,MATCH(R$4,$B$4:$F$4,0)-1),OFFSET('C. PoC Adj Factor Scoring'!$E$5:$J$282,,MATCH(R$4,'C. PoC Adj Factor Scoring'!$E$3:$AH$3,0)-1),MATCH(R$2&\" Score\",'C. PoC Adj Factor Scoring'!$E$4:$J$4,0),TRUE)","v":1},{"$f":"VLOOKUP(OFFSET($B:$B,,MATCH(S$4,$B$4:$F$4,0)-1),OFFSET('C. PoC Adj Factor Scoring'!$E$5:$J$282,,MATCH(S$4,'C. PoC Adj Factor Scoring'!$E$3:$AH$3,0)-1),MATCH(S$2&\" Score\",'C. PoC Adj Factor Scoring'!$E$4:$J$4,0),TRUE)","v":1},{"$f":"VLOOKUP(OFFSET($B:$B,,MATCH(T$4,$B$4:$F$4,0)-1),OFFSET('C. PoC Adj Factor Scoring'!$E$5:$J$282,,MATCH(T$4,'C. PoC Adj Factor Scoring'!$E$3:$AH$3,0)-1),MATCH(T$2&\" Score\",'C. PoC Adj Factor Scoring'!$E$4:$J$4,0),TRUE)","v":1},{"$f":"VLOOKUP(OFFSET($B:$B,,MATCH(U$4,$B$4:$F$4,0)-1),OFFSET('C. PoC Adj Factor Scoring'!$E$5:$J$282,,MATCH(U$4,'C. PoC Adj Factor Scoring'!$E$3:$AH$3,0)-1),MATCH(U$2&\" Score\",'C. PoC Adj Factor Scoring'!$E$4:$J$4,0),TRUE)","v":1},{"$f":"VLOOKUP(OFFSET($B:$B,,MATCH(V$4,$B$4:$F$4,0)-1),OFFSET('C. PoC Adj Factor Scoring'!$E$5:$J$282,,MATCH(V$4,'C. PoC Adj Factor Scoring'!$E$3:$AH$3,0)-1),MATCH(V$2&\" Score\",'C. PoC Adj Factor Scoring'!$E$4:$J$4,0),TRUE)","v":1},{"$f":"VLOOKUP(OFFSET($B:$B,,MATCH(W$4,$B$4:$F$4,0)-1),OFFSET('C. PoC Adj Factor Scoring'!$E$5:$J$282,,MATCH(W$4,'C. PoC Adj Factor Scoring'!$E$3:$AH$3,0)-1),MATCH(W$2&\" Score\",'C. PoC Adj Factor Scoring'!$E$4:$J$4,0),TRUE)","v":1},{"$f":"VLOOKUP(OFFSET($B:$B,,MATCH(X$4,$B$4:$F$4,0)-1),OFFSET('C. PoC Adj Factor Scoring'!$E$5:$J$282,,MATCH(X$4,'C. PoC Adj Factor Scoring'!$E$3:$AH$3,0)-1),MATCH(X$2&\" Score\",'C. PoC Adj Factor Scoring'!$E$4:$J$4,0),TRUE)","v":1},{"$f":"VLOOKUP(OFFSET($B:$B,,MATCH(Y$4,$B$4:$F$4,0)-1),OFFSET('C. PoC Adj Factor Scoring'!$E$5:$J$282,,MATCH(Y$4,'C. PoC Adj Factor Scoring'!$E$3:$AH$3,0)-1),MATCH(Y$2&\" Score\",'C. PoC Adj Factor Scoring'!$E$4:$J$4,0),TRUE)","v":1},{"$f":"VLOOKUP(OFFSET($B:$B,,MATCH(Z$4,$B$4:$F$4,0)-1),OFFSET('C. PoC Adj Factor Scoring'!$E$5:$J$282,,MATCH(Z$4,'C. PoC Adj Factor Scoring'!$E$3:$AH$3,0)-1),MATCH(Z$2&\" Score\",'C. PoC Adj Factor Scoring'!$E$4:$J$4,0),TRUE)","v":1},{"$f":"VLOOKUP(OFFSET($B:$B,,MATCH(AA$4,$B$4:$F$4,0)-1),OFFSET('C. PoC Adj Factor Scoring'!$E$5:$J$282,,MATCH(AA$4,'C. PoC Adj Factor Scoring'!$E$3:$AH$3,0)-1),MATCH(AA$2&\" Score\",'C. PoC Adj Factor Scoring'!$E$4:$J$4,0),TRUE)","v":3},{"$f":"VLOOKUP(OFFSET($B:$B,,MATCH(AB$4,$B$4:$F$4,0)-1),OFFSET('C. PoC Adj Factor Scoring'!$E$5:$J$282,,MATCH(AB$4,'C. PoC Adj Factor Scoring'!$E$3:$AH$3,0)-1),MATCH(AB$2&\" Score\",'C. PoC Adj Factor Scoring'!$E$4:$J$4,0),TRUE)","v":1},{"$f":"VLOOKUP(OFFSET($B:$B,,MATCH(AC$4,$B$4:$F$4,0)-1),OFFSET('C. PoC Adj Factor Scoring'!$E$5:$J$282,,MATCH(AC$4,'C. PoC Adj Factor Scoring'!$E$3:$AH$3,0)-1),MATCH(AC$2&\" Score\",'C. PoC Adj Factor Scoring'!$E$4:$J$4,0),TRUE)","v":1},{"$f":"VLOOKUP(OFFSET($B:$B,,MATCH(AD$4,$B$4:$F$4,0)-1),OFFSET('C. PoC Adj Factor Scoring'!$E$5:$J$282,,MATCH(AD$4,'C. PoC Adj Factor Scoring'!$E$3:$AH$3,0)-1),MATCH(AD$2&\" Score\",'C. PoC Adj Factor Scoring'!$E$4:$J$4,0),TRUE)","v":1},{"$f":"VLOOKUP(OFFSET($B:$B,,MATCH(AE$4,$B$4:$F$4,0)-1),OFFSET('C. PoC Adj Factor Scoring'!$E$5:$J$282,,MATCH(AE$4,'C. PoC Adj Factor Scoring'!$E$3:$AH$3,0)-1),MATCH(AE$2&\" Score\",'C. PoC Adj Factor Scoring'!$E$4:$J$4,0),TRUE)","v":1}]
[{"$f":"'A. Population Info'!A102","v":1000336194},{"$f":"'A. Population Info'!L102","v":"OIL"},{"$f":"'A. Population Info'!M102","v":0},{"$f":"'A. Population Info'!N102","v":0},{"$f":"'A. Population Info'!O102","v":0},{"$f":"'A. Population Info'!P102","v":0},{"$f":"VLOOKUP(OFFSET($B:$B,,MATCH(G$4,$B$4:$F$4,0)-1),OFFSET('C. PoC Adj Factor Scoring'!$E$5:$J$282,,MATCH(G$4,'C. PoC Adj Factor Scoring'!$E$3:$AH$3,0)-1),MATCH(G$2&\" Score\",'C. PoC Adj Factor Scoring'!$E$4:$J$4,0),TRUE)","v":4},{"$f":"VLOOKUP(OFFSET($B:$B,,MATCH(H$4,$B$4:$F$4,0)-1),OFFSET('C. PoC Adj Factor Scoring'!$E$5:$J$282,,MATCH(H$4,'C. PoC Adj Factor Scoring'!$E$3:$AH$3,0)-1),MATCH(H$2&\" Score\",'C. PoC Adj Factor Scoring'!$E$4:$J$4,0),TRUE)","v":1},{"$f":"VLOOKUP(OFFSET($B:$B,,MATCH(I$4,$B$4:$F$4,0)-1),OFFSET('C. PoC Adj Factor Scoring'!$E$5:$J$282,,MATCH(I$4,'C. PoC Adj Factor Scoring'!$E$3:$AH$3,0)-1),MATCH(I$2&\" Score\",'C. PoC Adj Factor Scoring'!$E$4:$J$4,0),TRUE)","v":1},{"$f":"VLOOKUP(OFFSET($B:$B,,MATCH(J$4,$B$4:$F$4,0)-1),OFFSET('C. PoC Adj Factor Scoring'!$E$5:$J$282,,MATCH(J$4,'C. PoC Adj Factor Scoring'!$E$3:$AH$3,0)-1),MATCH(J$2&\" Score\",'C. PoC Adj Factor Scoring'!$E$4:$J$4,0),TRUE)","v":1},{"$f":"VLOOKUP(OFFSET($B:$B,,MATCH(K$4,$B$4:$F$4,0)-1),OFFSET('C. PoC Adj Factor Scoring'!$E$5:$J$282,,MATCH(K$4,'C. PoC Adj Factor Scoring'!$E$3:$AH$3,0)-1),MATCH(K$2&\" Score\",'C. PoC Adj Factor Scoring'!$E$4:$J$4,0),TRUE)","v":1},{"$f":"VLOOKUP(OFFSET($B:$B,,MATCH(L$4,$B$4:$F$4,0)-1),OFFSET('C. PoC Adj Factor Scoring'!$E$5:$J$282,,MATCH(L$4,'C. PoC Adj Factor Scoring'!$E$3:$AH$3,0)-1),MATCH(L$2&\" Score\",'C. PoC Adj Factor Scoring'!$E$4:$J$4,0),TRUE)","v":1},{"$f":"VLOOKUP(OFFSET($B:$B,,MATCH(M$4,$B$4:$F$4,0)-1),OFFSET('C. PoC Adj Factor Scoring'!$E$5:$J$282,,MATCH(M$4,'C. PoC Adj Factor Scoring'!$E$3:$AH$3,0)-1),MATCH(M$2&\" Score\",'C. PoC Adj Factor Scoring'!$E$4:$J$4,0),TRUE)","v":1},{"$f":"VLOOKUP(OFFSET($B:$B,,MATCH(N$4,$B$4:$F$4,0)-1),OFFSET('C. PoC Adj Factor Scoring'!$E$5:$J$282,,MATCH(N$4,'C. PoC Adj Factor Scoring'!$E$3:$AH$3,0)-1),MATCH(N$2&\" Score\",'C. PoC Adj Factor Scoring'!$E$4:$J$4,0),TRUE)","v":1},{"$f":"VLOOKUP(OFFSET($B:$B,,MATCH(O$4,$B$4:$F$4,0)-1),OFFSET('C. PoC Adj Factor Scoring'!$E$5:$J$282,,MATCH(O$4,'C. PoC Adj Factor Scoring'!$E$3:$AH$3,0)-1),MATCH(O$2&\" Score\",'C. PoC Adj Factor Scoring'!$E$4:$J$4,0),TRUE)","v":1},{"$f":"VLOOKUP(OFFSET($B:$B,,MATCH(P$4,$B$4:$F$4,0)-1),OFFSET('C. PoC Adj Factor Scoring'!$E$5:$J$282,,MATCH(P$4,'C. PoC Adj Factor Scoring'!$E$3:$AH$3,0)-1),MATCH(P$2&\" Score\",'C. PoC Adj Factor Scoring'!$E$4:$J$4,0),TRUE)","v":1},{"$f":"VLOOKUP(OFFSET($B:$B,,MATCH(Q$4,$B$4:$F$4,0)-1),OFFSET('C. PoC Adj Factor Scoring'!$E$5:$J$282,,MATCH(Q$4,'C. PoC Adj Factor Scoring'!$E$3:$AH$3,0)-1),MATCH(Q$2&\" Score\",'C. PoC Adj Factor Scoring'!$E$4:$J$4,0),TRUE)","v":1},{"$f":"VLOOKUP(OFFSET($B:$B,,MATCH(R$4,$B$4:$F$4,0)-1),OFFSET('C. PoC Adj Factor Scoring'!$E$5:$J$282,,MATCH(R$4,'C. PoC Adj Factor Scoring'!$E$3:$AH$3,0)-1),MATCH(R$2&\" Score\",'C. PoC Adj Factor Scoring'!$E$4:$J$4,0),TRUE)","v":1},{"$f":"VLOOKUP(OFFSET($B:$B,,MATCH(S$4,$B$4:$F$4,0)-1),OFFSET('C. PoC Adj Factor Scoring'!$E$5:$J$282,,MATCH(S$4,'C. PoC Adj Factor Scoring'!$E$3:$AH$3,0)-1),MATCH(S$2&\" Score\",'C. PoC Adj Factor Scoring'!$E$4:$J$4,0),TRUE)","v":1},{"$f":"VLOOKUP(OFFSET($B:$B,,MATCH(T$4,$B$4:$F$4,0)-1),OFFSET('C. PoC Adj Factor Scoring'!$E$5:$J$282,,MATCH(T$4,'C. PoC Adj Factor Scoring'!$E$3:$AH$3,0)-1),MATCH(T$2&\" Score\",'C. PoC Adj Factor Scoring'!$E$4:$J$4,0),TRUE)","v":1},{"$f":"VLOOKUP(OFFSET($B:$B,,MATCH(U$4,$B$4:$F$4,0)-1),OFFSET('C. PoC Adj Factor Scoring'!$E$5:$J$282,,MATCH(U$4,'C. PoC Adj Factor Scoring'!$E$3:$AH$3,0)-1),MATCH(U$2&\" Score\",'C. PoC Adj Factor Scoring'!$E$4:$J$4,0),TRUE)","v":1},{"$f":"VLOOKUP(OFFSET($B:$B,,MATCH(V$4,$B$4:$F$4,0)-1),OFFSET('C. PoC Adj Factor Scoring'!$E$5:$J$282,,MATCH(V$4,'C. PoC Adj Factor Scoring'!$E$3:$AH$3,0)-1),MATCH(V$2&\" Score\",'C. PoC Adj Factor Scoring'!$E$4:$J$4,0),TRUE)","v":1},{"$f":"VLOOKUP(OFFSET($B:$B,,MATCH(W$4,$B$4:$F$4,0)-1),OFFSET('C. PoC Adj Factor Scoring'!$E$5:$J$282,,MATCH(W$4,'C. PoC Adj Factor Scoring'!$E$3:$AH$3,0)-1),MATCH(W$2&\" Score\",'C. PoC Adj Factor Scoring'!$E$4:$J$4,0),TRUE)","v":1},{"$f":"VLOOKUP(OFFSET($B:$B,,MATCH(X$4,$B$4:$F$4,0)-1),OFFSET('C. PoC Adj Factor Scoring'!$E$5:$J$282,,MATCH(X$4,'C. PoC Adj Factor Scoring'!$E$3:$AH$3,0)-1),MATCH(X$2&\" Score\",'C. PoC Adj Factor Scoring'!$E$4:$J$4,0),TRUE)","v":1},{"$f":"VLOOKUP(OFFSET($B:$B,,MATCH(Y$4,$B$4:$F$4,0)-1),OFFSET('C. PoC Adj Factor Scoring'!$E$5:$J$282,,MATCH(Y$4,'C. PoC Adj Factor Scoring'!$E$3:$AH$3,0)-1),MATCH(Y$2&\" Score\",'C. PoC Adj Factor Scoring'!$E$4:$J$4,0),TRUE)","v":1},{"$f":"VLOOKUP(OFFSET($B:$B,,MATCH(Z$4,$B$4:$F$4,0)-1),OFFSET('C. PoC Adj Factor Scoring'!$E$5:$J$282,,MATCH(Z$4,'C. PoC Adj Factor Scoring'!$E$3:$AH$3,0)-1),MATCH(Z$2&\" Score\",'C. PoC Adj Factor Scoring'!$E$4:$J$4,0),TRUE)","v":1},{"$f":"VLOOKUP(OFFSET($B:$B,,MATCH(AA$4,$B$4:$F$4,0)-1),OFFSET('C. PoC Adj Factor Scoring'!$E$5:$J$282,,MATCH(AA$4,'C. PoC Adj Factor Scoring'!$E$3:$AH$3,0)-1),MATCH(AA$2&\" Score\",'C. PoC Adj Factor Scoring'!$E$4:$J$4,0),TRUE)","v":3},{"$f":"VLOOKUP(OFFSET($B:$B,,MATCH(AB$4,$B$4:$F$4,0)-1),OFFSET('C. PoC Adj Factor Scoring'!$E$5:$J$282,,MATCH(AB$4,'C. PoC Adj Factor Scoring'!$E$3:$AH$3,0)-1),MATCH(AB$2&\" Score\",'C. PoC Adj Factor Scoring'!$E$4:$J$4,0),TRUE)","v":1},{"$f":"VLOOKUP(OFFSET($B:$B,,MATCH(AC$4,$B$4:$F$4,0)-1),OFFSET('C. PoC Adj Factor Scoring'!$E$5:$J$282,,MATCH(AC$4,'C. PoC Adj Factor Scoring'!$E$3:$AH$3,0)-1),MATCH(AC$2&\" Score\",'C. PoC Adj Factor Scoring'!$E$4:$J$4,0),TRUE)","v":1},{"$f":"VLOOKUP(OFFSET($B:$B,,MATCH(AD$4,$B$4:$F$4,0)-1),OFFSET('C. PoC Adj Factor Scoring'!$E$5:$J$282,,MATCH(AD$4,'C. PoC Adj Factor Scoring'!$E$3:$AH$3,0)-1),MATCH(AD$2&\" Score\",'C. PoC Adj Factor Scoring'!$E$4:$J$4,0),TRUE)","v":1},{"$f":"VLOOKUP(OFFSET($B:$B,,MATCH(AE$4,$B$4:$F$4,0)-1),OFFSET('C. PoC Adj Factor Scoring'!$E$5:$J$282,,MATCH(AE$4,'C. PoC Adj Factor Scoring'!$E$3:$AH$3,0)-1),MATCH(AE$2&\" Score\",'C. PoC Adj Factor Scoring'!$E$4:$J$4,0),TRUE)","v":1}]
[{"$f":"'A. Population Info'!A103","v":1000336225},{"$f":"'A. Population Info'!L103","v":"OIL"},{"$f":"'A. Population Info'!M103","v":0},{"$f":"'A. Population Info'!N103","v":0},{"$f":"'A. Population Info'!O103","v":0},{"$f":"'A. Population Info'!P103","v":0},{"$f":"VLOOKUP(OFFSET($B:$B,,MATCH(G$4,$B$4:$F$4,0)-1),OFFSET('C. PoC Adj Factor Scoring'!$E$5:$J$282,,MATCH(G$4,'C. PoC Adj Factor Scoring'!$E$3:$AH$3,0)-1),MATCH(G$2&\" Score\",'C. PoC Adj Factor Scoring'!$E$4:$J$4,0),TRUE)","v":4},{"$f":"VLOOKUP(OFFSET($B:$B,,MATCH(H$4,$B$4:$F$4,0)-1),OFFSET('C. PoC Adj Factor Scoring'!$E$5:$J$282,,MATCH(H$4,'C. PoC Adj Factor Scoring'!$E$3:$AH$3,0)-1),MATCH(H$2&\" Score\",'C. PoC Adj Factor Scoring'!$E$4:$J$4,0),TRUE)","v":1},{"$f":"VLOOKUP(OFFSET($B:$B,,MATCH(I$4,$B$4:$F$4,0)-1),OFFSET('C. PoC Adj Factor Scoring'!$E$5:$J$282,,MATCH(I$4,'C. PoC Adj Factor Scoring'!$E$3:$AH$3,0)-1),MATCH(I$2&\" Score\",'C. PoC Adj Factor Scoring'!$E$4:$J$4,0),TRUE)","v":1},{"$f":"VLOOKUP(OFFSET($B:$B,,MATCH(J$4,$B$4:$F$4,0)-1),OFFSET('C. PoC Adj Factor Scoring'!$E$5:$J$282,,MATCH(J$4,'C. PoC Adj Factor Scoring'!$E$3:$AH$3,0)-1),MATCH(J$2&\" Score\",'C. PoC Adj Factor Scoring'!$E$4:$J$4,0),TRUE)","v":1},{"$f":"VLOOKUP(OFFSET($B:$B,,MATCH(K$4,$B$4:$F$4,0)-1),OFFSET('C. PoC Adj Factor Scoring'!$E$5:$J$282,,MATCH(K$4,'C. PoC Adj Factor Scoring'!$E$3:$AH$3,0)-1),MATCH(K$2&\" Score\",'C. PoC Adj Factor Scoring'!$E$4:$J$4,0),TRUE)","v":1},{"$f":"VLOOKUP(OFFSET($B:$B,,MATCH(L$4,$B$4:$F$4,0)-1),OFFSET('C. PoC Adj Factor Scoring'!$E$5:$J$282,,MATCH(L$4,'C. PoC Adj Factor Scoring'!$E$3:$AH$3,0)-1),MATCH(L$2&\" Score\",'C. PoC Adj Factor Scoring'!$E$4:$J$4,0),TRUE)","v":1},{"$f":"VLOOKUP(OFFSET($B:$B,,MATCH(M$4,$B$4:$F$4,0)-1),OFFSET('C. PoC Adj Factor Scoring'!$E$5:$J$282,,MATCH(M$4,'C. PoC Adj Factor Scoring'!$E$3:$AH$3,0)-1),MATCH(M$2&\" Score\",'C. PoC Adj Factor Scoring'!$E$4:$J$4,0),TRUE)","v":1},{"$f":"VLOOKUP(OFFSET($B:$B,,MATCH(N$4,$B$4:$F$4,0)-1),OFFSET('C. PoC Adj Factor Scoring'!$E$5:$J$282,,MATCH(N$4,'C. PoC Adj Factor Scoring'!$E$3:$AH$3,0)-1),MATCH(N$2&\" Score\",'C. PoC Adj Factor Scoring'!$E$4:$J$4,0),TRUE)","v":1},{"$f":"VLOOKUP(OFFSET($B:$B,,MATCH(O$4,$B$4:$F$4,0)-1),OFFSET('C. PoC Adj Factor Scoring'!$E$5:$J$282,,MATCH(O$4,'C. PoC Adj Factor Scoring'!$E$3:$AH$3,0)-1),MATCH(O$2&\" Score\",'C. PoC Adj Factor Scoring'!$E$4:$J$4,0),TRUE)","v":1},{"$f":"VLOOKUP(OFFSET($B:$B,,MATCH(P$4,$B$4:$F$4,0)-1),OFFSET('C. PoC Adj Factor Scoring'!$E$5:$J$282,,MATCH(P$4,'C. PoC Adj Factor Scoring'!$E$3:$AH$3,0)-1),MATCH(P$2&\" Score\",'C. PoC Adj Factor Scoring'!$E$4:$J$4,0),TRUE)","v":1},{"$f":"VLOOKUP(OFFSET($B:$B,,MATCH(Q$4,$B$4:$F$4,0)-1),OFFSET('C. PoC Adj Factor Scoring'!$E$5:$J$282,,MATCH(Q$4,'C. PoC Adj Factor Scoring'!$E$3:$AH$3,0)-1),MATCH(Q$2&\" Score\",'C. PoC Adj Factor Scoring'!$E$4:$J$4,0),TRUE)","v":1},{"$f":"VLOOKUP(OFFSET($B:$B,,MATCH(R$4,$B$4:$F$4,0)-1),OFFSET('C. PoC Adj Factor Scoring'!$E$5:$J$282,,MATCH(R$4,'C. PoC Adj Factor Scoring'!$E$3:$AH$3,0)-1),MATCH(R$2&\" Score\",'C. PoC Adj Factor Scoring'!$E$4:$J$4,0),TRUE)","v":1},{"$f":"VLOOKUP(OFFSET($B:$B,,MATCH(S$4,$B$4:$F$4,0)-1),OFFSET('C. PoC Adj Factor Scoring'!$E$5:$J$282,,MATCH(S$4,'C. PoC Adj Factor Scoring'!$E$3:$AH$3,0)-1),MATCH(S$2&\" Score\",'C. PoC Adj Factor Scoring'!$E$4:$J$4,0),TRUE)","v":1},{"$f":"VLOOKUP(OFFSET($B:$B,,MATCH(T$4,$B$4:$F$4,0)-1),OFFSET('C. PoC Adj Factor Scoring'!$E$5:$J$282,,MATCH(T$4,'C. PoC Adj Factor Scoring'!$E$3:$AH$3,0)-1),MATCH(T$2&\" Score\",'C. PoC Adj Factor Scoring'!$E$4:$J$4,0),TRUE)","v":1},{"$f":"VLOOKUP(OFFSET($B:$B,,MATCH(U$4,$B$4:$F$4,0)-1),OFFSET('C. PoC Adj Factor Scoring'!$E$5:$J$282,,MATCH(U$4,'C. PoC Adj Factor Scoring'!$E$3:$AH$3,0)-1),MATCH(U$2&\" Score\",'C. PoC Adj Factor Scoring'!$E$4:$J$4,0),TRUE)","v":1},{"$f":"VLOOKUP(OFFSET($B:$B,,MATCH(V$4,$B$4:$F$4,0)-1),OFFSET('C. PoC Adj Factor Scoring'!$E$5:$J$282,,MATCH(V$4,'C. PoC Adj Factor Scoring'!$E$3:$AH$3,0)-1),MATCH(V$2&\" Score\",'C. PoC Adj Factor Scoring'!$E$4:$J$4,0),TRUE)","v":1},{"$f":"VLOOKUP(OFFSET($B:$B,,MATCH(W$4,$B$4:$F$4,0)-1),OFFSET('C. PoC Adj Factor Scoring'!$E$5:$J$282,,MATCH(W$4,'C. PoC Adj Factor Scoring'!$E$3:$AH$3,0)-1),MATCH(W$2&\" Score\",'C. PoC Adj Factor Scoring'!$E$4:$J$4,0),TRUE)","v":1},{"$f":"VLOOKUP(OFFSET($B:$B,,MATCH(X$4,$B$4:$F$4,0)-1),OFFSET('C. PoC Adj Factor Scoring'!$E$5:$J$282,,MATCH(X$4,'C. PoC Adj Factor Scoring'!$E$3:$AH$3,0)-1),MATCH(X$2&\" Score\",'C. PoC Adj Factor Scoring'!$E$4:$J$4,0),TRUE)","v":1},{"$f":"VLOOKUP(OFFSET($B:$B,,MATCH(Y$4,$B$4:$F$4,0)-1),OFFSET('C. PoC Adj Factor Scoring'!$E$5:$J$282,,MATCH(Y$4,'C. PoC Adj Factor Scoring'!$E$3:$AH$3,0)-1),MATCH(Y$2&\" Score\",'C. PoC Adj Factor Scoring'!$E$4:$J$4,0),TRUE)","v":1},{"$f":"VLOOKUP(OFFSET($B:$B,,MATCH(Z$4,$B$4:$F$4,0)-1),OFFSET('C. PoC Adj Factor Scoring'!$E$5:$J$282,,MATCH(Z$4,'C. PoC Adj Factor Scoring'!$E$3:$AH$3,0)-1),MATCH(Z$2&\" Score\",'C. PoC Adj Factor Scoring'!$E$4:$J$4,0),TRUE)","v":1},{"$f":"VLOOKUP(OFFSET($B:$B,,MATCH(AA$4,$B$4:$F$4,0)-1),OFFSET('C. PoC Adj Factor Scoring'!$E$5:$J$282,,MATCH(AA$4,'C. PoC Adj Factor Scoring'!$E$3:$AH$3,0)-1),MATCH(AA$2&\" Score\",'C. PoC Adj Factor Scoring'!$E$4:$J$4,0),TRUE)","v":3},{"$f":"VLOOKUP(OFFSET($B:$B,,MATCH(AB$4,$B$4:$F$4,0)-1),OFFSET('C. PoC Adj Factor Scoring'!$E$5:$J$282,,MATCH(AB$4,'C. PoC Adj Factor Scoring'!$E$3:$AH$3,0)-1),MATCH(AB$2&\" Score\",'C. PoC Adj Factor Scoring'!$E$4:$J$4,0),TRUE)","v":1},{"$f":"VLOOKUP(OFFSET($B:$B,,MATCH(AC$4,$B$4:$F$4,0)-1),OFFSET('C. PoC Adj Factor Scoring'!$E$5:$J$282,,MATCH(AC$4,'C. PoC Adj Factor Scoring'!$E$3:$AH$3,0)-1),MATCH(AC$2&\" Score\",'C. PoC Adj Factor Scoring'!$E$4:$J$4,0),TRUE)","v":1},{"$f":"VLOOKUP(OFFSET($B:$B,,MATCH(AD$4,$B$4:$F$4,0)-1),OFFSET('C. PoC Adj Factor Scoring'!$E$5:$J$282,,MATCH(AD$4,'C. PoC Adj Factor Scoring'!$E$3:$AH$3,0)-1),MATCH(AD$2&\" Score\",'C. PoC Adj Factor Scoring'!$E$4:$J$4,0),TRUE)","v":1},{"$f":"VLOOKUP(OFFSET($B:$B,,MATCH(AE$4,$B$4:$F$4,0)-1),OFFSET('C. PoC Adj Factor Scoring'!$E$5:$J$282,,MATCH(AE$4,'C. PoC Adj Factor Scoring'!$E$3:$AH$3,0)-1),MATCH(AE$2&\" Score\",'C. PoC Adj Factor Scoring'!$E$4:$J$4,0),TRUE)","v":1}]
[{"$f":"'A. Population Info'!A104","v":1000336313},{"$f":"'A. Population Info'!L104","v":"OIL"},{"$f":"'A. Population Info'!M104","v":0},{"$f":"'A. Population Info'!N104","v":0},{"$f":"'A. Population Info'!O104","v":0},{"$f":"'A. Population Info'!P104","v":0},{"$f":"VLOOKUP(OFFSET($B:$B,,MATCH(G$4,$B$4:$F$4,0)-1),OFFSET('C. PoC Adj Factor Scoring'!$E$5:$J$282,,MATCH(G$4,'C. PoC Adj Factor Scoring'!$E$3:$AH$3,0)-1),MATCH(G$2&\" Score\",'C. PoC Adj Factor Scoring'!$E$4:$J$4,0),TRUE)","v":4},{"$f":"VLOOKUP(OFFSET($B:$B,,MATCH(H$4,$B$4:$F$4,0)-1),OFFSET('C. PoC Adj Factor Scoring'!$E$5:$J$282,,MATCH(H$4,'C. PoC Adj Factor Scoring'!$E$3:$AH$3,0)-1),MATCH(H$2&\" Score\",'C. PoC Adj Factor Scoring'!$E$4:$J$4,0),TRUE)","v":1},{"$f":"VLOOKUP(OFFSET($B:$B,,MATCH(I$4,$B$4:$F$4,0)-1),OFFSET('C. PoC Adj Factor Scoring'!$E$5:$J$282,,MATCH(I$4,'C. PoC Adj Factor Scoring'!$E$3:$AH$3,0)-1),MATCH(I$2&\" Score\",'C. PoC Adj Factor Scoring'!$E$4:$J$4,0),TRUE)","v":1},{"$f":"VLOOKUP(OFFSET($B:$B,,MATCH(J$4,$B$4:$F$4,0)-1),OFFSET('C. PoC Adj Factor Scoring'!$E$5:$J$282,,MATCH(J$4,'C. PoC Adj Factor Scoring'!$E$3:$AH$3,0)-1),MATCH(J$2&\" Score\",'C. PoC Adj Factor Scoring'!$E$4:$J$4,0),TRUE)","v":1},{"$f":"VLOOKUP(OFFSET($B:$B,,MATCH(K$4,$B$4:$F$4,0)-1),OFFSET('C. PoC Adj Factor Scoring'!$E$5:$J$282,,MATCH(K$4,'C. PoC Adj Factor Scoring'!$E$3:$AH$3,0)-1),MATCH(K$2&\" Score\",'C. PoC Adj Factor Scoring'!$E$4:$J$4,0),TRUE)","v":1},{"$f":"VLOOKUP(OFFSET($B:$B,,MATCH(L$4,$B$4:$F$4,0)-1),OFFSET('C. PoC Adj Factor Scoring'!$E$5:$J$282,,MATCH(L$4,'C. PoC Adj Factor Scoring'!$E$3:$AH$3,0)-1),MATCH(L$2&\" Score\",'C. PoC Adj Factor Scoring'!$E$4:$J$4,0),TRUE)","v":1},{"$f":"VLOOKUP(OFFSET($B:$B,,MATCH(M$4,$B$4:$F$4,0)-1),OFFSET('C. PoC Adj Factor Scoring'!$E$5:$J$282,,MATCH(M$4,'C. PoC Adj Factor Scoring'!$E$3:$AH$3,0)-1),MATCH(M$2&\" Score\",'C. PoC Adj Factor Scoring'!$E$4:$J$4,0),TRUE)","v":1},{"$f":"VLOOKUP(OFFSET($B:$B,,MATCH(N$4,$B$4:$F$4,0)-1),OFFSET('C. PoC Adj Factor Scoring'!$E$5:$J$282,,MATCH(N$4,'C. PoC Adj Factor Scoring'!$E$3:$AH$3,0)-1),MATCH(N$2&\" Score\",'C. PoC Adj Factor Scoring'!$E$4:$J$4,0),TRUE)","v":1},{"$f":"VLOOKUP(OFFSET($B:$B,,MATCH(O$4,$B$4:$F$4,0)-1),OFFSET('C. PoC Adj Factor Scoring'!$E$5:$J$282,,MATCH(O$4,'C. PoC Adj Factor Scoring'!$E$3:$AH$3,0)-1),MATCH(O$2&\" Score\",'C. PoC Adj Factor Scoring'!$E$4:$J$4,0),TRUE)","v":1},{"$f":"VLOOKUP(OFFSET($B:$B,,MATCH(P$4,$B$4:$F$4,0)-1),OFFSET('C. PoC Adj Factor Scoring'!$E$5:$J$282,,MATCH(P$4,'C. PoC Adj Factor Scoring'!$E$3:$AH$3,0)-1),MATCH(P$2&\" Score\",'C. PoC Adj Factor Scoring'!$E$4:$J$4,0),TRUE)","v":1},{"$f":"VLOOKUP(OFFSET($B:$B,,MATCH(Q$4,$B$4:$F$4,0)-1),OFFSET('C. PoC Adj Factor Scoring'!$E$5:$J$282,,MATCH(Q$4,'C. PoC Adj Factor Scoring'!$E$3:$AH$3,0)-1),MATCH(Q$2&\" Score\",'C. PoC Adj Factor Scoring'!$E$4:$J$4,0),TRUE)","v":1},{"$f":"VLOOKUP(OFFSET($B:$B,,MATCH(R$4,$B$4:$F$4,0)-1),OFFSET('C. PoC Adj Factor Scoring'!$E$5:$J$282,,MATCH(R$4,'C. PoC Adj Factor Scoring'!$E$3:$AH$3,0)-1),MATCH(R$2&\" Score\",'C. PoC Adj Factor Scoring'!$E$4:$J$4,0),TRUE)","v":1},{"$f":"VLOOKUP(OFFSET($B:$B,,MATCH(S$4,$B$4:$F$4,0)-1),OFFSET('C. PoC Adj Factor Scoring'!$E$5:$J$282,,MATCH(S$4,'C. PoC Adj Factor Scoring'!$E$3:$AH$3,0)-1),MATCH(S$2&\" Score\",'C. PoC Adj Factor Scoring'!$E$4:$J$4,0),TRUE)","v":1},{"$f":"VLOOKUP(OFFSET($B:$B,,MATCH(T$4,$B$4:$F$4,0)-1),OFFSET('C. PoC Adj Factor Scoring'!$E$5:$J$282,,MATCH(T$4,'C. PoC Adj Factor Scoring'!$E$3:$AH$3,0)-1),MATCH(T$2&\" Score\",'C. PoC Adj Factor Scoring'!$E$4:$J$4,0),TRUE)","v":1},{"$f":"VLOOKUP(OFFSET($B:$B,,MATCH(U$4,$B$4:$F$4,0)-1),OFFSET('C. PoC Adj Factor Scoring'!$E$5:$J$282,,MATCH(U$4,'C. PoC Adj Factor Scoring'!$E$3:$AH$3,0)-1),MATCH(U$2&\" Score\",'C. PoC Adj Factor Scoring'!$E$4:$J$4,0),TRUE)","v":1},{"$f":"VLOOKUP(OFFSET($B:$B,,MATCH(V$4,$B$4:$F$4,0)-1),OFFSET('C. PoC Adj Factor Scoring'!$E$5:$J$282,,MATCH(V$4,'C. PoC Adj Factor Scoring'!$E$3:$AH$3,0)-1),MATCH(V$2&\" Score\",'C. PoC Adj Factor Scoring'!$E$4:$J$4,0),TRUE)","v":1},{"$f":"VLOOKUP(OFFSET($B:$B,,MATCH(W$4,$B$4:$F$4,0)-1),OFFSET('C. PoC Adj Factor Scoring'!$E$5:$J$282,,MATCH(W$4,'C. PoC Adj Factor Scoring'!$E$3:$AH$3,0)-1),MATCH(W$2&\" Score\",'C. PoC Adj Factor Scoring'!$E$4:$J$4,0),TRUE)","v":1},{"$f":"VLOOKUP(OFFSET($B:$B,,MATCH(X$4,$B$4:$F$4,0)-1),OFFSET('C. PoC Adj Factor Scoring'!$E$5:$J$282,,MATCH(X$4,'C. PoC Adj Factor Scoring'!$E$3:$AH$3,0)-1),MATCH(X$2&\" Score\",'C. PoC Adj Factor Scoring'!$E$4:$J$4,0),TRUE)","v":1},{"$f":"VLOOKUP(OFFSET($B:$B,,MATCH(Y$4,$B$4:$F$4,0)-1),OFFSET('C. PoC Adj Factor Scoring'!$E$5:$J$282,,MATCH(Y$4,'C. PoC Adj Factor Scoring'!$E$3:$AH$3,0)-1),MATCH(Y$2&\" Score\",'C. PoC Adj Factor Scoring'!$E$4:$J$4,0),TRUE)","v":1},{"$f":"VLOOKUP(OFFSET($B:$B,,MATCH(Z$4,$B$4:$F$4,0)-1),OFFSET('C. PoC Adj Factor Scoring'!$E$5:$J$282,,MATCH(Z$4,'C. PoC Adj Factor Scoring'!$E$3:$AH$3,0)-1),MATCH(Z$2&\" Score\",'C. PoC Adj Factor Scoring'!$E$4:$J$4,0),TRUE)","v":1},{"$f":"VLOOKUP(OFFSET($B:$B,,MATCH(AA$4,$B$4:$F$4,0)-1),OFFSET('C. PoC Adj Factor Scoring'!$E$5:$J$282,,MATCH(AA$4,'C. PoC Adj Factor Scoring'!$E$3:$AH$3,0)-1),MATCH(AA$2&\" Score\",'C. PoC Adj Factor Scoring'!$E$4:$J$4,0),TRUE)","v":3},{"$f":"VLOOKUP(OFFSET($B:$B,,MATCH(AB$4,$B$4:$F$4,0)-1),OFFSET('C. PoC Adj Factor Scoring'!$E$5:$J$282,,MATCH(AB$4,'C. PoC Adj Factor Scoring'!$E$3:$AH$3,0)-1),MATCH(AB$2&\" Score\",'C. PoC Adj Factor Scoring'!$E$4:$J$4,0),TRUE)","v":1},{"$f":"VLOOKUP(OFFSET($B:$B,,MATCH(AC$4,$B$4:$F$4,0)-1),OFFSET('C. PoC Adj Factor Scoring'!$E$5:$J$282,,MATCH(AC$4,'C. PoC Adj Factor Scoring'!$E$3:$AH$3,0)-1),MATCH(AC$2&\" Score\",'C. PoC Adj Factor Scoring'!$E$4:$J$4,0),TRUE)","v":1},{"$f":"VLOOKUP(OFFSET($B:$B,,MATCH(AD$4,$B$4:$F$4,0)-1),OFFSET('C. PoC Adj Factor Scoring'!$E$5:$J$282,,MATCH(AD$4,'C. PoC Adj Factor Scoring'!$E$3:$AH$3,0)-1),MATCH(AD$2&\" Score\",'C. PoC Adj Factor Scoring'!$E$4:$J$4,0),TRUE)","v":1},{"$f":"VLOOKUP(OFFSET($B:$B,,MATCH(AE$4,$B$4:$F$4,0)-1),OFFSET('C. PoC Adj Factor Scoring'!$E$5:$J$282,,MATCH(AE$4,'C. PoC Adj Factor Scoring'!$E$3:$AH$3,0)-1),MATCH(AE$2&\" Score\",'C. PoC Adj Factor Scoring'!$E$4:$J$4,0),TRUE)","v":1}]
[{"$f":"'A. Population Info'!A105","v":1000336348},{"$f":"'A. Population Info'!L105","v":"OIL"},{"$f":"'A. Population Info'!M105","v":0},{"$f":"'A. Population Info'!N105","v":0},{"$f":"'A. Population Info'!O105","v":0},{"$f":"'A. Population Info'!P105","v":0},{"$f":"VLOOKUP(OFFSET($B:$B,,MATCH(G$4,$B$4:$F$4,0)-1),OFFSET('C. PoC Adj Factor Scoring'!$E$5:$J$282,,MATCH(G$4,'C. PoC Adj Factor Scoring'!$E$3:$AH$3,0)-1),MATCH(G$2&\" Score\",'C. PoC Adj Factor Scoring'!$E$4:$J$4,0),TRUE)","v":4},{"$f":"VLOOKUP(OFFSET($B:$B,,MATCH(H$4,$B$4:$F$4,0)-1),OFFSET('C. PoC Adj Factor Scoring'!$E$5:$J$282,,MATCH(H$4,'C. PoC Adj Factor Scoring'!$E$3:$AH$3,0)-1),MATCH(H$2&\" Score\",'C. PoC Adj Factor Scoring'!$E$4:$J$4,0),TRUE)","v":1},{"$f":"VLOOKUP(OFFSET($B:$B,,MATCH(I$4,$B$4:$F$4,0)-1),OFFSET('C. PoC Adj Factor Scoring'!$E$5:$J$282,,MATCH(I$4,'C. PoC Adj Factor Scoring'!$E$3:$AH$3,0)-1),MATCH(I$2&\" Score\",'C. PoC Adj Factor Scoring'!$E$4:$J$4,0),TRUE)","v":1},{"$f":"VLOOKUP(OFFSET($B:$B,,MATCH(J$4,$B$4:$F$4,0)-1),OFFSET('C. PoC Adj Factor Scoring'!$E$5:$J$282,,MATCH(J$4,'C. PoC Adj Factor Scoring'!$E$3:$AH$3,0)-1),MATCH(J$2&\" Score\",'C. PoC Adj Factor Scoring'!$E$4:$J$4,0),TRUE)","v":1},{"$f":"VLOOKUP(OFFSET($B:$B,,MATCH(K$4,$B$4:$F$4,0)-1),OFFSET('C. PoC Adj Factor Scoring'!$E$5:$J$282,,MATCH(K$4,'C. PoC Adj Factor Scoring'!$E$3:$AH$3,0)-1),MATCH(K$2&\" Score\",'C. PoC Adj Factor Scoring'!$E$4:$J$4,0),TRUE)","v":1},{"$f":"VLOOKUP(OFFSET($B:$B,,MATCH(L$4,$B$4:$F$4,0)-1),OFFSET('C. PoC Adj Factor Scoring'!$E$5:$J$282,,MATCH(L$4,'C. PoC Adj Factor Scoring'!$E$3:$AH$3,0)-1),MATCH(L$2&\" Score\",'C. PoC Adj Factor Scoring'!$E$4:$J$4,0),TRUE)","v":1},{"$f":"VLOOKUP(OFFSET($B:$B,,MATCH(M$4,$B$4:$F$4,0)-1),OFFSET('C. PoC Adj Factor Scoring'!$E$5:$J$282,,MATCH(M$4,'C. PoC Adj Factor Scoring'!$E$3:$AH$3,0)-1),MATCH(M$2&\" Score\",'C. PoC Adj Factor Scoring'!$E$4:$J$4,0),TRUE)","v":1},{"$f":"VLOOKUP(OFFSET($B:$B,,MATCH(N$4,$B$4:$F$4,0)-1),OFFSET('C. PoC Adj Factor Scoring'!$E$5:$J$282,,MATCH(N$4,'C. PoC Adj Factor Scoring'!$E$3:$AH$3,0)-1),MATCH(N$2&\" Score\",'C. PoC Adj Factor Scoring'!$E$4:$J$4,0),TRUE)","v":1},{"$f":"VLOOKUP(OFFSET($B:$B,,MATCH(O$4,$B$4:$F$4,0)-1),OFFSET('C. PoC Adj Factor Scoring'!$E$5:$J$282,,MATCH(O$4,'C. PoC Adj Factor Scoring'!$E$3:$AH$3,0)-1),MATCH(O$2&\" Score\",'C. PoC Adj Factor Scoring'!$E$4:$J$4,0),TRUE)","v":1},{"$f":"VLOOKUP(OFFSET($B:$B,,MATCH(P$4,$B$4:$F$4,0)-1),OFFSET('C. PoC Adj Factor Scoring'!$E$5:$J$282,,MATCH(P$4,'C. PoC Adj Factor Scoring'!$E$3:$AH$3,0)-1),MATCH(P$2&\" Score\",'C. PoC Adj Factor Scoring'!$E$4:$J$4,0),TRUE)","v":1},{"$f":"VLOOKUP(OFFSET($B:$B,,MATCH(Q$4,$B$4:$F$4,0)-1),OFFSET('C. PoC Adj Factor Scoring'!$E$5:$J$282,,MATCH(Q$4,'C. PoC Adj Factor Scoring'!$E$3:$AH$3,0)-1),MATCH(Q$2&\" Score\",'C. PoC Adj Factor Scoring'!$E$4:$J$4,0),TRUE)","v":1},{"$f":"VLOOKUP(OFFSET($B:$B,,MATCH(R$4,$B$4:$F$4,0)-1),OFFSET('C. PoC Adj Factor Scoring'!$E$5:$J$282,,MATCH(R$4,'C. PoC Adj Factor Scoring'!$E$3:$AH$3,0)-1),MATCH(R$2&\" Score\",'C. PoC Adj Factor Scoring'!$E$4:$J$4,0),TRUE)","v":1},{"$f":"VLOOKUP(OFFSET($B:$B,,MATCH(S$4,$B$4:$F$4,0)-1),OFFSET('C. PoC Adj Factor Scoring'!$E$5:$J$282,,MATCH(S$4,'C. PoC Adj Factor Scoring'!$E$3:$AH$3,0)-1),MATCH(S$2&\" Score\",'C. PoC Adj Factor Scoring'!$E$4:$J$4,0),TRUE)","v":1},{"$f":"VLOOKUP(OFFSET($B:$B,,MATCH(T$4,$B$4:$F$4,0)-1),OFFSET('C. PoC Adj Factor Scoring'!$E$5:$J$282,,MATCH(T$4,'C. PoC Adj Factor Scoring'!$E$3:$AH$3,0)-1),MATCH(T$2&\" Score\",'C. PoC Adj Factor Scoring'!$E$4:$J$4,0),TRUE)","v":1},{"$f":"VLOOKUP(OFFSET($B:$B,,MATCH(U$4,$B$4:$F$4,0)-1),OFFSET('C. PoC Adj Factor Scoring'!$E$5:$J$282,,MATCH(U$4,'C. PoC Adj Factor Scoring'!$E$3:$AH$3,0)-1),MATCH(U$2&\" Score\",'C. PoC Adj Factor Scoring'!$E$4:$J$4,0),TRUE)","v":1},{"$f":"VLOOKUP(OFFSET($B:$B,,MATCH(V$4,$B$4:$F$4,0)-1),OFFSET('C. PoC Adj Factor Scoring'!$E$5:$J$282,,MATCH(V$4,'C. PoC Adj Factor Scoring'!$E$3:$AH$3,0)-1),MATCH(V$2&\" Score\",'C. PoC Adj Factor Scoring'!$E$4:$J$4,0),TRUE)","v":1},{"$f":"VLOOKUP(OFFSET($B:$B,,MATCH(W$4,$B$4:$F$4,0)-1),OFFSET('C. PoC Adj Factor Scoring'!$E$5:$J$282,,MATCH(W$4,'C. PoC Adj Factor Scoring'!$E$3:$AH$3,0)-1),MATCH(W$2&\" Score\",'C. PoC Adj Factor Scoring'!$E$4:$J$4,0),TRUE)","v":1},{"$f":"VLOOKUP(OFFSET($B:$B,,MATCH(X$4,$B$4:$F$4,0)-1),OFFSET('C. PoC Adj Factor Scoring'!$E$5:$J$282,,MATCH(X$4,'C. PoC Adj Factor Scoring'!$E$3:$AH$3,0)-1),MATCH(X$2&\" Score\",'C. PoC Adj Factor Scoring'!$E$4:$J$4,0),TRUE)","v":1},{"$f":"VLOOKUP(OFFSET($B:$B,,MATCH(Y$4,$B$4:$F$4,0)-1),OFFSET('C. PoC Adj Factor Scoring'!$E$5:$J$282,,MATCH(Y$4,'C. PoC Adj Factor Scoring'!$E$3:$AH$3,0)-1),MATCH(Y$2&\" Score\",'C. PoC Adj Factor Scoring'!$E$4:$J$4,0),TRUE)","v":1},{"$f":"VLOOKUP(OFFSET($B:$B,,MATCH(Z$4,$B$4:$F$4,0)-1),OFFSET('C. PoC Adj Factor Scoring'!$E$5:$J$282,,MATCH(Z$4,'C. PoC Adj Factor Scoring'!$E$3:$AH$3,0)-1),MATCH(Z$2&\" Score\",'C. PoC Adj Factor Scoring'!$E$4:$J$4,0),TRUE)","v":1},{"$f":"VLOOKUP(OFFSET($B:$B,,MATCH(AA$4,$B$4:$F$4,0)-1),OFFSET('C. PoC Adj Factor Scoring'!$E$5:$J$282,,MATCH(AA$4,'C. PoC Adj Factor Scoring'!$E$3:$AH$3,0)-1),MATCH(AA$2&\" Score\",'C. PoC Adj Factor Scoring'!$E$4:$J$4,0),TRUE)","v":3},{"$f":"VLOOKUP(OFFSET($B:$B,,MATCH(AB$4,$B$4:$F$4,0)-1),OFFSET('C. PoC Adj Factor Scoring'!$E$5:$J$282,,MATCH(AB$4,'C. PoC Adj Factor Scoring'!$E$3:$AH$3,0)-1),MATCH(AB$2&\" Score\",'C. PoC Adj Factor Scoring'!$E$4:$J$4,0),TRUE)","v":1},{"$f":"VLOOKUP(OFFSET($B:$B,,MATCH(AC$4,$B$4:$F$4,0)-1),OFFSET('C. PoC Adj Factor Scoring'!$E$5:$J$282,,MATCH(AC$4,'C. PoC Adj Factor Scoring'!$E$3:$AH$3,0)-1),MATCH(AC$2&\" Score\",'C. PoC Adj Factor Scoring'!$E$4:$J$4,0),TRUE)","v":1},{"$f":"VLOOKUP(OFFSET($B:$B,,MATCH(AD$4,$B$4:$F$4,0)-1),OFFSET('C. PoC Adj Factor Scoring'!$E$5:$J$282,,MATCH(AD$4,'C. PoC Adj Factor Scoring'!$E$3:$AH$3,0)-1),MATCH(AD$2&\" Score\",'C. PoC Adj Factor Scoring'!$E$4:$J$4,0),TRUE)","v":1},{"$f":"VLOOKUP(OFFSET($B:$B,,MATCH(AE$4,$B$4:$F$4,0)-1),OFFSET('C. PoC Adj Factor Scoring'!$E$5:$J$282,,MATCH(AE$4,'C. PoC Adj Factor Scoring'!$E$3:$AH$3,0)-1),MATCH(AE$2&\" Score\",'C. PoC Adj Factor Scoring'!$E$4:$J$4,0),TRUE)","v":1}]
[{"$f":"'A. Population Info'!A106","v":1000336383},{"$f":"'A. Population Info'!L106","v":"OIL"},{"$f":"'A. Population Info'!M106","v":0},{"$f":"'A. Population Info'!N106","v":0},{"$f":"'A. Population Info'!O106","v":0},{"$f":"'A. Population Info'!P106","v":0},{"$f":"VLOOKUP(OFFSET($B:$B,,MATCH(G$4,$B$4:$F$4,0)-1),OFFSET('C. PoC Adj Factor Scoring'!$E$5:$J$282,,MATCH(G$4,'C. PoC Adj Factor Scoring'!$E$3:$AH$3,0)-1),MATCH(G$2&\" Score\",'C. PoC Adj Factor Scoring'!$E$4:$J$4,0),TRUE)","v":4},{"$f":"VLOOKUP(OFFSET($B:$B,,MATCH(H$4,$B$4:$F$4,0)-1),OFFSET('C. PoC Adj Factor Scoring'!$E$5:$J$282,,MATCH(H$4,'C. PoC Adj Factor Scoring'!$E$3:$AH$3,0)-1),MATCH(H$2&\" Score\",'C. PoC Adj Factor Scoring'!$E$4:$J$4,0),TRUE)","v":1},{"$f":"VLOOKUP(OFFSET($B:$B,,MATCH(I$4,$B$4:$F$4,0)-1),OFFSET('C. PoC Adj Factor Scoring'!$E$5:$J$282,,MATCH(I$4,'C. PoC Adj Factor Scoring'!$E$3:$AH$3,0)-1),MATCH(I$2&\" Score\",'C. PoC Adj Factor Scoring'!$E$4:$J$4,0),TRUE)","v":1},{"$f":"VLOOKUP(OFFSET($B:$B,,MATCH(J$4,$B$4:$F$4,0)-1),OFFSET('C. PoC Adj Factor Scoring'!$E$5:$J$282,,MATCH(J$4,'C. PoC Adj Factor Scoring'!$E$3:$AH$3,0)-1),MATCH(J$2&\" Score\",'C. PoC Adj Factor Scoring'!$E$4:$J$4,0),TRUE)","v":1},{"$f":"VLOOKUP(OFFSET($B:$B,,MATCH(K$4,$B$4:$F$4,0)-1),OFFSET('C. PoC Adj Factor Scoring'!$E$5:$J$282,,MATCH(K$4,'C. PoC Adj Factor Scoring'!$E$3:$AH$3,0)-1),MATCH(K$2&\" Score\",'C. PoC Adj Factor Scoring'!$E$4:$J$4,0),TRUE)","v":1},{"$f":"VLOOKUP(OFFSET($B:$B,,MATCH(L$4,$B$4:$F$4,0)-1),OFFSET('C. PoC Adj Factor Scoring'!$E$5:$J$282,,MATCH(L$4,'C. PoC Adj Factor Scoring'!$E$3:$AH$3,0)-1),MATCH(L$2&\" Score\",'C. PoC Adj Factor Scoring'!$E$4:$J$4,0),TRUE)","v":1},{"$f":"VLOOKUP(OFFSET($B:$B,,MATCH(M$4,$B$4:$F$4,0)-1),OFFSET('C. PoC Adj Factor Scoring'!$E$5:$J$282,,MATCH(M$4,'C. PoC Adj Factor Scoring'!$E$3:$AH$3,0)-1),MATCH(M$2&\" Score\",'C. PoC Adj Factor Scoring'!$E$4:$J$4,0),TRUE)","v":1},{"$f":"VLOOKUP(OFFSET($B:$B,,MATCH(N$4,$B$4:$F$4,0)-1),OFFSET('C. PoC Adj Factor Scoring'!$E$5:$J$282,,MATCH(N$4,'C. PoC Adj Factor Scoring'!$E$3:$AH$3,0)-1),MATCH(N$2&\" Score\",'C. PoC Adj Factor Scoring'!$E$4:$J$4,0),TRUE)","v":1},{"$f":"VLOOKUP(OFFSET($B:$B,,MATCH(O$4,$B$4:$F$4,0)-1),OFFSET('C. PoC Adj Factor Scoring'!$E$5:$J$282,,MATCH(O$4,'C. PoC Adj Factor Scoring'!$E$3:$AH$3,0)-1),MATCH(O$2&\" Score\",'C. PoC Adj Factor Scoring'!$E$4:$J$4,0),TRUE)","v":1},{"$f":"VLOOKUP(OFFSET($B:$B,,MATCH(P$4,$B$4:$F$4,0)-1),OFFSET('C. PoC Adj Factor Scoring'!$E$5:$J$282,,MATCH(P$4,'C. PoC Adj Factor Scoring'!$E$3:$AH$3,0)-1),MATCH(P$2&\" Score\",'C. PoC Adj Factor Scoring'!$E$4:$J$4,0),TRUE)","v":1},{"$f":"VLOOKUP(OFFSET($B:$B,,MATCH(Q$4,$B$4:$F$4,0)-1),OFFSET('C. PoC Adj Factor Scoring'!$E$5:$J$282,,MATCH(Q$4,'C. PoC Adj Factor Scoring'!$E$3:$AH$3,0)-1),MATCH(Q$2&\" Score\",'C. PoC Adj Factor Scoring'!$E$4:$J$4,0),TRUE)","v":1},{"$f":"VLOOKUP(OFFSET($B:$B,,MATCH(R$4,$B$4:$F$4,0)-1),OFFSET('C. PoC Adj Factor Scoring'!$E$5:$J$282,,MATCH(R$4,'C. PoC Adj Factor Scoring'!$E$3:$AH$3,0)-1),MATCH(R$2&\" Score\",'C. PoC Adj Factor Scoring'!$E$4:$J$4,0),TRUE)","v":1},{"$f":"VLOOKUP(OFFSET($B:$B,,MATCH(S$4,$B$4:$F$4,0)-1),OFFSET('C. PoC Adj Factor Scoring'!$E$5:$J$282,,MATCH(S$4,'C. PoC Adj Factor Scoring'!$E$3:$AH$3,0)-1),MATCH(S$2&\" Score\",'C. PoC Adj Factor Scoring'!$E$4:$J$4,0),TRUE)","v":1},{"$f":"VLOOKUP(OFFSET($B:$B,,MATCH(T$4,$B$4:$F$4,0)-1),OFFSET('C. PoC Adj Factor Scoring'!$E$5:$J$282,,MATCH(T$4,'C. PoC Adj Factor Scoring'!$E$3:$AH$3,0)-1),MATCH(T$2&\" Score\",'C. PoC Adj Factor Scoring'!$E$4:$J$4,0),TRUE)","v":1},{"$f":"VLOOKUP(OFFSET($B:$B,,MATCH(U$4,$B$4:$F$4,0)-1),OFFSET('C. PoC Adj Factor Scoring'!$E$5:$J$282,,MATCH(U$4,'C. PoC Adj Factor Scoring'!$E$3:$AH$3,0)-1),MATCH(U$2&\" Score\",'C. PoC Adj Factor Scoring'!$E$4:$J$4,0),TRUE)","v":1},{"$f":"VLOOKUP(OFFSET($B:$B,,MATCH(V$4,$B$4:$F$4,0)-1),OFFSET('C. PoC Adj Factor Scoring'!$E$5:$J$282,,MATCH(V$4,'C. PoC Adj Factor Scoring'!$E$3:$AH$3,0)-1),MATCH(V$2&\" Score\",'C. PoC Adj Factor Scoring'!$E$4:$J$4,0),TRUE)","v":1},{"$f":"VLOOKUP(OFFSET($B:$B,,MATCH(W$4,$B$4:$F$4,0)-1),OFFSET('C. PoC Adj Factor Scoring'!$E$5:$J$282,,MATCH(W$4,'C. PoC Adj Factor Scoring'!$E$3:$AH$3,0)-1),MATCH(W$2&\" Score\",'C. PoC Adj Factor Scoring'!$E$4:$J$4,0),TRUE)","v":1},{"$f":"VLOOKUP(OFFSET($B:$B,,MATCH(X$4,$B$4:$F$4,0)-1),OFFSET('C. PoC Adj Factor Scoring'!$E$5:$J$282,,MATCH(X$4,'C. PoC Adj Factor Scoring'!$E$3:$AH$3,0)-1),MATCH(X$2&\" Score\",'C. PoC Adj Factor Scoring'!$E$4:$J$4,0),TRUE)","v":1},{"$f":"VLOOKUP(OFFSET($B:$B,,MATCH(Y$4,$B$4:$F$4,0)-1),OFFSET('C. PoC Adj Factor Scoring'!$E$5:$J$282,,MATCH(Y$4,'C. PoC Adj Factor Scoring'!$E$3:$AH$3,0)-1),MATCH(Y$2&\" Score\",'C. PoC Adj Factor Scoring'!$E$4:$J$4,0),TRUE)","v":1},{"$f":"VLOOKUP(OFFSET($B:$B,,MATCH(Z$4,$B$4:$F$4,0)-1),OFFSET('C. PoC Adj Factor Scoring'!$E$5:$J$282,,MATCH(Z$4,'C. PoC Adj Factor Scoring'!$E$3:$AH$3,0)-1),MATCH(Z$2&\" Score\",'C. PoC Adj Factor Scoring'!$E$4:$J$4,0),TRUE)","v":1},{"$f":"VLOOKUP(OFFSET($B:$B,,MATCH(AA$4,$B$4:$F$4,0)-1),OFFSET('C. PoC Adj Factor Scoring'!$E$5:$J$282,,MATCH(AA$4,'C. PoC Adj Factor Scoring'!$E$3:$AH$3,0)-1),MATCH(AA$2&\" Score\",'C. PoC Adj Factor Scoring'!$E$4:$J$4,0),TRUE)","v":3},{"$f":"VLOOKUP(OFFSET($B:$B,,MATCH(AB$4,$B$4:$F$4,0)-1),OFFSET('C. PoC Adj Factor Scoring'!$E$5:$J$282,,MATCH(AB$4,'C. PoC Adj Factor Scoring'!$E$3:$AH$3,0)-1),MATCH(AB$2&\" Score\",'C. PoC Adj Factor Scoring'!$E$4:$J$4,0),TRUE)","v":1},{"$f":"VLOOKUP(OFFSET($B:$B,,MATCH(AC$4,$B$4:$F$4,0)-1),OFFSET('C. PoC Adj Factor Scoring'!$E$5:$J$282,,MATCH(AC$4,'C. PoC Adj Factor Scoring'!$E$3:$AH$3,0)-1),MATCH(AC$2&\" Score\",'C. PoC Adj Factor Scoring'!$E$4:$J$4,0),TRUE)","v":1},{"$f":"VLOOKUP(OFFSET($B:$B,,MATCH(AD$4,$B$4:$F$4,0)-1),OFFSET('C. PoC Adj Factor Scoring'!$E$5:$J$282,,MATCH(AD$4,'C. PoC Adj Factor Scoring'!$E$3:$AH$3,0)-1),MATCH(AD$2&\" Score\",'C. PoC Adj Factor Scoring'!$E$4:$J$4,0),TRUE)","v":1},{"$f":"VLOOKUP(OFFSET($B:$B,,MATCH(AE$4,$B$4:$F$4,0)-1),OFFSET('C. PoC Adj Factor Scoring'!$E$5:$J$282,,MATCH(AE$4,'C. PoC Adj Factor Scoring'!$E$3:$AH$3,0)-1),MATCH(AE$2&\" Score\",'C. PoC Adj Factor Scoring'!$E$4:$J$4,0),TRUE)","v":1}]
[{"$f":"'A. Population Info'!A107","v":1000336450},{"$f":"'A. Population Info'!L107","v":"OIL"},{"$f":"'A. Population Info'!M107","v":0},{"$f":"'A. Population Info'!N107","v":0},{"$f":"'A. Population Info'!O107","v":0},{"$f":"'A. Population Info'!P107","v":0},{"$f":"VLOOKUP(OFFSET($B:$B,,MATCH(G$4,$B$4:$F$4,0)-1),OFFSET('C. PoC Adj Factor Scoring'!$E$5:$J$282,,MATCH(G$4,'C. PoC Adj Factor Scoring'!$E$3:$AH$3,0)-1),MATCH(G$2&\" Score\",'C. PoC Adj Factor Scoring'!$E$4:$J$4,0),TRUE)","v":4},{"$f":"VLOOKUP(OFFSET($B:$B,,MATCH(H$4,$B$4:$F$4,0)-1),OFFSET('C. PoC Adj Factor Scoring'!$E$5:$J$282,,MATCH(H$4,'C. PoC Adj Factor Scoring'!$E$3:$AH$3,0)-1),MATCH(H$2&\" Score\",'C. PoC Adj Factor Scoring'!$E$4:$J$4,0),TRUE)","v":1},{"$f":"VLOOKUP(OFFSET($B:$B,,MATCH(I$4,$B$4:$F$4,0)-1),OFFSET('C. PoC Adj Factor Scoring'!$E$5:$J$282,,MATCH(I$4,'C. PoC Adj Factor Scoring'!$E$3:$AH$3,0)-1),MATCH(I$2&\" Score\",'C. PoC Adj Factor Scoring'!$E$4:$J$4,0),TRUE)","v":1},{"$f":"VLOOKUP(OFFSET($B:$B,,MATCH(J$4,$B$4:$F$4,0)-1),OFFSET('C. PoC Adj Factor Scoring'!$E$5:$J$282,,MATCH(J$4,'C. PoC Adj Factor Scoring'!$E$3:$AH$3,0)-1),MATCH(J$2&\" Score\",'C. PoC Adj Factor Scoring'!$E$4:$J$4,0),TRUE)","v":1},{"$f":"VLOOKUP(OFFSET($B:$B,,MATCH(K$4,$B$4:$F$4,0)-1),OFFSET('C. PoC Adj Factor Scoring'!$E$5:$J$282,,MATCH(K$4,'C. PoC Adj Factor Scoring'!$E$3:$AH$3,0)-1),MATCH(K$2&\" Score\",'C. PoC Adj Factor Scoring'!$E$4:$J$4,0),TRUE)","v":1},{"$f":"VLOOKUP(OFFSET($B:$B,,MATCH(L$4,$B$4:$F$4,0)-1),OFFSET('C. PoC Adj Factor Scoring'!$E$5:$J$282,,MATCH(L$4,'C. PoC Adj Factor Scoring'!$E$3:$AH$3,0)-1),MATCH(L$2&\" Score\",'C. PoC Adj Factor Scoring'!$E$4:$J$4,0),TRUE)","v":1},{"$f":"VLOOKUP(OFFSET($B:$B,,MATCH(M$4,$B$4:$F$4,0)-1),OFFSET('C. PoC Adj Factor Scoring'!$E$5:$J$282,,MATCH(M$4,'C. PoC Adj Factor Scoring'!$E$3:$AH$3,0)-1),MATCH(M$2&\" Score\",'C. PoC Adj Factor Scoring'!$E$4:$J$4,0),TRUE)","v":1},{"$f":"VLOOKUP(OFFSET($B:$B,,MATCH(N$4,$B$4:$F$4,0)-1),OFFSET('C. PoC Adj Factor Scoring'!$E$5:$J$282,,MATCH(N$4,'C. PoC Adj Factor Scoring'!$E$3:$AH$3,0)-1),MATCH(N$2&\" Score\",'C. PoC Adj Factor Scoring'!$E$4:$J$4,0),TRUE)","v":1},{"$f":"VLOOKUP(OFFSET($B:$B,,MATCH(O$4,$B$4:$F$4,0)-1),OFFSET('C. PoC Adj Factor Scoring'!$E$5:$J$282,,MATCH(O$4,'C. PoC Adj Factor Scoring'!$E$3:$AH$3,0)-1),MATCH(O$2&\" Score\",'C. PoC Adj Factor Scoring'!$E$4:$J$4,0),TRUE)","v":1},{"$f":"VLOOKUP(OFFSET($B:$B,,MATCH(P$4,$B$4:$F$4,0)-1),OFFSET('C. PoC Adj Factor Scoring'!$E$5:$J$282,,MATCH(P$4,'C. PoC Adj Factor Scoring'!$E$3:$AH$3,0)-1),MATCH(P$2&\" Score\",'C. PoC Adj Factor Scoring'!$E$4:$J$4,0),TRUE)","v":1},{"$f":"VLOOKUP(OFFSET($B:$B,,MATCH(Q$4,$B$4:$F$4,0)-1),OFFSET('C. PoC Adj Factor Scoring'!$E$5:$J$282,,MATCH(Q$4,'C. PoC Adj Factor Scoring'!$E$3:$AH$3,0)-1),MATCH(Q$2&\" Score\",'C. PoC Adj Factor Scoring'!$E$4:$J$4,0),TRUE)","v":1},{"$f":"VLOOKUP(OFFSET($B:$B,,MATCH(R$4,$B$4:$F$4,0)-1),OFFSET('C. PoC Adj Factor Scoring'!$E$5:$J$282,,MATCH(R$4,'C. PoC Adj Factor Scoring'!$E$3:$AH$3,0)-1),MATCH(R$2&\" Score\",'C. PoC Adj Factor Scoring'!$E$4:$J$4,0),TRUE)","v":1},{"$f":"VLOOKUP(OFFSET($B:$B,,MATCH(S$4,$B$4:$F$4,0)-1),OFFSET('C. PoC Adj Factor Scoring'!$E$5:$J$282,,MATCH(S$4,'C. PoC Adj Factor Scoring'!$E$3:$AH$3,0)-1),MATCH(S$2&\" Score\",'C. PoC Adj Factor Scoring'!$E$4:$J$4,0),TRUE)","v":1},{"$f":"VLOOKUP(OFFSET($B:$B,,MATCH(T$4,$B$4:$F$4,0)-1),OFFSET('C. PoC Adj Factor Scoring'!$E$5:$J$282,,MATCH(T$4,'C. PoC Adj Factor Scoring'!$E$3:$AH$3,0)-1),MATCH(T$2&\" Score\",'C. PoC Adj Factor Scoring'!$E$4:$J$4,0),TRUE)","v":1},{"$f":"VLOOKUP(OFFSET($B:$B,,MATCH(U$4,$B$4:$F$4,0)-1),OFFSET('C. PoC Adj Factor Scoring'!$E$5:$J$282,,MATCH(U$4,'C. PoC Adj Factor Scoring'!$E$3:$AH$3,0)-1),MATCH(U$2&\" Score\",'C. PoC Adj Factor Scoring'!$E$4:$J$4,0),TRUE)","v":1},{"$f":"VLOOKUP(OFFSET($B:$B,,MATCH(V$4,$B$4:$F$4,0)-1),OFFSET('C. PoC Adj Factor Scoring'!$E$5:$J$282,,MATCH(V$4,'C. PoC Adj Factor Scoring'!$E$3:$AH$3,0)-1),MATCH(V$2&\" Score\",'C. PoC Adj Factor Scoring'!$E$4:$J$4,0),TRUE)","v":1},{"$f":"VLOOKUP(OFFSET($B:$B,,MATCH(W$4,$B$4:$F$4,0)-1),OFFSET('C. PoC Adj Factor Scoring'!$E$5:$J$282,,MATCH(W$4,'C. PoC Adj Factor Scoring'!$E$3:$AH$3,0)-1),MATCH(W$2&\" Score\",'C. PoC Adj Factor Scoring'!$E$4:$J$4,0),TRUE)","v":1},{"$f":"VLOOKUP(OFFSET($B:$B,,MATCH(X$4,$B$4:$F$4,0)-1),OFFSET('C. PoC Adj Factor Scoring'!$E$5:$J$282,,MATCH(X$4,'C. PoC Adj Factor Scoring'!$E$3:$AH$3,0)-1),MATCH(X$2&\" Score\",'C. PoC Adj Factor Scoring'!$E$4:$J$4,0),TRUE)","v":1},{"$f":"VLOOKUP(OFFSET($B:$B,,MATCH(Y$4,$B$4:$F$4,0)-1),OFFSET('C. PoC Adj Factor Scoring'!$E$5:$J$282,,MATCH(Y$4,'C. PoC Adj Factor Scoring'!$E$3:$AH$3,0)-1),MATCH(Y$2&\" Score\",'C. PoC Adj Factor Scoring'!$E$4:$J$4,0),TRUE)","v":1},{"$f":"VLOOKUP(OFFSET($B:$B,,MATCH(Z$4,$B$4:$F$4,0)-1),OFFSET('C. PoC Adj Factor Scoring'!$E$5:$J$282,,MATCH(Z$4,'C. PoC Adj Factor Scoring'!$E$3:$AH$3,0)-1),MATCH(Z$2&\" Score\",'C. PoC Adj Factor Scoring'!$E$4:$J$4,0),TRUE)","v":1},{"$f":"VLOOKUP(OFFSET($B:$B,,MATCH(AA$4,$B$4:$F$4,0)-1),OFFSET('C. PoC Adj Factor Scoring'!$E$5:$J$282,,MATCH(AA$4,'C. PoC Adj Factor Scoring'!$E$3:$AH$3,0)-1),MATCH(AA$2&\" Score\",'C. PoC Adj Factor Scoring'!$E$4:$J$4,0),TRUE)","v":3},{"$f":"VLOOKUP(OFFSET($B:$B,,MATCH(AB$4,$B$4:$F$4,0)-1),OFFSET('C. PoC Adj Factor Scoring'!$E$5:$J$282,,MATCH(AB$4,'C. PoC Adj Factor Scoring'!$E$3:$AH$3,0)-1),MATCH(AB$2&\" Score\",'C. PoC Adj Factor Scoring'!$E$4:$J$4,0),TRUE)","v":1},{"$f":"VLOOKUP(OFFSET($B:$B,,MATCH(AC$4,$B$4:$F$4,0)-1),OFFSET('C. PoC Adj Factor Scoring'!$E$5:$J$282,,MATCH(AC$4,'C. PoC Adj Factor Scoring'!$E$3:$AH$3,0)-1),MATCH(AC$2&\" Score\",'C. PoC Adj Factor Scoring'!$E$4:$J$4,0),TRUE)","v":1},{"$f":"VLOOKUP(OFFSET($B:$B,,MATCH(AD$4,$B$4:$F$4,0)-1),OFFSET('C. PoC Adj Factor Scoring'!$E$5:$J$282,,MATCH(AD$4,'C. PoC Adj Factor Scoring'!$E$3:$AH$3,0)-1),MATCH(AD$2&\" Score\",'C. PoC Adj Factor Scoring'!$E$4:$J$4,0),TRUE)","v":1},{"$f":"VLOOKUP(OFFSET($B:$B,,MATCH(AE$4,$B$4:$F$4,0)-1),OFFSET('C. PoC Adj Factor Scoring'!$E$5:$J$282,,MATCH(AE$4,'C. PoC Adj Factor Scoring'!$E$3:$AH$3,0)-1),MATCH(AE$2&\" Score\",'C. PoC Adj Factor Scoring'!$E$4:$J$4,0),TRUE)","v":1}]
[{"$f":"'A. Population Info'!A108","v":1000336477},{"$f":"'A. Population Info'!L108","v":"OIL"},{"$f":"'A. Population Info'!M108","v":0},{"$f":"'A. Population Info'!N108","v":0},{"$f":"'A. Population Info'!O108","v":0},{"$f":"'A. Population Info'!P108","v":0},{"$f":"VLOOKUP(OFFSET($B:$B,,MATCH(G$4,$B$4:$F$4,0)-1),OFFSET('C. PoC Adj Factor Scoring'!$E$5:$J$282,,MATCH(G$4,'C. PoC Adj Factor Scoring'!$E$3:$AH$3,0)-1),MATCH(G$2&\" Score\",'C. PoC Adj Factor Scoring'!$E$4:$J$4,0),TRUE)","v":4},{"$f":"VLOOKUP(OFFSET($B:$B,,MATCH(H$4,$B$4:$F$4,0)-1),OFFSET('C. PoC Adj Factor Scoring'!$E$5:$J$282,,MATCH(H$4,'C. PoC Adj Factor Scoring'!$E$3:$AH$3,0)-1),MATCH(H$2&\" Score\",'C. PoC Adj Factor Scoring'!$E$4:$J$4,0),TRUE)","v":1},{"$f":"VLOOKUP(OFFSET($B:$B,,MATCH(I$4,$B$4:$F$4,0)-1),OFFSET('C. PoC Adj Factor Scoring'!$E$5:$J$282,,MATCH(I$4,'C. PoC Adj Factor Scoring'!$E$3:$AH$3,0)-1),MATCH(I$2&\" Score\",'C. PoC Adj Factor Scoring'!$E$4:$J$4,0),TRUE)","v":1},{"$f":"VLOOKUP(OFFSET($B:$B,,MATCH(J$4,$B$4:$F$4,0)-1),OFFSET('C. PoC Adj Factor Scoring'!$E$5:$J$282,,MATCH(J$4,'C. PoC Adj Factor Scoring'!$E$3:$AH$3,0)-1),MATCH(J$2&\" Score\",'C. PoC Adj Factor Scoring'!$E$4:$J$4,0),TRUE)","v":1},{"$f":"VLOOKUP(OFFSET($B:$B,,MATCH(K$4,$B$4:$F$4,0)-1),OFFSET('C. PoC Adj Factor Scoring'!$E$5:$J$282,,MATCH(K$4,'C. PoC Adj Factor Scoring'!$E$3:$AH$3,0)-1),MATCH(K$2&\" Score\",'C. PoC Adj Factor Scoring'!$E$4:$J$4,0),TRUE)","v":1},{"$f":"VLOOKUP(OFFSET($B:$B,,MATCH(L$4,$B$4:$F$4,0)-1),OFFSET('C. PoC Adj Factor Scoring'!$E$5:$J$282,,MATCH(L$4,'C. PoC Adj Factor Scoring'!$E$3:$AH$3,0)-1),MATCH(L$2&\" Score\",'C. PoC Adj Factor Scoring'!$E$4:$J$4,0),TRUE)","v":1},{"$f":"VLOOKUP(OFFSET($B:$B,,MATCH(M$4,$B$4:$F$4,0)-1),OFFSET('C. PoC Adj Factor Scoring'!$E$5:$J$282,,MATCH(M$4,'C. PoC Adj Factor Scoring'!$E$3:$AH$3,0)-1),MATCH(M$2&\" Score\",'C. PoC Adj Factor Scoring'!$E$4:$J$4,0),TRUE)","v":1},{"$f":"VLOOKUP(OFFSET($B:$B,,MATCH(N$4,$B$4:$F$4,0)-1),OFFSET('C. PoC Adj Factor Scoring'!$E$5:$J$282,,MATCH(N$4,'C. PoC Adj Factor Scoring'!$E$3:$AH$3,0)-1),MATCH(N$2&\" Score\",'C. PoC Adj Factor Scoring'!$E$4:$J$4,0),TRUE)","v":1},{"$f":"VLOOKUP(OFFSET($B:$B,,MATCH(O$4,$B$4:$F$4,0)-1),OFFSET('C. PoC Adj Factor Scoring'!$E$5:$J$282,,MATCH(O$4,'C. PoC Adj Factor Scoring'!$E$3:$AH$3,0)-1),MATCH(O$2&\" Score\",'C. PoC Adj Factor Scoring'!$E$4:$J$4,0),TRUE)","v":1},{"$f":"VLOOKUP(OFFSET($B:$B,,MATCH(P$4,$B$4:$F$4,0)-1),OFFSET('C. PoC Adj Factor Scoring'!$E$5:$J$282,,MATCH(P$4,'C. PoC Adj Factor Scoring'!$E$3:$AH$3,0)-1),MATCH(P$2&\" Score\",'C. PoC Adj Factor Scoring'!$E$4:$J$4,0),TRUE)","v":1},{"$f":"VLOOKUP(OFFSET($B:$B,,MATCH(Q$4,$B$4:$F$4,0)-1),OFFSET('C. PoC Adj Factor Scoring'!$E$5:$J$282,,MATCH(Q$4,'C. PoC Adj Factor Scoring'!$E$3:$AH$3,0)-1),MATCH(Q$2&\" Score\",'C. PoC Adj Factor Scoring'!$E$4:$J$4,0),TRUE)","v":1},{"$f":"VLOOKUP(OFFSET($B:$B,,MATCH(R$4,$B$4:$F$4,0)-1),OFFSET('C. PoC Adj Factor Scoring'!$E$5:$J$282,,MATCH(R$4,'C. PoC Adj Factor Scoring'!$E$3:$AH$3,0)-1),MATCH(R$2&\" Score\",'C. PoC Adj Factor Scoring'!$E$4:$J$4,0),TRUE)","v":1},{"$f":"VLOOKUP(OFFSET($B:$B,,MATCH(S$4,$B$4:$F$4,0)-1),OFFSET('C. PoC Adj Factor Scoring'!$E$5:$J$282,,MATCH(S$4,'C. PoC Adj Factor Scoring'!$E$3:$AH$3,0)-1),MATCH(S$2&\" Score\",'C. PoC Adj Factor Scoring'!$E$4:$J$4,0),TRUE)","v":1},{"$f":"VLOOKUP(OFFSET($B:$B,,MATCH(T$4,$B$4:$F$4,0)-1),OFFSET('C. PoC Adj Factor Scoring'!$E$5:$J$282,,MATCH(T$4,'C. PoC Adj Factor Scoring'!$E$3:$AH$3,0)-1),MATCH(T$2&\" Score\",'C. PoC Adj Factor Scoring'!$E$4:$J$4,0),TRUE)","v":1},{"$f":"VLOOKUP(OFFSET($B:$B,,MATCH(U$4,$B$4:$F$4,0)-1),OFFSET('C. PoC Adj Factor Scoring'!$E$5:$J$282,,MATCH(U$4,'C. PoC Adj Factor Scoring'!$E$3:$AH$3,0)-1),MATCH(U$2&\" Score\",'C. PoC Adj Factor Scoring'!$E$4:$J$4,0),TRUE)","v":1},{"$f":"VLOOKUP(OFFSET($B:$B,,MATCH(V$4,$B$4:$F$4,0)-1),OFFSET('C. PoC Adj Factor Scoring'!$E$5:$J$282,,MATCH(V$4,'C. PoC Adj Factor Scoring'!$E$3:$AH$3,0)-1),MATCH(V$2&\" Score\",'C. PoC Adj Factor Scoring'!$E$4:$J$4,0),TRUE)","v":1},{"$f":"VLOOKUP(OFFSET($B:$B,,MATCH(W$4,$B$4:$F$4,0)-1),OFFSET('C. PoC Adj Factor Scoring'!$E$5:$J$282,,MATCH(W$4,'C. PoC Adj Factor Scoring'!$E$3:$AH$3,0)-1),MATCH(W$2&\" Score\",'C. PoC Adj Factor Scoring'!$E$4:$J$4,0),TRUE)","v":1},{"$f":"VLOOKUP(OFFSET($B:$B,,MATCH(X$4,$B$4:$F$4,0)-1),OFFSET('C. PoC Adj Factor Scoring'!$E$5:$J$282,,MATCH(X$4,'C. PoC Adj Factor Scoring'!$E$3:$AH$3,0)-1),MATCH(X$2&\" Score\",'C. PoC Adj Factor Scoring'!$E$4:$J$4,0),TRUE)","v":1},{"$f":"VLOOKUP(OFFSET($B:$B,,MATCH(Y$4,$B$4:$F$4,0)-1),OFFSET('C. PoC Adj Factor Scoring'!$E$5:$J$282,,MATCH(Y$4,'C. PoC Adj Factor Scoring'!$E$3:$AH$3,0)-1),MATCH(Y$2&\" Score\",'C. PoC Adj Factor Scoring'!$E$4:$J$4,0),TRUE)","v":1},{"$f":"VLOOKUP(OFFSET($B:$B,,MATCH(Z$4,$B$4:$F$4,0)-1),OFFSET('C. PoC Adj Factor Scoring'!$E$5:$J$282,,MATCH(Z$4,'C. PoC Adj Factor Scoring'!$E$3:$AH$3,0)-1),MATCH(Z$2&\" Score\",'C. PoC Adj Factor Scoring'!$E$4:$J$4,0),TRUE)","v":1},{"$f":"VLOOKUP(OFFSET($B:$B,,MATCH(AA$4,$B$4:$F$4,0)-1),OFFSET('C. PoC Adj Factor Scoring'!$E$5:$J$282,,MATCH(AA$4,'C. PoC Adj Factor Scoring'!$E$3:$AH$3,0)-1),MATCH(AA$2&\" Score\",'C. PoC Adj Factor Scoring'!$E$4:$J$4,0),TRUE)","v":3},{"$f":"VLOOKUP(OFFSET($B:$B,,MATCH(AB$4,$B$4:$F$4,0)-1),OFFSET('C. PoC Adj Factor Scoring'!$E$5:$J$282,,MATCH(AB$4,'C. PoC Adj Factor Scoring'!$E$3:$AH$3,0)-1),MATCH(AB$2&\" Score\",'C. PoC Adj Factor Scoring'!$E$4:$J$4,0),TRUE)","v":1},{"$f":"VLOOKUP(OFFSET($B:$B,,MATCH(AC$4,$B$4:$F$4,0)-1),OFFSET('C. PoC Adj Factor Scoring'!$E$5:$J$282,,MATCH(AC$4,'C. PoC Adj Factor Scoring'!$E$3:$AH$3,0)-1),MATCH(AC$2&\" Score\",'C. PoC Adj Factor Scoring'!$E$4:$J$4,0),TRUE)","v":1},{"$f":"VLOOKUP(OFFSET($B:$B,,MATCH(AD$4,$B$4:$F$4,0)-1),OFFSET('C. PoC Adj Factor Scoring'!$E$5:$J$282,,MATCH(AD$4,'C. PoC Adj Factor Scoring'!$E$3:$AH$3,0)-1),MATCH(AD$2&\" Score\",'C. PoC Adj Factor Scoring'!$E$4:$J$4,0),TRUE)","v":1},{"$f":"VLOOKUP(OFFSET($B:$B,,MATCH(AE$4,$B$4:$F$4,0)-1),OFFSET('C. PoC Adj Factor Scoring'!$E$5:$J$282,,MATCH(AE$4,'C. PoC Adj Factor Scoring'!$E$3:$AH$3,0)-1),MATCH(AE$2&\" Score\",'C. PoC Adj Factor Scoring'!$E$4:$J$4,0),TRUE)","v":1}]
[{"$f":"'A. Population Info'!A109","v":1000336508},{"$f":"'A. Population Info'!L109","v":"OIL"},{"$f":"'A. Population Info'!M109","v":0},{"$f":"'A. Population Info'!N109","v":0},{"$f":"'A. Population Info'!O109","v":0},{"$f":"'A. Population Info'!P109","v":0},{"$f":"VLOOKUP(OFFSET($B:$B,,MATCH(G$4,$B$4:$F$4,0)-1),OFFSET('C. PoC Adj Factor Scoring'!$E$5:$J$282,,MATCH(G$4,'C. PoC Adj Factor Scoring'!$E$3:$AH$3,0)-1),MATCH(G$2&\" Score\",'C. PoC Adj Factor Scoring'!$E$4:$J$4,0),TRUE)","v":4},{"$f":"VLOOKUP(OFFSET($B:$B,,MATCH(H$4,$B$4:$F$4,0)-1),OFFSET('C. PoC Adj Factor Scoring'!$E$5:$J$282,,MATCH(H$4,'C. PoC Adj Factor Scoring'!$E$3:$AH$3,0)-1),MATCH(H$2&\" Score\",'C. PoC Adj Factor Scoring'!$E$4:$J$4,0),TRUE)","v":1},{"$f":"VLOOKUP(OFFSET($B:$B,,MATCH(I$4,$B$4:$F$4,0)-1),OFFSET('C. PoC Adj Factor Scoring'!$E$5:$J$282,,MATCH(I$4,'C. PoC Adj Factor Scoring'!$E$3:$AH$3,0)-1),MATCH(I$2&\" Score\",'C. PoC Adj Factor Scoring'!$E$4:$J$4,0),TRUE)","v":1},{"$f":"VLOOKUP(OFFSET($B:$B,,MATCH(J$4,$B$4:$F$4,0)-1),OFFSET('C. PoC Adj Factor Scoring'!$E$5:$J$282,,MATCH(J$4,'C. PoC Adj Factor Scoring'!$E$3:$AH$3,0)-1),MATCH(J$2&\" Score\",'C. PoC Adj Factor Scoring'!$E$4:$J$4,0),TRUE)","v":1},{"$f":"VLOOKUP(OFFSET($B:$B,,MATCH(K$4,$B$4:$F$4,0)-1),OFFSET('C. PoC Adj Factor Scoring'!$E$5:$J$282,,MATCH(K$4,'C. PoC Adj Factor Scoring'!$E$3:$AH$3,0)-1),MATCH(K$2&\" Score\",'C. PoC Adj Factor Scoring'!$E$4:$J$4,0),TRUE)","v":1},{"$f":"VLOOKUP(OFFSET($B:$B,,MATCH(L$4,$B$4:$F$4,0)-1),OFFSET('C. PoC Adj Factor Scoring'!$E$5:$J$282,,MATCH(L$4,'C. PoC Adj Factor Scoring'!$E$3:$AH$3,0)-1),MATCH(L$2&\" Score\",'C. PoC Adj Factor Scoring'!$E$4:$J$4,0),TRUE)","v":1},{"$f":"VLOOKUP(OFFSET($B:$B,,MATCH(M$4,$B$4:$F$4,0)-1),OFFSET('C. PoC Adj Factor Scoring'!$E$5:$J$282,,MATCH(M$4,'C. PoC Adj Factor Scoring'!$E$3:$AH$3,0)-1),MATCH(M$2&\" Score\",'C. PoC Adj Factor Scoring'!$E$4:$J$4,0),TRUE)","v":1},{"$f":"VLOOKUP(OFFSET($B:$B,,MATCH(N$4,$B$4:$F$4,0)-1),OFFSET('C. PoC Adj Factor Scoring'!$E$5:$J$282,,MATCH(N$4,'C. PoC Adj Factor Scoring'!$E$3:$AH$3,0)-1),MATCH(N$2&\" Score\",'C. PoC Adj Factor Scoring'!$E$4:$J$4,0),TRUE)","v":1},{"$f":"VLOOKUP(OFFSET($B:$B,,MATCH(O$4,$B$4:$F$4,0)-1),OFFSET('C. PoC Adj Factor Scoring'!$E$5:$J$282,,MATCH(O$4,'C. PoC Adj Factor Scoring'!$E$3:$AH$3,0)-1),MATCH(O$2&\" Score\",'C. PoC Adj Factor Scoring'!$E$4:$J$4,0),TRUE)","v":1},{"$f":"VLOOKUP(OFFSET($B:$B,,MATCH(P$4,$B$4:$F$4,0)-1),OFFSET('C. PoC Adj Factor Scoring'!$E$5:$J$282,,MATCH(P$4,'C. PoC Adj Factor Scoring'!$E$3:$AH$3,0)-1),MATCH(P$2&\" Score\",'C. PoC Adj Factor Scoring'!$E$4:$J$4,0),TRUE)","v":1},{"$f":"VLOOKUP(OFFSET($B:$B,,MATCH(Q$4,$B$4:$F$4,0)-1),OFFSET('C. PoC Adj Factor Scoring'!$E$5:$J$282,,MATCH(Q$4,'C. PoC Adj Factor Scoring'!$E$3:$AH$3,0)-1),MATCH(Q$2&\" Score\",'C. PoC Adj Factor Scoring'!$E$4:$J$4,0),TRUE)","v":1},{"$f":"VLOOKUP(OFFSET($B:$B,,MATCH(R$4,$B$4:$F$4,0)-1),OFFSET('C. PoC Adj Factor Scoring'!$E$5:$J$282,,MATCH(R$4,'C. PoC Adj Factor Scoring'!$E$3:$AH$3,0)-1),MATCH(R$2&\" Score\",'C. PoC Adj Factor Scoring'!$E$4:$J$4,0),TRUE)","v":1},{"$f":"VLOOKUP(OFFSET($B:$B,,MATCH(S$4,$B$4:$F$4,0)-1),OFFSET('C. PoC Adj Factor Scoring'!$E$5:$J$282,,MATCH(S$4,'C. PoC Adj Factor Scoring'!$E$3:$AH$3,0)-1),MATCH(S$2&\" Score\",'C. PoC Adj Factor Scoring'!$E$4:$J$4,0),TRUE)","v":1},{"$f":"VLOOKUP(OFFSET($B:$B,,MATCH(T$4,$B$4:$F$4,0)-1),OFFSET('C. PoC Adj Factor Scoring'!$E$5:$J$282,,MATCH(T$4,'C. PoC Adj Factor Scoring'!$E$3:$AH$3,0)-1),MATCH(T$2&\" Score\",'C. PoC Adj Factor Scoring'!$E$4:$J$4,0),TRUE)","v":1},{"$f":"VLOOKUP(OFFSET($B:$B,,MATCH(U$4,$B$4:$F$4,0)-1),OFFSET('C. PoC Adj Factor Scoring'!$E$5:$J$282,,MATCH(U$4,'C. PoC Adj Factor Scoring'!$E$3:$AH$3,0)-1),MATCH(U$2&\" Score\",'C. PoC Adj Factor Scoring'!$E$4:$J$4,0),TRUE)","v":1},{"$f":"VLOOKUP(OFFSET($B:$B,,MATCH(V$4,$B$4:$F$4,0)-1),OFFSET('C. PoC Adj Factor Scoring'!$E$5:$J$282,,MATCH(V$4,'C. PoC Adj Factor Scoring'!$E$3:$AH$3,0)-1),MATCH(V$2&\" Score\",'C. PoC Adj Factor Scoring'!$E$4:$J$4,0),TRUE)","v":1},{"$f":"VLOOKUP(OFFSET($B:$B,,MATCH(W$4,$B$4:$F$4,0)-1),OFFSET('C. PoC Adj Factor Scoring'!$E$5:$J$282,,MATCH(W$4,'C. PoC Adj Factor Scoring'!$E$3:$AH$3,0)-1),MATCH(W$2&\" Score\",'C. PoC Adj Factor Scoring'!$E$4:$J$4,0),TRUE)","v":1},{"$f":"VLOOKUP(OFFSET($B:$B,,MATCH(X$4,$B$4:$F$4,0)-1),OFFSET('C. PoC Adj Factor Scoring'!$E$5:$J$282,,MATCH(X$4,'C. PoC Adj Factor Scoring'!$E$3:$AH$3,0)-1),MATCH(X$2&\" Score\",'C. PoC Adj Factor Scoring'!$E$4:$J$4,0),TRUE)","v":1},{"$f":"VLOOKUP(OFFSET($B:$B,,MATCH(Y$4,$B$4:$F$4,0)-1),OFFSET('C. PoC Adj Factor Scoring'!$E$5:$J$282,,MATCH(Y$4,'C. PoC Adj Factor Scoring'!$E$3:$AH$3,0)-1),MATCH(Y$2&\" Score\",'C. PoC Adj Factor Scoring'!$E$4:$J$4,0),TRUE)","v":1},{"$f":"VLOOKUP(OFFSET($B:$B,,MATCH(Z$4,$B$4:$F$4,0)-1),OFFSET('C. PoC Adj Factor Scoring'!$E$5:$J$282,,MATCH(Z$4,'C. PoC Adj Factor Scoring'!$E$3:$AH$3,0)-1),MATCH(Z$2&\" Score\",'C. PoC Adj Factor Scoring'!$E$4:$J$4,0),TRUE)","v":1},{"$f":"VLOOKUP(OFFSET($B:$B,,MATCH(AA$4,$B$4:$F$4,0)-1),OFFSET('C. PoC Adj Factor Scoring'!$E$5:$J$282,,MATCH(AA$4,'C. PoC Adj Factor Scoring'!$E$3:$AH$3,0)-1),MATCH(AA$2&\" Score\",'C. PoC Adj Factor Scoring'!$E$4:$J$4,0),TRUE)","v":3},{"$f":"VLOOKUP(OFFSET($B:$B,,MATCH(AB$4,$B$4:$F$4,0)-1),OFFSET('C. PoC Adj Factor Scoring'!$E$5:$J$282,,MATCH(AB$4,'C. PoC Adj Factor Scoring'!$E$3:$AH$3,0)-1),MATCH(AB$2&\" Score\",'C. PoC Adj Factor Scoring'!$E$4:$J$4,0),TRUE)","v":1},{"$f":"VLOOKUP(OFFSET($B:$B,,MATCH(AC$4,$B$4:$F$4,0)-1),OFFSET('C. PoC Adj Factor Scoring'!$E$5:$J$282,,MATCH(AC$4,'C. PoC Adj Factor Scoring'!$E$3:$AH$3,0)-1),MATCH(AC$2&\" Score\",'C. PoC Adj Factor Scoring'!$E$4:$J$4,0),TRUE)","v":1},{"$f":"VLOOKUP(OFFSET($B:$B,,MATCH(AD$4,$B$4:$F$4,0)-1),OFFSET('C. PoC Adj Factor Scoring'!$E$5:$J$282,,MATCH(AD$4,'C. PoC Adj Factor Scoring'!$E$3:$AH$3,0)-1),MATCH(AD$2&\" Score\",'C. PoC Adj Factor Scoring'!$E$4:$J$4,0),TRUE)","v":1},{"$f":"VLOOKUP(OFFSET($B:$B,,MATCH(AE$4,$B$4:$F$4,0)-1),OFFSET('C. PoC Adj Factor Scoring'!$E$5:$J$282,,MATCH(AE$4,'C. PoC Adj Factor Scoring'!$E$3:$AH$3,0)-1),MATCH(AE$2&\" Score\",'C. PoC Adj Factor Scoring'!$E$4:$J$4,0),TRUE)","v":1}]
[{"$f":"'A. Population Info'!A110","v":1000336536},{"$f":"'A. Population Info'!L110","v":"OIL"},{"$f":"'A. Population Info'!M110","v":0},{"$f":"'A. Population Info'!N110","v":0},{"$f":"'A. Population Info'!O110","v":0},{"$f":"'A. Population Info'!P110","v":0},{"$f":"VLOOKUP(OFFSET($B:$B,,MATCH(G$4,$B$4:$F$4,0)-1),OFFSET('C. PoC Adj Factor Scoring'!$E$5:$J$282,,MATCH(G$4,'C. PoC Adj Factor Scoring'!$E$3:$AH$3,0)-1),MATCH(G$2&\" Score\",'C. PoC Adj Factor Scoring'!$E$4:$J$4,0),TRUE)","v":4},{"$f":"VLOOKUP(OFFSET($B:$B,,MATCH(H$4,$B$4:$F$4,0)-1),OFFSET('C. PoC Adj Factor Scoring'!$E$5:$J$282,,MATCH(H$4,'C. PoC Adj Factor Scoring'!$E$3:$AH$3,0)-1),MATCH(H$2&\" Score\",'C. PoC Adj Factor Scoring'!$E$4:$J$4,0),TRUE)","v":1},{"$f":"VLOOKUP(OFFSET($B:$B,,MATCH(I$4,$B$4:$F$4,0)-1),OFFSET('C. PoC Adj Factor Scoring'!$E$5:$J$282,,MATCH(I$4,'C. PoC Adj Factor Scoring'!$E$3:$AH$3,0)-1),MATCH(I$2&\" Score\",'C. PoC Adj Factor Scoring'!$E$4:$J$4,0),TRUE)","v":1},{"$f":"VLOOKUP(OFFSET($B:$B,,MATCH(J$4,$B$4:$F$4,0)-1),OFFSET('C. PoC Adj Factor Scoring'!$E$5:$J$282,,MATCH(J$4,'C. PoC Adj Factor Scoring'!$E$3:$AH$3,0)-1),MATCH(J$2&\" Score\",'C. PoC Adj Factor Scoring'!$E$4:$J$4,0),TRUE)","v":1},{"$f":"VLOOKUP(OFFSET($B:$B,,MATCH(K$4,$B$4:$F$4,0)-1),OFFSET('C. PoC Adj Factor Scoring'!$E$5:$J$282,,MATCH(K$4,'C. PoC Adj Factor Scoring'!$E$3:$AH$3,0)-1),MATCH(K$2&\" Score\",'C. PoC Adj Factor Scoring'!$E$4:$J$4,0),TRUE)","v":1},{"$f":"VLOOKUP(OFFSET($B:$B,,MATCH(L$4,$B$4:$F$4,0)-1),OFFSET('C. PoC Adj Factor Scoring'!$E$5:$J$282,,MATCH(L$4,'C. PoC Adj Factor Scoring'!$E$3:$AH$3,0)-1),MATCH(L$2&\" Score\",'C. PoC Adj Factor Scoring'!$E$4:$J$4,0),TRUE)","v":1},{"$f":"VLOOKUP(OFFSET($B:$B,,MATCH(M$4,$B$4:$F$4,0)-1),OFFSET('C. PoC Adj Factor Scoring'!$E$5:$J$282,,MATCH(M$4,'C. PoC Adj Factor Scoring'!$E$3:$AH$3,0)-1),MATCH(M$2&\" Score\",'C. PoC Adj Factor Scoring'!$E$4:$J$4,0),TRUE)","v":1},{"$f":"VLOOKUP(OFFSET($B:$B,,MATCH(N$4,$B$4:$F$4,0)-1),OFFSET('C. PoC Adj Factor Scoring'!$E$5:$J$282,,MATCH(N$4,'C. PoC Adj Factor Scoring'!$E$3:$AH$3,0)-1),MATCH(N$2&\" Score\",'C. PoC Adj Factor Scoring'!$E$4:$J$4,0),TRUE)","v":1},{"$f":"VLOOKUP(OFFSET($B:$B,,MATCH(O$4,$B$4:$F$4,0)-1),OFFSET('C. PoC Adj Factor Scoring'!$E$5:$J$282,,MATCH(O$4,'C. PoC Adj Factor Scoring'!$E$3:$AH$3,0)-1),MATCH(O$2&\" Score\",'C. PoC Adj Factor Scoring'!$E$4:$J$4,0),TRUE)","v":1},{"$f":"VLOOKUP(OFFSET($B:$B,,MATCH(P$4,$B$4:$F$4,0)-1),OFFSET('C. PoC Adj Factor Scoring'!$E$5:$J$282,,MATCH(P$4,'C. PoC Adj Factor Scoring'!$E$3:$AH$3,0)-1),MATCH(P$2&\" Score\",'C. PoC Adj Factor Scoring'!$E$4:$J$4,0),TRUE)","v":1},{"$f":"VLOOKUP(OFFSET($B:$B,,MATCH(Q$4,$B$4:$F$4,0)-1),OFFSET('C. PoC Adj Factor Scoring'!$E$5:$J$282,,MATCH(Q$4,'C. PoC Adj Factor Scoring'!$E$3:$AH$3,0)-1),MATCH(Q$2&\" Score\",'C. PoC Adj Factor Scoring'!$E$4:$J$4,0),TRUE)","v":1},{"$f":"VLOOKUP(OFFSET($B:$B,,MATCH(R$4,$B$4:$F$4,0)-1),OFFSET('C. PoC Adj Factor Scoring'!$E$5:$J$282,,MATCH(R$4,'C. PoC Adj Factor Scoring'!$E$3:$AH$3,0)-1),MATCH(R$2&\" Score\",'C. PoC Adj Factor Scoring'!$E$4:$J$4,0),TRUE)","v":1},{"$f":"VLOOKUP(OFFSET($B:$B,,MATCH(S$4,$B$4:$F$4,0)-1),OFFSET('C. PoC Adj Factor Scoring'!$E$5:$J$282,,MATCH(S$4,'C. PoC Adj Factor Scoring'!$E$3:$AH$3,0)-1),MATCH(S$2&\" Score\",'C. PoC Adj Factor Scoring'!$E$4:$J$4,0),TRUE)","v":1},{"$f":"VLOOKUP(OFFSET($B:$B,,MATCH(T$4,$B$4:$F$4,0)-1),OFFSET('C. PoC Adj Factor Scoring'!$E$5:$J$282,,MATCH(T$4,'C. PoC Adj Factor Scoring'!$E$3:$AH$3,0)-1),MATCH(T$2&\" Score\",'C. PoC Adj Factor Scoring'!$E$4:$J$4,0),TRUE)","v":1},{"$f":"VLOOKUP(OFFSET($B:$B,,MATCH(U$4,$B$4:$F$4,0)-1),OFFSET('C. PoC Adj Factor Scoring'!$E$5:$J$282,,MATCH(U$4,'C. PoC Adj Factor Scoring'!$E$3:$AH$3,0)-1),MATCH(U$2&\" Score\",'C. PoC Adj Factor Scoring'!$E$4:$J$4,0),TRUE)","v":1},{"$f":"VLOOKUP(OFFSET($B:$B,,MATCH(V$4,$B$4:$F$4,0)-1),OFFSET('C. PoC Adj Factor Scoring'!$E$5:$J$282,,MATCH(V$4,'C. PoC Adj Factor Scoring'!$E$3:$AH$3,0)-1),MATCH(V$2&\" Score\",'C. PoC Adj Factor Scoring'!$E$4:$J$4,0),TRUE)","v":1},{"$f":"VLOOKUP(OFFSET($B:$B,,MATCH(W$4,$B$4:$F$4,0)-1),OFFSET('C. PoC Adj Factor Scoring'!$E$5:$J$282,,MATCH(W$4,'C. PoC Adj Factor Scoring'!$E$3:$AH$3,0)-1),MATCH(W$2&\" Score\",'C. PoC Adj Factor Scoring'!$E$4:$J$4,0),TRUE)","v":1},{"$f":"VLOOKUP(OFFSET($B:$B,,MATCH(X$4,$B$4:$F$4,0)-1),OFFSET('C. PoC Adj Factor Scoring'!$E$5:$J$282,,MATCH(X$4,'C. PoC Adj Factor Scoring'!$E$3:$AH$3,0)-1),MATCH(X$2&\" Score\",'C. PoC Adj Factor Scoring'!$E$4:$J$4,0),TRUE)","v":1},{"$f":"VLOOKUP(OFFSET($B:$B,,MATCH(Y$4,$B$4:$F$4,0)-1),OFFSET('C. PoC Adj Factor Scoring'!$E$5:$J$282,,MATCH(Y$4,'C. PoC Adj Factor Scoring'!$E$3:$AH$3,0)-1),MATCH(Y$2&\" Score\",'C. PoC Adj Factor Scoring'!$E$4:$J$4,0),TRUE)","v":1},{"$f":"VLOOKUP(OFFSET($B:$B,,MATCH(Z$4,$B$4:$F$4,0)-1),OFFSET('C. PoC Adj Factor Scoring'!$E$5:$J$282,,MATCH(Z$4,'C. PoC Adj Factor Scoring'!$E$3:$AH$3,0)-1),MATCH(Z$2&\" Score\",'C. PoC Adj Factor Scoring'!$E$4:$J$4,0),TRUE)","v":1},{"$f":"VLOOKUP(OFFSET($B:$B,,MATCH(AA$4,$B$4:$F$4,0)-1),OFFSET('C. PoC Adj Factor Scoring'!$E$5:$J$282,,MATCH(AA$4,'C. PoC Adj Factor Scoring'!$E$3:$AH$3,0)-1),MATCH(AA$2&\" Score\",'C. PoC Adj Factor Scoring'!$E$4:$J$4,0),TRUE)","v":3},{"$f":"VLOOKUP(OFFSET($B:$B,,MATCH(AB$4,$B$4:$F$4,0)-1),OFFSET('C. PoC Adj Factor Scoring'!$E$5:$J$282,,MATCH(AB$4,'C. PoC Adj Factor Scoring'!$E$3:$AH$3,0)-1),MATCH(AB$2&\" Score\",'C. PoC Adj Factor Scoring'!$E$4:$J$4,0),TRUE)","v":1},{"$f":"VLOOKUP(OFFSET($B:$B,,MATCH(AC$4,$B$4:$F$4,0)-1),OFFSET('C. PoC Adj Factor Scoring'!$E$5:$J$282,,MATCH(AC$4,'C. PoC Adj Factor Scoring'!$E$3:$AH$3,0)-1),MATCH(AC$2&\" Score\",'C. PoC Adj Factor Scoring'!$E$4:$J$4,0),TRUE)","v":1},{"$f":"VLOOKUP(OFFSET($B:$B,,MATCH(AD$4,$B$4:$F$4,0)-1),OFFSET('C. PoC Adj Factor Scoring'!$E$5:$J$282,,MATCH(AD$4,'C. PoC Adj Factor Scoring'!$E$3:$AH$3,0)-1),MATCH(AD$2&\" Score\",'C. PoC Adj Factor Scoring'!$E$4:$J$4,0),TRUE)","v":1},{"$f":"VLOOKUP(OFFSET($B:$B,,MATCH(AE$4,$B$4:$F$4,0)-1),OFFSET('C. PoC Adj Factor Scoring'!$E$5:$J$282,,MATCH(AE$4,'C. PoC Adj Factor Scoring'!$E$3:$AH$3,0)-1),MATCH(AE$2&\" Score\",'C. PoC Adj Factor Scoring'!$E$4:$J$4,0),TRUE)","v":1}]
[{"$f":"'A. Population Info'!A111","v":1000336594},{"$f":"'A. Population Info'!L111","v":"OIL"},{"$f":"'A. Population Info'!M111","v":0},{"$f":"'A. Population Info'!N111","v":0},{"$f":"'A. Population Info'!O111","v":0},{"$f":"'A. Population Info'!P111","v":0},{"$f":"VLOOKUP(OFFSET($B:$B,,MATCH(G$4,$B$4:$F$4,0)-1),OFFSET('C. PoC Adj Factor Scoring'!$E$5:$J$282,,MATCH(G$4,'C. PoC Adj Factor Scoring'!$E$3:$AH$3,0)-1),MATCH(G$2&\" Score\",'C. PoC Adj Factor Scoring'!$E$4:$J$4,0),TRUE)","v":4},{"$f":"VLOOKUP(OFFSET($B:$B,,MATCH(H$4,$B$4:$F$4,0)-1),OFFSET('C. PoC Adj Factor Scoring'!$E$5:$J$282,,MATCH(H$4,'C. PoC Adj Factor Scoring'!$E$3:$AH$3,0)-1),MATCH(H$2&\" Score\",'C. PoC Adj Factor Scoring'!$E$4:$J$4,0),TRUE)","v":1},{"$f":"VLOOKUP(OFFSET($B:$B,,MATCH(I$4,$B$4:$F$4,0)-1),OFFSET('C. PoC Adj Factor Scoring'!$E$5:$J$282,,MATCH(I$4,'C. PoC Adj Factor Scoring'!$E$3:$AH$3,0)-1),MATCH(I$2&\" Score\",'C. PoC Adj Factor Scoring'!$E$4:$J$4,0),TRUE)","v":1},{"$f":"VLOOKUP(OFFSET($B:$B,,MATCH(J$4,$B$4:$F$4,0)-1),OFFSET('C. PoC Adj Factor Scoring'!$E$5:$J$282,,MATCH(J$4,'C. PoC Adj Factor Scoring'!$E$3:$AH$3,0)-1),MATCH(J$2&\" Score\",'C. PoC Adj Factor Scoring'!$E$4:$J$4,0),TRUE)","v":1},{"$f":"VLOOKUP(OFFSET($B:$B,,MATCH(K$4,$B$4:$F$4,0)-1),OFFSET('C. PoC Adj Factor Scoring'!$E$5:$J$282,,MATCH(K$4,'C. PoC Adj Factor Scoring'!$E$3:$AH$3,0)-1),MATCH(K$2&\" Score\",'C. PoC Adj Factor Scoring'!$E$4:$J$4,0),TRUE)","v":1},{"$f":"VLOOKUP(OFFSET($B:$B,,MATCH(L$4,$B$4:$F$4,0)-1),OFFSET('C. PoC Adj Factor Scoring'!$E$5:$J$282,,MATCH(L$4,'C. PoC Adj Factor Scoring'!$E$3:$AH$3,0)-1),MATCH(L$2&\" Score\",'C. PoC Adj Factor Scoring'!$E$4:$J$4,0),TRUE)","v":1},{"$f":"VLOOKUP(OFFSET($B:$B,,MATCH(M$4,$B$4:$F$4,0)-1),OFFSET('C. PoC Adj Factor Scoring'!$E$5:$J$282,,MATCH(M$4,'C. PoC Adj Factor Scoring'!$E$3:$AH$3,0)-1),MATCH(M$2&\" Score\",'C. PoC Adj Factor Scoring'!$E$4:$J$4,0),TRUE)","v":1},{"$f":"VLOOKUP(OFFSET($B:$B,,MATCH(N$4,$B$4:$F$4,0)-1),OFFSET('C. PoC Adj Factor Scoring'!$E$5:$J$282,,MATCH(N$4,'C. PoC Adj Factor Scoring'!$E$3:$AH$3,0)-1),MATCH(N$2&\" Score\",'C. PoC Adj Factor Scoring'!$E$4:$J$4,0),TRUE)","v":1},{"$f":"VLOOKUP(OFFSET($B:$B,,MATCH(O$4,$B$4:$F$4,0)-1),OFFSET('C. PoC Adj Factor Scoring'!$E$5:$J$282,,MATCH(O$4,'C. PoC Adj Factor Scoring'!$E$3:$AH$3,0)-1),MATCH(O$2&\" Score\",'C. PoC Adj Factor Scoring'!$E$4:$J$4,0),TRUE)","v":1},{"$f":"VLOOKUP(OFFSET($B:$B,,MATCH(P$4,$B$4:$F$4,0)-1),OFFSET('C. PoC Adj Factor Scoring'!$E$5:$J$282,,MATCH(P$4,'C. PoC Adj Factor Scoring'!$E$3:$AH$3,0)-1),MATCH(P$2&\" Score\",'C. PoC Adj Factor Scoring'!$E$4:$J$4,0),TRUE)","v":1},{"$f":"VLOOKUP(OFFSET($B:$B,,MATCH(Q$4,$B$4:$F$4,0)-1),OFFSET('C. PoC Adj Factor Scoring'!$E$5:$J$282,,MATCH(Q$4,'C. PoC Adj Factor Scoring'!$E$3:$AH$3,0)-1),MATCH(Q$2&\" Score\",'C. PoC Adj Factor Scoring'!$E$4:$J$4,0),TRUE)","v":1},{"$f":"VLOOKUP(OFFSET($B:$B,,MATCH(R$4,$B$4:$F$4,0)-1),OFFSET('C. PoC Adj Factor Scoring'!$E$5:$J$282,,MATCH(R$4,'C. PoC Adj Factor Scoring'!$E$3:$AH$3,0)-1),MATCH(R$2&\" Score\",'C. PoC Adj Factor Scoring'!$E$4:$J$4,0),TRUE)","v":1},{"$f":"VLOOKUP(OFFSET($B:$B,,MATCH(S$4,$B$4:$F$4,0)-1),OFFSET('C. PoC Adj Factor Scoring'!$E$5:$J$282,,MATCH(S$4,'C. PoC Adj Factor Scoring'!$E$3:$AH$3,0)-1),MATCH(S$2&\" Score\",'C. PoC Adj Factor Scoring'!$E$4:$J$4,0),TRUE)","v":1},{"$f":"VLOOKUP(OFFSET($B:$B,,MATCH(T$4,$B$4:$F$4,0)-1),OFFSET('C. PoC Adj Factor Scoring'!$E$5:$J$282,,MATCH(T$4,'C. PoC Adj Factor Scoring'!$E$3:$AH$3,0)-1),MATCH(T$2&\" Score\",'C. PoC Adj Factor Scoring'!$E$4:$J$4,0),TRUE)","v":1},{"$f":"VLOOKUP(OFFSET($B:$B,,MATCH(U$4,$B$4:$F$4,0)-1),OFFSET('C. PoC Adj Factor Scoring'!$E$5:$J$282,,MATCH(U$4,'C. PoC Adj Factor Scoring'!$E$3:$AH$3,0)-1),MATCH(U$2&\" Score\",'C. PoC Adj Factor Scoring'!$E$4:$J$4,0),TRUE)","v":1},{"$f":"VLOOKUP(OFFSET($B:$B,,MATCH(V$4,$B$4:$F$4,0)-1),OFFSET('C. PoC Adj Factor Scoring'!$E$5:$J$282,,MATCH(V$4,'C. PoC Adj Factor Scoring'!$E$3:$AH$3,0)-1),MATCH(V$2&\" Score\",'C. PoC Adj Factor Scoring'!$E$4:$J$4,0),TRUE)","v":1},{"$f":"VLOOKUP(OFFSET($B:$B,,MATCH(W$4,$B$4:$F$4,0)-1),OFFSET('C. PoC Adj Factor Scoring'!$E$5:$J$282,,MATCH(W$4,'C. PoC Adj Factor Scoring'!$E$3:$AH$3,0)-1),MATCH(W$2&\" Score\",'C. PoC Adj Factor Scoring'!$E$4:$J$4,0),TRUE)","v":1},{"$f":"VLOOKUP(OFFSET($B:$B,,MATCH(X$4,$B$4:$F$4,0)-1),OFFSET('C. PoC Adj Factor Scoring'!$E$5:$J$282,,MATCH(X$4,'C. PoC Adj Factor Scoring'!$E$3:$AH$3,0)-1),MATCH(X$2&\" Score\",'C. PoC Adj Factor Scoring'!$E$4:$J$4,0),TRUE)","v":1},{"$f":"VLOOKUP(OFFSET($B:$B,,MATCH(Y$4,$B$4:$F$4,0)-1),OFFSET('C. PoC Adj Factor Scoring'!$E$5:$J$282,,MATCH(Y$4,'C. PoC Adj Factor Scoring'!$E$3:$AH$3,0)-1),MATCH(Y$2&\" Score\",'C. PoC Adj Factor Scoring'!$E$4:$J$4,0),TRUE)","v":1},{"$f":"VLOOKUP(OFFSET($B:$B,,MATCH(Z$4,$B$4:$F$4,0)-1),OFFSET('C. PoC Adj Factor Scoring'!$E$5:$J$282,,MATCH(Z$4,'C. PoC Adj Factor Scoring'!$E$3:$AH$3,0)-1),MATCH(Z$2&\" Score\",'C. PoC Adj Factor Scoring'!$E$4:$J$4,0),TRUE)","v":1},{"$f":"VLOOKUP(OFFSET($B:$B,,MATCH(AA$4,$B$4:$F$4,0)-1),OFFSET('C. PoC Adj Factor Scoring'!$E$5:$J$282,,MATCH(AA$4,'C. PoC Adj Factor Scoring'!$E$3:$AH$3,0)-1),MATCH(AA$2&\" Score\",'C. PoC Adj Factor Scoring'!$E$4:$J$4,0),TRUE)","v":3},{"$f":"VLOOKUP(OFFSET($B:$B,,MATCH(AB$4,$B$4:$F$4,0)-1),OFFSET('C. PoC Adj Factor Scoring'!$E$5:$J$282,,MATCH(AB$4,'C. PoC Adj Factor Scoring'!$E$3:$AH$3,0)-1),MATCH(AB$2&\" Score\",'C. PoC Adj Factor Scoring'!$E$4:$J$4,0),TRUE)","v":1},{"$f":"VLOOKUP(OFFSET($B:$B,,MATCH(AC$4,$B$4:$F$4,0)-1),OFFSET('C. PoC Adj Factor Scoring'!$E$5:$J$282,,MATCH(AC$4,'C. PoC Adj Factor Scoring'!$E$3:$AH$3,0)-1),MATCH(AC$2&\" Score\",'C. PoC Adj Factor Scoring'!$E$4:$J$4,0),TRUE)","v":1},{"$f":"VLOOKUP(OFFSET($B:$B,,MATCH(AD$4,$B$4:$F$4,0)-1),OFFSET('C. PoC Adj Factor Scoring'!$E$5:$J$282,,MATCH(AD$4,'C. PoC Adj Factor Scoring'!$E$3:$AH$3,0)-1),MATCH(AD$2&\" Score\",'C. PoC Adj Factor Scoring'!$E$4:$J$4,0),TRUE)","v":1},{"$f":"VLOOKUP(OFFSET($B:$B,,MATCH(AE$4,$B$4:$F$4,0)-1),OFFSET('C. PoC Adj Factor Scoring'!$E$5:$J$282,,MATCH(AE$4,'C. PoC Adj Factor Scoring'!$E$3:$AH$3,0)-1),MATCH(AE$2&\" Score\",'C. PoC Adj Factor Scoring'!$E$4:$J$4,0),TRUE)","v":1}]
[{"$f":"'A. Population Info'!A112","v":1000336623},{"$f":"'A. Population Info'!L112","v":"OIL"},{"$f":"'A. Population Info'!M112","v":0},{"$f":"'A. Population Info'!N112","v":0},{"$f":"'A. Population Info'!O112","v":0},{"$f":"'A. Population Info'!P112","v":0},{"$f":"VLOOKUP(OFFSET($B:$B,,MATCH(G$4,$B$4:$F$4,0)-1),OFFSET('C. PoC Adj Factor Scoring'!$E$5:$J$282,,MATCH(G$4,'C. PoC Adj Factor Scoring'!$E$3:$AH$3,0)-1),MATCH(G$2&\" Score\",'C. PoC Adj Factor Scoring'!$E$4:$J$4,0),TRUE)","v":4},{"$f":"VLOOKUP(OFFSET($B:$B,,MATCH(H$4,$B$4:$F$4,0)-1),OFFSET('C. PoC Adj Factor Scoring'!$E$5:$J$282,,MATCH(H$4,'C. PoC Adj Factor Scoring'!$E$3:$AH$3,0)-1),MATCH(H$2&\" Score\",'C. PoC Adj Factor Scoring'!$E$4:$J$4,0),TRUE)","v":1},{"$f":"VLOOKUP(OFFSET($B:$B,,MATCH(I$4,$B$4:$F$4,0)-1),OFFSET('C. PoC Adj Factor Scoring'!$E$5:$J$282,,MATCH(I$4,'C. PoC Adj Factor Scoring'!$E$3:$AH$3,0)-1),MATCH(I$2&\" Score\",'C. PoC Adj Factor Scoring'!$E$4:$J$4,0),TRUE)","v":1},{"$f":"VLOOKUP(OFFSET($B:$B,,MATCH(J$4,$B$4:$F$4,0)-1),OFFSET('C. PoC Adj Factor Scoring'!$E$5:$J$282,,MATCH(J$4,'C. PoC Adj Factor Scoring'!$E$3:$AH$3,0)-1),MATCH(J$2&\" Score\",'C. PoC Adj Factor Scoring'!$E$4:$J$4,0),TRUE)","v":1},{"$f":"VLOOKUP(OFFSET($B:$B,,MATCH(K$4,$B$4:$F$4,0)-1),OFFSET('C. PoC Adj Factor Scoring'!$E$5:$J$282,,MATCH(K$4,'C. PoC Adj Factor Scoring'!$E$3:$AH$3,0)-1),MATCH(K$2&\" Score\",'C. PoC Adj Factor Scoring'!$E$4:$J$4,0),TRUE)","v":1},{"$f":"VLOOKUP(OFFSET($B:$B,,MATCH(L$4,$B$4:$F$4,0)-1),OFFSET('C. PoC Adj Factor Scoring'!$E$5:$J$282,,MATCH(L$4,'C. PoC Adj Factor Scoring'!$E$3:$AH$3,0)-1),MATCH(L$2&\" Score\",'C. PoC Adj Factor Scoring'!$E$4:$J$4,0),TRUE)","v":1},{"$f":"VLOOKUP(OFFSET($B:$B,,MATCH(M$4,$B$4:$F$4,0)-1),OFFSET('C. PoC Adj Factor Scoring'!$E$5:$J$282,,MATCH(M$4,'C. PoC Adj Factor Scoring'!$E$3:$AH$3,0)-1),MATCH(M$2&\" Score\",'C. PoC Adj Factor Scoring'!$E$4:$J$4,0),TRUE)","v":1},{"$f":"VLOOKUP(OFFSET($B:$B,,MATCH(N$4,$B$4:$F$4,0)-1),OFFSET('C. PoC Adj Factor Scoring'!$E$5:$J$282,,MATCH(N$4,'C. PoC Adj Factor Scoring'!$E$3:$AH$3,0)-1),MATCH(N$2&\" Score\",'C. PoC Adj Factor Scoring'!$E$4:$J$4,0),TRUE)","v":1},{"$f":"VLOOKUP(OFFSET($B:$B,,MATCH(O$4,$B$4:$F$4,0)-1),OFFSET('C. PoC Adj Factor Scoring'!$E$5:$J$282,,MATCH(O$4,'C. PoC Adj Factor Scoring'!$E$3:$AH$3,0)-1),MATCH(O$2&\" Score\",'C. PoC Adj Factor Scoring'!$E$4:$J$4,0),TRUE)","v":1},{"$f":"VLOOKUP(OFFSET($B:$B,,MATCH(P$4,$B$4:$F$4,0)-1),OFFSET('C. PoC Adj Factor Scoring'!$E$5:$J$282,,MATCH(P$4,'C. PoC Adj Factor Scoring'!$E$3:$AH$3,0)-1),MATCH(P$2&\" Score\",'C. PoC Adj Factor Scoring'!$E$4:$J$4,0),TRUE)","v":1},{"$f":"VLOOKUP(OFFSET($B:$B,,MATCH(Q$4,$B$4:$F$4,0)-1),OFFSET('C. PoC Adj Factor Scoring'!$E$5:$J$282,,MATCH(Q$4,'C. PoC Adj Factor Scoring'!$E$3:$AH$3,0)-1),MATCH(Q$2&\" Score\",'C. PoC Adj Factor Scoring'!$E$4:$J$4,0),TRUE)","v":1},{"$f":"VLOOKUP(OFFSET($B:$B,,MATCH(R$4,$B$4:$F$4,0)-1),OFFSET('C. PoC Adj Factor Scoring'!$E$5:$J$282,,MATCH(R$4,'C. PoC Adj Factor Scoring'!$E$3:$AH$3,0)-1),MATCH(R$2&\" Score\",'C. PoC Adj Factor Scoring'!$E$4:$J$4,0),TRUE)","v":1},{"$f":"VLOOKUP(OFFSET($B:$B,,MATCH(S$4,$B$4:$F$4,0)-1),OFFSET('C. PoC Adj Factor Scoring'!$E$5:$J$282,,MATCH(S$4,'C. PoC Adj Factor Scoring'!$E$3:$AH$3,0)-1),MATCH(S$2&\" Score\",'C. PoC Adj Factor Scoring'!$E$4:$J$4,0),TRUE)","v":1},{"$f":"VLOOKUP(OFFSET($B:$B,,MATCH(T$4,$B$4:$F$4,0)-1),OFFSET('C. PoC Adj Factor Scoring'!$E$5:$J$282,,MATCH(T$4,'C. PoC Adj Factor Scoring'!$E$3:$AH$3,0)-1),MATCH(T$2&\" Score\",'C. PoC Adj Factor Scoring'!$E$4:$J$4,0),TRUE)","v":1},{"$f":"VLOOKUP(OFFSET($B:$B,,MATCH(U$4,$B$4:$F$4,0)-1),OFFSET('C. PoC Adj Factor Scoring'!$E$5:$J$282,,MATCH(U$4,'C. PoC Adj Factor Scoring'!$E$3:$AH$3,0)-1),MATCH(U$2&\" Score\",'C. PoC Adj Factor Scoring'!$E$4:$J$4,0),TRUE)","v":1},{"$f":"VLOOKUP(OFFSET($B:$B,,MATCH(V$4,$B$4:$F$4,0)-1),OFFSET('C. PoC Adj Factor Scoring'!$E$5:$J$282,,MATCH(V$4,'C. PoC Adj Factor Scoring'!$E$3:$AH$3,0)-1),MATCH(V$2&\" Score\",'C. PoC Adj Factor Scoring'!$E$4:$J$4,0),TRUE)","v":1},{"$f":"VLOOKUP(OFFSET($B:$B,,MATCH(W$4,$B$4:$F$4,0)-1),OFFSET('C. PoC Adj Factor Scoring'!$E$5:$J$282,,MATCH(W$4,'C. PoC Adj Factor Scoring'!$E$3:$AH$3,0)-1),MATCH(W$2&\" Score\",'C. PoC Adj Factor Scoring'!$E$4:$J$4,0),TRUE)","v":1},{"$f":"VLOOKUP(OFFSET($B:$B,,MATCH(X$4,$B$4:$F$4,0)-1),OFFSET('C. PoC Adj Factor Scoring'!$E$5:$J$282,,MATCH(X$4,'C. PoC Adj Factor Scoring'!$E$3:$AH$3,0)-1),MATCH(X$2&\" Score\",'C. PoC Adj Factor Scoring'!$E$4:$J$4,0),TRUE)","v":1},{"$f":"VLOOKUP(OFFSET($B:$B,,MATCH(Y$4,$B$4:$F$4,0)-1),OFFSET('C. PoC Adj Factor Scoring'!$E$5:$J$282,,MATCH(Y$4,'C. PoC Adj Factor Scoring'!$E$3:$AH$3,0)-1),MATCH(Y$2&\" Score\",'C. PoC Adj Factor Scoring'!$E$4:$J$4,0),TRUE)","v":1},{"$f":"VLOOKUP(OFFSET($B:$B,,MATCH(Z$4,$B$4:$F$4,0)-1),OFFSET('C. PoC Adj Factor Scoring'!$E$5:$J$282,,MATCH(Z$4,'C. PoC Adj Factor Scoring'!$E$3:$AH$3,0)-1),MATCH(Z$2&\" Score\",'C. PoC Adj Factor Scoring'!$E$4:$J$4,0),TRUE)","v":1},{"$f":"VLOOKUP(OFFSET($B:$B,,MATCH(AA$4,$B$4:$F$4,0)-1),OFFSET('C. PoC Adj Factor Scoring'!$E$5:$J$282,,MATCH(AA$4,'C. PoC Adj Factor Scoring'!$E$3:$AH$3,0)-1),MATCH(AA$2&\" Score\",'C. PoC Adj Factor Scoring'!$E$4:$J$4,0),TRUE)","v":3},{"$f":"VLOOKUP(OFFSET($B:$B,,MATCH(AB$4,$B$4:$F$4,0)-1),OFFSET('C. PoC Adj Factor Scoring'!$E$5:$J$282,,MATCH(AB$4,'C. PoC Adj Factor Scoring'!$E$3:$AH$3,0)-1),MATCH(AB$2&\" Score\",'C. PoC Adj Factor Scoring'!$E$4:$J$4,0),TRUE)","v":1},{"$f":"VLOOKUP(OFFSET($B:$B,,MATCH(AC$4,$B$4:$F$4,0)-1),OFFSET('C. PoC Adj Factor Scoring'!$E$5:$J$282,,MATCH(AC$4,'C. PoC Adj Factor Scoring'!$E$3:$AH$3,0)-1),MATCH(AC$2&\" Score\",'C. PoC Adj Factor Scoring'!$E$4:$J$4,0),TRUE)","v":1},{"$f":"VLOOKUP(OFFSET($B:$B,,MATCH(AD$4,$B$4:$F$4,0)-1),OFFSET('C. PoC Adj Factor Scoring'!$E$5:$J$282,,MATCH(AD$4,'C. PoC Adj Factor Scoring'!$E$3:$AH$3,0)-1),MATCH(AD$2&\" Score\",'C. PoC Adj Factor Scoring'!$E$4:$J$4,0),TRUE)","v":1},{"$f":"VLOOKUP(OFFSET($B:$B,,MATCH(AE$4,$B$4:$F$4,0)-1),OFFSET('C. PoC Adj Factor Scoring'!$E$5:$J$282,,MATCH(AE$4,'C. PoC Adj Factor Scoring'!$E$3:$AH$3,0)-1),MATCH(AE$2&\" Score\",'C. PoC Adj Factor Scoring'!$E$4:$J$4,0),TRUE)","v":1}]
[{"$f":"'A. Population Info'!A113","v":1000336651},{"$f":"'A. Population Info'!L113","v":"OIL"},{"$f":"'A. Population Info'!M113","v":0},{"$f":"'A. Population Info'!N113","v":0},{"$f":"'A. Population Info'!O113","v":0},{"$f":"'A. Population Info'!P113","v":0},{"$f":"VLOOKUP(OFFSET($B:$B,,MATCH(G$4,$B$4:$F$4,0)-1),OFFSET('C. PoC Adj Factor Scoring'!$E$5:$J$282,,MATCH(G$4,'C. PoC Adj Factor Scoring'!$E$3:$AH$3,0)-1),MATCH(G$2&\" Score\",'C. PoC Adj Factor Scoring'!$E$4:$J$4,0),TRUE)","v":4},{"$f":"VLOOKUP(OFFSET($B:$B,,MATCH(H$4,$B$4:$F$4,0)-1),OFFSET('C. PoC Adj Factor Scoring'!$E$5:$J$282,,MATCH(H$4,'C. PoC Adj Factor Scoring'!$E$3:$AH$3,0)-1),MATCH(H$2&\" Score\",'C. PoC Adj Factor Scoring'!$E$4:$J$4,0),TRUE)","v":1},{"$f":"VLOOKUP(OFFSET($B:$B,,MATCH(I$4,$B$4:$F$4,0)-1),OFFSET('C. PoC Adj Factor Scoring'!$E$5:$J$282,,MATCH(I$4,'C. PoC Adj Factor Scoring'!$E$3:$AH$3,0)-1),MATCH(I$2&\" Score\",'C. PoC Adj Factor Scoring'!$E$4:$J$4,0),TRUE)","v":1},{"$f":"VLOOKUP(OFFSET($B:$B,,MATCH(J$4,$B$4:$F$4,0)-1),OFFSET('C. PoC Adj Factor Scoring'!$E$5:$J$282,,MATCH(J$4,'C. PoC Adj Factor Scoring'!$E$3:$AH$3,0)-1),MATCH(J$2&\" Score\",'C. PoC Adj Factor Scoring'!$E$4:$J$4,0),TRUE)","v":1},{"$f":"VLOOKUP(OFFSET($B:$B,,MATCH(K$4,$B$4:$F$4,0)-1),OFFSET('C. PoC Adj Factor Scoring'!$E$5:$J$282,,MATCH(K$4,'C. PoC Adj Factor Scoring'!$E$3:$AH$3,0)-1),MATCH(K$2&\" Score\",'C. PoC Adj Factor Scoring'!$E$4:$J$4,0),TRUE)","v":1},{"$f":"VLOOKUP(OFFSET($B:$B,,MATCH(L$4,$B$4:$F$4,0)-1),OFFSET('C. PoC Adj Factor Scoring'!$E$5:$J$282,,MATCH(L$4,'C. PoC Adj Factor Scoring'!$E$3:$AH$3,0)-1),MATCH(L$2&\" Score\",'C. PoC Adj Factor Scoring'!$E$4:$J$4,0),TRUE)","v":1},{"$f":"VLOOKUP(OFFSET($B:$B,,MATCH(M$4,$B$4:$F$4,0)-1),OFFSET('C. PoC Adj Factor Scoring'!$E$5:$J$282,,MATCH(M$4,'C. PoC Adj Factor Scoring'!$E$3:$AH$3,0)-1),MATCH(M$2&\" Score\",'C. PoC Adj Factor Scoring'!$E$4:$J$4,0),TRUE)","v":1},{"$f":"VLOOKUP(OFFSET($B:$B,,MATCH(N$4,$B$4:$F$4,0)-1),OFFSET('C. PoC Adj Factor Scoring'!$E$5:$J$282,,MATCH(N$4,'C. PoC Adj Factor Scoring'!$E$3:$AH$3,0)-1),MATCH(N$2&\" Score\",'C. PoC Adj Factor Scoring'!$E$4:$J$4,0),TRUE)","v":1},{"$f":"VLOOKUP(OFFSET($B:$B,,MATCH(O$4,$B$4:$F$4,0)-1),OFFSET('C. PoC Adj Factor Scoring'!$E$5:$J$282,,MATCH(O$4,'C. PoC Adj Factor Scoring'!$E$3:$AH$3,0)-1),MATCH(O$2&\" Score\",'C. PoC Adj Factor Scoring'!$E$4:$J$4,0),TRUE)","v":1},{"$f":"VLOOKUP(OFFSET($B:$B,,MATCH(P$4,$B$4:$F$4,0)-1),OFFSET('C. PoC Adj Factor Scoring'!$E$5:$J$282,,MATCH(P$4,'C. PoC Adj Factor Scoring'!$E$3:$AH$3,0)-1),MATCH(P$2&\" Score\",'C. PoC Adj Factor Scoring'!$E$4:$J$4,0),TRUE)","v":1},{"$f":"VLOOKUP(OFFSET($B:$B,,MATCH(Q$4,$B$4:$F$4,0)-1),OFFSET('C. PoC Adj Factor Scoring'!$E$5:$J$282,,MATCH(Q$4,'C. PoC Adj Factor Scoring'!$E$3:$AH$3,0)-1),MATCH(Q$2&\" Score\",'C. PoC Adj Factor Scoring'!$E$4:$J$4,0),TRUE)","v":1},{"$f":"VLOOKUP(OFFSET($B:$B,,MATCH(R$4,$B$4:$F$4,0)-1),OFFSET('C. PoC Adj Factor Scoring'!$E$5:$J$282,,MATCH(R$4,'C. PoC Adj Factor Scoring'!$E$3:$AH$3,0)-1),MATCH(R$2&\" Score\",'C. PoC Adj Factor Scoring'!$E$4:$J$4,0),TRUE)","v":1},{"$f":"VLOOKUP(OFFSET($B:$B,,MATCH(S$4,$B$4:$F$4,0)-1),OFFSET('C. PoC Adj Factor Scoring'!$E$5:$J$282,,MATCH(S$4,'C. PoC Adj Factor Scoring'!$E$3:$AH$3,0)-1),MATCH(S$2&\" Score\",'C. PoC Adj Factor Scoring'!$E$4:$J$4,0),TRUE)","v":1},{"$f":"VLOOKUP(OFFSET($B:$B,,MATCH(T$4,$B$4:$F$4,0)-1),OFFSET('C. PoC Adj Factor Scoring'!$E$5:$J$282,,MATCH(T$4,'C. PoC Adj Factor Scoring'!$E$3:$AH$3,0)-1),MATCH(T$2&\" Score\",'C. PoC Adj Factor Scoring'!$E$4:$J$4,0),TRUE)","v":1},{"$f":"VLOOKUP(OFFSET($B:$B,,MATCH(U$4,$B$4:$F$4,0)-1),OFFSET('C. PoC Adj Factor Scoring'!$E$5:$J$282,,MATCH(U$4,'C. PoC Adj Factor Scoring'!$E$3:$AH$3,0)-1),MATCH(U$2&\" Score\",'C. PoC Adj Factor Scoring'!$E$4:$J$4,0),TRUE)","v":1},{"$f":"VLOOKUP(OFFSET($B:$B,,MATCH(V$4,$B$4:$F$4,0)-1),OFFSET('C. PoC Adj Factor Scoring'!$E$5:$J$282,,MATCH(V$4,'C. PoC Adj Factor Scoring'!$E$3:$AH$3,0)-1),MATCH(V$2&\" Score\",'C. PoC Adj Factor Scoring'!$E$4:$J$4,0),TRUE)","v":1},{"$f":"VLOOKUP(OFFSET($B:$B,,MATCH(W$4,$B$4:$F$4,0)-1),OFFSET('C. PoC Adj Factor Scoring'!$E$5:$J$282,,MATCH(W$4,'C. PoC Adj Factor Scoring'!$E$3:$AH$3,0)-1),MATCH(W$2&\" Score\",'C. PoC Adj Factor Scoring'!$E$4:$J$4,0),TRUE)","v":1},{"$f":"VLOOKUP(OFFSET($B:$B,,MATCH(X$4,$B$4:$F$4,0)-1),OFFSET('C. PoC Adj Factor Scoring'!$E$5:$J$282,,MATCH(X$4,'C. PoC Adj Factor Scoring'!$E$3:$AH$3,0)-1),MATCH(X$2&\" Score\",'C. PoC Adj Factor Scoring'!$E$4:$J$4,0),TRUE)","v":1},{"$f":"VLOOKUP(OFFSET($B:$B,,MATCH(Y$4,$B$4:$F$4,0)-1),OFFSET('C. PoC Adj Factor Scoring'!$E$5:$J$282,,MATCH(Y$4,'C. PoC Adj Factor Scoring'!$E$3:$AH$3,0)-1),MATCH(Y$2&\" Score\",'C. PoC Adj Factor Scoring'!$E$4:$J$4,0),TRUE)","v":1},{"$f":"VLOOKUP(OFFSET($B:$B,,MATCH(Z$4,$B$4:$F$4,0)-1),OFFSET('C. PoC Adj Factor Scoring'!$E$5:$J$282,,MATCH(Z$4,'C. PoC Adj Factor Scoring'!$E$3:$AH$3,0)-1),MATCH(Z$2&\" Score\",'C. PoC Adj Factor Scoring'!$E$4:$J$4,0),TRUE)","v":1},{"$f":"VLOOKUP(OFFSET($B:$B,,MATCH(AA$4,$B$4:$F$4,0)-1),OFFSET('C. PoC Adj Factor Scoring'!$E$5:$J$282,,MATCH(AA$4,'C. PoC Adj Factor Scoring'!$E$3:$AH$3,0)-1),MATCH(AA$2&\" Score\",'C. PoC Adj Factor Scoring'!$E$4:$J$4,0),TRUE)","v":3},{"$f":"VLOOKUP(OFFSET($B:$B,,MATCH(AB$4,$B$4:$F$4,0)-1),OFFSET('C. PoC Adj Factor Scoring'!$E$5:$J$282,,MATCH(AB$4,'C. PoC Adj Factor Scoring'!$E$3:$AH$3,0)-1),MATCH(AB$2&\" Score\",'C. PoC Adj Factor Scoring'!$E$4:$J$4,0),TRUE)","v":1},{"$f":"VLOOKUP(OFFSET($B:$B,,MATCH(AC$4,$B$4:$F$4,0)-1),OFFSET('C. PoC Adj Factor Scoring'!$E$5:$J$282,,MATCH(AC$4,'C. PoC Adj Factor Scoring'!$E$3:$AH$3,0)-1),MATCH(AC$2&\" Score\",'C. PoC Adj Factor Scoring'!$E$4:$J$4,0),TRUE)","v":1},{"$f":"VLOOKUP(OFFSET($B:$B,,MATCH(AD$4,$B$4:$F$4,0)-1),OFFSET('C. PoC Adj Factor Scoring'!$E$5:$J$282,,MATCH(AD$4,'C. PoC Adj Factor Scoring'!$E$3:$AH$3,0)-1),MATCH(AD$2&\" Score\",'C. PoC Adj Factor Scoring'!$E$4:$J$4,0),TRUE)","v":1},{"$f":"VLOOKUP(OFFSET($B:$B,,MATCH(AE$4,$B$4:$F$4,0)-1),OFFSET('C. PoC Adj Factor Scoring'!$E$5:$J$282,,MATCH(AE$4,'C. PoC Adj Factor Scoring'!$E$3:$AH$3,0)-1),MATCH(AE$2&\" Score\",'C. PoC Adj Factor Scoring'!$E$4:$J$4,0),TRUE)","v":1}]
[{"$f":"'A. Population Info'!A114","v":1000336679},{"$f":"'A. Population Info'!L114","v":"OIL"},{"$f":"'A. Population Info'!M114","v":0},{"$f":"'A. Population Info'!N114","v":0},{"$f":"'A. Population Info'!O114","v":0},{"$f":"'A. Population Info'!P114","v":0},{"$f":"VLOOKUP(OFFSET($B:$B,,MATCH(G$4,$B$4:$F$4,0)-1),OFFSET('C. PoC Adj Factor Scoring'!$E$5:$J$282,,MATCH(G$4,'C. PoC Adj Factor Scoring'!$E$3:$AH$3,0)-1),MATCH(G$2&\" Score\",'C. PoC Adj Factor Scoring'!$E$4:$J$4,0),TRUE)","v":4},{"$f":"VLOOKUP(OFFSET($B:$B,,MATCH(H$4,$B$4:$F$4,0)-1),OFFSET('C. PoC Adj Factor Scoring'!$E$5:$J$282,,MATCH(H$4,'C. PoC Adj Factor Scoring'!$E$3:$AH$3,0)-1),MATCH(H$2&\" Score\",'C. PoC Adj Factor Scoring'!$E$4:$J$4,0),TRUE)","v":1},{"$f":"VLOOKUP(OFFSET($B:$B,,MATCH(I$4,$B$4:$F$4,0)-1),OFFSET('C. PoC Adj Factor Scoring'!$E$5:$J$282,,MATCH(I$4,'C. PoC Adj Factor Scoring'!$E$3:$AH$3,0)-1),MATCH(I$2&\" Score\",'C. PoC Adj Factor Scoring'!$E$4:$J$4,0),TRUE)","v":1},{"$f":"VLOOKUP(OFFSET($B:$B,,MATCH(J$4,$B$4:$F$4,0)-1),OFFSET('C. PoC Adj Factor Scoring'!$E$5:$J$282,,MATCH(J$4,'C. PoC Adj Factor Scoring'!$E$3:$AH$3,0)-1),MATCH(J$2&\" Score\",'C. PoC Adj Factor Scoring'!$E$4:$J$4,0),TRUE)","v":1},{"$f":"VLOOKUP(OFFSET($B:$B,,MATCH(K$4,$B$4:$F$4,0)-1),OFFSET('C. PoC Adj Factor Scoring'!$E$5:$J$282,,MATCH(K$4,'C. PoC Adj Factor Scoring'!$E$3:$AH$3,0)-1),MATCH(K$2&\" Score\",'C. PoC Adj Factor Scoring'!$E$4:$J$4,0),TRUE)","v":1},{"$f":"VLOOKUP(OFFSET($B:$B,,MATCH(L$4,$B$4:$F$4,0)-1),OFFSET('C. PoC Adj Factor Scoring'!$E$5:$J$282,,MATCH(L$4,'C. PoC Adj Factor Scoring'!$E$3:$AH$3,0)-1),MATCH(L$2&\" Score\",'C. PoC Adj Factor Scoring'!$E$4:$J$4,0),TRUE)","v":1},{"$f":"VLOOKUP(OFFSET($B:$B,,MATCH(M$4,$B$4:$F$4,0)-1),OFFSET('C. PoC Adj Factor Scoring'!$E$5:$J$282,,MATCH(M$4,'C. PoC Adj Factor Scoring'!$E$3:$AH$3,0)-1),MATCH(M$2&\" Score\",'C. PoC Adj Factor Scoring'!$E$4:$J$4,0),TRUE)","v":1},{"$f":"VLOOKUP(OFFSET($B:$B,,MATCH(N$4,$B$4:$F$4,0)-1),OFFSET('C. PoC Adj Factor Scoring'!$E$5:$J$282,,MATCH(N$4,'C. PoC Adj Factor Scoring'!$E$3:$AH$3,0)-1),MATCH(N$2&\" Score\",'C. PoC Adj Factor Scoring'!$E$4:$J$4,0),TRUE)","v":1},{"$f":"VLOOKUP(OFFSET($B:$B,,MATCH(O$4,$B$4:$F$4,0)-1),OFFSET('C. PoC Adj Factor Scoring'!$E$5:$J$282,,MATCH(O$4,'C. PoC Adj Factor Scoring'!$E$3:$AH$3,0)-1),MATCH(O$2&\" Score\",'C. PoC Adj Factor Scoring'!$E$4:$J$4,0),TRUE)","v":1},{"$f":"VLOOKUP(OFFSET($B:$B,,MATCH(P$4,$B$4:$F$4,0)-1),OFFSET('C. PoC Adj Factor Scoring'!$E$5:$J$282,,MATCH(P$4,'C. PoC Adj Factor Scoring'!$E$3:$AH$3,0)-1),MATCH(P$2&\" Score\",'C. PoC Adj Factor Scoring'!$E$4:$J$4,0),TRUE)","v":1},{"$f":"VLOOKUP(OFFSET($B:$B,,MATCH(Q$4,$B$4:$F$4,0)-1),OFFSET('C. PoC Adj Factor Scoring'!$E$5:$J$282,,MATCH(Q$4,'C. PoC Adj Factor Scoring'!$E$3:$AH$3,0)-1),MATCH(Q$2&\" Score\",'C. PoC Adj Factor Scoring'!$E$4:$J$4,0),TRUE)","v":1},{"$f":"VLOOKUP(OFFSET($B:$B,,MATCH(R$4,$B$4:$F$4,0)-1),OFFSET('C. PoC Adj Factor Scoring'!$E$5:$J$282,,MATCH(R$4,'C. PoC Adj Factor Scoring'!$E$3:$AH$3,0)-1),MATCH(R$2&\" Score\",'C. PoC Adj Factor Scoring'!$E$4:$J$4,0),TRUE)","v":1},{"$f":"VLOOKUP(OFFSET($B:$B,,MATCH(S$4,$B$4:$F$4,0)-1),OFFSET('C. PoC Adj Factor Scoring'!$E$5:$J$282,,MATCH(S$4,'C. PoC Adj Factor Scoring'!$E$3:$AH$3,0)-1),MATCH(S$2&\" Score\",'C. PoC Adj Factor Scoring'!$E$4:$J$4,0),TRUE)","v":1},{"$f":"VLOOKUP(OFFSET($B:$B,,MATCH(T$4,$B$4:$F$4,0)-1),OFFSET('C. PoC Adj Factor Scoring'!$E$5:$J$282,,MATCH(T$4,'C. PoC Adj Factor Scoring'!$E$3:$AH$3,0)-1),MATCH(T$2&\" Score\",'C. PoC Adj Factor Scoring'!$E$4:$J$4,0),TRUE)","v":1},{"$f":"VLOOKUP(OFFSET($B:$B,,MATCH(U$4,$B$4:$F$4,0)-1),OFFSET('C. PoC Adj Factor Scoring'!$E$5:$J$282,,MATCH(U$4,'C. PoC Adj Factor Scoring'!$E$3:$AH$3,0)-1),MATCH(U$2&\" Score\",'C. PoC Adj Factor Scoring'!$E$4:$J$4,0),TRUE)","v":1},{"$f":"VLOOKUP(OFFSET($B:$B,,MATCH(V$4,$B$4:$F$4,0)-1),OFFSET('C. PoC Adj Factor Scoring'!$E$5:$J$282,,MATCH(V$4,'C. PoC Adj Factor Scoring'!$E$3:$AH$3,0)-1),MATCH(V$2&\" Score\",'C. PoC Adj Factor Scoring'!$E$4:$J$4,0),TRUE)","v":1},{"$f":"VLOOKUP(OFFSET($B:$B,,MATCH(W$4,$B$4:$F$4,0)-1),OFFSET('C. PoC Adj Factor Scoring'!$E$5:$J$282,,MATCH(W$4,'C. PoC Adj Factor Scoring'!$E$3:$AH$3,0)-1),MATCH(W$2&\" Score\",'C. PoC Adj Factor Scoring'!$E$4:$J$4,0),TRUE)","v":1},{"$f":"VLOOKUP(OFFSET($B:$B,,MATCH(X$4,$B$4:$F$4,0)-1),OFFSET('C. PoC Adj Factor Scoring'!$E$5:$J$282,,MATCH(X$4,'C. PoC Adj Factor Scoring'!$E$3:$AH$3,0)-1),MATCH(X$2&\" Score\",'C. PoC Adj Factor Scoring'!$E$4:$J$4,0),TRUE)","v":1},{"$f":"VLOOKUP(OFFSET($B:$B,,MATCH(Y$4,$B$4:$F$4,0)-1),OFFSET('C. PoC Adj Factor Scoring'!$E$5:$J$282,,MATCH(Y$4,'C. PoC Adj Factor Scoring'!$E$3:$AH$3,0)-1),MATCH(Y$2&\" Score\",'C. PoC Adj Factor Scoring'!$E$4:$J$4,0),TRUE)","v":1},{"$f":"VLOOKUP(OFFSET($B:$B,,MATCH(Z$4,$B$4:$F$4,0)-1),OFFSET('C. PoC Adj Factor Scoring'!$E$5:$J$282,,MATCH(Z$4,'C. PoC Adj Factor Scoring'!$E$3:$AH$3,0)-1),MATCH(Z$2&\" Score\",'C. PoC Adj Factor Scoring'!$E$4:$J$4,0),TRUE)","v":1},{"$f":"VLOOKUP(OFFSET($B:$B,,MATCH(AA$4,$B$4:$F$4,0)-1),OFFSET('C. PoC Adj Factor Scoring'!$E$5:$J$282,,MATCH(AA$4,'C. PoC Adj Factor Scoring'!$E$3:$AH$3,0)-1),MATCH(AA$2&\" Score\",'C. PoC Adj Factor Scoring'!$E$4:$J$4,0),TRUE)","v":3},{"$f":"VLOOKUP(OFFSET($B:$B,,MATCH(AB$4,$B$4:$F$4,0)-1),OFFSET('C. PoC Adj Factor Scoring'!$E$5:$J$282,,MATCH(AB$4,'C. PoC Adj Factor Scoring'!$E$3:$AH$3,0)-1),MATCH(AB$2&\" Score\",'C. PoC Adj Factor Scoring'!$E$4:$J$4,0),TRUE)","v":1},{"$f":"VLOOKUP(OFFSET($B:$B,,MATCH(AC$4,$B$4:$F$4,0)-1),OFFSET('C. PoC Adj Factor Scoring'!$E$5:$J$282,,MATCH(AC$4,'C. PoC Adj Factor Scoring'!$E$3:$AH$3,0)-1),MATCH(AC$2&\" Score\",'C. PoC Adj Factor Scoring'!$E$4:$J$4,0),TRUE)","v":1},{"$f":"VLOOKUP(OFFSET($B:$B,,MATCH(AD$4,$B$4:$F$4,0)-1),OFFSET('C. PoC Adj Factor Scoring'!$E$5:$J$282,,MATCH(AD$4,'C. PoC Adj Factor Scoring'!$E$3:$AH$3,0)-1),MATCH(AD$2&\" Score\",'C. PoC Adj Factor Scoring'!$E$4:$J$4,0),TRUE)","v":1},{"$f":"VLOOKUP(OFFSET($B:$B,,MATCH(AE$4,$B$4:$F$4,0)-1),OFFSET('C. PoC Adj Factor Scoring'!$E$5:$J$282,,MATCH(AE$4,'C. PoC Adj Factor Scoring'!$E$3:$AH$3,0)-1),MATCH(AE$2&\" Score\",'C. PoC Adj Factor Scoring'!$E$4:$J$4,0),TRUE)","v":1}]
[{"$f":"'A. Population Info'!A115","v":1000336708},{"$f":"'A. Population Info'!L115","v":"OIL"},{"$f":"'A. Population Info'!M115","v":0},{"$f":"'A. Population Info'!N115","v":0},{"$f":"'A. Population Info'!O115","v":0},{"$f":"'A. Population Info'!P115","v":0},{"$f":"VLOOKUP(OFFSET($B:$B,,MATCH(G$4,$B$4:$F$4,0)-1),OFFSET('C. PoC Adj Factor Scoring'!$E$5:$J$282,,MATCH(G$4,'C. PoC Adj Factor Scoring'!$E$3:$AH$3,0)-1),MATCH(G$2&\" Score\",'C. PoC Adj Factor Scoring'!$E$4:$J$4,0),TRUE)","v":4},{"$f":"VLOOKUP(OFFSET($B:$B,,MATCH(H$4,$B$4:$F$4,0)-1),OFFSET('C. PoC Adj Factor Scoring'!$E$5:$J$282,,MATCH(H$4,'C. PoC Adj Factor Scoring'!$E$3:$AH$3,0)-1),MATCH(H$2&\" Score\",'C. PoC Adj Factor Scoring'!$E$4:$J$4,0),TRUE)","v":1},{"$f":"VLOOKUP(OFFSET($B:$B,,MATCH(I$4,$B$4:$F$4,0)-1),OFFSET('C. PoC Adj Factor Scoring'!$E$5:$J$282,,MATCH(I$4,'C. PoC Adj Factor Scoring'!$E$3:$AH$3,0)-1),MATCH(I$2&\" Score\",'C. PoC Adj Factor Scoring'!$E$4:$J$4,0),TRUE)","v":1},{"$f":"VLOOKUP(OFFSET($B:$B,,MATCH(J$4,$B$4:$F$4,0)-1),OFFSET('C. PoC Adj Factor Scoring'!$E$5:$J$282,,MATCH(J$4,'C. PoC Adj Factor Scoring'!$E$3:$AH$3,0)-1),MATCH(J$2&\" Score\",'C. PoC Adj Factor Scoring'!$E$4:$J$4,0),TRUE)","v":1},{"$f":"VLOOKUP(OFFSET($B:$B,,MATCH(K$4,$B$4:$F$4,0)-1),OFFSET('C. PoC Adj Factor Scoring'!$E$5:$J$282,,MATCH(K$4,'C. PoC Adj Factor Scoring'!$E$3:$AH$3,0)-1),MATCH(K$2&\" Score\",'C. PoC Adj Factor Scoring'!$E$4:$J$4,0),TRUE)","v":1},{"$f":"VLOOKUP(OFFSET($B:$B,,MATCH(L$4,$B$4:$F$4,0)-1),OFFSET('C. PoC Adj Factor Scoring'!$E$5:$J$282,,MATCH(L$4,'C. PoC Adj Factor Scoring'!$E$3:$AH$3,0)-1),MATCH(L$2&\" Score\",'C. PoC Adj Factor Scoring'!$E$4:$J$4,0),TRUE)","v":1},{"$f":"VLOOKUP(OFFSET($B:$B,,MATCH(M$4,$B$4:$F$4,0)-1),OFFSET('C. PoC Adj Factor Scoring'!$E$5:$J$282,,MATCH(M$4,'C. PoC Adj Factor Scoring'!$E$3:$AH$3,0)-1),MATCH(M$2&\" Score\",'C. PoC Adj Factor Scoring'!$E$4:$J$4,0),TRUE)","v":1},{"$f":"VLOOKUP(OFFSET($B:$B,,MATCH(N$4,$B$4:$F$4,0)-1),OFFSET('C. PoC Adj Factor Scoring'!$E$5:$J$282,,MATCH(N$4,'C. PoC Adj Factor Scoring'!$E$3:$AH$3,0)-1),MATCH(N$2&\" Score\",'C. PoC Adj Factor Scoring'!$E$4:$J$4,0),TRUE)","v":1},{"$f":"VLOOKUP(OFFSET($B:$B,,MATCH(O$4,$B$4:$F$4,0)-1),OFFSET('C. PoC Adj Factor Scoring'!$E$5:$J$282,,MATCH(O$4,'C. PoC Adj Factor Scoring'!$E$3:$AH$3,0)-1),MATCH(O$2&\" Score\",'C. PoC Adj Factor Scoring'!$E$4:$J$4,0),TRUE)","v":1},{"$f":"VLOOKUP(OFFSET($B:$B,,MATCH(P$4,$B$4:$F$4,0)-1),OFFSET('C. PoC Adj Factor Scoring'!$E$5:$J$282,,MATCH(P$4,'C. PoC Adj Factor Scoring'!$E$3:$AH$3,0)-1),MATCH(P$2&\" Score\",'C. PoC Adj Factor Scoring'!$E$4:$J$4,0),TRUE)","v":1},{"$f":"VLOOKUP(OFFSET($B:$B,,MATCH(Q$4,$B$4:$F$4,0)-1),OFFSET('C. PoC Adj Factor Scoring'!$E$5:$J$282,,MATCH(Q$4,'C. PoC Adj Factor Scoring'!$E$3:$AH$3,0)-1),MATCH(Q$2&\" Score\",'C. PoC Adj Factor Scoring'!$E$4:$J$4,0),TRUE)","v":1},{"$f":"VLOOKUP(OFFSET($B:$B,,MATCH(R$4,$B$4:$F$4,0)-1),OFFSET('C. PoC Adj Factor Scoring'!$E$5:$J$282,,MATCH(R$4,'C. PoC Adj Factor Scoring'!$E$3:$AH$3,0)-1),MATCH(R$2&\" Score\",'C. PoC Adj Factor Scoring'!$E$4:$J$4,0),TRUE)","v":1},{"$f":"VLOOKUP(OFFSET($B:$B,,MATCH(S$4,$B$4:$F$4,0)-1),OFFSET('C. PoC Adj Factor Scoring'!$E$5:$J$282,,MATCH(S$4,'C. PoC Adj Factor Scoring'!$E$3:$AH$3,0)-1),MATCH(S$2&\" Score\",'C. PoC Adj Factor Scoring'!$E$4:$J$4,0),TRUE)","v":1},{"$f":"VLOOKUP(OFFSET($B:$B,,MATCH(T$4,$B$4:$F$4,0)-1),OFFSET('C. PoC Adj Factor Scoring'!$E$5:$J$282,,MATCH(T$4,'C. PoC Adj Factor Scoring'!$E$3:$AH$3,0)-1),MATCH(T$2&\" Score\",'C. PoC Adj Factor Scoring'!$E$4:$J$4,0),TRUE)","v":1},{"$f":"VLOOKUP(OFFSET($B:$B,,MATCH(U$4,$B$4:$F$4,0)-1),OFFSET('C. PoC Adj Factor Scoring'!$E$5:$J$282,,MATCH(U$4,'C. PoC Adj Factor Scoring'!$E$3:$AH$3,0)-1),MATCH(U$2&\" Score\",'C. PoC Adj Factor Scoring'!$E$4:$J$4,0),TRUE)","v":1},{"$f":"VLOOKUP(OFFSET($B:$B,,MATCH(V$4,$B$4:$F$4,0)-1),OFFSET('C. PoC Adj Factor Scoring'!$E$5:$J$282,,MATCH(V$4,'C. PoC Adj Factor Scoring'!$E$3:$AH$3,0)-1),MATCH(V$2&\" Score\",'C. PoC Adj Factor Scoring'!$E$4:$J$4,0),TRUE)","v":1},{"$f":"VLOOKUP(OFFSET($B:$B,,MATCH(W$4,$B$4:$F$4,0)-1),OFFSET('C. PoC Adj Factor Scoring'!$E$5:$J$282,,MATCH(W$4,'C. PoC Adj Factor Scoring'!$E$3:$AH$3,0)-1),MATCH(W$2&\" Score\",'C. PoC Adj Factor Scoring'!$E$4:$J$4,0),TRUE)","v":1},{"$f":"VLOOKUP(OFFSET($B:$B,,MATCH(X$4,$B$4:$F$4,0)-1),OFFSET('C. PoC Adj Factor Scoring'!$E$5:$J$282,,MATCH(X$4,'C. PoC Adj Factor Scoring'!$E$3:$AH$3,0)-1),MATCH(X$2&\" Score\",'C. PoC Adj Factor Scoring'!$E$4:$J$4,0),TRUE)","v":1},{"$f":"VLOOKUP(OFFSET($B:$B,,MATCH(Y$4,$B$4:$F$4,0)-1),OFFSET('C. PoC Adj Factor Scoring'!$E$5:$J$282,,MATCH(Y$4,'C. PoC Adj Factor Scoring'!$E$3:$AH$3,0)-1),MATCH(Y$2&\" Score\",'C. PoC Adj Factor Scoring'!$E$4:$J$4,0),TRUE)","v":1},{"$f":"VLOOKUP(OFFSET($B:$B,,MATCH(Z$4,$B$4:$F$4,0)-1),OFFSET('C. PoC Adj Factor Scoring'!$E$5:$J$282,,MATCH(Z$4,'C. PoC Adj Factor Scoring'!$E$3:$AH$3,0)-1),MATCH(Z$2&\" Score\",'C. PoC Adj Factor Scoring'!$E$4:$J$4,0),TRUE)","v":1},{"$f":"VLOOKUP(OFFSET($B:$B,,MATCH(AA$4,$B$4:$F$4,0)-1),OFFSET('C. PoC Adj Factor Scoring'!$E$5:$J$282,,MATCH(AA$4,'C. PoC Adj Factor Scoring'!$E$3:$AH$3,0)-1),MATCH(AA$2&\" Score\",'C. PoC Adj Factor Scoring'!$E$4:$J$4,0),TRUE)","v":3},{"$f":"VLOOKUP(OFFSET($B:$B,,MATCH(AB$4,$B$4:$F$4,0)-1),OFFSET('C. PoC Adj Factor Scoring'!$E$5:$J$282,,MATCH(AB$4,'C. PoC Adj Factor Scoring'!$E$3:$AH$3,0)-1),MATCH(AB$2&\" Score\",'C. PoC Adj Factor Scoring'!$E$4:$J$4,0),TRUE)","v":1},{"$f":"VLOOKUP(OFFSET($B:$B,,MATCH(AC$4,$B$4:$F$4,0)-1),OFFSET('C. PoC Adj Factor Scoring'!$E$5:$J$282,,MATCH(AC$4,'C. PoC Adj Factor Scoring'!$E$3:$AH$3,0)-1),MATCH(AC$2&\" Score\",'C. PoC Adj Factor Scoring'!$E$4:$J$4,0),TRUE)","v":1},{"$f":"VLOOKUP(OFFSET($B:$B,,MATCH(AD$4,$B$4:$F$4,0)-1),OFFSET('C. PoC Adj Factor Scoring'!$E$5:$J$282,,MATCH(AD$4,'C. PoC Adj Factor Scoring'!$E$3:$AH$3,0)-1),MATCH(AD$2&\" Score\",'C. PoC Adj Factor Scoring'!$E$4:$J$4,0),TRUE)","v":1},{"$f":"VLOOKUP(OFFSET($B:$B,,MATCH(AE$4,$B$4:$F$4,0)-1),OFFSET('C. PoC Adj Factor Scoring'!$E$5:$J$282,,MATCH(AE$4,'C. PoC Adj Factor Scoring'!$E$3:$AH$3,0)-1),MATCH(AE$2&\" Score\",'C. PoC Adj Factor Scoring'!$E$4:$J$4,0),TRUE)","v":1}]
[{"$f":"'A. Population Info'!A116","v":1000336737},{"$f":"'A. Population Info'!L116","v":"OIL"},{"$f":"'A. Population Info'!M116","v":0},{"$f":"'A. Population Info'!N116","v":0},{"$f":"'A. Population Info'!O116","v":0},{"$f":"'A. Population Info'!P116","v":0},{"$f":"VLOOKUP(OFFSET($B:$B,,MATCH(G$4,$B$4:$F$4,0)-1),OFFSET('C. PoC Adj Factor Scoring'!$E$5:$J$282,,MATCH(G$4,'C. PoC Adj Factor Scoring'!$E$3:$AH$3,0)-1),MATCH(G$2&\" Score\",'C. PoC Adj Factor Scoring'!$E$4:$J$4,0),TRUE)","v":4},{"$f":"VLOOKUP(OFFSET($B:$B,,MATCH(H$4,$B$4:$F$4,0)-1),OFFSET('C. PoC Adj Factor Scoring'!$E$5:$J$282,,MATCH(H$4,'C. PoC Adj Factor Scoring'!$E$3:$AH$3,0)-1),MATCH(H$2&\" Score\",'C. PoC Adj Factor Scoring'!$E$4:$J$4,0),TRUE)","v":1},{"$f":"VLOOKUP(OFFSET($B:$B,,MATCH(I$4,$B$4:$F$4,0)-1),OFFSET('C. PoC Adj Factor Scoring'!$E$5:$J$282,,MATCH(I$4,'C. PoC Adj Factor Scoring'!$E$3:$AH$3,0)-1),MATCH(I$2&\" Score\",'C. PoC Adj Factor Scoring'!$E$4:$J$4,0),TRUE)","v":1},{"$f":"VLOOKUP(OFFSET($B:$B,,MATCH(J$4,$B$4:$F$4,0)-1),OFFSET('C. PoC Adj Factor Scoring'!$E$5:$J$282,,MATCH(J$4,'C. PoC Adj Factor Scoring'!$E$3:$AH$3,0)-1),MATCH(J$2&\" Score\",'C. PoC Adj Factor Scoring'!$E$4:$J$4,0),TRUE)","v":1},{"$f":"VLOOKUP(OFFSET($B:$B,,MATCH(K$4,$B$4:$F$4,0)-1),OFFSET('C. PoC Adj Factor Scoring'!$E$5:$J$282,,MATCH(K$4,'C. PoC Adj Factor Scoring'!$E$3:$AH$3,0)-1),MATCH(K$2&\" Score\",'C. PoC Adj Factor Scoring'!$E$4:$J$4,0),TRUE)","v":1},{"$f":"VLOOKUP(OFFSET($B:$B,,MATCH(L$4,$B$4:$F$4,0)-1),OFFSET('C. PoC Adj Factor Scoring'!$E$5:$J$282,,MATCH(L$4,'C. PoC Adj Factor Scoring'!$E$3:$AH$3,0)-1),MATCH(L$2&\" Score\",'C. PoC Adj Factor Scoring'!$E$4:$J$4,0),TRUE)","v":1},{"$f":"VLOOKUP(OFFSET($B:$B,,MATCH(M$4,$B$4:$F$4,0)-1),OFFSET('C. PoC Adj Factor Scoring'!$E$5:$J$282,,MATCH(M$4,'C. PoC Adj Factor Scoring'!$E$3:$AH$3,0)-1),MATCH(M$2&\" Score\",'C. PoC Adj Factor Scoring'!$E$4:$J$4,0),TRUE)","v":1},{"$f":"VLOOKUP(OFFSET($B:$B,,MATCH(N$4,$B$4:$F$4,0)-1),OFFSET('C. PoC Adj Factor Scoring'!$E$5:$J$282,,MATCH(N$4,'C. PoC Adj Factor Scoring'!$E$3:$AH$3,0)-1),MATCH(N$2&\" Score\",'C. PoC Adj Factor Scoring'!$E$4:$J$4,0),TRUE)","v":1},{"$f":"VLOOKUP(OFFSET($B:$B,,MATCH(O$4,$B$4:$F$4,0)-1),OFFSET('C. PoC Adj Factor Scoring'!$E$5:$J$282,,MATCH(O$4,'C. PoC Adj Factor Scoring'!$E$3:$AH$3,0)-1),MATCH(O$2&\" Score\",'C. PoC Adj Factor Scoring'!$E$4:$J$4,0),TRUE)","v":1},{"$f":"VLOOKUP(OFFSET($B:$B,,MATCH(P$4,$B$4:$F$4,0)-1),OFFSET('C. PoC Adj Factor Scoring'!$E$5:$J$282,,MATCH(P$4,'C. PoC Adj Factor Scoring'!$E$3:$AH$3,0)-1),MATCH(P$2&\" Score\",'C. PoC Adj Factor Scoring'!$E$4:$J$4,0),TRUE)","v":1},{"$f":"VLOOKUP(OFFSET($B:$B,,MATCH(Q$4,$B$4:$F$4,0)-1),OFFSET('C. PoC Adj Factor Scoring'!$E$5:$J$282,,MATCH(Q$4,'C. PoC Adj Factor Scoring'!$E$3:$AH$3,0)-1),MATCH(Q$2&\" Score\",'C. PoC Adj Factor Scoring'!$E$4:$J$4,0),TRUE)","v":1},{"$f":"VLOOKUP(OFFSET($B:$B,,MATCH(R$4,$B$4:$F$4,0)-1),OFFSET('C. PoC Adj Factor Scoring'!$E$5:$J$282,,MATCH(R$4,'C. PoC Adj Factor Scoring'!$E$3:$AH$3,0)-1),MATCH(R$2&\" Score\",'C. PoC Adj Factor Scoring'!$E$4:$J$4,0),TRUE)","v":1},{"$f":"VLOOKUP(OFFSET($B:$B,,MATCH(S$4,$B$4:$F$4,0)-1),OFFSET('C. PoC Adj Factor Scoring'!$E$5:$J$282,,MATCH(S$4,'C. PoC Adj Factor Scoring'!$E$3:$AH$3,0)-1),MATCH(S$2&\" Score\",'C. PoC Adj Factor Scoring'!$E$4:$J$4,0),TRUE)","v":1},{"$f":"VLOOKUP(OFFSET($B:$B,,MATCH(T$4,$B$4:$F$4,0)-1),OFFSET('C. PoC Adj Factor Scoring'!$E$5:$J$282,,MATCH(T$4,'C. PoC Adj Factor Scoring'!$E$3:$AH$3,0)-1),MATCH(T$2&\" Score\",'C. PoC Adj Factor Scoring'!$E$4:$J$4,0),TRUE)","v":1},{"$f":"VLOOKUP(OFFSET($B:$B,,MATCH(U$4,$B$4:$F$4,0)-1),OFFSET('C. PoC Adj Factor Scoring'!$E$5:$J$282,,MATCH(U$4,'C. PoC Adj Factor Scoring'!$E$3:$AH$3,0)-1),MATCH(U$2&\" Score\",'C. PoC Adj Factor Scoring'!$E$4:$J$4,0),TRUE)","v":1},{"$f":"VLOOKUP(OFFSET($B:$B,,MATCH(V$4,$B$4:$F$4,0)-1),OFFSET('C. PoC Adj Factor Scoring'!$E$5:$J$282,,MATCH(V$4,'C. PoC Adj Factor Scoring'!$E$3:$AH$3,0)-1),MATCH(V$2&\" Score\",'C. PoC Adj Factor Scoring'!$E$4:$J$4,0),TRUE)","v":1},{"$f":"VLOOKUP(OFFSET($B:$B,,MATCH(W$4,$B$4:$F$4,0)-1),OFFSET('C. PoC Adj Factor Scoring'!$E$5:$J$282,,MATCH(W$4,'C. PoC Adj Factor Scoring'!$E$3:$AH$3,0)-1),MATCH(W$2&\" Score\",'C. PoC Adj Factor Scoring'!$E$4:$J$4,0),TRUE)","v":1},{"$f":"VLOOKUP(OFFSET($B:$B,,MATCH(X$4,$B$4:$F$4,0)-1),OFFSET('C. PoC Adj Factor Scoring'!$E$5:$J$282,,MATCH(X$4,'C. PoC Adj Factor Scoring'!$E$3:$AH$3,0)-1),MATCH(X$2&\" Score\",'C. PoC Adj Factor Scoring'!$E$4:$J$4,0),TRUE)","v":1},{"$f":"VLOOKUP(OFFSET($B:$B,,MATCH(Y$4,$B$4:$F$4,0)-1),OFFSET('C. PoC Adj Factor Scoring'!$E$5:$J$282,,MATCH(Y$4,'C. PoC Adj Factor Scoring'!$E$3:$AH$3,0)-1),MATCH(Y$2&\" Score\",'C. PoC Adj Factor Scoring'!$E$4:$J$4,0),TRUE)","v":1},{"$f":"VLOOKUP(OFFSET($B:$B,,MATCH(Z$4,$B$4:$F$4,0)-1),OFFSET('C. PoC Adj Factor Scoring'!$E$5:$J$282,,MATCH(Z$4,'C. PoC Adj Factor Scoring'!$E$3:$AH$3,0)-1),MATCH(Z$2&\" Score\",'C. PoC Adj Factor Scoring'!$E$4:$J$4,0),TRUE)","v":1},{"$f":"VLOOKUP(OFFSET($B:$B,,MATCH(AA$4,$B$4:$F$4,0)-1),OFFSET('C. PoC Adj Factor Scoring'!$E$5:$J$282,,MATCH(AA$4,'C. PoC Adj Factor Scoring'!$E$3:$AH$3,0)-1),MATCH(AA$2&\" Score\",'C. PoC Adj Factor Scoring'!$E$4:$J$4,0),TRUE)","v":3},{"$f":"VLOOKUP(OFFSET($B:$B,,MATCH(AB$4,$B$4:$F$4,0)-1),OFFSET('C. PoC Adj Factor Scoring'!$E$5:$J$282,,MATCH(AB$4,'C. PoC Adj Factor Scoring'!$E$3:$AH$3,0)-1),MATCH(AB$2&\" Score\",'C. PoC Adj Factor Scoring'!$E$4:$J$4,0),TRUE)","v":1},{"$f":"VLOOKUP(OFFSET($B:$B,,MATCH(AC$4,$B$4:$F$4,0)-1),OFFSET('C. PoC Adj Factor Scoring'!$E$5:$J$282,,MATCH(AC$4,'C. PoC Adj Factor Scoring'!$E$3:$AH$3,0)-1),MATCH(AC$2&\" Score\",'C. PoC Adj Factor Scoring'!$E$4:$J$4,0),TRUE)","v":1},{"$f":"VLOOKUP(OFFSET($B:$B,,MATCH(AD$4,$B$4:$F$4,0)-1),OFFSET('C. PoC Adj Factor Scoring'!$E$5:$J$282,,MATCH(AD$4,'C. PoC Adj Factor Scoring'!$E$3:$AH$3,0)-1),MATCH(AD$2&\" Score\",'C. PoC Adj Factor Scoring'!$E$4:$J$4,0),TRUE)","v":1},{"$f":"VLOOKUP(OFFSET($B:$B,,MATCH(AE$4,$B$4:$F$4,0)-1),OFFSET('C. PoC Adj Factor Scoring'!$E$5:$J$282,,MATCH(AE$4,'C. PoC Adj Factor Scoring'!$E$3:$AH$3,0)-1),MATCH(AE$2&\" Score\",'C. PoC Adj Factor Scoring'!$E$4:$J$4,0),TRUE)","v":1}]
[{"$f":"'A. Population Info'!A117","v":1000336855},{"$f":"'A. Population Info'!L117","v":"OIL"},{"$f":"'A. Population Info'!M117","v":0},{"$f":"'A. Population Info'!N117","v":0},{"$f":"'A. Population Info'!O117","v":0},{"$f":"'A. Population Info'!P117","v":0},{"$f":"VLOOKUP(OFFSET($B:$B,,MATCH(G$4,$B$4:$F$4,0)-1),OFFSET('C. PoC Adj Factor Scoring'!$E$5:$J$282,,MATCH(G$4,'C. PoC Adj Factor Scoring'!$E$3:$AH$3,0)-1),MATCH(G$2&\" Score\",'C. PoC Adj Factor Scoring'!$E$4:$J$4,0),TRUE)","v":4},{"$f":"VLOOKUP(OFFSET($B:$B,,MATCH(H$4,$B$4:$F$4,0)-1),OFFSET('C. PoC Adj Factor Scoring'!$E$5:$J$282,,MATCH(H$4,'C. PoC Adj Factor Scoring'!$E$3:$AH$3,0)-1),MATCH(H$2&\" Score\",'C. PoC Adj Factor Scoring'!$E$4:$J$4,0),TRUE)","v":1},{"$f":"VLOOKUP(OFFSET($B:$B,,MATCH(I$4,$B$4:$F$4,0)-1),OFFSET('C. PoC Adj Factor Scoring'!$E$5:$J$282,,MATCH(I$4,'C. PoC Adj Factor Scoring'!$E$3:$AH$3,0)-1),MATCH(I$2&\" Score\",'C. PoC Adj Factor Scoring'!$E$4:$J$4,0),TRUE)","v":1},{"$f":"VLOOKUP(OFFSET($B:$B,,MATCH(J$4,$B$4:$F$4,0)-1),OFFSET('C. PoC Adj Factor Scoring'!$E$5:$J$282,,MATCH(J$4,'C. PoC Adj Factor Scoring'!$E$3:$AH$3,0)-1),MATCH(J$2&\" Score\",'C. PoC Adj Factor Scoring'!$E$4:$J$4,0),TRUE)","v":1},{"$f":"VLOOKUP(OFFSET($B:$B,,MATCH(K$4,$B$4:$F$4,0)-1),OFFSET('C. PoC Adj Factor Scoring'!$E$5:$J$282,,MATCH(K$4,'C. PoC Adj Factor Scoring'!$E$3:$AH$3,0)-1),MATCH(K$2&\" Score\",'C. PoC Adj Factor Scoring'!$E$4:$J$4,0),TRUE)","v":1},{"$f":"VLOOKUP(OFFSET($B:$B,,MATCH(L$4,$B$4:$F$4,0)-1),OFFSET('C. PoC Adj Factor Scoring'!$E$5:$J$282,,MATCH(L$4,'C. PoC Adj Factor Scoring'!$E$3:$AH$3,0)-1),MATCH(L$2&\" Score\",'C. PoC Adj Factor Scoring'!$E$4:$J$4,0),TRUE)","v":1},{"$f":"VLOOKUP(OFFSET($B:$B,,MATCH(M$4,$B$4:$F$4,0)-1),OFFSET('C. PoC Adj Factor Scoring'!$E$5:$J$282,,MATCH(M$4,'C. PoC Adj Factor Scoring'!$E$3:$AH$3,0)-1),MATCH(M$2&\" Score\",'C. PoC Adj Factor Scoring'!$E$4:$J$4,0),TRUE)","v":1},{"$f":"VLOOKUP(OFFSET($B:$B,,MATCH(N$4,$B$4:$F$4,0)-1),OFFSET('C. PoC Adj Factor Scoring'!$E$5:$J$282,,MATCH(N$4,'C. PoC Adj Factor Scoring'!$E$3:$AH$3,0)-1),MATCH(N$2&\" Score\",'C. PoC Adj Factor Scoring'!$E$4:$J$4,0),TRUE)","v":1},{"$f":"VLOOKUP(OFFSET($B:$B,,MATCH(O$4,$B$4:$F$4,0)-1),OFFSET('C. PoC Adj Factor Scoring'!$E$5:$J$282,,MATCH(O$4,'C. PoC Adj Factor Scoring'!$E$3:$AH$3,0)-1),MATCH(O$2&\" Score\",'C. PoC Adj Factor Scoring'!$E$4:$J$4,0),TRUE)","v":1},{"$f":"VLOOKUP(OFFSET($B:$B,,MATCH(P$4,$B$4:$F$4,0)-1),OFFSET('C. PoC Adj Factor Scoring'!$E$5:$J$282,,MATCH(P$4,'C. PoC Adj Factor Scoring'!$E$3:$AH$3,0)-1),MATCH(P$2&\" Score\",'C. PoC Adj Factor Scoring'!$E$4:$J$4,0),TRUE)","v":1},{"$f":"VLOOKUP(OFFSET($B:$B,,MATCH(Q$4,$B$4:$F$4,0)-1),OFFSET('C. PoC Adj Factor Scoring'!$E$5:$J$282,,MATCH(Q$4,'C. PoC Adj Factor Scoring'!$E$3:$AH$3,0)-1),MATCH(Q$2&\" Score\",'C. PoC Adj Factor Scoring'!$E$4:$J$4,0),TRUE)","v":1},{"$f":"VLOOKUP(OFFSET($B:$B,,MATCH(R$4,$B$4:$F$4,0)-1),OFFSET('C. PoC Adj Factor Scoring'!$E$5:$J$282,,MATCH(R$4,'C. PoC Adj Factor Scoring'!$E$3:$AH$3,0)-1),MATCH(R$2&\" Score\",'C. PoC Adj Factor Scoring'!$E$4:$J$4,0),TRUE)","v":1},{"$f":"VLOOKUP(OFFSET($B:$B,,MATCH(S$4,$B$4:$F$4,0)-1),OFFSET('C. PoC Adj Factor Scoring'!$E$5:$J$282,,MATCH(S$4,'C. PoC Adj Factor Scoring'!$E$3:$AH$3,0)-1),MATCH(S$2&\" Score\",'C. PoC Adj Factor Scoring'!$E$4:$J$4,0),TRUE)","v":1},{"$f":"VLOOKUP(OFFSET($B:$B,,MATCH(T$4,$B$4:$F$4,0)-1),OFFSET('C. PoC Adj Factor Scoring'!$E$5:$J$282,,MATCH(T$4,'C. PoC Adj Factor Scoring'!$E$3:$AH$3,0)-1),MATCH(T$2&\" Score\",'C. PoC Adj Factor Scoring'!$E$4:$J$4,0),TRUE)","v":1},{"$f":"VLOOKUP(OFFSET($B:$B,,MATCH(U$4,$B$4:$F$4,0)-1),OFFSET('C. PoC Adj Factor Scoring'!$E$5:$J$282,,MATCH(U$4,'C. PoC Adj Factor Scoring'!$E$3:$AH$3,0)-1),MATCH(U$2&\" Score\",'C. PoC Adj Factor Scoring'!$E$4:$J$4,0),TRUE)","v":1},{"$f":"VLOOKUP(OFFSET($B:$B,,MATCH(V$4,$B$4:$F$4,0)-1),OFFSET('C. PoC Adj Factor Scoring'!$E$5:$J$282,,MATCH(V$4,'C. PoC Adj Factor Scoring'!$E$3:$AH$3,0)-1),MATCH(V$2&\" Score\",'C. PoC Adj Factor Scoring'!$E$4:$J$4,0),TRUE)","v":1},{"$f":"VLOOKUP(OFFSET($B:$B,,MATCH(W$4,$B$4:$F$4,0)-1),OFFSET('C. PoC Adj Factor Scoring'!$E$5:$J$282,,MATCH(W$4,'C. PoC Adj Factor Scoring'!$E$3:$AH$3,0)-1),MATCH(W$2&\" Score\",'C. PoC Adj Factor Scoring'!$E$4:$J$4,0),TRUE)","v":1},{"$f":"VLOOKUP(OFFSET($B:$B,,MATCH(X$4,$B$4:$F$4,0)-1),OFFSET('C. PoC Adj Factor Scoring'!$E$5:$J$282,,MATCH(X$4,'C. PoC Adj Factor Scoring'!$E$3:$AH$3,0)-1),MATCH(X$2&\" Score\",'C. PoC Adj Factor Scoring'!$E$4:$J$4,0),TRUE)","v":1},{"$f":"VLOOKUP(OFFSET($B:$B,,MATCH(Y$4,$B$4:$F$4,0)-1),OFFSET('C. PoC Adj Factor Scoring'!$E$5:$J$282,,MATCH(Y$4,'C. PoC Adj Factor Scoring'!$E$3:$AH$3,0)-1),MATCH(Y$2&\" Score\",'C. PoC Adj Factor Scoring'!$E$4:$J$4,0),TRUE)","v":1},{"$f":"VLOOKUP(OFFSET($B:$B,,MATCH(Z$4,$B$4:$F$4,0)-1),OFFSET('C. PoC Adj Factor Scoring'!$E$5:$J$282,,MATCH(Z$4,'C. PoC Adj Factor Scoring'!$E$3:$AH$3,0)-1),MATCH(Z$2&\" Score\",'C. PoC Adj Factor Scoring'!$E$4:$J$4,0),TRUE)","v":1},{"$f":"VLOOKUP(OFFSET($B:$B,,MATCH(AA$4,$B$4:$F$4,0)-1),OFFSET('C. PoC Adj Factor Scoring'!$E$5:$J$282,,MATCH(AA$4,'C. PoC Adj Factor Scoring'!$E$3:$AH$3,0)-1),MATCH(AA$2&\" Score\",'C. PoC Adj Factor Scoring'!$E$4:$J$4,0),TRUE)","v":3},{"$f":"VLOOKUP(OFFSET($B:$B,,MATCH(AB$4,$B$4:$F$4,0)-1),OFFSET('C. PoC Adj Factor Scoring'!$E$5:$J$282,,MATCH(AB$4,'C. PoC Adj Factor Scoring'!$E$3:$AH$3,0)-1),MATCH(AB$2&\" Score\",'C. PoC Adj Factor Scoring'!$E$4:$J$4,0),TRUE)","v":1},{"$f":"VLOOKUP(OFFSET($B:$B,,MATCH(AC$4,$B$4:$F$4,0)-1),OFFSET('C. PoC Adj Factor Scoring'!$E$5:$J$282,,MATCH(AC$4,'C. PoC Adj Factor Scoring'!$E$3:$AH$3,0)-1),MATCH(AC$2&\" Score\",'C. PoC Adj Factor Scoring'!$E$4:$J$4,0),TRUE)","v":1},{"$f":"VLOOKUP(OFFSET($B:$B,,MATCH(AD$4,$B$4:$F$4,0)-1),OFFSET('C. PoC Adj Factor Scoring'!$E$5:$J$282,,MATCH(AD$4,'C. PoC Adj Factor Scoring'!$E$3:$AH$3,0)-1),MATCH(AD$2&\" Score\",'C. PoC Adj Factor Scoring'!$E$4:$J$4,0),TRUE)","v":1},{"$f":"VLOOKUP(OFFSET($B:$B,,MATCH(AE$4,$B$4:$F$4,0)-1),OFFSET('C. PoC Adj Factor Scoring'!$E$5:$J$282,,MATCH(AE$4,'C. PoC Adj Factor Scoring'!$E$3:$AH$3,0)-1),MATCH(AE$2&\" Score\",'C. PoC Adj Factor Scoring'!$E$4:$J$4,0),TRUE)","v":1}]
[{"$f":"'A. Population Info'!A118","v":1000336884},{"$f":"'A. Population Info'!L118","v":"OIL"},{"$f":"'A. Population Info'!M118","v":0},{"$f":"'A. Population Info'!N118","v":0},{"$f":"'A. Population Info'!O118","v":0},{"$f":"'A. Population Info'!P118","v":0},{"$f":"VLOOKUP(OFFSET($B:$B,,MATCH(G$4,$B$4:$F$4,0)-1),OFFSET('C. PoC Adj Factor Scoring'!$E$5:$J$282,,MATCH(G$4,'C. PoC Adj Factor Scoring'!$E$3:$AH$3,0)-1),MATCH(G$2&\" Score\",'C. PoC Adj Factor Scoring'!$E$4:$J$4,0),TRUE)","v":4},{"$f":"VLOOKUP(OFFSET($B:$B,,MATCH(H$4,$B$4:$F$4,0)-1),OFFSET('C. PoC Adj Factor Scoring'!$E$5:$J$282,,MATCH(H$4,'C. PoC Adj Factor Scoring'!$E$3:$AH$3,0)-1),MATCH(H$2&\" Score\",'C. PoC Adj Factor Scoring'!$E$4:$J$4,0),TRUE)","v":1},{"$f":"VLOOKUP(OFFSET($B:$B,,MATCH(I$4,$B$4:$F$4,0)-1),OFFSET('C. PoC Adj Factor Scoring'!$E$5:$J$282,,MATCH(I$4,'C. PoC Adj Factor Scoring'!$E$3:$AH$3,0)-1),MATCH(I$2&\" Score\",'C. PoC Adj Factor Scoring'!$E$4:$J$4,0),TRUE)","v":1},{"$f":"VLOOKUP(OFFSET($B:$B,,MATCH(J$4,$B$4:$F$4,0)-1),OFFSET('C. PoC Adj Factor Scoring'!$E$5:$J$282,,MATCH(J$4,'C. PoC Adj Factor Scoring'!$E$3:$AH$3,0)-1),MATCH(J$2&\" Score\",'C. PoC Adj Factor Scoring'!$E$4:$J$4,0),TRUE)","v":1},{"$f":"VLOOKUP(OFFSET($B:$B,,MATCH(K$4,$B$4:$F$4,0)-1),OFFSET('C. PoC Adj Factor Scoring'!$E$5:$J$282,,MATCH(K$4,'C. PoC Adj Factor Scoring'!$E$3:$AH$3,0)-1),MATCH(K$2&\" Score\",'C. PoC Adj Factor Scoring'!$E$4:$J$4,0),TRUE)","v":1},{"$f":"VLOOKUP(OFFSET($B:$B,,MATCH(L$4,$B$4:$F$4,0)-1),OFFSET('C. PoC Adj Factor Scoring'!$E$5:$J$282,,MATCH(L$4,'C. PoC Adj Factor Scoring'!$E$3:$AH$3,0)-1),MATCH(L$2&\" Score\",'C. PoC Adj Factor Scoring'!$E$4:$J$4,0),TRUE)","v":1},{"$f":"VLOOKUP(OFFSET($B:$B,,MATCH(M$4,$B$4:$F$4,0)-1),OFFSET('C. PoC Adj Factor Scoring'!$E$5:$J$282,,MATCH(M$4,'C. PoC Adj Factor Scoring'!$E$3:$AH$3,0)-1),MATCH(M$2&\" Score\",'C. PoC Adj Factor Scoring'!$E$4:$J$4,0),TRUE)","v":1},{"$f":"VLOOKUP(OFFSET($B:$B,,MATCH(N$4,$B$4:$F$4,0)-1),OFFSET('C. PoC Adj Factor Scoring'!$E$5:$J$282,,MATCH(N$4,'C. PoC Adj Factor Scoring'!$E$3:$AH$3,0)-1),MATCH(N$2&\" Score\",'C. PoC Adj Factor Scoring'!$E$4:$J$4,0),TRUE)","v":1},{"$f":"VLOOKUP(OFFSET($B:$B,,MATCH(O$4,$B$4:$F$4,0)-1),OFFSET('C. PoC Adj Factor Scoring'!$E$5:$J$282,,MATCH(O$4,'C. PoC Adj Factor Scoring'!$E$3:$AH$3,0)-1),MATCH(O$2&\" Score\",'C. PoC Adj Factor Scoring'!$E$4:$J$4,0),TRUE)","v":1},{"$f":"VLOOKUP(OFFSET($B:$B,,MATCH(P$4,$B$4:$F$4,0)-1),OFFSET('C. PoC Adj Factor Scoring'!$E$5:$J$282,,MATCH(P$4,'C. PoC Adj Factor Scoring'!$E$3:$AH$3,0)-1),MATCH(P$2&\" Score\",'C. PoC Adj Factor Scoring'!$E$4:$J$4,0),TRUE)","v":1},{"$f":"VLOOKUP(OFFSET($B:$B,,MATCH(Q$4,$B$4:$F$4,0)-1),OFFSET('C. PoC Adj Factor Scoring'!$E$5:$J$282,,MATCH(Q$4,'C. PoC Adj Factor Scoring'!$E$3:$AH$3,0)-1),MATCH(Q$2&\" Score\",'C. PoC Adj Factor Scoring'!$E$4:$J$4,0),TRUE)","v":1},{"$f":"VLOOKUP(OFFSET($B:$B,,MATCH(R$4,$B$4:$F$4,0)-1),OFFSET('C. PoC Adj Factor Scoring'!$E$5:$J$282,,MATCH(R$4,'C. PoC Adj Factor Scoring'!$E$3:$AH$3,0)-1),MATCH(R$2&\" Score\",'C. PoC Adj Factor Scoring'!$E$4:$J$4,0),TRUE)","v":1},{"$f":"VLOOKUP(OFFSET($B:$B,,MATCH(S$4,$B$4:$F$4,0)-1),OFFSET('C. PoC Adj Factor Scoring'!$E$5:$J$282,,MATCH(S$4,'C. PoC Adj Factor Scoring'!$E$3:$AH$3,0)-1),MATCH(S$2&\" Score\",'C. PoC Adj Factor Scoring'!$E$4:$J$4,0),TRUE)","v":1},{"$f":"VLOOKUP(OFFSET($B:$B,,MATCH(T$4,$B$4:$F$4,0)-1),OFFSET('C. PoC Adj Factor Scoring'!$E$5:$J$282,,MATCH(T$4,'C. PoC Adj Factor Scoring'!$E$3:$AH$3,0)-1),MATCH(T$2&\" Score\",'C. PoC Adj Factor Scoring'!$E$4:$J$4,0),TRUE)","v":1},{"$f":"VLOOKUP(OFFSET($B:$B,,MATCH(U$4,$B$4:$F$4,0)-1),OFFSET('C. PoC Adj Factor Scoring'!$E$5:$J$282,,MATCH(U$4,'C. PoC Adj Factor Scoring'!$E$3:$AH$3,0)-1),MATCH(U$2&\" Score\",'C. PoC Adj Factor Scoring'!$E$4:$J$4,0),TRUE)","v":1},{"$f":"VLOOKUP(OFFSET($B:$B,,MATCH(V$4,$B$4:$F$4,0)-1),OFFSET('C. PoC Adj Factor Scoring'!$E$5:$J$282,,MATCH(V$4,'C. PoC Adj Factor Scoring'!$E$3:$AH$3,0)-1),MATCH(V$2&\" Score\",'C. PoC Adj Factor Scoring'!$E$4:$J$4,0),TRUE)","v":1},{"$f":"VLOOKUP(OFFSET($B:$B,,MATCH(W$4,$B$4:$F$4,0)-1),OFFSET('C. PoC Adj Factor Scoring'!$E$5:$J$282,,MATCH(W$4,'C. PoC Adj Factor Scoring'!$E$3:$AH$3,0)-1),MATCH(W$2&\" Score\",'C. PoC Adj Factor Scoring'!$E$4:$J$4,0),TRUE)","v":1},{"$f":"VLOOKUP(OFFSET($B:$B,,MATCH(X$4,$B$4:$F$4,0)-1),OFFSET('C. PoC Adj Factor Scoring'!$E$5:$J$282,,MATCH(X$4,'C. PoC Adj Factor Scoring'!$E$3:$AH$3,0)-1),MATCH(X$2&\" Score\",'C. PoC Adj Factor Scoring'!$E$4:$J$4,0),TRUE)","v":1},{"$f":"VLOOKUP(OFFSET($B:$B,,MATCH(Y$4,$B$4:$F$4,0)-1),OFFSET('C. PoC Adj Factor Scoring'!$E$5:$J$282,,MATCH(Y$4,'C. PoC Adj Factor Scoring'!$E$3:$AH$3,0)-1),MATCH(Y$2&\" Score\",'C. PoC Adj Factor Scoring'!$E$4:$J$4,0),TRUE)","v":1},{"$f":"VLOOKUP(OFFSET($B:$B,,MATCH(Z$4,$B$4:$F$4,0)-1),OFFSET('C. PoC Adj Factor Scoring'!$E$5:$J$282,,MATCH(Z$4,'C. PoC Adj Factor Scoring'!$E$3:$AH$3,0)-1),MATCH(Z$2&\" Score\",'C. PoC Adj Factor Scoring'!$E$4:$J$4,0),TRUE)","v":1},{"$f":"VLOOKUP(OFFSET($B:$B,,MATCH(AA$4,$B$4:$F$4,0)-1),OFFSET('C. PoC Adj Factor Scoring'!$E$5:$J$282,,MATCH(AA$4,'C. PoC Adj Factor Scoring'!$E$3:$AH$3,0)-1),MATCH(AA$2&\" Score\",'C. PoC Adj Factor Scoring'!$E$4:$J$4,0),TRUE)","v":3},{"$f":"VLOOKUP(OFFSET($B:$B,,MATCH(AB$4,$B$4:$F$4,0)-1),OFFSET('C. PoC Adj Factor Scoring'!$E$5:$J$282,,MATCH(AB$4,'C. PoC Adj Factor Scoring'!$E$3:$AH$3,0)-1),MATCH(AB$2&\" Score\",'C. PoC Adj Factor Scoring'!$E$4:$J$4,0),TRUE)","v":1},{"$f":"VLOOKUP(OFFSET($B:$B,,MATCH(AC$4,$B$4:$F$4,0)-1),OFFSET('C. PoC Adj Factor Scoring'!$E$5:$J$282,,MATCH(AC$4,'C. PoC Adj Factor Scoring'!$E$3:$AH$3,0)-1),MATCH(AC$2&\" Score\",'C. PoC Adj Factor Scoring'!$E$4:$J$4,0),TRUE)","v":1},{"$f":"VLOOKUP(OFFSET($B:$B,,MATCH(AD$4,$B$4:$F$4,0)-1),OFFSET('C. PoC Adj Factor Scoring'!$E$5:$J$282,,MATCH(AD$4,'C. PoC Adj Factor Scoring'!$E$3:$AH$3,0)-1),MATCH(AD$2&\" Score\",'C. PoC Adj Factor Scoring'!$E$4:$J$4,0),TRUE)","v":1},{"$f":"VLOOKUP(OFFSET($B:$B,,MATCH(AE$4,$B$4:$F$4,0)-1),OFFSET('C. PoC Adj Factor Scoring'!$E$5:$J$282,,MATCH(AE$4,'C. PoC Adj Factor Scoring'!$E$3:$AH$3,0)-1),MATCH(AE$2&\" Score\",'C. PoC Adj Factor Scoring'!$E$4:$J$4,0),TRUE)","v":1}]
[{"$f":"'A. Population Info'!A119","v":1000336912},{"$f":"'A. Population Info'!L119","v":"OIL"},{"$f":"'A. Population Info'!M119","v":0},{"$f":"'A. Population Info'!N119","v":0},{"$f":"'A. Population Info'!O119","v":0},{"$f":"'A. Population Info'!P119","v":0},{"$f":"VLOOKUP(OFFSET($B:$B,,MATCH(G$4,$B$4:$F$4,0)-1),OFFSET('C. PoC Adj Factor Scoring'!$E$5:$J$282,,MATCH(G$4,'C. PoC Adj Factor Scoring'!$E$3:$AH$3,0)-1),MATCH(G$2&\" Score\",'C. PoC Adj Factor Scoring'!$E$4:$J$4,0),TRUE)","v":4},{"$f":"VLOOKUP(OFFSET($B:$B,,MATCH(H$4,$B$4:$F$4,0)-1),OFFSET('C. PoC Adj Factor Scoring'!$E$5:$J$282,,MATCH(H$4,'C. PoC Adj Factor Scoring'!$E$3:$AH$3,0)-1),MATCH(H$2&\" Score\",'C. PoC Adj Factor Scoring'!$E$4:$J$4,0),TRUE)","v":1},{"$f":"VLOOKUP(OFFSET($B:$B,,MATCH(I$4,$B$4:$F$4,0)-1),OFFSET('C. PoC Adj Factor Scoring'!$E$5:$J$282,,MATCH(I$4,'C. PoC Adj Factor Scoring'!$E$3:$AH$3,0)-1),MATCH(I$2&\" Score\",'C. PoC Adj Factor Scoring'!$E$4:$J$4,0),TRUE)","v":1},{"$f":"VLOOKUP(OFFSET($B:$B,,MATCH(J$4,$B$4:$F$4,0)-1),OFFSET('C. PoC Adj Factor Scoring'!$E$5:$J$282,,MATCH(J$4,'C. PoC Adj Factor Scoring'!$E$3:$AH$3,0)-1),MATCH(J$2&\" Score\",'C. PoC Adj Factor Scoring'!$E$4:$J$4,0),TRUE)","v":1},{"$f":"VLOOKUP(OFFSET($B:$B,,MATCH(K$4,$B$4:$F$4,0)-1),OFFSET('C. PoC Adj Factor Scoring'!$E$5:$J$282,,MATCH(K$4,'C. PoC Adj Factor Scoring'!$E$3:$AH$3,0)-1),MATCH(K$2&\" Score\",'C. PoC Adj Factor Scoring'!$E$4:$J$4,0),TRUE)","v":1},{"$f":"VLOOKUP(OFFSET($B:$B,,MATCH(L$4,$B$4:$F$4,0)-1),OFFSET('C. PoC Adj Factor Scoring'!$E$5:$J$282,,MATCH(L$4,'C. PoC Adj Factor Scoring'!$E$3:$AH$3,0)-1),MATCH(L$2&\" Score\",'C. PoC Adj Factor Scoring'!$E$4:$J$4,0),TRUE)","v":1},{"$f":"VLOOKUP(OFFSET($B:$B,,MATCH(M$4,$B$4:$F$4,0)-1),OFFSET('C. PoC Adj Factor Scoring'!$E$5:$J$282,,MATCH(M$4,'C. PoC Adj Factor Scoring'!$E$3:$AH$3,0)-1),MATCH(M$2&\" Score\",'C. PoC Adj Factor Scoring'!$E$4:$J$4,0),TRUE)","v":1},{"$f":"VLOOKUP(OFFSET($B:$B,,MATCH(N$4,$B$4:$F$4,0)-1),OFFSET('C. PoC Adj Factor Scoring'!$E$5:$J$282,,MATCH(N$4,'C. PoC Adj Factor Scoring'!$E$3:$AH$3,0)-1),MATCH(N$2&\" Score\",'C. PoC Adj Factor Scoring'!$E$4:$J$4,0),TRUE)","v":1},{"$f":"VLOOKUP(OFFSET($B:$B,,MATCH(O$4,$B$4:$F$4,0)-1),OFFSET('C. PoC Adj Factor Scoring'!$E$5:$J$282,,MATCH(O$4,'C. PoC Adj Factor Scoring'!$E$3:$AH$3,0)-1),MATCH(O$2&\" Score\",'C. PoC Adj Factor Scoring'!$E$4:$J$4,0),TRUE)","v":1},{"$f":"VLOOKUP(OFFSET($B:$B,,MATCH(P$4,$B$4:$F$4,0)-1),OFFSET('C. PoC Adj Factor Scoring'!$E$5:$J$282,,MATCH(P$4,'C. PoC Adj Factor Scoring'!$E$3:$AH$3,0)-1),MATCH(P$2&\" Score\",'C. PoC Adj Factor Scoring'!$E$4:$J$4,0),TRUE)","v":1},{"$f":"VLOOKUP(OFFSET($B:$B,,MATCH(Q$4,$B$4:$F$4,0)-1),OFFSET('C. PoC Adj Factor Scoring'!$E$5:$J$282,,MATCH(Q$4,'C. PoC Adj Factor Scoring'!$E$3:$AH$3,0)-1),MATCH(Q$2&\" Score\",'C. PoC Adj Factor Scoring'!$E$4:$J$4,0),TRUE)","v":1},{"$f":"VLOOKUP(OFFSET($B:$B,,MATCH(R$4,$B$4:$F$4,0)-1),OFFSET('C. PoC Adj Factor Scoring'!$E$5:$J$282,,MATCH(R$4,'C. PoC Adj Factor Scoring'!$E$3:$AH$3,0)-1),MATCH(R$2&\" Score\",'C. PoC Adj Factor Scoring'!$E$4:$J$4,0),TRUE)","v":1},{"$f":"VLOOKUP(OFFSET($B:$B,,MATCH(S$4,$B$4:$F$4,0)-1),OFFSET('C. PoC Adj Factor Scoring'!$E$5:$J$282,,MATCH(S$4,'C. PoC Adj Factor Scoring'!$E$3:$AH$3,0)-1),MATCH(S$2&\" Score\",'C. PoC Adj Factor Scoring'!$E$4:$J$4,0),TRUE)","v":1},{"$f":"VLOOKUP(OFFSET($B:$B,,MATCH(T$4,$B$4:$F$4,0)-1),OFFSET('C. PoC Adj Factor Scoring'!$E$5:$J$282,,MATCH(T$4,'C. PoC Adj Factor Scoring'!$E$3:$AH$3,0)-1),MATCH(T$2&\" Score\",'C. PoC Adj Factor Scoring'!$E$4:$J$4,0),TRUE)","v":1},{"$f":"VLOOKUP(OFFSET($B:$B,,MATCH(U$4,$B$4:$F$4,0)-1),OFFSET('C. PoC Adj Factor Scoring'!$E$5:$J$282,,MATCH(U$4,'C. PoC Adj Factor Scoring'!$E$3:$AH$3,0)-1),MATCH(U$2&\" Score\",'C. PoC Adj Factor Scoring'!$E$4:$J$4,0),TRUE)","v":1},{"$f":"VLOOKUP(OFFSET($B:$B,,MATCH(V$4,$B$4:$F$4,0)-1),OFFSET('C. PoC Adj Factor Scoring'!$E$5:$J$282,,MATCH(V$4,'C. PoC Adj Factor Scoring'!$E$3:$AH$3,0)-1),MATCH(V$2&\" Score\",'C. PoC Adj Factor Scoring'!$E$4:$J$4,0),TRUE)","v":1},{"$f":"VLOOKUP(OFFSET($B:$B,,MATCH(W$4,$B$4:$F$4,0)-1),OFFSET('C. PoC Adj Factor Scoring'!$E$5:$J$282,,MATCH(W$4,'C. PoC Adj Factor Scoring'!$E$3:$AH$3,0)-1),MATCH(W$2&\" Score\",'C. PoC Adj Factor Scoring'!$E$4:$J$4,0),TRUE)","v":1},{"$f":"VLOOKUP(OFFSET($B:$B,,MATCH(X$4,$B$4:$F$4,0)-1),OFFSET('C. PoC Adj Factor Scoring'!$E$5:$J$282,,MATCH(X$4,'C. PoC Adj Factor Scoring'!$E$3:$AH$3,0)-1),MATCH(X$2&\" Score\",'C. PoC Adj Factor Scoring'!$E$4:$J$4,0),TRUE)","v":1},{"$f":"VLOOKUP(OFFSET($B:$B,,MATCH(Y$4,$B$4:$F$4,0)-1),OFFSET('C. PoC Adj Factor Scoring'!$E$5:$J$282,,MATCH(Y$4,'C. PoC Adj Factor Scoring'!$E$3:$AH$3,0)-1),MATCH(Y$2&\" Score\",'C. PoC Adj Factor Scoring'!$E$4:$J$4,0),TRUE)","v":1},{"$f":"VLOOKUP(OFFSET($B:$B,,MATCH(Z$4,$B$4:$F$4,0)-1),OFFSET('C. PoC Adj Factor Scoring'!$E$5:$J$282,,MATCH(Z$4,'C. PoC Adj Factor Scoring'!$E$3:$AH$3,0)-1),MATCH(Z$2&\" Score\",'C. PoC Adj Factor Scoring'!$E$4:$J$4,0),TRUE)","v":1},{"$f":"VLOOKUP(OFFSET($B:$B,,MATCH(AA$4,$B$4:$F$4,0)-1),OFFSET('C. PoC Adj Factor Scoring'!$E$5:$J$282,,MATCH(AA$4,'C. PoC Adj Factor Scoring'!$E$3:$AH$3,0)-1),MATCH(AA$2&\" Score\",'C. PoC Adj Factor Scoring'!$E$4:$J$4,0),TRUE)","v":3},{"$f":"VLOOKUP(OFFSET($B:$B,,MATCH(AB$4,$B$4:$F$4,0)-1),OFFSET('C. PoC Adj Factor Scoring'!$E$5:$J$282,,MATCH(AB$4,'C. PoC Adj Factor Scoring'!$E$3:$AH$3,0)-1),MATCH(AB$2&\" Score\",'C. PoC Adj Factor Scoring'!$E$4:$J$4,0),TRUE)","v":1},{"$f":"VLOOKUP(OFFSET($B:$B,,MATCH(AC$4,$B$4:$F$4,0)-1),OFFSET('C. PoC Adj Factor Scoring'!$E$5:$J$282,,MATCH(AC$4,'C. PoC Adj Factor Scoring'!$E$3:$AH$3,0)-1),MATCH(AC$2&\" Score\",'C. PoC Adj Factor Scoring'!$E$4:$J$4,0),TRUE)","v":1},{"$f":"VLOOKUP(OFFSET($B:$B,,MATCH(AD$4,$B$4:$F$4,0)-1),OFFSET('C. PoC Adj Factor Scoring'!$E$5:$J$282,,MATCH(AD$4,'C. PoC Adj Factor Scoring'!$E$3:$AH$3,0)-1),MATCH(AD$2&\" Score\",'C. PoC Adj Factor Scoring'!$E$4:$J$4,0),TRUE)","v":1},{"$f":"VLOOKUP(OFFSET($B:$B,,MATCH(AE$4,$B$4:$F$4,0)-1),OFFSET('C. PoC Adj Factor Scoring'!$E$5:$J$282,,MATCH(AE$4,'C. PoC Adj Factor Scoring'!$E$3:$AH$3,0)-1),MATCH(AE$2&\" Score\",'C. PoC Adj Factor Scoring'!$E$4:$J$4,0),TRUE)","v":1}]
[{"$f":"'A. Population Info'!A120","v":1000336942},{"$f":"'A. Population Info'!L120","v":"OIL"},{"$f":"'A. Population Info'!M120","v":0},{"$f":"'A. Population Info'!N120","v":0},{"$f":"'A. Population Info'!O120","v":0},{"$f":"'A. Population Info'!P120","v":0},{"$f":"VLOOKUP(OFFSET($B:$B,,MATCH(G$4,$B$4:$F$4,0)-1),OFFSET('C. PoC Adj Factor Scoring'!$E$5:$J$282,,MATCH(G$4,'C. PoC Adj Factor Scoring'!$E$3:$AH$3,0)-1),MATCH(G$2&\" Score\",'C. PoC Adj Factor Scoring'!$E$4:$J$4,0),TRUE)","v":4},{"$f":"VLOOKUP(OFFSET($B:$B,,MATCH(H$4,$B$4:$F$4,0)-1),OFFSET('C. PoC Adj Factor Scoring'!$E$5:$J$282,,MATCH(H$4,'C. PoC Adj Factor Scoring'!$E$3:$AH$3,0)-1),MATCH(H$2&\" Score\",'C. PoC Adj Factor Scoring'!$E$4:$J$4,0),TRUE)","v":1},{"$f":"VLOOKUP(OFFSET($B:$B,,MATCH(I$4,$B$4:$F$4,0)-1),OFFSET('C. PoC Adj Factor Scoring'!$E$5:$J$282,,MATCH(I$4,'C. PoC Adj Factor Scoring'!$E$3:$AH$3,0)-1),MATCH(I$2&\" Score\",'C. PoC Adj Factor Scoring'!$E$4:$J$4,0),TRUE)","v":1},{"$f":"VLOOKUP(OFFSET($B:$B,,MATCH(J$4,$B$4:$F$4,0)-1),OFFSET('C. PoC Adj Factor Scoring'!$E$5:$J$282,,MATCH(J$4,'C. PoC Adj Factor Scoring'!$E$3:$AH$3,0)-1),MATCH(J$2&\" Score\",'C. PoC Adj Factor Scoring'!$E$4:$J$4,0),TRUE)","v":1},{"$f":"VLOOKUP(OFFSET($B:$B,,MATCH(K$4,$B$4:$F$4,0)-1),OFFSET('C. PoC Adj Factor Scoring'!$E$5:$J$282,,MATCH(K$4,'C. PoC Adj Factor Scoring'!$E$3:$AH$3,0)-1),MATCH(K$2&\" Score\",'C. PoC Adj Factor Scoring'!$E$4:$J$4,0),TRUE)","v":1},{"$f":"VLOOKUP(OFFSET($B:$B,,MATCH(L$4,$B$4:$F$4,0)-1),OFFSET('C. PoC Adj Factor Scoring'!$E$5:$J$282,,MATCH(L$4,'C. PoC Adj Factor Scoring'!$E$3:$AH$3,0)-1),MATCH(L$2&\" Score\",'C. PoC Adj Factor Scoring'!$E$4:$J$4,0),TRUE)","v":1},{"$f":"VLOOKUP(OFFSET($B:$B,,MATCH(M$4,$B$4:$F$4,0)-1),OFFSET('C. PoC Adj Factor Scoring'!$E$5:$J$282,,MATCH(M$4,'C. PoC Adj Factor Scoring'!$E$3:$AH$3,0)-1),MATCH(M$2&\" Score\",'C. PoC Adj Factor Scoring'!$E$4:$J$4,0),TRUE)","v":1},{"$f":"VLOOKUP(OFFSET($B:$B,,MATCH(N$4,$B$4:$F$4,0)-1),OFFSET('C. PoC Adj Factor Scoring'!$E$5:$J$282,,MATCH(N$4,'C. PoC Adj Factor Scoring'!$E$3:$AH$3,0)-1),MATCH(N$2&\" Score\",'C. PoC Adj Factor Scoring'!$E$4:$J$4,0),TRUE)","v":1},{"$f":"VLOOKUP(OFFSET($B:$B,,MATCH(O$4,$B$4:$F$4,0)-1),OFFSET('C. PoC Adj Factor Scoring'!$E$5:$J$282,,MATCH(O$4,'C. PoC Adj Factor Scoring'!$E$3:$AH$3,0)-1),MATCH(O$2&\" Score\",'C. PoC Adj Factor Scoring'!$E$4:$J$4,0),TRUE)","v":1},{"$f":"VLOOKUP(OFFSET($B:$B,,MATCH(P$4,$B$4:$F$4,0)-1),OFFSET('C. PoC Adj Factor Scoring'!$E$5:$J$282,,MATCH(P$4,'C. PoC Adj Factor Scoring'!$E$3:$AH$3,0)-1),MATCH(P$2&\" Score\",'C. PoC Adj Factor Scoring'!$E$4:$J$4,0),TRUE)","v":1},{"$f":"VLOOKUP(OFFSET($B:$B,,MATCH(Q$4,$B$4:$F$4,0)-1),OFFSET('C. PoC Adj Factor Scoring'!$E$5:$J$282,,MATCH(Q$4,'C. PoC Adj Factor Scoring'!$E$3:$AH$3,0)-1),MATCH(Q$2&\" Score\",'C. PoC Adj Factor Scoring'!$E$4:$J$4,0),TRUE)","v":1},{"$f":"VLOOKUP(OFFSET($B:$B,,MATCH(R$4,$B$4:$F$4,0)-1),OFFSET('C. PoC Adj Factor Scoring'!$E$5:$J$282,,MATCH(R$4,'C. PoC Adj Factor Scoring'!$E$3:$AH$3,0)-1),MATCH(R$2&\" Score\",'C. PoC Adj Factor Scoring'!$E$4:$J$4,0),TRUE)","v":1},{"$f":"VLOOKUP(OFFSET($B:$B,,MATCH(S$4,$B$4:$F$4,0)-1),OFFSET('C. PoC Adj Factor Scoring'!$E$5:$J$282,,MATCH(S$4,'C. PoC Adj Factor Scoring'!$E$3:$AH$3,0)-1),MATCH(S$2&\" Score\",'C. PoC Adj Factor Scoring'!$E$4:$J$4,0),TRUE)","v":1},{"$f":"VLOOKUP(OFFSET($B:$B,,MATCH(T$4,$B$4:$F$4,0)-1),OFFSET('C. PoC Adj Factor Scoring'!$E$5:$J$282,,MATCH(T$4,'C. PoC Adj Factor Scoring'!$E$3:$AH$3,0)-1),MATCH(T$2&\" Score\",'C. PoC Adj Factor Scoring'!$E$4:$J$4,0),TRUE)","v":1},{"$f":"VLOOKUP(OFFSET($B:$B,,MATCH(U$4,$B$4:$F$4,0)-1),OFFSET('C. PoC Adj Factor Scoring'!$E$5:$J$282,,MATCH(U$4,'C. PoC Adj Factor Scoring'!$E$3:$AH$3,0)-1),MATCH(U$2&\" Score\",'C. PoC Adj Factor Scoring'!$E$4:$J$4,0),TRUE)","v":1},{"$f":"VLOOKUP(OFFSET($B:$B,,MATCH(V$4,$B$4:$F$4,0)-1),OFFSET('C. PoC Adj Factor Scoring'!$E$5:$J$282,,MATCH(V$4,'C. PoC Adj Factor Scoring'!$E$3:$AH$3,0)-1),MATCH(V$2&\" Score\",'C. PoC Adj Factor Scoring'!$E$4:$J$4,0),TRUE)","v":1},{"$f":"VLOOKUP(OFFSET($B:$B,,MATCH(W$4,$B$4:$F$4,0)-1),OFFSET('C. PoC Adj Factor Scoring'!$E$5:$J$282,,MATCH(W$4,'C. PoC Adj Factor Scoring'!$E$3:$AH$3,0)-1),MATCH(W$2&\" Score\",'C. PoC Adj Factor Scoring'!$E$4:$J$4,0),TRUE)","v":1},{"$f":"VLOOKUP(OFFSET($B:$B,,MATCH(X$4,$B$4:$F$4,0)-1),OFFSET('C. PoC Adj Factor Scoring'!$E$5:$J$282,,MATCH(X$4,'C. PoC Adj Factor Scoring'!$E$3:$AH$3,0)-1),MATCH(X$2&\" Score\",'C. PoC Adj Factor Scoring'!$E$4:$J$4,0),TRUE)","v":1},{"$f":"VLOOKUP(OFFSET($B:$B,,MATCH(Y$4,$B$4:$F$4,0)-1),OFFSET('C. PoC Adj Factor Scoring'!$E$5:$J$282,,MATCH(Y$4,'C. PoC Adj Factor Scoring'!$E$3:$AH$3,0)-1),MATCH(Y$2&\" Score\",'C. PoC Adj Factor Scoring'!$E$4:$J$4,0),TRUE)","v":1},{"$f":"VLOOKUP(OFFSET($B:$B,,MATCH(Z$4,$B$4:$F$4,0)-1),OFFSET('C. PoC Adj Factor Scoring'!$E$5:$J$282,,MATCH(Z$4,'C. PoC Adj Factor Scoring'!$E$3:$AH$3,0)-1),MATCH(Z$2&\" Score\",'C. PoC Adj Factor Scoring'!$E$4:$J$4,0),TRUE)","v":1},{"$f":"VLOOKUP(OFFSET($B:$B,,MATCH(AA$4,$B$4:$F$4,0)-1),OFFSET('C. PoC Adj Factor Scoring'!$E$5:$J$282,,MATCH(AA$4,'C. PoC Adj Factor Scoring'!$E$3:$AH$3,0)-1),MATCH(AA$2&\" Score\",'C. PoC Adj Factor Scoring'!$E$4:$J$4,0),TRUE)","v":3},{"$f":"VLOOKUP(OFFSET($B:$B,,MATCH(AB$4,$B$4:$F$4,0)-1),OFFSET('C. PoC Adj Factor Scoring'!$E$5:$J$282,,MATCH(AB$4,'C. PoC Adj Factor Scoring'!$E$3:$AH$3,0)-1),MATCH(AB$2&\" Score\",'C. PoC Adj Factor Scoring'!$E$4:$J$4,0),TRUE)","v":1},{"$f":"VLOOKUP(OFFSET($B:$B,,MATCH(AC$4,$B$4:$F$4,0)-1),OFFSET('C. PoC Adj Factor Scoring'!$E$5:$J$282,,MATCH(AC$4,'C. PoC Adj Factor Scoring'!$E$3:$AH$3,0)-1),MATCH(AC$2&\" Score\",'C. PoC Adj Factor Scoring'!$E$4:$J$4,0),TRUE)","v":1},{"$f":"VLOOKUP(OFFSET($B:$B,,MATCH(AD$4,$B$4:$F$4,0)-1),OFFSET('C. PoC Adj Factor Scoring'!$E$5:$J$282,,MATCH(AD$4,'C. PoC Adj Factor Scoring'!$E$3:$AH$3,0)-1),MATCH(AD$2&\" Score\",'C. PoC Adj Factor Scoring'!$E$4:$J$4,0),TRUE)","v":1},{"$f":"VLOOKUP(OFFSET($B:$B,,MATCH(AE$4,$B$4:$F$4,0)-1),OFFSET('C. PoC Adj Factor Scoring'!$E$5:$J$282,,MATCH(AE$4,'C. PoC Adj Factor Scoring'!$E$3:$AH$3,0)-1),MATCH(AE$2&\" Score\",'C. PoC Adj Factor Scoring'!$E$4:$J$4,0),TRUE)","v":1}]
[{"$f":"'A. Population Info'!A121","v":1000336972},{"$f":"'A. Population Info'!L121","v":"OIL"},{"$f":"'A. Population Info'!M121","v":0},{"$f":"'A. Population Info'!N121","v":0},{"$f":"'A. Population Info'!O121","v":0},{"$f":"'A. Population Info'!P121","v":0},{"$f":"VLOOKUP(OFFSET($B:$B,,MATCH(G$4,$B$4:$F$4,0)-1),OFFSET('C. PoC Adj Factor Scoring'!$E$5:$J$282,,MATCH(G$4,'C. PoC Adj Factor Scoring'!$E$3:$AH$3,0)-1),MATCH(G$2&\" Score\",'C. PoC Adj Factor Scoring'!$E$4:$J$4,0),TRUE)","v":4},{"$f":"VLOOKUP(OFFSET($B:$B,,MATCH(H$4,$B$4:$F$4,0)-1),OFFSET('C. PoC Adj Factor Scoring'!$E$5:$J$282,,MATCH(H$4,'C. PoC Adj Factor Scoring'!$E$3:$AH$3,0)-1),MATCH(H$2&\" Score\",'C. PoC Adj Factor Scoring'!$E$4:$J$4,0),TRUE)","v":1},{"$f":"VLOOKUP(OFFSET($B:$B,,MATCH(I$4,$B$4:$F$4,0)-1),OFFSET('C. PoC Adj Factor Scoring'!$E$5:$J$282,,MATCH(I$4,'C. PoC Adj Factor Scoring'!$E$3:$AH$3,0)-1),MATCH(I$2&\" Score\",'C. PoC Adj Factor Scoring'!$E$4:$J$4,0),TRUE)","v":1},{"$f":"VLOOKUP(OFFSET($B:$B,,MATCH(J$4,$B$4:$F$4,0)-1),OFFSET('C. PoC Adj Factor Scoring'!$E$5:$J$282,,MATCH(J$4,'C. PoC Adj Factor Scoring'!$E$3:$AH$3,0)-1),MATCH(J$2&\" Score\",'C. PoC Adj Factor Scoring'!$E$4:$J$4,0),TRUE)","v":1},{"$f":"VLOOKUP(OFFSET($B:$B,,MATCH(K$4,$B$4:$F$4,0)-1),OFFSET('C. PoC Adj Factor Scoring'!$E$5:$J$282,,MATCH(K$4,'C. PoC Adj Factor Scoring'!$E$3:$AH$3,0)-1),MATCH(K$2&\" Score\",'C. PoC Adj Factor Scoring'!$E$4:$J$4,0),TRUE)","v":1},{"$f":"VLOOKUP(OFFSET($B:$B,,MATCH(L$4,$B$4:$F$4,0)-1),OFFSET('C. PoC Adj Factor Scoring'!$E$5:$J$282,,MATCH(L$4,'C. PoC Adj Factor Scoring'!$E$3:$AH$3,0)-1),MATCH(L$2&\" Score\",'C. PoC Adj Factor Scoring'!$E$4:$J$4,0),TRUE)","v":1},{"$f":"VLOOKUP(OFFSET($B:$B,,MATCH(M$4,$B$4:$F$4,0)-1),OFFSET('C. PoC Adj Factor Scoring'!$E$5:$J$282,,MATCH(M$4,'C. PoC Adj Factor Scoring'!$E$3:$AH$3,0)-1),MATCH(M$2&\" Score\",'C. PoC Adj Factor Scoring'!$E$4:$J$4,0),TRUE)","v":1},{"$f":"VLOOKUP(OFFSET($B:$B,,MATCH(N$4,$B$4:$F$4,0)-1),OFFSET('C. PoC Adj Factor Scoring'!$E$5:$J$282,,MATCH(N$4,'C. PoC Adj Factor Scoring'!$E$3:$AH$3,0)-1),MATCH(N$2&\" Score\",'C. PoC Adj Factor Scoring'!$E$4:$J$4,0),TRUE)","v":1},{"$f":"VLOOKUP(OFFSET($B:$B,,MATCH(O$4,$B$4:$F$4,0)-1),OFFSET('C. PoC Adj Factor Scoring'!$E$5:$J$282,,MATCH(O$4,'C. PoC Adj Factor Scoring'!$E$3:$AH$3,0)-1),MATCH(O$2&\" Score\",'C. PoC Adj Factor Scoring'!$E$4:$J$4,0),TRUE)","v":1},{"$f":"VLOOKUP(OFFSET($B:$B,,MATCH(P$4,$B$4:$F$4,0)-1),OFFSET('C. PoC Adj Factor Scoring'!$E$5:$J$282,,MATCH(P$4,'C. PoC Adj Factor Scoring'!$E$3:$AH$3,0)-1),MATCH(P$2&\" Score\",'C. PoC Adj Factor Scoring'!$E$4:$J$4,0),TRUE)","v":1},{"$f":"VLOOKUP(OFFSET($B:$B,,MATCH(Q$4,$B$4:$F$4,0)-1),OFFSET('C. PoC Adj Factor Scoring'!$E$5:$J$282,,MATCH(Q$4,'C. PoC Adj Factor Scoring'!$E$3:$AH$3,0)-1),MATCH(Q$2&\" Score\",'C. PoC Adj Factor Scoring'!$E$4:$J$4,0),TRUE)","v":1},{"$f":"VLOOKUP(OFFSET($B:$B,,MATCH(R$4,$B$4:$F$4,0)-1),OFFSET('C. PoC Adj Factor Scoring'!$E$5:$J$282,,MATCH(R$4,'C. PoC Adj Factor Scoring'!$E$3:$AH$3,0)-1),MATCH(R$2&\" Score\",'C. PoC Adj Factor Scoring'!$E$4:$J$4,0),TRUE)","v":1},{"$f":"VLOOKUP(OFFSET($B:$B,,MATCH(S$4,$B$4:$F$4,0)-1),OFFSET('C. PoC Adj Factor Scoring'!$E$5:$J$282,,MATCH(S$4,'C. PoC Adj Factor Scoring'!$E$3:$AH$3,0)-1),MATCH(S$2&\" Score\",'C. PoC Adj Factor Scoring'!$E$4:$J$4,0),TRUE)","v":1},{"$f":"VLOOKUP(OFFSET($B:$B,,MATCH(T$4,$B$4:$F$4,0)-1),OFFSET('C. PoC Adj Factor Scoring'!$E$5:$J$282,,MATCH(T$4,'C. PoC Adj Factor Scoring'!$E$3:$AH$3,0)-1),MATCH(T$2&\" Score\",'C. PoC Adj Factor Scoring'!$E$4:$J$4,0),TRUE)","v":1},{"$f":"VLOOKUP(OFFSET($B:$B,,MATCH(U$4,$B$4:$F$4,0)-1),OFFSET('C. PoC Adj Factor Scoring'!$E$5:$J$282,,MATCH(U$4,'C. PoC Adj Factor Scoring'!$E$3:$AH$3,0)-1),MATCH(U$2&\" Score\",'C. PoC Adj Factor Scoring'!$E$4:$J$4,0),TRUE)","v":1},{"$f":"VLOOKUP(OFFSET($B:$B,,MATCH(V$4,$B$4:$F$4,0)-1),OFFSET('C. PoC Adj Factor Scoring'!$E$5:$J$282,,MATCH(V$4,'C. PoC Adj Factor Scoring'!$E$3:$AH$3,0)-1),MATCH(V$2&\" Score\",'C. PoC Adj Factor Scoring'!$E$4:$J$4,0),TRUE)","v":1},{"$f":"VLOOKUP(OFFSET($B:$B,,MATCH(W$4,$B$4:$F$4,0)-1),OFFSET('C. PoC Adj Factor Scoring'!$E$5:$J$282,,MATCH(W$4,'C. PoC Adj Factor Scoring'!$E$3:$AH$3,0)-1),MATCH(W$2&\" Score\",'C. PoC Adj Factor Scoring'!$E$4:$J$4,0),TRUE)","v":1},{"$f":"VLOOKUP(OFFSET($B:$B,,MATCH(X$4,$B$4:$F$4,0)-1),OFFSET('C. PoC Adj Factor Scoring'!$E$5:$J$282,,MATCH(X$4,'C. PoC Adj Factor Scoring'!$E$3:$AH$3,0)-1),MATCH(X$2&\" Score\",'C. PoC Adj Factor Scoring'!$E$4:$J$4,0),TRUE)","v":1},{"$f":"VLOOKUP(OFFSET($B:$B,,MATCH(Y$4,$B$4:$F$4,0)-1),OFFSET('C. PoC Adj Factor Scoring'!$E$5:$J$282,,MATCH(Y$4,'C. PoC Adj Factor Scoring'!$E$3:$AH$3,0)-1),MATCH(Y$2&\" Score\",'C. PoC Adj Factor Scoring'!$E$4:$J$4,0),TRUE)","v":1},{"$f":"VLOOKUP(OFFSET($B:$B,,MATCH(Z$4,$B$4:$F$4,0)-1),OFFSET('C. PoC Adj Factor Scoring'!$E$5:$J$282,,MATCH(Z$4,'C. PoC Adj Factor Scoring'!$E$3:$AH$3,0)-1),MATCH(Z$2&\" Score\",'C. PoC Adj Factor Scoring'!$E$4:$J$4,0),TRUE)","v":1},{"$f":"VLOOKUP(OFFSET($B:$B,,MATCH(AA$4,$B$4:$F$4,0)-1),OFFSET('C. PoC Adj Factor Scoring'!$E$5:$J$282,,MATCH(AA$4,'C. PoC Adj Factor Scoring'!$E$3:$AH$3,0)-1),MATCH(AA$2&\" Score\",'C. PoC Adj Factor Scoring'!$E$4:$J$4,0),TRUE)","v":3},{"$f":"VLOOKUP(OFFSET($B:$B,,MATCH(AB$4,$B$4:$F$4,0)-1),OFFSET('C. PoC Adj Factor Scoring'!$E$5:$J$282,,MATCH(AB$4,'C. PoC Adj Factor Scoring'!$E$3:$AH$3,0)-1),MATCH(AB$2&\" Score\",'C. PoC Adj Factor Scoring'!$E$4:$J$4,0),TRUE)","v":1},{"$f":"VLOOKUP(OFFSET($B:$B,,MATCH(AC$4,$B$4:$F$4,0)-1),OFFSET('C. PoC Adj Factor Scoring'!$E$5:$J$282,,MATCH(AC$4,'C. PoC Adj Factor Scoring'!$E$3:$AH$3,0)-1),MATCH(AC$2&\" Score\",'C. PoC Adj Factor Scoring'!$E$4:$J$4,0),TRUE)","v":1},{"$f":"VLOOKUP(OFFSET($B:$B,,MATCH(AD$4,$B$4:$F$4,0)-1),OFFSET('C. PoC Adj Factor Scoring'!$E$5:$J$282,,MATCH(AD$4,'C. PoC Adj Factor Scoring'!$E$3:$AH$3,0)-1),MATCH(AD$2&\" Score\",'C. PoC Adj Factor Scoring'!$E$4:$J$4,0),TRUE)","v":1},{"$f":"VLOOKUP(OFFSET($B:$B,,MATCH(AE$4,$B$4:$F$4,0)-1),OFFSET('C. PoC Adj Factor Scoring'!$E$5:$J$282,,MATCH(AE$4,'C. PoC Adj Factor Scoring'!$E$3:$AH$3,0)-1),MATCH(AE$2&\" Score\",'C. PoC Adj Factor Scoring'!$E$4:$J$4,0),TRUE)","v":1}]
[{"$f":"'A. Population Info'!A122","v":1000340000},{"$f":"'A. Population Info'!L122","v":"OIL"},{"$f":"'A. Population Info'!M122","v":0},{"$f":"'A. Population Info'!N122","v":0},{"$f":"'A. Population Info'!O122","v":0},{"$f":"'A. Population Info'!P122","v":0},{"$f":"VLOOKUP(OFFSET($B:$B,,MATCH(G$4,$B$4:$F$4,0)-1),OFFSET('C. PoC Adj Factor Scoring'!$E$5:$J$282,,MATCH(G$4,'C. PoC Adj Factor Scoring'!$E$3:$AH$3,0)-1),MATCH(G$2&\" Score\",'C. PoC Adj Factor Scoring'!$E$4:$J$4,0),TRUE)","v":4},{"$f":"VLOOKUP(OFFSET($B:$B,,MATCH(H$4,$B$4:$F$4,0)-1),OFFSET('C. PoC Adj Factor Scoring'!$E$5:$J$282,,MATCH(H$4,'C. PoC Adj Factor Scoring'!$E$3:$AH$3,0)-1),MATCH(H$2&\" Score\",'C. PoC Adj Factor Scoring'!$E$4:$J$4,0),TRUE)","v":1},{"$f":"VLOOKUP(OFFSET($B:$B,,MATCH(I$4,$B$4:$F$4,0)-1),OFFSET('C. PoC Adj Factor Scoring'!$E$5:$J$282,,MATCH(I$4,'C. PoC Adj Factor Scoring'!$E$3:$AH$3,0)-1),MATCH(I$2&\" Score\",'C. PoC Adj Factor Scoring'!$E$4:$J$4,0),TRUE)","v":1},{"$f":"VLOOKUP(OFFSET($B:$B,,MATCH(J$4,$B$4:$F$4,0)-1),OFFSET('C. PoC Adj Factor Scoring'!$E$5:$J$282,,MATCH(J$4,'C. PoC Adj Factor Scoring'!$E$3:$AH$3,0)-1),MATCH(J$2&\" Score\",'C. PoC Adj Factor Scoring'!$E$4:$J$4,0),TRUE)","v":1},{"$f":"VLOOKUP(OFFSET($B:$B,,MATCH(K$4,$B$4:$F$4,0)-1),OFFSET('C. PoC Adj Factor Scoring'!$E$5:$J$282,,MATCH(K$4,'C. PoC Adj Factor Scoring'!$E$3:$AH$3,0)-1),MATCH(K$2&\" Score\",'C. PoC Adj Factor Scoring'!$E$4:$J$4,0),TRUE)","v":1},{"$f":"VLOOKUP(OFFSET($B:$B,,MATCH(L$4,$B$4:$F$4,0)-1),OFFSET('C. PoC Adj Factor Scoring'!$E$5:$J$282,,MATCH(L$4,'C. PoC Adj Factor Scoring'!$E$3:$AH$3,0)-1),MATCH(L$2&\" Score\",'C. PoC Adj Factor Scoring'!$E$4:$J$4,0),TRUE)","v":1},{"$f":"VLOOKUP(OFFSET($B:$B,,MATCH(M$4,$B$4:$F$4,0)-1),OFFSET('C. PoC Adj Factor Scoring'!$E$5:$J$282,,MATCH(M$4,'C. PoC Adj Factor Scoring'!$E$3:$AH$3,0)-1),MATCH(M$2&\" Score\",'C. PoC Adj Factor Scoring'!$E$4:$J$4,0),TRUE)","v":1},{"$f":"VLOOKUP(OFFSET($B:$B,,MATCH(N$4,$B$4:$F$4,0)-1),OFFSET('C. PoC Adj Factor Scoring'!$E$5:$J$282,,MATCH(N$4,'C. PoC Adj Factor Scoring'!$E$3:$AH$3,0)-1),MATCH(N$2&\" Score\",'C. PoC Adj Factor Scoring'!$E$4:$J$4,0),TRUE)","v":1},{"$f":"VLOOKUP(OFFSET($B:$B,,MATCH(O$4,$B$4:$F$4,0)-1),OFFSET('C. PoC Adj Factor Scoring'!$E$5:$J$282,,MATCH(O$4,'C. PoC Adj Factor Scoring'!$E$3:$AH$3,0)-1),MATCH(O$2&\" Score\",'C. PoC Adj Factor Scoring'!$E$4:$J$4,0),TRUE)","v":1},{"$f":"VLOOKUP(OFFSET($B:$B,,MATCH(P$4,$B$4:$F$4,0)-1),OFFSET('C. PoC Adj Factor Scoring'!$E$5:$J$282,,MATCH(P$4,'C. PoC Adj Factor Scoring'!$E$3:$AH$3,0)-1),MATCH(P$2&\" Score\",'C. PoC Adj Factor Scoring'!$E$4:$J$4,0),TRUE)","v":1},{"$f":"VLOOKUP(OFFSET($B:$B,,MATCH(Q$4,$B$4:$F$4,0)-1),OFFSET('C. PoC Adj Factor Scoring'!$E$5:$J$282,,MATCH(Q$4,'C. PoC Adj Factor Scoring'!$E$3:$AH$3,0)-1),MATCH(Q$2&\" Score\",'C. PoC Adj Factor Scoring'!$E$4:$J$4,0),TRUE)","v":1},{"$f":"VLOOKUP(OFFSET($B:$B,,MATCH(R$4,$B$4:$F$4,0)-1),OFFSET('C. PoC Adj Factor Scoring'!$E$5:$J$282,,MATCH(R$4,'C. PoC Adj Factor Scoring'!$E$3:$AH$3,0)-1),MATCH(R$2&\" Score\",'C. PoC Adj Factor Scoring'!$E$4:$J$4,0),TRUE)","v":1},{"$f":"VLOOKUP(OFFSET($B:$B,,MATCH(S$4,$B$4:$F$4,0)-1),OFFSET('C. PoC Adj Factor Scoring'!$E$5:$J$282,,MATCH(S$4,'C. PoC Adj Factor Scoring'!$E$3:$AH$3,0)-1),MATCH(S$2&\" Score\",'C. PoC Adj Factor Scoring'!$E$4:$J$4,0),TRUE)","v":1},{"$f":"VLOOKUP(OFFSET($B:$B,,MATCH(T$4,$B$4:$F$4,0)-1),OFFSET('C. PoC Adj Factor Scoring'!$E$5:$J$282,,MATCH(T$4,'C. PoC Adj Factor Scoring'!$E$3:$AH$3,0)-1),MATCH(T$2&\" Score\",'C. PoC Adj Factor Scoring'!$E$4:$J$4,0),TRUE)","v":1},{"$f":"VLOOKUP(OFFSET($B:$B,,MATCH(U$4,$B$4:$F$4,0)-1),OFFSET('C. PoC Adj Factor Scoring'!$E$5:$J$282,,MATCH(U$4,'C. PoC Adj Factor Scoring'!$E$3:$AH$3,0)-1),MATCH(U$2&\" Score\",'C. PoC Adj Factor Scoring'!$E$4:$J$4,0),TRUE)","v":1},{"$f":"VLOOKUP(OFFSET($B:$B,,MATCH(V$4,$B$4:$F$4,0)-1),OFFSET('C. PoC Adj Factor Scoring'!$E$5:$J$282,,MATCH(V$4,'C. PoC Adj Factor Scoring'!$E$3:$AH$3,0)-1),MATCH(V$2&\" Score\",'C. PoC Adj Factor Scoring'!$E$4:$J$4,0),TRUE)","v":1},{"$f":"VLOOKUP(OFFSET($B:$B,,MATCH(W$4,$B$4:$F$4,0)-1),OFFSET('C. PoC Adj Factor Scoring'!$E$5:$J$282,,MATCH(W$4,'C. PoC Adj Factor Scoring'!$E$3:$AH$3,0)-1),MATCH(W$2&\" Score\",'C. PoC Adj Factor Scoring'!$E$4:$J$4,0),TRUE)","v":1},{"$f":"VLOOKUP(OFFSET($B:$B,,MATCH(X$4,$B$4:$F$4,0)-1),OFFSET('C. PoC Adj Factor Scoring'!$E$5:$J$282,,MATCH(X$4,'C. PoC Adj Factor Scoring'!$E$3:$AH$3,0)-1),MATCH(X$2&\" Score\",'C. PoC Adj Factor Scoring'!$E$4:$J$4,0),TRUE)","v":1},{"$f":"VLOOKUP(OFFSET($B:$B,,MATCH(Y$4,$B$4:$F$4,0)-1),OFFSET('C. PoC Adj Factor Scoring'!$E$5:$J$282,,MATCH(Y$4,'C. PoC Adj Factor Scoring'!$E$3:$AH$3,0)-1),MATCH(Y$2&\" Score\",'C. PoC Adj Factor Scoring'!$E$4:$J$4,0),TRUE)","v":1},{"$f":"VLOOKUP(OFFSET($B:$B,,MATCH(Z$4,$B$4:$F$4,0)-1),OFFSET('C. PoC Adj Factor Scoring'!$E$5:$J$282,,MATCH(Z$4,'C. PoC Adj Factor Scoring'!$E$3:$AH$3,0)-1),MATCH(Z$2&\" Score\",'C. PoC Adj Factor Scoring'!$E$4:$J$4,0),TRUE)","v":1},{"$f":"VLOOKUP(OFFSET($B:$B,,MATCH(AA$4,$B$4:$F$4,0)-1),OFFSET('C. PoC Adj Factor Scoring'!$E$5:$J$282,,MATCH(AA$4,'C. PoC Adj Factor Scoring'!$E$3:$AH$3,0)-1),MATCH(AA$2&\" Score\",'C. PoC Adj Factor Scoring'!$E$4:$J$4,0),TRUE)","v":3},{"$f":"VLOOKUP(OFFSET($B:$B,,MATCH(AB$4,$B$4:$F$4,0)-1),OFFSET('C. PoC Adj Factor Scoring'!$E$5:$J$282,,MATCH(AB$4,'C. PoC Adj Factor Scoring'!$E$3:$AH$3,0)-1),MATCH(AB$2&\" Score\",'C. PoC Adj Factor Scoring'!$E$4:$J$4,0),TRUE)","v":1},{"$f":"VLOOKUP(OFFSET($B:$B,,MATCH(AC$4,$B$4:$F$4,0)-1),OFFSET('C. PoC Adj Factor Scoring'!$E$5:$J$282,,MATCH(AC$4,'C. PoC Adj Factor Scoring'!$E$3:$AH$3,0)-1),MATCH(AC$2&\" Score\",'C. PoC Adj Factor Scoring'!$E$4:$J$4,0),TRUE)","v":1},{"$f":"VLOOKUP(OFFSET($B:$B,,MATCH(AD$4,$B$4:$F$4,0)-1),OFFSET('C. PoC Adj Factor Scoring'!$E$5:$J$282,,MATCH(AD$4,'C. PoC Adj Factor Scoring'!$E$3:$AH$3,0)-1),MATCH(AD$2&\" Score\",'C. PoC Adj Factor Scoring'!$E$4:$J$4,0),TRUE)","v":1},{"$f":"VLOOKUP(OFFSET($B:$B,,MATCH(AE$4,$B$4:$F$4,0)-1),OFFSET('C. PoC Adj Factor Scoring'!$E$5:$J$282,,MATCH(AE$4,'C. PoC Adj Factor Scoring'!$E$3:$AH$3,0)-1),MATCH(AE$2&\" Score\",'C. PoC Adj Factor Scoring'!$E$4:$J$4,0),TRUE)","v":1}]
[{"$f":"'A. Population Info'!A123","v":1000340030},{"$f":"'A. Population Info'!L123","v":"OIL"},{"$f":"'A. Population Info'!M123","v":0},{"$f":"'A. Population Info'!N123","v":0},{"$f":"'A. Population Info'!O123","v":0},{"$f":"'A. Population Info'!P123","v":0},{"$f":"VLOOKUP(OFFSET($B:$B,,MATCH(G$4,$B$4:$F$4,0)-1),OFFSET('C. PoC Adj Factor Scoring'!$E$5:$J$282,,MATCH(G$4,'C. PoC Adj Factor Scoring'!$E$3:$AH$3,0)-1),MATCH(G$2&\" Score\",'C. PoC Adj Factor Scoring'!$E$4:$J$4,0),TRUE)","v":4},{"$f":"VLOOKUP(OFFSET($B:$B,,MATCH(H$4,$B$4:$F$4,0)-1),OFFSET('C. PoC Adj Factor Scoring'!$E$5:$J$282,,MATCH(H$4,'C. PoC Adj Factor Scoring'!$E$3:$AH$3,0)-1),MATCH(H$2&\" Score\",'C. PoC Adj Factor Scoring'!$E$4:$J$4,0),TRUE)","v":1},{"$f":"VLOOKUP(OFFSET($B:$B,,MATCH(I$4,$B$4:$F$4,0)-1),OFFSET('C. PoC Adj Factor Scoring'!$E$5:$J$282,,MATCH(I$4,'C. PoC Adj Factor Scoring'!$E$3:$AH$3,0)-1),MATCH(I$2&\" Score\",'C. PoC Adj Factor Scoring'!$E$4:$J$4,0),TRUE)","v":1},{"$f":"VLOOKUP(OFFSET($B:$B,,MATCH(J$4,$B$4:$F$4,0)-1),OFFSET('C. PoC Adj Factor Scoring'!$E$5:$J$282,,MATCH(J$4,'C. PoC Adj Factor Scoring'!$E$3:$AH$3,0)-1),MATCH(J$2&\" Score\",'C. PoC Adj Factor Scoring'!$E$4:$J$4,0),TRUE)","v":1},{"$f":"VLOOKUP(OFFSET($B:$B,,MATCH(K$4,$B$4:$F$4,0)-1),OFFSET('C. PoC Adj Factor Scoring'!$E$5:$J$282,,MATCH(K$4,'C. PoC Adj Factor Scoring'!$E$3:$AH$3,0)-1),MATCH(K$2&\" Score\",'C. PoC Adj Factor Scoring'!$E$4:$J$4,0),TRUE)","v":1},{"$f":"VLOOKUP(OFFSET($B:$B,,MATCH(L$4,$B$4:$F$4,0)-1),OFFSET('C. PoC Adj Factor Scoring'!$E$5:$J$282,,MATCH(L$4,'C. PoC Adj Factor Scoring'!$E$3:$AH$3,0)-1),MATCH(L$2&\" Score\",'C. PoC Adj Factor Scoring'!$E$4:$J$4,0),TRUE)","v":1},{"$f":"VLOOKUP(OFFSET($B:$B,,MATCH(M$4,$B$4:$F$4,0)-1),OFFSET('C. PoC Adj Factor Scoring'!$E$5:$J$282,,MATCH(M$4,'C. PoC Adj Factor Scoring'!$E$3:$AH$3,0)-1),MATCH(M$2&\" Score\",'C. PoC Adj Factor Scoring'!$E$4:$J$4,0),TRUE)","v":1},{"$f":"VLOOKUP(OFFSET($B:$B,,MATCH(N$4,$B$4:$F$4,0)-1),OFFSET('C. PoC Adj Factor Scoring'!$E$5:$J$282,,MATCH(N$4,'C. PoC Adj Factor Scoring'!$E$3:$AH$3,0)-1),MATCH(N$2&\" Score\",'C. PoC Adj Factor Scoring'!$E$4:$J$4,0),TRUE)","v":1},{"$f":"VLOOKUP(OFFSET($B:$B,,MATCH(O$4,$B$4:$F$4,0)-1),OFFSET('C. PoC Adj Factor Scoring'!$E$5:$J$282,,MATCH(O$4,'C. PoC Adj Factor Scoring'!$E$3:$AH$3,0)-1),MATCH(O$2&\" Score\",'C. PoC Adj Factor Scoring'!$E$4:$J$4,0),TRUE)","v":1},{"$f":"VLOOKUP(OFFSET($B:$B,,MATCH(P$4,$B$4:$F$4,0)-1),OFFSET('C. PoC Adj Factor Scoring'!$E$5:$J$282,,MATCH(P$4,'C. PoC Adj Factor Scoring'!$E$3:$AH$3,0)-1),MATCH(P$2&\" Score\",'C. PoC Adj Factor Scoring'!$E$4:$J$4,0),TRUE)","v":1},{"$f":"VLOOKUP(OFFSET($B:$B,,MATCH(Q$4,$B$4:$F$4,0)-1),OFFSET('C. PoC Adj Factor Scoring'!$E$5:$J$282,,MATCH(Q$4,'C. PoC Adj Factor Scoring'!$E$3:$AH$3,0)-1),MATCH(Q$2&\" Score\",'C. PoC Adj Factor Scoring'!$E$4:$J$4,0),TRUE)","v":1},{"$f":"VLOOKUP(OFFSET($B:$B,,MATCH(R$4,$B$4:$F$4,0)-1),OFFSET('C. PoC Adj Factor Scoring'!$E$5:$J$282,,MATCH(R$4,'C. PoC Adj Factor Scoring'!$E$3:$AH$3,0)-1),MATCH(R$2&\" Score\",'C. PoC Adj Factor Scoring'!$E$4:$J$4,0),TRUE)","v":1},{"$f":"VLOOKUP(OFFSET($B:$B,,MATCH(S$4,$B$4:$F$4,0)-1),OFFSET('C. PoC Adj Factor Scoring'!$E$5:$J$282,,MATCH(S$4,'C. PoC Adj Factor Scoring'!$E$3:$AH$3,0)-1),MATCH(S$2&\" Score\",'C. PoC Adj Factor Scoring'!$E$4:$J$4,0),TRUE)","v":1},{"$f":"VLOOKUP(OFFSET($B:$B,,MATCH(T$4,$B$4:$F$4,0)-1),OFFSET('C. PoC Adj Factor Scoring'!$E$5:$J$282,,MATCH(T$4,'C. PoC Adj Factor Scoring'!$E$3:$AH$3,0)-1),MATCH(T$2&\" Score\",'C. PoC Adj Factor Scoring'!$E$4:$J$4,0),TRUE)","v":1},{"$f":"VLOOKUP(OFFSET($B:$B,,MATCH(U$4,$B$4:$F$4,0)-1),OFFSET('C. PoC Adj Factor Scoring'!$E$5:$J$282,,MATCH(U$4,'C. PoC Adj Factor Scoring'!$E$3:$AH$3,0)-1),MATCH(U$2&\" Score\",'C. PoC Adj Factor Scoring'!$E$4:$J$4,0),TRUE)","v":1},{"$f":"VLOOKUP(OFFSET($B:$B,,MATCH(V$4,$B$4:$F$4,0)-1),OFFSET('C. PoC Adj Factor Scoring'!$E$5:$J$282,,MATCH(V$4,'C. PoC Adj Factor Scoring'!$E$3:$AH$3,0)-1),MATCH(V$2&\" Score\",'C. PoC Adj Factor Scoring'!$E$4:$J$4,0),TRUE)","v":1},{"$f":"VLOOKUP(OFFSET($B:$B,,MATCH(W$4,$B$4:$F$4,0)-1),OFFSET('C. PoC Adj Factor Scoring'!$E$5:$J$282,,MATCH(W$4,'C. PoC Adj Factor Scoring'!$E$3:$AH$3,0)-1),MATCH(W$2&\" Score\",'C. PoC Adj Factor Scoring'!$E$4:$J$4,0),TRUE)","v":1},{"$f":"VLOOKUP(OFFSET($B:$B,,MATCH(X$4,$B$4:$F$4,0)-1),OFFSET('C. PoC Adj Factor Scoring'!$E$5:$J$282,,MATCH(X$4,'C. PoC Adj Factor Scoring'!$E$3:$AH$3,0)-1),MATCH(X$2&\" Score\",'C. PoC Adj Factor Scoring'!$E$4:$J$4,0),TRUE)","v":1},{"$f":"VLOOKUP(OFFSET($B:$B,,MATCH(Y$4,$B$4:$F$4,0)-1),OFFSET('C. PoC Adj Factor Scoring'!$E$5:$J$282,,MATCH(Y$4,'C. PoC Adj Factor Scoring'!$E$3:$AH$3,0)-1),MATCH(Y$2&\" Score\",'C. PoC Adj Factor Scoring'!$E$4:$J$4,0),TRUE)","v":1},{"$f":"VLOOKUP(OFFSET($B:$B,,MATCH(Z$4,$B$4:$F$4,0)-1),OFFSET('C. PoC Adj Factor Scoring'!$E$5:$J$282,,MATCH(Z$4,'C. PoC Adj Factor Scoring'!$E$3:$AH$3,0)-1),MATCH(Z$2&\" Score\",'C. PoC Adj Factor Scoring'!$E$4:$J$4,0),TRUE)","v":1},{"$f":"VLOOKUP(OFFSET($B:$B,,MATCH(AA$4,$B$4:$F$4,0)-1),OFFSET('C. PoC Adj Factor Scoring'!$E$5:$J$282,,MATCH(AA$4,'C. PoC Adj Factor Scoring'!$E$3:$AH$3,0)-1),MATCH(AA$2&\" Score\",'C. PoC Adj Factor Scoring'!$E$4:$J$4,0),TRUE)","v":3},{"$f":"VLOOKUP(OFFSET($B:$B,,MATCH(AB$4,$B$4:$F$4,0)-1),OFFSET('C. PoC Adj Factor Scoring'!$E$5:$J$282,,MATCH(AB$4,'C. PoC Adj Factor Scoring'!$E$3:$AH$3,0)-1),MATCH(AB$2&\" Score\",'C. PoC Adj Factor Scoring'!$E$4:$J$4,0),TRUE)","v":1},{"$f":"VLOOKUP(OFFSET($B:$B,,MATCH(AC$4,$B$4:$F$4,0)-1),OFFSET('C. PoC Adj Factor Scoring'!$E$5:$J$282,,MATCH(AC$4,'C. PoC Adj Factor Scoring'!$E$3:$AH$3,0)-1),MATCH(AC$2&\" Score\",'C. PoC Adj Factor Scoring'!$E$4:$J$4,0),TRUE)","v":1},{"$f":"VLOOKUP(OFFSET($B:$B,,MATCH(AD$4,$B$4:$F$4,0)-1),OFFSET('C. PoC Adj Factor Scoring'!$E$5:$J$282,,MATCH(AD$4,'C. PoC Adj Factor Scoring'!$E$3:$AH$3,0)-1),MATCH(AD$2&\" Score\",'C. PoC Adj Factor Scoring'!$E$4:$J$4,0),TRUE)","v":1},{"$f":"VLOOKUP(OFFSET($B:$B,,MATCH(AE$4,$B$4:$F$4,0)-1),OFFSET('C. PoC Adj Factor Scoring'!$E$5:$J$282,,MATCH(AE$4,'C. PoC Adj Factor Scoring'!$E$3:$AH$3,0)-1),MATCH(AE$2&\" Score\",'C. PoC Adj Factor Scoring'!$E$4:$J$4,0),TRUE)","v":1}]
[{"$f":"'A. Population Info'!A124","v":1000340058},{"$f":"'A. Population Info'!L124","v":"OIL"},{"$f":"'A. Population Info'!M124","v":0},{"$f":"'A. Population Info'!N124","v":0},{"$f":"'A. Population Info'!O124","v":0},{"$f":"'A. Population Info'!P124","v":0},{"$f":"VLOOKUP(OFFSET($B:$B,,MATCH(G$4,$B$4:$F$4,0)-1),OFFSET('C. PoC Adj Factor Scoring'!$E$5:$J$282,,MATCH(G$4,'C. PoC Adj Factor Scoring'!$E$3:$AH$3,0)-1),MATCH(G$2&\" Score\",'C. PoC Adj Factor Scoring'!$E$4:$J$4,0),TRUE)","v":4},{"$f":"VLOOKUP(OFFSET($B:$B,,MATCH(H$4,$B$4:$F$4,0)-1),OFFSET('C. PoC Adj Factor Scoring'!$E$5:$J$282,,MATCH(H$4,'C. PoC Adj Factor Scoring'!$E$3:$AH$3,0)-1),MATCH(H$2&\" Score\",'C. PoC Adj Factor Scoring'!$E$4:$J$4,0),TRUE)","v":1},{"$f":"VLOOKUP(OFFSET($B:$B,,MATCH(I$4,$B$4:$F$4,0)-1),OFFSET('C. PoC Adj Factor Scoring'!$E$5:$J$282,,MATCH(I$4,'C. PoC Adj Factor Scoring'!$E$3:$AH$3,0)-1),MATCH(I$2&\" Score\",'C. PoC Adj Factor Scoring'!$E$4:$J$4,0),TRUE)","v":1},{"$f":"VLOOKUP(OFFSET($B:$B,,MATCH(J$4,$B$4:$F$4,0)-1),OFFSET('C. PoC Adj Factor Scoring'!$E$5:$J$282,,MATCH(J$4,'C. PoC Adj Factor Scoring'!$E$3:$AH$3,0)-1),MATCH(J$2&\" Score\",'C. PoC Adj Factor Scoring'!$E$4:$J$4,0),TRUE)","v":1},{"$f":"VLOOKUP(OFFSET($B:$B,,MATCH(K$4,$B$4:$F$4,0)-1),OFFSET('C. PoC Adj Factor Scoring'!$E$5:$J$282,,MATCH(K$4,'C. PoC Adj Factor Scoring'!$E$3:$AH$3,0)-1),MATCH(K$2&\" Score\",'C. PoC Adj Factor Scoring'!$E$4:$J$4,0),TRUE)","v":1},{"$f":"VLOOKUP(OFFSET($B:$B,,MATCH(L$4,$B$4:$F$4,0)-1),OFFSET('C. PoC Adj Factor Scoring'!$E$5:$J$282,,MATCH(L$4,'C. PoC Adj Factor Scoring'!$E$3:$AH$3,0)-1),MATCH(L$2&\" Score\",'C. PoC Adj Factor Scoring'!$E$4:$J$4,0),TRUE)","v":1},{"$f":"VLOOKUP(OFFSET($B:$B,,MATCH(M$4,$B$4:$F$4,0)-1),OFFSET('C. PoC Adj Factor Scoring'!$E$5:$J$282,,MATCH(M$4,'C. PoC Adj Factor Scoring'!$E$3:$AH$3,0)-1),MATCH(M$2&\" Score\",'C. PoC Adj Factor Scoring'!$E$4:$J$4,0),TRUE)","v":1},{"$f":"VLOOKUP(OFFSET($B:$B,,MATCH(N$4,$B$4:$F$4,0)-1),OFFSET('C. PoC Adj Factor Scoring'!$E$5:$J$282,,MATCH(N$4,'C. PoC Adj Factor Scoring'!$E$3:$AH$3,0)-1),MATCH(N$2&\" Score\",'C. PoC Adj Factor Scoring'!$E$4:$J$4,0),TRUE)","v":1},{"$f":"VLOOKUP(OFFSET($B:$B,,MATCH(O$4,$B$4:$F$4,0)-1),OFFSET('C. PoC Adj Factor Scoring'!$E$5:$J$282,,MATCH(O$4,'C. PoC Adj Factor Scoring'!$E$3:$AH$3,0)-1),MATCH(O$2&\" Score\",'C. PoC Adj Factor Scoring'!$E$4:$J$4,0),TRUE)","v":1},{"$f":"VLOOKUP(OFFSET($B:$B,,MATCH(P$4,$B$4:$F$4,0)-1),OFFSET('C. PoC Adj Factor Scoring'!$E$5:$J$282,,MATCH(P$4,'C. PoC Adj Factor Scoring'!$E$3:$AH$3,0)-1),MATCH(P$2&\" Score\",'C. PoC Adj Factor Scoring'!$E$4:$J$4,0),TRUE)","v":1},{"$f":"VLOOKUP(OFFSET($B:$B,,MATCH(Q$4,$B$4:$F$4,0)-1),OFFSET('C. PoC Adj Factor Scoring'!$E$5:$J$282,,MATCH(Q$4,'C. PoC Adj Factor Scoring'!$E$3:$AH$3,0)-1),MATCH(Q$2&\" Score\",'C. PoC Adj Factor Scoring'!$E$4:$J$4,0),TRUE)","v":1},{"$f":"VLOOKUP(OFFSET($B:$B,,MATCH(R$4,$B$4:$F$4,0)-1),OFFSET('C. PoC Adj Factor Scoring'!$E$5:$J$282,,MATCH(R$4,'C. PoC Adj Factor Scoring'!$E$3:$AH$3,0)-1),MATCH(R$2&\" Score\",'C. PoC Adj Factor Scoring'!$E$4:$J$4,0),TRUE)","v":1},{"$f":"VLOOKUP(OFFSET($B:$B,,MATCH(S$4,$B$4:$F$4,0)-1),OFFSET('C. PoC Adj Factor Scoring'!$E$5:$J$282,,MATCH(S$4,'C. PoC Adj Factor Scoring'!$E$3:$AH$3,0)-1),MATCH(S$2&\" Score\",'C. PoC Adj Factor Scoring'!$E$4:$J$4,0),TRUE)","v":1},{"$f":"VLOOKUP(OFFSET($B:$B,,MATCH(T$4,$B$4:$F$4,0)-1),OFFSET('C. PoC Adj Factor Scoring'!$E$5:$J$282,,MATCH(T$4,'C. PoC Adj Factor Scoring'!$E$3:$AH$3,0)-1),MATCH(T$2&\" Score\",'C. PoC Adj Factor Scoring'!$E$4:$J$4,0),TRUE)","v":1},{"$f":"VLOOKUP(OFFSET($B:$B,,MATCH(U$4,$B$4:$F$4,0)-1),OFFSET('C. PoC Adj Factor Scoring'!$E$5:$J$282,,MATCH(U$4,'C. PoC Adj Factor Scoring'!$E$3:$AH$3,0)-1),MATCH(U$2&\" Score\",'C. PoC Adj Factor Scoring'!$E$4:$J$4,0),TRUE)","v":1},{"$f":"VLOOKUP(OFFSET($B:$B,,MATCH(V$4,$B$4:$F$4,0)-1),OFFSET('C. PoC Adj Factor Scoring'!$E$5:$J$282,,MATCH(V$4,'C. PoC Adj Factor Scoring'!$E$3:$AH$3,0)-1),MATCH(V$2&\" Score\",'C. PoC Adj Factor Scoring'!$E$4:$J$4,0),TRUE)","v":1},{"$f":"VLOOKUP(OFFSET($B:$B,,MATCH(W$4,$B$4:$F$4,0)-1),OFFSET('C. PoC Adj Factor Scoring'!$E$5:$J$282,,MATCH(W$4,'C. PoC Adj Factor Scoring'!$E$3:$AH$3,0)-1),MATCH(W$2&\" Score\",'C. PoC Adj Factor Scoring'!$E$4:$J$4,0),TRUE)","v":1},{"$f":"VLOOKUP(OFFSET($B:$B,,MATCH(X$4,$B$4:$F$4,0)-1),OFFSET('C. PoC Adj Factor Scoring'!$E$5:$J$282,,MATCH(X$4,'C. PoC Adj Factor Scoring'!$E$3:$AH$3,0)-1),MATCH(X$2&\" Score\",'C. PoC Adj Factor Scoring'!$E$4:$J$4,0),TRUE)","v":1},{"$f":"VLOOKUP(OFFSET($B:$B,,MATCH(Y$4,$B$4:$F$4,0)-1),OFFSET('C. PoC Adj Factor Scoring'!$E$5:$J$282,,MATCH(Y$4,'C. PoC Adj Factor Scoring'!$E$3:$AH$3,0)-1),MATCH(Y$2&\" Score\",'C. PoC Adj Factor Scoring'!$E$4:$J$4,0),TRUE)","v":1},{"$f":"VLOOKUP(OFFSET($B:$B,,MATCH(Z$4,$B$4:$F$4,0)-1),OFFSET('C. PoC Adj Factor Scoring'!$E$5:$J$282,,MATCH(Z$4,'C. PoC Adj Factor Scoring'!$E$3:$AH$3,0)-1),MATCH(Z$2&\" Score\",'C. PoC Adj Factor Scoring'!$E$4:$J$4,0),TRUE)","v":1},{"$f":"VLOOKUP(OFFSET($B:$B,,MATCH(AA$4,$B$4:$F$4,0)-1),OFFSET('C. PoC Adj Factor Scoring'!$E$5:$J$282,,MATCH(AA$4,'C. PoC Adj Factor Scoring'!$E$3:$AH$3,0)-1),MATCH(AA$2&\" Score\",'C. PoC Adj Factor Scoring'!$E$4:$J$4,0),TRUE)","v":3},{"$f":"VLOOKUP(OFFSET($B:$B,,MATCH(AB$4,$B$4:$F$4,0)-1),OFFSET('C. PoC Adj Factor Scoring'!$E$5:$J$282,,MATCH(AB$4,'C. PoC Adj Factor Scoring'!$E$3:$AH$3,0)-1),MATCH(AB$2&\" Score\",'C. PoC Adj Factor Scoring'!$E$4:$J$4,0),TRUE)","v":1},{"$f":"VLOOKUP(OFFSET($B:$B,,MATCH(AC$4,$B$4:$F$4,0)-1),OFFSET('C. PoC Adj Factor Scoring'!$E$5:$J$282,,MATCH(AC$4,'C. PoC Adj Factor Scoring'!$E$3:$AH$3,0)-1),MATCH(AC$2&\" Score\",'C. PoC Adj Factor Scoring'!$E$4:$J$4,0),TRUE)","v":1},{"$f":"VLOOKUP(OFFSET($B:$B,,MATCH(AD$4,$B$4:$F$4,0)-1),OFFSET('C. PoC Adj Factor Scoring'!$E$5:$J$282,,MATCH(AD$4,'C. PoC Adj Factor Scoring'!$E$3:$AH$3,0)-1),MATCH(AD$2&\" Score\",'C. PoC Adj Factor Scoring'!$E$4:$J$4,0),TRUE)","v":1},{"$f":"VLOOKUP(OFFSET($B:$B,,MATCH(AE$4,$B$4:$F$4,0)-1),OFFSET('C. PoC Adj Factor Scoring'!$E$5:$J$282,,MATCH(AE$4,'C. PoC Adj Factor Scoring'!$E$3:$AH$3,0)-1),MATCH(AE$2&\" Score\",'C. PoC Adj Factor Scoring'!$E$4:$J$4,0),TRUE)","v":1}]
[{"$f":"'A. Population Info'!A125","v":1000340087},{"$f":"'A. Population Info'!L125","v":"OIL"},{"$f":"'A. Population Info'!M125","v":0},{"$f":"'A. Population Info'!N125","v":0},{"$f":"'A. Population Info'!O125","v":0},{"$f":"'A. Population Info'!P125","v":0},{"$f":"VLOOKUP(OFFSET($B:$B,,MATCH(G$4,$B$4:$F$4,0)-1),OFFSET('C. PoC Adj Factor Scoring'!$E$5:$J$282,,MATCH(G$4,'C. PoC Adj Factor Scoring'!$E$3:$AH$3,0)-1),MATCH(G$2&\" Score\",'C. PoC Adj Factor Scoring'!$E$4:$J$4,0),TRUE)","v":4},{"$f":"VLOOKUP(OFFSET($B:$B,,MATCH(H$4,$B$4:$F$4,0)-1),OFFSET('C. PoC Adj Factor Scoring'!$E$5:$J$282,,MATCH(H$4,'C. PoC Adj Factor Scoring'!$E$3:$AH$3,0)-1),MATCH(H$2&\" Score\",'C. PoC Adj Factor Scoring'!$E$4:$J$4,0),TRUE)","v":1},{"$f":"VLOOKUP(OFFSET($B:$B,,MATCH(I$4,$B$4:$F$4,0)-1),OFFSET('C. PoC Adj Factor Scoring'!$E$5:$J$282,,MATCH(I$4,'C. PoC Adj Factor Scoring'!$E$3:$AH$3,0)-1),MATCH(I$2&\" Score\",'C. PoC Adj Factor Scoring'!$E$4:$J$4,0),TRUE)","v":1},{"$f":"VLOOKUP(OFFSET($B:$B,,MATCH(J$4,$B$4:$F$4,0)-1),OFFSET('C. PoC Adj Factor Scoring'!$E$5:$J$282,,MATCH(J$4,'C. PoC Adj Factor Scoring'!$E$3:$AH$3,0)-1),MATCH(J$2&\" Score\",'C. PoC Adj Factor Scoring'!$E$4:$J$4,0),TRUE)","v":1},{"$f":"VLOOKUP(OFFSET($B:$B,,MATCH(K$4,$B$4:$F$4,0)-1),OFFSET('C. PoC Adj Factor Scoring'!$E$5:$J$282,,MATCH(K$4,'C. PoC Adj Factor Scoring'!$E$3:$AH$3,0)-1),MATCH(K$2&\" Score\",'C. PoC Adj Factor Scoring'!$E$4:$J$4,0),TRUE)","v":1},{"$f":"VLOOKUP(OFFSET($B:$B,,MATCH(L$4,$B$4:$F$4,0)-1),OFFSET('C. PoC Adj Factor Scoring'!$E$5:$J$282,,MATCH(L$4,'C. PoC Adj Factor Scoring'!$E$3:$AH$3,0)-1),MATCH(L$2&\" Score\",'C. PoC Adj Factor Scoring'!$E$4:$J$4,0),TRUE)","v":1},{"$f":"VLOOKUP(OFFSET($B:$B,,MATCH(M$4,$B$4:$F$4,0)-1),OFFSET('C. PoC Adj Factor Scoring'!$E$5:$J$282,,MATCH(M$4,'C. PoC Adj Factor Scoring'!$E$3:$AH$3,0)-1),MATCH(M$2&\" Score\",'C. PoC Adj Factor Scoring'!$E$4:$J$4,0),TRUE)","v":1},{"$f":"VLOOKUP(OFFSET($B:$B,,MATCH(N$4,$B$4:$F$4,0)-1),OFFSET('C. PoC Adj Factor Scoring'!$E$5:$J$282,,MATCH(N$4,'C. PoC Adj Factor Scoring'!$E$3:$AH$3,0)-1),MATCH(N$2&\" Score\",'C. PoC Adj Factor Scoring'!$E$4:$J$4,0),TRUE)","v":1},{"$f":"VLOOKUP(OFFSET($B:$B,,MATCH(O$4,$B$4:$F$4,0)-1),OFFSET('C. PoC Adj Factor Scoring'!$E$5:$J$282,,MATCH(O$4,'C. PoC Adj Factor Scoring'!$E$3:$AH$3,0)-1),MATCH(O$2&\" Score\",'C. PoC Adj Factor Scoring'!$E$4:$J$4,0),TRUE)","v":1},{"$f":"VLOOKUP(OFFSET($B:$B,,MATCH(P$4,$B$4:$F$4,0)-1),OFFSET('C. PoC Adj Factor Scoring'!$E$5:$J$282,,MATCH(P$4,'C. PoC Adj Factor Scoring'!$E$3:$AH$3,0)-1),MATCH(P$2&\" Score\",'C. PoC Adj Factor Scoring'!$E$4:$J$4,0),TRUE)","v":1},{"$f":"VLOOKUP(OFFSET($B:$B,,MATCH(Q$4,$B$4:$F$4,0)-1),OFFSET('C. PoC Adj Factor Scoring'!$E$5:$J$282,,MATCH(Q$4,'C. PoC Adj Factor Scoring'!$E$3:$AH$3,0)-1),MATCH(Q$2&\" Score\",'C. PoC Adj Factor Scoring'!$E$4:$J$4,0),TRUE)","v":1},{"$f":"VLOOKUP(OFFSET($B:$B,,MATCH(R$4,$B$4:$F$4,0)-1),OFFSET('C. PoC Adj Factor Scoring'!$E$5:$J$282,,MATCH(R$4,'C. PoC Adj Factor Scoring'!$E$3:$AH$3,0)-1),MATCH(R$2&\" Score\",'C. PoC Adj Factor Scoring'!$E$4:$J$4,0),TRUE)","v":1},{"$f":"VLOOKUP(OFFSET($B:$B,,MATCH(S$4,$B$4:$F$4,0)-1),OFFSET('C. PoC Adj Factor Scoring'!$E$5:$J$282,,MATCH(S$4,'C. PoC Adj Factor Scoring'!$E$3:$AH$3,0)-1),MATCH(S$2&\" Score\",'C. PoC Adj Factor Scoring'!$E$4:$J$4,0),TRUE)","v":1},{"$f":"VLOOKUP(OFFSET($B:$B,,MATCH(T$4,$B$4:$F$4,0)-1),OFFSET('C. PoC Adj Factor Scoring'!$E$5:$J$282,,MATCH(T$4,'C. PoC Adj Factor Scoring'!$E$3:$AH$3,0)-1),MATCH(T$2&\" Score\",'C. PoC Adj Factor Scoring'!$E$4:$J$4,0),TRUE)","v":1},{"$f":"VLOOKUP(OFFSET($B:$B,,MATCH(U$4,$B$4:$F$4,0)-1),OFFSET('C. PoC Adj Factor Scoring'!$E$5:$J$282,,MATCH(U$4,'C. PoC Adj Factor Scoring'!$E$3:$AH$3,0)-1),MATCH(U$2&\" Score\",'C. PoC Adj Factor Scoring'!$E$4:$J$4,0),TRUE)","v":1},{"$f":"VLOOKUP(OFFSET($B:$B,,MATCH(V$4,$B$4:$F$4,0)-1),OFFSET('C. PoC Adj Factor Scoring'!$E$5:$J$282,,MATCH(V$4,'C. PoC Adj Factor Scoring'!$E$3:$AH$3,0)-1),MATCH(V$2&\" Score\",'C. PoC Adj Factor Scoring'!$E$4:$J$4,0),TRUE)","v":1},{"$f":"VLOOKUP(OFFSET($B:$B,,MATCH(W$4,$B$4:$F$4,0)-1),OFFSET('C. PoC Adj Factor Scoring'!$E$5:$J$282,,MATCH(W$4,'C. PoC Adj Factor Scoring'!$E$3:$AH$3,0)-1),MATCH(W$2&\" Score\",'C. PoC Adj Factor Scoring'!$E$4:$J$4,0),TRUE)","v":1},{"$f":"VLOOKUP(OFFSET($B:$B,,MATCH(X$4,$B$4:$F$4,0)-1),OFFSET('C. PoC Adj Factor Scoring'!$E$5:$J$282,,MATCH(X$4,'C. PoC Adj Factor Scoring'!$E$3:$AH$3,0)-1),MATCH(X$2&\" Score\",'C. PoC Adj Factor Scoring'!$E$4:$J$4,0),TRUE)","v":1},{"$f":"VLOOKUP(OFFSET($B:$B,,MATCH(Y$4,$B$4:$F$4,0)-1),OFFSET('C. PoC Adj Factor Scoring'!$E$5:$J$282,,MATCH(Y$4,'C. PoC Adj Factor Scoring'!$E$3:$AH$3,0)-1),MATCH(Y$2&\" Score\",'C. PoC Adj Factor Scoring'!$E$4:$J$4,0),TRUE)","v":1},{"$f":"VLOOKUP(OFFSET($B:$B,,MATCH(Z$4,$B$4:$F$4,0)-1),OFFSET('C. PoC Adj Factor Scoring'!$E$5:$J$282,,MATCH(Z$4,'C. PoC Adj Factor Scoring'!$E$3:$AH$3,0)-1),MATCH(Z$2&\" Score\",'C. PoC Adj Factor Scoring'!$E$4:$J$4,0),TRUE)","v":1},{"$f":"VLOOKUP(OFFSET($B:$B,,MATCH(AA$4,$B$4:$F$4,0)-1),OFFSET('C. PoC Adj Factor Scoring'!$E$5:$J$282,,MATCH(AA$4,'C. PoC Adj Factor Scoring'!$E$3:$AH$3,0)-1),MATCH(AA$2&\" Score\",'C. PoC Adj Factor Scoring'!$E$4:$J$4,0),TRUE)","v":3},{"$f":"VLOOKUP(OFFSET($B:$B,,MATCH(AB$4,$B$4:$F$4,0)-1),OFFSET('C. PoC Adj Factor Scoring'!$E$5:$J$282,,MATCH(AB$4,'C. PoC Adj Factor Scoring'!$E$3:$AH$3,0)-1),MATCH(AB$2&\" Score\",'C. PoC Adj Factor Scoring'!$E$4:$J$4,0),TRUE)","v":1},{"$f":"VLOOKUP(OFFSET($B:$B,,MATCH(AC$4,$B$4:$F$4,0)-1),OFFSET('C. PoC Adj Factor Scoring'!$E$5:$J$282,,MATCH(AC$4,'C. PoC Adj Factor Scoring'!$E$3:$AH$3,0)-1),MATCH(AC$2&\" Score\",'C. PoC Adj Factor Scoring'!$E$4:$J$4,0),TRUE)","v":1},{"$f":"VLOOKUP(OFFSET($B:$B,,MATCH(AD$4,$B$4:$F$4,0)-1),OFFSET('C. PoC Adj Factor Scoring'!$E$5:$J$282,,MATCH(AD$4,'C. PoC Adj Factor Scoring'!$E$3:$AH$3,0)-1),MATCH(AD$2&\" Score\",'C. PoC Adj Factor Scoring'!$E$4:$J$4,0),TRUE)","v":1},{"$f":"VLOOKUP(OFFSET($B:$B,,MATCH(AE$4,$B$4:$F$4,0)-1),OFFSET('C. PoC Adj Factor Scoring'!$E$5:$J$282,,MATCH(AE$4,'C. PoC Adj Factor Scoring'!$E$3:$AH$3,0)-1),MATCH(AE$2&\" Score\",'C. PoC Adj Factor Scoring'!$E$4:$J$4,0),TRUE)","v":1}]
[{"$f":"'A. Population Info'!A126","v":1000340114},{"$f":"'A. Population Info'!L126","v":"OIL"},{"$f":"'A. Population Info'!M126","v":0},{"$f":"'A. Population Info'!N126","v":0},{"$f":"'A. Population Info'!O126","v":0},{"$f":"'A. Population Info'!P126","v":0},{"$f":"VLOOKUP(OFFSET($B:$B,,MATCH(G$4,$B$4:$F$4,0)-1),OFFSET('C. PoC Adj Factor Scoring'!$E$5:$J$282,,MATCH(G$4,'C. PoC Adj Factor Scoring'!$E$3:$AH$3,0)-1),MATCH(G$2&\" Score\",'C. PoC Adj Factor Scoring'!$E$4:$J$4,0),TRUE)","v":4},{"$f":"VLOOKUP(OFFSET($B:$B,,MATCH(H$4,$B$4:$F$4,0)-1),OFFSET('C. PoC Adj Factor Scoring'!$E$5:$J$282,,MATCH(H$4,'C. PoC Adj Factor Scoring'!$E$3:$AH$3,0)-1),MATCH(H$2&\" Score\",'C. PoC Adj Factor Scoring'!$E$4:$J$4,0),TRUE)","v":1},{"$f":"VLOOKUP(OFFSET($B:$B,,MATCH(I$4,$B$4:$F$4,0)-1),OFFSET('C. PoC Adj Factor Scoring'!$E$5:$J$282,,MATCH(I$4,'C. PoC Adj Factor Scoring'!$E$3:$AH$3,0)-1),MATCH(I$2&\" Score\",'C. PoC Adj Factor Scoring'!$E$4:$J$4,0),TRUE)","v":1},{"$f":"VLOOKUP(OFFSET($B:$B,,MATCH(J$4,$B$4:$F$4,0)-1),OFFSET('C. PoC Adj Factor Scoring'!$E$5:$J$282,,MATCH(J$4,'C. PoC Adj Factor Scoring'!$E$3:$AH$3,0)-1),MATCH(J$2&\" Score\",'C. PoC Adj Factor Scoring'!$E$4:$J$4,0),TRUE)","v":1},{"$f":"VLOOKUP(OFFSET($B:$B,,MATCH(K$4,$B$4:$F$4,0)-1),OFFSET('C. PoC Adj Factor Scoring'!$E$5:$J$282,,MATCH(K$4,'C. PoC Adj Factor Scoring'!$E$3:$AH$3,0)-1),MATCH(K$2&\" Score\",'C. PoC Adj Factor Scoring'!$E$4:$J$4,0),TRUE)","v":1},{"$f":"VLOOKUP(OFFSET($B:$B,,MATCH(L$4,$B$4:$F$4,0)-1),OFFSET('C. PoC Adj Factor Scoring'!$E$5:$J$282,,MATCH(L$4,'C. PoC Adj Factor Scoring'!$E$3:$AH$3,0)-1),MATCH(L$2&\" Score\",'C. PoC Adj Factor Scoring'!$E$4:$J$4,0),TRUE)","v":1},{"$f":"VLOOKUP(OFFSET($B:$B,,MATCH(M$4,$B$4:$F$4,0)-1),OFFSET('C. PoC Adj Factor Scoring'!$E$5:$J$282,,MATCH(M$4,'C. PoC Adj Factor Scoring'!$E$3:$AH$3,0)-1),MATCH(M$2&\" Score\",'C. PoC Adj Factor Scoring'!$E$4:$J$4,0),TRUE)","v":1},{"$f":"VLOOKUP(OFFSET($B:$B,,MATCH(N$4,$B$4:$F$4,0)-1),OFFSET('C. PoC Adj Factor Scoring'!$E$5:$J$282,,MATCH(N$4,'C. PoC Adj Factor Scoring'!$E$3:$AH$3,0)-1),MATCH(N$2&\" Score\",'C. PoC Adj Factor Scoring'!$E$4:$J$4,0),TRUE)","v":1},{"$f":"VLOOKUP(OFFSET($B:$B,,MATCH(O$4,$B$4:$F$4,0)-1),OFFSET('C. PoC Adj Factor Scoring'!$E$5:$J$282,,MATCH(O$4,'C. PoC Adj Factor Scoring'!$E$3:$AH$3,0)-1),MATCH(O$2&\" Score\",'C. PoC Adj Factor Scoring'!$E$4:$J$4,0),TRUE)","v":1},{"$f":"VLOOKUP(OFFSET($B:$B,,MATCH(P$4,$B$4:$F$4,0)-1),OFFSET('C. PoC Adj Factor Scoring'!$E$5:$J$282,,MATCH(P$4,'C. PoC Adj Factor Scoring'!$E$3:$AH$3,0)-1),MATCH(P$2&\" Score\",'C. PoC Adj Factor Scoring'!$E$4:$J$4,0),TRUE)","v":1},{"$f":"VLOOKUP(OFFSET($B:$B,,MATCH(Q$4,$B$4:$F$4,0)-1),OFFSET('C. PoC Adj Factor Scoring'!$E$5:$J$282,,MATCH(Q$4,'C. PoC Adj Factor Scoring'!$E$3:$AH$3,0)-1),MATCH(Q$2&\" Score\",'C. PoC Adj Factor Scoring'!$E$4:$J$4,0),TRUE)","v":1},{"$f":"VLOOKUP(OFFSET($B:$B,,MATCH(R$4,$B$4:$F$4,0)-1),OFFSET('C. PoC Adj Factor Scoring'!$E$5:$J$282,,MATCH(R$4,'C. PoC Adj Factor Scoring'!$E$3:$AH$3,0)-1),MATCH(R$2&\" Score\",'C. PoC Adj Factor Scoring'!$E$4:$J$4,0),TRUE)","v":1},{"$f":"VLOOKUP(OFFSET($B:$B,,MATCH(S$4,$B$4:$F$4,0)-1),OFFSET('C. PoC Adj Factor Scoring'!$E$5:$J$282,,MATCH(S$4,'C. PoC Adj Factor Scoring'!$E$3:$AH$3,0)-1),MATCH(S$2&\" Score\",'C. PoC Adj Factor Scoring'!$E$4:$J$4,0),TRUE)","v":1},{"$f":"VLOOKUP(OFFSET($B:$B,,MATCH(T$4,$B$4:$F$4,0)-1),OFFSET('C. PoC Adj Factor Scoring'!$E$5:$J$282,,MATCH(T$4,'C. PoC Adj Factor Scoring'!$E$3:$AH$3,0)-1),MATCH(T$2&\" Score\",'C. PoC Adj Factor Scoring'!$E$4:$J$4,0),TRUE)","v":1},{"$f":"VLOOKUP(OFFSET($B:$B,,MATCH(U$4,$B$4:$F$4,0)-1),OFFSET('C. PoC Adj Factor Scoring'!$E$5:$J$282,,MATCH(U$4,'C. PoC Adj Factor Scoring'!$E$3:$AH$3,0)-1),MATCH(U$2&\" Score\",'C. PoC Adj Factor Scoring'!$E$4:$J$4,0),TRUE)","v":1},{"$f":"VLOOKUP(OFFSET($B:$B,,MATCH(V$4,$B$4:$F$4,0)-1),OFFSET('C. PoC Adj Factor Scoring'!$E$5:$J$282,,MATCH(V$4,'C. PoC Adj Factor Scoring'!$E$3:$AH$3,0)-1),MATCH(V$2&\" Score\",'C. PoC Adj Factor Scoring'!$E$4:$J$4,0),TRUE)","v":1},{"$f":"VLOOKUP(OFFSET($B:$B,,MATCH(W$4,$B$4:$F$4,0)-1),OFFSET('C. PoC Adj Factor Scoring'!$E$5:$J$282,,MATCH(W$4,'C. PoC Adj Factor Scoring'!$E$3:$AH$3,0)-1),MATCH(W$2&\" Score\",'C. PoC Adj Factor Scoring'!$E$4:$J$4,0),TRUE)","v":1},{"$f":"VLOOKUP(OFFSET($B:$B,,MATCH(X$4,$B$4:$F$4,0)-1),OFFSET('C. PoC Adj Factor Scoring'!$E$5:$J$282,,MATCH(X$4,'C. PoC Adj Factor Scoring'!$E$3:$AH$3,0)-1),MATCH(X$2&\" Score\",'C. PoC Adj Factor Scoring'!$E$4:$J$4,0),TRUE)","v":1},{"$f":"VLOOKUP(OFFSET($B:$B,,MATCH(Y$4,$B$4:$F$4,0)-1),OFFSET('C. PoC Adj Factor Scoring'!$E$5:$J$282,,MATCH(Y$4,'C. PoC Adj Factor Scoring'!$E$3:$AH$3,0)-1),MATCH(Y$2&\" Score\",'C. PoC Adj Factor Scoring'!$E$4:$J$4,0),TRUE)","v":1},{"$f":"VLOOKUP(OFFSET($B:$B,,MATCH(Z$4,$B$4:$F$4,0)-1),OFFSET('C. PoC Adj Factor Scoring'!$E$5:$J$282,,MATCH(Z$4,'C. PoC Adj Factor Scoring'!$E$3:$AH$3,0)-1),MATCH(Z$2&\" Score\",'C. PoC Adj Factor Scoring'!$E$4:$J$4,0),TRUE)","v":1},{"$f":"VLOOKUP(OFFSET($B:$B,,MATCH(AA$4,$B$4:$F$4,0)-1),OFFSET('C. PoC Adj Factor Scoring'!$E$5:$J$282,,MATCH(AA$4,'C. PoC Adj Factor Scoring'!$E$3:$AH$3,0)-1),MATCH(AA$2&\" Score\",'C. PoC Adj Factor Scoring'!$E$4:$J$4,0),TRUE)","v":3},{"$f":"VLOOKUP(OFFSET($B:$B,,MATCH(AB$4,$B$4:$F$4,0)-1),OFFSET('C. PoC Adj Factor Scoring'!$E$5:$J$282,,MATCH(AB$4,'C. PoC Adj Factor Scoring'!$E$3:$AH$3,0)-1),MATCH(AB$2&\" Score\",'C. PoC Adj Factor Scoring'!$E$4:$J$4,0),TRUE)","v":1},{"$f":"VLOOKUP(OFFSET($B:$B,,MATCH(AC$4,$B$4:$F$4,0)-1),OFFSET('C. PoC Adj Factor Scoring'!$E$5:$J$282,,MATCH(AC$4,'C. PoC Adj Factor Scoring'!$E$3:$AH$3,0)-1),MATCH(AC$2&\" Score\",'C. PoC Adj Factor Scoring'!$E$4:$J$4,0),TRUE)","v":1},{"$f":"VLOOKUP(OFFSET($B:$B,,MATCH(AD$4,$B$4:$F$4,0)-1),OFFSET('C. PoC Adj Factor Scoring'!$E$5:$J$282,,MATCH(AD$4,'C. PoC Adj Factor Scoring'!$E$3:$AH$3,0)-1),MATCH(AD$2&\" Score\",'C. PoC Adj Factor Scoring'!$E$4:$J$4,0),TRUE)","v":1},{"$f":"VLOOKUP(OFFSET($B:$B,,MATCH(AE$4,$B$4:$F$4,0)-1),OFFSET('C. PoC Adj Factor Scoring'!$E$5:$J$282,,MATCH(AE$4,'C. PoC Adj Factor Scoring'!$E$3:$AH$3,0)-1),MATCH(AE$2&\" Score\",'C. PoC Adj Factor Scoring'!$E$4:$J$4,0),TRUE)","v":1}]
[{"$f":"'A. Population Info'!A127","v":1000340144},{"$f":"'A. Population Info'!L127","v":"OIL"},{"$f":"'A. Population Info'!M127","v":0},{"$f":"'A. Population Info'!N127","v":0},{"$f":"'A. Population Info'!O127","v":0},{"$f":"'A. Population Info'!P127","v":0},{"$f":"VLOOKUP(OFFSET($B:$B,,MATCH(G$4,$B$4:$F$4,0)-1),OFFSET('C. PoC Adj Factor Scoring'!$E$5:$J$282,,MATCH(G$4,'C. PoC Adj Factor Scoring'!$E$3:$AH$3,0)-1),MATCH(G$2&\" Score\",'C. PoC Adj Factor Scoring'!$E$4:$J$4,0),TRUE)","v":4},{"$f":"VLOOKUP(OFFSET($B:$B,,MATCH(H$4,$B$4:$F$4,0)-1),OFFSET('C. PoC Adj Factor Scoring'!$E$5:$J$282,,MATCH(H$4,'C. PoC Adj Factor Scoring'!$E$3:$AH$3,0)-1),MATCH(H$2&\" Score\",'C. PoC Adj Factor Scoring'!$E$4:$J$4,0),TRUE)","v":1},{"$f":"VLOOKUP(OFFSET($B:$B,,MATCH(I$4,$B$4:$F$4,0)-1),OFFSET('C. PoC Adj Factor Scoring'!$E$5:$J$282,,MATCH(I$4,'C. PoC Adj Factor Scoring'!$E$3:$AH$3,0)-1),MATCH(I$2&\" Score\",'C. PoC Adj Factor Scoring'!$E$4:$J$4,0),TRUE)","v":1},{"$f":"VLOOKUP(OFFSET($B:$B,,MATCH(J$4,$B$4:$F$4,0)-1),OFFSET('C. PoC Adj Factor Scoring'!$E$5:$J$282,,MATCH(J$4,'C. PoC Adj Factor Scoring'!$E$3:$AH$3,0)-1),MATCH(J$2&\" Score\",'C. PoC Adj Factor Scoring'!$E$4:$J$4,0),TRUE)","v":1},{"$f":"VLOOKUP(OFFSET($B:$B,,MATCH(K$4,$B$4:$F$4,0)-1),OFFSET('C. PoC Adj Factor Scoring'!$E$5:$J$282,,MATCH(K$4,'C. PoC Adj Factor Scoring'!$E$3:$AH$3,0)-1),MATCH(K$2&\" Score\",'C. PoC Adj Factor Scoring'!$E$4:$J$4,0),TRUE)","v":1},{"$f":"VLOOKUP(OFFSET($B:$B,,MATCH(L$4,$B$4:$F$4,0)-1),OFFSET('C. PoC Adj Factor Scoring'!$E$5:$J$282,,MATCH(L$4,'C. PoC Adj Factor Scoring'!$E$3:$AH$3,0)-1),MATCH(L$2&\" Score\",'C. PoC Adj Factor Scoring'!$E$4:$J$4,0),TRUE)","v":1},{"$f":"VLOOKUP(OFFSET($B:$B,,MATCH(M$4,$B$4:$F$4,0)-1),OFFSET('C. PoC Adj Factor Scoring'!$E$5:$J$282,,MATCH(M$4,'C. PoC Adj Factor Scoring'!$E$3:$AH$3,0)-1),MATCH(M$2&\" Score\",'C. PoC Adj Factor Scoring'!$E$4:$J$4,0),TRUE)","v":1},{"$f":"VLOOKUP(OFFSET($B:$B,,MATCH(N$4,$B$4:$F$4,0)-1),OFFSET('C. PoC Adj Factor Scoring'!$E$5:$J$282,,MATCH(N$4,'C. PoC Adj Factor Scoring'!$E$3:$AH$3,0)-1),MATCH(N$2&\" Score\",'C. PoC Adj Factor Scoring'!$E$4:$J$4,0),TRUE)","v":1},{"$f":"VLOOKUP(OFFSET($B:$B,,MATCH(O$4,$B$4:$F$4,0)-1),OFFSET('C. PoC Adj Factor Scoring'!$E$5:$J$282,,MATCH(O$4,'C. PoC Adj Factor Scoring'!$E$3:$AH$3,0)-1),MATCH(O$2&\" Score\",'C. PoC Adj Factor Scoring'!$E$4:$J$4,0),TRUE)","v":1},{"$f":"VLOOKUP(OFFSET($B:$B,,MATCH(P$4,$B$4:$F$4,0)-1),OFFSET('C. PoC Adj Factor Scoring'!$E$5:$J$282,,MATCH(P$4,'C. PoC Adj Factor Scoring'!$E$3:$AH$3,0)-1),MATCH(P$2&\" Score\",'C. PoC Adj Factor Scoring'!$E$4:$J$4,0),TRUE)","v":1},{"$f":"VLOOKUP(OFFSET($B:$B,,MATCH(Q$4,$B$4:$F$4,0)-1),OFFSET('C. PoC Adj Factor Scoring'!$E$5:$J$282,,MATCH(Q$4,'C. PoC Adj Factor Scoring'!$E$3:$AH$3,0)-1),MATCH(Q$2&\" Score\",'C. PoC Adj Factor Scoring'!$E$4:$J$4,0),TRUE)","v":1},{"$f":"VLOOKUP(OFFSET($B:$B,,MATCH(R$4,$B$4:$F$4,0)-1),OFFSET('C. PoC Adj Factor Scoring'!$E$5:$J$282,,MATCH(R$4,'C. PoC Adj Factor Scoring'!$E$3:$AH$3,0)-1),MATCH(R$2&\" Score\",'C. PoC Adj Factor Scoring'!$E$4:$J$4,0),TRUE)","v":1},{"$f":"VLOOKUP(OFFSET($B:$B,,MATCH(S$4,$B$4:$F$4,0)-1),OFFSET('C. PoC Adj Factor Scoring'!$E$5:$J$282,,MATCH(S$4,'C. PoC Adj Factor Scoring'!$E$3:$AH$3,0)-1),MATCH(S$2&\" Score\",'C. PoC Adj Factor Scoring'!$E$4:$J$4,0),TRUE)","v":1},{"$f":"VLOOKUP(OFFSET($B:$B,,MATCH(T$4,$B$4:$F$4,0)-1),OFFSET('C. PoC Adj Factor Scoring'!$E$5:$J$282,,MATCH(T$4,'C. PoC Adj Factor Scoring'!$E$3:$AH$3,0)-1),MATCH(T$2&\" Score\",'C. PoC Adj Factor Scoring'!$E$4:$J$4,0),TRUE)","v":1},{"$f":"VLOOKUP(OFFSET($B:$B,,MATCH(U$4,$B$4:$F$4,0)-1),OFFSET('C. PoC Adj Factor Scoring'!$E$5:$J$282,,MATCH(U$4,'C. PoC Adj Factor Scoring'!$E$3:$AH$3,0)-1),MATCH(U$2&\" Score\",'C. PoC Adj Factor Scoring'!$E$4:$J$4,0),TRUE)","v":1},{"$f":"VLOOKUP(OFFSET($B:$B,,MATCH(V$4,$B$4:$F$4,0)-1),OFFSET('C. PoC Adj Factor Scoring'!$E$5:$J$282,,MATCH(V$4,'C. PoC Adj Factor Scoring'!$E$3:$AH$3,0)-1),MATCH(V$2&\" Score\",'C. PoC Adj Factor Scoring'!$E$4:$J$4,0),TRUE)","v":1},{"$f":"VLOOKUP(OFFSET($B:$B,,MATCH(W$4,$B$4:$F$4,0)-1),OFFSET('C. PoC Adj Factor Scoring'!$E$5:$J$282,,MATCH(W$4,'C. PoC Adj Factor Scoring'!$E$3:$AH$3,0)-1),MATCH(W$2&\" Score\",'C. PoC Adj Factor Scoring'!$E$4:$J$4,0),TRUE)","v":1},{"$f":"VLOOKUP(OFFSET($B:$B,,MATCH(X$4,$B$4:$F$4,0)-1),OFFSET('C. PoC Adj Factor Scoring'!$E$5:$J$282,,MATCH(X$4,'C. PoC Adj Factor Scoring'!$E$3:$AH$3,0)-1),MATCH(X$2&\" Score\",'C. PoC Adj Factor Scoring'!$E$4:$J$4,0),TRUE)","v":1},{"$f":"VLOOKUP(OFFSET($B:$B,,MATCH(Y$4,$B$4:$F$4,0)-1),OFFSET('C. PoC Adj Factor Scoring'!$E$5:$J$282,,MATCH(Y$4,'C. PoC Adj Factor Scoring'!$E$3:$AH$3,0)-1),MATCH(Y$2&\" Score\",'C. PoC Adj Factor Scoring'!$E$4:$J$4,0),TRUE)","v":1},{"$f":"VLOOKUP(OFFSET($B:$B,,MATCH(Z$4,$B$4:$F$4,0)-1),OFFSET('C. PoC Adj Factor Scoring'!$E$5:$J$282,,MATCH(Z$4,'C. PoC Adj Factor Scoring'!$E$3:$AH$3,0)-1),MATCH(Z$2&\" Score\",'C. PoC Adj Factor Scoring'!$E$4:$J$4,0),TRUE)","v":1},{"$f":"VLOOKUP(OFFSET($B:$B,,MATCH(AA$4,$B$4:$F$4,0)-1),OFFSET('C. PoC Adj Factor Scoring'!$E$5:$J$282,,MATCH(AA$4,'C. PoC Adj Factor Scoring'!$E$3:$AH$3,0)-1),MATCH(AA$2&\" Score\",'C. PoC Adj Factor Scoring'!$E$4:$J$4,0),TRUE)","v":3},{"$f":"VLOOKUP(OFFSET($B:$B,,MATCH(AB$4,$B$4:$F$4,0)-1),OFFSET('C. PoC Adj Factor Scoring'!$E$5:$J$282,,MATCH(AB$4,'C. PoC Adj Factor Scoring'!$E$3:$AH$3,0)-1),MATCH(AB$2&\" Score\",'C. PoC Adj Factor Scoring'!$E$4:$J$4,0),TRUE)","v":1},{"$f":"VLOOKUP(OFFSET($B:$B,,MATCH(AC$4,$B$4:$F$4,0)-1),OFFSET('C. PoC Adj Factor Scoring'!$E$5:$J$282,,MATCH(AC$4,'C. PoC Adj Factor Scoring'!$E$3:$AH$3,0)-1),MATCH(AC$2&\" Score\",'C. PoC Adj Factor Scoring'!$E$4:$J$4,0),TRUE)","v":1},{"$f":"VLOOKUP(OFFSET($B:$B,,MATCH(AD$4,$B$4:$F$4,0)-1),OFFSET('C. PoC Adj Factor Scoring'!$E$5:$J$282,,MATCH(AD$4,'C. PoC Adj Factor Scoring'!$E$3:$AH$3,0)-1),MATCH(AD$2&\" Score\",'C. PoC Adj Factor Scoring'!$E$4:$J$4,0),TRUE)","v":1},{"$f":"VLOOKUP(OFFSET($B:$B,,MATCH(AE$4,$B$4:$F$4,0)-1),OFFSET('C. PoC Adj Factor Scoring'!$E$5:$J$282,,MATCH(AE$4,'C. PoC Adj Factor Scoring'!$E$3:$AH$3,0)-1),MATCH(AE$2&\" Score\",'C. PoC Adj Factor Scoring'!$E$4:$J$4,0),TRUE)","v":1}]
[{"$f":"'A. Population Info'!A128","v":1000340385},{"$f":"'A. Population Info'!L128","v":"OIL"},{"$f":"'A. Population Info'!M128","v":0},{"$f":"'A. Population Info'!N128","v":0},{"$f":"'A. Population Info'!O128","v":0},{"$f":"'A. Population Info'!P128","v":0},{"$f":"VLOOKUP(OFFSET($B:$B,,MATCH(G$4,$B$4:$F$4,0)-1),OFFSET('C. PoC Adj Factor Scoring'!$E$5:$J$282,,MATCH(G$4,'C. PoC Adj Factor Scoring'!$E$3:$AH$3,0)-1),MATCH(G$2&\" Score\",'C. PoC Adj Factor Scoring'!$E$4:$J$4,0),TRUE)","v":4},{"$f":"VLOOKUP(OFFSET($B:$B,,MATCH(H$4,$B$4:$F$4,0)-1),OFFSET('C. PoC Adj Factor Scoring'!$E$5:$J$282,,MATCH(H$4,'C. PoC Adj Factor Scoring'!$E$3:$AH$3,0)-1),MATCH(H$2&\" Score\",'C. PoC Adj Factor Scoring'!$E$4:$J$4,0),TRUE)","v":1},{"$f":"VLOOKUP(OFFSET($B:$B,,MATCH(I$4,$B$4:$F$4,0)-1),OFFSET('C. PoC Adj Factor Scoring'!$E$5:$J$282,,MATCH(I$4,'C. PoC Adj Factor Scoring'!$E$3:$AH$3,0)-1),MATCH(I$2&\" Score\",'C. PoC Adj Factor Scoring'!$E$4:$J$4,0),TRUE)","v":1},{"$f":"VLOOKUP(OFFSET($B:$B,,MATCH(J$4,$B$4:$F$4,0)-1),OFFSET('C. PoC Adj Factor Scoring'!$E$5:$J$282,,MATCH(J$4,'C. PoC Adj Factor Scoring'!$E$3:$AH$3,0)-1),MATCH(J$2&\" Score\",'C. PoC Adj Factor Scoring'!$E$4:$J$4,0),TRUE)","v":1},{"$f":"VLOOKUP(OFFSET($B:$B,,MATCH(K$4,$B$4:$F$4,0)-1),OFFSET('C. PoC Adj Factor Scoring'!$E$5:$J$282,,MATCH(K$4,'C. PoC Adj Factor Scoring'!$E$3:$AH$3,0)-1),MATCH(K$2&\" Score\",'C. PoC Adj Factor Scoring'!$E$4:$J$4,0),TRUE)","v":1},{"$f":"VLOOKUP(OFFSET($B:$B,,MATCH(L$4,$B$4:$F$4,0)-1),OFFSET('C. PoC Adj Factor Scoring'!$E$5:$J$282,,MATCH(L$4,'C. PoC Adj Factor Scoring'!$E$3:$AH$3,0)-1),MATCH(L$2&\" Score\",'C. PoC Adj Factor Scoring'!$E$4:$J$4,0),TRUE)","v":1},{"$f":"VLOOKUP(OFFSET($B:$B,,MATCH(M$4,$B$4:$F$4,0)-1),OFFSET('C. PoC Adj Factor Scoring'!$E$5:$J$282,,MATCH(M$4,'C. PoC Adj Factor Scoring'!$E$3:$AH$3,0)-1),MATCH(M$2&\" Score\",'C. PoC Adj Factor Scoring'!$E$4:$J$4,0),TRUE)","v":1},{"$f":"VLOOKUP(OFFSET($B:$B,,MATCH(N$4,$B$4:$F$4,0)-1),OFFSET('C. PoC Adj Factor Scoring'!$E$5:$J$282,,MATCH(N$4,'C. PoC Adj Factor Scoring'!$E$3:$AH$3,0)-1),MATCH(N$2&\" Score\",'C. PoC Adj Factor Scoring'!$E$4:$J$4,0),TRUE)","v":1},{"$f":"VLOOKUP(OFFSET($B:$B,,MATCH(O$4,$B$4:$F$4,0)-1),OFFSET('C. PoC Adj Factor Scoring'!$E$5:$J$282,,MATCH(O$4,'C. PoC Adj Factor Scoring'!$E$3:$AH$3,0)-1),MATCH(O$2&\" Score\",'C. PoC Adj Factor Scoring'!$E$4:$J$4,0),TRUE)","v":1},{"$f":"VLOOKUP(OFFSET($B:$B,,MATCH(P$4,$B$4:$F$4,0)-1),OFFSET('C. PoC Adj Factor Scoring'!$E$5:$J$282,,MATCH(P$4,'C. PoC Adj Factor Scoring'!$E$3:$AH$3,0)-1),MATCH(P$2&\" Score\",'C. PoC Adj Factor Scoring'!$E$4:$J$4,0),TRUE)","v":1},{"$f":"VLOOKUP(OFFSET($B:$B,,MATCH(Q$4,$B$4:$F$4,0)-1),OFFSET('C. PoC Adj Factor Scoring'!$E$5:$J$282,,MATCH(Q$4,'C. PoC Adj Factor Scoring'!$E$3:$AH$3,0)-1),MATCH(Q$2&\" Score\",'C. PoC Adj Factor Scoring'!$E$4:$J$4,0),TRUE)","v":1},{"$f":"VLOOKUP(OFFSET($B:$B,,MATCH(R$4,$B$4:$F$4,0)-1),OFFSET('C. PoC Adj Factor Scoring'!$E$5:$J$282,,MATCH(R$4,'C. PoC Adj Factor Scoring'!$E$3:$AH$3,0)-1),MATCH(R$2&\" Score\",'C. PoC Adj Factor Scoring'!$E$4:$J$4,0),TRUE)","v":1},{"$f":"VLOOKUP(OFFSET($B:$B,,MATCH(S$4,$B$4:$F$4,0)-1),OFFSET('C. PoC Adj Factor Scoring'!$E$5:$J$282,,MATCH(S$4,'C. PoC Adj Factor Scoring'!$E$3:$AH$3,0)-1),MATCH(S$2&\" Score\",'C. PoC Adj Factor Scoring'!$E$4:$J$4,0),TRUE)","v":1},{"$f":"VLOOKUP(OFFSET($B:$B,,MATCH(T$4,$B$4:$F$4,0)-1),OFFSET('C. PoC Adj Factor Scoring'!$E$5:$J$282,,MATCH(T$4,'C. PoC Adj Factor Scoring'!$E$3:$AH$3,0)-1),MATCH(T$2&\" Score\",'C. PoC Adj Factor Scoring'!$E$4:$J$4,0),TRUE)","v":1},{"$f":"VLOOKUP(OFFSET($B:$B,,MATCH(U$4,$B$4:$F$4,0)-1),OFFSET('C. PoC Adj Factor Scoring'!$E$5:$J$282,,MATCH(U$4,'C. PoC Adj Factor Scoring'!$E$3:$AH$3,0)-1),MATCH(U$2&\" Score\",'C. PoC Adj Factor Scoring'!$E$4:$J$4,0),TRUE)","v":1},{"$f":"VLOOKUP(OFFSET($B:$B,,MATCH(V$4,$B$4:$F$4,0)-1),OFFSET('C. PoC Adj Factor Scoring'!$E$5:$J$282,,MATCH(V$4,'C. PoC Adj Factor Scoring'!$E$3:$AH$3,0)-1),MATCH(V$2&\" Score\",'C. PoC Adj Factor Scoring'!$E$4:$J$4,0),TRUE)","v":1},{"$f":"VLOOKUP(OFFSET($B:$B,,MATCH(W$4,$B$4:$F$4,0)-1),OFFSET('C. PoC Adj Factor Scoring'!$E$5:$J$282,,MATCH(W$4,'C. PoC Adj Factor Scoring'!$E$3:$AH$3,0)-1),MATCH(W$2&\" Score\",'C. PoC Adj Factor Scoring'!$E$4:$J$4,0),TRUE)","v":1},{"$f":"VLOOKUP(OFFSET($B:$B,,MATCH(X$4,$B$4:$F$4,0)-1),OFFSET('C. PoC Adj Factor Scoring'!$E$5:$J$282,,MATCH(X$4,'C. PoC Adj Factor Scoring'!$E$3:$AH$3,0)-1),MATCH(X$2&\" Score\",'C. PoC Adj Factor Scoring'!$E$4:$J$4,0),TRUE)","v":1},{"$f":"VLOOKUP(OFFSET($B:$B,,MATCH(Y$4,$B$4:$F$4,0)-1),OFFSET('C. PoC Adj Factor Scoring'!$E$5:$J$282,,MATCH(Y$4,'C. PoC Adj Factor Scoring'!$E$3:$AH$3,0)-1),MATCH(Y$2&\" Score\",'C. PoC Adj Factor Scoring'!$E$4:$J$4,0),TRUE)","v":1},{"$f":"VLOOKUP(OFFSET($B:$B,,MATCH(Z$4,$B$4:$F$4,0)-1),OFFSET('C. PoC Adj Factor Scoring'!$E$5:$J$282,,MATCH(Z$4,'C. PoC Adj Factor Scoring'!$E$3:$AH$3,0)-1),MATCH(Z$2&\" Score\",'C. PoC Adj Factor Scoring'!$E$4:$J$4,0),TRUE)","v":1},{"$f":"VLOOKUP(OFFSET($B:$B,,MATCH(AA$4,$B$4:$F$4,0)-1),OFFSET('C. PoC Adj Factor Scoring'!$E$5:$J$282,,MATCH(AA$4,'C. PoC Adj Factor Scoring'!$E$3:$AH$3,0)-1),MATCH(AA$2&\" Score\",'C. PoC Adj Factor Scoring'!$E$4:$J$4,0),TRUE)","v":3},{"$f":"VLOOKUP(OFFSET($B:$B,,MATCH(AB$4,$B$4:$F$4,0)-1),OFFSET('C. PoC Adj Factor Scoring'!$E$5:$J$282,,MATCH(AB$4,'C. PoC Adj Factor Scoring'!$E$3:$AH$3,0)-1),MATCH(AB$2&\" Score\",'C. PoC Adj Factor Scoring'!$E$4:$J$4,0),TRUE)","v":1},{"$f":"VLOOKUP(OFFSET($B:$B,,MATCH(AC$4,$B$4:$F$4,0)-1),OFFSET('C. PoC Adj Factor Scoring'!$E$5:$J$282,,MATCH(AC$4,'C. PoC Adj Factor Scoring'!$E$3:$AH$3,0)-1),MATCH(AC$2&\" Score\",'C. PoC Adj Factor Scoring'!$E$4:$J$4,0),TRUE)","v":1},{"$f":"VLOOKUP(OFFSET($B:$B,,MATCH(AD$4,$B$4:$F$4,0)-1),OFFSET('C. PoC Adj Factor Scoring'!$E$5:$J$282,,MATCH(AD$4,'C. PoC Adj Factor Scoring'!$E$3:$AH$3,0)-1),MATCH(AD$2&\" Score\",'C. PoC Adj Factor Scoring'!$E$4:$J$4,0),TRUE)","v":1},{"$f":"VLOOKUP(OFFSET($B:$B,,MATCH(AE$4,$B$4:$F$4,0)-1),OFFSET('C. PoC Adj Factor Scoring'!$E$5:$J$282,,MATCH(AE$4,'C. PoC Adj Factor Scoring'!$E$3:$AH$3,0)-1),MATCH(AE$2&\" Score\",'C. PoC Adj Factor Scoring'!$E$4:$J$4,0),TRUE)","v":1}]
[{"$f":"'A. Population Info'!A129","v":1000340415},{"$f":"'A. Population Info'!L129","v":"OIL"},{"$f":"'A. Population Info'!M129","v":0},{"$f":"'A. Population Info'!N129","v":0},{"$f":"'A. Population Info'!O129","v":0},{"$f":"'A. Population Info'!P129","v":0},{"$f":"VLOOKUP(OFFSET($B:$B,,MATCH(G$4,$B$4:$F$4,0)-1),OFFSET('C. PoC Adj Factor Scoring'!$E$5:$J$282,,MATCH(G$4,'C. PoC Adj Factor Scoring'!$E$3:$AH$3,0)-1),MATCH(G$2&\" Score\",'C. PoC Adj Factor Scoring'!$E$4:$J$4,0),TRUE)","v":4},{"$f":"VLOOKUP(OFFSET($B:$B,,MATCH(H$4,$B$4:$F$4,0)-1),OFFSET('C. PoC Adj Factor Scoring'!$E$5:$J$282,,MATCH(H$4,'C. PoC Adj Factor Scoring'!$E$3:$AH$3,0)-1),MATCH(H$2&\" Score\",'C. PoC Adj Factor Scoring'!$E$4:$J$4,0),TRUE)","v":1},{"$f":"VLOOKUP(OFFSET($B:$B,,MATCH(I$4,$B$4:$F$4,0)-1),OFFSET('C. PoC Adj Factor Scoring'!$E$5:$J$282,,MATCH(I$4,'C. PoC Adj Factor Scoring'!$E$3:$AH$3,0)-1),MATCH(I$2&\" Score\",'C. PoC Adj Factor Scoring'!$E$4:$J$4,0),TRUE)","v":1},{"$f":"VLOOKUP(OFFSET($B:$B,,MATCH(J$4,$B$4:$F$4,0)-1),OFFSET('C. PoC Adj Factor Scoring'!$E$5:$J$282,,MATCH(J$4,'C. PoC Adj Factor Scoring'!$E$3:$AH$3,0)-1),MATCH(J$2&\" Score\",'C. PoC Adj Factor Scoring'!$E$4:$J$4,0),TRUE)","v":1},{"$f":"VLOOKUP(OFFSET($B:$B,,MATCH(K$4,$B$4:$F$4,0)-1),OFFSET('C. PoC Adj Factor Scoring'!$E$5:$J$282,,MATCH(K$4,'C. PoC Adj Factor Scoring'!$E$3:$AH$3,0)-1),MATCH(K$2&\" Score\",'C. PoC Adj Factor Scoring'!$E$4:$J$4,0),TRUE)","v":1},{"$f":"VLOOKUP(OFFSET($B:$B,,MATCH(L$4,$B$4:$F$4,0)-1),OFFSET('C. PoC Adj Factor Scoring'!$E$5:$J$282,,MATCH(L$4,'C. PoC Adj Factor Scoring'!$E$3:$AH$3,0)-1),MATCH(L$2&\" Score\",'C. PoC Adj Factor Scoring'!$E$4:$J$4,0),TRUE)","v":1},{"$f":"VLOOKUP(OFFSET($B:$B,,MATCH(M$4,$B$4:$F$4,0)-1),OFFSET('C. PoC Adj Factor Scoring'!$E$5:$J$282,,MATCH(M$4,'C. PoC Adj Factor Scoring'!$E$3:$AH$3,0)-1),MATCH(M$2&\" Score\",'C. PoC Adj Factor Scoring'!$E$4:$J$4,0),TRUE)","v":1},{"$f":"VLOOKUP(OFFSET($B:$B,,MATCH(N$4,$B$4:$F$4,0)-1),OFFSET('C. PoC Adj Factor Scoring'!$E$5:$J$282,,MATCH(N$4,'C. PoC Adj Factor Scoring'!$E$3:$AH$3,0)-1),MATCH(N$2&\" Score\",'C. PoC Adj Factor Scoring'!$E$4:$J$4,0),TRUE)","v":1},{"$f":"VLOOKUP(OFFSET($B:$B,,MATCH(O$4,$B$4:$F$4,0)-1),OFFSET('C. PoC Adj Factor Scoring'!$E$5:$J$282,,MATCH(O$4,'C. PoC Adj Factor Scoring'!$E$3:$AH$3,0)-1),MATCH(O$2&\" Score\",'C. PoC Adj Factor Scoring'!$E$4:$J$4,0),TRUE)","v":1},{"$f":"VLOOKUP(OFFSET($B:$B,,MATCH(P$4,$B$4:$F$4,0)-1),OFFSET('C. PoC Adj Factor Scoring'!$E$5:$J$282,,MATCH(P$4,'C. PoC Adj Factor Scoring'!$E$3:$AH$3,0)-1),MATCH(P$2&\" Score\",'C. PoC Adj Factor Scoring'!$E$4:$J$4,0),TRUE)","v":1},{"$f":"VLOOKUP(OFFSET($B:$B,,MATCH(Q$4,$B$4:$F$4,0)-1),OFFSET('C. PoC Adj Factor Scoring'!$E$5:$J$282,,MATCH(Q$4,'C. PoC Adj Factor Scoring'!$E$3:$AH$3,0)-1),MATCH(Q$2&\" Score\",'C. PoC Adj Factor Scoring'!$E$4:$J$4,0),TRUE)","v":1},{"$f":"VLOOKUP(OFFSET($B:$B,,MATCH(R$4,$B$4:$F$4,0)-1),OFFSET('C. PoC Adj Factor Scoring'!$E$5:$J$282,,MATCH(R$4,'C. PoC Adj Factor Scoring'!$E$3:$AH$3,0)-1),MATCH(R$2&\" Score\",'C. PoC Adj Factor Scoring'!$E$4:$J$4,0),TRUE)","v":1},{"$f":"VLOOKUP(OFFSET($B:$B,,MATCH(S$4,$B$4:$F$4,0)-1),OFFSET('C. PoC Adj Factor Scoring'!$E$5:$J$282,,MATCH(S$4,'C. PoC Adj Factor Scoring'!$E$3:$AH$3,0)-1),MATCH(S$2&\" Score\",'C. PoC Adj Factor Scoring'!$E$4:$J$4,0),TRUE)","v":1},{"$f":"VLOOKUP(OFFSET($B:$B,,MATCH(T$4,$B$4:$F$4,0)-1),OFFSET('C. PoC Adj Factor Scoring'!$E$5:$J$282,,MATCH(T$4,'C. PoC Adj Factor Scoring'!$E$3:$AH$3,0)-1),MATCH(T$2&\" Score\",'C. PoC Adj Factor Scoring'!$E$4:$J$4,0),TRUE)","v":1},{"$f":"VLOOKUP(OFFSET($B:$B,,MATCH(U$4,$B$4:$F$4,0)-1),OFFSET('C. PoC Adj Factor Scoring'!$E$5:$J$282,,MATCH(U$4,'C. PoC Adj Factor Scoring'!$E$3:$AH$3,0)-1),MATCH(U$2&\" Score\",'C. PoC Adj Factor Scoring'!$E$4:$J$4,0),TRUE)","v":1},{"$f":"VLOOKUP(OFFSET($B:$B,,MATCH(V$4,$B$4:$F$4,0)-1),OFFSET('C. PoC Adj Factor Scoring'!$E$5:$J$282,,MATCH(V$4,'C. PoC Adj Factor Scoring'!$E$3:$AH$3,0)-1),MATCH(V$2&\" Score\",'C. PoC Adj Factor Scoring'!$E$4:$J$4,0),TRUE)","v":1},{"$f":"VLOOKUP(OFFSET($B:$B,,MATCH(W$4,$B$4:$F$4,0)-1),OFFSET('C. PoC Adj Factor Scoring'!$E$5:$J$282,,MATCH(W$4,'C. PoC Adj Factor Scoring'!$E$3:$AH$3,0)-1),MATCH(W$2&\" Score\",'C. PoC Adj Factor Scoring'!$E$4:$J$4,0),TRUE)","v":1},{"$f":"VLOOKUP(OFFSET($B:$B,,MATCH(X$4,$B$4:$F$4,0)-1),OFFSET('C. PoC Adj Factor Scoring'!$E$5:$J$282,,MATCH(X$4,'C. PoC Adj Factor Scoring'!$E$3:$AH$3,0)-1),MATCH(X$2&\" Score\",'C. PoC Adj Factor Scoring'!$E$4:$J$4,0),TRUE)","v":1},{"$f":"VLOOKUP(OFFSET($B:$B,,MATCH(Y$4,$B$4:$F$4,0)-1),OFFSET('C. PoC Adj Factor Scoring'!$E$5:$J$282,,MATCH(Y$4,'C. PoC Adj Factor Scoring'!$E$3:$AH$3,0)-1),MATCH(Y$2&\" Score\",'C. PoC Adj Factor Scoring'!$E$4:$J$4,0),TRUE)","v":1},{"$f":"VLOOKUP(OFFSET($B:$B,,MATCH(Z$4,$B$4:$F$4,0)-1),OFFSET('C. PoC Adj Factor Scoring'!$E$5:$J$282,,MATCH(Z$4,'C. PoC Adj Factor Scoring'!$E$3:$AH$3,0)-1),MATCH(Z$2&\" Score\",'C. PoC Adj Factor Scoring'!$E$4:$J$4,0),TRUE)","v":1},{"$f":"VLOOKUP(OFFSET($B:$B,,MATCH(AA$4,$B$4:$F$4,0)-1),OFFSET('C. PoC Adj Factor Scoring'!$E$5:$J$282,,MATCH(AA$4,'C. PoC Adj Factor Scoring'!$E$3:$AH$3,0)-1),MATCH(AA$2&\" Score\",'C. PoC Adj Factor Scoring'!$E$4:$J$4,0),TRUE)","v":3},{"$f":"VLOOKUP(OFFSET($B:$B,,MATCH(AB$4,$B$4:$F$4,0)-1),OFFSET('C. PoC Adj Factor Scoring'!$E$5:$J$282,,MATCH(AB$4,'C. PoC Adj Factor Scoring'!$E$3:$AH$3,0)-1),MATCH(AB$2&\" Score\",'C. PoC Adj Factor Scoring'!$E$4:$J$4,0),TRUE)","v":1},{"$f":"VLOOKUP(OFFSET($B:$B,,MATCH(AC$4,$B$4:$F$4,0)-1),OFFSET('C. PoC Adj Factor Scoring'!$E$5:$J$282,,MATCH(AC$4,'C. PoC Adj Factor Scoring'!$E$3:$AH$3,0)-1),MATCH(AC$2&\" Score\",'C. PoC Adj Factor Scoring'!$E$4:$J$4,0),TRUE)","v":1},{"$f":"VLOOKUP(OFFSET($B:$B,,MATCH(AD$4,$B$4:$F$4,0)-1),OFFSET('C. PoC Adj Factor Scoring'!$E$5:$J$282,,MATCH(AD$4,'C. PoC Adj Factor Scoring'!$E$3:$AH$3,0)-1),MATCH(AD$2&\" Score\",'C. PoC Adj Factor Scoring'!$E$4:$J$4,0),TRUE)","v":1},{"$f":"VLOOKUP(OFFSET($B:$B,,MATCH(AE$4,$B$4:$F$4,0)-1),OFFSET('C. PoC Adj Factor Scoring'!$E$5:$J$282,,MATCH(AE$4,'C. PoC Adj Factor Scoring'!$E$3:$AH$3,0)-1),MATCH(AE$2&\" Score\",'C. PoC Adj Factor Scoring'!$E$4:$J$4,0),TRUE)","v":1}]
[{"$f":"'A. Population Info'!A130","v":1000340445},{"$f":"'A. Population Info'!L130","v":"OIL"},{"$f":"'A. Population Info'!M130","v":0},{"$f":"'A. Population Info'!N130","v":0},{"$f":"'A. Population Info'!O130","v":0},{"$f":"'A. Population Info'!P130","v":0},{"$f":"VLOOKUP(OFFSET($B:$B,,MATCH(G$4,$B$4:$F$4,0)-1),OFFSET('C. PoC Adj Factor Scoring'!$E$5:$J$282,,MATCH(G$4,'C. PoC Adj Factor Scoring'!$E$3:$AH$3,0)-1),MATCH(G$2&\" Score\",'C. PoC Adj Factor Scoring'!$E$4:$J$4,0),TRUE)","v":4},{"$f":"VLOOKUP(OFFSET($B:$B,,MATCH(H$4,$B$4:$F$4,0)-1),OFFSET('C. PoC Adj Factor Scoring'!$E$5:$J$282,,MATCH(H$4,'C. PoC Adj Factor Scoring'!$E$3:$AH$3,0)-1),MATCH(H$2&\" Score\",'C. PoC Adj Factor Scoring'!$E$4:$J$4,0),TRUE)","v":1},{"$f":"VLOOKUP(OFFSET($B:$B,,MATCH(I$4,$B$4:$F$4,0)-1),OFFSET('C. PoC Adj Factor Scoring'!$E$5:$J$282,,MATCH(I$4,'C. PoC Adj Factor Scoring'!$E$3:$AH$3,0)-1),MATCH(I$2&\" Score\",'C. PoC Adj Factor Scoring'!$E$4:$J$4,0),TRUE)","v":1},{"$f":"VLOOKUP(OFFSET($B:$B,,MATCH(J$4,$B$4:$F$4,0)-1),OFFSET('C. PoC Adj Factor Scoring'!$E$5:$J$282,,MATCH(J$4,'C. PoC Adj Factor Scoring'!$E$3:$AH$3,0)-1),MATCH(J$2&\" Score\",'C. PoC Adj Factor Scoring'!$E$4:$J$4,0),TRUE)","v":1},{"$f":"VLOOKUP(OFFSET($B:$B,,MATCH(K$4,$B$4:$F$4,0)-1),OFFSET('C. PoC Adj Factor Scoring'!$E$5:$J$282,,MATCH(K$4,'C. PoC Adj Factor Scoring'!$E$3:$AH$3,0)-1),MATCH(K$2&\" Score\",'C. PoC Adj Factor Scoring'!$E$4:$J$4,0),TRUE)","v":1},{"$f":"VLOOKUP(OFFSET($B:$B,,MATCH(L$4,$B$4:$F$4,0)-1),OFFSET('C. PoC Adj Factor Scoring'!$E$5:$J$282,,MATCH(L$4,'C. PoC Adj Factor Scoring'!$E$3:$AH$3,0)-1),MATCH(L$2&\" Score\",'C. PoC Adj Factor Scoring'!$E$4:$J$4,0),TRUE)","v":1},{"$f":"VLOOKUP(OFFSET($B:$B,,MATCH(M$4,$B$4:$F$4,0)-1),OFFSET('C. PoC Adj Factor Scoring'!$E$5:$J$282,,MATCH(M$4,'C. PoC Adj Factor Scoring'!$E$3:$AH$3,0)-1),MATCH(M$2&\" Score\",'C. PoC Adj Factor Scoring'!$E$4:$J$4,0),TRUE)","v":1},{"$f":"VLOOKUP(OFFSET($B:$B,,MATCH(N$4,$B$4:$F$4,0)-1),OFFSET('C. PoC Adj Factor Scoring'!$E$5:$J$282,,MATCH(N$4,'C. PoC Adj Factor Scoring'!$E$3:$AH$3,0)-1),MATCH(N$2&\" Score\",'C. PoC Adj Factor Scoring'!$E$4:$J$4,0),TRUE)","v":1},{"$f":"VLOOKUP(OFFSET($B:$B,,MATCH(O$4,$B$4:$F$4,0)-1),OFFSET('C. PoC Adj Factor Scoring'!$E$5:$J$282,,MATCH(O$4,'C. PoC Adj Factor Scoring'!$E$3:$AH$3,0)-1),MATCH(O$2&\" Score\",'C. PoC Adj Factor Scoring'!$E$4:$J$4,0),TRUE)","v":1},{"$f":"VLOOKUP(OFFSET($B:$B,,MATCH(P$4,$B$4:$F$4,0)-1),OFFSET('C. PoC Adj Factor Scoring'!$E$5:$J$282,,MATCH(P$4,'C. PoC Adj Factor Scoring'!$E$3:$AH$3,0)-1),MATCH(P$2&\" Score\",'C. PoC Adj Factor Scoring'!$E$4:$J$4,0),TRUE)","v":1},{"$f":"VLOOKUP(OFFSET($B:$B,,MATCH(Q$4,$B$4:$F$4,0)-1),OFFSET('C. PoC Adj Factor Scoring'!$E$5:$J$282,,MATCH(Q$4,'C. PoC Adj Factor Scoring'!$E$3:$AH$3,0)-1),MATCH(Q$2&\" Score\",'C. PoC Adj Factor Scoring'!$E$4:$J$4,0),TRUE)","v":1},{"$f":"VLOOKUP(OFFSET($B:$B,,MATCH(R$4,$B$4:$F$4,0)-1),OFFSET('C. PoC Adj Factor Scoring'!$E$5:$J$282,,MATCH(R$4,'C. PoC Adj Factor Scoring'!$E$3:$AH$3,0)-1),MATCH(R$2&\" Score\",'C. PoC Adj Factor Scoring'!$E$4:$J$4,0),TRUE)","v":1},{"$f":"VLOOKUP(OFFSET($B:$B,,MATCH(S$4,$B$4:$F$4,0)-1),OFFSET('C. PoC Adj Factor Scoring'!$E$5:$J$282,,MATCH(S$4,'C. PoC Adj Factor Scoring'!$E$3:$AH$3,0)-1),MATCH(S$2&\" Score\",'C. PoC Adj Factor Scoring'!$E$4:$J$4,0),TRUE)","v":1},{"$f":"VLOOKUP(OFFSET($B:$B,,MATCH(T$4,$B$4:$F$4,0)-1),OFFSET('C. PoC Adj Factor Scoring'!$E$5:$J$282,,MATCH(T$4,'C. PoC Adj Factor Scoring'!$E$3:$AH$3,0)-1),MATCH(T$2&\" Score\",'C. PoC Adj Factor Scoring'!$E$4:$J$4,0),TRUE)","v":1},{"$f":"VLOOKUP(OFFSET($B:$B,,MATCH(U$4,$B$4:$F$4,0)-1),OFFSET('C. PoC Adj Factor Scoring'!$E$5:$J$282,,MATCH(U$4,'C. PoC Adj Factor Scoring'!$E$3:$AH$3,0)-1),MATCH(U$2&\" Score\",'C. PoC Adj Factor Scoring'!$E$4:$J$4,0),TRUE)","v":1},{"$f":"VLOOKUP(OFFSET($B:$B,,MATCH(V$4,$B$4:$F$4,0)-1),OFFSET('C. PoC Adj Factor Scoring'!$E$5:$J$282,,MATCH(V$4,'C. PoC Adj Factor Scoring'!$E$3:$AH$3,0)-1),MATCH(V$2&\" Score\",'C. PoC Adj Factor Scoring'!$E$4:$J$4,0),TRUE)","v":1},{"$f":"VLOOKUP(OFFSET($B:$B,,MATCH(W$4,$B$4:$F$4,0)-1),OFFSET('C. PoC Adj Factor Scoring'!$E$5:$J$282,,MATCH(W$4,'C. PoC Adj Factor Scoring'!$E$3:$AH$3,0)-1),MATCH(W$2&\" Score\",'C. PoC Adj Factor Scoring'!$E$4:$J$4,0),TRUE)","v":1},{"$f":"VLOOKUP(OFFSET($B:$B,,MATCH(X$4,$B$4:$F$4,0)-1),OFFSET('C. PoC Adj Factor Scoring'!$E$5:$J$282,,MATCH(X$4,'C. PoC Adj Factor Scoring'!$E$3:$AH$3,0)-1),MATCH(X$2&\" Score\",'C. PoC Adj Factor Scoring'!$E$4:$J$4,0),TRUE)","v":1},{"$f":"VLOOKUP(OFFSET($B:$B,,MATCH(Y$4,$B$4:$F$4,0)-1),OFFSET('C. PoC Adj Factor Scoring'!$E$5:$J$282,,MATCH(Y$4,'C. PoC Adj Factor Scoring'!$E$3:$AH$3,0)-1),MATCH(Y$2&\" Score\",'C. PoC Adj Factor Scoring'!$E$4:$J$4,0),TRUE)","v":1},{"$f":"VLOOKUP(OFFSET($B:$B,,MATCH(Z$4,$B$4:$F$4,0)-1),OFFSET('C. PoC Adj Factor Scoring'!$E$5:$J$282,,MATCH(Z$4,'C. PoC Adj Factor Scoring'!$E$3:$AH$3,0)-1),MATCH(Z$2&\" Score\",'C. PoC Adj Factor Scoring'!$E$4:$J$4,0),TRUE)","v":1},{"$f":"VLOOKUP(OFFSET($B:$B,,MATCH(AA$4,$B$4:$F$4,0)-1),OFFSET('C. PoC Adj Factor Scoring'!$E$5:$J$282,,MATCH(AA$4,'C. PoC Adj Factor Scoring'!$E$3:$AH$3,0)-1),MATCH(AA$2&\" Score\",'C. PoC Adj Factor Scoring'!$E$4:$J$4,0),TRUE)","v":3},{"$f":"VLOOKUP(OFFSET($B:$B,,MATCH(AB$4,$B$4:$F$4,0)-1),OFFSET('C. PoC Adj Factor Scoring'!$E$5:$J$282,,MATCH(AB$4,'C. PoC Adj Factor Scoring'!$E$3:$AH$3,0)-1),MATCH(AB$2&\" Score\",'C. PoC Adj Factor Scoring'!$E$4:$J$4,0),TRUE)","v":1},{"$f":"VLOOKUP(OFFSET($B:$B,,MATCH(AC$4,$B$4:$F$4,0)-1),OFFSET('C. PoC Adj Factor Scoring'!$E$5:$J$282,,MATCH(AC$4,'C. PoC Adj Factor Scoring'!$E$3:$AH$3,0)-1),MATCH(AC$2&\" Score\",'C. PoC Adj Factor Scoring'!$E$4:$J$4,0),TRUE)","v":1},{"$f":"VLOOKUP(OFFSET($B:$B,,MATCH(AD$4,$B$4:$F$4,0)-1),OFFSET('C. PoC Adj Factor Scoring'!$E$5:$J$282,,MATCH(AD$4,'C. PoC Adj Factor Scoring'!$E$3:$AH$3,0)-1),MATCH(AD$2&\" Score\",'C. PoC Adj Factor Scoring'!$E$4:$J$4,0),TRUE)","v":1},{"$f":"VLOOKUP(OFFSET($B:$B,,MATCH(AE$4,$B$4:$F$4,0)-1),OFFSET('C. PoC Adj Factor Scoring'!$E$5:$J$282,,MATCH(AE$4,'C. PoC Adj Factor Scoring'!$E$3:$AH$3,0)-1),MATCH(AE$2&\" Score\",'C. PoC Adj Factor Scoring'!$E$4:$J$4,0),TRUE)","v":1}]
[{"$f":"'A. Population Info'!A131","v":1000340477},{"$f":"'A. Population Info'!L131","v":"OIL"},{"$f":"'A. Population Info'!M131","v":0},{"$f":"'A. Population Info'!N131","v":0},{"$f":"'A. Population Info'!O131","v":0},{"$f":"'A. Population Info'!P131","v":0},{"$f":"VLOOKUP(OFFSET($B:$B,,MATCH(G$4,$B$4:$F$4,0)-1),OFFSET('C. PoC Adj Factor Scoring'!$E$5:$J$282,,MATCH(G$4,'C. PoC Adj Factor Scoring'!$E$3:$AH$3,0)-1),MATCH(G$2&\" Score\",'C. PoC Adj Factor Scoring'!$E$4:$J$4,0),TRUE)","v":4},{"$f":"VLOOKUP(OFFSET($B:$B,,MATCH(H$4,$B$4:$F$4,0)-1),OFFSET('C. PoC Adj Factor Scoring'!$E$5:$J$282,,MATCH(H$4,'C. PoC Adj Factor Scoring'!$E$3:$AH$3,0)-1),MATCH(H$2&\" Score\",'C. PoC Adj Factor Scoring'!$E$4:$J$4,0),TRUE)","v":1},{"$f":"VLOOKUP(OFFSET($B:$B,,MATCH(I$4,$B$4:$F$4,0)-1),OFFSET('C. PoC Adj Factor Scoring'!$E$5:$J$282,,MATCH(I$4,'C. PoC Adj Factor Scoring'!$E$3:$AH$3,0)-1),MATCH(I$2&\" Score\",'C. PoC Adj Factor Scoring'!$E$4:$J$4,0),TRUE)","v":1},{"$f":"VLOOKUP(OFFSET($B:$B,,MATCH(J$4,$B$4:$F$4,0)-1),OFFSET('C. PoC Adj Factor Scoring'!$E$5:$J$282,,MATCH(J$4,'C. PoC Adj Factor Scoring'!$E$3:$AH$3,0)-1),MATCH(J$2&\" Score\",'C. PoC Adj Factor Scoring'!$E$4:$J$4,0),TRUE)","v":1},{"$f":"VLOOKUP(OFFSET($B:$B,,MATCH(K$4,$B$4:$F$4,0)-1),OFFSET('C. PoC Adj Factor Scoring'!$E$5:$J$282,,MATCH(K$4,'C. PoC Adj Factor Scoring'!$E$3:$AH$3,0)-1),MATCH(K$2&\" Score\",'C. PoC Adj Factor Scoring'!$E$4:$J$4,0),TRUE)","v":1},{"$f":"VLOOKUP(OFFSET($B:$B,,MATCH(L$4,$B$4:$F$4,0)-1),OFFSET('C. PoC Adj Factor Scoring'!$E$5:$J$282,,MATCH(L$4,'C. PoC Adj Factor Scoring'!$E$3:$AH$3,0)-1),MATCH(L$2&\" Score\",'C. PoC Adj Factor Scoring'!$E$4:$J$4,0),TRUE)","v":1},{"$f":"VLOOKUP(OFFSET($B:$B,,MATCH(M$4,$B$4:$F$4,0)-1),OFFSET('C. PoC Adj Factor Scoring'!$E$5:$J$282,,MATCH(M$4,'C. PoC Adj Factor Scoring'!$E$3:$AH$3,0)-1),MATCH(M$2&\" Score\",'C. PoC Adj Factor Scoring'!$E$4:$J$4,0),TRUE)","v":1},{"$f":"VLOOKUP(OFFSET($B:$B,,MATCH(N$4,$B$4:$F$4,0)-1),OFFSET('C. PoC Adj Factor Scoring'!$E$5:$J$282,,MATCH(N$4,'C. PoC Adj Factor Scoring'!$E$3:$AH$3,0)-1),MATCH(N$2&\" Score\",'C. PoC Adj Factor Scoring'!$E$4:$J$4,0),TRUE)","v":1},{"$f":"VLOOKUP(OFFSET($B:$B,,MATCH(O$4,$B$4:$F$4,0)-1),OFFSET('C. PoC Adj Factor Scoring'!$E$5:$J$282,,MATCH(O$4,'C. PoC Adj Factor Scoring'!$E$3:$AH$3,0)-1),MATCH(O$2&\" Score\",'C. PoC Adj Factor Scoring'!$E$4:$J$4,0),TRUE)","v":1},{"$f":"VLOOKUP(OFFSET($B:$B,,MATCH(P$4,$B$4:$F$4,0)-1),OFFSET('C. PoC Adj Factor Scoring'!$E$5:$J$282,,MATCH(P$4,'C. PoC Adj Factor Scoring'!$E$3:$AH$3,0)-1),MATCH(P$2&\" Score\",'C. PoC Adj Factor Scoring'!$E$4:$J$4,0),TRUE)","v":1},{"$f":"VLOOKUP(OFFSET($B:$B,,MATCH(Q$4,$B$4:$F$4,0)-1),OFFSET('C. PoC Adj Factor Scoring'!$E$5:$J$282,,MATCH(Q$4,'C. PoC Adj Factor Scoring'!$E$3:$AH$3,0)-1),MATCH(Q$2&\" Score\",'C. PoC Adj Factor Scoring'!$E$4:$J$4,0),TRUE)","v":1},{"$f":"VLOOKUP(OFFSET($B:$B,,MATCH(R$4,$B$4:$F$4,0)-1),OFFSET('C. PoC Adj Factor Scoring'!$E$5:$J$282,,MATCH(R$4,'C. PoC Adj Factor Scoring'!$E$3:$AH$3,0)-1),MATCH(R$2&\" Score\",'C. PoC Adj Factor Scoring'!$E$4:$J$4,0),TRUE)","v":1},{"$f":"VLOOKUP(OFFSET($B:$B,,MATCH(S$4,$B$4:$F$4,0)-1),OFFSET('C. PoC Adj Factor Scoring'!$E$5:$J$282,,MATCH(S$4,'C. PoC Adj Factor Scoring'!$E$3:$AH$3,0)-1),MATCH(S$2&\" Score\",'C. PoC Adj Factor Scoring'!$E$4:$J$4,0),TRUE)","v":1},{"$f":"VLOOKUP(OFFSET($B:$B,,MATCH(T$4,$B$4:$F$4,0)-1),OFFSET('C. PoC Adj Factor Scoring'!$E$5:$J$282,,MATCH(T$4,'C. PoC Adj Factor Scoring'!$E$3:$AH$3,0)-1),MATCH(T$2&\" Score\",'C. PoC Adj Factor Scoring'!$E$4:$J$4,0),TRUE)","v":1},{"$f":"VLOOKUP(OFFSET($B:$B,,MATCH(U$4,$B$4:$F$4,0)-1),OFFSET('C. PoC Adj Factor Scoring'!$E$5:$J$282,,MATCH(U$4,'C. PoC Adj Factor Scoring'!$E$3:$AH$3,0)-1),MATCH(U$2&\" Score\",'C. PoC Adj Factor Scoring'!$E$4:$J$4,0),TRUE)","v":1},{"$f":"VLOOKUP(OFFSET($B:$B,,MATCH(V$4,$B$4:$F$4,0)-1),OFFSET('C. PoC Adj Factor Scoring'!$E$5:$J$282,,MATCH(V$4,'C. PoC Adj Factor Scoring'!$E$3:$AH$3,0)-1),MATCH(V$2&\" Score\",'C. PoC Adj Factor Scoring'!$E$4:$J$4,0),TRUE)","v":1},{"$f":"VLOOKUP(OFFSET($B:$B,,MATCH(W$4,$B$4:$F$4,0)-1),OFFSET('C. PoC Adj Factor Scoring'!$E$5:$J$282,,MATCH(W$4,'C. PoC Adj Factor Scoring'!$E$3:$AH$3,0)-1),MATCH(W$2&\" Score\",'C. PoC Adj Factor Scoring'!$E$4:$J$4,0),TRUE)","v":1},{"$f":"VLOOKUP(OFFSET($B:$B,,MATCH(X$4,$B$4:$F$4,0)-1),OFFSET('C. PoC Adj Factor Scoring'!$E$5:$J$282,,MATCH(X$4,'C. PoC Adj Factor Scoring'!$E$3:$AH$3,0)-1),MATCH(X$2&\" Score\",'C. PoC Adj Factor Scoring'!$E$4:$J$4,0),TRUE)","v":1},{"$f":"VLOOKUP(OFFSET($B:$B,,MATCH(Y$4,$B$4:$F$4,0)-1),OFFSET('C. PoC Adj Factor Scoring'!$E$5:$J$282,,MATCH(Y$4,'C. PoC Adj Factor Scoring'!$E$3:$AH$3,0)-1),MATCH(Y$2&\" Score\",'C. PoC Adj Factor Scoring'!$E$4:$J$4,0),TRUE)","v":1},{"$f":"VLOOKUP(OFFSET($B:$B,,MATCH(Z$4,$B$4:$F$4,0)-1),OFFSET('C. PoC Adj Factor Scoring'!$E$5:$J$282,,MATCH(Z$4,'C. PoC Adj Factor Scoring'!$E$3:$AH$3,0)-1),MATCH(Z$2&\" Score\",'C. PoC Adj Factor Scoring'!$E$4:$J$4,0),TRUE)","v":1},{"$f":"VLOOKUP(OFFSET($B:$B,,MATCH(AA$4,$B$4:$F$4,0)-1),OFFSET('C. PoC Adj Factor Scoring'!$E$5:$J$282,,MATCH(AA$4,'C. PoC Adj Factor Scoring'!$E$3:$AH$3,0)-1),MATCH(AA$2&\" Score\",'C. PoC Adj Factor Scoring'!$E$4:$J$4,0),TRUE)","v":3},{"$f":"VLOOKUP(OFFSET($B:$B,,MATCH(AB$4,$B$4:$F$4,0)-1),OFFSET('C. PoC Adj Factor Scoring'!$E$5:$J$282,,MATCH(AB$4,'C. PoC Adj Factor Scoring'!$E$3:$AH$3,0)-1),MATCH(AB$2&\" Score\",'C. PoC Adj Factor Scoring'!$E$4:$J$4,0),TRUE)","v":1},{"$f":"VLOOKUP(OFFSET($B:$B,,MATCH(AC$4,$B$4:$F$4,0)-1),OFFSET('C. PoC Adj Factor Scoring'!$E$5:$J$282,,MATCH(AC$4,'C. PoC Adj Factor Scoring'!$E$3:$AH$3,0)-1),MATCH(AC$2&\" Score\",'C. PoC Adj Factor Scoring'!$E$4:$J$4,0),TRUE)","v":1},{"$f":"VLOOKUP(OFFSET($B:$B,,MATCH(AD$4,$B$4:$F$4,0)-1),OFFSET('C. PoC Adj Factor Scoring'!$E$5:$J$282,,MATCH(AD$4,'C. PoC Adj Factor Scoring'!$E$3:$AH$3,0)-1),MATCH(AD$2&\" Score\",'C. PoC Adj Factor Scoring'!$E$4:$J$4,0),TRUE)","v":1},{"$f":"VLOOKUP(OFFSET($B:$B,,MATCH(AE$4,$B$4:$F$4,0)-1),OFFSET('C. PoC Adj Factor Scoring'!$E$5:$J$282,,MATCH(AE$4,'C. PoC Adj Factor Scoring'!$E$3:$AH$3,0)-1),MATCH(AE$2&\" Score\",'C. PoC Adj Factor Scoring'!$E$4:$J$4,0),TRUE)","v":1}]
[{"$f":"'A. Population Info'!A132","v":1000340534},{"$f":"'A. Population Info'!L132","v":"OIL"},{"$f":"'A. Population Info'!M132","v":0},{"$f":"'A. Population Info'!N132","v":0},{"$f":"'A. Population Info'!O132","v":0},{"$f":"'A. Population Info'!P132","v":0},{"$f":"VLOOKUP(OFFSET($B:$B,,MATCH(G$4,$B$4:$F$4,0)-1),OFFSET('C. PoC Adj Factor Scoring'!$E$5:$J$282,,MATCH(G$4,'C. PoC Adj Factor Scoring'!$E$3:$AH$3,0)-1),MATCH(G$2&\" Score\",'C. PoC Adj Factor Scoring'!$E$4:$J$4,0),TRUE)","v":4},{"$f":"VLOOKUP(OFFSET($B:$B,,MATCH(H$4,$B$4:$F$4,0)-1),OFFSET('C. PoC Adj Factor Scoring'!$E$5:$J$282,,MATCH(H$4,'C. PoC Adj Factor Scoring'!$E$3:$AH$3,0)-1),MATCH(H$2&\" Score\",'C. PoC Adj Factor Scoring'!$E$4:$J$4,0),TRUE)","v":1},{"$f":"VLOOKUP(OFFSET($B:$B,,MATCH(I$4,$B$4:$F$4,0)-1),OFFSET('C. PoC Adj Factor Scoring'!$E$5:$J$282,,MATCH(I$4,'C. PoC Adj Factor Scoring'!$E$3:$AH$3,0)-1),MATCH(I$2&\" Score\",'C. PoC Adj Factor Scoring'!$E$4:$J$4,0),TRUE)","v":1},{"$f":"VLOOKUP(OFFSET($B:$B,,MATCH(J$4,$B$4:$F$4,0)-1),OFFSET('C. PoC Adj Factor Scoring'!$E$5:$J$282,,MATCH(J$4,'C. PoC Adj Factor Scoring'!$E$3:$AH$3,0)-1),MATCH(J$2&\" Score\",'C. PoC Adj Factor Scoring'!$E$4:$J$4,0),TRUE)","v":1},{"$f":"VLOOKUP(OFFSET($B:$B,,MATCH(K$4,$B$4:$F$4,0)-1),OFFSET('C. PoC Adj Factor Scoring'!$E$5:$J$282,,MATCH(K$4,'C. PoC Adj Factor Scoring'!$E$3:$AH$3,0)-1),MATCH(K$2&\" Score\",'C. PoC Adj Factor Scoring'!$E$4:$J$4,0),TRUE)","v":1},{"$f":"VLOOKUP(OFFSET($B:$B,,MATCH(L$4,$B$4:$F$4,0)-1),OFFSET('C. PoC Adj Factor Scoring'!$E$5:$J$282,,MATCH(L$4,'C. PoC Adj Factor Scoring'!$E$3:$AH$3,0)-1),MATCH(L$2&\" Score\",'C. PoC Adj Factor Scoring'!$E$4:$J$4,0),TRUE)","v":1},{"$f":"VLOOKUP(OFFSET($B:$B,,MATCH(M$4,$B$4:$F$4,0)-1),OFFSET('C. PoC Adj Factor Scoring'!$E$5:$J$282,,MATCH(M$4,'C. PoC Adj Factor Scoring'!$E$3:$AH$3,0)-1),MATCH(M$2&\" Score\",'C. PoC Adj Factor Scoring'!$E$4:$J$4,0),TRUE)","v":1},{"$f":"VLOOKUP(OFFSET($B:$B,,MATCH(N$4,$B$4:$F$4,0)-1),OFFSET('C. PoC Adj Factor Scoring'!$E$5:$J$282,,MATCH(N$4,'C. PoC Adj Factor Scoring'!$E$3:$AH$3,0)-1),MATCH(N$2&\" Score\",'C. PoC Adj Factor Scoring'!$E$4:$J$4,0),TRUE)","v":1},{"$f":"VLOOKUP(OFFSET($B:$B,,MATCH(O$4,$B$4:$F$4,0)-1),OFFSET('C. PoC Adj Factor Scoring'!$E$5:$J$282,,MATCH(O$4,'C. PoC Adj Factor Scoring'!$E$3:$AH$3,0)-1),MATCH(O$2&\" Score\",'C. PoC Adj Factor Scoring'!$E$4:$J$4,0),TRUE)","v":1},{"$f":"VLOOKUP(OFFSET($B:$B,,MATCH(P$4,$B$4:$F$4,0)-1),OFFSET('C. PoC Adj Factor Scoring'!$E$5:$J$282,,MATCH(P$4,'C. PoC Adj Factor Scoring'!$E$3:$AH$3,0)-1),MATCH(P$2&\" Score\",'C. PoC Adj Factor Scoring'!$E$4:$J$4,0),TRUE)","v":1},{"$f":"VLOOKUP(OFFSET($B:$B,,MATCH(Q$4,$B$4:$F$4,0)-1),OFFSET('C. PoC Adj Factor Scoring'!$E$5:$J$282,,MATCH(Q$4,'C. PoC Adj Factor Scoring'!$E$3:$AH$3,0)-1),MATCH(Q$2&\" Score\",'C. PoC Adj Factor Scoring'!$E$4:$J$4,0),TRUE)","v":1},{"$f":"VLOOKUP(OFFSET($B:$B,,MATCH(R$4,$B$4:$F$4,0)-1),OFFSET('C. PoC Adj Factor Scoring'!$E$5:$J$282,,MATCH(R$4,'C. PoC Adj Factor Scoring'!$E$3:$AH$3,0)-1),MATCH(R$2&\" Score\",'C. PoC Adj Factor Scoring'!$E$4:$J$4,0),TRUE)","v":1},{"$f":"VLOOKUP(OFFSET($B:$B,,MATCH(S$4,$B$4:$F$4,0)-1),OFFSET('C. PoC Adj Factor Scoring'!$E$5:$J$282,,MATCH(S$4,'C. PoC Adj Factor Scoring'!$E$3:$AH$3,0)-1),MATCH(S$2&\" Score\",'C. PoC Adj Factor Scoring'!$E$4:$J$4,0),TRUE)","v":1},{"$f":"VLOOKUP(OFFSET($B:$B,,MATCH(T$4,$B$4:$F$4,0)-1),OFFSET('C. PoC Adj Factor Scoring'!$E$5:$J$282,,MATCH(T$4,'C. PoC Adj Factor Scoring'!$E$3:$AH$3,0)-1),MATCH(T$2&\" Score\",'C. PoC Adj Factor Scoring'!$E$4:$J$4,0),TRUE)","v":1},{"$f":"VLOOKUP(OFFSET($B:$B,,MATCH(U$4,$B$4:$F$4,0)-1),OFFSET('C. PoC Adj Factor Scoring'!$E$5:$J$282,,MATCH(U$4,'C. PoC Adj Factor Scoring'!$E$3:$AH$3,0)-1),MATCH(U$2&\" Score\",'C. PoC Adj Factor Scoring'!$E$4:$J$4,0),TRUE)","v":1},{"$f":"VLOOKUP(OFFSET($B:$B,,MATCH(V$4,$B$4:$F$4,0)-1),OFFSET('C. PoC Adj Factor Scoring'!$E$5:$J$282,,MATCH(V$4,'C. PoC Adj Factor Scoring'!$E$3:$AH$3,0)-1),MATCH(V$2&\" Score\",'C. PoC Adj Factor Scoring'!$E$4:$J$4,0),TRUE)","v":1},{"$f":"VLOOKUP(OFFSET($B:$B,,MATCH(W$4,$B$4:$F$4,0)-1),OFFSET('C. PoC Adj Factor Scoring'!$E$5:$J$282,,MATCH(W$4,'C. PoC Adj Factor Scoring'!$E$3:$AH$3,0)-1),MATCH(W$2&\" Score\",'C. PoC Adj Factor Scoring'!$E$4:$J$4,0),TRUE)","v":1},{"$f":"VLOOKUP(OFFSET($B:$B,,MATCH(X$4,$B$4:$F$4,0)-1),OFFSET('C. PoC Adj Factor Scoring'!$E$5:$J$282,,MATCH(X$4,'C. PoC Adj Factor Scoring'!$E$3:$AH$3,0)-1),MATCH(X$2&\" Score\",'C. PoC Adj Factor Scoring'!$E$4:$J$4,0),TRUE)","v":1},{"$f":"VLOOKUP(OFFSET($B:$B,,MATCH(Y$4,$B$4:$F$4,0)-1),OFFSET('C. PoC Adj Factor Scoring'!$E$5:$J$282,,MATCH(Y$4,'C. PoC Adj Factor Scoring'!$E$3:$AH$3,0)-1),MATCH(Y$2&\" Score\",'C. PoC Adj Factor Scoring'!$E$4:$J$4,0),TRUE)","v":1},{"$f":"VLOOKUP(OFFSET($B:$B,,MATCH(Z$4,$B$4:$F$4,0)-1),OFFSET('C. PoC Adj Factor Scoring'!$E$5:$J$282,,MATCH(Z$4,'C. PoC Adj Factor Scoring'!$E$3:$AH$3,0)-1),MATCH(Z$2&\" Score\",'C. PoC Adj Factor Scoring'!$E$4:$J$4,0),TRUE)","v":1},{"$f":"VLOOKUP(OFFSET($B:$B,,MATCH(AA$4,$B$4:$F$4,0)-1),OFFSET('C. PoC Adj Factor Scoring'!$E$5:$J$282,,MATCH(AA$4,'C. PoC Adj Factor Scoring'!$E$3:$AH$3,0)-1),MATCH(AA$2&\" Score\",'C. PoC Adj Factor Scoring'!$E$4:$J$4,0),TRUE)","v":3},{"$f":"VLOOKUP(OFFSET($B:$B,,MATCH(AB$4,$B$4:$F$4,0)-1),OFFSET('C. PoC Adj Factor Scoring'!$E$5:$J$282,,MATCH(AB$4,'C. PoC Adj Factor Scoring'!$E$3:$AH$3,0)-1),MATCH(AB$2&\" Score\",'C. PoC Adj Factor Scoring'!$E$4:$J$4,0),TRUE)","v":1},{"$f":"VLOOKUP(OFFSET($B:$B,,MATCH(AC$4,$B$4:$F$4,0)-1),OFFSET('C. PoC Adj Factor Scoring'!$E$5:$J$282,,MATCH(AC$4,'C. PoC Adj Factor Scoring'!$E$3:$AH$3,0)-1),MATCH(AC$2&\" Score\",'C. PoC Adj Factor Scoring'!$E$4:$J$4,0),TRUE)","v":1},{"$f":"VLOOKUP(OFFSET($B:$B,,MATCH(AD$4,$B$4:$F$4,0)-1),OFFSET('C. PoC Adj Factor Scoring'!$E$5:$J$282,,MATCH(AD$4,'C. PoC Adj Factor Scoring'!$E$3:$AH$3,0)-1),MATCH(AD$2&\" Score\",'C. PoC Adj Factor Scoring'!$E$4:$J$4,0),TRUE)","v":1},{"$f":"VLOOKUP(OFFSET($B:$B,,MATCH(AE$4,$B$4:$F$4,0)-1),OFFSET('C. PoC Adj Factor Scoring'!$E$5:$J$282,,MATCH(AE$4,'C. PoC Adj Factor Scoring'!$E$3:$AH$3,0)-1),MATCH(AE$2&\" Score\",'C. PoC Adj Factor Scoring'!$E$4:$J$4,0),TRUE)","v":1}]
[{"$f":"'A. Population Info'!A133","v":1000340565},{"$f":"'A. Population Info'!L133","v":"OIL"},{"$f":"'A. Population Info'!M133","v":0},{"$f":"'A. Population Info'!N133","v":0},{"$f":"'A. Population Info'!O133","v":0},{"$f":"'A. Population Info'!P133","v":0},{"$f":"VLOOKUP(OFFSET($B:$B,,MATCH(G$4,$B$4:$F$4,0)-1),OFFSET('C. PoC Adj Factor Scoring'!$E$5:$J$282,,MATCH(G$4,'C. PoC Adj Factor Scoring'!$E$3:$AH$3,0)-1),MATCH(G$2&\" Score\",'C. PoC Adj Factor Scoring'!$E$4:$J$4,0),TRUE)","v":4},{"$f":"VLOOKUP(OFFSET($B:$B,,MATCH(H$4,$B$4:$F$4,0)-1),OFFSET('C. PoC Adj Factor Scoring'!$E$5:$J$282,,MATCH(H$4,'C. PoC Adj Factor Scoring'!$E$3:$AH$3,0)-1),MATCH(H$2&\" Score\",'C. PoC Adj Factor Scoring'!$E$4:$J$4,0),TRUE)","v":1},{"$f":"VLOOKUP(OFFSET($B:$B,,MATCH(I$4,$B$4:$F$4,0)-1),OFFSET('C. PoC Adj Factor Scoring'!$E$5:$J$282,,MATCH(I$4,'C. PoC Adj Factor Scoring'!$E$3:$AH$3,0)-1),MATCH(I$2&\" Score\",'C. PoC Adj Factor Scoring'!$E$4:$J$4,0),TRUE)","v":1},{"$f":"VLOOKUP(OFFSET($B:$B,,MATCH(J$4,$B$4:$F$4,0)-1),OFFSET('C. PoC Adj Factor Scoring'!$E$5:$J$282,,MATCH(J$4,'C. PoC Adj Factor Scoring'!$E$3:$AH$3,0)-1),MATCH(J$2&\" Score\",'C. PoC Adj Factor Scoring'!$E$4:$J$4,0),TRUE)","v":1},{"$f":"VLOOKUP(OFFSET($B:$B,,MATCH(K$4,$B$4:$F$4,0)-1),OFFSET('C. PoC Adj Factor Scoring'!$E$5:$J$282,,MATCH(K$4,'C. PoC Adj Factor Scoring'!$E$3:$AH$3,0)-1),MATCH(K$2&\" Score\",'C. PoC Adj Factor Scoring'!$E$4:$J$4,0),TRUE)","v":1},{"$f":"VLOOKUP(OFFSET($B:$B,,MATCH(L$4,$B$4:$F$4,0)-1),OFFSET('C. PoC Adj Factor Scoring'!$E$5:$J$282,,MATCH(L$4,'C. PoC Adj Factor Scoring'!$E$3:$AH$3,0)-1),MATCH(L$2&\" Score\",'C. PoC Adj Factor Scoring'!$E$4:$J$4,0),TRUE)","v":1},{"$f":"VLOOKUP(OFFSET($B:$B,,MATCH(M$4,$B$4:$F$4,0)-1),OFFSET('C. PoC Adj Factor Scoring'!$E$5:$J$282,,MATCH(M$4,'C. PoC Adj Factor Scoring'!$E$3:$AH$3,0)-1),MATCH(M$2&\" Score\",'C. PoC Adj Factor Scoring'!$E$4:$J$4,0),TRUE)","v":1},{"$f":"VLOOKUP(OFFSET($B:$B,,MATCH(N$4,$B$4:$F$4,0)-1),OFFSET('C. PoC Adj Factor Scoring'!$E$5:$J$282,,MATCH(N$4,'C. PoC Adj Factor Scoring'!$E$3:$AH$3,0)-1),MATCH(N$2&\" Score\",'C. PoC Adj Factor Scoring'!$E$4:$J$4,0),TRUE)","v":1},{"$f":"VLOOKUP(OFFSET($B:$B,,MATCH(O$4,$B$4:$F$4,0)-1),OFFSET('C. PoC Adj Factor Scoring'!$E$5:$J$282,,MATCH(O$4,'C. PoC Adj Factor Scoring'!$E$3:$AH$3,0)-1),MATCH(O$2&\" Score\",'C. PoC Adj Factor Scoring'!$E$4:$J$4,0),TRUE)","v":1},{"$f":"VLOOKUP(OFFSET($B:$B,,MATCH(P$4,$B$4:$F$4,0)-1),OFFSET('C. PoC Adj Factor Scoring'!$E$5:$J$282,,MATCH(P$4,'C. PoC Adj Factor Scoring'!$E$3:$AH$3,0)-1),MATCH(P$2&\" Score\",'C. PoC Adj Factor Scoring'!$E$4:$J$4,0),TRUE)","v":1},{"$f":"VLOOKUP(OFFSET($B:$B,,MATCH(Q$4,$B$4:$F$4,0)-1),OFFSET('C. PoC Adj Factor Scoring'!$E$5:$J$282,,MATCH(Q$4,'C. PoC Adj Factor Scoring'!$E$3:$AH$3,0)-1),MATCH(Q$2&\" Score\",'C. PoC Adj Factor Scoring'!$E$4:$J$4,0),TRUE)","v":1},{"$f":"VLOOKUP(OFFSET($B:$B,,MATCH(R$4,$B$4:$F$4,0)-1),OFFSET('C. PoC Adj Factor Scoring'!$E$5:$J$282,,MATCH(R$4,'C. PoC Adj Factor Scoring'!$E$3:$AH$3,0)-1),MATCH(R$2&\" Score\",'C. PoC Adj Factor Scoring'!$E$4:$J$4,0),TRUE)","v":1},{"$f":"VLOOKUP(OFFSET($B:$B,,MATCH(S$4,$B$4:$F$4,0)-1),OFFSET('C. PoC Adj Factor Scoring'!$E$5:$J$282,,MATCH(S$4,'C. PoC Adj Factor Scoring'!$E$3:$AH$3,0)-1),MATCH(S$2&\" Score\",'C. PoC Adj Factor Scoring'!$E$4:$J$4,0),TRUE)","v":1},{"$f":"VLOOKUP(OFFSET($B:$B,,MATCH(T$4,$B$4:$F$4,0)-1),OFFSET('C. PoC Adj Factor Scoring'!$E$5:$J$282,,MATCH(T$4,'C. PoC Adj Factor Scoring'!$E$3:$AH$3,0)-1),MATCH(T$2&\" Score\",'C. PoC Adj Factor Scoring'!$E$4:$J$4,0),TRUE)","v":1},{"$f":"VLOOKUP(OFFSET($B:$B,,MATCH(U$4,$B$4:$F$4,0)-1),OFFSET('C. PoC Adj Factor Scoring'!$E$5:$J$282,,MATCH(U$4,'C. PoC Adj Factor Scoring'!$E$3:$AH$3,0)-1),MATCH(U$2&\" Score\",'C. PoC Adj Factor Scoring'!$E$4:$J$4,0),TRUE)","v":1},{"$f":"VLOOKUP(OFFSET($B:$B,,MATCH(V$4,$B$4:$F$4,0)-1),OFFSET('C. PoC Adj Factor Scoring'!$E$5:$J$282,,MATCH(V$4,'C. PoC Adj Factor Scoring'!$E$3:$AH$3,0)-1),MATCH(V$2&\" Score\",'C. PoC Adj Factor Scoring'!$E$4:$J$4,0),TRUE)","v":1},{"$f":"VLOOKUP(OFFSET($B:$B,,MATCH(W$4,$B$4:$F$4,0)-1),OFFSET('C. PoC Adj Factor Scoring'!$E$5:$J$282,,MATCH(W$4,'C. PoC Adj Factor Scoring'!$E$3:$AH$3,0)-1),MATCH(W$2&\" Score\",'C. PoC Adj Factor Scoring'!$E$4:$J$4,0),TRUE)","v":1},{"$f":"VLOOKUP(OFFSET($B:$B,,MATCH(X$4,$B$4:$F$4,0)-1),OFFSET('C. PoC Adj Factor Scoring'!$E$5:$J$282,,MATCH(X$4,'C. PoC Adj Factor Scoring'!$E$3:$AH$3,0)-1),MATCH(X$2&\" Score\",'C. PoC Adj Factor Scoring'!$E$4:$J$4,0),TRUE)","v":1},{"$f":"VLOOKUP(OFFSET($B:$B,,MATCH(Y$4,$B$4:$F$4,0)-1),OFFSET('C. PoC Adj Factor Scoring'!$E$5:$J$282,,MATCH(Y$4,'C. PoC Adj Factor Scoring'!$E$3:$AH$3,0)-1),MATCH(Y$2&\" Score\",'C. PoC Adj Factor Scoring'!$E$4:$J$4,0),TRUE)","v":1},{"$f":"VLOOKUP(OFFSET($B:$B,,MATCH(Z$4,$B$4:$F$4,0)-1),OFFSET('C. PoC Adj Factor Scoring'!$E$5:$J$282,,MATCH(Z$4,'C. PoC Adj Factor Scoring'!$E$3:$AH$3,0)-1),MATCH(Z$2&\" Score\",'C. PoC Adj Factor Scoring'!$E$4:$J$4,0),TRUE)","v":1},{"$f":"VLOOKUP(OFFSET($B:$B,,MATCH(AA$4,$B$4:$F$4,0)-1),OFFSET('C. PoC Adj Factor Scoring'!$E$5:$J$282,,MATCH(AA$4,'C. PoC Adj Factor Scoring'!$E$3:$AH$3,0)-1),MATCH(AA$2&\" Score\",'C. PoC Adj Factor Scoring'!$E$4:$J$4,0),TRUE)","v":3},{"$f":"VLOOKUP(OFFSET($B:$B,,MATCH(AB$4,$B$4:$F$4,0)-1),OFFSET('C. PoC Adj Factor Scoring'!$E$5:$J$282,,MATCH(AB$4,'C. PoC Adj Factor Scoring'!$E$3:$AH$3,0)-1),MATCH(AB$2&\" Score\",'C. PoC Adj Factor Scoring'!$E$4:$J$4,0),TRUE)","v":1},{"$f":"VLOOKUP(OFFSET($B:$B,,MATCH(AC$4,$B$4:$F$4,0)-1),OFFSET('C. PoC Adj Factor Scoring'!$E$5:$J$282,,MATCH(AC$4,'C. PoC Adj Factor Scoring'!$E$3:$AH$3,0)-1),MATCH(AC$2&\" Score\",'C. PoC Adj Factor Scoring'!$E$4:$J$4,0),TRUE)","v":1},{"$f":"VLOOKUP(OFFSET($B:$B,,MATCH(AD$4,$B$4:$F$4,0)-1),OFFSET('C. PoC Adj Factor Scoring'!$E$5:$J$282,,MATCH(AD$4,'C. PoC Adj Factor Scoring'!$E$3:$AH$3,0)-1),MATCH(AD$2&\" Score\",'C. PoC Adj Factor Scoring'!$E$4:$J$4,0),TRUE)","v":1},{"$f":"VLOOKUP(OFFSET($B:$B,,MATCH(AE$4,$B$4:$F$4,0)-1),OFFSET('C. PoC Adj Factor Scoring'!$E$5:$J$282,,MATCH(AE$4,'C. PoC Adj Factor Scoring'!$E$3:$AH$3,0)-1),MATCH(AE$2&\" Score\",'C. PoC Adj Factor Scoring'!$E$4:$J$4,0),TRUE)","v":1}]
[{"$f":"'A. Population Info'!A134","v":1000340593},{"$f":"'A. Population Info'!L134","v":"OIL"},{"$f":"'A. Population Info'!M134","v":0},{"$f":"'A. Population Info'!N134","v":0},{"$f":"'A. Population Info'!O134","v":0},{"$f":"'A. Population Info'!P134","v":0},{"$f":"VLOOKUP(OFFSET($B:$B,,MATCH(G$4,$B$4:$F$4,0)-1),OFFSET('C. PoC Adj Factor Scoring'!$E$5:$J$282,,MATCH(G$4,'C. PoC Adj Factor Scoring'!$E$3:$AH$3,0)-1),MATCH(G$2&\" Score\",'C. PoC Adj Factor Scoring'!$E$4:$J$4,0),TRUE)","v":4},{"$f":"VLOOKUP(OFFSET($B:$B,,MATCH(H$4,$B$4:$F$4,0)-1),OFFSET('C. PoC Adj Factor Scoring'!$E$5:$J$282,,MATCH(H$4,'C. PoC Adj Factor Scoring'!$E$3:$AH$3,0)-1),MATCH(H$2&\" Score\",'C. PoC Adj Factor Scoring'!$E$4:$J$4,0),TRUE)","v":1},{"$f":"VLOOKUP(OFFSET($B:$B,,MATCH(I$4,$B$4:$F$4,0)-1),OFFSET('C. PoC Adj Factor Scoring'!$E$5:$J$282,,MATCH(I$4,'C. PoC Adj Factor Scoring'!$E$3:$AH$3,0)-1),MATCH(I$2&\" Score\",'C. PoC Adj Factor Scoring'!$E$4:$J$4,0),TRUE)","v":1},{"$f":"VLOOKUP(OFFSET($B:$B,,MATCH(J$4,$B$4:$F$4,0)-1),OFFSET('C. PoC Adj Factor Scoring'!$E$5:$J$282,,MATCH(J$4,'C. PoC Adj Factor Scoring'!$E$3:$AH$3,0)-1),MATCH(J$2&\" Score\",'C. PoC Adj Factor Scoring'!$E$4:$J$4,0),TRUE)","v":1},{"$f":"VLOOKUP(OFFSET($B:$B,,MATCH(K$4,$B$4:$F$4,0)-1),OFFSET('C. PoC Adj Factor Scoring'!$E$5:$J$282,,MATCH(K$4,'C. PoC Adj Factor Scoring'!$E$3:$AH$3,0)-1),MATCH(K$2&\" Score\",'C. PoC Adj Factor Scoring'!$E$4:$J$4,0),TRUE)","v":1},{"$f":"VLOOKUP(OFFSET($B:$B,,MATCH(L$4,$B$4:$F$4,0)-1),OFFSET('C. PoC Adj Factor Scoring'!$E$5:$J$282,,MATCH(L$4,'C. PoC Adj Factor Scoring'!$E$3:$AH$3,0)-1),MATCH(L$2&\" Score\",'C. PoC Adj Factor Scoring'!$E$4:$J$4,0),TRUE)","v":1},{"$f":"VLOOKUP(OFFSET($B:$B,,MATCH(M$4,$B$4:$F$4,0)-1),OFFSET('C. PoC Adj Factor Scoring'!$E$5:$J$282,,MATCH(M$4,'C. PoC Adj Factor Scoring'!$E$3:$AH$3,0)-1),MATCH(M$2&\" Score\",'C. PoC Adj Factor Scoring'!$E$4:$J$4,0),TRUE)","v":1},{"$f":"VLOOKUP(OFFSET($B:$B,,MATCH(N$4,$B$4:$F$4,0)-1),OFFSET('C. PoC Adj Factor Scoring'!$E$5:$J$282,,MATCH(N$4,'C. PoC Adj Factor Scoring'!$E$3:$AH$3,0)-1),MATCH(N$2&\" Score\",'C. PoC Adj Factor Scoring'!$E$4:$J$4,0),TRUE)","v":1},{"$f":"VLOOKUP(OFFSET($B:$B,,MATCH(O$4,$B$4:$F$4,0)-1),OFFSET('C. PoC Adj Factor Scoring'!$E$5:$J$282,,MATCH(O$4,'C. PoC Adj Factor Scoring'!$E$3:$AH$3,0)-1),MATCH(O$2&\" Score\",'C. PoC Adj Factor Scoring'!$E$4:$J$4,0),TRUE)","v":1},{"$f":"VLOOKUP(OFFSET($B:$B,,MATCH(P$4,$B$4:$F$4,0)-1),OFFSET('C. PoC Adj Factor Scoring'!$E$5:$J$282,,MATCH(P$4,'C. PoC Adj Factor Scoring'!$E$3:$AH$3,0)-1),MATCH(P$2&\" Score\",'C. PoC Adj Factor Scoring'!$E$4:$J$4,0),TRUE)","v":1},{"$f":"VLOOKUP(OFFSET($B:$B,,MATCH(Q$4,$B$4:$F$4,0)-1),OFFSET('C. PoC Adj Factor Scoring'!$E$5:$J$282,,MATCH(Q$4,'C. PoC Adj Factor Scoring'!$E$3:$AH$3,0)-1),MATCH(Q$2&\" Score\",'C. PoC Adj Factor Scoring'!$E$4:$J$4,0),TRUE)","v":1},{"$f":"VLOOKUP(OFFSET($B:$B,,MATCH(R$4,$B$4:$F$4,0)-1),OFFSET('C. PoC Adj Factor Scoring'!$E$5:$J$282,,MATCH(R$4,'C. PoC Adj Factor Scoring'!$E$3:$AH$3,0)-1),MATCH(R$2&\" Score\",'C. PoC Adj Factor Scoring'!$E$4:$J$4,0),TRUE)","v":1},{"$f":"VLOOKUP(OFFSET($B:$B,,MATCH(S$4,$B$4:$F$4,0)-1),OFFSET('C. PoC Adj Factor Scoring'!$E$5:$J$282,,MATCH(S$4,'C. PoC Adj Factor Scoring'!$E$3:$AH$3,0)-1),MATCH(S$2&\" Score\",'C. PoC Adj Factor Scoring'!$E$4:$J$4,0),TRUE)","v":1},{"$f":"VLOOKUP(OFFSET($B:$B,,MATCH(T$4,$B$4:$F$4,0)-1),OFFSET('C. PoC Adj Factor Scoring'!$E$5:$J$282,,MATCH(T$4,'C. PoC Adj Factor Scoring'!$E$3:$AH$3,0)-1),MATCH(T$2&\" Score\",'C. PoC Adj Factor Scoring'!$E$4:$J$4,0),TRUE)","v":1},{"$f":"VLOOKUP(OFFSET($B:$B,,MATCH(U$4,$B$4:$F$4,0)-1),OFFSET('C. PoC Adj Factor Scoring'!$E$5:$J$282,,MATCH(U$4,'C. PoC Adj Factor Scoring'!$E$3:$AH$3,0)-1),MATCH(U$2&\" Score\",'C. PoC Adj Factor Scoring'!$E$4:$J$4,0),TRUE)","v":1},{"$f":"VLOOKUP(OFFSET($B:$B,,MATCH(V$4,$B$4:$F$4,0)-1),OFFSET('C. PoC Adj Factor Scoring'!$E$5:$J$282,,MATCH(V$4,'C. PoC Adj Factor Scoring'!$E$3:$AH$3,0)-1),MATCH(V$2&\" Score\",'C. PoC Adj Factor Scoring'!$E$4:$J$4,0),TRUE)","v":1},{"$f":"VLOOKUP(OFFSET($B:$B,,MATCH(W$4,$B$4:$F$4,0)-1),OFFSET('C. PoC Adj Factor Scoring'!$E$5:$J$282,,MATCH(W$4,'C. PoC Adj Factor Scoring'!$E$3:$AH$3,0)-1),MATCH(W$2&\" Score\",'C. PoC Adj Factor Scoring'!$E$4:$J$4,0),TRUE)","v":1},{"$f":"VLOOKUP(OFFSET($B:$B,,MATCH(X$4,$B$4:$F$4,0)-1),OFFSET('C. PoC Adj Factor Scoring'!$E$5:$J$282,,MATCH(X$4,'C. PoC Adj Factor Scoring'!$E$3:$AH$3,0)-1),MATCH(X$2&\" Score\",'C. PoC Adj Factor Scoring'!$E$4:$J$4,0),TRUE)","v":1},{"$f":"VLOOKUP(OFFSET($B:$B,,MATCH(Y$4,$B$4:$F$4,0)-1),OFFSET('C. PoC Adj Factor Scoring'!$E$5:$J$282,,MATCH(Y$4,'C. PoC Adj Factor Scoring'!$E$3:$AH$3,0)-1),MATCH(Y$2&\" Score\",'C. PoC Adj Factor Scoring'!$E$4:$J$4,0),TRUE)","v":1},{"$f":"VLOOKUP(OFFSET($B:$B,,MATCH(Z$4,$B$4:$F$4,0)-1),OFFSET('C. PoC Adj Factor Scoring'!$E$5:$J$282,,MATCH(Z$4,'C. PoC Adj Factor Scoring'!$E$3:$AH$3,0)-1),MATCH(Z$2&\" Score\",'C. PoC Adj Factor Scoring'!$E$4:$J$4,0),TRUE)","v":1},{"$f":"VLOOKUP(OFFSET($B:$B,,MATCH(AA$4,$B$4:$F$4,0)-1),OFFSET('C. PoC Adj Factor Scoring'!$E$5:$J$282,,MATCH(AA$4,'C. PoC Adj Factor Scoring'!$E$3:$AH$3,0)-1),MATCH(AA$2&\" Score\",'C. PoC Adj Factor Scoring'!$E$4:$J$4,0),TRUE)","v":3},{"$f":"VLOOKUP(OFFSET($B:$B,,MATCH(AB$4,$B$4:$F$4,0)-1),OFFSET('C. PoC Adj Factor Scoring'!$E$5:$J$282,,MATCH(AB$4,'C. PoC Adj Factor Scoring'!$E$3:$AH$3,0)-1),MATCH(AB$2&\" Score\",'C. PoC Adj Factor Scoring'!$E$4:$J$4,0),TRUE)","v":1},{"$f":"VLOOKUP(OFFSET($B:$B,,MATCH(AC$4,$B$4:$F$4,0)-1),OFFSET('C. PoC Adj Factor Scoring'!$E$5:$J$282,,MATCH(AC$4,'C. PoC Adj Factor Scoring'!$E$3:$AH$3,0)-1),MATCH(AC$2&\" Score\",'C. PoC Adj Factor Scoring'!$E$4:$J$4,0),TRUE)","v":1},{"$f":"VLOOKUP(OFFSET($B:$B,,MATCH(AD$4,$B$4:$F$4,0)-1),OFFSET('C. PoC Adj Factor Scoring'!$E$5:$J$282,,MATCH(AD$4,'C. PoC Adj Factor Scoring'!$E$3:$AH$3,0)-1),MATCH(AD$2&\" Score\",'C. PoC Adj Factor Scoring'!$E$4:$J$4,0),TRUE)","v":1},{"$f":"VLOOKUP(OFFSET($B:$B,,MATCH(AE$4,$B$4:$F$4,0)-1),OFFSET('C. PoC Adj Factor Scoring'!$E$5:$J$282,,MATCH(AE$4,'C. PoC Adj Factor Scoring'!$E$3:$AH$3,0)-1),MATCH(AE$2&\" Score\",'C. PoC Adj Factor Scoring'!$E$4:$J$4,0),TRUE)","v":1}]
[{"$f":"'A. Population Info'!A135","v":1000340623},{"$f":"'A. Population Info'!L135","v":"OIL"},{"$f":"'A. Population Info'!M135","v":0},{"$f":"'A. Population Info'!N135","v":0},{"$f":"'A. Population Info'!O135","v":0},{"$f":"'A. Population Info'!P135","v":0},{"$f":"VLOOKUP(OFFSET($B:$B,,MATCH(G$4,$B$4:$F$4,0)-1),OFFSET('C. PoC Adj Factor Scoring'!$E$5:$J$282,,MATCH(G$4,'C. PoC Adj Factor Scoring'!$E$3:$AH$3,0)-1),MATCH(G$2&\" Score\",'C. PoC Adj Factor Scoring'!$E$4:$J$4,0),TRUE)","v":4},{"$f":"VLOOKUP(OFFSET($B:$B,,MATCH(H$4,$B$4:$F$4,0)-1),OFFSET('C. PoC Adj Factor Scoring'!$E$5:$J$282,,MATCH(H$4,'C. PoC Adj Factor Scoring'!$E$3:$AH$3,0)-1),MATCH(H$2&\" Score\",'C. PoC Adj Factor Scoring'!$E$4:$J$4,0),TRUE)","v":1},{"$f":"VLOOKUP(OFFSET($B:$B,,MATCH(I$4,$B$4:$F$4,0)-1),OFFSET('C. PoC Adj Factor Scoring'!$E$5:$J$282,,MATCH(I$4,'C. PoC Adj Factor Scoring'!$E$3:$AH$3,0)-1),MATCH(I$2&\" Score\",'C. PoC Adj Factor Scoring'!$E$4:$J$4,0),TRUE)","v":1},{"$f":"VLOOKUP(OFFSET($B:$B,,MATCH(J$4,$B$4:$F$4,0)-1),OFFSET('C. PoC Adj Factor Scoring'!$E$5:$J$282,,MATCH(J$4,'C. PoC Adj Factor Scoring'!$E$3:$AH$3,0)-1),MATCH(J$2&\" Score\",'C. PoC Adj Factor Scoring'!$E$4:$J$4,0),TRUE)","v":1},{"$f":"VLOOKUP(OFFSET($B:$B,,MATCH(K$4,$B$4:$F$4,0)-1),OFFSET('C. PoC Adj Factor Scoring'!$E$5:$J$282,,MATCH(K$4,'C. PoC Adj Factor Scoring'!$E$3:$AH$3,0)-1),MATCH(K$2&\" Score\",'C. PoC Adj Factor Scoring'!$E$4:$J$4,0),TRUE)","v":1},{"$f":"VLOOKUP(OFFSET($B:$B,,MATCH(L$4,$B$4:$F$4,0)-1),OFFSET('C. PoC Adj Factor Scoring'!$E$5:$J$282,,MATCH(L$4,'C. PoC Adj Factor Scoring'!$E$3:$AH$3,0)-1),MATCH(L$2&\" Score\",'C. PoC Adj Factor Scoring'!$E$4:$J$4,0),TRUE)","v":1},{"$f":"VLOOKUP(OFFSET($B:$B,,MATCH(M$4,$B$4:$F$4,0)-1),OFFSET('C. PoC Adj Factor Scoring'!$E$5:$J$282,,MATCH(M$4,'C. PoC Adj Factor Scoring'!$E$3:$AH$3,0)-1),MATCH(M$2&\" Score\",'C. PoC Adj Factor Scoring'!$E$4:$J$4,0),TRUE)","v":1},{"$f":"VLOOKUP(OFFSET($B:$B,,MATCH(N$4,$B$4:$F$4,0)-1),OFFSET('C. PoC Adj Factor Scoring'!$E$5:$J$282,,MATCH(N$4,'C. PoC Adj Factor Scoring'!$E$3:$AH$3,0)-1),MATCH(N$2&\" Score\",'C. PoC Adj Factor Scoring'!$E$4:$J$4,0),TRUE)","v":1},{"$f":"VLOOKUP(OFFSET($B:$B,,MATCH(O$4,$B$4:$F$4,0)-1),OFFSET('C. PoC Adj Factor Scoring'!$E$5:$J$282,,MATCH(O$4,'C. PoC Adj Factor Scoring'!$E$3:$AH$3,0)-1),MATCH(O$2&\" Score\",'C. PoC Adj Factor Scoring'!$E$4:$J$4,0),TRUE)","v":1},{"$f":"VLOOKUP(OFFSET($B:$B,,MATCH(P$4,$B$4:$F$4,0)-1),OFFSET('C. PoC Adj Factor Scoring'!$E$5:$J$282,,MATCH(P$4,'C. PoC Adj Factor Scoring'!$E$3:$AH$3,0)-1),MATCH(P$2&\" Score\",'C. PoC Adj Factor Scoring'!$E$4:$J$4,0),TRUE)","v":1},{"$f":"VLOOKUP(OFFSET($B:$B,,MATCH(Q$4,$B$4:$F$4,0)-1),OFFSET('C. PoC Adj Factor Scoring'!$E$5:$J$282,,MATCH(Q$4,'C. PoC Adj Factor Scoring'!$E$3:$AH$3,0)-1),MATCH(Q$2&\" Score\",'C. PoC Adj Factor Scoring'!$E$4:$J$4,0),TRUE)","v":1},{"$f":"VLOOKUP(OFFSET($B:$B,,MATCH(R$4,$B$4:$F$4,0)-1),OFFSET('C. PoC Adj Factor Scoring'!$E$5:$J$282,,MATCH(R$4,'C. PoC Adj Factor Scoring'!$E$3:$AH$3,0)-1),MATCH(R$2&\" Score\",'C. PoC Adj Factor Scoring'!$E$4:$J$4,0),TRUE)","v":1},{"$f":"VLOOKUP(OFFSET($B:$B,,MATCH(S$4,$B$4:$F$4,0)-1),OFFSET('C. PoC Adj Factor Scoring'!$E$5:$J$282,,MATCH(S$4,'C. PoC Adj Factor Scoring'!$E$3:$AH$3,0)-1),MATCH(S$2&\" Score\",'C. PoC Adj Factor Scoring'!$E$4:$J$4,0),TRUE)","v":1},{"$f":"VLOOKUP(OFFSET($B:$B,,MATCH(T$4,$B$4:$F$4,0)-1),OFFSET('C. PoC Adj Factor Scoring'!$E$5:$J$282,,MATCH(T$4,'C. PoC Adj Factor Scoring'!$E$3:$AH$3,0)-1),MATCH(T$2&\" Score\",'C. PoC Adj Factor Scoring'!$E$4:$J$4,0),TRUE)","v":1},{"$f":"VLOOKUP(OFFSET($B:$B,,MATCH(U$4,$B$4:$F$4,0)-1),OFFSET('C. PoC Adj Factor Scoring'!$E$5:$J$282,,MATCH(U$4,'C. PoC Adj Factor Scoring'!$E$3:$AH$3,0)-1),MATCH(U$2&\" Score\",'C. PoC Adj Factor Scoring'!$E$4:$J$4,0),TRUE)","v":1},{"$f":"VLOOKUP(OFFSET($B:$B,,MATCH(V$4,$B$4:$F$4,0)-1),OFFSET('C. PoC Adj Factor Scoring'!$E$5:$J$282,,MATCH(V$4,'C. PoC Adj Factor Scoring'!$E$3:$AH$3,0)-1),MATCH(V$2&\" Score\",'C. PoC Adj Factor Scoring'!$E$4:$J$4,0),TRUE)","v":1},{"$f":"VLOOKUP(OFFSET($B:$B,,MATCH(W$4,$B$4:$F$4,0)-1),OFFSET('C. PoC Adj Factor Scoring'!$E$5:$J$282,,MATCH(W$4,'C. PoC Adj Factor Scoring'!$E$3:$AH$3,0)-1),MATCH(W$2&\" Score\",'C. PoC Adj Factor Scoring'!$E$4:$J$4,0),TRUE)","v":1},{"$f":"VLOOKUP(OFFSET($B:$B,,MATCH(X$4,$B$4:$F$4,0)-1),OFFSET('C. PoC Adj Factor Scoring'!$E$5:$J$282,,MATCH(X$4,'C. PoC Adj Factor Scoring'!$E$3:$AH$3,0)-1),MATCH(X$2&\" Score\",'C. PoC Adj Factor Scoring'!$E$4:$J$4,0),TRUE)","v":1},{"$f":"VLOOKUP(OFFSET($B:$B,,MATCH(Y$4,$B$4:$F$4,0)-1),OFFSET('C. PoC Adj Factor Scoring'!$E$5:$J$282,,MATCH(Y$4,'C. PoC Adj Factor Scoring'!$E$3:$AH$3,0)-1),MATCH(Y$2&\" Score\",'C. PoC Adj Factor Scoring'!$E$4:$J$4,0),TRUE)","v":1},{"$f":"VLOOKUP(OFFSET($B:$B,,MATCH(Z$4,$B$4:$F$4,0)-1),OFFSET('C. PoC Adj Factor Scoring'!$E$5:$J$282,,MATCH(Z$4,'C. PoC Adj Factor Scoring'!$E$3:$AH$3,0)-1),MATCH(Z$2&\" Score\",'C. PoC Adj Factor Scoring'!$E$4:$J$4,0),TRUE)","v":1},{"$f":"VLOOKUP(OFFSET($B:$B,,MATCH(AA$4,$B$4:$F$4,0)-1),OFFSET('C. PoC Adj Factor Scoring'!$E$5:$J$282,,MATCH(AA$4,'C. PoC Adj Factor Scoring'!$E$3:$AH$3,0)-1),MATCH(AA$2&\" Score\",'C. PoC Adj Factor Scoring'!$E$4:$J$4,0),TRUE)","v":3},{"$f":"VLOOKUP(OFFSET($B:$B,,MATCH(AB$4,$B$4:$F$4,0)-1),OFFSET('C. PoC Adj Factor Scoring'!$E$5:$J$282,,MATCH(AB$4,'C. PoC Adj Factor Scoring'!$E$3:$AH$3,0)-1),MATCH(AB$2&\" Score\",'C. PoC Adj Factor Scoring'!$E$4:$J$4,0),TRUE)","v":1},{"$f":"VLOOKUP(OFFSET($B:$B,,MATCH(AC$4,$B$4:$F$4,0)-1),OFFSET('C. PoC Adj Factor Scoring'!$E$5:$J$282,,MATCH(AC$4,'C. PoC Adj Factor Scoring'!$E$3:$AH$3,0)-1),MATCH(AC$2&\" Score\",'C. PoC Adj Factor Scoring'!$E$4:$J$4,0),TRUE)","v":1},{"$f":"VLOOKUP(OFFSET($B:$B,,MATCH(AD$4,$B$4:$F$4,0)-1),OFFSET('C. PoC Adj Factor Scoring'!$E$5:$J$282,,MATCH(AD$4,'C. PoC Adj Factor Scoring'!$E$3:$AH$3,0)-1),MATCH(AD$2&\" Score\",'C. PoC Adj Factor Scoring'!$E$4:$J$4,0),TRUE)","v":1},{"$f":"VLOOKUP(OFFSET($B:$B,,MATCH(AE$4,$B$4:$F$4,0)-1),OFFSET('C. PoC Adj Factor Scoring'!$E$5:$J$282,,MATCH(AE$4,'C. PoC Adj Factor Scoring'!$E$3:$AH$3,0)-1),MATCH(AE$2&\" Score\",'C. PoC Adj Factor Scoring'!$E$4:$J$4,0),TRUE)","v":1}]
[{"$f":"'A. Population Info'!A136","v":1000340657},{"$f":"'A. Population Info'!L136","v":"OIL"},{"$f":"'A. Population Info'!M136","v":0},{"$f":"'A. Population Info'!N136","v":0},{"$f":"'A. Population Info'!O136","v":0},{"$f":"'A. Population Info'!P136","v":0},{"$f":"VLOOKUP(OFFSET($B:$B,,MATCH(G$4,$B$4:$F$4,0)-1),OFFSET('C. PoC Adj Factor Scoring'!$E$5:$J$282,,MATCH(G$4,'C. PoC Adj Factor Scoring'!$E$3:$AH$3,0)-1),MATCH(G$2&\" Score\",'C. PoC Adj Factor Scoring'!$E$4:$J$4,0),TRUE)","v":4},{"$f":"VLOOKUP(OFFSET($B:$B,,MATCH(H$4,$B$4:$F$4,0)-1),OFFSET('C. PoC Adj Factor Scoring'!$E$5:$J$282,,MATCH(H$4,'C. PoC Adj Factor Scoring'!$E$3:$AH$3,0)-1),MATCH(H$2&\" Score\",'C. PoC Adj Factor Scoring'!$E$4:$J$4,0),TRUE)","v":1},{"$f":"VLOOKUP(OFFSET($B:$B,,MATCH(I$4,$B$4:$F$4,0)-1),OFFSET('C. PoC Adj Factor Scoring'!$E$5:$J$282,,MATCH(I$4,'C. PoC Adj Factor Scoring'!$E$3:$AH$3,0)-1),MATCH(I$2&\" Score\",'C. PoC Adj Factor Scoring'!$E$4:$J$4,0),TRUE)","v":1},{"$f":"VLOOKUP(OFFSET($B:$B,,MATCH(J$4,$B$4:$F$4,0)-1),OFFSET('C. PoC Adj Factor Scoring'!$E$5:$J$282,,MATCH(J$4,'C. PoC Adj Factor Scoring'!$E$3:$AH$3,0)-1),MATCH(J$2&\" Score\",'C. PoC Adj Factor Scoring'!$E$4:$J$4,0),TRUE)","v":1},{"$f":"VLOOKUP(OFFSET($B:$B,,MATCH(K$4,$B$4:$F$4,0)-1),OFFSET('C. PoC Adj Factor Scoring'!$E$5:$J$282,,MATCH(K$4,'C. PoC Adj Factor Scoring'!$E$3:$AH$3,0)-1),MATCH(K$2&\" Score\",'C. PoC Adj Factor Scoring'!$E$4:$J$4,0),TRUE)","v":1},{"$f":"VLOOKUP(OFFSET($B:$B,,MATCH(L$4,$B$4:$F$4,0)-1),OFFSET('C. PoC Adj Factor Scoring'!$E$5:$J$282,,MATCH(L$4,'C. PoC Adj Factor Scoring'!$E$3:$AH$3,0)-1),MATCH(L$2&\" Score\",'C. PoC Adj Factor Scoring'!$E$4:$J$4,0),TRUE)","v":1},{"$f":"VLOOKUP(OFFSET($B:$B,,MATCH(M$4,$B$4:$F$4,0)-1),OFFSET('C. PoC Adj Factor Scoring'!$E$5:$J$282,,MATCH(M$4,'C. PoC Adj Factor Scoring'!$E$3:$AH$3,0)-1),MATCH(M$2&\" Score\",'C. PoC Adj Factor Scoring'!$E$4:$J$4,0),TRUE)","v":1},{"$f":"VLOOKUP(OFFSET($B:$B,,MATCH(N$4,$B$4:$F$4,0)-1),OFFSET('C. PoC Adj Factor Scoring'!$E$5:$J$282,,MATCH(N$4,'C. PoC Adj Factor Scoring'!$E$3:$AH$3,0)-1),MATCH(N$2&\" Score\",'C. PoC Adj Factor Scoring'!$E$4:$J$4,0),TRUE)","v":1},{"$f":"VLOOKUP(OFFSET($B:$B,,MATCH(O$4,$B$4:$F$4,0)-1),OFFSET('C. PoC Adj Factor Scoring'!$E$5:$J$282,,MATCH(O$4,'C. PoC Adj Factor Scoring'!$E$3:$AH$3,0)-1),MATCH(O$2&\" Score\",'C. PoC Adj Factor Scoring'!$E$4:$J$4,0),TRUE)","v":1},{"$f":"VLOOKUP(OFFSET($B:$B,,MATCH(P$4,$B$4:$F$4,0)-1),OFFSET('C. PoC Adj Factor Scoring'!$E$5:$J$282,,MATCH(P$4,'C. PoC Adj Factor Scoring'!$E$3:$AH$3,0)-1),MATCH(P$2&\" Score\",'C. PoC Adj Factor Scoring'!$E$4:$J$4,0),TRUE)","v":1},{"$f":"VLOOKUP(OFFSET($B:$B,,MATCH(Q$4,$B$4:$F$4,0)-1),OFFSET('C. PoC Adj Factor Scoring'!$E$5:$J$282,,MATCH(Q$4,'C. PoC Adj Factor Scoring'!$E$3:$AH$3,0)-1),MATCH(Q$2&\" Score\",'C. PoC Adj Factor Scoring'!$E$4:$J$4,0),TRUE)","v":1},{"$f":"VLOOKUP(OFFSET($B:$B,,MATCH(R$4,$B$4:$F$4,0)-1),OFFSET('C. PoC Adj Factor Scoring'!$E$5:$J$282,,MATCH(R$4,'C. PoC Adj Factor Scoring'!$E$3:$AH$3,0)-1),MATCH(R$2&\" Score\",'C. PoC Adj Factor Scoring'!$E$4:$J$4,0),TRUE)","v":1},{"$f":"VLOOKUP(OFFSET($B:$B,,MATCH(S$4,$B$4:$F$4,0)-1),OFFSET('C. PoC Adj Factor Scoring'!$E$5:$J$282,,MATCH(S$4,'C. PoC Adj Factor Scoring'!$E$3:$AH$3,0)-1),MATCH(S$2&\" Score\",'C. PoC Adj Factor Scoring'!$E$4:$J$4,0),TRUE)","v":1},{"$f":"VLOOKUP(OFFSET($B:$B,,MATCH(T$4,$B$4:$F$4,0)-1),OFFSET('C. PoC Adj Factor Scoring'!$E$5:$J$282,,MATCH(T$4,'C. PoC Adj Factor Scoring'!$E$3:$AH$3,0)-1),MATCH(T$2&\" Score\",'C. PoC Adj Factor Scoring'!$E$4:$J$4,0),TRUE)","v":1},{"$f":"VLOOKUP(OFFSET($B:$B,,MATCH(U$4,$B$4:$F$4,0)-1),OFFSET('C. PoC Adj Factor Scoring'!$E$5:$J$282,,MATCH(U$4,'C. PoC Adj Factor Scoring'!$E$3:$AH$3,0)-1),MATCH(U$2&\" Score\",'C. PoC Adj Factor Scoring'!$E$4:$J$4,0),TRUE)","v":1},{"$f":"VLOOKUP(OFFSET($B:$B,,MATCH(V$4,$B$4:$F$4,0)-1),OFFSET('C. PoC Adj Factor Scoring'!$E$5:$J$282,,MATCH(V$4,'C. PoC Adj Factor Scoring'!$E$3:$AH$3,0)-1),MATCH(V$2&\" Score\",'C. PoC Adj Factor Scoring'!$E$4:$J$4,0),TRUE)","v":1},{"$f":"VLOOKUP(OFFSET($B:$B,,MATCH(W$4,$B$4:$F$4,0)-1),OFFSET('C. PoC Adj Factor Scoring'!$E$5:$J$282,,MATCH(W$4,'C. PoC Adj Factor Scoring'!$E$3:$AH$3,0)-1),MATCH(W$2&\" Score\",'C. PoC Adj Factor Scoring'!$E$4:$J$4,0),TRUE)","v":1},{"$f":"VLOOKUP(OFFSET($B:$B,,MATCH(X$4,$B$4:$F$4,0)-1),OFFSET('C. PoC Adj Factor Scoring'!$E$5:$J$282,,MATCH(X$4,'C. PoC Adj Factor Scoring'!$E$3:$AH$3,0)-1),MATCH(X$2&\" Score\",'C. PoC Adj Factor Scoring'!$E$4:$J$4,0),TRUE)","v":1},{"$f":"VLOOKUP(OFFSET($B:$B,,MATCH(Y$4,$B$4:$F$4,0)-1),OFFSET('C. PoC Adj Factor Scoring'!$E$5:$J$282,,MATCH(Y$4,'C. PoC Adj Factor Scoring'!$E$3:$AH$3,0)-1),MATCH(Y$2&\" Score\",'C. PoC Adj Factor Scoring'!$E$4:$J$4,0),TRUE)","v":1},{"$f":"VLOOKUP(OFFSET($B:$B,,MATCH(Z$4,$B$4:$F$4,0)-1),OFFSET('C. PoC Adj Factor Scoring'!$E$5:$J$282,,MATCH(Z$4,'C. PoC Adj Factor Scoring'!$E$3:$AH$3,0)-1),MATCH(Z$2&\" Score\",'C. PoC Adj Factor Scoring'!$E$4:$J$4,0),TRUE)","v":1},{"$f":"VLOOKUP(OFFSET($B:$B,,MATCH(AA$4,$B$4:$F$4,0)-1),OFFSET('C. PoC Adj Factor Scoring'!$E$5:$J$282,,MATCH(AA$4,'C. PoC Adj Factor Scoring'!$E$3:$AH$3,0)-1),MATCH(AA$2&\" Score\",'C. PoC Adj Factor Scoring'!$E$4:$J$4,0),TRUE)","v":3},{"$f":"VLOOKUP(OFFSET($B:$B,,MATCH(AB$4,$B$4:$F$4,0)-1),OFFSET('C. PoC Adj Factor Scoring'!$E$5:$J$282,,MATCH(AB$4,'C. PoC Adj Factor Scoring'!$E$3:$AH$3,0)-1),MATCH(AB$2&\" Score\",'C. PoC Adj Factor Scoring'!$E$4:$J$4,0),TRUE)","v":1},{"$f":"VLOOKUP(OFFSET($B:$B,,MATCH(AC$4,$B$4:$F$4,0)-1),OFFSET('C. PoC Adj Factor Scoring'!$E$5:$J$282,,MATCH(AC$4,'C. PoC Adj Factor Scoring'!$E$3:$AH$3,0)-1),MATCH(AC$2&\" Score\",'C. PoC Adj Factor Scoring'!$E$4:$J$4,0),TRUE)","v":1},{"$f":"VLOOKUP(OFFSET($B:$B,,MATCH(AD$4,$B$4:$F$4,0)-1),OFFSET('C. PoC Adj Factor Scoring'!$E$5:$J$282,,MATCH(AD$4,'C. PoC Adj Factor Scoring'!$E$3:$AH$3,0)-1),MATCH(AD$2&\" Score\",'C. PoC Adj Factor Scoring'!$E$4:$J$4,0),TRUE)","v":1},{"$f":"VLOOKUP(OFFSET($B:$B,,MATCH(AE$4,$B$4:$F$4,0)-1),OFFSET('C. PoC Adj Factor Scoring'!$E$5:$J$282,,MATCH(AE$4,'C. PoC Adj Factor Scoring'!$E$3:$AH$3,0)-1),MATCH(AE$2&\" Score\",'C. PoC Adj Factor Scoring'!$E$4:$J$4,0),TRUE)","v":1}]
[{"$f":"'A. Population Info'!A137","v":1000340689},{"$f":"'A. Population Info'!L137","v":"OIL"},{"$f":"'A. Population Info'!M137","v":0},{"$f":"'A. Population Info'!N137","v":0},{"$f":"'A. Population Info'!O137","v":0},{"$f":"'A. Population Info'!P137","v":0},{"$f":"VLOOKUP(OFFSET($B:$B,,MATCH(G$4,$B$4:$F$4,0)-1),OFFSET('C. PoC Adj Factor Scoring'!$E$5:$J$282,,MATCH(G$4,'C. PoC Adj Factor Scoring'!$E$3:$AH$3,0)-1),MATCH(G$2&\" Score\",'C. PoC Adj Factor Scoring'!$E$4:$J$4,0),TRUE)","v":4},{"$f":"VLOOKUP(OFFSET($B:$B,,MATCH(H$4,$B$4:$F$4,0)-1),OFFSET('C. PoC Adj Factor Scoring'!$E$5:$J$282,,MATCH(H$4,'C. PoC Adj Factor Scoring'!$E$3:$AH$3,0)-1),MATCH(H$2&\" Score\",'C. PoC Adj Factor Scoring'!$E$4:$J$4,0),TRUE)","v":1},{"$f":"VLOOKUP(OFFSET($B:$B,,MATCH(I$4,$B$4:$F$4,0)-1),OFFSET('C. PoC Adj Factor Scoring'!$E$5:$J$282,,MATCH(I$4,'C. PoC Adj Factor Scoring'!$E$3:$AH$3,0)-1),MATCH(I$2&\" Score\",'C. PoC Adj Factor Scoring'!$E$4:$J$4,0),TRUE)","v":1},{"$f":"VLOOKUP(OFFSET($B:$B,,MATCH(J$4,$B$4:$F$4,0)-1),OFFSET('C. PoC Adj Factor Scoring'!$E$5:$J$282,,MATCH(J$4,'C. PoC Adj Factor Scoring'!$E$3:$AH$3,0)-1),MATCH(J$2&\" Score\",'C. PoC Adj Factor Scoring'!$E$4:$J$4,0),TRUE)","v":1},{"$f":"VLOOKUP(OFFSET($B:$B,,MATCH(K$4,$B$4:$F$4,0)-1),OFFSET('C. PoC Adj Factor Scoring'!$E$5:$J$282,,MATCH(K$4,'C. PoC Adj Factor Scoring'!$E$3:$AH$3,0)-1),MATCH(K$2&\" Score\",'C. PoC Adj Factor Scoring'!$E$4:$J$4,0),TRUE)","v":1},{"$f":"VLOOKUP(OFFSET($B:$B,,MATCH(L$4,$B$4:$F$4,0)-1),OFFSET('C. PoC Adj Factor Scoring'!$E$5:$J$282,,MATCH(L$4,'C. PoC Adj Factor Scoring'!$E$3:$AH$3,0)-1),MATCH(L$2&\" Score\",'C. PoC Adj Factor Scoring'!$E$4:$J$4,0),TRUE)","v":1},{"$f":"VLOOKUP(OFFSET($B:$B,,MATCH(M$4,$B$4:$F$4,0)-1),OFFSET('C. PoC Adj Factor Scoring'!$E$5:$J$282,,MATCH(M$4,'C. PoC Adj Factor Scoring'!$E$3:$AH$3,0)-1),MATCH(M$2&\" Score\",'C. PoC Adj Factor Scoring'!$E$4:$J$4,0),TRUE)","v":1},{"$f":"VLOOKUP(OFFSET($B:$B,,MATCH(N$4,$B$4:$F$4,0)-1),OFFSET('C. PoC Adj Factor Scoring'!$E$5:$J$282,,MATCH(N$4,'C. PoC Adj Factor Scoring'!$E$3:$AH$3,0)-1),MATCH(N$2&\" Score\",'C. PoC Adj Factor Scoring'!$E$4:$J$4,0),TRUE)","v":1},{"$f":"VLOOKUP(OFFSET($B:$B,,MATCH(O$4,$B$4:$F$4,0)-1),OFFSET('C. PoC Adj Factor Scoring'!$E$5:$J$282,,MATCH(O$4,'C. PoC Adj Factor Scoring'!$E$3:$AH$3,0)-1),MATCH(O$2&\" Score\",'C. PoC Adj Factor Scoring'!$E$4:$J$4,0),TRUE)","v":1},{"$f":"VLOOKUP(OFFSET($B:$B,,MATCH(P$4,$B$4:$F$4,0)-1),OFFSET('C. PoC Adj Factor Scoring'!$E$5:$J$282,,MATCH(P$4,'C. PoC Adj Factor Scoring'!$E$3:$AH$3,0)-1),MATCH(P$2&\" Score\",'C. PoC Adj Factor Scoring'!$E$4:$J$4,0),TRUE)","v":1},{"$f":"VLOOKUP(OFFSET($B:$B,,MATCH(Q$4,$B$4:$F$4,0)-1),OFFSET('C. PoC Adj Factor Scoring'!$E$5:$J$282,,MATCH(Q$4,'C. PoC Adj Factor Scoring'!$E$3:$AH$3,0)-1),MATCH(Q$2&\" Score\",'C. PoC Adj Factor Scoring'!$E$4:$J$4,0),TRUE)","v":1},{"$f":"VLOOKUP(OFFSET($B:$B,,MATCH(R$4,$B$4:$F$4,0)-1),OFFSET('C. PoC Adj Factor Scoring'!$E$5:$J$282,,MATCH(R$4,'C. PoC Adj Factor Scoring'!$E$3:$AH$3,0)-1),MATCH(R$2&\" Score\",'C. PoC Adj Factor Scoring'!$E$4:$J$4,0),TRUE)","v":1},{"$f":"VLOOKUP(OFFSET($B:$B,,MATCH(S$4,$B$4:$F$4,0)-1),OFFSET('C. PoC Adj Factor Scoring'!$E$5:$J$282,,MATCH(S$4,'C. PoC Adj Factor Scoring'!$E$3:$AH$3,0)-1),MATCH(S$2&\" Score\",'C. PoC Adj Factor Scoring'!$E$4:$J$4,0),TRUE)","v":1},{"$f":"VLOOKUP(OFFSET($B:$B,,MATCH(T$4,$B$4:$F$4,0)-1),OFFSET('C. PoC Adj Factor Scoring'!$E$5:$J$282,,MATCH(T$4,'C. PoC Adj Factor Scoring'!$E$3:$AH$3,0)-1),MATCH(T$2&\" Score\",'C. PoC Adj Factor Scoring'!$E$4:$J$4,0),TRUE)","v":1},{"$f":"VLOOKUP(OFFSET($B:$B,,MATCH(U$4,$B$4:$F$4,0)-1),OFFSET('C. PoC Adj Factor Scoring'!$E$5:$J$282,,MATCH(U$4,'C. PoC Adj Factor Scoring'!$E$3:$AH$3,0)-1),MATCH(U$2&\" Score\",'C. PoC Adj Factor Scoring'!$E$4:$J$4,0),TRUE)","v":1},{"$f":"VLOOKUP(OFFSET($B:$B,,MATCH(V$4,$B$4:$F$4,0)-1),OFFSET('C. PoC Adj Factor Scoring'!$E$5:$J$282,,MATCH(V$4,'C. PoC Adj Factor Scoring'!$E$3:$AH$3,0)-1),MATCH(V$2&\" Score\",'C. PoC Adj Factor Scoring'!$E$4:$J$4,0),TRUE)","v":1},{"$f":"VLOOKUP(OFFSET($B:$B,,MATCH(W$4,$B$4:$F$4,0)-1),OFFSET('C. PoC Adj Factor Scoring'!$E$5:$J$282,,MATCH(W$4,'C. PoC Adj Factor Scoring'!$E$3:$AH$3,0)-1),MATCH(W$2&\" Score\",'C. PoC Adj Factor Scoring'!$E$4:$J$4,0),TRUE)","v":1},{"$f":"VLOOKUP(OFFSET($B:$B,,MATCH(X$4,$B$4:$F$4,0)-1),OFFSET('C. PoC Adj Factor Scoring'!$E$5:$J$282,,MATCH(X$4,'C. PoC Adj Factor Scoring'!$E$3:$AH$3,0)-1),MATCH(X$2&\" Score\",'C. PoC Adj Factor Scoring'!$E$4:$J$4,0),TRUE)","v":1},{"$f":"VLOOKUP(OFFSET($B:$B,,MATCH(Y$4,$B$4:$F$4,0)-1),OFFSET('C. PoC Adj Factor Scoring'!$E$5:$J$282,,MATCH(Y$4,'C. PoC Adj Factor Scoring'!$E$3:$AH$3,0)-1),MATCH(Y$2&\" Score\",'C. PoC Adj Factor Scoring'!$E$4:$J$4,0),TRUE)","v":1},{"$f":"VLOOKUP(OFFSET($B:$B,,MATCH(Z$4,$B$4:$F$4,0)-1),OFFSET('C. PoC Adj Factor Scoring'!$E$5:$J$282,,MATCH(Z$4,'C. PoC Adj Factor Scoring'!$E$3:$AH$3,0)-1),MATCH(Z$2&\" Score\",'C. PoC Adj Factor Scoring'!$E$4:$J$4,0),TRUE)","v":1},{"$f":"VLOOKUP(OFFSET($B:$B,,MATCH(AA$4,$B$4:$F$4,0)-1),OFFSET('C. PoC Adj Factor Scoring'!$E$5:$J$282,,MATCH(AA$4,'C. PoC Adj Factor Scoring'!$E$3:$AH$3,0)-1),MATCH(AA$2&\" Score\",'C. PoC Adj Factor Scoring'!$E$4:$J$4,0),TRUE)","v":3},{"$f":"VLOOKUP(OFFSET($B:$B,,MATCH(AB$4,$B$4:$F$4,0)-1),OFFSET('C. PoC Adj Factor Scoring'!$E$5:$J$282,,MATCH(AB$4,'C. PoC Adj Factor Scoring'!$E$3:$AH$3,0)-1),MATCH(AB$2&\" Score\",'C. PoC Adj Factor Scoring'!$E$4:$J$4,0),TRUE)","v":1},{"$f":"VLOOKUP(OFFSET($B:$B,,MATCH(AC$4,$B$4:$F$4,0)-1),OFFSET('C. PoC Adj Factor Scoring'!$E$5:$J$282,,MATCH(AC$4,'C. PoC Adj Factor Scoring'!$E$3:$AH$3,0)-1),MATCH(AC$2&\" Score\",'C. PoC Adj Factor Scoring'!$E$4:$J$4,0),TRUE)","v":1},{"$f":"VLOOKUP(OFFSET($B:$B,,MATCH(AD$4,$B$4:$F$4,0)-1),OFFSET('C. PoC Adj Factor Scoring'!$E$5:$J$282,,MATCH(AD$4,'C. PoC Adj Factor Scoring'!$E$3:$AH$3,0)-1),MATCH(AD$2&\" Score\",'C. PoC Adj Factor Scoring'!$E$4:$J$4,0),TRUE)","v":1},{"$f":"VLOOKUP(OFFSET($B:$B,,MATCH(AE$4,$B$4:$F$4,0)-1),OFFSET('C. PoC Adj Factor Scoring'!$E$5:$J$282,,MATCH(AE$4,'C. PoC Adj Factor Scoring'!$E$3:$AH$3,0)-1),MATCH(AE$2&\" Score\",'C. PoC Adj Factor Scoring'!$E$4:$J$4,0),TRUE)","v":1}]
[{"$f":"'A. Population Info'!A138","v":1000340819},{"$f":"'A. Population Info'!L138","v":"OIL"},{"$f":"'A. Population Info'!M138","v":0},{"$f":"'A. Population Info'!N138","v":0},{"$f":"'A. Population Info'!O138","v":0},{"$f":"'A. Population Info'!P138","v":0},{"$f":"VLOOKUP(OFFSET($B:$B,,MATCH(G$4,$B$4:$F$4,0)-1),OFFSET('C. PoC Adj Factor Scoring'!$E$5:$J$282,,MATCH(G$4,'C. PoC Adj Factor Scoring'!$E$3:$AH$3,0)-1),MATCH(G$2&\" Score\",'C. PoC Adj Factor Scoring'!$E$4:$J$4,0),TRUE)","v":4},{"$f":"VLOOKUP(OFFSET($B:$B,,MATCH(H$4,$B$4:$F$4,0)-1),OFFSET('C. PoC Adj Factor Scoring'!$E$5:$J$282,,MATCH(H$4,'C. PoC Adj Factor Scoring'!$E$3:$AH$3,0)-1),MATCH(H$2&\" Score\",'C. PoC Adj Factor Scoring'!$E$4:$J$4,0),TRUE)","v":1},{"$f":"VLOOKUP(OFFSET($B:$B,,MATCH(I$4,$B$4:$F$4,0)-1),OFFSET('C. PoC Adj Factor Scoring'!$E$5:$J$282,,MATCH(I$4,'C. PoC Adj Factor Scoring'!$E$3:$AH$3,0)-1),MATCH(I$2&\" Score\",'C. PoC Adj Factor Scoring'!$E$4:$J$4,0),TRUE)","v":1},{"$f":"VLOOKUP(OFFSET($B:$B,,MATCH(J$4,$B$4:$F$4,0)-1),OFFSET('C. PoC Adj Factor Scoring'!$E$5:$J$282,,MATCH(J$4,'C. PoC Adj Factor Scoring'!$E$3:$AH$3,0)-1),MATCH(J$2&\" Score\",'C. PoC Adj Factor Scoring'!$E$4:$J$4,0),TRUE)","v":1},{"$f":"VLOOKUP(OFFSET($B:$B,,MATCH(K$4,$B$4:$F$4,0)-1),OFFSET('C. PoC Adj Factor Scoring'!$E$5:$J$282,,MATCH(K$4,'C. PoC Adj Factor Scoring'!$E$3:$AH$3,0)-1),MATCH(K$2&\" Score\",'C. PoC Adj Factor Scoring'!$E$4:$J$4,0),TRUE)","v":1},{"$f":"VLOOKUP(OFFSET($B:$B,,MATCH(L$4,$B$4:$F$4,0)-1),OFFSET('C. PoC Adj Factor Scoring'!$E$5:$J$282,,MATCH(L$4,'C. PoC Adj Factor Scoring'!$E$3:$AH$3,0)-1),MATCH(L$2&\" Score\",'C. PoC Adj Factor Scoring'!$E$4:$J$4,0),TRUE)","v":1},{"$f":"VLOOKUP(OFFSET($B:$B,,MATCH(M$4,$B$4:$F$4,0)-1),OFFSET('C. PoC Adj Factor Scoring'!$E$5:$J$282,,MATCH(M$4,'C. PoC Adj Factor Scoring'!$E$3:$AH$3,0)-1),MATCH(M$2&\" Score\",'C. PoC Adj Factor Scoring'!$E$4:$J$4,0),TRUE)","v":1},{"$f":"VLOOKUP(OFFSET($B:$B,,MATCH(N$4,$B$4:$F$4,0)-1),OFFSET('C. PoC Adj Factor Scoring'!$E$5:$J$282,,MATCH(N$4,'C. PoC Adj Factor Scoring'!$E$3:$AH$3,0)-1),MATCH(N$2&\" Score\",'C. PoC Adj Factor Scoring'!$E$4:$J$4,0),TRUE)","v":1},{"$f":"VLOOKUP(OFFSET($B:$B,,MATCH(O$4,$B$4:$F$4,0)-1),OFFSET('C. PoC Adj Factor Scoring'!$E$5:$J$282,,MATCH(O$4,'C. PoC Adj Factor Scoring'!$E$3:$AH$3,0)-1),MATCH(O$2&\" Score\",'C. PoC Adj Factor Scoring'!$E$4:$J$4,0),TRUE)","v":1},{"$f":"VLOOKUP(OFFSET($B:$B,,MATCH(P$4,$B$4:$F$4,0)-1),OFFSET('C. PoC Adj Factor Scoring'!$E$5:$J$282,,MATCH(P$4,'C. PoC Adj Factor Scoring'!$E$3:$AH$3,0)-1),MATCH(P$2&\" Score\",'C. PoC Adj Factor Scoring'!$E$4:$J$4,0),TRUE)","v":1},{"$f":"VLOOKUP(OFFSET($B:$B,,MATCH(Q$4,$B$4:$F$4,0)-1),OFFSET('C. PoC Adj Factor Scoring'!$E$5:$J$282,,MATCH(Q$4,'C. PoC Adj Factor Scoring'!$E$3:$AH$3,0)-1),MATCH(Q$2&\" Score\",'C. PoC Adj Factor Scoring'!$E$4:$J$4,0),TRUE)","v":1},{"$f":"VLOOKUP(OFFSET($B:$B,,MATCH(R$4,$B$4:$F$4,0)-1),OFFSET('C. PoC Adj Factor Scoring'!$E$5:$J$282,,MATCH(R$4,'C. PoC Adj Factor Scoring'!$E$3:$AH$3,0)-1),MATCH(R$2&\" Score\",'C. PoC Adj Factor Scoring'!$E$4:$J$4,0),TRUE)","v":1},{"$f":"VLOOKUP(OFFSET($B:$B,,MATCH(S$4,$B$4:$F$4,0)-1),OFFSET('C. PoC Adj Factor Scoring'!$E$5:$J$282,,MATCH(S$4,'C. PoC Adj Factor Scoring'!$E$3:$AH$3,0)-1),MATCH(S$2&\" Score\",'C. PoC Adj Factor Scoring'!$E$4:$J$4,0),TRUE)","v":1},{"$f":"VLOOKUP(OFFSET($B:$B,,MATCH(T$4,$B$4:$F$4,0)-1),OFFSET('C. PoC Adj Factor Scoring'!$E$5:$J$282,,MATCH(T$4,'C. PoC Adj Factor Scoring'!$E$3:$AH$3,0)-1),MATCH(T$2&\" Score\",'C. PoC Adj Factor Scoring'!$E$4:$J$4,0),TRUE)","v":1},{"$f":"VLOOKUP(OFFSET($B:$B,,MATCH(U$4,$B$4:$F$4,0)-1),OFFSET('C. PoC Adj Factor Scoring'!$E$5:$J$282,,MATCH(U$4,'C. PoC Adj Factor Scoring'!$E$3:$AH$3,0)-1),MATCH(U$2&\" Score\",'C. PoC Adj Factor Scoring'!$E$4:$J$4,0),TRUE)","v":1},{"$f":"VLOOKUP(OFFSET($B:$B,,MATCH(V$4,$B$4:$F$4,0)-1),OFFSET('C. PoC Adj Factor Scoring'!$E$5:$J$282,,MATCH(V$4,'C. PoC Adj Factor Scoring'!$E$3:$AH$3,0)-1),MATCH(V$2&\" Score\",'C. PoC Adj Factor Scoring'!$E$4:$J$4,0),TRUE)","v":1},{"$f":"VLOOKUP(OFFSET($B:$B,,MATCH(W$4,$B$4:$F$4,0)-1),OFFSET('C. PoC Adj Factor Scoring'!$E$5:$J$282,,MATCH(W$4,'C. PoC Adj Factor Scoring'!$E$3:$AH$3,0)-1),MATCH(W$2&\" Score\",'C. PoC Adj Factor Scoring'!$E$4:$J$4,0),TRUE)","v":1},{"$f":"VLOOKUP(OFFSET($B:$B,,MATCH(X$4,$B$4:$F$4,0)-1),OFFSET('C. PoC Adj Factor Scoring'!$E$5:$J$282,,MATCH(X$4,'C. PoC Adj Factor Scoring'!$E$3:$AH$3,0)-1),MATCH(X$2&\" Score\",'C. PoC Adj Factor Scoring'!$E$4:$J$4,0),TRUE)","v":1},{"$f":"VLOOKUP(OFFSET($B:$B,,MATCH(Y$4,$B$4:$F$4,0)-1),OFFSET('C. PoC Adj Factor Scoring'!$E$5:$J$282,,MATCH(Y$4,'C. PoC Adj Factor Scoring'!$E$3:$AH$3,0)-1),MATCH(Y$2&\" Score\",'C. PoC Adj Factor Scoring'!$E$4:$J$4,0),TRUE)","v":1},{"$f":"VLOOKUP(OFFSET($B:$B,,MATCH(Z$4,$B$4:$F$4,0)-1),OFFSET('C. PoC Adj Factor Scoring'!$E$5:$J$282,,MATCH(Z$4,'C. PoC Adj Factor Scoring'!$E$3:$AH$3,0)-1),MATCH(Z$2&\" Score\",'C. PoC Adj Factor Scoring'!$E$4:$J$4,0),TRUE)","v":1},{"$f":"VLOOKUP(OFFSET($B:$B,,MATCH(AA$4,$B$4:$F$4,0)-1),OFFSET('C. PoC Adj Factor Scoring'!$E$5:$J$282,,MATCH(AA$4,'C. PoC Adj Factor Scoring'!$E$3:$AH$3,0)-1),MATCH(AA$2&\" Score\",'C. PoC Adj Factor Scoring'!$E$4:$J$4,0),TRUE)","v":3},{"$f":"VLOOKUP(OFFSET($B:$B,,MATCH(AB$4,$B$4:$F$4,0)-1),OFFSET('C. PoC Adj Factor Scoring'!$E$5:$J$282,,MATCH(AB$4,'C. PoC Adj Factor Scoring'!$E$3:$AH$3,0)-1),MATCH(AB$2&\" Score\",'C. PoC Adj Factor Scoring'!$E$4:$J$4,0),TRUE)","v":1},{"$f":"VLOOKUP(OFFSET($B:$B,,MATCH(AC$4,$B$4:$F$4,0)-1),OFFSET('C. PoC Adj Factor Scoring'!$E$5:$J$282,,MATCH(AC$4,'C. PoC Adj Factor Scoring'!$E$3:$AH$3,0)-1),MATCH(AC$2&\" Score\",'C. PoC Adj Factor Scoring'!$E$4:$J$4,0),TRUE)","v":1},{"$f":"VLOOKUP(OFFSET($B:$B,,MATCH(AD$4,$B$4:$F$4,0)-1),OFFSET('C. PoC Adj Factor Scoring'!$E$5:$J$282,,MATCH(AD$4,'C. PoC Adj Factor Scoring'!$E$3:$AH$3,0)-1),MATCH(AD$2&\" Score\",'C. PoC Adj Factor Scoring'!$E$4:$J$4,0),TRUE)","v":1},{"$f":"VLOOKUP(OFFSET($B:$B,,MATCH(AE$4,$B$4:$F$4,0)-1),OFFSET('C. PoC Adj Factor Scoring'!$E$5:$J$282,,MATCH(AE$4,'C. PoC Adj Factor Scoring'!$E$3:$AH$3,0)-1),MATCH(AE$2&\" Score\",'C. PoC Adj Factor Scoring'!$E$4:$J$4,0),TRUE)","v":1}]
[{"$f":"'A. Population Info'!A139","v":1000340854},{"$f":"'A. Population Info'!L139","v":"OIL"},{"$f":"'A. Population Info'!M139","v":0},{"$f":"'A. Population Info'!N139","v":0},{"$f":"'A. Population Info'!O139","v":0},{"$f":"'A. Population Info'!P139","v":0},{"$f":"VLOOKUP(OFFSET($B:$B,,MATCH(G$4,$B$4:$F$4,0)-1),OFFSET('C. PoC Adj Factor Scoring'!$E$5:$J$282,,MATCH(G$4,'C. PoC Adj Factor Scoring'!$E$3:$AH$3,0)-1),MATCH(G$2&\" Score\",'C. PoC Adj Factor Scoring'!$E$4:$J$4,0),TRUE)","v":4},{"$f":"VLOOKUP(OFFSET($B:$B,,MATCH(H$4,$B$4:$F$4,0)-1),OFFSET('C. PoC Adj Factor Scoring'!$E$5:$J$282,,MATCH(H$4,'C. PoC Adj Factor Scoring'!$E$3:$AH$3,0)-1),MATCH(H$2&\" Score\",'C. PoC Adj Factor Scoring'!$E$4:$J$4,0),TRUE)","v":1},{"$f":"VLOOKUP(OFFSET($B:$B,,MATCH(I$4,$B$4:$F$4,0)-1),OFFSET('C. PoC Adj Factor Scoring'!$E$5:$J$282,,MATCH(I$4,'C. PoC Adj Factor Scoring'!$E$3:$AH$3,0)-1),MATCH(I$2&\" Score\",'C. PoC Adj Factor Scoring'!$E$4:$J$4,0),TRUE)","v":1},{"$f":"VLOOKUP(OFFSET($B:$B,,MATCH(J$4,$B$4:$F$4,0)-1),OFFSET('C. PoC Adj Factor Scoring'!$E$5:$J$282,,MATCH(J$4,'C. PoC Adj Factor Scoring'!$E$3:$AH$3,0)-1),MATCH(J$2&\" Score\",'C. PoC Adj Factor Scoring'!$E$4:$J$4,0),TRUE)","v":1},{"$f":"VLOOKUP(OFFSET($B:$B,,MATCH(K$4,$B$4:$F$4,0)-1),OFFSET('C. PoC Adj Factor Scoring'!$E$5:$J$282,,MATCH(K$4,'C. PoC Adj Factor Scoring'!$E$3:$AH$3,0)-1),MATCH(K$2&\" Score\",'C. PoC Adj Factor Scoring'!$E$4:$J$4,0),TRUE)","v":1},{"$f":"VLOOKUP(OFFSET($B:$B,,MATCH(L$4,$B$4:$F$4,0)-1),OFFSET('C. PoC Adj Factor Scoring'!$E$5:$J$282,,MATCH(L$4,'C. PoC Adj Factor Scoring'!$E$3:$AH$3,0)-1),MATCH(L$2&\" Score\",'C. PoC Adj Factor Scoring'!$E$4:$J$4,0),TRUE)","v":1},{"$f":"VLOOKUP(OFFSET($B:$B,,MATCH(M$4,$B$4:$F$4,0)-1),OFFSET('C. PoC Adj Factor Scoring'!$E$5:$J$282,,MATCH(M$4,'C. PoC Adj Factor Scoring'!$E$3:$AH$3,0)-1),MATCH(M$2&\" Score\",'C. PoC Adj Factor Scoring'!$E$4:$J$4,0),TRUE)","v":1},{"$f":"VLOOKUP(OFFSET($B:$B,,MATCH(N$4,$B$4:$F$4,0)-1),OFFSET('C. PoC Adj Factor Scoring'!$E$5:$J$282,,MATCH(N$4,'C. PoC Adj Factor Scoring'!$E$3:$AH$3,0)-1),MATCH(N$2&\" Score\",'C. PoC Adj Factor Scoring'!$E$4:$J$4,0),TRUE)","v":1},{"$f":"VLOOKUP(OFFSET($B:$B,,MATCH(O$4,$B$4:$F$4,0)-1),OFFSET('C. PoC Adj Factor Scoring'!$E$5:$J$282,,MATCH(O$4,'C. PoC Adj Factor Scoring'!$E$3:$AH$3,0)-1),MATCH(O$2&\" Score\",'C. PoC Adj Factor Scoring'!$E$4:$J$4,0),TRUE)","v":1},{"$f":"VLOOKUP(OFFSET($B:$B,,MATCH(P$4,$B$4:$F$4,0)-1),OFFSET('C. PoC Adj Factor Scoring'!$E$5:$J$282,,MATCH(P$4,'C. PoC Adj Factor Scoring'!$E$3:$AH$3,0)-1),MATCH(P$2&\" Score\",'C. PoC Adj Factor Scoring'!$E$4:$J$4,0),TRUE)","v":1},{"$f":"VLOOKUP(OFFSET($B:$B,,MATCH(Q$4,$B$4:$F$4,0)-1),OFFSET('C. PoC Adj Factor Scoring'!$E$5:$J$282,,MATCH(Q$4,'C. PoC Adj Factor Scoring'!$E$3:$AH$3,0)-1),MATCH(Q$2&\" Score\",'C. PoC Adj Factor Scoring'!$E$4:$J$4,0),TRUE)","v":1},{"$f":"VLOOKUP(OFFSET($B:$B,,MATCH(R$4,$B$4:$F$4,0)-1),OFFSET('C. PoC Adj Factor Scoring'!$E$5:$J$282,,MATCH(R$4,'C. PoC Adj Factor Scoring'!$E$3:$AH$3,0)-1),MATCH(R$2&\" Score\",'C. PoC Adj Factor Scoring'!$E$4:$J$4,0),TRUE)","v":1},{"$f":"VLOOKUP(OFFSET($B:$B,,MATCH(S$4,$B$4:$F$4,0)-1),OFFSET('C. PoC Adj Factor Scoring'!$E$5:$J$282,,MATCH(S$4,'C. PoC Adj Factor Scoring'!$E$3:$AH$3,0)-1),MATCH(S$2&\" Score\",'C. PoC Adj Factor Scoring'!$E$4:$J$4,0),TRUE)","v":1},{"$f":"VLOOKUP(OFFSET($B:$B,,MATCH(T$4,$B$4:$F$4,0)-1),OFFSET('C. PoC Adj Factor Scoring'!$E$5:$J$282,,MATCH(T$4,'C. PoC Adj Factor Scoring'!$E$3:$AH$3,0)-1),MATCH(T$2&\" Score\",'C. PoC Adj Factor Scoring'!$E$4:$J$4,0),TRUE)","v":1},{"$f":"VLOOKUP(OFFSET($B:$B,,MATCH(U$4,$B$4:$F$4,0)-1),OFFSET('C. PoC Adj Factor Scoring'!$E$5:$J$282,,MATCH(U$4,'C. PoC Adj Factor Scoring'!$E$3:$AH$3,0)-1),MATCH(U$2&\" Score\",'C. PoC Adj Factor Scoring'!$E$4:$J$4,0),TRUE)","v":1},{"$f":"VLOOKUP(OFFSET($B:$B,,MATCH(V$4,$B$4:$F$4,0)-1),OFFSET('C. PoC Adj Factor Scoring'!$E$5:$J$282,,MATCH(V$4,'C. PoC Adj Factor Scoring'!$E$3:$AH$3,0)-1),MATCH(V$2&\" Score\",'C. PoC Adj Factor Scoring'!$E$4:$J$4,0),TRUE)","v":1},{"$f":"VLOOKUP(OFFSET($B:$B,,MATCH(W$4,$B$4:$F$4,0)-1),OFFSET('C. PoC Adj Factor Scoring'!$E$5:$J$282,,MATCH(W$4,'C. PoC Adj Factor Scoring'!$E$3:$AH$3,0)-1),MATCH(W$2&\" Score\",'C. PoC Adj Factor Scoring'!$E$4:$J$4,0),TRUE)","v":1},{"$f":"VLOOKUP(OFFSET($B:$B,,MATCH(X$4,$B$4:$F$4,0)-1),OFFSET('C. PoC Adj Factor Scoring'!$E$5:$J$282,,MATCH(X$4,'C. PoC Adj Factor Scoring'!$E$3:$AH$3,0)-1),MATCH(X$2&\" Score\",'C. PoC Adj Factor Scoring'!$E$4:$J$4,0),TRUE)","v":1},{"$f":"VLOOKUP(OFFSET($B:$B,,MATCH(Y$4,$B$4:$F$4,0)-1),OFFSET('C. PoC Adj Factor Scoring'!$E$5:$J$282,,MATCH(Y$4,'C. PoC Adj Factor Scoring'!$E$3:$AH$3,0)-1),MATCH(Y$2&\" Score\",'C. PoC Adj Factor Scoring'!$E$4:$J$4,0),TRUE)","v":1},{"$f":"VLOOKUP(OFFSET($B:$B,,MATCH(Z$4,$B$4:$F$4,0)-1),OFFSET('C. PoC Adj Factor Scoring'!$E$5:$J$282,,MATCH(Z$4,'C. PoC Adj Factor Scoring'!$E$3:$AH$3,0)-1),MATCH(Z$2&\" Score\",'C. PoC Adj Factor Scoring'!$E$4:$J$4,0),TRUE)","v":1},{"$f":"VLOOKUP(OFFSET($B:$B,,MATCH(AA$4,$B$4:$F$4,0)-1),OFFSET('C. PoC Adj Factor Scoring'!$E$5:$J$282,,MATCH(AA$4,'C. PoC Adj Factor Scoring'!$E$3:$AH$3,0)-1),MATCH(AA$2&\" Score\",'C. PoC Adj Factor Scoring'!$E$4:$J$4,0),TRUE)","v":3},{"$f":"VLOOKUP(OFFSET($B:$B,,MATCH(AB$4,$B$4:$F$4,0)-1),OFFSET('C. PoC Adj Factor Scoring'!$E$5:$J$282,,MATCH(AB$4,'C. PoC Adj Factor Scoring'!$E$3:$AH$3,0)-1),MATCH(AB$2&\" Score\",'C. PoC Adj Factor Scoring'!$E$4:$J$4,0),TRUE)","v":1},{"$f":"VLOOKUP(OFFSET($B:$B,,MATCH(AC$4,$B$4:$F$4,0)-1),OFFSET('C. PoC Adj Factor Scoring'!$E$5:$J$282,,MATCH(AC$4,'C. PoC Adj Factor Scoring'!$E$3:$AH$3,0)-1),MATCH(AC$2&\" Score\",'C. PoC Adj Factor Scoring'!$E$4:$J$4,0),TRUE)","v":1},{"$f":"VLOOKUP(OFFSET($B:$B,,MATCH(AD$4,$B$4:$F$4,0)-1),OFFSET('C. PoC Adj Factor Scoring'!$E$5:$J$282,,MATCH(AD$4,'C. PoC Adj Factor Scoring'!$E$3:$AH$3,0)-1),MATCH(AD$2&\" Score\",'C. PoC Adj Factor Scoring'!$E$4:$J$4,0),TRUE)","v":1},{"$f":"VLOOKUP(OFFSET($B:$B,,MATCH(AE$4,$B$4:$F$4,0)-1),OFFSET('C. PoC Adj Factor Scoring'!$E$5:$J$282,,MATCH(AE$4,'C. PoC Adj Factor Scoring'!$E$3:$AH$3,0)-1),MATCH(AE$2&\" Score\",'C. PoC Adj Factor Scoring'!$E$4:$J$4,0),TRUE)","v":1}]
[{"$f":"'A. Population Info'!A140","v":1000340887},{"$f":"'A. Population Info'!L140","v":"OIL"},{"$f":"'A. Population Info'!M140","v":0},{"$f":"'A. Population Info'!N140","v":0},{"$f":"'A. Population Info'!O140","v":0},{"$f":"'A. Population Info'!P140","v":0},{"$f":"VLOOKUP(OFFSET($B:$B,,MATCH(G$4,$B$4:$F$4,0)-1),OFFSET('C. PoC Adj Factor Scoring'!$E$5:$J$282,,MATCH(G$4,'C. PoC Adj Factor Scoring'!$E$3:$AH$3,0)-1),MATCH(G$2&\" Score\",'C. PoC Adj Factor Scoring'!$E$4:$J$4,0),TRUE)","v":4},{"$f":"VLOOKUP(OFFSET($B:$B,,MATCH(H$4,$B$4:$F$4,0)-1),OFFSET('C. PoC Adj Factor Scoring'!$E$5:$J$282,,MATCH(H$4,'C. PoC Adj Factor Scoring'!$E$3:$AH$3,0)-1),MATCH(H$2&\" Score\",'C. PoC Adj Factor Scoring'!$E$4:$J$4,0),TRUE)","v":1},{"$f":"VLOOKUP(OFFSET($B:$B,,MATCH(I$4,$B$4:$F$4,0)-1),OFFSET('C. PoC Adj Factor Scoring'!$E$5:$J$282,,MATCH(I$4,'C. PoC Adj Factor Scoring'!$E$3:$AH$3,0)-1),MATCH(I$2&\" Score\",'C. PoC Adj Factor Scoring'!$E$4:$J$4,0),TRUE)","v":1},{"$f":"VLOOKUP(OFFSET($B:$B,,MATCH(J$4,$B$4:$F$4,0)-1),OFFSET('C. PoC Adj Factor Scoring'!$E$5:$J$282,,MATCH(J$4,'C. PoC Adj Factor Scoring'!$E$3:$AH$3,0)-1),MATCH(J$2&\" Score\",'C. PoC Adj Factor Scoring'!$E$4:$J$4,0),TRUE)","v":1},{"$f":"VLOOKUP(OFFSET($B:$B,,MATCH(K$4,$B$4:$F$4,0)-1),OFFSET('C. PoC Adj Factor Scoring'!$E$5:$J$282,,MATCH(K$4,'C. PoC Adj Factor Scoring'!$E$3:$AH$3,0)-1),MATCH(K$2&\" Score\",'C. PoC Adj Factor Scoring'!$E$4:$J$4,0),TRUE)","v":1},{"$f":"VLOOKUP(OFFSET($B:$B,,MATCH(L$4,$B$4:$F$4,0)-1),OFFSET('C. PoC Adj Factor Scoring'!$E$5:$J$282,,MATCH(L$4,'C. PoC Adj Factor Scoring'!$E$3:$AH$3,0)-1),MATCH(L$2&\" Score\",'C. PoC Adj Factor Scoring'!$E$4:$J$4,0),TRUE)","v":1},{"$f":"VLOOKUP(OFFSET($B:$B,,MATCH(M$4,$B$4:$F$4,0)-1),OFFSET('C. PoC Adj Factor Scoring'!$E$5:$J$282,,MATCH(M$4,'C. PoC Adj Factor Scoring'!$E$3:$AH$3,0)-1),MATCH(M$2&\" Score\",'C. PoC Adj Factor Scoring'!$E$4:$J$4,0),TRUE)","v":1},{"$f":"VLOOKUP(OFFSET($B:$B,,MATCH(N$4,$B$4:$F$4,0)-1),OFFSET('C. PoC Adj Factor Scoring'!$E$5:$J$282,,MATCH(N$4,'C. PoC Adj Factor Scoring'!$E$3:$AH$3,0)-1),MATCH(N$2&\" Score\",'C. PoC Adj Factor Scoring'!$E$4:$J$4,0),TRUE)","v":1},{"$f":"VLOOKUP(OFFSET($B:$B,,MATCH(O$4,$B$4:$F$4,0)-1),OFFSET('C. PoC Adj Factor Scoring'!$E$5:$J$282,,MATCH(O$4,'C. PoC Adj Factor Scoring'!$E$3:$AH$3,0)-1),MATCH(O$2&\" Score\",'C. PoC Adj Factor Scoring'!$E$4:$J$4,0),TRUE)","v":1},{"$f":"VLOOKUP(OFFSET($B:$B,,MATCH(P$4,$B$4:$F$4,0)-1),OFFSET('C. PoC Adj Factor Scoring'!$E$5:$J$282,,MATCH(P$4,'C. PoC Adj Factor Scoring'!$E$3:$AH$3,0)-1),MATCH(P$2&\" Score\",'C. PoC Adj Factor Scoring'!$E$4:$J$4,0),TRUE)","v":1},{"$f":"VLOOKUP(OFFSET($B:$B,,MATCH(Q$4,$B$4:$F$4,0)-1),OFFSET('C. PoC Adj Factor Scoring'!$E$5:$J$282,,MATCH(Q$4,'C. PoC Adj Factor Scoring'!$E$3:$AH$3,0)-1),MATCH(Q$2&\" Score\",'C. PoC Adj Factor Scoring'!$E$4:$J$4,0),TRUE)","v":1},{"$f":"VLOOKUP(OFFSET($B:$B,,MATCH(R$4,$B$4:$F$4,0)-1),OFFSET('C. PoC Adj Factor Scoring'!$E$5:$J$282,,MATCH(R$4,'C. PoC Adj Factor Scoring'!$E$3:$AH$3,0)-1),MATCH(R$2&\" Score\",'C. PoC Adj Factor Scoring'!$E$4:$J$4,0),TRUE)","v":1},{"$f":"VLOOKUP(OFFSET($B:$B,,MATCH(S$4,$B$4:$F$4,0)-1),OFFSET('C. PoC Adj Factor Scoring'!$E$5:$J$282,,MATCH(S$4,'C. PoC Adj Factor Scoring'!$E$3:$AH$3,0)-1),MATCH(S$2&\" Score\",'C. PoC Adj Factor Scoring'!$E$4:$J$4,0),TRUE)","v":1},{"$f":"VLOOKUP(OFFSET($B:$B,,MATCH(T$4,$B$4:$F$4,0)-1),OFFSET('C. PoC Adj Factor Scoring'!$E$5:$J$282,,MATCH(T$4,'C. PoC Adj Factor Scoring'!$E$3:$AH$3,0)-1),MATCH(T$2&\" Score\",'C. PoC Adj Factor Scoring'!$E$4:$J$4,0),TRUE)","v":1},{"$f":"VLOOKUP(OFFSET($B:$B,,MATCH(U$4,$B$4:$F$4,0)-1),OFFSET('C. PoC Adj Factor Scoring'!$E$5:$J$282,,MATCH(U$4,'C. PoC Adj Factor Scoring'!$E$3:$AH$3,0)-1),MATCH(U$2&\" Score\",'C. PoC Adj Factor Scoring'!$E$4:$J$4,0),TRUE)","v":1},{"$f":"VLOOKUP(OFFSET($B:$B,,MATCH(V$4,$B$4:$F$4,0)-1),OFFSET('C. PoC Adj Factor Scoring'!$E$5:$J$282,,MATCH(V$4,'C. PoC Adj Factor Scoring'!$E$3:$AH$3,0)-1),MATCH(V$2&\" Score\",'C. PoC Adj Factor Scoring'!$E$4:$J$4,0),TRUE)","v":1},{"$f":"VLOOKUP(OFFSET($B:$B,,MATCH(W$4,$B$4:$F$4,0)-1),OFFSET('C. PoC Adj Factor Scoring'!$E$5:$J$282,,MATCH(W$4,'C. PoC Adj Factor Scoring'!$E$3:$AH$3,0)-1),MATCH(W$2&\" Score\",'C. PoC Adj Factor Scoring'!$E$4:$J$4,0),TRUE)","v":1},{"$f":"VLOOKUP(OFFSET($B:$B,,MATCH(X$4,$B$4:$F$4,0)-1),OFFSET('C. PoC Adj Factor Scoring'!$E$5:$J$282,,MATCH(X$4,'C. PoC Adj Factor Scoring'!$E$3:$AH$3,0)-1),MATCH(X$2&\" Score\",'C. PoC Adj Factor Scoring'!$E$4:$J$4,0),TRUE)","v":1},{"$f":"VLOOKUP(OFFSET($B:$B,,MATCH(Y$4,$B$4:$F$4,0)-1),OFFSET('C. PoC Adj Factor Scoring'!$E$5:$J$282,,MATCH(Y$4,'C. PoC Adj Factor Scoring'!$E$3:$AH$3,0)-1),MATCH(Y$2&\" Score\",'C. PoC Adj Factor Scoring'!$E$4:$J$4,0),TRUE)","v":1},{"$f":"VLOOKUP(OFFSET($B:$B,,MATCH(Z$4,$B$4:$F$4,0)-1),OFFSET('C. PoC Adj Factor Scoring'!$E$5:$J$282,,MATCH(Z$4,'C. PoC Adj Factor Scoring'!$E$3:$AH$3,0)-1),MATCH(Z$2&\" Score\",'C. PoC Adj Factor Scoring'!$E$4:$J$4,0),TRUE)","v":1},{"$f":"VLOOKUP(OFFSET($B:$B,,MATCH(AA$4,$B$4:$F$4,0)-1),OFFSET('C. PoC Adj Factor Scoring'!$E$5:$J$282,,MATCH(AA$4,'C. PoC Adj Factor Scoring'!$E$3:$AH$3,0)-1),MATCH(AA$2&\" Score\",'C. PoC Adj Factor Scoring'!$E$4:$J$4,0),TRUE)","v":3},{"$f":"VLOOKUP(OFFSET($B:$B,,MATCH(AB$4,$B$4:$F$4,0)-1),OFFSET('C. PoC Adj Factor Scoring'!$E$5:$J$282,,MATCH(AB$4,'C. PoC Adj Factor Scoring'!$E$3:$AH$3,0)-1),MATCH(AB$2&\" Score\",'C. PoC Adj Factor Scoring'!$E$4:$J$4,0),TRUE)","v":1},{"$f":"VLOOKUP(OFFSET($B:$B,,MATCH(AC$4,$B$4:$F$4,0)-1),OFFSET('C. PoC Adj Factor Scoring'!$E$5:$J$282,,MATCH(AC$4,'C. PoC Adj Factor Scoring'!$E$3:$AH$3,0)-1),MATCH(AC$2&\" Score\",'C. PoC Adj Factor Scoring'!$E$4:$J$4,0),TRUE)","v":1},{"$f":"VLOOKUP(OFFSET($B:$B,,MATCH(AD$4,$B$4:$F$4,0)-1),OFFSET('C. PoC Adj Factor Scoring'!$E$5:$J$282,,MATCH(AD$4,'C. PoC Adj Factor Scoring'!$E$3:$AH$3,0)-1),MATCH(AD$2&\" Score\",'C. PoC Adj Factor Scoring'!$E$4:$J$4,0),TRUE)","v":1},{"$f":"VLOOKUP(OFFSET($B:$B,,MATCH(AE$4,$B$4:$F$4,0)-1),OFFSET('C. PoC Adj Factor Scoring'!$E$5:$J$282,,MATCH(AE$4,'C. PoC Adj Factor Scoring'!$E$3:$AH$3,0)-1),MATCH(AE$2&\" Score\",'C. PoC Adj Factor Scoring'!$E$4:$J$4,0),TRUE)","v":1}]
[{"$f":"'A. Population Info'!A141","v":1000340972},{"$f":"'A. Population Info'!L141","v":"OIL"},{"$f":"'A. Population Info'!M141","v":0},{"$f":"'A. Population Info'!N141","v":0},{"$f":"'A. Population Info'!O141","v":0},{"$f":"'A. Population Info'!P141","v":0},{"$f":"VLOOKUP(OFFSET($B:$B,,MATCH(G$4,$B$4:$F$4,0)-1),OFFSET('C. PoC Adj Factor Scoring'!$E$5:$J$282,,MATCH(G$4,'C. PoC Adj Factor Scoring'!$E$3:$AH$3,0)-1),MATCH(G$2&\" Score\",'C. PoC Adj Factor Scoring'!$E$4:$J$4,0),TRUE)","v":4},{"$f":"VLOOKUP(OFFSET($B:$B,,MATCH(H$4,$B$4:$F$4,0)-1),OFFSET('C. PoC Adj Factor Scoring'!$E$5:$J$282,,MATCH(H$4,'C. PoC Adj Factor Scoring'!$E$3:$AH$3,0)-1),MATCH(H$2&\" Score\",'C. PoC Adj Factor Scoring'!$E$4:$J$4,0),TRUE)","v":1},{"$f":"VLOOKUP(OFFSET($B:$B,,MATCH(I$4,$B$4:$F$4,0)-1),OFFSET('C. PoC Adj Factor Scoring'!$E$5:$J$282,,MATCH(I$4,'C. PoC Adj Factor Scoring'!$E$3:$AH$3,0)-1),MATCH(I$2&\" Score\",'C. PoC Adj Factor Scoring'!$E$4:$J$4,0),TRUE)","v":1},{"$f":"VLOOKUP(OFFSET($B:$B,,MATCH(J$4,$B$4:$F$4,0)-1),OFFSET('C. PoC Adj Factor Scoring'!$E$5:$J$282,,MATCH(J$4,'C. PoC Adj Factor Scoring'!$E$3:$AH$3,0)-1),MATCH(J$2&\" Score\",'C. PoC Adj Factor Scoring'!$E$4:$J$4,0),TRUE)","v":1},{"$f":"VLOOKUP(OFFSET($B:$B,,MATCH(K$4,$B$4:$F$4,0)-1),OFFSET('C. PoC Adj Factor Scoring'!$E$5:$J$282,,MATCH(K$4,'C. PoC Adj Factor Scoring'!$E$3:$AH$3,0)-1),MATCH(K$2&\" Score\",'C. PoC Adj Factor Scoring'!$E$4:$J$4,0),TRUE)","v":1},{"$f":"VLOOKUP(OFFSET($B:$B,,MATCH(L$4,$B$4:$F$4,0)-1),OFFSET('C. PoC Adj Factor Scoring'!$E$5:$J$282,,MATCH(L$4,'C. PoC Adj Factor Scoring'!$E$3:$AH$3,0)-1),MATCH(L$2&\" Score\",'C. PoC Adj Factor Scoring'!$E$4:$J$4,0),TRUE)","v":1},{"$f":"VLOOKUP(OFFSET($B:$B,,MATCH(M$4,$B$4:$F$4,0)-1),OFFSET('C. PoC Adj Factor Scoring'!$E$5:$J$282,,MATCH(M$4,'C. PoC Adj Factor Scoring'!$E$3:$AH$3,0)-1),MATCH(M$2&\" Score\",'C. PoC Adj Factor Scoring'!$E$4:$J$4,0),TRUE)","v":1},{"$f":"VLOOKUP(OFFSET($B:$B,,MATCH(N$4,$B$4:$F$4,0)-1),OFFSET('C. PoC Adj Factor Scoring'!$E$5:$J$282,,MATCH(N$4,'C. PoC Adj Factor Scoring'!$E$3:$AH$3,0)-1),MATCH(N$2&\" Score\",'C. PoC Adj Factor Scoring'!$E$4:$J$4,0),TRUE)","v":1},{"$f":"VLOOKUP(OFFSET($B:$B,,MATCH(O$4,$B$4:$F$4,0)-1),OFFSET('C. PoC Adj Factor Scoring'!$E$5:$J$282,,MATCH(O$4,'C. PoC Adj Factor Scoring'!$E$3:$AH$3,0)-1),MATCH(O$2&\" Score\",'C. PoC Adj Factor Scoring'!$E$4:$J$4,0),TRUE)","v":1},{"$f":"VLOOKUP(OFFSET($B:$B,,MATCH(P$4,$B$4:$F$4,0)-1),OFFSET('C. PoC Adj Factor Scoring'!$E$5:$J$282,,MATCH(P$4,'C. PoC Adj Factor Scoring'!$E$3:$AH$3,0)-1),MATCH(P$2&\" Score\",'C. PoC Adj Factor Scoring'!$E$4:$J$4,0),TRUE)","v":1},{"$f":"VLOOKUP(OFFSET($B:$B,,MATCH(Q$4,$B$4:$F$4,0)-1),OFFSET('C. PoC Adj Factor Scoring'!$E$5:$J$282,,MATCH(Q$4,'C. PoC Adj Factor Scoring'!$E$3:$AH$3,0)-1),MATCH(Q$2&\" Score\",'C. PoC Adj Factor Scoring'!$E$4:$J$4,0),TRUE)","v":1},{"$f":"VLOOKUP(OFFSET($B:$B,,MATCH(R$4,$B$4:$F$4,0)-1),OFFSET('C. PoC Adj Factor Scoring'!$E$5:$J$282,,MATCH(R$4,'C. PoC Adj Factor Scoring'!$E$3:$AH$3,0)-1),MATCH(R$2&\" Score\",'C. PoC Adj Factor Scoring'!$E$4:$J$4,0),TRUE)","v":1},{"$f":"VLOOKUP(OFFSET($B:$B,,MATCH(S$4,$B$4:$F$4,0)-1),OFFSET('C. PoC Adj Factor Scoring'!$E$5:$J$282,,MATCH(S$4,'C. PoC Adj Factor Scoring'!$E$3:$AH$3,0)-1),MATCH(S$2&\" Score\",'C. PoC Adj Factor Scoring'!$E$4:$J$4,0),TRUE)","v":1},{"$f":"VLOOKUP(OFFSET($B:$B,,MATCH(T$4,$B$4:$F$4,0)-1),OFFSET('C. PoC Adj Factor Scoring'!$E$5:$J$282,,MATCH(T$4,'C. PoC Adj Factor Scoring'!$E$3:$AH$3,0)-1),MATCH(T$2&\" Score\",'C. PoC Adj Factor Scoring'!$E$4:$J$4,0),TRUE)","v":1},{"$f":"VLOOKUP(OFFSET($B:$B,,MATCH(U$4,$B$4:$F$4,0)-1),OFFSET('C. PoC Adj Factor Scoring'!$E$5:$J$282,,MATCH(U$4,'C. PoC Adj Factor Scoring'!$E$3:$AH$3,0)-1),MATCH(U$2&\" Score\",'C. PoC Adj Factor Scoring'!$E$4:$J$4,0),TRUE)","v":1},{"$f":"VLOOKUP(OFFSET($B:$B,,MATCH(V$4,$B$4:$F$4,0)-1),OFFSET('C. PoC Adj Factor Scoring'!$E$5:$J$282,,MATCH(V$4,'C. PoC Adj Factor Scoring'!$E$3:$AH$3,0)-1),MATCH(V$2&\" Score\",'C. PoC Adj Factor Scoring'!$E$4:$J$4,0),TRUE)","v":1},{"$f":"VLOOKUP(OFFSET($B:$B,,MATCH(W$4,$B$4:$F$4,0)-1),OFFSET('C. PoC Adj Factor Scoring'!$E$5:$J$282,,MATCH(W$4,'C. PoC Adj Factor Scoring'!$E$3:$AH$3,0)-1),MATCH(W$2&\" Score\",'C. PoC Adj Factor Scoring'!$E$4:$J$4,0),TRUE)","v":1},{"$f":"VLOOKUP(OFFSET($B:$B,,MATCH(X$4,$B$4:$F$4,0)-1),OFFSET('C. PoC Adj Factor Scoring'!$E$5:$J$282,,MATCH(X$4,'C. PoC Adj Factor Scoring'!$E$3:$AH$3,0)-1),MATCH(X$2&\" Score\",'C. PoC Adj Factor Scoring'!$E$4:$J$4,0),TRUE)","v":1},{"$f":"VLOOKUP(OFFSET($B:$B,,MATCH(Y$4,$B$4:$F$4,0)-1),OFFSET('C. PoC Adj Factor Scoring'!$E$5:$J$282,,MATCH(Y$4,'C. PoC Adj Factor Scoring'!$E$3:$AH$3,0)-1),MATCH(Y$2&\" Score\",'C. PoC Adj Factor Scoring'!$E$4:$J$4,0),TRUE)","v":1},{"$f":"VLOOKUP(OFFSET($B:$B,,MATCH(Z$4,$B$4:$F$4,0)-1),OFFSET('C. PoC Adj Factor Scoring'!$E$5:$J$282,,MATCH(Z$4,'C. PoC Adj Factor Scoring'!$E$3:$AH$3,0)-1),MATCH(Z$2&\" Score\",'C. PoC Adj Factor Scoring'!$E$4:$J$4,0),TRUE)","v":1},{"$f":"VLOOKUP(OFFSET($B:$B,,MATCH(AA$4,$B$4:$F$4,0)-1),OFFSET('C. PoC Adj Factor Scoring'!$E$5:$J$282,,MATCH(AA$4,'C. PoC Adj Factor Scoring'!$E$3:$AH$3,0)-1),MATCH(AA$2&\" Score\",'C. PoC Adj Factor Scoring'!$E$4:$J$4,0),TRUE)","v":3},{"$f":"VLOOKUP(OFFSET($B:$B,,MATCH(AB$4,$B$4:$F$4,0)-1),OFFSET('C. PoC Adj Factor Scoring'!$E$5:$J$282,,MATCH(AB$4,'C. PoC Adj Factor Scoring'!$E$3:$AH$3,0)-1),MATCH(AB$2&\" Score\",'C. PoC Adj Factor Scoring'!$E$4:$J$4,0),TRUE)","v":1},{"$f":"VLOOKUP(OFFSET($B:$B,,MATCH(AC$4,$B$4:$F$4,0)-1),OFFSET('C. PoC Adj Factor Scoring'!$E$5:$J$282,,MATCH(AC$4,'C. PoC Adj Factor Scoring'!$E$3:$AH$3,0)-1),MATCH(AC$2&\" Score\",'C. PoC Adj Factor Scoring'!$E$4:$J$4,0),TRUE)","v":1},{"$f":"VLOOKUP(OFFSET($B:$B,,MATCH(AD$4,$B$4:$F$4,0)-1),OFFSET('C. PoC Adj Factor Scoring'!$E$5:$J$282,,MATCH(AD$4,'C. PoC Adj Factor Scoring'!$E$3:$AH$3,0)-1),MATCH(AD$2&\" Score\",'C. PoC Adj Factor Scoring'!$E$4:$J$4,0),TRUE)","v":1},{"$f":"VLOOKUP(OFFSET($B:$B,,MATCH(AE$4,$B$4:$F$4,0)-1),OFFSET('C. PoC Adj Factor Scoring'!$E$5:$J$282,,MATCH(AE$4,'C. PoC Adj Factor Scoring'!$E$3:$AH$3,0)-1),MATCH(AE$2&\" Score\",'C. PoC Adj Factor Scoring'!$E$4:$J$4,0),TRUE)","v":1}]
[{"$f":"'A. Population Info'!A142","v":1000344030},{"$f":"'A. Population Info'!L142","v":"OIL"},{"$f":"'A. Population Info'!M142","v":0},{"$f":"'A. Population Info'!N142","v":0},{"$f":"'A. Population Info'!O142","v":0},{"$f":"'A. Population Info'!P142","v":0},{"$f":"VLOOKUP(OFFSET($B:$B,,MATCH(G$4,$B$4:$F$4,0)-1),OFFSET('C. PoC Adj Factor Scoring'!$E$5:$J$282,,MATCH(G$4,'C. PoC Adj Factor Scoring'!$E$3:$AH$3,0)-1),MATCH(G$2&\" Score\",'C. PoC Adj Factor Scoring'!$E$4:$J$4,0),TRUE)","v":4},{"$f":"VLOOKUP(OFFSET($B:$B,,MATCH(H$4,$B$4:$F$4,0)-1),OFFSET('C. PoC Adj Factor Scoring'!$E$5:$J$282,,MATCH(H$4,'C. PoC Adj Factor Scoring'!$E$3:$AH$3,0)-1),MATCH(H$2&\" Score\",'C. PoC Adj Factor Scoring'!$E$4:$J$4,0),TRUE)","v":1},{"$f":"VLOOKUP(OFFSET($B:$B,,MATCH(I$4,$B$4:$F$4,0)-1),OFFSET('C. PoC Adj Factor Scoring'!$E$5:$J$282,,MATCH(I$4,'C. PoC Adj Factor Scoring'!$E$3:$AH$3,0)-1),MATCH(I$2&\" Score\",'C. PoC Adj Factor Scoring'!$E$4:$J$4,0),TRUE)","v":1},{"$f":"VLOOKUP(OFFSET($B:$B,,MATCH(J$4,$B$4:$F$4,0)-1),OFFSET('C. PoC Adj Factor Scoring'!$E$5:$J$282,,MATCH(J$4,'C. PoC Adj Factor Scoring'!$E$3:$AH$3,0)-1),MATCH(J$2&\" Score\",'C. PoC Adj Factor Scoring'!$E$4:$J$4,0),TRUE)","v":1},{"$f":"VLOOKUP(OFFSET($B:$B,,MATCH(K$4,$B$4:$F$4,0)-1),OFFSET('C. PoC Adj Factor Scoring'!$E$5:$J$282,,MATCH(K$4,'C. PoC Adj Factor Scoring'!$E$3:$AH$3,0)-1),MATCH(K$2&\" Score\",'C. PoC Adj Factor Scoring'!$E$4:$J$4,0),TRUE)","v":1},{"$f":"VLOOKUP(OFFSET($B:$B,,MATCH(L$4,$B$4:$F$4,0)-1),OFFSET('C. PoC Adj Factor Scoring'!$E$5:$J$282,,MATCH(L$4,'C. PoC Adj Factor Scoring'!$E$3:$AH$3,0)-1),MATCH(L$2&\" Score\",'C. PoC Adj Factor Scoring'!$E$4:$J$4,0),TRUE)","v":1},{"$f":"VLOOKUP(OFFSET($B:$B,,MATCH(M$4,$B$4:$F$4,0)-1),OFFSET('C. PoC Adj Factor Scoring'!$E$5:$J$282,,MATCH(M$4,'C. PoC Adj Factor Scoring'!$E$3:$AH$3,0)-1),MATCH(M$2&\" Score\",'C. PoC Adj Factor Scoring'!$E$4:$J$4,0),TRUE)","v":1},{"$f":"VLOOKUP(OFFSET($B:$B,,MATCH(N$4,$B$4:$F$4,0)-1),OFFSET('C. PoC Adj Factor Scoring'!$E$5:$J$282,,MATCH(N$4,'C. PoC Adj Factor Scoring'!$E$3:$AH$3,0)-1),MATCH(N$2&\" Score\",'C. PoC Adj Factor Scoring'!$E$4:$J$4,0),TRUE)","v":1},{"$f":"VLOOKUP(OFFSET($B:$B,,MATCH(O$4,$B$4:$F$4,0)-1),OFFSET('C. PoC Adj Factor Scoring'!$E$5:$J$282,,MATCH(O$4,'C. PoC Adj Factor Scoring'!$E$3:$AH$3,0)-1),MATCH(O$2&\" Score\",'C. PoC Adj Factor Scoring'!$E$4:$J$4,0),TRUE)","v":1},{"$f":"VLOOKUP(OFFSET($B:$B,,MATCH(P$4,$B$4:$F$4,0)-1),OFFSET('C. PoC Adj Factor Scoring'!$E$5:$J$282,,MATCH(P$4,'C. PoC Adj Factor Scoring'!$E$3:$AH$3,0)-1),MATCH(P$2&\" Score\",'C. PoC Adj Factor Scoring'!$E$4:$J$4,0),TRUE)","v":1},{"$f":"VLOOKUP(OFFSET($B:$B,,MATCH(Q$4,$B$4:$F$4,0)-1),OFFSET('C. PoC Adj Factor Scoring'!$E$5:$J$282,,MATCH(Q$4,'C. PoC Adj Factor Scoring'!$E$3:$AH$3,0)-1),MATCH(Q$2&\" Score\",'C. PoC Adj Factor Scoring'!$E$4:$J$4,0),TRUE)","v":1},{"$f":"VLOOKUP(OFFSET($B:$B,,MATCH(R$4,$B$4:$F$4,0)-1),OFFSET('C. PoC Adj Factor Scoring'!$E$5:$J$282,,MATCH(R$4,'C. PoC Adj Factor Scoring'!$E$3:$AH$3,0)-1),MATCH(R$2&\" Score\",'C. PoC Adj Factor Scoring'!$E$4:$J$4,0),TRUE)","v":1},{"$f":"VLOOKUP(OFFSET($B:$B,,MATCH(S$4,$B$4:$F$4,0)-1),OFFSET('C. PoC Adj Factor Scoring'!$E$5:$J$282,,MATCH(S$4,'C. PoC Adj Factor Scoring'!$E$3:$AH$3,0)-1),MATCH(S$2&\" Score\",'C. PoC Adj Factor Scoring'!$E$4:$J$4,0),TRUE)","v":1},{"$f":"VLOOKUP(OFFSET($B:$B,,MATCH(T$4,$B$4:$F$4,0)-1),OFFSET('C. PoC Adj Factor Scoring'!$E$5:$J$282,,MATCH(T$4,'C. PoC Adj Factor Scoring'!$E$3:$AH$3,0)-1),MATCH(T$2&\" Score\",'C. PoC Adj Factor Scoring'!$E$4:$J$4,0),TRUE)","v":1},{"$f":"VLOOKUP(OFFSET($B:$B,,MATCH(U$4,$B$4:$F$4,0)-1),OFFSET('C. PoC Adj Factor Scoring'!$E$5:$J$282,,MATCH(U$4,'C. PoC Adj Factor Scoring'!$E$3:$AH$3,0)-1),MATCH(U$2&\" Score\",'C. PoC Adj Factor Scoring'!$E$4:$J$4,0),TRUE)","v":1},{"$f":"VLOOKUP(OFFSET($B:$B,,MATCH(V$4,$B$4:$F$4,0)-1),OFFSET('C. PoC Adj Factor Scoring'!$E$5:$J$282,,MATCH(V$4,'C. PoC Adj Factor Scoring'!$E$3:$AH$3,0)-1),MATCH(V$2&\" Score\",'C. PoC Adj Factor Scoring'!$E$4:$J$4,0),TRUE)","v":1},{"$f":"VLOOKUP(OFFSET($B:$B,,MATCH(W$4,$B$4:$F$4,0)-1),OFFSET('C. PoC Adj Factor Scoring'!$E$5:$J$282,,MATCH(W$4,'C. PoC Adj Factor Scoring'!$E$3:$AH$3,0)-1),MATCH(W$2&\" Score\",'C. PoC Adj Factor Scoring'!$E$4:$J$4,0),TRUE)","v":1},{"$f":"VLOOKUP(OFFSET($B:$B,,MATCH(X$4,$B$4:$F$4,0)-1),OFFSET('C. PoC Adj Factor Scoring'!$E$5:$J$282,,MATCH(X$4,'C. PoC Adj Factor Scoring'!$E$3:$AH$3,0)-1),MATCH(X$2&\" Score\",'C. PoC Adj Factor Scoring'!$E$4:$J$4,0),TRUE)","v":1},{"$f":"VLOOKUP(OFFSET($B:$B,,MATCH(Y$4,$B$4:$F$4,0)-1),OFFSET('C. PoC Adj Factor Scoring'!$E$5:$J$282,,MATCH(Y$4,'C. PoC Adj Factor Scoring'!$E$3:$AH$3,0)-1),MATCH(Y$2&\" Score\",'C. PoC Adj Factor Scoring'!$E$4:$J$4,0),TRUE)","v":1},{"$f":"VLOOKUP(OFFSET($B:$B,,MATCH(Z$4,$B$4:$F$4,0)-1),OFFSET('C. PoC Adj Factor Scoring'!$E$5:$J$282,,MATCH(Z$4,'C. PoC Adj Factor Scoring'!$E$3:$AH$3,0)-1),MATCH(Z$2&\" Score\",'C. PoC Adj Factor Scoring'!$E$4:$J$4,0),TRUE)","v":1},{"$f":"VLOOKUP(OFFSET($B:$B,,MATCH(AA$4,$B$4:$F$4,0)-1),OFFSET('C. PoC Adj Factor Scoring'!$E$5:$J$282,,MATCH(AA$4,'C. PoC Adj Factor Scoring'!$E$3:$AH$3,0)-1),MATCH(AA$2&\" Score\",'C. PoC Adj Factor Scoring'!$E$4:$J$4,0),TRUE)","v":3},{"$f":"VLOOKUP(OFFSET($B:$B,,MATCH(AB$4,$B$4:$F$4,0)-1),OFFSET('C. PoC Adj Factor Scoring'!$E$5:$J$282,,MATCH(AB$4,'C. PoC Adj Factor Scoring'!$E$3:$AH$3,0)-1),MATCH(AB$2&\" Score\",'C. PoC Adj Factor Scoring'!$E$4:$J$4,0),TRUE)","v":1},{"$f":"VLOOKUP(OFFSET($B:$B,,MATCH(AC$4,$B$4:$F$4,0)-1),OFFSET('C. PoC Adj Factor Scoring'!$E$5:$J$282,,MATCH(AC$4,'C. PoC Adj Factor Scoring'!$E$3:$AH$3,0)-1),MATCH(AC$2&\" Score\",'C. PoC Adj Factor Scoring'!$E$4:$J$4,0),TRUE)","v":1},{"$f":"VLOOKUP(OFFSET($B:$B,,MATCH(AD$4,$B$4:$F$4,0)-1),OFFSET('C. PoC Adj Factor Scoring'!$E$5:$J$282,,MATCH(AD$4,'C. PoC Adj Factor Scoring'!$E$3:$AH$3,0)-1),MATCH(AD$2&\" Score\",'C. PoC Adj Factor Scoring'!$E$4:$J$4,0),TRUE)","v":1},{"$f":"VLOOKUP(OFFSET($B:$B,,MATCH(AE$4,$B$4:$F$4,0)-1),OFFSET('C. PoC Adj Factor Scoring'!$E$5:$J$282,,MATCH(AE$4,'C. PoC Adj Factor Scoring'!$E$3:$AH$3,0)-1),MATCH(AE$2&\" Score\",'C. PoC Adj Factor Scoring'!$E$4:$J$4,0),TRUE)","v":1}]
[{"$f":"'A. Population Info'!A143","v":1000344072},{"$f":"'A. Population Info'!L143","v":"OIL"},{"$f":"'A. Population Info'!M143","v":0},{"$f":"'A. Population Info'!N143","v":0},{"$f":"'A. Population Info'!O143","v":0},{"$f":"'A. Population Info'!P143","v":0},{"$f":"VLOOKUP(OFFSET($B:$B,,MATCH(G$4,$B$4:$F$4,0)-1),OFFSET('C. PoC Adj Factor Scoring'!$E$5:$J$282,,MATCH(G$4,'C. PoC Adj Factor Scoring'!$E$3:$AH$3,0)-1),MATCH(G$2&\" Score\",'C. PoC Adj Factor Scoring'!$E$4:$J$4,0),TRUE)","v":4},{"$f":"VLOOKUP(OFFSET($B:$B,,MATCH(H$4,$B$4:$F$4,0)-1),OFFSET('C. PoC Adj Factor Scoring'!$E$5:$J$282,,MATCH(H$4,'C. PoC Adj Factor Scoring'!$E$3:$AH$3,0)-1),MATCH(H$2&\" Score\",'C. PoC Adj Factor Scoring'!$E$4:$J$4,0),TRUE)","v":1},{"$f":"VLOOKUP(OFFSET($B:$B,,MATCH(I$4,$B$4:$F$4,0)-1),OFFSET('C. PoC Adj Factor Scoring'!$E$5:$J$282,,MATCH(I$4,'C. PoC Adj Factor Scoring'!$E$3:$AH$3,0)-1),MATCH(I$2&\" Score\",'C. PoC Adj Factor Scoring'!$E$4:$J$4,0),TRUE)","v":1},{"$f":"VLOOKUP(OFFSET($B:$B,,MATCH(J$4,$B$4:$F$4,0)-1),OFFSET('C. PoC Adj Factor Scoring'!$E$5:$J$282,,MATCH(J$4,'C. PoC Adj Factor Scoring'!$E$3:$AH$3,0)-1),MATCH(J$2&\" Score\",'C. PoC Adj Factor Scoring'!$E$4:$J$4,0),TRUE)","v":1},{"$f":"VLOOKUP(OFFSET($B:$B,,MATCH(K$4,$B$4:$F$4,0)-1),OFFSET('C. PoC Adj Factor Scoring'!$E$5:$J$282,,MATCH(K$4,'C. PoC Adj Factor Scoring'!$E$3:$AH$3,0)-1),MATCH(K$2&\" Score\",'C. PoC Adj Factor Scoring'!$E$4:$J$4,0),TRUE)","v":1},{"$f":"VLOOKUP(OFFSET($B:$B,,MATCH(L$4,$B$4:$F$4,0)-1),OFFSET('C. PoC Adj Factor Scoring'!$E$5:$J$282,,MATCH(L$4,'C. PoC Adj Factor Scoring'!$E$3:$AH$3,0)-1),MATCH(L$2&\" Score\",'C. PoC Adj Factor Scoring'!$E$4:$J$4,0),TRUE)","v":1},{"$f":"VLOOKUP(OFFSET($B:$B,,MATCH(M$4,$B$4:$F$4,0)-1),OFFSET('C. PoC Adj Factor Scoring'!$E$5:$J$282,,MATCH(M$4,'C. PoC Adj Factor Scoring'!$E$3:$AH$3,0)-1),MATCH(M$2&\" Score\",'C. PoC Adj Factor Scoring'!$E$4:$J$4,0),TRUE)","v":1},{"$f":"VLOOKUP(OFFSET($B:$B,,MATCH(N$4,$B$4:$F$4,0)-1),OFFSET('C. PoC Adj Factor Scoring'!$E$5:$J$282,,MATCH(N$4,'C. PoC Adj Factor Scoring'!$E$3:$AH$3,0)-1),MATCH(N$2&\" Score\",'C. PoC Adj Factor Scoring'!$E$4:$J$4,0),TRUE)","v":1},{"$f":"VLOOKUP(OFFSET($B:$B,,MATCH(O$4,$B$4:$F$4,0)-1),OFFSET('C. PoC Adj Factor Scoring'!$E$5:$J$282,,MATCH(O$4,'C. PoC Adj Factor Scoring'!$E$3:$AH$3,0)-1),MATCH(O$2&\" Score\",'C. PoC Adj Factor Scoring'!$E$4:$J$4,0),TRUE)","v":1},{"$f":"VLOOKUP(OFFSET($B:$B,,MATCH(P$4,$B$4:$F$4,0)-1),OFFSET('C. PoC Adj Factor Scoring'!$E$5:$J$282,,MATCH(P$4,'C. PoC Adj Factor Scoring'!$E$3:$AH$3,0)-1),MATCH(P$2&\" Score\",'C. PoC Adj Factor Scoring'!$E$4:$J$4,0),TRUE)","v":1},{"$f":"VLOOKUP(OFFSET($B:$B,,MATCH(Q$4,$B$4:$F$4,0)-1),OFFSET('C. PoC Adj Factor Scoring'!$E$5:$J$282,,MATCH(Q$4,'C. PoC Adj Factor Scoring'!$E$3:$AH$3,0)-1),MATCH(Q$2&\" Score\",'C. PoC Adj Factor Scoring'!$E$4:$J$4,0),TRUE)","v":1},{"$f":"VLOOKUP(OFFSET($B:$B,,MATCH(R$4,$B$4:$F$4,0)-1),OFFSET('C. PoC Adj Factor Scoring'!$E$5:$J$282,,MATCH(R$4,'C. PoC Adj Factor Scoring'!$E$3:$AH$3,0)-1),MATCH(R$2&\" Score\",'C. PoC Adj Factor Scoring'!$E$4:$J$4,0),TRUE)","v":1},{"$f":"VLOOKUP(OFFSET($B:$B,,MATCH(S$4,$B$4:$F$4,0)-1),OFFSET('C. PoC Adj Factor Scoring'!$E$5:$J$282,,MATCH(S$4,'C. PoC Adj Factor Scoring'!$E$3:$AH$3,0)-1),MATCH(S$2&\" Score\",'C. PoC Adj Factor Scoring'!$E$4:$J$4,0),TRUE)","v":1},{"$f":"VLOOKUP(OFFSET($B:$B,,MATCH(T$4,$B$4:$F$4,0)-1),OFFSET('C. PoC Adj Factor Scoring'!$E$5:$J$282,,MATCH(T$4,'C. PoC Adj Factor Scoring'!$E$3:$AH$3,0)-1),MATCH(T$2&\" Score\",'C. PoC Adj Factor Scoring'!$E$4:$J$4,0),TRUE)","v":1},{"$f":"VLOOKUP(OFFSET($B:$B,,MATCH(U$4,$B$4:$F$4,0)-1),OFFSET('C. PoC Adj Factor Scoring'!$E$5:$J$282,,MATCH(U$4,'C. PoC Adj Factor Scoring'!$E$3:$AH$3,0)-1),MATCH(U$2&\" Score\",'C. PoC Adj Factor Scoring'!$E$4:$J$4,0),TRUE)","v":1},{"$f":"VLOOKUP(OFFSET($B:$B,,MATCH(V$4,$B$4:$F$4,0)-1),OFFSET('C. PoC Adj Factor Scoring'!$E$5:$J$282,,MATCH(V$4,'C. PoC Adj Factor Scoring'!$E$3:$AH$3,0)-1),MATCH(V$2&\" Score\",'C. PoC Adj Factor Scoring'!$E$4:$J$4,0),TRUE)","v":1},{"$f":"VLOOKUP(OFFSET($B:$B,,MATCH(W$4,$B$4:$F$4,0)-1),OFFSET('C. PoC Adj Factor Scoring'!$E$5:$J$282,,MATCH(W$4,'C. PoC Adj Factor Scoring'!$E$3:$AH$3,0)-1),MATCH(W$2&\" Score\",'C. PoC Adj Factor Scoring'!$E$4:$J$4,0),TRUE)","v":1},{"$f":"VLOOKUP(OFFSET($B:$B,,MATCH(X$4,$B$4:$F$4,0)-1),OFFSET('C. PoC Adj Factor Scoring'!$E$5:$J$282,,MATCH(X$4,'C. PoC Adj Factor Scoring'!$E$3:$AH$3,0)-1),MATCH(X$2&\" Score\",'C. PoC Adj Factor Scoring'!$E$4:$J$4,0),TRUE)","v":1},{"$f":"VLOOKUP(OFFSET($B:$B,,MATCH(Y$4,$B$4:$F$4,0)-1),OFFSET('C. PoC Adj Factor Scoring'!$E$5:$J$282,,MATCH(Y$4,'C. PoC Adj Factor Scoring'!$E$3:$AH$3,0)-1),MATCH(Y$2&\" Score\",'C. PoC Adj Factor Scoring'!$E$4:$J$4,0),TRUE)","v":1},{"$f":"VLOOKUP(OFFSET($B:$B,,MATCH(Z$4,$B$4:$F$4,0)-1),OFFSET('C. PoC Adj Factor Scoring'!$E$5:$J$282,,MATCH(Z$4,'C. PoC Adj Factor Scoring'!$E$3:$AH$3,0)-1),MATCH(Z$2&\" Score\",'C. PoC Adj Factor Scoring'!$E$4:$J$4,0),TRUE)","v":1},{"$f":"VLOOKUP(OFFSET($B:$B,,MATCH(AA$4,$B$4:$F$4,0)-1),OFFSET('C. PoC Adj Factor Scoring'!$E$5:$J$282,,MATCH(AA$4,'C. PoC Adj Factor Scoring'!$E$3:$AH$3,0)-1),MATCH(AA$2&\" Score\",'C. PoC Adj Factor Scoring'!$E$4:$J$4,0),TRUE)","v":3},{"$f":"VLOOKUP(OFFSET($B:$B,,MATCH(AB$4,$B$4:$F$4,0)-1),OFFSET('C. PoC Adj Factor Scoring'!$E$5:$J$282,,MATCH(AB$4,'C. PoC Adj Factor Scoring'!$E$3:$AH$3,0)-1),MATCH(AB$2&\" Score\",'C. PoC Adj Factor Scoring'!$E$4:$J$4,0),TRUE)","v":1},{"$f":"VLOOKUP(OFFSET($B:$B,,MATCH(AC$4,$B$4:$F$4,0)-1),OFFSET('C. PoC Adj Factor Scoring'!$E$5:$J$282,,MATCH(AC$4,'C. PoC Adj Factor Scoring'!$E$3:$AH$3,0)-1),MATCH(AC$2&\" Score\",'C. PoC Adj Factor Scoring'!$E$4:$J$4,0),TRUE)","v":1},{"$f":"VLOOKUP(OFFSET($B:$B,,MATCH(AD$4,$B$4:$F$4,0)-1),OFFSET('C. PoC Adj Factor Scoring'!$E$5:$J$282,,MATCH(AD$4,'C. PoC Adj Factor Scoring'!$E$3:$AH$3,0)-1),MATCH(AD$2&\" Score\",'C. PoC Adj Factor Scoring'!$E$4:$J$4,0),TRUE)","v":1},{"$f":"VLOOKUP(OFFSET($B:$B,,MATCH(AE$4,$B$4:$F$4,0)-1),OFFSET('C. PoC Adj Factor Scoring'!$E$5:$J$282,,MATCH(AE$4,'C. PoC Adj Factor Scoring'!$E$3:$AH$3,0)-1),MATCH(AE$2&\" Score\",'C. PoC Adj Factor Scoring'!$E$4:$J$4,0),TRUE)","v":1}]
[{"$f":"'A. Population Info'!A144","v":1000344130},{"$f":"'A. Population Info'!L144","v":"OIL"},{"$f":"'A. Population Info'!M144","v":0},{"$f":"'A. Population Info'!N144","v":0},{"$f":"'A. Population Info'!O144","v":0},{"$f":"'A. Population Info'!P144","v":0},{"$f":"VLOOKUP(OFFSET($B:$B,,MATCH(G$4,$B$4:$F$4,0)-1),OFFSET('C. PoC Adj Factor Scoring'!$E$5:$J$282,,MATCH(G$4,'C. PoC Adj Factor Scoring'!$E$3:$AH$3,0)-1),MATCH(G$2&\" Score\",'C. PoC Adj Factor Scoring'!$E$4:$J$4,0),TRUE)","v":4},{"$f":"VLOOKUP(OFFSET($B:$B,,MATCH(H$4,$B$4:$F$4,0)-1),OFFSET('C. PoC Adj Factor Scoring'!$E$5:$J$282,,MATCH(H$4,'C. PoC Adj Factor Scoring'!$E$3:$AH$3,0)-1),MATCH(H$2&\" Score\",'C. PoC Adj Factor Scoring'!$E$4:$J$4,0),TRUE)","v":1},{"$f":"VLOOKUP(OFFSET($B:$B,,MATCH(I$4,$B$4:$F$4,0)-1),OFFSET('C. PoC Adj Factor Scoring'!$E$5:$J$282,,MATCH(I$4,'C. PoC Adj Factor Scoring'!$E$3:$AH$3,0)-1),MATCH(I$2&\" Score\",'C. PoC Adj Factor Scoring'!$E$4:$J$4,0),TRUE)","v":1},{"$f":"VLOOKUP(OFFSET($B:$B,,MATCH(J$4,$B$4:$F$4,0)-1),OFFSET('C. PoC Adj Factor Scoring'!$E$5:$J$282,,MATCH(J$4,'C. PoC Adj Factor Scoring'!$E$3:$AH$3,0)-1),MATCH(J$2&\" Score\",'C. PoC Adj Factor Scoring'!$E$4:$J$4,0),TRUE)","v":1},{"$f":"VLOOKUP(OFFSET($B:$B,,MATCH(K$4,$B$4:$F$4,0)-1),OFFSET('C. PoC Adj Factor Scoring'!$E$5:$J$282,,MATCH(K$4,'C. PoC Adj Factor Scoring'!$E$3:$AH$3,0)-1),MATCH(K$2&\" Score\",'C. PoC Adj Factor Scoring'!$E$4:$J$4,0),TRUE)","v":1},{"$f":"VLOOKUP(OFFSET($B:$B,,MATCH(L$4,$B$4:$F$4,0)-1),OFFSET('C. PoC Adj Factor Scoring'!$E$5:$J$282,,MATCH(L$4,'C. PoC Adj Factor Scoring'!$E$3:$AH$3,0)-1),MATCH(L$2&\" Score\",'C. PoC Adj Factor Scoring'!$E$4:$J$4,0),TRUE)","v":1},{"$f":"VLOOKUP(OFFSET($B:$B,,MATCH(M$4,$B$4:$F$4,0)-1),OFFSET('C. PoC Adj Factor Scoring'!$E$5:$J$282,,MATCH(M$4,'C. PoC Adj Factor Scoring'!$E$3:$AH$3,0)-1),MATCH(M$2&\" Score\",'C. PoC Adj Factor Scoring'!$E$4:$J$4,0),TRUE)","v":1},{"$f":"VLOOKUP(OFFSET($B:$B,,MATCH(N$4,$B$4:$F$4,0)-1),OFFSET('C. PoC Adj Factor Scoring'!$E$5:$J$282,,MATCH(N$4,'C. PoC Adj Factor Scoring'!$E$3:$AH$3,0)-1),MATCH(N$2&\" Score\",'C. PoC Adj Factor Scoring'!$E$4:$J$4,0),TRUE)","v":1},{"$f":"VLOOKUP(OFFSET($B:$B,,MATCH(O$4,$B$4:$F$4,0)-1),OFFSET('C. PoC Adj Factor Scoring'!$E$5:$J$282,,MATCH(O$4,'C. PoC Adj Factor Scoring'!$E$3:$AH$3,0)-1),MATCH(O$2&\" Score\",'C. PoC Adj Factor Scoring'!$E$4:$J$4,0),TRUE)","v":1},{"$f":"VLOOKUP(OFFSET($B:$B,,MATCH(P$4,$B$4:$F$4,0)-1),OFFSET('C. PoC Adj Factor Scoring'!$E$5:$J$282,,MATCH(P$4,'C. PoC Adj Factor Scoring'!$E$3:$AH$3,0)-1),MATCH(P$2&\" Score\",'C. PoC Adj Factor Scoring'!$E$4:$J$4,0),TRUE)","v":1},{"$f":"VLOOKUP(OFFSET($B:$B,,MATCH(Q$4,$B$4:$F$4,0)-1),OFFSET('C. PoC Adj Factor Scoring'!$E$5:$J$282,,MATCH(Q$4,'C. PoC Adj Factor Scoring'!$E$3:$AH$3,0)-1),MATCH(Q$2&\" Score\",'C. PoC Adj Factor Scoring'!$E$4:$J$4,0),TRUE)","v":1},{"$f":"VLOOKUP(OFFSET($B:$B,,MATCH(R$4,$B$4:$F$4,0)-1),OFFSET('C. PoC Adj Factor Scoring'!$E$5:$J$282,,MATCH(R$4,'C. PoC Adj Factor Scoring'!$E$3:$AH$3,0)-1),MATCH(R$2&\" Score\",'C. PoC Adj Factor Scoring'!$E$4:$J$4,0),TRUE)","v":1},{"$f":"VLOOKUP(OFFSET($B:$B,,MATCH(S$4,$B$4:$F$4,0)-1),OFFSET('C. PoC Adj Factor Scoring'!$E$5:$J$282,,MATCH(S$4,'C. PoC Adj Factor Scoring'!$E$3:$AH$3,0)-1),MATCH(S$2&\" Score\",'C. PoC Adj Factor Scoring'!$E$4:$J$4,0),TRUE)","v":1},{"$f":"VLOOKUP(OFFSET($B:$B,,MATCH(T$4,$B$4:$F$4,0)-1),OFFSET('C. PoC Adj Factor Scoring'!$E$5:$J$282,,MATCH(T$4,'C. PoC Adj Factor Scoring'!$E$3:$AH$3,0)-1),MATCH(T$2&\" Score\",'C. PoC Adj Factor Scoring'!$E$4:$J$4,0),TRUE)","v":1},{"$f":"VLOOKUP(OFFSET($B:$B,,MATCH(U$4,$B$4:$F$4,0)-1),OFFSET('C. PoC Adj Factor Scoring'!$E$5:$J$282,,MATCH(U$4,'C. PoC Adj Factor Scoring'!$E$3:$AH$3,0)-1),MATCH(U$2&\" Score\",'C. PoC Adj Factor Scoring'!$E$4:$J$4,0),TRUE)","v":1},{"$f":"VLOOKUP(OFFSET($B:$B,,MATCH(V$4,$B$4:$F$4,0)-1),OFFSET('C. PoC Adj Factor Scoring'!$E$5:$J$282,,MATCH(V$4,'C. PoC Adj Factor Scoring'!$E$3:$AH$3,0)-1),MATCH(V$2&\" Score\",'C. PoC Adj Factor Scoring'!$E$4:$J$4,0),TRUE)","v":1},{"$f":"VLOOKUP(OFFSET($B:$B,,MATCH(W$4,$B$4:$F$4,0)-1),OFFSET('C. PoC Adj Factor Scoring'!$E$5:$J$282,,MATCH(W$4,'C. PoC Adj Factor Scoring'!$E$3:$AH$3,0)-1),MATCH(W$2&\" Score\",'C. PoC Adj Factor Scoring'!$E$4:$J$4,0),TRUE)","v":1},{"$f":"VLOOKUP(OFFSET($B:$B,,MATCH(X$4,$B$4:$F$4,0)-1),OFFSET('C. PoC Adj Factor Scoring'!$E$5:$J$282,,MATCH(X$4,'C. PoC Adj Factor Scoring'!$E$3:$AH$3,0)-1),MATCH(X$2&\" Score\",'C. PoC Adj Factor Scoring'!$E$4:$J$4,0),TRUE)","v":1},{"$f":"VLOOKUP(OFFSET($B:$B,,MATCH(Y$4,$B$4:$F$4,0)-1),OFFSET('C. PoC Adj Factor Scoring'!$E$5:$J$282,,MATCH(Y$4,'C. PoC Adj Factor Scoring'!$E$3:$AH$3,0)-1),MATCH(Y$2&\" Score\",'C. PoC Adj Factor Scoring'!$E$4:$J$4,0),TRUE)","v":1},{"$f":"VLOOKUP(OFFSET($B:$B,,MATCH(Z$4,$B$4:$F$4,0)-1),OFFSET('C. PoC Adj Factor Scoring'!$E$5:$J$282,,MATCH(Z$4,'C. PoC Adj Factor Scoring'!$E$3:$AH$3,0)-1),MATCH(Z$2&\" Score\",'C. PoC Adj Factor Scoring'!$E$4:$J$4,0),TRUE)","v":1},{"$f":"VLOOKUP(OFFSET($B:$B,,MATCH(AA$4,$B$4:$F$4,0)-1),OFFSET('C. PoC Adj Factor Scoring'!$E$5:$J$282,,MATCH(AA$4,'C. PoC Adj Factor Scoring'!$E$3:$AH$3,0)-1),MATCH(AA$2&\" Score\",'C. PoC Adj Factor Scoring'!$E$4:$J$4,0),TRUE)","v":3},{"$f":"VLOOKUP(OFFSET($B:$B,,MATCH(AB$4,$B$4:$F$4,0)-1),OFFSET('C. PoC Adj Factor Scoring'!$E$5:$J$282,,MATCH(AB$4,'C. PoC Adj Factor Scoring'!$E$3:$AH$3,0)-1),MATCH(AB$2&\" Score\",'C. PoC Adj Factor Scoring'!$E$4:$J$4,0),TRUE)","v":1},{"$f":"VLOOKUP(OFFSET($B:$B,,MATCH(AC$4,$B$4:$F$4,0)-1),OFFSET('C. PoC Adj Factor Scoring'!$E$5:$J$282,,MATCH(AC$4,'C. PoC Adj Factor Scoring'!$E$3:$AH$3,0)-1),MATCH(AC$2&\" Score\",'C. PoC Adj Factor Scoring'!$E$4:$J$4,0),TRUE)","v":1},{"$f":"VLOOKUP(OFFSET($B:$B,,MATCH(AD$4,$B$4:$F$4,0)-1),OFFSET('C. PoC Adj Factor Scoring'!$E$5:$J$282,,MATCH(AD$4,'C. PoC Adj Factor Scoring'!$E$3:$AH$3,0)-1),MATCH(AD$2&\" Score\",'C. PoC Adj Factor Scoring'!$E$4:$J$4,0),TRUE)","v":1},{"$f":"VLOOKUP(OFFSET($B:$B,,MATCH(AE$4,$B$4:$F$4,0)-1),OFFSET('C. PoC Adj Factor Scoring'!$E$5:$J$282,,MATCH(AE$4,'C. PoC Adj Factor Scoring'!$E$3:$AH$3,0)-1),MATCH(AE$2&\" Score\",'C. PoC Adj Factor Scoring'!$E$4:$J$4,0),TRUE)","v":1}]
[{"$f":"'A. Population Info'!A145","v":1000344161},{"$f":"'A. Population Info'!L145","v":"OIL"},{"$f":"'A. Population Info'!M145","v":0},{"$f":"'A. Population Info'!N145","v":0},{"$f":"'A. Population Info'!O145","v":0},{"$f":"'A. Population Info'!P145","v":0},{"$f":"VLOOKUP(OFFSET($B:$B,,MATCH(G$4,$B$4:$F$4,0)-1),OFFSET('C. PoC Adj Factor Scoring'!$E$5:$J$282,,MATCH(G$4,'C. PoC Adj Factor Scoring'!$E$3:$AH$3,0)-1),MATCH(G$2&\" Score\",'C. PoC Adj Factor Scoring'!$E$4:$J$4,0),TRUE)","v":4},{"$f":"VLOOKUP(OFFSET($B:$B,,MATCH(H$4,$B$4:$F$4,0)-1),OFFSET('C. PoC Adj Factor Scoring'!$E$5:$J$282,,MATCH(H$4,'C. PoC Adj Factor Scoring'!$E$3:$AH$3,0)-1),MATCH(H$2&\" Score\",'C. PoC Adj Factor Scoring'!$E$4:$J$4,0),TRUE)","v":1},{"$f":"VLOOKUP(OFFSET($B:$B,,MATCH(I$4,$B$4:$F$4,0)-1),OFFSET('C. PoC Adj Factor Scoring'!$E$5:$J$282,,MATCH(I$4,'C. PoC Adj Factor Scoring'!$E$3:$AH$3,0)-1),MATCH(I$2&\" Score\",'C. PoC Adj Factor Scoring'!$E$4:$J$4,0),TRUE)","v":1},{"$f":"VLOOKUP(OFFSET($B:$B,,MATCH(J$4,$B$4:$F$4,0)-1),OFFSET('C. PoC Adj Factor Scoring'!$E$5:$J$282,,MATCH(J$4,'C. PoC Adj Factor Scoring'!$E$3:$AH$3,0)-1),MATCH(J$2&\" Score\",'C. PoC Adj Factor Scoring'!$E$4:$J$4,0),TRUE)","v":1},{"$f":"VLOOKUP(OFFSET($B:$B,,MATCH(K$4,$B$4:$F$4,0)-1),OFFSET('C. PoC Adj Factor Scoring'!$E$5:$J$282,,MATCH(K$4,'C. PoC Adj Factor Scoring'!$E$3:$AH$3,0)-1),MATCH(K$2&\" Score\",'C. PoC Adj Factor Scoring'!$E$4:$J$4,0),TRUE)","v":1},{"$f":"VLOOKUP(OFFSET($B:$B,,MATCH(L$4,$B$4:$F$4,0)-1),OFFSET('C. PoC Adj Factor Scoring'!$E$5:$J$282,,MATCH(L$4,'C. PoC Adj Factor Scoring'!$E$3:$AH$3,0)-1),MATCH(L$2&\" Score\",'C. PoC Adj Factor Scoring'!$E$4:$J$4,0),TRUE)","v":1},{"$f":"VLOOKUP(OFFSET($B:$B,,MATCH(M$4,$B$4:$F$4,0)-1),OFFSET('C. PoC Adj Factor Scoring'!$E$5:$J$282,,MATCH(M$4,'C. PoC Adj Factor Scoring'!$E$3:$AH$3,0)-1),MATCH(M$2&\" Score\",'C. PoC Adj Factor Scoring'!$E$4:$J$4,0),TRUE)","v":1},{"$f":"VLOOKUP(OFFSET($B:$B,,MATCH(N$4,$B$4:$F$4,0)-1),OFFSET('C. PoC Adj Factor Scoring'!$E$5:$J$282,,MATCH(N$4,'C. PoC Adj Factor Scoring'!$E$3:$AH$3,0)-1),MATCH(N$2&\" Score\",'C. PoC Adj Factor Scoring'!$E$4:$J$4,0),TRUE)","v":1},{"$f":"VLOOKUP(OFFSET($B:$B,,MATCH(O$4,$B$4:$F$4,0)-1),OFFSET('C. PoC Adj Factor Scoring'!$E$5:$J$282,,MATCH(O$4,'C. PoC Adj Factor Scoring'!$E$3:$AH$3,0)-1),MATCH(O$2&\" Score\",'C. PoC Adj Factor Scoring'!$E$4:$J$4,0),TRUE)","v":1},{"$f":"VLOOKUP(OFFSET($B:$B,,MATCH(P$4,$B$4:$F$4,0)-1),OFFSET('C. PoC Adj Factor Scoring'!$E$5:$J$282,,MATCH(P$4,'C. PoC Adj Factor Scoring'!$E$3:$AH$3,0)-1),MATCH(P$2&\" Score\",'C. PoC Adj Factor Scoring'!$E$4:$J$4,0),TRUE)","v":1},{"$f":"VLOOKUP(OFFSET($B:$B,,MATCH(Q$4,$B$4:$F$4,0)-1),OFFSET('C. PoC Adj Factor Scoring'!$E$5:$J$282,,MATCH(Q$4,'C. PoC Adj Factor Scoring'!$E$3:$AH$3,0)-1),MATCH(Q$2&\" Score\",'C. PoC Adj Factor Scoring'!$E$4:$J$4,0),TRUE)","v":1},{"$f":"VLOOKUP(OFFSET($B:$B,,MATCH(R$4,$B$4:$F$4,0)-1),OFFSET('C. PoC Adj Factor Scoring'!$E$5:$J$282,,MATCH(R$4,'C. PoC Adj Factor Scoring'!$E$3:$AH$3,0)-1),MATCH(R$2&\" Score\",'C. PoC Adj Factor Scoring'!$E$4:$J$4,0),TRUE)","v":1},{"$f":"VLOOKUP(OFFSET($B:$B,,MATCH(S$4,$B$4:$F$4,0)-1),OFFSET('C. PoC Adj Factor Scoring'!$E$5:$J$282,,MATCH(S$4,'C. PoC Adj Factor Scoring'!$E$3:$AH$3,0)-1),MATCH(S$2&\" Score\",'C. PoC Adj Factor Scoring'!$E$4:$J$4,0),TRUE)","v":1},{"$f":"VLOOKUP(OFFSET($B:$B,,MATCH(T$4,$B$4:$F$4,0)-1),OFFSET('C. PoC Adj Factor Scoring'!$E$5:$J$282,,MATCH(T$4,'C. PoC Adj Factor Scoring'!$E$3:$AH$3,0)-1),MATCH(T$2&\" Score\",'C. PoC Adj Factor Scoring'!$E$4:$J$4,0),TRUE)","v":1},{"$f":"VLOOKUP(OFFSET($B:$B,,MATCH(U$4,$B$4:$F$4,0)-1),OFFSET('C. PoC Adj Factor Scoring'!$E$5:$J$282,,MATCH(U$4,'C. PoC Adj Factor Scoring'!$E$3:$AH$3,0)-1),MATCH(U$2&\" Score\",'C. PoC Adj Factor Scoring'!$E$4:$J$4,0),TRUE)","v":1},{"$f":"VLOOKUP(OFFSET($B:$B,,MATCH(V$4,$B$4:$F$4,0)-1),OFFSET('C. PoC Adj Factor Scoring'!$E$5:$J$282,,MATCH(V$4,'C. PoC Adj Factor Scoring'!$E$3:$AH$3,0)-1),MATCH(V$2&\" Score\",'C. PoC Adj Factor Scoring'!$E$4:$J$4,0),TRUE)","v":1},{"$f":"VLOOKUP(OFFSET($B:$B,,MATCH(W$4,$B$4:$F$4,0)-1),OFFSET('C. PoC Adj Factor Scoring'!$E$5:$J$282,,MATCH(W$4,'C. PoC Adj Factor Scoring'!$E$3:$AH$3,0)-1),MATCH(W$2&\" Score\",'C. PoC Adj Factor Scoring'!$E$4:$J$4,0),TRUE)","v":1},{"$f":"VLOOKUP(OFFSET($B:$B,,MATCH(X$4,$B$4:$F$4,0)-1),OFFSET('C. PoC Adj Factor Scoring'!$E$5:$J$282,,MATCH(X$4,'C. PoC Adj Factor Scoring'!$E$3:$AH$3,0)-1),MATCH(X$2&\" Score\",'C. PoC Adj Factor Scoring'!$E$4:$J$4,0),TRUE)","v":1},{"$f":"VLOOKUP(OFFSET($B:$B,,MATCH(Y$4,$B$4:$F$4,0)-1),OFFSET('C. PoC Adj Factor Scoring'!$E$5:$J$282,,MATCH(Y$4,'C. PoC Adj Factor Scoring'!$E$3:$AH$3,0)-1),MATCH(Y$2&\" Score\",'C. PoC Adj Factor Scoring'!$E$4:$J$4,0),TRUE)","v":1},{"$f":"VLOOKUP(OFFSET($B:$B,,MATCH(Z$4,$B$4:$F$4,0)-1),OFFSET('C. PoC Adj Factor Scoring'!$E$5:$J$282,,MATCH(Z$4,'C. PoC Adj Factor Scoring'!$E$3:$AH$3,0)-1),MATCH(Z$2&\" Score\",'C. PoC Adj Factor Scoring'!$E$4:$J$4,0),TRUE)","v":1},{"$f":"VLOOKUP(OFFSET($B:$B,,MATCH(AA$4,$B$4:$F$4,0)-1),OFFSET('C. PoC Adj Factor Scoring'!$E$5:$J$282,,MATCH(AA$4,'C. PoC Adj Factor Scoring'!$E$3:$AH$3,0)-1),MATCH(AA$2&\" Score\",'C. PoC Adj Factor Scoring'!$E$4:$J$4,0),TRUE)","v":3},{"$f":"VLOOKUP(OFFSET($B:$B,,MATCH(AB$4,$B$4:$F$4,0)-1),OFFSET('C. PoC Adj Factor Scoring'!$E$5:$J$282,,MATCH(AB$4,'C. PoC Adj Factor Scoring'!$E$3:$AH$3,0)-1),MATCH(AB$2&\" Score\",'C. PoC Adj Factor Scoring'!$E$4:$J$4,0),TRUE)","v":1},{"$f":"VLOOKUP(OFFSET($B:$B,,MATCH(AC$4,$B$4:$F$4,0)-1),OFFSET('C. PoC Adj Factor Scoring'!$E$5:$J$282,,MATCH(AC$4,'C. PoC Adj Factor Scoring'!$E$3:$AH$3,0)-1),MATCH(AC$2&\" Score\",'C. PoC Adj Factor Scoring'!$E$4:$J$4,0),TRUE)","v":1},{"$f":"VLOOKUP(OFFSET($B:$B,,MATCH(AD$4,$B$4:$F$4,0)-1),OFFSET('C. PoC Adj Factor Scoring'!$E$5:$J$282,,MATCH(AD$4,'C. PoC Adj Factor Scoring'!$E$3:$AH$3,0)-1),MATCH(AD$2&\" Score\",'C. PoC Adj Factor Scoring'!$E$4:$J$4,0),TRUE)","v":1},{"$f":"VLOOKUP(OFFSET($B:$B,,MATCH(AE$4,$B$4:$F$4,0)-1),OFFSET('C. PoC Adj Factor Scoring'!$E$5:$J$282,,MATCH(AE$4,'C. PoC Adj Factor Scoring'!$E$3:$AH$3,0)-1),MATCH(AE$2&\" Score\",'C. PoC Adj Factor Scoring'!$E$4:$J$4,0),TRUE)","v":1}]
[{"$f":"'A. Population Info'!A146","v":1000344307},{"$f":"'A. Population Info'!L146","v":"OIL"},{"$f":"'A. Population Info'!M146","v":0},{"$f":"'A. Population Info'!N146","v":0},{"$f":"'A. Population Info'!O146","v":0},{"$f":"'A. Population Info'!P146","v":0},{"$f":"VLOOKUP(OFFSET($B:$B,,MATCH(G$4,$B$4:$F$4,0)-1),OFFSET('C. PoC Adj Factor Scoring'!$E$5:$J$282,,MATCH(G$4,'C. PoC Adj Factor Scoring'!$E$3:$AH$3,0)-1),MATCH(G$2&\" Score\",'C. PoC Adj Factor Scoring'!$E$4:$J$4,0),TRUE)","v":4},{"$f":"VLOOKUP(OFFSET($B:$B,,MATCH(H$4,$B$4:$F$4,0)-1),OFFSET('C. PoC Adj Factor Scoring'!$E$5:$J$282,,MATCH(H$4,'C. PoC Adj Factor Scoring'!$E$3:$AH$3,0)-1),MATCH(H$2&\" Score\",'C. PoC Adj Factor Scoring'!$E$4:$J$4,0),TRUE)","v":1},{"$f":"VLOOKUP(OFFSET($B:$B,,MATCH(I$4,$B$4:$F$4,0)-1),OFFSET('C. PoC Adj Factor Scoring'!$E$5:$J$282,,MATCH(I$4,'C. PoC Adj Factor Scoring'!$E$3:$AH$3,0)-1),MATCH(I$2&\" Score\",'C. PoC Adj Factor Scoring'!$E$4:$J$4,0),TRUE)","v":1},{"$f":"VLOOKUP(OFFSET($B:$B,,MATCH(J$4,$B$4:$F$4,0)-1),OFFSET('C. PoC Adj Factor Scoring'!$E$5:$J$282,,MATCH(J$4,'C. PoC Adj Factor Scoring'!$E$3:$AH$3,0)-1),MATCH(J$2&\" Score\",'C. PoC Adj Factor Scoring'!$E$4:$J$4,0),TRUE)","v":1},{"$f":"VLOOKUP(OFFSET($B:$B,,MATCH(K$4,$B$4:$F$4,0)-1),OFFSET('C. PoC Adj Factor Scoring'!$E$5:$J$282,,MATCH(K$4,'C. PoC Adj Factor Scoring'!$E$3:$AH$3,0)-1),MATCH(K$2&\" Score\",'C. PoC Adj Factor Scoring'!$E$4:$J$4,0),TRUE)","v":1},{"$f":"VLOOKUP(OFFSET($B:$B,,MATCH(L$4,$B$4:$F$4,0)-1),OFFSET('C. PoC Adj Factor Scoring'!$E$5:$J$282,,MATCH(L$4,'C. PoC Adj Factor Scoring'!$E$3:$AH$3,0)-1),MATCH(L$2&\" Score\",'C. PoC Adj Factor Scoring'!$E$4:$J$4,0),TRUE)","v":1},{"$f":"VLOOKUP(OFFSET($B:$B,,MATCH(M$4,$B$4:$F$4,0)-1),OFFSET('C. PoC Adj Factor Scoring'!$E$5:$J$282,,MATCH(M$4,'C. PoC Adj Factor Scoring'!$E$3:$AH$3,0)-1),MATCH(M$2&\" Score\",'C. PoC Adj Factor Scoring'!$E$4:$J$4,0),TRUE)","v":1},{"$f":"VLOOKUP(OFFSET($B:$B,,MATCH(N$4,$B$4:$F$4,0)-1),OFFSET('C. PoC Adj Factor Scoring'!$E$5:$J$282,,MATCH(N$4,'C. PoC Adj Factor Scoring'!$E$3:$AH$3,0)-1),MATCH(N$2&\" Score\",'C. PoC Adj Factor Scoring'!$E$4:$J$4,0),TRUE)","v":1},{"$f":"VLOOKUP(OFFSET($B:$B,,MATCH(O$4,$B$4:$F$4,0)-1),OFFSET('C. PoC Adj Factor Scoring'!$E$5:$J$282,,MATCH(O$4,'C. PoC Adj Factor Scoring'!$E$3:$AH$3,0)-1),MATCH(O$2&\" Score\",'C. PoC Adj Factor Scoring'!$E$4:$J$4,0),TRUE)","v":1},{"$f":"VLOOKUP(OFFSET($B:$B,,MATCH(P$4,$B$4:$F$4,0)-1),OFFSET('C. PoC Adj Factor Scoring'!$E$5:$J$282,,MATCH(P$4,'C. PoC Adj Factor Scoring'!$E$3:$AH$3,0)-1),MATCH(P$2&\" Score\",'C. PoC Adj Factor Scoring'!$E$4:$J$4,0),TRUE)","v":1},{"$f":"VLOOKUP(OFFSET($B:$B,,MATCH(Q$4,$B$4:$F$4,0)-1),OFFSET('C. PoC Adj Factor Scoring'!$E$5:$J$282,,MATCH(Q$4,'C. PoC Adj Factor Scoring'!$E$3:$AH$3,0)-1),MATCH(Q$2&\" Score\",'C. PoC Adj Factor Scoring'!$E$4:$J$4,0),TRUE)","v":1},{"$f":"VLOOKUP(OFFSET($B:$B,,MATCH(R$4,$B$4:$F$4,0)-1),OFFSET('C. PoC Adj Factor Scoring'!$E$5:$J$282,,MATCH(R$4,'C. PoC Adj Factor Scoring'!$E$3:$AH$3,0)-1),MATCH(R$2&\" Score\",'C. PoC Adj Factor Scoring'!$E$4:$J$4,0),TRUE)","v":1},{"$f":"VLOOKUP(OFFSET($B:$B,,MATCH(S$4,$B$4:$F$4,0)-1),OFFSET('C. PoC Adj Factor Scoring'!$E$5:$J$282,,MATCH(S$4,'C. PoC Adj Factor Scoring'!$E$3:$AH$3,0)-1),MATCH(S$2&\" Score\",'C. PoC Adj Factor Scoring'!$E$4:$J$4,0),TRUE)","v":1},{"$f":"VLOOKUP(OFFSET($B:$B,,MATCH(T$4,$B$4:$F$4,0)-1),OFFSET('C. PoC Adj Factor Scoring'!$E$5:$J$282,,MATCH(T$4,'C. PoC Adj Factor Scoring'!$E$3:$AH$3,0)-1),MATCH(T$2&\" Score\",'C. PoC Adj Factor Scoring'!$E$4:$J$4,0),TRUE)","v":1},{"$f":"VLOOKUP(OFFSET($B:$B,,MATCH(U$4,$B$4:$F$4,0)-1),OFFSET('C. PoC Adj Factor Scoring'!$E$5:$J$282,,MATCH(U$4,'C. PoC Adj Factor Scoring'!$E$3:$AH$3,0)-1),MATCH(U$2&\" Score\",'C. PoC Adj Factor Scoring'!$E$4:$J$4,0),TRUE)","v":1},{"$f":"VLOOKUP(OFFSET($B:$B,,MATCH(V$4,$B$4:$F$4,0)-1),OFFSET('C. PoC Adj Factor Scoring'!$E$5:$J$282,,MATCH(V$4,'C. PoC Adj Factor Scoring'!$E$3:$AH$3,0)-1),MATCH(V$2&\" Score\",'C. PoC Adj Factor Scoring'!$E$4:$J$4,0),TRUE)","v":1},{"$f":"VLOOKUP(OFFSET($B:$B,,MATCH(W$4,$B$4:$F$4,0)-1),OFFSET('C. PoC Adj Factor Scoring'!$E$5:$J$282,,MATCH(W$4,'C. PoC Adj Factor Scoring'!$E$3:$AH$3,0)-1),MATCH(W$2&\" Score\",'C. PoC Adj Factor Scoring'!$E$4:$J$4,0),TRUE)","v":1},{"$f":"VLOOKUP(OFFSET($B:$B,,MATCH(X$4,$B$4:$F$4,0)-1),OFFSET('C. PoC Adj Factor Scoring'!$E$5:$J$282,,MATCH(X$4,'C. PoC Adj Factor Scoring'!$E$3:$AH$3,0)-1),MATCH(X$2&\" Score\",'C. PoC Adj Factor Scoring'!$E$4:$J$4,0),TRUE)","v":1},{"$f":"VLOOKUP(OFFSET($B:$B,,MATCH(Y$4,$B$4:$F$4,0)-1),OFFSET('C. PoC Adj Factor Scoring'!$E$5:$J$282,,MATCH(Y$4,'C. PoC Adj Factor Scoring'!$E$3:$AH$3,0)-1),MATCH(Y$2&\" Score\",'C. PoC Adj Factor Scoring'!$E$4:$J$4,0),TRUE)","v":1},{"$f":"VLOOKUP(OFFSET($B:$B,,MATCH(Z$4,$B$4:$F$4,0)-1),OFFSET('C. PoC Adj Factor Scoring'!$E$5:$J$282,,MATCH(Z$4,'C. PoC Adj Factor Scoring'!$E$3:$AH$3,0)-1),MATCH(Z$2&\" Score\",'C. PoC Adj Factor Scoring'!$E$4:$J$4,0),TRUE)","v":1},{"$f":"VLOOKUP(OFFSET($B:$B,,MATCH(AA$4,$B$4:$F$4,0)-1),OFFSET('C. PoC Adj Factor Scoring'!$E$5:$J$282,,MATCH(AA$4,'C. PoC Adj Factor Scoring'!$E$3:$AH$3,0)-1),MATCH(AA$2&\" Score\",'C. PoC Adj Factor Scoring'!$E$4:$J$4,0),TRUE)","v":3},{"$f":"VLOOKUP(OFFSET($B:$B,,MATCH(AB$4,$B$4:$F$4,0)-1),OFFSET('C. PoC Adj Factor Scoring'!$E$5:$J$282,,MATCH(AB$4,'C. PoC Adj Factor Scoring'!$E$3:$AH$3,0)-1),MATCH(AB$2&\" Score\",'C. PoC Adj Factor Scoring'!$E$4:$J$4,0),TRUE)","v":1},{"$f":"VLOOKUP(OFFSET($B:$B,,MATCH(AC$4,$B$4:$F$4,0)-1),OFFSET('C. PoC Adj Factor Scoring'!$E$5:$J$282,,MATCH(AC$4,'C. PoC Adj Factor Scoring'!$E$3:$AH$3,0)-1),MATCH(AC$2&\" Score\",'C. PoC Adj Factor Scoring'!$E$4:$J$4,0),TRUE)","v":1},{"$f":"VLOOKUP(OFFSET($B:$B,,MATCH(AD$4,$B$4:$F$4,0)-1),OFFSET('C. PoC Adj Factor Scoring'!$E$5:$J$282,,MATCH(AD$4,'C. PoC Adj Factor Scoring'!$E$3:$AH$3,0)-1),MATCH(AD$2&\" Score\",'C. PoC Adj Factor Scoring'!$E$4:$J$4,0),TRUE)","v":1},{"$f":"VLOOKUP(OFFSET($B:$B,,MATCH(AE$4,$B$4:$F$4,0)-1),OFFSET('C. PoC Adj Factor Scoring'!$E$5:$J$282,,MATCH(AE$4,'C. PoC Adj Factor Scoring'!$E$3:$AH$3,0)-1),MATCH(AE$2&\" Score\",'C. PoC Adj Factor Scoring'!$E$4:$J$4,0),TRUE)","v":1}]
[{"$f":"'A. Population Info'!A147","v":1000344336},{"$f":"'A. Population Info'!L147","v":"OIL"},{"$f":"'A. Population Info'!M147","v":0},{"$f":"'A. Population Info'!N147","v":0},{"$f":"'A. Population Info'!O147","v":0},{"$f":"'A. Population Info'!P147","v":0},{"$f":"VLOOKUP(OFFSET($B:$B,,MATCH(G$4,$B$4:$F$4,0)-1),OFFSET('C. PoC Adj Factor Scoring'!$E$5:$J$282,,MATCH(G$4,'C. PoC Adj Factor Scoring'!$E$3:$AH$3,0)-1),MATCH(G$2&\" Score\",'C. PoC Adj Factor Scoring'!$E$4:$J$4,0),TRUE)","v":4},{"$f":"VLOOKUP(OFFSET($B:$B,,MATCH(H$4,$B$4:$F$4,0)-1),OFFSET('C. PoC Adj Factor Scoring'!$E$5:$J$282,,MATCH(H$4,'C. PoC Adj Factor Scoring'!$E$3:$AH$3,0)-1),MATCH(H$2&\" Score\",'C. PoC Adj Factor Scoring'!$E$4:$J$4,0),TRUE)","v":1},{"$f":"VLOOKUP(OFFSET($B:$B,,MATCH(I$4,$B$4:$F$4,0)-1),OFFSET('C. PoC Adj Factor Scoring'!$E$5:$J$282,,MATCH(I$4,'C. PoC Adj Factor Scoring'!$E$3:$AH$3,0)-1),MATCH(I$2&\" Score\",'C. PoC Adj Factor Scoring'!$E$4:$J$4,0),TRUE)","v":1},{"$f":"VLOOKUP(OFFSET($B:$B,,MATCH(J$4,$B$4:$F$4,0)-1),OFFSET('C. PoC Adj Factor Scoring'!$E$5:$J$282,,MATCH(J$4,'C. PoC Adj Factor Scoring'!$E$3:$AH$3,0)-1),MATCH(J$2&\" Score\",'C. PoC Adj Factor Scoring'!$E$4:$J$4,0),TRUE)","v":1},{"$f":"VLOOKUP(OFFSET($B:$B,,MATCH(K$4,$B$4:$F$4,0)-1),OFFSET('C. PoC Adj Factor Scoring'!$E$5:$J$282,,MATCH(K$4,'C. PoC Adj Factor Scoring'!$E$3:$AH$3,0)-1),MATCH(K$2&\" Score\",'C. PoC Adj Factor Scoring'!$E$4:$J$4,0),TRUE)","v":1},{"$f":"VLOOKUP(OFFSET($B:$B,,MATCH(L$4,$B$4:$F$4,0)-1),OFFSET('C. PoC Adj Factor Scoring'!$E$5:$J$282,,MATCH(L$4,'C. PoC Adj Factor Scoring'!$E$3:$AH$3,0)-1),MATCH(L$2&\" Score\",'C. PoC Adj Factor Scoring'!$E$4:$J$4,0),TRUE)","v":1},{"$f":"VLOOKUP(OFFSET($B:$B,,MATCH(M$4,$B$4:$F$4,0)-1),OFFSET('C. PoC Adj Factor Scoring'!$E$5:$J$282,,MATCH(M$4,'C. PoC Adj Factor Scoring'!$E$3:$AH$3,0)-1),MATCH(M$2&\" Score\",'C. PoC Adj Factor Scoring'!$E$4:$J$4,0),TRUE)","v":1},{"$f":"VLOOKUP(OFFSET($B:$B,,MATCH(N$4,$B$4:$F$4,0)-1),OFFSET('C. PoC Adj Factor Scoring'!$E$5:$J$282,,MATCH(N$4,'C. PoC Adj Factor Scoring'!$E$3:$AH$3,0)-1),MATCH(N$2&\" Score\",'C. PoC Adj Factor Scoring'!$E$4:$J$4,0),TRUE)","v":1},{"$f":"VLOOKUP(OFFSET($B:$B,,MATCH(O$4,$B$4:$F$4,0)-1),OFFSET('C. PoC Adj Factor Scoring'!$E$5:$J$282,,MATCH(O$4,'C. PoC Adj Factor Scoring'!$E$3:$AH$3,0)-1),MATCH(O$2&\" Score\",'C. PoC Adj Factor Scoring'!$E$4:$J$4,0),TRUE)","v":1},{"$f":"VLOOKUP(OFFSET($B:$B,,MATCH(P$4,$B$4:$F$4,0)-1),OFFSET('C. PoC Adj Factor Scoring'!$E$5:$J$282,,MATCH(P$4,'C. PoC Adj Factor Scoring'!$E$3:$AH$3,0)-1),MATCH(P$2&\" Score\",'C. PoC Adj Factor Scoring'!$E$4:$J$4,0),TRUE)","v":1},{"$f":"VLOOKUP(OFFSET($B:$B,,MATCH(Q$4,$B$4:$F$4,0)-1),OFFSET('C. PoC Adj Factor Scoring'!$E$5:$J$282,,MATCH(Q$4,'C. PoC Adj Factor Scoring'!$E$3:$AH$3,0)-1),MATCH(Q$2&\" Score\",'C. PoC Adj Factor Scoring'!$E$4:$J$4,0),TRUE)","v":1},{"$f":"VLOOKUP(OFFSET($B:$B,,MATCH(R$4,$B$4:$F$4,0)-1),OFFSET('C. PoC Adj Factor Scoring'!$E$5:$J$282,,MATCH(R$4,'C. PoC Adj Factor Scoring'!$E$3:$AH$3,0)-1),MATCH(R$2&\" Score\",'C. PoC Adj Factor Scoring'!$E$4:$J$4,0),TRUE)","v":1},{"$f":"VLOOKUP(OFFSET($B:$B,,MATCH(S$4,$B$4:$F$4,0)-1),OFFSET('C. PoC Adj Factor Scoring'!$E$5:$J$282,,MATCH(S$4,'C. PoC Adj Factor Scoring'!$E$3:$AH$3,0)-1),MATCH(S$2&\" Score\",'C. PoC Adj Factor Scoring'!$E$4:$J$4,0),TRUE)","v":1},{"$f":"VLOOKUP(OFFSET($B:$B,,MATCH(T$4,$B$4:$F$4,0)-1),OFFSET('C. PoC Adj Factor Scoring'!$E$5:$J$282,,MATCH(T$4,'C. PoC Adj Factor Scoring'!$E$3:$AH$3,0)-1),MATCH(T$2&\" Score\",'C. PoC Adj Factor Scoring'!$E$4:$J$4,0),TRUE)","v":1},{"$f":"VLOOKUP(OFFSET($B:$B,,MATCH(U$4,$B$4:$F$4,0)-1),OFFSET('C. PoC Adj Factor Scoring'!$E$5:$J$282,,MATCH(U$4,'C. PoC Adj Factor Scoring'!$E$3:$AH$3,0)-1),MATCH(U$2&\" Score\",'C. PoC Adj Factor Scoring'!$E$4:$J$4,0),TRUE)","v":1},{"$f":"VLOOKUP(OFFSET($B:$B,,MATCH(V$4,$B$4:$F$4,0)-1),OFFSET('C. PoC Adj Factor Scoring'!$E$5:$J$282,,MATCH(V$4,'C. PoC Adj Factor Scoring'!$E$3:$AH$3,0)-1),MATCH(V$2&\" Score\",'C. PoC Adj Factor Scoring'!$E$4:$J$4,0),TRUE)","v":1},{"$f":"VLOOKUP(OFFSET($B:$B,,MATCH(W$4,$B$4:$F$4,0)-1),OFFSET('C. PoC Adj Factor Scoring'!$E$5:$J$282,,MATCH(W$4,'C. PoC Adj Factor Scoring'!$E$3:$AH$3,0)-1),MATCH(W$2&\" Score\",'C. PoC Adj Factor Scoring'!$E$4:$J$4,0),TRUE)","v":1},{"$f":"VLOOKUP(OFFSET($B:$B,,MATCH(X$4,$B$4:$F$4,0)-1),OFFSET('C. PoC Adj Factor Scoring'!$E$5:$J$282,,MATCH(X$4,'C. PoC Adj Factor Scoring'!$E$3:$AH$3,0)-1),MATCH(X$2&\" Score\",'C. PoC Adj Factor Scoring'!$E$4:$J$4,0),TRUE)","v":1},{"$f":"VLOOKUP(OFFSET($B:$B,,MATCH(Y$4,$B$4:$F$4,0)-1),OFFSET('C. PoC Adj Factor Scoring'!$E$5:$J$282,,MATCH(Y$4,'C. PoC Adj Factor Scoring'!$E$3:$AH$3,0)-1),MATCH(Y$2&\" Score\",'C. PoC Adj Factor Scoring'!$E$4:$J$4,0),TRUE)","v":1},{"$f":"VLOOKUP(OFFSET($B:$B,,MATCH(Z$4,$B$4:$F$4,0)-1),OFFSET('C. PoC Adj Factor Scoring'!$E$5:$J$282,,MATCH(Z$4,'C. PoC Adj Factor Scoring'!$E$3:$AH$3,0)-1),MATCH(Z$2&\" Score\",'C. PoC Adj Factor Scoring'!$E$4:$J$4,0),TRUE)","v":1},{"$f":"VLOOKUP(OFFSET($B:$B,,MATCH(AA$4,$B$4:$F$4,0)-1),OFFSET('C. PoC Adj Factor Scoring'!$E$5:$J$282,,MATCH(AA$4,'C. PoC Adj Factor Scoring'!$E$3:$AH$3,0)-1),MATCH(AA$2&\" Score\",'C. PoC Adj Factor Scoring'!$E$4:$J$4,0),TRUE)","v":3},{"$f":"VLOOKUP(OFFSET($B:$B,,MATCH(AB$4,$B$4:$F$4,0)-1),OFFSET('C. PoC Adj Factor Scoring'!$E$5:$J$282,,MATCH(AB$4,'C. PoC Adj Factor Scoring'!$E$3:$AH$3,0)-1),MATCH(AB$2&\" Score\",'C. PoC Adj Factor Scoring'!$E$4:$J$4,0),TRUE)","v":1},{"$f":"VLOOKUP(OFFSET($B:$B,,MATCH(AC$4,$B$4:$F$4,0)-1),OFFSET('C. PoC Adj Factor Scoring'!$E$5:$J$282,,MATCH(AC$4,'C. PoC Adj Factor Scoring'!$E$3:$AH$3,0)-1),MATCH(AC$2&\" Score\",'C. PoC Adj Factor Scoring'!$E$4:$J$4,0),TRUE)","v":1},{"$f":"VLOOKUP(OFFSET($B:$B,,MATCH(AD$4,$B$4:$F$4,0)-1),OFFSET('C. PoC Adj Factor Scoring'!$E$5:$J$282,,MATCH(AD$4,'C. PoC Adj Factor Scoring'!$E$3:$AH$3,0)-1),MATCH(AD$2&\" Score\",'C. PoC Adj Factor Scoring'!$E$4:$J$4,0),TRUE)","v":1},{"$f":"VLOOKUP(OFFSET($B:$B,,MATCH(AE$4,$B$4:$F$4,0)-1),OFFSET('C. PoC Adj Factor Scoring'!$E$5:$J$282,,MATCH(AE$4,'C. PoC Adj Factor Scoring'!$E$3:$AH$3,0)-1),MATCH(AE$2&\" Score\",'C. PoC Adj Factor Scoring'!$E$4:$J$4,0),TRUE)","v":1}]
[{"$f":"'A. Population Info'!A148","v":1000344368},{"$f":"'A. Population Info'!L148","v":"OIL"},{"$f":"'A. Population Info'!M148","v":0},{"$f":"'A. Population Info'!N148","v":0},{"$f":"'A. Population Info'!O148","v":0},{"$f":"'A. Population Info'!P148","v":0},{"$f":"VLOOKUP(OFFSET($B:$B,,MATCH(G$4,$B$4:$F$4,0)-1),OFFSET('C. PoC Adj Factor Scoring'!$E$5:$J$282,,MATCH(G$4,'C. PoC Adj Factor Scoring'!$E$3:$AH$3,0)-1),MATCH(G$2&\" Score\",'C. PoC Adj Factor Scoring'!$E$4:$J$4,0),TRUE)","v":4},{"$f":"VLOOKUP(OFFSET($B:$B,,MATCH(H$4,$B$4:$F$4,0)-1),OFFSET('C. PoC Adj Factor Scoring'!$E$5:$J$282,,MATCH(H$4,'C. PoC Adj Factor Scoring'!$E$3:$AH$3,0)-1),MATCH(H$2&\" Score\",'C. PoC Adj Factor Scoring'!$E$4:$J$4,0),TRUE)","v":1},{"$f":"VLOOKUP(OFFSET($B:$B,,MATCH(I$4,$B$4:$F$4,0)-1),OFFSET('C. PoC Adj Factor Scoring'!$E$5:$J$282,,MATCH(I$4,'C. PoC Adj Factor Scoring'!$E$3:$AH$3,0)-1),MATCH(I$2&\" Score\",'C. PoC Adj Factor Scoring'!$E$4:$J$4,0),TRUE)","v":1},{"$f":"VLOOKUP(OFFSET($B:$B,,MATCH(J$4,$B$4:$F$4,0)-1),OFFSET('C. PoC Adj Factor Scoring'!$E$5:$J$282,,MATCH(J$4,'C. PoC Adj Factor Scoring'!$E$3:$AH$3,0)-1),MATCH(J$2&\" Score\",'C. PoC Adj Factor Scoring'!$E$4:$J$4,0),TRUE)","v":1},{"$f":"VLOOKUP(OFFSET($B:$B,,MATCH(K$4,$B$4:$F$4,0)-1),OFFSET('C. PoC Adj Factor Scoring'!$E$5:$J$282,,MATCH(K$4,'C. PoC Adj Factor Scoring'!$E$3:$AH$3,0)-1),MATCH(K$2&\" Score\",'C. PoC Adj Factor Scoring'!$E$4:$J$4,0),TRUE)","v":1},{"$f":"VLOOKUP(OFFSET($B:$B,,MATCH(L$4,$B$4:$F$4,0)-1),OFFSET('C. PoC Adj Factor Scoring'!$E$5:$J$282,,MATCH(L$4,'C. PoC Adj Factor Scoring'!$E$3:$AH$3,0)-1),MATCH(L$2&\" Score\",'C. PoC Adj Factor Scoring'!$E$4:$J$4,0),TRUE)","v":1},{"$f":"VLOOKUP(OFFSET($B:$B,,MATCH(M$4,$B$4:$F$4,0)-1),OFFSET('C. PoC Adj Factor Scoring'!$E$5:$J$282,,MATCH(M$4,'C. PoC Adj Factor Scoring'!$E$3:$AH$3,0)-1),MATCH(M$2&\" Score\",'C. PoC Adj Factor Scoring'!$E$4:$J$4,0),TRUE)","v":1},{"$f":"VLOOKUP(OFFSET($B:$B,,MATCH(N$4,$B$4:$F$4,0)-1),OFFSET('C. PoC Adj Factor Scoring'!$E$5:$J$282,,MATCH(N$4,'C. PoC Adj Factor Scoring'!$E$3:$AH$3,0)-1),MATCH(N$2&\" Score\",'C. PoC Adj Factor Scoring'!$E$4:$J$4,0),TRUE)","v":1},{"$f":"VLOOKUP(OFFSET($B:$B,,MATCH(O$4,$B$4:$F$4,0)-1),OFFSET('C. PoC Adj Factor Scoring'!$E$5:$J$282,,MATCH(O$4,'C. PoC Adj Factor Scoring'!$E$3:$AH$3,0)-1),MATCH(O$2&\" Score\",'C. PoC Adj Factor Scoring'!$E$4:$J$4,0),TRUE)","v":1},{"$f":"VLOOKUP(OFFSET($B:$B,,MATCH(P$4,$B$4:$F$4,0)-1),OFFSET('C. PoC Adj Factor Scoring'!$E$5:$J$282,,MATCH(P$4,'C. PoC Adj Factor Scoring'!$E$3:$AH$3,0)-1),MATCH(P$2&\" Score\",'C. PoC Adj Factor Scoring'!$E$4:$J$4,0),TRUE)","v":1},{"$f":"VLOOKUP(OFFSET($B:$B,,MATCH(Q$4,$B$4:$F$4,0)-1),OFFSET('C. PoC Adj Factor Scoring'!$E$5:$J$282,,MATCH(Q$4,'C. PoC Adj Factor Scoring'!$E$3:$AH$3,0)-1),MATCH(Q$2&\" Score\",'C. PoC Adj Factor Scoring'!$E$4:$J$4,0),TRUE)","v":1},{"$f":"VLOOKUP(OFFSET($B:$B,,MATCH(R$4,$B$4:$F$4,0)-1),OFFSET('C. PoC Adj Factor Scoring'!$E$5:$J$282,,MATCH(R$4,'C. PoC Adj Factor Scoring'!$E$3:$AH$3,0)-1),MATCH(R$2&\" Score\",'C. PoC Adj Factor Scoring'!$E$4:$J$4,0),TRUE)","v":1},{"$f":"VLOOKUP(OFFSET($B:$B,,MATCH(S$4,$B$4:$F$4,0)-1),OFFSET('C. PoC Adj Factor Scoring'!$E$5:$J$282,,MATCH(S$4,'C. PoC Adj Factor Scoring'!$E$3:$AH$3,0)-1),MATCH(S$2&\" Score\",'C. PoC Adj Factor Scoring'!$E$4:$J$4,0),TRUE)","v":1},{"$f":"VLOOKUP(OFFSET($B:$B,,MATCH(T$4,$B$4:$F$4,0)-1),OFFSET('C. PoC Adj Factor Scoring'!$E$5:$J$282,,MATCH(T$4,'C. PoC Adj Factor Scoring'!$E$3:$AH$3,0)-1),MATCH(T$2&\" Score\",'C. PoC Adj Factor Scoring'!$E$4:$J$4,0),TRUE)","v":1},{"$f":"VLOOKUP(OFFSET($B:$B,,MATCH(U$4,$B$4:$F$4,0)-1),OFFSET('C. PoC Adj Factor Scoring'!$E$5:$J$282,,MATCH(U$4,'C. PoC Adj Factor Scoring'!$E$3:$AH$3,0)-1),MATCH(U$2&\" Score\",'C. PoC Adj Factor Scoring'!$E$4:$J$4,0),TRUE)","v":1},{"$f":"VLOOKUP(OFFSET($B:$B,,MATCH(V$4,$B$4:$F$4,0)-1),OFFSET('C. PoC Adj Factor Scoring'!$E$5:$J$282,,MATCH(V$4,'C. PoC Adj Factor Scoring'!$E$3:$AH$3,0)-1),MATCH(V$2&\" Score\",'C. PoC Adj Factor Scoring'!$E$4:$J$4,0),TRUE)","v":1},{"$f":"VLOOKUP(OFFSET($B:$B,,MATCH(W$4,$B$4:$F$4,0)-1),OFFSET('C. PoC Adj Factor Scoring'!$E$5:$J$282,,MATCH(W$4,'C. PoC Adj Factor Scoring'!$E$3:$AH$3,0)-1),MATCH(W$2&\" Score\",'C. PoC Adj Factor Scoring'!$E$4:$J$4,0),TRUE)","v":1},{"$f":"VLOOKUP(OFFSET($B:$B,,MATCH(X$4,$B$4:$F$4,0)-1),OFFSET('C. PoC Adj Factor Scoring'!$E$5:$J$282,,MATCH(X$4,'C. PoC Adj Factor Scoring'!$E$3:$AH$3,0)-1),MATCH(X$2&\" Score\",'C. PoC Adj Factor Scoring'!$E$4:$J$4,0),TRUE)","v":1},{"$f":"VLOOKUP(OFFSET($B:$B,,MATCH(Y$4,$B$4:$F$4,0)-1),OFFSET('C. PoC Adj Factor Scoring'!$E$5:$J$282,,MATCH(Y$4,'C. PoC Adj Factor Scoring'!$E$3:$AH$3,0)-1),MATCH(Y$2&\" Score\",'C. PoC Adj Factor Scoring'!$E$4:$J$4,0),TRUE)","v":1},{"$f":"VLOOKUP(OFFSET($B:$B,,MATCH(Z$4,$B$4:$F$4,0)-1),OFFSET('C. PoC Adj Factor Scoring'!$E$5:$J$282,,MATCH(Z$4,'C. PoC Adj Factor Scoring'!$E$3:$AH$3,0)-1),MATCH(Z$2&\" Score\",'C. PoC Adj Factor Scoring'!$E$4:$J$4,0),TRUE)","v":1},{"$f":"VLOOKUP(OFFSET($B:$B,,MATCH(AA$4,$B$4:$F$4,0)-1),OFFSET('C. PoC Adj Factor Scoring'!$E$5:$J$282,,MATCH(AA$4,'C. PoC Adj Factor Scoring'!$E$3:$AH$3,0)-1),MATCH(AA$2&\" Score\",'C. PoC Adj Factor Scoring'!$E$4:$J$4,0),TRUE)","v":3},{"$f":"VLOOKUP(OFFSET($B:$B,,MATCH(AB$4,$B$4:$F$4,0)-1),OFFSET('C. PoC Adj Factor Scoring'!$E$5:$J$282,,MATCH(AB$4,'C. PoC Adj Factor Scoring'!$E$3:$AH$3,0)-1),MATCH(AB$2&\" Score\",'C. PoC Adj Factor Scoring'!$E$4:$J$4,0),TRUE)","v":1},{"$f":"VLOOKUP(OFFSET($B:$B,,MATCH(AC$4,$B$4:$F$4,0)-1),OFFSET('C. PoC Adj Factor Scoring'!$E$5:$J$282,,MATCH(AC$4,'C. PoC Adj Factor Scoring'!$E$3:$AH$3,0)-1),MATCH(AC$2&\" Score\",'C. PoC Adj Factor Scoring'!$E$4:$J$4,0),TRUE)","v":1},{"$f":"VLOOKUP(OFFSET($B:$B,,MATCH(AD$4,$B$4:$F$4,0)-1),OFFSET('C. PoC Adj Factor Scoring'!$E$5:$J$282,,MATCH(AD$4,'C. PoC Adj Factor Scoring'!$E$3:$AH$3,0)-1),MATCH(AD$2&\" Score\",'C. PoC Adj Factor Scoring'!$E$4:$J$4,0),TRUE)","v":1},{"$f":"VLOOKUP(OFFSET($B:$B,,MATCH(AE$4,$B$4:$F$4,0)-1),OFFSET('C. PoC Adj Factor Scoring'!$E$5:$J$282,,MATCH(AE$4,'C. PoC Adj Factor Scoring'!$E$3:$AH$3,0)-1),MATCH(AE$2&\" Score\",'C. PoC Adj Factor Scoring'!$E$4:$J$4,0),TRUE)","v":1}]
[{"$f":"'A. Population Info'!A149","v":1000344393},{"$f":"'A. Population Info'!L149","v":"OIL"},{"$f":"'A. Population Info'!M149","v":0},{"$f":"'A. Population Info'!N149","v":0},{"$f":"'A. Population Info'!O149","v":0},{"$f":"'A. Population Info'!P149","v":0},{"$f":"VLOOKUP(OFFSET($B:$B,,MATCH(G$4,$B$4:$F$4,0)-1),OFFSET('C. PoC Adj Factor Scoring'!$E$5:$J$282,,MATCH(G$4,'C. PoC Adj Factor Scoring'!$E$3:$AH$3,0)-1),MATCH(G$2&\" Score\",'C. PoC Adj Factor Scoring'!$E$4:$J$4,0),TRUE)","v":4},{"$f":"VLOOKUP(OFFSET($B:$B,,MATCH(H$4,$B$4:$F$4,0)-1),OFFSET('C. PoC Adj Factor Scoring'!$E$5:$J$282,,MATCH(H$4,'C. PoC Adj Factor Scoring'!$E$3:$AH$3,0)-1),MATCH(H$2&\" Score\",'C. PoC Adj Factor Scoring'!$E$4:$J$4,0),TRUE)","v":1},{"$f":"VLOOKUP(OFFSET($B:$B,,MATCH(I$4,$B$4:$F$4,0)-1),OFFSET('C. PoC Adj Factor Scoring'!$E$5:$J$282,,MATCH(I$4,'C. PoC Adj Factor Scoring'!$E$3:$AH$3,0)-1),MATCH(I$2&\" Score\",'C. PoC Adj Factor Scoring'!$E$4:$J$4,0),TRUE)","v":1},{"$f":"VLOOKUP(OFFSET($B:$B,,MATCH(J$4,$B$4:$F$4,0)-1),OFFSET('C. PoC Adj Factor Scoring'!$E$5:$J$282,,MATCH(J$4,'C. PoC Adj Factor Scoring'!$E$3:$AH$3,0)-1),MATCH(J$2&\" Score\",'C. PoC Adj Factor Scoring'!$E$4:$J$4,0),TRUE)","v":1},{"$f":"VLOOKUP(OFFSET($B:$B,,MATCH(K$4,$B$4:$F$4,0)-1),OFFSET('C. PoC Adj Factor Scoring'!$E$5:$J$282,,MATCH(K$4,'C. PoC Adj Factor Scoring'!$E$3:$AH$3,0)-1),MATCH(K$2&\" Score\",'C. PoC Adj Factor Scoring'!$E$4:$J$4,0),TRUE)","v":1},{"$f":"VLOOKUP(OFFSET($B:$B,,MATCH(L$4,$B$4:$F$4,0)-1),OFFSET('C. PoC Adj Factor Scoring'!$E$5:$J$282,,MATCH(L$4,'C. PoC Adj Factor Scoring'!$E$3:$AH$3,0)-1),MATCH(L$2&\" Score\",'C. PoC Adj Factor Scoring'!$E$4:$J$4,0),TRUE)","v":1},{"$f":"VLOOKUP(OFFSET($B:$B,,MATCH(M$4,$B$4:$F$4,0)-1),OFFSET('C. PoC Adj Factor Scoring'!$E$5:$J$282,,MATCH(M$4,'C. PoC Adj Factor Scoring'!$E$3:$AH$3,0)-1),MATCH(M$2&\" Score\",'C. PoC Adj Factor Scoring'!$E$4:$J$4,0),TRUE)","v":1},{"$f":"VLOOKUP(OFFSET($B:$B,,MATCH(N$4,$B$4:$F$4,0)-1),OFFSET('C. PoC Adj Factor Scoring'!$E$5:$J$282,,MATCH(N$4,'C. PoC Adj Factor Scoring'!$E$3:$AH$3,0)-1),MATCH(N$2&\" Score\",'C. PoC Adj Factor Scoring'!$E$4:$J$4,0),TRUE)","v":1},{"$f":"VLOOKUP(OFFSET($B:$B,,MATCH(O$4,$B$4:$F$4,0)-1),OFFSET('C. PoC Adj Factor Scoring'!$E$5:$J$282,,MATCH(O$4,'C. PoC Adj Factor Scoring'!$E$3:$AH$3,0)-1),MATCH(O$2&\" Score\",'C. PoC Adj Factor Scoring'!$E$4:$J$4,0),TRUE)","v":1},{"$f":"VLOOKUP(OFFSET($B:$B,,MATCH(P$4,$B$4:$F$4,0)-1),OFFSET('C. PoC Adj Factor Scoring'!$E$5:$J$282,,MATCH(P$4,'C. PoC Adj Factor Scoring'!$E$3:$AH$3,0)-1),MATCH(P$2&\" Score\",'C. PoC Adj Factor Scoring'!$E$4:$J$4,0),TRUE)","v":1},{"$f":"VLOOKUP(OFFSET($B:$B,,MATCH(Q$4,$B$4:$F$4,0)-1),OFFSET('C. PoC Adj Factor Scoring'!$E$5:$J$282,,MATCH(Q$4,'C. PoC Adj Factor Scoring'!$E$3:$AH$3,0)-1),MATCH(Q$2&\" Score\",'C. PoC Adj Factor Scoring'!$E$4:$J$4,0),TRUE)","v":1},{"$f":"VLOOKUP(OFFSET($B:$B,,MATCH(R$4,$B$4:$F$4,0)-1),OFFSET('C. PoC Adj Factor Scoring'!$E$5:$J$282,,MATCH(R$4,'C. PoC Adj Factor Scoring'!$E$3:$AH$3,0)-1),MATCH(R$2&\" Score\",'C. PoC Adj Factor Scoring'!$E$4:$J$4,0),TRUE)","v":1},{"$f":"VLOOKUP(OFFSET($B:$B,,MATCH(S$4,$B$4:$F$4,0)-1),OFFSET('C. PoC Adj Factor Scoring'!$E$5:$J$282,,MATCH(S$4,'C. PoC Adj Factor Scoring'!$E$3:$AH$3,0)-1),MATCH(S$2&\" Score\",'C. PoC Adj Factor Scoring'!$E$4:$J$4,0),TRUE)","v":1},{"$f":"VLOOKUP(OFFSET($B:$B,,MATCH(T$4,$B$4:$F$4,0)-1),OFFSET('C. PoC Adj Factor Scoring'!$E$5:$J$282,,MATCH(T$4,'C. PoC Adj Factor Scoring'!$E$3:$AH$3,0)-1),MATCH(T$2&\" Score\",'C. PoC Adj Factor Scoring'!$E$4:$J$4,0),TRUE)","v":1},{"$f":"VLOOKUP(OFFSET($B:$B,,MATCH(U$4,$B$4:$F$4,0)-1),OFFSET('C. PoC Adj Factor Scoring'!$E$5:$J$282,,MATCH(U$4,'C. PoC Adj Factor Scoring'!$E$3:$AH$3,0)-1),MATCH(U$2&\" Score\",'C. PoC Adj Factor Scoring'!$E$4:$J$4,0),TRUE)","v":1},{"$f":"VLOOKUP(OFFSET($B:$B,,MATCH(V$4,$B$4:$F$4,0)-1),OFFSET('C. PoC Adj Factor Scoring'!$E$5:$J$282,,MATCH(V$4,'C. PoC Adj Factor Scoring'!$E$3:$AH$3,0)-1),MATCH(V$2&\" Score\",'C. PoC Adj Factor Scoring'!$E$4:$J$4,0),TRUE)","v":1},{"$f":"VLOOKUP(OFFSET($B:$B,,MATCH(W$4,$B$4:$F$4,0)-1),OFFSET('C. PoC Adj Factor Scoring'!$E$5:$J$282,,MATCH(W$4,'C. PoC Adj Factor Scoring'!$E$3:$AH$3,0)-1),MATCH(W$2&\" Score\",'C. PoC Adj Factor Scoring'!$E$4:$J$4,0),TRUE)","v":1},{"$f":"VLOOKUP(OFFSET($B:$B,,MATCH(X$4,$B$4:$F$4,0)-1),OFFSET('C. PoC Adj Factor Scoring'!$E$5:$J$282,,MATCH(X$4,'C. PoC Adj Factor Scoring'!$E$3:$AH$3,0)-1),MATCH(X$2&\" Score\",'C. PoC Adj Factor Scoring'!$E$4:$J$4,0),TRUE)","v":1},{"$f":"VLOOKUP(OFFSET($B:$B,,MATCH(Y$4,$B$4:$F$4,0)-1),OFFSET('C. PoC Adj Factor Scoring'!$E$5:$J$282,,MATCH(Y$4,'C. PoC Adj Factor Scoring'!$E$3:$AH$3,0)-1),MATCH(Y$2&\" Score\",'C. PoC Adj Factor Scoring'!$E$4:$J$4,0),TRUE)","v":1},{"$f":"VLOOKUP(OFFSET($B:$B,,MATCH(Z$4,$B$4:$F$4,0)-1),OFFSET('C. PoC Adj Factor Scoring'!$E$5:$J$282,,MATCH(Z$4,'C. PoC Adj Factor Scoring'!$E$3:$AH$3,0)-1),MATCH(Z$2&\" Score\",'C. PoC Adj Factor Scoring'!$E$4:$J$4,0),TRUE)","v":1},{"$f":"VLOOKUP(OFFSET($B:$B,,MATCH(AA$4,$B$4:$F$4,0)-1),OFFSET('C. PoC Adj Factor Scoring'!$E$5:$J$282,,MATCH(AA$4,'C. PoC Adj Factor Scoring'!$E$3:$AH$3,0)-1),MATCH(AA$2&\" Score\",'C. PoC Adj Factor Scoring'!$E$4:$J$4,0),TRUE)","v":3},{"$f":"VLOOKUP(OFFSET($B:$B,,MATCH(AB$4,$B$4:$F$4,0)-1),OFFSET('C. PoC Adj Factor Scoring'!$E$5:$J$282,,MATCH(AB$4,'C. PoC Adj Factor Scoring'!$E$3:$AH$3,0)-1),MATCH(AB$2&\" Score\",'C. PoC Adj Factor Scoring'!$E$4:$J$4,0),TRUE)","v":1},{"$f":"VLOOKUP(OFFSET($B:$B,,MATCH(AC$4,$B$4:$F$4,0)-1),OFFSET('C. PoC Adj Factor Scoring'!$E$5:$J$282,,MATCH(AC$4,'C. PoC Adj Factor Scoring'!$E$3:$AH$3,0)-1),MATCH(AC$2&\" Score\",'C. PoC Adj Factor Scoring'!$E$4:$J$4,0),TRUE)","v":1},{"$f":"VLOOKUP(OFFSET($B:$B,,MATCH(AD$4,$B$4:$F$4,0)-1),OFFSET('C. PoC Adj Factor Scoring'!$E$5:$J$282,,MATCH(AD$4,'C. PoC Adj Factor Scoring'!$E$3:$AH$3,0)-1),MATCH(AD$2&\" Score\",'C. PoC Adj Factor Scoring'!$E$4:$J$4,0),TRUE)","v":1},{"$f":"VLOOKUP(OFFSET($B:$B,,MATCH(AE$4,$B$4:$F$4,0)-1),OFFSET('C. PoC Adj Factor Scoring'!$E$5:$J$282,,MATCH(AE$4,'C. PoC Adj Factor Scoring'!$E$3:$AH$3,0)-1),MATCH(AE$2&\" Score\",'C. PoC Adj Factor Scoring'!$E$4:$J$4,0),TRUE)","v":1}]
[{"$f":"'A. Population Info'!A150","v":1000344489},{"$f":"'A. Population Info'!L150","v":"OIL"},{"$f":"'A. Population Info'!M150","v":0},{"$f":"'A. Population Info'!N150","v":0},{"$f":"'A. Population Info'!O150","v":0},{"$f":"'A. Population Info'!P150","v":0},{"$f":"VLOOKUP(OFFSET($B:$B,,MATCH(G$4,$B$4:$F$4,0)-1),OFFSET('C. PoC Adj Factor Scoring'!$E$5:$J$282,,MATCH(G$4,'C. PoC Adj Factor Scoring'!$E$3:$AH$3,0)-1),MATCH(G$2&\" Score\",'C. PoC Adj Factor Scoring'!$E$4:$J$4,0),TRUE)","v":4},{"$f":"VLOOKUP(OFFSET($B:$B,,MATCH(H$4,$B$4:$F$4,0)-1),OFFSET('C. PoC Adj Factor Scoring'!$E$5:$J$282,,MATCH(H$4,'C. PoC Adj Factor Scoring'!$E$3:$AH$3,0)-1),MATCH(H$2&\" Score\",'C. PoC Adj Factor Scoring'!$E$4:$J$4,0),TRUE)","v":1},{"$f":"VLOOKUP(OFFSET($B:$B,,MATCH(I$4,$B$4:$F$4,0)-1),OFFSET('C. PoC Adj Factor Scoring'!$E$5:$J$282,,MATCH(I$4,'C. PoC Adj Factor Scoring'!$E$3:$AH$3,0)-1),MATCH(I$2&\" Score\",'C. PoC Adj Factor Scoring'!$E$4:$J$4,0),TRUE)","v":1},{"$f":"VLOOKUP(OFFSET($B:$B,,MATCH(J$4,$B$4:$F$4,0)-1),OFFSET('C. PoC Adj Factor Scoring'!$E$5:$J$282,,MATCH(J$4,'C. PoC Adj Factor Scoring'!$E$3:$AH$3,0)-1),MATCH(J$2&\" Score\",'C. PoC Adj Factor Scoring'!$E$4:$J$4,0),TRUE)","v":1},{"$f":"VLOOKUP(OFFSET($B:$B,,MATCH(K$4,$B$4:$F$4,0)-1),OFFSET('C. PoC Adj Factor Scoring'!$E$5:$J$282,,MATCH(K$4,'C. PoC Adj Factor Scoring'!$E$3:$AH$3,0)-1),MATCH(K$2&\" Score\",'C. PoC Adj Factor Scoring'!$E$4:$J$4,0),TRUE)","v":1},{"$f":"VLOOKUP(OFFSET($B:$B,,MATCH(L$4,$B$4:$F$4,0)-1),OFFSET('C. PoC Adj Factor Scoring'!$E$5:$J$282,,MATCH(L$4,'C. PoC Adj Factor Scoring'!$E$3:$AH$3,0)-1),MATCH(L$2&\" Score\",'C. PoC Adj Factor Scoring'!$E$4:$J$4,0),TRUE)","v":1},{"$f":"VLOOKUP(OFFSET($B:$B,,MATCH(M$4,$B$4:$F$4,0)-1),OFFSET('C. PoC Adj Factor Scoring'!$E$5:$J$282,,MATCH(M$4,'C. PoC Adj Factor Scoring'!$E$3:$AH$3,0)-1),MATCH(M$2&\" Score\",'C. PoC Adj Factor Scoring'!$E$4:$J$4,0),TRUE)","v":1},{"$f":"VLOOKUP(OFFSET($B:$B,,MATCH(N$4,$B$4:$F$4,0)-1),OFFSET('C. PoC Adj Factor Scoring'!$E$5:$J$282,,MATCH(N$4,'C. PoC Adj Factor Scoring'!$E$3:$AH$3,0)-1),MATCH(N$2&\" Score\",'C. PoC Adj Factor Scoring'!$E$4:$J$4,0),TRUE)","v":1},{"$f":"VLOOKUP(OFFSET($B:$B,,MATCH(O$4,$B$4:$F$4,0)-1),OFFSET('C. PoC Adj Factor Scoring'!$E$5:$J$282,,MATCH(O$4,'C. PoC Adj Factor Scoring'!$E$3:$AH$3,0)-1),MATCH(O$2&\" Score\",'C. PoC Adj Factor Scoring'!$E$4:$J$4,0),TRUE)","v":1},{"$f":"VLOOKUP(OFFSET($B:$B,,MATCH(P$4,$B$4:$F$4,0)-1),OFFSET('C. PoC Adj Factor Scoring'!$E$5:$J$282,,MATCH(P$4,'C. PoC Adj Factor Scoring'!$E$3:$AH$3,0)-1),MATCH(P$2&\" Score\",'C. PoC Adj Factor Scoring'!$E$4:$J$4,0),TRUE)","v":1},{"$f":"VLOOKUP(OFFSET($B:$B,,MATCH(Q$4,$B$4:$F$4,0)-1),OFFSET('C. PoC Adj Factor Scoring'!$E$5:$J$282,,MATCH(Q$4,'C. PoC Adj Factor Scoring'!$E$3:$AH$3,0)-1),MATCH(Q$2&\" Score\",'C. PoC Adj Factor Scoring'!$E$4:$J$4,0),TRUE)","v":1},{"$f":"VLOOKUP(OFFSET($B:$B,,MATCH(R$4,$B$4:$F$4,0)-1),OFFSET('C. PoC Adj Factor Scoring'!$E$5:$J$282,,MATCH(R$4,'C. PoC Adj Factor Scoring'!$E$3:$AH$3,0)-1),MATCH(R$2&\" Score\",'C. PoC Adj Factor Scoring'!$E$4:$J$4,0),TRUE)","v":1},{"$f":"VLOOKUP(OFFSET($B:$B,,MATCH(S$4,$B$4:$F$4,0)-1),OFFSET('C. PoC Adj Factor Scoring'!$E$5:$J$282,,MATCH(S$4,'C. PoC Adj Factor Scoring'!$E$3:$AH$3,0)-1),MATCH(S$2&\" Score\",'C. PoC Adj Factor Scoring'!$E$4:$J$4,0),TRUE)","v":1},{"$f":"VLOOKUP(OFFSET($B:$B,,MATCH(T$4,$B$4:$F$4,0)-1),OFFSET('C. PoC Adj Factor Scoring'!$E$5:$J$282,,MATCH(T$4,'C. PoC Adj Factor Scoring'!$E$3:$AH$3,0)-1),MATCH(T$2&\" Score\",'C. PoC Adj Factor Scoring'!$E$4:$J$4,0),TRUE)","v":1},{"$f":"VLOOKUP(OFFSET($B:$B,,MATCH(U$4,$B$4:$F$4,0)-1),OFFSET('C. PoC Adj Factor Scoring'!$E$5:$J$282,,MATCH(U$4,'C. PoC Adj Factor Scoring'!$E$3:$AH$3,0)-1),MATCH(U$2&\" Score\",'C. PoC Adj Factor Scoring'!$E$4:$J$4,0),TRUE)","v":1},{"$f":"VLOOKUP(OFFSET($B:$B,,MATCH(V$4,$B$4:$F$4,0)-1),OFFSET('C. PoC Adj Factor Scoring'!$E$5:$J$282,,MATCH(V$4,'C. PoC Adj Factor Scoring'!$E$3:$AH$3,0)-1),MATCH(V$2&\" Score\",'C. PoC Adj Factor Scoring'!$E$4:$J$4,0),TRUE)","v":1},{"$f":"VLOOKUP(OFFSET($B:$B,,MATCH(W$4,$B$4:$F$4,0)-1),OFFSET('C. PoC Adj Factor Scoring'!$E$5:$J$282,,MATCH(W$4,'C. PoC Adj Factor Scoring'!$E$3:$AH$3,0)-1),MATCH(W$2&\" Score\",'C. PoC Adj Factor Scoring'!$E$4:$J$4,0),TRUE)","v":1},{"$f":"VLOOKUP(OFFSET($B:$B,,MATCH(X$4,$B$4:$F$4,0)-1),OFFSET('C. PoC Adj Factor Scoring'!$E$5:$J$282,,MATCH(X$4,'C. PoC Adj Factor Scoring'!$E$3:$AH$3,0)-1),MATCH(X$2&\" Score\",'C. PoC Adj Factor Scoring'!$E$4:$J$4,0),TRUE)","v":1},{"$f":"VLOOKUP(OFFSET($B:$B,,MATCH(Y$4,$B$4:$F$4,0)-1),OFFSET('C. PoC Adj Factor Scoring'!$E$5:$J$282,,MATCH(Y$4,'C. PoC Adj Factor Scoring'!$E$3:$AH$3,0)-1),MATCH(Y$2&\" Score\",'C. PoC Adj Factor Scoring'!$E$4:$J$4,0),TRUE)","v":1},{"$f":"VLOOKUP(OFFSET($B:$B,,MATCH(Z$4,$B$4:$F$4,0)-1),OFFSET('C. PoC Adj Factor Scoring'!$E$5:$J$282,,MATCH(Z$4,'C. PoC Adj Factor Scoring'!$E$3:$AH$3,0)-1),MATCH(Z$2&\" Score\",'C. PoC Adj Factor Scoring'!$E$4:$J$4,0),TRUE)","v":1},{"$f":"VLOOKUP(OFFSET($B:$B,,MATCH(AA$4,$B$4:$F$4,0)-1),OFFSET('C. PoC Adj Factor Scoring'!$E$5:$J$282,,MATCH(AA$4,'C. PoC Adj Factor Scoring'!$E$3:$AH$3,0)-1),MATCH(AA$2&\" Score\",'C. PoC Adj Factor Scoring'!$E$4:$J$4,0),TRUE)","v":3},{"$f":"VLOOKUP(OFFSET($B:$B,,MATCH(AB$4,$B$4:$F$4,0)-1),OFFSET('C. PoC Adj Factor Scoring'!$E$5:$J$282,,MATCH(AB$4,'C. PoC Adj Factor Scoring'!$E$3:$AH$3,0)-1),MATCH(AB$2&\" Score\",'C. PoC Adj Factor Scoring'!$E$4:$J$4,0),TRUE)","v":1},{"$f":"VLOOKUP(OFFSET($B:$B,,MATCH(AC$4,$B$4:$F$4,0)-1),OFFSET('C. PoC Adj Factor Scoring'!$E$5:$J$282,,MATCH(AC$4,'C. PoC Adj Factor Scoring'!$E$3:$AH$3,0)-1),MATCH(AC$2&\" Score\",'C. PoC Adj Factor Scoring'!$E$4:$J$4,0),TRUE)","v":1},{"$f":"VLOOKUP(OFFSET($B:$B,,MATCH(AD$4,$B$4:$F$4,0)-1),OFFSET('C. PoC Adj Factor Scoring'!$E$5:$J$282,,MATCH(AD$4,'C. PoC Adj Factor Scoring'!$E$3:$AH$3,0)-1),MATCH(AD$2&\" Score\",'C. PoC Adj Factor Scoring'!$E$4:$J$4,0),TRUE)","v":1},{"$f":"VLOOKUP(OFFSET($B:$B,,MATCH(AE$4,$B$4:$F$4,0)-1),OFFSET('C. PoC Adj Factor Scoring'!$E$5:$J$282,,MATCH(AE$4,'C. PoC Adj Factor Scoring'!$E$3:$AH$3,0)-1),MATCH(AE$2&\" Score\",'C. PoC Adj Factor Scoring'!$E$4:$J$4,0),TRUE)","v":1}]
[{"$f":"'A. Population Info'!A151","v":1000344516},{"$f":"'A. Population Info'!L151","v":"OIL"},{"$f":"'A. Population Info'!M151","v":0},{"$f":"'A. Population Info'!N151","v":0},{"$f":"'A. Population Info'!O151","v":0},{"$f":"'A. Population Info'!P151","v":0},{"$f":"VLOOKUP(OFFSET($B:$B,,MATCH(G$4,$B$4:$F$4,0)-1),OFFSET('C. PoC Adj Factor Scoring'!$E$5:$J$282,,MATCH(G$4,'C. PoC Adj Factor Scoring'!$E$3:$AH$3,0)-1),MATCH(G$2&\" Score\",'C. PoC Adj Factor Scoring'!$E$4:$J$4,0),TRUE)","v":4},{"$f":"VLOOKUP(OFFSET($B:$B,,MATCH(H$4,$B$4:$F$4,0)-1),OFFSET('C. PoC Adj Factor Scoring'!$E$5:$J$282,,MATCH(H$4,'C. PoC Adj Factor Scoring'!$E$3:$AH$3,0)-1),MATCH(H$2&\" Score\",'C. PoC Adj Factor Scoring'!$E$4:$J$4,0),TRUE)","v":1},{"$f":"VLOOKUP(OFFSET($B:$B,,MATCH(I$4,$B$4:$F$4,0)-1),OFFSET('C. PoC Adj Factor Scoring'!$E$5:$J$282,,MATCH(I$4,'C. PoC Adj Factor Scoring'!$E$3:$AH$3,0)-1),MATCH(I$2&\" Score\",'C. PoC Adj Factor Scoring'!$E$4:$J$4,0),TRUE)","v":1},{"$f":"VLOOKUP(OFFSET($B:$B,,MATCH(J$4,$B$4:$F$4,0)-1),OFFSET('C. PoC Adj Factor Scoring'!$E$5:$J$282,,MATCH(J$4,'C. PoC Adj Factor Scoring'!$E$3:$AH$3,0)-1),MATCH(J$2&\" Score\",'C. PoC Adj Factor Scoring'!$E$4:$J$4,0),TRUE)","v":1},{"$f":"VLOOKUP(OFFSET($B:$B,,MATCH(K$4,$B$4:$F$4,0)-1),OFFSET('C. PoC Adj Factor Scoring'!$E$5:$J$282,,MATCH(K$4,'C. PoC Adj Factor Scoring'!$E$3:$AH$3,0)-1),MATCH(K$2&\" Score\",'C. PoC Adj Factor Scoring'!$E$4:$J$4,0),TRUE)","v":1},{"$f":"VLOOKUP(OFFSET($B:$B,,MATCH(L$4,$B$4:$F$4,0)-1),OFFSET('C. PoC Adj Factor Scoring'!$E$5:$J$282,,MATCH(L$4,'C. PoC Adj Factor Scoring'!$E$3:$AH$3,0)-1),MATCH(L$2&\" Score\",'C. PoC Adj Factor Scoring'!$E$4:$J$4,0),TRUE)","v":1},{"$f":"VLOOKUP(OFFSET($B:$B,,MATCH(M$4,$B$4:$F$4,0)-1),OFFSET('C. PoC Adj Factor Scoring'!$E$5:$J$282,,MATCH(M$4,'C. PoC Adj Factor Scoring'!$E$3:$AH$3,0)-1),MATCH(M$2&\" Score\",'C. PoC Adj Factor Scoring'!$E$4:$J$4,0),TRUE)","v":1},{"$f":"VLOOKUP(OFFSET($B:$B,,MATCH(N$4,$B$4:$F$4,0)-1),OFFSET('C. PoC Adj Factor Scoring'!$E$5:$J$282,,MATCH(N$4,'C. PoC Adj Factor Scoring'!$E$3:$AH$3,0)-1),MATCH(N$2&\" Score\",'C. PoC Adj Factor Scoring'!$E$4:$J$4,0),TRUE)","v":1},{"$f":"VLOOKUP(OFFSET($B:$B,,MATCH(O$4,$B$4:$F$4,0)-1),OFFSET('C. PoC Adj Factor Scoring'!$E$5:$J$282,,MATCH(O$4,'C. PoC Adj Factor Scoring'!$E$3:$AH$3,0)-1),MATCH(O$2&\" Score\",'C. PoC Adj Factor Scoring'!$E$4:$J$4,0),TRUE)","v":1},{"$f":"VLOOKUP(OFFSET($B:$B,,MATCH(P$4,$B$4:$F$4,0)-1),OFFSET('C. PoC Adj Factor Scoring'!$E$5:$J$282,,MATCH(P$4,'C. PoC Adj Factor Scoring'!$E$3:$AH$3,0)-1),MATCH(P$2&\" Score\",'C. PoC Adj Factor Scoring'!$E$4:$J$4,0),TRUE)","v":1},{"$f":"VLOOKUP(OFFSET($B:$B,,MATCH(Q$4,$B$4:$F$4,0)-1),OFFSET('C. PoC Adj Factor Scoring'!$E$5:$J$282,,MATCH(Q$4,'C. PoC Adj Factor Scoring'!$E$3:$AH$3,0)-1),MATCH(Q$2&\" Score\",'C. PoC Adj Factor Scoring'!$E$4:$J$4,0),TRUE)","v":1},{"$f":"VLOOKUP(OFFSET($B:$B,,MATCH(R$4,$B$4:$F$4,0)-1),OFFSET('C. PoC Adj Factor Scoring'!$E$5:$J$282,,MATCH(R$4,'C. PoC Adj Factor Scoring'!$E$3:$AH$3,0)-1),MATCH(R$2&\" Score\",'C. PoC Adj Factor Scoring'!$E$4:$J$4,0),TRUE)","v":1},{"$f":"VLOOKUP(OFFSET($B:$B,,MATCH(S$4,$B$4:$F$4,0)-1),OFFSET('C. PoC Adj Factor Scoring'!$E$5:$J$282,,MATCH(S$4,'C. PoC Adj Factor Scoring'!$E$3:$AH$3,0)-1),MATCH(S$2&\" Score\",'C. PoC Adj Factor Scoring'!$E$4:$J$4,0),TRUE)","v":1},{"$f":"VLOOKUP(OFFSET($B:$B,,MATCH(T$4,$B$4:$F$4,0)-1),OFFSET('C. PoC Adj Factor Scoring'!$E$5:$J$282,,MATCH(T$4,'C. PoC Adj Factor Scoring'!$E$3:$AH$3,0)-1),MATCH(T$2&\" Score\",'C. PoC Adj Factor Scoring'!$E$4:$J$4,0),TRUE)","v":1},{"$f":"VLOOKUP(OFFSET($B:$B,,MATCH(U$4,$B$4:$F$4,0)-1),OFFSET('C. PoC Adj Factor Scoring'!$E$5:$J$282,,MATCH(U$4,'C. PoC Adj Factor Scoring'!$E$3:$AH$3,0)-1),MATCH(U$2&\" Score\",'C. PoC Adj Factor Scoring'!$E$4:$J$4,0),TRUE)","v":1},{"$f":"VLOOKUP(OFFSET($B:$B,,MATCH(V$4,$B$4:$F$4,0)-1),OFFSET('C. PoC Adj Factor Scoring'!$E$5:$J$282,,MATCH(V$4,'C. PoC Adj Factor Scoring'!$E$3:$AH$3,0)-1),MATCH(V$2&\" Score\",'C. PoC Adj Factor Scoring'!$E$4:$J$4,0),TRUE)","v":1},{"$f":"VLOOKUP(OFFSET($B:$B,,MATCH(W$4,$B$4:$F$4,0)-1),OFFSET('C. PoC Adj Factor Scoring'!$E$5:$J$282,,MATCH(W$4,'C. PoC Adj Factor Scoring'!$E$3:$AH$3,0)-1),MATCH(W$2&\" Score\",'C. PoC Adj Factor Scoring'!$E$4:$J$4,0),TRUE)","v":1},{"$f":"VLOOKUP(OFFSET($B:$B,,MATCH(X$4,$B$4:$F$4,0)-1),OFFSET('C. PoC Adj Factor Scoring'!$E$5:$J$282,,MATCH(X$4,'C. PoC Adj Factor Scoring'!$E$3:$AH$3,0)-1),MATCH(X$2&\" Score\",'C. PoC Adj Factor Scoring'!$E$4:$J$4,0),TRUE)","v":1},{"$f":"VLOOKUP(OFFSET($B:$B,,MATCH(Y$4,$B$4:$F$4,0)-1),OFFSET('C. PoC Adj Factor Scoring'!$E$5:$J$282,,MATCH(Y$4,'C. PoC Adj Factor Scoring'!$E$3:$AH$3,0)-1),MATCH(Y$2&\" Score\",'C. PoC Adj Factor Scoring'!$E$4:$J$4,0),TRUE)","v":1},{"$f":"VLOOKUP(OFFSET($B:$B,,MATCH(Z$4,$B$4:$F$4,0)-1),OFFSET('C. PoC Adj Factor Scoring'!$E$5:$J$282,,MATCH(Z$4,'C. PoC Adj Factor Scoring'!$E$3:$AH$3,0)-1),MATCH(Z$2&\" Score\",'C. PoC Adj Factor Scoring'!$E$4:$J$4,0),TRUE)","v":1},{"$f":"VLOOKUP(OFFSET($B:$B,,MATCH(AA$4,$B$4:$F$4,0)-1),OFFSET('C. PoC Adj Factor Scoring'!$E$5:$J$282,,MATCH(AA$4,'C. PoC Adj Factor Scoring'!$E$3:$AH$3,0)-1),MATCH(AA$2&\" Score\",'C. PoC Adj Factor Scoring'!$E$4:$J$4,0),TRUE)","v":3},{"$f":"VLOOKUP(OFFSET($B:$B,,MATCH(AB$4,$B$4:$F$4,0)-1),OFFSET('C. PoC Adj Factor Scoring'!$E$5:$J$282,,MATCH(AB$4,'C. PoC Adj Factor Scoring'!$E$3:$AH$3,0)-1),MATCH(AB$2&\" Score\",'C. PoC Adj Factor Scoring'!$E$4:$J$4,0),TRUE)","v":1},{"$f":"VLOOKUP(OFFSET($B:$B,,MATCH(AC$4,$B$4:$F$4,0)-1),OFFSET('C. PoC Adj Factor Scoring'!$E$5:$J$282,,MATCH(AC$4,'C. PoC Adj Factor Scoring'!$E$3:$AH$3,0)-1),MATCH(AC$2&\" Score\",'C. PoC Adj Factor Scoring'!$E$4:$J$4,0),TRUE)","v":1},{"$f":"VLOOKUP(OFFSET($B:$B,,MATCH(AD$4,$B$4:$F$4,0)-1),OFFSET('C. PoC Adj Factor Scoring'!$E$5:$J$282,,MATCH(AD$4,'C. PoC Adj Factor Scoring'!$E$3:$AH$3,0)-1),MATCH(AD$2&\" Score\",'C. PoC Adj Factor Scoring'!$E$4:$J$4,0),TRUE)","v":1},{"$f":"VLOOKUP(OFFSET($B:$B,,MATCH(AE$4,$B$4:$F$4,0)-1),OFFSET('C. PoC Adj Factor Scoring'!$E$5:$J$282,,MATCH(AE$4,'C. PoC Adj Factor Scoring'!$E$3:$AH$3,0)-1),MATCH(AE$2&\" Score\",'C. PoC Adj Factor Scoring'!$E$4:$J$4,0),TRUE)","v":1}]
[{"$f":"'A. Population Info'!A152","v":1000344547},{"$f":"'A. Population Info'!L152","v":"OIL"},{"$f":"'A. Population Info'!M152","v":0},{"$f":"'A. Population Info'!N152","v":0},{"$f":"'A. Population Info'!O152","v":0},{"$f":"'A. Population Info'!P152","v":0},{"$f":"VLOOKUP(OFFSET($B:$B,,MATCH(G$4,$B$4:$F$4,0)-1),OFFSET('C. PoC Adj Factor Scoring'!$E$5:$J$282,,MATCH(G$4,'C. PoC Adj Factor Scoring'!$E$3:$AH$3,0)-1),MATCH(G$2&\" Score\",'C. PoC Adj Factor Scoring'!$E$4:$J$4,0),TRUE)","v":4},{"$f":"VLOOKUP(OFFSET($B:$B,,MATCH(H$4,$B$4:$F$4,0)-1),OFFSET('C. PoC Adj Factor Scoring'!$E$5:$J$282,,MATCH(H$4,'C. PoC Adj Factor Scoring'!$E$3:$AH$3,0)-1),MATCH(H$2&\" Score\",'C. PoC Adj Factor Scoring'!$E$4:$J$4,0),TRUE)","v":1},{"$f":"VLOOKUP(OFFSET($B:$B,,MATCH(I$4,$B$4:$F$4,0)-1),OFFSET('C. PoC Adj Factor Scoring'!$E$5:$J$282,,MATCH(I$4,'C. PoC Adj Factor Scoring'!$E$3:$AH$3,0)-1),MATCH(I$2&\" Score\",'C. PoC Adj Factor Scoring'!$E$4:$J$4,0),TRUE)","v":1},{"$f":"VLOOKUP(OFFSET($B:$B,,MATCH(J$4,$B$4:$F$4,0)-1),OFFSET('C. PoC Adj Factor Scoring'!$E$5:$J$282,,MATCH(J$4,'C. PoC Adj Factor Scoring'!$E$3:$AH$3,0)-1),MATCH(J$2&\" Score\",'C. PoC Adj Factor Scoring'!$E$4:$J$4,0),TRUE)","v":1},{"$f":"VLOOKUP(OFFSET($B:$B,,MATCH(K$4,$B$4:$F$4,0)-1),OFFSET('C. PoC Adj Factor Scoring'!$E$5:$J$282,,MATCH(K$4,'C. PoC Adj Factor Scoring'!$E$3:$AH$3,0)-1),MATCH(K$2&\" Score\",'C. PoC Adj Factor Scoring'!$E$4:$J$4,0),TRUE)","v":1},{"$f":"VLOOKUP(OFFSET($B:$B,,MATCH(L$4,$B$4:$F$4,0)-1),OFFSET('C. PoC Adj Factor Scoring'!$E$5:$J$282,,MATCH(L$4,'C. PoC Adj Factor Scoring'!$E$3:$AH$3,0)-1),MATCH(L$2&\" Score\",'C. PoC Adj Factor Scoring'!$E$4:$J$4,0),TRUE)","v":1},{"$f":"VLOOKUP(OFFSET($B:$B,,MATCH(M$4,$B$4:$F$4,0)-1),OFFSET('C. PoC Adj Factor Scoring'!$E$5:$J$282,,MATCH(M$4,'C. PoC Adj Factor Scoring'!$E$3:$AH$3,0)-1),MATCH(M$2&\" Score\",'C. PoC Adj Factor Scoring'!$E$4:$J$4,0),TRUE)","v":1},{"$f":"VLOOKUP(OFFSET($B:$B,,MATCH(N$4,$B$4:$F$4,0)-1),OFFSET('C. PoC Adj Factor Scoring'!$E$5:$J$282,,MATCH(N$4,'C. PoC Adj Factor Scoring'!$E$3:$AH$3,0)-1),MATCH(N$2&\" Score\",'C. PoC Adj Factor Scoring'!$E$4:$J$4,0),TRUE)","v":1},{"$f":"VLOOKUP(OFFSET($B:$B,,MATCH(O$4,$B$4:$F$4,0)-1),OFFSET('C. PoC Adj Factor Scoring'!$E$5:$J$282,,MATCH(O$4,'C. PoC Adj Factor Scoring'!$E$3:$AH$3,0)-1),MATCH(O$2&\" Score\",'C. PoC Adj Factor Scoring'!$E$4:$J$4,0),TRUE)","v":1},{"$f":"VLOOKUP(OFFSET($B:$B,,MATCH(P$4,$B$4:$F$4,0)-1),OFFSET('C. PoC Adj Factor Scoring'!$E$5:$J$282,,MATCH(P$4,'C. PoC Adj Factor Scoring'!$E$3:$AH$3,0)-1),MATCH(P$2&\" Score\",'C. PoC Adj Factor Scoring'!$E$4:$J$4,0),TRUE)","v":1},{"$f":"VLOOKUP(OFFSET($B:$B,,MATCH(Q$4,$B$4:$F$4,0)-1),OFFSET('C. PoC Adj Factor Scoring'!$E$5:$J$282,,MATCH(Q$4,'C. PoC Adj Factor Scoring'!$E$3:$AH$3,0)-1),MATCH(Q$2&\" Score\",'C. PoC Adj Factor Scoring'!$E$4:$J$4,0),TRUE)","v":1},{"$f":"VLOOKUP(OFFSET($B:$B,,MATCH(R$4,$B$4:$F$4,0)-1),OFFSET('C. PoC Adj Factor Scoring'!$E$5:$J$282,,MATCH(R$4,'C. PoC Adj Factor Scoring'!$E$3:$AH$3,0)-1),MATCH(R$2&\" Score\",'C. PoC Adj Factor Scoring'!$E$4:$J$4,0),TRUE)","v":1},{"$f":"VLOOKUP(OFFSET($B:$B,,MATCH(S$4,$B$4:$F$4,0)-1),OFFSET('C. PoC Adj Factor Scoring'!$E$5:$J$282,,MATCH(S$4,'C. PoC Adj Factor Scoring'!$E$3:$AH$3,0)-1),MATCH(S$2&\" Score\",'C. PoC Adj Factor Scoring'!$E$4:$J$4,0),TRUE)","v":1},{"$f":"VLOOKUP(OFFSET($B:$B,,MATCH(T$4,$B$4:$F$4,0)-1),OFFSET('C. PoC Adj Factor Scoring'!$E$5:$J$282,,MATCH(T$4,'C. PoC Adj Factor Scoring'!$E$3:$AH$3,0)-1),MATCH(T$2&\" Score\",'C. PoC Adj Factor Scoring'!$E$4:$J$4,0),TRUE)","v":1},{"$f":"VLOOKUP(OFFSET($B:$B,,MATCH(U$4,$B$4:$F$4,0)-1),OFFSET('C. PoC Adj Factor Scoring'!$E$5:$J$282,,MATCH(U$4,'C. PoC Adj Factor Scoring'!$E$3:$AH$3,0)-1),MATCH(U$2&\" Score\",'C. PoC Adj Factor Scoring'!$E$4:$J$4,0),TRUE)","v":1},{"$f":"VLOOKUP(OFFSET($B:$B,,MATCH(V$4,$B$4:$F$4,0)-1),OFFSET('C. PoC Adj Factor Scoring'!$E$5:$J$282,,MATCH(V$4,'C. PoC Adj Factor Scoring'!$E$3:$AH$3,0)-1),MATCH(V$2&\" Score\",'C. PoC Adj Factor Scoring'!$E$4:$J$4,0),TRUE)","v":1},{"$f":"VLOOKUP(OFFSET($B:$B,,MATCH(W$4,$B$4:$F$4,0)-1),OFFSET('C. PoC Adj Factor Scoring'!$E$5:$J$282,,MATCH(W$4,'C. PoC Adj Factor Scoring'!$E$3:$AH$3,0)-1),MATCH(W$2&\" Score\",'C. PoC Adj Factor Scoring'!$E$4:$J$4,0),TRUE)","v":1},{"$f":"VLOOKUP(OFFSET($B:$B,,MATCH(X$4,$B$4:$F$4,0)-1),OFFSET('C. PoC Adj Factor Scoring'!$E$5:$J$282,,MATCH(X$4,'C. PoC Adj Factor Scoring'!$E$3:$AH$3,0)-1),MATCH(X$2&\" Score\",'C. PoC Adj Factor Scoring'!$E$4:$J$4,0),TRUE)","v":1},{"$f":"VLOOKUP(OFFSET($B:$B,,MATCH(Y$4,$B$4:$F$4,0)-1),OFFSET('C. PoC Adj Factor Scoring'!$E$5:$J$282,,MATCH(Y$4,'C. PoC Adj Factor Scoring'!$E$3:$AH$3,0)-1),MATCH(Y$2&\" Score\",'C. PoC Adj Factor Scoring'!$E$4:$J$4,0),TRUE)","v":1},{"$f":"VLOOKUP(OFFSET($B:$B,,MATCH(Z$4,$B$4:$F$4,0)-1),OFFSET('C. PoC Adj Factor Scoring'!$E$5:$J$282,,MATCH(Z$4,'C. PoC Adj Factor Scoring'!$E$3:$AH$3,0)-1),MATCH(Z$2&\" Score\",'C. PoC Adj Factor Scoring'!$E$4:$J$4,0),TRUE)","v":1},{"$f":"VLOOKUP(OFFSET($B:$B,,MATCH(AA$4,$B$4:$F$4,0)-1),OFFSET('C. PoC Adj Factor Scoring'!$E$5:$J$282,,MATCH(AA$4,'C. PoC Adj Factor Scoring'!$E$3:$AH$3,0)-1),MATCH(AA$2&\" Score\",'C. PoC Adj Factor Scoring'!$E$4:$J$4,0),TRUE)","v":3},{"$f":"VLOOKUP(OFFSET($B:$B,,MATCH(AB$4,$B$4:$F$4,0)-1),OFFSET('C. PoC Adj Factor Scoring'!$E$5:$J$282,,MATCH(AB$4,'C. PoC Adj Factor Scoring'!$E$3:$AH$3,0)-1),MATCH(AB$2&\" Score\",'C. PoC Adj Factor Scoring'!$E$4:$J$4,0),TRUE)","v":1},{"$f":"VLOOKUP(OFFSET($B:$B,,MATCH(AC$4,$B$4:$F$4,0)-1),OFFSET('C. PoC Adj Factor Scoring'!$E$5:$J$282,,MATCH(AC$4,'C. PoC Adj Factor Scoring'!$E$3:$AH$3,0)-1),MATCH(AC$2&\" Score\",'C. PoC Adj Factor Scoring'!$E$4:$J$4,0),TRUE)","v":1},{"$f":"VLOOKUP(OFFSET($B:$B,,MATCH(AD$4,$B$4:$F$4,0)-1),OFFSET('C. PoC Adj Factor Scoring'!$E$5:$J$282,,MATCH(AD$4,'C. PoC Adj Factor Scoring'!$E$3:$AH$3,0)-1),MATCH(AD$2&\" Score\",'C. PoC Adj Factor Scoring'!$E$4:$J$4,0),TRUE)","v":1},{"$f":"VLOOKUP(OFFSET($B:$B,,MATCH(AE$4,$B$4:$F$4,0)-1),OFFSET('C. PoC Adj Factor Scoring'!$E$5:$J$282,,MATCH(AE$4,'C. PoC Adj Factor Scoring'!$E$3:$AH$3,0)-1),MATCH(AE$2&\" Score\",'C. PoC Adj Factor Scoring'!$E$4:$J$4,0),TRUE)","v":1}]
[{"$f":"'A. Population Info'!A153","v":1000344577},{"$f":"'A. Population Info'!L153","v":"OIL"},{"$f":"'A. Population Info'!M153","v":0},{"$f":"'A. Population Info'!N153","v":0},{"$f":"'A. Population Info'!O153","v":0},{"$f":"'A. Population Info'!P153","v":0},{"$f":"VLOOKUP(OFFSET($B:$B,,MATCH(G$4,$B$4:$F$4,0)-1),OFFSET('C. PoC Adj Factor Scoring'!$E$5:$J$282,,MATCH(G$4,'C. PoC Adj Factor Scoring'!$E$3:$AH$3,0)-1),MATCH(G$2&\" Score\",'C. PoC Adj Factor Scoring'!$E$4:$J$4,0),TRUE)","v":4},{"$f":"VLOOKUP(OFFSET($B:$B,,MATCH(H$4,$B$4:$F$4,0)-1),OFFSET('C. PoC Adj Factor Scoring'!$E$5:$J$282,,MATCH(H$4,'C. PoC Adj Factor Scoring'!$E$3:$AH$3,0)-1),MATCH(H$2&\" Score\",'C. PoC Adj Factor Scoring'!$E$4:$J$4,0),TRUE)","v":1},{"$f":"VLOOKUP(OFFSET($B:$B,,MATCH(I$4,$B$4:$F$4,0)-1),OFFSET('C. PoC Adj Factor Scoring'!$E$5:$J$282,,MATCH(I$4,'C. PoC Adj Factor Scoring'!$E$3:$AH$3,0)-1),MATCH(I$2&\" Score\",'C. PoC Adj Factor Scoring'!$E$4:$J$4,0),TRUE)","v":1},{"$f":"VLOOKUP(OFFSET($B:$B,,MATCH(J$4,$B$4:$F$4,0)-1),OFFSET('C. PoC Adj Factor Scoring'!$E$5:$J$282,,MATCH(J$4,'C. PoC Adj Factor Scoring'!$E$3:$AH$3,0)-1),MATCH(J$2&\" Score\",'C. PoC Adj Factor Scoring'!$E$4:$J$4,0),TRUE)","v":1},{"$f":"VLOOKUP(OFFSET($B:$B,,MATCH(K$4,$B$4:$F$4,0)-1),OFFSET('C. PoC Adj Factor Scoring'!$E$5:$J$282,,MATCH(K$4,'C. PoC Adj Factor Scoring'!$E$3:$AH$3,0)-1),MATCH(K$2&\" Score\",'C. PoC Adj Factor Scoring'!$E$4:$J$4,0),TRUE)","v":1},{"$f":"VLOOKUP(OFFSET($B:$B,,MATCH(L$4,$B$4:$F$4,0)-1),OFFSET('C. PoC Adj Factor Scoring'!$E$5:$J$282,,MATCH(L$4,'C. PoC Adj Factor Scoring'!$E$3:$AH$3,0)-1),MATCH(L$2&\" Score\",'C. PoC Adj Factor Scoring'!$E$4:$J$4,0),TRUE)","v":1},{"$f":"VLOOKUP(OFFSET($B:$B,,MATCH(M$4,$B$4:$F$4,0)-1),OFFSET('C. PoC Adj Factor Scoring'!$E$5:$J$282,,MATCH(M$4,'C. PoC Adj Factor Scoring'!$E$3:$AH$3,0)-1),MATCH(M$2&\" Score\",'C. PoC Adj Factor Scoring'!$E$4:$J$4,0),TRUE)","v":1},{"$f":"VLOOKUP(OFFSET($B:$B,,MATCH(N$4,$B$4:$F$4,0)-1),OFFSET('C. PoC Adj Factor Scoring'!$E$5:$J$282,,MATCH(N$4,'C. PoC Adj Factor Scoring'!$E$3:$AH$3,0)-1),MATCH(N$2&\" Score\",'C. PoC Adj Factor Scoring'!$E$4:$J$4,0),TRUE)","v":1},{"$f":"VLOOKUP(OFFSET($B:$B,,MATCH(O$4,$B$4:$F$4,0)-1),OFFSET('C. PoC Adj Factor Scoring'!$E$5:$J$282,,MATCH(O$4,'C. PoC Adj Factor Scoring'!$E$3:$AH$3,0)-1),MATCH(O$2&\" Score\",'C. PoC Adj Factor Scoring'!$E$4:$J$4,0),TRUE)","v":1},{"$f":"VLOOKUP(OFFSET($B:$B,,MATCH(P$4,$B$4:$F$4,0)-1),OFFSET('C. PoC Adj Factor Scoring'!$E$5:$J$282,,MATCH(P$4,'C. PoC Adj Factor Scoring'!$E$3:$AH$3,0)-1),MATCH(P$2&\" Score\",'C. PoC Adj Factor Scoring'!$E$4:$J$4,0),TRUE)","v":1},{"$f":"VLOOKUP(OFFSET($B:$B,,MATCH(Q$4,$B$4:$F$4,0)-1),OFFSET('C. PoC Adj Factor Scoring'!$E$5:$J$282,,MATCH(Q$4,'C. PoC Adj Factor Scoring'!$E$3:$AH$3,0)-1),MATCH(Q$2&\" Score\",'C. PoC Adj Factor Scoring'!$E$4:$J$4,0),TRUE)","v":1},{"$f":"VLOOKUP(OFFSET($B:$B,,MATCH(R$4,$B$4:$F$4,0)-1),OFFSET('C. PoC Adj Factor Scoring'!$E$5:$J$282,,MATCH(R$4,'C. PoC Adj Factor Scoring'!$E$3:$AH$3,0)-1),MATCH(R$2&\" Score\",'C. PoC Adj Factor Scoring'!$E$4:$J$4,0),TRUE)","v":1},{"$f":"VLOOKUP(OFFSET($B:$B,,MATCH(S$4,$B$4:$F$4,0)-1),OFFSET('C. PoC Adj Factor Scoring'!$E$5:$J$282,,MATCH(S$4,'C. PoC Adj Factor Scoring'!$E$3:$AH$3,0)-1),MATCH(S$2&\" Score\",'C. PoC Adj Factor Scoring'!$E$4:$J$4,0),TRUE)","v":1},{"$f":"VLOOKUP(OFFSET($B:$B,,MATCH(T$4,$B$4:$F$4,0)-1),OFFSET('C. PoC Adj Factor Scoring'!$E$5:$J$282,,MATCH(T$4,'C. PoC Adj Factor Scoring'!$E$3:$AH$3,0)-1),MATCH(T$2&\" Score\",'C. PoC Adj Factor Scoring'!$E$4:$J$4,0),TRUE)","v":1},{"$f":"VLOOKUP(OFFSET($B:$B,,MATCH(U$4,$B$4:$F$4,0)-1),OFFSET('C. PoC Adj Factor Scoring'!$E$5:$J$282,,MATCH(U$4,'C. PoC Adj Factor Scoring'!$E$3:$AH$3,0)-1),MATCH(U$2&\" Score\",'C. PoC Adj Factor Scoring'!$E$4:$J$4,0),TRUE)","v":1},{"$f":"VLOOKUP(OFFSET($B:$B,,MATCH(V$4,$B$4:$F$4,0)-1),OFFSET('C. PoC Adj Factor Scoring'!$E$5:$J$282,,MATCH(V$4,'C. PoC Adj Factor Scoring'!$E$3:$AH$3,0)-1),MATCH(V$2&\" Score\",'C. PoC Adj Factor Scoring'!$E$4:$J$4,0),TRUE)","v":1},{"$f":"VLOOKUP(OFFSET($B:$B,,MATCH(W$4,$B$4:$F$4,0)-1),OFFSET('C. PoC Adj Factor Scoring'!$E$5:$J$282,,MATCH(W$4,'C. PoC Adj Factor Scoring'!$E$3:$AH$3,0)-1),MATCH(W$2&\" Score\",'C. PoC Adj Factor Scoring'!$E$4:$J$4,0),TRUE)","v":1},{"$f":"VLOOKUP(OFFSET($B:$B,,MATCH(X$4,$B$4:$F$4,0)-1),OFFSET('C. PoC Adj Factor Scoring'!$E$5:$J$282,,MATCH(X$4,'C. PoC Adj Factor Scoring'!$E$3:$AH$3,0)-1),MATCH(X$2&\" Score\",'C. PoC Adj Factor Scoring'!$E$4:$J$4,0),TRUE)","v":1},{"$f":"VLOOKUP(OFFSET($B:$B,,MATCH(Y$4,$B$4:$F$4,0)-1),OFFSET('C. PoC Adj Factor Scoring'!$E$5:$J$282,,MATCH(Y$4,'C. PoC Adj Factor Scoring'!$E$3:$AH$3,0)-1),MATCH(Y$2&\" Score\",'C. PoC Adj Factor Scoring'!$E$4:$J$4,0),TRUE)","v":1},{"$f":"VLOOKUP(OFFSET($B:$B,,MATCH(Z$4,$B$4:$F$4,0)-1),OFFSET('C. PoC Adj Factor Scoring'!$E$5:$J$282,,MATCH(Z$4,'C. PoC Adj Factor Scoring'!$E$3:$AH$3,0)-1),MATCH(Z$2&\" Score\",'C. PoC Adj Factor Scoring'!$E$4:$J$4,0),TRUE)","v":1},{"$f":"VLOOKUP(OFFSET($B:$B,,MATCH(AA$4,$B$4:$F$4,0)-1),OFFSET('C. PoC Adj Factor Scoring'!$E$5:$J$282,,MATCH(AA$4,'C. PoC Adj Factor Scoring'!$E$3:$AH$3,0)-1),MATCH(AA$2&\" Score\",'C. PoC Adj Factor Scoring'!$E$4:$J$4,0),TRUE)","v":3},{"$f":"VLOOKUP(OFFSET($B:$B,,MATCH(AB$4,$B$4:$F$4,0)-1),OFFSET('C. PoC Adj Factor Scoring'!$E$5:$J$282,,MATCH(AB$4,'C. PoC Adj Factor Scoring'!$E$3:$AH$3,0)-1),MATCH(AB$2&\" Score\",'C. PoC Adj Factor Scoring'!$E$4:$J$4,0),TRUE)","v":1},{"$f":"VLOOKUP(OFFSET($B:$B,,MATCH(AC$4,$B$4:$F$4,0)-1),OFFSET('C. PoC Adj Factor Scoring'!$E$5:$J$282,,MATCH(AC$4,'C. PoC Adj Factor Scoring'!$E$3:$AH$3,0)-1),MATCH(AC$2&\" Score\",'C. PoC Adj Factor Scoring'!$E$4:$J$4,0),TRUE)","v":1},{"$f":"VLOOKUP(OFFSET($B:$B,,MATCH(AD$4,$B$4:$F$4,0)-1),OFFSET('C. PoC Adj Factor Scoring'!$E$5:$J$282,,MATCH(AD$4,'C. PoC Adj Factor Scoring'!$E$3:$AH$3,0)-1),MATCH(AD$2&\" Score\",'C. PoC Adj Factor Scoring'!$E$4:$J$4,0),TRUE)","v":1},{"$f":"VLOOKUP(OFFSET($B:$B,,MATCH(AE$4,$B$4:$F$4,0)-1),OFFSET('C. PoC Adj Factor Scoring'!$E$5:$J$282,,MATCH(AE$4,'C. PoC Adj Factor Scoring'!$E$3:$AH$3,0)-1),MATCH(AE$2&\" Score\",'C. PoC Adj Factor Scoring'!$E$4:$J$4,0),TRUE)","v":1}]
[{"$f":"'A. Population Info'!A154","v":1000344603},{"$f":"'A. Population Info'!L154","v":"OIL"},{"$f":"'A. Population Info'!M154","v":0},{"$f":"'A. Population Info'!N154","v":0},{"$f":"'A. Population Info'!O154","v":0},{"$f":"'A. Population Info'!P154","v":0},{"$f":"VLOOKUP(OFFSET($B:$B,,MATCH(G$4,$B$4:$F$4,0)-1),OFFSET('C. PoC Adj Factor Scoring'!$E$5:$J$282,,MATCH(G$4,'C. PoC Adj Factor Scoring'!$E$3:$AH$3,0)-1),MATCH(G$2&\" Score\",'C. PoC Adj Factor Scoring'!$E$4:$J$4,0),TRUE)","v":4},{"$f":"VLOOKUP(OFFSET($B:$B,,MATCH(H$4,$B$4:$F$4,0)-1),OFFSET('C. PoC Adj Factor Scoring'!$E$5:$J$282,,MATCH(H$4,'C. PoC Adj Factor Scoring'!$E$3:$AH$3,0)-1),MATCH(H$2&\" Score\",'C. PoC Adj Factor Scoring'!$E$4:$J$4,0),TRUE)","v":1},{"$f":"VLOOKUP(OFFSET($B:$B,,MATCH(I$4,$B$4:$F$4,0)-1),OFFSET('C. PoC Adj Factor Scoring'!$E$5:$J$282,,MATCH(I$4,'C. PoC Adj Factor Scoring'!$E$3:$AH$3,0)-1),MATCH(I$2&\" Score\",'C. PoC Adj Factor Scoring'!$E$4:$J$4,0),TRUE)","v":1},{"$f":"VLOOKUP(OFFSET($B:$B,,MATCH(J$4,$B$4:$F$4,0)-1),OFFSET('C. PoC Adj Factor Scoring'!$E$5:$J$282,,MATCH(J$4,'C. PoC Adj Factor Scoring'!$E$3:$AH$3,0)-1),MATCH(J$2&\" Score\",'C. PoC Adj Factor Scoring'!$E$4:$J$4,0),TRUE)","v":1},{"$f":"VLOOKUP(OFFSET($B:$B,,MATCH(K$4,$B$4:$F$4,0)-1),OFFSET('C. PoC Adj Factor Scoring'!$E$5:$J$282,,MATCH(K$4,'C. PoC Adj Factor Scoring'!$E$3:$AH$3,0)-1),MATCH(K$2&\" Score\",'C. PoC Adj Factor Scoring'!$E$4:$J$4,0),TRUE)","v":1},{"$f":"VLOOKUP(OFFSET($B:$B,,MATCH(L$4,$B$4:$F$4,0)-1),OFFSET('C. PoC Adj Factor Scoring'!$E$5:$J$282,,MATCH(L$4,'C. PoC Adj Factor Scoring'!$E$3:$AH$3,0)-1),MATCH(L$2&\" Score\",'C. PoC Adj Factor Scoring'!$E$4:$J$4,0),TRUE)","v":1},{"$f":"VLOOKUP(OFFSET($B:$B,,MATCH(M$4,$B$4:$F$4,0)-1),OFFSET('C. PoC Adj Factor Scoring'!$E$5:$J$282,,MATCH(M$4,'C. PoC Adj Factor Scoring'!$E$3:$AH$3,0)-1),MATCH(M$2&\" Score\",'C. PoC Adj Factor Scoring'!$E$4:$J$4,0),TRUE)","v":1},{"$f":"VLOOKUP(OFFSET($B:$B,,MATCH(N$4,$B$4:$F$4,0)-1),OFFSET('C. PoC Adj Factor Scoring'!$E$5:$J$282,,MATCH(N$4,'C. PoC Adj Factor Scoring'!$E$3:$AH$3,0)-1),MATCH(N$2&\" Score\",'C. PoC Adj Factor Scoring'!$E$4:$J$4,0),TRUE)","v":1},{"$f":"VLOOKUP(OFFSET($B:$B,,MATCH(O$4,$B$4:$F$4,0)-1),OFFSET('C. PoC Adj Factor Scoring'!$E$5:$J$282,,MATCH(O$4,'C. PoC Adj Factor Scoring'!$E$3:$AH$3,0)-1),MATCH(O$2&\" Score\",'C. PoC Adj Factor Scoring'!$E$4:$J$4,0),TRUE)","v":1},{"$f":"VLOOKUP(OFFSET($B:$B,,MATCH(P$4,$B$4:$F$4,0)-1),OFFSET('C. PoC Adj Factor Scoring'!$E$5:$J$282,,MATCH(P$4,'C. PoC Adj Factor Scoring'!$E$3:$AH$3,0)-1),MATCH(P$2&\" Score\",'C. PoC Adj Factor Scoring'!$E$4:$J$4,0),TRUE)","v":1},{"$f":"VLOOKUP(OFFSET($B:$B,,MATCH(Q$4,$B$4:$F$4,0)-1),OFFSET('C. PoC Adj Factor Scoring'!$E$5:$J$282,,MATCH(Q$4,'C. PoC Adj Factor Scoring'!$E$3:$AH$3,0)-1),MATCH(Q$2&\" Score\",'C. PoC Adj Factor Scoring'!$E$4:$J$4,0),TRUE)","v":1},{"$f":"VLOOKUP(OFFSET($B:$B,,MATCH(R$4,$B$4:$F$4,0)-1),OFFSET('C. PoC Adj Factor Scoring'!$E$5:$J$282,,MATCH(R$4,'C. PoC Adj Factor Scoring'!$E$3:$AH$3,0)-1),MATCH(R$2&\" Score\",'C. PoC Adj Factor Scoring'!$E$4:$J$4,0),TRUE)","v":1},{"$f":"VLOOKUP(OFFSET($B:$B,,MATCH(S$4,$B$4:$F$4,0)-1),OFFSET('C. PoC Adj Factor Scoring'!$E$5:$J$282,,MATCH(S$4,'C. PoC Adj Factor Scoring'!$E$3:$AH$3,0)-1),MATCH(S$2&\" Score\",'C. PoC Adj Factor Scoring'!$E$4:$J$4,0),TRUE)","v":1},{"$f":"VLOOKUP(OFFSET($B:$B,,MATCH(T$4,$B$4:$F$4,0)-1),OFFSET('C. PoC Adj Factor Scoring'!$E$5:$J$282,,MATCH(T$4,'C. PoC Adj Factor Scoring'!$E$3:$AH$3,0)-1),MATCH(T$2&\" Score\",'C. PoC Adj Factor Scoring'!$E$4:$J$4,0),TRUE)","v":1},{"$f":"VLOOKUP(OFFSET($B:$B,,MATCH(U$4,$B$4:$F$4,0)-1),OFFSET('C. PoC Adj Factor Scoring'!$E$5:$J$282,,MATCH(U$4,'C. PoC Adj Factor Scoring'!$E$3:$AH$3,0)-1),MATCH(U$2&\" Score\",'C. PoC Adj Factor Scoring'!$E$4:$J$4,0),TRUE)","v":1},{"$f":"VLOOKUP(OFFSET($B:$B,,MATCH(V$4,$B$4:$F$4,0)-1),OFFSET('C. PoC Adj Factor Scoring'!$E$5:$J$282,,MATCH(V$4,'C. PoC Adj Factor Scoring'!$E$3:$AH$3,0)-1),MATCH(V$2&\" Score\",'C. PoC Adj Factor Scoring'!$E$4:$J$4,0),TRUE)","v":1},{"$f":"VLOOKUP(OFFSET($B:$B,,MATCH(W$4,$B$4:$F$4,0)-1),OFFSET('C. PoC Adj Factor Scoring'!$E$5:$J$282,,MATCH(W$4,'C. PoC Adj Factor Scoring'!$E$3:$AH$3,0)-1),MATCH(W$2&\" Score\",'C. PoC Adj Factor Scoring'!$E$4:$J$4,0),TRUE)","v":1},{"$f":"VLOOKUP(OFFSET($B:$B,,MATCH(X$4,$B$4:$F$4,0)-1),OFFSET('C. PoC Adj Factor Scoring'!$E$5:$J$282,,MATCH(X$4,'C. PoC Adj Factor Scoring'!$E$3:$AH$3,0)-1),MATCH(X$2&\" Score\",'C. PoC Adj Factor Scoring'!$E$4:$J$4,0),TRUE)","v":1},{"$f":"VLOOKUP(OFFSET($B:$B,,MATCH(Y$4,$B$4:$F$4,0)-1),OFFSET('C. PoC Adj Factor Scoring'!$E$5:$J$282,,MATCH(Y$4,'C. PoC Adj Factor Scoring'!$E$3:$AH$3,0)-1),MATCH(Y$2&\" Score\",'C. PoC Adj Factor Scoring'!$E$4:$J$4,0),TRUE)","v":1},{"$f":"VLOOKUP(OFFSET($B:$B,,MATCH(Z$4,$B$4:$F$4,0)-1),OFFSET('C. PoC Adj Factor Scoring'!$E$5:$J$282,,MATCH(Z$4,'C. PoC Adj Factor Scoring'!$E$3:$AH$3,0)-1),MATCH(Z$2&\" Score\",'C. PoC Adj Factor Scoring'!$E$4:$J$4,0),TRUE)","v":1},{"$f":"VLOOKUP(OFFSET($B:$B,,MATCH(AA$4,$B$4:$F$4,0)-1),OFFSET('C. PoC Adj Factor Scoring'!$E$5:$J$282,,MATCH(AA$4,'C. PoC Adj Factor Scoring'!$E$3:$AH$3,0)-1),MATCH(AA$2&\" Score\",'C. PoC Adj Factor Scoring'!$E$4:$J$4,0),TRUE)","v":3},{"$f":"VLOOKUP(OFFSET($B:$B,,MATCH(AB$4,$B$4:$F$4,0)-1),OFFSET('C. PoC Adj Factor Scoring'!$E$5:$J$282,,MATCH(AB$4,'C. PoC Adj Factor Scoring'!$E$3:$AH$3,0)-1),MATCH(AB$2&\" Score\",'C. PoC Adj Factor Scoring'!$E$4:$J$4,0),TRUE)","v":1},{"$f":"VLOOKUP(OFFSET($B:$B,,MATCH(AC$4,$B$4:$F$4,0)-1),OFFSET('C. PoC Adj Factor Scoring'!$E$5:$J$282,,MATCH(AC$4,'C. PoC Adj Factor Scoring'!$E$3:$AH$3,0)-1),MATCH(AC$2&\" Score\",'C. PoC Adj Factor Scoring'!$E$4:$J$4,0),TRUE)","v":1},{"$f":"VLOOKUP(OFFSET($B:$B,,MATCH(AD$4,$B$4:$F$4,0)-1),OFFSET('C. PoC Adj Factor Scoring'!$E$5:$J$282,,MATCH(AD$4,'C. PoC Adj Factor Scoring'!$E$3:$AH$3,0)-1),MATCH(AD$2&\" Score\",'C. PoC Adj Factor Scoring'!$E$4:$J$4,0),TRUE)","v":1},{"$f":"VLOOKUP(OFFSET($B:$B,,MATCH(AE$4,$B$4:$F$4,0)-1),OFFSET('C. PoC Adj Factor Scoring'!$E$5:$J$282,,MATCH(AE$4,'C. PoC Adj Factor Scoring'!$E$3:$AH$3,0)-1),MATCH(AE$2&\" Score\",'C. PoC Adj Factor Scoring'!$E$4:$J$4,0),TRUE)","v":1}]
[{"$f":"'A. Population Info'!A155","v":1000344840},{"$f":"'A. Population Info'!L155","v":"OIL"},{"$f":"'A. Population Info'!M155","v":0},{"$f":"'A. Population Info'!N155","v":0},{"$f":"'A. Population Info'!O155","v":0},{"$f":"'A. Population Info'!P155","v":0},{"$f":"VLOOKUP(OFFSET($B:$B,,MATCH(G$4,$B$4:$F$4,0)-1),OFFSET('C. PoC Adj Factor Scoring'!$E$5:$J$282,,MATCH(G$4,'C. PoC Adj Factor Scoring'!$E$3:$AH$3,0)-1),MATCH(G$2&\" Score\",'C. PoC Adj Factor Scoring'!$E$4:$J$4,0),TRUE)","v":4},{"$f":"VLOOKUP(OFFSET($B:$B,,MATCH(H$4,$B$4:$F$4,0)-1),OFFSET('C. PoC Adj Factor Scoring'!$E$5:$J$282,,MATCH(H$4,'C. PoC Adj Factor Scoring'!$E$3:$AH$3,0)-1),MATCH(H$2&\" Score\",'C. PoC Adj Factor Scoring'!$E$4:$J$4,0),TRUE)","v":1},{"$f":"VLOOKUP(OFFSET($B:$B,,MATCH(I$4,$B$4:$F$4,0)-1),OFFSET('C. PoC Adj Factor Scoring'!$E$5:$J$282,,MATCH(I$4,'C. PoC Adj Factor Scoring'!$E$3:$AH$3,0)-1),MATCH(I$2&\" Score\",'C. PoC Adj Factor Scoring'!$E$4:$J$4,0),TRUE)","v":1},{"$f":"VLOOKUP(OFFSET($B:$B,,MATCH(J$4,$B$4:$F$4,0)-1),OFFSET('C. PoC Adj Factor Scoring'!$E$5:$J$282,,MATCH(J$4,'C. PoC Adj Factor Scoring'!$E$3:$AH$3,0)-1),MATCH(J$2&\" Score\",'C. PoC Adj Factor Scoring'!$E$4:$J$4,0),TRUE)","v":1},{"$f":"VLOOKUP(OFFSET($B:$B,,MATCH(K$4,$B$4:$F$4,0)-1),OFFSET('C. PoC Adj Factor Scoring'!$E$5:$J$282,,MATCH(K$4,'C. PoC Adj Factor Scoring'!$E$3:$AH$3,0)-1),MATCH(K$2&\" Score\",'C. PoC Adj Factor Scoring'!$E$4:$J$4,0),TRUE)","v":1},{"$f":"VLOOKUP(OFFSET($B:$B,,MATCH(L$4,$B$4:$F$4,0)-1),OFFSET('C. PoC Adj Factor Scoring'!$E$5:$J$282,,MATCH(L$4,'C. PoC Adj Factor Scoring'!$E$3:$AH$3,0)-1),MATCH(L$2&\" Score\",'C. PoC Adj Factor Scoring'!$E$4:$J$4,0),TRUE)","v":1},{"$f":"VLOOKUP(OFFSET($B:$B,,MATCH(M$4,$B$4:$F$4,0)-1),OFFSET('C. PoC Adj Factor Scoring'!$E$5:$J$282,,MATCH(M$4,'C. PoC Adj Factor Scoring'!$E$3:$AH$3,0)-1),MATCH(M$2&\" Score\",'C. PoC Adj Factor Scoring'!$E$4:$J$4,0),TRUE)","v":1},{"$f":"VLOOKUP(OFFSET($B:$B,,MATCH(N$4,$B$4:$F$4,0)-1),OFFSET('C. PoC Adj Factor Scoring'!$E$5:$J$282,,MATCH(N$4,'C. PoC Adj Factor Scoring'!$E$3:$AH$3,0)-1),MATCH(N$2&\" Score\",'C. PoC Adj Factor Scoring'!$E$4:$J$4,0),TRUE)","v":1},{"$f":"VLOOKUP(OFFSET($B:$B,,MATCH(O$4,$B$4:$F$4,0)-1),OFFSET('C. PoC Adj Factor Scoring'!$E$5:$J$282,,MATCH(O$4,'C. PoC Adj Factor Scoring'!$E$3:$AH$3,0)-1),MATCH(O$2&\" Score\",'C. PoC Adj Factor Scoring'!$E$4:$J$4,0),TRUE)","v":1},{"$f":"VLOOKUP(OFFSET($B:$B,,MATCH(P$4,$B$4:$F$4,0)-1),OFFSET('C. PoC Adj Factor Scoring'!$E$5:$J$282,,MATCH(P$4,'C. PoC Adj Factor Scoring'!$E$3:$AH$3,0)-1),MATCH(P$2&\" Score\",'C. PoC Adj Factor Scoring'!$E$4:$J$4,0),TRUE)","v":1},{"$f":"VLOOKUP(OFFSET($B:$B,,MATCH(Q$4,$B$4:$F$4,0)-1),OFFSET('C. PoC Adj Factor Scoring'!$E$5:$J$282,,MATCH(Q$4,'C. PoC Adj Factor Scoring'!$E$3:$AH$3,0)-1),MATCH(Q$2&\" Score\",'C. PoC Adj Factor Scoring'!$E$4:$J$4,0),TRUE)","v":1},{"$f":"VLOOKUP(OFFSET($B:$B,,MATCH(R$4,$B$4:$F$4,0)-1),OFFSET('C. PoC Adj Factor Scoring'!$E$5:$J$282,,MATCH(R$4,'C. PoC Adj Factor Scoring'!$E$3:$AH$3,0)-1),MATCH(R$2&\" Score\",'C. PoC Adj Factor Scoring'!$E$4:$J$4,0),TRUE)","v":1},{"$f":"VLOOKUP(OFFSET($B:$B,,MATCH(S$4,$B$4:$F$4,0)-1),OFFSET('C. PoC Adj Factor Scoring'!$E$5:$J$282,,MATCH(S$4,'C. PoC Adj Factor Scoring'!$E$3:$AH$3,0)-1),MATCH(S$2&\" Score\",'C. PoC Adj Factor Scoring'!$E$4:$J$4,0),TRUE)","v":1},{"$f":"VLOOKUP(OFFSET($B:$B,,MATCH(T$4,$B$4:$F$4,0)-1),OFFSET('C. PoC Adj Factor Scoring'!$E$5:$J$282,,MATCH(T$4,'C. PoC Adj Factor Scoring'!$E$3:$AH$3,0)-1),MATCH(T$2&\" Score\",'C. PoC Adj Factor Scoring'!$E$4:$J$4,0),TRUE)","v":1},{"$f":"VLOOKUP(OFFSET($B:$B,,MATCH(U$4,$B$4:$F$4,0)-1),OFFSET('C. PoC Adj Factor Scoring'!$E$5:$J$282,,MATCH(U$4,'C. PoC Adj Factor Scoring'!$E$3:$AH$3,0)-1),MATCH(U$2&\" Score\",'C. PoC Adj Factor Scoring'!$E$4:$J$4,0),TRUE)","v":1},{"$f":"VLOOKUP(OFFSET($B:$B,,MATCH(V$4,$B$4:$F$4,0)-1),OFFSET('C. PoC Adj Factor Scoring'!$E$5:$J$282,,MATCH(V$4,'C. PoC Adj Factor Scoring'!$E$3:$AH$3,0)-1),MATCH(V$2&\" Score\",'C. PoC Adj Factor Scoring'!$E$4:$J$4,0),TRUE)","v":1},{"$f":"VLOOKUP(OFFSET($B:$B,,MATCH(W$4,$B$4:$F$4,0)-1),OFFSET('C. PoC Adj Factor Scoring'!$E$5:$J$282,,MATCH(W$4,'C. PoC Adj Factor Scoring'!$E$3:$AH$3,0)-1),MATCH(W$2&\" Score\",'C. PoC Adj Factor Scoring'!$E$4:$J$4,0),TRUE)","v":1},{"$f":"VLOOKUP(OFFSET($B:$B,,MATCH(X$4,$B$4:$F$4,0)-1),OFFSET('C. PoC Adj Factor Scoring'!$E$5:$J$282,,MATCH(X$4,'C. PoC Adj Factor Scoring'!$E$3:$AH$3,0)-1),MATCH(X$2&\" Score\",'C. PoC Adj Factor Scoring'!$E$4:$J$4,0),TRUE)","v":1},{"$f":"VLOOKUP(OFFSET($B:$B,,MATCH(Y$4,$B$4:$F$4,0)-1),OFFSET('C. PoC Adj Factor Scoring'!$E$5:$J$282,,MATCH(Y$4,'C. PoC Adj Factor Scoring'!$E$3:$AH$3,0)-1),MATCH(Y$2&\" Score\",'C. PoC Adj Factor Scoring'!$E$4:$J$4,0),TRUE)","v":1},{"$f":"VLOOKUP(OFFSET($B:$B,,MATCH(Z$4,$B$4:$F$4,0)-1),OFFSET('C. PoC Adj Factor Scoring'!$E$5:$J$282,,MATCH(Z$4,'C. PoC Adj Factor Scoring'!$E$3:$AH$3,0)-1),MATCH(Z$2&\" Score\",'C. PoC Adj Factor Scoring'!$E$4:$J$4,0),TRUE)","v":1},{"$f":"VLOOKUP(OFFSET($B:$B,,MATCH(AA$4,$B$4:$F$4,0)-1),OFFSET('C. PoC Adj Factor Scoring'!$E$5:$J$282,,MATCH(AA$4,'C. PoC Adj Factor Scoring'!$E$3:$AH$3,0)-1),MATCH(AA$2&\" Score\",'C. PoC Adj Factor Scoring'!$E$4:$J$4,0),TRUE)","v":3},{"$f":"VLOOKUP(OFFSET($B:$B,,MATCH(AB$4,$B$4:$F$4,0)-1),OFFSET('C. PoC Adj Factor Scoring'!$E$5:$J$282,,MATCH(AB$4,'C. PoC Adj Factor Scoring'!$E$3:$AH$3,0)-1),MATCH(AB$2&\" Score\",'C. PoC Adj Factor Scoring'!$E$4:$J$4,0),TRUE)","v":1},{"$f":"VLOOKUP(OFFSET($B:$B,,MATCH(AC$4,$B$4:$F$4,0)-1),OFFSET('C. PoC Adj Factor Scoring'!$E$5:$J$282,,MATCH(AC$4,'C. PoC Adj Factor Scoring'!$E$3:$AH$3,0)-1),MATCH(AC$2&\" Score\",'C. PoC Adj Factor Scoring'!$E$4:$J$4,0),TRUE)","v":1},{"$f":"VLOOKUP(OFFSET($B:$B,,MATCH(AD$4,$B$4:$F$4,0)-1),OFFSET('C. PoC Adj Factor Scoring'!$E$5:$J$282,,MATCH(AD$4,'C. PoC Adj Factor Scoring'!$E$3:$AH$3,0)-1),MATCH(AD$2&\" Score\",'C. PoC Adj Factor Scoring'!$E$4:$J$4,0),TRUE)","v":1},{"$f":"VLOOKUP(OFFSET($B:$B,,MATCH(AE$4,$B$4:$F$4,0)-1),OFFSET('C. PoC Adj Factor Scoring'!$E$5:$J$282,,MATCH(AE$4,'C. PoC Adj Factor Scoring'!$E$3:$AH$3,0)-1),MATCH(AE$2&\" Score\",'C. PoC Adj Factor Scoring'!$E$4:$J$4,0),TRUE)","v":1}]
[{"$f":"'A. Population Info'!A156","v":1000344872},{"$f":"'A. Population Info'!L156","v":"OIL"},{"$f":"'A. Population Info'!M156","v":0},{"$f":"'A. Population Info'!N156","v":0},{"$f":"'A. Population Info'!O156","v":0},{"$f":"'A. Population Info'!P156","v":0},{"$f":"VLOOKUP(OFFSET($B:$B,,MATCH(G$4,$B$4:$F$4,0)-1),OFFSET('C. PoC Adj Factor Scoring'!$E$5:$J$282,,MATCH(G$4,'C. PoC Adj Factor Scoring'!$E$3:$AH$3,0)-1),MATCH(G$2&\" Score\",'C. PoC Adj Factor Scoring'!$E$4:$J$4,0),TRUE)","v":4},{"$f":"VLOOKUP(OFFSET($B:$B,,MATCH(H$4,$B$4:$F$4,0)-1),OFFSET('C. PoC Adj Factor Scoring'!$E$5:$J$282,,MATCH(H$4,'C. PoC Adj Factor Scoring'!$E$3:$AH$3,0)-1),MATCH(H$2&\" Score\",'C. PoC Adj Factor Scoring'!$E$4:$J$4,0),TRUE)","v":1},{"$f":"VLOOKUP(OFFSET($B:$B,,MATCH(I$4,$B$4:$F$4,0)-1),OFFSET('C. PoC Adj Factor Scoring'!$E$5:$J$282,,MATCH(I$4,'C. PoC Adj Factor Scoring'!$E$3:$AH$3,0)-1),MATCH(I$2&\" Score\",'C. PoC Adj Factor Scoring'!$E$4:$J$4,0),TRUE)","v":1},{"$f":"VLOOKUP(OFFSET($B:$B,,MATCH(J$4,$B$4:$F$4,0)-1),OFFSET('C. PoC Adj Factor Scoring'!$E$5:$J$282,,MATCH(J$4,'C. PoC Adj Factor Scoring'!$E$3:$AH$3,0)-1),MATCH(J$2&\" Score\",'C. PoC Adj Factor Scoring'!$E$4:$J$4,0),TRUE)","v":1},{"$f":"VLOOKUP(OFFSET($B:$B,,MATCH(K$4,$B$4:$F$4,0)-1),OFFSET('C. PoC Adj Factor Scoring'!$E$5:$J$282,,MATCH(K$4,'C. PoC Adj Factor Scoring'!$E$3:$AH$3,0)-1),MATCH(K$2&\" Score\",'C. PoC Adj Factor Scoring'!$E$4:$J$4,0),TRUE)","v":1},{"$f":"VLOOKUP(OFFSET($B:$B,,MATCH(L$4,$B$4:$F$4,0)-1),OFFSET('C. PoC Adj Factor Scoring'!$E$5:$J$282,,MATCH(L$4,'C. PoC Adj Factor Scoring'!$E$3:$AH$3,0)-1),MATCH(L$2&\" Score\",'C. PoC Adj Factor Scoring'!$E$4:$J$4,0),TRUE)","v":1},{"$f":"VLOOKUP(OFFSET($B:$B,,MATCH(M$4,$B$4:$F$4,0)-1),OFFSET('C. PoC Adj Factor Scoring'!$E$5:$J$282,,MATCH(M$4,'C. PoC Adj Factor Scoring'!$E$3:$AH$3,0)-1),MATCH(M$2&\" Score\",'C. PoC Adj Factor Scoring'!$E$4:$J$4,0),TRUE)","v":1},{"$f":"VLOOKUP(OFFSET($B:$B,,MATCH(N$4,$B$4:$F$4,0)-1),OFFSET('C. PoC Adj Factor Scoring'!$E$5:$J$282,,MATCH(N$4,'C. PoC Adj Factor Scoring'!$E$3:$AH$3,0)-1),MATCH(N$2&\" Score\",'C. PoC Adj Factor Scoring'!$E$4:$J$4,0),TRUE)","v":1},{"$f":"VLOOKUP(OFFSET($B:$B,,MATCH(O$4,$B$4:$F$4,0)-1),OFFSET('C. PoC Adj Factor Scoring'!$E$5:$J$282,,MATCH(O$4,'C. PoC Adj Factor Scoring'!$E$3:$AH$3,0)-1),MATCH(O$2&\" Score\",'C. PoC Adj Factor Scoring'!$E$4:$J$4,0),TRUE)","v":1},{"$f":"VLOOKUP(OFFSET($B:$B,,MATCH(P$4,$B$4:$F$4,0)-1),OFFSET('C. PoC Adj Factor Scoring'!$E$5:$J$282,,MATCH(P$4,'C. PoC Adj Factor Scoring'!$E$3:$AH$3,0)-1),MATCH(P$2&\" Score\",'C. PoC Adj Factor Scoring'!$E$4:$J$4,0),TRUE)","v":1},{"$f":"VLOOKUP(OFFSET($B:$B,,MATCH(Q$4,$B$4:$F$4,0)-1),OFFSET('C. PoC Adj Factor Scoring'!$E$5:$J$282,,MATCH(Q$4,'C. PoC Adj Factor Scoring'!$E$3:$AH$3,0)-1),MATCH(Q$2&\" Score\",'C. PoC Adj Factor Scoring'!$E$4:$J$4,0),TRUE)","v":1},{"$f":"VLOOKUP(OFFSET($B:$B,,MATCH(R$4,$B$4:$F$4,0)-1),OFFSET('C. PoC Adj Factor Scoring'!$E$5:$J$282,,MATCH(R$4,'C. PoC Adj Factor Scoring'!$E$3:$AH$3,0)-1),MATCH(R$2&\" Score\",'C. PoC Adj Factor Scoring'!$E$4:$J$4,0),TRUE)","v":1},{"$f":"VLOOKUP(OFFSET($B:$B,,MATCH(S$4,$B$4:$F$4,0)-1),OFFSET('C. PoC Adj Factor Scoring'!$E$5:$J$282,,MATCH(S$4,'C. PoC Adj Factor Scoring'!$E$3:$AH$3,0)-1),MATCH(S$2&\" Score\",'C. PoC Adj Factor Scoring'!$E$4:$J$4,0),TRUE)","v":1},{"$f":"VLOOKUP(OFFSET($B:$B,,MATCH(T$4,$B$4:$F$4,0)-1),OFFSET('C. PoC Adj Factor Scoring'!$E$5:$J$282,,MATCH(T$4,'C. PoC Adj Factor Scoring'!$E$3:$AH$3,0)-1),MATCH(T$2&\" Score\",'C. PoC Adj Factor Scoring'!$E$4:$J$4,0),TRUE)","v":1},{"$f":"VLOOKUP(OFFSET($B:$B,,MATCH(U$4,$B$4:$F$4,0)-1),OFFSET('C. PoC Adj Factor Scoring'!$E$5:$J$282,,MATCH(U$4,'C. PoC Adj Factor Scoring'!$E$3:$AH$3,0)-1),MATCH(U$2&\" Score\",'C. PoC Adj Factor Scoring'!$E$4:$J$4,0),TRUE)","v":1},{"$f":"VLOOKUP(OFFSET($B:$B,,MATCH(V$4,$B$4:$F$4,0)-1),OFFSET('C. PoC Adj Factor Scoring'!$E$5:$J$282,,MATCH(V$4,'C. PoC Adj Factor Scoring'!$E$3:$AH$3,0)-1),MATCH(V$2&\" Score\",'C. PoC Adj Factor Scoring'!$E$4:$J$4,0),TRUE)","v":1},{"$f":"VLOOKUP(OFFSET($B:$B,,MATCH(W$4,$B$4:$F$4,0)-1),OFFSET('C. PoC Adj Factor Scoring'!$E$5:$J$282,,MATCH(W$4,'C. PoC Adj Factor Scoring'!$E$3:$AH$3,0)-1),MATCH(W$2&\" Score\",'C. PoC Adj Factor Scoring'!$E$4:$J$4,0),TRUE)","v":1},{"$f":"VLOOKUP(OFFSET($B:$B,,MATCH(X$4,$B$4:$F$4,0)-1),OFFSET('C. PoC Adj Factor Scoring'!$E$5:$J$282,,MATCH(X$4,'C. PoC Adj Factor Scoring'!$E$3:$AH$3,0)-1),MATCH(X$2&\" Score\",'C. PoC Adj Factor Scoring'!$E$4:$J$4,0),TRUE)","v":1},{"$f":"VLOOKUP(OFFSET($B:$B,,MATCH(Y$4,$B$4:$F$4,0)-1),OFFSET('C. PoC Adj Factor Scoring'!$E$5:$J$282,,MATCH(Y$4,'C. PoC Adj Factor Scoring'!$E$3:$AH$3,0)-1),MATCH(Y$2&\" Score\",'C. PoC Adj Factor Scoring'!$E$4:$J$4,0),TRUE)","v":1},{"$f":"VLOOKUP(OFFSET($B:$B,,MATCH(Z$4,$B$4:$F$4,0)-1),OFFSET('C. PoC Adj Factor Scoring'!$E$5:$J$282,,MATCH(Z$4,'C. PoC Adj Factor Scoring'!$E$3:$AH$3,0)-1),MATCH(Z$2&\" Score\",'C. PoC Adj Factor Scoring'!$E$4:$J$4,0),TRUE)","v":1},{"$f":"VLOOKUP(OFFSET($B:$B,,MATCH(AA$4,$B$4:$F$4,0)-1),OFFSET('C. PoC Adj Factor Scoring'!$E$5:$J$282,,MATCH(AA$4,'C. PoC Adj Factor Scoring'!$E$3:$AH$3,0)-1),MATCH(AA$2&\" Score\",'C. PoC Adj Factor Scoring'!$E$4:$J$4,0),TRUE)","v":3},{"$f":"VLOOKUP(OFFSET($B:$B,,MATCH(AB$4,$B$4:$F$4,0)-1),OFFSET('C. PoC Adj Factor Scoring'!$E$5:$J$282,,MATCH(AB$4,'C. PoC Adj Factor Scoring'!$E$3:$AH$3,0)-1),MATCH(AB$2&\" Score\",'C. PoC Adj Factor Scoring'!$E$4:$J$4,0),TRUE)","v":1},{"$f":"VLOOKUP(OFFSET($B:$B,,MATCH(AC$4,$B$4:$F$4,0)-1),OFFSET('C. PoC Adj Factor Scoring'!$E$5:$J$282,,MATCH(AC$4,'C. PoC Adj Factor Scoring'!$E$3:$AH$3,0)-1),MATCH(AC$2&\" Score\",'C. PoC Adj Factor Scoring'!$E$4:$J$4,0),TRUE)","v":1},{"$f":"VLOOKUP(OFFSET($B:$B,,MATCH(AD$4,$B$4:$F$4,0)-1),OFFSET('C. PoC Adj Factor Scoring'!$E$5:$J$282,,MATCH(AD$4,'C. PoC Adj Factor Scoring'!$E$3:$AH$3,0)-1),MATCH(AD$2&\" Score\",'C. PoC Adj Factor Scoring'!$E$4:$J$4,0),TRUE)","v":1},{"$f":"VLOOKUP(OFFSET($B:$B,,MATCH(AE$4,$B$4:$F$4,0)-1),OFFSET('C. PoC Adj Factor Scoring'!$E$5:$J$282,,MATCH(AE$4,'C. PoC Adj Factor Scoring'!$E$3:$AH$3,0)-1),MATCH(AE$2&\" Score\",'C. PoC Adj Factor Scoring'!$E$4:$J$4,0),TRUE)","v":1}]
[{"$f":"'A. Population Info'!A157","v":1000344903},{"$f":"'A. Population Info'!L157","v":"OIL"},{"$f":"'A. Population Info'!M157","v":0},{"$f":"'A. Population Info'!N157","v":0},{"$f":"'A. Population Info'!O157","v":0},{"$f":"'A. Population Info'!P157","v":0},{"$f":"VLOOKUP(OFFSET($B:$B,,MATCH(G$4,$B$4:$F$4,0)-1),OFFSET('C. PoC Adj Factor Scoring'!$E$5:$J$282,,MATCH(G$4,'C. PoC Adj Factor Scoring'!$E$3:$AH$3,0)-1),MATCH(G$2&\" Score\",'C. PoC Adj Factor Scoring'!$E$4:$J$4,0),TRUE)","v":4},{"$f":"VLOOKUP(OFFSET($B:$B,,MATCH(H$4,$B$4:$F$4,0)-1),OFFSET('C. PoC Adj Factor Scoring'!$E$5:$J$282,,MATCH(H$4,'C. PoC Adj Factor Scoring'!$E$3:$AH$3,0)-1),MATCH(H$2&\" Score\",'C. PoC Adj Factor Scoring'!$E$4:$J$4,0),TRUE)","v":1},{"$f":"VLOOKUP(OFFSET($B:$B,,MATCH(I$4,$B$4:$F$4,0)-1),OFFSET('C. PoC Adj Factor Scoring'!$E$5:$J$282,,MATCH(I$4,'C. PoC Adj Factor Scoring'!$E$3:$AH$3,0)-1),MATCH(I$2&\" Score\",'C. PoC Adj Factor Scoring'!$E$4:$J$4,0),TRUE)","v":1},{"$f":"VLOOKUP(OFFSET($B:$B,,MATCH(J$4,$B$4:$F$4,0)-1),OFFSET('C. PoC Adj Factor Scoring'!$E$5:$J$282,,MATCH(J$4,'C. PoC Adj Factor Scoring'!$E$3:$AH$3,0)-1),MATCH(J$2&\" Score\",'C. PoC Adj Factor Scoring'!$E$4:$J$4,0),TRUE)","v":1},{"$f":"VLOOKUP(OFFSET($B:$B,,MATCH(K$4,$B$4:$F$4,0)-1),OFFSET('C. PoC Adj Factor Scoring'!$E$5:$J$282,,MATCH(K$4,'C. PoC Adj Factor Scoring'!$E$3:$AH$3,0)-1),MATCH(K$2&\" Score\",'C. PoC Adj Factor Scoring'!$E$4:$J$4,0),TRUE)","v":1},{"$f":"VLOOKUP(OFFSET($B:$B,,MATCH(L$4,$B$4:$F$4,0)-1),OFFSET('C. PoC Adj Factor Scoring'!$E$5:$J$282,,MATCH(L$4,'C. PoC Adj Factor Scoring'!$E$3:$AH$3,0)-1),MATCH(L$2&\" Score\",'C. PoC Adj Factor Scoring'!$E$4:$J$4,0),TRUE)","v":1},{"$f":"VLOOKUP(OFFSET($B:$B,,MATCH(M$4,$B$4:$F$4,0)-1),OFFSET('C. PoC Adj Factor Scoring'!$E$5:$J$282,,MATCH(M$4,'C. PoC Adj Factor Scoring'!$E$3:$AH$3,0)-1),MATCH(M$2&\" Score\",'C. PoC Adj Factor Scoring'!$E$4:$J$4,0),TRUE)","v":1},{"$f":"VLOOKUP(OFFSET($B:$B,,MATCH(N$4,$B$4:$F$4,0)-1),OFFSET('C. PoC Adj Factor Scoring'!$E$5:$J$282,,MATCH(N$4,'C. PoC Adj Factor Scoring'!$E$3:$AH$3,0)-1),MATCH(N$2&\" Score\",'C. PoC Adj Factor Scoring'!$E$4:$J$4,0),TRUE)","v":1},{"$f":"VLOOKUP(OFFSET($B:$B,,MATCH(O$4,$B$4:$F$4,0)-1),OFFSET('C. PoC Adj Factor Scoring'!$E$5:$J$282,,MATCH(O$4,'C. PoC Adj Factor Scoring'!$E$3:$AH$3,0)-1),MATCH(O$2&\" Score\",'C. PoC Adj Factor Scoring'!$E$4:$J$4,0),TRUE)","v":1},{"$f":"VLOOKUP(OFFSET($B:$B,,MATCH(P$4,$B$4:$F$4,0)-1),OFFSET('C. PoC Adj Factor Scoring'!$E$5:$J$282,,MATCH(P$4,'C. PoC Adj Factor Scoring'!$E$3:$AH$3,0)-1),MATCH(P$2&\" Score\",'C. PoC Adj Factor Scoring'!$E$4:$J$4,0),TRUE)","v":1},{"$f":"VLOOKUP(OFFSET($B:$B,,MATCH(Q$4,$B$4:$F$4,0)-1),OFFSET('C. PoC Adj Factor Scoring'!$E$5:$J$282,,MATCH(Q$4,'C. PoC Adj Factor Scoring'!$E$3:$AH$3,0)-1),MATCH(Q$2&\" Score\",'C. PoC Adj Factor Scoring'!$E$4:$J$4,0),TRUE)","v":1},{"$f":"VLOOKUP(OFFSET($B:$B,,MATCH(R$4,$B$4:$F$4,0)-1),OFFSET('C. PoC Adj Factor Scoring'!$E$5:$J$282,,MATCH(R$4,'C. PoC Adj Factor Scoring'!$E$3:$AH$3,0)-1),MATCH(R$2&\" Score\",'C. PoC Adj Factor Scoring'!$E$4:$J$4,0),TRUE)","v":1},{"$f":"VLOOKUP(OFFSET($B:$B,,MATCH(S$4,$B$4:$F$4,0)-1),OFFSET('C. PoC Adj Factor Scoring'!$E$5:$J$282,,MATCH(S$4,'C. PoC Adj Factor Scoring'!$E$3:$AH$3,0)-1),MATCH(S$2&\" Score\",'C. PoC Adj Factor Scoring'!$E$4:$J$4,0),TRUE)","v":1},{"$f":"VLOOKUP(OFFSET($B:$B,,MATCH(T$4,$B$4:$F$4,0)-1),OFFSET('C. PoC Adj Factor Scoring'!$E$5:$J$282,,MATCH(T$4,'C. PoC Adj Factor Scoring'!$E$3:$AH$3,0)-1),MATCH(T$2&\" Score\",'C. PoC Adj Factor Scoring'!$E$4:$J$4,0),TRUE)","v":1},{"$f":"VLOOKUP(OFFSET($B:$B,,MATCH(U$4,$B$4:$F$4,0)-1),OFFSET('C. PoC Adj Factor Scoring'!$E$5:$J$282,,MATCH(U$4,'C. PoC Adj Factor Scoring'!$E$3:$AH$3,0)-1),MATCH(U$2&\" Score\",'C. PoC Adj Factor Scoring'!$E$4:$J$4,0),TRUE)","v":1},{"$f":"VLOOKUP(OFFSET($B:$B,,MATCH(V$4,$B$4:$F$4,0)-1),OFFSET('C. PoC Adj Factor Scoring'!$E$5:$J$282,,MATCH(V$4,'C. PoC Adj Factor Scoring'!$E$3:$AH$3,0)-1),MATCH(V$2&\" Score\",'C. PoC Adj Factor Scoring'!$E$4:$J$4,0),TRUE)","v":1},{"$f":"VLOOKUP(OFFSET($B:$B,,MATCH(W$4,$B$4:$F$4,0)-1),OFFSET('C. PoC Adj Factor Scoring'!$E$5:$J$282,,MATCH(W$4,'C. PoC Adj Factor Scoring'!$E$3:$AH$3,0)-1),MATCH(W$2&\" Score\",'C. PoC Adj Factor Scoring'!$E$4:$J$4,0),TRUE)","v":1},{"$f":"VLOOKUP(OFFSET($B:$B,,MATCH(X$4,$B$4:$F$4,0)-1),OFFSET('C. PoC Adj Factor Scoring'!$E$5:$J$282,,MATCH(X$4,'C. PoC Adj Factor Scoring'!$E$3:$AH$3,0)-1),MATCH(X$2&\" Score\",'C. PoC Adj Factor Scoring'!$E$4:$J$4,0),TRUE)","v":1},{"$f":"VLOOKUP(OFFSET($B:$B,,MATCH(Y$4,$B$4:$F$4,0)-1),OFFSET('C. PoC Adj Factor Scoring'!$E$5:$J$282,,MATCH(Y$4,'C. PoC Adj Factor Scoring'!$E$3:$AH$3,0)-1),MATCH(Y$2&\" Score\",'C. PoC Adj Factor Scoring'!$E$4:$J$4,0),TRUE)","v":1},{"$f":"VLOOKUP(OFFSET($B:$B,,MATCH(Z$4,$B$4:$F$4,0)-1),OFFSET('C. PoC Adj Factor Scoring'!$E$5:$J$282,,MATCH(Z$4,'C. PoC Adj Factor Scoring'!$E$3:$AH$3,0)-1),MATCH(Z$2&\" Score\",'C. PoC Adj Factor Scoring'!$E$4:$J$4,0),TRUE)","v":1},{"$f":"VLOOKUP(OFFSET($B:$B,,MATCH(AA$4,$B$4:$F$4,0)-1),OFFSET('C. PoC Adj Factor Scoring'!$E$5:$J$282,,MATCH(AA$4,'C. PoC Adj Factor Scoring'!$E$3:$AH$3,0)-1),MATCH(AA$2&\" Score\",'C. PoC Adj Factor Scoring'!$E$4:$J$4,0),TRUE)","v":3},{"$f":"VLOOKUP(OFFSET($B:$B,,MATCH(AB$4,$B$4:$F$4,0)-1),OFFSET('C. PoC Adj Factor Scoring'!$E$5:$J$282,,MATCH(AB$4,'C. PoC Adj Factor Scoring'!$E$3:$AH$3,0)-1),MATCH(AB$2&\" Score\",'C. PoC Adj Factor Scoring'!$E$4:$J$4,0),TRUE)","v":1},{"$f":"VLOOKUP(OFFSET($B:$B,,MATCH(AC$4,$B$4:$F$4,0)-1),OFFSET('C. PoC Adj Factor Scoring'!$E$5:$J$282,,MATCH(AC$4,'C. PoC Adj Factor Scoring'!$E$3:$AH$3,0)-1),MATCH(AC$2&\" Score\",'C. PoC Adj Factor Scoring'!$E$4:$J$4,0),TRUE)","v":1},{"$f":"VLOOKUP(OFFSET($B:$B,,MATCH(AD$4,$B$4:$F$4,0)-1),OFFSET('C. PoC Adj Factor Scoring'!$E$5:$J$282,,MATCH(AD$4,'C. PoC Adj Factor Scoring'!$E$3:$AH$3,0)-1),MATCH(AD$2&\" Score\",'C. PoC Adj Factor Scoring'!$E$4:$J$4,0),TRUE)","v":1},{"$f":"VLOOKUP(OFFSET($B:$B,,MATCH(AE$4,$B$4:$F$4,0)-1),OFFSET('C. PoC Adj Factor Scoring'!$E$5:$J$282,,MATCH(AE$4,'C. PoC Adj Factor Scoring'!$E$3:$AH$3,0)-1),MATCH(AE$2&\" Score\",'C. PoC Adj Factor Scoring'!$E$4:$J$4,0),TRUE)","v":1}]
[{"$f":"'A. Population Info'!A158","v":1000344995},{"$f":"'A. Population Info'!L158","v":"OIL"},{"$f":"'A. Population Info'!M158","v":0},{"$f":"'A. Population Info'!N158","v":0},{"$f":"'A. Population Info'!O158","v":0},{"$f":"'A. Population Info'!P158","v":0},{"$f":"VLOOKUP(OFFSET($B:$B,,MATCH(G$4,$B$4:$F$4,0)-1),OFFSET('C. PoC Adj Factor Scoring'!$E$5:$J$282,,MATCH(G$4,'C. PoC Adj Factor Scoring'!$E$3:$AH$3,0)-1),MATCH(G$2&\" Score\",'C. PoC Adj Factor Scoring'!$E$4:$J$4,0),TRUE)","v":4},{"$f":"VLOOKUP(OFFSET($B:$B,,MATCH(H$4,$B$4:$F$4,0)-1),OFFSET('C. PoC Adj Factor Scoring'!$E$5:$J$282,,MATCH(H$4,'C. PoC Adj Factor Scoring'!$E$3:$AH$3,0)-1),MATCH(H$2&\" Score\",'C. PoC Adj Factor Scoring'!$E$4:$J$4,0),TRUE)","v":1},{"$f":"VLOOKUP(OFFSET($B:$B,,MATCH(I$4,$B$4:$F$4,0)-1),OFFSET('C. PoC Adj Factor Scoring'!$E$5:$J$282,,MATCH(I$4,'C. PoC Adj Factor Scoring'!$E$3:$AH$3,0)-1),MATCH(I$2&\" Score\",'C. PoC Adj Factor Scoring'!$E$4:$J$4,0),TRUE)","v":1},{"$f":"VLOOKUP(OFFSET($B:$B,,MATCH(J$4,$B$4:$F$4,0)-1),OFFSET('C. PoC Adj Factor Scoring'!$E$5:$J$282,,MATCH(J$4,'C. PoC Adj Factor Scoring'!$E$3:$AH$3,0)-1),MATCH(J$2&\" Score\",'C. PoC Adj Factor Scoring'!$E$4:$J$4,0),TRUE)","v":1},{"$f":"VLOOKUP(OFFSET($B:$B,,MATCH(K$4,$B$4:$F$4,0)-1),OFFSET('C. PoC Adj Factor Scoring'!$E$5:$J$282,,MATCH(K$4,'C. PoC Adj Factor Scoring'!$E$3:$AH$3,0)-1),MATCH(K$2&\" Score\",'C. PoC Adj Factor Scoring'!$E$4:$J$4,0),TRUE)","v":1},{"$f":"VLOOKUP(OFFSET($B:$B,,MATCH(L$4,$B$4:$F$4,0)-1),OFFSET('C. PoC Adj Factor Scoring'!$E$5:$J$282,,MATCH(L$4,'C. PoC Adj Factor Scoring'!$E$3:$AH$3,0)-1),MATCH(L$2&\" Score\",'C. PoC Adj Factor Scoring'!$E$4:$J$4,0),TRUE)","v":1},{"$f":"VLOOKUP(OFFSET($B:$B,,MATCH(M$4,$B$4:$F$4,0)-1),OFFSET('C. PoC Adj Factor Scoring'!$E$5:$J$282,,MATCH(M$4,'C. PoC Adj Factor Scoring'!$E$3:$AH$3,0)-1),MATCH(M$2&\" Score\",'C. PoC Adj Factor Scoring'!$E$4:$J$4,0),TRUE)","v":1},{"$f":"VLOOKUP(OFFSET($B:$B,,MATCH(N$4,$B$4:$F$4,0)-1),OFFSET('C. PoC Adj Factor Scoring'!$E$5:$J$282,,MATCH(N$4,'C. PoC Adj Factor Scoring'!$E$3:$AH$3,0)-1),MATCH(N$2&\" Score\",'C. PoC Adj Factor Scoring'!$E$4:$J$4,0),TRUE)","v":1},{"$f":"VLOOKUP(OFFSET($B:$B,,MATCH(O$4,$B$4:$F$4,0)-1),OFFSET('C. PoC Adj Factor Scoring'!$E$5:$J$282,,MATCH(O$4,'C. PoC Adj Factor Scoring'!$E$3:$AH$3,0)-1),MATCH(O$2&\" Score\",'C. PoC Adj Factor Scoring'!$E$4:$J$4,0),TRUE)","v":1},{"$f":"VLOOKUP(OFFSET($B:$B,,MATCH(P$4,$B$4:$F$4,0)-1),OFFSET('C. PoC Adj Factor Scoring'!$E$5:$J$282,,MATCH(P$4,'C. PoC Adj Factor Scoring'!$E$3:$AH$3,0)-1),MATCH(P$2&\" Score\",'C. PoC Adj Factor Scoring'!$E$4:$J$4,0),TRUE)","v":1},{"$f":"VLOOKUP(OFFSET($B:$B,,MATCH(Q$4,$B$4:$F$4,0)-1),OFFSET('C. PoC Adj Factor Scoring'!$E$5:$J$282,,MATCH(Q$4,'C. PoC Adj Factor Scoring'!$E$3:$AH$3,0)-1),MATCH(Q$2&\" Score\",'C. PoC Adj Factor Scoring'!$E$4:$J$4,0),TRUE)","v":1},{"$f":"VLOOKUP(OFFSET($B:$B,,MATCH(R$4,$B$4:$F$4,0)-1),OFFSET('C. PoC Adj Factor Scoring'!$E$5:$J$282,,MATCH(R$4,'C. PoC Adj Factor Scoring'!$E$3:$AH$3,0)-1),MATCH(R$2&\" Score\",'C. PoC Adj Factor Scoring'!$E$4:$J$4,0),TRUE)","v":1},{"$f":"VLOOKUP(OFFSET($B:$B,,MATCH(S$4,$B$4:$F$4,0)-1),OFFSET('C. PoC Adj Factor Scoring'!$E$5:$J$282,,MATCH(S$4,'C. PoC Adj Factor Scoring'!$E$3:$AH$3,0)-1),MATCH(S$2&\" Score\",'C. PoC Adj Factor Scoring'!$E$4:$J$4,0),TRUE)","v":1},{"$f":"VLOOKUP(OFFSET($B:$B,,MATCH(T$4,$B$4:$F$4,0)-1),OFFSET('C. PoC Adj Factor Scoring'!$E$5:$J$282,,MATCH(T$4,'C. PoC Adj Factor Scoring'!$E$3:$AH$3,0)-1),MATCH(T$2&\" Score\",'C. PoC Adj Factor Scoring'!$E$4:$J$4,0),TRUE)","v":1},{"$f":"VLOOKUP(OFFSET($B:$B,,MATCH(U$4,$B$4:$F$4,0)-1),OFFSET('C. PoC Adj Factor Scoring'!$E$5:$J$282,,MATCH(U$4,'C. PoC Adj Factor Scoring'!$E$3:$AH$3,0)-1),MATCH(U$2&\" Score\",'C. PoC Adj Factor Scoring'!$E$4:$J$4,0),TRUE)","v":1},{"$f":"VLOOKUP(OFFSET($B:$B,,MATCH(V$4,$B$4:$F$4,0)-1),OFFSET('C. PoC Adj Factor Scoring'!$E$5:$J$282,,MATCH(V$4,'C. PoC Adj Factor Scoring'!$E$3:$AH$3,0)-1),MATCH(V$2&\" Score\",'C. PoC Adj Factor Scoring'!$E$4:$J$4,0),TRUE)","v":1},{"$f":"VLOOKUP(OFFSET($B:$B,,MATCH(W$4,$B$4:$F$4,0)-1),OFFSET('C. PoC Adj Factor Scoring'!$E$5:$J$282,,MATCH(W$4,'C. PoC Adj Factor Scoring'!$E$3:$AH$3,0)-1),MATCH(W$2&\" Score\",'C. PoC Adj Factor Scoring'!$E$4:$J$4,0),TRUE)","v":1},{"$f":"VLOOKUP(OFFSET($B:$B,,MATCH(X$4,$B$4:$F$4,0)-1),OFFSET('C. PoC Adj Factor Scoring'!$E$5:$J$282,,MATCH(X$4,'C. PoC Adj Factor Scoring'!$E$3:$AH$3,0)-1),MATCH(X$2&\" Score\",'C. PoC Adj Factor Scoring'!$E$4:$J$4,0),TRUE)","v":1},{"$f":"VLOOKUP(OFFSET($B:$B,,MATCH(Y$4,$B$4:$F$4,0)-1),OFFSET('C. PoC Adj Factor Scoring'!$E$5:$J$282,,MATCH(Y$4,'C. PoC Adj Factor Scoring'!$E$3:$AH$3,0)-1),MATCH(Y$2&\" Score\",'C. PoC Adj Factor Scoring'!$E$4:$J$4,0),TRUE)","v":1},{"$f":"VLOOKUP(OFFSET($B:$B,,MATCH(Z$4,$B$4:$F$4,0)-1),OFFSET('C. PoC Adj Factor Scoring'!$E$5:$J$282,,MATCH(Z$4,'C. PoC Adj Factor Scoring'!$E$3:$AH$3,0)-1),MATCH(Z$2&\" Score\",'C. PoC Adj Factor Scoring'!$E$4:$J$4,0),TRUE)","v":1},{"$f":"VLOOKUP(OFFSET($B:$B,,MATCH(AA$4,$B$4:$F$4,0)-1),OFFSET('C. PoC Adj Factor Scoring'!$E$5:$J$282,,MATCH(AA$4,'C. PoC Adj Factor Scoring'!$E$3:$AH$3,0)-1),MATCH(AA$2&\" Score\",'C. PoC Adj Factor Scoring'!$E$4:$J$4,0),TRUE)","v":3},{"$f":"VLOOKUP(OFFSET($B:$B,,MATCH(AB$4,$B$4:$F$4,0)-1),OFFSET('C. PoC Adj Factor Scoring'!$E$5:$J$282,,MATCH(AB$4,'C. PoC Adj Factor Scoring'!$E$3:$AH$3,0)-1),MATCH(AB$2&\" Score\",'C. PoC Adj Factor Scoring'!$E$4:$J$4,0),TRUE)","v":1},{"$f":"VLOOKUP(OFFSET($B:$B,,MATCH(AC$4,$B$4:$F$4,0)-1),OFFSET('C. PoC Adj Factor Scoring'!$E$5:$J$282,,MATCH(AC$4,'C. PoC Adj Factor Scoring'!$E$3:$AH$3,0)-1),MATCH(AC$2&\" Score\",'C. PoC Adj Factor Scoring'!$E$4:$J$4,0),TRUE)","v":1},{"$f":"VLOOKUP(OFFSET($B:$B,,MATCH(AD$4,$B$4:$F$4,0)-1),OFFSET('C. PoC Adj Factor Scoring'!$E$5:$J$282,,MATCH(AD$4,'C. PoC Adj Factor Scoring'!$E$3:$AH$3,0)-1),MATCH(AD$2&\" Score\",'C. PoC Adj Factor Scoring'!$E$4:$J$4,0),TRUE)","v":1},{"$f":"VLOOKUP(OFFSET($B:$B,,MATCH(AE$4,$B$4:$F$4,0)-1),OFFSET('C. PoC Adj Factor Scoring'!$E$5:$J$282,,MATCH(AE$4,'C. PoC Adj Factor Scoring'!$E$3:$AH$3,0)-1),MATCH(AE$2&\" Score\",'C. PoC Adj Factor Scoring'!$E$4:$J$4,0),TRUE)","v":1}]
[{"$f":"'A. Population Info'!A159","v":1000349025},{"$f":"'A. Population Info'!L159","v":"OIL"},{"$f":"'A. Population Info'!M159","v":0},{"$f":"'A. Population Info'!N159","v":0},{"$f":"'A. Population Info'!O159","v":0},{"$f":"'A. Population Info'!P159","v":0},{"$f":"VLOOKUP(OFFSET($B:$B,,MATCH(G$4,$B$4:$F$4,0)-1),OFFSET('C. PoC Adj Factor Scoring'!$E$5:$J$282,,MATCH(G$4,'C. PoC Adj Factor Scoring'!$E$3:$AH$3,0)-1),MATCH(G$2&\" Score\",'C. PoC Adj Factor Scoring'!$E$4:$J$4,0),TRUE)","v":4},{"$f":"VLOOKUP(OFFSET($B:$B,,MATCH(H$4,$B$4:$F$4,0)-1),OFFSET('C. PoC Adj Factor Scoring'!$E$5:$J$282,,MATCH(H$4,'C. PoC Adj Factor Scoring'!$E$3:$AH$3,0)-1),MATCH(H$2&\" Score\",'C. PoC Adj Factor Scoring'!$E$4:$J$4,0),TRUE)","v":1},{"$f":"VLOOKUP(OFFSET($B:$B,,MATCH(I$4,$B$4:$F$4,0)-1),OFFSET('C. PoC Adj Factor Scoring'!$E$5:$J$282,,MATCH(I$4,'C. PoC Adj Factor Scoring'!$E$3:$AH$3,0)-1),MATCH(I$2&\" Score\",'C. PoC Adj Factor Scoring'!$E$4:$J$4,0),TRUE)","v":1},{"$f":"VLOOKUP(OFFSET($B:$B,,MATCH(J$4,$B$4:$F$4,0)-1),OFFSET('C. PoC Adj Factor Scoring'!$E$5:$J$282,,MATCH(J$4,'C. PoC Adj Factor Scoring'!$E$3:$AH$3,0)-1),MATCH(J$2&\" Score\",'C. PoC Adj Factor Scoring'!$E$4:$J$4,0),TRUE)","v":1},{"$f":"VLOOKUP(OFFSET($B:$B,,MATCH(K$4,$B$4:$F$4,0)-1),OFFSET('C. PoC Adj Factor Scoring'!$E$5:$J$282,,MATCH(K$4,'C. PoC Adj Factor Scoring'!$E$3:$AH$3,0)-1),MATCH(K$2&\" Score\",'C. PoC Adj Factor Scoring'!$E$4:$J$4,0),TRUE)","v":1},{"$f":"VLOOKUP(OFFSET($B:$B,,MATCH(L$4,$B$4:$F$4,0)-1),OFFSET('C. PoC Adj Factor Scoring'!$E$5:$J$282,,MATCH(L$4,'C. PoC Adj Factor Scoring'!$E$3:$AH$3,0)-1),MATCH(L$2&\" Score\",'C. PoC Adj Factor Scoring'!$E$4:$J$4,0),TRUE)","v":1},{"$f":"VLOOKUP(OFFSET($B:$B,,MATCH(M$4,$B$4:$F$4,0)-1),OFFSET('C. PoC Adj Factor Scoring'!$E$5:$J$282,,MATCH(M$4,'C. PoC Adj Factor Scoring'!$E$3:$AH$3,0)-1),MATCH(M$2&\" Score\",'C. PoC Adj Factor Scoring'!$E$4:$J$4,0),TRUE)","v":1},{"$f":"VLOOKUP(OFFSET($B:$B,,MATCH(N$4,$B$4:$F$4,0)-1),OFFSET('C. PoC Adj Factor Scoring'!$E$5:$J$282,,MATCH(N$4,'C. PoC Adj Factor Scoring'!$E$3:$AH$3,0)-1),MATCH(N$2&\" Score\",'C. PoC Adj Factor Scoring'!$E$4:$J$4,0),TRUE)","v":1},{"$f":"VLOOKUP(OFFSET($B:$B,,MATCH(O$4,$B$4:$F$4,0)-1),OFFSET('C. PoC Adj Factor Scoring'!$E$5:$J$282,,MATCH(O$4,'C. PoC Adj Factor Scoring'!$E$3:$AH$3,0)-1),MATCH(O$2&\" Score\",'C. PoC Adj Factor Scoring'!$E$4:$J$4,0),TRUE)","v":1},{"$f":"VLOOKUP(OFFSET($B:$B,,MATCH(P$4,$B$4:$F$4,0)-1),OFFSET('C. PoC Adj Factor Scoring'!$E$5:$J$282,,MATCH(P$4,'C. PoC Adj Factor Scoring'!$E$3:$AH$3,0)-1),MATCH(P$2&\" Score\",'C. PoC Adj Factor Scoring'!$E$4:$J$4,0),TRUE)","v":1},{"$f":"VLOOKUP(OFFSET($B:$B,,MATCH(Q$4,$B$4:$F$4,0)-1),OFFSET('C. PoC Adj Factor Scoring'!$E$5:$J$282,,MATCH(Q$4,'C. PoC Adj Factor Scoring'!$E$3:$AH$3,0)-1),MATCH(Q$2&\" Score\",'C. PoC Adj Factor Scoring'!$E$4:$J$4,0),TRUE)","v":1},{"$f":"VLOOKUP(OFFSET($B:$B,,MATCH(R$4,$B$4:$F$4,0)-1),OFFSET('C. PoC Adj Factor Scoring'!$E$5:$J$282,,MATCH(R$4,'C. PoC Adj Factor Scoring'!$E$3:$AH$3,0)-1),MATCH(R$2&\" Score\",'C. PoC Adj Factor Scoring'!$E$4:$J$4,0),TRUE)","v":1},{"$f":"VLOOKUP(OFFSET($B:$B,,MATCH(S$4,$B$4:$F$4,0)-1),OFFSET('C. PoC Adj Factor Scoring'!$E$5:$J$282,,MATCH(S$4,'C. PoC Adj Factor Scoring'!$E$3:$AH$3,0)-1),MATCH(S$2&\" Score\",'C. PoC Adj Factor Scoring'!$E$4:$J$4,0),TRUE)","v":1},{"$f":"VLOOKUP(OFFSET($B:$B,,MATCH(T$4,$B$4:$F$4,0)-1),OFFSET('C. PoC Adj Factor Scoring'!$E$5:$J$282,,MATCH(T$4,'C. PoC Adj Factor Scoring'!$E$3:$AH$3,0)-1),MATCH(T$2&\" Score\",'C. PoC Adj Factor Scoring'!$E$4:$J$4,0),TRUE)","v":1},{"$f":"VLOOKUP(OFFSET($B:$B,,MATCH(U$4,$B$4:$F$4,0)-1),OFFSET('C. PoC Adj Factor Scoring'!$E$5:$J$282,,MATCH(U$4,'C. PoC Adj Factor Scoring'!$E$3:$AH$3,0)-1),MATCH(U$2&\" Score\",'C. PoC Adj Factor Scoring'!$E$4:$J$4,0),TRUE)","v":1},{"$f":"VLOOKUP(OFFSET($B:$B,,MATCH(V$4,$B$4:$F$4,0)-1),OFFSET('C. PoC Adj Factor Scoring'!$E$5:$J$282,,MATCH(V$4,'C. PoC Adj Factor Scoring'!$E$3:$AH$3,0)-1),MATCH(V$2&\" Score\",'C. PoC Adj Factor Scoring'!$E$4:$J$4,0),TRUE)","v":1},{"$f":"VLOOKUP(OFFSET($B:$B,,MATCH(W$4,$B$4:$F$4,0)-1),OFFSET('C. PoC Adj Factor Scoring'!$E$5:$J$282,,MATCH(W$4,'C. PoC Adj Factor Scoring'!$E$3:$AH$3,0)-1),MATCH(W$2&\" Score\",'C. PoC Adj Factor Scoring'!$E$4:$J$4,0),TRUE)","v":1},{"$f":"VLOOKUP(OFFSET($B:$B,,MATCH(X$4,$B$4:$F$4,0)-1),OFFSET('C. PoC Adj Factor Scoring'!$E$5:$J$282,,MATCH(X$4,'C. PoC Adj Factor Scoring'!$E$3:$AH$3,0)-1),MATCH(X$2&\" Score\",'C. PoC Adj Factor Scoring'!$E$4:$J$4,0),TRUE)","v":1},{"$f":"VLOOKUP(OFFSET($B:$B,,MATCH(Y$4,$B$4:$F$4,0)-1),OFFSET('C. PoC Adj Factor Scoring'!$E$5:$J$282,,MATCH(Y$4,'C. PoC Adj Factor Scoring'!$E$3:$AH$3,0)-1),MATCH(Y$2&\" Score\",'C. PoC Adj Factor Scoring'!$E$4:$J$4,0),TRUE)","v":1},{"$f":"VLOOKUP(OFFSET($B:$B,,MATCH(Z$4,$B$4:$F$4,0)-1),OFFSET('C. PoC Adj Factor Scoring'!$E$5:$J$282,,MATCH(Z$4,'C. PoC Adj Factor Scoring'!$E$3:$AH$3,0)-1),MATCH(Z$2&\" Score\",'C. PoC Adj Factor Scoring'!$E$4:$J$4,0),TRUE)","v":1},{"$f":"VLOOKUP(OFFSET($B:$B,,MATCH(AA$4,$B$4:$F$4,0)-1),OFFSET('C. PoC Adj Factor Scoring'!$E$5:$J$282,,MATCH(AA$4,'C. PoC Adj Factor Scoring'!$E$3:$AH$3,0)-1),MATCH(AA$2&\" Score\",'C. PoC Adj Factor Scoring'!$E$4:$J$4,0),TRUE)","v":3},{"$f":"VLOOKUP(OFFSET($B:$B,,MATCH(AB$4,$B$4:$F$4,0)-1),OFFSET('C. PoC Adj Factor Scoring'!$E$5:$J$282,,MATCH(AB$4,'C. PoC Adj Factor Scoring'!$E$3:$AH$3,0)-1),MATCH(AB$2&\" Score\",'C. PoC Adj Factor Scoring'!$E$4:$J$4,0),TRUE)","v":1},{"$f":"VLOOKUP(OFFSET($B:$B,,MATCH(AC$4,$B$4:$F$4,0)-1),OFFSET('C. PoC Adj Factor Scoring'!$E$5:$J$282,,MATCH(AC$4,'C. PoC Adj Factor Scoring'!$E$3:$AH$3,0)-1),MATCH(AC$2&\" Score\",'C. PoC Adj Factor Scoring'!$E$4:$J$4,0),TRUE)","v":1},{"$f":"VLOOKUP(OFFSET($B:$B,,MATCH(AD$4,$B$4:$F$4,0)-1),OFFSET('C. PoC Adj Factor Scoring'!$E$5:$J$282,,MATCH(AD$4,'C. PoC Adj Factor Scoring'!$E$3:$AH$3,0)-1),MATCH(AD$2&\" Score\",'C. PoC Adj Factor Scoring'!$E$4:$J$4,0),TRUE)","v":1},{"$f":"VLOOKUP(OFFSET($B:$B,,MATCH(AE$4,$B$4:$F$4,0)-1),OFFSET('C. PoC Adj Factor Scoring'!$E$5:$J$282,,MATCH(AE$4,'C. PoC Adj Factor Scoring'!$E$3:$AH$3,0)-1),MATCH(AE$2&\" Score\",'C. PoC Adj Factor Scoring'!$E$4:$J$4,0),TRUE)","v":1}]
[{"$f":"'A. Population Info'!A160","v":1000349053},{"$f":"'A. Population Info'!L160","v":"OIL"},{"$f":"'A. Population Info'!M160","v":0},{"$f":"'A. Population Info'!N160","v":0},{"$f":"'A. Population Info'!O160","v":0},{"$f":"'A. Population Info'!P160","v":0},{"$f":"VLOOKUP(OFFSET($B:$B,,MATCH(G$4,$B$4:$F$4,0)-1),OFFSET('C. PoC Adj Factor Scoring'!$E$5:$J$282,,MATCH(G$4,'C. PoC Adj Factor Scoring'!$E$3:$AH$3,0)-1),MATCH(G$2&\" Score\",'C. PoC Adj Factor Scoring'!$E$4:$J$4,0),TRUE)","v":4},{"$f":"VLOOKUP(OFFSET($B:$B,,MATCH(H$4,$B$4:$F$4,0)-1),OFFSET('C. PoC Adj Factor Scoring'!$E$5:$J$282,,MATCH(H$4,'C. PoC Adj Factor Scoring'!$E$3:$AH$3,0)-1),MATCH(H$2&\" Score\",'C. PoC Adj Factor Scoring'!$E$4:$J$4,0),TRUE)","v":1},{"$f":"VLOOKUP(OFFSET($B:$B,,MATCH(I$4,$B$4:$F$4,0)-1),OFFSET('C. PoC Adj Factor Scoring'!$E$5:$J$282,,MATCH(I$4,'C. PoC Adj Factor Scoring'!$E$3:$AH$3,0)-1),MATCH(I$2&\" Score\",'C. PoC Adj Factor Scoring'!$E$4:$J$4,0),TRUE)","v":1},{"$f":"VLOOKUP(OFFSET($B:$B,,MATCH(J$4,$B$4:$F$4,0)-1),OFFSET('C. PoC Adj Factor Scoring'!$E$5:$J$282,,MATCH(J$4,'C. PoC Adj Factor Scoring'!$E$3:$AH$3,0)-1),MATCH(J$2&\" Score\",'C. PoC Adj Factor Scoring'!$E$4:$J$4,0),TRUE)","v":1},{"$f":"VLOOKUP(OFFSET($B:$B,,MATCH(K$4,$B$4:$F$4,0)-1),OFFSET('C. PoC Adj Factor Scoring'!$E$5:$J$282,,MATCH(K$4,'C. PoC Adj Factor Scoring'!$E$3:$AH$3,0)-1),MATCH(K$2&\" Score\",'C. PoC Adj Factor Scoring'!$E$4:$J$4,0),TRUE)","v":1},{"$f":"VLOOKUP(OFFSET($B:$B,,MATCH(L$4,$B$4:$F$4,0)-1),OFFSET('C. PoC Adj Factor Scoring'!$E$5:$J$282,,MATCH(L$4,'C. PoC Adj Factor Scoring'!$E$3:$AH$3,0)-1),MATCH(L$2&\" Score\",'C. PoC Adj Factor Scoring'!$E$4:$J$4,0),TRUE)","v":1},{"$f":"VLOOKUP(OFFSET($B:$B,,MATCH(M$4,$B$4:$F$4,0)-1),OFFSET('C. PoC Adj Factor Scoring'!$E$5:$J$282,,MATCH(M$4,'C. PoC Adj Factor Scoring'!$E$3:$AH$3,0)-1),MATCH(M$2&\" Score\",'C. PoC Adj Factor Scoring'!$E$4:$J$4,0),TRUE)","v":1},{"$f":"VLOOKUP(OFFSET($B:$B,,MATCH(N$4,$B$4:$F$4,0)-1),OFFSET('C. PoC Adj Factor Scoring'!$E$5:$J$282,,MATCH(N$4,'C. PoC Adj Factor Scoring'!$E$3:$AH$3,0)-1),MATCH(N$2&\" Score\",'C. PoC Adj Factor Scoring'!$E$4:$J$4,0),TRUE)","v":1},{"$f":"VLOOKUP(OFFSET($B:$B,,MATCH(O$4,$B$4:$F$4,0)-1),OFFSET('C. PoC Adj Factor Scoring'!$E$5:$J$282,,MATCH(O$4,'C. PoC Adj Factor Scoring'!$E$3:$AH$3,0)-1),MATCH(O$2&\" Score\",'C. PoC Adj Factor Scoring'!$E$4:$J$4,0),TRUE)","v":1},{"$f":"VLOOKUP(OFFSET($B:$B,,MATCH(P$4,$B$4:$F$4,0)-1),OFFSET('C. PoC Adj Factor Scoring'!$E$5:$J$282,,MATCH(P$4,'C. PoC Adj Factor Scoring'!$E$3:$AH$3,0)-1),MATCH(P$2&\" Score\",'C. PoC Adj Factor Scoring'!$E$4:$J$4,0),TRUE)","v":1},{"$f":"VLOOKUP(OFFSET($B:$B,,MATCH(Q$4,$B$4:$F$4,0)-1),OFFSET('C. PoC Adj Factor Scoring'!$E$5:$J$282,,MATCH(Q$4,'C. PoC Adj Factor Scoring'!$E$3:$AH$3,0)-1),MATCH(Q$2&\" Score\",'C. PoC Adj Factor Scoring'!$E$4:$J$4,0),TRUE)","v":1},{"$f":"VLOOKUP(OFFSET($B:$B,,MATCH(R$4,$B$4:$F$4,0)-1),OFFSET('C. PoC Adj Factor Scoring'!$E$5:$J$282,,MATCH(R$4,'C. PoC Adj Factor Scoring'!$E$3:$AH$3,0)-1),MATCH(R$2&\" Score\",'C. PoC Adj Factor Scoring'!$E$4:$J$4,0),TRUE)","v":1},{"$f":"VLOOKUP(OFFSET($B:$B,,MATCH(S$4,$B$4:$F$4,0)-1),OFFSET('C. PoC Adj Factor Scoring'!$E$5:$J$282,,MATCH(S$4,'C. PoC Adj Factor Scoring'!$E$3:$AH$3,0)-1),MATCH(S$2&\" Score\",'C. PoC Adj Factor Scoring'!$E$4:$J$4,0),TRUE)","v":1},{"$f":"VLOOKUP(OFFSET($B:$B,,MATCH(T$4,$B$4:$F$4,0)-1),OFFSET('C. PoC Adj Factor Scoring'!$E$5:$J$282,,MATCH(T$4,'C. PoC Adj Factor Scoring'!$E$3:$AH$3,0)-1),MATCH(T$2&\" Score\",'C. PoC Adj Factor Scoring'!$E$4:$J$4,0),TRUE)","v":1},{"$f":"VLOOKUP(OFFSET($B:$B,,MATCH(U$4,$B$4:$F$4,0)-1),OFFSET('C. PoC Adj Factor Scoring'!$E$5:$J$282,,MATCH(U$4,'C. PoC Adj Factor Scoring'!$E$3:$AH$3,0)-1),MATCH(U$2&\" Score\",'C. PoC Adj Factor Scoring'!$E$4:$J$4,0),TRUE)","v":1},{"$f":"VLOOKUP(OFFSET($B:$B,,MATCH(V$4,$B$4:$F$4,0)-1),OFFSET('C. PoC Adj Factor Scoring'!$E$5:$J$282,,MATCH(V$4,'C. PoC Adj Factor Scoring'!$E$3:$AH$3,0)-1),MATCH(V$2&\" Score\",'C. PoC Adj Factor Scoring'!$E$4:$J$4,0),TRUE)","v":1},{"$f":"VLOOKUP(OFFSET($B:$B,,MATCH(W$4,$B$4:$F$4,0)-1),OFFSET('C. PoC Adj Factor Scoring'!$E$5:$J$282,,MATCH(W$4,'C. PoC Adj Factor Scoring'!$E$3:$AH$3,0)-1),MATCH(W$2&\" Score\",'C. PoC Adj Factor Scoring'!$E$4:$J$4,0),TRUE)","v":1},{"$f":"VLOOKUP(OFFSET($B:$B,,MATCH(X$4,$B$4:$F$4,0)-1),OFFSET('C. PoC Adj Factor Scoring'!$E$5:$J$282,,MATCH(X$4,'C. PoC Adj Factor Scoring'!$E$3:$AH$3,0)-1),MATCH(X$2&\" Score\",'C. PoC Adj Factor Scoring'!$E$4:$J$4,0),TRUE)","v":1},{"$f":"VLOOKUP(OFFSET($B:$B,,MATCH(Y$4,$B$4:$F$4,0)-1),OFFSET('C. PoC Adj Factor Scoring'!$E$5:$J$282,,MATCH(Y$4,'C. PoC Adj Factor Scoring'!$E$3:$AH$3,0)-1),MATCH(Y$2&\" Score\",'C. PoC Adj Factor Scoring'!$E$4:$J$4,0),TRUE)","v":1},{"$f":"VLOOKUP(OFFSET($B:$B,,MATCH(Z$4,$B$4:$F$4,0)-1),OFFSET('C. PoC Adj Factor Scoring'!$E$5:$J$282,,MATCH(Z$4,'C. PoC Adj Factor Scoring'!$E$3:$AH$3,0)-1),MATCH(Z$2&\" Score\",'C. PoC Adj Factor Scoring'!$E$4:$J$4,0),TRUE)","v":1},{"$f":"VLOOKUP(OFFSET($B:$B,,MATCH(AA$4,$B$4:$F$4,0)-1),OFFSET('C. PoC Adj Factor Scoring'!$E$5:$J$282,,MATCH(AA$4,'C. PoC Adj Factor Scoring'!$E$3:$AH$3,0)-1),MATCH(AA$2&\" Score\",'C. PoC Adj Factor Scoring'!$E$4:$J$4,0),TRUE)","v":3},{"$f":"VLOOKUP(OFFSET($B:$B,,MATCH(AB$4,$B$4:$F$4,0)-1),OFFSET('C. PoC Adj Factor Scoring'!$E$5:$J$282,,MATCH(AB$4,'C. PoC Adj Factor Scoring'!$E$3:$AH$3,0)-1),MATCH(AB$2&\" Score\",'C. PoC Adj Factor Scoring'!$E$4:$J$4,0),TRUE)","v":1},{"$f":"VLOOKUP(OFFSET($B:$B,,MATCH(AC$4,$B$4:$F$4,0)-1),OFFSET('C. PoC Adj Factor Scoring'!$E$5:$J$282,,MATCH(AC$4,'C. PoC Adj Factor Scoring'!$E$3:$AH$3,0)-1),MATCH(AC$2&\" Score\",'C. PoC Adj Factor Scoring'!$E$4:$J$4,0),TRUE)","v":1},{"$f":"VLOOKUP(OFFSET($B:$B,,MATCH(AD$4,$B$4:$F$4,0)-1),OFFSET('C. PoC Adj Factor Scoring'!$E$5:$J$282,,MATCH(AD$4,'C. PoC Adj Factor Scoring'!$E$3:$AH$3,0)-1),MATCH(AD$2&\" Score\",'C. PoC Adj Factor Scoring'!$E$4:$J$4,0),TRUE)","v":1},{"$f":"VLOOKUP(OFFSET($B:$B,,MATCH(AE$4,$B$4:$F$4,0)-1),OFFSET('C. PoC Adj Factor Scoring'!$E$5:$J$282,,MATCH(AE$4,'C. PoC Adj Factor Scoring'!$E$3:$AH$3,0)-1),MATCH(AE$2&\" Score\",'C. PoC Adj Factor Scoring'!$E$4:$J$4,0),TRUE)","v":1}]
[{"$f":"'A. Population Info'!A161","v":1000349084},{"$f":"'A. Population Info'!L161","v":"OIL"},{"$f":"'A. Population Info'!M161","v":0},{"$f":"'A. Population Info'!N161","v":0},{"$f":"'A. Population Info'!O161","v":0},{"$f":"'A. Population Info'!P161","v":0},{"$f":"VLOOKUP(OFFSET($B:$B,,MATCH(G$4,$B$4:$F$4,0)-1),OFFSET('C. PoC Adj Factor Scoring'!$E$5:$J$282,,MATCH(G$4,'C. PoC Adj Factor Scoring'!$E$3:$AH$3,0)-1),MATCH(G$2&\" Score\",'C. PoC Adj Factor Scoring'!$E$4:$J$4,0),TRUE)","v":4},{"$f":"VLOOKUP(OFFSET($B:$B,,MATCH(H$4,$B$4:$F$4,0)-1),OFFSET('C. PoC Adj Factor Scoring'!$E$5:$J$282,,MATCH(H$4,'C. PoC Adj Factor Scoring'!$E$3:$AH$3,0)-1),MATCH(H$2&\" Score\",'C. PoC Adj Factor Scoring'!$E$4:$J$4,0),TRUE)","v":1},{"$f":"VLOOKUP(OFFSET($B:$B,,MATCH(I$4,$B$4:$F$4,0)-1),OFFSET('C. PoC Adj Factor Scoring'!$E$5:$J$282,,MATCH(I$4,'C. PoC Adj Factor Scoring'!$E$3:$AH$3,0)-1),MATCH(I$2&\" Score\",'C. PoC Adj Factor Scoring'!$E$4:$J$4,0),TRUE)","v":1},{"$f":"VLOOKUP(OFFSET($B:$B,,MATCH(J$4,$B$4:$F$4,0)-1),OFFSET('C. PoC Adj Factor Scoring'!$E$5:$J$282,,MATCH(J$4,'C. PoC Adj Factor Scoring'!$E$3:$AH$3,0)-1),MATCH(J$2&\" Score\",'C. PoC Adj Factor Scoring'!$E$4:$J$4,0),TRUE)","v":1},{"$f":"VLOOKUP(OFFSET($B:$B,,MATCH(K$4,$B$4:$F$4,0)-1),OFFSET('C. PoC Adj Factor Scoring'!$E$5:$J$282,,MATCH(K$4,'C. PoC Adj Factor Scoring'!$E$3:$AH$3,0)-1),MATCH(K$2&\" Score\",'C. PoC Adj Factor Scoring'!$E$4:$J$4,0),TRUE)","v":1},{"$f":"VLOOKUP(OFFSET($B:$B,,MATCH(L$4,$B$4:$F$4,0)-1),OFFSET('C. PoC Adj Factor Scoring'!$E$5:$J$282,,MATCH(L$4,'C. PoC Adj Factor Scoring'!$E$3:$AH$3,0)-1),MATCH(L$2&\" Score\",'C. PoC Adj Factor Scoring'!$E$4:$J$4,0),TRUE)","v":1},{"$f":"VLOOKUP(OFFSET($B:$B,,MATCH(M$4,$B$4:$F$4,0)-1),OFFSET('C. PoC Adj Factor Scoring'!$E$5:$J$282,,MATCH(M$4,'C. PoC Adj Factor Scoring'!$E$3:$AH$3,0)-1),MATCH(M$2&\" Score\",'C. PoC Adj Factor Scoring'!$E$4:$J$4,0),TRUE)","v":1},{"$f":"VLOOKUP(OFFSET($B:$B,,MATCH(N$4,$B$4:$F$4,0)-1),OFFSET('C. PoC Adj Factor Scoring'!$E$5:$J$282,,MATCH(N$4,'C. PoC Adj Factor Scoring'!$E$3:$AH$3,0)-1),MATCH(N$2&\" Score\",'C. PoC Adj Factor Scoring'!$E$4:$J$4,0),TRUE)","v":1},{"$f":"VLOOKUP(OFFSET($B:$B,,MATCH(O$4,$B$4:$F$4,0)-1),OFFSET('C. PoC Adj Factor Scoring'!$E$5:$J$282,,MATCH(O$4,'C. PoC Adj Factor Scoring'!$E$3:$AH$3,0)-1),MATCH(O$2&\" Score\",'C. PoC Adj Factor Scoring'!$E$4:$J$4,0),TRUE)","v":1},{"$f":"VLOOKUP(OFFSET($B:$B,,MATCH(P$4,$B$4:$F$4,0)-1),OFFSET('C. PoC Adj Factor Scoring'!$E$5:$J$282,,MATCH(P$4,'C. PoC Adj Factor Scoring'!$E$3:$AH$3,0)-1),MATCH(P$2&\" Score\",'C. PoC Adj Factor Scoring'!$E$4:$J$4,0),TRUE)","v":1},{"$f":"VLOOKUP(OFFSET($B:$B,,MATCH(Q$4,$B$4:$F$4,0)-1),OFFSET('C. PoC Adj Factor Scoring'!$E$5:$J$282,,MATCH(Q$4,'C. PoC Adj Factor Scoring'!$E$3:$AH$3,0)-1),MATCH(Q$2&\" Score\",'C. PoC Adj Factor Scoring'!$E$4:$J$4,0),TRUE)","v":1},{"$f":"VLOOKUP(OFFSET($B:$B,,MATCH(R$4,$B$4:$F$4,0)-1),OFFSET('C. PoC Adj Factor Scoring'!$E$5:$J$282,,MATCH(R$4,'C. PoC Adj Factor Scoring'!$E$3:$AH$3,0)-1),MATCH(R$2&\" Score\",'C. PoC Adj Factor Scoring'!$E$4:$J$4,0),TRUE)","v":1},{"$f":"VLOOKUP(OFFSET($B:$B,,MATCH(S$4,$B$4:$F$4,0)-1),OFFSET('C. PoC Adj Factor Scoring'!$E$5:$J$282,,MATCH(S$4,'C. PoC Adj Factor Scoring'!$E$3:$AH$3,0)-1),MATCH(S$2&\" Score\",'C. PoC Adj Factor Scoring'!$E$4:$J$4,0),TRUE)","v":1},{"$f":"VLOOKUP(OFFSET($B:$B,,MATCH(T$4,$B$4:$F$4,0)-1),OFFSET('C. PoC Adj Factor Scoring'!$E$5:$J$282,,MATCH(T$4,'C. PoC Adj Factor Scoring'!$E$3:$AH$3,0)-1),MATCH(T$2&\" Score\",'C. PoC Adj Factor Scoring'!$E$4:$J$4,0),TRUE)","v":1},{"$f":"VLOOKUP(OFFSET($B:$B,,MATCH(U$4,$B$4:$F$4,0)-1),OFFSET('C. PoC Adj Factor Scoring'!$E$5:$J$282,,MATCH(U$4,'C. PoC Adj Factor Scoring'!$E$3:$AH$3,0)-1),MATCH(U$2&\" Score\",'C. PoC Adj Factor Scoring'!$E$4:$J$4,0),TRUE)","v":1},{"$f":"VLOOKUP(OFFSET($B:$B,,MATCH(V$4,$B$4:$F$4,0)-1),OFFSET('C. PoC Adj Factor Scoring'!$E$5:$J$282,,MATCH(V$4,'C. PoC Adj Factor Scoring'!$E$3:$AH$3,0)-1),MATCH(V$2&\" Score\",'C. PoC Adj Factor Scoring'!$E$4:$J$4,0),TRUE)","v":1},{"$f":"VLOOKUP(OFFSET($B:$B,,MATCH(W$4,$B$4:$F$4,0)-1),OFFSET('C. PoC Adj Factor Scoring'!$E$5:$J$282,,MATCH(W$4,'C. PoC Adj Factor Scoring'!$E$3:$AH$3,0)-1),MATCH(W$2&\" Score\",'C. PoC Adj Factor Scoring'!$E$4:$J$4,0),TRUE)","v":1},{"$f":"VLOOKUP(OFFSET($B:$B,,MATCH(X$4,$B$4:$F$4,0)-1),OFFSET('C. PoC Adj Factor Scoring'!$E$5:$J$282,,MATCH(X$4,'C. PoC Adj Factor Scoring'!$E$3:$AH$3,0)-1),MATCH(X$2&\" Score\",'C. PoC Adj Factor Scoring'!$E$4:$J$4,0),TRUE)","v":1},{"$f":"VLOOKUP(OFFSET($B:$B,,MATCH(Y$4,$B$4:$F$4,0)-1),OFFSET('C. PoC Adj Factor Scoring'!$E$5:$J$282,,MATCH(Y$4,'C. PoC Adj Factor Scoring'!$E$3:$AH$3,0)-1),MATCH(Y$2&\" Score\",'C. PoC Adj Factor Scoring'!$E$4:$J$4,0),TRUE)","v":1},{"$f":"VLOOKUP(OFFSET($B:$B,,MATCH(Z$4,$B$4:$F$4,0)-1),OFFSET('C. PoC Adj Factor Scoring'!$E$5:$J$282,,MATCH(Z$4,'C. PoC Adj Factor Scoring'!$E$3:$AH$3,0)-1),MATCH(Z$2&\" Score\",'C. PoC Adj Factor Scoring'!$E$4:$J$4,0),TRUE)","v":1},{"$f":"VLOOKUP(OFFSET($B:$B,,MATCH(AA$4,$B$4:$F$4,0)-1),OFFSET('C. PoC Adj Factor Scoring'!$E$5:$J$282,,MATCH(AA$4,'C. PoC Adj Factor Scoring'!$E$3:$AH$3,0)-1),MATCH(AA$2&\" Score\",'C. PoC Adj Factor Scoring'!$E$4:$J$4,0),TRUE)","v":3},{"$f":"VLOOKUP(OFFSET($B:$B,,MATCH(AB$4,$B$4:$F$4,0)-1),OFFSET('C. PoC Adj Factor Scoring'!$E$5:$J$282,,MATCH(AB$4,'C. PoC Adj Factor Scoring'!$E$3:$AH$3,0)-1),MATCH(AB$2&\" Score\",'C. PoC Adj Factor Scoring'!$E$4:$J$4,0),TRUE)","v":1},{"$f":"VLOOKUP(OFFSET($B:$B,,MATCH(AC$4,$B$4:$F$4,0)-1),OFFSET('C. PoC Adj Factor Scoring'!$E$5:$J$282,,MATCH(AC$4,'C. PoC Adj Factor Scoring'!$E$3:$AH$3,0)-1),MATCH(AC$2&\" Score\",'C. PoC Adj Factor Scoring'!$E$4:$J$4,0),TRUE)","v":1},{"$f":"VLOOKUP(OFFSET($B:$B,,MATCH(AD$4,$B$4:$F$4,0)-1),OFFSET('C. PoC Adj Factor Scoring'!$E$5:$J$282,,MATCH(AD$4,'C. PoC Adj Factor Scoring'!$E$3:$AH$3,0)-1),MATCH(AD$2&\" Score\",'C. PoC Adj Factor Scoring'!$E$4:$J$4,0),TRUE)","v":1},{"$f":"VLOOKUP(OFFSET($B:$B,,MATCH(AE$4,$B$4:$F$4,0)-1),OFFSET('C. PoC Adj Factor Scoring'!$E$5:$J$282,,MATCH(AE$4,'C. PoC Adj Factor Scoring'!$E$3:$AH$3,0)-1),MATCH(AE$2&\" Score\",'C. PoC Adj Factor Scoring'!$E$4:$J$4,0),TRUE)","v":1}]
[{"$f":"'A. Population Info'!A162","v":1000349112},{"$f":"'A. Population Info'!L162","v":"OIL"},{"$f":"'A. Population Info'!M162","v":0},{"$f":"'A. Population Info'!N162","v":0},{"$f":"'A. Population Info'!O162","v":0},{"$f":"'A. Population Info'!P162","v":0},{"$f":"VLOOKUP(OFFSET($B:$B,,MATCH(G$4,$B$4:$F$4,0)-1),OFFSET('C. PoC Adj Factor Scoring'!$E$5:$J$282,,MATCH(G$4,'C. PoC Adj Factor Scoring'!$E$3:$AH$3,0)-1),MATCH(G$2&\" Score\",'C. PoC Adj Factor Scoring'!$E$4:$J$4,0),TRUE)","v":4},{"$f":"VLOOKUP(OFFSET($B:$B,,MATCH(H$4,$B$4:$F$4,0)-1),OFFSET('C. PoC Adj Factor Scoring'!$E$5:$J$282,,MATCH(H$4,'C. PoC Adj Factor Scoring'!$E$3:$AH$3,0)-1),MATCH(H$2&\" Score\",'C. PoC Adj Factor Scoring'!$E$4:$J$4,0),TRUE)","v":1},{"$f":"VLOOKUP(OFFSET($B:$B,,MATCH(I$4,$B$4:$F$4,0)-1),OFFSET('C. PoC Adj Factor Scoring'!$E$5:$J$282,,MATCH(I$4,'C. PoC Adj Factor Scoring'!$E$3:$AH$3,0)-1),MATCH(I$2&\" Score\",'C. PoC Adj Factor Scoring'!$E$4:$J$4,0),TRUE)","v":1},{"$f":"VLOOKUP(OFFSET($B:$B,,MATCH(J$4,$B$4:$F$4,0)-1),OFFSET('C. PoC Adj Factor Scoring'!$E$5:$J$282,,MATCH(J$4,'C. PoC Adj Factor Scoring'!$E$3:$AH$3,0)-1),MATCH(J$2&\" Score\",'C. PoC Adj Factor Scoring'!$E$4:$J$4,0),TRUE)","v":1},{"$f":"VLOOKUP(OFFSET($B:$B,,MATCH(K$4,$B$4:$F$4,0)-1),OFFSET('C. PoC Adj Factor Scoring'!$E$5:$J$282,,MATCH(K$4,'C. PoC Adj Factor Scoring'!$E$3:$AH$3,0)-1),MATCH(K$2&\" Score\",'C. PoC Adj Factor Scoring'!$E$4:$J$4,0),TRUE)","v":1},{"$f":"VLOOKUP(OFFSET($B:$B,,MATCH(L$4,$B$4:$F$4,0)-1),OFFSET('C. PoC Adj Factor Scoring'!$E$5:$J$282,,MATCH(L$4,'C. PoC Adj Factor Scoring'!$E$3:$AH$3,0)-1),MATCH(L$2&\" Score\",'C. PoC Adj Factor Scoring'!$E$4:$J$4,0),TRUE)","v":1},{"$f":"VLOOKUP(OFFSET($B:$B,,MATCH(M$4,$B$4:$F$4,0)-1),OFFSET('C. PoC Adj Factor Scoring'!$E$5:$J$282,,MATCH(M$4,'C. PoC Adj Factor Scoring'!$E$3:$AH$3,0)-1),MATCH(M$2&\" Score\",'C. PoC Adj Factor Scoring'!$E$4:$J$4,0),TRUE)","v":1},{"$f":"VLOOKUP(OFFSET($B:$B,,MATCH(N$4,$B$4:$F$4,0)-1),OFFSET('C. PoC Adj Factor Scoring'!$E$5:$J$282,,MATCH(N$4,'C. PoC Adj Factor Scoring'!$E$3:$AH$3,0)-1),MATCH(N$2&\" Score\",'C. PoC Adj Factor Scoring'!$E$4:$J$4,0),TRUE)","v":1},{"$f":"VLOOKUP(OFFSET($B:$B,,MATCH(O$4,$B$4:$F$4,0)-1),OFFSET('C. PoC Adj Factor Scoring'!$E$5:$J$282,,MATCH(O$4,'C. PoC Adj Factor Scoring'!$E$3:$AH$3,0)-1),MATCH(O$2&\" Score\",'C. PoC Adj Factor Scoring'!$E$4:$J$4,0),TRUE)","v":1},{"$f":"VLOOKUP(OFFSET($B:$B,,MATCH(P$4,$B$4:$F$4,0)-1),OFFSET('C. PoC Adj Factor Scoring'!$E$5:$J$282,,MATCH(P$4,'C. PoC Adj Factor Scoring'!$E$3:$AH$3,0)-1),MATCH(P$2&\" Score\",'C. PoC Adj Factor Scoring'!$E$4:$J$4,0),TRUE)","v":1},{"$f":"VLOOKUP(OFFSET($B:$B,,MATCH(Q$4,$B$4:$F$4,0)-1),OFFSET('C. PoC Adj Factor Scoring'!$E$5:$J$282,,MATCH(Q$4,'C. PoC Adj Factor Scoring'!$E$3:$AH$3,0)-1),MATCH(Q$2&\" Score\",'C. PoC Adj Factor Scoring'!$E$4:$J$4,0),TRUE)","v":1},{"$f":"VLOOKUP(OFFSET($B:$B,,MATCH(R$4,$B$4:$F$4,0)-1),OFFSET('C. PoC Adj Factor Scoring'!$E$5:$J$282,,MATCH(R$4,'C. PoC Adj Factor Scoring'!$E$3:$AH$3,0)-1),MATCH(R$2&\" Score\",'C. PoC Adj Factor Scoring'!$E$4:$J$4,0),TRUE)","v":1},{"$f":"VLOOKUP(OFFSET($B:$B,,MATCH(S$4,$B$4:$F$4,0)-1),OFFSET('C. PoC Adj Factor Scoring'!$E$5:$J$282,,MATCH(S$4,'C. PoC Adj Factor Scoring'!$E$3:$AH$3,0)-1),MATCH(S$2&\" Score\",'C. PoC Adj Factor Scoring'!$E$4:$J$4,0),TRUE)","v":1},{"$f":"VLOOKUP(OFFSET($B:$B,,MATCH(T$4,$B$4:$F$4,0)-1),OFFSET('C. PoC Adj Factor Scoring'!$E$5:$J$282,,MATCH(T$4,'C. PoC Adj Factor Scoring'!$E$3:$AH$3,0)-1),MATCH(T$2&\" Score\",'C. PoC Adj Factor Scoring'!$E$4:$J$4,0),TRUE)","v":1},{"$f":"VLOOKUP(OFFSET($B:$B,,MATCH(U$4,$B$4:$F$4,0)-1),OFFSET('C. PoC Adj Factor Scoring'!$E$5:$J$282,,MATCH(U$4,'C. PoC Adj Factor Scoring'!$E$3:$AH$3,0)-1),MATCH(U$2&\" Score\",'C. PoC Adj Factor Scoring'!$E$4:$J$4,0),TRUE)","v":1},{"$f":"VLOOKUP(OFFSET($B:$B,,MATCH(V$4,$B$4:$F$4,0)-1),OFFSET('C. PoC Adj Factor Scoring'!$E$5:$J$282,,MATCH(V$4,'C. PoC Adj Factor Scoring'!$E$3:$AH$3,0)-1),MATCH(V$2&\" Score\",'C. PoC Adj Factor Scoring'!$E$4:$J$4,0),TRUE)","v":1},{"$f":"VLOOKUP(OFFSET($B:$B,,MATCH(W$4,$B$4:$F$4,0)-1),OFFSET('C. PoC Adj Factor Scoring'!$E$5:$J$282,,MATCH(W$4,'C. PoC Adj Factor Scoring'!$E$3:$AH$3,0)-1),MATCH(W$2&\" Score\",'C. PoC Adj Factor Scoring'!$E$4:$J$4,0),TRUE)","v":1},{"$f":"VLOOKUP(OFFSET($B:$B,,MATCH(X$4,$B$4:$F$4,0)-1),OFFSET('C. PoC Adj Factor Scoring'!$E$5:$J$282,,MATCH(X$4,'C. PoC Adj Factor Scoring'!$E$3:$AH$3,0)-1),MATCH(X$2&\" Score\",'C. PoC Adj Factor Scoring'!$E$4:$J$4,0),TRUE)","v":1},{"$f":"VLOOKUP(OFFSET($B:$B,,MATCH(Y$4,$B$4:$F$4,0)-1),OFFSET('C. PoC Adj Factor Scoring'!$E$5:$J$282,,MATCH(Y$4,'C. PoC Adj Factor Scoring'!$E$3:$AH$3,0)-1),MATCH(Y$2&\" Score\",'C. PoC Adj Factor Scoring'!$E$4:$J$4,0),TRUE)","v":1},{"$f":"VLOOKUP(OFFSET($B:$B,,MATCH(Z$4,$B$4:$F$4,0)-1),OFFSET('C. PoC Adj Factor Scoring'!$E$5:$J$282,,MATCH(Z$4,'C. PoC Adj Factor Scoring'!$E$3:$AH$3,0)-1),MATCH(Z$2&\" Score\",'C. PoC Adj Factor Scoring'!$E$4:$J$4,0),TRUE)","v":1},{"$f":"VLOOKUP(OFFSET($B:$B,,MATCH(AA$4,$B$4:$F$4,0)-1),OFFSET('C. PoC Adj Factor Scoring'!$E$5:$J$282,,MATCH(AA$4,'C. PoC Adj Factor Scoring'!$E$3:$AH$3,0)-1),MATCH(AA$2&\" Score\",'C. PoC Adj Factor Scoring'!$E$4:$J$4,0),TRUE)","v":3},{"$f":"VLOOKUP(OFFSET($B:$B,,MATCH(AB$4,$B$4:$F$4,0)-1),OFFSET('C. PoC Adj Factor Scoring'!$E$5:$J$282,,MATCH(AB$4,'C. PoC Adj Factor Scoring'!$E$3:$AH$3,0)-1),MATCH(AB$2&\" Score\",'C. PoC Adj Factor Scoring'!$E$4:$J$4,0),TRUE)","v":1},{"$f":"VLOOKUP(OFFSET($B:$B,,MATCH(AC$4,$B$4:$F$4,0)-1),OFFSET('C. PoC Adj Factor Scoring'!$E$5:$J$282,,MATCH(AC$4,'C. PoC Adj Factor Scoring'!$E$3:$AH$3,0)-1),MATCH(AC$2&\" Score\",'C. PoC Adj Factor Scoring'!$E$4:$J$4,0),TRUE)","v":1},{"$f":"VLOOKUP(OFFSET($B:$B,,MATCH(AD$4,$B$4:$F$4,0)-1),OFFSET('C. PoC Adj Factor Scoring'!$E$5:$J$282,,MATCH(AD$4,'C. PoC Adj Factor Scoring'!$E$3:$AH$3,0)-1),MATCH(AD$2&\" Score\",'C. PoC Adj Factor Scoring'!$E$4:$J$4,0),TRUE)","v":1},{"$f":"VLOOKUP(OFFSET($B:$B,,MATCH(AE$4,$B$4:$F$4,0)-1),OFFSET('C. PoC Adj Factor Scoring'!$E$5:$J$282,,MATCH(AE$4,'C. PoC Adj Factor Scoring'!$E$3:$AH$3,0)-1),MATCH(AE$2&\" Score\",'C. PoC Adj Factor Scoring'!$E$4:$J$4,0),TRUE)","v":1}]
[{"$f":"'A. Population Info'!A163","v":1000349143},{"$f":"'A. Population Info'!L163","v":"OIL"},{"$f":"'A. Population Info'!M163","v":0},{"$f":"'A. Population Info'!N163","v":0},{"$f":"'A. Population Info'!O163","v":0},{"$f":"'A. Population Info'!P163","v":0},{"$f":"VLOOKUP(OFFSET($B:$B,,MATCH(G$4,$B$4:$F$4,0)-1),OFFSET('C. PoC Adj Factor Scoring'!$E$5:$J$282,,MATCH(G$4,'C. PoC Adj Factor Scoring'!$E$3:$AH$3,0)-1),MATCH(G$2&\" Score\",'C. PoC Adj Factor Scoring'!$E$4:$J$4,0),TRUE)","v":4},{"$f":"VLOOKUP(OFFSET($B:$B,,MATCH(H$4,$B$4:$F$4,0)-1),OFFSET('C. PoC Adj Factor Scoring'!$E$5:$J$282,,MATCH(H$4,'C. PoC Adj Factor Scoring'!$E$3:$AH$3,0)-1),MATCH(H$2&\" Score\",'C. PoC Adj Factor Scoring'!$E$4:$J$4,0),TRUE)","v":1},{"$f":"VLOOKUP(OFFSET($B:$B,,MATCH(I$4,$B$4:$F$4,0)-1),OFFSET('C. PoC Adj Factor Scoring'!$E$5:$J$282,,MATCH(I$4,'C. PoC Adj Factor Scoring'!$E$3:$AH$3,0)-1),MATCH(I$2&\" Score\",'C. PoC Adj Factor Scoring'!$E$4:$J$4,0),TRUE)","v":1},{"$f":"VLOOKUP(OFFSET($B:$B,,MATCH(J$4,$B$4:$F$4,0)-1),OFFSET('C. PoC Adj Factor Scoring'!$E$5:$J$282,,MATCH(J$4,'C. PoC Adj Factor Scoring'!$E$3:$AH$3,0)-1),MATCH(J$2&\" Score\",'C. PoC Adj Factor Scoring'!$E$4:$J$4,0),TRUE)","v":1},{"$f":"VLOOKUP(OFFSET($B:$B,,MATCH(K$4,$B$4:$F$4,0)-1),OFFSET('C. PoC Adj Factor Scoring'!$E$5:$J$282,,MATCH(K$4,'C. PoC Adj Factor Scoring'!$E$3:$AH$3,0)-1),MATCH(K$2&\" Score\",'C. PoC Adj Factor Scoring'!$E$4:$J$4,0),TRUE)","v":1},{"$f":"VLOOKUP(OFFSET($B:$B,,MATCH(L$4,$B$4:$F$4,0)-1),OFFSET('C. PoC Adj Factor Scoring'!$E$5:$J$282,,MATCH(L$4,'C. PoC Adj Factor Scoring'!$E$3:$AH$3,0)-1),MATCH(L$2&\" Score\",'C. PoC Adj Factor Scoring'!$E$4:$J$4,0),TRUE)","v":1},{"$f":"VLOOKUP(OFFSET($B:$B,,MATCH(M$4,$B$4:$F$4,0)-1),OFFSET('C. PoC Adj Factor Scoring'!$E$5:$J$282,,MATCH(M$4,'C. PoC Adj Factor Scoring'!$E$3:$AH$3,0)-1),MATCH(M$2&\" Score\",'C. PoC Adj Factor Scoring'!$E$4:$J$4,0),TRUE)","v":1},{"$f":"VLOOKUP(OFFSET($B:$B,,MATCH(N$4,$B$4:$F$4,0)-1),OFFSET('C. PoC Adj Factor Scoring'!$E$5:$J$282,,MATCH(N$4,'C. PoC Adj Factor Scoring'!$E$3:$AH$3,0)-1),MATCH(N$2&\" Score\",'C. PoC Adj Factor Scoring'!$E$4:$J$4,0),TRUE)","v":1},{"$f":"VLOOKUP(OFFSET($B:$B,,MATCH(O$4,$B$4:$F$4,0)-1),OFFSET('C. PoC Adj Factor Scoring'!$E$5:$J$282,,MATCH(O$4,'C. PoC Adj Factor Scoring'!$E$3:$AH$3,0)-1),MATCH(O$2&\" Score\",'C. PoC Adj Factor Scoring'!$E$4:$J$4,0),TRUE)","v":1},{"$f":"VLOOKUP(OFFSET($B:$B,,MATCH(P$4,$B$4:$F$4,0)-1),OFFSET('C. PoC Adj Factor Scoring'!$E$5:$J$282,,MATCH(P$4,'C. PoC Adj Factor Scoring'!$E$3:$AH$3,0)-1),MATCH(P$2&\" Score\",'C. PoC Adj Factor Scoring'!$E$4:$J$4,0),TRUE)","v":1},{"$f":"VLOOKUP(OFFSET($B:$B,,MATCH(Q$4,$B$4:$F$4,0)-1),OFFSET('C. PoC Adj Factor Scoring'!$E$5:$J$282,,MATCH(Q$4,'C. PoC Adj Factor Scoring'!$E$3:$AH$3,0)-1),MATCH(Q$2&\" Score\",'C. PoC Adj Factor Scoring'!$E$4:$J$4,0),TRUE)","v":1},{"$f":"VLOOKUP(OFFSET($B:$B,,MATCH(R$4,$B$4:$F$4,0)-1),OFFSET('C. PoC Adj Factor Scoring'!$E$5:$J$282,,MATCH(R$4,'C. PoC Adj Factor Scoring'!$E$3:$AH$3,0)-1),MATCH(R$2&\" Score\",'C. PoC Adj Factor Scoring'!$E$4:$J$4,0),TRUE)","v":1},{"$f":"VLOOKUP(OFFSET($B:$B,,MATCH(S$4,$B$4:$F$4,0)-1),OFFSET('C. PoC Adj Factor Scoring'!$E$5:$J$282,,MATCH(S$4,'C. PoC Adj Factor Scoring'!$E$3:$AH$3,0)-1),MATCH(S$2&\" Score\",'C. PoC Adj Factor Scoring'!$E$4:$J$4,0),TRUE)","v":1},{"$f":"VLOOKUP(OFFSET($B:$B,,MATCH(T$4,$B$4:$F$4,0)-1),OFFSET('C. PoC Adj Factor Scoring'!$E$5:$J$282,,MATCH(T$4,'C. PoC Adj Factor Scoring'!$E$3:$AH$3,0)-1),MATCH(T$2&\" Score\",'C. PoC Adj Factor Scoring'!$E$4:$J$4,0),TRUE)","v":1},{"$f":"VLOOKUP(OFFSET($B:$B,,MATCH(U$4,$B$4:$F$4,0)-1),OFFSET('C. PoC Adj Factor Scoring'!$E$5:$J$282,,MATCH(U$4,'C. PoC Adj Factor Scoring'!$E$3:$AH$3,0)-1),MATCH(U$2&\" Score\",'C. PoC Adj Factor Scoring'!$E$4:$J$4,0),TRUE)","v":1},{"$f":"VLOOKUP(OFFSET($B:$B,,MATCH(V$4,$B$4:$F$4,0)-1),OFFSET('C. PoC Adj Factor Scoring'!$E$5:$J$282,,MATCH(V$4,'C. PoC Adj Factor Scoring'!$E$3:$AH$3,0)-1),MATCH(V$2&\" Score\",'C. PoC Adj Factor Scoring'!$E$4:$J$4,0),TRUE)","v":1},{"$f":"VLOOKUP(OFFSET($B:$B,,MATCH(W$4,$B$4:$F$4,0)-1),OFFSET('C. PoC Adj Factor Scoring'!$E$5:$J$282,,MATCH(W$4,'C. PoC Adj Factor Scoring'!$E$3:$AH$3,0)-1),MATCH(W$2&\" Score\",'C. PoC Adj Factor Scoring'!$E$4:$J$4,0),TRUE)","v":1},{"$f":"VLOOKUP(OFFSET($B:$B,,MATCH(X$4,$B$4:$F$4,0)-1),OFFSET('C. PoC Adj Factor Scoring'!$E$5:$J$282,,MATCH(X$4,'C. PoC Adj Factor Scoring'!$E$3:$AH$3,0)-1),MATCH(X$2&\" Score\",'C. PoC Adj Factor Scoring'!$E$4:$J$4,0),TRUE)","v":1},{"$f":"VLOOKUP(OFFSET($B:$B,,MATCH(Y$4,$B$4:$F$4,0)-1),OFFSET('C. PoC Adj Factor Scoring'!$E$5:$J$282,,MATCH(Y$4,'C. PoC Adj Factor Scoring'!$E$3:$AH$3,0)-1),MATCH(Y$2&\" Score\",'C. PoC Adj Factor Scoring'!$E$4:$J$4,0),TRUE)","v":1},{"$f":"VLOOKUP(OFFSET($B:$B,,MATCH(Z$4,$B$4:$F$4,0)-1),OFFSET('C. PoC Adj Factor Scoring'!$E$5:$J$282,,MATCH(Z$4,'C. PoC Adj Factor Scoring'!$E$3:$AH$3,0)-1),MATCH(Z$2&\" Score\",'C. PoC Adj Factor Scoring'!$E$4:$J$4,0),TRUE)","v":1},{"$f":"VLOOKUP(OFFSET($B:$B,,MATCH(AA$4,$B$4:$F$4,0)-1),OFFSET('C. PoC Adj Factor Scoring'!$E$5:$J$282,,MATCH(AA$4,'C. PoC Adj Factor Scoring'!$E$3:$AH$3,0)-1),MATCH(AA$2&\" Score\",'C. PoC Adj Factor Scoring'!$E$4:$J$4,0),TRUE)","v":3},{"$f":"VLOOKUP(OFFSET($B:$B,,MATCH(AB$4,$B$4:$F$4,0)-1),OFFSET('C. PoC Adj Factor Scoring'!$E$5:$J$282,,MATCH(AB$4,'C. PoC Adj Factor Scoring'!$E$3:$AH$3,0)-1),MATCH(AB$2&\" Score\",'C. PoC Adj Factor Scoring'!$E$4:$J$4,0),TRUE)","v":1},{"$f":"VLOOKUP(OFFSET($B:$B,,MATCH(AC$4,$B$4:$F$4,0)-1),OFFSET('C. PoC Adj Factor Scoring'!$E$5:$J$282,,MATCH(AC$4,'C. PoC Adj Factor Scoring'!$E$3:$AH$3,0)-1),MATCH(AC$2&\" Score\",'C. PoC Adj Factor Scoring'!$E$4:$J$4,0),TRUE)","v":1},{"$f":"VLOOKUP(OFFSET($B:$B,,MATCH(AD$4,$B$4:$F$4,0)-1),OFFSET('C. PoC Adj Factor Scoring'!$E$5:$J$282,,MATCH(AD$4,'C. PoC Adj Factor Scoring'!$E$3:$AH$3,0)-1),MATCH(AD$2&\" Score\",'C. PoC Adj Factor Scoring'!$E$4:$J$4,0),TRUE)","v":1},{"$f":"VLOOKUP(OFFSET($B:$B,,MATCH(AE$4,$B$4:$F$4,0)-1),OFFSET('C. PoC Adj Factor Scoring'!$E$5:$J$282,,MATCH(AE$4,'C. PoC Adj Factor Scoring'!$E$3:$AH$3,0)-1),MATCH(AE$2&\" Score\",'C. PoC Adj Factor Scoring'!$E$4:$J$4,0),TRUE)","v":1}]
[{"$f":"'A. Population Info'!A164","v":1000349169},{"$f":"'A. Population Info'!L164","v":"OIL"},{"$f":"'A. Population Info'!M164","v":0},{"$f":"'A. Population Info'!N164","v":0},{"$f":"'A. Population Info'!O164","v":0},{"$f":"'A. Population Info'!P164","v":0},{"$f":"VLOOKUP(OFFSET($B:$B,,MATCH(G$4,$B$4:$F$4,0)-1),OFFSET('C. PoC Adj Factor Scoring'!$E$5:$J$282,,MATCH(G$4,'C. PoC Adj Factor Scoring'!$E$3:$AH$3,0)-1),MATCH(G$2&\" Score\",'C. PoC Adj Factor Scoring'!$E$4:$J$4,0),TRUE)","v":4},{"$f":"VLOOKUP(OFFSET($B:$B,,MATCH(H$4,$B$4:$F$4,0)-1),OFFSET('C. PoC Adj Factor Scoring'!$E$5:$J$282,,MATCH(H$4,'C. PoC Adj Factor Scoring'!$E$3:$AH$3,0)-1),MATCH(H$2&\" Score\",'C. PoC Adj Factor Scoring'!$E$4:$J$4,0),TRUE)","v":1},{"$f":"VLOOKUP(OFFSET($B:$B,,MATCH(I$4,$B$4:$F$4,0)-1),OFFSET('C. PoC Adj Factor Scoring'!$E$5:$J$282,,MATCH(I$4,'C. PoC Adj Factor Scoring'!$E$3:$AH$3,0)-1),MATCH(I$2&\" Score\",'C. PoC Adj Factor Scoring'!$E$4:$J$4,0),TRUE)","v":1},{"$f":"VLOOKUP(OFFSET($B:$B,,MATCH(J$4,$B$4:$F$4,0)-1),OFFSET('C. PoC Adj Factor Scoring'!$E$5:$J$282,,MATCH(J$4,'C. PoC Adj Factor Scoring'!$E$3:$AH$3,0)-1),MATCH(J$2&\" Score\",'C. PoC Adj Factor Scoring'!$E$4:$J$4,0),TRUE)","v":1},{"$f":"VLOOKUP(OFFSET($B:$B,,MATCH(K$4,$B$4:$F$4,0)-1),OFFSET('C. PoC Adj Factor Scoring'!$E$5:$J$282,,MATCH(K$4,'C. PoC Adj Factor Scoring'!$E$3:$AH$3,0)-1),MATCH(K$2&\" Score\",'C. PoC Adj Factor Scoring'!$E$4:$J$4,0),TRUE)","v":1},{"$f":"VLOOKUP(OFFSET($B:$B,,MATCH(L$4,$B$4:$F$4,0)-1),OFFSET('C. PoC Adj Factor Scoring'!$E$5:$J$282,,MATCH(L$4,'C. PoC Adj Factor Scoring'!$E$3:$AH$3,0)-1),MATCH(L$2&\" Score\",'C. PoC Adj Factor Scoring'!$E$4:$J$4,0),TRUE)","v":1},{"$f":"VLOOKUP(OFFSET($B:$B,,MATCH(M$4,$B$4:$F$4,0)-1),OFFSET('C. PoC Adj Factor Scoring'!$E$5:$J$282,,MATCH(M$4,'C. PoC Adj Factor Scoring'!$E$3:$AH$3,0)-1),MATCH(M$2&\" Score\",'C. PoC Adj Factor Scoring'!$E$4:$J$4,0),TRUE)","v":1},{"$f":"VLOOKUP(OFFSET($B:$B,,MATCH(N$4,$B$4:$F$4,0)-1),OFFSET('C. PoC Adj Factor Scoring'!$E$5:$J$282,,MATCH(N$4,'C. PoC Adj Factor Scoring'!$E$3:$AH$3,0)-1),MATCH(N$2&\" Score\",'C. PoC Adj Factor Scoring'!$E$4:$J$4,0),TRUE)","v":1},{"$f":"VLOOKUP(OFFSET($B:$B,,MATCH(O$4,$B$4:$F$4,0)-1),OFFSET('C. PoC Adj Factor Scoring'!$E$5:$J$282,,MATCH(O$4,'C. PoC Adj Factor Scoring'!$E$3:$AH$3,0)-1),MATCH(O$2&\" Score\",'C. PoC Adj Factor Scoring'!$E$4:$J$4,0),TRUE)","v":1},{"$f":"VLOOKUP(OFFSET($B:$B,,MATCH(P$4,$B$4:$F$4,0)-1),OFFSET('C. PoC Adj Factor Scoring'!$E$5:$J$282,,MATCH(P$4,'C. PoC Adj Factor Scoring'!$E$3:$AH$3,0)-1),MATCH(P$2&\" Score\",'C. PoC Adj Factor Scoring'!$E$4:$J$4,0),TRUE)","v":1},{"$f":"VLOOKUP(OFFSET($B:$B,,MATCH(Q$4,$B$4:$F$4,0)-1),OFFSET('C. PoC Adj Factor Scoring'!$E$5:$J$282,,MATCH(Q$4,'C. PoC Adj Factor Scoring'!$E$3:$AH$3,0)-1),MATCH(Q$2&\" Score\",'C. PoC Adj Factor Scoring'!$E$4:$J$4,0),TRUE)","v":1},{"$f":"VLOOKUP(OFFSET($B:$B,,MATCH(R$4,$B$4:$F$4,0)-1),OFFSET('C. PoC Adj Factor Scoring'!$E$5:$J$282,,MATCH(R$4,'C. PoC Adj Factor Scoring'!$E$3:$AH$3,0)-1),MATCH(R$2&\" Score\",'C. PoC Adj Factor Scoring'!$E$4:$J$4,0),TRUE)","v":1},{"$f":"VLOOKUP(OFFSET($B:$B,,MATCH(S$4,$B$4:$F$4,0)-1),OFFSET('C. PoC Adj Factor Scoring'!$E$5:$J$282,,MATCH(S$4,'C. PoC Adj Factor Scoring'!$E$3:$AH$3,0)-1),MATCH(S$2&\" Score\",'C. PoC Adj Factor Scoring'!$E$4:$J$4,0),TRUE)","v":1},{"$f":"VLOOKUP(OFFSET($B:$B,,MATCH(T$4,$B$4:$F$4,0)-1),OFFSET('C. PoC Adj Factor Scoring'!$E$5:$J$282,,MATCH(T$4,'C. PoC Adj Factor Scoring'!$E$3:$AH$3,0)-1),MATCH(T$2&\" Score\",'C. PoC Adj Factor Scoring'!$E$4:$J$4,0),TRUE)","v":1},{"$f":"VLOOKUP(OFFSET($B:$B,,MATCH(U$4,$B$4:$F$4,0)-1),OFFSET('C. PoC Adj Factor Scoring'!$E$5:$J$282,,MATCH(U$4,'C. PoC Adj Factor Scoring'!$E$3:$AH$3,0)-1),MATCH(U$2&\" Score\",'C. PoC Adj Factor Scoring'!$E$4:$J$4,0),TRUE)","v":1},{"$f":"VLOOKUP(OFFSET($B:$B,,MATCH(V$4,$B$4:$F$4,0)-1),OFFSET('C. PoC Adj Factor Scoring'!$E$5:$J$282,,MATCH(V$4,'C. PoC Adj Factor Scoring'!$E$3:$AH$3,0)-1),MATCH(V$2&\" Score\",'C. PoC Adj Factor Scoring'!$E$4:$J$4,0),TRUE)","v":1},{"$f":"VLOOKUP(OFFSET($B:$B,,MATCH(W$4,$B$4:$F$4,0)-1),OFFSET('C. PoC Adj Factor Scoring'!$E$5:$J$282,,MATCH(W$4,'C. PoC Adj Factor Scoring'!$E$3:$AH$3,0)-1),MATCH(W$2&\" Score\",'C. PoC Adj Factor Scoring'!$E$4:$J$4,0),TRUE)","v":1},{"$f":"VLOOKUP(OFFSET($B:$B,,MATCH(X$4,$B$4:$F$4,0)-1),OFFSET('C. PoC Adj Factor Scoring'!$E$5:$J$282,,MATCH(X$4,'C. PoC Adj Factor Scoring'!$E$3:$AH$3,0)-1),MATCH(X$2&\" Score\",'C. PoC Adj Factor Scoring'!$E$4:$J$4,0),TRUE)","v":1},{"$f":"VLOOKUP(OFFSET($B:$B,,MATCH(Y$4,$B$4:$F$4,0)-1),OFFSET('C. PoC Adj Factor Scoring'!$E$5:$J$282,,MATCH(Y$4,'C. PoC Adj Factor Scoring'!$E$3:$AH$3,0)-1),MATCH(Y$2&\" Score\",'C. PoC Adj Factor Scoring'!$E$4:$J$4,0),TRUE)","v":1},{"$f":"VLOOKUP(OFFSET($B:$B,,MATCH(Z$4,$B$4:$F$4,0)-1),OFFSET('C. PoC Adj Factor Scoring'!$E$5:$J$282,,MATCH(Z$4,'C. PoC Adj Factor Scoring'!$E$3:$AH$3,0)-1),MATCH(Z$2&\" Score\",'C. PoC Adj Factor Scoring'!$E$4:$J$4,0),TRUE)","v":1},{"$f":"VLOOKUP(OFFSET($B:$B,,MATCH(AA$4,$B$4:$F$4,0)-1),OFFSET('C. PoC Adj Factor Scoring'!$E$5:$J$282,,MATCH(AA$4,'C. PoC Adj Factor Scoring'!$E$3:$AH$3,0)-1),MATCH(AA$2&\" Score\",'C. PoC Adj Factor Scoring'!$E$4:$J$4,0),TRUE)","v":3},{"$f":"VLOOKUP(OFFSET($B:$B,,MATCH(AB$4,$B$4:$F$4,0)-1),OFFSET('C. PoC Adj Factor Scoring'!$E$5:$J$282,,MATCH(AB$4,'C. PoC Adj Factor Scoring'!$E$3:$AH$3,0)-1),MATCH(AB$2&\" Score\",'C. PoC Adj Factor Scoring'!$E$4:$J$4,0),TRUE)","v":1},{"$f":"VLOOKUP(OFFSET($B:$B,,MATCH(AC$4,$B$4:$F$4,0)-1),OFFSET('C. PoC Adj Factor Scoring'!$E$5:$J$282,,MATCH(AC$4,'C. PoC Adj Factor Scoring'!$E$3:$AH$3,0)-1),MATCH(AC$2&\" Score\",'C. PoC Adj Factor Scoring'!$E$4:$J$4,0),TRUE)","v":1},{"$f":"VLOOKUP(OFFSET($B:$B,,MATCH(AD$4,$B$4:$F$4,0)-1),OFFSET('C. PoC Adj Factor Scoring'!$E$5:$J$282,,MATCH(AD$4,'C. PoC Adj Factor Scoring'!$E$3:$AH$3,0)-1),MATCH(AD$2&\" Score\",'C. PoC Adj Factor Scoring'!$E$4:$J$4,0),TRUE)","v":1},{"$f":"VLOOKUP(OFFSET($B:$B,,MATCH(AE$4,$B$4:$F$4,0)-1),OFFSET('C. PoC Adj Factor Scoring'!$E$5:$J$282,,MATCH(AE$4,'C. PoC Adj Factor Scoring'!$E$3:$AH$3,0)-1),MATCH(AE$2&\" Score\",'C. PoC Adj Factor Scoring'!$E$4:$J$4,0),TRUE)","v":1}]
[{"$f":"'A. Population Info'!A165","v":1000349201},{"$f":"'A. Population Info'!L165","v":"OIL"},{"$f":"'A. Population Info'!M165","v":0},{"$f":"'A. Population Info'!N165","v":0},{"$f":"'A. Population Info'!O165","v":0},{"$f":"'A. Population Info'!P165","v":0},{"$f":"VLOOKUP(OFFSET($B:$B,,MATCH(G$4,$B$4:$F$4,0)-1),OFFSET('C. PoC Adj Factor Scoring'!$E$5:$J$282,,MATCH(G$4,'C. PoC Adj Factor Scoring'!$E$3:$AH$3,0)-1),MATCH(G$2&\" Score\",'C. PoC Adj Factor Scoring'!$E$4:$J$4,0),TRUE)","v":4},{"$f":"VLOOKUP(OFFSET($B:$B,,MATCH(H$4,$B$4:$F$4,0)-1),OFFSET('C. PoC Adj Factor Scoring'!$E$5:$J$282,,MATCH(H$4,'C. PoC Adj Factor Scoring'!$E$3:$AH$3,0)-1),MATCH(H$2&\" Score\",'C. PoC Adj Factor Scoring'!$E$4:$J$4,0),TRUE)","v":1},{"$f":"VLOOKUP(OFFSET($B:$B,,MATCH(I$4,$B$4:$F$4,0)-1),OFFSET('C. PoC Adj Factor Scoring'!$E$5:$J$282,,MATCH(I$4,'C. PoC Adj Factor Scoring'!$E$3:$AH$3,0)-1),MATCH(I$2&\" Score\",'C. PoC Adj Factor Scoring'!$E$4:$J$4,0),TRUE)","v":1},{"$f":"VLOOKUP(OFFSET($B:$B,,MATCH(J$4,$B$4:$F$4,0)-1),OFFSET('C. PoC Adj Factor Scoring'!$E$5:$J$282,,MATCH(J$4,'C. PoC Adj Factor Scoring'!$E$3:$AH$3,0)-1),MATCH(J$2&\" Score\",'C. PoC Adj Factor Scoring'!$E$4:$J$4,0),TRUE)","v":1},{"$f":"VLOOKUP(OFFSET($B:$B,,MATCH(K$4,$B$4:$F$4,0)-1),OFFSET('C. PoC Adj Factor Scoring'!$E$5:$J$282,,MATCH(K$4,'C. PoC Adj Factor Scoring'!$E$3:$AH$3,0)-1),MATCH(K$2&\" Score\",'C. PoC Adj Factor Scoring'!$E$4:$J$4,0),TRUE)","v":1},{"$f":"VLOOKUP(OFFSET($B:$B,,MATCH(L$4,$B$4:$F$4,0)-1),OFFSET('C. PoC Adj Factor Scoring'!$E$5:$J$282,,MATCH(L$4,'C. PoC Adj Factor Scoring'!$E$3:$AH$3,0)-1),MATCH(L$2&\" Score\",'C. PoC Adj Factor Scoring'!$E$4:$J$4,0),TRUE)","v":1},{"$f":"VLOOKUP(OFFSET($B:$B,,MATCH(M$4,$B$4:$F$4,0)-1),OFFSET('C. PoC Adj Factor Scoring'!$E$5:$J$282,,MATCH(M$4,'C. PoC Adj Factor Scoring'!$E$3:$AH$3,0)-1),MATCH(M$2&\" Score\",'C. PoC Adj Factor Scoring'!$E$4:$J$4,0),TRUE)","v":1},{"$f":"VLOOKUP(OFFSET($B:$B,,MATCH(N$4,$B$4:$F$4,0)-1),OFFSET('C. PoC Adj Factor Scoring'!$E$5:$J$282,,MATCH(N$4,'C. PoC Adj Factor Scoring'!$E$3:$AH$3,0)-1),MATCH(N$2&\" Score\",'C. PoC Adj Factor Scoring'!$E$4:$J$4,0),TRUE)","v":1},{"$f":"VLOOKUP(OFFSET($B:$B,,MATCH(O$4,$B$4:$F$4,0)-1),OFFSET('C. PoC Adj Factor Scoring'!$E$5:$J$282,,MATCH(O$4,'C. PoC Adj Factor Scoring'!$E$3:$AH$3,0)-1),MATCH(O$2&\" Score\",'C. PoC Adj Factor Scoring'!$E$4:$J$4,0),TRUE)","v":1},{"$f":"VLOOKUP(OFFSET($B:$B,,MATCH(P$4,$B$4:$F$4,0)-1),OFFSET('C. PoC Adj Factor Scoring'!$E$5:$J$282,,MATCH(P$4,'C. PoC Adj Factor Scoring'!$E$3:$AH$3,0)-1),MATCH(P$2&\" Score\",'C. PoC Adj Factor Scoring'!$E$4:$J$4,0),TRUE)","v":1},{"$f":"VLOOKUP(OFFSET($B:$B,,MATCH(Q$4,$B$4:$F$4,0)-1),OFFSET('C. PoC Adj Factor Scoring'!$E$5:$J$282,,MATCH(Q$4,'C. PoC Adj Factor Scoring'!$E$3:$AH$3,0)-1),MATCH(Q$2&\" Score\",'C. PoC Adj Factor Scoring'!$E$4:$J$4,0),TRUE)","v":1},{"$f":"VLOOKUP(OFFSET($B:$B,,MATCH(R$4,$B$4:$F$4,0)-1),OFFSET('C. PoC Adj Factor Scoring'!$E$5:$J$282,,MATCH(R$4,'C. PoC Adj Factor Scoring'!$E$3:$AH$3,0)-1),MATCH(R$2&\" Score\",'C. PoC Adj Factor Scoring'!$E$4:$J$4,0),TRUE)","v":1},{"$f":"VLOOKUP(OFFSET($B:$B,,MATCH(S$4,$B$4:$F$4,0)-1),OFFSET('C. PoC Adj Factor Scoring'!$E$5:$J$282,,MATCH(S$4,'C. PoC Adj Factor Scoring'!$E$3:$AH$3,0)-1),MATCH(S$2&\" Score\",'C. PoC Adj Factor Scoring'!$E$4:$J$4,0),TRUE)","v":1},{"$f":"VLOOKUP(OFFSET($B:$B,,MATCH(T$4,$B$4:$F$4,0)-1),OFFSET('C. PoC Adj Factor Scoring'!$E$5:$J$282,,MATCH(T$4,'C. PoC Adj Factor Scoring'!$E$3:$AH$3,0)-1),MATCH(T$2&\" Score\",'C. PoC Adj Factor Scoring'!$E$4:$J$4,0),TRUE)","v":1},{"$f":"VLOOKUP(OFFSET($B:$B,,MATCH(U$4,$B$4:$F$4,0)-1),OFFSET('C. PoC Adj Factor Scoring'!$E$5:$J$282,,MATCH(U$4,'C. PoC Adj Factor Scoring'!$E$3:$AH$3,0)-1),MATCH(U$2&\" Score\",'C. PoC Adj Factor Scoring'!$E$4:$J$4,0),TRUE)","v":1},{"$f":"VLOOKUP(OFFSET($B:$B,,MATCH(V$4,$B$4:$F$4,0)-1),OFFSET('C. PoC Adj Factor Scoring'!$E$5:$J$282,,MATCH(V$4,'C. PoC Adj Factor Scoring'!$E$3:$AH$3,0)-1),MATCH(V$2&\" Score\",'C. PoC Adj Factor Scoring'!$E$4:$J$4,0),TRUE)","v":1},{"$f":"VLOOKUP(OFFSET($B:$B,,MATCH(W$4,$B$4:$F$4,0)-1),OFFSET('C. PoC Adj Factor Scoring'!$E$5:$J$282,,MATCH(W$4,'C. PoC Adj Factor Scoring'!$E$3:$AH$3,0)-1),MATCH(W$2&\" Score\",'C. PoC Adj Factor Scoring'!$E$4:$J$4,0),TRUE)","v":1},{"$f":"VLOOKUP(OFFSET($B:$B,,MATCH(X$4,$B$4:$F$4,0)-1),OFFSET('C. PoC Adj Factor Scoring'!$E$5:$J$282,,MATCH(X$4,'C. PoC Adj Factor Scoring'!$E$3:$AH$3,0)-1),MATCH(X$2&\" Score\",'C. PoC Adj Factor Scoring'!$E$4:$J$4,0),TRUE)","v":1},{"$f":"VLOOKUP(OFFSET($B:$B,,MATCH(Y$4,$B$4:$F$4,0)-1),OFFSET('C. PoC Adj Factor Scoring'!$E$5:$J$282,,MATCH(Y$4,'C. PoC Adj Factor Scoring'!$E$3:$AH$3,0)-1),MATCH(Y$2&\" Score\",'C. PoC Adj Factor Scoring'!$E$4:$J$4,0),TRUE)","v":1},{"$f":"VLOOKUP(OFFSET($B:$B,,MATCH(Z$4,$B$4:$F$4,0)-1),OFFSET('C. PoC Adj Factor Scoring'!$E$5:$J$282,,MATCH(Z$4,'C. PoC Adj Factor Scoring'!$E$3:$AH$3,0)-1),MATCH(Z$2&\" Score\",'C. PoC Adj Factor Scoring'!$E$4:$J$4,0),TRUE)","v":1},{"$f":"VLOOKUP(OFFSET($B:$B,,MATCH(AA$4,$B$4:$F$4,0)-1),OFFSET('C. PoC Adj Factor Scoring'!$E$5:$J$282,,MATCH(AA$4,'C. PoC Adj Factor Scoring'!$E$3:$AH$3,0)-1),MATCH(AA$2&\" Score\",'C. PoC Adj Factor Scoring'!$E$4:$J$4,0),TRUE)","v":3},{"$f":"VLOOKUP(OFFSET($B:$B,,MATCH(AB$4,$B$4:$F$4,0)-1),OFFSET('C. PoC Adj Factor Scoring'!$E$5:$J$282,,MATCH(AB$4,'C. PoC Adj Factor Scoring'!$E$3:$AH$3,0)-1),MATCH(AB$2&\" Score\",'C. PoC Adj Factor Scoring'!$E$4:$J$4,0),TRUE)","v":1},{"$f":"VLOOKUP(OFFSET($B:$B,,MATCH(AC$4,$B$4:$F$4,0)-1),OFFSET('C. PoC Adj Factor Scoring'!$E$5:$J$282,,MATCH(AC$4,'C. PoC Adj Factor Scoring'!$E$3:$AH$3,0)-1),MATCH(AC$2&\" Score\",'C. PoC Adj Factor Scoring'!$E$4:$J$4,0),TRUE)","v":1},{"$f":"VLOOKUP(OFFSET($B:$B,,MATCH(AD$4,$B$4:$F$4,0)-1),OFFSET('C. PoC Adj Factor Scoring'!$E$5:$J$282,,MATCH(AD$4,'C. PoC Adj Factor Scoring'!$E$3:$AH$3,0)-1),MATCH(AD$2&\" Score\",'C. PoC Adj Factor Scoring'!$E$4:$J$4,0),TRUE)","v":1},{"$f":"VLOOKUP(OFFSET($B:$B,,MATCH(AE$4,$B$4:$F$4,0)-1),OFFSET('C. PoC Adj Factor Scoring'!$E$5:$J$282,,MATCH(AE$4,'C. PoC Adj Factor Scoring'!$E$3:$AH$3,0)-1),MATCH(AE$2&\" Score\",'C. PoC Adj Factor Scoring'!$E$4:$J$4,0),TRUE)","v":1}]
[{"$f":"'A. Population Info'!A166","v":1000349231},{"$f":"'A. Population Info'!L166","v":"OIL"},{"$f":"'A. Population Info'!M166","v":0},{"$f":"'A. Population Info'!N166","v":0},{"$f":"'A. Population Info'!O166","v":0},{"$f":"'A. Population Info'!P166","v":0},{"$f":"VLOOKUP(OFFSET($B:$B,,MATCH(G$4,$B$4:$F$4,0)-1),OFFSET('C. PoC Adj Factor Scoring'!$E$5:$J$282,,MATCH(G$4,'C. PoC Adj Factor Scoring'!$E$3:$AH$3,0)-1),MATCH(G$2&\" Score\",'C. PoC Adj Factor Scoring'!$E$4:$J$4,0),TRUE)","v":4},{"$f":"VLOOKUP(OFFSET($B:$B,,MATCH(H$4,$B$4:$F$4,0)-1),OFFSET('C. PoC Adj Factor Scoring'!$E$5:$J$282,,MATCH(H$4,'C. PoC Adj Factor Scoring'!$E$3:$AH$3,0)-1),MATCH(H$2&\" Score\",'C. PoC Adj Factor Scoring'!$E$4:$J$4,0),TRUE)","v":1},{"$f":"VLOOKUP(OFFSET($B:$B,,MATCH(I$4,$B$4:$F$4,0)-1),OFFSET('C. PoC Adj Factor Scoring'!$E$5:$J$282,,MATCH(I$4,'C. PoC Adj Factor Scoring'!$E$3:$AH$3,0)-1),MATCH(I$2&\" Score\",'C. PoC Adj Factor Scoring'!$E$4:$J$4,0),TRUE)","v":1},{"$f":"VLOOKUP(OFFSET($B:$B,,MATCH(J$4,$B$4:$F$4,0)-1),OFFSET('C. PoC Adj Factor Scoring'!$E$5:$J$282,,MATCH(J$4,'C. PoC Adj Factor Scoring'!$E$3:$AH$3,0)-1),MATCH(J$2&\" Score\",'C. PoC Adj Factor Scoring'!$E$4:$J$4,0),TRUE)","v":1},{"$f":"VLOOKUP(OFFSET($B:$B,,MATCH(K$4,$B$4:$F$4,0)-1),OFFSET('C. PoC Adj Factor Scoring'!$E$5:$J$282,,MATCH(K$4,'C. PoC Adj Factor Scoring'!$E$3:$AH$3,0)-1),MATCH(K$2&\" Score\",'C. PoC Adj Factor Scoring'!$E$4:$J$4,0),TRUE)","v":1},{"$f":"VLOOKUP(OFFSET($B:$B,,MATCH(L$4,$B$4:$F$4,0)-1),OFFSET('C. PoC Adj Factor Scoring'!$E$5:$J$282,,MATCH(L$4,'C. PoC Adj Factor Scoring'!$E$3:$AH$3,0)-1),MATCH(L$2&\" Score\",'C. PoC Adj Factor Scoring'!$E$4:$J$4,0),TRUE)","v":1},{"$f":"VLOOKUP(OFFSET($B:$B,,MATCH(M$4,$B$4:$F$4,0)-1),OFFSET('C. PoC Adj Factor Scoring'!$E$5:$J$282,,MATCH(M$4,'C. PoC Adj Factor Scoring'!$E$3:$AH$3,0)-1),MATCH(M$2&\" Score\",'C. PoC Adj Factor Scoring'!$E$4:$J$4,0),TRUE)","v":1},{"$f":"VLOOKUP(OFFSET($B:$B,,MATCH(N$4,$B$4:$F$4,0)-1),OFFSET('C. PoC Adj Factor Scoring'!$E$5:$J$282,,MATCH(N$4,'C. PoC Adj Factor Scoring'!$E$3:$AH$3,0)-1),MATCH(N$2&\" Score\",'C. PoC Adj Factor Scoring'!$E$4:$J$4,0),TRUE)","v":1},{"$f":"VLOOKUP(OFFSET($B:$B,,MATCH(O$4,$B$4:$F$4,0)-1),OFFSET('C. PoC Adj Factor Scoring'!$E$5:$J$282,,MATCH(O$4,'C. PoC Adj Factor Scoring'!$E$3:$AH$3,0)-1),MATCH(O$2&\" Score\",'C. PoC Adj Factor Scoring'!$E$4:$J$4,0),TRUE)","v":1},{"$f":"VLOOKUP(OFFSET($B:$B,,MATCH(P$4,$B$4:$F$4,0)-1),OFFSET('C. PoC Adj Factor Scoring'!$E$5:$J$282,,MATCH(P$4,'C. PoC Adj Factor Scoring'!$E$3:$AH$3,0)-1),MATCH(P$2&\" Score\",'C. PoC Adj Factor Scoring'!$E$4:$J$4,0),TRUE)","v":1},{"$f":"VLOOKUP(OFFSET($B:$B,,MATCH(Q$4,$B$4:$F$4,0)-1),OFFSET('C. PoC Adj Factor Scoring'!$E$5:$J$282,,MATCH(Q$4,'C. PoC Adj Factor Scoring'!$E$3:$AH$3,0)-1),MATCH(Q$2&\" Score\",'C. PoC Adj Factor Scoring'!$E$4:$J$4,0),TRUE)","v":1},{"$f":"VLOOKUP(OFFSET($B:$B,,MATCH(R$4,$B$4:$F$4,0)-1),OFFSET('C. PoC Adj Factor Scoring'!$E$5:$J$282,,MATCH(R$4,'C. PoC Adj Factor Scoring'!$E$3:$AH$3,0)-1),MATCH(R$2&\" Score\",'C. PoC Adj Factor Scoring'!$E$4:$J$4,0),TRUE)","v":1},{"$f":"VLOOKUP(OFFSET($B:$B,,MATCH(S$4,$B$4:$F$4,0)-1),OFFSET('C. PoC Adj Factor Scoring'!$E$5:$J$282,,MATCH(S$4,'C. PoC Adj Factor Scoring'!$E$3:$AH$3,0)-1),MATCH(S$2&\" Score\",'C. PoC Adj Factor Scoring'!$E$4:$J$4,0),TRUE)","v":1},{"$f":"VLOOKUP(OFFSET($B:$B,,MATCH(T$4,$B$4:$F$4,0)-1),OFFSET('C. PoC Adj Factor Scoring'!$E$5:$J$282,,MATCH(T$4,'C. PoC Adj Factor Scoring'!$E$3:$AH$3,0)-1),MATCH(T$2&\" Score\",'C. PoC Adj Factor Scoring'!$E$4:$J$4,0),TRUE)","v":1},{"$f":"VLOOKUP(OFFSET($B:$B,,MATCH(U$4,$B$4:$F$4,0)-1),OFFSET('C. PoC Adj Factor Scoring'!$E$5:$J$282,,MATCH(U$4,'C. PoC Adj Factor Scoring'!$E$3:$AH$3,0)-1),MATCH(U$2&\" Score\",'C. PoC Adj Factor Scoring'!$E$4:$J$4,0),TRUE)","v":1},{"$f":"VLOOKUP(OFFSET($B:$B,,MATCH(V$4,$B$4:$F$4,0)-1),OFFSET('C. PoC Adj Factor Scoring'!$E$5:$J$282,,MATCH(V$4,'C. PoC Adj Factor Scoring'!$E$3:$AH$3,0)-1),MATCH(V$2&\" Score\",'C. PoC Adj Factor Scoring'!$E$4:$J$4,0),TRUE)","v":1},{"$f":"VLOOKUP(OFFSET($B:$B,,MATCH(W$4,$B$4:$F$4,0)-1),OFFSET('C. PoC Adj Factor Scoring'!$E$5:$J$282,,MATCH(W$4,'C. PoC Adj Factor Scoring'!$E$3:$AH$3,0)-1),MATCH(W$2&\" Score\",'C. PoC Adj Factor Scoring'!$E$4:$J$4,0),TRUE)","v":1},{"$f":"VLOOKUP(OFFSET($B:$B,,MATCH(X$4,$B$4:$F$4,0)-1),OFFSET('C. PoC Adj Factor Scoring'!$E$5:$J$282,,MATCH(X$4,'C. PoC Adj Factor Scoring'!$E$3:$AH$3,0)-1),MATCH(X$2&\" Score\",'C. PoC Adj Factor Scoring'!$E$4:$J$4,0),TRUE)","v":1},{"$f":"VLOOKUP(OFFSET($B:$B,,MATCH(Y$4,$B$4:$F$4,0)-1),OFFSET('C. PoC Adj Factor Scoring'!$E$5:$J$282,,MATCH(Y$4,'C. PoC Adj Factor Scoring'!$E$3:$AH$3,0)-1),MATCH(Y$2&\" Score\",'C. PoC Adj Factor Scoring'!$E$4:$J$4,0),TRUE)","v":1},{"$f":"VLOOKUP(OFFSET($B:$B,,MATCH(Z$4,$B$4:$F$4,0)-1),OFFSET('C. PoC Adj Factor Scoring'!$E$5:$J$282,,MATCH(Z$4,'C. PoC Adj Factor Scoring'!$E$3:$AH$3,0)-1),MATCH(Z$2&\" Score\",'C. PoC Adj Factor Scoring'!$E$4:$J$4,0),TRUE)","v":1},{"$f":"VLOOKUP(OFFSET($B:$B,,MATCH(AA$4,$B$4:$F$4,0)-1),OFFSET('C. PoC Adj Factor Scoring'!$E$5:$J$282,,MATCH(AA$4,'C. PoC Adj Factor Scoring'!$E$3:$AH$3,0)-1),MATCH(AA$2&\" Score\",'C. PoC Adj Factor Scoring'!$E$4:$J$4,0),TRUE)","v":3},{"$f":"VLOOKUP(OFFSET($B:$B,,MATCH(AB$4,$B$4:$F$4,0)-1),OFFSET('C. PoC Adj Factor Scoring'!$E$5:$J$282,,MATCH(AB$4,'C. PoC Adj Factor Scoring'!$E$3:$AH$3,0)-1),MATCH(AB$2&\" Score\",'C. PoC Adj Factor Scoring'!$E$4:$J$4,0),TRUE)","v":1},{"$f":"VLOOKUP(OFFSET($B:$B,,MATCH(AC$4,$B$4:$F$4,0)-1),OFFSET('C. PoC Adj Factor Scoring'!$E$5:$J$282,,MATCH(AC$4,'C. PoC Adj Factor Scoring'!$E$3:$AH$3,0)-1),MATCH(AC$2&\" Score\",'C. PoC Adj Factor Scoring'!$E$4:$J$4,0),TRUE)","v":1},{"$f":"VLOOKUP(OFFSET($B:$B,,MATCH(AD$4,$B$4:$F$4,0)-1),OFFSET('C. PoC Adj Factor Scoring'!$E$5:$J$282,,MATCH(AD$4,'C. PoC Adj Factor Scoring'!$E$3:$AH$3,0)-1),MATCH(AD$2&\" Score\",'C. PoC Adj Factor Scoring'!$E$4:$J$4,0),TRUE)","v":1},{"$f":"VLOOKUP(OFFSET($B:$B,,MATCH(AE$4,$B$4:$F$4,0)-1),OFFSET('C. PoC Adj Factor Scoring'!$E$5:$J$282,,MATCH(AE$4,'C. PoC Adj Factor Scoring'!$E$3:$AH$3,0)-1),MATCH(AE$2&\" Score\",'C. PoC Adj Factor Scoring'!$E$4:$J$4,0),TRUE)","v":1}]
[{"$f":"'A. Population Info'!A167","v":1000349259},{"$f":"'A. Population Info'!L167","v":"OIL"},{"$f":"'A. Population Info'!M167","v":0},{"$f":"'A. Population Info'!N167","v":0},{"$f":"'A. Population Info'!O167","v":0},{"$f":"'A. Population Info'!P167","v":0},{"$f":"VLOOKUP(OFFSET($B:$B,,MATCH(G$4,$B$4:$F$4,0)-1),OFFSET('C. PoC Adj Factor Scoring'!$E$5:$J$282,,MATCH(G$4,'C. PoC Adj Factor Scoring'!$E$3:$AH$3,0)-1),MATCH(G$2&\" Score\",'C. PoC Adj Factor Scoring'!$E$4:$J$4,0),TRUE)","v":4},{"$f":"VLOOKUP(OFFSET($B:$B,,MATCH(H$4,$B$4:$F$4,0)-1),OFFSET('C. PoC Adj Factor Scoring'!$E$5:$J$282,,MATCH(H$4,'C. PoC Adj Factor Scoring'!$E$3:$AH$3,0)-1),MATCH(H$2&\" Score\",'C. PoC Adj Factor Scoring'!$E$4:$J$4,0),TRUE)","v":1},{"$f":"VLOOKUP(OFFSET($B:$B,,MATCH(I$4,$B$4:$F$4,0)-1),OFFSET('C. PoC Adj Factor Scoring'!$E$5:$J$282,,MATCH(I$4,'C. PoC Adj Factor Scoring'!$E$3:$AH$3,0)-1),MATCH(I$2&\" Score\",'C. PoC Adj Factor Scoring'!$E$4:$J$4,0),TRUE)","v":1},{"$f":"VLOOKUP(OFFSET($B:$B,,MATCH(J$4,$B$4:$F$4,0)-1),OFFSET('C. PoC Adj Factor Scoring'!$E$5:$J$282,,MATCH(J$4,'C. PoC Adj Factor Scoring'!$E$3:$AH$3,0)-1),MATCH(J$2&\" Score\",'C. PoC Adj Factor Scoring'!$E$4:$J$4,0),TRUE)","v":1},{"$f":"VLOOKUP(OFFSET($B:$B,,MATCH(K$4,$B$4:$F$4,0)-1),OFFSET('C. PoC Adj Factor Scoring'!$E$5:$J$282,,MATCH(K$4,'C. PoC Adj Factor Scoring'!$E$3:$AH$3,0)-1),MATCH(K$2&\" Score\",'C. PoC Adj Factor Scoring'!$E$4:$J$4,0),TRUE)","v":1},{"$f":"VLOOKUP(OFFSET($B:$B,,MATCH(L$4,$B$4:$F$4,0)-1),OFFSET('C. PoC Adj Factor Scoring'!$E$5:$J$282,,MATCH(L$4,'C. PoC Adj Factor Scoring'!$E$3:$AH$3,0)-1),MATCH(L$2&\" Score\",'C. PoC Adj Factor Scoring'!$E$4:$J$4,0),TRUE)","v":1},{"$f":"VLOOKUP(OFFSET($B:$B,,MATCH(M$4,$B$4:$F$4,0)-1),OFFSET('C. PoC Adj Factor Scoring'!$E$5:$J$282,,MATCH(M$4,'C. PoC Adj Factor Scoring'!$E$3:$AH$3,0)-1),MATCH(M$2&\" Score\",'C. PoC Adj Factor Scoring'!$E$4:$J$4,0),TRUE)","v":1},{"$f":"VLOOKUP(OFFSET($B:$B,,MATCH(N$4,$B$4:$F$4,0)-1),OFFSET('C. PoC Adj Factor Scoring'!$E$5:$J$282,,MATCH(N$4,'C. PoC Adj Factor Scoring'!$E$3:$AH$3,0)-1),MATCH(N$2&\" Score\",'C. PoC Adj Factor Scoring'!$E$4:$J$4,0),TRUE)","v":1},{"$f":"VLOOKUP(OFFSET($B:$B,,MATCH(O$4,$B$4:$F$4,0)-1),OFFSET('C. PoC Adj Factor Scoring'!$E$5:$J$282,,MATCH(O$4,'C. PoC Adj Factor Scoring'!$E$3:$AH$3,0)-1),MATCH(O$2&\" Score\",'C. PoC Adj Factor Scoring'!$E$4:$J$4,0),TRUE)","v":1},{"$f":"VLOOKUP(OFFSET($B:$B,,MATCH(P$4,$B$4:$F$4,0)-1),OFFSET('C. PoC Adj Factor Scoring'!$E$5:$J$282,,MATCH(P$4,'C. PoC Adj Factor Scoring'!$E$3:$AH$3,0)-1),MATCH(P$2&\" Score\",'C. PoC Adj Factor Scoring'!$E$4:$J$4,0),TRUE)","v":1},{"$f":"VLOOKUP(OFFSET($B:$B,,MATCH(Q$4,$B$4:$F$4,0)-1),OFFSET('C. PoC Adj Factor Scoring'!$E$5:$J$282,,MATCH(Q$4,'C. PoC Adj Factor Scoring'!$E$3:$AH$3,0)-1),MATCH(Q$2&\" Score\",'C. PoC Adj Factor Scoring'!$E$4:$J$4,0),TRUE)","v":1},{"$f":"VLOOKUP(OFFSET($B:$B,,MATCH(R$4,$B$4:$F$4,0)-1),OFFSET('C. PoC Adj Factor Scoring'!$E$5:$J$282,,MATCH(R$4,'C. PoC Adj Factor Scoring'!$E$3:$AH$3,0)-1),MATCH(R$2&\" Score\",'C. PoC Adj Factor Scoring'!$E$4:$J$4,0),TRUE)","v":1},{"$f":"VLOOKUP(OFFSET($B:$B,,MATCH(S$4,$B$4:$F$4,0)-1),OFFSET('C. PoC Adj Factor Scoring'!$E$5:$J$282,,MATCH(S$4,'C. PoC Adj Factor Scoring'!$E$3:$AH$3,0)-1),MATCH(S$2&\" Score\",'C. PoC Adj Factor Scoring'!$E$4:$J$4,0),TRUE)","v":1},{"$f":"VLOOKUP(OFFSET($B:$B,,MATCH(T$4,$B$4:$F$4,0)-1),OFFSET('C. PoC Adj Factor Scoring'!$E$5:$J$282,,MATCH(T$4,'C. PoC Adj Factor Scoring'!$E$3:$AH$3,0)-1),MATCH(T$2&\" Score\",'C. PoC Adj Factor Scoring'!$E$4:$J$4,0),TRUE)","v":1},{"$f":"VLOOKUP(OFFSET($B:$B,,MATCH(U$4,$B$4:$F$4,0)-1),OFFSET('C. PoC Adj Factor Scoring'!$E$5:$J$282,,MATCH(U$4,'C. PoC Adj Factor Scoring'!$E$3:$AH$3,0)-1),MATCH(U$2&\" Score\",'C. PoC Adj Factor Scoring'!$E$4:$J$4,0),TRUE)","v":1},{"$f":"VLOOKUP(OFFSET($B:$B,,MATCH(V$4,$B$4:$F$4,0)-1),OFFSET('C. PoC Adj Factor Scoring'!$E$5:$J$282,,MATCH(V$4,'C. PoC Adj Factor Scoring'!$E$3:$AH$3,0)-1),MATCH(V$2&\" Score\",'C. PoC Adj Factor Scoring'!$E$4:$J$4,0),TRUE)","v":1},{"$f":"VLOOKUP(OFFSET($B:$B,,MATCH(W$4,$B$4:$F$4,0)-1),OFFSET('C. PoC Adj Factor Scoring'!$E$5:$J$282,,MATCH(W$4,'C. PoC Adj Factor Scoring'!$E$3:$AH$3,0)-1),MATCH(W$2&\" Score\",'C. PoC Adj Factor Scoring'!$E$4:$J$4,0),TRUE)","v":1},{"$f":"VLOOKUP(OFFSET($B:$B,,MATCH(X$4,$B$4:$F$4,0)-1),OFFSET('C. PoC Adj Factor Scoring'!$E$5:$J$282,,MATCH(X$4,'C. PoC Adj Factor Scoring'!$E$3:$AH$3,0)-1),MATCH(X$2&\" Score\",'C. PoC Adj Factor Scoring'!$E$4:$J$4,0),TRUE)","v":1},{"$f":"VLOOKUP(OFFSET($B:$B,,MATCH(Y$4,$B$4:$F$4,0)-1),OFFSET('C. PoC Adj Factor Scoring'!$E$5:$J$282,,MATCH(Y$4,'C. PoC Adj Factor Scoring'!$E$3:$AH$3,0)-1),MATCH(Y$2&\" Score\",'C. PoC Adj Factor Scoring'!$E$4:$J$4,0),TRUE)","v":1},{"$f":"VLOOKUP(OFFSET($B:$B,,MATCH(Z$4,$B$4:$F$4,0)-1),OFFSET('C. PoC Adj Factor Scoring'!$E$5:$J$282,,MATCH(Z$4,'C. PoC Adj Factor Scoring'!$E$3:$AH$3,0)-1),MATCH(Z$2&\" Score\",'C. PoC Adj Factor Scoring'!$E$4:$J$4,0),TRUE)","v":1},{"$f":"VLOOKUP(OFFSET($B:$B,,MATCH(AA$4,$B$4:$F$4,0)-1),OFFSET('C. PoC Adj Factor Scoring'!$E$5:$J$282,,MATCH(AA$4,'C. PoC Adj Factor Scoring'!$E$3:$AH$3,0)-1),MATCH(AA$2&\" Score\",'C. PoC Adj Factor Scoring'!$E$4:$J$4,0),TRUE)","v":3},{"$f":"VLOOKUP(OFFSET($B:$B,,MATCH(AB$4,$B$4:$F$4,0)-1),OFFSET('C. PoC Adj Factor Scoring'!$E$5:$J$282,,MATCH(AB$4,'C. PoC Adj Factor Scoring'!$E$3:$AH$3,0)-1),MATCH(AB$2&\" Score\",'C. PoC Adj Factor Scoring'!$E$4:$J$4,0),TRUE)","v":1},{"$f":"VLOOKUP(OFFSET($B:$B,,MATCH(AC$4,$B$4:$F$4,0)-1),OFFSET('C. PoC Adj Factor Scoring'!$E$5:$J$282,,MATCH(AC$4,'C. PoC Adj Factor Scoring'!$E$3:$AH$3,0)-1),MATCH(AC$2&\" Score\",'C. PoC Adj Factor Scoring'!$E$4:$J$4,0),TRUE)","v":1},{"$f":"VLOOKUP(OFFSET($B:$B,,MATCH(AD$4,$B$4:$F$4,0)-1),OFFSET('C. PoC Adj Factor Scoring'!$E$5:$J$282,,MATCH(AD$4,'C. PoC Adj Factor Scoring'!$E$3:$AH$3,0)-1),MATCH(AD$2&\" Score\",'C. PoC Adj Factor Scoring'!$E$4:$J$4,0),TRUE)","v":1},{"$f":"VLOOKUP(OFFSET($B:$B,,MATCH(AE$4,$B$4:$F$4,0)-1),OFFSET('C. PoC Adj Factor Scoring'!$E$5:$J$282,,MATCH(AE$4,'C. PoC Adj Factor Scoring'!$E$3:$AH$3,0)-1),MATCH(AE$2&\" Score\",'C. PoC Adj Factor Scoring'!$E$4:$J$4,0),TRUE)","v":1}]
[{"$f":"'A. Population Info'!A168","v":1000349287},{"$f":"'A. Population Info'!L168","v":"OIL"},{"$f":"'A. Population Info'!M168","v":0},{"$f":"'A. Population Info'!N168","v":0},{"$f":"'A. Population Info'!O168","v":0},{"$f":"'A. Population Info'!P168","v":0},{"$f":"VLOOKUP(OFFSET($B:$B,,MATCH(G$4,$B$4:$F$4,0)-1),OFFSET('C. PoC Adj Factor Scoring'!$E$5:$J$282,,MATCH(G$4,'C. PoC Adj Factor Scoring'!$E$3:$AH$3,0)-1),MATCH(G$2&\" Score\",'C. PoC Adj Factor Scoring'!$E$4:$J$4,0),TRUE)","v":4},{"$f":"VLOOKUP(OFFSET($B:$B,,MATCH(H$4,$B$4:$F$4,0)-1),OFFSET('C. PoC Adj Factor Scoring'!$E$5:$J$282,,MATCH(H$4,'C. PoC Adj Factor Scoring'!$E$3:$AH$3,0)-1),MATCH(H$2&\" Score\",'C. PoC Adj Factor Scoring'!$E$4:$J$4,0),TRUE)","v":1},{"$f":"VLOOKUP(OFFSET($B:$B,,MATCH(I$4,$B$4:$F$4,0)-1),OFFSET('C. PoC Adj Factor Scoring'!$E$5:$J$282,,MATCH(I$4,'C. PoC Adj Factor Scoring'!$E$3:$AH$3,0)-1),MATCH(I$2&\" Score\",'C. PoC Adj Factor Scoring'!$E$4:$J$4,0),TRUE)","v":1},{"$f":"VLOOKUP(OFFSET($B:$B,,MATCH(J$4,$B$4:$F$4,0)-1),OFFSET('C. PoC Adj Factor Scoring'!$E$5:$J$282,,MATCH(J$4,'C. PoC Adj Factor Scoring'!$E$3:$AH$3,0)-1),MATCH(J$2&\" Score\",'C. PoC Adj Factor Scoring'!$E$4:$J$4,0),TRUE)","v":1},{"$f":"VLOOKUP(OFFSET($B:$B,,MATCH(K$4,$B$4:$F$4,0)-1),OFFSET('C. PoC Adj Factor Scoring'!$E$5:$J$282,,MATCH(K$4,'C. PoC Adj Factor Scoring'!$E$3:$AH$3,0)-1),MATCH(K$2&\" Score\",'C. PoC Adj Factor Scoring'!$E$4:$J$4,0),TRUE)","v":1},{"$f":"VLOOKUP(OFFSET($B:$B,,MATCH(L$4,$B$4:$F$4,0)-1),OFFSET('C. PoC Adj Factor Scoring'!$E$5:$J$282,,MATCH(L$4,'C. PoC Adj Factor Scoring'!$E$3:$AH$3,0)-1),MATCH(L$2&\" Score\",'C. PoC Adj Factor Scoring'!$E$4:$J$4,0),TRUE)","v":1},{"$f":"VLOOKUP(OFFSET($B:$B,,MATCH(M$4,$B$4:$F$4,0)-1),OFFSET('C. PoC Adj Factor Scoring'!$E$5:$J$282,,MATCH(M$4,'C. PoC Adj Factor Scoring'!$E$3:$AH$3,0)-1),MATCH(M$2&\" Score\",'C. PoC Adj Factor Scoring'!$E$4:$J$4,0),TRUE)","v":1},{"$f":"VLOOKUP(OFFSET($B:$B,,MATCH(N$4,$B$4:$F$4,0)-1),OFFSET('C. PoC Adj Factor Scoring'!$E$5:$J$282,,MATCH(N$4,'C. PoC Adj Factor Scoring'!$E$3:$AH$3,0)-1),MATCH(N$2&\" Score\",'C. PoC Adj Factor Scoring'!$E$4:$J$4,0),TRUE)","v":1},{"$f":"VLOOKUP(OFFSET($B:$B,,MATCH(O$4,$B$4:$F$4,0)-1),OFFSET('C. PoC Adj Factor Scoring'!$E$5:$J$282,,MATCH(O$4,'C. PoC Adj Factor Scoring'!$E$3:$AH$3,0)-1),MATCH(O$2&\" Score\",'C. PoC Adj Factor Scoring'!$E$4:$J$4,0),TRUE)","v":1},{"$f":"VLOOKUP(OFFSET($B:$B,,MATCH(P$4,$B$4:$F$4,0)-1),OFFSET('C. PoC Adj Factor Scoring'!$E$5:$J$282,,MATCH(P$4,'C. PoC Adj Factor Scoring'!$E$3:$AH$3,0)-1),MATCH(P$2&\" Score\",'C. PoC Adj Factor Scoring'!$E$4:$J$4,0),TRUE)","v":1},{"$f":"VLOOKUP(OFFSET($B:$B,,MATCH(Q$4,$B$4:$F$4,0)-1),OFFSET('C. PoC Adj Factor Scoring'!$E$5:$J$282,,MATCH(Q$4,'C. PoC Adj Factor Scoring'!$E$3:$AH$3,0)-1),MATCH(Q$2&\" Score\",'C. PoC Adj Factor Scoring'!$E$4:$J$4,0),TRUE)","v":1},{"$f":"VLOOKUP(OFFSET($B:$B,,MATCH(R$4,$B$4:$F$4,0)-1),OFFSET('C. PoC Adj Factor Scoring'!$E$5:$J$282,,MATCH(R$4,'C. PoC Adj Factor Scoring'!$E$3:$AH$3,0)-1),MATCH(R$2&\" Score\",'C. PoC Adj Factor Scoring'!$E$4:$J$4,0),TRUE)","v":1},{"$f":"VLOOKUP(OFFSET($B:$B,,MATCH(S$4,$B$4:$F$4,0)-1),OFFSET('C. PoC Adj Factor Scoring'!$E$5:$J$282,,MATCH(S$4,'C. PoC Adj Factor Scoring'!$E$3:$AH$3,0)-1),MATCH(S$2&\" Score\",'C. PoC Adj Factor Scoring'!$E$4:$J$4,0),TRUE)","v":1},{"$f":"VLOOKUP(OFFSET($B:$B,,MATCH(T$4,$B$4:$F$4,0)-1),OFFSET('C. PoC Adj Factor Scoring'!$E$5:$J$282,,MATCH(T$4,'C. PoC Adj Factor Scoring'!$E$3:$AH$3,0)-1),MATCH(T$2&\" Score\",'C. PoC Adj Factor Scoring'!$E$4:$J$4,0),TRUE)","v":1},{"$f":"VLOOKUP(OFFSET($B:$B,,MATCH(U$4,$B$4:$F$4,0)-1),OFFSET('C. PoC Adj Factor Scoring'!$E$5:$J$282,,MATCH(U$4,'C. PoC Adj Factor Scoring'!$E$3:$AH$3,0)-1),MATCH(U$2&\" Score\",'C. PoC Adj Factor Scoring'!$E$4:$J$4,0),TRUE)","v":1},{"$f":"VLOOKUP(OFFSET($B:$B,,MATCH(V$4,$B$4:$F$4,0)-1),OFFSET('C. PoC Adj Factor Scoring'!$E$5:$J$282,,MATCH(V$4,'C. PoC Adj Factor Scoring'!$E$3:$AH$3,0)-1),MATCH(V$2&\" Score\",'C. PoC Adj Factor Scoring'!$E$4:$J$4,0),TRUE)","v":1},{"$f":"VLOOKUP(OFFSET($B:$B,,MATCH(W$4,$B$4:$F$4,0)-1),OFFSET('C. PoC Adj Factor Scoring'!$E$5:$J$282,,MATCH(W$4,'C. PoC Adj Factor Scoring'!$E$3:$AH$3,0)-1),MATCH(W$2&\" Score\",'C. PoC Adj Factor Scoring'!$E$4:$J$4,0),TRUE)","v":1},{"$f":"VLOOKUP(OFFSET($B:$B,,MATCH(X$4,$B$4:$F$4,0)-1),OFFSET('C. PoC Adj Factor Scoring'!$E$5:$J$282,,MATCH(X$4,'C. PoC Adj Factor Scoring'!$E$3:$AH$3,0)-1),MATCH(X$2&\" Score\",'C. PoC Adj Factor Scoring'!$E$4:$J$4,0),TRUE)","v":1},{"$f":"VLOOKUP(OFFSET($B:$B,,MATCH(Y$4,$B$4:$F$4,0)-1),OFFSET('C. PoC Adj Factor Scoring'!$E$5:$J$282,,MATCH(Y$4,'C. PoC Adj Factor Scoring'!$E$3:$AH$3,0)-1),MATCH(Y$2&\" Score\",'C. PoC Adj Factor Scoring'!$E$4:$J$4,0),TRUE)","v":1},{"$f":"VLOOKUP(OFFSET($B:$B,,MATCH(Z$4,$B$4:$F$4,0)-1),OFFSET('C. PoC Adj Factor Scoring'!$E$5:$J$282,,MATCH(Z$4,'C. PoC Adj Factor Scoring'!$E$3:$AH$3,0)-1),MATCH(Z$2&\" Score\",'C. PoC Adj Factor Scoring'!$E$4:$J$4,0),TRUE)","v":1},{"$f":"VLOOKUP(OFFSET($B:$B,,MATCH(AA$4,$B$4:$F$4,0)-1),OFFSET('C. PoC Adj Factor Scoring'!$E$5:$J$282,,MATCH(AA$4,'C. PoC Adj Factor Scoring'!$E$3:$AH$3,0)-1),MATCH(AA$2&\" Score\",'C. PoC Adj Factor Scoring'!$E$4:$J$4,0),TRUE)","v":3},{"$f":"VLOOKUP(OFFSET($B:$B,,MATCH(AB$4,$B$4:$F$4,0)-1),OFFSET('C. PoC Adj Factor Scoring'!$E$5:$J$282,,MATCH(AB$4,'C. PoC Adj Factor Scoring'!$E$3:$AH$3,0)-1),MATCH(AB$2&\" Score\",'C. PoC Adj Factor Scoring'!$E$4:$J$4,0),TRUE)","v":1},{"$f":"VLOOKUP(OFFSET($B:$B,,MATCH(AC$4,$B$4:$F$4,0)-1),OFFSET('C. PoC Adj Factor Scoring'!$E$5:$J$282,,MATCH(AC$4,'C. PoC Adj Factor Scoring'!$E$3:$AH$3,0)-1),MATCH(AC$2&\" Score\",'C. PoC Adj Factor Scoring'!$E$4:$J$4,0),TRUE)","v":1},{"$f":"VLOOKUP(OFFSET($B:$B,,MATCH(AD$4,$B$4:$F$4,0)-1),OFFSET('C. PoC Adj Factor Scoring'!$E$5:$J$282,,MATCH(AD$4,'C. PoC Adj Factor Scoring'!$E$3:$AH$3,0)-1),MATCH(AD$2&\" Score\",'C. PoC Adj Factor Scoring'!$E$4:$J$4,0),TRUE)","v":1},{"$f":"VLOOKUP(OFFSET($B:$B,,MATCH(AE$4,$B$4:$F$4,0)-1),OFFSET('C. PoC Adj Factor Scoring'!$E$5:$J$282,,MATCH(AE$4,'C. PoC Adj Factor Scoring'!$E$3:$AH$3,0)-1),MATCH(AE$2&\" Score\",'C. PoC Adj Factor Scoring'!$E$4:$J$4,0),TRUE)","v":1}]
[{"$f":"'A. Population Info'!A169","v":1000349315},{"$f":"'A. Population Info'!L169","v":"OIL"},{"$f":"'A. Population Info'!M169","v":0},{"$f":"'A. Population Info'!N169","v":0},{"$f":"'A. Population Info'!O169","v":0},{"$f":"'A. Population Info'!P169","v":0},{"$f":"VLOOKUP(OFFSET($B:$B,,MATCH(G$4,$B$4:$F$4,0)-1),OFFSET('C. PoC Adj Factor Scoring'!$E$5:$J$282,,MATCH(G$4,'C. PoC Adj Factor Scoring'!$E$3:$AH$3,0)-1),MATCH(G$2&\" Score\",'C. PoC Adj Factor Scoring'!$E$4:$J$4,0),TRUE)","v":4},{"$f":"VLOOKUP(OFFSET($B:$B,,MATCH(H$4,$B$4:$F$4,0)-1),OFFSET('C. PoC Adj Factor Scoring'!$E$5:$J$282,,MATCH(H$4,'C. PoC Adj Factor Scoring'!$E$3:$AH$3,0)-1),MATCH(H$2&\" Score\",'C. PoC Adj Factor Scoring'!$E$4:$J$4,0),TRUE)","v":1},{"$f":"VLOOKUP(OFFSET($B:$B,,MATCH(I$4,$B$4:$F$4,0)-1),OFFSET('C. PoC Adj Factor Scoring'!$E$5:$J$282,,MATCH(I$4,'C. PoC Adj Factor Scoring'!$E$3:$AH$3,0)-1),MATCH(I$2&\" Score\",'C. PoC Adj Factor Scoring'!$E$4:$J$4,0),TRUE)","v":1},{"$f":"VLOOKUP(OFFSET($B:$B,,MATCH(J$4,$B$4:$F$4,0)-1),OFFSET('C. PoC Adj Factor Scoring'!$E$5:$J$282,,MATCH(J$4,'C. PoC Adj Factor Scoring'!$E$3:$AH$3,0)-1),MATCH(J$2&\" Score\",'C. PoC Adj Factor Scoring'!$E$4:$J$4,0),TRUE)","v":1},{"$f":"VLOOKUP(OFFSET($B:$B,,MATCH(K$4,$B$4:$F$4,0)-1),OFFSET('C. PoC Adj Factor Scoring'!$E$5:$J$282,,MATCH(K$4,'C. PoC Adj Factor Scoring'!$E$3:$AH$3,0)-1),MATCH(K$2&\" Score\",'C. PoC Adj Factor Scoring'!$E$4:$J$4,0),TRUE)","v":1},{"$f":"VLOOKUP(OFFSET($B:$B,,MATCH(L$4,$B$4:$F$4,0)-1),OFFSET('C. PoC Adj Factor Scoring'!$E$5:$J$282,,MATCH(L$4,'C. PoC Adj Factor Scoring'!$E$3:$AH$3,0)-1),MATCH(L$2&\" Score\",'C. PoC Adj Factor Scoring'!$E$4:$J$4,0),TRUE)","v":1},{"$f":"VLOOKUP(OFFSET($B:$B,,MATCH(M$4,$B$4:$F$4,0)-1),OFFSET('C. PoC Adj Factor Scoring'!$E$5:$J$282,,MATCH(M$4,'C. PoC Adj Factor Scoring'!$E$3:$AH$3,0)-1),MATCH(M$2&\" Score\",'C. PoC Adj Factor Scoring'!$E$4:$J$4,0),TRUE)","v":1},{"$f":"VLOOKUP(OFFSET($B:$B,,MATCH(N$4,$B$4:$F$4,0)-1),OFFSET('C. PoC Adj Factor Scoring'!$E$5:$J$282,,MATCH(N$4,'C. PoC Adj Factor Scoring'!$E$3:$AH$3,0)-1),MATCH(N$2&\" Score\",'C. PoC Adj Factor Scoring'!$E$4:$J$4,0),TRUE)","v":1},{"$f":"VLOOKUP(OFFSET($B:$B,,MATCH(O$4,$B$4:$F$4,0)-1),OFFSET('C. PoC Adj Factor Scoring'!$E$5:$J$282,,MATCH(O$4,'C. PoC Adj Factor Scoring'!$E$3:$AH$3,0)-1),MATCH(O$2&\" Score\",'C. PoC Adj Factor Scoring'!$E$4:$J$4,0),TRUE)","v":1},{"$f":"VLOOKUP(OFFSET($B:$B,,MATCH(P$4,$B$4:$F$4,0)-1),OFFSET('C. PoC Adj Factor Scoring'!$E$5:$J$282,,MATCH(P$4,'C. PoC Adj Factor Scoring'!$E$3:$AH$3,0)-1),MATCH(P$2&\" Score\",'C. PoC Adj Factor Scoring'!$E$4:$J$4,0),TRUE)","v":1},{"$f":"VLOOKUP(OFFSET($B:$B,,MATCH(Q$4,$B$4:$F$4,0)-1),OFFSET('C. PoC Adj Factor Scoring'!$E$5:$J$282,,MATCH(Q$4,'C. PoC Adj Factor Scoring'!$E$3:$AH$3,0)-1),MATCH(Q$2&\" Score\",'C. PoC Adj Factor Scoring'!$E$4:$J$4,0),TRUE)","v":1},{"$f":"VLOOKUP(OFFSET($B:$B,,MATCH(R$4,$B$4:$F$4,0)-1),OFFSET('C. PoC Adj Factor Scoring'!$E$5:$J$282,,MATCH(R$4,'C. PoC Adj Factor Scoring'!$E$3:$AH$3,0)-1),MATCH(R$2&\" Score\",'C. PoC Adj Factor Scoring'!$E$4:$J$4,0),TRUE)","v":1},{"$f":"VLOOKUP(OFFSET($B:$B,,MATCH(S$4,$B$4:$F$4,0)-1),OFFSET('C. PoC Adj Factor Scoring'!$E$5:$J$282,,MATCH(S$4,'C. PoC Adj Factor Scoring'!$E$3:$AH$3,0)-1),MATCH(S$2&\" Score\",'C. PoC Adj Factor Scoring'!$E$4:$J$4,0),TRUE)","v":1},{"$f":"VLOOKUP(OFFSET($B:$B,,MATCH(T$4,$B$4:$F$4,0)-1),OFFSET('C. PoC Adj Factor Scoring'!$E$5:$J$282,,MATCH(T$4,'C. PoC Adj Factor Scoring'!$E$3:$AH$3,0)-1),MATCH(T$2&\" Score\",'C. PoC Adj Factor Scoring'!$E$4:$J$4,0),TRUE)","v":1},{"$f":"VLOOKUP(OFFSET($B:$B,,MATCH(U$4,$B$4:$F$4,0)-1),OFFSET('C. PoC Adj Factor Scoring'!$E$5:$J$282,,MATCH(U$4,'C. PoC Adj Factor Scoring'!$E$3:$AH$3,0)-1),MATCH(U$2&\" Score\",'C. PoC Adj Factor Scoring'!$E$4:$J$4,0),TRUE)","v":1},{"$f":"VLOOKUP(OFFSET($B:$B,,MATCH(V$4,$B$4:$F$4,0)-1),OFFSET('C. PoC Adj Factor Scoring'!$E$5:$J$282,,MATCH(V$4,'C. PoC Adj Factor Scoring'!$E$3:$AH$3,0)-1),MATCH(V$2&\" Score\",'C. PoC Adj Factor Scoring'!$E$4:$J$4,0),TRUE)","v":1},{"$f":"VLOOKUP(OFFSET($B:$B,,MATCH(W$4,$B$4:$F$4,0)-1),OFFSET('C. PoC Adj Factor Scoring'!$E$5:$J$282,,MATCH(W$4,'C. PoC Adj Factor Scoring'!$E$3:$AH$3,0)-1),MATCH(W$2&\" Score\",'C. PoC Adj Factor Scoring'!$E$4:$J$4,0),TRUE)","v":1},{"$f":"VLOOKUP(OFFSET($B:$B,,MATCH(X$4,$B$4:$F$4,0)-1),OFFSET('C. PoC Adj Factor Scoring'!$E$5:$J$282,,MATCH(X$4,'C. PoC Adj Factor Scoring'!$E$3:$AH$3,0)-1),MATCH(X$2&\" Score\",'C. PoC Adj Factor Scoring'!$E$4:$J$4,0),TRUE)","v":1},{"$f":"VLOOKUP(OFFSET($B:$B,,MATCH(Y$4,$B$4:$F$4,0)-1),OFFSET('C. PoC Adj Factor Scoring'!$E$5:$J$282,,MATCH(Y$4,'C. PoC Adj Factor Scoring'!$E$3:$AH$3,0)-1),MATCH(Y$2&\" Score\",'C. PoC Adj Factor Scoring'!$E$4:$J$4,0),TRUE)","v":1},{"$f":"VLOOKUP(OFFSET($B:$B,,MATCH(Z$4,$B$4:$F$4,0)-1),OFFSET('C. PoC Adj Factor Scoring'!$E$5:$J$282,,MATCH(Z$4,'C. PoC Adj Factor Scoring'!$E$3:$AH$3,0)-1),MATCH(Z$2&\" Score\",'C. PoC Adj Factor Scoring'!$E$4:$J$4,0),TRUE)","v":1},{"$f":"VLOOKUP(OFFSET($B:$B,,MATCH(AA$4,$B$4:$F$4,0)-1),OFFSET('C. PoC Adj Factor Scoring'!$E$5:$J$282,,MATCH(AA$4,'C. PoC Adj Factor Scoring'!$E$3:$AH$3,0)-1),MATCH(AA$2&\" Score\",'C. PoC Adj Factor Scoring'!$E$4:$J$4,0),TRUE)","v":3},{"$f":"VLOOKUP(OFFSET($B:$B,,MATCH(AB$4,$B$4:$F$4,0)-1),OFFSET('C. PoC Adj Factor Scoring'!$E$5:$J$282,,MATCH(AB$4,'C. PoC Adj Factor Scoring'!$E$3:$AH$3,0)-1),MATCH(AB$2&\" Score\",'C. PoC Adj Factor Scoring'!$E$4:$J$4,0),TRUE)","v":1},{"$f":"VLOOKUP(OFFSET($B:$B,,MATCH(AC$4,$B$4:$F$4,0)-1),OFFSET('C. PoC Adj Factor Scoring'!$E$5:$J$282,,MATCH(AC$4,'C. PoC Adj Factor Scoring'!$E$3:$AH$3,0)-1),MATCH(AC$2&\" Score\",'C. PoC Adj Factor Scoring'!$E$4:$J$4,0),TRUE)","v":1},{"$f":"VLOOKUP(OFFSET($B:$B,,MATCH(AD$4,$B$4:$F$4,0)-1),OFFSET('C. PoC Adj Factor Scoring'!$E$5:$J$282,,MATCH(AD$4,'C. PoC Adj Factor Scoring'!$E$3:$AH$3,0)-1),MATCH(AD$2&\" Score\",'C. PoC Adj Factor Scoring'!$E$4:$J$4,0),TRUE)","v":1},{"$f":"VLOOKUP(OFFSET($B:$B,,MATCH(AE$4,$B$4:$F$4,0)-1),OFFSET('C. PoC Adj Factor Scoring'!$E$5:$J$282,,MATCH(AE$4,'C. PoC Adj Factor Scoring'!$E$3:$AH$3,0)-1),MATCH(AE$2&\" Score\",'C. PoC Adj Factor Scoring'!$E$4:$J$4,0),TRUE)","v":1}]
[{"$f":"'A. Population Info'!A170","v":1000349346},{"$f":"'A. Population Info'!L170","v":"OIL"},{"$f":"'A. Population Info'!M170","v":0},{"$f":"'A. Population Info'!N170","v":0},{"$f":"'A. Population Info'!O170","v":0},{"$f":"'A. Population Info'!P170","v":0},{"$f":"VLOOKUP(OFFSET($B:$B,,MATCH(G$4,$B$4:$F$4,0)-1),OFFSET('C. PoC Adj Factor Scoring'!$E$5:$J$282,,MATCH(G$4,'C. PoC Adj Factor Scoring'!$E$3:$AH$3,0)-1),MATCH(G$2&\" Score\",'C. PoC Adj Factor Scoring'!$E$4:$J$4,0),TRUE)","v":4},{"$f":"VLOOKUP(OFFSET($B:$B,,MATCH(H$4,$B$4:$F$4,0)-1),OFFSET('C. PoC Adj Factor Scoring'!$E$5:$J$282,,MATCH(H$4,'C. PoC Adj Factor Scoring'!$E$3:$AH$3,0)-1),MATCH(H$2&\" Score\",'C. PoC Adj Factor Scoring'!$E$4:$J$4,0),TRUE)","v":1},{"$f":"VLOOKUP(OFFSET($B:$B,,MATCH(I$4,$B$4:$F$4,0)-1),OFFSET('C. PoC Adj Factor Scoring'!$E$5:$J$282,,MATCH(I$4,'C. PoC Adj Factor Scoring'!$E$3:$AH$3,0)-1),MATCH(I$2&\" Score\",'C. PoC Adj Factor Scoring'!$E$4:$J$4,0),TRUE)","v":1},{"$f":"VLOOKUP(OFFSET($B:$B,,MATCH(J$4,$B$4:$F$4,0)-1),OFFSET('C. PoC Adj Factor Scoring'!$E$5:$J$282,,MATCH(J$4,'C. PoC Adj Factor Scoring'!$E$3:$AH$3,0)-1),MATCH(J$2&\" Score\",'C. PoC Adj Factor Scoring'!$E$4:$J$4,0),TRUE)","v":1},{"$f":"VLOOKUP(OFFSET($B:$B,,MATCH(K$4,$B$4:$F$4,0)-1),OFFSET('C. PoC Adj Factor Scoring'!$E$5:$J$282,,MATCH(K$4,'C. PoC Adj Factor Scoring'!$E$3:$AH$3,0)-1),MATCH(K$2&\" Score\",'C. PoC Adj Factor Scoring'!$E$4:$J$4,0),TRUE)","v":1},{"$f":"VLOOKUP(OFFSET($B:$B,,MATCH(L$4,$B$4:$F$4,0)-1),OFFSET('C. PoC Adj Factor Scoring'!$E$5:$J$282,,MATCH(L$4,'C. PoC Adj Factor Scoring'!$E$3:$AH$3,0)-1),MATCH(L$2&\" Score\",'C. PoC Adj Factor Scoring'!$E$4:$J$4,0),TRUE)","v":1},{"$f":"VLOOKUP(OFFSET($B:$B,,MATCH(M$4,$B$4:$F$4,0)-1),OFFSET('C. PoC Adj Factor Scoring'!$E$5:$J$282,,MATCH(M$4,'C. PoC Adj Factor Scoring'!$E$3:$AH$3,0)-1),MATCH(M$2&\" Score\",'C. PoC Adj Factor Scoring'!$E$4:$J$4,0),TRUE)","v":1},{"$f":"VLOOKUP(OFFSET($B:$B,,MATCH(N$4,$B$4:$F$4,0)-1),OFFSET('C. PoC Adj Factor Scoring'!$E$5:$J$282,,MATCH(N$4,'C. PoC Adj Factor Scoring'!$E$3:$AH$3,0)-1),MATCH(N$2&\" Score\",'C. PoC Adj Factor Scoring'!$E$4:$J$4,0),TRUE)","v":1},{"$f":"VLOOKUP(OFFSET($B:$B,,MATCH(O$4,$B$4:$F$4,0)-1),OFFSET('C. PoC Adj Factor Scoring'!$E$5:$J$282,,MATCH(O$4,'C. PoC Adj Factor Scoring'!$E$3:$AH$3,0)-1),MATCH(O$2&\" Score\",'C. PoC Adj Factor Scoring'!$E$4:$J$4,0),TRUE)","v":1},{"$f":"VLOOKUP(OFFSET($B:$B,,MATCH(P$4,$B$4:$F$4,0)-1),OFFSET('C. PoC Adj Factor Scoring'!$E$5:$J$282,,MATCH(P$4,'C. PoC Adj Factor Scoring'!$E$3:$AH$3,0)-1),MATCH(P$2&\" Score\",'C. PoC Adj Factor Scoring'!$E$4:$J$4,0),TRUE)","v":1},{"$f":"VLOOKUP(OFFSET($B:$B,,MATCH(Q$4,$B$4:$F$4,0)-1),OFFSET('C. PoC Adj Factor Scoring'!$E$5:$J$282,,MATCH(Q$4,'C. PoC Adj Factor Scoring'!$E$3:$AH$3,0)-1),MATCH(Q$2&\" Score\",'C. PoC Adj Factor Scoring'!$E$4:$J$4,0),TRUE)","v":1},{"$f":"VLOOKUP(OFFSET($B:$B,,MATCH(R$4,$B$4:$F$4,0)-1),OFFSET('C. PoC Adj Factor Scoring'!$E$5:$J$282,,MATCH(R$4,'C. PoC Adj Factor Scoring'!$E$3:$AH$3,0)-1),MATCH(R$2&\" Score\",'C. PoC Adj Factor Scoring'!$E$4:$J$4,0),TRUE)","v":1},{"$f":"VLOOKUP(OFFSET($B:$B,,MATCH(S$4,$B$4:$F$4,0)-1),OFFSET('C. PoC Adj Factor Scoring'!$E$5:$J$282,,MATCH(S$4,'C. PoC Adj Factor Scoring'!$E$3:$AH$3,0)-1),MATCH(S$2&\" Score\",'C. PoC Adj Factor Scoring'!$E$4:$J$4,0),TRUE)","v":1},{"$f":"VLOOKUP(OFFSET($B:$B,,MATCH(T$4,$B$4:$F$4,0)-1),OFFSET('C. PoC Adj Factor Scoring'!$E$5:$J$282,,MATCH(T$4,'C. PoC Adj Factor Scoring'!$E$3:$AH$3,0)-1),MATCH(T$2&\" Score\",'C. PoC Adj Factor Scoring'!$E$4:$J$4,0),TRUE)","v":1},{"$f":"VLOOKUP(OFFSET($B:$B,,MATCH(U$4,$B$4:$F$4,0)-1),OFFSET('C. PoC Adj Factor Scoring'!$E$5:$J$282,,MATCH(U$4,'C. PoC Adj Factor Scoring'!$E$3:$AH$3,0)-1),MATCH(U$2&\" Score\",'C. PoC Adj Factor Scoring'!$E$4:$J$4,0),TRUE)","v":1},{"$f":"VLOOKUP(OFFSET($B:$B,,MATCH(V$4,$B$4:$F$4,0)-1),OFFSET('C. PoC Adj Factor Scoring'!$E$5:$J$282,,MATCH(V$4,'C. PoC Adj Factor Scoring'!$E$3:$AH$3,0)-1),MATCH(V$2&\" Score\",'C. PoC Adj Factor Scoring'!$E$4:$J$4,0),TRUE)","v":1},{"$f":"VLOOKUP(OFFSET($B:$B,,MATCH(W$4,$B$4:$F$4,0)-1),OFFSET('C. PoC Adj Factor Scoring'!$E$5:$J$282,,MATCH(W$4,'C. PoC Adj Factor Scoring'!$E$3:$AH$3,0)-1),MATCH(W$2&\" Score\",'C. PoC Adj Factor Scoring'!$E$4:$J$4,0),TRUE)","v":1},{"$f":"VLOOKUP(OFFSET($B:$B,,MATCH(X$4,$B$4:$F$4,0)-1),OFFSET('C. PoC Adj Factor Scoring'!$E$5:$J$282,,MATCH(X$4,'C. PoC Adj Factor Scoring'!$E$3:$AH$3,0)-1),MATCH(X$2&\" Score\",'C. PoC Adj Factor Scoring'!$E$4:$J$4,0),TRUE)","v":1},{"$f":"VLOOKUP(OFFSET($B:$B,,MATCH(Y$4,$B$4:$F$4,0)-1),OFFSET('C. PoC Adj Factor Scoring'!$E$5:$J$282,,MATCH(Y$4,'C. PoC Adj Factor Scoring'!$E$3:$AH$3,0)-1),MATCH(Y$2&\" Score\",'C. PoC Adj Factor Scoring'!$E$4:$J$4,0),TRUE)","v":1},{"$f":"VLOOKUP(OFFSET($B:$B,,MATCH(Z$4,$B$4:$F$4,0)-1),OFFSET('C. PoC Adj Factor Scoring'!$E$5:$J$282,,MATCH(Z$4,'C. PoC Adj Factor Scoring'!$E$3:$AH$3,0)-1),MATCH(Z$2&\" Score\",'C. PoC Adj Factor Scoring'!$E$4:$J$4,0),TRUE)","v":1},{"$f":"VLOOKUP(OFFSET($B:$B,,MATCH(AA$4,$B$4:$F$4,0)-1),OFFSET('C. PoC Adj Factor Scoring'!$E$5:$J$282,,MATCH(AA$4,'C. PoC Adj Factor Scoring'!$E$3:$AH$3,0)-1),MATCH(AA$2&\" Score\",'C. PoC Adj Factor Scoring'!$E$4:$J$4,0),TRUE)","v":3},{"$f":"VLOOKUP(OFFSET($B:$B,,MATCH(AB$4,$B$4:$F$4,0)-1),OFFSET('C. PoC Adj Factor Scoring'!$E$5:$J$282,,MATCH(AB$4,'C. PoC Adj Factor Scoring'!$E$3:$AH$3,0)-1),MATCH(AB$2&\" Score\",'C. PoC Adj Factor Scoring'!$E$4:$J$4,0),TRUE)","v":1},{"$f":"VLOOKUP(OFFSET($B:$B,,MATCH(AC$4,$B$4:$F$4,0)-1),OFFSET('C. PoC Adj Factor Scoring'!$E$5:$J$282,,MATCH(AC$4,'C. PoC Adj Factor Scoring'!$E$3:$AH$3,0)-1),MATCH(AC$2&\" Score\",'C. PoC Adj Factor Scoring'!$E$4:$J$4,0),TRUE)","v":1},{"$f":"VLOOKUP(OFFSET($B:$B,,MATCH(AD$4,$B$4:$F$4,0)-1),OFFSET('C. PoC Adj Factor Scoring'!$E$5:$J$282,,MATCH(AD$4,'C. PoC Adj Factor Scoring'!$E$3:$AH$3,0)-1),MATCH(AD$2&\" Score\",'C. PoC Adj Factor Scoring'!$E$4:$J$4,0),TRUE)","v":1},{"$f":"VLOOKUP(OFFSET($B:$B,,MATCH(AE$4,$B$4:$F$4,0)-1),OFFSET('C. PoC Adj Factor Scoring'!$E$5:$J$282,,MATCH(AE$4,'C. PoC Adj Factor Scoring'!$E$3:$AH$3,0)-1),MATCH(AE$2&\" Score\",'C. PoC Adj Factor Scoring'!$E$4:$J$4,0),TRUE)","v":1}]
[{"$f":"'A. Population Info'!A171","v":1000349374},{"$f":"'A. Population Info'!L171","v":"OIL"},{"$f":"'A. Population Info'!M171","v":0},{"$f":"'A. Population Info'!N171","v":0},{"$f":"'A. Population Info'!O171","v":0},{"$f":"'A. Population Info'!P171","v":0},{"$f":"VLOOKUP(OFFSET($B:$B,,MATCH(G$4,$B$4:$F$4,0)-1),OFFSET('C. PoC Adj Factor Scoring'!$E$5:$J$282,,MATCH(G$4,'C. PoC Adj Factor Scoring'!$E$3:$AH$3,0)-1),MATCH(G$2&\" Score\",'C. PoC Adj Factor Scoring'!$E$4:$J$4,0),TRUE)","v":4},{"$f":"VLOOKUP(OFFSET($B:$B,,MATCH(H$4,$B$4:$F$4,0)-1),OFFSET('C. PoC Adj Factor Scoring'!$E$5:$J$282,,MATCH(H$4,'C. PoC Adj Factor Scoring'!$E$3:$AH$3,0)-1),MATCH(H$2&\" Score\",'C. PoC Adj Factor Scoring'!$E$4:$J$4,0),TRUE)","v":1},{"$f":"VLOOKUP(OFFSET($B:$B,,MATCH(I$4,$B$4:$F$4,0)-1),OFFSET('C. PoC Adj Factor Scoring'!$E$5:$J$282,,MATCH(I$4,'C. PoC Adj Factor Scoring'!$E$3:$AH$3,0)-1),MATCH(I$2&\" Score\",'C. PoC Adj Factor Scoring'!$E$4:$J$4,0),TRUE)","v":1},{"$f":"VLOOKUP(OFFSET($B:$B,,MATCH(J$4,$B$4:$F$4,0)-1),OFFSET('C. PoC Adj Factor Scoring'!$E$5:$J$282,,MATCH(J$4,'C. PoC Adj Factor Scoring'!$E$3:$AH$3,0)-1),MATCH(J$2&\" Score\",'C. PoC Adj Factor Scoring'!$E$4:$J$4,0),TRUE)","v":1},{"$f":"VLOOKUP(OFFSET($B:$B,,MATCH(K$4,$B$4:$F$4,0)-1),OFFSET('C. PoC Adj Factor Scoring'!$E$5:$J$282,,MATCH(K$4,'C. PoC Adj Factor Scoring'!$E$3:$AH$3,0)-1),MATCH(K$2&\" Score\",'C. PoC Adj Factor Scoring'!$E$4:$J$4,0),TRUE)","v":1},{"$f":"VLOOKUP(OFFSET($B:$B,,MATCH(L$4,$B$4:$F$4,0)-1),OFFSET('C. PoC Adj Factor Scoring'!$E$5:$J$282,,MATCH(L$4,'C. PoC Adj Factor Scoring'!$E$3:$AH$3,0)-1),MATCH(L$2&\" Score\",'C. PoC Adj Factor Scoring'!$E$4:$J$4,0),TRUE)","v":1},{"$f":"VLOOKUP(OFFSET($B:$B,,MATCH(M$4,$B$4:$F$4,0)-1),OFFSET('C. PoC Adj Factor Scoring'!$E$5:$J$282,,MATCH(M$4,'C. PoC Adj Factor Scoring'!$E$3:$AH$3,0)-1),MATCH(M$2&\" Score\",'C. PoC Adj Factor Scoring'!$E$4:$J$4,0),TRUE)","v":1},{"$f":"VLOOKUP(OFFSET($B:$B,,MATCH(N$4,$B$4:$F$4,0)-1),OFFSET('C. PoC Adj Factor Scoring'!$E$5:$J$282,,MATCH(N$4,'C. PoC Adj Factor Scoring'!$E$3:$AH$3,0)-1),MATCH(N$2&\" Score\",'C. PoC Adj Factor Scoring'!$E$4:$J$4,0),TRUE)","v":1},{"$f":"VLOOKUP(OFFSET($B:$B,,MATCH(O$4,$B$4:$F$4,0)-1),OFFSET('C. PoC Adj Factor Scoring'!$E$5:$J$282,,MATCH(O$4,'C. PoC Adj Factor Scoring'!$E$3:$AH$3,0)-1),MATCH(O$2&\" Score\",'C. PoC Adj Factor Scoring'!$E$4:$J$4,0),TRUE)","v":1},{"$f":"VLOOKUP(OFFSET($B:$B,,MATCH(P$4,$B$4:$F$4,0)-1),OFFSET('C. PoC Adj Factor Scoring'!$E$5:$J$282,,MATCH(P$4,'C. PoC Adj Factor Scoring'!$E$3:$AH$3,0)-1),MATCH(P$2&\" Score\",'C. PoC Adj Factor Scoring'!$E$4:$J$4,0),TRUE)","v":1},{"$f":"VLOOKUP(OFFSET($B:$B,,MATCH(Q$4,$B$4:$F$4,0)-1),OFFSET('C. PoC Adj Factor Scoring'!$E$5:$J$282,,MATCH(Q$4,'C. PoC Adj Factor Scoring'!$E$3:$AH$3,0)-1),MATCH(Q$2&\" Score\",'C. PoC Adj Factor Scoring'!$E$4:$J$4,0),TRUE)","v":1},{"$f":"VLOOKUP(OFFSET($B:$B,,MATCH(R$4,$B$4:$F$4,0)-1),OFFSET('C. PoC Adj Factor Scoring'!$E$5:$J$282,,MATCH(R$4,'C. PoC Adj Factor Scoring'!$E$3:$AH$3,0)-1),MATCH(R$2&\" Score\",'C. PoC Adj Factor Scoring'!$E$4:$J$4,0),TRUE)","v":1},{"$f":"VLOOKUP(OFFSET($B:$B,,MATCH(S$4,$B$4:$F$4,0)-1),OFFSET('C. PoC Adj Factor Scoring'!$E$5:$J$282,,MATCH(S$4,'C. PoC Adj Factor Scoring'!$E$3:$AH$3,0)-1),MATCH(S$2&\" Score\",'C. PoC Adj Factor Scoring'!$E$4:$J$4,0),TRUE)","v":1},{"$f":"VLOOKUP(OFFSET($B:$B,,MATCH(T$4,$B$4:$F$4,0)-1),OFFSET('C. PoC Adj Factor Scoring'!$E$5:$J$282,,MATCH(T$4,'C. PoC Adj Factor Scoring'!$E$3:$AH$3,0)-1),MATCH(T$2&\" Score\",'C. PoC Adj Factor Scoring'!$E$4:$J$4,0),TRUE)","v":1},{"$f":"VLOOKUP(OFFSET($B:$B,,MATCH(U$4,$B$4:$F$4,0)-1),OFFSET('C. PoC Adj Factor Scoring'!$E$5:$J$282,,MATCH(U$4,'C. PoC Adj Factor Scoring'!$E$3:$AH$3,0)-1),MATCH(U$2&\" Score\",'C. PoC Adj Factor Scoring'!$E$4:$J$4,0),TRUE)","v":1},{"$f":"VLOOKUP(OFFSET($B:$B,,MATCH(V$4,$B$4:$F$4,0)-1),OFFSET('C. PoC Adj Factor Scoring'!$E$5:$J$282,,MATCH(V$4,'C. PoC Adj Factor Scoring'!$E$3:$AH$3,0)-1),MATCH(V$2&\" Score\",'C. PoC Adj Factor Scoring'!$E$4:$J$4,0),TRUE)","v":1},{"$f":"VLOOKUP(OFFSET($B:$B,,MATCH(W$4,$B$4:$F$4,0)-1),OFFSET('C. PoC Adj Factor Scoring'!$E$5:$J$282,,MATCH(W$4,'C. PoC Adj Factor Scoring'!$E$3:$AH$3,0)-1),MATCH(W$2&\" Score\",'C. PoC Adj Factor Scoring'!$E$4:$J$4,0),TRUE)","v":1},{"$f":"VLOOKUP(OFFSET($B:$B,,MATCH(X$4,$B$4:$F$4,0)-1),OFFSET('C. PoC Adj Factor Scoring'!$E$5:$J$282,,MATCH(X$4,'C. PoC Adj Factor Scoring'!$E$3:$AH$3,0)-1),MATCH(X$2&\" Score\",'C. PoC Adj Factor Scoring'!$E$4:$J$4,0),TRUE)","v":1},{"$f":"VLOOKUP(OFFSET($B:$B,,MATCH(Y$4,$B$4:$F$4,0)-1),OFFSET('C. PoC Adj Factor Scoring'!$E$5:$J$282,,MATCH(Y$4,'C. PoC Adj Factor Scoring'!$E$3:$AH$3,0)-1),MATCH(Y$2&\" Score\",'C. PoC Adj Factor Scoring'!$E$4:$J$4,0),TRUE)","v":1},{"$f":"VLOOKUP(OFFSET($B:$B,,MATCH(Z$4,$B$4:$F$4,0)-1),OFFSET('C. PoC Adj Factor Scoring'!$E$5:$J$282,,MATCH(Z$4,'C. PoC Adj Factor Scoring'!$E$3:$AH$3,0)-1),MATCH(Z$2&\" Score\",'C. PoC Adj Factor Scoring'!$E$4:$J$4,0),TRUE)","v":1},{"$f":"VLOOKUP(OFFSET($B:$B,,MATCH(AA$4,$B$4:$F$4,0)-1),OFFSET('C. PoC Adj Factor Scoring'!$E$5:$J$282,,MATCH(AA$4,'C. PoC Adj Factor Scoring'!$E$3:$AH$3,0)-1),MATCH(AA$2&\" Score\",'C. PoC Adj Factor Scoring'!$E$4:$J$4,0),TRUE)","v":3},{"$f":"VLOOKUP(OFFSET($B:$B,,MATCH(AB$4,$B$4:$F$4,0)-1),OFFSET('C. PoC Adj Factor Scoring'!$E$5:$J$282,,MATCH(AB$4,'C. PoC Adj Factor Scoring'!$E$3:$AH$3,0)-1),MATCH(AB$2&\" Score\",'C. PoC Adj Factor Scoring'!$E$4:$J$4,0),TRUE)","v":1},{"$f":"VLOOKUP(OFFSET($B:$B,,MATCH(AC$4,$B$4:$F$4,0)-1),OFFSET('C. PoC Adj Factor Scoring'!$E$5:$J$282,,MATCH(AC$4,'C. PoC Adj Factor Scoring'!$E$3:$AH$3,0)-1),MATCH(AC$2&\" Score\",'C. PoC Adj Factor Scoring'!$E$4:$J$4,0),TRUE)","v":1},{"$f":"VLOOKUP(OFFSET($B:$B,,MATCH(AD$4,$B$4:$F$4,0)-1),OFFSET('C. PoC Adj Factor Scoring'!$E$5:$J$282,,MATCH(AD$4,'C. PoC Adj Factor Scoring'!$E$3:$AH$3,0)-1),MATCH(AD$2&\" Score\",'C. PoC Adj Factor Scoring'!$E$4:$J$4,0),TRUE)","v":1},{"$f":"VLOOKUP(OFFSET($B:$B,,MATCH(AE$4,$B$4:$F$4,0)-1),OFFSET('C. PoC Adj Factor Scoring'!$E$5:$J$282,,MATCH(AE$4,'C. PoC Adj Factor Scoring'!$E$3:$AH$3,0)-1),MATCH(AE$2&\" Score\",'C. PoC Adj Factor Scoring'!$E$4:$J$4,0),TRUE)","v":1}]
[{"$f":"'A. Population Info'!A172","v":1000349403},{"$f":"'A. Population Info'!L172","v":"OIL"},{"$f":"'A. Population Info'!M172","v":0},{"$f":"'A. Population Info'!N172","v":0},{"$f":"'A. Population Info'!O172","v":0},{"$f":"'A. Population Info'!P172","v":0},{"$f":"VLOOKUP(OFFSET($B:$B,,MATCH(G$4,$B$4:$F$4,0)-1),OFFSET('C. PoC Adj Factor Scoring'!$E$5:$J$282,,MATCH(G$4,'C. PoC Adj Factor Scoring'!$E$3:$AH$3,0)-1),MATCH(G$2&\" Score\",'C. PoC Adj Factor Scoring'!$E$4:$J$4,0),TRUE)","v":4},{"$f":"VLOOKUP(OFFSET($B:$B,,MATCH(H$4,$B$4:$F$4,0)-1),OFFSET('C. PoC Adj Factor Scoring'!$E$5:$J$282,,MATCH(H$4,'C. PoC Adj Factor Scoring'!$E$3:$AH$3,0)-1),MATCH(H$2&\" Score\",'C. PoC Adj Factor Scoring'!$E$4:$J$4,0),TRUE)","v":1},{"$f":"VLOOKUP(OFFSET($B:$B,,MATCH(I$4,$B$4:$F$4,0)-1),OFFSET('C. PoC Adj Factor Scoring'!$E$5:$J$282,,MATCH(I$4,'C. PoC Adj Factor Scoring'!$E$3:$AH$3,0)-1),MATCH(I$2&\" Score\",'C. PoC Adj Factor Scoring'!$E$4:$J$4,0),TRUE)","v":1},{"$f":"VLOOKUP(OFFSET($B:$B,,MATCH(J$4,$B$4:$F$4,0)-1),OFFSET('C. PoC Adj Factor Scoring'!$E$5:$J$282,,MATCH(J$4,'C. PoC Adj Factor Scoring'!$E$3:$AH$3,0)-1),MATCH(J$2&\" Score\",'C. PoC Adj Factor Scoring'!$E$4:$J$4,0),TRUE)","v":1},{"$f":"VLOOKUP(OFFSET($B:$B,,MATCH(K$4,$B$4:$F$4,0)-1),OFFSET('C. PoC Adj Factor Scoring'!$E$5:$J$282,,MATCH(K$4,'C. PoC Adj Factor Scoring'!$E$3:$AH$3,0)-1),MATCH(K$2&\" Score\",'C. PoC Adj Factor Scoring'!$E$4:$J$4,0),TRUE)","v":1},{"$f":"VLOOKUP(OFFSET($B:$B,,MATCH(L$4,$B$4:$F$4,0)-1),OFFSET('C. PoC Adj Factor Scoring'!$E$5:$J$282,,MATCH(L$4,'C. PoC Adj Factor Scoring'!$E$3:$AH$3,0)-1),MATCH(L$2&\" Score\",'C. PoC Adj Factor Scoring'!$E$4:$J$4,0),TRUE)","v":1},{"$f":"VLOOKUP(OFFSET($B:$B,,MATCH(M$4,$B$4:$F$4,0)-1),OFFSET('C. PoC Adj Factor Scoring'!$E$5:$J$282,,MATCH(M$4,'C. PoC Adj Factor Scoring'!$E$3:$AH$3,0)-1),MATCH(M$2&\" Score\",'C. PoC Adj Factor Scoring'!$E$4:$J$4,0),TRUE)","v":1},{"$f":"VLOOKUP(OFFSET($B:$B,,MATCH(N$4,$B$4:$F$4,0)-1),OFFSET('C. PoC Adj Factor Scoring'!$E$5:$J$282,,MATCH(N$4,'C. PoC Adj Factor Scoring'!$E$3:$AH$3,0)-1),MATCH(N$2&\" Score\",'C. PoC Adj Factor Scoring'!$E$4:$J$4,0),TRUE)","v":1},{"$f":"VLOOKUP(OFFSET($B:$B,,MATCH(O$4,$B$4:$F$4,0)-1),OFFSET('C. PoC Adj Factor Scoring'!$E$5:$J$282,,MATCH(O$4,'C. PoC Adj Factor Scoring'!$E$3:$AH$3,0)-1),MATCH(O$2&\" Score\",'C. PoC Adj Factor Scoring'!$E$4:$J$4,0),TRUE)","v":1},{"$f":"VLOOKUP(OFFSET($B:$B,,MATCH(P$4,$B$4:$F$4,0)-1),OFFSET('C. PoC Adj Factor Scoring'!$E$5:$J$282,,MATCH(P$4,'C. PoC Adj Factor Scoring'!$E$3:$AH$3,0)-1),MATCH(P$2&\" Score\",'C. PoC Adj Factor Scoring'!$E$4:$J$4,0),TRUE)","v":1},{"$f":"VLOOKUP(OFFSET($B:$B,,MATCH(Q$4,$B$4:$F$4,0)-1),OFFSET('C. PoC Adj Factor Scoring'!$E$5:$J$282,,MATCH(Q$4,'C. PoC Adj Factor Scoring'!$E$3:$AH$3,0)-1),MATCH(Q$2&\" Score\",'C. PoC Adj Factor Scoring'!$E$4:$J$4,0),TRUE)","v":1},{"$f":"VLOOKUP(OFFSET($B:$B,,MATCH(R$4,$B$4:$F$4,0)-1),OFFSET('C. PoC Adj Factor Scoring'!$E$5:$J$282,,MATCH(R$4,'C. PoC Adj Factor Scoring'!$E$3:$AH$3,0)-1),MATCH(R$2&\" Score\",'C. PoC Adj Factor Scoring'!$E$4:$J$4,0),TRUE)","v":1},{"$f":"VLOOKUP(OFFSET($B:$B,,MATCH(S$4,$B$4:$F$4,0)-1),OFFSET('C. PoC Adj Factor Scoring'!$E$5:$J$282,,MATCH(S$4,'C. PoC Adj Factor Scoring'!$E$3:$AH$3,0)-1),MATCH(S$2&\" Score\",'C. PoC Adj Factor Scoring'!$E$4:$J$4,0),TRUE)","v":1},{"$f":"VLOOKUP(OFFSET($B:$B,,MATCH(T$4,$B$4:$F$4,0)-1),OFFSET('C. PoC Adj Factor Scoring'!$E$5:$J$282,,MATCH(T$4,'C. PoC Adj Factor Scoring'!$E$3:$AH$3,0)-1),MATCH(T$2&\" Score\",'C. PoC Adj Factor Scoring'!$E$4:$J$4,0),TRUE)","v":1},{"$f":"VLOOKUP(OFFSET($B:$B,,MATCH(U$4,$B$4:$F$4,0)-1),OFFSET('C. PoC Adj Factor Scoring'!$E$5:$J$282,,MATCH(U$4,'C. PoC Adj Factor Scoring'!$E$3:$AH$3,0)-1),MATCH(U$2&\" Score\",'C. PoC Adj Factor Scoring'!$E$4:$J$4,0),TRUE)","v":1},{"$f":"VLOOKUP(OFFSET($B:$B,,MATCH(V$4,$B$4:$F$4,0)-1),OFFSET('C. PoC Adj Factor Scoring'!$E$5:$J$282,,MATCH(V$4,'C. PoC Adj Factor Scoring'!$E$3:$AH$3,0)-1),MATCH(V$2&\" Score\",'C. PoC Adj Factor Scoring'!$E$4:$J$4,0),TRUE)","v":1},{"$f":"VLOOKUP(OFFSET($B:$B,,MATCH(W$4,$B$4:$F$4,0)-1),OFFSET('C. PoC Adj Factor Scoring'!$E$5:$J$282,,MATCH(W$4,'C. PoC Adj Factor Scoring'!$E$3:$AH$3,0)-1),MATCH(W$2&\" Score\",'C. PoC Adj Factor Scoring'!$E$4:$J$4,0),TRUE)","v":1},{"$f":"VLOOKUP(OFFSET($B:$B,,MATCH(X$4,$B$4:$F$4,0)-1),OFFSET('C. PoC Adj Factor Scoring'!$E$5:$J$282,,MATCH(X$4,'C. PoC Adj Factor Scoring'!$E$3:$AH$3,0)-1),MATCH(X$2&\" Score\",'C. PoC Adj Factor Scoring'!$E$4:$J$4,0),TRUE)","v":1},{"$f":"VLOOKUP(OFFSET($B:$B,,MATCH(Y$4,$B$4:$F$4,0)-1),OFFSET('C. PoC Adj Factor Scoring'!$E$5:$J$282,,MATCH(Y$4,'C. PoC Adj Factor Scoring'!$E$3:$AH$3,0)-1),MATCH(Y$2&\" Score\",'C. PoC Adj Factor Scoring'!$E$4:$J$4,0),TRUE)","v":1},{"$f":"VLOOKUP(OFFSET($B:$B,,MATCH(Z$4,$B$4:$F$4,0)-1),OFFSET('C. PoC Adj Factor Scoring'!$E$5:$J$282,,MATCH(Z$4,'C. PoC Adj Factor Scoring'!$E$3:$AH$3,0)-1),MATCH(Z$2&\" Score\",'C. PoC Adj Factor Scoring'!$E$4:$J$4,0),TRUE)","v":1},{"$f":"VLOOKUP(OFFSET($B:$B,,MATCH(AA$4,$B$4:$F$4,0)-1),OFFSET('C. PoC Adj Factor Scoring'!$E$5:$J$282,,MATCH(AA$4,'C. PoC Adj Factor Scoring'!$E$3:$AH$3,0)-1),MATCH(AA$2&\" Score\",'C. PoC Adj Factor Scoring'!$E$4:$J$4,0),TRUE)","v":3},{"$f":"VLOOKUP(OFFSET($B:$B,,MATCH(AB$4,$B$4:$F$4,0)-1),OFFSET('C. PoC Adj Factor Scoring'!$E$5:$J$282,,MATCH(AB$4,'C. PoC Adj Factor Scoring'!$E$3:$AH$3,0)-1),MATCH(AB$2&\" Score\",'C. PoC Adj Factor Scoring'!$E$4:$J$4,0),TRUE)","v":1},{"$f":"VLOOKUP(OFFSET($B:$B,,MATCH(AC$4,$B$4:$F$4,0)-1),OFFSET('C. PoC Adj Factor Scoring'!$E$5:$J$282,,MATCH(AC$4,'C. PoC Adj Factor Scoring'!$E$3:$AH$3,0)-1),MATCH(AC$2&\" Score\",'C. PoC Adj Factor Scoring'!$E$4:$J$4,0),TRUE)","v":1},{"$f":"VLOOKUP(OFFSET($B:$B,,MATCH(AD$4,$B$4:$F$4,0)-1),OFFSET('C. PoC Adj Factor Scoring'!$E$5:$J$282,,MATCH(AD$4,'C. PoC Adj Factor Scoring'!$E$3:$AH$3,0)-1),MATCH(AD$2&\" Score\",'C. PoC Adj Factor Scoring'!$E$4:$J$4,0),TRUE)","v":1},{"$f":"VLOOKUP(OFFSET($B:$B,,MATCH(AE$4,$B$4:$F$4,0)-1),OFFSET('C. PoC Adj Factor Scoring'!$E$5:$J$282,,MATCH(AE$4,'C. PoC Adj Factor Scoring'!$E$3:$AH$3,0)-1),MATCH(AE$2&\" Score\",'C. PoC Adj Factor Scoring'!$E$4:$J$4,0),TRUE)","v":1}]
[{"$f":"'A. Population Info'!A173","v":1000349461},{"$f":"'A. Population Info'!L173","v":"OIL"},{"$f":"'A. Population Info'!M173","v":0},{"$f":"'A. Population Info'!N173","v":0},{"$f":"'A. Population Info'!O173","v":0},{"$f":"'A. Population Info'!P173","v":0},{"$f":"VLOOKUP(OFFSET($B:$B,,MATCH(G$4,$B$4:$F$4,0)-1),OFFSET('C. PoC Adj Factor Scoring'!$E$5:$J$282,,MATCH(G$4,'C. PoC Adj Factor Scoring'!$E$3:$AH$3,0)-1),MATCH(G$2&\" Score\",'C. PoC Adj Factor Scoring'!$E$4:$J$4,0),TRUE)","v":4},{"$f":"VLOOKUP(OFFSET($B:$B,,MATCH(H$4,$B$4:$F$4,0)-1),OFFSET('C. PoC Adj Factor Scoring'!$E$5:$J$282,,MATCH(H$4,'C. PoC Adj Factor Scoring'!$E$3:$AH$3,0)-1),MATCH(H$2&\" Score\",'C. PoC Adj Factor Scoring'!$E$4:$J$4,0),TRUE)","v":1},{"$f":"VLOOKUP(OFFSET($B:$B,,MATCH(I$4,$B$4:$F$4,0)-1),OFFSET('C. PoC Adj Factor Scoring'!$E$5:$J$282,,MATCH(I$4,'C. PoC Adj Factor Scoring'!$E$3:$AH$3,0)-1),MATCH(I$2&\" Score\",'C. PoC Adj Factor Scoring'!$E$4:$J$4,0),TRUE)","v":1},{"$f":"VLOOKUP(OFFSET($B:$B,,MATCH(J$4,$B$4:$F$4,0)-1),OFFSET('C. PoC Adj Factor Scoring'!$E$5:$J$282,,MATCH(J$4,'C. PoC Adj Factor Scoring'!$E$3:$AH$3,0)-1),MATCH(J$2&\" Score\",'C. PoC Adj Factor Scoring'!$E$4:$J$4,0),TRUE)","v":1},{"$f":"VLOOKUP(OFFSET($B:$B,,MATCH(K$4,$B$4:$F$4,0)-1),OFFSET('C. PoC Adj Factor Scoring'!$E$5:$J$282,,MATCH(K$4,'C. PoC Adj Factor Scoring'!$E$3:$AH$3,0)-1),MATCH(K$2&\" Score\",'C. PoC Adj Factor Scoring'!$E$4:$J$4,0),TRUE)","v":1},{"$f":"VLOOKUP(OFFSET($B:$B,,MATCH(L$4,$B$4:$F$4,0)-1),OFFSET('C. PoC Adj Factor Scoring'!$E$5:$J$282,,MATCH(L$4,'C. PoC Adj Factor Scoring'!$E$3:$AH$3,0)-1),MATCH(L$2&\" Score\",'C. PoC Adj Factor Scoring'!$E$4:$J$4,0),TRUE)","v":1},{"$f":"VLOOKUP(OFFSET($B:$B,,MATCH(M$4,$B$4:$F$4,0)-1),OFFSET('C. PoC Adj Factor Scoring'!$E$5:$J$282,,MATCH(M$4,'C. PoC Adj Factor Scoring'!$E$3:$AH$3,0)-1),MATCH(M$2&\" Score\",'C. PoC Adj Factor Scoring'!$E$4:$J$4,0),TRUE)","v":1},{"$f":"VLOOKUP(OFFSET($B:$B,,MATCH(N$4,$B$4:$F$4,0)-1),OFFSET('C. PoC Adj Factor Scoring'!$E$5:$J$282,,MATCH(N$4,'C. PoC Adj Factor Scoring'!$E$3:$AH$3,0)-1),MATCH(N$2&\" Score\",'C. PoC Adj Factor Scoring'!$E$4:$J$4,0),TRUE)","v":1},{"$f":"VLOOKUP(OFFSET($B:$B,,MATCH(O$4,$B$4:$F$4,0)-1),OFFSET('C. PoC Adj Factor Scoring'!$E$5:$J$282,,MATCH(O$4,'C. PoC Adj Factor Scoring'!$E$3:$AH$3,0)-1),MATCH(O$2&\" Score\",'C. PoC Adj Factor Scoring'!$E$4:$J$4,0),TRUE)","v":1},{"$f":"VLOOKUP(OFFSET($B:$B,,MATCH(P$4,$B$4:$F$4,0)-1),OFFSET('C. PoC Adj Factor Scoring'!$E$5:$J$282,,MATCH(P$4,'C. PoC Adj Factor Scoring'!$E$3:$AH$3,0)-1),MATCH(P$2&\" Score\",'C. PoC Adj Factor Scoring'!$E$4:$J$4,0),TRUE)","v":1},{"$f":"VLOOKUP(OFFSET($B:$B,,MATCH(Q$4,$B$4:$F$4,0)-1),OFFSET('C. PoC Adj Factor Scoring'!$E$5:$J$282,,MATCH(Q$4,'C. PoC Adj Factor Scoring'!$E$3:$AH$3,0)-1),MATCH(Q$2&\" Score\",'C. PoC Adj Factor Scoring'!$E$4:$J$4,0),TRUE)","v":1},{"$f":"VLOOKUP(OFFSET($B:$B,,MATCH(R$4,$B$4:$F$4,0)-1),OFFSET('C. PoC Adj Factor Scoring'!$E$5:$J$282,,MATCH(R$4,'C. PoC Adj Factor Scoring'!$E$3:$AH$3,0)-1),MATCH(R$2&\" Score\",'C. PoC Adj Factor Scoring'!$E$4:$J$4,0),TRUE)","v":1},{"$f":"VLOOKUP(OFFSET($B:$B,,MATCH(S$4,$B$4:$F$4,0)-1),OFFSET('C. PoC Adj Factor Scoring'!$E$5:$J$282,,MATCH(S$4,'C. PoC Adj Factor Scoring'!$E$3:$AH$3,0)-1),MATCH(S$2&\" Score\",'C. PoC Adj Factor Scoring'!$E$4:$J$4,0),TRUE)","v":1},{"$f":"VLOOKUP(OFFSET($B:$B,,MATCH(T$4,$B$4:$F$4,0)-1),OFFSET('C. PoC Adj Factor Scoring'!$E$5:$J$282,,MATCH(T$4,'C. PoC Adj Factor Scoring'!$E$3:$AH$3,0)-1),MATCH(T$2&\" Score\",'C. PoC Adj Factor Scoring'!$E$4:$J$4,0),TRUE)","v":1},{"$f":"VLOOKUP(OFFSET($B:$B,,MATCH(U$4,$B$4:$F$4,0)-1),OFFSET('C. PoC Adj Factor Scoring'!$E$5:$J$282,,MATCH(U$4,'C. PoC Adj Factor Scoring'!$E$3:$AH$3,0)-1),MATCH(U$2&\" Score\",'C. PoC Adj Factor Scoring'!$E$4:$J$4,0),TRUE)","v":1},{"$f":"VLOOKUP(OFFSET($B:$B,,MATCH(V$4,$B$4:$F$4,0)-1),OFFSET('C. PoC Adj Factor Scoring'!$E$5:$J$282,,MATCH(V$4,'C. PoC Adj Factor Scoring'!$E$3:$AH$3,0)-1),MATCH(V$2&\" Score\",'C. PoC Adj Factor Scoring'!$E$4:$J$4,0),TRUE)","v":1},{"$f":"VLOOKUP(OFFSET($B:$B,,MATCH(W$4,$B$4:$F$4,0)-1),OFFSET('C. PoC Adj Factor Scoring'!$E$5:$J$282,,MATCH(W$4,'C. PoC Adj Factor Scoring'!$E$3:$AH$3,0)-1),MATCH(W$2&\" Score\",'C. PoC Adj Factor Scoring'!$E$4:$J$4,0),TRUE)","v":1},{"$f":"VLOOKUP(OFFSET($B:$B,,MATCH(X$4,$B$4:$F$4,0)-1),OFFSET('C. PoC Adj Factor Scoring'!$E$5:$J$282,,MATCH(X$4,'C. PoC Adj Factor Scoring'!$E$3:$AH$3,0)-1),MATCH(X$2&\" Score\",'C. PoC Adj Factor Scoring'!$E$4:$J$4,0),TRUE)","v":1},{"$f":"VLOOKUP(OFFSET($B:$B,,MATCH(Y$4,$B$4:$F$4,0)-1),OFFSET('C. PoC Adj Factor Scoring'!$E$5:$J$282,,MATCH(Y$4,'C. PoC Adj Factor Scoring'!$E$3:$AH$3,0)-1),MATCH(Y$2&\" Score\",'C. PoC Adj Factor Scoring'!$E$4:$J$4,0),TRUE)","v":1},{"$f":"VLOOKUP(OFFSET($B:$B,,MATCH(Z$4,$B$4:$F$4,0)-1),OFFSET('C. PoC Adj Factor Scoring'!$E$5:$J$282,,MATCH(Z$4,'C. PoC Adj Factor Scoring'!$E$3:$AH$3,0)-1),MATCH(Z$2&\" Score\",'C. PoC Adj Factor Scoring'!$E$4:$J$4,0),TRUE)","v":1},{"$f":"VLOOKUP(OFFSET($B:$B,,MATCH(AA$4,$B$4:$F$4,0)-1),OFFSET('C. PoC Adj Factor Scoring'!$E$5:$J$282,,MATCH(AA$4,'C. PoC Adj Factor Scoring'!$E$3:$AH$3,0)-1),MATCH(AA$2&\" Score\",'C. PoC Adj Factor Scoring'!$E$4:$J$4,0),TRUE)","v":3},{"$f":"VLOOKUP(OFFSET($B:$B,,MATCH(AB$4,$B$4:$F$4,0)-1),OFFSET('C. PoC Adj Factor Scoring'!$E$5:$J$282,,MATCH(AB$4,'C. PoC Adj Factor Scoring'!$E$3:$AH$3,0)-1),MATCH(AB$2&\" Score\",'C. PoC Adj Factor Scoring'!$E$4:$J$4,0),TRUE)","v":1},{"$f":"VLOOKUP(OFFSET($B:$B,,MATCH(AC$4,$B$4:$F$4,0)-1),OFFSET('C. PoC Adj Factor Scoring'!$E$5:$J$282,,MATCH(AC$4,'C. PoC Adj Factor Scoring'!$E$3:$AH$3,0)-1),MATCH(AC$2&\" Score\",'C. PoC Adj Factor Scoring'!$E$4:$J$4,0),TRUE)","v":1},{"$f":"VLOOKUP(OFFSET($B:$B,,MATCH(AD$4,$B$4:$F$4,0)-1),OFFSET('C. PoC Adj Factor Scoring'!$E$5:$J$282,,MATCH(AD$4,'C. PoC Adj Factor Scoring'!$E$3:$AH$3,0)-1),MATCH(AD$2&\" Score\",'C. PoC Adj Factor Scoring'!$E$4:$J$4,0),TRUE)","v":1},{"$f":"VLOOKUP(OFFSET($B:$B,,MATCH(AE$4,$B$4:$F$4,0)-1),OFFSET('C. PoC Adj Factor Scoring'!$E$5:$J$282,,MATCH(AE$4,'C. PoC Adj Factor Scoring'!$E$3:$AH$3,0)-1),MATCH(AE$2&\" Score\",'C. PoC Adj Factor Scoring'!$E$4:$J$4,0),TRUE)","v":1}]
[{"$f":"'A. Population Info'!A174","v":1000349494},{"$f":"'A. Population Info'!L174","v":"OIL"},{"$f":"'A. Population Info'!M174","v":0},{"$f":"'A. Population Info'!N174","v":0},{"$f":"'A. Population Info'!O174","v":0},{"$f":"'A. Population Info'!P174","v":0},{"$f":"VLOOKUP(OFFSET($B:$B,,MATCH(G$4,$B$4:$F$4,0)-1),OFFSET('C. PoC Adj Factor Scoring'!$E$5:$J$282,,MATCH(G$4,'C. PoC Adj Factor Scoring'!$E$3:$AH$3,0)-1),MATCH(G$2&\" Score\",'C. PoC Adj Factor Scoring'!$E$4:$J$4,0),TRUE)","v":4},{"$f":"VLOOKUP(OFFSET($B:$B,,MATCH(H$4,$B$4:$F$4,0)-1),OFFSET('C. PoC Adj Factor Scoring'!$E$5:$J$282,,MATCH(H$4,'C. PoC Adj Factor Scoring'!$E$3:$AH$3,0)-1),MATCH(H$2&\" Score\",'C. PoC Adj Factor Scoring'!$E$4:$J$4,0),TRUE)","v":1},{"$f":"VLOOKUP(OFFSET($B:$B,,MATCH(I$4,$B$4:$F$4,0)-1),OFFSET('C. PoC Adj Factor Scoring'!$E$5:$J$282,,MATCH(I$4,'C. PoC Adj Factor Scoring'!$E$3:$AH$3,0)-1),MATCH(I$2&\" Score\",'C. PoC Adj Factor Scoring'!$E$4:$J$4,0),TRUE)","v":1},{"$f":"VLOOKUP(OFFSET($B:$B,,MATCH(J$4,$B$4:$F$4,0)-1),OFFSET('C. PoC Adj Factor Scoring'!$E$5:$J$282,,MATCH(J$4,'C. PoC Adj Factor Scoring'!$E$3:$AH$3,0)-1),MATCH(J$2&\" Score\",'C. PoC Adj Factor Scoring'!$E$4:$J$4,0),TRUE)","v":1},{"$f":"VLOOKUP(OFFSET($B:$B,,MATCH(K$4,$B$4:$F$4,0)-1),OFFSET('C. PoC Adj Factor Scoring'!$E$5:$J$282,,MATCH(K$4,'C. PoC Adj Factor Scoring'!$E$3:$AH$3,0)-1),MATCH(K$2&\" Score\",'C. PoC Adj Factor Scoring'!$E$4:$J$4,0),TRUE)","v":1},{"$f":"VLOOKUP(OFFSET($B:$B,,MATCH(L$4,$B$4:$F$4,0)-1),OFFSET('C. PoC Adj Factor Scoring'!$E$5:$J$282,,MATCH(L$4,'C. PoC Adj Factor Scoring'!$E$3:$AH$3,0)-1),MATCH(L$2&\" Score\",'C. PoC Adj Factor Scoring'!$E$4:$J$4,0),TRUE)","v":1},{"$f":"VLOOKUP(OFFSET($B:$B,,MATCH(M$4,$B$4:$F$4,0)-1),OFFSET('C. PoC Adj Factor Scoring'!$E$5:$J$282,,MATCH(M$4,'C. PoC Adj Factor Scoring'!$E$3:$AH$3,0)-1),MATCH(M$2&\" Score\",'C. PoC Adj Factor Scoring'!$E$4:$J$4,0),TRUE)","v":1},{"$f":"VLOOKUP(OFFSET($B:$B,,MATCH(N$4,$B$4:$F$4,0)-1),OFFSET('C. PoC Adj Factor Scoring'!$E$5:$J$282,,MATCH(N$4,'C. PoC Adj Factor Scoring'!$E$3:$AH$3,0)-1),MATCH(N$2&\" Score\",'C. PoC Adj Factor Scoring'!$E$4:$J$4,0),TRUE)","v":1},{"$f":"VLOOKUP(OFFSET($B:$B,,MATCH(O$4,$B$4:$F$4,0)-1),OFFSET('C. PoC Adj Factor Scoring'!$E$5:$J$282,,MATCH(O$4,'C. PoC Adj Factor Scoring'!$E$3:$AH$3,0)-1),MATCH(O$2&\" Score\",'C. PoC Adj Factor Scoring'!$E$4:$J$4,0),TRUE)","v":1},{"$f":"VLOOKUP(OFFSET($B:$B,,MATCH(P$4,$B$4:$F$4,0)-1),OFFSET('C. PoC Adj Factor Scoring'!$E$5:$J$282,,MATCH(P$4,'C. PoC Adj Factor Scoring'!$E$3:$AH$3,0)-1),MATCH(P$2&\" Score\",'C. PoC Adj Factor Scoring'!$E$4:$J$4,0),TRUE)","v":1},{"$f":"VLOOKUP(OFFSET($B:$B,,MATCH(Q$4,$B$4:$F$4,0)-1),OFFSET('C. PoC Adj Factor Scoring'!$E$5:$J$282,,MATCH(Q$4,'C. PoC Adj Factor Scoring'!$E$3:$AH$3,0)-1),MATCH(Q$2&\" Score\",'C. PoC Adj Factor Scoring'!$E$4:$J$4,0),TRUE)","v":1},{"$f":"VLOOKUP(OFFSET($B:$B,,MATCH(R$4,$B$4:$F$4,0)-1),OFFSET('C. PoC Adj Factor Scoring'!$E$5:$J$282,,MATCH(R$4,'C. PoC Adj Factor Scoring'!$E$3:$AH$3,0)-1),MATCH(R$2&\" Score\",'C. PoC Adj Factor Scoring'!$E$4:$J$4,0),TRUE)","v":1},{"$f":"VLOOKUP(OFFSET($B:$B,,MATCH(S$4,$B$4:$F$4,0)-1),OFFSET('C. PoC Adj Factor Scoring'!$E$5:$J$282,,MATCH(S$4,'C. PoC Adj Factor Scoring'!$E$3:$AH$3,0)-1),MATCH(S$2&\" Score\",'C. PoC Adj Factor Scoring'!$E$4:$J$4,0),TRUE)","v":1},{"$f":"VLOOKUP(OFFSET($B:$B,,MATCH(T$4,$B$4:$F$4,0)-1),OFFSET('C. PoC Adj Factor Scoring'!$E$5:$J$282,,MATCH(T$4,'C. PoC Adj Factor Scoring'!$E$3:$AH$3,0)-1),MATCH(T$2&\" Score\",'C. PoC Adj Factor Scoring'!$E$4:$J$4,0),TRUE)","v":1},{"$f":"VLOOKUP(OFFSET($B:$B,,MATCH(U$4,$B$4:$F$4,0)-1),OFFSET('C. PoC Adj Factor Scoring'!$E$5:$J$282,,MATCH(U$4,'C. PoC Adj Factor Scoring'!$E$3:$AH$3,0)-1),MATCH(U$2&\" Score\",'C. PoC Adj Factor Scoring'!$E$4:$J$4,0),TRUE)","v":1},{"$f":"VLOOKUP(OFFSET($B:$B,,MATCH(V$4,$B$4:$F$4,0)-1),OFFSET('C. PoC Adj Factor Scoring'!$E$5:$J$282,,MATCH(V$4,'C. PoC Adj Factor Scoring'!$E$3:$AH$3,0)-1),MATCH(V$2&\" Score\",'C. PoC Adj Factor Scoring'!$E$4:$J$4,0),TRUE)","v":1},{"$f":"VLOOKUP(OFFSET($B:$B,,MATCH(W$4,$B$4:$F$4,0)-1),OFFSET('C. PoC Adj Factor Scoring'!$E$5:$J$282,,MATCH(W$4,'C. PoC Adj Factor Scoring'!$E$3:$AH$3,0)-1),MATCH(W$2&\" Score\",'C. PoC Adj Factor Scoring'!$E$4:$J$4,0),TRUE)","v":1},{"$f":"VLOOKUP(OFFSET($B:$B,,MATCH(X$4,$B$4:$F$4,0)-1),OFFSET('C. PoC Adj Factor Scoring'!$E$5:$J$282,,MATCH(X$4,'C. PoC Adj Factor Scoring'!$E$3:$AH$3,0)-1),MATCH(X$2&\" Score\",'C. PoC Adj Factor Scoring'!$E$4:$J$4,0),TRUE)","v":1},{"$f":"VLOOKUP(OFFSET($B:$B,,MATCH(Y$4,$B$4:$F$4,0)-1),OFFSET('C. PoC Adj Factor Scoring'!$E$5:$J$282,,MATCH(Y$4,'C. PoC Adj Factor Scoring'!$E$3:$AH$3,0)-1),MATCH(Y$2&\" Score\",'C. PoC Adj Factor Scoring'!$E$4:$J$4,0),TRUE)","v":1},{"$f":"VLOOKUP(OFFSET($B:$B,,MATCH(Z$4,$B$4:$F$4,0)-1),OFFSET('C. PoC Adj Factor Scoring'!$E$5:$J$282,,MATCH(Z$4,'C. PoC Adj Factor Scoring'!$E$3:$AH$3,0)-1),MATCH(Z$2&\" Score\",'C. PoC Adj Factor Scoring'!$E$4:$J$4,0),TRUE)","v":1},{"$f":"VLOOKUP(OFFSET($B:$B,,MATCH(AA$4,$B$4:$F$4,0)-1),OFFSET('C. PoC Adj Factor Scoring'!$E$5:$J$282,,MATCH(AA$4,'C. PoC Adj Factor Scoring'!$E$3:$AH$3,0)-1),MATCH(AA$2&\" Score\",'C. PoC Adj Factor Scoring'!$E$4:$J$4,0),TRUE)","v":3},{"$f":"VLOOKUP(OFFSET($B:$B,,MATCH(AB$4,$B$4:$F$4,0)-1),OFFSET('C. PoC Adj Factor Scoring'!$E$5:$J$282,,MATCH(AB$4,'C. PoC Adj Factor Scoring'!$E$3:$AH$3,0)-1),MATCH(AB$2&\" Score\",'C. PoC Adj Factor Scoring'!$E$4:$J$4,0),TRUE)","v":1},{"$f":"VLOOKUP(OFFSET($B:$B,,MATCH(AC$4,$B$4:$F$4,0)-1),OFFSET('C. PoC Adj Factor Scoring'!$E$5:$J$282,,MATCH(AC$4,'C. PoC Adj Factor Scoring'!$E$3:$AH$3,0)-1),MATCH(AC$2&\" Score\",'C. PoC Adj Factor Scoring'!$E$4:$J$4,0),TRUE)","v":1},{"$f":"VLOOKUP(OFFSET($B:$B,,MATCH(AD$4,$B$4:$F$4,0)-1),OFFSET('C. PoC Adj Factor Scoring'!$E$5:$J$282,,MATCH(AD$4,'C. PoC Adj Factor Scoring'!$E$3:$AH$3,0)-1),MATCH(AD$2&\" Score\",'C. PoC Adj Factor Scoring'!$E$4:$J$4,0),TRUE)","v":1},{"$f":"VLOOKUP(OFFSET($B:$B,,MATCH(AE$4,$B$4:$F$4,0)-1),OFFSET('C. PoC Adj Factor Scoring'!$E$5:$J$282,,MATCH(AE$4,'C. PoC Adj Factor Scoring'!$E$3:$AH$3,0)-1),MATCH(AE$2&\" Score\",'C. PoC Adj Factor Scoring'!$E$4:$J$4,0),TRUE)","v":1}]
[{"$f":"'A. Population Info'!A175","v":1000349615},{"$f":"'A. Population Info'!L175","v":"OIL"},{"$f":"'A. Population Info'!M175","v":0},{"$f":"'A. Population Info'!N175","v":0},{"$f":"'A. Population Info'!O175","v":0},{"$f":"'A. Population Info'!P175","v":0},{"$f":"VLOOKUP(OFFSET($B:$B,,MATCH(G$4,$B$4:$F$4,0)-1),OFFSET('C. PoC Adj Factor Scoring'!$E$5:$J$282,,MATCH(G$4,'C. PoC Adj Factor Scoring'!$E$3:$AH$3,0)-1),MATCH(G$2&\" Score\",'C. PoC Adj Factor Scoring'!$E$4:$J$4,0),TRUE)","v":4},{"$f":"VLOOKUP(OFFSET($B:$B,,MATCH(H$4,$B$4:$F$4,0)-1),OFFSET('C. PoC Adj Factor Scoring'!$E$5:$J$282,,MATCH(H$4,'C. PoC Adj Factor Scoring'!$E$3:$AH$3,0)-1),MATCH(H$2&\" Score\",'C. PoC Adj Factor Scoring'!$E$4:$J$4,0),TRUE)","v":1},{"$f":"VLOOKUP(OFFSET($B:$B,,MATCH(I$4,$B$4:$F$4,0)-1),OFFSET('C. PoC Adj Factor Scoring'!$E$5:$J$282,,MATCH(I$4,'C. PoC Adj Factor Scoring'!$E$3:$AH$3,0)-1),MATCH(I$2&\" Score\",'C. PoC Adj Factor Scoring'!$E$4:$J$4,0),TRUE)","v":1},{"$f":"VLOOKUP(OFFSET($B:$B,,MATCH(J$4,$B$4:$F$4,0)-1),OFFSET('C. PoC Adj Factor Scoring'!$E$5:$J$282,,MATCH(J$4,'C. PoC Adj Factor Scoring'!$E$3:$AH$3,0)-1),MATCH(J$2&\" Score\",'C. PoC Adj Factor Scoring'!$E$4:$J$4,0),TRUE)","v":1},{"$f":"VLOOKUP(OFFSET($B:$B,,MATCH(K$4,$B$4:$F$4,0)-1),OFFSET('C. PoC Adj Factor Scoring'!$E$5:$J$282,,MATCH(K$4,'C. PoC Adj Factor Scoring'!$E$3:$AH$3,0)-1),MATCH(K$2&\" Score\",'C. PoC Adj Factor Scoring'!$E$4:$J$4,0),TRUE)","v":1},{"$f":"VLOOKUP(OFFSET($B:$B,,MATCH(L$4,$B$4:$F$4,0)-1),OFFSET('C. PoC Adj Factor Scoring'!$E$5:$J$282,,MATCH(L$4,'C. PoC Adj Factor Scoring'!$E$3:$AH$3,0)-1),MATCH(L$2&\" Score\",'C. PoC Adj Factor Scoring'!$E$4:$J$4,0),TRUE)","v":1},{"$f":"VLOOKUP(OFFSET($B:$B,,MATCH(M$4,$B$4:$F$4,0)-1),OFFSET('C. PoC Adj Factor Scoring'!$E$5:$J$282,,MATCH(M$4,'C. PoC Adj Factor Scoring'!$E$3:$AH$3,0)-1),MATCH(M$2&\" Score\",'C. PoC Adj Factor Scoring'!$E$4:$J$4,0),TRUE)","v":1},{"$f":"VLOOKUP(OFFSET($B:$B,,MATCH(N$4,$B$4:$F$4,0)-1),OFFSET('C. PoC Adj Factor Scoring'!$E$5:$J$282,,MATCH(N$4,'C. PoC Adj Factor Scoring'!$E$3:$AH$3,0)-1),MATCH(N$2&\" Score\",'C. PoC Adj Factor Scoring'!$E$4:$J$4,0),TRUE)","v":1},{"$f":"VLOOKUP(OFFSET($B:$B,,MATCH(O$4,$B$4:$F$4,0)-1),OFFSET('C. PoC Adj Factor Scoring'!$E$5:$J$282,,MATCH(O$4,'C. PoC Adj Factor Scoring'!$E$3:$AH$3,0)-1),MATCH(O$2&\" Score\",'C. PoC Adj Factor Scoring'!$E$4:$J$4,0),TRUE)","v":1},{"$f":"VLOOKUP(OFFSET($B:$B,,MATCH(P$4,$B$4:$F$4,0)-1),OFFSET('C. PoC Adj Factor Scoring'!$E$5:$J$282,,MATCH(P$4,'C. PoC Adj Factor Scoring'!$E$3:$AH$3,0)-1),MATCH(P$2&\" Score\",'C. PoC Adj Factor Scoring'!$E$4:$J$4,0),TRUE)","v":1},{"$f":"VLOOKUP(OFFSET($B:$B,,MATCH(Q$4,$B$4:$F$4,0)-1),OFFSET('C. PoC Adj Factor Scoring'!$E$5:$J$282,,MATCH(Q$4,'C. PoC Adj Factor Scoring'!$E$3:$AH$3,0)-1),MATCH(Q$2&\" Score\",'C. PoC Adj Factor Scoring'!$E$4:$J$4,0),TRUE)","v":1},{"$f":"VLOOKUP(OFFSET($B:$B,,MATCH(R$4,$B$4:$F$4,0)-1),OFFSET('C. PoC Adj Factor Scoring'!$E$5:$J$282,,MATCH(R$4,'C. PoC Adj Factor Scoring'!$E$3:$AH$3,0)-1),MATCH(R$2&\" Score\",'C. PoC Adj Factor Scoring'!$E$4:$J$4,0),TRUE)","v":1},{"$f":"VLOOKUP(OFFSET($B:$B,,MATCH(S$4,$B$4:$F$4,0)-1),OFFSET('C. PoC Adj Factor Scoring'!$E$5:$J$282,,MATCH(S$4,'C. PoC Adj Factor Scoring'!$E$3:$AH$3,0)-1),MATCH(S$2&\" Score\",'C. PoC Adj Factor Scoring'!$E$4:$J$4,0),TRUE)","v":1},{"$f":"VLOOKUP(OFFSET($B:$B,,MATCH(T$4,$B$4:$F$4,0)-1),OFFSET('C. PoC Adj Factor Scoring'!$E$5:$J$282,,MATCH(T$4,'C. PoC Adj Factor Scoring'!$E$3:$AH$3,0)-1),MATCH(T$2&\" Score\",'C. PoC Adj Factor Scoring'!$E$4:$J$4,0),TRUE)","v":1},{"$f":"VLOOKUP(OFFSET($B:$B,,MATCH(U$4,$B$4:$F$4,0)-1),OFFSET('C. PoC Adj Factor Scoring'!$E$5:$J$282,,MATCH(U$4,'C. PoC Adj Factor Scoring'!$E$3:$AH$3,0)-1),MATCH(U$2&\" Score\",'C. PoC Adj Factor Scoring'!$E$4:$J$4,0),TRUE)","v":1},{"$f":"VLOOKUP(OFFSET($B:$B,,MATCH(V$4,$B$4:$F$4,0)-1),OFFSET('C. PoC Adj Factor Scoring'!$E$5:$J$282,,MATCH(V$4,'C. PoC Adj Factor Scoring'!$E$3:$AH$3,0)-1),MATCH(V$2&\" Score\",'C. PoC Adj Factor Scoring'!$E$4:$J$4,0),TRUE)","v":1},{"$f":"VLOOKUP(OFFSET($B:$B,,MATCH(W$4,$B$4:$F$4,0)-1),OFFSET('C. PoC Adj Factor Scoring'!$E$5:$J$282,,MATCH(W$4,'C. PoC Adj Factor Scoring'!$E$3:$AH$3,0)-1),MATCH(W$2&\" Score\",'C. PoC Adj Factor Scoring'!$E$4:$J$4,0),TRUE)","v":1},{"$f":"VLOOKUP(OFFSET($B:$B,,MATCH(X$4,$B$4:$F$4,0)-1),OFFSET('C. PoC Adj Factor Scoring'!$E$5:$J$282,,MATCH(X$4,'C. PoC Adj Factor Scoring'!$E$3:$AH$3,0)-1),MATCH(X$2&\" Score\",'C. PoC Adj Factor Scoring'!$E$4:$J$4,0),TRUE)","v":1},{"$f":"VLOOKUP(OFFSET($B:$B,,MATCH(Y$4,$B$4:$F$4,0)-1),OFFSET('C. PoC Adj Factor Scoring'!$E$5:$J$282,,MATCH(Y$4,'C. PoC Adj Factor Scoring'!$E$3:$AH$3,0)-1),MATCH(Y$2&\" Score\",'C. PoC Adj Factor Scoring'!$E$4:$J$4,0),TRUE)","v":1},{"$f":"VLOOKUP(OFFSET($B:$B,,MATCH(Z$4,$B$4:$F$4,0)-1),OFFSET('C. PoC Adj Factor Scoring'!$E$5:$J$282,,MATCH(Z$4,'C. PoC Adj Factor Scoring'!$E$3:$AH$3,0)-1),MATCH(Z$2&\" Score\",'C. PoC Adj Factor Scoring'!$E$4:$J$4,0),TRUE)","v":1},{"$f":"VLOOKUP(OFFSET($B:$B,,MATCH(AA$4,$B$4:$F$4,0)-1),OFFSET('C. PoC Adj Factor Scoring'!$E$5:$J$282,,MATCH(AA$4,'C. PoC Adj Factor Scoring'!$E$3:$AH$3,0)-1),MATCH(AA$2&\" Score\",'C. PoC Adj Factor Scoring'!$E$4:$J$4,0),TRUE)","v":3},{"$f":"VLOOKUP(OFFSET($B:$B,,MATCH(AB$4,$B$4:$F$4,0)-1),OFFSET('C. PoC Adj Factor Scoring'!$E$5:$J$282,,MATCH(AB$4,'C. PoC Adj Factor Scoring'!$E$3:$AH$3,0)-1),MATCH(AB$2&\" Score\",'C. PoC Adj Factor Scoring'!$E$4:$J$4,0),TRUE)","v":1},{"$f":"VLOOKUP(OFFSET($B:$B,,MATCH(AC$4,$B$4:$F$4,0)-1),OFFSET('C. PoC Adj Factor Scoring'!$E$5:$J$282,,MATCH(AC$4,'C. PoC Adj Factor Scoring'!$E$3:$AH$3,0)-1),MATCH(AC$2&\" Score\",'C. PoC Adj Factor Scoring'!$E$4:$J$4,0),TRUE)","v":1},{"$f":"VLOOKUP(OFFSET($B:$B,,MATCH(AD$4,$B$4:$F$4,0)-1),OFFSET('C. PoC Adj Factor Scoring'!$E$5:$J$282,,MATCH(AD$4,'C. PoC Adj Factor Scoring'!$E$3:$AH$3,0)-1),MATCH(AD$2&\" Score\",'C. PoC Adj Factor Scoring'!$E$4:$J$4,0),TRUE)","v":1},{"$f":"VLOOKUP(OFFSET($B:$B,,MATCH(AE$4,$B$4:$F$4,0)-1),OFFSET('C. PoC Adj Factor Scoring'!$E$5:$J$282,,MATCH(AE$4,'C. PoC Adj Factor Scoring'!$E$3:$AH$3,0)-1),MATCH(AE$2&\" Score\",'C. PoC Adj Factor Scoring'!$E$4:$J$4,0),TRUE)","v":1}]
[{"$f":"'A. Population Info'!A176","v":1000349645},{"$f":"'A. Population Info'!L176","v":"OIL"},{"$f":"'A. Population Info'!M176","v":0},{"$f":"'A. Population Info'!N176","v":0},{"$f":"'A. Population Info'!O176","v":0},{"$f":"'A. Population Info'!P176","v":0},{"$f":"VLOOKUP(OFFSET($B:$B,,MATCH(G$4,$B$4:$F$4,0)-1),OFFSET('C. PoC Adj Factor Scoring'!$E$5:$J$282,,MATCH(G$4,'C. PoC Adj Factor Scoring'!$E$3:$AH$3,0)-1),MATCH(G$2&\" Score\",'C. PoC Adj Factor Scoring'!$E$4:$J$4,0),TRUE)","v":4},{"$f":"VLOOKUP(OFFSET($B:$B,,MATCH(H$4,$B$4:$F$4,0)-1),OFFSET('C. PoC Adj Factor Scoring'!$E$5:$J$282,,MATCH(H$4,'C. PoC Adj Factor Scoring'!$E$3:$AH$3,0)-1),MATCH(H$2&\" Score\",'C. PoC Adj Factor Scoring'!$E$4:$J$4,0),TRUE)","v":1},{"$f":"VLOOKUP(OFFSET($B:$B,,MATCH(I$4,$B$4:$F$4,0)-1),OFFSET('C. PoC Adj Factor Scoring'!$E$5:$J$282,,MATCH(I$4,'C. PoC Adj Factor Scoring'!$E$3:$AH$3,0)-1),MATCH(I$2&\" Score\",'C. PoC Adj Factor Scoring'!$E$4:$J$4,0),TRUE)","v":1},{"$f":"VLOOKUP(OFFSET($B:$B,,MATCH(J$4,$B$4:$F$4,0)-1),OFFSET('C. PoC Adj Factor Scoring'!$E$5:$J$282,,MATCH(J$4,'C. PoC Adj Factor Scoring'!$E$3:$AH$3,0)-1),MATCH(J$2&\" Score\",'C. PoC Adj Factor Scoring'!$E$4:$J$4,0),TRUE)","v":1},{"$f":"VLOOKUP(OFFSET($B:$B,,MATCH(K$4,$B$4:$F$4,0)-1),OFFSET('C. PoC Adj Factor Scoring'!$E$5:$J$282,,MATCH(K$4,'C. PoC Adj Factor Scoring'!$E$3:$AH$3,0)-1),MATCH(K$2&\" Score\",'C. PoC Adj Factor Scoring'!$E$4:$J$4,0),TRUE)","v":1},{"$f":"VLOOKUP(OFFSET($B:$B,,MATCH(L$4,$B$4:$F$4,0)-1),OFFSET('C. PoC Adj Factor Scoring'!$E$5:$J$282,,MATCH(L$4,'C. PoC Adj Factor Scoring'!$E$3:$AH$3,0)-1),MATCH(L$2&\" Score\",'C. PoC Adj Factor Scoring'!$E$4:$J$4,0),TRUE)","v":1},{"$f":"VLOOKUP(OFFSET($B:$B,,MATCH(M$4,$B$4:$F$4,0)-1),OFFSET('C. PoC Adj Factor Scoring'!$E$5:$J$282,,MATCH(M$4,'C. PoC Adj Factor Scoring'!$E$3:$AH$3,0)-1),MATCH(M$2&\" Score\",'C. PoC Adj Factor Scoring'!$E$4:$J$4,0),TRUE)","v":1},{"$f":"VLOOKUP(OFFSET($B:$B,,MATCH(N$4,$B$4:$F$4,0)-1),OFFSET('C. PoC Adj Factor Scoring'!$E$5:$J$282,,MATCH(N$4,'C. PoC Adj Factor Scoring'!$E$3:$AH$3,0)-1),MATCH(N$2&\" Score\",'C. PoC Adj Factor Scoring'!$E$4:$J$4,0),TRUE)","v":1},{"$f":"VLOOKUP(OFFSET($B:$B,,MATCH(O$4,$B$4:$F$4,0)-1),OFFSET('C. PoC Adj Factor Scoring'!$E$5:$J$282,,MATCH(O$4,'C. PoC Adj Factor Scoring'!$E$3:$AH$3,0)-1),MATCH(O$2&\" Score\",'C. PoC Adj Factor Scoring'!$E$4:$J$4,0),TRUE)","v":1},{"$f":"VLOOKUP(OFFSET($B:$B,,MATCH(P$4,$B$4:$F$4,0)-1),OFFSET('C. PoC Adj Factor Scoring'!$E$5:$J$282,,MATCH(P$4,'C. PoC Adj Factor Scoring'!$E$3:$AH$3,0)-1),MATCH(P$2&\" Score\",'C. PoC Adj Factor Scoring'!$E$4:$J$4,0),TRUE)","v":1},{"$f":"VLOOKUP(OFFSET($B:$B,,MATCH(Q$4,$B$4:$F$4,0)-1),OFFSET('C. PoC Adj Factor Scoring'!$E$5:$J$282,,MATCH(Q$4,'C. PoC Adj Factor Scoring'!$E$3:$AH$3,0)-1),MATCH(Q$2&\" Score\",'C. PoC Adj Factor Scoring'!$E$4:$J$4,0),TRUE)","v":1},{"$f":"VLOOKUP(OFFSET($B:$B,,MATCH(R$4,$B$4:$F$4,0)-1),OFFSET('C. PoC Adj Factor Scoring'!$E$5:$J$282,,MATCH(R$4,'C. PoC Adj Factor Scoring'!$E$3:$AH$3,0)-1),MATCH(R$2&\" Score\",'C. PoC Adj Factor Scoring'!$E$4:$J$4,0),TRUE)","v":1},{"$f":"VLOOKUP(OFFSET($B:$B,,MATCH(S$4,$B$4:$F$4,0)-1),OFFSET('C. PoC Adj Factor Scoring'!$E$5:$J$282,,MATCH(S$4,'C. PoC Adj Factor Scoring'!$E$3:$AH$3,0)-1),MATCH(S$2&\" Score\",'C. PoC Adj Factor Scoring'!$E$4:$J$4,0),TRUE)","v":1},{"$f":"VLOOKUP(OFFSET($B:$B,,MATCH(T$4,$B$4:$F$4,0)-1),OFFSET('C. PoC Adj Factor Scoring'!$E$5:$J$282,,MATCH(T$4,'C. PoC Adj Factor Scoring'!$E$3:$AH$3,0)-1),MATCH(T$2&\" Score\",'C. PoC Adj Factor Scoring'!$E$4:$J$4,0),TRUE)","v":1},{"$f":"VLOOKUP(OFFSET($B:$B,,MATCH(U$4,$B$4:$F$4,0)-1),OFFSET('C. PoC Adj Factor Scoring'!$E$5:$J$282,,MATCH(U$4,'C. PoC Adj Factor Scoring'!$E$3:$AH$3,0)-1),MATCH(U$2&\" Score\",'C. PoC Adj Factor Scoring'!$E$4:$J$4,0),TRUE)","v":1},{"$f":"VLOOKUP(OFFSET($B:$B,,MATCH(V$4,$B$4:$F$4,0)-1),OFFSET('C. PoC Adj Factor Scoring'!$E$5:$J$282,,MATCH(V$4,'C. PoC Adj Factor Scoring'!$E$3:$AH$3,0)-1),MATCH(V$2&\" Score\",'C. PoC Adj Factor Scoring'!$E$4:$J$4,0),TRUE)","v":1},{"$f":"VLOOKUP(OFFSET($B:$B,,MATCH(W$4,$B$4:$F$4,0)-1),OFFSET('C. PoC Adj Factor Scoring'!$E$5:$J$282,,MATCH(W$4,'C. PoC Adj Factor Scoring'!$E$3:$AH$3,0)-1),MATCH(W$2&\" Score\",'C. PoC Adj Factor Scoring'!$E$4:$J$4,0),TRUE)","v":1},{"$f":"VLOOKUP(OFFSET($B:$B,,MATCH(X$4,$B$4:$F$4,0)-1),OFFSET('C. PoC Adj Factor Scoring'!$E$5:$J$282,,MATCH(X$4,'C. PoC Adj Factor Scoring'!$E$3:$AH$3,0)-1),MATCH(X$2&\" Score\",'C. PoC Adj Factor Scoring'!$E$4:$J$4,0),TRUE)","v":1},{"$f":"VLOOKUP(OFFSET($B:$B,,MATCH(Y$4,$B$4:$F$4,0)-1),OFFSET('C. PoC Adj Factor Scoring'!$E$5:$J$282,,MATCH(Y$4,'C. PoC Adj Factor Scoring'!$E$3:$AH$3,0)-1),MATCH(Y$2&\" Score\",'C. PoC Adj Factor Scoring'!$E$4:$J$4,0),TRUE)","v":1},{"$f":"VLOOKUP(OFFSET($B:$B,,MATCH(Z$4,$B$4:$F$4,0)-1),OFFSET('C. PoC Adj Factor Scoring'!$E$5:$J$282,,MATCH(Z$4,'C. PoC Adj Factor Scoring'!$E$3:$AH$3,0)-1),MATCH(Z$2&\" Score\",'C. PoC Adj Factor Scoring'!$E$4:$J$4,0),TRUE)","v":1},{"$f":"VLOOKUP(OFFSET($B:$B,,MATCH(AA$4,$B$4:$F$4,0)-1),OFFSET('C. PoC Adj Factor Scoring'!$E$5:$J$282,,MATCH(AA$4,'C. PoC Adj Factor Scoring'!$E$3:$AH$3,0)-1),MATCH(AA$2&\" Score\",'C. PoC Adj Factor Scoring'!$E$4:$J$4,0),TRUE)","v":3},{"$f":"VLOOKUP(OFFSET($B:$B,,MATCH(AB$4,$B$4:$F$4,0)-1),OFFSET('C. PoC Adj Factor Scoring'!$E$5:$J$282,,MATCH(AB$4,'C. PoC Adj Factor Scoring'!$E$3:$AH$3,0)-1),MATCH(AB$2&\" Score\",'C. PoC Adj Factor Scoring'!$E$4:$J$4,0),TRUE)","v":1},{"$f":"VLOOKUP(OFFSET($B:$B,,MATCH(AC$4,$B$4:$F$4,0)-1),OFFSET('C. PoC Adj Factor Scoring'!$E$5:$J$282,,MATCH(AC$4,'C. PoC Adj Factor Scoring'!$E$3:$AH$3,0)-1),MATCH(AC$2&\" Score\",'C. PoC Adj Factor Scoring'!$E$4:$J$4,0),TRUE)","v":1},{"$f":"VLOOKUP(OFFSET($B:$B,,MATCH(AD$4,$B$4:$F$4,0)-1),OFFSET('C. PoC Adj Factor Scoring'!$E$5:$J$282,,MATCH(AD$4,'C. PoC Adj Factor Scoring'!$E$3:$AH$3,0)-1),MATCH(AD$2&\" Score\",'C. PoC Adj Factor Scoring'!$E$4:$J$4,0),TRUE)","v":1},{"$f":"VLOOKUP(OFFSET($B:$B,,MATCH(AE$4,$B$4:$F$4,0)-1),OFFSET('C. PoC Adj Factor Scoring'!$E$5:$J$282,,MATCH(AE$4,'C. PoC Adj Factor Scoring'!$E$3:$AH$3,0)-1),MATCH(AE$2&\" Score\",'C. PoC Adj Factor Scoring'!$E$4:$J$4,0),TRUE)","v":1}]
[{"$f":"'A. Population Info'!A177","v":1000349674},{"$f":"'A. Population Info'!L177","v":"OIL"},{"$f":"'A. Population Info'!M177","v":0},{"$f":"'A. Population Info'!N177","v":0},{"$f":"'A. Population Info'!O177","v":0},{"$f":"'A. Population Info'!P177","v":0},{"$f":"VLOOKUP(OFFSET($B:$B,,MATCH(G$4,$B$4:$F$4,0)-1),OFFSET('C. PoC Adj Factor Scoring'!$E$5:$J$282,,MATCH(G$4,'C. PoC Adj Factor Scoring'!$E$3:$AH$3,0)-1),MATCH(G$2&\" Score\",'C. PoC Adj Factor Scoring'!$E$4:$J$4,0),TRUE)","v":4},{"$f":"VLOOKUP(OFFSET($B:$B,,MATCH(H$4,$B$4:$F$4,0)-1),OFFSET('C. PoC Adj Factor Scoring'!$E$5:$J$282,,MATCH(H$4,'C. PoC Adj Factor Scoring'!$E$3:$AH$3,0)-1),MATCH(H$2&\" Score\",'C. PoC Adj Factor Scoring'!$E$4:$J$4,0),TRUE)","v":1},{"$f":"VLOOKUP(OFFSET($B:$B,,MATCH(I$4,$B$4:$F$4,0)-1),OFFSET('C. PoC Adj Factor Scoring'!$E$5:$J$282,,MATCH(I$4,'C. PoC Adj Factor Scoring'!$E$3:$AH$3,0)-1),MATCH(I$2&\" Score\",'C. PoC Adj Factor Scoring'!$E$4:$J$4,0),TRUE)","v":1},{"$f":"VLOOKUP(OFFSET($B:$B,,MATCH(J$4,$B$4:$F$4,0)-1),OFFSET('C. PoC Adj Factor Scoring'!$E$5:$J$282,,MATCH(J$4,'C. PoC Adj Factor Scoring'!$E$3:$AH$3,0)-1),MATCH(J$2&\" Score\",'C. PoC Adj Factor Scoring'!$E$4:$J$4,0),TRUE)","v":1},{"$f":"VLOOKUP(OFFSET($B:$B,,MATCH(K$4,$B$4:$F$4,0)-1),OFFSET('C. PoC Adj Factor Scoring'!$E$5:$J$282,,MATCH(K$4,'C. PoC Adj Factor Scoring'!$E$3:$AH$3,0)-1),MATCH(K$2&\" Score\",'C. PoC Adj Factor Scoring'!$E$4:$J$4,0),TRUE)","v":1},{"$f":"VLOOKUP(OFFSET($B:$B,,MATCH(L$4,$B$4:$F$4,0)-1),OFFSET('C. PoC Adj Factor Scoring'!$E$5:$J$282,,MATCH(L$4,'C. PoC Adj Factor Scoring'!$E$3:$AH$3,0)-1),MATCH(L$2&\" Score\",'C. PoC Adj Factor Scoring'!$E$4:$J$4,0),TRUE)","v":1},{"$f":"VLOOKUP(OFFSET($B:$B,,MATCH(M$4,$B$4:$F$4,0)-1),OFFSET('C. PoC Adj Factor Scoring'!$E$5:$J$282,,MATCH(M$4,'C. PoC Adj Factor Scoring'!$E$3:$AH$3,0)-1),MATCH(M$2&\" Score\",'C. PoC Adj Factor Scoring'!$E$4:$J$4,0),TRUE)","v":1},{"$f":"VLOOKUP(OFFSET($B:$B,,MATCH(N$4,$B$4:$F$4,0)-1),OFFSET('C. PoC Adj Factor Scoring'!$E$5:$J$282,,MATCH(N$4,'C. PoC Adj Factor Scoring'!$E$3:$AH$3,0)-1),MATCH(N$2&\" Score\",'C. PoC Adj Factor Scoring'!$E$4:$J$4,0),TRUE)","v":1},{"$f":"VLOOKUP(OFFSET($B:$B,,MATCH(O$4,$B$4:$F$4,0)-1),OFFSET('C. PoC Adj Factor Scoring'!$E$5:$J$282,,MATCH(O$4,'C. PoC Adj Factor Scoring'!$E$3:$AH$3,0)-1),MATCH(O$2&\" Score\",'C. PoC Adj Factor Scoring'!$E$4:$J$4,0),TRUE)","v":1},{"$f":"VLOOKUP(OFFSET($B:$B,,MATCH(P$4,$B$4:$F$4,0)-1),OFFSET('C. PoC Adj Factor Scoring'!$E$5:$J$282,,MATCH(P$4,'C. PoC Adj Factor Scoring'!$E$3:$AH$3,0)-1),MATCH(P$2&\" Score\",'C. PoC Adj Factor Scoring'!$E$4:$J$4,0),TRUE)","v":1},{"$f":"VLOOKUP(OFFSET($B:$B,,MATCH(Q$4,$B$4:$F$4,0)-1),OFFSET('C. PoC Adj Factor Scoring'!$E$5:$J$282,,MATCH(Q$4,'C. PoC Adj Factor Scoring'!$E$3:$AH$3,0)-1),MATCH(Q$2&\" Score\",'C. PoC Adj Factor Scoring'!$E$4:$J$4,0),TRUE)","v":1},{"$f":"VLOOKUP(OFFSET($B:$B,,MATCH(R$4,$B$4:$F$4,0)-1),OFFSET('C. PoC Adj Factor Scoring'!$E$5:$J$282,,MATCH(R$4,'C. PoC Adj Factor Scoring'!$E$3:$AH$3,0)-1),MATCH(R$2&\" Score\",'C. PoC Adj Factor Scoring'!$E$4:$J$4,0),TRUE)","v":1},{"$f":"VLOOKUP(OFFSET($B:$B,,MATCH(S$4,$B$4:$F$4,0)-1),OFFSET('C. PoC Adj Factor Scoring'!$E$5:$J$282,,MATCH(S$4,'C. PoC Adj Factor Scoring'!$E$3:$AH$3,0)-1),MATCH(S$2&\" Score\",'C. PoC Adj Factor Scoring'!$E$4:$J$4,0),TRUE)","v":1},{"$f":"VLOOKUP(OFFSET($B:$B,,MATCH(T$4,$B$4:$F$4,0)-1),OFFSET('C. PoC Adj Factor Scoring'!$E$5:$J$282,,MATCH(T$4,'C. PoC Adj Factor Scoring'!$E$3:$AH$3,0)-1),MATCH(T$2&\" Score\",'C. PoC Adj Factor Scoring'!$E$4:$J$4,0),TRUE)","v":1},{"$f":"VLOOKUP(OFFSET($B:$B,,MATCH(U$4,$B$4:$F$4,0)-1),OFFSET('C. PoC Adj Factor Scoring'!$E$5:$J$282,,MATCH(U$4,'C. PoC Adj Factor Scoring'!$E$3:$AH$3,0)-1),MATCH(U$2&\" Score\",'C. PoC Adj Factor Scoring'!$E$4:$J$4,0),TRUE)","v":1},{"$f":"VLOOKUP(OFFSET($B:$B,,MATCH(V$4,$B$4:$F$4,0)-1),OFFSET('C. PoC Adj Factor Scoring'!$E$5:$J$282,,MATCH(V$4,'C. PoC Adj Factor Scoring'!$E$3:$AH$3,0)-1),MATCH(V$2&\" Score\",'C. PoC Adj Factor Scoring'!$E$4:$J$4,0),TRUE)","v":1},{"$f":"VLOOKUP(OFFSET($B:$B,,MATCH(W$4,$B$4:$F$4,0)-1),OFFSET('C. PoC Adj Factor Scoring'!$E$5:$J$282,,MATCH(W$4,'C. PoC Adj Factor Scoring'!$E$3:$AH$3,0)-1),MATCH(W$2&\" Score\",'C. PoC Adj Factor Scoring'!$E$4:$J$4,0),TRUE)","v":1},{"$f":"VLOOKUP(OFFSET($B:$B,,MATCH(X$4,$B$4:$F$4,0)-1),OFFSET('C. PoC Adj Factor Scoring'!$E$5:$J$282,,MATCH(X$4,'C. PoC Adj Factor Scoring'!$E$3:$AH$3,0)-1),MATCH(X$2&\" Score\",'C. PoC Adj Factor Scoring'!$E$4:$J$4,0),TRUE)","v":1},{"$f":"VLOOKUP(OFFSET($B:$B,,MATCH(Y$4,$B$4:$F$4,0)-1),OFFSET('C. PoC Adj Factor Scoring'!$E$5:$J$282,,MATCH(Y$4,'C. PoC Adj Factor Scoring'!$E$3:$AH$3,0)-1),MATCH(Y$2&\" Score\",'C. PoC Adj Factor Scoring'!$E$4:$J$4,0),TRUE)","v":1},{"$f":"VLOOKUP(OFFSET($B:$B,,MATCH(Z$4,$B$4:$F$4,0)-1),OFFSET('C. PoC Adj Factor Scoring'!$E$5:$J$282,,MATCH(Z$4,'C. PoC Adj Factor Scoring'!$E$3:$AH$3,0)-1),MATCH(Z$2&\" Score\",'C. PoC Adj Factor Scoring'!$E$4:$J$4,0),TRUE)","v":1},{"$f":"VLOOKUP(OFFSET($B:$B,,MATCH(AA$4,$B$4:$F$4,0)-1),OFFSET('C. PoC Adj Factor Scoring'!$E$5:$J$282,,MATCH(AA$4,'C. PoC Adj Factor Scoring'!$E$3:$AH$3,0)-1),MATCH(AA$2&\" Score\",'C. PoC Adj Factor Scoring'!$E$4:$J$4,0),TRUE)","v":3},{"$f":"VLOOKUP(OFFSET($B:$B,,MATCH(AB$4,$B$4:$F$4,0)-1),OFFSET('C. PoC Adj Factor Scoring'!$E$5:$J$282,,MATCH(AB$4,'C. PoC Adj Factor Scoring'!$E$3:$AH$3,0)-1),MATCH(AB$2&\" Score\",'C. PoC Adj Factor Scoring'!$E$4:$J$4,0),TRUE)","v":1},{"$f":"VLOOKUP(OFFSET($B:$B,,MATCH(AC$4,$B$4:$F$4,0)-1),OFFSET('C. PoC Adj Factor Scoring'!$E$5:$J$282,,MATCH(AC$4,'C. PoC Adj Factor Scoring'!$E$3:$AH$3,0)-1),MATCH(AC$2&\" Score\",'C. PoC Adj Factor Scoring'!$E$4:$J$4,0),TRUE)","v":1},{"$f":"VLOOKUP(OFFSET($B:$B,,MATCH(AD$4,$B$4:$F$4,0)-1),OFFSET('C. PoC Adj Factor Scoring'!$E$5:$J$282,,MATCH(AD$4,'C. PoC Adj Factor Scoring'!$E$3:$AH$3,0)-1),MATCH(AD$2&\" Score\",'C. PoC Adj Factor Scoring'!$E$4:$J$4,0),TRUE)","v":1},{"$f":"VLOOKUP(OFFSET($B:$B,,MATCH(AE$4,$B$4:$F$4,0)-1),OFFSET('C. PoC Adj Factor Scoring'!$E$5:$J$282,,MATCH(AE$4,'C. PoC Adj Factor Scoring'!$E$3:$AH$3,0)-1),MATCH(AE$2&\" Score\",'C. PoC Adj Factor Scoring'!$E$4:$J$4,0),TRUE)","v":1}]
[{"$f":"'A. Population Info'!A178","v":1000349704},{"$f":"'A. Population Info'!L178","v":"OIL"},{"$f":"'A. Population Info'!M178","v":0},{"$f":"'A. Population Info'!N178","v":0},{"$f":"'A. Population Info'!O178","v":0},{"$f":"'A. Population Info'!P178","v":0},{"$f":"VLOOKUP(OFFSET($B:$B,,MATCH(G$4,$B$4:$F$4,0)-1),OFFSET('C. PoC Adj Factor Scoring'!$E$5:$J$282,,MATCH(G$4,'C. PoC Adj Factor Scoring'!$E$3:$AH$3,0)-1),MATCH(G$2&\" Score\",'C. PoC Adj Factor Scoring'!$E$4:$J$4,0),TRUE)","v":4},{"$f":"VLOOKUP(OFFSET($B:$B,,MATCH(H$4,$B$4:$F$4,0)-1),OFFSET('C. PoC Adj Factor Scoring'!$E$5:$J$282,,MATCH(H$4,'C. PoC Adj Factor Scoring'!$E$3:$AH$3,0)-1),MATCH(H$2&\" Score\",'C. PoC Adj Factor Scoring'!$E$4:$J$4,0),TRUE)","v":1},{"$f":"VLOOKUP(OFFSET($B:$B,,MATCH(I$4,$B$4:$F$4,0)-1),OFFSET('C. PoC Adj Factor Scoring'!$E$5:$J$282,,MATCH(I$4,'C. PoC Adj Factor Scoring'!$E$3:$AH$3,0)-1),MATCH(I$2&\" Score\",'C. PoC Adj Factor Scoring'!$E$4:$J$4,0),TRUE)","v":1},{"$f":"VLOOKUP(OFFSET($B:$B,,MATCH(J$4,$B$4:$F$4,0)-1),OFFSET('C. PoC Adj Factor Scoring'!$E$5:$J$282,,MATCH(J$4,'C. PoC Adj Factor Scoring'!$E$3:$AH$3,0)-1),MATCH(J$2&\" Score\",'C. PoC Adj Factor Scoring'!$E$4:$J$4,0),TRUE)","v":1},{"$f":"VLOOKUP(OFFSET($B:$B,,MATCH(K$4,$B$4:$F$4,0)-1),OFFSET('C. PoC Adj Factor Scoring'!$E$5:$J$282,,MATCH(K$4,'C. PoC Adj Factor Scoring'!$E$3:$AH$3,0)-1),MATCH(K$2&\" Score\",'C. PoC Adj Factor Scoring'!$E$4:$J$4,0),TRUE)","v":1},{"$f":"VLOOKUP(OFFSET($B:$B,,MATCH(L$4,$B$4:$F$4,0)-1),OFFSET('C. PoC Adj Factor Scoring'!$E$5:$J$282,,MATCH(L$4,'C. PoC Adj Factor Scoring'!$E$3:$AH$3,0)-1),MATCH(L$2&\" Score\",'C. PoC Adj Factor Scoring'!$E$4:$J$4,0),TRUE)","v":1},{"$f":"VLOOKUP(OFFSET($B:$B,,MATCH(M$4,$B$4:$F$4,0)-1),OFFSET('C. PoC Adj Factor Scoring'!$E$5:$J$282,,MATCH(M$4,'C. PoC Adj Factor Scoring'!$E$3:$AH$3,0)-1),MATCH(M$2&\" Score\",'C. PoC Adj Factor Scoring'!$E$4:$J$4,0),TRUE)","v":1},{"$f":"VLOOKUP(OFFSET($B:$B,,MATCH(N$4,$B$4:$F$4,0)-1),OFFSET('C. PoC Adj Factor Scoring'!$E$5:$J$282,,MATCH(N$4,'C. PoC Adj Factor Scoring'!$E$3:$AH$3,0)-1),MATCH(N$2&\" Score\",'C. PoC Adj Factor Scoring'!$E$4:$J$4,0),TRUE)","v":1},{"$f":"VLOOKUP(OFFSET($B:$B,,MATCH(O$4,$B$4:$F$4,0)-1),OFFSET('C. PoC Adj Factor Scoring'!$E$5:$J$282,,MATCH(O$4,'C. PoC Adj Factor Scoring'!$E$3:$AH$3,0)-1),MATCH(O$2&\" Score\",'C. PoC Adj Factor Scoring'!$E$4:$J$4,0),TRUE)","v":1},{"$f":"VLOOKUP(OFFSET($B:$B,,MATCH(P$4,$B$4:$F$4,0)-1),OFFSET('C. PoC Adj Factor Scoring'!$E$5:$J$282,,MATCH(P$4,'C. PoC Adj Factor Scoring'!$E$3:$AH$3,0)-1),MATCH(P$2&\" Score\",'C. PoC Adj Factor Scoring'!$E$4:$J$4,0),TRUE)","v":1},{"$f":"VLOOKUP(OFFSET($B:$B,,MATCH(Q$4,$B$4:$F$4,0)-1),OFFSET('C. PoC Adj Factor Scoring'!$E$5:$J$282,,MATCH(Q$4,'C. PoC Adj Factor Scoring'!$E$3:$AH$3,0)-1),MATCH(Q$2&\" Score\",'C. PoC Adj Factor Scoring'!$E$4:$J$4,0),TRUE)","v":1},{"$f":"VLOOKUP(OFFSET($B:$B,,MATCH(R$4,$B$4:$F$4,0)-1),OFFSET('C. PoC Adj Factor Scoring'!$E$5:$J$282,,MATCH(R$4,'C. PoC Adj Factor Scoring'!$E$3:$AH$3,0)-1),MATCH(R$2&\" Score\",'C. PoC Adj Factor Scoring'!$E$4:$J$4,0),TRUE)","v":1},{"$f":"VLOOKUP(OFFSET($B:$B,,MATCH(S$4,$B$4:$F$4,0)-1),OFFSET('C. PoC Adj Factor Scoring'!$E$5:$J$282,,MATCH(S$4,'C. PoC Adj Factor Scoring'!$E$3:$AH$3,0)-1),MATCH(S$2&\" Score\",'C. PoC Adj Factor Scoring'!$E$4:$J$4,0),TRUE)","v":1},{"$f":"VLOOKUP(OFFSET($B:$B,,MATCH(T$4,$B$4:$F$4,0)-1),OFFSET('C. PoC Adj Factor Scoring'!$E$5:$J$282,,MATCH(T$4,'C. PoC Adj Factor Scoring'!$E$3:$AH$3,0)-1),MATCH(T$2&\" Score\",'C. PoC Adj Factor Scoring'!$E$4:$J$4,0),TRUE)","v":1},{"$f":"VLOOKUP(OFFSET($B:$B,,MATCH(U$4,$B$4:$F$4,0)-1),OFFSET('C. PoC Adj Factor Scoring'!$E$5:$J$282,,MATCH(U$4,'C. PoC Adj Factor Scoring'!$E$3:$AH$3,0)-1),MATCH(U$2&\" Score\",'C. PoC Adj Factor Scoring'!$E$4:$J$4,0),TRUE)","v":1},{"$f":"VLOOKUP(OFFSET($B:$B,,MATCH(V$4,$B$4:$F$4,0)-1),OFFSET('C. PoC Adj Factor Scoring'!$E$5:$J$282,,MATCH(V$4,'C. PoC Adj Factor Scoring'!$E$3:$AH$3,0)-1),MATCH(V$2&\" Score\",'C. PoC Adj Factor Scoring'!$E$4:$J$4,0),TRUE)","v":1},{"$f":"VLOOKUP(OFFSET($B:$B,,MATCH(W$4,$B$4:$F$4,0)-1),OFFSET('C. PoC Adj Factor Scoring'!$E$5:$J$282,,MATCH(W$4,'C. PoC Adj Factor Scoring'!$E$3:$AH$3,0)-1),MATCH(W$2&\" Score\",'C. PoC Adj Factor Scoring'!$E$4:$J$4,0),TRUE)","v":1},{"$f":"VLOOKUP(OFFSET($B:$B,,MATCH(X$4,$B$4:$F$4,0)-1),OFFSET('C. PoC Adj Factor Scoring'!$E$5:$J$282,,MATCH(X$4,'C. PoC Adj Factor Scoring'!$E$3:$AH$3,0)-1),MATCH(X$2&\" Score\",'C. PoC Adj Factor Scoring'!$E$4:$J$4,0),TRUE)","v":1},{"$f":"VLOOKUP(OFFSET($B:$B,,MATCH(Y$4,$B$4:$F$4,0)-1),OFFSET('C. PoC Adj Factor Scoring'!$E$5:$J$282,,MATCH(Y$4,'C. PoC Adj Factor Scoring'!$E$3:$AH$3,0)-1),MATCH(Y$2&\" Score\",'C. PoC Adj Factor Scoring'!$E$4:$J$4,0),TRUE)","v":1},{"$f":"VLOOKUP(OFFSET($B:$B,,MATCH(Z$4,$B$4:$F$4,0)-1),OFFSET('C. PoC Adj Factor Scoring'!$E$5:$J$282,,MATCH(Z$4,'C. PoC Adj Factor Scoring'!$E$3:$AH$3,0)-1),MATCH(Z$2&\" Score\",'C. PoC Adj Factor Scoring'!$E$4:$J$4,0),TRUE)","v":1},{"$f":"VLOOKUP(OFFSET($B:$B,,MATCH(AA$4,$B$4:$F$4,0)-1),OFFSET('C. PoC Adj Factor Scoring'!$E$5:$J$282,,MATCH(AA$4,'C. PoC Adj Factor Scoring'!$E$3:$AH$3,0)-1),MATCH(AA$2&\" Score\",'C. PoC Adj Factor Scoring'!$E$4:$J$4,0),TRUE)","v":3},{"$f":"VLOOKUP(OFFSET($B:$B,,MATCH(AB$4,$B$4:$F$4,0)-1),OFFSET('C. PoC Adj Factor Scoring'!$E$5:$J$282,,MATCH(AB$4,'C. PoC Adj Factor Scoring'!$E$3:$AH$3,0)-1),MATCH(AB$2&\" Score\",'C. PoC Adj Factor Scoring'!$E$4:$J$4,0),TRUE)","v":1},{"$f":"VLOOKUP(OFFSET($B:$B,,MATCH(AC$4,$B$4:$F$4,0)-1),OFFSET('C. PoC Adj Factor Scoring'!$E$5:$J$282,,MATCH(AC$4,'C. PoC Adj Factor Scoring'!$E$3:$AH$3,0)-1),MATCH(AC$2&\" Score\",'C. PoC Adj Factor Scoring'!$E$4:$J$4,0),TRUE)","v":1},{"$f":"VLOOKUP(OFFSET($B:$B,,MATCH(AD$4,$B$4:$F$4,0)-1),OFFSET('C. PoC Adj Factor Scoring'!$E$5:$J$282,,MATCH(AD$4,'C. PoC Adj Factor Scoring'!$E$3:$AH$3,0)-1),MATCH(AD$2&\" Score\",'C. PoC Adj Factor Scoring'!$E$4:$J$4,0),TRUE)","v":1},{"$f":"VLOOKUP(OFFSET($B:$B,,MATCH(AE$4,$B$4:$F$4,0)-1),OFFSET('C. PoC Adj Factor Scoring'!$E$5:$J$282,,MATCH(AE$4,'C. PoC Adj Factor Scoring'!$E$3:$AH$3,0)-1),MATCH(AE$2&\" Score\",'C. PoC Adj Factor Scoring'!$E$4:$J$4,0),TRUE)","v":1}]
[{"$f":"'A. Population Info'!A179","v":1000349797},{"$f":"'A. Population Info'!L179","v":"OIL"},{"$f":"'A. Population Info'!M179","v":0},{"$f":"'A. Population Info'!N179","v":0},{"$f":"'A. Population Info'!O179","v":0},{"$f":"'A. Population Info'!P179","v":0},{"$f":"VLOOKUP(OFFSET($B:$B,,MATCH(G$4,$B$4:$F$4,0)-1),OFFSET('C. PoC Adj Factor Scoring'!$E$5:$J$282,,MATCH(G$4,'C. PoC Adj Factor Scoring'!$E$3:$AH$3,0)-1),MATCH(G$2&\" Score\",'C. PoC Adj Factor Scoring'!$E$4:$J$4,0),TRUE)","v":4},{"$f":"VLOOKUP(OFFSET($B:$B,,MATCH(H$4,$B$4:$F$4,0)-1),OFFSET('C. PoC Adj Factor Scoring'!$E$5:$J$282,,MATCH(H$4,'C. PoC Adj Factor Scoring'!$E$3:$AH$3,0)-1),MATCH(H$2&\" Score\",'C. PoC Adj Factor Scoring'!$E$4:$J$4,0),TRUE)","v":1},{"$f":"VLOOKUP(OFFSET($B:$B,,MATCH(I$4,$B$4:$F$4,0)-1),OFFSET('C. PoC Adj Factor Scoring'!$E$5:$J$282,,MATCH(I$4,'C. PoC Adj Factor Scoring'!$E$3:$AH$3,0)-1),MATCH(I$2&\" Score\",'C. PoC Adj Factor Scoring'!$E$4:$J$4,0),TRUE)","v":1},{"$f":"VLOOKUP(OFFSET($B:$B,,MATCH(J$4,$B$4:$F$4,0)-1),OFFSET('C. PoC Adj Factor Scoring'!$E$5:$J$282,,MATCH(J$4,'C. PoC Adj Factor Scoring'!$E$3:$AH$3,0)-1),MATCH(J$2&\" Score\",'C. PoC Adj Factor Scoring'!$E$4:$J$4,0),TRUE)","v":1},{"$f":"VLOOKUP(OFFSET($B:$B,,MATCH(K$4,$B$4:$F$4,0)-1),OFFSET('C. PoC Adj Factor Scoring'!$E$5:$J$282,,MATCH(K$4,'C. PoC Adj Factor Scoring'!$E$3:$AH$3,0)-1),MATCH(K$2&\" Score\",'C. PoC Adj Factor Scoring'!$E$4:$J$4,0),TRUE)","v":1},{"$f":"VLOOKUP(OFFSET($B:$B,,MATCH(L$4,$B$4:$F$4,0)-1),OFFSET('C. PoC Adj Factor Scoring'!$E$5:$J$282,,MATCH(L$4,'C. PoC Adj Factor Scoring'!$E$3:$AH$3,0)-1),MATCH(L$2&\" Score\",'C. PoC Adj Factor Scoring'!$E$4:$J$4,0),TRUE)","v":1},{"$f":"VLOOKUP(OFFSET($B:$B,,MATCH(M$4,$B$4:$F$4,0)-1),OFFSET('C. PoC Adj Factor Scoring'!$E$5:$J$282,,MATCH(M$4,'C. PoC Adj Factor Scoring'!$E$3:$AH$3,0)-1),MATCH(M$2&\" Score\",'C. PoC Adj Factor Scoring'!$E$4:$J$4,0),TRUE)","v":1},{"$f":"VLOOKUP(OFFSET($B:$B,,MATCH(N$4,$B$4:$F$4,0)-1),OFFSET('C. PoC Adj Factor Scoring'!$E$5:$J$282,,MATCH(N$4,'C. PoC Adj Factor Scoring'!$E$3:$AH$3,0)-1),MATCH(N$2&\" Score\",'C. PoC Adj Factor Scoring'!$E$4:$J$4,0),TRUE)","v":1},{"$f":"VLOOKUP(OFFSET($B:$B,,MATCH(O$4,$B$4:$F$4,0)-1),OFFSET('C. PoC Adj Factor Scoring'!$E$5:$J$282,,MATCH(O$4,'C. PoC Adj Factor Scoring'!$E$3:$AH$3,0)-1),MATCH(O$2&\" Score\",'C. PoC Adj Factor Scoring'!$E$4:$J$4,0),TRUE)","v":1},{"$f":"VLOOKUP(OFFSET($B:$B,,MATCH(P$4,$B$4:$F$4,0)-1),OFFSET('C. PoC Adj Factor Scoring'!$E$5:$J$282,,MATCH(P$4,'C. PoC Adj Factor Scoring'!$E$3:$AH$3,0)-1),MATCH(P$2&\" Score\",'C. PoC Adj Factor Scoring'!$E$4:$J$4,0),TRUE)","v":1},{"$f":"VLOOKUP(OFFSET($B:$B,,MATCH(Q$4,$B$4:$F$4,0)-1),OFFSET('C. PoC Adj Factor Scoring'!$E$5:$J$282,,MATCH(Q$4,'C. PoC Adj Factor Scoring'!$E$3:$AH$3,0)-1),MATCH(Q$2&\" Score\",'C. PoC Adj Factor Scoring'!$E$4:$J$4,0),TRUE)","v":1},{"$f":"VLOOKUP(OFFSET($B:$B,,MATCH(R$4,$B$4:$F$4,0)-1),OFFSET('C. PoC Adj Factor Scoring'!$E$5:$J$282,,MATCH(R$4,'C. PoC Adj Factor Scoring'!$E$3:$AH$3,0)-1),MATCH(R$2&\" Score\",'C. PoC Adj Factor Scoring'!$E$4:$J$4,0),TRUE)","v":1},{"$f":"VLOOKUP(OFFSET($B:$B,,MATCH(S$4,$B$4:$F$4,0)-1),OFFSET('C. PoC Adj Factor Scoring'!$E$5:$J$282,,MATCH(S$4,'C. PoC Adj Factor Scoring'!$E$3:$AH$3,0)-1),MATCH(S$2&\" Score\",'C. PoC Adj Factor Scoring'!$E$4:$J$4,0),TRUE)","v":1},{"$f":"VLOOKUP(OFFSET($B:$B,,MATCH(T$4,$B$4:$F$4,0)-1),OFFSET('C. PoC Adj Factor Scoring'!$E$5:$J$282,,MATCH(T$4,'C. PoC Adj Factor Scoring'!$E$3:$AH$3,0)-1),MATCH(T$2&\" Score\",'C. PoC Adj Factor Scoring'!$E$4:$J$4,0),TRUE)","v":1},{"$f":"VLOOKUP(OFFSET($B:$B,,MATCH(U$4,$B$4:$F$4,0)-1),OFFSET('C. PoC Adj Factor Scoring'!$E$5:$J$282,,MATCH(U$4,'C. PoC Adj Factor Scoring'!$E$3:$AH$3,0)-1),MATCH(U$2&\" Score\",'C. PoC Adj Factor Scoring'!$E$4:$J$4,0),TRUE)","v":1},{"$f":"VLOOKUP(OFFSET($B:$B,,MATCH(V$4,$B$4:$F$4,0)-1),OFFSET('C. PoC Adj Factor Scoring'!$E$5:$J$282,,MATCH(V$4,'C. PoC Adj Factor Scoring'!$E$3:$AH$3,0)-1),MATCH(V$2&\" Score\",'C. PoC Adj Factor Scoring'!$E$4:$J$4,0),TRUE)","v":1},{"$f":"VLOOKUP(OFFSET($B:$B,,MATCH(W$4,$B$4:$F$4,0)-1),OFFSET('C. PoC Adj Factor Scoring'!$E$5:$J$282,,MATCH(W$4,'C. PoC Adj Factor Scoring'!$E$3:$AH$3,0)-1),MATCH(W$2&\" Score\",'C. PoC Adj Factor Scoring'!$E$4:$J$4,0),TRUE)","v":1},{"$f":"VLOOKUP(OFFSET($B:$B,,MATCH(X$4,$B$4:$F$4,0)-1),OFFSET('C. PoC Adj Factor Scoring'!$E$5:$J$282,,MATCH(X$4,'C. PoC Adj Factor Scoring'!$E$3:$AH$3,0)-1),MATCH(X$2&\" Score\",'C. PoC Adj Factor Scoring'!$E$4:$J$4,0),TRUE)","v":1},{"$f":"VLOOKUP(OFFSET($B:$B,,MATCH(Y$4,$B$4:$F$4,0)-1),OFFSET('C. PoC Adj Factor Scoring'!$E$5:$J$282,,MATCH(Y$4,'C. PoC Adj Factor Scoring'!$E$3:$AH$3,0)-1),MATCH(Y$2&\" Score\",'C. PoC Adj Factor Scoring'!$E$4:$J$4,0),TRUE)","v":1},{"$f":"VLOOKUP(OFFSET($B:$B,,MATCH(Z$4,$B$4:$F$4,0)-1),OFFSET('C. PoC Adj Factor Scoring'!$E$5:$J$282,,MATCH(Z$4,'C. PoC Adj Factor Scoring'!$E$3:$AH$3,0)-1),MATCH(Z$2&\" Score\",'C. PoC Adj Factor Scoring'!$E$4:$J$4,0),TRUE)","v":1},{"$f":"VLOOKUP(OFFSET($B:$B,,MATCH(AA$4,$B$4:$F$4,0)-1),OFFSET('C. PoC Adj Factor Scoring'!$E$5:$J$282,,MATCH(AA$4,'C. PoC Adj Factor Scoring'!$E$3:$AH$3,0)-1),MATCH(AA$2&\" Score\",'C. PoC Adj Factor Scoring'!$E$4:$J$4,0),TRUE)","v":3},{"$f":"VLOOKUP(OFFSET($B:$B,,MATCH(AB$4,$B$4:$F$4,0)-1),OFFSET('C. PoC Adj Factor Scoring'!$E$5:$J$282,,MATCH(AB$4,'C. PoC Adj Factor Scoring'!$E$3:$AH$3,0)-1),MATCH(AB$2&\" Score\",'C. PoC Adj Factor Scoring'!$E$4:$J$4,0),TRUE)","v":1},{"$f":"VLOOKUP(OFFSET($B:$B,,MATCH(AC$4,$B$4:$F$4,0)-1),OFFSET('C. PoC Adj Factor Scoring'!$E$5:$J$282,,MATCH(AC$4,'C. PoC Adj Factor Scoring'!$E$3:$AH$3,0)-1),MATCH(AC$2&\" Score\",'C. PoC Adj Factor Scoring'!$E$4:$J$4,0),TRUE)","v":1},{"$f":"VLOOKUP(OFFSET($B:$B,,MATCH(AD$4,$B$4:$F$4,0)-1),OFFSET('C. PoC Adj Factor Scoring'!$E$5:$J$282,,MATCH(AD$4,'C. PoC Adj Factor Scoring'!$E$3:$AH$3,0)-1),MATCH(AD$2&\" Score\",'C. PoC Adj Factor Scoring'!$E$4:$J$4,0),TRUE)","v":1},{"$f":"VLOOKUP(OFFSET($B:$B,,MATCH(AE$4,$B$4:$F$4,0)-1),OFFSET('C. PoC Adj Factor Scoring'!$E$5:$J$282,,MATCH(AE$4,'C. PoC Adj Factor Scoring'!$E$3:$AH$3,0)-1),MATCH(AE$2&\" Score\",'C. PoC Adj Factor Scoring'!$E$4:$J$4,0),TRUE)","v":1}]
[{"$f":"'A. Population Info'!A180","v":1000349829},{"$f":"'A. Population Info'!L180","v":"OIL"},{"$f":"'A. Population Info'!M180","v":0},{"$f":"'A. Population Info'!N180","v":0},{"$f":"'A. Population Info'!O180","v":0},{"$f":"'A. Population Info'!P180","v":0},{"$f":"VLOOKUP(OFFSET($B:$B,,MATCH(G$4,$B$4:$F$4,0)-1),OFFSET('C. PoC Adj Factor Scoring'!$E$5:$J$282,,MATCH(G$4,'C. PoC Adj Factor Scoring'!$E$3:$AH$3,0)-1),MATCH(G$2&\" Score\",'C. PoC Adj Factor Scoring'!$E$4:$J$4,0),TRUE)","v":4},{"$f":"VLOOKUP(OFFSET($B:$B,,MATCH(H$4,$B$4:$F$4,0)-1),OFFSET('C. PoC Adj Factor Scoring'!$E$5:$J$282,,MATCH(H$4,'C. PoC Adj Factor Scoring'!$E$3:$AH$3,0)-1),MATCH(H$2&\" Score\",'C. PoC Adj Factor Scoring'!$E$4:$J$4,0),TRUE)","v":1},{"$f":"VLOOKUP(OFFSET($B:$B,,MATCH(I$4,$B$4:$F$4,0)-1),OFFSET('C. PoC Adj Factor Scoring'!$E$5:$J$282,,MATCH(I$4,'C. PoC Adj Factor Scoring'!$E$3:$AH$3,0)-1),MATCH(I$2&\" Score\",'C. PoC Adj Factor Scoring'!$E$4:$J$4,0),TRUE)","v":1},{"$f":"VLOOKUP(OFFSET($B:$B,,MATCH(J$4,$B$4:$F$4,0)-1),OFFSET('C. PoC Adj Factor Scoring'!$E$5:$J$282,,MATCH(J$4,'C. PoC Adj Factor Scoring'!$E$3:$AH$3,0)-1),MATCH(J$2&\" Score\",'C. PoC Adj Factor Scoring'!$E$4:$J$4,0),TRUE)","v":1},{"$f":"VLOOKUP(OFFSET($B:$B,,MATCH(K$4,$B$4:$F$4,0)-1),OFFSET('C. PoC Adj Factor Scoring'!$E$5:$J$282,,MATCH(K$4,'C. PoC Adj Factor Scoring'!$E$3:$AH$3,0)-1),MATCH(K$2&\" Score\",'C. PoC Adj Factor Scoring'!$E$4:$J$4,0),TRUE)","v":1},{"$f":"VLOOKUP(OFFSET($B:$B,,MATCH(L$4,$B$4:$F$4,0)-1),OFFSET('C. PoC Adj Factor Scoring'!$E$5:$J$282,,MATCH(L$4,'C. PoC Adj Factor Scoring'!$E$3:$AH$3,0)-1),MATCH(L$2&\" Score\",'C. PoC Adj Factor Scoring'!$E$4:$J$4,0),TRUE)","v":1},{"$f":"VLOOKUP(OFFSET($B:$B,,MATCH(M$4,$B$4:$F$4,0)-1),OFFSET('C. PoC Adj Factor Scoring'!$E$5:$J$282,,MATCH(M$4,'C. PoC Adj Factor Scoring'!$E$3:$AH$3,0)-1),MATCH(M$2&\" Score\",'C. PoC Adj Factor Scoring'!$E$4:$J$4,0),TRUE)","v":1},{"$f":"VLOOKUP(OFFSET($B:$B,,MATCH(N$4,$B$4:$F$4,0)-1),OFFSET('C. PoC Adj Factor Scoring'!$E$5:$J$282,,MATCH(N$4,'C. PoC Adj Factor Scoring'!$E$3:$AH$3,0)-1),MATCH(N$2&\" Score\",'C. PoC Adj Factor Scoring'!$E$4:$J$4,0),TRUE)","v":1},{"$f":"VLOOKUP(OFFSET($B:$B,,MATCH(O$4,$B$4:$F$4,0)-1),OFFSET('C. PoC Adj Factor Scoring'!$E$5:$J$282,,MATCH(O$4,'C. PoC Adj Factor Scoring'!$E$3:$AH$3,0)-1),MATCH(O$2&\" Score\",'C. PoC Adj Factor Scoring'!$E$4:$J$4,0),TRUE)","v":1},{"$f":"VLOOKUP(OFFSET($B:$B,,MATCH(P$4,$B$4:$F$4,0)-1),OFFSET('C. PoC Adj Factor Scoring'!$E$5:$J$282,,MATCH(P$4,'C. PoC Adj Factor Scoring'!$E$3:$AH$3,0)-1),MATCH(P$2&\" Score\",'C. PoC Adj Factor Scoring'!$E$4:$J$4,0),TRUE)","v":1},{"$f":"VLOOKUP(OFFSET($B:$B,,MATCH(Q$4,$B$4:$F$4,0)-1),OFFSET('C. PoC Adj Factor Scoring'!$E$5:$J$282,,MATCH(Q$4,'C. PoC Adj Factor Scoring'!$E$3:$AH$3,0)-1),MATCH(Q$2&\" Score\",'C. PoC Adj Factor Scoring'!$E$4:$J$4,0),TRUE)","v":1},{"$f":"VLOOKUP(OFFSET($B:$B,,MATCH(R$4,$B$4:$F$4,0)-1),OFFSET('C. PoC Adj Factor Scoring'!$E$5:$J$282,,MATCH(R$4,'C. PoC Adj Factor Scoring'!$E$3:$AH$3,0)-1),MATCH(R$2&\" Score\",'C. PoC Adj Factor Scoring'!$E$4:$J$4,0),TRUE)","v":1},{"$f":"VLOOKUP(OFFSET($B:$B,,MATCH(S$4,$B$4:$F$4,0)-1),OFFSET('C. PoC Adj Factor Scoring'!$E$5:$J$282,,MATCH(S$4,'C. PoC Adj Factor Scoring'!$E$3:$AH$3,0)-1),MATCH(S$2&\" Score\",'C. PoC Adj Factor Scoring'!$E$4:$J$4,0),TRUE)","v":1},{"$f":"VLOOKUP(OFFSET($B:$B,,MATCH(T$4,$B$4:$F$4,0)-1),OFFSET('C. PoC Adj Factor Scoring'!$E$5:$J$282,,MATCH(T$4,'C. PoC Adj Factor Scoring'!$E$3:$AH$3,0)-1),MATCH(T$2&\" Score\",'C. PoC Adj Factor Scoring'!$E$4:$J$4,0),TRUE)","v":1},{"$f":"VLOOKUP(OFFSET($B:$B,,MATCH(U$4,$B$4:$F$4,0)-1),OFFSET('C. PoC Adj Factor Scoring'!$E$5:$J$282,,MATCH(U$4,'C. PoC Adj Factor Scoring'!$E$3:$AH$3,0)-1),MATCH(U$2&\" Score\",'C. PoC Adj Factor Scoring'!$E$4:$J$4,0),TRUE)","v":1},{"$f":"VLOOKUP(OFFSET($B:$B,,MATCH(V$4,$B$4:$F$4,0)-1),OFFSET('C. PoC Adj Factor Scoring'!$E$5:$J$282,,MATCH(V$4,'C. PoC Adj Factor Scoring'!$E$3:$AH$3,0)-1),MATCH(V$2&\" Score\",'C. PoC Adj Factor Scoring'!$E$4:$J$4,0),TRUE)","v":1},{"$f":"VLOOKUP(OFFSET($B:$B,,MATCH(W$4,$B$4:$F$4,0)-1),OFFSET('C. PoC Adj Factor Scoring'!$E$5:$J$282,,MATCH(W$4,'C. PoC Adj Factor Scoring'!$E$3:$AH$3,0)-1),MATCH(W$2&\" Score\",'C. PoC Adj Factor Scoring'!$E$4:$J$4,0),TRUE)","v":1},{"$f":"VLOOKUP(OFFSET($B:$B,,MATCH(X$4,$B$4:$F$4,0)-1),OFFSET('C. PoC Adj Factor Scoring'!$E$5:$J$282,,MATCH(X$4,'C. PoC Adj Factor Scoring'!$E$3:$AH$3,0)-1),MATCH(X$2&\" Score\",'C. PoC Adj Factor Scoring'!$E$4:$J$4,0),TRUE)","v":1},{"$f":"VLOOKUP(OFFSET($B:$B,,MATCH(Y$4,$B$4:$F$4,0)-1),OFFSET('C. PoC Adj Factor Scoring'!$E$5:$J$282,,MATCH(Y$4,'C. PoC Adj Factor Scoring'!$E$3:$AH$3,0)-1),MATCH(Y$2&\" Score\",'C. PoC Adj Factor Scoring'!$E$4:$J$4,0),TRUE)","v":1},{"$f":"VLOOKUP(OFFSET($B:$B,,MATCH(Z$4,$B$4:$F$4,0)-1),OFFSET('C. PoC Adj Factor Scoring'!$E$5:$J$282,,MATCH(Z$4,'C. PoC Adj Factor Scoring'!$E$3:$AH$3,0)-1),MATCH(Z$2&\" Score\",'C. PoC Adj Factor Scoring'!$E$4:$J$4,0),TRUE)","v":1},{"$f":"VLOOKUP(OFFSET($B:$B,,MATCH(AA$4,$B$4:$F$4,0)-1),OFFSET('C. PoC Adj Factor Scoring'!$E$5:$J$282,,MATCH(AA$4,'C. PoC Adj Factor Scoring'!$E$3:$AH$3,0)-1),MATCH(AA$2&\" Score\",'C. PoC Adj Factor Scoring'!$E$4:$J$4,0),TRUE)","v":3},{"$f":"VLOOKUP(OFFSET($B:$B,,MATCH(AB$4,$B$4:$F$4,0)-1),OFFSET('C. PoC Adj Factor Scoring'!$E$5:$J$282,,MATCH(AB$4,'C. PoC Adj Factor Scoring'!$E$3:$AH$3,0)-1),MATCH(AB$2&\" Score\",'C. PoC Adj Factor Scoring'!$E$4:$J$4,0),TRUE)","v":1},{"$f":"VLOOKUP(OFFSET($B:$B,,MATCH(AC$4,$B$4:$F$4,0)-1),OFFSET('C. PoC Adj Factor Scoring'!$E$5:$J$282,,MATCH(AC$4,'C. PoC Adj Factor Scoring'!$E$3:$AH$3,0)-1),MATCH(AC$2&\" Score\",'C. PoC Adj Factor Scoring'!$E$4:$J$4,0),TRUE)","v":1},{"$f":"VLOOKUP(OFFSET($B:$B,,MATCH(AD$4,$B$4:$F$4,0)-1),OFFSET('C. PoC Adj Factor Scoring'!$E$5:$J$282,,MATCH(AD$4,'C. PoC Adj Factor Scoring'!$E$3:$AH$3,0)-1),MATCH(AD$2&\" Score\",'C. PoC Adj Factor Scoring'!$E$4:$J$4,0),TRUE)","v":1},{"$f":"VLOOKUP(OFFSET($B:$B,,MATCH(AE$4,$B$4:$F$4,0)-1),OFFSET('C. PoC Adj Factor Scoring'!$E$5:$J$282,,MATCH(AE$4,'C. PoC Adj Factor Scoring'!$E$3:$AH$3,0)-1),MATCH(AE$2&\" Score\",'C. PoC Adj Factor Scoring'!$E$4:$J$4,0),TRUE)","v":1}]
[{"$f":"'A. Population Info'!A181","v":1000349857},{"$f":"'A. Population Info'!L181","v":"OIL"},{"$f":"'A. Population Info'!M181","v":0},{"$f":"'A. Population Info'!N181","v":0},{"$f":"'A. Population Info'!O181","v":0},{"$f":"'A. Population Info'!P181","v":0},{"$f":"VLOOKUP(OFFSET($B:$B,,MATCH(G$4,$B$4:$F$4,0)-1),OFFSET('C. PoC Adj Factor Scoring'!$E$5:$J$282,,MATCH(G$4,'C. PoC Adj Factor Scoring'!$E$3:$AH$3,0)-1),MATCH(G$2&\" Score\",'C. PoC Adj Factor Scoring'!$E$4:$J$4,0),TRUE)","v":4},{"$f":"VLOOKUP(OFFSET($B:$B,,MATCH(H$4,$B$4:$F$4,0)-1),OFFSET('C. PoC Adj Factor Scoring'!$E$5:$J$282,,MATCH(H$4,'C. PoC Adj Factor Scoring'!$E$3:$AH$3,0)-1),MATCH(H$2&\" Score\",'C. PoC Adj Factor Scoring'!$E$4:$J$4,0),TRUE)","v":1},{"$f":"VLOOKUP(OFFSET($B:$B,,MATCH(I$4,$B$4:$F$4,0)-1),OFFSET('C. PoC Adj Factor Scoring'!$E$5:$J$282,,MATCH(I$4,'C. PoC Adj Factor Scoring'!$E$3:$AH$3,0)-1),MATCH(I$2&\" Score\",'C. PoC Adj Factor Scoring'!$E$4:$J$4,0),TRUE)","v":1},{"$f":"VLOOKUP(OFFSET($B:$B,,MATCH(J$4,$B$4:$F$4,0)-1),OFFSET('C. PoC Adj Factor Scoring'!$E$5:$J$282,,MATCH(J$4,'C. PoC Adj Factor Scoring'!$E$3:$AH$3,0)-1),MATCH(J$2&\" Score\",'C. PoC Adj Factor Scoring'!$E$4:$J$4,0),TRUE)","v":1},{"$f":"VLOOKUP(OFFSET($B:$B,,MATCH(K$4,$B$4:$F$4,0)-1),OFFSET('C. PoC Adj Factor Scoring'!$E$5:$J$282,,MATCH(K$4,'C. PoC Adj Factor Scoring'!$E$3:$AH$3,0)-1),MATCH(K$2&\" Score\",'C. PoC Adj Factor Scoring'!$E$4:$J$4,0),TRUE)","v":1},{"$f":"VLOOKUP(OFFSET($B:$B,,MATCH(L$4,$B$4:$F$4,0)-1),OFFSET('C. PoC Adj Factor Scoring'!$E$5:$J$282,,MATCH(L$4,'C. PoC Adj Factor Scoring'!$E$3:$AH$3,0)-1),MATCH(L$2&\" Score\",'C. PoC Adj Factor Scoring'!$E$4:$J$4,0),TRUE)","v":1},{"$f":"VLOOKUP(OFFSET($B:$B,,MATCH(M$4,$B$4:$F$4,0)-1),OFFSET('C. PoC Adj Factor Scoring'!$E$5:$J$282,,MATCH(M$4,'C. PoC Adj Factor Scoring'!$E$3:$AH$3,0)-1),MATCH(M$2&\" Score\",'C. PoC Adj Factor Scoring'!$E$4:$J$4,0),TRUE)","v":1},{"$f":"VLOOKUP(OFFSET($B:$B,,MATCH(N$4,$B$4:$F$4,0)-1),OFFSET('C. PoC Adj Factor Scoring'!$E$5:$J$282,,MATCH(N$4,'C. PoC Adj Factor Scoring'!$E$3:$AH$3,0)-1),MATCH(N$2&\" Score\",'C. PoC Adj Factor Scoring'!$E$4:$J$4,0),TRUE)","v":1},{"$f":"VLOOKUP(OFFSET($B:$B,,MATCH(O$4,$B$4:$F$4,0)-1),OFFSET('C. PoC Adj Factor Scoring'!$E$5:$J$282,,MATCH(O$4,'C. PoC Adj Factor Scoring'!$E$3:$AH$3,0)-1),MATCH(O$2&\" Score\",'C. PoC Adj Factor Scoring'!$E$4:$J$4,0),TRUE)","v":1},{"$f":"VLOOKUP(OFFSET($B:$B,,MATCH(P$4,$B$4:$F$4,0)-1),OFFSET('C. PoC Adj Factor Scoring'!$E$5:$J$282,,MATCH(P$4,'C. PoC Adj Factor Scoring'!$E$3:$AH$3,0)-1),MATCH(P$2&\" Score\",'C. PoC Adj Factor Scoring'!$E$4:$J$4,0),TRUE)","v":1},{"$f":"VLOOKUP(OFFSET($B:$B,,MATCH(Q$4,$B$4:$F$4,0)-1),OFFSET('C. PoC Adj Factor Scoring'!$E$5:$J$282,,MATCH(Q$4,'C. PoC Adj Factor Scoring'!$E$3:$AH$3,0)-1),MATCH(Q$2&\" Score\",'C. PoC Adj Factor Scoring'!$E$4:$J$4,0),TRUE)","v":1},{"$f":"VLOOKUP(OFFSET($B:$B,,MATCH(R$4,$B$4:$F$4,0)-1),OFFSET('C. PoC Adj Factor Scoring'!$E$5:$J$282,,MATCH(R$4,'C. PoC Adj Factor Scoring'!$E$3:$AH$3,0)-1),MATCH(R$2&\" Score\",'C. PoC Adj Factor Scoring'!$E$4:$J$4,0),TRUE)","v":1},{"$f":"VLOOKUP(OFFSET($B:$B,,MATCH(S$4,$B$4:$F$4,0)-1),OFFSET('C. PoC Adj Factor Scoring'!$E$5:$J$282,,MATCH(S$4,'C. PoC Adj Factor Scoring'!$E$3:$AH$3,0)-1),MATCH(S$2&\" Score\",'C. PoC Adj Factor Scoring'!$E$4:$J$4,0),TRUE)","v":1},{"$f":"VLOOKUP(OFFSET($B:$B,,MATCH(T$4,$B$4:$F$4,0)-1),OFFSET('C. PoC Adj Factor Scoring'!$E$5:$J$282,,MATCH(T$4,'C. PoC Adj Factor Scoring'!$E$3:$AH$3,0)-1),MATCH(T$2&\" Score\",'C. PoC Adj Factor Scoring'!$E$4:$J$4,0),TRUE)","v":1},{"$f":"VLOOKUP(OFFSET($B:$B,,MATCH(U$4,$B$4:$F$4,0)-1),OFFSET('C. PoC Adj Factor Scoring'!$E$5:$J$282,,MATCH(U$4,'C. PoC Adj Factor Scoring'!$E$3:$AH$3,0)-1),MATCH(U$2&\" Score\",'C. PoC Adj Factor Scoring'!$E$4:$J$4,0),TRUE)","v":1},{"$f":"VLOOKUP(OFFSET($B:$B,,MATCH(V$4,$B$4:$F$4,0)-1),OFFSET('C. PoC Adj Factor Scoring'!$E$5:$J$282,,MATCH(V$4,'C. PoC Adj Factor Scoring'!$E$3:$AH$3,0)-1),MATCH(V$2&\" Score\",'C. PoC Adj Factor Scoring'!$E$4:$J$4,0),TRUE)","v":1},{"$f":"VLOOKUP(OFFSET($B:$B,,MATCH(W$4,$B$4:$F$4,0)-1),OFFSET('C. PoC Adj Factor Scoring'!$E$5:$J$282,,MATCH(W$4,'C. PoC Adj Factor Scoring'!$E$3:$AH$3,0)-1),MATCH(W$2&\" Score\",'C. PoC Adj Factor Scoring'!$E$4:$J$4,0),TRUE)","v":1},{"$f":"VLOOKUP(OFFSET($B:$B,,MATCH(X$4,$B$4:$F$4,0)-1),OFFSET('C. PoC Adj Factor Scoring'!$E$5:$J$282,,MATCH(X$4,'C. PoC Adj Factor Scoring'!$E$3:$AH$3,0)-1),MATCH(X$2&\" Score\",'C. PoC Adj Factor Scoring'!$E$4:$J$4,0),TRUE)","v":1},{"$f":"VLOOKUP(OFFSET($B:$B,,MATCH(Y$4,$B$4:$F$4,0)-1),OFFSET('C. PoC Adj Factor Scoring'!$E$5:$J$282,,MATCH(Y$4,'C. PoC Adj Factor Scoring'!$E$3:$AH$3,0)-1),MATCH(Y$2&\" Score\",'C. PoC Adj Factor Scoring'!$E$4:$J$4,0),TRUE)","v":1},{"$f":"VLOOKUP(OFFSET($B:$B,,MATCH(Z$4,$B$4:$F$4,0)-1),OFFSET('C. PoC Adj Factor Scoring'!$E$5:$J$282,,MATCH(Z$4,'C. PoC Adj Factor Scoring'!$E$3:$AH$3,0)-1),MATCH(Z$2&\" Score\",'C. PoC Adj Factor Scoring'!$E$4:$J$4,0),TRUE)","v":1},{"$f":"VLOOKUP(OFFSET($B:$B,,MATCH(AA$4,$B$4:$F$4,0)-1),OFFSET('C. PoC Adj Factor Scoring'!$E$5:$J$282,,MATCH(AA$4,'C. PoC Adj Factor Scoring'!$E$3:$AH$3,0)-1),MATCH(AA$2&\" Score\",'C. PoC Adj Factor Scoring'!$E$4:$J$4,0),TRUE)","v":3},{"$f":"VLOOKUP(OFFSET($B:$B,,MATCH(AB$4,$B$4:$F$4,0)-1),OFFSET('C. PoC Adj Factor Scoring'!$E$5:$J$282,,MATCH(AB$4,'C. PoC Adj Factor Scoring'!$E$3:$AH$3,0)-1),MATCH(AB$2&\" Score\",'C. PoC Adj Factor Scoring'!$E$4:$J$4,0),TRUE)","v":1},{"$f":"VLOOKUP(OFFSET($B:$B,,MATCH(AC$4,$B$4:$F$4,0)-1),OFFSET('C. PoC Adj Factor Scoring'!$E$5:$J$282,,MATCH(AC$4,'C. PoC Adj Factor Scoring'!$E$3:$AH$3,0)-1),MATCH(AC$2&\" Score\",'C. PoC Adj Factor Scoring'!$E$4:$J$4,0),TRUE)","v":1},{"$f":"VLOOKUP(OFFSET($B:$B,,MATCH(AD$4,$B$4:$F$4,0)-1),OFFSET('C. PoC Adj Factor Scoring'!$E$5:$J$282,,MATCH(AD$4,'C. PoC Adj Factor Scoring'!$E$3:$AH$3,0)-1),MATCH(AD$2&\" Score\",'C. PoC Adj Factor Scoring'!$E$4:$J$4,0),TRUE)","v":1},{"$f":"VLOOKUP(OFFSET($B:$B,,MATCH(AE$4,$B$4:$F$4,0)-1),OFFSET('C. PoC Adj Factor Scoring'!$E$5:$J$282,,MATCH(AE$4,'C. PoC Adj Factor Scoring'!$E$3:$AH$3,0)-1),MATCH(AE$2&\" Score\",'C. PoC Adj Factor Scoring'!$E$4:$J$4,0),TRUE)","v":1}]
[{"$f":"'A. Population Info'!A182","v":1000349884},{"$f":"'A. Population Info'!L182","v":"OIL"},{"$f":"'A. Population Info'!M182","v":0},{"$f":"'A. Population Info'!N182","v":0},{"$f":"'A. Population Info'!O182","v":0},{"$f":"'A. Population Info'!P182","v":0},{"$f":"VLOOKUP(OFFSET($B:$B,,MATCH(G$4,$B$4:$F$4,0)-1),OFFSET('C. PoC Adj Factor Scoring'!$E$5:$J$282,,MATCH(G$4,'C. PoC Adj Factor Scoring'!$E$3:$AH$3,0)-1),MATCH(G$2&\" Score\",'C. PoC Adj Factor Scoring'!$E$4:$J$4,0),TRUE)","v":4},{"$f":"VLOOKUP(OFFSET($B:$B,,MATCH(H$4,$B$4:$F$4,0)-1),OFFSET('C. PoC Adj Factor Scoring'!$E$5:$J$282,,MATCH(H$4,'C. PoC Adj Factor Scoring'!$E$3:$AH$3,0)-1),MATCH(H$2&\" Score\",'C. PoC Adj Factor Scoring'!$E$4:$J$4,0),TRUE)","v":1},{"$f":"VLOOKUP(OFFSET($B:$B,,MATCH(I$4,$B$4:$F$4,0)-1),OFFSET('C. PoC Adj Factor Scoring'!$E$5:$J$282,,MATCH(I$4,'C. PoC Adj Factor Scoring'!$E$3:$AH$3,0)-1),MATCH(I$2&\" Score\",'C. PoC Adj Factor Scoring'!$E$4:$J$4,0),TRUE)","v":1},{"$f":"VLOOKUP(OFFSET($B:$B,,MATCH(J$4,$B$4:$F$4,0)-1),OFFSET('C. PoC Adj Factor Scoring'!$E$5:$J$282,,MATCH(J$4,'C. PoC Adj Factor Scoring'!$E$3:$AH$3,0)-1),MATCH(J$2&\" Score\",'C. PoC Adj Factor Scoring'!$E$4:$J$4,0),TRUE)","v":1},{"$f":"VLOOKUP(OFFSET($B:$B,,MATCH(K$4,$B$4:$F$4,0)-1),OFFSET('C. PoC Adj Factor Scoring'!$E$5:$J$282,,MATCH(K$4,'C. PoC Adj Factor Scoring'!$E$3:$AH$3,0)-1),MATCH(K$2&\" Score\",'C. PoC Adj Factor Scoring'!$E$4:$J$4,0),TRUE)","v":1},{"$f":"VLOOKUP(OFFSET($B:$B,,MATCH(L$4,$B$4:$F$4,0)-1),OFFSET('C. PoC Adj Factor Scoring'!$E$5:$J$282,,MATCH(L$4,'C. PoC Adj Factor Scoring'!$E$3:$AH$3,0)-1),MATCH(L$2&\" Score\",'C. PoC Adj Factor Scoring'!$E$4:$J$4,0),TRUE)","v":1},{"$f":"VLOOKUP(OFFSET($B:$B,,MATCH(M$4,$B$4:$F$4,0)-1),OFFSET('C. PoC Adj Factor Scoring'!$E$5:$J$282,,MATCH(M$4,'C. PoC Adj Factor Scoring'!$E$3:$AH$3,0)-1),MATCH(M$2&\" Score\",'C. PoC Adj Factor Scoring'!$E$4:$J$4,0),TRUE)","v":1},{"$f":"VLOOKUP(OFFSET($B:$B,,MATCH(N$4,$B$4:$F$4,0)-1),OFFSET('C. PoC Adj Factor Scoring'!$E$5:$J$282,,MATCH(N$4,'C. PoC Adj Factor Scoring'!$E$3:$AH$3,0)-1),MATCH(N$2&\" Score\",'C. PoC Adj Factor Scoring'!$E$4:$J$4,0),TRUE)","v":1},{"$f":"VLOOKUP(OFFSET($B:$B,,MATCH(O$4,$B$4:$F$4,0)-1),OFFSET('C. PoC Adj Factor Scoring'!$E$5:$J$282,,MATCH(O$4,'C. PoC Adj Factor Scoring'!$E$3:$AH$3,0)-1),MATCH(O$2&\" Score\",'C. PoC Adj Factor Scoring'!$E$4:$J$4,0),TRUE)","v":1},{"$f":"VLOOKUP(OFFSET($B:$B,,MATCH(P$4,$B$4:$F$4,0)-1),OFFSET('C. PoC Adj Factor Scoring'!$E$5:$J$282,,MATCH(P$4,'C. PoC Adj Factor Scoring'!$E$3:$AH$3,0)-1),MATCH(P$2&\" Score\",'C. PoC Adj Factor Scoring'!$E$4:$J$4,0),TRUE)","v":1},{"$f":"VLOOKUP(OFFSET($B:$B,,MATCH(Q$4,$B$4:$F$4,0)-1),OFFSET('C. PoC Adj Factor Scoring'!$E$5:$J$282,,MATCH(Q$4,'C. PoC Adj Factor Scoring'!$E$3:$AH$3,0)-1),MATCH(Q$2&\" Score\",'C. PoC Adj Factor Scoring'!$E$4:$J$4,0),TRUE)","v":1},{"$f":"VLOOKUP(OFFSET($B:$B,,MATCH(R$4,$B$4:$F$4,0)-1),OFFSET('C. PoC Adj Factor Scoring'!$E$5:$J$282,,MATCH(R$4,'C. PoC Adj Factor Scoring'!$E$3:$AH$3,0)-1),MATCH(R$2&\" Score\",'C. PoC Adj Factor Scoring'!$E$4:$J$4,0),TRUE)","v":1},{"$f":"VLOOKUP(OFFSET($B:$B,,MATCH(S$4,$B$4:$F$4,0)-1),OFFSET('C. PoC Adj Factor Scoring'!$E$5:$J$282,,MATCH(S$4,'C. PoC Adj Factor Scoring'!$E$3:$AH$3,0)-1),MATCH(S$2&\" Score\",'C. PoC Adj Factor Scoring'!$E$4:$J$4,0),TRUE)","v":1},{"$f":"VLOOKUP(OFFSET($B:$B,,MATCH(T$4,$B$4:$F$4,0)-1),OFFSET('C. PoC Adj Factor Scoring'!$E$5:$J$282,,MATCH(T$4,'C. PoC Adj Factor Scoring'!$E$3:$AH$3,0)-1),MATCH(T$2&\" Score\",'C. PoC Adj Factor Scoring'!$E$4:$J$4,0),TRUE)","v":1},{"$f":"VLOOKUP(OFFSET($B:$B,,MATCH(U$4,$B$4:$F$4,0)-1),OFFSET('C. PoC Adj Factor Scoring'!$E$5:$J$282,,MATCH(U$4,'C. PoC Adj Factor Scoring'!$E$3:$AH$3,0)-1),MATCH(U$2&\" Score\",'C. PoC Adj Factor Scoring'!$E$4:$J$4,0),TRUE)","v":1},{"$f":"VLOOKUP(OFFSET($B:$B,,MATCH(V$4,$B$4:$F$4,0)-1),OFFSET('C. PoC Adj Factor Scoring'!$E$5:$J$282,,MATCH(V$4,'C. PoC Adj Factor Scoring'!$E$3:$AH$3,0)-1),MATCH(V$2&\" Score\",'C. PoC Adj Factor Scoring'!$E$4:$J$4,0),TRUE)","v":1},{"$f":"VLOOKUP(OFFSET($B:$B,,MATCH(W$4,$B$4:$F$4,0)-1),OFFSET('C. PoC Adj Factor Scoring'!$E$5:$J$282,,MATCH(W$4,'C. PoC Adj Factor Scoring'!$E$3:$AH$3,0)-1),MATCH(W$2&\" Score\",'C. PoC Adj Factor Scoring'!$E$4:$J$4,0),TRUE)","v":1},{"$f":"VLOOKUP(OFFSET($B:$B,,MATCH(X$4,$B$4:$F$4,0)-1),OFFSET('C. PoC Adj Factor Scoring'!$E$5:$J$282,,MATCH(X$4,'C. PoC Adj Factor Scoring'!$E$3:$AH$3,0)-1),MATCH(X$2&\" Score\",'C. PoC Adj Factor Scoring'!$E$4:$J$4,0),TRUE)","v":1},{"$f":"VLOOKUP(OFFSET($B:$B,,MATCH(Y$4,$B$4:$F$4,0)-1),OFFSET('C. PoC Adj Factor Scoring'!$E$5:$J$282,,MATCH(Y$4,'C. PoC Adj Factor Scoring'!$E$3:$AH$3,0)-1),MATCH(Y$2&\" Score\",'C. PoC Adj Factor Scoring'!$E$4:$J$4,0),TRUE)","v":1},{"$f":"VLOOKUP(OFFSET($B:$B,,MATCH(Z$4,$B$4:$F$4,0)-1),OFFSET('C. PoC Adj Factor Scoring'!$E$5:$J$282,,MATCH(Z$4,'C. PoC Adj Factor Scoring'!$E$3:$AH$3,0)-1),MATCH(Z$2&\" Score\",'C. PoC Adj Factor Scoring'!$E$4:$J$4,0),TRUE)","v":1},{"$f":"VLOOKUP(OFFSET($B:$B,,MATCH(AA$4,$B$4:$F$4,0)-1),OFFSET('C. PoC Adj Factor Scoring'!$E$5:$J$282,,MATCH(AA$4,'C. PoC Adj Factor Scoring'!$E$3:$AH$3,0)-1),MATCH(AA$2&\" Score\",'C. PoC Adj Factor Scoring'!$E$4:$J$4,0),TRUE)","v":3},{"$f":"VLOOKUP(OFFSET($B:$B,,MATCH(AB$4,$B$4:$F$4,0)-1),OFFSET('C. PoC Adj Factor Scoring'!$E$5:$J$282,,MATCH(AB$4,'C. PoC Adj Factor Scoring'!$E$3:$AH$3,0)-1),MATCH(AB$2&\" Score\",'C. PoC Adj Factor Scoring'!$E$4:$J$4,0),TRUE)","v":1},{"$f":"VLOOKUP(OFFSET($B:$B,,MATCH(AC$4,$B$4:$F$4,0)-1),OFFSET('C. PoC Adj Factor Scoring'!$E$5:$J$282,,MATCH(AC$4,'C. PoC Adj Factor Scoring'!$E$3:$AH$3,0)-1),MATCH(AC$2&\" Score\",'C. PoC Adj Factor Scoring'!$E$4:$J$4,0),TRUE)","v":1},{"$f":"VLOOKUP(OFFSET($B:$B,,MATCH(AD$4,$B$4:$F$4,0)-1),OFFSET('C. PoC Adj Factor Scoring'!$E$5:$J$282,,MATCH(AD$4,'C. PoC Adj Factor Scoring'!$E$3:$AH$3,0)-1),MATCH(AD$2&\" Score\",'C. PoC Adj Factor Scoring'!$E$4:$J$4,0),TRUE)","v":1},{"$f":"VLOOKUP(OFFSET($B:$B,,MATCH(AE$4,$B$4:$F$4,0)-1),OFFSET('C. PoC Adj Factor Scoring'!$E$5:$J$282,,MATCH(AE$4,'C. PoC Adj Factor Scoring'!$E$3:$AH$3,0)-1),MATCH(AE$2&\" Score\",'C. PoC Adj Factor Scoring'!$E$4:$J$4,0),TRUE)","v":1}]
[{"$f":"'A. Population Info'!A183","v":1000349913},{"$f":"'A. Population Info'!L183","v":"OIL"},{"$f":"'A. Population Info'!M183","v":0},{"$f":"'A. Population Info'!N183","v":0},{"$f":"'A. Population Info'!O183","v":0},{"$f":"'A. Population Info'!P183","v":0},{"$f":"VLOOKUP(OFFSET($B:$B,,MATCH(G$4,$B$4:$F$4,0)-1),OFFSET('C. PoC Adj Factor Scoring'!$E$5:$J$282,,MATCH(G$4,'C. PoC Adj Factor Scoring'!$E$3:$AH$3,0)-1),MATCH(G$2&\" Score\",'C. PoC Adj Factor Scoring'!$E$4:$J$4,0),TRUE)","v":4},{"$f":"VLOOKUP(OFFSET($B:$B,,MATCH(H$4,$B$4:$F$4,0)-1),OFFSET('C. PoC Adj Factor Scoring'!$E$5:$J$282,,MATCH(H$4,'C. PoC Adj Factor Scoring'!$E$3:$AH$3,0)-1),MATCH(H$2&\" Score\",'C. PoC Adj Factor Scoring'!$E$4:$J$4,0),TRUE)","v":1},{"$f":"VLOOKUP(OFFSET($B:$B,,MATCH(I$4,$B$4:$F$4,0)-1),OFFSET('C. PoC Adj Factor Scoring'!$E$5:$J$282,,MATCH(I$4,'C. PoC Adj Factor Scoring'!$E$3:$AH$3,0)-1),MATCH(I$2&\" Score\",'C. PoC Adj Factor Scoring'!$E$4:$J$4,0),TRUE)","v":1},{"$f":"VLOOKUP(OFFSET($B:$B,,MATCH(J$4,$B$4:$F$4,0)-1),OFFSET('C. PoC Adj Factor Scoring'!$E$5:$J$282,,MATCH(J$4,'C. PoC Adj Factor Scoring'!$E$3:$AH$3,0)-1),MATCH(J$2&\" Score\",'C. PoC Adj Factor Scoring'!$E$4:$J$4,0),TRUE)","v":1},{"$f":"VLOOKUP(OFFSET($B:$B,,MATCH(K$4,$B$4:$F$4,0)-1),OFFSET('C. PoC Adj Factor Scoring'!$E$5:$J$282,,MATCH(K$4,'C. PoC Adj Factor Scoring'!$E$3:$AH$3,0)-1),MATCH(K$2&\" Score\",'C. PoC Adj Factor Scoring'!$E$4:$J$4,0),TRUE)","v":1},{"$f":"VLOOKUP(OFFSET($B:$B,,MATCH(L$4,$B$4:$F$4,0)-1),OFFSET('C. PoC Adj Factor Scoring'!$E$5:$J$282,,MATCH(L$4,'C. PoC Adj Factor Scoring'!$E$3:$AH$3,0)-1),MATCH(L$2&\" Score\",'C. PoC Adj Factor Scoring'!$E$4:$J$4,0),TRUE)","v":1},{"$f":"VLOOKUP(OFFSET($B:$B,,MATCH(M$4,$B$4:$F$4,0)-1),OFFSET('C. PoC Adj Factor Scoring'!$E$5:$J$282,,MATCH(M$4,'C. PoC Adj Factor Scoring'!$E$3:$AH$3,0)-1),MATCH(M$2&\" Score\",'C. PoC Adj Factor Scoring'!$E$4:$J$4,0),TRUE)","v":1},{"$f":"VLOOKUP(OFFSET($B:$B,,MATCH(N$4,$B$4:$F$4,0)-1),OFFSET('C. PoC Adj Factor Scoring'!$E$5:$J$282,,MATCH(N$4,'C. PoC Adj Factor Scoring'!$E$3:$AH$3,0)-1),MATCH(N$2&\" Score\",'C. PoC Adj Factor Scoring'!$E$4:$J$4,0),TRUE)","v":1},{"$f":"VLOOKUP(OFFSET($B:$B,,MATCH(O$4,$B$4:$F$4,0)-1),OFFSET('C. PoC Adj Factor Scoring'!$E$5:$J$282,,MATCH(O$4,'C. PoC Adj Factor Scoring'!$E$3:$AH$3,0)-1),MATCH(O$2&\" Score\",'C. PoC Adj Factor Scoring'!$E$4:$J$4,0),TRUE)","v":1},{"$f":"VLOOKUP(OFFSET($B:$B,,MATCH(P$4,$B$4:$F$4,0)-1),OFFSET('C. PoC Adj Factor Scoring'!$E$5:$J$282,,MATCH(P$4,'C. PoC Adj Factor Scoring'!$E$3:$AH$3,0)-1),MATCH(P$2&\" Score\",'C. PoC Adj Factor Scoring'!$E$4:$J$4,0),TRUE)","v":1},{"$f":"VLOOKUP(OFFSET($B:$B,,MATCH(Q$4,$B$4:$F$4,0)-1),OFFSET('C. PoC Adj Factor Scoring'!$E$5:$J$282,,MATCH(Q$4,'C. PoC Adj Factor Scoring'!$E$3:$AH$3,0)-1),MATCH(Q$2&\" Score\",'C. PoC Adj Factor Scoring'!$E$4:$J$4,0),TRUE)","v":1},{"$f":"VLOOKUP(OFFSET($B:$B,,MATCH(R$4,$B$4:$F$4,0)-1),OFFSET('C. PoC Adj Factor Scoring'!$E$5:$J$282,,MATCH(R$4,'C. PoC Adj Factor Scoring'!$E$3:$AH$3,0)-1),MATCH(R$2&\" Score\",'C. PoC Adj Factor Scoring'!$E$4:$J$4,0),TRUE)","v":1},{"$f":"VLOOKUP(OFFSET($B:$B,,MATCH(S$4,$B$4:$F$4,0)-1),OFFSET('C. PoC Adj Factor Scoring'!$E$5:$J$282,,MATCH(S$4,'C. PoC Adj Factor Scoring'!$E$3:$AH$3,0)-1),MATCH(S$2&\" Score\",'C. PoC Adj Factor Scoring'!$E$4:$J$4,0),TRUE)","v":1},{"$f":"VLOOKUP(OFFSET($B:$B,,MATCH(T$4,$B$4:$F$4,0)-1),OFFSET('C. PoC Adj Factor Scoring'!$E$5:$J$282,,MATCH(T$4,'C. PoC Adj Factor Scoring'!$E$3:$AH$3,0)-1),MATCH(T$2&\" Score\",'C. PoC Adj Factor Scoring'!$E$4:$J$4,0),TRUE)","v":1},{"$f":"VLOOKUP(OFFSET($B:$B,,MATCH(U$4,$B$4:$F$4,0)-1),OFFSET('C. PoC Adj Factor Scoring'!$E$5:$J$282,,MATCH(U$4,'C. PoC Adj Factor Scoring'!$E$3:$AH$3,0)-1),MATCH(U$2&\" Score\",'C. PoC Adj Factor Scoring'!$E$4:$J$4,0),TRUE)","v":1},{"$f":"VLOOKUP(OFFSET($B:$B,,MATCH(V$4,$B$4:$F$4,0)-1),OFFSET('C. PoC Adj Factor Scoring'!$E$5:$J$282,,MATCH(V$4,'C. PoC Adj Factor Scoring'!$E$3:$AH$3,0)-1),MATCH(V$2&\" Score\",'C. PoC Adj Factor Scoring'!$E$4:$J$4,0),TRUE)","v":1},{"$f":"VLOOKUP(OFFSET($B:$B,,MATCH(W$4,$B$4:$F$4,0)-1),OFFSET('C. PoC Adj Factor Scoring'!$E$5:$J$282,,MATCH(W$4,'C. PoC Adj Factor Scoring'!$E$3:$AH$3,0)-1),MATCH(W$2&\" Score\",'C. PoC Adj Factor Scoring'!$E$4:$J$4,0),TRUE)","v":1},{"$f":"VLOOKUP(OFFSET($B:$B,,MATCH(X$4,$B$4:$F$4,0)-1),OFFSET('C. PoC Adj Factor Scoring'!$E$5:$J$282,,MATCH(X$4,'C. PoC Adj Factor Scoring'!$E$3:$AH$3,0)-1),MATCH(X$2&\" Score\",'C. PoC Adj Factor Scoring'!$E$4:$J$4,0),TRUE)","v":1},{"$f":"VLOOKUP(OFFSET($B:$B,,MATCH(Y$4,$B$4:$F$4,0)-1),OFFSET('C. PoC Adj Factor Scoring'!$E$5:$J$282,,MATCH(Y$4,'C. PoC Adj Factor Scoring'!$E$3:$AH$3,0)-1),MATCH(Y$2&\" Score\",'C. PoC Adj Factor Scoring'!$E$4:$J$4,0),TRUE)","v":1},{"$f":"VLOOKUP(OFFSET($B:$B,,MATCH(Z$4,$B$4:$F$4,0)-1),OFFSET('C. PoC Adj Factor Scoring'!$E$5:$J$282,,MATCH(Z$4,'C. PoC Adj Factor Scoring'!$E$3:$AH$3,0)-1),MATCH(Z$2&\" Score\",'C. PoC Adj Factor Scoring'!$E$4:$J$4,0),TRUE)","v":1},{"$f":"VLOOKUP(OFFSET($B:$B,,MATCH(AA$4,$B$4:$F$4,0)-1),OFFSET('C. PoC Adj Factor Scoring'!$E$5:$J$282,,MATCH(AA$4,'C. PoC Adj Factor Scoring'!$E$3:$AH$3,0)-1),MATCH(AA$2&\" Score\",'C. PoC Adj Factor Scoring'!$E$4:$J$4,0),TRUE)","v":3},{"$f":"VLOOKUP(OFFSET($B:$B,,MATCH(AB$4,$B$4:$F$4,0)-1),OFFSET('C. PoC Adj Factor Scoring'!$E$5:$J$282,,MATCH(AB$4,'C. PoC Adj Factor Scoring'!$E$3:$AH$3,0)-1),MATCH(AB$2&\" Score\",'C. PoC Adj Factor Scoring'!$E$4:$J$4,0),TRUE)","v":1},{"$f":"VLOOKUP(OFFSET($B:$B,,MATCH(AC$4,$B$4:$F$4,0)-1),OFFSET('C. PoC Adj Factor Scoring'!$E$5:$J$282,,MATCH(AC$4,'C. PoC Adj Factor Scoring'!$E$3:$AH$3,0)-1),MATCH(AC$2&\" Score\",'C. PoC Adj Factor Scoring'!$E$4:$J$4,0),TRUE)","v":1},{"$f":"VLOOKUP(OFFSET($B:$B,,MATCH(AD$4,$B$4:$F$4,0)-1),OFFSET('C. PoC Adj Factor Scoring'!$E$5:$J$282,,MATCH(AD$4,'C. PoC Adj Factor Scoring'!$E$3:$AH$3,0)-1),MATCH(AD$2&\" Score\",'C. PoC Adj Factor Scoring'!$E$4:$J$4,0),TRUE)","v":1},{"$f":"VLOOKUP(OFFSET($B:$B,,MATCH(AE$4,$B$4:$F$4,0)-1),OFFSET('C. PoC Adj Factor Scoring'!$E$5:$J$282,,MATCH(AE$4,'C. PoC Adj Factor Scoring'!$E$3:$AH$3,0)-1),MATCH(AE$2&\" Score\",'C. PoC Adj Factor Scoring'!$E$4:$J$4,0),TRUE)","v":1}]
[{"$f":"'A. Population Info'!A184","v":1000349939},{"$f":"'A. Population Info'!L184","v":"OIL"},{"$f":"'A. Population Info'!M184","v":0},{"$f":"'A. Population Info'!N184","v":0},{"$f":"'A. Population Info'!O184","v":0},{"$f":"'A. Population Info'!P184","v":0},{"$f":"VLOOKUP(OFFSET($B:$B,,MATCH(G$4,$B$4:$F$4,0)-1),OFFSET('C. PoC Adj Factor Scoring'!$E$5:$J$282,,MATCH(G$4,'C. PoC Adj Factor Scoring'!$E$3:$AH$3,0)-1),MATCH(G$2&\" Score\",'C. PoC Adj Factor Scoring'!$E$4:$J$4,0),TRUE)","v":4},{"$f":"VLOOKUP(OFFSET($B:$B,,MATCH(H$4,$B$4:$F$4,0)-1),OFFSET('C. PoC Adj Factor Scoring'!$E$5:$J$282,,MATCH(H$4,'C. PoC Adj Factor Scoring'!$E$3:$AH$3,0)-1),MATCH(H$2&\" Score\",'C. PoC Adj Factor Scoring'!$E$4:$J$4,0),TRUE)","v":1},{"$f":"VLOOKUP(OFFSET($B:$B,,MATCH(I$4,$B$4:$F$4,0)-1),OFFSET('C. PoC Adj Factor Scoring'!$E$5:$J$282,,MATCH(I$4,'C. PoC Adj Factor Scoring'!$E$3:$AH$3,0)-1),MATCH(I$2&\" Score\",'C. PoC Adj Factor Scoring'!$E$4:$J$4,0),TRUE)","v":1},{"$f":"VLOOKUP(OFFSET($B:$B,,MATCH(J$4,$B$4:$F$4,0)-1),OFFSET('C. PoC Adj Factor Scoring'!$E$5:$J$282,,MATCH(J$4,'C. PoC Adj Factor Scoring'!$E$3:$AH$3,0)-1),MATCH(J$2&\" Score\",'C. PoC Adj Factor Scoring'!$E$4:$J$4,0),TRUE)","v":1},{"$f":"VLOOKUP(OFFSET($B:$B,,MATCH(K$4,$B$4:$F$4,0)-1),OFFSET('C. PoC Adj Factor Scoring'!$E$5:$J$282,,MATCH(K$4,'C. PoC Adj Factor Scoring'!$E$3:$AH$3,0)-1),MATCH(K$2&\" Score\",'C. PoC Adj Factor Scoring'!$E$4:$J$4,0),TRUE)","v":1},{"$f":"VLOOKUP(OFFSET($B:$B,,MATCH(L$4,$B$4:$F$4,0)-1),OFFSET('C. PoC Adj Factor Scoring'!$E$5:$J$282,,MATCH(L$4,'C. PoC Adj Factor Scoring'!$E$3:$AH$3,0)-1),MATCH(L$2&\" Score\",'C. PoC Adj Factor Scoring'!$E$4:$J$4,0),TRUE)","v":1},{"$f":"VLOOKUP(OFFSET($B:$B,,MATCH(M$4,$B$4:$F$4,0)-1),OFFSET('C. PoC Adj Factor Scoring'!$E$5:$J$282,,MATCH(M$4,'C. PoC Adj Factor Scoring'!$E$3:$AH$3,0)-1),MATCH(M$2&\" Score\",'C. PoC Adj Factor Scoring'!$E$4:$J$4,0),TRUE)","v":1},{"$f":"VLOOKUP(OFFSET($B:$B,,MATCH(N$4,$B$4:$F$4,0)-1),OFFSET('C. PoC Adj Factor Scoring'!$E$5:$J$282,,MATCH(N$4,'C. PoC Adj Factor Scoring'!$E$3:$AH$3,0)-1),MATCH(N$2&\" Score\",'C. PoC Adj Factor Scoring'!$E$4:$J$4,0),TRUE)","v":1},{"$f":"VLOOKUP(OFFSET($B:$B,,MATCH(O$4,$B$4:$F$4,0)-1),OFFSET('C. PoC Adj Factor Scoring'!$E$5:$J$282,,MATCH(O$4,'C. PoC Adj Factor Scoring'!$E$3:$AH$3,0)-1),MATCH(O$2&\" Score\",'C. PoC Adj Factor Scoring'!$E$4:$J$4,0),TRUE)","v":1},{"$f":"VLOOKUP(OFFSET($B:$B,,MATCH(P$4,$B$4:$F$4,0)-1),OFFSET('C. PoC Adj Factor Scoring'!$E$5:$J$282,,MATCH(P$4,'C. PoC Adj Factor Scoring'!$E$3:$AH$3,0)-1),MATCH(P$2&\" Score\",'C. PoC Adj Factor Scoring'!$E$4:$J$4,0),TRUE)","v":1},{"$f":"VLOOKUP(OFFSET($B:$B,,MATCH(Q$4,$B$4:$F$4,0)-1),OFFSET('C. PoC Adj Factor Scoring'!$E$5:$J$282,,MATCH(Q$4,'C. PoC Adj Factor Scoring'!$E$3:$AH$3,0)-1),MATCH(Q$2&\" Score\",'C. PoC Adj Factor Scoring'!$E$4:$J$4,0),TRUE)","v":1},{"$f":"VLOOKUP(OFFSET($B:$B,,MATCH(R$4,$B$4:$F$4,0)-1),OFFSET('C. PoC Adj Factor Scoring'!$E$5:$J$282,,MATCH(R$4,'C. PoC Adj Factor Scoring'!$E$3:$AH$3,0)-1),MATCH(R$2&\" Score\",'C. PoC Adj Factor Scoring'!$E$4:$J$4,0),TRUE)","v":1},{"$f":"VLOOKUP(OFFSET($B:$B,,MATCH(S$4,$B$4:$F$4,0)-1),OFFSET('C. PoC Adj Factor Scoring'!$E$5:$J$282,,MATCH(S$4,'C. PoC Adj Factor Scoring'!$E$3:$AH$3,0)-1),MATCH(S$2&\" Score\",'C. PoC Adj Factor Scoring'!$E$4:$J$4,0),TRUE)","v":1},{"$f":"VLOOKUP(OFFSET($B:$B,,MATCH(T$4,$B$4:$F$4,0)-1),OFFSET('C. PoC Adj Factor Scoring'!$E$5:$J$282,,MATCH(T$4,'C. PoC Adj Factor Scoring'!$E$3:$AH$3,0)-1),MATCH(T$2&\" Score\",'C. PoC Adj Factor Scoring'!$E$4:$J$4,0),TRUE)","v":1},{"$f":"VLOOKUP(OFFSET($B:$B,,MATCH(U$4,$B$4:$F$4,0)-1),OFFSET('C. PoC Adj Factor Scoring'!$E$5:$J$282,,MATCH(U$4,'C. PoC Adj Factor Scoring'!$E$3:$AH$3,0)-1),MATCH(U$2&\" Score\",'C. PoC Adj Factor Scoring'!$E$4:$J$4,0),TRUE)","v":1},{"$f":"VLOOKUP(OFFSET($B:$B,,MATCH(V$4,$B$4:$F$4,0)-1),OFFSET('C. PoC Adj Factor Scoring'!$E$5:$J$282,,MATCH(V$4,'C. PoC Adj Factor Scoring'!$E$3:$AH$3,0)-1),MATCH(V$2&\" Score\",'C. PoC Adj Factor Scoring'!$E$4:$J$4,0),TRUE)","v":1},{"$f":"VLOOKUP(OFFSET($B:$B,,MATCH(W$4,$B$4:$F$4,0)-1),OFFSET('C. PoC Adj Factor Scoring'!$E$5:$J$282,,MATCH(W$4,'C. PoC Adj Factor Scoring'!$E$3:$AH$3,0)-1),MATCH(W$2&\" Score\",'C. PoC Adj Factor Scoring'!$E$4:$J$4,0),TRUE)","v":1},{"$f":"VLOOKUP(OFFSET($B:$B,,MATCH(X$4,$B$4:$F$4,0)-1),OFFSET('C. PoC Adj Factor Scoring'!$E$5:$J$282,,MATCH(X$4,'C. PoC Adj Factor Scoring'!$E$3:$AH$3,0)-1),MATCH(X$2&\" Score\",'C. PoC Adj Factor Scoring'!$E$4:$J$4,0),TRUE)","v":1},{"$f":"VLOOKUP(OFFSET($B:$B,,MATCH(Y$4,$B$4:$F$4,0)-1),OFFSET('C. PoC Adj Factor Scoring'!$E$5:$J$282,,MATCH(Y$4,'C. PoC Adj Factor Scoring'!$E$3:$AH$3,0)-1),MATCH(Y$2&\" Score\",'C. PoC Adj Factor Scoring'!$E$4:$J$4,0),TRUE)","v":1},{"$f":"VLOOKUP(OFFSET($B:$B,,MATCH(Z$4,$B$4:$F$4,0)-1),OFFSET('C. PoC Adj Factor Scoring'!$E$5:$J$282,,MATCH(Z$4,'C. PoC Adj Factor Scoring'!$E$3:$AH$3,0)-1),MATCH(Z$2&\" Score\",'C. PoC Adj Factor Scoring'!$E$4:$J$4,0),TRUE)","v":1},{"$f":"VLOOKUP(OFFSET($B:$B,,MATCH(AA$4,$B$4:$F$4,0)-1),OFFSET('C. PoC Adj Factor Scoring'!$E$5:$J$282,,MATCH(AA$4,'C. PoC Adj Factor Scoring'!$E$3:$AH$3,0)-1),MATCH(AA$2&\" Score\",'C. PoC Adj Factor Scoring'!$E$4:$J$4,0),TRUE)","v":3},{"$f":"VLOOKUP(OFFSET($B:$B,,MATCH(AB$4,$B$4:$F$4,0)-1),OFFSET('C. PoC Adj Factor Scoring'!$E$5:$J$282,,MATCH(AB$4,'C. PoC Adj Factor Scoring'!$E$3:$AH$3,0)-1),MATCH(AB$2&\" Score\",'C. PoC Adj Factor Scoring'!$E$4:$J$4,0),TRUE)","v":1},{"$f":"VLOOKUP(OFFSET($B:$B,,MATCH(AC$4,$B$4:$F$4,0)-1),OFFSET('C. PoC Adj Factor Scoring'!$E$5:$J$282,,MATCH(AC$4,'C. PoC Adj Factor Scoring'!$E$3:$AH$3,0)-1),MATCH(AC$2&\" Score\",'C. PoC Adj Factor Scoring'!$E$4:$J$4,0),TRUE)","v":1},{"$f":"VLOOKUP(OFFSET($B:$B,,MATCH(AD$4,$B$4:$F$4,0)-1),OFFSET('C. PoC Adj Factor Scoring'!$E$5:$J$282,,MATCH(AD$4,'C. PoC Adj Factor Scoring'!$E$3:$AH$3,0)-1),MATCH(AD$2&\" Score\",'C. PoC Adj Factor Scoring'!$E$4:$J$4,0),TRUE)","v":1},{"$f":"VLOOKUP(OFFSET($B:$B,,MATCH(AE$4,$B$4:$F$4,0)-1),OFFSET('C. PoC Adj Factor Scoring'!$E$5:$J$282,,MATCH(AE$4,'C. PoC Adj Factor Scoring'!$E$3:$AH$3,0)-1),MATCH(AE$2&\" Score\",'C. PoC Adj Factor Scoring'!$E$4:$J$4,0),TRUE)","v":1}]
[{"$f":"'A. Population Info'!A185","v":1000349972},{"$f":"'A. Population Info'!L185","v":"OIL"},{"$f":"'A. Population Info'!M185","v":0},{"$f":"'A. Population Info'!N185","v":0},{"$f":"'A. Population Info'!O185","v":0},{"$f":"'A. Population Info'!P185","v":0},{"$f":"VLOOKUP(OFFSET($B:$B,,MATCH(G$4,$B$4:$F$4,0)-1),OFFSET('C. PoC Adj Factor Scoring'!$E$5:$J$282,,MATCH(G$4,'C. PoC Adj Factor Scoring'!$E$3:$AH$3,0)-1),MATCH(G$2&\" Score\",'C. PoC Adj Factor Scoring'!$E$4:$J$4,0),TRUE)","v":4},{"$f":"VLOOKUP(OFFSET($B:$B,,MATCH(H$4,$B$4:$F$4,0)-1),OFFSET('C. PoC Adj Factor Scoring'!$E$5:$J$282,,MATCH(H$4,'C. PoC Adj Factor Scoring'!$E$3:$AH$3,0)-1),MATCH(H$2&\" Score\",'C. PoC Adj Factor Scoring'!$E$4:$J$4,0),TRUE)","v":1},{"$f":"VLOOKUP(OFFSET($B:$B,,MATCH(I$4,$B$4:$F$4,0)-1),OFFSET('C. PoC Adj Factor Scoring'!$E$5:$J$282,,MATCH(I$4,'C. PoC Adj Factor Scoring'!$E$3:$AH$3,0)-1),MATCH(I$2&\" Score\",'C. PoC Adj Factor Scoring'!$E$4:$J$4,0),TRUE)","v":1},{"$f":"VLOOKUP(OFFSET($B:$B,,MATCH(J$4,$B$4:$F$4,0)-1),OFFSET('C. PoC Adj Factor Scoring'!$E$5:$J$282,,MATCH(J$4,'C. PoC Adj Factor Scoring'!$E$3:$AH$3,0)-1),MATCH(J$2&\" Score\",'C. PoC Adj Factor Scoring'!$E$4:$J$4,0),TRUE)","v":1},{"$f":"VLOOKUP(OFFSET($B:$B,,MATCH(K$4,$B$4:$F$4,0)-1),OFFSET('C. PoC Adj Factor Scoring'!$E$5:$J$282,,MATCH(K$4,'C. PoC Adj Factor Scoring'!$E$3:$AH$3,0)-1),MATCH(K$2&\" Score\",'C. PoC Adj Factor Scoring'!$E$4:$J$4,0),TRUE)","v":1},{"$f":"VLOOKUP(OFFSET($B:$B,,MATCH(L$4,$B$4:$F$4,0)-1),OFFSET('C. PoC Adj Factor Scoring'!$E$5:$J$282,,MATCH(L$4,'C. PoC Adj Factor Scoring'!$E$3:$AH$3,0)-1),MATCH(L$2&\" Score\",'C. PoC Adj Factor Scoring'!$E$4:$J$4,0),TRUE)","v":1},{"$f":"VLOOKUP(OFFSET($B:$B,,MATCH(M$4,$B$4:$F$4,0)-1),OFFSET('C. PoC Adj Factor Scoring'!$E$5:$J$282,,MATCH(M$4,'C. PoC Adj Factor Scoring'!$E$3:$AH$3,0)-1),MATCH(M$2&\" Score\",'C. PoC Adj Factor Scoring'!$E$4:$J$4,0),TRUE)","v":1},{"$f":"VLOOKUP(OFFSET($B:$B,,MATCH(N$4,$B$4:$F$4,0)-1),OFFSET('C. PoC Adj Factor Scoring'!$E$5:$J$282,,MATCH(N$4,'C. PoC Adj Factor Scoring'!$E$3:$AH$3,0)-1),MATCH(N$2&\" Score\",'C. PoC Adj Factor Scoring'!$E$4:$J$4,0),TRUE)","v":1},{"$f":"VLOOKUP(OFFSET($B:$B,,MATCH(O$4,$B$4:$F$4,0)-1),OFFSET('C. PoC Adj Factor Scoring'!$E$5:$J$282,,MATCH(O$4,'C. PoC Adj Factor Scoring'!$E$3:$AH$3,0)-1),MATCH(O$2&\" Score\",'C. PoC Adj Factor Scoring'!$E$4:$J$4,0),TRUE)","v":1},{"$f":"VLOOKUP(OFFSET($B:$B,,MATCH(P$4,$B$4:$F$4,0)-1),OFFSET('C. PoC Adj Factor Scoring'!$E$5:$J$282,,MATCH(P$4,'C. PoC Adj Factor Scoring'!$E$3:$AH$3,0)-1),MATCH(P$2&\" Score\",'C. PoC Adj Factor Scoring'!$E$4:$J$4,0),TRUE)","v":1},{"$f":"VLOOKUP(OFFSET($B:$B,,MATCH(Q$4,$B$4:$F$4,0)-1),OFFSET('C. PoC Adj Factor Scoring'!$E$5:$J$282,,MATCH(Q$4,'C. PoC Adj Factor Scoring'!$E$3:$AH$3,0)-1),MATCH(Q$2&\" Score\",'C. PoC Adj Factor Scoring'!$E$4:$J$4,0),TRUE)","v":1},{"$f":"VLOOKUP(OFFSET($B:$B,,MATCH(R$4,$B$4:$F$4,0)-1),OFFSET('C. PoC Adj Factor Scoring'!$E$5:$J$282,,MATCH(R$4,'C. PoC Adj Factor Scoring'!$E$3:$AH$3,0)-1),MATCH(R$2&\" Score\",'C. PoC Adj Factor Scoring'!$E$4:$J$4,0),TRUE)","v":1},{"$f":"VLOOKUP(OFFSET($B:$B,,MATCH(S$4,$B$4:$F$4,0)-1),OFFSET('C. PoC Adj Factor Scoring'!$E$5:$J$282,,MATCH(S$4,'C. PoC Adj Factor Scoring'!$E$3:$AH$3,0)-1),MATCH(S$2&\" Score\",'C. PoC Adj Factor Scoring'!$E$4:$J$4,0),TRUE)","v":1},{"$f":"VLOOKUP(OFFSET($B:$B,,MATCH(T$4,$B$4:$F$4,0)-1),OFFSET('C. PoC Adj Factor Scoring'!$E$5:$J$282,,MATCH(T$4,'C. PoC Adj Factor Scoring'!$E$3:$AH$3,0)-1),MATCH(T$2&\" Score\",'C. PoC Adj Factor Scoring'!$E$4:$J$4,0),TRUE)","v":1},{"$f":"VLOOKUP(OFFSET($B:$B,,MATCH(U$4,$B$4:$F$4,0)-1),OFFSET('C. PoC Adj Factor Scoring'!$E$5:$J$282,,MATCH(U$4,'C. PoC Adj Factor Scoring'!$E$3:$AH$3,0)-1),MATCH(U$2&\" Score\",'C. PoC Adj Factor Scoring'!$E$4:$J$4,0),TRUE)","v":1},{"$f":"VLOOKUP(OFFSET($B:$B,,MATCH(V$4,$B$4:$F$4,0)-1),OFFSET('C. PoC Adj Factor Scoring'!$E$5:$J$282,,MATCH(V$4,'C. PoC Adj Factor Scoring'!$E$3:$AH$3,0)-1),MATCH(V$2&\" Score\",'C. PoC Adj Factor Scoring'!$E$4:$J$4,0),TRUE)","v":1},{"$f":"VLOOKUP(OFFSET($B:$B,,MATCH(W$4,$B$4:$F$4,0)-1),OFFSET('C. PoC Adj Factor Scoring'!$E$5:$J$282,,MATCH(W$4,'C. PoC Adj Factor Scoring'!$E$3:$AH$3,0)-1),MATCH(W$2&\" Score\",'C. PoC Adj Factor Scoring'!$E$4:$J$4,0),TRUE)","v":1},{"$f":"VLOOKUP(OFFSET($B:$B,,MATCH(X$4,$B$4:$F$4,0)-1),OFFSET('C. PoC Adj Factor Scoring'!$E$5:$J$282,,MATCH(X$4,'C. PoC Adj Factor Scoring'!$E$3:$AH$3,0)-1),MATCH(X$2&\" Score\",'C. PoC Adj Factor Scoring'!$E$4:$J$4,0),TRUE)","v":1},{"$f":"VLOOKUP(OFFSET($B:$B,,MATCH(Y$4,$B$4:$F$4,0)-1),OFFSET('C. PoC Adj Factor Scoring'!$E$5:$J$282,,MATCH(Y$4,'C. PoC Adj Factor Scoring'!$E$3:$AH$3,0)-1),MATCH(Y$2&\" Score\",'C. PoC Adj Factor Scoring'!$E$4:$J$4,0),TRUE)","v":1},{"$f":"VLOOKUP(OFFSET($B:$B,,MATCH(Z$4,$B$4:$F$4,0)-1),OFFSET('C. PoC Adj Factor Scoring'!$E$5:$J$282,,MATCH(Z$4,'C. PoC Adj Factor Scoring'!$E$3:$AH$3,0)-1),MATCH(Z$2&\" Score\",'C. PoC Adj Factor Scoring'!$E$4:$J$4,0),TRUE)","v":1},{"$f":"VLOOKUP(OFFSET($B:$B,,MATCH(AA$4,$B$4:$F$4,0)-1),OFFSET('C. PoC Adj Factor Scoring'!$E$5:$J$282,,MATCH(AA$4,'C. PoC Adj Factor Scoring'!$E$3:$AH$3,0)-1),MATCH(AA$2&\" Score\",'C. PoC Adj Factor Scoring'!$E$4:$J$4,0),TRUE)","v":3},{"$f":"VLOOKUP(OFFSET($B:$B,,MATCH(AB$4,$B$4:$F$4,0)-1),OFFSET('C. PoC Adj Factor Scoring'!$E$5:$J$282,,MATCH(AB$4,'C. PoC Adj Factor Scoring'!$E$3:$AH$3,0)-1),MATCH(AB$2&\" Score\",'C. PoC Adj Factor Scoring'!$E$4:$J$4,0),TRUE)","v":1},{"$f":"VLOOKUP(OFFSET($B:$B,,MATCH(AC$4,$B$4:$F$4,0)-1),OFFSET('C. PoC Adj Factor Scoring'!$E$5:$J$282,,MATCH(AC$4,'C. PoC Adj Factor Scoring'!$E$3:$AH$3,0)-1),MATCH(AC$2&\" Score\",'C. PoC Adj Factor Scoring'!$E$4:$J$4,0),TRUE)","v":1},{"$f":"VLOOKUP(OFFSET($B:$B,,MATCH(AD$4,$B$4:$F$4,0)-1),OFFSET('C. PoC Adj Factor Scoring'!$E$5:$J$282,,MATCH(AD$4,'C. PoC Adj Factor Scoring'!$E$3:$AH$3,0)-1),MATCH(AD$2&\" Score\",'C. PoC Adj Factor Scoring'!$E$4:$J$4,0),TRUE)","v":1},{"$f":"VLOOKUP(OFFSET($B:$B,,MATCH(AE$4,$B$4:$F$4,0)-1),OFFSET('C. PoC Adj Factor Scoring'!$E$5:$J$282,,MATCH(AE$4,'C. PoC Adj Factor Scoring'!$E$3:$AH$3,0)-1),MATCH(AE$2&\" Score\",'C. PoC Adj Factor Scoring'!$E$4:$J$4,0),TRUE)","v":1}]
[{"$f":"'A. Population Info'!A186","v":1000353004},{"$f":"'A. Population Info'!L186","v":"OIL"},{"$f":"'A. Population Info'!M186","v":0},{"$f":"'A. Population Info'!N186","v":0},{"$f":"'A. Population Info'!O186","v":0},{"$f":"'A. Population Info'!P186","v":0},{"$f":"VLOOKUP(OFFSET($B:$B,,MATCH(G$4,$B$4:$F$4,0)-1),OFFSET('C. PoC Adj Factor Scoring'!$E$5:$J$282,,MATCH(G$4,'C. PoC Adj Factor Scoring'!$E$3:$AH$3,0)-1),MATCH(G$2&\" Score\",'C. PoC Adj Factor Scoring'!$E$4:$J$4,0),TRUE)","v":4},{"$f":"VLOOKUP(OFFSET($B:$B,,MATCH(H$4,$B$4:$F$4,0)-1),OFFSET('C. PoC Adj Factor Scoring'!$E$5:$J$282,,MATCH(H$4,'C. PoC Adj Factor Scoring'!$E$3:$AH$3,0)-1),MATCH(H$2&\" Score\",'C. PoC Adj Factor Scoring'!$E$4:$J$4,0),TRUE)","v":1},{"$f":"VLOOKUP(OFFSET($B:$B,,MATCH(I$4,$B$4:$F$4,0)-1),OFFSET('C. PoC Adj Factor Scoring'!$E$5:$J$282,,MATCH(I$4,'C. PoC Adj Factor Scoring'!$E$3:$AH$3,0)-1),MATCH(I$2&\" Score\",'C. PoC Adj Factor Scoring'!$E$4:$J$4,0),TRUE)","v":1},{"$f":"VLOOKUP(OFFSET($B:$B,,MATCH(J$4,$B$4:$F$4,0)-1),OFFSET('C. PoC Adj Factor Scoring'!$E$5:$J$282,,MATCH(J$4,'C. PoC Adj Factor Scoring'!$E$3:$AH$3,0)-1),MATCH(J$2&\" Score\",'C. PoC Adj Factor Scoring'!$E$4:$J$4,0),TRUE)","v":1},{"$f":"VLOOKUP(OFFSET($B:$B,,MATCH(K$4,$B$4:$F$4,0)-1),OFFSET('C. PoC Adj Factor Scoring'!$E$5:$J$282,,MATCH(K$4,'C. PoC Adj Factor Scoring'!$E$3:$AH$3,0)-1),MATCH(K$2&\" Score\",'C. PoC Adj Factor Scoring'!$E$4:$J$4,0),TRUE)","v":1},{"$f":"VLOOKUP(OFFSET($B:$B,,MATCH(L$4,$B$4:$F$4,0)-1),OFFSET('C. PoC Adj Factor Scoring'!$E$5:$J$282,,MATCH(L$4,'C. PoC Adj Factor Scoring'!$E$3:$AH$3,0)-1),MATCH(L$2&\" Score\",'C. PoC Adj Factor Scoring'!$E$4:$J$4,0),TRUE)","v":1},{"$f":"VLOOKUP(OFFSET($B:$B,,MATCH(M$4,$B$4:$F$4,0)-1),OFFSET('C. PoC Adj Factor Scoring'!$E$5:$J$282,,MATCH(M$4,'C. PoC Adj Factor Scoring'!$E$3:$AH$3,0)-1),MATCH(M$2&\" Score\",'C. PoC Adj Factor Scoring'!$E$4:$J$4,0),TRUE)","v":1},{"$f":"VLOOKUP(OFFSET($B:$B,,MATCH(N$4,$B$4:$F$4,0)-1),OFFSET('C. PoC Adj Factor Scoring'!$E$5:$J$282,,MATCH(N$4,'C. PoC Adj Factor Scoring'!$E$3:$AH$3,0)-1),MATCH(N$2&\" Score\",'C. PoC Adj Factor Scoring'!$E$4:$J$4,0),TRUE)","v":1},{"$f":"VLOOKUP(OFFSET($B:$B,,MATCH(O$4,$B$4:$F$4,0)-1),OFFSET('C. PoC Adj Factor Scoring'!$E$5:$J$282,,MATCH(O$4,'C. PoC Adj Factor Scoring'!$E$3:$AH$3,0)-1),MATCH(O$2&\" Score\",'C. PoC Adj Factor Scoring'!$E$4:$J$4,0),TRUE)","v":1},{"$f":"VLOOKUP(OFFSET($B:$B,,MATCH(P$4,$B$4:$F$4,0)-1),OFFSET('C. PoC Adj Factor Scoring'!$E$5:$J$282,,MATCH(P$4,'C. PoC Adj Factor Scoring'!$E$3:$AH$3,0)-1),MATCH(P$2&\" Score\",'C. PoC Adj Factor Scoring'!$E$4:$J$4,0),TRUE)","v":1},{"$f":"VLOOKUP(OFFSET($B:$B,,MATCH(Q$4,$B$4:$F$4,0)-1),OFFSET('C. PoC Adj Factor Scoring'!$E$5:$J$282,,MATCH(Q$4,'C. PoC Adj Factor Scoring'!$E$3:$AH$3,0)-1),MATCH(Q$2&\" Score\",'C. PoC Adj Factor Scoring'!$E$4:$J$4,0),TRUE)","v":1},{"$f":"VLOOKUP(OFFSET($B:$B,,MATCH(R$4,$B$4:$F$4,0)-1),OFFSET('C. PoC Adj Factor Scoring'!$E$5:$J$282,,MATCH(R$4,'C. PoC Adj Factor Scoring'!$E$3:$AH$3,0)-1),MATCH(R$2&\" Score\",'C. PoC Adj Factor Scoring'!$E$4:$J$4,0),TRUE)","v":1},{"$f":"VLOOKUP(OFFSET($B:$B,,MATCH(S$4,$B$4:$F$4,0)-1),OFFSET('C. PoC Adj Factor Scoring'!$E$5:$J$282,,MATCH(S$4,'C. PoC Adj Factor Scoring'!$E$3:$AH$3,0)-1),MATCH(S$2&\" Score\",'C. PoC Adj Factor Scoring'!$E$4:$J$4,0),TRUE)","v":1},{"$f":"VLOOKUP(OFFSET($B:$B,,MATCH(T$4,$B$4:$F$4,0)-1),OFFSET('C. PoC Adj Factor Scoring'!$E$5:$J$282,,MATCH(T$4,'C. PoC Adj Factor Scoring'!$E$3:$AH$3,0)-1),MATCH(T$2&\" Score\",'C. PoC Adj Factor Scoring'!$E$4:$J$4,0),TRUE)","v":1},{"$f":"VLOOKUP(OFFSET($B:$B,,MATCH(U$4,$B$4:$F$4,0)-1),OFFSET('C. PoC Adj Factor Scoring'!$E$5:$J$282,,MATCH(U$4,'C. PoC Adj Factor Scoring'!$E$3:$AH$3,0)-1),MATCH(U$2&\" Score\",'C. PoC Adj Factor Scoring'!$E$4:$J$4,0),TRUE)","v":1},{"$f":"VLOOKUP(OFFSET($B:$B,,MATCH(V$4,$B$4:$F$4,0)-1),OFFSET('C. PoC Adj Factor Scoring'!$E$5:$J$282,,MATCH(V$4,'C. PoC Adj Factor Scoring'!$E$3:$AH$3,0)-1),MATCH(V$2&\" Score\",'C. PoC Adj Factor Scoring'!$E$4:$J$4,0),TRUE)","v":1},{"$f":"VLOOKUP(OFFSET($B:$B,,MATCH(W$4,$B$4:$F$4,0)-1),OFFSET('C. PoC Adj Factor Scoring'!$E$5:$J$282,,MATCH(W$4,'C. PoC Adj Factor Scoring'!$E$3:$AH$3,0)-1),MATCH(W$2&\" Score\",'C. PoC Adj Factor Scoring'!$E$4:$J$4,0),TRUE)","v":1},{"$f":"VLOOKUP(OFFSET($B:$B,,MATCH(X$4,$B$4:$F$4,0)-1),OFFSET('C. PoC Adj Factor Scoring'!$E$5:$J$282,,MATCH(X$4,'C. PoC Adj Factor Scoring'!$E$3:$AH$3,0)-1),MATCH(X$2&\" Score\",'C. PoC Adj Factor Scoring'!$E$4:$J$4,0),TRUE)","v":1},{"$f":"VLOOKUP(OFFSET($B:$B,,MATCH(Y$4,$B$4:$F$4,0)-1),OFFSET('C. PoC Adj Factor Scoring'!$E$5:$J$282,,MATCH(Y$4,'C. PoC Adj Factor Scoring'!$E$3:$AH$3,0)-1),MATCH(Y$2&\" Score\",'C. PoC Adj Factor Scoring'!$E$4:$J$4,0),TRUE)","v":1},{"$f":"VLOOKUP(OFFSET($B:$B,,MATCH(Z$4,$B$4:$F$4,0)-1),OFFSET('C. PoC Adj Factor Scoring'!$E$5:$J$282,,MATCH(Z$4,'C. PoC Adj Factor Scoring'!$E$3:$AH$3,0)-1),MATCH(Z$2&\" Score\",'C. PoC Adj Factor Scoring'!$E$4:$J$4,0),TRUE)","v":1},{"$f":"VLOOKUP(OFFSET($B:$B,,MATCH(AA$4,$B$4:$F$4,0)-1),OFFSET('C. PoC Adj Factor Scoring'!$E$5:$J$282,,MATCH(AA$4,'C. PoC Adj Factor Scoring'!$E$3:$AH$3,0)-1),MATCH(AA$2&\" Score\",'C. PoC Adj Factor Scoring'!$E$4:$J$4,0),TRUE)","v":3},{"$f":"VLOOKUP(OFFSET($B:$B,,MATCH(AB$4,$B$4:$F$4,0)-1),OFFSET('C. PoC Adj Factor Scoring'!$E$5:$J$282,,MATCH(AB$4,'C. PoC Adj Factor Scoring'!$E$3:$AH$3,0)-1),MATCH(AB$2&\" Score\",'C. PoC Adj Factor Scoring'!$E$4:$J$4,0),TRUE)","v":1},{"$f":"VLOOKUP(OFFSET($B:$B,,MATCH(AC$4,$B$4:$F$4,0)-1),OFFSET('C. PoC Adj Factor Scoring'!$E$5:$J$282,,MATCH(AC$4,'C. PoC Adj Factor Scoring'!$E$3:$AH$3,0)-1),MATCH(AC$2&\" Score\",'C. PoC Adj Factor Scoring'!$E$4:$J$4,0),TRUE)","v":1},{"$f":"VLOOKUP(OFFSET($B:$B,,MATCH(AD$4,$B$4:$F$4,0)-1),OFFSET('C. PoC Adj Factor Scoring'!$E$5:$J$282,,MATCH(AD$4,'C. PoC Adj Factor Scoring'!$E$3:$AH$3,0)-1),MATCH(AD$2&\" Score\",'C. PoC Adj Factor Scoring'!$E$4:$J$4,0),TRUE)","v":1},{"$f":"VLOOKUP(OFFSET($B:$B,,MATCH(AE$4,$B$4:$F$4,0)-1),OFFSET('C. PoC Adj Factor Scoring'!$E$5:$J$282,,MATCH(AE$4,'C. PoC Adj Factor Scoring'!$E$3:$AH$3,0)-1),MATCH(AE$2&\" Score\",'C. PoC Adj Factor Scoring'!$E$4:$J$4,0),TRUE)","v":1}]
[{"$f":"'A. Population Info'!A187","v":1000353037},{"$f":"'A. Population Info'!L187","v":"OIL"},{"$f":"'A. Population Info'!M187","v":0},{"$f":"'A. Population Info'!N187","v":0},{"$f":"'A. Population Info'!O187","v":0},{"$f":"'A. Population Info'!P187","v":0},{"$f":"VLOOKUP(OFFSET($B:$B,,MATCH(G$4,$B$4:$F$4,0)-1),OFFSET('C. PoC Adj Factor Scoring'!$E$5:$J$282,,MATCH(G$4,'C. PoC Adj Factor Scoring'!$E$3:$AH$3,0)-1),MATCH(G$2&\" Score\",'C. PoC Adj Factor Scoring'!$E$4:$J$4,0),TRUE)","v":4},{"$f":"VLOOKUP(OFFSET($B:$B,,MATCH(H$4,$B$4:$F$4,0)-1),OFFSET('C. PoC Adj Factor Scoring'!$E$5:$J$282,,MATCH(H$4,'C. PoC Adj Factor Scoring'!$E$3:$AH$3,0)-1),MATCH(H$2&\" Score\",'C. PoC Adj Factor Scoring'!$E$4:$J$4,0),TRUE)","v":1},{"$f":"VLOOKUP(OFFSET($B:$B,,MATCH(I$4,$B$4:$F$4,0)-1),OFFSET('C. PoC Adj Factor Scoring'!$E$5:$J$282,,MATCH(I$4,'C. PoC Adj Factor Scoring'!$E$3:$AH$3,0)-1),MATCH(I$2&\" Score\",'C. PoC Adj Factor Scoring'!$E$4:$J$4,0),TRUE)","v":1},{"$f":"VLOOKUP(OFFSET($B:$B,,MATCH(J$4,$B$4:$F$4,0)-1),OFFSET('C. PoC Adj Factor Scoring'!$E$5:$J$282,,MATCH(J$4,'C. PoC Adj Factor Scoring'!$E$3:$AH$3,0)-1),MATCH(J$2&\" Score\",'C. PoC Adj Factor Scoring'!$E$4:$J$4,0),TRUE)","v":1},{"$f":"VLOOKUP(OFFSET($B:$B,,MATCH(K$4,$B$4:$F$4,0)-1),OFFSET('C. PoC Adj Factor Scoring'!$E$5:$J$282,,MATCH(K$4,'C. PoC Adj Factor Scoring'!$E$3:$AH$3,0)-1),MATCH(K$2&\" Score\",'C. PoC Adj Factor Scoring'!$E$4:$J$4,0),TRUE)","v":1},{"$f":"VLOOKUP(OFFSET($B:$B,,MATCH(L$4,$B$4:$F$4,0)-1),OFFSET('C. PoC Adj Factor Scoring'!$E$5:$J$282,,MATCH(L$4,'C. PoC Adj Factor Scoring'!$E$3:$AH$3,0)-1),MATCH(L$2&\" Score\",'C. PoC Adj Factor Scoring'!$E$4:$J$4,0),TRUE)","v":1},{"$f":"VLOOKUP(OFFSET($B:$B,,MATCH(M$4,$B$4:$F$4,0)-1),OFFSET('C. PoC Adj Factor Scoring'!$E$5:$J$282,,MATCH(M$4,'C. PoC Adj Factor Scoring'!$E$3:$AH$3,0)-1),MATCH(M$2&\" Score\",'C. PoC Adj Factor Scoring'!$E$4:$J$4,0),TRUE)","v":1},{"$f":"VLOOKUP(OFFSET($B:$B,,MATCH(N$4,$B$4:$F$4,0)-1),OFFSET('C. PoC Adj Factor Scoring'!$E$5:$J$282,,MATCH(N$4,'C. PoC Adj Factor Scoring'!$E$3:$AH$3,0)-1),MATCH(N$2&\" Score\",'C. PoC Adj Factor Scoring'!$E$4:$J$4,0),TRUE)","v":1},{"$f":"VLOOKUP(OFFSET($B:$B,,MATCH(O$4,$B$4:$F$4,0)-1),OFFSET('C. PoC Adj Factor Scoring'!$E$5:$J$282,,MATCH(O$4,'C. PoC Adj Factor Scoring'!$E$3:$AH$3,0)-1),MATCH(O$2&\" Score\",'C. PoC Adj Factor Scoring'!$E$4:$J$4,0),TRUE)","v":1},{"$f":"VLOOKUP(OFFSET($B:$B,,MATCH(P$4,$B$4:$F$4,0)-1),OFFSET('C. PoC Adj Factor Scoring'!$E$5:$J$282,,MATCH(P$4,'C. PoC Adj Factor Scoring'!$E$3:$AH$3,0)-1),MATCH(P$2&\" Score\",'C. PoC Adj Factor Scoring'!$E$4:$J$4,0),TRUE)","v":1},{"$f":"VLOOKUP(OFFSET($B:$B,,MATCH(Q$4,$B$4:$F$4,0)-1),OFFSET('C. PoC Adj Factor Scoring'!$E$5:$J$282,,MATCH(Q$4,'C. PoC Adj Factor Scoring'!$E$3:$AH$3,0)-1),MATCH(Q$2&\" Score\",'C. PoC Adj Factor Scoring'!$E$4:$J$4,0),TRUE)","v":1},{"$f":"VLOOKUP(OFFSET($B:$B,,MATCH(R$4,$B$4:$F$4,0)-1),OFFSET('C. PoC Adj Factor Scoring'!$E$5:$J$282,,MATCH(R$4,'C. PoC Adj Factor Scoring'!$E$3:$AH$3,0)-1),MATCH(R$2&\" Score\",'C. PoC Adj Factor Scoring'!$E$4:$J$4,0),TRUE)","v":1},{"$f":"VLOOKUP(OFFSET($B:$B,,MATCH(S$4,$B$4:$F$4,0)-1),OFFSET('C. PoC Adj Factor Scoring'!$E$5:$J$282,,MATCH(S$4,'C. PoC Adj Factor Scoring'!$E$3:$AH$3,0)-1),MATCH(S$2&\" Score\",'C. PoC Adj Factor Scoring'!$E$4:$J$4,0),TRUE)","v":1},{"$f":"VLOOKUP(OFFSET($B:$B,,MATCH(T$4,$B$4:$F$4,0)-1),OFFSET('C. PoC Adj Factor Scoring'!$E$5:$J$282,,MATCH(T$4,'C. PoC Adj Factor Scoring'!$E$3:$AH$3,0)-1),MATCH(T$2&\" Score\",'C. PoC Adj Factor Scoring'!$E$4:$J$4,0),TRUE)","v":1},{"$f":"VLOOKUP(OFFSET($B:$B,,MATCH(U$4,$B$4:$F$4,0)-1),OFFSET('C. PoC Adj Factor Scoring'!$E$5:$J$282,,MATCH(U$4,'C. PoC Adj Factor Scoring'!$E$3:$AH$3,0)-1),MATCH(U$2&\" Score\",'C. PoC Adj Factor Scoring'!$E$4:$J$4,0),TRUE)","v":1},{"$f":"VLOOKUP(OFFSET($B:$B,,MATCH(V$4,$B$4:$F$4,0)-1),OFFSET('C. PoC Adj Factor Scoring'!$E$5:$J$282,,MATCH(V$4,'C. PoC Adj Factor Scoring'!$E$3:$AH$3,0)-1),MATCH(V$2&\" Score\",'C. PoC Adj Factor Scoring'!$E$4:$J$4,0),TRUE)","v":1},{"$f":"VLOOKUP(OFFSET($B:$B,,MATCH(W$4,$B$4:$F$4,0)-1),OFFSET('C. PoC Adj Factor Scoring'!$E$5:$J$282,,MATCH(W$4,'C. PoC Adj Factor Scoring'!$E$3:$AH$3,0)-1),MATCH(W$2&\" Score\",'C. PoC Adj Factor Scoring'!$E$4:$J$4,0),TRUE)","v":1},{"$f":"VLOOKUP(OFFSET($B:$B,,MATCH(X$4,$B$4:$F$4,0)-1),OFFSET('C. PoC Adj Factor Scoring'!$E$5:$J$282,,MATCH(X$4,'C. PoC Adj Factor Scoring'!$E$3:$AH$3,0)-1),MATCH(X$2&\" Score\",'C. PoC Adj Factor Scoring'!$E$4:$J$4,0),TRUE)","v":1},{"$f":"VLOOKUP(OFFSET($B:$B,,MATCH(Y$4,$B$4:$F$4,0)-1),OFFSET('C. PoC Adj Factor Scoring'!$E$5:$J$282,,MATCH(Y$4,'C. PoC Adj Factor Scoring'!$E$3:$AH$3,0)-1),MATCH(Y$2&\" Score\",'C. PoC Adj Factor Scoring'!$E$4:$J$4,0),TRUE)","v":1},{"$f":"VLOOKUP(OFFSET($B:$B,,MATCH(Z$4,$B$4:$F$4,0)-1),OFFSET('C. PoC Adj Factor Scoring'!$E$5:$J$282,,MATCH(Z$4,'C. PoC Adj Factor Scoring'!$E$3:$AH$3,0)-1),MATCH(Z$2&\" Score\",'C. PoC Adj Factor Scoring'!$E$4:$J$4,0),TRUE)","v":1},{"$f":"VLOOKUP(OFFSET($B:$B,,MATCH(AA$4,$B$4:$F$4,0)-1),OFFSET('C. PoC Adj Factor Scoring'!$E$5:$J$282,,MATCH(AA$4,'C. PoC Adj Factor Scoring'!$E$3:$AH$3,0)-1),MATCH(AA$2&\" Score\",'C. PoC Adj Factor Scoring'!$E$4:$J$4,0),TRUE)","v":3},{"$f":"VLOOKUP(OFFSET($B:$B,,MATCH(AB$4,$B$4:$F$4,0)-1),OFFSET('C. PoC Adj Factor Scoring'!$E$5:$J$282,,MATCH(AB$4,'C. PoC Adj Factor Scoring'!$E$3:$AH$3,0)-1),MATCH(AB$2&\" Score\",'C. PoC Adj Factor Scoring'!$E$4:$J$4,0),TRUE)","v":1},{"$f":"VLOOKUP(OFFSET($B:$B,,MATCH(AC$4,$B$4:$F$4,0)-1),OFFSET('C. PoC Adj Factor Scoring'!$E$5:$J$282,,MATCH(AC$4,'C. PoC Adj Factor Scoring'!$E$3:$AH$3,0)-1),MATCH(AC$2&\" Score\",'C. PoC Adj Factor Scoring'!$E$4:$J$4,0),TRUE)","v":1},{"$f":"VLOOKUP(OFFSET($B:$B,,MATCH(AD$4,$B$4:$F$4,0)-1),OFFSET('C. PoC Adj Factor Scoring'!$E$5:$J$282,,MATCH(AD$4,'C. PoC Adj Factor Scoring'!$E$3:$AH$3,0)-1),MATCH(AD$2&\" Score\",'C. PoC Adj Factor Scoring'!$E$4:$J$4,0),TRUE)","v":1},{"$f":"VLOOKUP(OFFSET($B:$B,,MATCH(AE$4,$B$4:$F$4,0)-1),OFFSET('C. PoC Adj Factor Scoring'!$E$5:$J$282,,MATCH(AE$4,'C. PoC Adj Factor Scoring'!$E$3:$AH$3,0)-1),MATCH(AE$2&\" Score\",'C. PoC Adj Factor Scoring'!$E$4:$J$4,0),TRUE)","v":1}]
[{"$f":"'A. Population Info'!A188","v":1000353068},{"$f":"'A. Population Info'!L188","v":"OIL"},{"$f":"'A. Population Info'!M188","v":0},{"$f":"'A. Population Info'!N188","v":0},{"$f":"'A. Population Info'!O188","v":0},{"$f":"'A. Population Info'!P188","v":0},{"$f":"VLOOKUP(OFFSET($B:$B,,MATCH(G$4,$B$4:$F$4,0)-1),OFFSET('C. PoC Adj Factor Scoring'!$E$5:$J$282,,MATCH(G$4,'C. PoC Adj Factor Scoring'!$E$3:$AH$3,0)-1),MATCH(G$2&\" Score\",'C. PoC Adj Factor Scoring'!$E$4:$J$4,0),TRUE)","v":4},{"$f":"VLOOKUP(OFFSET($B:$B,,MATCH(H$4,$B$4:$F$4,0)-1),OFFSET('C. PoC Adj Factor Scoring'!$E$5:$J$282,,MATCH(H$4,'C. PoC Adj Factor Scoring'!$E$3:$AH$3,0)-1),MATCH(H$2&\" Score\",'C. PoC Adj Factor Scoring'!$E$4:$J$4,0),TRUE)","v":1},{"$f":"VLOOKUP(OFFSET($B:$B,,MATCH(I$4,$B$4:$F$4,0)-1),OFFSET('C. PoC Adj Factor Scoring'!$E$5:$J$282,,MATCH(I$4,'C. PoC Adj Factor Scoring'!$E$3:$AH$3,0)-1),MATCH(I$2&\" Score\",'C. PoC Adj Factor Scoring'!$E$4:$J$4,0),TRUE)","v":1},{"$f":"VLOOKUP(OFFSET($B:$B,,MATCH(J$4,$B$4:$F$4,0)-1),OFFSET('C. PoC Adj Factor Scoring'!$E$5:$J$282,,MATCH(J$4,'C. PoC Adj Factor Scoring'!$E$3:$AH$3,0)-1),MATCH(J$2&\" Score\",'C. PoC Adj Factor Scoring'!$E$4:$J$4,0),TRUE)","v":1},{"$f":"VLOOKUP(OFFSET($B:$B,,MATCH(K$4,$B$4:$F$4,0)-1),OFFSET('C. PoC Adj Factor Scoring'!$E$5:$J$282,,MATCH(K$4,'C. PoC Adj Factor Scoring'!$E$3:$AH$3,0)-1),MATCH(K$2&\" Score\",'C. PoC Adj Factor Scoring'!$E$4:$J$4,0),TRUE)","v":1},{"$f":"VLOOKUP(OFFSET($B:$B,,MATCH(L$4,$B$4:$F$4,0)-1),OFFSET('C. PoC Adj Factor Scoring'!$E$5:$J$282,,MATCH(L$4,'C. PoC Adj Factor Scoring'!$E$3:$AH$3,0)-1),MATCH(L$2&\" Score\",'C. PoC Adj Factor Scoring'!$E$4:$J$4,0),TRUE)","v":1},{"$f":"VLOOKUP(OFFSET($B:$B,,MATCH(M$4,$B$4:$F$4,0)-1),OFFSET('C. PoC Adj Factor Scoring'!$E$5:$J$282,,MATCH(M$4,'C. PoC Adj Factor Scoring'!$E$3:$AH$3,0)-1),MATCH(M$2&\" Score\",'C. PoC Adj Factor Scoring'!$E$4:$J$4,0),TRUE)","v":1},{"$f":"VLOOKUP(OFFSET($B:$B,,MATCH(N$4,$B$4:$F$4,0)-1),OFFSET('C. PoC Adj Factor Scoring'!$E$5:$J$282,,MATCH(N$4,'C. PoC Adj Factor Scoring'!$E$3:$AH$3,0)-1),MATCH(N$2&\" Score\",'C. PoC Adj Factor Scoring'!$E$4:$J$4,0),TRUE)","v":1},{"$f":"VLOOKUP(OFFSET($B:$B,,MATCH(O$4,$B$4:$F$4,0)-1),OFFSET('C. PoC Adj Factor Scoring'!$E$5:$J$282,,MATCH(O$4,'C. PoC Adj Factor Scoring'!$E$3:$AH$3,0)-1),MATCH(O$2&\" Score\",'C. PoC Adj Factor Scoring'!$E$4:$J$4,0),TRUE)","v":1},{"$f":"VLOOKUP(OFFSET($B:$B,,MATCH(P$4,$B$4:$F$4,0)-1),OFFSET('C. PoC Adj Factor Scoring'!$E$5:$J$282,,MATCH(P$4,'C. PoC Adj Factor Scoring'!$E$3:$AH$3,0)-1),MATCH(P$2&\" Score\",'C. PoC Adj Factor Scoring'!$E$4:$J$4,0),TRUE)","v":1},{"$f":"VLOOKUP(OFFSET($B:$B,,MATCH(Q$4,$B$4:$F$4,0)-1),OFFSET('C. PoC Adj Factor Scoring'!$E$5:$J$282,,MATCH(Q$4,'C. PoC Adj Factor Scoring'!$E$3:$AH$3,0)-1),MATCH(Q$2&\" Score\",'C. PoC Adj Factor Scoring'!$E$4:$J$4,0),TRUE)","v":1},{"$f":"VLOOKUP(OFFSET($B:$B,,MATCH(R$4,$B$4:$F$4,0)-1),OFFSET('C. PoC Adj Factor Scoring'!$E$5:$J$282,,MATCH(R$4,'C. PoC Adj Factor Scoring'!$E$3:$AH$3,0)-1),MATCH(R$2&\" Score\",'C. PoC Adj Factor Scoring'!$E$4:$J$4,0),TRUE)","v":1},{"$f":"VLOOKUP(OFFSET($B:$B,,MATCH(S$4,$B$4:$F$4,0)-1),OFFSET('C. PoC Adj Factor Scoring'!$E$5:$J$282,,MATCH(S$4,'C. PoC Adj Factor Scoring'!$E$3:$AH$3,0)-1),MATCH(S$2&\" Score\",'C. PoC Adj Factor Scoring'!$E$4:$J$4,0),TRUE)","v":1},{"$f":"VLOOKUP(OFFSET($B:$B,,MATCH(T$4,$B$4:$F$4,0)-1),OFFSET('C. PoC Adj Factor Scoring'!$E$5:$J$282,,MATCH(T$4,'C. PoC Adj Factor Scoring'!$E$3:$AH$3,0)-1),MATCH(T$2&\" Score\",'C. PoC Adj Factor Scoring'!$E$4:$J$4,0),TRUE)","v":1},{"$f":"VLOOKUP(OFFSET($B:$B,,MATCH(U$4,$B$4:$F$4,0)-1),OFFSET('C. PoC Adj Factor Scoring'!$E$5:$J$282,,MATCH(U$4,'C. PoC Adj Factor Scoring'!$E$3:$AH$3,0)-1),MATCH(U$2&\" Score\",'C. PoC Adj Factor Scoring'!$E$4:$J$4,0),TRUE)","v":1},{"$f":"VLOOKUP(OFFSET($B:$B,,MATCH(V$4,$B$4:$F$4,0)-1),OFFSET('C. PoC Adj Factor Scoring'!$E$5:$J$282,,MATCH(V$4,'C. PoC Adj Factor Scoring'!$E$3:$AH$3,0)-1),MATCH(V$2&\" Score\",'C. PoC Adj Factor Scoring'!$E$4:$J$4,0),TRUE)","v":1},{"$f":"VLOOKUP(OFFSET($B:$B,,MATCH(W$4,$B$4:$F$4,0)-1),OFFSET('C. PoC Adj Factor Scoring'!$E$5:$J$282,,MATCH(W$4,'C. PoC Adj Factor Scoring'!$E$3:$AH$3,0)-1),MATCH(W$2&\" Score\",'C. PoC Adj Factor Scoring'!$E$4:$J$4,0),TRUE)","v":1},{"$f":"VLOOKUP(OFFSET($B:$B,,MATCH(X$4,$B$4:$F$4,0)-1),OFFSET('C. PoC Adj Factor Scoring'!$E$5:$J$282,,MATCH(X$4,'C. PoC Adj Factor Scoring'!$E$3:$AH$3,0)-1),MATCH(X$2&\" Score\",'C. PoC Adj Factor Scoring'!$E$4:$J$4,0),TRUE)","v":1},{"$f":"VLOOKUP(OFFSET($B:$B,,MATCH(Y$4,$B$4:$F$4,0)-1),OFFSET('C. PoC Adj Factor Scoring'!$E$5:$J$282,,MATCH(Y$4,'C. PoC Adj Factor Scoring'!$E$3:$AH$3,0)-1),MATCH(Y$2&\" Score\",'C. PoC Adj Factor Scoring'!$E$4:$J$4,0),TRUE)","v":1},{"$f":"VLOOKUP(OFFSET($B:$B,,MATCH(Z$4,$B$4:$F$4,0)-1),OFFSET('C. PoC Adj Factor Scoring'!$E$5:$J$282,,MATCH(Z$4,'C. PoC Adj Factor Scoring'!$E$3:$AH$3,0)-1),MATCH(Z$2&\" Score\",'C. PoC Adj Factor Scoring'!$E$4:$J$4,0),TRUE)","v":1},{"$f":"VLOOKUP(OFFSET($B:$B,,MATCH(AA$4,$B$4:$F$4,0)-1),OFFSET('C. PoC Adj Factor Scoring'!$E$5:$J$282,,MATCH(AA$4,'C. PoC Adj Factor Scoring'!$E$3:$AH$3,0)-1),MATCH(AA$2&\" Score\",'C. PoC Adj Factor Scoring'!$E$4:$J$4,0),TRUE)","v":3},{"$f":"VLOOKUP(OFFSET($B:$B,,MATCH(AB$4,$B$4:$F$4,0)-1),OFFSET('C. PoC Adj Factor Scoring'!$E$5:$J$282,,MATCH(AB$4,'C. PoC Adj Factor Scoring'!$E$3:$AH$3,0)-1),MATCH(AB$2&\" Score\",'C. PoC Adj Factor Scoring'!$E$4:$J$4,0),TRUE)","v":1},{"$f":"VLOOKUP(OFFSET($B:$B,,MATCH(AC$4,$B$4:$F$4,0)-1),OFFSET('C. PoC Adj Factor Scoring'!$E$5:$J$282,,MATCH(AC$4,'C. PoC Adj Factor Scoring'!$E$3:$AH$3,0)-1),MATCH(AC$2&\" Score\",'C. PoC Adj Factor Scoring'!$E$4:$J$4,0),TRUE)","v":1},{"$f":"VLOOKUP(OFFSET($B:$B,,MATCH(AD$4,$B$4:$F$4,0)-1),OFFSET('C. PoC Adj Factor Scoring'!$E$5:$J$282,,MATCH(AD$4,'C. PoC Adj Factor Scoring'!$E$3:$AH$3,0)-1),MATCH(AD$2&\" Score\",'C. PoC Adj Factor Scoring'!$E$4:$J$4,0),TRUE)","v":1},{"$f":"VLOOKUP(OFFSET($B:$B,,MATCH(AE$4,$B$4:$F$4,0)-1),OFFSET('C. PoC Adj Factor Scoring'!$E$5:$J$282,,MATCH(AE$4,'C. PoC Adj Factor Scoring'!$E$3:$AH$3,0)-1),MATCH(AE$2&\" Score\",'C. PoC Adj Factor Scoring'!$E$4:$J$4,0),TRUE)","v":1}]
[{"$f":"'A. Population Info'!A189","v":1000353101},{"$f":"'A. Population Info'!L189","v":"OIL"},{"$f":"'A. Population Info'!M189","v":0},{"$f":"'A. Population Info'!N189","v":0},{"$f":"'A. Population Info'!O189","v":0},{"$f":"'A. Population Info'!P189","v":0},{"$f":"VLOOKUP(OFFSET($B:$B,,MATCH(G$4,$B$4:$F$4,0)-1),OFFSET('C. PoC Adj Factor Scoring'!$E$5:$J$282,,MATCH(G$4,'C. PoC Adj Factor Scoring'!$E$3:$AH$3,0)-1),MATCH(G$2&\" Score\",'C. PoC Adj Factor Scoring'!$E$4:$J$4,0),TRUE)","v":4},{"$f":"VLOOKUP(OFFSET($B:$B,,MATCH(H$4,$B$4:$F$4,0)-1),OFFSET('C. PoC Adj Factor Scoring'!$E$5:$J$282,,MATCH(H$4,'C. PoC Adj Factor Scoring'!$E$3:$AH$3,0)-1),MATCH(H$2&\" Score\",'C. PoC Adj Factor Scoring'!$E$4:$J$4,0),TRUE)","v":1},{"$f":"VLOOKUP(OFFSET($B:$B,,MATCH(I$4,$B$4:$F$4,0)-1),OFFSET('C. PoC Adj Factor Scoring'!$E$5:$J$282,,MATCH(I$4,'C. PoC Adj Factor Scoring'!$E$3:$AH$3,0)-1),MATCH(I$2&\" Score\",'C. PoC Adj Factor Scoring'!$E$4:$J$4,0),TRUE)","v":1},{"$f":"VLOOKUP(OFFSET($B:$B,,MATCH(J$4,$B$4:$F$4,0)-1),OFFSET('C. PoC Adj Factor Scoring'!$E$5:$J$282,,MATCH(J$4,'C. PoC Adj Factor Scoring'!$E$3:$AH$3,0)-1),MATCH(J$2&\" Score\",'C. PoC Adj Factor Scoring'!$E$4:$J$4,0),TRUE)","v":1},{"$f":"VLOOKUP(OFFSET($B:$B,,MATCH(K$4,$B$4:$F$4,0)-1),OFFSET('C. PoC Adj Factor Scoring'!$E$5:$J$282,,MATCH(K$4,'C. PoC Adj Factor Scoring'!$E$3:$AH$3,0)-1),MATCH(K$2&\" Score\",'C. PoC Adj Factor Scoring'!$E$4:$J$4,0),TRUE)","v":1},{"$f":"VLOOKUP(OFFSET($B:$B,,MATCH(L$4,$B$4:$F$4,0)-1),OFFSET('C. PoC Adj Factor Scoring'!$E$5:$J$282,,MATCH(L$4,'C. PoC Adj Factor Scoring'!$E$3:$AH$3,0)-1),MATCH(L$2&\" Score\",'C. PoC Adj Factor Scoring'!$E$4:$J$4,0),TRUE)","v":1},{"$f":"VLOOKUP(OFFSET($B:$B,,MATCH(M$4,$B$4:$F$4,0)-1),OFFSET('C. PoC Adj Factor Scoring'!$E$5:$J$282,,MATCH(M$4,'C. PoC Adj Factor Scoring'!$E$3:$AH$3,0)-1),MATCH(M$2&\" Score\",'C. PoC Adj Factor Scoring'!$E$4:$J$4,0),TRUE)","v":1},{"$f":"VLOOKUP(OFFSET($B:$B,,MATCH(N$4,$B$4:$F$4,0)-1),OFFSET('C. PoC Adj Factor Scoring'!$E$5:$J$282,,MATCH(N$4,'C. PoC Adj Factor Scoring'!$E$3:$AH$3,0)-1),MATCH(N$2&\" Score\",'C. PoC Adj Factor Scoring'!$E$4:$J$4,0),TRUE)","v":1},{"$f":"VLOOKUP(OFFSET($B:$B,,MATCH(O$4,$B$4:$F$4,0)-1),OFFSET('C. PoC Adj Factor Scoring'!$E$5:$J$282,,MATCH(O$4,'C. PoC Adj Factor Scoring'!$E$3:$AH$3,0)-1),MATCH(O$2&\" Score\",'C. PoC Adj Factor Scoring'!$E$4:$J$4,0),TRUE)","v":1},{"$f":"VLOOKUP(OFFSET($B:$B,,MATCH(P$4,$B$4:$F$4,0)-1),OFFSET('C. PoC Adj Factor Scoring'!$E$5:$J$282,,MATCH(P$4,'C. PoC Adj Factor Scoring'!$E$3:$AH$3,0)-1),MATCH(P$2&\" Score\",'C. PoC Adj Factor Scoring'!$E$4:$J$4,0),TRUE)","v":1},{"$f":"VLOOKUP(OFFSET($B:$B,,MATCH(Q$4,$B$4:$F$4,0)-1),OFFSET('C. PoC Adj Factor Scoring'!$E$5:$J$282,,MATCH(Q$4,'C. PoC Adj Factor Scoring'!$E$3:$AH$3,0)-1),MATCH(Q$2&\" Score\",'C. PoC Adj Factor Scoring'!$E$4:$J$4,0),TRUE)","v":1},{"$f":"VLOOKUP(OFFSET($B:$B,,MATCH(R$4,$B$4:$F$4,0)-1),OFFSET('C. PoC Adj Factor Scoring'!$E$5:$J$282,,MATCH(R$4,'C. PoC Adj Factor Scoring'!$E$3:$AH$3,0)-1),MATCH(R$2&\" Score\",'C. PoC Adj Factor Scoring'!$E$4:$J$4,0),TRUE)","v":1},{"$f":"VLOOKUP(OFFSET($B:$B,,MATCH(S$4,$B$4:$F$4,0)-1),OFFSET('C. PoC Adj Factor Scoring'!$E$5:$J$282,,MATCH(S$4,'C. PoC Adj Factor Scoring'!$E$3:$AH$3,0)-1),MATCH(S$2&\" Score\",'C. PoC Adj Factor Scoring'!$E$4:$J$4,0),TRUE)","v":1},{"$f":"VLOOKUP(OFFSET($B:$B,,MATCH(T$4,$B$4:$F$4,0)-1),OFFSET('C. PoC Adj Factor Scoring'!$E$5:$J$282,,MATCH(T$4,'C. PoC Adj Factor Scoring'!$E$3:$AH$3,0)-1),MATCH(T$2&\" Score\",'C. PoC Adj Factor Scoring'!$E$4:$J$4,0),TRUE)","v":1},{"$f":"VLOOKUP(OFFSET($B:$B,,MATCH(U$4,$B$4:$F$4,0)-1),OFFSET('C. PoC Adj Factor Scoring'!$E$5:$J$282,,MATCH(U$4,'C. PoC Adj Factor Scoring'!$E$3:$AH$3,0)-1),MATCH(U$2&\" Score\",'C. PoC Adj Factor Scoring'!$E$4:$J$4,0),TRUE)","v":1},{"$f":"VLOOKUP(OFFSET($B:$B,,MATCH(V$4,$B$4:$F$4,0)-1),OFFSET('C. PoC Adj Factor Scoring'!$E$5:$J$282,,MATCH(V$4,'C. PoC Adj Factor Scoring'!$E$3:$AH$3,0)-1),MATCH(V$2&\" Score\",'C. PoC Adj Factor Scoring'!$E$4:$J$4,0),TRUE)","v":1},{"$f":"VLOOKUP(OFFSET($B:$B,,MATCH(W$4,$B$4:$F$4,0)-1),OFFSET('C. PoC Adj Factor Scoring'!$E$5:$J$282,,MATCH(W$4,'C. PoC Adj Factor Scoring'!$E$3:$AH$3,0)-1),MATCH(W$2&\" Score\",'C. PoC Adj Factor Scoring'!$E$4:$J$4,0),TRUE)","v":1},{"$f":"VLOOKUP(OFFSET($B:$B,,MATCH(X$4,$B$4:$F$4,0)-1),OFFSET('C. PoC Adj Factor Scoring'!$E$5:$J$282,,MATCH(X$4,'C. PoC Adj Factor Scoring'!$E$3:$AH$3,0)-1),MATCH(X$2&\" Score\",'C. PoC Adj Factor Scoring'!$E$4:$J$4,0),TRUE)","v":1},{"$f":"VLOOKUP(OFFSET($B:$B,,MATCH(Y$4,$B$4:$F$4,0)-1),OFFSET('C. PoC Adj Factor Scoring'!$E$5:$J$282,,MATCH(Y$4,'C. PoC Adj Factor Scoring'!$E$3:$AH$3,0)-1),MATCH(Y$2&\" Score\",'C. PoC Adj Factor Scoring'!$E$4:$J$4,0),TRUE)","v":1},{"$f":"VLOOKUP(OFFSET($B:$B,,MATCH(Z$4,$B$4:$F$4,0)-1),OFFSET('C. PoC Adj Factor Scoring'!$E$5:$J$282,,MATCH(Z$4,'C. PoC Adj Factor Scoring'!$E$3:$AH$3,0)-1),MATCH(Z$2&\" Score\",'C. PoC Adj Factor Scoring'!$E$4:$J$4,0),TRUE)","v":1},{"$f":"VLOOKUP(OFFSET($B:$B,,MATCH(AA$4,$B$4:$F$4,0)-1),OFFSET('C. PoC Adj Factor Scoring'!$E$5:$J$282,,MATCH(AA$4,'C. PoC Adj Factor Scoring'!$E$3:$AH$3,0)-1),MATCH(AA$2&\" Score\",'C. PoC Adj Factor Scoring'!$E$4:$J$4,0),TRUE)","v":3},{"$f":"VLOOKUP(OFFSET($B:$B,,MATCH(AB$4,$B$4:$F$4,0)-1),OFFSET('C. PoC Adj Factor Scoring'!$E$5:$J$282,,MATCH(AB$4,'C. PoC Adj Factor Scoring'!$E$3:$AH$3,0)-1),MATCH(AB$2&\" Score\",'C. PoC Adj Factor Scoring'!$E$4:$J$4,0),TRUE)","v":1},{"$f":"VLOOKUP(OFFSET($B:$B,,MATCH(AC$4,$B$4:$F$4,0)-1),OFFSET('C. PoC Adj Factor Scoring'!$E$5:$J$282,,MATCH(AC$4,'C. PoC Adj Factor Scoring'!$E$3:$AH$3,0)-1),MATCH(AC$2&\" Score\",'C. PoC Adj Factor Scoring'!$E$4:$J$4,0),TRUE)","v":1},{"$f":"VLOOKUP(OFFSET($B:$B,,MATCH(AD$4,$B$4:$F$4,0)-1),OFFSET('C. PoC Adj Factor Scoring'!$E$5:$J$282,,MATCH(AD$4,'C. PoC Adj Factor Scoring'!$E$3:$AH$3,0)-1),MATCH(AD$2&\" Score\",'C. PoC Adj Factor Scoring'!$E$4:$J$4,0),TRUE)","v":1},{"$f":"VLOOKUP(OFFSET($B:$B,,MATCH(AE$4,$B$4:$F$4,0)-1),OFFSET('C. PoC Adj Factor Scoring'!$E$5:$J$282,,MATCH(AE$4,'C. PoC Adj Factor Scoring'!$E$3:$AH$3,0)-1),MATCH(AE$2&\" Score\",'C. PoC Adj Factor Scoring'!$E$4:$J$4,0),TRUE)","v":1}]
[{"$f":"'A. Population Info'!A190","v":1000353135},{"$f":"'A. Population Info'!L190","v":"OIL"},{"$f":"'A. Population Info'!M190","v":0},{"$f":"'A. Population Info'!N190","v":0},{"$f":"'A. Population Info'!O190","v":0},{"$f":"'A. Population Info'!P190","v":0},{"$f":"VLOOKUP(OFFSET($B:$B,,MATCH(G$4,$B$4:$F$4,0)-1),OFFSET('C. PoC Adj Factor Scoring'!$E$5:$J$282,,MATCH(G$4,'C. PoC Adj Factor Scoring'!$E$3:$AH$3,0)-1),MATCH(G$2&\" Score\",'C. PoC Adj Factor Scoring'!$E$4:$J$4,0),TRUE)","v":4},{"$f":"VLOOKUP(OFFSET($B:$B,,MATCH(H$4,$B$4:$F$4,0)-1),OFFSET('C. PoC Adj Factor Scoring'!$E$5:$J$282,,MATCH(H$4,'C. PoC Adj Factor Scoring'!$E$3:$AH$3,0)-1),MATCH(H$2&\" Score\",'C. PoC Adj Factor Scoring'!$E$4:$J$4,0),TRUE)","v":1},{"$f":"VLOOKUP(OFFSET($B:$B,,MATCH(I$4,$B$4:$F$4,0)-1),OFFSET('C. PoC Adj Factor Scoring'!$E$5:$J$282,,MATCH(I$4,'C. PoC Adj Factor Scoring'!$E$3:$AH$3,0)-1),MATCH(I$2&\" Score\",'C. PoC Adj Factor Scoring'!$E$4:$J$4,0),TRUE)","v":1},{"$f":"VLOOKUP(OFFSET($B:$B,,MATCH(J$4,$B$4:$F$4,0)-1),OFFSET('C. PoC Adj Factor Scoring'!$E$5:$J$282,,MATCH(J$4,'C. PoC Adj Factor Scoring'!$E$3:$AH$3,0)-1),MATCH(J$2&\" Score\",'C. PoC Adj Factor Scoring'!$E$4:$J$4,0),TRUE)","v":1},{"$f":"VLOOKUP(OFFSET($B:$B,,MATCH(K$4,$B$4:$F$4,0)-1),OFFSET('C. PoC Adj Factor Scoring'!$E$5:$J$282,,MATCH(K$4,'C. PoC Adj Factor Scoring'!$E$3:$AH$3,0)-1),MATCH(K$2&\" Score\",'C. PoC Adj Factor Scoring'!$E$4:$J$4,0),TRUE)","v":1},{"$f":"VLOOKUP(OFFSET($B:$B,,MATCH(L$4,$B$4:$F$4,0)-1),OFFSET('C. PoC Adj Factor Scoring'!$E$5:$J$282,,MATCH(L$4,'C. PoC Adj Factor Scoring'!$E$3:$AH$3,0)-1),MATCH(L$2&\" Score\",'C. PoC Adj Factor Scoring'!$E$4:$J$4,0),TRUE)","v":1},{"$f":"VLOOKUP(OFFSET($B:$B,,MATCH(M$4,$B$4:$F$4,0)-1),OFFSET('C. PoC Adj Factor Scoring'!$E$5:$J$282,,MATCH(M$4,'C. PoC Adj Factor Scoring'!$E$3:$AH$3,0)-1),MATCH(M$2&\" Score\",'C. PoC Adj Factor Scoring'!$E$4:$J$4,0),TRUE)","v":1},{"$f":"VLOOKUP(OFFSET($B:$B,,MATCH(N$4,$B$4:$F$4,0)-1),OFFSET('C. PoC Adj Factor Scoring'!$E$5:$J$282,,MATCH(N$4,'C. PoC Adj Factor Scoring'!$E$3:$AH$3,0)-1),MATCH(N$2&\" Score\",'C. PoC Adj Factor Scoring'!$E$4:$J$4,0),TRUE)","v":1},{"$f":"VLOOKUP(OFFSET($B:$B,,MATCH(O$4,$B$4:$F$4,0)-1),OFFSET('C. PoC Adj Factor Scoring'!$E$5:$J$282,,MATCH(O$4,'C. PoC Adj Factor Scoring'!$E$3:$AH$3,0)-1),MATCH(O$2&\" Score\",'C. PoC Adj Factor Scoring'!$E$4:$J$4,0),TRUE)","v":1},{"$f":"VLOOKUP(OFFSET($B:$B,,MATCH(P$4,$B$4:$F$4,0)-1),OFFSET('C. PoC Adj Factor Scoring'!$E$5:$J$282,,MATCH(P$4,'C. PoC Adj Factor Scoring'!$E$3:$AH$3,0)-1),MATCH(P$2&\" Score\",'C. PoC Adj Factor Scoring'!$E$4:$J$4,0),TRUE)","v":1},{"$f":"VLOOKUP(OFFSET($B:$B,,MATCH(Q$4,$B$4:$F$4,0)-1),OFFSET('C. PoC Adj Factor Scoring'!$E$5:$J$282,,MATCH(Q$4,'C. PoC Adj Factor Scoring'!$E$3:$AH$3,0)-1),MATCH(Q$2&\" Score\",'C. PoC Adj Factor Scoring'!$E$4:$J$4,0),TRUE)","v":1},{"$f":"VLOOKUP(OFFSET($B:$B,,MATCH(R$4,$B$4:$F$4,0)-1),OFFSET('C. PoC Adj Factor Scoring'!$E$5:$J$282,,MATCH(R$4,'C. PoC Adj Factor Scoring'!$E$3:$AH$3,0)-1),MATCH(R$2&\" Score\",'C. PoC Adj Factor Scoring'!$E$4:$J$4,0),TRUE)","v":1},{"$f":"VLOOKUP(OFFSET($B:$B,,MATCH(S$4,$B$4:$F$4,0)-1),OFFSET('C. PoC Adj Factor Scoring'!$E$5:$J$282,,MATCH(S$4,'C. PoC Adj Factor Scoring'!$E$3:$AH$3,0)-1),MATCH(S$2&\" Score\",'C. PoC Adj Factor Scoring'!$E$4:$J$4,0),TRUE)","v":1},{"$f":"VLOOKUP(OFFSET($B:$B,,MATCH(T$4,$B$4:$F$4,0)-1),OFFSET('C. PoC Adj Factor Scoring'!$E$5:$J$282,,MATCH(T$4,'C. PoC Adj Factor Scoring'!$E$3:$AH$3,0)-1),MATCH(T$2&\" Score\",'C. PoC Adj Factor Scoring'!$E$4:$J$4,0),TRUE)","v":1},{"$f":"VLOOKUP(OFFSET($B:$B,,MATCH(U$4,$B$4:$F$4,0)-1),OFFSET('C. PoC Adj Factor Scoring'!$E$5:$J$282,,MATCH(U$4,'C. PoC Adj Factor Scoring'!$E$3:$AH$3,0)-1),MATCH(U$2&\" Score\",'C. PoC Adj Factor Scoring'!$E$4:$J$4,0),TRUE)","v":1},{"$f":"VLOOKUP(OFFSET($B:$B,,MATCH(V$4,$B$4:$F$4,0)-1),OFFSET('C. PoC Adj Factor Scoring'!$E$5:$J$282,,MATCH(V$4,'C. PoC Adj Factor Scoring'!$E$3:$AH$3,0)-1),MATCH(V$2&\" Score\",'C. PoC Adj Factor Scoring'!$E$4:$J$4,0),TRUE)","v":1},{"$f":"VLOOKUP(OFFSET($B:$B,,MATCH(W$4,$B$4:$F$4,0)-1),OFFSET('C. PoC Adj Factor Scoring'!$E$5:$J$282,,MATCH(W$4,'C. PoC Adj Factor Scoring'!$E$3:$AH$3,0)-1),MATCH(W$2&\" Score\",'C. PoC Adj Factor Scoring'!$E$4:$J$4,0),TRUE)","v":1},{"$f":"VLOOKUP(OFFSET($B:$B,,MATCH(X$4,$B$4:$F$4,0)-1),OFFSET('C. PoC Adj Factor Scoring'!$E$5:$J$282,,MATCH(X$4,'C. PoC Adj Factor Scoring'!$E$3:$AH$3,0)-1),MATCH(X$2&\" Score\",'C. PoC Adj Factor Scoring'!$E$4:$J$4,0),TRUE)","v":1},{"$f":"VLOOKUP(OFFSET($B:$B,,MATCH(Y$4,$B$4:$F$4,0)-1),OFFSET('C. PoC Adj Factor Scoring'!$E$5:$J$282,,MATCH(Y$4,'C. PoC Adj Factor Scoring'!$E$3:$AH$3,0)-1),MATCH(Y$2&\" Score\",'C. PoC Adj Factor Scoring'!$E$4:$J$4,0),TRUE)","v":1},{"$f":"VLOOKUP(OFFSET($B:$B,,MATCH(Z$4,$B$4:$F$4,0)-1),OFFSET('C. PoC Adj Factor Scoring'!$E$5:$J$282,,MATCH(Z$4,'C. PoC Adj Factor Scoring'!$E$3:$AH$3,0)-1),MATCH(Z$2&\" Score\",'C. PoC Adj Factor Scoring'!$E$4:$J$4,0),TRUE)","v":1},{"$f":"VLOOKUP(OFFSET($B:$B,,MATCH(AA$4,$B$4:$F$4,0)-1),OFFSET('C. PoC Adj Factor Scoring'!$E$5:$J$282,,MATCH(AA$4,'C. PoC Adj Factor Scoring'!$E$3:$AH$3,0)-1),MATCH(AA$2&\" Score\",'C. PoC Adj Factor Scoring'!$E$4:$J$4,0),TRUE)","v":3},{"$f":"VLOOKUP(OFFSET($B:$B,,MATCH(AB$4,$B$4:$F$4,0)-1),OFFSET('C. PoC Adj Factor Scoring'!$E$5:$J$282,,MATCH(AB$4,'C. PoC Adj Factor Scoring'!$E$3:$AH$3,0)-1),MATCH(AB$2&\" Score\",'C. PoC Adj Factor Scoring'!$E$4:$J$4,0),TRUE)","v":1},{"$f":"VLOOKUP(OFFSET($B:$B,,MATCH(AC$4,$B$4:$F$4,0)-1),OFFSET('C. PoC Adj Factor Scoring'!$E$5:$J$282,,MATCH(AC$4,'C. PoC Adj Factor Scoring'!$E$3:$AH$3,0)-1),MATCH(AC$2&\" Score\",'C. PoC Adj Factor Scoring'!$E$4:$J$4,0),TRUE)","v":1},{"$f":"VLOOKUP(OFFSET($B:$B,,MATCH(AD$4,$B$4:$F$4,0)-1),OFFSET('C. PoC Adj Factor Scoring'!$E$5:$J$282,,MATCH(AD$4,'C. PoC Adj Factor Scoring'!$E$3:$AH$3,0)-1),MATCH(AD$2&\" Score\",'C. PoC Adj Factor Scoring'!$E$4:$J$4,0),TRUE)","v":1},{"$f":"VLOOKUP(OFFSET($B:$B,,MATCH(AE$4,$B$4:$F$4,0)-1),OFFSET('C. PoC Adj Factor Scoring'!$E$5:$J$282,,MATCH(AE$4,'C. PoC Adj Factor Scoring'!$E$3:$AH$3,0)-1),MATCH(AE$2&\" Score\",'C. PoC Adj Factor Scoring'!$E$4:$J$4,0),TRUE)","v":1}]
[{"$f":"'A. Population Info'!A191","v":1000353167},{"$f":"'A. Population Info'!L191","v":"OIL"},{"$f":"'A. Population Info'!M191","v":0},{"$f":"'A. Population Info'!N191","v":0},{"$f":"'A. Population Info'!O191","v":0},{"$f":"'A. Population Info'!P191","v":0},{"$f":"VLOOKUP(OFFSET($B:$B,,MATCH(G$4,$B$4:$F$4,0)-1),OFFSET('C. PoC Adj Factor Scoring'!$E$5:$J$282,,MATCH(G$4,'C. PoC Adj Factor Scoring'!$E$3:$AH$3,0)-1),MATCH(G$2&\" Score\",'C. PoC Adj Factor Scoring'!$E$4:$J$4,0),TRUE)","v":4},{"$f":"VLOOKUP(OFFSET($B:$B,,MATCH(H$4,$B$4:$F$4,0)-1),OFFSET('C. PoC Adj Factor Scoring'!$E$5:$J$282,,MATCH(H$4,'C. PoC Adj Factor Scoring'!$E$3:$AH$3,0)-1),MATCH(H$2&\" Score\",'C. PoC Adj Factor Scoring'!$E$4:$J$4,0),TRUE)","v":1},{"$f":"VLOOKUP(OFFSET($B:$B,,MATCH(I$4,$B$4:$F$4,0)-1),OFFSET('C. PoC Adj Factor Scoring'!$E$5:$J$282,,MATCH(I$4,'C. PoC Adj Factor Scoring'!$E$3:$AH$3,0)-1),MATCH(I$2&\" Score\",'C. PoC Adj Factor Scoring'!$E$4:$J$4,0),TRUE)","v":1},{"$f":"VLOOKUP(OFFSET($B:$B,,MATCH(J$4,$B$4:$F$4,0)-1),OFFSET('C. PoC Adj Factor Scoring'!$E$5:$J$282,,MATCH(J$4,'C. PoC Adj Factor Scoring'!$E$3:$AH$3,0)-1),MATCH(J$2&\" Score\",'C. PoC Adj Factor Scoring'!$E$4:$J$4,0),TRUE)","v":1},{"$f":"VLOOKUP(OFFSET($B:$B,,MATCH(K$4,$B$4:$F$4,0)-1),OFFSET('C. PoC Adj Factor Scoring'!$E$5:$J$282,,MATCH(K$4,'C. PoC Adj Factor Scoring'!$E$3:$AH$3,0)-1),MATCH(K$2&\" Score\",'C. PoC Adj Factor Scoring'!$E$4:$J$4,0),TRUE)","v":1},{"$f":"VLOOKUP(OFFSET($B:$B,,MATCH(L$4,$B$4:$F$4,0)-1),OFFSET('C. PoC Adj Factor Scoring'!$E$5:$J$282,,MATCH(L$4,'C. PoC Adj Factor Scoring'!$E$3:$AH$3,0)-1),MATCH(L$2&\" Score\",'C. PoC Adj Factor Scoring'!$E$4:$J$4,0),TRUE)","v":1},{"$f":"VLOOKUP(OFFSET($B:$B,,MATCH(M$4,$B$4:$F$4,0)-1),OFFSET('C. PoC Adj Factor Scoring'!$E$5:$J$282,,MATCH(M$4,'C. PoC Adj Factor Scoring'!$E$3:$AH$3,0)-1),MATCH(M$2&\" Score\",'C. PoC Adj Factor Scoring'!$E$4:$J$4,0),TRUE)","v":1},{"$f":"VLOOKUP(OFFSET($B:$B,,MATCH(N$4,$B$4:$F$4,0)-1),OFFSET('C. PoC Adj Factor Scoring'!$E$5:$J$282,,MATCH(N$4,'C. PoC Adj Factor Scoring'!$E$3:$AH$3,0)-1),MATCH(N$2&\" Score\",'C. PoC Adj Factor Scoring'!$E$4:$J$4,0),TRUE)","v":1},{"$f":"VLOOKUP(OFFSET($B:$B,,MATCH(O$4,$B$4:$F$4,0)-1),OFFSET('C. PoC Adj Factor Scoring'!$E$5:$J$282,,MATCH(O$4,'C. PoC Adj Factor Scoring'!$E$3:$AH$3,0)-1),MATCH(O$2&\" Score\",'C. PoC Adj Factor Scoring'!$E$4:$J$4,0),TRUE)","v":1},{"$f":"VLOOKUP(OFFSET($B:$B,,MATCH(P$4,$B$4:$F$4,0)-1),OFFSET('C. PoC Adj Factor Scoring'!$E$5:$J$282,,MATCH(P$4,'C. PoC Adj Factor Scoring'!$E$3:$AH$3,0)-1),MATCH(P$2&\" Score\",'C. PoC Adj Factor Scoring'!$E$4:$J$4,0),TRUE)","v":1},{"$f":"VLOOKUP(OFFSET($B:$B,,MATCH(Q$4,$B$4:$F$4,0)-1),OFFSET('C. PoC Adj Factor Scoring'!$E$5:$J$282,,MATCH(Q$4,'C. PoC Adj Factor Scoring'!$E$3:$AH$3,0)-1),MATCH(Q$2&\" Score\",'C. PoC Adj Factor Scoring'!$E$4:$J$4,0),TRUE)","v":1},{"$f":"VLOOKUP(OFFSET($B:$B,,MATCH(R$4,$B$4:$F$4,0)-1),OFFSET('C. PoC Adj Factor Scoring'!$E$5:$J$282,,MATCH(R$4,'C. PoC Adj Factor Scoring'!$E$3:$AH$3,0)-1),MATCH(R$2&\" Score\",'C. PoC Adj Factor Scoring'!$E$4:$J$4,0),TRUE)","v":1},{"$f":"VLOOKUP(OFFSET($B:$B,,MATCH(S$4,$B$4:$F$4,0)-1),OFFSET('C. PoC Adj Factor Scoring'!$E$5:$J$282,,MATCH(S$4,'C. PoC Adj Factor Scoring'!$E$3:$AH$3,0)-1),MATCH(S$2&\" Score\",'C. PoC Adj Factor Scoring'!$E$4:$J$4,0),TRUE)","v":1},{"$f":"VLOOKUP(OFFSET($B:$B,,MATCH(T$4,$B$4:$F$4,0)-1),OFFSET('C. PoC Adj Factor Scoring'!$E$5:$J$282,,MATCH(T$4,'C. PoC Adj Factor Scoring'!$E$3:$AH$3,0)-1),MATCH(T$2&\" Score\",'C. PoC Adj Factor Scoring'!$E$4:$J$4,0),TRUE)","v":1},{"$f":"VLOOKUP(OFFSET($B:$B,,MATCH(U$4,$B$4:$F$4,0)-1),OFFSET('C. PoC Adj Factor Scoring'!$E$5:$J$282,,MATCH(U$4,'C. PoC Adj Factor Scoring'!$E$3:$AH$3,0)-1),MATCH(U$2&\" Score\",'C. PoC Adj Factor Scoring'!$E$4:$J$4,0),TRUE)","v":1},{"$f":"VLOOKUP(OFFSET($B:$B,,MATCH(V$4,$B$4:$F$4,0)-1),OFFSET('C. PoC Adj Factor Scoring'!$E$5:$J$282,,MATCH(V$4,'C. PoC Adj Factor Scoring'!$E$3:$AH$3,0)-1),MATCH(V$2&\" Score\",'C. PoC Adj Factor Scoring'!$E$4:$J$4,0),TRUE)","v":1},{"$f":"VLOOKUP(OFFSET($B:$B,,MATCH(W$4,$B$4:$F$4,0)-1),OFFSET('C. PoC Adj Factor Scoring'!$E$5:$J$282,,MATCH(W$4,'C. PoC Adj Factor Scoring'!$E$3:$AH$3,0)-1),MATCH(W$2&\" Score\",'C. PoC Adj Factor Scoring'!$E$4:$J$4,0),TRUE)","v":1},{"$f":"VLOOKUP(OFFSET($B:$B,,MATCH(X$4,$B$4:$F$4,0)-1),OFFSET('C. PoC Adj Factor Scoring'!$E$5:$J$282,,MATCH(X$4,'C. PoC Adj Factor Scoring'!$E$3:$AH$3,0)-1),MATCH(X$2&\" Score\",'C. PoC Adj Factor Scoring'!$E$4:$J$4,0),TRUE)","v":1},{"$f":"VLOOKUP(OFFSET($B:$B,,MATCH(Y$4,$B$4:$F$4,0)-1),OFFSET('C. PoC Adj Factor Scoring'!$E$5:$J$282,,MATCH(Y$4,'C. PoC Adj Factor Scoring'!$E$3:$AH$3,0)-1),MATCH(Y$2&\" Score\",'C. PoC Adj Factor Scoring'!$E$4:$J$4,0),TRUE)","v":1},{"$f":"VLOOKUP(OFFSET($B:$B,,MATCH(Z$4,$B$4:$F$4,0)-1),OFFSET('C. PoC Adj Factor Scoring'!$E$5:$J$282,,MATCH(Z$4,'C. PoC Adj Factor Scoring'!$E$3:$AH$3,0)-1),MATCH(Z$2&\" Score\",'C. PoC Adj Factor Scoring'!$E$4:$J$4,0),TRUE)","v":1},{"$f":"VLOOKUP(OFFSET($B:$B,,MATCH(AA$4,$B$4:$F$4,0)-1),OFFSET('C. PoC Adj Factor Scoring'!$E$5:$J$282,,MATCH(AA$4,'C. PoC Adj Factor Scoring'!$E$3:$AH$3,0)-1),MATCH(AA$2&\" Score\",'C. PoC Adj Factor Scoring'!$E$4:$J$4,0),TRUE)","v":3},{"$f":"VLOOKUP(OFFSET($B:$B,,MATCH(AB$4,$B$4:$F$4,0)-1),OFFSET('C. PoC Adj Factor Scoring'!$E$5:$J$282,,MATCH(AB$4,'C. PoC Adj Factor Scoring'!$E$3:$AH$3,0)-1),MATCH(AB$2&\" Score\",'C. PoC Adj Factor Scoring'!$E$4:$J$4,0),TRUE)","v":1},{"$f":"VLOOKUP(OFFSET($B:$B,,MATCH(AC$4,$B$4:$F$4,0)-1),OFFSET('C. PoC Adj Factor Scoring'!$E$5:$J$282,,MATCH(AC$4,'C. PoC Adj Factor Scoring'!$E$3:$AH$3,0)-1),MATCH(AC$2&\" Score\",'C. PoC Adj Factor Scoring'!$E$4:$J$4,0),TRUE)","v":1},{"$f":"VLOOKUP(OFFSET($B:$B,,MATCH(AD$4,$B$4:$F$4,0)-1),OFFSET('C. PoC Adj Factor Scoring'!$E$5:$J$282,,MATCH(AD$4,'C. PoC Adj Factor Scoring'!$E$3:$AH$3,0)-1),MATCH(AD$2&\" Score\",'C. PoC Adj Factor Scoring'!$E$4:$J$4,0),TRUE)","v":1},{"$f":"VLOOKUP(OFFSET($B:$B,,MATCH(AE$4,$B$4:$F$4,0)-1),OFFSET('C. PoC Adj Factor Scoring'!$E$5:$J$282,,MATCH(AE$4,'C. PoC Adj Factor Scoring'!$E$3:$AH$3,0)-1),MATCH(AE$2&\" Score\",'C. PoC Adj Factor Scoring'!$E$4:$J$4,0),TRUE)","v":1}]
[{"$f":"'A. Population Info'!A192","v":1000353227},{"$f":"'A. Population Info'!L192","v":"OIL"},{"$f":"'A. Population Info'!M192","v":0},{"$f":"'A. Population Info'!N192","v":0},{"$f":"'A. Population Info'!O192","v":0},{"$f":"'A. Population Info'!P192","v":0},{"$f":"VLOOKUP(OFFSET($B:$B,,MATCH(G$4,$B$4:$F$4,0)-1),OFFSET('C. PoC Adj Factor Scoring'!$E$5:$J$282,,MATCH(G$4,'C. PoC Adj Factor Scoring'!$E$3:$AH$3,0)-1),MATCH(G$2&\" Score\",'C. PoC Adj Factor Scoring'!$E$4:$J$4,0),TRUE)","v":4},{"$f":"VLOOKUP(OFFSET($B:$B,,MATCH(H$4,$B$4:$F$4,0)-1),OFFSET('C. PoC Adj Factor Scoring'!$E$5:$J$282,,MATCH(H$4,'C. PoC Adj Factor Scoring'!$E$3:$AH$3,0)-1),MATCH(H$2&\" Score\",'C. PoC Adj Factor Scoring'!$E$4:$J$4,0),TRUE)","v":1},{"$f":"VLOOKUP(OFFSET($B:$B,,MATCH(I$4,$B$4:$F$4,0)-1),OFFSET('C. PoC Adj Factor Scoring'!$E$5:$J$282,,MATCH(I$4,'C. PoC Adj Factor Scoring'!$E$3:$AH$3,0)-1),MATCH(I$2&\" Score\",'C. PoC Adj Factor Scoring'!$E$4:$J$4,0),TRUE)","v":1},{"$f":"VLOOKUP(OFFSET($B:$B,,MATCH(J$4,$B$4:$F$4,0)-1),OFFSET('C. PoC Adj Factor Scoring'!$E$5:$J$282,,MATCH(J$4,'C. PoC Adj Factor Scoring'!$E$3:$AH$3,0)-1),MATCH(J$2&\" Score\",'C. PoC Adj Factor Scoring'!$E$4:$J$4,0),TRUE)","v":1},{"$f":"VLOOKUP(OFFSET($B:$B,,MATCH(K$4,$B$4:$F$4,0)-1),OFFSET('C. PoC Adj Factor Scoring'!$E$5:$J$282,,MATCH(K$4,'C. PoC Adj Factor Scoring'!$E$3:$AH$3,0)-1),MATCH(K$2&\" Score\",'C. PoC Adj Factor Scoring'!$E$4:$J$4,0),TRUE)","v":1},{"$f":"VLOOKUP(OFFSET($B:$B,,MATCH(L$4,$B$4:$F$4,0)-1),OFFSET('C. PoC Adj Factor Scoring'!$E$5:$J$282,,MATCH(L$4,'C. PoC Adj Factor Scoring'!$E$3:$AH$3,0)-1),MATCH(L$2&\" Score\",'C. PoC Adj Factor Scoring'!$E$4:$J$4,0),TRUE)","v":1},{"$f":"VLOOKUP(OFFSET($B:$B,,MATCH(M$4,$B$4:$F$4,0)-1),OFFSET('C. PoC Adj Factor Scoring'!$E$5:$J$282,,MATCH(M$4,'C. PoC Adj Factor Scoring'!$E$3:$AH$3,0)-1),MATCH(M$2&\" Score\",'C. PoC Adj Factor Scoring'!$E$4:$J$4,0),TRUE)","v":1},{"$f":"VLOOKUP(OFFSET($B:$B,,MATCH(N$4,$B$4:$F$4,0)-1),OFFSET('C. PoC Adj Factor Scoring'!$E$5:$J$282,,MATCH(N$4,'C. PoC Adj Factor Scoring'!$E$3:$AH$3,0)-1),MATCH(N$2&\" Score\",'C. PoC Adj Factor Scoring'!$E$4:$J$4,0),TRUE)","v":1},{"$f":"VLOOKUP(OFFSET($B:$B,,MATCH(O$4,$B$4:$F$4,0)-1),OFFSET('C. PoC Adj Factor Scoring'!$E$5:$J$282,,MATCH(O$4,'C. PoC Adj Factor Scoring'!$E$3:$AH$3,0)-1),MATCH(O$2&\" Score\",'C. PoC Adj Factor Scoring'!$E$4:$J$4,0),TRUE)","v":1},{"$f":"VLOOKUP(OFFSET($B:$B,,MATCH(P$4,$B$4:$F$4,0)-1),OFFSET('C. PoC Adj Factor Scoring'!$E$5:$J$282,,MATCH(P$4,'C. PoC Adj Factor Scoring'!$E$3:$AH$3,0)-1),MATCH(P$2&\" Score\",'C. PoC Adj Factor Scoring'!$E$4:$J$4,0),TRUE)","v":1},{"$f":"VLOOKUP(OFFSET($B:$B,,MATCH(Q$4,$B$4:$F$4,0)-1),OFFSET('C. PoC Adj Factor Scoring'!$E$5:$J$282,,MATCH(Q$4,'C. PoC Adj Factor Scoring'!$E$3:$AH$3,0)-1),MATCH(Q$2&\" Score\",'C. PoC Adj Factor Scoring'!$E$4:$J$4,0),TRUE)","v":1},{"$f":"VLOOKUP(OFFSET($B:$B,,MATCH(R$4,$B$4:$F$4,0)-1),OFFSET('C. PoC Adj Factor Scoring'!$E$5:$J$282,,MATCH(R$4,'C. PoC Adj Factor Scoring'!$E$3:$AH$3,0)-1),MATCH(R$2&\" Score\",'C. PoC Adj Factor Scoring'!$E$4:$J$4,0),TRUE)","v":1},{"$f":"VLOOKUP(OFFSET($B:$B,,MATCH(S$4,$B$4:$F$4,0)-1),OFFSET('C. PoC Adj Factor Scoring'!$E$5:$J$282,,MATCH(S$4,'C. PoC Adj Factor Scoring'!$E$3:$AH$3,0)-1),MATCH(S$2&\" Score\",'C. PoC Adj Factor Scoring'!$E$4:$J$4,0),TRUE)","v":1},{"$f":"VLOOKUP(OFFSET($B:$B,,MATCH(T$4,$B$4:$F$4,0)-1),OFFSET('C. PoC Adj Factor Scoring'!$E$5:$J$282,,MATCH(T$4,'C. PoC Adj Factor Scoring'!$E$3:$AH$3,0)-1),MATCH(T$2&\" Score\",'C. PoC Adj Factor Scoring'!$E$4:$J$4,0),TRUE)","v":1},{"$f":"VLOOKUP(OFFSET($B:$B,,MATCH(U$4,$B$4:$F$4,0)-1),OFFSET('C. PoC Adj Factor Scoring'!$E$5:$J$282,,MATCH(U$4,'C. PoC Adj Factor Scoring'!$E$3:$AH$3,0)-1),MATCH(U$2&\" Score\",'C. PoC Adj Factor Scoring'!$E$4:$J$4,0),TRUE)","v":1},{"$f":"VLOOKUP(OFFSET($B:$B,,MATCH(V$4,$B$4:$F$4,0)-1),OFFSET('C. PoC Adj Factor Scoring'!$E$5:$J$282,,MATCH(V$4,'C. PoC Adj Factor Scoring'!$E$3:$AH$3,0)-1),MATCH(V$2&\" Score\",'C. PoC Adj Factor Scoring'!$E$4:$J$4,0),TRUE)","v":1},{"$f":"VLOOKUP(OFFSET($B:$B,,MATCH(W$4,$B$4:$F$4,0)-1),OFFSET('C. PoC Adj Factor Scoring'!$E$5:$J$282,,MATCH(W$4,'C. PoC Adj Factor Scoring'!$E$3:$AH$3,0)-1),MATCH(W$2&\" Score\",'C. PoC Adj Factor Scoring'!$E$4:$J$4,0),TRUE)","v":1},{"$f":"VLOOKUP(OFFSET($B:$B,,MATCH(X$4,$B$4:$F$4,0)-1),OFFSET('C. PoC Adj Factor Scoring'!$E$5:$J$282,,MATCH(X$4,'C. PoC Adj Factor Scoring'!$E$3:$AH$3,0)-1),MATCH(X$2&\" Score\",'C. PoC Adj Factor Scoring'!$E$4:$J$4,0),TRUE)","v":1},{"$f":"VLOOKUP(OFFSET($B:$B,,MATCH(Y$4,$B$4:$F$4,0)-1),OFFSET('C. PoC Adj Factor Scoring'!$E$5:$J$282,,MATCH(Y$4,'C. PoC Adj Factor Scoring'!$E$3:$AH$3,0)-1),MATCH(Y$2&\" Score\",'C. PoC Adj Factor Scoring'!$E$4:$J$4,0),TRUE)","v":1},{"$f":"VLOOKUP(OFFSET($B:$B,,MATCH(Z$4,$B$4:$F$4,0)-1),OFFSET('C. PoC Adj Factor Scoring'!$E$5:$J$282,,MATCH(Z$4,'C. PoC Adj Factor Scoring'!$E$3:$AH$3,0)-1),MATCH(Z$2&\" Score\",'C. PoC Adj Factor Scoring'!$E$4:$J$4,0),TRUE)","v":1},{"$f":"VLOOKUP(OFFSET($B:$B,,MATCH(AA$4,$B$4:$F$4,0)-1),OFFSET('C. PoC Adj Factor Scoring'!$E$5:$J$282,,MATCH(AA$4,'C. PoC Adj Factor Scoring'!$E$3:$AH$3,0)-1),MATCH(AA$2&\" Score\",'C. PoC Adj Factor Scoring'!$E$4:$J$4,0),TRUE)","v":3},{"$f":"VLOOKUP(OFFSET($B:$B,,MATCH(AB$4,$B$4:$F$4,0)-1),OFFSET('C. PoC Adj Factor Scoring'!$E$5:$J$282,,MATCH(AB$4,'C. PoC Adj Factor Scoring'!$E$3:$AH$3,0)-1),MATCH(AB$2&\" Score\",'C. PoC Adj Factor Scoring'!$E$4:$J$4,0),TRUE)","v":1},{"$f":"VLOOKUP(OFFSET($B:$B,,MATCH(AC$4,$B$4:$F$4,0)-1),OFFSET('C. PoC Adj Factor Scoring'!$E$5:$J$282,,MATCH(AC$4,'C. PoC Adj Factor Scoring'!$E$3:$AH$3,0)-1),MATCH(AC$2&\" Score\",'C. PoC Adj Factor Scoring'!$E$4:$J$4,0),TRUE)","v":1},{"$f":"VLOOKUP(OFFSET($B:$B,,MATCH(AD$4,$B$4:$F$4,0)-1),OFFSET('C. PoC Adj Factor Scoring'!$E$5:$J$282,,MATCH(AD$4,'C. PoC Adj Factor Scoring'!$E$3:$AH$3,0)-1),MATCH(AD$2&\" Score\",'C. PoC Adj Factor Scoring'!$E$4:$J$4,0),TRUE)","v":1},{"$f":"VLOOKUP(OFFSET($B:$B,,MATCH(AE$4,$B$4:$F$4,0)-1),OFFSET('C. PoC Adj Factor Scoring'!$E$5:$J$282,,MATCH(AE$4,'C. PoC Adj Factor Scoring'!$E$3:$AH$3,0)-1),MATCH(AE$2&\" Score\",'C. PoC Adj Factor Scoring'!$E$4:$J$4,0),TRUE)","v":1}]
[{"$f":"'A. Population Info'!A193","v":1000353258},{"$f":"'A. Population Info'!L193","v":"OIL"},{"$f":"'A. Population Info'!M193","v":0},{"$f":"'A. Population Info'!N193","v":0},{"$f":"'A. Population Info'!O193","v":0},{"$f":"'A. Population Info'!P193","v":0},{"$f":"VLOOKUP(OFFSET($B:$B,,MATCH(G$4,$B$4:$F$4,0)-1),OFFSET('C. PoC Adj Factor Scoring'!$E$5:$J$282,,MATCH(G$4,'C. PoC Adj Factor Scoring'!$E$3:$AH$3,0)-1),MATCH(G$2&\" Score\",'C. PoC Adj Factor Scoring'!$E$4:$J$4,0),TRUE)","v":4},{"$f":"VLOOKUP(OFFSET($B:$B,,MATCH(H$4,$B$4:$F$4,0)-1),OFFSET('C. PoC Adj Factor Scoring'!$E$5:$J$282,,MATCH(H$4,'C. PoC Adj Factor Scoring'!$E$3:$AH$3,0)-1),MATCH(H$2&\" Score\",'C. PoC Adj Factor Scoring'!$E$4:$J$4,0),TRUE)","v":1},{"$f":"VLOOKUP(OFFSET($B:$B,,MATCH(I$4,$B$4:$F$4,0)-1),OFFSET('C. PoC Adj Factor Scoring'!$E$5:$J$282,,MATCH(I$4,'C. PoC Adj Factor Scoring'!$E$3:$AH$3,0)-1),MATCH(I$2&\" Score\",'C. PoC Adj Factor Scoring'!$E$4:$J$4,0),TRUE)","v":1},{"$f":"VLOOKUP(OFFSET($B:$B,,MATCH(J$4,$B$4:$F$4,0)-1),OFFSET('C. PoC Adj Factor Scoring'!$E$5:$J$282,,MATCH(J$4,'C. PoC Adj Factor Scoring'!$E$3:$AH$3,0)-1),MATCH(J$2&\" Score\",'C. PoC Adj Factor Scoring'!$E$4:$J$4,0),TRUE)","v":1},{"$f":"VLOOKUP(OFFSET($B:$B,,MATCH(K$4,$B$4:$F$4,0)-1),OFFSET('C. PoC Adj Factor Scoring'!$E$5:$J$282,,MATCH(K$4,'C. PoC Adj Factor Scoring'!$E$3:$AH$3,0)-1),MATCH(K$2&\" Score\",'C. PoC Adj Factor Scoring'!$E$4:$J$4,0),TRUE)","v":1},{"$f":"VLOOKUP(OFFSET($B:$B,,MATCH(L$4,$B$4:$F$4,0)-1),OFFSET('C. PoC Adj Factor Scoring'!$E$5:$J$282,,MATCH(L$4,'C. PoC Adj Factor Scoring'!$E$3:$AH$3,0)-1),MATCH(L$2&\" Score\",'C. PoC Adj Factor Scoring'!$E$4:$J$4,0),TRUE)","v":1},{"$f":"VLOOKUP(OFFSET($B:$B,,MATCH(M$4,$B$4:$F$4,0)-1),OFFSET('C. PoC Adj Factor Scoring'!$E$5:$J$282,,MATCH(M$4,'C. PoC Adj Factor Scoring'!$E$3:$AH$3,0)-1),MATCH(M$2&\" Score\",'C. PoC Adj Factor Scoring'!$E$4:$J$4,0),TRUE)","v":1},{"$f":"VLOOKUP(OFFSET($B:$B,,MATCH(N$4,$B$4:$F$4,0)-1),OFFSET('C. PoC Adj Factor Scoring'!$E$5:$J$282,,MATCH(N$4,'C. PoC Adj Factor Scoring'!$E$3:$AH$3,0)-1),MATCH(N$2&\" Score\",'C. PoC Adj Factor Scoring'!$E$4:$J$4,0),TRUE)","v":1},{"$f":"VLOOKUP(OFFSET($B:$B,,MATCH(O$4,$B$4:$F$4,0)-1),OFFSET('C. PoC Adj Factor Scoring'!$E$5:$J$282,,MATCH(O$4,'C. PoC Adj Factor Scoring'!$E$3:$AH$3,0)-1),MATCH(O$2&\" Score\",'C. PoC Adj Factor Scoring'!$E$4:$J$4,0),TRUE)","v":1},{"$f":"VLOOKUP(OFFSET($B:$B,,MATCH(P$4,$B$4:$F$4,0)-1),OFFSET('C. PoC Adj Factor Scoring'!$E$5:$J$282,,MATCH(P$4,'C. PoC Adj Factor Scoring'!$E$3:$AH$3,0)-1),MATCH(P$2&\" Score\",'C. PoC Adj Factor Scoring'!$E$4:$J$4,0),TRUE)","v":1},{"$f":"VLOOKUP(OFFSET($B:$B,,MATCH(Q$4,$B$4:$F$4,0)-1),OFFSET('C. PoC Adj Factor Scoring'!$E$5:$J$282,,MATCH(Q$4,'C. PoC Adj Factor Scoring'!$E$3:$AH$3,0)-1),MATCH(Q$2&\" Score\",'C. PoC Adj Factor Scoring'!$E$4:$J$4,0),TRUE)","v":1},{"$f":"VLOOKUP(OFFSET($B:$B,,MATCH(R$4,$B$4:$F$4,0)-1),OFFSET('C. PoC Adj Factor Scoring'!$E$5:$J$282,,MATCH(R$4,'C. PoC Adj Factor Scoring'!$E$3:$AH$3,0)-1),MATCH(R$2&\" Score\",'C. PoC Adj Factor Scoring'!$E$4:$J$4,0),TRUE)","v":1},{"$f":"VLOOKUP(OFFSET($B:$B,,MATCH(S$4,$B$4:$F$4,0)-1),OFFSET('C. PoC Adj Factor Scoring'!$E$5:$J$282,,MATCH(S$4,'C. PoC Adj Factor Scoring'!$E$3:$AH$3,0)-1),MATCH(S$2&\" Score\",'C. PoC Adj Factor Scoring'!$E$4:$J$4,0),TRUE)","v":1},{"$f":"VLOOKUP(OFFSET($B:$B,,MATCH(T$4,$B$4:$F$4,0)-1),OFFSET('C. PoC Adj Factor Scoring'!$E$5:$J$282,,MATCH(T$4,'C. PoC Adj Factor Scoring'!$E$3:$AH$3,0)-1),MATCH(T$2&\" Score\",'C. PoC Adj Factor Scoring'!$E$4:$J$4,0),TRUE)","v":1},{"$f":"VLOOKUP(OFFSET($B:$B,,MATCH(U$4,$B$4:$F$4,0)-1),OFFSET('C. PoC Adj Factor Scoring'!$E$5:$J$282,,MATCH(U$4,'C. PoC Adj Factor Scoring'!$E$3:$AH$3,0)-1),MATCH(U$2&\" Score\",'C. PoC Adj Factor Scoring'!$E$4:$J$4,0),TRUE)","v":1},{"$f":"VLOOKUP(OFFSET($B:$B,,MATCH(V$4,$B$4:$F$4,0)-1),OFFSET('C. PoC Adj Factor Scoring'!$E$5:$J$282,,MATCH(V$4,'C. PoC Adj Factor Scoring'!$E$3:$AH$3,0)-1),MATCH(V$2&\" Score\",'C. PoC Adj Factor Scoring'!$E$4:$J$4,0),TRUE)","v":1},{"$f":"VLOOKUP(OFFSET($B:$B,,MATCH(W$4,$B$4:$F$4,0)-1),OFFSET('C. PoC Adj Factor Scoring'!$E$5:$J$282,,MATCH(W$4,'C. PoC Adj Factor Scoring'!$E$3:$AH$3,0)-1),MATCH(W$2&\" Score\",'C. PoC Adj Factor Scoring'!$E$4:$J$4,0),TRUE)","v":1},{"$f":"VLOOKUP(OFFSET($B:$B,,MATCH(X$4,$B$4:$F$4,0)-1),OFFSET('C. PoC Adj Factor Scoring'!$E$5:$J$282,,MATCH(X$4,'C. PoC Adj Factor Scoring'!$E$3:$AH$3,0)-1),MATCH(X$2&\" Score\",'C. PoC Adj Factor Scoring'!$E$4:$J$4,0),TRUE)","v":1},{"$f":"VLOOKUP(OFFSET($B:$B,,MATCH(Y$4,$B$4:$F$4,0)-1),OFFSET('C. PoC Adj Factor Scoring'!$E$5:$J$282,,MATCH(Y$4,'C. PoC Adj Factor Scoring'!$E$3:$AH$3,0)-1),MATCH(Y$2&\" Score\",'C. PoC Adj Factor Scoring'!$E$4:$J$4,0),TRUE)","v":1},{"$f":"VLOOKUP(OFFSET($B:$B,,MATCH(Z$4,$B$4:$F$4,0)-1),OFFSET('C. PoC Adj Factor Scoring'!$E$5:$J$282,,MATCH(Z$4,'C. PoC Adj Factor Scoring'!$E$3:$AH$3,0)-1),MATCH(Z$2&\" Score\",'C. PoC Adj Factor Scoring'!$E$4:$J$4,0),TRUE)","v":1},{"$f":"VLOOKUP(OFFSET($B:$B,,MATCH(AA$4,$B$4:$F$4,0)-1),OFFSET('C. PoC Adj Factor Scoring'!$E$5:$J$282,,MATCH(AA$4,'C. PoC Adj Factor Scoring'!$E$3:$AH$3,0)-1),MATCH(AA$2&\" Score\",'C. PoC Adj Factor Scoring'!$E$4:$J$4,0),TRUE)","v":3},{"$f":"VLOOKUP(OFFSET($B:$B,,MATCH(AB$4,$B$4:$F$4,0)-1),OFFSET('C. PoC Adj Factor Scoring'!$E$5:$J$282,,MATCH(AB$4,'C. PoC Adj Factor Scoring'!$E$3:$AH$3,0)-1),MATCH(AB$2&\" Score\",'C. PoC Adj Factor Scoring'!$E$4:$J$4,0),TRUE)","v":1},{"$f":"VLOOKUP(OFFSET($B:$B,,MATCH(AC$4,$B$4:$F$4,0)-1),OFFSET('C. PoC Adj Factor Scoring'!$E$5:$J$282,,MATCH(AC$4,'C. PoC Adj Factor Scoring'!$E$3:$AH$3,0)-1),MATCH(AC$2&\" Score\",'C. PoC Adj Factor Scoring'!$E$4:$J$4,0),TRUE)","v":1},{"$f":"VLOOKUP(OFFSET($B:$B,,MATCH(AD$4,$B$4:$F$4,0)-1),OFFSET('C. PoC Adj Factor Scoring'!$E$5:$J$282,,MATCH(AD$4,'C. PoC Adj Factor Scoring'!$E$3:$AH$3,0)-1),MATCH(AD$2&\" Score\",'C. PoC Adj Factor Scoring'!$E$4:$J$4,0),TRUE)","v":1},{"$f":"VLOOKUP(OFFSET($B:$B,,MATCH(AE$4,$B$4:$F$4,0)-1),OFFSET('C. PoC Adj Factor Scoring'!$E$5:$J$282,,MATCH(AE$4,'C. PoC Adj Factor Scoring'!$E$3:$AH$3,0)-1),MATCH(AE$2&\" Score\",'C. PoC Adj Factor Scoring'!$E$4:$J$4,0),TRUE)","v":1}]
[{"$f":"'A. Population Info'!A194","v":1000353287},{"$f":"'A. Population Info'!L194","v":"OIL"},{"$f":"'A. Population Info'!M194","v":0},{"$f":"'A. Population Info'!N194","v":0},{"$f":"'A. Population Info'!O194","v":0},{"$f":"'A. Population Info'!P194","v":0},{"$f":"VLOOKUP(OFFSET($B:$B,,MATCH(G$4,$B$4:$F$4,0)-1),OFFSET('C. PoC Adj Factor Scoring'!$E$5:$J$282,,MATCH(G$4,'C. PoC Adj Factor Scoring'!$E$3:$AH$3,0)-1),MATCH(G$2&\" Score\",'C. PoC Adj Factor Scoring'!$E$4:$J$4,0),TRUE)","v":4},{"$f":"VLOOKUP(OFFSET($B:$B,,MATCH(H$4,$B$4:$F$4,0)-1),OFFSET('C. PoC Adj Factor Scoring'!$E$5:$J$282,,MATCH(H$4,'C. PoC Adj Factor Scoring'!$E$3:$AH$3,0)-1),MATCH(H$2&\" Score\",'C. PoC Adj Factor Scoring'!$E$4:$J$4,0),TRUE)","v":1},{"$f":"VLOOKUP(OFFSET($B:$B,,MATCH(I$4,$B$4:$F$4,0)-1),OFFSET('C. PoC Adj Factor Scoring'!$E$5:$J$282,,MATCH(I$4,'C. PoC Adj Factor Scoring'!$E$3:$AH$3,0)-1),MATCH(I$2&\" Score\",'C. PoC Adj Factor Scoring'!$E$4:$J$4,0),TRUE)","v":1},{"$f":"VLOOKUP(OFFSET($B:$B,,MATCH(J$4,$B$4:$F$4,0)-1),OFFSET('C. PoC Adj Factor Scoring'!$E$5:$J$282,,MATCH(J$4,'C. PoC Adj Factor Scoring'!$E$3:$AH$3,0)-1),MATCH(J$2&\" Score\",'C. PoC Adj Factor Scoring'!$E$4:$J$4,0),TRUE)","v":1},{"$f":"VLOOKUP(OFFSET($B:$B,,MATCH(K$4,$B$4:$F$4,0)-1),OFFSET('C. PoC Adj Factor Scoring'!$E$5:$J$282,,MATCH(K$4,'C. PoC Adj Factor Scoring'!$E$3:$AH$3,0)-1),MATCH(K$2&\" Score\",'C. PoC Adj Factor Scoring'!$E$4:$J$4,0),TRUE)","v":1},{"$f":"VLOOKUP(OFFSET($B:$B,,MATCH(L$4,$B$4:$F$4,0)-1),OFFSET('C. PoC Adj Factor Scoring'!$E$5:$J$282,,MATCH(L$4,'C. PoC Adj Factor Scoring'!$E$3:$AH$3,0)-1),MATCH(L$2&\" Score\",'C. PoC Adj Factor Scoring'!$E$4:$J$4,0),TRUE)","v":1},{"$f":"VLOOKUP(OFFSET($B:$B,,MATCH(M$4,$B$4:$F$4,0)-1),OFFSET('C. PoC Adj Factor Scoring'!$E$5:$J$282,,MATCH(M$4,'C. PoC Adj Factor Scoring'!$E$3:$AH$3,0)-1),MATCH(M$2&\" Score\",'C. PoC Adj Factor Scoring'!$E$4:$J$4,0),TRUE)","v":1},{"$f":"VLOOKUP(OFFSET($B:$B,,MATCH(N$4,$B$4:$F$4,0)-1),OFFSET('C. PoC Adj Factor Scoring'!$E$5:$J$282,,MATCH(N$4,'C. PoC Adj Factor Scoring'!$E$3:$AH$3,0)-1),MATCH(N$2&\" Score\",'C. PoC Adj Factor Scoring'!$E$4:$J$4,0),TRUE)","v":1},{"$f":"VLOOKUP(OFFSET($B:$B,,MATCH(O$4,$B$4:$F$4,0)-1),OFFSET('C. PoC Adj Factor Scoring'!$E$5:$J$282,,MATCH(O$4,'C. PoC Adj Factor Scoring'!$E$3:$AH$3,0)-1),MATCH(O$2&\" Score\",'C. PoC Adj Factor Scoring'!$E$4:$J$4,0),TRUE)","v":1},{"$f":"VLOOKUP(OFFSET($B:$B,,MATCH(P$4,$B$4:$F$4,0)-1),OFFSET('C. PoC Adj Factor Scoring'!$E$5:$J$282,,MATCH(P$4,'C. PoC Adj Factor Scoring'!$E$3:$AH$3,0)-1),MATCH(P$2&\" Score\",'C. PoC Adj Factor Scoring'!$E$4:$J$4,0),TRUE)","v":1},{"$f":"VLOOKUP(OFFSET($B:$B,,MATCH(Q$4,$B$4:$F$4,0)-1),OFFSET('C. PoC Adj Factor Scoring'!$E$5:$J$282,,MATCH(Q$4,'C. PoC Adj Factor Scoring'!$E$3:$AH$3,0)-1),MATCH(Q$2&\" Score\",'C. PoC Adj Factor Scoring'!$E$4:$J$4,0),TRUE)","v":1},{"$f":"VLOOKUP(OFFSET($B:$B,,MATCH(R$4,$B$4:$F$4,0)-1),OFFSET('C. PoC Adj Factor Scoring'!$E$5:$J$282,,MATCH(R$4,'C. PoC Adj Factor Scoring'!$E$3:$AH$3,0)-1),MATCH(R$2&\" Score\",'C. PoC Adj Factor Scoring'!$E$4:$J$4,0),TRUE)","v":1},{"$f":"VLOOKUP(OFFSET($B:$B,,MATCH(S$4,$B$4:$F$4,0)-1),OFFSET('C. PoC Adj Factor Scoring'!$E$5:$J$282,,MATCH(S$4,'C. PoC Adj Factor Scoring'!$E$3:$AH$3,0)-1),MATCH(S$2&\" Score\",'C. PoC Adj Factor Scoring'!$E$4:$J$4,0),TRUE)","v":1},{"$f":"VLOOKUP(OFFSET($B:$B,,MATCH(T$4,$B$4:$F$4,0)-1),OFFSET('C. PoC Adj Factor Scoring'!$E$5:$J$282,,MATCH(T$4,'C. PoC Adj Factor Scoring'!$E$3:$AH$3,0)-1),MATCH(T$2&\" Score\",'C. PoC Adj Factor Scoring'!$E$4:$J$4,0),TRUE)","v":1},{"$f":"VLOOKUP(OFFSET($B:$B,,MATCH(U$4,$B$4:$F$4,0)-1),OFFSET('C. PoC Adj Factor Scoring'!$E$5:$J$282,,MATCH(U$4,'C. PoC Adj Factor Scoring'!$E$3:$AH$3,0)-1),MATCH(U$2&\" Score\",'C. PoC Adj Factor Scoring'!$E$4:$J$4,0),TRUE)","v":1},{"$f":"VLOOKUP(OFFSET($B:$B,,MATCH(V$4,$B$4:$F$4,0)-1),OFFSET('C. PoC Adj Factor Scoring'!$E$5:$J$282,,MATCH(V$4,'C. PoC Adj Factor Scoring'!$E$3:$AH$3,0)-1),MATCH(V$2&\" Score\",'C. PoC Adj Factor Scoring'!$E$4:$J$4,0),TRUE)","v":1},{"$f":"VLOOKUP(OFFSET($B:$B,,MATCH(W$4,$B$4:$F$4,0)-1),OFFSET('C. PoC Adj Factor Scoring'!$E$5:$J$282,,MATCH(W$4,'C. PoC Adj Factor Scoring'!$E$3:$AH$3,0)-1),MATCH(W$2&\" Score\",'C. PoC Adj Factor Scoring'!$E$4:$J$4,0),TRUE)","v":1},{"$f":"VLOOKUP(OFFSET($B:$B,,MATCH(X$4,$B$4:$F$4,0)-1),OFFSET('C. PoC Adj Factor Scoring'!$E$5:$J$282,,MATCH(X$4,'C. PoC Adj Factor Scoring'!$E$3:$AH$3,0)-1),MATCH(X$2&\" Score\",'C. PoC Adj Factor Scoring'!$E$4:$J$4,0),TRUE)","v":1},{"$f":"VLOOKUP(OFFSET($B:$B,,MATCH(Y$4,$B$4:$F$4,0)-1),OFFSET('C. PoC Adj Factor Scoring'!$E$5:$J$282,,MATCH(Y$4,'C. PoC Adj Factor Scoring'!$E$3:$AH$3,0)-1),MATCH(Y$2&\" Score\",'C. PoC Adj Factor Scoring'!$E$4:$J$4,0),TRUE)","v":1},{"$f":"VLOOKUP(OFFSET($B:$B,,MATCH(Z$4,$B$4:$F$4,0)-1),OFFSET('C. PoC Adj Factor Scoring'!$E$5:$J$282,,MATCH(Z$4,'C. PoC Adj Factor Scoring'!$E$3:$AH$3,0)-1),MATCH(Z$2&\" Score\",'C. PoC Adj Factor Scoring'!$E$4:$J$4,0),TRUE)","v":1},{"$f":"VLOOKUP(OFFSET($B:$B,,MATCH(AA$4,$B$4:$F$4,0)-1),OFFSET('C. PoC Adj Factor Scoring'!$E$5:$J$282,,MATCH(AA$4,'C. PoC Adj Factor Scoring'!$E$3:$AH$3,0)-1),MATCH(AA$2&\" Score\",'C. PoC Adj Factor Scoring'!$E$4:$J$4,0),TRUE)","v":3},{"$f":"VLOOKUP(OFFSET($B:$B,,MATCH(AB$4,$B$4:$F$4,0)-1),OFFSET('C. PoC Adj Factor Scoring'!$E$5:$J$282,,MATCH(AB$4,'C. PoC Adj Factor Scoring'!$E$3:$AH$3,0)-1),MATCH(AB$2&\" Score\",'C. PoC Adj Factor Scoring'!$E$4:$J$4,0),TRUE)","v":1},{"$f":"VLOOKUP(OFFSET($B:$B,,MATCH(AC$4,$B$4:$F$4,0)-1),OFFSET('C. PoC Adj Factor Scoring'!$E$5:$J$282,,MATCH(AC$4,'C. PoC Adj Factor Scoring'!$E$3:$AH$3,0)-1),MATCH(AC$2&\" Score\",'C. PoC Adj Factor Scoring'!$E$4:$J$4,0),TRUE)","v":1},{"$f":"VLOOKUP(OFFSET($B:$B,,MATCH(AD$4,$B$4:$F$4,0)-1),OFFSET('C. PoC Adj Factor Scoring'!$E$5:$J$282,,MATCH(AD$4,'C. PoC Adj Factor Scoring'!$E$3:$AH$3,0)-1),MATCH(AD$2&\" Score\",'C. PoC Adj Factor Scoring'!$E$4:$J$4,0),TRUE)","v":1},{"$f":"VLOOKUP(OFFSET($B:$B,,MATCH(AE$4,$B$4:$F$4,0)-1),OFFSET('C. PoC Adj Factor Scoring'!$E$5:$J$282,,MATCH(AE$4,'C. PoC Adj Factor Scoring'!$E$3:$AH$3,0)-1),MATCH(AE$2&\" Score\",'C. PoC Adj Factor Scoring'!$E$4:$J$4,0),TRUE)","v":1}]
[{"$f":"'A. Population Info'!A195","v":1000353314},{"$f":"'A. Population Info'!L195","v":"OIL"},{"$f":"'A. Population Info'!M195","v":0},{"$f":"'A. Population Info'!N195","v":0},{"$f":"'A. Population Info'!O195","v":0},{"$f":"'A. Population Info'!P195","v":0},{"$f":"VLOOKUP(OFFSET($B:$B,,MATCH(G$4,$B$4:$F$4,0)-1),OFFSET('C. PoC Adj Factor Scoring'!$E$5:$J$282,,MATCH(G$4,'C. PoC Adj Factor Scoring'!$E$3:$AH$3,0)-1),MATCH(G$2&\" Score\",'C. PoC Adj Factor Scoring'!$E$4:$J$4,0),TRUE)","v":4},{"$f":"VLOOKUP(OFFSET($B:$B,,MATCH(H$4,$B$4:$F$4,0)-1),OFFSET('C. PoC Adj Factor Scoring'!$E$5:$J$282,,MATCH(H$4,'C. PoC Adj Factor Scoring'!$E$3:$AH$3,0)-1),MATCH(H$2&\" Score\",'C. PoC Adj Factor Scoring'!$E$4:$J$4,0),TRUE)","v":1},{"$f":"VLOOKUP(OFFSET($B:$B,,MATCH(I$4,$B$4:$F$4,0)-1),OFFSET('C. PoC Adj Factor Scoring'!$E$5:$J$282,,MATCH(I$4,'C. PoC Adj Factor Scoring'!$E$3:$AH$3,0)-1),MATCH(I$2&\" Score\",'C. PoC Adj Factor Scoring'!$E$4:$J$4,0),TRUE)","v":1},{"$f":"VLOOKUP(OFFSET($B:$B,,MATCH(J$4,$B$4:$F$4,0)-1),OFFSET('C. PoC Adj Factor Scoring'!$E$5:$J$282,,MATCH(J$4,'C. PoC Adj Factor Scoring'!$E$3:$AH$3,0)-1),MATCH(J$2&\" Score\",'C. PoC Adj Factor Scoring'!$E$4:$J$4,0),TRUE)","v":1},{"$f":"VLOOKUP(OFFSET($B:$B,,MATCH(K$4,$B$4:$F$4,0)-1),OFFSET('C. PoC Adj Factor Scoring'!$E$5:$J$282,,MATCH(K$4,'C. PoC Adj Factor Scoring'!$E$3:$AH$3,0)-1),MATCH(K$2&\" Score\",'C. PoC Adj Factor Scoring'!$E$4:$J$4,0),TRUE)","v":1},{"$f":"VLOOKUP(OFFSET($B:$B,,MATCH(L$4,$B$4:$F$4,0)-1),OFFSET('C. PoC Adj Factor Scoring'!$E$5:$J$282,,MATCH(L$4,'C. PoC Adj Factor Scoring'!$E$3:$AH$3,0)-1),MATCH(L$2&\" Score\",'C. PoC Adj Factor Scoring'!$E$4:$J$4,0),TRUE)","v":1},{"$f":"VLOOKUP(OFFSET($B:$B,,MATCH(M$4,$B$4:$F$4,0)-1),OFFSET('C. PoC Adj Factor Scoring'!$E$5:$J$282,,MATCH(M$4,'C. PoC Adj Factor Scoring'!$E$3:$AH$3,0)-1),MATCH(M$2&\" Score\",'C. PoC Adj Factor Scoring'!$E$4:$J$4,0),TRUE)","v":1},{"$f":"VLOOKUP(OFFSET($B:$B,,MATCH(N$4,$B$4:$F$4,0)-1),OFFSET('C. PoC Adj Factor Scoring'!$E$5:$J$282,,MATCH(N$4,'C. PoC Adj Factor Scoring'!$E$3:$AH$3,0)-1),MATCH(N$2&\" Score\",'C. PoC Adj Factor Scoring'!$E$4:$J$4,0),TRUE)","v":1},{"$f":"VLOOKUP(OFFSET($B:$B,,MATCH(O$4,$B$4:$F$4,0)-1),OFFSET('C. PoC Adj Factor Scoring'!$E$5:$J$282,,MATCH(O$4,'C. PoC Adj Factor Scoring'!$E$3:$AH$3,0)-1),MATCH(O$2&\" Score\",'C. PoC Adj Factor Scoring'!$E$4:$J$4,0),TRUE)","v":1},{"$f":"VLOOKUP(OFFSET($B:$B,,MATCH(P$4,$B$4:$F$4,0)-1),OFFSET('C. PoC Adj Factor Scoring'!$E$5:$J$282,,MATCH(P$4,'C. PoC Adj Factor Scoring'!$E$3:$AH$3,0)-1),MATCH(P$2&\" Score\",'C. PoC Adj Factor Scoring'!$E$4:$J$4,0),TRUE)","v":1},{"$f":"VLOOKUP(OFFSET($B:$B,,MATCH(Q$4,$B$4:$F$4,0)-1),OFFSET('C. PoC Adj Factor Scoring'!$E$5:$J$282,,MATCH(Q$4,'C. PoC Adj Factor Scoring'!$E$3:$AH$3,0)-1),MATCH(Q$2&\" Score\",'C. PoC Adj Factor Scoring'!$E$4:$J$4,0),TRUE)","v":1},{"$f":"VLOOKUP(OFFSET($B:$B,,MATCH(R$4,$B$4:$F$4,0)-1),OFFSET('C. PoC Adj Factor Scoring'!$E$5:$J$282,,MATCH(R$4,'C. PoC Adj Factor Scoring'!$E$3:$AH$3,0)-1),MATCH(R$2&\" Score\",'C. PoC Adj Factor Scoring'!$E$4:$J$4,0),TRUE)","v":1},{"$f":"VLOOKUP(OFFSET($B:$B,,MATCH(S$4,$B$4:$F$4,0)-1),OFFSET('C. PoC Adj Factor Scoring'!$E$5:$J$282,,MATCH(S$4,'C. PoC Adj Factor Scoring'!$E$3:$AH$3,0)-1),MATCH(S$2&\" Score\",'C. PoC Adj Factor Scoring'!$E$4:$J$4,0),TRUE)","v":1},{"$f":"VLOOKUP(OFFSET($B:$B,,MATCH(T$4,$B$4:$F$4,0)-1),OFFSET('C. PoC Adj Factor Scoring'!$E$5:$J$282,,MATCH(T$4,'C. PoC Adj Factor Scoring'!$E$3:$AH$3,0)-1),MATCH(T$2&\" Score\",'C. PoC Adj Factor Scoring'!$E$4:$J$4,0),TRUE)","v":1},{"$f":"VLOOKUP(OFFSET($B:$B,,MATCH(U$4,$B$4:$F$4,0)-1),OFFSET('C. PoC Adj Factor Scoring'!$E$5:$J$282,,MATCH(U$4,'C. PoC Adj Factor Scoring'!$E$3:$AH$3,0)-1),MATCH(U$2&\" Score\",'C. PoC Adj Factor Scoring'!$E$4:$J$4,0),TRUE)","v":1},{"$f":"VLOOKUP(OFFSET($B:$B,,MATCH(V$4,$B$4:$F$4,0)-1),OFFSET('C. PoC Adj Factor Scoring'!$E$5:$J$282,,MATCH(V$4,'C. PoC Adj Factor Scoring'!$E$3:$AH$3,0)-1),MATCH(V$2&\" Score\",'C. PoC Adj Factor Scoring'!$E$4:$J$4,0),TRUE)","v":1},{"$f":"VLOOKUP(OFFSET($B:$B,,MATCH(W$4,$B$4:$F$4,0)-1),OFFSET('C. PoC Adj Factor Scoring'!$E$5:$J$282,,MATCH(W$4,'C. PoC Adj Factor Scoring'!$E$3:$AH$3,0)-1),MATCH(W$2&\" Score\",'C. PoC Adj Factor Scoring'!$E$4:$J$4,0),TRUE)","v":1},{"$f":"VLOOKUP(OFFSET($B:$B,,MATCH(X$4,$B$4:$F$4,0)-1),OFFSET('C. PoC Adj Factor Scoring'!$E$5:$J$282,,MATCH(X$4,'C. PoC Adj Factor Scoring'!$E$3:$AH$3,0)-1),MATCH(X$2&\" Score\",'C. PoC Adj Factor Scoring'!$E$4:$J$4,0),TRUE)","v":1},{"$f":"VLOOKUP(OFFSET($B:$B,,MATCH(Y$4,$B$4:$F$4,0)-1),OFFSET('C. PoC Adj Factor Scoring'!$E$5:$J$282,,MATCH(Y$4,'C. PoC Adj Factor Scoring'!$E$3:$AH$3,0)-1),MATCH(Y$2&\" Score\",'C. PoC Adj Factor Scoring'!$E$4:$J$4,0),TRUE)","v":1},{"$f":"VLOOKUP(OFFSET($B:$B,,MATCH(Z$4,$B$4:$F$4,0)-1),OFFSET('C. PoC Adj Factor Scoring'!$E$5:$J$282,,MATCH(Z$4,'C. PoC Adj Factor Scoring'!$E$3:$AH$3,0)-1),MATCH(Z$2&\" Score\",'C. PoC Adj Factor Scoring'!$E$4:$J$4,0),TRUE)","v":1},{"$f":"VLOOKUP(OFFSET($B:$B,,MATCH(AA$4,$B$4:$F$4,0)-1),OFFSET('C. PoC Adj Factor Scoring'!$E$5:$J$282,,MATCH(AA$4,'C. PoC Adj Factor Scoring'!$E$3:$AH$3,0)-1),MATCH(AA$2&\" Score\",'C. PoC Adj Factor Scoring'!$E$4:$J$4,0),TRUE)","v":3},{"$f":"VLOOKUP(OFFSET($B:$B,,MATCH(AB$4,$B$4:$F$4,0)-1),OFFSET('C. PoC Adj Factor Scoring'!$E$5:$J$282,,MATCH(AB$4,'C. PoC Adj Factor Scoring'!$E$3:$AH$3,0)-1),MATCH(AB$2&\" Score\",'C. PoC Adj Factor Scoring'!$E$4:$J$4,0),TRUE)","v":1},{"$f":"VLOOKUP(OFFSET($B:$B,,MATCH(AC$4,$B$4:$F$4,0)-1),OFFSET('C. PoC Adj Factor Scoring'!$E$5:$J$282,,MATCH(AC$4,'C. PoC Adj Factor Scoring'!$E$3:$AH$3,0)-1),MATCH(AC$2&\" Score\",'C. PoC Adj Factor Scoring'!$E$4:$J$4,0),TRUE)","v":1},{"$f":"VLOOKUP(OFFSET($B:$B,,MATCH(AD$4,$B$4:$F$4,0)-1),OFFSET('C. PoC Adj Factor Scoring'!$E$5:$J$282,,MATCH(AD$4,'C. PoC Adj Factor Scoring'!$E$3:$AH$3,0)-1),MATCH(AD$2&\" Score\",'C. PoC Adj Factor Scoring'!$E$4:$J$4,0),TRUE)","v":1},{"$f":"VLOOKUP(OFFSET($B:$B,,MATCH(AE$4,$B$4:$F$4,0)-1),OFFSET('C. PoC Adj Factor Scoring'!$E$5:$J$282,,MATCH(AE$4,'C. PoC Adj Factor Scoring'!$E$3:$AH$3,0)-1),MATCH(AE$2&\" Score\",'C. PoC Adj Factor Scoring'!$E$4:$J$4,0),TRUE)","v":1}]
[{"$f":"'A. Population Info'!A196","v":1000353347},{"$f":"'A. Population Info'!L196","v":"OIL"},{"$f":"'A. Population Info'!M196","v":0},{"$f":"'A. Population Info'!N196","v":0},{"$f":"'A. Population Info'!O196","v":0},{"$f":"'A. Population Info'!P196","v":0},{"$f":"VLOOKUP(OFFSET($B:$B,,MATCH(G$4,$B$4:$F$4,0)-1),OFFSET('C. PoC Adj Factor Scoring'!$E$5:$J$282,,MATCH(G$4,'C. PoC Adj Factor Scoring'!$E$3:$AH$3,0)-1),MATCH(G$2&\" Score\",'C. PoC Adj Factor Scoring'!$E$4:$J$4,0),TRUE)","v":4},{"$f":"VLOOKUP(OFFSET($B:$B,,MATCH(H$4,$B$4:$F$4,0)-1),OFFSET('C. PoC Adj Factor Scoring'!$E$5:$J$282,,MATCH(H$4,'C. PoC Adj Factor Scoring'!$E$3:$AH$3,0)-1),MATCH(H$2&\" Score\",'C. PoC Adj Factor Scoring'!$E$4:$J$4,0),TRUE)","v":1},{"$f":"VLOOKUP(OFFSET($B:$B,,MATCH(I$4,$B$4:$F$4,0)-1),OFFSET('C. PoC Adj Factor Scoring'!$E$5:$J$282,,MATCH(I$4,'C. PoC Adj Factor Scoring'!$E$3:$AH$3,0)-1),MATCH(I$2&\" Score\",'C. PoC Adj Factor Scoring'!$E$4:$J$4,0),TRUE)","v":1},{"$f":"VLOOKUP(OFFSET($B:$B,,MATCH(J$4,$B$4:$F$4,0)-1),OFFSET('C. PoC Adj Factor Scoring'!$E$5:$J$282,,MATCH(J$4,'C. PoC Adj Factor Scoring'!$E$3:$AH$3,0)-1),MATCH(J$2&\" Score\",'C. PoC Adj Factor Scoring'!$E$4:$J$4,0),TRUE)","v":1},{"$f":"VLOOKUP(OFFSET($B:$B,,MATCH(K$4,$B$4:$F$4,0)-1),OFFSET('C. PoC Adj Factor Scoring'!$E$5:$J$282,,MATCH(K$4,'C. PoC Adj Factor Scoring'!$E$3:$AH$3,0)-1),MATCH(K$2&\" Score\",'C. PoC Adj Factor Scoring'!$E$4:$J$4,0),TRUE)","v":1},{"$f":"VLOOKUP(OFFSET($B:$B,,MATCH(L$4,$B$4:$F$4,0)-1),OFFSET('C. PoC Adj Factor Scoring'!$E$5:$J$282,,MATCH(L$4,'C. PoC Adj Factor Scoring'!$E$3:$AH$3,0)-1),MATCH(L$2&\" Score\",'C. PoC Adj Factor Scoring'!$E$4:$J$4,0),TRUE)","v":1},{"$f":"VLOOKUP(OFFSET($B:$B,,MATCH(M$4,$B$4:$F$4,0)-1),OFFSET('C. PoC Adj Factor Scoring'!$E$5:$J$282,,MATCH(M$4,'C. PoC Adj Factor Scoring'!$E$3:$AH$3,0)-1),MATCH(M$2&\" Score\",'C. PoC Adj Factor Scoring'!$E$4:$J$4,0),TRUE)","v":1},{"$f":"VLOOKUP(OFFSET($B:$B,,MATCH(N$4,$B$4:$F$4,0)-1),OFFSET('C. PoC Adj Factor Scoring'!$E$5:$J$282,,MATCH(N$4,'C. PoC Adj Factor Scoring'!$E$3:$AH$3,0)-1),MATCH(N$2&\" Score\",'C. PoC Adj Factor Scoring'!$E$4:$J$4,0),TRUE)","v":1},{"$f":"VLOOKUP(OFFSET($B:$B,,MATCH(O$4,$B$4:$F$4,0)-1),OFFSET('C. PoC Adj Factor Scoring'!$E$5:$J$282,,MATCH(O$4,'C. PoC Adj Factor Scoring'!$E$3:$AH$3,0)-1),MATCH(O$2&\" Score\",'C. PoC Adj Factor Scoring'!$E$4:$J$4,0),TRUE)","v":1},{"$f":"VLOOKUP(OFFSET($B:$B,,MATCH(P$4,$B$4:$F$4,0)-1),OFFSET('C. PoC Adj Factor Scoring'!$E$5:$J$282,,MATCH(P$4,'C. PoC Adj Factor Scoring'!$E$3:$AH$3,0)-1),MATCH(P$2&\" Score\",'C. PoC Adj Factor Scoring'!$E$4:$J$4,0),TRUE)","v":1},{"$f":"VLOOKUP(OFFSET($B:$B,,MATCH(Q$4,$B$4:$F$4,0)-1),OFFSET('C. PoC Adj Factor Scoring'!$E$5:$J$282,,MATCH(Q$4,'C. PoC Adj Factor Scoring'!$E$3:$AH$3,0)-1),MATCH(Q$2&\" Score\",'C. PoC Adj Factor Scoring'!$E$4:$J$4,0),TRUE)","v":1},{"$f":"VLOOKUP(OFFSET($B:$B,,MATCH(R$4,$B$4:$F$4,0)-1),OFFSET('C. PoC Adj Factor Scoring'!$E$5:$J$282,,MATCH(R$4,'C. PoC Adj Factor Scoring'!$E$3:$AH$3,0)-1),MATCH(R$2&\" Score\",'C. PoC Adj Factor Scoring'!$E$4:$J$4,0),TRUE)","v":1},{"$f":"VLOOKUP(OFFSET($B:$B,,MATCH(S$4,$B$4:$F$4,0)-1),OFFSET('C. PoC Adj Factor Scoring'!$E$5:$J$282,,MATCH(S$4,'C. PoC Adj Factor Scoring'!$E$3:$AH$3,0)-1),MATCH(S$2&\" Score\",'C. PoC Adj Factor Scoring'!$E$4:$J$4,0),TRUE)","v":1},{"$f":"VLOOKUP(OFFSET($B:$B,,MATCH(T$4,$B$4:$F$4,0)-1),OFFSET('C. PoC Adj Factor Scoring'!$E$5:$J$282,,MATCH(T$4,'C. PoC Adj Factor Scoring'!$E$3:$AH$3,0)-1),MATCH(T$2&\" Score\",'C. PoC Adj Factor Scoring'!$E$4:$J$4,0),TRUE)","v":1},{"$f":"VLOOKUP(OFFSET($B:$B,,MATCH(U$4,$B$4:$F$4,0)-1),OFFSET('C. PoC Adj Factor Scoring'!$E$5:$J$282,,MATCH(U$4,'C. PoC Adj Factor Scoring'!$E$3:$AH$3,0)-1),MATCH(U$2&\" Score\",'C. PoC Adj Factor Scoring'!$E$4:$J$4,0),TRUE)","v":1},{"$f":"VLOOKUP(OFFSET($B:$B,,MATCH(V$4,$B$4:$F$4,0)-1),OFFSET('C. PoC Adj Factor Scoring'!$E$5:$J$282,,MATCH(V$4,'C. PoC Adj Factor Scoring'!$E$3:$AH$3,0)-1),MATCH(V$2&\" Score\",'C. PoC Adj Factor Scoring'!$E$4:$J$4,0),TRUE)","v":1},{"$f":"VLOOKUP(OFFSET($B:$B,,MATCH(W$4,$B$4:$F$4,0)-1),OFFSET('C. PoC Adj Factor Scoring'!$E$5:$J$282,,MATCH(W$4,'C. PoC Adj Factor Scoring'!$E$3:$AH$3,0)-1),MATCH(W$2&\" Score\",'C. PoC Adj Factor Scoring'!$E$4:$J$4,0),TRUE)","v":1},{"$f":"VLOOKUP(OFFSET($B:$B,,MATCH(X$4,$B$4:$F$4,0)-1),OFFSET('C. PoC Adj Factor Scoring'!$E$5:$J$282,,MATCH(X$4,'C. PoC Adj Factor Scoring'!$E$3:$AH$3,0)-1),MATCH(X$2&\" Score\",'C. PoC Adj Factor Scoring'!$E$4:$J$4,0),TRUE)","v":1},{"$f":"VLOOKUP(OFFSET($B:$B,,MATCH(Y$4,$B$4:$F$4,0)-1),OFFSET('C. PoC Adj Factor Scoring'!$E$5:$J$282,,MATCH(Y$4,'C. PoC Adj Factor Scoring'!$E$3:$AH$3,0)-1),MATCH(Y$2&\" Score\",'C. PoC Adj Factor Scoring'!$E$4:$J$4,0),TRUE)","v":1},{"$f":"VLOOKUP(OFFSET($B:$B,,MATCH(Z$4,$B$4:$F$4,0)-1),OFFSET('C. PoC Adj Factor Scoring'!$E$5:$J$282,,MATCH(Z$4,'C. PoC Adj Factor Scoring'!$E$3:$AH$3,0)-1),MATCH(Z$2&\" Score\",'C. PoC Adj Factor Scoring'!$E$4:$J$4,0),TRUE)","v":1},{"$f":"VLOOKUP(OFFSET($B:$B,,MATCH(AA$4,$B$4:$F$4,0)-1),OFFSET('C. PoC Adj Factor Scoring'!$E$5:$J$282,,MATCH(AA$4,'C. PoC Adj Factor Scoring'!$E$3:$AH$3,0)-1),MATCH(AA$2&\" Score\",'C. PoC Adj Factor Scoring'!$E$4:$J$4,0),TRUE)","v":3},{"$f":"VLOOKUP(OFFSET($B:$B,,MATCH(AB$4,$B$4:$F$4,0)-1),OFFSET('C. PoC Adj Factor Scoring'!$E$5:$J$282,,MATCH(AB$4,'C. PoC Adj Factor Scoring'!$E$3:$AH$3,0)-1),MATCH(AB$2&\" Score\",'C. PoC Adj Factor Scoring'!$E$4:$J$4,0),TRUE)","v":1},{"$f":"VLOOKUP(OFFSET($B:$B,,MATCH(AC$4,$B$4:$F$4,0)-1),OFFSET('C. PoC Adj Factor Scoring'!$E$5:$J$282,,MATCH(AC$4,'C. PoC Adj Factor Scoring'!$E$3:$AH$3,0)-1),MATCH(AC$2&\" Score\",'C. PoC Adj Factor Scoring'!$E$4:$J$4,0),TRUE)","v":1},{"$f":"VLOOKUP(OFFSET($B:$B,,MATCH(AD$4,$B$4:$F$4,0)-1),OFFSET('C. PoC Adj Factor Scoring'!$E$5:$J$282,,MATCH(AD$4,'C. PoC Adj Factor Scoring'!$E$3:$AH$3,0)-1),MATCH(AD$2&\" Score\",'C. PoC Adj Factor Scoring'!$E$4:$J$4,0),TRUE)","v":1},{"$f":"VLOOKUP(OFFSET($B:$B,,MATCH(AE$4,$B$4:$F$4,0)-1),OFFSET('C. PoC Adj Factor Scoring'!$E$5:$J$282,,MATCH(AE$4,'C. PoC Adj Factor Scoring'!$E$3:$AH$3,0)-1),MATCH(AE$2&\" Score\",'C. PoC Adj Factor Scoring'!$E$4:$J$4,0),TRUE)","v":1}]
[{"$f":"'A. Population Info'!A197","v":1000353379},{"$f":"'A. Population Info'!L197","v":"OIL"},{"$f":"'A. Population Info'!M197","v":0},{"$f":"'A. Population Info'!N197","v":0},{"$f":"'A. Population Info'!O197","v":0},{"$f":"'A. Population Info'!P197","v":0},{"$f":"VLOOKUP(OFFSET($B:$B,,MATCH(G$4,$B$4:$F$4,0)-1),OFFSET('C. PoC Adj Factor Scoring'!$E$5:$J$282,,MATCH(G$4,'C. PoC Adj Factor Scoring'!$E$3:$AH$3,0)-1),MATCH(G$2&\" Score\",'C. PoC Adj Factor Scoring'!$E$4:$J$4,0),TRUE)","v":4},{"$f":"VLOOKUP(OFFSET($B:$B,,MATCH(H$4,$B$4:$F$4,0)-1),OFFSET('C. PoC Adj Factor Scoring'!$E$5:$J$282,,MATCH(H$4,'C. PoC Adj Factor Scoring'!$E$3:$AH$3,0)-1),MATCH(H$2&\" Score\",'C. PoC Adj Factor Scoring'!$E$4:$J$4,0),TRUE)","v":1},{"$f":"VLOOKUP(OFFSET($B:$B,,MATCH(I$4,$B$4:$F$4,0)-1),OFFSET('C. PoC Adj Factor Scoring'!$E$5:$J$282,,MATCH(I$4,'C. PoC Adj Factor Scoring'!$E$3:$AH$3,0)-1),MATCH(I$2&\" Score\",'C. PoC Adj Factor Scoring'!$E$4:$J$4,0),TRUE)","v":1},{"$f":"VLOOKUP(OFFSET($B:$B,,MATCH(J$4,$B$4:$F$4,0)-1),OFFSET('C. PoC Adj Factor Scoring'!$E$5:$J$282,,MATCH(J$4,'C. PoC Adj Factor Scoring'!$E$3:$AH$3,0)-1),MATCH(J$2&\" Score\",'C. PoC Adj Factor Scoring'!$E$4:$J$4,0),TRUE)","v":1},{"$f":"VLOOKUP(OFFSET($B:$B,,MATCH(K$4,$B$4:$F$4,0)-1),OFFSET('C. PoC Adj Factor Scoring'!$E$5:$J$282,,MATCH(K$4,'C. PoC Adj Factor Scoring'!$E$3:$AH$3,0)-1),MATCH(K$2&\" Score\",'C. PoC Adj Factor Scoring'!$E$4:$J$4,0),TRUE)","v":1},{"$f":"VLOOKUP(OFFSET($B:$B,,MATCH(L$4,$B$4:$F$4,0)-1),OFFSET('C. PoC Adj Factor Scoring'!$E$5:$J$282,,MATCH(L$4,'C. PoC Adj Factor Scoring'!$E$3:$AH$3,0)-1),MATCH(L$2&\" Score\",'C. PoC Adj Factor Scoring'!$E$4:$J$4,0),TRUE)","v":1},{"$f":"VLOOKUP(OFFSET($B:$B,,MATCH(M$4,$B$4:$F$4,0)-1),OFFSET('C. PoC Adj Factor Scoring'!$E$5:$J$282,,MATCH(M$4,'C. PoC Adj Factor Scoring'!$E$3:$AH$3,0)-1),MATCH(M$2&\" Score\",'C. PoC Adj Factor Scoring'!$E$4:$J$4,0),TRUE)","v":1},{"$f":"VLOOKUP(OFFSET($B:$B,,MATCH(N$4,$B$4:$F$4,0)-1),OFFSET('C. PoC Adj Factor Scoring'!$E$5:$J$282,,MATCH(N$4,'C. PoC Adj Factor Scoring'!$E$3:$AH$3,0)-1),MATCH(N$2&\" Score\",'C. PoC Adj Factor Scoring'!$E$4:$J$4,0),TRUE)","v":1},{"$f":"VLOOKUP(OFFSET($B:$B,,MATCH(O$4,$B$4:$F$4,0)-1),OFFSET('C. PoC Adj Factor Scoring'!$E$5:$J$282,,MATCH(O$4,'C. PoC Adj Factor Scoring'!$E$3:$AH$3,0)-1),MATCH(O$2&\" Score\",'C. PoC Adj Factor Scoring'!$E$4:$J$4,0),TRUE)","v":1},{"$f":"VLOOKUP(OFFSET($B:$B,,MATCH(P$4,$B$4:$F$4,0)-1),OFFSET('C. PoC Adj Factor Scoring'!$E$5:$J$282,,MATCH(P$4,'C. PoC Adj Factor Scoring'!$E$3:$AH$3,0)-1),MATCH(P$2&\" Score\",'C. PoC Adj Factor Scoring'!$E$4:$J$4,0),TRUE)","v":1},{"$f":"VLOOKUP(OFFSET($B:$B,,MATCH(Q$4,$B$4:$F$4,0)-1),OFFSET('C. PoC Adj Factor Scoring'!$E$5:$J$282,,MATCH(Q$4,'C. PoC Adj Factor Scoring'!$E$3:$AH$3,0)-1),MATCH(Q$2&\" Score\",'C. PoC Adj Factor Scoring'!$E$4:$J$4,0),TRUE)","v":1},{"$f":"VLOOKUP(OFFSET($B:$B,,MATCH(R$4,$B$4:$F$4,0)-1),OFFSET('C. PoC Adj Factor Scoring'!$E$5:$J$282,,MATCH(R$4,'C. PoC Adj Factor Scoring'!$E$3:$AH$3,0)-1),MATCH(R$2&\" Score\",'C. PoC Adj Factor Scoring'!$E$4:$J$4,0),TRUE)","v":1},{"$f":"VLOOKUP(OFFSET($B:$B,,MATCH(S$4,$B$4:$F$4,0)-1),OFFSET('C. PoC Adj Factor Scoring'!$E$5:$J$282,,MATCH(S$4,'C. PoC Adj Factor Scoring'!$E$3:$AH$3,0)-1),MATCH(S$2&\" Score\",'C. PoC Adj Factor Scoring'!$E$4:$J$4,0),TRUE)","v":1},{"$f":"VLOOKUP(OFFSET($B:$B,,MATCH(T$4,$B$4:$F$4,0)-1),OFFSET('C. PoC Adj Factor Scoring'!$E$5:$J$282,,MATCH(T$4,'C. PoC Adj Factor Scoring'!$E$3:$AH$3,0)-1),MATCH(T$2&\" Score\",'C. PoC Adj Factor Scoring'!$E$4:$J$4,0),TRUE)","v":1},{"$f":"VLOOKUP(OFFSET($B:$B,,MATCH(U$4,$B$4:$F$4,0)-1),OFFSET('C. PoC Adj Factor Scoring'!$E$5:$J$282,,MATCH(U$4,'C. PoC Adj Factor Scoring'!$E$3:$AH$3,0)-1),MATCH(U$2&\" Score\",'C. PoC Adj Factor Scoring'!$E$4:$J$4,0),TRUE)","v":1},{"$f":"VLOOKUP(OFFSET($B:$B,,MATCH(V$4,$B$4:$F$4,0)-1),OFFSET('C. PoC Adj Factor Scoring'!$E$5:$J$282,,MATCH(V$4,'C. PoC Adj Factor Scoring'!$E$3:$AH$3,0)-1),MATCH(V$2&\" Score\",'C. PoC Adj Factor Scoring'!$E$4:$J$4,0),TRUE)","v":1},{"$f":"VLOOKUP(OFFSET($B:$B,,MATCH(W$4,$B$4:$F$4,0)-1),OFFSET('C. PoC Adj Factor Scoring'!$E$5:$J$282,,MATCH(W$4,'C. PoC Adj Factor Scoring'!$E$3:$AH$3,0)-1),MATCH(W$2&\" Score\",'C. PoC Adj Factor Scoring'!$E$4:$J$4,0),TRUE)","v":1},{"$f":"VLOOKUP(OFFSET($B:$B,,MATCH(X$4,$B$4:$F$4,0)-1),OFFSET('C. PoC Adj Factor Scoring'!$E$5:$J$282,,MATCH(X$4,'C. PoC Adj Factor Scoring'!$E$3:$AH$3,0)-1),MATCH(X$2&\" Score\",'C. PoC Adj Factor Scoring'!$E$4:$J$4,0),TRUE)","v":1},{"$f":"VLOOKUP(OFFSET($B:$B,,MATCH(Y$4,$B$4:$F$4,0)-1),OFFSET('C. PoC Adj Factor Scoring'!$E$5:$J$282,,MATCH(Y$4,'C. PoC Adj Factor Scoring'!$E$3:$AH$3,0)-1),MATCH(Y$2&\" Score\",'C. PoC Adj Factor Scoring'!$E$4:$J$4,0),TRUE)","v":1},{"$f":"VLOOKUP(OFFSET($B:$B,,MATCH(Z$4,$B$4:$F$4,0)-1),OFFSET('C. PoC Adj Factor Scoring'!$E$5:$J$282,,MATCH(Z$4,'C. PoC Adj Factor Scoring'!$E$3:$AH$3,0)-1),MATCH(Z$2&\" Score\",'C. PoC Adj Factor Scoring'!$E$4:$J$4,0),TRUE)","v":1},{"$f":"VLOOKUP(OFFSET($B:$B,,MATCH(AA$4,$B$4:$F$4,0)-1),OFFSET('C. PoC Adj Factor Scoring'!$E$5:$J$282,,MATCH(AA$4,'C. PoC Adj Factor Scoring'!$E$3:$AH$3,0)-1),MATCH(AA$2&\" Score\",'C. PoC Adj Factor Scoring'!$E$4:$J$4,0),TRUE)","v":3},{"$f":"VLOOKUP(OFFSET($B:$B,,MATCH(AB$4,$B$4:$F$4,0)-1),OFFSET('C. PoC Adj Factor Scoring'!$E$5:$J$282,,MATCH(AB$4,'C. PoC Adj Factor Scoring'!$E$3:$AH$3,0)-1),MATCH(AB$2&\" Score\",'C. PoC Adj Factor Scoring'!$E$4:$J$4,0),TRUE)","v":1},{"$f":"VLOOKUP(OFFSET($B:$B,,MATCH(AC$4,$B$4:$F$4,0)-1),OFFSET('C. PoC Adj Factor Scoring'!$E$5:$J$282,,MATCH(AC$4,'C. PoC Adj Factor Scoring'!$E$3:$AH$3,0)-1),MATCH(AC$2&\" Score\",'C. PoC Adj Factor Scoring'!$E$4:$J$4,0),TRUE)","v":1},{"$f":"VLOOKUP(OFFSET($B:$B,,MATCH(AD$4,$B$4:$F$4,0)-1),OFFSET('C. PoC Adj Factor Scoring'!$E$5:$J$282,,MATCH(AD$4,'C. PoC Adj Factor Scoring'!$E$3:$AH$3,0)-1),MATCH(AD$2&\" Score\",'C. PoC Adj Factor Scoring'!$E$4:$J$4,0),TRUE)","v":1},{"$f":"VLOOKUP(OFFSET($B:$B,,MATCH(AE$4,$B$4:$F$4,0)-1),OFFSET('C. PoC Adj Factor Scoring'!$E$5:$J$282,,MATCH(AE$4,'C. PoC Adj Factor Scoring'!$E$3:$AH$3,0)-1),MATCH(AE$2&\" Score\",'C. PoC Adj Factor Scoring'!$E$4:$J$4,0),TRUE)","v":1}]
[{"$f":"'A. Population Info'!A198","v":1000353459},{"$f":"'A. Population Info'!L198","v":"OIL"},{"$f":"'A. Population Info'!M198","v":0},{"$f":"'A. Population Info'!N198","v":0},{"$f":"'A. Population Info'!O198","v":0},{"$f":"'A. Population Info'!P198","v":0},{"$f":"VLOOKUP(OFFSET($B:$B,,MATCH(G$4,$B$4:$F$4,0)-1),OFFSET('C. PoC Adj Factor Scoring'!$E$5:$J$282,,MATCH(G$4,'C. PoC Adj Factor Scoring'!$E$3:$AH$3,0)-1),MATCH(G$2&\" Score\",'C. PoC Adj Factor Scoring'!$E$4:$J$4,0),TRUE)","v":4},{"$f":"VLOOKUP(OFFSET($B:$B,,MATCH(H$4,$B$4:$F$4,0)-1),OFFSET('C. PoC Adj Factor Scoring'!$E$5:$J$282,,MATCH(H$4,'C. PoC Adj Factor Scoring'!$E$3:$AH$3,0)-1),MATCH(H$2&\" Score\",'C. PoC Adj Factor Scoring'!$E$4:$J$4,0),TRUE)","v":1},{"$f":"VLOOKUP(OFFSET($B:$B,,MATCH(I$4,$B$4:$F$4,0)-1),OFFSET('C. PoC Adj Factor Scoring'!$E$5:$J$282,,MATCH(I$4,'C. PoC Adj Factor Scoring'!$E$3:$AH$3,0)-1),MATCH(I$2&\" Score\",'C. PoC Adj Factor Scoring'!$E$4:$J$4,0),TRUE)","v":1},{"$f":"VLOOKUP(OFFSET($B:$B,,MATCH(J$4,$B$4:$F$4,0)-1),OFFSET('C. PoC Adj Factor Scoring'!$E$5:$J$282,,MATCH(J$4,'C. PoC Adj Factor Scoring'!$E$3:$AH$3,0)-1),MATCH(J$2&\" Score\",'C. PoC Adj Factor Scoring'!$E$4:$J$4,0),TRUE)","v":1},{"$f":"VLOOKUP(OFFSET($B:$B,,MATCH(K$4,$B$4:$F$4,0)-1),OFFSET('C. PoC Adj Factor Scoring'!$E$5:$J$282,,MATCH(K$4,'C. PoC Adj Factor Scoring'!$E$3:$AH$3,0)-1),MATCH(K$2&\" Score\",'C. PoC Adj Factor Scoring'!$E$4:$J$4,0),TRUE)","v":1},{"$f":"VLOOKUP(OFFSET($B:$B,,MATCH(L$4,$B$4:$F$4,0)-1),OFFSET('C. PoC Adj Factor Scoring'!$E$5:$J$282,,MATCH(L$4,'C. PoC Adj Factor Scoring'!$E$3:$AH$3,0)-1),MATCH(L$2&\" Score\",'C. PoC Adj Factor Scoring'!$E$4:$J$4,0),TRUE)","v":1},{"$f":"VLOOKUP(OFFSET($B:$B,,MATCH(M$4,$B$4:$F$4,0)-1),OFFSET('C. PoC Adj Factor Scoring'!$E$5:$J$282,,MATCH(M$4,'C. PoC Adj Factor Scoring'!$E$3:$AH$3,0)-1),MATCH(M$2&\" Score\",'C. PoC Adj Factor Scoring'!$E$4:$J$4,0),TRUE)","v":1},{"$f":"VLOOKUP(OFFSET($B:$B,,MATCH(N$4,$B$4:$F$4,0)-1),OFFSET('C. PoC Adj Factor Scoring'!$E$5:$J$282,,MATCH(N$4,'C. PoC Adj Factor Scoring'!$E$3:$AH$3,0)-1),MATCH(N$2&\" Score\",'C. PoC Adj Factor Scoring'!$E$4:$J$4,0),TRUE)","v":1},{"$f":"VLOOKUP(OFFSET($B:$B,,MATCH(O$4,$B$4:$F$4,0)-1),OFFSET('C. PoC Adj Factor Scoring'!$E$5:$J$282,,MATCH(O$4,'C. PoC Adj Factor Scoring'!$E$3:$AH$3,0)-1),MATCH(O$2&\" Score\",'C. PoC Adj Factor Scoring'!$E$4:$J$4,0),TRUE)","v":1},{"$f":"VLOOKUP(OFFSET($B:$B,,MATCH(P$4,$B$4:$F$4,0)-1),OFFSET('C. PoC Adj Factor Scoring'!$E$5:$J$282,,MATCH(P$4,'C. PoC Adj Factor Scoring'!$E$3:$AH$3,0)-1),MATCH(P$2&\" Score\",'C. PoC Adj Factor Scoring'!$E$4:$J$4,0),TRUE)","v":1},{"$f":"VLOOKUP(OFFSET($B:$B,,MATCH(Q$4,$B$4:$F$4,0)-1),OFFSET('C. PoC Adj Factor Scoring'!$E$5:$J$282,,MATCH(Q$4,'C. PoC Adj Factor Scoring'!$E$3:$AH$3,0)-1),MATCH(Q$2&\" Score\",'C. PoC Adj Factor Scoring'!$E$4:$J$4,0),TRUE)","v":1},{"$f":"VLOOKUP(OFFSET($B:$B,,MATCH(R$4,$B$4:$F$4,0)-1),OFFSET('C. PoC Adj Factor Scoring'!$E$5:$J$282,,MATCH(R$4,'C. PoC Adj Factor Scoring'!$E$3:$AH$3,0)-1),MATCH(R$2&\" Score\",'C. PoC Adj Factor Scoring'!$E$4:$J$4,0),TRUE)","v":1},{"$f":"VLOOKUP(OFFSET($B:$B,,MATCH(S$4,$B$4:$F$4,0)-1),OFFSET('C. PoC Adj Factor Scoring'!$E$5:$J$282,,MATCH(S$4,'C. PoC Adj Factor Scoring'!$E$3:$AH$3,0)-1),MATCH(S$2&\" Score\",'C. PoC Adj Factor Scoring'!$E$4:$J$4,0),TRUE)","v":1},{"$f":"VLOOKUP(OFFSET($B:$B,,MATCH(T$4,$B$4:$F$4,0)-1),OFFSET('C. PoC Adj Factor Scoring'!$E$5:$J$282,,MATCH(T$4,'C. PoC Adj Factor Scoring'!$E$3:$AH$3,0)-1),MATCH(T$2&\" Score\",'C. PoC Adj Factor Scoring'!$E$4:$J$4,0),TRUE)","v":1},{"$f":"VLOOKUP(OFFSET($B:$B,,MATCH(U$4,$B$4:$F$4,0)-1),OFFSET('C. PoC Adj Factor Scoring'!$E$5:$J$282,,MATCH(U$4,'C. PoC Adj Factor Scoring'!$E$3:$AH$3,0)-1),MATCH(U$2&\" Score\",'C. PoC Adj Factor Scoring'!$E$4:$J$4,0),TRUE)","v":1},{"$f":"VLOOKUP(OFFSET($B:$B,,MATCH(V$4,$B$4:$F$4,0)-1),OFFSET('C. PoC Adj Factor Scoring'!$E$5:$J$282,,MATCH(V$4,'C. PoC Adj Factor Scoring'!$E$3:$AH$3,0)-1),MATCH(V$2&\" Score\",'C. PoC Adj Factor Scoring'!$E$4:$J$4,0),TRUE)","v":1},{"$f":"VLOOKUP(OFFSET($B:$B,,MATCH(W$4,$B$4:$F$4,0)-1),OFFSET('C. PoC Adj Factor Scoring'!$E$5:$J$282,,MATCH(W$4,'C. PoC Adj Factor Scoring'!$E$3:$AH$3,0)-1),MATCH(W$2&\" Score\",'C. PoC Adj Factor Scoring'!$E$4:$J$4,0),TRUE)","v":1},{"$f":"VLOOKUP(OFFSET($B:$B,,MATCH(X$4,$B$4:$F$4,0)-1),OFFSET('C. PoC Adj Factor Scoring'!$E$5:$J$282,,MATCH(X$4,'C. PoC Adj Factor Scoring'!$E$3:$AH$3,0)-1),MATCH(X$2&\" Score\",'C. PoC Adj Factor Scoring'!$E$4:$J$4,0),TRUE)","v":1},{"$f":"VLOOKUP(OFFSET($B:$B,,MATCH(Y$4,$B$4:$F$4,0)-1),OFFSET('C. PoC Adj Factor Scoring'!$E$5:$J$282,,MATCH(Y$4,'C. PoC Adj Factor Scoring'!$E$3:$AH$3,0)-1),MATCH(Y$2&\" Score\",'C. PoC Adj Factor Scoring'!$E$4:$J$4,0),TRUE)","v":1},{"$f":"VLOOKUP(OFFSET($B:$B,,MATCH(Z$4,$B$4:$F$4,0)-1),OFFSET('C. PoC Adj Factor Scoring'!$E$5:$J$282,,MATCH(Z$4,'C. PoC Adj Factor Scoring'!$E$3:$AH$3,0)-1),MATCH(Z$2&\" Score\",'C. PoC Adj Factor Scoring'!$E$4:$J$4,0),TRUE)","v":1},{"$f":"VLOOKUP(OFFSET($B:$B,,MATCH(AA$4,$B$4:$F$4,0)-1),OFFSET('C. PoC Adj Factor Scoring'!$E$5:$J$282,,MATCH(AA$4,'C. PoC Adj Factor Scoring'!$E$3:$AH$3,0)-1),MATCH(AA$2&\" Score\",'C. PoC Adj Factor Scoring'!$E$4:$J$4,0),TRUE)","v":3},{"$f":"VLOOKUP(OFFSET($B:$B,,MATCH(AB$4,$B$4:$F$4,0)-1),OFFSET('C. PoC Adj Factor Scoring'!$E$5:$J$282,,MATCH(AB$4,'C. PoC Adj Factor Scoring'!$E$3:$AH$3,0)-1),MATCH(AB$2&\" Score\",'C. PoC Adj Factor Scoring'!$E$4:$J$4,0),TRUE)","v":1},{"$f":"VLOOKUP(OFFSET($B:$B,,MATCH(AC$4,$B$4:$F$4,0)-1),OFFSET('C. PoC Adj Factor Scoring'!$E$5:$J$282,,MATCH(AC$4,'C. PoC Adj Factor Scoring'!$E$3:$AH$3,0)-1),MATCH(AC$2&\" Score\",'C. PoC Adj Factor Scoring'!$E$4:$J$4,0),TRUE)","v":1},{"$f":"VLOOKUP(OFFSET($B:$B,,MATCH(AD$4,$B$4:$F$4,0)-1),OFFSET('C. PoC Adj Factor Scoring'!$E$5:$J$282,,MATCH(AD$4,'C. PoC Adj Factor Scoring'!$E$3:$AH$3,0)-1),MATCH(AD$2&\" Score\",'C. PoC Adj Factor Scoring'!$E$4:$J$4,0),TRUE)","v":1},{"$f":"VLOOKUP(OFFSET($B:$B,,MATCH(AE$4,$B$4:$F$4,0)-1),OFFSET('C. PoC Adj Factor Scoring'!$E$5:$J$282,,MATCH(AE$4,'C. PoC Adj Factor Scoring'!$E$3:$AH$3,0)-1),MATCH(AE$2&\" Score\",'C. PoC Adj Factor Scoring'!$E$4:$J$4,0),TRUE)","v":1}]
[{"$f":"'A. Population Info'!A199","v":1000353491},{"$f":"'A. Population Info'!L199","v":"OIL"},{"$f":"'A. Population Info'!M199","v":0},{"$f":"'A. Population Info'!N199","v":0},{"$f":"'A. Population Info'!O199","v":0},{"$f":"'A. Population Info'!P199","v":0},{"$f":"VLOOKUP(OFFSET($B:$B,,MATCH(G$4,$B$4:$F$4,0)-1),OFFSET('C. PoC Adj Factor Scoring'!$E$5:$J$282,,MATCH(G$4,'C. PoC Adj Factor Scoring'!$E$3:$AH$3,0)-1),MATCH(G$2&\" Score\",'C. PoC Adj Factor Scoring'!$E$4:$J$4,0),TRUE)","v":4},{"$f":"VLOOKUP(OFFSET($B:$B,,MATCH(H$4,$B$4:$F$4,0)-1),OFFSET('C. PoC Adj Factor Scoring'!$E$5:$J$282,,MATCH(H$4,'C. PoC Adj Factor Scoring'!$E$3:$AH$3,0)-1),MATCH(H$2&\" Score\",'C. PoC Adj Factor Scoring'!$E$4:$J$4,0),TRUE)","v":1},{"$f":"VLOOKUP(OFFSET($B:$B,,MATCH(I$4,$B$4:$F$4,0)-1),OFFSET('C. PoC Adj Factor Scoring'!$E$5:$J$282,,MATCH(I$4,'C. PoC Adj Factor Scoring'!$E$3:$AH$3,0)-1),MATCH(I$2&\" Score\",'C. PoC Adj Factor Scoring'!$E$4:$J$4,0),TRUE)","v":1},{"$f":"VLOOKUP(OFFSET($B:$B,,MATCH(J$4,$B$4:$F$4,0)-1),OFFSET('C. PoC Adj Factor Scoring'!$E$5:$J$282,,MATCH(J$4,'C. PoC Adj Factor Scoring'!$E$3:$AH$3,0)-1),MATCH(J$2&\" Score\",'C. PoC Adj Factor Scoring'!$E$4:$J$4,0),TRUE)","v":1},{"$f":"VLOOKUP(OFFSET($B:$B,,MATCH(K$4,$B$4:$F$4,0)-1),OFFSET('C. PoC Adj Factor Scoring'!$E$5:$J$282,,MATCH(K$4,'C. PoC Adj Factor Scoring'!$E$3:$AH$3,0)-1),MATCH(K$2&\" Score\",'C. PoC Adj Factor Scoring'!$E$4:$J$4,0),TRUE)","v":1},{"$f":"VLOOKUP(OFFSET($B:$B,,MATCH(L$4,$B$4:$F$4,0)-1),OFFSET('C. PoC Adj Factor Scoring'!$E$5:$J$282,,MATCH(L$4,'C. PoC Adj Factor Scoring'!$E$3:$AH$3,0)-1),MATCH(L$2&\" Score\",'C. PoC Adj Factor Scoring'!$E$4:$J$4,0),TRUE)","v":1},{"$f":"VLOOKUP(OFFSET($B:$B,,MATCH(M$4,$B$4:$F$4,0)-1),OFFSET('C. PoC Adj Factor Scoring'!$E$5:$J$282,,MATCH(M$4,'C. PoC Adj Factor Scoring'!$E$3:$AH$3,0)-1),MATCH(M$2&\" Score\",'C. PoC Adj Factor Scoring'!$E$4:$J$4,0),TRUE)","v":1},{"$f":"VLOOKUP(OFFSET($B:$B,,MATCH(N$4,$B$4:$F$4,0)-1),OFFSET('C. PoC Adj Factor Scoring'!$E$5:$J$282,,MATCH(N$4,'C. PoC Adj Factor Scoring'!$E$3:$AH$3,0)-1),MATCH(N$2&\" Score\",'C. PoC Adj Factor Scoring'!$E$4:$J$4,0),TRUE)","v":1},{"$f":"VLOOKUP(OFFSET($B:$B,,MATCH(O$4,$B$4:$F$4,0)-1),OFFSET('C. PoC Adj Factor Scoring'!$E$5:$J$282,,MATCH(O$4,'C. PoC Adj Factor Scoring'!$E$3:$AH$3,0)-1),MATCH(O$2&\" Score\",'C. PoC Adj Factor Scoring'!$E$4:$J$4,0),TRUE)","v":1},{"$f":"VLOOKUP(OFFSET($B:$B,,MATCH(P$4,$B$4:$F$4,0)-1),OFFSET('C. PoC Adj Factor Scoring'!$E$5:$J$282,,MATCH(P$4,'C. PoC Adj Factor Scoring'!$E$3:$AH$3,0)-1),MATCH(P$2&\" Score\",'C. PoC Adj Factor Scoring'!$E$4:$J$4,0),TRUE)","v":1},{"$f":"VLOOKUP(OFFSET($B:$B,,MATCH(Q$4,$B$4:$F$4,0)-1),OFFSET('C. PoC Adj Factor Scoring'!$E$5:$J$282,,MATCH(Q$4,'C. PoC Adj Factor Scoring'!$E$3:$AH$3,0)-1),MATCH(Q$2&\" Score\",'C. PoC Adj Factor Scoring'!$E$4:$J$4,0),TRUE)","v":1},{"$f":"VLOOKUP(OFFSET($B:$B,,MATCH(R$4,$B$4:$F$4,0)-1),OFFSET('C. PoC Adj Factor Scoring'!$E$5:$J$282,,MATCH(R$4,'C. PoC Adj Factor Scoring'!$E$3:$AH$3,0)-1),MATCH(R$2&\" Score\",'C. PoC Adj Factor Scoring'!$E$4:$J$4,0),TRUE)","v":1},{"$f":"VLOOKUP(OFFSET($B:$B,,MATCH(S$4,$B$4:$F$4,0)-1),OFFSET('C. PoC Adj Factor Scoring'!$E$5:$J$282,,MATCH(S$4,'C. PoC Adj Factor Scoring'!$E$3:$AH$3,0)-1),MATCH(S$2&\" Score\",'C. PoC Adj Factor Scoring'!$E$4:$J$4,0),TRUE)","v":1},{"$f":"VLOOKUP(OFFSET($B:$B,,MATCH(T$4,$B$4:$F$4,0)-1),OFFSET('C. PoC Adj Factor Scoring'!$E$5:$J$282,,MATCH(T$4,'C. PoC Adj Factor Scoring'!$E$3:$AH$3,0)-1),MATCH(T$2&\" Score\",'C. PoC Adj Factor Scoring'!$E$4:$J$4,0),TRUE)","v":1},{"$f":"VLOOKUP(OFFSET($B:$B,,MATCH(U$4,$B$4:$F$4,0)-1),OFFSET('C. PoC Adj Factor Scoring'!$E$5:$J$282,,MATCH(U$4,'C. PoC Adj Factor Scoring'!$E$3:$AH$3,0)-1),MATCH(U$2&\" Score\",'C. PoC Adj Factor Scoring'!$E$4:$J$4,0),TRUE)","v":1},{"$f":"VLOOKUP(OFFSET($B:$B,,MATCH(V$4,$B$4:$F$4,0)-1),OFFSET('C. PoC Adj Factor Scoring'!$E$5:$J$282,,MATCH(V$4,'C. PoC Adj Factor Scoring'!$E$3:$AH$3,0)-1),MATCH(V$2&\" Score\",'C. PoC Adj Factor Scoring'!$E$4:$J$4,0),TRUE)","v":1},{"$f":"VLOOKUP(OFFSET($B:$B,,MATCH(W$4,$B$4:$F$4,0)-1),OFFSET('C. PoC Adj Factor Scoring'!$E$5:$J$282,,MATCH(W$4,'C. PoC Adj Factor Scoring'!$E$3:$AH$3,0)-1),MATCH(W$2&\" Score\",'C. PoC Adj Factor Scoring'!$E$4:$J$4,0),TRUE)","v":1},{"$f":"VLOOKUP(OFFSET($B:$B,,MATCH(X$4,$B$4:$F$4,0)-1),OFFSET('C. PoC Adj Factor Scoring'!$E$5:$J$282,,MATCH(X$4,'C. PoC Adj Factor Scoring'!$E$3:$AH$3,0)-1),MATCH(X$2&\" Score\",'C. PoC Adj Factor Scoring'!$E$4:$J$4,0),TRUE)","v":1},{"$f":"VLOOKUP(OFFSET($B:$B,,MATCH(Y$4,$B$4:$F$4,0)-1),OFFSET('C. PoC Adj Factor Scoring'!$E$5:$J$282,,MATCH(Y$4,'C. PoC Adj Factor Scoring'!$E$3:$AH$3,0)-1),MATCH(Y$2&\" Score\",'C. PoC Adj Factor Scoring'!$E$4:$J$4,0),TRUE)","v":1},{"$f":"VLOOKUP(OFFSET($B:$B,,MATCH(Z$4,$B$4:$F$4,0)-1),OFFSET('C. PoC Adj Factor Scoring'!$E$5:$J$282,,MATCH(Z$4,'C. PoC Adj Factor Scoring'!$E$3:$AH$3,0)-1),MATCH(Z$2&\" Score\",'C. PoC Adj Factor Scoring'!$E$4:$J$4,0),TRUE)","v":1},{"$f":"VLOOKUP(OFFSET($B:$B,,MATCH(AA$4,$B$4:$F$4,0)-1),OFFSET('C. PoC Adj Factor Scoring'!$E$5:$J$282,,MATCH(AA$4,'C. PoC Adj Factor Scoring'!$E$3:$AH$3,0)-1),MATCH(AA$2&\" Score\",'C. PoC Adj Factor Scoring'!$E$4:$J$4,0),TRUE)","v":3},{"$f":"VLOOKUP(OFFSET($B:$B,,MATCH(AB$4,$B$4:$F$4,0)-1),OFFSET('C. PoC Adj Factor Scoring'!$E$5:$J$282,,MATCH(AB$4,'C. PoC Adj Factor Scoring'!$E$3:$AH$3,0)-1),MATCH(AB$2&\" Score\",'C. PoC Adj Factor Scoring'!$E$4:$J$4,0),TRUE)","v":1},{"$f":"VLOOKUP(OFFSET($B:$B,,MATCH(AC$4,$B$4:$F$4,0)-1),OFFSET('C. PoC Adj Factor Scoring'!$E$5:$J$282,,MATCH(AC$4,'C. PoC Adj Factor Scoring'!$E$3:$AH$3,0)-1),MATCH(AC$2&\" Score\",'C. PoC Adj Factor Scoring'!$E$4:$J$4,0),TRUE)","v":1},{"$f":"VLOOKUP(OFFSET($B:$B,,MATCH(AD$4,$B$4:$F$4,0)-1),OFFSET('C. PoC Adj Factor Scoring'!$E$5:$J$282,,MATCH(AD$4,'C. PoC Adj Factor Scoring'!$E$3:$AH$3,0)-1),MATCH(AD$2&\" Score\",'C. PoC Adj Factor Scoring'!$E$4:$J$4,0),TRUE)","v":1},{"$f":"VLOOKUP(OFFSET($B:$B,,MATCH(AE$4,$B$4:$F$4,0)-1),OFFSET('C. PoC Adj Factor Scoring'!$E$5:$J$282,,MATCH(AE$4,'C. PoC Adj Factor Scoring'!$E$3:$AH$3,0)-1),MATCH(AE$2&\" Score\",'C. PoC Adj Factor Scoring'!$E$4:$J$4,0),TRUE)","v":1}]
[{"$f":"'A. Population Info'!A200","v":1000353523},{"$f":"'A. Population Info'!L200","v":"OIL"},{"$f":"'A. Population Info'!M200","v":0},{"$f":"'A. Population Info'!N200","v":0},{"$f":"'A. Population Info'!O200","v":0},{"$f":"'A. Population Info'!P200","v":0},{"$f":"VLOOKUP(OFFSET($B:$B,,MATCH(G$4,$B$4:$F$4,0)-1),OFFSET('C. PoC Adj Factor Scoring'!$E$5:$J$282,,MATCH(G$4,'C. PoC Adj Factor Scoring'!$E$3:$AH$3,0)-1),MATCH(G$2&\" Score\",'C. PoC Adj Factor Scoring'!$E$4:$J$4,0),TRUE)","v":4},{"$f":"VLOOKUP(OFFSET($B:$B,,MATCH(H$4,$B$4:$F$4,0)-1),OFFSET('C. PoC Adj Factor Scoring'!$E$5:$J$282,,MATCH(H$4,'C. PoC Adj Factor Scoring'!$E$3:$AH$3,0)-1),MATCH(H$2&\" Score\",'C. PoC Adj Factor Scoring'!$E$4:$J$4,0),TRUE)","v":1},{"$f":"VLOOKUP(OFFSET($B:$B,,MATCH(I$4,$B$4:$F$4,0)-1),OFFSET('C. PoC Adj Factor Scoring'!$E$5:$J$282,,MATCH(I$4,'C. PoC Adj Factor Scoring'!$E$3:$AH$3,0)-1),MATCH(I$2&\" Score\",'C. PoC Adj Factor Scoring'!$E$4:$J$4,0),TRUE)","v":1},{"$f":"VLOOKUP(OFFSET($B:$B,,MATCH(J$4,$B$4:$F$4,0)-1),OFFSET('C. PoC Adj Factor Scoring'!$E$5:$J$282,,MATCH(J$4,'C. PoC Adj Factor Scoring'!$E$3:$AH$3,0)-1),MATCH(J$2&\" Score\",'C. PoC Adj Factor Scoring'!$E$4:$J$4,0),TRUE)","v":1},{"$f":"VLOOKUP(OFFSET($B:$B,,MATCH(K$4,$B$4:$F$4,0)-1),OFFSET('C. PoC Adj Factor Scoring'!$E$5:$J$282,,MATCH(K$4,'C. PoC Adj Factor Scoring'!$E$3:$AH$3,0)-1),MATCH(K$2&\" Score\",'C. PoC Adj Factor Scoring'!$E$4:$J$4,0),TRUE)","v":1},{"$f":"VLOOKUP(OFFSET($B:$B,,MATCH(L$4,$B$4:$F$4,0)-1),OFFSET('C. PoC Adj Factor Scoring'!$E$5:$J$282,,MATCH(L$4,'C. PoC Adj Factor Scoring'!$E$3:$AH$3,0)-1),MATCH(L$2&\" Score\",'C. PoC Adj Factor Scoring'!$E$4:$J$4,0),TRUE)","v":1},{"$f":"VLOOKUP(OFFSET($B:$B,,MATCH(M$4,$B$4:$F$4,0)-1),OFFSET('C. PoC Adj Factor Scoring'!$E$5:$J$282,,MATCH(M$4,'C. PoC Adj Factor Scoring'!$E$3:$AH$3,0)-1),MATCH(M$2&\" Score\",'C. PoC Adj Factor Scoring'!$E$4:$J$4,0),TRUE)","v":1},{"$f":"VLOOKUP(OFFSET($B:$B,,MATCH(N$4,$B$4:$F$4,0)-1),OFFSET('C. PoC Adj Factor Scoring'!$E$5:$J$282,,MATCH(N$4,'C. PoC Adj Factor Scoring'!$E$3:$AH$3,0)-1),MATCH(N$2&\" Score\",'C. PoC Adj Factor Scoring'!$E$4:$J$4,0),TRUE)","v":1},{"$f":"VLOOKUP(OFFSET($B:$B,,MATCH(O$4,$B$4:$F$4,0)-1),OFFSET('C. PoC Adj Factor Scoring'!$E$5:$J$282,,MATCH(O$4,'C. PoC Adj Factor Scoring'!$E$3:$AH$3,0)-1),MATCH(O$2&\" Score\",'C. PoC Adj Factor Scoring'!$E$4:$J$4,0),TRUE)","v":1},{"$f":"VLOOKUP(OFFSET($B:$B,,MATCH(P$4,$B$4:$F$4,0)-1),OFFSET('C. PoC Adj Factor Scoring'!$E$5:$J$282,,MATCH(P$4,'C. PoC Adj Factor Scoring'!$E$3:$AH$3,0)-1),MATCH(P$2&\" Score\",'C. PoC Adj Factor Scoring'!$E$4:$J$4,0),TRUE)","v":1},{"$f":"VLOOKUP(OFFSET($B:$B,,MATCH(Q$4,$B$4:$F$4,0)-1),OFFSET('C. PoC Adj Factor Scoring'!$E$5:$J$282,,MATCH(Q$4,'C. PoC Adj Factor Scoring'!$E$3:$AH$3,0)-1),MATCH(Q$2&\" Score\",'C. PoC Adj Factor Scoring'!$E$4:$J$4,0),TRUE)","v":1},{"$f":"VLOOKUP(OFFSET($B:$B,,MATCH(R$4,$B$4:$F$4,0)-1),OFFSET('C. PoC Adj Factor Scoring'!$E$5:$J$282,,MATCH(R$4,'C. PoC Adj Factor Scoring'!$E$3:$AH$3,0)-1),MATCH(R$2&\" Score\",'C. PoC Adj Factor Scoring'!$E$4:$J$4,0),TRUE)","v":1},{"$f":"VLOOKUP(OFFSET($B:$B,,MATCH(S$4,$B$4:$F$4,0)-1),OFFSET('C. PoC Adj Factor Scoring'!$E$5:$J$282,,MATCH(S$4,'C. PoC Adj Factor Scoring'!$E$3:$AH$3,0)-1),MATCH(S$2&\" Score\",'C. PoC Adj Factor Scoring'!$E$4:$J$4,0),TRUE)","v":1},{"$f":"VLOOKUP(OFFSET($B:$B,,MATCH(T$4,$B$4:$F$4,0)-1),OFFSET('C. PoC Adj Factor Scoring'!$E$5:$J$282,,MATCH(T$4,'C. PoC Adj Factor Scoring'!$E$3:$AH$3,0)-1),MATCH(T$2&\" Score\",'C. PoC Adj Factor Scoring'!$E$4:$J$4,0),TRUE)","v":1},{"$f":"VLOOKUP(OFFSET($B:$B,,MATCH(U$4,$B$4:$F$4,0)-1),OFFSET('C. PoC Adj Factor Scoring'!$E$5:$J$282,,MATCH(U$4,'C. PoC Adj Factor Scoring'!$E$3:$AH$3,0)-1),MATCH(U$2&\" Score\",'C. PoC Adj Factor Scoring'!$E$4:$J$4,0),TRUE)","v":1},{"$f":"VLOOKUP(OFFSET($B:$B,,MATCH(V$4,$B$4:$F$4,0)-1),OFFSET('C. PoC Adj Factor Scoring'!$E$5:$J$282,,MATCH(V$4,'C. PoC Adj Factor Scoring'!$E$3:$AH$3,0)-1),MATCH(V$2&\" Score\",'C. PoC Adj Factor Scoring'!$E$4:$J$4,0),TRUE)","v":1},{"$f":"VLOOKUP(OFFSET($B:$B,,MATCH(W$4,$B$4:$F$4,0)-1),OFFSET('C. PoC Adj Factor Scoring'!$E$5:$J$282,,MATCH(W$4,'C. PoC Adj Factor Scoring'!$E$3:$AH$3,0)-1),MATCH(W$2&\" Score\",'C. PoC Adj Factor Scoring'!$E$4:$J$4,0),TRUE)","v":1},{"$f":"VLOOKUP(OFFSET($B:$B,,MATCH(X$4,$B$4:$F$4,0)-1),OFFSET('C. PoC Adj Factor Scoring'!$E$5:$J$282,,MATCH(X$4,'C. PoC Adj Factor Scoring'!$E$3:$AH$3,0)-1),MATCH(X$2&\" Score\",'C. PoC Adj Factor Scoring'!$E$4:$J$4,0),TRUE)","v":1},{"$f":"VLOOKUP(OFFSET($B:$B,,MATCH(Y$4,$B$4:$F$4,0)-1),OFFSET('C. PoC Adj Factor Scoring'!$E$5:$J$282,,MATCH(Y$4,'C. PoC Adj Factor Scoring'!$E$3:$AH$3,0)-1),MATCH(Y$2&\" Score\",'C. PoC Adj Factor Scoring'!$E$4:$J$4,0),TRUE)","v":1},{"$f":"VLOOKUP(OFFSET($B:$B,,MATCH(Z$4,$B$4:$F$4,0)-1),OFFSET('C. PoC Adj Factor Scoring'!$E$5:$J$282,,MATCH(Z$4,'C. PoC Adj Factor Scoring'!$E$3:$AH$3,0)-1),MATCH(Z$2&\" Score\",'C. PoC Adj Factor Scoring'!$E$4:$J$4,0),TRUE)","v":1},{"$f":"VLOOKUP(OFFSET($B:$B,,MATCH(AA$4,$B$4:$F$4,0)-1),OFFSET('C. PoC Adj Factor Scoring'!$E$5:$J$282,,MATCH(AA$4,'C. PoC Adj Factor Scoring'!$E$3:$AH$3,0)-1),MATCH(AA$2&\" Score\",'C. PoC Adj Factor Scoring'!$E$4:$J$4,0),TRUE)","v":3},{"$f":"VLOOKUP(OFFSET($B:$B,,MATCH(AB$4,$B$4:$F$4,0)-1),OFFSET('C. PoC Adj Factor Scoring'!$E$5:$J$282,,MATCH(AB$4,'C. PoC Adj Factor Scoring'!$E$3:$AH$3,0)-1),MATCH(AB$2&\" Score\",'C. PoC Adj Factor Scoring'!$E$4:$J$4,0),TRUE)","v":1},{"$f":"VLOOKUP(OFFSET($B:$B,,MATCH(AC$4,$B$4:$F$4,0)-1),OFFSET('C. PoC Adj Factor Scoring'!$E$5:$J$282,,MATCH(AC$4,'C. PoC Adj Factor Scoring'!$E$3:$AH$3,0)-1),MATCH(AC$2&\" Score\",'C. PoC Adj Factor Scoring'!$E$4:$J$4,0),TRUE)","v":1},{"$f":"VLOOKUP(OFFSET($B:$B,,MATCH(AD$4,$B$4:$F$4,0)-1),OFFSET('C. PoC Adj Factor Scoring'!$E$5:$J$282,,MATCH(AD$4,'C. PoC Adj Factor Scoring'!$E$3:$AH$3,0)-1),MATCH(AD$2&\" Score\",'C. PoC Adj Factor Scoring'!$E$4:$J$4,0),TRUE)","v":1},{"$f":"VLOOKUP(OFFSET($B:$B,,MATCH(AE$4,$B$4:$F$4,0)-1),OFFSET('C. PoC Adj Factor Scoring'!$E$5:$J$282,,MATCH(AE$4,'C. PoC Adj Factor Scoring'!$E$3:$AH$3,0)-1),MATCH(AE$2&\" Score\",'C. PoC Adj Factor Scoring'!$E$4:$J$4,0),TRUE)","v":1}]
[{"$f":"'A. Population Info'!A201","v":1000353554},{"$f":"'A. Population Info'!L201","v":"OIL"},{"$f":"'A. Population Info'!M201","v":0},{"$f":"'A. Population Info'!N201","v":0},{"$f":"'A. Population Info'!O201","v":0},{"$f":"'A. Population Info'!P201","v":0},{"$f":"VLOOKUP(OFFSET($B:$B,,MATCH(G$4,$B$4:$F$4,0)-1),OFFSET('C. PoC Adj Factor Scoring'!$E$5:$J$282,,MATCH(G$4,'C. PoC Adj Factor Scoring'!$E$3:$AH$3,0)-1),MATCH(G$2&\" Score\",'C. PoC Adj Factor Scoring'!$E$4:$J$4,0),TRUE)","v":4},{"$f":"VLOOKUP(OFFSET($B:$B,,MATCH(H$4,$B$4:$F$4,0)-1),OFFSET('C. PoC Adj Factor Scoring'!$E$5:$J$282,,MATCH(H$4,'C. PoC Adj Factor Scoring'!$E$3:$AH$3,0)-1),MATCH(H$2&\" Score\",'C. PoC Adj Factor Scoring'!$E$4:$J$4,0),TRUE)","v":1},{"$f":"VLOOKUP(OFFSET($B:$B,,MATCH(I$4,$B$4:$F$4,0)-1),OFFSET('C. PoC Adj Factor Scoring'!$E$5:$J$282,,MATCH(I$4,'C. PoC Adj Factor Scoring'!$E$3:$AH$3,0)-1),MATCH(I$2&\" Score\",'C. PoC Adj Factor Scoring'!$E$4:$J$4,0),TRUE)","v":1},{"$f":"VLOOKUP(OFFSET($B:$B,,MATCH(J$4,$B$4:$F$4,0)-1),OFFSET('C. PoC Adj Factor Scoring'!$E$5:$J$282,,MATCH(J$4,'C. PoC Adj Factor Scoring'!$E$3:$AH$3,0)-1),MATCH(J$2&\" Score\",'C. PoC Adj Factor Scoring'!$E$4:$J$4,0),TRUE)","v":1},{"$f":"VLOOKUP(OFFSET($B:$B,,MATCH(K$4,$B$4:$F$4,0)-1),OFFSET('C. PoC Adj Factor Scoring'!$E$5:$J$282,,MATCH(K$4,'C. PoC Adj Factor Scoring'!$E$3:$AH$3,0)-1),MATCH(K$2&\" Score\",'C. PoC Adj Factor Scoring'!$E$4:$J$4,0),TRUE)","v":1},{"$f":"VLOOKUP(OFFSET($B:$B,,MATCH(L$4,$B$4:$F$4,0)-1),OFFSET('C. PoC Adj Factor Scoring'!$E$5:$J$282,,MATCH(L$4,'C. PoC Adj Factor Scoring'!$E$3:$AH$3,0)-1),MATCH(L$2&\" Score\",'C. PoC Adj Factor Scoring'!$E$4:$J$4,0),TRUE)","v":1},{"$f":"VLOOKUP(OFFSET($B:$B,,MATCH(M$4,$B$4:$F$4,0)-1),OFFSET('C. PoC Adj Factor Scoring'!$E$5:$J$282,,MATCH(M$4,'C. PoC Adj Factor Scoring'!$E$3:$AH$3,0)-1),MATCH(M$2&\" Score\",'C. PoC Adj Factor Scoring'!$E$4:$J$4,0),TRUE)","v":1},{"$f":"VLOOKUP(OFFSET($B:$B,,MATCH(N$4,$B$4:$F$4,0)-1),OFFSET('C. PoC Adj Factor Scoring'!$E$5:$J$282,,MATCH(N$4,'C. PoC Adj Factor Scoring'!$E$3:$AH$3,0)-1),MATCH(N$2&\" Score\",'C. PoC Adj Factor Scoring'!$E$4:$J$4,0),TRUE)","v":1},{"$f":"VLOOKUP(OFFSET($B:$B,,MATCH(O$4,$B$4:$F$4,0)-1),OFFSET('C. PoC Adj Factor Scoring'!$E$5:$J$282,,MATCH(O$4,'C. PoC Adj Factor Scoring'!$E$3:$AH$3,0)-1),MATCH(O$2&\" Score\",'C. PoC Adj Factor Scoring'!$E$4:$J$4,0),TRUE)","v":1},{"$f":"VLOOKUP(OFFSET($B:$B,,MATCH(P$4,$B$4:$F$4,0)-1),OFFSET('C. PoC Adj Factor Scoring'!$E$5:$J$282,,MATCH(P$4,'C. PoC Adj Factor Scoring'!$E$3:$AH$3,0)-1),MATCH(P$2&\" Score\",'C. PoC Adj Factor Scoring'!$E$4:$J$4,0),TRUE)","v":1},{"$f":"VLOOKUP(OFFSET($B:$B,,MATCH(Q$4,$B$4:$F$4,0)-1),OFFSET('C. PoC Adj Factor Scoring'!$E$5:$J$282,,MATCH(Q$4,'C. PoC Adj Factor Scoring'!$E$3:$AH$3,0)-1),MATCH(Q$2&\" Score\",'C. PoC Adj Factor Scoring'!$E$4:$J$4,0),TRUE)","v":1},{"$f":"VLOOKUP(OFFSET($B:$B,,MATCH(R$4,$B$4:$F$4,0)-1),OFFSET('C. PoC Adj Factor Scoring'!$E$5:$J$282,,MATCH(R$4,'C. PoC Adj Factor Scoring'!$E$3:$AH$3,0)-1),MATCH(R$2&\" Score\",'C. PoC Adj Factor Scoring'!$E$4:$J$4,0),TRUE)","v":1},{"$f":"VLOOKUP(OFFSET($B:$B,,MATCH(S$4,$B$4:$F$4,0)-1),OFFSET('C. PoC Adj Factor Scoring'!$E$5:$J$282,,MATCH(S$4,'C. PoC Adj Factor Scoring'!$E$3:$AH$3,0)-1),MATCH(S$2&\" Score\",'C. PoC Adj Factor Scoring'!$E$4:$J$4,0),TRUE)","v":1},{"$f":"VLOOKUP(OFFSET($B:$B,,MATCH(T$4,$B$4:$F$4,0)-1),OFFSET('C. PoC Adj Factor Scoring'!$E$5:$J$282,,MATCH(T$4,'C. PoC Adj Factor Scoring'!$E$3:$AH$3,0)-1),MATCH(T$2&\" Score\",'C. PoC Adj Factor Scoring'!$E$4:$J$4,0),TRUE)","v":1},{"$f":"VLOOKUP(OFFSET($B:$B,,MATCH(U$4,$B$4:$F$4,0)-1),OFFSET('C. PoC Adj Factor Scoring'!$E$5:$J$282,,MATCH(U$4,'C. PoC Adj Factor Scoring'!$E$3:$AH$3,0)-1),MATCH(U$2&\" Score\",'C. PoC Adj Factor Scoring'!$E$4:$J$4,0),TRUE)","v":1},{"$f":"VLOOKUP(OFFSET($B:$B,,MATCH(V$4,$B$4:$F$4,0)-1),OFFSET('C. PoC Adj Factor Scoring'!$E$5:$J$282,,MATCH(V$4,'C. PoC Adj Factor Scoring'!$E$3:$AH$3,0)-1),MATCH(V$2&\" Score\",'C. PoC Adj Factor Scoring'!$E$4:$J$4,0),TRUE)","v":1},{"$f":"VLOOKUP(OFFSET($B:$B,,MATCH(W$4,$B$4:$F$4,0)-1),OFFSET('C. PoC Adj Factor Scoring'!$E$5:$J$282,,MATCH(W$4,'C. PoC Adj Factor Scoring'!$E$3:$AH$3,0)-1),MATCH(W$2&\" Score\",'C. PoC Adj Factor Scoring'!$E$4:$J$4,0),TRUE)","v":1},{"$f":"VLOOKUP(OFFSET($B:$B,,MATCH(X$4,$B$4:$F$4,0)-1),OFFSET('C. PoC Adj Factor Scoring'!$E$5:$J$282,,MATCH(X$4,'C. PoC Adj Factor Scoring'!$E$3:$AH$3,0)-1),MATCH(X$2&\" Score\",'C. PoC Adj Factor Scoring'!$E$4:$J$4,0),TRUE)","v":1},{"$f":"VLOOKUP(OFFSET($B:$B,,MATCH(Y$4,$B$4:$F$4,0)-1),OFFSET('C. PoC Adj Factor Scoring'!$E$5:$J$282,,MATCH(Y$4,'C. PoC Adj Factor Scoring'!$E$3:$AH$3,0)-1),MATCH(Y$2&\" Score\",'C. PoC Adj Factor Scoring'!$E$4:$J$4,0),TRUE)","v":1},{"$f":"VLOOKUP(OFFSET($B:$B,,MATCH(Z$4,$B$4:$F$4,0)-1),OFFSET('C. PoC Adj Factor Scoring'!$E$5:$J$282,,MATCH(Z$4,'C. PoC Adj Factor Scoring'!$E$3:$AH$3,0)-1),MATCH(Z$2&\" Score\",'C. PoC Adj Factor Scoring'!$E$4:$J$4,0),TRUE)","v":1},{"$f":"VLOOKUP(OFFSET($B:$B,,MATCH(AA$4,$B$4:$F$4,0)-1),OFFSET('C. PoC Adj Factor Scoring'!$E$5:$J$282,,MATCH(AA$4,'C. PoC Adj Factor Scoring'!$E$3:$AH$3,0)-1),MATCH(AA$2&\" Score\",'C. PoC Adj Factor Scoring'!$E$4:$J$4,0),TRUE)","v":3},{"$f":"VLOOKUP(OFFSET($B:$B,,MATCH(AB$4,$B$4:$F$4,0)-1),OFFSET('C. PoC Adj Factor Scoring'!$E$5:$J$282,,MATCH(AB$4,'C. PoC Adj Factor Scoring'!$E$3:$AH$3,0)-1),MATCH(AB$2&\" Score\",'C. PoC Adj Factor Scoring'!$E$4:$J$4,0),TRUE)","v":1},{"$f":"VLOOKUP(OFFSET($B:$B,,MATCH(AC$4,$B$4:$F$4,0)-1),OFFSET('C. PoC Adj Factor Scoring'!$E$5:$J$282,,MATCH(AC$4,'C. PoC Adj Factor Scoring'!$E$3:$AH$3,0)-1),MATCH(AC$2&\" Score\",'C. PoC Adj Factor Scoring'!$E$4:$J$4,0),TRUE)","v":1},{"$f":"VLOOKUP(OFFSET($B:$B,,MATCH(AD$4,$B$4:$F$4,0)-1),OFFSET('C. PoC Adj Factor Scoring'!$E$5:$J$282,,MATCH(AD$4,'C. PoC Adj Factor Scoring'!$E$3:$AH$3,0)-1),MATCH(AD$2&\" Score\",'C. PoC Adj Factor Scoring'!$E$4:$J$4,0),TRUE)","v":1},{"$f":"VLOOKUP(OFFSET($B:$B,,MATCH(AE$4,$B$4:$F$4,0)-1),OFFSET('C. PoC Adj Factor Scoring'!$E$5:$J$282,,MATCH(AE$4,'C. PoC Adj Factor Scoring'!$E$3:$AH$3,0)-1),MATCH(AE$2&\" Score\",'C. PoC Adj Factor Scoring'!$E$4:$J$4,0),TRUE)","v":1}]
[{"$f":"'A. Population Info'!A202","v":1000353588},{"$f":"'A. Population Info'!L202","v":"OIL"},{"$f":"'A. Population Info'!M202","v":0},{"$f":"'A. Population Info'!N202","v":0},{"$f":"'A. Population Info'!O202","v":0},{"$f":"'A. Population Info'!P202","v":0},{"$f":"VLOOKUP(OFFSET($B:$B,,MATCH(G$4,$B$4:$F$4,0)-1),OFFSET('C. PoC Adj Factor Scoring'!$E$5:$J$282,,MATCH(G$4,'C. PoC Adj Factor Scoring'!$E$3:$AH$3,0)-1),MATCH(G$2&\" Score\",'C. PoC Adj Factor Scoring'!$E$4:$J$4,0),TRUE)","v":4},{"$f":"VLOOKUP(OFFSET($B:$B,,MATCH(H$4,$B$4:$F$4,0)-1),OFFSET('C. PoC Adj Factor Scoring'!$E$5:$J$282,,MATCH(H$4,'C. PoC Adj Factor Scoring'!$E$3:$AH$3,0)-1),MATCH(H$2&\" Score\",'C. PoC Adj Factor Scoring'!$E$4:$J$4,0),TRUE)","v":1},{"$f":"VLOOKUP(OFFSET($B:$B,,MATCH(I$4,$B$4:$F$4,0)-1),OFFSET('C. PoC Adj Factor Scoring'!$E$5:$J$282,,MATCH(I$4,'C. PoC Adj Factor Scoring'!$E$3:$AH$3,0)-1),MATCH(I$2&\" Score\",'C. PoC Adj Factor Scoring'!$E$4:$J$4,0),TRUE)","v":1},{"$f":"VLOOKUP(OFFSET($B:$B,,MATCH(J$4,$B$4:$F$4,0)-1),OFFSET('C. PoC Adj Factor Scoring'!$E$5:$J$282,,MATCH(J$4,'C. PoC Adj Factor Scoring'!$E$3:$AH$3,0)-1),MATCH(J$2&\" Score\",'C. PoC Adj Factor Scoring'!$E$4:$J$4,0),TRUE)","v":1},{"$f":"VLOOKUP(OFFSET($B:$B,,MATCH(K$4,$B$4:$F$4,0)-1),OFFSET('C. PoC Adj Factor Scoring'!$E$5:$J$282,,MATCH(K$4,'C. PoC Adj Factor Scoring'!$E$3:$AH$3,0)-1),MATCH(K$2&\" Score\",'C. PoC Adj Factor Scoring'!$E$4:$J$4,0),TRUE)","v":1},{"$f":"VLOOKUP(OFFSET($B:$B,,MATCH(L$4,$B$4:$F$4,0)-1),OFFSET('C. PoC Adj Factor Scoring'!$E$5:$J$282,,MATCH(L$4,'C. PoC Adj Factor Scoring'!$E$3:$AH$3,0)-1),MATCH(L$2&\" Score\",'C. PoC Adj Factor Scoring'!$E$4:$J$4,0),TRUE)","v":1},{"$f":"VLOOKUP(OFFSET($B:$B,,MATCH(M$4,$B$4:$F$4,0)-1),OFFSET('C. PoC Adj Factor Scoring'!$E$5:$J$282,,MATCH(M$4,'C. PoC Adj Factor Scoring'!$E$3:$AH$3,0)-1),MATCH(M$2&\" Score\",'C. PoC Adj Factor Scoring'!$E$4:$J$4,0),TRUE)","v":1},{"$f":"VLOOKUP(OFFSET($B:$B,,MATCH(N$4,$B$4:$F$4,0)-1),OFFSET('C. PoC Adj Factor Scoring'!$E$5:$J$282,,MATCH(N$4,'C. PoC Adj Factor Scoring'!$E$3:$AH$3,0)-1),MATCH(N$2&\" Score\",'C. PoC Adj Factor Scoring'!$E$4:$J$4,0),TRUE)","v":1},{"$f":"VLOOKUP(OFFSET($B:$B,,MATCH(O$4,$B$4:$F$4,0)-1),OFFSET('C. PoC Adj Factor Scoring'!$E$5:$J$282,,MATCH(O$4,'C. PoC Adj Factor Scoring'!$E$3:$AH$3,0)-1),MATCH(O$2&\" Score\",'C. PoC Adj Factor Scoring'!$E$4:$J$4,0),TRUE)","v":1},{"$f":"VLOOKUP(OFFSET($B:$B,,MATCH(P$4,$B$4:$F$4,0)-1),OFFSET('C. PoC Adj Factor Scoring'!$E$5:$J$282,,MATCH(P$4,'C. PoC Adj Factor Scoring'!$E$3:$AH$3,0)-1),MATCH(P$2&\" Score\",'C. PoC Adj Factor Scoring'!$E$4:$J$4,0),TRUE)","v":1},{"$f":"VLOOKUP(OFFSET($B:$B,,MATCH(Q$4,$B$4:$F$4,0)-1),OFFSET('C. PoC Adj Factor Scoring'!$E$5:$J$282,,MATCH(Q$4,'C. PoC Adj Factor Scoring'!$E$3:$AH$3,0)-1),MATCH(Q$2&\" Score\",'C. PoC Adj Factor Scoring'!$E$4:$J$4,0),TRUE)","v":1},{"$f":"VLOOKUP(OFFSET($B:$B,,MATCH(R$4,$B$4:$F$4,0)-1),OFFSET('C. PoC Adj Factor Scoring'!$E$5:$J$282,,MATCH(R$4,'C. PoC Adj Factor Scoring'!$E$3:$AH$3,0)-1),MATCH(R$2&\" Score\",'C. PoC Adj Factor Scoring'!$E$4:$J$4,0),TRUE)","v":1},{"$f":"VLOOKUP(OFFSET($B:$B,,MATCH(S$4,$B$4:$F$4,0)-1),OFFSET('C. PoC Adj Factor Scoring'!$E$5:$J$282,,MATCH(S$4,'C. PoC Adj Factor Scoring'!$E$3:$AH$3,0)-1),MATCH(S$2&\" Score\",'C. PoC Adj Factor Scoring'!$E$4:$J$4,0),TRUE)","v":1},{"$f":"VLOOKUP(OFFSET($B:$B,,MATCH(T$4,$B$4:$F$4,0)-1),OFFSET('C. PoC Adj Factor Scoring'!$E$5:$J$282,,MATCH(T$4,'C. PoC Adj Factor Scoring'!$E$3:$AH$3,0)-1),MATCH(T$2&\" Score\",'C. PoC Adj Factor Scoring'!$E$4:$J$4,0),TRUE)","v":1},{"$f":"VLOOKUP(OFFSET($B:$B,,MATCH(U$4,$B$4:$F$4,0)-1),OFFSET('C. PoC Adj Factor Scoring'!$E$5:$J$282,,MATCH(U$4,'C. PoC Adj Factor Scoring'!$E$3:$AH$3,0)-1),MATCH(U$2&\" Score\",'C. PoC Adj Factor Scoring'!$E$4:$J$4,0),TRUE)","v":1},{"$f":"VLOOKUP(OFFSET($B:$B,,MATCH(V$4,$B$4:$F$4,0)-1),OFFSET('C. PoC Adj Factor Scoring'!$E$5:$J$282,,MATCH(V$4,'C. PoC Adj Factor Scoring'!$E$3:$AH$3,0)-1),MATCH(V$2&\" Score\",'C. PoC Adj Factor Scoring'!$E$4:$J$4,0),TRUE)","v":1},{"$f":"VLOOKUP(OFFSET($B:$B,,MATCH(W$4,$B$4:$F$4,0)-1),OFFSET('C. PoC Adj Factor Scoring'!$E$5:$J$282,,MATCH(W$4,'C. PoC Adj Factor Scoring'!$E$3:$AH$3,0)-1),MATCH(W$2&\" Score\",'C. PoC Adj Factor Scoring'!$E$4:$J$4,0),TRUE)","v":1},{"$f":"VLOOKUP(OFFSET($B:$B,,MATCH(X$4,$B$4:$F$4,0)-1),OFFSET('C. PoC Adj Factor Scoring'!$E$5:$J$282,,MATCH(X$4,'C. PoC Adj Factor Scoring'!$E$3:$AH$3,0)-1),MATCH(X$2&\" Score\",'C. PoC Adj Factor Scoring'!$E$4:$J$4,0),TRUE)","v":1},{"$f":"VLOOKUP(OFFSET($B:$B,,MATCH(Y$4,$B$4:$F$4,0)-1),OFFSET('C. PoC Adj Factor Scoring'!$E$5:$J$282,,MATCH(Y$4,'C. PoC Adj Factor Scoring'!$E$3:$AH$3,0)-1),MATCH(Y$2&\" Score\",'C. PoC Adj Factor Scoring'!$E$4:$J$4,0),TRUE)","v":1},{"$f":"VLOOKUP(OFFSET($B:$B,,MATCH(Z$4,$B$4:$F$4,0)-1),OFFSET('C. PoC Adj Factor Scoring'!$E$5:$J$282,,MATCH(Z$4,'C. PoC Adj Factor Scoring'!$E$3:$AH$3,0)-1),MATCH(Z$2&\" Score\",'C. PoC Adj Factor Scoring'!$E$4:$J$4,0),TRUE)","v":1},{"$f":"VLOOKUP(OFFSET($B:$B,,MATCH(AA$4,$B$4:$F$4,0)-1),OFFSET('C. PoC Adj Factor Scoring'!$E$5:$J$282,,MATCH(AA$4,'C. PoC Adj Factor Scoring'!$E$3:$AH$3,0)-1),MATCH(AA$2&\" Score\",'C. PoC Adj Factor Scoring'!$E$4:$J$4,0),TRUE)","v":3},{"$f":"VLOOKUP(OFFSET($B:$B,,MATCH(AB$4,$B$4:$F$4,0)-1),OFFSET('C. PoC Adj Factor Scoring'!$E$5:$J$282,,MATCH(AB$4,'C. PoC Adj Factor Scoring'!$E$3:$AH$3,0)-1),MATCH(AB$2&\" Score\",'C. PoC Adj Factor Scoring'!$E$4:$J$4,0),TRUE)","v":1},{"$f":"VLOOKUP(OFFSET($B:$B,,MATCH(AC$4,$B$4:$F$4,0)-1),OFFSET('C. PoC Adj Factor Scoring'!$E$5:$J$282,,MATCH(AC$4,'C. PoC Adj Factor Scoring'!$E$3:$AH$3,0)-1),MATCH(AC$2&\" Score\",'C. PoC Adj Factor Scoring'!$E$4:$J$4,0),TRUE)","v":1},{"$f":"VLOOKUP(OFFSET($B:$B,,MATCH(AD$4,$B$4:$F$4,0)-1),OFFSET('C. PoC Adj Factor Scoring'!$E$5:$J$282,,MATCH(AD$4,'C. PoC Adj Factor Scoring'!$E$3:$AH$3,0)-1),MATCH(AD$2&\" Score\",'C. PoC Adj Factor Scoring'!$E$4:$J$4,0),TRUE)","v":1},{"$f":"VLOOKUP(OFFSET($B:$B,,MATCH(AE$4,$B$4:$F$4,0)-1),OFFSET('C. PoC Adj Factor Scoring'!$E$5:$J$282,,MATCH(AE$4,'C. PoC Adj Factor Scoring'!$E$3:$AH$3,0)-1),MATCH(AE$2&\" Score\",'C. PoC Adj Factor Scoring'!$E$4:$J$4,0),TRUE)","v":1}]
[{"$f":"'A. Population Info'!A203","v":1000353620},{"$f":"'A. Population Info'!L203","v":"OIL"},{"$f":"'A. Population Info'!M203","v":0},{"$f":"'A. Population Info'!N203","v":0},{"$f":"'A. Population Info'!O203","v":0},{"$f":"'A. Population Info'!P203","v":0},{"$f":"VLOOKUP(OFFSET($B:$B,,MATCH(G$4,$B$4:$F$4,0)-1),OFFSET('C. PoC Adj Factor Scoring'!$E$5:$J$282,,MATCH(G$4,'C. PoC Adj Factor Scoring'!$E$3:$AH$3,0)-1),MATCH(G$2&\" Score\",'C. PoC Adj Factor Scoring'!$E$4:$J$4,0),TRUE)","v":4},{"$f":"VLOOKUP(OFFSET($B:$B,,MATCH(H$4,$B$4:$F$4,0)-1),OFFSET('C. PoC Adj Factor Scoring'!$E$5:$J$282,,MATCH(H$4,'C. PoC Adj Factor Scoring'!$E$3:$AH$3,0)-1),MATCH(H$2&\" Score\",'C. PoC Adj Factor Scoring'!$E$4:$J$4,0),TRUE)","v":1},{"$f":"VLOOKUP(OFFSET($B:$B,,MATCH(I$4,$B$4:$F$4,0)-1),OFFSET('C. PoC Adj Factor Scoring'!$E$5:$J$282,,MATCH(I$4,'C. PoC Adj Factor Scoring'!$E$3:$AH$3,0)-1),MATCH(I$2&\" Score\",'C. PoC Adj Factor Scoring'!$E$4:$J$4,0),TRUE)","v":1},{"$f":"VLOOKUP(OFFSET($B:$B,,MATCH(J$4,$B$4:$F$4,0)-1),OFFSET('C. PoC Adj Factor Scoring'!$E$5:$J$282,,MATCH(J$4,'C. PoC Adj Factor Scoring'!$E$3:$AH$3,0)-1),MATCH(J$2&\" Score\",'C. PoC Adj Factor Scoring'!$E$4:$J$4,0),TRUE)","v":1},{"$f":"VLOOKUP(OFFSET($B:$B,,MATCH(K$4,$B$4:$F$4,0)-1),OFFSET('C. PoC Adj Factor Scoring'!$E$5:$J$282,,MATCH(K$4,'C. PoC Adj Factor Scoring'!$E$3:$AH$3,0)-1),MATCH(K$2&\" Score\",'C. PoC Adj Factor Scoring'!$E$4:$J$4,0),TRUE)","v":1},{"$f":"VLOOKUP(OFFSET($B:$B,,MATCH(L$4,$B$4:$F$4,0)-1),OFFSET('C. PoC Adj Factor Scoring'!$E$5:$J$282,,MATCH(L$4,'C. PoC Adj Factor Scoring'!$E$3:$AH$3,0)-1),MATCH(L$2&\" Score\",'C. PoC Adj Factor Scoring'!$E$4:$J$4,0),TRUE)","v":1},{"$f":"VLOOKUP(OFFSET($B:$B,,MATCH(M$4,$B$4:$F$4,0)-1),OFFSET('C. PoC Adj Factor Scoring'!$E$5:$J$282,,MATCH(M$4,'C. PoC Adj Factor Scoring'!$E$3:$AH$3,0)-1),MATCH(M$2&\" Score\",'C. PoC Adj Factor Scoring'!$E$4:$J$4,0),TRUE)","v":1},{"$f":"VLOOKUP(OFFSET($B:$B,,MATCH(N$4,$B$4:$F$4,0)-1),OFFSET('C. PoC Adj Factor Scoring'!$E$5:$J$282,,MATCH(N$4,'C. PoC Adj Factor Scoring'!$E$3:$AH$3,0)-1),MATCH(N$2&\" Score\",'C. PoC Adj Factor Scoring'!$E$4:$J$4,0),TRUE)","v":1},{"$f":"VLOOKUP(OFFSET($B:$B,,MATCH(O$4,$B$4:$F$4,0)-1),OFFSET('C. PoC Adj Factor Scoring'!$E$5:$J$282,,MATCH(O$4,'C. PoC Adj Factor Scoring'!$E$3:$AH$3,0)-1),MATCH(O$2&\" Score\",'C. PoC Adj Factor Scoring'!$E$4:$J$4,0),TRUE)","v":1},{"$f":"VLOOKUP(OFFSET($B:$B,,MATCH(P$4,$B$4:$F$4,0)-1),OFFSET('C. PoC Adj Factor Scoring'!$E$5:$J$282,,MATCH(P$4,'C. PoC Adj Factor Scoring'!$E$3:$AH$3,0)-1),MATCH(P$2&\" Score\",'C. PoC Adj Factor Scoring'!$E$4:$J$4,0),TRUE)","v":1},{"$f":"VLOOKUP(OFFSET($B:$B,,MATCH(Q$4,$B$4:$F$4,0)-1),OFFSET('C. PoC Adj Factor Scoring'!$E$5:$J$282,,MATCH(Q$4,'C. PoC Adj Factor Scoring'!$E$3:$AH$3,0)-1),MATCH(Q$2&\" Score\",'C. PoC Adj Factor Scoring'!$E$4:$J$4,0),TRUE)","v":1},{"$f":"VLOOKUP(OFFSET($B:$B,,MATCH(R$4,$B$4:$F$4,0)-1),OFFSET('C. PoC Adj Factor Scoring'!$E$5:$J$282,,MATCH(R$4,'C. PoC Adj Factor Scoring'!$E$3:$AH$3,0)-1),MATCH(R$2&\" Score\",'C. PoC Adj Factor Scoring'!$E$4:$J$4,0),TRUE)","v":1},{"$f":"VLOOKUP(OFFSET($B:$B,,MATCH(S$4,$B$4:$F$4,0)-1),OFFSET('C. PoC Adj Factor Scoring'!$E$5:$J$282,,MATCH(S$4,'C. PoC Adj Factor Scoring'!$E$3:$AH$3,0)-1),MATCH(S$2&\" Score\",'C. PoC Adj Factor Scoring'!$E$4:$J$4,0),TRUE)","v":1},{"$f":"VLOOKUP(OFFSET($B:$B,,MATCH(T$4,$B$4:$F$4,0)-1),OFFSET('C. PoC Adj Factor Scoring'!$E$5:$J$282,,MATCH(T$4,'C. PoC Adj Factor Scoring'!$E$3:$AH$3,0)-1),MATCH(T$2&\" Score\",'C. PoC Adj Factor Scoring'!$E$4:$J$4,0),TRUE)","v":1},{"$f":"VLOOKUP(OFFSET($B:$B,,MATCH(U$4,$B$4:$F$4,0)-1),OFFSET('C. PoC Adj Factor Scoring'!$E$5:$J$282,,MATCH(U$4,'C. PoC Adj Factor Scoring'!$E$3:$AH$3,0)-1),MATCH(U$2&\" Score\",'C. PoC Adj Factor Scoring'!$E$4:$J$4,0),TRUE)","v":1},{"$f":"VLOOKUP(OFFSET($B:$B,,MATCH(V$4,$B$4:$F$4,0)-1),OFFSET('C. PoC Adj Factor Scoring'!$E$5:$J$282,,MATCH(V$4,'C. PoC Adj Factor Scoring'!$E$3:$AH$3,0)-1),MATCH(V$2&\" Score\",'C. PoC Adj Factor Scoring'!$E$4:$J$4,0),TRUE)","v":1},{"$f":"VLOOKUP(OFFSET($B:$B,,MATCH(W$4,$B$4:$F$4,0)-1),OFFSET('C. PoC Adj Factor Scoring'!$E$5:$J$282,,MATCH(W$4,'C. PoC Adj Factor Scoring'!$E$3:$AH$3,0)-1),MATCH(W$2&\" Score\",'C. PoC Adj Factor Scoring'!$E$4:$J$4,0),TRUE)","v":1},{"$f":"VLOOKUP(OFFSET($B:$B,,MATCH(X$4,$B$4:$F$4,0)-1),OFFSET('C. PoC Adj Factor Scoring'!$E$5:$J$282,,MATCH(X$4,'C. PoC Adj Factor Scoring'!$E$3:$AH$3,0)-1),MATCH(X$2&\" Score\",'C. PoC Adj Factor Scoring'!$E$4:$J$4,0),TRUE)","v":1},{"$f":"VLOOKUP(OFFSET($B:$B,,MATCH(Y$4,$B$4:$F$4,0)-1),OFFSET('C. PoC Adj Factor Scoring'!$E$5:$J$282,,MATCH(Y$4,'C. PoC Adj Factor Scoring'!$E$3:$AH$3,0)-1),MATCH(Y$2&\" Score\",'C. PoC Adj Factor Scoring'!$E$4:$J$4,0),TRUE)","v":1},{"$f":"VLOOKUP(OFFSET($B:$B,,MATCH(Z$4,$B$4:$F$4,0)-1),OFFSET('C. PoC Adj Factor Scoring'!$E$5:$J$282,,MATCH(Z$4,'C. PoC Adj Factor Scoring'!$E$3:$AH$3,0)-1),MATCH(Z$2&\" Score\",'C. PoC Adj Factor Scoring'!$E$4:$J$4,0),TRUE)","v":1},{"$f":"VLOOKUP(OFFSET($B:$B,,MATCH(AA$4,$B$4:$F$4,0)-1),OFFSET('C. PoC Adj Factor Scoring'!$E$5:$J$282,,MATCH(AA$4,'C. PoC Adj Factor Scoring'!$E$3:$AH$3,0)-1),MATCH(AA$2&\" Score\",'C. PoC Adj Factor Scoring'!$E$4:$J$4,0),TRUE)","v":3},{"$f":"VLOOKUP(OFFSET($B:$B,,MATCH(AB$4,$B$4:$F$4,0)-1),OFFSET('C. PoC Adj Factor Scoring'!$E$5:$J$282,,MATCH(AB$4,'C. PoC Adj Factor Scoring'!$E$3:$AH$3,0)-1),MATCH(AB$2&\" Score\",'C. PoC Adj Factor Scoring'!$E$4:$J$4,0),TRUE)","v":1},{"$f":"VLOOKUP(OFFSET($B:$B,,MATCH(AC$4,$B$4:$F$4,0)-1),OFFSET('C. PoC Adj Factor Scoring'!$E$5:$J$282,,MATCH(AC$4,'C. PoC Adj Factor Scoring'!$E$3:$AH$3,0)-1),MATCH(AC$2&\" Score\",'C. PoC Adj Factor Scoring'!$E$4:$J$4,0),TRUE)","v":1},{"$f":"VLOOKUP(OFFSET($B:$B,,MATCH(AD$4,$B$4:$F$4,0)-1),OFFSET('C. PoC Adj Factor Scoring'!$E$5:$J$282,,MATCH(AD$4,'C. PoC Adj Factor Scoring'!$E$3:$AH$3,0)-1),MATCH(AD$2&\" Score\",'C. PoC Adj Factor Scoring'!$E$4:$J$4,0),TRUE)","v":1},{"$f":"VLOOKUP(OFFSET($B:$B,,MATCH(AE$4,$B$4:$F$4,0)-1),OFFSET('C. PoC Adj Factor Scoring'!$E$5:$J$282,,MATCH(AE$4,'C. PoC Adj Factor Scoring'!$E$3:$AH$3,0)-1),MATCH(AE$2&\" Score\",'C. PoC Adj Factor Scoring'!$E$4:$J$4,0),TRUE)","v":1}]
[{"$f":"'A. Population Info'!A204","v":1000353653},{"$f":"'A. Population Info'!L204","v":"OIL"},{"$f":"'A. Population Info'!M204","v":0},{"$f":"'A. Population Info'!N204","v":0},{"$f":"'A. Population Info'!O204","v":0},{"$f":"'A. Population Info'!P204","v":0},{"$f":"VLOOKUP(OFFSET($B:$B,,MATCH(G$4,$B$4:$F$4,0)-1),OFFSET('C. PoC Adj Factor Scoring'!$E$5:$J$282,,MATCH(G$4,'C. PoC Adj Factor Scoring'!$E$3:$AH$3,0)-1),MATCH(G$2&\" Score\",'C. PoC Adj Factor Scoring'!$E$4:$J$4,0),TRUE)","v":4},{"$f":"VLOOKUP(OFFSET($B:$B,,MATCH(H$4,$B$4:$F$4,0)-1),OFFSET('C. PoC Adj Factor Scoring'!$E$5:$J$282,,MATCH(H$4,'C. PoC Adj Factor Scoring'!$E$3:$AH$3,0)-1),MATCH(H$2&\" Score\",'C. PoC Adj Factor Scoring'!$E$4:$J$4,0),TRUE)","v":1},{"$f":"VLOOKUP(OFFSET($B:$B,,MATCH(I$4,$B$4:$F$4,0)-1),OFFSET('C. PoC Adj Factor Scoring'!$E$5:$J$282,,MATCH(I$4,'C. PoC Adj Factor Scoring'!$E$3:$AH$3,0)-1),MATCH(I$2&\" Score\",'C. PoC Adj Factor Scoring'!$E$4:$J$4,0),TRUE)","v":1},{"$f":"VLOOKUP(OFFSET($B:$B,,MATCH(J$4,$B$4:$F$4,0)-1),OFFSET('C. PoC Adj Factor Scoring'!$E$5:$J$282,,MATCH(J$4,'C. PoC Adj Factor Scoring'!$E$3:$AH$3,0)-1),MATCH(J$2&\" Score\",'C. PoC Adj Factor Scoring'!$E$4:$J$4,0),TRUE)","v":1},{"$f":"VLOOKUP(OFFSET($B:$B,,MATCH(K$4,$B$4:$F$4,0)-1),OFFSET('C. PoC Adj Factor Scoring'!$E$5:$J$282,,MATCH(K$4,'C. PoC Adj Factor Scoring'!$E$3:$AH$3,0)-1),MATCH(K$2&\" Score\",'C. PoC Adj Factor Scoring'!$E$4:$J$4,0),TRUE)","v":1},{"$f":"VLOOKUP(OFFSET($B:$B,,MATCH(L$4,$B$4:$F$4,0)-1),OFFSET('C. PoC Adj Factor Scoring'!$E$5:$J$282,,MATCH(L$4,'C. PoC Adj Factor Scoring'!$E$3:$AH$3,0)-1),MATCH(L$2&\" Score\",'C. PoC Adj Factor Scoring'!$E$4:$J$4,0),TRUE)","v":1},{"$f":"VLOOKUP(OFFSET($B:$B,,MATCH(M$4,$B$4:$F$4,0)-1),OFFSET('C. PoC Adj Factor Scoring'!$E$5:$J$282,,MATCH(M$4,'C. PoC Adj Factor Scoring'!$E$3:$AH$3,0)-1),MATCH(M$2&\" Score\",'C. PoC Adj Factor Scoring'!$E$4:$J$4,0),TRUE)","v":1},{"$f":"VLOOKUP(OFFSET($B:$B,,MATCH(N$4,$B$4:$F$4,0)-1),OFFSET('C. PoC Adj Factor Scoring'!$E$5:$J$282,,MATCH(N$4,'C. PoC Adj Factor Scoring'!$E$3:$AH$3,0)-1),MATCH(N$2&\" Score\",'C. PoC Adj Factor Scoring'!$E$4:$J$4,0),TRUE)","v":1},{"$f":"VLOOKUP(OFFSET($B:$B,,MATCH(O$4,$B$4:$F$4,0)-1),OFFSET('C. PoC Adj Factor Scoring'!$E$5:$J$282,,MATCH(O$4,'C. PoC Adj Factor Scoring'!$E$3:$AH$3,0)-1),MATCH(O$2&\" Score\",'C. PoC Adj Factor Scoring'!$E$4:$J$4,0),TRUE)","v":1},{"$f":"VLOOKUP(OFFSET($B:$B,,MATCH(P$4,$B$4:$F$4,0)-1),OFFSET('C. PoC Adj Factor Scoring'!$E$5:$J$282,,MATCH(P$4,'C. PoC Adj Factor Scoring'!$E$3:$AH$3,0)-1),MATCH(P$2&\" Score\",'C. PoC Adj Factor Scoring'!$E$4:$J$4,0),TRUE)","v":1},{"$f":"VLOOKUP(OFFSET($B:$B,,MATCH(Q$4,$B$4:$F$4,0)-1),OFFSET('C. PoC Adj Factor Scoring'!$E$5:$J$282,,MATCH(Q$4,'C. PoC Adj Factor Scoring'!$E$3:$AH$3,0)-1),MATCH(Q$2&\" Score\",'C. PoC Adj Factor Scoring'!$E$4:$J$4,0),TRUE)","v":1},{"$f":"VLOOKUP(OFFSET($B:$B,,MATCH(R$4,$B$4:$F$4,0)-1),OFFSET('C. PoC Adj Factor Scoring'!$E$5:$J$282,,MATCH(R$4,'C. PoC Adj Factor Scoring'!$E$3:$AH$3,0)-1),MATCH(R$2&\" Score\",'C. PoC Adj Factor Scoring'!$E$4:$J$4,0),TRUE)","v":1},{"$f":"VLOOKUP(OFFSET($B:$B,,MATCH(S$4,$B$4:$F$4,0)-1),OFFSET('C. PoC Adj Factor Scoring'!$E$5:$J$282,,MATCH(S$4,'C. PoC Adj Factor Scoring'!$E$3:$AH$3,0)-1),MATCH(S$2&\" Score\",'C. PoC Adj Factor Scoring'!$E$4:$J$4,0),TRUE)","v":1},{"$f":"VLOOKUP(OFFSET($B:$B,,MATCH(T$4,$B$4:$F$4,0)-1),OFFSET('C. PoC Adj Factor Scoring'!$E$5:$J$282,,MATCH(T$4,'C. PoC Adj Factor Scoring'!$E$3:$AH$3,0)-1),MATCH(T$2&\" Score\",'C. PoC Adj Factor Scoring'!$E$4:$J$4,0),TRUE)","v":1},{"$f":"VLOOKUP(OFFSET($B:$B,,MATCH(U$4,$B$4:$F$4,0)-1),OFFSET('C. PoC Adj Factor Scoring'!$E$5:$J$282,,MATCH(U$4,'C. PoC Adj Factor Scoring'!$E$3:$AH$3,0)-1),MATCH(U$2&\" Score\",'C. PoC Adj Factor Scoring'!$E$4:$J$4,0),TRUE)","v":1},{"$f":"VLOOKUP(OFFSET($B:$B,,MATCH(V$4,$B$4:$F$4,0)-1),OFFSET('C. PoC Adj Factor Scoring'!$E$5:$J$282,,MATCH(V$4,'C. PoC Adj Factor Scoring'!$E$3:$AH$3,0)-1),MATCH(V$2&\" Score\",'C. PoC Adj Factor Scoring'!$E$4:$J$4,0),TRUE)","v":1},{"$f":"VLOOKUP(OFFSET($B:$B,,MATCH(W$4,$B$4:$F$4,0)-1),OFFSET('C. PoC Adj Factor Scoring'!$E$5:$J$282,,MATCH(W$4,'C. PoC Adj Factor Scoring'!$E$3:$AH$3,0)-1),MATCH(W$2&\" Score\",'C. PoC Adj Factor Scoring'!$E$4:$J$4,0),TRUE)","v":1},{"$f":"VLOOKUP(OFFSET($B:$B,,MATCH(X$4,$B$4:$F$4,0)-1),OFFSET('C. PoC Adj Factor Scoring'!$E$5:$J$282,,MATCH(X$4,'C. PoC Adj Factor Scoring'!$E$3:$AH$3,0)-1),MATCH(X$2&\" Score\",'C. PoC Adj Factor Scoring'!$E$4:$J$4,0),TRUE)","v":1},{"$f":"VLOOKUP(OFFSET($B:$B,,MATCH(Y$4,$B$4:$F$4,0)-1),OFFSET('C. PoC Adj Factor Scoring'!$E$5:$J$282,,MATCH(Y$4,'C. PoC Adj Factor Scoring'!$E$3:$AH$3,0)-1),MATCH(Y$2&\" Score\",'C. PoC Adj Factor Scoring'!$E$4:$J$4,0),TRUE)","v":1},{"$f":"VLOOKUP(OFFSET($B:$B,,MATCH(Z$4,$B$4:$F$4,0)-1),OFFSET('C. PoC Adj Factor Scoring'!$E$5:$J$282,,MATCH(Z$4,'C. PoC Adj Factor Scoring'!$E$3:$AH$3,0)-1),MATCH(Z$2&\" Score\",'C. PoC Adj Factor Scoring'!$E$4:$J$4,0),TRUE)","v":1},{"$f":"VLOOKUP(OFFSET($B:$B,,MATCH(AA$4,$B$4:$F$4,0)-1),OFFSET('C. PoC Adj Factor Scoring'!$E$5:$J$282,,MATCH(AA$4,'C. PoC Adj Factor Scoring'!$E$3:$AH$3,0)-1),MATCH(AA$2&\" Score\",'C. PoC Adj Factor Scoring'!$E$4:$J$4,0),TRUE)","v":3},{"$f":"VLOOKUP(OFFSET($B:$B,,MATCH(AB$4,$B$4:$F$4,0)-1),OFFSET('C. PoC Adj Factor Scoring'!$E$5:$J$282,,MATCH(AB$4,'C. PoC Adj Factor Scoring'!$E$3:$AH$3,0)-1),MATCH(AB$2&\" Score\",'C. PoC Adj Factor Scoring'!$E$4:$J$4,0),TRUE)","v":1},{"$f":"VLOOKUP(OFFSET($B:$B,,MATCH(AC$4,$B$4:$F$4,0)-1),OFFSET('C. PoC Adj Factor Scoring'!$E$5:$J$282,,MATCH(AC$4,'C. PoC Adj Factor Scoring'!$E$3:$AH$3,0)-1),MATCH(AC$2&\" Score\",'C. PoC Adj Factor Scoring'!$E$4:$J$4,0),TRUE)","v":1},{"$f":"VLOOKUP(OFFSET($B:$B,,MATCH(AD$4,$B$4:$F$4,0)-1),OFFSET('C. PoC Adj Factor Scoring'!$E$5:$J$282,,MATCH(AD$4,'C. PoC Adj Factor Scoring'!$E$3:$AH$3,0)-1),MATCH(AD$2&\" Score\",'C. PoC Adj Factor Scoring'!$E$4:$J$4,0),TRUE)","v":1},{"$f":"VLOOKUP(OFFSET($B:$B,,MATCH(AE$4,$B$4:$F$4,0)-1),OFFSET('C. PoC Adj Factor Scoring'!$E$5:$J$282,,MATCH(AE$4,'C. PoC Adj Factor Scoring'!$E$3:$AH$3,0)-1),MATCH(AE$2&\" Score\",'C. PoC Adj Factor Scoring'!$E$4:$J$4,0),TRUE)","v":1}]
[{"$f":"'A. Population Info'!A205","v":1000353684},{"$f":"'A. Population Info'!L205","v":"OIL"},{"$f":"'A. Population Info'!M205","v":0},{"$f":"'A. Population Info'!N205","v":0},{"$f":"'A. Population Info'!O205","v":0},{"$f":"'A. Population Info'!P205","v":0},{"$f":"VLOOKUP(OFFSET($B:$B,,MATCH(G$4,$B$4:$F$4,0)-1),OFFSET('C. PoC Adj Factor Scoring'!$E$5:$J$282,,MATCH(G$4,'C. PoC Adj Factor Scoring'!$E$3:$AH$3,0)-1),MATCH(G$2&\" Score\",'C. PoC Adj Factor Scoring'!$E$4:$J$4,0),TRUE)","v":4},{"$f":"VLOOKUP(OFFSET($B:$B,,MATCH(H$4,$B$4:$F$4,0)-1),OFFSET('C. PoC Adj Factor Scoring'!$E$5:$J$282,,MATCH(H$4,'C. PoC Adj Factor Scoring'!$E$3:$AH$3,0)-1),MATCH(H$2&\" Score\",'C. PoC Adj Factor Scoring'!$E$4:$J$4,0),TRUE)","v":1},{"$f":"VLOOKUP(OFFSET($B:$B,,MATCH(I$4,$B$4:$F$4,0)-1),OFFSET('C. PoC Adj Factor Scoring'!$E$5:$J$282,,MATCH(I$4,'C. PoC Adj Factor Scoring'!$E$3:$AH$3,0)-1),MATCH(I$2&\" Score\",'C. PoC Adj Factor Scoring'!$E$4:$J$4,0),TRUE)","v":1},{"$f":"VLOOKUP(OFFSET($B:$B,,MATCH(J$4,$B$4:$F$4,0)-1),OFFSET('C. PoC Adj Factor Scoring'!$E$5:$J$282,,MATCH(J$4,'C. PoC Adj Factor Scoring'!$E$3:$AH$3,0)-1),MATCH(J$2&\" Score\",'C. PoC Adj Factor Scoring'!$E$4:$J$4,0),TRUE)","v":1},{"$f":"VLOOKUP(OFFSET($B:$B,,MATCH(K$4,$B$4:$F$4,0)-1),OFFSET('C. PoC Adj Factor Scoring'!$E$5:$J$282,,MATCH(K$4,'C. PoC Adj Factor Scoring'!$E$3:$AH$3,0)-1),MATCH(K$2&\" Score\",'C. PoC Adj Factor Scoring'!$E$4:$J$4,0),TRUE)","v":1},{"$f":"VLOOKUP(OFFSET($B:$B,,MATCH(L$4,$B$4:$F$4,0)-1),OFFSET('C. PoC Adj Factor Scoring'!$E$5:$J$282,,MATCH(L$4,'C. PoC Adj Factor Scoring'!$E$3:$AH$3,0)-1),MATCH(L$2&\" Score\",'C. PoC Adj Factor Scoring'!$E$4:$J$4,0),TRUE)","v":1},{"$f":"VLOOKUP(OFFSET($B:$B,,MATCH(M$4,$B$4:$F$4,0)-1),OFFSET('C. PoC Adj Factor Scoring'!$E$5:$J$282,,MATCH(M$4,'C. PoC Adj Factor Scoring'!$E$3:$AH$3,0)-1),MATCH(M$2&\" Score\",'C. PoC Adj Factor Scoring'!$E$4:$J$4,0),TRUE)","v":1},{"$f":"VLOOKUP(OFFSET($B:$B,,MATCH(N$4,$B$4:$F$4,0)-1),OFFSET('C. PoC Adj Factor Scoring'!$E$5:$J$282,,MATCH(N$4,'C. PoC Adj Factor Scoring'!$E$3:$AH$3,0)-1),MATCH(N$2&\" Score\",'C. PoC Adj Factor Scoring'!$E$4:$J$4,0),TRUE)","v":1},{"$f":"VLOOKUP(OFFSET($B:$B,,MATCH(O$4,$B$4:$F$4,0)-1),OFFSET('C. PoC Adj Factor Scoring'!$E$5:$J$282,,MATCH(O$4,'C. PoC Adj Factor Scoring'!$E$3:$AH$3,0)-1),MATCH(O$2&\" Score\",'C. PoC Adj Factor Scoring'!$E$4:$J$4,0),TRUE)","v":1},{"$f":"VLOOKUP(OFFSET($B:$B,,MATCH(P$4,$B$4:$F$4,0)-1),OFFSET('C. PoC Adj Factor Scoring'!$E$5:$J$282,,MATCH(P$4,'C. PoC Adj Factor Scoring'!$E$3:$AH$3,0)-1),MATCH(P$2&\" Score\",'C. PoC Adj Factor Scoring'!$E$4:$J$4,0),TRUE)","v":1},{"$f":"VLOOKUP(OFFSET($B:$B,,MATCH(Q$4,$B$4:$F$4,0)-1),OFFSET('C. PoC Adj Factor Scoring'!$E$5:$J$282,,MATCH(Q$4,'C. PoC Adj Factor Scoring'!$E$3:$AH$3,0)-1),MATCH(Q$2&\" Score\",'C. PoC Adj Factor Scoring'!$E$4:$J$4,0),TRUE)","v":1},{"$f":"VLOOKUP(OFFSET($B:$B,,MATCH(R$4,$B$4:$F$4,0)-1),OFFSET('C. PoC Adj Factor Scoring'!$E$5:$J$282,,MATCH(R$4,'C. PoC Adj Factor Scoring'!$E$3:$AH$3,0)-1),MATCH(R$2&\" Score\",'C. PoC Adj Factor Scoring'!$E$4:$J$4,0),TRUE)","v":1},{"$f":"VLOOKUP(OFFSET($B:$B,,MATCH(S$4,$B$4:$F$4,0)-1),OFFSET('C. PoC Adj Factor Scoring'!$E$5:$J$282,,MATCH(S$4,'C. PoC Adj Factor Scoring'!$E$3:$AH$3,0)-1),MATCH(S$2&\" Score\",'C. PoC Adj Factor Scoring'!$E$4:$J$4,0),TRUE)","v":1},{"$f":"VLOOKUP(OFFSET($B:$B,,MATCH(T$4,$B$4:$F$4,0)-1),OFFSET('C. PoC Adj Factor Scoring'!$E$5:$J$282,,MATCH(T$4,'C. PoC Adj Factor Scoring'!$E$3:$AH$3,0)-1),MATCH(T$2&\" Score\",'C. PoC Adj Factor Scoring'!$E$4:$J$4,0),TRUE)","v":1},{"$f":"VLOOKUP(OFFSET($B:$B,,MATCH(U$4,$B$4:$F$4,0)-1),OFFSET('C. PoC Adj Factor Scoring'!$E$5:$J$282,,MATCH(U$4,'C. PoC Adj Factor Scoring'!$E$3:$AH$3,0)-1),MATCH(U$2&\" Score\",'C. PoC Adj Factor Scoring'!$E$4:$J$4,0),TRUE)","v":1},{"$f":"VLOOKUP(OFFSET($B:$B,,MATCH(V$4,$B$4:$F$4,0)-1),OFFSET('C. PoC Adj Factor Scoring'!$E$5:$J$282,,MATCH(V$4,'C. PoC Adj Factor Scoring'!$E$3:$AH$3,0)-1),MATCH(V$2&\" Score\",'C. PoC Adj Factor Scoring'!$E$4:$J$4,0),TRUE)","v":1},{"$f":"VLOOKUP(OFFSET($B:$B,,MATCH(W$4,$B$4:$F$4,0)-1),OFFSET('C. PoC Adj Factor Scoring'!$E$5:$J$282,,MATCH(W$4,'C. PoC Adj Factor Scoring'!$E$3:$AH$3,0)-1),MATCH(W$2&\" Score\",'C. PoC Adj Factor Scoring'!$E$4:$J$4,0),TRUE)","v":1},{"$f":"VLOOKUP(OFFSET($B:$B,,MATCH(X$4,$B$4:$F$4,0)-1),OFFSET('C. PoC Adj Factor Scoring'!$E$5:$J$282,,MATCH(X$4,'C. PoC Adj Factor Scoring'!$E$3:$AH$3,0)-1),MATCH(X$2&\" Score\",'C. PoC Adj Factor Scoring'!$E$4:$J$4,0),TRUE)","v":1},{"$f":"VLOOKUP(OFFSET($B:$B,,MATCH(Y$4,$B$4:$F$4,0)-1),OFFSET('C. PoC Adj Factor Scoring'!$E$5:$J$282,,MATCH(Y$4,'C. PoC Adj Factor Scoring'!$E$3:$AH$3,0)-1),MATCH(Y$2&\" Score\",'C. PoC Adj Factor Scoring'!$E$4:$J$4,0),TRUE)","v":1},{"$f":"VLOOKUP(OFFSET($B:$B,,MATCH(Z$4,$B$4:$F$4,0)-1),OFFSET('C. PoC Adj Factor Scoring'!$E$5:$J$282,,MATCH(Z$4,'C. PoC Adj Factor Scoring'!$E$3:$AH$3,0)-1),MATCH(Z$2&\" Score\",'C. PoC Adj Factor Scoring'!$E$4:$J$4,0),TRUE)","v":1},{"$f":"VLOOKUP(OFFSET($B:$B,,MATCH(AA$4,$B$4:$F$4,0)-1),OFFSET('C. PoC Adj Factor Scoring'!$E$5:$J$282,,MATCH(AA$4,'C. PoC Adj Factor Scoring'!$E$3:$AH$3,0)-1),MATCH(AA$2&\" Score\",'C. PoC Adj Factor Scoring'!$E$4:$J$4,0),TRUE)","v":3},{"$f":"VLOOKUP(OFFSET($B:$B,,MATCH(AB$4,$B$4:$F$4,0)-1),OFFSET('C. PoC Adj Factor Scoring'!$E$5:$J$282,,MATCH(AB$4,'C. PoC Adj Factor Scoring'!$E$3:$AH$3,0)-1),MATCH(AB$2&\" Score\",'C. PoC Adj Factor Scoring'!$E$4:$J$4,0),TRUE)","v":1},{"$f":"VLOOKUP(OFFSET($B:$B,,MATCH(AC$4,$B$4:$F$4,0)-1),OFFSET('C. PoC Adj Factor Scoring'!$E$5:$J$282,,MATCH(AC$4,'C. PoC Adj Factor Scoring'!$E$3:$AH$3,0)-1),MATCH(AC$2&\" Score\",'C. PoC Adj Factor Scoring'!$E$4:$J$4,0),TRUE)","v":1},{"$f":"VLOOKUP(OFFSET($B:$B,,MATCH(AD$4,$B$4:$F$4,0)-1),OFFSET('C. PoC Adj Factor Scoring'!$E$5:$J$282,,MATCH(AD$4,'C. PoC Adj Factor Scoring'!$E$3:$AH$3,0)-1),MATCH(AD$2&\" Score\",'C. PoC Adj Factor Scoring'!$E$4:$J$4,0),TRUE)","v":1},{"$f":"VLOOKUP(OFFSET($B:$B,,MATCH(AE$4,$B$4:$F$4,0)-1),OFFSET('C. PoC Adj Factor Scoring'!$E$5:$J$282,,MATCH(AE$4,'C. PoC Adj Factor Scoring'!$E$3:$AH$3,0)-1),MATCH(AE$2&\" Score\",'C. PoC Adj Factor Scoring'!$E$4:$J$4,0),TRUE)","v":1}]
[{"$f":"'A. Population Info'!A206","v":1000353713},{"$f":"'A. Population Info'!L206","v":"OIL"},{"$f":"'A. Population Info'!M206","v":0},{"$f":"'A. Population Info'!N206","v":0},{"$f":"'A. Population Info'!O206","v":0},{"$f":"'A. Population Info'!P206","v":0},{"$f":"VLOOKUP(OFFSET($B:$B,,MATCH(G$4,$B$4:$F$4,0)-1),OFFSET('C. PoC Adj Factor Scoring'!$E$5:$J$282,,MATCH(G$4,'C. PoC Adj Factor Scoring'!$E$3:$AH$3,0)-1),MATCH(G$2&\" Score\",'C. PoC Adj Factor Scoring'!$E$4:$J$4,0),TRUE)","v":4},{"$f":"VLOOKUP(OFFSET($B:$B,,MATCH(H$4,$B$4:$F$4,0)-1),OFFSET('C. PoC Adj Factor Scoring'!$E$5:$J$282,,MATCH(H$4,'C. PoC Adj Factor Scoring'!$E$3:$AH$3,0)-1),MATCH(H$2&\" Score\",'C. PoC Adj Factor Scoring'!$E$4:$J$4,0),TRUE)","v":1},{"$f":"VLOOKUP(OFFSET($B:$B,,MATCH(I$4,$B$4:$F$4,0)-1),OFFSET('C. PoC Adj Factor Scoring'!$E$5:$J$282,,MATCH(I$4,'C. PoC Adj Factor Scoring'!$E$3:$AH$3,0)-1),MATCH(I$2&\" Score\",'C. PoC Adj Factor Scoring'!$E$4:$J$4,0),TRUE)","v":1},{"$f":"VLOOKUP(OFFSET($B:$B,,MATCH(J$4,$B$4:$F$4,0)-1),OFFSET('C. PoC Adj Factor Scoring'!$E$5:$J$282,,MATCH(J$4,'C. PoC Adj Factor Scoring'!$E$3:$AH$3,0)-1),MATCH(J$2&\" Score\",'C. PoC Adj Factor Scoring'!$E$4:$J$4,0),TRUE)","v":1},{"$f":"VLOOKUP(OFFSET($B:$B,,MATCH(K$4,$B$4:$F$4,0)-1),OFFSET('C. PoC Adj Factor Scoring'!$E$5:$J$282,,MATCH(K$4,'C. PoC Adj Factor Scoring'!$E$3:$AH$3,0)-1),MATCH(K$2&\" Score\",'C. PoC Adj Factor Scoring'!$E$4:$J$4,0),TRUE)","v":1},{"$f":"VLOOKUP(OFFSET($B:$B,,MATCH(L$4,$B$4:$F$4,0)-1),OFFSET('C. PoC Adj Factor Scoring'!$E$5:$J$282,,MATCH(L$4,'C. PoC Adj Factor Scoring'!$E$3:$AH$3,0)-1),MATCH(L$2&\" Score\",'C. PoC Adj Factor Scoring'!$E$4:$J$4,0),TRUE)","v":1},{"$f":"VLOOKUP(OFFSET($B:$B,,MATCH(M$4,$B$4:$F$4,0)-1),OFFSET('C. PoC Adj Factor Scoring'!$E$5:$J$282,,MATCH(M$4,'C. PoC Adj Factor Scoring'!$E$3:$AH$3,0)-1),MATCH(M$2&\" Score\",'C. PoC Adj Factor Scoring'!$E$4:$J$4,0),TRUE)","v":1},{"$f":"VLOOKUP(OFFSET($B:$B,,MATCH(N$4,$B$4:$F$4,0)-1),OFFSET('C. PoC Adj Factor Scoring'!$E$5:$J$282,,MATCH(N$4,'C. PoC Adj Factor Scoring'!$E$3:$AH$3,0)-1),MATCH(N$2&\" Score\",'C. PoC Adj Factor Scoring'!$E$4:$J$4,0),TRUE)","v":1},{"$f":"VLOOKUP(OFFSET($B:$B,,MATCH(O$4,$B$4:$F$4,0)-1),OFFSET('C. PoC Adj Factor Scoring'!$E$5:$J$282,,MATCH(O$4,'C. PoC Adj Factor Scoring'!$E$3:$AH$3,0)-1),MATCH(O$2&\" Score\",'C. PoC Adj Factor Scoring'!$E$4:$J$4,0),TRUE)","v":1},{"$f":"VLOOKUP(OFFSET($B:$B,,MATCH(P$4,$B$4:$F$4,0)-1),OFFSET('C. PoC Adj Factor Scoring'!$E$5:$J$282,,MATCH(P$4,'C. PoC Adj Factor Scoring'!$E$3:$AH$3,0)-1),MATCH(P$2&\" Score\",'C. PoC Adj Factor Scoring'!$E$4:$J$4,0),TRUE)","v":1},{"$f":"VLOOKUP(OFFSET($B:$B,,MATCH(Q$4,$B$4:$F$4,0)-1),OFFSET('C. PoC Adj Factor Scoring'!$E$5:$J$282,,MATCH(Q$4,'C. PoC Adj Factor Scoring'!$E$3:$AH$3,0)-1),MATCH(Q$2&\" Score\",'C. PoC Adj Factor Scoring'!$E$4:$J$4,0),TRUE)","v":1},{"$f":"VLOOKUP(OFFSET($B:$B,,MATCH(R$4,$B$4:$F$4,0)-1),OFFSET('C. PoC Adj Factor Scoring'!$E$5:$J$282,,MATCH(R$4,'C. PoC Adj Factor Scoring'!$E$3:$AH$3,0)-1),MATCH(R$2&\" Score\",'C. PoC Adj Factor Scoring'!$E$4:$J$4,0),TRUE)","v":1},{"$f":"VLOOKUP(OFFSET($B:$B,,MATCH(S$4,$B$4:$F$4,0)-1),OFFSET('C. PoC Adj Factor Scoring'!$E$5:$J$282,,MATCH(S$4,'C. PoC Adj Factor Scoring'!$E$3:$AH$3,0)-1),MATCH(S$2&\" Score\",'C. PoC Adj Factor Scoring'!$E$4:$J$4,0),TRUE)","v":1},{"$f":"VLOOKUP(OFFSET($B:$B,,MATCH(T$4,$B$4:$F$4,0)-1),OFFSET('C. PoC Adj Factor Scoring'!$E$5:$J$282,,MATCH(T$4,'C. PoC Adj Factor Scoring'!$E$3:$AH$3,0)-1),MATCH(T$2&\" Score\",'C. PoC Adj Factor Scoring'!$E$4:$J$4,0),TRUE)","v":1},{"$f":"VLOOKUP(OFFSET($B:$B,,MATCH(U$4,$B$4:$F$4,0)-1),OFFSET('C. PoC Adj Factor Scoring'!$E$5:$J$282,,MATCH(U$4,'C. PoC Adj Factor Scoring'!$E$3:$AH$3,0)-1),MATCH(U$2&\" Score\",'C. PoC Adj Factor Scoring'!$E$4:$J$4,0),TRUE)","v":1},{"$f":"VLOOKUP(OFFSET($B:$B,,MATCH(V$4,$B$4:$F$4,0)-1),OFFSET('C. PoC Adj Factor Scoring'!$E$5:$J$282,,MATCH(V$4,'C. PoC Adj Factor Scoring'!$E$3:$AH$3,0)-1),MATCH(V$2&\" Score\",'C. PoC Adj Factor Scoring'!$E$4:$J$4,0),TRUE)","v":1},{"$f":"VLOOKUP(OFFSET($B:$B,,MATCH(W$4,$B$4:$F$4,0)-1),OFFSET('C. PoC Adj Factor Scoring'!$E$5:$J$282,,MATCH(W$4,'C. PoC Adj Factor Scoring'!$E$3:$AH$3,0)-1),MATCH(W$2&\" Score\",'C. PoC Adj Factor Scoring'!$E$4:$J$4,0),TRUE)","v":1},{"$f":"VLOOKUP(OFFSET($B:$B,,MATCH(X$4,$B$4:$F$4,0)-1),OFFSET('C. PoC Adj Factor Scoring'!$E$5:$J$282,,MATCH(X$4,'C. PoC Adj Factor Scoring'!$E$3:$AH$3,0)-1),MATCH(X$2&\" Score\",'C. PoC Adj Factor Scoring'!$E$4:$J$4,0),TRUE)","v":1},{"$f":"VLOOKUP(OFFSET($B:$B,,MATCH(Y$4,$B$4:$F$4,0)-1),OFFSET('C. PoC Adj Factor Scoring'!$E$5:$J$282,,MATCH(Y$4,'C. PoC Adj Factor Scoring'!$E$3:$AH$3,0)-1),MATCH(Y$2&\" Score\",'C. PoC Adj Factor Scoring'!$E$4:$J$4,0),TRUE)","v":1},{"$f":"VLOOKUP(OFFSET($B:$B,,MATCH(Z$4,$B$4:$F$4,0)-1),OFFSET('C. PoC Adj Factor Scoring'!$E$5:$J$282,,MATCH(Z$4,'C. PoC Adj Factor Scoring'!$E$3:$AH$3,0)-1),MATCH(Z$2&\" Score\",'C. PoC Adj Factor Scoring'!$E$4:$J$4,0),TRUE)","v":1},{"$f":"VLOOKUP(OFFSET($B:$B,,MATCH(AA$4,$B$4:$F$4,0)-1),OFFSET('C. PoC Adj Factor Scoring'!$E$5:$J$282,,MATCH(AA$4,'C. PoC Adj Factor Scoring'!$E$3:$AH$3,0)-1),MATCH(AA$2&\" Score\",'C. PoC Adj Factor Scoring'!$E$4:$J$4,0),TRUE)","v":3},{"$f":"VLOOKUP(OFFSET($B:$B,,MATCH(AB$4,$B$4:$F$4,0)-1),OFFSET('C. PoC Adj Factor Scoring'!$E$5:$J$282,,MATCH(AB$4,'C. PoC Adj Factor Scoring'!$E$3:$AH$3,0)-1),MATCH(AB$2&\" Score\",'C. PoC Adj Factor Scoring'!$E$4:$J$4,0),TRUE)","v":1},{"$f":"VLOOKUP(OFFSET($B:$B,,MATCH(AC$4,$B$4:$F$4,0)-1),OFFSET('C. PoC Adj Factor Scoring'!$E$5:$J$282,,MATCH(AC$4,'C. PoC Adj Factor Scoring'!$E$3:$AH$3,0)-1),MATCH(AC$2&\" Score\",'C. PoC Adj Factor Scoring'!$E$4:$J$4,0),TRUE)","v":1},{"$f":"VLOOKUP(OFFSET($B:$B,,MATCH(AD$4,$B$4:$F$4,0)-1),OFFSET('C. PoC Adj Factor Scoring'!$E$5:$J$282,,MATCH(AD$4,'C. PoC Adj Factor Scoring'!$E$3:$AH$3,0)-1),MATCH(AD$2&\" Score\",'C. PoC Adj Factor Scoring'!$E$4:$J$4,0),TRUE)","v":1},{"$f":"VLOOKUP(OFFSET($B:$B,,MATCH(AE$4,$B$4:$F$4,0)-1),OFFSET('C. PoC Adj Factor Scoring'!$E$5:$J$282,,MATCH(AE$4,'C. PoC Adj Factor Scoring'!$E$3:$AH$3,0)-1),MATCH(AE$2&\" Score\",'C. PoC Adj Factor Scoring'!$E$4:$J$4,0),TRUE)","v":1}]
[{"$f":"'A. Population Info'!A207","v":1000353747},{"$f":"'A. Population Info'!L207","v":"OIL"},{"$f":"'A. Population Info'!M207","v":0},{"$f":"'A. Population Info'!N207","v":0},{"$f":"'A. Population Info'!O207","v":0},{"$f":"'A. Population Info'!P207","v":0},{"$f":"VLOOKUP(OFFSET($B:$B,,MATCH(G$4,$B$4:$F$4,0)-1),OFFSET('C. PoC Adj Factor Scoring'!$E$5:$J$282,,MATCH(G$4,'C. PoC Adj Factor Scoring'!$E$3:$AH$3,0)-1),MATCH(G$2&\" Score\",'C. PoC Adj Factor Scoring'!$E$4:$J$4,0),TRUE)","v":4},{"$f":"VLOOKUP(OFFSET($B:$B,,MATCH(H$4,$B$4:$F$4,0)-1),OFFSET('C. PoC Adj Factor Scoring'!$E$5:$J$282,,MATCH(H$4,'C. PoC Adj Factor Scoring'!$E$3:$AH$3,0)-1),MATCH(H$2&\" Score\",'C. PoC Adj Factor Scoring'!$E$4:$J$4,0),TRUE)","v":1},{"$f":"VLOOKUP(OFFSET($B:$B,,MATCH(I$4,$B$4:$F$4,0)-1),OFFSET('C. PoC Adj Factor Scoring'!$E$5:$J$282,,MATCH(I$4,'C. PoC Adj Factor Scoring'!$E$3:$AH$3,0)-1),MATCH(I$2&\" Score\",'C. PoC Adj Factor Scoring'!$E$4:$J$4,0),TRUE)","v":1},{"$f":"VLOOKUP(OFFSET($B:$B,,MATCH(J$4,$B$4:$F$4,0)-1),OFFSET('C. PoC Adj Factor Scoring'!$E$5:$J$282,,MATCH(J$4,'C. PoC Adj Factor Scoring'!$E$3:$AH$3,0)-1),MATCH(J$2&\" Score\",'C. PoC Adj Factor Scoring'!$E$4:$J$4,0),TRUE)","v":1},{"$f":"VLOOKUP(OFFSET($B:$B,,MATCH(K$4,$B$4:$F$4,0)-1),OFFSET('C. PoC Adj Factor Scoring'!$E$5:$J$282,,MATCH(K$4,'C. PoC Adj Factor Scoring'!$E$3:$AH$3,0)-1),MATCH(K$2&\" Score\",'C. PoC Adj Factor Scoring'!$E$4:$J$4,0),TRUE)","v":1},{"$f":"VLOOKUP(OFFSET($B:$B,,MATCH(L$4,$B$4:$F$4,0)-1),OFFSET('C. PoC Adj Factor Scoring'!$E$5:$J$282,,MATCH(L$4,'C. PoC Adj Factor Scoring'!$E$3:$AH$3,0)-1),MATCH(L$2&\" Score\",'C. PoC Adj Factor Scoring'!$E$4:$J$4,0),TRUE)","v":1},{"$f":"VLOOKUP(OFFSET($B:$B,,MATCH(M$4,$B$4:$F$4,0)-1),OFFSET('C. PoC Adj Factor Scoring'!$E$5:$J$282,,MATCH(M$4,'C. PoC Adj Factor Scoring'!$E$3:$AH$3,0)-1),MATCH(M$2&\" Score\",'C. PoC Adj Factor Scoring'!$E$4:$J$4,0),TRUE)","v":1},{"$f":"VLOOKUP(OFFSET($B:$B,,MATCH(N$4,$B$4:$F$4,0)-1),OFFSET('C. PoC Adj Factor Scoring'!$E$5:$J$282,,MATCH(N$4,'C. PoC Adj Factor Scoring'!$E$3:$AH$3,0)-1),MATCH(N$2&\" Score\",'C. PoC Adj Factor Scoring'!$E$4:$J$4,0),TRUE)","v":1},{"$f":"VLOOKUP(OFFSET($B:$B,,MATCH(O$4,$B$4:$F$4,0)-1),OFFSET('C. PoC Adj Factor Scoring'!$E$5:$J$282,,MATCH(O$4,'C. PoC Adj Factor Scoring'!$E$3:$AH$3,0)-1),MATCH(O$2&\" Score\",'C. PoC Adj Factor Scoring'!$E$4:$J$4,0),TRUE)","v":1},{"$f":"VLOOKUP(OFFSET($B:$B,,MATCH(P$4,$B$4:$F$4,0)-1),OFFSET('C. PoC Adj Factor Scoring'!$E$5:$J$282,,MATCH(P$4,'C. PoC Adj Factor Scoring'!$E$3:$AH$3,0)-1),MATCH(P$2&\" Score\",'C. PoC Adj Factor Scoring'!$E$4:$J$4,0),TRUE)","v":1},{"$f":"VLOOKUP(OFFSET($B:$B,,MATCH(Q$4,$B$4:$F$4,0)-1),OFFSET('C. PoC Adj Factor Scoring'!$E$5:$J$282,,MATCH(Q$4,'C. PoC Adj Factor Scoring'!$E$3:$AH$3,0)-1),MATCH(Q$2&\" Score\",'C. PoC Adj Factor Scoring'!$E$4:$J$4,0),TRUE)","v":1},{"$f":"VLOOKUP(OFFSET($B:$B,,MATCH(R$4,$B$4:$F$4,0)-1),OFFSET('C. PoC Adj Factor Scoring'!$E$5:$J$282,,MATCH(R$4,'C. PoC Adj Factor Scoring'!$E$3:$AH$3,0)-1),MATCH(R$2&\" Score\",'C. PoC Adj Factor Scoring'!$E$4:$J$4,0),TRUE)","v":1},{"$f":"VLOOKUP(OFFSET($B:$B,,MATCH(S$4,$B$4:$F$4,0)-1),OFFSET('C. PoC Adj Factor Scoring'!$E$5:$J$282,,MATCH(S$4,'C. PoC Adj Factor Scoring'!$E$3:$AH$3,0)-1),MATCH(S$2&\" Score\",'C. PoC Adj Factor Scoring'!$E$4:$J$4,0),TRUE)","v":1},{"$f":"VLOOKUP(OFFSET($B:$B,,MATCH(T$4,$B$4:$F$4,0)-1),OFFSET('C. PoC Adj Factor Scoring'!$E$5:$J$282,,MATCH(T$4,'C. PoC Adj Factor Scoring'!$E$3:$AH$3,0)-1),MATCH(T$2&\" Score\",'C. PoC Adj Factor Scoring'!$E$4:$J$4,0),TRUE)","v":1},{"$f":"VLOOKUP(OFFSET($B:$B,,MATCH(U$4,$B$4:$F$4,0)-1),OFFSET('C. PoC Adj Factor Scoring'!$E$5:$J$282,,MATCH(U$4,'C. PoC Adj Factor Scoring'!$E$3:$AH$3,0)-1),MATCH(U$2&\" Score\",'C. PoC Adj Factor Scoring'!$E$4:$J$4,0),TRUE)","v":1},{"$f":"VLOOKUP(OFFSET($B:$B,,MATCH(V$4,$B$4:$F$4,0)-1),OFFSET('C. PoC Adj Factor Scoring'!$E$5:$J$282,,MATCH(V$4,'C. PoC Adj Factor Scoring'!$E$3:$AH$3,0)-1),MATCH(V$2&\" Score\",'C. PoC Adj Factor Scoring'!$E$4:$J$4,0),TRUE)","v":1},{"$f":"VLOOKUP(OFFSET($B:$B,,MATCH(W$4,$B$4:$F$4,0)-1),OFFSET('C. PoC Adj Factor Scoring'!$E$5:$J$282,,MATCH(W$4,'C. PoC Adj Factor Scoring'!$E$3:$AH$3,0)-1),MATCH(W$2&\" Score\",'C. PoC Adj Factor Scoring'!$E$4:$J$4,0),TRUE)","v":1},{"$f":"VLOOKUP(OFFSET($B:$B,,MATCH(X$4,$B$4:$F$4,0)-1),OFFSET('C. PoC Adj Factor Scoring'!$E$5:$J$282,,MATCH(X$4,'C. PoC Adj Factor Scoring'!$E$3:$AH$3,0)-1),MATCH(X$2&\" Score\",'C. PoC Adj Factor Scoring'!$E$4:$J$4,0),TRUE)","v":1},{"$f":"VLOOKUP(OFFSET($B:$B,,MATCH(Y$4,$B$4:$F$4,0)-1),OFFSET('C. PoC Adj Factor Scoring'!$E$5:$J$282,,MATCH(Y$4,'C. PoC Adj Factor Scoring'!$E$3:$AH$3,0)-1),MATCH(Y$2&\" Score\",'C. PoC Adj Factor Scoring'!$E$4:$J$4,0),TRUE)","v":1},{"$f":"VLOOKUP(OFFSET($B:$B,,MATCH(Z$4,$B$4:$F$4,0)-1),OFFSET('C. PoC Adj Factor Scoring'!$E$5:$J$282,,MATCH(Z$4,'C. PoC Adj Factor Scoring'!$E$3:$AH$3,0)-1),MATCH(Z$2&\" Score\",'C. PoC Adj Factor Scoring'!$E$4:$J$4,0),TRUE)","v":1},{"$f":"VLOOKUP(OFFSET($B:$B,,MATCH(AA$4,$B$4:$F$4,0)-1),OFFSET('C. PoC Adj Factor Scoring'!$E$5:$J$282,,MATCH(AA$4,'C. PoC Adj Factor Scoring'!$E$3:$AH$3,0)-1),MATCH(AA$2&\" Score\",'C. PoC Adj Factor Scoring'!$E$4:$J$4,0),TRUE)","v":3},{"$f":"VLOOKUP(OFFSET($B:$B,,MATCH(AB$4,$B$4:$F$4,0)-1),OFFSET('C. PoC Adj Factor Scoring'!$E$5:$J$282,,MATCH(AB$4,'C. PoC Adj Factor Scoring'!$E$3:$AH$3,0)-1),MATCH(AB$2&\" Score\",'C. PoC Adj Factor Scoring'!$E$4:$J$4,0),TRUE)","v":1},{"$f":"VLOOKUP(OFFSET($B:$B,,MATCH(AC$4,$B$4:$F$4,0)-1),OFFSET('C. PoC Adj Factor Scoring'!$E$5:$J$282,,MATCH(AC$4,'C. PoC Adj Factor Scoring'!$E$3:$AH$3,0)-1),MATCH(AC$2&\" Score\",'C. PoC Adj Factor Scoring'!$E$4:$J$4,0),TRUE)","v":1},{"$f":"VLOOKUP(OFFSET($B:$B,,MATCH(AD$4,$B$4:$F$4,0)-1),OFFSET('C. PoC Adj Factor Scoring'!$E$5:$J$282,,MATCH(AD$4,'C. PoC Adj Factor Scoring'!$E$3:$AH$3,0)-1),MATCH(AD$2&\" Score\",'C. PoC Adj Factor Scoring'!$E$4:$J$4,0),TRUE)","v":1},{"$f":"VLOOKUP(OFFSET($B:$B,,MATCH(AE$4,$B$4:$F$4,0)-1),OFFSET('C. PoC Adj Factor Scoring'!$E$5:$J$282,,MATCH(AE$4,'C. PoC Adj Factor Scoring'!$E$3:$AH$3,0)-1),MATCH(AE$2&\" Score\",'C. PoC Adj Factor Scoring'!$E$4:$J$4,0),TRUE)","v":1}]
[{"$f":"'A. Population Info'!A208","v":1000353781},{"$f":"'A. Population Info'!L208","v":"OIL"},{"$f":"'A. Population Info'!M208","v":0},{"$f":"'A. Population Info'!N208","v":0},{"$f":"'A. Population Info'!O208","v":0},{"$f":"'A. Population Info'!P208","v":0},{"$f":"VLOOKUP(OFFSET($B:$B,,MATCH(G$4,$B$4:$F$4,0)-1),OFFSET('C. PoC Adj Factor Scoring'!$E$5:$J$282,,MATCH(G$4,'C. PoC Adj Factor Scoring'!$E$3:$AH$3,0)-1),MATCH(G$2&\" Score\",'C. PoC Adj Factor Scoring'!$E$4:$J$4,0),TRUE)","v":4},{"$f":"VLOOKUP(OFFSET($B:$B,,MATCH(H$4,$B$4:$F$4,0)-1),OFFSET('C. PoC Adj Factor Scoring'!$E$5:$J$282,,MATCH(H$4,'C. PoC Adj Factor Scoring'!$E$3:$AH$3,0)-1),MATCH(H$2&\" Score\",'C. PoC Adj Factor Scoring'!$E$4:$J$4,0),TRUE)","v":1},{"$f":"VLOOKUP(OFFSET($B:$B,,MATCH(I$4,$B$4:$F$4,0)-1),OFFSET('C. PoC Adj Factor Scoring'!$E$5:$J$282,,MATCH(I$4,'C. PoC Adj Factor Scoring'!$E$3:$AH$3,0)-1),MATCH(I$2&\" Score\",'C. PoC Adj Factor Scoring'!$E$4:$J$4,0),TRUE)","v":1},{"$f":"VLOOKUP(OFFSET($B:$B,,MATCH(J$4,$B$4:$F$4,0)-1),OFFSET('C. PoC Adj Factor Scoring'!$E$5:$J$282,,MATCH(J$4,'C. PoC Adj Factor Scoring'!$E$3:$AH$3,0)-1),MATCH(J$2&\" Score\",'C. PoC Adj Factor Scoring'!$E$4:$J$4,0),TRUE)","v":1},{"$f":"VLOOKUP(OFFSET($B:$B,,MATCH(K$4,$B$4:$F$4,0)-1),OFFSET('C. PoC Adj Factor Scoring'!$E$5:$J$282,,MATCH(K$4,'C. PoC Adj Factor Scoring'!$E$3:$AH$3,0)-1),MATCH(K$2&\" Score\",'C. PoC Adj Factor Scoring'!$E$4:$J$4,0),TRUE)","v":1},{"$f":"VLOOKUP(OFFSET($B:$B,,MATCH(L$4,$B$4:$F$4,0)-1),OFFSET('C. PoC Adj Factor Scoring'!$E$5:$J$282,,MATCH(L$4,'C. PoC Adj Factor Scoring'!$E$3:$AH$3,0)-1),MATCH(L$2&\" Score\",'C. PoC Adj Factor Scoring'!$E$4:$J$4,0),TRUE)","v":1},{"$f":"VLOOKUP(OFFSET($B:$B,,MATCH(M$4,$B$4:$F$4,0)-1),OFFSET('C. PoC Adj Factor Scoring'!$E$5:$J$282,,MATCH(M$4,'C. PoC Adj Factor Scoring'!$E$3:$AH$3,0)-1),MATCH(M$2&\" Score\",'C. PoC Adj Factor Scoring'!$E$4:$J$4,0),TRUE)","v":1},{"$f":"VLOOKUP(OFFSET($B:$B,,MATCH(N$4,$B$4:$F$4,0)-1),OFFSET('C. PoC Adj Factor Scoring'!$E$5:$J$282,,MATCH(N$4,'C. PoC Adj Factor Scoring'!$E$3:$AH$3,0)-1),MATCH(N$2&\" Score\",'C. PoC Adj Factor Scoring'!$E$4:$J$4,0),TRUE)","v":1},{"$f":"VLOOKUP(OFFSET($B:$B,,MATCH(O$4,$B$4:$F$4,0)-1),OFFSET('C. PoC Adj Factor Scoring'!$E$5:$J$282,,MATCH(O$4,'C. PoC Adj Factor Scoring'!$E$3:$AH$3,0)-1),MATCH(O$2&\" Score\",'C. PoC Adj Factor Scoring'!$E$4:$J$4,0),TRUE)","v":1},{"$f":"VLOOKUP(OFFSET($B:$B,,MATCH(P$4,$B$4:$F$4,0)-1),OFFSET('C. PoC Adj Factor Scoring'!$E$5:$J$282,,MATCH(P$4,'C. PoC Adj Factor Scoring'!$E$3:$AH$3,0)-1),MATCH(P$2&\" Score\",'C. PoC Adj Factor Scoring'!$E$4:$J$4,0),TRUE)","v":1},{"$f":"VLOOKUP(OFFSET($B:$B,,MATCH(Q$4,$B$4:$F$4,0)-1),OFFSET('C. PoC Adj Factor Scoring'!$E$5:$J$282,,MATCH(Q$4,'C. PoC Adj Factor Scoring'!$E$3:$AH$3,0)-1),MATCH(Q$2&\" Score\",'C. PoC Adj Factor Scoring'!$E$4:$J$4,0),TRUE)","v":1},{"$f":"VLOOKUP(OFFSET($B:$B,,MATCH(R$4,$B$4:$F$4,0)-1),OFFSET('C. PoC Adj Factor Scoring'!$E$5:$J$282,,MATCH(R$4,'C. PoC Adj Factor Scoring'!$E$3:$AH$3,0)-1),MATCH(R$2&\" Score\",'C. PoC Adj Factor Scoring'!$E$4:$J$4,0),TRUE)","v":1},{"$f":"VLOOKUP(OFFSET($B:$B,,MATCH(S$4,$B$4:$F$4,0)-1),OFFSET('C. PoC Adj Factor Scoring'!$E$5:$J$282,,MATCH(S$4,'C. PoC Adj Factor Scoring'!$E$3:$AH$3,0)-1),MATCH(S$2&\" Score\",'C. PoC Adj Factor Scoring'!$E$4:$J$4,0),TRUE)","v":1},{"$f":"VLOOKUP(OFFSET($B:$B,,MATCH(T$4,$B$4:$F$4,0)-1),OFFSET('C. PoC Adj Factor Scoring'!$E$5:$J$282,,MATCH(T$4,'C. PoC Adj Factor Scoring'!$E$3:$AH$3,0)-1),MATCH(T$2&\" Score\",'C. PoC Adj Factor Scoring'!$E$4:$J$4,0),TRUE)","v":1},{"$f":"VLOOKUP(OFFSET($B:$B,,MATCH(U$4,$B$4:$F$4,0)-1),OFFSET('C. PoC Adj Factor Scoring'!$E$5:$J$282,,MATCH(U$4,'C. PoC Adj Factor Scoring'!$E$3:$AH$3,0)-1),MATCH(U$2&\" Score\",'C. PoC Adj Factor Scoring'!$E$4:$J$4,0),TRUE)","v":1},{"$f":"VLOOKUP(OFFSET($B:$B,,MATCH(V$4,$B$4:$F$4,0)-1),OFFSET('C. PoC Adj Factor Scoring'!$E$5:$J$282,,MATCH(V$4,'C. PoC Adj Factor Scoring'!$E$3:$AH$3,0)-1),MATCH(V$2&\" Score\",'C. PoC Adj Factor Scoring'!$E$4:$J$4,0),TRUE)","v":1},{"$f":"VLOOKUP(OFFSET($B:$B,,MATCH(W$4,$B$4:$F$4,0)-1),OFFSET('C. PoC Adj Factor Scoring'!$E$5:$J$282,,MATCH(W$4,'C. PoC Adj Factor Scoring'!$E$3:$AH$3,0)-1),MATCH(W$2&\" Score\",'C. PoC Adj Factor Scoring'!$E$4:$J$4,0),TRUE)","v":1},{"$f":"VLOOKUP(OFFSET($B:$B,,MATCH(X$4,$B$4:$F$4,0)-1),OFFSET('C. PoC Adj Factor Scoring'!$E$5:$J$282,,MATCH(X$4,'C. PoC Adj Factor Scoring'!$E$3:$AH$3,0)-1),MATCH(X$2&\" Score\",'C. PoC Adj Factor Scoring'!$E$4:$J$4,0),TRUE)","v":1},{"$f":"VLOOKUP(OFFSET($B:$B,,MATCH(Y$4,$B$4:$F$4,0)-1),OFFSET('C. PoC Adj Factor Scoring'!$E$5:$J$282,,MATCH(Y$4,'C. PoC Adj Factor Scoring'!$E$3:$AH$3,0)-1),MATCH(Y$2&\" Score\",'C. PoC Adj Factor Scoring'!$E$4:$J$4,0),TRUE)","v":1},{"$f":"VLOOKUP(OFFSET($B:$B,,MATCH(Z$4,$B$4:$F$4,0)-1),OFFSET('C. PoC Adj Factor Scoring'!$E$5:$J$282,,MATCH(Z$4,'C. PoC Adj Factor Scoring'!$E$3:$AH$3,0)-1),MATCH(Z$2&\" Score\",'C. PoC Adj Factor Scoring'!$E$4:$J$4,0),TRUE)","v":1},{"$f":"VLOOKUP(OFFSET($B:$B,,MATCH(AA$4,$B$4:$F$4,0)-1),OFFSET('C. PoC Adj Factor Scoring'!$E$5:$J$282,,MATCH(AA$4,'C. PoC Adj Factor Scoring'!$E$3:$AH$3,0)-1),MATCH(AA$2&\" Score\",'C. PoC Adj Factor Scoring'!$E$4:$J$4,0),TRUE)","v":3},{"$f":"VLOOKUP(OFFSET($B:$B,,MATCH(AB$4,$B$4:$F$4,0)-1),OFFSET('C. PoC Adj Factor Scoring'!$E$5:$J$282,,MATCH(AB$4,'C. PoC Adj Factor Scoring'!$E$3:$AH$3,0)-1),MATCH(AB$2&\" Score\",'C. PoC Adj Factor Scoring'!$E$4:$J$4,0),TRUE)","v":1},{"$f":"VLOOKUP(OFFSET($B:$B,,MATCH(AC$4,$B$4:$F$4,0)-1),OFFSET('C. PoC Adj Factor Scoring'!$E$5:$J$282,,MATCH(AC$4,'C. PoC Adj Factor Scoring'!$E$3:$AH$3,0)-1),MATCH(AC$2&\" Score\",'C. PoC Adj Factor Scoring'!$E$4:$J$4,0),TRUE)","v":1},{"$f":"VLOOKUP(OFFSET($B:$B,,MATCH(AD$4,$B$4:$F$4,0)-1),OFFSET('C. PoC Adj Factor Scoring'!$E$5:$J$282,,MATCH(AD$4,'C. PoC Adj Factor Scoring'!$E$3:$AH$3,0)-1),MATCH(AD$2&\" Score\",'C. PoC Adj Factor Scoring'!$E$4:$J$4,0),TRUE)","v":1},{"$f":"VLOOKUP(OFFSET($B:$B,,MATCH(AE$4,$B$4:$F$4,0)-1),OFFSET('C. PoC Adj Factor Scoring'!$E$5:$J$282,,MATCH(AE$4,'C. PoC Adj Factor Scoring'!$E$3:$AH$3,0)-1),MATCH(AE$2&\" Score\",'C. PoC Adj Factor Scoring'!$E$4:$J$4,0),TRUE)","v":1}]
[{"$f":"'A. Population Info'!A209","v":1000353814},{"$f":"'A. Population Info'!L209","v":"OIL"},{"$f":"'A. Population Info'!M209","v":0},{"$f":"'A. Population Info'!N209","v":0},{"$f":"'A. Population Info'!O209","v":0},{"$f":"'A. Population Info'!P209","v":0},{"$f":"VLOOKUP(OFFSET($B:$B,,MATCH(G$4,$B$4:$F$4,0)-1),OFFSET('C. PoC Adj Factor Scoring'!$E$5:$J$282,,MATCH(G$4,'C. PoC Adj Factor Scoring'!$E$3:$AH$3,0)-1),MATCH(G$2&\" Score\",'C. PoC Adj Factor Scoring'!$E$4:$J$4,0),TRUE)","v":4},{"$f":"VLOOKUP(OFFSET($B:$B,,MATCH(H$4,$B$4:$F$4,0)-1),OFFSET('C. PoC Adj Factor Scoring'!$E$5:$J$282,,MATCH(H$4,'C. PoC Adj Factor Scoring'!$E$3:$AH$3,0)-1),MATCH(H$2&\" Score\",'C. PoC Adj Factor Scoring'!$E$4:$J$4,0),TRUE)","v":1},{"$f":"VLOOKUP(OFFSET($B:$B,,MATCH(I$4,$B$4:$F$4,0)-1),OFFSET('C. PoC Adj Factor Scoring'!$E$5:$J$282,,MATCH(I$4,'C. PoC Adj Factor Scoring'!$E$3:$AH$3,0)-1),MATCH(I$2&\" Score\",'C. PoC Adj Factor Scoring'!$E$4:$J$4,0),TRUE)","v":1},{"$f":"VLOOKUP(OFFSET($B:$B,,MATCH(J$4,$B$4:$F$4,0)-1),OFFSET('C. PoC Adj Factor Scoring'!$E$5:$J$282,,MATCH(J$4,'C. PoC Adj Factor Scoring'!$E$3:$AH$3,0)-1),MATCH(J$2&\" Score\",'C. PoC Adj Factor Scoring'!$E$4:$J$4,0),TRUE)","v":1},{"$f":"VLOOKUP(OFFSET($B:$B,,MATCH(K$4,$B$4:$F$4,0)-1),OFFSET('C. PoC Adj Factor Scoring'!$E$5:$J$282,,MATCH(K$4,'C. PoC Adj Factor Scoring'!$E$3:$AH$3,0)-1),MATCH(K$2&\" Score\",'C. PoC Adj Factor Scoring'!$E$4:$J$4,0),TRUE)","v":1},{"$f":"VLOOKUP(OFFSET($B:$B,,MATCH(L$4,$B$4:$F$4,0)-1),OFFSET('C. PoC Adj Factor Scoring'!$E$5:$J$282,,MATCH(L$4,'C. PoC Adj Factor Scoring'!$E$3:$AH$3,0)-1),MATCH(L$2&\" Score\",'C. PoC Adj Factor Scoring'!$E$4:$J$4,0),TRUE)","v":1},{"$f":"VLOOKUP(OFFSET($B:$B,,MATCH(M$4,$B$4:$F$4,0)-1),OFFSET('C. PoC Adj Factor Scoring'!$E$5:$J$282,,MATCH(M$4,'C. PoC Adj Factor Scoring'!$E$3:$AH$3,0)-1),MATCH(M$2&\" Score\",'C. PoC Adj Factor Scoring'!$E$4:$J$4,0),TRUE)","v":1},{"$f":"VLOOKUP(OFFSET($B:$B,,MATCH(N$4,$B$4:$F$4,0)-1),OFFSET('C. PoC Adj Factor Scoring'!$E$5:$J$282,,MATCH(N$4,'C. PoC Adj Factor Scoring'!$E$3:$AH$3,0)-1),MATCH(N$2&\" Score\",'C. PoC Adj Factor Scoring'!$E$4:$J$4,0),TRUE)","v":1},{"$f":"VLOOKUP(OFFSET($B:$B,,MATCH(O$4,$B$4:$F$4,0)-1),OFFSET('C. PoC Adj Factor Scoring'!$E$5:$J$282,,MATCH(O$4,'C. PoC Adj Factor Scoring'!$E$3:$AH$3,0)-1),MATCH(O$2&\" Score\",'C. PoC Adj Factor Scoring'!$E$4:$J$4,0),TRUE)","v":1},{"$f":"VLOOKUP(OFFSET($B:$B,,MATCH(P$4,$B$4:$F$4,0)-1),OFFSET('C. PoC Adj Factor Scoring'!$E$5:$J$282,,MATCH(P$4,'C. PoC Adj Factor Scoring'!$E$3:$AH$3,0)-1),MATCH(P$2&\" Score\",'C. PoC Adj Factor Scoring'!$E$4:$J$4,0),TRUE)","v":1},{"$f":"VLOOKUP(OFFSET($B:$B,,MATCH(Q$4,$B$4:$F$4,0)-1),OFFSET('C. PoC Adj Factor Scoring'!$E$5:$J$282,,MATCH(Q$4,'C. PoC Adj Factor Scoring'!$E$3:$AH$3,0)-1),MATCH(Q$2&\" Score\",'C. PoC Adj Factor Scoring'!$E$4:$J$4,0),TRUE)","v":1},{"$f":"VLOOKUP(OFFSET($B:$B,,MATCH(R$4,$B$4:$F$4,0)-1),OFFSET('C. PoC Adj Factor Scoring'!$E$5:$J$282,,MATCH(R$4,'C. PoC Adj Factor Scoring'!$E$3:$AH$3,0)-1),MATCH(R$2&\" Score\",'C. PoC Adj Factor Scoring'!$E$4:$J$4,0),TRUE)","v":1},{"$f":"VLOOKUP(OFFSET($B:$B,,MATCH(S$4,$B$4:$F$4,0)-1),OFFSET('C. PoC Adj Factor Scoring'!$E$5:$J$282,,MATCH(S$4,'C. PoC Adj Factor Scoring'!$E$3:$AH$3,0)-1),MATCH(S$2&\" Score\",'C. PoC Adj Factor Scoring'!$E$4:$J$4,0),TRUE)","v":1},{"$f":"VLOOKUP(OFFSET($B:$B,,MATCH(T$4,$B$4:$F$4,0)-1),OFFSET('C. PoC Adj Factor Scoring'!$E$5:$J$282,,MATCH(T$4,'C. PoC Adj Factor Scoring'!$E$3:$AH$3,0)-1),MATCH(T$2&\" Score\",'C. PoC Adj Factor Scoring'!$E$4:$J$4,0),TRUE)","v":1},{"$f":"VLOOKUP(OFFSET($B:$B,,MATCH(U$4,$B$4:$F$4,0)-1),OFFSET('C. PoC Adj Factor Scoring'!$E$5:$J$282,,MATCH(U$4,'C. PoC Adj Factor Scoring'!$E$3:$AH$3,0)-1),MATCH(U$2&\" Score\",'C. PoC Adj Factor Scoring'!$E$4:$J$4,0),TRUE)","v":1},{"$f":"VLOOKUP(OFFSET($B:$B,,MATCH(V$4,$B$4:$F$4,0)-1),OFFSET('C. PoC Adj Factor Scoring'!$E$5:$J$282,,MATCH(V$4,'C. PoC Adj Factor Scoring'!$E$3:$AH$3,0)-1),MATCH(V$2&\" Score\",'C. PoC Adj Factor Scoring'!$E$4:$J$4,0),TRUE)","v":1},{"$f":"VLOOKUP(OFFSET($B:$B,,MATCH(W$4,$B$4:$F$4,0)-1),OFFSET('C. PoC Adj Factor Scoring'!$E$5:$J$282,,MATCH(W$4,'C. PoC Adj Factor Scoring'!$E$3:$AH$3,0)-1),MATCH(W$2&\" Score\",'C. PoC Adj Factor Scoring'!$E$4:$J$4,0),TRUE)","v":1},{"$f":"VLOOKUP(OFFSET($B:$B,,MATCH(X$4,$B$4:$F$4,0)-1),OFFSET('C. PoC Adj Factor Scoring'!$E$5:$J$282,,MATCH(X$4,'C. PoC Adj Factor Scoring'!$E$3:$AH$3,0)-1),MATCH(X$2&\" Score\",'C. PoC Adj Factor Scoring'!$E$4:$J$4,0),TRUE)","v":1},{"$f":"VLOOKUP(OFFSET($B:$B,,MATCH(Y$4,$B$4:$F$4,0)-1),OFFSET('C. PoC Adj Factor Scoring'!$E$5:$J$282,,MATCH(Y$4,'C. PoC Adj Factor Scoring'!$E$3:$AH$3,0)-1),MATCH(Y$2&\" Score\",'C. PoC Adj Factor Scoring'!$E$4:$J$4,0),TRUE)","v":1},{"$f":"VLOOKUP(OFFSET($B:$B,,MATCH(Z$4,$B$4:$F$4,0)-1),OFFSET('C. PoC Adj Factor Scoring'!$E$5:$J$282,,MATCH(Z$4,'C. PoC Adj Factor Scoring'!$E$3:$AH$3,0)-1),MATCH(Z$2&\" Score\",'C. PoC Adj Factor Scoring'!$E$4:$J$4,0),TRUE)","v":1},{"$f":"VLOOKUP(OFFSET($B:$B,,MATCH(AA$4,$B$4:$F$4,0)-1),OFFSET('C. PoC Adj Factor Scoring'!$E$5:$J$282,,MATCH(AA$4,'C. PoC Adj Factor Scoring'!$E$3:$AH$3,0)-1),MATCH(AA$2&\" Score\",'C. PoC Adj Factor Scoring'!$E$4:$J$4,0),TRUE)","v":3},{"$f":"VLOOKUP(OFFSET($B:$B,,MATCH(AB$4,$B$4:$F$4,0)-1),OFFSET('C. PoC Adj Factor Scoring'!$E$5:$J$282,,MATCH(AB$4,'C. PoC Adj Factor Scoring'!$E$3:$AH$3,0)-1),MATCH(AB$2&\" Score\",'C. PoC Adj Factor Scoring'!$E$4:$J$4,0),TRUE)","v":1},{"$f":"VLOOKUP(OFFSET($B:$B,,MATCH(AC$4,$B$4:$F$4,0)-1),OFFSET('C. PoC Adj Factor Scoring'!$E$5:$J$282,,MATCH(AC$4,'C. PoC Adj Factor Scoring'!$E$3:$AH$3,0)-1),MATCH(AC$2&\" Score\",'C. PoC Adj Factor Scoring'!$E$4:$J$4,0),TRUE)","v":1},{"$f":"VLOOKUP(OFFSET($B:$B,,MATCH(AD$4,$B$4:$F$4,0)-1),OFFSET('C. PoC Adj Factor Scoring'!$E$5:$J$282,,MATCH(AD$4,'C. PoC Adj Factor Scoring'!$E$3:$AH$3,0)-1),MATCH(AD$2&\" Score\",'C. PoC Adj Factor Scoring'!$E$4:$J$4,0),TRUE)","v":1},{"$f":"VLOOKUP(OFFSET($B:$B,,MATCH(AE$4,$B$4:$F$4,0)-1),OFFSET('C. PoC Adj Factor Scoring'!$E$5:$J$282,,MATCH(AE$4,'C. PoC Adj Factor Scoring'!$E$3:$AH$3,0)-1),MATCH(AE$2&\" Score\",'C. PoC Adj Factor Scoring'!$E$4:$J$4,0),TRUE)","v":1}]
[{"$f":"'A. Population Info'!A210","v":1000353845},{"$f":"'A. Population Info'!L210","v":"OIL"},{"$f":"'A. Population Info'!M210","v":0},{"$f":"'A. Population Info'!N210","v":0},{"$f":"'A. Population Info'!O210","v":0},{"$f":"'A. Population Info'!P210","v":0},{"$f":"VLOOKUP(OFFSET($B:$B,,MATCH(G$4,$B$4:$F$4,0)-1),OFFSET('C. PoC Adj Factor Scoring'!$E$5:$J$282,,MATCH(G$4,'C. PoC Adj Factor Scoring'!$E$3:$AH$3,0)-1),MATCH(G$2&\" Score\",'C. PoC Adj Factor Scoring'!$E$4:$J$4,0),TRUE)","v":4},{"$f":"VLOOKUP(OFFSET($B:$B,,MATCH(H$4,$B$4:$F$4,0)-1),OFFSET('C. PoC Adj Factor Scoring'!$E$5:$J$282,,MATCH(H$4,'C. PoC Adj Factor Scoring'!$E$3:$AH$3,0)-1),MATCH(H$2&\" Score\",'C. PoC Adj Factor Scoring'!$E$4:$J$4,0),TRUE)","v":1},{"$f":"VLOOKUP(OFFSET($B:$B,,MATCH(I$4,$B$4:$F$4,0)-1),OFFSET('C. PoC Adj Factor Scoring'!$E$5:$J$282,,MATCH(I$4,'C. PoC Adj Factor Scoring'!$E$3:$AH$3,0)-1),MATCH(I$2&\" Score\",'C. PoC Adj Factor Scoring'!$E$4:$J$4,0),TRUE)","v":1},{"$f":"VLOOKUP(OFFSET($B:$B,,MATCH(J$4,$B$4:$F$4,0)-1),OFFSET('C. PoC Adj Factor Scoring'!$E$5:$J$282,,MATCH(J$4,'C. PoC Adj Factor Scoring'!$E$3:$AH$3,0)-1),MATCH(J$2&\" Score\",'C. PoC Adj Factor Scoring'!$E$4:$J$4,0),TRUE)","v":1},{"$f":"VLOOKUP(OFFSET($B:$B,,MATCH(K$4,$B$4:$F$4,0)-1),OFFSET('C. PoC Adj Factor Scoring'!$E$5:$J$282,,MATCH(K$4,'C. PoC Adj Factor Scoring'!$E$3:$AH$3,0)-1),MATCH(K$2&\" Score\",'C. PoC Adj Factor Scoring'!$E$4:$J$4,0),TRUE)","v":1},{"$f":"VLOOKUP(OFFSET($B:$B,,MATCH(L$4,$B$4:$F$4,0)-1),OFFSET('C. PoC Adj Factor Scoring'!$E$5:$J$282,,MATCH(L$4,'C. PoC Adj Factor Scoring'!$E$3:$AH$3,0)-1),MATCH(L$2&\" Score\",'C. PoC Adj Factor Scoring'!$E$4:$J$4,0),TRUE)","v":1},{"$f":"VLOOKUP(OFFSET($B:$B,,MATCH(M$4,$B$4:$F$4,0)-1),OFFSET('C. PoC Adj Factor Scoring'!$E$5:$J$282,,MATCH(M$4,'C. PoC Adj Factor Scoring'!$E$3:$AH$3,0)-1),MATCH(M$2&\" Score\",'C. PoC Adj Factor Scoring'!$E$4:$J$4,0),TRUE)","v":1},{"$f":"VLOOKUP(OFFSET($B:$B,,MATCH(N$4,$B$4:$F$4,0)-1),OFFSET('C. PoC Adj Factor Scoring'!$E$5:$J$282,,MATCH(N$4,'C. PoC Adj Factor Scoring'!$E$3:$AH$3,0)-1),MATCH(N$2&\" Score\",'C. PoC Adj Factor Scoring'!$E$4:$J$4,0),TRUE)","v":1},{"$f":"VLOOKUP(OFFSET($B:$B,,MATCH(O$4,$B$4:$F$4,0)-1),OFFSET('C. PoC Adj Factor Scoring'!$E$5:$J$282,,MATCH(O$4,'C. PoC Adj Factor Scoring'!$E$3:$AH$3,0)-1),MATCH(O$2&\" Score\",'C. PoC Adj Factor Scoring'!$E$4:$J$4,0),TRUE)","v":1},{"$f":"VLOOKUP(OFFSET($B:$B,,MATCH(P$4,$B$4:$F$4,0)-1),OFFSET('C. PoC Adj Factor Scoring'!$E$5:$J$282,,MATCH(P$4,'C. PoC Adj Factor Scoring'!$E$3:$AH$3,0)-1),MATCH(P$2&\" Score\",'C. PoC Adj Factor Scoring'!$E$4:$J$4,0),TRUE)","v":1},{"$f":"VLOOKUP(OFFSET($B:$B,,MATCH(Q$4,$B$4:$F$4,0)-1),OFFSET('C. PoC Adj Factor Scoring'!$E$5:$J$282,,MATCH(Q$4,'C. PoC Adj Factor Scoring'!$E$3:$AH$3,0)-1),MATCH(Q$2&\" Score\",'C. PoC Adj Factor Scoring'!$E$4:$J$4,0),TRUE)","v":1},{"$f":"VLOOKUP(OFFSET($B:$B,,MATCH(R$4,$B$4:$F$4,0)-1),OFFSET('C. PoC Adj Factor Scoring'!$E$5:$J$282,,MATCH(R$4,'C. PoC Adj Factor Scoring'!$E$3:$AH$3,0)-1),MATCH(R$2&\" Score\",'C. PoC Adj Factor Scoring'!$E$4:$J$4,0),TRUE)","v":1},{"$f":"VLOOKUP(OFFSET($B:$B,,MATCH(S$4,$B$4:$F$4,0)-1),OFFSET('C. PoC Adj Factor Scoring'!$E$5:$J$282,,MATCH(S$4,'C. PoC Adj Factor Scoring'!$E$3:$AH$3,0)-1),MATCH(S$2&\" Score\",'C. PoC Adj Factor Scoring'!$E$4:$J$4,0),TRUE)","v":1},{"$f":"VLOOKUP(OFFSET($B:$B,,MATCH(T$4,$B$4:$F$4,0)-1),OFFSET('C. PoC Adj Factor Scoring'!$E$5:$J$282,,MATCH(T$4,'C. PoC Adj Factor Scoring'!$E$3:$AH$3,0)-1),MATCH(T$2&\" Score\",'C. PoC Adj Factor Scoring'!$E$4:$J$4,0),TRUE)","v":1},{"$f":"VLOOKUP(OFFSET($B:$B,,MATCH(U$4,$B$4:$F$4,0)-1),OFFSET('C. PoC Adj Factor Scoring'!$E$5:$J$282,,MATCH(U$4,'C. PoC Adj Factor Scoring'!$E$3:$AH$3,0)-1),MATCH(U$2&\" Score\",'C. PoC Adj Factor Scoring'!$E$4:$J$4,0),TRUE)","v":1},{"$f":"VLOOKUP(OFFSET($B:$B,,MATCH(V$4,$B$4:$F$4,0)-1),OFFSET('C. PoC Adj Factor Scoring'!$E$5:$J$282,,MATCH(V$4,'C. PoC Adj Factor Scoring'!$E$3:$AH$3,0)-1),MATCH(V$2&\" Score\",'C. PoC Adj Factor Scoring'!$E$4:$J$4,0),TRUE)","v":1},{"$f":"VLOOKUP(OFFSET($B:$B,,MATCH(W$4,$B$4:$F$4,0)-1),OFFSET('C. PoC Adj Factor Scoring'!$E$5:$J$282,,MATCH(W$4,'C. PoC Adj Factor Scoring'!$E$3:$AH$3,0)-1),MATCH(W$2&\" Score\",'C. PoC Adj Factor Scoring'!$E$4:$J$4,0),TRUE)","v":1},{"$f":"VLOOKUP(OFFSET($B:$B,,MATCH(X$4,$B$4:$F$4,0)-1),OFFSET('C. PoC Adj Factor Scoring'!$E$5:$J$282,,MATCH(X$4,'C. PoC Adj Factor Scoring'!$E$3:$AH$3,0)-1),MATCH(X$2&\" Score\",'C. PoC Adj Factor Scoring'!$E$4:$J$4,0),TRUE)","v":1},{"$f":"VLOOKUP(OFFSET($B:$B,,MATCH(Y$4,$B$4:$F$4,0)-1),OFFSET('C. PoC Adj Factor Scoring'!$E$5:$J$282,,MATCH(Y$4,'C. PoC Adj Factor Scoring'!$E$3:$AH$3,0)-1),MATCH(Y$2&\" Score\",'C. PoC Adj Factor Scoring'!$E$4:$J$4,0),TRUE)","v":1},{"$f":"VLOOKUP(OFFSET($B:$B,,MATCH(Z$4,$B$4:$F$4,0)-1),OFFSET('C. PoC Adj Factor Scoring'!$E$5:$J$282,,MATCH(Z$4,'C. PoC Adj Factor Scoring'!$E$3:$AH$3,0)-1),MATCH(Z$2&\" Score\",'C. PoC Adj Factor Scoring'!$E$4:$J$4,0),TRUE)","v":1},{"$f":"VLOOKUP(OFFSET($B:$B,,MATCH(AA$4,$B$4:$F$4,0)-1),OFFSET('C. PoC Adj Factor Scoring'!$E$5:$J$282,,MATCH(AA$4,'C. PoC Adj Factor Scoring'!$E$3:$AH$3,0)-1),MATCH(AA$2&\" Score\",'C. PoC Adj Factor Scoring'!$E$4:$J$4,0),TRUE)","v":3},{"$f":"VLOOKUP(OFFSET($B:$B,,MATCH(AB$4,$B$4:$F$4,0)-1),OFFSET('C. PoC Adj Factor Scoring'!$E$5:$J$282,,MATCH(AB$4,'C. PoC Adj Factor Scoring'!$E$3:$AH$3,0)-1),MATCH(AB$2&\" Score\",'C. PoC Adj Factor Scoring'!$E$4:$J$4,0),TRUE)","v":1},{"$f":"VLOOKUP(OFFSET($B:$B,,MATCH(AC$4,$B$4:$F$4,0)-1),OFFSET('C. PoC Adj Factor Scoring'!$E$5:$J$282,,MATCH(AC$4,'C. PoC Adj Factor Scoring'!$E$3:$AH$3,0)-1),MATCH(AC$2&\" Score\",'C. PoC Adj Factor Scoring'!$E$4:$J$4,0),TRUE)","v":1},{"$f":"VLOOKUP(OFFSET($B:$B,,MATCH(AD$4,$B$4:$F$4,0)-1),OFFSET('C. PoC Adj Factor Scoring'!$E$5:$J$282,,MATCH(AD$4,'C. PoC Adj Factor Scoring'!$E$3:$AH$3,0)-1),MATCH(AD$2&\" Score\",'C. PoC Adj Factor Scoring'!$E$4:$J$4,0),TRUE)","v":1},{"$f":"VLOOKUP(OFFSET($B:$B,,MATCH(AE$4,$B$4:$F$4,0)-1),OFFSET('C. PoC Adj Factor Scoring'!$E$5:$J$282,,MATCH(AE$4,'C. PoC Adj Factor Scoring'!$E$3:$AH$3,0)-1),MATCH(AE$2&\" Score\",'C. PoC Adj Factor Scoring'!$E$4:$J$4,0),TRUE)","v":1}]
[{"$f":"'A. Population Info'!A211","v":1000353873},{"$f":"'A. Population Info'!L211","v":"OIL"},{"$f":"'A. Population Info'!M211","v":0},{"$f":"'A. Population Info'!N211","v":0},{"$f":"'A. Population Info'!O211","v":0},{"$f":"'A. Population Info'!P211","v":0},{"$f":"VLOOKUP(OFFSET($B:$B,,MATCH(G$4,$B$4:$F$4,0)-1),OFFSET('C. PoC Adj Factor Scoring'!$E$5:$J$282,,MATCH(G$4,'C. PoC Adj Factor Scoring'!$E$3:$AH$3,0)-1),MATCH(G$2&\" Score\",'C. PoC Adj Factor Scoring'!$E$4:$J$4,0),TRUE)","v":4},{"$f":"VLOOKUP(OFFSET($B:$B,,MATCH(H$4,$B$4:$F$4,0)-1),OFFSET('C. PoC Adj Factor Scoring'!$E$5:$J$282,,MATCH(H$4,'C. PoC Adj Factor Scoring'!$E$3:$AH$3,0)-1),MATCH(H$2&\" Score\",'C. PoC Adj Factor Scoring'!$E$4:$J$4,0),TRUE)","v":1},{"$f":"VLOOKUP(OFFSET($B:$B,,MATCH(I$4,$B$4:$F$4,0)-1),OFFSET('C. PoC Adj Factor Scoring'!$E$5:$J$282,,MATCH(I$4,'C. PoC Adj Factor Scoring'!$E$3:$AH$3,0)-1),MATCH(I$2&\" Score\",'C. PoC Adj Factor Scoring'!$E$4:$J$4,0),TRUE)","v":1},{"$f":"VLOOKUP(OFFSET($B:$B,,MATCH(J$4,$B$4:$F$4,0)-1),OFFSET('C. PoC Adj Factor Scoring'!$E$5:$J$282,,MATCH(J$4,'C. PoC Adj Factor Scoring'!$E$3:$AH$3,0)-1),MATCH(J$2&\" Score\",'C. PoC Adj Factor Scoring'!$E$4:$J$4,0),TRUE)","v":1},{"$f":"VLOOKUP(OFFSET($B:$B,,MATCH(K$4,$B$4:$F$4,0)-1),OFFSET('C. PoC Adj Factor Scoring'!$E$5:$J$282,,MATCH(K$4,'C. PoC Adj Factor Scoring'!$E$3:$AH$3,0)-1),MATCH(K$2&\" Score\",'C. PoC Adj Factor Scoring'!$E$4:$J$4,0),TRUE)","v":1},{"$f":"VLOOKUP(OFFSET($B:$B,,MATCH(L$4,$B$4:$F$4,0)-1),OFFSET('C. PoC Adj Factor Scoring'!$E$5:$J$282,,MATCH(L$4,'C. PoC Adj Factor Scoring'!$E$3:$AH$3,0)-1),MATCH(L$2&\" Score\",'C. PoC Adj Factor Scoring'!$E$4:$J$4,0),TRUE)","v":1},{"$f":"VLOOKUP(OFFSET($B:$B,,MATCH(M$4,$B$4:$F$4,0)-1),OFFSET('C. PoC Adj Factor Scoring'!$E$5:$J$282,,MATCH(M$4,'C. PoC Adj Factor Scoring'!$E$3:$AH$3,0)-1),MATCH(M$2&\" Score\",'C. PoC Adj Factor Scoring'!$E$4:$J$4,0),TRUE)","v":1},{"$f":"VLOOKUP(OFFSET($B:$B,,MATCH(N$4,$B$4:$F$4,0)-1),OFFSET('C. PoC Adj Factor Scoring'!$E$5:$J$282,,MATCH(N$4,'C. PoC Adj Factor Scoring'!$E$3:$AH$3,0)-1),MATCH(N$2&\" Score\",'C. PoC Adj Factor Scoring'!$E$4:$J$4,0),TRUE)","v":1},{"$f":"VLOOKUP(OFFSET($B:$B,,MATCH(O$4,$B$4:$F$4,0)-1),OFFSET('C. PoC Adj Factor Scoring'!$E$5:$J$282,,MATCH(O$4,'C. PoC Adj Factor Scoring'!$E$3:$AH$3,0)-1),MATCH(O$2&\" Score\",'C. PoC Adj Factor Scoring'!$E$4:$J$4,0),TRUE)","v":1},{"$f":"VLOOKUP(OFFSET($B:$B,,MATCH(P$4,$B$4:$F$4,0)-1),OFFSET('C. PoC Adj Factor Scoring'!$E$5:$J$282,,MATCH(P$4,'C. PoC Adj Factor Scoring'!$E$3:$AH$3,0)-1),MATCH(P$2&\" Score\",'C. PoC Adj Factor Scoring'!$E$4:$J$4,0),TRUE)","v":1},{"$f":"VLOOKUP(OFFSET($B:$B,,MATCH(Q$4,$B$4:$F$4,0)-1),OFFSET('C. PoC Adj Factor Scoring'!$E$5:$J$282,,MATCH(Q$4,'C. PoC Adj Factor Scoring'!$E$3:$AH$3,0)-1),MATCH(Q$2&\" Score\",'C. PoC Adj Factor Scoring'!$E$4:$J$4,0),TRUE)","v":1},{"$f":"VLOOKUP(OFFSET($B:$B,,MATCH(R$4,$B$4:$F$4,0)-1),OFFSET('C. PoC Adj Factor Scoring'!$E$5:$J$282,,MATCH(R$4,'C. PoC Adj Factor Scoring'!$E$3:$AH$3,0)-1),MATCH(R$2&\" Score\",'C. PoC Adj Factor Scoring'!$E$4:$J$4,0),TRUE)","v":1},{"$f":"VLOOKUP(OFFSET($B:$B,,MATCH(S$4,$B$4:$F$4,0)-1),OFFSET('C. PoC Adj Factor Scoring'!$E$5:$J$282,,MATCH(S$4,'C. PoC Adj Factor Scoring'!$E$3:$AH$3,0)-1),MATCH(S$2&\" Score\",'C. PoC Adj Factor Scoring'!$E$4:$J$4,0),TRUE)","v":1},{"$f":"VLOOKUP(OFFSET($B:$B,,MATCH(T$4,$B$4:$F$4,0)-1),OFFSET('C. PoC Adj Factor Scoring'!$E$5:$J$282,,MATCH(T$4,'C. PoC Adj Factor Scoring'!$E$3:$AH$3,0)-1),MATCH(T$2&\" Score\",'C. PoC Adj Factor Scoring'!$E$4:$J$4,0),TRUE)","v":1},{"$f":"VLOOKUP(OFFSET($B:$B,,MATCH(U$4,$B$4:$F$4,0)-1),OFFSET('C. PoC Adj Factor Scoring'!$E$5:$J$282,,MATCH(U$4,'C. PoC Adj Factor Scoring'!$E$3:$AH$3,0)-1),MATCH(U$2&\" Score\",'C. PoC Adj Factor Scoring'!$E$4:$J$4,0),TRUE)","v":1},{"$f":"VLOOKUP(OFFSET($B:$B,,MATCH(V$4,$B$4:$F$4,0)-1),OFFSET('C. PoC Adj Factor Scoring'!$E$5:$J$282,,MATCH(V$4,'C. PoC Adj Factor Scoring'!$E$3:$AH$3,0)-1),MATCH(V$2&\" Score\",'C. PoC Adj Factor Scoring'!$E$4:$J$4,0),TRUE)","v":1},{"$f":"VLOOKUP(OFFSET($B:$B,,MATCH(W$4,$B$4:$F$4,0)-1),OFFSET('C. PoC Adj Factor Scoring'!$E$5:$J$282,,MATCH(W$4,'C. PoC Adj Factor Scoring'!$E$3:$AH$3,0)-1),MATCH(W$2&\" Score\",'C. PoC Adj Factor Scoring'!$E$4:$J$4,0),TRUE)","v":1},{"$f":"VLOOKUP(OFFSET($B:$B,,MATCH(X$4,$B$4:$F$4,0)-1),OFFSET('C. PoC Adj Factor Scoring'!$E$5:$J$282,,MATCH(X$4,'C. PoC Adj Factor Scoring'!$E$3:$AH$3,0)-1),MATCH(X$2&\" Score\",'C. PoC Adj Factor Scoring'!$E$4:$J$4,0),TRUE)","v":1},{"$f":"VLOOKUP(OFFSET($B:$B,,MATCH(Y$4,$B$4:$F$4,0)-1),OFFSET('C. PoC Adj Factor Scoring'!$E$5:$J$282,,MATCH(Y$4,'C. PoC Adj Factor Scoring'!$E$3:$AH$3,0)-1),MATCH(Y$2&\" Score\",'C. PoC Adj Factor Scoring'!$E$4:$J$4,0),TRUE)","v":1},{"$f":"VLOOKUP(OFFSET($B:$B,,MATCH(Z$4,$B$4:$F$4,0)-1),OFFSET('C. PoC Adj Factor Scoring'!$E$5:$J$282,,MATCH(Z$4,'C. PoC Adj Factor Scoring'!$E$3:$AH$3,0)-1),MATCH(Z$2&\" Score\",'C. PoC Adj Factor Scoring'!$E$4:$J$4,0),TRUE)","v":1},{"$f":"VLOOKUP(OFFSET($B:$B,,MATCH(AA$4,$B$4:$F$4,0)-1),OFFSET('C. PoC Adj Factor Scoring'!$E$5:$J$282,,MATCH(AA$4,'C. PoC Adj Factor Scoring'!$E$3:$AH$3,0)-1),MATCH(AA$2&\" Score\",'C. PoC Adj Factor Scoring'!$E$4:$J$4,0),TRUE)","v":3},{"$f":"VLOOKUP(OFFSET($B:$B,,MATCH(AB$4,$B$4:$F$4,0)-1),OFFSET('C. PoC Adj Factor Scoring'!$E$5:$J$282,,MATCH(AB$4,'C. PoC Adj Factor Scoring'!$E$3:$AH$3,0)-1),MATCH(AB$2&\" Score\",'C. PoC Adj Factor Scoring'!$E$4:$J$4,0),TRUE)","v":1},{"$f":"VLOOKUP(OFFSET($B:$B,,MATCH(AC$4,$B$4:$F$4,0)-1),OFFSET('C. PoC Adj Factor Scoring'!$E$5:$J$282,,MATCH(AC$4,'C. PoC Adj Factor Scoring'!$E$3:$AH$3,0)-1),MATCH(AC$2&\" Score\",'C. PoC Adj Factor Scoring'!$E$4:$J$4,0),TRUE)","v":1},{"$f":"VLOOKUP(OFFSET($B:$B,,MATCH(AD$4,$B$4:$F$4,0)-1),OFFSET('C. PoC Adj Factor Scoring'!$E$5:$J$282,,MATCH(AD$4,'C. PoC Adj Factor Scoring'!$E$3:$AH$3,0)-1),MATCH(AD$2&\" Score\",'C. PoC Adj Factor Scoring'!$E$4:$J$4,0),TRUE)","v":1},{"$f":"VLOOKUP(OFFSET($B:$B,,MATCH(AE$4,$B$4:$F$4,0)-1),OFFSET('C. PoC Adj Factor Scoring'!$E$5:$J$282,,MATCH(AE$4,'C. PoC Adj Factor Scoring'!$E$3:$AH$3,0)-1),MATCH(AE$2&\" Score\",'C. PoC Adj Factor Scoring'!$E$4:$J$4,0),TRUE)","v":1}]
[{"$f":"'A. Population Info'!A212","v":1000353900},{"$f":"'A. Population Info'!L212","v":"OIL"},{"$f":"'A. Population Info'!M212","v":0},{"$f":"'A. Population Info'!N212","v":0},{"$f":"'A. Population Info'!O212","v":0},{"$f":"'A. Population Info'!P212","v":0},{"$f":"VLOOKUP(OFFSET($B:$B,,MATCH(G$4,$B$4:$F$4,0)-1),OFFSET('C. PoC Adj Factor Scoring'!$E$5:$J$282,,MATCH(G$4,'C. PoC Adj Factor Scoring'!$E$3:$AH$3,0)-1),MATCH(G$2&\" Score\",'C. PoC Adj Factor Scoring'!$E$4:$J$4,0),TRUE)","v":4},{"$f":"VLOOKUP(OFFSET($B:$B,,MATCH(H$4,$B$4:$F$4,0)-1),OFFSET('C. PoC Adj Factor Scoring'!$E$5:$J$282,,MATCH(H$4,'C. PoC Adj Factor Scoring'!$E$3:$AH$3,0)-1),MATCH(H$2&\" Score\",'C. PoC Adj Factor Scoring'!$E$4:$J$4,0),TRUE)","v":1},{"$f":"VLOOKUP(OFFSET($B:$B,,MATCH(I$4,$B$4:$F$4,0)-1),OFFSET('C. PoC Adj Factor Scoring'!$E$5:$J$282,,MATCH(I$4,'C. PoC Adj Factor Scoring'!$E$3:$AH$3,0)-1),MATCH(I$2&\" Score\",'C. PoC Adj Factor Scoring'!$E$4:$J$4,0),TRUE)","v":1},{"$f":"VLOOKUP(OFFSET($B:$B,,MATCH(J$4,$B$4:$F$4,0)-1),OFFSET('C. PoC Adj Factor Scoring'!$E$5:$J$282,,MATCH(J$4,'C. PoC Adj Factor Scoring'!$E$3:$AH$3,0)-1),MATCH(J$2&\" Score\",'C. PoC Adj Factor Scoring'!$E$4:$J$4,0),TRUE)","v":1},{"$f":"VLOOKUP(OFFSET($B:$B,,MATCH(K$4,$B$4:$F$4,0)-1),OFFSET('C. PoC Adj Factor Scoring'!$E$5:$J$282,,MATCH(K$4,'C. PoC Adj Factor Scoring'!$E$3:$AH$3,0)-1),MATCH(K$2&\" Score\",'C. PoC Adj Factor Scoring'!$E$4:$J$4,0),TRUE)","v":1},{"$f":"VLOOKUP(OFFSET($B:$B,,MATCH(L$4,$B$4:$F$4,0)-1),OFFSET('C. PoC Adj Factor Scoring'!$E$5:$J$282,,MATCH(L$4,'C. PoC Adj Factor Scoring'!$E$3:$AH$3,0)-1),MATCH(L$2&\" Score\",'C. PoC Adj Factor Scoring'!$E$4:$J$4,0),TRUE)","v":1},{"$f":"VLOOKUP(OFFSET($B:$B,,MATCH(M$4,$B$4:$F$4,0)-1),OFFSET('C. PoC Adj Factor Scoring'!$E$5:$J$282,,MATCH(M$4,'C. PoC Adj Factor Scoring'!$E$3:$AH$3,0)-1),MATCH(M$2&\" Score\",'C. PoC Adj Factor Scoring'!$E$4:$J$4,0),TRUE)","v":1},{"$f":"VLOOKUP(OFFSET($B:$B,,MATCH(N$4,$B$4:$F$4,0)-1),OFFSET('C. PoC Adj Factor Scoring'!$E$5:$J$282,,MATCH(N$4,'C. PoC Adj Factor Scoring'!$E$3:$AH$3,0)-1),MATCH(N$2&\" Score\",'C. PoC Adj Factor Scoring'!$E$4:$J$4,0),TRUE)","v":1},{"$f":"VLOOKUP(OFFSET($B:$B,,MATCH(O$4,$B$4:$F$4,0)-1),OFFSET('C. PoC Adj Factor Scoring'!$E$5:$J$282,,MATCH(O$4,'C. PoC Adj Factor Scoring'!$E$3:$AH$3,0)-1),MATCH(O$2&\" Score\",'C. PoC Adj Factor Scoring'!$E$4:$J$4,0),TRUE)","v":1},{"$f":"VLOOKUP(OFFSET($B:$B,,MATCH(P$4,$B$4:$F$4,0)-1),OFFSET('C. PoC Adj Factor Scoring'!$E$5:$J$282,,MATCH(P$4,'C. PoC Adj Factor Scoring'!$E$3:$AH$3,0)-1),MATCH(P$2&\" Score\",'C. PoC Adj Factor Scoring'!$E$4:$J$4,0),TRUE)","v":1},{"$f":"VLOOKUP(OFFSET($B:$B,,MATCH(Q$4,$B$4:$F$4,0)-1),OFFSET('C. PoC Adj Factor Scoring'!$E$5:$J$282,,MATCH(Q$4,'C. PoC Adj Factor Scoring'!$E$3:$AH$3,0)-1),MATCH(Q$2&\" Score\",'C. PoC Adj Factor Scoring'!$E$4:$J$4,0),TRUE)","v":1},{"$f":"VLOOKUP(OFFSET($B:$B,,MATCH(R$4,$B$4:$F$4,0)-1),OFFSET('C. PoC Adj Factor Scoring'!$E$5:$J$282,,MATCH(R$4,'C. PoC Adj Factor Scoring'!$E$3:$AH$3,0)-1),MATCH(R$2&\" Score\",'C. PoC Adj Factor Scoring'!$E$4:$J$4,0),TRUE)","v":1},{"$f":"VLOOKUP(OFFSET($B:$B,,MATCH(S$4,$B$4:$F$4,0)-1),OFFSET('C. PoC Adj Factor Scoring'!$E$5:$J$282,,MATCH(S$4,'C. PoC Adj Factor Scoring'!$E$3:$AH$3,0)-1),MATCH(S$2&\" Score\",'C. PoC Adj Factor Scoring'!$E$4:$J$4,0),TRUE)","v":1},{"$f":"VLOOKUP(OFFSET($B:$B,,MATCH(T$4,$B$4:$F$4,0)-1),OFFSET('C. PoC Adj Factor Scoring'!$E$5:$J$282,,MATCH(T$4,'C. PoC Adj Factor Scoring'!$E$3:$AH$3,0)-1),MATCH(T$2&\" Score\",'C. PoC Adj Factor Scoring'!$E$4:$J$4,0),TRUE)","v":1},{"$f":"VLOOKUP(OFFSET($B:$B,,MATCH(U$4,$B$4:$F$4,0)-1),OFFSET('C. PoC Adj Factor Scoring'!$E$5:$J$282,,MATCH(U$4,'C. PoC Adj Factor Scoring'!$E$3:$AH$3,0)-1),MATCH(U$2&\" Score\",'C. PoC Adj Factor Scoring'!$E$4:$J$4,0),TRUE)","v":1},{"$f":"VLOOKUP(OFFSET($B:$B,,MATCH(V$4,$B$4:$F$4,0)-1),OFFSET('C. PoC Adj Factor Scoring'!$E$5:$J$282,,MATCH(V$4,'C. PoC Adj Factor Scoring'!$E$3:$AH$3,0)-1),MATCH(V$2&\" Score\",'C. PoC Adj Factor Scoring'!$E$4:$J$4,0),TRUE)","v":1},{"$f":"VLOOKUP(OFFSET($B:$B,,MATCH(W$4,$B$4:$F$4,0)-1),OFFSET('C. PoC Adj Factor Scoring'!$E$5:$J$282,,MATCH(W$4,'C. PoC Adj Factor Scoring'!$E$3:$AH$3,0)-1),MATCH(W$2&\" Score\",'C. PoC Adj Factor Scoring'!$E$4:$J$4,0),TRUE)","v":1},{"$f":"VLOOKUP(OFFSET($B:$B,,MATCH(X$4,$B$4:$F$4,0)-1),OFFSET('C. PoC Adj Factor Scoring'!$E$5:$J$282,,MATCH(X$4,'C. PoC Adj Factor Scoring'!$E$3:$AH$3,0)-1),MATCH(X$2&\" Score\",'C. PoC Adj Factor Scoring'!$E$4:$J$4,0),TRUE)","v":1},{"$f":"VLOOKUP(OFFSET($B:$B,,MATCH(Y$4,$B$4:$F$4,0)-1),OFFSET('C. PoC Adj Factor Scoring'!$E$5:$J$282,,MATCH(Y$4,'C. PoC Adj Factor Scoring'!$E$3:$AH$3,0)-1),MATCH(Y$2&\" Score\",'C. PoC Adj Factor Scoring'!$E$4:$J$4,0),TRUE)","v":1},{"$f":"VLOOKUP(OFFSET($B:$B,,MATCH(Z$4,$B$4:$F$4,0)-1),OFFSET('C. PoC Adj Factor Scoring'!$E$5:$J$282,,MATCH(Z$4,'C. PoC Adj Factor Scoring'!$E$3:$AH$3,0)-1),MATCH(Z$2&\" Score\",'C. PoC Adj Factor Scoring'!$E$4:$J$4,0),TRUE)","v":1},{"$f":"VLOOKUP(OFFSET($B:$B,,MATCH(AA$4,$B$4:$F$4,0)-1),OFFSET('C. PoC Adj Factor Scoring'!$E$5:$J$282,,MATCH(AA$4,'C. PoC Adj Factor Scoring'!$E$3:$AH$3,0)-1),MATCH(AA$2&\" Score\",'C. PoC Adj Factor Scoring'!$E$4:$J$4,0),TRUE)","v":3},{"$f":"VLOOKUP(OFFSET($B:$B,,MATCH(AB$4,$B$4:$F$4,0)-1),OFFSET('C. PoC Adj Factor Scoring'!$E$5:$J$282,,MATCH(AB$4,'C. PoC Adj Factor Scoring'!$E$3:$AH$3,0)-1),MATCH(AB$2&\" Score\",'C. PoC Adj Factor Scoring'!$E$4:$J$4,0),TRUE)","v":1},{"$f":"VLOOKUP(OFFSET($B:$B,,MATCH(AC$4,$B$4:$F$4,0)-1),OFFSET('C. PoC Adj Factor Scoring'!$E$5:$J$282,,MATCH(AC$4,'C. PoC Adj Factor Scoring'!$E$3:$AH$3,0)-1),MATCH(AC$2&\" Score\",'C. PoC Adj Factor Scoring'!$E$4:$J$4,0),TRUE)","v":1},{"$f":"VLOOKUP(OFFSET($B:$B,,MATCH(AD$4,$B$4:$F$4,0)-1),OFFSET('C. PoC Adj Factor Scoring'!$E$5:$J$282,,MATCH(AD$4,'C. PoC Adj Factor Scoring'!$E$3:$AH$3,0)-1),MATCH(AD$2&\" Score\",'C. PoC Adj Factor Scoring'!$E$4:$J$4,0),TRUE)","v":1},{"$f":"VLOOKUP(OFFSET($B:$B,,MATCH(AE$4,$B$4:$F$4,0)-1),OFFSET('C. PoC Adj Factor Scoring'!$E$5:$J$282,,MATCH(AE$4,'C. PoC Adj Factor Scoring'!$E$3:$AH$3,0)-1),MATCH(AE$2&\" Score\",'C. PoC Adj Factor Scoring'!$E$4:$J$4,0),TRUE)","v":1}]
[{"$f":"'A. Population Info'!A213","v":1000353934},{"$f":"'A. Population Info'!L213","v":"OIL"},{"$f":"'A. Population Info'!M213","v":0},{"$f":"'A. Population Info'!N213","v":0},{"$f":"'A. Population Info'!O213","v":0},{"$f":"'A. Population Info'!P213","v":0},{"$f":"VLOOKUP(OFFSET($B:$B,,MATCH(G$4,$B$4:$F$4,0)-1),OFFSET('C. PoC Adj Factor Scoring'!$E$5:$J$282,,MATCH(G$4,'C. PoC Adj Factor Scoring'!$E$3:$AH$3,0)-1),MATCH(G$2&\" Score\",'C. PoC Adj Factor Scoring'!$E$4:$J$4,0),TRUE)","v":4},{"$f":"VLOOKUP(OFFSET($B:$B,,MATCH(H$4,$B$4:$F$4,0)-1),OFFSET('C. PoC Adj Factor Scoring'!$E$5:$J$282,,MATCH(H$4,'C. PoC Adj Factor Scoring'!$E$3:$AH$3,0)-1),MATCH(H$2&\" Score\",'C. PoC Adj Factor Scoring'!$E$4:$J$4,0),TRUE)","v":1},{"$f":"VLOOKUP(OFFSET($B:$B,,MATCH(I$4,$B$4:$F$4,0)-1),OFFSET('C. PoC Adj Factor Scoring'!$E$5:$J$282,,MATCH(I$4,'C. PoC Adj Factor Scoring'!$E$3:$AH$3,0)-1),MATCH(I$2&\" Score\",'C. PoC Adj Factor Scoring'!$E$4:$J$4,0),TRUE)","v":1},{"$f":"VLOOKUP(OFFSET($B:$B,,MATCH(J$4,$B$4:$F$4,0)-1),OFFSET('C. PoC Adj Factor Scoring'!$E$5:$J$282,,MATCH(J$4,'C. PoC Adj Factor Scoring'!$E$3:$AH$3,0)-1),MATCH(J$2&\" Score\",'C. PoC Adj Factor Scoring'!$E$4:$J$4,0),TRUE)","v":1},{"$f":"VLOOKUP(OFFSET($B:$B,,MATCH(K$4,$B$4:$F$4,0)-1),OFFSET('C. PoC Adj Factor Scoring'!$E$5:$J$282,,MATCH(K$4,'C. PoC Adj Factor Scoring'!$E$3:$AH$3,0)-1),MATCH(K$2&\" Score\",'C. PoC Adj Factor Scoring'!$E$4:$J$4,0),TRUE)","v":1},{"$f":"VLOOKUP(OFFSET($B:$B,,MATCH(L$4,$B$4:$F$4,0)-1),OFFSET('C. PoC Adj Factor Scoring'!$E$5:$J$282,,MATCH(L$4,'C. PoC Adj Factor Scoring'!$E$3:$AH$3,0)-1),MATCH(L$2&\" Score\",'C. PoC Adj Factor Scoring'!$E$4:$J$4,0),TRUE)","v":1},{"$f":"VLOOKUP(OFFSET($B:$B,,MATCH(M$4,$B$4:$F$4,0)-1),OFFSET('C. PoC Adj Factor Scoring'!$E$5:$J$282,,MATCH(M$4,'C. PoC Adj Factor Scoring'!$E$3:$AH$3,0)-1),MATCH(M$2&\" Score\",'C. PoC Adj Factor Scoring'!$E$4:$J$4,0),TRUE)","v":1},{"$f":"VLOOKUP(OFFSET($B:$B,,MATCH(N$4,$B$4:$F$4,0)-1),OFFSET('C. PoC Adj Factor Scoring'!$E$5:$J$282,,MATCH(N$4,'C. PoC Adj Factor Scoring'!$E$3:$AH$3,0)-1),MATCH(N$2&\" Score\",'C. PoC Adj Factor Scoring'!$E$4:$J$4,0),TRUE)","v":1},{"$f":"VLOOKUP(OFFSET($B:$B,,MATCH(O$4,$B$4:$F$4,0)-1),OFFSET('C. PoC Adj Factor Scoring'!$E$5:$J$282,,MATCH(O$4,'C. PoC Adj Factor Scoring'!$E$3:$AH$3,0)-1),MATCH(O$2&\" Score\",'C. PoC Adj Factor Scoring'!$E$4:$J$4,0),TRUE)","v":1},{"$f":"VLOOKUP(OFFSET($B:$B,,MATCH(P$4,$B$4:$F$4,0)-1),OFFSET('C. PoC Adj Factor Scoring'!$E$5:$J$282,,MATCH(P$4,'C. PoC Adj Factor Scoring'!$E$3:$AH$3,0)-1),MATCH(P$2&\" Score\",'C. PoC Adj Factor Scoring'!$E$4:$J$4,0),TRUE)","v":1},{"$f":"VLOOKUP(OFFSET($B:$B,,MATCH(Q$4,$B$4:$F$4,0)-1),OFFSET('C. PoC Adj Factor Scoring'!$E$5:$J$282,,MATCH(Q$4,'C. PoC Adj Factor Scoring'!$E$3:$AH$3,0)-1),MATCH(Q$2&\" Score\",'C. PoC Adj Factor Scoring'!$E$4:$J$4,0),TRUE)","v":1},{"$f":"VLOOKUP(OFFSET($B:$B,,MATCH(R$4,$B$4:$F$4,0)-1),OFFSET('C. PoC Adj Factor Scoring'!$E$5:$J$282,,MATCH(R$4,'C. PoC Adj Factor Scoring'!$E$3:$AH$3,0)-1),MATCH(R$2&\" Score\",'C. PoC Adj Factor Scoring'!$E$4:$J$4,0),TRUE)","v":1},{"$f":"VLOOKUP(OFFSET($B:$B,,MATCH(S$4,$B$4:$F$4,0)-1),OFFSET('C. PoC Adj Factor Scoring'!$E$5:$J$282,,MATCH(S$4,'C. PoC Adj Factor Scoring'!$E$3:$AH$3,0)-1),MATCH(S$2&\" Score\",'C. PoC Adj Factor Scoring'!$E$4:$J$4,0),TRUE)","v":1},{"$f":"VLOOKUP(OFFSET($B:$B,,MATCH(T$4,$B$4:$F$4,0)-1),OFFSET('C. PoC Adj Factor Scoring'!$E$5:$J$282,,MATCH(T$4,'C. PoC Adj Factor Scoring'!$E$3:$AH$3,0)-1),MATCH(T$2&\" Score\",'C. PoC Adj Factor Scoring'!$E$4:$J$4,0),TRUE)","v":1},{"$f":"VLOOKUP(OFFSET($B:$B,,MATCH(U$4,$B$4:$F$4,0)-1),OFFSET('C. PoC Adj Factor Scoring'!$E$5:$J$282,,MATCH(U$4,'C. PoC Adj Factor Scoring'!$E$3:$AH$3,0)-1),MATCH(U$2&\" Score\",'C. PoC Adj Factor Scoring'!$E$4:$J$4,0),TRUE)","v":1},{"$f":"VLOOKUP(OFFSET($B:$B,,MATCH(V$4,$B$4:$F$4,0)-1),OFFSET('C. PoC Adj Factor Scoring'!$E$5:$J$282,,MATCH(V$4,'C. PoC Adj Factor Scoring'!$E$3:$AH$3,0)-1),MATCH(V$2&\" Score\",'C. PoC Adj Factor Scoring'!$E$4:$J$4,0),TRUE)","v":1},{"$f":"VLOOKUP(OFFSET($B:$B,,MATCH(W$4,$B$4:$F$4,0)-1),OFFSET('C. PoC Adj Factor Scoring'!$E$5:$J$282,,MATCH(W$4,'C. PoC Adj Factor Scoring'!$E$3:$AH$3,0)-1),MATCH(W$2&\" Score\",'C. PoC Adj Factor Scoring'!$E$4:$J$4,0),TRUE)","v":1},{"$f":"VLOOKUP(OFFSET($B:$B,,MATCH(X$4,$B$4:$F$4,0)-1),OFFSET('C. PoC Adj Factor Scoring'!$E$5:$J$282,,MATCH(X$4,'C. PoC Adj Factor Scoring'!$E$3:$AH$3,0)-1),MATCH(X$2&\" Score\",'C. PoC Adj Factor Scoring'!$E$4:$J$4,0),TRUE)","v":1},{"$f":"VLOOKUP(OFFSET($B:$B,,MATCH(Y$4,$B$4:$F$4,0)-1),OFFSET('C. PoC Adj Factor Scoring'!$E$5:$J$282,,MATCH(Y$4,'C. PoC Adj Factor Scoring'!$E$3:$AH$3,0)-1),MATCH(Y$2&\" Score\",'C. PoC Adj Factor Scoring'!$E$4:$J$4,0),TRUE)","v":1},{"$f":"VLOOKUP(OFFSET($B:$B,,MATCH(Z$4,$B$4:$F$4,0)-1),OFFSET('C. PoC Adj Factor Scoring'!$E$5:$J$282,,MATCH(Z$4,'C. PoC Adj Factor Scoring'!$E$3:$AH$3,0)-1),MATCH(Z$2&\" Score\",'C. PoC Adj Factor Scoring'!$E$4:$J$4,0),TRUE)","v":1},{"$f":"VLOOKUP(OFFSET($B:$B,,MATCH(AA$4,$B$4:$F$4,0)-1),OFFSET('C. PoC Adj Factor Scoring'!$E$5:$J$282,,MATCH(AA$4,'C. PoC Adj Factor Scoring'!$E$3:$AH$3,0)-1),MATCH(AA$2&\" Score\",'C. PoC Adj Factor Scoring'!$E$4:$J$4,0),TRUE)","v":3},{"$f":"VLOOKUP(OFFSET($B:$B,,MATCH(AB$4,$B$4:$F$4,0)-1),OFFSET('C. PoC Adj Factor Scoring'!$E$5:$J$282,,MATCH(AB$4,'C. PoC Adj Factor Scoring'!$E$3:$AH$3,0)-1),MATCH(AB$2&\" Score\",'C. PoC Adj Factor Scoring'!$E$4:$J$4,0),TRUE)","v":1},{"$f":"VLOOKUP(OFFSET($B:$B,,MATCH(AC$4,$B$4:$F$4,0)-1),OFFSET('C. PoC Adj Factor Scoring'!$E$5:$J$282,,MATCH(AC$4,'C. PoC Adj Factor Scoring'!$E$3:$AH$3,0)-1),MATCH(AC$2&\" Score\",'C. PoC Adj Factor Scoring'!$E$4:$J$4,0),TRUE)","v":1},{"$f":"VLOOKUP(OFFSET($B:$B,,MATCH(AD$4,$B$4:$F$4,0)-1),OFFSET('C. PoC Adj Factor Scoring'!$E$5:$J$282,,MATCH(AD$4,'C. PoC Adj Factor Scoring'!$E$3:$AH$3,0)-1),MATCH(AD$2&\" Score\",'C. PoC Adj Factor Scoring'!$E$4:$J$4,0),TRUE)","v":1},{"$f":"VLOOKUP(OFFSET($B:$B,,MATCH(AE$4,$B$4:$F$4,0)-1),OFFSET('C. PoC Adj Factor Scoring'!$E$5:$J$282,,MATCH(AE$4,'C. PoC Adj Factor Scoring'!$E$3:$AH$3,0)-1),MATCH(AE$2&\" Score\",'C. PoC Adj Factor Scoring'!$E$4:$J$4,0),TRUE)","v":1}]
[{"$f":"'A. Population Info'!A214","v":1000353966},{"$f":"'A. Population Info'!L214","v":"OIL"},{"$f":"'A. Population Info'!M214","v":0},{"$f":"'A. Population Info'!N214","v":0},{"$f":"'A. Population Info'!O214","v":0},{"$f":"'A. Population Info'!P214","v":0},{"$f":"VLOOKUP(OFFSET($B:$B,,MATCH(G$4,$B$4:$F$4,0)-1),OFFSET('C. PoC Adj Factor Scoring'!$E$5:$J$282,,MATCH(G$4,'C. PoC Adj Factor Scoring'!$E$3:$AH$3,0)-1),MATCH(G$2&\" Score\",'C. PoC Adj Factor Scoring'!$E$4:$J$4,0),TRUE)","v":4},{"$f":"VLOOKUP(OFFSET($B:$B,,MATCH(H$4,$B$4:$F$4,0)-1),OFFSET('C. PoC Adj Factor Scoring'!$E$5:$J$282,,MATCH(H$4,'C. PoC Adj Factor Scoring'!$E$3:$AH$3,0)-1),MATCH(H$2&\" Score\",'C. PoC Adj Factor Scoring'!$E$4:$J$4,0),TRUE)","v":1},{"$f":"VLOOKUP(OFFSET($B:$B,,MATCH(I$4,$B$4:$F$4,0)-1),OFFSET('C. PoC Adj Factor Scoring'!$E$5:$J$282,,MATCH(I$4,'C. PoC Adj Factor Scoring'!$E$3:$AH$3,0)-1),MATCH(I$2&\" Score\",'C. PoC Adj Factor Scoring'!$E$4:$J$4,0),TRUE)","v":1},{"$f":"VLOOKUP(OFFSET($B:$B,,MATCH(J$4,$B$4:$F$4,0)-1),OFFSET('C. PoC Adj Factor Scoring'!$E$5:$J$282,,MATCH(J$4,'C. PoC Adj Factor Scoring'!$E$3:$AH$3,0)-1),MATCH(J$2&\" Score\",'C. PoC Adj Factor Scoring'!$E$4:$J$4,0),TRUE)","v":1},{"$f":"VLOOKUP(OFFSET($B:$B,,MATCH(K$4,$B$4:$F$4,0)-1),OFFSET('C. PoC Adj Factor Scoring'!$E$5:$J$282,,MATCH(K$4,'C. PoC Adj Factor Scoring'!$E$3:$AH$3,0)-1),MATCH(K$2&\" Score\",'C. PoC Adj Factor Scoring'!$E$4:$J$4,0),TRUE)","v":1},{"$f":"VLOOKUP(OFFSET($B:$B,,MATCH(L$4,$B$4:$F$4,0)-1),OFFSET('C. PoC Adj Factor Scoring'!$E$5:$J$282,,MATCH(L$4,'C. PoC Adj Factor Scoring'!$E$3:$AH$3,0)-1),MATCH(L$2&\" Score\",'C. PoC Adj Factor Scoring'!$E$4:$J$4,0),TRUE)","v":1},{"$f":"VLOOKUP(OFFSET($B:$B,,MATCH(M$4,$B$4:$F$4,0)-1),OFFSET('C. PoC Adj Factor Scoring'!$E$5:$J$282,,MATCH(M$4,'C. PoC Adj Factor Scoring'!$E$3:$AH$3,0)-1),MATCH(M$2&\" Score\",'C. PoC Adj Factor Scoring'!$E$4:$J$4,0),TRUE)","v":1},{"$f":"VLOOKUP(OFFSET($B:$B,,MATCH(N$4,$B$4:$F$4,0)-1),OFFSET('C. PoC Adj Factor Scoring'!$E$5:$J$282,,MATCH(N$4,'C. PoC Adj Factor Scoring'!$E$3:$AH$3,0)-1),MATCH(N$2&\" Score\",'C. PoC Adj Factor Scoring'!$E$4:$J$4,0),TRUE)","v":1},{"$f":"VLOOKUP(OFFSET($B:$B,,MATCH(O$4,$B$4:$F$4,0)-1),OFFSET('C. PoC Adj Factor Scoring'!$E$5:$J$282,,MATCH(O$4,'C. PoC Adj Factor Scoring'!$E$3:$AH$3,0)-1),MATCH(O$2&\" Score\",'C. PoC Adj Factor Scoring'!$E$4:$J$4,0),TRUE)","v":1},{"$f":"VLOOKUP(OFFSET($B:$B,,MATCH(P$4,$B$4:$F$4,0)-1),OFFSET('C. PoC Adj Factor Scoring'!$E$5:$J$282,,MATCH(P$4,'C. PoC Adj Factor Scoring'!$E$3:$AH$3,0)-1),MATCH(P$2&\" Score\",'C. PoC Adj Factor Scoring'!$E$4:$J$4,0),TRUE)","v":1},{"$f":"VLOOKUP(OFFSET($B:$B,,MATCH(Q$4,$B$4:$F$4,0)-1),OFFSET('C. PoC Adj Factor Scoring'!$E$5:$J$282,,MATCH(Q$4,'C. PoC Adj Factor Scoring'!$E$3:$AH$3,0)-1),MATCH(Q$2&\" Score\",'C. PoC Adj Factor Scoring'!$E$4:$J$4,0),TRUE)","v":1},{"$f":"VLOOKUP(OFFSET($B:$B,,MATCH(R$4,$B$4:$F$4,0)-1),OFFSET('C. PoC Adj Factor Scoring'!$E$5:$J$282,,MATCH(R$4,'C. PoC Adj Factor Scoring'!$E$3:$AH$3,0)-1),MATCH(R$2&\" Score\",'C. PoC Adj Factor Scoring'!$E$4:$J$4,0),TRUE)","v":1},{"$f":"VLOOKUP(OFFSET($B:$B,,MATCH(S$4,$B$4:$F$4,0)-1),OFFSET('C. PoC Adj Factor Scoring'!$E$5:$J$282,,MATCH(S$4,'C. PoC Adj Factor Scoring'!$E$3:$AH$3,0)-1),MATCH(S$2&\" Score\",'C. PoC Adj Factor Scoring'!$E$4:$J$4,0),TRUE)","v":1},{"$f":"VLOOKUP(OFFSET($B:$B,,MATCH(T$4,$B$4:$F$4,0)-1),OFFSET('C. PoC Adj Factor Scoring'!$E$5:$J$282,,MATCH(T$4,'C. PoC Adj Factor Scoring'!$E$3:$AH$3,0)-1),MATCH(T$2&\" Score\",'C. PoC Adj Factor Scoring'!$E$4:$J$4,0),TRUE)","v":1},{"$f":"VLOOKUP(OFFSET($B:$B,,MATCH(U$4,$B$4:$F$4,0)-1),OFFSET('C. PoC Adj Factor Scoring'!$E$5:$J$282,,MATCH(U$4,'C. PoC Adj Factor Scoring'!$E$3:$AH$3,0)-1),MATCH(U$2&\" Score\",'C. PoC Adj Factor Scoring'!$E$4:$J$4,0),TRUE)","v":1},{"$f":"VLOOKUP(OFFSET($B:$B,,MATCH(V$4,$B$4:$F$4,0)-1),OFFSET('C. PoC Adj Factor Scoring'!$E$5:$J$282,,MATCH(V$4,'C. PoC Adj Factor Scoring'!$E$3:$AH$3,0)-1),MATCH(V$2&\" Score\",'C. PoC Adj Factor Scoring'!$E$4:$J$4,0),TRUE)","v":1},{"$f":"VLOOKUP(OFFSET($B:$B,,MATCH(W$4,$B$4:$F$4,0)-1),OFFSET('C. PoC Adj Factor Scoring'!$E$5:$J$282,,MATCH(W$4,'C. PoC Adj Factor Scoring'!$E$3:$AH$3,0)-1),MATCH(W$2&\" Score\",'C. PoC Adj Factor Scoring'!$E$4:$J$4,0),TRUE)","v":1},{"$f":"VLOOKUP(OFFSET($B:$B,,MATCH(X$4,$B$4:$F$4,0)-1),OFFSET('C. PoC Adj Factor Scoring'!$E$5:$J$282,,MATCH(X$4,'C. PoC Adj Factor Scoring'!$E$3:$AH$3,0)-1),MATCH(X$2&\" Score\",'C. PoC Adj Factor Scoring'!$E$4:$J$4,0),TRUE)","v":1},{"$f":"VLOOKUP(OFFSET($B:$B,,MATCH(Y$4,$B$4:$F$4,0)-1),OFFSET('C. PoC Adj Factor Scoring'!$E$5:$J$282,,MATCH(Y$4,'C. PoC Adj Factor Scoring'!$E$3:$AH$3,0)-1),MATCH(Y$2&\" Score\",'C. PoC Adj Factor Scoring'!$E$4:$J$4,0),TRUE)","v":1},{"$f":"VLOOKUP(OFFSET($B:$B,,MATCH(Z$4,$B$4:$F$4,0)-1),OFFSET('C. PoC Adj Factor Scoring'!$E$5:$J$282,,MATCH(Z$4,'C. PoC Adj Factor Scoring'!$E$3:$AH$3,0)-1),MATCH(Z$2&\" Score\",'C. PoC Adj Factor Scoring'!$E$4:$J$4,0),TRUE)","v":1},{"$f":"VLOOKUP(OFFSET($B:$B,,MATCH(AA$4,$B$4:$F$4,0)-1),OFFSET('C. PoC Adj Factor Scoring'!$E$5:$J$282,,MATCH(AA$4,'C. PoC Adj Factor Scoring'!$E$3:$AH$3,0)-1),MATCH(AA$2&\" Score\",'C. PoC Adj Factor Scoring'!$E$4:$J$4,0),TRUE)","v":3},{"$f":"VLOOKUP(OFFSET($B:$B,,MATCH(AB$4,$B$4:$F$4,0)-1),OFFSET('C. PoC Adj Factor Scoring'!$E$5:$J$282,,MATCH(AB$4,'C. PoC Adj Factor Scoring'!$E$3:$AH$3,0)-1),MATCH(AB$2&\" Score\",'C. PoC Adj Factor Scoring'!$E$4:$J$4,0),TRUE)","v":1},{"$f":"VLOOKUP(OFFSET($B:$B,,MATCH(AC$4,$B$4:$F$4,0)-1),OFFSET('C. PoC Adj Factor Scoring'!$E$5:$J$282,,MATCH(AC$4,'C. PoC Adj Factor Scoring'!$E$3:$AH$3,0)-1),MATCH(AC$2&\" Score\",'C. PoC Adj Factor Scoring'!$E$4:$J$4,0),TRUE)","v":1},{"$f":"VLOOKUP(OFFSET($B:$B,,MATCH(AD$4,$B$4:$F$4,0)-1),OFFSET('C. PoC Adj Factor Scoring'!$E$5:$J$282,,MATCH(AD$4,'C. PoC Adj Factor Scoring'!$E$3:$AH$3,0)-1),MATCH(AD$2&\" Score\",'C. PoC Adj Factor Scoring'!$E$4:$J$4,0),TRUE)","v":1},{"$f":"VLOOKUP(OFFSET($B:$B,,MATCH(AE$4,$B$4:$F$4,0)-1),OFFSET('C. PoC Adj Factor Scoring'!$E$5:$J$282,,MATCH(AE$4,'C. PoC Adj Factor Scoring'!$E$3:$AH$3,0)-1),MATCH(AE$2&\" Score\",'C. PoC Adj Factor Scoring'!$E$4:$J$4,0),TRUE)","v":1}]
[{"$f":"'A. Population Info'!A215","v":1000353995},{"$f":"'A. Population Info'!L215","v":"OIL"},{"$f":"'A. Population Info'!M215","v":0},{"$f":"'A. Population Info'!N215","v":0},{"$f":"'A. Population Info'!O215","v":0},{"$f":"'A. Population Info'!P215","v":0},{"$f":"VLOOKUP(OFFSET($B:$B,,MATCH(G$4,$B$4:$F$4,0)-1),OFFSET('C. PoC Adj Factor Scoring'!$E$5:$J$282,,MATCH(G$4,'C. PoC Adj Factor Scoring'!$E$3:$AH$3,0)-1),MATCH(G$2&\" Score\",'C. PoC Adj Factor Scoring'!$E$4:$J$4,0),TRUE)","v":4},{"$f":"VLOOKUP(OFFSET($B:$B,,MATCH(H$4,$B$4:$F$4,0)-1),OFFSET('C. PoC Adj Factor Scoring'!$E$5:$J$282,,MATCH(H$4,'C. PoC Adj Factor Scoring'!$E$3:$AH$3,0)-1),MATCH(H$2&\" Score\",'C. PoC Adj Factor Scoring'!$E$4:$J$4,0),TRUE)","v":1},{"$f":"VLOOKUP(OFFSET($B:$B,,MATCH(I$4,$B$4:$F$4,0)-1),OFFSET('C. PoC Adj Factor Scoring'!$E$5:$J$282,,MATCH(I$4,'C. PoC Adj Factor Scoring'!$E$3:$AH$3,0)-1),MATCH(I$2&\" Score\",'C. PoC Adj Factor Scoring'!$E$4:$J$4,0),TRUE)","v":1},{"$f":"VLOOKUP(OFFSET($B:$B,,MATCH(J$4,$B$4:$F$4,0)-1),OFFSET('C. PoC Adj Factor Scoring'!$E$5:$J$282,,MATCH(J$4,'C. PoC Adj Factor Scoring'!$E$3:$AH$3,0)-1),MATCH(J$2&\" Score\",'C. PoC Adj Factor Scoring'!$E$4:$J$4,0),TRUE)","v":1},{"$f":"VLOOKUP(OFFSET($B:$B,,MATCH(K$4,$B$4:$F$4,0)-1),OFFSET('C. PoC Adj Factor Scoring'!$E$5:$J$282,,MATCH(K$4,'C. PoC Adj Factor Scoring'!$E$3:$AH$3,0)-1),MATCH(K$2&\" Score\",'C. PoC Adj Factor Scoring'!$E$4:$J$4,0),TRUE)","v":1},{"$f":"VLOOKUP(OFFSET($B:$B,,MATCH(L$4,$B$4:$F$4,0)-1),OFFSET('C. PoC Adj Factor Scoring'!$E$5:$J$282,,MATCH(L$4,'C. PoC Adj Factor Scoring'!$E$3:$AH$3,0)-1),MATCH(L$2&\" Score\",'C. PoC Adj Factor Scoring'!$E$4:$J$4,0),TRUE)","v":1},{"$f":"VLOOKUP(OFFSET($B:$B,,MATCH(M$4,$B$4:$F$4,0)-1),OFFSET('C. PoC Adj Factor Scoring'!$E$5:$J$282,,MATCH(M$4,'C. PoC Adj Factor Scoring'!$E$3:$AH$3,0)-1),MATCH(M$2&\" Score\",'C. PoC Adj Factor Scoring'!$E$4:$J$4,0),TRUE)","v":1},{"$f":"VLOOKUP(OFFSET($B:$B,,MATCH(N$4,$B$4:$F$4,0)-1),OFFSET('C. PoC Adj Factor Scoring'!$E$5:$J$282,,MATCH(N$4,'C. PoC Adj Factor Scoring'!$E$3:$AH$3,0)-1),MATCH(N$2&\" Score\",'C. PoC Adj Factor Scoring'!$E$4:$J$4,0),TRUE)","v":1},{"$f":"VLOOKUP(OFFSET($B:$B,,MATCH(O$4,$B$4:$F$4,0)-1),OFFSET('C. PoC Adj Factor Scoring'!$E$5:$J$282,,MATCH(O$4,'C. PoC Adj Factor Scoring'!$E$3:$AH$3,0)-1),MATCH(O$2&\" Score\",'C. PoC Adj Factor Scoring'!$E$4:$J$4,0),TRUE)","v":1},{"$f":"VLOOKUP(OFFSET($B:$B,,MATCH(P$4,$B$4:$F$4,0)-1),OFFSET('C. PoC Adj Factor Scoring'!$E$5:$J$282,,MATCH(P$4,'C. PoC Adj Factor Scoring'!$E$3:$AH$3,0)-1),MATCH(P$2&\" Score\",'C. PoC Adj Factor Scoring'!$E$4:$J$4,0),TRUE)","v":1},{"$f":"VLOOKUP(OFFSET($B:$B,,MATCH(Q$4,$B$4:$F$4,0)-1),OFFSET('C. PoC Adj Factor Scoring'!$E$5:$J$282,,MATCH(Q$4,'C. PoC Adj Factor Scoring'!$E$3:$AH$3,0)-1),MATCH(Q$2&\" Score\",'C. PoC Adj Factor Scoring'!$E$4:$J$4,0),TRUE)","v":1},{"$f":"VLOOKUP(OFFSET($B:$B,,MATCH(R$4,$B$4:$F$4,0)-1),OFFSET('C. PoC Adj Factor Scoring'!$E$5:$J$282,,MATCH(R$4,'C. PoC Adj Factor Scoring'!$E$3:$AH$3,0)-1),MATCH(R$2&\" Score\",'C. PoC Adj Factor Scoring'!$E$4:$J$4,0),TRUE)","v":1},{"$f":"VLOOKUP(OFFSET($B:$B,,MATCH(S$4,$B$4:$F$4,0)-1),OFFSET('C. PoC Adj Factor Scoring'!$E$5:$J$282,,MATCH(S$4,'C. PoC Adj Factor Scoring'!$E$3:$AH$3,0)-1),MATCH(S$2&\" Score\",'C. PoC Adj Factor Scoring'!$E$4:$J$4,0),TRUE)","v":1},{"$f":"VLOOKUP(OFFSET($B:$B,,MATCH(T$4,$B$4:$F$4,0)-1),OFFSET('C. PoC Adj Factor Scoring'!$E$5:$J$282,,MATCH(T$4,'C. PoC Adj Factor Scoring'!$E$3:$AH$3,0)-1),MATCH(T$2&\" Score\",'C. PoC Adj Factor Scoring'!$E$4:$J$4,0),TRUE)","v":1},{"$f":"VLOOKUP(OFFSET($B:$B,,MATCH(U$4,$B$4:$F$4,0)-1),OFFSET('C. PoC Adj Factor Scoring'!$E$5:$J$282,,MATCH(U$4,'C. PoC Adj Factor Scoring'!$E$3:$AH$3,0)-1),MATCH(U$2&\" Score\",'C. PoC Adj Factor Scoring'!$E$4:$J$4,0),TRUE)","v":1},{"$f":"VLOOKUP(OFFSET($B:$B,,MATCH(V$4,$B$4:$F$4,0)-1),OFFSET('C. PoC Adj Factor Scoring'!$E$5:$J$282,,MATCH(V$4,'C. PoC Adj Factor Scoring'!$E$3:$AH$3,0)-1),MATCH(V$2&\" Score\",'C. PoC Adj Factor Scoring'!$E$4:$J$4,0),TRUE)","v":1},{"$f":"VLOOKUP(OFFSET($B:$B,,MATCH(W$4,$B$4:$F$4,0)-1),OFFSET('C. PoC Adj Factor Scoring'!$E$5:$J$282,,MATCH(W$4,'C. PoC Adj Factor Scoring'!$E$3:$AH$3,0)-1),MATCH(W$2&\" Score\",'C. PoC Adj Factor Scoring'!$E$4:$J$4,0),TRUE)","v":1},{"$f":"VLOOKUP(OFFSET($B:$B,,MATCH(X$4,$B$4:$F$4,0)-1),OFFSET('C. PoC Adj Factor Scoring'!$E$5:$J$282,,MATCH(X$4,'C. PoC Adj Factor Scoring'!$E$3:$AH$3,0)-1),MATCH(X$2&\" Score\",'C. PoC Adj Factor Scoring'!$E$4:$J$4,0),TRUE)","v":1},{"$f":"VLOOKUP(OFFSET($B:$B,,MATCH(Y$4,$B$4:$F$4,0)-1),OFFSET('C. PoC Adj Factor Scoring'!$E$5:$J$282,,MATCH(Y$4,'C. PoC Adj Factor Scoring'!$E$3:$AH$3,0)-1),MATCH(Y$2&\" Score\",'C. PoC Adj Factor Scoring'!$E$4:$J$4,0),TRUE)","v":1},{"$f":"VLOOKUP(OFFSET($B:$B,,MATCH(Z$4,$B$4:$F$4,0)-1),OFFSET('C. PoC Adj Factor Scoring'!$E$5:$J$282,,MATCH(Z$4,'C. PoC Adj Factor Scoring'!$E$3:$AH$3,0)-1),MATCH(Z$2&\" Score\",'C. PoC Adj Factor Scoring'!$E$4:$J$4,0),TRUE)","v":1},{"$f":"VLOOKUP(OFFSET($B:$B,,MATCH(AA$4,$B$4:$F$4,0)-1),OFFSET('C. PoC Adj Factor Scoring'!$E$5:$J$282,,MATCH(AA$4,'C. PoC Adj Factor Scoring'!$E$3:$AH$3,0)-1),MATCH(AA$2&\" Score\",'C. PoC Adj Factor Scoring'!$E$4:$J$4,0),TRUE)","v":3},{"$f":"VLOOKUP(OFFSET($B:$B,,MATCH(AB$4,$B$4:$F$4,0)-1),OFFSET('C. PoC Adj Factor Scoring'!$E$5:$J$282,,MATCH(AB$4,'C. PoC Adj Factor Scoring'!$E$3:$AH$3,0)-1),MATCH(AB$2&\" Score\",'C. PoC Adj Factor Scoring'!$E$4:$J$4,0),TRUE)","v":1},{"$f":"VLOOKUP(OFFSET($B:$B,,MATCH(AC$4,$B$4:$F$4,0)-1),OFFSET('C. PoC Adj Factor Scoring'!$E$5:$J$282,,MATCH(AC$4,'C. PoC Adj Factor Scoring'!$E$3:$AH$3,0)-1),MATCH(AC$2&\" Score\",'C. PoC Adj Factor Scoring'!$E$4:$J$4,0),TRUE)","v":1},{"$f":"VLOOKUP(OFFSET($B:$B,,MATCH(AD$4,$B$4:$F$4,0)-1),OFFSET('C. PoC Adj Factor Scoring'!$E$5:$J$282,,MATCH(AD$4,'C. PoC Adj Factor Scoring'!$E$3:$AH$3,0)-1),MATCH(AD$2&\" Score\",'C. PoC Adj Factor Scoring'!$E$4:$J$4,0),TRUE)","v":1},{"$f":"VLOOKUP(OFFSET($B:$B,,MATCH(AE$4,$B$4:$F$4,0)-1),OFFSET('C. PoC Adj Factor Scoring'!$E$5:$J$282,,MATCH(AE$4,'C. PoC Adj Factor Scoring'!$E$3:$AH$3,0)-1),MATCH(AE$2&\" Score\",'C. PoC Adj Factor Scoring'!$E$4:$J$4,0),TRUE)","v":1}]
[{"$f":"'A. Population Info'!A216","v":1000358026},{"$f":"'A. Population Info'!L216","v":"OIL"},{"$f":"'A. Population Info'!M216","v":0},{"$f":"'A. Population Info'!N216","v":0},{"$f":"'A. Population Info'!O216","v":0},{"$f":"'A. Population Info'!P216","v":0},{"$f":"VLOOKUP(OFFSET($B:$B,,MATCH(G$4,$B$4:$F$4,0)-1),OFFSET('C. PoC Adj Factor Scoring'!$E$5:$J$282,,MATCH(G$4,'C. PoC Adj Factor Scoring'!$E$3:$AH$3,0)-1),MATCH(G$2&\" Score\",'C. PoC Adj Factor Scoring'!$E$4:$J$4,0),TRUE)","v":4},{"$f":"VLOOKUP(OFFSET($B:$B,,MATCH(H$4,$B$4:$F$4,0)-1),OFFSET('C. PoC Adj Factor Scoring'!$E$5:$J$282,,MATCH(H$4,'C. PoC Adj Factor Scoring'!$E$3:$AH$3,0)-1),MATCH(H$2&\" Score\",'C. PoC Adj Factor Scoring'!$E$4:$J$4,0),TRUE)","v":1},{"$f":"VLOOKUP(OFFSET($B:$B,,MATCH(I$4,$B$4:$F$4,0)-1),OFFSET('C. PoC Adj Factor Scoring'!$E$5:$J$282,,MATCH(I$4,'C. PoC Adj Factor Scoring'!$E$3:$AH$3,0)-1),MATCH(I$2&\" Score\",'C. PoC Adj Factor Scoring'!$E$4:$J$4,0),TRUE)","v":1},{"$f":"VLOOKUP(OFFSET($B:$B,,MATCH(J$4,$B$4:$F$4,0)-1),OFFSET('C. PoC Adj Factor Scoring'!$E$5:$J$282,,MATCH(J$4,'C. PoC Adj Factor Scoring'!$E$3:$AH$3,0)-1),MATCH(J$2&\" Score\",'C. PoC Adj Factor Scoring'!$E$4:$J$4,0),TRUE)","v":1},{"$f":"VLOOKUP(OFFSET($B:$B,,MATCH(K$4,$B$4:$F$4,0)-1),OFFSET('C. PoC Adj Factor Scoring'!$E$5:$J$282,,MATCH(K$4,'C. PoC Adj Factor Scoring'!$E$3:$AH$3,0)-1),MATCH(K$2&\" Score\",'C. PoC Adj Factor Scoring'!$E$4:$J$4,0),TRUE)","v":1},{"$f":"VLOOKUP(OFFSET($B:$B,,MATCH(L$4,$B$4:$F$4,0)-1),OFFSET('C. PoC Adj Factor Scoring'!$E$5:$J$282,,MATCH(L$4,'C. PoC Adj Factor Scoring'!$E$3:$AH$3,0)-1),MATCH(L$2&\" Score\",'C. PoC Adj Factor Scoring'!$E$4:$J$4,0),TRUE)","v":1},{"$f":"VLOOKUP(OFFSET($B:$B,,MATCH(M$4,$B$4:$F$4,0)-1),OFFSET('C. PoC Adj Factor Scoring'!$E$5:$J$282,,MATCH(M$4,'C. PoC Adj Factor Scoring'!$E$3:$AH$3,0)-1),MATCH(M$2&\" Score\",'C. PoC Adj Factor Scoring'!$E$4:$J$4,0),TRUE)","v":1},{"$f":"VLOOKUP(OFFSET($B:$B,,MATCH(N$4,$B$4:$F$4,0)-1),OFFSET('C. PoC Adj Factor Scoring'!$E$5:$J$282,,MATCH(N$4,'C. PoC Adj Factor Scoring'!$E$3:$AH$3,0)-1),MATCH(N$2&\" Score\",'C. PoC Adj Factor Scoring'!$E$4:$J$4,0),TRUE)","v":1},{"$f":"VLOOKUP(OFFSET($B:$B,,MATCH(O$4,$B$4:$F$4,0)-1),OFFSET('C. PoC Adj Factor Scoring'!$E$5:$J$282,,MATCH(O$4,'C. PoC Adj Factor Scoring'!$E$3:$AH$3,0)-1),MATCH(O$2&\" Score\",'C. PoC Adj Factor Scoring'!$E$4:$J$4,0),TRUE)","v":1},{"$f":"VLOOKUP(OFFSET($B:$B,,MATCH(P$4,$B$4:$F$4,0)-1),OFFSET('C. PoC Adj Factor Scoring'!$E$5:$J$282,,MATCH(P$4,'C. PoC Adj Factor Scoring'!$E$3:$AH$3,0)-1),MATCH(P$2&\" Score\",'C. PoC Adj Factor Scoring'!$E$4:$J$4,0),TRUE)","v":1},{"$f":"VLOOKUP(OFFSET($B:$B,,MATCH(Q$4,$B$4:$F$4,0)-1),OFFSET('C. PoC Adj Factor Scoring'!$E$5:$J$282,,MATCH(Q$4,'C. PoC Adj Factor Scoring'!$E$3:$AH$3,0)-1),MATCH(Q$2&\" Score\",'C. PoC Adj Factor Scoring'!$E$4:$J$4,0),TRUE)","v":1},{"$f":"VLOOKUP(OFFSET($B:$B,,MATCH(R$4,$B$4:$F$4,0)-1),OFFSET('C. PoC Adj Factor Scoring'!$E$5:$J$282,,MATCH(R$4,'C. PoC Adj Factor Scoring'!$E$3:$AH$3,0)-1),MATCH(R$2&\" Score\",'C. PoC Adj Factor Scoring'!$E$4:$J$4,0),TRUE)","v":1},{"$f":"VLOOKUP(OFFSET($B:$B,,MATCH(S$4,$B$4:$F$4,0)-1),OFFSET('C. PoC Adj Factor Scoring'!$E$5:$J$282,,MATCH(S$4,'C. PoC Adj Factor Scoring'!$E$3:$AH$3,0)-1),MATCH(S$2&\" Score\",'C. PoC Adj Factor Scoring'!$E$4:$J$4,0),TRUE)","v":1},{"$f":"VLOOKUP(OFFSET($B:$B,,MATCH(T$4,$B$4:$F$4,0)-1),OFFSET('C. PoC Adj Factor Scoring'!$E$5:$J$282,,MATCH(T$4,'C. PoC Adj Factor Scoring'!$E$3:$AH$3,0)-1),MATCH(T$2&\" Score\",'C. PoC Adj Factor Scoring'!$E$4:$J$4,0),TRUE)","v":1},{"$f":"VLOOKUP(OFFSET($B:$B,,MATCH(U$4,$B$4:$F$4,0)-1),OFFSET('C. PoC Adj Factor Scoring'!$E$5:$J$282,,MATCH(U$4,'C. PoC Adj Factor Scoring'!$E$3:$AH$3,0)-1),MATCH(U$2&\" Score\",'C. PoC Adj Factor Scoring'!$E$4:$J$4,0),TRUE)","v":1},{"$f":"VLOOKUP(OFFSET($B:$B,,MATCH(V$4,$B$4:$F$4,0)-1),OFFSET('C. PoC Adj Factor Scoring'!$E$5:$J$282,,MATCH(V$4,'C. PoC Adj Factor Scoring'!$E$3:$AH$3,0)-1),MATCH(V$2&\" Score\",'C. PoC Adj Factor Scoring'!$E$4:$J$4,0),TRUE)","v":1},{"$f":"VLOOKUP(OFFSET($B:$B,,MATCH(W$4,$B$4:$F$4,0)-1),OFFSET('C. PoC Adj Factor Scoring'!$E$5:$J$282,,MATCH(W$4,'C. PoC Adj Factor Scoring'!$E$3:$AH$3,0)-1),MATCH(W$2&\" Score\",'C. PoC Adj Factor Scoring'!$E$4:$J$4,0),TRUE)","v":1},{"$f":"VLOOKUP(OFFSET($B:$B,,MATCH(X$4,$B$4:$F$4,0)-1),OFFSET('C. PoC Adj Factor Scoring'!$E$5:$J$282,,MATCH(X$4,'C. PoC Adj Factor Scoring'!$E$3:$AH$3,0)-1),MATCH(X$2&\" Score\",'C. PoC Adj Factor Scoring'!$E$4:$J$4,0),TRUE)","v":1},{"$f":"VLOOKUP(OFFSET($B:$B,,MATCH(Y$4,$B$4:$F$4,0)-1),OFFSET('C. PoC Adj Factor Scoring'!$E$5:$J$282,,MATCH(Y$4,'C. PoC Adj Factor Scoring'!$E$3:$AH$3,0)-1),MATCH(Y$2&\" Score\",'C. PoC Adj Factor Scoring'!$E$4:$J$4,0),TRUE)","v":1},{"$f":"VLOOKUP(OFFSET($B:$B,,MATCH(Z$4,$B$4:$F$4,0)-1),OFFSET('C. PoC Adj Factor Scoring'!$E$5:$J$282,,MATCH(Z$4,'C. PoC Adj Factor Scoring'!$E$3:$AH$3,0)-1),MATCH(Z$2&\" Score\",'C. PoC Adj Factor Scoring'!$E$4:$J$4,0),TRUE)","v":1},{"$f":"VLOOKUP(OFFSET($B:$B,,MATCH(AA$4,$B$4:$F$4,0)-1),OFFSET('C. PoC Adj Factor Scoring'!$E$5:$J$282,,MATCH(AA$4,'C. PoC Adj Factor Scoring'!$E$3:$AH$3,0)-1),MATCH(AA$2&\" Score\",'C. PoC Adj Factor Scoring'!$E$4:$J$4,0),TRUE)","v":3},{"$f":"VLOOKUP(OFFSET($B:$B,,MATCH(AB$4,$B$4:$F$4,0)-1),OFFSET('C. PoC Adj Factor Scoring'!$E$5:$J$282,,MATCH(AB$4,'C. PoC Adj Factor Scoring'!$E$3:$AH$3,0)-1),MATCH(AB$2&\" Score\",'C. PoC Adj Factor Scoring'!$E$4:$J$4,0),TRUE)","v":1},{"$f":"VLOOKUP(OFFSET($B:$B,,MATCH(AC$4,$B$4:$F$4,0)-1),OFFSET('C. PoC Adj Factor Scoring'!$E$5:$J$282,,MATCH(AC$4,'C. PoC Adj Factor Scoring'!$E$3:$AH$3,0)-1),MATCH(AC$2&\" Score\",'C. PoC Adj Factor Scoring'!$E$4:$J$4,0),TRUE)","v":1},{"$f":"VLOOKUP(OFFSET($B:$B,,MATCH(AD$4,$B$4:$F$4,0)-1),OFFSET('C. PoC Adj Factor Scoring'!$E$5:$J$282,,MATCH(AD$4,'C. PoC Adj Factor Scoring'!$E$3:$AH$3,0)-1),MATCH(AD$2&\" Score\",'C. PoC Adj Factor Scoring'!$E$4:$J$4,0),TRUE)","v":1},{"$f":"VLOOKUP(OFFSET($B:$B,,MATCH(AE$4,$B$4:$F$4,0)-1),OFFSET('C. PoC Adj Factor Scoring'!$E$5:$J$282,,MATCH(AE$4,'C. PoC Adj Factor Scoring'!$E$3:$AH$3,0)-1),MATCH(AE$2&\" Score\",'C. PoC Adj Factor Scoring'!$E$4:$J$4,0),TRUE)","v":1}]
[{"$f":"'A. Population Info'!A217","v":1000358056},{"$f":"'A. Population Info'!L217","v":"OIL"},{"$f":"'A. Population Info'!M217","v":0},{"$f":"'A. Population Info'!N217","v":0},{"$f":"'A. Population Info'!O217","v":0},{"$f":"'A. Population Info'!P217","v":0},{"$f":"VLOOKUP(OFFSET($B:$B,,MATCH(G$4,$B$4:$F$4,0)-1),OFFSET('C. PoC Adj Factor Scoring'!$E$5:$J$282,,MATCH(G$4,'C. PoC Adj Factor Scoring'!$E$3:$AH$3,0)-1),MATCH(G$2&\" Score\",'C. PoC Adj Factor Scoring'!$E$4:$J$4,0),TRUE)","v":4},{"$f":"VLOOKUP(OFFSET($B:$B,,MATCH(H$4,$B$4:$F$4,0)-1),OFFSET('C. PoC Adj Factor Scoring'!$E$5:$J$282,,MATCH(H$4,'C. PoC Adj Factor Scoring'!$E$3:$AH$3,0)-1),MATCH(H$2&\" Score\",'C. PoC Adj Factor Scoring'!$E$4:$J$4,0),TRUE)","v":1},{"$f":"VLOOKUP(OFFSET($B:$B,,MATCH(I$4,$B$4:$F$4,0)-1),OFFSET('C. PoC Adj Factor Scoring'!$E$5:$J$282,,MATCH(I$4,'C. PoC Adj Factor Scoring'!$E$3:$AH$3,0)-1),MATCH(I$2&\" Score\",'C. PoC Adj Factor Scoring'!$E$4:$J$4,0),TRUE)","v":1},{"$f":"VLOOKUP(OFFSET($B:$B,,MATCH(J$4,$B$4:$F$4,0)-1),OFFSET('C. PoC Adj Factor Scoring'!$E$5:$J$282,,MATCH(J$4,'C. PoC Adj Factor Scoring'!$E$3:$AH$3,0)-1),MATCH(J$2&\" Score\",'C. PoC Adj Factor Scoring'!$E$4:$J$4,0),TRUE)","v":1},{"$f":"VLOOKUP(OFFSET($B:$B,,MATCH(K$4,$B$4:$F$4,0)-1),OFFSET('C. PoC Adj Factor Scoring'!$E$5:$J$282,,MATCH(K$4,'C. PoC Adj Factor Scoring'!$E$3:$AH$3,0)-1),MATCH(K$2&\" Score\",'C. PoC Adj Factor Scoring'!$E$4:$J$4,0),TRUE)","v":1},{"$f":"VLOOKUP(OFFSET($B:$B,,MATCH(L$4,$B$4:$F$4,0)-1),OFFSET('C. PoC Adj Factor Scoring'!$E$5:$J$282,,MATCH(L$4,'C. PoC Adj Factor Scoring'!$E$3:$AH$3,0)-1),MATCH(L$2&\" Score\",'C. PoC Adj Factor Scoring'!$E$4:$J$4,0),TRUE)","v":1},{"$f":"VLOOKUP(OFFSET($B:$B,,MATCH(M$4,$B$4:$F$4,0)-1),OFFSET('C. PoC Adj Factor Scoring'!$E$5:$J$282,,MATCH(M$4,'C. PoC Adj Factor Scoring'!$E$3:$AH$3,0)-1),MATCH(M$2&\" Score\",'C. PoC Adj Factor Scoring'!$E$4:$J$4,0),TRUE)","v":1},{"$f":"VLOOKUP(OFFSET($B:$B,,MATCH(N$4,$B$4:$F$4,0)-1),OFFSET('C. PoC Adj Factor Scoring'!$E$5:$J$282,,MATCH(N$4,'C. PoC Adj Factor Scoring'!$E$3:$AH$3,0)-1),MATCH(N$2&\" Score\",'C. PoC Adj Factor Scoring'!$E$4:$J$4,0),TRUE)","v":1},{"$f":"VLOOKUP(OFFSET($B:$B,,MATCH(O$4,$B$4:$F$4,0)-1),OFFSET('C. PoC Adj Factor Scoring'!$E$5:$J$282,,MATCH(O$4,'C. PoC Adj Factor Scoring'!$E$3:$AH$3,0)-1),MATCH(O$2&\" Score\",'C. PoC Adj Factor Scoring'!$E$4:$J$4,0),TRUE)","v":1},{"$f":"VLOOKUP(OFFSET($B:$B,,MATCH(P$4,$B$4:$F$4,0)-1),OFFSET('C. PoC Adj Factor Scoring'!$E$5:$J$282,,MATCH(P$4,'C. PoC Adj Factor Scoring'!$E$3:$AH$3,0)-1),MATCH(P$2&\" Score\",'C. PoC Adj Factor Scoring'!$E$4:$J$4,0),TRUE)","v":1},{"$f":"VLOOKUP(OFFSET($B:$B,,MATCH(Q$4,$B$4:$F$4,0)-1),OFFSET('C. PoC Adj Factor Scoring'!$E$5:$J$282,,MATCH(Q$4,'C. PoC Adj Factor Scoring'!$E$3:$AH$3,0)-1),MATCH(Q$2&\" Score\",'C. PoC Adj Factor Scoring'!$E$4:$J$4,0),TRUE)","v":1},{"$f":"VLOOKUP(OFFSET($B:$B,,MATCH(R$4,$B$4:$F$4,0)-1),OFFSET('C. PoC Adj Factor Scoring'!$E$5:$J$282,,MATCH(R$4,'C. PoC Adj Factor Scoring'!$E$3:$AH$3,0)-1),MATCH(R$2&\" Score\",'C. PoC Adj Factor Scoring'!$E$4:$J$4,0),TRUE)","v":1},{"$f":"VLOOKUP(OFFSET($B:$B,,MATCH(S$4,$B$4:$F$4,0)-1),OFFSET('C. PoC Adj Factor Scoring'!$E$5:$J$282,,MATCH(S$4,'C. PoC Adj Factor Scoring'!$E$3:$AH$3,0)-1),MATCH(S$2&\" Score\",'C. PoC Adj Factor Scoring'!$E$4:$J$4,0),TRUE)","v":1},{"$f":"VLOOKUP(OFFSET($B:$B,,MATCH(T$4,$B$4:$F$4,0)-1),OFFSET('C. PoC Adj Factor Scoring'!$E$5:$J$282,,MATCH(T$4,'C. PoC Adj Factor Scoring'!$E$3:$AH$3,0)-1),MATCH(T$2&\" Score\",'C. PoC Adj Factor Scoring'!$E$4:$J$4,0),TRUE)","v":1},{"$f":"VLOOKUP(OFFSET($B:$B,,MATCH(U$4,$B$4:$F$4,0)-1),OFFSET('C. PoC Adj Factor Scoring'!$E$5:$J$282,,MATCH(U$4,'C. PoC Adj Factor Scoring'!$E$3:$AH$3,0)-1),MATCH(U$2&\" Score\",'C. PoC Adj Factor Scoring'!$E$4:$J$4,0),TRUE)","v":1},{"$f":"VLOOKUP(OFFSET($B:$B,,MATCH(V$4,$B$4:$F$4,0)-1),OFFSET('C. PoC Adj Factor Scoring'!$E$5:$J$282,,MATCH(V$4,'C. PoC Adj Factor Scoring'!$E$3:$AH$3,0)-1),MATCH(V$2&\" Score\",'C. PoC Adj Factor Scoring'!$E$4:$J$4,0),TRUE)","v":1},{"$f":"VLOOKUP(OFFSET($B:$B,,MATCH(W$4,$B$4:$F$4,0)-1),OFFSET('C. PoC Adj Factor Scoring'!$E$5:$J$282,,MATCH(W$4,'C. PoC Adj Factor Scoring'!$E$3:$AH$3,0)-1),MATCH(W$2&\" Score\",'C. PoC Adj Factor Scoring'!$E$4:$J$4,0),TRUE)","v":1},{"$f":"VLOOKUP(OFFSET($B:$B,,MATCH(X$4,$B$4:$F$4,0)-1),OFFSET('C. PoC Adj Factor Scoring'!$E$5:$J$282,,MATCH(X$4,'C. PoC Adj Factor Scoring'!$E$3:$AH$3,0)-1),MATCH(X$2&\" Score\",'C. PoC Adj Factor Scoring'!$E$4:$J$4,0),TRUE)","v":1},{"$f":"VLOOKUP(OFFSET($B:$B,,MATCH(Y$4,$B$4:$F$4,0)-1),OFFSET('C. PoC Adj Factor Scoring'!$E$5:$J$282,,MATCH(Y$4,'C. PoC Adj Factor Scoring'!$E$3:$AH$3,0)-1),MATCH(Y$2&\" Score\",'C. PoC Adj Factor Scoring'!$E$4:$J$4,0),TRUE)","v":1},{"$f":"VLOOKUP(OFFSET($B:$B,,MATCH(Z$4,$B$4:$F$4,0)-1),OFFSET('C. PoC Adj Factor Scoring'!$E$5:$J$282,,MATCH(Z$4,'C. PoC Adj Factor Scoring'!$E$3:$AH$3,0)-1),MATCH(Z$2&\" Score\",'C. PoC Adj Factor Scoring'!$E$4:$J$4,0),TRUE)","v":1},{"$f":"VLOOKUP(OFFSET($B:$B,,MATCH(AA$4,$B$4:$F$4,0)-1),OFFSET('C. PoC Adj Factor Scoring'!$E$5:$J$282,,MATCH(AA$4,'C. PoC Adj Factor Scoring'!$E$3:$AH$3,0)-1),MATCH(AA$2&\" Score\",'C. PoC Adj Factor Scoring'!$E$4:$J$4,0),TRUE)","v":3},{"$f":"VLOOKUP(OFFSET($B:$B,,MATCH(AB$4,$B$4:$F$4,0)-1),OFFSET('C. PoC Adj Factor Scoring'!$E$5:$J$282,,MATCH(AB$4,'C. PoC Adj Factor Scoring'!$E$3:$AH$3,0)-1),MATCH(AB$2&\" Score\",'C. PoC Adj Factor Scoring'!$E$4:$J$4,0),TRUE)","v":1},{"$f":"VLOOKUP(OFFSET($B:$B,,MATCH(AC$4,$B$4:$F$4,0)-1),OFFSET('C. PoC Adj Factor Scoring'!$E$5:$J$282,,MATCH(AC$4,'C. PoC Adj Factor Scoring'!$E$3:$AH$3,0)-1),MATCH(AC$2&\" Score\",'C. PoC Adj Factor Scoring'!$E$4:$J$4,0),TRUE)","v":1},{"$f":"VLOOKUP(OFFSET($B:$B,,MATCH(AD$4,$B$4:$F$4,0)-1),OFFSET('C. PoC Adj Factor Scoring'!$E$5:$J$282,,MATCH(AD$4,'C. PoC Adj Factor Scoring'!$E$3:$AH$3,0)-1),MATCH(AD$2&\" Score\",'C. PoC Adj Factor Scoring'!$E$4:$J$4,0),TRUE)","v":1},{"$f":"VLOOKUP(OFFSET($B:$B,,MATCH(AE$4,$B$4:$F$4,0)-1),OFFSET('C. PoC Adj Factor Scoring'!$E$5:$J$282,,MATCH(AE$4,'C. PoC Adj Factor Scoring'!$E$3:$AH$3,0)-1),MATCH(AE$2&\" Score\",'C. PoC Adj Factor Scoring'!$E$4:$J$4,0),TRUE)","v":1}]
[{"$f":"'A. Population Info'!A218","v":1000358084},{"$f":"'A. Population Info'!L218","v":"OIL"},{"$f":"'A. Population Info'!M218","v":0},{"$f":"'A. Population Info'!N218","v":0},{"$f":"'A. Population Info'!O218","v":0},{"$f":"'A. Population Info'!P218","v":0},{"$f":"VLOOKUP(OFFSET($B:$B,,MATCH(G$4,$B$4:$F$4,0)-1),OFFSET('C. PoC Adj Factor Scoring'!$E$5:$J$282,,MATCH(G$4,'C. PoC Adj Factor Scoring'!$E$3:$AH$3,0)-1),MATCH(G$2&\" Score\",'C. PoC Adj Factor Scoring'!$E$4:$J$4,0),TRUE)","v":4},{"$f":"VLOOKUP(OFFSET($B:$B,,MATCH(H$4,$B$4:$F$4,0)-1),OFFSET('C. PoC Adj Factor Scoring'!$E$5:$J$282,,MATCH(H$4,'C. PoC Adj Factor Scoring'!$E$3:$AH$3,0)-1),MATCH(H$2&\" Score\",'C. PoC Adj Factor Scoring'!$E$4:$J$4,0),TRUE)","v":1},{"$f":"VLOOKUP(OFFSET($B:$B,,MATCH(I$4,$B$4:$F$4,0)-1),OFFSET('C. PoC Adj Factor Scoring'!$E$5:$J$282,,MATCH(I$4,'C. PoC Adj Factor Scoring'!$E$3:$AH$3,0)-1),MATCH(I$2&\" Score\",'C. PoC Adj Factor Scoring'!$E$4:$J$4,0),TRUE)","v":1},{"$f":"VLOOKUP(OFFSET($B:$B,,MATCH(J$4,$B$4:$F$4,0)-1),OFFSET('C. PoC Adj Factor Scoring'!$E$5:$J$282,,MATCH(J$4,'C. PoC Adj Factor Scoring'!$E$3:$AH$3,0)-1),MATCH(J$2&\" Score\",'C. PoC Adj Factor Scoring'!$E$4:$J$4,0),TRUE)","v":1},{"$f":"VLOOKUP(OFFSET($B:$B,,MATCH(K$4,$B$4:$F$4,0)-1),OFFSET('C. PoC Adj Factor Scoring'!$E$5:$J$282,,MATCH(K$4,'C. PoC Adj Factor Scoring'!$E$3:$AH$3,0)-1),MATCH(K$2&\" Score\",'C. PoC Adj Factor Scoring'!$E$4:$J$4,0),TRUE)","v":1},{"$f":"VLOOKUP(OFFSET($B:$B,,MATCH(L$4,$B$4:$F$4,0)-1),OFFSET('C. PoC Adj Factor Scoring'!$E$5:$J$282,,MATCH(L$4,'C. PoC Adj Factor Scoring'!$E$3:$AH$3,0)-1),MATCH(L$2&\" Score\",'C. PoC Adj Factor Scoring'!$E$4:$J$4,0),TRUE)","v":1},{"$f":"VLOOKUP(OFFSET($B:$B,,MATCH(M$4,$B$4:$F$4,0)-1),OFFSET('C. PoC Adj Factor Scoring'!$E$5:$J$282,,MATCH(M$4,'C. PoC Adj Factor Scoring'!$E$3:$AH$3,0)-1),MATCH(M$2&\" Score\",'C. PoC Adj Factor Scoring'!$E$4:$J$4,0),TRUE)","v":1},{"$f":"VLOOKUP(OFFSET($B:$B,,MATCH(N$4,$B$4:$F$4,0)-1),OFFSET('C. PoC Adj Factor Scoring'!$E$5:$J$282,,MATCH(N$4,'C. PoC Adj Factor Scoring'!$E$3:$AH$3,0)-1),MATCH(N$2&\" Score\",'C. PoC Adj Factor Scoring'!$E$4:$J$4,0),TRUE)","v":1},{"$f":"VLOOKUP(OFFSET($B:$B,,MATCH(O$4,$B$4:$F$4,0)-1),OFFSET('C. PoC Adj Factor Scoring'!$E$5:$J$282,,MATCH(O$4,'C. PoC Adj Factor Scoring'!$E$3:$AH$3,0)-1),MATCH(O$2&\" Score\",'C. PoC Adj Factor Scoring'!$E$4:$J$4,0),TRUE)","v":1},{"$f":"VLOOKUP(OFFSET($B:$B,,MATCH(P$4,$B$4:$F$4,0)-1),OFFSET('C. PoC Adj Factor Scoring'!$E$5:$J$282,,MATCH(P$4,'C. PoC Adj Factor Scoring'!$E$3:$AH$3,0)-1),MATCH(P$2&\" Score\",'C. PoC Adj Factor Scoring'!$E$4:$J$4,0),TRUE)","v":1},{"$f":"VLOOKUP(OFFSET($B:$B,,MATCH(Q$4,$B$4:$F$4,0)-1),OFFSET('C. PoC Adj Factor Scoring'!$E$5:$J$282,,MATCH(Q$4,'C. PoC Adj Factor Scoring'!$E$3:$AH$3,0)-1),MATCH(Q$2&\" Score\",'C. PoC Adj Factor Scoring'!$E$4:$J$4,0),TRUE)","v":1},{"$f":"VLOOKUP(OFFSET($B:$B,,MATCH(R$4,$B$4:$F$4,0)-1),OFFSET('C. PoC Adj Factor Scoring'!$E$5:$J$282,,MATCH(R$4,'C. PoC Adj Factor Scoring'!$E$3:$AH$3,0)-1),MATCH(R$2&\" Score\",'C. PoC Adj Factor Scoring'!$E$4:$J$4,0),TRUE)","v":1},{"$f":"VLOOKUP(OFFSET($B:$B,,MATCH(S$4,$B$4:$F$4,0)-1),OFFSET('C. PoC Adj Factor Scoring'!$E$5:$J$282,,MATCH(S$4,'C. PoC Adj Factor Scoring'!$E$3:$AH$3,0)-1),MATCH(S$2&\" Score\",'C. PoC Adj Factor Scoring'!$E$4:$J$4,0),TRUE)","v":1},{"$f":"VLOOKUP(OFFSET($B:$B,,MATCH(T$4,$B$4:$F$4,0)-1),OFFSET('C. PoC Adj Factor Scoring'!$E$5:$J$282,,MATCH(T$4,'C. PoC Adj Factor Scoring'!$E$3:$AH$3,0)-1),MATCH(T$2&\" Score\",'C. PoC Adj Factor Scoring'!$E$4:$J$4,0),TRUE)","v":1},{"$f":"VLOOKUP(OFFSET($B:$B,,MATCH(U$4,$B$4:$F$4,0)-1),OFFSET('C. PoC Adj Factor Scoring'!$E$5:$J$282,,MATCH(U$4,'C. PoC Adj Factor Scoring'!$E$3:$AH$3,0)-1),MATCH(U$2&\" Score\",'C. PoC Adj Factor Scoring'!$E$4:$J$4,0),TRUE)","v":1},{"$f":"VLOOKUP(OFFSET($B:$B,,MATCH(V$4,$B$4:$F$4,0)-1),OFFSET('C. PoC Adj Factor Scoring'!$E$5:$J$282,,MATCH(V$4,'C. PoC Adj Factor Scoring'!$E$3:$AH$3,0)-1),MATCH(V$2&\" Score\",'C. PoC Adj Factor Scoring'!$E$4:$J$4,0),TRUE)","v":1},{"$f":"VLOOKUP(OFFSET($B:$B,,MATCH(W$4,$B$4:$F$4,0)-1),OFFSET('C. PoC Adj Factor Scoring'!$E$5:$J$282,,MATCH(W$4,'C. PoC Adj Factor Scoring'!$E$3:$AH$3,0)-1),MATCH(W$2&\" Score\",'C. PoC Adj Factor Scoring'!$E$4:$J$4,0),TRUE)","v":1},{"$f":"VLOOKUP(OFFSET($B:$B,,MATCH(X$4,$B$4:$F$4,0)-1),OFFSET('C. PoC Adj Factor Scoring'!$E$5:$J$282,,MATCH(X$4,'C. PoC Adj Factor Scoring'!$E$3:$AH$3,0)-1),MATCH(X$2&\" Score\",'C. PoC Adj Factor Scoring'!$E$4:$J$4,0),TRUE)","v":1},{"$f":"VLOOKUP(OFFSET($B:$B,,MATCH(Y$4,$B$4:$F$4,0)-1),OFFSET('C. PoC Adj Factor Scoring'!$E$5:$J$282,,MATCH(Y$4,'C. PoC Adj Factor Scoring'!$E$3:$AH$3,0)-1),MATCH(Y$2&\" Score\",'C. PoC Adj Factor Scoring'!$E$4:$J$4,0),TRUE)","v":1},{"$f":"VLOOKUP(OFFSET($B:$B,,MATCH(Z$4,$B$4:$F$4,0)-1),OFFSET('C. PoC Adj Factor Scoring'!$E$5:$J$282,,MATCH(Z$4,'C. PoC Adj Factor Scoring'!$E$3:$AH$3,0)-1),MATCH(Z$2&\" Score\",'C. PoC Adj Factor Scoring'!$E$4:$J$4,0),TRUE)","v":1},{"$f":"VLOOKUP(OFFSET($B:$B,,MATCH(AA$4,$B$4:$F$4,0)-1),OFFSET('C. PoC Adj Factor Scoring'!$E$5:$J$282,,MATCH(AA$4,'C. PoC Adj Factor Scoring'!$E$3:$AH$3,0)-1),MATCH(AA$2&\" Score\",'C. PoC Adj Factor Scoring'!$E$4:$J$4,0),TRUE)","v":3},{"$f":"VLOOKUP(OFFSET($B:$B,,MATCH(AB$4,$B$4:$F$4,0)-1),OFFSET('C. PoC Adj Factor Scoring'!$E$5:$J$282,,MATCH(AB$4,'C. PoC Adj Factor Scoring'!$E$3:$AH$3,0)-1),MATCH(AB$2&\" Score\",'C. PoC Adj Factor Scoring'!$E$4:$J$4,0),TRUE)","v":1},{"$f":"VLOOKUP(OFFSET($B:$B,,MATCH(AC$4,$B$4:$F$4,0)-1),OFFSET('C. PoC Adj Factor Scoring'!$E$5:$J$282,,MATCH(AC$4,'C. PoC Adj Factor Scoring'!$E$3:$AH$3,0)-1),MATCH(AC$2&\" Score\",'C. PoC Adj Factor Scoring'!$E$4:$J$4,0),TRUE)","v":1},{"$f":"VLOOKUP(OFFSET($B:$B,,MATCH(AD$4,$B$4:$F$4,0)-1),OFFSET('C. PoC Adj Factor Scoring'!$E$5:$J$282,,MATCH(AD$4,'C. PoC Adj Factor Scoring'!$E$3:$AH$3,0)-1),MATCH(AD$2&\" Score\",'C. PoC Adj Factor Scoring'!$E$4:$J$4,0),TRUE)","v":1},{"$f":"VLOOKUP(OFFSET($B:$B,,MATCH(AE$4,$B$4:$F$4,0)-1),OFFSET('C. PoC Adj Factor Scoring'!$E$5:$J$282,,MATCH(AE$4,'C. PoC Adj Factor Scoring'!$E$3:$AH$3,0)-1),MATCH(AE$2&\" Score\",'C. PoC Adj Factor Scoring'!$E$4:$J$4,0),TRUE)","v":1}]
[{"$f":"'A. Population Info'!A219","v":1000358116},{"$f":"'A. Population Info'!L219","v":"OIL"},{"$f":"'A. Population Info'!M219","v":0},{"$f":"'A. Population Info'!N219","v":0},{"$f":"'A. Population Info'!O219","v":0},{"$f":"'A. Population Info'!P219","v":0},{"$f":"VLOOKUP(OFFSET($B:$B,,MATCH(G$4,$B$4:$F$4,0)-1),OFFSET('C. PoC Adj Factor Scoring'!$E$5:$J$282,,MATCH(G$4,'C. PoC Adj Factor Scoring'!$E$3:$AH$3,0)-1),MATCH(G$2&\" Score\",'C. PoC Adj Factor Scoring'!$E$4:$J$4,0),TRUE)","v":4},{"$f":"VLOOKUP(OFFSET($B:$B,,MATCH(H$4,$B$4:$F$4,0)-1),OFFSET('C. PoC Adj Factor Scoring'!$E$5:$J$282,,MATCH(H$4,'C. PoC Adj Factor Scoring'!$E$3:$AH$3,0)-1),MATCH(H$2&\" Score\",'C. PoC Adj Factor Scoring'!$E$4:$J$4,0),TRUE)","v":1},{"$f":"VLOOKUP(OFFSET($B:$B,,MATCH(I$4,$B$4:$F$4,0)-1),OFFSET('C. PoC Adj Factor Scoring'!$E$5:$J$282,,MATCH(I$4,'C. PoC Adj Factor Scoring'!$E$3:$AH$3,0)-1),MATCH(I$2&\" Score\",'C. PoC Adj Factor Scoring'!$E$4:$J$4,0),TRUE)","v":1},{"$f":"VLOOKUP(OFFSET($B:$B,,MATCH(J$4,$B$4:$F$4,0)-1),OFFSET('C. PoC Adj Factor Scoring'!$E$5:$J$282,,MATCH(J$4,'C. PoC Adj Factor Scoring'!$E$3:$AH$3,0)-1),MATCH(J$2&\" Score\",'C. PoC Adj Factor Scoring'!$E$4:$J$4,0),TRUE)","v":1},{"$f":"VLOOKUP(OFFSET($B:$B,,MATCH(K$4,$B$4:$F$4,0)-1),OFFSET('C. PoC Adj Factor Scoring'!$E$5:$J$282,,MATCH(K$4,'C. PoC Adj Factor Scoring'!$E$3:$AH$3,0)-1),MATCH(K$2&\" Score\",'C. PoC Adj Factor Scoring'!$E$4:$J$4,0),TRUE)","v":1},{"$f":"VLOOKUP(OFFSET($B:$B,,MATCH(L$4,$B$4:$F$4,0)-1),OFFSET('C. PoC Adj Factor Scoring'!$E$5:$J$282,,MATCH(L$4,'C. PoC Adj Factor Scoring'!$E$3:$AH$3,0)-1),MATCH(L$2&\" Score\",'C. PoC Adj Factor Scoring'!$E$4:$J$4,0),TRUE)","v":1},{"$f":"VLOOKUP(OFFSET($B:$B,,MATCH(M$4,$B$4:$F$4,0)-1),OFFSET('C. PoC Adj Factor Scoring'!$E$5:$J$282,,MATCH(M$4,'C. PoC Adj Factor Scoring'!$E$3:$AH$3,0)-1),MATCH(M$2&\" Score\",'C. PoC Adj Factor Scoring'!$E$4:$J$4,0),TRUE)","v":1},{"$f":"VLOOKUP(OFFSET($B:$B,,MATCH(N$4,$B$4:$F$4,0)-1),OFFSET('C. PoC Adj Factor Scoring'!$E$5:$J$282,,MATCH(N$4,'C. PoC Adj Factor Scoring'!$E$3:$AH$3,0)-1),MATCH(N$2&\" Score\",'C. PoC Adj Factor Scoring'!$E$4:$J$4,0),TRUE)","v":1},{"$f":"VLOOKUP(OFFSET($B:$B,,MATCH(O$4,$B$4:$F$4,0)-1),OFFSET('C. PoC Adj Factor Scoring'!$E$5:$J$282,,MATCH(O$4,'C. PoC Adj Factor Scoring'!$E$3:$AH$3,0)-1),MATCH(O$2&\" Score\",'C. PoC Adj Factor Scoring'!$E$4:$J$4,0),TRUE)","v":1},{"$f":"VLOOKUP(OFFSET($B:$B,,MATCH(P$4,$B$4:$F$4,0)-1),OFFSET('C. PoC Adj Factor Scoring'!$E$5:$J$282,,MATCH(P$4,'C. PoC Adj Factor Scoring'!$E$3:$AH$3,0)-1),MATCH(P$2&\" Score\",'C. PoC Adj Factor Scoring'!$E$4:$J$4,0),TRUE)","v":1},{"$f":"VLOOKUP(OFFSET($B:$B,,MATCH(Q$4,$B$4:$F$4,0)-1),OFFSET('C. PoC Adj Factor Scoring'!$E$5:$J$282,,MATCH(Q$4,'C. PoC Adj Factor Scoring'!$E$3:$AH$3,0)-1),MATCH(Q$2&\" Score\",'C. PoC Adj Factor Scoring'!$E$4:$J$4,0),TRUE)","v":1},{"$f":"VLOOKUP(OFFSET($B:$B,,MATCH(R$4,$B$4:$F$4,0)-1),OFFSET('C. PoC Adj Factor Scoring'!$E$5:$J$282,,MATCH(R$4,'C. PoC Adj Factor Scoring'!$E$3:$AH$3,0)-1),MATCH(R$2&\" Score\",'C. PoC Adj Factor Scoring'!$E$4:$J$4,0),TRUE)","v":1},{"$f":"VLOOKUP(OFFSET($B:$B,,MATCH(S$4,$B$4:$F$4,0)-1),OFFSET('C. PoC Adj Factor Scoring'!$E$5:$J$282,,MATCH(S$4,'C. PoC Adj Factor Scoring'!$E$3:$AH$3,0)-1),MATCH(S$2&\" Score\",'C. PoC Adj Factor Scoring'!$E$4:$J$4,0),TRUE)","v":1},{"$f":"VLOOKUP(OFFSET($B:$B,,MATCH(T$4,$B$4:$F$4,0)-1),OFFSET('C. PoC Adj Factor Scoring'!$E$5:$J$282,,MATCH(T$4,'C. PoC Adj Factor Scoring'!$E$3:$AH$3,0)-1),MATCH(T$2&\" Score\",'C. PoC Adj Factor Scoring'!$E$4:$J$4,0),TRUE)","v":1},{"$f":"VLOOKUP(OFFSET($B:$B,,MATCH(U$4,$B$4:$F$4,0)-1),OFFSET('C. PoC Adj Factor Scoring'!$E$5:$J$282,,MATCH(U$4,'C. PoC Adj Factor Scoring'!$E$3:$AH$3,0)-1),MATCH(U$2&\" Score\",'C. PoC Adj Factor Scoring'!$E$4:$J$4,0),TRUE)","v":1},{"$f":"VLOOKUP(OFFSET($B:$B,,MATCH(V$4,$B$4:$F$4,0)-1),OFFSET('C. PoC Adj Factor Scoring'!$E$5:$J$282,,MATCH(V$4,'C. PoC Adj Factor Scoring'!$E$3:$AH$3,0)-1),MATCH(V$2&\" Score\",'C. PoC Adj Factor Scoring'!$E$4:$J$4,0),TRUE)","v":1},{"$f":"VLOOKUP(OFFSET($B:$B,,MATCH(W$4,$B$4:$F$4,0)-1),OFFSET('C. PoC Adj Factor Scoring'!$E$5:$J$282,,MATCH(W$4,'C. PoC Adj Factor Scoring'!$E$3:$AH$3,0)-1),MATCH(W$2&\" Score\",'C. PoC Adj Factor Scoring'!$E$4:$J$4,0),TRUE)","v":1},{"$f":"VLOOKUP(OFFSET($B:$B,,MATCH(X$4,$B$4:$F$4,0)-1),OFFSET('C. PoC Adj Factor Scoring'!$E$5:$J$282,,MATCH(X$4,'C. PoC Adj Factor Scoring'!$E$3:$AH$3,0)-1),MATCH(X$2&\" Score\",'C. PoC Adj Factor Scoring'!$E$4:$J$4,0),TRUE)","v":1},{"$f":"VLOOKUP(OFFSET($B:$B,,MATCH(Y$4,$B$4:$F$4,0)-1),OFFSET('C. PoC Adj Factor Scoring'!$E$5:$J$282,,MATCH(Y$4,'C. PoC Adj Factor Scoring'!$E$3:$AH$3,0)-1),MATCH(Y$2&\" Score\",'C. PoC Adj Factor Scoring'!$E$4:$J$4,0),TRUE)","v":1},{"$f":"VLOOKUP(OFFSET($B:$B,,MATCH(Z$4,$B$4:$F$4,0)-1),OFFSET('C. PoC Adj Factor Scoring'!$E$5:$J$282,,MATCH(Z$4,'C. PoC Adj Factor Scoring'!$E$3:$AH$3,0)-1),MATCH(Z$2&\" Score\",'C. PoC Adj Factor Scoring'!$E$4:$J$4,0),TRUE)","v":1},{"$f":"VLOOKUP(OFFSET($B:$B,,MATCH(AA$4,$B$4:$F$4,0)-1),OFFSET('C. PoC Adj Factor Scoring'!$E$5:$J$282,,MATCH(AA$4,'C. PoC Adj Factor Scoring'!$E$3:$AH$3,0)-1),MATCH(AA$2&\" Score\",'C. PoC Adj Factor Scoring'!$E$4:$J$4,0),TRUE)","v":3},{"$f":"VLOOKUP(OFFSET($B:$B,,MATCH(AB$4,$B$4:$F$4,0)-1),OFFSET('C. PoC Adj Factor Scoring'!$E$5:$J$282,,MATCH(AB$4,'C. PoC Adj Factor Scoring'!$E$3:$AH$3,0)-1),MATCH(AB$2&\" Score\",'C. PoC Adj Factor Scoring'!$E$4:$J$4,0),TRUE)","v":1},{"$f":"VLOOKUP(OFFSET($B:$B,,MATCH(AC$4,$B$4:$F$4,0)-1),OFFSET('C. PoC Adj Factor Scoring'!$E$5:$J$282,,MATCH(AC$4,'C. PoC Adj Factor Scoring'!$E$3:$AH$3,0)-1),MATCH(AC$2&\" Score\",'C. PoC Adj Factor Scoring'!$E$4:$J$4,0),TRUE)","v":1},{"$f":"VLOOKUP(OFFSET($B:$B,,MATCH(AD$4,$B$4:$F$4,0)-1),OFFSET('C. PoC Adj Factor Scoring'!$E$5:$J$282,,MATCH(AD$4,'C. PoC Adj Factor Scoring'!$E$3:$AH$3,0)-1),MATCH(AD$2&\" Score\",'C. PoC Adj Factor Scoring'!$E$4:$J$4,0),TRUE)","v":1},{"$f":"VLOOKUP(OFFSET($B:$B,,MATCH(AE$4,$B$4:$F$4,0)-1),OFFSET('C. PoC Adj Factor Scoring'!$E$5:$J$282,,MATCH(AE$4,'C. PoC Adj Factor Scoring'!$E$3:$AH$3,0)-1),MATCH(AE$2&\" Score\",'C. PoC Adj Factor Scoring'!$E$4:$J$4,0),TRUE)","v":1}]
[{"$f":"'A. Population Info'!A220","v":1000358149},{"$f":"'A. Population Info'!L220","v":"OIL"},{"$f":"'A. Population Info'!M220","v":0},{"$f":"'A. Population Info'!N220","v":0},{"$f":"'A. Population Info'!O220","v":0},{"$f":"'A. Population Info'!P220","v":0},{"$f":"VLOOKUP(OFFSET($B:$B,,MATCH(G$4,$B$4:$F$4,0)-1),OFFSET('C. PoC Adj Factor Scoring'!$E$5:$J$282,,MATCH(G$4,'C. PoC Adj Factor Scoring'!$E$3:$AH$3,0)-1),MATCH(G$2&\" Score\",'C. PoC Adj Factor Scoring'!$E$4:$J$4,0),TRUE)","v":4},{"$f":"VLOOKUP(OFFSET($B:$B,,MATCH(H$4,$B$4:$F$4,0)-1),OFFSET('C. PoC Adj Factor Scoring'!$E$5:$J$282,,MATCH(H$4,'C. PoC Adj Factor Scoring'!$E$3:$AH$3,0)-1),MATCH(H$2&\" Score\",'C. PoC Adj Factor Scoring'!$E$4:$J$4,0),TRUE)","v":1},{"$f":"VLOOKUP(OFFSET($B:$B,,MATCH(I$4,$B$4:$F$4,0)-1),OFFSET('C. PoC Adj Factor Scoring'!$E$5:$J$282,,MATCH(I$4,'C. PoC Adj Factor Scoring'!$E$3:$AH$3,0)-1),MATCH(I$2&\" Score\",'C. PoC Adj Factor Scoring'!$E$4:$J$4,0),TRUE)","v":1},{"$f":"VLOOKUP(OFFSET($B:$B,,MATCH(J$4,$B$4:$F$4,0)-1),OFFSET('C. PoC Adj Factor Scoring'!$E$5:$J$282,,MATCH(J$4,'C. PoC Adj Factor Scoring'!$E$3:$AH$3,0)-1),MATCH(J$2&\" Score\",'C. PoC Adj Factor Scoring'!$E$4:$J$4,0),TRUE)","v":1},{"$f":"VLOOKUP(OFFSET($B:$B,,MATCH(K$4,$B$4:$F$4,0)-1),OFFSET('C. PoC Adj Factor Scoring'!$E$5:$J$282,,MATCH(K$4,'C. PoC Adj Factor Scoring'!$E$3:$AH$3,0)-1),MATCH(K$2&\" Score\",'C. PoC Adj Factor Scoring'!$E$4:$J$4,0),TRUE)","v":1},{"$f":"VLOOKUP(OFFSET($B:$B,,MATCH(L$4,$B$4:$F$4,0)-1),OFFSET('C. PoC Adj Factor Scoring'!$E$5:$J$282,,MATCH(L$4,'C. PoC Adj Factor Scoring'!$E$3:$AH$3,0)-1),MATCH(L$2&\" Score\",'C. PoC Adj Factor Scoring'!$E$4:$J$4,0),TRUE)","v":1},{"$f":"VLOOKUP(OFFSET($B:$B,,MATCH(M$4,$B$4:$F$4,0)-1),OFFSET('C. PoC Adj Factor Scoring'!$E$5:$J$282,,MATCH(M$4,'C. PoC Adj Factor Scoring'!$E$3:$AH$3,0)-1),MATCH(M$2&\" Score\",'C. PoC Adj Factor Scoring'!$E$4:$J$4,0),TRUE)","v":1},{"$f":"VLOOKUP(OFFSET($B:$B,,MATCH(N$4,$B$4:$F$4,0)-1),OFFSET('C. PoC Adj Factor Scoring'!$E$5:$J$282,,MATCH(N$4,'C. PoC Adj Factor Scoring'!$E$3:$AH$3,0)-1),MATCH(N$2&\" Score\",'C. PoC Adj Factor Scoring'!$E$4:$J$4,0),TRUE)","v":1},{"$f":"VLOOKUP(OFFSET($B:$B,,MATCH(O$4,$B$4:$F$4,0)-1),OFFSET('C. PoC Adj Factor Scoring'!$E$5:$J$282,,MATCH(O$4,'C. PoC Adj Factor Scoring'!$E$3:$AH$3,0)-1),MATCH(O$2&\" Score\",'C. PoC Adj Factor Scoring'!$E$4:$J$4,0),TRUE)","v":1},{"$f":"VLOOKUP(OFFSET($B:$B,,MATCH(P$4,$B$4:$F$4,0)-1),OFFSET('C. PoC Adj Factor Scoring'!$E$5:$J$282,,MATCH(P$4,'C. PoC Adj Factor Scoring'!$E$3:$AH$3,0)-1),MATCH(P$2&\" Score\",'C. PoC Adj Factor Scoring'!$E$4:$J$4,0),TRUE)","v":1},{"$f":"VLOOKUP(OFFSET($B:$B,,MATCH(Q$4,$B$4:$F$4,0)-1),OFFSET('C. PoC Adj Factor Scoring'!$E$5:$J$282,,MATCH(Q$4,'C. PoC Adj Factor Scoring'!$E$3:$AH$3,0)-1),MATCH(Q$2&\" Score\",'C. PoC Adj Factor Scoring'!$E$4:$J$4,0),TRUE)","v":1},{"$f":"VLOOKUP(OFFSET($B:$B,,MATCH(R$4,$B$4:$F$4,0)-1),OFFSET('C. PoC Adj Factor Scoring'!$E$5:$J$282,,MATCH(R$4,'C. PoC Adj Factor Scoring'!$E$3:$AH$3,0)-1),MATCH(R$2&\" Score\",'C. PoC Adj Factor Scoring'!$E$4:$J$4,0),TRUE)","v":1},{"$f":"VLOOKUP(OFFSET($B:$B,,MATCH(S$4,$B$4:$F$4,0)-1),OFFSET('C. PoC Adj Factor Scoring'!$E$5:$J$282,,MATCH(S$4,'C. PoC Adj Factor Scoring'!$E$3:$AH$3,0)-1),MATCH(S$2&\" Score\",'C. PoC Adj Factor Scoring'!$E$4:$J$4,0),TRUE)","v":1},{"$f":"VLOOKUP(OFFSET($B:$B,,MATCH(T$4,$B$4:$F$4,0)-1),OFFSET('C. PoC Adj Factor Scoring'!$E$5:$J$282,,MATCH(T$4,'C. PoC Adj Factor Scoring'!$E$3:$AH$3,0)-1),MATCH(T$2&\" Score\",'C. PoC Adj Factor Scoring'!$E$4:$J$4,0),TRUE)","v":1},{"$f":"VLOOKUP(OFFSET($B:$B,,MATCH(U$4,$B$4:$F$4,0)-1),OFFSET('C. PoC Adj Factor Scoring'!$E$5:$J$282,,MATCH(U$4,'C. PoC Adj Factor Scoring'!$E$3:$AH$3,0)-1),MATCH(U$2&\" Score\",'C. PoC Adj Factor Scoring'!$E$4:$J$4,0),TRUE)","v":1},{"$f":"VLOOKUP(OFFSET($B:$B,,MATCH(V$4,$B$4:$F$4,0)-1),OFFSET('C. PoC Adj Factor Scoring'!$E$5:$J$282,,MATCH(V$4,'C. PoC Adj Factor Scoring'!$E$3:$AH$3,0)-1),MATCH(V$2&\" Score\",'C. PoC Adj Factor Scoring'!$E$4:$J$4,0),TRUE)","v":1},{"$f":"VLOOKUP(OFFSET($B:$B,,MATCH(W$4,$B$4:$F$4,0)-1),OFFSET('C. PoC Adj Factor Scoring'!$E$5:$J$282,,MATCH(W$4,'C. PoC Adj Factor Scoring'!$E$3:$AH$3,0)-1),MATCH(W$2&\" Score\",'C. PoC Adj Factor Scoring'!$E$4:$J$4,0),TRUE)","v":1},{"$f":"VLOOKUP(OFFSET($B:$B,,MATCH(X$4,$B$4:$F$4,0)-1),OFFSET('C. PoC Adj Factor Scoring'!$E$5:$J$282,,MATCH(X$4,'C. PoC Adj Factor Scoring'!$E$3:$AH$3,0)-1),MATCH(X$2&\" Score\",'C. PoC Adj Factor Scoring'!$E$4:$J$4,0),TRUE)","v":1},{"$f":"VLOOKUP(OFFSET($B:$B,,MATCH(Y$4,$B$4:$F$4,0)-1),OFFSET('C. PoC Adj Factor Scoring'!$E$5:$J$282,,MATCH(Y$4,'C. PoC Adj Factor Scoring'!$E$3:$AH$3,0)-1),MATCH(Y$2&\" Score\",'C. PoC Adj Factor Scoring'!$E$4:$J$4,0),TRUE)","v":1},{"$f":"VLOOKUP(OFFSET($B:$B,,MATCH(Z$4,$B$4:$F$4,0)-1),OFFSET('C. PoC Adj Factor Scoring'!$E$5:$J$282,,MATCH(Z$4,'C. PoC Adj Factor Scoring'!$E$3:$AH$3,0)-1),MATCH(Z$2&\" Score\",'C. PoC Adj Factor Scoring'!$E$4:$J$4,0),TRUE)","v":1},{"$f":"VLOOKUP(OFFSET($B:$B,,MATCH(AA$4,$B$4:$F$4,0)-1),OFFSET('C. PoC Adj Factor Scoring'!$E$5:$J$282,,MATCH(AA$4,'C. PoC Adj Factor Scoring'!$E$3:$AH$3,0)-1),MATCH(AA$2&\" Score\",'C. PoC Adj Factor Scoring'!$E$4:$J$4,0),TRUE)","v":3},{"$f":"VLOOKUP(OFFSET($B:$B,,MATCH(AB$4,$B$4:$F$4,0)-1),OFFSET('C. PoC Adj Factor Scoring'!$E$5:$J$282,,MATCH(AB$4,'C. PoC Adj Factor Scoring'!$E$3:$AH$3,0)-1),MATCH(AB$2&\" Score\",'C. PoC Adj Factor Scoring'!$E$4:$J$4,0),TRUE)","v":1},{"$f":"VLOOKUP(OFFSET($B:$B,,MATCH(AC$4,$B$4:$F$4,0)-1),OFFSET('C. PoC Adj Factor Scoring'!$E$5:$J$282,,MATCH(AC$4,'C. PoC Adj Factor Scoring'!$E$3:$AH$3,0)-1),MATCH(AC$2&\" Score\",'C. PoC Adj Factor Scoring'!$E$4:$J$4,0),TRUE)","v":1},{"$f":"VLOOKUP(OFFSET($B:$B,,MATCH(AD$4,$B$4:$F$4,0)-1),OFFSET('C. PoC Adj Factor Scoring'!$E$5:$J$282,,MATCH(AD$4,'C. PoC Adj Factor Scoring'!$E$3:$AH$3,0)-1),MATCH(AD$2&\" Score\",'C. PoC Adj Factor Scoring'!$E$4:$J$4,0),TRUE)","v":1},{"$f":"VLOOKUP(OFFSET($B:$B,,MATCH(AE$4,$B$4:$F$4,0)-1),OFFSET('C. PoC Adj Factor Scoring'!$E$5:$J$282,,MATCH(AE$4,'C. PoC Adj Factor Scoring'!$E$3:$AH$3,0)-1),MATCH(AE$2&\" Score\",'C. PoC Adj Factor Scoring'!$E$4:$J$4,0),TRUE)","v":1}]
[{"$f":"'A. Population Info'!A221","v":1000358181},{"$f":"'A. Population Info'!L221","v":"OIL"},{"$f":"'A. Population Info'!M221","v":0},{"$f":"'A. Population Info'!N221","v":0},{"$f":"'A. Population Info'!O221","v":0},{"$f":"'A. Population Info'!P221","v":0},{"$f":"VLOOKUP(OFFSET($B:$B,,MATCH(G$4,$B$4:$F$4,0)-1),OFFSET('C. PoC Adj Factor Scoring'!$E$5:$J$282,,MATCH(G$4,'C. PoC Adj Factor Scoring'!$E$3:$AH$3,0)-1),MATCH(G$2&\" Score\",'C. PoC Adj Factor Scoring'!$E$4:$J$4,0),TRUE)","v":4},{"$f":"VLOOKUP(OFFSET($B:$B,,MATCH(H$4,$B$4:$F$4,0)-1),OFFSET('C. PoC Adj Factor Scoring'!$E$5:$J$282,,MATCH(H$4,'C. PoC Adj Factor Scoring'!$E$3:$AH$3,0)-1),MATCH(H$2&\" Score\",'C. PoC Adj Factor Scoring'!$E$4:$J$4,0),TRUE)","v":1},{"$f":"VLOOKUP(OFFSET($B:$B,,MATCH(I$4,$B$4:$F$4,0)-1),OFFSET('C. PoC Adj Factor Scoring'!$E$5:$J$282,,MATCH(I$4,'C. PoC Adj Factor Scoring'!$E$3:$AH$3,0)-1),MATCH(I$2&\" Score\",'C. PoC Adj Factor Scoring'!$E$4:$J$4,0),TRUE)","v":1},{"$f":"VLOOKUP(OFFSET($B:$B,,MATCH(J$4,$B$4:$F$4,0)-1),OFFSET('C. PoC Adj Factor Scoring'!$E$5:$J$282,,MATCH(J$4,'C. PoC Adj Factor Scoring'!$E$3:$AH$3,0)-1),MATCH(J$2&\" Score\",'C. PoC Adj Factor Scoring'!$E$4:$J$4,0),TRUE)","v":1},{"$f":"VLOOKUP(OFFSET($B:$B,,MATCH(K$4,$B$4:$F$4,0)-1),OFFSET('C. PoC Adj Factor Scoring'!$E$5:$J$282,,MATCH(K$4,'C. PoC Adj Factor Scoring'!$E$3:$AH$3,0)-1),MATCH(K$2&\" Score\",'C. PoC Adj Factor Scoring'!$E$4:$J$4,0),TRUE)","v":1},{"$f":"VLOOKUP(OFFSET($B:$B,,MATCH(L$4,$B$4:$F$4,0)-1),OFFSET('C. PoC Adj Factor Scoring'!$E$5:$J$282,,MATCH(L$4,'C. PoC Adj Factor Scoring'!$E$3:$AH$3,0)-1),MATCH(L$2&\" Score\",'C. PoC Adj Factor Scoring'!$E$4:$J$4,0),TRUE)","v":1},{"$f":"VLOOKUP(OFFSET($B:$B,,MATCH(M$4,$B$4:$F$4,0)-1),OFFSET('C. PoC Adj Factor Scoring'!$E$5:$J$282,,MATCH(M$4,'C. PoC Adj Factor Scoring'!$E$3:$AH$3,0)-1),MATCH(M$2&\" Score\",'C. PoC Adj Factor Scoring'!$E$4:$J$4,0),TRUE)","v":1},{"$f":"VLOOKUP(OFFSET($B:$B,,MATCH(N$4,$B$4:$F$4,0)-1),OFFSET('C. PoC Adj Factor Scoring'!$E$5:$J$282,,MATCH(N$4,'C. PoC Adj Factor Scoring'!$E$3:$AH$3,0)-1),MATCH(N$2&\" Score\",'C. PoC Adj Factor Scoring'!$E$4:$J$4,0),TRUE)","v":1},{"$f":"VLOOKUP(OFFSET($B:$B,,MATCH(O$4,$B$4:$F$4,0)-1),OFFSET('C. PoC Adj Factor Scoring'!$E$5:$J$282,,MATCH(O$4,'C. PoC Adj Factor Scoring'!$E$3:$AH$3,0)-1),MATCH(O$2&\" Score\",'C. PoC Adj Factor Scoring'!$E$4:$J$4,0),TRUE)","v":1},{"$f":"VLOOKUP(OFFSET($B:$B,,MATCH(P$4,$B$4:$F$4,0)-1),OFFSET('C. PoC Adj Factor Scoring'!$E$5:$J$282,,MATCH(P$4,'C. PoC Adj Factor Scoring'!$E$3:$AH$3,0)-1),MATCH(P$2&\" Score\",'C. PoC Adj Factor Scoring'!$E$4:$J$4,0),TRUE)","v":1},{"$f":"VLOOKUP(OFFSET($B:$B,,MATCH(Q$4,$B$4:$F$4,0)-1),OFFSET('C. PoC Adj Factor Scoring'!$E$5:$J$282,,MATCH(Q$4,'C. PoC Adj Factor Scoring'!$E$3:$AH$3,0)-1),MATCH(Q$2&\" Score\",'C. PoC Adj Factor Scoring'!$E$4:$J$4,0),TRUE)","v":1},{"$f":"VLOOKUP(OFFSET($B:$B,,MATCH(R$4,$B$4:$F$4,0)-1),OFFSET('C. PoC Adj Factor Scoring'!$E$5:$J$282,,MATCH(R$4,'C. PoC Adj Factor Scoring'!$E$3:$AH$3,0)-1),MATCH(R$2&\" Score\",'C. PoC Adj Factor Scoring'!$E$4:$J$4,0),TRUE)","v":1},{"$f":"VLOOKUP(OFFSET($B:$B,,MATCH(S$4,$B$4:$F$4,0)-1),OFFSET('C. PoC Adj Factor Scoring'!$E$5:$J$282,,MATCH(S$4,'C. PoC Adj Factor Scoring'!$E$3:$AH$3,0)-1),MATCH(S$2&\" Score\",'C. PoC Adj Factor Scoring'!$E$4:$J$4,0),TRUE)","v":1},{"$f":"VLOOKUP(OFFSET($B:$B,,MATCH(T$4,$B$4:$F$4,0)-1),OFFSET('C. PoC Adj Factor Scoring'!$E$5:$J$282,,MATCH(T$4,'C. PoC Adj Factor Scoring'!$E$3:$AH$3,0)-1),MATCH(T$2&\" Score\",'C. PoC Adj Factor Scoring'!$E$4:$J$4,0),TRUE)","v":1},{"$f":"VLOOKUP(OFFSET($B:$B,,MATCH(U$4,$B$4:$F$4,0)-1),OFFSET('C. PoC Adj Factor Scoring'!$E$5:$J$282,,MATCH(U$4,'C. PoC Adj Factor Scoring'!$E$3:$AH$3,0)-1),MATCH(U$2&\" Score\",'C. PoC Adj Factor Scoring'!$E$4:$J$4,0),TRUE)","v":1},{"$f":"VLOOKUP(OFFSET($B:$B,,MATCH(V$4,$B$4:$F$4,0)-1),OFFSET('C. PoC Adj Factor Scoring'!$E$5:$J$282,,MATCH(V$4,'C. PoC Adj Factor Scoring'!$E$3:$AH$3,0)-1),MATCH(V$2&\" Score\",'C. PoC Adj Factor Scoring'!$E$4:$J$4,0),TRUE)","v":1},{"$f":"VLOOKUP(OFFSET($B:$B,,MATCH(W$4,$B$4:$F$4,0)-1),OFFSET('C. PoC Adj Factor Scoring'!$E$5:$J$282,,MATCH(W$4,'C. PoC Adj Factor Scoring'!$E$3:$AH$3,0)-1),MATCH(W$2&\" Score\",'C. PoC Adj Factor Scoring'!$E$4:$J$4,0),TRUE)","v":1},{"$f":"VLOOKUP(OFFSET($B:$B,,MATCH(X$4,$B$4:$F$4,0)-1),OFFSET('C. PoC Adj Factor Scoring'!$E$5:$J$282,,MATCH(X$4,'C. PoC Adj Factor Scoring'!$E$3:$AH$3,0)-1),MATCH(X$2&\" Score\",'C. PoC Adj Factor Scoring'!$E$4:$J$4,0),TRUE)","v":1},{"$f":"VLOOKUP(OFFSET($B:$B,,MATCH(Y$4,$B$4:$F$4,0)-1),OFFSET('C. PoC Adj Factor Scoring'!$E$5:$J$282,,MATCH(Y$4,'C. PoC Adj Factor Scoring'!$E$3:$AH$3,0)-1),MATCH(Y$2&\" Score\",'C. PoC Adj Factor Scoring'!$E$4:$J$4,0),TRUE)","v":1},{"$f":"VLOOKUP(OFFSET($B:$B,,MATCH(Z$4,$B$4:$F$4,0)-1),OFFSET('C. PoC Adj Factor Scoring'!$E$5:$J$282,,MATCH(Z$4,'C. PoC Adj Factor Scoring'!$E$3:$AH$3,0)-1),MATCH(Z$2&\" Score\",'C. PoC Adj Factor Scoring'!$E$4:$J$4,0),TRUE)","v":1},{"$f":"VLOOKUP(OFFSET($B:$B,,MATCH(AA$4,$B$4:$F$4,0)-1),OFFSET('C. PoC Adj Factor Scoring'!$E$5:$J$282,,MATCH(AA$4,'C. PoC Adj Factor Scoring'!$E$3:$AH$3,0)-1),MATCH(AA$2&\" Score\",'C. PoC Adj Factor Scoring'!$E$4:$J$4,0),TRUE)","v":3},{"$f":"VLOOKUP(OFFSET($B:$B,,MATCH(AB$4,$B$4:$F$4,0)-1),OFFSET('C. PoC Adj Factor Scoring'!$E$5:$J$282,,MATCH(AB$4,'C. PoC Adj Factor Scoring'!$E$3:$AH$3,0)-1),MATCH(AB$2&\" Score\",'C. PoC Adj Factor Scoring'!$E$4:$J$4,0),TRUE)","v":1},{"$f":"VLOOKUP(OFFSET($B:$B,,MATCH(AC$4,$B$4:$F$4,0)-1),OFFSET('C. PoC Adj Factor Scoring'!$E$5:$J$282,,MATCH(AC$4,'C. PoC Adj Factor Scoring'!$E$3:$AH$3,0)-1),MATCH(AC$2&\" Score\",'C. PoC Adj Factor Scoring'!$E$4:$J$4,0),TRUE)","v":1},{"$f":"VLOOKUP(OFFSET($B:$B,,MATCH(AD$4,$B$4:$F$4,0)-1),OFFSET('C. PoC Adj Factor Scoring'!$E$5:$J$282,,MATCH(AD$4,'C. PoC Adj Factor Scoring'!$E$3:$AH$3,0)-1),MATCH(AD$2&\" Score\",'C. PoC Adj Factor Scoring'!$E$4:$J$4,0),TRUE)","v":1},{"$f":"VLOOKUP(OFFSET($B:$B,,MATCH(AE$4,$B$4:$F$4,0)-1),OFFSET('C. PoC Adj Factor Scoring'!$E$5:$J$282,,MATCH(AE$4,'C. PoC Adj Factor Scoring'!$E$3:$AH$3,0)-1),MATCH(AE$2&\" Score\",'C. PoC Adj Factor Scoring'!$E$4:$J$4,0),TRUE)","v":1}]
[{"$f":"'A. Population Info'!A222","v":1000358266},{"$f":"'A. Population Info'!L222","v":"OIL"},{"$f":"'A. Population Info'!M222","v":0},{"$f":"'A. Population Info'!N222","v":0},{"$f":"'A. Population Info'!O222","v":0},{"$f":"'A. Population Info'!P222","v":0},{"$f":"VLOOKUP(OFFSET($B:$B,,MATCH(G$4,$B$4:$F$4,0)-1),OFFSET('C. PoC Adj Factor Scoring'!$E$5:$J$282,,MATCH(G$4,'C. PoC Adj Factor Scoring'!$E$3:$AH$3,0)-1),MATCH(G$2&\" Score\",'C. PoC Adj Factor Scoring'!$E$4:$J$4,0),TRUE)","v":4},{"$f":"VLOOKUP(OFFSET($B:$B,,MATCH(H$4,$B$4:$F$4,0)-1),OFFSET('C. PoC Adj Factor Scoring'!$E$5:$J$282,,MATCH(H$4,'C. PoC Adj Factor Scoring'!$E$3:$AH$3,0)-1),MATCH(H$2&\" Score\",'C. PoC Adj Factor Scoring'!$E$4:$J$4,0),TRUE)","v":1},{"$f":"VLOOKUP(OFFSET($B:$B,,MATCH(I$4,$B$4:$F$4,0)-1),OFFSET('C. PoC Adj Factor Scoring'!$E$5:$J$282,,MATCH(I$4,'C. PoC Adj Factor Scoring'!$E$3:$AH$3,0)-1),MATCH(I$2&\" Score\",'C. PoC Adj Factor Scoring'!$E$4:$J$4,0),TRUE)","v":1},{"$f":"VLOOKUP(OFFSET($B:$B,,MATCH(J$4,$B$4:$F$4,0)-1),OFFSET('C. PoC Adj Factor Scoring'!$E$5:$J$282,,MATCH(J$4,'C. PoC Adj Factor Scoring'!$E$3:$AH$3,0)-1),MATCH(J$2&\" Score\",'C. PoC Adj Factor Scoring'!$E$4:$J$4,0),TRUE)","v":1},{"$f":"VLOOKUP(OFFSET($B:$B,,MATCH(K$4,$B$4:$F$4,0)-1),OFFSET('C. PoC Adj Factor Scoring'!$E$5:$J$282,,MATCH(K$4,'C. PoC Adj Factor Scoring'!$E$3:$AH$3,0)-1),MATCH(K$2&\" Score\",'C. PoC Adj Factor Scoring'!$E$4:$J$4,0),TRUE)","v":1},{"$f":"VLOOKUP(OFFSET($B:$B,,MATCH(L$4,$B$4:$F$4,0)-1),OFFSET('C. PoC Adj Factor Scoring'!$E$5:$J$282,,MATCH(L$4,'C. PoC Adj Factor Scoring'!$E$3:$AH$3,0)-1),MATCH(L$2&\" Score\",'C. PoC Adj Factor Scoring'!$E$4:$J$4,0),TRUE)","v":1},{"$f":"VLOOKUP(OFFSET($B:$B,,MATCH(M$4,$B$4:$F$4,0)-1),OFFSET('C. PoC Adj Factor Scoring'!$E$5:$J$282,,MATCH(M$4,'C. PoC Adj Factor Scoring'!$E$3:$AH$3,0)-1),MATCH(M$2&\" Score\",'C. PoC Adj Factor Scoring'!$E$4:$J$4,0),TRUE)","v":1},{"$f":"VLOOKUP(OFFSET($B:$B,,MATCH(N$4,$B$4:$F$4,0)-1),OFFSET('C. PoC Adj Factor Scoring'!$E$5:$J$282,,MATCH(N$4,'C. PoC Adj Factor Scoring'!$E$3:$AH$3,0)-1),MATCH(N$2&\" Score\",'C. PoC Adj Factor Scoring'!$E$4:$J$4,0),TRUE)","v":1},{"$f":"VLOOKUP(OFFSET($B:$B,,MATCH(O$4,$B$4:$F$4,0)-1),OFFSET('C. PoC Adj Factor Scoring'!$E$5:$J$282,,MATCH(O$4,'C. PoC Adj Factor Scoring'!$E$3:$AH$3,0)-1),MATCH(O$2&\" Score\",'C. PoC Adj Factor Scoring'!$E$4:$J$4,0),TRUE)","v":1},{"$f":"VLOOKUP(OFFSET($B:$B,,MATCH(P$4,$B$4:$F$4,0)-1),OFFSET('C. PoC Adj Factor Scoring'!$E$5:$J$282,,MATCH(P$4,'C. PoC Adj Factor Scoring'!$E$3:$AH$3,0)-1),MATCH(P$2&\" Score\",'C. PoC Adj Factor Scoring'!$E$4:$J$4,0),TRUE)","v":1},{"$f":"VLOOKUP(OFFSET($B:$B,,MATCH(Q$4,$B$4:$F$4,0)-1),OFFSET('C. PoC Adj Factor Scoring'!$E$5:$J$282,,MATCH(Q$4,'C. PoC Adj Factor Scoring'!$E$3:$AH$3,0)-1),MATCH(Q$2&\" Score\",'C. PoC Adj Factor Scoring'!$E$4:$J$4,0),TRUE)","v":1},{"$f":"VLOOKUP(OFFSET($B:$B,,MATCH(R$4,$B$4:$F$4,0)-1),OFFSET('C. PoC Adj Factor Scoring'!$E$5:$J$282,,MATCH(R$4,'C. PoC Adj Factor Scoring'!$E$3:$AH$3,0)-1),MATCH(R$2&\" Score\",'C. PoC Adj Factor Scoring'!$E$4:$J$4,0),TRUE)","v":1},{"$f":"VLOOKUP(OFFSET($B:$B,,MATCH(S$4,$B$4:$F$4,0)-1),OFFSET('C. PoC Adj Factor Scoring'!$E$5:$J$282,,MATCH(S$4,'C. PoC Adj Factor Scoring'!$E$3:$AH$3,0)-1),MATCH(S$2&\" Score\",'C. PoC Adj Factor Scoring'!$E$4:$J$4,0),TRUE)","v":1},{"$f":"VLOOKUP(OFFSET($B:$B,,MATCH(T$4,$B$4:$F$4,0)-1),OFFSET('C. PoC Adj Factor Scoring'!$E$5:$J$282,,MATCH(T$4,'C. PoC Adj Factor Scoring'!$E$3:$AH$3,0)-1),MATCH(T$2&\" Score\",'C. PoC Adj Factor Scoring'!$E$4:$J$4,0),TRUE)","v":1},{"$f":"VLOOKUP(OFFSET($B:$B,,MATCH(U$4,$B$4:$F$4,0)-1),OFFSET('C. PoC Adj Factor Scoring'!$E$5:$J$282,,MATCH(U$4,'C. PoC Adj Factor Scoring'!$E$3:$AH$3,0)-1),MATCH(U$2&\" Score\",'C. PoC Adj Factor Scoring'!$E$4:$J$4,0),TRUE)","v":1},{"$f":"VLOOKUP(OFFSET($B:$B,,MATCH(V$4,$B$4:$F$4,0)-1),OFFSET('C. PoC Adj Factor Scoring'!$E$5:$J$282,,MATCH(V$4,'C. PoC Adj Factor Scoring'!$E$3:$AH$3,0)-1),MATCH(V$2&\" Score\",'C. PoC Adj Factor Scoring'!$E$4:$J$4,0),TRUE)","v":1},{"$f":"VLOOKUP(OFFSET($B:$B,,MATCH(W$4,$B$4:$F$4,0)-1),OFFSET('C. PoC Adj Factor Scoring'!$E$5:$J$282,,MATCH(W$4,'C. PoC Adj Factor Scoring'!$E$3:$AH$3,0)-1),MATCH(W$2&\" Score\",'C. PoC Adj Factor Scoring'!$E$4:$J$4,0),TRUE)","v":1},{"$f":"VLOOKUP(OFFSET($B:$B,,MATCH(X$4,$B$4:$F$4,0)-1),OFFSET('C. PoC Adj Factor Scoring'!$E$5:$J$282,,MATCH(X$4,'C. PoC Adj Factor Scoring'!$E$3:$AH$3,0)-1),MATCH(X$2&\" Score\",'C. PoC Adj Factor Scoring'!$E$4:$J$4,0),TRUE)","v":1},{"$f":"VLOOKUP(OFFSET($B:$B,,MATCH(Y$4,$B$4:$F$4,0)-1),OFFSET('C. PoC Adj Factor Scoring'!$E$5:$J$282,,MATCH(Y$4,'C. PoC Adj Factor Scoring'!$E$3:$AH$3,0)-1),MATCH(Y$2&\" Score\",'C. PoC Adj Factor Scoring'!$E$4:$J$4,0),TRUE)","v":1},{"$f":"VLOOKUP(OFFSET($B:$B,,MATCH(Z$4,$B$4:$F$4,0)-1),OFFSET('C. PoC Adj Factor Scoring'!$E$5:$J$282,,MATCH(Z$4,'C. PoC Adj Factor Scoring'!$E$3:$AH$3,0)-1),MATCH(Z$2&\" Score\",'C. PoC Adj Factor Scoring'!$E$4:$J$4,0),TRUE)","v":1},{"$f":"VLOOKUP(OFFSET($B:$B,,MATCH(AA$4,$B$4:$F$4,0)-1),OFFSET('C. PoC Adj Factor Scoring'!$E$5:$J$282,,MATCH(AA$4,'C. PoC Adj Factor Scoring'!$E$3:$AH$3,0)-1),MATCH(AA$2&\" Score\",'C. PoC Adj Factor Scoring'!$E$4:$J$4,0),TRUE)","v":3},{"$f":"VLOOKUP(OFFSET($B:$B,,MATCH(AB$4,$B$4:$F$4,0)-1),OFFSET('C. PoC Adj Factor Scoring'!$E$5:$J$282,,MATCH(AB$4,'C. PoC Adj Factor Scoring'!$E$3:$AH$3,0)-1),MATCH(AB$2&\" Score\",'C. PoC Adj Factor Scoring'!$E$4:$J$4,0),TRUE)","v":1},{"$f":"VLOOKUP(OFFSET($B:$B,,MATCH(AC$4,$B$4:$F$4,0)-1),OFFSET('C. PoC Adj Factor Scoring'!$E$5:$J$282,,MATCH(AC$4,'C. PoC Adj Factor Scoring'!$E$3:$AH$3,0)-1),MATCH(AC$2&\" Score\",'C. PoC Adj Factor Scoring'!$E$4:$J$4,0),TRUE)","v":1},{"$f":"VLOOKUP(OFFSET($B:$B,,MATCH(AD$4,$B$4:$F$4,0)-1),OFFSET('C. PoC Adj Factor Scoring'!$E$5:$J$282,,MATCH(AD$4,'C. PoC Adj Factor Scoring'!$E$3:$AH$3,0)-1),MATCH(AD$2&\" Score\",'C. PoC Adj Factor Scoring'!$E$4:$J$4,0),TRUE)","v":1},{"$f":"VLOOKUP(OFFSET($B:$B,,MATCH(AE$4,$B$4:$F$4,0)-1),OFFSET('C. PoC Adj Factor Scoring'!$E$5:$J$282,,MATCH(AE$4,'C. PoC Adj Factor Scoring'!$E$3:$AH$3,0)-1),MATCH(AE$2&\" Score\",'C. PoC Adj Factor Scoring'!$E$4:$J$4,0),TRUE)","v":1}]
[{"$f":"'A. Population Info'!A223","v":1000358298},{"$f":"'A. Population Info'!L223","v":"OIL"},{"$f":"'A. Population Info'!M223","v":0},{"$f":"'A. Population Info'!N223","v":0},{"$f":"'A. Population Info'!O223","v":0},{"$f":"'A. Population Info'!P223","v":0},{"$f":"VLOOKUP(OFFSET($B:$B,,MATCH(G$4,$B$4:$F$4,0)-1),OFFSET('C. PoC Adj Factor Scoring'!$E$5:$J$282,,MATCH(G$4,'C. PoC Adj Factor Scoring'!$E$3:$AH$3,0)-1),MATCH(G$2&\" Score\",'C. PoC Adj Factor Scoring'!$E$4:$J$4,0),TRUE)","v":4},{"$f":"VLOOKUP(OFFSET($B:$B,,MATCH(H$4,$B$4:$F$4,0)-1),OFFSET('C. PoC Adj Factor Scoring'!$E$5:$J$282,,MATCH(H$4,'C. PoC Adj Factor Scoring'!$E$3:$AH$3,0)-1),MATCH(H$2&\" Score\",'C. PoC Adj Factor Scoring'!$E$4:$J$4,0),TRUE)","v":1},{"$f":"VLOOKUP(OFFSET($B:$B,,MATCH(I$4,$B$4:$F$4,0)-1),OFFSET('C. PoC Adj Factor Scoring'!$E$5:$J$282,,MATCH(I$4,'C. PoC Adj Factor Scoring'!$E$3:$AH$3,0)-1),MATCH(I$2&\" Score\",'C. PoC Adj Factor Scoring'!$E$4:$J$4,0),TRUE)","v":1},{"$f":"VLOOKUP(OFFSET($B:$B,,MATCH(J$4,$B$4:$F$4,0)-1),OFFSET('C. PoC Adj Factor Scoring'!$E$5:$J$282,,MATCH(J$4,'C. PoC Adj Factor Scoring'!$E$3:$AH$3,0)-1),MATCH(J$2&\" Score\",'C. PoC Adj Factor Scoring'!$E$4:$J$4,0),TRUE)","v":1},{"$f":"VLOOKUP(OFFSET($B:$B,,MATCH(K$4,$B$4:$F$4,0)-1),OFFSET('C. PoC Adj Factor Scoring'!$E$5:$J$282,,MATCH(K$4,'C. PoC Adj Factor Scoring'!$E$3:$AH$3,0)-1),MATCH(K$2&\" Score\",'C. PoC Adj Factor Scoring'!$E$4:$J$4,0),TRUE)","v":1},{"$f":"VLOOKUP(OFFSET($B:$B,,MATCH(L$4,$B$4:$F$4,0)-1),OFFSET('C. PoC Adj Factor Scoring'!$E$5:$J$282,,MATCH(L$4,'C. PoC Adj Factor Scoring'!$E$3:$AH$3,0)-1),MATCH(L$2&\" Score\",'C. PoC Adj Factor Scoring'!$E$4:$J$4,0),TRUE)","v":1},{"$f":"VLOOKUP(OFFSET($B:$B,,MATCH(M$4,$B$4:$F$4,0)-1),OFFSET('C. PoC Adj Factor Scoring'!$E$5:$J$282,,MATCH(M$4,'C. PoC Adj Factor Scoring'!$E$3:$AH$3,0)-1),MATCH(M$2&\" Score\",'C. PoC Adj Factor Scoring'!$E$4:$J$4,0),TRUE)","v":1},{"$f":"VLOOKUP(OFFSET($B:$B,,MATCH(N$4,$B$4:$F$4,0)-1),OFFSET('C. PoC Adj Factor Scoring'!$E$5:$J$282,,MATCH(N$4,'C. PoC Adj Factor Scoring'!$E$3:$AH$3,0)-1),MATCH(N$2&\" Score\",'C. PoC Adj Factor Scoring'!$E$4:$J$4,0),TRUE)","v":1},{"$f":"VLOOKUP(OFFSET($B:$B,,MATCH(O$4,$B$4:$F$4,0)-1),OFFSET('C. PoC Adj Factor Scoring'!$E$5:$J$282,,MATCH(O$4,'C. PoC Adj Factor Scoring'!$E$3:$AH$3,0)-1),MATCH(O$2&\" Score\",'C. PoC Adj Factor Scoring'!$E$4:$J$4,0),TRUE)","v":1},{"$f":"VLOOKUP(OFFSET($B:$B,,MATCH(P$4,$B$4:$F$4,0)-1),OFFSET('C. PoC Adj Factor Scoring'!$E$5:$J$282,,MATCH(P$4,'C. PoC Adj Factor Scoring'!$E$3:$AH$3,0)-1),MATCH(P$2&\" Score\",'C. PoC Adj Factor Scoring'!$E$4:$J$4,0),TRUE)","v":1},{"$f":"VLOOKUP(OFFSET($B:$B,,MATCH(Q$4,$B$4:$F$4,0)-1),OFFSET('C. PoC Adj Factor Scoring'!$E$5:$J$282,,MATCH(Q$4,'C. PoC Adj Factor Scoring'!$E$3:$AH$3,0)-1),MATCH(Q$2&\" Score\",'C. PoC Adj Factor Scoring'!$E$4:$J$4,0),TRUE)","v":1},{"$f":"VLOOKUP(OFFSET($B:$B,,MATCH(R$4,$B$4:$F$4,0)-1),OFFSET('C. PoC Adj Factor Scoring'!$E$5:$J$282,,MATCH(R$4,'C. PoC Adj Factor Scoring'!$E$3:$AH$3,0)-1),MATCH(R$2&\" Score\",'C. PoC Adj Factor Scoring'!$E$4:$J$4,0),TRUE)","v":1},{"$f":"VLOOKUP(OFFSET($B:$B,,MATCH(S$4,$B$4:$F$4,0)-1),OFFSET('C. PoC Adj Factor Scoring'!$E$5:$J$282,,MATCH(S$4,'C. PoC Adj Factor Scoring'!$E$3:$AH$3,0)-1),MATCH(S$2&\" Score\",'C. PoC Adj Factor Scoring'!$E$4:$J$4,0),TRUE)","v":1},{"$f":"VLOOKUP(OFFSET($B:$B,,MATCH(T$4,$B$4:$F$4,0)-1),OFFSET('C. PoC Adj Factor Scoring'!$E$5:$J$282,,MATCH(T$4,'C. PoC Adj Factor Scoring'!$E$3:$AH$3,0)-1),MATCH(T$2&\" Score\",'C. PoC Adj Factor Scoring'!$E$4:$J$4,0),TRUE)","v":1},{"$f":"VLOOKUP(OFFSET($B:$B,,MATCH(U$4,$B$4:$F$4,0)-1),OFFSET('C. PoC Adj Factor Scoring'!$E$5:$J$282,,MATCH(U$4,'C. PoC Adj Factor Scoring'!$E$3:$AH$3,0)-1),MATCH(U$2&\" Score\",'C. PoC Adj Factor Scoring'!$E$4:$J$4,0),TRUE)","v":1},{"$f":"VLOOKUP(OFFSET($B:$B,,MATCH(V$4,$B$4:$F$4,0)-1),OFFSET('C. PoC Adj Factor Scoring'!$E$5:$J$282,,MATCH(V$4,'C. PoC Adj Factor Scoring'!$E$3:$AH$3,0)-1),MATCH(V$2&\" Score\",'C. PoC Adj Factor Scoring'!$E$4:$J$4,0),TRUE)","v":1},{"$f":"VLOOKUP(OFFSET($B:$B,,MATCH(W$4,$B$4:$F$4,0)-1),OFFSET('C. PoC Adj Factor Scoring'!$E$5:$J$282,,MATCH(W$4,'C. PoC Adj Factor Scoring'!$E$3:$AH$3,0)-1),MATCH(W$2&\" Score\",'C. PoC Adj Factor Scoring'!$E$4:$J$4,0),TRUE)","v":1},{"$f":"VLOOKUP(OFFSET($B:$B,,MATCH(X$4,$B$4:$F$4,0)-1),OFFSET('C. PoC Adj Factor Scoring'!$E$5:$J$282,,MATCH(X$4,'C. PoC Adj Factor Scoring'!$E$3:$AH$3,0)-1),MATCH(X$2&\" Score\",'C. PoC Adj Factor Scoring'!$E$4:$J$4,0),TRUE)","v":1},{"$f":"VLOOKUP(OFFSET($B:$B,,MATCH(Y$4,$B$4:$F$4,0)-1),OFFSET('C. PoC Adj Factor Scoring'!$E$5:$J$282,,MATCH(Y$4,'C. PoC Adj Factor Scoring'!$E$3:$AH$3,0)-1),MATCH(Y$2&\" Score\",'C. PoC Adj Factor Scoring'!$E$4:$J$4,0),TRUE)","v":1},{"$f":"VLOOKUP(OFFSET($B:$B,,MATCH(Z$4,$B$4:$F$4,0)-1),OFFSET('C. PoC Adj Factor Scoring'!$E$5:$J$282,,MATCH(Z$4,'C. PoC Adj Factor Scoring'!$E$3:$AH$3,0)-1),MATCH(Z$2&\" Score\",'C. PoC Adj Factor Scoring'!$E$4:$J$4,0),TRUE)","v":1},{"$f":"VLOOKUP(OFFSET($B:$B,,MATCH(AA$4,$B$4:$F$4,0)-1),OFFSET('C. PoC Adj Factor Scoring'!$E$5:$J$282,,MATCH(AA$4,'C. PoC Adj Factor Scoring'!$E$3:$AH$3,0)-1),MATCH(AA$2&\" Score\",'C. PoC Adj Factor Scoring'!$E$4:$J$4,0),TRUE)","v":3},{"$f":"VLOOKUP(OFFSET($B:$B,,MATCH(AB$4,$B$4:$F$4,0)-1),OFFSET('C. PoC Adj Factor Scoring'!$E$5:$J$282,,MATCH(AB$4,'C. PoC Adj Factor Scoring'!$E$3:$AH$3,0)-1),MATCH(AB$2&\" Score\",'C. PoC Adj Factor Scoring'!$E$4:$J$4,0),TRUE)","v":1},{"$f":"VLOOKUP(OFFSET($B:$B,,MATCH(AC$4,$B$4:$F$4,0)-1),OFFSET('C. PoC Adj Factor Scoring'!$E$5:$J$282,,MATCH(AC$4,'C. PoC Adj Factor Scoring'!$E$3:$AH$3,0)-1),MATCH(AC$2&\" Score\",'C. PoC Adj Factor Scoring'!$E$4:$J$4,0),TRUE)","v":1},{"$f":"VLOOKUP(OFFSET($B:$B,,MATCH(AD$4,$B$4:$F$4,0)-1),OFFSET('C. PoC Adj Factor Scoring'!$E$5:$J$282,,MATCH(AD$4,'C. PoC Adj Factor Scoring'!$E$3:$AH$3,0)-1),MATCH(AD$2&\" Score\",'C. PoC Adj Factor Scoring'!$E$4:$J$4,0),TRUE)","v":1},{"$f":"VLOOKUP(OFFSET($B:$B,,MATCH(AE$4,$B$4:$F$4,0)-1),OFFSET('C. PoC Adj Factor Scoring'!$E$5:$J$282,,MATCH(AE$4,'C. PoC Adj Factor Scoring'!$E$3:$AH$3,0)-1),MATCH(AE$2&\" Score\",'C. PoC Adj Factor Scoring'!$E$4:$J$4,0),TRUE)","v":1}]
[{"$f":"'A. Population Info'!A224","v":1000358360},{"$f":"'A. Population Info'!L224","v":"OIL"},{"$f":"'A. Population Info'!M224","v":0},{"$f":"'A. Population Info'!N224","v":0},{"$f":"'A. Population Info'!O224","v":0},{"$f":"'A. Population Info'!P224","v":0},{"$f":"VLOOKUP(OFFSET($B:$B,,MATCH(G$4,$B$4:$F$4,0)-1),OFFSET('C. PoC Adj Factor Scoring'!$E$5:$J$282,,MATCH(G$4,'C. PoC Adj Factor Scoring'!$E$3:$AH$3,0)-1),MATCH(G$2&\" Score\",'C. PoC Adj Factor Scoring'!$E$4:$J$4,0),TRUE)","v":4},{"$f":"VLOOKUP(OFFSET($B:$B,,MATCH(H$4,$B$4:$F$4,0)-1),OFFSET('C. PoC Adj Factor Scoring'!$E$5:$J$282,,MATCH(H$4,'C. PoC Adj Factor Scoring'!$E$3:$AH$3,0)-1),MATCH(H$2&\" Score\",'C. PoC Adj Factor Scoring'!$E$4:$J$4,0),TRUE)","v":1},{"$f":"VLOOKUP(OFFSET($B:$B,,MATCH(I$4,$B$4:$F$4,0)-1),OFFSET('C. PoC Adj Factor Scoring'!$E$5:$J$282,,MATCH(I$4,'C. PoC Adj Factor Scoring'!$E$3:$AH$3,0)-1),MATCH(I$2&\" Score\",'C. PoC Adj Factor Scoring'!$E$4:$J$4,0),TRUE)","v":1},{"$f":"VLOOKUP(OFFSET($B:$B,,MATCH(J$4,$B$4:$F$4,0)-1),OFFSET('C. PoC Adj Factor Scoring'!$E$5:$J$282,,MATCH(J$4,'C. PoC Adj Factor Scoring'!$E$3:$AH$3,0)-1),MATCH(J$2&\" Score\",'C. PoC Adj Factor Scoring'!$E$4:$J$4,0),TRUE)","v":1},{"$f":"VLOOKUP(OFFSET($B:$B,,MATCH(K$4,$B$4:$F$4,0)-1),OFFSET('C. PoC Adj Factor Scoring'!$E$5:$J$282,,MATCH(K$4,'C. PoC Adj Factor Scoring'!$E$3:$AH$3,0)-1),MATCH(K$2&\" Score\",'C. PoC Adj Factor Scoring'!$E$4:$J$4,0),TRUE)","v":1},{"$f":"VLOOKUP(OFFSET($B:$B,,MATCH(L$4,$B$4:$F$4,0)-1),OFFSET('C. PoC Adj Factor Scoring'!$E$5:$J$282,,MATCH(L$4,'C. PoC Adj Factor Scoring'!$E$3:$AH$3,0)-1),MATCH(L$2&\" Score\",'C. PoC Adj Factor Scoring'!$E$4:$J$4,0),TRUE)","v":1},{"$f":"VLOOKUP(OFFSET($B:$B,,MATCH(M$4,$B$4:$F$4,0)-1),OFFSET('C. PoC Adj Factor Scoring'!$E$5:$J$282,,MATCH(M$4,'C. PoC Adj Factor Scoring'!$E$3:$AH$3,0)-1),MATCH(M$2&\" Score\",'C. PoC Adj Factor Scoring'!$E$4:$J$4,0),TRUE)","v":1},{"$f":"VLOOKUP(OFFSET($B:$B,,MATCH(N$4,$B$4:$F$4,0)-1),OFFSET('C. PoC Adj Factor Scoring'!$E$5:$J$282,,MATCH(N$4,'C. PoC Adj Factor Scoring'!$E$3:$AH$3,0)-1),MATCH(N$2&\" Score\",'C. PoC Adj Factor Scoring'!$E$4:$J$4,0),TRUE)","v":1},{"$f":"VLOOKUP(OFFSET($B:$B,,MATCH(O$4,$B$4:$F$4,0)-1),OFFSET('C. PoC Adj Factor Scoring'!$E$5:$J$282,,MATCH(O$4,'C. PoC Adj Factor Scoring'!$E$3:$AH$3,0)-1),MATCH(O$2&\" Score\",'C. PoC Adj Factor Scoring'!$E$4:$J$4,0),TRUE)","v":1},{"$f":"VLOOKUP(OFFSET($B:$B,,MATCH(P$4,$B$4:$F$4,0)-1),OFFSET('C. PoC Adj Factor Scoring'!$E$5:$J$282,,MATCH(P$4,'C. PoC Adj Factor Scoring'!$E$3:$AH$3,0)-1),MATCH(P$2&\" Score\",'C. PoC Adj Factor Scoring'!$E$4:$J$4,0),TRUE)","v":1},{"$f":"VLOOKUP(OFFSET($B:$B,,MATCH(Q$4,$B$4:$F$4,0)-1),OFFSET('C. PoC Adj Factor Scoring'!$E$5:$J$282,,MATCH(Q$4,'C. PoC Adj Factor Scoring'!$E$3:$AH$3,0)-1),MATCH(Q$2&\" Score\",'C. PoC Adj Factor Scoring'!$E$4:$J$4,0),TRUE)","v":1},{"$f":"VLOOKUP(OFFSET($B:$B,,MATCH(R$4,$B$4:$F$4,0)-1),OFFSET('C. PoC Adj Factor Scoring'!$E$5:$J$282,,MATCH(R$4,'C. PoC Adj Factor Scoring'!$E$3:$AH$3,0)-1),MATCH(R$2&\" Score\",'C. PoC Adj Factor Scoring'!$E$4:$J$4,0),TRUE)","v":1},{"$f":"VLOOKUP(OFFSET($B:$B,,MATCH(S$4,$B$4:$F$4,0)-1),OFFSET('C. PoC Adj Factor Scoring'!$E$5:$J$282,,MATCH(S$4,'C. PoC Adj Factor Scoring'!$E$3:$AH$3,0)-1),MATCH(S$2&\" Score\",'C. PoC Adj Factor Scoring'!$E$4:$J$4,0),TRUE)","v":1},{"$f":"VLOOKUP(OFFSET($B:$B,,MATCH(T$4,$B$4:$F$4,0)-1),OFFSET('C. PoC Adj Factor Scoring'!$E$5:$J$282,,MATCH(T$4,'C. PoC Adj Factor Scoring'!$E$3:$AH$3,0)-1),MATCH(T$2&\" Score\",'C. PoC Adj Factor Scoring'!$E$4:$J$4,0),TRUE)","v":1},{"$f":"VLOOKUP(OFFSET($B:$B,,MATCH(U$4,$B$4:$F$4,0)-1),OFFSET('C. PoC Adj Factor Scoring'!$E$5:$J$282,,MATCH(U$4,'C. PoC Adj Factor Scoring'!$E$3:$AH$3,0)-1),MATCH(U$2&\" Score\",'C. PoC Adj Factor Scoring'!$E$4:$J$4,0),TRUE)","v":1},{"$f":"VLOOKUP(OFFSET($B:$B,,MATCH(V$4,$B$4:$F$4,0)-1),OFFSET('C. PoC Adj Factor Scoring'!$E$5:$J$282,,MATCH(V$4,'C. PoC Adj Factor Scoring'!$E$3:$AH$3,0)-1),MATCH(V$2&\" Score\",'C. PoC Adj Factor Scoring'!$E$4:$J$4,0),TRUE)","v":1},{"$f":"VLOOKUP(OFFSET($B:$B,,MATCH(W$4,$B$4:$F$4,0)-1),OFFSET('C. PoC Adj Factor Scoring'!$E$5:$J$282,,MATCH(W$4,'C. PoC Adj Factor Scoring'!$E$3:$AH$3,0)-1),MATCH(W$2&\" Score\",'C. PoC Adj Factor Scoring'!$E$4:$J$4,0),TRUE)","v":1},{"$f":"VLOOKUP(OFFSET($B:$B,,MATCH(X$4,$B$4:$F$4,0)-1),OFFSET('C. PoC Adj Factor Scoring'!$E$5:$J$282,,MATCH(X$4,'C. PoC Adj Factor Scoring'!$E$3:$AH$3,0)-1),MATCH(X$2&\" Score\",'C. PoC Adj Factor Scoring'!$E$4:$J$4,0),TRUE)","v":1},{"$f":"VLOOKUP(OFFSET($B:$B,,MATCH(Y$4,$B$4:$F$4,0)-1),OFFSET('C. PoC Adj Factor Scoring'!$E$5:$J$282,,MATCH(Y$4,'C. PoC Adj Factor Scoring'!$E$3:$AH$3,0)-1),MATCH(Y$2&\" Score\",'C. PoC Adj Factor Scoring'!$E$4:$J$4,0),TRUE)","v":1},{"$f":"VLOOKUP(OFFSET($B:$B,,MATCH(Z$4,$B$4:$F$4,0)-1),OFFSET('C. PoC Adj Factor Scoring'!$E$5:$J$282,,MATCH(Z$4,'C. PoC Adj Factor Scoring'!$E$3:$AH$3,0)-1),MATCH(Z$2&\" Score\",'C. PoC Adj Factor Scoring'!$E$4:$J$4,0),TRUE)","v":1},{"$f":"VLOOKUP(OFFSET($B:$B,,MATCH(AA$4,$B$4:$F$4,0)-1),OFFSET('C. PoC Adj Factor Scoring'!$E$5:$J$282,,MATCH(AA$4,'C. PoC Adj Factor Scoring'!$E$3:$AH$3,0)-1),MATCH(AA$2&\" Score\",'C. PoC Adj Factor Scoring'!$E$4:$J$4,0),TRUE)","v":3},{"$f":"VLOOKUP(OFFSET($B:$B,,MATCH(AB$4,$B$4:$F$4,0)-1),OFFSET('C. PoC Adj Factor Scoring'!$E$5:$J$282,,MATCH(AB$4,'C. PoC Adj Factor Scoring'!$E$3:$AH$3,0)-1),MATCH(AB$2&\" Score\",'C. PoC Adj Factor Scoring'!$E$4:$J$4,0),TRUE)","v":1},{"$f":"VLOOKUP(OFFSET($B:$B,,MATCH(AC$4,$B$4:$F$4,0)-1),OFFSET('C. PoC Adj Factor Scoring'!$E$5:$J$282,,MATCH(AC$4,'C. PoC Adj Factor Scoring'!$E$3:$AH$3,0)-1),MATCH(AC$2&\" Score\",'C. PoC Adj Factor Scoring'!$E$4:$J$4,0),TRUE)","v":1},{"$f":"VLOOKUP(OFFSET($B:$B,,MATCH(AD$4,$B$4:$F$4,0)-1),OFFSET('C. PoC Adj Factor Scoring'!$E$5:$J$282,,MATCH(AD$4,'C. PoC Adj Factor Scoring'!$E$3:$AH$3,0)-1),MATCH(AD$2&\" Score\",'C. PoC Adj Factor Scoring'!$E$4:$J$4,0),TRUE)","v":1},{"$f":"VLOOKUP(OFFSET($B:$B,,MATCH(AE$4,$B$4:$F$4,0)-1),OFFSET('C. PoC Adj Factor Scoring'!$E$5:$J$282,,MATCH(AE$4,'C. PoC Adj Factor Scoring'!$E$3:$AH$3,0)-1),MATCH(AE$2&\" Score\",'C. PoC Adj Factor Scoring'!$E$4:$J$4,0),TRUE)","v":1}]
[{"$f":"'A. Population Info'!A225","v":1000358393},{"$f":"'A. Population Info'!L225","v":"OIL"},{"$f":"'A. Population Info'!M225","v":0},{"$f":"'A. Population Info'!N225","v":0},{"$f":"'A. Population Info'!O225","v":0},{"$f":"'A. Population Info'!P225","v":0},{"$f":"VLOOKUP(OFFSET($B:$B,,MATCH(G$4,$B$4:$F$4,0)-1),OFFSET('C. PoC Adj Factor Scoring'!$E$5:$J$282,,MATCH(G$4,'C. PoC Adj Factor Scoring'!$E$3:$AH$3,0)-1),MATCH(G$2&\" Score\",'C. PoC Adj Factor Scoring'!$E$4:$J$4,0),TRUE)","v":4},{"$f":"VLOOKUP(OFFSET($B:$B,,MATCH(H$4,$B$4:$F$4,0)-1),OFFSET('C. PoC Adj Factor Scoring'!$E$5:$J$282,,MATCH(H$4,'C. PoC Adj Factor Scoring'!$E$3:$AH$3,0)-1),MATCH(H$2&\" Score\",'C. PoC Adj Factor Scoring'!$E$4:$J$4,0),TRUE)","v":1},{"$f":"VLOOKUP(OFFSET($B:$B,,MATCH(I$4,$B$4:$F$4,0)-1),OFFSET('C. PoC Adj Factor Scoring'!$E$5:$J$282,,MATCH(I$4,'C. PoC Adj Factor Scoring'!$E$3:$AH$3,0)-1),MATCH(I$2&\" Score\",'C. PoC Adj Factor Scoring'!$E$4:$J$4,0),TRUE)","v":1},{"$f":"VLOOKUP(OFFSET($B:$B,,MATCH(J$4,$B$4:$F$4,0)-1),OFFSET('C. PoC Adj Factor Scoring'!$E$5:$J$282,,MATCH(J$4,'C. PoC Adj Factor Scoring'!$E$3:$AH$3,0)-1),MATCH(J$2&\" Score\",'C. PoC Adj Factor Scoring'!$E$4:$J$4,0),TRUE)","v":1},{"$f":"VLOOKUP(OFFSET($B:$B,,MATCH(K$4,$B$4:$F$4,0)-1),OFFSET('C. PoC Adj Factor Scoring'!$E$5:$J$282,,MATCH(K$4,'C. PoC Adj Factor Scoring'!$E$3:$AH$3,0)-1),MATCH(K$2&\" Score\",'C. PoC Adj Factor Scoring'!$E$4:$J$4,0),TRUE)","v":1},{"$f":"VLOOKUP(OFFSET($B:$B,,MATCH(L$4,$B$4:$F$4,0)-1),OFFSET('C. PoC Adj Factor Scoring'!$E$5:$J$282,,MATCH(L$4,'C. PoC Adj Factor Scoring'!$E$3:$AH$3,0)-1),MATCH(L$2&\" Score\",'C. PoC Adj Factor Scoring'!$E$4:$J$4,0),TRUE)","v":1},{"$f":"VLOOKUP(OFFSET($B:$B,,MATCH(M$4,$B$4:$F$4,0)-1),OFFSET('C. PoC Adj Factor Scoring'!$E$5:$J$282,,MATCH(M$4,'C. PoC Adj Factor Scoring'!$E$3:$AH$3,0)-1),MATCH(M$2&\" Score\",'C. PoC Adj Factor Scoring'!$E$4:$J$4,0),TRUE)","v":1},{"$f":"VLOOKUP(OFFSET($B:$B,,MATCH(N$4,$B$4:$F$4,0)-1),OFFSET('C. PoC Adj Factor Scoring'!$E$5:$J$282,,MATCH(N$4,'C. PoC Adj Factor Scoring'!$E$3:$AH$3,0)-1),MATCH(N$2&\" Score\",'C. PoC Adj Factor Scoring'!$E$4:$J$4,0),TRUE)","v":1},{"$f":"VLOOKUP(OFFSET($B:$B,,MATCH(O$4,$B$4:$F$4,0)-1),OFFSET('C. PoC Adj Factor Scoring'!$E$5:$J$282,,MATCH(O$4,'C. PoC Adj Factor Scoring'!$E$3:$AH$3,0)-1),MATCH(O$2&\" Score\",'C. PoC Adj Factor Scoring'!$E$4:$J$4,0),TRUE)","v":1},{"$f":"VLOOKUP(OFFSET($B:$B,,MATCH(P$4,$B$4:$F$4,0)-1),OFFSET('C. PoC Adj Factor Scoring'!$E$5:$J$282,,MATCH(P$4,'C. PoC Adj Factor Scoring'!$E$3:$AH$3,0)-1),MATCH(P$2&\" Score\",'C. PoC Adj Factor Scoring'!$E$4:$J$4,0),TRUE)","v":1},{"$f":"VLOOKUP(OFFSET($B:$B,,MATCH(Q$4,$B$4:$F$4,0)-1),OFFSET('C. PoC Adj Factor Scoring'!$E$5:$J$282,,MATCH(Q$4,'C. PoC Adj Factor Scoring'!$E$3:$AH$3,0)-1),MATCH(Q$2&\" Score\",'C. PoC Adj Factor Scoring'!$E$4:$J$4,0),TRUE)","v":1},{"$f":"VLOOKUP(OFFSET($B:$B,,MATCH(R$4,$B$4:$F$4,0)-1),OFFSET('C. PoC Adj Factor Scoring'!$E$5:$J$282,,MATCH(R$4,'C. PoC Adj Factor Scoring'!$E$3:$AH$3,0)-1),MATCH(R$2&\" Score\",'C. PoC Adj Factor Scoring'!$E$4:$J$4,0),TRUE)","v":1},{"$f":"VLOOKUP(OFFSET($B:$B,,MATCH(S$4,$B$4:$F$4,0)-1),OFFSET('C. PoC Adj Factor Scoring'!$E$5:$J$282,,MATCH(S$4,'C. PoC Adj Factor Scoring'!$E$3:$AH$3,0)-1),MATCH(S$2&\" Score\",'C. PoC Adj Factor Scoring'!$E$4:$J$4,0),TRUE)","v":1},{"$f":"VLOOKUP(OFFSET($B:$B,,MATCH(T$4,$B$4:$F$4,0)-1),OFFSET('C. PoC Adj Factor Scoring'!$E$5:$J$282,,MATCH(T$4,'C. PoC Adj Factor Scoring'!$E$3:$AH$3,0)-1),MATCH(T$2&\" Score\",'C. PoC Adj Factor Scoring'!$E$4:$J$4,0),TRUE)","v":1},{"$f":"VLOOKUP(OFFSET($B:$B,,MATCH(U$4,$B$4:$F$4,0)-1),OFFSET('C. PoC Adj Factor Scoring'!$E$5:$J$282,,MATCH(U$4,'C. PoC Adj Factor Scoring'!$E$3:$AH$3,0)-1),MATCH(U$2&\" Score\",'C. PoC Adj Factor Scoring'!$E$4:$J$4,0),TRUE)","v":1},{"$f":"VLOOKUP(OFFSET($B:$B,,MATCH(V$4,$B$4:$F$4,0)-1),OFFSET('C. PoC Adj Factor Scoring'!$E$5:$J$282,,MATCH(V$4,'C. PoC Adj Factor Scoring'!$E$3:$AH$3,0)-1),MATCH(V$2&\" Score\",'C. PoC Adj Factor Scoring'!$E$4:$J$4,0),TRUE)","v":1},{"$f":"VLOOKUP(OFFSET($B:$B,,MATCH(W$4,$B$4:$F$4,0)-1),OFFSET('C. PoC Adj Factor Scoring'!$E$5:$J$282,,MATCH(W$4,'C. PoC Adj Factor Scoring'!$E$3:$AH$3,0)-1),MATCH(W$2&\" Score\",'C. PoC Adj Factor Scoring'!$E$4:$J$4,0),TRUE)","v":1},{"$f":"VLOOKUP(OFFSET($B:$B,,MATCH(X$4,$B$4:$F$4,0)-1),OFFSET('C. PoC Adj Factor Scoring'!$E$5:$J$282,,MATCH(X$4,'C. PoC Adj Factor Scoring'!$E$3:$AH$3,0)-1),MATCH(X$2&\" Score\",'C. PoC Adj Factor Scoring'!$E$4:$J$4,0),TRUE)","v":1},{"$f":"VLOOKUP(OFFSET($B:$B,,MATCH(Y$4,$B$4:$F$4,0)-1),OFFSET('C. PoC Adj Factor Scoring'!$E$5:$J$282,,MATCH(Y$4,'C. PoC Adj Factor Scoring'!$E$3:$AH$3,0)-1),MATCH(Y$2&\" Score\",'C. PoC Adj Factor Scoring'!$E$4:$J$4,0),TRUE)","v":1},{"$f":"VLOOKUP(OFFSET($B:$B,,MATCH(Z$4,$B$4:$F$4,0)-1),OFFSET('C. PoC Adj Factor Scoring'!$E$5:$J$282,,MATCH(Z$4,'C. PoC Adj Factor Scoring'!$E$3:$AH$3,0)-1),MATCH(Z$2&\" Score\",'C. PoC Adj Factor Scoring'!$E$4:$J$4,0),TRUE)","v":1},{"$f":"VLOOKUP(OFFSET($B:$B,,MATCH(AA$4,$B$4:$F$4,0)-1),OFFSET('C. PoC Adj Factor Scoring'!$E$5:$J$282,,MATCH(AA$4,'C. PoC Adj Factor Scoring'!$E$3:$AH$3,0)-1),MATCH(AA$2&\" Score\",'C. PoC Adj Factor Scoring'!$E$4:$J$4,0),TRUE)","v":3},{"$f":"VLOOKUP(OFFSET($B:$B,,MATCH(AB$4,$B$4:$F$4,0)-1),OFFSET('C. PoC Adj Factor Scoring'!$E$5:$J$282,,MATCH(AB$4,'C. PoC Adj Factor Scoring'!$E$3:$AH$3,0)-1),MATCH(AB$2&\" Score\",'C. PoC Adj Factor Scoring'!$E$4:$J$4,0),TRUE)","v":1},{"$f":"VLOOKUP(OFFSET($B:$B,,MATCH(AC$4,$B$4:$F$4,0)-1),OFFSET('C. PoC Adj Factor Scoring'!$E$5:$J$282,,MATCH(AC$4,'C. PoC Adj Factor Scoring'!$E$3:$AH$3,0)-1),MATCH(AC$2&\" Score\",'C. PoC Adj Factor Scoring'!$E$4:$J$4,0),TRUE)","v":1},{"$f":"VLOOKUP(OFFSET($B:$B,,MATCH(AD$4,$B$4:$F$4,0)-1),OFFSET('C. PoC Adj Factor Scoring'!$E$5:$J$282,,MATCH(AD$4,'C. PoC Adj Factor Scoring'!$E$3:$AH$3,0)-1),MATCH(AD$2&\" Score\",'C. PoC Adj Factor Scoring'!$E$4:$J$4,0),TRUE)","v":1},{"$f":"VLOOKUP(OFFSET($B:$B,,MATCH(AE$4,$B$4:$F$4,0)-1),OFFSET('C. PoC Adj Factor Scoring'!$E$5:$J$282,,MATCH(AE$4,'C. PoC Adj Factor Scoring'!$E$3:$AH$3,0)-1),MATCH(AE$2&\" Score\",'C. PoC Adj Factor Scoring'!$E$4:$J$4,0),TRUE)","v":1}]
[{"$f":"'A. Population Info'!A226","v":1000358426},{"$f":"'A. Population Info'!L226","v":"OIL"},{"$f":"'A. Population Info'!M226","v":0},{"$f":"'A. Population Info'!N226","v":0},{"$f":"'A. Population Info'!O226","v":0},{"$f":"'A. Population Info'!P226","v":0},{"$f":"VLOOKUP(OFFSET($B:$B,,MATCH(G$4,$B$4:$F$4,0)-1),OFFSET('C. PoC Adj Factor Scoring'!$E$5:$J$282,,MATCH(G$4,'C. PoC Adj Factor Scoring'!$E$3:$AH$3,0)-1),MATCH(G$2&\" Score\",'C. PoC Adj Factor Scoring'!$E$4:$J$4,0),TRUE)","v":4},{"$f":"VLOOKUP(OFFSET($B:$B,,MATCH(H$4,$B$4:$F$4,0)-1),OFFSET('C. PoC Adj Factor Scoring'!$E$5:$J$282,,MATCH(H$4,'C. PoC Adj Factor Scoring'!$E$3:$AH$3,0)-1),MATCH(H$2&\" Score\",'C. PoC Adj Factor Scoring'!$E$4:$J$4,0),TRUE)","v":1},{"$f":"VLOOKUP(OFFSET($B:$B,,MATCH(I$4,$B$4:$F$4,0)-1),OFFSET('C. PoC Adj Factor Scoring'!$E$5:$J$282,,MATCH(I$4,'C. PoC Adj Factor Scoring'!$E$3:$AH$3,0)-1),MATCH(I$2&\" Score\",'C. PoC Adj Factor Scoring'!$E$4:$J$4,0),TRUE)","v":1},{"$f":"VLOOKUP(OFFSET($B:$B,,MATCH(J$4,$B$4:$F$4,0)-1),OFFSET('C. PoC Adj Factor Scoring'!$E$5:$J$282,,MATCH(J$4,'C. PoC Adj Factor Scoring'!$E$3:$AH$3,0)-1),MATCH(J$2&\" Score\",'C. PoC Adj Factor Scoring'!$E$4:$J$4,0),TRUE)","v":1},{"$f":"VLOOKUP(OFFSET($B:$B,,MATCH(K$4,$B$4:$F$4,0)-1),OFFSET('C. PoC Adj Factor Scoring'!$E$5:$J$282,,MATCH(K$4,'C. PoC Adj Factor Scoring'!$E$3:$AH$3,0)-1),MATCH(K$2&\" Score\",'C. PoC Adj Factor Scoring'!$E$4:$J$4,0),TRUE)","v":1},{"$f":"VLOOKUP(OFFSET($B:$B,,MATCH(L$4,$B$4:$F$4,0)-1),OFFSET('C. PoC Adj Factor Scoring'!$E$5:$J$282,,MATCH(L$4,'C. PoC Adj Factor Scoring'!$E$3:$AH$3,0)-1),MATCH(L$2&\" Score\",'C. PoC Adj Factor Scoring'!$E$4:$J$4,0),TRUE)","v":1},{"$f":"VLOOKUP(OFFSET($B:$B,,MATCH(M$4,$B$4:$F$4,0)-1),OFFSET('C. PoC Adj Factor Scoring'!$E$5:$J$282,,MATCH(M$4,'C. PoC Adj Factor Scoring'!$E$3:$AH$3,0)-1),MATCH(M$2&\" Score\",'C. PoC Adj Factor Scoring'!$E$4:$J$4,0),TRUE)","v":1},{"$f":"VLOOKUP(OFFSET($B:$B,,MATCH(N$4,$B$4:$F$4,0)-1),OFFSET('C. PoC Adj Factor Scoring'!$E$5:$J$282,,MATCH(N$4,'C. PoC Adj Factor Scoring'!$E$3:$AH$3,0)-1),MATCH(N$2&\" Score\",'C. PoC Adj Factor Scoring'!$E$4:$J$4,0),TRUE)","v":1},{"$f":"VLOOKUP(OFFSET($B:$B,,MATCH(O$4,$B$4:$F$4,0)-1),OFFSET('C. PoC Adj Factor Scoring'!$E$5:$J$282,,MATCH(O$4,'C. PoC Adj Factor Scoring'!$E$3:$AH$3,0)-1),MATCH(O$2&\" Score\",'C. PoC Adj Factor Scoring'!$E$4:$J$4,0),TRUE)","v":1},{"$f":"VLOOKUP(OFFSET($B:$B,,MATCH(P$4,$B$4:$F$4,0)-1),OFFSET('C. PoC Adj Factor Scoring'!$E$5:$J$282,,MATCH(P$4,'C. PoC Adj Factor Scoring'!$E$3:$AH$3,0)-1),MATCH(P$2&\" Score\",'C. PoC Adj Factor Scoring'!$E$4:$J$4,0),TRUE)","v":1},{"$f":"VLOOKUP(OFFSET($B:$B,,MATCH(Q$4,$B$4:$F$4,0)-1),OFFSET('C. PoC Adj Factor Scoring'!$E$5:$J$282,,MATCH(Q$4,'C. PoC Adj Factor Scoring'!$E$3:$AH$3,0)-1),MATCH(Q$2&\" Score\",'C. PoC Adj Factor Scoring'!$E$4:$J$4,0),TRUE)","v":1},{"$f":"VLOOKUP(OFFSET($B:$B,,MATCH(R$4,$B$4:$F$4,0)-1),OFFSET('C. PoC Adj Factor Scoring'!$E$5:$J$282,,MATCH(R$4,'C. PoC Adj Factor Scoring'!$E$3:$AH$3,0)-1),MATCH(R$2&\" Score\",'C. PoC Adj Factor Scoring'!$E$4:$J$4,0),TRUE)","v":1},{"$f":"VLOOKUP(OFFSET($B:$B,,MATCH(S$4,$B$4:$F$4,0)-1),OFFSET('C. PoC Adj Factor Scoring'!$E$5:$J$282,,MATCH(S$4,'C. PoC Adj Factor Scoring'!$E$3:$AH$3,0)-1),MATCH(S$2&\" Score\",'C. PoC Adj Factor Scoring'!$E$4:$J$4,0),TRUE)","v":1},{"$f":"VLOOKUP(OFFSET($B:$B,,MATCH(T$4,$B$4:$F$4,0)-1),OFFSET('C. PoC Adj Factor Scoring'!$E$5:$J$282,,MATCH(T$4,'C. PoC Adj Factor Scoring'!$E$3:$AH$3,0)-1),MATCH(T$2&\" Score\",'C. PoC Adj Factor Scoring'!$E$4:$J$4,0),TRUE)","v":1},{"$f":"VLOOKUP(OFFSET($B:$B,,MATCH(U$4,$B$4:$F$4,0)-1),OFFSET('C. PoC Adj Factor Scoring'!$E$5:$J$282,,MATCH(U$4,'C. PoC Adj Factor Scoring'!$E$3:$AH$3,0)-1),MATCH(U$2&\" Score\",'C. PoC Adj Factor Scoring'!$E$4:$J$4,0),TRUE)","v":1},{"$f":"VLOOKUP(OFFSET($B:$B,,MATCH(V$4,$B$4:$F$4,0)-1),OFFSET('C. PoC Adj Factor Scoring'!$E$5:$J$282,,MATCH(V$4,'C. PoC Adj Factor Scoring'!$E$3:$AH$3,0)-1),MATCH(V$2&\" Score\",'C. PoC Adj Factor Scoring'!$E$4:$J$4,0),TRUE)","v":1},{"$f":"VLOOKUP(OFFSET($B:$B,,MATCH(W$4,$B$4:$F$4,0)-1),OFFSET('C. PoC Adj Factor Scoring'!$E$5:$J$282,,MATCH(W$4,'C. PoC Adj Factor Scoring'!$E$3:$AH$3,0)-1),MATCH(W$2&\" Score\",'C. PoC Adj Factor Scoring'!$E$4:$J$4,0),TRUE)","v":1},{"$f":"VLOOKUP(OFFSET($B:$B,,MATCH(X$4,$B$4:$F$4,0)-1),OFFSET('C. PoC Adj Factor Scoring'!$E$5:$J$282,,MATCH(X$4,'C. PoC Adj Factor Scoring'!$E$3:$AH$3,0)-1),MATCH(X$2&\" Score\",'C. PoC Adj Factor Scoring'!$E$4:$J$4,0),TRUE)","v":1},{"$f":"VLOOKUP(OFFSET($B:$B,,MATCH(Y$4,$B$4:$F$4,0)-1),OFFSET('C. PoC Adj Factor Scoring'!$E$5:$J$282,,MATCH(Y$4,'C. PoC Adj Factor Scoring'!$E$3:$AH$3,0)-1),MATCH(Y$2&\" Score\",'C. PoC Adj Factor Scoring'!$E$4:$J$4,0),TRUE)","v":1},{"$f":"VLOOKUP(OFFSET($B:$B,,MATCH(Z$4,$B$4:$F$4,0)-1),OFFSET('C. PoC Adj Factor Scoring'!$E$5:$J$282,,MATCH(Z$4,'C. PoC Adj Factor Scoring'!$E$3:$AH$3,0)-1),MATCH(Z$2&\" Score\",'C. PoC Adj Factor Scoring'!$E$4:$J$4,0),TRUE)","v":1},{"$f":"VLOOKUP(OFFSET($B:$B,,MATCH(AA$4,$B$4:$F$4,0)-1),OFFSET('C. PoC Adj Factor Scoring'!$E$5:$J$282,,MATCH(AA$4,'C. PoC Adj Factor Scoring'!$E$3:$AH$3,0)-1),MATCH(AA$2&\" Score\",'C. PoC Adj Factor Scoring'!$E$4:$J$4,0),TRUE)","v":3},{"$f":"VLOOKUP(OFFSET($B:$B,,MATCH(AB$4,$B$4:$F$4,0)-1),OFFSET('C. PoC Adj Factor Scoring'!$E$5:$J$282,,MATCH(AB$4,'C. PoC Adj Factor Scoring'!$E$3:$AH$3,0)-1),MATCH(AB$2&\" Score\",'C. PoC Adj Factor Scoring'!$E$4:$J$4,0),TRUE)","v":1},{"$f":"VLOOKUP(OFFSET($B:$B,,MATCH(AC$4,$B$4:$F$4,0)-1),OFFSET('C. PoC Adj Factor Scoring'!$E$5:$J$282,,MATCH(AC$4,'C. PoC Adj Factor Scoring'!$E$3:$AH$3,0)-1),MATCH(AC$2&\" Score\",'C. PoC Adj Factor Scoring'!$E$4:$J$4,0),TRUE)","v":1},{"$f":"VLOOKUP(OFFSET($B:$B,,MATCH(AD$4,$B$4:$F$4,0)-1),OFFSET('C. PoC Adj Factor Scoring'!$E$5:$J$282,,MATCH(AD$4,'C. PoC Adj Factor Scoring'!$E$3:$AH$3,0)-1),MATCH(AD$2&\" Score\",'C. PoC Adj Factor Scoring'!$E$4:$J$4,0),TRUE)","v":1},{"$f":"VLOOKUP(OFFSET($B:$B,,MATCH(AE$4,$B$4:$F$4,0)-1),OFFSET('C. PoC Adj Factor Scoring'!$E$5:$J$282,,MATCH(AE$4,'C. PoC Adj Factor Scoring'!$E$3:$AH$3,0)-1),MATCH(AE$2&\" Score\",'C. PoC Adj Factor Scoring'!$E$4:$J$4,0),TRUE)","v":1}]
[{"$f":"'A. Population Info'!A227","v":1000358459},{"$f":"'A. Population Info'!L227","v":"OIL"},{"$f":"'A. Population Info'!M227","v":0},{"$f":"'A. Population Info'!N227","v":0},{"$f":"'A. Population Info'!O227","v":0},{"$f":"'A. Population Info'!P227","v":0},{"$f":"VLOOKUP(OFFSET($B:$B,,MATCH(G$4,$B$4:$F$4,0)-1),OFFSET('C. PoC Adj Factor Scoring'!$E$5:$J$282,,MATCH(G$4,'C. PoC Adj Factor Scoring'!$E$3:$AH$3,0)-1),MATCH(G$2&\" Score\",'C. PoC Adj Factor Scoring'!$E$4:$J$4,0),TRUE)","v":4},{"$f":"VLOOKUP(OFFSET($B:$B,,MATCH(H$4,$B$4:$F$4,0)-1),OFFSET('C. PoC Adj Factor Scoring'!$E$5:$J$282,,MATCH(H$4,'C. PoC Adj Factor Scoring'!$E$3:$AH$3,0)-1),MATCH(H$2&\" Score\",'C. PoC Adj Factor Scoring'!$E$4:$J$4,0),TRUE)","v":1},{"$f":"VLOOKUP(OFFSET($B:$B,,MATCH(I$4,$B$4:$F$4,0)-1),OFFSET('C. PoC Adj Factor Scoring'!$E$5:$J$282,,MATCH(I$4,'C. PoC Adj Factor Scoring'!$E$3:$AH$3,0)-1),MATCH(I$2&\" Score\",'C. PoC Adj Factor Scoring'!$E$4:$J$4,0),TRUE)","v":1},{"$f":"VLOOKUP(OFFSET($B:$B,,MATCH(J$4,$B$4:$F$4,0)-1),OFFSET('C. PoC Adj Factor Scoring'!$E$5:$J$282,,MATCH(J$4,'C. PoC Adj Factor Scoring'!$E$3:$AH$3,0)-1),MATCH(J$2&\" Score\",'C. PoC Adj Factor Scoring'!$E$4:$J$4,0),TRUE)","v":1},{"$f":"VLOOKUP(OFFSET($B:$B,,MATCH(K$4,$B$4:$F$4,0)-1),OFFSET('C. PoC Adj Factor Scoring'!$E$5:$J$282,,MATCH(K$4,'C. PoC Adj Factor Scoring'!$E$3:$AH$3,0)-1),MATCH(K$2&\" Score\",'C. PoC Adj Factor Scoring'!$E$4:$J$4,0),TRUE)","v":1},{"$f":"VLOOKUP(OFFSET($B:$B,,MATCH(L$4,$B$4:$F$4,0)-1),OFFSET('C. PoC Adj Factor Scoring'!$E$5:$J$282,,MATCH(L$4,'C. PoC Adj Factor Scoring'!$E$3:$AH$3,0)-1),MATCH(L$2&\" Score\",'C. PoC Adj Factor Scoring'!$E$4:$J$4,0),TRUE)","v":1},{"$f":"VLOOKUP(OFFSET($B:$B,,MATCH(M$4,$B$4:$F$4,0)-1),OFFSET('C. PoC Adj Factor Scoring'!$E$5:$J$282,,MATCH(M$4,'C. PoC Adj Factor Scoring'!$E$3:$AH$3,0)-1),MATCH(M$2&\" Score\",'C. PoC Adj Factor Scoring'!$E$4:$J$4,0),TRUE)","v":1},{"$f":"VLOOKUP(OFFSET($B:$B,,MATCH(N$4,$B$4:$F$4,0)-1),OFFSET('C. PoC Adj Factor Scoring'!$E$5:$J$282,,MATCH(N$4,'C. PoC Adj Factor Scoring'!$E$3:$AH$3,0)-1),MATCH(N$2&\" Score\",'C. PoC Adj Factor Scoring'!$E$4:$J$4,0),TRUE)","v":1},{"$f":"VLOOKUP(OFFSET($B:$B,,MATCH(O$4,$B$4:$F$4,0)-1),OFFSET('C. PoC Adj Factor Scoring'!$E$5:$J$282,,MATCH(O$4,'C. PoC Adj Factor Scoring'!$E$3:$AH$3,0)-1),MATCH(O$2&\" Score\",'C. PoC Adj Factor Scoring'!$E$4:$J$4,0),TRUE)","v":1},{"$f":"VLOOKUP(OFFSET($B:$B,,MATCH(P$4,$B$4:$F$4,0)-1),OFFSET('C. PoC Adj Factor Scoring'!$E$5:$J$282,,MATCH(P$4,'C. PoC Adj Factor Scoring'!$E$3:$AH$3,0)-1),MATCH(P$2&\" Score\",'C. PoC Adj Factor Scoring'!$E$4:$J$4,0),TRUE)","v":1},{"$f":"VLOOKUP(OFFSET($B:$B,,MATCH(Q$4,$B$4:$F$4,0)-1),OFFSET('C. PoC Adj Factor Scoring'!$E$5:$J$282,,MATCH(Q$4,'C. PoC Adj Factor Scoring'!$E$3:$AH$3,0)-1),MATCH(Q$2&\" Score\",'C. PoC Adj Factor Scoring'!$E$4:$J$4,0),TRUE)","v":1},{"$f":"VLOOKUP(OFFSET($B:$B,,MATCH(R$4,$B$4:$F$4,0)-1),OFFSET('C. PoC Adj Factor Scoring'!$E$5:$J$282,,MATCH(R$4,'C. PoC Adj Factor Scoring'!$E$3:$AH$3,0)-1),MATCH(R$2&\" Score\",'C. PoC Adj Factor Scoring'!$E$4:$J$4,0),TRUE)","v":1},{"$f":"VLOOKUP(OFFSET($B:$B,,MATCH(S$4,$B$4:$F$4,0)-1),OFFSET('C. PoC Adj Factor Scoring'!$E$5:$J$282,,MATCH(S$4,'C. PoC Adj Factor Scoring'!$E$3:$AH$3,0)-1),MATCH(S$2&\" Score\",'C. PoC Adj Factor Scoring'!$E$4:$J$4,0),TRUE)","v":1},{"$f":"VLOOKUP(OFFSET($B:$B,,MATCH(T$4,$B$4:$F$4,0)-1),OFFSET('C. PoC Adj Factor Scoring'!$E$5:$J$282,,MATCH(T$4,'C. PoC Adj Factor Scoring'!$E$3:$AH$3,0)-1),MATCH(T$2&\" Score\",'C. PoC Adj Factor Scoring'!$E$4:$J$4,0),TRUE)","v":1},{"$f":"VLOOKUP(OFFSET($B:$B,,MATCH(U$4,$B$4:$F$4,0)-1),OFFSET('C. PoC Adj Factor Scoring'!$E$5:$J$282,,MATCH(U$4,'C. PoC Adj Factor Scoring'!$E$3:$AH$3,0)-1),MATCH(U$2&\" Score\",'C. PoC Adj Factor Scoring'!$E$4:$J$4,0),TRUE)","v":1},{"$f":"VLOOKUP(OFFSET($B:$B,,MATCH(V$4,$B$4:$F$4,0)-1),OFFSET('C. PoC Adj Factor Scoring'!$E$5:$J$282,,MATCH(V$4,'C. PoC Adj Factor Scoring'!$E$3:$AH$3,0)-1),MATCH(V$2&\" Score\",'C. PoC Adj Factor Scoring'!$E$4:$J$4,0),TRUE)","v":1},{"$f":"VLOOKUP(OFFSET($B:$B,,MATCH(W$4,$B$4:$F$4,0)-1),OFFSET('C. PoC Adj Factor Scoring'!$E$5:$J$282,,MATCH(W$4,'C. PoC Adj Factor Scoring'!$E$3:$AH$3,0)-1),MATCH(W$2&\" Score\",'C. PoC Adj Factor Scoring'!$E$4:$J$4,0),TRUE)","v":1},{"$f":"VLOOKUP(OFFSET($B:$B,,MATCH(X$4,$B$4:$F$4,0)-1),OFFSET('C. PoC Adj Factor Scoring'!$E$5:$J$282,,MATCH(X$4,'C. PoC Adj Factor Scoring'!$E$3:$AH$3,0)-1),MATCH(X$2&\" Score\",'C. PoC Adj Factor Scoring'!$E$4:$J$4,0),TRUE)","v":1},{"$f":"VLOOKUP(OFFSET($B:$B,,MATCH(Y$4,$B$4:$F$4,0)-1),OFFSET('C. PoC Adj Factor Scoring'!$E$5:$J$282,,MATCH(Y$4,'C. PoC Adj Factor Scoring'!$E$3:$AH$3,0)-1),MATCH(Y$2&\" Score\",'C. PoC Adj Factor Scoring'!$E$4:$J$4,0),TRUE)","v":1},{"$f":"VLOOKUP(OFFSET($B:$B,,MATCH(Z$4,$B$4:$F$4,0)-1),OFFSET('C. PoC Adj Factor Scoring'!$E$5:$J$282,,MATCH(Z$4,'C. PoC Adj Factor Scoring'!$E$3:$AH$3,0)-1),MATCH(Z$2&\" Score\",'C. PoC Adj Factor Scoring'!$E$4:$J$4,0),TRUE)","v":1},{"$f":"VLOOKUP(OFFSET($B:$B,,MATCH(AA$4,$B$4:$F$4,0)-1),OFFSET('C. PoC Adj Factor Scoring'!$E$5:$J$282,,MATCH(AA$4,'C. PoC Adj Factor Scoring'!$E$3:$AH$3,0)-1),MATCH(AA$2&\" Score\",'C. PoC Adj Factor Scoring'!$E$4:$J$4,0),TRUE)","v":3},{"$f":"VLOOKUP(OFFSET($B:$B,,MATCH(AB$4,$B$4:$F$4,0)-1),OFFSET('C. PoC Adj Factor Scoring'!$E$5:$J$282,,MATCH(AB$4,'C. PoC Adj Factor Scoring'!$E$3:$AH$3,0)-1),MATCH(AB$2&\" Score\",'C. PoC Adj Factor Scoring'!$E$4:$J$4,0),TRUE)","v":1},{"$f":"VLOOKUP(OFFSET($B:$B,,MATCH(AC$4,$B$4:$F$4,0)-1),OFFSET('C. PoC Adj Factor Scoring'!$E$5:$J$282,,MATCH(AC$4,'C. PoC Adj Factor Scoring'!$E$3:$AH$3,0)-1),MATCH(AC$2&\" Score\",'C. PoC Adj Factor Scoring'!$E$4:$J$4,0),TRUE)","v":1},{"$f":"VLOOKUP(OFFSET($B:$B,,MATCH(AD$4,$B$4:$F$4,0)-1),OFFSET('C. PoC Adj Factor Scoring'!$E$5:$J$282,,MATCH(AD$4,'C. PoC Adj Factor Scoring'!$E$3:$AH$3,0)-1),MATCH(AD$2&\" Score\",'C. PoC Adj Factor Scoring'!$E$4:$J$4,0),TRUE)","v":1},{"$f":"VLOOKUP(OFFSET($B:$B,,MATCH(AE$4,$B$4:$F$4,0)-1),OFFSET('C. PoC Adj Factor Scoring'!$E$5:$J$282,,MATCH(AE$4,'C. PoC Adj Factor Scoring'!$E$3:$AH$3,0)-1),MATCH(AE$2&\" Score\",'C. PoC Adj Factor Scoring'!$E$4:$J$4,0),TRUE)","v":1}]
[{"$f":"'A. Population Info'!A228","v":1000358493},{"$f":"'A. Population Info'!L228","v":"OIL"},{"$f":"'A. Population Info'!M228","v":0},{"$f":"'A. Population Info'!N228","v":0},{"$f":"'A. Population Info'!O228","v":0},{"$f":"'A. Population Info'!P228","v":0},{"$f":"VLOOKUP(OFFSET($B:$B,,MATCH(G$4,$B$4:$F$4,0)-1),OFFSET('C. PoC Adj Factor Scoring'!$E$5:$J$282,,MATCH(G$4,'C. PoC Adj Factor Scoring'!$E$3:$AH$3,0)-1),MATCH(G$2&\" Score\",'C. PoC Adj Factor Scoring'!$E$4:$J$4,0),TRUE)","v":4},{"$f":"VLOOKUP(OFFSET($B:$B,,MATCH(H$4,$B$4:$F$4,0)-1),OFFSET('C. PoC Adj Factor Scoring'!$E$5:$J$282,,MATCH(H$4,'C. PoC Adj Factor Scoring'!$E$3:$AH$3,0)-1),MATCH(H$2&\" Score\",'C. PoC Adj Factor Scoring'!$E$4:$J$4,0),TRUE)","v":1},{"$f":"VLOOKUP(OFFSET($B:$B,,MATCH(I$4,$B$4:$F$4,0)-1),OFFSET('C. PoC Adj Factor Scoring'!$E$5:$J$282,,MATCH(I$4,'C. PoC Adj Factor Scoring'!$E$3:$AH$3,0)-1),MATCH(I$2&\" Score\",'C. PoC Adj Factor Scoring'!$E$4:$J$4,0),TRUE)","v":1},{"$f":"VLOOKUP(OFFSET($B:$B,,MATCH(J$4,$B$4:$F$4,0)-1),OFFSET('C. PoC Adj Factor Scoring'!$E$5:$J$282,,MATCH(J$4,'C. PoC Adj Factor Scoring'!$E$3:$AH$3,0)-1),MATCH(J$2&\" Score\",'C. PoC Adj Factor Scoring'!$E$4:$J$4,0),TRUE)","v":1},{"$f":"VLOOKUP(OFFSET($B:$B,,MATCH(K$4,$B$4:$F$4,0)-1),OFFSET('C. PoC Adj Factor Scoring'!$E$5:$J$282,,MATCH(K$4,'C. PoC Adj Factor Scoring'!$E$3:$AH$3,0)-1),MATCH(K$2&\" Score\",'C. PoC Adj Factor Scoring'!$E$4:$J$4,0),TRUE)","v":1},{"$f":"VLOOKUP(OFFSET($B:$B,,MATCH(L$4,$B$4:$F$4,0)-1),OFFSET('C. PoC Adj Factor Scoring'!$E$5:$J$282,,MATCH(L$4,'C. PoC Adj Factor Scoring'!$E$3:$AH$3,0)-1),MATCH(L$2&\" Score\",'C. PoC Adj Factor Scoring'!$E$4:$J$4,0),TRUE)","v":1},{"$f":"VLOOKUP(OFFSET($B:$B,,MATCH(M$4,$B$4:$F$4,0)-1),OFFSET('C. PoC Adj Factor Scoring'!$E$5:$J$282,,MATCH(M$4,'C. PoC Adj Factor Scoring'!$E$3:$AH$3,0)-1),MATCH(M$2&\" Score\",'C. PoC Adj Factor Scoring'!$E$4:$J$4,0),TRUE)","v":1},{"$f":"VLOOKUP(OFFSET($B:$B,,MATCH(N$4,$B$4:$F$4,0)-1),OFFSET('C. PoC Adj Factor Scoring'!$E$5:$J$282,,MATCH(N$4,'C. PoC Adj Factor Scoring'!$E$3:$AH$3,0)-1),MATCH(N$2&\" Score\",'C. PoC Adj Factor Scoring'!$E$4:$J$4,0),TRUE)","v":1},{"$f":"VLOOKUP(OFFSET($B:$B,,MATCH(O$4,$B$4:$F$4,0)-1),OFFSET('C. PoC Adj Factor Scoring'!$E$5:$J$282,,MATCH(O$4,'C. PoC Adj Factor Scoring'!$E$3:$AH$3,0)-1),MATCH(O$2&\" Score\",'C. PoC Adj Factor Scoring'!$E$4:$J$4,0),TRUE)","v":1},{"$f":"VLOOKUP(OFFSET($B:$B,,MATCH(P$4,$B$4:$F$4,0)-1),OFFSET('C. PoC Adj Factor Scoring'!$E$5:$J$282,,MATCH(P$4,'C. PoC Adj Factor Scoring'!$E$3:$AH$3,0)-1),MATCH(P$2&\" Score\",'C. PoC Adj Factor Scoring'!$E$4:$J$4,0),TRUE)","v":1},{"$f":"VLOOKUP(OFFSET($B:$B,,MATCH(Q$4,$B$4:$F$4,0)-1),OFFSET('C. PoC Adj Factor Scoring'!$E$5:$J$282,,MATCH(Q$4,'C. PoC Adj Factor Scoring'!$E$3:$AH$3,0)-1),MATCH(Q$2&\" Score\",'C. PoC Adj Factor Scoring'!$E$4:$J$4,0),TRUE)","v":1},{"$f":"VLOOKUP(OFFSET($B:$B,,MATCH(R$4,$B$4:$F$4,0)-1),OFFSET('C. PoC Adj Factor Scoring'!$E$5:$J$282,,MATCH(R$4,'C. PoC Adj Factor Scoring'!$E$3:$AH$3,0)-1),MATCH(R$2&\" Score\",'C. PoC Adj Factor Scoring'!$E$4:$J$4,0),TRUE)","v":1},{"$f":"VLOOKUP(OFFSET($B:$B,,MATCH(S$4,$B$4:$F$4,0)-1),OFFSET('C. PoC Adj Factor Scoring'!$E$5:$J$282,,MATCH(S$4,'C. PoC Adj Factor Scoring'!$E$3:$AH$3,0)-1),MATCH(S$2&\" Score\",'C. PoC Adj Factor Scoring'!$E$4:$J$4,0),TRUE)","v":1},{"$f":"VLOOKUP(OFFSET($B:$B,,MATCH(T$4,$B$4:$F$4,0)-1),OFFSET('C. PoC Adj Factor Scoring'!$E$5:$J$282,,MATCH(T$4,'C. PoC Adj Factor Scoring'!$E$3:$AH$3,0)-1),MATCH(T$2&\" Score\",'C. PoC Adj Factor Scoring'!$E$4:$J$4,0),TRUE)","v":1},{"$f":"VLOOKUP(OFFSET($B:$B,,MATCH(U$4,$B$4:$F$4,0)-1),OFFSET('C. PoC Adj Factor Scoring'!$E$5:$J$282,,MATCH(U$4,'C. PoC Adj Factor Scoring'!$E$3:$AH$3,0)-1),MATCH(U$2&\" Score\",'C. PoC Adj Factor Scoring'!$E$4:$J$4,0),TRUE)","v":1},{"$f":"VLOOKUP(OFFSET($B:$B,,MATCH(V$4,$B$4:$F$4,0)-1),OFFSET('C. PoC Adj Factor Scoring'!$E$5:$J$282,,MATCH(V$4,'C. PoC Adj Factor Scoring'!$E$3:$AH$3,0)-1),MATCH(V$2&\" Score\",'C. PoC Adj Factor Scoring'!$E$4:$J$4,0),TRUE)","v":1},{"$f":"VLOOKUP(OFFSET($B:$B,,MATCH(W$4,$B$4:$F$4,0)-1),OFFSET('C. PoC Adj Factor Scoring'!$E$5:$J$282,,MATCH(W$4,'C. PoC Adj Factor Scoring'!$E$3:$AH$3,0)-1),MATCH(W$2&\" Score\",'C. PoC Adj Factor Scoring'!$E$4:$J$4,0),TRUE)","v":1},{"$f":"VLOOKUP(OFFSET($B:$B,,MATCH(X$4,$B$4:$F$4,0)-1),OFFSET('C. PoC Adj Factor Scoring'!$E$5:$J$282,,MATCH(X$4,'C. PoC Adj Factor Scoring'!$E$3:$AH$3,0)-1),MATCH(X$2&\" Score\",'C. PoC Adj Factor Scoring'!$E$4:$J$4,0),TRUE)","v":1},{"$f":"VLOOKUP(OFFSET($B:$B,,MATCH(Y$4,$B$4:$F$4,0)-1),OFFSET('C. PoC Adj Factor Scoring'!$E$5:$J$282,,MATCH(Y$4,'C. PoC Adj Factor Scoring'!$E$3:$AH$3,0)-1),MATCH(Y$2&\" Score\",'C. PoC Adj Factor Scoring'!$E$4:$J$4,0),TRUE)","v":1},{"$f":"VLOOKUP(OFFSET($B:$B,,MATCH(Z$4,$B$4:$F$4,0)-1),OFFSET('C. PoC Adj Factor Scoring'!$E$5:$J$282,,MATCH(Z$4,'C. PoC Adj Factor Scoring'!$E$3:$AH$3,0)-1),MATCH(Z$2&\" Score\",'C. PoC Adj Factor Scoring'!$E$4:$J$4,0),TRUE)","v":1},{"$f":"VLOOKUP(OFFSET($B:$B,,MATCH(AA$4,$B$4:$F$4,0)-1),OFFSET('C. PoC Adj Factor Scoring'!$E$5:$J$282,,MATCH(AA$4,'C. PoC Adj Factor Scoring'!$E$3:$AH$3,0)-1),MATCH(AA$2&\" Score\",'C. PoC Adj Factor Scoring'!$E$4:$J$4,0),TRUE)","v":3},{"$f":"VLOOKUP(OFFSET($B:$B,,MATCH(AB$4,$B$4:$F$4,0)-1),OFFSET('C. PoC Adj Factor Scoring'!$E$5:$J$282,,MATCH(AB$4,'C. PoC Adj Factor Scoring'!$E$3:$AH$3,0)-1),MATCH(AB$2&\" Score\",'C. PoC Adj Factor Scoring'!$E$4:$J$4,0),TRUE)","v":1},{"$f":"VLOOKUP(OFFSET($B:$B,,MATCH(AC$4,$B$4:$F$4,0)-1),OFFSET('C. PoC Adj Factor Scoring'!$E$5:$J$282,,MATCH(AC$4,'C. PoC Adj Factor Scoring'!$E$3:$AH$3,0)-1),MATCH(AC$2&\" Score\",'C. PoC Adj Factor Scoring'!$E$4:$J$4,0),TRUE)","v":1},{"$f":"VLOOKUP(OFFSET($B:$B,,MATCH(AD$4,$B$4:$F$4,0)-1),OFFSET('C. PoC Adj Factor Scoring'!$E$5:$J$282,,MATCH(AD$4,'C. PoC Adj Factor Scoring'!$E$3:$AH$3,0)-1),MATCH(AD$2&\" Score\",'C. PoC Adj Factor Scoring'!$E$4:$J$4,0),TRUE)","v":1},{"$f":"VLOOKUP(OFFSET($B:$B,,MATCH(AE$4,$B$4:$F$4,0)-1),OFFSET('C. PoC Adj Factor Scoring'!$E$5:$J$282,,MATCH(AE$4,'C. PoC Adj Factor Scoring'!$E$3:$AH$3,0)-1),MATCH(AE$2&\" Score\",'C. PoC Adj Factor Scoring'!$E$4:$J$4,0),TRUE)","v":1}]
[{"$f":"'A. Population Info'!A229","v":1000358522},{"$f":"'A. Population Info'!L229","v":"OIL"},{"$f":"'A. Population Info'!M229","v":0},{"$f":"'A. Population Info'!N229","v":0},{"$f":"'A. Population Info'!O229","v":0},{"$f":"'A. Population Info'!P229","v":0},{"$f":"VLOOKUP(OFFSET($B:$B,,MATCH(G$4,$B$4:$F$4,0)-1),OFFSET('C. PoC Adj Factor Scoring'!$E$5:$J$282,,MATCH(G$4,'C. PoC Adj Factor Scoring'!$E$3:$AH$3,0)-1),MATCH(G$2&\" Score\",'C. PoC Adj Factor Scoring'!$E$4:$J$4,0),TRUE)","v":4},{"$f":"VLOOKUP(OFFSET($B:$B,,MATCH(H$4,$B$4:$F$4,0)-1),OFFSET('C. PoC Adj Factor Scoring'!$E$5:$J$282,,MATCH(H$4,'C. PoC Adj Factor Scoring'!$E$3:$AH$3,0)-1),MATCH(H$2&\" Score\",'C. PoC Adj Factor Scoring'!$E$4:$J$4,0),TRUE)","v":1},{"$f":"VLOOKUP(OFFSET($B:$B,,MATCH(I$4,$B$4:$F$4,0)-1),OFFSET('C. PoC Adj Factor Scoring'!$E$5:$J$282,,MATCH(I$4,'C. PoC Adj Factor Scoring'!$E$3:$AH$3,0)-1),MATCH(I$2&\" Score\",'C. PoC Adj Factor Scoring'!$E$4:$J$4,0),TRUE)","v":1},{"$f":"VLOOKUP(OFFSET($B:$B,,MATCH(J$4,$B$4:$F$4,0)-1),OFFSET('C. PoC Adj Factor Scoring'!$E$5:$J$282,,MATCH(J$4,'C. PoC Adj Factor Scoring'!$E$3:$AH$3,0)-1),MATCH(J$2&\" Score\",'C. PoC Adj Factor Scoring'!$E$4:$J$4,0),TRUE)","v":1},{"$f":"VLOOKUP(OFFSET($B:$B,,MATCH(K$4,$B$4:$F$4,0)-1),OFFSET('C. PoC Adj Factor Scoring'!$E$5:$J$282,,MATCH(K$4,'C. PoC Adj Factor Scoring'!$E$3:$AH$3,0)-1),MATCH(K$2&\" Score\",'C. PoC Adj Factor Scoring'!$E$4:$J$4,0),TRUE)","v":1},{"$f":"VLOOKUP(OFFSET($B:$B,,MATCH(L$4,$B$4:$F$4,0)-1),OFFSET('C. PoC Adj Factor Scoring'!$E$5:$J$282,,MATCH(L$4,'C. PoC Adj Factor Scoring'!$E$3:$AH$3,0)-1),MATCH(L$2&\" Score\",'C. PoC Adj Factor Scoring'!$E$4:$J$4,0),TRUE)","v":1},{"$f":"VLOOKUP(OFFSET($B:$B,,MATCH(M$4,$B$4:$F$4,0)-1),OFFSET('C. PoC Adj Factor Scoring'!$E$5:$J$282,,MATCH(M$4,'C. PoC Adj Factor Scoring'!$E$3:$AH$3,0)-1),MATCH(M$2&\" Score\",'C. PoC Adj Factor Scoring'!$E$4:$J$4,0),TRUE)","v":1},{"$f":"VLOOKUP(OFFSET($B:$B,,MATCH(N$4,$B$4:$F$4,0)-1),OFFSET('C. PoC Adj Factor Scoring'!$E$5:$J$282,,MATCH(N$4,'C. PoC Adj Factor Scoring'!$E$3:$AH$3,0)-1),MATCH(N$2&\" Score\",'C. PoC Adj Factor Scoring'!$E$4:$J$4,0),TRUE)","v":1},{"$f":"VLOOKUP(OFFSET($B:$B,,MATCH(O$4,$B$4:$F$4,0)-1),OFFSET('C. PoC Adj Factor Scoring'!$E$5:$J$282,,MATCH(O$4,'C. PoC Adj Factor Scoring'!$E$3:$AH$3,0)-1),MATCH(O$2&\" Score\",'C. PoC Adj Factor Scoring'!$E$4:$J$4,0),TRUE)","v":1},{"$f":"VLOOKUP(OFFSET($B:$B,,MATCH(P$4,$B$4:$F$4,0)-1),OFFSET('C. PoC Adj Factor Scoring'!$E$5:$J$282,,MATCH(P$4,'C. PoC Adj Factor Scoring'!$E$3:$AH$3,0)-1),MATCH(P$2&\" Score\",'C. PoC Adj Factor Scoring'!$E$4:$J$4,0),TRUE)","v":1},{"$f":"VLOOKUP(OFFSET($B:$B,,MATCH(Q$4,$B$4:$F$4,0)-1),OFFSET('C. PoC Adj Factor Scoring'!$E$5:$J$282,,MATCH(Q$4,'C. PoC Adj Factor Scoring'!$E$3:$AH$3,0)-1),MATCH(Q$2&\" Score\",'C. PoC Adj Factor Scoring'!$E$4:$J$4,0),TRUE)","v":1},{"$f":"VLOOKUP(OFFSET($B:$B,,MATCH(R$4,$B$4:$F$4,0)-1),OFFSET('C. PoC Adj Factor Scoring'!$E$5:$J$282,,MATCH(R$4,'C. PoC Adj Factor Scoring'!$E$3:$AH$3,0)-1),MATCH(R$2&\" Score\",'C. PoC Adj Factor Scoring'!$E$4:$J$4,0),TRUE)","v":1},{"$f":"VLOOKUP(OFFSET($B:$B,,MATCH(S$4,$B$4:$F$4,0)-1),OFFSET('C. PoC Adj Factor Scoring'!$E$5:$J$282,,MATCH(S$4,'C. PoC Adj Factor Scoring'!$E$3:$AH$3,0)-1),MATCH(S$2&\" Score\",'C. PoC Adj Factor Scoring'!$E$4:$J$4,0),TRUE)","v":1},{"$f":"VLOOKUP(OFFSET($B:$B,,MATCH(T$4,$B$4:$F$4,0)-1),OFFSET('C. PoC Adj Factor Scoring'!$E$5:$J$282,,MATCH(T$4,'C. PoC Adj Factor Scoring'!$E$3:$AH$3,0)-1),MATCH(T$2&\" Score\",'C. PoC Adj Factor Scoring'!$E$4:$J$4,0),TRUE)","v":1},{"$f":"VLOOKUP(OFFSET($B:$B,,MATCH(U$4,$B$4:$F$4,0)-1),OFFSET('C. PoC Adj Factor Scoring'!$E$5:$J$282,,MATCH(U$4,'C. PoC Adj Factor Scoring'!$E$3:$AH$3,0)-1),MATCH(U$2&\" Score\",'C. PoC Adj Factor Scoring'!$E$4:$J$4,0),TRUE)","v":1},{"$f":"VLOOKUP(OFFSET($B:$B,,MATCH(V$4,$B$4:$F$4,0)-1),OFFSET('C. PoC Adj Factor Scoring'!$E$5:$J$282,,MATCH(V$4,'C. PoC Adj Factor Scoring'!$E$3:$AH$3,0)-1),MATCH(V$2&\" Score\",'C. PoC Adj Factor Scoring'!$E$4:$J$4,0),TRUE)","v":1},{"$f":"VLOOKUP(OFFSET($B:$B,,MATCH(W$4,$B$4:$F$4,0)-1),OFFSET('C. PoC Adj Factor Scoring'!$E$5:$J$282,,MATCH(W$4,'C. PoC Adj Factor Scoring'!$E$3:$AH$3,0)-1),MATCH(W$2&\" Score\",'C. PoC Adj Factor Scoring'!$E$4:$J$4,0),TRUE)","v":1},{"$f":"VLOOKUP(OFFSET($B:$B,,MATCH(X$4,$B$4:$F$4,0)-1),OFFSET('C. PoC Adj Factor Scoring'!$E$5:$J$282,,MATCH(X$4,'C. PoC Adj Factor Scoring'!$E$3:$AH$3,0)-1),MATCH(X$2&\" Score\",'C. PoC Adj Factor Scoring'!$E$4:$J$4,0),TRUE)","v":1},{"$f":"VLOOKUP(OFFSET($B:$B,,MATCH(Y$4,$B$4:$F$4,0)-1),OFFSET('C. PoC Adj Factor Scoring'!$E$5:$J$282,,MATCH(Y$4,'C. PoC Adj Factor Scoring'!$E$3:$AH$3,0)-1),MATCH(Y$2&\" Score\",'C. PoC Adj Factor Scoring'!$E$4:$J$4,0),TRUE)","v":1},{"$f":"VLOOKUP(OFFSET($B:$B,,MATCH(Z$4,$B$4:$F$4,0)-1),OFFSET('C. PoC Adj Factor Scoring'!$E$5:$J$282,,MATCH(Z$4,'C. PoC Adj Factor Scoring'!$E$3:$AH$3,0)-1),MATCH(Z$2&\" Score\",'C. PoC Adj Factor Scoring'!$E$4:$J$4,0),TRUE)","v":1},{"$f":"VLOOKUP(OFFSET($B:$B,,MATCH(AA$4,$B$4:$F$4,0)-1),OFFSET('C. PoC Adj Factor Scoring'!$E$5:$J$282,,MATCH(AA$4,'C. PoC Adj Factor Scoring'!$E$3:$AH$3,0)-1),MATCH(AA$2&\" Score\",'C. PoC Adj Factor Scoring'!$E$4:$J$4,0),TRUE)","v":3},{"$f":"VLOOKUP(OFFSET($B:$B,,MATCH(AB$4,$B$4:$F$4,0)-1),OFFSET('C. PoC Adj Factor Scoring'!$E$5:$J$282,,MATCH(AB$4,'C. PoC Adj Factor Scoring'!$E$3:$AH$3,0)-1),MATCH(AB$2&\" Score\",'C. PoC Adj Factor Scoring'!$E$4:$J$4,0),TRUE)","v":1},{"$f":"VLOOKUP(OFFSET($B:$B,,MATCH(AC$4,$B$4:$F$4,0)-1),OFFSET('C. PoC Adj Factor Scoring'!$E$5:$J$282,,MATCH(AC$4,'C. PoC Adj Factor Scoring'!$E$3:$AH$3,0)-1),MATCH(AC$2&\" Score\",'C. PoC Adj Factor Scoring'!$E$4:$J$4,0),TRUE)","v":1},{"$f":"VLOOKUP(OFFSET($B:$B,,MATCH(AD$4,$B$4:$F$4,0)-1),OFFSET('C. PoC Adj Factor Scoring'!$E$5:$J$282,,MATCH(AD$4,'C. PoC Adj Factor Scoring'!$E$3:$AH$3,0)-1),MATCH(AD$2&\" Score\",'C. PoC Adj Factor Scoring'!$E$4:$J$4,0),TRUE)","v":1},{"$f":"VLOOKUP(OFFSET($B:$B,,MATCH(AE$4,$B$4:$F$4,0)-1),OFFSET('C. PoC Adj Factor Scoring'!$E$5:$J$282,,MATCH(AE$4,'C. PoC Adj Factor Scoring'!$E$3:$AH$3,0)-1),MATCH(AE$2&\" Score\",'C. PoC Adj Factor Scoring'!$E$4:$J$4,0),TRUE)","v":1}]
[{"$f":"'A. Population Info'!A230","v":1000358550},{"$f":"'A. Population Info'!L230","v":"OIL"},{"$f":"'A. Population Info'!M230","v":0},{"$f":"'A. Population Info'!N230","v":0},{"$f":"'A. Population Info'!O230","v":0},{"$f":"'A. Population Info'!P230","v":0},{"$f":"VLOOKUP(OFFSET($B:$B,,MATCH(G$4,$B$4:$F$4,0)-1),OFFSET('C. PoC Adj Factor Scoring'!$E$5:$J$282,,MATCH(G$4,'C. PoC Adj Factor Scoring'!$E$3:$AH$3,0)-1),MATCH(G$2&\" Score\",'C. PoC Adj Factor Scoring'!$E$4:$J$4,0),TRUE)","v":4},{"$f":"VLOOKUP(OFFSET($B:$B,,MATCH(H$4,$B$4:$F$4,0)-1),OFFSET('C. PoC Adj Factor Scoring'!$E$5:$J$282,,MATCH(H$4,'C. PoC Adj Factor Scoring'!$E$3:$AH$3,0)-1),MATCH(H$2&\" Score\",'C. PoC Adj Factor Scoring'!$E$4:$J$4,0),TRUE)","v":1},{"$f":"VLOOKUP(OFFSET($B:$B,,MATCH(I$4,$B$4:$F$4,0)-1),OFFSET('C. PoC Adj Factor Scoring'!$E$5:$J$282,,MATCH(I$4,'C. PoC Adj Factor Scoring'!$E$3:$AH$3,0)-1),MATCH(I$2&\" Score\",'C. PoC Adj Factor Scoring'!$E$4:$J$4,0),TRUE)","v":1},{"$f":"VLOOKUP(OFFSET($B:$B,,MATCH(J$4,$B$4:$F$4,0)-1),OFFSET('C. PoC Adj Factor Scoring'!$E$5:$J$282,,MATCH(J$4,'C. PoC Adj Factor Scoring'!$E$3:$AH$3,0)-1),MATCH(J$2&\" Score\",'C. PoC Adj Factor Scoring'!$E$4:$J$4,0),TRUE)","v":1},{"$f":"VLOOKUP(OFFSET($B:$B,,MATCH(K$4,$B$4:$F$4,0)-1),OFFSET('C. PoC Adj Factor Scoring'!$E$5:$J$282,,MATCH(K$4,'C. PoC Adj Factor Scoring'!$E$3:$AH$3,0)-1),MATCH(K$2&\" Score\",'C. PoC Adj Factor Scoring'!$E$4:$J$4,0),TRUE)","v":1},{"$f":"VLOOKUP(OFFSET($B:$B,,MATCH(L$4,$B$4:$F$4,0)-1),OFFSET('C. PoC Adj Factor Scoring'!$E$5:$J$282,,MATCH(L$4,'C. PoC Adj Factor Scoring'!$E$3:$AH$3,0)-1),MATCH(L$2&\" Score\",'C. PoC Adj Factor Scoring'!$E$4:$J$4,0),TRUE)","v":1},{"$f":"VLOOKUP(OFFSET($B:$B,,MATCH(M$4,$B$4:$F$4,0)-1),OFFSET('C. PoC Adj Factor Scoring'!$E$5:$J$282,,MATCH(M$4,'C. PoC Adj Factor Scoring'!$E$3:$AH$3,0)-1),MATCH(M$2&\" Score\",'C. PoC Adj Factor Scoring'!$E$4:$J$4,0),TRUE)","v":1},{"$f":"VLOOKUP(OFFSET($B:$B,,MATCH(N$4,$B$4:$F$4,0)-1),OFFSET('C. PoC Adj Factor Scoring'!$E$5:$J$282,,MATCH(N$4,'C. PoC Adj Factor Scoring'!$E$3:$AH$3,0)-1),MATCH(N$2&\" Score\",'C. PoC Adj Factor Scoring'!$E$4:$J$4,0),TRUE)","v":1},{"$f":"VLOOKUP(OFFSET($B:$B,,MATCH(O$4,$B$4:$F$4,0)-1),OFFSET('C. PoC Adj Factor Scoring'!$E$5:$J$282,,MATCH(O$4,'C. PoC Adj Factor Scoring'!$E$3:$AH$3,0)-1),MATCH(O$2&\" Score\",'C. PoC Adj Factor Scoring'!$E$4:$J$4,0),TRUE)","v":1},{"$f":"VLOOKUP(OFFSET($B:$B,,MATCH(P$4,$B$4:$F$4,0)-1),OFFSET('C. PoC Adj Factor Scoring'!$E$5:$J$282,,MATCH(P$4,'C. PoC Adj Factor Scoring'!$E$3:$AH$3,0)-1),MATCH(P$2&\" Score\",'C. PoC Adj Factor Scoring'!$E$4:$J$4,0),TRUE)","v":1},{"$f":"VLOOKUP(OFFSET($B:$B,,MATCH(Q$4,$B$4:$F$4,0)-1),OFFSET('C. PoC Adj Factor Scoring'!$E$5:$J$282,,MATCH(Q$4,'C. PoC Adj Factor Scoring'!$E$3:$AH$3,0)-1),MATCH(Q$2&\" Score\",'C. PoC Adj Factor Scoring'!$E$4:$J$4,0),TRUE)","v":1},{"$f":"VLOOKUP(OFFSET($B:$B,,MATCH(R$4,$B$4:$F$4,0)-1),OFFSET('C. PoC Adj Factor Scoring'!$E$5:$J$282,,MATCH(R$4,'C. PoC Adj Factor Scoring'!$E$3:$AH$3,0)-1),MATCH(R$2&\" Score\",'C. PoC Adj Factor Scoring'!$E$4:$J$4,0),TRUE)","v":1},{"$f":"VLOOKUP(OFFSET($B:$B,,MATCH(S$4,$B$4:$F$4,0)-1),OFFSET('C. PoC Adj Factor Scoring'!$E$5:$J$282,,MATCH(S$4,'C. PoC Adj Factor Scoring'!$E$3:$AH$3,0)-1),MATCH(S$2&\" Score\",'C. PoC Adj Factor Scoring'!$E$4:$J$4,0),TRUE)","v":1},{"$f":"VLOOKUP(OFFSET($B:$B,,MATCH(T$4,$B$4:$F$4,0)-1),OFFSET('C. PoC Adj Factor Scoring'!$E$5:$J$282,,MATCH(T$4,'C. PoC Adj Factor Scoring'!$E$3:$AH$3,0)-1),MATCH(T$2&\" Score\",'C. PoC Adj Factor Scoring'!$E$4:$J$4,0),TRUE)","v":1},{"$f":"VLOOKUP(OFFSET($B:$B,,MATCH(U$4,$B$4:$F$4,0)-1),OFFSET('C. PoC Adj Factor Scoring'!$E$5:$J$282,,MATCH(U$4,'C. PoC Adj Factor Scoring'!$E$3:$AH$3,0)-1),MATCH(U$2&\" Score\",'C. PoC Adj Factor Scoring'!$E$4:$J$4,0),TRUE)","v":1},{"$f":"VLOOKUP(OFFSET($B:$B,,MATCH(V$4,$B$4:$F$4,0)-1),OFFSET('C. PoC Adj Factor Scoring'!$E$5:$J$282,,MATCH(V$4,'C. PoC Adj Factor Scoring'!$E$3:$AH$3,0)-1),MATCH(V$2&\" Score\",'C. PoC Adj Factor Scoring'!$E$4:$J$4,0),TRUE)","v":1},{"$f":"VLOOKUP(OFFSET($B:$B,,MATCH(W$4,$B$4:$F$4,0)-1),OFFSET('C. PoC Adj Factor Scoring'!$E$5:$J$282,,MATCH(W$4,'C. PoC Adj Factor Scoring'!$E$3:$AH$3,0)-1),MATCH(W$2&\" Score\",'C. PoC Adj Factor Scoring'!$E$4:$J$4,0),TRUE)","v":1},{"$f":"VLOOKUP(OFFSET($B:$B,,MATCH(X$4,$B$4:$F$4,0)-1),OFFSET('C. PoC Adj Factor Scoring'!$E$5:$J$282,,MATCH(X$4,'C. PoC Adj Factor Scoring'!$E$3:$AH$3,0)-1),MATCH(X$2&\" Score\",'C. PoC Adj Factor Scoring'!$E$4:$J$4,0),TRUE)","v":1},{"$f":"VLOOKUP(OFFSET($B:$B,,MATCH(Y$4,$B$4:$F$4,0)-1),OFFSET('C. PoC Adj Factor Scoring'!$E$5:$J$282,,MATCH(Y$4,'C. PoC Adj Factor Scoring'!$E$3:$AH$3,0)-1),MATCH(Y$2&\" Score\",'C. PoC Adj Factor Scoring'!$E$4:$J$4,0),TRUE)","v":1},{"$f":"VLOOKUP(OFFSET($B:$B,,MATCH(Z$4,$B$4:$F$4,0)-1),OFFSET('C. PoC Adj Factor Scoring'!$E$5:$J$282,,MATCH(Z$4,'C. PoC Adj Factor Scoring'!$E$3:$AH$3,0)-1),MATCH(Z$2&\" Score\",'C. PoC Adj Factor Scoring'!$E$4:$J$4,0),TRUE)","v":1},{"$f":"VLOOKUP(OFFSET($B:$B,,MATCH(AA$4,$B$4:$F$4,0)-1),OFFSET('C. PoC Adj Factor Scoring'!$E$5:$J$282,,MATCH(AA$4,'C. PoC Adj Factor Scoring'!$E$3:$AH$3,0)-1),MATCH(AA$2&\" Score\",'C. PoC Adj Factor Scoring'!$E$4:$J$4,0),TRUE)","v":3},{"$f":"VLOOKUP(OFFSET($B:$B,,MATCH(AB$4,$B$4:$F$4,0)-1),OFFSET('C. PoC Adj Factor Scoring'!$E$5:$J$282,,MATCH(AB$4,'C. PoC Adj Factor Scoring'!$E$3:$AH$3,0)-1),MATCH(AB$2&\" Score\",'C. PoC Adj Factor Scoring'!$E$4:$J$4,0),TRUE)","v":1},{"$f":"VLOOKUP(OFFSET($B:$B,,MATCH(AC$4,$B$4:$F$4,0)-1),OFFSET('C. PoC Adj Factor Scoring'!$E$5:$J$282,,MATCH(AC$4,'C. PoC Adj Factor Scoring'!$E$3:$AH$3,0)-1),MATCH(AC$2&\" Score\",'C. PoC Adj Factor Scoring'!$E$4:$J$4,0),TRUE)","v":1},{"$f":"VLOOKUP(OFFSET($B:$B,,MATCH(AD$4,$B$4:$F$4,0)-1),OFFSET('C. PoC Adj Factor Scoring'!$E$5:$J$282,,MATCH(AD$4,'C. PoC Adj Factor Scoring'!$E$3:$AH$3,0)-1),MATCH(AD$2&\" Score\",'C. PoC Adj Factor Scoring'!$E$4:$J$4,0),TRUE)","v":1},{"$f":"VLOOKUP(OFFSET($B:$B,,MATCH(AE$4,$B$4:$F$4,0)-1),OFFSET('C. PoC Adj Factor Scoring'!$E$5:$J$282,,MATCH(AE$4,'C. PoC Adj Factor Scoring'!$E$3:$AH$3,0)-1),MATCH(AE$2&\" Score\",'C. PoC Adj Factor Scoring'!$E$4:$J$4,0),TRUE)","v":1}]
[{"$f":"'A. Population Info'!A231","v":1000358581},{"$f":"'A. Population Info'!L231","v":"OIL"},{"$f":"'A. Population Info'!M231","v":0},{"$f":"'A. Population Info'!N231","v":0},{"$f":"'A. Population Info'!O231","v":0},{"$f":"'A. Population Info'!P231","v":0},{"$f":"VLOOKUP(OFFSET($B:$B,,MATCH(G$4,$B$4:$F$4,0)-1),OFFSET('C. PoC Adj Factor Scoring'!$E$5:$J$282,,MATCH(G$4,'C. PoC Adj Factor Scoring'!$E$3:$AH$3,0)-1),MATCH(G$2&\" Score\",'C. PoC Adj Factor Scoring'!$E$4:$J$4,0),TRUE)","v":4},{"$f":"VLOOKUP(OFFSET($B:$B,,MATCH(H$4,$B$4:$F$4,0)-1),OFFSET('C. PoC Adj Factor Scoring'!$E$5:$J$282,,MATCH(H$4,'C. PoC Adj Factor Scoring'!$E$3:$AH$3,0)-1),MATCH(H$2&\" Score\",'C. PoC Adj Factor Scoring'!$E$4:$J$4,0),TRUE)","v":1},{"$f":"VLOOKUP(OFFSET($B:$B,,MATCH(I$4,$B$4:$F$4,0)-1),OFFSET('C. PoC Adj Factor Scoring'!$E$5:$J$282,,MATCH(I$4,'C. PoC Adj Factor Scoring'!$E$3:$AH$3,0)-1),MATCH(I$2&\" Score\",'C. PoC Adj Factor Scoring'!$E$4:$J$4,0),TRUE)","v":1},{"$f":"VLOOKUP(OFFSET($B:$B,,MATCH(J$4,$B$4:$F$4,0)-1),OFFSET('C. PoC Adj Factor Scoring'!$E$5:$J$282,,MATCH(J$4,'C. PoC Adj Factor Scoring'!$E$3:$AH$3,0)-1),MATCH(J$2&\" Score\",'C. PoC Adj Factor Scoring'!$E$4:$J$4,0),TRUE)","v":1},{"$f":"VLOOKUP(OFFSET($B:$B,,MATCH(K$4,$B$4:$F$4,0)-1),OFFSET('C. PoC Adj Factor Scoring'!$E$5:$J$282,,MATCH(K$4,'C. PoC Adj Factor Scoring'!$E$3:$AH$3,0)-1),MATCH(K$2&\" Score\",'C. PoC Adj Factor Scoring'!$E$4:$J$4,0),TRUE)","v":1},{"$f":"VLOOKUP(OFFSET($B:$B,,MATCH(L$4,$B$4:$F$4,0)-1),OFFSET('C. PoC Adj Factor Scoring'!$E$5:$J$282,,MATCH(L$4,'C. PoC Adj Factor Scoring'!$E$3:$AH$3,0)-1),MATCH(L$2&\" Score\",'C. PoC Adj Factor Scoring'!$E$4:$J$4,0),TRUE)","v":1},{"$f":"VLOOKUP(OFFSET($B:$B,,MATCH(M$4,$B$4:$F$4,0)-1),OFFSET('C. PoC Adj Factor Scoring'!$E$5:$J$282,,MATCH(M$4,'C. PoC Adj Factor Scoring'!$E$3:$AH$3,0)-1),MATCH(M$2&\" Score\",'C. PoC Adj Factor Scoring'!$E$4:$J$4,0),TRUE)","v":1},{"$f":"VLOOKUP(OFFSET($B:$B,,MATCH(N$4,$B$4:$F$4,0)-1),OFFSET('C. PoC Adj Factor Scoring'!$E$5:$J$282,,MATCH(N$4,'C. PoC Adj Factor Scoring'!$E$3:$AH$3,0)-1),MATCH(N$2&\" Score\",'C. PoC Adj Factor Scoring'!$E$4:$J$4,0),TRUE)","v":1},{"$f":"VLOOKUP(OFFSET($B:$B,,MATCH(O$4,$B$4:$F$4,0)-1),OFFSET('C. PoC Adj Factor Scoring'!$E$5:$J$282,,MATCH(O$4,'C. PoC Adj Factor Scoring'!$E$3:$AH$3,0)-1),MATCH(O$2&\" Score\",'C. PoC Adj Factor Scoring'!$E$4:$J$4,0),TRUE)","v":1},{"$f":"VLOOKUP(OFFSET($B:$B,,MATCH(P$4,$B$4:$F$4,0)-1),OFFSET('C. PoC Adj Factor Scoring'!$E$5:$J$282,,MATCH(P$4,'C. PoC Adj Factor Scoring'!$E$3:$AH$3,0)-1),MATCH(P$2&\" Score\",'C. PoC Adj Factor Scoring'!$E$4:$J$4,0),TRUE)","v":1},{"$f":"VLOOKUP(OFFSET($B:$B,,MATCH(Q$4,$B$4:$F$4,0)-1),OFFSET('C. PoC Adj Factor Scoring'!$E$5:$J$282,,MATCH(Q$4,'C. PoC Adj Factor Scoring'!$E$3:$AH$3,0)-1),MATCH(Q$2&\" Score\",'C. PoC Adj Factor Scoring'!$E$4:$J$4,0),TRUE)","v":1},{"$f":"VLOOKUP(OFFSET($B:$B,,MATCH(R$4,$B$4:$F$4,0)-1),OFFSET('C. PoC Adj Factor Scoring'!$E$5:$J$282,,MATCH(R$4,'C. PoC Adj Factor Scoring'!$E$3:$AH$3,0)-1),MATCH(R$2&\" Score\",'C. PoC Adj Factor Scoring'!$E$4:$J$4,0),TRUE)","v":1},{"$f":"VLOOKUP(OFFSET($B:$B,,MATCH(S$4,$B$4:$F$4,0)-1),OFFSET('C. PoC Adj Factor Scoring'!$E$5:$J$282,,MATCH(S$4,'C. PoC Adj Factor Scoring'!$E$3:$AH$3,0)-1),MATCH(S$2&\" Score\",'C. PoC Adj Factor Scoring'!$E$4:$J$4,0),TRUE)","v":1},{"$f":"VLOOKUP(OFFSET($B:$B,,MATCH(T$4,$B$4:$F$4,0)-1),OFFSET('C. PoC Adj Factor Scoring'!$E$5:$J$282,,MATCH(T$4,'C. PoC Adj Factor Scoring'!$E$3:$AH$3,0)-1),MATCH(T$2&\" Score\",'C. PoC Adj Factor Scoring'!$E$4:$J$4,0),TRUE)","v":1},{"$f":"VLOOKUP(OFFSET($B:$B,,MATCH(U$4,$B$4:$F$4,0)-1),OFFSET('C. PoC Adj Factor Scoring'!$E$5:$J$282,,MATCH(U$4,'C. PoC Adj Factor Scoring'!$E$3:$AH$3,0)-1),MATCH(U$2&\" Score\",'C. PoC Adj Factor Scoring'!$E$4:$J$4,0),TRUE)","v":1},{"$f":"VLOOKUP(OFFSET($B:$B,,MATCH(V$4,$B$4:$F$4,0)-1),OFFSET('C. PoC Adj Factor Scoring'!$E$5:$J$282,,MATCH(V$4,'C. PoC Adj Factor Scoring'!$E$3:$AH$3,0)-1),MATCH(V$2&\" Score\",'C. PoC Adj Factor Scoring'!$E$4:$J$4,0),TRUE)","v":1},{"$f":"VLOOKUP(OFFSET($B:$B,,MATCH(W$4,$B$4:$F$4,0)-1),OFFSET('C. PoC Adj Factor Scoring'!$E$5:$J$282,,MATCH(W$4,'C. PoC Adj Factor Scoring'!$E$3:$AH$3,0)-1),MATCH(W$2&\" Score\",'C. PoC Adj Factor Scoring'!$E$4:$J$4,0),TRUE)","v":1},{"$f":"VLOOKUP(OFFSET($B:$B,,MATCH(X$4,$B$4:$F$4,0)-1),OFFSET('C. PoC Adj Factor Scoring'!$E$5:$J$282,,MATCH(X$4,'C. PoC Adj Factor Scoring'!$E$3:$AH$3,0)-1),MATCH(X$2&\" Score\",'C. PoC Adj Factor Scoring'!$E$4:$J$4,0),TRUE)","v":1},{"$f":"VLOOKUP(OFFSET($B:$B,,MATCH(Y$4,$B$4:$F$4,0)-1),OFFSET('C. PoC Adj Factor Scoring'!$E$5:$J$282,,MATCH(Y$4,'C. PoC Adj Factor Scoring'!$E$3:$AH$3,0)-1),MATCH(Y$2&\" Score\",'C. PoC Adj Factor Scoring'!$E$4:$J$4,0),TRUE)","v":1},{"$f":"VLOOKUP(OFFSET($B:$B,,MATCH(Z$4,$B$4:$F$4,0)-1),OFFSET('C. PoC Adj Factor Scoring'!$E$5:$J$282,,MATCH(Z$4,'C. PoC Adj Factor Scoring'!$E$3:$AH$3,0)-1),MATCH(Z$2&\" Score\",'C. PoC Adj Factor Scoring'!$E$4:$J$4,0),TRUE)","v":1},{"$f":"VLOOKUP(OFFSET($B:$B,,MATCH(AA$4,$B$4:$F$4,0)-1),OFFSET('C. PoC Adj Factor Scoring'!$E$5:$J$282,,MATCH(AA$4,'C. PoC Adj Factor Scoring'!$E$3:$AH$3,0)-1),MATCH(AA$2&\" Score\",'C. PoC Adj Factor Scoring'!$E$4:$J$4,0),TRUE)","v":3},{"$f":"VLOOKUP(OFFSET($B:$B,,MATCH(AB$4,$B$4:$F$4,0)-1),OFFSET('C. PoC Adj Factor Scoring'!$E$5:$J$282,,MATCH(AB$4,'C. PoC Adj Factor Scoring'!$E$3:$AH$3,0)-1),MATCH(AB$2&\" Score\",'C. PoC Adj Factor Scoring'!$E$4:$J$4,0),TRUE)","v":1},{"$f":"VLOOKUP(OFFSET($B:$B,,MATCH(AC$4,$B$4:$F$4,0)-1),OFFSET('C. PoC Adj Factor Scoring'!$E$5:$J$282,,MATCH(AC$4,'C. PoC Adj Factor Scoring'!$E$3:$AH$3,0)-1),MATCH(AC$2&\" Score\",'C. PoC Adj Factor Scoring'!$E$4:$J$4,0),TRUE)","v":1},{"$f":"VLOOKUP(OFFSET($B:$B,,MATCH(AD$4,$B$4:$F$4,0)-1),OFFSET('C. PoC Adj Factor Scoring'!$E$5:$J$282,,MATCH(AD$4,'C. PoC Adj Factor Scoring'!$E$3:$AH$3,0)-1),MATCH(AD$2&\" Score\",'C. PoC Adj Factor Scoring'!$E$4:$J$4,0),TRUE)","v":1},{"$f":"VLOOKUP(OFFSET($B:$B,,MATCH(AE$4,$B$4:$F$4,0)-1),OFFSET('C. PoC Adj Factor Scoring'!$E$5:$J$282,,MATCH(AE$4,'C. PoC Adj Factor Scoring'!$E$3:$AH$3,0)-1),MATCH(AE$2&\" Score\",'C. PoC Adj Factor Scoring'!$E$4:$J$4,0),TRUE)","v":1}]
[{"$f":"'A. Population Info'!A232","v":1000358609},{"$f":"'A. Population Info'!L232","v":"OIL"},{"$f":"'A. Population Info'!M232","v":0},{"$f":"'A. Population Info'!N232","v":0},{"$f":"'A. Population Info'!O232","v":0},{"$f":"'A. Population Info'!P232","v":0},{"$f":"VLOOKUP(OFFSET($B:$B,,MATCH(G$4,$B$4:$F$4,0)-1),OFFSET('C. PoC Adj Factor Scoring'!$E$5:$J$282,,MATCH(G$4,'C. PoC Adj Factor Scoring'!$E$3:$AH$3,0)-1),MATCH(G$2&\" Score\",'C. PoC Adj Factor Scoring'!$E$4:$J$4,0),TRUE)","v":4},{"$f":"VLOOKUP(OFFSET($B:$B,,MATCH(H$4,$B$4:$F$4,0)-1),OFFSET('C. PoC Adj Factor Scoring'!$E$5:$J$282,,MATCH(H$4,'C. PoC Adj Factor Scoring'!$E$3:$AH$3,0)-1),MATCH(H$2&\" Score\",'C. PoC Adj Factor Scoring'!$E$4:$J$4,0),TRUE)","v":1},{"$f":"VLOOKUP(OFFSET($B:$B,,MATCH(I$4,$B$4:$F$4,0)-1),OFFSET('C. PoC Adj Factor Scoring'!$E$5:$J$282,,MATCH(I$4,'C. PoC Adj Factor Scoring'!$E$3:$AH$3,0)-1),MATCH(I$2&\" Score\",'C. PoC Adj Factor Scoring'!$E$4:$J$4,0),TRUE)","v":1},{"$f":"VLOOKUP(OFFSET($B:$B,,MATCH(J$4,$B$4:$F$4,0)-1),OFFSET('C. PoC Adj Factor Scoring'!$E$5:$J$282,,MATCH(J$4,'C. PoC Adj Factor Scoring'!$E$3:$AH$3,0)-1),MATCH(J$2&\" Score\",'C. PoC Adj Factor Scoring'!$E$4:$J$4,0),TRUE)","v":1},{"$f":"VLOOKUP(OFFSET($B:$B,,MATCH(K$4,$B$4:$F$4,0)-1),OFFSET('C. PoC Adj Factor Scoring'!$E$5:$J$282,,MATCH(K$4,'C. PoC Adj Factor Scoring'!$E$3:$AH$3,0)-1),MATCH(K$2&\" Score\",'C. PoC Adj Factor Scoring'!$E$4:$J$4,0),TRUE)","v":1},{"$f":"VLOOKUP(OFFSET($B:$B,,MATCH(L$4,$B$4:$F$4,0)-1),OFFSET('C. PoC Adj Factor Scoring'!$E$5:$J$282,,MATCH(L$4,'C. PoC Adj Factor Scoring'!$E$3:$AH$3,0)-1),MATCH(L$2&\" Score\",'C. PoC Adj Factor Scoring'!$E$4:$J$4,0),TRUE)","v":1},{"$f":"VLOOKUP(OFFSET($B:$B,,MATCH(M$4,$B$4:$F$4,0)-1),OFFSET('C. PoC Adj Factor Scoring'!$E$5:$J$282,,MATCH(M$4,'C. PoC Adj Factor Scoring'!$E$3:$AH$3,0)-1),MATCH(M$2&\" Score\",'C. PoC Adj Factor Scoring'!$E$4:$J$4,0),TRUE)","v":1},{"$f":"VLOOKUP(OFFSET($B:$B,,MATCH(N$4,$B$4:$F$4,0)-1),OFFSET('C. PoC Adj Factor Scoring'!$E$5:$J$282,,MATCH(N$4,'C. PoC Adj Factor Scoring'!$E$3:$AH$3,0)-1),MATCH(N$2&\" Score\",'C. PoC Adj Factor Scoring'!$E$4:$J$4,0),TRUE)","v":1},{"$f":"VLOOKUP(OFFSET($B:$B,,MATCH(O$4,$B$4:$F$4,0)-1),OFFSET('C. PoC Adj Factor Scoring'!$E$5:$J$282,,MATCH(O$4,'C. PoC Adj Factor Scoring'!$E$3:$AH$3,0)-1),MATCH(O$2&\" Score\",'C. PoC Adj Factor Scoring'!$E$4:$J$4,0),TRUE)","v":1},{"$f":"VLOOKUP(OFFSET($B:$B,,MATCH(P$4,$B$4:$F$4,0)-1),OFFSET('C. PoC Adj Factor Scoring'!$E$5:$J$282,,MATCH(P$4,'C. PoC Adj Factor Scoring'!$E$3:$AH$3,0)-1),MATCH(P$2&\" Score\",'C. PoC Adj Factor Scoring'!$E$4:$J$4,0),TRUE)","v":1},{"$f":"VLOOKUP(OFFSET($B:$B,,MATCH(Q$4,$B$4:$F$4,0)-1),OFFSET('C. PoC Adj Factor Scoring'!$E$5:$J$282,,MATCH(Q$4,'C. PoC Adj Factor Scoring'!$E$3:$AH$3,0)-1),MATCH(Q$2&\" Score\",'C. PoC Adj Factor Scoring'!$E$4:$J$4,0),TRUE)","v":1},{"$f":"VLOOKUP(OFFSET($B:$B,,MATCH(R$4,$B$4:$F$4,0)-1),OFFSET('C. PoC Adj Factor Scoring'!$E$5:$J$282,,MATCH(R$4,'C. PoC Adj Factor Scoring'!$E$3:$AH$3,0)-1),MATCH(R$2&\" Score\",'C. PoC Adj Factor Scoring'!$E$4:$J$4,0),TRUE)","v":1},{"$f":"VLOOKUP(OFFSET($B:$B,,MATCH(S$4,$B$4:$F$4,0)-1),OFFSET('C. PoC Adj Factor Scoring'!$E$5:$J$282,,MATCH(S$4,'C. PoC Adj Factor Scoring'!$E$3:$AH$3,0)-1),MATCH(S$2&\" Score\",'C. PoC Adj Factor Scoring'!$E$4:$J$4,0),TRUE)","v":1},{"$f":"VLOOKUP(OFFSET($B:$B,,MATCH(T$4,$B$4:$F$4,0)-1),OFFSET('C. PoC Adj Factor Scoring'!$E$5:$J$282,,MATCH(T$4,'C. PoC Adj Factor Scoring'!$E$3:$AH$3,0)-1),MATCH(T$2&\" Score\",'C. PoC Adj Factor Scoring'!$E$4:$J$4,0),TRUE)","v":1},{"$f":"VLOOKUP(OFFSET($B:$B,,MATCH(U$4,$B$4:$F$4,0)-1),OFFSET('C. PoC Adj Factor Scoring'!$E$5:$J$282,,MATCH(U$4,'C. PoC Adj Factor Scoring'!$E$3:$AH$3,0)-1),MATCH(U$2&\" Score\",'C. PoC Adj Factor Scoring'!$E$4:$J$4,0),TRUE)","v":1},{"$f":"VLOOKUP(OFFSET($B:$B,,MATCH(V$4,$B$4:$F$4,0)-1),OFFSET('C. PoC Adj Factor Scoring'!$E$5:$J$282,,MATCH(V$4,'C. PoC Adj Factor Scoring'!$E$3:$AH$3,0)-1),MATCH(V$2&\" Score\",'C. PoC Adj Factor Scoring'!$E$4:$J$4,0),TRUE)","v":1},{"$f":"VLOOKUP(OFFSET($B:$B,,MATCH(W$4,$B$4:$F$4,0)-1),OFFSET('C. PoC Adj Factor Scoring'!$E$5:$J$282,,MATCH(W$4,'C. PoC Adj Factor Scoring'!$E$3:$AH$3,0)-1),MATCH(W$2&\" Score\",'C. PoC Adj Factor Scoring'!$E$4:$J$4,0),TRUE)","v":1},{"$f":"VLOOKUP(OFFSET($B:$B,,MATCH(X$4,$B$4:$F$4,0)-1),OFFSET('C. PoC Adj Factor Scoring'!$E$5:$J$282,,MATCH(X$4,'C. PoC Adj Factor Scoring'!$E$3:$AH$3,0)-1),MATCH(X$2&\" Score\",'C. PoC Adj Factor Scoring'!$E$4:$J$4,0),TRUE)","v":1},{"$f":"VLOOKUP(OFFSET($B:$B,,MATCH(Y$4,$B$4:$F$4,0)-1),OFFSET('C. PoC Adj Factor Scoring'!$E$5:$J$282,,MATCH(Y$4,'C. PoC Adj Factor Scoring'!$E$3:$AH$3,0)-1),MATCH(Y$2&\" Score\",'C. PoC Adj Factor Scoring'!$E$4:$J$4,0),TRUE)","v":1},{"$f":"VLOOKUP(OFFSET($B:$B,,MATCH(Z$4,$B$4:$F$4,0)-1),OFFSET('C. PoC Adj Factor Scoring'!$E$5:$J$282,,MATCH(Z$4,'C. PoC Adj Factor Scoring'!$E$3:$AH$3,0)-1),MATCH(Z$2&\" Score\",'C. PoC Adj Factor Scoring'!$E$4:$J$4,0),TRUE)","v":1},{"$f":"VLOOKUP(OFFSET($B:$B,,MATCH(AA$4,$B$4:$F$4,0)-1),OFFSET('C. PoC Adj Factor Scoring'!$E$5:$J$282,,MATCH(AA$4,'C. PoC Adj Factor Scoring'!$E$3:$AH$3,0)-1),MATCH(AA$2&\" Score\",'C. PoC Adj Factor Scoring'!$E$4:$J$4,0),TRUE)","v":3},{"$f":"VLOOKUP(OFFSET($B:$B,,MATCH(AB$4,$B$4:$F$4,0)-1),OFFSET('C. PoC Adj Factor Scoring'!$E$5:$J$282,,MATCH(AB$4,'C. PoC Adj Factor Scoring'!$E$3:$AH$3,0)-1),MATCH(AB$2&\" Score\",'C. PoC Adj Factor Scoring'!$E$4:$J$4,0),TRUE)","v":1},{"$f":"VLOOKUP(OFFSET($B:$B,,MATCH(AC$4,$B$4:$F$4,0)-1),OFFSET('C. PoC Adj Factor Scoring'!$E$5:$J$282,,MATCH(AC$4,'C. PoC Adj Factor Scoring'!$E$3:$AH$3,0)-1),MATCH(AC$2&\" Score\",'C. PoC Adj Factor Scoring'!$E$4:$J$4,0),TRUE)","v":1},{"$f":"VLOOKUP(OFFSET($B:$B,,MATCH(AD$4,$B$4:$F$4,0)-1),OFFSET('C. PoC Adj Factor Scoring'!$E$5:$J$282,,MATCH(AD$4,'C. PoC Adj Factor Scoring'!$E$3:$AH$3,0)-1),MATCH(AD$2&\" Score\",'C. PoC Adj Factor Scoring'!$E$4:$J$4,0),TRUE)","v":1},{"$f":"VLOOKUP(OFFSET($B:$B,,MATCH(AE$4,$B$4:$F$4,0)-1),OFFSET('C. PoC Adj Factor Scoring'!$E$5:$J$282,,MATCH(AE$4,'C. PoC Adj Factor Scoring'!$E$3:$AH$3,0)-1),MATCH(AE$2&\" Score\",'C. PoC Adj Factor Scoring'!$E$4:$J$4,0),TRUE)","v":1}]
[{"$f":"'A. Population Info'!A233","v":1000358641},{"$f":"'A. Population Info'!L233","v":"OIL"},{"$f":"'A. Population Info'!M233","v":0},{"$f":"'A. Population Info'!N233","v":0},{"$f":"'A. Population Info'!O233","v":0},{"$f":"'A. Population Info'!P233","v":0},{"$f":"VLOOKUP(OFFSET($B:$B,,MATCH(G$4,$B$4:$F$4,0)-1),OFFSET('C. PoC Adj Factor Scoring'!$E$5:$J$282,,MATCH(G$4,'C. PoC Adj Factor Scoring'!$E$3:$AH$3,0)-1),MATCH(G$2&\" Score\",'C. PoC Adj Factor Scoring'!$E$4:$J$4,0),TRUE)","v":4},{"$f":"VLOOKUP(OFFSET($B:$B,,MATCH(H$4,$B$4:$F$4,0)-1),OFFSET('C. PoC Adj Factor Scoring'!$E$5:$J$282,,MATCH(H$4,'C. PoC Adj Factor Scoring'!$E$3:$AH$3,0)-1),MATCH(H$2&\" Score\",'C. PoC Adj Factor Scoring'!$E$4:$J$4,0),TRUE)","v":1},{"$f":"VLOOKUP(OFFSET($B:$B,,MATCH(I$4,$B$4:$F$4,0)-1),OFFSET('C. PoC Adj Factor Scoring'!$E$5:$J$282,,MATCH(I$4,'C. PoC Adj Factor Scoring'!$E$3:$AH$3,0)-1),MATCH(I$2&\" Score\",'C. PoC Adj Factor Scoring'!$E$4:$J$4,0),TRUE)","v":1},{"$f":"VLOOKUP(OFFSET($B:$B,,MATCH(J$4,$B$4:$F$4,0)-1),OFFSET('C. PoC Adj Factor Scoring'!$E$5:$J$282,,MATCH(J$4,'C. PoC Adj Factor Scoring'!$E$3:$AH$3,0)-1),MATCH(J$2&\" Score\",'C. PoC Adj Factor Scoring'!$E$4:$J$4,0),TRUE)","v":1},{"$f":"VLOOKUP(OFFSET($B:$B,,MATCH(K$4,$B$4:$F$4,0)-1),OFFSET('C. PoC Adj Factor Scoring'!$E$5:$J$282,,MATCH(K$4,'C. PoC Adj Factor Scoring'!$E$3:$AH$3,0)-1),MATCH(K$2&\" Score\",'C. PoC Adj Factor Scoring'!$E$4:$J$4,0),TRUE)","v":1},{"$f":"VLOOKUP(OFFSET($B:$B,,MATCH(L$4,$B$4:$F$4,0)-1),OFFSET('C. PoC Adj Factor Scoring'!$E$5:$J$282,,MATCH(L$4,'C. PoC Adj Factor Scoring'!$E$3:$AH$3,0)-1),MATCH(L$2&\" Score\",'C. PoC Adj Factor Scoring'!$E$4:$J$4,0),TRUE)","v":1},{"$f":"VLOOKUP(OFFSET($B:$B,,MATCH(M$4,$B$4:$F$4,0)-1),OFFSET('C. PoC Adj Factor Scoring'!$E$5:$J$282,,MATCH(M$4,'C. PoC Adj Factor Scoring'!$E$3:$AH$3,0)-1),MATCH(M$2&\" Score\",'C. PoC Adj Factor Scoring'!$E$4:$J$4,0),TRUE)","v":1},{"$f":"VLOOKUP(OFFSET($B:$B,,MATCH(N$4,$B$4:$F$4,0)-1),OFFSET('C. PoC Adj Factor Scoring'!$E$5:$J$282,,MATCH(N$4,'C. PoC Adj Factor Scoring'!$E$3:$AH$3,0)-1),MATCH(N$2&\" Score\",'C. PoC Adj Factor Scoring'!$E$4:$J$4,0),TRUE)","v":1},{"$f":"VLOOKUP(OFFSET($B:$B,,MATCH(O$4,$B$4:$F$4,0)-1),OFFSET('C. PoC Adj Factor Scoring'!$E$5:$J$282,,MATCH(O$4,'C. PoC Adj Factor Scoring'!$E$3:$AH$3,0)-1),MATCH(O$2&\" Score\",'C. PoC Adj Factor Scoring'!$E$4:$J$4,0),TRUE)","v":1},{"$f":"VLOOKUP(OFFSET($B:$B,,MATCH(P$4,$B$4:$F$4,0)-1),OFFSET('C. PoC Adj Factor Scoring'!$E$5:$J$282,,MATCH(P$4,'C. PoC Adj Factor Scoring'!$E$3:$AH$3,0)-1),MATCH(P$2&\" Score\",'C. PoC Adj Factor Scoring'!$E$4:$J$4,0),TRUE)","v":1},{"$f":"VLOOKUP(OFFSET($B:$B,,MATCH(Q$4,$B$4:$F$4,0)-1),OFFSET('C. PoC Adj Factor Scoring'!$E$5:$J$282,,MATCH(Q$4,'C. PoC Adj Factor Scoring'!$E$3:$AH$3,0)-1),MATCH(Q$2&\" Score\",'C. PoC Adj Factor Scoring'!$E$4:$J$4,0),TRUE)","v":1},{"$f":"VLOOKUP(OFFSET($B:$B,,MATCH(R$4,$B$4:$F$4,0)-1),OFFSET('C. PoC Adj Factor Scoring'!$E$5:$J$282,,MATCH(R$4,'C. PoC Adj Factor Scoring'!$E$3:$AH$3,0)-1),MATCH(R$2&\" Score\",'C. PoC Adj Factor Scoring'!$E$4:$J$4,0),TRUE)","v":1},{"$f":"VLOOKUP(OFFSET($B:$B,,MATCH(S$4,$B$4:$F$4,0)-1),OFFSET('C. PoC Adj Factor Scoring'!$E$5:$J$282,,MATCH(S$4,'C. PoC Adj Factor Scoring'!$E$3:$AH$3,0)-1),MATCH(S$2&\" Score\",'C. PoC Adj Factor Scoring'!$E$4:$J$4,0),TRUE)","v":1},{"$f":"VLOOKUP(OFFSET($B:$B,,MATCH(T$4,$B$4:$F$4,0)-1),OFFSET('C. PoC Adj Factor Scoring'!$E$5:$J$282,,MATCH(T$4,'C. PoC Adj Factor Scoring'!$E$3:$AH$3,0)-1),MATCH(T$2&\" Score\",'C. PoC Adj Factor Scoring'!$E$4:$J$4,0),TRUE)","v":1},{"$f":"VLOOKUP(OFFSET($B:$B,,MATCH(U$4,$B$4:$F$4,0)-1),OFFSET('C. PoC Adj Factor Scoring'!$E$5:$J$282,,MATCH(U$4,'C. PoC Adj Factor Scoring'!$E$3:$AH$3,0)-1),MATCH(U$2&\" Score\",'C. PoC Adj Factor Scoring'!$E$4:$J$4,0),TRUE)","v":1},{"$f":"VLOOKUP(OFFSET($B:$B,,MATCH(V$4,$B$4:$F$4,0)-1),OFFSET('C. PoC Adj Factor Scoring'!$E$5:$J$282,,MATCH(V$4,'C. PoC Adj Factor Scoring'!$E$3:$AH$3,0)-1),MATCH(V$2&\" Score\",'C. PoC Adj Factor Scoring'!$E$4:$J$4,0),TRUE)","v":1},{"$f":"VLOOKUP(OFFSET($B:$B,,MATCH(W$4,$B$4:$F$4,0)-1),OFFSET('C. PoC Adj Factor Scoring'!$E$5:$J$282,,MATCH(W$4,'C. PoC Adj Factor Scoring'!$E$3:$AH$3,0)-1),MATCH(W$2&\" Score\",'C. PoC Adj Factor Scoring'!$E$4:$J$4,0),TRUE)","v":1},{"$f":"VLOOKUP(OFFSET($B:$B,,MATCH(X$4,$B$4:$F$4,0)-1),OFFSET('C. PoC Adj Factor Scoring'!$E$5:$J$282,,MATCH(X$4,'C. PoC Adj Factor Scoring'!$E$3:$AH$3,0)-1),MATCH(X$2&\" Score\",'C. PoC Adj Factor Scoring'!$E$4:$J$4,0),TRUE)","v":1},{"$f":"VLOOKUP(OFFSET($B:$B,,MATCH(Y$4,$B$4:$F$4,0)-1),OFFSET('C. PoC Adj Factor Scoring'!$E$5:$J$282,,MATCH(Y$4,'C. PoC Adj Factor Scoring'!$E$3:$AH$3,0)-1),MATCH(Y$2&\" Score\",'C. PoC Adj Factor Scoring'!$E$4:$J$4,0),TRUE)","v":1},{"$f":"VLOOKUP(OFFSET($B:$B,,MATCH(Z$4,$B$4:$F$4,0)-1),OFFSET('C. PoC Adj Factor Scoring'!$E$5:$J$282,,MATCH(Z$4,'C. PoC Adj Factor Scoring'!$E$3:$AH$3,0)-1),MATCH(Z$2&\" Score\",'C. PoC Adj Factor Scoring'!$E$4:$J$4,0),TRUE)","v":1},{"$f":"VLOOKUP(OFFSET($B:$B,,MATCH(AA$4,$B$4:$F$4,0)-1),OFFSET('C. PoC Adj Factor Scoring'!$E$5:$J$282,,MATCH(AA$4,'C. PoC Adj Factor Scoring'!$E$3:$AH$3,0)-1),MATCH(AA$2&\" Score\",'C. PoC Adj Factor Scoring'!$E$4:$J$4,0),TRUE)","v":3},{"$f":"VLOOKUP(OFFSET($B:$B,,MATCH(AB$4,$B$4:$F$4,0)-1),OFFSET('C. PoC Adj Factor Scoring'!$E$5:$J$282,,MATCH(AB$4,'C. PoC Adj Factor Scoring'!$E$3:$AH$3,0)-1),MATCH(AB$2&\" Score\",'C. PoC Adj Factor Scoring'!$E$4:$J$4,0),TRUE)","v":1},{"$f":"VLOOKUP(OFFSET($B:$B,,MATCH(AC$4,$B$4:$F$4,0)-1),OFFSET('C. PoC Adj Factor Scoring'!$E$5:$J$282,,MATCH(AC$4,'C. PoC Adj Factor Scoring'!$E$3:$AH$3,0)-1),MATCH(AC$2&\" Score\",'C. PoC Adj Factor Scoring'!$E$4:$J$4,0),TRUE)","v":1},{"$f":"VLOOKUP(OFFSET($B:$B,,MATCH(AD$4,$B$4:$F$4,0)-1),OFFSET('C. PoC Adj Factor Scoring'!$E$5:$J$282,,MATCH(AD$4,'C. PoC Adj Factor Scoring'!$E$3:$AH$3,0)-1),MATCH(AD$2&\" Score\",'C. PoC Adj Factor Scoring'!$E$4:$J$4,0),TRUE)","v":1},{"$f":"VLOOKUP(OFFSET($B:$B,,MATCH(AE$4,$B$4:$F$4,0)-1),OFFSET('C. PoC Adj Factor Scoring'!$E$5:$J$282,,MATCH(AE$4,'C. PoC Adj Factor Scoring'!$E$3:$AH$3,0)-1),MATCH(AE$2&\" Score\",'C. PoC Adj Factor Scoring'!$E$4:$J$4,0),TRUE)","v":1}]
[{"$f":"'A. Population Info'!A234","v":1000358676},{"$f":"'A. Population Info'!L234","v":"OIL"},{"$f":"'A. Population Info'!M234","v":0},{"$f":"'A. Population Info'!N234","v":0},{"$f":"'A. Population Info'!O234","v":0},{"$f":"'A. Population Info'!P234","v":0},{"$f":"VLOOKUP(OFFSET($B:$B,,MATCH(G$4,$B$4:$F$4,0)-1),OFFSET('C. PoC Adj Factor Scoring'!$E$5:$J$282,,MATCH(G$4,'C. PoC Adj Factor Scoring'!$E$3:$AH$3,0)-1),MATCH(G$2&\" Score\",'C. PoC Adj Factor Scoring'!$E$4:$J$4,0),TRUE)","v":4},{"$f":"VLOOKUP(OFFSET($B:$B,,MATCH(H$4,$B$4:$F$4,0)-1),OFFSET('C. PoC Adj Factor Scoring'!$E$5:$J$282,,MATCH(H$4,'C. PoC Adj Factor Scoring'!$E$3:$AH$3,0)-1),MATCH(H$2&\" Score\",'C. PoC Adj Factor Scoring'!$E$4:$J$4,0),TRUE)","v":1},{"$f":"VLOOKUP(OFFSET($B:$B,,MATCH(I$4,$B$4:$F$4,0)-1),OFFSET('C. PoC Adj Factor Scoring'!$E$5:$J$282,,MATCH(I$4,'C. PoC Adj Factor Scoring'!$E$3:$AH$3,0)-1),MATCH(I$2&\" Score\",'C. PoC Adj Factor Scoring'!$E$4:$J$4,0),TRUE)","v":1},{"$f":"VLOOKUP(OFFSET($B:$B,,MATCH(J$4,$B$4:$F$4,0)-1),OFFSET('C. PoC Adj Factor Scoring'!$E$5:$J$282,,MATCH(J$4,'C. PoC Adj Factor Scoring'!$E$3:$AH$3,0)-1),MATCH(J$2&\" Score\",'C. PoC Adj Factor Scoring'!$E$4:$J$4,0),TRUE)","v":1},{"$f":"VLOOKUP(OFFSET($B:$B,,MATCH(K$4,$B$4:$F$4,0)-1),OFFSET('C. PoC Adj Factor Scoring'!$E$5:$J$282,,MATCH(K$4,'C. PoC Adj Factor Scoring'!$E$3:$AH$3,0)-1),MATCH(K$2&\" Score\",'C. PoC Adj Factor Scoring'!$E$4:$J$4,0),TRUE)","v":1},{"$f":"VLOOKUP(OFFSET($B:$B,,MATCH(L$4,$B$4:$F$4,0)-1),OFFSET('C. PoC Adj Factor Scoring'!$E$5:$J$282,,MATCH(L$4,'C. PoC Adj Factor Scoring'!$E$3:$AH$3,0)-1),MATCH(L$2&\" Score\",'C. PoC Adj Factor Scoring'!$E$4:$J$4,0),TRUE)","v":1},{"$f":"VLOOKUP(OFFSET($B:$B,,MATCH(M$4,$B$4:$F$4,0)-1),OFFSET('C. PoC Adj Factor Scoring'!$E$5:$J$282,,MATCH(M$4,'C. PoC Adj Factor Scoring'!$E$3:$AH$3,0)-1),MATCH(M$2&\" Score\",'C. PoC Adj Factor Scoring'!$E$4:$J$4,0),TRUE)","v":1},{"$f":"VLOOKUP(OFFSET($B:$B,,MATCH(N$4,$B$4:$F$4,0)-1),OFFSET('C. PoC Adj Factor Scoring'!$E$5:$J$282,,MATCH(N$4,'C. PoC Adj Factor Scoring'!$E$3:$AH$3,0)-1),MATCH(N$2&\" Score\",'C. PoC Adj Factor Scoring'!$E$4:$J$4,0),TRUE)","v":1},{"$f":"VLOOKUP(OFFSET($B:$B,,MATCH(O$4,$B$4:$F$4,0)-1),OFFSET('C. PoC Adj Factor Scoring'!$E$5:$J$282,,MATCH(O$4,'C. PoC Adj Factor Scoring'!$E$3:$AH$3,0)-1),MATCH(O$2&\" Score\",'C. PoC Adj Factor Scoring'!$E$4:$J$4,0),TRUE)","v":1},{"$f":"VLOOKUP(OFFSET($B:$B,,MATCH(P$4,$B$4:$F$4,0)-1),OFFSET('C. PoC Adj Factor Scoring'!$E$5:$J$282,,MATCH(P$4,'C. PoC Adj Factor Scoring'!$E$3:$AH$3,0)-1),MATCH(P$2&\" Score\",'C. PoC Adj Factor Scoring'!$E$4:$J$4,0),TRUE)","v":1},{"$f":"VLOOKUP(OFFSET($B:$B,,MATCH(Q$4,$B$4:$F$4,0)-1),OFFSET('C. PoC Adj Factor Scoring'!$E$5:$J$282,,MATCH(Q$4,'C. PoC Adj Factor Scoring'!$E$3:$AH$3,0)-1),MATCH(Q$2&\" Score\",'C. PoC Adj Factor Scoring'!$E$4:$J$4,0),TRUE)","v":1},{"$f":"VLOOKUP(OFFSET($B:$B,,MATCH(R$4,$B$4:$F$4,0)-1),OFFSET('C. PoC Adj Factor Scoring'!$E$5:$J$282,,MATCH(R$4,'C. PoC Adj Factor Scoring'!$E$3:$AH$3,0)-1),MATCH(R$2&\" Score\",'C. PoC Adj Factor Scoring'!$E$4:$J$4,0),TRUE)","v":1},{"$f":"VLOOKUP(OFFSET($B:$B,,MATCH(S$4,$B$4:$F$4,0)-1),OFFSET('C. PoC Adj Factor Scoring'!$E$5:$J$282,,MATCH(S$4,'C. PoC Adj Factor Scoring'!$E$3:$AH$3,0)-1),MATCH(S$2&\" Score\",'C. PoC Adj Factor Scoring'!$E$4:$J$4,0),TRUE)","v":1},{"$f":"VLOOKUP(OFFSET($B:$B,,MATCH(T$4,$B$4:$F$4,0)-1),OFFSET('C. PoC Adj Factor Scoring'!$E$5:$J$282,,MATCH(T$4,'C. PoC Adj Factor Scoring'!$E$3:$AH$3,0)-1),MATCH(T$2&\" Score\",'C. PoC Adj Factor Scoring'!$E$4:$J$4,0),TRUE)","v":1},{"$f":"VLOOKUP(OFFSET($B:$B,,MATCH(U$4,$B$4:$F$4,0)-1),OFFSET('C. PoC Adj Factor Scoring'!$E$5:$J$282,,MATCH(U$4,'C. PoC Adj Factor Scoring'!$E$3:$AH$3,0)-1),MATCH(U$2&\" Score\",'C. PoC Adj Factor Scoring'!$E$4:$J$4,0),TRUE)","v":1},{"$f":"VLOOKUP(OFFSET($B:$B,,MATCH(V$4,$B$4:$F$4,0)-1),OFFSET('C. PoC Adj Factor Scoring'!$E$5:$J$282,,MATCH(V$4,'C. PoC Adj Factor Scoring'!$E$3:$AH$3,0)-1),MATCH(V$2&\" Score\",'C. PoC Adj Factor Scoring'!$E$4:$J$4,0),TRUE)","v":1},{"$f":"VLOOKUP(OFFSET($B:$B,,MATCH(W$4,$B$4:$F$4,0)-1),OFFSET('C. PoC Adj Factor Scoring'!$E$5:$J$282,,MATCH(W$4,'C. PoC Adj Factor Scoring'!$E$3:$AH$3,0)-1),MATCH(W$2&\" Score\",'C. PoC Adj Factor Scoring'!$E$4:$J$4,0),TRUE)","v":1},{"$f":"VLOOKUP(OFFSET($B:$B,,MATCH(X$4,$B$4:$F$4,0)-1),OFFSET('C. PoC Adj Factor Scoring'!$E$5:$J$282,,MATCH(X$4,'C. PoC Adj Factor Scoring'!$E$3:$AH$3,0)-1),MATCH(X$2&\" Score\",'C. PoC Adj Factor Scoring'!$E$4:$J$4,0),TRUE)","v":1},{"$f":"VLOOKUP(OFFSET($B:$B,,MATCH(Y$4,$B$4:$F$4,0)-1),OFFSET('C. PoC Adj Factor Scoring'!$E$5:$J$282,,MATCH(Y$4,'C. PoC Adj Factor Scoring'!$E$3:$AH$3,0)-1),MATCH(Y$2&\" Score\",'C. PoC Adj Factor Scoring'!$E$4:$J$4,0),TRUE)","v":1},{"$f":"VLOOKUP(OFFSET($B:$B,,MATCH(Z$4,$B$4:$F$4,0)-1),OFFSET('C. PoC Adj Factor Scoring'!$E$5:$J$282,,MATCH(Z$4,'C. PoC Adj Factor Scoring'!$E$3:$AH$3,0)-1),MATCH(Z$2&\" Score\",'C. PoC Adj Factor Scoring'!$E$4:$J$4,0),TRUE)","v":1},{"$f":"VLOOKUP(OFFSET($B:$B,,MATCH(AA$4,$B$4:$F$4,0)-1),OFFSET('C. PoC Adj Factor Scoring'!$E$5:$J$282,,MATCH(AA$4,'C. PoC Adj Factor Scoring'!$E$3:$AH$3,0)-1),MATCH(AA$2&\" Score\",'C. PoC Adj Factor Scoring'!$E$4:$J$4,0),TRUE)","v":3},{"$f":"VLOOKUP(OFFSET($B:$B,,MATCH(AB$4,$B$4:$F$4,0)-1),OFFSET('C. PoC Adj Factor Scoring'!$E$5:$J$282,,MATCH(AB$4,'C. PoC Adj Factor Scoring'!$E$3:$AH$3,0)-1),MATCH(AB$2&\" Score\",'C. PoC Adj Factor Scoring'!$E$4:$J$4,0),TRUE)","v":1},{"$f":"VLOOKUP(OFFSET($B:$B,,MATCH(AC$4,$B$4:$F$4,0)-1),OFFSET('C. PoC Adj Factor Scoring'!$E$5:$J$282,,MATCH(AC$4,'C. PoC Adj Factor Scoring'!$E$3:$AH$3,0)-1),MATCH(AC$2&\" Score\",'C. PoC Adj Factor Scoring'!$E$4:$J$4,0),TRUE)","v":1},{"$f":"VLOOKUP(OFFSET($B:$B,,MATCH(AD$4,$B$4:$F$4,0)-1),OFFSET('C. PoC Adj Factor Scoring'!$E$5:$J$282,,MATCH(AD$4,'C. PoC Adj Factor Scoring'!$E$3:$AH$3,0)-1),MATCH(AD$2&\" Score\",'C. PoC Adj Factor Scoring'!$E$4:$J$4,0),TRUE)","v":1},{"$f":"VLOOKUP(OFFSET($B:$B,,MATCH(AE$4,$B$4:$F$4,0)-1),OFFSET('C. PoC Adj Factor Scoring'!$E$5:$J$282,,MATCH(AE$4,'C. PoC Adj Factor Scoring'!$E$3:$AH$3,0)-1),MATCH(AE$2&\" Score\",'C. PoC Adj Factor Scoring'!$E$4:$J$4,0),TRUE)","v":1}]
[{"$f":"'A. Population Info'!A235","v":1000358704},{"$f":"'A. Population Info'!L235","v":"OIL"},{"$f":"'A. Population Info'!M235","v":0},{"$f":"'A. Population Info'!N235","v":0},{"$f":"'A. Population Info'!O235","v":0},{"$f":"'A. Population Info'!P235","v":0},{"$f":"VLOOKUP(OFFSET($B:$B,,MATCH(G$4,$B$4:$F$4,0)-1),OFFSET('C. PoC Adj Factor Scoring'!$E$5:$J$282,,MATCH(G$4,'C. PoC Adj Factor Scoring'!$E$3:$AH$3,0)-1),MATCH(G$2&\" Score\",'C. PoC Adj Factor Scoring'!$E$4:$J$4,0),TRUE)","v":4},{"$f":"VLOOKUP(OFFSET($B:$B,,MATCH(H$4,$B$4:$F$4,0)-1),OFFSET('C. PoC Adj Factor Scoring'!$E$5:$J$282,,MATCH(H$4,'C. PoC Adj Factor Scoring'!$E$3:$AH$3,0)-1),MATCH(H$2&\" Score\",'C. PoC Adj Factor Scoring'!$E$4:$J$4,0),TRUE)","v":1},{"$f":"VLOOKUP(OFFSET($B:$B,,MATCH(I$4,$B$4:$F$4,0)-1),OFFSET('C. PoC Adj Factor Scoring'!$E$5:$J$282,,MATCH(I$4,'C. PoC Adj Factor Scoring'!$E$3:$AH$3,0)-1),MATCH(I$2&\" Score\",'C. PoC Adj Factor Scoring'!$E$4:$J$4,0),TRUE)","v":1},{"$f":"VLOOKUP(OFFSET($B:$B,,MATCH(J$4,$B$4:$F$4,0)-1),OFFSET('C. PoC Adj Factor Scoring'!$E$5:$J$282,,MATCH(J$4,'C. PoC Adj Factor Scoring'!$E$3:$AH$3,0)-1),MATCH(J$2&\" Score\",'C. PoC Adj Factor Scoring'!$E$4:$J$4,0),TRUE)","v":1},{"$f":"VLOOKUP(OFFSET($B:$B,,MATCH(K$4,$B$4:$F$4,0)-1),OFFSET('C. PoC Adj Factor Scoring'!$E$5:$J$282,,MATCH(K$4,'C. PoC Adj Factor Scoring'!$E$3:$AH$3,0)-1),MATCH(K$2&\" Score\",'C. PoC Adj Factor Scoring'!$E$4:$J$4,0),TRUE)","v":1},{"$f":"VLOOKUP(OFFSET($B:$B,,MATCH(L$4,$B$4:$F$4,0)-1),OFFSET('C. PoC Adj Factor Scoring'!$E$5:$J$282,,MATCH(L$4,'C. PoC Adj Factor Scoring'!$E$3:$AH$3,0)-1),MATCH(L$2&\" Score\",'C. PoC Adj Factor Scoring'!$E$4:$J$4,0),TRUE)","v":1},{"$f":"VLOOKUP(OFFSET($B:$B,,MATCH(M$4,$B$4:$F$4,0)-1),OFFSET('C. PoC Adj Factor Scoring'!$E$5:$J$282,,MATCH(M$4,'C. PoC Adj Factor Scoring'!$E$3:$AH$3,0)-1),MATCH(M$2&\" Score\",'C. PoC Adj Factor Scoring'!$E$4:$J$4,0),TRUE)","v":1},{"$f":"VLOOKUP(OFFSET($B:$B,,MATCH(N$4,$B$4:$F$4,0)-1),OFFSET('C. PoC Adj Factor Scoring'!$E$5:$J$282,,MATCH(N$4,'C. PoC Adj Factor Scoring'!$E$3:$AH$3,0)-1),MATCH(N$2&\" Score\",'C. PoC Adj Factor Scoring'!$E$4:$J$4,0),TRUE)","v":1},{"$f":"VLOOKUP(OFFSET($B:$B,,MATCH(O$4,$B$4:$F$4,0)-1),OFFSET('C. PoC Adj Factor Scoring'!$E$5:$J$282,,MATCH(O$4,'C. PoC Adj Factor Scoring'!$E$3:$AH$3,0)-1),MATCH(O$2&\" Score\",'C. PoC Adj Factor Scoring'!$E$4:$J$4,0),TRUE)","v":1},{"$f":"VLOOKUP(OFFSET($B:$B,,MATCH(P$4,$B$4:$F$4,0)-1),OFFSET('C. PoC Adj Factor Scoring'!$E$5:$J$282,,MATCH(P$4,'C. PoC Adj Factor Scoring'!$E$3:$AH$3,0)-1),MATCH(P$2&\" Score\",'C. PoC Adj Factor Scoring'!$E$4:$J$4,0),TRUE)","v":1},{"$f":"VLOOKUP(OFFSET($B:$B,,MATCH(Q$4,$B$4:$F$4,0)-1),OFFSET('C. PoC Adj Factor Scoring'!$E$5:$J$282,,MATCH(Q$4,'C. PoC Adj Factor Scoring'!$E$3:$AH$3,0)-1),MATCH(Q$2&\" Score\",'C. PoC Adj Factor Scoring'!$E$4:$J$4,0),TRUE)","v":1},{"$f":"VLOOKUP(OFFSET($B:$B,,MATCH(R$4,$B$4:$F$4,0)-1),OFFSET('C. PoC Adj Factor Scoring'!$E$5:$J$282,,MATCH(R$4,'C. PoC Adj Factor Scoring'!$E$3:$AH$3,0)-1),MATCH(R$2&\" Score\",'C. PoC Adj Factor Scoring'!$E$4:$J$4,0),TRUE)","v":1},{"$f":"VLOOKUP(OFFSET($B:$B,,MATCH(S$4,$B$4:$F$4,0)-1),OFFSET('C. PoC Adj Factor Scoring'!$E$5:$J$282,,MATCH(S$4,'C. PoC Adj Factor Scoring'!$E$3:$AH$3,0)-1),MATCH(S$2&\" Score\",'C. PoC Adj Factor Scoring'!$E$4:$J$4,0),TRUE)","v":1},{"$f":"VLOOKUP(OFFSET($B:$B,,MATCH(T$4,$B$4:$F$4,0)-1),OFFSET('C. PoC Adj Factor Scoring'!$E$5:$J$282,,MATCH(T$4,'C. PoC Adj Factor Scoring'!$E$3:$AH$3,0)-1),MATCH(T$2&\" Score\",'C. PoC Adj Factor Scoring'!$E$4:$J$4,0),TRUE)","v":1},{"$f":"VLOOKUP(OFFSET($B:$B,,MATCH(U$4,$B$4:$F$4,0)-1),OFFSET('C. PoC Adj Factor Scoring'!$E$5:$J$282,,MATCH(U$4,'C. PoC Adj Factor Scoring'!$E$3:$AH$3,0)-1),MATCH(U$2&\" Score\",'C. PoC Adj Factor Scoring'!$E$4:$J$4,0),TRUE)","v":1},{"$f":"VLOOKUP(OFFSET($B:$B,,MATCH(V$4,$B$4:$F$4,0)-1),OFFSET('C. PoC Adj Factor Scoring'!$E$5:$J$282,,MATCH(V$4,'C. PoC Adj Factor Scoring'!$E$3:$AH$3,0)-1),MATCH(V$2&\" Score\",'C. PoC Adj Factor Scoring'!$E$4:$J$4,0),TRUE)","v":1},{"$f":"VLOOKUP(OFFSET($B:$B,,MATCH(W$4,$B$4:$F$4,0)-1),OFFSET('C. PoC Adj Factor Scoring'!$E$5:$J$282,,MATCH(W$4,'C. PoC Adj Factor Scoring'!$E$3:$AH$3,0)-1),MATCH(W$2&\" Score\",'C. PoC Adj Factor Scoring'!$E$4:$J$4,0),TRUE)","v":1},{"$f":"VLOOKUP(OFFSET($B:$B,,MATCH(X$4,$B$4:$F$4,0)-1),OFFSET('C. PoC Adj Factor Scoring'!$E$5:$J$282,,MATCH(X$4,'C. PoC Adj Factor Scoring'!$E$3:$AH$3,0)-1),MATCH(X$2&\" Score\",'C. PoC Adj Factor Scoring'!$E$4:$J$4,0),TRUE)","v":1},{"$f":"VLOOKUP(OFFSET($B:$B,,MATCH(Y$4,$B$4:$F$4,0)-1),OFFSET('C. PoC Adj Factor Scoring'!$E$5:$J$282,,MATCH(Y$4,'C. PoC Adj Factor Scoring'!$E$3:$AH$3,0)-1),MATCH(Y$2&\" Score\",'C. PoC Adj Factor Scoring'!$E$4:$J$4,0),TRUE)","v":1},{"$f":"VLOOKUP(OFFSET($B:$B,,MATCH(Z$4,$B$4:$F$4,0)-1),OFFSET('C. PoC Adj Factor Scoring'!$E$5:$J$282,,MATCH(Z$4,'C. PoC Adj Factor Scoring'!$E$3:$AH$3,0)-1),MATCH(Z$2&\" Score\",'C. PoC Adj Factor Scoring'!$E$4:$J$4,0),TRUE)","v":1},{"$f":"VLOOKUP(OFFSET($B:$B,,MATCH(AA$4,$B$4:$F$4,0)-1),OFFSET('C. PoC Adj Factor Scoring'!$E$5:$J$282,,MATCH(AA$4,'C. PoC Adj Factor Scoring'!$E$3:$AH$3,0)-1),MATCH(AA$2&\" Score\",'C. PoC Adj Factor Scoring'!$E$4:$J$4,0),TRUE)","v":3},{"$f":"VLOOKUP(OFFSET($B:$B,,MATCH(AB$4,$B$4:$F$4,0)-1),OFFSET('C. PoC Adj Factor Scoring'!$E$5:$J$282,,MATCH(AB$4,'C. PoC Adj Factor Scoring'!$E$3:$AH$3,0)-1),MATCH(AB$2&\" Score\",'C. PoC Adj Factor Scoring'!$E$4:$J$4,0),TRUE)","v":1},{"$f":"VLOOKUP(OFFSET($B:$B,,MATCH(AC$4,$B$4:$F$4,0)-1),OFFSET('C. PoC Adj Factor Scoring'!$E$5:$J$282,,MATCH(AC$4,'C. PoC Adj Factor Scoring'!$E$3:$AH$3,0)-1),MATCH(AC$2&\" Score\",'C. PoC Adj Factor Scoring'!$E$4:$J$4,0),TRUE)","v":1},{"$f":"VLOOKUP(OFFSET($B:$B,,MATCH(AD$4,$B$4:$F$4,0)-1),OFFSET('C. PoC Adj Factor Scoring'!$E$5:$J$282,,MATCH(AD$4,'C. PoC Adj Factor Scoring'!$E$3:$AH$3,0)-1),MATCH(AD$2&\" Score\",'C. PoC Adj Factor Scoring'!$E$4:$J$4,0),TRUE)","v":1},{"$f":"VLOOKUP(OFFSET($B:$B,,MATCH(AE$4,$B$4:$F$4,0)-1),OFFSET('C. PoC Adj Factor Scoring'!$E$5:$J$282,,MATCH(AE$4,'C. PoC Adj Factor Scoring'!$E$3:$AH$3,0)-1),MATCH(AE$2&\" Score\",'C. PoC Adj Factor Scoring'!$E$4:$J$4,0),TRUE)","v":1}]
[{"$f":"'A. Population Info'!A236","v":1000358763},{"$f":"'A. Population Info'!L236","v":"OIL"},{"$f":"'A. Population Info'!M236","v":0},{"$f":"'A. Population Info'!N236","v":0},{"$f":"'A. Population Info'!O236","v":0},{"$f":"'A. Population Info'!P236","v":0},{"$f":"VLOOKUP(OFFSET($B:$B,,MATCH(G$4,$B$4:$F$4,0)-1),OFFSET('C. PoC Adj Factor Scoring'!$E$5:$J$282,,MATCH(G$4,'C. PoC Adj Factor Scoring'!$E$3:$AH$3,0)-1),MATCH(G$2&\" Score\",'C. PoC Adj Factor Scoring'!$E$4:$J$4,0),TRUE)","v":4},{"$f":"VLOOKUP(OFFSET($B:$B,,MATCH(H$4,$B$4:$F$4,0)-1),OFFSET('C. PoC Adj Factor Scoring'!$E$5:$J$282,,MATCH(H$4,'C. PoC Adj Factor Scoring'!$E$3:$AH$3,0)-1),MATCH(H$2&\" Score\",'C. PoC Adj Factor Scoring'!$E$4:$J$4,0),TRUE)","v":1},{"$f":"VLOOKUP(OFFSET($B:$B,,MATCH(I$4,$B$4:$F$4,0)-1),OFFSET('C. PoC Adj Factor Scoring'!$E$5:$J$282,,MATCH(I$4,'C. PoC Adj Factor Scoring'!$E$3:$AH$3,0)-1),MATCH(I$2&\" Score\",'C. PoC Adj Factor Scoring'!$E$4:$J$4,0),TRUE)","v":1},{"$f":"VLOOKUP(OFFSET($B:$B,,MATCH(J$4,$B$4:$F$4,0)-1),OFFSET('C. PoC Adj Factor Scoring'!$E$5:$J$282,,MATCH(J$4,'C. PoC Adj Factor Scoring'!$E$3:$AH$3,0)-1),MATCH(J$2&\" Score\",'C. PoC Adj Factor Scoring'!$E$4:$J$4,0),TRUE)","v":1},{"$f":"VLOOKUP(OFFSET($B:$B,,MATCH(K$4,$B$4:$F$4,0)-1),OFFSET('C. PoC Adj Factor Scoring'!$E$5:$J$282,,MATCH(K$4,'C. PoC Adj Factor Scoring'!$E$3:$AH$3,0)-1),MATCH(K$2&\" Score\",'C. PoC Adj Factor Scoring'!$E$4:$J$4,0),TRUE)","v":1},{"$f":"VLOOKUP(OFFSET($B:$B,,MATCH(L$4,$B$4:$F$4,0)-1),OFFSET('C. PoC Adj Factor Scoring'!$E$5:$J$282,,MATCH(L$4,'C. PoC Adj Factor Scoring'!$E$3:$AH$3,0)-1),MATCH(L$2&\" Score\",'C. PoC Adj Factor Scoring'!$E$4:$J$4,0),TRUE)","v":1},{"$f":"VLOOKUP(OFFSET($B:$B,,MATCH(M$4,$B$4:$F$4,0)-1),OFFSET('C. PoC Adj Factor Scoring'!$E$5:$J$282,,MATCH(M$4,'C. PoC Adj Factor Scoring'!$E$3:$AH$3,0)-1),MATCH(M$2&\" Score\",'C. PoC Adj Factor Scoring'!$E$4:$J$4,0),TRUE)","v":1},{"$f":"VLOOKUP(OFFSET($B:$B,,MATCH(N$4,$B$4:$F$4,0)-1),OFFSET('C. PoC Adj Factor Scoring'!$E$5:$J$282,,MATCH(N$4,'C. PoC Adj Factor Scoring'!$E$3:$AH$3,0)-1),MATCH(N$2&\" Score\",'C. PoC Adj Factor Scoring'!$E$4:$J$4,0),TRUE)","v":1},{"$f":"VLOOKUP(OFFSET($B:$B,,MATCH(O$4,$B$4:$F$4,0)-1),OFFSET('C. PoC Adj Factor Scoring'!$E$5:$J$282,,MATCH(O$4,'C. PoC Adj Factor Scoring'!$E$3:$AH$3,0)-1),MATCH(O$2&\" Score\",'C. PoC Adj Factor Scoring'!$E$4:$J$4,0),TRUE)","v":1},{"$f":"VLOOKUP(OFFSET($B:$B,,MATCH(P$4,$B$4:$F$4,0)-1),OFFSET('C. PoC Adj Factor Scoring'!$E$5:$J$282,,MATCH(P$4,'C. PoC Adj Factor Scoring'!$E$3:$AH$3,0)-1),MATCH(P$2&\" Score\",'C. PoC Adj Factor Scoring'!$E$4:$J$4,0),TRUE)","v":1},{"$f":"VLOOKUP(OFFSET($B:$B,,MATCH(Q$4,$B$4:$F$4,0)-1),OFFSET('C. PoC Adj Factor Scoring'!$E$5:$J$282,,MATCH(Q$4,'C. PoC Adj Factor Scoring'!$E$3:$AH$3,0)-1),MATCH(Q$2&\" Score\",'C. PoC Adj Factor Scoring'!$E$4:$J$4,0),TRUE)","v":1},{"$f":"VLOOKUP(OFFSET($B:$B,,MATCH(R$4,$B$4:$F$4,0)-1),OFFSET('C. PoC Adj Factor Scoring'!$E$5:$J$282,,MATCH(R$4,'C. PoC Adj Factor Scoring'!$E$3:$AH$3,0)-1),MATCH(R$2&\" Score\",'C. PoC Adj Factor Scoring'!$E$4:$J$4,0),TRUE)","v":1},{"$f":"VLOOKUP(OFFSET($B:$B,,MATCH(S$4,$B$4:$F$4,0)-1),OFFSET('C. PoC Adj Factor Scoring'!$E$5:$J$282,,MATCH(S$4,'C. PoC Adj Factor Scoring'!$E$3:$AH$3,0)-1),MATCH(S$2&\" Score\",'C. PoC Adj Factor Scoring'!$E$4:$J$4,0),TRUE)","v":1},{"$f":"VLOOKUP(OFFSET($B:$B,,MATCH(T$4,$B$4:$F$4,0)-1),OFFSET('C. PoC Adj Factor Scoring'!$E$5:$J$282,,MATCH(T$4,'C. PoC Adj Factor Scoring'!$E$3:$AH$3,0)-1),MATCH(T$2&\" Score\",'C. PoC Adj Factor Scoring'!$E$4:$J$4,0),TRUE)","v":1},{"$f":"VLOOKUP(OFFSET($B:$B,,MATCH(U$4,$B$4:$F$4,0)-1),OFFSET('C. PoC Adj Factor Scoring'!$E$5:$J$282,,MATCH(U$4,'C. PoC Adj Factor Scoring'!$E$3:$AH$3,0)-1),MATCH(U$2&\" Score\",'C. PoC Adj Factor Scoring'!$E$4:$J$4,0),TRUE)","v":1},{"$f":"VLOOKUP(OFFSET($B:$B,,MATCH(V$4,$B$4:$F$4,0)-1),OFFSET('C. PoC Adj Factor Scoring'!$E$5:$J$282,,MATCH(V$4,'C. PoC Adj Factor Scoring'!$E$3:$AH$3,0)-1),MATCH(V$2&\" Score\",'C. PoC Adj Factor Scoring'!$E$4:$J$4,0),TRUE)","v":1},{"$f":"VLOOKUP(OFFSET($B:$B,,MATCH(W$4,$B$4:$F$4,0)-1),OFFSET('C. PoC Adj Factor Scoring'!$E$5:$J$282,,MATCH(W$4,'C. PoC Adj Factor Scoring'!$E$3:$AH$3,0)-1),MATCH(W$2&\" Score\",'C. PoC Adj Factor Scoring'!$E$4:$J$4,0),TRUE)","v":1},{"$f":"VLOOKUP(OFFSET($B:$B,,MATCH(X$4,$B$4:$F$4,0)-1),OFFSET('C. PoC Adj Factor Scoring'!$E$5:$J$282,,MATCH(X$4,'C. PoC Adj Factor Scoring'!$E$3:$AH$3,0)-1),MATCH(X$2&\" Score\",'C. PoC Adj Factor Scoring'!$E$4:$J$4,0),TRUE)","v":1},{"$f":"VLOOKUP(OFFSET($B:$B,,MATCH(Y$4,$B$4:$F$4,0)-1),OFFSET('C. PoC Adj Factor Scoring'!$E$5:$J$282,,MATCH(Y$4,'C. PoC Adj Factor Scoring'!$E$3:$AH$3,0)-1),MATCH(Y$2&\" Score\",'C. PoC Adj Factor Scoring'!$E$4:$J$4,0),TRUE)","v":1},{"$f":"VLOOKUP(OFFSET($B:$B,,MATCH(Z$4,$B$4:$F$4,0)-1),OFFSET('C. PoC Adj Factor Scoring'!$E$5:$J$282,,MATCH(Z$4,'C. PoC Adj Factor Scoring'!$E$3:$AH$3,0)-1),MATCH(Z$2&\" Score\",'C. PoC Adj Factor Scoring'!$E$4:$J$4,0),TRUE)","v":1},{"$f":"VLOOKUP(OFFSET($B:$B,,MATCH(AA$4,$B$4:$F$4,0)-1),OFFSET('C. PoC Adj Factor Scoring'!$E$5:$J$282,,MATCH(AA$4,'C. PoC Adj Factor Scoring'!$E$3:$AH$3,0)-1),MATCH(AA$2&\" Score\",'C. PoC Adj Factor Scoring'!$E$4:$J$4,0),TRUE)","v":3},{"$f":"VLOOKUP(OFFSET($B:$B,,MATCH(AB$4,$B$4:$F$4,0)-1),OFFSET('C. PoC Adj Factor Scoring'!$E$5:$J$282,,MATCH(AB$4,'C. PoC Adj Factor Scoring'!$E$3:$AH$3,0)-1),MATCH(AB$2&\" Score\",'C. PoC Adj Factor Scoring'!$E$4:$J$4,0),TRUE)","v":1},{"$f":"VLOOKUP(OFFSET($B:$B,,MATCH(AC$4,$B$4:$F$4,0)-1),OFFSET('C. PoC Adj Factor Scoring'!$E$5:$J$282,,MATCH(AC$4,'C. PoC Adj Factor Scoring'!$E$3:$AH$3,0)-1),MATCH(AC$2&\" Score\",'C. PoC Adj Factor Scoring'!$E$4:$J$4,0),TRUE)","v":1},{"$f":"VLOOKUP(OFFSET($B:$B,,MATCH(AD$4,$B$4:$F$4,0)-1),OFFSET('C. PoC Adj Factor Scoring'!$E$5:$J$282,,MATCH(AD$4,'C. PoC Adj Factor Scoring'!$E$3:$AH$3,0)-1),MATCH(AD$2&\" Score\",'C. PoC Adj Factor Scoring'!$E$4:$J$4,0),TRUE)","v":1},{"$f":"VLOOKUP(OFFSET($B:$B,,MATCH(AE$4,$B$4:$F$4,0)-1),OFFSET('C. PoC Adj Factor Scoring'!$E$5:$J$282,,MATCH(AE$4,'C. PoC Adj Factor Scoring'!$E$3:$AH$3,0)-1),MATCH(AE$2&\" Score\",'C. PoC Adj Factor Scoring'!$E$4:$J$4,0),TRUE)","v":1}]
[{"$f":"'A. Population Info'!A237","v":1000358821},{"$f":"'A. Population Info'!L237","v":"OIL"},{"$f":"'A. Population Info'!M237","v":0},{"$f":"'A. Population Info'!N237","v":0},{"$f":"'A. Population Info'!O237","v":0},{"$f":"'A. Population Info'!P237","v":0},{"$f":"VLOOKUP(OFFSET($B:$B,,MATCH(G$4,$B$4:$F$4,0)-1),OFFSET('C. PoC Adj Factor Scoring'!$E$5:$J$282,,MATCH(G$4,'C. PoC Adj Factor Scoring'!$E$3:$AH$3,0)-1),MATCH(G$2&\" Score\",'C. PoC Adj Factor Scoring'!$E$4:$J$4,0),TRUE)","v":4},{"$f":"VLOOKUP(OFFSET($B:$B,,MATCH(H$4,$B$4:$F$4,0)-1),OFFSET('C. PoC Adj Factor Scoring'!$E$5:$J$282,,MATCH(H$4,'C. PoC Adj Factor Scoring'!$E$3:$AH$3,0)-1),MATCH(H$2&\" Score\",'C. PoC Adj Factor Scoring'!$E$4:$J$4,0),TRUE)","v":1},{"$f":"VLOOKUP(OFFSET($B:$B,,MATCH(I$4,$B$4:$F$4,0)-1),OFFSET('C. PoC Adj Factor Scoring'!$E$5:$J$282,,MATCH(I$4,'C. PoC Adj Factor Scoring'!$E$3:$AH$3,0)-1),MATCH(I$2&\" Score\",'C. PoC Adj Factor Scoring'!$E$4:$J$4,0),TRUE)","v":1},{"$f":"VLOOKUP(OFFSET($B:$B,,MATCH(J$4,$B$4:$F$4,0)-1),OFFSET('C. PoC Adj Factor Scoring'!$E$5:$J$282,,MATCH(J$4,'C. PoC Adj Factor Scoring'!$E$3:$AH$3,0)-1),MATCH(J$2&\" Score\",'C. PoC Adj Factor Scoring'!$E$4:$J$4,0),TRUE)","v":1},{"$f":"VLOOKUP(OFFSET($B:$B,,MATCH(K$4,$B$4:$F$4,0)-1),OFFSET('C. PoC Adj Factor Scoring'!$E$5:$J$282,,MATCH(K$4,'C. PoC Adj Factor Scoring'!$E$3:$AH$3,0)-1),MATCH(K$2&\" Score\",'C. PoC Adj Factor Scoring'!$E$4:$J$4,0),TRUE)","v":1},{"$f":"VLOOKUP(OFFSET($B:$B,,MATCH(L$4,$B$4:$F$4,0)-1),OFFSET('C. PoC Adj Factor Scoring'!$E$5:$J$282,,MATCH(L$4,'C. PoC Adj Factor Scoring'!$E$3:$AH$3,0)-1),MATCH(L$2&\" Score\",'C. PoC Adj Factor Scoring'!$E$4:$J$4,0),TRUE)","v":1},{"$f":"VLOOKUP(OFFSET($B:$B,,MATCH(M$4,$B$4:$F$4,0)-1),OFFSET('C. PoC Adj Factor Scoring'!$E$5:$J$282,,MATCH(M$4,'C. PoC Adj Factor Scoring'!$E$3:$AH$3,0)-1),MATCH(M$2&\" Score\",'C. PoC Adj Factor Scoring'!$E$4:$J$4,0),TRUE)","v":1},{"$f":"VLOOKUP(OFFSET($B:$B,,MATCH(N$4,$B$4:$F$4,0)-1),OFFSET('C. PoC Adj Factor Scoring'!$E$5:$J$282,,MATCH(N$4,'C. PoC Adj Factor Scoring'!$E$3:$AH$3,0)-1),MATCH(N$2&\" Score\",'C. PoC Adj Factor Scoring'!$E$4:$J$4,0),TRUE)","v":1},{"$f":"VLOOKUP(OFFSET($B:$B,,MATCH(O$4,$B$4:$F$4,0)-1),OFFSET('C. PoC Adj Factor Scoring'!$E$5:$J$282,,MATCH(O$4,'C. PoC Adj Factor Scoring'!$E$3:$AH$3,0)-1),MATCH(O$2&\" Score\",'C. PoC Adj Factor Scoring'!$E$4:$J$4,0),TRUE)","v":1},{"$f":"VLOOKUP(OFFSET($B:$B,,MATCH(P$4,$B$4:$F$4,0)-1),OFFSET('C. PoC Adj Factor Scoring'!$E$5:$J$282,,MATCH(P$4,'C. PoC Adj Factor Scoring'!$E$3:$AH$3,0)-1),MATCH(P$2&\" Score\",'C. PoC Adj Factor Scoring'!$E$4:$J$4,0),TRUE)","v":1},{"$f":"VLOOKUP(OFFSET($B:$B,,MATCH(Q$4,$B$4:$F$4,0)-1),OFFSET('C. PoC Adj Factor Scoring'!$E$5:$J$282,,MATCH(Q$4,'C. PoC Adj Factor Scoring'!$E$3:$AH$3,0)-1),MATCH(Q$2&\" Score\",'C. PoC Adj Factor Scoring'!$E$4:$J$4,0),TRUE)","v":1},{"$f":"VLOOKUP(OFFSET($B:$B,,MATCH(R$4,$B$4:$F$4,0)-1),OFFSET('C. PoC Adj Factor Scoring'!$E$5:$J$282,,MATCH(R$4,'C. PoC Adj Factor Scoring'!$E$3:$AH$3,0)-1),MATCH(R$2&\" Score\",'C. PoC Adj Factor Scoring'!$E$4:$J$4,0),TRUE)","v":1},{"$f":"VLOOKUP(OFFSET($B:$B,,MATCH(S$4,$B$4:$F$4,0)-1),OFFSET('C. PoC Adj Factor Scoring'!$E$5:$J$282,,MATCH(S$4,'C. PoC Adj Factor Scoring'!$E$3:$AH$3,0)-1),MATCH(S$2&\" Score\",'C. PoC Adj Factor Scoring'!$E$4:$J$4,0),TRUE)","v":1},{"$f":"VLOOKUP(OFFSET($B:$B,,MATCH(T$4,$B$4:$F$4,0)-1),OFFSET('C. PoC Adj Factor Scoring'!$E$5:$J$282,,MATCH(T$4,'C. PoC Adj Factor Scoring'!$E$3:$AH$3,0)-1),MATCH(T$2&\" Score\",'C. PoC Adj Factor Scoring'!$E$4:$J$4,0),TRUE)","v":1},{"$f":"VLOOKUP(OFFSET($B:$B,,MATCH(U$4,$B$4:$F$4,0)-1),OFFSET('C. PoC Adj Factor Scoring'!$E$5:$J$282,,MATCH(U$4,'C. PoC Adj Factor Scoring'!$E$3:$AH$3,0)-1),MATCH(U$2&\" Score\",'C. PoC Adj Factor Scoring'!$E$4:$J$4,0),TRUE)","v":1},{"$f":"VLOOKUP(OFFSET($B:$B,,MATCH(V$4,$B$4:$F$4,0)-1),OFFSET('C. PoC Adj Factor Scoring'!$E$5:$J$282,,MATCH(V$4,'C. PoC Adj Factor Scoring'!$E$3:$AH$3,0)-1),MATCH(V$2&\" Score\",'C. PoC Adj Factor Scoring'!$E$4:$J$4,0),TRUE)","v":1},{"$f":"VLOOKUP(OFFSET($B:$B,,MATCH(W$4,$B$4:$F$4,0)-1),OFFSET('C. PoC Adj Factor Scoring'!$E$5:$J$282,,MATCH(W$4,'C. PoC Adj Factor Scoring'!$E$3:$AH$3,0)-1),MATCH(W$2&\" Score\",'C. PoC Adj Factor Scoring'!$E$4:$J$4,0),TRUE)","v":1},{"$f":"VLOOKUP(OFFSET($B:$B,,MATCH(X$4,$B$4:$F$4,0)-1),OFFSET('C. PoC Adj Factor Scoring'!$E$5:$J$282,,MATCH(X$4,'C. PoC Adj Factor Scoring'!$E$3:$AH$3,0)-1),MATCH(X$2&\" Score\",'C. PoC Adj Factor Scoring'!$E$4:$J$4,0),TRUE)","v":1},{"$f":"VLOOKUP(OFFSET($B:$B,,MATCH(Y$4,$B$4:$F$4,0)-1),OFFSET('C. PoC Adj Factor Scoring'!$E$5:$J$282,,MATCH(Y$4,'C. PoC Adj Factor Scoring'!$E$3:$AH$3,0)-1),MATCH(Y$2&\" Score\",'C. PoC Adj Factor Scoring'!$E$4:$J$4,0),TRUE)","v":1},{"$f":"VLOOKUP(OFFSET($B:$B,,MATCH(Z$4,$B$4:$F$4,0)-1),OFFSET('C. PoC Adj Factor Scoring'!$E$5:$J$282,,MATCH(Z$4,'C. PoC Adj Factor Scoring'!$E$3:$AH$3,0)-1),MATCH(Z$2&\" Score\",'C. PoC Adj Factor Scoring'!$E$4:$J$4,0),TRUE)","v":1},{"$f":"VLOOKUP(OFFSET($B:$B,,MATCH(AA$4,$B$4:$F$4,0)-1),OFFSET('C. PoC Adj Factor Scoring'!$E$5:$J$282,,MATCH(AA$4,'C. PoC Adj Factor Scoring'!$E$3:$AH$3,0)-1),MATCH(AA$2&\" Score\",'C. PoC Adj Factor Scoring'!$E$4:$J$4,0),TRUE)","v":3},{"$f":"VLOOKUP(OFFSET($B:$B,,MATCH(AB$4,$B$4:$F$4,0)-1),OFFSET('C. PoC Adj Factor Scoring'!$E$5:$J$282,,MATCH(AB$4,'C. PoC Adj Factor Scoring'!$E$3:$AH$3,0)-1),MATCH(AB$2&\" Score\",'C. PoC Adj Factor Scoring'!$E$4:$J$4,0),TRUE)","v":1},{"$f":"VLOOKUP(OFFSET($B:$B,,MATCH(AC$4,$B$4:$F$4,0)-1),OFFSET('C. PoC Adj Factor Scoring'!$E$5:$J$282,,MATCH(AC$4,'C. PoC Adj Factor Scoring'!$E$3:$AH$3,0)-1),MATCH(AC$2&\" Score\",'C. PoC Adj Factor Scoring'!$E$4:$J$4,0),TRUE)","v":1},{"$f":"VLOOKUP(OFFSET($B:$B,,MATCH(AD$4,$B$4:$F$4,0)-1),OFFSET('C. PoC Adj Factor Scoring'!$E$5:$J$282,,MATCH(AD$4,'C. PoC Adj Factor Scoring'!$E$3:$AH$3,0)-1),MATCH(AD$2&\" Score\",'C. PoC Adj Factor Scoring'!$E$4:$J$4,0),TRUE)","v":1},{"$f":"VLOOKUP(OFFSET($B:$B,,MATCH(AE$4,$B$4:$F$4,0)-1),OFFSET('C. PoC Adj Factor Scoring'!$E$5:$J$282,,MATCH(AE$4,'C. PoC Adj Factor Scoring'!$E$3:$AH$3,0)-1),MATCH(AE$2&\" Score\",'C. PoC Adj Factor Scoring'!$E$4:$J$4,0),TRUE)","v":1}]
[{"$f":"'A. Population Info'!A238","v":1000358848},{"$f":"'A. Population Info'!L238","v":"OIL"},{"$f":"'A. Population Info'!M238","v":0},{"$f":"'A. Population Info'!N238","v":0},{"$f":"'A. Population Info'!O238","v":0},{"$f":"'A. Population Info'!P238","v":0},{"$f":"VLOOKUP(OFFSET($B:$B,,MATCH(G$4,$B$4:$F$4,0)-1),OFFSET('C. PoC Adj Factor Scoring'!$E$5:$J$282,,MATCH(G$4,'C. PoC Adj Factor Scoring'!$E$3:$AH$3,0)-1),MATCH(G$2&\" Score\",'C. PoC Adj Factor Scoring'!$E$4:$J$4,0),TRUE)","v":4},{"$f":"VLOOKUP(OFFSET($B:$B,,MATCH(H$4,$B$4:$F$4,0)-1),OFFSET('C. PoC Adj Factor Scoring'!$E$5:$J$282,,MATCH(H$4,'C. PoC Adj Factor Scoring'!$E$3:$AH$3,0)-1),MATCH(H$2&\" Score\",'C. PoC Adj Factor Scoring'!$E$4:$J$4,0),TRUE)","v":1},{"$f":"VLOOKUP(OFFSET($B:$B,,MATCH(I$4,$B$4:$F$4,0)-1),OFFSET('C. PoC Adj Factor Scoring'!$E$5:$J$282,,MATCH(I$4,'C. PoC Adj Factor Scoring'!$E$3:$AH$3,0)-1),MATCH(I$2&\" Score\",'C. PoC Adj Factor Scoring'!$E$4:$J$4,0),TRUE)","v":1},{"$f":"VLOOKUP(OFFSET($B:$B,,MATCH(J$4,$B$4:$F$4,0)-1),OFFSET('C. PoC Adj Factor Scoring'!$E$5:$J$282,,MATCH(J$4,'C. PoC Adj Factor Scoring'!$E$3:$AH$3,0)-1),MATCH(J$2&\" Score\",'C. PoC Adj Factor Scoring'!$E$4:$J$4,0),TRUE)","v":1},{"$f":"VLOOKUP(OFFSET($B:$B,,MATCH(K$4,$B$4:$F$4,0)-1),OFFSET('C. PoC Adj Factor Scoring'!$E$5:$J$282,,MATCH(K$4,'C. PoC Adj Factor Scoring'!$E$3:$AH$3,0)-1),MATCH(K$2&\" Score\",'C. PoC Adj Factor Scoring'!$E$4:$J$4,0),TRUE)","v":1},{"$f":"VLOOKUP(OFFSET($B:$B,,MATCH(L$4,$B$4:$F$4,0)-1),OFFSET('C. PoC Adj Factor Scoring'!$E$5:$J$282,,MATCH(L$4,'C. PoC Adj Factor Scoring'!$E$3:$AH$3,0)-1),MATCH(L$2&\" Score\",'C. PoC Adj Factor Scoring'!$E$4:$J$4,0),TRUE)","v":1},{"$f":"VLOOKUP(OFFSET($B:$B,,MATCH(M$4,$B$4:$F$4,0)-1),OFFSET('C. PoC Adj Factor Scoring'!$E$5:$J$282,,MATCH(M$4,'C. PoC Adj Factor Scoring'!$E$3:$AH$3,0)-1),MATCH(M$2&\" Score\",'C. PoC Adj Factor Scoring'!$E$4:$J$4,0),TRUE)","v":1},{"$f":"VLOOKUP(OFFSET($B:$B,,MATCH(N$4,$B$4:$F$4,0)-1),OFFSET('C. PoC Adj Factor Scoring'!$E$5:$J$282,,MATCH(N$4,'C. PoC Adj Factor Scoring'!$E$3:$AH$3,0)-1),MATCH(N$2&\" Score\",'C. PoC Adj Factor Scoring'!$E$4:$J$4,0),TRUE)","v":1},{"$f":"VLOOKUP(OFFSET($B:$B,,MATCH(O$4,$B$4:$F$4,0)-1),OFFSET('C. PoC Adj Factor Scoring'!$E$5:$J$282,,MATCH(O$4,'C. PoC Adj Factor Scoring'!$E$3:$AH$3,0)-1),MATCH(O$2&\" Score\",'C. PoC Adj Factor Scoring'!$E$4:$J$4,0),TRUE)","v":1},{"$f":"VLOOKUP(OFFSET($B:$B,,MATCH(P$4,$B$4:$F$4,0)-1),OFFSET('C. PoC Adj Factor Scoring'!$E$5:$J$282,,MATCH(P$4,'C. PoC Adj Factor Scoring'!$E$3:$AH$3,0)-1),MATCH(P$2&\" Score\",'C. PoC Adj Factor Scoring'!$E$4:$J$4,0),TRUE)","v":1},{"$f":"VLOOKUP(OFFSET($B:$B,,MATCH(Q$4,$B$4:$F$4,0)-1),OFFSET('C. PoC Adj Factor Scoring'!$E$5:$J$282,,MATCH(Q$4,'C. PoC Adj Factor Scoring'!$E$3:$AH$3,0)-1),MATCH(Q$2&\" Score\",'C. PoC Adj Factor Scoring'!$E$4:$J$4,0),TRUE)","v":1},{"$f":"VLOOKUP(OFFSET($B:$B,,MATCH(R$4,$B$4:$F$4,0)-1),OFFSET('C. PoC Adj Factor Scoring'!$E$5:$J$282,,MATCH(R$4,'C. PoC Adj Factor Scoring'!$E$3:$AH$3,0)-1),MATCH(R$2&\" Score\",'C. PoC Adj Factor Scoring'!$E$4:$J$4,0),TRUE)","v":1},{"$f":"VLOOKUP(OFFSET($B:$B,,MATCH(S$4,$B$4:$F$4,0)-1),OFFSET('C. PoC Adj Factor Scoring'!$E$5:$J$282,,MATCH(S$4,'C. PoC Adj Factor Scoring'!$E$3:$AH$3,0)-1),MATCH(S$2&\" Score\",'C. PoC Adj Factor Scoring'!$E$4:$J$4,0),TRUE)","v":1},{"$f":"VLOOKUP(OFFSET($B:$B,,MATCH(T$4,$B$4:$F$4,0)-1),OFFSET('C. PoC Adj Factor Scoring'!$E$5:$J$282,,MATCH(T$4,'C. PoC Adj Factor Scoring'!$E$3:$AH$3,0)-1),MATCH(T$2&\" Score\",'C. PoC Adj Factor Scoring'!$E$4:$J$4,0),TRUE)","v":1},{"$f":"VLOOKUP(OFFSET($B:$B,,MATCH(U$4,$B$4:$F$4,0)-1),OFFSET('C. PoC Adj Factor Scoring'!$E$5:$J$282,,MATCH(U$4,'C. PoC Adj Factor Scoring'!$E$3:$AH$3,0)-1),MATCH(U$2&\" Score\",'C. PoC Adj Factor Scoring'!$E$4:$J$4,0),TRUE)","v":1},{"$f":"VLOOKUP(OFFSET($B:$B,,MATCH(V$4,$B$4:$F$4,0)-1),OFFSET('C. PoC Adj Factor Scoring'!$E$5:$J$282,,MATCH(V$4,'C. PoC Adj Factor Scoring'!$E$3:$AH$3,0)-1),MATCH(V$2&\" Score\",'C. PoC Adj Factor Scoring'!$E$4:$J$4,0),TRUE)","v":1},{"$f":"VLOOKUP(OFFSET($B:$B,,MATCH(W$4,$B$4:$F$4,0)-1),OFFSET('C. PoC Adj Factor Scoring'!$E$5:$J$282,,MATCH(W$4,'C. PoC Adj Factor Scoring'!$E$3:$AH$3,0)-1),MATCH(W$2&\" Score\",'C. PoC Adj Factor Scoring'!$E$4:$J$4,0),TRUE)","v":1},{"$f":"VLOOKUP(OFFSET($B:$B,,MATCH(X$4,$B$4:$F$4,0)-1),OFFSET('C. PoC Adj Factor Scoring'!$E$5:$J$282,,MATCH(X$4,'C. PoC Adj Factor Scoring'!$E$3:$AH$3,0)-1),MATCH(X$2&\" Score\",'C. PoC Adj Factor Scoring'!$E$4:$J$4,0),TRUE)","v":1},{"$f":"VLOOKUP(OFFSET($B:$B,,MATCH(Y$4,$B$4:$F$4,0)-1),OFFSET('C. PoC Adj Factor Scoring'!$E$5:$J$282,,MATCH(Y$4,'C. PoC Adj Factor Scoring'!$E$3:$AH$3,0)-1),MATCH(Y$2&\" Score\",'C. PoC Adj Factor Scoring'!$E$4:$J$4,0),TRUE)","v":1},{"$f":"VLOOKUP(OFFSET($B:$B,,MATCH(Z$4,$B$4:$F$4,0)-1),OFFSET('C. PoC Adj Factor Scoring'!$E$5:$J$282,,MATCH(Z$4,'C. PoC Adj Factor Scoring'!$E$3:$AH$3,0)-1),MATCH(Z$2&\" Score\",'C. PoC Adj Factor Scoring'!$E$4:$J$4,0),TRUE)","v":1},{"$f":"VLOOKUP(OFFSET($B:$B,,MATCH(AA$4,$B$4:$F$4,0)-1),OFFSET('C. PoC Adj Factor Scoring'!$E$5:$J$282,,MATCH(AA$4,'C. PoC Adj Factor Scoring'!$E$3:$AH$3,0)-1),MATCH(AA$2&\" Score\",'C. PoC Adj Factor Scoring'!$E$4:$J$4,0),TRUE)","v":3},{"$f":"VLOOKUP(OFFSET($B:$B,,MATCH(AB$4,$B$4:$F$4,0)-1),OFFSET('C. PoC Adj Factor Scoring'!$E$5:$J$282,,MATCH(AB$4,'C. PoC Adj Factor Scoring'!$E$3:$AH$3,0)-1),MATCH(AB$2&\" Score\",'C. PoC Adj Factor Scoring'!$E$4:$J$4,0),TRUE)","v":1},{"$f":"VLOOKUP(OFFSET($B:$B,,MATCH(AC$4,$B$4:$F$4,0)-1),OFFSET('C. PoC Adj Factor Scoring'!$E$5:$J$282,,MATCH(AC$4,'C. PoC Adj Factor Scoring'!$E$3:$AH$3,0)-1),MATCH(AC$2&\" Score\",'C. PoC Adj Factor Scoring'!$E$4:$J$4,0),TRUE)","v":1},{"$f":"VLOOKUP(OFFSET($B:$B,,MATCH(AD$4,$B$4:$F$4,0)-1),OFFSET('C. PoC Adj Factor Scoring'!$E$5:$J$282,,MATCH(AD$4,'C. PoC Adj Factor Scoring'!$E$3:$AH$3,0)-1),MATCH(AD$2&\" Score\",'C. PoC Adj Factor Scoring'!$E$4:$J$4,0),TRUE)","v":1},{"$f":"VLOOKUP(OFFSET($B:$B,,MATCH(AE$4,$B$4:$F$4,0)-1),OFFSET('C. PoC Adj Factor Scoring'!$E$5:$J$282,,MATCH(AE$4,'C. PoC Adj Factor Scoring'!$E$3:$AH$3,0)-1),MATCH(AE$2&\" Score\",'C. PoC Adj Factor Scoring'!$E$4:$J$4,0),TRUE)","v":1}]
[{"$f":"'A. Population Info'!A239","v":1000358878},{"$f":"'A. Population Info'!L239","v":"OIL"},{"$f":"'A. Population Info'!M239","v":0},{"$f":"'A. Population Info'!N239","v":0},{"$f":"'A. Population Info'!O239","v":0},{"$f":"'A. Population Info'!P239","v":0},{"$f":"VLOOKUP(OFFSET($B:$B,,MATCH(G$4,$B$4:$F$4,0)-1),OFFSET('C. PoC Adj Factor Scoring'!$E$5:$J$282,,MATCH(G$4,'C. PoC Adj Factor Scoring'!$E$3:$AH$3,0)-1),MATCH(G$2&\" Score\",'C. PoC Adj Factor Scoring'!$E$4:$J$4,0),TRUE)","v":4},{"$f":"VLOOKUP(OFFSET($B:$B,,MATCH(H$4,$B$4:$F$4,0)-1),OFFSET('C. PoC Adj Factor Scoring'!$E$5:$J$282,,MATCH(H$4,'C. PoC Adj Factor Scoring'!$E$3:$AH$3,0)-1),MATCH(H$2&\" Score\",'C. PoC Adj Factor Scoring'!$E$4:$J$4,0),TRUE)","v":1},{"$f":"VLOOKUP(OFFSET($B:$B,,MATCH(I$4,$B$4:$F$4,0)-1),OFFSET('C. PoC Adj Factor Scoring'!$E$5:$J$282,,MATCH(I$4,'C. PoC Adj Factor Scoring'!$E$3:$AH$3,0)-1),MATCH(I$2&\" Score\",'C. PoC Adj Factor Scoring'!$E$4:$J$4,0),TRUE)","v":1},{"$f":"VLOOKUP(OFFSET($B:$B,,MATCH(J$4,$B$4:$F$4,0)-1),OFFSET('C. PoC Adj Factor Scoring'!$E$5:$J$282,,MATCH(J$4,'C. PoC Adj Factor Scoring'!$E$3:$AH$3,0)-1),MATCH(J$2&\" Score\",'C. PoC Adj Factor Scoring'!$E$4:$J$4,0),TRUE)","v":1},{"$f":"VLOOKUP(OFFSET($B:$B,,MATCH(K$4,$B$4:$F$4,0)-1),OFFSET('C. PoC Adj Factor Scoring'!$E$5:$J$282,,MATCH(K$4,'C. PoC Adj Factor Scoring'!$E$3:$AH$3,0)-1),MATCH(K$2&\" Score\",'C. PoC Adj Factor Scoring'!$E$4:$J$4,0),TRUE)","v":1},{"$f":"VLOOKUP(OFFSET($B:$B,,MATCH(L$4,$B$4:$F$4,0)-1),OFFSET('C. PoC Adj Factor Scoring'!$E$5:$J$282,,MATCH(L$4,'C. PoC Adj Factor Scoring'!$E$3:$AH$3,0)-1),MATCH(L$2&\" Score\",'C. PoC Adj Factor Scoring'!$E$4:$J$4,0),TRUE)","v":1},{"$f":"VLOOKUP(OFFSET($B:$B,,MATCH(M$4,$B$4:$F$4,0)-1),OFFSET('C. PoC Adj Factor Scoring'!$E$5:$J$282,,MATCH(M$4,'C. PoC Adj Factor Scoring'!$E$3:$AH$3,0)-1),MATCH(M$2&\" Score\",'C. PoC Adj Factor Scoring'!$E$4:$J$4,0),TRUE)","v":1},{"$f":"VLOOKUP(OFFSET($B:$B,,MATCH(N$4,$B$4:$F$4,0)-1),OFFSET('C. PoC Adj Factor Scoring'!$E$5:$J$282,,MATCH(N$4,'C. PoC Adj Factor Scoring'!$E$3:$AH$3,0)-1),MATCH(N$2&\" Score\",'C. PoC Adj Factor Scoring'!$E$4:$J$4,0),TRUE)","v":1},{"$f":"VLOOKUP(OFFSET($B:$B,,MATCH(O$4,$B$4:$F$4,0)-1),OFFSET('C. PoC Adj Factor Scoring'!$E$5:$J$282,,MATCH(O$4,'C. PoC Adj Factor Scoring'!$E$3:$AH$3,0)-1),MATCH(O$2&\" Score\",'C. PoC Adj Factor Scoring'!$E$4:$J$4,0),TRUE)","v":1},{"$f":"VLOOKUP(OFFSET($B:$B,,MATCH(P$4,$B$4:$F$4,0)-1),OFFSET('C. PoC Adj Factor Scoring'!$E$5:$J$282,,MATCH(P$4,'C. PoC Adj Factor Scoring'!$E$3:$AH$3,0)-1),MATCH(P$2&\" Score\",'C. PoC Adj Factor Scoring'!$E$4:$J$4,0),TRUE)","v":1},{"$f":"VLOOKUP(OFFSET($B:$B,,MATCH(Q$4,$B$4:$F$4,0)-1),OFFSET('C. PoC Adj Factor Scoring'!$E$5:$J$282,,MATCH(Q$4,'C. PoC Adj Factor Scoring'!$E$3:$AH$3,0)-1),MATCH(Q$2&\" Score\",'C. PoC Adj Factor Scoring'!$E$4:$J$4,0),TRUE)","v":1},{"$f":"VLOOKUP(OFFSET($B:$B,,MATCH(R$4,$B$4:$F$4,0)-1),OFFSET('C. PoC Adj Factor Scoring'!$E$5:$J$282,,MATCH(R$4,'C. PoC Adj Factor Scoring'!$E$3:$AH$3,0)-1),MATCH(R$2&\" Score\",'C. PoC Adj Factor Scoring'!$E$4:$J$4,0),TRUE)","v":1},{"$f":"VLOOKUP(OFFSET($B:$B,,MATCH(S$4,$B$4:$F$4,0)-1),OFFSET('C. PoC Adj Factor Scoring'!$E$5:$J$282,,MATCH(S$4,'C. PoC Adj Factor Scoring'!$E$3:$AH$3,0)-1),MATCH(S$2&\" Score\",'C. PoC Adj Factor Scoring'!$E$4:$J$4,0),TRUE)","v":1},{"$f":"VLOOKUP(OFFSET($B:$B,,MATCH(T$4,$B$4:$F$4,0)-1),OFFSET('C. PoC Adj Factor Scoring'!$E$5:$J$282,,MATCH(T$4,'C. PoC Adj Factor Scoring'!$E$3:$AH$3,0)-1),MATCH(T$2&\" Score\",'C. PoC Adj Factor Scoring'!$E$4:$J$4,0),TRUE)","v":1},{"$f":"VLOOKUP(OFFSET($B:$B,,MATCH(U$4,$B$4:$F$4,0)-1),OFFSET('C. PoC Adj Factor Scoring'!$E$5:$J$282,,MATCH(U$4,'C. PoC Adj Factor Scoring'!$E$3:$AH$3,0)-1),MATCH(U$2&\" Score\",'C. PoC Adj Factor Scoring'!$E$4:$J$4,0),TRUE)","v":1},{"$f":"VLOOKUP(OFFSET($B:$B,,MATCH(V$4,$B$4:$F$4,0)-1),OFFSET('C. PoC Adj Factor Scoring'!$E$5:$J$282,,MATCH(V$4,'C. PoC Adj Factor Scoring'!$E$3:$AH$3,0)-1),MATCH(V$2&\" Score\",'C. PoC Adj Factor Scoring'!$E$4:$J$4,0),TRUE)","v":1},{"$f":"VLOOKUP(OFFSET($B:$B,,MATCH(W$4,$B$4:$F$4,0)-1),OFFSET('C. PoC Adj Factor Scoring'!$E$5:$J$282,,MATCH(W$4,'C. PoC Adj Factor Scoring'!$E$3:$AH$3,0)-1),MATCH(W$2&\" Score\",'C. PoC Adj Factor Scoring'!$E$4:$J$4,0),TRUE)","v":1},{"$f":"VLOOKUP(OFFSET($B:$B,,MATCH(X$4,$B$4:$F$4,0)-1),OFFSET('C. PoC Adj Factor Scoring'!$E$5:$J$282,,MATCH(X$4,'C. PoC Adj Factor Scoring'!$E$3:$AH$3,0)-1),MATCH(X$2&\" Score\",'C. PoC Adj Factor Scoring'!$E$4:$J$4,0),TRUE)","v":1},{"$f":"VLOOKUP(OFFSET($B:$B,,MATCH(Y$4,$B$4:$F$4,0)-1),OFFSET('C. PoC Adj Factor Scoring'!$E$5:$J$282,,MATCH(Y$4,'C. PoC Adj Factor Scoring'!$E$3:$AH$3,0)-1),MATCH(Y$2&\" Score\",'C. PoC Adj Factor Scoring'!$E$4:$J$4,0),TRUE)","v":1},{"$f":"VLOOKUP(OFFSET($B:$B,,MATCH(Z$4,$B$4:$F$4,0)-1),OFFSET('C. PoC Adj Factor Scoring'!$E$5:$J$282,,MATCH(Z$4,'C. PoC Adj Factor Scoring'!$E$3:$AH$3,0)-1),MATCH(Z$2&\" Score\",'C. PoC Adj Factor Scoring'!$E$4:$J$4,0),TRUE)","v":1},{"$f":"VLOOKUP(OFFSET($B:$B,,MATCH(AA$4,$B$4:$F$4,0)-1),OFFSET('C. PoC Adj Factor Scoring'!$E$5:$J$282,,MATCH(AA$4,'C. PoC Adj Factor Scoring'!$E$3:$AH$3,0)-1),MATCH(AA$2&\" Score\",'C. PoC Adj Factor Scoring'!$E$4:$J$4,0),TRUE)","v":3},{"$f":"VLOOKUP(OFFSET($B:$B,,MATCH(AB$4,$B$4:$F$4,0)-1),OFFSET('C. PoC Adj Factor Scoring'!$E$5:$J$282,,MATCH(AB$4,'C. PoC Adj Factor Scoring'!$E$3:$AH$3,0)-1),MATCH(AB$2&\" Score\",'C. PoC Adj Factor Scoring'!$E$4:$J$4,0),TRUE)","v":1},{"$f":"VLOOKUP(OFFSET($B:$B,,MATCH(AC$4,$B$4:$F$4,0)-1),OFFSET('C. PoC Adj Factor Scoring'!$E$5:$J$282,,MATCH(AC$4,'C. PoC Adj Factor Scoring'!$E$3:$AH$3,0)-1),MATCH(AC$2&\" Score\",'C. PoC Adj Factor Scoring'!$E$4:$J$4,0),TRUE)","v":1},{"$f":"VLOOKUP(OFFSET($B:$B,,MATCH(AD$4,$B$4:$F$4,0)-1),OFFSET('C. PoC Adj Factor Scoring'!$E$5:$J$282,,MATCH(AD$4,'C. PoC Adj Factor Scoring'!$E$3:$AH$3,0)-1),MATCH(AD$2&\" Score\",'C. PoC Adj Factor Scoring'!$E$4:$J$4,0),TRUE)","v":1},{"$f":"VLOOKUP(OFFSET($B:$B,,MATCH(AE$4,$B$4:$F$4,0)-1),OFFSET('C. PoC Adj Factor Scoring'!$E$5:$J$282,,MATCH(AE$4,'C. PoC Adj Factor Scoring'!$E$3:$AH$3,0)-1),MATCH(AE$2&\" Score\",'C. PoC Adj Factor Scoring'!$E$4:$J$4,0),TRUE)","v":1}]
[{"$f":"'A. Population Info'!A240","v":1000358906},{"$f":"'A. Population Info'!L240","v":"OIL"},{"$f":"'A. Population Info'!M240","v":0},{"$f":"'A. Population Info'!N240","v":0},{"$f":"'A. Population Info'!O240","v":0},{"$f":"'A. Population Info'!P240","v":0},{"$f":"VLOOKUP(OFFSET($B:$B,,MATCH(G$4,$B$4:$F$4,0)-1),OFFSET('C. PoC Adj Factor Scoring'!$E$5:$J$282,,MATCH(G$4,'C. PoC Adj Factor Scoring'!$E$3:$AH$3,0)-1),MATCH(G$2&\" Score\",'C. PoC Adj Factor Scoring'!$E$4:$J$4,0),TRUE)","v":4},{"$f":"VLOOKUP(OFFSET($B:$B,,MATCH(H$4,$B$4:$F$4,0)-1),OFFSET('C. PoC Adj Factor Scoring'!$E$5:$J$282,,MATCH(H$4,'C. PoC Adj Factor Scoring'!$E$3:$AH$3,0)-1),MATCH(H$2&\" Score\",'C. PoC Adj Factor Scoring'!$E$4:$J$4,0),TRUE)","v":1},{"$f":"VLOOKUP(OFFSET($B:$B,,MATCH(I$4,$B$4:$F$4,0)-1),OFFSET('C. PoC Adj Factor Scoring'!$E$5:$J$282,,MATCH(I$4,'C. PoC Adj Factor Scoring'!$E$3:$AH$3,0)-1),MATCH(I$2&\" Score\",'C. PoC Adj Factor Scoring'!$E$4:$J$4,0),TRUE)","v":1},{"$f":"VLOOKUP(OFFSET($B:$B,,MATCH(J$4,$B$4:$F$4,0)-1),OFFSET('C. PoC Adj Factor Scoring'!$E$5:$J$282,,MATCH(J$4,'C. PoC Adj Factor Scoring'!$E$3:$AH$3,0)-1),MATCH(J$2&\" Score\",'C. PoC Adj Factor Scoring'!$E$4:$J$4,0),TRUE)","v":1},{"$f":"VLOOKUP(OFFSET($B:$B,,MATCH(K$4,$B$4:$F$4,0)-1),OFFSET('C. PoC Adj Factor Scoring'!$E$5:$J$282,,MATCH(K$4,'C. PoC Adj Factor Scoring'!$E$3:$AH$3,0)-1),MATCH(K$2&\" Score\",'C. PoC Adj Factor Scoring'!$E$4:$J$4,0),TRUE)","v":1},{"$f":"VLOOKUP(OFFSET($B:$B,,MATCH(L$4,$B$4:$F$4,0)-1),OFFSET('C. PoC Adj Factor Scoring'!$E$5:$J$282,,MATCH(L$4,'C. PoC Adj Factor Scoring'!$E$3:$AH$3,0)-1),MATCH(L$2&\" Score\",'C. PoC Adj Factor Scoring'!$E$4:$J$4,0),TRUE)","v":1},{"$f":"VLOOKUP(OFFSET($B:$B,,MATCH(M$4,$B$4:$F$4,0)-1),OFFSET('C. PoC Adj Factor Scoring'!$E$5:$J$282,,MATCH(M$4,'C. PoC Adj Factor Scoring'!$E$3:$AH$3,0)-1),MATCH(M$2&\" Score\",'C. PoC Adj Factor Scoring'!$E$4:$J$4,0),TRUE)","v":1},{"$f":"VLOOKUP(OFFSET($B:$B,,MATCH(N$4,$B$4:$F$4,0)-1),OFFSET('C. PoC Adj Factor Scoring'!$E$5:$J$282,,MATCH(N$4,'C. PoC Adj Factor Scoring'!$E$3:$AH$3,0)-1),MATCH(N$2&\" Score\",'C. PoC Adj Factor Scoring'!$E$4:$J$4,0),TRUE)","v":1},{"$f":"VLOOKUP(OFFSET($B:$B,,MATCH(O$4,$B$4:$F$4,0)-1),OFFSET('C. PoC Adj Factor Scoring'!$E$5:$J$282,,MATCH(O$4,'C. PoC Adj Factor Scoring'!$E$3:$AH$3,0)-1),MATCH(O$2&\" Score\",'C. PoC Adj Factor Scoring'!$E$4:$J$4,0),TRUE)","v":1},{"$f":"VLOOKUP(OFFSET($B:$B,,MATCH(P$4,$B$4:$F$4,0)-1),OFFSET('C. PoC Adj Factor Scoring'!$E$5:$J$282,,MATCH(P$4,'C. PoC Adj Factor Scoring'!$E$3:$AH$3,0)-1),MATCH(P$2&\" Score\",'C. PoC Adj Factor Scoring'!$E$4:$J$4,0),TRUE)","v":1},{"$f":"VLOOKUP(OFFSET($B:$B,,MATCH(Q$4,$B$4:$F$4,0)-1),OFFSET('C. PoC Adj Factor Scoring'!$E$5:$J$282,,MATCH(Q$4,'C. PoC Adj Factor Scoring'!$E$3:$AH$3,0)-1),MATCH(Q$2&\" Score\",'C. PoC Adj Factor Scoring'!$E$4:$J$4,0),TRUE)","v":1},{"$f":"VLOOKUP(OFFSET($B:$B,,MATCH(R$4,$B$4:$F$4,0)-1),OFFSET('C. PoC Adj Factor Scoring'!$E$5:$J$282,,MATCH(R$4,'C. PoC Adj Factor Scoring'!$E$3:$AH$3,0)-1),MATCH(R$2&\" Score\",'C. PoC Adj Factor Scoring'!$E$4:$J$4,0),TRUE)","v":1},{"$f":"VLOOKUP(OFFSET($B:$B,,MATCH(S$4,$B$4:$F$4,0)-1),OFFSET('C. PoC Adj Factor Scoring'!$E$5:$J$282,,MATCH(S$4,'C. PoC Adj Factor Scoring'!$E$3:$AH$3,0)-1),MATCH(S$2&\" Score\",'C. PoC Adj Factor Scoring'!$E$4:$J$4,0),TRUE)","v":1},{"$f":"VLOOKUP(OFFSET($B:$B,,MATCH(T$4,$B$4:$F$4,0)-1),OFFSET('C. PoC Adj Factor Scoring'!$E$5:$J$282,,MATCH(T$4,'C. PoC Adj Factor Scoring'!$E$3:$AH$3,0)-1),MATCH(T$2&\" Score\",'C. PoC Adj Factor Scoring'!$E$4:$J$4,0),TRUE)","v":1},{"$f":"VLOOKUP(OFFSET($B:$B,,MATCH(U$4,$B$4:$F$4,0)-1),OFFSET('C. PoC Adj Factor Scoring'!$E$5:$J$282,,MATCH(U$4,'C. PoC Adj Factor Scoring'!$E$3:$AH$3,0)-1),MATCH(U$2&\" Score\",'C. PoC Adj Factor Scoring'!$E$4:$J$4,0),TRUE)","v":1},{"$f":"VLOOKUP(OFFSET($B:$B,,MATCH(V$4,$B$4:$F$4,0)-1),OFFSET('C. PoC Adj Factor Scoring'!$E$5:$J$282,,MATCH(V$4,'C. PoC Adj Factor Scoring'!$E$3:$AH$3,0)-1),MATCH(V$2&\" Score\",'C. PoC Adj Factor Scoring'!$E$4:$J$4,0),TRUE)","v":1},{"$f":"VLOOKUP(OFFSET($B:$B,,MATCH(W$4,$B$4:$F$4,0)-1),OFFSET('C. PoC Adj Factor Scoring'!$E$5:$J$282,,MATCH(W$4,'C. PoC Adj Factor Scoring'!$E$3:$AH$3,0)-1),MATCH(W$2&\" Score\",'C. PoC Adj Factor Scoring'!$E$4:$J$4,0),TRUE)","v":1},{"$f":"VLOOKUP(OFFSET($B:$B,,MATCH(X$4,$B$4:$F$4,0)-1),OFFSET('C. PoC Adj Factor Scoring'!$E$5:$J$282,,MATCH(X$4,'C. PoC Adj Factor Scoring'!$E$3:$AH$3,0)-1),MATCH(X$2&\" Score\",'C. PoC Adj Factor Scoring'!$E$4:$J$4,0),TRUE)","v":1},{"$f":"VLOOKUP(OFFSET($B:$B,,MATCH(Y$4,$B$4:$F$4,0)-1),OFFSET('C. PoC Adj Factor Scoring'!$E$5:$J$282,,MATCH(Y$4,'C. PoC Adj Factor Scoring'!$E$3:$AH$3,0)-1),MATCH(Y$2&\" Score\",'C. PoC Adj Factor Scoring'!$E$4:$J$4,0),TRUE)","v":1},{"$f":"VLOOKUP(OFFSET($B:$B,,MATCH(Z$4,$B$4:$F$4,0)-1),OFFSET('C. PoC Adj Factor Scoring'!$E$5:$J$282,,MATCH(Z$4,'C. PoC Adj Factor Scoring'!$E$3:$AH$3,0)-1),MATCH(Z$2&\" Score\",'C. PoC Adj Factor Scoring'!$E$4:$J$4,0),TRUE)","v":1},{"$f":"VLOOKUP(OFFSET($B:$B,,MATCH(AA$4,$B$4:$F$4,0)-1),OFFSET('C. PoC Adj Factor Scoring'!$E$5:$J$282,,MATCH(AA$4,'C. PoC Adj Factor Scoring'!$E$3:$AH$3,0)-1),MATCH(AA$2&\" Score\",'C. PoC Adj Factor Scoring'!$E$4:$J$4,0),TRUE)","v":3},{"$f":"VLOOKUP(OFFSET($B:$B,,MATCH(AB$4,$B$4:$F$4,0)-1),OFFSET('C. PoC Adj Factor Scoring'!$E$5:$J$282,,MATCH(AB$4,'C. PoC Adj Factor Scoring'!$E$3:$AH$3,0)-1),MATCH(AB$2&\" Score\",'C. PoC Adj Factor Scoring'!$E$4:$J$4,0),TRUE)","v":1},{"$f":"VLOOKUP(OFFSET($B:$B,,MATCH(AC$4,$B$4:$F$4,0)-1),OFFSET('C. PoC Adj Factor Scoring'!$E$5:$J$282,,MATCH(AC$4,'C. PoC Adj Factor Scoring'!$E$3:$AH$3,0)-1),MATCH(AC$2&\" Score\",'C. PoC Adj Factor Scoring'!$E$4:$J$4,0),TRUE)","v":1},{"$f":"VLOOKUP(OFFSET($B:$B,,MATCH(AD$4,$B$4:$F$4,0)-1),OFFSET('C. PoC Adj Factor Scoring'!$E$5:$J$282,,MATCH(AD$4,'C. PoC Adj Factor Scoring'!$E$3:$AH$3,0)-1),MATCH(AD$2&\" Score\",'C. PoC Adj Factor Scoring'!$E$4:$J$4,0),TRUE)","v":1},{"$f":"VLOOKUP(OFFSET($B:$B,,MATCH(AE$4,$B$4:$F$4,0)-1),OFFSET('C. PoC Adj Factor Scoring'!$E$5:$J$282,,MATCH(AE$4,'C. PoC Adj Factor Scoring'!$E$3:$AH$3,0)-1),MATCH(AE$2&\" Score\",'C. PoC Adj Factor Scoring'!$E$4:$J$4,0),TRUE)","v":1}]
[{"$f":"'A. Population Info'!A241","v":1000358936},{"$f":"'A. Population Info'!L241","v":"CAST_RESIN"},{"$f":"'A. Population Info'!M241","v":0},{"$f":"'A. Population Info'!N241","v":0},{"$f":"'A. Population Info'!O241","v":0},{"$f":"'A. Population Info'!P241","v":0},{"$f":"VLOOKUP(OFFSET($B:$B,,MATCH(G$4,$B$4:$F$4,0)-1),OFFSET('C. PoC Adj Factor Scoring'!$E$5:$J$282,,MATCH(G$4,'C. PoC Adj Factor Scoring'!$E$3:$AH$3,0)-1),MATCH(G$2&\" Score\",'C. PoC Adj Factor Scoring'!$E$4:$J$4,0),TRUE)","v":1},{"$f":"VLOOKUP(OFFSET($B:$B,,MATCH(H$4,$B$4:$F$4,0)-1),OFFSET('C. PoC Adj Factor Scoring'!$E$5:$J$282,,MATCH(H$4,'C. PoC Adj Factor Scoring'!$E$3:$AH$3,0)-1),MATCH(H$2&\" Score\",'C. PoC Adj Factor Scoring'!$E$4:$J$4,0),TRUE)","v":1},{"$f":"VLOOKUP(OFFSET($B:$B,,MATCH(I$4,$B$4:$F$4,0)-1),OFFSET('C. PoC Adj Factor Scoring'!$E$5:$J$282,,MATCH(I$4,'C. PoC Adj Factor Scoring'!$E$3:$AH$3,0)-1),MATCH(I$2&\" Score\",'C. PoC Adj Factor Scoring'!$E$4:$J$4,0),TRUE)","v":1},{"$f":"VLOOKUP(OFFSET($B:$B,,MATCH(J$4,$B$4:$F$4,0)-1),OFFSET('C. PoC Adj Factor Scoring'!$E$5:$J$282,,MATCH(J$4,'C. PoC Adj Factor Scoring'!$E$3:$AH$3,0)-1),MATCH(J$2&\" Score\",'C. PoC Adj Factor Scoring'!$E$4:$J$4,0),TRUE)","v":1},{"$f":"VLOOKUP(OFFSET($B:$B,,MATCH(K$4,$B$4:$F$4,0)-1),OFFSET('C. PoC Adj Factor Scoring'!$E$5:$J$282,,MATCH(K$4,'C. PoC Adj Factor Scoring'!$E$3:$AH$3,0)-1),MATCH(K$2&\" Score\",'C. PoC Adj Factor Scoring'!$E$4:$J$4,0),TRUE)","v":1},{"$f":"VLOOKUP(OFFSET($B:$B,,MATCH(L$4,$B$4:$F$4,0)-1),OFFSET('C. PoC Adj Factor Scoring'!$E$5:$J$282,,MATCH(L$4,'C. PoC Adj Factor Scoring'!$E$3:$AH$3,0)-1),MATCH(L$2&\" Score\",'C. PoC Adj Factor Scoring'!$E$4:$J$4,0),TRUE)","v":1},{"$f":"VLOOKUP(OFFSET($B:$B,,MATCH(M$4,$B$4:$F$4,0)-1),OFFSET('C. PoC Adj Factor Scoring'!$E$5:$J$282,,MATCH(M$4,'C. PoC Adj Factor Scoring'!$E$3:$AH$3,0)-1),MATCH(M$2&\" Score\",'C. PoC Adj Factor Scoring'!$E$4:$J$4,0),TRUE)","v":1},{"$f":"VLOOKUP(OFFSET($B:$B,,MATCH(N$4,$B$4:$F$4,0)-1),OFFSET('C. PoC Adj Factor Scoring'!$E$5:$J$282,,MATCH(N$4,'C. PoC Adj Factor Scoring'!$E$3:$AH$3,0)-1),MATCH(N$2&\" Score\",'C. PoC Adj Factor Scoring'!$E$4:$J$4,0),TRUE)","v":1},{"$f":"VLOOKUP(OFFSET($B:$B,,MATCH(O$4,$B$4:$F$4,0)-1),OFFSET('C. PoC Adj Factor Scoring'!$E$5:$J$282,,MATCH(O$4,'C. PoC Adj Factor Scoring'!$E$3:$AH$3,0)-1),MATCH(O$2&\" Score\",'C. PoC Adj Factor Scoring'!$E$4:$J$4,0),TRUE)","v":1},{"$f":"VLOOKUP(OFFSET($B:$B,,MATCH(P$4,$B$4:$F$4,0)-1),OFFSET('C. PoC Adj Factor Scoring'!$E$5:$J$282,,MATCH(P$4,'C. PoC Adj Factor Scoring'!$E$3:$AH$3,0)-1),MATCH(P$2&\" Score\",'C. PoC Adj Factor Scoring'!$E$4:$J$4,0),TRUE)","v":1},{"$f":"VLOOKUP(OFFSET($B:$B,,MATCH(Q$4,$B$4:$F$4,0)-1),OFFSET('C. PoC Adj Factor Scoring'!$E$5:$J$282,,MATCH(Q$4,'C. PoC Adj Factor Scoring'!$E$3:$AH$3,0)-1),MATCH(Q$2&\" Score\",'C. PoC Adj Factor Scoring'!$E$4:$J$4,0),TRUE)","v":1},{"$f":"VLOOKUP(OFFSET($B:$B,,MATCH(R$4,$B$4:$F$4,0)-1),OFFSET('C. PoC Adj Factor Scoring'!$E$5:$J$282,,MATCH(R$4,'C. PoC Adj Factor Scoring'!$E$3:$AH$3,0)-1),MATCH(R$2&\" Score\",'C. PoC Adj Factor Scoring'!$E$4:$J$4,0),TRUE)","v":1},{"$f":"VLOOKUP(OFFSET($B:$B,,MATCH(S$4,$B$4:$F$4,0)-1),OFFSET('C. PoC Adj Factor Scoring'!$E$5:$J$282,,MATCH(S$4,'C. PoC Adj Factor Scoring'!$E$3:$AH$3,0)-1),MATCH(S$2&\" Score\",'C. PoC Adj Factor Scoring'!$E$4:$J$4,0),TRUE)","v":1},{"$f":"VLOOKUP(OFFSET($B:$B,,MATCH(T$4,$B$4:$F$4,0)-1),OFFSET('C. PoC Adj Factor Scoring'!$E$5:$J$282,,MATCH(T$4,'C. PoC Adj Factor Scoring'!$E$3:$AH$3,0)-1),MATCH(T$2&\" Score\",'C. PoC Adj Factor Scoring'!$E$4:$J$4,0),TRUE)","v":1},{"$f":"VLOOKUP(OFFSET($B:$B,,MATCH(U$4,$B$4:$F$4,0)-1),OFFSET('C. PoC Adj Factor Scoring'!$E$5:$J$282,,MATCH(U$4,'C. PoC Adj Factor Scoring'!$E$3:$AH$3,0)-1),MATCH(U$2&\" Score\",'C. PoC Adj Factor Scoring'!$E$4:$J$4,0),TRUE)","v":1},{"$f":"VLOOKUP(OFFSET($B:$B,,MATCH(V$4,$B$4:$F$4,0)-1),OFFSET('C. PoC Adj Factor Scoring'!$E$5:$J$282,,MATCH(V$4,'C. PoC Adj Factor Scoring'!$E$3:$AH$3,0)-1),MATCH(V$2&\" Score\",'C. PoC Adj Factor Scoring'!$E$4:$J$4,0),TRUE)","v":1},{"$f":"VLOOKUP(OFFSET($B:$B,,MATCH(W$4,$B$4:$F$4,0)-1),OFFSET('C. PoC Adj Factor Scoring'!$E$5:$J$282,,MATCH(W$4,'C. PoC Adj Factor Scoring'!$E$3:$AH$3,0)-1),MATCH(W$2&\" Score\",'C. PoC Adj Factor Scoring'!$E$4:$J$4,0),TRUE)","v":1},{"$f":"VLOOKUP(OFFSET($B:$B,,MATCH(X$4,$B$4:$F$4,0)-1),OFFSET('C. PoC Adj Factor Scoring'!$E$5:$J$282,,MATCH(X$4,'C. PoC Adj Factor Scoring'!$E$3:$AH$3,0)-1),MATCH(X$2&\" Score\",'C. PoC Adj Factor Scoring'!$E$4:$J$4,0),TRUE)","v":1},{"$f":"VLOOKUP(OFFSET($B:$B,,MATCH(Y$4,$B$4:$F$4,0)-1),OFFSET('C. PoC Adj Factor Scoring'!$E$5:$J$282,,MATCH(Y$4,'C. PoC Adj Factor Scoring'!$E$3:$AH$3,0)-1),MATCH(Y$2&\" Score\",'C. PoC Adj Factor Scoring'!$E$4:$J$4,0),TRUE)","v":1},{"$f":"VLOOKUP(OFFSET($B:$B,,MATCH(Z$4,$B$4:$F$4,0)-1),OFFSET('C. PoC Adj Factor Scoring'!$E$5:$J$282,,MATCH(Z$4,'C. PoC Adj Factor Scoring'!$E$3:$AH$3,0)-1),MATCH(Z$2&\" Score\",'C. PoC Adj Factor Scoring'!$E$4:$J$4,0),TRUE)","v":1},{"$f":"VLOOKUP(OFFSET($B:$B,,MATCH(AA$4,$B$4:$F$4,0)-1),OFFSET('C. PoC Adj Factor Scoring'!$E$5:$J$282,,MATCH(AA$4,'C. PoC Adj Factor Scoring'!$E$3:$AH$3,0)-1),MATCH(AA$2&\" Score\",'C. PoC Adj Factor Scoring'!$E$4:$J$4,0),TRUE)","v":1},{"$f":"VLOOKUP(OFFSET($B:$B,,MATCH(AB$4,$B$4:$F$4,0)-1),OFFSET('C. PoC Adj Factor Scoring'!$E$5:$J$282,,MATCH(AB$4,'C. PoC Adj Factor Scoring'!$E$3:$AH$3,0)-1),MATCH(AB$2&\" Score\",'C. PoC Adj Factor Scoring'!$E$4:$J$4,0),TRUE)","v":1},{"$f":"VLOOKUP(OFFSET($B:$B,,MATCH(AC$4,$B$4:$F$4,0)-1),OFFSET('C. PoC Adj Factor Scoring'!$E$5:$J$282,,MATCH(AC$4,'C. PoC Adj Factor Scoring'!$E$3:$AH$3,0)-1),MATCH(AC$2&\" Score\",'C. PoC Adj Factor Scoring'!$E$4:$J$4,0),TRUE)","v":1},{"$f":"VLOOKUP(OFFSET($B:$B,,MATCH(AD$4,$B$4:$F$4,0)-1),OFFSET('C. PoC Adj Factor Scoring'!$E$5:$J$282,,MATCH(AD$4,'C. PoC Adj Factor Scoring'!$E$3:$AH$3,0)-1),MATCH(AD$2&\" Score\",'C. PoC Adj Factor Scoring'!$E$4:$J$4,0),TRUE)","v":1},{"$f":"VLOOKUP(OFFSET($B:$B,,MATCH(AE$4,$B$4:$F$4,0)-1),OFFSET('C. PoC Adj Factor Scoring'!$E$5:$J$282,,MATCH(AE$4,'C. PoC Adj Factor Scoring'!$E$3:$AH$3,0)-1),MATCH(AE$2&\" Score\",'C. PoC Adj Factor Scoring'!$E$4:$J$4,0),TRUE)","v":1}]
[{"$f":"'A. Population Info'!A242","v":1000358963},{"$f":"'A. Population Info'!L242","v":"OIL"},{"$f":"'A. Population Info'!M242","v":0},{"$f":"'A. Population Info'!N242","v":0},{"$f":"'A. Population Info'!O242","v":0},{"$f":"'A. Population Info'!P242","v":0},{"$f":"VLOOKUP(OFFSET($B:$B,,MATCH(G$4,$B$4:$F$4,0)-1),OFFSET('C. PoC Adj Factor Scoring'!$E$5:$J$282,,MATCH(G$4,'C. PoC Adj Factor Scoring'!$E$3:$AH$3,0)-1),MATCH(G$2&\" Score\",'C. PoC Adj Factor Scoring'!$E$4:$J$4,0),TRUE)","v":4},{"$f":"VLOOKUP(OFFSET($B:$B,,MATCH(H$4,$B$4:$F$4,0)-1),OFFSET('C. PoC Adj Factor Scoring'!$E$5:$J$282,,MATCH(H$4,'C. PoC Adj Factor Scoring'!$E$3:$AH$3,0)-1),MATCH(H$2&\" Score\",'C. PoC Adj Factor Scoring'!$E$4:$J$4,0),TRUE)","v":1},{"$f":"VLOOKUP(OFFSET($B:$B,,MATCH(I$4,$B$4:$F$4,0)-1),OFFSET('C. PoC Adj Factor Scoring'!$E$5:$J$282,,MATCH(I$4,'C. PoC Adj Factor Scoring'!$E$3:$AH$3,0)-1),MATCH(I$2&\" Score\",'C. PoC Adj Factor Scoring'!$E$4:$J$4,0),TRUE)","v":1},{"$f":"VLOOKUP(OFFSET($B:$B,,MATCH(J$4,$B$4:$F$4,0)-1),OFFSET('C. PoC Adj Factor Scoring'!$E$5:$J$282,,MATCH(J$4,'C. PoC Adj Factor Scoring'!$E$3:$AH$3,0)-1),MATCH(J$2&\" Score\",'C. PoC Adj Factor Scoring'!$E$4:$J$4,0),TRUE)","v":1},{"$f":"VLOOKUP(OFFSET($B:$B,,MATCH(K$4,$B$4:$F$4,0)-1),OFFSET('C. PoC Adj Factor Scoring'!$E$5:$J$282,,MATCH(K$4,'C. PoC Adj Factor Scoring'!$E$3:$AH$3,0)-1),MATCH(K$2&\" Score\",'C. PoC Adj Factor Scoring'!$E$4:$J$4,0),TRUE)","v":1},{"$f":"VLOOKUP(OFFSET($B:$B,,MATCH(L$4,$B$4:$F$4,0)-1),OFFSET('C. PoC Adj Factor Scoring'!$E$5:$J$282,,MATCH(L$4,'C. PoC Adj Factor Scoring'!$E$3:$AH$3,0)-1),MATCH(L$2&\" Score\",'C. PoC Adj Factor Scoring'!$E$4:$J$4,0),TRUE)","v":1},{"$f":"VLOOKUP(OFFSET($B:$B,,MATCH(M$4,$B$4:$F$4,0)-1),OFFSET('C. PoC Adj Factor Scoring'!$E$5:$J$282,,MATCH(M$4,'C. PoC Adj Factor Scoring'!$E$3:$AH$3,0)-1),MATCH(M$2&\" Score\",'C. PoC Adj Factor Scoring'!$E$4:$J$4,0),TRUE)","v":1},{"$f":"VLOOKUP(OFFSET($B:$B,,MATCH(N$4,$B$4:$F$4,0)-1),OFFSET('C. PoC Adj Factor Scoring'!$E$5:$J$282,,MATCH(N$4,'C. PoC Adj Factor Scoring'!$E$3:$AH$3,0)-1),MATCH(N$2&\" Score\",'C. PoC Adj Factor Scoring'!$E$4:$J$4,0),TRUE)","v":1},{"$f":"VLOOKUP(OFFSET($B:$B,,MATCH(O$4,$B$4:$F$4,0)-1),OFFSET('C. PoC Adj Factor Scoring'!$E$5:$J$282,,MATCH(O$4,'C. PoC Adj Factor Scoring'!$E$3:$AH$3,0)-1),MATCH(O$2&\" Score\",'C. PoC Adj Factor Scoring'!$E$4:$J$4,0),TRUE)","v":1},{"$f":"VLOOKUP(OFFSET($B:$B,,MATCH(P$4,$B$4:$F$4,0)-1),OFFSET('C. PoC Adj Factor Scoring'!$E$5:$J$282,,MATCH(P$4,'C. PoC Adj Factor Scoring'!$E$3:$AH$3,0)-1),MATCH(P$2&\" Score\",'C. PoC Adj Factor Scoring'!$E$4:$J$4,0),TRUE)","v":1},{"$f":"VLOOKUP(OFFSET($B:$B,,MATCH(Q$4,$B$4:$F$4,0)-1),OFFSET('C. PoC Adj Factor Scoring'!$E$5:$J$282,,MATCH(Q$4,'C. PoC Adj Factor Scoring'!$E$3:$AH$3,0)-1),MATCH(Q$2&\" Score\",'C. PoC Adj Factor Scoring'!$E$4:$J$4,0),TRUE)","v":1},{"$f":"VLOOKUP(OFFSET($B:$B,,MATCH(R$4,$B$4:$F$4,0)-1),OFFSET('C. PoC Adj Factor Scoring'!$E$5:$J$282,,MATCH(R$4,'C. PoC Adj Factor Scoring'!$E$3:$AH$3,0)-1),MATCH(R$2&\" Score\",'C. PoC Adj Factor Scoring'!$E$4:$J$4,0),TRUE)","v":1},{"$f":"VLOOKUP(OFFSET($B:$B,,MATCH(S$4,$B$4:$F$4,0)-1),OFFSET('C. PoC Adj Factor Scoring'!$E$5:$J$282,,MATCH(S$4,'C. PoC Adj Factor Scoring'!$E$3:$AH$3,0)-1),MATCH(S$2&\" Score\",'C. PoC Adj Factor Scoring'!$E$4:$J$4,0),TRUE)","v":1},{"$f":"VLOOKUP(OFFSET($B:$B,,MATCH(T$4,$B$4:$F$4,0)-1),OFFSET('C. PoC Adj Factor Scoring'!$E$5:$J$282,,MATCH(T$4,'C. PoC Adj Factor Scoring'!$E$3:$AH$3,0)-1),MATCH(T$2&\" Score\",'C. PoC Adj Factor Scoring'!$E$4:$J$4,0),TRUE)","v":1},{"$f":"VLOOKUP(OFFSET($B:$B,,MATCH(U$4,$B$4:$F$4,0)-1),OFFSET('C. PoC Adj Factor Scoring'!$E$5:$J$282,,MATCH(U$4,'C. PoC Adj Factor Scoring'!$E$3:$AH$3,0)-1),MATCH(U$2&\" Score\",'C. PoC Adj Factor Scoring'!$E$4:$J$4,0),TRUE)","v":1},{"$f":"VLOOKUP(OFFSET($B:$B,,MATCH(V$4,$B$4:$F$4,0)-1),OFFSET('C. PoC Adj Factor Scoring'!$E$5:$J$282,,MATCH(V$4,'C. PoC Adj Factor Scoring'!$E$3:$AH$3,0)-1),MATCH(V$2&\" Score\",'C. PoC Adj Factor Scoring'!$E$4:$J$4,0),TRUE)","v":1},{"$f":"VLOOKUP(OFFSET($B:$B,,MATCH(W$4,$B$4:$F$4,0)-1),OFFSET('C. PoC Adj Factor Scoring'!$E$5:$J$282,,MATCH(W$4,'C. PoC Adj Factor Scoring'!$E$3:$AH$3,0)-1),MATCH(W$2&\" Score\",'C. PoC Adj Factor Scoring'!$E$4:$J$4,0),TRUE)","v":1},{"$f":"VLOOKUP(OFFSET($B:$B,,MATCH(X$4,$B$4:$F$4,0)-1),OFFSET('C. PoC Adj Factor Scoring'!$E$5:$J$282,,MATCH(X$4,'C. PoC Adj Factor Scoring'!$E$3:$AH$3,0)-1),MATCH(X$2&\" Score\",'C. PoC Adj Factor Scoring'!$E$4:$J$4,0),TRUE)","v":1},{"$f":"VLOOKUP(OFFSET($B:$B,,MATCH(Y$4,$B$4:$F$4,0)-1),OFFSET('C. PoC Adj Factor Scoring'!$E$5:$J$282,,MATCH(Y$4,'C. PoC Adj Factor Scoring'!$E$3:$AH$3,0)-1),MATCH(Y$2&\" Score\",'C. PoC Adj Factor Scoring'!$E$4:$J$4,0),TRUE)","v":1},{"$f":"VLOOKUP(OFFSET($B:$B,,MATCH(Z$4,$B$4:$F$4,0)-1),OFFSET('C. PoC Adj Factor Scoring'!$E$5:$J$282,,MATCH(Z$4,'C. PoC Adj Factor Scoring'!$E$3:$AH$3,0)-1),MATCH(Z$2&\" Score\",'C. PoC Adj Factor Scoring'!$E$4:$J$4,0),TRUE)","v":1},{"$f":"VLOOKUP(OFFSET($B:$B,,MATCH(AA$4,$B$4:$F$4,0)-1),OFFSET('C. PoC Adj Factor Scoring'!$E$5:$J$282,,MATCH(AA$4,'C. PoC Adj Factor Scoring'!$E$3:$AH$3,0)-1),MATCH(AA$2&\" Score\",'C. PoC Adj Factor Scoring'!$E$4:$J$4,0),TRUE)","v":3},{"$f":"VLOOKUP(OFFSET($B:$B,,MATCH(AB$4,$B$4:$F$4,0)-1),OFFSET('C. PoC Adj Factor Scoring'!$E$5:$J$282,,MATCH(AB$4,'C. PoC Adj Factor Scoring'!$E$3:$AH$3,0)-1),MATCH(AB$2&\" Score\",'C. PoC Adj Factor Scoring'!$E$4:$J$4,0),TRUE)","v":1},{"$f":"VLOOKUP(OFFSET($B:$B,,MATCH(AC$4,$B$4:$F$4,0)-1),OFFSET('C. PoC Adj Factor Scoring'!$E$5:$J$282,,MATCH(AC$4,'C. PoC Adj Factor Scoring'!$E$3:$AH$3,0)-1),MATCH(AC$2&\" Score\",'C. PoC Adj Factor Scoring'!$E$4:$J$4,0),TRUE)","v":1},{"$f":"VLOOKUP(OFFSET($B:$B,,MATCH(AD$4,$B$4:$F$4,0)-1),OFFSET('C. PoC Adj Factor Scoring'!$E$5:$J$282,,MATCH(AD$4,'C. PoC Adj Factor Scoring'!$E$3:$AH$3,0)-1),MATCH(AD$2&\" Score\",'C. PoC Adj Factor Scoring'!$E$4:$J$4,0),TRUE)","v":1},{"$f":"VLOOKUP(OFFSET($B:$B,,MATCH(AE$4,$B$4:$F$4,0)-1),OFFSET('C. PoC Adj Factor Scoring'!$E$5:$J$282,,MATCH(AE$4,'C. PoC Adj Factor Scoring'!$E$3:$AH$3,0)-1),MATCH(AE$2&\" Score\",'C. PoC Adj Factor Scoring'!$E$4:$J$4,0),TRUE)","v":1}]
[{"$f":"'A. Population Info'!A243","v":1000358993},{"$f":"'A. Population Info'!L243","v":"OIL"},{"$f":"'A. Population Info'!M243","v":0},{"$f":"'A. Population Info'!N243","v":0},{"$f":"'A. Population Info'!O243","v":0},{"$f":"'A. Population Info'!P243","v":0},{"$f":"VLOOKUP(OFFSET($B:$B,,MATCH(G$4,$B$4:$F$4,0)-1),OFFSET('C. PoC Adj Factor Scoring'!$E$5:$J$282,,MATCH(G$4,'C. PoC Adj Factor Scoring'!$E$3:$AH$3,0)-1),MATCH(G$2&\" Score\",'C. PoC Adj Factor Scoring'!$E$4:$J$4,0),TRUE)","v":4},{"$f":"VLOOKUP(OFFSET($B:$B,,MATCH(H$4,$B$4:$F$4,0)-1),OFFSET('C. PoC Adj Factor Scoring'!$E$5:$J$282,,MATCH(H$4,'C. PoC Adj Factor Scoring'!$E$3:$AH$3,0)-1),MATCH(H$2&\" Score\",'C. PoC Adj Factor Scoring'!$E$4:$J$4,0),TRUE)","v":1},{"$f":"VLOOKUP(OFFSET($B:$B,,MATCH(I$4,$B$4:$F$4,0)-1),OFFSET('C. PoC Adj Factor Scoring'!$E$5:$J$282,,MATCH(I$4,'C. PoC Adj Factor Scoring'!$E$3:$AH$3,0)-1),MATCH(I$2&\" Score\",'C. PoC Adj Factor Scoring'!$E$4:$J$4,0),TRUE)","v":1},{"$f":"VLOOKUP(OFFSET($B:$B,,MATCH(J$4,$B$4:$F$4,0)-1),OFFSET('C. PoC Adj Factor Scoring'!$E$5:$J$282,,MATCH(J$4,'C. PoC Adj Factor Scoring'!$E$3:$AH$3,0)-1),MATCH(J$2&\" Score\",'C. PoC Adj Factor Scoring'!$E$4:$J$4,0),TRUE)","v":1},{"$f":"VLOOKUP(OFFSET($B:$B,,MATCH(K$4,$B$4:$F$4,0)-1),OFFSET('C. PoC Adj Factor Scoring'!$E$5:$J$282,,MATCH(K$4,'C. PoC Adj Factor Scoring'!$E$3:$AH$3,0)-1),MATCH(K$2&\" Score\",'C. PoC Adj Factor Scoring'!$E$4:$J$4,0),TRUE)","v":1},{"$f":"VLOOKUP(OFFSET($B:$B,,MATCH(L$4,$B$4:$F$4,0)-1),OFFSET('C. PoC Adj Factor Scoring'!$E$5:$J$282,,MATCH(L$4,'C. PoC Adj Factor Scoring'!$E$3:$AH$3,0)-1),MATCH(L$2&\" Score\",'C. PoC Adj Factor Scoring'!$E$4:$J$4,0),TRUE)","v":1},{"$f":"VLOOKUP(OFFSET($B:$B,,MATCH(M$4,$B$4:$F$4,0)-1),OFFSET('C. PoC Adj Factor Scoring'!$E$5:$J$282,,MATCH(M$4,'C. PoC Adj Factor Scoring'!$E$3:$AH$3,0)-1),MATCH(M$2&\" Score\",'C. PoC Adj Factor Scoring'!$E$4:$J$4,0),TRUE)","v":1},{"$f":"VLOOKUP(OFFSET($B:$B,,MATCH(N$4,$B$4:$F$4,0)-1),OFFSET('C. PoC Adj Factor Scoring'!$E$5:$J$282,,MATCH(N$4,'C. PoC Adj Factor Scoring'!$E$3:$AH$3,0)-1),MATCH(N$2&\" Score\",'C. PoC Adj Factor Scoring'!$E$4:$J$4,0),TRUE)","v":1},{"$f":"VLOOKUP(OFFSET($B:$B,,MATCH(O$4,$B$4:$F$4,0)-1),OFFSET('C. PoC Adj Factor Scoring'!$E$5:$J$282,,MATCH(O$4,'C. PoC Adj Factor Scoring'!$E$3:$AH$3,0)-1),MATCH(O$2&\" Score\",'C. PoC Adj Factor Scoring'!$E$4:$J$4,0),TRUE)","v":1},{"$f":"VLOOKUP(OFFSET($B:$B,,MATCH(P$4,$B$4:$F$4,0)-1),OFFSET('C. PoC Adj Factor Scoring'!$E$5:$J$282,,MATCH(P$4,'C. PoC Adj Factor Scoring'!$E$3:$AH$3,0)-1),MATCH(P$2&\" Score\",'C. PoC Adj Factor Scoring'!$E$4:$J$4,0),TRUE)","v":1},{"$f":"VLOOKUP(OFFSET($B:$B,,MATCH(Q$4,$B$4:$F$4,0)-1),OFFSET('C. PoC Adj Factor Scoring'!$E$5:$J$282,,MATCH(Q$4,'C. PoC Adj Factor Scoring'!$E$3:$AH$3,0)-1),MATCH(Q$2&\" Score\",'C. PoC Adj Factor Scoring'!$E$4:$J$4,0),TRUE)","v":1},{"$f":"VLOOKUP(OFFSET($B:$B,,MATCH(R$4,$B$4:$F$4,0)-1),OFFSET('C. PoC Adj Factor Scoring'!$E$5:$J$282,,MATCH(R$4,'C. PoC Adj Factor Scoring'!$E$3:$AH$3,0)-1),MATCH(R$2&\" Score\",'C. PoC Adj Factor Scoring'!$E$4:$J$4,0),TRUE)","v":1},{"$f":"VLOOKUP(OFFSET($B:$B,,MATCH(S$4,$B$4:$F$4,0)-1),OFFSET('C. PoC Adj Factor Scoring'!$E$5:$J$282,,MATCH(S$4,'C. PoC Adj Factor Scoring'!$E$3:$AH$3,0)-1),MATCH(S$2&\" Score\",'C. PoC Adj Factor Scoring'!$E$4:$J$4,0),TRUE)","v":1},{"$f":"VLOOKUP(OFFSET($B:$B,,MATCH(T$4,$B$4:$F$4,0)-1),OFFSET('C. PoC Adj Factor Scoring'!$E$5:$J$282,,MATCH(T$4,'C. PoC Adj Factor Scoring'!$E$3:$AH$3,0)-1),MATCH(T$2&\" Score\",'C. PoC Adj Factor Scoring'!$E$4:$J$4,0),TRUE)","v":1},{"$f":"VLOOKUP(OFFSET($B:$B,,MATCH(U$4,$B$4:$F$4,0)-1),OFFSET('C. PoC Adj Factor Scoring'!$E$5:$J$282,,MATCH(U$4,'C. PoC Adj Factor Scoring'!$E$3:$AH$3,0)-1),MATCH(U$2&\" Score\",'C. PoC Adj Factor Scoring'!$E$4:$J$4,0),TRUE)","v":1},{"$f":"VLOOKUP(OFFSET($B:$B,,MATCH(V$4,$B$4:$F$4,0)-1),OFFSET('C. PoC Adj Factor Scoring'!$E$5:$J$282,,MATCH(V$4,'C. PoC Adj Factor Scoring'!$E$3:$AH$3,0)-1),MATCH(V$2&\" Score\",'C. PoC Adj Factor Scoring'!$E$4:$J$4,0),TRUE)","v":1},{"$f":"VLOOKUP(OFFSET($B:$B,,MATCH(W$4,$B$4:$F$4,0)-1),OFFSET('C. PoC Adj Factor Scoring'!$E$5:$J$282,,MATCH(W$4,'C. PoC Adj Factor Scoring'!$E$3:$AH$3,0)-1),MATCH(W$2&\" Score\",'C. PoC Adj Factor Scoring'!$E$4:$J$4,0),TRUE)","v":1},{"$f":"VLOOKUP(OFFSET($B:$B,,MATCH(X$4,$B$4:$F$4,0)-1),OFFSET('C. PoC Adj Factor Scoring'!$E$5:$J$282,,MATCH(X$4,'C. PoC Adj Factor Scoring'!$E$3:$AH$3,0)-1),MATCH(X$2&\" Score\",'C. PoC Adj Factor Scoring'!$E$4:$J$4,0),TRUE)","v":1},{"$f":"VLOOKUP(OFFSET($B:$B,,MATCH(Y$4,$B$4:$F$4,0)-1),OFFSET('C. PoC Adj Factor Scoring'!$E$5:$J$282,,MATCH(Y$4,'C. PoC Adj Factor Scoring'!$E$3:$AH$3,0)-1),MATCH(Y$2&\" Score\",'C. PoC Adj Factor Scoring'!$E$4:$J$4,0),TRUE)","v":1},{"$f":"VLOOKUP(OFFSET($B:$B,,MATCH(Z$4,$B$4:$F$4,0)-1),OFFSET('C. PoC Adj Factor Scoring'!$E$5:$J$282,,MATCH(Z$4,'C. PoC Adj Factor Scoring'!$E$3:$AH$3,0)-1),MATCH(Z$2&\" Score\",'C. PoC Adj Factor Scoring'!$E$4:$J$4,0),TRUE)","v":1},{"$f":"VLOOKUP(OFFSET($B:$B,,MATCH(AA$4,$B$4:$F$4,0)-1),OFFSET('C. PoC Adj Factor Scoring'!$E$5:$J$282,,MATCH(AA$4,'C. PoC Adj Factor Scoring'!$E$3:$AH$3,0)-1),MATCH(AA$2&\" Score\",'C. PoC Adj Factor Scoring'!$E$4:$J$4,0),TRUE)","v":3},{"$f":"VLOOKUP(OFFSET($B:$B,,MATCH(AB$4,$B$4:$F$4,0)-1),OFFSET('C. PoC Adj Factor Scoring'!$E$5:$J$282,,MATCH(AB$4,'C. PoC Adj Factor Scoring'!$E$3:$AH$3,0)-1),MATCH(AB$2&\" Score\",'C. PoC Adj Factor Scoring'!$E$4:$J$4,0),TRUE)","v":1},{"$f":"VLOOKUP(OFFSET($B:$B,,MATCH(AC$4,$B$4:$F$4,0)-1),OFFSET('C. PoC Adj Factor Scoring'!$E$5:$J$282,,MATCH(AC$4,'C. PoC Adj Factor Scoring'!$E$3:$AH$3,0)-1),MATCH(AC$2&\" Score\",'C. PoC Adj Factor Scoring'!$E$4:$J$4,0),TRUE)","v":1},{"$f":"VLOOKUP(OFFSET($B:$B,,MATCH(AD$4,$B$4:$F$4,0)-1),OFFSET('C. PoC Adj Factor Scoring'!$E$5:$J$282,,MATCH(AD$4,'C. PoC Adj Factor Scoring'!$E$3:$AH$3,0)-1),MATCH(AD$2&\" Score\",'C. PoC Adj Factor Scoring'!$E$4:$J$4,0),TRUE)","v":1},{"$f":"VLOOKUP(OFFSET($B:$B,,MATCH(AE$4,$B$4:$F$4,0)-1),OFFSET('C. PoC Adj Factor Scoring'!$E$5:$J$282,,MATCH(AE$4,'C. PoC Adj Factor Scoring'!$E$3:$AH$3,0)-1),MATCH(AE$2&\" Score\",'C. PoC Adj Factor Scoring'!$E$4:$J$4,0),TRUE)","v":1}]
[{"$f":"'A. Population Info'!A244","v":1000362022},{"$f":"'A. Population Info'!L244","v":"OIL"},{"$f":"'A. Population Info'!M244","v":0},{"$f":"'A. Population Info'!N244","v":0},{"$f":"'A. Population Info'!O244","v":0},{"$f":"'A. Population Info'!P244","v":0},{"$f":"VLOOKUP(OFFSET($B:$B,,MATCH(G$4,$B$4:$F$4,0)-1),OFFSET('C. PoC Adj Factor Scoring'!$E$5:$J$282,,MATCH(G$4,'C. PoC Adj Factor Scoring'!$E$3:$AH$3,0)-1),MATCH(G$2&\" Score\",'C. PoC Adj Factor Scoring'!$E$4:$J$4,0),TRUE)","v":4},{"$f":"VLOOKUP(OFFSET($B:$B,,MATCH(H$4,$B$4:$F$4,0)-1),OFFSET('C. PoC Adj Factor Scoring'!$E$5:$J$282,,MATCH(H$4,'C. PoC Adj Factor Scoring'!$E$3:$AH$3,0)-1),MATCH(H$2&\" Score\",'C. PoC Adj Factor Scoring'!$E$4:$J$4,0),TRUE)","v":1},{"$f":"VLOOKUP(OFFSET($B:$B,,MATCH(I$4,$B$4:$F$4,0)-1),OFFSET('C. PoC Adj Factor Scoring'!$E$5:$J$282,,MATCH(I$4,'C. PoC Adj Factor Scoring'!$E$3:$AH$3,0)-1),MATCH(I$2&\" Score\",'C. PoC Adj Factor Scoring'!$E$4:$J$4,0),TRUE)","v":1},{"$f":"VLOOKUP(OFFSET($B:$B,,MATCH(J$4,$B$4:$F$4,0)-1),OFFSET('C. PoC Adj Factor Scoring'!$E$5:$J$282,,MATCH(J$4,'C. PoC Adj Factor Scoring'!$E$3:$AH$3,0)-1),MATCH(J$2&\" Score\",'C. PoC Adj Factor Scoring'!$E$4:$J$4,0),TRUE)","v":1},{"$f":"VLOOKUP(OFFSET($B:$B,,MATCH(K$4,$B$4:$F$4,0)-1),OFFSET('C. PoC Adj Factor Scoring'!$E$5:$J$282,,MATCH(K$4,'C. PoC Adj Factor Scoring'!$E$3:$AH$3,0)-1),MATCH(K$2&\" Score\",'C. PoC Adj Factor Scoring'!$E$4:$J$4,0),TRUE)","v":1},{"$f":"VLOOKUP(OFFSET($B:$B,,MATCH(L$4,$B$4:$F$4,0)-1),OFFSET('C. PoC Adj Factor Scoring'!$E$5:$J$282,,MATCH(L$4,'C. PoC Adj Factor Scoring'!$E$3:$AH$3,0)-1),MATCH(L$2&\" Score\",'C. PoC Adj Factor Scoring'!$E$4:$J$4,0),TRUE)","v":1},{"$f":"VLOOKUP(OFFSET($B:$B,,MATCH(M$4,$B$4:$F$4,0)-1),OFFSET('C. PoC Adj Factor Scoring'!$E$5:$J$282,,MATCH(M$4,'C. PoC Adj Factor Scoring'!$E$3:$AH$3,0)-1),MATCH(M$2&\" Score\",'C. PoC Adj Factor Scoring'!$E$4:$J$4,0),TRUE)","v":1},{"$f":"VLOOKUP(OFFSET($B:$B,,MATCH(N$4,$B$4:$F$4,0)-1),OFFSET('C. PoC Adj Factor Scoring'!$E$5:$J$282,,MATCH(N$4,'C. PoC Adj Factor Scoring'!$E$3:$AH$3,0)-1),MATCH(N$2&\" Score\",'C. PoC Adj Factor Scoring'!$E$4:$J$4,0),TRUE)","v":1},{"$f":"VLOOKUP(OFFSET($B:$B,,MATCH(O$4,$B$4:$F$4,0)-1),OFFSET('C. PoC Adj Factor Scoring'!$E$5:$J$282,,MATCH(O$4,'C. PoC Adj Factor Scoring'!$E$3:$AH$3,0)-1),MATCH(O$2&\" Score\",'C. PoC Adj Factor Scoring'!$E$4:$J$4,0),TRUE)","v":1},{"$f":"VLOOKUP(OFFSET($B:$B,,MATCH(P$4,$B$4:$F$4,0)-1),OFFSET('C. PoC Adj Factor Scoring'!$E$5:$J$282,,MATCH(P$4,'C. PoC Adj Factor Scoring'!$E$3:$AH$3,0)-1),MATCH(P$2&\" Score\",'C. PoC Adj Factor Scoring'!$E$4:$J$4,0),TRUE)","v":1},{"$f":"VLOOKUP(OFFSET($B:$B,,MATCH(Q$4,$B$4:$F$4,0)-1),OFFSET('C. PoC Adj Factor Scoring'!$E$5:$J$282,,MATCH(Q$4,'C. PoC Adj Factor Scoring'!$E$3:$AH$3,0)-1),MATCH(Q$2&\" Score\",'C. PoC Adj Factor Scoring'!$E$4:$J$4,0),TRUE)","v":1},{"$f":"VLOOKUP(OFFSET($B:$B,,MATCH(R$4,$B$4:$F$4,0)-1),OFFSET('C. PoC Adj Factor Scoring'!$E$5:$J$282,,MATCH(R$4,'C. PoC Adj Factor Scoring'!$E$3:$AH$3,0)-1),MATCH(R$2&\" Score\",'C. PoC Adj Factor Scoring'!$E$4:$J$4,0),TRUE)","v":1},{"$f":"VLOOKUP(OFFSET($B:$B,,MATCH(S$4,$B$4:$F$4,0)-1),OFFSET('C. PoC Adj Factor Scoring'!$E$5:$J$282,,MATCH(S$4,'C. PoC Adj Factor Scoring'!$E$3:$AH$3,0)-1),MATCH(S$2&\" Score\",'C. PoC Adj Factor Scoring'!$E$4:$J$4,0),TRUE)","v":1},{"$f":"VLOOKUP(OFFSET($B:$B,,MATCH(T$4,$B$4:$F$4,0)-1),OFFSET('C. PoC Adj Factor Scoring'!$E$5:$J$282,,MATCH(T$4,'C. PoC Adj Factor Scoring'!$E$3:$AH$3,0)-1),MATCH(T$2&\" Score\",'C. PoC Adj Factor Scoring'!$E$4:$J$4,0),TRUE)","v":1},{"$f":"VLOOKUP(OFFSET($B:$B,,MATCH(U$4,$B$4:$F$4,0)-1),OFFSET('C. PoC Adj Factor Scoring'!$E$5:$J$282,,MATCH(U$4,'C. PoC Adj Factor Scoring'!$E$3:$AH$3,0)-1),MATCH(U$2&\" Score\",'C. PoC Adj Factor Scoring'!$E$4:$J$4,0),TRUE)","v":1},{"$f":"VLOOKUP(OFFSET($B:$B,,MATCH(V$4,$B$4:$F$4,0)-1),OFFSET('C. PoC Adj Factor Scoring'!$E$5:$J$282,,MATCH(V$4,'C. PoC Adj Factor Scoring'!$E$3:$AH$3,0)-1),MATCH(V$2&\" Score\",'C. PoC Adj Factor Scoring'!$E$4:$J$4,0),TRUE)","v":1},{"$f":"VLOOKUP(OFFSET($B:$B,,MATCH(W$4,$B$4:$F$4,0)-1),OFFSET('C. PoC Adj Factor Scoring'!$E$5:$J$282,,MATCH(W$4,'C. PoC Adj Factor Scoring'!$E$3:$AH$3,0)-1),MATCH(W$2&\" Score\",'C. PoC Adj Factor Scoring'!$E$4:$J$4,0),TRUE)","v":1},{"$f":"VLOOKUP(OFFSET($B:$B,,MATCH(X$4,$B$4:$F$4,0)-1),OFFSET('C. PoC Adj Factor Scoring'!$E$5:$J$282,,MATCH(X$4,'C. PoC Adj Factor Scoring'!$E$3:$AH$3,0)-1),MATCH(X$2&\" Score\",'C. PoC Adj Factor Scoring'!$E$4:$J$4,0),TRUE)","v":1},{"$f":"VLOOKUP(OFFSET($B:$B,,MATCH(Y$4,$B$4:$F$4,0)-1),OFFSET('C. PoC Adj Factor Scoring'!$E$5:$J$282,,MATCH(Y$4,'C. PoC Adj Factor Scoring'!$E$3:$AH$3,0)-1),MATCH(Y$2&\" Score\",'C. PoC Adj Factor Scoring'!$E$4:$J$4,0),TRUE)","v":1},{"$f":"VLOOKUP(OFFSET($B:$B,,MATCH(Z$4,$B$4:$F$4,0)-1),OFFSET('C. PoC Adj Factor Scoring'!$E$5:$J$282,,MATCH(Z$4,'C. PoC Adj Factor Scoring'!$E$3:$AH$3,0)-1),MATCH(Z$2&\" Score\",'C. PoC Adj Factor Scoring'!$E$4:$J$4,0),TRUE)","v":1},{"$f":"VLOOKUP(OFFSET($B:$B,,MATCH(AA$4,$B$4:$F$4,0)-1),OFFSET('C. PoC Adj Factor Scoring'!$E$5:$J$282,,MATCH(AA$4,'C. PoC Adj Factor Scoring'!$E$3:$AH$3,0)-1),MATCH(AA$2&\" Score\",'C. PoC Adj Factor Scoring'!$E$4:$J$4,0),TRUE)","v":3},{"$f":"VLOOKUP(OFFSET($B:$B,,MATCH(AB$4,$B$4:$F$4,0)-1),OFFSET('C. PoC Adj Factor Scoring'!$E$5:$J$282,,MATCH(AB$4,'C. PoC Adj Factor Scoring'!$E$3:$AH$3,0)-1),MATCH(AB$2&\" Score\",'C. PoC Adj Factor Scoring'!$E$4:$J$4,0),TRUE)","v":1},{"$f":"VLOOKUP(OFFSET($B:$B,,MATCH(AC$4,$B$4:$F$4,0)-1),OFFSET('C. PoC Adj Factor Scoring'!$E$5:$J$282,,MATCH(AC$4,'C. PoC Adj Factor Scoring'!$E$3:$AH$3,0)-1),MATCH(AC$2&\" Score\",'C. PoC Adj Factor Scoring'!$E$4:$J$4,0),TRUE)","v":1},{"$f":"VLOOKUP(OFFSET($B:$B,,MATCH(AD$4,$B$4:$F$4,0)-1),OFFSET('C. PoC Adj Factor Scoring'!$E$5:$J$282,,MATCH(AD$4,'C. PoC Adj Factor Scoring'!$E$3:$AH$3,0)-1),MATCH(AD$2&\" Score\",'C. PoC Adj Factor Scoring'!$E$4:$J$4,0),TRUE)","v":1},{"$f":"VLOOKUP(OFFSET($B:$B,,MATCH(AE$4,$B$4:$F$4,0)-1),OFFSET('C. PoC Adj Factor Scoring'!$E$5:$J$282,,MATCH(AE$4,'C. PoC Adj Factor Scoring'!$E$3:$AH$3,0)-1),MATCH(AE$2&\" Score\",'C. PoC Adj Factor Scoring'!$E$4:$J$4,0),TRUE)","v":1}]
[{"$f":"'A. Population Info'!A245","v":1000362081},{"$f":"'A. Population Info'!L245","v":"OIL"},{"$f":"'A. Population Info'!M245","v":0},{"$f":"'A. Population Info'!N245","v":0},{"$f":"'A. Population Info'!O245","v":0},{"$f":"'A. Population Info'!P245","v":0},{"$f":"VLOOKUP(OFFSET($B:$B,,MATCH(G$4,$B$4:$F$4,0)-1),OFFSET('C. PoC Adj Factor Scoring'!$E$5:$J$282,,MATCH(G$4,'C. PoC Adj Factor Scoring'!$E$3:$AH$3,0)-1),MATCH(G$2&\" Score\",'C. PoC Adj Factor Scoring'!$E$4:$J$4,0),TRUE)","v":4},{"$f":"VLOOKUP(OFFSET($B:$B,,MATCH(H$4,$B$4:$F$4,0)-1),OFFSET('C. PoC Adj Factor Scoring'!$E$5:$J$282,,MATCH(H$4,'C. PoC Adj Factor Scoring'!$E$3:$AH$3,0)-1),MATCH(H$2&\" Score\",'C. PoC Adj Factor Scoring'!$E$4:$J$4,0),TRUE)","v":1},{"$f":"VLOOKUP(OFFSET($B:$B,,MATCH(I$4,$B$4:$F$4,0)-1),OFFSET('C. PoC Adj Factor Scoring'!$E$5:$J$282,,MATCH(I$4,'C. PoC Adj Factor Scoring'!$E$3:$AH$3,0)-1),MATCH(I$2&\" Score\",'C. PoC Adj Factor Scoring'!$E$4:$J$4,0),TRUE)","v":1},{"$f":"VLOOKUP(OFFSET($B:$B,,MATCH(J$4,$B$4:$F$4,0)-1),OFFSET('C. PoC Adj Factor Scoring'!$E$5:$J$282,,MATCH(J$4,'C. PoC Adj Factor Scoring'!$E$3:$AH$3,0)-1),MATCH(J$2&\" Score\",'C. PoC Adj Factor Scoring'!$E$4:$J$4,0),TRUE)","v":1},{"$f":"VLOOKUP(OFFSET($B:$B,,MATCH(K$4,$B$4:$F$4,0)-1),OFFSET('C. PoC Adj Factor Scoring'!$E$5:$J$282,,MATCH(K$4,'C. PoC Adj Factor Scoring'!$E$3:$AH$3,0)-1),MATCH(K$2&\" Score\",'C. PoC Adj Factor Scoring'!$E$4:$J$4,0),TRUE)","v":1},{"$f":"VLOOKUP(OFFSET($B:$B,,MATCH(L$4,$B$4:$F$4,0)-1),OFFSET('C. PoC Adj Factor Scoring'!$E$5:$J$282,,MATCH(L$4,'C. PoC Adj Factor Scoring'!$E$3:$AH$3,0)-1),MATCH(L$2&\" Score\",'C. PoC Adj Factor Scoring'!$E$4:$J$4,0),TRUE)","v":1},{"$f":"VLOOKUP(OFFSET($B:$B,,MATCH(M$4,$B$4:$F$4,0)-1),OFFSET('C. PoC Adj Factor Scoring'!$E$5:$J$282,,MATCH(M$4,'C. PoC Adj Factor Scoring'!$E$3:$AH$3,0)-1),MATCH(M$2&\" Score\",'C. PoC Adj Factor Scoring'!$E$4:$J$4,0),TRUE)","v":1},{"$f":"VLOOKUP(OFFSET($B:$B,,MATCH(N$4,$B$4:$F$4,0)-1),OFFSET('C. PoC Adj Factor Scoring'!$E$5:$J$282,,MATCH(N$4,'C. PoC Adj Factor Scoring'!$E$3:$AH$3,0)-1),MATCH(N$2&\" Score\",'C. PoC Adj Factor Scoring'!$E$4:$J$4,0),TRUE)","v":1},{"$f":"VLOOKUP(OFFSET($B:$B,,MATCH(O$4,$B$4:$F$4,0)-1),OFFSET('C. PoC Adj Factor Scoring'!$E$5:$J$282,,MATCH(O$4,'C. PoC Adj Factor Scoring'!$E$3:$AH$3,0)-1),MATCH(O$2&\" Score\",'C. PoC Adj Factor Scoring'!$E$4:$J$4,0),TRUE)","v":1},{"$f":"VLOOKUP(OFFSET($B:$B,,MATCH(P$4,$B$4:$F$4,0)-1),OFFSET('C. PoC Adj Factor Scoring'!$E$5:$J$282,,MATCH(P$4,'C. PoC Adj Factor Scoring'!$E$3:$AH$3,0)-1),MATCH(P$2&\" Score\",'C. PoC Adj Factor Scoring'!$E$4:$J$4,0),TRUE)","v":1},{"$f":"VLOOKUP(OFFSET($B:$B,,MATCH(Q$4,$B$4:$F$4,0)-1),OFFSET('C. PoC Adj Factor Scoring'!$E$5:$J$282,,MATCH(Q$4,'C. PoC Adj Factor Scoring'!$E$3:$AH$3,0)-1),MATCH(Q$2&\" Score\",'C. PoC Adj Factor Scoring'!$E$4:$J$4,0),TRUE)","v":1},{"$f":"VLOOKUP(OFFSET($B:$B,,MATCH(R$4,$B$4:$F$4,0)-1),OFFSET('C. PoC Adj Factor Scoring'!$E$5:$J$282,,MATCH(R$4,'C. PoC Adj Factor Scoring'!$E$3:$AH$3,0)-1),MATCH(R$2&\" Score\",'C. PoC Adj Factor Scoring'!$E$4:$J$4,0),TRUE)","v":1},{"$f":"VLOOKUP(OFFSET($B:$B,,MATCH(S$4,$B$4:$F$4,0)-1),OFFSET('C. PoC Adj Factor Scoring'!$E$5:$J$282,,MATCH(S$4,'C. PoC Adj Factor Scoring'!$E$3:$AH$3,0)-1),MATCH(S$2&\" Score\",'C. PoC Adj Factor Scoring'!$E$4:$J$4,0),TRUE)","v":1},{"$f":"VLOOKUP(OFFSET($B:$B,,MATCH(T$4,$B$4:$F$4,0)-1),OFFSET('C. PoC Adj Factor Scoring'!$E$5:$J$282,,MATCH(T$4,'C. PoC Adj Factor Scoring'!$E$3:$AH$3,0)-1),MATCH(T$2&\" Score\",'C. PoC Adj Factor Scoring'!$E$4:$J$4,0),TRUE)","v":1},{"$f":"VLOOKUP(OFFSET($B:$B,,MATCH(U$4,$B$4:$F$4,0)-1),OFFSET('C. PoC Adj Factor Scoring'!$E$5:$J$282,,MATCH(U$4,'C. PoC Adj Factor Scoring'!$E$3:$AH$3,0)-1),MATCH(U$2&\" Score\",'C. PoC Adj Factor Scoring'!$E$4:$J$4,0),TRUE)","v":1},{"$f":"VLOOKUP(OFFSET($B:$B,,MATCH(V$4,$B$4:$F$4,0)-1),OFFSET('C. PoC Adj Factor Scoring'!$E$5:$J$282,,MATCH(V$4,'C. PoC Adj Factor Scoring'!$E$3:$AH$3,0)-1),MATCH(V$2&\" Score\",'C. PoC Adj Factor Scoring'!$E$4:$J$4,0),TRUE)","v":1},{"$f":"VLOOKUP(OFFSET($B:$B,,MATCH(W$4,$B$4:$F$4,0)-1),OFFSET('C. PoC Adj Factor Scoring'!$E$5:$J$282,,MATCH(W$4,'C. PoC Adj Factor Scoring'!$E$3:$AH$3,0)-1),MATCH(W$2&\" Score\",'C. PoC Adj Factor Scoring'!$E$4:$J$4,0),TRUE)","v":1},{"$f":"VLOOKUP(OFFSET($B:$B,,MATCH(X$4,$B$4:$F$4,0)-1),OFFSET('C. PoC Adj Factor Scoring'!$E$5:$J$282,,MATCH(X$4,'C. PoC Adj Factor Scoring'!$E$3:$AH$3,0)-1),MATCH(X$2&\" Score\",'C. PoC Adj Factor Scoring'!$E$4:$J$4,0),TRUE)","v":1},{"$f":"VLOOKUP(OFFSET($B:$B,,MATCH(Y$4,$B$4:$F$4,0)-1),OFFSET('C. PoC Adj Factor Scoring'!$E$5:$J$282,,MATCH(Y$4,'C. PoC Adj Factor Scoring'!$E$3:$AH$3,0)-1),MATCH(Y$2&\" Score\",'C. PoC Adj Factor Scoring'!$E$4:$J$4,0),TRUE)","v":1},{"$f":"VLOOKUP(OFFSET($B:$B,,MATCH(Z$4,$B$4:$F$4,0)-1),OFFSET('C. PoC Adj Factor Scoring'!$E$5:$J$282,,MATCH(Z$4,'C. PoC Adj Factor Scoring'!$E$3:$AH$3,0)-1),MATCH(Z$2&\" Score\",'C. PoC Adj Factor Scoring'!$E$4:$J$4,0),TRUE)","v":1},{"$f":"VLOOKUP(OFFSET($B:$B,,MATCH(AA$4,$B$4:$F$4,0)-1),OFFSET('C. PoC Adj Factor Scoring'!$E$5:$J$282,,MATCH(AA$4,'C. PoC Adj Factor Scoring'!$E$3:$AH$3,0)-1),MATCH(AA$2&\" Score\",'C. PoC Adj Factor Scoring'!$E$4:$J$4,0),TRUE)","v":3},{"$f":"VLOOKUP(OFFSET($B:$B,,MATCH(AB$4,$B$4:$F$4,0)-1),OFFSET('C. PoC Adj Factor Scoring'!$E$5:$J$282,,MATCH(AB$4,'C. PoC Adj Factor Scoring'!$E$3:$AH$3,0)-1),MATCH(AB$2&\" Score\",'C. PoC Adj Factor Scoring'!$E$4:$J$4,0),TRUE)","v":1},{"$f":"VLOOKUP(OFFSET($B:$B,,MATCH(AC$4,$B$4:$F$4,0)-1),OFFSET('C. PoC Adj Factor Scoring'!$E$5:$J$282,,MATCH(AC$4,'C. PoC Adj Factor Scoring'!$E$3:$AH$3,0)-1),MATCH(AC$2&\" Score\",'C. PoC Adj Factor Scoring'!$E$4:$J$4,0),TRUE)","v":1},{"$f":"VLOOKUP(OFFSET($B:$B,,MATCH(AD$4,$B$4:$F$4,0)-1),OFFSET('C. PoC Adj Factor Scoring'!$E$5:$J$282,,MATCH(AD$4,'C. PoC Adj Factor Scoring'!$E$3:$AH$3,0)-1),MATCH(AD$2&\" Score\",'C. PoC Adj Factor Scoring'!$E$4:$J$4,0),TRUE)","v":1},{"$f":"VLOOKUP(OFFSET($B:$B,,MATCH(AE$4,$B$4:$F$4,0)-1),OFFSET('C. PoC Adj Factor Scoring'!$E$5:$J$282,,MATCH(AE$4,'C. PoC Adj Factor Scoring'!$E$3:$AH$3,0)-1),MATCH(AE$2&\" Score\",'C. PoC Adj Factor Scoring'!$E$4:$J$4,0),TRUE)","v":1}]
[{"$f":"'A. Population Info'!A246","v":1000362111},{"$f":"'A. Population Info'!L246","v":"OIL"},{"$f":"'A. Population Info'!M246","v":0},{"$f":"'A. Population Info'!N246","v":0},{"$f":"'A. Population Info'!O246","v":0},{"$f":"'A. Population Info'!P246","v":0},{"$f":"VLOOKUP(OFFSET($B:$B,,MATCH(G$4,$B$4:$F$4,0)-1),OFFSET('C. PoC Adj Factor Scoring'!$E$5:$J$282,,MATCH(G$4,'C. PoC Adj Factor Scoring'!$E$3:$AH$3,0)-1),MATCH(G$2&\" Score\",'C. PoC Adj Factor Scoring'!$E$4:$J$4,0),TRUE)","v":4},{"$f":"VLOOKUP(OFFSET($B:$B,,MATCH(H$4,$B$4:$F$4,0)-1),OFFSET('C. PoC Adj Factor Scoring'!$E$5:$J$282,,MATCH(H$4,'C. PoC Adj Factor Scoring'!$E$3:$AH$3,0)-1),MATCH(H$2&\" Score\",'C. PoC Adj Factor Scoring'!$E$4:$J$4,0),TRUE)","v":1},{"$f":"VLOOKUP(OFFSET($B:$B,,MATCH(I$4,$B$4:$F$4,0)-1),OFFSET('C. PoC Adj Factor Scoring'!$E$5:$J$282,,MATCH(I$4,'C. PoC Adj Factor Scoring'!$E$3:$AH$3,0)-1),MATCH(I$2&\" Score\",'C. PoC Adj Factor Scoring'!$E$4:$J$4,0),TRUE)","v":1},{"$f":"VLOOKUP(OFFSET($B:$B,,MATCH(J$4,$B$4:$F$4,0)-1),OFFSET('C. PoC Adj Factor Scoring'!$E$5:$J$282,,MATCH(J$4,'C. PoC Adj Factor Scoring'!$E$3:$AH$3,0)-1),MATCH(J$2&\" Score\",'C. PoC Adj Factor Scoring'!$E$4:$J$4,0),TRUE)","v":1},{"$f":"VLOOKUP(OFFSET($B:$B,,MATCH(K$4,$B$4:$F$4,0)-1),OFFSET('C. PoC Adj Factor Scoring'!$E$5:$J$282,,MATCH(K$4,'C. PoC Adj Factor Scoring'!$E$3:$AH$3,0)-1),MATCH(K$2&\" Score\",'C. PoC Adj Factor Scoring'!$E$4:$J$4,0),TRUE)","v":1},{"$f":"VLOOKUP(OFFSET($B:$B,,MATCH(L$4,$B$4:$F$4,0)-1),OFFSET('C. PoC Adj Factor Scoring'!$E$5:$J$282,,MATCH(L$4,'C. PoC Adj Factor Scoring'!$E$3:$AH$3,0)-1),MATCH(L$2&\" Score\",'C. PoC Adj Factor Scoring'!$E$4:$J$4,0),TRUE)","v":1},{"$f":"VLOOKUP(OFFSET($B:$B,,MATCH(M$4,$B$4:$F$4,0)-1),OFFSET('C. PoC Adj Factor Scoring'!$E$5:$J$282,,MATCH(M$4,'C. PoC Adj Factor Scoring'!$E$3:$AH$3,0)-1),MATCH(M$2&\" Score\",'C. PoC Adj Factor Scoring'!$E$4:$J$4,0),TRUE)","v":1},{"$f":"VLOOKUP(OFFSET($B:$B,,MATCH(N$4,$B$4:$F$4,0)-1),OFFSET('C. PoC Adj Factor Scoring'!$E$5:$J$282,,MATCH(N$4,'C. PoC Adj Factor Scoring'!$E$3:$AH$3,0)-1),MATCH(N$2&\" Score\",'C. PoC Adj Factor Scoring'!$E$4:$J$4,0),TRUE)","v":1},{"$f":"VLOOKUP(OFFSET($B:$B,,MATCH(O$4,$B$4:$F$4,0)-1),OFFSET('C. PoC Adj Factor Scoring'!$E$5:$J$282,,MATCH(O$4,'C. PoC Adj Factor Scoring'!$E$3:$AH$3,0)-1),MATCH(O$2&\" Score\",'C. PoC Adj Factor Scoring'!$E$4:$J$4,0),TRUE)","v":1},{"$f":"VLOOKUP(OFFSET($B:$B,,MATCH(P$4,$B$4:$F$4,0)-1),OFFSET('C. PoC Adj Factor Scoring'!$E$5:$J$282,,MATCH(P$4,'C. PoC Adj Factor Scoring'!$E$3:$AH$3,0)-1),MATCH(P$2&\" Score\",'C. PoC Adj Factor Scoring'!$E$4:$J$4,0),TRUE)","v":1},{"$f":"VLOOKUP(OFFSET($B:$B,,MATCH(Q$4,$B$4:$F$4,0)-1),OFFSET('C. PoC Adj Factor Scoring'!$E$5:$J$282,,MATCH(Q$4,'C. PoC Adj Factor Scoring'!$E$3:$AH$3,0)-1),MATCH(Q$2&\" Score\",'C. PoC Adj Factor Scoring'!$E$4:$J$4,0),TRUE)","v":1},{"$f":"VLOOKUP(OFFSET($B:$B,,MATCH(R$4,$B$4:$F$4,0)-1),OFFSET('C. PoC Adj Factor Scoring'!$E$5:$J$282,,MATCH(R$4,'C. PoC Adj Factor Scoring'!$E$3:$AH$3,0)-1),MATCH(R$2&\" Score\",'C. PoC Adj Factor Scoring'!$E$4:$J$4,0),TRUE)","v":1},{"$f":"VLOOKUP(OFFSET($B:$B,,MATCH(S$4,$B$4:$F$4,0)-1),OFFSET('C. PoC Adj Factor Scoring'!$E$5:$J$282,,MATCH(S$4,'C. PoC Adj Factor Scoring'!$E$3:$AH$3,0)-1),MATCH(S$2&\" Score\",'C. PoC Adj Factor Scoring'!$E$4:$J$4,0),TRUE)","v":1},{"$f":"VLOOKUP(OFFSET($B:$B,,MATCH(T$4,$B$4:$F$4,0)-1),OFFSET('C. PoC Adj Factor Scoring'!$E$5:$J$282,,MATCH(T$4,'C. PoC Adj Factor Scoring'!$E$3:$AH$3,0)-1),MATCH(T$2&\" Score\",'C. PoC Adj Factor Scoring'!$E$4:$J$4,0),TRUE)","v":1},{"$f":"VLOOKUP(OFFSET($B:$B,,MATCH(U$4,$B$4:$F$4,0)-1),OFFSET('C. PoC Adj Factor Scoring'!$E$5:$J$282,,MATCH(U$4,'C. PoC Adj Factor Scoring'!$E$3:$AH$3,0)-1),MATCH(U$2&\" Score\",'C. PoC Adj Factor Scoring'!$E$4:$J$4,0),TRUE)","v":1},{"$f":"VLOOKUP(OFFSET($B:$B,,MATCH(V$4,$B$4:$F$4,0)-1),OFFSET('C. PoC Adj Factor Scoring'!$E$5:$J$282,,MATCH(V$4,'C. PoC Adj Factor Scoring'!$E$3:$AH$3,0)-1),MATCH(V$2&\" Score\",'C. PoC Adj Factor Scoring'!$E$4:$J$4,0),TRUE)","v":1},{"$f":"VLOOKUP(OFFSET($B:$B,,MATCH(W$4,$B$4:$F$4,0)-1),OFFSET('C. PoC Adj Factor Scoring'!$E$5:$J$282,,MATCH(W$4,'C. PoC Adj Factor Scoring'!$E$3:$AH$3,0)-1),MATCH(W$2&\" Score\",'C. PoC Adj Factor Scoring'!$E$4:$J$4,0),TRUE)","v":1},{"$f":"VLOOKUP(OFFSET($B:$B,,MATCH(X$4,$B$4:$F$4,0)-1),OFFSET('C. PoC Adj Factor Scoring'!$E$5:$J$282,,MATCH(X$4,'C. PoC Adj Factor Scoring'!$E$3:$AH$3,0)-1),MATCH(X$2&\" Score\",'C. PoC Adj Factor Scoring'!$E$4:$J$4,0),TRUE)","v":1},{"$f":"VLOOKUP(OFFSET($B:$B,,MATCH(Y$4,$B$4:$F$4,0)-1),OFFSET('C. PoC Adj Factor Scoring'!$E$5:$J$282,,MATCH(Y$4,'C. PoC Adj Factor Scoring'!$E$3:$AH$3,0)-1),MATCH(Y$2&\" Score\",'C. PoC Adj Factor Scoring'!$E$4:$J$4,0),TRUE)","v":1},{"$f":"VLOOKUP(OFFSET($B:$B,,MATCH(Z$4,$B$4:$F$4,0)-1),OFFSET('C. PoC Adj Factor Scoring'!$E$5:$J$282,,MATCH(Z$4,'C. PoC Adj Factor Scoring'!$E$3:$AH$3,0)-1),MATCH(Z$2&\" Score\",'C. PoC Adj Factor Scoring'!$E$4:$J$4,0),TRUE)","v":1},{"$f":"VLOOKUP(OFFSET($B:$B,,MATCH(AA$4,$B$4:$F$4,0)-1),OFFSET('C. PoC Adj Factor Scoring'!$E$5:$J$282,,MATCH(AA$4,'C. PoC Adj Factor Scoring'!$E$3:$AH$3,0)-1),MATCH(AA$2&\" Score\",'C. PoC Adj Factor Scoring'!$E$4:$J$4,0),TRUE)","v":3},{"$f":"VLOOKUP(OFFSET($B:$B,,MATCH(AB$4,$B$4:$F$4,0)-1),OFFSET('C. PoC Adj Factor Scoring'!$E$5:$J$282,,MATCH(AB$4,'C. PoC Adj Factor Scoring'!$E$3:$AH$3,0)-1),MATCH(AB$2&\" Score\",'C. PoC Adj Factor Scoring'!$E$4:$J$4,0),TRUE)","v":1},{"$f":"VLOOKUP(OFFSET($B:$B,,MATCH(AC$4,$B$4:$F$4,0)-1),OFFSET('C. PoC Adj Factor Scoring'!$E$5:$J$282,,MATCH(AC$4,'C. PoC Adj Factor Scoring'!$E$3:$AH$3,0)-1),MATCH(AC$2&\" Score\",'C. PoC Adj Factor Scoring'!$E$4:$J$4,0),TRUE)","v":1},{"$f":"VLOOKUP(OFFSET($B:$B,,MATCH(AD$4,$B$4:$F$4,0)-1),OFFSET('C. PoC Adj Factor Scoring'!$E$5:$J$282,,MATCH(AD$4,'C. PoC Adj Factor Scoring'!$E$3:$AH$3,0)-1),MATCH(AD$2&\" Score\",'C. PoC Adj Factor Scoring'!$E$4:$J$4,0),TRUE)","v":1},{"$f":"VLOOKUP(OFFSET($B:$B,,MATCH(AE$4,$B$4:$F$4,0)-1),OFFSET('C. PoC Adj Factor Scoring'!$E$5:$J$282,,MATCH(AE$4,'C. PoC Adj Factor Scoring'!$E$3:$AH$3,0)-1),MATCH(AE$2&\" Score\",'C. PoC Adj Factor Scoring'!$E$4:$J$4,0),TRUE)","v":1}]
[{"$f":"'A. Population Info'!A247","v":1000362141},{"$f":"'A. Population Info'!L247","v":"OIL"},{"$f":"'A. Population Info'!M247","v":0},{"$f":"'A. Population Info'!N247","v":0},{"$f":"'A. Population Info'!O247","v":0},{"$f":"'A. Population Info'!P247","v":0},{"$f":"VLOOKUP(OFFSET($B:$B,,MATCH(G$4,$B$4:$F$4,0)-1),OFFSET('C. PoC Adj Factor Scoring'!$E$5:$J$282,,MATCH(G$4,'C. PoC Adj Factor Scoring'!$E$3:$AH$3,0)-1),MATCH(G$2&\" Score\",'C. PoC Adj Factor Scoring'!$E$4:$J$4,0),TRUE)","v":4},{"$f":"VLOOKUP(OFFSET($B:$B,,MATCH(H$4,$B$4:$F$4,0)-1),OFFSET('C. PoC Adj Factor Scoring'!$E$5:$J$282,,MATCH(H$4,'C. PoC Adj Factor Scoring'!$E$3:$AH$3,0)-1),MATCH(H$2&\" Score\",'C. PoC Adj Factor Scoring'!$E$4:$J$4,0),TRUE)","v":1},{"$f":"VLOOKUP(OFFSET($B:$B,,MATCH(I$4,$B$4:$F$4,0)-1),OFFSET('C. PoC Adj Factor Scoring'!$E$5:$J$282,,MATCH(I$4,'C. PoC Adj Factor Scoring'!$E$3:$AH$3,0)-1),MATCH(I$2&\" Score\",'C. PoC Adj Factor Scoring'!$E$4:$J$4,0),TRUE)","v":1},{"$f":"VLOOKUP(OFFSET($B:$B,,MATCH(J$4,$B$4:$F$4,0)-1),OFFSET('C. PoC Adj Factor Scoring'!$E$5:$J$282,,MATCH(J$4,'C. PoC Adj Factor Scoring'!$E$3:$AH$3,0)-1),MATCH(J$2&\" Score\",'C. PoC Adj Factor Scoring'!$E$4:$J$4,0),TRUE)","v":1},{"$f":"VLOOKUP(OFFSET($B:$B,,MATCH(K$4,$B$4:$F$4,0)-1),OFFSET('C. PoC Adj Factor Scoring'!$E$5:$J$282,,MATCH(K$4,'C. PoC Adj Factor Scoring'!$E$3:$AH$3,0)-1),MATCH(K$2&\" Score\",'C. PoC Adj Factor Scoring'!$E$4:$J$4,0),TRUE)","v":1},{"$f":"VLOOKUP(OFFSET($B:$B,,MATCH(L$4,$B$4:$F$4,0)-1),OFFSET('C. PoC Adj Factor Scoring'!$E$5:$J$282,,MATCH(L$4,'C. PoC Adj Factor Scoring'!$E$3:$AH$3,0)-1),MATCH(L$2&\" Score\",'C. PoC Adj Factor Scoring'!$E$4:$J$4,0),TRUE)","v":1},{"$f":"VLOOKUP(OFFSET($B:$B,,MATCH(M$4,$B$4:$F$4,0)-1),OFFSET('C. PoC Adj Factor Scoring'!$E$5:$J$282,,MATCH(M$4,'C. PoC Adj Factor Scoring'!$E$3:$AH$3,0)-1),MATCH(M$2&\" Score\",'C. PoC Adj Factor Scoring'!$E$4:$J$4,0),TRUE)","v":1},{"$f":"VLOOKUP(OFFSET($B:$B,,MATCH(N$4,$B$4:$F$4,0)-1),OFFSET('C. PoC Adj Factor Scoring'!$E$5:$J$282,,MATCH(N$4,'C. PoC Adj Factor Scoring'!$E$3:$AH$3,0)-1),MATCH(N$2&\" Score\",'C. PoC Adj Factor Scoring'!$E$4:$J$4,0),TRUE)","v":1},{"$f":"VLOOKUP(OFFSET($B:$B,,MATCH(O$4,$B$4:$F$4,0)-1),OFFSET('C. PoC Adj Factor Scoring'!$E$5:$J$282,,MATCH(O$4,'C. PoC Adj Factor Scoring'!$E$3:$AH$3,0)-1),MATCH(O$2&\" Score\",'C. PoC Adj Factor Scoring'!$E$4:$J$4,0),TRUE)","v":1},{"$f":"VLOOKUP(OFFSET($B:$B,,MATCH(P$4,$B$4:$F$4,0)-1),OFFSET('C. PoC Adj Factor Scoring'!$E$5:$J$282,,MATCH(P$4,'C. PoC Adj Factor Scoring'!$E$3:$AH$3,0)-1),MATCH(P$2&\" Score\",'C. PoC Adj Factor Scoring'!$E$4:$J$4,0),TRUE)","v":1},{"$f":"VLOOKUP(OFFSET($B:$B,,MATCH(Q$4,$B$4:$F$4,0)-1),OFFSET('C. PoC Adj Factor Scoring'!$E$5:$J$282,,MATCH(Q$4,'C. PoC Adj Factor Scoring'!$E$3:$AH$3,0)-1),MATCH(Q$2&\" Score\",'C. PoC Adj Factor Scoring'!$E$4:$J$4,0),TRUE)","v":1},{"$f":"VLOOKUP(OFFSET($B:$B,,MATCH(R$4,$B$4:$F$4,0)-1),OFFSET('C. PoC Adj Factor Scoring'!$E$5:$J$282,,MATCH(R$4,'C. PoC Adj Factor Scoring'!$E$3:$AH$3,0)-1),MATCH(R$2&\" Score\",'C. PoC Adj Factor Scoring'!$E$4:$J$4,0),TRUE)","v":1},{"$f":"VLOOKUP(OFFSET($B:$B,,MATCH(S$4,$B$4:$F$4,0)-1),OFFSET('C. PoC Adj Factor Scoring'!$E$5:$J$282,,MATCH(S$4,'C. PoC Adj Factor Scoring'!$E$3:$AH$3,0)-1),MATCH(S$2&\" Score\",'C. PoC Adj Factor Scoring'!$E$4:$J$4,0),TRUE)","v":1},{"$f":"VLOOKUP(OFFSET($B:$B,,MATCH(T$4,$B$4:$F$4,0)-1),OFFSET('C. PoC Adj Factor Scoring'!$E$5:$J$282,,MATCH(T$4,'C. PoC Adj Factor Scoring'!$E$3:$AH$3,0)-1),MATCH(T$2&\" Score\",'C. PoC Adj Factor Scoring'!$E$4:$J$4,0),TRUE)","v":1},{"$f":"VLOOKUP(OFFSET($B:$B,,MATCH(U$4,$B$4:$F$4,0)-1),OFFSET('C. PoC Adj Factor Scoring'!$E$5:$J$282,,MATCH(U$4,'C. PoC Adj Factor Scoring'!$E$3:$AH$3,0)-1),MATCH(U$2&\" Score\",'C. PoC Adj Factor Scoring'!$E$4:$J$4,0),TRUE)","v":1},{"$f":"VLOOKUP(OFFSET($B:$B,,MATCH(V$4,$B$4:$F$4,0)-1),OFFSET('C. PoC Adj Factor Scoring'!$E$5:$J$282,,MATCH(V$4,'C. PoC Adj Factor Scoring'!$E$3:$AH$3,0)-1),MATCH(V$2&\" Score\",'C. PoC Adj Factor Scoring'!$E$4:$J$4,0),TRUE)","v":1},{"$f":"VLOOKUP(OFFSET($B:$B,,MATCH(W$4,$B$4:$F$4,0)-1),OFFSET('C. PoC Adj Factor Scoring'!$E$5:$J$282,,MATCH(W$4,'C. PoC Adj Factor Scoring'!$E$3:$AH$3,0)-1),MATCH(W$2&\" Score\",'C. PoC Adj Factor Scoring'!$E$4:$J$4,0),TRUE)","v":1},{"$f":"VLOOKUP(OFFSET($B:$B,,MATCH(X$4,$B$4:$F$4,0)-1),OFFSET('C. PoC Adj Factor Scoring'!$E$5:$J$282,,MATCH(X$4,'C. PoC Adj Factor Scoring'!$E$3:$AH$3,0)-1),MATCH(X$2&\" Score\",'C. PoC Adj Factor Scoring'!$E$4:$J$4,0),TRUE)","v":1},{"$f":"VLOOKUP(OFFSET($B:$B,,MATCH(Y$4,$B$4:$F$4,0)-1),OFFSET('C. PoC Adj Factor Scoring'!$E$5:$J$282,,MATCH(Y$4,'C. PoC Adj Factor Scoring'!$E$3:$AH$3,0)-1),MATCH(Y$2&\" Score\",'C. PoC Adj Factor Scoring'!$E$4:$J$4,0),TRUE)","v":1},{"$f":"VLOOKUP(OFFSET($B:$B,,MATCH(Z$4,$B$4:$F$4,0)-1),OFFSET('C. PoC Adj Factor Scoring'!$E$5:$J$282,,MATCH(Z$4,'C. PoC Adj Factor Scoring'!$E$3:$AH$3,0)-1),MATCH(Z$2&\" Score\",'C. PoC Adj Factor Scoring'!$E$4:$J$4,0),TRUE)","v":1},{"$f":"VLOOKUP(OFFSET($B:$B,,MATCH(AA$4,$B$4:$F$4,0)-1),OFFSET('C. PoC Adj Factor Scoring'!$E$5:$J$282,,MATCH(AA$4,'C. PoC Adj Factor Scoring'!$E$3:$AH$3,0)-1),MATCH(AA$2&\" Score\",'C. PoC Adj Factor Scoring'!$E$4:$J$4,0),TRUE)","v":3},{"$f":"VLOOKUP(OFFSET($B:$B,,MATCH(AB$4,$B$4:$F$4,0)-1),OFFSET('C. PoC Adj Factor Scoring'!$E$5:$J$282,,MATCH(AB$4,'C. PoC Adj Factor Scoring'!$E$3:$AH$3,0)-1),MATCH(AB$2&\" Score\",'C. PoC Adj Factor Scoring'!$E$4:$J$4,0),TRUE)","v":1},{"$f":"VLOOKUP(OFFSET($B:$B,,MATCH(AC$4,$B$4:$F$4,0)-1),OFFSET('C. PoC Adj Factor Scoring'!$E$5:$J$282,,MATCH(AC$4,'C. PoC Adj Factor Scoring'!$E$3:$AH$3,0)-1),MATCH(AC$2&\" Score\",'C. PoC Adj Factor Scoring'!$E$4:$J$4,0),TRUE)","v":1},{"$f":"VLOOKUP(OFFSET($B:$B,,MATCH(AD$4,$B$4:$F$4,0)-1),OFFSET('C. PoC Adj Factor Scoring'!$E$5:$J$282,,MATCH(AD$4,'C. PoC Adj Factor Scoring'!$E$3:$AH$3,0)-1),MATCH(AD$2&\" Score\",'C. PoC Adj Factor Scoring'!$E$4:$J$4,0),TRUE)","v":1},{"$f":"VLOOKUP(OFFSET($B:$B,,MATCH(AE$4,$B$4:$F$4,0)-1),OFFSET('C. PoC Adj Factor Scoring'!$E$5:$J$282,,MATCH(AE$4,'C. PoC Adj Factor Scoring'!$E$3:$AH$3,0)-1),MATCH(AE$2&\" Score\",'C. PoC Adj Factor Scoring'!$E$4:$J$4,0),TRUE)","v":1}]
[{"$f":"'A. Population Info'!A248","v":1000362166},{"$f":"'A. Population Info'!L248","v":"OIL"},{"$f":"'A. Population Info'!M248","v":0},{"$f":"'A. Population Info'!N248","v":0},{"$f":"'A. Population Info'!O248","v":0},{"$f":"'A. Population Info'!P248","v":0},{"$f":"VLOOKUP(OFFSET($B:$B,,MATCH(G$4,$B$4:$F$4,0)-1),OFFSET('C. PoC Adj Factor Scoring'!$E$5:$J$282,,MATCH(G$4,'C. PoC Adj Factor Scoring'!$E$3:$AH$3,0)-1),MATCH(G$2&\" Score\",'C. PoC Adj Factor Scoring'!$E$4:$J$4,0),TRUE)","v":4},{"$f":"VLOOKUP(OFFSET($B:$B,,MATCH(H$4,$B$4:$F$4,0)-1),OFFSET('C. PoC Adj Factor Scoring'!$E$5:$J$282,,MATCH(H$4,'C. PoC Adj Factor Scoring'!$E$3:$AH$3,0)-1),MATCH(H$2&\" Score\",'C. PoC Adj Factor Scoring'!$E$4:$J$4,0),TRUE)","v":1},{"$f":"VLOOKUP(OFFSET($B:$B,,MATCH(I$4,$B$4:$F$4,0)-1),OFFSET('C. PoC Adj Factor Scoring'!$E$5:$J$282,,MATCH(I$4,'C. PoC Adj Factor Scoring'!$E$3:$AH$3,0)-1),MATCH(I$2&\" Score\",'C. PoC Adj Factor Scoring'!$E$4:$J$4,0),TRUE)","v":1},{"$f":"VLOOKUP(OFFSET($B:$B,,MATCH(J$4,$B$4:$F$4,0)-1),OFFSET('C. PoC Adj Factor Scoring'!$E$5:$J$282,,MATCH(J$4,'C. PoC Adj Factor Scoring'!$E$3:$AH$3,0)-1),MATCH(J$2&\" Score\",'C. PoC Adj Factor Scoring'!$E$4:$J$4,0),TRUE)","v":1},{"$f":"VLOOKUP(OFFSET($B:$B,,MATCH(K$4,$B$4:$F$4,0)-1),OFFSET('C. PoC Adj Factor Scoring'!$E$5:$J$282,,MATCH(K$4,'C. PoC Adj Factor Scoring'!$E$3:$AH$3,0)-1),MATCH(K$2&\" Score\",'C. PoC Adj Factor Scoring'!$E$4:$J$4,0),TRUE)","v":1},{"$f":"VLOOKUP(OFFSET($B:$B,,MATCH(L$4,$B$4:$F$4,0)-1),OFFSET('C. PoC Adj Factor Scoring'!$E$5:$J$282,,MATCH(L$4,'C. PoC Adj Factor Scoring'!$E$3:$AH$3,0)-1),MATCH(L$2&\" Score\",'C. PoC Adj Factor Scoring'!$E$4:$J$4,0),TRUE)","v":1},{"$f":"VLOOKUP(OFFSET($B:$B,,MATCH(M$4,$B$4:$F$4,0)-1),OFFSET('C. PoC Adj Factor Scoring'!$E$5:$J$282,,MATCH(M$4,'C. PoC Adj Factor Scoring'!$E$3:$AH$3,0)-1),MATCH(M$2&\" Score\",'C. PoC Adj Factor Scoring'!$E$4:$J$4,0),TRUE)","v":1},{"$f":"VLOOKUP(OFFSET($B:$B,,MATCH(N$4,$B$4:$F$4,0)-1),OFFSET('C. PoC Adj Factor Scoring'!$E$5:$J$282,,MATCH(N$4,'C. PoC Adj Factor Scoring'!$E$3:$AH$3,0)-1),MATCH(N$2&\" Score\",'C. PoC Adj Factor Scoring'!$E$4:$J$4,0),TRUE)","v":1},{"$f":"VLOOKUP(OFFSET($B:$B,,MATCH(O$4,$B$4:$F$4,0)-1),OFFSET('C. PoC Adj Factor Scoring'!$E$5:$J$282,,MATCH(O$4,'C. PoC Adj Factor Scoring'!$E$3:$AH$3,0)-1),MATCH(O$2&\" Score\",'C. PoC Adj Factor Scoring'!$E$4:$J$4,0),TRUE)","v":1},{"$f":"VLOOKUP(OFFSET($B:$B,,MATCH(P$4,$B$4:$F$4,0)-1),OFFSET('C. PoC Adj Factor Scoring'!$E$5:$J$282,,MATCH(P$4,'C. PoC Adj Factor Scoring'!$E$3:$AH$3,0)-1),MATCH(P$2&\" Score\",'C. PoC Adj Factor Scoring'!$E$4:$J$4,0),TRUE)","v":1},{"$f":"VLOOKUP(OFFSET($B:$B,,MATCH(Q$4,$B$4:$F$4,0)-1),OFFSET('C. PoC Adj Factor Scoring'!$E$5:$J$282,,MATCH(Q$4,'C. PoC Adj Factor Scoring'!$E$3:$AH$3,0)-1),MATCH(Q$2&\" Score\",'C. PoC Adj Factor Scoring'!$E$4:$J$4,0),TRUE)","v":1},{"$f":"VLOOKUP(OFFSET($B:$B,,MATCH(R$4,$B$4:$F$4,0)-1),OFFSET('C. PoC Adj Factor Scoring'!$E$5:$J$282,,MATCH(R$4,'C. PoC Adj Factor Scoring'!$E$3:$AH$3,0)-1),MATCH(R$2&\" Score\",'C. PoC Adj Factor Scoring'!$E$4:$J$4,0),TRUE)","v":1},{"$f":"VLOOKUP(OFFSET($B:$B,,MATCH(S$4,$B$4:$F$4,0)-1),OFFSET('C. PoC Adj Factor Scoring'!$E$5:$J$282,,MATCH(S$4,'C. PoC Adj Factor Scoring'!$E$3:$AH$3,0)-1),MATCH(S$2&\" Score\",'C. PoC Adj Factor Scoring'!$E$4:$J$4,0),TRUE)","v":1},{"$f":"VLOOKUP(OFFSET($B:$B,,MATCH(T$4,$B$4:$F$4,0)-1),OFFSET('C. PoC Adj Factor Scoring'!$E$5:$J$282,,MATCH(T$4,'C. PoC Adj Factor Scoring'!$E$3:$AH$3,0)-1),MATCH(T$2&\" Score\",'C. PoC Adj Factor Scoring'!$E$4:$J$4,0),TRUE)","v":1},{"$f":"VLOOKUP(OFFSET($B:$B,,MATCH(U$4,$B$4:$F$4,0)-1),OFFSET('C. PoC Adj Factor Scoring'!$E$5:$J$282,,MATCH(U$4,'C. PoC Adj Factor Scoring'!$E$3:$AH$3,0)-1),MATCH(U$2&\" Score\",'C. PoC Adj Factor Scoring'!$E$4:$J$4,0),TRUE)","v":1},{"$f":"VLOOKUP(OFFSET($B:$B,,MATCH(V$4,$B$4:$F$4,0)-1),OFFSET('C. PoC Adj Factor Scoring'!$E$5:$J$282,,MATCH(V$4,'C. PoC Adj Factor Scoring'!$E$3:$AH$3,0)-1),MATCH(V$2&\" Score\",'C. PoC Adj Factor Scoring'!$E$4:$J$4,0),TRUE)","v":1},{"$f":"VLOOKUP(OFFSET($B:$B,,MATCH(W$4,$B$4:$F$4,0)-1),OFFSET('C. PoC Adj Factor Scoring'!$E$5:$J$282,,MATCH(W$4,'C. PoC Adj Factor Scoring'!$E$3:$AH$3,0)-1),MATCH(W$2&\" Score\",'C. PoC Adj Factor Scoring'!$E$4:$J$4,0),TRUE)","v":1},{"$f":"VLOOKUP(OFFSET($B:$B,,MATCH(X$4,$B$4:$F$4,0)-1),OFFSET('C. PoC Adj Factor Scoring'!$E$5:$J$282,,MATCH(X$4,'C. PoC Adj Factor Scoring'!$E$3:$AH$3,0)-1),MATCH(X$2&\" Score\",'C. PoC Adj Factor Scoring'!$E$4:$J$4,0),TRUE)","v":1},{"$f":"VLOOKUP(OFFSET($B:$B,,MATCH(Y$4,$B$4:$F$4,0)-1),OFFSET('C. PoC Adj Factor Scoring'!$E$5:$J$282,,MATCH(Y$4,'C. PoC Adj Factor Scoring'!$E$3:$AH$3,0)-1),MATCH(Y$2&\" Score\",'C. PoC Adj Factor Scoring'!$E$4:$J$4,0),TRUE)","v":1},{"$f":"VLOOKUP(OFFSET($B:$B,,MATCH(Z$4,$B$4:$F$4,0)-1),OFFSET('C. PoC Adj Factor Scoring'!$E$5:$J$282,,MATCH(Z$4,'C. PoC Adj Factor Scoring'!$E$3:$AH$3,0)-1),MATCH(Z$2&\" Score\",'C. PoC Adj Factor Scoring'!$E$4:$J$4,0),TRUE)","v":1},{"$f":"VLOOKUP(OFFSET($B:$B,,MATCH(AA$4,$B$4:$F$4,0)-1),OFFSET('C. PoC Adj Factor Scoring'!$E$5:$J$282,,MATCH(AA$4,'C. PoC Adj Factor Scoring'!$E$3:$AH$3,0)-1),MATCH(AA$2&\" Score\",'C. PoC Adj Factor Scoring'!$E$4:$J$4,0),TRUE)","v":3},{"$f":"VLOOKUP(OFFSET($B:$B,,MATCH(AB$4,$B$4:$F$4,0)-1),OFFSET('C. PoC Adj Factor Scoring'!$E$5:$J$282,,MATCH(AB$4,'C. PoC Adj Factor Scoring'!$E$3:$AH$3,0)-1),MATCH(AB$2&\" Score\",'C. PoC Adj Factor Scoring'!$E$4:$J$4,0),TRUE)","v":1},{"$f":"VLOOKUP(OFFSET($B:$B,,MATCH(AC$4,$B$4:$F$4,0)-1),OFFSET('C. PoC Adj Factor Scoring'!$E$5:$J$282,,MATCH(AC$4,'C. PoC Adj Factor Scoring'!$E$3:$AH$3,0)-1),MATCH(AC$2&\" Score\",'C. PoC Adj Factor Scoring'!$E$4:$J$4,0),TRUE)","v":1},{"$f":"VLOOKUP(OFFSET($B:$B,,MATCH(AD$4,$B$4:$F$4,0)-1),OFFSET('C. PoC Adj Factor Scoring'!$E$5:$J$282,,MATCH(AD$4,'C. PoC Adj Factor Scoring'!$E$3:$AH$3,0)-1),MATCH(AD$2&\" Score\",'C. PoC Adj Factor Scoring'!$E$4:$J$4,0),TRUE)","v":1},{"$f":"VLOOKUP(OFFSET($B:$B,,MATCH(AE$4,$B$4:$F$4,0)-1),OFFSET('C. PoC Adj Factor Scoring'!$E$5:$J$282,,MATCH(AE$4,'C. PoC Adj Factor Scoring'!$E$3:$AH$3,0)-1),MATCH(AE$2&\" Score\",'C. PoC Adj Factor Scoring'!$E$4:$J$4,0),TRUE)","v":1}]
[{"$f":"'A. Population Info'!A249","v":1000362199},{"$f":"'A. Population Info'!L249","v":"OIL"},{"$f":"'A. Population Info'!M249","v":0},{"$f":"'A. Population Info'!N249","v":0},{"$f":"'A. Population Info'!O249","v":0},{"$f":"'A. Population Info'!P249","v":0},{"$f":"VLOOKUP(OFFSET($B:$B,,MATCH(G$4,$B$4:$F$4,0)-1),OFFSET('C. PoC Adj Factor Scoring'!$E$5:$J$282,,MATCH(G$4,'C. PoC Adj Factor Scoring'!$E$3:$AH$3,0)-1),MATCH(G$2&\" Score\",'C. PoC Adj Factor Scoring'!$E$4:$J$4,0),TRUE)","v":4},{"$f":"VLOOKUP(OFFSET($B:$B,,MATCH(H$4,$B$4:$F$4,0)-1),OFFSET('C. PoC Adj Factor Scoring'!$E$5:$J$282,,MATCH(H$4,'C. PoC Adj Factor Scoring'!$E$3:$AH$3,0)-1),MATCH(H$2&\" Score\",'C. PoC Adj Factor Scoring'!$E$4:$J$4,0),TRUE)","v":1},{"$f":"VLOOKUP(OFFSET($B:$B,,MATCH(I$4,$B$4:$F$4,0)-1),OFFSET('C. PoC Adj Factor Scoring'!$E$5:$J$282,,MATCH(I$4,'C. PoC Adj Factor Scoring'!$E$3:$AH$3,0)-1),MATCH(I$2&\" Score\",'C. PoC Adj Factor Scoring'!$E$4:$J$4,0),TRUE)","v":1},{"$f":"VLOOKUP(OFFSET($B:$B,,MATCH(J$4,$B$4:$F$4,0)-1),OFFSET('C. PoC Adj Factor Scoring'!$E$5:$J$282,,MATCH(J$4,'C. PoC Adj Factor Scoring'!$E$3:$AH$3,0)-1),MATCH(J$2&\" Score\",'C. PoC Adj Factor Scoring'!$E$4:$J$4,0),TRUE)","v":1},{"$f":"VLOOKUP(OFFSET($B:$B,,MATCH(K$4,$B$4:$F$4,0)-1),OFFSET('C. PoC Adj Factor Scoring'!$E$5:$J$282,,MATCH(K$4,'C. PoC Adj Factor Scoring'!$E$3:$AH$3,0)-1),MATCH(K$2&\" Score\",'C. PoC Adj Factor Scoring'!$E$4:$J$4,0),TRUE)","v":1},{"$f":"VLOOKUP(OFFSET($B:$B,,MATCH(L$4,$B$4:$F$4,0)-1),OFFSET('C. PoC Adj Factor Scoring'!$E$5:$J$282,,MATCH(L$4,'C. PoC Adj Factor Scoring'!$E$3:$AH$3,0)-1),MATCH(L$2&\" Score\",'C. PoC Adj Factor Scoring'!$E$4:$J$4,0),TRUE)","v":1},{"$f":"VLOOKUP(OFFSET($B:$B,,MATCH(M$4,$B$4:$F$4,0)-1),OFFSET('C. PoC Adj Factor Scoring'!$E$5:$J$282,,MATCH(M$4,'C. PoC Adj Factor Scoring'!$E$3:$AH$3,0)-1),MATCH(M$2&\" Score\",'C. PoC Adj Factor Scoring'!$E$4:$J$4,0),TRUE)","v":1},{"$f":"VLOOKUP(OFFSET($B:$B,,MATCH(N$4,$B$4:$F$4,0)-1),OFFSET('C. PoC Adj Factor Scoring'!$E$5:$J$282,,MATCH(N$4,'C. PoC Adj Factor Scoring'!$E$3:$AH$3,0)-1),MATCH(N$2&\" Score\",'C. PoC Adj Factor Scoring'!$E$4:$J$4,0),TRUE)","v":1},{"$f":"VLOOKUP(OFFSET($B:$B,,MATCH(O$4,$B$4:$F$4,0)-1),OFFSET('C. PoC Adj Factor Scoring'!$E$5:$J$282,,MATCH(O$4,'C. PoC Adj Factor Scoring'!$E$3:$AH$3,0)-1),MATCH(O$2&\" Score\",'C. PoC Adj Factor Scoring'!$E$4:$J$4,0),TRUE)","v":1},{"$f":"VLOOKUP(OFFSET($B:$B,,MATCH(P$4,$B$4:$F$4,0)-1),OFFSET('C. PoC Adj Factor Scoring'!$E$5:$J$282,,MATCH(P$4,'C. PoC Adj Factor Scoring'!$E$3:$AH$3,0)-1),MATCH(P$2&\" Score\",'C. PoC Adj Factor Scoring'!$E$4:$J$4,0),TRUE)","v":1},{"$f":"VLOOKUP(OFFSET($B:$B,,MATCH(Q$4,$B$4:$F$4,0)-1),OFFSET('C. PoC Adj Factor Scoring'!$E$5:$J$282,,MATCH(Q$4,'C. PoC Adj Factor Scoring'!$E$3:$AH$3,0)-1),MATCH(Q$2&\" Score\",'C. PoC Adj Factor Scoring'!$E$4:$J$4,0),TRUE)","v":1},{"$f":"VLOOKUP(OFFSET($B:$B,,MATCH(R$4,$B$4:$F$4,0)-1),OFFSET('C. PoC Adj Factor Scoring'!$E$5:$J$282,,MATCH(R$4,'C. PoC Adj Factor Scoring'!$E$3:$AH$3,0)-1),MATCH(R$2&\" Score\",'C. PoC Adj Factor Scoring'!$E$4:$J$4,0),TRUE)","v":1},{"$f":"VLOOKUP(OFFSET($B:$B,,MATCH(S$4,$B$4:$F$4,0)-1),OFFSET('C. PoC Adj Factor Scoring'!$E$5:$J$282,,MATCH(S$4,'C. PoC Adj Factor Scoring'!$E$3:$AH$3,0)-1),MATCH(S$2&\" Score\",'C. PoC Adj Factor Scoring'!$E$4:$J$4,0),TRUE)","v":1},{"$f":"VLOOKUP(OFFSET($B:$B,,MATCH(T$4,$B$4:$F$4,0)-1),OFFSET('C. PoC Adj Factor Scoring'!$E$5:$J$282,,MATCH(T$4,'C. PoC Adj Factor Scoring'!$E$3:$AH$3,0)-1),MATCH(T$2&\" Score\",'C. PoC Adj Factor Scoring'!$E$4:$J$4,0),TRUE)","v":1},{"$f":"VLOOKUP(OFFSET($B:$B,,MATCH(U$4,$B$4:$F$4,0)-1),OFFSET('C. PoC Adj Factor Scoring'!$E$5:$J$282,,MATCH(U$4,'C. PoC Adj Factor Scoring'!$E$3:$AH$3,0)-1),MATCH(U$2&\" Score\",'C. PoC Adj Factor Scoring'!$E$4:$J$4,0),TRUE)","v":1},{"$f":"VLOOKUP(OFFSET($B:$B,,MATCH(V$4,$B$4:$F$4,0)-1),OFFSET('C. PoC Adj Factor Scoring'!$E$5:$J$282,,MATCH(V$4,'C. PoC Adj Factor Scoring'!$E$3:$AH$3,0)-1),MATCH(V$2&\" Score\",'C. PoC Adj Factor Scoring'!$E$4:$J$4,0),TRUE)","v":1},{"$f":"VLOOKUP(OFFSET($B:$B,,MATCH(W$4,$B$4:$F$4,0)-1),OFFSET('C. PoC Adj Factor Scoring'!$E$5:$J$282,,MATCH(W$4,'C. PoC Adj Factor Scoring'!$E$3:$AH$3,0)-1),MATCH(W$2&\" Score\",'C. PoC Adj Factor Scoring'!$E$4:$J$4,0),TRUE)","v":1},{"$f":"VLOOKUP(OFFSET($B:$B,,MATCH(X$4,$B$4:$F$4,0)-1),OFFSET('C. PoC Adj Factor Scoring'!$E$5:$J$282,,MATCH(X$4,'C. PoC Adj Factor Scoring'!$E$3:$AH$3,0)-1),MATCH(X$2&\" Score\",'C. PoC Adj Factor Scoring'!$E$4:$J$4,0),TRUE)","v":1},{"$f":"VLOOKUP(OFFSET($B:$B,,MATCH(Y$4,$B$4:$F$4,0)-1),OFFSET('C. PoC Adj Factor Scoring'!$E$5:$J$282,,MATCH(Y$4,'C. PoC Adj Factor Scoring'!$E$3:$AH$3,0)-1),MATCH(Y$2&\" Score\",'C. PoC Adj Factor Scoring'!$E$4:$J$4,0),TRUE)","v":1},{"$f":"VLOOKUP(OFFSET($B:$B,,MATCH(Z$4,$B$4:$F$4,0)-1),OFFSET('C. PoC Adj Factor Scoring'!$E$5:$J$282,,MATCH(Z$4,'C. PoC Adj Factor Scoring'!$E$3:$AH$3,0)-1),MATCH(Z$2&\" Score\",'C. PoC Adj Factor Scoring'!$E$4:$J$4,0),TRUE)","v":1},{"$f":"VLOOKUP(OFFSET($B:$B,,MATCH(AA$4,$B$4:$F$4,0)-1),OFFSET('C. PoC Adj Factor Scoring'!$E$5:$J$282,,MATCH(AA$4,'C. PoC Adj Factor Scoring'!$E$3:$AH$3,0)-1),MATCH(AA$2&\" Score\",'C. PoC Adj Factor Scoring'!$E$4:$J$4,0),TRUE)","v":3},{"$f":"VLOOKUP(OFFSET($B:$B,,MATCH(AB$4,$B$4:$F$4,0)-1),OFFSET('C. PoC Adj Factor Scoring'!$E$5:$J$282,,MATCH(AB$4,'C. PoC Adj Factor Scoring'!$E$3:$AH$3,0)-1),MATCH(AB$2&\" Score\",'C. PoC Adj Factor Scoring'!$E$4:$J$4,0),TRUE)","v":1},{"$f":"VLOOKUP(OFFSET($B:$B,,MATCH(AC$4,$B$4:$F$4,0)-1),OFFSET('C. PoC Adj Factor Scoring'!$E$5:$J$282,,MATCH(AC$4,'C. PoC Adj Factor Scoring'!$E$3:$AH$3,0)-1),MATCH(AC$2&\" Score\",'C. PoC Adj Factor Scoring'!$E$4:$J$4,0),TRUE)","v":1},{"$f":"VLOOKUP(OFFSET($B:$B,,MATCH(AD$4,$B$4:$F$4,0)-1),OFFSET('C. PoC Adj Factor Scoring'!$E$5:$J$282,,MATCH(AD$4,'C. PoC Adj Factor Scoring'!$E$3:$AH$3,0)-1),MATCH(AD$2&\" Score\",'C. PoC Adj Factor Scoring'!$E$4:$J$4,0),TRUE)","v":1},{"$f":"VLOOKUP(OFFSET($B:$B,,MATCH(AE$4,$B$4:$F$4,0)-1),OFFSET('C. PoC Adj Factor Scoring'!$E$5:$J$282,,MATCH(AE$4,'C. PoC Adj Factor Scoring'!$E$3:$AH$3,0)-1),MATCH(AE$2&\" Score\",'C. PoC Adj Factor Scoring'!$E$4:$J$4,0),TRUE)","v":1}]
[{"$f":"'A. Population Info'!A250","v":1000362227},{"$f":"'A. Population Info'!L250","v":"OIL"},{"$f":"'A. Population Info'!M250","v":0},{"$f":"'A. Population Info'!N250","v":0},{"$f":"'A. Population Info'!O250","v":0},{"$f":"'A. Population Info'!P250","v":0},{"$f":"VLOOKUP(OFFSET($B:$B,,MATCH(G$4,$B$4:$F$4,0)-1),OFFSET('C. PoC Adj Factor Scoring'!$E$5:$J$282,,MATCH(G$4,'C. PoC Adj Factor Scoring'!$E$3:$AH$3,0)-1),MATCH(G$2&\" Score\",'C. PoC Adj Factor Scoring'!$E$4:$J$4,0),TRUE)","v":4},{"$f":"VLOOKUP(OFFSET($B:$B,,MATCH(H$4,$B$4:$F$4,0)-1),OFFSET('C. PoC Adj Factor Scoring'!$E$5:$J$282,,MATCH(H$4,'C. PoC Adj Factor Scoring'!$E$3:$AH$3,0)-1),MATCH(H$2&\" Score\",'C. PoC Adj Factor Scoring'!$E$4:$J$4,0),TRUE)","v":1},{"$f":"VLOOKUP(OFFSET($B:$B,,MATCH(I$4,$B$4:$F$4,0)-1),OFFSET('C. PoC Adj Factor Scoring'!$E$5:$J$282,,MATCH(I$4,'C. PoC Adj Factor Scoring'!$E$3:$AH$3,0)-1),MATCH(I$2&\" Score\",'C. PoC Adj Factor Scoring'!$E$4:$J$4,0),TRUE)","v":1},{"$f":"VLOOKUP(OFFSET($B:$B,,MATCH(J$4,$B$4:$F$4,0)-1),OFFSET('C. PoC Adj Factor Scoring'!$E$5:$J$282,,MATCH(J$4,'C. PoC Adj Factor Scoring'!$E$3:$AH$3,0)-1),MATCH(J$2&\" Score\",'C. PoC Adj Factor Scoring'!$E$4:$J$4,0),TRUE)","v":1},{"$f":"VLOOKUP(OFFSET($B:$B,,MATCH(K$4,$B$4:$F$4,0)-1),OFFSET('C. PoC Adj Factor Scoring'!$E$5:$J$282,,MATCH(K$4,'C. PoC Adj Factor Scoring'!$E$3:$AH$3,0)-1),MATCH(K$2&\" Score\",'C. PoC Adj Factor Scoring'!$E$4:$J$4,0),TRUE)","v":1},{"$f":"VLOOKUP(OFFSET($B:$B,,MATCH(L$4,$B$4:$F$4,0)-1),OFFSET('C. PoC Adj Factor Scoring'!$E$5:$J$282,,MATCH(L$4,'C. PoC Adj Factor Scoring'!$E$3:$AH$3,0)-1),MATCH(L$2&\" Score\",'C. PoC Adj Factor Scoring'!$E$4:$J$4,0),TRUE)","v":1},{"$f":"VLOOKUP(OFFSET($B:$B,,MATCH(M$4,$B$4:$F$4,0)-1),OFFSET('C. PoC Adj Factor Scoring'!$E$5:$J$282,,MATCH(M$4,'C. PoC Adj Factor Scoring'!$E$3:$AH$3,0)-1),MATCH(M$2&\" Score\",'C. PoC Adj Factor Scoring'!$E$4:$J$4,0),TRUE)","v":1},{"$f":"VLOOKUP(OFFSET($B:$B,,MATCH(N$4,$B$4:$F$4,0)-1),OFFSET('C. PoC Adj Factor Scoring'!$E$5:$J$282,,MATCH(N$4,'C. PoC Adj Factor Scoring'!$E$3:$AH$3,0)-1),MATCH(N$2&\" Score\",'C. PoC Adj Factor Scoring'!$E$4:$J$4,0),TRUE)","v":1},{"$f":"VLOOKUP(OFFSET($B:$B,,MATCH(O$4,$B$4:$F$4,0)-1),OFFSET('C. PoC Adj Factor Scoring'!$E$5:$J$282,,MATCH(O$4,'C. PoC Adj Factor Scoring'!$E$3:$AH$3,0)-1),MATCH(O$2&\" Score\",'C. PoC Adj Factor Scoring'!$E$4:$J$4,0),TRUE)","v":1},{"$f":"VLOOKUP(OFFSET($B:$B,,MATCH(P$4,$B$4:$F$4,0)-1),OFFSET('C. PoC Adj Factor Scoring'!$E$5:$J$282,,MATCH(P$4,'C. PoC Adj Factor Scoring'!$E$3:$AH$3,0)-1),MATCH(P$2&\" Score\",'C. PoC Adj Factor Scoring'!$E$4:$J$4,0),TRUE)","v":1},{"$f":"VLOOKUP(OFFSET($B:$B,,MATCH(Q$4,$B$4:$F$4,0)-1),OFFSET('C. PoC Adj Factor Scoring'!$E$5:$J$282,,MATCH(Q$4,'C. PoC Adj Factor Scoring'!$E$3:$AH$3,0)-1),MATCH(Q$2&\" Score\",'C. PoC Adj Factor Scoring'!$E$4:$J$4,0),TRUE)","v":1},{"$f":"VLOOKUP(OFFSET($B:$B,,MATCH(R$4,$B$4:$F$4,0)-1),OFFSET('C. PoC Adj Factor Scoring'!$E$5:$J$282,,MATCH(R$4,'C. PoC Adj Factor Scoring'!$E$3:$AH$3,0)-1),MATCH(R$2&\" Score\",'C. PoC Adj Factor Scoring'!$E$4:$J$4,0),TRUE)","v":1},{"$f":"VLOOKUP(OFFSET($B:$B,,MATCH(S$4,$B$4:$F$4,0)-1),OFFSET('C. PoC Adj Factor Scoring'!$E$5:$J$282,,MATCH(S$4,'C. PoC Adj Factor Scoring'!$E$3:$AH$3,0)-1),MATCH(S$2&\" Score\",'C. PoC Adj Factor Scoring'!$E$4:$J$4,0),TRUE)","v":1},{"$f":"VLOOKUP(OFFSET($B:$B,,MATCH(T$4,$B$4:$F$4,0)-1),OFFSET('C. PoC Adj Factor Scoring'!$E$5:$J$282,,MATCH(T$4,'C. PoC Adj Factor Scoring'!$E$3:$AH$3,0)-1),MATCH(T$2&\" Score\",'C. PoC Adj Factor Scoring'!$E$4:$J$4,0),TRUE)","v":1},{"$f":"VLOOKUP(OFFSET($B:$B,,MATCH(U$4,$B$4:$F$4,0)-1),OFFSET('C. PoC Adj Factor Scoring'!$E$5:$J$282,,MATCH(U$4,'C. PoC Adj Factor Scoring'!$E$3:$AH$3,0)-1),MATCH(U$2&\" Score\",'C. PoC Adj Factor Scoring'!$E$4:$J$4,0),TRUE)","v":1},{"$f":"VLOOKUP(OFFSET($B:$B,,MATCH(V$4,$B$4:$F$4,0)-1),OFFSET('C. PoC Adj Factor Scoring'!$E$5:$J$282,,MATCH(V$4,'C. PoC Adj Factor Scoring'!$E$3:$AH$3,0)-1),MATCH(V$2&\" Score\",'C. PoC Adj Factor Scoring'!$E$4:$J$4,0),TRUE)","v":1},{"$f":"VLOOKUP(OFFSET($B:$B,,MATCH(W$4,$B$4:$F$4,0)-1),OFFSET('C. PoC Adj Factor Scoring'!$E$5:$J$282,,MATCH(W$4,'C. PoC Adj Factor Scoring'!$E$3:$AH$3,0)-1),MATCH(W$2&\" Score\",'C. PoC Adj Factor Scoring'!$E$4:$J$4,0),TRUE)","v":1},{"$f":"VLOOKUP(OFFSET($B:$B,,MATCH(X$4,$B$4:$F$4,0)-1),OFFSET('C. PoC Adj Factor Scoring'!$E$5:$J$282,,MATCH(X$4,'C. PoC Adj Factor Scoring'!$E$3:$AH$3,0)-1),MATCH(X$2&\" Score\",'C. PoC Adj Factor Scoring'!$E$4:$J$4,0),TRUE)","v":1},{"$f":"VLOOKUP(OFFSET($B:$B,,MATCH(Y$4,$B$4:$F$4,0)-1),OFFSET('C. PoC Adj Factor Scoring'!$E$5:$J$282,,MATCH(Y$4,'C. PoC Adj Factor Scoring'!$E$3:$AH$3,0)-1),MATCH(Y$2&\" Score\",'C. PoC Adj Factor Scoring'!$E$4:$J$4,0),TRUE)","v":1},{"$f":"VLOOKUP(OFFSET($B:$B,,MATCH(Z$4,$B$4:$F$4,0)-1),OFFSET('C. PoC Adj Factor Scoring'!$E$5:$J$282,,MATCH(Z$4,'C. PoC Adj Factor Scoring'!$E$3:$AH$3,0)-1),MATCH(Z$2&\" Score\",'C. PoC Adj Factor Scoring'!$E$4:$J$4,0),TRUE)","v":1},{"$f":"VLOOKUP(OFFSET($B:$B,,MATCH(AA$4,$B$4:$F$4,0)-1),OFFSET('C. PoC Adj Factor Scoring'!$E$5:$J$282,,MATCH(AA$4,'C. PoC Adj Factor Scoring'!$E$3:$AH$3,0)-1),MATCH(AA$2&\" Score\",'C. PoC Adj Factor Scoring'!$E$4:$J$4,0),TRUE)","v":3},{"$f":"VLOOKUP(OFFSET($B:$B,,MATCH(AB$4,$B$4:$F$4,0)-1),OFFSET('C. PoC Adj Factor Scoring'!$E$5:$J$282,,MATCH(AB$4,'C. PoC Adj Factor Scoring'!$E$3:$AH$3,0)-1),MATCH(AB$2&\" Score\",'C. PoC Adj Factor Scoring'!$E$4:$J$4,0),TRUE)","v":1},{"$f":"VLOOKUP(OFFSET($B:$B,,MATCH(AC$4,$B$4:$F$4,0)-1),OFFSET('C. PoC Adj Factor Scoring'!$E$5:$J$282,,MATCH(AC$4,'C. PoC Adj Factor Scoring'!$E$3:$AH$3,0)-1),MATCH(AC$2&\" Score\",'C. PoC Adj Factor Scoring'!$E$4:$J$4,0),TRUE)","v":1},{"$f":"VLOOKUP(OFFSET($B:$B,,MATCH(AD$4,$B$4:$F$4,0)-1),OFFSET('C. PoC Adj Factor Scoring'!$E$5:$J$282,,MATCH(AD$4,'C. PoC Adj Factor Scoring'!$E$3:$AH$3,0)-1),MATCH(AD$2&\" Score\",'C. PoC Adj Factor Scoring'!$E$4:$J$4,0),TRUE)","v":1},{"$f":"VLOOKUP(OFFSET($B:$B,,MATCH(AE$4,$B$4:$F$4,0)-1),OFFSET('C. PoC Adj Factor Scoring'!$E$5:$J$282,,MATCH(AE$4,'C. PoC Adj Factor Scoring'!$E$3:$AH$3,0)-1),MATCH(AE$2&\" Score\",'C. PoC Adj Factor Scoring'!$E$4:$J$4,0),TRUE)","v":1}]
[{"$f":"'A. Population Info'!A251","v":1000362285},{"$f":"'A. Population Info'!L251","v":"OIL"},{"$f":"'A. Population Info'!M251","v":0},{"$f":"'A. Population Info'!N251","v":0},{"$f":"'A. Population Info'!O251","v":0},{"$f":"'A. Population Info'!P251","v":0},{"$f":"VLOOKUP(OFFSET($B:$B,,MATCH(G$4,$B$4:$F$4,0)-1),OFFSET('C. PoC Adj Factor Scoring'!$E$5:$J$282,,MATCH(G$4,'C. PoC Adj Factor Scoring'!$E$3:$AH$3,0)-1),MATCH(G$2&\" Score\",'C. PoC Adj Factor Scoring'!$E$4:$J$4,0),TRUE)","v":4},{"$f":"VLOOKUP(OFFSET($B:$B,,MATCH(H$4,$B$4:$F$4,0)-1),OFFSET('C. PoC Adj Factor Scoring'!$E$5:$J$282,,MATCH(H$4,'C. PoC Adj Factor Scoring'!$E$3:$AH$3,0)-1),MATCH(H$2&\" Score\",'C. PoC Adj Factor Scoring'!$E$4:$J$4,0),TRUE)","v":1},{"$f":"VLOOKUP(OFFSET($B:$B,,MATCH(I$4,$B$4:$F$4,0)-1),OFFSET('C. PoC Adj Factor Scoring'!$E$5:$J$282,,MATCH(I$4,'C. PoC Adj Factor Scoring'!$E$3:$AH$3,0)-1),MATCH(I$2&\" Score\",'C. PoC Adj Factor Scoring'!$E$4:$J$4,0),TRUE)","v":1},{"$f":"VLOOKUP(OFFSET($B:$B,,MATCH(J$4,$B$4:$F$4,0)-1),OFFSET('C. PoC Adj Factor Scoring'!$E$5:$J$282,,MATCH(J$4,'C. PoC Adj Factor Scoring'!$E$3:$AH$3,0)-1),MATCH(J$2&\" Score\",'C. PoC Adj Factor Scoring'!$E$4:$J$4,0),TRUE)","v":1},{"$f":"VLOOKUP(OFFSET($B:$B,,MATCH(K$4,$B$4:$F$4,0)-1),OFFSET('C. PoC Adj Factor Scoring'!$E$5:$J$282,,MATCH(K$4,'C. PoC Adj Factor Scoring'!$E$3:$AH$3,0)-1),MATCH(K$2&\" Score\",'C. PoC Adj Factor Scoring'!$E$4:$J$4,0),TRUE)","v":1},{"$f":"VLOOKUP(OFFSET($B:$B,,MATCH(L$4,$B$4:$F$4,0)-1),OFFSET('C. PoC Adj Factor Scoring'!$E$5:$J$282,,MATCH(L$4,'C. PoC Adj Factor Scoring'!$E$3:$AH$3,0)-1),MATCH(L$2&\" Score\",'C. PoC Adj Factor Scoring'!$E$4:$J$4,0),TRUE)","v":1},{"$f":"VLOOKUP(OFFSET($B:$B,,MATCH(M$4,$B$4:$F$4,0)-1),OFFSET('C. PoC Adj Factor Scoring'!$E$5:$J$282,,MATCH(M$4,'C. PoC Adj Factor Scoring'!$E$3:$AH$3,0)-1),MATCH(M$2&\" Score\",'C. PoC Adj Factor Scoring'!$E$4:$J$4,0),TRUE)","v":1},{"$f":"VLOOKUP(OFFSET($B:$B,,MATCH(N$4,$B$4:$F$4,0)-1),OFFSET('C. PoC Adj Factor Scoring'!$E$5:$J$282,,MATCH(N$4,'C. PoC Adj Factor Scoring'!$E$3:$AH$3,0)-1),MATCH(N$2&\" Score\",'C. PoC Adj Factor Scoring'!$E$4:$J$4,0),TRUE)","v":1},{"$f":"VLOOKUP(OFFSET($B:$B,,MATCH(O$4,$B$4:$F$4,0)-1),OFFSET('C. PoC Adj Factor Scoring'!$E$5:$J$282,,MATCH(O$4,'C. PoC Adj Factor Scoring'!$E$3:$AH$3,0)-1),MATCH(O$2&\" Score\",'C. PoC Adj Factor Scoring'!$E$4:$J$4,0),TRUE)","v":1},{"$f":"VLOOKUP(OFFSET($B:$B,,MATCH(P$4,$B$4:$F$4,0)-1),OFFSET('C. PoC Adj Factor Scoring'!$E$5:$J$282,,MATCH(P$4,'C. PoC Adj Factor Scoring'!$E$3:$AH$3,0)-1),MATCH(P$2&\" Score\",'C. PoC Adj Factor Scoring'!$E$4:$J$4,0),TRUE)","v":1},{"$f":"VLOOKUP(OFFSET($B:$B,,MATCH(Q$4,$B$4:$F$4,0)-1),OFFSET('C. PoC Adj Factor Scoring'!$E$5:$J$282,,MATCH(Q$4,'C. PoC Adj Factor Scoring'!$E$3:$AH$3,0)-1),MATCH(Q$2&\" Score\",'C. PoC Adj Factor Scoring'!$E$4:$J$4,0),TRUE)","v":1},{"$f":"VLOOKUP(OFFSET($B:$B,,MATCH(R$4,$B$4:$F$4,0)-1),OFFSET('C. PoC Adj Factor Scoring'!$E$5:$J$282,,MATCH(R$4,'C. PoC Adj Factor Scoring'!$E$3:$AH$3,0)-1),MATCH(R$2&\" Score\",'C. PoC Adj Factor Scoring'!$E$4:$J$4,0),TRUE)","v":1},{"$f":"VLOOKUP(OFFSET($B:$B,,MATCH(S$4,$B$4:$F$4,0)-1),OFFSET('C. PoC Adj Factor Scoring'!$E$5:$J$282,,MATCH(S$4,'C. PoC Adj Factor Scoring'!$E$3:$AH$3,0)-1),MATCH(S$2&\" Score\",'C. PoC Adj Factor Scoring'!$E$4:$J$4,0),TRUE)","v":1},{"$f":"VLOOKUP(OFFSET($B:$B,,MATCH(T$4,$B$4:$F$4,0)-1),OFFSET('C. PoC Adj Factor Scoring'!$E$5:$J$282,,MATCH(T$4,'C. PoC Adj Factor Scoring'!$E$3:$AH$3,0)-1),MATCH(T$2&\" Score\",'C. PoC Adj Factor Scoring'!$E$4:$J$4,0),TRUE)","v":1},{"$f":"VLOOKUP(OFFSET($B:$B,,MATCH(U$4,$B$4:$F$4,0)-1),OFFSET('C. PoC Adj Factor Scoring'!$E$5:$J$282,,MATCH(U$4,'C. PoC Adj Factor Scoring'!$E$3:$AH$3,0)-1),MATCH(U$2&\" Score\",'C. PoC Adj Factor Scoring'!$E$4:$J$4,0),TRUE)","v":1},{"$f":"VLOOKUP(OFFSET($B:$B,,MATCH(V$4,$B$4:$F$4,0)-1),OFFSET('C. PoC Adj Factor Scoring'!$E$5:$J$282,,MATCH(V$4,'C. PoC Adj Factor Scoring'!$E$3:$AH$3,0)-1),MATCH(V$2&\" Score\",'C. PoC Adj Factor Scoring'!$E$4:$J$4,0),TRUE)","v":1},{"$f":"VLOOKUP(OFFSET($B:$B,,MATCH(W$4,$B$4:$F$4,0)-1),OFFSET('C. PoC Adj Factor Scoring'!$E$5:$J$282,,MATCH(W$4,'C. PoC Adj Factor Scoring'!$E$3:$AH$3,0)-1),MATCH(W$2&\" Score\",'C. PoC Adj Factor Scoring'!$E$4:$J$4,0),TRUE)","v":1},{"$f":"VLOOKUP(OFFSET($B:$B,,MATCH(X$4,$B$4:$F$4,0)-1),OFFSET('C. PoC Adj Factor Scoring'!$E$5:$J$282,,MATCH(X$4,'C. PoC Adj Factor Scoring'!$E$3:$AH$3,0)-1),MATCH(X$2&\" Score\",'C. PoC Adj Factor Scoring'!$E$4:$J$4,0),TRUE)","v":1},{"$f":"VLOOKUP(OFFSET($B:$B,,MATCH(Y$4,$B$4:$F$4,0)-1),OFFSET('C. PoC Adj Factor Scoring'!$E$5:$J$282,,MATCH(Y$4,'C. PoC Adj Factor Scoring'!$E$3:$AH$3,0)-1),MATCH(Y$2&\" Score\",'C. PoC Adj Factor Scoring'!$E$4:$J$4,0),TRUE)","v":1},{"$f":"VLOOKUP(OFFSET($B:$B,,MATCH(Z$4,$B$4:$F$4,0)-1),OFFSET('C. PoC Adj Factor Scoring'!$E$5:$J$282,,MATCH(Z$4,'C. PoC Adj Factor Scoring'!$E$3:$AH$3,0)-1),MATCH(Z$2&\" Score\",'C. PoC Adj Factor Scoring'!$E$4:$J$4,0),TRUE)","v":1},{"$f":"VLOOKUP(OFFSET($B:$B,,MATCH(AA$4,$B$4:$F$4,0)-1),OFFSET('C. PoC Adj Factor Scoring'!$E$5:$J$282,,MATCH(AA$4,'C. PoC Adj Factor Scoring'!$E$3:$AH$3,0)-1),MATCH(AA$2&\" Score\",'C. PoC Adj Factor Scoring'!$E$4:$J$4,0),TRUE)","v":3},{"$f":"VLOOKUP(OFFSET($B:$B,,MATCH(AB$4,$B$4:$F$4,0)-1),OFFSET('C. PoC Adj Factor Scoring'!$E$5:$J$282,,MATCH(AB$4,'C. PoC Adj Factor Scoring'!$E$3:$AH$3,0)-1),MATCH(AB$2&\" Score\",'C. PoC Adj Factor Scoring'!$E$4:$J$4,0),TRUE)","v":1},{"$f":"VLOOKUP(OFFSET($B:$B,,MATCH(AC$4,$B$4:$F$4,0)-1),OFFSET('C. PoC Adj Factor Scoring'!$E$5:$J$282,,MATCH(AC$4,'C. PoC Adj Factor Scoring'!$E$3:$AH$3,0)-1),MATCH(AC$2&\" Score\",'C. PoC Adj Factor Scoring'!$E$4:$J$4,0),TRUE)","v":1},{"$f":"VLOOKUP(OFFSET($B:$B,,MATCH(AD$4,$B$4:$F$4,0)-1),OFFSET('C. PoC Adj Factor Scoring'!$E$5:$J$282,,MATCH(AD$4,'C. PoC Adj Factor Scoring'!$E$3:$AH$3,0)-1),MATCH(AD$2&\" Score\",'C. PoC Adj Factor Scoring'!$E$4:$J$4,0),TRUE)","v":1},{"$f":"VLOOKUP(OFFSET($B:$B,,MATCH(AE$4,$B$4:$F$4,0)-1),OFFSET('C. PoC Adj Factor Scoring'!$E$5:$J$282,,MATCH(AE$4,'C. PoC Adj Factor Scoring'!$E$3:$AH$3,0)-1),MATCH(AE$2&\" Score\",'C. PoC Adj Factor Scoring'!$E$4:$J$4,0),TRUE)","v":1}]
[{"$f":"'A. Population Info'!A252","v":1000362316},{"$f":"'A. Population Info'!L252","v":"OIL"},{"$f":"'A. Population Info'!M252","v":0},{"$f":"'A. Population Info'!N252","v":0},{"$f":"'A. Population Info'!O252","v":0},{"$f":"'A. Population Info'!P252","v":0},{"$f":"VLOOKUP(OFFSET($B:$B,,MATCH(G$4,$B$4:$F$4,0)-1),OFFSET('C. PoC Adj Factor Scoring'!$E$5:$J$282,,MATCH(G$4,'C. PoC Adj Factor Scoring'!$E$3:$AH$3,0)-1),MATCH(G$2&\" Score\",'C. PoC Adj Factor Scoring'!$E$4:$J$4,0),TRUE)","v":4},{"$f":"VLOOKUP(OFFSET($B:$B,,MATCH(H$4,$B$4:$F$4,0)-1),OFFSET('C. PoC Adj Factor Scoring'!$E$5:$J$282,,MATCH(H$4,'C. PoC Adj Factor Scoring'!$E$3:$AH$3,0)-1),MATCH(H$2&\" Score\",'C. PoC Adj Factor Scoring'!$E$4:$J$4,0),TRUE)","v":1},{"$f":"VLOOKUP(OFFSET($B:$B,,MATCH(I$4,$B$4:$F$4,0)-1),OFFSET('C. PoC Adj Factor Scoring'!$E$5:$J$282,,MATCH(I$4,'C. PoC Adj Factor Scoring'!$E$3:$AH$3,0)-1),MATCH(I$2&\" Score\",'C. PoC Adj Factor Scoring'!$E$4:$J$4,0),TRUE)","v":1},{"$f":"VLOOKUP(OFFSET($B:$B,,MATCH(J$4,$B$4:$F$4,0)-1),OFFSET('C. PoC Adj Factor Scoring'!$E$5:$J$282,,MATCH(J$4,'C. PoC Adj Factor Scoring'!$E$3:$AH$3,0)-1),MATCH(J$2&\" Score\",'C. PoC Adj Factor Scoring'!$E$4:$J$4,0),TRUE)","v":1},{"$f":"VLOOKUP(OFFSET($B:$B,,MATCH(K$4,$B$4:$F$4,0)-1),OFFSET('C. PoC Adj Factor Scoring'!$E$5:$J$282,,MATCH(K$4,'C. PoC Adj Factor Scoring'!$E$3:$AH$3,0)-1),MATCH(K$2&\" Score\",'C. PoC Adj Factor Scoring'!$E$4:$J$4,0),TRUE)","v":1},{"$f":"VLOOKUP(OFFSET($B:$B,,MATCH(L$4,$B$4:$F$4,0)-1),OFFSET('C. PoC Adj Factor Scoring'!$E$5:$J$282,,MATCH(L$4,'C. PoC Adj Factor Scoring'!$E$3:$AH$3,0)-1),MATCH(L$2&\" Score\",'C. PoC Adj Factor Scoring'!$E$4:$J$4,0),TRUE)","v":1},{"$f":"VLOOKUP(OFFSET($B:$B,,MATCH(M$4,$B$4:$F$4,0)-1),OFFSET('C. PoC Adj Factor Scoring'!$E$5:$J$282,,MATCH(M$4,'C. PoC Adj Factor Scoring'!$E$3:$AH$3,0)-1),MATCH(M$2&\" Score\",'C. PoC Adj Factor Scoring'!$E$4:$J$4,0),TRUE)","v":1},{"$f":"VLOOKUP(OFFSET($B:$B,,MATCH(N$4,$B$4:$F$4,0)-1),OFFSET('C. PoC Adj Factor Scoring'!$E$5:$J$282,,MATCH(N$4,'C. PoC Adj Factor Scoring'!$E$3:$AH$3,0)-1),MATCH(N$2&\" Score\",'C. PoC Adj Factor Scoring'!$E$4:$J$4,0),TRUE)","v":1},{"$f":"VLOOKUP(OFFSET($B:$B,,MATCH(O$4,$B$4:$F$4,0)-1),OFFSET('C. PoC Adj Factor Scoring'!$E$5:$J$282,,MATCH(O$4,'C. PoC Adj Factor Scoring'!$E$3:$AH$3,0)-1),MATCH(O$2&\" Score\",'C. PoC Adj Factor Scoring'!$E$4:$J$4,0),TRUE)","v":1},{"$f":"VLOOKUP(OFFSET($B:$B,,MATCH(P$4,$B$4:$F$4,0)-1),OFFSET('C. PoC Adj Factor Scoring'!$E$5:$J$282,,MATCH(P$4,'C. PoC Adj Factor Scoring'!$E$3:$AH$3,0)-1),MATCH(P$2&\" Score\",'C. PoC Adj Factor Scoring'!$E$4:$J$4,0),TRUE)","v":1},{"$f":"VLOOKUP(OFFSET($B:$B,,MATCH(Q$4,$B$4:$F$4,0)-1),OFFSET('C. PoC Adj Factor Scoring'!$E$5:$J$282,,MATCH(Q$4,'C. PoC Adj Factor Scoring'!$E$3:$AH$3,0)-1),MATCH(Q$2&\" Score\",'C. PoC Adj Factor Scoring'!$E$4:$J$4,0),TRUE)","v":1},{"$f":"VLOOKUP(OFFSET($B:$B,,MATCH(R$4,$B$4:$F$4,0)-1),OFFSET('C. PoC Adj Factor Scoring'!$E$5:$J$282,,MATCH(R$4,'C. PoC Adj Factor Scoring'!$E$3:$AH$3,0)-1),MATCH(R$2&\" Score\",'C. PoC Adj Factor Scoring'!$E$4:$J$4,0),TRUE)","v":1},{"$f":"VLOOKUP(OFFSET($B:$B,,MATCH(S$4,$B$4:$F$4,0)-1),OFFSET('C. PoC Adj Factor Scoring'!$E$5:$J$282,,MATCH(S$4,'C. PoC Adj Factor Scoring'!$E$3:$AH$3,0)-1),MATCH(S$2&\" Score\",'C. PoC Adj Factor Scoring'!$E$4:$J$4,0),TRUE)","v":1},{"$f":"VLOOKUP(OFFSET($B:$B,,MATCH(T$4,$B$4:$F$4,0)-1),OFFSET('C. PoC Adj Factor Scoring'!$E$5:$J$282,,MATCH(T$4,'C. PoC Adj Factor Scoring'!$E$3:$AH$3,0)-1),MATCH(T$2&\" Score\",'C. PoC Adj Factor Scoring'!$E$4:$J$4,0),TRUE)","v":1},{"$f":"VLOOKUP(OFFSET($B:$B,,MATCH(U$4,$B$4:$F$4,0)-1),OFFSET('C. PoC Adj Factor Scoring'!$E$5:$J$282,,MATCH(U$4,'C. PoC Adj Factor Scoring'!$E$3:$AH$3,0)-1),MATCH(U$2&\" Score\",'C. PoC Adj Factor Scoring'!$E$4:$J$4,0),TRUE)","v":1},{"$f":"VLOOKUP(OFFSET($B:$B,,MATCH(V$4,$B$4:$F$4,0)-1),OFFSET('C. PoC Adj Factor Scoring'!$E$5:$J$282,,MATCH(V$4,'C. PoC Adj Factor Scoring'!$E$3:$AH$3,0)-1),MATCH(V$2&\" Score\",'C. PoC Adj Factor Scoring'!$E$4:$J$4,0),TRUE)","v":1},{"$f":"VLOOKUP(OFFSET($B:$B,,MATCH(W$4,$B$4:$F$4,0)-1),OFFSET('C. PoC Adj Factor Scoring'!$E$5:$J$282,,MATCH(W$4,'C. PoC Adj Factor Scoring'!$E$3:$AH$3,0)-1),MATCH(W$2&\" Score\",'C. PoC Adj Factor Scoring'!$E$4:$J$4,0),TRUE)","v":1},{"$f":"VLOOKUP(OFFSET($B:$B,,MATCH(X$4,$B$4:$F$4,0)-1),OFFSET('C. PoC Adj Factor Scoring'!$E$5:$J$282,,MATCH(X$4,'C. PoC Adj Factor Scoring'!$E$3:$AH$3,0)-1),MATCH(X$2&\" Score\",'C. PoC Adj Factor Scoring'!$E$4:$J$4,0),TRUE)","v":1},{"$f":"VLOOKUP(OFFSET($B:$B,,MATCH(Y$4,$B$4:$F$4,0)-1),OFFSET('C. PoC Adj Factor Scoring'!$E$5:$J$282,,MATCH(Y$4,'C. PoC Adj Factor Scoring'!$E$3:$AH$3,0)-1),MATCH(Y$2&\" Score\",'C. PoC Adj Factor Scoring'!$E$4:$J$4,0),TRUE)","v":1},{"$f":"VLOOKUP(OFFSET($B:$B,,MATCH(Z$4,$B$4:$F$4,0)-1),OFFSET('C. PoC Adj Factor Scoring'!$E$5:$J$282,,MATCH(Z$4,'C. PoC Adj Factor Scoring'!$E$3:$AH$3,0)-1),MATCH(Z$2&\" Score\",'C. PoC Adj Factor Scoring'!$E$4:$J$4,0),TRUE)","v":1},{"$f":"VLOOKUP(OFFSET($B:$B,,MATCH(AA$4,$B$4:$F$4,0)-1),OFFSET('C. PoC Adj Factor Scoring'!$E$5:$J$282,,MATCH(AA$4,'C. PoC Adj Factor Scoring'!$E$3:$AH$3,0)-1),MATCH(AA$2&\" Score\",'C. PoC Adj Factor Scoring'!$E$4:$J$4,0),TRUE)","v":3},{"$f":"VLOOKUP(OFFSET($B:$B,,MATCH(AB$4,$B$4:$F$4,0)-1),OFFSET('C. PoC Adj Factor Scoring'!$E$5:$J$282,,MATCH(AB$4,'C. PoC Adj Factor Scoring'!$E$3:$AH$3,0)-1),MATCH(AB$2&\" Score\",'C. PoC Adj Factor Scoring'!$E$4:$J$4,0),TRUE)","v":1},{"$f":"VLOOKUP(OFFSET($B:$B,,MATCH(AC$4,$B$4:$F$4,0)-1),OFFSET('C. PoC Adj Factor Scoring'!$E$5:$J$282,,MATCH(AC$4,'C. PoC Adj Factor Scoring'!$E$3:$AH$3,0)-1),MATCH(AC$2&\" Score\",'C. PoC Adj Factor Scoring'!$E$4:$J$4,0),TRUE)","v":1},{"$f":"VLOOKUP(OFFSET($B:$B,,MATCH(AD$4,$B$4:$F$4,0)-1),OFFSET('C. PoC Adj Factor Scoring'!$E$5:$J$282,,MATCH(AD$4,'C. PoC Adj Factor Scoring'!$E$3:$AH$3,0)-1),MATCH(AD$2&\" Score\",'C. PoC Adj Factor Scoring'!$E$4:$J$4,0),TRUE)","v":1},{"$f":"VLOOKUP(OFFSET($B:$B,,MATCH(AE$4,$B$4:$F$4,0)-1),OFFSET('C. PoC Adj Factor Scoring'!$E$5:$J$282,,MATCH(AE$4,'C. PoC Adj Factor Scoring'!$E$3:$AH$3,0)-1),MATCH(AE$2&\" Score\",'C. PoC Adj Factor Scoring'!$E$4:$J$4,0),TRUE)","v":1}]
[{"$f":"'A. Population Info'!A253","v":1000362345},{"$f":"'A. Population Info'!L253","v":"OIL"},{"$f":"'A. Population Info'!M253","v":0},{"$f":"'A. Population Info'!N253","v":0},{"$f":"'A. Population Info'!O253","v":0},{"$f":"'A. Population Info'!P253","v":0},{"$f":"VLOOKUP(OFFSET($B:$B,,MATCH(G$4,$B$4:$F$4,0)-1),OFFSET('C. PoC Adj Factor Scoring'!$E$5:$J$282,,MATCH(G$4,'C. PoC Adj Factor Scoring'!$E$3:$AH$3,0)-1),MATCH(G$2&\" Score\",'C. PoC Adj Factor Scoring'!$E$4:$J$4,0),TRUE)","v":4},{"$f":"VLOOKUP(OFFSET($B:$B,,MATCH(H$4,$B$4:$F$4,0)-1),OFFSET('C. PoC Adj Factor Scoring'!$E$5:$J$282,,MATCH(H$4,'C. PoC Adj Factor Scoring'!$E$3:$AH$3,0)-1),MATCH(H$2&\" Score\",'C. PoC Adj Factor Scoring'!$E$4:$J$4,0),TRUE)","v":1},{"$f":"VLOOKUP(OFFSET($B:$B,,MATCH(I$4,$B$4:$F$4,0)-1),OFFSET('C. PoC Adj Factor Scoring'!$E$5:$J$282,,MATCH(I$4,'C. PoC Adj Factor Scoring'!$E$3:$AH$3,0)-1),MATCH(I$2&\" Score\",'C. PoC Adj Factor Scoring'!$E$4:$J$4,0),TRUE)","v":1},{"$f":"VLOOKUP(OFFSET($B:$B,,MATCH(J$4,$B$4:$F$4,0)-1),OFFSET('C. PoC Adj Factor Scoring'!$E$5:$J$282,,MATCH(J$4,'C. PoC Adj Factor Scoring'!$E$3:$AH$3,0)-1),MATCH(J$2&\" Score\",'C. PoC Adj Factor Scoring'!$E$4:$J$4,0),TRUE)","v":1},{"$f":"VLOOKUP(OFFSET($B:$B,,MATCH(K$4,$B$4:$F$4,0)-1),OFFSET('C. PoC Adj Factor Scoring'!$E$5:$J$282,,MATCH(K$4,'C. PoC Adj Factor Scoring'!$E$3:$AH$3,0)-1),MATCH(K$2&\" Score\",'C. PoC Adj Factor Scoring'!$E$4:$J$4,0),TRUE)","v":1},{"$f":"VLOOKUP(OFFSET($B:$B,,MATCH(L$4,$B$4:$F$4,0)-1),OFFSET('C. PoC Adj Factor Scoring'!$E$5:$J$282,,MATCH(L$4,'C. PoC Adj Factor Scoring'!$E$3:$AH$3,0)-1),MATCH(L$2&\" Score\",'C. PoC Adj Factor Scoring'!$E$4:$J$4,0),TRUE)","v":1},{"$f":"VLOOKUP(OFFSET($B:$B,,MATCH(M$4,$B$4:$F$4,0)-1),OFFSET('C. PoC Adj Factor Scoring'!$E$5:$J$282,,MATCH(M$4,'C. PoC Adj Factor Scoring'!$E$3:$AH$3,0)-1),MATCH(M$2&\" Score\",'C. PoC Adj Factor Scoring'!$E$4:$J$4,0),TRUE)","v":1},{"$f":"VLOOKUP(OFFSET($B:$B,,MATCH(N$4,$B$4:$F$4,0)-1),OFFSET('C. PoC Adj Factor Scoring'!$E$5:$J$282,,MATCH(N$4,'C. PoC Adj Factor Scoring'!$E$3:$AH$3,0)-1),MATCH(N$2&\" Score\",'C. PoC Adj Factor Scoring'!$E$4:$J$4,0),TRUE)","v":1},{"$f":"VLOOKUP(OFFSET($B:$B,,MATCH(O$4,$B$4:$F$4,0)-1),OFFSET('C. PoC Adj Factor Scoring'!$E$5:$J$282,,MATCH(O$4,'C. PoC Adj Factor Scoring'!$E$3:$AH$3,0)-1),MATCH(O$2&\" Score\",'C. PoC Adj Factor Scoring'!$E$4:$J$4,0),TRUE)","v":1},{"$f":"VLOOKUP(OFFSET($B:$B,,MATCH(P$4,$B$4:$F$4,0)-1),OFFSET('C. PoC Adj Factor Scoring'!$E$5:$J$282,,MATCH(P$4,'C. PoC Adj Factor Scoring'!$E$3:$AH$3,0)-1),MATCH(P$2&\" Score\",'C. PoC Adj Factor Scoring'!$E$4:$J$4,0),TRUE)","v":1},{"$f":"VLOOKUP(OFFSET($B:$B,,MATCH(Q$4,$B$4:$F$4,0)-1),OFFSET('C. PoC Adj Factor Scoring'!$E$5:$J$282,,MATCH(Q$4,'C. PoC Adj Factor Scoring'!$E$3:$AH$3,0)-1),MATCH(Q$2&\" Score\",'C. PoC Adj Factor Scoring'!$E$4:$J$4,0),TRUE)","v":1},{"$f":"VLOOKUP(OFFSET($B:$B,,MATCH(R$4,$B$4:$F$4,0)-1),OFFSET('C. PoC Adj Factor Scoring'!$E$5:$J$282,,MATCH(R$4,'C. PoC Adj Factor Scoring'!$E$3:$AH$3,0)-1),MATCH(R$2&\" Score\",'C. PoC Adj Factor Scoring'!$E$4:$J$4,0),TRUE)","v":1},{"$f":"VLOOKUP(OFFSET($B:$B,,MATCH(S$4,$B$4:$F$4,0)-1),OFFSET('C. PoC Adj Factor Scoring'!$E$5:$J$282,,MATCH(S$4,'C. PoC Adj Factor Scoring'!$E$3:$AH$3,0)-1),MATCH(S$2&\" Score\",'C. PoC Adj Factor Scoring'!$E$4:$J$4,0),TRUE)","v":1},{"$f":"VLOOKUP(OFFSET($B:$B,,MATCH(T$4,$B$4:$F$4,0)-1),OFFSET('C. PoC Adj Factor Scoring'!$E$5:$J$282,,MATCH(T$4,'C. PoC Adj Factor Scoring'!$E$3:$AH$3,0)-1),MATCH(T$2&\" Score\",'C. PoC Adj Factor Scoring'!$E$4:$J$4,0),TRUE)","v":1},{"$f":"VLOOKUP(OFFSET($B:$B,,MATCH(U$4,$B$4:$F$4,0)-1),OFFSET('C. PoC Adj Factor Scoring'!$E$5:$J$282,,MATCH(U$4,'C. PoC Adj Factor Scoring'!$E$3:$AH$3,0)-1),MATCH(U$2&\" Score\",'C. PoC Adj Factor Scoring'!$E$4:$J$4,0),TRUE)","v":1},{"$f":"VLOOKUP(OFFSET($B:$B,,MATCH(V$4,$B$4:$F$4,0)-1),OFFSET('C. PoC Adj Factor Scoring'!$E$5:$J$282,,MATCH(V$4,'C. PoC Adj Factor Scoring'!$E$3:$AH$3,0)-1),MATCH(V$2&\" Score\",'C. PoC Adj Factor Scoring'!$E$4:$J$4,0),TRUE)","v":1},{"$f":"VLOOKUP(OFFSET($B:$B,,MATCH(W$4,$B$4:$F$4,0)-1),OFFSET('C. PoC Adj Factor Scoring'!$E$5:$J$282,,MATCH(W$4,'C. PoC Adj Factor Scoring'!$E$3:$AH$3,0)-1),MATCH(W$2&\" Score\",'C. PoC Adj Factor Scoring'!$E$4:$J$4,0),TRUE)","v":1},{"$f":"VLOOKUP(OFFSET($B:$B,,MATCH(X$4,$B$4:$F$4,0)-1),OFFSET('C. PoC Adj Factor Scoring'!$E$5:$J$282,,MATCH(X$4,'C. PoC Adj Factor Scoring'!$E$3:$AH$3,0)-1),MATCH(X$2&\" Score\",'C. PoC Adj Factor Scoring'!$E$4:$J$4,0),TRUE)","v":1},{"$f":"VLOOKUP(OFFSET($B:$B,,MATCH(Y$4,$B$4:$F$4,0)-1),OFFSET('C. PoC Adj Factor Scoring'!$E$5:$J$282,,MATCH(Y$4,'C. PoC Adj Factor Scoring'!$E$3:$AH$3,0)-1),MATCH(Y$2&\" Score\",'C. PoC Adj Factor Scoring'!$E$4:$J$4,0),TRUE)","v":1},{"$f":"VLOOKUP(OFFSET($B:$B,,MATCH(Z$4,$B$4:$F$4,0)-1),OFFSET('C. PoC Adj Factor Scoring'!$E$5:$J$282,,MATCH(Z$4,'C. PoC Adj Factor Scoring'!$E$3:$AH$3,0)-1),MATCH(Z$2&\" Score\",'C. PoC Adj Factor Scoring'!$E$4:$J$4,0),TRUE)","v":1},{"$f":"VLOOKUP(OFFSET($B:$B,,MATCH(AA$4,$B$4:$F$4,0)-1),OFFSET('C. PoC Adj Factor Scoring'!$E$5:$J$282,,MATCH(AA$4,'C. PoC Adj Factor Scoring'!$E$3:$AH$3,0)-1),MATCH(AA$2&\" Score\",'C. PoC Adj Factor Scoring'!$E$4:$J$4,0),TRUE)","v":3},{"$f":"VLOOKUP(OFFSET($B:$B,,MATCH(AB$4,$B$4:$F$4,0)-1),OFFSET('C. PoC Adj Factor Scoring'!$E$5:$J$282,,MATCH(AB$4,'C. PoC Adj Factor Scoring'!$E$3:$AH$3,0)-1),MATCH(AB$2&\" Score\",'C. PoC Adj Factor Scoring'!$E$4:$J$4,0),TRUE)","v":1},{"$f":"VLOOKUP(OFFSET($B:$B,,MATCH(AC$4,$B$4:$F$4,0)-1),OFFSET('C. PoC Adj Factor Scoring'!$E$5:$J$282,,MATCH(AC$4,'C. PoC Adj Factor Scoring'!$E$3:$AH$3,0)-1),MATCH(AC$2&\" Score\",'C. PoC Adj Factor Scoring'!$E$4:$J$4,0),TRUE)","v":1},{"$f":"VLOOKUP(OFFSET($B:$B,,MATCH(AD$4,$B$4:$F$4,0)-1),OFFSET('C. PoC Adj Factor Scoring'!$E$5:$J$282,,MATCH(AD$4,'C. PoC Adj Factor Scoring'!$E$3:$AH$3,0)-1),MATCH(AD$2&\" Score\",'C. PoC Adj Factor Scoring'!$E$4:$J$4,0),TRUE)","v":1},{"$f":"VLOOKUP(OFFSET($B:$B,,MATCH(AE$4,$B$4:$F$4,0)-1),OFFSET('C. PoC Adj Factor Scoring'!$E$5:$J$282,,MATCH(AE$4,'C. PoC Adj Factor Scoring'!$E$3:$AH$3,0)-1),MATCH(AE$2&\" Score\",'C. PoC Adj Factor Scoring'!$E$4:$J$4,0),TRUE)","v":1}]
[{"$f":"'A. Population Info'!A254","v":1000362379},{"$f":"'A. Population Info'!L254","v":"OIL"},{"$f":"'A. Population Info'!M254","v":0},{"$f":"'A. Population Info'!N254","v":0},{"$f":"'A. Population Info'!O254","v":0},{"$f":"'A. Population Info'!P254","v":0},{"$f":"VLOOKUP(OFFSET($B:$B,,MATCH(G$4,$B$4:$F$4,0)-1),OFFSET('C. PoC Adj Factor Scoring'!$E$5:$J$282,,MATCH(G$4,'C. PoC Adj Factor Scoring'!$E$3:$AH$3,0)-1),MATCH(G$2&\" Score\",'C. PoC Adj Factor Scoring'!$E$4:$J$4,0),TRUE)","v":4},{"$f":"VLOOKUP(OFFSET($B:$B,,MATCH(H$4,$B$4:$F$4,0)-1),OFFSET('C. PoC Adj Factor Scoring'!$E$5:$J$282,,MATCH(H$4,'C. PoC Adj Factor Scoring'!$E$3:$AH$3,0)-1),MATCH(H$2&\" Score\",'C. PoC Adj Factor Scoring'!$E$4:$J$4,0),TRUE)","v":1},{"$f":"VLOOKUP(OFFSET($B:$B,,MATCH(I$4,$B$4:$F$4,0)-1),OFFSET('C. PoC Adj Factor Scoring'!$E$5:$J$282,,MATCH(I$4,'C. PoC Adj Factor Scoring'!$E$3:$AH$3,0)-1),MATCH(I$2&\" Score\",'C. PoC Adj Factor Scoring'!$E$4:$J$4,0),TRUE)","v":1},{"$f":"VLOOKUP(OFFSET($B:$B,,MATCH(J$4,$B$4:$F$4,0)-1),OFFSET('C. PoC Adj Factor Scoring'!$E$5:$J$282,,MATCH(J$4,'C. PoC Adj Factor Scoring'!$E$3:$AH$3,0)-1),MATCH(J$2&\" Score\",'C. PoC Adj Factor Scoring'!$E$4:$J$4,0),TRUE)","v":1},{"$f":"VLOOKUP(OFFSET($B:$B,,MATCH(K$4,$B$4:$F$4,0)-1),OFFSET('C. PoC Adj Factor Scoring'!$E$5:$J$282,,MATCH(K$4,'C. PoC Adj Factor Scoring'!$E$3:$AH$3,0)-1),MATCH(K$2&\" Score\",'C. PoC Adj Factor Scoring'!$E$4:$J$4,0),TRUE)","v":1},{"$f":"VLOOKUP(OFFSET($B:$B,,MATCH(L$4,$B$4:$F$4,0)-1),OFFSET('C. PoC Adj Factor Scoring'!$E$5:$J$282,,MATCH(L$4,'C. PoC Adj Factor Scoring'!$E$3:$AH$3,0)-1),MATCH(L$2&\" Score\",'C. PoC Adj Factor Scoring'!$E$4:$J$4,0),TRUE)","v":1},{"$f":"VLOOKUP(OFFSET($B:$B,,MATCH(M$4,$B$4:$F$4,0)-1),OFFSET('C. PoC Adj Factor Scoring'!$E$5:$J$282,,MATCH(M$4,'C. PoC Adj Factor Scoring'!$E$3:$AH$3,0)-1),MATCH(M$2&\" Score\",'C. PoC Adj Factor Scoring'!$E$4:$J$4,0),TRUE)","v":1},{"$f":"VLOOKUP(OFFSET($B:$B,,MATCH(N$4,$B$4:$F$4,0)-1),OFFSET('C. PoC Adj Factor Scoring'!$E$5:$J$282,,MATCH(N$4,'C. PoC Adj Factor Scoring'!$E$3:$AH$3,0)-1),MATCH(N$2&\" Score\",'C. PoC Adj Factor Scoring'!$E$4:$J$4,0),TRUE)","v":1},{"$f":"VLOOKUP(OFFSET($B:$B,,MATCH(O$4,$B$4:$F$4,0)-1),OFFSET('C. PoC Adj Factor Scoring'!$E$5:$J$282,,MATCH(O$4,'C. PoC Adj Factor Scoring'!$E$3:$AH$3,0)-1),MATCH(O$2&\" Score\",'C. PoC Adj Factor Scoring'!$E$4:$J$4,0),TRUE)","v":1},{"$f":"VLOOKUP(OFFSET($B:$B,,MATCH(P$4,$B$4:$F$4,0)-1),OFFSET('C. PoC Adj Factor Scoring'!$E$5:$J$282,,MATCH(P$4,'C. PoC Adj Factor Scoring'!$E$3:$AH$3,0)-1),MATCH(P$2&\" Score\",'C. PoC Adj Factor Scoring'!$E$4:$J$4,0),TRUE)","v":1},{"$f":"VLOOKUP(OFFSET($B:$B,,MATCH(Q$4,$B$4:$F$4,0)-1),OFFSET('C. PoC Adj Factor Scoring'!$E$5:$J$282,,MATCH(Q$4,'C. PoC Adj Factor Scoring'!$E$3:$AH$3,0)-1),MATCH(Q$2&\" Score\",'C. PoC Adj Factor Scoring'!$E$4:$J$4,0),TRUE)","v":1},{"$f":"VLOOKUP(OFFSET($B:$B,,MATCH(R$4,$B$4:$F$4,0)-1),OFFSET('C. PoC Adj Factor Scoring'!$E$5:$J$282,,MATCH(R$4,'C. PoC Adj Factor Scoring'!$E$3:$AH$3,0)-1),MATCH(R$2&\" Score\",'C. PoC Adj Factor Scoring'!$E$4:$J$4,0),TRUE)","v":1},{"$f":"VLOOKUP(OFFSET($B:$B,,MATCH(S$4,$B$4:$F$4,0)-1),OFFSET('C. PoC Adj Factor Scoring'!$E$5:$J$282,,MATCH(S$4,'C. PoC Adj Factor Scoring'!$E$3:$AH$3,0)-1),MATCH(S$2&\" Score\",'C. PoC Adj Factor Scoring'!$E$4:$J$4,0),TRUE)","v":1},{"$f":"VLOOKUP(OFFSET($B:$B,,MATCH(T$4,$B$4:$F$4,0)-1),OFFSET('C. PoC Adj Factor Scoring'!$E$5:$J$282,,MATCH(T$4,'C. PoC Adj Factor Scoring'!$E$3:$AH$3,0)-1),MATCH(T$2&\" Score\",'C. PoC Adj Factor Scoring'!$E$4:$J$4,0),TRUE)","v":1},{"$f":"VLOOKUP(OFFSET($B:$B,,MATCH(U$4,$B$4:$F$4,0)-1),OFFSET('C. PoC Adj Factor Scoring'!$E$5:$J$282,,MATCH(U$4,'C. PoC Adj Factor Scoring'!$E$3:$AH$3,0)-1),MATCH(U$2&\" Score\",'C. PoC Adj Factor Scoring'!$E$4:$J$4,0),TRUE)","v":1},{"$f":"VLOOKUP(OFFSET($B:$B,,MATCH(V$4,$B$4:$F$4,0)-1),OFFSET('C. PoC Adj Factor Scoring'!$E$5:$J$282,,MATCH(V$4,'C. PoC Adj Factor Scoring'!$E$3:$AH$3,0)-1),MATCH(V$2&\" Score\",'C. PoC Adj Factor Scoring'!$E$4:$J$4,0),TRUE)","v":1},{"$f":"VLOOKUP(OFFSET($B:$B,,MATCH(W$4,$B$4:$F$4,0)-1),OFFSET('C. PoC Adj Factor Scoring'!$E$5:$J$282,,MATCH(W$4,'C. PoC Adj Factor Scoring'!$E$3:$AH$3,0)-1),MATCH(W$2&\" Score\",'C. PoC Adj Factor Scoring'!$E$4:$J$4,0),TRUE)","v":1},{"$f":"VLOOKUP(OFFSET($B:$B,,MATCH(X$4,$B$4:$F$4,0)-1),OFFSET('C. PoC Adj Factor Scoring'!$E$5:$J$282,,MATCH(X$4,'C. PoC Adj Factor Scoring'!$E$3:$AH$3,0)-1),MATCH(X$2&\" Score\",'C. PoC Adj Factor Scoring'!$E$4:$J$4,0),TRUE)","v":1},{"$f":"VLOOKUP(OFFSET($B:$B,,MATCH(Y$4,$B$4:$F$4,0)-1),OFFSET('C. PoC Adj Factor Scoring'!$E$5:$J$282,,MATCH(Y$4,'C. PoC Adj Factor Scoring'!$E$3:$AH$3,0)-1),MATCH(Y$2&\" Score\",'C. PoC Adj Factor Scoring'!$E$4:$J$4,0),TRUE)","v":1},{"$f":"VLOOKUP(OFFSET($B:$B,,MATCH(Z$4,$B$4:$F$4,0)-1),OFFSET('C. PoC Adj Factor Scoring'!$E$5:$J$282,,MATCH(Z$4,'C. PoC Adj Factor Scoring'!$E$3:$AH$3,0)-1),MATCH(Z$2&\" Score\",'C. PoC Adj Factor Scoring'!$E$4:$J$4,0),TRUE)","v":1},{"$f":"VLOOKUP(OFFSET($B:$B,,MATCH(AA$4,$B$4:$F$4,0)-1),OFFSET('C. PoC Adj Factor Scoring'!$E$5:$J$282,,MATCH(AA$4,'C. PoC Adj Factor Scoring'!$E$3:$AH$3,0)-1),MATCH(AA$2&\" Score\",'C. PoC Adj Factor Scoring'!$E$4:$J$4,0),TRUE)","v":3},{"$f":"VLOOKUP(OFFSET($B:$B,,MATCH(AB$4,$B$4:$F$4,0)-1),OFFSET('C. PoC Adj Factor Scoring'!$E$5:$J$282,,MATCH(AB$4,'C. PoC Adj Factor Scoring'!$E$3:$AH$3,0)-1),MATCH(AB$2&\" Score\",'C. PoC Adj Factor Scoring'!$E$4:$J$4,0),TRUE)","v":1},{"$f":"VLOOKUP(OFFSET($B:$B,,MATCH(AC$4,$B$4:$F$4,0)-1),OFFSET('C. PoC Adj Factor Scoring'!$E$5:$J$282,,MATCH(AC$4,'C. PoC Adj Factor Scoring'!$E$3:$AH$3,0)-1),MATCH(AC$2&\" Score\",'C. PoC Adj Factor Scoring'!$E$4:$J$4,0),TRUE)","v":1},{"$f":"VLOOKUP(OFFSET($B:$B,,MATCH(AD$4,$B$4:$F$4,0)-1),OFFSET('C. PoC Adj Factor Scoring'!$E$5:$J$282,,MATCH(AD$4,'C. PoC Adj Factor Scoring'!$E$3:$AH$3,0)-1),MATCH(AD$2&\" Score\",'C. PoC Adj Factor Scoring'!$E$4:$J$4,0),TRUE)","v":1},{"$f":"VLOOKUP(OFFSET($B:$B,,MATCH(AE$4,$B$4:$F$4,0)-1),OFFSET('C. PoC Adj Factor Scoring'!$E$5:$J$282,,MATCH(AE$4,'C. PoC Adj Factor Scoring'!$E$3:$AH$3,0)-1),MATCH(AE$2&\" Score\",'C. PoC Adj Factor Scoring'!$E$4:$J$4,0),TRUE)","v":1}]
[{"$f":"'A. Population Info'!A255","v":1000362439},{"$f":"'A. Population Info'!L255","v":"OIL"},{"$f":"'A. Population Info'!M255","v":0},{"$f":"'A. Population Info'!N255","v":0},{"$f":"'A. Population Info'!O255","v":0},{"$f":"'A. Population Info'!P255","v":0},{"$f":"VLOOKUP(OFFSET($B:$B,,MATCH(G$4,$B$4:$F$4,0)-1),OFFSET('C. PoC Adj Factor Scoring'!$E$5:$J$282,,MATCH(G$4,'C. PoC Adj Factor Scoring'!$E$3:$AH$3,0)-1),MATCH(G$2&\" Score\",'C. PoC Adj Factor Scoring'!$E$4:$J$4,0),TRUE)","v":4},{"$f":"VLOOKUP(OFFSET($B:$B,,MATCH(H$4,$B$4:$F$4,0)-1),OFFSET('C. PoC Adj Factor Scoring'!$E$5:$J$282,,MATCH(H$4,'C. PoC Adj Factor Scoring'!$E$3:$AH$3,0)-1),MATCH(H$2&\" Score\",'C. PoC Adj Factor Scoring'!$E$4:$J$4,0),TRUE)","v":1},{"$f":"VLOOKUP(OFFSET($B:$B,,MATCH(I$4,$B$4:$F$4,0)-1),OFFSET('C. PoC Adj Factor Scoring'!$E$5:$J$282,,MATCH(I$4,'C. PoC Adj Factor Scoring'!$E$3:$AH$3,0)-1),MATCH(I$2&\" Score\",'C. PoC Adj Factor Scoring'!$E$4:$J$4,0),TRUE)","v":1},{"$f":"VLOOKUP(OFFSET($B:$B,,MATCH(J$4,$B$4:$F$4,0)-1),OFFSET('C. PoC Adj Factor Scoring'!$E$5:$J$282,,MATCH(J$4,'C. PoC Adj Factor Scoring'!$E$3:$AH$3,0)-1),MATCH(J$2&\" Score\",'C. PoC Adj Factor Scoring'!$E$4:$J$4,0),TRUE)","v":1},{"$f":"VLOOKUP(OFFSET($B:$B,,MATCH(K$4,$B$4:$F$4,0)-1),OFFSET('C. PoC Adj Factor Scoring'!$E$5:$J$282,,MATCH(K$4,'C. PoC Adj Factor Scoring'!$E$3:$AH$3,0)-1),MATCH(K$2&\" Score\",'C. PoC Adj Factor Scoring'!$E$4:$J$4,0),TRUE)","v":1},{"$f":"VLOOKUP(OFFSET($B:$B,,MATCH(L$4,$B$4:$F$4,0)-1),OFFSET('C. PoC Adj Factor Scoring'!$E$5:$J$282,,MATCH(L$4,'C. PoC Adj Factor Scoring'!$E$3:$AH$3,0)-1),MATCH(L$2&\" Score\",'C. PoC Adj Factor Scoring'!$E$4:$J$4,0),TRUE)","v":1},{"$f":"VLOOKUP(OFFSET($B:$B,,MATCH(M$4,$B$4:$F$4,0)-1),OFFSET('C. PoC Adj Factor Scoring'!$E$5:$J$282,,MATCH(M$4,'C. PoC Adj Factor Scoring'!$E$3:$AH$3,0)-1),MATCH(M$2&\" Score\",'C. PoC Adj Factor Scoring'!$E$4:$J$4,0),TRUE)","v":1},{"$f":"VLOOKUP(OFFSET($B:$B,,MATCH(N$4,$B$4:$F$4,0)-1),OFFSET('C. PoC Adj Factor Scoring'!$E$5:$J$282,,MATCH(N$4,'C. PoC Adj Factor Scoring'!$E$3:$AH$3,0)-1),MATCH(N$2&\" Score\",'C. PoC Adj Factor Scoring'!$E$4:$J$4,0),TRUE)","v":1},{"$f":"VLOOKUP(OFFSET($B:$B,,MATCH(O$4,$B$4:$F$4,0)-1),OFFSET('C. PoC Adj Factor Scoring'!$E$5:$J$282,,MATCH(O$4,'C. PoC Adj Factor Scoring'!$E$3:$AH$3,0)-1),MATCH(O$2&\" Score\",'C. PoC Adj Factor Scoring'!$E$4:$J$4,0),TRUE)","v":1},{"$f":"VLOOKUP(OFFSET($B:$B,,MATCH(P$4,$B$4:$F$4,0)-1),OFFSET('C. PoC Adj Factor Scoring'!$E$5:$J$282,,MATCH(P$4,'C. PoC Adj Factor Scoring'!$E$3:$AH$3,0)-1),MATCH(P$2&\" Score\",'C. PoC Adj Factor Scoring'!$E$4:$J$4,0),TRUE)","v":1},{"$f":"VLOOKUP(OFFSET($B:$B,,MATCH(Q$4,$B$4:$F$4,0)-1),OFFSET('C. PoC Adj Factor Scoring'!$E$5:$J$282,,MATCH(Q$4,'C. PoC Adj Factor Scoring'!$E$3:$AH$3,0)-1),MATCH(Q$2&\" Score\",'C. PoC Adj Factor Scoring'!$E$4:$J$4,0),TRUE)","v":1},{"$f":"VLOOKUP(OFFSET($B:$B,,MATCH(R$4,$B$4:$F$4,0)-1),OFFSET('C. PoC Adj Factor Scoring'!$E$5:$J$282,,MATCH(R$4,'C. PoC Adj Factor Scoring'!$E$3:$AH$3,0)-1),MATCH(R$2&\" Score\",'C. PoC Adj Factor Scoring'!$E$4:$J$4,0),TRUE)","v":1},{"$f":"VLOOKUP(OFFSET($B:$B,,MATCH(S$4,$B$4:$F$4,0)-1),OFFSET('C. PoC Adj Factor Scoring'!$E$5:$J$282,,MATCH(S$4,'C. PoC Adj Factor Scoring'!$E$3:$AH$3,0)-1),MATCH(S$2&\" Score\",'C. PoC Adj Factor Scoring'!$E$4:$J$4,0),TRUE)","v":1},{"$f":"VLOOKUP(OFFSET($B:$B,,MATCH(T$4,$B$4:$F$4,0)-1),OFFSET('C. PoC Adj Factor Scoring'!$E$5:$J$282,,MATCH(T$4,'C. PoC Adj Factor Scoring'!$E$3:$AH$3,0)-1),MATCH(T$2&\" Score\",'C. PoC Adj Factor Scoring'!$E$4:$J$4,0),TRUE)","v":1},{"$f":"VLOOKUP(OFFSET($B:$B,,MATCH(U$4,$B$4:$F$4,0)-1),OFFSET('C. PoC Adj Factor Scoring'!$E$5:$J$282,,MATCH(U$4,'C. PoC Adj Factor Scoring'!$E$3:$AH$3,0)-1),MATCH(U$2&\" Score\",'C. PoC Adj Factor Scoring'!$E$4:$J$4,0),TRUE)","v":1},{"$f":"VLOOKUP(OFFSET($B:$B,,MATCH(V$4,$B$4:$F$4,0)-1),OFFSET('C. PoC Adj Factor Scoring'!$E$5:$J$282,,MATCH(V$4,'C. PoC Adj Factor Scoring'!$E$3:$AH$3,0)-1),MATCH(V$2&\" Score\",'C. PoC Adj Factor Scoring'!$E$4:$J$4,0),TRUE)","v":1},{"$f":"VLOOKUP(OFFSET($B:$B,,MATCH(W$4,$B$4:$F$4,0)-1),OFFSET('C. PoC Adj Factor Scoring'!$E$5:$J$282,,MATCH(W$4,'C. PoC Adj Factor Scoring'!$E$3:$AH$3,0)-1),MATCH(W$2&\" Score\",'C. PoC Adj Factor Scoring'!$E$4:$J$4,0),TRUE)","v":1},{"$f":"VLOOKUP(OFFSET($B:$B,,MATCH(X$4,$B$4:$F$4,0)-1),OFFSET('C. PoC Adj Factor Scoring'!$E$5:$J$282,,MATCH(X$4,'C. PoC Adj Factor Scoring'!$E$3:$AH$3,0)-1),MATCH(X$2&\" Score\",'C. PoC Adj Factor Scoring'!$E$4:$J$4,0),TRUE)","v":1},{"$f":"VLOOKUP(OFFSET($B:$B,,MATCH(Y$4,$B$4:$F$4,0)-1),OFFSET('C. PoC Adj Factor Scoring'!$E$5:$J$282,,MATCH(Y$4,'C. PoC Adj Factor Scoring'!$E$3:$AH$3,0)-1),MATCH(Y$2&\" Score\",'C. PoC Adj Factor Scoring'!$E$4:$J$4,0),TRUE)","v":1},{"$f":"VLOOKUP(OFFSET($B:$B,,MATCH(Z$4,$B$4:$F$4,0)-1),OFFSET('C. PoC Adj Factor Scoring'!$E$5:$J$282,,MATCH(Z$4,'C. PoC Adj Factor Scoring'!$E$3:$AH$3,0)-1),MATCH(Z$2&\" Score\",'C. PoC Adj Factor Scoring'!$E$4:$J$4,0),TRUE)","v":1},{"$f":"VLOOKUP(OFFSET($B:$B,,MATCH(AA$4,$B$4:$F$4,0)-1),OFFSET('C. PoC Adj Factor Scoring'!$E$5:$J$282,,MATCH(AA$4,'C. PoC Adj Factor Scoring'!$E$3:$AH$3,0)-1),MATCH(AA$2&\" Score\",'C. PoC Adj Factor Scoring'!$E$4:$J$4,0),TRUE)","v":3},{"$f":"VLOOKUP(OFFSET($B:$B,,MATCH(AB$4,$B$4:$F$4,0)-1),OFFSET('C. PoC Adj Factor Scoring'!$E$5:$J$282,,MATCH(AB$4,'C. PoC Adj Factor Scoring'!$E$3:$AH$3,0)-1),MATCH(AB$2&\" Score\",'C. PoC Adj Factor Scoring'!$E$4:$J$4,0),TRUE)","v":1},{"$f":"VLOOKUP(OFFSET($B:$B,,MATCH(AC$4,$B$4:$F$4,0)-1),OFFSET('C. PoC Adj Factor Scoring'!$E$5:$J$282,,MATCH(AC$4,'C. PoC Adj Factor Scoring'!$E$3:$AH$3,0)-1),MATCH(AC$2&\" Score\",'C. PoC Adj Factor Scoring'!$E$4:$J$4,0),TRUE)","v":1},{"$f":"VLOOKUP(OFFSET($B:$B,,MATCH(AD$4,$B$4:$F$4,0)-1),OFFSET('C. PoC Adj Factor Scoring'!$E$5:$J$282,,MATCH(AD$4,'C. PoC Adj Factor Scoring'!$E$3:$AH$3,0)-1),MATCH(AD$2&\" Score\",'C. PoC Adj Factor Scoring'!$E$4:$J$4,0),TRUE)","v":1},{"$f":"VLOOKUP(OFFSET($B:$B,,MATCH(AE$4,$B$4:$F$4,0)-1),OFFSET('C. PoC Adj Factor Scoring'!$E$5:$J$282,,MATCH(AE$4,'C. PoC Adj Factor Scoring'!$E$3:$AH$3,0)-1),MATCH(AE$2&\" Score\",'C. PoC Adj Factor Scoring'!$E$4:$J$4,0),TRUE)","v":1}]
[{"$f":"'A. Population Info'!A256","v":1000362467},{"$f":"'A. Population Info'!L256","v":"OIL"},{"$f":"'A. Population Info'!M256","v":0},{"$f":"'A. Population Info'!N256","v":0},{"$f":"'A. Population Info'!O256","v":0},{"$f":"'A. Population Info'!P256","v":0},{"$f":"VLOOKUP(OFFSET($B:$B,,MATCH(G$4,$B$4:$F$4,0)-1),OFFSET('C. PoC Adj Factor Scoring'!$E$5:$J$282,,MATCH(G$4,'C. PoC Adj Factor Scoring'!$E$3:$AH$3,0)-1),MATCH(G$2&\" Score\",'C. PoC Adj Factor Scoring'!$E$4:$J$4,0),TRUE)","v":4},{"$f":"VLOOKUP(OFFSET($B:$B,,MATCH(H$4,$B$4:$F$4,0)-1),OFFSET('C. PoC Adj Factor Scoring'!$E$5:$J$282,,MATCH(H$4,'C. PoC Adj Factor Scoring'!$E$3:$AH$3,0)-1),MATCH(H$2&\" Score\",'C. PoC Adj Factor Scoring'!$E$4:$J$4,0),TRUE)","v":1},{"$f":"VLOOKUP(OFFSET($B:$B,,MATCH(I$4,$B$4:$F$4,0)-1),OFFSET('C. PoC Adj Factor Scoring'!$E$5:$J$282,,MATCH(I$4,'C. PoC Adj Factor Scoring'!$E$3:$AH$3,0)-1),MATCH(I$2&\" Score\",'C. PoC Adj Factor Scoring'!$E$4:$J$4,0),TRUE)","v":1},{"$f":"VLOOKUP(OFFSET($B:$B,,MATCH(J$4,$B$4:$F$4,0)-1),OFFSET('C. PoC Adj Factor Scoring'!$E$5:$J$282,,MATCH(J$4,'C. PoC Adj Factor Scoring'!$E$3:$AH$3,0)-1),MATCH(J$2&\" Score\",'C. PoC Adj Factor Scoring'!$E$4:$J$4,0),TRUE)","v":1},{"$f":"VLOOKUP(OFFSET($B:$B,,MATCH(K$4,$B$4:$F$4,0)-1),OFFSET('C. PoC Adj Factor Scoring'!$E$5:$J$282,,MATCH(K$4,'C. PoC Adj Factor Scoring'!$E$3:$AH$3,0)-1),MATCH(K$2&\" Score\",'C. PoC Adj Factor Scoring'!$E$4:$J$4,0),TRUE)","v":1},{"$f":"VLOOKUP(OFFSET($B:$B,,MATCH(L$4,$B$4:$F$4,0)-1),OFFSET('C. PoC Adj Factor Scoring'!$E$5:$J$282,,MATCH(L$4,'C. PoC Adj Factor Scoring'!$E$3:$AH$3,0)-1),MATCH(L$2&\" Score\",'C. PoC Adj Factor Scoring'!$E$4:$J$4,0),TRUE)","v":1},{"$f":"VLOOKUP(OFFSET($B:$B,,MATCH(M$4,$B$4:$F$4,0)-1),OFFSET('C. PoC Adj Factor Scoring'!$E$5:$J$282,,MATCH(M$4,'C. PoC Adj Factor Scoring'!$E$3:$AH$3,0)-1),MATCH(M$2&\" Score\",'C. PoC Adj Factor Scoring'!$E$4:$J$4,0),TRUE)","v":1},{"$f":"VLOOKUP(OFFSET($B:$B,,MATCH(N$4,$B$4:$F$4,0)-1),OFFSET('C. PoC Adj Factor Scoring'!$E$5:$J$282,,MATCH(N$4,'C. PoC Adj Factor Scoring'!$E$3:$AH$3,0)-1),MATCH(N$2&\" Score\",'C. PoC Adj Factor Scoring'!$E$4:$J$4,0),TRUE)","v":1},{"$f":"VLOOKUP(OFFSET($B:$B,,MATCH(O$4,$B$4:$F$4,0)-1),OFFSET('C. PoC Adj Factor Scoring'!$E$5:$J$282,,MATCH(O$4,'C. PoC Adj Factor Scoring'!$E$3:$AH$3,0)-1),MATCH(O$2&\" Score\",'C. PoC Adj Factor Scoring'!$E$4:$J$4,0),TRUE)","v":1},{"$f":"VLOOKUP(OFFSET($B:$B,,MATCH(P$4,$B$4:$F$4,0)-1),OFFSET('C. PoC Adj Factor Scoring'!$E$5:$J$282,,MATCH(P$4,'C. PoC Adj Factor Scoring'!$E$3:$AH$3,0)-1),MATCH(P$2&\" Score\",'C. PoC Adj Factor Scoring'!$E$4:$J$4,0),TRUE)","v":1},{"$f":"VLOOKUP(OFFSET($B:$B,,MATCH(Q$4,$B$4:$F$4,0)-1),OFFSET('C. PoC Adj Factor Scoring'!$E$5:$J$282,,MATCH(Q$4,'C. PoC Adj Factor Scoring'!$E$3:$AH$3,0)-1),MATCH(Q$2&\" Score\",'C. PoC Adj Factor Scoring'!$E$4:$J$4,0),TRUE)","v":1},{"$f":"VLOOKUP(OFFSET($B:$B,,MATCH(R$4,$B$4:$F$4,0)-1),OFFSET('C. PoC Adj Factor Scoring'!$E$5:$J$282,,MATCH(R$4,'C. PoC Adj Factor Scoring'!$E$3:$AH$3,0)-1),MATCH(R$2&\" Score\",'C. PoC Adj Factor Scoring'!$E$4:$J$4,0),TRUE)","v":1},{"$f":"VLOOKUP(OFFSET($B:$B,,MATCH(S$4,$B$4:$F$4,0)-1),OFFSET('C. PoC Adj Factor Scoring'!$E$5:$J$282,,MATCH(S$4,'C. PoC Adj Factor Scoring'!$E$3:$AH$3,0)-1),MATCH(S$2&\" Score\",'C. PoC Adj Factor Scoring'!$E$4:$J$4,0),TRUE)","v":1},{"$f":"VLOOKUP(OFFSET($B:$B,,MATCH(T$4,$B$4:$F$4,0)-1),OFFSET('C. PoC Adj Factor Scoring'!$E$5:$J$282,,MATCH(T$4,'C. PoC Adj Factor Scoring'!$E$3:$AH$3,0)-1),MATCH(T$2&\" Score\",'C. PoC Adj Factor Scoring'!$E$4:$J$4,0),TRUE)","v":1},{"$f":"VLOOKUP(OFFSET($B:$B,,MATCH(U$4,$B$4:$F$4,0)-1),OFFSET('C. PoC Adj Factor Scoring'!$E$5:$J$282,,MATCH(U$4,'C. PoC Adj Factor Scoring'!$E$3:$AH$3,0)-1),MATCH(U$2&\" Score\",'C. PoC Adj Factor Scoring'!$E$4:$J$4,0),TRUE)","v":1},{"$f":"VLOOKUP(OFFSET($B:$B,,MATCH(V$4,$B$4:$F$4,0)-1),OFFSET('C. PoC Adj Factor Scoring'!$E$5:$J$282,,MATCH(V$4,'C. PoC Adj Factor Scoring'!$E$3:$AH$3,0)-1),MATCH(V$2&\" Score\",'C. PoC Adj Factor Scoring'!$E$4:$J$4,0),TRUE)","v":1},{"$f":"VLOOKUP(OFFSET($B:$B,,MATCH(W$4,$B$4:$F$4,0)-1),OFFSET('C. PoC Adj Factor Scoring'!$E$5:$J$282,,MATCH(W$4,'C. PoC Adj Factor Scoring'!$E$3:$AH$3,0)-1),MATCH(W$2&\" Score\",'C. PoC Adj Factor Scoring'!$E$4:$J$4,0),TRUE)","v":1},{"$f":"VLOOKUP(OFFSET($B:$B,,MATCH(X$4,$B$4:$F$4,0)-1),OFFSET('C. PoC Adj Factor Scoring'!$E$5:$J$282,,MATCH(X$4,'C. PoC Adj Factor Scoring'!$E$3:$AH$3,0)-1),MATCH(X$2&\" Score\",'C. PoC Adj Factor Scoring'!$E$4:$J$4,0),TRUE)","v":1},{"$f":"VLOOKUP(OFFSET($B:$B,,MATCH(Y$4,$B$4:$F$4,0)-1),OFFSET('C. PoC Adj Factor Scoring'!$E$5:$J$282,,MATCH(Y$4,'C. PoC Adj Factor Scoring'!$E$3:$AH$3,0)-1),MATCH(Y$2&\" Score\",'C. PoC Adj Factor Scoring'!$E$4:$J$4,0),TRUE)","v":1},{"$f":"VLOOKUP(OFFSET($B:$B,,MATCH(Z$4,$B$4:$F$4,0)-1),OFFSET('C. PoC Adj Factor Scoring'!$E$5:$J$282,,MATCH(Z$4,'C. PoC Adj Factor Scoring'!$E$3:$AH$3,0)-1),MATCH(Z$2&\" Score\",'C. PoC Adj Factor Scoring'!$E$4:$J$4,0),TRUE)","v":1},{"$f":"VLOOKUP(OFFSET($B:$B,,MATCH(AA$4,$B$4:$F$4,0)-1),OFFSET('C. PoC Adj Factor Scoring'!$E$5:$J$282,,MATCH(AA$4,'C. PoC Adj Factor Scoring'!$E$3:$AH$3,0)-1),MATCH(AA$2&\" Score\",'C. PoC Adj Factor Scoring'!$E$4:$J$4,0),TRUE)","v":3},{"$f":"VLOOKUP(OFFSET($B:$B,,MATCH(AB$4,$B$4:$F$4,0)-1),OFFSET('C. PoC Adj Factor Scoring'!$E$5:$J$282,,MATCH(AB$4,'C. PoC Adj Factor Scoring'!$E$3:$AH$3,0)-1),MATCH(AB$2&\" Score\",'C. PoC Adj Factor Scoring'!$E$4:$J$4,0),TRUE)","v":1},{"$f":"VLOOKUP(OFFSET($B:$B,,MATCH(AC$4,$B$4:$F$4,0)-1),OFFSET('C. PoC Adj Factor Scoring'!$E$5:$J$282,,MATCH(AC$4,'C. PoC Adj Factor Scoring'!$E$3:$AH$3,0)-1),MATCH(AC$2&\" Score\",'C. PoC Adj Factor Scoring'!$E$4:$J$4,0),TRUE)","v":1},{"$f":"VLOOKUP(OFFSET($B:$B,,MATCH(AD$4,$B$4:$F$4,0)-1),OFFSET('C. PoC Adj Factor Scoring'!$E$5:$J$282,,MATCH(AD$4,'C. PoC Adj Factor Scoring'!$E$3:$AH$3,0)-1),MATCH(AD$2&\" Score\",'C. PoC Adj Factor Scoring'!$E$4:$J$4,0),TRUE)","v":1},{"$f":"VLOOKUP(OFFSET($B:$B,,MATCH(AE$4,$B$4:$F$4,0)-1),OFFSET('C. PoC Adj Factor Scoring'!$E$5:$J$282,,MATCH(AE$4,'C. PoC Adj Factor Scoring'!$E$3:$AH$3,0)-1),MATCH(AE$2&\" Score\",'C. PoC Adj Factor Scoring'!$E$4:$J$4,0),TRUE)","v":1}]
[{"$f":"'A. Population Info'!A257","v":1000362497},{"$f":"'A. Population Info'!L257","v":"OIL"},{"$f":"'A. Population Info'!M257","v":0},{"$f":"'A. Population Info'!N257","v":0},{"$f":"'A. Population Info'!O257","v":0},{"$f":"'A. Population Info'!P257","v":0},{"$f":"VLOOKUP(OFFSET($B:$B,,MATCH(G$4,$B$4:$F$4,0)-1),OFFSET('C. PoC Adj Factor Scoring'!$E$5:$J$282,,MATCH(G$4,'C. PoC Adj Factor Scoring'!$E$3:$AH$3,0)-1),MATCH(G$2&\" Score\",'C. PoC Adj Factor Scoring'!$E$4:$J$4,0),TRUE)","v":4},{"$f":"VLOOKUP(OFFSET($B:$B,,MATCH(H$4,$B$4:$F$4,0)-1),OFFSET('C. PoC Adj Factor Scoring'!$E$5:$J$282,,MATCH(H$4,'C. PoC Adj Factor Scoring'!$E$3:$AH$3,0)-1),MATCH(H$2&\" Score\",'C. PoC Adj Factor Scoring'!$E$4:$J$4,0),TRUE)","v":1},{"$f":"VLOOKUP(OFFSET($B:$B,,MATCH(I$4,$B$4:$F$4,0)-1),OFFSET('C. PoC Adj Factor Scoring'!$E$5:$J$282,,MATCH(I$4,'C. PoC Adj Factor Scoring'!$E$3:$AH$3,0)-1),MATCH(I$2&\" Score\",'C. PoC Adj Factor Scoring'!$E$4:$J$4,0),TRUE)","v":1},{"$f":"VLOOKUP(OFFSET($B:$B,,MATCH(J$4,$B$4:$F$4,0)-1),OFFSET('C. PoC Adj Factor Scoring'!$E$5:$J$282,,MATCH(J$4,'C. PoC Adj Factor Scoring'!$E$3:$AH$3,0)-1),MATCH(J$2&\" Score\",'C. PoC Adj Factor Scoring'!$E$4:$J$4,0),TRUE)","v":1},{"$f":"VLOOKUP(OFFSET($B:$B,,MATCH(K$4,$B$4:$F$4,0)-1),OFFSET('C. PoC Adj Factor Scoring'!$E$5:$J$282,,MATCH(K$4,'C. PoC Adj Factor Scoring'!$E$3:$AH$3,0)-1),MATCH(K$2&\" Score\",'C. PoC Adj Factor Scoring'!$E$4:$J$4,0),TRUE)","v":1},{"$f":"VLOOKUP(OFFSET($B:$B,,MATCH(L$4,$B$4:$F$4,0)-1),OFFSET('C. PoC Adj Factor Scoring'!$E$5:$J$282,,MATCH(L$4,'C. PoC Adj Factor Scoring'!$E$3:$AH$3,0)-1),MATCH(L$2&\" Score\",'C. PoC Adj Factor Scoring'!$E$4:$J$4,0),TRUE)","v":1},{"$f":"VLOOKUP(OFFSET($B:$B,,MATCH(M$4,$B$4:$F$4,0)-1),OFFSET('C. PoC Adj Factor Scoring'!$E$5:$J$282,,MATCH(M$4,'C. PoC Adj Factor Scoring'!$E$3:$AH$3,0)-1),MATCH(M$2&\" Score\",'C. PoC Adj Factor Scoring'!$E$4:$J$4,0),TRUE)","v":1},{"$f":"VLOOKUP(OFFSET($B:$B,,MATCH(N$4,$B$4:$F$4,0)-1),OFFSET('C. PoC Adj Factor Scoring'!$E$5:$J$282,,MATCH(N$4,'C. PoC Adj Factor Scoring'!$E$3:$AH$3,0)-1),MATCH(N$2&\" Score\",'C. PoC Adj Factor Scoring'!$E$4:$J$4,0),TRUE)","v":1},{"$f":"VLOOKUP(OFFSET($B:$B,,MATCH(O$4,$B$4:$F$4,0)-1),OFFSET('C. PoC Adj Factor Scoring'!$E$5:$J$282,,MATCH(O$4,'C. PoC Adj Factor Scoring'!$E$3:$AH$3,0)-1),MATCH(O$2&\" Score\",'C. PoC Adj Factor Scoring'!$E$4:$J$4,0),TRUE)","v":1},{"$f":"VLOOKUP(OFFSET($B:$B,,MATCH(P$4,$B$4:$F$4,0)-1),OFFSET('C. PoC Adj Factor Scoring'!$E$5:$J$282,,MATCH(P$4,'C. PoC Adj Factor Scoring'!$E$3:$AH$3,0)-1),MATCH(P$2&\" Score\",'C. PoC Adj Factor Scoring'!$E$4:$J$4,0),TRUE)","v":1},{"$f":"VLOOKUP(OFFSET($B:$B,,MATCH(Q$4,$B$4:$F$4,0)-1),OFFSET('C. PoC Adj Factor Scoring'!$E$5:$J$282,,MATCH(Q$4,'C. PoC Adj Factor Scoring'!$E$3:$AH$3,0)-1),MATCH(Q$2&\" Score\",'C. PoC Adj Factor Scoring'!$E$4:$J$4,0),TRUE)","v":1},{"$f":"VLOOKUP(OFFSET($B:$B,,MATCH(R$4,$B$4:$F$4,0)-1),OFFSET('C. PoC Adj Factor Scoring'!$E$5:$J$282,,MATCH(R$4,'C. PoC Adj Factor Scoring'!$E$3:$AH$3,0)-1),MATCH(R$2&\" Score\",'C. PoC Adj Factor Scoring'!$E$4:$J$4,0),TRUE)","v":1},{"$f":"VLOOKUP(OFFSET($B:$B,,MATCH(S$4,$B$4:$F$4,0)-1),OFFSET('C. PoC Adj Factor Scoring'!$E$5:$J$282,,MATCH(S$4,'C. PoC Adj Factor Scoring'!$E$3:$AH$3,0)-1),MATCH(S$2&\" Score\",'C. PoC Adj Factor Scoring'!$E$4:$J$4,0),TRUE)","v":1},{"$f":"VLOOKUP(OFFSET($B:$B,,MATCH(T$4,$B$4:$F$4,0)-1),OFFSET('C. PoC Adj Factor Scoring'!$E$5:$J$282,,MATCH(T$4,'C. PoC Adj Factor Scoring'!$E$3:$AH$3,0)-1),MATCH(T$2&\" Score\",'C. PoC Adj Factor Scoring'!$E$4:$J$4,0),TRUE)","v":1},{"$f":"VLOOKUP(OFFSET($B:$B,,MATCH(U$4,$B$4:$F$4,0)-1),OFFSET('C. PoC Adj Factor Scoring'!$E$5:$J$282,,MATCH(U$4,'C. PoC Adj Factor Scoring'!$E$3:$AH$3,0)-1),MATCH(U$2&\" Score\",'C. PoC Adj Factor Scoring'!$E$4:$J$4,0),TRUE)","v":1},{"$f":"VLOOKUP(OFFSET($B:$B,,MATCH(V$4,$B$4:$F$4,0)-1),OFFSET('C. PoC Adj Factor Scoring'!$E$5:$J$282,,MATCH(V$4,'C. PoC Adj Factor Scoring'!$E$3:$AH$3,0)-1),MATCH(V$2&\" Score\",'C. PoC Adj Factor Scoring'!$E$4:$J$4,0),TRUE)","v":1},{"$f":"VLOOKUP(OFFSET($B:$B,,MATCH(W$4,$B$4:$F$4,0)-1),OFFSET('C. PoC Adj Factor Scoring'!$E$5:$J$282,,MATCH(W$4,'C. PoC Adj Factor Scoring'!$E$3:$AH$3,0)-1),MATCH(W$2&\" Score\",'C. PoC Adj Factor Scoring'!$E$4:$J$4,0),TRUE)","v":1},{"$f":"VLOOKUP(OFFSET($B:$B,,MATCH(X$4,$B$4:$F$4,0)-1),OFFSET('C. PoC Adj Factor Scoring'!$E$5:$J$282,,MATCH(X$4,'C. PoC Adj Factor Scoring'!$E$3:$AH$3,0)-1),MATCH(X$2&\" Score\",'C. PoC Adj Factor Scoring'!$E$4:$J$4,0),TRUE)","v":1},{"$f":"VLOOKUP(OFFSET($B:$B,,MATCH(Y$4,$B$4:$F$4,0)-1),OFFSET('C. PoC Adj Factor Scoring'!$E$5:$J$282,,MATCH(Y$4,'C. PoC Adj Factor Scoring'!$E$3:$AH$3,0)-1),MATCH(Y$2&\" Score\",'C. PoC Adj Factor Scoring'!$E$4:$J$4,0),TRUE)","v":1},{"$f":"VLOOKUP(OFFSET($B:$B,,MATCH(Z$4,$B$4:$F$4,0)-1),OFFSET('C. PoC Adj Factor Scoring'!$E$5:$J$282,,MATCH(Z$4,'C. PoC Adj Factor Scoring'!$E$3:$AH$3,0)-1),MATCH(Z$2&\" Score\",'C. PoC Adj Factor Scoring'!$E$4:$J$4,0),TRUE)","v":1},{"$f":"VLOOKUP(OFFSET($B:$B,,MATCH(AA$4,$B$4:$F$4,0)-1),OFFSET('C. PoC Adj Factor Scoring'!$E$5:$J$282,,MATCH(AA$4,'C. PoC Adj Factor Scoring'!$E$3:$AH$3,0)-1),MATCH(AA$2&\" Score\",'C. PoC Adj Factor Scoring'!$E$4:$J$4,0),TRUE)","v":3},{"$f":"VLOOKUP(OFFSET($B:$B,,MATCH(AB$4,$B$4:$F$4,0)-1),OFFSET('C. PoC Adj Factor Scoring'!$E$5:$J$282,,MATCH(AB$4,'C. PoC Adj Factor Scoring'!$E$3:$AH$3,0)-1),MATCH(AB$2&\" Score\",'C. PoC Adj Factor Scoring'!$E$4:$J$4,0),TRUE)","v":1},{"$f":"VLOOKUP(OFFSET($B:$B,,MATCH(AC$4,$B$4:$F$4,0)-1),OFFSET('C. PoC Adj Factor Scoring'!$E$5:$J$282,,MATCH(AC$4,'C. PoC Adj Factor Scoring'!$E$3:$AH$3,0)-1),MATCH(AC$2&\" Score\",'C. PoC Adj Factor Scoring'!$E$4:$J$4,0),TRUE)","v":1},{"$f":"VLOOKUP(OFFSET($B:$B,,MATCH(AD$4,$B$4:$F$4,0)-1),OFFSET('C. PoC Adj Factor Scoring'!$E$5:$J$282,,MATCH(AD$4,'C. PoC Adj Factor Scoring'!$E$3:$AH$3,0)-1),MATCH(AD$2&\" Score\",'C. PoC Adj Factor Scoring'!$E$4:$J$4,0),TRUE)","v":1},{"$f":"VLOOKUP(OFFSET($B:$B,,MATCH(AE$4,$B$4:$F$4,0)-1),OFFSET('C. PoC Adj Factor Scoring'!$E$5:$J$282,,MATCH(AE$4,'C. PoC Adj Factor Scoring'!$E$3:$AH$3,0)-1),MATCH(AE$2&\" Score\",'C. PoC Adj Factor Scoring'!$E$4:$J$4,0),TRUE)","v":1}]
[{"$f":"'A. Population Info'!A258","v":1000362528},{"$f":"'A. Population Info'!L258","v":"OIL"},{"$f":"'A. Population Info'!M258","v":0},{"$f":"'A. Population Info'!N258","v":0},{"$f":"'A. Population Info'!O258","v":0},{"$f":"'A. Population Info'!P258","v":0},{"$f":"VLOOKUP(OFFSET($B:$B,,MATCH(G$4,$B$4:$F$4,0)-1),OFFSET('C. PoC Adj Factor Scoring'!$E$5:$J$282,,MATCH(G$4,'C. PoC Adj Factor Scoring'!$E$3:$AH$3,0)-1),MATCH(G$2&\" Score\",'C. PoC Adj Factor Scoring'!$E$4:$J$4,0),TRUE)","v":4},{"$f":"VLOOKUP(OFFSET($B:$B,,MATCH(H$4,$B$4:$F$4,0)-1),OFFSET('C. PoC Adj Factor Scoring'!$E$5:$J$282,,MATCH(H$4,'C. PoC Adj Factor Scoring'!$E$3:$AH$3,0)-1),MATCH(H$2&\" Score\",'C. PoC Adj Factor Scoring'!$E$4:$J$4,0),TRUE)","v":1},{"$f":"VLOOKUP(OFFSET($B:$B,,MATCH(I$4,$B$4:$F$4,0)-1),OFFSET('C. PoC Adj Factor Scoring'!$E$5:$J$282,,MATCH(I$4,'C. PoC Adj Factor Scoring'!$E$3:$AH$3,0)-1),MATCH(I$2&\" Score\",'C. PoC Adj Factor Scoring'!$E$4:$J$4,0),TRUE)","v":1},{"$f":"VLOOKUP(OFFSET($B:$B,,MATCH(J$4,$B$4:$F$4,0)-1),OFFSET('C. PoC Adj Factor Scoring'!$E$5:$J$282,,MATCH(J$4,'C. PoC Adj Factor Scoring'!$E$3:$AH$3,0)-1),MATCH(J$2&\" Score\",'C. PoC Adj Factor Scoring'!$E$4:$J$4,0),TRUE)","v":1},{"$f":"VLOOKUP(OFFSET($B:$B,,MATCH(K$4,$B$4:$F$4,0)-1),OFFSET('C. PoC Adj Factor Scoring'!$E$5:$J$282,,MATCH(K$4,'C. PoC Adj Factor Scoring'!$E$3:$AH$3,0)-1),MATCH(K$2&\" Score\",'C. PoC Adj Factor Scoring'!$E$4:$J$4,0),TRUE)","v":1},{"$f":"VLOOKUP(OFFSET($B:$B,,MATCH(L$4,$B$4:$F$4,0)-1),OFFSET('C. PoC Adj Factor Scoring'!$E$5:$J$282,,MATCH(L$4,'C. PoC Adj Factor Scoring'!$E$3:$AH$3,0)-1),MATCH(L$2&\" Score\",'C. PoC Adj Factor Scoring'!$E$4:$J$4,0),TRUE)","v":1},{"$f":"VLOOKUP(OFFSET($B:$B,,MATCH(M$4,$B$4:$F$4,0)-1),OFFSET('C. PoC Adj Factor Scoring'!$E$5:$J$282,,MATCH(M$4,'C. PoC Adj Factor Scoring'!$E$3:$AH$3,0)-1),MATCH(M$2&\" Score\",'C. PoC Adj Factor Scoring'!$E$4:$J$4,0),TRUE)","v":1},{"$f":"VLOOKUP(OFFSET($B:$B,,MATCH(N$4,$B$4:$F$4,0)-1),OFFSET('C. PoC Adj Factor Scoring'!$E$5:$J$282,,MATCH(N$4,'C. PoC Adj Factor Scoring'!$E$3:$AH$3,0)-1),MATCH(N$2&\" Score\",'C. PoC Adj Factor Scoring'!$E$4:$J$4,0),TRUE)","v":1},{"$f":"VLOOKUP(OFFSET($B:$B,,MATCH(O$4,$B$4:$F$4,0)-1),OFFSET('C. PoC Adj Factor Scoring'!$E$5:$J$282,,MATCH(O$4,'C. PoC Adj Factor Scoring'!$E$3:$AH$3,0)-1),MATCH(O$2&\" Score\",'C. PoC Adj Factor Scoring'!$E$4:$J$4,0),TRUE)","v":1},{"$f":"VLOOKUP(OFFSET($B:$B,,MATCH(P$4,$B$4:$F$4,0)-1),OFFSET('C. PoC Adj Factor Scoring'!$E$5:$J$282,,MATCH(P$4,'C. PoC Adj Factor Scoring'!$E$3:$AH$3,0)-1),MATCH(P$2&\" Score\",'C. PoC Adj Factor Scoring'!$E$4:$J$4,0),TRUE)","v":1},{"$f":"VLOOKUP(OFFSET($B:$B,,MATCH(Q$4,$B$4:$F$4,0)-1),OFFSET('C. PoC Adj Factor Scoring'!$E$5:$J$282,,MATCH(Q$4,'C. PoC Adj Factor Scoring'!$E$3:$AH$3,0)-1),MATCH(Q$2&\" Score\",'C. PoC Adj Factor Scoring'!$E$4:$J$4,0),TRUE)","v":1},{"$f":"VLOOKUP(OFFSET($B:$B,,MATCH(R$4,$B$4:$F$4,0)-1),OFFSET('C. PoC Adj Factor Scoring'!$E$5:$J$282,,MATCH(R$4,'C. PoC Adj Factor Scoring'!$E$3:$AH$3,0)-1),MATCH(R$2&\" Score\",'C. PoC Adj Factor Scoring'!$E$4:$J$4,0),TRUE)","v":1},{"$f":"VLOOKUP(OFFSET($B:$B,,MATCH(S$4,$B$4:$F$4,0)-1),OFFSET('C. PoC Adj Factor Scoring'!$E$5:$J$282,,MATCH(S$4,'C. PoC Adj Factor Scoring'!$E$3:$AH$3,0)-1),MATCH(S$2&\" Score\",'C. PoC Adj Factor Scoring'!$E$4:$J$4,0),TRUE)","v":1},{"$f":"VLOOKUP(OFFSET($B:$B,,MATCH(T$4,$B$4:$F$4,0)-1),OFFSET('C. PoC Adj Factor Scoring'!$E$5:$J$282,,MATCH(T$4,'C. PoC Adj Factor Scoring'!$E$3:$AH$3,0)-1),MATCH(T$2&\" Score\",'C. PoC Adj Factor Scoring'!$E$4:$J$4,0),TRUE)","v":1},{"$f":"VLOOKUP(OFFSET($B:$B,,MATCH(U$4,$B$4:$F$4,0)-1),OFFSET('C. PoC Adj Factor Scoring'!$E$5:$J$282,,MATCH(U$4,'C. PoC Adj Factor Scoring'!$E$3:$AH$3,0)-1),MATCH(U$2&\" Score\",'C. PoC Adj Factor Scoring'!$E$4:$J$4,0),TRUE)","v":1},{"$f":"VLOOKUP(OFFSET($B:$B,,MATCH(V$4,$B$4:$F$4,0)-1),OFFSET('C. PoC Adj Factor Scoring'!$E$5:$J$282,,MATCH(V$4,'C. PoC Adj Factor Scoring'!$E$3:$AH$3,0)-1),MATCH(V$2&\" Score\",'C. PoC Adj Factor Scoring'!$E$4:$J$4,0),TRUE)","v":1},{"$f":"VLOOKUP(OFFSET($B:$B,,MATCH(W$4,$B$4:$F$4,0)-1),OFFSET('C. PoC Adj Factor Scoring'!$E$5:$J$282,,MATCH(W$4,'C. PoC Adj Factor Scoring'!$E$3:$AH$3,0)-1),MATCH(W$2&\" Score\",'C. PoC Adj Factor Scoring'!$E$4:$J$4,0),TRUE)","v":1},{"$f":"VLOOKUP(OFFSET($B:$B,,MATCH(X$4,$B$4:$F$4,0)-1),OFFSET('C. PoC Adj Factor Scoring'!$E$5:$J$282,,MATCH(X$4,'C. PoC Adj Factor Scoring'!$E$3:$AH$3,0)-1),MATCH(X$2&\" Score\",'C. PoC Adj Factor Scoring'!$E$4:$J$4,0),TRUE)","v":1},{"$f":"VLOOKUP(OFFSET($B:$B,,MATCH(Y$4,$B$4:$F$4,0)-1),OFFSET('C. PoC Adj Factor Scoring'!$E$5:$J$282,,MATCH(Y$4,'C. PoC Adj Factor Scoring'!$E$3:$AH$3,0)-1),MATCH(Y$2&\" Score\",'C. PoC Adj Factor Scoring'!$E$4:$J$4,0),TRUE)","v":1},{"$f":"VLOOKUP(OFFSET($B:$B,,MATCH(Z$4,$B$4:$F$4,0)-1),OFFSET('C. PoC Adj Factor Scoring'!$E$5:$J$282,,MATCH(Z$4,'C. PoC Adj Factor Scoring'!$E$3:$AH$3,0)-1),MATCH(Z$2&\" Score\",'C. PoC Adj Factor Scoring'!$E$4:$J$4,0),TRUE)","v":1},{"$f":"VLOOKUP(OFFSET($B:$B,,MATCH(AA$4,$B$4:$F$4,0)-1),OFFSET('C. PoC Adj Factor Scoring'!$E$5:$J$282,,MATCH(AA$4,'C. PoC Adj Factor Scoring'!$E$3:$AH$3,0)-1),MATCH(AA$2&\" Score\",'C. PoC Adj Factor Scoring'!$E$4:$J$4,0),TRUE)","v":3},{"$f":"VLOOKUP(OFFSET($B:$B,,MATCH(AB$4,$B$4:$F$4,0)-1),OFFSET('C. PoC Adj Factor Scoring'!$E$5:$J$282,,MATCH(AB$4,'C. PoC Adj Factor Scoring'!$E$3:$AH$3,0)-1),MATCH(AB$2&\" Score\",'C. PoC Adj Factor Scoring'!$E$4:$J$4,0),TRUE)","v":1},{"$f":"VLOOKUP(OFFSET($B:$B,,MATCH(AC$4,$B$4:$F$4,0)-1),OFFSET('C. PoC Adj Factor Scoring'!$E$5:$J$282,,MATCH(AC$4,'C. PoC Adj Factor Scoring'!$E$3:$AH$3,0)-1),MATCH(AC$2&\" Score\",'C. PoC Adj Factor Scoring'!$E$4:$J$4,0),TRUE)","v":1},{"$f":"VLOOKUP(OFFSET($B:$B,,MATCH(AD$4,$B$4:$F$4,0)-1),OFFSET('C. PoC Adj Factor Scoring'!$E$5:$J$282,,MATCH(AD$4,'C. PoC Adj Factor Scoring'!$E$3:$AH$3,0)-1),MATCH(AD$2&\" Score\",'C. PoC Adj Factor Scoring'!$E$4:$J$4,0),TRUE)","v":1},{"$f":"VLOOKUP(OFFSET($B:$B,,MATCH(AE$4,$B$4:$F$4,0)-1),OFFSET('C. PoC Adj Factor Scoring'!$E$5:$J$282,,MATCH(AE$4,'C. PoC Adj Factor Scoring'!$E$3:$AH$3,0)-1),MATCH(AE$2&\" Score\",'C. PoC Adj Factor Scoring'!$E$4:$J$4,0),TRUE)","v":1}]
[{"$f":"'A. Population Info'!A259","v":1000362556},{"$f":"'A. Population Info'!L259","v":"OIL"},{"$f":"'A. Population Info'!M259","v":0},{"$f":"'A. Population Info'!N259","v":0},{"$f":"'A. Population Info'!O259","v":0},{"$f":"'A. Population Info'!P259","v":0},{"$f":"VLOOKUP(OFFSET($B:$B,,MATCH(G$4,$B$4:$F$4,0)-1),OFFSET('C. PoC Adj Factor Scoring'!$E$5:$J$282,,MATCH(G$4,'C. PoC Adj Factor Scoring'!$E$3:$AH$3,0)-1),MATCH(G$2&\" Score\",'C. PoC Adj Factor Scoring'!$E$4:$J$4,0),TRUE)","v":4},{"$f":"VLOOKUP(OFFSET($B:$B,,MATCH(H$4,$B$4:$F$4,0)-1),OFFSET('C. PoC Adj Factor Scoring'!$E$5:$J$282,,MATCH(H$4,'C. PoC Adj Factor Scoring'!$E$3:$AH$3,0)-1),MATCH(H$2&\" Score\",'C. PoC Adj Factor Scoring'!$E$4:$J$4,0),TRUE)","v":1},{"$f":"VLOOKUP(OFFSET($B:$B,,MATCH(I$4,$B$4:$F$4,0)-1),OFFSET('C. PoC Adj Factor Scoring'!$E$5:$J$282,,MATCH(I$4,'C. PoC Adj Factor Scoring'!$E$3:$AH$3,0)-1),MATCH(I$2&\" Score\",'C. PoC Adj Factor Scoring'!$E$4:$J$4,0),TRUE)","v":1},{"$f":"VLOOKUP(OFFSET($B:$B,,MATCH(J$4,$B$4:$F$4,0)-1),OFFSET('C. PoC Adj Factor Scoring'!$E$5:$J$282,,MATCH(J$4,'C. PoC Adj Factor Scoring'!$E$3:$AH$3,0)-1),MATCH(J$2&\" Score\",'C. PoC Adj Factor Scoring'!$E$4:$J$4,0),TRUE)","v":1},{"$f":"VLOOKUP(OFFSET($B:$B,,MATCH(K$4,$B$4:$F$4,0)-1),OFFSET('C. PoC Adj Factor Scoring'!$E$5:$J$282,,MATCH(K$4,'C. PoC Adj Factor Scoring'!$E$3:$AH$3,0)-1),MATCH(K$2&\" Score\",'C. PoC Adj Factor Scoring'!$E$4:$J$4,0),TRUE)","v":1},{"$f":"VLOOKUP(OFFSET($B:$B,,MATCH(L$4,$B$4:$F$4,0)-1),OFFSET('C. PoC Adj Factor Scoring'!$E$5:$J$282,,MATCH(L$4,'C. PoC Adj Factor Scoring'!$E$3:$AH$3,0)-1),MATCH(L$2&\" Score\",'C. PoC Adj Factor Scoring'!$E$4:$J$4,0),TRUE)","v":1},{"$f":"VLOOKUP(OFFSET($B:$B,,MATCH(M$4,$B$4:$F$4,0)-1),OFFSET('C. PoC Adj Factor Scoring'!$E$5:$J$282,,MATCH(M$4,'C. PoC Adj Factor Scoring'!$E$3:$AH$3,0)-1),MATCH(M$2&\" Score\",'C. PoC Adj Factor Scoring'!$E$4:$J$4,0),TRUE)","v":1},{"$f":"VLOOKUP(OFFSET($B:$B,,MATCH(N$4,$B$4:$F$4,0)-1),OFFSET('C. PoC Adj Factor Scoring'!$E$5:$J$282,,MATCH(N$4,'C. PoC Adj Factor Scoring'!$E$3:$AH$3,0)-1),MATCH(N$2&\" Score\",'C. PoC Adj Factor Scoring'!$E$4:$J$4,0),TRUE)","v":1},{"$f":"VLOOKUP(OFFSET($B:$B,,MATCH(O$4,$B$4:$F$4,0)-1),OFFSET('C. PoC Adj Factor Scoring'!$E$5:$J$282,,MATCH(O$4,'C. PoC Adj Factor Scoring'!$E$3:$AH$3,0)-1),MATCH(O$2&\" Score\",'C. PoC Adj Factor Scoring'!$E$4:$J$4,0),TRUE)","v":1},{"$f":"VLOOKUP(OFFSET($B:$B,,MATCH(P$4,$B$4:$F$4,0)-1),OFFSET('C. PoC Adj Factor Scoring'!$E$5:$J$282,,MATCH(P$4,'C. PoC Adj Factor Scoring'!$E$3:$AH$3,0)-1),MATCH(P$2&\" Score\",'C. PoC Adj Factor Scoring'!$E$4:$J$4,0),TRUE)","v":1},{"$f":"VLOOKUP(OFFSET($B:$B,,MATCH(Q$4,$B$4:$F$4,0)-1),OFFSET('C. PoC Adj Factor Scoring'!$E$5:$J$282,,MATCH(Q$4,'C. PoC Adj Factor Scoring'!$E$3:$AH$3,0)-1),MATCH(Q$2&\" Score\",'C. PoC Adj Factor Scoring'!$E$4:$J$4,0),TRUE)","v":1},{"$f":"VLOOKUP(OFFSET($B:$B,,MATCH(R$4,$B$4:$F$4,0)-1),OFFSET('C. PoC Adj Factor Scoring'!$E$5:$J$282,,MATCH(R$4,'C. PoC Adj Factor Scoring'!$E$3:$AH$3,0)-1),MATCH(R$2&\" Score\",'C. PoC Adj Factor Scoring'!$E$4:$J$4,0),TRUE)","v":1},{"$f":"VLOOKUP(OFFSET($B:$B,,MATCH(S$4,$B$4:$F$4,0)-1),OFFSET('C. PoC Adj Factor Scoring'!$E$5:$J$282,,MATCH(S$4,'C. PoC Adj Factor Scoring'!$E$3:$AH$3,0)-1),MATCH(S$2&\" Score\",'C. PoC Adj Factor Scoring'!$E$4:$J$4,0),TRUE)","v":1},{"$f":"VLOOKUP(OFFSET($B:$B,,MATCH(T$4,$B$4:$F$4,0)-1),OFFSET('C. PoC Adj Factor Scoring'!$E$5:$J$282,,MATCH(T$4,'C. PoC Adj Factor Scoring'!$E$3:$AH$3,0)-1),MATCH(T$2&\" Score\",'C. PoC Adj Factor Scoring'!$E$4:$J$4,0),TRUE)","v":1},{"$f":"VLOOKUP(OFFSET($B:$B,,MATCH(U$4,$B$4:$F$4,0)-1),OFFSET('C. PoC Adj Factor Scoring'!$E$5:$J$282,,MATCH(U$4,'C. PoC Adj Factor Scoring'!$E$3:$AH$3,0)-1),MATCH(U$2&\" Score\",'C. PoC Adj Factor Scoring'!$E$4:$J$4,0),TRUE)","v":1},{"$f":"VLOOKUP(OFFSET($B:$B,,MATCH(V$4,$B$4:$F$4,0)-1),OFFSET('C. PoC Adj Factor Scoring'!$E$5:$J$282,,MATCH(V$4,'C. PoC Adj Factor Scoring'!$E$3:$AH$3,0)-1),MATCH(V$2&\" Score\",'C. PoC Adj Factor Scoring'!$E$4:$J$4,0),TRUE)","v":1},{"$f":"VLOOKUP(OFFSET($B:$B,,MATCH(W$4,$B$4:$F$4,0)-1),OFFSET('C. PoC Adj Factor Scoring'!$E$5:$J$282,,MATCH(W$4,'C. PoC Adj Factor Scoring'!$E$3:$AH$3,0)-1),MATCH(W$2&\" Score\",'C. PoC Adj Factor Scoring'!$E$4:$J$4,0),TRUE)","v":1},{"$f":"VLOOKUP(OFFSET($B:$B,,MATCH(X$4,$B$4:$F$4,0)-1),OFFSET('C. PoC Adj Factor Scoring'!$E$5:$J$282,,MATCH(X$4,'C. PoC Adj Factor Scoring'!$E$3:$AH$3,0)-1),MATCH(X$2&\" Score\",'C. PoC Adj Factor Scoring'!$E$4:$J$4,0),TRUE)","v":1},{"$f":"VLOOKUP(OFFSET($B:$B,,MATCH(Y$4,$B$4:$F$4,0)-1),OFFSET('C. PoC Adj Factor Scoring'!$E$5:$J$282,,MATCH(Y$4,'C. PoC Adj Factor Scoring'!$E$3:$AH$3,0)-1),MATCH(Y$2&\" Score\",'C. PoC Adj Factor Scoring'!$E$4:$J$4,0),TRUE)","v":1},{"$f":"VLOOKUP(OFFSET($B:$B,,MATCH(Z$4,$B$4:$F$4,0)-1),OFFSET('C. PoC Adj Factor Scoring'!$E$5:$J$282,,MATCH(Z$4,'C. PoC Adj Factor Scoring'!$E$3:$AH$3,0)-1),MATCH(Z$2&\" Score\",'C. PoC Adj Factor Scoring'!$E$4:$J$4,0),TRUE)","v":1},{"$f":"VLOOKUP(OFFSET($B:$B,,MATCH(AA$4,$B$4:$F$4,0)-1),OFFSET('C. PoC Adj Factor Scoring'!$E$5:$J$282,,MATCH(AA$4,'C. PoC Adj Factor Scoring'!$E$3:$AH$3,0)-1),MATCH(AA$2&\" Score\",'C. PoC Adj Factor Scoring'!$E$4:$J$4,0),TRUE)","v":3},{"$f":"VLOOKUP(OFFSET($B:$B,,MATCH(AB$4,$B$4:$F$4,0)-1),OFFSET('C. PoC Adj Factor Scoring'!$E$5:$J$282,,MATCH(AB$4,'C. PoC Adj Factor Scoring'!$E$3:$AH$3,0)-1),MATCH(AB$2&\" Score\",'C. PoC Adj Factor Scoring'!$E$4:$J$4,0),TRUE)","v":1},{"$f":"VLOOKUP(OFFSET($B:$B,,MATCH(AC$4,$B$4:$F$4,0)-1),OFFSET('C. PoC Adj Factor Scoring'!$E$5:$J$282,,MATCH(AC$4,'C. PoC Adj Factor Scoring'!$E$3:$AH$3,0)-1),MATCH(AC$2&\" Score\",'C. PoC Adj Factor Scoring'!$E$4:$J$4,0),TRUE)","v":1},{"$f":"VLOOKUP(OFFSET($B:$B,,MATCH(AD$4,$B$4:$F$4,0)-1),OFFSET('C. PoC Adj Factor Scoring'!$E$5:$J$282,,MATCH(AD$4,'C. PoC Adj Factor Scoring'!$E$3:$AH$3,0)-1),MATCH(AD$2&\" Score\",'C. PoC Adj Factor Scoring'!$E$4:$J$4,0),TRUE)","v":1},{"$f":"VLOOKUP(OFFSET($B:$B,,MATCH(AE$4,$B$4:$F$4,0)-1),OFFSET('C. PoC Adj Factor Scoring'!$E$5:$J$282,,MATCH(AE$4,'C. PoC Adj Factor Scoring'!$E$3:$AH$3,0)-1),MATCH(AE$2&\" Score\",'C. PoC Adj Factor Scoring'!$E$4:$J$4,0),TRUE)","v":1}]
[{"$f":"'A. Population Info'!A260","v":1000362587},{"$f":"'A. Population Info'!L260","v":"OIL"},{"$f":"'A. Population Info'!M260","v":0},{"$f":"'A. Population Info'!N260","v":0},{"$f":"'A. Population Info'!O260","v":0},{"$f":"'A. Population Info'!P260","v":0},{"$f":"VLOOKUP(OFFSET($B:$B,,MATCH(G$4,$B$4:$F$4,0)-1),OFFSET('C. PoC Adj Factor Scoring'!$E$5:$J$282,,MATCH(G$4,'C. PoC Adj Factor Scoring'!$E$3:$AH$3,0)-1),MATCH(G$2&\" Score\",'C. PoC Adj Factor Scoring'!$E$4:$J$4,0),TRUE)","v":4},{"$f":"VLOOKUP(OFFSET($B:$B,,MATCH(H$4,$B$4:$F$4,0)-1),OFFSET('C. PoC Adj Factor Scoring'!$E$5:$J$282,,MATCH(H$4,'C. PoC Adj Factor Scoring'!$E$3:$AH$3,0)-1),MATCH(H$2&\" Score\",'C. PoC Adj Factor Scoring'!$E$4:$J$4,0),TRUE)","v":1},{"$f":"VLOOKUP(OFFSET($B:$B,,MATCH(I$4,$B$4:$F$4,0)-1),OFFSET('C. PoC Adj Factor Scoring'!$E$5:$J$282,,MATCH(I$4,'C. PoC Adj Factor Scoring'!$E$3:$AH$3,0)-1),MATCH(I$2&\" Score\",'C. PoC Adj Factor Scoring'!$E$4:$J$4,0),TRUE)","v":1},{"$f":"VLOOKUP(OFFSET($B:$B,,MATCH(J$4,$B$4:$F$4,0)-1),OFFSET('C. PoC Adj Factor Scoring'!$E$5:$J$282,,MATCH(J$4,'C. PoC Adj Factor Scoring'!$E$3:$AH$3,0)-1),MATCH(J$2&\" Score\",'C. PoC Adj Factor Scoring'!$E$4:$J$4,0),TRUE)","v":1},{"$f":"VLOOKUP(OFFSET($B:$B,,MATCH(K$4,$B$4:$F$4,0)-1),OFFSET('C. PoC Adj Factor Scoring'!$E$5:$J$282,,MATCH(K$4,'C. PoC Adj Factor Scoring'!$E$3:$AH$3,0)-1),MATCH(K$2&\" Score\",'C. PoC Adj Factor Scoring'!$E$4:$J$4,0),TRUE)","v":1},{"$f":"VLOOKUP(OFFSET($B:$B,,MATCH(L$4,$B$4:$F$4,0)-1),OFFSET('C. PoC Adj Factor Scoring'!$E$5:$J$282,,MATCH(L$4,'C. PoC Adj Factor Scoring'!$E$3:$AH$3,0)-1),MATCH(L$2&\" Score\",'C. PoC Adj Factor Scoring'!$E$4:$J$4,0),TRUE)","v":1},{"$f":"VLOOKUP(OFFSET($B:$B,,MATCH(M$4,$B$4:$F$4,0)-1),OFFSET('C. PoC Adj Factor Scoring'!$E$5:$J$282,,MATCH(M$4,'C. PoC Adj Factor Scoring'!$E$3:$AH$3,0)-1),MATCH(M$2&\" Score\",'C. PoC Adj Factor Scoring'!$E$4:$J$4,0),TRUE)","v":1},{"$f":"VLOOKUP(OFFSET($B:$B,,MATCH(N$4,$B$4:$F$4,0)-1),OFFSET('C. PoC Adj Factor Scoring'!$E$5:$J$282,,MATCH(N$4,'C. PoC Adj Factor Scoring'!$E$3:$AH$3,0)-1),MATCH(N$2&\" Score\",'C. PoC Adj Factor Scoring'!$E$4:$J$4,0),TRUE)","v":1},{"$f":"VLOOKUP(OFFSET($B:$B,,MATCH(O$4,$B$4:$F$4,0)-1),OFFSET('C. PoC Adj Factor Scoring'!$E$5:$J$282,,MATCH(O$4,'C. PoC Adj Factor Scoring'!$E$3:$AH$3,0)-1),MATCH(O$2&\" Score\",'C. PoC Adj Factor Scoring'!$E$4:$J$4,0),TRUE)","v":1},{"$f":"VLOOKUP(OFFSET($B:$B,,MATCH(P$4,$B$4:$F$4,0)-1),OFFSET('C. PoC Adj Factor Scoring'!$E$5:$J$282,,MATCH(P$4,'C. PoC Adj Factor Scoring'!$E$3:$AH$3,0)-1),MATCH(P$2&\" Score\",'C. PoC Adj Factor Scoring'!$E$4:$J$4,0),TRUE)","v":1},{"$f":"VLOOKUP(OFFSET($B:$B,,MATCH(Q$4,$B$4:$F$4,0)-1),OFFSET('C. PoC Adj Factor Scoring'!$E$5:$J$282,,MATCH(Q$4,'C. PoC Adj Factor Scoring'!$E$3:$AH$3,0)-1),MATCH(Q$2&\" Score\",'C. PoC Adj Factor Scoring'!$E$4:$J$4,0),TRUE)","v":1},{"$f":"VLOOKUP(OFFSET($B:$B,,MATCH(R$4,$B$4:$F$4,0)-1),OFFSET('C. PoC Adj Factor Scoring'!$E$5:$J$282,,MATCH(R$4,'C. PoC Adj Factor Scoring'!$E$3:$AH$3,0)-1),MATCH(R$2&\" Score\",'C. PoC Adj Factor Scoring'!$E$4:$J$4,0),TRUE)","v":1},{"$f":"VLOOKUP(OFFSET($B:$B,,MATCH(S$4,$B$4:$F$4,0)-1),OFFSET('C. PoC Adj Factor Scoring'!$E$5:$J$282,,MATCH(S$4,'C. PoC Adj Factor Scoring'!$E$3:$AH$3,0)-1),MATCH(S$2&\" Score\",'C. PoC Adj Factor Scoring'!$E$4:$J$4,0),TRUE)","v":1},{"$f":"VLOOKUP(OFFSET($B:$B,,MATCH(T$4,$B$4:$F$4,0)-1),OFFSET('C. PoC Adj Factor Scoring'!$E$5:$J$282,,MATCH(T$4,'C. PoC Adj Factor Scoring'!$E$3:$AH$3,0)-1),MATCH(T$2&\" Score\",'C. PoC Adj Factor Scoring'!$E$4:$J$4,0),TRUE)","v":1},{"$f":"VLOOKUP(OFFSET($B:$B,,MATCH(U$4,$B$4:$F$4,0)-1),OFFSET('C. PoC Adj Factor Scoring'!$E$5:$J$282,,MATCH(U$4,'C. PoC Adj Factor Scoring'!$E$3:$AH$3,0)-1),MATCH(U$2&\" Score\",'C. PoC Adj Factor Scoring'!$E$4:$J$4,0),TRUE)","v":1},{"$f":"VLOOKUP(OFFSET($B:$B,,MATCH(V$4,$B$4:$F$4,0)-1),OFFSET('C. PoC Adj Factor Scoring'!$E$5:$J$282,,MATCH(V$4,'C. PoC Adj Factor Scoring'!$E$3:$AH$3,0)-1),MATCH(V$2&\" Score\",'C. PoC Adj Factor Scoring'!$E$4:$J$4,0),TRUE)","v":1},{"$f":"VLOOKUP(OFFSET($B:$B,,MATCH(W$4,$B$4:$F$4,0)-1),OFFSET('C. PoC Adj Factor Scoring'!$E$5:$J$282,,MATCH(W$4,'C. PoC Adj Factor Scoring'!$E$3:$AH$3,0)-1),MATCH(W$2&\" Score\",'C. PoC Adj Factor Scoring'!$E$4:$J$4,0),TRUE)","v":1},{"$f":"VLOOKUP(OFFSET($B:$B,,MATCH(X$4,$B$4:$F$4,0)-1),OFFSET('C. PoC Adj Factor Scoring'!$E$5:$J$282,,MATCH(X$4,'C. PoC Adj Factor Scoring'!$E$3:$AH$3,0)-1),MATCH(X$2&\" Score\",'C. PoC Adj Factor Scoring'!$E$4:$J$4,0),TRUE)","v":1},{"$f":"VLOOKUP(OFFSET($B:$B,,MATCH(Y$4,$B$4:$F$4,0)-1),OFFSET('C. PoC Adj Factor Scoring'!$E$5:$J$282,,MATCH(Y$4,'C. PoC Adj Factor Scoring'!$E$3:$AH$3,0)-1),MATCH(Y$2&\" Score\",'C. PoC Adj Factor Scoring'!$E$4:$J$4,0),TRUE)","v":1},{"$f":"VLOOKUP(OFFSET($B:$B,,MATCH(Z$4,$B$4:$F$4,0)-1),OFFSET('C. PoC Adj Factor Scoring'!$E$5:$J$282,,MATCH(Z$4,'C. PoC Adj Factor Scoring'!$E$3:$AH$3,0)-1),MATCH(Z$2&\" Score\",'C. PoC Adj Factor Scoring'!$E$4:$J$4,0),TRUE)","v":1},{"$f":"VLOOKUP(OFFSET($B:$B,,MATCH(AA$4,$B$4:$F$4,0)-1),OFFSET('C. PoC Adj Factor Scoring'!$E$5:$J$282,,MATCH(AA$4,'C. PoC Adj Factor Scoring'!$E$3:$AH$3,0)-1),MATCH(AA$2&\" Score\",'C. PoC Adj Factor Scoring'!$E$4:$J$4,0),TRUE)","v":3},{"$f":"VLOOKUP(OFFSET($B:$B,,MATCH(AB$4,$B$4:$F$4,0)-1),OFFSET('C. PoC Adj Factor Scoring'!$E$5:$J$282,,MATCH(AB$4,'C. PoC Adj Factor Scoring'!$E$3:$AH$3,0)-1),MATCH(AB$2&\" Score\",'C. PoC Adj Factor Scoring'!$E$4:$J$4,0),TRUE)","v":1},{"$f":"VLOOKUP(OFFSET($B:$B,,MATCH(AC$4,$B$4:$F$4,0)-1),OFFSET('C. PoC Adj Factor Scoring'!$E$5:$J$282,,MATCH(AC$4,'C. PoC Adj Factor Scoring'!$E$3:$AH$3,0)-1),MATCH(AC$2&\" Score\",'C. PoC Adj Factor Scoring'!$E$4:$J$4,0),TRUE)","v":1},{"$f":"VLOOKUP(OFFSET($B:$B,,MATCH(AD$4,$B$4:$F$4,0)-1),OFFSET('C. PoC Adj Factor Scoring'!$E$5:$J$282,,MATCH(AD$4,'C. PoC Adj Factor Scoring'!$E$3:$AH$3,0)-1),MATCH(AD$2&\" Score\",'C. PoC Adj Factor Scoring'!$E$4:$J$4,0),TRUE)","v":1},{"$f":"VLOOKUP(OFFSET($B:$B,,MATCH(AE$4,$B$4:$F$4,0)-1),OFFSET('C. PoC Adj Factor Scoring'!$E$5:$J$282,,MATCH(AE$4,'C. PoC Adj Factor Scoring'!$E$3:$AH$3,0)-1),MATCH(AE$2&\" Score\",'C. PoC Adj Factor Scoring'!$E$4:$J$4,0),TRUE)","v":1}]
[{"$f":"'A. Population Info'!A261","v":1000362618},{"$f":"'A. Population Info'!L261","v":"OIL"},{"$f":"'A. Population Info'!M261","v":0},{"$f":"'A. Population Info'!N261","v":0},{"$f":"'A. Population Info'!O261","v":0},{"$f":"'A. Population Info'!P261","v":0},{"$f":"VLOOKUP(OFFSET($B:$B,,MATCH(G$4,$B$4:$F$4,0)-1),OFFSET('C. PoC Adj Factor Scoring'!$E$5:$J$282,,MATCH(G$4,'C. PoC Adj Factor Scoring'!$E$3:$AH$3,0)-1),MATCH(G$2&\" Score\",'C. PoC Adj Factor Scoring'!$E$4:$J$4,0),TRUE)","v":4},{"$f":"VLOOKUP(OFFSET($B:$B,,MATCH(H$4,$B$4:$F$4,0)-1),OFFSET('C. PoC Adj Factor Scoring'!$E$5:$J$282,,MATCH(H$4,'C. PoC Adj Factor Scoring'!$E$3:$AH$3,0)-1),MATCH(H$2&\" Score\",'C. PoC Adj Factor Scoring'!$E$4:$J$4,0),TRUE)","v":1},{"$f":"VLOOKUP(OFFSET($B:$B,,MATCH(I$4,$B$4:$F$4,0)-1),OFFSET('C. PoC Adj Factor Scoring'!$E$5:$J$282,,MATCH(I$4,'C. PoC Adj Factor Scoring'!$E$3:$AH$3,0)-1),MATCH(I$2&\" Score\",'C. PoC Adj Factor Scoring'!$E$4:$J$4,0),TRUE)","v":1},{"$f":"VLOOKUP(OFFSET($B:$B,,MATCH(J$4,$B$4:$F$4,0)-1),OFFSET('C. PoC Adj Factor Scoring'!$E$5:$J$282,,MATCH(J$4,'C. PoC Adj Factor Scoring'!$E$3:$AH$3,0)-1),MATCH(J$2&\" Score\",'C. PoC Adj Factor Scoring'!$E$4:$J$4,0),TRUE)","v":1},{"$f":"VLOOKUP(OFFSET($B:$B,,MATCH(K$4,$B$4:$F$4,0)-1),OFFSET('C. PoC Adj Factor Scoring'!$E$5:$J$282,,MATCH(K$4,'C. PoC Adj Factor Scoring'!$E$3:$AH$3,0)-1),MATCH(K$2&\" Score\",'C. PoC Adj Factor Scoring'!$E$4:$J$4,0),TRUE)","v":1},{"$f":"VLOOKUP(OFFSET($B:$B,,MATCH(L$4,$B$4:$F$4,0)-1),OFFSET('C. PoC Adj Factor Scoring'!$E$5:$J$282,,MATCH(L$4,'C. PoC Adj Factor Scoring'!$E$3:$AH$3,0)-1),MATCH(L$2&\" Score\",'C. PoC Adj Factor Scoring'!$E$4:$J$4,0),TRUE)","v":1},{"$f":"VLOOKUP(OFFSET($B:$B,,MATCH(M$4,$B$4:$F$4,0)-1),OFFSET('C. PoC Adj Factor Scoring'!$E$5:$J$282,,MATCH(M$4,'C. PoC Adj Factor Scoring'!$E$3:$AH$3,0)-1),MATCH(M$2&\" Score\",'C. PoC Adj Factor Scoring'!$E$4:$J$4,0),TRUE)","v":1},{"$f":"VLOOKUP(OFFSET($B:$B,,MATCH(N$4,$B$4:$F$4,0)-1),OFFSET('C. PoC Adj Factor Scoring'!$E$5:$J$282,,MATCH(N$4,'C. PoC Adj Factor Scoring'!$E$3:$AH$3,0)-1),MATCH(N$2&\" Score\",'C. PoC Adj Factor Scoring'!$E$4:$J$4,0),TRUE)","v":1},{"$f":"VLOOKUP(OFFSET($B:$B,,MATCH(O$4,$B$4:$F$4,0)-1),OFFSET('C. PoC Adj Factor Scoring'!$E$5:$J$282,,MATCH(O$4,'C. PoC Adj Factor Scoring'!$E$3:$AH$3,0)-1),MATCH(O$2&\" Score\",'C. PoC Adj Factor Scoring'!$E$4:$J$4,0),TRUE)","v":1},{"$f":"VLOOKUP(OFFSET($B:$B,,MATCH(P$4,$B$4:$F$4,0)-1),OFFSET('C. PoC Adj Factor Scoring'!$E$5:$J$282,,MATCH(P$4,'C. PoC Adj Factor Scoring'!$E$3:$AH$3,0)-1),MATCH(P$2&\" Score\",'C. PoC Adj Factor Scoring'!$E$4:$J$4,0),TRUE)","v":1},{"$f":"VLOOKUP(OFFSET($B:$B,,MATCH(Q$4,$B$4:$F$4,0)-1),OFFSET('C. PoC Adj Factor Scoring'!$E$5:$J$282,,MATCH(Q$4,'C. PoC Adj Factor Scoring'!$E$3:$AH$3,0)-1),MATCH(Q$2&\" Score\",'C. PoC Adj Factor Scoring'!$E$4:$J$4,0),TRUE)","v":1},{"$f":"VLOOKUP(OFFSET($B:$B,,MATCH(R$4,$B$4:$F$4,0)-1),OFFSET('C. PoC Adj Factor Scoring'!$E$5:$J$282,,MATCH(R$4,'C. PoC Adj Factor Scoring'!$E$3:$AH$3,0)-1),MATCH(R$2&\" Score\",'C. PoC Adj Factor Scoring'!$E$4:$J$4,0),TRUE)","v":1},{"$f":"VLOOKUP(OFFSET($B:$B,,MATCH(S$4,$B$4:$F$4,0)-1),OFFSET('C. PoC Adj Factor Scoring'!$E$5:$J$282,,MATCH(S$4,'C. PoC Adj Factor Scoring'!$E$3:$AH$3,0)-1),MATCH(S$2&\" Score\",'C. PoC Adj Factor Scoring'!$E$4:$J$4,0),TRUE)","v":1},{"$f":"VLOOKUP(OFFSET($B:$B,,MATCH(T$4,$B$4:$F$4,0)-1),OFFSET('C. PoC Adj Factor Scoring'!$E$5:$J$282,,MATCH(T$4,'C. PoC Adj Factor Scoring'!$E$3:$AH$3,0)-1),MATCH(T$2&\" Score\",'C. PoC Adj Factor Scoring'!$E$4:$J$4,0),TRUE)","v":1},{"$f":"VLOOKUP(OFFSET($B:$B,,MATCH(U$4,$B$4:$F$4,0)-1),OFFSET('C. PoC Adj Factor Scoring'!$E$5:$J$282,,MATCH(U$4,'C. PoC Adj Factor Scoring'!$E$3:$AH$3,0)-1),MATCH(U$2&\" Score\",'C. PoC Adj Factor Scoring'!$E$4:$J$4,0),TRUE)","v":1},{"$f":"VLOOKUP(OFFSET($B:$B,,MATCH(V$4,$B$4:$F$4,0)-1),OFFSET('C. PoC Adj Factor Scoring'!$E$5:$J$282,,MATCH(V$4,'C. PoC Adj Factor Scoring'!$E$3:$AH$3,0)-1),MATCH(V$2&\" Score\",'C. PoC Adj Factor Scoring'!$E$4:$J$4,0),TRUE)","v":1},{"$f":"VLOOKUP(OFFSET($B:$B,,MATCH(W$4,$B$4:$F$4,0)-1),OFFSET('C. PoC Adj Factor Scoring'!$E$5:$J$282,,MATCH(W$4,'C. PoC Adj Factor Scoring'!$E$3:$AH$3,0)-1),MATCH(W$2&\" Score\",'C. PoC Adj Factor Scoring'!$E$4:$J$4,0),TRUE)","v":1},{"$f":"VLOOKUP(OFFSET($B:$B,,MATCH(X$4,$B$4:$F$4,0)-1),OFFSET('C. PoC Adj Factor Scoring'!$E$5:$J$282,,MATCH(X$4,'C. PoC Adj Factor Scoring'!$E$3:$AH$3,0)-1),MATCH(X$2&\" Score\",'C. PoC Adj Factor Scoring'!$E$4:$J$4,0),TRUE)","v":1},{"$f":"VLOOKUP(OFFSET($B:$B,,MATCH(Y$4,$B$4:$F$4,0)-1),OFFSET('C. PoC Adj Factor Scoring'!$E$5:$J$282,,MATCH(Y$4,'C. PoC Adj Factor Scoring'!$E$3:$AH$3,0)-1),MATCH(Y$2&\" Score\",'C. PoC Adj Factor Scoring'!$E$4:$J$4,0),TRUE)","v":1},{"$f":"VLOOKUP(OFFSET($B:$B,,MATCH(Z$4,$B$4:$F$4,0)-1),OFFSET('C. PoC Adj Factor Scoring'!$E$5:$J$282,,MATCH(Z$4,'C. PoC Adj Factor Scoring'!$E$3:$AH$3,0)-1),MATCH(Z$2&\" Score\",'C. PoC Adj Factor Scoring'!$E$4:$J$4,0),TRUE)","v":1},{"$f":"VLOOKUP(OFFSET($B:$B,,MATCH(AA$4,$B$4:$F$4,0)-1),OFFSET('C. PoC Adj Factor Scoring'!$E$5:$J$282,,MATCH(AA$4,'C. PoC Adj Factor Scoring'!$E$3:$AH$3,0)-1),MATCH(AA$2&\" Score\",'C. PoC Adj Factor Scoring'!$E$4:$J$4,0),TRUE)","v":3},{"$f":"VLOOKUP(OFFSET($B:$B,,MATCH(AB$4,$B$4:$F$4,0)-1),OFFSET('C. PoC Adj Factor Scoring'!$E$5:$J$282,,MATCH(AB$4,'C. PoC Adj Factor Scoring'!$E$3:$AH$3,0)-1),MATCH(AB$2&\" Score\",'C. PoC Adj Factor Scoring'!$E$4:$J$4,0),TRUE)","v":1},{"$f":"VLOOKUP(OFFSET($B:$B,,MATCH(AC$4,$B$4:$F$4,0)-1),OFFSET('C. PoC Adj Factor Scoring'!$E$5:$J$282,,MATCH(AC$4,'C. PoC Adj Factor Scoring'!$E$3:$AH$3,0)-1),MATCH(AC$2&\" Score\",'C. PoC Adj Factor Scoring'!$E$4:$J$4,0),TRUE)","v":1},{"$f":"VLOOKUP(OFFSET($B:$B,,MATCH(AD$4,$B$4:$F$4,0)-1),OFFSET('C. PoC Adj Factor Scoring'!$E$5:$J$282,,MATCH(AD$4,'C. PoC Adj Factor Scoring'!$E$3:$AH$3,0)-1),MATCH(AD$2&\" Score\",'C. PoC Adj Factor Scoring'!$E$4:$J$4,0),TRUE)","v":1},{"$f":"VLOOKUP(OFFSET($B:$B,,MATCH(AE$4,$B$4:$F$4,0)-1),OFFSET('C. PoC Adj Factor Scoring'!$E$5:$J$282,,MATCH(AE$4,'C. PoC Adj Factor Scoring'!$E$3:$AH$3,0)-1),MATCH(AE$2&\" Score\",'C. PoC Adj Factor Scoring'!$E$4:$J$4,0),TRUE)","v":1}]
[{"$f":"'A. Population Info'!A262","v":1000362675},{"$f":"'A. Population Info'!L262","v":"OIL"},{"$f":"'A. Population Info'!M262","v":0},{"$f":"'A. Population Info'!N262","v":0},{"$f":"'A. Population Info'!O262","v":0},{"$f":"'A. Population Info'!P262","v":0},{"$f":"VLOOKUP(OFFSET($B:$B,,MATCH(G$4,$B$4:$F$4,0)-1),OFFSET('C. PoC Adj Factor Scoring'!$E$5:$J$282,,MATCH(G$4,'C. PoC Adj Factor Scoring'!$E$3:$AH$3,0)-1),MATCH(G$2&\" Score\",'C. PoC Adj Factor Scoring'!$E$4:$J$4,0),TRUE)","v":4},{"$f":"VLOOKUP(OFFSET($B:$B,,MATCH(H$4,$B$4:$F$4,0)-1),OFFSET('C. PoC Adj Factor Scoring'!$E$5:$J$282,,MATCH(H$4,'C. PoC Adj Factor Scoring'!$E$3:$AH$3,0)-1),MATCH(H$2&\" Score\",'C. PoC Adj Factor Scoring'!$E$4:$J$4,0),TRUE)","v":1},{"$f":"VLOOKUP(OFFSET($B:$B,,MATCH(I$4,$B$4:$F$4,0)-1),OFFSET('C. PoC Adj Factor Scoring'!$E$5:$J$282,,MATCH(I$4,'C. PoC Adj Factor Scoring'!$E$3:$AH$3,0)-1),MATCH(I$2&\" Score\",'C. PoC Adj Factor Scoring'!$E$4:$J$4,0),TRUE)","v":1},{"$f":"VLOOKUP(OFFSET($B:$B,,MATCH(J$4,$B$4:$F$4,0)-1),OFFSET('C. PoC Adj Factor Scoring'!$E$5:$J$282,,MATCH(J$4,'C. PoC Adj Factor Scoring'!$E$3:$AH$3,0)-1),MATCH(J$2&\" Score\",'C. PoC Adj Factor Scoring'!$E$4:$J$4,0),TRUE)","v":1},{"$f":"VLOOKUP(OFFSET($B:$B,,MATCH(K$4,$B$4:$F$4,0)-1),OFFSET('C. PoC Adj Factor Scoring'!$E$5:$J$282,,MATCH(K$4,'C. PoC Adj Factor Scoring'!$E$3:$AH$3,0)-1),MATCH(K$2&\" Score\",'C. PoC Adj Factor Scoring'!$E$4:$J$4,0),TRUE)","v":1},{"$f":"VLOOKUP(OFFSET($B:$B,,MATCH(L$4,$B$4:$F$4,0)-1),OFFSET('C. PoC Adj Factor Scoring'!$E$5:$J$282,,MATCH(L$4,'C. PoC Adj Factor Scoring'!$E$3:$AH$3,0)-1),MATCH(L$2&\" Score\",'C. PoC Adj Factor Scoring'!$E$4:$J$4,0),TRUE)","v":1},{"$f":"VLOOKUP(OFFSET($B:$B,,MATCH(M$4,$B$4:$F$4,0)-1),OFFSET('C. PoC Adj Factor Scoring'!$E$5:$J$282,,MATCH(M$4,'C. PoC Adj Factor Scoring'!$E$3:$AH$3,0)-1),MATCH(M$2&\" Score\",'C. PoC Adj Factor Scoring'!$E$4:$J$4,0),TRUE)","v":1},{"$f":"VLOOKUP(OFFSET($B:$B,,MATCH(N$4,$B$4:$F$4,0)-1),OFFSET('C. PoC Adj Factor Scoring'!$E$5:$J$282,,MATCH(N$4,'C. PoC Adj Factor Scoring'!$E$3:$AH$3,0)-1),MATCH(N$2&\" Score\",'C. PoC Adj Factor Scoring'!$E$4:$J$4,0),TRUE)","v":1},{"$f":"VLOOKUP(OFFSET($B:$B,,MATCH(O$4,$B$4:$F$4,0)-1),OFFSET('C. PoC Adj Factor Scoring'!$E$5:$J$282,,MATCH(O$4,'C. PoC Adj Factor Scoring'!$E$3:$AH$3,0)-1),MATCH(O$2&\" Score\",'C. PoC Adj Factor Scoring'!$E$4:$J$4,0),TRUE)","v":1},{"$f":"VLOOKUP(OFFSET($B:$B,,MATCH(P$4,$B$4:$F$4,0)-1),OFFSET('C. PoC Adj Factor Scoring'!$E$5:$J$282,,MATCH(P$4,'C. PoC Adj Factor Scoring'!$E$3:$AH$3,0)-1),MATCH(P$2&\" Score\",'C. PoC Adj Factor Scoring'!$E$4:$J$4,0),TRUE)","v":1},{"$f":"VLOOKUP(OFFSET($B:$B,,MATCH(Q$4,$B$4:$F$4,0)-1),OFFSET('C. PoC Adj Factor Scoring'!$E$5:$J$282,,MATCH(Q$4,'C. PoC Adj Factor Scoring'!$E$3:$AH$3,0)-1),MATCH(Q$2&\" Score\",'C. PoC Adj Factor Scoring'!$E$4:$J$4,0),TRUE)","v":1},{"$f":"VLOOKUP(OFFSET($B:$B,,MATCH(R$4,$B$4:$F$4,0)-1),OFFSET('C. PoC Adj Factor Scoring'!$E$5:$J$282,,MATCH(R$4,'C. PoC Adj Factor Scoring'!$E$3:$AH$3,0)-1),MATCH(R$2&\" Score\",'C. PoC Adj Factor Scoring'!$E$4:$J$4,0),TRUE)","v":1},{"$f":"VLOOKUP(OFFSET($B:$B,,MATCH(S$4,$B$4:$F$4,0)-1),OFFSET('C. PoC Adj Factor Scoring'!$E$5:$J$282,,MATCH(S$4,'C. PoC Adj Factor Scoring'!$E$3:$AH$3,0)-1),MATCH(S$2&\" Score\",'C. PoC Adj Factor Scoring'!$E$4:$J$4,0),TRUE)","v":1},{"$f":"VLOOKUP(OFFSET($B:$B,,MATCH(T$4,$B$4:$F$4,0)-1),OFFSET('C. PoC Adj Factor Scoring'!$E$5:$J$282,,MATCH(T$4,'C. PoC Adj Factor Scoring'!$E$3:$AH$3,0)-1),MATCH(T$2&\" Score\",'C. PoC Adj Factor Scoring'!$E$4:$J$4,0),TRUE)","v":1},{"$f":"VLOOKUP(OFFSET($B:$B,,MATCH(U$4,$B$4:$F$4,0)-1),OFFSET('C. PoC Adj Factor Scoring'!$E$5:$J$282,,MATCH(U$4,'C. PoC Adj Factor Scoring'!$E$3:$AH$3,0)-1),MATCH(U$2&\" Score\",'C. PoC Adj Factor Scoring'!$E$4:$J$4,0),TRUE)","v":1},{"$f":"VLOOKUP(OFFSET($B:$B,,MATCH(V$4,$B$4:$F$4,0)-1),OFFSET('C. PoC Adj Factor Scoring'!$E$5:$J$282,,MATCH(V$4,'C. PoC Adj Factor Scoring'!$E$3:$AH$3,0)-1),MATCH(V$2&\" Score\",'C. PoC Adj Factor Scoring'!$E$4:$J$4,0),TRUE)","v":1},{"$f":"VLOOKUP(OFFSET($B:$B,,MATCH(W$4,$B$4:$F$4,0)-1),OFFSET('C. PoC Adj Factor Scoring'!$E$5:$J$282,,MATCH(W$4,'C. PoC Adj Factor Scoring'!$E$3:$AH$3,0)-1),MATCH(W$2&\" Score\",'C. PoC Adj Factor Scoring'!$E$4:$J$4,0),TRUE)","v":1},{"$f":"VLOOKUP(OFFSET($B:$B,,MATCH(X$4,$B$4:$F$4,0)-1),OFFSET('C. PoC Adj Factor Scoring'!$E$5:$J$282,,MATCH(X$4,'C. PoC Adj Factor Scoring'!$E$3:$AH$3,0)-1),MATCH(X$2&\" Score\",'C. PoC Adj Factor Scoring'!$E$4:$J$4,0),TRUE)","v":1},{"$f":"VLOOKUP(OFFSET($B:$B,,MATCH(Y$4,$B$4:$F$4,0)-1),OFFSET('C. PoC Adj Factor Scoring'!$E$5:$J$282,,MATCH(Y$4,'C. PoC Adj Factor Scoring'!$E$3:$AH$3,0)-1),MATCH(Y$2&\" Score\",'C. PoC Adj Factor Scoring'!$E$4:$J$4,0),TRUE)","v":1},{"$f":"VLOOKUP(OFFSET($B:$B,,MATCH(Z$4,$B$4:$F$4,0)-1),OFFSET('C. PoC Adj Factor Scoring'!$E$5:$J$282,,MATCH(Z$4,'C. PoC Adj Factor Scoring'!$E$3:$AH$3,0)-1),MATCH(Z$2&\" Score\",'C. PoC Adj Factor Scoring'!$E$4:$J$4,0),TRUE)","v":1},{"$f":"VLOOKUP(OFFSET($B:$B,,MATCH(AA$4,$B$4:$F$4,0)-1),OFFSET('C. PoC Adj Factor Scoring'!$E$5:$J$282,,MATCH(AA$4,'C. PoC Adj Factor Scoring'!$E$3:$AH$3,0)-1),MATCH(AA$2&\" Score\",'C. PoC Adj Factor Scoring'!$E$4:$J$4,0),TRUE)","v":3},{"$f":"VLOOKUP(OFFSET($B:$B,,MATCH(AB$4,$B$4:$F$4,0)-1),OFFSET('C. PoC Adj Factor Scoring'!$E$5:$J$282,,MATCH(AB$4,'C. PoC Adj Factor Scoring'!$E$3:$AH$3,0)-1),MATCH(AB$2&\" Score\",'C. PoC Adj Factor Scoring'!$E$4:$J$4,0),TRUE)","v":1},{"$f":"VLOOKUP(OFFSET($B:$B,,MATCH(AC$4,$B$4:$F$4,0)-1),OFFSET('C. PoC Adj Factor Scoring'!$E$5:$J$282,,MATCH(AC$4,'C. PoC Adj Factor Scoring'!$E$3:$AH$3,0)-1),MATCH(AC$2&\" Score\",'C. PoC Adj Factor Scoring'!$E$4:$J$4,0),TRUE)","v":1},{"$f":"VLOOKUP(OFFSET($B:$B,,MATCH(AD$4,$B$4:$F$4,0)-1),OFFSET('C. PoC Adj Factor Scoring'!$E$5:$J$282,,MATCH(AD$4,'C. PoC Adj Factor Scoring'!$E$3:$AH$3,0)-1),MATCH(AD$2&\" Score\",'C. PoC Adj Factor Scoring'!$E$4:$J$4,0),TRUE)","v":1},{"$f":"VLOOKUP(OFFSET($B:$B,,MATCH(AE$4,$B$4:$F$4,0)-1),OFFSET('C. PoC Adj Factor Scoring'!$E$5:$J$282,,MATCH(AE$4,'C. PoC Adj Factor Scoring'!$E$3:$AH$3,0)-1),MATCH(AE$2&\" Score\",'C. PoC Adj Factor Scoring'!$E$4:$J$4,0),TRUE)","v":1}]
[{"$f":"'A. Population Info'!A263","v":1000362711},{"$f":"'A. Population Info'!L263","v":"OIL"},{"$f":"'A. Population Info'!M263","v":0},{"$f":"'A. Population Info'!N263","v":0},{"$f":"'A. Population Info'!O263","v":0},{"$f":"'A. Population Info'!P263","v":0},{"$f":"VLOOKUP(OFFSET($B:$B,,MATCH(G$4,$B$4:$F$4,0)-1),OFFSET('C. PoC Adj Factor Scoring'!$E$5:$J$282,,MATCH(G$4,'C. PoC Adj Factor Scoring'!$E$3:$AH$3,0)-1),MATCH(G$2&\" Score\",'C. PoC Adj Factor Scoring'!$E$4:$J$4,0),TRUE)","v":4},{"$f":"VLOOKUP(OFFSET($B:$B,,MATCH(H$4,$B$4:$F$4,0)-1),OFFSET('C. PoC Adj Factor Scoring'!$E$5:$J$282,,MATCH(H$4,'C. PoC Adj Factor Scoring'!$E$3:$AH$3,0)-1),MATCH(H$2&\" Score\",'C. PoC Adj Factor Scoring'!$E$4:$J$4,0),TRUE)","v":1},{"$f":"VLOOKUP(OFFSET($B:$B,,MATCH(I$4,$B$4:$F$4,0)-1),OFFSET('C. PoC Adj Factor Scoring'!$E$5:$J$282,,MATCH(I$4,'C. PoC Adj Factor Scoring'!$E$3:$AH$3,0)-1),MATCH(I$2&\" Score\",'C. PoC Adj Factor Scoring'!$E$4:$J$4,0),TRUE)","v":1},{"$f":"VLOOKUP(OFFSET($B:$B,,MATCH(J$4,$B$4:$F$4,0)-1),OFFSET('C. PoC Adj Factor Scoring'!$E$5:$J$282,,MATCH(J$4,'C. PoC Adj Factor Scoring'!$E$3:$AH$3,0)-1),MATCH(J$2&\" Score\",'C. PoC Adj Factor Scoring'!$E$4:$J$4,0),TRUE)","v":1},{"$f":"VLOOKUP(OFFSET($B:$B,,MATCH(K$4,$B$4:$F$4,0)-1),OFFSET('C. PoC Adj Factor Scoring'!$E$5:$J$282,,MATCH(K$4,'C. PoC Adj Factor Scoring'!$E$3:$AH$3,0)-1),MATCH(K$2&\" Score\",'C. PoC Adj Factor Scoring'!$E$4:$J$4,0),TRUE)","v":1},{"$f":"VLOOKUP(OFFSET($B:$B,,MATCH(L$4,$B$4:$F$4,0)-1),OFFSET('C. PoC Adj Factor Scoring'!$E$5:$J$282,,MATCH(L$4,'C. PoC Adj Factor Scoring'!$E$3:$AH$3,0)-1),MATCH(L$2&\" Score\",'C. PoC Adj Factor Scoring'!$E$4:$J$4,0),TRUE)","v":1},{"$f":"VLOOKUP(OFFSET($B:$B,,MATCH(M$4,$B$4:$F$4,0)-1),OFFSET('C. PoC Adj Factor Scoring'!$E$5:$J$282,,MATCH(M$4,'C. PoC Adj Factor Scoring'!$E$3:$AH$3,0)-1),MATCH(M$2&\" Score\",'C. PoC Adj Factor Scoring'!$E$4:$J$4,0),TRUE)","v":1},{"$f":"VLOOKUP(OFFSET($B:$B,,MATCH(N$4,$B$4:$F$4,0)-1),OFFSET('C. PoC Adj Factor Scoring'!$E$5:$J$282,,MATCH(N$4,'C. PoC Adj Factor Scoring'!$E$3:$AH$3,0)-1),MATCH(N$2&\" Score\",'C. PoC Adj Factor Scoring'!$E$4:$J$4,0),TRUE)","v":1},{"$f":"VLOOKUP(OFFSET($B:$B,,MATCH(O$4,$B$4:$F$4,0)-1),OFFSET('C. PoC Adj Factor Scoring'!$E$5:$J$282,,MATCH(O$4,'C. PoC Adj Factor Scoring'!$E$3:$AH$3,0)-1),MATCH(O$2&\" Score\",'C. PoC Adj Factor Scoring'!$E$4:$J$4,0),TRUE)","v":1},{"$f":"VLOOKUP(OFFSET($B:$B,,MATCH(P$4,$B$4:$F$4,0)-1),OFFSET('C. PoC Adj Factor Scoring'!$E$5:$J$282,,MATCH(P$4,'C. PoC Adj Factor Scoring'!$E$3:$AH$3,0)-1),MATCH(P$2&\" Score\",'C. PoC Adj Factor Scoring'!$E$4:$J$4,0),TRUE)","v":1},{"$f":"VLOOKUP(OFFSET($B:$B,,MATCH(Q$4,$B$4:$F$4,0)-1),OFFSET('C. PoC Adj Factor Scoring'!$E$5:$J$282,,MATCH(Q$4,'C. PoC Adj Factor Scoring'!$E$3:$AH$3,0)-1),MATCH(Q$2&\" Score\",'C. PoC Adj Factor Scoring'!$E$4:$J$4,0),TRUE)","v":1},{"$f":"VLOOKUP(OFFSET($B:$B,,MATCH(R$4,$B$4:$F$4,0)-1),OFFSET('C. PoC Adj Factor Scoring'!$E$5:$J$282,,MATCH(R$4,'C. PoC Adj Factor Scoring'!$E$3:$AH$3,0)-1),MATCH(R$2&\" Score\",'C. PoC Adj Factor Scoring'!$E$4:$J$4,0),TRUE)","v":1},{"$f":"VLOOKUP(OFFSET($B:$B,,MATCH(S$4,$B$4:$F$4,0)-1),OFFSET('C. PoC Adj Factor Scoring'!$E$5:$J$282,,MATCH(S$4,'C. PoC Adj Factor Scoring'!$E$3:$AH$3,0)-1),MATCH(S$2&\" Score\",'C. PoC Adj Factor Scoring'!$E$4:$J$4,0),TRUE)","v":1},{"$f":"VLOOKUP(OFFSET($B:$B,,MATCH(T$4,$B$4:$F$4,0)-1),OFFSET('C. PoC Adj Factor Scoring'!$E$5:$J$282,,MATCH(T$4,'C. PoC Adj Factor Scoring'!$E$3:$AH$3,0)-1),MATCH(T$2&\" Score\",'C. PoC Adj Factor Scoring'!$E$4:$J$4,0),TRUE)","v":1},{"$f":"VLOOKUP(OFFSET($B:$B,,MATCH(U$4,$B$4:$F$4,0)-1),OFFSET('C. PoC Adj Factor Scoring'!$E$5:$J$282,,MATCH(U$4,'C. PoC Adj Factor Scoring'!$E$3:$AH$3,0)-1),MATCH(U$2&\" Score\",'C. PoC Adj Factor Scoring'!$E$4:$J$4,0),TRUE)","v":1},{"$f":"VLOOKUP(OFFSET($B:$B,,MATCH(V$4,$B$4:$F$4,0)-1),OFFSET('C. PoC Adj Factor Scoring'!$E$5:$J$282,,MATCH(V$4,'C. PoC Adj Factor Scoring'!$E$3:$AH$3,0)-1),MATCH(V$2&\" Score\",'C. PoC Adj Factor Scoring'!$E$4:$J$4,0),TRUE)","v":1},{"$f":"VLOOKUP(OFFSET($B:$B,,MATCH(W$4,$B$4:$F$4,0)-1),OFFSET('C. PoC Adj Factor Scoring'!$E$5:$J$282,,MATCH(W$4,'C. PoC Adj Factor Scoring'!$E$3:$AH$3,0)-1),MATCH(W$2&\" Score\",'C. PoC Adj Factor Scoring'!$E$4:$J$4,0),TRUE)","v":1},{"$f":"VLOOKUP(OFFSET($B:$B,,MATCH(X$4,$B$4:$F$4,0)-1),OFFSET('C. PoC Adj Factor Scoring'!$E$5:$J$282,,MATCH(X$4,'C. PoC Adj Factor Scoring'!$E$3:$AH$3,0)-1),MATCH(X$2&\" Score\",'C. PoC Adj Factor Scoring'!$E$4:$J$4,0),TRUE)","v":1},{"$f":"VLOOKUP(OFFSET($B:$B,,MATCH(Y$4,$B$4:$F$4,0)-1),OFFSET('C. PoC Adj Factor Scoring'!$E$5:$J$282,,MATCH(Y$4,'C. PoC Adj Factor Scoring'!$E$3:$AH$3,0)-1),MATCH(Y$2&\" Score\",'C. PoC Adj Factor Scoring'!$E$4:$J$4,0),TRUE)","v":1},{"$f":"VLOOKUP(OFFSET($B:$B,,MATCH(Z$4,$B$4:$F$4,0)-1),OFFSET('C. PoC Adj Factor Scoring'!$E$5:$J$282,,MATCH(Z$4,'C. PoC Adj Factor Scoring'!$E$3:$AH$3,0)-1),MATCH(Z$2&\" Score\",'C. PoC Adj Factor Scoring'!$E$4:$J$4,0),TRUE)","v":1},{"$f":"VLOOKUP(OFFSET($B:$B,,MATCH(AA$4,$B$4:$F$4,0)-1),OFFSET('C. PoC Adj Factor Scoring'!$E$5:$J$282,,MATCH(AA$4,'C. PoC Adj Factor Scoring'!$E$3:$AH$3,0)-1),MATCH(AA$2&\" Score\",'C. PoC Adj Factor Scoring'!$E$4:$J$4,0),TRUE)","v":3},{"$f":"VLOOKUP(OFFSET($B:$B,,MATCH(AB$4,$B$4:$F$4,0)-1),OFFSET('C. PoC Adj Factor Scoring'!$E$5:$J$282,,MATCH(AB$4,'C. PoC Adj Factor Scoring'!$E$3:$AH$3,0)-1),MATCH(AB$2&\" Score\",'C. PoC Adj Factor Scoring'!$E$4:$J$4,0),TRUE)","v":1},{"$f":"VLOOKUP(OFFSET($B:$B,,MATCH(AC$4,$B$4:$F$4,0)-1),OFFSET('C. PoC Adj Factor Scoring'!$E$5:$J$282,,MATCH(AC$4,'C. PoC Adj Factor Scoring'!$E$3:$AH$3,0)-1),MATCH(AC$2&\" Score\",'C. PoC Adj Factor Scoring'!$E$4:$J$4,0),TRUE)","v":1},{"$f":"VLOOKUP(OFFSET($B:$B,,MATCH(AD$4,$B$4:$F$4,0)-1),OFFSET('C. PoC Adj Factor Scoring'!$E$5:$J$282,,MATCH(AD$4,'C. PoC Adj Factor Scoring'!$E$3:$AH$3,0)-1),MATCH(AD$2&\" Score\",'C. PoC Adj Factor Scoring'!$E$4:$J$4,0),TRUE)","v":1},{"$f":"VLOOKUP(OFFSET($B:$B,,MATCH(AE$4,$B$4:$F$4,0)-1),OFFSET('C. PoC Adj Factor Scoring'!$E$5:$J$282,,MATCH(AE$4,'C. PoC Adj Factor Scoring'!$E$3:$AH$3,0)-1),MATCH(AE$2&\" Score\",'C. PoC Adj Factor Scoring'!$E$4:$J$4,0),TRUE)","v":1}]
[{"$f":"'A. Population Info'!A264","v":1000362743},{"$f":"'A. Population Info'!L264","v":"OIL"},{"$f":"'A. Population Info'!M264","v":0},{"$f":"'A. Population Info'!N264","v":0},{"$f":"'A. Population Info'!O264","v":0},{"$f":"'A. Population Info'!P264","v":0},{"$f":"VLOOKUP(OFFSET($B:$B,,MATCH(G$4,$B$4:$F$4,0)-1),OFFSET('C. PoC Adj Factor Scoring'!$E$5:$J$282,,MATCH(G$4,'C. PoC Adj Factor Scoring'!$E$3:$AH$3,0)-1),MATCH(G$2&\" Score\",'C. PoC Adj Factor Scoring'!$E$4:$J$4,0),TRUE)","v":4},{"$f":"VLOOKUP(OFFSET($B:$B,,MATCH(H$4,$B$4:$F$4,0)-1),OFFSET('C. PoC Adj Factor Scoring'!$E$5:$J$282,,MATCH(H$4,'C. PoC Adj Factor Scoring'!$E$3:$AH$3,0)-1),MATCH(H$2&\" Score\",'C. PoC Adj Factor Scoring'!$E$4:$J$4,0),TRUE)","v":1},{"$f":"VLOOKUP(OFFSET($B:$B,,MATCH(I$4,$B$4:$F$4,0)-1),OFFSET('C. PoC Adj Factor Scoring'!$E$5:$J$282,,MATCH(I$4,'C. PoC Adj Factor Scoring'!$E$3:$AH$3,0)-1),MATCH(I$2&\" Score\",'C. PoC Adj Factor Scoring'!$E$4:$J$4,0),TRUE)","v":1},{"$f":"VLOOKUP(OFFSET($B:$B,,MATCH(J$4,$B$4:$F$4,0)-1),OFFSET('C. PoC Adj Factor Scoring'!$E$5:$J$282,,MATCH(J$4,'C. PoC Adj Factor Scoring'!$E$3:$AH$3,0)-1),MATCH(J$2&\" Score\",'C. PoC Adj Factor Scoring'!$E$4:$J$4,0),TRUE)","v":1},{"$f":"VLOOKUP(OFFSET($B:$B,,MATCH(K$4,$B$4:$F$4,0)-1),OFFSET('C. PoC Adj Factor Scoring'!$E$5:$J$282,,MATCH(K$4,'C. PoC Adj Factor Scoring'!$E$3:$AH$3,0)-1),MATCH(K$2&\" Score\",'C. PoC Adj Factor Scoring'!$E$4:$J$4,0),TRUE)","v":1},{"$f":"VLOOKUP(OFFSET($B:$B,,MATCH(L$4,$B$4:$F$4,0)-1),OFFSET('C. PoC Adj Factor Scoring'!$E$5:$J$282,,MATCH(L$4,'C. PoC Adj Factor Scoring'!$E$3:$AH$3,0)-1),MATCH(L$2&\" Score\",'C. PoC Adj Factor Scoring'!$E$4:$J$4,0),TRUE)","v":1},{"$f":"VLOOKUP(OFFSET($B:$B,,MATCH(M$4,$B$4:$F$4,0)-1),OFFSET('C. PoC Adj Factor Scoring'!$E$5:$J$282,,MATCH(M$4,'C. PoC Adj Factor Scoring'!$E$3:$AH$3,0)-1),MATCH(M$2&\" Score\",'C. PoC Adj Factor Scoring'!$E$4:$J$4,0),TRUE)","v":1},{"$f":"VLOOKUP(OFFSET($B:$B,,MATCH(N$4,$B$4:$F$4,0)-1),OFFSET('C. PoC Adj Factor Scoring'!$E$5:$J$282,,MATCH(N$4,'C. PoC Adj Factor Scoring'!$E$3:$AH$3,0)-1),MATCH(N$2&\" Score\",'C. PoC Adj Factor Scoring'!$E$4:$J$4,0),TRUE)","v":1},{"$f":"VLOOKUP(OFFSET($B:$B,,MATCH(O$4,$B$4:$F$4,0)-1),OFFSET('C. PoC Adj Factor Scoring'!$E$5:$J$282,,MATCH(O$4,'C. PoC Adj Factor Scoring'!$E$3:$AH$3,0)-1),MATCH(O$2&\" Score\",'C. PoC Adj Factor Scoring'!$E$4:$J$4,0),TRUE)","v":1},{"$f":"VLOOKUP(OFFSET($B:$B,,MATCH(P$4,$B$4:$F$4,0)-1),OFFSET('C. PoC Adj Factor Scoring'!$E$5:$J$282,,MATCH(P$4,'C. PoC Adj Factor Scoring'!$E$3:$AH$3,0)-1),MATCH(P$2&\" Score\",'C. PoC Adj Factor Scoring'!$E$4:$J$4,0),TRUE)","v":1},{"$f":"VLOOKUP(OFFSET($B:$B,,MATCH(Q$4,$B$4:$F$4,0)-1),OFFSET('C. PoC Adj Factor Scoring'!$E$5:$J$282,,MATCH(Q$4,'C. PoC Adj Factor Scoring'!$E$3:$AH$3,0)-1),MATCH(Q$2&\" Score\",'C. PoC Adj Factor Scoring'!$E$4:$J$4,0),TRUE)","v":1},{"$f":"VLOOKUP(OFFSET($B:$B,,MATCH(R$4,$B$4:$F$4,0)-1),OFFSET('C. PoC Adj Factor Scoring'!$E$5:$J$282,,MATCH(R$4,'C. PoC Adj Factor Scoring'!$E$3:$AH$3,0)-1),MATCH(R$2&\" Score\",'C. PoC Adj Factor Scoring'!$E$4:$J$4,0),TRUE)","v":1},{"$f":"VLOOKUP(OFFSET($B:$B,,MATCH(S$4,$B$4:$F$4,0)-1),OFFSET('C. PoC Adj Factor Scoring'!$E$5:$J$282,,MATCH(S$4,'C. PoC Adj Factor Scoring'!$E$3:$AH$3,0)-1),MATCH(S$2&\" Score\",'C. PoC Adj Factor Scoring'!$E$4:$J$4,0),TRUE)","v":1},{"$f":"VLOOKUP(OFFSET($B:$B,,MATCH(T$4,$B$4:$F$4,0)-1),OFFSET('C. PoC Adj Factor Scoring'!$E$5:$J$282,,MATCH(T$4,'C. PoC Adj Factor Scoring'!$E$3:$AH$3,0)-1),MATCH(T$2&\" Score\",'C. PoC Adj Factor Scoring'!$E$4:$J$4,0),TRUE)","v":1},{"$f":"VLOOKUP(OFFSET($B:$B,,MATCH(U$4,$B$4:$F$4,0)-1),OFFSET('C. PoC Adj Factor Scoring'!$E$5:$J$282,,MATCH(U$4,'C. PoC Adj Factor Scoring'!$E$3:$AH$3,0)-1),MATCH(U$2&\" Score\",'C. PoC Adj Factor Scoring'!$E$4:$J$4,0),TRUE)","v":1},{"$f":"VLOOKUP(OFFSET($B:$B,,MATCH(V$4,$B$4:$F$4,0)-1),OFFSET('C. PoC Adj Factor Scoring'!$E$5:$J$282,,MATCH(V$4,'C. PoC Adj Factor Scoring'!$E$3:$AH$3,0)-1),MATCH(V$2&\" Score\",'C. PoC Adj Factor Scoring'!$E$4:$J$4,0),TRUE)","v":1},{"$f":"VLOOKUP(OFFSET($B:$B,,MATCH(W$4,$B$4:$F$4,0)-1),OFFSET('C. PoC Adj Factor Scoring'!$E$5:$J$282,,MATCH(W$4,'C. PoC Adj Factor Scoring'!$E$3:$AH$3,0)-1),MATCH(W$2&\" Score\",'C. PoC Adj Factor Scoring'!$E$4:$J$4,0),TRUE)","v":1},{"$f":"VLOOKUP(OFFSET($B:$B,,MATCH(X$4,$B$4:$F$4,0)-1),OFFSET('C. PoC Adj Factor Scoring'!$E$5:$J$282,,MATCH(X$4,'C. PoC Adj Factor Scoring'!$E$3:$AH$3,0)-1),MATCH(X$2&\" Score\",'C. PoC Adj Factor Scoring'!$E$4:$J$4,0),TRUE)","v":1},{"$f":"VLOOKUP(OFFSET($B:$B,,MATCH(Y$4,$B$4:$F$4,0)-1),OFFSET('C. PoC Adj Factor Scoring'!$E$5:$J$282,,MATCH(Y$4,'C. PoC Adj Factor Scoring'!$E$3:$AH$3,0)-1),MATCH(Y$2&\" Score\",'C. PoC Adj Factor Scoring'!$E$4:$J$4,0),TRUE)","v":1},{"$f":"VLOOKUP(OFFSET($B:$B,,MATCH(Z$4,$B$4:$F$4,0)-1),OFFSET('C. PoC Adj Factor Scoring'!$E$5:$J$282,,MATCH(Z$4,'C. PoC Adj Factor Scoring'!$E$3:$AH$3,0)-1),MATCH(Z$2&\" Score\",'C. PoC Adj Factor Scoring'!$E$4:$J$4,0),TRUE)","v":1},{"$f":"VLOOKUP(OFFSET($B:$B,,MATCH(AA$4,$B$4:$F$4,0)-1),OFFSET('C. PoC Adj Factor Scoring'!$E$5:$J$282,,MATCH(AA$4,'C. PoC Adj Factor Scoring'!$E$3:$AH$3,0)-1),MATCH(AA$2&\" Score\",'C. PoC Adj Factor Scoring'!$E$4:$J$4,0),TRUE)","v":3},{"$f":"VLOOKUP(OFFSET($B:$B,,MATCH(AB$4,$B$4:$F$4,0)-1),OFFSET('C. PoC Adj Factor Scoring'!$E$5:$J$282,,MATCH(AB$4,'C. PoC Adj Factor Scoring'!$E$3:$AH$3,0)-1),MATCH(AB$2&\" Score\",'C. PoC Adj Factor Scoring'!$E$4:$J$4,0),TRUE)","v":1},{"$f":"VLOOKUP(OFFSET($B:$B,,MATCH(AC$4,$B$4:$F$4,0)-1),OFFSET('C. PoC Adj Factor Scoring'!$E$5:$J$282,,MATCH(AC$4,'C. PoC Adj Factor Scoring'!$E$3:$AH$3,0)-1),MATCH(AC$2&\" Score\",'C. PoC Adj Factor Scoring'!$E$4:$J$4,0),TRUE)","v":1},{"$f":"VLOOKUP(OFFSET($B:$B,,MATCH(AD$4,$B$4:$F$4,0)-1),OFFSET('C. PoC Adj Factor Scoring'!$E$5:$J$282,,MATCH(AD$4,'C. PoC Adj Factor Scoring'!$E$3:$AH$3,0)-1),MATCH(AD$2&\" Score\",'C. PoC Adj Factor Scoring'!$E$4:$J$4,0),TRUE)","v":1},{"$f":"VLOOKUP(OFFSET($B:$B,,MATCH(AE$4,$B$4:$F$4,0)-1),OFFSET('C. PoC Adj Factor Scoring'!$E$5:$J$282,,MATCH(AE$4,'C. PoC Adj Factor Scoring'!$E$3:$AH$3,0)-1),MATCH(AE$2&\" Score\",'C. PoC Adj Factor Scoring'!$E$4:$J$4,0),TRUE)","v":1}]
[{"$f":"'A. Population Info'!A265","v":1000362772},{"$f":"'A. Population Info'!L265","v":"OIL"},{"$f":"'A. Population Info'!M265","v":0},{"$f":"'A. Population Info'!N265","v":0},{"$f":"'A. Population Info'!O265","v":0},{"$f":"'A. Population Info'!P265","v":0},{"$f":"VLOOKUP(OFFSET($B:$B,,MATCH(G$4,$B$4:$F$4,0)-1),OFFSET('C. PoC Adj Factor Scoring'!$E$5:$J$282,,MATCH(G$4,'C. PoC Adj Factor Scoring'!$E$3:$AH$3,0)-1),MATCH(G$2&\" Score\",'C. PoC Adj Factor Scoring'!$E$4:$J$4,0),TRUE)","v":4},{"$f":"VLOOKUP(OFFSET($B:$B,,MATCH(H$4,$B$4:$F$4,0)-1),OFFSET('C. PoC Adj Factor Scoring'!$E$5:$J$282,,MATCH(H$4,'C. PoC Adj Factor Scoring'!$E$3:$AH$3,0)-1),MATCH(H$2&\" Score\",'C. PoC Adj Factor Scoring'!$E$4:$J$4,0),TRUE)","v":1},{"$f":"VLOOKUP(OFFSET($B:$B,,MATCH(I$4,$B$4:$F$4,0)-1),OFFSET('C. PoC Adj Factor Scoring'!$E$5:$J$282,,MATCH(I$4,'C. PoC Adj Factor Scoring'!$E$3:$AH$3,0)-1),MATCH(I$2&\" Score\",'C. PoC Adj Factor Scoring'!$E$4:$J$4,0),TRUE)","v":1},{"$f":"VLOOKUP(OFFSET($B:$B,,MATCH(J$4,$B$4:$F$4,0)-1),OFFSET('C. PoC Adj Factor Scoring'!$E$5:$J$282,,MATCH(J$4,'C. PoC Adj Factor Scoring'!$E$3:$AH$3,0)-1),MATCH(J$2&\" Score\",'C. PoC Adj Factor Scoring'!$E$4:$J$4,0),TRUE)","v":1},{"$f":"VLOOKUP(OFFSET($B:$B,,MATCH(K$4,$B$4:$F$4,0)-1),OFFSET('C. PoC Adj Factor Scoring'!$E$5:$J$282,,MATCH(K$4,'C. PoC Adj Factor Scoring'!$E$3:$AH$3,0)-1),MATCH(K$2&\" Score\",'C. PoC Adj Factor Scoring'!$E$4:$J$4,0),TRUE)","v":1},{"$f":"VLOOKUP(OFFSET($B:$B,,MATCH(L$4,$B$4:$F$4,0)-1),OFFSET('C. PoC Adj Factor Scoring'!$E$5:$J$282,,MATCH(L$4,'C. PoC Adj Factor Scoring'!$E$3:$AH$3,0)-1),MATCH(L$2&\" Score\",'C. PoC Adj Factor Scoring'!$E$4:$J$4,0),TRUE)","v":1},{"$f":"VLOOKUP(OFFSET($B:$B,,MATCH(M$4,$B$4:$F$4,0)-1),OFFSET('C. PoC Adj Factor Scoring'!$E$5:$J$282,,MATCH(M$4,'C. PoC Adj Factor Scoring'!$E$3:$AH$3,0)-1),MATCH(M$2&\" Score\",'C. PoC Adj Factor Scoring'!$E$4:$J$4,0),TRUE)","v":1},{"$f":"VLOOKUP(OFFSET($B:$B,,MATCH(N$4,$B$4:$F$4,0)-1),OFFSET('C. PoC Adj Factor Scoring'!$E$5:$J$282,,MATCH(N$4,'C. PoC Adj Factor Scoring'!$E$3:$AH$3,0)-1),MATCH(N$2&\" Score\",'C. PoC Adj Factor Scoring'!$E$4:$J$4,0),TRUE)","v":1},{"$f":"VLOOKUP(OFFSET($B:$B,,MATCH(O$4,$B$4:$F$4,0)-1),OFFSET('C. PoC Adj Factor Scoring'!$E$5:$J$282,,MATCH(O$4,'C. PoC Adj Factor Scoring'!$E$3:$AH$3,0)-1),MATCH(O$2&\" Score\",'C. PoC Adj Factor Scoring'!$E$4:$J$4,0),TRUE)","v":1},{"$f":"VLOOKUP(OFFSET($B:$B,,MATCH(P$4,$B$4:$F$4,0)-1),OFFSET('C. PoC Adj Factor Scoring'!$E$5:$J$282,,MATCH(P$4,'C. PoC Adj Factor Scoring'!$E$3:$AH$3,0)-1),MATCH(P$2&\" Score\",'C. PoC Adj Factor Scoring'!$E$4:$J$4,0),TRUE)","v":1},{"$f":"VLOOKUP(OFFSET($B:$B,,MATCH(Q$4,$B$4:$F$4,0)-1),OFFSET('C. PoC Adj Factor Scoring'!$E$5:$J$282,,MATCH(Q$4,'C. PoC Adj Factor Scoring'!$E$3:$AH$3,0)-1),MATCH(Q$2&\" Score\",'C. PoC Adj Factor Scoring'!$E$4:$J$4,0),TRUE)","v":1},{"$f":"VLOOKUP(OFFSET($B:$B,,MATCH(R$4,$B$4:$F$4,0)-1),OFFSET('C. PoC Adj Factor Scoring'!$E$5:$J$282,,MATCH(R$4,'C. PoC Adj Factor Scoring'!$E$3:$AH$3,0)-1),MATCH(R$2&\" Score\",'C. PoC Adj Factor Scoring'!$E$4:$J$4,0),TRUE)","v":1},{"$f":"VLOOKUP(OFFSET($B:$B,,MATCH(S$4,$B$4:$F$4,0)-1),OFFSET('C. PoC Adj Factor Scoring'!$E$5:$J$282,,MATCH(S$4,'C. PoC Adj Factor Scoring'!$E$3:$AH$3,0)-1),MATCH(S$2&\" Score\",'C. PoC Adj Factor Scoring'!$E$4:$J$4,0),TRUE)","v":1},{"$f":"VLOOKUP(OFFSET($B:$B,,MATCH(T$4,$B$4:$F$4,0)-1),OFFSET('C. PoC Adj Factor Scoring'!$E$5:$J$282,,MATCH(T$4,'C. PoC Adj Factor Scoring'!$E$3:$AH$3,0)-1),MATCH(T$2&\" Score\",'C. PoC Adj Factor Scoring'!$E$4:$J$4,0),TRUE)","v":1},{"$f":"VLOOKUP(OFFSET($B:$B,,MATCH(U$4,$B$4:$F$4,0)-1),OFFSET('C. PoC Adj Factor Scoring'!$E$5:$J$282,,MATCH(U$4,'C. PoC Adj Factor Scoring'!$E$3:$AH$3,0)-1),MATCH(U$2&\" Score\",'C. PoC Adj Factor Scoring'!$E$4:$J$4,0),TRUE)","v":1},{"$f":"VLOOKUP(OFFSET($B:$B,,MATCH(V$4,$B$4:$F$4,0)-1),OFFSET('C. PoC Adj Factor Scoring'!$E$5:$J$282,,MATCH(V$4,'C. PoC Adj Factor Scoring'!$E$3:$AH$3,0)-1),MATCH(V$2&\" Score\",'C. PoC Adj Factor Scoring'!$E$4:$J$4,0),TRUE)","v":1},{"$f":"VLOOKUP(OFFSET($B:$B,,MATCH(W$4,$B$4:$F$4,0)-1),OFFSET('C. PoC Adj Factor Scoring'!$E$5:$J$282,,MATCH(W$4,'C. PoC Adj Factor Scoring'!$E$3:$AH$3,0)-1),MATCH(W$2&\" Score\",'C. PoC Adj Factor Scoring'!$E$4:$J$4,0),TRUE)","v":1},{"$f":"VLOOKUP(OFFSET($B:$B,,MATCH(X$4,$B$4:$F$4,0)-1),OFFSET('C. PoC Adj Factor Scoring'!$E$5:$J$282,,MATCH(X$4,'C. PoC Adj Factor Scoring'!$E$3:$AH$3,0)-1),MATCH(X$2&\" Score\",'C. PoC Adj Factor Scoring'!$E$4:$J$4,0),TRUE)","v":1},{"$f":"VLOOKUP(OFFSET($B:$B,,MATCH(Y$4,$B$4:$F$4,0)-1),OFFSET('C. PoC Adj Factor Scoring'!$E$5:$J$282,,MATCH(Y$4,'C. PoC Adj Factor Scoring'!$E$3:$AH$3,0)-1),MATCH(Y$2&\" Score\",'C. PoC Adj Factor Scoring'!$E$4:$J$4,0),TRUE)","v":1},{"$f":"VLOOKUP(OFFSET($B:$B,,MATCH(Z$4,$B$4:$F$4,0)-1),OFFSET('C. PoC Adj Factor Scoring'!$E$5:$J$282,,MATCH(Z$4,'C. PoC Adj Factor Scoring'!$E$3:$AH$3,0)-1),MATCH(Z$2&\" Score\",'C. PoC Adj Factor Scoring'!$E$4:$J$4,0),TRUE)","v":1},{"$f":"VLOOKUP(OFFSET($B:$B,,MATCH(AA$4,$B$4:$F$4,0)-1),OFFSET('C. PoC Adj Factor Scoring'!$E$5:$J$282,,MATCH(AA$4,'C. PoC Adj Factor Scoring'!$E$3:$AH$3,0)-1),MATCH(AA$2&\" Score\",'C. PoC Adj Factor Scoring'!$E$4:$J$4,0),TRUE)","v":3},{"$f":"VLOOKUP(OFFSET($B:$B,,MATCH(AB$4,$B$4:$F$4,0)-1),OFFSET('C. PoC Adj Factor Scoring'!$E$5:$J$282,,MATCH(AB$4,'C. PoC Adj Factor Scoring'!$E$3:$AH$3,0)-1),MATCH(AB$2&\" Score\",'C. PoC Adj Factor Scoring'!$E$4:$J$4,0),TRUE)","v":1},{"$f":"VLOOKUP(OFFSET($B:$B,,MATCH(AC$4,$B$4:$F$4,0)-1),OFFSET('C. PoC Adj Factor Scoring'!$E$5:$J$282,,MATCH(AC$4,'C. PoC Adj Factor Scoring'!$E$3:$AH$3,0)-1),MATCH(AC$2&\" Score\",'C. PoC Adj Factor Scoring'!$E$4:$J$4,0),TRUE)","v":1},{"$f":"VLOOKUP(OFFSET($B:$B,,MATCH(AD$4,$B$4:$F$4,0)-1),OFFSET('C. PoC Adj Factor Scoring'!$E$5:$J$282,,MATCH(AD$4,'C. PoC Adj Factor Scoring'!$E$3:$AH$3,0)-1),MATCH(AD$2&\" Score\",'C. PoC Adj Factor Scoring'!$E$4:$J$4,0),TRUE)","v":1},{"$f":"VLOOKUP(OFFSET($B:$B,,MATCH(AE$4,$B$4:$F$4,0)-1),OFFSET('C. PoC Adj Factor Scoring'!$E$5:$J$282,,MATCH(AE$4,'C. PoC Adj Factor Scoring'!$E$3:$AH$3,0)-1),MATCH(AE$2&\" Score\",'C. PoC Adj Factor Scoring'!$E$4:$J$4,0),TRUE)","v":1}]
[{"$f":"'A. Population Info'!A266","v":1000362807},{"$f":"'A. Population Info'!L266","v":"OIL"},{"$f":"'A. Population Info'!M266","v":0},{"$f":"'A. Population Info'!N266","v":0},{"$f":"'A. Population Info'!O266","v":0},{"$f":"'A. Population Info'!P266","v":0},{"$f":"VLOOKUP(OFFSET($B:$B,,MATCH(G$4,$B$4:$F$4,0)-1),OFFSET('C. PoC Adj Factor Scoring'!$E$5:$J$282,,MATCH(G$4,'C. PoC Adj Factor Scoring'!$E$3:$AH$3,0)-1),MATCH(G$2&\" Score\",'C. PoC Adj Factor Scoring'!$E$4:$J$4,0),TRUE)","v":4},{"$f":"VLOOKUP(OFFSET($B:$B,,MATCH(H$4,$B$4:$F$4,0)-1),OFFSET('C. PoC Adj Factor Scoring'!$E$5:$J$282,,MATCH(H$4,'C. PoC Adj Factor Scoring'!$E$3:$AH$3,0)-1),MATCH(H$2&\" Score\",'C. PoC Adj Factor Scoring'!$E$4:$J$4,0),TRUE)","v":1},{"$f":"VLOOKUP(OFFSET($B:$B,,MATCH(I$4,$B$4:$F$4,0)-1),OFFSET('C. PoC Adj Factor Scoring'!$E$5:$J$282,,MATCH(I$4,'C. PoC Adj Factor Scoring'!$E$3:$AH$3,0)-1),MATCH(I$2&\" Score\",'C. PoC Adj Factor Scoring'!$E$4:$J$4,0),TRUE)","v":1},{"$f":"VLOOKUP(OFFSET($B:$B,,MATCH(J$4,$B$4:$F$4,0)-1),OFFSET('C. PoC Adj Factor Scoring'!$E$5:$J$282,,MATCH(J$4,'C. PoC Adj Factor Scoring'!$E$3:$AH$3,0)-1),MATCH(J$2&\" Score\",'C. PoC Adj Factor Scoring'!$E$4:$J$4,0),TRUE)","v":1},{"$f":"VLOOKUP(OFFSET($B:$B,,MATCH(K$4,$B$4:$F$4,0)-1),OFFSET('C. PoC Adj Factor Scoring'!$E$5:$J$282,,MATCH(K$4,'C. PoC Adj Factor Scoring'!$E$3:$AH$3,0)-1),MATCH(K$2&\" Score\",'C. PoC Adj Factor Scoring'!$E$4:$J$4,0),TRUE)","v":1},{"$f":"VLOOKUP(OFFSET($B:$B,,MATCH(L$4,$B$4:$F$4,0)-1),OFFSET('C. PoC Adj Factor Scoring'!$E$5:$J$282,,MATCH(L$4,'C. PoC Adj Factor Scoring'!$E$3:$AH$3,0)-1),MATCH(L$2&\" Score\",'C. PoC Adj Factor Scoring'!$E$4:$J$4,0),TRUE)","v":1},{"$f":"VLOOKUP(OFFSET($B:$B,,MATCH(M$4,$B$4:$F$4,0)-1),OFFSET('C. PoC Adj Factor Scoring'!$E$5:$J$282,,MATCH(M$4,'C. PoC Adj Factor Scoring'!$E$3:$AH$3,0)-1),MATCH(M$2&\" Score\",'C. PoC Adj Factor Scoring'!$E$4:$J$4,0),TRUE)","v":1},{"$f":"VLOOKUP(OFFSET($B:$B,,MATCH(N$4,$B$4:$F$4,0)-1),OFFSET('C. PoC Adj Factor Scoring'!$E$5:$J$282,,MATCH(N$4,'C. PoC Adj Factor Scoring'!$E$3:$AH$3,0)-1),MATCH(N$2&\" Score\",'C. PoC Adj Factor Scoring'!$E$4:$J$4,0),TRUE)","v":1},{"$f":"VLOOKUP(OFFSET($B:$B,,MATCH(O$4,$B$4:$F$4,0)-1),OFFSET('C. PoC Adj Factor Scoring'!$E$5:$J$282,,MATCH(O$4,'C. PoC Adj Factor Scoring'!$E$3:$AH$3,0)-1),MATCH(O$2&\" Score\",'C. PoC Adj Factor Scoring'!$E$4:$J$4,0),TRUE)","v":1},{"$f":"VLOOKUP(OFFSET($B:$B,,MATCH(P$4,$B$4:$F$4,0)-1),OFFSET('C. PoC Adj Factor Scoring'!$E$5:$J$282,,MATCH(P$4,'C. PoC Adj Factor Scoring'!$E$3:$AH$3,0)-1),MATCH(P$2&\" Score\",'C. PoC Adj Factor Scoring'!$E$4:$J$4,0),TRUE)","v":1},{"$f":"VLOOKUP(OFFSET($B:$B,,MATCH(Q$4,$B$4:$F$4,0)-1),OFFSET('C. PoC Adj Factor Scoring'!$E$5:$J$282,,MATCH(Q$4,'C. PoC Adj Factor Scoring'!$E$3:$AH$3,0)-1),MATCH(Q$2&\" Score\",'C. PoC Adj Factor Scoring'!$E$4:$J$4,0),TRUE)","v":1},{"$f":"VLOOKUP(OFFSET($B:$B,,MATCH(R$4,$B$4:$F$4,0)-1),OFFSET('C. PoC Adj Factor Scoring'!$E$5:$J$282,,MATCH(R$4,'C. PoC Adj Factor Scoring'!$E$3:$AH$3,0)-1),MATCH(R$2&\" Score\",'C. PoC Adj Factor Scoring'!$E$4:$J$4,0),TRUE)","v":1},{"$f":"VLOOKUP(OFFSET($B:$B,,MATCH(S$4,$B$4:$F$4,0)-1),OFFSET('C. PoC Adj Factor Scoring'!$E$5:$J$282,,MATCH(S$4,'C. PoC Adj Factor Scoring'!$E$3:$AH$3,0)-1),MATCH(S$2&\" Score\",'C. PoC Adj Factor Scoring'!$E$4:$J$4,0),TRUE)","v":1},{"$f":"VLOOKUP(OFFSET($B:$B,,MATCH(T$4,$B$4:$F$4,0)-1),OFFSET('C. PoC Adj Factor Scoring'!$E$5:$J$282,,MATCH(T$4,'C. PoC Adj Factor Scoring'!$E$3:$AH$3,0)-1),MATCH(T$2&\" Score\",'C. PoC Adj Factor Scoring'!$E$4:$J$4,0),TRUE)","v":1},{"$f":"VLOOKUP(OFFSET($B:$B,,MATCH(U$4,$B$4:$F$4,0)-1),OFFSET('C. PoC Adj Factor Scoring'!$E$5:$J$282,,MATCH(U$4,'C. PoC Adj Factor Scoring'!$E$3:$AH$3,0)-1),MATCH(U$2&\" Score\",'C. PoC Adj Factor Scoring'!$E$4:$J$4,0),TRUE)","v":1},{"$f":"VLOOKUP(OFFSET($B:$B,,MATCH(V$4,$B$4:$F$4,0)-1),OFFSET('C. PoC Adj Factor Scoring'!$E$5:$J$282,,MATCH(V$4,'C. PoC Adj Factor Scoring'!$E$3:$AH$3,0)-1),MATCH(V$2&\" Score\",'C. PoC Adj Factor Scoring'!$E$4:$J$4,0),TRUE)","v":1},{"$f":"VLOOKUP(OFFSET($B:$B,,MATCH(W$4,$B$4:$F$4,0)-1),OFFSET('C. PoC Adj Factor Scoring'!$E$5:$J$282,,MATCH(W$4,'C. PoC Adj Factor Scoring'!$E$3:$AH$3,0)-1),MATCH(W$2&\" Score\",'C. PoC Adj Factor Scoring'!$E$4:$J$4,0),TRUE)","v":1},{"$f":"VLOOKUP(OFFSET($B:$B,,MATCH(X$4,$B$4:$F$4,0)-1),OFFSET('C. PoC Adj Factor Scoring'!$E$5:$J$282,,MATCH(X$4,'C. PoC Adj Factor Scoring'!$E$3:$AH$3,0)-1),MATCH(X$2&\" Score\",'C. PoC Adj Factor Scoring'!$E$4:$J$4,0),TRUE)","v":1},{"$f":"VLOOKUP(OFFSET($B:$B,,MATCH(Y$4,$B$4:$F$4,0)-1),OFFSET('C. PoC Adj Factor Scoring'!$E$5:$J$282,,MATCH(Y$4,'C. PoC Adj Factor Scoring'!$E$3:$AH$3,0)-1),MATCH(Y$2&\" Score\",'C. PoC Adj Factor Scoring'!$E$4:$J$4,0),TRUE)","v":1},{"$f":"VLOOKUP(OFFSET($B:$B,,MATCH(Z$4,$B$4:$F$4,0)-1),OFFSET('C. PoC Adj Factor Scoring'!$E$5:$J$282,,MATCH(Z$4,'C. PoC Adj Factor Scoring'!$E$3:$AH$3,0)-1),MATCH(Z$2&\" Score\",'C. PoC Adj Factor Scoring'!$E$4:$J$4,0),TRUE)","v":1},{"$f":"VLOOKUP(OFFSET($B:$B,,MATCH(AA$4,$B$4:$F$4,0)-1),OFFSET('C. PoC Adj Factor Scoring'!$E$5:$J$282,,MATCH(AA$4,'C. PoC Adj Factor Scoring'!$E$3:$AH$3,0)-1),MATCH(AA$2&\" Score\",'C. PoC Adj Factor Scoring'!$E$4:$J$4,0),TRUE)","v":3},{"$f":"VLOOKUP(OFFSET($B:$B,,MATCH(AB$4,$B$4:$F$4,0)-1),OFFSET('C. PoC Adj Factor Scoring'!$E$5:$J$282,,MATCH(AB$4,'C. PoC Adj Factor Scoring'!$E$3:$AH$3,0)-1),MATCH(AB$2&\" Score\",'C. PoC Adj Factor Scoring'!$E$4:$J$4,0),TRUE)","v":1},{"$f":"VLOOKUP(OFFSET($B:$B,,MATCH(AC$4,$B$4:$F$4,0)-1),OFFSET('C. PoC Adj Factor Scoring'!$E$5:$J$282,,MATCH(AC$4,'C. PoC Adj Factor Scoring'!$E$3:$AH$3,0)-1),MATCH(AC$2&\" Score\",'C. PoC Adj Factor Scoring'!$E$4:$J$4,0),TRUE)","v":1},{"$f":"VLOOKUP(OFFSET($B:$B,,MATCH(AD$4,$B$4:$F$4,0)-1),OFFSET('C. PoC Adj Factor Scoring'!$E$5:$J$282,,MATCH(AD$4,'C. PoC Adj Factor Scoring'!$E$3:$AH$3,0)-1),MATCH(AD$2&\" Score\",'C. PoC Adj Factor Scoring'!$E$4:$J$4,0),TRUE)","v":1},{"$f":"VLOOKUP(OFFSET($B:$B,,MATCH(AE$4,$B$4:$F$4,0)-1),OFFSET('C. PoC Adj Factor Scoring'!$E$5:$J$282,,MATCH(AE$4,'C. PoC Adj Factor Scoring'!$E$3:$AH$3,0)-1),MATCH(AE$2&\" Score\",'C. PoC Adj Factor Scoring'!$E$4:$J$4,0),TRUE)","v":1}]
[{"$f":"'A. Population Info'!A267","v":1000362836},{"$f":"'A. Population Info'!L267","v":"OIL"},{"$f":"'A. Population Info'!M267","v":0},{"$f":"'A. Population Info'!N267","v":0},{"$f":"'A. Population Info'!O267","v":0},{"$f":"'A. Population Info'!P267","v":0},{"$f":"VLOOKUP(OFFSET($B:$B,,MATCH(G$4,$B$4:$F$4,0)-1),OFFSET('C. PoC Adj Factor Scoring'!$E$5:$J$282,,MATCH(G$4,'C. PoC Adj Factor Scoring'!$E$3:$AH$3,0)-1),MATCH(G$2&\" Score\",'C. PoC Adj Factor Scoring'!$E$4:$J$4,0),TRUE)","v":4},{"$f":"VLOOKUP(OFFSET($B:$B,,MATCH(H$4,$B$4:$F$4,0)-1),OFFSET('C. PoC Adj Factor Scoring'!$E$5:$J$282,,MATCH(H$4,'C. PoC Adj Factor Scoring'!$E$3:$AH$3,0)-1),MATCH(H$2&\" Score\",'C. PoC Adj Factor Scoring'!$E$4:$J$4,0),TRUE)","v":1},{"$f":"VLOOKUP(OFFSET($B:$B,,MATCH(I$4,$B$4:$F$4,0)-1),OFFSET('C. PoC Adj Factor Scoring'!$E$5:$J$282,,MATCH(I$4,'C. PoC Adj Factor Scoring'!$E$3:$AH$3,0)-1),MATCH(I$2&\" Score\",'C. PoC Adj Factor Scoring'!$E$4:$J$4,0),TRUE)","v":1},{"$f":"VLOOKUP(OFFSET($B:$B,,MATCH(J$4,$B$4:$F$4,0)-1),OFFSET('C. PoC Adj Factor Scoring'!$E$5:$J$282,,MATCH(J$4,'C. PoC Adj Factor Scoring'!$E$3:$AH$3,0)-1),MATCH(J$2&\" Score\",'C. PoC Adj Factor Scoring'!$E$4:$J$4,0),TRUE)","v":1},{"$f":"VLOOKUP(OFFSET($B:$B,,MATCH(K$4,$B$4:$F$4,0)-1),OFFSET('C. PoC Adj Factor Scoring'!$E$5:$J$282,,MATCH(K$4,'C. PoC Adj Factor Scoring'!$E$3:$AH$3,0)-1),MATCH(K$2&\" Score\",'C. PoC Adj Factor Scoring'!$E$4:$J$4,0),TRUE)","v":1},{"$f":"VLOOKUP(OFFSET($B:$B,,MATCH(L$4,$B$4:$F$4,0)-1),OFFSET('C. PoC Adj Factor Scoring'!$E$5:$J$282,,MATCH(L$4,'C. PoC Adj Factor Scoring'!$E$3:$AH$3,0)-1),MATCH(L$2&\" Score\",'C. PoC Adj Factor Scoring'!$E$4:$J$4,0),TRUE)","v":1},{"$f":"VLOOKUP(OFFSET($B:$B,,MATCH(M$4,$B$4:$F$4,0)-1),OFFSET('C. PoC Adj Factor Scoring'!$E$5:$J$282,,MATCH(M$4,'C. PoC Adj Factor Scoring'!$E$3:$AH$3,0)-1),MATCH(M$2&\" Score\",'C. PoC Adj Factor Scoring'!$E$4:$J$4,0),TRUE)","v":1},{"$f":"VLOOKUP(OFFSET($B:$B,,MATCH(N$4,$B$4:$F$4,0)-1),OFFSET('C. PoC Adj Factor Scoring'!$E$5:$J$282,,MATCH(N$4,'C. PoC Adj Factor Scoring'!$E$3:$AH$3,0)-1),MATCH(N$2&\" Score\",'C. PoC Adj Factor Scoring'!$E$4:$J$4,0),TRUE)","v":1},{"$f":"VLOOKUP(OFFSET($B:$B,,MATCH(O$4,$B$4:$F$4,0)-1),OFFSET('C. PoC Adj Factor Scoring'!$E$5:$J$282,,MATCH(O$4,'C. PoC Adj Factor Scoring'!$E$3:$AH$3,0)-1),MATCH(O$2&\" Score\",'C. PoC Adj Factor Scoring'!$E$4:$J$4,0),TRUE)","v":1},{"$f":"VLOOKUP(OFFSET($B:$B,,MATCH(P$4,$B$4:$F$4,0)-1),OFFSET('C. PoC Adj Factor Scoring'!$E$5:$J$282,,MATCH(P$4,'C. PoC Adj Factor Scoring'!$E$3:$AH$3,0)-1),MATCH(P$2&\" Score\",'C. PoC Adj Factor Scoring'!$E$4:$J$4,0),TRUE)","v":1},{"$f":"VLOOKUP(OFFSET($B:$B,,MATCH(Q$4,$B$4:$F$4,0)-1),OFFSET('C. PoC Adj Factor Scoring'!$E$5:$J$282,,MATCH(Q$4,'C. PoC Adj Factor Scoring'!$E$3:$AH$3,0)-1),MATCH(Q$2&\" Score\",'C. PoC Adj Factor Scoring'!$E$4:$J$4,0),TRUE)","v":1},{"$f":"VLOOKUP(OFFSET($B:$B,,MATCH(R$4,$B$4:$F$4,0)-1),OFFSET('C. PoC Adj Factor Scoring'!$E$5:$J$282,,MATCH(R$4,'C. PoC Adj Factor Scoring'!$E$3:$AH$3,0)-1),MATCH(R$2&\" Score\",'C. PoC Adj Factor Scoring'!$E$4:$J$4,0),TRUE)","v":1},{"$f":"VLOOKUP(OFFSET($B:$B,,MATCH(S$4,$B$4:$F$4,0)-1),OFFSET('C. PoC Adj Factor Scoring'!$E$5:$J$282,,MATCH(S$4,'C. PoC Adj Factor Scoring'!$E$3:$AH$3,0)-1),MATCH(S$2&\" Score\",'C. PoC Adj Factor Scoring'!$E$4:$J$4,0),TRUE)","v":1},{"$f":"VLOOKUP(OFFSET($B:$B,,MATCH(T$4,$B$4:$F$4,0)-1),OFFSET('C. PoC Adj Factor Scoring'!$E$5:$J$282,,MATCH(T$4,'C. PoC Adj Factor Scoring'!$E$3:$AH$3,0)-1),MATCH(T$2&\" Score\",'C. PoC Adj Factor Scoring'!$E$4:$J$4,0),TRUE)","v":1},{"$f":"VLOOKUP(OFFSET($B:$B,,MATCH(U$4,$B$4:$F$4,0)-1),OFFSET('C. PoC Adj Factor Scoring'!$E$5:$J$282,,MATCH(U$4,'C. PoC Adj Factor Scoring'!$E$3:$AH$3,0)-1),MATCH(U$2&\" Score\",'C. PoC Adj Factor Scoring'!$E$4:$J$4,0),TRUE)","v":1},{"$f":"VLOOKUP(OFFSET($B:$B,,MATCH(V$4,$B$4:$F$4,0)-1),OFFSET('C. PoC Adj Factor Scoring'!$E$5:$J$282,,MATCH(V$4,'C. PoC Adj Factor Scoring'!$E$3:$AH$3,0)-1),MATCH(V$2&\" Score\",'C. PoC Adj Factor Scoring'!$E$4:$J$4,0),TRUE)","v":1},{"$f":"VLOOKUP(OFFSET($B:$B,,MATCH(W$4,$B$4:$F$4,0)-1),OFFSET('C. PoC Adj Factor Scoring'!$E$5:$J$282,,MATCH(W$4,'C. PoC Adj Factor Scoring'!$E$3:$AH$3,0)-1),MATCH(W$2&\" Score\",'C. PoC Adj Factor Scoring'!$E$4:$J$4,0),TRUE)","v":1},{"$f":"VLOOKUP(OFFSET($B:$B,,MATCH(X$4,$B$4:$F$4,0)-1),OFFSET('C. PoC Adj Factor Scoring'!$E$5:$J$282,,MATCH(X$4,'C. PoC Adj Factor Scoring'!$E$3:$AH$3,0)-1),MATCH(X$2&\" Score\",'C. PoC Adj Factor Scoring'!$E$4:$J$4,0),TRUE)","v":1},{"$f":"VLOOKUP(OFFSET($B:$B,,MATCH(Y$4,$B$4:$F$4,0)-1),OFFSET('C. PoC Adj Factor Scoring'!$E$5:$J$282,,MATCH(Y$4,'C. PoC Adj Factor Scoring'!$E$3:$AH$3,0)-1),MATCH(Y$2&\" Score\",'C. PoC Adj Factor Scoring'!$E$4:$J$4,0),TRUE)","v":1},{"$f":"VLOOKUP(OFFSET($B:$B,,MATCH(Z$4,$B$4:$F$4,0)-1),OFFSET('C. PoC Adj Factor Scoring'!$E$5:$J$282,,MATCH(Z$4,'C. PoC Adj Factor Scoring'!$E$3:$AH$3,0)-1),MATCH(Z$2&\" Score\",'C. PoC Adj Factor Scoring'!$E$4:$J$4,0),TRUE)","v":1},{"$f":"VLOOKUP(OFFSET($B:$B,,MATCH(AA$4,$B$4:$F$4,0)-1),OFFSET('C. PoC Adj Factor Scoring'!$E$5:$J$282,,MATCH(AA$4,'C. PoC Adj Factor Scoring'!$E$3:$AH$3,0)-1),MATCH(AA$2&\" Score\",'C. PoC Adj Factor Scoring'!$E$4:$J$4,0),TRUE)","v":3},{"$f":"VLOOKUP(OFFSET($B:$B,,MATCH(AB$4,$B$4:$F$4,0)-1),OFFSET('C. PoC Adj Factor Scoring'!$E$5:$J$282,,MATCH(AB$4,'C. PoC Adj Factor Scoring'!$E$3:$AH$3,0)-1),MATCH(AB$2&\" Score\",'C. PoC Adj Factor Scoring'!$E$4:$J$4,0),TRUE)","v":1},{"$f":"VLOOKUP(OFFSET($B:$B,,MATCH(AC$4,$B$4:$F$4,0)-1),OFFSET('C. PoC Adj Factor Scoring'!$E$5:$J$282,,MATCH(AC$4,'C. PoC Adj Factor Scoring'!$E$3:$AH$3,0)-1),MATCH(AC$2&\" Score\",'C. PoC Adj Factor Scoring'!$E$4:$J$4,0),TRUE)","v":1},{"$f":"VLOOKUP(OFFSET($B:$B,,MATCH(AD$4,$B$4:$F$4,0)-1),OFFSET('C. PoC Adj Factor Scoring'!$E$5:$J$282,,MATCH(AD$4,'C. PoC Adj Factor Scoring'!$E$3:$AH$3,0)-1),MATCH(AD$2&\" Score\",'C. PoC Adj Factor Scoring'!$E$4:$J$4,0),TRUE)","v":1},{"$f":"VLOOKUP(OFFSET($B:$B,,MATCH(AE$4,$B$4:$F$4,0)-1),OFFSET('C. PoC Adj Factor Scoring'!$E$5:$J$282,,MATCH(AE$4,'C. PoC Adj Factor Scoring'!$E$3:$AH$3,0)-1),MATCH(AE$2&\" Score\",'C. PoC Adj Factor Scoring'!$E$4:$J$4,0),TRUE)","v":1}]
[{"$f":"'A. Population Info'!A268","v":1000362870},{"$f":"'A. Population Info'!L268","v":"OIL"},{"$f":"'A. Population Info'!M268","v":0},{"$f":"'A. Population Info'!N268","v":0},{"$f":"'A. Population Info'!O268","v":0},{"$f":"'A. Population Info'!P268","v":0},{"$f":"VLOOKUP(OFFSET($B:$B,,MATCH(G$4,$B$4:$F$4,0)-1),OFFSET('C. PoC Adj Factor Scoring'!$E$5:$J$282,,MATCH(G$4,'C. PoC Adj Factor Scoring'!$E$3:$AH$3,0)-1),MATCH(G$2&\" Score\",'C. PoC Adj Factor Scoring'!$E$4:$J$4,0),TRUE)","v":4},{"$f":"VLOOKUP(OFFSET($B:$B,,MATCH(H$4,$B$4:$F$4,0)-1),OFFSET('C. PoC Adj Factor Scoring'!$E$5:$J$282,,MATCH(H$4,'C. PoC Adj Factor Scoring'!$E$3:$AH$3,0)-1),MATCH(H$2&\" Score\",'C. PoC Adj Factor Scoring'!$E$4:$J$4,0),TRUE)","v":1},{"$f":"VLOOKUP(OFFSET($B:$B,,MATCH(I$4,$B$4:$F$4,0)-1),OFFSET('C. PoC Adj Factor Scoring'!$E$5:$J$282,,MATCH(I$4,'C. PoC Adj Factor Scoring'!$E$3:$AH$3,0)-1),MATCH(I$2&\" Score\",'C. PoC Adj Factor Scoring'!$E$4:$J$4,0),TRUE)","v":1},{"$f":"VLOOKUP(OFFSET($B:$B,,MATCH(J$4,$B$4:$F$4,0)-1),OFFSET('C. PoC Adj Factor Scoring'!$E$5:$J$282,,MATCH(J$4,'C. PoC Adj Factor Scoring'!$E$3:$AH$3,0)-1),MATCH(J$2&\" Score\",'C. PoC Adj Factor Scoring'!$E$4:$J$4,0),TRUE)","v":1},{"$f":"VLOOKUP(OFFSET($B:$B,,MATCH(K$4,$B$4:$F$4,0)-1),OFFSET('C. PoC Adj Factor Scoring'!$E$5:$J$282,,MATCH(K$4,'C. PoC Adj Factor Scoring'!$E$3:$AH$3,0)-1),MATCH(K$2&\" Score\",'C. PoC Adj Factor Scoring'!$E$4:$J$4,0),TRUE)","v":1},{"$f":"VLOOKUP(OFFSET($B:$B,,MATCH(L$4,$B$4:$F$4,0)-1),OFFSET('C. PoC Adj Factor Scoring'!$E$5:$J$282,,MATCH(L$4,'C. PoC Adj Factor Scoring'!$E$3:$AH$3,0)-1),MATCH(L$2&\" Score\",'C. PoC Adj Factor Scoring'!$E$4:$J$4,0),TRUE)","v":1},{"$f":"VLOOKUP(OFFSET($B:$B,,MATCH(M$4,$B$4:$F$4,0)-1),OFFSET('C. PoC Adj Factor Scoring'!$E$5:$J$282,,MATCH(M$4,'C. PoC Adj Factor Scoring'!$E$3:$AH$3,0)-1),MATCH(M$2&\" Score\",'C. PoC Adj Factor Scoring'!$E$4:$J$4,0),TRUE)","v":1},{"$f":"VLOOKUP(OFFSET($B:$B,,MATCH(N$4,$B$4:$F$4,0)-1),OFFSET('C. PoC Adj Factor Scoring'!$E$5:$J$282,,MATCH(N$4,'C. PoC Adj Factor Scoring'!$E$3:$AH$3,0)-1),MATCH(N$2&\" Score\",'C. PoC Adj Factor Scoring'!$E$4:$J$4,0),TRUE)","v":1},{"$f":"VLOOKUP(OFFSET($B:$B,,MATCH(O$4,$B$4:$F$4,0)-1),OFFSET('C. PoC Adj Factor Scoring'!$E$5:$J$282,,MATCH(O$4,'C. PoC Adj Factor Scoring'!$E$3:$AH$3,0)-1),MATCH(O$2&\" Score\",'C. PoC Adj Factor Scoring'!$E$4:$J$4,0),TRUE)","v":1},{"$f":"VLOOKUP(OFFSET($B:$B,,MATCH(P$4,$B$4:$F$4,0)-1),OFFSET('C. PoC Adj Factor Scoring'!$E$5:$J$282,,MATCH(P$4,'C. PoC Adj Factor Scoring'!$E$3:$AH$3,0)-1),MATCH(P$2&\" Score\",'C. PoC Adj Factor Scoring'!$E$4:$J$4,0),TRUE)","v":1},{"$f":"VLOOKUP(OFFSET($B:$B,,MATCH(Q$4,$B$4:$F$4,0)-1),OFFSET('C. PoC Adj Factor Scoring'!$E$5:$J$282,,MATCH(Q$4,'C. PoC Adj Factor Scoring'!$E$3:$AH$3,0)-1),MATCH(Q$2&\" Score\",'C. PoC Adj Factor Scoring'!$E$4:$J$4,0),TRUE)","v":1},{"$f":"VLOOKUP(OFFSET($B:$B,,MATCH(R$4,$B$4:$F$4,0)-1),OFFSET('C. PoC Adj Factor Scoring'!$E$5:$J$282,,MATCH(R$4,'C. PoC Adj Factor Scoring'!$E$3:$AH$3,0)-1),MATCH(R$2&\" Score\",'C. PoC Adj Factor Scoring'!$E$4:$J$4,0),TRUE)","v":1},{"$f":"VLOOKUP(OFFSET($B:$B,,MATCH(S$4,$B$4:$F$4,0)-1),OFFSET('C. PoC Adj Factor Scoring'!$E$5:$J$282,,MATCH(S$4,'C. PoC Adj Factor Scoring'!$E$3:$AH$3,0)-1),MATCH(S$2&\" Score\",'C. PoC Adj Factor Scoring'!$E$4:$J$4,0),TRUE)","v":1},{"$f":"VLOOKUP(OFFSET($B:$B,,MATCH(T$4,$B$4:$F$4,0)-1),OFFSET('C. PoC Adj Factor Scoring'!$E$5:$J$282,,MATCH(T$4,'C. PoC Adj Factor Scoring'!$E$3:$AH$3,0)-1),MATCH(T$2&\" Score\",'C. PoC Adj Factor Scoring'!$E$4:$J$4,0),TRUE)","v":1},{"$f":"VLOOKUP(OFFSET($B:$B,,MATCH(U$4,$B$4:$F$4,0)-1),OFFSET('C. PoC Adj Factor Scoring'!$E$5:$J$282,,MATCH(U$4,'C. PoC Adj Factor Scoring'!$E$3:$AH$3,0)-1),MATCH(U$2&\" Score\",'C. PoC Adj Factor Scoring'!$E$4:$J$4,0),TRUE)","v":1},{"$f":"VLOOKUP(OFFSET($B:$B,,MATCH(V$4,$B$4:$F$4,0)-1),OFFSET('C. PoC Adj Factor Scoring'!$E$5:$J$282,,MATCH(V$4,'C. PoC Adj Factor Scoring'!$E$3:$AH$3,0)-1),MATCH(V$2&\" Score\",'C. PoC Adj Factor Scoring'!$E$4:$J$4,0),TRUE)","v":1},{"$f":"VLOOKUP(OFFSET($B:$B,,MATCH(W$4,$B$4:$F$4,0)-1),OFFSET('C. PoC Adj Factor Scoring'!$E$5:$J$282,,MATCH(W$4,'C. PoC Adj Factor Scoring'!$E$3:$AH$3,0)-1),MATCH(W$2&\" Score\",'C. PoC Adj Factor Scoring'!$E$4:$J$4,0),TRUE)","v":1},{"$f":"VLOOKUP(OFFSET($B:$B,,MATCH(X$4,$B$4:$F$4,0)-1),OFFSET('C. PoC Adj Factor Scoring'!$E$5:$J$282,,MATCH(X$4,'C. PoC Adj Factor Scoring'!$E$3:$AH$3,0)-1),MATCH(X$2&\" Score\",'C. PoC Adj Factor Scoring'!$E$4:$J$4,0),TRUE)","v":1},{"$f":"VLOOKUP(OFFSET($B:$B,,MATCH(Y$4,$B$4:$F$4,0)-1),OFFSET('C. PoC Adj Factor Scoring'!$E$5:$J$282,,MATCH(Y$4,'C. PoC Adj Factor Scoring'!$E$3:$AH$3,0)-1),MATCH(Y$2&\" Score\",'C. PoC Adj Factor Scoring'!$E$4:$J$4,0),TRUE)","v":1},{"$f":"VLOOKUP(OFFSET($B:$B,,MATCH(Z$4,$B$4:$F$4,0)-1),OFFSET('C. PoC Adj Factor Scoring'!$E$5:$J$282,,MATCH(Z$4,'C. PoC Adj Factor Scoring'!$E$3:$AH$3,0)-1),MATCH(Z$2&\" Score\",'C. PoC Adj Factor Scoring'!$E$4:$J$4,0),TRUE)","v":1},{"$f":"VLOOKUP(OFFSET($B:$B,,MATCH(AA$4,$B$4:$F$4,0)-1),OFFSET('C. PoC Adj Factor Scoring'!$E$5:$J$282,,MATCH(AA$4,'C. PoC Adj Factor Scoring'!$E$3:$AH$3,0)-1),MATCH(AA$2&\" Score\",'C. PoC Adj Factor Scoring'!$E$4:$J$4,0),TRUE)","v":3},{"$f":"VLOOKUP(OFFSET($B:$B,,MATCH(AB$4,$B$4:$F$4,0)-1),OFFSET('C. PoC Adj Factor Scoring'!$E$5:$J$282,,MATCH(AB$4,'C. PoC Adj Factor Scoring'!$E$3:$AH$3,0)-1),MATCH(AB$2&\" Score\",'C. PoC Adj Factor Scoring'!$E$4:$J$4,0),TRUE)","v":1},{"$f":"VLOOKUP(OFFSET($B:$B,,MATCH(AC$4,$B$4:$F$4,0)-1),OFFSET('C. PoC Adj Factor Scoring'!$E$5:$J$282,,MATCH(AC$4,'C. PoC Adj Factor Scoring'!$E$3:$AH$3,0)-1),MATCH(AC$2&\" Score\",'C. PoC Adj Factor Scoring'!$E$4:$J$4,0),TRUE)","v":1},{"$f":"VLOOKUP(OFFSET($B:$B,,MATCH(AD$4,$B$4:$F$4,0)-1),OFFSET('C. PoC Adj Factor Scoring'!$E$5:$J$282,,MATCH(AD$4,'C. PoC Adj Factor Scoring'!$E$3:$AH$3,0)-1),MATCH(AD$2&\" Score\",'C. PoC Adj Factor Scoring'!$E$4:$J$4,0),TRUE)","v":1},{"$f":"VLOOKUP(OFFSET($B:$B,,MATCH(AE$4,$B$4:$F$4,0)-1),OFFSET('C. PoC Adj Factor Scoring'!$E$5:$J$282,,MATCH(AE$4,'C. PoC Adj Factor Scoring'!$E$3:$AH$3,0)-1),MATCH(AE$2&\" Score\",'C. PoC Adj Factor Scoring'!$E$4:$J$4,0),TRUE)","v":1}]
[{"$f":"'A. Population Info'!A269","v":1000362899},{"$f":"'A. Population Info'!L269","v":"OIL"},{"$f":"'A. Population Info'!M269","v":0},{"$f":"'A. Population Info'!N269","v":0},{"$f":"'A. Population Info'!O269","v":0},{"$f":"'A. Population Info'!P269","v":0},{"$f":"VLOOKUP(OFFSET($B:$B,,MATCH(G$4,$B$4:$F$4,0)-1),OFFSET('C. PoC Adj Factor Scoring'!$E$5:$J$282,,MATCH(G$4,'C. PoC Adj Factor Scoring'!$E$3:$AH$3,0)-1),MATCH(G$2&\" Score\",'C. PoC Adj Factor Scoring'!$E$4:$J$4,0),TRUE)","v":4},{"$f":"VLOOKUP(OFFSET($B:$B,,MATCH(H$4,$B$4:$F$4,0)-1),OFFSET('C. PoC Adj Factor Scoring'!$E$5:$J$282,,MATCH(H$4,'C. PoC Adj Factor Scoring'!$E$3:$AH$3,0)-1),MATCH(H$2&\" Score\",'C. PoC Adj Factor Scoring'!$E$4:$J$4,0),TRUE)","v":1},{"$f":"VLOOKUP(OFFSET($B:$B,,MATCH(I$4,$B$4:$F$4,0)-1),OFFSET('C. PoC Adj Factor Scoring'!$E$5:$J$282,,MATCH(I$4,'C. PoC Adj Factor Scoring'!$E$3:$AH$3,0)-1),MATCH(I$2&\" Score\",'C. PoC Adj Factor Scoring'!$E$4:$J$4,0),TRUE)","v":1},{"$f":"VLOOKUP(OFFSET($B:$B,,MATCH(J$4,$B$4:$F$4,0)-1),OFFSET('C. PoC Adj Factor Scoring'!$E$5:$J$282,,MATCH(J$4,'C. PoC Adj Factor Scoring'!$E$3:$AH$3,0)-1),MATCH(J$2&\" Score\",'C. PoC Adj Factor Scoring'!$E$4:$J$4,0),TRUE)","v":1},{"$f":"VLOOKUP(OFFSET($B:$B,,MATCH(K$4,$B$4:$F$4,0)-1),OFFSET('C. PoC Adj Factor Scoring'!$E$5:$J$282,,MATCH(K$4,'C. PoC Adj Factor Scoring'!$E$3:$AH$3,0)-1),MATCH(K$2&\" Score\",'C. PoC Adj Factor Scoring'!$E$4:$J$4,0),TRUE)","v":1},{"$f":"VLOOKUP(OFFSET($B:$B,,MATCH(L$4,$B$4:$F$4,0)-1),OFFSET('C. PoC Adj Factor Scoring'!$E$5:$J$282,,MATCH(L$4,'C. PoC Adj Factor Scoring'!$E$3:$AH$3,0)-1),MATCH(L$2&\" Score\",'C. PoC Adj Factor Scoring'!$E$4:$J$4,0),TRUE)","v":1},{"$f":"VLOOKUP(OFFSET($B:$B,,MATCH(M$4,$B$4:$F$4,0)-1),OFFSET('C. PoC Adj Factor Scoring'!$E$5:$J$282,,MATCH(M$4,'C. PoC Adj Factor Scoring'!$E$3:$AH$3,0)-1),MATCH(M$2&\" Score\",'C. PoC Adj Factor Scoring'!$E$4:$J$4,0),TRUE)","v":1},{"$f":"VLOOKUP(OFFSET($B:$B,,MATCH(N$4,$B$4:$F$4,0)-1),OFFSET('C. PoC Adj Factor Scoring'!$E$5:$J$282,,MATCH(N$4,'C. PoC Adj Factor Scoring'!$E$3:$AH$3,0)-1),MATCH(N$2&\" Score\",'C. PoC Adj Factor Scoring'!$E$4:$J$4,0),TRUE)","v":1},{"$f":"VLOOKUP(OFFSET($B:$B,,MATCH(O$4,$B$4:$F$4,0)-1),OFFSET('C. PoC Adj Factor Scoring'!$E$5:$J$282,,MATCH(O$4,'C. PoC Adj Factor Scoring'!$E$3:$AH$3,0)-1),MATCH(O$2&\" Score\",'C. PoC Adj Factor Scoring'!$E$4:$J$4,0),TRUE)","v":1},{"$f":"VLOOKUP(OFFSET($B:$B,,MATCH(P$4,$B$4:$F$4,0)-1),OFFSET('C. PoC Adj Factor Scoring'!$E$5:$J$282,,MATCH(P$4,'C. PoC Adj Factor Scoring'!$E$3:$AH$3,0)-1),MATCH(P$2&\" Score\",'C. PoC Adj Factor Scoring'!$E$4:$J$4,0),TRUE)","v":1},{"$f":"VLOOKUP(OFFSET($B:$B,,MATCH(Q$4,$B$4:$F$4,0)-1),OFFSET('C. PoC Adj Factor Scoring'!$E$5:$J$282,,MATCH(Q$4,'C. PoC Adj Factor Scoring'!$E$3:$AH$3,0)-1),MATCH(Q$2&\" Score\",'C. PoC Adj Factor Scoring'!$E$4:$J$4,0),TRUE)","v":1},{"$f":"VLOOKUP(OFFSET($B:$B,,MATCH(R$4,$B$4:$F$4,0)-1),OFFSET('C. PoC Adj Factor Scoring'!$E$5:$J$282,,MATCH(R$4,'C. PoC Adj Factor Scoring'!$E$3:$AH$3,0)-1),MATCH(R$2&\" Score\",'C. PoC Adj Factor Scoring'!$E$4:$J$4,0),TRUE)","v":1},{"$f":"VLOOKUP(OFFSET($B:$B,,MATCH(S$4,$B$4:$F$4,0)-1),OFFSET('C. PoC Adj Factor Scoring'!$E$5:$J$282,,MATCH(S$4,'C. PoC Adj Factor Scoring'!$E$3:$AH$3,0)-1),MATCH(S$2&\" Score\",'C. PoC Adj Factor Scoring'!$E$4:$J$4,0),TRUE)","v":1},{"$f":"VLOOKUP(OFFSET($B:$B,,MATCH(T$4,$B$4:$F$4,0)-1),OFFSET('C. PoC Adj Factor Scoring'!$E$5:$J$282,,MATCH(T$4,'C. PoC Adj Factor Scoring'!$E$3:$AH$3,0)-1),MATCH(T$2&\" Score\",'C. PoC Adj Factor Scoring'!$E$4:$J$4,0),TRUE)","v":1},{"$f":"VLOOKUP(OFFSET($B:$B,,MATCH(U$4,$B$4:$F$4,0)-1),OFFSET('C. PoC Adj Factor Scoring'!$E$5:$J$282,,MATCH(U$4,'C. PoC Adj Factor Scoring'!$E$3:$AH$3,0)-1),MATCH(U$2&\" Score\",'C. PoC Adj Factor Scoring'!$E$4:$J$4,0),TRUE)","v":1},{"$f":"VLOOKUP(OFFSET($B:$B,,MATCH(V$4,$B$4:$F$4,0)-1),OFFSET('C. PoC Adj Factor Scoring'!$E$5:$J$282,,MATCH(V$4,'C. PoC Adj Factor Scoring'!$E$3:$AH$3,0)-1),MATCH(V$2&\" Score\",'C. PoC Adj Factor Scoring'!$E$4:$J$4,0),TRUE)","v":1},{"$f":"VLOOKUP(OFFSET($B:$B,,MATCH(W$4,$B$4:$F$4,0)-1),OFFSET('C. PoC Adj Factor Scoring'!$E$5:$J$282,,MATCH(W$4,'C. PoC Adj Factor Scoring'!$E$3:$AH$3,0)-1),MATCH(W$2&\" Score\",'C. PoC Adj Factor Scoring'!$E$4:$J$4,0),TRUE)","v":1},{"$f":"VLOOKUP(OFFSET($B:$B,,MATCH(X$4,$B$4:$F$4,0)-1),OFFSET('C. PoC Adj Factor Scoring'!$E$5:$J$282,,MATCH(X$4,'C. PoC Adj Factor Scoring'!$E$3:$AH$3,0)-1),MATCH(X$2&\" Score\",'C. PoC Adj Factor Scoring'!$E$4:$J$4,0),TRUE)","v":1},{"$f":"VLOOKUP(OFFSET($B:$B,,MATCH(Y$4,$B$4:$F$4,0)-1),OFFSET('C. PoC Adj Factor Scoring'!$E$5:$J$282,,MATCH(Y$4,'C. PoC Adj Factor Scoring'!$E$3:$AH$3,0)-1),MATCH(Y$2&\" Score\",'C. PoC Adj Factor Scoring'!$E$4:$J$4,0),TRUE)","v":1},{"$f":"VLOOKUP(OFFSET($B:$B,,MATCH(Z$4,$B$4:$F$4,0)-1),OFFSET('C. PoC Adj Factor Scoring'!$E$5:$J$282,,MATCH(Z$4,'C. PoC Adj Factor Scoring'!$E$3:$AH$3,0)-1),MATCH(Z$2&\" Score\",'C. PoC Adj Factor Scoring'!$E$4:$J$4,0),TRUE)","v":1},{"$f":"VLOOKUP(OFFSET($B:$B,,MATCH(AA$4,$B$4:$F$4,0)-1),OFFSET('C. PoC Adj Factor Scoring'!$E$5:$J$282,,MATCH(AA$4,'C. PoC Adj Factor Scoring'!$E$3:$AH$3,0)-1),MATCH(AA$2&\" Score\",'C. PoC Adj Factor Scoring'!$E$4:$J$4,0),TRUE)","v":3},{"$f":"VLOOKUP(OFFSET($B:$B,,MATCH(AB$4,$B$4:$F$4,0)-1),OFFSET('C. PoC Adj Factor Scoring'!$E$5:$J$282,,MATCH(AB$4,'C. PoC Adj Factor Scoring'!$E$3:$AH$3,0)-1),MATCH(AB$2&\" Score\",'C. PoC Adj Factor Scoring'!$E$4:$J$4,0),TRUE)","v":1},{"$f":"VLOOKUP(OFFSET($B:$B,,MATCH(AC$4,$B$4:$F$4,0)-1),OFFSET('C. PoC Adj Factor Scoring'!$E$5:$J$282,,MATCH(AC$4,'C. PoC Adj Factor Scoring'!$E$3:$AH$3,0)-1),MATCH(AC$2&\" Score\",'C. PoC Adj Factor Scoring'!$E$4:$J$4,0),TRUE)","v":1},{"$f":"VLOOKUP(OFFSET($B:$B,,MATCH(AD$4,$B$4:$F$4,0)-1),OFFSET('C. PoC Adj Factor Scoring'!$E$5:$J$282,,MATCH(AD$4,'C. PoC Adj Factor Scoring'!$E$3:$AH$3,0)-1),MATCH(AD$2&\" Score\",'C. PoC Adj Factor Scoring'!$E$4:$J$4,0),TRUE)","v":1},{"$f":"VLOOKUP(OFFSET($B:$B,,MATCH(AE$4,$B$4:$F$4,0)-1),OFFSET('C. PoC Adj Factor Scoring'!$E$5:$J$282,,MATCH(AE$4,'C. PoC Adj Factor Scoring'!$E$3:$AH$3,0)-1),MATCH(AE$2&\" Score\",'C. PoC Adj Factor Scoring'!$E$4:$J$4,0),TRUE)","v":1}]
[{"$f":"'A. Population Info'!A270","v":1000362927},{"$f":"'A. Population Info'!L270","v":"OIL"},{"$f":"'A. Population Info'!M270","v":0},{"$f":"'A. Population Info'!N270","v":0},{"$f":"'A. Population Info'!O270","v":0},{"$f":"'A. Population Info'!P270","v":0},{"$f":"VLOOKUP(OFFSET($B:$B,,MATCH(G$4,$B$4:$F$4,0)-1),OFFSET('C. PoC Adj Factor Scoring'!$E$5:$J$282,,MATCH(G$4,'C. PoC Adj Factor Scoring'!$E$3:$AH$3,0)-1),MATCH(G$2&\" Score\",'C. PoC Adj Factor Scoring'!$E$4:$J$4,0),TRUE)","v":4},{"$f":"VLOOKUP(OFFSET($B:$B,,MATCH(H$4,$B$4:$F$4,0)-1),OFFSET('C. PoC Adj Factor Scoring'!$E$5:$J$282,,MATCH(H$4,'C. PoC Adj Factor Scoring'!$E$3:$AH$3,0)-1),MATCH(H$2&\" Score\",'C. PoC Adj Factor Scoring'!$E$4:$J$4,0),TRUE)","v":1},{"$f":"VLOOKUP(OFFSET($B:$B,,MATCH(I$4,$B$4:$F$4,0)-1),OFFSET('C. PoC Adj Factor Scoring'!$E$5:$J$282,,MATCH(I$4,'C. PoC Adj Factor Scoring'!$E$3:$AH$3,0)-1),MATCH(I$2&\" Score\",'C. PoC Adj Factor Scoring'!$E$4:$J$4,0),TRUE)","v":1},{"$f":"VLOOKUP(OFFSET($B:$B,,MATCH(J$4,$B$4:$F$4,0)-1),OFFSET('C. PoC Adj Factor Scoring'!$E$5:$J$282,,MATCH(J$4,'C. PoC Adj Factor Scoring'!$E$3:$AH$3,0)-1),MATCH(J$2&\" Score\",'C. PoC Adj Factor Scoring'!$E$4:$J$4,0),TRUE)","v":1},{"$f":"VLOOKUP(OFFSET($B:$B,,MATCH(K$4,$B$4:$F$4,0)-1),OFFSET('C. PoC Adj Factor Scoring'!$E$5:$J$282,,MATCH(K$4,'C. PoC Adj Factor Scoring'!$E$3:$AH$3,0)-1),MATCH(K$2&\" Score\",'C. PoC Adj Factor Scoring'!$E$4:$J$4,0),TRUE)","v":1},{"$f":"VLOOKUP(OFFSET($B:$B,,MATCH(L$4,$B$4:$F$4,0)-1),OFFSET('C. PoC Adj Factor Scoring'!$E$5:$J$282,,MATCH(L$4,'C. PoC Adj Factor Scoring'!$E$3:$AH$3,0)-1),MATCH(L$2&\" Score\",'C. PoC Adj Factor Scoring'!$E$4:$J$4,0),TRUE)","v":1},{"$f":"VLOOKUP(OFFSET($B:$B,,MATCH(M$4,$B$4:$F$4,0)-1),OFFSET('C. PoC Adj Factor Scoring'!$E$5:$J$282,,MATCH(M$4,'C. PoC Adj Factor Scoring'!$E$3:$AH$3,0)-1),MATCH(M$2&\" Score\",'C. PoC Adj Factor Scoring'!$E$4:$J$4,0),TRUE)","v":1},{"$f":"VLOOKUP(OFFSET($B:$B,,MATCH(N$4,$B$4:$F$4,0)-1),OFFSET('C. PoC Adj Factor Scoring'!$E$5:$J$282,,MATCH(N$4,'C. PoC Adj Factor Scoring'!$E$3:$AH$3,0)-1),MATCH(N$2&\" Score\",'C. PoC Adj Factor Scoring'!$E$4:$J$4,0),TRUE)","v":1},{"$f":"VLOOKUP(OFFSET($B:$B,,MATCH(O$4,$B$4:$F$4,0)-1),OFFSET('C. PoC Adj Factor Scoring'!$E$5:$J$282,,MATCH(O$4,'C. PoC Adj Factor Scoring'!$E$3:$AH$3,0)-1),MATCH(O$2&\" Score\",'C. PoC Adj Factor Scoring'!$E$4:$J$4,0),TRUE)","v":1},{"$f":"VLOOKUP(OFFSET($B:$B,,MATCH(P$4,$B$4:$F$4,0)-1),OFFSET('C. PoC Adj Factor Scoring'!$E$5:$J$282,,MATCH(P$4,'C. PoC Adj Factor Scoring'!$E$3:$AH$3,0)-1),MATCH(P$2&\" Score\",'C. PoC Adj Factor Scoring'!$E$4:$J$4,0),TRUE)","v":1},{"$f":"VLOOKUP(OFFSET($B:$B,,MATCH(Q$4,$B$4:$F$4,0)-1),OFFSET('C. PoC Adj Factor Scoring'!$E$5:$J$282,,MATCH(Q$4,'C. PoC Adj Factor Scoring'!$E$3:$AH$3,0)-1),MATCH(Q$2&\" Score\",'C. PoC Adj Factor Scoring'!$E$4:$J$4,0),TRUE)","v":1},{"$f":"VLOOKUP(OFFSET($B:$B,,MATCH(R$4,$B$4:$F$4,0)-1),OFFSET('C. PoC Adj Factor Scoring'!$E$5:$J$282,,MATCH(R$4,'C. PoC Adj Factor Scoring'!$E$3:$AH$3,0)-1),MATCH(R$2&\" Score\",'C. PoC Adj Factor Scoring'!$E$4:$J$4,0),TRUE)","v":1},{"$f":"VLOOKUP(OFFSET($B:$B,,MATCH(S$4,$B$4:$F$4,0)-1),OFFSET('C. PoC Adj Factor Scoring'!$E$5:$J$282,,MATCH(S$4,'C. PoC Adj Factor Scoring'!$E$3:$AH$3,0)-1),MATCH(S$2&\" Score\",'C. PoC Adj Factor Scoring'!$E$4:$J$4,0),TRUE)","v":1},{"$f":"VLOOKUP(OFFSET($B:$B,,MATCH(T$4,$B$4:$F$4,0)-1),OFFSET('C. PoC Adj Factor Scoring'!$E$5:$J$282,,MATCH(T$4,'C. PoC Adj Factor Scoring'!$E$3:$AH$3,0)-1),MATCH(T$2&\" Score\",'C. PoC Adj Factor Scoring'!$E$4:$J$4,0),TRUE)","v":1},{"$f":"VLOOKUP(OFFSET($B:$B,,MATCH(U$4,$B$4:$F$4,0)-1),OFFSET('C. PoC Adj Factor Scoring'!$E$5:$J$282,,MATCH(U$4,'C. PoC Adj Factor Scoring'!$E$3:$AH$3,0)-1),MATCH(U$2&\" Score\",'C. PoC Adj Factor Scoring'!$E$4:$J$4,0),TRUE)","v":1},{"$f":"VLOOKUP(OFFSET($B:$B,,MATCH(V$4,$B$4:$F$4,0)-1),OFFSET('C. PoC Adj Factor Scoring'!$E$5:$J$282,,MATCH(V$4,'C. PoC Adj Factor Scoring'!$E$3:$AH$3,0)-1),MATCH(V$2&\" Score\",'C. PoC Adj Factor Scoring'!$E$4:$J$4,0),TRUE)","v":1},{"$f":"VLOOKUP(OFFSET($B:$B,,MATCH(W$4,$B$4:$F$4,0)-1),OFFSET('C. PoC Adj Factor Scoring'!$E$5:$J$282,,MATCH(W$4,'C. PoC Adj Factor Scoring'!$E$3:$AH$3,0)-1),MATCH(W$2&\" Score\",'C. PoC Adj Factor Scoring'!$E$4:$J$4,0),TRUE)","v":1},{"$f":"VLOOKUP(OFFSET($B:$B,,MATCH(X$4,$B$4:$F$4,0)-1),OFFSET('C. PoC Adj Factor Scoring'!$E$5:$J$282,,MATCH(X$4,'C. PoC Adj Factor Scoring'!$E$3:$AH$3,0)-1),MATCH(X$2&\" Score\",'C. PoC Adj Factor Scoring'!$E$4:$J$4,0),TRUE)","v":1},{"$f":"VLOOKUP(OFFSET($B:$B,,MATCH(Y$4,$B$4:$F$4,0)-1),OFFSET('C. PoC Adj Factor Scoring'!$E$5:$J$282,,MATCH(Y$4,'C. PoC Adj Factor Scoring'!$E$3:$AH$3,0)-1),MATCH(Y$2&\" Score\",'C. PoC Adj Factor Scoring'!$E$4:$J$4,0),TRUE)","v":1},{"$f":"VLOOKUP(OFFSET($B:$B,,MATCH(Z$4,$B$4:$F$4,0)-1),OFFSET('C. PoC Adj Factor Scoring'!$E$5:$J$282,,MATCH(Z$4,'C. PoC Adj Factor Scoring'!$E$3:$AH$3,0)-1),MATCH(Z$2&\" Score\",'C. PoC Adj Factor Scoring'!$E$4:$J$4,0),TRUE)","v":1},{"$f":"VLOOKUP(OFFSET($B:$B,,MATCH(AA$4,$B$4:$F$4,0)-1),OFFSET('C. PoC Adj Factor Scoring'!$E$5:$J$282,,MATCH(AA$4,'C. PoC Adj Factor Scoring'!$E$3:$AH$3,0)-1),MATCH(AA$2&\" Score\",'C. PoC Adj Factor Scoring'!$E$4:$J$4,0),TRUE)","v":3},{"$f":"VLOOKUP(OFFSET($B:$B,,MATCH(AB$4,$B$4:$F$4,0)-1),OFFSET('C. PoC Adj Factor Scoring'!$E$5:$J$282,,MATCH(AB$4,'C. PoC Adj Factor Scoring'!$E$3:$AH$3,0)-1),MATCH(AB$2&\" Score\",'C. PoC Adj Factor Scoring'!$E$4:$J$4,0),TRUE)","v":1},{"$f":"VLOOKUP(OFFSET($B:$B,,MATCH(AC$4,$B$4:$F$4,0)-1),OFFSET('C. PoC Adj Factor Scoring'!$E$5:$J$282,,MATCH(AC$4,'C. PoC Adj Factor Scoring'!$E$3:$AH$3,0)-1),MATCH(AC$2&\" Score\",'C. PoC Adj Factor Scoring'!$E$4:$J$4,0),TRUE)","v":1},{"$f":"VLOOKUP(OFFSET($B:$B,,MATCH(AD$4,$B$4:$F$4,0)-1),OFFSET('C. PoC Adj Factor Scoring'!$E$5:$J$282,,MATCH(AD$4,'C. PoC Adj Factor Scoring'!$E$3:$AH$3,0)-1),MATCH(AD$2&\" Score\",'C. PoC Adj Factor Scoring'!$E$4:$J$4,0),TRUE)","v":1},{"$f":"VLOOKUP(OFFSET($B:$B,,MATCH(AE$4,$B$4:$F$4,0)-1),OFFSET('C. PoC Adj Factor Scoring'!$E$5:$J$282,,MATCH(AE$4,'C. PoC Adj Factor Scoring'!$E$3:$AH$3,0)-1),MATCH(AE$2&\" Score\",'C. PoC Adj Factor Scoring'!$E$4:$J$4,0),TRUE)","v":1}]
[{"$f":"'A. Population Info'!A271","v":1000362965},{"$f":"'A. Population Info'!L271","v":"OIL"},{"$f":"'A. Population Info'!M271","v":0},{"$f":"'A. Population Info'!N271","v":0},{"$f":"'A. Population Info'!O271","v":0},{"$f":"'A. Population Info'!P271","v":0},{"$f":"VLOOKUP(OFFSET($B:$B,,MATCH(G$4,$B$4:$F$4,0)-1),OFFSET('C. PoC Adj Factor Scoring'!$E$5:$J$282,,MATCH(G$4,'C. PoC Adj Factor Scoring'!$E$3:$AH$3,0)-1),MATCH(G$2&\" Score\",'C. PoC Adj Factor Scoring'!$E$4:$J$4,0),TRUE)","v":4},{"$f":"VLOOKUP(OFFSET($B:$B,,MATCH(H$4,$B$4:$F$4,0)-1),OFFSET('C. PoC Adj Factor Scoring'!$E$5:$J$282,,MATCH(H$4,'C. PoC Adj Factor Scoring'!$E$3:$AH$3,0)-1),MATCH(H$2&\" Score\",'C. PoC Adj Factor Scoring'!$E$4:$J$4,0),TRUE)","v":1},{"$f":"VLOOKUP(OFFSET($B:$B,,MATCH(I$4,$B$4:$F$4,0)-1),OFFSET('C. PoC Adj Factor Scoring'!$E$5:$J$282,,MATCH(I$4,'C. PoC Adj Factor Scoring'!$E$3:$AH$3,0)-1),MATCH(I$2&\" Score\",'C. PoC Adj Factor Scoring'!$E$4:$J$4,0),TRUE)","v":1},{"$f":"VLOOKUP(OFFSET($B:$B,,MATCH(J$4,$B$4:$F$4,0)-1),OFFSET('C. PoC Adj Factor Scoring'!$E$5:$J$282,,MATCH(J$4,'C. PoC Adj Factor Scoring'!$E$3:$AH$3,0)-1),MATCH(J$2&\" Score\",'C. PoC Adj Factor Scoring'!$E$4:$J$4,0),TRUE)","v":1},{"$f":"VLOOKUP(OFFSET($B:$B,,MATCH(K$4,$B$4:$F$4,0)-1),OFFSET('C. PoC Adj Factor Scoring'!$E$5:$J$282,,MATCH(K$4,'C. PoC Adj Factor Scoring'!$E$3:$AH$3,0)-1),MATCH(K$2&\" Score\",'C. PoC Adj Factor Scoring'!$E$4:$J$4,0),TRUE)","v":1},{"$f":"VLOOKUP(OFFSET($B:$B,,MATCH(L$4,$B$4:$F$4,0)-1),OFFSET('C. PoC Adj Factor Scoring'!$E$5:$J$282,,MATCH(L$4,'C. PoC Adj Factor Scoring'!$E$3:$AH$3,0)-1),MATCH(L$2&\" Score\",'C. PoC Adj Factor Scoring'!$E$4:$J$4,0),TRUE)","v":1},{"$f":"VLOOKUP(OFFSET($B:$B,,MATCH(M$4,$B$4:$F$4,0)-1),OFFSET('C. PoC Adj Factor Scoring'!$E$5:$J$282,,MATCH(M$4,'C. PoC Adj Factor Scoring'!$E$3:$AH$3,0)-1),MATCH(M$2&\" Score\",'C. PoC Adj Factor Scoring'!$E$4:$J$4,0),TRUE)","v":1},{"$f":"VLOOKUP(OFFSET($B:$B,,MATCH(N$4,$B$4:$F$4,0)-1),OFFSET('C. PoC Adj Factor Scoring'!$E$5:$J$282,,MATCH(N$4,'C. PoC Adj Factor Scoring'!$E$3:$AH$3,0)-1),MATCH(N$2&\" Score\",'C. PoC Adj Factor Scoring'!$E$4:$J$4,0),TRUE)","v":1},{"$f":"VLOOKUP(OFFSET($B:$B,,MATCH(O$4,$B$4:$F$4,0)-1),OFFSET('C. PoC Adj Factor Scoring'!$E$5:$J$282,,MATCH(O$4,'C. PoC Adj Factor Scoring'!$E$3:$AH$3,0)-1),MATCH(O$2&\" Score\",'C. PoC Adj Factor Scoring'!$E$4:$J$4,0),TRUE)","v":1},{"$f":"VLOOKUP(OFFSET($B:$B,,MATCH(P$4,$B$4:$F$4,0)-1),OFFSET('C. PoC Adj Factor Scoring'!$E$5:$J$282,,MATCH(P$4,'C. PoC Adj Factor Scoring'!$E$3:$AH$3,0)-1),MATCH(P$2&\" Score\",'C. PoC Adj Factor Scoring'!$E$4:$J$4,0),TRUE)","v":1},{"$f":"VLOOKUP(OFFSET($B:$B,,MATCH(Q$4,$B$4:$F$4,0)-1),OFFSET('C. PoC Adj Factor Scoring'!$E$5:$J$282,,MATCH(Q$4,'C. PoC Adj Factor Scoring'!$E$3:$AH$3,0)-1),MATCH(Q$2&\" Score\",'C. PoC Adj Factor Scoring'!$E$4:$J$4,0),TRUE)","v":1},{"$f":"VLOOKUP(OFFSET($B:$B,,MATCH(R$4,$B$4:$F$4,0)-1),OFFSET('C. PoC Adj Factor Scoring'!$E$5:$J$282,,MATCH(R$4,'C. PoC Adj Factor Scoring'!$E$3:$AH$3,0)-1),MATCH(R$2&\" Score\",'C. PoC Adj Factor Scoring'!$E$4:$J$4,0),TRUE)","v":1},{"$f":"VLOOKUP(OFFSET($B:$B,,MATCH(S$4,$B$4:$F$4,0)-1),OFFSET('C. PoC Adj Factor Scoring'!$E$5:$J$282,,MATCH(S$4,'C. PoC Adj Factor Scoring'!$E$3:$AH$3,0)-1),MATCH(S$2&\" Score\",'C. PoC Adj Factor Scoring'!$E$4:$J$4,0),TRUE)","v":1},{"$f":"VLOOKUP(OFFSET($B:$B,,MATCH(T$4,$B$4:$F$4,0)-1),OFFSET('C. PoC Adj Factor Scoring'!$E$5:$J$282,,MATCH(T$4,'C. PoC Adj Factor Scoring'!$E$3:$AH$3,0)-1),MATCH(T$2&\" Score\",'C. PoC Adj Factor Scoring'!$E$4:$J$4,0),TRUE)","v":1},{"$f":"VLOOKUP(OFFSET($B:$B,,MATCH(U$4,$B$4:$F$4,0)-1),OFFSET('C. PoC Adj Factor Scoring'!$E$5:$J$282,,MATCH(U$4,'C. PoC Adj Factor Scoring'!$E$3:$AH$3,0)-1),MATCH(U$2&\" Score\",'C. PoC Adj Factor Scoring'!$E$4:$J$4,0),TRUE)","v":1},{"$f":"VLOOKUP(OFFSET($B:$B,,MATCH(V$4,$B$4:$F$4,0)-1),OFFSET('C. PoC Adj Factor Scoring'!$E$5:$J$282,,MATCH(V$4,'C. PoC Adj Factor Scoring'!$E$3:$AH$3,0)-1),MATCH(V$2&\" Score\",'C. PoC Adj Factor Scoring'!$E$4:$J$4,0),TRUE)","v":1},{"$f":"VLOOKUP(OFFSET($B:$B,,MATCH(W$4,$B$4:$F$4,0)-1),OFFSET('C. PoC Adj Factor Scoring'!$E$5:$J$282,,MATCH(W$4,'C. PoC Adj Factor Scoring'!$E$3:$AH$3,0)-1),MATCH(W$2&\" Score\",'C. PoC Adj Factor Scoring'!$E$4:$J$4,0),TRUE)","v":1},{"$f":"VLOOKUP(OFFSET($B:$B,,MATCH(X$4,$B$4:$F$4,0)-1),OFFSET('C. PoC Adj Factor Scoring'!$E$5:$J$282,,MATCH(X$4,'C. PoC Adj Factor Scoring'!$E$3:$AH$3,0)-1),MATCH(X$2&\" Score\",'C. PoC Adj Factor Scoring'!$E$4:$J$4,0),TRUE)","v":1},{"$f":"VLOOKUP(OFFSET($B:$B,,MATCH(Y$4,$B$4:$F$4,0)-1),OFFSET('C. PoC Adj Factor Scoring'!$E$5:$J$282,,MATCH(Y$4,'C. PoC Adj Factor Scoring'!$E$3:$AH$3,0)-1),MATCH(Y$2&\" Score\",'C. PoC Adj Factor Scoring'!$E$4:$J$4,0),TRUE)","v":1},{"$f":"VLOOKUP(OFFSET($B:$B,,MATCH(Z$4,$B$4:$F$4,0)-1),OFFSET('C. PoC Adj Factor Scoring'!$E$5:$J$282,,MATCH(Z$4,'C. PoC Adj Factor Scoring'!$E$3:$AH$3,0)-1),MATCH(Z$2&\" Score\",'C. PoC Adj Factor Scoring'!$E$4:$J$4,0),TRUE)","v":1},{"$f":"VLOOKUP(OFFSET($B:$B,,MATCH(AA$4,$B$4:$F$4,0)-1),OFFSET('C. PoC Adj Factor Scoring'!$E$5:$J$282,,MATCH(AA$4,'C. PoC Adj Factor Scoring'!$E$3:$AH$3,0)-1),MATCH(AA$2&\" Score\",'C. PoC Adj Factor Scoring'!$E$4:$J$4,0),TRUE)","v":3},{"$f":"VLOOKUP(OFFSET($B:$B,,MATCH(AB$4,$B$4:$F$4,0)-1),OFFSET('C. PoC Adj Factor Scoring'!$E$5:$J$282,,MATCH(AB$4,'C. PoC Adj Factor Scoring'!$E$3:$AH$3,0)-1),MATCH(AB$2&\" Score\",'C. PoC Adj Factor Scoring'!$E$4:$J$4,0),TRUE)","v":1},{"$f":"VLOOKUP(OFFSET($B:$B,,MATCH(AC$4,$B$4:$F$4,0)-1),OFFSET('C. PoC Adj Factor Scoring'!$E$5:$J$282,,MATCH(AC$4,'C. PoC Adj Factor Scoring'!$E$3:$AH$3,0)-1),MATCH(AC$2&\" Score\",'C. PoC Adj Factor Scoring'!$E$4:$J$4,0),TRUE)","v":1},{"$f":"VLOOKUP(OFFSET($B:$B,,MATCH(AD$4,$B$4:$F$4,0)-1),OFFSET('C. PoC Adj Factor Scoring'!$E$5:$J$282,,MATCH(AD$4,'C. PoC Adj Factor Scoring'!$E$3:$AH$3,0)-1),MATCH(AD$2&\" Score\",'C. PoC Adj Factor Scoring'!$E$4:$J$4,0),TRUE)","v":1},{"$f":"VLOOKUP(OFFSET($B:$B,,MATCH(AE$4,$B$4:$F$4,0)-1),OFFSET('C. PoC Adj Factor Scoring'!$E$5:$J$282,,MATCH(AE$4,'C. PoC Adj Factor Scoring'!$E$3:$AH$3,0)-1),MATCH(AE$2&\" Score\",'C. PoC Adj Factor Scoring'!$E$4:$J$4,0),TRUE)","v":1}]
[{"$f":"'A. Population Info'!A272","v":1000362998},{"$f":"'A. Population Info'!L272","v":"OIL"},{"$f":"'A. Population Info'!M272","v":0},{"$f":"'A. Population Info'!N272","v":0},{"$f":"'A. Population Info'!O272","v":0},{"$f":"'A. Population Info'!P272","v":0},{"$f":"VLOOKUP(OFFSET($B:$B,,MATCH(G$4,$B$4:$F$4,0)-1),OFFSET('C. PoC Adj Factor Scoring'!$E$5:$J$282,,MATCH(G$4,'C. PoC Adj Factor Scoring'!$E$3:$AH$3,0)-1),MATCH(G$2&\" Score\",'C. PoC Adj Factor Scoring'!$E$4:$J$4,0),TRUE)","v":4},{"$f":"VLOOKUP(OFFSET($B:$B,,MATCH(H$4,$B$4:$F$4,0)-1),OFFSET('C. PoC Adj Factor Scoring'!$E$5:$J$282,,MATCH(H$4,'C. PoC Adj Factor Scoring'!$E$3:$AH$3,0)-1),MATCH(H$2&\" Score\",'C. PoC Adj Factor Scoring'!$E$4:$J$4,0),TRUE)","v":1},{"$f":"VLOOKUP(OFFSET($B:$B,,MATCH(I$4,$B$4:$F$4,0)-1),OFFSET('C. PoC Adj Factor Scoring'!$E$5:$J$282,,MATCH(I$4,'C. PoC Adj Factor Scoring'!$E$3:$AH$3,0)-1),MATCH(I$2&\" Score\",'C. PoC Adj Factor Scoring'!$E$4:$J$4,0),TRUE)","v":1},{"$f":"VLOOKUP(OFFSET($B:$B,,MATCH(J$4,$B$4:$F$4,0)-1),OFFSET('C. PoC Adj Factor Scoring'!$E$5:$J$282,,MATCH(J$4,'C. PoC Adj Factor Scoring'!$E$3:$AH$3,0)-1),MATCH(J$2&\" Score\",'C. PoC Adj Factor Scoring'!$E$4:$J$4,0),TRUE)","v":1},{"$f":"VLOOKUP(OFFSET($B:$B,,MATCH(K$4,$B$4:$F$4,0)-1),OFFSET('C. PoC Adj Factor Scoring'!$E$5:$J$282,,MATCH(K$4,'C. PoC Adj Factor Scoring'!$E$3:$AH$3,0)-1),MATCH(K$2&\" Score\",'C. PoC Adj Factor Scoring'!$E$4:$J$4,0),TRUE)","v":1},{"$f":"VLOOKUP(OFFSET($B:$B,,MATCH(L$4,$B$4:$F$4,0)-1),OFFSET('C. PoC Adj Factor Scoring'!$E$5:$J$282,,MATCH(L$4,'C. PoC Adj Factor Scoring'!$E$3:$AH$3,0)-1),MATCH(L$2&\" Score\",'C. PoC Adj Factor Scoring'!$E$4:$J$4,0),TRUE)","v":1},{"$f":"VLOOKUP(OFFSET($B:$B,,MATCH(M$4,$B$4:$F$4,0)-1),OFFSET('C. PoC Adj Factor Scoring'!$E$5:$J$282,,MATCH(M$4,'C. PoC Adj Factor Scoring'!$E$3:$AH$3,0)-1),MATCH(M$2&\" Score\",'C. PoC Adj Factor Scoring'!$E$4:$J$4,0),TRUE)","v":1},{"$f":"VLOOKUP(OFFSET($B:$B,,MATCH(N$4,$B$4:$F$4,0)-1),OFFSET('C. PoC Adj Factor Scoring'!$E$5:$J$282,,MATCH(N$4,'C. PoC Adj Factor Scoring'!$E$3:$AH$3,0)-1),MATCH(N$2&\" Score\",'C. PoC Adj Factor Scoring'!$E$4:$J$4,0),TRUE)","v":1},{"$f":"VLOOKUP(OFFSET($B:$B,,MATCH(O$4,$B$4:$F$4,0)-1),OFFSET('C. PoC Adj Factor Scoring'!$E$5:$J$282,,MATCH(O$4,'C. PoC Adj Factor Scoring'!$E$3:$AH$3,0)-1),MATCH(O$2&\" Score\",'C. PoC Adj Factor Scoring'!$E$4:$J$4,0),TRUE)","v":1},{"$f":"VLOOKUP(OFFSET($B:$B,,MATCH(P$4,$B$4:$F$4,0)-1),OFFSET('C. PoC Adj Factor Scoring'!$E$5:$J$282,,MATCH(P$4,'C. PoC Adj Factor Scoring'!$E$3:$AH$3,0)-1),MATCH(P$2&\" Score\",'C. PoC Adj Factor Scoring'!$E$4:$J$4,0),TRUE)","v":1},{"$f":"VLOOKUP(OFFSET($B:$B,,MATCH(Q$4,$B$4:$F$4,0)-1),OFFSET('C. PoC Adj Factor Scoring'!$E$5:$J$282,,MATCH(Q$4,'C. PoC Adj Factor Scoring'!$E$3:$AH$3,0)-1),MATCH(Q$2&\" Score\",'C. PoC Adj Factor Scoring'!$E$4:$J$4,0),TRUE)","v":1},{"$f":"VLOOKUP(OFFSET($B:$B,,MATCH(R$4,$B$4:$F$4,0)-1),OFFSET('C. PoC Adj Factor Scoring'!$E$5:$J$282,,MATCH(R$4,'C. PoC Adj Factor Scoring'!$E$3:$AH$3,0)-1),MATCH(R$2&\" Score\",'C. PoC Adj Factor Scoring'!$E$4:$J$4,0),TRUE)","v":1},{"$f":"VLOOKUP(OFFSET($B:$B,,MATCH(S$4,$B$4:$F$4,0)-1),OFFSET('C. PoC Adj Factor Scoring'!$E$5:$J$282,,MATCH(S$4,'C. PoC Adj Factor Scoring'!$E$3:$AH$3,0)-1),MATCH(S$2&\" Score\",'C. PoC Adj Factor Scoring'!$E$4:$J$4,0),TRUE)","v":1},{"$f":"VLOOKUP(OFFSET($B:$B,,MATCH(T$4,$B$4:$F$4,0)-1),OFFSET('C. PoC Adj Factor Scoring'!$E$5:$J$282,,MATCH(T$4,'C. PoC Adj Factor Scoring'!$E$3:$AH$3,0)-1),MATCH(T$2&\" Score\",'C. PoC Adj Factor Scoring'!$E$4:$J$4,0),TRUE)","v":1},{"$f":"VLOOKUP(OFFSET($B:$B,,MATCH(U$4,$B$4:$F$4,0)-1),OFFSET('C. PoC Adj Factor Scoring'!$E$5:$J$282,,MATCH(U$4,'C. PoC Adj Factor Scoring'!$E$3:$AH$3,0)-1),MATCH(U$2&\" Score\",'C. PoC Adj Factor Scoring'!$E$4:$J$4,0),TRUE)","v":1},{"$f":"VLOOKUP(OFFSET($B:$B,,MATCH(V$4,$B$4:$F$4,0)-1),OFFSET('C. PoC Adj Factor Scoring'!$E$5:$J$282,,MATCH(V$4,'C. PoC Adj Factor Scoring'!$E$3:$AH$3,0)-1),MATCH(V$2&\" Score\",'C. PoC Adj Factor Scoring'!$E$4:$J$4,0),TRUE)","v":1},{"$f":"VLOOKUP(OFFSET($B:$B,,MATCH(W$4,$B$4:$F$4,0)-1),OFFSET('C. PoC Adj Factor Scoring'!$E$5:$J$282,,MATCH(W$4,'C. PoC Adj Factor Scoring'!$E$3:$AH$3,0)-1),MATCH(W$2&\" Score\",'C. PoC Adj Factor Scoring'!$E$4:$J$4,0),TRUE)","v":1},{"$f":"VLOOKUP(OFFSET($B:$B,,MATCH(X$4,$B$4:$F$4,0)-1),OFFSET('C. PoC Adj Factor Scoring'!$E$5:$J$282,,MATCH(X$4,'C. PoC Adj Factor Scoring'!$E$3:$AH$3,0)-1),MATCH(X$2&\" Score\",'C. PoC Adj Factor Scoring'!$E$4:$J$4,0),TRUE)","v":1},{"$f":"VLOOKUP(OFFSET($B:$B,,MATCH(Y$4,$B$4:$F$4,0)-1),OFFSET('C. PoC Adj Factor Scoring'!$E$5:$J$282,,MATCH(Y$4,'C. PoC Adj Factor Scoring'!$E$3:$AH$3,0)-1),MATCH(Y$2&\" Score\",'C. PoC Adj Factor Scoring'!$E$4:$J$4,0),TRUE)","v":1},{"$f":"VLOOKUP(OFFSET($B:$B,,MATCH(Z$4,$B$4:$F$4,0)-1),OFFSET('C. PoC Adj Factor Scoring'!$E$5:$J$282,,MATCH(Z$4,'C. PoC Adj Factor Scoring'!$E$3:$AH$3,0)-1),MATCH(Z$2&\" Score\",'C. PoC Adj Factor Scoring'!$E$4:$J$4,0),TRUE)","v":1},{"$f":"VLOOKUP(OFFSET($B:$B,,MATCH(AA$4,$B$4:$F$4,0)-1),OFFSET('C. PoC Adj Factor Scoring'!$E$5:$J$282,,MATCH(AA$4,'C. PoC Adj Factor Scoring'!$E$3:$AH$3,0)-1),MATCH(AA$2&\" Score\",'C. PoC Adj Factor Scoring'!$E$4:$J$4,0),TRUE)","v":3},{"$f":"VLOOKUP(OFFSET($B:$B,,MATCH(AB$4,$B$4:$F$4,0)-1),OFFSET('C. PoC Adj Factor Scoring'!$E$5:$J$282,,MATCH(AB$4,'C. PoC Adj Factor Scoring'!$E$3:$AH$3,0)-1),MATCH(AB$2&\" Score\",'C. PoC Adj Factor Scoring'!$E$4:$J$4,0),TRUE)","v":1},{"$f":"VLOOKUP(OFFSET($B:$B,,MATCH(AC$4,$B$4:$F$4,0)-1),OFFSET('C. PoC Adj Factor Scoring'!$E$5:$J$282,,MATCH(AC$4,'C. PoC Adj Factor Scoring'!$E$3:$AH$3,0)-1),MATCH(AC$2&\" Score\",'C. PoC Adj Factor Scoring'!$E$4:$J$4,0),TRUE)","v":1},{"$f":"VLOOKUP(OFFSET($B:$B,,MATCH(AD$4,$B$4:$F$4,0)-1),OFFSET('C. PoC Adj Factor Scoring'!$E$5:$J$282,,MATCH(AD$4,'C. PoC Adj Factor Scoring'!$E$3:$AH$3,0)-1),MATCH(AD$2&\" Score\",'C. PoC Adj Factor Scoring'!$E$4:$J$4,0),TRUE)","v":1},{"$f":"VLOOKUP(OFFSET($B:$B,,MATCH(AE$4,$B$4:$F$4,0)-1),OFFSET('C. PoC Adj Factor Scoring'!$E$5:$J$282,,MATCH(AE$4,'C. PoC Adj Factor Scoring'!$E$3:$AH$3,0)-1),MATCH(AE$2&\" Score\",'C. PoC Adj Factor Scoring'!$E$4:$J$4,0),TRUE)","v":1}]
[{"$f":"'A. Population Info'!A273","v":1000366027},{"$f":"'A. Population Info'!L273","v":"OIL"},{"$f":"'A. Population Info'!M273","v":0},{"$f":"'A. Population Info'!N273","v":0},{"$f":"'A. Population Info'!O273","v":0},{"$f":"'A. Population Info'!P273","v":0},{"$f":"VLOOKUP(OFFSET($B:$B,,MATCH(G$4,$B$4:$F$4,0)-1),OFFSET('C. PoC Adj Factor Scoring'!$E$5:$J$282,,MATCH(G$4,'C. PoC Adj Factor Scoring'!$E$3:$AH$3,0)-1),MATCH(G$2&\" Score\",'C. PoC Adj Factor Scoring'!$E$4:$J$4,0),TRUE)","v":4},{"$f":"VLOOKUP(OFFSET($B:$B,,MATCH(H$4,$B$4:$F$4,0)-1),OFFSET('C. PoC Adj Factor Scoring'!$E$5:$J$282,,MATCH(H$4,'C. PoC Adj Factor Scoring'!$E$3:$AH$3,0)-1),MATCH(H$2&\" Score\",'C. PoC Adj Factor Scoring'!$E$4:$J$4,0),TRUE)","v":1},{"$f":"VLOOKUP(OFFSET($B:$B,,MATCH(I$4,$B$4:$F$4,0)-1),OFFSET('C. PoC Adj Factor Scoring'!$E$5:$J$282,,MATCH(I$4,'C. PoC Adj Factor Scoring'!$E$3:$AH$3,0)-1),MATCH(I$2&\" Score\",'C. PoC Adj Factor Scoring'!$E$4:$J$4,0),TRUE)","v":1},{"$f":"VLOOKUP(OFFSET($B:$B,,MATCH(J$4,$B$4:$F$4,0)-1),OFFSET('C. PoC Adj Factor Scoring'!$E$5:$J$282,,MATCH(J$4,'C. PoC Adj Factor Scoring'!$E$3:$AH$3,0)-1),MATCH(J$2&\" Score\",'C. PoC Adj Factor Scoring'!$E$4:$J$4,0),TRUE)","v":1},{"$f":"VLOOKUP(OFFSET($B:$B,,MATCH(K$4,$B$4:$F$4,0)-1),OFFSET('C. PoC Adj Factor Scoring'!$E$5:$J$282,,MATCH(K$4,'C. PoC Adj Factor Scoring'!$E$3:$AH$3,0)-1),MATCH(K$2&\" Score\",'C. PoC Adj Factor Scoring'!$E$4:$J$4,0),TRUE)","v":1},{"$f":"VLOOKUP(OFFSET($B:$B,,MATCH(L$4,$B$4:$F$4,0)-1),OFFSET('C. PoC Adj Factor Scoring'!$E$5:$J$282,,MATCH(L$4,'C. PoC Adj Factor Scoring'!$E$3:$AH$3,0)-1),MATCH(L$2&\" Score\",'C. PoC Adj Factor Scoring'!$E$4:$J$4,0),TRUE)","v":1},{"$f":"VLOOKUP(OFFSET($B:$B,,MATCH(M$4,$B$4:$F$4,0)-1),OFFSET('C. PoC Adj Factor Scoring'!$E$5:$J$282,,MATCH(M$4,'C. PoC Adj Factor Scoring'!$E$3:$AH$3,0)-1),MATCH(M$2&\" Score\",'C. PoC Adj Factor Scoring'!$E$4:$J$4,0),TRUE)","v":1},{"$f":"VLOOKUP(OFFSET($B:$B,,MATCH(N$4,$B$4:$F$4,0)-1),OFFSET('C. PoC Adj Factor Scoring'!$E$5:$J$282,,MATCH(N$4,'C. PoC Adj Factor Scoring'!$E$3:$AH$3,0)-1),MATCH(N$2&\" Score\",'C. PoC Adj Factor Scoring'!$E$4:$J$4,0),TRUE)","v":1},{"$f":"VLOOKUP(OFFSET($B:$B,,MATCH(O$4,$B$4:$F$4,0)-1),OFFSET('C. PoC Adj Factor Scoring'!$E$5:$J$282,,MATCH(O$4,'C. PoC Adj Factor Scoring'!$E$3:$AH$3,0)-1),MATCH(O$2&\" Score\",'C. PoC Adj Factor Scoring'!$E$4:$J$4,0),TRUE)","v":1},{"$f":"VLOOKUP(OFFSET($B:$B,,MATCH(P$4,$B$4:$F$4,0)-1),OFFSET('C. PoC Adj Factor Scoring'!$E$5:$J$282,,MATCH(P$4,'C. PoC Adj Factor Scoring'!$E$3:$AH$3,0)-1),MATCH(P$2&\" Score\",'C. PoC Adj Factor Scoring'!$E$4:$J$4,0),TRUE)","v":1},{"$f":"VLOOKUP(OFFSET($B:$B,,MATCH(Q$4,$B$4:$F$4,0)-1),OFFSET('C. PoC Adj Factor Scoring'!$E$5:$J$282,,MATCH(Q$4,'C. PoC Adj Factor Scoring'!$E$3:$AH$3,0)-1),MATCH(Q$2&\" Score\",'C. PoC Adj Factor Scoring'!$E$4:$J$4,0),TRUE)","v":1},{"$f":"VLOOKUP(OFFSET($B:$B,,MATCH(R$4,$B$4:$F$4,0)-1),OFFSET('C. PoC Adj Factor Scoring'!$E$5:$J$282,,MATCH(R$4,'C. PoC Adj Factor Scoring'!$E$3:$AH$3,0)-1),MATCH(R$2&\" Score\",'C. PoC Adj Factor Scoring'!$E$4:$J$4,0),TRUE)","v":1},{"$f":"VLOOKUP(OFFSET($B:$B,,MATCH(S$4,$B$4:$F$4,0)-1),OFFSET('C. PoC Adj Factor Scoring'!$E$5:$J$282,,MATCH(S$4,'C. PoC Adj Factor Scoring'!$E$3:$AH$3,0)-1),MATCH(S$2&\" Score\",'C. PoC Adj Factor Scoring'!$E$4:$J$4,0),TRUE)","v":1},{"$f":"VLOOKUP(OFFSET($B:$B,,MATCH(T$4,$B$4:$F$4,0)-1),OFFSET('C. PoC Adj Factor Scoring'!$E$5:$J$282,,MATCH(T$4,'C. PoC Adj Factor Scoring'!$E$3:$AH$3,0)-1),MATCH(T$2&\" Score\",'C. PoC Adj Factor Scoring'!$E$4:$J$4,0),TRUE)","v":1},{"$f":"VLOOKUP(OFFSET($B:$B,,MATCH(U$4,$B$4:$F$4,0)-1),OFFSET('C. PoC Adj Factor Scoring'!$E$5:$J$282,,MATCH(U$4,'C. PoC Adj Factor Scoring'!$E$3:$AH$3,0)-1),MATCH(U$2&\" Score\",'C. PoC Adj Factor Scoring'!$E$4:$J$4,0),TRUE)","v":1},{"$f":"VLOOKUP(OFFSET($B:$B,,MATCH(V$4,$B$4:$F$4,0)-1),OFFSET('C. PoC Adj Factor Scoring'!$E$5:$J$282,,MATCH(V$4,'C. PoC Adj Factor Scoring'!$E$3:$AH$3,0)-1),MATCH(V$2&\" Score\",'C. PoC Adj Factor Scoring'!$E$4:$J$4,0),TRUE)","v":1},{"$f":"VLOOKUP(OFFSET($B:$B,,MATCH(W$4,$B$4:$F$4,0)-1),OFFSET('C. PoC Adj Factor Scoring'!$E$5:$J$282,,MATCH(W$4,'C. PoC Adj Factor Scoring'!$E$3:$AH$3,0)-1),MATCH(W$2&\" Score\",'C. PoC Adj Factor Scoring'!$E$4:$J$4,0),TRUE)","v":1},{"$f":"VLOOKUP(OFFSET($B:$B,,MATCH(X$4,$B$4:$F$4,0)-1),OFFSET('C. PoC Adj Factor Scoring'!$E$5:$J$282,,MATCH(X$4,'C. PoC Adj Factor Scoring'!$E$3:$AH$3,0)-1),MATCH(X$2&\" Score\",'C. PoC Adj Factor Scoring'!$E$4:$J$4,0),TRUE)","v":1},{"$f":"VLOOKUP(OFFSET($B:$B,,MATCH(Y$4,$B$4:$F$4,0)-1),OFFSET('C. PoC Adj Factor Scoring'!$E$5:$J$282,,MATCH(Y$4,'C. PoC Adj Factor Scoring'!$E$3:$AH$3,0)-1),MATCH(Y$2&\" Score\",'C. PoC Adj Factor Scoring'!$E$4:$J$4,0),TRUE)","v":1},{"$f":"VLOOKUP(OFFSET($B:$B,,MATCH(Z$4,$B$4:$F$4,0)-1),OFFSET('C. PoC Adj Factor Scoring'!$E$5:$J$282,,MATCH(Z$4,'C. PoC Adj Factor Scoring'!$E$3:$AH$3,0)-1),MATCH(Z$2&\" Score\",'C. PoC Adj Factor Scoring'!$E$4:$J$4,0),TRUE)","v":1},{"$f":"VLOOKUP(OFFSET($B:$B,,MATCH(AA$4,$B$4:$F$4,0)-1),OFFSET('C. PoC Adj Factor Scoring'!$E$5:$J$282,,MATCH(AA$4,'C. PoC Adj Factor Scoring'!$E$3:$AH$3,0)-1),MATCH(AA$2&\" Score\",'C. PoC Adj Factor Scoring'!$E$4:$J$4,0),TRUE)","v":3},{"$f":"VLOOKUP(OFFSET($B:$B,,MATCH(AB$4,$B$4:$F$4,0)-1),OFFSET('C. PoC Adj Factor Scoring'!$E$5:$J$282,,MATCH(AB$4,'C. PoC Adj Factor Scoring'!$E$3:$AH$3,0)-1),MATCH(AB$2&\" Score\",'C. PoC Adj Factor Scoring'!$E$4:$J$4,0),TRUE)","v":1},{"$f":"VLOOKUP(OFFSET($B:$B,,MATCH(AC$4,$B$4:$F$4,0)-1),OFFSET('C. PoC Adj Factor Scoring'!$E$5:$J$282,,MATCH(AC$4,'C. PoC Adj Factor Scoring'!$E$3:$AH$3,0)-1),MATCH(AC$2&\" Score\",'C. PoC Adj Factor Scoring'!$E$4:$J$4,0),TRUE)","v":1},{"$f":"VLOOKUP(OFFSET($B:$B,,MATCH(AD$4,$B$4:$F$4,0)-1),OFFSET('C. PoC Adj Factor Scoring'!$E$5:$J$282,,MATCH(AD$4,'C. PoC Adj Factor Scoring'!$E$3:$AH$3,0)-1),MATCH(AD$2&\" Score\",'C. PoC Adj Factor Scoring'!$E$4:$J$4,0),TRUE)","v":1},{"$f":"VLOOKUP(OFFSET($B:$B,,MATCH(AE$4,$B$4:$F$4,0)-1),OFFSET('C. PoC Adj Factor Scoring'!$E$5:$J$282,,MATCH(AE$4,'C. PoC Adj Factor Scoring'!$E$3:$AH$3,0)-1),MATCH(AE$2&\" Score\",'C. PoC Adj Factor Scoring'!$E$4:$J$4,0),TRUE)","v":1}]
[{"$f":"'A. Population Info'!A274","v":1000366060},{"$f":"'A. Population Info'!L274","v":"OIL"},{"$f":"'A. Population Info'!M274","v":0},{"$f":"'A. Population Info'!N274","v":0},{"$f":"'A. Population Info'!O274","v":0},{"$f":"'A. Population Info'!P274","v":0},{"$f":"VLOOKUP(OFFSET($B:$B,,MATCH(G$4,$B$4:$F$4,0)-1),OFFSET('C. PoC Adj Factor Scoring'!$E$5:$J$282,,MATCH(G$4,'C. PoC Adj Factor Scoring'!$E$3:$AH$3,0)-1),MATCH(G$2&\" Score\",'C. PoC Adj Factor Scoring'!$E$4:$J$4,0),TRUE)","v":4},{"$f":"VLOOKUP(OFFSET($B:$B,,MATCH(H$4,$B$4:$F$4,0)-1),OFFSET('C. PoC Adj Factor Scoring'!$E$5:$J$282,,MATCH(H$4,'C. PoC Adj Factor Scoring'!$E$3:$AH$3,0)-1),MATCH(H$2&\" Score\",'C. PoC Adj Factor Scoring'!$E$4:$J$4,0),TRUE)","v":1},{"$f":"VLOOKUP(OFFSET($B:$B,,MATCH(I$4,$B$4:$F$4,0)-1),OFFSET('C. PoC Adj Factor Scoring'!$E$5:$J$282,,MATCH(I$4,'C. PoC Adj Factor Scoring'!$E$3:$AH$3,0)-1),MATCH(I$2&\" Score\",'C. PoC Adj Factor Scoring'!$E$4:$J$4,0),TRUE)","v":1},{"$f":"VLOOKUP(OFFSET($B:$B,,MATCH(J$4,$B$4:$F$4,0)-1),OFFSET('C. PoC Adj Factor Scoring'!$E$5:$J$282,,MATCH(J$4,'C. PoC Adj Factor Scoring'!$E$3:$AH$3,0)-1),MATCH(J$2&\" Score\",'C. PoC Adj Factor Scoring'!$E$4:$J$4,0),TRUE)","v":1},{"$f":"VLOOKUP(OFFSET($B:$B,,MATCH(K$4,$B$4:$F$4,0)-1),OFFSET('C. PoC Adj Factor Scoring'!$E$5:$J$282,,MATCH(K$4,'C. PoC Adj Factor Scoring'!$E$3:$AH$3,0)-1),MATCH(K$2&\" Score\",'C. PoC Adj Factor Scoring'!$E$4:$J$4,0),TRUE)","v":1},{"$f":"VLOOKUP(OFFSET($B:$B,,MATCH(L$4,$B$4:$F$4,0)-1),OFFSET('C. PoC Adj Factor Scoring'!$E$5:$J$282,,MATCH(L$4,'C. PoC Adj Factor Scoring'!$E$3:$AH$3,0)-1),MATCH(L$2&\" Score\",'C. PoC Adj Factor Scoring'!$E$4:$J$4,0),TRUE)","v":1},{"$f":"VLOOKUP(OFFSET($B:$B,,MATCH(M$4,$B$4:$F$4,0)-1),OFFSET('C. PoC Adj Factor Scoring'!$E$5:$J$282,,MATCH(M$4,'C. PoC Adj Factor Scoring'!$E$3:$AH$3,0)-1),MATCH(M$2&\" Score\",'C. PoC Adj Factor Scoring'!$E$4:$J$4,0),TRUE)","v":1},{"$f":"VLOOKUP(OFFSET($B:$B,,MATCH(N$4,$B$4:$F$4,0)-1),OFFSET('C. PoC Adj Factor Scoring'!$E$5:$J$282,,MATCH(N$4,'C. PoC Adj Factor Scoring'!$E$3:$AH$3,0)-1),MATCH(N$2&\" Score\",'C. PoC Adj Factor Scoring'!$E$4:$J$4,0),TRUE)","v":1},{"$f":"VLOOKUP(OFFSET($B:$B,,MATCH(O$4,$B$4:$F$4,0)-1),OFFSET('C. PoC Adj Factor Scoring'!$E$5:$J$282,,MATCH(O$4,'C. PoC Adj Factor Scoring'!$E$3:$AH$3,0)-1),MATCH(O$2&\" Score\",'C. PoC Adj Factor Scoring'!$E$4:$J$4,0),TRUE)","v":1},{"$f":"VLOOKUP(OFFSET($B:$B,,MATCH(P$4,$B$4:$F$4,0)-1),OFFSET('C. PoC Adj Factor Scoring'!$E$5:$J$282,,MATCH(P$4,'C. PoC Adj Factor Scoring'!$E$3:$AH$3,0)-1),MATCH(P$2&\" Score\",'C. PoC Adj Factor Scoring'!$E$4:$J$4,0),TRUE)","v":1},{"$f":"VLOOKUP(OFFSET($B:$B,,MATCH(Q$4,$B$4:$F$4,0)-1),OFFSET('C. PoC Adj Factor Scoring'!$E$5:$J$282,,MATCH(Q$4,'C. PoC Adj Factor Scoring'!$E$3:$AH$3,0)-1),MATCH(Q$2&\" Score\",'C. PoC Adj Factor Scoring'!$E$4:$J$4,0),TRUE)","v":1},{"$f":"VLOOKUP(OFFSET($B:$B,,MATCH(R$4,$B$4:$F$4,0)-1),OFFSET('C. PoC Adj Factor Scoring'!$E$5:$J$282,,MATCH(R$4,'C. PoC Adj Factor Scoring'!$E$3:$AH$3,0)-1),MATCH(R$2&\" Score\",'C. PoC Adj Factor Scoring'!$E$4:$J$4,0),TRUE)","v":1},{"$f":"VLOOKUP(OFFSET($B:$B,,MATCH(S$4,$B$4:$F$4,0)-1),OFFSET('C. PoC Adj Factor Scoring'!$E$5:$J$282,,MATCH(S$4,'C. PoC Adj Factor Scoring'!$E$3:$AH$3,0)-1),MATCH(S$2&\" Score\",'C. PoC Adj Factor Scoring'!$E$4:$J$4,0),TRUE)","v":1},{"$f":"VLOOKUP(OFFSET($B:$B,,MATCH(T$4,$B$4:$F$4,0)-1),OFFSET('C. PoC Adj Factor Scoring'!$E$5:$J$282,,MATCH(T$4,'C. PoC Adj Factor Scoring'!$E$3:$AH$3,0)-1),MATCH(T$2&\" Score\",'C. PoC Adj Factor Scoring'!$E$4:$J$4,0),TRUE)","v":1},{"$f":"VLOOKUP(OFFSET($B:$B,,MATCH(U$4,$B$4:$F$4,0)-1),OFFSET('C. PoC Adj Factor Scoring'!$E$5:$J$282,,MATCH(U$4,'C. PoC Adj Factor Scoring'!$E$3:$AH$3,0)-1),MATCH(U$2&\" Score\",'C. PoC Adj Factor Scoring'!$E$4:$J$4,0),TRUE)","v":1},{"$f":"VLOOKUP(OFFSET($B:$B,,MATCH(V$4,$B$4:$F$4,0)-1),OFFSET('C. PoC Adj Factor Scoring'!$E$5:$J$282,,MATCH(V$4,'C. PoC Adj Factor Scoring'!$E$3:$AH$3,0)-1),MATCH(V$2&\" Score\",'C. PoC Adj Factor Scoring'!$E$4:$J$4,0),TRUE)","v":1},{"$f":"VLOOKUP(OFFSET($B:$B,,MATCH(W$4,$B$4:$F$4,0)-1),OFFSET('C. PoC Adj Factor Scoring'!$E$5:$J$282,,MATCH(W$4,'C. PoC Adj Factor Scoring'!$E$3:$AH$3,0)-1),MATCH(W$2&\" Score\",'C. PoC Adj Factor Scoring'!$E$4:$J$4,0),TRUE)","v":1},{"$f":"VLOOKUP(OFFSET($B:$B,,MATCH(X$4,$B$4:$F$4,0)-1),OFFSET('C. PoC Adj Factor Scoring'!$E$5:$J$282,,MATCH(X$4,'C. PoC Adj Factor Scoring'!$E$3:$AH$3,0)-1),MATCH(X$2&\" Score\",'C. PoC Adj Factor Scoring'!$E$4:$J$4,0),TRUE)","v":1},{"$f":"VLOOKUP(OFFSET($B:$B,,MATCH(Y$4,$B$4:$F$4,0)-1),OFFSET('C. PoC Adj Factor Scoring'!$E$5:$J$282,,MATCH(Y$4,'C. PoC Adj Factor Scoring'!$E$3:$AH$3,0)-1),MATCH(Y$2&\" Score\",'C. PoC Adj Factor Scoring'!$E$4:$J$4,0),TRUE)","v":1},{"$f":"VLOOKUP(OFFSET($B:$B,,MATCH(Z$4,$B$4:$F$4,0)-1),OFFSET('C. PoC Adj Factor Scoring'!$E$5:$J$282,,MATCH(Z$4,'C. PoC Adj Factor Scoring'!$E$3:$AH$3,0)-1),MATCH(Z$2&\" Score\",'C. PoC Adj Factor Scoring'!$E$4:$J$4,0),TRUE)","v":1},{"$f":"VLOOKUP(OFFSET($B:$B,,MATCH(AA$4,$B$4:$F$4,0)-1),OFFSET('C. PoC Adj Factor Scoring'!$E$5:$J$282,,MATCH(AA$4,'C. PoC Adj Factor Scoring'!$E$3:$AH$3,0)-1),MATCH(AA$2&\" Score\",'C. PoC Adj Factor Scoring'!$E$4:$J$4,0),TRUE)","v":3},{"$f":"VLOOKUP(OFFSET($B:$B,,MATCH(AB$4,$B$4:$F$4,0)-1),OFFSET('C. PoC Adj Factor Scoring'!$E$5:$J$282,,MATCH(AB$4,'C. PoC Adj Factor Scoring'!$E$3:$AH$3,0)-1),MATCH(AB$2&\" Score\",'C. PoC Adj Factor Scoring'!$E$4:$J$4,0),TRUE)","v":1},{"$f":"VLOOKUP(OFFSET($B:$B,,MATCH(AC$4,$B$4:$F$4,0)-1),OFFSET('C. PoC Adj Factor Scoring'!$E$5:$J$282,,MATCH(AC$4,'C. PoC Adj Factor Scoring'!$E$3:$AH$3,0)-1),MATCH(AC$2&\" Score\",'C. PoC Adj Factor Scoring'!$E$4:$J$4,0),TRUE)","v":1},{"$f":"VLOOKUP(OFFSET($B:$B,,MATCH(AD$4,$B$4:$F$4,0)-1),OFFSET('C. PoC Adj Factor Scoring'!$E$5:$J$282,,MATCH(AD$4,'C. PoC Adj Factor Scoring'!$E$3:$AH$3,0)-1),MATCH(AD$2&\" Score\",'C. PoC Adj Factor Scoring'!$E$4:$J$4,0),TRUE)","v":1},{"$f":"VLOOKUP(OFFSET($B:$B,,MATCH(AE$4,$B$4:$F$4,0)-1),OFFSET('C. PoC Adj Factor Scoring'!$E$5:$J$282,,MATCH(AE$4,'C. PoC Adj Factor Scoring'!$E$3:$AH$3,0)-1),MATCH(AE$2&\" Score\",'C. PoC Adj Factor Scoring'!$E$4:$J$4,0),TRUE)","v":1}]
[{"$f":"'A. Population Info'!A275","v":1000366091},{"$f":"'A. Population Info'!L275","v":"OIL"},{"$f":"'A. Population Info'!M275","v":0},{"$f":"'A. Population Info'!N275","v":0},{"$f":"'A. Population Info'!O275","v":0},{"$f":"'A. Population Info'!P275","v":0},{"$f":"VLOOKUP(OFFSET($B:$B,,MATCH(G$4,$B$4:$F$4,0)-1),OFFSET('C. PoC Adj Factor Scoring'!$E$5:$J$282,,MATCH(G$4,'C. PoC Adj Factor Scoring'!$E$3:$AH$3,0)-1),MATCH(G$2&\" Score\",'C. PoC Adj Factor Scoring'!$E$4:$J$4,0),TRUE)","v":4},{"$f":"VLOOKUP(OFFSET($B:$B,,MATCH(H$4,$B$4:$F$4,0)-1),OFFSET('C. PoC Adj Factor Scoring'!$E$5:$J$282,,MATCH(H$4,'C. PoC Adj Factor Scoring'!$E$3:$AH$3,0)-1),MATCH(H$2&\" Score\",'C. PoC Adj Factor Scoring'!$E$4:$J$4,0),TRUE)","v":1},{"$f":"VLOOKUP(OFFSET($B:$B,,MATCH(I$4,$B$4:$F$4,0)-1),OFFSET('C. PoC Adj Factor Scoring'!$E$5:$J$282,,MATCH(I$4,'C. PoC Adj Factor Scoring'!$E$3:$AH$3,0)-1),MATCH(I$2&\" Score\",'C. PoC Adj Factor Scoring'!$E$4:$J$4,0),TRUE)","v":1},{"$f":"VLOOKUP(OFFSET($B:$B,,MATCH(J$4,$B$4:$F$4,0)-1),OFFSET('C. PoC Adj Factor Scoring'!$E$5:$J$282,,MATCH(J$4,'C. PoC Adj Factor Scoring'!$E$3:$AH$3,0)-1),MATCH(J$2&\" Score\",'C. PoC Adj Factor Scoring'!$E$4:$J$4,0),TRUE)","v":1},{"$f":"VLOOKUP(OFFSET($B:$B,,MATCH(K$4,$B$4:$F$4,0)-1),OFFSET('C. PoC Adj Factor Scoring'!$E$5:$J$282,,MATCH(K$4,'C. PoC Adj Factor Scoring'!$E$3:$AH$3,0)-1),MATCH(K$2&\" Score\",'C. PoC Adj Factor Scoring'!$E$4:$J$4,0),TRUE)","v":1},{"$f":"VLOOKUP(OFFSET($B:$B,,MATCH(L$4,$B$4:$F$4,0)-1),OFFSET('C. PoC Adj Factor Scoring'!$E$5:$J$282,,MATCH(L$4,'C. PoC Adj Factor Scoring'!$E$3:$AH$3,0)-1),MATCH(L$2&\" Score\",'C. PoC Adj Factor Scoring'!$E$4:$J$4,0),TRUE)","v":1},{"$f":"VLOOKUP(OFFSET($B:$B,,MATCH(M$4,$B$4:$F$4,0)-1),OFFSET('C. PoC Adj Factor Scoring'!$E$5:$J$282,,MATCH(M$4,'C. PoC Adj Factor Scoring'!$E$3:$AH$3,0)-1),MATCH(M$2&\" Score\",'C. PoC Adj Factor Scoring'!$E$4:$J$4,0),TRUE)","v":1},{"$f":"VLOOKUP(OFFSET($B:$B,,MATCH(N$4,$B$4:$F$4,0)-1),OFFSET('C. PoC Adj Factor Scoring'!$E$5:$J$282,,MATCH(N$4,'C. PoC Adj Factor Scoring'!$E$3:$AH$3,0)-1),MATCH(N$2&\" Score\",'C. PoC Adj Factor Scoring'!$E$4:$J$4,0),TRUE)","v":1},{"$f":"VLOOKUP(OFFSET($B:$B,,MATCH(O$4,$B$4:$F$4,0)-1),OFFSET('C. PoC Adj Factor Scoring'!$E$5:$J$282,,MATCH(O$4,'C. PoC Adj Factor Scoring'!$E$3:$AH$3,0)-1),MATCH(O$2&\" Score\",'C. PoC Adj Factor Scoring'!$E$4:$J$4,0),TRUE)","v":1},{"$f":"VLOOKUP(OFFSET($B:$B,,MATCH(P$4,$B$4:$F$4,0)-1),OFFSET('C. PoC Adj Factor Scoring'!$E$5:$J$282,,MATCH(P$4,'C. PoC Adj Factor Scoring'!$E$3:$AH$3,0)-1),MATCH(P$2&\" Score\",'C. PoC Adj Factor Scoring'!$E$4:$J$4,0),TRUE)","v":1},{"$f":"VLOOKUP(OFFSET($B:$B,,MATCH(Q$4,$B$4:$F$4,0)-1),OFFSET('C. PoC Adj Factor Scoring'!$E$5:$J$282,,MATCH(Q$4,'C. PoC Adj Factor Scoring'!$E$3:$AH$3,0)-1),MATCH(Q$2&\" Score\",'C. PoC Adj Factor Scoring'!$E$4:$J$4,0),TRUE)","v":1},{"$f":"VLOOKUP(OFFSET($B:$B,,MATCH(R$4,$B$4:$F$4,0)-1),OFFSET('C. PoC Adj Factor Scoring'!$E$5:$J$282,,MATCH(R$4,'C. PoC Adj Factor Scoring'!$E$3:$AH$3,0)-1),MATCH(R$2&\" Score\",'C. PoC Adj Factor Scoring'!$E$4:$J$4,0),TRUE)","v":1},{"$f":"VLOOKUP(OFFSET($B:$B,,MATCH(S$4,$B$4:$F$4,0)-1),OFFSET('C. PoC Adj Factor Scoring'!$E$5:$J$282,,MATCH(S$4,'C. PoC Adj Factor Scoring'!$E$3:$AH$3,0)-1),MATCH(S$2&\" Score\",'C. PoC Adj Factor Scoring'!$E$4:$J$4,0),TRUE)","v":1},{"$f":"VLOOKUP(OFFSET($B:$B,,MATCH(T$4,$B$4:$F$4,0)-1),OFFSET('C. PoC Adj Factor Scoring'!$E$5:$J$282,,MATCH(T$4,'C. PoC Adj Factor Scoring'!$E$3:$AH$3,0)-1),MATCH(T$2&\" Score\",'C. PoC Adj Factor Scoring'!$E$4:$J$4,0),TRUE)","v":1},{"$f":"VLOOKUP(OFFSET($B:$B,,MATCH(U$4,$B$4:$F$4,0)-1),OFFSET('C. PoC Adj Factor Scoring'!$E$5:$J$282,,MATCH(U$4,'C. PoC Adj Factor Scoring'!$E$3:$AH$3,0)-1),MATCH(U$2&\" Score\",'C. PoC Adj Factor Scoring'!$E$4:$J$4,0),TRUE)","v":1},{"$f":"VLOOKUP(OFFSET($B:$B,,MATCH(V$4,$B$4:$F$4,0)-1),OFFSET('C. PoC Adj Factor Scoring'!$E$5:$J$282,,MATCH(V$4,'C. PoC Adj Factor Scoring'!$E$3:$AH$3,0)-1),MATCH(V$2&\" Score\",'C. PoC Adj Factor Scoring'!$E$4:$J$4,0),TRUE)","v":1},{"$f":"VLOOKUP(OFFSET($B:$B,,MATCH(W$4,$B$4:$F$4,0)-1),OFFSET('C. PoC Adj Factor Scoring'!$E$5:$J$282,,MATCH(W$4,'C. PoC Adj Factor Scoring'!$E$3:$AH$3,0)-1),MATCH(W$2&\" Score\",'C. PoC Adj Factor Scoring'!$E$4:$J$4,0),TRUE)","v":1},{"$f":"VLOOKUP(OFFSET($B:$B,,MATCH(X$4,$B$4:$F$4,0)-1),OFFSET('C. PoC Adj Factor Scoring'!$E$5:$J$282,,MATCH(X$4,'C. PoC Adj Factor Scoring'!$E$3:$AH$3,0)-1),MATCH(X$2&\" Score\",'C. PoC Adj Factor Scoring'!$E$4:$J$4,0),TRUE)","v":1},{"$f":"VLOOKUP(OFFSET($B:$B,,MATCH(Y$4,$B$4:$F$4,0)-1),OFFSET('C. PoC Adj Factor Scoring'!$E$5:$J$282,,MATCH(Y$4,'C. PoC Adj Factor Scoring'!$E$3:$AH$3,0)-1),MATCH(Y$2&\" Score\",'C. PoC Adj Factor Scoring'!$E$4:$J$4,0),TRUE)","v":1},{"$f":"VLOOKUP(OFFSET($B:$B,,MATCH(Z$4,$B$4:$F$4,0)-1),OFFSET('C. PoC Adj Factor Scoring'!$E$5:$J$282,,MATCH(Z$4,'C. PoC Adj Factor Scoring'!$E$3:$AH$3,0)-1),MATCH(Z$2&\" Score\",'C. PoC Adj Factor Scoring'!$E$4:$J$4,0),TRUE)","v":1},{"$f":"VLOOKUP(OFFSET($B:$B,,MATCH(AA$4,$B$4:$F$4,0)-1),OFFSET('C. PoC Adj Factor Scoring'!$E$5:$J$282,,MATCH(AA$4,'C. PoC Adj Factor Scoring'!$E$3:$AH$3,0)-1),MATCH(AA$2&\" Score\",'C. PoC Adj Factor Scoring'!$E$4:$J$4,0),TRUE)","v":3},{"$f":"VLOOKUP(OFFSET($B:$B,,MATCH(AB$4,$B$4:$F$4,0)-1),OFFSET('C. PoC Adj Factor Scoring'!$E$5:$J$282,,MATCH(AB$4,'C. PoC Adj Factor Scoring'!$E$3:$AH$3,0)-1),MATCH(AB$2&\" Score\",'C. PoC Adj Factor Scoring'!$E$4:$J$4,0),TRUE)","v":1},{"$f":"VLOOKUP(OFFSET($B:$B,,MATCH(AC$4,$B$4:$F$4,0)-1),OFFSET('C. PoC Adj Factor Scoring'!$E$5:$J$282,,MATCH(AC$4,'C. PoC Adj Factor Scoring'!$E$3:$AH$3,0)-1),MATCH(AC$2&\" Score\",'C. PoC Adj Factor Scoring'!$E$4:$J$4,0),TRUE)","v":1},{"$f":"VLOOKUP(OFFSET($B:$B,,MATCH(AD$4,$B$4:$F$4,0)-1),OFFSET('C. PoC Adj Factor Scoring'!$E$5:$J$282,,MATCH(AD$4,'C. PoC Adj Factor Scoring'!$E$3:$AH$3,0)-1),MATCH(AD$2&\" Score\",'C. PoC Adj Factor Scoring'!$E$4:$J$4,0),TRUE)","v":1},{"$f":"VLOOKUP(OFFSET($B:$B,,MATCH(AE$4,$B$4:$F$4,0)-1),OFFSET('C. PoC Adj Factor Scoring'!$E$5:$J$282,,MATCH(AE$4,'C. PoC Adj Factor Scoring'!$E$3:$AH$3,0)-1),MATCH(AE$2&\" Score\",'C. PoC Adj Factor Scoring'!$E$4:$J$4,0),TRUE)","v":1}]
[{"$f":"'A. Population Info'!A276","v":1000366122},{"$f":"'A. Population Info'!L276","v":"OIL"},{"$f":"'A. Population Info'!M276","v":0},{"$f":"'A. Population Info'!N276","v":0},{"$f":"'A. Population Info'!O276","v":0},{"$f":"'A. Population Info'!P276","v":0},{"$f":"VLOOKUP(OFFSET($B:$B,,MATCH(G$4,$B$4:$F$4,0)-1),OFFSET('C. PoC Adj Factor Scoring'!$E$5:$J$282,,MATCH(G$4,'C. PoC Adj Factor Scoring'!$E$3:$AH$3,0)-1),MATCH(G$2&\" Score\",'C. PoC Adj Factor Scoring'!$E$4:$J$4,0),TRUE)","v":4},{"$f":"VLOOKUP(OFFSET($B:$B,,MATCH(H$4,$B$4:$F$4,0)-1),OFFSET('C. PoC Adj Factor Scoring'!$E$5:$J$282,,MATCH(H$4,'C. PoC Adj Factor Scoring'!$E$3:$AH$3,0)-1),MATCH(H$2&\" Score\",'C. PoC Adj Factor Scoring'!$E$4:$J$4,0),TRUE)","v":1},{"$f":"VLOOKUP(OFFSET($B:$B,,MATCH(I$4,$B$4:$F$4,0)-1),OFFSET('C. PoC Adj Factor Scoring'!$E$5:$J$282,,MATCH(I$4,'C. PoC Adj Factor Scoring'!$E$3:$AH$3,0)-1),MATCH(I$2&\" Score\",'C. PoC Adj Factor Scoring'!$E$4:$J$4,0),TRUE)","v":1},{"$f":"VLOOKUP(OFFSET($B:$B,,MATCH(J$4,$B$4:$F$4,0)-1),OFFSET('C. PoC Adj Factor Scoring'!$E$5:$J$282,,MATCH(J$4,'C. PoC Adj Factor Scoring'!$E$3:$AH$3,0)-1),MATCH(J$2&\" Score\",'C. PoC Adj Factor Scoring'!$E$4:$J$4,0),TRUE)","v":1},{"$f":"VLOOKUP(OFFSET($B:$B,,MATCH(K$4,$B$4:$F$4,0)-1),OFFSET('C. PoC Adj Factor Scoring'!$E$5:$J$282,,MATCH(K$4,'C. PoC Adj Factor Scoring'!$E$3:$AH$3,0)-1),MATCH(K$2&\" Score\",'C. PoC Adj Factor Scoring'!$E$4:$J$4,0),TRUE)","v":1},{"$f":"VLOOKUP(OFFSET($B:$B,,MATCH(L$4,$B$4:$F$4,0)-1),OFFSET('C. PoC Adj Factor Scoring'!$E$5:$J$282,,MATCH(L$4,'C. PoC Adj Factor Scoring'!$E$3:$AH$3,0)-1),MATCH(L$2&\" Score\",'C. PoC Adj Factor Scoring'!$E$4:$J$4,0),TRUE)","v":1},{"$f":"VLOOKUP(OFFSET($B:$B,,MATCH(M$4,$B$4:$F$4,0)-1),OFFSET('C. PoC Adj Factor Scoring'!$E$5:$J$282,,MATCH(M$4,'C. PoC Adj Factor Scoring'!$E$3:$AH$3,0)-1),MATCH(M$2&\" Score\",'C. PoC Adj Factor Scoring'!$E$4:$J$4,0),TRUE)","v":1},{"$f":"VLOOKUP(OFFSET($B:$B,,MATCH(N$4,$B$4:$F$4,0)-1),OFFSET('C. PoC Adj Factor Scoring'!$E$5:$J$282,,MATCH(N$4,'C. PoC Adj Factor Scoring'!$E$3:$AH$3,0)-1),MATCH(N$2&\" Score\",'C. PoC Adj Factor Scoring'!$E$4:$J$4,0),TRUE)","v":1},{"$f":"VLOOKUP(OFFSET($B:$B,,MATCH(O$4,$B$4:$F$4,0)-1),OFFSET('C. PoC Adj Factor Scoring'!$E$5:$J$282,,MATCH(O$4,'C. PoC Adj Factor Scoring'!$E$3:$AH$3,0)-1),MATCH(O$2&\" Score\",'C. PoC Adj Factor Scoring'!$E$4:$J$4,0),TRUE)","v":1},{"$f":"VLOOKUP(OFFSET($B:$B,,MATCH(P$4,$B$4:$F$4,0)-1),OFFSET('C. PoC Adj Factor Scoring'!$E$5:$J$282,,MATCH(P$4,'C. PoC Adj Factor Scoring'!$E$3:$AH$3,0)-1),MATCH(P$2&\" Score\",'C. PoC Adj Factor Scoring'!$E$4:$J$4,0),TRUE)","v":1},{"$f":"VLOOKUP(OFFSET($B:$B,,MATCH(Q$4,$B$4:$F$4,0)-1),OFFSET('C. PoC Adj Factor Scoring'!$E$5:$J$282,,MATCH(Q$4,'C. PoC Adj Factor Scoring'!$E$3:$AH$3,0)-1),MATCH(Q$2&\" Score\",'C. PoC Adj Factor Scoring'!$E$4:$J$4,0),TRUE)","v":1},{"$f":"VLOOKUP(OFFSET($B:$B,,MATCH(R$4,$B$4:$F$4,0)-1),OFFSET('C. PoC Adj Factor Scoring'!$E$5:$J$282,,MATCH(R$4,'C. PoC Adj Factor Scoring'!$E$3:$AH$3,0)-1),MATCH(R$2&\" Score\",'C. PoC Adj Factor Scoring'!$E$4:$J$4,0),TRUE)","v":1},{"$f":"VLOOKUP(OFFSET($B:$B,,MATCH(S$4,$B$4:$F$4,0)-1),OFFSET('C. PoC Adj Factor Scoring'!$E$5:$J$282,,MATCH(S$4,'C. PoC Adj Factor Scoring'!$E$3:$AH$3,0)-1),MATCH(S$2&\" Score\",'C. PoC Adj Factor Scoring'!$E$4:$J$4,0),TRUE)","v":1},{"$f":"VLOOKUP(OFFSET($B:$B,,MATCH(T$4,$B$4:$F$4,0)-1),OFFSET('C. PoC Adj Factor Scoring'!$E$5:$J$282,,MATCH(T$4,'C. PoC Adj Factor Scoring'!$E$3:$AH$3,0)-1),MATCH(T$2&\" Score\",'C. PoC Adj Factor Scoring'!$E$4:$J$4,0),TRUE)","v":1},{"$f":"VLOOKUP(OFFSET($B:$B,,MATCH(U$4,$B$4:$F$4,0)-1),OFFSET('C. PoC Adj Factor Scoring'!$E$5:$J$282,,MATCH(U$4,'C. PoC Adj Factor Scoring'!$E$3:$AH$3,0)-1),MATCH(U$2&\" Score\",'C. PoC Adj Factor Scoring'!$E$4:$J$4,0),TRUE)","v":1},{"$f":"VLOOKUP(OFFSET($B:$B,,MATCH(V$4,$B$4:$F$4,0)-1),OFFSET('C. PoC Adj Factor Scoring'!$E$5:$J$282,,MATCH(V$4,'C. PoC Adj Factor Scoring'!$E$3:$AH$3,0)-1),MATCH(V$2&\" Score\",'C. PoC Adj Factor Scoring'!$E$4:$J$4,0),TRUE)","v":1},{"$f":"VLOOKUP(OFFSET($B:$B,,MATCH(W$4,$B$4:$F$4,0)-1),OFFSET('C. PoC Adj Factor Scoring'!$E$5:$J$282,,MATCH(W$4,'C. PoC Adj Factor Scoring'!$E$3:$AH$3,0)-1),MATCH(W$2&\" Score\",'C. PoC Adj Factor Scoring'!$E$4:$J$4,0),TRUE)","v":1},{"$f":"VLOOKUP(OFFSET($B:$B,,MATCH(X$4,$B$4:$F$4,0)-1),OFFSET('C. PoC Adj Factor Scoring'!$E$5:$J$282,,MATCH(X$4,'C. PoC Adj Factor Scoring'!$E$3:$AH$3,0)-1),MATCH(X$2&\" Score\",'C. PoC Adj Factor Scoring'!$E$4:$J$4,0),TRUE)","v":1},{"$f":"VLOOKUP(OFFSET($B:$B,,MATCH(Y$4,$B$4:$F$4,0)-1),OFFSET('C. PoC Adj Factor Scoring'!$E$5:$J$282,,MATCH(Y$4,'C. PoC Adj Factor Scoring'!$E$3:$AH$3,0)-1),MATCH(Y$2&\" Score\",'C. PoC Adj Factor Scoring'!$E$4:$J$4,0),TRUE)","v":1},{"$f":"VLOOKUP(OFFSET($B:$B,,MATCH(Z$4,$B$4:$F$4,0)-1),OFFSET('C. PoC Adj Factor Scoring'!$E$5:$J$282,,MATCH(Z$4,'C. PoC Adj Factor Scoring'!$E$3:$AH$3,0)-1),MATCH(Z$2&\" Score\",'C. PoC Adj Factor Scoring'!$E$4:$J$4,0),TRUE)","v":1},{"$f":"VLOOKUP(OFFSET($B:$B,,MATCH(AA$4,$B$4:$F$4,0)-1),OFFSET('C. PoC Adj Factor Scoring'!$E$5:$J$282,,MATCH(AA$4,'C. PoC Adj Factor Scoring'!$E$3:$AH$3,0)-1),MATCH(AA$2&\" Score\",'C. PoC Adj Factor Scoring'!$E$4:$J$4,0),TRUE)","v":3},{"$f":"VLOOKUP(OFFSET($B:$B,,MATCH(AB$4,$B$4:$F$4,0)-1),OFFSET('C. PoC Adj Factor Scoring'!$E$5:$J$282,,MATCH(AB$4,'C. PoC Adj Factor Scoring'!$E$3:$AH$3,0)-1),MATCH(AB$2&\" Score\",'C. PoC Adj Factor Scoring'!$E$4:$J$4,0),TRUE)","v":1},{"$f":"VLOOKUP(OFFSET($B:$B,,MATCH(AC$4,$B$4:$F$4,0)-1),OFFSET('C. PoC Adj Factor Scoring'!$E$5:$J$282,,MATCH(AC$4,'C. PoC Adj Factor Scoring'!$E$3:$AH$3,0)-1),MATCH(AC$2&\" Score\",'C. PoC Adj Factor Scoring'!$E$4:$J$4,0),TRUE)","v":1},{"$f":"VLOOKUP(OFFSET($B:$B,,MATCH(AD$4,$B$4:$F$4,0)-1),OFFSET('C. PoC Adj Factor Scoring'!$E$5:$J$282,,MATCH(AD$4,'C. PoC Adj Factor Scoring'!$E$3:$AH$3,0)-1),MATCH(AD$2&\" Score\",'C. PoC Adj Factor Scoring'!$E$4:$J$4,0),TRUE)","v":1},{"$f":"VLOOKUP(OFFSET($B:$B,,MATCH(AE$4,$B$4:$F$4,0)-1),OFFSET('C. PoC Adj Factor Scoring'!$E$5:$J$282,,MATCH(AE$4,'C. PoC Adj Factor Scoring'!$E$3:$AH$3,0)-1),MATCH(AE$2&\" Score\",'C. PoC Adj Factor Scoring'!$E$4:$J$4,0),TRUE)","v":1}]
[{"$f":"'A. Population Info'!A277","v":1000366153},{"$f":"'A. Population Info'!L277","v":"OIL"},{"$f":"'A. Population Info'!M277","v":0},{"$f":"'A. Population Info'!N277","v":0},{"$f":"'A. Population Info'!O277","v":0},{"$f":"'A. Population Info'!P277","v":0},{"$f":"VLOOKUP(OFFSET($B:$B,,MATCH(G$4,$B$4:$F$4,0)-1),OFFSET('C. PoC Adj Factor Scoring'!$E$5:$J$282,,MATCH(G$4,'C. PoC Adj Factor Scoring'!$E$3:$AH$3,0)-1),MATCH(G$2&\" Score\",'C. PoC Adj Factor Scoring'!$E$4:$J$4,0),TRUE)","v":4},{"$f":"VLOOKUP(OFFSET($B:$B,,MATCH(H$4,$B$4:$F$4,0)-1),OFFSET('C. PoC Adj Factor Scoring'!$E$5:$J$282,,MATCH(H$4,'C. PoC Adj Factor Scoring'!$E$3:$AH$3,0)-1),MATCH(H$2&\" Score\",'C. PoC Adj Factor Scoring'!$E$4:$J$4,0),TRUE)","v":1},{"$f":"VLOOKUP(OFFSET($B:$B,,MATCH(I$4,$B$4:$F$4,0)-1),OFFSET('C. PoC Adj Factor Scoring'!$E$5:$J$282,,MATCH(I$4,'C. PoC Adj Factor Scoring'!$E$3:$AH$3,0)-1),MATCH(I$2&\" Score\",'C. PoC Adj Factor Scoring'!$E$4:$J$4,0),TRUE)","v":1},{"$f":"VLOOKUP(OFFSET($B:$B,,MATCH(J$4,$B$4:$F$4,0)-1),OFFSET('C. PoC Adj Factor Scoring'!$E$5:$J$282,,MATCH(J$4,'C. PoC Adj Factor Scoring'!$E$3:$AH$3,0)-1),MATCH(J$2&\" Score\",'C. PoC Adj Factor Scoring'!$E$4:$J$4,0),TRUE)","v":1},{"$f":"VLOOKUP(OFFSET($B:$B,,MATCH(K$4,$B$4:$F$4,0)-1),OFFSET('C. PoC Adj Factor Scoring'!$E$5:$J$282,,MATCH(K$4,'C. PoC Adj Factor Scoring'!$E$3:$AH$3,0)-1),MATCH(K$2&\" Score\",'C. PoC Adj Factor Scoring'!$E$4:$J$4,0),TRUE)","v":1},{"$f":"VLOOKUP(OFFSET($B:$B,,MATCH(L$4,$B$4:$F$4,0)-1),OFFSET('C. PoC Adj Factor Scoring'!$E$5:$J$282,,MATCH(L$4,'C. PoC Adj Factor Scoring'!$E$3:$AH$3,0)-1),MATCH(L$2&\" Score\",'C. PoC Adj Factor Scoring'!$E$4:$J$4,0),TRUE)","v":1},{"$f":"VLOOKUP(OFFSET($B:$B,,MATCH(M$4,$B$4:$F$4,0)-1),OFFSET('C. PoC Adj Factor Scoring'!$E$5:$J$282,,MATCH(M$4,'C. PoC Adj Factor Scoring'!$E$3:$AH$3,0)-1),MATCH(M$2&\" Score\",'C. PoC Adj Factor Scoring'!$E$4:$J$4,0),TRUE)","v":1},{"$f":"VLOOKUP(OFFSET($B:$B,,MATCH(N$4,$B$4:$F$4,0)-1),OFFSET('C. PoC Adj Factor Scoring'!$E$5:$J$282,,MATCH(N$4,'C. PoC Adj Factor Scoring'!$E$3:$AH$3,0)-1),MATCH(N$2&\" Score\",'C. PoC Adj Factor Scoring'!$E$4:$J$4,0),TRUE)","v":1},{"$f":"VLOOKUP(OFFSET($B:$B,,MATCH(O$4,$B$4:$F$4,0)-1),OFFSET('C. PoC Adj Factor Scoring'!$E$5:$J$282,,MATCH(O$4,'C. PoC Adj Factor Scoring'!$E$3:$AH$3,0)-1),MATCH(O$2&\" Score\",'C. PoC Adj Factor Scoring'!$E$4:$J$4,0),TRUE)","v":1},{"$f":"VLOOKUP(OFFSET($B:$B,,MATCH(P$4,$B$4:$F$4,0)-1),OFFSET('C. PoC Adj Factor Scoring'!$E$5:$J$282,,MATCH(P$4,'C. PoC Adj Factor Scoring'!$E$3:$AH$3,0)-1),MATCH(P$2&\" Score\",'C. PoC Adj Factor Scoring'!$E$4:$J$4,0),TRUE)","v":1},{"$f":"VLOOKUP(OFFSET($B:$B,,MATCH(Q$4,$B$4:$F$4,0)-1),OFFSET('C. PoC Adj Factor Scoring'!$E$5:$J$282,,MATCH(Q$4,'C. PoC Adj Factor Scoring'!$E$3:$AH$3,0)-1),MATCH(Q$2&\" Score\",'C. PoC Adj Factor Scoring'!$E$4:$J$4,0),TRUE)","v":1},{"$f":"VLOOKUP(OFFSET($B:$B,,MATCH(R$4,$B$4:$F$4,0)-1),OFFSET('C. PoC Adj Factor Scoring'!$E$5:$J$282,,MATCH(R$4,'C. PoC Adj Factor Scoring'!$E$3:$AH$3,0)-1),MATCH(R$2&\" Score\",'C. PoC Adj Factor Scoring'!$E$4:$J$4,0),TRUE)","v":1},{"$f":"VLOOKUP(OFFSET($B:$B,,MATCH(S$4,$B$4:$F$4,0)-1),OFFSET('C. PoC Adj Factor Scoring'!$E$5:$J$282,,MATCH(S$4,'C. PoC Adj Factor Scoring'!$E$3:$AH$3,0)-1),MATCH(S$2&\" Score\",'C. PoC Adj Factor Scoring'!$E$4:$J$4,0),TRUE)","v":1},{"$f":"VLOOKUP(OFFSET($B:$B,,MATCH(T$4,$B$4:$F$4,0)-1),OFFSET('C. PoC Adj Factor Scoring'!$E$5:$J$282,,MATCH(T$4,'C. PoC Adj Factor Scoring'!$E$3:$AH$3,0)-1),MATCH(T$2&\" Score\",'C. PoC Adj Factor Scoring'!$E$4:$J$4,0),TRUE)","v":1},{"$f":"VLOOKUP(OFFSET($B:$B,,MATCH(U$4,$B$4:$F$4,0)-1),OFFSET('C. PoC Adj Factor Scoring'!$E$5:$J$282,,MATCH(U$4,'C. PoC Adj Factor Scoring'!$E$3:$AH$3,0)-1),MATCH(U$2&\" Score\",'C. PoC Adj Factor Scoring'!$E$4:$J$4,0),TRUE)","v":1},{"$f":"VLOOKUP(OFFSET($B:$B,,MATCH(V$4,$B$4:$F$4,0)-1),OFFSET('C. PoC Adj Factor Scoring'!$E$5:$J$282,,MATCH(V$4,'C. PoC Adj Factor Scoring'!$E$3:$AH$3,0)-1),MATCH(V$2&\" Score\",'C. PoC Adj Factor Scoring'!$E$4:$J$4,0),TRUE)","v":1},{"$f":"VLOOKUP(OFFSET($B:$B,,MATCH(W$4,$B$4:$F$4,0)-1),OFFSET('C. PoC Adj Factor Scoring'!$E$5:$J$282,,MATCH(W$4,'C. PoC Adj Factor Scoring'!$E$3:$AH$3,0)-1),MATCH(W$2&\" Score\",'C. PoC Adj Factor Scoring'!$E$4:$J$4,0),TRUE)","v":1},{"$f":"VLOOKUP(OFFSET($B:$B,,MATCH(X$4,$B$4:$F$4,0)-1),OFFSET('C. PoC Adj Factor Scoring'!$E$5:$J$282,,MATCH(X$4,'C. PoC Adj Factor Scoring'!$E$3:$AH$3,0)-1),MATCH(X$2&\" Score\",'C. PoC Adj Factor Scoring'!$E$4:$J$4,0),TRUE)","v":1},{"$f":"VLOOKUP(OFFSET($B:$B,,MATCH(Y$4,$B$4:$F$4,0)-1),OFFSET('C. PoC Adj Factor Scoring'!$E$5:$J$282,,MATCH(Y$4,'C. PoC Adj Factor Scoring'!$E$3:$AH$3,0)-1),MATCH(Y$2&\" Score\",'C. PoC Adj Factor Scoring'!$E$4:$J$4,0),TRUE)","v":1},{"$f":"VLOOKUP(OFFSET($B:$B,,MATCH(Z$4,$B$4:$F$4,0)-1),OFFSET('C. PoC Adj Factor Scoring'!$E$5:$J$282,,MATCH(Z$4,'C. PoC Adj Factor Scoring'!$E$3:$AH$3,0)-1),MATCH(Z$2&\" Score\",'C. PoC Adj Factor Scoring'!$E$4:$J$4,0),TRUE)","v":1},{"$f":"VLOOKUP(OFFSET($B:$B,,MATCH(AA$4,$B$4:$F$4,0)-1),OFFSET('C. PoC Adj Factor Scoring'!$E$5:$J$282,,MATCH(AA$4,'C. PoC Adj Factor Scoring'!$E$3:$AH$3,0)-1),MATCH(AA$2&\" Score\",'C. PoC Adj Factor Scoring'!$E$4:$J$4,0),TRUE)","v":3},{"$f":"VLOOKUP(OFFSET($B:$B,,MATCH(AB$4,$B$4:$F$4,0)-1),OFFSET('C. PoC Adj Factor Scoring'!$E$5:$J$282,,MATCH(AB$4,'C. PoC Adj Factor Scoring'!$E$3:$AH$3,0)-1),MATCH(AB$2&\" Score\",'C. PoC Adj Factor Scoring'!$E$4:$J$4,0),TRUE)","v":1},{"$f":"VLOOKUP(OFFSET($B:$B,,MATCH(AC$4,$B$4:$F$4,0)-1),OFFSET('C. PoC Adj Factor Scoring'!$E$5:$J$282,,MATCH(AC$4,'C. PoC Adj Factor Scoring'!$E$3:$AH$3,0)-1),MATCH(AC$2&\" Score\",'C. PoC Adj Factor Scoring'!$E$4:$J$4,0),TRUE)","v":1},{"$f":"VLOOKUP(OFFSET($B:$B,,MATCH(AD$4,$B$4:$F$4,0)-1),OFFSET('C. PoC Adj Factor Scoring'!$E$5:$J$282,,MATCH(AD$4,'C. PoC Adj Factor Scoring'!$E$3:$AH$3,0)-1),MATCH(AD$2&\" Score\",'C. PoC Adj Factor Scoring'!$E$4:$J$4,0),TRUE)","v":1},{"$f":"VLOOKUP(OFFSET($B:$B,,MATCH(AE$4,$B$4:$F$4,0)-1),OFFSET('C. PoC Adj Factor Scoring'!$E$5:$J$282,,MATCH(AE$4,'C. PoC Adj Factor Scoring'!$E$3:$AH$3,0)-1),MATCH(AE$2&\" Score\",'C. PoC Adj Factor Scoring'!$E$4:$J$4,0),TRUE)","v":1}]
[{"$f":"'A. Population Info'!A278","v":1000366184},{"$f":"'A. Population Info'!L278","v":"OIL"},{"$f":"'A. Population Info'!M278","v":0},{"$f":"'A. Population Info'!N278","v":0},{"$f":"'A. Population Info'!O278","v":0},{"$f":"'A. Population Info'!P278","v":0},{"$f":"VLOOKUP(OFFSET($B:$B,,MATCH(G$4,$B$4:$F$4,0)-1),OFFSET('C. PoC Adj Factor Scoring'!$E$5:$J$282,,MATCH(G$4,'C. PoC Adj Factor Scoring'!$E$3:$AH$3,0)-1),MATCH(G$2&\" Score\",'C. PoC Adj Factor Scoring'!$E$4:$J$4,0),TRUE)","v":4},{"$f":"VLOOKUP(OFFSET($B:$B,,MATCH(H$4,$B$4:$F$4,0)-1),OFFSET('C. PoC Adj Factor Scoring'!$E$5:$J$282,,MATCH(H$4,'C. PoC Adj Factor Scoring'!$E$3:$AH$3,0)-1),MATCH(H$2&\" Score\",'C. PoC Adj Factor Scoring'!$E$4:$J$4,0),TRUE)","v":1},{"$f":"VLOOKUP(OFFSET($B:$B,,MATCH(I$4,$B$4:$F$4,0)-1),OFFSET('C. PoC Adj Factor Scoring'!$E$5:$J$282,,MATCH(I$4,'C. PoC Adj Factor Scoring'!$E$3:$AH$3,0)-1),MATCH(I$2&\" Score\",'C. PoC Adj Factor Scoring'!$E$4:$J$4,0),TRUE)","v":1},{"$f":"VLOOKUP(OFFSET($B:$B,,MATCH(J$4,$B$4:$F$4,0)-1),OFFSET('C. PoC Adj Factor Scoring'!$E$5:$J$282,,MATCH(J$4,'C. PoC Adj Factor Scoring'!$E$3:$AH$3,0)-1),MATCH(J$2&\" Score\",'C. PoC Adj Factor Scoring'!$E$4:$J$4,0),TRUE)","v":1},{"$f":"VLOOKUP(OFFSET($B:$B,,MATCH(K$4,$B$4:$F$4,0)-1),OFFSET('C. PoC Adj Factor Scoring'!$E$5:$J$282,,MATCH(K$4,'C. PoC Adj Factor Scoring'!$E$3:$AH$3,0)-1),MATCH(K$2&\" Score\",'C. PoC Adj Factor Scoring'!$E$4:$J$4,0),TRUE)","v":1},{"$f":"VLOOKUP(OFFSET($B:$B,,MATCH(L$4,$B$4:$F$4,0)-1),OFFSET('C. PoC Adj Factor Scoring'!$E$5:$J$282,,MATCH(L$4,'C. PoC Adj Factor Scoring'!$E$3:$AH$3,0)-1),MATCH(L$2&\" Score\",'C. PoC Adj Factor Scoring'!$E$4:$J$4,0),TRUE)","v":1},{"$f":"VLOOKUP(OFFSET($B:$B,,MATCH(M$4,$B$4:$F$4,0)-1),OFFSET('C. PoC Adj Factor Scoring'!$E$5:$J$282,,MATCH(M$4,'C. PoC Adj Factor Scoring'!$E$3:$AH$3,0)-1),MATCH(M$2&\" Score\",'C. PoC Adj Factor Scoring'!$E$4:$J$4,0),TRUE)","v":1},{"$f":"VLOOKUP(OFFSET($B:$B,,MATCH(N$4,$B$4:$F$4,0)-1),OFFSET('C. PoC Adj Factor Scoring'!$E$5:$J$282,,MATCH(N$4,'C. PoC Adj Factor Scoring'!$E$3:$AH$3,0)-1),MATCH(N$2&\" Score\",'C. PoC Adj Factor Scoring'!$E$4:$J$4,0),TRUE)","v":1},{"$f":"VLOOKUP(OFFSET($B:$B,,MATCH(O$4,$B$4:$F$4,0)-1),OFFSET('C. PoC Adj Factor Scoring'!$E$5:$J$282,,MATCH(O$4,'C. PoC Adj Factor Scoring'!$E$3:$AH$3,0)-1),MATCH(O$2&\" Score\",'C. PoC Adj Factor Scoring'!$E$4:$J$4,0),TRUE)","v":1},{"$f":"VLOOKUP(OFFSET($B:$B,,MATCH(P$4,$B$4:$F$4,0)-1),OFFSET('C. PoC Adj Factor Scoring'!$E$5:$J$282,,MATCH(P$4,'C. PoC Adj Factor Scoring'!$E$3:$AH$3,0)-1),MATCH(P$2&\" Score\",'C. PoC Adj Factor Scoring'!$E$4:$J$4,0),TRUE)","v":1},{"$f":"VLOOKUP(OFFSET($B:$B,,MATCH(Q$4,$B$4:$F$4,0)-1),OFFSET('C. PoC Adj Factor Scoring'!$E$5:$J$282,,MATCH(Q$4,'C. PoC Adj Factor Scoring'!$E$3:$AH$3,0)-1),MATCH(Q$2&\" Score\",'C. PoC Adj Factor Scoring'!$E$4:$J$4,0),TRUE)","v":1},{"$f":"VLOOKUP(OFFSET($B:$B,,MATCH(R$4,$B$4:$F$4,0)-1),OFFSET('C. PoC Adj Factor Scoring'!$E$5:$J$282,,MATCH(R$4,'C. PoC Adj Factor Scoring'!$E$3:$AH$3,0)-1),MATCH(R$2&\" Score\",'C. PoC Adj Factor Scoring'!$E$4:$J$4,0),TRUE)","v":1},{"$f":"VLOOKUP(OFFSET($B:$B,,MATCH(S$4,$B$4:$F$4,0)-1),OFFSET('C. PoC Adj Factor Scoring'!$E$5:$J$282,,MATCH(S$4,'C. PoC Adj Factor Scoring'!$E$3:$AH$3,0)-1),MATCH(S$2&\" Score\",'C. PoC Adj Factor Scoring'!$E$4:$J$4,0),TRUE)","v":1},{"$f":"VLOOKUP(OFFSET($B:$B,,MATCH(T$4,$B$4:$F$4,0)-1),OFFSET('C. PoC Adj Factor Scoring'!$E$5:$J$282,,MATCH(T$4,'C. PoC Adj Factor Scoring'!$E$3:$AH$3,0)-1),MATCH(T$2&\" Score\",'C. PoC Adj Factor Scoring'!$E$4:$J$4,0),TRUE)","v":1},{"$f":"VLOOKUP(OFFSET($B:$B,,MATCH(U$4,$B$4:$F$4,0)-1),OFFSET('C. PoC Adj Factor Scoring'!$E$5:$J$282,,MATCH(U$4,'C. PoC Adj Factor Scoring'!$E$3:$AH$3,0)-1),MATCH(U$2&\" Score\",'C. PoC Adj Factor Scoring'!$E$4:$J$4,0),TRUE)","v":1},{"$f":"VLOOKUP(OFFSET($B:$B,,MATCH(V$4,$B$4:$F$4,0)-1),OFFSET('C. PoC Adj Factor Scoring'!$E$5:$J$282,,MATCH(V$4,'C. PoC Adj Factor Scoring'!$E$3:$AH$3,0)-1),MATCH(V$2&\" Score\",'C. PoC Adj Factor Scoring'!$E$4:$J$4,0),TRUE)","v":1},{"$f":"VLOOKUP(OFFSET($B:$B,,MATCH(W$4,$B$4:$F$4,0)-1),OFFSET('C. PoC Adj Factor Scoring'!$E$5:$J$282,,MATCH(W$4,'C. PoC Adj Factor Scoring'!$E$3:$AH$3,0)-1),MATCH(W$2&\" Score\",'C. PoC Adj Factor Scoring'!$E$4:$J$4,0),TRUE)","v":1},{"$f":"VLOOKUP(OFFSET($B:$B,,MATCH(X$4,$B$4:$F$4,0)-1),OFFSET('C. PoC Adj Factor Scoring'!$E$5:$J$282,,MATCH(X$4,'C. PoC Adj Factor Scoring'!$E$3:$AH$3,0)-1),MATCH(X$2&\" Score\",'C. PoC Adj Factor Scoring'!$E$4:$J$4,0),TRUE)","v":1},{"$f":"VLOOKUP(OFFSET($B:$B,,MATCH(Y$4,$B$4:$F$4,0)-1),OFFSET('C. PoC Adj Factor Scoring'!$E$5:$J$282,,MATCH(Y$4,'C. PoC Adj Factor Scoring'!$E$3:$AH$3,0)-1),MATCH(Y$2&\" Score\",'C. PoC Adj Factor Scoring'!$E$4:$J$4,0),TRUE)","v":1},{"$f":"VLOOKUP(OFFSET($B:$B,,MATCH(Z$4,$B$4:$F$4,0)-1),OFFSET('C. PoC Adj Factor Scoring'!$E$5:$J$282,,MATCH(Z$4,'C. PoC Adj Factor Scoring'!$E$3:$AH$3,0)-1),MATCH(Z$2&\" Score\",'C. PoC Adj Factor Scoring'!$E$4:$J$4,0),TRUE)","v":1},{"$f":"VLOOKUP(OFFSET($B:$B,,MATCH(AA$4,$B$4:$F$4,0)-1),OFFSET('C. PoC Adj Factor Scoring'!$E$5:$J$282,,MATCH(AA$4,'C. PoC Adj Factor Scoring'!$E$3:$AH$3,0)-1),MATCH(AA$2&\" Score\",'C. PoC Adj Factor Scoring'!$E$4:$J$4,0),TRUE)","v":3},{"$f":"VLOOKUP(OFFSET($B:$B,,MATCH(AB$4,$B$4:$F$4,0)-1),OFFSET('C. PoC Adj Factor Scoring'!$E$5:$J$282,,MATCH(AB$4,'C. PoC Adj Factor Scoring'!$E$3:$AH$3,0)-1),MATCH(AB$2&\" Score\",'C. PoC Adj Factor Scoring'!$E$4:$J$4,0),TRUE)","v":1},{"$f":"VLOOKUP(OFFSET($B:$B,,MATCH(AC$4,$B$4:$F$4,0)-1),OFFSET('C. PoC Adj Factor Scoring'!$E$5:$J$282,,MATCH(AC$4,'C. PoC Adj Factor Scoring'!$E$3:$AH$3,0)-1),MATCH(AC$2&\" Score\",'C. PoC Adj Factor Scoring'!$E$4:$J$4,0),TRUE)","v":1},{"$f":"VLOOKUP(OFFSET($B:$B,,MATCH(AD$4,$B$4:$F$4,0)-1),OFFSET('C. PoC Adj Factor Scoring'!$E$5:$J$282,,MATCH(AD$4,'C. PoC Adj Factor Scoring'!$E$3:$AH$3,0)-1),MATCH(AD$2&\" Score\",'C. PoC Adj Factor Scoring'!$E$4:$J$4,0),TRUE)","v":1},{"$f":"VLOOKUP(OFFSET($B:$B,,MATCH(AE$4,$B$4:$F$4,0)-1),OFFSET('C. PoC Adj Factor Scoring'!$E$5:$J$282,,MATCH(AE$4,'C. PoC Adj Factor Scoring'!$E$3:$AH$3,0)-1),MATCH(AE$2&\" Score\",'C. PoC Adj Factor Scoring'!$E$4:$J$4,0),TRUE)","v":1}]
[{"$f":"'A. Population Info'!A279","v":1000366216},{"$f":"'A. Population Info'!L279","v":"OIL"},{"$f":"'A. Population Info'!M279","v":0},{"$f":"'A. Population Info'!N279","v":0},{"$f":"'A. Population Info'!O279","v":0},{"$f":"'A. Population Info'!P279","v":0},{"$f":"VLOOKUP(OFFSET($B:$B,,MATCH(G$4,$B$4:$F$4,0)-1),OFFSET('C. PoC Adj Factor Scoring'!$E$5:$J$282,,MATCH(G$4,'C. PoC Adj Factor Scoring'!$E$3:$AH$3,0)-1),MATCH(G$2&\" Score\",'C. PoC Adj Factor Scoring'!$E$4:$J$4,0),TRUE)","v":4},{"$f":"VLOOKUP(OFFSET($B:$B,,MATCH(H$4,$B$4:$F$4,0)-1),OFFSET('C. PoC Adj Factor Scoring'!$E$5:$J$282,,MATCH(H$4,'C. PoC Adj Factor Scoring'!$E$3:$AH$3,0)-1),MATCH(H$2&\" Score\",'C. PoC Adj Factor Scoring'!$E$4:$J$4,0),TRUE)","v":1},{"$f":"VLOOKUP(OFFSET($B:$B,,MATCH(I$4,$B$4:$F$4,0)-1),OFFSET('C. PoC Adj Factor Scoring'!$E$5:$J$282,,MATCH(I$4,'C. PoC Adj Factor Scoring'!$E$3:$AH$3,0)-1),MATCH(I$2&\" Score\",'C. PoC Adj Factor Scoring'!$E$4:$J$4,0),TRUE)","v":1},{"$f":"VLOOKUP(OFFSET($B:$B,,MATCH(J$4,$B$4:$F$4,0)-1),OFFSET('C. PoC Adj Factor Scoring'!$E$5:$J$282,,MATCH(J$4,'C. PoC Adj Factor Scoring'!$E$3:$AH$3,0)-1),MATCH(J$2&\" Score\",'C. PoC Adj Factor Scoring'!$E$4:$J$4,0),TRUE)","v":1},{"$f":"VLOOKUP(OFFSET($B:$B,,MATCH(K$4,$B$4:$F$4,0)-1),OFFSET('C. PoC Adj Factor Scoring'!$E$5:$J$282,,MATCH(K$4,'C. PoC Adj Factor Scoring'!$E$3:$AH$3,0)-1),MATCH(K$2&\" Score\",'C. PoC Adj Factor Scoring'!$E$4:$J$4,0),TRUE)","v":1},{"$f":"VLOOKUP(OFFSET($B:$B,,MATCH(L$4,$B$4:$F$4,0)-1),OFFSET('C. PoC Adj Factor Scoring'!$E$5:$J$282,,MATCH(L$4,'C. PoC Adj Factor Scoring'!$E$3:$AH$3,0)-1),MATCH(L$2&\" Score\",'C. PoC Adj Factor Scoring'!$E$4:$J$4,0),TRUE)","v":1},{"$f":"VLOOKUP(OFFSET($B:$B,,MATCH(M$4,$B$4:$F$4,0)-1),OFFSET('C. PoC Adj Factor Scoring'!$E$5:$J$282,,MATCH(M$4,'C. PoC Adj Factor Scoring'!$E$3:$AH$3,0)-1),MATCH(M$2&\" Score\",'C. PoC Adj Factor Scoring'!$E$4:$J$4,0),TRUE)","v":1},{"$f":"VLOOKUP(OFFSET($B:$B,,MATCH(N$4,$B$4:$F$4,0)-1),OFFSET('C. PoC Adj Factor Scoring'!$E$5:$J$282,,MATCH(N$4,'C. PoC Adj Factor Scoring'!$E$3:$AH$3,0)-1),MATCH(N$2&\" Score\",'C. PoC Adj Factor Scoring'!$E$4:$J$4,0),TRUE)","v":1},{"$f":"VLOOKUP(OFFSET($B:$B,,MATCH(O$4,$B$4:$F$4,0)-1),OFFSET('C. PoC Adj Factor Scoring'!$E$5:$J$282,,MATCH(O$4,'C. PoC Adj Factor Scoring'!$E$3:$AH$3,0)-1),MATCH(O$2&\" Score\",'C. PoC Adj Factor Scoring'!$E$4:$J$4,0),TRUE)","v":1},{"$f":"VLOOKUP(OFFSET($B:$B,,MATCH(P$4,$B$4:$F$4,0)-1),OFFSET('C. PoC Adj Factor Scoring'!$E$5:$J$282,,MATCH(P$4,'C. PoC Adj Factor Scoring'!$E$3:$AH$3,0)-1),MATCH(P$2&\" Score\",'C. PoC Adj Factor Scoring'!$E$4:$J$4,0),TRUE)","v":1},{"$f":"VLOOKUP(OFFSET($B:$B,,MATCH(Q$4,$B$4:$F$4,0)-1),OFFSET('C. PoC Adj Factor Scoring'!$E$5:$J$282,,MATCH(Q$4,'C. PoC Adj Factor Scoring'!$E$3:$AH$3,0)-1),MATCH(Q$2&\" Score\",'C. PoC Adj Factor Scoring'!$E$4:$J$4,0),TRUE)","v":1},{"$f":"VLOOKUP(OFFSET($B:$B,,MATCH(R$4,$B$4:$F$4,0)-1),OFFSET('C. PoC Adj Factor Scoring'!$E$5:$J$282,,MATCH(R$4,'C. PoC Adj Factor Scoring'!$E$3:$AH$3,0)-1),MATCH(R$2&\" Score\",'C. PoC Adj Factor Scoring'!$E$4:$J$4,0),TRUE)","v":1},{"$f":"VLOOKUP(OFFSET($B:$B,,MATCH(S$4,$B$4:$F$4,0)-1),OFFSET('C. PoC Adj Factor Scoring'!$E$5:$J$282,,MATCH(S$4,'C. PoC Adj Factor Scoring'!$E$3:$AH$3,0)-1),MATCH(S$2&\" Score\",'C. PoC Adj Factor Scoring'!$E$4:$J$4,0),TRUE)","v":1},{"$f":"VLOOKUP(OFFSET($B:$B,,MATCH(T$4,$B$4:$F$4,0)-1),OFFSET('C. PoC Adj Factor Scoring'!$E$5:$J$282,,MATCH(T$4,'C. PoC Adj Factor Scoring'!$E$3:$AH$3,0)-1),MATCH(T$2&\" Score\",'C. PoC Adj Factor Scoring'!$E$4:$J$4,0),TRUE)","v":1},{"$f":"VLOOKUP(OFFSET($B:$B,,MATCH(U$4,$B$4:$F$4,0)-1),OFFSET('C. PoC Adj Factor Scoring'!$E$5:$J$282,,MATCH(U$4,'C. PoC Adj Factor Scoring'!$E$3:$AH$3,0)-1),MATCH(U$2&\" Score\",'C. PoC Adj Factor Scoring'!$E$4:$J$4,0),TRUE)","v":1},{"$f":"VLOOKUP(OFFSET($B:$B,,MATCH(V$4,$B$4:$F$4,0)-1),OFFSET('C. PoC Adj Factor Scoring'!$E$5:$J$282,,MATCH(V$4,'C. PoC Adj Factor Scoring'!$E$3:$AH$3,0)-1),MATCH(V$2&\" Score\",'C. PoC Adj Factor Scoring'!$E$4:$J$4,0),TRUE)","v":1},{"$f":"VLOOKUP(OFFSET($B:$B,,MATCH(W$4,$B$4:$F$4,0)-1),OFFSET('C. PoC Adj Factor Scoring'!$E$5:$J$282,,MATCH(W$4,'C. PoC Adj Factor Scoring'!$E$3:$AH$3,0)-1),MATCH(W$2&\" Score\",'C. PoC Adj Factor Scoring'!$E$4:$J$4,0),TRUE)","v":1},{"$f":"VLOOKUP(OFFSET($B:$B,,MATCH(X$4,$B$4:$F$4,0)-1),OFFSET('C. PoC Adj Factor Scoring'!$E$5:$J$282,,MATCH(X$4,'C. PoC Adj Factor Scoring'!$E$3:$AH$3,0)-1),MATCH(X$2&\" Score\",'C. PoC Adj Factor Scoring'!$E$4:$J$4,0),TRUE)","v":1},{"$f":"VLOOKUP(OFFSET($B:$B,,MATCH(Y$4,$B$4:$F$4,0)-1),OFFSET('C. PoC Adj Factor Scoring'!$E$5:$J$282,,MATCH(Y$4,'C. PoC Adj Factor Scoring'!$E$3:$AH$3,0)-1),MATCH(Y$2&\" Score\",'C. PoC Adj Factor Scoring'!$E$4:$J$4,0),TRUE)","v":1},{"$f":"VLOOKUP(OFFSET($B:$B,,MATCH(Z$4,$B$4:$F$4,0)-1),OFFSET('C. PoC Adj Factor Scoring'!$E$5:$J$282,,MATCH(Z$4,'C. PoC Adj Factor Scoring'!$E$3:$AH$3,0)-1),MATCH(Z$2&\" Score\",'C. PoC Adj Factor Scoring'!$E$4:$J$4,0),TRUE)","v":1},{"$f":"VLOOKUP(OFFSET($B:$B,,MATCH(AA$4,$B$4:$F$4,0)-1),OFFSET('C. PoC Adj Factor Scoring'!$E$5:$J$282,,MATCH(AA$4,'C. PoC Adj Factor Scoring'!$E$3:$AH$3,0)-1),MATCH(AA$2&\" Score\",'C. PoC Adj Factor Scoring'!$E$4:$J$4,0),TRUE)","v":3},{"$f":"VLOOKUP(OFFSET($B:$B,,MATCH(AB$4,$B$4:$F$4,0)-1),OFFSET('C. PoC Adj Factor Scoring'!$E$5:$J$282,,MATCH(AB$4,'C. PoC Adj Factor Scoring'!$E$3:$AH$3,0)-1),MATCH(AB$2&\" Score\",'C. PoC Adj Factor Scoring'!$E$4:$J$4,0),TRUE)","v":1},{"$f":"VLOOKUP(OFFSET($B:$B,,MATCH(AC$4,$B$4:$F$4,0)-1),OFFSET('C. PoC Adj Factor Scoring'!$E$5:$J$282,,MATCH(AC$4,'C. PoC Adj Factor Scoring'!$E$3:$AH$3,0)-1),MATCH(AC$2&\" Score\",'C. PoC Adj Factor Scoring'!$E$4:$J$4,0),TRUE)","v":1},{"$f":"VLOOKUP(OFFSET($B:$B,,MATCH(AD$4,$B$4:$F$4,0)-1),OFFSET('C. PoC Adj Factor Scoring'!$E$5:$J$282,,MATCH(AD$4,'C. PoC Adj Factor Scoring'!$E$3:$AH$3,0)-1),MATCH(AD$2&\" Score\",'C. PoC Adj Factor Scoring'!$E$4:$J$4,0),TRUE)","v":1},{"$f":"VLOOKUP(OFFSET($B:$B,,MATCH(AE$4,$B$4:$F$4,0)-1),OFFSET('C. PoC Adj Factor Scoring'!$E$5:$J$282,,MATCH(AE$4,'C. PoC Adj Factor Scoring'!$E$3:$AH$3,0)-1),MATCH(AE$2&\" Score\",'C. PoC Adj Factor Scoring'!$E$4:$J$4,0),TRUE)","v":1}]
[{"$f":"'A. Population Info'!A280","v":1000366244},{"$f":"'A. Population Info'!L280","v":"OIL"},{"$f":"'A. Population Info'!M280","v":0},{"$f":"'A. Population Info'!N280","v":0},{"$f":"'A. Population Info'!O280","v":0},{"$f":"'A. Population Info'!P280","v":0},{"$f":"VLOOKUP(OFFSET($B:$B,,MATCH(G$4,$B$4:$F$4,0)-1),OFFSET('C. PoC Adj Factor Scoring'!$E$5:$J$282,,MATCH(G$4,'C. PoC Adj Factor Scoring'!$E$3:$AH$3,0)-1),MATCH(G$2&\" Score\",'C. PoC Adj Factor Scoring'!$E$4:$J$4,0),TRUE)","v":4},{"$f":"VLOOKUP(OFFSET($B:$B,,MATCH(H$4,$B$4:$F$4,0)-1),OFFSET('C. PoC Adj Factor Scoring'!$E$5:$J$282,,MATCH(H$4,'C. PoC Adj Factor Scoring'!$E$3:$AH$3,0)-1),MATCH(H$2&\" Score\",'C. PoC Adj Factor Scoring'!$E$4:$J$4,0),TRUE)","v":1},{"$f":"VLOOKUP(OFFSET($B:$B,,MATCH(I$4,$B$4:$F$4,0)-1),OFFSET('C. PoC Adj Factor Scoring'!$E$5:$J$282,,MATCH(I$4,'C. PoC Adj Factor Scoring'!$E$3:$AH$3,0)-1),MATCH(I$2&\" Score\",'C. PoC Adj Factor Scoring'!$E$4:$J$4,0),TRUE)","v":1},{"$f":"VLOOKUP(OFFSET($B:$B,,MATCH(J$4,$B$4:$F$4,0)-1),OFFSET('C. PoC Adj Factor Scoring'!$E$5:$J$282,,MATCH(J$4,'C. PoC Adj Factor Scoring'!$E$3:$AH$3,0)-1),MATCH(J$2&\" Score\",'C. PoC Adj Factor Scoring'!$E$4:$J$4,0),TRUE)","v":1},{"$f":"VLOOKUP(OFFSET($B:$B,,MATCH(K$4,$B$4:$F$4,0)-1),OFFSET('C. PoC Adj Factor Scoring'!$E$5:$J$282,,MATCH(K$4,'C. PoC Adj Factor Scoring'!$E$3:$AH$3,0)-1),MATCH(K$2&\" Score\",'C. PoC Adj Factor Scoring'!$E$4:$J$4,0),TRUE)","v":1},{"$f":"VLOOKUP(OFFSET($B:$B,,MATCH(L$4,$B$4:$F$4,0)-1),OFFSET('C. PoC Adj Factor Scoring'!$E$5:$J$282,,MATCH(L$4,'C. PoC Adj Factor Scoring'!$E$3:$AH$3,0)-1),MATCH(L$2&\" Score\",'C. PoC Adj Factor Scoring'!$E$4:$J$4,0),TRUE)","v":1},{"$f":"VLOOKUP(OFFSET($B:$B,,MATCH(M$4,$B$4:$F$4,0)-1),OFFSET('C. PoC Adj Factor Scoring'!$E$5:$J$282,,MATCH(M$4,'C. PoC Adj Factor Scoring'!$E$3:$AH$3,0)-1),MATCH(M$2&\" Score\",'C. PoC Adj Factor Scoring'!$E$4:$J$4,0),TRUE)","v":1},{"$f":"VLOOKUP(OFFSET($B:$B,,MATCH(N$4,$B$4:$F$4,0)-1),OFFSET('C. PoC Adj Factor Scoring'!$E$5:$J$282,,MATCH(N$4,'C. PoC Adj Factor Scoring'!$E$3:$AH$3,0)-1),MATCH(N$2&\" Score\",'C. PoC Adj Factor Scoring'!$E$4:$J$4,0),TRUE)","v":1},{"$f":"VLOOKUP(OFFSET($B:$B,,MATCH(O$4,$B$4:$F$4,0)-1),OFFSET('C. PoC Adj Factor Scoring'!$E$5:$J$282,,MATCH(O$4,'C. PoC Adj Factor Scoring'!$E$3:$AH$3,0)-1),MATCH(O$2&\" Score\",'C. PoC Adj Factor Scoring'!$E$4:$J$4,0),TRUE)","v":1},{"$f":"VLOOKUP(OFFSET($B:$B,,MATCH(P$4,$B$4:$F$4,0)-1),OFFSET('C. PoC Adj Factor Scoring'!$E$5:$J$282,,MATCH(P$4,'C. PoC Adj Factor Scoring'!$E$3:$AH$3,0)-1),MATCH(P$2&\" Score\",'C. PoC Adj Factor Scoring'!$E$4:$J$4,0),TRUE)","v":1},{"$f":"VLOOKUP(OFFSET($B:$B,,MATCH(Q$4,$B$4:$F$4,0)-1),OFFSET('C. PoC Adj Factor Scoring'!$E$5:$J$282,,MATCH(Q$4,'C. PoC Adj Factor Scoring'!$E$3:$AH$3,0)-1),MATCH(Q$2&\" Score\",'C. PoC Adj Factor Scoring'!$E$4:$J$4,0),TRUE)","v":1},{"$f":"VLOOKUP(OFFSET($B:$B,,MATCH(R$4,$B$4:$F$4,0)-1),OFFSET('C. PoC Adj Factor Scoring'!$E$5:$J$282,,MATCH(R$4,'C. PoC Adj Factor Scoring'!$E$3:$AH$3,0)-1),MATCH(R$2&\" Score\",'C. PoC Adj Factor Scoring'!$E$4:$J$4,0),TRUE)","v":1},{"$f":"VLOOKUP(OFFSET($B:$B,,MATCH(S$4,$B$4:$F$4,0)-1),OFFSET('C. PoC Adj Factor Scoring'!$E$5:$J$282,,MATCH(S$4,'C. PoC Adj Factor Scoring'!$E$3:$AH$3,0)-1),MATCH(S$2&\" Score\",'C. PoC Adj Factor Scoring'!$E$4:$J$4,0),TRUE)","v":1},{"$f":"VLOOKUP(OFFSET($B:$B,,MATCH(T$4,$B$4:$F$4,0)-1),OFFSET('C. PoC Adj Factor Scoring'!$E$5:$J$282,,MATCH(T$4,'C. PoC Adj Factor Scoring'!$E$3:$AH$3,0)-1),MATCH(T$2&\" Score\",'C. PoC Adj Factor Scoring'!$E$4:$J$4,0),TRUE)","v":1},{"$f":"VLOOKUP(OFFSET($B:$B,,MATCH(U$4,$B$4:$F$4,0)-1),OFFSET('C. PoC Adj Factor Scoring'!$E$5:$J$282,,MATCH(U$4,'C. PoC Adj Factor Scoring'!$E$3:$AH$3,0)-1),MATCH(U$2&\" Score\",'C. PoC Adj Factor Scoring'!$E$4:$J$4,0),TRUE)","v":1},{"$f":"VLOOKUP(OFFSET($B:$B,,MATCH(V$4,$B$4:$F$4,0)-1),OFFSET('C. PoC Adj Factor Scoring'!$E$5:$J$282,,MATCH(V$4,'C. PoC Adj Factor Scoring'!$E$3:$AH$3,0)-1),MATCH(V$2&\" Score\",'C. PoC Adj Factor Scoring'!$E$4:$J$4,0),TRUE)","v":1},{"$f":"VLOOKUP(OFFSET($B:$B,,MATCH(W$4,$B$4:$F$4,0)-1),OFFSET('C. PoC Adj Factor Scoring'!$E$5:$J$282,,MATCH(W$4,'C. PoC Adj Factor Scoring'!$E$3:$AH$3,0)-1),MATCH(W$2&\" Score\",'C. PoC Adj Factor Scoring'!$E$4:$J$4,0),TRUE)","v":1},{"$f":"VLOOKUP(OFFSET($B:$B,,MATCH(X$4,$B$4:$F$4,0)-1),OFFSET('C. PoC Adj Factor Scoring'!$E$5:$J$282,,MATCH(X$4,'C. PoC Adj Factor Scoring'!$E$3:$AH$3,0)-1),MATCH(X$2&\" Score\",'C. PoC Adj Factor Scoring'!$E$4:$J$4,0),TRUE)","v":1},{"$f":"VLOOKUP(OFFSET($B:$B,,MATCH(Y$4,$B$4:$F$4,0)-1),OFFSET('C. PoC Adj Factor Scoring'!$E$5:$J$282,,MATCH(Y$4,'C. PoC Adj Factor Scoring'!$E$3:$AH$3,0)-1),MATCH(Y$2&\" Score\",'C. PoC Adj Factor Scoring'!$E$4:$J$4,0),TRUE)","v":1},{"$f":"VLOOKUP(OFFSET($B:$B,,MATCH(Z$4,$B$4:$F$4,0)-1),OFFSET('C. PoC Adj Factor Scoring'!$E$5:$J$282,,MATCH(Z$4,'C. PoC Adj Factor Scoring'!$E$3:$AH$3,0)-1),MATCH(Z$2&\" Score\",'C. PoC Adj Factor Scoring'!$E$4:$J$4,0),TRUE)","v":1},{"$f":"VLOOKUP(OFFSET($B:$B,,MATCH(AA$4,$B$4:$F$4,0)-1),OFFSET('C. PoC Adj Factor Scoring'!$E$5:$J$282,,MATCH(AA$4,'C. PoC Adj Factor Scoring'!$E$3:$AH$3,0)-1),MATCH(AA$2&\" Score\",'C. PoC Adj Factor Scoring'!$E$4:$J$4,0),TRUE)","v":3},{"$f":"VLOOKUP(OFFSET($B:$B,,MATCH(AB$4,$B$4:$F$4,0)-1),OFFSET('C. PoC Adj Factor Scoring'!$E$5:$J$282,,MATCH(AB$4,'C. PoC Adj Factor Scoring'!$E$3:$AH$3,0)-1),MATCH(AB$2&\" Score\",'C. PoC Adj Factor Scoring'!$E$4:$J$4,0),TRUE)","v":1},{"$f":"VLOOKUP(OFFSET($B:$B,,MATCH(AC$4,$B$4:$F$4,0)-1),OFFSET('C. PoC Adj Factor Scoring'!$E$5:$J$282,,MATCH(AC$4,'C. PoC Adj Factor Scoring'!$E$3:$AH$3,0)-1),MATCH(AC$2&\" Score\",'C. PoC Adj Factor Scoring'!$E$4:$J$4,0),TRUE)","v":1},{"$f":"VLOOKUP(OFFSET($B:$B,,MATCH(AD$4,$B$4:$F$4,0)-1),OFFSET('C. PoC Adj Factor Scoring'!$E$5:$J$282,,MATCH(AD$4,'C. PoC Adj Factor Scoring'!$E$3:$AH$3,0)-1),MATCH(AD$2&\" Score\",'C. PoC Adj Factor Scoring'!$E$4:$J$4,0),TRUE)","v":1},{"$f":"VLOOKUP(OFFSET($B:$B,,MATCH(AE$4,$B$4:$F$4,0)-1),OFFSET('C. PoC Adj Factor Scoring'!$E$5:$J$282,,MATCH(AE$4,'C. PoC Adj Factor Scoring'!$E$3:$AH$3,0)-1),MATCH(AE$2&\" Score\",'C. PoC Adj Factor Scoring'!$E$4:$J$4,0),TRUE)","v":1}]
[{"$f":"'A. Population Info'!A281","v":1000366397},{"$f":"'A. Population Info'!L281","v":"OIL"},{"$f":"'A. Population Info'!M281","v":0},{"$f":"'A. Population Info'!N281","v":0},{"$f":"'A. Population Info'!O281","v":0},{"$f":"'A. Population Info'!P281","v":0},{"$f":"VLOOKUP(OFFSET($B:$B,,MATCH(G$4,$B$4:$F$4,0)-1),OFFSET('C. PoC Adj Factor Scoring'!$E$5:$J$282,,MATCH(G$4,'C. PoC Adj Factor Scoring'!$E$3:$AH$3,0)-1),MATCH(G$2&\" Score\",'C. PoC Adj Factor Scoring'!$E$4:$J$4,0),TRUE)","v":4},{"$f":"VLOOKUP(OFFSET($B:$B,,MATCH(H$4,$B$4:$F$4,0)-1),OFFSET('C. PoC Adj Factor Scoring'!$E$5:$J$282,,MATCH(H$4,'C. PoC Adj Factor Scoring'!$E$3:$AH$3,0)-1),MATCH(H$2&\" Score\",'C. PoC Adj Factor Scoring'!$E$4:$J$4,0),TRUE)","v":1},{"$f":"VLOOKUP(OFFSET($B:$B,,MATCH(I$4,$B$4:$F$4,0)-1),OFFSET('C. PoC Adj Factor Scoring'!$E$5:$J$282,,MATCH(I$4,'C. PoC Adj Factor Scoring'!$E$3:$AH$3,0)-1),MATCH(I$2&\" Score\",'C. PoC Adj Factor Scoring'!$E$4:$J$4,0),TRUE)","v":1},{"$f":"VLOOKUP(OFFSET($B:$B,,MATCH(J$4,$B$4:$F$4,0)-1),OFFSET('C. PoC Adj Factor Scoring'!$E$5:$J$282,,MATCH(J$4,'C. PoC Adj Factor Scoring'!$E$3:$AH$3,0)-1),MATCH(J$2&\" Score\",'C. PoC Adj Factor Scoring'!$E$4:$J$4,0),TRUE)","v":1},{"$f":"VLOOKUP(OFFSET($B:$B,,MATCH(K$4,$B$4:$F$4,0)-1),OFFSET('C. PoC Adj Factor Scoring'!$E$5:$J$282,,MATCH(K$4,'C. PoC Adj Factor Scoring'!$E$3:$AH$3,0)-1),MATCH(K$2&\" Score\",'C. PoC Adj Factor Scoring'!$E$4:$J$4,0),TRUE)","v":1},{"$f":"VLOOKUP(OFFSET($B:$B,,MATCH(L$4,$B$4:$F$4,0)-1),OFFSET('C. PoC Adj Factor Scoring'!$E$5:$J$282,,MATCH(L$4,'C. PoC Adj Factor Scoring'!$E$3:$AH$3,0)-1),MATCH(L$2&\" Score\",'C. PoC Adj Factor Scoring'!$E$4:$J$4,0),TRUE)","v":1},{"$f":"VLOOKUP(OFFSET($B:$B,,MATCH(M$4,$B$4:$F$4,0)-1),OFFSET('C. PoC Adj Factor Scoring'!$E$5:$J$282,,MATCH(M$4,'C. PoC Adj Factor Scoring'!$E$3:$AH$3,0)-1),MATCH(M$2&\" Score\",'C. PoC Adj Factor Scoring'!$E$4:$J$4,0),TRUE)","v":1},{"$f":"VLOOKUP(OFFSET($B:$B,,MATCH(N$4,$B$4:$F$4,0)-1),OFFSET('C. PoC Adj Factor Scoring'!$E$5:$J$282,,MATCH(N$4,'C. PoC Adj Factor Scoring'!$E$3:$AH$3,0)-1),MATCH(N$2&\" Score\",'C. PoC Adj Factor Scoring'!$E$4:$J$4,0),TRUE)","v":1},{"$f":"VLOOKUP(OFFSET($B:$B,,MATCH(O$4,$B$4:$F$4,0)-1),OFFSET('C. PoC Adj Factor Scoring'!$E$5:$J$282,,MATCH(O$4,'C. PoC Adj Factor Scoring'!$E$3:$AH$3,0)-1),MATCH(O$2&\" Score\",'C. PoC Adj Factor Scoring'!$E$4:$J$4,0),TRUE)","v":1},{"$f":"VLOOKUP(OFFSET($B:$B,,MATCH(P$4,$B$4:$F$4,0)-1),OFFSET('C. PoC Adj Factor Scoring'!$E$5:$J$282,,MATCH(P$4,'C. PoC Adj Factor Scoring'!$E$3:$AH$3,0)-1),MATCH(P$2&\" Score\",'C. PoC Adj Factor Scoring'!$E$4:$J$4,0),TRUE)","v":1},{"$f":"VLOOKUP(OFFSET($B:$B,,MATCH(Q$4,$B$4:$F$4,0)-1),OFFSET('C. PoC Adj Factor Scoring'!$E$5:$J$282,,MATCH(Q$4,'C. PoC Adj Factor Scoring'!$E$3:$AH$3,0)-1),MATCH(Q$2&\" Score\",'C. PoC Adj Factor Scoring'!$E$4:$J$4,0),TRUE)","v":1},{"$f":"VLOOKUP(OFFSET($B:$B,,MATCH(R$4,$B$4:$F$4,0)-1),OFFSET('C. PoC Adj Factor Scoring'!$E$5:$J$282,,MATCH(R$4,'C. PoC Adj Factor Scoring'!$E$3:$AH$3,0)-1),MATCH(R$2&\" Score\",'C. PoC Adj Factor Scoring'!$E$4:$J$4,0),TRUE)","v":1},{"$f":"VLOOKUP(OFFSET($B:$B,,MATCH(S$4,$B$4:$F$4,0)-1),OFFSET('C. PoC Adj Factor Scoring'!$E$5:$J$282,,MATCH(S$4,'C. PoC Adj Factor Scoring'!$E$3:$AH$3,0)-1),MATCH(S$2&\" Score\",'C. PoC Adj Factor Scoring'!$E$4:$J$4,0),TRUE)","v":1},{"$f":"VLOOKUP(OFFSET($B:$B,,MATCH(T$4,$B$4:$F$4,0)-1),OFFSET('C. PoC Adj Factor Scoring'!$E$5:$J$282,,MATCH(T$4,'C. PoC Adj Factor Scoring'!$E$3:$AH$3,0)-1),MATCH(T$2&\" Score\",'C. PoC Adj Factor Scoring'!$E$4:$J$4,0),TRUE)","v":1},{"$f":"VLOOKUP(OFFSET($B:$B,,MATCH(U$4,$B$4:$F$4,0)-1),OFFSET('C. PoC Adj Factor Scoring'!$E$5:$J$282,,MATCH(U$4,'C. PoC Adj Factor Scoring'!$E$3:$AH$3,0)-1),MATCH(U$2&\" Score\",'C. PoC Adj Factor Scoring'!$E$4:$J$4,0),TRUE)","v":1},{"$f":"VLOOKUP(OFFSET($B:$B,,MATCH(V$4,$B$4:$F$4,0)-1),OFFSET('C. PoC Adj Factor Scoring'!$E$5:$J$282,,MATCH(V$4,'C. PoC Adj Factor Scoring'!$E$3:$AH$3,0)-1),MATCH(V$2&\" Score\",'C. PoC Adj Factor Scoring'!$E$4:$J$4,0),TRUE)","v":1},{"$f":"VLOOKUP(OFFSET($B:$B,,MATCH(W$4,$B$4:$F$4,0)-1),OFFSET('C. PoC Adj Factor Scoring'!$E$5:$J$282,,MATCH(W$4,'C. PoC Adj Factor Scoring'!$E$3:$AH$3,0)-1),MATCH(W$2&\" Score\",'C. PoC Adj Factor Scoring'!$E$4:$J$4,0),TRUE)","v":1},{"$f":"VLOOKUP(OFFSET($B:$B,,MATCH(X$4,$B$4:$F$4,0)-1),OFFSET('C. PoC Adj Factor Scoring'!$E$5:$J$282,,MATCH(X$4,'C. PoC Adj Factor Scoring'!$E$3:$AH$3,0)-1),MATCH(X$2&\" Score\",'C. PoC Adj Factor Scoring'!$E$4:$J$4,0),TRUE)","v":1},{"$f":"VLOOKUP(OFFSET($B:$B,,MATCH(Y$4,$B$4:$F$4,0)-1),OFFSET('C. PoC Adj Factor Scoring'!$E$5:$J$282,,MATCH(Y$4,'C. PoC Adj Factor Scoring'!$E$3:$AH$3,0)-1),MATCH(Y$2&\" Score\",'C. PoC Adj Factor Scoring'!$E$4:$J$4,0),TRUE)","v":1},{"$f":"VLOOKUP(OFFSET($B:$B,,MATCH(Z$4,$B$4:$F$4,0)-1),OFFSET('C. PoC Adj Factor Scoring'!$E$5:$J$282,,MATCH(Z$4,'C. PoC Adj Factor Scoring'!$E$3:$AH$3,0)-1),MATCH(Z$2&\" Score\",'C. PoC Adj Factor Scoring'!$E$4:$J$4,0),TRUE)","v":1},{"$f":"VLOOKUP(OFFSET($B:$B,,MATCH(AA$4,$B$4:$F$4,0)-1),OFFSET('C. PoC Adj Factor Scoring'!$E$5:$J$282,,MATCH(AA$4,'C. PoC Adj Factor Scoring'!$E$3:$AH$3,0)-1),MATCH(AA$2&\" Score\",'C. PoC Adj Factor Scoring'!$E$4:$J$4,0),TRUE)","v":3},{"$f":"VLOOKUP(OFFSET($B:$B,,MATCH(AB$4,$B$4:$F$4,0)-1),OFFSET('C. PoC Adj Factor Scoring'!$E$5:$J$282,,MATCH(AB$4,'C. PoC Adj Factor Scoring'!$E$3:$AH$3,0)-1),MATCH(AB$2&\" Score\",'C. PoC Adj Factor Scoring'!$E$4:$J$4,0),TRUE)","v":1},{"$f":"VLOOKUP(OFFSET($B:$B,,MATCH(AC$4,$B$4:$F$4,0)-1),OFFSET('C. PoC Adj Factor Scoring'!$E$5:$J$282,,MATCH(AC$4,'C. PoC Adj Factor Scoring'!$E$3:$AH$3,0)-1),MATCH(AC$2&\" Score\",'C. PoC Adj Factor Scoring'!$E$4:$J$4,0),TRUE)","v":1},{"$f":"VLOOKUP(OFFSET($B:$B,,MATCH(AD$4,$B$4:$F$4,0)-1),OFFSET('C. PoC Adj Factor Scoring'!$E$5:$J$282,,MATCH(AD$4,'C. PoC Adj Factor Scoring'!$E$3:$AH$3,0)-1),MATCH(AD$2&\" Score\",'C. PoC Adj Factor Scoring'!$E$4:$J$4,0),TRUE)","v":1},{"$f":"VLOOKUP(OFFSET($B:$B,,MATCH(AE$4,$B$4:$F$4,0)-1),OFFSET('C. PoC Adj Factor Scoring'!$E$5:$J$282,,MATCH(AE$4,'C. PoC Adj Factor Scoring'!$E$3:$AH$3,0)-1),MATCH(AE$2&\" Score\",'C. PoC Adj Factor Scoring'!$E$4:$J$4,0),TRUE)","v":1}]
[{"$f":"'A. Population Info'!A282","v":1000366483},{"$f":"'A. Population Info'!L282","v":"OIL"},{"$f":"'A. Population Info'!M282","v":0},{"$f":"'A. Population Info'!N282","v":0},{"$f":"'A. Population Info'!O282","v":0},{"$f":"'A. Population Info'!P282","v":0},{"$f":"VLOOKUP(OFFSET($B:$B,,MATCH(G$4,$B$4:$F$4,0)-1),OFFSET('C. PoC Adj Factor Scoring'!$E$5:$J$282,,MATCH(G$4,'C. PoC Adj Factor Scoring'!$E$3:$AH$3,0)-1),MATCH(G$2&\" Score\",'C. PoC Adj Factor Scoring'!$E$4:$J$4,0),TRUE)","v":4},{"$f":"VLOOKUP(OFFSET($B:$B,,MATCH(H$4,$B$4:$F$4,0)-1),OFFSET('C. PoC Adj Factor Scoring'!$E$5:$J$282,,MATCH(H$4,'C. PoC Adj Factor Scoring'!$E$3:$AH$3,0)-1),MATCH(H$2&\" Score\",'C. PoC Adj Factor Scoring'!$E$4:$J$4,0),TRUE)","v":1},{"$f":"VLOOKUP(OFFSET($B:$B,,MATCH(I$4,$B$4:$F$4,0)-1),OFFSET('C. PoC Adj Factor Scoring'!$E$5:$J$282,,MATCH(I$4,'C. PoC Adj Factor Scoring'!$E$3:$AH$3,0)-1),MATCH(I$2&\" Score\",'C. PoC Adj Factor Scoring'!$E$4:$J$4,0),TRUE)","v":1},{"$f":"VLOOKUP(OFFSET($B:$B,,MATCH(J$4,$B$4:$F$4,0)-1),OFFSET('C. PoC Adj Factor Scoring'!$E$5:$J$282,,MATCH(J$4,'C. PoC Adj Factor Scoring'!$E$3:$AH$3,0)-1),MATCH(J$2&\" Score\",'C. PoC Adj Factor Scoring'!$E$4:$J$4,0),TRUE)","v":1},{"$f":"VLOOKUP(OFFSET($B:$B,,MATCH(K$4,$B$4:$F$4,0)-1),OFFSET('C. PoC Adj Factor Scoring'!$E$5:$J$282,,MATCH(K$4,'C. PoC Adj Factor Scoring'!$E$3:$AH$3,0)-1),MATCH(K$2&\" Score\",'C. PoC Adj Factor Scoring'!$E$4:$J$4,0),TRUE)","v":1},{"$f":"VLOOKUP(OFFSET($B:$B,,MATCH(L$4,$B$4:$F$4,0)-1),OFFSET('C. PoC Adj Factor Scoring'!$E$5:$J$282,,MATCH(L$4,'C. PoC Adj Factor Scoring'!$E$3:$AH$3,0)-1),MATCH(L$2&\" Score\",'C. PoC Adj Factor Scoring'!$E$4:$J$4,0),TRUE)","v":1},{"$f":"VLOOKUP(OFFSET($B:$B,,MATCH(M$4,$B$4:$F$4,0)-1),OFFSET('C. PoC Adj Factor Scoring'!$E$5:$J$282,,MATCH(M$4,'C. PoC Adj Factor Scoring'!$E$3:$AH$3,0)-1),MATCH(M$2&\" Score\",'C. PoC Adj Factor Scoring'!$E$4:$J$4,0),TRUE)","v":1},{"$f":"VLOOKUP(OFFSET($B:$B,,MATCH(N$4,$B$4:$F$4,0)-1),OFFSET('C. PoC Adj Factor Scoring'!$E$5:$J$282,,MATCH(N$4,'C. PoC Adj Factor Scoring'!$E$3:$AH$3,0)-1),MATCH(N$2&\" Score\",'C. PoC Adj Factor Scoring'!$E$4:$J$4,0),TRUE)","v":1},{"$f":"VLOOKUP(OFFSET($B:$B,,MATCH(O$4,$B$4:$F$4,0)-1),OFFSET('C. PoC Adj Factor Scoring'!$E$5:$J$282,,MATCH(O$4,'C. PoC Adj Factor Scoring'!$E$3:$AH$3,0)-1),MATCH(O$2&\" Score\",'C. PoC Adj Factor Scoring'!$E$4:$J$4,0),TRUE)","v":1},{"$f":"VLOOKUP(OFFSET($B:$B,,MATCH(P$4,$B$4:$F$4,0)-1),OFFSET('C. PoC Adj Factor Scoring'!$E$5:$J$282,,MATCH(P$4,'C. PoC Adj Factor Scoring'!$E$3:$AH$3,0)-1),MATCH(P$2&\" Score\",'C. PoC Adj Factor Scoring'!$E$4:$J$4,0),TRUE)","v":1},{"$f":"VLOOKUP(OFFSET($B:$B,,MATCH(Q$4,$B$4:$F$4,0)-1),OFFSET('C. PoC Adj Factor Scoring'!$E$5:$J$282,,MATCH(Q$4,'C. PoC Adj Factor Scoring'!$E$3:$AH$3,0)-1),MATCH(Q$2&\" Score\",'C. PoC Adj Factor Scoring'!$E$4:$J$4,0),TRUE)","v":1},{"$f":"VLOOKUP(OFFSET($B:$B,,MATCH(R$4,$B$4:$F$4,0)-1),OFFSET('C. PoC Adj Factor Scoring'!$E$5:$J$282,,MATCH(R$4,'C. PoC Adj Factor Scoring'!$E$3:$AH$3,0)-1),MATCH(R$2&\" Score\",'C. PoC Adj Factor Scoring'!$E$4:$J$4,0),TRUE)","v":1},{"$f":"VLOOKUP(OFFSET($B:$B,,MATCH(S$4,$B$4:$F$4,0)-1),OFFSET('C. PoC Adj Factor Scoring'!$E$5:$J$282,,MATCH(S$4,'C. PoC Adj Factor Scoring'!$E$3:$AH$3,0)-1),MATCH(S$2&\" Score\",'C. PoC Adj Factor Scoring'!$E$4:$J$4,0),TRUE)","v":1},{"$f":"VLOOKUP(OFFSET($B:$B,,MATCH(T$4,$B$4:$F$4,0)-1),OFFSET('C. PoC Adj Factor Scoring'!$E$5:$J$282,,MATCH(T$4,'C. PoC Adj Factor Scoring'!$E$3:$AH$3,0)-1),MATCH(T$2&\" Score\",'C. PoC Adj Factor Scoring'!$E$4:$J$4,0),TRUE)","v":1},{"$f":"VLOOKUP(OFFSET($B:$B,,MATCH(U$4,$B$4:$F$4,0)-1),OFFSET('C. PoC Adj Factor Scoring'!$E$5:$J$282,,MATCH(U$4,'C. PoC Adj Factor Scoring'!$E$3:$AH$3,0)-1),MATCH(U$2&\" Score\",'C. PoC Adj Factor Scoring'!$E$4:$J$4,0),TRUE)","v":1},{"$f":"VLOOKUP(OFFSET($B:$B,,MATCH(V$4,$B$4:$F$4,0)-1),OFFSET('C. PoC Adj Factor Scoring'!$E$5:$J$282,,MATCH(V$4,'C. PoC Adj Factor Scoring'!$E$3:$AH$3,0)-1),MATCH(V$2&\" Score\",'C. PoC Adj Factor Scoring'!$E$4:$J$4,0),TRUE)","v":1},{"$f":"VLOOKUP(OFFSET($B:$B,,MATCH(W$4,$B$4:$F$4,0)-1),OFFSET('C. PoC Adj Factor Scoring'!$E$5:$J$282,,MATCH(W$4,'C. PoC Adj Factor Scoring'!$E$3:$AH$3,0)-1),MATCH(W$2&\" Score\",'C. PoC Adj Factor Scoring'!$E$4:$J$4,0),TRUE)","v":1},{"$f":"VLOOKUP(OFFSET($B:$B,,MATCH(X$4,$B$4:$F$4,0)-1),OFFSET('C. PoC Adj Factor Scoring'!$E$5:$J$282,,MATCH(X$4,'C. PoC Adj Factor Scoring'!$E$3:$AH$3,0)-1),MATCH(X$2&\" Score\",'C. PoC Adj Factor Scoring'!$E$4:$J$4,0),TRUE)","v":1},{"$f":"VLOOKUP(OFFSET($B:$B,,MATCH(Y$4,$B$4:$F$4,0)-1),OFFSET('C. PoC Adj Factor Scoring'!$E$5:$J$282,,MATCH(Y$4,'C. PoC Adj Factor Scoring'!$E$3:$AH$3,0)-1),MATCH(Y$2&\" Score\",'C. PoC Adj Factor Scoring'!$E$4:$J$4,0),TRUE)","v":1},{"$f":"VLOOKUP(OFFSET($B:$B,,MATCH(Z$4,$B$4:$F$4,0)-1),OFFSET('C. PoC Adj Factor Scoring'!$E$5:$J$282,,MATCH(Z$4,'C. PoC Adj Factor Scoring'!$E$3:$AH$3,0)-1),MATCH(Z$2&\" Score\",'C. PoC Adj Factor Scoring'!$E$4:$J$4,0),TRUE)","v":1},{"$f":"VLOOKUP(OFFSET($B:$B,,MATCH(AA$4,$B$4:$F$4,0)-1),OFFSET('C. PoC Adj Factor Scoring'!$E$5:$J$282,,MATCH(AA$4,'C. PoC Adj Factor Scoring'!$E$3:$AH$3,0)-1),MATCH(AA$2&\" Score\",'C. PoC Adj Factor Scoring'!$E$4:$J$4,0),TRUE)","v":3},{"$f":"VLOOKUP(OFFSET($B:$B,,MATCH(AB$4,$B$4:$F$4,0)-1),OFFSET('C. PoC Adj Factor Scoring'!$E$5:$J$282,,MATCH(AB$4,'C. PoC Adj Factor Scoring'!$E$3:$AH$3,0)-1),MATCH(AB$2&\" Score\",'C. PoC Adj Factor Scoring'!$E$4:$J$4,0),TRUE)","v":1},{"$f":"VLOOKUP(OFFSET($B:$B,,MATCH(AC$4,$B$4:$F$4,0)-1),OFFSET('C. PoC Adj Factor Scoring'!$E$5:$J$282,,MATCH(AC$4,'C. PoC Adj Factor Scoring'!$E$3:$AH$3,0)-1),MATCH(AC$2&\" Score\",'C. PoC Adj Factor Scoring'!$E$4:$J$4,0),TRUE)","v":1},{"$f":"VLOOKUP(OFFSET($B:$B,,MATCH(AD$4,$B$4:$F$4,0)-1),OFFSET('C. PoC Adj Factor Scoring'!$E$5:$J$282,,MATCH(AD$4,'C. PoC Adj Factor Scoring'!$E$3:$AH$3,0)-1),MATCH(AD$2&\" Score\",'C. PoC Adj Factor Scoring'!$E$4:$J$4,0),TRUE)","v":1},{"$f":"VLOOKUP(OFFSET($B:$B,,MATCH(AE$4,$B$4:$F$4,0)-1),OFFSET('C. PoC Adj Factor Scoring'!$E$5:$J$282,,MATCH(AE$4,'C. PoC Adj Factor Scoring'!$E$3:$AH$3,0)-1),MATCH(AE$2&\" Score\",'C. PoC Adj Factor Scoring'!$E$4:$J$4,0),TRUE)","v":1}]
[{"$f":"'A. Population Info'!A283","v":1000366599},{"$f":"'A. Population Info'!L283","v":"OIL"},{"$f":"'A. Population Info'!M283","v":0},{"$f":"'A. Population Info'!N283","v":0},{"$f":"'A. Population Info'!O283","v":0},{"$f":"'A. Population Info'!P283","v":0},{"$f":"VLOOKUP(OFFSET($B:$B,,MATCH(G$4,$B$4:$F$4,0)-1),OFFSET('C. PoC Adj Factor Scoring'!$E$5:$J$282,,MATCH(G$4,'C. PoC Adj Factor Scoring'!$E$3:$AH$3,0)-1),MATCH(G$2&\" Score\",'C. PoC Adj Factor Scoring'!$E$4:$J$4,0),TRUE)","v":4},{"$f":"VLOOKUP(OFFSET($B:$B,,MATCH(H$4,$B$4:$F$4,0)-1),OFFSET('C. PoC Adj Factor Scoring'!$E$5:$J$282,,MATCH(H$4,'C. PoC Adj Factor Scoring'!$E$3:$AH$3,0)-1),MATCH(H$2&\" Score\",'C. PoC Adj Factor Scoring'!$E$4:$J$4,0),TRUE)","v":1},{"$f":"VLOOKUP(OFFSET($B:$B,,MATCH(I$4,$B$4:$F$4,0)-1),OFFSET('C. PoC Adj Factor Scoring'!$E$5:$J$282,,MATCH(I$4,'C. PoC Adj Factor Scoring'!$E$3:$AH$3,0)-1),MATCH(I$2&\" Score\",'C. PoC Adj Factor Scoring'!$E$4:$J$4,0),TRUE)","v":1},{"$f":"VLOOKUP(OFFSET($B:$B,,MATCH(J$4,$B$4:$F$4,0)-1),OFFSET('C. PoC Adj Factor Scoring'!$E$5:$J$282,,MATCH(J$4,'C. PoC Adj Factor Scoring'!$E$3:$AH$3,0)-1),MATCH(J$2&\" Score\",'C. PoC Adj Factor Scoring'!$E$4:$J$4,0),TRUE)","v":1},{"$f":"VLOOKUP(OFFSET($B:$B,,MATCH(K$4,$B$4:$F$4,0)-1),OFFSET('C. PoC Adj Factor Scoring'!$E$5:$J$282,,MATCH(K$4,'C. PoC Adj Factor Scoring'!$E$3:$AH$3,0)-1),MATCH(K$2&\" Score\",'C. PoC Adj Factor Scoring'!$E$4:$J$4,0),TRUE)","v":1},{"$f":"VLOOKUP(OFFSET($B:$B,,MATCH(L$4,$B$4:$F$4,0)-1),OFFSET('C. PoC Adj Factor Scoring'!$E$5:$J$282,,MATCH(L$4,'C. PoC Adj Factor Scoring'!$E$3:$AH$3,0)-1),MATCH(L$2&\" Score\",'C. PoC Adj Factor Scoring'!$E$4:$J$4,0),TRUE)","v":1},{"$f":"VLOOKUP(OFFSET($B:$B,,MATCH(M$4,$B$4:$F$4,0)-1),OFFSET('C. PoC Adj Factor Scoring'!$E$5:$J$282,,MATCH(M$4,'C. PoC Adj Factor Scoring'!$E$3:$AH$3,0)-1),MATCH(M$2&\" Score\",'C. PoC Adj Factor Scoring'!$E$4:$J$4,0),TRUE)","v":1},{"$f":"VLOOKUP(OFFSET($B:$B,,MATCH(N$4,$B$4:$F$4,0)-1),OFFSET('C. PoC Adj Factor Scoring'!$E$5:$J$282,,MATCH(N$4,'C. PoC Adj Factor Scoring'!$E$3:$AH$3,0)-1),MATCH(N$2&\" Score\",'C. PoC Adj Factor Scoring'!$E$4:$J$4,0),TRUE)","v":1},{"$f":"VLOOKUP(OFFSET($B:$B,,MATCH(O$4,$B$4:$F$4,0)-1),OFFSET('C. PoC Adj Factor Scoring'!$E$5:$J$282,,MATCH(O$4,'C. PoC Adj Factor Scoring'!$E$3:$AH$3,0)-1),MATCH(O$2&\" Score\",'C. PoC Adj Factor Scoring'!$E$4:$J$4,0),TRUE)","v":1},{"$f":"VLOOKUP(OFFSET($B:$B,,MATCH(P$4,$B$4:$F$4,0)-1),OFFSET('C. PoC Adj Factor Scoring'!$E$5:$J$282,,MATCH(P$4,'C. PoC Adj Factor Scoring'!$E$3:$AH$3,0)-1),MATCH(P$2&\" Score\",'C. PoC Adj Factor Scoring'!$E$4:$J$4,0),TRUE)","v":1},{"$f":"VLOOKUP(OFFSET($B:$B,,MATCH(Q$4,$B$4:$F$4,0)-1),OFFSET('C. PoC Adj Factor Scoring'!$E$5:$J$282,,MATCH(Q$4,'C. PoC Adj Factor Scoring'!$E$3:$AH$3,0)-1),MATCH(Q$2&\" Score\",'C. PoC Adj Factor Scoring'!$E$4:$J$4,0),TRUE)","v":1},{"$f":"VLOOKUP(OFFSET($B:$B,,MATCH(R$4,$B$4:$F$4,0)-1),OFFSET('C. PoC Adj Factor Scoring'!$E$5:$J$282,,MATCH(R$4,'C. PoC Adj Factor Scoring'!$E$3:$AH$3,0)-1),MATCH(R$2&\" Score\",'C. PoC Adj Factor Scoring'!$E$4:$J$4,0),TRUE)","v":1},{"$f":"VLOOKUP(OFFSET($B:$B,,MATCH(S$4,$B$4:$F$4,0)-1),OFFSET('C. PoC Adj Factor Scoring'!$E$5:$J$282,,MATCH(S$4,'C. PoC Adj Factor Scoring'!$E$3:$AH$3,0)-1),MATCH(S$2&\" Score\",'C. PoC Adj Factor Scoring'!$E$4:$J$4,0),TRUE)","v":1},{"$f":"VLOOKUP(OFFSET($B:$B,,MATCH(T$4,$B$4:$F$4,0)-1),OFFSET('C. PoC Adj Factor Scoring'!$E$5:$J$282,,MATCH(T$4,'C. PoC Adj Factor Scoring'!$E$3:$AH$3,0)-1),MATCH(T$2&\" Score\",'C. PoC Adj Factor Scoring'!$E$4:$J$4,0),TRUE)","v":1},{"$f":"VLOOKUP(OFFSET($B:$B,,MATCH(U$4,$B$4:$F$4,0)-1),OFFSET('C. PoC Adj Factor Scoring'!$E$5:$J$282,,MATCH(U$4,'C. PoC Adj Factor Scoring'!$E$3:$AH$3,0)-1),MATCH(U$2&\" Score\",'C. PoC Adj Factor Scoring'!$E$4:$J$4,0),TRUE)","v":1},{"$f":"VLOOKUP(OFFSET($B:$B,,MATCH(V$4,$B$4:$F$4,0)-1),OFFSET('C. PoC Adj Factor Scoring'!$E$5:$J$282,,MATCH(V$4,'C. PoC Adj Factor Scoring'!$E$3:$AH$3,0)-1),MATCH(V$2&\" Score\",'C. PoC Adj Factor Scoring'!$E$4:$J$4,0),TRUE)","v":1},{"$f":"VLOOKUP(OFFSET($B:$B,,MATCH(W$4,$B$4:$F$4,0)-1),OFFSET('C. PoC Adj Factor Scoring'!$E$5:$J$282,,MATCH(W$4,'C. PoC Adj Factor Scoring'!$E$3:$AH$3,0)-1),MATCH(W$2&\" Score\",'C. PoC Adj Factor Scoring'!$E$4:$J$4,0),TRUE)","v":1},{"$f":"VLOOKUP(OFFSET($B:$B,,MATCH(X$4,$B$4:$F$4,0)-1),OFFSET('C. PoC Adj Factor Scoring'!$E$5:$J$282,,MATCH(X$4,'C. PoC Adj Factor Scoring'!$E$3:$AH$3,0)-1),MATCH(X$2&\" Score\",'C. PoC Adj Factor Scoring'!$E$4:$J$4,0),TRUE)","v":1},{"$f":"VLOOKUP(OFFSET($B:$B,,MATCH(Y$4,$B$4:$F$4,0)-1),OFFSET('C. PoC Adj Factor Scoring'!$E$5:$J$282,,MATCH(Y$4,'C. PoC Adj Factor Scoring'!$E$3:$AH$3,0)-1),MATCH(Y$2&\" Score\",'C. PoC Adj Factor Scoring'!$E$4:$J$4,0),TRUE)","v":1},{"$f":"VLOOKUP(OFFSET($B:$B,,MATCH(Z$4,$B$4:$F$4,0)-1),OFFSET('C. PoC Adj Factor Scoring'!$E$5:$J$282,,MATCH(Z$4,'C. PoC Adj Factor Scoring'!$E$3:$AH$3,0)-1),MATCH(Z$2&\" Score\",'C. PoC Adj Factor Scoring'!$E$4:$J$4,0),TRUE)","v":1},{"$f":"VLOOKUP(OFFSET($B:$B,,MATCH(AA$4,$B$4:$F$4,0)-1),OFFSET('C. PoC Adj Factor Scoring'!$E$5:$J$282,,MATCH(AA$4,'C. PoC Adj Factor Scoring'!$E$3:$AH$3,0)-1),MATCH(AA$2&\" Score\",'C. PoC Adj Factor Scoring'!$E$4:$J$4,0),TRUE)","v":3},{"$f":"VLOOKUP(OFFSET($B:$B,,MATCH(AB$4,$B$4:$F$4,0)-1),OFFSET('C. PoC Adj Factor Scoring'!$E$5:$J$282,,MATCH(AB$4,'C. PoC Adj Factor Scoring'!$E$3:$AH$3,0)-1),MATCH(AB$2&\" Score\",'C. PoC Adj Factor Scoring'!$E$4:$J$4,0),TRUE)","v":1},{"$f":"VLOOKUP(OFFSET($B:$B,,MATCH(AC$4,$B$4:$F$4,0)-1),OFFSET('C. PoC Adj Factor Scoring'!$E$5:$J$282,,MATCH(AC$4,'C. PoC Adj Factor Scoring'!$E$3:$AH$3,0)-1),MATCH(AC$2&\" Score\",'C. PoC Adj Factor Scoring'!$E$4:$J$4,0),TRUE)","v":1},{"$f":"VLOOKUP(OFFSET($B:$B,,MATCH(AD$4,$B$4:$F$4,0)-1),OFFSET('C. PoC Adj Factor Scoring'!$E$5:$J$282,,MATCH(AD$4,'C. PoC Adj Factor Scoring'!$E$3:$AH$3,0)-1),MATCH(AD$2&\" Score\",'C. PoC Adj Factor Scoring'!$E$4:$J$4,0),TRUE)","v":1},{"$f":"VLOOKUP(OFFSET($B:$B,,MATCH(AE$4,$B$4:$F$4,0)-1),OFFSET('C. PoC Adj Factor Scoring'!$E$5:$J$282,,MATCH(AE$4,'C. PoC Adj Factor Scoring'!$E$3:$AH$3,0)-1),MATCH(AE$2&\" Score\",'C. PoC Adj Factor Scoring'!$E$4:$J$4,0),TRUE)","v":1}]
[{"$f":"'A. Population Info'!A284","v":1000366630},{"$f":"'A. Population Info'!L284","v":"OIL"},{"$f":"'A. Population Info'!M284","v":0},{"$f":"'A. Population Info'!N284","v":0},{"$f":"'A. Population Info'!O284","v":0},{"$f":"'A. Population Info'!P284","v":0},{"$f":"VLOOKUP(OFFSET($B:$B,,MATCH(G$4,$B$4:$F$4,0)-1),OFFSET('C. PoC Adj Factor Scoring'!$E$5:$J$282,,MATCH(G$4,'C. PoC Adj Factor Scoring'!$E$3:$AH$3,0)-1),MATCH(G$2&\" Score\",'C. PoC Adj Factor Scoring'!$E$4:$J$4,0),TRUE)","v":4},{"$f":"VLOOKUP(OFFSET($B:$B,,MATCH(H$4,$B$4:$F$4,0)-1),OFFSET('C. PoC Adj Factor Scoring'!$E$5:$J$282,,MATCH(H$4,'C. PoC Adj Factor Scoring'!$E$3:$AH$3,0)-1),MATCH(H$2&\" Score\",'C. PoC Adj Factor Scoring'!$E$4:$J$4,0),TRUE)","v":1},{"$f":"VLOOKUP(OFFSET($B:$B,,MATCH(I$4,$B$4:$F$4,0)-1),OFFSET('C. PoC Adj Factor Scoring'!$E$5:$J$282,,MATCH(I$4,'C. PoC Adj Factor Scoring'!$E$3:$AH$3,0)-1),MATCH(I$2&\" Score\",'C. PoC Adj Factor Scoring'!$E$4:$J$4,0),TRUE)","v":1},{"$f":"VLOOKUP(OFFSET($B:$B,,MATCH(J$4,$B$4:$F$4,0)-1),OFFSET('C. PoC Adj Factor Scoring'!$E$5:$J$282,,MATCH(J$4,'C. PoC Adj Factor Scoring'!$E$3:$AH$3,0)-1),MATCH(J$2&\" Score\",'C. PoC Adj Factor Scoring'!$E$4:$J$4,0),TRUE)","v":1},{"$f":"VLOOKUP(OFFSET($B:$B,,MATCH(K$4,$B$4:$F$4,0)-1),OFFSET('C. PoC Adj Factor Scoring'!$E$5:$J$282,,MATCH(K$4,'C. PoC Adj Factor Scoring'!$E$3:$AH$3,0)-1),MATCH(K$2&\" Score\",'C. PoC Adj Factor Scoring'!$E$4:$J$4,0),TRUE)","v":1},{"$f":"VLOOKUP(OFFSET($B:$B,,MATCH(L$4,$B$4:$F$4,0)-1),OFFSET('C. PoC Adj Factor Scoring'!$E$5:$J$282,,MATCH(L$4,'C. PoC Adj Factor Scoring'!$E$3:$AH$3,0)-1),MATCH(L$2&\" Score\",'C. PoC Adj Factor Scoring'!$E$4:$J$4,0),TRUE)","v":1},{"$f":"VLOOKUP(OFFSET($B:$B,,MATCH(M$4,$B$4:$F$4,0)-1),OFFSET('C. PoC Adj Factor Scoring'!$E$5:$J$282,,MATCH(M$4,'C. PoC Adj Factor Scoring'!$E$3:$AH$3,0)-1),MATCH(M$2&\" Score\",'C. PoC Adj Factor Scoring'!$E$4:$J$4,0),TRUE)","v":1},{"$f":"VLOOKUP(OFFSET($B:$B,,MATCH(N$4,$B$4:$F$4,0)-1),OFFSET('C. PoC Adj Factor Scoring'!$E$5:$J$282,,MATCH(N$4,'C. PoC Adj Factor Scoring'!$E$3:$AH$3,0)-1),MATCH(N$2&\" Score\",'C. PoC Adj Factor Scoring'!$E$4:$J$4,0),TRUE)","v":1},{"$f":"VLOOKUP(OFFSET($B:$B,,MATCH(O$4,$B$4:$F$4,0)-1),OFFSET('C. PoC Adj Factor Scoring'!$E$5:$J$282,,MATCH(O$4,'C. PoC Adj Factor Scoring'!$E$3:$AH$3,0)-1),MATCH(O$2&\" Score\",'C. PoC Adj Factor Scoring'!$E$4:$J$4,0),TRUE)","v":1},{"$f":"VLOOKUP(OFFSET($B:$B,,MATCH(P$4,$B$4:$F$4,0)-1),OFFSET('C. PoC Adj Factor Scoring'!$E$5:$J$282,,MATCH(P$4,'C. PoC Adj Factor Scoring'!$E$3:$AH$3,0)-1),MATCH(P$2&\" Score\",'C. PoC Adj Factor Scoring'!$E$4:$J$4,0),TRUE)","v":1},{"$f":"VLOOKUP(OFFSET($B:$B,,MATCH(Q$4,$B$4:$F$4,0)-1),OFFSET('C. PoC Adj Factor Scoring'!$E$5:$J$282,,MATCH(Q$4,'C. PoC Adj Factor Scoring'!$E$3:$AH$3,0)-1),MATCH(Q$2&\" Score\",'C. PoC Adj Factor Scoring'!$E$4:$J$4,0),TRUE)","v":1},{"$f":"VLOOKUP(OFFSET($B:$B,,MATCH(R$4,$B$4:$F$4,0)-1),OFFSET('C. PoC Adj Factor Scoring'!$E$5:$J$282,,MATCH(R$4,'C. PoC Adj Factor Scoring'!$E$3:$AH$3,0)-1),MATCH(R$2&\" Score\",'C. PoC Adj Factor Scoring'!$E$4:$J$4,0),TRUE)","v":1},{"$f":"VLOOKUP(OFFSET($B:$B,,MATCH(S$4,$B$4:$F$4,0)-1),OFFSET('C. PoC Adj Factor Scoring'!$E$5:$J$282,,MATCH(S$4,'C. PoC Adj Factor Scoring'!$E$3:$AH$3,0)-1),MATCH(S$2&\" Score\",'C. PoC Adj Factor Scoring'!$E$4:$J$4,0),TRUE)","v":1},{"$f":"VLOOKUP(OFFSET($B:$B,,MATCH(T$4,$B$4:$F$4,0)-1),OFFSET('C. PoC Adj Factor Scoring'!$E$5:$J$282,,MATCH(T$4,'C. PoC Adj Factor Scoring'!$E$3:$AH$3,0)-1),MATCH(T$2&\" Score\",'C. PoC Adj Factor Scoring'!$E$4:$J$4,0),TRUE)","v":1},{"$f":"VLOOKUP(OFFSET($B:$B,,MATCH(U$4,$B$4:$F$4,0)-1),OFFSET('C. PoC Adj Factor Scoring'!$E$5:$J$282,,MATCH(U$4,'C. PoC Adj Factor Scoring'!$E$3:$AH$3,0)-1),MATCH(U$2&\" Score\",'C. PoC Adj Factor Scoring'!$E$4:$J$4,0),TRUE)","v":1},{"$f":"VLOOKUP(OFFSET($B:$B,,MATCH(V$4,$B$4:$F$4,0)-1),OFFSET('C. PoC Adj Factor Scoring'!$E$5:$J$282,,MATCH(V$4,'C. PoC Adj Factor Scoring'!$E$3:$AH$3,0)-1),MATCH(V$2&\" Score\",'C. PoC Adj Factor Scoring'!$E$4:$J$4,0),TRUE)","v":1},{"$f":"VLOOKUP(OFFSET($B:$B,,MATCH(W$4,$B$4:$F$4,0)-1),OFFSET('C. PoC Adj Factor Scoring'!$E$5:$J$282,,MATCH(W$4,'C. PoC Adj Factor Scoring'!$E$3:$AH$3,0)-1),MATCH(W$2&\" Score\",'C. PoC Adj Factor Scoring'!$E$4:$J$4,0),TRUE)","v":1},{"$f":"VLOOKUP(OFFSET($B:$B,,MATCH(X$4,$B$4:$F$4,0)-1),OFFSET('C. PoC Adj Factor Scoring'!$E$5:$J$282,,MATCH(X$4,'C. PoC Adj Factor Scoring'!$E$3:$AH$3,0)-1),MATCH(X$2&\" Score\",'C. PoC Adj Factor Scoring'!$E$4:$J$4,0),TRUE)","v":1},{"$f":"VLOOKUP(OFFSET($B:$B,,MATCH(Y$4,$B$4:$F$4,0)-1),OFFSET('C. PoC Adj Factor Scoring'!$E$5:$J$282,,MATCH(Y$4,'C. PoC Adj Factor Scoring'!$E$3:$AH$3,0)-1),MATCH(Y$2&\" Score\",'C. PoC Adj Factor Scoring'!$E$4:$J$4,0),TRUE)","v":1},{"$f":"VLOOKUP(OFFSET($B:$B,,MATCH(Z$4,$B$4:$F$4,0)-1),OFFSET('C. PoC Adj Factor Scoring'!$E$5:$J$282,,MATCH(Z$4,'C. PoC Adj Factor Scoring'!$E$3:$AH$3,0)-1),MATCH(Z$2&\" Score\",'C. PoC Adj Factor Scoring'!$E$4:$J$4,0),TRUE)","v":1},{"$f":"VLOOKUP(OFFSET($B:$B,,MATCH(AA$4,$B$4:$F$4,0)-1),OFFSET('C. PoC Adj Factor Scoring'!$E$5:$J$282,,MATCH(AA$4,'C. PoC Adj Factor Scoring'!$E$3:$AH$3,0)-1),MATCH(AA$2&\" Score\",'C. PoC Adj Factor Scoring'!$E$4:$J$4,0),TRUE)","v":3},{"$f":"VLOOKUP(OFFSET($B:$B,,MATCH(AB$4,$B$4:$F$4,0)-1),OFFSET('C. PoC Adj Factor Scoring'!$E$5:$J$282,,MATCH(AB$4,'C. PoC Adj Factor Scoring'!$E$3:$AH$3,0)-1),MATCH(AB$2&\" Score\",'C. PoC Adj Factor Scoring'!$E$4:$J$4,0),TRUE)","v":1},{"$f":"VLOOKUP(OFFSET($B:$B,,MATCH(AC$4,$B$4:$F$4,0)-1),OFFSET('C. PoC Adj Factor Scoring'!$E$5:$J$282,,MATCH(AC$4,'C. PoC Adj Factor Scoring'!$E$3:$AH$3,0)-1),MATCH(AC$2&\" Score\",'C. PoC Adj Factor Scoring'!$E$4:$J$4,0),TRUE)","v":1},{"$f":"VLOOKUP(OFFSET($B:$B,,MATCH(AD$4,$B$4:$F$4,0)-1),OFFSET('C. PoC Adj Factor Scoring'!$E$5:$J$282,,MATCH(AD$4,'C. PoC Adj Factor Scoring'!$E$3:$AH$3,0)-1),MATCH(AD$2&\" Score\",'C. PoC Adj Factor Scoring'!$E$4:$J$4,0),TRUE)","v":1},{"$f":"VLOOKUP(OFFSET($B:$B,,MATCH(AE$4,$B$4:$F$4,0)-1),OFFSET('C. PoC Adj Factor Scoring'!$E$5:$J$282,,MATCH(AE$4,'C. PoC Adj Factor Scoring'!$E$3:$AH$3,0)-1),MATCH(AE$2&\" Score\",'C. PoC Adj Factor Scoring'!$E$4:$J$4,0),TRUE)","v":1}]
[{"$f":"'A. Population Info'!A285","v":1000366661},{"$f":"'A. Population Info'!L285","v":"OIL"},{"$f":"'A. Population Info'!M285","v":0},{"$f":"'A. Population Info'!N285","v":0},{"$f":"'A. Population Info'!O285","v":0},{"$f":"'A. Population Info'!P285","v":0},{"$f":"VLOOKUP(OFFSET($B:$B,,MATCH(G$4,$B$4:$F$4,0)-1),OFFSET('C. PoC Adj Factor Scoring'!$E$5:$J$282,,MATCH(G$4,'C. PoC Adj Factor Scoring'!$E$3:$AH$3,0)-1),MATCH(G$2&\" Score\",'C. PoC Adj Factor Scoring'!$E$4:$J$4,0),TRUE)","v":4},{"$f":"VLOOKUP(OFFSET($B:$B,,MATCH(H$4,$B$4:$F$4,0)-1),OFFSET('C. PoC Adj Factor Scoring'!$E$5:$J$282,,MATCH(H$4,'C. PoC Adj Factor Scoring'!$E$3:$AH$3,0)-1),MATCH(H$2&\" Score\",'C. PoC Adj Factor Scoring'!$E$4:$J$4,0),TRUE)","v":1},{"$f":"VLOOKUP(OFFSET($B:$B,,MATCH(I$4,$B$4:$F$4,0)-1),OFFSET('C. PoC Adj Factor Scoring'!$E$5:$J$282,,MATCH(I$4,'C. PoC Adj Factor Scoring'!$E$3:$AH$3,0)-1),MATCH(I$2&\" Score\",'C. PoC Adj Factor Scoring'!$E$4:$J$4,0),TRUE)","v":1},{"$f":"VLOOKUP(OFFSET($B:$B,,MATCH(J$4,$B$4:$F$4,0)-1),OFFSET('C. PoC Adj Factor Scoring'!$E$5:$J$282,,MATCH(J$4,'C. PoC Adj Factor Scoring'!$E$3:$AH$3,0)-1),MATCH(J$2&\" Score\",'C. PoC Adj Factor Scoring'!$E$4:$J$4,0),TRUE)","v":1},{"$f":"VLOOKUP(OFFSET($B:$B,,MATCH(K$4,$B$4:$F$4,0)-1),OFFSET('C. PoC Adj Factor Scoring'!$E$5:$J$282,,MATCH(K$4,'C. PoC Adj Factor Scoring'!$E$3:$AH$3,0)-1),MATCH(K$2&\" Score\",'C. PoC Adj Factor Scoring'!$E$4:$J$4,0),TRUE)","v":1},{"$f":"VLOOKUP(OFFSET($B:$B,,MATCH(L$4,$B$4:$F$4,0)-1),OFFSET('C. PoC Adj Factor Scoring'!$E$5:$J$282,,MATCH(L$4,'C. PoC Adj Factor Scoring'!$E$3:$AH$3,0)-1),MATCH(L$2&\" Score\",'C. PoC Adj Factor Scoring'!$E$4:$J$4,0),TRUE)","v":1},{"$f":"VLOOKUP(OFFSET($B:$B,,MATCH(M$4,$B$4:$F$4,0)-1),OFFSET('C. PoC Adj Factor Scoring'!$E$5:$J$282,,MATCH(M$4,'C. PoC Adj Factor Scoring'!$E$3:$AH$3,0)-1),MATCH(M$2&\" Score\",'C. PoC Adj Factor Scoring'!$E$4:$J$4,0),TRUE)","v":1},{"$f":"VLOOKUP(OFFSET($B:$B,,MATCH(N$4,$B$4:$F$4,0)-1),OFFSET('C. PoC Adj Factor Scoring'!$E$5:$J$282,,MATCH(N$4,'C. PoC Adj Factor Scoring'!$E$3:$AH$3,0)-1),MATCH(N$2&\" Score\",'C. PoC Adj Factor Scoring'!$E$4:$J$4,0),TRUE)","v":1},{"$f":"VLOOKUP(OFFSET($B:$B,,MATCH(O$4,$B$4:$F$4,0)-1),OFFSET('C. PoC Adj Factor Scoring'!$E$5:$J$282,,MATCH(O$4,'C. PoC Adj Factor Scoring'!$E$3:$AH$3,0)-1),MATCH(O$2&\" Score\",'C. PoC Adj Factor Scoring'!$E$4:$J$4,0),TRUE)","v":1},{"$f":"VLOOKUP(OFFSET($B:$B,,MATCH(P$4,$B$4:$F$4,0)-1),OFFSET('C. PoC Adj Factor Scoring'!$E$5:$J$282,,MATCH(P$4,'C. PoC Adj Factor Scoring'!$E$3:$AH$3,0)-1),MATCH(P$2&\" Score\",'C. PoC Adj Factor Scoring'!$E$4:$J$4,0),TRUE)","v":1},{"$f":"VLOOKUP(OFFSET($B:$B,,MATCH(Q$4,$B$4:$F$4,0)-1),OFFSET('C. PoC Adj Factor Scoring'!$E$5:$J$282,,MATCH(Q$4,'C. PoC Adj Factor Scoring'!$E$3:$AH$3,0)-1),MATCH(Q$2&\" Score\",'C. PoC Adj Factor Scoring'!$E$4:$J$4,0),TRUE)","v":1},{"$f":"VLOOKUP(OFFSET($B:$B,,MATCH(R$4,$B$4:$F$4,0)-1),OFFSET('C. PoC Adj Factor Scoring'!$E$5:$J$282,,MATCH(R$4,'C. PoC Adj Factor Scoring'!$E$3:$AH$3,0)-1),MATCH(R$2&\" Score\",'C. PoC Adj Factor Scoring'!$E$4:$J$4,0),TRUE)","v":1},{"$f":"VLOOKUP(OFFSET($B:$B,,MATCH(S$4,$B$4:$F$4,0)-1),OFFSET('C. PoC Adj Factor Scoring'!$E$5:$J$282,,MATCH(S$4,'C. PoC Adj Factor Scoring'!$E$3:$AH$3,0)-1),MATCH(S$2&\" Score\",'C. PoC Adj Factor Scoring'!$E$4:$J$4,0),TRUE)","v":1},{"$f":"VLOOKUP(OFFSET($B:$B,,MATCH(T$4,$B$4:$F$4,0)-1),OFFSET('C. PoC Adj Factor Scoring'!$E$5:$J$282,,MATCH(T$4,'C. PoC Adj Factor Scoring'!$E$3:$AH$3,0)-1),MATCH(T$2&\" Score\",'C. PoC Adj Factor Scoring'!$E$4:$J$4,0),TRUE)","v":1},{"$f":"VLOOKUP(OFFSET($B:$B,,MATCH(U$4,$B$4:$F$4,0)-1),OFFSET('C. PoC Adj Factor Scoring'!$E$5:$J$282,,MATCH(U$4,'C. PoC Adj Factor Scoring'!$E$3:$AH$3,0)-1),MATCH(U$2&\" Score\",'C. PoC Adj Factor Scoring'!$E$4:$J$4,0),TRUE)","v":1},{"$f":"VLOOKUP(OFFSET($B:$B,,MATCH(V$4,$B$4:$F$4,0)-1),OFFSET('C. PoC Adj Factor Scoring'!$E$5:$J$282,,MATCH(V$4,'C. PoC Adj Factor Scoring'!$E$3:$AH$3,0)-1),MATCH(V$2&\" Score\",'C. PoC Adj Factor Scoring'!$E$4:$J$4,0),TRUE)","v":1},{"$f":"VLOOKUP(OFFSET($B:$B,,MATCH(W$4,$B$4:$F$4,0)-1),OFFSET('C. PoC Adj Factor Scoring'!$E$5:$J$282,,MATCH(W$4,'C. PoC Adj Factor Scoring'!$E$3:$AH$3,0)-1),MATCH(W$2&\" Score\",'C. PoC Adj Factor Scoring'!$E$4:$J$4,0),TRUE)","v":1},{"$f":"VLOOKUP(OFFSET($B:$B,,MATCH(X$4,$B$4:$F$4,0)-1),OFFSET('C. PoC Adj Factor Scoring'!$E$5:$J$282,,MATCH(X$4,'C. PoC Adj Factor Scoring'!$E$3:$AH$3,0)-1),MATCH(X$2&\" Score\",'C. PoC Adj Factor Scoring'!$E$4:$J$4,0),TRUE)","v":1},{"$f":"VLOOKUP(OFFSET($B:$B,,MATCH(Y$4,$B$4:$F$4,0)-1),OFFSET('C. PoC Adj Factor Scoring'!$E$5:$J$282,,MATCH(Y$4,'C. PoC Adj Factor Scoring'!$E$3:$AH$3,0)-1),MATCH(Y$2&\" Score\",'C. PoC Adj Factor Scoring'!$E$4:$J$4,0),TRUE)","v":1},{"$f":"VLOOKUP(OFFSET($B:$B,,MATCH(Z$4,$B$4:$F$4,0)-1),OFFSET('C. PoC Adj Factor Scoring'!$E$5:$J$282,,MATCH(Z$4,'C. PoC Adj Factor Scoring'!$E$3:$AH$3,0)-1),MATCH(Z$2&\" Score\",'C. PoC Adj Factor Scoring'!$E$4:$J$4,0),TRUE)","v":1},{"$f":"VLOOKUP(OFFSET($B:$B,,MATCH(AA$4,$B$4:$F$4,0)-1),OFFSET('C. PoC Adj Factor Scoring'!$E$5:$J$282,,MATCH(AA$4,'C. PoC Adj Factor Scoring'!$E$3:$AH$3,0)-1),MATCH(AA$2&\" Score\",'C. PoC Adj Factor Scoring'!$E$4:$J$4,0),TRUE)","v":3},{"$f":"VLOOKUP(OFFSET($B:$B,,MATCH(AB$4,$B$4:$F$4,0)-1),OFFSET('C. PoC Adj Factor Scoring'!$E$5:$J$282,,MATCH(AB$4,'C. PoC Adj Factor Scoring'!$E$3:$AH$3,0)-1),MATCH(AB$2&\" Score\",'C. PoC Adj Factor Scoring'!$E$4:$J$4,0),TRUE)","v":1},{"$f":"VLOOKUP(OFFSET($B:$B,,MATCH(AC$4,$B$4:$F$4,0)-1),OFFSET('C. PoC Adj Factor Scoring'!$E$5:$J$282,,MATCH(AC$4,'C. PoC Adj Factor Scoring'!$E$3:$AH$3,0)-1),MATCH(AC$2&\" Score\",'C. PoC Adj Factor Scoring'!$E$4:$J$4,0),TRUE)","v":1},{"$f":"VLOOKUP(OFFSET($B:$B,,MATCH(AD$4,$B$4:$F$4,0)-1),OFFSET('C. PoC Adj Factor Scoring'!$E$5:$J$282,,MATCH(AD$4,'C. PoC Adj Factor Scoring'!$E$3:$AH$3,0)-1),MATCH(AD$2&\" Score\",'C. PoC Adj Factor Scoring'!$E$4:$J$4,0),TRUE)","v":1},{"$f":"VLOOKUP(OFFSET($B:$B,,MATCH(AE$4,$B$4:$F$4,0)-1),OFFSET('C. PoC Adj Factor Scoring'!$E$5:$J$282,,MATCH(AE$4,'C. PoC Adj Factor Scoring'!$E$3:$AH$3,0)-1),MATCH(AE$2&\" Score\",'C. PoC Adj Factor Scoring'!$E$4:$J$4,0),TRUE)","v":1}]
[{"$f":"'A. Population Info'!A286","v":1000366782},{"$f":"'A. Population Info'!L286","v":"OIL"},{"$f":"'A. Population Info'!M286","v":0},{"$f":"'A. Population Info'!N286","v":0},{"$f":"'A. Population Info'!O286","v":0},{"$f":"'A. Population Info'!P286","v":0},{"$f":"VLOOKUP(OFFSET($B:$B,,MATCH(G$4,$B$4:$F$4,0)-1),OFFSET('C. PoC Adj Factor Scoring'!$E$5:$J$282,,MATCH(G$4,'C. PoC Adj Factor Scoring'!$E$3:$AH$3,0)-1),MATCH(G$2&\" Score\",'C. PoC Adj Factor Scoring'!$E$4:$J$4,0),TRUE)","v":4},{"$f":"VLOOKUP(OFFSET($B:$B,,MATCH(H$4,$B$4:$F$4,0)-1),OFFSET('C. PoC Adj Factor Scoring'!$E$5:$J$282,,MATCH(H$4,'C. PoC Adj Factor Scoring'!$E$3:$AH$3,0)-1),MATCH(H$2&\" Score\",'C. PoC Adj Factor Scoring'!$E$4:$J$4,0),TRUE)","v":1},{"$f":"VLOOKUP(OFFSET($B:$B,,MATCH(I$4,$B$4:$F$4,0)-1),OFFSET('C. PoC Adj Factor Scoring'!$E$5:$J$282,,MATCH(I$4,'C. PoC Adj Factor Scoring'!$E$3:$AH$3,0)-1),MATCH(I$2&\" Score\",'C. PoC Adj Factor Scoring'!$E$4:$J$4,0),TRUE)","v":1},{"$f":"VLOOKUP(OFFSET($B:$B,,MATCH(J$4,$B$4:$F$4,0)-1),OFFSET('C. PoC Adj Factor Scoring'!$E$5:$J$282,,MATCH(J$4,'C. PoC Adj Factor Scoring'!$E$3:$AH$3,0)-1),MATCH(J$2&\" Score\",'C. PoC Adj Factor Scoring'!$E$4:$J$4,0),TRUE)","v":1},{"$f":"VLOOKUP(OFFSET($B:$B,,MATCH(K$4,$B$4:$F$4,0)-1),OFFSET('C. PoC Adj Factor Scoring'!$E$5:$J$282,,MATCH(K$4,'C. PoC Adj Factor Scoring'!$E$3:$AH$3,0)-1),MATCH(K$2&\" Score\",'C. PoC Adj Factor Scoring'!$E$4:$J$4,0),TRUE)","v":1},{"$f":"VLOOKUP(OFFSET($B:$B,,MATCH(L$4,$B$4:$F$4,0)-1),OFFSET('C. PoC Adj Factor Scoring'!$E$5:$J$282,,MATCH(L$4,'C. PoC Adj Factor Scoring'!$E$3:$AH$3,0)-1),MATCH(L$2&\" Score\",'C. PoC Adj Factor Scoring'!$E$4:$J$4,0),TRUE)","v":1},{"$f":"VLOOKUP(OFFSET($B:$B,,MATCH(M$4,$B$4:$F$4,0)-1),OFFSET('C. PoC Adj Factor Scoring'!$E$5:$J$282,,MATCH(M$4,'C. PoC Adj Factor Scoring'!$E$3:$AH$3,0)-1),MATCH(M$2&\" Score\",'C. PoC Adj Factor Scoring'!$E$4:$J$4,0),TRUE)","v":1},{"$f":"VLOOKUP(OFFSET($B:$B,,MATCH(N$4,$B$4:$F$4,0)-1),OFFSET('C. PoC Adj Factor Scoring'!$E$5:$J$282,,MATCH(N$4,'C. PoC Adj Factor Scoring'!$E$3:$AH$3,0)-1),MATCH(N$2&\" Score\",'C. PoC Adj Factor Scoring'!$E$4:$J$4,0),TRUE)","v":1},{"$f":"VLOOKUP(OFFSET($B:$B,,MATCH(O$4,$B$4:$F$4,0)-1),OFFSET('C. PoC Adj Factor Scoring'!$E$5:$J$282,,MATCH(O$4,'C. PoC Adj Factor Scoring'!$E$3:$AH$3,0)-1),MATCH(O$2&\" Score\",'C. PoC Adj Factor Scoring'!$E$4:$J$4,0),TRUE)","v":1},{"$f":"VLOOKUP(OFFSET($B:$B,,MATCH(P$4,$B$4:$F$4,0)-1),OFFSET('C. PoC Adj Factor Scoring'!$E$5:$J$282,,MATCH(P$4,'C. PoC Adj Factor Scoring'!$E$3:$AH$3,0)-1),MATCH(P$2&\" Score\",'C. PoC Adj Factor Scoring'!$E$4:$J$4,0),TRUE)","v":1},{"$f":"VLOOKUP(OFFSET($B:$B,,MATCH(Q$4,$B$4:$F$4,0)-1),OFFSET('C. PoC Adj Factor Scoring'!$E$5:$J$282,,MATCH(Q$4,'C. PoC Adj Factor Scoring'!$E$3:$AH$3,0)-1),MATCH(Q$2&\" Score\",'C. PoC Adj Factor Scoring'!$E$4:$J$4,0),TRUE)","v":1},{"$f":"VLOOKUP(OFFSET($B:$B,,MATCH(R$4,$B$4:$F$4,0)-1),OFFSET('C. PoC Adj Factor Scoring'!$E$5:$J$282,,MATCH(R$4,'C. PoC Adj Factor Scoring'!$E$3:$AH$3,0)-1),MATCH(R$2&\" Score\",'C. PoC Adj Factor Scoring'!$E$4:$J$4,0),TRUE)","v":1},{"$f":"VLOOKUP(OFFSET($B:$B,,MATCH(S$4,$B$4:$F$4,0)-1),OFFSET('C. PoC Adj Factor Scoring'!$E$5:$J$282,,MATCH(S$4,'C. PoC Adj Factor Scoring'!$E$3:$AH$3,0)-1),MATCH(S$2&\" Score\",'C. PoC Adj Factor Scoring'!$E$4:$J$4,0),TRUE)","v":1},{"$f":"VLOOKUP(OFFSET($B:$B,,MATCH(T$4,$B$4:$F$4,0)-1),OFFSET('C. PoC Adj Factor Scoring'!$E$5:$J$282,,MATCH(T$4,'C. PoC Adj Factor Scoring'!$E$3:$AH$3,0)-1),MATCH(T$2&\" Score\",'C. PoC Adj Factor Scoring'!$E$4:$J$4,0),TRUE)","v":1},{"$f":"VLOOKUP(OFFSET($B:$B,,MATCH(U$4,$B$4:$F$4,0)-1),OFFSET('C. PoC Adj Factor Scoring'!$E$5:$J$282,,MATCH(U$4,'C. PoC Adj Factor Scoring'!$E$3:$AH$3,0)-1),MATCH(U$2&\" Score\",'C. PoC Adj Factor Scoring'!$E$4:$J$4,0),TRUE)","v":1},{"$f":"VLOOKUP(OFFSET($B:$B,,MATCH(V$4,$B$4:$F$4,0)-1),OFFSET('C. PoC Adj Factor Scoring'!$E$5:$J$282,,MATCH(V$4,'C. PoC Adj Factor Scoring'!$E$3:$AH$3,0)-1),MATCH(V$2&\" Score\",'C. PoC Adj Factor Scoring'!$E$4:$J$4,0),TRUE)","v":1},{"$f":"VLOOKUP(OFFSET($B:$B,,MATCH(W$4,$B$4:$F$4,0)-1),OFFSET('C. PoC Adj Factor Scoring'!$E$5:$J$282,,MATCH(W$4,'C. PoC Adj Factor Scoring'!$E$3:$AH$3,0)-1),MATCH(W$2&\" Score\",'C. PoC Adj Factor Scoring'!$E$4:$J$4,0),TRUE)","v":1},{"$f":"VLOOKUP(OFFSET($B:$B,,MATCH(X$4,$B$4:$F$4,0)-1),OFFSET('C. PoC Adj Factor Scoring'!$E$5:$J$282,,MATCH(X$4,'C. PoC Adj Factor Scoring'!$E$3:$AH$3,0)-1),MATCH(X$2&\" Score\",'C. PoC Adj Factor Scoring'!$E$4:$J$4,0),TRUE)","v":1},{"$f":"VLOOKUP(OFFSET($B:$B,,MATCH(Y$4,$B$4:$F$4,0)-1),OFFSET('C. PoC Adj Factor Scoring'!$E$5:$J$282,,MATCH(Y$4,'C. PoC Adj Factor Scoring'!$E$3:$AH$3,0)-1),MATCH(Y$2&\" Score\",'C. PoC Adj Factor Scoring'!$E$4:$J$4,0),TRUE)","v":1},{"$f":"VLOOKUP(OFFSET($B:$B,,MATCH(Z$4,$B$4:$F$4,0)-1),OFFSET('C. PoC Adj Factor Scoring'!$E$5:$J$282,,MATCH(Z$4,'C. PoC Adj Factor Scoring'!$E$3:$AH$3,0)-1),MATCH(Z$2&\" Score\",'C. PoC Adj Factor Scoring'!$E$4:$J$4,0),TRUE)","v":1},{"$f":"VLOOKUP(OFFSET($B:$B,,MATCH(AA$4,$B$4:$F$4,0)-1),OFFSET('C. PoC Adj Factor Scoring'!$E$5:$J$282,,MATCH(AA$4,'C. PoC Adj Factor Scoring'!$E$3:$AH$3,0)-1),MATCH(AA$2&\" Score\",'C. PoC Adj Factor Scoring'!$E$4:$J$4,0),TRUE)","v":3},{"$f":"VLOOKUP(OFFSET($B:$B,,MATCH(AB$4,$B$4:$F$4,0)-1),OFFSET('C. PoC Adj Factor Scoring'!$E$5:$J$282,,MATCH(AB$4,'C. PoC Adj Factor Scoring'!$E$3:$AH$3,0)-1),MATCH(AB$2&\" Score\",'C. PoC Adj Factor Scoring'!$E$4:$J$4,0),TRUE)","v":1},{"$f":"VLOOKUP(OFFSET($B:$B,,MATCH(AC$4,$B$4:$F$4,0)-1),OFFSET('C. PoC Adj Factor Scoring'!$E$5:$J$282,,MATCH(AC$4,'C. PoC Adj Factor Scoring'!$E$3:$AH$3,0)-1),MATCH(AC$2&\" Score\",'C. PoC Adj Factor Scoring'!$E$4:$J$4,0),TRUE)","v":1},{"$f":"VLOOKUP(OFFSET($B:$B,,MATCH(AD$4,$B$4:$F$4,0)-1),OFFSET('C. PoC Adj Factor Scoring'!$E$5:$J$282,,MATCH(AD$4,'C. PoC Adj Factor Scoring'!$E$3:$AH$3,0)-1),MATCH(AD$2&\" Score\",'C. PoC Adj Factor Scoring'!$E$4:$J$4,0),TRUE)","v":1},{"$f":"VLOOKUP(OFFSET($B:$B,,MATCH(AE$4,$B$4:$F$4,0)-1),OFFSET('C. PoC Adj Factor Scoring'!$E$5:$J$282,,MATCH(AE$4,'C. PoC Adj Factor Scoring'!$E$3:$AH$3,0)-1),MATCH(AE$2&\" Score\",'C. PoC Adj Factor Scoring'!$E$4:$J$4,0),TRUE)","v":1}]
[{"$f":"'A. Population Info'!A287","v":1000366876},{"$f":"'A. Population Info'!L287","v":"OIL"},{"$f":"'A. Population Info'!M287","v":0},{"$f":"'A. Population Info'!N287","v":0},{"$f":"'A. Population Info'!O287","v":0},{"$f":"'A. Population Info'!P287","v":0},{"$f":"VLOOKUP(OFFSET($B:$B,,MATCH(G$4,$B$4:$F$4,0)-1),OFFSET('C. PoC Adj Factor Scoring'!$E$5:$J$282,,MATCH(G$4,'C. PoC Adj Factor Scoring'!$E$3:$AH$3,0)-1),MATCH(G$2&\" Score\",'C. PoC Adj Factor Scoring'!$E$4:$J$4,0),TRUE)","v":4},{"$f":"VLOOKUP(OFFSET($B:$B,,MATCH(H$4,$B$4:$F$4,0)-1),OFFSET('C. PoC Adj Factor Scoring'!$E$5:$J$282,,MATCH(H$4,'C. PoC Adj Factor Scoring'!$E$3:$AH$3,0)-1),MATCH(H$2&\" Score\",'C. PoC Adj Factor Scoring'!$E$4:$J$4,0),TRUE)","v":1},{"$f":"VLOOKUP(OFFSET($B:$B,,MATCH(I$4,$B$4:$F$4,0)-1),OFFSET('C. PoC Adj Factor Scoring'!$E$5:$J$282,,MATCH(I$4,'C. PoC Adj Factor Scoring'!$E$3:$AH$3,0)-1),MATCH(I$2&\" Score\",'C. PoC Adj Factor Scoring'!$E$4:$J$4,0),TRUE)","v":1},{"$f":"VLOOKUP(OFFSET($B:$B,,MATCH(J$4,$B$4:$F$4,0)-1),OFFSET('C. PoC Adj Factor Scoring'!$E$5:$J$282,,MATCH(J$4,'C. PoC Adj Factor Scoring'!$E$3:$AH$3,0)-1),MATCH(J$2&\" Score\",'C. PoC Adj Factor Scoring'!$E$4:$J$4,0),TRUE)","v":1},{"$f":"VLOOKUP(OFFSET($B:$B,,MATCH(K$4,$B$4:$F$4,0)-1),OFFSET('C. PoC Adj Factor Scoring'!$E$5:$J$282,,MATCH(K$4,'C. PoC Adj Factor Scoring'!$E$3:$AH$3,0)-1),MATCH(K$2&\" Score\",'C. PoC Adj Factor Scoring'!$E$4:$J$4,0),TRUE)","v":1},{"$f":"VLOOKUP(OFFSET($B:$B,,MATCH(L$4,$B$4:$F$4,0)-1),OFFSET('C. PoC Adj Factor Scoring'!$E$5:$J$282,,MATCH(L$4,'C. PoC Adj Factor Scoring'!$E$3:$AH$3,0)-1),MATCH(L$2&\" Score\",'C. PoC Adj Factor Scoring'!$E$4:$J$4,0),TRUE)","v":1},{"$f":"VLOOKUP(OFFSET($B:$B,,MATCH(M$4,$B$4:$F$4,0)-1),OFFSET('C. PoC Adj Factor Scoring'!$E$5:$J$282,,MATCH(M$4,'C. PoC Adj Factor Scoring'!$E$3:$AH$3,0)-1),MATCH(M$2&\" Score\",'C. PoC Adj Factor Scoring'!$E$4:$J$4,0),TRUE)","v":1},{"$f":"VLOOKUP(OFFSET($B:$B,,MATCH(N$4,$B$4:$F$4,0)-1),OFFSET('C. PoC Adj Factor Scoring'!$E$5:$J$282,,MATCH(N$4,'C. PoC Adj Factor Scoring'!$E$3:$AH$3,0)-1),MATCH(N$2&\" Score\",'C. PoC Adj Factor Scoring'!$E$4:$J$4,0),TRUE)","v":1},{"$f":"VLOOKUP(OFFSET($B:$B,,MATCH(O$4,$B$4:$F$4,0)-1),OFFSET('C. PoC Adj Factor Scoring'!$E$5:$J$282,,MATCH(O$4,'C. PoC Adj Factor Scoring'!$E$3:$AH$3,0)-1),MATCH(O$2&\" Score\",'C. PoC Adj Factor Scoring'!$E$4:$J$4,0),TRUE)","v":1},{"$f":"VLOOKUP(OFFSET($B:$B,,MATCH(P$4,$B$4:$F$4,0)-1),OFFSET('C. PoC Adj Factor Scoring'!$E$5:$J$282,,MATCH(P$4,'C. PoC Adj Factor Scoring'!$E$3:$AH$3,0)-1),MATCH(P$2&\" Score\",'C. PoC Adj Factor Scoring'!$E$4:$J$4,0),TRUE)","v":1},{"$f":"VLOOKUP(OFFSET($B:$B,,MATCH(Q$4,$B$4:$F$4,0)-1),OFFSET('C. PoC Adj Factor Scoring'!$E$5:$J$282,,MATCH(Q$4,'C. PoC Adj Factor Scoring'!$E$3:$AH$3,0)-1),MATCH(Q$2&\" Score\",'C. PoC Adj Factor Scoring'!$E$4:$J$4,0),TRUE)","v":1},{"$f":"VLOOKUP(OFFSET($B:$B,,MATCH(R$4,$B$4:$F$4,0)-1),OFFSET('C. PoC Adj Factor Scoring'!$E$5:$J$282,,MATCH(R$4,'C. PoC Adj Factor Scoring'!$E$3:$AH$3,0)-1),MATCH(R$2&\" Score\",'C. PoC Adj Factor Scoring'!$E$4:$J$4,0),TRUE)","v":1},{"$f":"VLOOKUP(OFFSET($B:$B,,MATCH(S$4,$B$4:$F$4,0)-1),OFFSET('C. PoC Adj Factor Scoring'!$E$5:$J$282,,MATCH(S$4,'C. PoC Adj Factor Scoring'!$E$3:$AH$3,0)-1),MATCH(S$2&\" Score\",'C. PoC Adj Factor Scoring'!$E$4:$J$4,0),TRUE)","v":1},{"$f":"VLOOKUP(OFFSET($B:$B,,MATCH(T$4,$B$4:$F$4,0)-1),OFFSET('C. PoC Adj Factor Scoring'!$E$5:$J$282,,MATCH(T$4,'C. PoC Adj Factor Scoring'!$E$3:$AH$3,0)-1),MATCH(T$2&\" Score\",'C. PoC Adj Factor Scoring'!$E$4:$J$4,0),TRUE)","v":1},{"$f":"VLOOKUP(OFFSET($B:$B,,MATCH(U$4,$B$4:$F$4,0)-1),OFFSET('C. PoC Adj Factor Scoring'!$E$5:$J$282,,MATCH(U$4,'C. PoC Adj Factor Scoring'!$E$3:$AH$3,0)-1),MATCH(U$2&\" Score\",'C. PoC Adj Factor Scoring'!$E$4:$J$4,0),TRUE)","v":1},{"$f":"VLOOKUP(OFFSET($B:$B,,MATCH(V$4,$B$4:$F$4,0)-1),OFFSET('C. PoC Adj Factor Scoring'!$E$5:$J$282,,MATCH(V$4,'C. PoC Adj Factor Scoring'!$E$3:$AH$3,0)-1),MATCH(V$2&\" Score\",'C. PoC Adj Factor Scoring'!$E$4:$J$4,0),TRUE)","v":1},{"$f":"VLOOKUP(OFFSET($B:$B,,MATCH(W$4,$B$4:$F$4,0)-1),OFFSET('C. PoC Adj Factor Scoring'!$E$5:$J$282,,MATCH(W$4,'C. PoC Adj Factor Scoring'!$E$3:$AH$3,0)-1),MATCH(W$2&\" Score\",'C. PoC Adj Factor Scoring'!$E$4:$J$4,0),TRUE)","v":1},{"$f":"VLOOKUP(OFFSET($B:$B,,MATCH(X$4,$B$4:$F$4,0)-1),OFFSET('C. PoC Adj Factor Scoring'!$E$5:$J$282,,MATCH(X$4,'C. PoC Adj Factor Scoring'!$E$3:$AH$3,0)-1),MATCH(X$2&\" Score\",'C. PoC Adj Factor Scoring'!$E$4:$J$4,0),TRUE)","v":1},{"$f":"VLOOKUP(OFFSET($B:$B,,MATCH(Y$4,$B$4:$F$4,0)-1),OFFSET('C. PoC Adj Factor Scoring'!$E$5:$J$282,,MATCH(Y$4,'C. PoC Adj Factor Scoring'!$E$3:$AH$3,0)-1),MATCH(Y$2&\" Score\",'C. PoC Adj Factor Scoring'!$E$4:$J$4,0),TRUE)","v":1},{"$f":"VLOOKUP(OFFSET($B:$B,,MATCH(Z$4,$B$4:$F$4,0)-1),OFFSET('C. PoC Adj Factor Scoring'!$E$5:$J$282,,MATCH(Z$4,'C. PoC Adj Factor Scoring'!$E$3:$AH$3,0)-1),MATCH(Z$2&\" Score\",'C. PoC Adj Factor Scoring'!$E$4:$J$4,0),TRUE)","v":1},{"$f":"VLOOKUP(OFFSET($B:$B,,MATCH(AA$4,$B$4:$F$4,0)-1),OFFSET('C. PoC Adj Factor Scoring'!$E$5:$J$282,,MATCH(AA$4,'C. PoC Adj Factor Scoring'!$E$3:$AH$3,0)-1),MATCH(AA$2&\" Score\",'C. PoC Adj Factor Scoring'!$E$4:$J$4,0),TRUE)","v":3},{"$f":"VLOOKUP(OFFSET($B:$B,,MATCH(AB$4,$B$4:$F$4,0)-1),OFFSET('C. PoC Adj Factor Scoring'!$E$5:$J$282,,MATCH(AB$4,'C. PoC Adj Factor Scoring'!$E$3:$AH$3,0)-1),MATCH(AB$2&\" Score\",'C. PoC Adj Factor Scoring'!$E$4:$J$4,0),TRUE)","v":1},{"$f":"VLOOKUP(OFFSET($B:$B,,MATCH(AC$4,$B$4:$F$4,0)-1),OFFSET('C. PoC Adj Factor Scoring'!$E$5:$J$282,,MATCH(AC$4,'C. PoC Adj Factor Scoring'!$E$3:$AH$3,0)-1),MATCH(AC$2&\" Score\",'C. PoC Adj Factor Scoring'!$E$4:$J$4,0),TRUE)","v":1},{"$f":"VLOOKUP(OFFSET($B:$B,,MATCH(AD$4,$B$4:$F$4,0)-1),OFFSET('C. PoC Adj Factor Scoring'!$E$5:$J$282,,MATCH(AD$4,'C. PoC Adj Factor Scoring'!$E$3:$AH$3,0)-1),MATCH(AD$2&\" Score\",'C. PoC Adj Factor Scoring'!$E$4:$J$4,0),TRUE)","v":1},{"$f":"VLOOKUP(OFFSET($B:$B,,MATCH(AE$4,$B$4:$F$4,0)-1),OFFSET('C. PoC Adj Factor Scoring'!$E$5:$J$282,,MATCH(AE$4,'C. PoC Adj Factor Scoring'!$E$3:$AH$3,0)-1),MATCH(AE$2&\" Score\",'C. PoC Adj Factor Scoring'!$E$4:$J$4,0),TRUE)","v":1}]
[{"$f":"'A. Population Info'!A288","v":1000366906},{"$f":"'A. Population Info'!L288","v":"OIL"},{"$f":"'A. Population Info'!M288","v":0},{"$f":"'A. Population Info'!N288","v":0},{"$f":"'A. Population Info'!O288","v":0},{"$f":"'A. Population Info'!P288","v":0},{"$f":"VLOOKUP(OFFSET($B:$B,,MATCH(G$4,$B$4:$F$4,0)-1),OFFSET('C. PoC Adj Factor Scoring'!$E$5:$J$282,,MATCH(G$4,'C. PoC Adj Factor Scoring'!$E$3:$AH$3,0)-1),MATCH(G$2&\" Score\",'C. PoC Adj Factor Scoring'!$E$4:$J$4,0),TRUE)","v":4},{"$f":"VLOOKUP(OFFSET($B:$B,,MATCH(H$4,$B$4:$F$4,0)-1),OFFSET('C. PoC Adj Factor Scoring'!$E$5:$J$282,,MATCH(H$4,'C. PoC Adj Factor Scoring'!$E$3:$AH$3,0)-1),MATCH(H$2&\" Score\",'C. PoC Adj Factor Scoring'!$E$4:$J$4,0),TRUE)","v":1},{"$f":"VLOOKUP(OFFSET($B:$B,,MATCH(I$4,$B$4:$F$4,0)-1),OFFSET('C. PoC Adj Factor Scoring'!$E$5:$J$282,,MATCH(I$4,'C. PoC Adj Factor Scoring'!$E$3:$AH$3,0)-1),MATCH(I$2&\" Score\",'C. PoC Adj Factor Scoring'!$E$4:$J$4,0),TRUE)","v":1},{"$f":"VLOOKUP(OFFSET($B:$B,,MATCH(J$4,$B$4:$F$4,0)-1),OFFSET('C. PoC Adj Factor Scoring'!$E$5:$J$282,,MATCH(J$4,'C. PoC Adj Factor Scoring'!$E$3:$AH$3,0)-1),MATCH(J$2&\" Score\",'C. PoC Adj Factor Scoring'!$E$4:$J$4,0),TRUE)","v":1},{"$f":"VLOOKUP(OFFSET($B:$B,,MATCH(K$4,$B$4:$F$4,0)-1),OFFSET('C. PoC Adj Factor Scoring'!$E$5:$J$282,,MATCH(K$4,'C. PoC Adj Factor Scoring'!$E$3:$AH$3,0)-1),MATCH(K$2&\" Score\",'C. PoC Adj Factor Scoring'!$E$4:$J$4,0),TRUE)","v":1},{"$f":"VLOOKUP(OFFSET($B:$B,,MATCH(L$4,$B$4:$F$4,0)-1),OFFSET('C. PoC Adj Factor Scoring'!$E$5:$J$282,,MATCH(L$4,'C. PoC Adj Factor Scoring'!$E$3:$AH$3,0)-1),MATCH(L$2&\" Score\",'C. PoC Adj Factor Scoring'!$E$4:$J$4,0),TRUE)","v":1},{"$f":"VLOOKUP(OFFSET($B:$B,,MATCH(M$4,$B$4:$F$4,0)-1),OFFSET('C. PoC Adj Factor Scoring'!$E$5:$J$282,,MATCH(M$4,'C. PoC Adj Factor Scoring'!$E$3:$AH$3,0)-1),MATCH(M$2&\" Score\",'C. PoC Adj Factor Scoring'!$E$4:$J$4,0),TRUE)","v":1},{"$f":"VLOOKUP(OFFSET($B:$B,,MATCH(N$4,$B$4:$F$4,0)-1),OFFSET('C. PoC Adj Factor Scoring'!$E$5:$J$282,,MATCH(N$4,'C. PoC Adj Factor Scoring'!$E$3:$AH$3,0)-1),MATCH(N$2&\" Score\",'C. PoC Adj Factor Scoring'!$E$4:$J$4,0),TRUE)","v":1},{"$f":"VLOOKUP(OFFSET($B:$B,,MATCH(O$4,$B$4:$F$4,0)-1),OFFSET('C. PoC Adj Factor Scoring'!$E$5:$J$282,,MATCH(O$4,'C. PoC Adj Factor Scoring'!$E$3:$AH$3,0)-1),MATCH(O$2&\" Score\",'C. PoC Adj Factor Scoring'!$E$4:$J$4,0),TRUE)","v":1},{"$f":"VLOOKUP(OFFSET($B:$B,,MATCH(P$4,$B$4:$F$4,0)-1),OFFSET('C. PoC Adj Factor Scoring'!$E$5:$J$282,,MATCH(P$4,'C. PoC Adj Factor Scoring'!$E$3:$AH$3,0)-1),MATCH(P$2&\" Score\",'C. PoC Adj Factor Scoring'!$E$4:$J$4,0),TRUE)","v":1},{"$f":"VLOOKUP(OFFSET($B:$B,,MATCH(Q$4,$B$4:$F$4,0)-1),OFFSET('C. PoC Adj Factor Scoring'!$E$5:$J$282,,MATCH(Q$4,'C. PoC Adj Factor Scoring'!$E$3:$AH$3,0)-1),MATCH(Q$2&\" Score\",'C. PoC Adj Factor Scoring'!$E$4:$J$4,0),TRUE)","v":1},{"$f":"VLOOKUP(OFFSET($B:$B,,MATCH(R$4,$B$4:$F$4,0)-1),OFFSET('C. PoC Adj Factor Scoring'!$E$5:$J$282,,MATCH(R$4,'C. PoC Adj Factor Scoring'!$E$3:$AH$3,0)-1),MATCH(R$2&\" Score\",'C. PoC Adj Factor Scoring'!$E$4:$J$4,0),TRUE)","v":1},{"$f":"VLOOKUP(OFFSET($B:$B,,MATCH(S$4,$B$4:$F$4,0)-1),OFFSET('C. PoC Adj Factor Scoring'!$E$5:$J$282,,MATCH(S$4,'C. PoC Adj Factor Scoring'!$E$3:$AH$3,0)-1),MATCH(S$2&\" Score\",'C. PoC Adj Factor Scoring'!$E$4:$J$4,0),TRUE)","v":1},{"$f":"VLOOKUP(OFFSET($B:$B,,MATCH(T$4,$B$4:$F$4,0)-1),OFFSET('C. PoC Adj Factor Scoring'!$E$5:$J$282,,MATCH(T$4,'C. PoC Adj Factor Scoring'!$E$3:$AH$3,0)-1),MATCH(T$2&\" Score\",'C. PoC Adj Factor Scoring'!$E$4:$J$4,0),TRUE)","v":1},{"$f":"VLOOKUP(OFFSET($B:$B,,MATCH(U$4,$B$4:$F$4,0)-1),OFFSET('C. PoC Adj Factor Scoring'!$E$5:$J$282,,MATCH(U$4,'C. PoC Adj Factor Scoring'!$E$3:$AH$3,0)-1),MATCH(U$2&\" Score\",'C. PoC Adj Factor Scoring'!$E$4:$J$4,0),TRUE)","v":1},{"$f":"VLOOKUP(OFFSET($B:$B,,MATCH(V$4,$B$4:$F$4,0)-1),OFFSET('C. PoC Adj Factor Scoring'!$E$5:$J$282,,MATCH(V$4,'C. PoC Adj Factor Scoring'!$E$3:$AH$3,0)-1),MATCH(V$2&\" Score\",'C. PoC Adj Factor Scoring'!$E$4:$J$4,0),TRUE)","v":1},{"$f":"VLOOKUP(OFFSET($B:$B,,MATCH(W$4,$B$4:$F$4,0)-1),OFFSET('C. PoC Adj Factor Scoring'!$E$5:$J$282,,MATCH(W$4,'C. PoC Adj Factor Scoring'!$E$3:$AH$3,0)-1),MATCH(W$2&\" Score\",'C. PoC Adj Factor Scoring'!$E$4:$J$4,0),TRUE)","v":1},{"$f":"VLOOKUP(OFFSET($B:$B,,MATCH(X$4,$B$4:$F$4,0)-1),OFFSET('C. PoC Adj Factor Scoring'!$E$5:$J$282,,MATCH(X$4,'C. PoC Adj Factor Scoring'!$E$3:$AH$3,0)-1),MATCH(X$2&\" Score\",'C. PoC Adj Factor Scoring'!$E$4:$J$4,0),TRUE)","v":1},{"$f":"VLOOKUP(OFFSET($B:$B,,MATCH(Y$4,$B$4:$F$4,0)-1),OFFSET('C. PoC Adj Factor Scoring'!$E$5:$J$282,,MATCH(Y$4,'C. PoC Adj Factor Scoring'!$E$3:$AH$3,0)-1),MATCH(Y$2&\" Score\",'C. PoC Adj Factor Scoring'!$E$4:$J$4,0),TRUE)","v":1},{"$f":"VLOOKUP(OFFSET($B:$B,,MATCH(Z$4,$B$4:$F$4,0)-1),OFFSET('C. PoC Adj Factor Scoring'!$E$5:$J$282,,MATCH(Z$4,'C. PoC Adj Factor Scoring'!$E$3:$AH$3,0)-1),MATCH(Z$2&\" Score\",'C. PoC Adj Factor Scoring'!$E$4:$J$4,0),TRUE)","v":1},{"$f":"VLOOKUP(OFFSET($B:$B,,MATCH(AA$4,$B$4:$F$4,0)-1),OFFSET('C. PoC Adj Factor Scoring'!$E$5:$J$282,,MATCH(AA$4,'C. PoC Adj Factor Scoring'!$E$3:$AH$3,0)-1),MATCH(AA$2&\" Score\",'C. PoC Adj Factor Scoring'!$E$4:$J$4,0),TRUE)","v":3},{"$f":"VLOOKUP(OFFSET($B:$B,,MATCH(AB$4,$B$4:$F$4,0)-1),OFFSET('C. PoC Adj Factor Scoring'!$E$5:$J$282,,MATCH(AB$4,'C. PoC Adj Factor Scoring'!$E$3:$AH$3,0)-1),MATCH(AB$2&\" Score\",'C. PoC Adj Factor Scoring'!$E$4:$J$4,0),TRUE)","v":1},{"$f":"VLOOKUP(OFFSET($B:$B,,MATCH(AC$4,$B$4:$F$4,0)-1),OFFSET('C. PoC Adj Factor Scoring'!$E$5:$J$282,,MATCH(AC$4,'C. PoC Adj Factor Scoring'!$E$3:$AH$3,0)-1),MATCH(AC$2&\" Score\",'C. PoC Adj Factor Scoring'!$E$4:$J$4,0),TRUE)","v":1},{"$f":"VLOOKUP(OFFSET($B:$B,,MATCH(AD$4,$B$4:$F$4,0)-1),OFFSET('C. PoC Adj Factor Scoring'!$E$5:$J$282,,MATCH(AD$4,'C. PoC Adj Factor Scoring'!$E$3:$AH$3,0)-1),MATCH(AD$2&\" Score\",'C. PoC Adj Factor Scoring'!$E$4:$J$4,0),TRUE)","v":1},{"$f":"VLOOKUP(OFFSET($B:$B,,MATCH(AE$4,$B$4:$F$4,0)-1),OFFSET('C. PoC Adj Factor Scoring'!$E$5:$J$282,,MATCH(AE$4,'C. PoC Adj Factor Scoring'!$E$3:$AH$3,0)-1),MATCH(AE$2&\" Score\",'C. PoC Adj Factor Scoring'!$E$4:$J$4,0),TRUE)","v":1}]
[{"$f":"'A. Population Info'!A289","v":1000367691},{"$f":"'A. Population Info'!L289","v":"OIL"},{"$f":"'A. Population Info'!M289","v":0},{"$f":"'A. Population Info'!N289","v":0},{"$f":"'A. Population Info'!O289","v":0},{"$f":"'A. Population Info'!P289","v":0},{"$f":"VLOOKUP(OFFSET($B:$B,,MATCH(G$4,$B$4:$F$4,0)-1),OFFSET('C. PoC Adj Factor Scoring'!$E$5:$J$282,,MATCH(G$4,'C. PoC Adj Factor Scoring'!$E$3:$AH$3,0)-1),MATCH(G$2&\" Score\",'C. PoC Adj Factor Scoring'!$E$4:$J$4,0),TRUE)","v":4},{"$f":"VLOOKUP(OFFSET($B:$B,,MATCH(H$4,$B$4:$F$4,0)-1),OFFSET('C. PoC Adj Factor Scoring'!$E$5:$J$282,,MATCH(H$4,'C. PoC Adj Factor Scoring'!$E$3:$AH$3,0)-1),MATCH(H$2&\" Score\",'C. PoC Adj Factor Scoring'!$E$4:$J$4,0),TRUE)","v":1},{"$f":"VLOOKUP(OFFSET($B:$B,,MATCH(I$4,$B$4:$F$4,0)-1),OFFSET('C. PoC Adj Factor Scoring'!$E$5:$J$282,,MATCH(I$4,'C. PoC Adj Factor Scoring'!$E$3:$AH$3,0)-1),MATCH(I$2&\" Score\",'C. PoC Adj Factor Scoring'!$E$4:$J$4,0),TRUE)","v":1},{"$f":"VLOOKUP(OFFSET($B:$B,,MATCH(J$4,$B$4:$F$4,0)-1),OFFSET('C. PoC Adj Factor Scoring'!$E$5:$J$282,,MATCH(J$4,'C. PoC Adj Factor Scoring'!$E$3:$AH$3,0)-1),MATCH(J$2&\" Score\",'C. PoC Adj Factor Scoring'!$E$4:$J$4,0),TRUE)","v":1},{"$f":"VLOOKUP(OFFSET($B:$B,,MATCH(K$4,$B$4:$F$4,0)-1),OFFSET('C. PoC Adj Factor Scoring'!$E$5:$J$282,,MATCH(K$4,'C. PoC Adj Factor Scoring'!$E$3:$AH$3,0)-1),MATCH(K$2&\" Score\",'C. PoC Adj Factor Scoring'!$E$4:$J$4,0),TRUE)","v":1},{"$f":"VLOOKUP(OFFSET($B:$B,,MATCH(L$4,$B$4:$F$4,0)-1),OFFSET('C. PoC Adj Factor Scoring'!$E$5:$J$282,,MATCH(L$4,'C. PoC Adj Factor Scoring'!$E$3:$AH$3,0)-1),MATCH(L$2&\" Score\",'C. PoC Adj Factor Scoring'!$E$4:$J$4,0),TRUE)","v":1},{"$f":"VLOOKUP(OFFSET($B:$B,,MATCH(M$4,$B$4:$F$4,0)-1),OFFSET('C. PoC Adj Factor Scoring'!$E$5:$J$282,,MATCH(M$4,'C. PoC Adj Factor Scoring'!$E$3:$AH$3,0)-1),MATCH(M$2&\" Score\",'C. PoC Adj Factor Scoring'!$E$4:$J$4,0),TRUE)","v":1},{"$f":"VLOOKUP(OFFSET($B:$B,,MATCH(N$4,$B$4:$F$4,0)-1),OFFSET('C. PoC Adj Factor Scoring'!$E$5:$J$282,,MATCH(N$4,'C. PoC Adj Factor Scoring'!$E$3:$AH$3,0)-1),MATCH(N$2&\" Score\",'C. PoC Adj Factor Scoring'!$E$4:$J$4,0),TRUE)","v":1},{"$f":"VLOOKUP(OFFSET($B:$B,,MATCH(O$4,$B$4:$F$4,0)-1),OFFSET('C. PoC Adj Factor Scoring'!$E$5:$J$282,,MATCH(O$4,'C. PoC Adj Factor Scoring'!$E$3:$AH$3,0)-1),MATCH(O$2&\" Score\",'C. PoC Adj Factor Scoring'!$E$4:$J$4,0),TRUE)","v":1},{"$f":"VLOOKUP(OFFSET($B:$B,,MATCH(P$4,$B$4:$F$4,0)-1),OFFSET('C. PoC Adj Factor Scoring'!$E$5:$J$282,,MATCH(P$4,'C. PoC Adj Factor Scoring'!$E$3:$AH$3,0)-1),MATCH(P$2&\" Score\",'C. PoC Adj Factor Scoring'!$E$4:$J$4,0),TRUE)","v":1},{"$f":"VLOOKUP(OFFSET($B:$B,,MATCH(Q$4,$B$4:$F$4,0)-1),OFFSET('C. PoC Adj Factor Scoring'!$E$5:$J$282,,MATCH(Q$4,'C. PoC Adj Factor Scoring'!$E$3:$AH$3,0)-1),MATCH(Q$2&\" Score\",'C. PoC Adj Factor Scoring'!$E$4:$J$4,0),TRUE)","v":1},{"$f":"VLOOKUP(OFFSET($B:$B,,MATCH(R$4,$B$4:$F$4,0)-1),OFFSET('C. PoC Adj Factor Scoring'!$E$5:$J$282,,MATCH(R$4,'C. PoC Adj Factor Scoring'!$E$3:$AH$3,0)-1),MATCH(R$2&\" Score\",'C. PoC Adj Factor Scoring'!$E$4:$J$4,0),TRUE)","v":1},{"$f":"VLOOKUP(OFFSET($B:$B,,MATCH(S$4,$B$4:$F$4,0)-1),OFFSET('C. PoC Adj Factor Scoring'!$E$5:$J$282,,MATCH(S$4,'C. PoC Adj Factor Scoring'!$E$3:$AH$3,0)-1),MATCH(S$2&\" Score\",'C. PoC Adj Factor Scoring'!$E$4:$J$4,0),TRUE)","v":1},{"$f":"VLOOKUP(OFFSET($B:$B,,MATCH(T$4,$B$4:$F$4,0)-1),OFFSET('C. PoC Adj Factor Scoring'!$E$5:$J$282,,MATCH(T$4,'C. PoC Adj Factor Scoring'!$E$3:$AH$3,0)-1),MATCH(T$2&\" Score\",'C. PoC Adj Factor Scoring'!$E$4:$J$4,0),TRUE)","v":1},{"$f":"VLOOKUP(OFFSET($B:$B,,MATCH(U$4,$B$4:$F$4,0)-1),OFFSET('C. PoC Adj Factor Scoring'!$E$5:$J$282,,MATCH(U$4,'C. PoC Adj Factor Scoring'!$E$3:$AH$3,0)-1),MATCH(U$2&\" Score\",'C. PoC Adj Factor Scoring'!$E$4:$J$4,0),TRUE)","v":1},{"$f":"VLOOKUP(OFFSET($B:$B,,MATCH(V$4,$B$4:$F$4,0)-1),OFFSET('C. PoC Adj Factor Scoring'!$E$5:$J$282,,MATCH(V$4,'C. PoC Adj Factor Scoring'!$E$3:$AH$3,0)-1),MATCH(V$2&\" Score\",'C. PoC Adj Factor Scoring'!$E$4:$J$4,0),TRUE)","v":1},{"$f":"VLOOKUP(OFFSET($B:$B,,MATCH(W$4,$B$4:$F$4,0)-1),OFFSET('C. PoC Adj Factor Scoring'!$E$5:$J$282,,MATCH(W$4,'C. PoC Adj Factor Scoring'!$E$3:$AH$3,0)-1),MATCH(W$2&\" Score\",'C. PoC Adj Factor Scoring'!$E$4:$J$4,0),TRUE)","v":1},{"$f":"VLOOKUP(OFFSET($B:$B,,MATCH(X$4,$B$4:$F$4,0)-1),OFFSET('C. PoC Adj Factor Scoring'!$E$5:$J$282,,MATCH(X$4,'C. PoC Adj Factor Scoring'!$E$3:$AH$3,0)-1),MATCH(X$2&\" Score\",'C. PoC Adj Factor Scoring'!$E$4:$J$4,0),TRUE)","v":1},{"$f":"VLOOKUP(OFFSET($B:$B,,MATCH(Y$4,$B$4:$F$4,0)-1),OFFSET('C. PoC Adj Factor Scoring'!$E$5:$J$282,,MATCH(Y$4,'C. PoC Adj Factor Scoring'!$E$3:$AH$3,0)-1),MATCH(Y$2&\" Score\",'C. PoC Adj Factor Scoring'!$E$4:$J$4,0),TRUE)","v":1},{"$f":"VLOOKUP(OFFSET($B:$B,,MATCH(Z$4,$B$4:$F$4,0)-1),OFFSET('C. PoC Adj Factor Scoring'!$E$5:$J$282,,MATCH(Z$4,'C. PoC Adj Factor Scoring'!$E$3:$AH$3,0)-1),MATCH(Z$2&\" Score\",'C. PoC Adj Factor Scoring'!$E$4:$J$4,0),TRUE)","v":1},{"$f":"VLOOKUP(OFFSET($B:$B,,MATCH(AA$4,$B$4:$F$4,0)-1),OFFSET('C. PoC Adj Factor Scoring'!$E$5:$J$282,,MATCH(AA$4,'C. PoC Adj Factor Scoring'!$E$3:$AH$3,0)-1),MATCH(AA$2&\" Score\",'C. PoC Adj Factor Scoring'!$E$4:$J$4,0),TRUE)","v":3},{"$f":"VLOOKUP(OFFSET($B:$B,,MATCH(AB$4,$B$4:$F$4,0)-1),OFFSET('C. PoC Adj Factor Scoring'!$E$5:$J$282,,MATCH(AB$4,'C. PoC Adj Factor Scoring'!$E$3:$AH$3,0)-1),MATCH(AB$2&\" Score\",'C. PoC Adj Factor Scoring'!$E$4:$J$4,0),TRUE)","v":1},{"$f":"VLOOKUP(OFFSET($B:$B,,MATCH(AC$4,$B$4:$F$4,0)-1),OFFSET('C. PoC Adj Factor Scoring'!$E$5:$J$282,,MATCH(AC$4,'C. PoC Adj Factor Scoring'!$E$3:$AH$3,0)-1),MATCH(AC$2&\" Score\",'C. PoC Adj Factor Scoring'!$E$4:$J$4,0),TRUE)","v":1},{"$f":"VLOOKUP(OFFSET($B:$B,,MATCH(AD$4,$B$4:$F$4,0)-1),OFFSET('C. PoC Adj Factor Scoring'!$E$5:$J$282,,MATCH(AD$4,'C. PoC Adj Factor Scoring'!$E$3:$AH$3,0)-1),MATCH(AD$2&\" Score\",'C. PoC Adj Factor Scoring'!$E$4:$J$4,0),TRUE)","v":1},{"$f":"VLOOKUP(OFFSET($B:$B,,MATCH(AE$4,$B$4:$F$4,0)-1),OFFSET('C. PoC Adj Factor Scoring'!$E$5:$J$282,,MATCH(AE$4,'C. PoC Adj Factor Scoring'!$E$3:$AH$3,0)-1),MATCH(AE$2&\" Score\",'C. PoC Adj Factor Scoring'!$E$4:$J$4,0),TRUE)","v":1}]
[{"$f":"'A. Population Info'!A290","v":1000367704},{"$f":"'A. Population Info'!L290","v":"OIL"},{"$f":"'A. Population Info'!M290","v":0},{"$f":"'A. Population Info'!N290","v":0},{"$f":"'A. Population Info'!O290","v":0},{"$f":"'A. Population Info'!P290","v":0},{"$f":"VLOOKUP(OFFSET($B:$B,,MATCH(G$4,$B$4:$F$4,0)-1),OFFSET('C. PoC Adj Factor Scoring'!$E$5:$J$282,,MATCH(G$4,'C. PoC Adj Factor Scoring'!$E$3:$AH$3,0)-1),MATCH(G$2&\" Score\",'C. PoC Adj Factor Scoring'!$E$4:$J$4,0),TRUE)","v":4},{"$f":"VLOOKUP(OFFSET($B:$B,,MATCH(H$4,$B$4:$F$4,0)-1),OFFSET('C. PoC Adj Factor Scoring'!$E$5:$J$282,,MATCH(H$4,'C. PoC Adj Factor Scoring'!$E$3:$AH$3,0)-1),MATCH(H$2&\" Score\",'C. PoC Adj Factor Scoring'!$E$4:$J$4,0),TRUE)","v":1},{"$f":"VLOOKUP(OFFSET($B:$B,,MATCH(I$4,$B$4:$F$4,0)-1),OFFSET('C. PoC Adj Factor Scoring'!$E$5:$J$282,,MATCH(I$4,'C. PoC Adj Factor Scoring'!$E$3:$AH$3,0)-1),MATCH(I$2&\" Score\",'C. PoC Adj Factor Scoring'!$E$4:$J$4,0),TRUE)","v":1},{"$f":"VLOOKUP(OFFSET($B:$B,,MATCH(J$4,$B$4:$F$4,0)-1),OFFSET('C. PoC Adj Factor Scoring'!$E$5:$J$282,,MATCH(J$4,'C. PoC Adj Factor Scoring'!$E$3:$AH$3,0)-1),MATCH(J$2&\" Score\",'C. PoC Adj Factor Scoring'!$E$4:$J$4,0),TRUE)","v":1},{"$f":"VLOOKUP(OFFSET($B:$B,,MATCH(K$4,$B$4:$F$4,0)-1),OFFSET('C. PoC Adj Factor Scoring'!$E$5:$J$282,,MATCH(K$4,'C. PoC Adj Factor Scoring'!$E$3:$AH$3,0)-1),MATCH(K$2&\" Score\",'C. PoC Adj Factor Scoring'!$E$4:$J$4,0),TRUE)","v":1},{"$f":"VLOOKUP(OFFSET($B:$B,,MATCH(L$4,$B$4:$F$4,0)-1),OFFSET('C. PoC Adj Factor Scoring'!$E$5:$J$282,,MATCH(L$4,'C. PoC Adj Factor Scoring'!$E$3:$AH$3,0)-1),MATCH(L$2&\" Score\",'C. PoC Adj Factor Scoring'!$E$4:$J$4,0),TRUE)","v":1},{"$f":"VLOOKUP(OFFSET($B:$B,,MATCH(M$4,$B$4:$F$4,0)-1),OFFSET('C. PoC Adj Factor Scoring'!$E$5:$J$282,,MATCH(M$4,'C. PoC Adj Factor Scoring'!$E$3:$AH$3,0)-1),MATCH(M$2&\" Score\",'C. PoC Adj Factor Scoring'!$E$4:$J$4,0),TRUE)","v":1},{"$f":"VLOOKUP(OFFSET($B:$B,,MATCH(N$4,$B$4:$F$4,0)-1),OFFSET('C. PoC Adj Factor Scoring'!$E$5:$J$282,,MATCH(N$4,'C. PoC Adj Factor Scoring'!$E$3:$AH$3,0)-1),MATCH(N$2&\" Score\",'C. PoC Adj Factor Scoring'!$E$4:$J$4,0),TRUE)","v":1},{"$f":"VLOOKUP(OFFSET($B:$B,,MATCH(O$4,$B$4:$F$4,0)-1),OFFSET('C. PoC Adj Factor Scoring'!$E$5:$J$282,,MATCH(O$4,'C. PoC Adj Factor Scoring'!$E$3:$AH$3,0)-1),MATCH(O$2&\" Score\",'C. PoC Adj Factor Scoring'!$E$4:$J$4,0),TRUE)","v":1},{"$f":"VLOOKUP(OFFSET($B:$B,,MATCH(P$4,$B$4:$F$4,0)-1),OFFSET('C. PoC Adj Factor Scoring'!$E$5:$J$282,,MATCH(P$4,'C. PoC Adj Factor Scoring'!$E$3:$AH$3,0)-1),MATCH(P$2&\" Score\",'C. PoC Adj Factor Scoring'!$E$4:$J$4,0),TRUE)","v":1},{"$f":"VLOOKUP(OFFSET($B:$B,,MATCH(Q$4,$B$4:$F$4,0)-1),OFFSET('C. PoC Adj Factor Scoring'!$E$5:$J$282,,MATCH(Q$4,'C. PoC Adj Factor Scoring'!$E$3:$AH$3,0)-1),MATCH(Q$2&\" Score\",'C. PoC Adj Factor Scoring'!$E$4:$J$4,0),TRUE)","v":1},{"$f":"VLOOKUP(OFFSET($B:$B,,MATCH(R$4,$B$4:$F$4,0)-1),OFFSET('C. PoC Adj Factor Scoring'!$E$5:$J$282,,MATCH(R$4,'C. PoC Adj Factor Scoring'!$E$3:$AH$3,0)-1),MATCH(R$2&\" Score\",'C. PoC Adj Factor Scoring'!$E$4:$J$4,0),TRUE)","v":1},{"$f":"VLOOKUP(OFFSET($B:$B,,MATCH(S$4,$B$4:$F$4,0)-1),OFFSET('C. PoC Adj Factor Scoring'!$E$5:$J$282,,MATCH(S$4,'C. PoC Adj Factor Scoring'!$E$3:$AH$3,0)-1),MATCH(S$2&\" Score\",'C. PoC Adj Factor Scoring'!$E$4:$J$4,0),TRUE)","v":1},{"$f":"VLOOKUP(OFFSET($B:$B,,MATCH(T$4,$B$4:$F$4,0)-1),OFFSET('C. PoC Adj Factor Scoring'!$E$5:$J$282,,MATCH(T$4,'C. PoC Adj Factor Scoring'!$E$3:$AH$3,0)-1),MATCH(T$2&\" Score\",'C. PoC Adj Factor Scoring'!$E$4:$J$4,0),TRUE)","v":1},{"$f":"VLOOKUP(OFFSET($B:$B,,MATCH(U$4,$B$4:$F$4,0)-1),OFFSET('C. PoC Adj Factor Scoring'!$E$5:$J$282,,MATCH(U$4,'C. PoC Adj Factor Scoring'!$E$3:$AH$3,0)-1),MATCH(U$2&\" Score\",'C. PoC Adj Factor Scoring'!$E$4:$J$4,0),TRUE)","v":1},{"$f":"VLOOKUP(OFFSET($B:$B,,MATCH(V$4,$B$4:$F$4,0)-1),OFFSET('C. PoC Adj Factor Scoring'!$E$5:$J$282,,MATCH(V$4,'C. PoC Adj Factor Scoring'!$E$3:$AH$3,0)-1),MATCH(V$2&\" Score\",'C. PoC Adj Factor Scoring'!$E$4:$J$4,0),TRUE)","v":1},{"$f":"VLOOKUP(OFFSET($B:$B,,MATCH(W$4,$B$4:$F$4,0)-1),OFFSET('C. PoC Adj Factor Scoring'!$E$5:$J$282,,MATCH(W$4,'C. PoC Adj Factor Scoring'!$E$3:$AH$3,0)-1),MATCH(W$2&\" Score\",'C. PoC Adj Factor Scoring'!$E$4:$J$4,0),TRUE)","v":1},{"$f":"VLOOKUP(OFFSET($B:$B,,MATCH(X$4,$B$4:$F$4,0)-1),OFFSET('C. PoC Adj Factor Scoring'!$E$5:$J$282,,MATCH(X$4,'C. PoC Adj Factor Scoring'!$E$3:$AH$3,0)-1),MATCH(X$2&\" Score\",'C. PoC Adj Factor Scoring'!$E$4:$J$4,0),TRUE)","v":1},{"$f":"VLOOKUP(OFFSET($B:$B,,MATCH(Y$4,$B$4:$F$4,0)-1),OFFSET('C. PoC Adj Factor Scoring'!$E$5:$J$282,,MATCH(Y$4,'C. PoC Adj Factor Scoring'!$E$3:$AH$3,0)-1),MATCH(Y$2&\" Score\",'C. PoC Adj Factor Scoring'!$E$4:$J$4,0),TRUE)","v":1},{"$f":"VLOOKUP(OFFSET($B:$B,,MATCH(Z$4,$B$4:$F$4,0)-1),OFFSET('C. PoC Adj Factor Scoring'!$E$5:$J$282,,MATCH(Z$4,'C. PoC Adj Factor Scoring'!$E$3:$AH$3,0)-1),MATCH(Z$2&\" Score\",'C. PoC Adj Factor Scoring'!$E$4:$J$4,0),TRUE)","v":1},{"$f":"VLOOKUP(OFFSET($B:$B,,MATCH(AA$4,$B$4:$F$4,0)-1),OFFSET('C. PoC Adj Factor Scoring'!$E$5:$J$282,,MATCH(AA$4,'C. PoC Adj Factor Scoring'!$E$3:$AH$3,0)-1),MATCH(AA$2&\" Score\",'C. PoC Adj Factor Scoring'!$E$4:$J$4,0),TRUE)","v":3},{"$f":"VLOOKUP(OFFSET($B:$B,,MATCH(AB$4,$B$4:$F$4,0)-1),OFFSET('C. PoC Adj Factor Scoring'!$E$5:$J$282,,MATCH(AB$4,'C. PoC Adj Factor Scoring'!$E$3:$AH$3,0)-1),MATCH(AB$2&\" Score\",'C. PoC Adj Factor Scoring'!$E$4:$J$4,0),TRUE)","v":1},{"$f":"VLOOKUP(OFFSET($B:$B,,MATCH(AC$4,$B$4:$F$4,0)-1),OFFSET('C. PoC Adj Factor Scoring'!$E$5:$J$282,,MATCH(AC$4,'C. PoC Adj Factor Scoring'!$E$3:$AH$3,0)-1),MATCH(AC$2&\" Score\",'C. PoC Adj Factor Scoring'!$E$4:$J$4,0),TRUE)","v":1},{"$f":"VLOOKUP(OFFSET($B:$B,,MATCH(AD$4,$B$4:$F$4,0)-1),OFFSET('C. PoC Adj Factor Scoring'!$E$5:$J$282,,MATCH(AD$4,'C. PoC Adj Factor Scoring'!$E$3:$AH$3,0)-1),MATCH(AD$2&\" Score\",'C. PoC Adj Factor Scoring'!$E$4:$J$4,0),TRUE)","v":1},{"$f":"VLOOKUP(OFFSET($B:$B,,MATCH(AE$4,$B$4:$F$4,0)-1),OFFSET('C. PoC Adj Factor Scoring'!$E$5:$J$282,,MATCH(AE$4,'C. PoC Adj Factor Scoring'!$E$3:$AH$3,0)-1),MATCH(AE$2&\" Score\",'C. PoC Adj Factor Scoring'!$E$4:$J$4,0),TRUE)","v":1}]
[{"$f":"'A. Population Info'!A291","v":1000370022},{"$f":"'A. Population Info'!L291","v":"OIL"},{"$f":"'A. Population Info'!M291","v":0},{"$f":"'A. Population Info'!N291","v":0},{"$f":"'A. Population Info'!O291","v":0},{"$f":"'A. Population Info'!P291","v":0},{"$f":"VLOOKUP(OFFSET($B:$B,,MATCH(G$4,$B$4:$F$4,0)-1),OFFSET('C. PoC Adj Factor Scoring'!$E$5:$J$282,,MATCH(G$4,'C. PoC Adj Factor Scoring'!$E$3:$AH$3,0)-1),MATCH(G$2&\" Score\",'C. PoC Adj Factor Scoring'!$E$4:$J$4,0),TRUE)","v":4},{"$f":"VLOOKUP(OFFSET($B:$B,,MATCH(H$4,$B$4:$F$4,0)-1),OFFSET('C. PoC Adj Factor Scoring'!$E$5:$J$282,,MATCH(H$4,'C. PoC Adj Factor Scoring'!$E$3:$AH$3,0)-1),MATCH(H$2&\" Score\",'C. PoC Adj Factor Scoring'!$E$4:$J$4,0),TRUE)","v":1},{"$f":"VLOOKUP(OFFSET($B:$B,,MATCH(I$4,$B$4:$F$4,0)-1),OFFSET('C. PoC Adj Factor Scoring'!$E$5:$J$282,,MATCH(I$4,'C. PoC Adj Factor Scoring'!$E$3:$AH$3,0)-1),MATCH(I$2&\" Score\",'C. PoC Adj Factor Scoring'!$E$4:$J$4,0),TRUE)","v":1},{"$f":"VLOOKUP(OFFSET($B:$B,,MATCH(J$4,$B$4:$F$4,0)-1),OFFSET('C. PoC Adj Factor Scoring'!$E$5:$J$282,,MATCH(J$4,'C. PoC Adj Factor Scoring'!$E$3:$AH$3,0)-1),MATCH(J$2&\" Score\",'C. PoC Adj Factor Scoring'!$E$4:$J$4,0),TRUE)","v":1},{"$f":"VLOOKUP(OFFSET($B:$B,,MATCH(K$4,$B$4:$F$4,0)-1),OFFSET('C. PoC Adj Factor Scoring'!$E$5:$J$282,,MATCH(K$4,'C. PoC Adj Factor Scoring'!$E$3:$AH$3,0)-1),MATCH(K$2&\" Score\",'C. PoC Adj Factor Scoring'!$E$4:$J$4,0),TRUE)","v":1},{"$f":"VLOOKUP(OFFSET($B:$B,,MATCH(L$4,$B$4:$F$4,0)-1),OFFSET('C. PoC Adj Factor Scoring'!$E$5:$J$282,,MATCH(L$4,'C. PoC Adj Factor Scoring'!$E$3:$AH$3,0)-1),MATCH(L$2&\" Score\",'C. PoC Adj Factor Scoring'!$E$4:$J$4,0),TRUE)","v":1},{"$f":"VLOOKUP(OFFSET($B:$B,,MATCH(M$4,$B$4:$F$4,0)-1),OFFSET('C. PoC Adj Factor Scoring'!$E$5:$J$282,,MATCH(M$4,'C. PoC Adj Factor Scoring'!$E$3:$AH$3,0)-1),MATCH(M$2&\" Score\",'C. PoC Adj Factor Scoring'!$E$4:$J$4,0),TRUE)","v":1},{"$f":"VLOOKUP(OFFSET($B:$B,,MATCH(N$4,$B$4:$F$4,0)-1),OFFSET('C. PoC Adj Factor Scoring'!$E$5:$J$282,,MATCH(N$4,'C. PoC Adj Factor Scoring'!$E$3:$AH$3,0)-1),MATCH(N$2&\" Score\",'C. PoC Adj Factor Scoring'!$E$4:$J$4,0),TRUE)","v":1},{"$f":"VLOOKUP(OFFSET($B:$B,,MATCH(O$4,$B$4:$F$4,0)-1),OFFSET('C. PoC Adj Factor Scoring'!$E$5:$J$282,,MATCH(O$4,'C. PoC Adj Factor Scoring'!$E$3:$AH$3,0)-1),MATCH(O$2&\" Score\",'C. PoC Adj Factor Scoring'!$E$4:$J$4,0),TRUE)","v":1},{"$f":"VLOOKUP(OFFSET($B:$B,,MATCH(P$4,$B$4:$F$4,0)-1),OFFSET('C. PoC Adj Factor Scoring'!$E$5:$J$282,,MATCH(P$4,'C. PoC Adj Factor Scoring'!$E$3:$AH$3,0)-1),MATCH(P$2&\" Score\",'C. PoC Adj Factor Scoring'!$E$4:$J$4,0),TRUE)","v":1},{"$f":"VLOOKUP(OFFSET($B:$B,,MATCH(Q$4,$B$4:$F$4,0)-1),OFFSET('C. PoC Adj Factor Scoring'!$E$5:$J$282,,MATCH(Q$4,'C. PoC Adj Factor Scoring'!$E$3:$AH$3,0)-1),MATCH(Q$2&\" Score\",'C. PoC Adj Factor Scoring'!$E$4:$J$4,0),TRUE)","v":1},{"$f":"VLOOKUP(OFFSET($B:$B,,MATCH(R$4,$B$4:$F$4,0)-1),OFFSET('C. PoC Adj Factor Scoring'!$E$5:$J$282,,MATCH(R$4,'C. PoC Adj Factor Scoring'!$E$3:$AH$3,0)-1),MATCH(R$2&\" Score\",'C. PoC Adj Factor Scoring'!$E$4:$J$4,0),TRUE)","v":1},{"$f":"VLOOKUP(OFFSET($B:$B,,MATCH(S$4,$B$4:$F$4,0)-1),OFFSET('C. PoC Adj Factor Scoring'!$E$5:$J$282,,MATCH(S$4,'C. PoC Adj Factor Scoring'!$E$3:$AH$3,0)-1),MATCH(S$2&\" Score\",'C. PoC Adj Factor Scoring'!$E$4:$J$4,0),TRUE)","v":1},{"$f":"VLOOKUP(OFFSET($B:$B,,MATCH(T$4,$B$4:$F$4,0)-1),OFFSET('C. PoC Adj Factor Scoring'!$E$5:$J$282,,MATCH(T$4,'C. PoC Adj Factor Scoring'!$E$3:$AH$3,0)-1),MATCH(T$2&\" Score\",'C. PoC Adj Factor Scoring'!$E$4:$J$4,0),TRUE)","v":1},{"$f":"VLOOKUP(OFFSET($B:$B,,MATCH(U$4,$B$4:$F$4,0)-1),OFFSET('C. PoC Adj Factor Scoring'!$E$5:$J$282,,MATCH(U$4,'C. PoC Adj Factor Scoring'!$E$3:$AH$3,0)-1),MATCH(U$2&\" Score\",'C. PoC Adj Factor Scoring'!$E$4:$J$4,0),TRUE)","v":1},{"$f":"VLOOKUP(OFFSET($B:$B,,MATCH(V$4,$B$4:$F$4,0)-1),OFFSET('C. PoC Adj Factor Scoring'!$E$5:$J$282,,MATCH(V$4,'C. PoC Adj Factor Scoring'!$E$3:$AH$3,0)-1),MATCH(V$2&\" Score\",'C. PoC Adj Factor Scoring'!$E$4:$J$4,0),TRUE)","v":1},{"$f":"VLOOKUP(OFFSET($B:$B,,MATCH(W$4,$B$4:$F$4,0)-1),OFFSET('C. PoC Adj Factor Scoring'!$E$5:$J$282,,MATCH(W$4,'C. PoC Adj Factor Scoring'!$E$3:$AH$3,0)-1),MATCH(W$2&\" Score\",'C. PoC Adj Factor Scoring'!$E$4:$J$4,0),TRUE)","v":1},{"$f":"VLOOKUP(OFFSET($B:$B,,MATCH(X$4,$B$4:$F$4,0)-1),OFFSET('C. PoC Adj Factor Scoring'!$E$5:$J$282,,MATCH(X$4,'C. PoC Adj Factor Scoring'!$E$3:$AH$3,0)-1),MATCH(X$2&\" Score\",'C. PoC Adj Factor Scoring'!$E$4:$J$4,0),TRUE)","v":1},{"$f":"VLOOKUP(OFFSET($B:$B,,MATCH(Y$4,$B$4:$F$4,0)-1),OFFSET('C. PoC Adj Factor Scoring'!$E$5:$J$282,,MATCH(Y$4,'C. PoC Adj Factor Scoring'!$E$3:$AH$3,0)-1),MATCH(Y$2&\" Score\",'C. PoC Adj Factor Scoring'!$E$4:$J$4,0),TRUE)","v":1},{"$f":"VLOOKUP(OFFSET($B:$B,,MATCH(Z$4,$B$4:$F$4,0)-1),OFFSET('C. PoC Adj Factor Scoring'!$E$5:$J$282,,MATCH(Z$4,'C. PoC Adj Factor Scoring'!$E$3:$AH$3,0)-1),MATCH(Z$2&\" Score\",'C. PoC Adj Factor Scoring'!$E$4:$J$4,0),TRUE)","v":1},{"$f":"VLOOKUP(OFFSET($B:$B,,MATCH(AA$4,$B$4:$F$4,0)-1),OFFSET('C. PoC Adj Factor Scoring'!$E$5:$J$282,,MATCH(AA$4,'C. PoC Adj Factor Scoring'!$E$3:$AH$3,0)-1),MATCH(AA$2&\" Score\",'C. PoC Adj Factor Scoring'!$E$4:$J$4,0),TRUE)","v":3},{"$f":"VLOOKUP(OFFSET($B:$B,,MATCH(AB$4,$B$4:$F$4,0)-1),OFFSET('C. PoC Adj Factor Scoring'!$E$5:$J$282,,MATCH(AB$4,'C. PoC Adj Factor Scoring'!$E$3:$AH$3,0)-1),MATCH(AB$2&\" Score\",'C. PoC Adj Factor Scoring'!$E$4:$J$4,0),TRUE)","v":1},{"$f":"VLOOKUP(OFFSET($B:$B,,MATCH(AC$4,$B$4:$F$4,0)-1),OFFSET('C. PoC Adj Factor Scoring'!$E$5:$J$282,,MATCH(AC$4,'C. PoC Adj Factor Scoring'!$E$3:$AH$3,0)-1),MATCH(AC$2&\" Score\",'C. PoC Adj Factor Scoring'!$E$4:$J$4,0),TRUE)","v":1},{"$f":"VLOOKUP(OFFSET($B:$B,,MATCH(AD$4,$B$4:$F$4,0)-1),OFFSET('C. PoC Adj Factor Scoring'!$E$5:$J$282,,MATCH(AD$4,'C. PoC Adj Factor Scoring'!$E$3:$AH$3,0)-1),MATCH(AD$2&\" Score\",'C. PoC Adj Factor Scoring'!$E$4:$J$4,0),TRUE)","v":1},{"$f":"VLOOKUP(OFFSET($B:$B,,MATCH(AE$4,$B$4:$F$4,0)-1),OFFSET('C. PoC Adj Factor Scoring'!$E$5:$J$282,,MATCH(AE$4,'C. PoC Adj Factor Scoring'!$E$3:$AH$3,0)-1),MATCH(AE$2&\" Score\",'C. PoC Adj Factor Scoring'!$E$4:$J$4,0),TRUE)","v":1}]
[{"$f":"'A. Population Info'!A292","v":1000370112},{"$f":"'A. Population Info'!L292","v":"OIL"},{"$f":"'A. Population Info'!M292","v":0},{"$f":"'A. Population Info'!N292","v":0},{"$f":"'A. Population Info'!O292","v":0},{"$f":"'A. Population Info'!P292","v":0},{"$f":"VLOOKUP(OFFSET($B:$B,,MATCH(G$4,$B$4:$F$4,0)-1),OFFSET('C. PoC Adj Factor Scoring'!$E$5:$J$282,,MATCH(G$4,'C. PoC Adj Factor Scoring'!$E$3:$AH$3,0)-1),MATCH(G$2&\" Score\",'C. PoC Adj Factor Scoring'!$E$4:$J$4,0),TRUE)","v":4},{"$f":"VLOOKUP(OFFSET($B:$B,,MATCH(H$4,$B$4:$F$4,0)-1),OFFSET('C. PoC Adj Factor Scoring'!$E$5:$J$282,,MATCH(H$4,'C. PoC Adj Factor Scoring'!$E$3:$AH$3,0)-1),MATCH(H$2&\" Score\",'C. PoC Adj Factor Scoring'!$E$4:$J$4,0),TRUE)","v":1},{"$f":"VLOOKUP(OFFSET($B:$B,,MATCH(I$4,$B$4:$F$4,0)-1),OFFSET('C. PoC Adj Factor Scoring'!$E$5:$J$282,,MATCH(I$4,'C. PoC Adj Factor Scoring'!$E$3:$AH$3,0)-1),MATCH(I$2&\" Score\",'C. PoC Adj Factor Scoring'!$E$4:$J$4,0),TRUE)","v":1},{"$f":"VLOOKUP(OFFSET($B:$B,,MATCH(J$4,$B$4:$F$4,0)-1),OFFSET('C. PoC Adj Factor Scoring'!$E$5:$J$282,,MATCH(J$4,'C. PoC Adj Factor Scoring'!$E$3:$AH$3,0)-1),MATCH(J$2&\" Score\",'C. PoC Adj Factor Scoring'!$E$4:$J$4,0),TRUE)","v":1},{"$f":"VLOOKUP(OFFSET($B:$B,,MATCH(K$4,$B$4:$F$4,0)-1),OFFSET('C. PoC Adj Factor Scoring'!$E$5:$J$282,,MATCH(K$4,'C. PoC Adj Factor Scoring'!$E$3:$AH$3,0)-1),MATCH(K$2&\" Score\",'C. PoC Adj Factor Scoring'!$E$4:$J$4,0),TRUE)","v":1},{"$f":"VLOOKUP(OFFSET($B:$B,,MATCH(L$4,$B$4:$F$4,0)-1),OFFSET('C. PoC Adj Factor Scoring'!$E$5:$J$282,,MATCH(L$4,'C. PoC Adj Factor Scoring'!$E$3:$AH$3,0)-1),MATCH(L$2&\" Score\",'C. PoC Adj Factor Scoring'!$E$4:$J$4,0),TRUE)","v":1},{"$f":"VLOOKUP(OFFSET($B:$B,,MATCH(M$4,$B$4:$F$4,0)-1),OFFSET('C. PoC Adj Factor Scoring'!$E$5:$J$282,,MATCH(M$4,'C. PoC Adj Factor Scoring'!$E$3:$AH$3,0)-1),MATCH(M$2&\" Score\",'C. PoC Adj Factor Scoring'!$E$4:$J$4,0),TRUE)","v":1},{"$f":"VLOOKUP(OFFSET($B:$B,,MATCH(N$4,$B$4:$F$4,0)-1),OFFSET('C. PoC Adj Factor Scoring'!$E$5:$J$282,,MATCH(N$4,'C. PoC Adj Factor Scoring'!$E$3:$AH$3,0)-1),MATCH(N$2&\" Score\",'C. PoC Adj Factor Scoring'!$E$4:$J$4,0),TRUE)","v":1},{"$f":"VLOOKUP(OFFSET($B:$B,,MATCH(O$4,$B$4:$F$4,0)-1),OFFSET('C. PoC Adj Factor Scoring'!$E$5:$J$282,,MATCH(O$4,'C. PoC Adj Factor Scoring'!$E$3:$AH$3,0)-1),MATCH(O$2&\" Score\",'C. PoC Adj Factor Scoring'!$E$4:$J$4,0),TRUE)","v":1},{"$f":"VLOOKUP(OFFSET($B:$B,,MATCH(P$4,$B$4:$F$4,0)-1),OFFSET('C. PoC Adj Factor Scoring'!$E$5:$J$282,,MATCH(P$4,'C. PoC Adj Factor Scoring'!$E$3:$AH$3,0)-1),MATCH(P$2&\" Score\",'C. PoC Adj Factor Scoring'!$E$4:$J$4,0),TRUE)","v":1},{"$f":"VLOOKUP(OFFSET($B:$B,,MATCH(Q$4,$B$4:$F$4,0)-1),OFFSET('C. PoC Adj Factor Scoring'!$E$5:$J$282,,MATCH(Q$4,'C. PoC Adj Factor Scoring'!$E$3:$AH$3,0)-1),MATCH(Q$2&\" Score\",'C. PoC Adj Factor Scoring'!$E$4:$J$4,0),TRUE)","v":1},{"$f":"VLOOKUP(OFFSET($B:$B,,MATCH(R$4,$B$4:$F$4,0)-1),OFFSET('C. PoC Adj Factor Scoring'!$E$5:$J$282,,MATCH(R$4,'C. PoC Adj Factor Scoring'!$E$3:$AH$3,0)-1),MATCH(R$2&\" Score\",'C. PoC Adj Factor Scoring'!$E$4:$J$4,0),TRUE)","v":1},{"$f":"VLOOKUP(OFFSET($B:$B,,MATCH(S$4,$B$4:$F$4,0)-1),OFFSET('C. PoC Adj Factor Scoring'!$E$5:$J$282,,MATCH(S$4,'C. PoC Adj Factor Scoring'!$E$3:$AH$3,0)-1),MATCH(S$2&\" Score\",'C. PoC Adj Factor Scoring'!$E$4:$J$4,0),TRUE)","v":1},{"$f":"VLOOKUP(OFFSET($B:$B,,MATCH(T$4,$B$4:$F$4,0)-1),OFFSET('C. PoC Adj Factor Scoring'!$E$5:$J$282,,MATCH(T$4,'C. PoC Adj Factor Scoring'!$E$3:$AH$3,0)-1),MATCH(T$2&\" Score\",'C. PoC Adj Factor Scoring'!$E$4:$J$4,0),TRUE)","v":1},{"$f":"VLOOKUP(OFFSET($B:$B,,MATCH(U$4,$B$4:$F$4,0)-1),OFFSET('C. PoC Adj Factor Scoring'!$E$5:$J$282,,MATCH(U$4,'C. PoC Adj Factor Scoring'!$E$3:$AH$3,0)-1),MATCH(U$2&\" Score\",'C. PoC Adj Factor Scoring'!$E$4:$J$4,0),TRUE)","v":1},{"$f":"VLOOKUP(OFFSET($B:$B,,MATCH(V$4,$B$4:$F$4,0)-1),OFFSET('C. PoC Adj Factor Scoring'!$E$5:$J$282,,MATCH(V$4,'C. PoC Adj Factor Scoring'!$E$3:$AH$3,0)-1),MATCH(V$2&\" Score\",'C. PoC Adj Factor Scoring'!$E$4:$J$4,0),TRUE)","v":1},{"$f":"VLOOKUP(OFFSET($B:$B,,MATCH(W$4,$B$4:$F$4,0)-1),OFFSET('C. PoC Adj Factor Scoring'!$E$5:$J$282,,MATCH(W$4,'C. PoC Adj Factor Scoring'!$E$3:$AH$3,0)-1),MATCH(W$2&\" Score\",'C. PoC Adj Factor Scoring'!$E$4:$J$4,0),TRUE)","v":1},{"$f":"VLOOKUP(OFFSET($B:$B,,MATCH(X$4,$B$4:$F$4,0)-1),OFFSET('C. PoC Adj Factor Scoring'!$E$5:$J$282,,MATCH(X$4,'C. PoC Adj Factor Scoring'!$E$3:$AH$3,0)-1),MATCH(X$2&\" Score\",'C. PoC Adj Factor Scoring'!$E$4:$J$4,0),TRUE)","v":1},{"$f":"VLOOKUP(OFFSET($B:$B,,MATCH(Y$4,$B$4:$F$4,0)-1),OFFSET('C. PoC Adj Factor Scoring'!$E$5:$J$282,,MATCH(Y$4,'C. PoC Adj Factor Scoring'!$E$3:$AH$3,0)-1),MATCH(Y$2&\" Score\",'C. PoC Adj Factor Scoring'!$E$4:$J$4,0),TRUE)","v":1},{"$f":"VLOOKUP(OFFSET($B:$B,,MATCH(Z$4,$B$4:$F$4,0)-1),OFFSET('C. PoC Adj Factor Scoring'!$E$5:$J$282,,MATCH(Z$4,'C. PoC Adj Factor Scoring'!$E$3:$AH$3,0)-1),MATCH(Z$2&\" Score\",'C. PoC Adj Factor Scoring'!$E$4:$J$4,0),TRUE)","v":1},{"$f":"VLOOKUP(OFFSET($B:$B,,MATCH(AA$4,$B$4:$F$4,0)-1),OFFSET('C. PoC Adj Factor Scoring'!$E$5:$J$282,,MATCH(AA$4,'C. PoC Adj Factor Scoring'!$E$3:$AH$3,0)-1),MATCH(AA$2&\" Score\",'C. PoC Adj Factor Scoring'!$E$4:$J$4,0),TRUE)","v":3},{"$f":"VLOOKUP(OFFSET($B:$B,,MATCH(AB$4,$B$4:$F$4,0)-1),OFFSET('C. PoC Adj Factor Scoring'!$E$5:$J$282,,MATCH(AB$4,'C. PoC Adj Factor Scoring'!$E$3:$AH$3,0)-1),MATCH(AB$2&\" Score\",'C. PoC Adj Factor Scoring'!$E$4:$J$4,0),TRUE)","v":1},{"$f":"VLOOKUP(OFFSET($B:$B,,MATCH(AC$4,$B$4:$F$4,0)-1),OFFSET('C. PoC Adj Factor Scoring'!$E$5:$J$282,,MATCH(AC$4,'C. PoC Adj Factor Scoring'!$E$3:$AH$3,0)-1),MATCH(AC$2&\" Score\",'C. PoC Adj Factor Scoring'!$E$4:$J$4,0),TRUE)","v":1},{"$f":"VLOOKUP(OFFSET($B:$B,,MATCH(AD$4,$B$4:$F$4,0)-1),OFFSET('C. PoC Adj Factor Scoring'!$E$5:$J$282,,MATCH(AD$4,'C. PoC Adj Factor Scoring'!$E$3:$AH$3,0)-1),MATCH(AD$2&\" Score\",'C. PoC Adj Factor Scoring'!$E$4:$J$4,0),TRUE)","v":1},{"$f":"VLOOKUP(OFFSET($B:$B,,MATCH(AE$4,$B$4:$F$4,0)-1),OFFSET('C. PoC Adj Factor Scoring'!$E$5:$J$282,,MATCH(AE$4,'C. PoC Adj Factor Scoring'!$E$3:$AH$3,0)-1),MATCH(AE$2&\" Score\",'C. PoC Adj Factor Scoring'!$E$4:$J$4,0),TRUE)","v":1}]
[{"$f":"'A. Population Info'!A293","v":1000370140},{"$f":"'A. Population Info'!L293","v":"OIL"},{"$f":"'A. Population Info'!M293","v":0},{"$f":"'A. Population Info'!N293","v":0},{"$f":"'A. Population Info'!O293","v":0},{"$f":"'A. Population Info'!P293","v":0},{"$f":"VLOOKUP(OFFSET($B:$B,,MATCH(G$4,$B$4:$F$4,0)-1),OFFSET('C. PoC Adj Factor Scoring'!$E$5:$J$282,,MATCH(G$4,'C. PoC Adj Factor Scoring'!$E$3:$AH$3,0)-1),MATCH(G$2&\" Score\",'C. PoC Adj Factor Scoring'!$E$4:$J$4,0),TRUE)","v":4},{"$f":"VLOOKUP(OFFSET($B:$B,,MATCH(H$4,$B$4:$F$4,0)-1),OFFSET('C. PoC Adj Factor Scoring'!$E$5:$J$282,,MATCH(H$4,'C. PoC Adj Factor Scoring'!$E$3:$AH$3,0)-1),MATCH(H$2&\" Score\",'C. PoC Adj Factor Scoring'!$E$4:$J$4,0),TRUE)","v":1},{"$f":"VLOOKUP(OFFSET($B:$B,,MATCH(I$4,$B$4:$F$4,0)-1),OFFSET('C. PoC Adj Factor Scoring'!$E$5:$J$282,,MATCH(I$4,'C. PoC Adj Factor Scoring'!$E$3:$AH$3,0)-1),MATCH(I$2&\" Score\",'C. PoC Adj Factor Scoring'!$E$4:$J$4,0),TRUE)","v":1},{"$f":"VLOOKUP(OFFSET($B:$B,,MATCH(J$4,$B$4:$F$4,0)-1),OFFSET('C. PoC Adj Factor Scoring'!$E$5:$J$282,,MATCH(J$4,'C. PoC Adj Factor Scoring'!$E$3:$AH$3,0)-1),MATCH(J$2&\" Score\",'C. PoC Adj Factor Scoring'!$E$4:$J$4,0),TRUE)","v":1},{"$f":"VLOOKUP(OFFSET($B:$B,,MATCH(K$4,$B$4:$F$4,0)-1),OFFSET('C. PoC Adj Factor Scoring'!$E$5:$J$282,,MATCH(K$4,'C. PoC Adj Factor Scoring'!$E$3:$AH$3,0)-1),MATCH(K$2&\" Score\",'C. PoC Adj Factor Scoring'!$E$4:$J$4,0),TRUE)","v":1},{"$f":"VLOOKUP(OFFSET($B:$B,,MATCH(L$4,$B$4:$F$4,0)-1),OFFSET('C. PoC Adj Factor Scoring'!$E$5:$J$282,,MATCH(L$4,'C. PoC Adj Factor Scoring'!$E$3:$AH$3,0)-1),MATCH(L$2&\" Score\",'C. PoC Adj Factor Scoring'!$E$4:$J$4,0),TRUE)","v":1},{"$f":"VLOOKUP(OFFSET($B:$B,,MATCH(M$4,$B$4:$F$4,0)-1),OFFSET('C. PoC Adj Factor Scoring'!$E$5:$J$282,,MATCH(M$4,'C. PoC Adj Factor Scoring'!$E$3:$AH$3,0)-1),MATCH(M$2&\" Score\",'C. PoC Adj Factor Scoring'!$E$4:$J$4,0),TRUE)","v":1},{"$f":"VLOOKUP(OFFSET($B:$B,,MATCH(N$4,$B$4:$F$4,0)-1),OFFSET('C. PoC Adj Factor Scoring'!$E$5:$J$282,,MATCH(N$4,'C. PoC Adj Factor Scoring'!$E$3:$AH$3,0)-1),MATCH(N$2&\" Score\",'C. PoC Adj Factor Scoring'!$E$4:$J$4,0),TRUE)","v":1},{"$f":"VLOOKUP(OFFSET($B:$B,,MATCH(O$4,$B$4:$F$4,0)-1),OFFSET('C. PoC Adj Factor Scoring'!$E$5:$J$282,,MATCH(O$4,'C. PoC Adj Factor Scoring'!$E$3:$AH$3,0)-1),MATCH(O$2&\" Score\",'C. PoC Adj Factor Scoring'!$E$4:$J$4,0),TRUE)","v":1},{"$f":"VLOOKUP(OFFSET($B:$B,,MATCH(P$4,$B$4:$F$4,0)-1),OFFSET('C. PoC Adj Factor Scoring'!$E$5:$J$282,,MATCH(P$4,'C. PoC Adj Factor Scoring'!$E$3:$AH$3,0)-1),MATCH(P$2&\" Score\",'C. PoC Adj Factor Scoring'!$E$4:$J$4,0),TRUE)","v":1},{"$f":"VLOOKUP(OFFSET($B:$B,,MATCH(Q$4,$B$4:$F$4,0)-1),OFFSET('C. PoC Adj Factor Scoring'!$E$5:$J$282,,MATCH(Q$4,'C. PoC Adj Factor Scoring'!$E$3:$AH$3,0)-1),MATCH(Q$2&\" Score\",'C. PoC Adj Factor Scoring'!$E$4:$J$4,0),TRUE)","v":1},{"$f":"VLOOKUP(OFFSET($B:$B,,MATCH(R$4,$B$4:$F$4,0)-1),OFFSET('C. PoC Adj Factor Scoring'!$E$5:$J$282,,MATCH(R$4,'C. PoC Adj Factor Scoring'!$E$3:$AH$3,0)-1),MATCH(R$2&\" Score\",'C. PoC Adj Factor Scoring'!$E$4:$J$4,0),TRUE)","v":1},{"$f":"VLOOKUP(OFFSET($B:$B,,MATCH(S$4,$B$4:$F$4,0)-1),OFFSET('C. PoC Adj Factor Scoring'!$E$5:$J$282,,MATCH(S$4,'C. PoC Adj Factor Scoring'!$E$3:$AH$3,0)-1),MATCH(S$2&\" Score\",'C. PoC Adj Factor Scoring'!$E$4:$J$4,0),TRUE)","v":1},{"$f":"VLOOKUP(OFFSET($B:$B,,MATCH(T$4,$B$4:$F$4,0)-1),OFFSET('C. PoC Adj Factor Scoring'!$E$5:$J$282,,MATCH(T$4,'C. PoC Adj Factor Scoring'!$E$3:$AH$3,0)-1),MATCH(T$2&\" Score\",'C. PoC Adj Factor Scoring'!$E$4:$J$4,0),TRUE)","v":1},{"$f":"VLOOKUP(OFFSET($B:$B,,MATCH(U$4,$B$4:$F$4,0)-1),OFFSET('C. PoC Adj Factor Scoring'!$E$5:$J$282,,MATCH(U$4,'C. PoC Adj Factor Scoring'!$E$3:$AH$3,0)-1),MATCH(U$2&\" Score\",'C. PoC Adj Factor Scoring'!$E$4:$J$4,0),TRUE)","v":1},{"$f":"VLOOKUP(OFFSET($B:$B,,MATCH(V$4,$B$4:$F$4,0)-1),OFFSET('C. PoC Adj Factor Scoring'!$E$5:$J$282,,MATCH(V$4,'C. PoC Adj Factor Scoring'!$E$3:$AH$3,0)-1),MATCH(V$2&\" Score\",'C. PoC Adj Factor Scoring'!$E$4:$J$4,0),TRUE)","v":1},{"$f":"VLOOKUP(OFFSET($B:$B,,MATCH(W$4,$B$4:$F$4,0)-1),OFFSET('C. PoC Adj Factor Scoring'!$E$5:$J$282,,MATCH(W$4,'C. PoC Adj Factor Scoring'!$E$3:$AH$3,0)-1),MATCH(W$2&\" Score\",'C. PoC Adj Factor Scoring'!$E$4:$J$4,0),TRUE)","v":1},{"$f":"VLOOKUP(OFFSET($B:$B,,MATCH(X$4,$B$4:$F$4,0)-1),OFFSET('C. PoC Adj Factor Scoring'!$E$5:$J$282,,MATCH(X$4,'C. PoC Adj Factor Scoring'!$E$3:$AH$3,0)-1),MATCH(X$2&\" Score\",'C. PoC Adj Factor Scoring'!$E$4:$J$4,0),TRUE)","v":1},{"$f":"VLOOKUP(OFFSET($B:$B,,MATCH(Y$4,$B$4:$F$4,0)-1),OFFSET('C. PoC Adj Factor Scoring'!$E$5:$J$282,,MATCH(Y$4,'C. PoC Adj Factor Scoring'!$E$3:$AH$3,0)-1),MATCH(Y$2&\" Score\",'C. PoC Adj Factor Scoring'!$E$4:$J$4,0),TRUE)","v":1},{"$f":"VLOOKUP(OFFSET($B:$B,,MATCH(Z$4,$B$4:$F$4,0)-1),OFFSET('C. PoC Adj Factor Scoring'!$E$5:$J$282,,MATCH(Z$4,'C. PoC Adj Factor Scoring'!$E$3:$AH$3,0)-1),MATCH(Z$2&\" Score\",'C. PoC Adj Factor Scoring'!$E$4:$J$4,0),TRUE)","v":1},{"$f":"VLOOKUP(OFFSET($B:$B,,MATCH(AA$4,$B$4:$F$4,0)-1),OFFSET('C. PoC Adj Factor Scoring'!$E$5:$J$282,,MATCH(AA$4,'C. PoC Adj Factor Scoring'!$E$3:$AH$3,0)-1),MATCH(AA$2&\" Score\",'C. PoC Adj Factor Scoring'!$E$4:$J$4,0),TRUE)","v":3},{"$f":"VLOOKUP(OFFSET($B:$B,,MATCH(AB$4,$B$4:$F$4,0)-1),OFFSET('C. PoC Adj Factor Scoring'!$E$5:$J$282,,MATCH(AB$4,'C. PoC Adj Factor Scoring'!$E$3:$AH$3,0)-1),MATCH(AB$2&\" Score\",'C. PoC Adj Factor Scoring'!$E$4:$J$4,0),TRUE)","v":1},{"$f":"VLOOKUP(OFFSET($B:$B,,MATCH(AC$4,$B$4:$F$4,0)-1),OFFSET('C. PoC Adj Factor Scoring'!$E$5:$J$282,,MATCH(AC$4,'C. PoC Adj Factor Scoring'!$E$3:$AH$3,0)-1),MATCH(AC$2&\" Score\",'C. PoC Adj Factor Scoring'!$E$4:$J$4,0),TRUE)","v":1},{"$f":"VLOOKUP(OFFSET($B:$B,,MATCH(AD$4,$B$4:$F$4,0)-1),OFFSET('C. PoC Adj Factor Scoring'!$E$5:$J$282,,MATCH(AD$4,'C. PoC Adj Factor Scoring'!$E$3:$AH$3,0)-1),MATCH(AD$2&\" Score\",'C. PoC Adj Factor Scoring'!$E$4:$J$4,0),TRUE)","v":1},{"$f":"VLOOKUP(OFFSET($B:$B,,MATCH(AE$4,$B$4:$F$4,0)-1),OFFSET('C. PoC Adj Factor Scoring'!$E$5:$J$282,,MATCH(AE$4,'C. PoC Adj Factor Scoring'!$E$3:$AH$3,0)-1),MATCH(AE$2&\" Score\",'C. PoC Adj Factor Scoring'!$E$4:$J$4,0),TRUE)","v":1}]
[{"$f":"'A. Population Info'!A294","v":1000370197},{"$f":"'A. Population Info'!L294","v":"OIL"},{"$f":"'A. Population Info'!M294","v":0},{"$f":"'A. Population Info'!N294","v":0},{"$f":"'A. Population Info'!O294","v":0},{"$f":"'A. Population Info'!P294","v":0},{"$f":"VLOOKUP(OFFSET($B:$B,,MATCH(G$4,$B$4:$F$4,0)-1),OFFSET('C. PoC Adj Factor Scoring'!$E$5:$J$282,,MATCH(G$4,'C. PoC Adj Factor Scoring'!$E$3:$AH$3,0)-1),MATCH(G$2&\" Score\",'C. PoC Adj Factor Scoring'!$E$4:$J$4,0),TRUE)","v":4},{"$f":"VLOOKUP(OFFSET($B:$B,,MATCH(H$4,$B$4:$F$4,0)-1),OFFSET('C. PoC Adj Factor Scoring'!$E$5:$J$282,,MATCH(H$4,'C. PoC Adj Factor Scoring'!$E$3:$AH$3,0)-1),MATCH(H$2&\" Score\",'C. PoC Adj Factor Scoring'!$E$4:$J$4,0),TRUE)","v":1},{"$f":"VLOOKUP(OFFSET($B:$B,,MATCH(I$4,$B$4:$F$4,0)-1),OFFSET('C. PoC Adj Factor Scoring'!$E$5:$J$282,,MATCH(I$4,'C. PoC Adj Factor Scoring'!$E$3:$AH$3,0)-1),MATCH(I$2&\" Score\",'C. PoC Adj Factor Scoring'!$E$4:$J$4,0),TRUE)","v":1},{"$f":"VLOOKUP(OFFSET($B:$B,,MATCH(J$4,$B$4:$F$4,0)-1),OFFSET('C. PoC Adj Factor Scoring'!$E$5:$J$282,,MATCH(J$4,'C. PoC Adj Factor Scoring'!$E$3:$AH$3,0)-1),MATCH(J$2&\" Score\",'C. PoC Adj Factor Scoring'!$E$4:$J$4,0),TRUE)","v":1},{"$f":"VLOOKUP(OFFSET($B:$B,,MATCH(K$4,$B$4:$F$4,0)-1),OFFSET('C. PoC Adj Factor Scoring'!$E$5:$J$282,,MATCH(K$4,'C. PoC Adj Factor Scoring'!$E$3:$AH$3,0)-1),MATCH(K$2&\" Score\",'C. PoC Adj Factor Scoring'!$E$4:$J$4,0),TRUE)","v":1},{"$f":"VLOOKUP(OFFSET($B:$B,,MATCH(L$4,$B$4:$F$4,0)-1),OFFSET('C. PoC Adj Factor Scoring'!$E$5:$J$282,,MATCH(L$4,'C. PoC Adj Factor Scoring'!$E$3:$AH$3,0)-1),MATCH(L$2&\" Score\",'C. PoC Adj Factor Scoring'!$E$4:$J$4,0),TRUE)","v":1},{"$f":"VLOOKUP(OFFSET($B:$B,,MATCH(M$4,$B$4:$F$4,0)-1),OFFSET('C. PoC Adj Factor Scoring'!$E$5:$J$282,,MATCH(M$4,'C. PoC Adj Factor Scoring'!$E$3:$AH$3,0)-1),MATCH(M$2&\" Score\",'C. PoC Adj Factor Scoring'!$E$4:$J$4,0),TRUE)","v":1},{"$f":"VLOOKUP(OFFSET($B:$B,,MATCH(N$4,$B$4:$F$4,0)-1),OFFSET('C. PoC Adj Factor Scoring'!$E$5:$J$282,,MATCH(N$4,'C. PoC Adj Factor Scoring'!$E$3:$AH$3,0)-1),MATCH(N$2&\" Score\",'C. PoC Adj Factor Scoring'!$E$4:$J$4,0),TRUE)","v":1},{"$f":"VLOOKUP(OFFSET($B:$B,,MATCH(O$4,$B$4:$F$4,0)-1),OFFSET('C. PoC Adj Factor Scoring'!$E$5:$J$282,,MATCH(O$4,'C. PoC Adj Factor Scoring'!$E$3:$AH$3,0)-1),MATCH(O$2&\" Score\",'C. PoC Adj Factor Scoring'!$E$4:$J$4,0),TRUE)","v":1},{"$f":"VLOOKUP(OFFSET($B:$B,,MATCH(P$4,$B$4:$F$4,0)-1),OFFSET('C. PoC Adj Factor Scoring'!$E$5:$J$282,,MATCH(P$4,'C. PoC Adj Factor Scoring'!$E$3:$AH$3,0)-1),MATCH(P$2&\" Score\",'C. PoC Adj Factor Scoring'!$E$4:$J$4,0),TRUE)","v":1},{"$f":"VLOOKUP(OFFSET($B:$B,,MATCH(Q$4,$B$4:$F$4,0)-1),OFFSET('C. PoC Adj Factor Scoring'!$E$5:$J$282,,MATCH(Q$4,'C. PoC Adj Factor Scoring'!$E$3:$AH$3,0)-1),MATCH(Q$2&\" Score\",'C. PoC Adj Factor Scoring'!$E$4:$J$4,0),TRUE)","v":1},{"$f":"VLOOKUP(OFFSET($B:$B,,MATCH(R$4,$B$4:$F$4,0)-1),OFFSET('C. PoC Adj Factor Scoring'!$E$5:$J$282,,MATCH(R$4,'C. PoC Adj Factor Scoring'!$E$3:$AH$3,0)-1),MATCH(R$2&\" Score\",'C. PoC Adj Factor Scoring'!$E$4:$J$4,0),TRUE)","v":1},{"$f":"VLOOKUP(OFFSET($B:$B,,MATCH(S$4,$B$4:$F$4,0)-1),OFFSET('C. PoC Adj Factor Scoring'!$E$5:$J$282,,MATCH(S$4,'C. PoC Adj Factor Scoring'!$E$3:$AH$3,0)-1),MATCH(S$2&\" Score\",'C. PoC Adj Factor Scoring'!$E$4:$J$4,0),TRUE)","v":1},{"$f":"VLOOKUP(OFFSET($B:$B,,MATCH(T$4,$B$4:$F$4,0)-1),OFFSET('C. PoC Adj Factor Scoring'!$E$5:$J$282,,MATCH(T$4,'C. PoC Adj Factor Scoring'!$E$3:$AH$3,0)-1),MATCH(T$2&\" Score\",'C. PoC Adj Factor Scoring'!$E$4:$J$4,0),TRUE)","v":1},{"$f":"VLOOKUP(OFFSET($B:$B,,MATCH(U$4,$B$4:$F$4,0)-1),OFFSET('C. PoC Adj Factor Scoring'!$E$5:$J$282,,MATCH(U$4,'C. PoC Adj Factor Scoring'!$E$3:$AH$3,0)-1),MATCH(U$2&\" Score\",'C. PoC Adj Factor Scoring'!$E$4:$J$4,0),TRUE)","v":1},{"$f":"VLOOKUP(OFFSET($B:$B,,MATCH(V$4,$B$4:$F$4,0)-1),OFFSET('C. PoC Adj Factor Scoring'!$E$5:$J$282,,MATCH(V$4,'C. PoC Adj Factor Scoring'!$E$3:$AH$3,0)-1),MATCH(V$2&\" Score\",'C. PoC Adj Factor Scoring'!$E$4:$J$4,0),TRUE)","v":1},{"$f":"VLOOKUP(OFFSET($B:$B,,MATCH(W$4,$B$4:$F$4,0)-1),OFFSET('C. PoC Adj Factor Scoring'!$E$5:$J$282,,MATCH(W$4,'C. PoC Adj Factor Scoring'!$E$3:$AH$3,0)-1),MATCH(W$2&\" Score\",'C. PoC Adj Factor Scoring'!$E$4:$J$4,0),TRUE)","v":1},{"$f":"VLOOKUP(OFFSET($B:$B,,MATCH(X$4,$B$4:$F$4,0)-1),OFFSET('C. PoC Adj Factor Scoring'!$E$5:$J$282,,MATCH(X$4,'C. PoC Adj Factor Scoring'!$E$3:$AH$3,0)-1),MATCH(X$2&\" Score\",'C. PoC Adj Factor Scoring'!$E$4:$J$4,0),TRUE)","v":1},{"$f":"VLOOKUP(OFFSET($B:$B,,MATCH(Y$4,$B$4:$F$4,0)-1),OFFSET('C. PoC Adj Factor Scoring'!$E$5:$J$282,,MATCH(Y$4,'C. PoC Adj Factor Scoring'!$E$3:$AH$3,0)-1),MATCH(Y$2&\" Score\",'C. PoC Adj Factor Scoring'!$E$4:$J$4,0),TRUE)","v":1},{"$f":"VLOOKUP(OFFSET($B:$B,,MATCH(Z$4,$B$4:$F$4,0)-1),OFFSET('C. PoC Adj Factor Scoring'!$E$5:$J$282,,MATCH(Z$4,'C. PoC Adj Factor Scoring'!$E$3:$AH$3,0)-1),MATCH(Z$2&\" Score\",'C. PoC Adj Factor Scoring'!$E$4:$J$4,0),TRUE)","v":1},{"$f":"VLOOKUP(OFFSET($B:$B,,MATCH(AA$4,$B$4:$F$4,0)-1),OFFSET('C. PoC Adj Factor Scoring'!$E$5:$J$282,,MATCH(AA$4,'C. PoC Adj Factor Scoring'!$E$3:$AH$3,0)-1),MATCH(AA$2&\" Score\",'C. PoC Adj Factor Scoring'!$E$4:$J$4,0),TRUE)","v":3},{"$f":"VLOOKUP(OFFSET($B:$B,,MATCH(AB$4,$B$4:$F$4,0)-1),OFFSET('C. PoC Adj Factor Scoring'!$E$5:$J$282,,MATCH(AB$4,'C. PoC Adj Factor Scoring'!$E$3:$AH$3,0)-1),MATCH(AB$2&\" Score\",'C. PoC Adj Factor Scoring'!$E$4:$J$4,0),TRUE)","v":1},{"$f":"VLOOKUP(OFFSET($B:$B,,MATCH(AC$4,$B$4:$F$4,0)-1),OFFSET('C. PoC Adj Factor Scoring'!$E$5:$J$282,,MATCH(AC$4,'C. PoC Adj Factor Scoring'!$E$3:$AH$3,0)-1),MATCH(AC$2&\" Score\",'C. PoC Adj Factor Scoring'!$E$4:$J$4,0),TRUE)","v":1},{"$f":"VLOOKUP(OFFSET($B:$B,,MATCH(AD$4,$B$4:$F$4,0)-1),OFFSET('C. PoC Adj Factor Scoring'!$E$5:$J$282,,MATCH(AD$4,'C. PoC Adj Factor Scoring'!$E$3:$AH$3,0)-1),MATCH(AD$2&\" Score\",'C. PoC Adj Factor Scoring'!$E$4:$J$4,0),TRUE)","v":1},{"$f":"VLOOKUP(OFFSET($B:$B,,MATCH(AE$4,$B$4:$F$4,0)-1),OFFSET('C. PoC Adj Factor Scoring'!$E$5:$J$282,,MATCH(AE$4,'C. PoC Adj Factor Scoring'!$E$3:$AH$3,0)-1),MATCH(AE$2&\" Score\",'C. PoC Adj Factor Scoring'!$E$4:$J$4,0),TRUE)","v":1}]
[{"$f":"'A. Population Info'!A295","v":1000370256},{"$f":"'A. Population Info'!L295","v":"OIL"},{"$f":"'A. Population Info'!M295","v":0},{"$f":"'A. Population Info'!N295","v":0},{"$f":"'A. Population Info'!O295","v":0},{"$f":"'A. Population Info'!P295","v":0},{"$f":"VLOOKUP(OFFSET($B:$B,,MATCH(G$4,$B$4:$F$4,0)-1),OFFSET('C. PoC Adj Factor Scoring'!$E$5:$J$282,,MATCH(G$4,'C. PoC Adj Factor Scoring'!$E$3:$AH$3,0)-1),MATCH(G$2&\" Score\",'C. PoC Adj Factor Scoring'!$E$4:$J$4,0),TRUE)","v":4},{"$f":"VLOOKUP(OFFSET($B:$B,,MATCH(H$4,$B$4:$F$4,0)-1),OFFSET('C. PoC Adj Factor Scoring'!$E$5:$J$282,,MATCH(H$4,'C. PoC Adj Factor Scoring'!$E$3:$AH$3,0)-1),MATCH(H$2&\" Score\",'C. PoC Adj Factor Scoring'!$E$4:$J$4,0),TRUE)","v":1},{"$f":"VLOOKUP(OFFSET($B:$B,,MATCH(I$4,$B$4:$F$4,0)-1),OFFSET('C. PoC Adj Factor Scoring'!$E$5:$J$282,,MATCH(I$4,'C. PoC Adj Factor Scoring'!$E$3:$AH$3,0)-1),MATCH(I$2&\" Score\",'C. PoC Adj Factor Scoring'!$E$4:$J$4,0),TRUE)","v":1},{"$f":"VLOOKUP(OFFSET($B:$B,,MATCH(J$4,$B$4:$F$4,0)-1),OFFSET('C. PoC Adj Factor Scoring'!$E$5:$J$282,,MATCH(J$4,'C. PoC Adj Factor Scoring'!$E$3:$AH$3,0)-1),MATCH(J$2&\" Score\",'C. PoC Adj Factor Scoring'!$E$4:$J$4,0),TRUE)","v":1},{"$f":"VLOOKUP(OFFSET($B:$B,,MATCH(K$4,$B$4:$F$4,0)-1),OFFSET('C. PoC Adj Factor Scoring'!$E$5:$J$282,,MATCH(K$4,'C. PoC Adj Factor Scoring'!$E$3:$AH$3,0)-1),MATCH(K$2&\" Score\",'C. PoC Adj Factor Scoring'!$E$4:$J$4,0),TRUE)","v":1},{"$f":"VLOOKUP(OFFSET($B:$B,,MATCH(L$4,$B$4:$F$4,0)-1),OFFSET('C. PoC Adj Factor Scoring'!$E$5:$J$282,,MATCH(L$4,'C. PoC Adj Factor Scoring'!$E$3:$AH$3,0)-1),MATCH(L$2&\" Score\",'C. PoC Adj Factor Scoring'!$E$4:$J$4,0),TRUE)","v":1},{"$f":"VLOOKUP(OFFSET($B:$B,,MATCH(M$4,$B$4:$F$4,0)-1),OFFSET('C. PoC Adj Factor Scoring'!$E$5:$J$282,,MATCH(M$4,'C. PoC Adj Factor Scoring'!$E$3:$AH$3,0)-1),MATCH(M$2&\" Score\",'C. PoC Adj Factor Scoring'!$E$4:$J$4,0),TRUE)","v":1},{"$f":"VLOOKUP(OFFSET($B:$B,,MATCH(N$4,$B$4:$F$4,0)-1),OFFSET('C. PoC Adj Factor Scoring'!$E$5:$J$282,,MATCH(N$4,'C. PoC Adj Factor Scoring'!$E$3:$AH$3,0)-1),MATCH(N$2&\" Score\",'C. PoC Adj Factor Scoring'!$E$4:$J$4,0),TRUE)","v":1},{"$f":"VLOOKUP(OFFSET($B:$B,,MATCH(O$4,$B$4:$F$4,0)-1),OFFSET('C. PoC Adj Factor Scoring'!$E$5:$J$282,,MATCH(O$4,'C. PoC Adj Factor Scoring'!$E$3:$AH$3,0)-1),MATCH(O$2&\" Score\",'C. PoC Adj Factor Scoring'!$E$4:$J$4,0),TRUE)","v":1},{"$f":"VLOOKUP(OFFSET($B:$B,,MATCH(P$4,$B$4:$F$4,0)-1),OFFSET('C. PoC Adj Factor Scoring'!$E$5:$J$282,,MATCH(P$4,'C. PoC Adj Factor Scoring'!$E$3:$AH$3,0)-1),MATCH(P$2&\" Score\",'C. PoC Adj Factor Scoring'!$E$4:$J$4,0),TRUE)","v":1},{"$f":"VLOOKUP(OFFSET($B:$B,,MATCH(Q$4,$B$4:$F$4,0)-1),OFFSET('C. PoC Adj Factor Scoring'!$E$5:$J$282,,MATCH(Q$4,'C. PoC Adj Factor Scoring'!$E$3:$AH$3,0)-1),MATCH(Q$2&\" Score\",'C. PoC Adj Factor Scoring'!$E$4:$J$4,0),TRUE)","v":1},{"$f":"VLOOKUP(OFFSET($B:$B,,MATCH(R$4,$B$4:$F$4,0)-1),OFFSET('C. PoC Adj Factor Scoring'!$E$5:$J$282,,MATCH(R$4,'C. PoC Adj Factor Scoring'!$E$3:$AH$3,0)-1),MATCH(R$2&\" Score\",'C. PoC Adj Factor Scoring'!$E$4:$J$4,0),TRUE)","v":1},{"$f":"VLOOKUP(OFFSET($B:$B,,MATCH(S$4,$B$4:$F$4,0)-1),OFFSET('C. PoC Adj Factor Scoring'!$E$5:$J$282,,MATCH(S$4,'C. PoC Adj Factor Scoring'!$E$3:$AH$3,0)-1),MATCH(S$2&\" Score\",'C. PoC Adj Factor Scoring'!$E$4:$J$4,0),TRUE)","v":1},{"$f":"VLOOKUP(OFFSET($B:$B,,MATCH(T$4,$B$4:$F$4,0)-1),OFFSET('C. PoC Adj Factor Scoring'!$E$5:$J$282,,MATCH(T$4,'C. PoC Adj Factor Scoring'!$E$3:$AH$3,0)-1),MATCH(T$2&\" Score\",'C. PoC Adj Factor Scoring'!$E$4:$J$4,0),TRUE)","v":1},{"$f":"VLOOKUP(OFFSET($B:$B,,MATCH(U$4,$B$4:$F$4,0)-1),OFFSET('C. PoC Adj Factor Scoring'!$E$5:$J$282,,MATCH(U$4,'C. PoC Adj Factor Scoring'!$E$3:$AH$3,0)-1),MATCH(U$2&\" Score\",'C. PoC Adj Factor Scoring'!$E$4:$J$4,0),TRUE)","v":1},{"$f":"VLOOKUP(OFFSET($B:$B,,MATCH(V$4,$B$4:$F$4,0)-1),OFFSET('C. PoC Adj Factor Scoring'!$E$5:$J$282,,MATCH(V$4,'C. PoC Adj Factor Scoring'!$E$3:$AH$3,0)-1),MATCH(V$2&\" Score\",'C. PoC Adj Factor Scoring'!$E$4:$J$4,0),TRUE)","v":1},{"$f":"VLOOKUP(OFFSET($B:$B,,MATCH(W$4,$B$4:$F$4,0)-1),OFFSET('C. PoC Adj Factor Scoring'!$E$5:$J$282,,MATCH(W$4,'C. PoC Adj Factor Scoring'!$E$3:$AH$3,0)-1),MATCH(W$2&\" Score\",'C. PoC Adj Factor Scoring'!$E$4:$J$4,0),TRUE)","v":1},{"$f":"VLOOKUP(OFFSET($B:$B,,MATCH(X$4,$B$4:$F$4,0)-1),OFFSET('C. PoC Adj Factor Scoring'!$E$5:$J$282,,MATCH(X$4,'C. PoC Adj Factor Scoring'!$E$3:$AH$3,0)-1),MATCH(X$2&\" Score\",'C. PoC Adj Factor Scoring'!$E$4:$J$4,0),TRUE)","v":1},{"$f":"VLOOKUP(OFFSET($B:$B,,MATCH(Y$4,$B$4:$F$4,0)-1),OFFSET('C. PoC Adj Factor Scoring'!$E$5:$J$282,,MATCH(Y$4,'C. PoC Adj Factor Scoring'!$E$3:$AH$3,0)-1),MATCH(Y$2&\" Score\",'C. PoC Adj Factor Scoring'!$E$4:$J$4,0),TRUE)","v":1},{"$f":"VLOOKUP(OFFSET($B:$B,,MATCH(Z$4,$B$4:$F$4,0)-1),OFFSET('C. PoC Adj Factor Scoring'!$E$5:$J$282,,MATCH(Z$4,'C. PoC Adj Factor Scoring'!$E$3:$AH$3,0)-1),MATCH(Z$2&\" Score\",'C. PoC Adj Factor Scoring'!$E$4:$J$4,0),TRUE)","v":1},{"$f":"VLOOKUP(OFFSET($B:$B,,MATCH(AA$4,$B$4:$F$4,0)-1),OFFSET('C. PoC Adj Factor Scoring'!$E$5:$J$282,,MATCH(AA$4,'C. PoC Adj Factor Scoring'!$E$3:$AH$3,0)-1),MATCH(AA$2&\" Score\",'C. PoC Adj Factor Scoring'!$E$4:$J$4,0),TRUE)","v":3},{"$f":"VLOOKUP(OFFSET($B:$B,,MATCH(AB$4,$B$4:$F$4,0)-1),OFFSET('C. PoC Adj Factor Scoring'!$E$5:$J$282,,MATCH(AB$4,'C. PoC Adj Factor Scoring'!$E$3:$AH$3,0)-1),MATCH(AB$2&\" Score\",'C. PoC Adj Factor Scoring'!$E$4:$J$4,0),TRUE)","v":1},{"$f":"VLOOKUP(OFFSET($B:$B,,MATCH(AC$4,$B$4:$F$4,0)-1),OFFSET('C. PoC Adj Factor Scoring'!$E$5:$J$282,,MATCH(AC$4,'C. PoC Adj Factor Scoring'!$E$3:$AH$3,0)-1),MATCH(AC$2&\" Score\",'C. PoC Adj Factor Scoring'!$E$4:$J$4,0),TRUE)","v":1},{"$f":"VLOOKUP(OFFSET($B:$B,,MATCH(AD$4,$B$4:$F$4,0)-1),OFFSET('C. PoC Adj Factor Scoring'!$E$5:$J$282,,MATCH(AD$4,'C. PoC Adj Factor Scoring'!$E$3:$AH$3,0)-1),MATCH(AD$2&\" Score\",'C. PoC Adj Factor Scoring'!$E$4:$J$4,0),TRUE)","v":1},{"$f":"VLOOKUP(OFFSET($B:$B,,MATCH(AE$4,$B$4:$F$4,0)-1),OFFSET('C. PoC Adj Factor Scoring'!$E$5:$J$282,,MATCH(AE$4,'C. PoC Adj Factor Scoring'!$E$3:$AH$3,0)-1),MATCH(AE$2&\" Score\",'C. PoC Adj Factor Scoring'!$E$4:$J$4,0),TRUE)","v":1}]
[{"$f":"'A. Population Info'!A296","v":1000370289},{"$f":"'A. Population Info'!L296","v":"OIL"},{"$f":"'A. Population Info'!M296","v":0},{"$f":"'A. Population Info'!N296","v":0},{"$f":"'A. Population Info'!O296","v":0},{"$f":"'A. Population Info'!P296","v":0},{"$f":"VLOOKUP(OFFSET($B:$B,,MATCH(G$4,$B$4:$F$4,0)-1),OFFSET('C. PoC Adj Factor Scoring'!$E$5:$J$282,,MATCH(G$4,'C. PoC Adj Factor Scoring'!$E$3:$AH$3,0)-1),MATCH(G$2&\" Score\",'C. PoC Adj Factor Scoring'!$E$4:$J$4,0),TRUE)","v":4},{"$f":"VLOOKUP(OFFSET($B:$B,,MATCH(H$4,$B$4:$F$4,0)-1),OFFSET('C. PoC Adj Factor Scoring'!$E$5:$J$282,,MATCH(H$4,'C. PoC Adj Factor Scoring'!$E$3:$AH$3,0)-1),MATCH(H$2&\" Score\",'C. PoC Adj Factor Scoring'!$E$4:$J$4,0),TRUE)","v":1},{"$f":"VLOOKUP(OFFSET($B:$B,,MATCH(I$4,$B$4:$F$4,0)-1),OFFSET('C. PoC Adj Factor Scoring'!$E$5:$J$282,,MATCH(I$4,'C. PoC Adj Factor Scoring'!$E$3:$AH$3,0)-1),MATCH(I$2&\" Score\",'C. PoC Adj Factor Scoring'!$E$4:$J$4,0),TRUE)","v":1},{"$f":"VLOOKUP(OFFSET($B:$B,,MATCH(J$4,$B$4:$F$4,0)-1),OFFSET('C. PoC Adj Factor Scoring'!$E$5:$J$282,,MATCH(J$4,'C. PoC Adj Factor Scoring'!$E$3:$AH$3,0)-1),MATCH(J$2&\" Score\",'C. PoC Adj Factor Scoring'!$E$4:$J$4,0),TRUE)","v":1},{"$f":"VLOOKUP(OFFSET($B:$B,,MATCH(K$4,$B$4:$F$4,0)-1),OFFSET('C. PoC Adj Factor Scoring'!$E$5:$J$282,,MATCH(K$4,'C. PoC Adj Factor Scoring'!$E$3:$AH$3,0)-1),MATCH(K$2&\" Score\",'C. PoC Adj Factor Scoring'!$E$4:$J$4,0),TRUE)","v":1},{"$f":"VLOOKUP(OFFSET($B:$B,,MATCH(L$4,$B$4:$F$4,0)-1),OFFSET('C. PoC Adj Factor Scoring'!$E$5:$J$282,,MATCH(L$4,'C. PoC Adj Factor Scoring'!$E$3:$AH$3,0)-1),MATCH(L$2&\" Score\",'C. PoC Adj Factor Scoring'!$E$4:$J$4,0),TRUE)","v":1},{"$f":"VLOOKUP(OFFSET($B:$B,,MATCH(M$4,$B$4:$F$4,0)-1),OFFSET('C. PoC Adj Factor Scoring'!$E$5:$J$282,,MATCH(M$4,'C. PoC Adj Factor Scoring'!$E$3:$AH$3,0)-1),MATCH(M$2&\" Score\",'C. PoC Adj Factor Scoring'!$E$4:$J$4,0),TRUE)","v":1},{"$f":"VLOOKUP(OFFSET($B:$B,,MATCH(N$4,$B$4:$F$4,0)-1),OFFSET('C. PoC Adj Factor Scoring'!$E$5:$J$282,,MATCH(N$4,'C. PoC Adj Factor Scoring'!$E$3:$AH$3,0)-1),MATCH(N$2&\" Score\",'C. PoC Adj Factor Scoring'!$E$4:$J$4,0),TRUE)","v":1},{"$f":"VLOOKUP(OFFSET($B:$B,,MATCH(O$4,$B$4:$F$4,0)-1),OFFSET('C. PoC Adj Factor Scoring'!$E$5:$J$282,,MATCH(O$4,'C. PoC Adj Factor Scoring'!$E$3:$AH$3,0)-1),MATCH(O$2&\" Score\",'C. PoC Adj Factor Scoring'!$E$4:$J$4,0),TRUE)","v":1},{"$f":"VLOOKUP(OFFSET($B:$B,,MATCH(P$4,$B$4:$F$4,0)-1),OFFSET('C. PoC Adj Factor Scoring'!$E$5:$J$282,,MATCH(P$4,'C. PoC Adj Factor Scoring'!$E$3:$AH$3,0)-1),MATCH(P$2&\" Score\",'C. PoC Adj Factor Scoring'!$E$4:$J$4,0),TRUE)","v":1},{"$f":"VLOOKUP(OFFSET($B:$B,,MATCH(Q$4,$B$4:$F$4,0)-1),OFFSET('C. PoC Adj Factor Scoring'!$E$5:$J$282,,MATCH(Q$4,'C. PoC Adj Factor Scoring'!$E$3:$AH$3,0)-1),MATCH(Q$2&\" Score\",'C. PoC Adj Factor Scoring'!$E$4:$J$4,0),TRUE)","v":1},{"$f":"VLOOKUP(OFFSET($B:$B,,MATCH(R$4,$B$4:$F$4,0)-1),OFFSET('C. PoC Adj Factor Scoring'!$E$5:$J$282,,MATCH(R$4,'C. PoC Adj Factor Scoring'!$E$3:$AH$3,0)-1),MATCH(R$2&\" Score\",'C. PoC Adj Factor Scoring'!$E$4:$J$4,0),TRUE)","v":1},{"$f":"VLOOKUP(OFFSET($B:$B,,MATCH(S$4,$B$4:$F$4,0)-1),OFFSET('C. PoC Adj Factor Scoring'!$E$5:$J$282,,MATCH(S$4,'C. PoC Adj Factor Scoring'!$E$3:$AH$3,0)-1),MATCH(S$2&\" Score\",'C. PoC Adj Factor Scoring'!$E$4:$J$4,0),TRUE)","v":1},{"$f":"VLOOKUP(OFFSET($B:$B,,MATCH(T$4,$B$4:$F$4,0)-1),OFFSET('C. PoC Adj Factor Scoring'!$E$5:$J$282,,MATCH(T$4,'C. PoC Adj Factor Scoring'!$E$3:$AH$3,0)-1),MATCH(T$2&\" Score\",'C. PoC Adj Factor Scoring'!$E$4:$J$4,0),TRUE)","v":1},{"$f":"VLOOKUP(OFFSET($B:$B,,MATCH(U$4,$B$4:$F$4,0)-1),OFFSET('C. PoC Adj Factor Scoring'!$E$5:$J$282,,MATCH(U$4,'C. PoC Adj Factor Scoring'!$E$3:$AH$3,0)-1),MATCH(U$2&\" Score\",'C. PoC Adj Factor Scoring'!$E$4:$J$4,0),TRUE)","v":1},{"$f":"VLOOKUP(OFFSET($B:$B,,MATCH(V$4,$B$4:$F$4,0)-1),OFFSET('C. PoC Adj Factor Scoring'!$E$5:$J$282,,MATCH(V$4,'C. PoC Adj Factor Scoring'!$E$3:$AH$3,0)-1),MATCH(V$2&\" Score\",'C. PoC Adj Factor Scoring'!$E$4:$J$4,0),TRUE)","v":1},{"$f":"VLOOKUP(OFFSET($B:$B,,MATCH(W$4,$B$4:$F$4,0)-1),OFFSET('C. PoC Adj Factor Scoring'!$E$5:$J$282,,MATCH(W$4,'C. PoC Adj Factor Scoring'!$E$3:$AH$3,0)-1),MATCH(W$2&\" Score\",'C. PoC Adj Factor Scoring'!$E$4:$J$4,0),TRUE)","v":1},{"$f":"VLOOKUP(OFFSET($B:$B,,MATCH(X$4,$B$4:$F$4,0)-1),OFFSET('C. PoC Adj Factor Scoring'!$E$5:$J$282,,MATCH(X$4,'C. PoC Adj Factor Scoring'!$E$3:$AH$3,0)-1),MATCH(X$2&\" Score\",'C. PoC Adj Factor Scoring'!$E$4:$J$4,0),TRUE)","v":1},{"$f":"VLOOKUP(OFFSET($B:$B,,MATCH(Y$4,$B$4:$F$4,0)-1),OFFSET('C. PoC Adj Factor Scoring'!$E$5:$J$282,,MATCH(Y$4,'C. PoC Adj Factor Scoring'!$E$3:$AH$3,0)-1),MATCH(Y$2&\" Score\",'C. PoC Adj Factor Scoring'!$E$4:$J$4,0),TRUE)","v":1},{"$f":"VLOOKUP(OFFSET($B:$B,,MATCH(Z$4,$B$4:$F$4,0)-1),OFFSET('C. PoC Adj Factor Scoring'!$E$5:$J$282,,MATCH(Z$4,'C. PoC Adj Factor Scoring'!$E$3:$AH$3,0)-1),MATCH(Z$2&\" Score\",'C. PoC Adj Factor Scoring'!$E$4:$J$4,0),TRUE)","v":1},{"$f":"VLOOKUP(OFFSET($B:$B,,MATCH(AA$4,$B$4:$F$4,0)-1),OFFSET('C. PoC Adj Factor Scoring'!$E$5:$J$282,,MATCH(AA$4,'C. PoC Adj Factor Scoring'!$E$3:$AH$3,0)-1),MATCH(AA$2&\" Score\",'C. PoC Adj Factor Scoring'!$E$4:$J$4,0),TRUE)","v":3},{"$f":"VLOOKUP(OFFSET($B:$B,,MATCH(AB$4,$B$4:$F$4,0)-1),OFFSET('C. PoC Adj Factor Scoring'!$E$5:$J$282,,MATCH(AB$4,'C. PoC Adj Factor Scoring'!$E$3:$AH$3,0)-1),MATCH(AB$2&\" Score\",'C. PoC Adj Factor Scoring'!$E$4:$J$4,0),TRUE)","v":1},{"$f":"VLOOKUP(OFFSET($B:$B,,MATCH(AC$4,$B$4:$F$4,0)-1),OFFSET('C. PoC Adj Factor Scoring'!$E$5:$J$282,,MATCH(AC$4,'C. PoC Adj Factor Scoring'!$E$3:$AH$3,0)-1),MATCH(AC$2&\" Score\",'C. PoC Adj Factor Scoring'!$E$4:$J$4,0),TRUE)","v":1},{"$f":"VLOOKUP(OFFSET($B:$B,,MATCH(AD$4,$B$4:$F$4,0)-1),OFFSET('C. PoC Adj Factor Scoring'!$E$5:$J$282,,MATCH(AD$4,'C. PoC Adj Factor Scoring'!$E$3:$AH$3,0)-1),MATCH(AD$2&\" Score\",'C. PoC Adj Factor Scoring'!$E$4:$J$4,0),TRUE)","v":1},{"$f":"VLOOKUP(OFFSET($B:$B,,MATCH(AE$4,$B$4:$F$4,0)-1),OFFSET('C. PoC Adj Factor Scoring'!$E$5:$J$282,,MATCH(AE$4,'C. PoC Adj Factor Scoring'!$E$3:$AH$3,0)-1),MATCH(AE$2&\" Score\",'C. PoC Adj Factor Scoring'!$E$4:$J$4,0),TRUE)","v":1}]
[{"$f":"'A. Population Info'!A297","v":1000370319},{"$f":"'A. Population Info'!L297","v":"OIL"},{"$f":"'A. Population Info'!M297","v":0},{"$f":"'A. Population Info'!N297","v":0},{"$f":"'A. Population Info'!O297","v":0},{"$f":"'A. Population Info'!P297","v":0},{"$f":"VLOOKUP(OFFSET($B:$B,,MATCH(G$4,$B$4:$F$4,0)-1),OFFSET('C. PoC Adj Factor Scoring'!$E$5:$J$282,,MATCH(G$4,'C. PoC Adj Factor Scoring'!$E$3:$AH$3,0)-1),MATCH(G$2&\" Score\",'C. PoC Adj Factor Scoring'!$E$4:$J$4,0),TRUE)","v":4},{"$f":"VLOOKUP(OFFSET($B:$B,,MATCH(H$4,$B$4:$F$4,0)-1),OFFSET('C. PoC Adj Factor Scoring'!$E$5:$J$282,,MATCH(H$4,'C. PoC Adj Factor Scoring'!$E$3:$AH$3,0)-1),MATCH(H$2&\" Score\",'C. PoC Adj Factor Scoring'!$E$4:$J$4,0),TRUE)","v":1},{"$f":"VLOOKUP(OFFSET($B:$B,,MATCH(I$4,$B$4:$F$4,0)-1),OFFSET('C. PoC Adj Factor Scoring'!$E$5:$J$282,,MATCH(I$4,'C. PoC Adj Factor Scoring'!$E$3:$AH$3,0)-1),MATCH(I$2&\" Score\",'C. PoC Adj Factor Scoring'!$E$4:$J$4,0),TRUE)","v":1},{"$f":"VLOOKUP(OFFSET($B:$B,,MATCH(J$4,$B$4:$F$4,0)-1),OFFSET('C. PoC Adj Factor Scoring'!$E$5:$J$282,,MATCH(J$4,'C. PoC Adj Factor Scoring'!$E$3:$AH$3,0)-1),MATCH(J$2&\" Score\",'C. PoC Adj Factor Scoring'!$E$4:$J$4,0),TRUE)","v":1},{"$f":"VLOOKUP(OFFSET($B:$B,,MATCH(K$4,$B$4:$F$4,0)-1),OFFSET('C. PoC Adj Factor Scoring'!$E$5:$J$282,,MATCH(K$4,'C. PoC Adj Factor Scoring'!$E$3:$AH$3,0)-1),MATCH(K$2&\" Score\",'C. PoC Adj Factor Scoring'!$E$4:$J$4,0),TRUE)","v":1},{"$f":"VLOOKUP(OFFSET($B:$B,,MATCH(L$4,$B$4:$F$4,0)-1),OFFSET('C. PoC Adj Factor Scoring'!$E$5:$J$282,,MATCH(L$4,'C. PoC Adj Factor Scoring'!$E$3:$AH$3,0)-1),MATCH(L$2&\" Score\",'C. PoC Adj Factor Scoring'!$E$4:$J$4,0),TRUE)","v":1},{"$f":"VLOOKUP(OFFSET($B:$B,,MATCH(M$4,$B$4:$F$4,0)-1),OFFSET('C. PoC Adj Factor Scoring'!$E$5:$J$282,,MATCH(M$4,'C. PoC Adj Factor Scoring'!$E$3:$AH$3,0)-1),MATCH(M$2&\" Score\",'C. PoC Adj Factor Scoring'!$E$4:$J$4,0),TRUE)","v":1},{"$f":"VLOOKUP(OFFSET($B:$B,,MATCH(N$4,$B$4:$F$4,0)-1),OFFSET('C. PoC Adj Factor Scoring'!$E$5:$J$282,,MATCH(N$4,'C. PoC Adj Factor Scoring'!$E$3:$AH$3,0)-1),MATCH(N$2&\" Score\",'C. PoC Adj Factor Scoring'!$E$4:$J$4,0),TRUE)","v":1},{"$f":"VLOOKUP(OFFSET($B:$B,,MATCH(O$4,$B$4:$F$4,0)-1),OFFSET('C. PoC Adj Factor Scoring'!$E$5:$J$282,,MATCH(O$4,'C. PoC Adj Factor Scoring'!$E$3:$AH$3,0)-1),MATCH(O$2&\" Score\",'C. PoC Adj Factor Scoring'!$E$4:$J$4,0),TRUE)","v":1},{"$f":"VLOOKUP(OFFSET($B:$B,,MATCH(P$4,$B$4:$F$4,0)-1),OFFSET('C. PoC Adj Factor Scoring'!$E$5:$J$282,,MATCH(P$4,'C. PoC Adj Factor Scoring'!$E$3:$AH$3,0)-1),MATCH(P$2&\" Score\",'C. PoC Adj Factor Scoring'!$E$4:$J$4,0),TRUE)","v":1},{"$f":"VLOOKUP(OFFSET($B:$B,,MATCH(Q$4,$B$4:$F$4,0)-1),OFFSET('C. PoC Adj Factor Scoring'!$E$5:$J$282,,MATCH(Q$4,'C. PoC Adj Factor Scoring'!$E$3:$AH$3,0)-1),MATCH(Q$2&\" Score\",'C. PoC Adj Factor Scoring'!$E$4:$J$4,0),TRUE)","v":1},{"$f":"VLOOKUP(OFFSET($B:$B,,MATCH(R$4,$B$4:$F$4,0)-1),OFFSET('C. PoC Adj Factor Scoring'!$E$5:$J$282,,MATCH(R$4,'C. PoC Adj Factor Scoring'!$E$3:$AH$3,0)-1),MATCH(R$2&\" Score\",'C. PoC Adj Factor Scoring'!$E$4:$J$4,0),TRUE)","v":1},{"$f":"VLOOKUP(OFFSET($B:$B,,MATCH(S$4,$B$4:$F$4,0)-1),OFFSET('C. PoC Adj Factor Scoring'!$E$5:$J$282,,MATCH(S$4,'C. PoC Adj Factor Scoring'!$E$3:$AH$3,0)-1),MATCH(S$2&\" Score\",'C. PoC Adj Factor Scoring'!$E$4:$J$4,0),TRUE)","v":1},{"$f":"VLOOKUP(OFFSET($B:$B,,MATCH(T$4,$B$4:$F$4,0)-1),OFFSET('C. PoC Adj Factor Scoring'!$E$5:$J$282,,MATCH(T$4,'C. PoC Adj Factor Scoring'!$E$3:$AH$3,0)-1),MATCH(T$2&\" Score\",'C. PoC Adj Factor Scoring'!$E$4:$J$4,0),TRUE)","v":1},{"$f":"VLOOKUP(OFFSET($B:$B,,MATCH(U$4,$B$4:$F$4,0)-1),OFFSET('C. PoC Adj Factor Scoring'!$E$5:$J$282,,MATCH(U$4,'C. PoC Adj Factor Scoring'!$E$3:$AH$3,0)-1),MATCH(U$2&\" Score\",'C. PoC Adj Factor Scoring'!$E$4:$J$4,0),TRUE)","v":1},{"$f":"VLOOKUP(OFFSET($B:$B,,MATCH(V$4,$B$4:$F$4,0)-1),OFFSET('C. PoC Adj Factor Scoring'!$E$5:$J$282,,MATCH(V$4,'C. PoC Adj Factor Scoring'!$E$3:$AH$3,0)-1),MATCH(V$2&\" Score\",'C. PoC Adj Factor Scoring'!$E$4:$J$4,0),TRUE)","v":1},{"$f":"VLOOKUP(OFFSET($B:$B,,MATCH(W$4,$B$4:$F$4,0)-1),OFFSET('C. PoC Adj Factor Scoring'!$E$5:$J$282,,MATCH(W$4,'C. PoC Adj Factor Scoring'!$E$3:$AH$3,0)-1),MATCH(W$2&\" Score\",'C. PoC Adj Factor Scoring'!$E$4:$J$4,0),TRUE)","v":1},{"$f":"VLOOKUP(OFFSET($B:$B,,MATCH(X$4,$B$4:$F$4,0)-1),OFFSET('C. PoC Adj Factor Scoring'!$E$5:$J$282,,MATCH(X$4,'C. PoC Adj Factor Scoring'!$E$3:$AH$3,0)-1),MATCH(X$2&\" Score\",'C. PoC Adj Factor Scoring'!$E$4:$J$4,0),TRUE)","v":1},{"$f":"VLOOKUP(OFFSET($B:$B,,MATCH(Y$4,$B$4:$F$4,0)-1),OFFSET('C. PoC Adj Factor Scoring'!$E$5:$J$282,,MATCH(Y$4,'C. PoC Adj Factor Scoring'!$E$3:$AH$3,0)-1),MATCH(Y$2&\" Score\",'C. PoC Adj Factor Scoring'!$E$4:$J$4,0),TRUE)","v":1},{"$f":"VLOOKUP(OFFSET($B:$B,,MATCH(Z$4,$B$4:$F$4,0)-1),OFFSET('C. PoC Adj Factor Scoring'!$E$5:$J$282,,MATCH(Z$4,'C. PoC Adj Factor Scoring'!$E$3:$AH$3,0)-1),MATCH(Z$2&\" Score\",'C. PoC Adj Factor Scoring'!$E$4:$J$4,0),TRUE)","v":1},{"$f":"VLOOKUP(OFFSET($B:$B,,MATCH(AA$4,$B$4:$F$4,0)-1),OFFSET('C. PoC Adj Factor Scoring'!$E$5:$J$282,,MATCH(AA$4,'C. PoC Adj Factor Scoring'!$E$3:$AH$3,0)-1),MATCH(AA$2&\" Score\",'C. PoC Adj Factor Scoring'!$E$4:$J$4,0),TRUE)","v":3},{"$f":"VLOOKUP(OFFSET($B:$B,,MATCH(AB$4,$B$4:$F$4,0)-1),OFFSET('C. PoC Adj Factor Scoring'!$E$5:$J$282,,MATCH(AB$4,'C. PoC Adj Factor Scoring'!$E$3:$AH$3,0)-1),MATCH(AB$2&\" Score\",'C. PoC Adj Factor Scoring'!$E$4:$J$4,0),TRUE)","v":1},{"$f":"VLOOKUP(OFFSET($B:$B,,MATCH(AC$4,$B$4:$F$4,0)-1),OFFSET('C. PoC Adj Factor Scoring'!$E$5:$J$282,,MATCH(AC$4,'C. PoC Adj Factor Scoring'!$E$3:$AH$3,0)-1),MATCH(AC$2&\" Score\",'C. PoC Adj Factor Scoring'!$E$4:$J$4,0),TRUE)","v":1},{"$f":"VLOOKUP(OFFSET($B:$B,,MATCH(AD$4,$B$4:$F$4,0)-1),OFFSET('C. PoC Adj Factor Scoring'!$E$5:$J$282,,MATCH(AD$4,'C. PoC Adj Factor Scoring'!$E$3:$AH$3,0)-1),MATCH(AD$2&\" Score\",'C. PoC Adj Factor Scoring'!$E$4:$J$4,0),TRUE)","v":1},{"$f":"VLOOKUP(OFFSET($B:$B,,MATCH(AE$4,$B$4:$F$4,0)-1),OFFSET('C. PoC Adj Factor Scoring'!$E$5:$J$282,,MATCH(AE$4,'C. PoC Adj Factor Scoring'!$E$3:$AH$3,0)-1),MATCH(AE$2&\" Score\",'C. PoC Adj Factor Scoring'!$E$4:$J$4,0),TRUE)","v":1}]
[{"$f":"'A. Population Info'!A298","v":1000370381},{"$f":"'A. Population Info'!L298","v":"OIL"},{"$f":"'A. Population Info'!M298","v":0},{"$f":"'A. Population Info'!N298","v":0},{"$f":"'A. Population Info'!O298","v":0},{"$f":"'A. Population Info'!P298","v":0},{"$f":"VLOOKUP(OFFSET($B:$B,,MATCH(G$4,$B$4:$F$4,0)-1),OFFSET('C. PoC Adj Factor Scoring'!$E$5:$J$282,,MATCH(G$4,'C. PoC Adj Factor Scoring'!$E$3:$AH$3,0)-1),MATCH(G$2&\" Score\",'C. PoC Adj Factor Scoring'!$E$4:$J$4,0),TRUE)","v":4},{"$f":"VLOOKUP(OFFSET($B:$B,,MATCH(H$4,$B$4:$F$4,0)-1),OFFSET('C. PoC Adj Factor Scoring'!$E$5:$J$282,,MATCH(H$4,'C. PoC Adj Factor Scoring'!$E$3:$AH$3,0)-1),MATCH(H$2&\" Score\",'C. PoC Adj Factor Scoring'!$E$4:$J$4,0),TRUE)","v":1},{"$f":"VLOOKUP(OFFSET($B:$B,,MATCH(I$4,$B$4:$F$4,0)-1),OFFSET('C. PoC Adj Factor Scoring'!$E$5:$J$282,,MATCH(I$4,'C. PoC Adj Factor Scoring'!$E$3:$AH$3,0)-1),MATCH(I$2&\" Score\",'C. PoC Adj Factor Scoring'!$E$4:$J$4,0),TRUE)","v":1},{"$f":"VLOOKUP(OFFSET($B:$B,,MATCH(J$4,$B$4:$F$4,0)-1),OFFSET('C. PoC Adj Factor Scoring'!$E$5:$J$282,,MATCH(J$4,'C. PoC Adj Factor Scoring'!$E$3:$AH$3,0)-1),MATCH(J$2&\" Score\",'C. PoC Adj Factor Scoring'!$E$4:$J$4,0),TRUE)","v":1},{"$f":"VLOOKUP(OFFSET($B:$B,,MATCH(K$4,$B$4:$F$4,0)-1),OFFSET('C. PoC Adj Factor Scoring'!$E$5:$J$282,,MATCH(K$4,'C. PoC Adj Factor Scoring'!$E$3:$AH$3,0)-1),MATCH(K$2&\" Score\",'C. PoC Adj Factor Scoring'!$E$4:$J$4,0),TRUE)","v":1},{"$f":"VLOOKUP(OFFSET($B:$B,,MATCH(L$4,$B$4:$F$4,0)-1),OFFSET('C. PoC Adj Factor Scoring'!$E$5:$J$282,,MATCH(L$4,'C. PoC Adj Factor Scoring'!$E$3:$AH$3,0)-1),MATCH(L$2&\" Score\",'C. PoC Adj Factor Scoring'!$E$4:$J$4,0),TRUE)","v":1},{"$f":"VLOOKUP(OFFSET($B:$B,,MATCH(M$4,$B$4:$F$4,0)-1),OFFSET('C. PoC Adj Factor Scoring'!$E$5:$J$282,,MATCH(M$4,'C. PoC Adj Factor Scoring'!$E$3:$AH$3,0)-1),MATCH(M$2&\" Score\",'C. PoC Adj Factor Scoring'!$E$4:$J$4,0),TRUE)","v":1},{"$f":"VLOOKUP(OFFSET($B:$B,,MATCH(N$4,$B$4:$F$4,0)-1),OFFSET('C. PoC Adj Factor Scoring'!$E$5:$J$282,,MATCH(N$4,'C. PoC Adj Factor Scoring'!$E$3:$AH$3,0)-1),MATCH(N$2&\" Score\",'C. PoC Adj Factor Scoring'!$E$4:$J$4,0),TRUE)","v":1},{"$f":"VLOOKUP(OFFSET($B:$B,,MATCH(O$4,$B$4:$F$4,0)-1),OFFSET('C. PoC Adj Factor Scoring'!$E$5:$J$282,,MATCH(O$4,'C. PoC Adj Factor Scoring'!$E$3:$AH$3,0)-1),MATCH(O$2&\" Score\",'C. PoC Adj Factor Scoring'!$E$4:$J$4,0),TRUE)","v":1},{"$f":"VLOOKUP(OFFSET($B:$B,,MATCH(P$4,$B$4:$F$4,0)-1),OFFSET('C. PoC Adj Factor Scoring'!$E$5:$J$282,,MATCH(P$4,'C. PoC Adj Factor Scoring'!$E$3:$AH$3,0)-1),MATCH(P$2&\" Score\",'C. PoC Adj Factor Scoring'!$E$4:$J$4,0),TRUE)","v":1},{"$f":"VLOOKUP(OFFSET($B:$B,,MATCH(Q$4,$B$4:$F$4,0)-1),OFFSET('C. PoC Adj Factor Scoring'!$E$5:$J$282,,MATCH(Q$4,'C. PoC Adj Factor Scoring'!$E$3:$AH$3,0)-1),MATCH(Q$2&\" Score\",'C. PoC Adj Factor Scoring'!$E$4:$J$4,0),TRUE)","v":1},{"$f":"VLOOKUP(OFFSET($B:$B,,MATCH(R$4,$B$4:$F$4,0)-1),OFFSET('C. PoC Adj Factor Scoring'!$E$5:$J$282,,MATCH(R$4,'C. PoC Adj Factor Scoring'!$E$3:$AH$3,0)-1),MATCH(R$2&\" Score\",'C. PoC Adj Factor Scoring'!$E$4:$J$4,0),TRUE)","v":1},{"$f":"VLOOKUP(OFFSET($B:$B,,MATCH(S$4,$B$4:$F$4,0)-1),OFFSET('C. PoC Adj Factor Scoring'!$E$5:$J$282,,MATCH(S$4,'C. PoC Adj Factor Scoring'!$E$3:$AH$3,0)-1),MATCH(S$2&\" Score\",'C. PoC Adj Factor Scoring'!$E$4:$J$4,0),TRUE)","v":1},{"$f":"VLOOKUP(OFFSET($B:$B,,MATCH(T$4,$B$4:$F$4,0)-1),OFFSET('C. PoC Adj Factor Scoring'!$E$5:$J$282,,MATCH(T$4,'C. PoC Adj Factor Scoring'!$E$3:$AH$3,0)-1),MATCH(T$2&\" Score\",'C. PoC Adj Factor Scoring'!$E$4:$J$4,0),TRUE)","v":1},{"$f":"VLOOKUP(OFFSET($B:$B,,MATCH(U$4,$B$4:$F$4,0)-1),OFFSET('C. PoC Adj Factor Scoring'!$E$5:$J$282,,MATCH(U$4,'C. PoC Adj Factor Scoring'!$E$3:$AH$3,0)-1),MATCH(U$2&\" Score\",'C. PoC Adj Factor Scoring'!$E$4:$J$4,0),TRUE)","v":1},{"$f":"VLOOKUP(OFFSET($B:$B,,MATCH(V$4,$B$4:$F$4,0)-1),OFFSET('C. PoC Adj Factor Scoring'!$E$5:$J$282,,MATCH(V$4,'C. PoC Adj Factor Scoring'!$E$3:$AH$3,0)-1),MATCH(V$2&\" Score\",'C. PoC Adj Factor Scoring'!$E$4:$J$4,0),TRUE)","v":1},{"$f":"VLOOKUP(OFFSET($B:$B,,MATCH(W$4,$B$4:$F$4,0)-1),OFFSET('C. PoC Adj Factor Scoring'!$E$5:$J$282,,MATCH(W$4,'C. PoC Adj Factor Scoring'!$E$3:$AH$3,0)-1),MATCH(W$2&\" Score\",'C. PoC Adj Factor Scoring'!$E$4:$J$4,0),TRUE)","v":1},{"$f":"VLOOKUP(OFFSET($B:$B,,MATCH(X$4,$B$4:$F$4,0)-1),OFFSET('C. PoC Adj Factor Scoring'!$E$5:$J$282,,MATCH(X$4,'C. PoC Adj Factor Scoring'!$E$3:$AH$3,0)-1),MATCH(X$2&\" Score\",'C. PoC Adj Factor Scoring'!$E$4:$J$4,0),TRUE)","v":1},{"$f":"VLOOKUP(OFFSET($B:$B,,MATCH(Y$4,$B$4:$F$4,0)-1),OFFSET('C. PoC Adj Factor Scoring'!$E$5:$J$282,,MATCH(Y$4,'C. PoC Adj Factor Scoring'!$E$3:$AH$3,0)-1),MATCH(Y$2&\" Score\",'C. PoC Adj Factor Scoring'!$E$4:$J$4,0),TRUE)","v":1},{"$f":"VLOOKUP(OFFSET($B:$B,,MATCH(Z$4,$B$4:$F$4,0)-1),OFFSET('C. PoC Adj Factor Scoring'!$E$5:$J$282,,MATCH(Z$4,'C. PoC Adj Factor Scoring'!$E$3:$AH$3,0)-1),MATCH(Z$2&\" Score\",'C. PoC Adj Factor Scoring'!$E$4:$J$4,0),TRUE)","v":1},{"$f":"VLOOKUP(OFFSET($B:$B,,MATCH(AA$4,$B$4:$F$4,0)-1),OFFSET('C. PoC Adj Factor Scoring'!$E$5:$J$282,,MATCH(AA$4,'C. PoC Adj Factor Scoring'!$E$3:$AH$3,0)-1),MATCH(AA$2&\" Score\",'C. PoC Adj Factor Scoring'!$E$4:$J$4,0),TRUE)","v":3},{"$f":"VLOOKUP(OFFSET($B:$B,,MATCH(AB$4,$B$4:$F$4,0)-1),OFFSET('C. PoC Adj Factor Scoring'!$E$5:$J$282,,MATCH(AB$4,'C. PoC Adj Factor Scoring'!$E$3:$AH$3,0)-1),MATCH(AB$2&\" Score\",'C. PoC Adj Factor Scoring'!$E$4:$J$4,0),TRUE)","v":1},{"$f":"VLOOKUP(OFFSET($B:$B,,MATCH(AC$4,$B$4:$F$4,0)-1),OFFSET('C. PoC Adj Factor Scoring'!$E$5:$J$282,,MATCH(AC$4,'C. PoC Adj Factor Scoring'!$E$3:$AH$3,0)-1),MATCH(AC$2&\" Score\",'C. PoC Adj Factor Scoring'!$E$4:$J$4,0),TRUE)","v":1},{"$f":"VLOOKUP(OFFSET($B:$B,,MATCH(AD$4,$B$4:$F$4,0)-1),OFFSET('C. PoC Adj Factor Scoring'!$E$5:$J$282,,MATCH(AD$4,'C. PoC Adj Factor Scoring'!$E$3:$AH$3,0)-1),MATCH(AD$2&\" Score\",'C. PoC Adj Factor Scoring'!$E$4:$J$4,0),TRUE)","v":1},{"$f":"VLOOKUP(OFFSET($B:$B,,MATCH(AE$4,$B$4:$F$4,0)-1),OFFSET('C. PoC Adj Factor Scoring'!$E$5:$J$282,,MATCH(AE$4,'C. PoC Adj Factor Scoring'!$E$3:$AH$3,0)-1),MATCH(AE$2&\" Score\",'C. PoC Adj Factor Scoring'!$E$4:$J$4,0),TRUE)","v":1}]
[{"$f":"'A. Population Info'!A299","v":1000370592},{"$f":"'A. Population Info'!L299","v":"OIL"},{"$f":"'A. Population Info'!M299","v":0},{"$f":"'A. Population Info'!N299","v":0},{"$f":"'A. Population Info'!O299","v":0},{"$f":"'A. Population Info'!P299","v":0},{"$f":"VLOOKUP(OFFSET($B:$B,,MATCH(G$4,$B$4:$F$4,0)-1),OFFSET('C. PoC Adj Factor Scoring'!$E$5:$J$282,,MATCH(G$4,'C. PoC Adj Factor Scoring'!$E$3:$AH$3,0)-1),MATCH(G$2&\" Score\",'C. PoC Adj Factor Scoring'!$E$4:$J$4,0),TRUE)","v":4},{"$f":"VLOOKUP(OFFSET($B:$B,,MATCH(H$4,$B$4:$F$4,0)-1),OFFSET('C. PoC Adj Factor Scoring'!$E$5:$J$282,,MATCH(H$4,'C. PoC Adj Factor Scoring'!$E$3:$AH$3,0)-1),MATCH(H$2&\" Score\",'C. PoC Adj Factor Scoring'!$E$4:$J$4,0),TRUE)","v":1},{"$f":"VLOOKUP(OFFSET($B:$B,,MATCH(I$4,$B$4:$F$4,0)-1),OFFSET('C. PoC Adj Factor Scoring'!$E$5:$J$282,,MATCH(I$4,'C. PoC Adj Factor Scoring'!$E$3:$AH$3,0)-1),MATCH(I$2&\" Score\",'C. PoC Adj Factor Scoring'!$E$4:$J$4,0),TRUE)","v":1},{"$f":"VLOOKUP(OFFSET($B:$B,,MATCH(J$4,$B$4:$F$4,0)-1),OFFSET('C. PoC Adj Factor Scoring'!$E$5:$J$282,,MATCH(J$4,'C. PoC Adj Factor Scoring'!$E$3:$AH$3,0)-1),MATCH(J$2&\" Score\",'C. PoC Adj Factor Scoring'!$E$4:$J$4,0),TRUE)","v":1},{"$f":"VLOOKUP(OFFSET($B:$B,,MATCH(K$4,$B$4:$F$4,0)-1),OFFSET('C. PoC Adj Factor Scoring'!$E$5:$J$282,,MATCH(K$4,'C. PoC Adj Factor Scoring'!$E$3:$AH$3,0)-1),MATCH(K$2&\" Score\",'C. PoC Adj Factor Scoring'!$E$4:$J$4,0),TRUE)","v":1},{"$f":"VLOOKUP(OFFSET($B:$B,,MATCH(L$4,$B$4:$F$4,0)-1),OFFSET('C. PoC Adj Factor Scoring'!$E$5:$J$282,,MATCH(L$4,'C. PoC Adj Factor Scoring'!$E$3:$AH$3,0)-1),MATCH(L$2&\" Score\",'C. PoC Adj Factor Scoring'!$E$4:$J$4,0),TRUE)","v":1},{"$f":"VLOOKUP(OFFSET($B:$B,,MATCH(M$4,$B$4:$F$4,0)-1),OFFSET('C. PoC Adj Factor Scoring'!$E$5:$J$282,,MATCH(M$4,'C. PoC Adj Factor Scoring'!$E$3:$AH$3,0)-1),MATCH(M$2&\" Score\",'C. PoC Adj Factor Scoring'!$E$4:$J$4,0),TRUE)","v":1},{"$f":"VLOOKUP(OFFSET($B:$B,,MATCH(N$4,$B$4:$F$4,0)-1),OFFSET('C. PoC Adj Factor Scoring'!$E$5:$J$282,,MATCH(N$4,'C. PoC Adj Factor Scoring'!$E$3:$AH$3,0)-1),MATCH(N$2&\" Score\",'C. PoC Adj Factor Scoring'!$E$4:$J$4,0),TRUE)","v":1},{"$f":"VLOOKUP(OFFSET($B:$B,,MATCH(O$4,$B$4:$F$4,0)-1),OFFSET('C. PoC Adj Factor Scoring'!$E$5:$J$282,,MATCH(O$4,'C. PoC Adj Factor Scoring'!$E$3:$AH$3,0)-1),MATCH(O$2&\" Score\",'C. PoC Adj Factor Scoring'!$E$4:$J$4,0),TRUE)","v":1},{"$f":"VLOOKUP(OFFSET($B:$B,,MATCH(P$4,$B$4:$F$4,0)-1),OFFSET('C. PoC Adj Factor Scoring'!$E$5:$J$282,,MATCH(P$4,'C. PoC Adj Factor Scoring'!$E$3:$AH$3,0)-1),MATCH(P$2&\" Score\",'C. PoC Adj Factor Scoring'!$E$4:$J$4,0),TRUE)","v":1},{"$f":"VLOOKUP(OFFSET($B:$B,,MATCH(Q$4,$B$4:$F$4,0)-1),OFFSET('C. PoC Adj Factor Scoring'!$E$5:$J$282,,MATCH(Q$4,'C. PoC Adj Factor Scoring'!$E$3:$AH$3,0)-1),MATCH(Q$2&\" Score\",'C. PoC Adj Factor Scoring'!$E$4:$J$4,0),TRUE)","v":1},{"$f":"VLOOKUP(OFFSET($B:$B,,MATCH(R$4,$B$4:$F$4,0)-1),OFFSET('C. PoC Adj Factor Scoring'!$E$5:$J$282,,MATCH(R$4,'C. PoC Adj Factor Scoring'!$E$3:$AH$3,0)-1),MATCH(R$2&\" Score\",'C. PoC Adj Factor Scoring'!$E$4:$J$4,0),TRUE)","v":1},{"$f":"VLOOKUP(OFFSET($B:$B,,MATCH(S$4,$B$4:$F$4,0)-1),OFFSET('C. PoC Adj Factor Scoring'!$E$5:$J$282,,MATCH(S$4,'C. PoC Adj Factor Scoring'!$E$3:$AH$3,0)-1),MATCH(S$2&\" Score\",'C. PoC Adj Factor Scoring'!$E$4:$J$4,0),TRUE)","v":1},{"$f":"VLOOKUP(OFFSET($B:$B,,MATCH(T$4,$B$4:$F$4,0)-1),OFFSET('C. PoC Adj Factor Scoring'!$E$5:$J$282,,MATCH(T$4,'C. PoC Adj Factor Scoring'!$E$3:$AH$3,0)-1),MATCH(T$2&\" Score\",'C. PoC Adj Factor Scoring'!$E$4:$J$4,0),TRUE)","v":1},{"$f":"VLOOKUP(OFFSET($B:$B,,MATCH(U$4,$B$4:$F$4,0)-1),OFFSET('C. PoC Adj Factor Scoring'!$E$5:$J$282,,MATCH(U$4,'C. PoC Adj Factor Scoring'!$E$3:$AH$3,0)-1),MATCH(U$2&\" Score\",'C. PoC Adj Factor Scoring'!$E$4:$J$4,0),TRUE)","v":1},{"$f":"VLOOKUP(OFFSET($B:$B,,MATCH(V$4,$B$4:$F$4,0)-1),OFFSET('C. PoC Adj Factor Scoring'!$E$5:$J$282,,MATCH(V$4,'C. PoC Adj Factor Scoring'!$E$3:$AH$3,0)-1),MATCH(V$2&\" Score\",'C. PoC Adj Factor Scoring'!$E$4:$J$4,0),TRUE)","v":1},{"$f":"VLOOKUP(OFFSET($B:$B,,MATCH(W$4,$B$4:$F$4,0)-1),OFFSET('C. PoC Adj Factor Scoring'!$E$5:$J$282,,MATCH(W$4,'C. PoC Adj Factor Scoring'!$E$3:$AH$3,0)-1),MATCH(W$2&\" Score\",'C. PoC Adj Factor Scoring'!$E$4:$J$4,0),TRUE)","v":1},{"$f":"VLOOKUP(OFFSET($B:$B,,MATCH(X$4,$B$4:$F$4,0)-1),OFFSET('C. PoC Adj Factor Scoring'!$E$5:$J$282,,MATCH(X$4,'C. PoC Adj Factor Scoring'!$E$3:$AH$3,0)-1),MATCH(X$2&\" Score\",'C. PoC Adj Factor Scoring'!$E$4:$J$4,0),TRUE)","v":1},{"$f":"VLOOKUP(OFFSET($B:$B,,MATCH(Y$4,$B$4:$F$4,0)-1),OFFSET('C. PoC Adj Factor Scoring'!$E$5:$J$282,,MATCH(Y$4,'C. PoC Adj Factor Scoring'!$E$3:$AH$3,0)-1),MATCH(Y$2&\" Score\",'C. PoC Adj Factor Scoring'!$E$4:$J$4,0),TRUE)","v":1},{"$f":"VLOOKUP(OFFSET($B:$B,,MATCH(Z$4,$B$4:$F$4,0)-1),OFFSET('C. PoC Adj Factor Scoring'!$E$5:$J$282,,MATCH(Z$4,'C. PoC Adj Factor Scoring'!$E$3:$AH$3,0)-1),MATCH(Z$2&\" Score\",'C. PoC Adj Factor Scoring'!$E$4:$J$4,0),TRUE)","v":1},{"$f":"VLOOKUP(OFFSET($B:$B,,MATCH(AA$4,$B$4:$F$4,0)-1),OFFSET('C. PoC Adj Factor Scoring'!$E$5:$J$282,,MATCH(AA$4,'C. PoC Adj Factor Scoring'!$E$3:$AH$3,0)-1),MATCH(AA$2&\" Score\",'C. PoC Adj Factor Scoring'!$E$4:$J$4,0),TRUE)","v":3},{"$f":"VLOOKUP(OFFSET($B:$B,,MATCH(AB$4,$B$4:$F$4,0)-1),OFFSET('C. PoC Adj Factor Scoring'!$E$5:$J$282,,MATCH(AB$4,'C. PoC Adj Factor Scoring'!$E$3:$AH$3,0)-1),MATCH(AB$2&\" Score\",'C. PoC Adj Factor Scoring'!$E$4:$J$4,0),TRUE)","v":1},{"$f":"VLOOKUP(OFFSET($B:$B,,MATCH(AC$4,$B$4:$F$4,0)-1),OFFSET('C. PoC Adj Factor Scoring'!$E$5:$J$282,,MATCH(AC$4,'C. PoC Adj Factor Scoring'!$E$3:$AH$3,0)-1),MATCH(AC$2&\" Score\",'C. PoC Adj Factor Scoring'!$E$4:$J$4,0),TRUE)","v":1},{"$f":"VLOOKUP(OFFSET($B:$B,,MATCH(AD$4,$B$4:$F$4,0)-1),OFFSET('C. PoC Adj Factor Scoring'!$E$5:$J$282,,MATCH(AD$4,'C. PoC Adj Factor Scoring'!$E$3:$AH$3,0)-1),MATCH(AD$2&\" Score\",'C. PoC Adj Factor Scoring'!$E$4:$J$4,0),TRUE)","v":1},{"$f":"VLOOKUP(OFFSET($B:$B,,MATCH(AE$4,$B$4:$F$4,0)-1),OFFSET('C. PoC Adj Factor Scoring'!$E$5:$J$282,,MATCH(AE$4,'C. PoC Adj Factor Scoring'!$E$3:$AH$3,0)-1),MATCH(AE$2&\" Score\",'C. PoC Adj Factor Scoring'!$E$4:$J$4,0),TRUE)","v":1}]
[{"$f":"'A. Population Info'!A300","v":1000370708},{"$f":"'A. Population Info'!L300","v":"OIL"},{"$f":"'A. Population Info'!M300","v":0},{"$f":"'A. Population Info'!N300","v":0},{"$f":"'A. Population Info'!O300","v":0},{"$f":"'A. Population Info'!P300","v":0},{"$f":"VLOOKUP(OFFSET($B:$B,,MATCH(G$4,$B$4:$F$4,0)-1),OFFSET('C. PoC Adj Factor Scoring'!$E$5:$J$282,,MATCH(G$4,'C. PoC Adj Factor Scoring'!$E$3:$AH$3,0)-1),MATCH(G$2&\" Score\",'C. PoC Adj Factor Scoring'!$E$4:$J$4,0),TRUE)","v":4},{"$f":"VLOOKUP(OFFSET($B:$B,,MATCH(H$4,$B$4:$F$4,0)-1),OFFSET('C. PoC Adj Factor Scoring'!$E$5:$J$282,,MATCH(H$4,'C. PoC Adj Factor Scoring'!$E$3:$AH$3,0)-1),MATCH(H$2&\" Score\",'C. PoC Adj Factor Scoring'!$E$4:$J$4,0),TRUE)","v":1},{"$f":"VLOOKUP(OFFSET($B:$B,,MATCH(I$4,$B$4:$F$4,0)-1),OFFSET('C. PoC Adj Factor Scoring'!$E$5:$J$282,,MATCH(I$4,'C. PoC Adj Factor Scoring'!$E$3:$AH$3,0)-1),MATCH(I$2&\" Score\",'C. PoC Adj Factor Scoring'!$E$4:$J$4,0),TRUE)","v":1},{"$f":"VLOOKUP(OFFSET($B:$B,,MATCH(J$4,$B$4:$F$4,0)-1),OFFSET('C. PoC Adj Factor Scoring'!$E$5:$J$282,,MATCH(J$4,'C. PoC Adj Factor Scoring'!$E$3:$AH$3,0)-1),MATCH(J$2&\" Score\",'C. PoC Adj Factor Scoring'!$E$4:$J$4,0),TRUE)","v":1},{"$f":"VLOOKUP(OFFSET($B:$B,,MATCH(K$4,$B$4:$F$4,0)-1),OFFSET('C. PoC Adj Factor Scoring'!$E$5:$J$282,,MATCH(K$4,'C. PoC Adj Factor Scoring'!$E$3:$AH$3,0)-1),MATCH(K$2&\" Score\",'C. PoC Adj Factor Scoring'!$E$4:$J$4,0),TRUE)","v":1},{"$f":"VLOOKUP(OFFSET($B:$B,,MATCH(L$4,$B$4:$F$4,0)-1),OFFSET('C. PoC Adj Factor Scoring'!$E$5:$J$282,,MATCH(L$4,'C. PoC Adj Factor Scoring'!$E$3:$AH$3,0)-1),MATCH(L$2&\" Score\",'C. PoC Adj Factor Scoring'!$E$4:$J$4,0),TRUE)","v":1},{"$f":"VLOOKUP(OFFSET($B:$B,,MATCH(M$4,$B$4:$F$4,0)-1),OFFSET('C. PoC Adj Factor Scoring'!$E$5:$J$282,,MATCH(M$4,'C. PoC Adj Factor Scoring'!$E$3:$AH$3,0)-1),MATCH(M$2&\" Score\",'C. PoC Adj Factor Scoring'!$E$4:$J$4,0),TRUE)","v":1},{"$f":"VLOOKUP(OFFSET($B:$B,,MATCH(N$4,$B$4:$F$4,0)-1),OFFSET('C. PoC Adj Factor Scoring'!$E$5:$J$282,,MATCH(N$4,'C. PoC Adj Factor Scoring'!$E$3:$AH$3,0)-1),MATCH(N$2&\" Score\",'C. PoC Adj Factor Scoring'!$E$4:$J$4,0),TRUE)","v":1},{"$f":"VLOOKUP(OFFSET($B:$B,,MATCH(O$4,$B$4:$F$4,0)-1),OFFSET('C. PoC Adj Factor Scoring'!$E$5:$J$282,,MATCH(O$4,'C. PoC Adj Factor Scoring'!$E$3:$AH$3,0)-1),MATCH(O$2&\" Score\",'C. PoC Adj Factor Scoring'!$E$4:$J$4,0),TRUE)","v":1},{"$f":"VLOOKUP(OFFSET($B:$B,,MATCH(P$4,$B$4:$F$4,0)-1),OFFSET('C. PoC Adj Factor Scoring'!$E$5:$J$282,,MATCH(P$4,'C. PoC Adj Factor Scoring'!$E$3:$AH$3,0)-1),MATCH(P$2&\" Score\",'C. PoC Adj Factor Scoring'!$E$4:$J$4,0),TRUE)","v":1},{"$f":"VLOOKUP(OFFSET($B:$B,,MATCH(Q$4,$B$4:$F$4,0)-1),OFFSET('C. PoC Adj Factor Scoring'!$E$5:$J$282,,MATCH(Q$4,'C. PoC Adj Factor Scoring'!$E$3:$AH$3,0)-1),MATCH(Q$2&\" Score\",'C. PoC Adj Factor Scoring'!$E$4:$J$4,0),TRUE)","v":1},{"$f":"VLOOKUP(OFFSET($B:$B,,MATCH(R$4,$B$4:$F$4,0)-1),OFFSET('C. PoC Adj Factor Scoring'!$E$5:$J$282,,MATCH(R$4,'C. PoC Adj Factor Scoring'!$E$3:$AH$3,0)-1),MATCH(R$2&\" Score\",'C. PoC Adj Factor Scoring'!$E$4:$J$4,0),TRUE)","v":1},{"$f":"VLOOKUP(OFFSET($B:$B,,MATCH(S$4,$B$4:$F$4,0)-1),OFFSET('C. PoC Adj Factor Scoring'!$E$5:$J$282,,MATCH(S$4,'C. PoC Adj Factor Scoring'!$E$3:$AH$3,0)-1),MATCH(S$2&\" Score\",'C. PoC Adj Factor Scoring'!$E$4:$J$4,0),TRUE)","v":1},{"$f":"VLOOKUP(OFFSET($B:$B,,MATCH(T$4,$B$4:$F$4,0)-1),OFFSET('C. PoC Adj Factor Scoring'!$E$5:$J$282,,MATCH(T$4,'C. PoC Adj Factor Scoring'!$E$3:$AH$3,0)-1),MATCH(T$2&\" Score\",'C. PoC Adj Factor Scoring'!$E$4:$J$4,0),TRUE)","v":1},{"$f":"VLOOKUP(OFFSET($B:$B,,MATCH(U$4,$B$4:$F$4,0)-1),OFFSET('C. PoC Adj Factor Scoring'!$E$5:$J$282,,MATCH(U$4,'C. PoC Adj Factor Scoring'!$E$3:$AH$3,0)-1),MATCH(U$2&\" Score\",'C. PoC Adj Factor Scoring'!$E$4:$J$4,0),TRUE)","v":1},{"$f":"VLOOKUP(OFFSET($B:$B,,MATCH(V$4,$B$4:$F$4,0)-1),OFFSET('C. PoC Adj Factor Scoring'!$E$5:$J$282,,MATCH(V$4,'C. PoC Adj Factor Scoring'!$E$3:$AH$3,0)-1),MATCH(V$2&\" Score\",'C. PoC Adj Factor Scoring'!$E$4:$J$4,0),TRUE)","v":1},{"$f":"VLOOKUP(OFFSET($B:$B,,MATCH(W$4,$B$4:$F$4,0)-1),OFFSET('C. PoC Adj Factor Scoring'!$E$5:$J$282,,MATCH(W$4,'C. PoC Adj Factor Scoring'!$E$3:$AH$3,0)-1),MATCH(W$2&\" Score\",'C. PoC Adj Factor Scoring'!$E$4:$J$4,0),TRUE)","v":1},{"$f":"VLOOKUP(OFFSET($B:$B,,MATCH(X$4,$B$4:$F$4,0)-1),OFFSET('C. PoC Adj Factor Scoring'!$E$5:$J$282,,MATCH(X$4,'C. PoC Adj Factor Scoring'!$E$3:$AH$3,0)-1),MATCH(X$2&\" Score\",'C. PoC Adj Factor Scoring'!$E$4:$J$4,0),TRUE)","v":1},{"$f":"VLOOKUP(OFFSET($B:$B,,MATCH(Y$4,$B$4:$F$4,0)-1),OFFSET('C. PoC Adj Factor Scoring'!$E$5:$J$282,,MATCH(Y$4,'C. PoC Adj Factor Scoring'!$E$3:$AH$3,0)-1),MATCH(Y$2&\" Score\",'C. PoC Adj Factor Scoring'!$E$4:$J$4,0),TRUE)","v":1},{"$f":"VLOOKUP(OFFSET($B:$B,,MATCH(Z$4,$B$4:$F$4,0)-1),OFFSET('C. PoC Adj Factor Scoring'!$E$5:$J$282,,MATCH(Z$4,'C. PoC Adj Factor Scoring'!$E$3:$AH$3,0)-1),MATCH(Z$2&\" Score\",'C. PoC Adj Factor Scoring'!$E$4:$J$4,0),TRUE)","v":1},{"$f":"VLOOKUP(OFFSET($B:$B,,MATCH(AA$4,$B$4:$F$4,0)-1),OFFSET('C. PoC Adj Factor Scoring'!$E$5:$J$282,,MATCH(AA$4,'C. PoC Adj Factor Scoring'!$E$3:$AH$3,0)-1),MATCH(AA$2&\" Score\",'C. PoC Adj Factor Scoring'!$E$4:$J$4,0),TRUE)","v":3},{"$f":"VLOOKUP(OFFSET($B:$B,,MATCH(AB$4,$B$4:$F$4,0)-1),OFFSET('C. PoC Adj Factor Scoring'!$E$5:$J$282,,MATCH(AB$4,'C. PoC Adj Factor Scoring'!$E$3:$AH$3,0)-1),MATCH(AB$2&\" Score\",'C. PoC Adj Factor Scoring'!$E$4:$J$4,0),TRUE)","v":1},{"$f":"VLOOKUP(OFFSET($B:$B,,MATCH(AC$4,$B$4:$F$4,0)-1),OFFSET('C. PoC Adj Factor Scoring'!$E$5:$J$282,,MATCH(AC$4,'C. PoC Adj Factor Scoring'!$E$3:$AH$3,0)-1),MATCH(AC$2&\" Score\",'C. PoC Adj Factor Scoring'!$E$4:$J$4,0),TRUE)","v":1},{"$f":"VLOOKUP(OFFSET($B:$B,,MATCH(AD$4,$B$4:$F$4,0)-1),OFFSET('C. PoC Adj Factor Scoring'!$E$5:$J$282,,MATCH(AD$4,'C. PoC Adj Factor Scoring'!$E$3:$AH$3,0)-1),MATCH(AD$2&\" Score\",'C. PoC Adj Factor Scoring'!$E$4:$J$4,0),TRUE)","v":1},{"$f":"VLOOKUP(OFFSET($B:$B,,MATCH(AE$4,$B$4:$F$4,0)-1),OFFSET('C. PoC Adj Factor Scoring'!$E$5:$J$282,,MATCH(AE$4,'C. PoC Adj Factor Scoring'!$E$3:$AH$3,0)-1),MATCH(AE$2&\" Score\",'C. PoC Adj Factor Scoring'!$E$4:$J$4,0),TRUE)","v":1}]
[{"$f":"'A. Population Info'!A301","v":1000370828},{"$f":"'A. Population Info'!L301","v":"OIL"},{"$f":"'A. Population Info'!M301","v":0},{"$f":"'A. Population Info'!N301","v":0},{"$f":"'A. Population Info'!O301","v":0},{"$f":"'A. Population Info'!P301","v":0},{"$f":"VLOOKUP(OFFSET($B:$B,,MATCH(G$4,$B$4:$F$4,0)-1),OFFSET('C. PoC Adj Factor Scoring'!$E$5:$J$282,,MATCH(G$4,'C. PoC Adj Factor Scoring'!$E$3:$AH$3,0)-1),MATCH(G$2&\" Score\",'C. PoC Adj Factor Scoring'!$E$4:$J$4,0),TRUE)","v":4},{"$f":"VLOOKUP(OFFSET($B:$B,,MATCH(H$4,$B$4:$F$4,0)-1),OFFSET('C. PoC Adj Factor Scoring'!$E$5:$J$282,,MATCH(H$4,'C. PoC Adj Factor Scoring'!$E$3:$AH$3,0)-1),MATCH(H$2&\" Score\",'C. PoC Adj Factor Scoring'!$E$4:$J$4,0),TRUE)","v":1},{"$f":"VLOOKUP(OFFSET($B:$B,,MATCH(I$4,$B$4:$F$4,0)-1),OFFSET('C. PoC Adj Factor Scoring'!$E$5:$J$282,,MATCH(I$4,'C. PoC Adj Factor Scoring'!$E$3:$AH$3,0)-1),MATCH(I$2&\" Score\",'C. PoC Adj Factor Scoring'!$E$4:$J$4,0),TRUE)","v":1},{"$f":"VLOOKUP(OFFSET($B:$B,,MATCH(J$4,$B$4:$F$4,0)-1),OFFSET('C. PoC Adj Factor Scoring'!$E$5:$J$282,,MATCH(J$4,'C. PoC Adj Factor Scoring'!$E$3:$AH$3,0)-1),MATCH(J$2&\" Score\",'C. PoC Adj Factor Scoring'!$E$4:$J$4,0),TRUE)","v":1},{"$f":"VLOOKUP(OFFSET($B:$B,,MATCH(K$4,$B$4:$F$4,0)-1),OFFSET('C. PoC Adj Factor Scoring'!$E$5:$J$282,,MATCH(K$4,'C. PoC Adj Factor Scoring'!$E$3:$AH$3,0)-1),MATCH(K$2&\" Score\",'C. PoC Adj Factor Scoring'!$E$4:$J$4,0),TRUE)","v":1},{"$f":"VLOOKUP(OFFSET($B:$B,,MATCH(L$4,$B$4:$F$4,0)-1),OFFSET('C. PoC Adj Factor Scoring'!$E$5:$J$282,,MATCH(L$4,'C. PoC Adj Factor Scoring'!$E$3:$AH$3,0)-1),MATCH(L$2&\" Score\",'C. PoC Adj Factor Scoring'!$E$4:$J$4,0),TRUE)","v":1},{"$f":"VLOOKUP(OFFSET($B:$B,,MATCH(M$4,$B$4:$F$4,0)-1),OFFSET('C. PoC Adj Factor Scoring'!$E$5:$J$282,,MATCH(M$4,'C. PoC Adj Factor Scoring'!$E$3:$AH$3,0)-1),MATCH(M$2&\" Score\",'C. PoC Adj Factor Scoring'!$E$4:$J$4,0),TRUE)","v":1},{"$f":"VLOOKUP(OFFSET($B:$B,,MATCH(N$4,$B$4:$F$4,0)-1),OFFSET('C. PoC Adj Factor Scoring'!$E$5:$J$282,,MATCH(N$4,'C. PoC Adj Factor Scoring'!$E$3:$AH$3,0)-1),MATCH(N$2&\" Score\",'C. PoC Adj Factor Scoring'!$E$4:$J$4,0),TRUE)","v":1},{"$f":"VLOOKUP(OFFSET($B:$B,,MATCH(O$4,$B$4:$F$4,0)-1),OFFSET('C. PoC Adj Factor Scoring'!$E$5:$J$282,,MATCH(O$4,'C. PoC Adj Factor Scoring'!$E$3:$AH$3,0)-1),MATCH(O$2&\" Score\",'C. PoC Adj Factor Scoring'!$E$4:$J$4,0),TRUE)","v":1},{"$f":"VLOOKUP(OFFSET($B:$B,,MATCH(P$4,$B$4:$F$4,0)-1),OFFSET('C. PoC Adj Factor Scoring'!$E$5:$J$282,,MATCH(P$4,'C. PoC Adj Factor Scoring'!$E$3:$AH$3,0)-1),MATCH(P$2&\" Score\",'C. PoC Adj Factor Scoring'!$E$4:$J$4,0),TRUE)","v":1},{"$f":"VLOOKUP(OFFSET($B:$B,,MATCH(Q$4,$B$4:$F$4,0)-1),OFFSET('C. PoC Adj Factor Scoring'!$E$5:$J$282,,MATCH(Q$4,'C. PoC Adj Factor Scoring'!$E$3:$AH$3,0)-1),MATCH(Q$2&\" Score\",'C. PoC Adj Factor Scoring'!$E$4:$J$4,0),TRUE)","v":1},{"$f":"VLOOKUP(OFFSET($B:$B,,MATCH(R$4,$B$4:$F$4,0)-1),OFFSET('C. PoC Adj Factor Scoring'!$E$5:$J$282,,MATCH(R$4,'C. PoC Adj Factor Scoring'!$E$3:$AH$3,0)-1),MATCH(R$2&\" Score\",'C. PoC Adj Factor Scoring'!$E$4:$J$4,0),TRUE)","v":1},{"$f":"VLOOKUP(OFFSET($B:$B,,MATCH(S$4,$B$4:$F$4,0)-1),OFFSET('C. PoC Adj Factor Scoring'!$E$5:$J$282,,MATCH(S$4,'C. PoC Adj Factor Scoring'!$E$3:$AH$3,0)-1),MATCH(S$2&\" Score\",'C. PoC Adj Factor Scoring'!$E$4:$J$4,0),TRUE)","v":1},{"$f":"VLOOKUP(OFFSET($B:$B,,MATCH(T$4,$B$4:$F$4,0)-1),OFFSET('C. PoC Adj Factor Scoring'!$E$5:$J$282,,MATCH(T$4,'C. PoC Adj Factor Scoring'!$E$3:$AH$3,0)-1),MATCH(T$2&\" Score\",'C. PoC Adj Factor Scoring'!$E$4:$J$4,0),TRUE)","v":1},{"$f":"VLOOKUP(OFFSET($B:$B,,MATCH(U$4,$B$4:$F$4,0)-1),OFFSET('C. PoC Adj Factor Scoring'!$E$5:$J$282,,MATCH(U$4,'C. PoC Adj Factor Scoring'!$E$3:$AH$3,0)-1),MATCH(U$2&\" Score\",'C. PoC Adj Factor Scoring'!$E$4:$J$4,0),TRUE)","v":1},{"$f":"VLOOKUP(OFFSET($B:$B,,MATCH(V$4,$B$4:$F$4,0)-1),OFFSET('C. PoC Adj Factor Scoring'!$E$5:$J$282,,MATCH(V$4,'C. PoC Adj Factor Scoring'!$E$3:$AH$3,0)-1),MATCH(V$2&\" Score\",'C. PoC Adj Factor Scoring'!$E$4:$J$4,0),TRUE)","v":1},{"$f":"VLOOKUP(OFFSET($B:$B,,MATCH(W$4,$B$4:$F$4,0)-1),OFFSET('C. PoC Adj Factor Scoring'!$E$5:$J$282,,MATCH(W$4,'C. PoC Adj Factor Scoring'!$E$3:$AH$3,0)-1),MATCH(W$2&\" Score\",'C. PoC Adj Factor Scoring'!$E$4:$J$4,0),TRUE)","v":1},{"$f":"VLOOKUP(OFFSET($B:$B,,MATCH(X$4,$B$4:$F$4,0)-1),OFFSET('C. PoC Adj Factor Scoring'!$E$5:$J$282,,MATCH(X$4,'C. PoC Adj Factor Scoring'!$E$3:$AH$3,0)-1),MATCH(X$2&\" Score\",'C. PoC Adj Factor Scoring'!$E$4:$J$4,0),TRUE)","v":1},{"$f":"VLOOKUP(OFFSET($B:$B,,MATCH(Y$4,$B$4:$F$4,0)-1),OFFSET('C. PoC Adj Factor Scoring'!$E$5:$J$282,,MATCH(Y$4,'C. PoC Adj Factor Scoring'!$E$3:$AH$3,0)-1),MATCH(Y$2&\" Score\",'C. PoC Adj Factor Scoring'!$E$4:$J$4,0),TRUE)","v":1},{"$f":"VLOOKUP(OFFSET($B:$B,,MATCH(Z$4,$B$4:$F$4,0)-1),OFFSET('C. PoC Adj Factor Scoring'!$E$5:$J$282,,MATCH(Z$4,'C. PoC Adj Factor Scoring'!$E$3:$AH$3,0)-1),MATCH(Z$2&\" Score\",'C. PoC Adj Factor Scoring'!$E$4:$J$4,0),TRUE)","v":1},{"$f":"VLOOKUP(OFFSET($B:$B,,MATCH(AA$4,$B$4:$F$4,0)-1),OFFSET('C. PoC Adj Factor Scoring'!$E$5:$J$282,,MATCH(AA$4,'C. PoC Adj Factor Scoring'!$E$3:$AH$3,0)-1),MATCH(AA$2&\" Score\",'C. PoC Adj Factor Scoring'!$E$4:$J$4,0),TRUE)","v":3},{"$f":"VLOOKUP(OFFSET($B:$B,,MATCH(AB$4,$B$4:$F$4,0)-1),OFFSET('C. PoC Adj Factor Scoring'!$E$5:$J$282,,MATCH(AB$4,'C. PoC Adj Factor Scoring'!$E$3:$AH$3,0)-1),MATCH(AB$2&\" Score\",'C. PoC Adj Factor Scoring'!$E$4:$J$4,0),TRUE)","v":1},{"$f":"VLOOKUP(OFFSET($B:$B,,MATCH(AC$4,$B$4:$F$4,0)-1),OFFSET('C. PoC Adj Factor Scoring'!$E$5:$J$282,,MATCH(AC$4,'C. PoC Adj Factor Scoring'!$E$3:$AH$3,0)-1),MATCH(AC$2&\" Score\",'C. PoC Adj Factor Scoring'!$E$4:$J$4,0),TRUE)","v":1},{"$f":"VLOOKUP(OFFSET($B:$B,,MATCH(AD$4,$B$4:$F$4,0)-1),OFFSET('C. PoC Adj Factor Scoring'!$E$5:$J$282,,MATCH(AD$4,'C. PoC Adj Factor Scoring'!$E$3:$AH$3,0)-1),MATCH(AD$2&\" Score\",'C. PoC Adj Factor Scoring'!$E$4:$J$4,0),TRUE)","v":1},{"$f":"VLOOKUP(OFFSET($B:$B,,MATCH(AE$4,$B$4:$F$4,0)-1),OFFSET('C. PoC Adj Factor Scoring'!$E$5:$J$282,,MATCH(AE$4,'C. PoC Adj Factor Scoring'!$E$3:$AH$3,0)-1),MATCH(AE$2&\" Score\",'C. PoC Adj Factor Scoring'!$E$4:$J$4,0),TRUE)","v":1}]
[{"$f":"'A. Population Info'!A302","v":1000370886},{"$f":"'A. Population Info'!L302","v":"OIL"},{"$f":"'A. Population Info'!M302","v":0},{"$f":"'A. Population Info'!N302","v":0},{"$f":"'A. Population Info'!O302","v":0},{"$f":"'A. Population Info'!P302","v":0},{"$f":"VLOOKUP(OFFSET($B:$B,,MATCH(G$4,$B$4:$F$4,0)-1),OFFSET('C. PoC Adj Factor Scoring'!$E$5:$J$282,,MATCH(G$4,'C. PoC Adj Factor Scoring'!$E$3:$AH$3,0)-1),MATCH(G$2&\" Score\",'C. PoC Adj Factor Scoring'!$E$4:$J$4,0),TRUE)","v":4},{"$f":"VLOOKUP(OFFSET($B:$B,,MATCH(H$4,$B$4:$F$4,0)-1),OFFSET('C. PoC Adj Factor Scoring'!$E$5:$J$282,,MATCH(H$4,'C. PoC Adj Factor Scoring'!$E$3:$AH$3,0)-1),MATCH(H$2&\" Score\",'C. PoC Adj Factor Scoring'!$E$4:$J$4,0),TRUE)","v":1},{"$f":"VLOOKUP(OFFSET($B:$B,,MATCH(I$4,$B$4:$F$4,0)-1),OFFSET('C. PoC Adj Factor Scoring'!$E$5:$J$282,,MATCH(I$4,'C. PoC Adj Factor Scoring'!$E$3:$AH$3,0)-1),MATCH(I$2&\" Score\",'C. PoC Adj Factor Scoring'!$E$4:$J$4,0),TRUE)","v":1},{"$f":"VLOOKUP(OFFSET($B:$B,,MATCH(J$4,$B$4:$F$4,0)-1),OFFSET('C. PoC Adj Factor Scoring'!$E$5:$J$282,,MATCH(J$4,'C. PoC Adj Factor Scoring'!$E$3:$AH$3,0)-1),MATCH(J$2&\" Score\",'C. PoC Adj Factor Scoring'!$E$4:$J$4,0),TRUE)","v":1},{"$f":"VLOOKUP(OFFSET($B:$B,,MATCH(K$4,$B$4:$F$4,0)-1),OFFSET('C. PoC Adj Factor Scoring'!$E$5:$J$282,,MATCH(K$4,'C. PoC Adj Factor Scoring'!$E$3:$AH$3,0)-1),MATCH(K$2&\" Score\",'C. PoC Adj Factor Scoring'!$E$4:$J$4,0),TRUE)","v":1},{"$f":"VLOOKUP(OFFSET($B:$B,,MATCH(L$4,$B$4:$F$4,0)-1),OFFSET('C. PoC Adj Factor Scoring'!$E$5:$J$282,,MATCH(L$4,'C. PoC Adj Factor Scoring'!$E$3:$AH$3,0)-1),MATCH(L$2&\" Score\",'C. PoC Adj Factor Scoring'!$E$4:$J$4,0),TRUE)","v":1},{"$f":"VLOOKUP(OFFSET($B:$B,,MATCH(M$4,$B$4:$F$4,0)-1),OFFSET('C. PoC Adj Factor Scoring'!$E$5:$J$282,,MATCH(M$4,'C. PoC Adj Factor Scoring'!$E$3:$AH$3,0)-1),MATCH(M$2&\" Score\",'C. PoC Adj Factor Scoring'!$E$4:$J$4,0),TRUE)","v":1},{"$f":"VLOOKUP(OFFSET($B:$B,,MATCH(N$4,$B$4:$F$4,0)-1),OFFSET('C. PoC Adj Factor Scoring'!$E$5:$J$282,,MATCH(N$4,'C. PoC Adj Factor Scoring'!$E$3:$AH$3,0)-1),MATCH(N$2&\" Score\",'C. PoC Adj Factor Scoring'!$E$4:$J$4,0),TRUE)","v":1},{"$f":"VLOOKUP(OFFSET($B:$B,,MATCH(O$4,$B$4:$F$4,0)-1),OFFSET('C. PoC Adj Factor Scoring'!$E$5:$J$282,,MATCH(O$4,'C. PoC Adj Factor Scoring'!$E$3:$AH$3,0)-1),MATCH(O$2&\" Score\",'C. PoC Adj Factor Scoring'!$E$4:$J$4,0),TRUE)","v":1},{"$f":"VLOOKUP(OFFSET($B:$B,,MATCH(P$4,$B$4:$F$4,0)-1),OFFSET('C. PoC Adj Factor Scoring'!$E$5:$J$282,,MATCH(P$4,'C. PoC Adj Factor Scoring'!$E$3:$AH$3,0)-1),MATCH(P$2&\" Score\",'C. PoC Adj Factor Scoring'!$E$4:$J$4,0),TRUE)","v":1},{"$f":"VLOOKUP(OFFSET($B:$B,,MATCH(Q$4,$B$4:$F$4,0)-1),OFFSET('C. PoC Adj Factor Scoring'!$E$5:$J$282,,MATCH(Q$4,'C. PoC Adj Factor Scoring'!$E$3:$AH$3,0)-1),MATCH(Q$2&\" Score\",'C. PoC Adj Factor Scoring'!$E$4:$J$4,0),TRUE)","v":1},{"$f":"VLOOKUP(OFFSET($B:$B,,MATCH(R$4,$B$4:$F$4,0)-1),OFFSET('C. PoC Adj Factor Scoring'!$E$5:$J$282,,MATCH(R$4,'C. PoC Adj Factor Scoring'!$E$3:$AH$3,0)-1),MATCH(R$2&\" Score\",'C. PoC Adj Factor Scoring'!$E$4:$J$4,0),TRUE)","v":1},{"$f":"VLOOKUP(OFFSET($B:$B,,MATCH(S$4,$B$4:$F$4,0)-1),OFFSET('C. PoC Adj Factor Scoring'!$E$5:$J$282,,MATCH(S$4,'C. PoC Adj Factor Scoring'!$E$3:$AH$3,0)-1),MATCH(S$2&\" Score\",'C. PoC Adj Factor Scoring'!$E$4:$J$4,0),TRUE)","v":1},{"$f":"VLOOKUP(OFFSET($B:$B,,MATCH(T$4,$B$4:$F$4,0)-1),OFFSET('C. PoC Adj Factor Scoring'!$E$5:$J$282,,MATCH(T$4,'C. PoC Adj Factor Scoring'!$E$3:$AH$3,0)-1),MATCH(T$2&\" Score\",'C. PoC Adj Factor Scoring'!$E$4:$J$4,0),TRUE)","v":1},{"$f":"VLOOKUP(OFFSET($B:$B,,MATCH(U$4,$B$4:$F$4,0)-1),OFFSET('C. PoC Adj Factor Scoring'!$E$5:$J$282,,MATCH(U$4,'C. PoC Adj Factor Scoring'!$E$3:$AH$3,0)-1),MATCH(U$2&\" Score\",'C. PoC Adj Factor Scoring'!$E$4:$J$4,0),TRUE)","v":1},{"$f":"VLOOKUP(OFFSET($B:$B,,MATCH(V$4,$B$4:$F$4,0)-1),OFFSET('C. PoC Adj Factor Scoring'!$E$5:$J$282,,MATCH(V$4,'C. PoC Adj Factor Scoring'!$E$3:$AH$3,0)-1),MATCH(V$2&\" Score\",'C. PoC Adj Factor Scoring'!$E$4:$J$4,0),TRUE)","v":1},{"$f":"VLOOKUP(OFFSET($B:$B,,MATCH(W$4,$B$4:$F$4,0)-1),OFFSET('C. PoC Adj Factor Scoring'!$E$5:$J$282,,MATCH(W$4,'C. PoC Adj Factor Scoring'!$E$3:$AH$3,0)-1),MATCH(W$2&\" Score\",'C. PoC Adj Factor Scoring'!$E$4:$J$4,0),TRUE)","v":1},{"$f":"VLOOKUP(OFFSET($B:$B,,MATCH(X$4,$B$4:$F$4,0)-1),OFFSET('C. PoC Adj Factor Scoring'!$E$5:$J$282,,MATCH(X$4,'C. PoC Adj Factor Scoring'!$E$3:$AH$3,0)-1),MATCH(X$2&\" Score\",'C. PoC Adj Factor Scoring'!$E$4:$J$4,0),TRUE)","v":1},{"$f":"VLOOKUP(OFFSET($B:$B,,MATCH(Y$4,$B$4:$F$4,0)-1),OFFSET('C. PoC Adj Factor Scoring'!$E$5:$J$282,,MATCH(Y$4,'C. PoC Adj Factor Scoring'!$E$3:$AH$3,0)-1),MATCH(Y$2&\" Score\",'C. PoC Adj Factor Scoring'!$E$4:$J$4,0),TRUE)","v":1},{"$f":"VLOOKUP(OFFSET($B:$B,,MATCH(Z$4,$B$4:$F$4,0)-1),OFFSET('C. PoC Adj Factor Scoring'!$E$5:$J$282,,MATCH(Z$4,'C. PoC Adj Factor Scoring'!$E$3:$AH$3,0)-1),MATCH(Z$2&\" Score\",'C. PoC Adj Factor Scoring'!$E$4:$J$4,0),TRUE)","v":1},{"$f":"VLOOKUP(OFFSET($B:$B,,MATCH(AA$4,$B$4:$F$4,0)-1),OFFSET('C. PoC Adj Factor Scoring'!$E$5:$J$282,,MATCH(AA$4,'C. PoC Adj Factor Scoring'!$E$3:$AH$3,0)-1),MATCH(AA$2&\" Score\",'C. PoC Adj Factor Scoring'!$E$4:$J$4,0),TRUE)","v":3},{"$f":"VLOOKUP(OFFSET($B:$B,,MATCH(AB$4,$B$4:$F$4,0)-1),OFFSET('C. PoC Adj Factor Scoring'!$E$5:$J$282,,MATCH(AB$4,'C. PoC Adj Factor Scoring'!$E$3:$AH$3,0)-1),MATCH(AB$2&\" Score\",'C. PoC Adj Factor Scoring'!$E$4:$J$4,0),TRUE)","v":1},{"$f":"VLOOKUP(OFFSET($B:$B,,MATCH(AC$4,$B$4:$F$4,0)-1),OFFSET('C. PoC Adj Factor Scoring'!$E$5:$J$282,,MATCH(AC$4,'C. PoC Adj Factor Scoring'!$E$3:$AH$3,0)-1),MATCH(AC$2&\" Score\",'C. PoC Adj Factor Scoring'!$E$4:$J$4,0),TRUE)","v":1},{"$f":"VLOOKUP(OFFSET($B:$B,,MATCH(AD$4,$B$4:$F$4,0)-1),OFFSET('C. PoC Adj Factor Scoring'!$E$5:$J$282,,MATCH(AD$4,'C. PoC Adj Factor Scoring'!$E$3:$AH$3,0)-1),MATCH(AD$2&\" Score\",'C. PoC Adj Factor Scoring'!$E$4:$J$4,0),TRUE)","v":1},{"$f":"VLOOKUP(OFFSET($B:$B,,MATCH(AE$4,$B$4:$F$4,0)-1),OFFSET('C. PoC Adj Factor Scoring'!$E$5:$J$282,,MATCH(AE$4,'C. PoC Adj Factor Scoring'!$E$3:$AH$3,0)-1),MATCH(AE$2&\" Score\",'C. PoC Adj Factor Scoring'!$E$4:$J$4,0),TRUE)","v":1}]
[{"$f":"'A. Population Info'!A303","v":1000374033},{"$f":"'A. Population Info'!L303","v":"OIL"},{"$f":"'A. Population Info'!M303","v":0},{"$f":"'A. Population Info'!N303","v":0},{"$f":"'A. Population Info'!O303","v":0},{"$f":"'A. Population Info'!P303","v":0},{"$f":"VLOOKUP(OFFSET($B:$B,,MATCH(G$4,$B$4:$F$4,0)-1),OFFSET('C. PoC Adj Factor Scoring'!$E$5:$J$282,,MATCH(G$4,'C. PoC Adj Factor Scoring'!$E$3:$AH$3,0)-1),MATCH(G$2&\" Score\",'C. PoC Adj Factor Scoring'!$E$4:$J$4,0),TRUE)","v":4},{"$f":"VLOOKUP(OFFSET($B:$B,,MATCH(H$4,$B$4:$F$4,0)-1),OFFSET('C. PoC Adj Factor Scoring'!$E$5:$J$282,,MATCH(H$4,'C. PoC Adj Factor Scoring'!$E$3:$AH$3,0)-1),MATCH(H$2&\" Score\",'C. PoC Adj Factor Scoring'!$E$4:$J$4,0),TRUE)","v":1},{"$f":"VLOOKUP(OFFSET($B:$B,,MATCH(I$4,$B$4:$F$4,0)-1),OFFSET('C. PoC Adj Factor Scoring'!$E$5:$J$282,,MATCH(I$4,'C. PoC Adj Factor Scoring'!$E$3:$AH$3,0)-1),MATCH(I$2&\" Score\",'C. PoC Adj Factor Scoring'!$E$4:$J$4,0),TRUE)","v":1},{"$f":"VLOOKUP(OFFSET($B:$B,,MATCH(J$4,$B$4:$F$4,0)-1),OFFSET('C. PoC Adj Factor Scoring'!$E$5:$J$282,,MATCH(J$4,'C. PoC Adj Factor Scoring'!$E$3:$AH$3,0)-1),MATCH(J$2&\" Score\",'C. PoC Adj Factor Scoring'!$E$4:$J$4,0),TRUE)","v":1},{"$f":"VLOOKUP(OFFSET($B:$B,,MATCH(K$4,$B$4:$F$4,0)-1),OFFSET('C. PoC Adj Factor Scoring'!$E$5:$J$282,,MATCH(K$4,'C. PoC Adj Factor Scoring'!$E$3:$AH$3,0)-1),MATCH(K$2&\" Score\",'C. PoC Adj Factor Scoring'!$E$4:$J$4,0),TRUE)","v":1},{"$f":"VLOOKUP(OFFSET($B:$B,,MATCH(L$4,$B$4:$F$4,0)-1),OFFSET('C. PoC Adj Factor Scoring'!$E$5:$J$282,,MATCH(L$4,'C. PoC Adj Factor Scoring'!$E$3:$AH$3,0)-1),MATCH(L$2&\" Score\",'C. PoC Adj Factor Scoring'!$E$4:$J$4,0),TRUE)","v":1},{"$f":"VLOOKUP(OFFSET($B:$B,,MATCH(M$4,$B$4:$F$4,0)-1),OFFSET('C. PoC Adj Factor Scoring'!$E$5:$J$282,,MATCH(M$4,'C. PoC Adj Factor Scoring'!$E$3:$AH$3,0)-1),MATCH(M$2&\" Score\",'C. PoC Adj Factor Scoring'!$E$4:$J$4,0),TRUE)","v":1},{"$f":"VLOOKUP(OFFSET($B:$B,,MATCH(N$4,$B$4:$F$4,0)-1),OFFSET('C. PoC Adj Factor Scoring'!$E$5:$J$282,,MATCH(N$4,'C. PoC Adj Factor Scoring'!$E$3:$AH$3,0)-1),MATCH(N$2&\" Score\",'C. PoC Adj Factor Scoring'!$E$4:$J$4,0),TRUE)","v":1},{"$f":"VLOOKUP(OFFSET($B:$B,,MATCH(O$4,$B$4:$F$4,0)-1),OFFSET('C. PoC Adj Factor Scoring'!$E$5:$J$282,,MATCH(O$4,'C. PoC Adj Factor Scoring'!$E$3:$AH$3,0)-1),MATCH(O$2&\" Score\",'C. PoC Adj Factor Scoring'!$E$4:$J$4,0),TRUE)","v":1},{"$f":"VLOOKUP(OFFSET($B:$B,,MATCH(P$4,$B$4:$F$4,0)-1),OFFSET('C. PoC Adj Factor Scoring'!$E$5:$J$282,,MATCH(P$4,'C. PoC Adj Factor Scoring'!$E$3:$AH$3,0)-1),MATCH(P$2&\" Score\",'C. PoC Adj Factor Scoring'!$E$4:$J$4,0),TRUE)","v":1},{"$f":"VLOOKUP(OFFSET($B:$B,,MATCH(Q$4,$B$4:$F$4,0)-1),OFFSET('C. PoC Adj Factor Scoring'!$E$5:$J$282,,MATCH(Q$4,'C. PoC Adj Factor Scoring'!$E$3:$AH$3,0)-1),MATCH(Q$2&\" Score\",'C. PoC Adj Factor Scoring'!$E$4:$J$4,0),TRUE)","v":1},{"$f":"VLOOKUP(OFFSET($B:$B,,MATCH(R$4,$B$4:$F$4,0)-1),OFFSET('C. PoC Adj Factor Scoring'!$E$5:$J$282,,MATCH(R$4,'C. PoC Adj Factor Scoring'!$E$3:$AH$3,0)-1),MATCH(R$2&\" Score\",'C. PoC Adj Factor Scoring'!$E$4:$J$4,0),TRUE)","v":1},{"$f":"VLOOKUP(OFFSET($B:$B,,MATCH(S$4,$B$4:$F$4,0)-1),OFFSET('C. PoC Adj Factor Scoring'!$E$5:$J$282,,MATCH(S$4,'C. PoC Adj Factor Scoring'!$E$3:$AH$3,0)-1),MATCH(S$2&\" Score\",'C. PoC Adj Factor Scoring'!$E$4:$J$4,0),TRUE)","v":1},{"$f":"VLOOKUP(OFFSET($B:$B,,MATCH(T$4,$B$4:$F$4,0)-1),OFFSET('C. PoC Adj Factor Scoring'!$E$5:$J$282,,MATCH(T$4,'C. PoC Adj Factor Scoring'!$E$3:$AH$3,0)-1),MATCH(T$2&\" Score\",'C. PoC Adj Factor Scoring'!$E$4:$J$4,0),TRUE)","v":1},{"$f":"VLOOKUP(OFFSET($B:$B,,MATCH(U$4,$B$4:$F$4,0)-1),OFFSET('C. PoC Adj Factor Scoring'!$E$5:$J$282,,MATCH(U$4,'C. PoC Adj Factor Scoring'!$E$3:$AH$3,0)-1),MATCH(U$2&\" Score\",'C. PoC Adj Factor Scoring'!$E$4:$J$4,0),TRUE)","v":1},{"$f":"VLOOKUP(OFFSET($B:$B,,MATCH(V$4,$B$4:$F$4,0)-1),OFFSET('C. PoC Adj Factor Scoring'!$E$5:$J$282,,MATCH(V$4,'C. PoC Adj Factor Scoring'!$E$3:$AH$3,0)-1),MATCH(V$2&\" Score\",'C. PoC Adj Factor Scoring'!$E$4:$J$4,0),TRUE)","v":1},{"$f":"VLOOKUP(OFFSET($B:$B,,MATCH(W$4,$B$4:$F$4,0)-1),OFFSET('C. PoC Adj Factor Scoring'!$E$5:$J$282,,MATCH(W$4,'C. PoC Adj Factor Scoring'!$E$3:$AH$3,0)-1),MATCH(W$2&\" Score\",'C. PoC Adj Factor Scoring'!$E$4:$J$4,0),TRUE)","v":1},{"$f":"VLOOKUP(OFFSET($B:$B,,MATCH(X$4,$B$4:$F$4,0)-1),OFFSET('C. PoC Adj Factor Scoring'!$E$5:$J$282,,MATCH(X$4,'C. PoC Adj Factor Scoring'!$E$3:$AH$3,0)-1),MATCH(X$2&\" Score\",'C. PoC Adj Factor Scoring'!$E$4:$J$4,0),TRUE)","v":1},{"$f":"VLOOKUP(OFFSET($B:$B,,MATCH(Y$4,$B$4:$F$4,0)-1),OFFSET('C. PoC Adj Factor Scoring'!$E$5:$J$282,,MATCH(Y$4,'C. PoC Adj Factor Scoring'!$E$3:$AH$3,0)-1),MATCH(Y$2&\" Score\",'C. PoC Adj Factor Scoring'!$E$4:$J$4,0),TRUE)","v":1},{"$f":"VLOOKUP(OFFSET($B:$B,,MATCH(Z$4,$B$4:$F$4,0)-1),OFFSET('C. PoC Adj Factor Scoring'!$E$5:$J$282,,MATCH(Z$4,'C. PoC Adj Factor Scoring'!$E$3:$AH$3,0)-1),MATCH(Z$2&\" Score\",'C. PoC Adj Factor Scoring'!$E$4:$J$4,0),TRUE)","v":1},{"$f":"VLOOKUP(OFFSET($B:$B,,MATCH(AA$4,$B$4:$F$4,0)-1),OFFSET('C. PoC Adj Factor Scoring'!$E$5:$J$282,,MATCH(AA$4,'C. PoC Adj Factor Scoring'!$E$3:$AH$3,0)-1),MATCH(AA$2&\" Score\",'C. PoC Adj Factor Scoring'!$E$4:$J$4,0),TRUE)","v":3},{"$f":"VLOOKUP(OFFSET($B:$B,,MATCH(AB$4,$B$4:$F$4,0)-1),OFFSET('C. PoC Adj Factor Scoring'!$E$5:$J$282,,MATCH(AB$4,'C. PoC Adj Factor Scoring'!$E$3:$AH$3,0)-1),MATCH(AB$2&\" Score\",'C. PoC Adj Factor Scoring'!$E$4:$J$4,0),TRUE)","v":1},{"$f":"VLOOKUP(OFFSET($B:$B,,MATCH(AC$4,$B$4:$F$4,0)-1),OFFSET('C. PoC Adj Factor Scoring'!$E$5:$J$282,,MATCH(AC$4,'C. PoC Adj Factor Scoring'!$E$3:$AH$3,0)-1),MATCH(AC$2&\" Score\",'C. PoC Adj Factor Scoring'!$E$4:$J$4,0),TRUE)","v":1},{"$f":"VLOOKUP(OFFSET($B:$B,,MATCH(AD$4,$B$4:$F$4,0)-1),OFFSET('C. PoC Adj Factor Scoring'!$E$5:$J$282,,MATCH(AD$4,'C. PoC Adj Factor Scoring'!$E$3:$AH$3,0)-1),MATCH(AD$2&\" Score\",'C. PoC Adj Factor Scoring'!$E$4:$J$4,0),TRUE)","v":1},{"$f":"VLOOKUP(OFFSET($B:$B,,MATCH(AE$4,$B$4:$F$4,0)-1),OFFSET('C. PoC Adj Factor Scoring'!$E$5:$J$282,,MATCH(AE$4,'C. PoC Adj Factor Scoring'!$E$3:$AH$3,0)-1),MATCH(AE$2&\" Score\",'C. PoC Adj Factor Scoring'!$E$4:$J$4,0),TRUE)","v":1}]
[{"$f":"'A. Population Info'!A304","v":1000374059},{"$f":"'A. Population Info'!L304","v":"OIL"},{"$f":"'A. Population Info'!M304","v":0},{"$f":"'A. Population Info'!N304","v":0},{"$f":"'A. Population Info'!O304","v":0},{"$f":"'A. Population Info'!P304","v":0},{"$f":"VLOOKUP(OFFSET($B:$B,,MATCH(G$4,$B$4:$F$4,0)-1),OFFSET('C. PoC Adj Factor Scoring'!$E$5:$J$282,,MATCH(G$4,'C. PoC Adj Factor Scoring'!$E$3:$AH$3,0)-1),MATCH(G$2&\" Score\",'C. PoC Adj Factor Scoring'!$E$4:$J$4,0),TRUE)","v":4},{"$f":"VLOOKUP(OFFSET($B:$B,,MATCH(H$4,$B$4:$F$4,0)-1),OFFSET('C. PoC Adj Factor Scoring'!$E$5:$J$282,,MATCH(H$4,'C. PoC Adj Factor Scoring'!$E$3:$AH$3,0)-1),MATCH(H$2&\" Score\",'C. PoC Adj Factor Scoring'!$E$4:$J$4,0),TRUE)","v":1},{"$f":"VLOOKUP(OFFSET($B:$B,,MATCH(I$4,$B$4:$F$4,0)-1),OFFSET('C. PoC Adj Factor Scoring'!$E$5:$J$282,,MATCH(I$4,'C. PoC Adj Factor Scoring'!$E$3:$AH$3,0)-1),MATCH(I$2&\" Score\",'C. PoC Adj Factor Scoring'!$E$4:$J$4,0),TRUE)","v":1},{"$f":"VLOOKUP(OFFSET($B:$B,,MATCH(J$4,$B$4:$F$4,0)-1),OFFSET('C. PoC Adj Factor Scoring'!$E$5:$J$282,,MATCH(J$4,'C. PoC Adj Factor Scoring'!$E$3:$AH$3,0)-1),MATCH(J$2&\" Score\",'C. PoC Adj Factor Scoring'!$E$4:$J$4,0),TRUE)","v":1},{"$f":"VLOOKUP(OFFSET($B:$B,,MATCH(K$4,$B$4:$F$4,0)-1),OFFSET('C. PoC Adj Factor Scoring'!$E$5:$J$282,,MATCH(K$4,'C. PoC Adj Factor Scoring'!$E$3:$AH$3,0)-1),MATCH(K$2&\" Score\",'C. PoC Adj Factor Scoring'!$E$4:$J$4,0),TRUE)","v":1},{"$f":"VLOOKUP(OFFSET($B:$B,,MATCH(L$4,$B$4:$F$4,0)-1),OFFSET('C. PoC Adj Factor Scoring'!$E$5:$J$282,,MATCH(L$4,'C. PoC Adj Factor Scoring'!$E$3:$AH$3,0)-1),MATCH(L$2&\" Score\",'C. PoC Adj Factor Scoring'!$E$4:$J$4,0),TRUE)","v":1},{"$f":"VLOOKUP(OFFSET($B:$B,,MATCH(M$4,$B$4:$F$4,0)-1),OFFSET('C. PoC Adj Factor Scoring'!$E$5:$J$282,,MATCH(M$4,'C. PoC Adj Factor Scoring'!$E$3:$AH$3,0)-1),MATCH(M$2&\" Score\",'C. PoC Adj Factor Scoring'!$E$4:$J$4,0),TRUE)","v":1},{"$f":"VLOOKUP(OFFSET($B:$B,,MATCH(N$4,$B$4:$F$4,0)-1),OFFSET('C. PoC Adj Factor Scoring'!$E$5:$J$282,,MATCH(N$4,'C. PoC Adj Factor Scoring'!$E$3:$AH$3,0)-1),MATCH(N$2&\" Score\",'C. PoC Adj Factor Scoring'!$E$4:$J$4,0),TRUE)","v":1},{"$f":"VLOOKUP(OFFSET($B:$B,,MATCH(O$4,$B$4:$F$4,0)-1),OFFSET('C. PoC Adj Factor Scoring'!$E$5:$J$282,,MATCH(O$4,'C. PoC Adj Factor Scoring'!$E$3:$AH$3,0)-1),MATCH(O$2&\" Score\",'C. PoC Adj Factor Scoring'!$E$4:$J$4,0),TRUE)","v":1},{"$f":"VLOOKUP(OFFSET($B:$B,,MATCH(P$4,$B$4:$F$4,0)-1),OFFSET('C. PoC Adj Factor Scoring'!$E$5:$J$282,,MATCH(P$4,'C. PoC Adj Factor Scoring'!$E$3:$AH$3,0)-1),MATCH(P$2&\" Score\",'C. PoC Adj Factor Scoring'!$E$4:$J$4,0),TRUE)","v":1},{"$f":"VLOOKUP(OFFSET($B:$B,,MATCH(Q$4,$B$4:$F$4,0)-1),OFFSET('C. PoC Adj Factor Scoring'!$E$5:$J$282,,MATCH(Q$4,'C. PoC Adj Factor Scoring'!$E$3:$AH$3,0)-1),MATCH(Q$2&\" Score\",'C. PoC Adj Factor Scoring'!$E$4:$J$4,0),TRUE)","v":1},{"$f":"VLOOKUP(OFFSET($B:$B,,MATCH(R$4,$B$4:$F$4,0)-1),OFFSET('C. PoC Adj Factor Scoring'!$E$5:$J$282,,MATCH(R$4,'C. PoC Adj Factor Scoring'!$E$3:$AH$3,0)-1),MATCH(R$2&\" Score\",'C. PoC Adj Factor Scoring'!$E$4:$J$4,0),TRUE)","v":1},{"$f":"VLOOKUP(OFFSET($B:$B,,MATCH(S$4,$B$4:$F$4,0)-1),OFFSET('C. PoC Adj Factor Scoring'!$E$5:$J$282,,MATCH(S$4,'C. PoC Adj Factor Scoring'!$E$3:$AH$3,0)-1),MATCH(S$2&\" Score\",'C. PoC Adj Factor Scoring'!$E$4:$J$4,0),TRUE)","v":1},{"$f":"VLOOKUP(OFFSET($B:$B,,MATCH(T$4,$B$4:$F$4,0)-1),OFFSET('C. PoC Adj Factor Scoring'!$E$5:$J$282,,MATCH(T$4,'C. PoC Adj Factor Scoring'!$E$3:$AH$3,0)-1),MATCH(T$2&\" Score\",'C. PoC Adj Factor Scoring'!$E$4:$J$4,0),TRUE)","v":1},{"$f":"VLOOKUP(OFFSET($B:$B,,MATCH(U$4,$B$4:$F$4,0)-1),OFFSET('C. PoC Adj Factor Scoring'!$E$5:$J$282,,MATCH(U$4,'C. PoC Adj Factor Scoring'!$E$3:$AH$3,0)-1),MATCH(U$2&\" Score\",'C. PoC Adj Factor Scoring'!$E$4:$J$4,0),TRUE)","v":1},{"$f":"VLOOKUP(OFFSET($B:$B,,MATCH(V$4,$B$4:$F$4,0)-1),OFFSET('C. PoC Adj Factor Scoring'!$E$5:$J$282,,MATCH(V$4,'C. PoC Adj Factor Scoring'!$E$3:$AH$3,0)-1),MATCH(V$2&\" Score\",'C. PoC Adj Factor Scoring'!$E$4:$J$4,0),TRUE)","v":1},{"$f":"VLOOKUP(OFFSET($B:$B,,MATCH(W$4,$B$4:$F$4,0)-1),OFFSET('C. PoC Adj Factor Scoring'!$E$5:$J$282,,MATCH(W$4,'C. PoC Adj Factor Scoring'!$E$3:$AH$3,0)-1),MATCH(W$2&\" Score\",'C. PoC Adj Factor Scoring'!$E$4:$J$4,0),TRUE)","v":1},{"$f":"VLOOKUP(OFFSET($B:$B,,MATCH(X$4,$B$4:$F$4,0)-1),OFFSET('C. PoC Adj Factor Scoring'!$E$5:$J$282,,MATCH(X$4,'C. PoC Adj Factor Scoring'!$E$3:$AH$3,0)-1),MATCH(X$2&\" Score\",'C. PoC Adj Factor Scoring'!$E$4:$J$4,0),TRUE)","v":1},{"$f":"VLOOKUP(OFFSET($B:$B,,MATCH(Y$4,$B$4:$F$4,0)-1),OFFSET('C. PoC Adj Factor Scoring'!$E$5:$J$282,,MATCH(Y$4,'C. PoC Adj Factor Scoring'!$E$3:$AH$3,0)-1),MATCH(Y$2&\" Score\",'C. PoC Adj Factor Scoring'!$E$4:$J$4,0),TRUE)","v":1},{"$f":"VLOOKUP(OFFSET($B:$B,,MATCH(Z$4,$B$4:$F$4,0)-1),OFFSET('C. PoC Adj Factor Scoring'!$E$5:$J$282,,MATCH(Z$4,'C. PoC Adj Factor Scoring'!$E$3:$AH$3,0)-1),MATCH(Z$2&\" Score\",'C. PoC Adj Factor Scoring'!$E$4:$J$4,0),TRUE)","v":1},{"$f":"VLOOKUP(OFFSET($B:$B,,MATCH(AA$4,$B$4:$F$4,0)-1),OFFSET('C. PoC Adj Factor Scoring'!$E$5:$J$282,,MATCH(AA$4,'C. PoC Adj Factor Scoring'!$E$3:$AH$3,0)-1),MATCH(AA$2&\" Score\",'C. PoC Adj Factor Scoring'!$E$4:$J$4,0),TRUE)","v":3},{"$f":"VLOOKUP(OFFSET($B:$B,,MATCH(AB$4,$B$4:$F$4,0)-1),OFFSET('C. PoC Adj Factor Scoring'!$E$5:$J$282,,MATCH(AB$4,'C. PoC Adj Factor Scoring'!$E$3:$AH$3,0)-1),MATCH(AB$2&\" Score\",'C. PoC Adj Factor Scoring'!$E$4:$J$4,0),TRUE)","v":1},{"$f":"VLOOKUP(OFFSET($B:$B,,MATCH(AC$4,$B$4:$F$4,0)-1),OFFSET('C. PoC Adj Factor Scoring'!$E$5:$J$282,,MATCH(AC$4,'C. PoC Adj Factor Scoring'!$E$3:$AH$3,0)-1),MATCH(AC$2&\" Score\",'C. PoC Adj Factor Scoring'!$E$4:$J$4,0),TRUE)","v":1},{"$f":"VLOOKUP(OFFSET($B:$B,,MATCH(AD$4,$B$4:$F$4,0)-1),OFFSET('C. PoC Adj Factor Scoring'!$E$5:$J$282,,MATCH(AD$4,'C. PoC Adj Factor Scoring'!$E$3:$AH$3,0)-1),MATCH(AD$2&\" Score\",'C. PoC Adj Factor Scoring'!$E$4:$J$4,0),TRUE)","v":1},{"$f":"VLOOKUP(OFFSET($B:$B,,MATCH(AE$4,$B$4:$F$4,0)-1),OFFSET('C. PoC Adj Factor Scoring'!$E$5:$J$282,,MATCH(AE$4,'C. PoC Adj Factor Scoring'!$E$3:$AH$3,0)-1),MATCH(AE$2&\" Score\",'C. PoC Adj Factor Scoring'!$E$4:$J$4,0),TRUE)","v":1}]
[{"$f":"'A. Population Info'!A305","v":1000374121},{"$f":"'A. Population Info'!L305","v":"OIL"},{"$f":"'A. Population Info'!M305","v":0},{"$f":"'A. Population Info'!N305","v":0},{"$f":"'A. Population Info'!O305","v":0},{"$f":"'A. Population Info'!P305","v":0},{"$f":"VLOOKUP(OFFSET($B:$B,,MATCH(G$4,$B$4:$F$4,0)-1),OFFSET('C. PoC Adj Factor Scoring'!$E$5:$J$282,,MATCH(G$4,'C. PoC Adj Factor Scoring'!$E$3:$AH$3,0)-1),MATCH(G$2&\" Score\",'C. PoC Adj Factor Scoring'!$E$4:$J$4,0),TRUE)","v":4},{"$f":"VLOOKUP(OFFSET($B:$B,,MATCH(H$4,$B$4:$F$4,0)-1),OFFSET('C. PoC Adj Factor Scoring'!$E$5:$J$282,,MATCH(H$4,'C. PoC Adj Factor Scoring'!$E$3:$AH$3,0)-1),MATCH(H$2&\" Score\",'C. PoC Adj Factor Scoring'!$E$4:$J$4,0),TRUE)","v":1},{"$f":"VLOOKUP(OFFSET($B:$B,,MATCH(I$4,$B$4:$F$4,0)-1),OFFSET('C. PoC Adj Factor Scoring'!$E$5:$J$282,,MATCH(I$4,'C. PoC Adj Factor Scoring'!$E$3:$AH$3,0)-1),MATCH(I$2&\" Score\",'C. PoC Adj Factor Scoring'!$E$4:$J$4,0),TRUE)","v":1},{"$f":"VLOOKUP(OFFSET($B:$B,,MATCH(J$4,$B$4:$F$4,0)-1),OFFSET('C. PoC Adj Factor Scoring'!$E$5:$J$282,,MATCH(J$4,'C. PoC Adj Factor Scoring'!$E$3:$AH$3,0)-1),MATCH(J$2&\" Score\",'C. PoC Adj Factor Scoring'!$E$4:$J$4,0),TRUE)","v":1},{"$f":"VLOOKUP(OFFSET($B:$B,,MATCH(K$4,$B$4:$F$4,0)-1),OFFSET('C. PoC Adj Factor Scoring'!$E$5:$J$282,,MATCH(K$4,'C. PoC Adj Factor Scoring'!$E$3:$AH$3,0)-1),MATCH(K$2&\" Score\",'C. PoC Adj Factor Scoring'!$E$4:$J$4,0),TRUE)","v":1},{"$f":"VLOOKUP(OFFSET($B:$B,,MATCH(L$4,$B$4:$F$4,0)-1),OFFSET('C. PoC Adj Factor Scoring'!$E$5:$J$282,,MATCH(L$4,'C. PoC Adj Factor Scoring'!$E$3:$AH$3,0)-1),MATCH(L$2&\" Score\",'C. PoC Adj Factor Scoring'!$E$4:$J$4,0),TRUE)","v":1},{"$f":"VLOOKUP(OFFSET($B:$B,,MATCH(M$4,$B$4:$F$4,0)-1),OFFSET('C. PoC Adj Factor Scoring'!$E$5:$J$282,,MATCH(M$4,'C. PoC Adj Factor Scoring'!$E$3:$AH$3,0)-1),MATCH(M$2&\" Score\",'C. PoC Adj Factor Scoring'!$E$4:$J$4,0),TRUE)","v":1},{"$f":"VLOOKUP(OFFSET($B:$B,,MATCH(N$4,$B$4:$F$4,0)-1),OFFSET('C. PoC Adj Factor Scoring'!$E$5:$J$282,,MATCH(N$4,'C. PoC Adj Factor Scoring'!$E$3:$AH$3,0)-1),MATCH(N$2&\" Score\",'C. PoC Adj Factor Scoring'!$E$4:$J$4,0),TRUE)","v":1},{"$f":"VLOOKUP(OFFSET($B:$B,,MATCH(O$4,$B$4:$F$4,0)-1),OFFSET('C. PoC Adj Factor Scoring'!$E$5:$J$282,,MATCH(O$4,'C. PoC Adj Factor Scoring'!$E$3:$AH$3,0)-1),MATCH(O$2&\" Score\",'C. PoC Adj Factor Scoring'!$E$4:$J$4,0),TRUE)","v":1},{"$f":"VLOOKUP(OFFSET($B:$B,,MATCH(P$4,$B$4:$F$4,0)-1),OFFSET('C. PoC Adj Factor Scoring'!$E$5:$J$282,,MATCH(P$4,'C. PoC Adj Factor Scoring'!$E$3:$AH$3,0)-1),MATCH(P$2&\" Score\",'C. PoC Adj Factor Scoring'!$E$4:$J$4,0),TRUE)","v":1},{"$f":"VLOOKUP(OFFSET($B:$B,,MATCH(Q$4,$B$4:$F$4,0)-1),OFFSET('C. PoC Adj Factor Scoring'!$E$5:$J$282,,MATCH(Q$4,'C. PoC Adj Factor Scoring'!$E$3:$AH$3,0)-1),MATCH(Q$2&\" Score\",'C. PoC Adj Factor Scoring'!$E$4:$J$4,0),TRUE)","v":1},{"$f":"VLOOKUP(OFFSET($B:$B,,MATCH(R$4,$B$4:$F$4,0)-1),OFFSET('C. PoC Adj Factor Scoring'!$E$5:$J$282,,MATCH(R$4,'C. PoC Adj Factor Scoring'!$E$3:$AH$3,0)-1),MATCH(R$2&\" Score\",'C. PoC Adj Factor Scoring'!$E$4:$J$4,0),TRUE)","v":1},{"$f":"VLOOKUP(OFFSET($B:$B,,MATCH(S$4,$B$4:$F$4,0)-1),OFFSET('C. PoC Adj Factor Scoring'!$E$5:$J$282,,MATCH(S$4,'C. PoC Adj Factor Scoring'!$E$3:$AH$3,0)-1),MATCH(S$2&\" Score\",'C. PoC Adj Factor Scoring'!$E$4:$J$4,0),TRUE)","v":1},{"$f":"VLOOKUP(OFFSET($B:$B,,MATCH(T$4,$B$4:$F$4,0)-1),OFFSET('C. PoC Adj Factor Scoring'!$E$5:$J$282,,MATCH(T$4,'C. PoC Adj Factor Scoring'!$E$3:$AH$3,0)-1),MATCH(T$2&\" Score\",'C. PoC Adj Factor Scoring'!$E$4:$J$4,0),TRUE)","v":1},{"$f":"VLOOKUP(OFFSET($B:$B,,MATCH(U$4,$B$4:$F$4,0)-1),OFFSET('C. PoC Adj Factor Scoring'!$E$5:$J$282,,MATCH(U$4,'C. PoC Adj Factor Scoring'!$E$3:$AH$3,0)-1),MATCH(U$2&\" Score\",'C. PoC Adj Factor Scoring'!$E$4:$J$4,0),TRUE)","v":1},{"$f":"VLOOKUP(OFFSET($B:$B,,MATCH(V$4,$B$4:$F$4,0)-1),OFFSET('C. PoC Adj Factor Scoring'!$E$5:$J$282,,MATCH(V$4,'C. PoC Adj Factor Scoring'!$E$3:$AH$3,0)-1),MATCH(V$2&\" Score\",'C. PoC Adj Factor Scoring'!$E$4:$J$4,0),TRUE)","v":1},{"$f":"VLOOKUP(OFFSET($B:$B,,MATCH(W$4,$B$4:$F$4,0)-1),OFFSET('C. PoC Adj Factor Scoring'!$E$5:$J$282,,MATCH(W$4,'C. PoC Adj Factor Scoring'!$E$3:$AH$3,0)-1),MATCH(W$2&\" Score\",'C. PoC Adj Factor Scoring'!$E$4:$J$4,0),TRUE)","v":1},{"$f":"VLOOKUP(OFFSET($B:$B,,MATCH(X$4,$B$4:$F$4,0)-1),OFFSET('C. PoC Adj Factor Scoring'!$E$5:$J$282,,MATCH(X$4,'C. PoC Adj Factor Scoring'!$E$3:$AH$3,0)-1),MATCH(X$2&\" Score\",'C. PoC Adj Factor Scoring'!$E$4:$J$4,0),TRUE)","v":1},{"$f":"VLOOKUP(OFFSET($B:$B,,MATCH(Y$4,$B$4:$F$4,0)-1),OFFSET('C. PoC Adj Factor Scoring'!$E$5:$J$282,,MATCH(Y$4,'C. PoC Adj Factor Scoring'!$E$3:$AH$3,0)-1),MATCH(Y$2&\" Score\",'C. PoC Adj Factor Scoring'!$E$4:$J$4,0),TRUE)","v":1},{"$f":"VLOOKUP(OFFSET($B:$B,,MATCH(Z$4,$B$4:$F$4,0)-1),OFFSET('C. PoC Adj Factor Scoring'!$E$5:$J$282,,MATCH(Z$4,'C. PoC Adj Factor Scoring'!$E$3:$AH$3,0)-1),MATCH(Z$2&\" Score\",'C. PoC Adj Factor Scoring'!$E$4:$J$4,0),TRUE)","v":1},{"$f":"VLOOKUP(OFFSET($B:$B,,MATCH(AA$4,$B$4:$F$4,0)-1),OFFSET('C. PoC Adj Factor Scoring'!$E$5:$J$282,,MATCH(AA$4,'C. PoC Adj Factor Scoring'!$E$3:$AH$3,0)-1),MATCH(AA$2&\" Score\",'C. PoC Adj Factor Scoring'!$E$4:$J$4,0),TRUE)","v":3},{"$f":"VLOOKUP(OFFSET($B:$B,,MATCH(AB$4,$B$4:$F$4,0)-1),OFFSET('C. PoC Adj Factor Scoring'!$E$5:$J$282,,MATCH(AB$4,'C. PoC Adj Factor Scoring'!$E$3:$AH$3,0)-1),MATCH(AB$2&\" Score\",'C. PoC Adj Factor Scoring'!$E$4:$J$4,0),TRUE)","v":1},{"$f":"VLOOKUP(OFFSET($B:$B,,MATCH(AC$4,$B$4:$F$4,0)-1),OFFSET('C. PoC Adj Factor Scoring'!$E$5:$J$282,,MATCH(AC$4,'C. PoC Adj Factor Scoring'!$E$3:$AH$3,0)-1),MATCH(AC$2&\" Score\",'C. PoC Adj Factor Scoring'!$E$4:$J$4,0),TRUE)","v":1},{"$f":"VLOOKUP(OFFSET($B:$B,,MATCH(AD$4,$B$4:$F$4,0)-1),OFFSET('C. PoC Adj Factor Scoring'!$E$5:$J$282,,MATCH(AD$4,'C. PoC Adj Factor Scoring'!$E$3:$AH$3,0)-1),MATCH(AD$2&\" Score\",'C. PoC Adj Factor Scoring'!$E$4:$J$4,0),TRUE)","v":1},{"$f":"VLOOKUP(OFFSET($B:$B,,MATCH(AE$4,$B$4:$F$4,0)-1),OFFSET('C. PoC Adj Factor Scoring'!$E$5:$J$282,,MATCH(AE$4,'C. PoC Adj Factor Scoring'!$E$3:$AH$3,0)-1),MATCH(AE$2&\" Score\",'C. PoC Adj Factor Scoring'!$E$4:$J$4,0),TRUE)","v":1}]
[{"$f":"'A. Population Info'!A306","v":1000374180},{"$f":"'A. Population Info'!L306","v":"OIL"},{"$f":"'A. Population Info'!M306","v":0},{"$f":"'A. Population Info'!N306","v":0},{"$f":"'A. Population Info'!O306","v":0},{"$f":"'A. Population Info'!P306","v":0},{"$f":"VLOOKUP(OFFSET($B:$B,,MATCH(G$4,$B$4:$F$4,0)-1),OFFSET('C. PoC Adj Factor Scoring'!$E$5:$J$282,,MATCH(G$4,'C. PoC Adj Factor Scoring'!$E$3:$AH$3,0)-1),MATCH(G$2&\" Score\",'C. PoC Adj Factor Scoring'!$E$4:$J$4,0),TRUE)","v":4},{"$f":"VLOOKUP(OFFSET($B:$B,,MATCH(H$4,$B$4:$F$4,0)-1),OFFSET('C. PoC Adj Factor Scoring'!$E$5:$J$282,,MATCH(H$4,'C. PoC Adj Factor Scoring'!$E$3:$AH$3,0)-1),MATCH(H$2&\" Score\",'C. PoC Adj Factor Scoring'!$E$4:$J$4,0),TRUE)","v":1},{"$f":"VLOOKUP(OFFSET($B:$B,,MATCH(I$4,$B$4:$F$4,0)-1),OFFSET('C. PoC Adj Factor Scoring'!$E$5:$J$282,,MATCH(I$4,'C. PoC Adj Factor Scoring'!$E$3:$AH$3,0)-1),MATCH(I$2&\" Score\",'C. PoC Adj Factor Scoring'!$E$4:$J$4,0),TRUE)","v":1},{"$f":"VLOOKUP(OFFSET($B:$B,,MATCH(J$4,$B$4:$F$4,0)-1),OFFSET('C. PoC Adj Factor Scoring'!$E$5:$J$282,,MATCH(J$4,'C. PoC Adj Factor Scoring'!$E$3:$AH$3,0)-1),MATCH(J$2&\" Score\",'C. PoC Adj Factor Scoring'!$E$4:$J$4,0),TRUE)","v":1},{"$f":"VLOOKUP(OFFSET($B:$B,,MATCH(K$4,$B$4:$F$4,0)-1),OFFSET('C. PoC Adj Factor Scoring'!$E$5:$J$282,,MATCH(K$4,'C. PoC Adj Factor Scoring'!$E$3:$AH$3,0)-1),MATCH(K$2&\" Score\",'C. PoC Adj Factor Scoring'!$E$4:$J$4,0),TRUE)","v":1},{"$f":"VLOOKUP(OFFSET($B:$B,,MATCH(L$4,$B$4:$F$4,0)-1),OFFSET('C. PoC Adj Factor Scoring'!$E$5:$J$282,,MATCH(L$4,'C. PoC Adj Factor Scoring'!$E$3:$AH$3,0)-1),MATCH(L$2&\" Score\",'C. PoC Adj Factor Scoring'!$E$4:$J$4,0),TRUE)","v":1},{"$f":"VLOOKUP(OFFSET($B:$B,,MATCH(M$4,$B$4:$F$4,0)-1),OFFSET('C. PoC Adj Factor Scoring'!$E$5:$J$282,,MATCH(M$4,'C. PoC Adj Factor Scoring'!$E$3:$AH$3,0)-1),MATCH(M$2&\" Score\",'C. PoC Adj Factor Scoring'!$E$4:$J$4,0),TRUE)","v":1},{"$f":"VLOOKUP(OFFSET($B:$B,,MATCH(N$4,$B$4:$F$4,0)-1),OFFSET('C. PoC Adj Factor Scoring'!$E$5:$J$282,,MATCH(N$4,'C. PoC Adj Factor Scoring'!$E$3:$AH$3,0)-1),MATCH(N$2&\" Score\",'C. PoC Adj Factor Scoring'!$E$4:$J$4,0),TRUE)","v":1},{"$f":"VLOOKUP(OFFSET($B:$B,,MATCH(O$4,$B$4:$F$4,0)-1),OFFSET('C. PoC Adj Factor Scoring'!$E$5:$J$282,,MATCH(O$4,'C. PoC Adj Factor Scoring'!$E$3:$AH$3,0)-1),MATCH(O$2&\" Score\",'C. PoC Adj Factor Scoring'!$E$4:$J$4,0),TRUE)","v":1},{"$f":"VLOOKUP(OFFSET($B:$B,,MATCH(P$4,$B$4:$F$4,0)-1),OFFSET('C. PoC Adj Factor Scoring'!$E$5:$J$282,,MATCH(P$4,'C. PoC Adj Factor Scoring'!$E$3:$AH$3,0)-1),MATCH(P$2&\" Score\",'C. PoC Adj Factor Scoring'!$E$4:$J$4,0),TRUE)","v":1},{"$f":"VLOOKUP(OFFSET($B:$B,,MATCH(Q$4,$B$4:$F$4,0)-1),OFFSET('C. PoC Adj Factor Scoring'!$E$5:$J$282,,MATCH(Q$4,'C. PoC Adj Factor Scoring'!$E$3:$AH$3,0)-1),MATCH(Q$2&\" Score\",'C. PoC Adj Factor Scoring'!$E$4:$J$4,0),TRUE)","v":1},{"$f":"VLOOKUP(OFFSET($B:$B,,MATCH(R$4,$B$4:$F$4,0)-1),OFFSET('C. PoC Adj Factor Scoring'!$E$5:$J$282,,MATCH(R$4,'C. PoC Adj Factor Scoring'!$E$3:$AH$3,0)-1),MATCH(R$2&\" Score\",'C. PoC Adj Factor Scoring'!$E$4:$J$4,0),TRUE)","v":1},{"$f":"VLOOKUP(OFFSET($B:$B,,MATCH(S$4,$B$4:$F$4,0)-1),OFFSET('C. PoC Adj Factor Scoring'!$E$5:$J$282,,MATCH(S$4,'C. PoC Adj Factor Scoring'!$E$3:$AH$3,0)-1),MATCH(S$2&\" Score\",'C. PoC Adj Factor Scoring'!$E$4:$J$4,0),TRUE)","v":1},{"$f":"VLOOKUP(OFFSET($B:$B,,MATCH(T$4,$B$4:$F$4,0)-1),OFFSET('C. PoC Adj Factor Scoring'!$E$5:$J$282,,MATCH(T$4,'C. PoC Adj Factor Scoring'!$E$3:$AH$3,0)-1),MATCH(T$2&\" Score\",'C. PoC Adj Factor Scoring'!$E$4:$J$4,0),TRUE)","v":1},{"$f":"VLOOKUP(OFFSET($B:$B,,MATCH(U$4,$B$4:$F$4,0)-1),OFFSET('C. PoC Adj Factor Scoring'!$E$5:$J$282,,MATCH(U$4,'C. PoC Adj Factor Scoring'!$E$3:$AH$3,0)-1),MATCH(U$2&\" Score\",'C. PoC Adj Factor Scoring'!$E$4:$J$4,0),TRUE)","v":1},{"$f":"VLOOKUP(OFFSET($B:$B,,MATCH(V$4,$B$4:$F$4,0)-1),OFFSET('C. PoC Adj Factor Scoring'!$E$5:$J$282,,MATCH(V$4,'C. PoC Adj Factor Scoring'!$E$3:$AH$3,0)-1),MATCH(V$2&\" Score\",'C. PoC Adj Factor Scoring'!$E$4:$J$4,0),TRUE)","v":1},{"$f":"VLOOKUP(OFFSET($B:$B,,MATCH(W$4,$B$4:$F$4,0)-1),OFFSET('C. PoC Adj Factor Scoring'!$E$5:$J$282,,MATCH(W$4,'C. PoC Adj Factor Scoring'!$E$3:$AH$3,0)-1),MATCH(W$2&\" Score\",'C. PoC Adj Factor Scoring'!$E$4:$J$4,0),TRUE)","v":1},{"$f":"VLOOKUP(OFFSET($B:$B,,MATCH(X$4,$B$4:$F$4,0)-1),OFFSET('C. PoC Adj Factor Scoring'!$E$5:$J$282,,MATCH(X$4,'C. PoC Adj Factor Scoring'!$E$3:$AH$3,0)-1),MATCH(X$2&\" Score\",'C. PoC Adj Factor Scoring'!$E$4:$J$4,0),TRUE)","v":1},{"$f":"VLOOKUP(OFFSET($B:$B,,MATCH(Y$4,$B$4:$F$4,0)-1),OFFSET('C. PoC Adj Factor Scoring'!$E$5:$J$282,,MATCH(Y$4,'C. PoC Adj Factor Scoring'!$E$3:$AH$3,0)-1),MATCH(Y$2&\" Score\",'C. PoC Adj Factor Scoring'!$E$4:$J$4,0),TRUE)","v":1},{"$f":"VLOOKUP(OFFSET($B:$B,,MATCH(Z$4,$B$4:$F$4,0)-1),OFFSET('C. PoC Adj Factor Scoring'!$E$5:$J$282,,MATCH(Z$4,'C. PoC Adj Factor Scoring'!$E$3:$AH$3,0)-1),MATCH(Z$2&\" Score\",'C. PoC Adj Factor Scoring'!$E$4:$J$4,0),TRUE)","v":1},{"$f":"VLOOKUP(OFFSET($B:$B,,MATCH(AA$4,$B$4:$F$4,0)-1),OFFSET('C. PoC Adj Factor Scoring'!$E$5:$J$282,,MATCH(AA$4,'C. PoC Adj Factor Scoring'!$E$3:$AH$3,0)-1),MATCH(AA$2&\" Score\",'C. PoC Adj Factor Scoring'!$E$4:$J$4,0),TRUE)","v":3},{"$f":"VLOOKUP(OFFSET($B:$B,,MATCH(AB$4,$B$4:$F$4,0)-1),OFFSET('C. PoC Adj Factor Scoring'!$E$5:$J$282,,MATCH(AB$4,'C. PoC Adj Factor Scoring'!$E$3:$AH$3,0)-1),MATCH(AB$2&\" Score\",'C. PoC Adj Factor Scoring'!$E$4:$J$4,0),TRUE)","v":1},{"$f":"VLOOKUP(OFFSET($B:$B,,MATCH(AC$4,$B$4:$F$4,0)-1),OFFSET('C. PoC Adj Factor Scoring'!$E$5:$J$282,,MATCH(AC$4,'C. PoC Adj Factor Scoring'!$E$3:$AH$3,0)-1),MATCH(AC$2&\" Score\",'C. PoC Adj Factor Scoring'!$E$4:$J$4,0),TRUE)","v":1},{"$f":"VLOOKUP(OFFSET($B:$B,,MATCH(AD$4,$B$4:$F$4,0)-1),OFFSET('C. PoC Adj Factor Scoring'!$E$5:$J$282,,MATCH(AD$4,'C. PoC Adj Factor Scoring'!$E$3:$AH$3,0)-1),MATCH(AD$2&\" Score\",'C. PoC Adj Factor Scoring'!$E$4:$J$4,0),TRUE)","v":1},{"$f":"VLOOKUP(OFFSET($B:$B,,MATCH(AE$4,$B$4:$F$4,0)-1),OFFSET('C. PoC Adj Factor Scoring'!$E$5:$J$282,,MATCH(AE$4,'C. PoC Adj Factor Scoring'!$E$3:$AH$3,0)-1),MATCH(AE$2&\" Score\",'C. PoC Adj Factor Scoring'!$E$4:$J$4,0),TRUE)","v":1}]
[{"$f":"'A. Population Info'!A307","v":1000374211},{"$f":"'A. Population Info'!L307","v":"OIL"},{"$f":"'A. Population Info'!M307","v":0},{"$f":"'A. Population Info'!N307","v":0},{"$f":"'A. Population Info'!O307","v":0},{"$f":"'A. Population Info'!P307","v":0},{"$f":"VLOOKUP(OFFSET($B:$B,,MATCH(G$4,$B$4:$F$4,0)-1),OFFSET('C. PoC Adj Factor Scoring'!$E$5:$J$282,,MATCH(G$4,'C. PoC Adj Factor Scoring'!$E$3:$AH$3,0)-1),MATCH(G$2&\" Score\",'C. PoC Adj Factor Scoring'!$E$4:$J$4,0),TRUE)","v":4},{"$f":"VLOOKUP(OFFSET($B:$B,,MATCH(H$4,$B$4:$F$4,0)-1),OFFSET('C. PoC Adj Factor Scoring'!$E$5:$J$282,,MATCH(H$4,'C. PoC Adj Factor Scoring'!$E$3:$AH$3,0)-1),MATCH(H$2&\" Score\",'C. PoC Adj Factor Scoring'!$E$4:$J$4,0),TRUE)","v":1},{"$f":"VLOOKUP(OFFSET($B:$B,,MATCH(I$4,$B$4:$F$4,0)-1),OFFSET('C. PoC Adj Factor Scoring'!$E$5:$J$282,,MATCH(I$4,'C. PoC Adj Factor Scoring'!$E$3:$AH$3,0)-1),MATCH(I$2&\" Score\",'C. PoC Adj Factor Scoring'!$E$4:$J$4,0),TRUE)","v":1},{"$f":"VLOOKUP(OFFSET($B:$B,,MATCH(J$4,$B$4:$F$4,0)-1),OFFSET('C. PoC Adj Factor Scoring'!$E$5:$J$282,,MATCH(J$4,'C. PoC Adj Factor Scoring'!$E$3:$AH$3,0)-1),MATCH(J$2&\" Score\",'C. PoC Adj Factor Scoring'!$E$4:$J$4,0),TRUE)","v":1},{"$f":"VLOOKUP(OFFSET($B:$B,,MATCH(K$4,$B$4:$F$4,0)-1),OFFSET('C. PoC Adj Factor Scoring'!$E$5:$J$282,,MATCH(K$4,'C. PoC Adj Factor Scoring'!$E$3:$AH$3,0)-1),MATCH(K$2&\" Score\",'C. PoC Adj Factor Scoring'!$E$4:$J$4,0),TRUE)","v":1},{"$f":"VLOOKUP(OFFSET($B:$B,,MATCH(L$4,$B$4:$F$4,0)-1),OFFSET('C. PoC Adj Factor Scoring'!$E$5:$J$282,,MATCH(L$4,'C. PoC Adj Factor Scoring'!$E$3:$AH$3,0)-1),MATCH(L$2&\" Score\",'C. PoC Adj Factor Scoring'!$E$4:$J$4,0),TRUE)","v":1},{"$f":"VLOOKUP(OFFSET($B:$B,,MATCH(M$4,$B$4:$F$4,0)-1),OFFSET('C. PoC Adj Factor Scoring'!$E$5:$J$282,,MATCH(M$4,'C. PoC Adj Factor Scoring'!$E$3:$AH$3,0)-1),MATCH(M$2&\" Score\",'C. PoC Adj Factor Scoring'!$E$4:$J$4,0),TRUE)","v":1},{"$f":"VLOOKUP(OFFSET($B:$B,,MATCH(N$4,$B$4:$F$4,0)-1),OFFSET('C. PoC Adj Factor Scoring'!$E$5:$J$282,,MATCH(N$4,'C. PoC Adj Factor Scoring'!$E$3:$AH$3,0)-1),MATCH(N$2&\" Score\",'C. PoC Adj Factor Scoring'!$E$4:$J$4,0),TRUE)","v":1},{"$f":"VLOOKUP(OFFSET($B:$B,,MATCH(O$4,$B$4:$F$4,0)-1),OFFSET('C. PoC Adj Factor Scoring'!$E$5:$J$282,,MATCH(O$4,'C. PoC Adj Factor Scoring'!$E$3:$AH$3,0)-1),MATCH(O$2&\" Score\",'C. PoC Adj Factor Scoring'!$E$4:$J$4,0),TRUE)","v":1},{"$f":"VLOOKUP(OFFSET($B:$B,,MATCH(P$4,$B$4:$F$4,0)-1),OFFSET('C. PoC Adj Factor Scoring'!$E$5:$J$282,,MATCH(P$4,'C. PoC Adj Factor Scoring'!$E$3:$AH$3,0)-1),MATCH(P$2&\" Score\",'C. PoC Adj Factor Scoring'!$E$4:$J$4,0),TRUE)","v":1},{"$f":"VLOOKUP(OFFSET($B:$B,,MATCH(Q$4,$B$4:$F$4,0)-1),OFFSET('C. PoC Adj Factor Scoring'!$E$5:$J$282,,MATCH(Q$4,'C. PoC Adj Factor Scoring'!$E$3:$AH$3,0)-1),MATCH(Q$2&\" Score\",'C. PoC Adj Factor Scoring'!$E$4:$J$4,0),TRUE)","v":1},{"$f":"VLOOKUP(OFFSET($B:$B,,MATCH(R$4,$B$4:$F$4,0)-1),OFFSET('C. PoC Adj Factor Scoring'!$E$5:$J$282,,MATCH(R$4,'C. PoC Adj Factor Scoring'!$E$3:$AH$3,0)-1),MATCH(R$2&\" Score\",'C. PoC Adj Factor Scoring'!$E$4:$J$4,0),TRUE)","v":1},{"$f":"VLOOKUP(OFFSET($B:$B,,MATCH(S$4,$B$4:$F$4,0)-1),OFFSET('C. PoC Adj Factor Scoring'!$E$5:$J$282,,MATCH(S$4,'C. PoC Adj Factor Scoring'!$E$3:$AH$3,0)-1),MATCH(S$2&\" Score\",'C. PoC Adj Factor Scoring'!$E$4:$J$4,0),TRUE)","v":1},{"$f":"VLOOKUP(OFFSET($B:$B,,MATCH(T$4,$B$4:$F$4,0)-1),OFFSET('C. PoC Adj Factor Scoring'!$E$5:$J$282,,MATCH(T$4,'C. PoC Adj Factor Scoring'!$E$3:$AH$3,0)-1),MATCH(T$2&\" Score\",'C. PoC Adj Factor Scoring'!$E$4:$J$4,0),TRUE)","v":1},{"$f":"VLOOKUP(OFFSET($B:$B,,MATCH(U$4,$B$4:$F$4,0)-1),OFFSET('C. PoC Adj Factor Scoring'!$E$5:$J$282,,MATCH(U$4,'C. PoC Adj Factor Scoring'!$E$3:$AH$3,0)-1),MATCH(U$2&\" Score\",'C. PoC Adj Factor Scoring'!$E$4:$J$4,0),TRUE)","v":1},{"$f":"VLOOKUP(OFFSET($B:$B,,MATCH(V$4,$B$4:$F$4,0)-1),OFFSET('C. PoC Adj Factor Scoring'!$E$5:$J$282,,MATCH(V$4,'C. PoC Adj Factor Scoring'!$E$3:$AH$3,0)-1),MATCH(V$2&\" Score\",'C. PoC Adj Factor Scoring'!$E$4:$J$4,0),TRUE)","v":1},{"$f":"VLOOKUP(OFFSET($B:$B,,MATCH(W$4,$B$4:$F$4,0)-1),OFFSET('C. PoC Adj Factor Scoring'!$E$5:$J$282,,MATCH(W$4,'C. PoC Adj Factor Scoring'!$E$3:$AH$3,0)-1),MATCH(W$2&\" Score\",'C. PoC Adj Factor Scoring'!$E$4:$J$4,0),TRUE)","v":1},{"$f":"VLOOKUP(OFFSET($B:$B,,MATCH(X$4,$B$4:$F$4,0)-1),OFFSET('C. PoC Adj Factor Scoring'!$E$5:$J$282,,MATCH(X$4,'C. PoC Adj Factor Scoring'!$E$3:$AH$3,0)-1),MATCH(X$2&\" Score\",'C. PoC Adj Factor Scoring'!$E$4:$J$4,0),TRUE)","v":1},{"$f":"VLOOKUP(OFFSET($B:$B,,MATCH(Y$4,$B$4:$F$4,0)-1),OFFSET('C. PoC Adj Factor Scoring'!$E$5:$J$282,,MATCH(Y$4,'C. PoC Adj Factor Scoring'!$E$3:$AH$3,0)-1),MATCH(Y$2&\" Score\",'C. PoC Adj Factor Scoring'!$E$4:$J$4,0),TRUE)","v":1},{"$f":"VLOOKUP(OFFSET($B:$B,,MATCH(Z$4,$B$4:$F$4,0)-1),OFFSET('C. PoC Adj Factor Scoring'!$E$5:$J$282,,MATCH(Z$4,'C. PoC Adj Factor Scoring'!$E$3:$AH$3,0)-1),MATCH(Z$2&\" Score\",'C. PoC Adj Factor Scoring'!$E$4:$J$4,0),TRUE)","v":1},{"$f":"VLOOKUP(OFFSET($B:$B,,MATCH(AA$4,$B$4:$F$4,0)-1),OFFSET('C. PoC Adj Factor Scoring'!$E$5:$J$282,,MATCH(AA$4,'C. PoC Adj Factor Scoring'!$E$3:$AH$3,0)-1),MATCH(AA$2&\" Score\",'C. PoC Adj Factor Scoring'!$E$4:$J$4,0),TRUE)","v":3},{"$f":"VLOOKUP(OFFSET($B:$B,,MATCH(AB$4,$B$4:$F$4,0)-1),OFFSET('C. PoC Adj Factor Scoring'!$E$5:$J$282,,MATCH(AB$4,'C. PoC Adj Factor Scoring'!$E$3:$AH$3,0)-1),MATCH(AB$2&\" Score\",'C. PoC Adj Factor Scoring'!$E$4:$J$4,0),TRUE)","v":1},{"$f":"VLOOKUP(OFFSET($B:$B,,MATCH(AC$4,$B$4:$F$4,0)-1),OFFSET('C. PoC Adj Factor Scoring'!$E$5:$J$282,,MATCH(AC$4,'C. PoC Adj Factor Scoring'!$E$3:$AH$3,0)-1),MATCH(AC$2&\" Score\",'C. PoC Adj Factor Scoring'!$E$4:$J$4,0),TRUE)","v":1},{"$f":"VLOOKUP(OFFSET($B:$B,,MATCH(AD$4,$B$4:$F$4,0)-1),OFFSET('C. PoC Adj Factor Scoring'!$E$5:$J$282,,MATCH(AD$4,'C. PoC Adj Factor Scoring'!$E$3:$AH$3,0)-1),MATCH(AD$2&\" Score\",'C. PoC Adj Factor Scoring'!$E$4:$J$4,0),TRUE)","v":1},{"$f":"VLOOKUP(OFFSET($B:$B,,MATCH(AE$4,$B$4:$F$4,0)-1),OFFSET('C. PoC Adj Factor Scoring'!$E$5:$J$282,,MATCH(AE$4,'C. PoC Adj Factor Scoring'!$E$3:$AH$3,0)-1),MATCH(AE$2&\" Score\",'C. PoC Adj Factor Scoring'!$E$4:$J$4,0),TRUE)","v":1}]
[{"$f":"'A. Population Info'!A308","v":1000374241},{"$f":"'A. Population Info'!L308","v":"OIL"},{"$f":"'A. Population Info'!M308","v":0},{"$f":"'A. Population Info'!N308","v":0},{"$f":"'A. Population Info'!O308","v":0},{"$f":"'A. Population Info'!P308","v":0},{"$f":"VLOOKUP(OFFSET($B:$B,,MATCH(G$4,$B$4:$F$4,0)-1),OFFSET('C. PoC Adj Factor Scoring'!$E$5:$J$282,,MATCH(G$4,'C. PoC Adj Factor Scoring'!$E$3:$AH$3,0)-1),MATCH(G$2&\" Score\",'C. PoC Adj Factor Scoring'!$E$4:$J$4,0),TRUE)","v":4},{"$f":"VLOOKUP(OFFSET($B:$B,,MATCH(H$4,$B$4:$F$4,0)-1),OFFSET('C. PoC Adj Factor Scoring'!$E$5:$J$282,,MATCH(H$4,'C. PoC Adj Factor Scoring'!$E$3:$AH$3,0)-1),MATCH(H$2&\" Score\",'C. PoC Adj Factor Scoring'!$E$4:$J$4,0),TRUE)","v":1},{"$f":"VLOOKUP(OFFSET($B:$B,,MATCH(I$4,$B$4:$F$4,0)-1),OFFSET('C. PoC Adj Factor Scoring'!$E$5:$J$282,,MATCH(I$4,'C. PoC Adj Factor Scoring'!$E$3:$AH$3,0)-1),MATCH(I$2&\" Score\",'C. PoC Adj Factor Scoring'!$E$4:$J$4,0),TRUE)","v":1},{"$f":"VLOOKUP(OFFSET($B:$B,,MATCH(J$4,$B$4:$F$4,0)-1),OFFSET('C. PoC Adj Factor Scoring'!$E$5:$J$282,,MATCH(J$4,'C. PoC Adj Factor Scoring'!$E$3:$AH$3,0)-1),MATCH(J$2&\" Score\",'C. PoC Adj Factor Scoring'!$E$4:$J$4,0),TRUE)","v":1},{"$f":"VLOOKUP(OFFSET($B:$B,,MATCH(K$4,$B$4:$F$4,0)-1),OFFSET('C. PoC Adj Factor Scoring'!$E$5:$J$282,,MATCH(K$4,'C. PoC Adj Factor Scoring'!$E$3:$AH$3,0)-1),MATCH(K$2&\" Score\",'C. PoC Adj Factor Scoring'!$E$4:$J$4,0),TRUE)","v":1},{"$f":"VLOOKUP(OFFSET($B:$B,,MATCH(L$4,$B$4:$F$4,0)-1),OFFSET('C. PoC Adj Factor Scoring'!$E$5:$J$282,,MATCH(L$4,'C. PoC Adj Factor Scoring'!$E$3:$AH$3,0)-1),MATCH(L$2&\" Score\",'C. PoC Adj Factor Scoring'!$E$4:$J$4,0),TRUE)","v":1},{"$f":"VLOOKUP(OFFSET($B:$B,,MATCH(M$4,$B$4:$F$4,0)-1),OFFSET('C. PoC Adj Factor Scoring'!$E$5:$J$282,,MATCH(M$4,'C. PoC Adj Factor Scoring'!$E$3:$AH$3,0)-1),MATCH(M$2&\" Score\",'C. PoC Adj Factor Scoring'!$E$4:$J$4,0),TRUE)","v":1},{"$f":"VLOOKUP(OFFSET($B:$B,,MATCH(N$4,$B$4:$F$4,0)-1),OFFSET('C. PoC Adj Factor Scoring'!$E$5:$J$282,,MATCH(N$4,'C. PoC Adj Factor Scoring'!$E$3:$AH$3,0)-1),MATCH(N$2&\" Score\",'C. PoC Adj Factor Scoring'!$E$4:$J$4,0),TRUE)","v":1},{"$f":"VLOOKUP(OFFSET($B:$B,,MATCH(O$4,$B$4:$F$4,0)-1),OFFSET('C. PoC Adj Factor Scoring'!$E$5:$J$282,,MATCH(O$4,'C. PoC Adj Factor Scoring'!$E$3:$AH$3,0)-1),MATCH(O$2&\" Score\",'C. PoC Adj Factor Scoring'!$E$4:$J$4,0),TRUE)","v":1},{"$f":"VLOOKUP(OFFSET($B:$B,,MATCH(P$4,$B$4:$F$4,0)-1),OFFSET('C. PoC Adj Factor Scoring'!$E$5:$J$282,,MATCH(P$4,'C. PoC Adj Factor Scoring'!$E$3:$AH$3,0)-1),MATCH(P$2&\" Score\",'C. PoC Adj Factor Scoring'!$E$4:$J$4,0),TRUE)","v":1},{"$f":"VLOOKUP(OFFSET($B:$B,,MATCH(Q$4,$B$4:$F$4,0)-1),OFFSET('C. PoC Adj Factor Scoring'!$E$5:$J$282,,MATCH(Q$4,'C. PoC Adj Factor Scoring'!$E$3:$AH$3,0)-1),MATCH(Q$2&\" Score\",'C. PoC Adj Factor Scoring'!$E$4:$J$4,0),TRUE)","v":1},{"$f":"VLOOKUP(OFFSET($B:$B,,MATCH(R$4,$B$4:$F$4,0)-1),OFFSET('C. PoC Adj Factor Scoring'!$E$5:$J$282,,MATCH(R$4,'C. PoC Adj Factor Scoring'!$E$3:$AH$3,0)-1),MATCH(R$2&\" Score\",'C. PoC Adj Factor Scoring'!$E$4:$J$4,0),TRUE)","v":1},{"$f":"VLOOKUP(OFFSET($B:$B,,MATCH(S$4,$B$4:$F$4,0)-1),OFFSET('C. PoC Adj Factor Scoring'!$E$5:$J$282,,MATCH(S$4,'C. PoC Adj Factor Scoring'!$E$3:$AH$3,0)-1),MATCH(S$2&\" Score\",'C. PoC Adj Factor Scoring'!$E$4:$J$4,0),TRUE)","v":1},{"$f":"VLOOKUP(OFFSET($B:$B,,MATCH(T$4,$B$4:$F$4,0)-1),OFFSET('C. PoC Adj Factor Scoring'!$E$5:$J$282,,MATCH(T$4,'C. PoC Adj Factor Scoring'!$E$3:$AH$3,0)-1),MATCH(T$2&\" Score\",'C. PoC Adj Factor Scoring'!$E$4:$J$4,0),TRUE)","v":1},{"$f":"VLOOKUP(OFFSET($B:$B,,MATCH(U$4,$B$4:$F$4,0)-1),OFFSET('C. PoC Adj Factor Scoring'!$E$5:$J$282,,MATCH(U$4,'C. PoC Adj Factor Scoring'!$E$3:$AH$3,0)-1),MATCH(U$2&\" Score\",'C. PoC Adj Factor Scoring'!$E$4:$J$4,0),TRUE)","v":1},{"$f":"VLOOKUP(OFFSET($B:$B,,MATCH(V$4,$B$4:$F$4,0)-1),OFFSET('C. PoC Adj Factor Scoring'!$E$5:$J$282,,MATCH(V$4,'C. PoC Adj Factor Scoring'!$E$3:$AH$3,0)-1),MATCH(V$2&\" Score\",'C. PoC Adj Factor Scoring'!$E$4:$J$4,0),TRUE)","v":1},{"$f":"VLOOKUP(OFFSET($B:$B,,MATCH(W$4,$B$4:$F$4,0)-1),OFFSET('C. PoC Adj Factor Scoring'!$E$5:$J$282,,MATCH(W$4,'C. PoC Adj Factor Scoring'!$E$3:$AH$3,0)-1),MATCH(W$2&\" Score\",'C. PoC Adj Factor Scoring'!$E$4:$J$4,0),TRUE)","v":1},{"$f":"VLOOKUP(OFFSET($B:$B,,MATCH(X$4,$B$4:$F$4,0)-1),OFFSET('C. PoC Adj Factor Scoring'!$E$5:$J$282,,MATCH(X$4,'C. PoC Adj Factor Scoring'!$E$3:$AH$3,0)-1),MATCH(X$2&\" Score\",'C. PoC Adj Factor Scoring'!$E$4:$J$4,0),TRUE)","v":1},{"$f":"VLOOKUP(OFFSET($B:$B,,MATCH(Y$4,$B$4:$F$4,0)-1),OFFSET('C. PoC Adj Factor Scoring'!$E$5:$J$282,,MATCH(Y$4,'C. PoC Adj Factor Scoring'!$E$3:$AH$3,0)-1),MATCH(Y$2&\" Score\",'C. PoC Adj Factor Scoring'!$E$4:$J$4,0),TRUE)","v":1},{"$f":"VLOOKUP(OFFSET($B:$B,,MATCH(Z$4,$B$4:$F$4,0)-1),OFFSET('C. PoC Adj Factor Scoring'!$E$5:$J$282,,MATCH(Z$4,'C. PoC Adj Factor Scoring'!$E$3:$AH$3,0)-1),MATCH(Z$2&\" Score\",'C. PoC Adj Factor Scoring'!$E$4:$J$4,0),TRUE)","v":1},{"$f":"VLOOKUP(OFFSET($B:$B,,MATCH(AA$4,$B$4:$F$4,0)-1),OFFSET('C. PoC Adj Factor Scoring'!$E$5:$J$282,,MATCH(AA$4,'C. PoC Adj Factor Scoring'!$E$3:$AH$3,0)-1),MATCH(AA$2&\" Score\",'C. PoC Adj Factor Scoring'!$E$4:$J$4,0),TRUE)","v":3},{"$f":"VLOOKUP(OFFSET($B:$B,,MATCH(AB$4,$B$4:$F$4,0)-1),OFFSET('C. PoC Adj Factor Scoring'!$E$5:$J$282,,MATCH(AB$4,'C. PoC Adj Factor Scoring'!$E$3:$AH$3,0)-1),MATCH(AB$2&\" Score\",'C. PoC Adj Factor Scoring'!$E$4:$J$4,0),TRUE)","v":1},{"$f":"VLOOKUP(OFFSET($B:$B,,MATCH(AC$4,$B$4:$F$4,0)-1),OFFSET('C. PoC Adj Factor Scoring'!$E$5:$J$282,,MATCH(AC$4,'C. PoC Adj Factor Scoring'!$E$3:$AH$3,0)-1),MATCH(AC$2&\" Score\",'C. PoC Adj Factor Scoring'!$E$4:$J$4,0),TRUE)","v":1},{"$f":"VLOOKUP(OFFSET($B:$B,,MATCH(AD$4,$B$4:$F$4,0)-1),OFFSET('C. PoC Adj Factor Scoring'!$E$5:$J$282,,MATCH(AD$4,'C. PoC Adj Factor Scoring'!$E$3:$AH$3,0)-1),MATCH(AD$2&\" Score\",'C. PoC Adj Factor Scoring'!$E$4:$J$4,0),TRUE)","v":1},{"$f":"VLOOKUP(OFFSET($B:$B,,MATCH(AE$4,$B$4:$F$4,0)-1),OFFSET('C. PoC Adj Factor Scoring'!$E$5:$J$282,,MATCH(AE$4,'C. PoC Adj Factor Scoring'!$E$3:$AH$3,0)-1),MATCH(AE$2&\" Score\",'C. PoC Adj Factor Scoring'!$E$4:$J$4,0),TRUE)","v":1}]
[{"$f":"'A. Population Info'!A309","v":1000374449},{"$f":"'A. Population Info'!L309","v":"OIL"},{"$f":"'A. Population Info'!M309","v":0},{"$f":"'A. Population Info'!N309","v":0},{"$f":"'A. Population Info'!O309","v":0},{"$f":"'A. Population Info'!P309","v":0},{"$f":"VLOOKUP(OFFSET($B:$B,,MATCH(G$4,$B$4:$F$4,0)-1),OFFSET('C. PoC Adj Factor Scoring'!$E$5:$J$282,,MATCH(G$4,'C. PoC Adj Factor Scoring'!$E$3:$AH$3,0)-1),MATCH(G$2&\" Score\",'C. PoC Adj Factor Scoring'!$E$4:$J$4,0),TRUE)","v":4},{"$f":"VLOOKUP(OFFSET($B:$B,,MATCH(H$4,$B$4:$F$4,0)-1),OFFSET('C. PoC Adj Factor Scoring'!$E$5:$J$282,,MATCH(H$4,'C. PoC Adj Factor Scoring'!$E$3:$AH$3,0)-1),MATCH(H$2&\" Score\",'C. PoC Adj Factor Scoring'!$E$4:$J$4,0),TRUE)","v":1},{"$f":"VLOOKUP(OFFSET($B:$B,,MATCH(I$4,$B$4:$F$4,0)-1),OFFSET('C. PoC Adj Factor Scoring'!$E$5:$J$282,,MATCH(I$4,'C. PoC Adj Factor Scoring'!$E$3:$AH$3,0)-1),MATCH(I$2&\" Score\",'C. PoC Adj Factor Scoring'!$E$4:$J$4,0),TRUE)","v":1},{"$f":"VLOOKUP(OFFSET($B:$B,,MATCH(J$4,$B$4:$F$4,0)-1),OFFSET('C. PoC Adj Factor Scoring'!$E$5:$J$282,,MATCH(J$4,'C. PoC Adj Factor Scoring'!$E$3:$AH$3,0)-1),MATCH(J$2&\" Score\",'C. PoC Adj Factor Scoring'!$E$4:$J$4,0),TRUE)","v":1},{"$f":"VLOOKUP(OFFSET($B:$B,,MATCH(K$4,$B$4:$F$4,0)-1),OFFSET('C. PoC Adj Factor Scoring'!$E$5:$J$282,,MATCH(K$4,'C. PoC Adj Factor Scoring'!$E$3:$AH$3,0)-1),MATCH(K$2&\" Score\",'C. PoC Adj Factor Scoring'!$E$4:$J$4,0),TRUE)","v":1},{"$f":"VLOOKUP(OFFSET($B:$B,,MATCH(L$4,$B$4:$F$4,0)-1),OFFSET('C. PoC Adj Factor Scoring'!$E$5:$J$282,,MATCH(L$4,'C. PoC Adj Factor Scoring'!$E$3:$AH$3,0)-1),MATCH(L$2&\" Score\",'C. PoC Adj Factor Scoring'!$E$4:$J$4,0),TRUE)","v":1},{"$f":"VLOOKUP(OFFSET($B:$B,,MATCH(M$4,$B$4:$F$4,0)-1),OFFSET('C. PoC Adj Factor Scoring'!$E$5:$J$282,,MATCH(M$4,'C. PoC Adj Factor Scoring'!$E$3:$AH$3,0)-1),MATCH(M$2&\" Score\",'C. PoC Adj Factor Scoring'!$E$4:$J$4,0),TRUE)","v":1},{"$f":"VLOOKUP(OFFSET($B:$B,,MATCH(N$4,$B$4:$F$4,0)-1),OFFSET('C. PoC Adj Factor Scoring'!$E$5:$J$282,,MATCH(N$4,'C. PoC Adj Factor Scoring'!$E$3:$AH$3,0)-1),MATCH(N$2&\" Score\",'C. PoC Adj Factor Scoring'!$E$4:$J$4,0),TRUE)","v":1},{"$f":"VLOOKUP(OFFSET($B:$B,,MATCH(O$4,$B$4:$F$4,0)-1),OFFSET('C. PoC Adj Factor Scoring'!$E$5:$J$282,,MATCH(O$4,'C. PoC Adj Factor Scoring'!$E$3:$AH$3,0)-1),MATCH(O$2&\" Score\",'C. PoC Adj Factor Scoring'!$E$4:$J$4,0),TRUE)","v":1},{"$f":"VLOOKUP(OFFSET($B:$B,,MATCH(P$4,$B$4:$F$4,0)-1),OFFSET('C. PoC Adj Factor Scoring'!$E$5:$J$282,,MATCH(P$4,'C. PoC Adj Factor Scoring'!$E$3:$AH$3,0)-1),MATCH(P$2&\" Score\",'C. PoC Adj Factor Scoring'!$E$4:$J$4,0),TRUE)","v":1},{"$f":"VLOOKUP(OFFSET($B:$B,,MATCH(Q$4,$B$4:$F$4,0)-1),OFFSET('C. PoC Adj Factor Scoring'!$E$5:$J$282,,MATCH(Q$4,'C. PoC Adj Factor Scoring'!$E$3:$AH$3,0)-1),MATCH(Q$2&\" Score\",'C. PoC Adj Factor Scoring'!$E$4:$J$4,0),TRUE)","v":1},{"$f":"VLOOKUP(OFFSET($B:$B,,MATCH(R$4,$B$4:$F$4,0)-1),OFFSET('C. PoC Adj Factor Scoring'!$E$5:$J$282,,MATCH(R$4,'C. PoC Adj Factor Scoring'!$E$3:$AH$3,0)-1),MATCH(R$2&\" Score\",'C. PoC Adj Factor Scoring'!$E$4:$J$4,0),TRUE)","v":1},{"$f":"VLOOKUP(OFFSET($B:$B,,MATCH(S$4,$B$4:$F$4,0)-1),OFFSET('C. PoC Adj Factor Scoring'!$E$5:$J$282,,MATCH(S$4,'C. PoC Adj Factor Scoring'!$E$3:$AH$3,0)-1),MATCH(S$2&\" Score\",'C. PoC Adj Factor Scoring'!$E$4:$J$4,0),TRUE)","v":1},{"$f":"VLOOKUP(OFFSET($B:$B,,MATCH(T$4,$B$4:$F$4,0)-1),OFFSET('C. PoC Adj Factor Scoring'!$E$5:$J$282,,MATCH(T$4,'C. PoC Adj Factor Scoring'!$E$3:$AH$3,0)-1),MATCH(T$2&\" Score\",'C. PoC Adj Factor Scoring'!$E$4:$J$4,0),TRUE)","v":1},{"$f":"VLOOKUP(OFFSET($B:$B,,MATCH(U$4,$B$4:$F$4,0)-1),OFFSET('C. PoC Adj Factor Scoring'!$E$5:$J$282,,MATCH(U$4,'C. PoC Adj Factor Scoring'!$E$3:$AH$3,0)-1),MATCH(U$2&\" Score\",'C. PoC Adj Factor Scoring'!$E$4:$J$4,0),TRUE)","v":1},{"$f":"VLOOKUP(OFFSET($B:$B,,MATCH(V$4,$B$4:$F$4,0)-1),OFFSET('C. PoC Adj Factor Scoring'!$E$5:$J$282,,MATCH(V$4,'C. PoC Adj Factor Scoring'!$E$3:$AH$3,0)-1),MATCH(V$2&\" Score\",'C. PoC Adj Factor Scoring'!$E$4:$J$4,0),TRUE)","v":1},{"$f":"VLOOKUP(OFFSET($B:$B,,MATCH(W$4,$B$4:$F$4,0)-1),OFFSET('C. PoC Adj Factor Scoring'!$E$5:$J$282,,MATCH(W$4,'C. PoC Adj Factor Scoring'!$E$3:$AH$3,0)-1),MATCH(W$2&\" Score\",'C. PoC Adj Factor Scoring'!$E$4:$J$4,0),TRUE)","v":1},{"$f":"VLOOKUP(OFFSET($B:$B,,MATCH(X$4,$B$4:$F$4,0)-1),OFFSET('C. PoC Adj Factor Scoring'!$E$5:$J$282,,MATCH(X$4,'C. PoC Adj Factor Scoring'!$E$3:$AH$3,0)-1),MATCH(X$2&\" Score\",'C. PoC Adj Factor Scoring'!$E$4:$J$4,0),TRUE)","v":1},{"$f":"VLOOKUP(OFFSET($B:$B,,MATCH(Y$4,$B$4:$F$4,0)-1),OFFSET('C. PoC Adj Factor Scoring'!$E$5:$J$282,,MATCH(Y$4,'C. PoC Adj Factor Scoring'!$E$3:$AH$3,0)-1),MATCH(Y$2&\" Score\",'C. PoC Adj Factor Scoring'!$E$4:$J$4,0),TRUE)","v":1},{"$f":"VLOOKUP(OFFSET($B:$B,,MATCH(Z$4,$B$4:$F$4,0)-1),OFFSET('C. PoC Adj Factor Scoring'!$E$5:$J$282,,MATCH(Z$4,'C. PoC Adj Factor Scoring'!$E$3:$AH$3,0)-1),MATCH(Z$2&\" Score\",'C. PoC Adj Factor Scoring'!$E$4:$J$4,0),TRUE)","v":1},{"$f":"VLOOKUP(OFFSET($B:$B,,MATCH(AA$4,$B$4:$F$4,0)-1),OFFSET('C. PoC Adj Factor Scoring'!$E$5:$J$282,,MATCH(AA$4,'C. PoC Adj Factor Scoring'!$E$3:$AH$3,0)-1),MATCH(AA$2&\" Score\",'C. PoC Adj Factor Scoring'!$E$4:$J$4,0),TRUE)","v":3},{"$f":"VLOOKUP(OFFSET($B:$B,,MATCH(AB$4,$B$4:$F$4,0)-1),OFFSET('C. PoC Adj Factor Scoring'!$E$5:$J$282,,MATCH(AB$4,'C. PoC Adj Factor Scoring'!$E$3:$AH$3,0)-1),MATCH(AB$2&\" Score\",'C. PoC Adj Factor Scoring'!$E$4:$J$4,0),TRUE)","v":1},{"$f":"VLOOKUP(OFFSET($B:$B,,MATCH(AC$4,$B$4:$F$4,0)-1),OFFSET('C. PoC Adj Factor Scoring'!$E$5:$J$282,,MATCH(AC$4,'C. PoC Adj Factor Scoring'!$E$3:$AH$3,0)-1),MATCH(AC$2&\" Score\",'C. PoC Adj Factor Scoring'!$E$4:$J$4,0),TRUE)","v":1},{"$f":"VLOOKUP(OFFSET($B:$B,,MATCH(AD$4,$B$4:$F$4,0)-1),OFFSET('C. PoC Adj Factor Scoring'!$E$5:$J$282,,MATCH(AD$4,'C. PoC Adj Factor Scoring'!$E$3:$AH$3,0)-1),MATCH(AD$2&\" Score\",'C. PoC Adj Factor Scoring'!$E$4:$J$4,0),TRUE)","v":1},{"$f":"VLOOKUP(OFFSET($B:$B,,MATCH(AE$4,$B$4:$F$4,0)-1),OFFSET('C. PoC Adj Factor Scoring'!$E$5:$J$282,,MATCH(AE$4,'C. PoC Adj Factor Scoring'!$E$3:$AH$3,0)-1),MATCH(AE$2&\" Score\",'C. PoC Adj Factor Scoring'!$E$4:$J$4,0),TRUE)","v":1}]
[{"$f":"'A. Population Info'!A310","v":1000374873},{"$f":"'A. Population Info'!L310","v":"OIL"},{"$f":"'A. Population Info'!M310","v":0},{"$f":"'A. Population Info'!N310","v":0},{"$f":"'A. Population Info'!O310","v":0},{"$f":"'A. Population Info'!P310","v":0},{"$f":"VLOOKUP(OFFSET($B:$B,,MATCH(G$4,$B$4:$F$4,0)-1),OFFSET('C. PoC Adj Factor Scoring'!$E$5:$J$282,,MATCH(G$4,'C. PoC Adj Factor Scoring'!$E$3:$AH$3,0)-1),MATCH(G$2&\" Score\",'C. PoC Adj Factor Scoring'!$E$4:$J$4,0),TRUE)","v":4},{"$f":"VLOOKUP(OFFSET($B:$B,,MATCH(H$4,$B$4:$F$4,0)-1),OFFSET('C. PoC Adj Factor Scoring'!$E$5:$J$282,,MATCH(H$4,'C. PoC Adj Factor Scoring'!$E$3:$AH$3,0)-1),MATCH(H$2&\" Score\",'C. PoC Adj Factor Scoring'!$E$4:$J$4,0),TRUE)","v":1},{"$f":"VLOOKUP(OFFSET($B:$B,,MATCH(I$4,$B$4:$F$4,0)-1),OFFSET('C. PoC Adj Factor Scoring'!$E$5:$J$282,,MATCH(I$4,'C. PoC Adj Factor Scoring'!$E$3:$AH$3,0)-1),MATCH(I$2&\" Score\",'C. PoC Adj Factor Scoring'!$E$4:$J$4,0),TRUE)","v":1},{"$f":"VLOOKUP(OFFSET($B:$B,,MATCH(J$4,$B$4:$F$4,0)-1),OFFSET('C. PoC Adj Factor Scoring'!$E$5:$J$282,,MATCH(J$4,'C. PoC Adj Factor Scoring'!$E$3:$AH$3,0)-1),MATCH(J$2&\" Score\",'C. PoC Adj Factor Scoring'!$E$4:$J$4,0),TRUE)","v":1},{"$f":"VLOOKUP(OFFSET($B:$B,,MATCH(K$4,$B$4:$F$4,0)-1),OFFSET('C. PoC Adj Factor Scoring'!$E$5:$J$282,,MATCH(K$4,'C. PoC Adj Factor Scoring'!$E$3:$AH$3,0)-1),MATCH(K$2&\" Score\",'C. PoC Adj Factor Scoring'!$E$4:$J$4,0),TRUE)","v":1},{"$f":"VLOOKUP(OFFSET($B:$B,,MATCH(L$4,$B$4:$F$4,0)-1),OFFSET('C. PoC Adj Factor Scoring'!$E$5:$J$282,,MATCH(L$4,'C. PoC Adj Factor Scoring'!$E$3:$AH$3,0)-1),MATCH(L$2&\" Score\",'C. PoC Adj Factor Scoring'!$E$4:$J$4,0),TRUE)","v":1},{"$f":"VLOOKUP(OFFSET($B:$B,,MATCH(M$4,$B$4:$F$4,0)-1),OFFSET('C. PoC Adj Factor Scoring'!$E$5:$J$282,,MATCH(M$4,'C. PoC Adj Factor Scoring'!$E$3:$AH$3,0)-1),MATCH(M$2&\" Score\",'C. PoC Adj Factor Scoring'!$E$4:$J$4,0),TRUE)","v":1},{"$f":"VLOOKUP(OFFSET($B:$B,,MATCH(N$4,$B$4:$F$4,0)-1),OFFSET('C. PoC Adj Factor Scoring'!$E$5:$J$282,,MATCH(N$4,'C. PoC Adj Factor Scoring'!$E$3:$AH$3,0)-1),MATCH(N$2&\" Score\",'C. PoC Adj Factor Scoring'!$E$4:$J$4,0),TRUE)","v":1},{"$f":"VLOOKUP(OFFSET($B:$B,,MATCH(O$4,$B$4:$F$4,0)-1),OFFSET('C. PoC Adj Factor Scoring'!$E$5:$J$282,,MATCH(O$4,'C. PoC Adj Factor Scoring'!$E$3:$AH$3,0)-1),MATCH(O$2&\" Score\",'C. PoC Adj Factor Scoring'!$E$4:$J$4,0),TRUE)","v":1},{"$f":"VLOOKUP(OFFSET($B:$B,,MATCH(P$4,$B$4:$F$4,0)-1),OFFSET('C. PoC Adj Factor Scoring'!$E$5:$J$282,,MATCH(P$4,'C. PoC Adj Factor Scoring'!$E$3:$AH$3,0)-1),MATCH(P$2&\" Score\",'C. PoC Adj Factor Scoring'!$E$4:$J$4,0),TRUE)","v":1},{"$f":"VLOOKUP(OFFSET($B:$B,,MATCH(Q$4,$B$4:$F$4,0)-1),OFFSET('C. PoC Adj Factor Scoring'!$E$5:$J$282,,MATCH(Q$4,'C. PoC Adj Factor Scoring'!$E$3:$AH$3,0)-1),MATCH(Q$2&\" Score\",'C. PoC Adj Factor Scoring'!$E$4:$J$4,0),TRUE)","v":1},{"$f":"VLOOKUP(OFFSET($B:$B,,MATCH(R$4,$B$4:$F$4,0)-1),OFFSET('C. PoC Adj Factor Scoring'!$E$5:$J$282,,MATCH(R$4,'C. PoC Adj Factor Scoring'!$E$3:$AH$3,0)-1),MATCH(R$2&\" Score\",'C. PoC Adj Factor Scoring'!$E$4:$J$4,0),TRUE)","v":1},{"$f":"VLOOKUP(OFFSET($B:$B,,MATCH(S$4,$B$4:$F$4,0)-1),OFFSET('C. PoC Adj Factor Scoring'!$E$5:$J$282,,MATCH(S$4,'C. PoC Adj Factor Scoring'!$E$3:$AH$3,0)-1),MATCH(S$2&\" Score\",'C. PoC Adj Factor Scoring'!$E$4:$J$4,0),TRUE)","v":1},{"$f":"VLOOKUP(OFFSET($B:$B,,MATCH(T$4,$B$4:$F$4,0)-1),OFFSET('C. PoC Adj Factor Scoring'!$E$5:$J$282,,MATCH(T$4,'C. PoC Adj Factor Scoring'!$E$3:$AH$3,0)-1),MATCH(T$2&\" Score\",'C. PoC Adj Factor Scoring'!$E$4:$J$4,0),TRUE)","v":1},{"$f":"VLOOKUP(OFFSET($B:$B,,MATCH(U$4,$B$4:$F$4,0)-1),OFFSET('C. PoC Adj Factor Scoring'!$E$5:$J$282,,MATCH(U$4,'C. PoC Adj Factor Scoring'!$E$3:$AH$3,0)-1),MATCH(U$2&\" Score\",'C. PoC Adj Factor Scoring'!$E$4:$J$4,0),TRUE)","v":1},{"$f":"VLOOKUP(OFFSET($B:$B,,MATCH(V$4,$B$4:$F$4,0)-1),OFFSET('C. PoC Adj Factor Scoring'!$E$5:$J$282,,MATCH(V$4,'C. PoC Adj Factor Scoring'!$E$3:$AH$3,0)-1),MATCH(V$2&\" Score\",'C. PoC Adj Factor Scoring'!$E$4:$J$4,0),TRUE)","v":1},{"$f":"VLOOKUP(OFFSET($B:$B,,MATCH(W$4,$B$4:$F$4,0)-1),OFFSET('C. PoC Adj Factor Scoring'!$E$5:$J$282,,MATCH(W$4,'C. PoC Adj Factor Scoring'!$E$3:$AH$3,0)-1),MATCH(W$2&\" Score\",'C. PoC Adj Factor Scoring'!$E$4:$J$4,0),TRUE)","v":1},{"$f":"VLOOKUP(OFFSET($B:$B,,MATCH(X$4,$B$4:$F$4,0)-1),OFFSET('C. PoC Adj Factor Scoring'!$E$5:$J$282,,MATCH(X$4,'C. PoC Adj Factor Scoring'!$E$3:$AH$3,0)-1),MATCH(X$2&\" Score\",'C. PoC Adj Factor Scoring'!$E$4:$J$4,0),TRUE)","v":1},{"$f":"VLOOKUP(OFFSET($B:$B,,MATCH(Y$4,$B$4:$F$4,0)-1),OFFSET('C. PoC Adj Factor Scoring'!$E$5:$J$282,,MATCH(Y$4,'C. PoC Adj Factor Scoring'!$E$3:$AH$3,0)-1),MATCH(Y$2&\" Score\",'C. PoC Adj Factor Scoring'!$E$4:$J$4,0),TRUE)","v":1},{"$f":"VLOOKUP(OFFSET($B:$B,,MATCH(Z$4,$B$4:$F$4,0)-1),OFFSET('C. PoC Adj Factor Scoring'!$E$5:$J$282,,MATCH(Z$4,'C. PoC Adj Factor Scoring'!$E$3:$AH$3,0)-1),MATCH(Z$2&\" Score\",'C. PoC Adj Factor Scoring'!$E$4:$J$4,0),TRUE)","v":1},{"$f":"VLOOKUP(OFFSET($B:$B,,MATCH(AA$4,$B$4:$F$4,0)-1),OFFSET('C. PoC Adj Factor Scoring'!$E$5:$J$282,,MATCH(AA$4,'C. PoC Adj Factor Scoring'!$E$3:$AH$3,0)-1),MATCH(AA$2&\" Score\",'C. PoC Adj Factor Scoring'!$E$4:$J$4,0),TRUE)","v":3},{"$f":"VLOOKUP(OFFSET($B:$B,,MATCH(AB$4,$B$4:$F$4,0)-1),OFFSET('C. PoC Adj Factor Scoring'!$E$5:$J$282,,MATCH(AB$4,'C. PoC Adj Factor Scoring'!$E$3:$AH$3,0)-1),MATCH(AB$2&\" Score\",'C. PoC Adj Factor Scoring'!$E$4:$J$4,0),TRUE)","v":1},{"$f":"VLOOKUP(OFFSET($B:$B,,MATCH(AC$4,$B$4:$F$4,0)-1),OFFSET('C. PoC Adj Factor Scoring'!$E$5:$J$282,,MATCH(AC$4,'C. PoC Adj Factor Scoring'!$E$3:$AH$3,0)-1),MATCH(AC$2&\" Score\",'C. PoC Adj Factor Scoring'!$E$4:$J$4,0),TRUE)","v":1},{"$f":"VLOOKUP(OFFSET($B:$B,,MATCH(AD$4,$B$4:$F$4,0)-1),OFFSET('C. PoC Adj Factor Scoring'!$E$5:$J$282,,MATCH(AD$4,'C. PoC Adj Factor Scoring'!$E$3:$AH$3,0)-1),MATCH(AD$2&\" Score\",'C. PoC Adj Factor Scoring'!$E$4:$J$4,0),TRUE)","v":1},{"$f":"VLOOKUP(OFFSET($B:$B,,MATCH(AE$4,$B$4:$F$4,0)-1),OFFSET('C. PoC Adj Factor Scoring'!$E$5:$J$282,,MATCH(AE$4,'C. PoC Adj Factor Scoring'!$E$3:$AH$3,0)-1),MATCH(AE$2&\" Score\",'C. PoC Adj Factor Scoring'!$E$4:$J$4,0),TRUE)","v":1}]
[{"$f":"'A. Population Info'!A311","v":1000375968},{"$f":"'A. Population Info'!L311","v":"OIL"},{"$f":"'A. Population Info'!M311","v":0},{"$f":"'A. Population Info'!N311","v":0},{"$f":"'A. Population Info'!O311","v":0},{"$f":"'A. Population Info'!P311","v":0},{"$f":"VLOOKUP(OFFSET($B:$B,,MATCH(G$4,$B$4:$F$4,0)-1),OFFSET('C. PoC Adj Factor Scoring'!$E$5:$J$282,,MATCH(G$4,'C. PoC Adj Factor Scoring'!$E$3:$AH$3,0)-1),MATCH(G$2&\" Score\",'C. PoC Adj Factor Scoring'!$E$4:$J$4,0),TRUE)","v":4},{"$f":"VLOOKUP(OFFSET($B:$B,,MATCH(H$4,$B$4:$F$4,0)-1),OFFSET('C. PoC Adj Factor Scoring'!$E$5:$J$282,,MATCH(H$4,'C. PoC Adj Factor Scoring'!$E$3:$AH$3,0)-1),MATCH(H$2&\" Score\",'C. PoC Adj Factor Scoring'!$E$4:$J$4,0),TRUE)","v":1},{"$f":"VLOOKUP(OFFSET($B:$B,,MATCH(I$4,$B$4:$F$4,0)-1),OFFSET('C. PoC Adj Factor Scoring'!$E$5:$J$282,,MATCH(I$4,'C. PoC Adj Factor Scoring'!$E$3:$AH$3,0)-1),MATCH(I$2&\" Score\",'C. PoC Adj Factor Scoring'!$E$4:$J$4,0),TRUE)","v":1},{"$f":"VLOOKUP(OFFSET($B:$B,,MATCH(J$4,$B$4:$F$4,0)-1),OFFSET('C. PoC Adj Factor Scoring'!$E$5:$J$282,,MATCH(J$4,'C. PoC Adj Factor Scoring'!$E$3:$AH$3,0)-1),MATCH(J$2&\" Score\",'C. PoC Adj Factor Scoring'!$E$4:$J$4,0),TRUE)","v":1},{"$f":"VLOOKUP(OFFSET($B:$B,,MATCH(K$4,$B$4:$F$4,0)-1),OFFSET('C. PoC Adj Factor Scoring'!$E$5:$J$282,,MATCH(K$4,'C. PoC Adj Factor Scoring'!$E$3:$AH$3,0)-1),MATCH(K$2&\" Score\",'C. PoC Adj Factor Scoring'!$E$4:$J$4,0),TRUE)","v":1},{"$f":"VLOOKUP(OFFSET($B:$B,,MATCH(L$4,$B$4:$F$4,0)-1),OFFSET('C. PoC Adj Factor Scoring'!$E$5:$J$282,,MATCH(L$4,'C. PoC Adj Factor Scoring'!$E$3:$AH$3,0)-1),MATCH(L$2&\" Score\",'C. PoC Adj Factor Scoring'!$E$4:$J$4,0),TRUE)","v":1},{"$f":"VLOOKUP(OFFSET($B:$B,,MATCH(M$4,$B$4:$F$4,0)-1),OFFSET('C. PoC Adj Factor Scoring'!$E$5:$J$282,,MATCH(M$4,'C. PoC Adj Factor Scoring'!$E$3:$AH$3,0)-1),MATCH(M$2&\" Score\",'C. PoC Adj Factor Scoring'!$E$4:$J$4,0),TRUE)","v":1},{"$f":"VLOOKUP(OFFSET($B:$B,,MATCH(N$4,$B$4:$F$4,0)-1),OFFSET('C. PoC Adj Factor Scoring'!$E$5:$J$282,,MATCH(N$4,'C. PoC Adj Factor Scoring'!$E$3:$AH$3,0)-1),MATCH(N$2&\" Score\",'C. PoC Adj Factor Scoring'!$E$4:$J$4,0),TRUE)","v":1},{"$f":"VLOOKUP(OFFSET($B:$B,,MATCH(O$4,$B$4:$F$4,0)-1),OFFSET('C. PoC Adj Factor Scoring'!$E$5:$J$282,,MATCH(O$4,'C. PoC Adj Factor Scoring'!$E$3:$AH$3,0)-1),MATCH(O$2&\" Score\",'C. PoC Adj Factor Scoring'!$E$4:$J$4,0),TRUE)","v":1},{"$f":"VLOOKUP(OFFSET($B:$B,,MATCH(P$4,$B$4:$F$4,0)-1),OFFSET('C. PoC Adj Factor Scoring'!$E$5:$J$282,,MATCH(P$4,'C. PoC Adj Factor Scoring'!$E$3:$AH$3,0)-1),MATCH(P$2&\" Score\",'C. PoC Adj Factor Scoring'!$E$4:$J$4,0),TRUE)","v":1},{"$f":"VLOOKUP(OFFSET($B:$B,,MATCH(Q$4,$B$4:$F$4,0)-1),OFFSET('C. PoC Adj Factor Scoring'!$E$5:$J$282,,MATCH(Q$4,'C. PoC Adj Factor Scoring'!$E$3:$AH$3,0)-1),MATCH(Q$2&\" Score\",'C. PoC Adj Factor Scoring'!$E$4:$J$4,0),TRUE)","v":1},{"$f":"VLOOKUP(OFFSET($B:$B,,MATCH(R$4,$B$4:$F$4,0)-1),OFFSET('C. PoC Adj Factor Scoring'!$E$5:$J$282,,MATCH(R$4,'C. PoC Adj Factor Scoring'!$E$3:$AH$3,0)-1),MATCH(R$2&\" Score\",'C. PoC Adj Factor Scoring'!$E$4:$J$4,0),TRUE)","v":1},{"$f":"VLOOKUP(OFFSET($B:$B,,MATCH(S$4,$B$4:$F$4,0)-1),OFFSET('C. PoC Adj Factor Scoring'!$E$5:$J$282,,MATCH(S$4,'C. PoC Adj Factor Scoring'!$E$3:$AH$3,0)-1),MATCH(S$2&\" Score\",'C. PoC Adj Factor Scoring'!$E$4:$J$4,0),TRUE)","v":1},{"$f":"VLOOKUP(OFFSET($B:$B,,MATCH(T$4,$B$4:$F$4,0)-1),OFFSET('C. PoC Adj Factor Scoring'!$E$5:$J$282,,MATCH(T$4,'C. PoC Adj Factor Scoring'!$E$3:$AH$3,0)-1),MATCH(T$2&\" Score\",'C. PoC Adj Factor Scoring'!$E$4:$J$4,0),TRUE)","v":1},{"$f":"VLOOKUP(OFFSET($B:$B,,MATCH(U$4,$B$4:$F$4,0)-1),OFFSET('C. PoC Adj Factor Scoring'!$E$5:$J$282,,MATCH(U$4,'C. PoC Adj Factor Scoring'!$E$3:$AH$3,0)-1),MATCH(U$2&\" Score\",'C. PoC Adj Factor Scoring'!$E$4:$J$4,0),TRUE)","v":1},{"$f":"VLOOKUP(OFFSET($B:$B,,MATCH(V$4,$B$4:$F$4,0)-1),OFFSET('C. PoC Adj Factor Scoring'!$E$5:$J$282,,MATCH(V$4,'C. PoC Adj Factor Scoring'!$E$3:$AH$3,0)-1),MATCH(V$2&\" Score\",'C. PoC Adj Factor Scoring'!$E$4:$J$4,0),TRUE)","v":1},{"$f":"VLOOKUP(OFFSET($B:$B,,MATCH(W$4,$B$4:$F$4,0)-1),OFFSET('C. PoC Adj Factor Scoring'!$E$5:$J$282,,MATCH(W$4,'C. PoC Adj Factor Scoring'!$E$3:$AH$3,0)-1),MATCH(W$2&\" Score\",'C. PoC Adj Factor Scoring'!$E$4:$J$4,0),TRUE)","v":1},{"$f":"VLOOKUP(OFFSET($B:$B,,MATCH(X$4,$B$4:$F$4,0)-1),OFFSET('C. PoC Adj Factor Scoring'!$E$5:$J$282,,MATCH(X$4,'C. PoC Adj Factor Scoring'!$E$3:$AH$3,0)-1),MATCH(X$2&\" Score\",'C. PoC Adj Factor Scoring'!$E$4:$J$4,0),TRUE)","v":1},{"$f":"VLOOKUP(OFFSET($B:$B,,MATCH(Y$4,$B$4:$F$4,0)-1),OFFSET('C. PoC Adj Factor Scoring'!$E$5:$J$282,,MATCH(Y$4,'C. PoC Adj Factor Scoring'!$E$3:$AH$3,0)-1),MATCH(Y$2&\" Score\",'C. PoC Adj Factor Scoring'!$E$4:$J$4,0),TRUE)","v":1},{"$f":"VLOOKUP(OFFSET($B:$B,,MATCH(Z$4,$B$4:$F$4,0)-1),OFFSET('C. PoC Adj Factor Scoring'!$E$5:$J$282,,MATCH(Z$4,'C. PoC Adj Factor Scoring'!$E$3:$AH$3,0)-1),MATCH(Z$2&\" Score\",'C. PoC Adj Factor Scoring'!$E$4:$J$4,0),TRUE)","v":1},{"$f":"VLOOKUP(OFFSET($B:$B,,MATCH(AA$4,$B$4:$F$4,0)-1),OFFSET('C. PoC Adj Factor Scoring'!$E$5:$J$282,,MATCH(AA$4,'C. PoC Adj Factor Scoring'!$E$3:$AH$3,0)-1),MATCH(AA$2&\" Score\",'C. PoC Adj Factor Scoring'!$E$4:$J$4,0),TRUE)","v":3},{"$f":"VLOOKUP(OFFSET($B:$B,,MATCH(AB$4,$B$4:$F$4,0)-1),OFFSET('C. PoC Adj Factor Scoring'!$E$5:$J$282,,MATCH(AB$4,'C. PoC Adj Factor Scoring'!$E$3:$AH$3,0)-1),MATCH(AB$2&\" Score\",'C. PoC Adj Factor Scoring'!$E$4:$J$4,0),TRUE)","v":1},{"$f":"VLOOKUP(OFFSET($B:$B,,MATCH(AC$4,$B$4:$F$4,0)-1),OFFSET('C. PoC Adj Factor Scoring'!$E$5:$J$282,,MATCH(AC$4,'C. PoC Adj Factor Scoring'!$E$3:$AH$3,0)-1),MATCH(AC$2&\" Score\",'C. PoC Adj Factor Scoring'!$E$4:$J$4,0),TRUE)","v":1},{"$f":"VLOOKUP(OFFSET($B:$B,,MATCH(AD$4,$B$4:$F$4,0)-1),OFFSET('C. PoC Adj Factor Scoring'!$E$5:$J$282,,MATCH(AD$4,'C. PoC Adj Factor Scoring'!$E$3:$AH$3,0)-1),MATCH(AD$2&\" Score\",'C. PoC Adj Factor Scoring'!$E$4:$J$4,0),TRUE)","v":1},{"$f":"VLOOKUP(OFFSET($B:$B,,MATCH(AE$4,$B$4:$F$4,0)-1),OFFSET('C. PoC Adj Factor Scoring'!$E$5:$J$282,,MATCH(AE$4,'C. PoC Adj Factor Scoring'!$E$3:$AH$3,0)-1),MATCH(AE$2&\" Score\",'C. PoC Adj Factor Scoring'!$E$4:$J$4,0),TRUE)","v":1}]
[{"$f":"'A. Population Info'!A312","v":1000375980},{"$f":"'A. Population Info'!L312","v":"OIL"},{"$f":"'A. Population Info'!M312","v":0},{"$f":"'A. Population Info'!N312","v":0},{"$f":"'A. Population Info'!O312","v":0},{"$f":"'A. Population Info'!P312","v":0},{"$f":"VLOOKUP(OFFSET($B:$B,,MATCH(G$4,$B$4:$F$4,0)-1),OFFSET('C. PoC Adj Factor Scoring'!$E$5:$J$282,,MATCH(G$4,'C. PoC Adj Factor Scoring'!$E$3:$AH$3,0)-1),MATCH(G$2&\" Score\",'C. PoC Adj Factor Scoring'!$E$4:$J$4,0),TRUE)","v":4},{"$f":"VLOOKUP(OFFSET($B:$B,,MATCH(H$4,$B$4:$F$4,0)-1),OFFSET('C. PoC Adj Factor Scoring'!$E$5:$J$282,,MATCH(H$4,'C. PoC Adj Factor Scoring'!$E$3:$AH$3,0)-1),MATCH(H$2&\" Score\",'C. PoC Adj Factor Scoring'!$E$4:$J$4,0),TRUE)","v":1},{"$f":"VLOOKUP(OFFSET($B:$B,,MATCH(I$4,$B$4:$F$4,0)-1),OFFSET('C. PoC Adj Factor Scoring'!$E$5:$J$282,,MATCH(I$4,'C. PoC Adj Factor Scoring'!$E$3:$AH$3,0)-1),MATCH(I$2&\" Score\",'C. PoC Adj Factor Scoring'!$E$4:$J$4,0),TRUE)","v":1},{"$f":"VLOOKUP(OFFSET($B:$B,,MATCH(J$4,$B$4:$F$4,0)-1),OFFSET('C. PoC Adj Factor Scoring'!$E$5:$J$282,,MATCH(J$4,'C. PoC Adj Factor Scoring'!$E$3:$AH$3,0)-1),MATCH(J$2&\" Score\",'C. PoC Adj Factor Scoring'!$E$4:$J$4,0),TRUE)","v":1},{"$f":"VLOOKUP(OFFSET($B:$B,,MATCH(K$4,$B$4:$F$4,0)-1),OFFSET('C. PoC Adj Factor Scoring'!$E$5:$J$282,,MATCH(K$4,'C. PoC Adj Factor Scoring'!$E$3:$AH$3,0)-1),MATCH(K$2&\" Score\",'C. PoC Adj Factor Scoring'!$E$4:$J$4,0),TRUE)","v":1},{"$f":"VLOOKUP(OFFSET($B:$B,,MATCH(L$4,$B$4:$F$4,0)-1),OFFSET('C. PoC Adj Factor Scoring'!$E$5:$J$282,,MATCH(L$4,'C. PoC Adj Factor Scoring'!$E$3:$AH$3,0)-1),MATCH(L$2&\" Score\",'C. PoC Adj Factor Scoring'!$E$4:$J$4,0),TRUE)","v":1},{"$f":"VLOOKUP(OFFSET($B:$B,,MATCH(M$4,$B$4:$F$4,0)-1),OFFSET('C. PoC Adj Factor Scoring'!$E$5:$J$282,,MATCH(M$4,'C. PoC Adj Factor Scoring'!$E$3:$AH$3,0)-1),MATCH(M$2&\" Score\",'C. PoC Adj Factor Scoring'!$E$4:$J$4,0),TRUE)","v":1},{"$f":"VLOOKUP(OFFSET($B:$B,,MATCH(N$4,$B$4:$F$4,0)-1),OFFSET('C. PoC Adj Factor Scoring'!$E$5:$J$282,,MATCH(N$4,'C. PoC Adj Factor Scoring'!$E$3:$AH$3,0)-1),MATCH(N$2&\" Score\",'C. PoC Adj Factor Scoring'!$E$4:$J$4,0),TRUE)","v":1},{"$f":"VLOOKUP(OFFSET($B:$B,,MATCH(O$4,$B$4:$F$4,0)-1),OFFSET('C. PoC Adj Factor Scoring'!$E$5:$J$282,,MATCH(O$4,'C. PoC Adj Factor Scoring'!$E$3:$AH$3,0)-1),MATCH(O$2&\" Score\",'C. PoC Adj Factor Scoring'!$E$4:$J$4,0),TRUE)","v":1},{"$f":"VLOOKUP(OFFSET($B:$B,,MATCH(P$4,$B$4:$F$4,0)-1),OFFSET('C. PoC Adj Factor Scoring'!$E$5:$J$282,,MATCH(P$4,'C. PoC Adj Factor Scoring'!$E$3:$AH$3,0)-1),MATCH(P$2&\" Score\",'C. PoC Adj Factor Scoring'!$E$4:$J$4,0),TRUE)","v":1},{"$f":"VLOOKUP(OFFSET($B:$B,,MATCH(Q$4,$B$4:$F$4,0)-1),OFFSET('C. PoC Adj Factor Scoring'!$E$5:$J$282,,MATCH(Q$4,'C. PoC Adj Factor Scoring'!$E$3:$AH$3,0)-1),MATCH(Q$2&\" Score\",'C. PoC Adj Factor Scoring'!$E$4:$J$4,0),TRUE)","v":1},{"$f":"VLOOKUP(OFFSET($B:$B,,MATCH(R$4,$B$4:$F$4,0)-1),OFFSET('C. PoC Adj Factor Scoring'!$E$5:$J$282,,MATCH(R$4,'C. PoC Adj Factor Scoring'!$E$3:$AH$3,0)-1),MATCH(R$2&\" Score\",'C. PoC Adj Factor Scoring'!$E$4:$J$4,0),TRUE)","v":1},{"$f":"VLOOKUP(OFFSET($B:$B,,MATCH(S$4,$B$4:$F$4,0)-1),OFFSET('C. PoC Adj Factor Scoring'!$E$5:$J$282,,MATCH(S$4,'C. PoC Adj Factor Scoring'!$E$3:$AH$3,0)-1),MATCH(S$2&\" Score\",'C. PoC Adj Factor Scoring'!$E$4:$J$4,0),TRUE)","v":1},{"$f":"VLOOKUP(OFFSET($B:$B,,MATCH(T$4,$B$4:$F$4,0)-1),OFFSET('C. PoC Adj Factor Scoring'!$E$5:$J$282,,MATCH(T$4,'C. PoC Adj Factor Scoring'!$E$3:$AH$3,0)-1),MATCH(T$2&\" Score\",'C. PoC Adj Factor Scoring'!$E$4:$J$4,0),TRUE)","v":1},{"$f":"VLOOKUP(OFFSET($B:$B,,MATCH(U$4,$B$4:$F$4,0)-1),OFFSET('C. PoC Adj Factor Scoring'!$E$5:$J$282,,MATCH(U$4,'C. PoC Adj Factor Scoring'!$E$3:$AH$3,0)-1),MATCH(U$2&\" Score\",'C. PoC Adj Factor Scoring'!$E$4:$J$4,0),TRUE)","v":1},{"$f":"VLOOKUP(OFFSET($B:$B,,MATCH(V$4,$B$4:$F$4,0)-1),OFFSET('C. PoC Adj Factor Scoring'!$E$5:$J$282,,MATCH(V$4,'C. PoC Adj Factor Scoring'!$E$3:$AH$3,0)-1),MATCH(V$2&\" Score\",'C. PoC Adj Factor Scoring'!$E$4:$J$4,0),TRUE)","v":1},{"$f":"VLOOKUP(OFFSET($B:$B,,MATCH(W$4,$B$4:$F$4,0)-1),OFFSET('C. PoC Adj Factor Scoring'!$E$5:$J$282,,MATCH(W$4,'C. PoC Adj Factor Scoring'!$E$3:$AH$3,0)-1),MATCH(W$2&\" Score\",'C. PoC Adj Factor Scoring'!$E$4:$J$4,0),TRUE)","v":1},{"$f":"VLOOKUP(OFFSET($B:$B,,MATCH(X$4,$B$4:$F$4,0)-1),OFFSET('C. PoC Adj Factor Scoring'!$E$5:$J$282,,MATCH(X$4,'C. PoC Adj Factor Scoring'!$E$3:$AH$3,0)-1),MATCH(X$2&\" Score\",'C. PoC Adj Factor Scoring'!$E$4:$J$4,0),TRUE)","v":1},{"$f":"VLOOKUP(OFFSET($B:$B,,MATCH(Y$4,$B$4:$F$4,0)-1),OFFSET('C. PoC Adj Factor Scoring'!$E$5:$J$282,,MATCH(Y$4,'C. PoC Adj Factor Scoring'!$E$3:$AH$3,0)-1),MATCH(Y$2&\" Score\",'C. PoC Adj Factor Scoring'!$E$4:$J$4,0),TRUE)","v":1},{"$f":"VLOOKUP(OFFSET($B:$B,,MATCH(Z$4,$B$4:$F$4,0)-1),OFFSET('C. PoC Adj Factor Scoring'!$E$5:$J$282,,MATCH(Z$4,'C. PoC Adj Factor Scoring'!$E$3:$AH$3,0)-1),MATCH(Z$2&\" Score\",'C. PoC Adj Factor Scoring'!$E$4:$J$4,0),TRUE)","v":1},{"$f":"VLOOKUP(OFFSET($B:$B,,MATCH(AA$4,$B$4:$F$4,0)-1),OFFSET('C. PoC Adj Factor Scoring'!$E$5:$J$282,,MATCH(AA$4,'C. PoC Adj Factor Scoring'!$E$3:$AH$3,0)-1),MATCH(AA$2&\" Score\",'C. PoC Adj Factor Scoring'!$E$4:$J$4,0),TRUE)","v":3},{"$f":"VLOOKUP(OFFSET($B:$B,,MATCH(AB$4,$B$4:$F$4,0)-1),OFFSET('C. PoC Adj Factor Scoring'!$E$5:$J$282,,MATCH(AB$4,'C. PoC Adj Factor Scoring'!$E$3:$AH$3,0)-1),MATCH(AB$2&\" Score\",'C. PoC Adj Factor Scoring'!$E$4:$J$4,0),TRUE)","v":1},{"$f":"VLOOKUP(OFFSET($B:$B,,MATCH(AC$4,$B$4:$F$4,0)-1),OFFSET('C. PoC Adj Factor Scoring'!$E$5:$J$282,,MATCH(AC$4,'C. PoC Adj Factor Scoring'!$E$3:$AH$3,0)-1),MATCH(AC$2&\" Score\",'C. PoC Adj Factor Scoring'!$E$4:$J$4,0),TRUE)","v":1},{"$f":"VLOOKUP(OFFSET($B:$B,,MATCH(AD$4,$B$4:$F$4,0)-1),OFFSET('C. PoC Adj Factor Scoring'!$E$5:$J$282,,MATCH(AD$4,'C. PoC Adj Factor Scoring'!$E$3:$AH$3,0)-1),MATCH(AD$2&\" Score\",'C. PoC Adj Factor Scoring'!$E$4:$J$4,0),TRUE)","v":1},{"$f":"VLOOKUP(OFFSET($B:$B,,MATCH(AE$4,$B$4:$F$4,0)-1),OFFSET('C. PoC Adj Factor Scoring'!$E$5:$J$282,,MATCH(AE$4,'C. PoC Adj Factor Scoring'!$E$3:$AH$3,0)-1),MATCH(AE$2&\" Score\",'C. PoC Adj Factor Scoring'!$E$4:$J$4,0),TRUE)","v":1}]
[{"$f":"'A. Population Info'!A313","v":1000390269},{"$f":"'A. Population Info'!L313","v":"OIL"},{"$f":"'A. Population Info'!M313","v":0},{"$f":"'A. Population Info'!N313","v":0},{"$f":"'A. Population Info'!O313","v":0},{"$f":"'A. Population Info'!P313","v":0},{"$f":"VLOOKUP(OFFSET($B:$B,,MATCH(G$4,$B$4:$F$4,0)-1),OFFSET('C. PoC Adj Factor Scoring'!$E$5:$J$282,,MATCH(G$4,'C. PoC Adj Factor Scoring'!$E$3:$AH$3,0)-1),MATCH(G$2&\" Score\",'C. PoC Adj Factor Scoring'!$E$4:$J$4,0),TRUE)","v":4},{"$f":"VLOOKUP(OFFSET($B:$B,,MATCH(H$4,$B$4:$F$4,0)-1),OFFSET('C. PoC Adj Factor Scoring'!$E$5:$J$282,,MATCH(H$4,'C. PoC Adj Factor Scoring'!$E$3:$AH$3,0)-1),MATCH(H$2&\" Score\",'C. PoC Adj Factor Scoring'!$E$4:$J$4,0),TRUE)","v":1},{"$f":"VLOOKUP(OFFSET($B:$B,,MATCH(I$4,$B$4:$F$4,0)-1),OFFSET('C. PoC Adj Factor Scoring'!$E$5:$J$282,,MATCH(I$4,'C. PoC Adj Factor Scoring'!$E$3:$AH$3,0)-1),MATCH(I$2&\" Score\",'C. PoC Adj Factor Scoring'!$E$4:$J$4,0),TRUE)","v":1},{"$f":"VLOOKUP(OFFSET($B:$B,,MATCH(J$4,$B$4:$F$4,0)-1),OFFSET('C. PoC Adj Factor Scoring'!$E$5:$J$282,,MATCH(J$4,'C. PoC Adj Factor Scoring'!$E$3:$AH$3,0)-1),MATCH(J$2&\" Score\",'C. PoC Adj Factor Scoring'!$E$4:$J$4,0),TRUE)","v":1},{"$f":"VLOOKUP(OFFSET($B:$B,,MATCH(K$4,$B$4:$F$4,0)-1),OFFSET('C. PoC Adj Factor Scoring'!$E$5:$J$282,,MATCH(K$4,'C. PoC Adj Factor Scoring'!$E$3:$AH$3,0)-1),MATCH(K$2&\" Score\",'C. PoC Adj Factor Scoring'!$E$4:$J$4,0),TRUE)","v":1},{"$f":"VLOOKUP(OFFSET($B:$B,,MATCH(L$4,$B$4:$F$4,0)-1),OFFSET('C. PoC Adj Factor Scoring'!$E$5:$J$282,,MATCH(L$4,'C. PoC Adj Factor Scoring'!$E$3:$AH$3,0)-1),MATCH(L$2&\" Score\",'C. PoC Adj Factor Scoring'!$E$4:$J$4,0),TRUE)","v":1},{"$f":"VLOOKUP(OFFSET($B:$B,,MATCH(M$4,$B$4:$F$4,0)-1),OFFSET('C. PoC Adj Factor Scoring'!$E$5:$J$282,,MATCH(M$4,'C. PoC Adj Factor Scoring'!$E$3:$AH$3,0)-1),MATCH(M$2&\" Score\",'C. PoC Adj Factor Scoring'!$E$4:$J$4,0),TRUE)","v":1},{"$f":"VLOOKUP(OFFSET($B:$B,,MATCH(N$4,$B$4:$F$4,0)-1),OFFSET('C. PoC Adj Factor Scoring'!$E$5:$J$282,,MATCH(N$4,'C. PoC Adj Factor Scoring'!$E$3:$AH$3,0)-1),MATCH(N$2&\" Score\",'C. PoC Adj Factor Scoring'!$E$4:$J$4,0),TRUE)","v":1},{"$f":"VLOOKUP(OFFSET($B:$B,,MATCH(O$4,$B$4:$F$4,0)-1),OFFSET('C. PoC Adj Factor Scoring'!$E$5:$J$282,,MATCH(O$4,'C. PoC Adj Factor Scoring'!$E$3:$AH$3,0)-1),MATCH(O$2&\" Score\",'C. PoC Adj Factor Scoring'!$E$4:$J$4,0),TRUE)","v":1},{"$f":"VLOOKUP(OFFSET($B:$B,,MATCH(P$4,$B$4:$F$4,0)-1),OFFSET('C. PoC Adj Factor Scoring'!$E$5:$J$282,,MATCH(P$4,'C. PoC Adj Factor Scoring'!$E$3:$AH$3,0)-1),MATCH(P$2&\" Score\",'C. PoC Adj Factor Scoring'!$E$4:$J$4,0),TRUE)","v":1},{"$f":"VLOOKUP(OFFSET($B:$B,,MATCH(Q$4,$B$4:$F$4,0)-1),OFFSET('C. PoC Adj Factor Scoring'!$E$5:$J$282,,MATCH(Q$4,'C. PoC Adj Factor Scoring'!$E$3:$AH$3,0)-1),MATCH(Q$2&\" Score\",'C. PoC Adj Factor Scoring'!$E$4:$J$4,0),TRUE)","v":1},{"$f":"VLOOKUP(OFFSET($B:$B,,MATCH(R$4,$B$4:$F$4,0)-1),OFFSET('C. PoC Adj Factor Scoring'!$E$5:$J$282,,MATCH(R$4,'C. PoC Adj Factor Scoring'!$E$3:$AH$3,0)-1),MATCH(R$2&\" Score\",'C. PoC Adj Factor Scoring'!$E$4:$J$4,0),TRUE)","v":1},{"$f":"VLOOKUP(OFFSET($B:$B,,MATCH(S$4,$B$4:$F$4,0)-1),OFFSET('C. PoC Adj Factor Scoring'!$E$5:$J$282,,MATCH(S$4,'C. PoC Adj Factor Scoring'!$E$3:$AH$3,0)-1),MATCH(S$2&\" Score\",'C. PoC Adj Factor Scoring'!$E$4:$J$4,0),TRUE)","v":1},{"$f":"VLOOKUP(OFFSET($B:$B,,MATCH(T$4,$B$4:$F$4,0)-1),OFFSET('C. PoC Adj Factor Scoring'!$E$5:$J$282,,MATCH(T$4,'C. PoC Adj Factor Scoring'!$E$3:$AH$3,0)-1),MATCH(T$2&\" Score\",'C. PoC Adj Factor Scoring'!$E$4:$J$4,0),TRUE)","v":1},{"$f":"VLOOKUP(OFFSET($B:$B,,MATCH(U$4,$B$4:$F$4,0)-1),OFFSET('C. PoC Adj Factor Scoring'!$E$5:$J$282,,MATCH(U$4,'C. PoC Adj Factor Scoring'!$E$3:$AH$3,0)-1),MATCH(U$2&\" Score\",'C. PoC Adj Factor Scoring'!$E$4:$J$4,0),TRUE)","v":1},{"$f":"VLOOKUP(OFFSET($B:$B,,MATCH(V$4,$B$4:$F$4,0)-1),OFFSET('C. PoC Adj Factor Scoring'!$E$5:$J$282,,MATCH(V$4,'C. PoC Adj Factor Scoring'!$E$3:$AH$3,0)-1),MATCH(V$2&\" Score\",'C. PoC Adj Factor Scoring'!$E$4:$J$4,0),TRUE)","v":1},{"$f":"VLOOKUP(OFFSET($B:$B,,MATCH(W$4,$B$4:$F$4,0)-1),OFFSET('C. PoC Adj Factor Scoring'!$E$5:$J$282,,MATCH(W$4,'C. PoC Adj Factor Scoring'!$E$3:$AH$3,0)-1),MATCH(W$2&\" Score\",'C. PoC Adj Factor Scoring'!$E$4:$J$4,0),TRUE)","v":1},{"$f":"VLOOKUP(OFFSET($B:$B,,MATCH(X$4,$B$4:$F$4,0)-1),OFFSET('C. PoC Adj Factor Scoring'!$E$5:$J$282,,MATCH(X$4,'C. PoC Adj Factor Scoring'!$E$3:$AH$3,0)-1),MATCH(X$2&\" Score\",'C. PoC Adj Factor Scoring'!$E$4:$J$4,0),TRUE)","v":1},{"$f":"VLOOKUP(OFFSET($B:$B,,MATCH(Y$4,$B$4:$F$4,0)-1),OFFSET('C. PoC Adj Factor Scoring'!$E$5:$J$282,,MATCH(Y$4,'C. PoC Adj Factor Scoring'!$E$3:$AH$3,0)-1),MATCH(Y$2&\" Score\",'C. PoC Adj Factor Scoring'!$E$4:$J$4,0),TRUE)","v":1},{"$f":"VLOOKUP(OFFSET($B:$B,,MATCH(Z$4,$B$4:$F$4,0)-1),OFFSET('C. PoC Adj Factor Scoring'!$E$5:$J$282,,MATCH(Z$4,'C. PoC Adj Factor Scoring'!$E$3:$AH$3,0)-1),MATCH(Z$2&\" Score\",'C. PoC Adj Factor Scoring'!$E$4:$J$4,0),TRUE)","v":1},{"$f":"VLOOKUP(OFFSET($B:$B,,MATCH(AA$4,$B$4:$F$4,0)-1),OFFSET('C. PoC Adj Factor Scoring'!$E$5:$J$282,,MATCH(AA$4,'C. PoC Adj Factor Scoring'!$E$3:$AH$3,0)-1),MATCH(AA$2&\" Score\",'C. PoC Adj Factor Scoring'!$E$4:$J$4,0),TRUE)","v":3},{"$f":"VLOOKUP(OFFSET($B:$B,,MATCH(AB$4,$B$4:$F$4,0)-1),OFFSET('C. PoC Adj Factor Scoring'!$E$5:$J$282,,MATCH(AB$4,'C. PoC Adj Factor Scoring'!$E$3:$AH$3,0)-1),MATCH(AB$2&\" Score\",'C. PoC Adj Factor Scoring'!$E$4:$J$4,0),TRUE)","v":1},{"$f":"VLOOKUP(OFFSET($B:$B,,MATCH(AC$4,$B$4:$F$4,0)-1),OFFSET('C. PoC Adj Factor Scoring'!$E$5:$J$282,,MATCH(AC$4,'C. PoC Adj Factor Scoring'!$E$3:$AH$3,0)-1),MATCH(AC$2&\" Score\",'C. PoC Adj Factor Scoring'!$E$4:$J$4,0),TRUE)","v":1},{"$f":"VLOOKUP(OFFSET($B:$B,,MATCH(AD$4,$B$4:$F$4,0)-1),OFFSET('C. PoC Adj Factor Scoring'!$E$5:$J$282,,MATCH(AD$4,'C. PoC Adj Factor Scoring'!$E$3:$AH$3,0)-1),MATCH(AD$2&\" Score\",'C. PoC Adj Factor Scoring'!$E$4:$J$4,0),TRUE)","v":1},{"$f":"VLOOKUP(OFFSET($B:$B,,MATCH(AE$4,$B$4:$F$4,0)-1),OFFSET('C. PoC Adj Factor Scoring'!$E$5:$J$282,,MATCH(AE$4,'C. PoC Adj Factor Scoring'!$E$3:$AH$3,0)-1),MATCH(AE$2&\" Score\",'C. PoC Adj Factor Scoring'!$E$4:$J$4,0),TRUE)","v":1}]
[{"$f":"'A. Population Info'!A314","v":1000391949},{"$f":"'A. Population Info'!L314","v":"OIL"},{"$f":"'A. Population Info'!M314","v":0},{"$f":"'A. Population Info'!N314","v":0},{"$f":"'A. Population Info'!O314","v":0},{"$f":"'A. Population Info'!P314","v":0},{"$f":"VLOOKUP(OFFSET($B:$B,,MATCH(G$4,$B$4:$F$4,0)-1),OFFSET('C. PoC Adj Factor Scoring'!$E$5:$J$282,,MATCH(G$4,'C. PoC Adj Factor Scoring'!$E$3:$AH$3,0)-1),MATCH(G$2&\" Score\",'C. PoC Adj Factor Scoring'!$E$4:$J$4,0),TRUE)","v":4},{"$f":"VLOOKUP(OFFSET($B:$B,,MATCH(H$4,$B$4:$F$4,0)-1),OFFSET('C. PoC Adj Factor Scoring'!$E$5:$J$282,,MATCH(H$4,'C. PoC Adj Factor Scoring'!$E$3:$AH$3,0)-1),MATCH(H$2&\" Score\",'C. PoC Adj Factor Scoring'!$E$4:$J$4,0),TRUE)","v":1},{"$f":"VLOOKUP(OFFSET($B:$B,,MATCH(I$4,$B$4:$F$4,0)-1),OFFSET('C. PoC Adj Factor Scoring'!$E$5:$J$282,,MATCH(I$4,'C. PoC Adj Factor Scoring'!$E$3:$AH$3,0)-1),MATCH(I$2&\" Score\",'C. PoC Adj Factor Scoring'!$E$4:$J$4,0),TRUE)","v":1},{"$f":"VLOOKUP(OFFSET($B:$B,,MATCH(J$4,$B$4:$F$4,0)-1),OFFSET('C. PoC Adj Factor Scoring'!$E$5:$J$282,,MATCH(J$4,'C. PoC Adj Factor Scoring'!$E$3:$AH$3,0)-1),MATCH(J$2&\" Score\",'C. PoC Adj Factor Scoring'!$E$4:$J$4,0),TRUE)","v":1},{"$f":"VLOOKUP(OFFSET($B:$B,,MATCH(K$4,$B$4:$F$4,0)-1),OFFSET('C. PoC Adj Factor Scoring'!$E$5:$J$282,,MATCH(K$4,'C. PoC Adj Factor Scoring'!$E$3:$AH$3,0)-1),MATCH(K$2&\" Score\",'C. PoC Adj Factor Scoring'!$E$4:$J$4,0),TRUE)","v":1},{"$f":"VLOOKUP(OFFSET($B:$B,,MATCH(L$4,$B$4:$F$4,0)-1),OFFSET('C. PoC Adj Factor Scoring'!$E$5:$J$282,,MATCH(L$4,'C. PoC Adj Factor Scoring'!$E$3:$AH$3,0)-1),MATCH(L$2&\" Score\",'C. PoC Adj Factor Scoring'!$E$4:$J$4,0),TRUE)","v":1},{"$f":"VLOOKUP(OFFSET($B:$B,,MATCH(M$4,$B$4:$F$4,0)-1),OFFSET('C. PoC Adj Factor Scoring'!$E$5:$J$282,,MATCH(M$4,'C. PoC Adj Factor Scoring'!$E$3:$AH$3,0)-1),MATCH(M$2&\" Score\",'C. PoC Adj Factor Scoring'!$E$4:$J$4,0),TRUE)","v":1},{"$f":"VLOOKUP(OFFSET($B:$B,,MATCH(N$4,$B$4:$F$4,0)-1),OFFSET('C. PoC Adj Factor Scoring'!$E$5:$J$282,,MATCH(N$4,'C. PoC Adj Factor Scoring'!$E$3:$AH$3,0)-1),MATCH(N$2&\" Score\",'C. PoC Adj Factor Scoring'!$E$4:$J$4,0),TRUE)","v":1},{"$f":"VLOOKUP(OFFSET($B:$B,,MATCH(O$4,$B$4:$F$4,0)-1),OFFSET('C. PoC Adj Factor Scoring'!$E$5:$J$282,,MATCH(O$4,'C. PoC Adj Factor Scoring'!$E$3:$AH$3,0)-1),MATCH(O$2&\" Score\",'C. PoC Adj Factor Scoring'!$E$4:$J$4,0),TRUE)","v":1},{"$f":"VLOOKUP(OFFSET($B:$B,,MATCH(P$4,$B$4:$F$4,0)-1),OFFSET('C. PoC Adj Factor Scoring'!$E$5:$J$282,,MATCH(P$4,'C. PoC Adj Factor Scoring'!$E$3:$AH$3,0)-1),MATCH(P$2&\" Score\",'C. PoC Adj Factor Scoring'!$E$4:$J$4,0),TRUE)","v":1},{"$f":"VLOOKUP(OFFSET($B:$B,,MATCH(Q$4,$B$4:$F$4,0)-1),OFFSET('C. PoC Adj Factor Scoring'!$E$5:$J$282,,MATCH(Q$4,'C. PoC Adj Factor Scoring'!$E$3:$AH$3,0)-1),MATCH(Q$2&\" Score\",'C. PoC Adj Factor Scoring'!$E$4:$J$4,0),TRUE)","v":1},{"$f":"VLOOKUP(OFFSET($B:$B,,MATCH(R$4,$B$4:$F$4,0)-1),OFFSET('C. PoC Adj Factor Scoring'!$E$5:$J$282,,MATCH(R$4,'C. PoC Adj Factor Scoring'!$E$3:$AH$3,0)-1),MATCH(R$2&\" Score\",'C. PoC Adj Factor Scoring'!$E$4:$J$4,0),TRUE)","v":1},{"$f":"VLOOKUP(OFFSET($B:$B,,MATCH(S$4,$B$4:$F$4,0)-1),OFFSET('C. PoC Adj Factor Scoring'!$E$5:$J$282,,MATCH(S$4,'C. PoC Adj Factor Scoring'!$E$3:$AH$3,0)-1),MATCH(S$2&\" Score\",'C. PoC Adj Factor Scoring'!$E$4:$J$4,0),TRUE)","v":1},{"$f":"VLOOKUP(OFFSET($B:$B,,MATCH(T$4,$B$4:$F$4,0)-1),OFFSET('C. PoC Adj Factor Scoring'!$E$5:$J$282,,MATCH(T$4,'C. PoC Adj Factor Scoring'!$E$3:$AH$3,0)-1),MATCH(T$2&\" Score\",'C. PoC Adj Factor Scoring'!$E$4:$J$4,0),TRUE)","v":1},{"$f":"VLOOKUP(OFFSET($B:$B,,MATCH(U$4,$B$4:$F$4,0)-1),OFFSET('C. PoC Adj Factor Scoring'!$E$5:$J$282,,MATCH(U$4,'C. PoC Adj Factor Scoring'!$E$3:$AH$3,0)-1),MATCH(U$2&\" Score\",'C. PoC Adj Factor Scoring'!$E$4:$J$4,0),TRUE)","v":1},{"$f":"VLOOKUP(OFFSET($B:$B,,MATCH(V$4,$B$4:$F$4,0)-1),OFFSET('C. PoC Adj Factor Scoring'!$E$5:$J$282,,MATCH(V$4,'C. PoC Adj Factor Scoring'!$E$3:$AH$3,0)-1),MATCH(V$2&\" Score\",'C. PoC Adj Factor Scoring'!$E$4:$J$4,0),TRUE)","v":1},{"$f":"VLOOKUP(OFFSET($B:$B,,MATCH(W$4,$B$4:$F$4,0)-1),OFFSET('C. PoC Adj Factor Scoring'!$E$5:$J$282,,MATCH(W$4,'C. PoC Adj Factor Scoring'!$E$3:$AH$3,0)-1),MATCH(W$2&\" Score\",'C. PoC Adj Factor Scoring'!$E$4:$J$4,0),TRUE)","v":1},{"$f":"VLOOKUP(OFFSET($B:$B,,MATCH(X$4,$B$4:$F$4,0)-1),OFFSET('C. PoC Adj Factor Scoring'!$E$5:$J$282,,MATCH(X$4,'C. PoC Adj Factor Scoring'!$E$3:$AH$3,0)-1),MATCH(X$2&\" Score\",'C. PoC Adj Factor Scoring'!$E$4:$J$4,0),TRUE)","v":1},{"$f":"VLOOKUP(OFFSET($B:$B,,MATCH(Y$4,$B$4:$F$4,0)-1),OFFSET('C. PoC Adj Factor Scoring'!$E$5:$J$282,,MATCH(Y$4,'C. PoC Adj Factor Scoring'!$E$3:$AH$3,0)-1),MATCH(Y$2&\" Score\",'C. PoC Adj Factor Scoring'!$E$4:$J$4,0),TRUE)","v":1},{"$f":"VLOOKUP(OFFSET($B:$B,,MATCH(Z$4,$B$4:$F$4,0)-1),OFFSET('C. PoC Adj Factor Scoring'!$E$5:$J$282,,MATCH(Z$4,'C. PoC Adj Factor Scoring'!$E$3:$AH$3,0)-1),MATCH(Z$2&\" Score\",'C. PoC Adj Factor Scoring'!$E$4:$J$4,0),TRUE)","v":1},{"$f":"VLOOKUP(OFFSET($B:$B,,MATCH(AA$4,$B$4:$F$4,0)-1),OFFSET('C. PoC Adj Factor Scoring'!$E$5:$J$282,,MATCH(AA$4,'C. PoC Adj Factor Scoring'!$E$3:$AH$3,0)-1),MATCH(AA$2&\" Score\",'C. PoC Adj Factor Scoring'!$E$4:$J$4,0),TRUE)","v":3},{"$f":"VLOOKUP(OFFSET($B:$B,,MATCH(AB$4,$B$4:$F$4,0)-1),OFFSET('C. PoC Adj Factor Scoring'!$E$5:$J$282,,MATCH(AB$4,'C. PoC Adj Factor Scoring'!$E$3:$AH$3,0)-1),MATCH(AB$2&\" Score\",'C. PoC Adj Factor Scoring'!$E$4:$J$4,0),TRUE)","v":1},{"$f":"VLOOKUP(OFFSET($B:$B,,MATCH(AC$4,$B$4:$F$4,0)-1),OFFSET('C. PoC Adj Factor Scoring'!$E$5:$J$282,,MATCH(AC$4,'C. PoC Adj Factor Scoring'!$E$3:$AH$3,0)-1),MATCH(AC$2&\" Score\",'C. PoC Adj Factor Scoring'!$E$4:$J$4,0),TRUE)","v":1},{"$f":"VLOOKUP(OFFSET($B:$B,,MATCH(AD$4,$B$4:$F$4,0)-1),OFFSET('C. PoC Adj Factor Scoring'!$E$5:$J$282,,MATCH(AD$4,'C. PoC Adj Factor Scoring'!$E$3:$AH$3,0)-1),MATCH(AD$2&\" Score\",'C. PoC Adj Factor Scoring'!$E$4:$J$4,0),TRUE)","v":1},{"$f":"VLOOKUP(OFFSET($B:$B,,MATCH(AE$4,$B$4:$F$4,0)-1),OFFSET('C. PoC Adj Factor Scoring'!$E$5:$J$282,,MATCH(AE$4,'C. PoC Adj Factor Scoring'!$E$3:$AH$3,0)-1),MATCH(AE$2&\" Score\",'C. PoC Adj Factor Scoring'!$E$4:$J$4,0),TRUE)","v":1}]
[{"$f":"'A. Population Info'!A315","v":1000395044},{"$f":"'A. Population Info'!L315","v":"OIL"},{"$f":"'A. Population Info'!M315","v":0},{"$f":"'A. Population Info'!N315","v":0},{"$f":"'A. Population Info'!O315","v":0},{"$f":"'A. Population Info'!P315","v":0},{"$f":"VLOOKUP(OFFSET($B:$B,,MATCH(G$4,$B$4:$F$4,0)-1),OFFSET('C. PoC Adj Factor Scoring'!$E$5:$J$282,,MATCH(G$4,'C. PoC Adj Factor Scoring'!$E$3:$AH$3,0)-1),MATCH(G$2&\" Score\",'C. PoC Adj Factor Scoring'!$E$4:$J$4,0),TRUE)","v":4},{"$f":"VLOOKUP(OFFSET($B:$B,,MATCH(H$4,$B$4:$F$4,0)-1),OFFSET('C. PoC Adj Factor Scoring'!$E$5:$J$282,,MATCH(H$4,'C. PoC Adj Factor Scoring'!$E$3:$AH$3,0)-1),MATCH(H$2&\" Score\",'C. PoC Adj Factor Scoring'!$E$4:$J$4,0),TRUE)","v":1},{"$f":"VLOOKUP(OFFSET($B:$B,,MATCH(I$4,$B$4:$F$4,0)-1),OFFSET('C. PoC Adj Factor Scoring'!$E$5:$J$282,,MATCH(I$4,'C. PoC Adj Factor Scoring'!$E$3:$AH$3,0)-1),MATCH(I$2&\" Score\",'C. PoC Adj Factor Scoring'!$E$4:$J$4,0),TRUE)","v":1},{"$f":"VLOOKUP(OFFSET($B:$B,,MATCH(J$4,$B$4:$F$4,0)-1),OFFSET('C. PoC Adj Factor Scoring'!$E$5:$J$282,,MATCH(J$4,'C. PoC Adj Factor Scoring'!$E$3:$AH$3,0)-1),MATCH(J$2&\" Score\",'C. PoC Adj Factor Scoring'!$E$4:$J$4,0),TRUE)","v":1},{"$f":"VLOOKUP(OFFSET($B:$B,,MATCH(K$4,$B$4:$F$4,0)-1),OFFSET('C. PoC Adj Factor Scoring'!$E$5:$J$282,,MATCH(K$4,'C. PoC Adj Factor Scoring'!$E$3:$AH$3,0)-1),MATCH(K$2&\" Score\",'C. PoC Adj Factor Scoring'!$E$4:$J$4,0),TRUE)","v":1},{"$f":"VLOOKUP(OFFSET($B:$B,,MATCH(L$4,$B$4:$F$4,0)-1),OFFSET('C. PoC Adj Factor Scoring'!$E$5:$J$282,,MATCH(L$4,'C. PoC Adj Factor Scoring'!$E$3:$AH$3,0)-1),MATCH(L$2&\" Score\",'C. PoC Adj Factor Scoring'!$E$4:$J$4,0),TRUE)","v":1},{"$f":"VLOOKUP(OFFSET($B:$B,,MATCH(M$4,$B$4:$F$4,0)-1),OFFSET('C. PoC Adj Factor Scoring'!$E$5:$J$282,,MATCH(M$4,'C. PoC Adj Factor Scoring'!$E$3:$AH$3,0)-1),MATCH(M$2&\" Score\",'C. PoC Adj Factor Scoring'!$E$4:$J$4,0),TRUE)","v":1},{"$f":"VLOOKUP(OFFSET($B:$B,,MATCH(N$4,$B$4:$F$4,0)-1),OFFSET('C. PoC Adj Factor Scoring'!$E$5:$J$282,,MATCH(N$4,'C. PoC Adj Factor Scoring'!$E$3:$AH$3,0)-1),MATCH(N$2&\" Score\",'C. PoC Adj Factor Scoring'!$E$4:$J$4,0),TRUE)","v":1},{"$f":"VLOOKUP(OFFSET($B:$B,,MATCH(O$4,$B$4:$F$4,0)-1),OFFSET('C. PoC Adj Factor Scoring'!$E$5:$J$282,,MATCH(O$4,'C. PoC Adj Factor Scoring'!$E$3:$AH$3,0)-1),MATCH(O$2&\" Score\",'C. PoC Adj Factor Scoring'!$E$4:$J$4,0),TRUE)","v":1},{"$f":"VLOOKUP(OFFSET($B:$B,,MATCH(P$4,$B$4:$F$4,0)-1),OFFSET('C. PoC Adj Factor Scoring'!$E$5:$J$282,,MATCH(P$4,'C. PoC Adj Factor Scoring'!$E$3:$AH$3,0)-1),MATCH(P$2&\" Score\",'C. PoC Adj Factor Scoring'!$E$4:$J$4,0),TRUE)","v":1},{"$f":"VLOOKUP(OFFSET($B:$B,,MATCH(Q$4,$B$4:$F$4,0)-1),OFFSET('C. PoC Adj Factor Scoring'!$E$5:$J$282,,MATCH(Q$4,'C. PoC Adj Factor Scoring'!$E$3:$AH$3,0)-1),MATCH(Q$2&\" Score\",'C. PoC Adj Factor Scoring'!$E$4:$J$4,0),TRUE)","v":1},{"$f":"VLOOKUP(OFFSET($B:$B,,MATCH(R$4,$B$4:$F$4,0)-1),OFFSET('C. PoC Adj Factor Scoring'!$E$5:$J$282,,MATCH(R$4,'C. PoC Adj Factor Scoring'!$E$3:$AH$3,0)-1),MATCH(R$2&\" Score\",'C. PoC Adj Factor Scoring'!$E$4:$J$4,0),TRUE)","v":1},{"$f":"VLOOKUP(OFFSET($B:$B,,MATCH(S$4,$B$4:$F$4,0)-1),OFFSET('C. PoC Adj Factor Scoring'!$E$5:$J$282,,MATCH(S$4,'C. PoC Adj Factor Scoring'!$E$3:$AH$3,0)-1),MATCH(S$2&\" Score\",'C. PoC Adj Factor Scoring'!$E$4:$J$4,0),TRUE)","v":1},{"$f":"VLOOKUP(OFFSET($B:$B,,MATCH(T$4,$B$4:$F$4,0)-1),OFFSET('C. PoC Adj Factor Scoring'!$E$5:$J$282,,MATCH(T$4,'C. PoC Adj Factor Scoring'!$E$3:$AH$3,0)-1),MATCH(T$2&\" Score\",'C. PoC Adj Factor Scoring'!$E$4:$J$4,0),TRUE)","v":1},{"$f":"VLOOKUP(OFFSET($B:$B,,MATCH(U$4,$B$4:$F$4,0)-1),OFFSET('C. PoC Adj Factor Scoring'!$E$5:$J$282,,MATCH(U$4,'C. PoC Adj Factor Scoring'!$E$3:$AH$3,0)-1),MATCH(U$2&\" Score\",'C. PoC Adj Factor Scoring'!$E$4:$J$4,0),TRUE)","v":1},{"$f":"VLOOKUP(OFFSET($B:$B,,MATCH(V$4,$B$4:$F$4,0)-1),OFFSET('C. PoC Adj Factor Scoring'!$E$5:$J$282,,MATCH(V$4,'C. PoC Adj Factor Scoring'!$E$3:$AH$3,0)-1),MATCH(V$2&\" Score\",'C. PoC Adj Factor Scoring'!$E$4:$J$4,0),TRUE)","v":1},{"$f":"VLOOKUP(OFFSET($B:$B,,MATCH(W$4,$B$4:$F$4,0)-1),OFFSET('C. PoC Adj Factor Scoring'!$E$5:$J$282,,MATCH(W$4,'C. PoC Adj Factor Scoring'!$E$3:$AH$3,0)-1),MATCH(W$2&\" Score\",'C. PoC Adj Factor Scoring'!$E$4:$J$4,0),TRUE)","v":1},{"$f":"VLOOKUP(OFFSET($B:$B,,MATCH(X$4,$B$4:$F$4,0)-1),OFFSET('C. PoC Adj Factor Scoring'!$E$5:$J$282,,MATCH(X$4,'C. PoC Adj Factor Scoring'!$E$3:$AH$3,0)-1),MATCH(X$2&\" Score\",'C. PoC Adj Factor Scoring'!$E$4:$J$4,0),TRUE)","v":1},{"$f":"VLOOKUP(OFFSET($B:$B,,MATCH(Y$4,$B$4:$F$4,0)-1),OFFSET('C. PoC Adj Factor Scoring'!$E$5:$J$282,,MATCH(Y$4,'C. PoC Adj Factor Scoring'!$E$3:$AH$3,0)-1),MATCH(Y$2&\" Score\",'C. PoC Adj Factor Scoring'!$E$4:$J$4,0),TRUE)","v":1},{"$f":"VLOOKUP(OFFSET($B:$B,,MATCH(Z$4,$B$4:$F$4,0)-1),OFFSET('C. PoC Adj Factor Scoring'!$E$5:$J$282,,MATCH(Z$4,'C. PoC Adj Factor Scoring'!$E$3:$AH$3,0)-1),MATCH(Z$2&\" Score\",'C. PoC Adj Factor Scoring'!$E$4:$J$4,0),TRUE)","v":1},{"$f":"VLOOKUP(OFFSET($B:$B,,MATCH(AA$4,$B$4:$F$4,0)-1),OFFSET('C. PoC Adj Factor Scoring'!$E$5:$J$282,,MATCH(AA$4,'C. PoC Adj Factor Scoring'!$E$3:$AH$3,0)-1),MATCH(AA$2&\" Score\",'C. PoC Adj Factor Scoring'!$E$4:$J$4,0),TRUE)","v":3},{"$f":"VLOOKUP(OFFSET($B:$B,,MATCH(AB$4,$B$4:$F$4,0)-1),OFFSET('C. PoC Adj Factor Scoring'!$E$5:$J$282,,MATCH(AB$4,'C. PoC Adj Factor Scoring'!$E$3:$AH$3,0)-1),MATCH(AB$2&\" Score\",'C. PoC Adj Factor Scoring'!$E$4:$J$4,0),TRUE)","v":1},{"$f":"VLOOKUP(OFFSET($B:$B,,MATCH(AC$4,$B$4:$F$4,0)-1),OFFSET('C. PoC Adj Factor Scoring'!$E$5:$J$282,,MATCH(AC$4,'C. PoC Adj Factor Scoring'!$E$3:$AH$3,0)-1),MATCH(AC$2&\" Score\",'C. PoC Adj Factor Scoring'!$E$4:$J$4,0),TRUE)","v":1},{"$f":"VLOOKUP(OFFSET($B:$B,,MATCH(AD$4,$B$4:$F$4,0)-1),OFFSET('C. PoC Adj Factor Scoring'!$E$5:$J$282,,MATCH(AD$4,'C. PoC Adj Factor Scoring'!$E$3:$AH$3,0)-1),MATCH(AD$2&\" Score\",'C. PoC Adj Factor Scoring'!$E$4:$J$4,0),TRUE)","v":1},{"$f":"VLOOKUP(OFFSET($B:$B,,MATCH(AE$4,$B$4:$F$4,0)-1),OFFSET('C. PoC Adj Factor Scoring'!$E$5:$J$282,,MATCH(AE$4,'C. PoC Adj Factor Scoring'!$E$3:$AH$3,0)-1),MATCH(AE$2&\" Score\",'C. PoC Adj Factor Scoring'!$E$4:$J$4,0),TRUE)","v":1}]
[{"$f":"'A. Population Info'!A316","v":1000395120},{"$f":"'A. Population Info'!L316","v":"OIL"},{"$f":"'A. Population Info'!M316","v":0},{"$f":"'A. Population Info'!N316","v":0},{"$f":"'A. Population Info'!O316","v":0},{"$f":"'A. Population Info'!P316","v":0},{"$f":"VLOOKUP(OFFSET($B:$B,,MATCH(G$4,$B$4:$F$4,0)-1),OFFSET('C. PoC Adj Factor Scoring'!$E$5:$J$282,,MATCH(G$4,'C. PoC Adj Factor Scoring'!$E$3:$AH$3,0)-1),MATCH(G$2&\" Score\",'C. PoC Adj Factor Scoring'!$E$4:$J$4,0),TRUE)","v":4},{"$f":"VLOOKUP(OFFSET($B:$B,,MATCH(H$4,$B$4:$F$4,0)-1),OFFSET('C. PoC Adj Factor Scoring'!$E$5:$J$282,,MATCH(H$4,'C. PoC Adj Factor Scoring'!$E$3:$AH$3,0)-1),MATCH(H$2&\" Score\",'C. PoC Adj Factor Scoring'!$E$4:$J$4,0),TRUE)","v":1},{"$f":"VLOOKUP(OFFSET($B:$B,,MATCH(I$4,$B$4:$F$4,0)-1),OFFSET('C. PoC Adj Factor Scoring'!$E$5:$J$282,,MATCH(I$4,'C. PoC Adj Factor Scoring'!$E$3:$AH$3,0)-1),MATCH(I$2&\" Score\",'C. PoC Adj Factor Scoring'!$E$4:$J$4,0),TRUE)","v":1},{"$f":"VLOOKUP(OFFSET($B:$B,,MATCH(J$4,$B$4:$F$4,0)-1),OFFSET('C. PoC Adj Factor Scoring'!$E$5:$J$282,,MATCH(J$4,'C. PoC Adj Factor Scoring'!$E$3:$AH$3,0)-1),MATCH(J$2&\" Score\",'C. PoC Adj Factor Scoring'!$E$4:$J$4,0),TRUE)","v":1},{"$f":"VLOOKUP(OFFSET($B:$B,,MATCH(K$4,$B$4:$F$4,0)-1),OFFSET('C. PoC Adj Factor Scoring'!$E$5:$J$282,,MATCH(K$4,'C. PoC Adj Factor Scoring'!$E$3:$AH$3,0)-1),MATCH(K$2&\" Score\",'C. PoC Adj Factor Scoring'!$E$4:$J$4,0),TRUE)","v":1},{"$f":"VLOOKUP(OFFSET($B:$B,,MATCH(L$4,$B$4:$F$4,0)-1),OFFSET('C. PoC Adj Factor Scoring'!$E$5:$J$282,,MATCH(L$4,'C. PoC Adj Factor Scoring'!$E$3:$AH$3,0)-1),MATCH(L$2&\" Score\",'C. PoC Adj Factor Scoring'!$E$4:$J$4,0),TRUE)","v":1},{"$f":"VLOOKUP(OFFSET($B:$B,,MATCH(M$4,$B$4:$F$4,0)-1),OFFSET('C. PoC Adj Factor Scoring'!$E$5:$J$282,,MATCH(M$4,'C. PoC Adj Factor Scoring'!$E$3:$AH$3,0)-1),MATCH(M$2&\" Score\",'C. PoC Adj Factor Scoring'!$E$4:$J$4,0),TRUE)","v":1},{"$f":"VLOOKUP(OFFSET($B:$B,,MATCH(N$4,$B$4:$F$4,0)-1),OFFSET('C. PoC Adj Factor Scoring'!$E$5:$J$282,,MATCH(N$4,'C. PoC Adj Factor Scoring'!$E$3:$AH$3,0)-1),MATCH(N$2&\" Score\",'C. PoC Adj Factor Scoring'!$E$4:$J$4,0),TRUE)","v":1},{"$f":"VLOOKUP(OFFSET($B:$B,,MATCH(O$4,$B$4:$F$4,0)-1),OFFSET('C. PoC Adj Factor Scoring'!$E$5:$J$282,,MATCH(O$4,'C. PoC Adj Factor Scoring'!$E$3:$AH$3,0)-1),MATCH(O$2&\" Score\",'C. PoC Adj Factor Scoring'!$E$4:$J$4,0),TRUE)","v":1},{"$f":"VLOOKUP(OFFSET($B:$B,,MATCH(P$4,$B$4:$F$4,0)-1),OFFSET('C. PoC Adj Factor Scoring'!$E$5:$J$282,,MATCH(P$4,'C. PoC Adj Factor Scoring'!$E$3:$AH$3,0)-1),MATCH(P$2&\" Score\",'C. PoC Adj Factor Scoring'!$E$4:$J$4,0),TRUE)","v":1},{"$f":"VLOOKUP(OFFSET($B:$B,,MATCH(Q$4,$B$4:$F$4,0)-1),OFFSET('C. PoC Adj Factor Scoring'!$E$5:$J$282,,MATCH(Q$4,'C. PoC Adj Factor Scoring'!$E$3:$AH$3,0)-1),MATCH(Q$2&\" Score\",'C. PoC Adj Factor Scoring'!$E$4:$J$4,0),TRUE)","v":1},{"$f":"VLOOKUP(OFFSET($B:$B,,MATCH(R$4,$B$4:$F$4,0)-1),OFFSET('C. PoC Adj Factor Scoring'!$E$5:$J$282,,MATCH(R$4,'C. PoC Adj Factor Scoring'!$E$3:$AH$3,0)-1),MATCH(R$2&\" Score\",'C. PoC Adj Factor Scoring'!$E$4:$J$4,0),TRUE)","v":1},{"$f":"VLOOKUP(OFFSET($B:$B,,MATCH(S$4,$B$4:$F$4,0)-1),OFFSET('C. PoC Adj Factor Scoring'!$E$5:$J$282,,MATCH(S$4,'C. PoC Adj Factor Scoring'!$E$3:$AH$3,0)-1),MATCH(S$2&\" Score\",'C. PoC Adj Factor Scoring'!$E$4:$J$4,0),TRUE)","v":1},{"$f":"VLOOKUP(OFFSET($B:$B,,MATCH(T$4,$B$4:$F$4,0)-1),OFFSET('C. PoC Adj Factor Scoring'!$E$5:$J$282,,MATCH(T$4,'C. PoC Adj Factor Scoring'!$E$3:$AH$3,0)-1),MATCH(T$2&\" Score\",'C. PoC Adj Factor Scoring'!$E$4:$J$4,0),TRUE)","v":1},{"$f":"VLOOKUP(OFFSET($B:$B,,MATCH(U$4,$B$4:$F$4,0)-1),OFFSET('C. PoC Adj Factor Scoring'!$E$5:$J$282,,MATCH(U$4,'C. PoC Adj Factor Scoring'!$E$3:$AH$3,0)-1),MATCH(U$2&\" Score\",'C. PoC Adj Factor Scoring'!$E$4:$J$4,0),TRUE)","v":1},{"$f":"VLOOKUP(OFFSET($B:$B,,MATCH(V$4,$B$4:$F$4,0)-1),OFFSET('C. PoC Adj Factor Scoring'!$E$5:$J$282,,MATCH(V$4,'C. PoC Adj Factor Scoring'!$E$3:$AH$3,0)-1),MATCH(V$2&\" Score\",'C. PoC Adj Factor Scoring'!$E$4:$J$4,0),TRUE)","v":1},{"$f":"VLOOKUP(OFFSET($B:$B,,MATCH(W$4,$B$4:$F$4,0)-1),OFFSET('C. PoC Adj Factor Scoring'!$E$5:$J$282,,MATCH(W$4,'C. PoC Adj Factor Scoring'!$E$3:$AH$3,0)-1),MATCH(W$2&\" Score\",'C. PoC Adj Factor Scoring'!$E$4:$J$4,0),TRUE)","v":1},{"$f":"VLOOKUP(OFFSET($B:$B,,MATCH(X$4,$B$4:$F$4,0)-1),OFFSET('C. PoC Adj Factor Scoring'!$E$5:$J$282,,MATCH(X$4,'C. PoC Adj Factor Scoring'!$E$3:$AH$3,0)-1),MATCH(X$2&\" Score\",'C. PoC Adj Factor Scoring'!$E$4:$J$4,0),TRUE)","v":1},{"$f":"VLOOKUP(OFFSET($B:$B,,MATCH(Y$4,$B$4:$F$4,0)-1),OFFSET('C. PoC Adj Factor Scoring'!$E$5:$J$282,,MATCH(Y$4,'C. PoC Adj Factor Scoring'!$E$3:$AH$3,0)-1),MATCH(Y$2&\" Score\",'C. PoC Adj Factor Scoring'!$E$4:$J$4,0),TRUE)","v":1},{"$f":"VLOOKUP(OFFSET($B:$B,,MATCH(Z$4,$B$4:$F$4,0)-1),OFFSET('C. PoC Adj Factor Scoring'!$E$5:$J$282,,MATCH(Z$4,'C. PoC Adj Factor Scoring'!$E$3:$AH$3,0)-1),MATCH(Z$2&\" Score\",'C. PoC Adj Factor Scoring'!$E$4:$J$4,0),TRUE)","v":1},{"$f":"VLOOKUP(OFFSET($B:$B,,MATCH(AA$4,$B$4:$F$4,0)-1),OFFSET('C. PoC Adj Factor Scoring'!$E$5:$J$282,,MATCH(AA$4,'C. PoC Adj Factor Scoring'!$E$3:$AH$3,0)-1),MATCH(AA$2&\" Score\",'C. PoC Adj Factor Scoring'!$E$4:$J$4,0),TRUE)","v":3},{"$f":"VLOOKUP(OFFSET($B:$B,,MATCH(AB$4,$B$4:$F$4,0)-1),OFFSET('C. PoC Adj Factor Scoring'!$E$5:$J$282,,MATCH(AB$4,'C. PoC Adj Factor Scoring'!$E$3:$AH$3,0)-1),MATCH(AB$2&\" Score\",'C. PoC Adj Factor Scoring'!$E$4:$J$4,0),TRUE)","v":1},{"$f":"VLOOKUP(OFFSET($B:$B,,MATCH(AC$4,$B$4:$F$4,0)-1),OFFSET('C. PoC Adj Factor Scoring'!$E$5:$J$282,,MATCH(AC$4,'C. PoC Adj Factor Scoring'!$E$3:$AH$3,0)-1),MATCH(AC$2&\" Score\",'C. PoC Adj Factor Scoring'!$E$4:$J$4,0),TRUE)","v":1},{"$f":"VLOOKUP(OFFSET($B:$B,,MATCH(AD$4,$B$4:$F$4,0)-1),OFFSET('C. PoC Adj Factor Scoring'!$E$5:$J$282,,MATCH(AD$4,'C. PoC Adj Factor Scoring'!$E$3:$AH$3,0)-1),MATCH(AD$2&\" Score\",'C. PoC Adj Factor Scoring'!$E$4:$J$4,0),TRUE)","v":1},{"$f":"VLOOKUP(OFFSET($B:$B,,MATCH(AE$4,$B$4:$F$4,0)-1),OFFSET('C. PoC Adj Factor Scoring'!$E$5:$J$282,,MATCH(AE$4,'C. PoC Adj Factor Scoring'!$E$3:$AH$3,0)-1),MATCH(AE$2&\" Score\",'C. PoC Adj Factor Scoring'!$E$4:$J$4,0),TRUE)","v":1}]
[{"$f":"'A. Population Info'!A317","v":1000395215},{"$f":"'A. Population Info'!L317","v":"OIL"},{"$f":"'A. Population Info'!M317","v":0},{"$f":"'A. Population Info'!N317","v":0},{"$f":"'A. Population Info'!O317","v":0},{"$f":"'A. Population Info'!P317","v":0},{"$f":"VLOOKUP(OFFSET($B:$B,,MATCH(G$4,$B$4:$F$4,0)-1),OFFSET('C. PoC Adj Factor Scoring'!$E$5:$J$282,,MATCH(G$4,'C. PoC Adj Factor Scoring'!$E$3:$AH$3,0)-1),MATCH(G$2&\" Score\",'C. PoC Adj Factor Scoring'!$E$4:$J$4,0),TRUE)","v":4},{"$f":"VLOOKUP(OFFSET($B:$B,,MATCH(H$4,$B$4:$F$4,0)-1),OFFSET('C. PoC Adj Factor Scoring'!$E$5:$J$282,,MATCH(H$4,'C. PoC Adj Factor Scoring'!$E$3:$AH$3,0)-1),MATCH(H$2&\" Score\",'C. PoC Adj Factor Scoring'!$E$4:$J$4,0),TRUE)","v":1},{"$f":"VLOOKUP(OFFSET($B:$B,,MATCH(I$4,$B$4:$F$4,0)-1),OFFSET('C. PoC Adj Factor Scoring'!$E$5:$J$282,,MATCH(I$4,'C. PoC Adj Factor Scoring'!$E$3:$AH$3,0)-1),MATCH(I$2&\" Score\",'C. PoC Adj Factor Scoring'!$E$4:$J$4,0),TRUE)","v":1},{"$f":"VLOOKUP(OFFSET($B:$B,,MATCH(J$4,$B$4:$F$4,0)-1),OFFSET('C. PoC Adj Factor Scoring'!$E$5:$J$282,,MATCH(J$4,'C. PoC Adj Factor Scoring'!$E$3:$AH$3,0)-1),MATCH(J$2&\" Score\",'C. PoC Adj Factor Scoring'!$E$4:$J$4,0),TRUE)","v":1},{"$f":"VLOOKUP(OFFSET($B:$B,,MATCH(K$4,$B$4:$F$4,0)-1),OFFSET('C. PoC Adj Factor Scoring'!$E$5:$J$282,,MATCH(K$4,'C. PoC Adj Factor Scoring'!$E$3:$AH$3,0)-1),MATCH(K$2&\" Score\",'C. PoC Adj Factor Scoring'!$E$4:$J$4,0),TRUE)","v":1},{"$f":"VLOOKUP(OFFSET($B:$B,,MATCH(L$4,$B$4:$F$4,0)-1),OFFSET('C. PoC Adj Factor Scoring'!$E$5:$J$282,,MATCH(L$4,'C. PoC Adj Factor Scoring'!$E$3:$AH$3,0)-1),MATCH(L$2&\" Score\",'C. PoC Adj Factor Scoring'!$E$4:$J$4,0),TRUE)","v":1},{"$f":"VLOOKUP(OFFSET($B:$B,,MATCH(M$4,$B$4:$F$4,0)-1),OFFSET('C. PoC Adj Factor Scoring'!$E$5:$J$282,,MATCH(M$4,'C. PoC Adj Factor Scoring'!$E$3:$AH$3,0)-1),MATCH(M$2&\" Score\",'C. PoC Adj Factor Scoring'!$E$4:$J$4,0),TRUE)","v":1},{"$f":"VLOOKUP(OFFSET($B:$B,,MATCH(N$4,$B$4:$F$4,0)-1),OFFSET('C. PoC Adj Factor Scoring'!$E$5:$J$282,,MATCH(N$4,'C. PoC Adj Factor Scoring'!$E$3:$AH$3,0)-1),MATCH(N$2&\" Score\",'C. PoC Adj Factor Scoring'!$E$4:$J$4,0),TRUE)","v":1},{"$f":"VLOOKUP(OFFSET($B:$B,,MATCH(O$4,$B$4:$F$4,0)-1),OFFSET('C. PoC Adj Factor Scoring'!$E$5:$J$282,,MATCH(O$4,'C. PoC Adj Factor Scoring'!$E$3:$AH$3,0)-1),MATCH(O$2&\" Score\",'C. PoC Adj Factor Scoring'!$E$4:$J$4,0),TRUE)","v":1},{"$f":"VLOOKUP(OFFSET($B:$B,,MATCH(P$4,$B$4:$F$4,0)-1),OFFSET('C. PoC Adj Factor Scoring'!$E$5:$J$282,,MATCH(P$4,'C. PoC Adj Factor Scoring'!$E$3:$AH$3,0)-1),MATCH(P$2&\" Score\",'C. PoC Adj Factor Scoring'!$E$4:$J$4,0),TRUE)","v":1},{"$f":"VLOOKUP(OFFSET($B:$B,,MATCH(Q$4,$B$4:$F$4,0)-1),OFFSET('C. PoC Adj Factor Scoring'!$E$5:$J$282,,MATCH(Q$4,'C. PoC Adj Factor Scoring'!$E$3:$AH$3,0)-1),MATCH(Q$2&\" Score\",'C. PoC Adj Factor Scoring'!$E$4:$J$4,0),TRUE)","v":1},{"$f":"VLOOKUP(OFFSET($B:$B,,MATCH(R$4,$B$4:$F$4,0)-1),OFFSET('C. PoC Adj Factor Scoring'!$E$5:$J$282,,MATCH(R$4,'C. PoC Adj Factor Scoring'!$E$3:$AH$3,0)-1),MATCH(R$2&\" Score\",'C. PoC Adj Factor Scoring'!$E$4:$J$4,0),TRUE)","v":1},{"$f":"VLOOKUP(OFFSET($B:$B,,MATCH(S$4,$B$4:$F$4,0)-1),OFFSET('C. PoC Adj Factor Scoring'!$E$5:$J$282,,MATCH(S$4,'C. PoC Adj Factor Scoring'!$E$3:$AH$3,0)-1),MATCH(S$2&\" Score\",'C. PoC Adj Factor Scoring'!$E$4:$J$4,0),TRUE)","v":1},{"$f":"VLOOKUP(OFFSET($B:$B,,MATCH(T$4,$B$4:$F$4,0)-1),OFFSET('C. PoC Adj Factor Scoring'!$E$5:$J$282,,MATCH(T$4,'C. PoC Adj Factor Scoring'!$E$3:$AH$3,0)-1),MATCH(T$2&\" Score\",'C. PoC Adj Factor Scoring'!$E$4:$J$4,0),TRUE)","v":1},{"$f":"VLOOKUP(OFFSET($B:$B,,MATCH(U$4,$B$4:$F$4,0)-1),OFFSET('C. PoC Adj Factor Scoring'!$E$5:$J$282,,MATCH(U$4,'C. PoC Adj Factor Scoring'!$E$3:$AH$3,0)-1),MATCH(U$2&\" Score\",'C. PoC Adj Factor Scoring'!$E$4:$J$4,0),TRUE)","v":1},{"$f":"VLOOKUP(OFFSET($B:$B,,MATCH(V$4,$B$4:$F$4,0)-1),OFFSET('C. PoC Adj Factor Scoring'!$E$5:$J$282,,MATCH(V$4,'C. PoC Adj Factor Scoring'!$E$3:$AH$3,0)-1),MATCH(V$2&\" Score\",'C. PoC Adj Factor Scoring'!$E$4:$J$4,0),TRUE)","v":1},{"$f":"VLOOKUP(OFFSET($B:$B,,MATCH(W$4,$B$4:$F$4,0)-1),OFFSET('C. PoC Adj Factor Scoring'!$E$5:$J$282,,MATCH(W$4,'C. PoC Adj Factor Scoring'!$E$3:$AH$3,0)-1),MATCH(W$2&\" Score\",'C. PoC Adj Factor Scoring'!$E$4:$J$4,0),TRUE)","v":1},{"$f":"VLOOKUP(OFFSET($B:$B,,MATCH(X$4,$B$4:$F$4,0)-1),OFFSET('C. PoC Adj Factor Scoring'!$E$5:$J$282,,MATCH(X$4,'C. PoC Adj Factor Scoring'!$E$3:$AH$3,0)-1),MATCH(X$2&\" Score\",'C. PoC Adj Factor Scoring'!$E$4:$J$4,0),TRUE)","v":1},{"$f":"VLOOKUP(OFFSET($B:$B,,MATCH(Y$4,$B$4:$F$4,0)-1),OFFSET('C. PoC Adj Factor Scoring'!$E$5:$J$282,,MATCH(Y$4,'C. PoC Adj Factor Scoring'!$E$3:$AH$3,0)-1),MATCH(Y$2&\" Score\",'C. PoC Adj Factor Scoring'!$E$4:$J$4,0),TRUE)","v":1},{"$f":"VLOOKUP(OFFSET($B:$B,,MATCH(Z$4,$B$4:$F$4,0)-1),OFFSET('C. PoC Adj Factor Scoring'!$E$5:$J$282,,MATCH(Z$4,'C. PoC Adj Factor Scoring'!$E$3:$AH$3,0)-1),MATCH(Z$2&\" Score\",'C. PoC Adj Factor Scoring'!$E$4:$J$4,0),TRUE)","v":1},{"$f":"VLOOKUP(OFFSET($B:$B,,MATCH(AA$4,$B$4:$F$4,0)-1),OFFSET('C. PoC Adj Factor Scoring'!$E$5:$J$282,,MATCH(AA$4,'C. PoC Adj Factor Scoring'!$E$3:$AH$3,0)-1),MATCH(AA$2&\" Score\",'C. PoC Adj Factor Scoring'!$E$4:$J$4,0),TRUE)","v":3},{"$f":"VLOOKUP(OFFSET($B:$B,,MATCH(AB$4,$B$4:$F$4,0)-1),OFFSET('C. PoC Adj Factor Scoring'!$E$5:$J$282,,MATCH(AB$4,'C. PoC Adj Factor Scoring'!$E$3:$AH$3,0)-1),MATCH(AB$2&\" Score\",'C. PoC Adj Factor Scoring'!$E$4:$J$4,0),TRUE)","v":1},{"$f":"VLOOKUP(OFFSET($B:$B,,MATCH(AC$4,$B$4:$F$4,0)-1),OFFSET('C. PoC Adj Factor Scoring'!$E$5:$J$282,,MATCH(AC$4,'C. PoC Adj Factor Scoring'!$E$3:$AH$3,0)-1),MATCH(AC$2&\" Score\",'C. PoC Adj Factor Scoring'!$E$4:$J$4,0),TRUE)","v":1},{"$f":"VLOOKUP(OFFSET($B:$B,,MATCH(AD$4,$B$4:$F$4,0)-1),OFFSET('C. PoC Adj Factor Scoring'!$E$5:$J$282,,MATCH(AD$4,'C. PoC Adj Factor Scoring'!$E$3:$AH$3,0)-1),MATCH(AD$2&\" Score\",'C. PoC Adj Factor Scoring'!$E$4:$J$4,0),TRUE)","v":1},{"$f":"VLOOKUP(OFFSET($B:$B,,MATCH(AE$4,$B$4:$F$4,0)-1),OFFSET('C. PoC Adj Factor Scoring'!$E$5:$J$282,,MATCH(AE$4,'C. PoC Adj Factor Scoring'!$E$3:$AH$3,0)-1),MATCH(AE$2&\" Score\",'C. PoC Adj Factor Scoring'!$E$4:$J$4,0),TRUE)","v":1}]
[{"$f":"'A. Population Info'!A318","v":1000395235},{"$f":"'A. Population Info'!L318","v":"OIL"},{"$f":"'A. Population Info'!M318","v":0},{"$f":"'A. Population Info'!N318","v":0},{"$f":"'A. Population Info'!O318","v":0},{"$f":"'A. Population Info'!P318","v":0},{"$f":"VLOOKUP(OFFSET($B:$B,,MATCH(G$4,$B$4:$F$4,0)-1),OFFSET('C. PoC Adj Factor Scoring'!$E$5:$J$282,,MATCH(G$4,'C. PoC Adj Factor Scoring'!$E$3:$AH$3,0)-1),MATCH(G$2&\" Score\",'C. PoC Adj Factor Scoring'!$E$4:$J$4,0),TRUE)","v":4},{"$f":"VLOOKUP(OFFSET($B:$B,,MATCH(H$4,$B$4:$F$4,0)-1),OFFSET('C. PoC Adj Factor Scoring'!$E$5:$J$282,,MATCH(H$4,'C. PoC Adj Factor Scoring'!$E$3:$AH$3,0)-1),MATCH(H$2&\" Score\",'C. PoC Adj Factor Scoring'!$E$4:$J$4,0),TRUE)","v":1},{"$f":"VLOOKUP(OFFSET($B:$B,,MATCH(I$4,$B$4:$F$4,0)-1),OFFSET('C. PoC Adj Factor Scoring'!$E$5:$J$282,,MATCH(I$4,'C. PoC Adj Factor Scoring'!$E$3:$AH$3,0)-1),MATCH(I$2&\" Score\",'C. PoC Adj Factor Scoring'!$E$4:$J$4,0),TRUE)","v":1},{"$f":"VLOOKUP(OFFSET($B:$B,,MATCH(J$4,$B$4:$F$4,0)-1),OFFSET('C. PoC Adj Factor Scoring'!$E$5:$J$282,,MATCH(J$4,'C. PoC Adj Factor Scoring'!$E$3:$AH$3,0)-1),MATCH(J$2&\" Score\",'C. PoC Adj Factor Scoring'!$E$4:$J$4,0),TRUE)","v":1},{"$f":"VLOOKUP(OFFSET($B:$B,,MATCH(K$4,$B$4:$F$4,0)-1),OFFSET('C. PoC Adj Factor Scoring'!$E$5:$J$282,,MATCH(K$4,'C. PoC Adj Factor Scoring'!$E$3:$AH$3,0)-1),MATCH(K$2&\" Score\",'C. PoC Adj Factor Scoring'!$E$4:$J$4,0),TRUE)","v":1},{"$f":"VLOOKUP(OFFSET($B:$B,,MATCH(L$4,$B$4:$F$4,0)-1),OFFSET('C. PoC Adj Factor Scoring'!$E$5:$J$282,,MATCH(L$4,'C. PoC Adj Factor Scoring'!$E$3:$AH$3,0)-1),MATCH(L$2&\" Score\",'C. PoC Adj Factor Scoring'!$E$4:$J$4,0),TRUE)","v":1},{"$f":"VLOOKUP(OFFSET($B:$B,,MATCH(M$4,$B$4:$F$4,0)-1),OFFSET('C. PoC Adj Factor Scoring'!$E$5:$J$282,,MATCH(M$4,'C. PoC Adj Factor Scoring'!$E$3:$AH$3,0)-1),MATCH(M$2&\" Score\",'C. PoC Adj Factor Scoring'!$E$4:$J$4,0),TRUE)","v":1},{"$f":"VLOOKUP(OFFSET($B:$B,,MATCH(N$4,$B$4:$F$4,0)-1),OFFSET('C. PoC Adj Factor Scoring'!$E$5:$J$282,,MATCH(N$4,'C. PoC Adj Factor Scoring'!$E$3:$AH$3,0)-1),MATCH(N$2&\" Score\",'C. PoC Adj Factor Scoring'!$E$4:$J$4,0),TRUE)","v":1},{"$f":"VLOOKUP(OFFSET($B:$B,,MATCH(O$4,$B$4:$F$4,0)-1),OFFSET('C. PoC Adj Factor Scoring'!$E$5:$J$282,,MATCH(O$4,'C. PoC Adj Factor Scoring'!$E$3:$AH$3,0)-1),MATCH(O$2&\" Score\",'C. PoC Adj Factor Scoring'!$E$4:$J$4,0),TRUE)","v":1},{"$f":"VLOOKUP(OFFSET($B:$B,,MATCH(P$4,$B$4:$F$4,0)-1),OFFSET('C. PoC Adj Factor Scoring'!$E$5:$J$282,,MATCH(P$4,'C. PoC Adj Factor Scoring'!$E$3:$AH$3,0)-1),MATCH(P$2&\" Score\",'C. PoC Adj Factor Scoring'!$E$4:$J$4,0),TRUE)","v":1},{"$f":"VLOOKUP(OFFSET($B:$B,,MATCH(Q$4,$B$4:$F$4,0)-1),OFFSET('C. PoC Adj Factor Scoring'!$E$5:$J$282,,MATCH(Q$4,'C. PoC Adj Factor Scoring'!$E$3:$AH$3,0)-1),MATCH(Q$2&\" Score\",'C. PoC Adj Factor Scoring'!$E$4:$J$4,0),TRUE)","v":1},{"$f":"VLOOKUP(OFFSET($B:$B,,MATCH(R$4,$B$4:$F$4,0)-1),OFFSET('C. PoC Adj Factor Scoring'!$E$5:$J$282,,MATCH(R$4,'C. PoC Adj Factor Scoring'!$E$3:$AH$3,0)-1),MATCH(R$2&\" Score\",'C. PoC Adj Factor Scoring'!$E$4:$J$4,0),TRUE)","v":1},{"$f":"VLOOKUP(OFFSET($B:$B,,MATCH(S$4,$B$4:$F$4,0)-1),OFFSET('C. PoC Adj Factor Scoring'!$E$5:$J$282,,MATCH(S$4,'C. PoC Adj Factor Scoring'!$E$3:$AH$3,0)-1),MATCH(S$2&\" Score\",'C. PoC Adj Factor Scoring'!$E$4:$J$4,0),TRUE)","v":1},{"$f":"VLOOKUP(OFFSET($B:$B,,MATCH(T$4,$B$4:$F$4,0)-1),OFFSET('C. PoC Adj Factor Scoring'!$E$5:$J$282,,MATCH(T$4,'C. PoC Adj Factor Scoring'!$E$3:$AH$3,0)-1),MATCH(T$2&\" Score\",'C. PoC Adj Factor Scoring'!$E$4:$J$4,0),TRUE)","v":1},{"$f":"VLOOKUP(OFFSET($B:$B,,MATCH(U$4,$B$4:$F$4,0)-1),OFFSET('C. PoC Adj Factor Scoring'!$E$5:$J$282,,MATCH(U$4,'C. PoC Adj Factor Scoring'!$E$3:$AH$3,0)-1),MATCH(U$2&\" Score\",'C. PoC Adj Factor Scoring'!$E$4:$J$4,0),TRUE)","v":1},{"$f":"VLOOKUP(OFFSET($B:$B,,MATCH(V$4,$B$4:$F$4,0)-1),OFFSET('C. PoC Adj Factor Scoring'!$E$5:$J$282,,MATCH(V$4,'C. PoC Adj Factor Scoring'!$E$3:$AH$3,0)-1),MATCH(V$2&\" Score\",'C. PoC Adj Factor Scoring'!$E$4:$J$4,0),TRUE)","v":1},{"$f":"VLOOKUP(OFFSET($B:$B,,MATCH(W$4,$B$4:$F$4,0)-1),OFFSET('C. PoC Adj Factor Scoring'!$E$5:$J$282,,MATCH(W$4,'C. PoC Adj Factor Scoring'!$E$3:$AH$3,0)-1),MATCH(W$2&\" Score\",'C. PoC Adj Factor Scoring'!$E$4:$J$4,0),TRUE)","v":1},{"$f":"VLOOKUP(OFFSET($B:$B,,MATCH(X$4,$B$4:$F$4,0)-1),OFFSET('C. PoC Adj Factor Scoring'!$E$5:$J$282,,MATCH(X$4,'C. PoC Adj Factor Scoring'!$E$3:$AH$3,0)-1),MATCH(X$2&\" Score\",'C. PoC Adj Factor Scoring'!$E$4:$J$4,0),TRUE)","v":1},{"$f":"VLOOKUP(OFFSET($B:$B,,MATCH(Y$4,$B$4:$F$4,0)-1),OFFSET('C. PoC Adj Factor Scoring'!$E$5:$J$282,,MATCH(Y$4,'C. PoC Adj Factor Scoring'!$E$3:$AH$3,0)-1),MATCH(Y$2&\" Score\",'C. PoC Adj Factor Scoring'!$E$4:$J$4,0),TRUE)","v":1},{"$f":"VLOOKUP(OFFSET($B:$B,,MATCH(Z$4,$B$4:$F$4,0)-1),OFFSET('C. PoC Adj Factor Scoring'!$E$5:$J$282,,MATCH(Z$4,'C. PoC Adj Factor Scoring'!$E$3:$AH$3,0)-1),MATCH(Z$2&\" Score\",'C. PoC Adj Factor Scoring'!$E$4:$J$4,0),TRUE)","v":1},{"$f":"VLOOKUP(OFFSET($B:$B,,MATCH(AA$4,$B$4:$F$4,0)-1),OFFSET('C. PoC Adj Factor Scoring'!$E$5:$J$282,,MATCH(AA$4,'C. PoC Adj Factor Scoring'!$E$3:$AH$3,0)-1),MATCH(AA$2&\" Score\",'C. PoC Adj Factor Scoring'!$E$4:$J$4,0),TRUE)","v":3},{"$f":"VLOOKUP(OFFSET($B:$B,,MATCH(AB$4,$B$4:$F$4,0)-1),OFFSET('C. PoC Adj Factor Scoring'!$E$5:$J$282,,MATCH(AB$4,'C. PoC Adj Factor Scoring'!$E$3:$AH$3,0)-1),MATCH(AB$2&\" Score\",'C. PoC Adj Factor Scoring'!$E$4:$J$4,0),TRUE)","v":1},{"$f":"VLOOKUP(OFFSET($B:$B,,MATCH(AC$4,$B$4:$F$4,0)-1),OFFSET('C. PoC Adj Factor Scoring'!$E$5:$J$282,,MATCH(AC$4,'C. PoC Adj Factor Scoring'!$E$3:$AH$3,0)-1),MATCH(AC$2&\" Score\",'C. PoC Adj Factor Scoring'!$E$4:$J$4,0),TRUE)","v":1},{"$f":"VLOOKUP(OFFSET($B:$B,,MATCH(AD$4,$B$4:$F$4,0)-1),OFFSET('C. PoC Adj Factor Scoring'!$E$5:$J$282,,MATCH(AD$4,'C. PoC Adj Factor Scoring'!$E$3:$AH$3,0)-1),MATCH(AD$2&\" Score\",'C. PoC Adj Factor Scoring'!$E$4:$J$4,0),TRUE)","v":1},{"$f":"VLOOKUP(OFFSET($B:$B,,MATCH(AE$4,$B$4:$F$4,0)-1),OFFSET('C. PoC Adj Factor Scoring'!$E$5:$J$282,,MATCH(AE$4,'C. PoC Adj Factor Scoring'!$E$3:$AH$3,0)-1),MATCH(AE$2&\" Score\",'C. PoC Adj Factor Scoring'!$E$4:$J$4,0),TRUE)","v":1}]
[{"$f":"'A. Population Info'!A319","v":1000395352},{"$f":"'A. Population Info'!L319","v":"OIL"},{"$f":"'A. Population Info'!M319","v":0},{"$f":"'A. Population Info'!N319","v":0},{"$f":"'A. Population Info'!O319","v":0},{"$f":"'A. Population Info'!P319","v":0},{"$f":"VLOOKUP(OFFSET($B:$B,,MATCH(G$4,$B$4:$F$4,0)-1),OFFSET('C. PoC Adj Factor Scoring'!$E$5:$J$282,,MATCH(G$4,'C. PoC Adj Factor Scoring'!$E$3:$AH$3,0)-1),MATCH(G$2&\" Score\",'C. PoC Adj Factor Scoring'!$E$4:$J$4,0),TRUE)","v":4},{"$f":"VLOOKUP(OFFSET($B:$B,,MATCH(H$4,$B$4:$F$4,0)-1),OFFSET('C. PoC Adj Factor Scoring'!$E$5:$J$282,,MATCH(H$4,'C. PoC Adj Factor Scoring'!$E$3:$AH$3,0)-1),MATCH(H$2&\" Score\",'C. PoC Adj Factor Scoring'!$E$4:$J$4,0),TRUE)","v":1},{"$f":"VLOOKUP(OFFSET($B:$B,,MATCH(I$4,$B$4:$F$4,0)-1),OFFSET('C. PoC Adj Factor Scoring'!$E$5:$J$282,,MATCH(I$4,'C. PoC Adj Factor Scoring'!$E$3:$AH$3,0)-1),MATCH(I$2&\" Score\",'C. PoC Adj Factor Scoring'!$E$4:$J$4,0),TRUE)","v":1},{"$f":"VLOOKUP(OFFSET($B:$B,,MATCH(J$4,$B$4:$F$4,0)-1),OFFSET('C. PoC Adj Factor Scoring'!$E$5:$J$282,,MATCH(J$4,'C. PoC Adj Factor Scoring'!$E$3:$AH$3,0)-1),MATCH(J$2&\" Score\",'C. PoC Adj Factor Scoring'!$E$4:$J$4,0),TRUE)","v":1},{"$f":"VLOOKUP(OFFSET($B:$B,,MATCH(K$4,$B$4:$F$4,0)-1),OFFSET('C. PoC Adj Factor Scoring'!$E$5:$J$282,,MATCH(K$4,'C. PoC Adj Factor Scoring'!$E$3:$AH$3,0)-1),MATCH(K$2&\" Score\",'C. PoC Adj Factor Scoring'!$E$4:$J$4,0),TRUE)","v":1},{"$f":"VLOOKUP(OFFSET($B:$B,,MATCH(L$4,$B$4:$F$4,0)-1),OFFSET('C. PoC Adj Factor Scoring'!$E$5:$J$282,,MATCH(L$4,'C. PoC Adj Factor Scoring'!$E$3:$AH$3,0)-1),MATCH(L$2&\" Score\",'C. PoC Adj Factor Scoring'!$E$4:$J$4,0),TRUE)","v":1},{"$f":"VLOOKUP(OFFSET($B:$B,,MATCH(M$4,$B$4:$F$4,0)-1),OFFSET('C. PoC Adj Factor Scoring'!$E$5:$J$282,,MATCH(M$4,'C. PoC Adj Factor Scoring'!$E$3:$AH$3,0)-1),MATCH(M$2&\" Score\",'C. PoC Adj Factor Scoring'!$E$4:$J$4,0),TRUE)","v":1},{"$f":"VLOOKUP(OFFSET($B:$B,,MATCH(N$4,$B$4:$F$4,0)-1),OFFSET('C. PoC Adj Factor Scoring'!$E$5:$J$282,,MATCH(N$4,'C. PoC Adj Factor Scoring'!$E$3:$AH$3,0)-1),MATCH(N$2&\" Score\",'C. PoC Adj Factor Scoring'!$E$4:$J$4,0),TRUE)","v":1},{"$f":"VLOOKUP(OFFSET($B:$B,,MATCH(O$4,$B$4:$F$4,0)-1),OFFSET('C. PoC Adj Factor Scoring'!$E$5:$J$282,,MATCH(O$4,'C. PoC Adj Factor Scoring'!$E$3:$AH$3,0)-1),MATCH(O$2&\" Score\",'C. PoC Adj Factor Scoring'!$E$4:$J$4,0),TRUE)","v":1},{"$f":"VLOOKUP(OFFSET($B:$B,,MATCH(P$4,$B$4:$F$4,0)-1),OFFSET('C. PoC Adj Factor Scoring'!$E$5:$J$282,,MATCH(P$4,'C. PoC Adj Factor Scoring'!$E$3:$AH$3,0)-1),MATCH(P$2&\" Score\",'C. PoC Adj Factor Scoring'!$E$4:$J$4,0),TRUE)","v":1},{"$f":"VLOOKUP(OFFSET($B:$B,,MATCH(Q$4,$B$4:$F$4,0)-1),OFFSET('C. PoC Adj Factor Scoring'!$E$5:$J$282,,MATCH(Q$4,'C. PoC Adj Factor Scoring'!$E$3:$AH$3,0)-1),MATCH(Q$2&\" Score\",'C. PoC Adj Factor Scoring'!$E$4:$J$4,0),TRUE)","v":1},{"$f":"VLOOKUP(OFFSET($B:$B,,MATCH(R$4,$B$4:$F$4,0)-1),OFFSET('C. PoC Adj Factor Scoring'!$E$5:$J$282,,MATCH(R$4,'C. PoC Adj Factor Scoring'!$E$3:$AH$3,0)-1),MATCH(R$2&\" Score\",'C. PoC Adj Factor Scoring'!$E$4:$J$4,0),TRUE)","v":1},{"$f":"VLOOKUP(OFFSET($B:$B,,MATCH(S$4,$B$4:$F$4,0)-1),OFFSET('C. PoC Adj Factor Scoring'!$E$5:$J$282,,MATCH(S$4,'C. PoC Adj Factor Scoring'!$E$3:$AH$3,0)-1),MATCH(S$2&\" Score\",'C. PoC Adj Factor Scoring'!$E$4:$J$4,0),TRUE)","v":1},{"$f":"VLOOKUP(OFFSET($B:$B,,MATCH(T$4,$B$4:$F$4,0)-1),OFFSET('C. PoC Adj Factor Scoring'!$E$5:$J$282,,MATCH(T$4,'C. PoC Adj Factor Scoring'!$E$3:$AH$3,0)-1),MATCH(T$2&\" Score\",'C. PoC Adj Factor Scoring'!$E$4:$J$4,0),TRUE)","v":1},{"$f":"VLOOKUP(OFFSET($B:$B,,MATCH(U$4,$B$4:$F$4,0)-1),OFFSET('C. PoC Adj Factor Scoring'!$E$5:$J$282,,MATCH(U$4,'C. PoC Adj Factor Scoring'!$E$3:$AH$3,0)-1),MATCH(U$2&\" Score\",'C. PoC Adj Factor Scoring'!$E$4:$J$4,0),TRUE)","v":1},{"$f":"VLOOKUP(OFFSET($B:$B,,MATCH(V$4,$B$4:$F$4,0)-1),OFFSET('C. PoC Adj Factor Scoring'!$E$5:$J$282,,MATCH(V$4,'C. PoC Adj Factor Scoring'!$E$3:$AH$3,0)-1),MATCH(V$2&\" Score\",'C. PoC Adj Factor Scoring'!$E$4:$J$4,0),TRUE)","v":1},{"$f":"VLOOKUP(OFFSET($B:$B,,MATCH(W$4,$B$4:$F$4,0)-1),OFFSET('C. PoC Adj Factor Scoring'!$E$5:$J$282,,MATCH(W$4,'C. PoC Adj Factor Scoring'!$E$3:$AH$3,0)-1),MATCH(W$2&\" Score\",'C. PoC Adj Factor Scoring'!$E$4:$J$4,0),TRUE)","v":1},{"$f":"VLOOKUP(OFFSET($B:$B,,MATCH(X$4,$B$4:$F$4,0)-1),OFFSET('C. PoC Adj Factor Scoring'!$E$5:$J$282,,MATCH(X$4,'C. PoC Adj Factor Scoring'!$E$3:$AH$3,0)-1),MATCH(X$2&\" Score\",'C. PoC Adj Factor Scoring'!$E$4:$J$4,0),TRUE)","v":1},{"$f":"VLOOKUP(OFFSET($B:$B,,MATCH(Y$4,$B$4:$F$4,0)-1),OFFSET('C. PoC Adj Factor Scoring'!$E$5:$J$282,,MATCH(Y$4,'C. PoC Adj Factor Scoring'!$E$3:$AH$3,0)-1),MATCH(Y$2&\" Score\",'C. PoC Adj Factor Scoring'!$E$4:$J$4,0),TRUE)","v":1},{"$f":"VLOOKUP(OFFSET($B:$B,,MATCH(Z$4,$B$4:$F$4,0)-1),OFFSET('C. PoC Adj Factor Scoring'!$E$5:$J$282,,MATCH(Z$4,'C. PoC Adj Factor Scoring'!$E$3:$AH$3,0)-1),MATCH(Z$2&\" Score\",'C. PoC Adj Factor Scoring'!$E$4:$J$4,0),TRUE)","v":1},{"$f":"VLOOKUP(OFFSET($B:$B,,MATCH(AA$4,$B$4:$F$4,0)-1),OFFSET('C. PoC Adj Factor Scoring'!$E$5:$J$282,,MATCH(AA$4,'C. PoC Adj Factor Scoring'!$E$3:$AH$3,0)-1),MATCH(AA$2&\" Score\",'C. PoC Adj Factor Scoring'!$E$4:$J$4,0),TRUE)","v":3},{"$f":"VLOOKUP(OFFSET($B:$B,,MATCH(AB$4,$B$4:$F$4,0)-1),OFFSET('C. PoC Adj Factor Scoring'!$E$5:$J$282,,MATCH(AB$4,'C. PoC Adj Factor Scoring'!$E$3:$AH$3,0)-1),MATCH(AB$2&\" Score\",'C. PoC Adj Factor Scoring'!$E$4:$J$4,0),TRUE)","v":1},{"$f":"VLOOKUP(OFFSET($B:$B,,MATCH(AC$4,$B$4:$F$4,0)-1),OFFSET('C. PoC Adj Factor Scoring'!$E$5:$J$282,,MATCH(AC$4,'C. PoC Adj Factor Scoring'!$E$3:$AH$3,0)-1),MATCH(AC$2&\" Score\",'C. PoC Adj Factor Scoring'!$E$4:$J$4,0),TRUE)","v":1},{"$f":"VLOOKUP(OFFSET($B:$B,,MATCH(AD$4,$B$4:$F$4,0)-1),OFFSET('C. PoC Adj Factor Scoring'!$E$5:$J$282,,MATCH(AD$4,'C. PoC Adj Factor Scoring'!$E$3:$AH$3,0)-1),MATCH(AD$2&\" Score\",'C. PoC Adj Factor Scoring'!$E$4:$J$4,0),TRUE)","v":1},{"$f":"VLOOKUP(OFFSET($B:$B,,MATCH(AE$4,$B$4:$F$4,0)-1),OFFSET('C. PoC Adj Factor Scoring'!$E$5:$J$282,,MATCH(AE$4,'C. PoC Adj Factor Scoring'!$E$3:$AH$3,0)-1),MATCH(AE$2&\" Score\",'C. PoC Adj Factor Scoring'!$E$4:$J$4,0),TRUE)","v":1}]
[{"$f":"'A. Population Info'!A320","v":1000395372},{"$f":"'A. Population Info'!L320","v":"OIL"},{"$f":"'A. Population Info'!M320","v":0},{"$f":"'A. Population Info'!N320","v":0},{"$f":"'A. Population Info'!O320","v":0},{"$f":"'A. Population Info'!P320","v":0},{"$f":"VLOOKUP(OFFSET($B:$B,,MATCH(G$4,$B$4:$F$4,0)-1),OFFSET('C. PoC Adj Factor Scoring'!$E$5:$J$282,,MATCH(G$4,'C. PoC Adj Factor Scoring'!$E$3:$AH$3,0)-1),MATCH(G$2&\" Score\",'C. PoC Adj Factor Scoring'!$E$4:$J$4,0),TRUE)","v":4},{"$f":"VLOOKUP(OFFSET($B:$B,,MATCH(H$4,$B$4:$F$4,0)-1),OFFSET('C. PoC Adj Factor Scoring'!$E$5:$J$282,,MATCH(H$4,'C. PoC Adj Factor Scoring'!$E$3:$AH$3,0)-1),MATCH(H$2&\" Score\",'C. PoC Adj Factor Scoring'!$E$4:$J$4,0),TRUE)","v":1},{"$f":"VLOOKUP(OFFSET($B:$B,,MATCH(I$4,$B$4:$F$4,0)-1),OFFSET('C. PoC Adj Factor Scoring'!$E$5:$J$282,,MATCH(I$4,'C. PoC Adj Factor Scoring'!$E$3:$AH$3,0)-1),MATCH(I$2&\" Score\",'C. PoC Adj Factor Scoring'!$E$4:$J$4,0),TRUE)","v":1},{"$f":"VLOOKUP(OFFSET($B:$B,,MATCH(J$4,$B$4:$F$4,0)-1),OFFSET('C. PoC Adj Factor Scoring'!$E$5:$J$282,,MATCH(J$4,'C. PoC Adj Factor Scoring'!$E$3:$AH$3,0)-1),MATCH(J$2&\" Score\",'C. PoC Adj Factor Scoring'!$E$4:$J$4,0),TRUE)","v":1},{"$f":"VLOOKUP(OFFSET($B:$B,,MATCH(K$4,$B$4:$F$4,0)-1),OFFSET('C. PoC Adj Factor Scoring'!$E$5:$J$282,,MATCH(K$4,'C. PoC Adj Factor Scoring'!$E$3:$AH$3,0)-1),MATCH(K$2&\" Score\",'C. PoC Adj Factor Scoring'!$E$4:$J$4,0),TRUE)","v":1},{"$f":"VLOOKUP(OFFSET($B:$B,,MATCH(L$4,$B$4:$F$4,0)-1),OFFSET('C. PoC Adj Factor Scoring'!$E$5:$J$282,,MATCH(L$4,'C. PoC Adj Factor Scoring'!$E$3:$AH$3,0)-1),MATCH(L$2&\" Score\",'C. PoC Adj Factor Scoring'!$E$4:$J$4,0),TRUE)","v":1},{"$f":"VLOOKUP(OFFSET($B:$B,,MATCH(M$4,$B$4:$F$4,0)-1),OFFSET('C. PoC Adj Factor Scoring'!$E$5:$J$282,,MATCH(M$4,'C. PoC Adj Factor Scoring'!$E$3:$AH$3,0)-1),MATCH(M$2&\" Score\",'C. PoC Adj Factor Scoring'!$E$4:$J$4,0),TRUE)","v":1},{"$f":"VLOOKUP(OFFSET($B:$B,,MATCH(N$4,$B$4:$F$4,0)-1),OFFSET('C. PoC Adj Factor Scoring'!$E$5:$J$282,,MATCH(N$4,'C. PoC Adj Factor Scoring'!$E$3:$AH$3,0)-1),MATCH(N$2&\" Score\",'C. PoC Adj Factor Scoring'!$E$4:$J$4,0),TRUE)","v":1},{"$f":"VLOOKUP(OFFSET($B:$B,,MATCH(O$4,$B$4:$F$4,0)-1),OFFSET('C. PoC Adj Factor Scoring'!$E$5:$J$282,,MATCH(O$4,'C. PoC Adj Factor Scoring'!$E$3:$AH$3,0)-1),MATCH(O$2&\" Score\",'C. PoC Adj Factor Scoring'!$E$4:$J$4,0),TRUE)","v":1},{"$f":"VLOOKUP(OFFSET($B:$B,,MATCH(P$4,$B$4:$F$4,0)-1),OFFSET('C. PoC Adj Factor Scoring'!$E$5:$J$282,,MATCH(P$4,'C. PoC Adj Factor Scoring'!$E$3:$AH$3,0)-1),MATCH(P$2&\" Score\",'C. PoC Adj Factor Scoring'!$E$4:$J$4,0),TRUE)","v":1},{"$f":"VLOOKUP(OFFSET($B:$B,,MATCH(Q$4,$B$4:$F$4,0)-1),OFFSET('C. PoC Adj Factor Scoring'!$E$5:$J$282,,MATCH(Q$4,'C. PoC Adj Factor Scoring'!$E$3:$AH$3,0)-1),MATCH(Q$2&\" Score\",'C. PoC Adj Factor Scoring'!$E$4:$J$4,0),TRUE)","v":1},{"$f":"VLOOKUP(OFFSET($B:$B,,MATCH(R$4,$B$4:$F$4,0)-1),OFFSET('C. PoC Adj Factor Scoring'!$E$5:$J$282,,MATCH(R$4,'C. PoC Adj Factor Scoring'!$E$3:$AH$3,0)-1),MATCH(R$2&\" Score\",'C. PoC Adj Factor Scoring'!$E$4:$J$4,0),TRUE)","v":1},{"$f":"VLOOKUP(OFFSET($B:$B,,MATCH(S$4,$B$4:$F$4,0)-1),OFFSET('C. PoC Adj Factor Scoring'!$E$5:$J$282,,MATCH(S$4,'C. PoC Adj Factor Scoring'!$E$3:$AH$3,0)-1),MATCH(S$2&\" Score\",'C. PoC Adj Factor Scoring'!$E$4:$J$4,0),TRUE)","v":1},{"$f":"VLOOKUP(OFFSET($B:$B,,MATCH(T$4,$B$4:$F$4,0)-1),OFFSET('C. PoC Adj Factor Scoring'!$E$5:$J$282,,MATCH(T$4,'C. PoC Adj Factor Scoring'!$E$3:$AH$3,0)-1),MATCH(T$2&\" Score\",'C. PoC Adj Factor Scoring'!$E$4:$J$4,0),TRUE)","v":1},{"$f":"VLOOKUP(OFFSET($B:$B,,MATCH(U$4,$B$4:$F$4,0)-1),OFFSET('C. PoC Adj Factor Scoring'!$E$5:$J$282,,MATCH(U$4,'C. PoC Adj Factor Scoring'!$E$3:$AH$3,0)-1),MATCH(U$2&\" Score\",'C. PoC Adj Factor Scoring'!$E$4:$J$4,0),TRUE)","v":1},{"$f":"VLOOKUP(OFFSET($B:$B,,MATCH(V$4,$B$4:$F$4,0)-1),OFFSET('C. PoC Adj Factor Scoring'!$E$5:$J$282,,MATCH(V$4,'C. PoC Adj Factor Scoring'!$E$3:$AH$3,0)-1),MATCH(V$2&\" Score\",'C. PoC Adj Factor Scoring'!$E$4:$J$4,0),TRUE)","v":1},{"$f":"VLOOKUP(OFFSET($B:$B,,MATCH(W$4,$B$4:$F$4,0)-1),OFFSET('C. PoC Adj Factor Scoring'!$E$5:$J$282,,MATCH(W$4,'C. PoC Adj Factor Scoring'!$E$3:$AH$3,0)-1),MATCH(W$2&\" Score\",'C. PoC Adj Factor Scoring'!$E$4:$J$4,0),TRUE)","v":1},{"$f":"VLOOKUP(OFFSET($B:$B,,MATCH(X$4,$B$4:$F$4,0)-1),OFFSET('C. PoC Adj Factor Scoring'!$E$5:$J$282,,MATCH(X$4,'C. PoC Adj Factor Scoring'!$E$3:$AH$3,0)-1),MATCH(X$2&\" Score\",'C. PoC Adj Factor Scoring'!$E$4:$J$4,0),TRUE)","v":1},{"$f":"VLOOKUP(OFFSET($B:$B,,MATCH(Y$4,$B$4:$F$4,0)-1),OFFSET('C. PoC Adj Factor Scoring'!$E$5:$J$282,,MATCH(Y$4,'C. PoC Adj Factor Scoring'!$E$3:$AH$3,0)-1),MATCH(Y$2&\" Score\",'C. PoC Adj Factor Scoring'!$E$4:$J$4,0),TRUE)","v":1},{"$f":"VLOOKUP(OFFSET($B:$B,,MATCH(Z$4,$B$4:$F$4,0)-1),OFFSET('C. PoC Adj Factor Scoring'!$E$5:$J$282,,MATCH(Z$4,'C. PoC Adj Factor Scoring'!$E$3:$AH$3,0)-1),MATCH(Z$2&\" Score\",'C. PoC Adj Factor Scoring'!$E$4:$J$4,0),TRUE)","v":1},{"$f":"VLOOKUP(OFFSET($B:$B,,MATCH(AA$4,$B$4:$F$4,0)-1),OFFSET('C. PoC Adj Factor Scoring'!$E$5:$J$282,,MATCH(AA$4,'C. PoC Adj Factor Scoring'!$E$3:$AH$3,0)-1),MATCH(AA$2&\" Score\",'C. PoC Adj Factor Scoring'!$E$4:$J$4,0),TRUE)","v":3},{"$f":"VLOOKUP(OFFSET($B:$B,,MATCH(AB$4,$B$4:$F$4,0)-1),OFFSET('C. PoC Adj Factor Scoring'!$E$5:$J$282,,MATCH(AB$4,'C. PoC Adj Factor Scoring'!$E$3:$AH$3,0)-1),MATCH(AB$2&\" Score\",'C. PoC Adj Factor Scoring'!$E$4:$J$4,0),TRUE)","v":1},{"$f":"VLOOKUP(OFFSET($B:$B,,MATCH(AC$4,$B$4:$F$4,0)-1),OFFSET('C. PoC Adj Factor Scoring'!$E$5:$J$282,,MATCH(AC$4,'C. PoC Adj Factor Scoring'!$E$3:$AH$3,0)-1),MATCH(AC$2&\" Score\",'C. PoC Adj Factor Scoring'!$E$4:$J$4,0),TRUE)","v":1},{"$f":"VLOOKUP(OFFSET($B:$B,,MATCH(AD$4,$B$4:$F$4,0)-1),OFFSET('C. PoC Adj Factor Scoring'!$E$5:$J$282,,MATCH(AD$4,'C. PoC Adj Factor Scoring'!$E$3:$AH$3,0)-1),MATCH(AD$2&\" Score\",'C. PoC Adj Factor Scoring'!$E$4:$J$4,0),TRUE)","v":1},{"$f":"VLOOKUP(OFFSET($B:$B,,MATCH(AE$4,$B$4:$F$4,0)-1),OFFSET('C. PoC Adj Factor Scoring'!$E$5:$J$282,,MATCH(AE$4,'C. PoC Adj Factor Scoring'!$E$3:$AH$3,0)-1),MATCH(AE$2&\" Score\",'C. PoC Adj Factor Scoring'!$E$4:$J$4,0),TRUE)","v":1}]
[{"$f":"'A. Population Info'!A321","v":1000395408},{"$f":"'A. Population Info'!L321","v":"OIL"},{"$f":"'A. Population Info'!M321","v":0},{"$f":"'A. Population Info'!N321","v":0},{"$f":"'A. Population Info'!O321","v":0},{"$f":"'A. Population Info'!P321","v":0},{"$f":"VLOOKUP(OFFSET($B:$B,,MATCH(G$4,$B$4:$F$4,0)-1),OFFSET('C. PoC Adj Factor Scoring'!$E$5:$J$282,,MATCH(G$4,'C. PoC Adj Factor Scoring'!$E$3:$AH$3,0)-1),MATCH(G$2&\" Score\",'C. PoC Adj Factor Scoring'!$E$4:$J$4,0),TRUE)","v":4},{"$f":"VLOOKUP(OFFSET($B:$B,,MATCH(H$4,$B$4:$F$4,0)-1),OFFSET('C. PoC Adj Factor Scoring'!$E$5:$J$282,,MATCH(H$4,'C. PoC Adj Factor Scoring'!$E$3:$AH$3,0)-1),MATCH(H$2&\" Score\",'C. PoC Adj Factor Scoring'!$E$4:$J$4,0),TRUE)","v":1},{"$f":"VLOOKUP(OFFSET($B:$B,,MATCH(I$4,$B$4:$F$4,0)-1),OFFSET('C. PoC Adj Factor Scoring'!$E$5:$J$282,,MATCH(I$4,'C. PoC Adj Factor Scoring'!$E$3:$AH$3,0)-1),MATCH(I$2&\" Score\",'C. PoC Adj Factor Scoring'!$E$4:$J$4,0),TRUE)","v":1},{"$f":"VLOOKUP(OFFSET($B:$B,,MATCH(J$4,$B$4:$F$4,0)-1),OFFSET('C. PoC Adj Factor Scoring'!$E$5:$J$282,,MATCH(J$4,'C. PoC Adj Factor Scoring'!$E$3:$AH$3,0)-1),MATCH(J$2&\" Score\",'C. PoC Adj Factor Scoring'!$E$4:$J$4,0),TRUE)","v":1},{"$f":"VLOOKUP(OFFSET($B:$B,,MATCH(K$4,$B$4:$F$4,0)-1),OFFSET('C. PoC Adj Factor Scoring'!$E$5:$J$282,,MATCH(K$4,'C. PoC Adj Factor Scoring'!$E$3:$AH$3,0)-1),MATCH(K$2&\" Score\",'C. PoC Adj Factor Scoring'!$E$4:$J$4,0),TRUE)","v":1},{"$f":"VLOOKUP(OFFSET($B:$B,,MATCH(L$4,$B$4:$F$4,0)-1),OFFSET('C. PoC Adj Factor Scoring'!$E$5:$J$282,,MATCH(L$4,'C. PoC Adj Factor Scoring'!$E$3:$AH$3,0)-1),MATCH(L$2&\" Score\",'C. PoC Adj Factor Scoring'!$E$4:$J$4,0),TRUE)","v":1},{"$f":"VLOOKUP(OFFSET($B:$B,,MATCH(M$4,$B$4:$F$4,0)-1),OFFSET('C. PoC Adj Factor Scoring'!$E$5:$J$282,,MATCH(M$4,'C. PoC Adj Factor Scoring'!$E$3:$AH$3,0)-1),MATCH(M$2&\" Score\",'C. PoC Adj Factor Scoring'!$E$4:$J$4,0),TRUE)","v":1},{"$f":"VLOOKUP(OFFSET($B:$B,,MATCH(N$4,$B$4:$F$4,0)-1),OFFSET('C. PoC Adj Factor Scoring'!$E$5:$J$282,,MATCH(N$4,'C. PoC Adj Factor Scoring'!$E$3:$AH$3,0)-1),MATCH(N$2&\" Score\",'C. PoC Adj Factor Scoring'!$E$4:$J$4,0),TRUE)","v":1},{"$f":"VLOOKUP(OFFSET($B:$B,,MATCH(O$4,$B$4:$F$4,0)-1),OFFSET('C. PoC Adj Factor Scoring'!$E$5:$J$282,,MATCH(O$4,'C. PoC Adj Factor Scoring'!$E$3:$AH$3,0)-1),MATCH(O$2&\" Score\",'C. PoC Adj Factor Scoring'!$E$4:$J$4,0),TRUE)","v":1},{"$f":"VLOOKUP(OFFSET($B:$B,,MATCH(P$4,$B$4:$F$4,0)-1),OFFSET('C. PoC Adj Factor Scoring'!$E$5:$J$282,,MATCH(P$4,'C. PoC Adj Factor Scoring'!$E$3:$AH$3,0)-1),MATCH(P$2&\" Score\",'C. PoC Adj Factor Scoring'!$E$4:$J$4,0),TRUE)","v":1},{"$f":"VLOOKUP(OFFSET($B:$B,,MATCH(Q$4,$B$4:$F$4,0)-1),OFFSET('C. PoC Adj Factor Scoring'!$E$5:$J$282,,MATCH(Q$4,'C. PoC Adj Factor Scoring'!$E$3:$AH$3,0)-1),MATCH(Q$2&\" Score\",'C. PoC Adj Factor Scoring'!$E$4:$J$4,0),TRUE)","v":1},{"$f":"VLOOKUP(OFFSET($B:$B,,MATCH(R$4,$B$4:$F$4,0)-1),OFFSET('C. PoC Adj Factor Scoring'!$E$5:$J$282,,MATCH(R$4,'C. PoC Adj Factor Scoring'!$E$3:$AH$3,0)-1),MATCH(R$2&\" Score\",'C. PoC Adj Factor Scoring'!$E$4:$J$4,0),TRUE)","v":1},{"$f":"VLOOKUP(OFFSET($B:$B,,MATCH(S$4,$B$4:$F$4,0)-1),OFFSET('C. PoC Adj Factor Scoring'!$E$5:$J$282,,MATCH(S$4,'C. PoC Adj Factor Scoring'!$E$3:$AH$3,0)-1),MATCH(S$2&\" Score\",'C. PoC Adj Factor Scoring'!$E$4:$J$4,0),TRUE)","v":1},{"$f":"VLOOKUP(OFFSET($B:$B,,MATCH(T$4,$B$4:$F$4,0)-1),OFFSET('C. PoC Adj Factor Scoring'!$E$5:$J$282,,MATCH(T$4,'C. PoC Adj Factor Scoring'!$E$3:$AH$3,0)-1),MATCH(T$2&\" Score\",'C. PoC Adj Factor Scoring'!$E$4:$J$4,0),TRUE)","v":1},{"$f":"VLOOKUP(OFFSET($B:$B,,MATCH(U$4,$B$4:$F$4,0)-1),OFFSET('C. PoC Adj Factor Scoring'!$E$5:$J$282,,MATCH(U$4,'C. PoC Adj Factor Scoring'!$E$3:$AH$3,0)-1),MATCH(U$2&\" Score\",'C. PoC Adj Factor Scoring'!$E$4:$J$4,0),TRUE)","v":1},{"$f":"VLOOKUP(OFFSET($B:$B,,MATCH(V$4,$B$4:$F$4,0)-1),OFFSET('C. PoC Adj Factor Scoring'!$E$5:$J$282,,MATCH(V$4,'C. PoC Adj Factor Scoring'!$E$3:$AH$3,0)-1),MATCH(V$2&\" Score\",'C. PoC Adj Factor Scoring'!$E$4:$J$4,0),TRUE)","v":1},{"$f":"VLOOKUP(OFFSET($B:$B,,MATCH(W$4,$B$4:$F$4,0)-1),OFFSET('C. PoC Adj Factor Scoring'!$E$5:$J$282,,MATCH(W$4,'C. PoC Adj Factor Scoring'!$E$3:$AH$3,0)-1),MATCH(W$2&\" Score\",'C. PoC Adj Factor Scoring'!$E$4:$J$4,0),TRUE)","v":1},{"$f":"VLOOKUP(OFFSET($B:$B,,MATCH(X$4,$B$4:$F$4,0)-1),OFFSET('C. PoC Adj Factor Scoring'!$E$5:$J$282,,MATCH(X$4,'C. PoC Adj Factor Scoring'!$E$3:$AH$3,0)-1),MATCH(X$2&\" Score\",'C. PoC Adj Factor Scoring'!$E$4:$J$4,0),TRUE)","v":1},{"$f":"VLOOKUP(OFFSET($B:$B,,MATCH(Y$4,$B$4:$F$4,0)-1),OFFSET('C. PoC Adj Factor Scoring'!$E$5:$J$282,,MATCH(Y$4,'C. PoC Adj Factor Scoring'!$E$3:$AH$3,0)-1),MATCH(Y$2&\" Score\",'C. PoC Adj Factor Scoring'!$E$4:$J$4,0),TRUE)","v":1},{"$f":"VLOOKUP(OFFSET($B:$B,,MATCH(Z$4,$B$4:$F$4,0)-1),OFFSET('C. PoC Adj Factor Scoring'!$E$5:$J$282,,MATCH(Z$4,'C. PoC Adj Factor Scoring'!$E$3:$AH$3,0)-1),MATCH(Z$2&\" Score\",'C. PoC Adj Factor Scoring'!$E$4:$J$4,0),TRUE)","v":1},{"$f":"VLOOKUP(OFFSET($B:$B,,MATCH(AA$4,$B$4:$F$4,0)-1),OFFSET('C. PoC Adj Factor Scoring'!$E$5:$J$282,,MATCH(AA$4,'C. PoC Adj Factor Scoring'!$E$3:$AH$3,0)-1),MATCH(AA$2&\" Score\",'C. PoC Adj Factor Scoring'!$E$4:$J$4,0),TRUE)","v":3},{"$f":"VLOOKUP(OFFSET($B:$B,,MATCH(AB$4,$B$4:$F$4,0)-1),OFFSET('C. PoC Adj Factor Scoring'!$E$5:$J$282,,MATCH(AB$4,'C. PoC Adj Factor Scoring'!$E$3:$AH$3,0)-1),MATCH(AB$2&\" Score\",'C. PoC Adj Factor Scoring'!$E$4:$J$4,0),TRUE)","v":1},{"$f":"VLOOKUP(OFFSET($B:$B,,MATCH(AC$4,$B$4:$F$4,0)-1),OFFSET('C. PoC Adj Factor Scoring'!$E$5:$J$282,,MATCH(AC$4,'C. PoC Adj Factor Scoring'!$E$3:$AH$3,0)-1),MATCH(AC$2&\" Score\",'C. PoC Adj Factor Scoring'!$E$4:$J$4,0),TRUE)","v":1},{"$f":"VLOOKUP(OFFSET($B:$B,,MATCH(AD$4,$B$4:$F$4,0)-1),OFFSET('C. PoC Adj Factor Scoring'!$E$5:$J$282,,MATCH(AD$4,'C. PoC Adj Factor Scoring'!$E$3:$AH$3,0)-1),MATCH(AD$2&\" Score\",'C. PoC Adj Factor Scoring'!$E$4:$J$4,0),TRUE)","v":1},{"$f":"VLOOKUP(OFFSET($B:$B,,MATCH(AE$4,$B$4:$F$4,0)-1),OFFSET('C. PoC Adj Factor Scoring'!$E$5:$J$282,,MATCH(AE$4,'C. PoC Adj Factor Scoring'!$E$3:$AH$3,0)-1),MATCH(AE$2&\" Score\",'C. PoC Adj Factor Scoring'!$E$4:$J$4,0),TRUE)","v":1}]
[{"$f":"'A. Population Info'!A322","v":1000395428},{"$f":"'A. Population Info'!L322","v":"OIL"},{"$f":"'A. Population Info'!M322","v":0},{"$f":"'A. Population Info'!N322","v":0},{"$f":"'A. Population Info'!O322","v":0},{"$f":"'A. Population Info'!P322","v":0},{"$f":"VLOOKUP(OFFSET($B:$B,,MATCH(G$4,$B$4:$F$4,0)-1),OFFSET('C. PoC Adj Factor Scoring'!$E$5:$J$282,,MATCH(G$4,'C. PoC Adj Factor Scoring'!$E$3:$AH$3,0)-1),MATCH(G$2&\" Score\",'C. PoC Adj Factor Scoring'!$E$4:$J$4,0),TRUE)","v":4},{"$f":"VLOOKUP(OFFSET($B:$B,,MATCH(H$4,$B$4:$F$4,0)-1),OFFSET('C. PoC Adj Factor Scoring'!$E$5:$J$282,,MATCH(H$4,'C. PoC Adj Factor Scoring'!$E$3:$AH$3,0)-1),MATCH(H$2&\" Score\",'C. PoC Adj Factor Scoring'!$E$4:$J$4,0),TRUE)","v":1},{"$f":"VLOOKUP(OFFSET($B:$B,,MATCH(I$4,$B$4:$F$4,0)-1),OFFSET('C. PoC Adj Factor Scoring'!$E$5:$J$282,,MATCH(I$4,'C. PoC Adj Factor Scoring'!$E$3:$AH$3,0)-1),MATCH(I$2&\" Score\",'C. PoC Adj Factor Scoring'!$E$4:$J$4,0),TRUE)","v":1},{"$f":"VLOOKUP(OFFSET($B:$B,,MATCH(J$4,$B$4:$F$4,0)-1),OFFSET('C. PoC Adj Factor Scoring'!$E$5:$J$282,,MATCH(J$4,'C. PoC Adj Factor Scoring'!$E$3:$AH$3,0)-1),MATCH(J$2&\" Score\",'C. PoC Adj Factor Scoring'!$E$4:$J$4,0),TRUE)","v":1},{"$f":"VLOOKUP(OFFSET($B:$B,,MATCH(K$4,$B$4:$F$4,0)-1),OFFSET('C. PoC Adj Factor Scoring'!$E$5:$J$282,,MATCH(K$4,'C. PoC Adj Factor Scoring'!$E$3:$AH$3,0)-1),MATCH(K$2&\" Score\",'C. PoC Adj Factor Scoring'!$E$4:$J$4,0),TRUE)","v":1},{"$f":"VLOOKUP(OFFSET($B:$B,,MATCH(L$4,$B$4:$F$4,0)-1),OFFSET('C. PoC Adj Factor Scoring'!$E$5:$J$282,,MATCH(L$4,'C. PoC Adj Factor Scoring'!$E$3:$AH$3,0)-1),MATCH(L$2&\" Score\",'C. PoC Adj Factor Scoring'!$E$4:$J$4,0),TRUE)","v":1},{"$f":"VLOOKUP(OFFSET($B:$B,,MATCH(M$4,$B$4:$F$4,0)-1),OFFSET('C. PoC Adj Factor Scoring'!$E$5:$J$282,,MATCH(M$4,'C. PoC Adj Factor Scoring'!$E$3:$AH$3,0)-1),MATCH(M$2&\" Score\",'C. PoC Adj Factor Scoring'!$E$4:$J$4,0),TRUE)","v":1},{"$f":"VLOOKUP(OFFSET($B:$B,,MATCH(N$4,$B$4:$F$4,0)-1),OFFSET('C. PoC Adj Factor Scoring'!$E$5:$J$282,,MATCH(N$4,'C. PoC Adj Factor Scoring'!$E$3:$AH$3,0)-1),MATCH(N$2&\" Score\",'C. PoC Adj Factor Scoring'!$E$4:$J$4,0),TRUE)","v":1},{"$f":"VLOOKUP(OFFSET($B:$B,,MATCH(O$4,$B$4:$F$4,0)-1),OFFSET('C. PoC Adj Factor Scoring'!$E$5:$J$282,,MATCH(O$4,'C. PoC Adj Factor Scoring'!$E$3:$AH$3,0)-1),MATCH(O$2&\" Score\",'C. PoC Adj Factor Scoring'!$E$4:$J$4,0),TRUE)","v":1},{"$f":"VLOOKUP(OFFSET($B:$B,,MATCH(P$4,$B$4:$F$4,0)-1),OFFSET('C. PoC Adj Factor Scoring'!$E$5:$J$282,,MATCH(P$4,'C. PoC Adj Factor Scoring'!$E$3:$AH$3,0)-1),MATCH(P$2&\" Score\",'C. PoC Adj Factor Scoring'!$E$4:$J$4,0),TRUE)","v":1},{"$f":"VLOOKUP(OFFSET($B:$B,,MATCH(Q$4,$B$4:$F$4,0)-1),OFFSET('C. PoC Adj Factor Scoring'!$E$5:$J$282,,MATCH(Q$4,'C. PoC Adj Factor Scoring'!$E$3:$AH$3,0)-1),MATCH(Q$2&\" Score\",'C. PoC Adj Factor Scoring'!$E$4:$J$4,0),TRUE)","v":1},{"$f":"VLOOKUP(OFFSET($B:$B,,MATCH(R$4,$B$4:$F$4,0)-1),OFFSET('C. PoC Adj Factor Scoring'!$E$5:$J$282,,MATCH(R$4,'C. PoC Adj Factor Scoring'!$E$3:$AH$3,0)-1),MATCH(R$2&\" Score\",'C. PoC Adj Factor Scoring'!$E$4:$J$4,0),TRUE)","v":1},{"$f":"VLOOKUP(OFFSET($B:$B,,MATCH(S$4,$B$4:$F$4,0)-1),OFFSET('C. PoC Adj Factor Scoring'!$E$5:$J$282,,MATCH(S$4,'C. PoC Adj Factor Scoring'!$E$3:$AH$3,0)-1),MATCH(S$2&\" Score\",'C. PoC Adj Factor Scoring'!$E$4:$J$4,0),TRUE)","v":1},{"$f":"VLOOKUP(OFFSET($B:$B,,MATCH(T$4,$B$4:$F$4,0)-1),OFFSET('C. PoC Adj Factor Scoring'!$E$5:$J$282,,MATCH(T$4,'C. PoC Adj Factor Scoring'!$E$3:$AH$3,0)-1),MATCH(T$2&\" Score\",'C. PoC Adj Factor Scoring'!$E$4:$J$4,0),TRUE)","v":1},{"$f":"VLOOKUP(OFFSET($B:$B,,MATCH(U$4,$B$4:$F$4,0)-1),OFFSET('C. PoC Adj Factor Scoring'!$E$5:$J$282,,MATCH(U$4,'C. PoC Adj Factor Scoring'!$E$3:$AH$3,0)-1),MATCH(U$2&\" Score\",'C. PoC Adj Factor Scoring'!$E$4:$J$4,0),TRUE)","v":1},{"$f":"VLOOKUP(OFFSET($B:$B,,MATCH(V$4,$B$4:$F$4,0)-1),OFFSET('C. PoC Adj Factor Scoring'!$E$5:$J$282,,MATCH(V$4,'C. PoC Adj Factor Scoring'!$E$3:$AH$3,0)-1),MATCH(V$2&\" Score\",'C. PoC Adj Factor Scoring'!$E$4:$J$4,0),TRUE)","v":1},{"$f":"VLOOKUP(OFFSET($B:$B,,MATCH(W$4,$B$4:$F$4,0)-1),OFFSET('C. PoC Adj Factor Scoring'!$E$5:$J$282,,MATCH(W$4,'C. PoC Adj Factor Scoring'!$E$3:$AH$3,0)-1),MATCH(W$2&\" Score\",'C. PoC Adj Factor Scoring'!$E$4:$J$4,0),TRUE)","v":1},{"$f":"VLOOKUP(OFFSET($B:$B,,MATCH(X$4,$B$4:$F$4,0)-1),OFFSET('C. PoC Adj Factor Scoring'!$E$5:$J$282,,MATCH(X$4,'C. PoC Adj Factor Scoring'!$E$3:$AH$3,0)-1),MATCH(X$2&\" Score\",'C. PoC Adj Factor Scoring'!$E$4:$J$4,0),TRUE)","v":1},{"$f":"VLOOKUP(OFFSET($B:$B,,MATCH(Y$4,$B$4:$F$4,0)-1),OFFSET('C. PoC Adj Factor Scoring'!$E$5:$J$282,,MATCH(Y$4,'C. PoC Adj Factor Scoring'!$E$3:$AH$3,0)-1),MATCH(Y$2&\" Score\",'C. PoC Adj Factor Scoring'!$E$4:$J$4,0),TRUE)","v":1},{"$f":"VLOOKUP(OFFSET($B:$B,,MATCH(Z$4,$B$4:$F$4,0)-1),OFFSET('C. PoC Adj Factor Scoring'!$E$5:$J$282,,MATCH(Z$4,'C. PoC Adj Factor Scoring'!$E$3:$AH$3,0)-1),MATCH(Z$2&\" Score\",'C. PoC Adj Factor Scoring'!$E$4:$J$4,0),TRUE)","v":1},{"$f":"VLOOKUP(OFFSET($B:$B,,MATCH(AA$4,$B$4:$F$4,0)-1),OFFSET('C. PoC Adj Factor Scoring'!$E$5:$J$282,,MATCH(AA$4,'C. PoC Adj Factor Scoring'!$E$3:$AH$3,0)-1),MATCH(AA$2&\" Score\",'C. PoC Adj Factor Scoring'!$E$4:$J$4,0),TRUE)","v":3},{"$f":"VLOOKUP(OFFSET($B:$B,,MATCH(AB$4,$B$4:$F$4,0)-1),OFFSET('C. PoC Adj Factor Scoring'!$E$5:$J$282,,MATCH(AB$4,'C. PoC Adj Factor Scoring'!$E$3:$AH$3,0)-1),MATCH(AB$2&\" Score\",'C. PoC Adj Factor Scoring'!$E$4:$J$4,0),TRUE)","v":1},{"$f":"VLOOKUP(OFFSET($B:$B,,MATCH(AC$4,$B$4:$F$4,0)-1),OFFSET('C. PoC Adj Factor Scoring'!$E$5:$J$282,,MATCH(AC$4,'C. PoC Adj Factor Scoring'!$E$3:$AH$3,0)-1),MATCH(AC$2&\" Score\",'C. PoC Adj Factor Scoring'!$E$4:$J$4,0),TRUE)","v":1},{"$f":"VLOOKUP(OFFSET($B:$B,,MATCH(AD$4,$B$4:$F$4,0)-1),OFFSET('C. PoC Adj Factor Scoring'!$E$5:$J$282,,MATCH(AD$4,'C. PoC Adj Factor Scoring'!$E$3:$AH$3,0)-1),MATCH(AD$2&\" Score\",'C. PoC Adj Factor Scoring'!$E$4:$J$4,0),TRUE)","v":1},{"$f":"VLOOKUP(OFFSET($B:$B,,MATCH(AE$4,$B$4:$F$4,0)-1),OFFSET('C. PoC Adj Factor Scoring'!$E$5:$J$282,,MATCH(AE$4,'C. PoC Adj Factor Scoring'!$E$3:$AH$3,0)-1),MATCH(AE$2&\" Score\",'C. PoC Adj Factor Scoring'!$E$4:$J$4,0),TRUE)","v":1}]
[{"$f":"'A. Population Info'!A323","v":1000395446},{"$f":"'A. Population Info'!L323","v":"OIL"},{"$f":"'A. Population Info'!M323","v":0},{"$f":"'A. Population Info'!N323","v":0},{"$f":"'A. Population Info'!O323","v":0},{"$f":"'A. Population Info'!P323","v":0},{"$f":"VLOOKUP(OFFSET($B:$B,,MATCH(G$4,$B$4:$F$4,0)-1),OFFSET('C. PoC Adj Factor Scoring'!$E$5:$J$282,,MATCH(G$4,'C. PoC Adj Factor Scoring'!$E$3:$AH$3,0)-1),MATCH(G$2&\" Score\",'C. PoC Adj Factor Scoring'!$E$4:$J$4,0),TRUE)","v":4},{"$f":"VLOOKUP(OFFSET($B:$B,,MATCH(H$4,$B$4:$F$4,0)-1),OFFSET('C. PoC Adj Factor Scoring'!$E$5:$J$282,,MATCH(H$4,'C. PoC Adj Factor Scoring'!$E$3:$AH$3,0)-1),MATCH(H$2&\" Score\",'C. PoC Adj Factor Scoring'!$E$4:$J$4,0),TRUE)","v":1},{"$f":"VLOOKUP(OFFSET($B:$B,,MATCH(I$4,$B$4:$F$4,0)-1),OFFSET('C. PoC Adj Factor Scoring'!$E$5:$J$282,,MATCH(I$4,'C. PoC Adj Factor Scoring'!$E$3:$AH$3,0)-1),MATCH(I$2&\" Score\",'C. PoC Adj Factor Scoring'!$E$4:$J$4,0),TRUE)","v":1},{"$f":"VLOOKUP(OFFSET($B:$B,,MATCH(J$4,$B$4:$F$4,0)-1),OFFSET('C. PoC Adj Factor Scoring'!$E$5:$J$282,,MATCH(J$4,'C. PoC Adj Factor Scoring'!$E$3:$AH$3,0)-1),MATCH(J$2&\" Score\",'C. PoC Adj Factor Scoring'!$E$4:$J$4,0),TRUE)","v":1},{"$f":"VLOOKUP(OFFSET($B:$B,,MATCH(K$4,$B$4:$F$4,0)-1),OFFSET('C. PoC Adj Factor Scoring'!$E$5:$J$282,,MATCH(K$4,'C. PoC Adj Factor Scoring'!$E$3:$AH$3,0)-1),MATCH(K$2&\" Score\",'C. PoC Adj Factor Scoring'!$E$4:$J$4,0),TRUE)","v":1},{"$f":"VLOOKUP(OFFSET($B:$B,,MATCH(L$4,$B$4:$F$4,0)-1),OFFSET('C. PoC Adj Factor Scoring'!$E$5:$J$282,,MATCH(L$4,'C. PoC Adj Factor Scoring'!$E$3:$AH$3,0)-1),MATCH(L$2&\" Score\",'C. PoC Adj Factor Scoring'!$E$4:$J$4,0),TRUE)","v":1},{"$f":"VLOOKUP(OFFSET($B:$B,,MATCH(M$4,$B$4:$F$4,0)-1),OFFSET('C. PoC Adj Factor Scoring'!$E$5:$J$282,,MATCH(M$4,'C. PoC Adj Factor Scoring'!$E$3:$AH$3,0)-1),MATCH(M$2&\" Score\",'C. PoC Adj Factor Scoring'!$E$4:$J$4,0),TRUE)","v":1},{"$f":"VLOOKUP(OFFSET($B:$B,,MATCH(N$4,$B$4:$F$4,0)-1),OFFSET('C. PoC Adj Factor Scoring'!$E$5:$J$282,,MATCH(N$4,'C. PoC Adj Factor Scoring'!$E$3:$AH$3,0)-1),MATCH(N$2&\" Score\",'C. PoC Adj Factor Scoring'!$E$4:$J$4,0),TRUE)","v":1},{"$f":"VLOOKUP(OFFSET($B:$B,,MATCH(O$4,$B$4:$F$4,0)-1),OFFSET('C. PoC Adj Factor Scoring'!$E$5:$J$282,,MATCH(O$4,'C. PoC Adj Factor Scoring'!$E$3:$AH$3,0)-1),MATCH(O$2&\" Score\",'C. PoC Adj Factor Scoring'!$E$4:$J$4,0),TRUE)","v":1},{"$f":"VLOOKUP(OFFSET($B:$B,,MATCH(P$4,$B$4:$F$4,0)-1),OFFSET('C. PoC Adj Factor Scoring'!$E$5:$J$282,,MATCH(P$4,'C. PoC Adj Factor Scoring'!$E$3:$AH$3,0)-1),MATCH(P$2&\" Score\",'C. PoC Adj Factor Scoring'!$E$4:$J$4,0),TRUE)","v":1},{"$f":"VLOOKUP(OFFSET($B:$B,,MATCH(Q$4,$B$4:$F$4,0)-1),OFFSET('C. PoC Adj Factor Scoring'!$E$5:$J$282,,MATCH(Q$4,'C. PoC Adj Factor Scoring'!$E$3:$AH$3,0)-1),MATCH(Q$2&\" Score\",'C. PoC Adj Factor Scoring'!$E$4:$J$4,0),TRUE)","v":1},{"$f":"VLOOKUP(OFFSET($B:$B,,MATCH(R$4,$B$4:$F$4,0)-1),OFFSET('C. PoC Adj Factor Scoring'!$E$5:$J$282,,MATCH(R$4,'C. PoC Adj Factor Scoring'!$E$3:$AH$3,0)-1),MATCH(R$2&\" Score\",'C. PoC Adj Factor Scoring'!$E$4:$J$4,0),TRUE)","v":1},{"$f":"VLOOKUP(OFFSET($B:$B,,MATCH(S$4,$B$4:$F$4,0)-1),OFFSET('C. PoC Adj Factor Scoring'!$E$5:$J$282,,MATCH(S$4,'C. PoC Adj Factor Scoring'!$E$3:$AH$3,0)-1),MATCH(S$2&\" Score\",'C. PoC Adj Factor Scoring'!$E$4:$J$4,0),TRUE)","v":1},{"$f":"VLOOKUP(OFFSET($B:$B,,MATCH(T$4,$B$4:$F$4,0)-1),OFFSET('C. PoC Adj Factor Scoring'!$E$5:$J$282,,MATCH(T$4,'C. PoC Adj Factor Scoring'!$E$3:$AH$3,0)-1),MATCH(T$2&\" Score\",'C. PoC Adj Factor Scoring'!$E$4:$J$4,0),TRUE)","v":1},{"$f":"VLOOKUP(OFFSET($B:$B,,MATCH(U$4,$B$4:$F$4,0)-1),OFFSET('C. PoC Adj Factor Scoring'!$E$5:$J$282,,MATCH(U$4,'C. PoC Adj Factor Scoring'!$E$3:$AH$3,0)-1),MATCH(U$2&\" Score\",'C. PoC Adj Factor Scoring'!$E$4:$J$4,0),TRUE)","v":1},{"$f":"VLOOKUP(OFFSET($B:$B,,MATCH(V$4,$B$4:$F$4,0)-1),OFFSET('C. PoC Adj Factor Scoring'!$E$5:$J$282,,MATCH(V$4,'C. PoC Adj Factor Scoring'!$E$3:$AH$3,0)-1),MATCH(V$2&\" Score\",'C. PoC Adj Factor Scoring'!$E$4:$J$4,0),TRUE)","v":1},{"$f":"VLOOKUP(OFFSET($B:$B,,MATCH(W$4,$B$4:$F$4,0)-1),OFFSET('C. PoC Adj Factor Scoring'!$E$5:$J$282,,MATCH(W$4,'C. PoC Adj Factor Scoring'!$E$3:$AH$3,0)-1),MATCH(W$2&\" Score\",'C. PoC Adj Factor Scoring'!$E$4:$J$4,0),TRUE)","v":1},{"$f":"VLOOKUP(OFFSET($B:$B,,MATCH(X$4,$B$4:$F$4,0)-1),OFFSET('C. PoC Adj Factor Scoring'!$E$5:$J$282,,MATCH(X$4,'C. PoC Adj Factor Scoring'!$E$3:$AH$3,0)-1),MATCH(X$2&\" Score\",'C. PoC Adj Factor Scoring'!$E$4:$J$4,0),TRUE)","v":1},{"$f":"VLOOKUP(OFFSET($B:$B,,MATCH(Y$4,$B$4:$F$4,0)-1),OFFSET('C. PoC Adj Factor Scoring'!$E$5:$J$282,,MATCH(Y$4,'C. PoC Adj Factor Scoring'!$E$3:$AH$3,0)-1),MATCH(Y$2&\" Score\",'C. PoC Adj Factor Scoring'!$E$4:$J$4,0),TRUE)","v":1},{"$f":"VLOOKUP(OFFSET($B:$B,,MATCH(Z$4,$B$4:$F$4,0)-1),OFFSET('C. PoC Adj Factor Scoring'!$E$5:$J$282,,MATCH(Z$4,'C. PoC Adj Factor Scoring'!$E$3:$AH$3,0)-1),MATCH(Z$2&\" Score\",'C. PoC Adj Factor Scoring'!$E$4:$J$4,0),TRUE)","v":1},{"$f":"VLOOKUP(OFFSET($B:$B,,MATCH(AA$4,$B$4:$F$4,0)-1),OFFSET('C. PoC Adj Factor Scoring'!$E$5:$J$282,,MATCH(AA$4,'C. PoC Adj Factor Scoring'!$E$3:$AH$3,0)-1),MATCH(AA$2&\" Score\",'C. PoC Adj Factor Scoring'!$E$4:$J$4,0),TRUE)","v":3},{"$f":"VLOOKUP(OFFSET($B:$B,,MATCH(AB$4,$B$4:$F$4,0)-1),OFFSET('C. PoC Adj Factor Scoring'!$E$5:$J$282,,MATCH(AB$4,'C. PoC Adj Factor Scoring'!$E$3:$AH$3,0)-1),MATCH(AB$2&\" Score\",'C. PoC Adj Factor Scoring'!$E$4:$J$4,0),TRUE)","v":1},{"$f":"VLOOKUP(OFFSET($B:$B,,MATCH(AC$4,$B$4:$F$4,0)-1),OFFSET('C. PoC Adj Factor Scoring'!$E$5:$J$282,,MATCH(AC$4,'C. PoC Adj Factor Scoring'!$E$3:$AH$3,0)-1),MATCH(AC$2&\" Score\",'C. PoC Adj Factor Scoring'!$E$4:$J$4,0),TRUE)","v":1},{"$f":"VLOOKUP(OFFSET($B:$B,,MATCH(AD$4,$B$4:$F$4,0)-1),OFFSET('C. PoC Adj Factor Scoring'!$E$5:$J$282,,MATCH(AD$4,'C. PoC Adj Factor Scoring'!$E$3:$AH$3,0)-1),MATCH(AD$2&\" Score\",'C. PoC Adj Factor Scoring'!$E$4:$J$4,0),TRUE)","v":1},{"$f":"VLOOKUP(OFFSET($B:$B,,MATCH(AE$4,$B$4:$F$4,0)-1),OFFSET('C. PoC Adj Factor Scoring'!$E$5:$J$282,,MATCH(AE$4,'C. PoC Adj Factor Scoring'!$E$3:$AH$3,0)-1),MATCH(AE$2&\" Score\",'C. PoC Adj Factor Scoring'!$E$4:$J$4,0),TRUE)","v":1}]
[{"$f":"'A. Population Info'!A324","v":1000395463},{"$f":"'A. Population Info'!L324","v":"OIL"},{"$f":"'A. Population Info'!M324","v":0},{"$f":"'A. Population Info'!N324","v":0},{"$f":"'A. Population Info'!O324","v":0},{"$f":"'A. Population Info'!P324","v":0},{"$f":"VLOOKUP(OFFSET($B:$B,,MATCH(G$4,$B$4:$F$4,0)-1),OFFSET('C. PoC Adj Factor Scoring'!$E$5:$J$282,,MATCH(G$4,'C. PoC Adj Factor Scoring'!$E$3:$AH$3,0)-1),MATCH(G$2&\" Score\",'C. PoC Adj Factor Scoring'!$E$4:$J$4,0),TRUE)","v":4},{"$f":"VLOOKUP(OFFSET($B:$B,,MATCH(H$4,$B$4:$F$4,0)-1),OFFSET('C. PoC Adj Factor Scoring'!$E$5:$J$282,,MATCH(H$4,'C. PoC Adj Factor Scoring'!$E$3:$AH$3,0)-1),MATCH(H$2&\" Score\",'C. PoC Adj Factor Scoring'!$E$4:$J$4,0),TRUE)","v":1},{"$f":"VLOOKUP(OFFSET($B:$B,,MATCH(I$4,$B$4:$F$4,0)-1),OFFSET('C. PoC Adj Factor Scoring'!$E$5:$J$282,,MATCH(I$4,'C. PoC Adj Factor Scoring'!$E$3:$AH$3,0)-1),MATCH(I$2&\" Score\",'C. PoC Adj Factor Scoring'!$E$4:$J$4,0),TRUE)","v":1},{"$f":"VLOOKUP(OFFSET($B:$B,,MATCH(J$4,$B$4:$F$4,0)-1),OFFSET('C. PoC Adj Factor Scoring'!$E$5:$J$282,,MATCH(J$4,'C. PoC Adj Factor Scoring'!$E$3:$AH$3,0)-1),MATCH(J$2&\" Score\",'C. PoC Adj Factor Scoring'!$E$4:$J$4,0),TRUE)","v":1},{"$f":"VLOOKUP(OFFSET($B:$B,,MATCH(K$4,$B$4:$F$4,0)-1),OFFSET('C. PoC Adj Factor Scoring'!$E$5:$J$282,,MATCH(K$4,'C. PoC Adj Factor Scoring'!$E$3:$AH$3,0)-1),MATCH(K$2&\" Score\",'C. PoC Adj Factor Scoring'!$E$4:$J$4,0),TRUE)","v":1},{"$f":"VLOOKUP(OFFSET($B:$B,,MATCH(L$4,$B$4:$F$4,0)-1),OFFSET('C. PoC Adj Factor Scoring'!$E$5:$J$282,,MATCH(L$4,'C. PoC Adj Factor Scoring'!$E$3:$AH$3,0)-1),MATCH(L$2&\" Score\",'C. PoC Adj Factor Scoring'!$E$4:$J$4,0),TRUE)","v":1},{"$f":"VLOOKUP(OFFSET($B:$B,,MATCH(M$4,$B$4:$F$4,0)-1),OFFSET('C. PoC Adj Factor Scoring'!$E$5:$J$282,,MATCH(M$4,'C. PoC Adj Factor Scoring'!$E$3:$AH$3,0)-1),MATCH(M$2&\" Score\",'C. PoC Adj Factor Scoring'!$E$4:$J$4,0),TRUE)","v":1},{"$f":"VLOOKUP(OFFSET($B:$B,,MATCH(N$4,$B$4:$F$4,0)-1),OFFSET('C. PoC Adj Factor Scoring'!$E$5:$J$282,,MATCH(N$4,'C. PoC Adj Factor Scoring'!$E$3:$AH$3,0)-1),MATCH(N$2&\" Score\",'C. PoC Adj Factor Scoring'!$E$4:$J$4,0),TRUE)","v":1},{"$f":"VLOOKUP(OFFSET($B:$B,,MATCH(O$4,$B$4:$F$4,0)-1),OFFSET('C. PoC Adj Factor Scoring'!$E$5:$J$282,,MATCH(O$4,'C. PoC Adj Factor Scoring'!$E$3:$AH$3,0)-1),MATCH(O$2&\" Score\",'C. PoC Adj Factor Scoring'!$E$4:$J$4,0),TRUE)","v":1},{"$f":"VLOOKUP(OFFSET($B:$B,,MATCH(P$4,$B$4:$F$4,0)-1),OFFSET('C. PoC Adj Factor Scoring'!$E$5:$J$282,,MATCH(P$4,'C. PoC Adj Factor Scoring'!$E$3:$AH$3,0)-1),MATCH(P$2&\" Score\",'C. PoC Adj Factor Scoring'!$E$4:$J$4,0),TRUE)","v":1},{"$f":"VLOOKUP(OFFSET($B:$B,,MATCH(Q$4,$B$4:$F$4,0)-1),OFFSET('C. PoC Adj Factor Scoring'!$E$5:$J$282,,MATCH(Q$4,'C. PoC Adj Factor Scoring'!$E$3:$AH$3,0)-1),MATCH(Q$2&\" Score\",'C. PoC Adj Factor Scoring'!$E$4:$J$4,0),TRUE)","v":1},{"$f":"VLOOKUP(OFFSET($B:$B,,MATCH(R$4,$B$4:$F$4,0)-1),OFFSET('C. PoC Adj Factor Scoring'!$E$5:$J$282,,MATCH(R$4,'C. PoC Adj Factor Scoring'!$E$3:$AH$3,0)-1),MATCH(R$2&\" Score\",'C. PoC Adj Factor Scoring'!$E$4:$J$4,0),TRUE)","v":1},{"$f":"VLOOKUP(OFFSET($B:$B,,MATCH(S$4,$B$4:$F$4,0)-1),OFFSET('C. PoC Adj Factor Scoring'!$E$5:$J$282,,MATCH(S$4,'C. PoC Adj Factor Scoring'!$E$3:$AH$3,0)-1),MATCH(S$2&\" Score\",'C. PoC Adj Factor Scoring'!$E$4:$J$4,0),TRUE)","v":1},{"$f":"VLOOKUP(OFFSET($B:$B,,MATCH(T$4,$B$4:$F$4,0)-1),OFFSET('C. PoC Adj Factor Scoring'!$E$5:$J$282,,MATCH(T$4,'C. PoC Adj Factor Scoring'!$E$3:$AH$3,0)-1),MATCH(T$2&\" Score\",'C. PoC Adj Factor Scoring'!$E$4:$J$4,0),TRUE)","v":1},{"$f":"VLOOKUP(OFFSET($B:$B,,MATCH(U$4,$B$4:$F$4,0)-1),OFFSET('C. PoC Adj Factor Scoring'!$E$5:$J$282,,MATCH(U$4,'C. PoC Adj Factor Scoring'!$E$3:$AH$3,0)-1),MATCH(U$2&\" Score\",'C. PoC Adj Factor Scoring'!$E$4:$J$4,0),TRUE)","v":1},{"$f":"VLOOKUP(OFFSET($B:$B,,MATCH(V$4,$B$4:$F$4,0)-1),OFFSET('C. PoC Adj Factor Scoring'!$E$5:$J$282,,MATCH(V$4,'C. PoC Adj Factor Scoring'!$E$3:$AH$3,0)-1),MATCH(V$2&\" Score\",'C. PoC Adj Factor Scoring'!$E$4:$J$4,0),TRUE)","v":1},{"$f":"VLOOKUP(OFFSET($B:$B,,MATCH(W$4,$B$4:$F$4,0)-1),OFFSET('C. PoC Adj Factor Scoring'!$E$5:$J$282,,MATCH(W$4,'C. PoC Adj Factor Scoring'!$E$3:$AH$3,0)-1),MATCH(W$2&\" Score\",'C. PoC Adj Factor Scoring'!$E$4:$J$4,0),TRUE)","v":1},{"$f":"VLOOKUP(OFFSET($B:$B,,MATCH(X$4,$B$4:$F$4,0)-1),OFFSET('C. PoC Adj Factor Scoring'!$E$5:$J$282,,MATCH(X$4,'C. PoC Adj Factor Scoring'!$E$3:$AH$3,0)-1),MATCH(X$2&\" Score\",'C. PoC Adj Factor Scoring'!$E$4:$J$4,0),TRUE)","v":1},{"$f":"VLOOKUP(OFFSET($B:$B,,MATCH(Y$4,$B$4:$F$4,0)-1),OFFSET('C. PoC Adj Factor Scoring'!$E$5:$J$282,,MATCH(Y$4,'C. PoC Adj Factor Scoring'!$E$3:$AH$3,0)-1),MATCH(Y$2&\" Score\",'C. PoC Adj Factor Scoring'!$E$4:$J$4,0),TRUE)","v":1},{"$f":"VLOOKUP(OFFSET($B:$B,,MATCH(Z$4,$B$4:$F$4,0)-1),OFFSET('C. PoC Adj Factor Scoring'!$E$5:$J$282,,MATCH(Z$4,'C. PoC Adj Factor Scoring'!$E$3:$AH$3,0)-1),MATCH(Z$2&\" Score\",'C. PoC Adj Factor Scoring'!$E$4:$J$4,0),TRUE)","v":1},{"$f":"VLOOKUP(OFFSET($B:$B,,MATCH(AA$4,$B$4:$F$4,0)-1),OFFSET('C. PoC Adj Factor Scoring'!$E$5:$J$282,,MATCH(AA$4,'C. PoC Adj Factor Scoring'!$E$3:$AH$3,0)-1),MATCH(AA$2&\" Score\",'C. PoC Adj Factor Scoring'!$E$4:$J$4,0),TRUE)","v":3},{"$f":"VLOOKUP(OFFSET($B:$B,,MATCH(AB$4,$B$4:$F$4,0)-1),OFFSET('C. PoC Adj Factor Scoring'!$E$5:$J$282,,MATCH(AB$4,'C. PoC Adj Factor Scoring'!$E$3:$AH$3,0)-1),MATCH(AB$2&\" Score\",'C. PoC Adj Factor Scoring'!$E$4:$J$4,0),TRUE)","v":1},{"$f":"VLOOKUP(OFFSET($B:$B,,MATCH(AC$4,$B$4:$F$4,0)-1),OFFSET('C. PoC Adj Factor Scoring'!$E$5:$J$282,,MATCH(AC$4,'C. PoC Adj Factor Scoring'!$E$3:$AH$3,0)-1),MATCH(AC$2&\" Score\",'C. PoC Adj Factor Scoring'!$E$4:$J$4,0),TRUE)","v":1},{"$f":"VLOOKUP(OFFSET($B:$B,,MATCH(AD$4,$B$4:$F$4,0)-1),OFFSET('C. PoC Adj Factor Scoring'!$E$5:$J$282,,MATCH(AD$4,'C. PoC Adj Factor Scoring'!$E$3:$AH$3,0)-1),MATCH(AD$2&\" Score\",'C. PoC Adj Factor Scoring'!$E$4:$J$4,0),TRUE)","v":1},{"$f":"VLOOKUP(OFFSET($B:$B,,MATCH(AE$4,$B$4:$F$4,0)-1),OFFSET('C. PoC Adj Factor Scoring'!$E$5:$J$282,,MATCH(AE$4,'C. PoC Adj Factor Scoring'!$E$3:$AH$3,0)-1),MATCH(AE$2&\" Score\",'C. PoC Adj Factor Scoring'!$E$4:$J$4,0),TRUE)","v":1}]
[{"$f":"'A. Population Info'!A325","v":1000395483},{"$f":"'A. Population Info'!L325","v":"OIL"},{"$f":"'A. Population Info'!M325","v":0},{"$f":"'A. Population Info'!N325","v":0},{"$f":"'A. Population Info'!O325","v":0},{"$f":"'A. Population Info'!P325","v":0},{"$f":"VLOOKUP(OFFSET($B:$B,,MATCH(G$4,$B$4:$F$4,0)-1),OFFSET('C. PoC Adj Factor Scoring'!$E$5:$J$282,,MATCH(G$4,'C. PoC Adj Factor Scoring'!$E$3:$AH$3,0)-1),MATCH(G$2&\" Score\",'C. PoC Adj Factor Scoring'!$E$4:$J$4,0),TRUE)","v":4},{"$f":"VLOOKUP(OFFSET($B:$B,,MATCH(H$4,$B$4:$F$4,0)-1),OFFSET('C. PoC Adj Factor Scoring'!$E$5:$J$282,,MATCH(H$4,'C. PoC Adj Factor Scoring'!$E$3:$AH$3,0)-1),MATCH(H$2&\" Score\",'C. PoC Adj Factor Scoring'!$E$4:$J$4,0),TRUE)","v":1},{"$f":"VLOOKUP(OFFSET($B:$B,,MATCH(I$4,$B$4:$F$4,0)-1),OFFSET('C. PoC Adj Factor Scoring'!$E$5:$J$282,,MATCH(I$4,'C. PoC Adj Factor Scoring'!$E$3:$AH$3,0)-1),MATCH(I$2&\" Score\",'C. PoC Adj Factor Scoring'!$E$4:$J$4,0),TRUE)","v":1},{"$f":"VLOOKUP(OFFSET($B:$B,,MATCH(J$4,$B$4:$F$4,0)-1),OFFSET('C. PoC Adj Factor Scoring'!$E$5:$J$282,,MATCH(J$4,'C. PoC Adj Factor Scoring'!$E$3:$AH$3,0)-1),MATCH(J$2&\" Score\",'C. PoC Adj Factor Scoring'!$E$4:$J$4,0),TRUE)","v":1},{"$f":"VLOOKUP(OFFSET($B:$B,,MATCH(K$4,$B$4:$F$4,0)-1),OFFSET('C. PoC Adj Factor Scoring'!$E$5:$J$282,,MATCH(K$4,'C. PoC Adj Factor Scoring'!$E$3:$AH$3,0)-1),MATCH(K$2&\" Score\",'C. PoC Adj Factor Scoring'!$E$4:$J$4,0),TRUE)","v":1},{"$f":"VLOOKUP(OFFSET($B:$B,,MATCH(L$4,$B$4:$F$4,0)-1),OFFSET('C. PoC Adj Factor Scoring'!$E$5:$J$282,,MATCH(L$4,'C. PoC Adj Factor Scoring'!$E$3:$AH$3,0)-1),MATCH(L$2&\" Score\",'C. PoC Adj Factor Scoring'!$E$4:$J$4,0),TRUE)","v":1},{"$f":"VLOOKUP(OFFSET($B:$B,,MATCH(M$4,$B$4:$F$4,0)-1),OFFSET('C. PoC Adj Factor Scoring'!$E$5:$J$282,,MATCH(M$4,'C. PoC Adj Factor Scoring'!$E$3:$AH$3,0)-1),MATCH(M$2&\" Score\",'C. PoC Adj Factor Scoring'!$E$4:$J$4,0),TRUE)","v":1},{"$f":"VLOOKUP(OFFSET($B:$B,,MATCH(N$4,$B$4:$F$4,0)-1),OFFSET('C. PoC Adj Factor Scoring'!$E$5:$J$282,,MATCH(N$4,'C. PoC Adj Factor Scoring'!$E$3:$AH$3,0)-1),MATCH(N$2&\" Score\",'C. PoC Adj Factor Scoring'!$E$4:$J$4,0),TRUE)","v":1},{"$f":"VLOOKUP(OFFSET($B:$B,,MATCH(O$4,$B$4:$F$4,0)-1),OFFSET('C. PoC Adj Factor Scoring'!$E$5:$J$282,,MATCH(O$4,'C. PoC Adj Factor Scoring'!$E$3:$AH$3,0)-1),MATCH(O$2&\" Score\",'C. PoC Adj Factor Scoring'!$E$4:$J$4,0),TRUE)","v":1},{"$f":"VLOOKUP(OFFSET($B:$B,,MATCH(P$4,$B$4:$F$4,0)-1),OFFSET('C. PoC Adj Factor Scoring'!$E$5:$J$282,,MATCH(P$4,'C. PoC Adj Factor Scoring'!$E$3:$AH$3,0)-1),MATCH(P$2&\" Score\",'C. PoC Adj Factor Scoring'!$E$4:$J$4,0),TRUE)","v":1},{"$f":"VLOOKUP(OFFSET($B:$B,,MATCH(Q$4,$B$4:$F$4,0)-1),OFFSET('C. PoC Adj Factor Scoring'!$E$5:$J$282,,MATCH(Q$4,'C. PoC Adj Factor Scoring'!$E$3:$AH$3,0)-1),MATCH(Q$2&\" Score\",'C. PoC Adj Factor Scoring'!$E$4:$J$4,0),TRUE)","v":1},{"$f":"VLOOKUP(OFFSET($B:$B,,MATCH(R$4,$B$4:$F$4,0)-1),OFFSET('C. PoC Adj Factor Scoring'!$E$5:$J$282,,MATCH(R$4,'C. PoC Adj Factor Scoring'!$E$3:$AH$3,0)-1),MATCH(R$2&\" Score\",'C. PoC Adj Factor Scoring'!$E$4:$J$4,0),TRUE)","v":1},{"$f":"VLOOKUP(OFFSET($B:$B,,MATCH(S$4,$B$4:$F$4,0)-1),OFFSET('C. PoC Adj Factor Scoring'!$E$5:$J$282,,MATCH(S$4,'C. PoC Adj Factor Scoring'!$E$3:$AH$3,0)-1),MATCH(S$2&\" Score\",'C. PoC Adj Factor Scoring'!$E$4:$J$4,0),TRUE)","v":1},{"$f":"VLOOKUP(OFFSET($B:$B,,MATCH(T$4,$B$4:$F$4,0)-1),OFFSET('C. PoC Adj Factor Scoring'!$E$5:$J$282,,MATCH(T$4,'C. PoC Adj Factor Scoring'!$E$3:$AH$3,0)-1),MATCH(T$2&\" Score\",'C. PoC Adj Factor Scoring'!$E$4:$J$4,0),TRUE)","v":1},{"$f":"VLOOKUP(OFFSET($B:$B,,MATCH(U$4,$B$4:$F$4,0)-1),OFFSET('C. PoC Adj Factor Scoring'!$E$5:$J$282,,MATCH(U$4,'C. PoC Adj Factor Scoring'!$E$3:$AH$3,0)-1),MATCH(U$2&\" Score\",'C. PoC Adj Factor Scoring'!$E$4:$J$4,0),TRUE)","v":1},{"$f":"VLOOKUP(OFFSET($B:$B,,MATCH(V$4,$B$4:$F$4,0)-1),OFFSET('C. PoC Adj Factor Scoring'!$E$5:$J$282,,MATCH(V$4,'C. PoC Adj Factor Scoring'!$E$3:$AH$3,0)-1),MATCH(V$2&\" Score\",'C. PoC Adj Factor Scoring'!$E$4:$J$4,0),TRUE)","v":1},{"$f":"VLOOKUP(OFFSET($B:$B,,MATCH(W$4,$B$4:$F$4,0)-1),OFFSET('C. PoC Adj Factor Scoring'!$E$5:$J$282,,MATCH(W$4,'C. PoC Adj Factor Scoring'!$E$3:$AH$3,0)-1),MATCH(W$2&\" Score\",'C. PoC Adj Factor Scoring'!$E$4:$J$4,0),TRUE)","v":1},{"$f":"VLOOKUP(OFFSET($B:$B,,MATCH(X$4,$B$4:$F$4,0)-1),OFFSET('C. PoC Adj Factor Scoring'!$E$5:$J$282,,MATCH(X$4,'C. PoC Adj Factor Scoring'!$E$3:$AH$3,0)-1),MATCH(X$2&\" Score\",'C. PoC Adj Factor Scoring'!$E$4:$J$4,0),TRUE)","v":1},{"$f":"VLOOKUP(OFFSET($B:$B,,MATCH(Y$4,$B$4:$F$4,0)-1),OFFSET('C. PoC Adj Factor Scoring'!$E$5:$J$282,,MATCH(Y$4,'C. PoC Adj Factor Scoring'!$E$3:$AH$3,0)-1),MATCH(Y$2&\" Score\",'C. PoC Adj Factor Scoring'!$E$4:$J$4,0),TRUE)","v":1},{"$f":"VLOOKUP(OFFSET($B:$B,,MATCH(Z$4,$B$4:$F$4,0)-1),OFFSET('C. PoC Adj Factor Scoring'!$E$5:$J$282,,MATCH(Z$4,'C. PoC Adj Factor Scoring'!$E$3:$AH$3,0)-1),MATCH(Z$2&\" Score\",'C. PoC Adj Factor Scoring'!$E$4:$J$4,0),TRUE)","v":1},{"$f":"VLOOKUP(OFFSET($B:$B,,MATCH(AA$4,$B$4:$F$4,0)-1),OFFSET('C. PoC Adj Factor Scoring'!$E$5:$J$282,,MATCH(AA$4,'C. PoC Adj Factor Scoring'!$E$3:$AH$3,0)-1),MATCH(AA$2&\" Score\",'C. PoC Adj Factor Scoring'!$E$4:$J$4,0),TRUE)","v":3},{"$f":"VLOOKUP(OFFSET($B:$B,,MATCH(AB$4,$B$4:$F$4,0)-1),OFFSET('C. PoC Adj Factor Scoring'!$E$5:$J$282,,MATCH(AB$4,'C. PoC Adj Factor Scoring'!$E$3:$AH$3,0)-1),MATCH(AB$2&\" Score\",'C. PoC Adj Factor Scoring'!$E$4:$J$4,0),TRUE)","v":1},{"$f":"VLOOKUP(OFFSET($B:$B,,MATCH(AC$4,$B$4:$F$4,0)-1),OFFSET('C. PoC Adj Factor Scoring'!$E$5:$J$282,,MATCH(AC$4,'C. PoC Adj Factor Scoring'!$E$3:$AH$3,0)-1),MATCH(AC$2&\" Score\",'C. PoC Adj Factor Scoring'!$E$4:$J$4,0),TRUE)","v":1},{"$f":"VLOOKUP(OFFSET($B:$B,,MATCH(AD$4,$B$4:$F$4,0)-1),OFFSET('C. PoC Adj Factor Scoring'!$E$5:$J$282,,MATCH(AD$4,'C. PoC Adj Factor Scoring'!$E$3:$AH$3,0)-1),MATCH(AD$2&\" Score\",'C. PoC Adj Factor Scoring'!$E$4:$J$4,0),TRUE)","v":1},{"$f":"VLOOKUP(OFFSET($B:$B,,MATCH(AE$4,$B$4:$F$4,0)-1),OFFSET('C. PoC Adj Factor Scoring'!$E$5:$J$282,,MATCH(AE$4,'C. PoC Adj Factor Scoring'!$E$3:$AH$3,0)-1),MATCH(AE$2&\" Score\",'C. PoC Adj Factor Scoring'!$E$4:$J$4,0),TRUE)","v":1}]
[{"$f":"'A. Population Info'!A326","v":1000395500},{"$f":"'A. Population Info'!L326","v":"OIL"},{"$f":"'A. Population Info'!M326","v":0},{"$f":"'A. Population Info'!N326","v":0},{"$f":"'A. Population Info'!O326","v":0},{"$f":"'A. Population Info'!P326","v":0},{"$f":"VLOOKUP(OFFSET($B:$B,,MATCH(G$4,$B$4:$F$4,0)-1),OFFSET('C. PoC Adj Factor Scoring'!$E$5:$J$282,,MATCH(G$4,'C. PoC Adj Factor Scoring'!$E$3:$AH$3,0)-1),MATCH(G$2&\" Score\",'C. PoC Adj Factor Scoring'!$E$4:$J$4,0),TRUE)","v":4},{"$f":"VLOOKUP(OFFSET($B:$B,,MATCH(H$4,$B$4:$F$4,0)-1),OFFSET('C. PoC Adj Factor Scoring'!$E$5:$J$282,,MATCH(H$4,'C. PoC Adj Factor Scoring'!$E$3:$AH$3,0)-1),MATCH(H$2&\" Score\",'C. PoC Adj Factor Scoring'!$E$4:$J$4,0),TRUE)","v":1},{"$f":"VLOOKUP(OFFSET($B:$B,,MATCH(I$4,$B$4:$F$4,0)-1),OFFSET('C. PoC Adj Factor Scoring'!$E$5:$J$282,,MATCH(I$4,'C. PoC Adj Factor Scoring'!$E$3:$AH$3,0)-1),MATCH(I$2&\" Score\",'C. PoC Adj Factor Scoring'!$E$4:$J$4,0),TRUE)","v":1},{"$f":"VLOOKUP(OFFSET($B:$B,,MATCH(J$4,$B$4:$F$4,0)-1),OFFSET('C. PoC Adj Factor Scoring'!$E$5:$J$282,,MATCH(J$4,'C. PoC Adj Factor Scoring'!$E$3:$AH$3,0)-1),MATCH(J$2&\" Score\",'C. PoC Adj Factor Scoring'!$E$4:$J$4,0),TRUE)","v":1},{"$f":"VLOOKUP(OFFSET($B:$B,,MATCH(K$4,$B$4:$F$4,0)-1),OFFSET('C. PoC Adj Factor Scoring'!$E$5:$J$282,,MATCH(K$4,'C. PoC Adj Factor Scoring'!$E$3:$AH$3,0)-1),MATCH(K$2&\" Score\",'C. PoC Adj Factor Scoring'!$E$4:$J$4,0),TRUE)","v":1},{"$f":"VLOOKUP(OFFSET($B:$B,,MATCH(L$4,$B$4:$F$4,0)-1),OFFSET('C. PoC Adj Factor Scoring'!$E$5:$J$282,,MATCH(L$4,'C. PoC Adj Factor Scoring'!$E$3:$AH$3,0)-1),MATCH(L$2&\" Score\",'C. PoC Adj Factor Scoring'!$E$4:$J$4,0),TRUE)","v":1},{"$f":"VLOOKUP(OFFSET($B:$B,,MATCH(M$4,$B$4:$F$4,0)-1),OFFSET('C. PoC Adj Factor Scoring'!$E$5:$J$282,,MATCH(M$4,'C. PoC Adj Factor Scoring'!$E$3:$AH$3,0)-1),MATCH(M$2&\" Score\",'C. PoC Adj Factor Scoring'!$E$4:$J$4,0),TRUE)","v":1},{"$f":"VLOOKUP(OFFSET($B:$B,,MATCH(N$4,$B$4:$F$4,0)-1),OFFSET('C. PoC Adj Factor Scoring'!$E$5:$J$282,,MATCH(N$4,'C. PoC Adj Factor Scoring'!$E$3:$AH$3,0)-1),MATCH(N$2&\" Score\",'C. PoC Adj Factor Scoring'!$E$4:$J$4,0),TRUE)","v":1},{"$f":"VLOOKUP(OFFSET($B:$B,,MATCH(O$4,$B$4:$F$4,0)-1),OFFSET('C. PoC Adj Factor Scoring'!$E$5:$J$282,,MATCH(O$4,'C. PoC Adj Factor Scoring'!$E$3:$AH$3,0)-1),MATCH(O$2&\" Score\",'C. PoC Adj Factor Scoring'!$E$4:$J$4,0),TRUE)","v":1},{"$f":"VLOOKUP(OFFSET($B:$B,,MATCH(P$4,$B$4:$F$4,0)-1),OFFSET('C. PoC Adj Factor Scoring'!$E$5:$J$282,,MATCH(P$4,'C. PoC Adj Factor Scoring'!$E$3:$AH$3,0)-1),MATCH(P$2&\" Score\",'C. PoC Adj Factor Scoring'!$E$4:$J$4,0),TRUE)","v":1},{"$f":"VLOOKUP(OFFSET($B:$B,,MATCH(Q$4,$B$4:$F$4,0)-1),OFFSET('C. PoC Adj Factor Scoring'!$E$5:$J$282,,MATCH(Q$4,'C. PoC Adj Factor Scoring'!$E$3:$AH$3,0)-1),MATCH(Q$2&\" Score\",'C. PoC Adj Factor Scoring'!$E$4:$J$4,0),TRUE)","v":1},{"$f":"VLOOKUP(OFFSET($B:$B,,MATCH(R$4,$B$4:$F$4,0)-1),OFFSET('C. PoC Adj Factor Scoring'!$E$5:$J$282,,MATCH(R$4,'C. PoC Adj Factor Scoring'!$E$3:$AH$3,0)-1),MATCH(R$2&\" Score\",'C. PoC Adj Factor Scoring'!$E$4:$J$4,0),TRUE)","v":1},{"$f":"VLOOKUP(OFFSET($B:$B,,MATCH(S$4,$B$4:$F$4,0)-1),OFFSET('C. PoC Adj Factor Scoring'!$E$5:$J$282,,MATCH(S$4,'C. PoC Adj Factor Scoring'!$E$3:$AH$3,0)-1),MATCH(S$2&\" Score\",'C. PoC Adj Factor Scoring'!$E$4:$J$4,0),TRUE)","v":1},{"$f":"VLOOKUP(OFFSET($B:$B,,MATCH(T$4,$B$4:$F$4,0)-1),OFFSET('C. PoC Adj Factor Scoring'!$E$5:$J$282,,MATCH(T$4,'C. PoC Adj Factor Scoring'!$E$3:$AH$3,0)-1),MATCH(T$2&\" Score\",'C. PoC Adj Factor Scoring'!$E$4:$J$4,0),TRUE)","v":1},{"$f":"VLOOKUP(OFFSET($B:$B,,MATCH(U$4,$B$4:$F$4,0)-1),OFFSET('C. PoC Adj Factor Scoring'!$E$5:$J$282,,MATCH(U$4,'C. PoC Adj Factor Scoring'!$E$3:$AH$3,0)-1),MATCH(U$2&\" Score\",'C. PoC Adj Factor Scoring'!$E$4:$J$4,0),TRUE)","v":1},{"$f":"VLOOKUP(OFFSET($B:$B,,MATCH(V$4,$B$4:$F$4,0)-1),OFFSET('C. PoC Adj Factor Scoring'!$E$5:$J$282,,MATCH(V$4,'C. PoC Adj Factor Scoring'!$E$3:$AH$3,0)-1),MATCH(V$2&\" Score\",'C. PoC Adj Factor Scoring'!$E$4:$J$4,0),TRUE)","v":1},{"$f":"VLOOKUP(OFFSET($B:$B,,MATCH(W$4,$B$4:$F$4,0)-1),OFFSET('C. PoC Adj Factor Scoring'!$E$5:$J$282,,MATCH(W$4,'C. PoC Adj Factor Scoring'!$E$3:$AH$3,0)-1),MATCH(W$2&\" Score\",'C. PoC Adj Factor Scoring'!$E$4:$J$4,0),TRUE)","v":1},{"$f":"VLOOKUP(OFFSET($B:$B,,MATCH(X$4,$B$4:$F$4,0)-1),OFFSET('C. PoC Adj Factor Scoring'!$E$5:$J$282,,MATCH(X$4,'C. PoC Adj Factor Scoring'!$E$3:$AH$3,0)-1),MATCH(X$2&\" Score\",'C. PoC Adj Factor Scoring'!$E$4:$J$4,0),TRUE)","v":1},{"$f":"VLOOKUP(OFFSET($B:$B,,MATCH(Y$4,$B$4:$F$4,0)-1),OFFSET('C. PoC Adj Factor Scoring'!$E$5:$J$282,,MATCH(Y$4,'C. PoC Adj Factor Scoring'!$E$3:$AH$3,0)-1),MATCH(Y$2&\" Score\",'C. PoC Adj Factor Scoring'!$E$4:$J$4,0),TRUE)","v":1},{"$f":"VLOOKUP(OFFSET($B:$B,,MATCH(Z$4,$B$4:$F$4,0)-1),OFFSET('C. PoC Adj Factor Scoring'!$E$5:$J$282,,MATCH(Z$4,'C. PoC Adj Factor Scoring'!$E$3:$AH$3,0)-1),MATCH(Z$2&\" Score\",'C. PoC Adj Factor Scoring'!$E$4:$J$4,0),TRUE)","v":1},{"$f":"VLOOKUP(OFFSET($B:$B,,MATCH(AA$4,$B$4:$F$4,0)-1),OFFSET('C. PoC Adj Factor Scoring'!$E$5:$J$282,,MATCH(AA$4,'C. PoC Adj Factor Scoring'!$E$3:$AH$3,0)-1),MATCH(AA$2&\" Score\",'C. PoC Adj Factor Scoring'!$E$4:$J$4,0),TRUE)","v":3},{"$f":"VLOOKUP(OFFSET($B:$B,,MATCH(AB$4,$B$4:$F$4,0)-1),OFFSET('C. PoC Adj Factor Scoring'!$E$5:$J$282,,MATCH(AB$4,'C. PoC Adj Factor Scoring'!$E$3:$AH$3,0)-1),MATCH(AB$2&\" Score\",'C. PoC Adj Factor Scoring'!$E$4:$J$4,0),TRUE)","v":1},{"$f":"VLOOKUP(OFFSET($B:$B,,MATCH(AC$4,$B$4:$F$4,0)-1),OFFSET('C. PoC Adj Factor Scoring'!$E$5:$J$282,,MATCH(AC$4,'C. PoC Adj Factor Scoring'!$E$3:$AH$3,0)-1),MATCH(AC$2&\" Score\",'C. PoC Adj Factor Scoring'!$E$4:$J$4,0),TRUE)","v":1},{"$f":"VLOOKUP(OFFSET($B:$B,,MATCH(AD$4,$B$4:$F$4,0)-1),OFFSET('C. PoC Adj Factor Scoring'!$E$5:$J$282,,MATCH(AD$4,'C. PoC Adj Factor Scoring'!$E$3:$AH$3,0)-1),MATCH(AD$2&\" Score\",'C. PoC Adj Factor Scoring'!$E$4:$J$4,0),TRUE)","v":1},{"$f":"VLOOKUP(OFFSET($B:$B,,MATCH(AE$4,$B$4:$F$4,0)-1),OFFSET('C. PoC Adj Factor Scoring'!$E$5:$J$282,,MATCH(AE$4,'C. PoC Adj Factor Scoring'!$E$3:$AH$3,0)-1),MATCH(AE$2&\" Score\",'C. PoC Adj Factor Scoring'!$E$4:$J$4,0),TRUE)","v":1}]
[{"$f":"'A. Population Info'!A327","v":1000395521},{"$f":"'A. Population Info'!L327","v":"OIL"},{"$f":"'A. Population Info'!M327","v":0},{"$f":"'A. Population Info'!N327","v":0},{"$f":"'A. Population Info'!O327","v":0},{"$f":"'A. Population Info'!P327","v":0},{"$f":"VLOOKUP(OFFSET($B:$B,,MATCH(G$4,$B$4:$F$4,0)-1),OFFSET('C. PoC Adj Factor Scoring'!$E$5:$J$282,,MATCH(G$4,'C. PoC Adj Factor Scoring'!$E$3:$AH$3,0)-1),MATCH(G$2&\" Score\",'C. PoC Adj Factor Scoring'!$E$4:$J$4,0),TRUE)","v":4},{"$f":"VLOOKUP(OFFSET($B:$B,,MATCH(H$4,$B$4:$F$4,0)-1),OFFSET('C. PoC Adj Factor Scoring'!$E$5:$J$282,,MATCH(H$4,'C. PoC Adj Factor Scoring'!$E$3:$AH$3,0)-1),MATCH(H$2&\" Score\",'C. PoC Adj Factor Scoring'!$E$4:$J$4,0),TRUE)","v":1},{"$f":"VLOOKUP(OFFSET($B:$B,,MATCH(I$4,$B$4:$F$4,0)-1),OFFSET('C. PoC Adj Factor Scoring'!$E$5:$J$282,,MATCH(I$4,'C. PoC Adj Factor Scoring'!$E$3:$AH$3,0)-1),MATCH(I$2&\" Score\",'C. PoC Adj Factor Scoring'!$E$4:$J$4,0),TRUE)","v":1},{"$f":"VLOOKUP(OFFSET($B:$B,,MATCH(J$4,$B$4:$F$4,0)-1),OFFSET('C. PoC Adj Factor Scoring'!$E$5:$J$282,,MATCH(J$4,'C. PoC Adj Factor Scoring'!$E$3:$AH$3,0)-1),MATCH(J$2&\" Score\",'C. PoC Adj Factor Scoring'!$E$4:$J$4,0),TRUE)","v":1},{"$f":"VLOOKUP(OFFSET($B:$B,,MATCH(K$4,$B$4:$F$4,0)-1),OFFSET('C. PoC Adj Factor Scoring'!$E$5:$J$282,,MATCH(K$4,'C. PoC Adj Factor Scoring'!$E$3:$AH$3,0)-1),MATCH(K$2&\" Score\",'C. PoC Adj Factor Scoring'!$E$4:$J$4,0),TRUE)","v":1},{"$f":"VLOOKUP(OFFSET($B:$B,,MATCH(L$4,$B$4:$F$4,0)-1),OFFSET('C. PoC Adj Factor Scoring'!$E$5:$J$282,,MATCH(L$4,'C. PoC Adj Factor Scoring'!$E$3:$AH$3,0)-1),MATCH(L$2&\" Score\",'C. PoC Adj Factor Scoring'!$E$4:$J$4,0),TRUE)","v":1},{"$f":"VLOOKUP(OFFSET($B:$B,,MATCH(M$4,$B$4:$F$4,0)-1),OFFSET('C. PoC Adj Factor Scoring'!$E$5:$J$282,,MATCH(M$4,'C. PoC Adj Factor Scoring'!$E$3:$AH$3,0)-1),MATCH(M$2&\" Score\",'C. PoC Adj Factor Scoring'!$E$4:$J$4,0),TRUE)","v":1},{"$f":"VLOOKUP(OFFSET($B:$B,,MATCH(N$4,$B$4:$F$4,0)-1),OFFSET('C. PoC Adj Factor Scoring'!$E$5:$J$282,,MATCH(N$4,'C. PoC Adj Factor Scoring'!$E$3:$AH$3,0)-1),MATCH(N$2&\" Score\",'C. PoC Adj Factor Scoring'!$E$4:$J$4,0),TRUE)","v":1},{"$f":"VLOOKUP(OFFSET($B:$B,,MATCH(O$4,$B$4:$F$4,0)-1),OFFSET('C. PoC Adj Factor Scoring'!$E$5:$J$282,,MATCH(O$4,'C. PoC Adj Factor Scoring'!$E$3:$AH$3,0)-1),MATCH(O$2&\" Score\",'C. PoC Adj Factor Scoring'!$E$4:$J$4,0),TRUE)","v":1},{"$f":"VLOOKUP(OFFSET($B:$B,,MATCH(P$4,$B$4:$F$4,0)-1),OFFSET('C. PoC Adj Factor Scoring'!$E$5:$J$282,,MATCH(P$4,'C. PoC Adj Factor Scoring'!$E$3:$AH$3,0)-1),MATCH(P$2&\" Score\",'C. PoC Adj Factor Scoring'!$E$4:$J$4,0),TRUE)","v":1},{"$f":"VLOOKUP(OFFSET($B:$B,,MATCH(Q$4,$B$4:$F$4,0)-1),OFFSET('C. PoC Adj Factor Scoring'!$E$5:$J$282,,MATCH(Q$4,'C. PoC Adj Factor Scoring'!$E$3:$AH$3,0)-1),MATCH(Q$2&\" Score\",'C. PoC Adj Factor Scoring'!$E$4:$J$4,0),TRUE)","v":1},{"$f":"VLOOKUP(OFFSET($B:$B,,MATCH(R$4,$B$4:$F$4,0)-1),OFFSET('C. PoC Adj Factor Scoring'!$E$5:$J$282,,MATCH(R$4,'C. PoC Adj Factor Scoring'!$E$3:$AH$3,0)-1),MATCH(R$2&\" Score\",'C. PoC Adj Factor Scoring'!$E$4:$J$4,0),TRUE)","v":1},{"$f":"VLOOKUP(OFFSET($B:$B,,MATCH(S$4,$B$4:$F$4,0)-1),OFFSET('C. PoC Adj Factor Scoring'!$E$5:$J$282,,MATCH(S$4,'C. PoC Adj Factor Scoring'!$E$3:$AH$3,0)-1),MATCH(S$2&\" Score\",'C. PoC Adj Factor Scoring'!$E$4:$J$4,0),TRUE)","v":1},{"$f":"VLOOKUP(OFFSET($B:$B,,MATCH(T$4,$B$4:$F$4,0)-1),OFFSET('C. PoC Adj Factor Scoring'!$E$5:$J$282,,MATCH(T$4,'C. PoC Adj Factor Scoring'!$E$3:$AH$3,0)-1),MATCH(T$2&\" Score\",'C. PoC Adj Factor Scoring'!$E$4:$J$4,0),TRUE)","v":1},{"$f":"VLOOKUP(OFFSET($B:$B,,MATCH(U$4,$B$4:$F$4,0)-1),OFFSET('C. PoC Adj Factor Scoring'!$E$5:$J$282,,MATCH(U$4,'C. PoC Adj Factor Scoring'!$E$3:$AH$3,0)-1),MATCH(U$2&\" Score\",'C. PoC Adj Factor Scoring'!$E$4:$J$4,0),TRUE)","v":1},{"$f":"VLOOKUP(OFFSET($B:$B,,MATCH(V$4,$B$4:$F$4,0)-1),OFFSET('C. PoC Adj Factor Scoring'!$E$5:$J$282,,MATCH(V$4,'C. PoC Adj Factor Scoring'!$E$3:$AH$3,0)-1),MATCH(V$2&\" Score\",'C. PoC Adj Factor Scoring'!$E$4:$J$4,0),TRUE)","v":1},{"$f":"VLOOKUP(OFFSET($B:$B,,MATCH(W$4,$B$4:$F$4,0)-1),OFFSET('C. PoC Adj Factor Scoring'!$E$5:$J$282,,MATCH(W$4,'C. PoC Adj Factor Scoring'!$E$3:$AH$3,0)-1),MATCH(W$2&\" Score\",'C. PoC Adj Factor Scoring'!$E$4:$J$4,0),TRUE)","v":1},{"$f":"VLOOKUP(OFFSET($B:$B,,MATCH(X$4,$B$4:$F$4,0)-1),OFFSET('C. PoC Adj Factor Scoring'!$E$5:$J$282,,MATCH(X$4,'C. PoC Adj Factor Scoring'!$E$3:$AH$3,0)-1),MATCH(X$2&\" Score\",'C. PoC Adj Factor Scoring'!$E$4:$J$4,0),TRUE)","v":1},{"$f":"VLOOKUP(OFFSET($B:$B,,MATCH(Y$4,$B$4:$F$4,0)-1),OFFSET('C. PoC Adj Factor Scoring'!$E$5:$J$282,,MATCH(Y$4,'C. PoC Adj Factor Scoring'!$E$3:$AH$3,0)-1),MATCH(Y$2&\" Score\",'C. PoC Adj Factor Scoring'!$E$4:$J$4,0),TRUE)","v":1},{"$f":"VLOOKUP(OFFSET($B:$B,,MATCH(Z$4,$B$4:$F$4,0)-1),OFFSET('C. PoC Adj Factor Scoring'!$E$5:$J$282,,MATCH(Z$4,'C. PoC Adj Factor Scoring'!$E$3:$AH$3,0)-1),MATCH(Z$2&\" Score\",'C. PoC Adj Factor Scoring'!$E$4:$J$4,0),TRUE)","v":1},{"$f":"VLOOKUP(OFFSET($B:$B,,MATCH(AA$4,$B$4:$F$4,0)-1),OFFSET('C. PoC Adj Factor Scoring'!$E$5:$J$282,,MATCH(AA$4,'C. PoC Adj Factor Scoring'!$E$3:$AH$3,0)-1),MATCH(AA$2&\" Score\",'C. PoC Adj Factor Scoring'!$E$4:$J$4,0),TRUE)","v":3},{"$f":"VLOOKUP(OFFSET($B:$B,,MATCH(AB$4,$B$4:$F$4,0)-1),OFFSET('C. PoC Adj Factor Scoring'!$E$5:$J$282,,MATCH(AB$4,'C. PoC Adj Factor Scoring'!$E$3:$AH$3,0)-1),MATCH(AB$2&\" Score\",'C. PoC Adj Factor Scoring'!$E$4:$J$4,0),TRUE)","v":1},{"$f":"VLOOKUP(OFFSET($B:$B,,MATCH(AC$4,$B$4:$F$4,0)-1),OFFSET('C. PoC Adj Factor Scoring'!$E$5:$J$282,,MATCH(AC$4,'C. PoC Adj Factor Scoring'!$E$3:$AH$3,0)-1),MATCH(AC$2&\" Score\",'C. PoC Adj Factor Scoring'!$E$4:$J$4,0),TRUE)","v":1},{"$f":"VLOOKUP(OFFSET($B:$B,,MATCH(AD$4,$B$4:$F$4,0)-1),OFFSET('C. PoC Adj Factor Scoring'!$E$5:$J$282,,MATCH(AD$4,'C. PoC Adj Factor Scoring'!$E$3:$AH$3,0)-1),MATCH(AD$2&\" Score\",'C. PoC Adj Factor Scoring'!$E$4:$J$4,0),TRUE)","v":1},{"$f":"VLOOKUP(OFFSET($B:$B,,MATCH(AE$4,$B$4:$F$4,0)-1),OFFSET('C. PoC Adj Factor Scoring'!$E$5:$J$282,,MATCH(AE$4,'C. PoC Adj Factor Scoring'!$E$3:$AH$3,0)-1),MATCH(AE$2&\" Score\",'C. PoC Adj Factor Scoring'!$E$4:$J$4,0),TRUE)","v":1}]
[{"$f":"'A. Population Info'!A328","v":1000395538},{"$f":"'A. Population Info'!L328","v":"OIL"},{"$f":"'A. Population Info'!M328","v":0},{"$f":"'A. Population Info'!N328","v":0},{"$f":"'A. Population Info'!O328","v":0},{"$f":"'A. Population Info'!P328","v":0},{"$f":"VLOOKUP(OFFSET($B:$B,,MATCH(G$4,$B$4:$F$4,0)-1),OFFSET('C. PoC Adj Factor Scoring'!$E$5:$J$282,,MATCH(G$4,'C. PoC Adj Factor Scoring'!$E$3:$AH$3,0)-1),MATCH(G$2&\" Score\",'C. PoC Adj Factor Scoring'!$E$4:$J$4,0),TRUE)","v":4},{"$f":"VLOOKUP(OFFSET($B:$B,,MATCH(H$4,$B$4:$F$4,0)-1),OFFSET('C. PoC Adj Factor Scoring'!$E$5:$J$282,,MATCH(H$4,'C. PoC Adj Factor Scoring'!$E$3:$AH$3,0)-1),MATCH(H$2&\" Score\",'C. PoC Adj Factor Scoring'!$E$4:$J$4,0),TRUE)","v":1},{"$f":"VLOOKUP(OFFSET($B:$B,,MATCH(I$4,$B$4:$F$4,0)-1),OFFSET('C. PoC Adj Factor Scoring'!$E$5:$J$282,,MATCH(I$4,'C. PoC Adj Factor Scoring'!$E$3:$AH$3,0)-1),MATCH(I$2&\" Score\",'C. PoC Adj Factor Scoring'!$E$4:$J$4,0),TRUE)","v":1},{"$f":"VLOOKUP(OFFSET($B:$B,,MATCH(J$4,$B$4:$F$4,0)-1),OFFSET('C. PoC Adj Factor Scoring'!$E$5:$J$282,,MATCH(J$4,'C. PoC Adj Factor Scoring'!$E$3:$AH$3,0)-1),MATCH(J$2&\" Score\",'C. PoC Adj Factor Scoring'!$E$4:$J$4,0),TRUE)","v":1},{"$f":"VLOOKUP(OFFSET($B:$B,,MATCH(K$4,$B$4:$F$4,0)-1),OFFSET('C. PoC Adj Factor Scoring'!$E$5:$J$282,,MATCH(K$4,'C. PoC Adj Factor Scoring'!$E$3:$AH$3,0)-1),MATCH(K$2&\" Score\",'C. PoC Adj Factor Scoring'!$E$4:$J$4,0),TRUE)","v":1},{"$f":"VLOOKUP(OFFSET($B:$B,,MATCH(L$4,$B$4:$F$4,0)-1),OFFSET('C. PoC Adj Factor Scoring'!$E$5:$J$282,,MATCH(L$4,'C. PoC Adj Factor Scoring'!$E$3:$AH$3,0)-1),MATCH(L$2&\" Score\",'C. PoC Adj Factor Scoring'!$E$4:$J$4,0),TRUE)","v":1},{"$f":"VLOOKUP(OFFSET($B:$B,,MATCH(M$4,$B$4:$F$4,0)-1),OFFSET('C. PoC Adj Factor Scoring'!$E$5:$J$282,,MATCH(M$4,'C. PoC Adj Factor Scoring'!$E$3:$AH$3,0)-1),MATCH(M$2&\" Score\",'C. PoC Adj Factor Scoring'!$E$4:$J$4,0),TRUE)","v":1},{"$f":"VLOOKUP(OFFSET($B:$B,,MATCH(N$4,$B$4:$F$4,0)-1),OFFSET('C. PoC Adj Factor Scoring'!$E$5:$J$282,,MATCH(N$4,'C. PoC Adj Factor Scoring'!$E$3:$AH$3,0)-1),MATCH(N$2&\" Score\",'C. PoC Adj Factor Scoring'!$E$4:$J$4,0),TRUE)","v":1},{"$f":"VLOOKUP(OFFSET($B:$B,,MATCH(O$4,$B$4:$F$4,0)-1),OFFSET('C. PoC Adj Factor Scoring'!$E$5:$J$282,,MATCH(O$4,'C. PoC Adj Factor Scoring'!$E$3:$AH$3,0)-1),MATCH(O$2&\" Score\",'C. PoC Adj Factor Scoring'!$E$4:$J$4,0),TRUE)","v":1},{"$f":"VLOOKUP(OFFSET($B:$B,,MATCH(P$4,$B$4:$F$4,0)-1),OFFSET('C. PoC Adj Factor Scoring'!$E$5:$J$282,,MATCH(P$4,'C. PoC Adj Factor Scoring'!$E$3:$AH$3,0)-1),MATCH(P$2&\" Score\",'C. PoC Adj Factor Scoring'!$E$4:$J$4,0),TRUE)","v":1},{"$f":"VLOOKUP(OFFSET($B:$B,,MATCH(Q$4,$B$4:$F$4,0)-1),OFFSET('C. PoC Adj Factor Scoring'!$E$5:$J$282,,MATCH(Q$4,'C. PoC Adj Factor Scoring'!$E$3:$AH$3,0)-1),MATCH(Q$2&\" Score\",'C. PoC Adj Factor Scoring'!$E$4:$J$4,0),TRUE)","v":1},{"$f":"VLOOKUP(OFFSET($B:$B,,MATCH(R$4,$B$4:$F$4,0)-1),OFFSET('C. PoC Adj Factor Scoring'!$E$5:$J$282,,MATCH(R$4,'C. PoC Adj Factor Scoring'!$E$3:$AH$3,0)-1),MATCH(R$2&\" Score\",'C. PoC Adj Factor Scoring'!$E$4:$J$4,0),TRUE)","v":1},{"$f":"VLOOKUP(OFFSET($B:$B,,MATCH(S$4,$B$4:$F$4,0)-1),OFFSET('C. PoC Adj Factor Scoring'!$E$5:$J$282,,MATCH(S$4,'C. PoC Adj Factor Scoring'!$E$3:$AH$3,0)-1),MATCH(S$2&\" Score\",'C. PoC Adj Factor Scoring'!$E$4:$J$4,0),TRUE)","v":1},{"$f":"VLOOKUP(OFFSET($B:$B,,MATCH(T$4,$B$4:$F$4,0)-1),OFFSET('C. PoC Adj Factor Scoring'!$E$5:$J$282,,MATCH(T$4,'C. PoC Adj Factor Scoring'!$E$3:$AH$3,0)-1),MATCH(T$2&\" Score\",'C. PoC Adj Factor Scoring'!$E$4:$J$4,0),TRUE)","v":1},{"$f":"VLOOKUP(OFFSET($B:$B,,MATCH(U$4,$B$4:$F$4,0)-1),OFFSET('C. PoC Adj Factor Scoring'!$E$5:$J$282,,MATCH(U$4,'C. PoC Adj Factor Scoring'!$E$3:$AH$3,0)-1),MATCH(U$2&\" Score\",'C. PoC Adj Factor Scoring'!$E$4:$J$4,0),TRUE)","v":1},{"$f":"VLOOKUP(OFFSET($B:$B,,MATCH(V$4,$B$4:$F$4,0)-1),OFFSET('C. PoC Adj Factor Scoring'!$E$5:$J$282,,MATCH(V$4,'C. PoC Adj Factor Scoring'!$E$3:$AH$3,0)-1),MATCH(V$2&\" Score\",'C. PoC Adj Factor Scoring'!$E$4:$J$4,0),TRUE)","v":1},{"$f":"VLOOKUP(OFFSET($B:$B,,MATCH(W$4,$B$4:$F$4,0)-1),OFFSET('C. PoC Adj Factor Scoring'!$E$5:$J$282,,MATCH(W$4,'C. PoC Adj Factor Scoring'!$E$3:$AH$3,0)-1),MATCH(W$2&\" Score\",'C. PoC Adj Factor Scoring'!$E$4:$J$4,0),TRUE)","v":1},{"$f":"VLOOKUP(OFFSET($B:$B,,MATCH(X$4,$B$4:$F$4,0)-1),OFFSET('C. PoC Adj Factor Scoring'!$E$5:$J$282,,MATCH(X$4,'C. PoC Adj Factor Scoring'!$E$3:$AH$3,0)-1),MATCH(X$2&\" Score\",'C. PoC Adj Factor Scoring'!$E$4:$J$4,0),TRUE)","v":1},{"$f":"VLOOKUP(OFFSET($B:$B,,MATCH(Y$4,$B$4:$F$4,0)-1),OFFSET('C. PoC Adj Factor Scoring'!$E$5:$J$282,,MATCH(Y$4,'C. PoC Adj Factor Scoring'!$E$3:$AH$3,0)-1),MATCH(Y$2&\" Score\",'C. PoC Adj Factor Scoring'!$E$4:$J$4,0),TRUE)","v":1},{"$f":"VLOOKUP(OFFSET($B:$B,,MATCH(Z$4,$B$4:$F$4,0)-1),OFFSET('C. PoC Adj Factor Scoring'!$E$5:$J$282,,MATCH(Z$4,'C. PoC Adj Factor Scoring'!$E$3:$AH$3,0)-1),MATCH(Z$2&\" Score\",'C. PoC Adj Factor Scoring'!$E$4:$J$4,0),TRUE)","v":1},{"$f":"VLOOKUP(OFFSET($B:$B,,MATCH(AA$4,$B$4:$F$4,0)-1),OFFSET('C. PoC Adj Factor Scoring'!$E$5:$J$282,,MATCH(AA$4,'C. PoC Adj Factor Scoring'!$E$3:$AH$3,0)-1),MATCH(AA$2&\" Score\",'C. PoC Adj Factor Scoring'!$E$4:$J$4,0),TRUE)","v":3},{"$f":"VLOOKUP(OFFSET($B:$B,,MATCH(AB$4,$B$4:$F$4,0)-1),OFFSET('C. PoC Adj Factor Scoring'!$E$5:$J$282,,MATCH(AB$4,'C. PoC Adj Factor Scoring'!$E$3:$AH$3,0)-1),MATCH(AB$2&\" Score\",'C. PoC Adj Factor Scoring'!$E$4:$J$4,0),TRUE)","v":1},{"$f":"VLOOKUP(OFFSET($B:$B,,MATCH(AC$4,$B$4:$F$4,0)-1),OFFSET('C. PoC Adj Factor Scoring'!$E$5:$J$282,,MATCH(AC$4,'C. PoC Adj Factor Scoring'!$E$3:$AH$3,0)-1),MATCH(AC$2&\" Score\",'C. PoC Adj Factor Scoring'!$E$4:$J$4,0),TRUE)","v":1},{"$f":"VLOOKUP(OFFSET($B:$B,,MATCH(AD$4,$B$4:$F$4,0)-1),OFFSET('C. PoC Adj Factor Scoring'!$E$5:$J$282,,MATCH(AD$4,'C. PoC Adj Factor Scoring'!$E$3:$AH$3,0)-1),MATCH(AD$2&\" Score\",'C. PoC Adj Factor Scoring'!$E$4:$J$4,0),TRUE)","v":1},{"$f":"VLOOKUP(OFFSET($B:$B,,MATCH(AE$4,$B$4:$F$4,0)-1),OFFSET('C. PoC Adj Factor Scoring'!$E$5:$J$282,,MATCH(AE$4,'C. PoC Adj Factor Scoring'!$E$3:$AH$3,0)-1),MATCH(AE$2&\" Score\",'C. PoC Adj Factor Scoring'!$E$4:$J$4,0),TRUE)","v":1}]
[{"$f":"'A. Population Info'!A329","v":1000395577},{"$f":"'A. Population Info'!L329","v":"CAST_RESIN"},{"$f":"'A. Population Info'!M329","v":0},{"$f":"'A. Population Info'!N329","v":0},{"$f":"'A. Population Info'!O329","v":0},{"$f":"'A. Population Info'!P329","v":0},{"$f":"VLOOKUP(OFFSET($B:$B,,MATCH(G$4,$B$4:$F$4,0)-1),OFFSET('C. PoC Adj Factor Scoring'!$E$5:$J$282,,MATCH(G$4,'C. PoC Adj Factor Scoring'!$E$3:$AH$3,0)-1),MATCH(G$2&\" Score\",'C. PoC Adj Factor Scoring'!$E$4:$J$4,0),TRUE)","v":1},{"$f":"VLOOKUP(OFFSET($B:$B,,MATCH(H$4,$B$4:$F$4,0)-1),OFFSET('C. PoC Adj Factor Scoring'!$E$5:$J$282,,MATCH(H$4,'C. PoC Adj Factor Scoring'!$E$3:$AH$3,0)-1),MATCH(H$2&\" Score\",'C. PoC Adj Factor Scoring'!$E$4:$J$4,0),TRUE)","v":1},{"$f":"VLOOKUP(OFFSET($B:$B,,MATCH(I$4,$B$4:$F$4,0)-1),OFFSET('C. PoC Adj Factor Scoring'!$E$5:$J$282,,MATCH(I$4,'C. PoC Adj Factor Scoring'!$E$3:$AH$3,0)-1),MATCH(I$2&\" Score\",'C. PoC Adj Factor Scoring'!$E$4:$J$4,0),TRUE)","v":1},{"$f":"VLOOKUP(OFFSET($B:$B,,MATCH(J$4,$B$4:$F$4,0)-1),OFFSET('C. PoC Adj Factor Scoring'!$E$5:$J$282,,MATCH(J$4,'C. PoC Adj Factor Scoring'!$E$3:$AH$3,0)-1),MATCH(J$2&\" Score\",'C. PoC Adj Factor Scoring'!$E$4:$J$4,0),TRUE)","v":1},{"$f":"VLOOKUP(OFFSET($B:$B,,MATCH(K$4,$B$4:$F$4,0)-1),OFFSET('C. PoC Adj Factor Scoring'!$E$5:$J$282,,MATCH(K$4,'C. PoC Adj Factor Scoring'!$E$3:$AH$3,0)-1),MATCH(K$2&\" Score\",'C. PoC Adj Factor Scoring'!$E$4:$J$4,0),TRUE)","v":1},{"$f":"VLOOKUP(OFFSET($B:$B,,MATCH(L$4,$B$4:$F$4,0)-1),OFFSET('C. PoC Adj Factor Scoring'!$E$5:$J$282,,MATCH(L$4,'C. PoC Adj Factor Scoring'!$E$3:$AH$3,0)-1),MATCH(L$2&\" Score\",'C. PoC Adj Factor Scoring'!$E$4:$J$4,0),TRUE)","v":1},{"$f":"VLOOKUP(OFFSET($B:$B,,MATCH(M$4,$B$4:$F$4,0)-1),OFFSET('C. PoC Adj Factor Scoring'!$E$5:$J$282,,MATCH(M$4,'C. PoC Adj Factor Scoring'!$E$3:$AH$3,0)-1),MATCH(M$2&\" Score\",'C. PoC Adj Factor Scoring'!$E$4:$J$4,0),TRUE)","v":1},{"$f":"VLOOKUP(OFFSET($B:$B,,MATCH(N$4,$B$4:$F$4,0)-1),OFFSET('C. PoC Adj Factor Scoring'!$E$5:$J$282,,MATCH(N$4,'C. PoC Adj Factor Scoring'!$E$3:$AH$3,0)-1),MATCH(N$2&\" Score\",'C. PoC Adj Factor Scoring'!$E$4:$J$4,0),TRUE)","v":1},{"$f":"VLOOKUP(OFFSET($B:$B,,MATCH(O$4,$B$4:$F$4,0)-1),OFFSET('C. PoC Adj Factor Scoring'!$E$5:$J$282,,MATCH(O$4,'C. PoC Adj Factor Scoring'!$E$3:$AH$3,0)-1),MATCH(O$2&\" Score\",'C. PoC Adj Factor Scoring'!$E$4:$J$4,0),TRUE)","v":1},{"$f":"VLOOKUP(OFFSET($B:$B,,MATCH(P$4,$B$4:$F$4,0)-1),OFFSET('C. PoC Adj Factor Scoring'!$E$5:$J$282,,MATCH(P$4,'C. PoC Adj Factor Scoring'!$E$3:$AH$3,0)-1),MATCH(P$2&\" Score\",'C. PoC Adj Factor Scoring'!$E$4:$J$4,0),TRUE)","v":1},{"$f":"VLOOKUP(OFFSET($B:$B,,MATCH(Q$4,$B$4:$F$4,0)-1),OFFSET('C. PoC Adj Factor Scoring'!$E$5:$J$282,,MATCH(Q$4,'C. PoC Adj Factor Scoring'!$E$3:$AH$3,0)-1),MATCH(Q$2&\" Score\",'C. PoC Adj Factor Scoring'!$E$4:$J$4,0),TRUE)","v":1},{"$f":"VLOOKUP(OFFSET($B:$B,,MATCH(R$4,$B$4:$F$4,0)-1),OFFSET('C. PoC Adj Factor Scoring'!$E$5:$J$282,,MATCH(R$4,'C. PoC Adj Factor Scoring'!$E$3:$AH$3,0)-1),MATCH(R$2&\" Score\",'C. PoC Adj Factor Scoring'!$E$4:$J$4,0),TRUE)","v":1},{"$f":"VLOOKUP(OFFSET($B:$B,,MATCH(S$4,$B$4:$F$4,0)-1),OFFSET('C. PoC Adj Factor Scoring'!$E$5:$J$282,,MATCH(S$4,'C. PoC Adj Factor Scoring'!$E$3:$AH$3,0)-1),MATCH(S$2&\" Score\",'C. PoC Adj Factor Scoring'!$E$4:$J$4,0),TRUE)","v":1},{"$f":"VLOOKUP(OFFSET($B:$B,,MATCH(T$4,$B$4:$F$4,0)-1),OFFSET('C. PoC Adj Factor Scoring'!$E$5:$J$282,,MATCH(T$4,'C. PoC Adj Factor Scoring'!$E$3:$AH$3,0)-1),MATCH(T$2&\" Score\",'C. PoC Adj Factor Scoring'!$E$4:$J$4,0),TRUE)","v":1},{"$f":"VLOOKUP(OFFSET($B:$B,,MATCH(U$4,$B$4:$F$4,0)-1),OFFSET('C. PoC Adj Factor Scoring'!$E$5:$J$282,,MATCH(U$4,'C. PoC Adj Factor Scoring'!$E$3:$AH$3,0)-1),MATCH(U$2&\" Score\",'C. PoC Adj Factor Scoring'!$E$4:$J$4,0),TRUE)","v":1},{"$f":"VLOOKUP(OFFSET($B:$B,,MATCH(V$4,$B$4:$F$4,0)-1),OFFSET('C. PoC Adj Factor Scoring'!$E$5:$J$282,,MATCH(V$4,'C. PoC Adj Factor Scoring'!$E$3:$AH$3,0)-1),MATCH(V$2&\" Score\",'C. PoC Adj Factor Scoring'!$E$4:$J$4,0),TRUE)","v":1},{"$f":"VLOOKUP(OFFSET($B:$B,,MATCH(W$4,$B$4:$F$4,0)-1),OFFSET('C. PoC Adj Factor Scoring'!$E$5:$J$282,,MATCH(W$4,'C. PoC Adj Factor Scoring'!$E$3:$AH$3,0)-1),MATCH(W$2&\" Score\",'C. PoC Adj Factor Scoring'!$E$4:$J$4,0),TRUE)","v":1},{"$f":"VLOOKUP(OFFSET($B:$B,,MATCH(X$4,$B$4:$F$4,0)-1),OFFSET('C. PoC Adj Factor Scoring'!$E$5:$J$282,,MATCH(X$4,'C. PoC Adj Factor Scoring'!$E$3:$AH$3,0)-1),MATCH(X$2&\" Score\",'C. PoC Adj Factor Scoring'!$E$4:$J$4,0),TRUE)","v":1},{"$f":"VLOOKUP(OFFSET($B:$B,,MATCH(Y$4,$B$4:$F$4,0)-1),OFFSET('C. PoC Adj Factor Scoring'!$E$5:$J$282,,MATCH(Y$4,'C. PoC Adj Factor Scoring'!$E$3:$AH$3,0)-1),MATCH(Y$2&\" Score\",'C. PoC Adj Factor Scoring'!$E$4:$J$4,0),TRUE)","v":1},{"$f":"VLOOKUP(OFFSET($B:$B,,MATCH(Z$4,$B$4:$F$4,0)-1),OFFSET('C. PoC Adj Factor Scoring'!$E$5:$J$282,,MATCH(Z$4,'C. PoC Adj Factor Scoring'!$E$3:$AH$3,0)-1),MATCH(Z$2&\" Score\",'C. PoC Adj Factor Scoring'!$E$4:$J$4,0),TRUE)","v":1},{"$f":"VLOOKUP(OFFSET($B:$B,,MATCH(AA$4,$B$4:$F$4,0)-1),OFFSET('C. PoC Adj Factor Scoring'!$E$5:$J$282,,MATCH(AA$4,'C. PoC Adj Factor Scoring'!$E$3:$AH$3,0)-1),MATCH(AA$2&\" Score\",'C. PoC Adj Factor Scoring'!$E$4:$J$4,0),TRUE)","v":1},{"$f":"VLOOKUP(OFFSET($B:$B,,MATCH(AB$4,$B$4:$F$4,0)-1),OFFSET('C. PoC Adj Factor Scoring'!$E$5:$J$282,,MATCH(AB$4,'C. PoC Adj Factor Scoring'!$E$3:$AH$3,0)-1),MATCH(AB$2&\" Score\",'C. PoC Adj Factor Scoring'!$E$4:$J$4,0),TRUE)","v":1},{"$f":"VLOOKUP(OFFSET($B:$B,,MATCH(AC$4,$B$4:$F$4,0)-1),OFFSET('C. PoC Adj Factor Scoring'!$E$5:$J$282,,MATCH(AC$4,'C. PoC Adj Factor Scoring'!$E$3:$AH$3,0)-1),MATCH(AC$2&\" Score\",'C. PoC Adj Factor Scoring'!$E$4:$J$4,0),TRUE)","v":1},{"$f":"VLOOKUP(OFFSET($B:$B,,MATCH(AD$4,$B$4:$F$4,0)-1),OFFSET('C. PoC Adj Factor Scoring'!$E$5:$J$282,,MATCH(AD$4,'C. PoC Adj Factor Scoring'!$E$3:$AH$3,0)-1),MATCH(AD$2&\" Score\",'C. PoC Adj Factor Scoring'!$E$4:$J$4,0),TRUE)","v":1},{"$f":"VLOOKUP(OFFSET($B:$B,,MATCH(AE$4,$B$4:$F$4,0)-1),OFFSET('C. PoC Adj Factor Scoring'!$E$5:$J$282,,MATCH(AE$4,'C. PoC Adj Factor Scoring'!$E$3:$AH$3,0)-1),MATCH(AE$2&\" Score\",'C. PoC Adj Factor Scoring'!$E$4:$J$4,0),TRUE)","v":1}]
[{"$f":"'A. Population Info'!A330","v":1000395597},{"$f":"'A. Population Info'!L330","v":"OIL"},{"$f":"'A. Population Info'!M330","v":0},{"$f":"'A. Population Info'!N330","v":0},{"$f":"'A. Population Info'!O330","v":0},{"$f":"'A. Population Info'!P330","v":0},{"$f":"VLOOKUP(OFFSET($B:$B,,MATCH(G$4,$B$4:$F$4,0)-1),OFFSET('C. PoC Adj Factor Scoring'!$E$5:$J$282,,MATCH(G$4,'C. PoC Adj Factor Scoring'!$E$3:$AH$3,0)-1),MATCH(G$2&\" Score\",'C. PoC Adj Factor Scoring'!$E$4:$J$4,0),TRUE)","v":4},{"$f":"VLOOKUP(OFFSET($B:$B,,MATCH(H$4,$B$4:$F$4,0)-1),OFFSET('C. PoC Adj Factor Scoring'!$E$5:$J$282,,MATCH(H$4,'C. PoC Adj Factor Scoring'!$E$3:$AH$3,0)-1),MATCH(H$2&\" Score\",'C. PoC Adj Factor Scoring'!$E$4:$J$4,0),TRUE)","v":1},{"$f":"VLOOKUP(OFFSET($B:$B,,MATCH(I$4,$B$4:$F$4,0)-1),OFFSET('C. PoC Adj Factor Scoring'!$E$5:$J$282,,MATCH(I$4,'C. PoC Adj Factor Scoring'!$E$3:$AH$3,0)-1),MATCH(I$2&\" Score\",'C. PoC Adj Factor Scoring'!$E$4:$J$4,0),TRUE)","v":1},{"$f":"VLOOKUP(OFFSET($B:$B,,MATCH(J$4,$B$4:$F$4,0)-1),OFFSET('C. PoC Adj Factor Scoring'!$E$5:$J$282,,MATCH(J$4,'C. PoC Adj Factor Scoring'!$E$3:$AH$3,0)-1),MATCH(J$2&\" Score\",'C. PoC Adj Factor Scoring'!$E$4:$J$4,0),TRUE)","v":1},{"$f":"VLOOKUP(OFFSET($B:$B,,MATCH(K$4,$B$4:$F$4,0)-1),OFFSET('C. PoC Adj Factor Scoring'!$E$5:$J$282,,MATCH(K$4,'C. PoC Adj Factor Scoring'!$E$3:$AH$3,0)-1),MATCH(K$2&\" Score\",'C. PoC Adj Factor Scoring'!$E$4:$J$4,0),TRUE)","v":1},{"$f":"VLOOKUP(OFFSET($B:$B,,MATCH(L$4,$B$4:$F$4,0)-1),OFFSET('C. PoC Adj Factor Scoring'!$E$5:$J$282,,MATCH(L$4,'C. PoC Adj Factor Scoring'!$E$3:$AH$3,0)-1),MATCH(L$2&\" Score\",'C. PoC Adj Factor Scoring'!$E$4:$J$4,0),TRUE)","v":1},{"$f":"VLOOKUP(OFFSET($B:$B,,MATCH(M$4,$B$4:$F$4,0)-1),OFFSET('C. PoC Adj Factor Scoring'!$E$5:$J$282,,MATCH(M$4,'C. PoC Adj Factor Scoring'!$E$3:$AH$3,0)-1),MATCH(M$2&\" Score\",'C. PoC Adj Factor Scoring'!$E$4:$J$4,0),TRUE)","v":1},{"$f":"VLOOKUP(OFFSET($B:$B,,MATCH(N$4,$B$4:$F$4,0)-1),OFFSET('C. PoC Adj Factor Scoring'!$E$5:$J$282,,MATCH(N$4,'C. PoC Adj Factor Scoring'!$E$3:$AH$3,0)-1),MATCH(N$2&\" Score\",'C. PoC Adj Factor Scoring'!$E$4:$J$4,0),TRUE)","v":1},{"$f":"VLOOKUP(OFFSET($B:$B,,MATCH(O$4,$B$4:$F$4,0)-1),OFFSET('C. PoC Adj Factor Scoring'!$E$5:$J$282,,MATCH(O$4,'C. PoC Adj Factor Scoring'!$E$3:$AH$3,0)-1),MATCH(O$2&\" Score\",'C. PoC Adj Factor Scoring'!$E$4:$J$4,0),TRUE)","v":1},{"$f":"VLOOKUP(OFFSET($B:$B,,MATCH(P$4,$B$4:$F$4,0)-1),OFFSET('C. PoC Adj Factor Scoring'!$E$5:$J$282,,MATCH(P$4,'C. PoC Adj Factor Scoring'!$E$3:$AH$3,0)-1),MATCH(P$2&\" Score\",'C. PoC Adj Factor Scoring'!$E$4:$J$4,0),TRUE)","v":1},{"$f":"VLOOKUP(OFFSET($B:$B,,MATCH(Q$4,$B$4:$F$4,0)-1),OFFSET('C. PoC Adj Factor Scoring'!$E$5:$J$282,,MATCH(Q$4,'C. PoC Adj Factor Scoring'!$E$3:$AH$3,0)-1),MATCH(Q$2&\" Score\",'C. PoC Adj Factor Scoring'!$E$4:$J$4,0),TRUE)","v":1},{"$f":"VLOOKUP(OFFSET($B:$B,,MATCH(R$4,$B$4:$F$4,0)-1),OFFSET('C. PoC Adj Factor Scoring'!$E$5:$J$282,,MATCH(R$4,'C. PoC Adj Factor Scoring'!$E$3:$AH$3,0)-1),MATCH(R$2&\" Score\",'C. PoC Adj Factor Scoring'!$E$4:$J$4,0),TRUE)","v":1},{"$f":"VLOOKUP(OFFSET($B:$B,,MATCH(S$4,$B$4:$F$4,0)-1),OFFSET('C. PoC Adj Factor Scoring'!$E$5:$J$282,,MATCH(S$4,'C. PoC Adj Factor Scoring'!$E$3:$AH$3,0)-1),MATCH(S$2&\" Score\",'C. PoC Adj Factor Scoring'!$E$4:$J$4,0),TRUE)","v":1},{"$f":"VLOOKUP(OFFSET($B:$B,,MATCH(T$4,$B$4:$F$4,0)-1),OFFSET('C. PoC Adj Factor Scoring'!$E$5:$J$282,,MATCH(T$4,'C. PoC Adj Factor Scoring'!$E$3:$AH$3,0)-1),MATCH(T$2&\" Score\",'C. PoC Adj Factor Scoring'!$E$4:$J$4,0),TRUE)","v":1},{"$f":"VLOOKUP(OFFSET($B:$B,,MATCH(U$4,$B$4:$F$4,0)-1),OFFSET('C. PoC Adj Factor Scoring'!$E$5:$J$282,,MATCH(U$4,'C. PoC Adj Factor Scoring'!$E$3:$AH$3,0)-1),MATCH(U$2&\" Score\",'C. PoC Adj Factor Scoring'!$E$4:$J$4,0),TRUE)","v":1},{"$f":"VLOOKUP(OFFSET($B:$B,,MATCH(V$4,$B$4:$F$4,0)-1),OFFSET('C. PoC Adj Factor Scoring'!$E$5:$J$282,,MATCH(V$4,'C. PoC Adj Factor Scoring'!$E$3:$AH$3,0)-1),MATCH(V$2&\" Score\",'C. PoC Adj Factor Scoring'!$E$4:$J$4,0),TRUE)","v":1},{"$f":"VLOOKUP(OFFSET($B:$B,,MATCH(W$4,$B$4:$F$4,0)-1),OFFSET('C. PoC Adj Factor Scoring'!$E$5:$J$282,,MATCH(W$4,'C. PoC Adj Factor Scoring'!$E$3:$AH$3,0)-1),MATCH(W$2&\" Score\",'C. PoC Adj Factor Scoring'!$E$4:$J$4,0),TRUE)","v":1},{"$f":"VLOOKUP(OFFSET($B:$B,,MATCH(X$4,$B$4:$F$4,0)-1),OFFSET('C. PoC Adj Factor Scoring'!$E$5:$J$282,,MATCH(X$4,'C. PoC Adj Factor Scoring'!$E$3:$AH$3,0)-1),MATCH(X$2&\" Score\",'C. PoC Adj Factor Scoring'!$E$4:$J$4,0),TRUE)","v":1},{"$f":"VLOOKUP(OFFSET($B:$B,,MATCH(Y$4,$B$4:$F$4,0)-1),OFFSET('C. PoC Adj Factor Scoring'!$E$5:$J$282,,MATCH(Y$4,'C. PoC Adj Factor Scoring'!$E$3:$AH$3,0)-1),MATCH(Y$2&\" Score\",'C. PoC Adj Factor Scoring'!$E$4:$J$4,0),TRUE)","v":1},{"$f":"VLOOKUP(OFFSET($B:$B,,MATCH(Z$4,$B$4:$F$4,0)-1),OFFSET('C. PoC Adj Factor Scoring'!$E$5:$J$282,,MATCH(Z$4,'C. PoC Adj Factor Scoring'!$E$3:$AH$3,0)-1),MATCH(Z$2&\" Score\",'C. PoC Adj Factor Scoring'!$E$4:$J$4,0),TRUE)","v":1},{"$f":"VLOOKUP(OFFSET($B:$B,,MATCH(AA$4,$B$4:$F$4,0)-1),OFFSET('C. PoC Adj Factor Scoring'!$E$5:$J$282,,MATCH(AA$4,'C. PoC Adj Factor Scoring'!$E$3:$AH$3,0)-1),MATCH(AA$2&\" Score\",'C. PoC Adj Factor Scoring'!$E$4:$J$4,0),TRUE)","v":3},{"$f":"VLOOKUP(OFFSET($B:$B,,MATCH(AB$4,$B$4:$F$4,0)-1),OFFSET('C. PoC Adj Factor Scoring'!$E$5:$J$282,,MATCH(AB$4,'C. PoC Adj Factor Scoring'!$E$3:$AH$3,0)-1),MATCH(AB$2&\" Score\",'C. PoC Adj Factor Scoring'!$E$4:$J$4,0),TRUE)","v":1},{"$f":"VLOOKUP(OFFSET($B:$B,,MATCH(AC$4,$B$4:$F$4,0)-1),OFFSET('C. PoC Adj Factor Scoring'!$E$5:$J$282,,MATCH(AC$4,'C. PoC Adj Factor Scoring'!$E$3:$AH$3,0)-1),MATCH(AC$2&\" Score\",'C. PoC Adj Factor Scoring'!$E$4:$J$4,0),TRUE)","v":1},{"$f":"VLOOKUP(OFFSET($B:$B,,MATCH(AD$4,$B$4:$F$4,0)-1),OFFSET('C. PoC Adj Factor Scoring'!$E$5:$J$282,,MATCH(AD$4,'C. PoC Adj Factor Scoring'!$E$3:$AH$3,0)-1),MATCH(AD$2&\" Score\",'C. PoC Adj Factor Scoring'!$E$4:$J$4,0),TRUE)","v":1},{"$f":"VLOOKUP(OFFSET($B:$B,,MATCH(AE$4,$B$4:$F$4,0)-1),OFFSET('C. PoC Adj Factor Scoring'!$E$5:$J$282,,MATCH(AE$4,'C. PoC Adj Factor Scoring'!$E$3:$AH$3,0)-1),MATCH(AE$2&\" Score\",'C. PoC Adj Factor Scoring'!$E$4:$J$4,0),TRUE)","v":1}]
[{"$f":"'A. Population Info'!A331","v":1000395616},{"$f":"'A. Population Info'!L331","v":"OIL"},{"$f":"'A. Population Info'!M331","v":0},{"$f":"'A. Population Info'!N331","v":0},{"$f":"'A. Population Info'!O331","v":0},{"$f":"'A. Population Info'!P331","v":0},{"$f":"VLOOKUP(OFFSET($B:$B,,MATCH(G$4,$B$4:$F$4,0)-1),OFFSET('C. PoC Adj Factor Scoring'!$E$5:$J$282,,MATCH(G$4,'C. PoC Adj Factor Scoring'!$E$3:$AH$3,0)-1),MATCH(G$2&\" Score\",'C. PoC Adj Factor Scoring'!$E$4:$J$4,0),TRUE)","v":4},{"$f":"VLOOKUP(OFFSET($B:$B,,MATCH(H$4,$B$4:$F$4,0)-1),OFFSET('C. PoC Adj Factor Scoring'!$E$5:$J$282,,MATCH(H$4,'C. PoC Adj Factor Scoring'!$E$3:$AH$3,0)-1),MATCH(H$2&\" Score\",'C. PoC Adj Factor Scoring'!$E$4:$J$4,0),TRUE)","v":1},{"$f":"VLOOKUP(OFFSET($B:$B,,MATCH(I$4,$B$4:$F$4,0)-1),OFFSET('C. PoC Adj Factor Scoring'!$E$5:$J$282,,MATCH(I$4,'C. PoC Adj Factor Scoring'!$E$3:$AH$3,0)-1),MATCH(I$2&\" Score\",'C. PoC Adj Factor Scoring'!$E$4:$J$4,0),TRUE)","v":1},{"$f":"VLOOKUP(OFFSET($B:$B,,MATCH(J$4,$B$4:$F$4,0)-1),OFFSET('C. PoC Adj Factor Scoring'!$E$5:$J$282,,MATCH(J$4,'C. PoC Adj Factor Scoring'!$E$3:$AH$3,0)-1),MATCH(J$2&\" Score\",'C. PoC Adj Factor Scoring'!$E$4:$J$4,0),TRUE)","v":1},{"$f":"VLOOKUP(OFFSET($B:$B,,MATCH(K$4,$B$4:$F$4,0)-1),OFFSET('C. PoC Adj Factor Scoring'!$E$5:$J$282,,MATCH(K$4,'C. PoC Adj Factor Scoring'!$E$3:$AH$3,0)-1),MATCH(K$2&\" Score\",'C. PoC Adj Factor Scoring'!$E$4:$J$4,0),TRUE)","v":1},{"$f":"VLOOKUP(OFFSET($B:$B,,MATCH(L$4,$B$4:$F$4,0)-1),OFFSET('C. PoC Adj Factor Scoring'!$E$5:$J$282,,MATCH(L$4,'C. PoC Adj Factor Scoring'!$E$3:$AH$3,0)-1),MATCH(L$2&\" Score\",'C. PoC Adj Factor Scoring'!$E$4:$J$4,0),TRUE)","v":1},{"$f":"VLOOKUP(OFFSET($B:$B,,MATCH(M$4,$B$4:$F$4,0)-1),OFFSET('C. PoC Adj Factor Scoring'!$E$5:$J$282,,MATCH(M$4,'C. PoC Adj Factor Scoring'!$E$3:$AH$3,0)-1),MATCH(M$2&\" Score\",'C. PoC Adj Factor Scoring'!$E$4:$J$4,0),TRUE)","v":1},{"$f":"VLOOKUP(OFFSET($B:$B,,MATCH(N$4,$B$4:$F$4,0)-1),OFFSET('C. PoC Adj Factor Scoring'!$E$5:$J$282,,MATCH(N$4,'C. PoC Adj Factor Scoring'!$E$3:$AH$3,0)-1),MATCH(N$2&\" Score\",'C. PoC Adj Factor Scoring'!$E$4:$J$4,0),TRUE)","v":1},{"$f":"VLOOKUP(OFFSET($B:$B,,MATCH(O$4,$B$4:$F$4,0)-1),OFFSET('C. PoC Adj Factor Scoring'!$E$5:$J$282,,MATCH(O$4,'C. PoC Adj Factor Scoring'!$E$3:$AH$3,0)-1),MATCH(O$2&\" Score\",'C. PoC Adj Factor Scoring'!$E$4:$J$4,0),TRUE)","v":1},{"$f":"VLOOKUP(OFFSET($B:$B,,MATCH(P$4,$B$4:$F$4,0)-1),OFFSET('C. PoC Adj Factor Scoring'!$E$5:$J$282,,MATCH(P$4,'C. PoC Adj Factor Scoring'!$E$3:$AH$3,0)-1),MATCH(P$2&\" Score\",'C. PoC Adj Factor Scoring'!$E$4:$J$4,0),TRUE)","v":1},{"$f":"VLOOKUP(OFFSET($B:$B,,MATCH(Q$4,$B$4:$F$4,0)-1),OFFSET('C. PoC Adj Factor Scoring'!$E$5:$J$282,,MATCH(Q$4,'C. PoC Adj Factor Scoring'!$E$3:$AH$3,0)-1),MATCH(Q$2&\" Score\",'C. PoC Adj Factor Scoring'!$E$4:$J$4,0),TRUE)","v":1},{"$f":"VLOOKUP(OFFSET($B:$B,,MATCH(R$4,$B$4:$F$4,0)-1),OFFSET('C. PoC Adj Factor Scoring'!$E$5:$J$282,,MATCH(R$4,'C. PoC Adj Factor Scoring'!$E$3:$AH$3,0)-1),MATCH(R$2&\" Score\",'C. PoC Adj Factor Scoring'!$E$4:$J$4,0),TRUE)","v":1},{"$f":"VLOOKUP(OFFSET($B:$B,,MATCH(S$4,$B$4:$F$4,0)-1),OFFSET('C. PoC Adj Factor Scoring'!$E$5:$J$282,,MATCH(S$4,'C. PoC Adj Factor Scoring'!$E$3:$AH$3,0)-1),MATCH(S$2&\" Score\",'C. PoC Adj Factor Scoring'!$E$4:$J$4,0),TRUE)","v":1},{"$f":"VLOOKUP(OFFSET($B:$B,,MATCH(T$4,$B$4:$F$4,0)-1),OFFSET('C. PoC Adj Factor Scoring'!$E$5:$J$282,,MATCH(T$4,'C. PoC Adj Factor Scoring'!$E$3:$AH$3,0)-1),MATCH(T$2&\" Score\",'C. PoC Adj Factor Scoring'!$E$4:$J$4,0),TRUE)","v":1},{"$f":"VLOOKUP(OFFSET($B:$B,,MATCH(U$4,$B$4:$F$4,0)-1),OFFSET('C. PoC Adj Factor Scoring'!$E$5:$J$282,,MATCH(U$4,'C. PoC Adj Factor Scoring'!$E$3:$AH$3,0)-1),MATCH(U$2&\" Score\",'C. PoC Adj Factor Scoring'!$E$4:$J$4,0),TRUE)","v":1},{"$f":"VLOOKUP(OFFSET($B:$B,,MATCH(V$4,$B$4:$F$4,0)-1),OFFSET('C. PoC Adj Factor Scoring'!$E$5:$J$282,,MATCH(V$4,'C. PoC Adj Factor Scoring'!$E$3:$AH$3,0)-1),MATCH(V$2&\" Score\",'C. PoC Adj Factor Scoring'!$E$4:$J$4,0),TRUE)","v":1},{"$f":"VLOOKUP(OFFSET($B:$B,,MATCH(W$4,$B$4:$F$4,0)-1),OFFSET('C. PoC Adj Factor Scoring'!$E$5:$J$282,,MATCH(W$4,'C. PoC Adj Factor Scoring'!$E$3:$AH$3,0)-1),MATCH(W$2&\" Score\",'C. PoC Adj Factor Scoring'!$E$4:$J$4,0),TRUE)","v":1},{"$f":"VLOOKUP(OFFSET($B:$B,,MATCH(X$4,$B$4:$F$4,0)-1),OFFSET('C. PoC Adj Factor Scoring'!$E$5:$J$282,,MATCH(X$4,'C. PoC Adj Factor Scoring'!$E$3:$AH$3,0)-1),MATCH(X$2&\" Score\",'C. PoC Adj Factor Scoring'!$E$4:$J$4,0),TRUE)","v":1},{"$f":"VLOOKUP(OFFSET($B:$B,,MATCH(Y$4,$B$4:$F$4,0)-1),OFFSET('C. PoC Adj Factor Scoring'!$E$5:$J$282,,MATCH(Y$4,'C. PoC Adj Factor Scoring'!$E$3:$AH$3,0)-1),MATCH(Y$2&\" Score\",'C. PoC Adj Factor Scoring'!$E$4:$J$4,0),TRUE)","v":1},{"$f":"VLOOKUP(OFFSET($B:$B,,MATCH(Z$4,$B$4:$F$4,0)-1),OFFSET('C. PoC Adj Factor Scoring'!$E$5:$J$282,,MATCH(Z$4,'C. PoC Adj Factor Scoring'!$E$3:$AH$3,0)-1),MATCH(Z$2&\" Score\",'C. PoC Adj Factor Scoring'!$E$4:$J$4,0),TRUE)","v":1},{"$f":"VLOOKUP(OFFSET($B:$B,,MATCH(AA$4,$B$4:$F$4,0)-1),OFFSET('C. PoC Adj Factor Scoring'!$E$5:$J$282,,MATCH(AA$4,'C. PoC Adj Factor Scoring'!$E$3:$AH$3,0)-1),MATCH(AA$2&\" Score\",'C. PoC Adj Factor Scoring'!$E$4:$J$4,0),TRUE)","v":3},{"$f":"VLOOKUP(OFFSET($B:$B,,MATCH(AB$4,$B$4:$F$4,0)-1),OFFSET('C. PoC Adj Factor Scoring'!$E$5:$J$282,,MATCH(AB$4,'C. PoC Adj Factor Scoring'!$E$3:$AH$3,0)-1),MATCH(AB$2&\" Score\",'C. PoC Adj Factor Scoring'!$E$4:$J$4,0),TRUE)","v":1},{"$f":"VLOOKUP(OFFSET($B:$B,,MATCH(AC$4,$B$4:$F$4,0)-1),OFFSET('C. PoC Adj Factor Scoring'!$E$5:$J$282,,MATCH(AC$4,'C. PoC Adj Factor Scoring'!$E$3:$AH$3,0)-1),MATCH(AC$2&\" Score\",'C. PoC Adj Factor Scoring'!$E$4:$J$4,0),TRUE)","v":1},{"$f":"VLOOKUP(OFFSET($B:$B,,MATCH(AD$4,$B$4:$F$4,0)-1),OFFSET('C. PoC Adj Factor Scoring'!$E$5:$J$282,,MATCH(AD$4,'C. PoC Adj Factor Scoring'!$E$3:$AH$3,0)-1),MATCH(AD$2&\" Score\",'C. PoC Adj Factor Scoring'!$E$4:$J$4,0),TRUE)","v":1},{"$f":"VLOOKUP(OFFSET($B:$B,,MATCH(AE$4,$B$4:$F$4,0)-1),OFFSET('C. PoC Adj Factor Scoring'!$E$5:$J$282,,MATCH(AE$4,'C. PoC Adj Factor Scoring'!$E$3:$AH$3,0)-1),MATCH(AE$2&\" Score\",'C. PoC Adj Factor Scoring'!$E$4:$J$4,0),TRUE)","v":1}]
[{"$f":"'A. Population Info'!A332","v":1000395639},{"$f":"'A. Population Info'!L332","v":"OIL"},{"$f":"'A. Population Info'!M332","v":0},{"$f":"'A. Population Info'!N332","v":0},{"$f":"'A. Population Info'!O332","v":0},{"$f":"'A. Population Info'!P332","v":0},{"$f":"VLOOKUP(OFFSET($B:$B,,MATCH(G$4,$B$4:$F$4,0)-1),OFFSET('C. PoC Adj Factor Scoring'!$E$5:$J$282,,MATCH(G$4,'C. PoC Adj Factor Scoring'!$E$3:$AH$3,0)-1),MATCH(G$2&\" Score\",'C. PoC Adj Factor Scoring'!$E$4:$J$4,0),TRUE)","v":4},{"$f":"VLOOKUP(OFFSET($B:$B,,MATCH(H$4,$B$4:$F$4,0)-1),OFFSET('C. PoC Adj Factor Scoring'!$E$5:$J$282,,MATCH(H$4,'C. PoC Adj Factor Scoring'!$E$3:$AH$3,0)-1),MATCH(H$2&\" Score\",'C. PoC Adj Factor Scoring'!$E$4:$J$4,0),TRUE)","v":1},{"$f":"VLOOKUP(OFFSET($B:$B,,MATCH(I$4,$B$4:$F$4,0)-1),OFFSET('C. PoC Adj Factor Scoring'!$E$5:$J$282,,MATCH(I$4,'C. PoC Adj Factor Scoring'!$E$3:$AH$3,0)-1),MATCH(I$2&\" Score\",'C. PoC Adj Factor Scoring'!$E$4:$J$4,0),TRUE)","v":1},{"$f":"VLOOKUP(OFFSET($B:$B,,MATCH(J$4,$B$4:$F$4,0)-1),OFFSET('C. PoC Adj Factor Scoring'!$E$5:$J$282,,MATCH(J$4,'C. PoC Adj Factor Scoring'!$E$3:$AH$3,0)-1),MATCH(J$2&\" Score\",'C. PoC Adj Factor Scoring'!$E$4:$J$4,0),TRUE)","v":1},{"$f":"VLOOKUP(OFFSET($B:$B,,MATCH(K$4,$B$4:$F$4,0)-1),OFFSET('C. PoC Adj Factor Scoring'!$E$5:$J$282,,MATCH(K$4,'C. PoC Adj Factor Scoring'!$E$3:$AH$3,0)-1),MATCH(K$2&\" Score\",'C. PoC Adj Factor Scoring'!$E$4:$J$4,0),TRUE)","v":1},{"$f":"VLOOKUP(OFFSET($B:$B,,MATCH(L$4,$B$4:$F$4,0)-1),OFFSET('C. PoC Adj Factor Scoring'!$E$5:$J$282,,MATCH(L$4,'C. PoC Adj Factor Scoring'!$E$3:$AH$3,0)-1),MATCH(L$2&\" Score\",'C. PoC Adj Factor Scoring'!$E$4:$J$4,0),TRUE)","v":1},{"$f":"VLOOKUP(OFFSET($B:$B,,MATCH(M$4,$B$4:$F$4,0)-1),OFFSET('C. PoC Adj Factor Scoring'!$E$5:$J$282,,MATCH(M$4,'C. PoC Adj Factor Scoring'!$E$3:$AH$3,0)-1),MATCH(M$2&\" Score\",'C. PoC Adj Factor Scoring'!$E$4:$J$4,0),TRUE)","v":1},{"$f":"VLOOKUP(OFFSET($B:$B,,MATCH(N$4,$B$4:$F$4,0)-1),OFFSET('C. PoC Adj Factor Scoring'!$E$5:$J$282,,MATCH(N$4,'C. PoC Adj Factor Scoring'!$E$3:$AH$3,0)-1),MATCH(N$2&\" Score\",'C. PoC Adj Factor Scoring'!$E$4:$J$4,0),TRUE)","v":1},{"$f":"VLOOKUP(OFFSET($B:$B,,MATCH(O$4,$B$4:$F$4,0)-1),OFFSET('C. PoC Adj Factor Scoring'!$E$5:$J$282,,MATCH(O$4,'C. PoC Adj Factor Scoring'!$E$3:$AH$3,0)-1),MATCH(O$2&\" Score\",'C. PoC Adj Factor Scoring'!$E$4:$J$4,0),TRUE)","v":1},{"$f":"VLOOKUP(OFFSET($B:$B,,MATCH(P$4,$B$4:$F$4,0)-1),OFFSET('C. PoC Adj Factor Scoring'!$E$5:$J$282,,MATCH(P$4,'C. PoC Adj Factor Scoring'!$E$3:$AH$3,0)-1),MATCH(P$2&\" Score\",'C. PoC Adj Factor Scoring'!$E$4:$J$4,0),TRUE)","v":1},{"$f":"VLOOKUP(OFFSET($B:$B,,MATCH(Q$4,$B$4:$F$4,0)-1),OFFSET('C. PoC Adj Factor Scoring'!$E$5:$J$282,,MATCH(Q$4,'C. PoC Adj Factor Scoring'!$E$3:$AH$3,0)-1),MATCH(Q$2&\" Score\",'C. PoC Adj Factor Scoring'!$E$4:$J$4,0),TRUE)","v":1},{"$f":"VLOOKUP(OFFSET($B:$B,,MATCH(R$4,$B$4:$F$4,0)-1),OFFSET('C. PoC Adj Factor Scoring'!$E$5:$J$282,,MATCH(R$4,'C. PoC Adj Factor Scoring'!$E$3:$AH$3,0)-1),MATCH(R$2&\" Score\",'C. PoC Adj Factor Scoring'!$E$4:$J$4,0),TRUE)","v":1},{"$f":"VLOOKUP(OFFSET($B:$B,,MATCH(S$4,$B$4:$F$4,0)-1),OFFSET('C. PoC Adj Factor Scoring'!$E$5:$J$282,,MATCH(S$4,'C. PoC Adj Factor Scoring'!$E$3:$AH$3,0)-1),MATCH(S$2&\" Score\",'C. PoC Adj Factor Scoring'!$E$4:$J$4,0),TRUE)","v":1},{"$f":"VLOOKUP(OFFSET($B:$B,,MATCH(T$4,$B$4:$F$4,0)-1),OFFSET('C. PoC Adj Factor Scoring'!$E$5:$J$282,,MATCH(T$4,'C. PoC Adj Factor Scoring'!$E$3:$AH$3,0)-1),MATCH(T$2&\" Score\",'C. PoC Adj Factor Scoring'!$E$4:$J$4,0),TRUE)","v":1},{"$f":"VLOOKUP(OFFSET($B:$B,,MATCH(U$4,$B$4:$F$4,0)-1),OFFSET('C. PoC Adj Factor Scoring'!$E$5:$J$282,,MATCH(U$4,'C. PoC Adj Factor Scoring'!$E$3:$AH$3,0)-1),MATCH(U$2&\" Score\",'C. PoC Adj Factor Scoring'!$E$4:$J$4,0),TRUE)","v":1},{"$f":"VLOOKUP(OFFSET($B:$B,,MATCH(V$4,$B$4:$F$4,0)-1),OFFSET('C. PoC Adj Factor Scoring'!$E$5:$J$282,,MATCH(V$4,'C. PoC Adj Factor Scoring'!$E$3:$AH$3,0)-1),MATCH(V$2&\" Score\",'C. PoC Adj Factor Scoring'!$E$4:$J$4,0),TRUE)","v":1},{"$f":"VLOOKUP(OFFSET($B:$B,,MATCH(W$4,$B$4:$F$4,0)-1),OFFSET('C. PoC Adj Factor Scoring'!$E$5:$J$282,,MATCH(W$4,'C. PoC Adj Factor Scoring'!$E$3:$AH$3,0)-1),MATCH(W$2&\" Score\",'C. PoC Adj Factor Scoring'!$E$4:$J$4,0),TRUE)","v":1},{"$f":"VLOOKUP(OFFSET($B:$B,,MATCH(X$4,$B$4:$F$4,0)-1),OFFSET('C. PoC Adj Factor Scoring'!$E$5:$J$282,,MATCH(X$4,'C. PoC Adj Factor Scoring'!$E$3:$AH$3,0)-1),MATCH(X$2&\" Score\",'C. PoC Adj Factor Scoring'!$E$4:$J$4,0),TRUE)","v":1},{"$f":"VLOOKUP(OFFSET($B:$B,,MATCH(Y$4,$B$4:$F$4,0)-1),OFFSET('C. PoC Adj Factor Scoring'!$E$5:$J$282,,MATCH(Y$4,'C. PoC Adj Factor Scoring'!$E$3:$AH$3,0)-1),MATCH(Y$2&\" Score\",'C. PoC Adj Factor Scoring'!$E$4:$J$4,0),TRUE)","v":1},{"$f":"VLOOKUP(OFFSET($B:$B,,MATCH(Z$4,$B$4:$F$4,0)-1),OFFSET('C. PoC Adj Factor Scoring'!$E$5:$J$282,,MATCH(Z$4,'C. PoC Adj Factor Scoring'!$E$3:$AH$3,0)-1),MATCH(Z$2&\" Score\",'C. PoC Adj Factor Scoring'!$E$4:$J$4,0),TRUE)","v":1},{"$f":"VLOOKUP(OFFSET($B:$B,,MATCH(AA$4,$B$4:$F$4,0)-1),OFFSET('C. PoC Adj Factor Scoring'!$E$5:$J$282,,MATCH(AA$4,'C. PoC Adj Factor Scoring'!$E$3:$AH$3,0)-1),MATCH(AA$2&\" Score\",'C. PoC Adj Factor Scoring'!$E$4:$J$4,0),TRUE)","v":3},{"$f":"VLOOKUP(OFFSET($B:$B,,MATCH(AB$4,$B$4:$F$4,0)-1),OFFSET('C. PoC Adj Factor Scoring'!$E$5:$J$282,,MATCH(AB$4,'C. PoC Adj Factor Scoring'!$E$3:$AH$3,0)-1),MATCH(AB$2&\" Score\",'C. PoC Adj Factor Scoring'!$E$4:$J$4,0),TRUE)","v":1},{"$f":"VLOOKUP(OFFSET($B:$B,,MATCH(AC$4,$B$4:$F$4,0)-1),OFFSET('C. PoC Adj Factor Scoring'!$E$5:$J$282,,MATCH(AC$4,'C. PoC Adj Factor Scoring'!$E$3:$AH$3,0)-1),MATCH(AC$2&\" Score\",'C. PoC Adj Factor Scoring'!$E$4:$J$4,0),TRUE)","v":1},{"$f":"VLOOKUP(OFFSET($B:$B,,MATCH(AD$4,$B$4:$F$4,0)-1),OFFSET('C. PoC Adj Factor Scoring'!$E$5:$J$282,,MATCH(AD$4,'C. PoC Adj Factor Scoring'!$E$3:$AH$3,0)-1),MATCH(AD$2&\" Score\",'C. PoC Adj Factor Scoring'!$E$4:$J$4,0),TRUE)","v":1},{"$f":"VLOOKUP(OFFSET($B:$B,,MATCH(AE$4,$B$4:$F$4,0)-1),OFFSET('C. PoC Adj Factor Scoring'!$E$5:$J$282,,MATCH(AE$4,'C. PoC Adj Factor Scoring'!$E$3:$AH$3,0)-1),MATCH(AE$2&\" Score\",'C. PoC Adj Factor Scoring'!$E$4:$J$4,0),TRUE)","v":1}]
[{"$f":"'A. Population Info'!A333","v":1000395669},{"$f":"'A. Population Info'!L333","v":"OIL"},{"$f":"'A. Population Info'!M333","v":0},{"$f":"'A. Population Info'!N333","v":0},{"$f":"'A. Population Info'!O333","v":0},{"$f":"'A. Population Info'!P333","v":0},{"$f":"VLOOKUP(OFFSET($B:$B,,MATCH(G$4,$B$4:$F$4,0)-1),OFFSET('C. PoC Adj Factor Scoring'!$E$5:$J$282,,MATCH(G$4,'C. PoC Adj Factor Scoring'!$E$3:$AH$3,0)-1),MATCH(G$2&\" Score\",'C. PoC Adj Factor Scoring'!$E$4:$J$4,0),TRUE)","v":4},{"$f":"VLOOKUP(OFFSET($B:$B,,MATCH(H$4,$B$4:$F$4,0)-1),OFFSET('C. PoC Adj Factor Scoring'!$E$5:$J$282,,MATCH(H$4,'C. PoC Adj Factor Scoring'!$E$3:$AH$3,0)-1),MATCH(H$2&\" Score\",'C. PoC Adj Factor Scoring'!$E$4:$J$4,0),TRUE)","v":1},{"$f":"VLOOKUP(OFFSET($B:$B,,MATCH(I$4,$B$4:$F$4,0)-1),OFFSET('C. PoC Adj Factor Scoring'!$E$5:$J$282,,MATCH(I$4,'C. PoC Adj Factor Scoring'!$E$3:$AH$3,0)-1),MATCH(I$2&\" Score\",'C. PoC Adj Factor Scoring'!$E$4:$J$4,0),TRUE)","v":1},{"$f":"VLOOKUP(OFFSET($B:$B,,MATCH(J$4,$B$4:$F$4,0)-1),OFFSET('C. PoC Adj Factor Scoring'!$E$5:$J$282,,MATCH(J$4,'C. PoC Adj Factor Scoring'!$E$3:$AH$3,0)-1),MATCH(J$2&\" Score\",'C. PoC Adj Factor Scoring'!$E$4:$J$4,0),TRUE)","v":1},{"$f":"VLOOKUP(OFFSET($B:$B,,MATCH(K$4,$B$4:$F$4,0)-1),OFFSET('C. PoC Adj Factor Scoring'!$E$5:$J$282,,MATCH(K$4,'C. PoC Adj Factor Scoring'!$E$3:$AH$3,0)-1),MATCH(K$2&\" Score\",'C. PoC Adj Factor Scoring'!$E$4:$J$4,0),TRUE)","v":1},{"$f":"VLOOKUP(OFFSET($B:$B,,MATCH(L$4,$B$4:$F$4,0)-1),OFFSET('C. PoC Adj Factor Scoring'!$E$5:$J$282,,MATCH(L$4,'C. PoC Adj Factor Scoring'!$E$3:$AH$3,0)-1),MATCH(L$2&\" Score\",'C. PoC Adj Factor Scoring'!$E$4:$J$4,0),TRUE)","v":1},{"$f":"VLOOKUP(OFFSET($B:$B,,MATCH(M$4,$B$4:$F$4,0)-1),OFFSET('C. PoC Adj Factor Scoring'!$E$5:$J$282,,MATCH(M$4,'C. PoC Adj Factor Scoring'!$E$3:$AH$3,0)-1),MATCH(M$2&\" Score\",'C. PoC Adj Factor Scoring'!$E$4:$J$4,0),TRUE)","v":1},{"$f":"VLOOKUP(OFFSET($B:$B,,MATCH(N$4,$B$4:$F$4,0)-1),OFFSET('C. PoC Adj Factor Scoring'!$E$5:$J$282,,MATCH(N$4,'C. PoC Adj Factor Scoring'!$E$3:$AH$3,0)-1),MATCH(N$2&\" Score\",'C. PoC Adj Factor Scoring'!$E$4:$J$4,0),TRUE)","v":1},{"$f":"VLOOKUP(OFFSET($B:$B,,MATCH(O$4,$B$4:$F$4,0)-1),OFFSET('C. PoC Adj Factor Scoring'!$E$5:$J$282,,MATCH(O$4,'C. PoC Adj Factor Scoring'!$E$3:$AH$3,0)-1),MATCH(O$2&\" Score\",'C. PoC Adj Factor Scoring'!$E$4:$J$4,0),TRUE)","v":1},{"$f":"VLOOKUP(OFFSET($B:$B,,MATCH(P$4,$B$4:$F$4,0)-1),OFFSET('C. PoC Adj Factor Scoring'!$E$5:$J$282,,MATCH(P$4,'C. PoC Adj Factor Scoring'!$E$3:$AH$3,0)-1),MATCH(P$2&\" Score\",'C. PoC Adj Factor Scoring'!$E$4:$J$4,0),TRUE)","v":1},{"$f":"VLOOKUP(OFFSET($B:$B,,MATCH(Q$4,$B$4:$F$4,0)-1),OFFSET('C. PoC Adj Factor Scoring'!$E$5:$J$282,,MATCH(Q$4,'C. PoC Adj Factor Scoring'!$E$3:$AH$3,0)-1),MATCH(Q$2&\" Score\",'C. PoC Adj Factor Scoring'!$E$4:$J$4,0),TRUE)","v":1},{"$f":"VLOOKUP(OFFSET($B:$B,,MATCH(R$4,$B$4:$F$4,0)-1),OFFSET('C. PoC Adj Factor Scoring'!$E$5:$J$282,,MATCH(R$4,'C. PoC Adj Factor Scoring'!$E$3:$AH$3,0)-1),MATCH(R$2&\" Score\",'C. PoC Adj Factor Scoring'!$E$4:$J$4,0),TRUE)","v":1},{"$f":"VLOOKUP(OFFSET($B:$B,,MATCH(S$4,$B$4:$F$4,0)-1),OFFSET('C. PoC Adj Factor Scoring'!$E$5:$J$282,,MATCH(S$4,'C. PoC Adj Factor Scoring'!$E$3:$AH$3,0)-1),MATCH(S$2&\" Score\",'C. PoC Adj Factor Scoring'!$E$4:$J$4,0),TRUE)","v":1},{"$f":"VLOOKUP(OFFSET($B:$B,,MATCH(T$4,$B$4:$F$4,0)-1),OFFSET('C. PoC Adj Factor Scoring'!$E$5:$J$282,,MATCH(T$4,'C. PoC Adj Factor Scoring'!$E$3:$AH$3,0)-1),MATCH(T$2&\" Score\",'C. PoC Adj Factor Scoring'!$E$4:$J$4,0),TRUE)","v":1},{"$f":"VLOOKUP(OFFSET($B:$B,,MATCH(U$4,$B$4:$F$4,0)-1),OFFSET('C. PoC Adj Factor Scoring'!$E$5:$J$282,,MATCH(U$4,'C. PoC Adj Factor Scoring'!$E$3:$AH$3,0)-1),MATCH(U$2&\" Score\",'C. PoC Adj Factor Scoring'!$E$4:$J$4,0),TRUE)","v":1},{"$f":"VLOOKUP(OFFSET($B:$B,,MATCH(V$4,$B$4:$F$4,0)-1),OFFSET('C. PoC Adj Factor Scoring'!$E$5:$J$282,,MATCH(V$4,'C. PoC Adj Factor Scoring'!$E$3:$AH$3,0)-1),MATCH(V$2&\" Score\",'C. PoC Adj Factor Scoring'!$E$4:$J$4,0),TRUE)","v":1},{"$f":"VLOOKUP(OFFSET($B:$B,,MATCH(W$4,$B$4:$F$4,0)-1),OFFSET('C. PoC Adj Factor Scoring'!$E$5:$J$282,,MATCH(W$4,'C. PoC Adj Factor Scoring'!$E$3:$AH$3,0)-1),MATCH(W$2&\" Score\",'C. PoC Adj Factor Scoring'!$E$4:$J$4,0),TRUE)","v":1},{"$f":"VLOOKUP(OFFSET($B:$B,,MATCH(X$4,$B$4:$F$4,0)-1),OFFSET('C. PoC Adj Factor Scoring'!$E$5:$J$282,,MATCH(X$4,'C. PoC Adj Factor Scoring'!$E$3:$AH$3,0)-1),MATCH(X$2&\" Score\",'C. PoC Adj Factor Scoring'!$E$4:$J$4,0),TRUE)","v":1},{"$f":"VLOOKUP(OFFSET($B:$B,,MATCH(Y$4,$B$4:$F$4,0)-1),OFFSET('C. PoC Adj Factor Scoring'!$E$5:$J$282,,MATCH(Y$4,'C. PoC Adj Factor Scoring'!$E$3:$AH$3,0)-1),MATCH(Y$2&\" Score\",'C. PoC Adj Factor Scoring'!$E$4:$J$4,0),TRUE)","v":1},{"$f":"VLOOKUP(OFFSET($B:$B,,MATCH(Z$4,$B$4:$F$4,0)-1),OFFSET('C. PoC Adj Factor Scoring'!$E$5:$J$282,,MATCH(Z$4,'C. PoC Adj Factor Scoring'!$E$3:$AH$3,0)-1),MATCH(Z$2&\" Score\",'C. PoC Adj Factor Scoring'!$E$4:$J$4,0),TRUE)","v":1},{"$f":"VLOOKUP(OFFSET($B:$B,,MATCH(AA$4,$B$4:$F$4,0)-1),OFFSET('C. PoC Adj Factor Scoring'!$E$5:$J$282,,MATCH(AA$4,'C. PoC Adj Factor Scoring'!$E$3:$AH$3,0)-1),MATCH(AA$2&\" Score\",'C. PoC Adj Factor Scoring'!$E$4:$J$4,0),TRUE)","v":3},{"$f":"VLOOKUP(OFFSET($B:$B,,MATCH(AB$4,$B$4:$F$4,0)-1),OFFSET('C. PoC Adj Factor Scoring'!$E$5:$J$282,,MATCH(AB$4,'C. PoC Adj Factor Scoring'!$E$3:$AH$3,0)-1),MATCH(AB$2&\" Score\",'C. PoC Adj Factor Scoring'!$E$4:$J$4,0),TRUE)","v":1},{"$f":"VLOOKUP(OFFSET($B:$B,,MATCH(AC$4,$B$4:$F$4,0)-1),OFFSET('C. PoC Adj Factor Scoring'!$E$5:$J$282,,MATCH(AC$4,'C. PoC Adj Factor Scoring'!$E$3:$AH$3,0)-1),MATCH(AC$2&\" Score\",'C. PoC Adj Factor Scoring'!$E$4:$J$4,0),TRUE)","v":1},{"$f":"VLOOKUP(OFFSET($B:$B,,MATCH(AD$4,$B$4:$F$4,0)-1),OFFSET('C. PoC Adj Factor Scoring'!$E$5:$J$282,,MATCH(AD$4,'C. PoC Adj Factor Scoring'!$E$3:$AH$3,0)-1),MATCH(AD$2&\" Score\",'C. PoC Adj Factor Scoring'!$E$4:$J$4,0),TRUE)","v":1},{"$f":"VLOOKUP(OFFSET($B:$B,,MATCH(AE$4,$B$4:$F$4,0)-1),OFFSET('C. PoC Adj Factor Scoring'!$E$5:$J$282,,MATCH(AE$4,'C. PoC Adj Factor Scoring'!$E$3:$AH$3,0)-1),MATCH(AE$2&\" Score\",'C. PoC Adj Factor Scoring'!$E$4:$J$4,0),TRUE)","v":1}]
[{"$f":"'A. Population Info'!A334","v":1000395733},{"$f":"'A. Population Info'!L334","v":"OIL"},{"$f":"'A. Population Info'!M334","v":0},{"$f":"'A. Population Info'!N334","v":0},{"$f":"'A. Population Info'!O334","v":0},{"$f":"'A. Population Info'!P334","v":0},{"$f":"VLOOKUP(OFFSET($B:$B,,MATCH(G$4,$B$4:$F$4,0)-1),OFFSET('C. PoC Adj Factor Scoring'!$E$5:$J$282,,MATCH(G$4,'C. PoC Adj Factor Scoring'!$E$3:$AH$3,0)-1),MATCH(G$2&\" Score\",'C. PoC Adj Factor Scoring'!$E$4:$J$4,0),TRUE)","v":4},{"$f":"VLOOKUP(OFFSET($B:$B,,MATCH(H$4,$B$4:$F$4,0)-1),OFFSET('C. PoC Adj Factor Scoring'!$E$5:$J$282,,MATCH(H$4,'C. PoC Adj Factor Scoring'!$E$3:$AH$3,0)-1),MATCH(H$2&\" Score\",'C. PoC Adj Factor Scoring'!$E$4:$J$4,0),TRUE)","v":1},{"$f":"VLOOKUP(OFFSET($B:$B,,MATCH(I$4,$B$4:$F$4,0)-1),OFFSET('C. PoC Adj Factor Scoring'!$E$5:$J$282,,MATCH(I$4,'C. PoC Adj Factor Scoring'!$E$3:$AH$3,0)-1),MATCH(I$2&\" Score\",'C. PoC Adj Factor Scoring'!$E$4:$J$4,0),TRUE)","v":1},{"$f":"VLOOKUP(OFFSET($B:$B,,MATCH(J$4,$B$4:$F$4,0)-1),OFFSET('C. PoC Adj Factor Scoring'!$E$5:$J$282,,MATCH(J$4,'C. PoC Adj Factor Scoring'!$E$3:$AH$3,0)-1),MATCH(J$2&\" Score\",'C. PoC Adj Factor Scoring'!$E$4:$J$4,0),TRUE)","v":1},{"$f":"VLOOKUP(OFFSET($B:$B,,MATCH(K$4,$B$4:$F$4,0)-1),OFFSET('C. PoC Adj Factor Scoring'!$E$5:$J$282,,MATCH(K$4,'C. PoC Adj Factor Scoring'!$E$3:$AH$3,0)-1),MATCH(K$2&\" Score\",'C. PoC Adj Factor Scoring'!$E$4:$J$4,0),TRUE)","v":1},{"$f":"VLOOKUP(OFFSET($B:$B,,MATCH(L$4,$B$4:$F$4,0)-1),OFFSET('C. PoC Adj Factor Scoring'!$E$5:$J$282,,MATCH(L$4,'C. PoC Adj Factor Scoring'!$E$3:$AH$3,0)-1),MATCH(L$2&\" Score\",'C. PoC Adj Factor Scoring'!$E$4:$J$4,0),TRUE)","v":1},{"$f":"VLOOKUP(OFFSET($B:$B,,MATCH(M$4,$B$4:$F$4,0)-1),OFFSET('C. PoC Adj Factor Scoring'!$E$5:$J$282,,MATCH(M$4,'C. PoC Adj Factor Scoring'!$E$3:$AH$3,0)-1),MATCH(M$2&\" Score\",'C. PoC Adj Factor Scoring'!$E$4:$J$4,0),TRUE)","v":1},{"$f":"VLOOKUP(OFFSET($B:$B,,MATCH(N$4,$B$4:$F$4,0)-1),OFFSET('C. PoC Adj Factor Scoring'!$E$5:$J$282,,MATCH(N$4,'C. PoC Adj Factor Scoring'!$E$3:$AH$3,0)-1),MATCH(N$2&\" Score\",'C. PoC Adj Factor Scoring'!$E$4:$J$4,0),TRUE)","v":1},{"$f":"VLOOKUP(OFFSET($B:$B,,MATCH(O$4,$B$4:$F$4,0)-1),OFFSET('C. PoC Adj Factor Scoring'!$E$5:$J$282,,MATCH(O$4,'C. PoC Adj Factor Scoring'!$E$3:$AH$3,0)-1),MATCH(O$2&\" Score\",'C. PoC Adj Factor Scoring'!$E$4:$J$4,0),TRUE)","v":1},{"$f":"VLOOKUP(OFFSET($B:$B,,MATCH(P$4,$B$4:$F$4,0)-1),OFFSET('C. PoC Adj Factor Scoring'!$E$5:$J$282,,MATCH(P$4,'C. PoC Adj Factor Scoring'!$E$3:$AH$3,0)-1),MATCH(P$2&\" Score\",'C. PoC Adj Factor Scoring'!$E$4:$J$4,0),TRUE)","v":1},{"$f":"VLOOKUP(OFFSET($B:$B,,MATCH(Q$4,$B$4:$F$4,0)-1),OFFSET('C. PoC Adj Factor Scoring'!$E$5:$J$282,,MATCH(Q$4,'C. PoC Adj Factor Scoring'!$E$3:$AH$3,0)-1),MATCH(Q$2&\" Score\",'C. PoC Adj Factor Scoring'!$E$4:$J$4,0),TRUE)","v":1},{"$f":"VLOOKUP(OFFSET($B:$B,,MATCH(R$4,$B$4:$F$4,0)-1),OFFSET('C. PoC Adj Factor Scoring'!$E$5:$J$282,,MATCH(R$4,'C. PoC Adj Factor Scoring'!$E$3:$AH$3,0)-1),MATCH(R$2&\" Score\",'C. PoC Adj Factor Scoring'!$E$4:$J$4,0),TRUE)","v":1},{"$f":"VLOOKUP(OFFSET($B:$B,,MATCH(S$4,$B$4:$F$4,0)-1),OFFSET('C. PoC Adj Factor Scoring'!$E$5:$J$282,,MATCH(S$4,'C. PoC Adj Factor Scoring'!$E$3:$AH$3,0)-1),MATCH(S$2&\" Score\",'C. PoC Adj Factor Scoring'!$E$4:$J$4,0),TRUE)","v":1},{"$f":"VLOOKUP(OFFSET($B:$B,,MATCH(T$4,$B$4:$F$4,0)-1),OFFSET('C. PoC Adj Factor Scoring'!$E$5:$J$282,,MATCH(T$4,'C. PoC Adj Factor Scoring'!$E$3:$AH$3,0)-1),MATCH(T$2&\" Score\",'C. PoC Adj Factor Scoring'!$E$4:$J$4,0),TRUE)","v":1},{"$f":"VLOOKUP(OFFSET($B:$B,,MATCH(U$4,$B$4:$F$4,0)-1),OFFSET('C. PoC Adj Factor Scoring'!$E$5:$J$282,,MATCH(U$4,'C. PoC Adj Factor Scoring'!$E$3:$AH$3,0)-1),MATCH(U$2&\" Score\",'C. PoC Adj Factor Scoring'!$E$4:$J$4,0),TRUE)","v":1},{"$f":"VLOOKUP(OFFSET($B:$B,,MATCH(V$4,$B$4:$F$4,0)-1),OFFSET('C. PoC Adj Factor Scoring'!$E$5:$J$282,,MATCH(V$4,'C. PoC Adj Factor Scoring'!$E$3:$AH$3,0)-1),MATCH(V$2&\" Score\",'C. PoC Adj Factor Scoring'!$E$4:$J$4,0),TRUE)","v":1},{"$f":"VLOOKUP(OFFSET($B:$B,,MATCH(W$4,$B$4:$F$4,0)-1),OFFSET('C. PoC Adj Factor Scoring'!$E$5:$J$282,,MATCH(W$4,'C. PoC Adj Factor Scoring'!$E$3:$AH$3,0)-1),MATCH(W$2&\" Score\",'C. PoC Adj Factor Scoring'!$E$4:$J$4,0),TRUE)","v":1},{"$f":"VLOOKUP(OFFSET($B:$B,,MATCH(X$4,$B$4:$F$4,0)-1),OFFSET('C. PoC Adj Factor Scoring'!$E$5:$J$282,,MATCH(X$4,'C. PoC Adj Factor Scoring'!$E$3:$AH$3,0)-1),MATCH(X$2&\" Score\",'C. PoC Adj Factor Scoring'!$E$4:$J$4,0),TRUE)","v":1},{"$f":"VLOOKUP(OFFSET($B:$B,,MATCH(Y$4,$B$4:$F$4,0)-1),OFFSET('C. PoC Adj Factor Scoring'!$E$5:$J$282,,MATCH(Y$4,'C. PoC Adj Factor Scoring'!$E$3:$AH$3,0)-1),MATCH(Y$2&\" Score\",'C. PoC Adj Factor Scoring'!$E$4:$J$4,0),TRUE)","v":1},{"$f":"VLOOKUP(OFFSET($B:$B,,MATCH(Z$4,$B$4:$F$4,0)-1),OFFSET('C. PoC Adj Factor Scoring'!$E$5:$J$282,,MATCH(Z$4,'C. PoC Adj Factor Scoring'!$E$3:$AH$3,0)-1),MATCH(Z$2&\" Score\",'C. PoC Adj Factor Scoring'!$E$4:$J$4,0),TRUE)","v":1},{"$f":"VLOOKUP(OFFSET($B:$B,,MATCH(AA$4,$B$4:$F$4,0)-1),OFFSET('C. PoC Adj Factor Scoring'!$E$5:$J$282,,MATCH(AA$4,'C. PoC Adj Factor Scoring'!$E$3:$AH$3,0)-1),MATCH(AA$2&\" Score\",'C. PoC Adj Factor Scoring'!$E$4:$J$4,0),TRUE)","v":3},{"$f":"VLOOKUP(OFFSET($B:$B,,MATCH(AB$4,$B$4:$F$4,0)-1),OFFSET('C. PoC Adj Factor Scoring'!$E$5:$J$282,,MATCH(AB$4,'C. PoC Adj Factor Scoring'!$E$3:$AH$3,0)-1),MATCH(AB$2&\" Score\",'C. PoC Adj Factor Scoring'!$E$4:$J$4,0),TRUE)","v":1},{"$f":"VLOOKUP(OFFSET($B:$B,,MATCH(AC$4,$B$4:$F$4,0)-1),OFFSET('C. PoC Adj Factor Scoring'!$E$5:$J$282,,MATCH(AC$4,'C. PoC Adj Factor Scoring'!$E$3:$AH$3,0)-1),MATCH(AC$2&\" Score\",'C. PoC Adj Factor Scoring'!$E$4:$J$4,0),TRUE)","v":1},{"$f":"VLOOKUP(OFFSET($B:$B,,MATCH(AD$4,$B$4:$F$4,0)-1),OFFSET('C. PoC Adj Factor Scoring'!$E$5:$J$282,,MATCH(AD$4,'C. PoC Adj Factor Scoring'!$E$3:$AH$3,0)-1),MATCH(AD$2&\" Score\",'C. PoC Adj Factor Scoring'!$E$4:$J$4,0),TRUE)","v":1},{"$f":"VLOOKUP(OFFSET($B:$B,,MATCH(AE$4,$B$4:$F$4,0)-1),OFFSET('C. PoC Adj Factor Scoring'!$E$5:$J$282,,MATCH(AE$4,'C. PoC Adj Factor Scoring'!$E$3:$AH$3,0)-1),MATCH(AE$2&\" Score\",'C. PoC Adj Factor Scoring'!$E$4:$J$4,0),TRUE)","v":1}]
[{"$f":"'A. Population Info'!A335","v":1000395763},{"$f":"'A. Population Info'!L335","v":"OIL"},{"$f":"'A. Population Info'!M335","v":0},{"$f":"'A. Population Info'!N335","v":0},{"$f":"'A. Population Info'!O335","v":0},{"$f":"'A. Population Info'!P335","v":0},{"$f":"VLOOKUP(OFFSET($B:$B,,MATCH(G$4,$B$4:$F$4,0)-1),OFFSET('C. PoC Adj Factor Scoring'!$E$5:$J$282,,MATCH(G$4,'C. PoC Adj Factor Scoring'!$E$3:$AH$3,0)-1),MATCH(G$2&\" Score\",'C. PoC Adj Factor Scoring'!$E$4:$J$4,0),TRUE)","v":4},{"$f":"VLOOKUP(OFFSET($B:$B,,MATCH(H$4,$B$4:$F$4,0)-1),OFFSET('C. PoC Adj Factor Scoring'!$E$5:$J$282,,MATCH(H$4,'C. PoC Adj Factor Scoring'!$E$3:$AH$3,0)-1),MATCH(H$2&\" Score\",'C. PoC Adj Factor Scoring'!$E$4:$J$4,0),TRUE)","v":1},{"$f":"VLOOKUP(OFFSET($B:$B,,MATCH(I$4,$B$4:$F$4,0)-1),OFFSET('C. PoC Adj Factor Scoring'!$E$5:$J$282,,MATCH(I$4,'C. PoC Adj Factor Scoring'!$E$3:$AH$3,0)-1),MATCH(I$2&\" Score\",'C. PoC Adj Factor Scoring'!$E$4:$J$4,0),TRUE)","v":1},{"$f":"VLOOKUP(OFFSET($B:$B,,MATCH(J$4,$B$4:$F$4,0)-1),OFFSET('C. PoC Adj Factor Scoring'!$E$5:$J$282,,MATCH(J$4,'C. PoC Adj Factor Scoring'!$E$3:$AH$3,0)-1),MATCH(J$2&\" Score\",'C. PoC Adj Factor Scoring'!$E$4:$J$4,0),TRUE)","v":1},{"$f":"VLOOKUP(OFFSET($B:$B,,MATCH(K$4,$B$4:$F$4,0)-1),OFFSET('C. PoC Adj Factor Scoring'!$E$5:$J$282,,MATCH(K$4,'C. PoC Adj Factor Scoring'!$E$3:$AH$3,0)-1),MATCH(K$2&\" Score\",'C. PoC Adj Factor Scoring'!$E$4:$J$4,0),TRUE)","v":1},{"$f":"VLOOKUP(OFFSET($B:$B,,MATCH(L$4,$B$4:$F$4,0)-1),OFFSET('C. PoC Adj Factor Scoring'!$E$5:$J$282,,MATCH(L$4,'C. PoC Adj Factor Scoring'!$E$3:$AH$3,0)-1),MATCH(L$2&\" Score\",'C. PoC Adj Factor Scoring'!$E$4:$J$4,0),TRUE)","v":1},{"$f":"VLOOKUP(OFFSET($B:$B,,MATCH(M$4,$B$4:$F$4,0)-1),OFFSET('C. PoC Adj Factor Scoring'!$E$5:$J$282,,MATCH(M$4,'C. PoC Adj Factor Scoring'!$E$3:$AH$3,0)-1),MATCH(M$2&\" Score\",'C. PoC Adj Factor Scoring'!$E$4:$J$4,0),TRUE)","v":1},{"$f":"VLOOKUP(OFFSET($B:$B,,MATCH(N$4,$B$4:$F$4,0)-1),OFFSET('C. PoC Adj Factor Scoring'!$E$5:$J$282,,MATCH(N$4,'C. PoC Adj Factor Scoring'!$E$3:$AH$3,0)-1),MATCH(N$2&\" Score\",'C. PoC Adj Factor Scoring'!$E$4:$J$4,0),TRUE)","v":1},{"$f":"VLOOKUP(OFFSET($B:$B,,MATCH(O$4,$B$4:$F$4,0)-1),OFFSET('C. PoC Adj Factor Scoring'!$E$5:$J$282,,MATCH(O$4,'C. PoC Adj Factor Scoring'!$E$3:$AH$3,0)-1),MATCH(O$2&\" Score\",'C. PoC Adj Factor Scoring'!$E$4:$J$4,0),TRUE)","v":1},{"$f":"VLOOKUP(OFFSET($B:$B,,MATCH(P$4,$B$4:$F$4,0)-1),OFFSET('C. PoC Adj Factor Scoring'!$E$5:$J$282,,MATCH(P$4,'C. PoC Adj Factor Scoring'!$E$3:$AH$3,0)-1),MATCH(P$2&\" Score\",'C. PoC Adj Factor Scoring'!$E$4:$J$4,0),TRUE)","v":1},{"$f":"VLOOKUP(OFFSET($B:$B,,MATCH(Q$4,$B$4:$F$4,0)-1),OFFSET('C. PoC Adj Factor Scoring'!$E$5:$J$282,,MATCH(Q$4,'C. PoC Adj Factor Scoring'!$E$3:$AH$3,0)-1),MATCH(Q$2&\" Score\",'C. PoC Adj Factor Scoring'!$E$4:$J$4,0),TRUE)","v":1},{"$f":"VLOOKUP(OFFSET($B:$B,,MATCH(R$4,$B$4:$F$4,0)-1),OFFSET('C. PoC Adj Factor Scoring'!$E$5:$J$282,,MATCH(R$4,'C. PoC Adj Factor Scoring'!$E$3:$AH$3,0)-1),MATCH(R$2&\" Score\",'C. PoC Adj Factor Scoring'!$E$4:$J$4,0),TRUE)","v":1},{"$f":"VLOOKUP(OFFSET($B:$B,,MATCH(S$4,$B$4:$F$4,0)-1),OFFSET('C. PoC Adj Factor Scoring'!$E$5:$J$282,,MATCH(S$4,'C. PoC Adj Factor Scoring'!$E$3:$AH$3,0)-1),MATCH(S$2&\" Score\",'C. PoC Adj Factor Scoring'!$E$4:$J$4,0),TRUE)","v":1},{"$f":"VLOOKUP(OFFSET($B:$B,,MATCH(T$4,$B$4:$F$4,0)-1),OFFSET('C. PoC Adj Factor Scoring'!$E$5:$J$282,,MATCH(T$4,'C. PoC Adj Factor Scoring'!$E$3:$AH$3,0)-1),MATCH(T$2&\" Score\",'C. PoC Adj Factor Scoring'!$E$4:$J$4,0),TRUE)","v":1},{"$f":"VLOOKUP(OFFSET($B:$B,,MATCH(U$4,$B$4:$F$4,0)-1),OFFSET('C. PoC Adj Factor Scoring'!$E$5:$J$282,,MATCH(U$4,'C. PoC Adj Factor Scoring'!$E$3:$AH$3,0)-1),MATCH(U$2&\" Score\",'C. PoC Adj Factor Scoring'!$E$4:$J$4,0),TRUE)","v":1},{"$f":"VLOOKUP(OFFSET($B:$B,,MATCH(V$4,$B$4:$F$4,0)-1),OFFSET('C. PoC Adj Factor Scoring'!$E$5:$J$282,,MATCH(V$4,'C. PoC Adj Factor Scoring'!$E$3:$AH$3,0)-1),MATCH(V$2&\" Score\",'C. PoC Adj Factor Scoring'!$E$4:$J$4,0),TRUE)","v":1},{"$f":"VLOOKUP(OFFSET($B:$B,,MATCH(W$4,$B$4:$F$4,0)-1),OFFSET('C. PoC Adj Factor Scoring'!$E$5:$J$282,,MATCH(W$4,'C. PoC Adj Factor Scoring'!$E$3:$AH$3,0)-1),MATCH(W$2&\" Score\",'C. PoC Adj Factor Scoring'!$E$4:$J$4,0),TRUE)","v":1},{"$f":"VLOOKUP(OFFSET($B:$B,,MATCH(X$4,$B$4:$F$4,0)-1),OFFSET('C. PoC Adj Factor Scoring'!$E$5:$J$282,,MATCH(X$4,'C. PoC Adj Factor Scoring'!$E$3:$AH$3,0)-1),MATCH(X$2&\" Score\",'C. PoC Adj Factor Scoring'!$E$4:$J$4,0),TRUE)","v":1},{"$f":"VLOOKUP(OFFSET($B:$B,,MATCH(Y$4,$B$4:$F$4,0)-1),OFFSET('C. PoC Adj Factor Scoring'!$E$5:$J$282,,MATCH(Y$4,'C. PoC Adj Factor Scoring'!$E$3:$AH$3,0)-1),MATCH(Y$2&\" Score\",'C. PoC Adj Factor Scoring'!$E$4:$J$4,0),TRUE)","v":1},{"$f":"VLOOKUP(OFFSET($B:$B,,MATCH(Z$4,$B$4:$F$4,0)-1),OFFSET('C. PoC Adj Factor Scoring'!$E$5:$J$282,,MATCH(Z$4,'C. PoC Adj Factor Scoring'!$E$3:$AH$3,0)-1),MATCH(Z$2&\" Score\",'C. PoC Adj Factor Scoring'!$E$4:$J$4,0),TRUE)","v":1},{"$f":"VLOOKUP(OFFSET($B:$B,,MATCH(AA$4,$B$4:$F$4,0)-1),OFFSET('C. PoC Adj Factor Scoring'!$E$5:$J$282,,MATCH(AA$4,'C. PoC Adj Factor Scoring'!$E$3:$AH$3,0)-1),MATCH(AA$2&\" Score\",'C. PoC Adj Factor Scoring'!$E$4:$J$4,0),TRUE)","v":3},{"$f":"VLOOKUP(OFFSET($B:$B,,MATCH(AB$4,$B$4:$F$4,0)-1),OFFSET('C. PoC Adj Factor Scoring'!$E$5:$J$282,,MATCH(AB$4,'C. PoC Adj Factor Scoring'!$E$3:$AH$3,0)-1),MATCH(AB$2&\" Score\",'C. PoC Adj Factor Scoring'!$E$4:$J$4,0),TRUE)","v":1},{"$f":"VLOOKUP(OFFSET($B:$B,,MATCH(AC$4,$B$4:$F$4,0)-1),OFFSET('C. PoC Adj Factor Scoring'!$E$5:$J$282,,MATCH(AC$4,'C. PoC Adj Factor Scoring'!$E$3:$AH$3,0)-1),MATCH(AC$2&\" Score\",'C. PoC Adj Factor Scoring'!$E$4:$J$4,0),TRUE)","v":1},{"$f":"VLOOKUP(OFFSET($B:$B,,MATCH(AD$4,$B$4:$F$4,0)-1),OFFSET('C. PoC Adj Factor Scoring'!$E$5:$J$282,,MATCH(AD$4,'C. PoC Adj Factor Scoring'!$E$3:$AH$3,0)-1),MATCH(AD$2&\" Score\",'C. PoC Adj Factor Scoring'!$E$4:$J$4,0),TRUE)","v":1},{"$f":"VLOOKUP(OFFSET($B:$B,,MATCH(AE$4,$B$4:$F$4,0)-1),OFFSET('C. PoC Adj Factor Scoring'!$E$5:$J$282,,MATCH(AE$4,'C. PoC Adj Factor Scoring'!$E$3:$AH$3,0)-1),MATCH(AE$2&\" Score\",'C. PoC Adj Factor Scoring'!$E$4:$J$4,0),TRUE)","v":1}]
[{"$f":"'A. Population Info'!A336","v":1000395789},{"$f":"'A. Population Info'!L336","v":"OIL"},{"$f":"'A. Population Info'!M336","v":0},{"$f":"'A. Population Info'!N336","v":0},{"$f":"'A. Population Info'!O336","v":0},{"$f":"'A. Population Info'!P336","v":0},{"$f":"VLOOKUP(OFFSET($B:$B,,MATCH(G$4,$B$4:$F$4,0)-1),OFFSET('C. PoC Adj Factor Scoring'!$E$5:$J$282,,MATCH(G$4,'C. PoC Adj Factor Scoring'!$E$3:$AH$3,0)-1),MATCH(G$2&\" Score\",'C. PoC Adj Factor Scoring'!$E$4:$J$4,0),TRUE)","v":4},{"$f":"VLOOKUP(OFFSET($B:$B,,MATCH(H$4,$B$4:$F$4,0)-1),OFFSET('C. PoC Adj Factor Scoring'!$E$5:$J$282,,MATCH(H$4,'C. PoC Adj Factor Scoring'!$E$3:$AH$3,0)-1),MATCH(H$2&\" Score\",'C. PoC Adj Factor Scoring'!$E$4:$J$4,0),TRUE)","v":1},{"$f":"VLOOKUP(OFFSET($B:$B,,MATCH(I$4,$B$4:$F$4,0)-1),OFFSET('C. PoC Adj Factor Scoring'!$E$5:$J$282,,MATCH(I$4,'C. PoC Adj Factor Scoring'!$E$3:$AH$3,0)-1),MATCH(I$2&\" Score\",'C. PoC Adj Factor Scoring'!$E$4:$J$4,0),TRUE)","v":1},{"$f":"VLOOKUP(OFFSET($B:$B,,MATCH(J$4,$B$4:$F$4,0)-1),OFFSET('C. PoC Adj Factor Scoring'!$E$5:$J$282,,MATCH(J$4,'C. PoC Adj Factor Scoring'!$E$3:$AH$3,0)-1),MATCH(J$2&\" Score\",'C. PoC Adj Factor Scoring'!$E$4:$J$4,0),TRUE)","v":1},{"$f":"VLOOKUP(OFFSET($B:$B,,MATCH(K$4,$B$4:$F$4,0)-1),OFFSET('C. PoC Adj Factor Scoring'!$E$5:$J$282,,MATCH(K$4,'C. PoC Adj Factor Scoring'!$E$3:$AH$3,0)-1),MATCH(K$2&\" Score\",'C. PoC Adj Factor Scoring'!$E$4:$J$4,0),TRUE)","v":1},{"$f":"VLOOKUP(OFFSET($B:$B,,MATCH(L$4,$B$4:$F$4,0)-1),OFFSET('C. PoC Adj Factor Scoring'!$E$5:$J$282,,MATCH(L$4,'C. PoC Adj Factor Scoring'!$E$3:$AH$3,0)-1),MATCH(L$2&\" Score\",'C. PoC Adj Factor Scoring'!$E$4:$J$4,0),TRUE)","v":1},{"$f":"VLOOKUP(OFFSET($B:$B,,MATCH(M$4,$B$4:$F$4,0)-1),OFFSET('C. PoC Adj Factor Scoring'!$E$5:$J$282,,MATCH(M$4,'C. PoC Adj Factor Scoring'!$E$3:$AH$3,0)-1),MATCH(M$2&\" Score\",'C. PoC Adj Factor Scoring'!$E$4:$J$4,0),TRUE)","v":1},{"$f":"VLOOKUP(OFFSET($B:$B,,MATCH(N$4,$B$4:$F$4,0)-1),OFFSET('C. PoC Adj Factor Scoring'!$E$5:$J$282,,MATCH(N$4,'C. PoC Adj Factor Scoring'!$E$3:$AH$3,0)-1),MATCH(N$2&\" Score\",'C. PoC Adj Factor Scoring'!$E$4:$J$4,0),TRUE)","v":1},{"$f":"VLOOKUP(OFFSET($B:$B,,MATCH(O$4,$B$4:$F$4,0)-1),OFFSET('C. PoC Adj Factor Scoring'!$E$5:$J$282,,MATCH(O$4,'C. PoC Adj Factor Scoring'!$E$3:$AH$3,0)-1),MATCH(O$2&\" Score\",'C. PoC Adj Factor Scoring'!$E$4:$J$4,0),TRUE)","v":1},{"$f":"VLOOKUP(OFFSET($B:$B,,MATCH(P$4,$B$4:$F$4,0)-1),OFFSET('C. PoC Adj Factor Scoring'!$E$5:$J$282,,MATCH(P$4,'C. PoC Adj Factor Scoring'!$E$3:$AH$3,0)-1),MATCH(P$2&\" Score\",'C. PoC Adj Factor Scoring'!$E$4:$J$4,0),TRUE)","v":1},{"$f":"VLOOKUP(OFFSET($B:$B,,MATCH(Q$4,$B$4:$F$4,0)-1),OFFSET('C. PoC Adj Factor Scoring'!$E$5:$J$282,,MATCH(Q$4,'C. PoC Adj Factor Scoring'!$E$3:$AH$3,0)-1),MATCH(Q$2&\" Score\",'C. PoC Adj Factor Scoring'!$E$4:$J$4,0),TRUE)","v":1},{"$f":"VLOOKUP(OFFSET($B:$B,,MATCH(R$4,$B$4:$F$4,0)-1),OFFSET('C. PoC Adj Factor Scoring'!$E$5:$J$282,,MATCH(R$4,'C. PoC Adj Factor Scoring'!$E$3:$AH$3,0)-1),MATCH(R$2&\" Score\",'C. PoC Adj Factor Scoring'!$E$4:$J$4,0),TRUE)","v":1},{"$f":"VLOOKUP(OFFSET($B:$B,,MATCH(S$4,$B$4:$F$4,0)-1),OFFSET('C. PoC Adj Factor Scoring'!$E$5:$J$282,,MATCH(S$4,'C. PoC Adj Factor Scoring'!$E$3:$AH$3,0)-1),MATCH(S$2&\" Score\",'C. PoC Adj Factor Scoring'!$E$4:$J$4,0),TRUE)","v":1},{"$f":"VLOOKUP(OFFSET($B:$B,,MATCH(T$4,$B$4:$F$4,0)-1),OFFSET('C. PoC Adj Factor Scoring'!$E$5:$J$282,,MATCH(T$4,'C. PoC Adj Factor Scoring'!$E$3:$AH$3,0)-1),MATCH(T$2&\" Score\",'C. PoC Adj Factor Scoring'!$E$4:$J$4,0),TRUE)","v":1},{"$f":"VLOOKUP(OFFSET($B:$B,,MATCH(U$4,$B$4:$F$4,0)-1),OFFSET('C. PoC Adj Factor Scoring'!$E$5:$J$282,,MATCH(U$4,'C. PoC Adj Factor Scoring'!$E$3:$AH$3,0)-1),MATCH(U$2&\" Score\",'C. PoC Adj Factor Scoring'!$E$4:$J$4,0),TRUE)","v":1},{"$f":"VLOOKUP(OFFSET($B:$B,,MATCH(V$4,$B$4:$F$4,0)-1),OFFSET('C. PoC Adj Factor Scoring'!$E$5:$J$282,,MATCH(V$4,'C. PoC Adj Factor Scoring'!$E$3:$AH$3,0)-1),MATCH(V$2&\" Score\",'C. PoC Adj Factor Scoring'!$E$4:$J$4,0),TRUE)","v":1},{"$f":"VLOOKUP(OFFSET($B:$B,,MATCH(W$4,$B$4:$F$4,0)-1),OFFSET('C. PoC Adj Factor Scoring'!$E$5:$J$282,,MATCH(W$4,'C. PoC Adj Factor Scoring'!$E$3:$AH$3,0)-1),MATCH(W$2&\" Score\",'C. PoC Adj Factor Scoring'!$E$4:$J$4,0),TRUE)","v":1},{"$f":"VLOOKUP(OFFSET($B:$B,,MATCH(X$4,$B$4:$F$4,0)-1),OFFSET('C. PoC Adj Factor Scoring'!$E$5:$J$282,,MATCH(X$4,'C. PoC Adj Factor Scoring'!$E$3:$AH$3,0)-1),MATCH(X$2&\" Score\",'C. PoC Adj Factor Scoring'!$E$4:$J$4,0),TRUE)","v":1},{"$f":"VLOOKUP(OFFSET($B:$B,,MATCH(Y$4,$B$4:$F$4,0)-1),OFFSET('C. PoC Adj Factor Scoring'!$E$5:$J$282,,MATCH(Y$4,'C. PoC Adj Factor Scoring'!$E$3:$AH$3,0)-1),MATCH(Y$2&\" Score\",'C. PoC Adj Factor Scoring'!$E$4:$J$4,0),TRUE)","v":1},{"$f":"VLOOKUP(OFFSET($B:$B,,MATCH(Z$4,$B$4:$F$4,0)-1),OFFSET('C. PoC Adj Factor Scoring'!$E$5:$J$282,,MATCH(Z$4,'C. PoC Adj Factor Scoring'!$E$3:$AH$3,0)-1),MATCH(Z$2&\" Score\",'C. PoC Adj Factor Scoring'!$E$4:$J$4,0),TRUE)","v":1},{"$f":"VLOOKUP(OFFSET($B:$B,,MATCH(AA$4,$B$4:$F$4,0)-1),OFFSET('C. PoC Adj Factor Scoring'!$E$5:$J$282,,MATCH(AA$4,'C. PoC Adj Factor Scoring'!$E$3:$AH$3,0)-1),MATCH(AA$2&\" Score\",'C. PoC Adj Factor Scoring'!$E$4:$J$4,0),TRUE)","v":3},{"$f":"VLOOKUP(OFFSET($B:$B,,MATCH(AB$4,$B$4:$F$4,0)-1),OFFSET('C. PoC Adj Factor Scoring'!$E$5:$J$282,,MATCH(AB$4,'C. PoC Adj Factor Scoring'!$E$3:$AH$3,0)-1),MATCH(AB$2&\" Score\",'C. PoC Adj Factor Scoring'!$E$4:$J$4,0),TRUE)","v":1},{"$f":"VLOOKUP(OFFSET($B:$B,,MATCH(AC$4,$B$4:$F$4,0)-1),OFFSET('C. PoC Adj Factor Scoring'!$E$5:$J$282,,MATCH(AC$4,'C. PoC Adj Factor Scoring'!$E$3:$AH$3,0)-1),MATCH(AC$2&\" Score\",'C. PoC Adj Factor Scoring'!$E$4:$J$4,0),TRUE)","v":1},{"$f":"VLOOKUP(OFFSET($B:$B,,MATCH(AD$4,$B$4:$F$4,0)-1),OFFSET('C. PoC Adj Factor Scoring'!$E$5:$J$282,,MATCH(AD$4,'C. PoC Adj Factor Scoring'!$E$3:$AH$3,0)-1),MATCH(AD$2&\" Score\",'C. PoC Adj Factor Scoring'!$E$4:$J$4,0),TRUE)","v":1},{"$f":"VLOOKUP(OFFSET($B:$B,,MATCH(AE$4,$B$4:$F$4,0)-1),OFFSET('C. PoC Adj Factor Scoring'!$E$5:$J$282,,MATCH(AE$4,'C. PoC Adj Factor Scoring'!$E$3:$AH$3,0)-1),MATCH(AE$2&\" Score\",'C. PoC Adj Factor Scoring'!$E$4:$J$4,0),TRUE)","v":1}]
[{"$f":"'A. Population Info'!A337","v":1000395818},{"$f":"'A. Population Info'!L337","v":"OIL"},{"$f":"'A. Population Info'!M337","v":0},{"$f":"'A. Population Info'!N337","v":0},{"$f":"'A. Population Info'!O337","v":0},{"$f":"'A. Population Info'!P337","v":0},{"$f":"VLOOKUP(OFFSET($B:$B,,MATCH(G$4,$B$4:$F$4,0)-1),OFFSET('C. PoC Adj Factor Scoring'!$E$5:$J$282,,MATCH(G$4,'C. PoC Adj Factor Scoring'!$E$3:$AH$3,0)-1),MATCH(G$2&\" Score\",'C. PoC Adj Factor Scoring'!$E$4:$J$4,0),TRUE)","v":4},{"$f":"VLOOKUP(OFFSET($B:$B,,MATCH(H$4,$B$4:$F$4,0)-1),OFFSET('C. PoC Adj Factor Scoring'!$E$5:$J$282,,MATCH(H$4,'C. PoC Adj Factor Scoring'!$E$3:$AH$3,0)-1),MATCH(H$2&\" Score\",'C. PoC Adj Factor Scoring'!$E$4:$J$4,0),TRUE)","v":1},{"$f":"VLOOKUP(OFFSET($B:$B,,MATCH(I$4,$B$4:$F$4,0)-1),OFFSET('C. PoC Adj Factor Scoring'!$E$5:$J$282,,MATCH(I$4,'C. PoC Adj Factor Scoring'!$E$3:$AH$3,0)-1),MATCH(I$2&\" Score\",'C. PoC Adj Factor Scoring'!$E$4:$J$4,0),TRUE)","v":1},{"$f":"VLOOKUP(OFFSET($B:$B,,MATCH(J$4,$B$4:$F$4,0)-1),OFFSET('C. PoC Adj Factor Scoring'!$E$5:$J$282,,MATCH(J$4,'C. PoC Adj Factor Scoring'!$E$3:$AH$3,0)-1),MATCH(J$2&\" Score\",'C. PoC Adj Factor Scoring'!$E$4:$J$4,0),TRUE)","v":1},{"$f":"VLOOKUP(OFFSET($B:$B,,MATCH(K$4,$B$4:$F$4,0)-1),OFFSET('C. PoC Adj Factor Scoring'!$E$5:$J$282,,MATCH(K$4,'C. PoC Adj Factor Scoring'!$E$3:$AH$3,0)-1),MATCH(K$2&\" Score\",'C. PoC Adj Factor Scoring'!$E$4:$J$4,0),TRUE)","v":1},{"$f":"VLOOKUP(OFFSET($B:$B,,MATCH(L$4,$B$4:$F$4,0)-1),OFFSET('C. PoC Adj Factor Scoring'!$E$5:$J$282,,MATCH(L$4,'C. PoC Adj Factor Scoring'!$E$3:$AH$3,0)-1),MATCH(L$2&\" Score\",'C. PoC Adj Factor Scoring'!$E$4:$J$4,0),TRUE)","v":1},{"$f":"VLOOKUP(OFFSET($B:$B,,MATCH(M$4,$B$4:$F$4,0)-1),OFFSET('C. PoC Adj Factor Scoring'!$E$5:$J$282,,MATCH(M$4,'C. PoC Adj Factor Scoring'!$E$3:$AH$3,0)-1),MATCH(M$2&\" Score\",'C. PoC Adj Factor Scoring'!$E$4:$J$4,0),TRUE)","v":1},{"$f":"VLOOKUP(OFFSET($B:$B,,MATCH(N$4,$B$4:$F$4,0)-1),OFFSET('C. PoC Adj Factor Scoring'!$E$5:$J$282,,MATCH(N$4,'C. PoC Adj Factor Scoring'!$E$3:$AH$3,0)-1),MATCH(N$2&\" Score\",'C. PoC Adj Factor Scoring'!$E$4:$J$4,0),TRUE)","v":1},{"$f":"VLOOKUP(OFFSET($B:$B,,MATCH(O$4,$B$4:$F$4,0)-1),OFFSET('C. PoC Adj Factor Scoring'!$E$5:$J$282,,MATCH(O$4,'C. PoC Adj Factor Scoring'!$E$3:$AH$3,0)-1),MATCH(O$2&\" Score\",'C. PoC Adj Factor Scoring'!$E$4:$J$4,0),TRUE)","v":1},{"$f":"VLOOKUP(OFFSET($B:$B,,MATCH(P$4,$B$4:$F$4,0)-1),OFFSET('C. PoC Adj Factor Scoring'!$E$5:$J$282,,MATCH(P$4,'C. PoC Adj Factor Scoring'!$E$3:$AH$3,0)-1),MATCH(P$2&\" Score\",'C. PoC Adj Factor Scoring'!$E$4:$J$4,0),TRUE)","v":1},{"$f":"VLOOKUP(OFFSET($B:$B,,MATCH(Q$4,$B$4:$F$4,0)-1),OFFSET('C. PoC Adj Factor Scoring'!$E$5:$J$282,,MATCH(Q$4,'C. PoC Adj Factor Scoring'!$E$3:$AH$3,0)-1),MATCH(Q$2&\" Score\",'C. PoC Adj Factor Scoring'!$E$4:$J$4,0),TRUE)","v":1},{"$f":"VLOOKUP(OFFSET($B:$B,,MATCH(R$4,$B$4:$F$4,0)-1),OFFSET('C. PoC Adj Factor Scoring'!$E$5:$J$282,,MATCH(R$4,'C. PoC Adj Factor Scoring'!$E$3:$AH$3,0)-1),MATCH(R$2&\" Score\",'C. PoC Adj Factor Scoring'!$E$4:$J$4,0),TRUE)","v":1},{"$f":"VLOOKUP(OFFSET($B:$B,,MATCH(S$4,$B$4:$F$4,0)-1),OFFSET('C. PoC Adj Factor Scoring'!$E$5:$J$282,,MATCH(S$4,'C. PoC Adj Factor Scoring'!$E$3:$AH$3,0)-1),MATCH(S$2&\" Score\",'C. PoC Adj Factor Scoring'!$E$4:$J$4,0),TRUE)","v":1},{"$f":"VLOOKUP(OFFSET($B:$B,,MATCH(T$4,$B$4:$F$4,0)-1),OFFSET('C. PoC Adj Factor Scoring'!$E$5:$J$282,,MATCH(T$4,'C. PoC Adj Factor Scoring'!$E$3:$AH$3,0)-1),MATCH(T$2&\" Score\",'C. PoC Adj Factor Scoring'!$E$4:$J$4,0),TRUE)","v":1},{"$f":"VLOOKUP(OFFSET($B:$B,,MATCH(U$4,$B$4:$F$4,0)-1),OFFSET('C. PoC Adj Factor Scoring'!$E$5:$J$282,,MATCH(U$4,'C. PoC Adj Factor Scoring'!$E$3:$AH$3,0)-1),MATCH(U$2&\" Score\",'C. PoC Adj Factor Scoring'!$E$4:$J$4,0),TRUE)","v":1},{"$f":"VLOOKUP(OFFSET($B:$B,,MATCH(V$4,$B$4:$F$4,0)-1),OFFSET('C. PoC Adj Factor Scoring'!$E$5:$J$282,,MATCH(V$4,'C. PoC Adj Factor Scoring'!$E$3:$AH$3,0)-1),MATCH(V$2&\" Score\",'C. PoC Adj Factor Scoring'!$E$4:$J$4,0),TRUE)","v":1},{"$f":"VLOOKUP(OFFSET($B:$B,,MATCH(W$4,$B$4:$F$4,0)-1),OFFSET('C. PoC Adj Factor Scoring'!$E$5:$J$282,,MATCH(W$4,'C. PoC Adj Factor Scoring'!$E$3:$AH$3,0)-1),MATCH(W$2&\" Score\",'C. PoC Adj Factor Scoring'!$E$4:$J$4,0),TRUE)","v":1},{"$f":"VLOOKUP(OFFSET($B:$B,,MATCH(X$4,$B$4:$F$4,0)-1),OFFSET('C. PoC Adj Factor Scoring'!$E$5:$J$282,,MATCH(X$4,'C. PoC Adj Factor Scoring'!$E$3:$AH$3,0)-1),MATCH(X$2&\" Score\",'C. PoC Adj Factor Scoring'!$E$4:$J$4,0),TRUE)","v":1},{"$f":"VLOOKUP(OFFSET($B:$B,,MATCH(Y$4,$B$4:$F$4,0)-1),OFFSET('C. PoC Adj Factor Scoring'!$E$5:$J$282,,MATCH(Y$4,'C. PoC Adj Factor Scoring'!$E$3:$AH$3,0)-1),MATCH(Y$2&\" Score\",'C. PoC Adj Factor Scoring'!$E$4:$J$4,0),TRUE)","v":1},{"$f":"VLOOKUP(OFFSET($B:$B,,MATCH(Z$4,$B$4:$F$4,0)-1),OFFSET('C. PoC Adj Factor Scoring'!$E$5:$J$282,,MATCH(Z$4,'C. PoC Adj Factor Scoring'!$E$3:$AH$3,0)-1),MATCH(Z$2&\" Score\",'C. PoC Adj Factor Scoring'!$E$4:$J$4,0),TRUE)","v":1},{"$f":"VLOOKUP(OFFSET($B:$B,,MATCH(AA$4,$B$4:$F$4,0)-1),OFFSET('C. PoC Adj Factor Scoring'!$E$5:$J$282,,MATCH(AA$4,'C. PoC Adj Factor Scoring'!$E$3:$AH$3,0)-1),MATCH(AA$2&\" Score\",'C. PoC Adj Factor Scoring'!$E$4:$J$4,0),TRUE)","v":3},{"$f":"VLOOKUP(OFFSET($B:$B,,MATCH(AB$4,$B$4:$F$4,0)-1),OFFSET('C. PoC Adj Factor Scoring'!$E$5:$J$282,,MATCH(AB$4,'C. PoC Adj Factor Scoring'!$E$3:$AH$3,0)-1),MATCH(AB$2&\" Score\",'C. PoC Adj Factor Scoring'!$E$4:$J$4,0),TRUE)","v":1},{"$f":"VLOOKUP(OFFSET($B:$B,,MATCH(AC$4,$B$4:$F$4,0)-1),OFFSET('C. PoC Adj Factor Scoring'!$E$5:$J$282,,MATCH(AC$4,'C. PoC Adj Factor Scoring'!$E$3:$AH$3,0)-1),MATCH(AC$2&\" Score\",'C. PoC Adj Factor Scoring'!$E$4:$J$4,0),TRUE)","v":1},{"$f":"VLOOKUP(OFFSET($B:$B,,MATCH(AD$4,$B$4:$F$4,0)-1),OFFSET('C. PoC Adj Factor Scoring'!$E$5:$J$282,,MATCH(AD$4,'C. PoC Adj Factor Scoring'!$E$3:$AH$3,0)-1),MATCH(AD$2&\" Score\",'C. PoC Adj Factor Scoring'!$E$4:$J$4,0),TRUE)","v":1},{"$f":"VLOOKUP(OFFSET($B:$B,,MATCH(AE$4,$B$4:$F$4,0)-1),OFFSET('C. PoC Adj Factor Scoring'!$E$5:$J$282,,MATCH(AE$4,'C. PoC Adj Factor Scoring'!$E$3:$AH$3,0)-1),MATCH(AE$2&\" Score\",'C. PoC Adj Factor Scoring'!$E$4:$J$4,0),TRUE)","v":1}]
[{"$f":"'A. Population Info'!A338","v":1000395877},{"$f":"'A. Population Info'!L338","v":"OIL"},{"$f":"'A. Population Info'!M338","v":0},{"$f":"'A. Population Info'!N338","v":0},{"$f":"'A. Population Info'!O338","v":0},{"$f":"'A. Population Info'!P338","v":0},{"$f":"VLOOKUP(OFFSET($B:$B,,MATCH(G$4,$B$4:$F$4,0)-1),OFFSET('C. PoC Adj Factor Scoring'!$E$5:$J$282,,MATCH(G$4,'C. PoC Adj Factor Scoring'!$E$3:$AH$3,0)-1),MATCH(G$2&\" Score\",'C. PoC Adj Factor Scoring'!$E$4:$J$4,0),TRUE)","v":4},{"$f":"VLOOKUP(OFFSET($B:$B,,MATCH(H$4,$B$4:$F$4,0)-1),OFFSET('C. PoC Adj Factor Scoring'!$E$5:$J$282,,MATCH(H$4,'C. PoC Adj Factor Scoring'!$E$3:$AH$3,0)-1),MATCH(H$2&\" Score\",'C. PoC Adj Factor Scoring'!$E$4:$J$4,0),TRUE)","v":1},{"$f":"VLOOKUP(OFFSET($B:$B,,MATCH(I$4,$B$4:$F$4,0)-1),OFFSET('C. PoC Adj Factor Scoring'!$E$5:$J$282,,MATCH(I$4,'C. PoC Adj Factor Scoring'!$E$3:$AH$3,0)-1),MATCH(I$2&\" Score\",'C. PoC Adj Factor Scoring'!$E$4:$J$4,0),TRUE)","v":1},{"$f":"VLOOKUP(OFFSET($B:$B,,MATCH(J$4,$B$4:$F$4,0)-1),OFFSET('C. PoC Adj Factor Scoring'!$E$5:$J$282,,MATCH(J$4,'C. PoC Adj Factor Scoring'!$E$3:$AH$3,0)-1),MATCH(J$2&\" Score\",'C. PoC Adj Factor Scoring'!$E$4:$J$4,0),TRUE)","v":1},{"$f":"VLOOKUP(OFFSET($B:$B,,MATCH(K$4,$B$4:$F$4,0)-1),OFFSET('C. PoC Adj Factor Scoring'!$E$5:$J$282,,MATCH(K$4,'C. PoC Adj Factor Scoring'!$E$3:$AH$3,0)-1),MATCH(K$2&\" Score\",'C. PoC Adj Factor Scoring'!$E$4:$J$4,0),TRUE)","v":1},{"$f":"VLOOKUP(OFFSET($B:$B,,MATCH(L$4,$B$4:$F$4,0)-1),OFFSET('C. PoC Adj Factor Scoring'!$E$5:$J$282,,MATCH(L$4,'C. PoC Adj Factor Scoring'!$E$3:$AH$3,0)-1),MATCH(L$2&\" Score\",'C. PoC Adj Factor Scoring'!$E$4:$J$4,0),TRUE)","v":1},{"$f":"VLOOKUP(OFFSET($B:$B,,MATCH(M$4,$B$4:$F$4,0)-1),OFFSET('C. PoC Adj Factor Scoring'!$E$5:$J$282,,MATCH(M$4,'C. PoC Adj Factor Scoring'!$E$3:$AH$3,0)-1),MATCH(M$2&\" Score\",'C. PoC Adj Factor Scoring'!$E$4:$J$4,0),TRUE)","v":1},{"$f":"VLOOKUP(OFFSET($B:$B,,MATCH(N$4,$B$4:$F$4,0)-1),OFFSET('C. PoC Adj Factor Scoring'!$E$5:$J$282,,MATCH(N$4,'C. PoC Adj Factor Scoring'!$E$3:$AH$3,0)-1),MATCH(N$2&\" Score\",'C. PoC Adj Factor Scoring'!$E$4:$J$4,0),TRUE)","v":1},{"$f":"VLOOKUP(OFFSET($B:$B,,MATCH(O$4,$B$4:$F$4,0)-1),OFFSET('C. PoC Adj Factor Scoring'!$E$5:$J$282,,MATCH(O$4,'C. PoC Adj Factor Scoring'!$E$3:$AH$3,0)-1),MATCH(O$2&\" Score\",'C. PoC Adj Factor Scoring'!$E$4:$J$4,0),TRUE)","v":1},{"$f":"VLOOKUP(OFFSET($B:$B,,MATCH(P$4,$B$4:$F$4,0)-1),OFFSET('C. PoC Adj Factor Scoring'!$E$5:$J$282,,MATCH(P$4,'C. PoC Adj Factor Scoring'!$E$3:$AH$3,0)-1),MATCH(P$2&\" Score\",'C. PoC Adj Factor Scoring'!$E$4:$J$4,0),TRUE)","v":1},{"$f":"VLOOKUP(OFFSET($B:$B,,MATCH(Q$4,$B$4:$F$4,0)-1),OFFSET('C. PoC Adj Factor Scoring'!$E$5:$J$282,,MATCH(Q$4,'C. PoC Adj Factor Scoring'!$E$3:$AH$3,0)-1),MATCH(Q$2&\" Score\",'C. PoC Adj Factor Scoring'!$E$4:$J$4,0),TRUE)","v":1},{"$f":"VLOOKUP(OFFSET($B:$B,,MATCH(R$4,$B$4:$F$4,0)-1),OFFSET('C. PoC Adj Factor Scoring'!$E$5:$J$282,,MATCH(R$4,'C. PoC Adj Factor Scoring'!$E$3:$AH$3,0)-1),MATCH(R$2&\" Score\",'C. PoC Adj Factor Scoring'!$E$4:$J$4,0),TRUE)","v":1},{"$f":"VLOOKUP(OFFSET($B:$B,,MATCH(S$4,$B$4:$F$4,0)-1),OFFSET('C. PoC Adj Factor Scoring'!$E$5:$J$282,,MATCH(S$4,'C. PoC Adj Factor Scoring'!$E$3:$AH$3,0)-1),MATCH(S$2&\" Score\",'C. PoC Adj Factor Scoring'!$E$4:$J$4,0),TRUE)","v":1},{"$f":"VLOOKUP(OFFSET($B:$B,,MATCH(T$4,$B$4:$F$4,0)-1),OFFSET('C. PoC Adj Factor Scoring'!$E$5:$J$282,,MATCH(T$4,'C. PoC Adj Factor Scoring'!$E$3:$AH$3,0)-1),MATCH(T$2&\" Score\",'C. PoC Adj Factor Scoring'!$E$4:$J$4,0),TRUE)","v":1},{"$f":"VLOOKUP(OFFSET($B:$B,,MATCH(U$4,$B$4:$F$4,0)-1),OFFSET('C. PoC Adj Factor Scoring'!$E$5:$J$282,,MATCH(U$4,'C. PoC Adj Factor Scoring'!$E$3:$AH$3,0)-1),MATCH(U$2&\" Score\",'C. PoC Adj Factor Scoring'!$E$4:$J$4,0),TRUE)","v":1},{"$f":"VLOOKUP(OFFSET($B:$B,,MATCH(V$4,$B$4:$F$4,0)-1),OFFSET('C. PoC Adj Factor Scoring'!$E$5:$J$282,,MATCH(V$4,'C. PoC Adj Factor Scoring'!$E$3:$AH$3,0)-1),MATCH(V$2&\" Score\",'C. PoC Adj Factor Scoring'!$E$4:$J$4,0),TRUE)","v":1},{"$f":"VLOOKUP(OFFSET($B:$B,,MATCH(W$4,$B$4:$F$4,0)-1),OFFSET('C. PoC Adj Factor Scoring'!$E$5:$J$282,,MATCH(W$4,'C. PoC Adj Factor Scoring'!$E$3:$AH$3,0)-1),MATCH(W$2&\" Score\",'C. PoC Adj Factor Scoring'!$E$4:$J$4,0),TRUE)","v":1},{"$f":"VLOOKUP(OFFSET($B:$B,,MATCH(X$4,$B$4:$F$4,0)-1),OFFSET('C. PoC Adj Factor Scoring'!$E$5:$J$282,,MATCH(X$4,'C. PoC Adj Factor Scoring'!$E$3:$AH$3,0)-1),MATCH(X$2&\" Score\",'C. PoC Adj Factor Scoring'!$E$4:$J$4,0),TRUE)","v":1},{"$f":"VLOOKUP(OFFSET($B:$B,,MATCH(Y$4,$B$4:$F$4,0)-1),OFFSET('C. PoC Adj Factor Scoring'!$E$5:$J$282,,MATCH(Y$4,'C. PoC Adj Factor Scoring'!$E$3:$AH$3,0)-1),MATCH(Y$2&\" Score\",'C. PoC Adj Factor Scoring'!$E$4:$J$4,0),TRUE)","v":1},{"$f":"VLOOKUP(OFFSET($B:$B,,MATCH(Z$4,$B$4:$F$4,0)-1),OFFSET('C. PoC Adj Factor Scoring'!$E$5:$J$282,,MATCH(Z$4,'C. PoC Adj Factor Scoring'!$E$3:$AH$3,0)-1),MATCH(Z$2&\" Score\",'C. PoC Adj Factor Scoring'!$E$4:$J$4,0),TRUE)","v":1},{"$f":"VLOOKUP(OFFSET($B:$B,,MATCH(AA$4,$B$4:$F$4,0)-1),OFFSET('C. PoC Adj Factor Scoring'!$E$5:$J$282,,MATCH(AA$4,'C. PoC Adj Factor Scoring'!$E$3:$AH$3,0)-1),MATCH(AA$2&\" Score\",'C. PoC Adj Factor Scoring'!$E$4:$J$4,0),TRUE)","v":3},{"$f":"VLOOKUP(OFFSET($B:$B,,MATCH(AB$4,$B$4:$F$4,0)-1),OFFSET('C. PoC Adj Factor Scoring'!$E$5:$J$282,,MATCH(AB$4,'C. PoC Adj Factor Scoring'!$E$3:$AH$3,0)-1),MATCH(AB$2&\" Score\",'C. PoC Adj Factor Scoring'!$E$4:$J$4,0),TRUE)","v":1},{"$f":"VLOOKUP(OFFSET($B:$B,,MATCH(AC$4,$B$4:$F$4,0)-1),OFFSET('C. PoC Adj Factor Scoring'!$E$5:$J$282,,MATCH(AC$4,'C. PoC Adj Factor Scoring'!$E$3:$AH$3,0)-1),MATCH(AC$2&\" Score\",'C. PoC Adj Factor Scoring'!$E$4:$J$4,0),TRUE)","v":1},{"$f":"VLOOKUP(OFFSET($B:$B,,MATCH(AD$4,$B$4:$F$4,0)-1),OFFSET('C. PoC Adj Factor Scoring'!$E$5:$J$282,,MATCH(AD$4,'C. PoC Adj Factor Scoring'!$E$3:$AH$3,0)-1),MATCH(AD$2&\" Score\",'C. PoC Adj Factor Scoring'!$E$4:$J$4,0),TRUE)","v":1},{"$f":"VLOOKUP(OFFSET($B:$B,,MATCH(AE$4,$B$4:$F$4,0)-1),OFFSET('C. PoC Adj Factor Scoring'!$E$5:$J$282,,MATCH(AE$4,'C. PoC Adj Factor Scoring'!$E$3:$AH$3,0)-1),MATCH(AE$2&\" Score\",'C. PoC Adj Factor Scoring'!$E$4:$J$4,0),TRUE)","v":1}]
[{"$f":"'A. Population Info'!A339","v":1000395930},{"$f":"'A. Population Info'!L339","v":"OIL"},{"$f":"'A. Population Info'!M339","v":0},{"$f":"'A. Population Info'!N339","v":0},{"$f":"'A. Population Info'!O339","v":0},{"$f":"'A. Population Info'!P339","v":0},{"$f":"VLOOKUP(OFFSET($B:$B,,MATCH(G$4,$B$4:$F$4,0)-1),OFFSET('C. PoC Adj Factor Scoring'!$E$5:$J$282,,MATCH(G$4,'C. PoC Adj Factor Scoring'!$E$3:$AH$3,0)-1),MATCH(G$2&\" Score\",'C. PoC Adj Factor Scoring'!$E$4:$J$4,0),TRUE)","v":4},{"$f":"VLOOKUP(OFFSET($B:$B,,MATCH(H$4,$B$4:$F$4,0)-1),OFFSET('C. PoC Adj Factor Scoring'!$E$5:$J$282,,MATCH(H$4,'C. PoC Adj Factor Scoring'!$E$3:$AH$3,0)-1),MATCH(H$2&\" Score\",'C. PoC Adj Factor Scoring'!$E$4:$J$4,0),TRUE)","v":1},{"$f":"VLOOKUP(OFFSET($B:$B,,MATCH(I$4,$B$4:$F$4,0)-1),OFFSET('C. PoC Adj Factor Scoring'!$E$5:$J$282,,MATCH(I$4,'C. PoC Adj Factor Scoring'!$E$3:$AH$3,0)-1),MATCH(I$2&\" Score\",'C. PoC Adj Factor Scoring'!$E$4:$J$4,0),TRUE)","v":1},{"$f":"VLOOKUP(OFFSET($B:$B,,MATCH(J$4,$B$4:$F$4,0)-1),OFFSET('C. PoC Adj Factor Scoring'!$E$5:$J$282,,MATCH(J$4,'C. PoC Adj Factor Scoring'!$E$3:$AH$3,0)-1),MATCH(J$2&\" Score\",'C. PoC Adj Factor Scoring'!$E$4:$J$4,0),TRUE)","v":1},{"$f":"VLOOKUP(OFFSET($B:$B,,MATCH(K$4,$B$4:$F$4,0)-1),OFFSET('C. PoC Adj Factor Scoring'!$E$5:$J$282,,MATCH(K$4,'C. PoC Adj Factor Scoring'!$E$3:$AH$3,0)-1),MATCH(K$2&\" Score\",'C. PoC Adj Factor Scoring'!$E$4:$J$4,0),TRUE)","v":1},{"$f":"VLOOKUP(OFFSET($B:$B,,MATCH(L$4,$B$4:$F$4,0)-1),OFFSET('C. PoC Adj Factor Scoring'!$E$5:$J$282,,MATCH(L$4,'C. PoC Adj Factor Scoring'!$E$3:$AH$3,0)-1),MATCH(L$2&\" Score\",'C. PoC Adj Factor Scoring'!$E$4:$J$4,0),TRUE)","v":1},{"$f":"VLOOKUP(OFFSET($B:$B,,MATCH(M$4,$B$4:$F$4,0)-1),OFFSET('C. PoC Adj Factor Scoring'!$E$5:$J$282,,MATCH(M$4,'C. PoC Adj Factor Scoring'!$E$3:$AH$3,0)-1),MATCH(M$2&\" Score\",'C. PoC Adj Factor Scoring'!$E$4:$J$4,0),TRUE)","v":1},{"$f":"VLOOKUP(OFFSET($B:$B,,MATCH(N$4,$B$4:$F$4,0)-1),OFFSET('C. PoC Adj Factor Scoring'!$E$5:$J$282,,MATCH(N$4,'C. PoC Adj Factor Scoring'!$E$3:$AH$3,0)-1),MATCH(N$2&\" Score\",'C. PoC Adj Factor Scoring'!$E$4:$J$4,0),TRUE)","v":1},{"$f":"VLOOKUP(OFFSET($B:$B,,MATCH(O$4,$B$4:$F$4,0)-1),OFFSET('C. PoC Adj Factor Scoring'!$E$5:$J$282,,MATCH(O$4,'C. PoC Adj Factor Scoring'!$E$3:$AH$3,0)-1),MATCH(O$2&\" Score\",'C. PoC Adj Factor Scoring'!$E$4:$J$4,0),TRUE)","v":1},{"$f":"VLOOKUP(OFFSET($B:$B,,MATCH(P$4,$B$4:$F$4,0)-1),OFFSET('C. PoC Adj Factor Scoring'!$E$5:$J$282,,MATCH(P$4,'C. PoC Adj Factor Scoring'!$E$3:$AH$3,0)-1),MATCH(P$2&\" Score\",'C. PoC Adj Factor Scoring'!$E$4:$J$4,0),TRUE)","v":1},{"$f":"VLOOKUP(OFFSET($B:$B,,MATCH(Q$4,$B$4:$F$4,0)-1),OFFSET('C. PoC Adj Factor Scoring'!$E$5:$J$282,,MATCH(Q$4,'C. PoC Adj Factor Scoring'!$E$3:$AH$3,0)-1),MATCH(Q$2&\" Score\",'C. PoC Adj Factor Scoring'!$E$4:$J$4,0),TRUE)","v":1},{"$f":"VLOOKUP(OFFSET($B:$B,,MATCH(R$4,$B$4:$F$4,0)-1),OFFSET('C. PoC Adj Factor Scoring'!$E$5:$J$282,,MATCH(R$4,'C. PoC Adj Factor Scoring'!$E$3:$AH$3,0)-1),MATCH(R$2&\" Score\",'C. PoC Adj Factor Scoring'!$E$4:$J$4,0),TRUE)","v":1},{"$f":"VLOOKUP(OFFSET($B:$B,,MATCH(S$4,$B$4:$F$4,0)-1),OFFSET('C. PoC Adj Factor Scoring'!$E$5:$J$282,,MATCH(S$4,'C. PoC Adj Factor Scoring'!$E$3:$AH$3,0)-1),MATCH(S$2&\" Score\",'C. PoC Adj Factor Scoring'!$E$4:$J$4,0),TRUE)","v":1},{"$f":"VLOOKUP(OFFSET($B:$B,,MATCH(T$4,$B$4:$F$4,0)-1),OFFSET('C. PoC Adj Factor Scoring'!$E$5:$J$282,,MATCH(T$4,'C. PoC Adj Factor Scoring'!$E$3:$AH$3,0)-1),MATCH(T$2&\" Score\",'C. PoC Adj Factor Scoring'!$E$4:$J$4,0),TRUE)","v":1},{"$f":"VLOOKUP(OFFSET($B:$B,,MATCH(U$4,$B$4:$F$4,0)-1),OFFSET('C. PoC Adj Factor Scoring'!$E$5:$J$282,,MATCH(U$4,'C. PoC Adj Factor Scoring'!$E$3:$AH$3,0)-1),MATCH(U$2&\" Score\",'C. PoC Adj Factor Scoring'!$E$4:$J$4,0),TRUE)","v":1},{"$f":"VLOOKUP(OFFSET($B:$B,,MATCH(V$4,$B$4:$F$4,0)-1),OFFSET('C. PoC Adj Factor Scoring'!$E$5:$J$282,,MATCH(V$4,'C. PoC Adj Factor Scoring'!$E$3:$AH$3,0)-1),MATCH(V$2&\" Score\",'C. PoC Adj Factor Scoring'!$E$4:$J$4,0),TRUE)","v":1},{"$f":"VLOOKUP(OFFSET($B:$B,,MATCH(W$4,$B$4:$F$4,0)-1),OFFSET('C. PoC Adj Factor Scoring'!$E$5:$J$282,,MATCH(W$4,'C. PoC Adj Factor Scoring'!$E$3:$AH$3,0)-1),MATCH(W$2&\" Score\",'C. PoC Adj Factor Scoring'!$E$4:$J$4,0),TRUE)","v":1},{"$f":"VLOOKUP(OFFSET($B:$B,,MATCH(X$4,$B$4:$F$4,0)-1),OFFSET('C. PoC Adj Factor Scoring'!$E$5:$J$282,,MATCH(X$4,'C. PoC Adj Factor Scoring'!$E$3:$AH$3,0)-1),MATCH(X$2&\" Score\",'C. PoC Adj Factor Scoring'!$E$4:$J$4,0),TRUE)","v":1},{"$f":"VLOOKUP(OFFSET($B:$B,,MATCH(Y$4,$B$4:$F$4,0)-1),OFFSET('C. PoC Adj Factor Scoring'!$E$5:$J$282,,MATCH(Y$4,'C. PoC Adj Factor Scoring'!$E$3:$AH$3,0)-1),MATCH(Y$2&\" Score\",'C. PoC Adj Factor Scoring'!$E$4:$J$4,0),TRUE)","v":1},{"$f":"VLOOKUP(OFFSET($B:$B,,MATCH(Z$4,$B$4:$F$4,0)-1),OFFSET('C. PoC Adj Factor Scoring'!$E$5:$J$282,,MATCH(Z$4,'C. PoC Adj Factor Scoring'!$E$3:$AH$3,0)-1),MATCH(Z$2&\" Score\",'C. PoC Adj Factor Scoring'!$E$4:$J$4,0),TRUE)","v":1},{"$f":"VLOOKUP(OFFSET($B:$B,,MATCH(AA$4,$B$4:$F$4,0)-1),OFFSET('C. PoC Adj Factor Scoring'!$E$5:$J$282,,MATCH(AA$4,'C. PoC Adj Factor Scoring'!$E$3:$AH$3,0)-1),MATCH(AA$2&\" Score\",'C. PoC Adj Factor Scoring'!$E$4:$J$4,0),TRUE)","v":3},{"$f":"VLOOKUP(OFFSET($B:$B,,MATCH(AB$4,$B$4:$F$4,0)-1),OFFSET('C. PoC Adj Factor Scoring'!$E$5:$J$282,,MATCH(AB$4,'C. PoC Adj Factor Scoring'!$E$3:$AH$3,0)-1),MATCH(AB$2&\" Score\",'C. PoC Adj Factor Scoring'!$E$4:$J$4,0),TRUE)","v":1},{"$f":"VLOOKUP(OFFSET($B:$B,,MATCH(AC$4,$B$4:$F$4,0)-1),OFFSET('C. PoC Adj Factor Scoring'!$E$5:$J$282,,MATCH(AC$4,'C. PoC Adj Factor Scoring'!$E$3:$AH$3,0)-1),MATCH(AC$2&\" Score\",'C. PoC Adj Factor Scoring'!$E$4:$J$4,0),TRUE)","v":1},{"$f":"VLOOKUP(OFFSET($B:$B,,MATCH(AD$4,$B$4:$F$4,0)-1),OFFSET('C. PoC Adj Factor Scoring'!$E$5:$J$282,,MATCH(AD$4,'C. PoC Adj Factor Scoring'!$E$3:$AH$3,0)-1),MATCH(AD$2&\" Score\",'C. PoC Adj Factor Scoring'!$E$4:$J$4,0),TRUE)","v":1},{"$f":"VLOOKUP(OFFSET($B:$B,,MATCH(AE$4,$B$4:$F$4,0)-1),OFFSET('C. PoC Adj Factor Scoring'!$E$5:$J$282,,MATCH(AE$4,'C. PoC Adj Factor Scoring'!$E$3:$AH$3,0)-1),MATCH(AE$2&\" Score\",'C. PoC Adj Factor Scoring'!$E$4:$J$4,0),TRUE)","v":1}]
[{"$f":"'A. Population Info'!A340","v":1000395955},{"$f":"'A. Population Info'!L340","v":"OIL"},{"$f":"'A. Population Info'!M340","v":0},{"$f":"'A. Population Info'!N340","v":0},{"$f":"'A. Population Info'!O340","v":0},{"$f":"'A. Population Info'!P340","v":0},{"$f":"VLOOKUP(OFFSET($B:$B,,MATCH(G$4,$B$4:$F$4,0)-1),OFFSET('C. PoC Adj Factor Scoring'!$E$5:$J$282,,MATCH(G$4,'C. PoC Adj Factor Scoring'!$E$3:$AH$3,0)-1),MATCH(G$2&\" Score\",'C. PoC Adj Factor Scoring'!$E$4:$J$4,0),TRUE)","v":4},{"$f":"VLOOKUP(OFFSET($B:$B,,MATCH(H$4,$B$4:$F$4,0)-1),OFFSET('C. PoC Adj Factor Scoring'!$E$5:$J$282,,MATCH(H$4,'C. PoC Adj Factor Scoring'!$E$3:$AH$3,0)-1),MATCH(H$2&\" Score\",'C. PoC Adj Factor Scoring'!$E$4:$J$4,0),TRUE)","v":1},{"$f":"VLOOKUP(OFFSET($B:$B,,MATCH(I$4,$B$4:$F$4,0)-1),OFFSET('C. PoC Adj Factor Scoring'!$E$5:$J$282,,MATCH(I$4,'C. PoC Adj Factor Scoring'!$E$3:$AH$3,0)-1),MATCH(I$2&\" Score\",'C. PoC Adj Factor Scoring'!$E$4:$J$4,0),TRUE)","v":1},{"$f":"VLOOKUP(OFFSET($B:$B,,MATCH(J$4,$B$4:$F$4,0)-1),OFFSET('C. PoC Adj Factor Scoring'!$E$5:$J$282,,MATCH(J$4,'C. PoC Adj Factor Scoring'!$E$3:$AH$3,0)-1),MATCH(J$2&\" Score\",'C. PoC Adj Factor Scoring'!$E$4:$J$4,0),TRUE)","v":1},{"$f":"VLOOKUP(OFFSET($B:$B,,MATCH(K$4,$B$4:$F$4,0)-1),OFFSET('C. PoC Adj Factor Scoring'!$E$5:$J$282,,MATCH(K$4,'C. PoC Adj Factor Scoring'!$E$3:$AH$3,0)-1),MATCH(K$2&\" Score\",'C. PoC Adj Factor Scoring'!$E$4:$J$4,0),TRUE)","v":1},{"$f":"VLOOKUP(OFFSET($B:$B,,MATCH(L$4,$B$4:$F$4,0)-1),OFFSET('C. PoC Adj Factor Scoring'!$E$5:$J$282,,MATCH(L$4,'C. PoC Adj Factor Scoring'!$E$3:$AH$3,0)-1),MATCH(L$2&\" Score\",'C. PoC Adj Factor Scoring'!$E$4:$J$4,0),TRUE)","v":1},{"$f":"VLOOKUP(OFFSET($B:$B,,MATCH(M$4,$B$4:$F$4,0)-1),OFFSET('C. PoC Adj Factor Scoring'!$E$5:$J$282,,MATCH(M$4,'C. PoC Adj Factor Scoring'!$E$3:$AH$3,0)-1),MATCH(M$2&\" Score\",'C. PoC Adj Factor Scoring'!$E$4:$J$4,0),TRUE)","v":1},{"$f":"VLOOKUP(OFFSET($B:$B,,MATCH(N$4,$B$4:$F$4,0)-1),OFFSET('C. PoC Adj Factor Scoring'!$E$5:$J$282,,MATCH(N$4,'C. PoC Adj Factor Scoring'!$E$3:$AH$3,0)-1),MATCH(N$2&\" Score\",'C. PoC Adj Factor Scoring'!$E$4:$J$4,0),TRUE)","v":1},{"$f":"VLOOKUP(OFFSET($B:$B,,MATCH(O$4,$B$4:$F$4,0)-1),OFFSET('C. PoC Adj Factor Scoring'!$E$5:$J$282,,MATCH(O$4,'C. PoC Adj Factor Scoring'!$E$3:$AH$3,0)-1),MATCH(O$2&\" Score\",'C. PoC Adj Factor Scoring'!$E$4:$J$4,0),TRUE)","v":1},{"$f":"VLOOKUP(OFFSET($B:$B,,MATCH(P$4,$B$4:$F$4,0)-1),OFFSET('C. PoC Adj Factor Scoring'!$E$5:$J$282,,MATCH(P$4,'C. PoC Adj Factor Scoring'!$E$3:$AH$3,0)-1),MATCH(P$2&\" Score\",'C. PoC Adj Factor Scoring'!$E$4:$J$4,0),TRUE)","v":1},{"$f":"VLOOKUP(OFFSET($B:$B,,MATCH(Q$4,$B$4:$F$4,0)-1),OFFSET('C. PoC Adj Factor Scoring'!$E$5:$J$282,,MATCH(Q$4,'C. PoC Adj Factor Scoring'!$E$3:$AH$3,0)-1),MATCH(Q$2&\" Score\",'C. PoC Adj Factor Scoring'!$E$4:$J$4,0),TRUE)","v":1},{"$f":"VLOOKUP(OFFSET($B:$B,,MATCH(R$4,$B$4:$F$4,0)-1),OFFSET('C. PoC Adj Factor Scoring'!$E$5:$J$282,,MATCH(R$4,'C. PoC Adj Factor Scoring'!$E$3:$AH$3,0)-1),MATCH(R$2&\" Score\",'C. PoC Adj Factor Scoring'!$E$4:$J$4,0),TRUE)","v":1},{"$f":"VLOOKUP(OFFSET($B:$B,,MATCH(S$4,$B$4:$F$4,0)-1),OFFSET('C. PoC Adj Factor Scoring'!$E$5:$J$282,,MATCH(S$4,'C. PoC Adj Factor Scoring'!$E$3:$AH$3,0)-1),MATCH(S$2&\" Score\",'C. PoC Adj Factor Scoring'!$E$4:$J$4,0),TRUE)","v":1},{"$f":"VLOOKUP(OFFSET($B:$B,,MATCH(T$4,$B$4:$F$4,0)-1),OFFSET('C. PoC Adj Factor Scoring'!$E$5:$J$282,,MATCH(T$4,'C. PoC Adj Factor Scoring'!$E$3:$AH$3,0)-1),MATCH(T$2&\" Score\",'C. PoC Adj Factor Scoring'!$E$4:$J$4,0),TRUE)","v":1},{"$f":"VLOOKUP(OFFSET($B:$B,,MATCH(U$4,$B$4:$F$4,0)-1),OFFSET('C. PoC Adj Factor Scoring'!$E$5:$J$282,,MATCH(U$4,'C. PoC Adj Factor Scoring'!$E$3:$AH$3,0)-1),MATCH(U$2&\" Score\",'C. PoC Adj Factor Scoring'!$E$4:$J$4,0),TRUE)","v":1},{"$f":"VLOOKUP(OFFSET($B:$B,,MATCH(V$4,$B$4:$F$4,0)-1),OFFSET('C. PoC Adj Factor Scoring'!$E$5:$J$282,,MATCH(V$4,'C. PoC Adj Factor Scoring'!$E$3:$AH$3,0)-1),MATCH(V$2&\" Score\",'C. PoC Adj Factor Scoring'!$E$4:$J$4,0),TRUE)","v":1},{"$f":"VLOOKUP(OFFSET($B:$B,,MATCH(W$4,$B$4:$F$4,0)-1),OFFSET('C. PoC Adj Factor Scoring'!$E$5:$J$282,,MATCH(W$4,'C. PoC Adj Factor Scoring'!$E$3:$AH$3,0)-1),MATCH(W$2&\" Score\",'C. PoC Adj Factor Scoring'!$E$4:$J$4,0),TRUE)","v":1},{"$f":"VLOOKUP(OFFSET($B:$B,,MATCH(X$4,$B$4:$F$4,0)-1),OFFSET('C. PoC Adj Factor Scoring'!$E$5:$J$282,,MATCH(X$4,'C. PoC Adj Factor Scoring'!$E$3:$AH$3,0)-1),MATCH(X$2&\" Score\",'C. PoC Adj Factor Scoring'!$E$4:$J$4,0),TRUE)","v":1},{"$f":"VLOOKUP(OFFSET($B:$B,,MATCH(Y$4,$B$4:$F$4,0)-1),OFFSET('C. PoC Adj Factor Scoring'!$E$5:$J$282,,MATCH(Y$4,'C. PoC Adj Factor Scoring'!$E$3:$AH$3,0)-1),MATCH(Y$2&\" Score\",'C. PoC Adj Factor Scoring'!$E$4:$J$4,0),TRUE)","v":1},{"$f":"VLOOKUP(OFFSET($B:$B,,MATCH(Z$4,$B$4:$F$4,0)-1),OFFSET('C. PoC Adj Factor Scoring'!$E$5:$J$282,,MATCH(Z$4,'C. PoC Adj Factor Scoring'!$E$3:$AH$3,0)-1),MATCH(Z$2&\" Score\",'C. PoC Adj Factor Scoring'!$E$4:$J$4,0),TRUE)","v":1},{"$f":"VLOOKUP(OFFSET($B:$B,,MATCH(AA$4,$B$4:$F$4,0)-1),OFFSET('C. PoC Adj Factor Scoring'!$E$5:$J$282,,MATCH(AA$4,'C. PoC Adj Factor Scoring'!$E$3:$AH$3,0)-1),MATCH(AA$2&\" Score\",'C. PoC Adj Factor Scoring'!$E$4:$J$4,0),TRUE)","v":3},{"$f":"VLOOKUP(OFFSET($B:$B,,MATCH(AB$4,$B$4:$F$4,0)-1),OFFSET('C. PoC Adj Factor Scoring'!$E$5:$J$282,,MATCH(AB$4,'C. PoC Adj Factor Scoring'!$E$3:$AH$3,0)-1),MATCH(AB$2&\" Score\",'C. PoC Adj Factor Scoring'!$E$4:$J$4,0),TRUE)","v":1},{"$f":"VLOOKUP(OFFSET($B:$B,,MATCH(AC$4,$B$4:$F$4,0)-1),OFFSET('C. PoC Adj Factor Scoring'!$E$5:$J$282,,MATCH(AC$4,'C. PoC Adj Factor Scoring'!$E$3:$AH$3,0)-1),MATCH(AC$2&\" Score\",'C. PoC Adj Factor Scoring'!$E$4:$J$4,0),TRUE)","v":1},{"$f":"VLOOKUP(OFFSET($B:$B,,MATCH(AD$4,$B$4:$F$4,0)-1),OFFSET('C. PoC Adj Factor Scoring'!$E$5:$J$282,,MATCH(AD$4,'C. PoC Adj Factor Scoring'!$E$3:$AH$3,0)-1),MATCH(AD$2&\" Score\",'C. PoC Adj Factor Scoring'!$E$4:$J$4,0),TRUE)","v":1},{"$f":"VLOOKUP(OFFSET($B:$B,,MATCH(AE$4,$B$4:$F$4,0)-1),OFFSET('C. PoC Adj Factor Scoring'!$E$5:$J$282,,MATCH(AE$4,'C. PoC Adj Factor Scoring'!$E$3:$AH$3,0)-1),MATCH(AE$2&\" Score\",'C. PoC Adj Factor Scoring'!$E$4:$J$4,0),TRUE)","v":1}]
[{"$f":"'A. Population Info'!A341","v":1000395984},{"$f":"'A. Population Info'!L341","v":"OIL"},{"$f":"'A. Population Info'!M341","v":0},{"$f":"'A. Population Info'!N341","v":0},{"$f":"'A. Population Info'!O341","v":0},{"$f":"'A. Population Info'!P341","v":0},{"$f":"VLOOKUP(OFFSET($B:$B,,MATCH(G$4,$B$4:$F$4,0)-1),OFFSET('C. PoC Adj Factor Scoring'!$E$5:$J$282,,MATCH(G$4,'C. PoC Adj Factor Scoring'!$E$3:$AH$3,0)-1),MATCH(G$2&\" Score\",'C. PoC Adj Factor Scoring'!$E$4:$J$4,0),TRUE)","v":4},{"$f":"VLOOKUP(OFFSET($B:$B,,MATCH(H$4,$B$4:$F$4,0)-1),OFFSET('C. PoC Adj Factor Scoring'!$E$5:$J$282,,MATCH(H$4,'C. PoC Adj Factor Scoring'!$E$3:$AH$3,0)-1),MATCH(H$2&\" Score\",'C. PoC Adj Factor Scoring'!$E$4:$J$4,0),TRUE)","v":1},{"$f":"VLOOKUP(OFFSET($B:$B,,MATCH(I$4,$B$4:$F$4,0)-1),OFFSET('C. PoC Adj Factor Scoring'!$E$5:$J$282,,MATCH(I$4,'C. PoC Adj Factor Scoring'!$E$3:$AH$3,0)-1),MATCH(I$2&\" Score\",'C. PoC Adj Factor Scoring'!$E$4:$J$4,0),TRUE)","v":1},{"$f":"VLOOKUP(OFFSET($B:$B,,MATCH(J$4,$B$4:$F$4,0)-1),OFFSET('C. PoC Adj Factor Scoring'!$E$5:$J$282,,MATCH(J$4,'C. PoC Adj Factor Scoring'!$E$3:$AH$3,0)-1),MATCH(J$2&\" Score\",'C. PoC Adj Factor Scoring'!$E$4:$J$4,0),TRUE)","v":1},{"$f":"VLOOKUP(OFFSET($B:$B,,MATCH(K$4,$B$4:$F$4,0)-1),OFFSET('C. PoC Adj Factor Scoring'!$E$5:$J$282,,MATCH(K$4,'C. PoC Adj Factor Scoring'!$E$3:$AH$3,0)-1),MATCH(K$2&\" Score\",'C. PoC Adj Factor Scoring'!$E$4:$J$4,0),TRUE)","v":1},{"$f":"VLOOKUP(OFFSET($B:$B,,MATCH(L$4,$B$4:$F$4,0)-1),OFFSET('C. PoC Adj Factor Scoring'!$E$5:$J$282,,MATCH(L$4,'C. PoC Adj Factor Scoring'!$E$3:$AH$3,0)-1),MATCH(L$2&\" Score\",'C. PoC Adj Factor Scoring'!$E$4:$J$4,0),TRUE)","v":1},{"$f":"VLOOKUP(OFFSET($B:$B,,MATCH(M$4,$B$4:$F$4,0)-1),OFFSET('C. PoC Adj Factor Scoring'!$E$5:$J$282,,MATCH(M$4,'C. PoC Adj Factor Scoring'!$E$3:$AH$3,0)-1),MATCH(M$2&\" Score\",'C. PoC Adj Factor Scoring'!$E$4:$J$4,0),TRUE)","v":1},{"$f":"VLOOKUP(OFFSET($B:$B,,MATCH(N$4,$B$4:$F$4,0)-1),OFFSET('C. PoC Adj Factor Scoring'!$E$5:$J$282,,MATCH(N$4,'C. PoC Adj Factor Scoring'!$E$3:$AH$3,0)-1),MATCH(N$2&\" Score\",'C. PoC Adj Factor Scoring'!$E$4:$J$4,0),TRUE)","v":1},{"$f":"VLOOKUP(OFFSET($B:$B,,MATCH(O$4,$B$4:$F$4,0)-1),OFFSET('C. PoC Adj Factor Scoring'!$E$5:$J$282,,MATCH(O$4,'C. PoC Adj Factor Scoring'!$E$3:$AH$3,0)-1),MATCH(O$2&\" Score\",'C. PoC Adj Factor Scoring'!$E$4:$J$4,0),TRUE)","v":1},{"$f":"VLOOKUP(OFFSET($B:$B,,MATCH(P$4,$B$4:$F$4,0)-1),OFFSET('C. PoC Adj Factor Scoring'!$E$5:$J$282,,MATCH(P$4,'C. PoC Adj Factor Scoring'!$E$3:$AH$3,0)-1),MATCH(P$2&\" Score\",'C. PoC Adj Factor Scoring'!$E$4:$J$4,0),TRUE)","v":1},{"$f":"VLOOKUP(OFFSET($B:$B,,MATCH(Q$4,$B$4:$F$4,0)-1),OFFSET('C. PoC Adj Factor Scoring'!$E$5:$J$282,,MATCH(Q$4,'C. PoC Adj Factor Scoring'!$E$3:$AH$3,0)-1),MATCH(Q$2&\" Score\",'C. PoC Adj Factor Scoring'!$E$4:$J$4,0),TRUE)","v":1},{"$f":"VLOOKUP(OFFSET($B:$B,,MATCH(R$4,$B$4:$F$4,0)-1),OFFSET('C. PoC Adj Factor Scoring'!$E$5:$J$282,,MATCH(R$4,'C. PoC Adj Factor Scoring'!$E$3:$AH$3,0)-1),MATCH(R$2&\" Score\",'C. PoC Adj Factor Scoring'!$E$4:$J$4,0),TRUE)","v":1},{"$f":"VLOOKUP(OFFSET($B:$B,,MATCH(S$4,$B$4:$F$4,0)-1),OFFSET('C. PoC Adj Factor Scoring'!$E$5:$J$282,,MATCH(S$4,'C. PoC Adj Factor Scoring'!$E$3:$AH$3,0)-1),MATCH(S$2&\" Score\",'C. PoC Adj Factor Scoring'!$E$4:$J$4,0),TRUE)","v":1},{"$f":"VLOOKUP(OFFSET($B:$B,,MATCH(T$4,$B$4:$F$4,0)-1),OFFSET('C. PoC Adj Factor Scoring'!$E$5:$J$282,,MATCH(T$4,'C. PoC Adj Factor Scoring'!$E$3:$AH$3,0)-1),MATCH(T$2&\" Score\",'C. PoC Adj Factor Scoring'!$E$4:$J$4,0),TRUE)","v":1},{"$f":"VLOOKUP(OFFSET($B:$B,,MATCH(U$4,$B$4:$F$4,0)-1),OFFSET('C. PoC Adj Factor Scoring'!$E$5:$J$282,,MATCH(U$4,'C. PoC Adj Factor Scoring'!$E$3:$AH$3,0)-1),MATCH(U$2&\" Score\",'C. PoC Adj Factor Scoring'!$E$4:$J$4,0),TRUE)","v":1},{"$f":"VLOOKUP(OFFSET($B:$B,,MATCH(V$4,$B$4:$F$4,0)-1),OFFSET('C. PoC Adj Factor Scoring'!$E$5:$J$282,,MATCH(V$4,'C. PoC Adj Factor Scoring'!$E$3:$AH$3,0)-1),MATCH(V$2&\" Score\",'C. PoC Adj Factor Scoring'!$E$4:$J$4,0),TRUE)","v":1},{"$f":"VLOOKUP(OFFSET($B:$B,,MATCH(W$4,$B$4:$F$4,0)-1),OFFSET('C. PoC Adj Factor Scoring'!$E$5:$J$282,,MATCH(W$4,'C. PoC Adj Factor Scoring'!$E$3:$AH$3,0)-1),MATCH(W$2&\" Score\",'C. PoC Adj Factor Scoring'!$E$4:$J$4,0),TRUE)","v":1},{"$f":"VLOOKUP(OFFSET($B:$B,,MATCH(X$4,$B$4:$F$4,0)-1),OFFSET('C. PoC Adj Factor Scoring'!$E$5:$J$282,,MATCH(X$4,'C. PoC Adj Factor Scoring'!$E$3:$AH$3,0)-1),MATCH(X$2&\" Score\",'C. PoC Adj Factor Scoring'!$E$4:$J$4,0),TRUE)","v":1},{"$f":"VLOOKUP(OFFSET($B:$B,,MATCH(Y$4,$B$4:$F$4,0)-1),OFFSET('C. PoC Adj Factor Scoring'!$E$5:$J$282,,MATCH(Y$4,'C. PoC Adj Factor Scoring'!$E$3:$AH$3,0)-1),MATCH(Y$2&\" Score\",'C. PoC Adj Factor Scoring'!$E$4:$J$4,0),TRUE)","v":1},{"$f":"VLOOKUP(OFFSET($B:$B,,MATCH(Z$4,$B$4:$F$4,0)-1),OFFSET('C. PoC Adj Factor Scoring'!$E$5:$J$282,,MATCH(Z$4,'C. PoC Adj Factor Scoring'!$E$3:$AH$3,0)-1),MATCH(Z$2&\" Score\",'C. PoC Adj Factor Scoring'!$E$4:$J$4,0),TRUE)","v":1},{"$f":"VLOOKUP(OFFSET($B:$B,,MATCH(AA$4,$B$4:$F$4,0)-1),OFFSET('C. PoC Adj Factor Scoring'!$E$5:$J$282,,MATCH(AA$4,'C. PoC Adj Factor Scoring'!$E$3:$AH$3,0)-1),MATCH(AA$2&\" Score\",'C. PoC Adj Factor Scoring'!$E$4:$J$4,0),TRUE)","v":3},{"$f":"VLOOKUP(OFFSET($B:$B,,MATCH(AB$4,$B$4:$F$4,0)-1),OFFSET('C. PoC Adj Factor Scoring'!$E$5:$J$282,,MATCH(AB$4,'C. PoC Adj Factor Scoring'!$E$3:$AH$3,0)-1),MATCH(AB$2&\" Score\",'C. PoC Adj Factor Scoring'!$E$4:$J$4,0),TRUE)","v":1},{"$f":"VLOOKUP(OFFSET($B:$B,,MATCH(AC$4,$B$4:$F$4,0)-1),OFFSET('C. PoC Adj Factor Scoring'!$E$5:$J$282,,MATCH(AC$4,'C. PoC Adj Factor Scoring'!$E$3:$AH$3,0)-1),MATCH(AC$2&\" Score\",'C. PoC Adj Factor Scoring'!$E$4:$J$4,0),TRUE)","v":1},{"$f":"VLOOKUP(OFFSET($B:$B,,MATCH(AD$4,$B$4:$F$4,0)-1),OFFSET('C. PoC Adj Factor Scoring'!$E$5:$J$282,,MATCH(AD$4,'C. PoC Adj Factor Scoring'!$E$3:$AH$3,0)-1),MATCH(AD$2&\" Score\",'C. PoC Adj Factor Scoring'!$E$4:$J$4,0),TRUE)","v":1},{"$f":"VLOOKUP(OFFSET($B:$B,,MATCH(AE$4,$B$4:$F$4,0)-1),OFFSET('C. PoC Adj Factor Scoring'!$E$5:$J$282,,MATCH(AE$4,'C. PoC Adj Factor Scoring'!$E$3:$AH$3,0)-1),MATCH(AE$2&\" Score\",'C. PoC Adj Factor Scoring'!$E$4:$J$4,0),TRUE)","v":1}]
[{"$f":"'A. Population Info'!A342","v":1000400013},{"$f":"'A. Population Info'!L342","v":"OIL"},{"$f":"'A. Population Info'!M342","v":0},{"$f":"'A. Population Info'!N342","v":0},{"$f":"'A. Population Info'!O342","v":0},{"$f":"'A. Population Info'!P342","v":0},{"$f":"VLOOKUP(OFFSET($B:$B,,MATCH(G$4,$B$4:$F$4,0)-1),OFFSET('C. PoC Adj Factor Scoring'!$E$5:$J$282,,MATCH(G$4,'C. PoC Adj Factor Scoring'!$E$3:$AH$3,0)-1),MATCH(G$2&\" Score\",'C. PoC Adj Factor Scoring'!$E$4:$J$4,0),TRUE)","v":4},{"$f":"VLOOKUP(OFFSET($B:$B,,MATCH(H$4,$B$4:$F$4,0)-1),OFFSET('C. PoC Adj Factor Scoring'!$E$5:$J$282,,MATCH(H$4,'C. PoC Adj Factor Scoring'!$E$3:$AH$3,0)-1),MATCH(H$2&\" Score\",'C. PoC Adj Factor Scoring'!$E$4:$J$4,0),TRUE)","v":1},{"$f":"VLOOKUP(OFFSET($B:$B,,MATCH(I$4,$B$4:$F$4,0)-1),OFFSET('C. PoC Adj Factor Scoring'!$E$5:$J$282,,MATCH(I$4,'C. PoC Adj Factor Scoring'!$E$3:$AH$3,0)-1),MATCH(I$2&\" Score\",'C. PoC Adj Factor Scoring'!$E$4:$J$4,0),TRUE)","v":1},{"$f":"VLOOKUP(OFFSET($B:$B,,MATCH(J$4,$B$4:$F$4,0)-1),OFFSET('C. PoC Adj Factor Scoring'!$E$5:$J$282,,MATCH(J$4,'C. PoC Adj Factor Scoring'!$E$3:$AH$3,0)-1),MATCH(J$2&\" Score\",'C. PoC Adj Factor Scoring'!$E$4:$J$4,0),TRUE)","v":1},{"$f":"VLOOKUP(OFFSET($B:$B,,MATCH(K$4,$B$4:$F$4,0)-1),OFFSET('C. PoC Adj Factor Scoring'!$E$5:$J$282,,MATCH(K$4,'C. PoC Adj Factor Scoring'!$E$3:$AH$3,0)-1),MATCH(K$2&\" Score\",'C. PoC Adj Factor Scoring'!$E$4:$J$4,0),TRUE)","v":1},{"$f":"VLOOKUP(OFFSET($B:$B,,MATCH(L$4,$B$4:$F$4,0)-1),OFFSET('C. PoC Adj Factor Scoring'!$E$5:$J$282,,MATCH(L$4,'C. PoC Adj Factor Scoring'!$E$3:$AH$3,0)-1),MATCH(L$2&\" Score\",'C. PoC Adj Factor Scoring'!$E$4:$J$4,0),TRUE)","v":1},{"$f":"VLOOKUP(OFFSET($B:$B,,MATCH(M$4,$B$4:$F$4,0)-1),OFFSET('C. PoC Adj Factor Scoring'!$E$5:$J$282,,MATCH(M$4,'C. PoC Adj Factor Scoring'!$E$3:$AH$3,0)-1),MATCH(M$2&\" Score\",'C. PoC Adj Factor Scoring'!$E$4:$J$4,0),TRUE)","v":1},{"$f":"VLOOKUP(OFFSET($B:$B,,MATCH(N$4,$B$4:$F$4,0)-1),OFFSET('C. PoC Adj Factor Scoring'!$E$5:$J$282,,MATCH(N$4,'C. PoC Adj Factor Scoring'!$E$3:$AH$3,0)-1),MATCH(N$2&\" Score\",'C. PoC Adj Factor Scoring'!$E$4:$J$4,0),TRUE)","v":1},{"$f":"VLOOKUP(OFFSET($B:$B,,MATCH(O$4,$B$4:$F$4,0)-1),OFFSET('C. PoC Adj Factor Scoring'!$E$5:$J$282,,MATCH(O$4,'C. PoC Adj Factor Scoring'!$E$3:$AH$3,0)-1),MATCH(O$2&\" Score\",'C. PoC Adj Factor Scoring'!$E$4:$J$4,0),TRUE)","v":1},{"$f":"VLOOKUP(OFFSET($B:$B,,MATCH(P$4,$B$4:$F$4,0)-1),OFFSET('C. PoC Adj Factor Scoring'!$E$5:$J$282,,MATCH(P$4,'C. PoC Adj Factor Scoring'!$E$3:$AH$3,0)-1),MATCH(P$2&\" Score\",'C. PoC Adj Factor Scoring'!$E$4:$J$4,0),TRUE)","v":1},{"$f":"VLOOKUP(OFFSET($B:$B,,MATCH(Q$4,$B$4:$F$4,0)-1),OFFSET('C. PoC Adj Factor Scoring'!$E$5:$J$282,,MATCH(Q$4,'C. PoC Adj Factor Scoring'!$E$3:$AH$3,0)-1),MATCH(Q$2&\" Score\",'C. PoC Adj Factor Scoring'!$E$4:$J$4,0),TRUE)","v":1},{"$f":"VLOOKUP(OFFSET($B:$B,,MATCH(R$4,$B$4:$F$4,0)-1),OFFSET('C. PoC Adj Factor Scoring'!$E$5:$J$282,,MATCH(R$4,'C. PoC Adj Factor Scoring'!$E$3:$AH$3,0)-1),MATCH(R$2&\" Score\",'C. PoC Adj Factor Scoring'!$E$4:$J$4,0),TRUE)","v":1},{"$f":"VLOOKUP(OFFSET($B:$B,,MATCH(S$4,$B$4:$F$4,0)-1),OFFSET('C. PoC Adj Factor Scoring'!$E$5:$J$282,,MATCH(S$4,'C. PoC Adj Factor Scoring'!$E$3:$AH$3,0)-1),MATCH(S$2&\" Score\",'C. PoC Adj Factor Scoring'!$E$4:$J$4,0),TRUE)","v":1},{"$f":"VLOOKUP(OFFSET($B:$B,,MATCH(T$4,$B$4:$F$4,0)-1),OFFSET('C. PoC Adj Factor Scoring'!$E$5:$J$282,,MATCH(T$4,'C. PoC Adj Factor Scoring'!$E$3:$AH$3,0)-1),MATCH(T$2&\" Score\",'C. PoC Adj Factor Scoring'!$E$4:$J$4,0),TRUE)","v":1},{"$f":"VLOOKUP(OFFSET($B:$B,,MATCH(U$4,$B$4:$F$4,0)-1),OFFSET('C. PoC Adj Factor Scoring'!$E$5:$J$282,,MATCH(U$4,'C. PoC Adj Factor Scoring'!$E$3:$AH$3,0)-1),MATCH(U$2&\" Score\",'C. PoC Adj Factor Scoring'!$E$4:$J$4,0),TRUE)","v":1},{"$f":"VLOOKUP(OFFSET($B:$B,,MATCH(V$4,$B$4:$F$4,0)-1),OFFSET('C. PoC Adj Factor Scoring'!$E$5:$J$282,,MATCH(V$4,'C. PoC Adj Factor Scoring'!$E$3:$AH$3,0)-1),MATCH(V$2&\" Score\",'C. PoC Adj Factor Scoring'!$E$4:$J$4,0),TRUE)","v":1},{"$f":"VLOOKUP(OFFSET($B:$B,,MATCH(W$4,$B$4:$F$4,0)-1),OFFSET('C. PoC Adj Factor Scoring'!$E$5:$J$282,,MATCH(W$4,'C. PoC Adj Factor Scoring'!$E$3:$AH$3,0)-1),MATCH(W$2&\" Score\",'C. PoC Adj Factor Scoring'!$E$4:$J$4,0),TRUE)","v":1},{"$f":"VLOOKUP(OFFSET($B:$B,,MATCH(X$4,$B$4:$F$4,0)-1),OFFSET('C. PoC Adj Factor Scoring'!$E$5:$J$282,,MATCH(X$4,'C. PoC Adj Factor Scoring'!$E$3:$AH$3,0)-1),MATCH(X$2&\" Score\",'C. PoC Adj Factor Scoring'!$E$4:$J$4,0),TRUE)","v":1},{"$f":"VLOOKUP(OFFSET($B:$B,,MATCH(Y$4,$B$4:$F$4,0)-1),OFFSET('C. PoC Adj Factor Scoring'!$E$5:$J$282,,MATCH(Y$4,'C. PoC Adj Factor Scoring'!$E$3:$AH$3,0)-1),MATCH(Y$2&\" Score\",'C. PoC Adj Factor Scoring'!$E$4:$J$4,0),TRUE)","v":1},{"$f":"VLOOKUP(OFFSET($B:$B,,MATCH(Z$4,$B$4:$F$4,0)-1),OFFSET('C. PoC Adj Factor Scoring'!$E$5:$J$282,,MATCH(Z$4,'C. PoC Adj Factor Scoring'!$E$3:$AH$3,0)-1),MATCH(Z$2&\" Score\",'C. PoC Adj Factor Scoring'!$E$4:$J$4,0),TRUE)","v":1},{"$f":"VLOOKUP(OFFSET($B:$B,,MATCH(AA$4,$B$4:$F$4,0)-1),OFFSET('C. PoC Adj Factor Scoring'!$E$5:$J$282,,MATCH(AA$4,'C. PoC Adj Factor Scoring'!$E$3:$AH$3,0)-1),MATCH(AA$2&\" Score\",'C. PoC Adj Factor Scoring'!$E$4:$J$4,0),TRUE)","v":3},{"$f":"VLOOKUP(OFFSET($B:$B,,MATCH(AB$4,$B$4:$F$4,0)-1),OFFSET('C. PoC Adj Factor Scoring'!$E$5:$J$282,,MATCH(AB$4,'C. PoC Adj Factor Scoring'!$E$3:$AH$3,0)-1),MATCH(AB$2&\" Score\",'C. PoC Adj Factor Scoring'!$E$4:$J$4,0),TRUE)","v":1},{"$f":"VLOOKUP(OFFSET($B:$B,,MATCH(AC$4,$B$4:$F$4,0)-1),OFFSET('C. PoC Adj Factor Scoring'!$E$5:$J$282,,MATCH(AC$4,'C. PoC Adj Factor Scoring'!$E$3:$AH$3,0)-1),MATCH(AC$2&\" Score\",'C. PoC Adj Factor Scoring'!$E$4:$J$4,0),TRUE)","v":1},{"$f":"VLOOKUP(OFFSET($B:$B,,MATCH(AD$4,$B$4:$F$4,0)-1),OFFSET('C. PoC Adj Factor Scoring'!$E$5:$J$282,,MATCH(AD$4,'C. PoC Adj Factor Scoring'!$E$3:$AH$3,0)-1),MATCH(AD$2&\" Score\",'C. PoC Adj Factor Scoring'!$E$4:$J$4,0),TRUE)","v":1},{"$f":"VLOOKUP(OFFSET($B:$B,,MATCH(AE$4,$B$4:$F$4,0)-1),OFFSET('C. PoC Adj Factor Scoring'!$E$5:$J$282,,MATCH(AE$4,'C. PoC Adj Factor Scoring'!$E$3:$AH$3,0)-1),MATCH(AE$2&\" Score\",'C. PoC Adj Factor Scoring'!$E$4:$J$4,0),TRUE)","v":1}]
[{"$f":"'A. Population Info'!A343","v":1000400036},{"$f":"'A. Population Info'!L343","v":"OIL"},{"$f":"'A. Population Info'!M343","v":0},{"$f":"'A. Population Info'!N343","v":0},{"$f":"'A. Population Info'!O343","v":0},{"$f":"'A. Population Info'!P343","v":0},{"$f":"VLOOKUP(OFFSET($B:$B,,MATCH(G$4,$B$4:$F$4,0)-1),OFFSET('C. PoC Adj Factor Scoring'!$E$5:$J$282,,MATCH(G$4,'C. PoC Adj Factor Scoring'!$E$3:$AH$3,0)-1),MATCH(G$2&\" Score\",'C. PoC Adj Factor Scoring'!$E$4:$J$4,0),TRUE)","v":4},{"$f":"VLOOKUP(OFFSET($B:$B,,MATCH(H$4,$B$4:$F$4,0)-1),OFFSET('C. PoC Adj Factor Scoring'!$E$5:$J$282,,MATCH(H$4,'C. PoC Adj Factor Scoring'!$E$3:$AH$3,0)-1),MATCH(H$2&\" Score\",'C. PoC Adj Factor Scoring'!$E$4:$J$4,0),TRUE)","v":1},{"$f":"VLOOKUP(OFFSET($B:$B,,MATCH(I$4,$B$4:$F$4,0)-1),OFFSET('C. PoC Adj Factor Scoring'!$E$5:$J$282,,MATCH(I$4,'C. PoC Adj Factor Scoring'!$E$3:$AH$3,0)-1),MATCH(I$2&\" Score\",'C. PoC Adj Factor Scoring'!$E$4:$J$4,0),TRUE)","v":1},{"$f":"VLOOKUP(OFFSET($B:$B,,MATCH(J$4,$B$4:$F$4,0)-1),OFFSET('C. PoC Adj Factor Scoring'!$E$5:$J$282,,MATCH(J$4,'C. PoC Adj Factor Scoring'!$E$3:$AH$3,0)-1),MATCH(J$2&\" Score\",'C. PoC Adj Factor Scoring'!$E$4:$J$4,0),TRUE)","v":1},{"$f":"VLOOKUP(OFFSET($B:$B,,MATCH(K$4,$B$4:$F$4,0)-1),OFFSET('C. PoC Adj Factor Scoring'!$E$5:$J$282,,MATCH(K$4,'C. PoC Adj Factor Scoring'!$E$3:$AH$3,0)-1),MATCH(K$2&\" Score\",'C. PoC Adj Factor Scoring'!$E$4:$J$4,0),TRUE)","v":1},{"$f":"VLOOKUP(OFFSET($B:$B,,MATCH(L$4,$B$4:$F$4,0)-1),OFFSET('C. PoC Adj Factor Scoring'!$E$5:$J$282,,MATCH(L$4,'C. PoC Adj Factor Scoring'!$E$3:$AH$3,0)-1),MATCH(L$2&\" Score\",'C. PoC Adj Factor Scoring'!$E$4:$J$4,0),TRUE)","v":1},{"$f":"VLOOKUP(OFFSET($B:$B,,MATCH(M$4,$B$4:$F$4,0)-1),OFFSET('C. PoC Adj Factor Scoring'!$E$5:$J$282,,MATCH(M$4,'C. PoC Adj Factor Scoring'!$E$3:$AH$3,0)-1),MATCH(M$2&\" Score\",'C. PoC Adj Factor Scoring'!$E$4:$J$4,0),TRUE)","v":1},{"$f":"VLOOKUP(OFFSET($B:$B,,MATCH(N$4,$B$4:$F$4,0)-1),OFFSET('C. PoC Adj Factor Scoring'!$E$5:$J$282,,MATCH(N$4,'C. PoC Adj Factor Scoring'!$E$3:$AH$3,0)-1),MATCH(N$2&\" Score\",'C. PoC Adj Factor Scoring'!$E$4:$J$4,0),TRUE)","v":1},{"$f":"VLOOKUP(OFFSET($B:$B,,MATCH(O$4,$B$4:$F$4,0)-1),OFFSET('C. PoC Adj Factor Scoring'!$E$5:$J$282,,MATCH(O$4,'C. PoC Adj Factor Scoring'!$E$3:$AH$3,0)-1),MATCH(O$2&\" Score\",'C. PoC Adj Factor Scoring'!$E$4:$J$4,0),TRUE)","v":1},{"$f":"VLOOKUP(OFFSET($B:$B,,MATCH(P$4,$B$4:$F$4,0)-1),OFFSET('C. PoC Adj Factor Scoring'!$E$5:$J$282,,MATCH(P$4,'C. PoC Adj Factor Scoring'!$E$3:$AH$3,0)-1),MATCH(P$2&\" Score\",'C. PoC Adj Factor Scoring'!$E$4:$J$4,0),TRUE)","v":1},{"$f":"VLOOKUP(OFFSET($B:$B,,MATCH(Q$4,$B$4:$F$4,0)-1),OFFSET('C. PoC Adj Factor Scoring'!$E$5:$J$282,,MATCH(Q$4,'C. PoC Adj Factor Scoring'!$E$3:$AH$3,0)-1),MATCH(Q$2&\" Score\",'C. PoC Adj Factor Scoring'!$E$4:$J$4,0),TRUE)","v":1},{"$f":"VLOOKUP(OFFSET($B:$B,,MATCH(R$4,$B$4:$F$4,0)-1),OFFSET('C. PoC Adj Factor Scoring'!$E$5:$J$282,,MATCH(R$4,'C. PoC Adj Factor Scoring'!$E$3:$AH$3,0)-1),MATCH(R$2&\" Score\",'C. PoC Adj Factor Scoring'!$E$4:$J$4,0),TRUE)","v":1},{"$f":"VLOOKUP(OFFSET($B:$B,,MATCH(S$4,$B$4:$F$4,0)-1),OFFSET('C. PoC Adj Factor Scoring'!$E$5:$J$282,,MATCH(S$4,'C. PoC Adj Factor Scoring'!$E$3:$AH$3,0)-1),MATCH(S$2&\" Score\",'C. PoC Adj Factor Scoring'!$E$4:$J$4,0),TRUE)","v":1},{"$f":"VLOOKUP(OFFSET($B:$B,,MATCH(T$4,$B$4:$F$4,0)-1),OFFSET('C. PoC Adj Factor Scoring'!$E$5:$J$282,,MATCH(T$4,'C. PoC Adj Factor Scoring'!$E$3:$AH$3,0)-1),MATCH(T$2&\" Score\",'C. PoC Adj Factor Scoring'!$E$4:$J$4,0),TRUE)","v":1},{"$f":"VLOOKUP(OFFSET($B:$B,,MATCH(U$4,$B$4:$F$4,0)-1),OFFSET('C. PoC Adj Factor Scoring'!$E$5:$J$282,,MATCH(U$4,'C. PoC Adj Factor Scoring'!$E$3:$AH$3,0)-1),MATCH(U$2&\" Score\",'C. PoC Adj Factor Scoring'!$E$4:$J$4,0),TRUE)","v":1},{"$f":"VLOOKUP(OFFSET($B:$B,,MATCH(V$4,$B$4:$F$4,0)-1),OFFSET('C. PoC Adj Factor Scoring'!$E$5:$J$282,,MATCH(V$4,'C. PoC Adj Factor Scoring'!$E$3:$AH$3,0)-1),MATCH(V$2&\" Score\",'C. PoC Adj Factor Scoring'!$E$4:$J$4,0),TRUE)","v":1},{"$f":"VLOOKUP(OFFSET($B:$B,,MATCH(W$4,$B$4:$F$4,0)-1),OFFSET('C. PoC Adj Factor Scoring'!$E$5:$J$282,,MATCH(W$4,'C. PoC Adj Factor Scoring'!$E$3:$AH$3,0)-1),MATCH(W$2&\" Score\",'C. PoC Adj Factor Scoring'!$E$4:$J$4,0),TRUE)","v":1},{"$f":"VLOOKUP(OFFSET($B:$B,,MATCH(X$4,$B$4:$F$4,0)-1),OFFSET('C. PoC Adj Factor Scoring'!$E$5:$J$282,,MATCH(X$4,'C. PoC Adj Factor Scoring'!$E$3:$AH$3,0)-1),MATCH(X$2&\" Score\",'C. PoC Adj Factor Scoring'!$E$4:$J$4,0),TRUE)","v":1},{"$f":"VLOOKUP(OFFSET($B:$B,,MATCH(Y$4,$B$4:$F$4,0)-1),OFFSET('C. PoC Adj Factor Scoring'!$E$5:$J$282,,MATCH(Y$4,'C. PoC Adj Factor Scoring'!$E$3:$AH$3,0)-1),MATCH(Y$2&\" Score\",'C. PoC Adj Factor Scoring'!$E$4:$J$4,0),TRUE)","v":1},{"$f":"VLOOKUP(OFFSET($B:$B,,MATCH(Z$4,$B$4:$F$4,0)-1),OFFSET('C. PoC Adj Factor Scoring'!$E$5:$J$282,,MATCH(Z$4,'C. PoC Adj Factor Scoring'!$E$3:$AH$3,0)-1),MATCH(Z$2&\" Score\",'C. PoC Adj Factor Scoring'!$E$4:$J$4,0),TRUE)","v":1},{"$f":"VLOOKUP(OFFSET($B:$B,,MATCH(AA$4,$B$4:$F$4,0)-1),OFFSET('C. PoC Adj Factor Scoring'!$E$5:$J$282,,MATCH(AA$4,'C. PoC Adj Factor Scoring'!$E$3:$AH$3,0)-1),MATCH(AA$2&\" Score\",'C. PoC Adj Factor Scoring'!$E$4:$J$4,0),TRUE)","v":3},{"$f":"VLOOKUP(OFFSET($B:$B,,MATCH(AB$4,$B$4:$F$4,0)-1),OFFSET('C. PoC Adj Factor Scoring'!$E$5:$J$282,,MATCH(AB$4,'C. PoC Adj Factor Scoring'!$E$3:$AH$3,0)-1),MATCH(AB$2&\" Score\",'C. PoC Adj Factor Scoring'!$E$4:$J$4,0),TRUE)","v":1},{"$f":"VLOOKUP(OFFSET($B:$B,,MATCH(AC$4,$B$4:$F$4,0)-1),OFFSET('C. PoC Adj Factor Scoring'!$E$5:$J$282,,MATCH(AC$4,'C. PoC Adj Factor Scoring'!$E$3:$AH$3,0)-1),MATCH(AC$2&\" Score\",'C. PoC Adj Factor Scoring'!$E$4:$J$4,0),TRUE)","v":1},{"$f":"VLOOKUP(OFFSET($B:$B,,MATCH(AD$4,$B$4:$F$4,0)-1),OFFSET('C. PoC Adj Factor Scoring'!$E$5:$J$282,,MATCH(AD$4,'C. PoC Adj Factor Scoring'!$E$3:$AH$3,0)-1),MATCH(AD$2&\" Score\",'C. PoC Adj Factor Scoring'!$E$4:$J$4,0),TRUE)","v":1},{"$f":"VLOOKUP(OFFSET($B:$B,,MATCH(AE$4,$B$4:$F$4,0)-1),OFFSET('C. PoC Adj Factor Scoring'!$E$5:$J$282,,MATCH(AE$4,'C. PoC Adj Factor Scoring'!$E$3:$AH$3,0)-1),MATCH(AE$2&\" Score\",'C. PoC Adj Factor Scoring'!$E$4:$J$4,0),TRUE)","v":1}]
[{"$f":"'A. Population Info'!A344","v":1000400062},{"$f":"'A. Population Info'!L344","v":"OIL"},{"$f":"'A. Population Info'!M344","v":0},{"$f":"'A. Population Info'!N344","v":0},{"$f":"'A. Population Info'!O344","v":0},{"$f":"'A. Population Info'!P344","v":0},{"$f":"VLOOKUP(OFFSET($B:$B,,MATCH(G$4,$B$4:$F$4,0)-1),OFFSET('C. PoC Adj Factor Scoring'!$E$5:$J$282,,MATCH(G$4,'C. PoC Adj Factor Scoring'!$E$3:$AH$3,0)-1),MATCH(G$2&\" Score\",'C. PoC Adj Factor Scoring'!$E$4:$J$4,0),TRUE)","v":4},{"$f":"VLOOKUP(OFFSET($B:$B,,MATCH(H$4,$B$4:$F$4,0)-1),OFFSET('C. PoC Adj Factor Scoring'!$E$5:$J$282,,MATCH(H$4,'C. PoC Adj Factor Scoring'!$E$3:$AH$3,0)-1),MATCH(H$2&\" Score\",'C. PoC Adj Factor Scoring'!$E$4:$J$4,0),TRUE)","v":1},{"$f":"VLOOKUP(OFFSET($B:$B,,MATCH(I$4,$B$4:$F$4,0)-1),OFFSET('C. PoC Adj Factor Scoring'!$E$5:$J$282,,MATCH(I$4,'C. PoC Adj Factor Scoring'!$E$3:$AH$3,0)-1),MATCH(I$2&\" Score\",'C. PoC Adj Factor Scoring'!$E$4:$J$4,0),TRUE)","v":1},{"$f":"VLOOKUP(OFFSET($B:$B,,MATCH(J$4,$B$4:$F$4,0)-1),OFFSET('C. PoC Adj Factor Scoring'!$E$5:$J$282,,MATCH(J$4,'C. PoC Adj Factor Scoring'!$E$3:$AH$3,0)-1),MATCH(J$2&\" Score\",'C. PoC Adj Factor Scoring'!$E$4:$J$4,0),TRUE)","v":1},{"$f":"VLOOKUP(OFFSET($B:$B,,MATCH(K$4,$B$4:$F$4,0)-1),OFFSET('C. PoC Adj Factor Scoring'!$E$5:$J$282,,MATCH(K$4,'C. PoC Adj Factor Scoring'!$E$3:$AH$3,0)-1),MATCH(K$2&\" Score\",'C. PoC Adj Factor Scoring'!$E$4:$J$4,0),TRUE)","v":1},{"$f":"VLOOKUP(OFFSET($B:$B,,MATCH(L$4,$B$4:$F$4,0)-1),OFFSET('C. PoC Adj Factor Scoring'!$E$5:$J$282,,MATCH(L$4,'C. PoC Adj Factor Scoring'!$E$3:$AH$3,0)-1),MATCH(L$2&\" Score\",'C. PoC Adj Factor Scoring'!$E$4:$J$4,0),TRUE)","v":1},{"$f":"VLOOKUP(OFFSET($B:$B,,MATCH(M$4,$B$4:$F$4,0)-1),OFFSET('C. PoC Adj Factor Scoring'!$E$5:$J$282,,MATCH(M$4,'C. PoC Adj Factor Scoring'!$E$3:$AH$3,0)-1),MATCH(M$2&\" Score\",'C. PoC Adj Factor Scoring'!$E$4:$J$4,0),TRUE)","v":1},{"$f":"VLOOKUP(OFFSET($B:$B,,MATCH(N$4,$B$4:$F$4,0)-1),OFFSET('C. PoC Adj Factor Scoring'!$E$5:$J$282,,MATCH(N$4,'C. PoC Adj Factor Scoring'!$E$3:$AH$3,0)-1),MATCH(N$2&\" Score\",'C. PoC Adj Factor Scoring'!$E$4:$J$4,0),TRUE)","v":1},{"$f":"VLOOKUP(OFFSET($B:$B,,MATCH(O$4,$B$4:$F$4,0)-1),OFFSET('C. PoC Adj Factor Scoring'!$E$5:$J$282,,MATCH(O$4,'C. PoC Adj Factor Scoring'!$E$3:$AH$3,0)-1),MATCH(O$2&\" Score\",'C. PoC Adj Factor Scoring'!$E$4:$J$4,0),TRUE)","v":1},{"$f":"VLOOKUP(OFFSET($B:$B,,MATCH(P$4,$B$4:$F$4,0)-1),OFFSET('C. PoC Adj Factor Scoring'!$E$5:$J$282,,MATCH(P$4,'C. PoC Adj Factor Scoring'!$E$3:$AH$3,0)-1),MATCH(P$2&\" Score\",'C. PoC Adj Factor Scoring'!$E$4:$J$4,0),TRUE)","v":1},{"$f":"VLOOKUP(OFFSET($B:$B,,MATCH(Q$4,$B$4:$F$4,0)-1),OFFSET('C. PoC Adj Factor Scoring'!$E$5:$J$282,,MATCH(Q$4,'C. PoC Adj Factor Scoring'!$E$3:$AH$3,0)-1),MATCH(Q$2&\" Score\",'C. PoC Adj Factor Scoring'!$E$4:$J$4,0),TRUE)","v":1},{"$f":"VLOOKUP(OFFSET($B:$B,,MATCH(R$4,$B$4:$F$4,0)-1),OFFSET('C. PoC Adj Factor Scoring'!$E$5:$J$282,,MATCH(R$4,'C. PoC Adj Factor Scoring'!$E$3:$AH$3,0)-1),MATCH(R$2&\" Score\",'C. PoC Adj Factor Scoring'!$E$4:$J$4,0),TRUE)","v":1},{"$f":"VLOOKUP(OFFSET($B:$B,,MATCH(S$4,$B$4:$F$4,0)-1),OFFSET('C. PoC Adj Factor Scoring'!$E$5:$J$282,,MATCH(S$4,'C. PoC Adj Factor Scoring'!$E$3:$AH$3,0)-1),MATCH(S$2&\" Score\",'C. PoC Adj Factor Scoring'!$E$4:$J$4,0),TRUE)","v":1},{"$f":"VLOOKUP(OFFSET($B:$B,,MATCH(T$4,$B$4:$F$4,0)-1),OFFSET('C. PoC Adj Factor Scoring'!$E$5:$J$282,,MATCH(T$4,'C. PoC Adj Factor Scoring'!$E$3:$AH$3,0)-1),MATCH(T$2&\" Score\",'C. PoC Adj Factor Scoring'!$E$4:$J$4,0),TRUE)","v":1},{"$f":"VLOOKUP(OFFSET($B:$B,,MATCH(U$4,$B$4:$F$4,0)-1),OFFSET('C. PoC Adj Factor Scoring'!$E$5:$J$282,,MATCH(U$4,'C. PoC Adj Factor Scoring'!$E$3:$AH$3,0)-1),MATCH(U$2&\" Score\",'C. PoC Adj Factor Scoring'!$E$4:$J$4,0),TRUE)","v":1},{"$f":"VLOOKUP(OFFSET($B:$B,,MATCH(V$4,$B$4:$F$4,0)-1),OFFSET('C. PoC Adj Factor Scoring'!$E$5:$J$282,,MATCH(V$4,'C. PoC Adj Factor Scoring'!$E$3:$AH$3,0)-1),MATCH(V$2&\" Score\",'C. PoC Adj Factor Scoring'!$E$4:$J$4,0),TRUE)","v":1},{"$f":"VLOOKUP(OFFSET($B:$B,,MATCH(W$4,$B$4:$F$4,0)-1),OFFSET('C. PoC Adj Factor Scoring'!$E$5:$J$282,,MATCH(W$4,'C. PoC Adj Factor Scoring'!$E$3:$AH$3,0)-1),MATCH(W$2&\" Score\",'C. PoC Adj Factor Scoring'!$E$4:$J$4,0),TRUE)","v":1},{"$f":"VLOOKUP(OFFSET($B:$B,,MATCH(X$4,$B$4:$F$4,0)-1),OFFSET('C. PoC Adj Factor Scoring'!$E$5:$J$282,,MATCH(X$4,'C. PoC Adj Factor Scoring'!$E$3:$AH$3,0)-1),MATCH(X$2&\" Score\",'C. PoC Adj Factor Scoring'!$E$4:$J$4,0),TRUE)","v":1},{"$f":"VLOOKUP(OFFSET($B:$B,,MATCH(Y$4,$B$4:$F$4,0)-1),OFFSET('C. PoC Adj Factor Scoring'!$E$5:$J$282,,MATCH(Y$4,'C. PoC Adj Factor Scoring'!$E$3:$AH$3,0)-1),MATCH(Y$2&\" Score\",'C. PoC Adj Factor Scoring'!$E$4:$J$4,0),TRUE)","v":1},{"$f":"VLOOKUP(OFFSET($B:$B,,MATCH(Z$4,$B$4:$F$4,0)-1),OFFSET('C. PoC Adj Factor Scoring'!$E$5:$J$282,,MATCH(Z$4,'C. PoC Adj Factor Scoring'!$E$3:$AH$3,0)-1),MATCH(Z$2&\" Score\",'C. PoC Adj Factor Scoring'!$E$4:$J$4,0),TRUE)","v":1},{"$f":"VLOOKUP(OFFSET($B:$B,,MATCH(AA$4,$B$4:$F$4,0)-1),OFFSET('C. PoC Adj Factor Scoring'!$E$5:$J$282,,MATCH(AA$4,'C. PoC Adj Factor Scoring'!$E$3:$AH$3,0)-1),MATCH(AA$2&\" Score\",'C. PoC Adj Factor Scoring'!$E$4:$J$4,0),TRUE)","v":3},{"$f":"VLOOKUP(OFFSET($B:$B,,MATCH(AB$4,$B$4:$F$4,0)-1),OFFSET('C. PoC Adj Factor Scoring'!$E$5:$J$282,,MATCH(AB$4,'C. PoC Adj Factor Scoring'!$E$3:$AH$3,0)-1),MATCH(AB$2&\" Score\",'C. PoC Adj Factor Scoring'!$E$4:$J$4,0),TRUE)","v":1},{"$f":"VLOOKUP(OFFSET($B:$B,,MATCH(AC$4,$B$4:$F$4,0)-1),OFFSET('C. PoC Adj Factor Scoring'!$E$5:$J$282,,MATCH(AC$4,'C. PoC Adj Factor Scoring'!$E$3:$AH$3,0)-1),MATCH(AC$2&\" Score\",'C. PoC Adj Factor Scoring'!$E$4:$J$4,0),TRUE)","v":1},{"$f":"VLOOKUP(OFFSET($B:$B,,MATCH(AD$4,$B$4:$F$4,0)-1),OFFSET('C. PoC Adj Factor Scoring'!$E$5:$J$282,,MATCH(AD$4,'C. PoC Adj Factor Scoring'!$E$3:$AH$3,0)-1),MATCH(AD$2&\" Score\",'C. PoC Adj Factor Scoring'!$E$4:$J$4,0),TRUE)","v":1},{"$f":"VLOOKUP(OFFSET($B:$B,,MATCH(AE$4,$B$4:$F$4,0)-1),OFFSET('C. PoC Adj Factor Scoring'!$E$5:$J$282,,MATCH(AE$4,'C. PoC Adj Factor Scoring'!$E$3:$AH$3,0)-1),MATCH(AE$2&\" Score\",'C. PoC Adj Factor Scoring'!$E$4:$J$4,0),TRUE)","v":1}]
[{"$f":"'A. Population Info'!A345","v":1000400113},{"$f":"'A. Population Info'!L345","v":"OIL"},{"$f":"'A. Population Info'!M345","v":0},{"$f":"'A. Population Info'!N345","v":0},{"$f":"'A. Population Info'!O345","v":0},{"$f":"'A. Population Info'!P345","v":0},{"$f":"VLOOKUP(OFFSET($B:$B,,MATCH(G$4,$B$4:$F$4,0)-1),OFFSET('C. PoC Adj Factor Scoring'!$E$5:$J$282,,MATCH(G$4,'C. PoC Adj Factor Scoring'!$E$3:$AH$3,0)-1),MATCH(G$2&\" Score\",'C. PoC Adj Factor Scoring'!$E$4:$J$4,0),TRUE)","v":4},{"$f":"VLOOKUP(OFFSET($B:$B,,MATCH(H$4,$B$4:$F$4,0)-1),OFFSET('C. PoC Adj Factor Scoring'!$E$5:$J$282,,MATCH(H$4,'C. PoC Adj Factor Scoring'!$E$3:$AH$3,0)-1),MATCH(H$2&\" Score\",'C. PoC Adj Factor Scoring'!$E$4:$J$4,0),TRUE)","v":1},{"$f":"VLOOKUP(OFFSET($B:$B,,MATCH(I$4,$B$4:$F$4,0)-1),OFFSET('C. PoC Adj Factor Scoring'!$E$5:$J$282,,MATCH(I$4,'C. PoC Adj Factor Scoring'!$E$3:$AH$3,0)-1),MATCH(I$2&\" Score\",'C. PoC Adj Factor Scoring'!$E$4:$J$4,0),TRUE)","v":1},{"$f":"VLOOKUP(OFFSET($B:$B,,MATCH(J$4,$B$4:$F$4,0)-1),OFFSET('C. PoC Adj Factor Scoring'!$E$5:$J$282,,MATCH(J$4,'C. PoC Adj Factor Scoring'!$E$3:$AH$3,0)-1),MATCH(J$2&\" Score\",'C. PoC Adj Factor Scoring'!$E$4:$J$4,0),TRUE)","v":1},{"$f":"VLOOKUP(OFFSET($B:$B,,MATCH(K$4,$B$4:$F$4,0)-1),OFFSET('C. PoC Adj Factor Scoring'!$E$5:$J$282,,MATCH(K$4,'C. PoC Adj Factor Scoring'!$E$3:$AH$3,0)-1),MATCH(K$2&\" Score\",'C. PoC Adj Factor Scoring'!$E$4:$J$4,0),TRUE)","v":1},{"$f":"VLOOKUP(OFFSET($B:$B,,MATCH(L$4,$B$4:$F$4,0)-1),OFFSET('C. PoC Adj Factor Scoring'!$E$5:$J$282,,MATCH(L$4,'C. PoC Adj Factor Scoring'!$E$3:$AH$3,0)-1),MATCH(L$2&\" Score\",'C. PoC Adj Factor Scoring'!$E$4:$J$4,0),TRUE)","v":1},{"$f":"VLOOKUP(OFFSET($B:$B,,MATCH(M$4,$B$4:$F$4,0)-1),OFFSET('C. PoC Adj Factor Scoring'!$E$5:$J$282,,MATCH(M$4,'C. PoC Adj Factor Scoring'!$E$3:$AH$3,0)-1),MATCH(M$2&\" Score\",'C. PoC Adj Factor Scoring'!$E$4:$J$4,0),TRUE)","v":1},{"$f":"VLOOKUP(OFFSET($B:$B,,MATCH(N$4,$B$4:$F$4,0)-1),OFFSET('C. PoC Adj Factor Scoring'!$E$5:$J$282,,MATCH(N$4,'C. PoC Adj Factor Scoring'!$E$3:$AH$3,0)-1),MATCH(N$2&\" Score\",'C. PoC Adj Factor Scoring'!$E$4:$J$4,0),TRUE)","v":1},{"$f":"VLOOKUP(OFFSET($B:$B,,MATCH(O$4,$B$4:$F$4,0)-1),OFFSET('C. PoC Adj Factor Scoring'!$E$5:$J$282,,MATCH(O$4,'C. PoC Adj Factor Scoring'!$E$3:$AH$3,0)-1),MATCH(O$2&\" Score\",'C. PoC Adj Factor Scoring'!$E$4:$J$4,0),TRUE)","v":1},{"$f":"VLOOKUP(OFFSET($B:$B,,MATCH(P$4,$B$4:$F$4,0)-1),OFFSET('C. PoC Adj Factor Scoring'!$E$5:$J$282,,MATCH(P$4,'C. PoC Adj Factor Scoring'!$E$3:$AH$3,0)-1),MATCH(P$2&\" Score\",'C. PoC Adj Factor Scoring'!$E$4:$J$4,0),TRUE)","v":1},{"$f":"VLOOKUP(OFFSET($B:$B,,MATCH(Q$4,$B$4:$F$4,0)-1),OFFSET('C. PoC Adj Factor Scoring'!$E$5:$J$282,,MATCH(Q$4,'C. PoC Adj Factor Scoring'!$E$3:$AH$3,0)-1),MATCH(Q$2&\" Score\",'C. PoC Adj Factor Scoring'!$E$4:$J$4,0),TRUE)","v":1},{"$f":"VLOOKUP(OFFSET($B:$B,,MATCH(R$4,$B$4:$F$4,0)-1),OFFSET('C. PoC Adj Factor Scoring'!$E$5:$J$282,,MATCH(R$4,'C. PoC Adj Factor Scoring'!$E$3:$AH$3,0)-1),MATCH(R$2&\" Score\",'C. PoC Adj Factor Scoring'!$E$4:$J$4,0),TRUE)","v":1},{"$f":"VLOOKUP(OFFSET($B:$B,,MATCH(S$4,$B$4:$F$4,0)-1),OFFSET('C. PoC Adj Factor Scoring'!$E$5:$J$282,,MATCH(S$4,'C. PoC Adj Factor Scoring'!$E$3:$AH$3,0)-1),MATCH(S$2&\" Score\",'C. PoC Adj Factor Scoring'!$E$4:$J$4,0),TRUE)","v":1},{"$f":"VLOOKUP(OFFSET($B:$B,,MATCH(T$4,$B$4:$F$4,0)-1),OFFSET('C. PoC Adj Factor Scoring'!$E$5:$J$282,,MATCH(T$4,'C. PoC Adj Factor Scoring'!$E$3:$AH$3,0)-1),MATCH(T$2&\" Score\",'C. PoC Adj Factor Scoring'!$E$4:$J$4,0),TRUE)","v":1},{"$f":"VLOOKUP(OFFSET($B:$B,,MATCH(U$4,$B$4:$F$4,0)-1),OFFSET('C. PoC Adj Factor Scoring'!$E$5:$J$282,,MATCH(U$4,'C. PoC Adj Factor Scoring'!$E$3:$AH$3,0)-1),MATCH(U$2&\" Score\",'C. PoC Adj Factor Scoring'!$E$4:$J$4,0),TRUE)","v":1},{"$f":"VLOOKUP(OFFSET($B:$B,,MATCH(V$4,$B$4:$F$4,0)-1),OFFSET('C. PoC Adj Factor Scoring'!$E$5:$J$282,,MATCH(V$4,'C. PoC Adj Factor Scoring'!$E$3:$AH$3,0)-1),MATCH(V$2&\" Score\",'C. PoC Adj Factor Scoring'!$E$4:$J$4,0),TRUE)","v":1},{"$f":"VLOOKUP(OFFSET($B:$B,,MATCH(W$4,$B$4:$F$4,0)-1),OFFSET('C. PoC Adj Factor Scoring'!$E$5:$J$282,,MATCH(W$4,'C. PoC Adj Factor Scoring'!$E$3:$AH$3,0)-1),MATCH(W$2&\" Score\",'C. PoC Adj Factor Scoring'!$E$4:$J$4,0),TRUE)","v":1},{"$f":"VLOOKUP(OFFSET($B:$B,,MATCH(X$4,$B$4:$F$4,0)-1),OFFSET('C. PoC Adj Factor Scoring'!$E$5:$J$282,,MATCH(X$4,'C. PoC Adj Factor Scoring'!$E$3:$AH$3,0)-1),MATCH(X$2&\" Score\",'C. PoC Adj Factor Scoring'!$E$4:$J$4,0),TRUE)","v":1},{"$f":"VLOOKUP(OFFSET($B:$B,,MATCH(Y$4,$B$4:$F$4,0)-1),OFFSET('C. PoC Adj Factor Scoring'!$E$5:$J$282,,MATCH(Y$4,'C. PoC Adj Factor Scoring'!$E$3:$AH$3,0)-1),MATCH(Y$2&\" Score\",'C. PoC Adj Factor Scoring'!$E$4:$J$4,0),TRUE)","v":1},{"$f":"VLOOKUP(OFFSET($B:$B,,MATCH(Z$4,$B$4:$F$4,0)-1),OFFSET('C. PoC Adj Factor Scoring'!$E$5:$J$282,,MATCH(Z$4,'C. PoC Adj Factor Scoring'!$E$3:$AH$3,0)-1),MATCH(Z$2&\" Score\",'C. PoC Adj Factor Scoring'!$E$4:$J$4,0),TRUE)","v":1},{"$f":"VLOOKUP(OFFSET($B:$B,,MATCH(AA$4,$B$4:$F$4,0)-1),OFFSET('C. PoC Adj Factor Scoring'!$E$5:$J$282,,MATCH(AA$4,'C. PoC Adj Factor Scoring'!$E$3:$AH$3,0)-1),MATCH(AA$2&\" Score\",'C. PoC Adj Factor Scoring'!$E$4:$J$4,0),TRUE)","v":3},{"$f":"VLOOKUP(OFFSET($B:$B,,MATCH(AB$4,$B$4:$F$4,0)-1),OFFSET('C. PoC Adj Factor Scoring'!$E$5:$J$282,,MATCH(AB$4,'C. PoC Adj Factor Scoring'!$E$3:$AH$3,0)-1),MATCH(AB$2&\" Score\",'C. PoC Adj Factor Scoring'!$E$4:$J$4,0),TRUE)","v":1},{"$f":"VLOOKUP(OFFSET($B:$B,,MATCH(AC$4,$B$4:$F$4,0)-1),OFFSET('C. PoC Adj Factor Scoring'!$E$5:$J$282,,MATCH(AC$4,'C. PoC Adj Factor Scoring'!$E$3:$AH$3,0)-1),MATCH(AC$2&\" Score\",'C. PoC Adj Factor Scoring'!$E$4:$J$4,0),TRUE)","v":1},{"$f":"VLOOKUP(OFFSET($B:$B,,MATCH(AD$4,$B$4:$F$4,0)-1),OFFSET('C. PoC Adj Factor Scoring'!$E$5:$J$282,,MATCH(AD$4,'C. PoC Adj Factor Scoring'!$E$3:$AH$3,0)-1),MATCH(AD$2&\" Score\",'C. PoC Adj Factor Scoring'!$E$4:$J$4,0),TRUE)","v":1},{"$f":"VLOOKUP(OFFSET($B:$B,,MATCH(AE$4,$B$4:$F$4,0)-1),OFFSET('C. PoC Adj Factor Scoring'!$E$5:$J$282,,MATCH(AE$4,'C. PoC Adj Factor Scoring'!$E$3:$AH$3,0)-1),MATCH(AE$2&\" Score\",'C. PoC Adj Factor Scoring'!$E$4:$J$4,0),TRUE)","v":1}]
[{"$f":"'A. Population Info'!A346","v":1000400141},{"$f":"'A. Population Info'!L346","v":"OIL"},{"$f":"'A. Population Info'!M346","v":0},{"$f":"'A. Population Info'!N346","v":0},{"$f":"'A. Population Info'!O346","v":0},{"$f":"'A. Population Info'!P346","v":0},{"$f":"VLOOKUP(OFFSET($B:$B,,MATCH(G$4,$B$4:$F$4,0)-1),OFFSET('C. PoC Adj Factor Scoring'!$E$5:$J$282,,MATCH(G$4,'C. PoC Adj Factor Scoring'!$E$3:$AH$3,0)-1),MATCH(G$2&\" Score\",'C. PoC Adj Factor Scoring'!$E$4:$J$4,0),TRUE)","v":4},{"$f":"VLOOKUP(OFFSET($B:$B,,MATCH(H$4,$B$4:$F$4,0)-1),OFFSET('C. PoC Adj Factor Scoring'!$E$5:$J$282,,MATCH(H$4,'C. PoC Adj Factor Scoring'!$E$3:$AH$3,0)-1),MATCH(H$2&\" Score\",'C. PoC Adj Factor Scoring'!$E$4:$J$4,0),TRUE)","v":1},{"$f":"VLOOKUP(OFFSET($B:$B,,MATCH(I$4,$B$4:$F$4,0)-1),OFFSET('C. PoC Adj Factor Scoring'!$E$5:$J$282,,MATCH(I$4,'C. PoC Adj Factor Scoring'!$E$3:$AH$3,0)-1),MATCH(I$2&\" Score\",'C. PoC Adj Factor Scoring'!$E$4:$J$4,0),TRUE)","v":1},{"$f":"VLOOKUP(OFFSET($B:$B,,MATCH(J$4,$B$4:$F$4,0)-1),OFFSET('C. PoC Adj Factor Scoring'!$E$5:$J$282,,MATCH(J$4,'C. PoC Adj Factor Scoring'!$E$3:$AH$3,0)-1),MATCH(J$2&\" Score\",'C. PoC Adj Factor Scoring'!$E$4:$J$4,0),TRUE)","v":1},{"$f":"VLOOKUP(OFFSET($B:$B,,MATCH(K$4,$B$4:$F$4,0)-1),OFFSET('C. PoC Adj Factor Scoring'!$E$5:$J$282,,MATCH(K$4,'C. PoC Adj Factor Scoring'!$E$3:$AH$3,0)-1),MATCH(K$2&\" Score\",'C. PoC Adj Factor Scoring'!$E$4:$J$4,0),TRUE)","v":1},{"$f":"VLOOKUP(OFFSET($B:$B,,MATCH(L$4,$B$4:$F$4,0)-1),OFFSET('C. PoC Adj Factor Scoring'!$E$5:$J$282,,MATCH(L$4,'C. PoC Adj Factor Scoring'!$E$3:$AH$3,0)-1),MATCH(L$2&\" Score\",'C. PoC Adj Factor Scoring'!$E$4:$J$4,0),TRUE)","v":1},{"$f":"VLOOKUP(OFFSET($B:$B,,MATCH(M$4,$B$4:$F$4,0)-1),OFFSET('C. PoC Adj Factor Scoring'!$E$5:$J$282,,MATCH(M$4,'C. PoC Adj Factor Scoring'!$E$3:$AH$3,0)-1),MATCH(M$2&\" Score\",'C. PoC Adj Factor Scoring'!$E$4:$J$4,0),TRUE)","v":1},{"$f":"VLOOKUP(OFFSET($B:$B,,MATCH(N$4,$B$4:$F$4,0)-1),OFFSET('C. PoC Adj Factor Scoring'!$E$5:$J$282,,MATCH(N$4,'C. PoC Adj Factor Scoring'!$E$3:$AH$3,0)-1),MATCH(N$2&\" Score\",'C. PoC Adj Factor Scoring'!$E$4:$J$4,0),TRUE)","v":1},{"$f":"VLOOKUP(OFFSET($B:$B,,MATCH(O$4,$B$4:$F$4,0)-1),OFFSET('C. PoC Adj Factor Scoring'!$E$5:$J$282,,MATCH(O$4,'C. PoC Adj Factor Scoring'!$E$3:$AH$3,0)-1),MATCH(O$2&\" Score\",'C. PoC Adj Factor Scoring'!$E$4:$J$4,0),TRUE)","v":1},{"$f":"VLOOKUP(OFFSET($B:$B,,MATCH(P$4,$B$4:$F$4,0)-1),OFFSET('C. PoC Adj Factor Scoring'!$E$5:$J$282,,MATCH(P$4,'C. PoC Adj Factor Scoring'!$E$3:$AH$3,0)-1),MATCH(P$2&\" Score\",'C. PoC Adj Factor Scoring'!$E$4:$J$4,0),TRUE)","v":1},{"$f":"VLOOKUP(OFFSET($B:$B,,MATCH(Q$4,$B$4:$F$4,0)-1),OFFSET('C. PoC Adj Factor Scoring'!$E$5:$J$282,,MATCH(Q$4,'C. PoC Adj Factor Scoring'!$E$3:$AH$3,0)-1),MATCH(Q$2&\" Score\",'C. PoC Adj Factor Scoring'!$E$4:$J$4,0),TRUE)","v":1},{"$f":"VLOOKUP(OFFSET($B:$B,,MATCH(R$4,$B$4:$F$4,0)-1),OFFSET('C. PoC Adj Factor Scoring'!$E$5:$J$282,,MATCH(R$4,'C. PoC Adj Factor Scoring'!$E$3:$AH$3,0)-1),MATCH(R$2&\" Score\",'C. PoC Adj Factor Scoring'!$E$4:$J$4,0),TRUE)","v":1},{"$f":"VLOOKUP(OFFSET($B:$B,,MATCH(S$4,$B$4:$F$4,0)-1),OFFSET('C. PoC Adj Factor Scoring'!$E$5:$J$282,,MATCH(S$4,'C. PoC Adj Factor Scoring'!$E$3:$AH$3,0)-1),MATCH(S$2&\" Score\",'C. PoC Adj Factor Scoring'!$E$4:$J$4,0),TRUE)","v":1},{"$f":"VLOOKUP(OFFSET($B:$B,,MATCH(T$4,$B$4:$F$4,0)-1),OFFSET('C. PoC Adj Factor Scoring'!$E$5:$J$282,,MATCH(T$4,'C. PoC Adj Factor Scoring'!$E$3:$AH$3,0)-1),MATCH(T$2&\" Score\",'C. PoC Adj Factor Scoring'!$E$4:$J$4,0),TRUE)","v":1},{"$f":"VLOOKUP(OFFSET($B:$B,,MATCH(U$4,$B$4:$F$4,0)-1),OFFSET('C. PoC Adj Factor Scoring'!$E$5:$J$282,,MATCH(U$4,'C. PoC Adj Factor Scoring'!$E$3:$AH$3,0)-1),MATCH(U$2&\" Score\",'C. PoC Adj Factor Scoring'!$E$4:$J$4,0),TRUE)","v":1},{"$f":"VLOOKUP(OFFSET($B:$B,,MATCH(V$4,$B$4:$F$4,0)-1),OFFSET('C. PoC Adj Factor Scoring'!$E$5:$J$282,,MATCH(V$4,'C. PoC Adj Factor Scoring'!$E$3:$AH$3,0)-1),MATCH(V$2&\" Score\",'C. PoC Adj Factor Scoring'!$E$4:$J$4,0),TRUE)","v":1},{"$f":"VLOOKUP(OFFSET($B:$B,,MATCH(W$4,$B$4:$F$4,0)-1),OFFSET('C. PoC Adj Factor Scoring'!$E$5:$J$282,,MATCH(W$4,'C. PoC Adj Factor Scoring'!$E$3:$AH$3,0)-1),MATCH(W$2&\" Score\",'C. PoC Adj Factor Scoring'!$E$4:$J$4,0),TRUE)","v":1},{"$f":"VLOOKUP(OFFSET($B:$B,,MATCH(X$4,$B$4:$F$4,0)-1),OFFSET('C. PoC Adj Factor Scoring'!$E$5:$J$282,,MATCH(X$4,'C. PoC Adj Factor Scoring'!$E$3:$AH$3,0)-1),MATCH(X$2&\" Score\",'C. PoC Adj Factor Scoring'!$E$4:$J$4,0),TRUE)","v":1},{"$f":"VLOOKUP(OFFSET($B:$B,,MATCH(Y$4,$B$4:$F$4,0)-1),OFFSET('C. PoC Adj Factor Scoring'!$E$5:$J$282,,MATCH(Y$4,'C. PoC Adj Factor Scoring'!$E$3:$AH$3,0)-1),MATCH(Y$2&\" Score\",'C. PoC Adj Factor Scoring'!$E$4:$J$4,0),TRUE)","v":1},{"$f":"VLOOKUP(OFFSET($B:$B,,MATCH(Z$4,$B$4:$F$4,0)-1),OFFSET('C. PoC Adj Factor Scoring'!$E$5:$J$282,,MATCH(Z$4,'C. PoC Adj Factor Scoring'!$E$3:$AH$3,0)-1),MATCH(Z$2&\" Score\",'C. PoC Adj Factor Scoring'!$E$4:$J$4,0),TRUE)","v":1},{"$f":"VLOOKUP(OFFSET($B:$B,,MATCH(AA$4,$B$4:$F$4,0)-1),OFFSET('C. PoC Adj Factor Scoring'!$E$5:$J$282,,MATCH(AA$4,'C. PoC Adj Factor Scoring'!$E$3:$AH$3,0)-1),MATCH(AA$2&\" Score\",'C. PoC Adj Factor Scoring'!$E$4:$J$4,0),TRUE)","v":3},{"$f":"VLOOKUP(OFFSET($B:$B,,MATCH(AB$4,$B$4:$F$4,0)-1),OFFSET('C. PoC Adj Factor Scoring'!$E$5:$J$282,,MATCH(AB$4,'C. PoC Adj Factor Scoring'!$E$3:$AH$3,0)-1),MATCH(AB$2&\" Score\",'C. PoC Adj Factor Scoring'!$E$4:$J$4,0),TRUE)","v":1},{"$f":"VLOOKUP(OFFSET($B:$B,,MATCH(AC$4,$B$4:$F$4,0)-1),OFFSET('C. PoC Adj Factor Scoring'!$E$5:$J$282,,MATCH(AC$4,'C. PoC Adj Factor Scoring'!$E$3:$AH$3,0)-1),MATCH(AC$2&\" Score\",'C. PoC Adj Factor Scoring'!$E$4:$J$4,0),TRUE)","v":1},{"$f":"VLOOKUP(OFFSET($B:$B,,MATCH(AD$4,$B$4:$F$4,0)-1),OFFSET('C. PoC Adj Factor Scoring'!$E$5:$J$282,,MATCH(AD$4,'C. PoC Adj Factor Scoring'!$E$3:$AH$3,0)-1),MATCH(AD$2&\" Score\",'C. PoC Adj Factor Scoring'!$E$4:$J$4,0),TRUE)","v":1},{"$f":"VLOOKUP(OFFSET($B:$B,,MATCH(AE$4,$B$4:$F$4,0)-1),OFFSET('C. PoC Adj Factor Scoring'!$E$5:$J$282,,MATCH(AE$4,'C. PoC Adj Factor Scoring'!$E$3:$AH$3,0)-1),MATCH(AE$2&\" Score\",'C. PoC Adj Factor Scoring'!$E$4:$J$4,0),TRUE)","v":1}]
[{"$f":"'A. Population Info'!A347","v":1000400168},{"$f":"'A. Population Info'!L347","v":"OIL"},{"$f":"'A. Population Info'!M347","v":0},{"$f":"'A. Population Info'!N347","v":0},{"$f":"'A. Population Info'!O347","v":0},{"$f":"'A. Population Info'!P347","v":0},{"$f":"VLOOKUP(OFFSET($B:$B,,MATCH(G$4,$B$4:$F$4,0)-1),OFFSET('C. PoC Adj Factor Scoring'!$E$5:$J$282,,MATCH(G$4,'C. PoC Adj Factor Scoring'!$E$3:$AH$3,0)-1),MATCH(G$2&\" Score\",'C. PoC Adj Factor Scoring'!$E$4:$J$4,0),TRUE)","v":4},{"$f":"VLOOKUP(OFFSET($B:$B,,MATCH(H$4,$B$4:$F$4,0)-1),OFFSET('C. PoC Adj Factor Scoring'!$E$5:$J$282,,MATCH(H$4,'C. PoC Adj Factor Scoring'!$E$3:$AH$3,0)-1),MATCH(H$2&\" Score\",'C. PoC Adj Factor Scoring'!$E$4:$J$4,0),TRUE)","v":1},{"$f":"VLOOKUP(OFFSET($B:$B,,MATCH(I$4,$B$4:$F$4,0)-1),OFFSET('C. PoC Adj Factor Scoring'!$E$5:$J$282,,MATCH(I$4,'C. PoC Adj Factor Scoring'!$E$3:$AH$3,0)-1),MATCH(I$2&\" Score\",'C. PoC Adj Factor Scoring'!$E$4:$J$4,0),TRUE)","v":1},{"$f":"VLOOKUP(OFFSET($B:$B,,MATCH(J$4,$B$4:$F$4,0)-1),OFFSET('C. PoC Adj Factor Scoring'!$E$5:$J$282,,MATCH(J$4,'C. PoC Adj Factor Scoring'!$E$3:$AH$3,0)-1),MATCH(J$2&\" Score\",'C. PoC Adj Factor Scoring'!$E$4:$J$4,0),TRUE)","v":1},{"$f":"VLOOKUP(OFFSET($B:$B,,MATCH(K$4,$B$4:$F$4,0)-1),OFFSET('C. PoC Adj Factor Scoring'!$E$5:$J$282,,MATCH(K$4,'C. PoC Adj Factor Scoring'!$E$3:$AH$3,0)-1),MATCH(K$2&\" Score\",'C. PoC Adj Factor Scoring'!$E$4:$J$4,0),TRUE)","v":1},{"$f":"VLOOKUP(OFFSET($B:$B,,MATCH(L$4,$B$4:$F$4,0)-1),OFFSET('C. PoC Adj Factor Scoring'!$E$5:$J$282,,MATCH(L$4,'C. PoC Adj Factor Scoring'!$E$3:$AH$3,0)-1),MATCH(L$2&\" Score\",'C. PoC Adj Factor Scoring'!$E$4:$J$4,0),TRUE)","v":1},{"$f":"VLOOKUP(OFFSET($B:$B,,MATCH(M$4,$B$4:$F$4,0)-1),OFFSET('C. PoC Adj Factor Scoring'!$E$5:$J$282,,MATCH(M$4,'C. PoC Adj Factor Scoring'!$E$3:$AH$3,0)-1),MATCH(M$2&\" Score\",'C. PoC Adj Factor Scoring'!$E$4:$J$4,0),TRUE)","v":1},{"$f":"VLOOKUP(OFFSET($B:$B,,MATCH(N$4,$B$4:$F$4,0)-1),OFFSET('C. PoC Adj Factor Scoring'!$E$5:$J$282,,MATCH(N$4,'C. PoC Adj Factor Scoring'!$E$3:$AH$3,0)-1),MATCH(N$2&\" Score\",'C. PoC Adj Factor Scoring'!$E$4:$J$4,0),TRUE)","v":1},{"$f":"VLOOKUP(OFFSET($B:$B,,MATCH(O$4,$B$4:$F$4,0)-1),OFFSET('C. PoC Adj Factor Scoring'!$E$5:$J$282,,MATCH(O$4,'C. PoC Adj Factor Scoring'!$E$3:$AH$3,0)-1),MATCH(O$2&\" Score\",'C. PoC Adj Factor Scoring'!$E$4:$J$4,0),TRUE)","v":1},{"$f":"VLOOKUP(OFFSET($B:$B,,MATCH(P$4,$B$4:$F$4,0)-1),OFFSET('C. PoC Adj Factor Scoring'!$E$5:$J$282,,MATCH(P$4,'C. PoC Adj Factor Scoring'!$E$3:$AH$3,0)-1),MATCH(P$2&\" Score\",'C. PoC Adj Factor Scoring'!$E$4:$J$4,0),TRUE)","v":1},{"$f":"VLOOKUP(OFFSET($B:$B,,MATCH(Q$4,$B$4:$F$4,0)-1),OFFSET('C. PoC Adj Factor Scoring'!$E$5:$J$282,,MATCH(Q$4,'C. PoC Adj Factor Scoring'!$E$3:$AH$3,0)-1),MATCH(Q$2&\" Score\",'C. PoC Adj Factor Scoring'!$E$4:$J$4,0),TRUE)","v":1},{"$f":"VLOOKUP(OFFSET($B:$B,,MATCH(R$4,$B$4:$F$4,0)-1),OFFSET('C. PoC Adj Factor Scoring'!$E$5:$J$282,,MATCH(R$4,'C. PoC Adj Factor Scoring'!$E$3:$AH$3,0)-1),MATCH(R$2&\" Score\",'C. PoC Adj Factor Scoring'!$E$4:$J$4,0),TRUE)","v":1},{"$f":"VLOOKUP(OFFSET($B:$B,,MATCH(S$4,$B$4:$F$4,0)-1),OFFSET('C. PoC Adj Factor Scoring'!$E$5:$J$282,,MATCH(S$4,'C. PoC Adj Factor Scoring'!$E$3:$AH$3,0)-1),MATCH(S$2&\" Score\",'C. PoC Adj Factor Scoring'!$E$4:$J$4,0),TRUE)","v":1},{"$f":"VLOOKUP(OFFSET($B:$B,,MATCH(T$4,$B$4:$F$4,0)-1),OFFSET('C. PoC Adj Factor Scoring'!$E$5:$J$282,,MATCH(T$4,'C. PoC Adj Factor Scoring'!$E$3:$AH$3,0)-1),MATCH(T$2&\" Score\",'C. PoC Adj Factor Scoring'!$E$4:$J$4,0),TRUE)","v":1},{"$f":"VLOOKUP(OFFSET($B:$B,,MATCH(U$4,$B$4:$F$4,0)-1),OFFSET('C. PoC Adj Factor Scoring'!$E$5:$J$282,,MATCH(U$4,'C. PoC Adj Factor Scoring'!$E$3:$AH$3,0)-1),MATCH(U$2&\" Score\",'C. PoC Adj Factor Scoring'!$E$4:$J$4,0),TRUE)","v":1},{"$f":"VLOOKUP(OFFSET($B:$B,,MATCH(V$4,$B$4:$F$4,0)-1),OFFSET('C. PoC Adj Factor Scoring'!$E$5:$J$282,,MATCH(V$4,'C. PoC Adj Factor Scoring'!$E$3:$AH$3,0)-1),MATCH(V$2&\" Score\",'C. PoC Adj Factor Scoring'!$E$4:$J$4,0),TRUE)","v":1},{"$f":"VLOOKUP(OFFSET($B:$B,,MATCH(W$4,$B$4:$F$4,0)-1),OFFSET('C. PoC Adj Factor Scoring'!$E$5:$J$282,,MATCH(W$4,'C. PoC Adj Factor Scoring'!$E$3:$AH$3,0)-1),MATCH(W$2&\" Score\",'C. PoC Adj Factor Scoring'!$E$4:$J$4,0),TRUE)","v":1},{"$f":"VLOOKUP(OFFSET($B:$B,,MATCH(X$4,$B$4:$F$4,0)-1),OFFSET('C. PoC Adj Factor Scoring'!$E$5:$J$282,,MATCH(X$4,'C. PoC Adj Factor Scoring'!$E$3:$AH$3,0)-1),MATCH(X$2&\" Score\",'C. PoC Adj Factor Scoring'!$E$4:$J$4,0),TRUE)","v":1},{"$f":"VLOOKUP(OFFSET($B:$B,,MATCH(Y$4,$B$4:$F$4,0)-1),OFFSET('C. PoC Adj Factor Scoring'!$E$5:$J$282,,MATCH(Y$4,'C. PoC Adj Factor Scoring'!$E$3:$AH$3,0)-1),MATCH(Y$2&\" Score\",'C. PoC Adj Factor Scoring'!$E$4:$J$4,0),TRUE)","v":1},{"$f":"VLOOKUP(OFFSET($B:$B,,MATCH(Z$4,$B$4:$F$4,0)-1),OFFSET('C. PoC Adj Factor Scoring'!$E$5:$J$282,,MATCH(Z$4,'C. PoC Adj Factor Scoring'!$E$3:$AH$3,0)-1),MATCH(Z$2&\" Score\",'C. PoC Adj Factor Scoring'!$E$4:$J$4,0),TRUE)","v":1},{"$f":"VLOOKUP(OFFSET($B:$B,,MATCH(AA$4,$B$4:$F$4,0)-1),OFFSET('C. PoC Adj Factor Scoring'!$E$5:$J$282,,MATCH(AA$4,'C. PoC Adj Factor Scoring'!$E$3:$AH$3,0)-1),MATCH(AA$2&\" Score\",'C. PoC Adj Factor Scoring'!$E$4:$J$4,0),TRUE)","v":3},{"$f":"VLOOKUP(OFFSET($B:$B,,MATCH(AB$4,$B$4:$F$4,0)-1),OFFSET('C. PoC Adj Factor Scoring'!$E$5:$J$282,,MATCH(AB$4,'C. PoC Adj Factor Scoring'!$E$3:$AH$3,0)-1),MATCH(AB$2&\" Score\",'C. PoC Adj Factor Scoring'!$E$4:$J$4,0),TRUE)","v":1},{"$f":"VLOOKUP(OFFSET($B:$B,,MATCH(AC$4,$B$4:$F$4,0)-1),OFFSET('C. PoC Adj Factor Scoring'!$E$5:$J$282,,MATCH(AC$4,'C. PoC Adj Factor Scoring'!$E$3:$AH$3,0)-1),MATCH(AC$2&\" Score\",'C. PoC Adj Factor Scoring'!$E$4:$J$4,0),TRUE)","v":1},{"$f":"VLOOKUP(OFFSET($B:$B,,MATCH(AD$4,$B$4:$F$4,0)-1),OFFSET('C. PoC Adj Factor Scoring'!$E$5:$J$282,,MATCH(AD$4,'C. PoC Adj Factor Scoring'!$E$3:$AH$3,0)-1),MATCH(AD$2&\" Score\",'C. PoC Adj Factor Scoring'!$E$4:$J$4,0),TRUE)","v":1},{"$f":"VLOOKUP(OFFSET($B:$B,,MATCH(AE$4,$B$4:$F$4,0)-1),OFFSET('C. PoC Adj Factor Scoring'!$E$5:$J$282,,MATCH(AE$4,'C. PoC Adj Factor Scoring'!$E$3:$AH$3,0)-1),MATCH(AE$2&\" Score\",'C. PoC Adj Factor Scoring'!$E$4:$J$4,0),TRUE)","v":1}]
[{"$f":"'A. Population Info'!A348","v":1000400193},{"$f":"'A. Population Info'!L348","v":"OIL"},{"$f":"'A. Population Info'!M348","v":0},{"$f":"'A. Population Info'!N348","v":0},{"$f":"'A. Population Info'!O348","v":0},{"$f":"'A. Population Info'!P348","v":0},{"$f":"VLOOKUP(OFFSET($B:$B,,MATCH(G$4,$B$4:$F$4,0)-1),OFFSET('C. PoC Adj Factor Scoring'!$E$5:$J$282,,MATCH(G$4,'C. PoC Adj Factor Scoring'!$E$3:$AH$3,0)-1),MATCH(G$2&\" Score\",'C. PoC Adj Factor Scoring'!$E$4:$J$4,0),TRUE)","v":4},{"$f":"VLOOKUP(OFFSET($B:$B,,MATCH(H$4,$B$4:$F$4,0)-1),OFFSET('C. PoC Adj Factor Scoring'!$E$5:$J$282,,MATCH(H$4,'C. PoC Adj Factor Scoring'!$E$3:$AH$3,0)-1),MATCH(H$2&\" Score\",'C. PoC Adj Factor Scoring'!$E$4:$J$4,0),TRUE)","v":1},{"$f":"VLOOKUP(OFFSET($B:$B,,MATCH(I$4,$B$4:$F$4,0)-1),OFFSET('C. PoC Adj Factor Scoring'!$E$5:$J$282,,MATCH(I$4,'C. PoC Adj Factor Scoring'!$E$3:$AH$3,0)-1),MATCH(I$2&\" Score\",'C. PoC Adj Factor Scoring'!$E$4:$J$4,0),TRUE)","v":1},{"$f":"VLOOKUP(OFFSET($B:$B,,MATCH(J$4,$B$4:$F$4,0)-1),OFFSET('C. PoC Adj Factor Scoring'!$E$5:$J$282,,MATCH(J$4,'C. PoC Adj Factor Scoring'!$E$3:$AH$3,0)-1),MATCH(J$2&\" Score\",'C. PoC Adj Factor Scoring'!$E$4:$J$4,0),TRUE)","v":1},{"$f":"VLOOKUP(OFFSET($B:$B,,MATCH(K$4,$B$4:$F$4,0)-1),OFFSET('C. PoC Adj Factor Scoring'!$E$5:$J$282,,MATCH(K$4,'C. PoC Adj Factor Scoring'!$E$3:$AH$3,0)-1),MATCH(K$2&\" Score\",'C. PoC Adj Factor Scoring'!$E$4:$J$4,0),TRUE)","v":1},{"$f":"VLOOKUP(OFFSET($B:$B,,MATCH(L$4,$B$4:$F$4,0)-1),OFFSET('C. PoC Adj Factor Scoring'!$E$5:$J$282,,MATCH(L$4,'C. PoC Adj Factor Scoring'!$E$3:$AH$3,0)-1),MATCH(L$2&\" Score\",'C. PoC Adj Factor Scoring'!$E$4:$J$4,0),TRUE)","v":1},{"$f":"VLOOKUP(OFFSET($B:$B,,MATCH(M$4,$B$4:$F$4,0)-1),OFFSET('C. PoC Adj Factor Scoring'!$E$5:$J$282,,MATCH(M$4,'C. PoC Adj Factor Scoring'!$E$3:$AH$3,0)-1),MATCH(M$2&\" Score\",'C. PoC Adj Factor Scoring'!$E$4:$J$4,0),TRUE)","v":1},{"$f":"VLOOKUP(OFFSET($B:$B,,MATCH(N$4,$B$4:$F$4,0)-1),OFFSET('C. PoC Adj Factor Scoring'!$E$5:$J$282,,MATCH(N$4,'C. PoC Adj Factor Scoring'!$E$3:$AH$3,0)-1),MATCH(N$2&\" Score\",'C. PoC Adj Factor Scoring'!$E$4:$J$4,0),TRUE)","v":1},{"$f":"VLOOKUP(OFFSET($B:$B,,MATCH(O$4,$B$4:$F$4,0)-1),OFFSET('C. PoC Adj Factor Scoring'!$E$5:$J$282,,MATCH(O$4,'C. PoC Adj Factor Scoring'!$E$3:$AH$3,0)-1),MATCH(O$2&\" Score\",'C. PoC Adj Factor Scoring'!$E$4:$J$4,0),TRUE)","v":1},{"$f":"VLOOKUP(OFFSET($B:$B,,MATCH(P$4,$B$4:$F$4,0)-1),OFFSET('C. PoC Adj Factor Scoring'!$E$5:$J$282,,MATCH(P$4,'C. PoC Adj Factor Scoring'!$E$3:$AH$3,0)-1),MATCH(P$2&\" Score\",'C. PoC Adj Factor Scoring'!$E$4:$J$4,0),TRUE)","v":1},{"$f":"VLOOKUP(OFFSET($B:$B,,MATCH(Q$4,$B$4:$F$4,0)-1),OFFSET('C. PoC Adj Factor Scoring'!$E$5:$J$282,,MATCH(Q$4,'C. PoC Adj Factor Scoring'!$E$3:$AH$3,0)-1),MATCH(Q$2&\" Score\",'C. PoC Adj Factor Scoring'!$E$4:$J$4,0),TRUE)","v":1},{"$f":"VLOOKUP(OFFSET($B:$B,,MATCH(R$4,$B$4:$F$4,0)-1),OFFSET('C. PoC Adj Factor Scoring'!$E$5:$J$282,,MATCH(R$4,'C. PoC Adj Factor Scoring'!$E$3:$AH$3,0)-1),MATCH(R$2&\" Score\",'C. PoC Adj Factor Scoring'!$E$4:$J$4,0),TRUE)","v":1},{"$f":"VLOOKUP(OFFSET($B:$B,,MATCH(S$4,$B$4:$F$4,0)-1),OFFSET('C. PoC Adj Factor Scoring'!$E$5:$J$282,,MATCH(S$4,'C. PoC Adj Factor Scoring'!$E$3:$AH$3,0)-1),MATCH(S$2&\" Score\",'C. PoC Adj Factor Scoring'!$E$4:$J$4,0),TRUE)","v":1},{"$f":"VLOOKUP(OFFSET($B:$B,,MATCH(T$4,$B$4:$F$4,0)-1),OFFSET('C. PoC Adj Factor Scoring'!$E$5:$J$282,,MATCH(T$4,'C. PoC Adj Factor Scoring'!$E$3:$AH$3,0)-1),MATCH(T$2&\" Score\",'C. PoC Adj Factor Scoring'!$E$4:$J$4,0),TRUE)","v":1},{"$f":"VLOOKUP(OFFSET($B:$B,,MATCH(U$4,$B$4:$F$4,0)-1),OFFSET('C. PoC Adj Factor Scoring'!$E$5:$J$282,,MATCH(U$4,'C. PoC Adj Factor Scoring'!$E$3:$AH$3,0)-1),MATCH(U$2&\" Score\",'C. PoC Adj Factor Scoring'!$E$4:$J$4,0),TRUE)","v":1},{"$f":"VLOOKUP(OFFSET($B:$B,,MATCH(V$4,$B$4:$F$4,0)-1),OFFSET('C. PoC Adj Factor Scoring'!$E$5:$J$282,,MATCH(V$4,'C. PoC Adj Factor Scoring'!$E$3:$AH$3,0)-1),MATCH(V$2&\" Score\",'C. PoC Adj Factor Scoring'!$E$4:$J$4,0),TRUE)","v":1},{"$f":"VLOOKUP(OFFSET($B:$B,,MATCH(W$4,$B$4:$F$4,0)-1),OFFSET('C. PoC Adj Factor Scoring'!$E$5:$J$282,,MATCH(W$4,'C. PoC Adj Factor Scoring'!$E$3:$AH$3,0)-1),MATCH(W$2&\" Score\",'C. PoC Adj Factor Scoring'!$E$4:$J$4,0),TRUE)","v":1},{"$f":"VLOOKUP(OFFSET($B:$B,,MATCH(X$4,$B$4:$F$4,0)-1),OFFSET('C. PoC Adj Factor Scoring'!$E$5:$J$282,,MATCH(X$4,'C. PoC Adj Factor Scoring'!$E$3:$AH$3,0)-1),MATCH(X$2&\" Score\",'C. PoC Adj Factor Scoring'!$E$4:$J$4,0),TRUE)","v":1},{"$f":"VLOOKUP(OFFSET($B:$B,,MATCH(Y$4,$B$4:$F$4,0)-1),OFFSET('C. PoC Adj Factor Scoring'!$E$5:$J$282,,MATCH(Y$4,'C. PoC Adj Factor Scoring'!$E$3:$AH$3,0)-1),MATCH(Y$2&\" Score\",'C. PoC Adj Factor Scoring'!$E$4:$J$4,0),TRUE)","v":1},{"$f":"VLOOKUP(OFFSET($B:$B,,MATCH(Z$4,$B$4:$F$4,0)-1),OFFSET('C. PoC Adj Factor Scoring'!$E$5:$J$282,,MATCH(Z$4,'C. PoC Adj Factor Scoring'!$E$3:$AH$3,0)-1),MATCH(Z$2&\" Score\",'C. PoC Adj Factor Scoring'!$E$4:$J$4,0),TRUE)","v":1},{"$f":"VLOOKUP(OFFSET($B:$B,,MATCH(AA$4,$B$4:$F$4,0)-1),OFFSET('C. PoC Adj Factor Scoring'!$E$5:$J$282,,MATCH(AA$4,'C. PoC Adj Factor Scoring'!$E$3:$AH$3,0)-1),MATCH(AA$2&\" Score\",'C. PoC Adj Factor Scoring'!$E$4:$J$4,0),TRUE)","v":3},{"$f":"VLOOKUP(OFFSET($B:$B,,MATCH(AB$4,$B$4:$F$4,0)-1),OFFSET('C. PoC Adj Factor Scoring'!$E$5:$J$282,,MATCH(AB$4,'C. PoC Adj Factor Scoring'!$E$3:$AH$3,0)-1),MATCH(AB$2&\" Score\",'C. PoC Adj Factor Scoring'!$E$4:$J$4,0),TRUE)","v":1},{"$f":"VLOOKUP(OFFSET($B:$B,,MATCH(AC$4,$B$4:$F$4,0)-1),OFFSET('C. PoC Adj Factor Scoring'!$E$5:$J$282,,MATCH(AC$4,'C. PoC Adj Factor Scoring'!$E$3:$AH$3,0)-1),MATCH(AC$2&\" Score\",'C. PoC Adj Factor Scoring'!$E$4:$J$4,0),TRUE)","v":1},{"$f":"VLOOKUP(OFFSET($B:$B,,MATCH(AD$4,$B$4:$F$4,0)-1),OFFSET('C. PoC Adj Factor Scoring'!$E$5:$J$282,,MATCH(AD$4,'C. PoC Adj Factor Scoring'!$E$3:$AH$3,0)-1),MATCH(AD$2&\" Score\",'C. PoC Adj Factor Scoring'!$E$4:$J$4,0),TRUE)","v":1},{"$f":"VLOOKUP(OFFSET($B:$B,,MATCH(AE$4,$B$4:$F$4,0)-1),OFFSET('C. PoC Adj Factor Scoring'!$E$5:$J$282,,MATCH(AE$4,'C. PoC Adj Factor Scoring'!$E$3:$AH$3,0)-1),MATCH(AE$2&\" Score\",'C. PoC Adj Factor Scoring'!$E$4:$J$4,0),TRUE)","v":1}]
[{"$f":"'A. Population Info'!A349","v":1000400222},{"$f":"'A. Population Info'!L349","v":"OIL"},{"$f":"'A. Population Info'!M349","v":0},{"$f":"'A. Population Info'!N349","v":0},{"$f":"'A. Population Info'!O349","v":0},{"$f":"'A. Population Info'!P349","v":0},{"$f":"VLOOKUP(OFFSET($B:$B,,MATCH(G$4,$B$4:$F$4,0)-1),OFFSET('C. PoC Adj Factor Scoring'!$E$5:$J$282,,MATCH(G$4,'C. PoC Adj Factor Scoring'!$E$3:$AH$3,0)-1),MATCH(G$2&\" Score\",'C. PoC Adj Factor Scoring'!$E$4:$J$4,0),TRUE)","v":4},{"$f":"VLOOKUP(OFFSET($B:$B,,MATCH(H$4,$B$4:$F$4,0)-1),OFFSET('C. PoC Adj Factor Scoring'!$E$5:$J$282,,MATCH(H$4,'C. PoC Adj Factor Scoring'!$E$3:$AH$3,0)-1),MATCH(H$2&\" Score\",'C. PoC Adj Factor Scoring'!$E$4:$J$4,0),TRUE)","v":1},{"$f":"VLOOKUP(OFFSET($B:$B,,MATCH(I$4,$B$4:$F$4,0)-1),OFFSET('C. PoC Adj Factor Scoring'!$E$5:$J$282,,MATCH(I$4,'C. PoC Adj Factor Scoring'!$E$3:$AH$3,0)-1),MATCH(I$2&\" Score\",'C. PoC Adj Factor Scoring'!$E$4:$J$4,0),TRUE)","v":1},{"$f":"VLOOKUP(OFFSET($B:$B,,MATCH(J$4,$B$4:$F$4,0)-1),OFFSET('C. PoC Adj Factor Scoring'!$E$5:$J$282,,MATCH(J$4,'C. PoC Adj Factor Scoring'!$E$3:$AH$3,0)-1),MATCH(J$2&\" Score\",'C. PoC Adj Factor Scoring'!$E$4:$J$4,0),TRUE)","v":1},{"$f":"VLOOKUP(OFFSET($B:$B,,MATCH(K$4,$B$4:$F$4,0)-1),OFFSET('C. PoC Adj Factor Scoring'!$E$5:$J$282,,MATCH(K$4,'C. PoC Adj Factor Scoring'!$E$3:$AH$3,0)-1),MATCH(K$2&\" Score\",'C. PoC Adj Factor Scoring'!$E$4:$J$4,0),TRUE)","v":1},{"$f":"VLOOKUP(OFFSET($B:$B,,MATCH(L$4,$B$4:$F$4,0)-1),OFFSET('C. PoC Adj Factor Scoring'!$E$5:$J$282,,MATCH(L$4,'C. PoC Adj Factor Scoring'!$E$3:$AH$3,0)-1),MATCH(L$2&\" Score\",'C. PoC Adj Factor Scoring'!$E$4:$J$4,0),TRUE)","v":1},{"$f":"VLOOKUP(OFFSET($B:$B,,MATCH(M$4,$B$4:$F$4,0)-1),OFFSET('C. PoC Adj Factor Scoring'!$E$5:$J$282,,MATCH(M$4,'C. PoC Adj Factor Scoring'!$E$3:$AH$3,0)-1),MATCH(M$2&\" Score\",'C. PoC Adj Factor Scoring'!$E$4:$J$4,0),TRUE)","v":1},{"$f":"VLOOKUP(OFFSET($B:$B,,MATCH(N$4,$B$4:$F$4,0)-1),OFFSET('C. PoC Adj Factor Scoring'!$E$5:$J$282,,MATCH(N$4,'C. PoC Adj Factor Scoring'!$E$3:$AH$3,0)-1),MATCH(N$2&\" Score\",'C. PoC Adj Factor Scoring'!$E$4:$J$4,0),TRUE)","v":1},{"$f":"VLOOKUP(OFFSET($B:$B,,MATCH(O$4,$B$4:$F$4,0)-1),OFFSET('C. PoC Adj Factor Scoring'!$E$5:$J$282,,MATCH(O$4,'C. PoC Adj Factor Scoring'!$E$3:$AH$3,0)-1),MATCH(O$2&\" Score\",'C. PoC Adj Factor Scoring'!$E$4:$J$4,0),TRUE)","v":1},{"$f":"VLOOKUP(OFFSET($B:$B,,MATCH(P$4,$B$4:$F$4,0)-1),OFFSET('C. PoC Adj Factor Scoring'!$E$5:$J$282,,MATCH(P$4,'C. PoC Adj Factor Scoring'!$E$3:$AH$3,0)-1),MATCH(P$2&\" Score\",'C. PoC Adj Factor Scoring'!$E$4:$J$4,0),TRUE)","v":1},{"$f":"VLOOKUP(OFFSET($B:$B,,MATCH(Q$4,$B$4:$F$4,0)-1),OFFSET('C. PoC Adj Factor Scoring'!$E$5:$J$282,,MATCH(Q$4,'C. PoC Adj Factor Scoring'!$E$3:$AH$3,0)-1),MATCH(Q$2&\" Score\",'C. PoC Adj Factor Scoring'!$E$4:$J$4,0),TRUE)","v":1},{"$f":"VLOOKUP(OFFSET($B:$B,,MATCH(R$4,$B$4:$F$4,0)-1),OFFSET('C. PoC Adj Factor Scoring'!$E$5:$J$282,,MATCH(R$4,'C. PoC Adj Factor Scoring'!$E$3:$AH$3,0)-1),MATCH(R$2&\" Score\",'C. PoC Adj Factor Scoring'!$E$4:$J$4,0),TRUE)","v":1},{"$f":"VLOOKUP(OFFSET($B:$B,,MATCH(S$4,$B$4:$F$4,0)-1),OFFSET('C. PoC Adj Factor Scoring'!$E$5:$J$282,,MATCH(S$4,'C. PoC Adj Factor Scoring'!$E$3:$AH$3,0)-1),MATCH(S$2&\" Score\",'C. PoC Adj Factor Scoring'!$E$4:$J$4,0),TRUE)","v":1},{"$f":"VLOOKUP(OFFSET($B:$B,,MATCH(T$4,$B$4:$F$4,0)-1),OFFSET('C. PoC Adj Factor Scoring'!$E$5:$J$282,,MATCH(T$4,'C. PoC Adj Factor Scoring'!$E$3:$AH$3,0)-1),MATCH(T$2&\" Score\",'C. PoC Adj Factor Scoring'!$E$4:$J$4,0),TRUE)","v":1},{"$f":"VLOOKUP(OFFSET($B:$B,,MATCH(U$4,$B$4:$F$4,0)-1),OFFSET('C. PoC Adj Factor Scoring'!$E$5:$J$282,,MATCH(U$4,'C. PoC Adj Factor Scoring'!$E$3:$AH$3,0)-1),MATCH(U$2&\" Score\",'C. PoC Adj Factor Scoring'!$E$4:$J$4,0),TRUE)","v":1},{"$f":"VLOOKUP(OFFSET($B:$B,,MATCH(V$4,$B$4:$F$4,0)-1),OFFSET('C. PoC Adj Factor Scoring'!$E$5:$J$282,,MATCH(V$4,'C. PoC Adj Factor Scoring'!$E$3:$AH$3,0)-1),MATCH(V$2&\" Score\",'C. PoC Adj Factor Scoring'!$E$4:$J$4,0),TRUE)","v":1},{"$f":"VLOOKUP(OFFSET($B:$B,,MATCH(W$4,$B$4:$F$4,0)-1),OFFSET('C. PoC Adj Factor Scoring'!$E$5:$J$282,,MATCH(W$4,'C. PoC Adj Factor Scoring'!$E$3:$AH$3,0)-1),MATCH(W$2&\" Score\",'C. PoC Adj Factor Scoring'!$E$4:$J$4,0),TRUE)","v":1},{"$f":"VLOOKUP(OFFSET($B:$B,,MATCH(X$4,$B$4:$F$4,0)-1),OFFSET('C. PoC Adj Factor Scoring'!$E$5:$J$282,,MATCH(X$4,'C. PoC Adj Factor Scoring'!$E$3:$AH$3,0)-1),MATCH(X$2&\" Score\",'C. PoC Adj Factor Scoring'!$E$4:$J$4,0),TRUE)","v":1},{"$f":"VLOOKUP(OFFSET($B:$B,,MATCH(Y$4,$B$4:$F$4,0)-1),OFFSET('C. PoC Adj Factor Scoring'!$E$5:$J$282,,MATCH(Y$4,'C. PoC Adj Factor Scoring'!$E$3:$AH$3,0)-1),MATCH(Y$2&\" Score\",'C. PoC Adj Factor Scoring'!$E$4:$J$4,0),TRUE)","v":1},{"$f":"VLOOKUP(OFFSET($B:$B,,MATCH(Z$4,$B$4:$F$4,0)-1),OFFSET('C. PoC Adj Factor Scoring'!$E$5:$J$282,,MATCH(Z$4,'C. PoC Adj Factor Scoring'!$E$3:$AH$3,0)-1),MATCH(Z$2&\" Score\",'C. PoC Adj Factor Scoring'!$E$4:$J$4,0),TRUE)","v":1},{"$f":"VLOOKUP(OFFSET($B:$B,,MATCH(AA$4,$B$4:$F$4,0)-1),OFFSET('C. PoC Adj Factor Scoring'!$E$5:$J$282,,MATCH(AA$4,'C. PoC Adj Factor Scoring'!$E$3:$AH$3,0)-1),MATCH(AA$2&\" Score\",'C. PoC Adj Factor Scoring'!$E$4:$J$4,0),TRUE)","v":3},{"$f":"VLOOKUP(OFFSET($B:$B,,MATCH(AB$4,$B$4:$F$4,0)-1),OFFSET('C. PoC Adj Factor Scoring'!$E$5:$J$282,,MATCH(AB$4,'C. PoC Adj Factor Scoring'!$E$3:$AH$3,0)-1),MATCH(AB$2&\" Score\",'C. PoC Adj Factor Scoring'!$E$4:$J$4,0),TRUE)","v":1},{"$f":"VLOOKUP(OFFSET($B:$B,,MATCH(AC$4,$B$4:$F$4,0)-1),OFFSET('C. PoC Adj Factor Scoring'!$E$5:$J$282,,MATCH(AC$4,'C. PoC Adj Factor Scoring'!$E$3:$AH$3,0)-1),MATCH(AC$2&\" Score\",'C. PoC Adj Factor Scoring'!$E$4:$J$4,0),TRUE)","v":1},{"$f":"VLOOKUP(OFFSET($B:$B,,MATCH(AD$4,$B$4:$F$4,0)-1),OFFSET('C. PoC Adj Factor Scoring'!$E$5:$J$282,,MATCH(AD$4,'C. PoC Adj Factor Scoring'!$E$3:$AH$3,0)-1),MATCH(AD$2&\" Score\",'C. PoC Adj Factor Scoring'!$E$4:$J$4,0),TRUE)","v":1},{"$f":"VLOOKUP(OFFSET($B:$B,,MATCH(AE$4,$B$4:$F$4,0)-1),OFFSET('C. PoC Adj Factor Scoring'!$E$5:$J$282,,MATCH(AE$4,'C. PoC Adj Factor Scoring'!$E$3:$AH$3,0)-1),MATCH(AE$2&\" Score\",'C. PoC Adj Factor Scoring'!$E$4:$J$4,0),TRUE)","v":1}]
[{"$f":"'A. Population Info'!A350","v":1000400253},{"$f":"'A. Population Info'!L350","v":"OIL"},{"$f":"'A. Population Info'!M350","v":0},{"$f":"'A. Population Info'!N350","v":0},{"$f":"'A. Population Info'!O350","v":0},{"$f":"'A. Population Info'!P350","v":0},{"$f":"VLOOKUP(OFFSET($B:$B,,MATCH(G$4,$B$4:$F$4,0)-1),OFFSET('C. PoC Adj Factor Scoring'!$E$5:$J$282,,MATCH(G$4,'C. PoC Adj Factor Scoring'!$E$3:$AH$3,0)-1),MATCH(G$2&\" Score\",'C. PoC Adj Factor Scoring'!$E$4:$J$4,0),TRUE)","v":4},{"$f":"VLOOKUP(OFFSET($B:$B,,MATCH(H$4,$B$4:$F$4,0)-1),OFFSET('C. PoC Adj Factor Scoring'!$E$5:$J$282,,MATCH(H$4,'C. PoC Adj Factor Scoring'!$E$3:$AH$3,0)-1),MATCH(H$2&\" Score\",'C. PoC Adj Factor Scoring'!$E$4:$J$4,0),TRUE)","v":1},{"$f":"VLOOKUP(OFFSET($B:$B,,MATCH(I$4,$B$4:$F$4,0)-1),OFFSET('C. PoC Adj Factor Scoring'!$E$5:$J$282,,MATCH(I$4,'C. PoC Adj Factor Scoring'!$E$3:$AH$3,0)-1),MATCH(I$2&\" Score\",'C. PoC Adj Factor Scoring'!$E$4:$J$4,0),TRUE)","v":1},{"$f":"VLOOKUP(OFFSET($B:$B,,MATCH(J$4,$B$4:$F$4,0)-1),OFFSET('C. PoC Adj Factor Scoring'!$E$5:$J$282,,MATCH(J$4,'C. PoC Adj Factor Scoring'!$E$3:$AH$3,0)-1),MATCH(J$2&\" Score\",'C. PoC Adj Factor Scoring'!$E$4:$J$4,0),TRUE)","v":1},{"$f":"VLOOKUP(OFFSET($B:$B,,MATCH(K$4,$B$4:$F$4,0)-1),OFFSET('C. PoC Adj Factor Scoring'!$E$5:$J$282,,MATCH(K$4,'C. PoC Adj Factor Scoring'!$E$3:$AH$3,0)-1),MATCH(K$2&\" Score\",'C. PoC Adj Factor Scoring'!$E$4:$J$4,0),TRUE)","v":1},{"$f":"VLOOKUP(OFFSET($B:$B,,MATCH(L$4,$B$4:$F$4,0)-1),OFFSET('C. PoC Adj Factor Scoring'!$E$5:$J$282,,MATCH(L$4,'C. PoC Adj Factor Scoring'!$E$3:$AH$3,0)-1),MATCH(L$2&\" Score\",'C. PoC Adj Factor Scoring'!$E$4:$J$4,0),TRUE)","v":1},{"$f":"VLOOKUP(OFFSET($B:$B,,MATCH(M$4,$B$4:$F$4,0)-1),OFFSET('C. PoC Adj Factor Scoring'!$E$5:$J$282,,MATCH(M$4,'C. PoC Adj Factor Scoring'!$E$3:$AH$3,0)-1),MATCH(M$2&\" Score\",'C. PoC Adj Factor Scoring'!$E$4:$J$4,0),TRUE)","v":1},{"$f":"VLOOKUP(OFFSET($B:$B,,MATCH(N$4,$B$4:$F$4,0)-1),OFFSET('C. PoC Adj Factor Scoring'!$E$5:$J$282,,MATCH(N$4,'C. PoC Adj Factor Scoring'!$E$3:$AH$3,0)-1),MATCH(N$2&\" Score\",'C. PoC Adj Factor Scoring'!$E$4:$J$4,0),TRUE)","v":1},{"$f":"VLOOKUP(OFFSET($B:$B,,MATCH(O$4,$B$4:$F$4,0)-1),OFFSET('C. PoC Adj Factor Scoring'!$E$5:$J$282,,MATCH(O$4,'C. PoC Adj Factor Scoring'!$E$3:$AH$3,0)-1),MATCH(O$2&\" Score\",'C. PoC Adj Factor Scoring'!$E$4:$J$4,0),TRUE)","v":1},{"$f":"VLOOKUP(OFFSET($B:$B,,MATCH(P$4,$B$4:$F$4,0)-1),OFFSET('C. PoC Adj Factor Scoring'!$E$5:$J$282,,MATCH(P$4,'C. PoC Adj Factor Scoring'!$E$3:$AH$3,0)-1),MATCH(P$2&\" Score\",'C. PoC Adj Factor Scoring'!$E$4:$J$4,0),TRUE)","v":1},{"$f":"VLOOKUP(OFFSET($B:$B,,MATCH(Q$4,$B$4:$F$4,0)-1),OFFSET('C. PoC Adj Factor Scoring'!$E$5:$J$282,,MATCH(Q$4,'C. PoC Adj Factor Scoring'!$E$3:$AH$3,0)-1),MATCH(Q$2&\" Score\",'C. PoC Adj Factor Scoring'!$E$4:$J$4,0),TRUE)","v":1},{"$f":"VLOOKUP(OFFSET($B:$B,,MATCH(R$4,$B$4:$F$4,0)-1),OFFSET('C. PoC Adj Factor Scoring'!$E$5:$J$282,,MATCH(R$4,'C. PoC Adj Factor Scoring'!$E$3:$AH$3,0)-1),MATCH(R$2&\" Score\",'C. PoC Adj Factor Scoring'!$E$4:$J$4,0),TRUE)","v":1},{"$f":"VLOOKUP(OFFSET($B:$B,,MATCH(S$4,$B$4:$F$4,0)-1),OFFSET('C. PoC Adj Factor Scoring'!$E$5:$J$282,,MATCH(S$4,'C. PoC Adj Factor Scoring'!$E$3:$AH$3,0)-1),MATCH(S$2&\" Score\",'C. PoC Adj Factor Scoring'!$E$4:$J$4,0),TRUE)","v":1},{"$f":"VLOOKUP(OFFSET($B:$B,,MATCH(T$4,$B$4:$F$4,0)-1),OFFSET('C. PoC Adj Factor Scoring'!$E$5:$J$282,,MATCH(T$4,'C. PoC Adj Factor Scoring'!$E$3:$AH$3,0)-1),MATCH(T$2&\" Score\",'C. PoC Adj Factor Scoring'!$E$4:$J$4,0),TRUE)","v":1},{"$f":"VLOOKUP(OFFSET($B:$B,,MATCH(U$4,$B$4:$F$4,0)-1),OFFSET('C. PoC Adj Factor Scoring'!$E$5:$J$282,,MATCH(U$4,'C. PoC Adj Factor Scoring'!$E$3:$AH$3,0)-1),MATCH(U$2&\" Score\",'C. PoC Adj Factor Scoring'!$E$4:$J$4,0),TRUE)","v":1},{"$f":"VLOOKUP(OFFSET($B:$B,,MATCH(V$4,$B$4:$F$4,0)-1),OFFSET('C. PoC Adj Factor Scoring'!$E$5:$J$282,,MATCH(V$4,'C. PoC Adj Factor Scoring'!$E$3:$AH$3,0)-1),MATCH(V$2&\" Score\",'C. PoC Adj Factor Scoring'!$E$4:$J$4,0),TRUE)","v":1},{"$f":"VLOOKUP(OFFSET($B:$B,,MATCH(W$4,$B$4:$F$4,0)-1),OFFSET('C. PoC Adj Factor Scoring'!$E$5:$J$282,,MATCH(W$4,'C. PoC Adj Factor Scoring'!$E$3:$AH$3,0)-1),MATCH(W$2&\" Score\",'C. PoC Adj Factor Scoring'!$E$4:$J$4,0),TRUE)","v":1},{"$f":"VLOOKUP(OFFSET($B:$B,,MATCH(X$4,$B$4:$F$4,0)-1),OFFSET('C. PoC Adj Factor Scoring'!$E$5:$J$282,,MATCH(X$4,'C. PoC Adj Factor Scoring'!$E$3:$AH$3,0)-1),MATCH(X$2&\" Score\",'C. PoC Adj Factor Scoring'!$E$4:$J$4,0),TRUE)","v":1},{"$f":"VLOOKUP(OFFSET($B:$B,,MATCH(Y$4,$B$4:$F$4,0)-1),OFFSET('C. PoC Adj Factor Scoring'!$E$5:$J$282,,MATCH(Y$4,'C. PoC Adj Factor Scoring'!$E$3:$AH$3,0)-1),MATCH(Y$2&\" Score\",'C. PoC Adj Factor Scoring'!$E$4:$J$4,0),TRUE)","v":1},{"$f":"VLOOKUP(OFFSET($B:$B,,MATCH(Z$4,$B$4:$F$4,0)-1),OFFSET('C. PoC Adj Factor Scoring'!$E$5:$J$282,,MATCH(Z$4,'C. PoC Adj Factor Scoring'!$E$3:$AH$3,0)-1),MATCH(Z$2&\" Score\",'C. PoC Adj Factor Scoring'!$E$4:$J$4,0),TRUE)","v":1},{"$f":"VLOOKUP(OFFSET($B:$B,,MATCH(AA$4,$B$4:$F$4,0)-1),OFFSET('C. PoC Adj Factor Scoring'!$E$5:$J$282,,MATCH(AA$4,'C. PoC Adj Factor Scoring'!$E$3:$AH$3,0)-1),MATCH(AA$2&\" Score\",'C. PoC Adj Factor Scoring'!$E$4:$J$4,0),TRUE)","v":3},{"$f":"VLOOKUP(OFFSET($B:$B,,MATCH(AB$4,$B$4:$F$4,0)-1),OFFSET('C. PoC Adj Factor Scoring'!$E$5:$J$282,,MATCH(AB$4,'C. PoC Adj Factor Scoring'!$E$3:$AH$3,0)-1),MATCH(AB$2&\" Score\",'C. PoC Adj Factor Scoring'!$E$4:$J$4,0),TRUE)","v":1},{"$f":"VLOOKUP(OFFSET($B:$B,,MATCH(AC$4,$B$4:$F$4,0)-1),OFFSET('C. PoC Adj Factor Scoring'!$E$5:$J$282,,MATCH(AC$4,'C. PoC Adj Factor Scoring'!$E$3:$AH$3,0)-1),MATCH(AC$2&\" Score\",'C. PoC Adj Factor Scoring'!$E$4:$J$4,0),TRUE)","v":1},{"$f":"VLOOKUP(OFFSET($B:$B,,MATCH(AD$4,$B$4:$F$4,0)-1),OFFSET('C. PoC Adj Factor Scoring'!$E$5:$J$282,,MATCH(AD$4,'C. PoC Adj Factor Scoring'!$E$3:$AH$3,0)-1),MATCH(AD$2&\" Score\",'C. PoC Adj Factor Scoring'!$E$4:$J$4,0),TRUE)","v":1},{"$f":"VLOOKUP(OFFSET($B:$B,,MATCH(AE$4,$B$4:$F$4,0)-1),OFFSET('C. PoC Adj Factor Scoring'!$E$5:$J$282,,MATCH(AE$4,'C. PoC Adj Factor Scoring'!$E$3:$AH$3,0)-1),MATCH(AE$2&\" Score\",'C. PoC Adj Factor Scoring'!$E$4:$J$4,0),TRUE)","v":1}]
[{"$f":"'A. Population Info'!A351","v":1000400282},{"$f":"'A. Population Info'!L351","v":"OIL"},{"$f":"'A. Population Info'!M351","v":0},{"$f":"'A. Population Info'!N351","v":0},{"$f":"'A. Population Info'!O351","v":0},{"$f":"'A. Population Info'!P351","v":0},{"$f":"VLOOKUP(OFFSET($B:$B,,MATCH(G$4,$B$4:$F$4,0)-1),OFFSET('C. PoC Adj Factor Scoring'!$E$5:$J$282,,MATCH(G$4,'C. PoC Adj Factor Scoring'!$E$3:$AH$3,0)-1),MATCH(G$2&\" Score\",'C. PoC Adj Factor Scoring'!$E$4:$J$4,0),TRUE)","v":4},{"$f":"VLOOKUP(OFFSET($B:$B,,MATCH(H$4,$B$4:$F$4,0)-1),OFFSET('C. PoC Adj Factor Scoring'!$E$5:$J$282,,MATCH(H$4,'C. PoC Adj Factor Scoring'!$E$3:$AH$3,0)-1),MATCH(H$2&\" Score\",'C. PoC Adj Factor Scoring'!$E$4:$J$4,0),TRUE)","v":1},{"$f":"VLOOKUP(OFFSET($B:$B,,MATCH(I$4,$B$4:$F$4,0)-1),OFFSET('C. PoC Adj Factor Scoring'!$E$5:$J$282,,MATCH(I$4,'C. PoC Adj Factor Scoring'!$E$3:$AH$3,0)-1),MATCH(I$2&\" Score\",'C. PoC Adj Factor Scoring'!$E$4:$J$4,0),TRUE)","v":1},{"$f":"VLOOKUP(OFFSET($B:$B,,MATCH(J$4,$B$4:$F$4,0)-1),OFFSET('C. PoC Adj Factor Scoring'!$E$5:$J$282,,MATCH(J$4,'C. PoC Adj Factor Scoring'!$E$3:$AH$3,0)-1),MATCH(J$2&\" Score\",'C. PoC Adj Factor Scoring'!$E$4:$J$4,0),TRUE)","v":1},{"$f":"VLOOKUP(OFFSET($B:$B,,MATCH(K$4,$B$4:$F$4,0)-1),OFFSET('C. PoC Adj Factor Scoring'!$E$5:$J$282,,MATCH(K$4,'C. PoC Adj Factor Scoring'!$E$3:$AH$3,0)-1),MATCH(K$2&\" Score\",'C. PoC Adj Factor Scoring'!$E$4:$J$4,0),TRUE)","v":1},{"$f":"VLOOKUP(OFFSET($B:$B,,MATCH(L$4,$B$4:$F$4,0)-1),OFFSET('C. PoC Adj Factor Scoring'!$E$5:$J$282,,MATCH(L$4,'C. PoC Adj Factor Scoring'!$E$3:$AH$3,0)-1),MATCH(L$2&\" Score\",'C. PoC Adj Factor Scoring'!$E$4:$J$4,0),TRUE)","v":1},{"$f":"VLOOKUP(OFFSET($B:$B,,MATCH(M$4,$B$4:$F$4,0)-1),OFFSET('C. PoC Adj Factor Scoring'!$E$5:$J$282,,MATCH(M$4,'C. PoC Adj Factor Scoring'!$E$3:$AH$3,0)-1),MATCH(M$2&\" Score\",'C. PoC Adj Factor Scoring'!$E$4:$J$4,0),TRUE)","v":1},{"$f":"VLOOKUP(OFFSET($B:$B,,MATCH(N$4,$B$4:$F$4,0)-1),OFFSET('C. PoC Adj Factor Scoring'!$E$5:$J$282,,MATCH(N$4,'C. PoC Adj Factor Scoring'!$E$3:$AH$3,0)-1),MATCH(N$2&\" Score\",'C. PoC Adj Factor Scoring'!$E$4:$J$4,0),TRUE)","v":1},{"$f":"VLOOKUP(OFFSET($B:$B,,MATCH(O$4,$B$4:$F$4,0)-1),OFFSET('C. PoC Adj Factor Scoring'!$E$5:$J$282,,MATCH(O$4,'C. PoC Adj Factor Scoring'!$E$3:$AH$3,0)-1),MATCH(O$2&\" Score\",'C. PoC Adj Factor Scoring'!$E$4:$J$4,0),TRUE)","v":1},{"$f":"VLOOKUP(OFFSET($B:$B,,MATCH(P$4,$B$4:$F$4,0)-1),OFFSET('C. PoC Adj Factor Scoring'!$E$5:$J$282,,MATCH(P$4,'C. PoC Adj Factor Scoring'!$E$3:$AH$3,0)-1),MATCH(P$2&\" Score\",'C. PoC Adj Factor Scoring'!$E$4:$J$4,0),TRUE)","v":1},{"$f":"VLOOKUP(OFFSET($B:$B,,MATCH(Q$4,$B$4:$F$4,0)-1),OFFSET('C. PoC Adj Factor Scoring'!$E$5:$J$282,,MATCH(Q$4,'C. PoC Adj Factor Scoring'!$E$3:$AH$3,0)-1),MATCH(Q$2&\" Score\",'C. PoC Adj Factor Scoring'!$E$4:$J$4,0),TRUE)","v":1},{"$f":"VLOOKUP(OFFSET($B:$B,,MATCH(R$4,$B$4:$F$4,0)-1),OFFSET('C. PoC Adj Factor Scoring'!$E$5:$J$282,,MATCH(R$4,'C. PoC Adj Factor Scoring'!$E$3:$AH$3,0)-1),MATCH(R$2&\" Score\",'C. PoC Adj Factor Scoring'!$E$4:$J$4,0),TRUE)","v":1},{"$f":"VLOOKUP(OFFSET($B:$B,,MATCH(S$4,$B$4:$F$4,0)-1),OFFSET('C. PoC Adj Factor Scoring'!$E$5:$J$282,,MATCH(S$4,'C. PoC Adj Factor Scoring'!$E$3:$AH$3,0)-1),MATCH(S$2&\" Score\",'C. PoC Adj Factor Scoring'!$E$4:$J$4,0),TRUE)","v":1},{"$f":"VLOOKUP(OFFSET($B:$B,,MATCH(T$4,$B$4:$F$4,0)-1),OFFSET('C. PoC Adj Factor Scoring'!$E$5:$J$282,,MATCH(T$4,'C. PoC Adj Factor Scoring'!$E$3:$AH$3,0)-1),MATCH(T$2&\" Score\",'C. PoC Adj Factor Scoring'!$E$4:$J$4,0),TRUE)","v":1},{"$f":"VLOOKUP(OFFSET($B:$B,,MATCH(U$4,$B$4:$F$4,0)-1),OFFSET('C. PoC Adj Factor Scoring'!$E$5:$J$282,,MATCH(U$4,'C. PoC Adj Factor Scoring'!$E$3:$AH$3,0)-1),MATCH(U$2&\" Score\",'C. PoC Adj Factor Scoring'!$E$4:$J$4,0),TRUE)","v":1},{"$f":"VLOOKUP(OFFSET($B:$B,,MATCH(V$4,$B$4:$F$4,0)-1),OFFSET('C. PoC Adj Factor Scoring'!$E$5:$J$282,,MATCH(V$4,'C. PoC Adj Factor Scoring'!$E$3:$AH$3,0)-1),MATCH(V$2&\" Score\",'C. PoC Adj Factor Scoring'!$E$4:$J$4,0),TRUE)","v":1},{"$f":"VLOOKUP(OFFSET($B:$B,,MATCH(W$4,$B$4:$F$4,0)-1),OFFSET('C. PoC Adj Factor Scoring'!$E$5:$J$282,,MATCH(W$4,'C. PoC Adj Factor Scoring'!$E$3:$AH$3,0)-1),MATCH(W$2&\" Score\",'C. PoC Adj Factor Scoring'!$E$4:$J$4,0),TRUE)","v":1},{"$f":"VLOOKUP(OFFSET($B:$B,,MATCH(X$4,$B$4:$F$4,0)-1),OFFSET('C. PoC Adj Factor Scoring'!$E$5:$J$282,,MATCH(X$4,'C. PoC Adj Factor Scoring'!$E$3:$AH$3,0)-1),MATCH(X$2&\" Score\",'C. PoC Adj Factor Scoring'!$E$4:$J$4,0),TRUE)","v":1},{"$f":"VLOOKUP(OFFSET($B:$B,,MATCH(Y$4,$B$4:$F$4,0)-1),OFFSET('C. PoC Adj Factor Scoring'!$E$5:$J$282,,MATCH(Y$4,'C. PoC Adj Factor Scoring'!$E$3:$AH$3,0)-1),MATCH(Y$2&\" Score\",'C. PoC Adj Factor Scoring'!$E$4:$J$4,0),TRUE)","v":1},{"$f":"VLOOKUP(OFFSET($B:$B,,MATCH(Z$4,$B$4:$F$4,0)-1),OFFSET('C. PoC Adj Factor Scoring'!$E$5:$J$282,,MATCH(Z$4,'C. PoC Adj Factor Scoring'!$E$3:$AH$3,0)-1),MATCH(Z$2&\" Score\",'C. PoC Adj Factor Scoring'!$E$4:$J$4,0),TRUE)","v":1},{"$f":"VLOOKUP(OFFSET($B:$B,,MATCH(AA$4,$B$4:$F$4,0)-1),OFFSET('C. PoC Adj Factor Scoring'!$E$5:$J$282,,MATCH(AA$4,'C. PoC Adj Factor Scoring'!$E$3:$AH$3,0)-1),MATCH(AA$2&\" Score\",'C. PoC Adj Factor Scoring'!$E$4:$J$4,0),TRUE)","v":3},{"$f":"VLOOKUP(OFFSET($B:$B,,MATCH(AB$4,$B$4:$F$4,0)-1),OFFSET('C. PoC Adj Factor Scoring'!$E$5:$J$282,,MATCH(AB$4,'C. PoC Adj Factor Scoring'!$E$3:$AH$3,0)-1),MATCH(AB$2&\" Score\",'C. PoC Adj Factor Scoring'!$E$4:$J$4,0),TRUE)","v":1},{"$f":"VLOOKUP(OFFSET($B:$B,,MATCH(AC$4,$B$4:$F$4,0)-1),OFFSET('C. PoC Adj Factor Scoring'!$E$5:$J$282,,MATCH(AC$4,'C. PoC Adj Factor Scoring'!$E$3:$AH$3,0)-1),MATCH(AC$2&\" Score\",'C. PoC Adj Factor Scoring'!$E$4:$J$4,0),TRUE)","v":1},{"$f":"VLOOKUP(OFFSET($B:$B,,MATCH(AD$4,$B$4:$F$4,0)-1),OFFSET('C. PoC Adj Factor Scoring'!$E$5:$J$282,,MATCH(AD$4,'C. PoC Adj Factor Scoring'!$E$3:$AH$3,0)-1),MATCH(AD$2&\" Score\",'C. PoC Adj Factor Scoring'!$E$4:$J$4,0),TRUE)","v":1},{"$f":"VLOOKUP(OFFSET($B:$B,,MATCH(AE$4,$B$4:$F$4,0)-1),OFFSET('C. PoC Adj Factor Scoring'!$E$5:$J$282,,MATCH(AE$4,'C. PoC Adj Factor Scoring'!$E$3:$AH$3,0)-1),MATCH(AE$2&\" Score\",'C. PoC Adj Factor Scoring'!$E$4:$J$4,0),TRUE)","v":1}]
[{"$f":"'A. Population Info'!A352","v":1000400309},{"$f":"'A. Population Info'!L352","v":"OIL"},{"$f":"'A. Population Info'!M352","v":0},{"$f":"'A. Population Info'!N352","v":0},{"$f":"'A. Population Info'!O352","v":0},{"$f":"'A. Population Info'!P352","v":0},{"$f":"VLOOKUP(OFFSET($B:$B,,MATCH(G$4,$B$4:$F$4,0)-1),OFFSET('C. PoC Adj Factor Scoring'!$E$5:$J$282,,MATCH(G$4,'C. PoC Adj Factor Scoring'!$E$3:$AH$3,0)-1),MATCH(G$2&\" Score\",'C. PoC Adj Factor Scoring'!$E$4:$J$4,0),TRUE)","v":4},{"$f":"VLOOKUP(OFFSET($B:$B,,MATCH(H$4,$B$4:$F$4,0)-1),OFFSET('C. PoC Adj Factor Scoring'!$E$5:$J$282,,MATCH(H$4,'C. PoC Adj Factor Scoring'!$E$3:$AH$3,0)-1),MATCH(H$2&\" Score\",'C. PoC Adj Factor Scoring'!$E$4:$J$4,0),TRUE)","v":1},{"$f":"VLOOKUP(OFFSET($B:$B,,MATCH(I$4,$B$4:$F$4,0)-1),OFFSET('C. PoC Adj Factor Scoring'!$E$5:$J$282,,MATCH(I$4,'C. PoC Adj Factor Scoring'!$E$3:$AH$3,0)-1),MATCH(I$2&\" Score\",'C. PoC Adj Factor Scoring'!$E$4:$J$4,0),TRUE)","v":1},{"$f":"VLOOKUP(OFFSET($B:$B,,MATCH(J$4,$B$4:$F$4,0)-1),OFFSET('C. PoC Adj Factor Scoring'!$E$5:$J$282,,MATCH(J$4,'C. PoC Adj Factor Scoring'!$E$3:$AH$3,0)-1),MATCH(J$2&\" Score\",'C. PoC Adj Factor Scoring'!$E$4:$J$4,0),TRUE)","v":1},{"$f":"VLOOKUP(OFFSET($B:$B,,MATCH(K$4,$B$4:$F$4,0)-1),OFFSET('C. PoC Adj Factor Scoring'!$E$5:$J$282,,MATCH(K$4,'C. PoC Adj Factor Scoring'!$E$3:$AH$3,0)-1),MATCH(K$2&\" Score\",'C. PoC Adj Factor Scoring'!$E$4:$J$4,0),TRUE)","v":1},{"$f":"VLOOKUP(OFFSET($B:$B,,MATCH(L$4,$B$4:$F$4,0)-1),OFFSET('C. PoC Adj Factor Scoring'!$E$5:$J$282,,MATCH(L$4,'C. PoC Adj Factor Scoring'!$E$3:$AH$3,0)-1),MATCH(L$2&\" Score\",'C. PoC Adj Factor Scoring'!$E$4:$J$4,0),TRUE)","v":1},{"$f":"VLOOKUP(OFFSET($B:$B,,MATCH(M$4,$B$4:$F$4,0)-1),OFFSET('C. PoC Adj Factor Scoring'!$E$5:$J$282,,MATCH(M$4,'C. PoC Adj Factor Scoring'!$E$3:$AH$3,0)-1),MATCH(M$2&\" Score\",'C. PoC Adj Factor Scoring'!$E$4:$J$4,0),TRUE)","v":1},{"$f":"VLOOKUP(OFFSET($B:$B,,MATCH(N$4,$B$4:$F$4,0)-1),OFFSET('C. PoC Adj Factor Scoring'!$E$5:$J$282,,MATCH(N$4,'C. PoC Adj Factor Scoring'!$E$3:$AH$3,0)-1),MATCH(N$2&\" Score\",'C. PoC Adj Factor Scoring'!$E$4:$J$4,0),TRUE)","v":1},{"$f":"VLOOKUP(OFFSET($B:$B,,MATCH(O$4,$B$4:$F$4,0)-1),OFFSET('C. PoC Adj Factor Scoring'!$E$5:$J$282,,MATCH(O$4,'C. PoC Adj Factor Scoring'!$E$3:$AH$3,0)-1),MATCH(O$2&\" Score\",'C. PoC Adj Factor Scoring'!$E$4:$J$4,0),TRUE)","v":1},{"$f":"VLOOKUP(OFFSET($B:$B,,MATCH(P$4,$B$4:$F$4,0)-1),OFFSET('C. PoC Adj Factor Scoring'!$E$5:$J$282,,MATCH(P$4,'C. PoC Adj Factor Scoring'!$E$3:$AH$3,0)-1),MATCH(P$2&\" Score\",'C. PoC Adj Factor Scoring'!$E$4:$J$4,0),TRUE)","v":1},{"$f":"VLOOKUP(OFFSET($B:$B,,MATCH(Q$4,$B$4:$F$4,0)-1),OFFSET('C. PoC Adj Factor Scoring'!$E$5:$J$282,,MATCH(Q$4,'C. PoC Adj Factor Scoring'!$E$3:$AH$3,0)-1),MATCH(Q$2&\" Score\",'C. PoC Adj Factor Scoring'!$E$4:$J$4,0),TRUE)","v":1},{"$f":"VLOOKUP(OFFSET($B:$B,,MATCH(R$4,$B$4:$F$4,0)-1),OFFSET('C. PoC Adj Factor Scoring'!$E$5:$J$282,,MATCH(R$4,'C. PoC Adj Factor Scoring'!$E$3:$AH$3,0)-1),MATCH(R$2&\" Score\",'C. PoC Adj Factor Scoring'!$E$4:$J$4,0),TRUE)","v":1},{"$f":"VLOOKUP(OFFSET($B:$B,,MATCH(S$4,$B$4:$F$4,0)-1),OFFSET('C. PoC Adj Factor Scoring'!$E$5:$J$282,,MATCH(S$4,'C. PoC Adj Factor Scoring'!$E$3:$AH$3,0)-1),MATCH(S$2&\" Score\",'C. PoC Adj Factor Scoring'!$E$4:$J$4,0),TRUE)","v":1},{"$f":"VLOOKUP(OFFSET($B:$B,,MATCH(T$4,$B$4:$F$4,0)-1),OFFSET('C. PoC Adj Factor Scoring'!$E$5:$J$282,,MATCH(T$4,'C. PoC Adj Factor Scoring'!$E$3:$AH$3,0)-1),MATCH(T$2&\" Score\",'C. PoC Adj Factor Scoring'!$E$4:$J$4,0),TRUE)","v":1},{"$f":"VLOOKUP(OFFSET($B:$B,,MATCH(U$4,$B$4:$F$4,0)-1),OFFSET('C. PoC Adj Factor Scoring'!$E$5:$J$282,,MATCH(U$4,'C. PoC Adj Factor Scoring'!$E$3:$AH$3,0)-1),MATCH(U$2&\" Score\",'C. PoC Adj Factor Scoring'!$E$4:$J$4,0),TRUE)","v":1},{"$f":"VLOOKUP(OFFSET($B:$B,,MATCH(V$4,$B$4:$F$4,0)-1),OFFSET('C. PoC Adj Factor Scoring'!$E$5:$J$282,,MATCH(V$4,'C. PoC Adj Factor Scoring'!$E$3:$AH$3,0)-1),MATCH(V$2&\" Score\",'C. PoC Adj Factor Scoring'!$E$4:$J$4,0),TRUE)","v":1},{"$f":"VLOOKUP(OFFSET($B:$B,,MATCH(W$4,$B$4:$F$4,0)-1),OFFSET('C. PoC Adj Factor Scoring'!$E$5:$J$282,,MATCH(W$4,'C. PoC Adj Factor Scoring'!$E$3:$AH$3,0)-1),MATCH(W$2&\" Score\",'C. PoC Adj Factor Scoring'!$E$4:$J$4,0),TRUE)","v":1},{"$f":"VLOOKUP(OFFSET($B:$B,,MATCH(X$4,$B$4:$F$4,0)-1),OFFSET('C. PoC Adj Factor Scoring'!$E$5:$J$282,,MATCH(X$4,'C. PoC Adj Factor Scoring'!$E$3:$AH$3,0)-1),MATCH(X$2&\" Score\",'C. PoC Adj Factor Scoring'!$E$4:$J$4,0),TRUE)","v":1},{"$f":"VLOOKUP(OFFSET($B:$B,,MATCH(Y$4,$B$4:$F$4,0)-1),OFFSET('C. PoC Adj Factor Scoring'!$E$5:$J$282,,MATCH(Y$4,'C. PoC Adj Factor Scoring'!$E$3:$AH$3,0)-1),MATCH(Y$2&\" Score\",'C. PoC Adj Factor Scoring'!$E$4:$J$4,0),TRUE)","v":1},{"$f":"VLOOKUP(OFFSET($B:$B,,MATCH(Z$4,$B$4:$F$4,0)-1),OFFSET('C. PoC Adj Factor Scoring'!$E$5:$J$282,,MATCH(Z$4,'C. PoC Adj Factor Scoring'!$E$3:$AH$3,0)-1),MATCH(Z$2&\" Score\",'C. PoC Adj Factor Scoring'!$E$4:$J$4,0),TRUE)","v":1},{"$f":"VLOOKUP(OFFSET($B:$B,,MATCH(AA$4,$B$4:$F$4,0)-1),OFFSET('C. PoC Adj Factor Scoring'!$E$5:$J$282,,MATCH(AA$4,'C. PoC Adj Factor Scoring'!$E$3:$AH$3,0)-1),MATCH(AA$2&\" Score\",'C. PoC Adj Factor Scoring'!$E$4:$J$4,0),TRUE)","v":3},{"$f":"VLOOKUP(OFFSET($B:$B,,MATCH(AB$4,$B$4:$F$4,0)-1),OFFSET('C. PoC Adj Factor Scoring'!$E$5:$J$282,,MATCH(AB$4,'C. PoC Adj Factor Scoring'!$E$3:$AH$3,0)-1),MATCH(AB$2&\" Score\",'C. PoC Adj Factor Scoring'!$E$4:$J$4,0),TRUE)","v":1},{"$f":"VLOOKUP(OFFSET($B:$B,,MATCH(AC$4,$B$4:$F$4,0)-1),OFFSET('C. PoC Adj Factor Scoring'!$E$5:$J$282,,MATCH(AC$4,'C. PoC Adj Factor Scoring'!$E$3:$AH$3,0)-1),MATCH(AC$2&\" Score\",'C. PoC Adj Factor Scoring'!$E$4:$J$4,0),TRUE)","v":1},{"$f":"VLOOKUP(OFFSET($B:$B,,MATCH(AD$4,$B$4:$F$4,0)-1),OFFSET('C. PoC Adj Factor Scoring'!$E$5:$J$282,,MATCH(AD$4,'C. PoC Adj Factor Scoring'!$E$3:$AH$3,0)-1),MATCH(AD$2&\" Score\",'C. PoC Adj Factor Scoring'!$E$4:$J$4,0),TRUE)","v":1},{"$f":"VLOOKUP(OFFSET($B:$B,,MATCH(AE$4,$B$4:$F$4,0)-1),OFFSET('C. PoC Adj Factor Scoring'!$E$5:$J$282,,MATCH(AE$4,'C. PoC Adj Factor Scoring'!$E$3:$AH$3,0)-1),MATCH(AE$2&\" Score\",'C. PoC Adj Factor Scoring'!$E$4:$J$4,0),TRUE)","v":1}]
[{"$f":"'A. Population Info'!A353","v":1000400338},{"$f":"'A. Population Info'!L353","v":"OIL_FR3"},{"$f":"'A. Population Info'!M353","v":0},{"$f":"'A. Population Info'!N353","v":0},{"$f":"'A. Population Info'!O353","v":0},{"$f":"'A. Population Info'!P353","v":0},{"$f":"VLOOKUP(OFFSET($B:$B,,MATCH(G$4,$B$4:$F$4,0)-1),OFFSET('C. PoC Adj Factor Scoring'!$E$5:$J$282,,MATCH(G$4,'C. PoC Adj Factor Scoring'!$E$3:$AH$3,0)-1),MATCH(G$2&\" Score\",'C. PoC Adj Factor Scoring'!$E$4:$J$4,0),TRUE)","v":3},{"$f":"VLOOKUP(OFFSET($B:$B,,MATCH(H$4,$B$4:$F$4,0)-1),OFFSET('C. PoC Adj Factor Scoring'!$E$5:$J$282,,MATCH(H$4,'C. PoC Adj Factor Scoring'!$E$3:$AH$3,0)-1),MATCH(H$2&\" Score\",'C. PoC Adj Factor Scoring'!$E$4:$J$4,0),TRUE)","v":1},{"$f":"VLOOKUP(OFFSET($B:$B,,MATCH(I$4,$B$4:$F$4,0)-1),OFFSET('C. PoC Adj Factor Scoring'!$E$5:$J$282,,MATCH(I$4,'C. PoC Adj Factor Scoring'!$E$3:$AH$3,0)-1),MATCH(I$2&\" Score\",'C. PoC Adj Factor Scoring'!$E$4:$J$4,0),TRUE)","v":1},{"$f":"VLOOKUP(OFFSET($B:$B,,MATCH(J$4,$B$4:$F$4,0)-1),OFFSET('C. PoC Adj Factor Scoring'!$E$5:$J$282,,MATCH(J$4,'C. PoC Adj Factor Scoring'!$E$3:$AH$3,0)-1),MATCH(J$2&\" Score\",'C. PoC Adj Factor Scoring'!$E$4:$J$4,0),TRUE)","v":1},{"$f":"VLOOKUP(OFFSET($B:$B,,MATCH(K$4,$B$4:$F$4,0)-1),OFFSET('C. PoC Adj Factor Scoring'!$E$5:$J$282,,MATCH(K$4,'C. PoC Adj Factor Scoring'!$E$3:$AH$3,0)-1),MATCH(K$2&\" Score\",'C. PoC Adj Factor Scoring'!$E$4:$J$4,0),TRUE)","v":1},{"$f":"VLOOKUP(OFFSET($B:$B,,MATCH(L$4,$B$4:$F$4,0)-1),OFFSET('C. PoC Adj Factor Scoring'!$E$5:$J$282,,MATCH(L$4,'C. PoC Adj Factor Scoring'!$E$3:$AH$3,0)-1),MATCH(L$2&\" Score\",'C. PoC Adj Factor Scoring'!$E$4:$J$4,0),TRUE)","v":1},{"$f":"VLOOKUP(OFFSET($B:$B,,MATCH(M$4,$B$4:$F$4,0)-1),OFFSET('C. PoC Adj Factor Scoring'!$E$5:$J$282,,MATCH(M$4,'C. PoC Adj Factor Scoring'!$E$3:$AH$3,0)-1),MATCH(M$2&\" Score\",'C. PoC Adj Factor Scoring'!$E$4:$J$4,0),TRUE)","v":1},{"$f":"VLOOKUP(OFFSET($B:$B,,MATCH(N$4,$B$4:$F$4,0)-1),OFFSET('C. PoC Adj Factor Scoring'!$E$5:$J$282,,MATCH(N$4,'C. PoC Adj Factor Scoring'!$E$3:$AH$3,0)-1),MATCH(N$2&\" Score\",'C. PoC Adj Factor Scoring'!$E$4:$J$4,0),TRUE)","v":1},{"$f":"VLOOKUP(OFFSET($B:$B,,MATCH(O$4,$B$4:$F$4,0)-1),OFFSET('C. PoC Adj Factor Scoring'!$E$5:$J$282,,MATCH(O$4,'C. PoC Adj Factor Scoring'!$E$3:$AH$3,0)-1),MATCH(O$2&\" Score\",'C. PoC Adj Factor Scoring'!$E$4:$J$4,0),TRUE)","v":1},{"$f":"VLOOKUP(OFFSET($B:$B,,MATCH(P$4,$B$4:$F$4,0)-1),OFFSET('C. PoC Adj Factor Scoring'!$E$5:$J$282,,MATCH(P$4,'C. PoC Adj Factor Scoring'!$E$3:$AH$3,0)-1),MATCH(P$2&\" Score\",'C. PoC Adj Factor Scoring'!$E$4:$J$4,0),TRUE)","v":1},{"$f":"VLOOKUP(OFFSET($B:$B,,MATCH(Q$4,$B$4:$F$4,0)-1),OFFSET('C. PoC Adj Factor Scoring'!$E$5:$J$282,,MATCH(Q$4,'C. PoC Adj Factor Scoring'!$E$3:$AH$3,0)-1),MATCH(Q$2&\" Score\",'C. PoC Adj Factor Scoring'!$E$4:$J$4,0),TRUE)","v":1},{"$f":"VLOOKUP(OFFSET($B:$B,,MATCH(R$4,$B$4:$F$4,0)-1),OFFSET('C. PoC Adj Factor Scoring'!$E$5:$J$282,,MATCH(R$4,'C. PoC Adj Factor Scoring'!$E$3:$AH$3,0)-1),MATCH(R$2&\" Score\",'C. PoC Adj Factor Scoring'!$E$4:$J$4,0),TRUE)","v":1},{"$f":"VLOOKUP(OFFSET($B:$B,,MATCH(S$4,$B$4:$F$4,0)-1),OFFSET('C. PoC Adj Factor Scoring'!$E$5:$J$282,,MATCH(S$4,'C. PoC Adj Factor Scoring'!$E$3:$AH$3,0)-1),MATCH(S$2&\" Score\",'C. PoC Adj Factor Scoring'!$E$4:$J$4,0),TRUE)","v":1},{"$f":"VLOOKUP(OFFSET($B:$B,,MATCH(T$4,$B$4:$F$4,0)-1),OFFSET('C. PoC Adj Factor Scoring'!$E$5:$J$282,,MATCH(T$4,'C. PoC Adj Factor Scoring'!$E$3:$AH$3,0)-1),MATCH(T$2&\" Score\",'C. PoC Adj Factor Scoring'!$E$4:$J$4,0),TRUE)","v":1},{"$f":"VLOOKUP(OFFSET($B:$B,,MATCH(U$4,$B$4:$F$4,0)-1),OFFSET('C. PoC Adj Factor Scoring'!$E$5:$J$282,,MATCH(U$4,'C. PoC Adj Factor Scoring'!$E$3:$AH$3,0)-1),MATCH(U$2&\" Score\",'C. PoC Adj Factor Scoring'!$E$4:$J$4,0),TRUE)","v":1},{"$f":"VLOOKUP(OFFSET($B:$B,,MATCH(V$4,$B$4:$F$4,0)-1),OFFSET('C. PoC Adj Factor Scoring'!$E$5:$J$282,,MATCH(V$4,'C. PoC Adj Factor Scoring'!$E$3:$AH$3,0)-1),MATCH(V$2&\" Score\",'C. PoC Adj Factor Scoring'!$E$4:$J$4,0),TRUE)","v":1},{"$f":"VLOOKUP(OFFSET($B:$B,,MATCH(W$4,$B$4:$F$4,0)-1),OFFSET('C. PoC Adj Factor Scoring'!$E$5:$J$282,,MATCH(W$4,'C. PoC Adj Factor Scoring'!$E$3:$AH$3,0)-1),MATCH(W$2&\" Score\",'C. PoC Adj Factor Scoring'!$E$4:$J$4,0),TRUE)","v":1},{"$f":"VLOOKUP(OFFSET($B:$B,,MATCH(X$4,$B$4:$F$4,0)-1),OFFSET('C. PoC Adj Factor Scoring'!$E$5:$J$282,,MATCH(X$4,'C. PoC Adj Factor Scoring'!$E$3:$AH$3,0)-1),MATCH(X$2&\" Score\",'C. PoC Adj Factor Scoring'!$E$4:$J$4,0),TRUE)","v":1},{"$f":"VLOOKUP(OFFSET($B:$B,,MATCH(Y$4,$B$4:$F$4,0)-1),OFFSET('C. PoC Adj Factor Scoring'!$E$5:$J$282,,MATCH(Y$4,'C. PoC Adj Factor Scoring'!$E$3:$AH$3,0)-1),MATCH(Y$2&\" Score\",'C. PoC Adj Factor Scoring'!$E$4:$J$4,0),TRUE)","v":1},{"$f":"VLOOKUP(OFFSET($B:$B,,MATCH(Z$4,$B$4:$F$4,0)-1),OFFSET('C. PoC Adj Factor Scoring'!$E$5:$J$282,,MATCH(Z$4,'C. PoC Adj Factor Scoring'!$E$3:$AH$3,0)-1),MATCH(Z$2&\" Score\",'C. PoC Adj Factor Scoring'!$E$4:$J$4,0),TRUE)","v":1},{"$f":"VLOOKUP(OFFSET($B:$B,,MATCH(AA$4,$B$4:$F$4,0)-1),OFFSET('C. PoC Adj Factor Scoring'!$E$5:$J$282,,MATCH(AA$4,'C. PoC Adj Factor Scoring'!$E$3:$AH$3,0)-1),MATCH(AA$2&\" Score\",'C. PoC Adj Factor Scoring'!$E$4:$J$4,0),TRUE)","v":2},{"$f":"VLOOKUP(OFFSET($B:$B,,MATCH(AB$4,$B$4:$F$4,0)-1),OFFSET('C. PoC Adj Factor Scoring'!$E$5:$J$282,,MATCH(AB$4,'C. PoC Adj Factor Scoring'!$E$3:$AH$3,0)-1),MATCH(AB$2&\" Score\",'C. PoC Adj Factor Scoring'!$E$4:$J$4,0),TRUE)","v":1},{"$f":"VLOOKUP(OFFSET($B:$B,,MATCH(AC$4,$B$4:$F$4,0)-1),OFFSET('C. PoC Adj Factor Scoring'!$E$5:$J$282,,MATCH(AC$4,'C. PoC Adj Factor Scoring'!$E$3:$AH$3,0)-1),MATCH(AC$2&\" Score\",'C. PoC Adj Factor Scoring'!$E$4:$J$4,0),TRUE)","v":1},{"$f":"VLOOKUP(OFFSET($B:$B,,MATCH(AD$4,$B$4:$F$4,0)-1),OFFSET('C. PoC Adj Factor Scoring'!$E$5:$J$282,,MATCH(AD$4,'C. PoC Adj Factor Scoring'!$E$3:$AH$3,0)-1),MATCH(AD$2&\" Score\",'C. PoC Adj Factor Scoring'!$E$4:$J$4,0),TRUE)","v":1},{"$f":"VLOOKUP(OFFSET($B:$B,,MATCH(AE$4,$B$4:$F$4,0)-1),OFFSET('C. PoC Adj Factor Scoring'!$E$5:$J$282,,MATCH(AE$4,'C. PoC Adj Factor Scoring'!$E$3:$AH$3,0)-1),MATCH(AE$2&\" Score\",'C. PoC Adj Factor Scoring'!$E$4:$J$4,0),TRUE)","v":1}]
[{"$f":"'A. Population Info'!A354","v":1000400470},{"$f":"'A. Population Info'!L354","v":"OIL"},{"$f":"'A. Population Info'!M354","v":0},{"$f":"'A. Population Info'!N354","v":0},{"$f":"'A. Population Info'!O354","v":0},{"$f":"'A. Population Info'!P354","v":0},{"$f":"VLOOKUP(OFFSET($B:$B,,MATCH(G$4,$B$4:$F$4,0)-1),OFFSET('C. PoC Adj Factor Scoring'!$E$5:$J$282,,MATCH(G$4,'C. PoC Adj Factor Scoring'!$E$3:$AH$3,0)-1),MATCH(G$2&\" Score\",'C. PoC Adj Factor Scoring'!$E$4:$J$4,0),TRUE)","v":4},{"$f":"VLOOKUP(OFFSET($B:$B,,MATCH(H$4,$B$4:$F$4,0)-1),OFFSET('C. PoC Adj Factor Scoring'!$E$5:$J$282,,MATCH(H$4,'C. PoC Adj Factor Scoring'!$E$3:$AH$3,0)-1),MATCH(H$2&\" Score\",'C. PoC Adj Factor Scoring'!$E$4:$J$4,0),TRUE)","v":1},{"$f":"VLOOKUP(OFFSET($B:$B,,MATCH(I$4,$B$4:$F$4,0)-1),OFFSET('C. PoC Adj Factor Scoring'!$E$5:$J$282,,MATCH(I$4,'C. PoC Adj Factor Scoring'!$E$3:$AH$3,0)-1),MATCH(I$2&\" Score\",'C. PoC Adj Factor Scoring'!$E$4:$J$4,0),TRUE)","v":1},{"$f":"VLOOKUP(OFFSET($B:$B,,MATCH(J$4,$B$4:$F$4,0)-1),OFFSET('C. PoC Adj Factor Scoring'!$E$5:$J$282,,MATCH(J$4,'C. PoC Adj Factor Scoring'!$E$3:$AH$3,0)-1),MATCH(J$2&\" Score\",'C. PoC Adj Factor Scoring'!$E$4:$J$4,0),TRUE)","v":1},{"$f":"VLOOKUP(OFFSET($B:$B,,MATCH(K$4,$B$4:$F$4,0)-1),OFFSET('C. PoC Adj Factor Scoring'!$E$5:$J$282,,MATCH(K$4,'C. PoC Adj Factor Scoring'!$E$3:$AH$3,0)-1),MATCH(K$2&\" Score\",'C. PoC Adj Factor Scoring'!$E$4:$J$4,0),TRUE)","v":1},{"$f":"VLOOKUP(OFFSET($B:$B,,MATCH(L$4,$B$4:$F$4,0)-1),OFFSET('C. PoC Adj Factor Scoring'!$E$5:$J$282,,MATCH(L$4,'C. PoC Adj Factor Scoring'!$E$3:$AH$3,0)-1),MATCH(L$2&\" Score\",'C. PoC Adj Factor Scoring'!$E$4:$J$4,0),TRUE)","v":1},{"$f":"VLOOKUP(OFFSET($B:$B,,MATCH(M$4,$B$4:$F$4,0)-1),OFFSET('C. PoC Adj Factor Scoring'!$E$5:$J$282,,MATCH(M$4,'C. PoC Adj Factor Scoring'!$E$3:$AH$3,0)-1),MATCH(M$2&\" Score\",'C. PoC Adj Factor Scoring'!$E$4:$J$4,0),TRUE)","v":1},{"$f":"VLOOKUP(OFFSET($B:$B,,MATCH(N$4,$B$4:$F$4,0)-1),OFFSET('C. PoC Adj Factor Scoring'!$E$5:$J$282,,MATCH(N$4,'C. PoC Adj Factor Scoring'!$E$3:$AH$3,0)-1),MATCH(N$2&\" Score\",'C. PoC Adj Factor Scoring'!$E$4:$J$4,0),TRUE)","v":1},{"$f":"VLOOKUP(OFFSET($B:$B,,MATCH(O$4,$B$4:$F$4,0)-1),OFFSET('C. PoC Adj Factor Scoring'!$E$5:$J$282,,MATCH(O$4,'C. PoC Adj Factor Scoring'!$E$3:$AH$3,0)-1),MATCH(O$2&\" Score\",'C. PoC Adj Factor Scoring'!$E$4:$J$4,0),TRUE)","v":1},{"$f":"VLOOKUP(OFFSET($B:$B,,MATCH(P$4,$B$4:$F$4,0)-1),OFFSET('C. PoC Adj Factor Scoring'!$E$5:$J$282,,MATCH(P$4,'C. PoC Adj Factor Scoring'!$E$3:$AH$3,0)-1),MATCH(P$2&\" Score\",'C. PoC Adj Factor Scoring'!$E$4:$J$4,0),TRUE)","v":1},{"$f":"VLOOKUP(OFFSET($B:$B,,MATCH(Q$4,$B$4:$F$4,0)-1),OFFSET('C. PoC Adj Factor Scoring'!$E$5:$J$282,,MATCH(Q$4,'C. PoC Adj Factor Scoring'!$E$3:$AH$3,0)-1),MATCH(Q$2&\" Score\",'C. PoC Adj Factor Scoring'!$E$4:$J$4,0),TRUE)","v":1},{"$f":"VLOOKUP(OFFSET($B:$B,,MATCH(R$4,$B$4:$F$4,0)-1),OFFSET('C. PoC Adj Factor Scoring'!$E$5:$J$282,,MATCH(R$4,'C. PoC Adj Factor Scoring'!$E$3:$AH$3,0)-1),MATCH(R$2&\" Score\",'C. PoC Adj Factor Scoring'!$E$4:$J$4,0),TRUE)","v":1},{"$f":"VLOOKUP(OFFSET($B:$B,,MATCH(S$4,$B$4:$F$4,0)-1),OFFSET('C. PoC Adj Factor Scoring'!$E$5:$J$282,,MATCH(S$4,'C. PoC Adj Factor Scoring'!$E$3:$AH$3,0)-1),MATCH(S$2&\" Score\",'C. PoC Adj Factor Scoring'!$E$4:$J$4,0),TRUE)","v":1},{"$f":"VLOOKUP(OFFSET($B:$B,,MATCH(T$4,$B$4:$F$4,0)-1),OFFSET('C. PoC Adj Factor Scoring'!$E$5:$J$282,,MATCH(T$4,'C. PoC Adj Factor Scoring'!$E$3:$AH$3,0)-1),MATCH(T$2&\" Score\",'C. PoC Adj Factor Scoring'!$E$4:$J$4,0),TRUE)","v":1},{"$f":"VLOOKUP(OFFSET($B:$B,,MATCH(U$4,$B$4:$F$4,0)-1),OFFSET('C. PoC Adj Factor Scoring'!$E$5:$J$282,,MATCH(U$4,'C. PoC Adj Factor Scoring'!$E$3:$AH$3,0)-1),MATCH(U$2&\" Score\",'C. PoC Adj Factor Scoring'!$E$4:$J$4,0),TRUE)","v":1},{"$f":"VLOOKUP(OFFSET($B:$B,,MATCH(V$4,$B$4:$F$4,0)-1),OFFSET('C. PoC Adj Factor Scoring'!$E$5:$J$282,,MATCH(V$4,'C. PoC Adj Factor Scoring'!$E$3:$AH$3,0)-1),MATCH(V$2&\" Score\",'C. PoC Adj Factor Scoring'!$E$4:$J$4,0),TRUE)","v":1},{"$f":"VLOOKUP(OFFSET($B:$B,,MATCH(W$4,$B$4:$F$4,0)-1),OFFSET('C. PoC Adj Factor Scoring'!$E$5:$J$282,,MATCH(W$4,'C. PoC Adj Factor Scoring'!$E$3:$AH$3,0)-1),MATCH(W$2&\" Score\",'C. PoC Adj Factor Scoring'!$E$4:$J$4,0),TRUE)","v":1},{"$f":"VLOOKUP(OFFSET($B:$B,,MATCH(X$4,$B$4:$F$4,0)-1),OFFSET('C. PoC Adj Factor Scoring'!$E$5:$J$282,,MATCH(X$4,'C. PoC Adj Factor Scoring'!$E$3:$AH$3,0)-1),MATCH(X$2&\" Score\",'C. PoC Adj Factor Scoring'!$E$4:$J$4,0),TRUE)","v":1},{"$f":"VLOOKUP(OFFSET($B:$B,,MATCH(Y$4,$B$4:$F$4,0)-1),OFFSET('C. PoC Adj Factor Scoring'!$E$5:$J$282,,MATCH(Y$4,'C. PoC Adj Factor Scoring'!$E$3:$AH$3,0)-1),MATCH(Y$2&\" Score\",'C. PoC Adj Factor Scoring'!$E$4:$J$4,0),TRUE)","v":1},{"$f":"VLOOKUP(OFFSET($B:$B,,MATCH(Z$4,$B$4:$F$4,0)-1),OFFSET('C. PoC Adj Factor Scoring'!$E$5:$J$282,,MATCH(Z$4,'C. PoC Adj Factor Scoring'!$E$3:$AH$3,0)-1),MATCH(Z$2&\" Score\",'C. PoC Adj Factor Scoring'!$E$4:$J$4,0),TRUE)","v":1},{"$f":"VLOOKUP(OFFSET($B:$B,,MATCH(AA$4,$B$4:$F$4,0)-1),OFFSET('C. PoC Adj Factor Scoring'!$E$5:$J$282,,MATCH(AA$4,'C. PoC Adj Factor Scoring'!$E$3:$AH$3,0)-1),MATCH(AA$2&\" Score\",'C. PoC Adj Factor Scoring'!$E$4:$J$4,0),TRUE)","v":3},{"$f":"VLOOKUP(OFFSET($B:$B,,MATCH(AB$4,$B$4:$F$4,0)-1),OFFSET('C. PoC Adj Factor Scoring'!$E$5:$J$282,,MATCH(AB$4,'C. PoC Adj Factor Scoring'!$E$3:$AH$3,0)-1),MATCH(AB$2&\" Score\",'C. PoC Adj Factor Scoring'!$E$4:$J$4,0),TRUE)","v":1},{"$f":"VLOOKUP(OFFSET($B:$B,,MATCH(AC$4,$B$4:$F$4,0)-1),OFFSET('C. PoC Adj Factor Scoring'!$E$5:$J$282,,MATCH(AC$4,'C. PoC Adj Factor Scoring'!$E$3:$AH$3,0)-1),MATCH(AC$2&\" Score\",'C. PoC Adj Factor Scoring'!$E$4:$J$4,0),TRUE)","v":1},{"$f":"VLOOKUP(OFFSET($B:$B,,MATCH(AD$4,$B$4:$F$4,0)-1),OFFSET('C. PoC Adj Factor Scoring'!$E$5:$J$282,,MATCH(AD$4,'C. PoC Adj Factor Scoring'!$E$3:$AH$3,0)-1),MATCH(AD$2&\" Score\",'C. PoC Adj Factor Scoring'!$E$4:$J$4,0),TRUE)","v":1},{"$f":"VLOOKUP(OFFSET($B:$B,,MATCH(AE$4,$B$4:$F$4,0)-1),OFFSET('C. PoC Adj Factor Scoring'!$E$5:$J$282,,MATCH(AE$4,'C. PoC Adj Factor Scoring'!$E$3:$AH$3,0)-1),MATCH(AE$2&\" Score\",'C. PoC Adj Factor Scoring'!$E$4:$J$4,0),TRUE)","v":1}]
[{"$f":"'A. Population Info'!A355","v":1000400498},{"$f":"'A. Population Info'!L355","v":"OIL"},{"$f":"'A. Population Info'!M355","v":0},{"$f":"'A. Population Info'!N355","v":0},{"$f":"'A. Population Info'!O355","v":0},{"$f":"'A. Population Info'!P355","v":0},{"$f":"VLOOKUP(OFFSET($B:$B,,MATCH(G$4,$B$4:$F$4,0)-1),OFFSET('C. PoC Adj Factor Scoring'!$E$5:$J$282,,MATCH(G$4,'C. PoC Adj Factor Scoring'!$E$3:$AH$3,0)-1),MATCH(G$2&\" Score\",'C. PoC Adj Factor Scoring'!$E$4:$J$4,0),TRUE)","v":4},{"$f":"VLOOKUP(OFFSET($B:$B,,MATCH(H$4,$B$4:$F$4,0)-1),OFFSET('C. PoC Adj Factor Scoring'!$E$5:$J$282,,MATCH(H$4,'C. PoC Adj Factor Scoring'!$E$3:$AH$3,0)-1),MATCH(H$2&\" Score\",'C. PoC Adj Factor Scoring'!$E$4:$J$4,0),TRUE)","v":1},{"$f":"VLOOKUP(OFFSET($B:$B,,MATCH(I$4,$B$4:$F$4,0)-1),OFFSET('C. PoC Adj Factor Scoring'!$E$5:$J$282,,MATCH(I$4,'C. PoC Adj Factor Scoring'!$E$3:$AH$3,0)-1),MATCH(I$2&\" Score\",'C. PoC Adj Factor Scoring'!$E$4:$J$4,0),TRUE)","v":1},{"$f":"VLOOKUP(OFFSET($B:$B,,MATCH(J$4,$B$4:$F$4,0)-1),OFFSET('C. PoC Adj Factor Scoring'!$E$5:$J$282,,MATCH(J$4,'C. PoC Adj Factor Scoring'!$E$3:$AH$3,0)-1),MATCH(J$2&\" Score\",'C. PoC Adj Factor Scoring'!$E$4:$J$4,0),TRUE)","v":1},{"$f":"VLOOKUP(OFFSET($B:$B,,MATCH(K$4,$B$4:$F$4,0)-1),OFFSET('C. PoC Adj Factor Scoring'!$E$5:$J$282,,MATCH(K$4,'C. PoC Adj Factor Scoring'!$E$3:$AH$3,0)-1),MATCH(K$2&\" Score\",'C. PoC Adj Factor Scoring'!$E$4:$J$4,0),TRUE)","v":1},{"$f":"VLOOKUP(OFFSET($B:$B,,MATCH(L$4,$B$4:$F$4,0)-1),OFFSET('C. PoC Adj Factor Scoring'!$E$5:$J$282,,MATCH(L$4,'C. PoC Adj Factor Scoring'!$E$3:$AH$3,0)-1),MATCH(L$2&\" Score\",'C. PoC Adj Factor Scoring'!$E$4:$J$4,0),TRUE)","v":1},{"$f":"VLOOKUP(OFFSET($B:$B,,MATCH(M$4,$B$4:$F$4,0)-1),OFFSET('C. PoC Adj Factor Scoring'!$E$5:$J$282,,MATCH(M$4,'C. PoC Adj Factor Scoring'!$E$3:$AH$3,0)-1),MATCH(M$2&\" Score\",'C. PoC Adj Factor Scoring'!$E$4:$J$4,0),TRUE)","v":1},{"$f":"VLOOKUP(OFFSET($B:$B,,MATCH(N$4,$B$4:$F$4,0)-1),OFFSET('C. PoC Adj Factor Scoring'!$E$5:$J$282,,MATCH(N$4,'C. PoC Adj Factor Scoring'!$E$3:$AH$3,0)-1),MATCH(N$2&\" Score\",'C. PoC Adj Factor Scoring'!$E$4:$J$4,0),TRUE)","v":1},{"$f":"VLOOKUP(OFFSET($B:$B,,MATCH(O$4,$B$4:$F$4,0)-1),OFFSET('C. PoC Adj Factor Scoring'!$E$5:$J$282,,MATCH(O$4,'C. PoC Adj Factor Scoring'!$E$3:$AH$3,0)-1),MATCH(O$2&\" Score\",'C. PoC Adj Factor Scoring'!$E$4:$J$4,0),TRUE)","v":1},{"$f":"VLOOKUP(OFFSET($B:$B,,MATCH(P$4,$B$4:$F$4,0)-1),OFFSET('C. PoC Adj Factor Scoring'!$E$5:$J$282,,MATCH(P$4,'C. PoC Adj Factor Scoring'!$E$3:$AH$3,0)-1),MATCH(P$2&\" Score\",'C. PoC Adj Factor Scoring'!$E$4:$J$4,0),TRUE)","v":1},{"$f":"VLOOKUP(OFFSET($B:$B,,MATCH(Q$4,$B$4:$F$4,0)-1),OFFSET('C. PoC Adj Factor Scoring'!$E$5:$J$282,,MATCH(Q$4,'C. PoC Adj Factor Scoring'!$E$3:$AH$3,0)-1),MATCH(Q$2&\" Score\",'C. PoC Adj Factor Scoring'!$E$4:$J$4,0),TRUE)","v":1},{"$f":"VLOOKUP(OFFSET($B:$B,,MATCH(R$4,$B$4:$F$4,0)-1),OFFSET('C. PoC Adj Factor Scoring'!$E$5:$J$282,,MATCH(R$4,'C. PoC Adj Factor Scoring'!$E$3:$AH$3,0)-1),MATCH(R$2&\" Score\",'C. PoC Adj Factor Scoring'!$E$4:$J$4,0),TRUE)","v":1},{"$f":"VLOOKUP(OFFSET($B:$B,,MATCH(S$4,$B$4:$F$4,0)-1),OFFSET('C. PoC Adj Factor Scoring'!$E$5:$J$282,,MATCH(S$4,'C. PoC Adj Factor Scoring'!$E$3:$AH$3,0)-1),MATCH(S$2&\" Score\",'C. PoC Adj Factor Scoring'!$E$4:$J$4,0),TRUE)","v":1},{"$f":"VLOOKUP(OFFSET($B:$B,,MATCH(T$4,$B$4:$F$4,0)-1),OFFSET('C. PoC Adj Factor Scoring'!$E$5:$J$282,,MATCH(T$4,'C. PoC Adj Factor Scoring'!$E$3:$AH$3,0)-1),MATCH(T$2&\" Score\",'C. PoC Adj Factor Scoring'!$E$4:$J$4,0),TRUE)","v":1},{"$f":"VLOOKUP(OFFSET($B:$B,,MATCH(U$4,$B$4:$F$4,0)-1),OFFSET('C. PoC Adj Factor Scoring'!$E$5:$J$282,,MATCH(U$4,'C. PoC Adj Factor Scoring'!$E$3:$AH$3,0)-1),MATCH(U$2&\" Score\",'C. PoC Adj Factor Scoring'!$E$4:$J$4,0),TRUE)","v":1},{"$f":"VLOOKUP(OFFSET($B:$B,,MATCH(V$4,$B$4:$F$4,0)-1),OFFSET('C. PoC Adj Factor Scoring'!$E$5:$J$282,,MATCH(V$4,'C. PoC Adj Factor Scoring'!$E$3:$AH$3,0)-1),MATCH(V$2&\" Score\",'C. PoC Adj Factor Scoring'!$E$4:$J$4,0),TRUE)","v":1},{"$f":"VLOOKUP(OFFSET($B:$B,,MATCH(W$4,$B$4:$F$4,0)-1),OFFSET('C. PoC Adj Factor Scoring'!$E$5:$J$282,,MATCH(W$4,'C. PoC Adj Factor Scoring'!$E$3:$AH$3,0)-1),MATCH(W$2&\" Score\",'C. PoC Adj Factor Scoring'!$E$4:$J$4,0),TRUE)","v":1},{"$f":"VLOOKUP(OFFSET($B:$B,,MATCH(X$4,$B$4:$F$4,0)-1),OFFSET('C. PoC Adj Factor Scoring'!$E$5:$J$282,,MATCH(X$4,'C. PoC Adj Factor Scoring'!$E$3:$AH$3,0)-1),MATCH(X$2&\" Score\",'C. PoC Adj Factor Scoring'!$E$4:$J$4,0),TRUE)","v":1},{"$f":"VLOOKUP(OFFSET($B:$B,,MATCH(Y$4,$B$4:$F$4,0)-1),OFFSET('C. PoC Adj Factor Scoring'!$E$5:$J$282,,MATCH(Y$4,'C. PoC Adj Factor Scoring'!$E$3:$AH$3,0)-1),MATCH(Y$2&\" Score\",'C. PoC Adj Factor Scoring'!$E$4:$J$4,0),TRUE)","v":1},{"$f":"VLOOKUP(OFFSET($B:$B,,MATCH(Z$4,$B$4:$F$4,0)-1),OFFSET('C. PoC Adj Factor Scoring'!$E$5:$J$282,,MATCH(Z$4,'C. PoC Adj Factor Scoring'!$E$3:$AH$3,0)-1),MATCH(Z$2&\" Score\",'C. PoC Adj Factor Scoring'!$E$4:$J$4,0),TRUE)","v":1},{"$f":"VLOOKUP(OFFSET($B:$B,,MATCH(AA$4,$B$4:$F$4,0)-1),OFFSET('C. PoC Adj Factor Scoring'!$E$5:$J$282,,MATCH(AA$4,'C. PoC Adj Factor Scoring'!$E$3:$AH$3,0)-1),MATCH(AA$2&\" Score\",'C. PoC Adj Factor Scoring'!$E$4:$J$4,0),TRUE)","v":3},{"$f":"VLOOKUP(OFFSET($B:$B,,MATCH(AB$4,$B$4:$F$4,0)-1),OFFSET('C. PoC Adj Factor Scoring'!$E$5:$J$282,,MATCH(AB$4,'C. PoC Adj Factor Scoring'!$E$3:$AH$3,0)-1),MATCH(AB$2&\" Score\",'C. PoC Adj Factor Scoring'!$E$4:$J$4,0),TRUE)","v":1},{"$f":"VLOOKUP(OFFSET($B:$B,,MATCH(AC$4,$B$4:$F$4,0)-1),OFFSET('C. PoC Adj Factor Scoring'!$E$5:$J$282,,MATCH(AC$4,'C. PoC Adj Factor Scoring'!$E$3:$AH$3,0)-1),MATCH(AC$2&\" Score\",'C. PoC Adj Factor Scoring'!$E$4:$J$4,0),TRUE)","v":1},{"$f":"VLOOKUP(OFFSET($B:$B,,MATCH(AD$4,$B$4:$F$4,0)-1),OFFSET('C. PoC Adj Factor Scoring'!$E$5:$J$282,,MATCH(AD$4,'C. PoC Adj Factor Scoring'!$E$3:$AH$3,0)-1),MATCH(AD$2&\" Score\",'C. PoC Adj Factor Scoring'!$E$4:$J$4,0),TRUE)","v":1},{"$f":"VLOOKUP(OFFSET($B:$B,,MATCH(AE$4,$B$4:$F$4,0)-1),OFFSET('C. PoC Adj Factor Scoring'!$E$5:$J$282,,MATCH(AE$4,'C. PoC Adj Factor Scoring'!$E$3:$AH$3,0)-1),MATCH(AE$2&\" Score\",'C. PoC Adj Factor Scoring'!$E$4:$J$4,0),TRUE)","v":1}]
[{"$f":"'A. Population Info'!A356","v":1000400520},{"$f":"'A. Population Info'!L356","v":"OIL"},{"$f":"'A. Population Info'!M356","v":0},{"$f":"'A. Population Info'!N356","v":0},{"$f":"'A. Population Info'!O356","v":0},{"$f":"'A. Population Info'!P356","v":0},{"$f":"VLOOKUP(OFFSET($B:$B,,MATCH(G$4,$B$4:$F$4,0)-1),OFFSET('C. PoC Adj Factor Scoring'!$E$5:$J$282,,MATCH(G$4,'C. PoC Adj Factor Scoring'!$E$3:$AH$3,0)-1),MATCH(G$2&\" Score\",'C. PoC Adj Factor Scoring'!$E$4:$J$4,0),TRUE)","v":4},{"$f":"VLOOKUP(OFFSET($B:$B,,MATCH(H$4,$B$4:$F$4,0)-1),OFFSET('C. PoC Adj Factor Scoring'!$E$5:$J$282,,MATCH(H$4,'C. PoC Adj Factor Scoring'!$E$3:$AH$3,0)-1),MATCH(H$2&\" Score\",'C. PoC Adj Factor Scoring'!$E$4:$J$4,0),TRUE)","v":1},{"$f":"VLOOKUP(OFFSET($B:$B,,MATCH(I$4,$B$4:$F$4,0)-1),OFFSET('C. PoC Adj Factor Scoring'!$E$5:$J$282,,MATCH(I$4,'C. PoC Adj Factor Scoring'!$E$3:$AH$3,0)-1),MATCH(I$2&\" Score\",'C. PoC Adj Factor Scoring'!$E$4:$J$4,0),TRUE)","v":1},{"$f":"VLOOKUP(OFFSET($B:$B,,MATCH(J$4,$B$4:$F$4,0)-1),OFFSET('C. PoC Adj Factor Scoring'!$E$5:$J$282,,MATCH(J$4,'C. PoC Adj Factor Scoring'!$E$3:$AH$3,0)-1),MATCH(J$2&\" Score\",'C. PoC Adj Factor Scoring'!$E$4:$J$4,0),TRUE)","v":1},{"$f":"VLOOKUP(OFFSET($B:$B,,MATCH(K$4,$B$4:$F$4,0)-1),OFFSET('C. PoC Adj Factor Scoring'!$E$5:$J$282,,MATCH(K$4,'C. PoC Adj Factor Scoring'!$E$3:$AH$3,0)-1),MATCH(K$2&\" Score\",'C. PoC Adj Factor Scoring'!$E$4:$J$4,0),TRUE)","v":1},{"$f":"VLOOKUP(OFFSET($B:$B,,MATCH(L$4,$B$4:$F$4,0)-1),OFFSET('C. PoC Adj Factor Scoring'!$E$5:$J$282,,MATCH(L$4,'C. PoC Adj Factor Scoring'!$E$3:$AH$3,0)-1),MATCH(L$2&\" Score\",'C. PoC Adj Factor Scoring'!$E$4:$J$4,0),TRUE)","v":1},{"$f":"VLOOKUP(OFFSET($B:$B,,MATCH(M$4,$B$4:$F$4,0)-1),OFFSET('C. PoC Adj Factor Scoring'!$E$5:$J$282,,MATCH(M$4,'C. PoC Adj Factor Scoring'!$E$3:$AH$3,0)-1),MATCH(M$2&\" Score\",'C. PoC Adj Factor Scoring'!$E$4:$J$4,0),TRUE)","v":1},{"$f":"VLOOKUP(OFFSET($B:$B,,MATCH(N$4,$B$4:$F$4,0)-1),OFFSET('C. PoC Adj Factor Scoring'!$E$5:$J$282,,MATCH(N$4,'C. PoC Adj Factor Scoring'!$E$3:$AH$3,0)-1),MATCH(N$2&\" Score\",'C. PoC Adj Factor Scoring'!$E$4:$J$4,0),TRUE)","v":1},{"$f":"VLOOKUP(OFFSET($B:$B,,MATCH(O$4,$B$4:$F$4,0)-1),OFFSET('C. PoC Adj Factor Scoring'!$E$5:$J$282,,MATCH(O$4,'C. PoC Adj Factor Scoring'!$E$3:$AH$3,0)-1),MATCH(O$2&\" Score\",'C. PoC Adj Factor Scoring'!$E$4:$J$4,0),TRUE)","v":1},{"$f":"VLOOKUP(OFFSET($B:$B,,MATCH(P$4,$B$4:$F$4,0)-1),OFFSET('C. PoC Adj Factor Scoring'!$E$5:$J$282,,MATCH(P$4,'C. PoC Adj Factor Scoring'!$E$3:$AH$3,0)-1),MATCH(P$2&\" Score\",'C. PoC Adj Factor Scoring'!$E$4:$J$4,0),TRUE)","v":1},{"$f":"VLOOKUP(OFFSET($B:$B,,MATCH(Q$4,$B$4:$F$4,0)-1),OFFSET('C. PoC Adj Factor Scoring'!$E$5:$J$282,,MATCH(Q$4,'C. PoC Adj Factor Scoring'!$E$3:$AH$3,0)-1),MATCH(Q$2&\" Score\",'C. PoC Adj Factor Scoring'!$E$4:$J$4,0),TRUE)","v":1},{"$f":"VLOOKUP(OFFSET($B:$B,,MATCH(R$4,$B$4:$F$4,0)-1),OFFSET('C. PoC Adj Factor Scoring'!$E$5:$J$282,,MATCH(R$4,'C. PoC Adj Factor Scoring'!$E$3:$AH$3,0)-1),MATCH(R$2&\" Score\",'C. PoC Adj Factor Scoring'!$E$4:$J$4,0),TRUE)","v":1},{"$f":"VLOOKUP(OFFSET($B:$B,,MATCH(S$4,$B$4:$F$4,0)-1),OFFSET('C. PoC Adj Factor Scoring'!$E$5:$J$282,,MATCH(S$4,'C. PoC Adj Factor Scoring'!$E$3:$AH$3,0)-1),MATCH(S$2&\" Score\",'C. PoC Adj Factor Scoring'!$E$4:$J$4,0),TRUE)","v":1},{"$f":"VLOOKUP(OFFSET($B:$B,,MATCH(T$4,$B$4:$F$4,0)-1),OFFSET('C. PoC Adj Factor Scoring'!$E$5:$J$282,,MATCH(T$4,'C. PoC Adj Factor Scoring'!$E$3:$AH$3,0)-1),MATCH(T$2&\" Score\",'C. PoC Adj Factor Scoring'!$E$4:$J$4,0),TRUE)","v":1},{"$f":"VLOOKUP(OFFSET($B:$B,,MATCH(U$4,$B$4:$F$4,0)-1),OFFSET('C. PoC Adj Factor Scoring'!$E$5:$J$282,,MATCH(U$4,'C. PoC Adj Factor Scoring'!$E$3:$AH$3,0)-1),MATCH(U$2&\" Score\",'C. PoC Adj Factor Scoring'!$E$4:$J$4,0),TRUE)","v":1},{"$f":"VLOOKUP(OFFSET($B:$B,,MATCH(V$4,$B$4:$F$4,0)-1),OFFSET('C. PoC Adj Factor Scoring'!$E$5:$J$282,,MATCH(V$4,'C. PoC Adj Factor Scoring'!$E$3:$AH$3,0)-1),MATCH(V$2&\" Score\",'C. PoC Adj Factor Scoring'!$E$4:$J$4,0),TRUE)","v":1},{"$f":"VLOOKUP(OFFSET($B:$B,,MATCH(W$4,$B$4:$F$4,0)-1),OFFSET('C. PoC Adj Factor Scoring'!$E$5:$J$282,,MATCH(W$4,'C. PoC Adj Factor Scoring'!$E$3:$AH$3,0)-1),MATCH(W$2&\" Score\",'C. PoC Adj Factor Scoring'!$E$4:$J$4,0),TRUE)","v":1},{"$f":"VLOOKUP(OFFSET($B:$B,,MATCH(X$4,$B$4:$F$4,0)-1),OFFSET('C. PoC Adj Factor Scoring'!$E$5:$J$282,,MATCH(X$4,'C. PoC Adj Factor Scoring'!$E$3:$AH$3,0)-1),MATCH(X$2&\" Score\",'C. PoC Adj Factor Scoring'!$E$4:$J$4,0),TRUE)","v":1},{"$f":"VLOOKUP(OFFSET($B:$B,,MATCH(Y$4,$B$4:$F$4,0)-1),OFFSET('C. PoC Adj Factor Scoring'!$E$5:$J$282,,MATCH(Y$4,'C. PoC Adj Factor Scoring'!$E$3:$AH$3,0)-1),MATCH(Y$2&\" Score\",'C. PoC Adj Factor Scoring'!$E$4:$J$4,0),TRUE)","v":1},{"$f":"VLOOKUP(OFFSET($B:$B,,MATCH(Z$4,$B$4:$F$4,0)-1),OFFSET('C. PoC Adj Factor Scoring'!$E$5:$J$282,,MATCH(Z$4,'C. PoC Adj Factor Scoring'!$E$3:$AH$3,0)-1),MATCH(Z$2&\" Score\",'C. PoC Adj Factor Scoring'!$E$4:$J$4,0),TRUE)","v":1},{"$f":"VLOOKUP(OFFSET($B:$B,,MATCH(AA$4,$B$4:$F$4,0)-1),OFFSET('C. PoC Adj Factor Scoring'!$E$5:$J$282,,MATCH(AA$4,'C. PoC Adj Factor Scoring'!$E$3:$AH$3,0)-1),MATCH(AA$2&\" Score\",'C. PoC Adj Factor Scoring'!$E$4:$J$4,0),TRUE)","v":3},{"$f":"VLOOKUP(OFFSET($B:$B,,MATCH(AB$4,$B$4:$F$4,0)-1),OFFSET('C. PoC Adj Factor Scoring'!$E$5:$J$282,,MATCH(AB$4,'C. PoC Adj Factor Scoring'!$E$3:$AH$3,0)-1),MATCH(AB$2&\" Score\",'C. PoC Adj Factor Scoring'!$E$4:$J$4,0),TRUE)","v":1},{"$f":"VLOOKUP(OFFSET($B:$B,,MATCH(AC$4,$B$4:$F$4,0)-1),OFFSET('C. PoC Adj Factor Scoring'!$E$5:$J$282,,MATCH(AC$4,'C. PoC Adj Factor Scoring'!$E$3:$AH$3,0)-1),MATCH(AC$2&\" Score\",'C. PoC Adj Factor Scoring'!$E$4:$J$4,0),TRUE)","v":1},{"$f":"VLOOKUP(OFFSET($B:$B,,MATCH(AD$4,$B$4:$F$4,0)-1),OFFSET('C. PoC Adj Factor Scoring'!$E$5:$J$282,,MATCH(AD$4,'C. PoC Adj Factor Scoring'!$E$3:$AH$3,0)-1),MATCH(AD$2&\" Score\",'C. PoC Adj Factor Scoring'!$E$4:$J$4,0),TRUE)","v":1},{"$f":"VLOOKUP(OFFSET($B:$B,,MATCH(AE$4,$B$4:$F$4,0)-1),OFFSET('C. PoC Adj Factor Scoring'!$E$5:$J$282,,MATCH(AE$4,'C. PoC Adj Factor Scoring'!$E$3:$AH$3,0)-1),MATCH(AE$2&\" Score\",'C. PoC Adj Factor Scoring'!$E$4:$J$4,0),TRUE)","v":1}]
[{"$f":"'A. Population Info'!A357","v":1000400548},{"$f":"'A. Population Info'!L357","v":"OIL"},{"$f":"'A. Population Info'!M357","v":0},{"$f":"'A. Population Info'!N357","v":0},{"$f":"'A. Population Info'!O357","v":0},{"$f":"'A. Population Info'!P357","v":0},{"$f":"VLOOKUP(OFFSET($B:$B,,MATCH(G$4,$B$4:$F$4,0)-1),OFFSET('C. PoC Adj Factor Scoring'!$E$5:$J$282,,MATCH(G$4,'C. PoC Adj Factor Scoring'!$E$3:$AH$3,0)-1),MATCH(G$2&\" Score\",'C. PoC Adj Factor Scoring'!$E$4:$J$4,0),TRUE)","v":4},{"$f":"VLOOKUP(OFFSET($B:$B,,MATCH(H$4,$B$4:$F$4,0)-1),OFFSET('C. PoC Adj Factor Scoring'!$E$5:$J$282,,MATCH(H$4,'C. PoC Adj Factor Scoring'!$E$3:$AH$3,0)-1),MATCH(H$2&\" Score\",'C. PoC Adj Factor Scoring'!$E$4:$J$4,0),TRUE)","v":1},{"$f":"VLOOKUP(OFFSET($B:$B,,MATCH(I$4,$B$4:$F$4,0)-1),OFFSET('C. PoC Adj Factor Scoring'!$E$5:$J$282,,MATCH(I$4,'C. PoC Adj Factor Scoring'!$E$3:$AH$3,0)-1),MATCH(I$2&\" Score\",'C. PoC Adj Factor Scoring'!$E$4:$J$4,0),TRUE)","v":1},{"$f":"VLOOKUP(OFFSET($B:$B,,MATCH(J$4,$B$4:$F$4,0)-1),OFFSET('C. PoC Adj Factor Scoring'!$E$5:$J$282,,MATCH(J$4,'C. PoC Adj Factor Scoring'!$E$3:$AH$3,0)-1),MATCH(J$2&\" Score\",'C. PoC Adj Factor Scoring'!$E$4:$J$4,0),TRUE)","v":1},{"$f":"VLOOKUP(OFFSET($B:$B,,MATCH(K$4,$B$4:$F$4,0)-1),OFFSET('C. PoC Adj Factor Scoring'!$E$5:$J$282,,MATCH(K$4,'C. PoC Adj Factor Scoring'!$E$3:$AH$3,0)-1),MATCH(K$2&\" Score\",'C. PoC Adj Factor Scoring'!$E$4:$J$4,0),TRUE)","v":1},{"$f":"VLOOKUP(OFFSET($B:$B,,MATCH(L$4,$B$4:$F$4,0)-1),OFFSET('C. PoC Adj Factor Scoring'!$E$5:$J$282,,MATCH(L$4,'C. PoC Adj Factor Scoring'!$E$3:$AH$3,0)-1),MATCH(L$2&\" Score\",'C. PoC Adj Factor Scoring'!$E$4:$J$4,0),TRUE)","v":1},{"$f":"VLOOKUP(OFFSET($B:$B,,MATCH(M$4,$B$4:$F$4,0)-1),OFFSET('C. PoC Adj Factor Scoring'!$E$5:$J$282,,MATCH(M$4,'C. PoC Adj Factor Scoring'!$E$3:$AH$3,0)-1),MATCH(M$2&\" Score\",'C. PoC Adj Factor Scoring'!$E$4:$J$4,0),TRUE)","v":1},{"$f":"VLOOKUP(OFFSET($B:$B,,MATCH(N$4,$B$4:$F$4,0)-1),OFFSET('C. PoC Adj Factor Scoring'!$E$5:$J$282,,MATCH(N$4,'C. PoC Adj Factor Scoring'!$E$3:$AH$3,0)-1),MATCH(N$2&\" Score\",'C. PoC Adj Factor Scoring'!$E$4:$J$4,0),TRUE)","v":1},{"$f":"VLOOKUP(OFFSET($B:$B,,MATCH(O$4,$B$4:$F$4,0)-1),OFFSET('C. PoC Adj Factor Scoring'!$E$5:$J$282,,MATCH(O$4,'C. PoC Adj Factor Scoring'!$E$3:$AH$3,0)-1),MATCH(O$2&\" Score\",'C. PoC Adj Factor Scoring'!$E$4:$J$4,0),TRUE)","v":1},{"$f":"VLOOKUP(OFFSET($B:$B,,MATCH(P$4,$B$4:$F$4,0)-1),OFFSET('C. PoC Adj Factor Scoring'!$E$5:$J$282,,MATCH(P$4,'C. PoC Adj Factor Scoring'!$E$3:$AH$3,0)-1),MATCH(P$2&\" Score\",'C. PoC Adj Factor Scoring'!$E$4:$J$4,0),TRUE)","v":1},{"$f":"VLOOKUP(OFFSET($B:$B,,MATCH(Q$4,$B$4:$F$4,0)-1),OFFSET('C. PoC Adj Factor Scoring'!$E$5:$J$282,,MATCH(Q$4,'C. PoC Adj Factor Scoring'!$E$3:$AH$3,0)-1),MATCH(Q$2&\" Score\",'C. PoC Adj Factor Scoring'!$E$4:$J$4,0),TRUE)","v":1},{"$f":"VLOOKUP(OFFSET($B:$B,,MATCH(R$4,$B$4:$F$4,0)-1),OFFSET('C. PoC Adj Factor Scoring'!$E$5:$J$282,,MATCH(R$4,'C. PoC Adj Factor Scoring'!$E$3:$AH$3,0)-1),MATCH(R$2&\" Score\",'C. PoC Adj Factor Scoring'!$E$4:$J$4,0),TRUE)","v":1},{"$f":"VLOOKUP(OFFSET($B:$B,,MATCH(S$4,$B$4:$F$4,0)-1),OFFSET('C. PoC Adj Factor Scoring'!$E$5:$J$282,,MATCH(S$4,'C. PoC Adj Factor Scoring'!$E$3:$AH$3,0)-1),MATCH(S$2&\" Score\",'C. PoC Adj Factor Scoring'!$E$4:$J$4,0),TRUE)","v":1},{"$f":"VLOOKUP(OFFSET($B:$B,,MATCH(T$4,$B$4:$F$4,0)-1),OFFSET('C. PoC Adj Factor Scoring'!$E$5:$J$282,,MATCH(T$4,'C. PoC Adj Factor Scoring'!$E$3:$AH$3,0)-1),MATCH(T$2&\" Score\",'C. PoC Adj Factor Scoring'!$E$4:$J$4,0),TRUE)","v":1},{"$f":"VLOOKUP(OFFSET($B:$B,,MATCH(U$4,$B$4:$F$4,0)-1),OFFSET('C. PoC Adj Factor Scoring'!$E$5:$J$282,,MATCH(U$4,'C. PoC Adj Factor Scoring'!$E$3:$AH$3,0)-1),MATCH(U$2&\" Score\",'C. PoC Adj Factor Scoring'!$E$4:$J$4,0),TRUE)","v":1},{"$f":"VLOOKUP(OFFSET($B:$B,,MATCH(V$4,$B$4:$F$4,0)-1),OFFSET('C. PoC Adj Factor Scoring'!$E$5:$J$282,,MATCH(V$4,'C. PoC Adj Factor Scoring'!$E$3:$AH$3,0)-1),MATCH(V$2&\" Score\",'C. PoC Adj Factor Scoring'!$E$4:$J$4,0),TRUE)","v":1},{"$f":"VLOOKUP(OFFSET($B:$B,,MATCH(W$4,$B$4:$F$4,0)-1),OFFSET('C. PoC Adj Factor Scoring'!$E$5:$J$282,,MATCH(W$4,'C. PoC Adj Factor Scoring'!$E$3:$AH$3,0)-1),MATCH(W$2&\" Score\",'C. PoC Adj Factor Scoring'!$E$4:$J$4,0),TRUE)","v":1},{"$f":"VLOOKUP(OFFSET($B:$B,,MATCH(X$4,$B$4:$F$4,0)-1),OFFSET('C. PoC Adj Factor Scoring'!$E$5:$J$282,,MATCH(X$4,'C. PoC Adj Factor Scoring'!$E$3:$AH$3,0)-1),MATCH(X$2&\" Score\",'C. PoC Adj Factor Scoring'!$E$4:$J$4,0),TRUE)","v":1},{"$f":"VLOOKUP(OFFSET($B:$B,,MATCH(Y$4,$B$4:$F$4,0)-1),OFFSET('C. PoC Adj Factor Scoring'!$E$5:$J$282,,MATCH(Y$4,'C. PoC Adj Factor Scoring'!$E$3:$AH$3,0)-1),MATCH(Y$2&\" Score\",'C. PoC Adj Factor Scoring'!$E$4:$J$4,0),TRUE)","v":1},{"$f":"VLOOKUP(OFFSET($B:$B,,MATCH(Z$4,$B$4:$F$4,0)-1),OFFSET('C. PoC Adj Factor Scoring'!$E$5:$J$282,,MATCH(Z$4,'C. PoC Adj Factor Scoring'!$E$3:$AH$3,0)-1),MATCH(Z$2&\" Score\",'C. PoC Adj Factor Scoring'!$E$4:$J$4,0),TRUE)","v":1},{"$f":"VLOOKUP(OFFSET($B:$B,,MATCH(AA$4,$B$4:$F$4,0)-1),OFFSET('C. PoC Adj Factor Scoring'!$E$5:$J$282,,MATCH(AA$4,'C. PoC Adj Factor Scoring'!$E$3:$AH$3,0)-1),MATCH(AA$2&\" Score\",'C. PoC Adj Factor Scoring'!$E$4:$J$4,0),TRUE)","v":3},{"$f":"VLOOKUP(OFFSET($B:$B,,MATCH(AB$4,$B$4:$F$4,0)-1),OFFSET('C. PoC Adj Factor Scoring'!$E$5:$J$282,,MATCH(AB$4,'C. PoC Adj Factor Scoring'!$E$3:$AH$3,0)-1),MATCH(AB$2&\" Score\",'C. PoC Adj Factor Scoring'!$E$4:$J$4,0),TRUE)","v":1},{"$f":"VLOOKUP(OFFSET($B:$B,,MATCH(AC$4,$B$4:$F$4,0)-1),OFFSET('C. PoC Adj Factor Scoring'!$E$5:$J$282,,MATCH(AC$4,'C. PoC Adj Factor Scoring'!$E$3:$AH$3,0)-1),MATCH(AC$2&\" Score\",'C. PoC Adj Factor Scoring'!$E$4:$J$4,0),TRUE)","v":1},{"$f":"VLOOKUP(OFFSET($B:$B,,MATCH(AD$4,$B$4:$F$4,0)-1),OFFSET('C. PoC Adj Factor Scoring'!$E$5:$J$282,,MATCH(AD$4,'C. PoC Adj Factor Scoring'!$E$3:$AH$3,0)-1),MATCH(AD$2&\" Score\",'C. PoC Adj Factor Scoring'!$E$4:$J$4,0),TRUE)","v":1},{"$f":"VLOOKUP(OFFSET($B:$B,,MATCH(AE$4,$B$4:$F$4,0)-1),OFFSET('C. PoC Adj Factor Scoring'!$E$5:$J$282,,MATCH(AE$4,'C. PoC Adj Factor Scoring'!$E$3:$AH$3,0)-1),MATCH(AE$2&\" Score\",'C. PoC Adj Factor Scoring'!$E$4:$J$4,0),TRUE)","v":1}]
[{"$f":"'A. Population Info'!A358","v":1000400598},{"$f":"'A. Population Info'!L358","v":"OIL"},{"$f":"'A. Population Info'!M358","v":0},{"$f":"'A. Population Info'!N358","v":0},{"$f":"'A. Population Info'!O358","v":0},{"$f":"'A. Population Info'!P358","v":0},{"$f":"VLOOKUP(OFFSET($B:$B,,MATCH(G$4,$B$4:$F$4,0)-1),OFFSET('C. PoC Adj Factor Scoring'!$E$5:$J$282,,MATCH(G$4,'C. PoC Adj Factor Scoring'!$E$3:$AH$3,0)-1),MATCH(G$2&\" Score\",'C. PoC Adj Factor Scoring'!$E$4:$J$4,0),TRUE)","v":4},{"$f":"VLOOKUP(OFFSET($B:$B,,MATCH(H$4,$B$4:$F$4,0)-1),OFFSET('C. PoC Adj Factor Scoring'!$E$5:$J$282,,MATCH(H$4,'C. PoC Adj Factor Scoring'!$E$3:$AH$3,0)-1),MATCH(H$2&\" Score\",'C. PoC Adj Factor Scoring'!$E$4:$J$4,0),TRUE)","v":1},{"$f":"VLOOKUP(OFFSET($B:$B,,MATCH(I$4,$B$4:$F$4,0)-1),OFFSET('C. PoC Adj Factor Scoring'!$E$5:$J$282,,MATCH(I$4,'C. PoC Adj Factor Scoring'!$E$3:$AH$3,0)-1),MATCH(I$2&\" Score\",'C. PoC Adj Factor Scoring'!$E$4:$J$4,0),TRUE)","v":1},{"$f":"VLOOKUP(OFFSET($B:$B,,MATCH(J$4,$B$4:$F$4,0)-1),OFFSET('C. PoC Adj Factor Scoring'!$E$5:$J$282,,MATCH(J$4,'C. PoC Adj Factor Scoring'!$E$3:$AH$3,0)-1),MATCH(J$2&\" Score\",'C. PoC Adj Factor Scoring'!$E$4:$J$4,0),TRUE)","v":1},{"$f":"VLOOKUP(OFFSET($B:$B,,MATCH(K$4,$B$4:$F$4,0)-1),OFFSET('C. PoC Adj Factor Scoring'!$E$5:$J$282,,MATCH(K$4,'C. PoC Adj Factor Scoring'!$E$3:$AH$3,0)-1),MATCH(K$2&\" Score\",'C. PoC Adj Factor Scoring'!$E$4:$J$4,0),TRUE)","v":1},{"$f":"VLOOKUP(OFFSET($B:$B,,MATCH(L$4,$B$4:$F$4,0)-1),OFFSET('C. PoC Adj Factor Scoring'!$E$5:$J$282,,MATCH(L$4,'C. PoC Adj Factor Scoring'!$E$3:$AH$3,0)-1),MATCH(L$2&\" Score\",'C. PoC Adj Factor Scoring'!$E$4:$J$4,0),TRUE)","v":1},{"$f":"VLOOKUP(OFFSET($B:$B,,MATCH(M$4,$B$4:$F$4,0)-1),OFFSET('C. PoC Adj Factor Scoring'!$E$5:$J$282,,MATCH(M$4,'C. PoC Adj Factor Scoring'!$E$3:$AH$3,0)-1),MATCH(M$2&\" Score\",'C. PoC Adj Factor Scoring'!$E$4:$J$4,0),TRUE)","v":1},{"$f":"VLOOKUP(OFFSET($B:$B,,MATCH(N$4,$B$4:$F$4,0)-1),OFFSET('C. PoC Adj Factor Scoring'!$E$5:$J$282,,MATCH(N$4,'C. PoC Adj Factor Scoring'!$E$3:$AH$3,0)-1),MATCH(N$2&\" Score\",'C. PoC Adj Factor Scoring'!$E$4:$J$4,0),TRUE)","v":1},{"$f":"VLOOKUP(OFFSET($B:$B,,MATCH(O$4,$B$4:$F$4,0)-1),OFFSET('C. PoC Adj Factor Scoring'!$E$5:$J$282,,MATCH(O$4,'C. PoC Adj Factor Scoring'!$E$3:$AH$3,0)-1),MATCH(O$2&\" Score\",'C. PoC Adj Factor Scoring'!$E$4:$J$4,0),TRUE)","v":1},{"$f":"VLOOKUP(OFFSET($B:$B,,MATCH(P$4,$B$4:$F$4,0)-1),OFFSET('C. PoC Adj Factor Scoring'!$E$5:$J$282,,MATCH(P$4,'C. PoC Adj Factor Scoring'!$E$3:$AH$3,0)-1),MATCH(P$2&\" Score\",'C. PoC Adj Factor Scoring'!$E$4:$J$4,0),TRUE)","v":1},{"$f":"VLOOKUP(OFFSET($B:$B,,MATCH(Q$4,$B$4:$F$4,0)-1),OFFSET('C. PoC Adj Factor Scoring'!$E$5:$J$282,,MATCH(Q$4,'C. PoC Adj Factor Scoring'!$E$3:$AH$3,0)-1),MATCH(Q$2&\" Score\",'C. PoC Adj Factor Scoring'!$E$4:$J$4,0),TRUE)","v":1},{"$f":"VLOOKUP(OFFSET($B:$B,,MATCH(R$4,$B$4:$F$4,0)-1),OFFSET('C. PoC Adj Factor Scoring'!$E$5:$J$282,,MATCH(R$4,'C. PoC Adj Factor Scoring'!$E$3:$AH$3,0)-1),MATCH(R$2&\" Score\",'C. PoC Adj Factor Scoring'!$E$4:$J$4,0),TRUE)","v":1},{"$f":"VLOOKUP(OFFSET($B:$B,,MATCH(S$4,$B$4:$F$4,0)-1),OFFSET('C. PoC Adj Factor Scoring'!$E$5:$J$282,,MATCH(S$4,'C. PoC Adj Factor Scoring'!$E$3:$AH$3,0)-1),MATCH(S$2&\" Score\",'C. PoC Adj Factor Scoring'!$E$4:$J$4,0),TRUE)","v":1},{"$f":"VLOOKUP(OFFSET($B:$B,,MATCH(T$4,$B$4:$F$4,0)-1),OFFSET('C. PoC Adj Factor Scoring'!$E$5:$J$282,,MATCH(T$4,'C. PoC Adj Factor Scoring'!$E$3:$AH$3,0)-1),MATCH(T$2&\" Score\",'C. PoC Adj Factor Scoring'!$E$4:$J$4,0),TRUE)","v":1},{"$f":"VLOOKUP(OFFSET($B:$B,,MATCH(U$4,$B$4:$F$4,0)-1),OFFSET('C. PoC Adj Factor Scoring'!$E$5:$J$282,,MATCH(U$4,'C. PoC Adj Factor Scoring'!$E$3:$AH$3,0)-1),MATCH(U$2&\" Score\",'C. PoC Adj Factor Scoring'!$E$4:$J$4,0),TRUE)","v":1},{"$f":"VLOOKUP(OFFSET($B:$B,,MATCH(V$4,$B$4:$F$4,0)-1),OFFSET('C. PoC Adj Factor Scoring'!$E$5:$J$282,,MATCH(V$4,'C. PoC Adj Factor Scoring'!$E$3:$AH$3,0)-1),MATCH(V$2&\" Score\",'C. PoC Adj Factor Scoring'!$E$4:$J$4,0),TRUE)","v":1},{"$f":"VLOOKUP(OFFSET($B:$B,,MATCH(W$4,$B$4:$F$4,0)-1),OFFSET('C. PoC Adj Factor Scoring'!$E$5:$J$282,,MATCH(W$4,'C. PoC Adj Factor Scoring'!$E$3:$AH$3,0)-1),MATCH(W$2&\" Score\",'C. PoC Adj Factor Scoring'!$E$4:$J$4,0),TRUE)","v":1},{"$f":"VLOOKUP(OFFSET($B:$B,,MATCH(X$4,$B$4:$F$4,0)-1),OFFSET('C. PoC Adj Factor Scoring'!$E$5:$J$282,,MATCH(X$4,'C. PoC Adj Factor Scoring'!$E$3:$AH$3,0)-1),MATCH(X$2&\" Score\",'C. PoC Adj Factor Scoring'!$E$4:$J$4,0),TRUE)","v":1},{"$f":"VLOOKUP(OFFSET($B:$B,,MATCH(Y$4,$B$4:$F$4,0)-1),OFFSET('C. PoC Adj Factor Scoring'!$E$5:$J$282,,MATCH(Y$4,'C. PoC Adj Factor Scoring'!$E$3:$AH$3,0)-1),MATCH(Y$2&\" Score\",'C. PoC Adj Factor Scoring'!$E$4:$J$4,0),TRUE)","v":1},{"$f":"VLOOKUP(OFFSET($B:$B,,MATCH(Z$4,$B$4:$F$4,0)-1),OFFSET('C. PoC Adj Factor Scoring'!$E$5:$J$282,,MATCH(Z$4,'C. PoC Adj Factor Scoring'!$E$3:$AH$3,0)-1),MATCH(Z$2&\" Score\",'C. PoC Adj Factor Scoring'!$E$4:$J$4,0),TRUE)","v":1},{"$f":"VLOOKUP(OFFSET($B:$B,,MATCH(AA$4,$B$4:$F$4,0)-1),OFFSET('C. PoC Adj Factor Scoring'!$E$5:$J$282,,MATCH(AA$4,'C. PoC Adj Factor Scoring'!$E$3:$AH$3,0)-1),MATCH(AA$2&\" Score\",'C. PoC Adj Factor Scoring'!$E$4:$J$4,0),TRUE)","v":3},{"$f":"VLOOKUP(OFFSET($B:$B,,MATCH(AB$4,$B$4:$F$4,0)-1),OFFSET('C. PoC Adj Factor Scoring'!$E$5:$J$282,,MATCH(AB$4,'C. PoC Adj Factor Scoring'!$E$3:$AH$3,0)-1),MATCH(AB$2&\" Score\",'C. PoC Adj Factor Scoring'!$E$4:$J$4,0),TRUE)","v":1},{"$f":"VLOOKUP(OFFSET($B:$B,,MATCH(AC$4,$B$4:$F$4,0)-1),OFFSET('C. PoC Adj Factor Scoring'!$E$5:$J$282,,MATCH(AC$4,'C. PoC Adj Factor Scoring'!$E$3:$AH$3,0)-1),MATCH(AC$2&\" Score\",'C. PoC Adj Factor Scoring'!$E$4:$J$4,0),TRUE)","v":1},{"$f":"VLOOKUP(OFFSET($B:$B,,MATCH(AD$4,$B$4:$F$4,0)-1),OFFSET('C. PoC Adj Factor Scoring'!$E$5:$J$282,,MATCH(AD$4,'C. PoC Adj Factor Scoring'!$E$3:$AH$3,0)-1),MATCH(AD$2&\" Score\",'C. PoC Adj Factor Scoring'!$E$4:$J$4,0),TRUE)","v":1},{"$f":"VLOOKUP(OFFSET($B:$B,,MATCH(AE$4,$B$4:$F$4,0)-1),OFFSET('C. PoC Adj Factor Scoring'!$E$5:$J$282,,MATCH(AE$4,'C. PoC Adj Factor Scoring'!$E$3:$AH$3,0)-1),MATCH(AE$2&\" Score\",'C. PoC Adj Factor Scoring'!$E$4:$J$4,0),TRUE)","v":1}]
[{"$f":"'A. Population Info'!A359","v":1000400719},{"$f":"'A. Population Info'!L359","v":"OIL"},{"$f":"'A. Population Info'!M359","v":0},{"$f":"'A. Population Info'!N359","v":0},{"$f":"'A. Population Info'!O359","v":0},{"$f":"'A. Population Info'!P359","v":0},{"$f":"VLOOKUP(OFFSET($B:$B,,MATCH(G$4,$B$4:$F$4,0)-1),OFFSET('C. PoC Adj Factor Scoring'!$E$5:$J$282,,MATCH(G$4,'C. PoC Adj Factor Scoring'!$E$3:$AH$3,0)-1),MATCH(G$2&\" Score\",'C. PoC Adj Factor Scoring'!$E$4:$J$4,0),TRUE)","v":4},{"$f":"VLOOKUP(OFFSET($B:$B,,MATCH(H$4,$B$4:$F$4,0)-1),OFFSET('C. PoC Adj Factor Scoring'!$E$5:$J$282,,MATCH(H$4,'C. PoC Adj Factor Scoring'!$E$3:$AH$3,0)-1),MATCH(H$2&\" Score\",'C. PoC Adj Factor Scoring'!$E$4:$J$4,0),TRUE)","v":1},{"$f":"VLOOKUP(OFFSET($B:$B,,MATCH(I$4,$B$4:$F$4,0)-1),OFFSET('C. PoC Adj Factor Scoring'!$E$5:$J$282,,MATCH(I$4,'C. PoC Adj Factor Scoring'!$E$3:$AH$3,0)-1),MATCH(I$2&\" Score\",'C. PoC Adj Factor Scoring'!$E$4:$J$4,0),TRUE)","v":1},{"$f":"VLOOKUP(OFFSET($B:$B,,MATCH(J$4,$B$4:$F$4,0)-1),OFFSET('C. PoC Adj Factor Scoring'!$E$5:$J$282,,MATCH(J$4,'C. PoC Adj Factor Scoring'!$E$3:$AH$3,0)-1),MATCH(J$2&\" Score\",'C. PoC Adj Factor Scoring'!$E$4:$J$4,0),TRUE)","v":1},{"$f":"VLOOKUP(OFFSET($B:$B,,MATCH(K$4,$B$4:$F$4,0)-1),OFFSET('C. PoC Adj Factor Scoring'!$E$5:$J$282,,MATCH(K$4,'C. PoC Adj Factor Scoring'!$E$3:$AH$3,0)-1),MATCH(K$2&\" Score\",'C. PoC Adj Factor Scoring'!$E$4:$J$4,0),TRUE)","v":1},{"$f":"VLOOKUP(OFFSET($B:$B,,MATCH(L$4,$B$4:$F$4,0)-1),OFFSET('C. PoC Adj Factor Scoring'!$E$5:$J$282,,MATCH(L$4,'C. PoC Adj Factor Scoring'!$E$3:$AH$3,0)-1),MATCH(L$2&\" Score\",'C. PoC Adj Factor Scoring'!$E$4:$J$4,0),TRUE)","v":1},{"$f":"VLOOKUP(OFFSET($B:$B,,MATCH(M$4,$B$4:$F$4,0)-1),OFFSET('C. PoC Adj Factor Scoring'!$E$5:$J$282,,MATCH(M$4,'C. PoC Adj Factor Scoring'!$E$3:$AH$3,0)-1),MATCH(M$2&\" Score\",'C. PoC Adj Factor Scoring'!$E$4:$J$4,0),TRUE)","v":1},{"$f":"VLOOKUP(OFFSET($B:$B,,MATCH(N$4,$B$4:$F$4,0)-1),OFFSET('C. PoC Adj Factor Scoring'!$E$5:$J$282,,MATCH(N$4,'C. PoC Adj Factor Scoring'!$E$3:$AH$3,0)-1),MATCH(N$2&\" Score\",'C. PoC Adj Factor Scoring'!$E$4:$J$4,0),TRUE)","v":1},{"$f":"VLOOKUP(OFFSET($B:$B,,MATCH(O$4,$B$4:$F$4,0)-1),OFFSET('C. PoC Adj Factor Scoring'!$E$5:$J$282,,MATCH(O$4,'C. PoC Adj Factor Scoring'!$E$3:$AH$3,0)-1),MATCH(O$2&\" Score\",'C. PoC Adj Factor Scoring'!$E$4:$J$4,0),TRUE)","v":1},{"$f":"VLOOKUP(OFFSET($B:$B,,MATCH(P$4,$B$4:$F$4,0)-1),OFFSET('C. PoC Adj Factor Scoring'!$E$5:$J$282,,MATCH(P$4,'C. PoC Adj Factor Scoring'!$E$3:$AH$3,0)-1),MATCH(P$2&\" Score\",'C. PoC Adj Factor Scoring'!$E$4:$J$4,0),TRUE)","v":1},{"$f":"VLOOKUP(OFFSET($B:$B,,MATCH(Q$4,$B$4:$F$4,0)-1),OFFSET('C. PoC Adj Factor Scoring'!$E$5:$J$282,,MATCH(Q$4,'C. PoC Adj Factor Scoring'!$E$3:$AH$3,0)-1),MATCH(Q$2&\" Score\",'C. PoC Adj Factor Scoring'!$E$4:$J$4,0),TRUE)","v":1},{"$f":"VLOOKUP(OFFSET($B:$B,,MATCH(R$4,$B$4:$F$4,0)-1),OFFSET('C. PoC Adj Factor Scoring'!$E$5:$J$282,,MATCH(R$4,'C. PoC Adj Factor Scoring'!$E$3:$AH$3,0)-1),MATCH(R$2&\" Score\",'C. PoC Adj Factor Scoring'!$E$4:$J$4,0),TRUE)","v":1},{"$f":"VLOOKUP(OFFSET($B:$B,,MATCH(S$4,$B$4:$F$4,0)-1),OFFSET('C. PoC Adj Factor Scoring'!$E$5:$J$282,,MATCH(S$4,'C. PoC Adj Factor Scoring'!$E$3:$AH$3,0)-1),MATCH(S$2&\" Score\",'C. PoC Adj Factor Scoring'!$E$4:$J$4,0),TRUE)","v":1},{"$f":"VLOOKUP(OFFSET($B:$B,,MATCH(T$4,$B$4:$F$4,0)-1),OFFSET('C. PoC Adj Factor Scoring'!$E$5:$J$282,,MATCH(T$4,'C. PoC Adj Factor Scoring'!$E$3:$AH$3,0)-1),MATCH(T$2&\" Score\",'C. PoC Adj Factor Scoring'!$E$4:$J$4,0),TRUE)","v":1},{"$f":"VLOOKUP(OFFSET($B:$B,,MATCH(U$4,$B$4:$F$4,0)-1),OFFSET('C. PoC Adj Factor Scoring'!$E$5:$J$282,,MATCH(U$4,'C. PoC Adj Factor Scoring'!$E$3:$AH$3,0)-1),MATCH(U$2&\" Score\",'C. PoC Adj Factor Scoring'!$E$4:$J$4,0),TRUE)","v":1},{"$f":"VLOOKUP(OFFSET($B:$B,,MATCH(V$4,$B$4:$F$4,0)-1),OFFSET('C. PoC Adj Factor Scoring'!$E$5:$J$282,,MATCH(V$4,'C. PoC Adj Factor Scoring'!$E$3:$AH$3,0)-1),MATCH(V$2&\" Score\",'C. PoC Adj Factor Scoring'!$E$4:$J$4,0),TRUE)","v":1},{"$f":"VLOOKUP(OFFSET($B:$B,,MATCH(W$4,$B$4:$F$4,0)-1),OFFSET('C. PoC Adj Factor Scoring'!$E$5:$J$282,,MATCH(W$4,'C. PoC Adj Factor Scoring'!$E$3:$AH$3,0)-1),MATCH(W$2&\" Score\",'C. PoC Adj Factor Scoring'!$E$4:$J$4,0),TRUE)","v":1},{"$f":"VLOOKUP(OFFSET($B:$B,,MATCH(X$4,$B$4:$F$4,0)-1),OFFSET('C. PoC Adj Factor Scoring'!$E$5:$J$282,,MATCH(X$4,'C. PoC Adj Factor Scoring'!$E$3:$AH$3,0)-1),MATCH(X$2&\" Score\",'C. PoC Adj Factor Scoring'!$E$4:$J$4,0),TRUE)","v":1},{"$f":"VLOOKUP(OFFSET($B:$B,,MATCH(Y$4,$B$4:$F$4,0)-1),OFFSET('C. PoC Adj Factor Scoring'!$E$5:$J$282,,MATCH(Y$4,'C. PoC Adj Factor Scoring'!$E$3:$AH$3,0)-1),MATCH(Y$2&\" Score\",'C. PoC Adj Factor Scoring'!$E$4:$J$4,0),TRUE)","v":1},{"$f":"VLOOKUP(OFFSET($B:$B,,MATCH(Z$4,$B$4:$F$4,0)-1),OFFSET('C. PoC Adj Factor Scoring'!$E$5:$J$282,,MATCH(Z$4,'C. PoC Adj Factor Scoring'!$E$3:$AH$3,0)-1),MATCH(Z$2&\" Score\",'C. PoC Adj Factor Scoring'!$E$4:$J$4,0),TRUE)","v":1},{"$f":"VLOOKUP(OFFSET($B:$B,,MATCH(AA$4,$B$4:$F$4,0)-1),OFFSET('C. PoC Adj Factor Scoring'!$E$5:$J$282,,MATCH(AA$4,'C. PoC Adj Factor Scoring'!$E$3:$AH$3,0)-1),MATCH(AA$2&\" Score\",'C. PoC Adj Factor Scoring'!$E$4:$J$4,0),TRUE)","v":3},{"$f":"VLOOKUP(OFFSET($B:$B,,MATCH(AB$4,$B$4:$F$4,0)-1),OFFSET('C. PoC Adj Factor Scoring'!$E$5:$J$282,,MATCH(AB$4,'C. PoC Adj Factor Scoring'!$E$3:$AH$3,0)-1),MATCH(AB$2&\" Score\",'C. PoC Adj Factor Scoring'!$E$4:$J$4,0),TRUE)","v":1},{"$f":"VLOOKUP(OFFSET($B:$B,,MATCH(AC$4,$B$4:$F$4,0)-1),OFFSET('C. PoC Adj Factor Scoring'!$E$5:$J$282,,MATCH(AC$4,'C. PoC Adj Factor Scoring'!$E$3:$AH$3,0)-1),MATCH(AC$2&\" Score\",'C. PoC Adj Factor Scoring'!$E$4:$J$4,0),TRUE)","v":1},{"$f":"VLOOKUP(OFFSET($B:$B,,MATCH(AD$4,$B$4:$F$4,0)-1),OFFSET('C. PoC Adj Factor Scoring'!$E$5:$J$282,,MATCH(AD$4,'C. PoC Adj Factor Scoring'!$E$3:$AH$3,0)-1),MATCH(AD$2&\" Score\",'C. PoC Adj Factor Scoring'!$E$4:$J$4,0),TRUE)","v":1},{"$f":"VLOOKUP(OFFSET($B:$B,,MATCH(AE$4,$B$4:$F$4,0)-1),OFFSET('C. PoC Adj Factor Scoring'!$E$5:$J$282,,MATCH(AE$4,'C. PoC Adj Factor Scoring'!$E$3:$AH$3,0)-1),MATCH(AE$2&\" Score\",'C. PoC Adj Factor Scoring'!$E$4:$J$4,0),TRUE)","v":1}]
[{"$f":"'A. Population Info'!A360","v":1000400757},{"$f":"'A. Population Info'!L360","v":"OIL"},{"$f":"'A. Population Info'!M360","v":0},{"$f":"'A. Population Info'!N360","v":0},{"$f":"'A. Population Info'!O360","v":0},{"$f":"'A. Population Info'!P360","v":0},{"$f":"VLOOKUP(OFFSET($B:$B,,MATCH(G$4,$B$4:$F$4,0)-1),OFFSET('C. PoC Adj Factor Scoring'!$E$5:$J$282,,MATCH(G$4,'C. PoC Adj Factor Scoring'!$E$3:$AH$3,0)-1),MATCH(G$2&\" Score\",'C. PoC Adj Factor Scoring'!$E$4:$J$4,0),TRUE)","v":4},{"$f":"VLOOKUP(OFFSET($B:$B,,MATCH(H$4,$B$4:$F$4,0)-1),OFFSET('C. PoC Adj Factor Scoring'!$E$5:$J$282,,MATCH(H$4,'C. PoC Adj Factor Scoring'!$E$3:$AH$3,0)-1),MATCH(H$2&\" Score\",'C. PoC Adj Factor Scoring'!$E$4:$J$4,0),TRUE)","v":1},{"$f":"VLOOKUP(OFFSET($B:$B,,MATCH(I$4,$B$4:$F$4,0)-1),OFFSET('C. PoC Adj Factor Scoring'!$E$5:$J$282,,MATCH(I$4,'C. PoC Adj Factor Scoring'!$E$3:$AH$3,0)-1),MATCH(I$2&\" Score\",'C. PoC Adj Factor Scoring'!$E$4:$J$4,0),TRUE)","v":1},{"$f":"VLOOKUP(OFFSET($B:$B,,MATCH(J$4,$B$4:$F$4,0)-1),OFFSET('C. PoC Adj Factor Scoring'!$E$5:$J$282,,MATCH(J$4,'C. PoC Adj Factor Scoring'!$E$3:$AH$3,0)-1),MATCH(J$2&\" Score\",'C. PoC Adj Factor Scoring'!$E$4:$J$4,0),TRUE)","v":1},{"$f":"VLOOKUP(OFFSET($B:$B,,MATCH(K$4,$B$4:$F$4,0)-1),OFFSET('C. PoC Adj Factor Scoring'!$E$5:$J$282,,MATCH(K$4,'C. PoC Adj Factor Scoring'!$E$3:$AH$3,0)-1),MATCH(K$2&\" Score\",'C. PoC Adj Factor Scoring'!$E$4:$J$4,0),TRUE)","v":1},{"$f":"VLOOKUP(OFFSET($B:$B,,MATCH(L$4,$B$4:$F$4,0)-1),OFFSET('C. PoC Adj Factor Scoring'!$E$5:$J$282,,MATCH(L$4,'C. PoC Adj Factor Scoring'!$E$3:$AH$3,0)-1),MATCH(L$2&\" Score\",'C. PoC Adj Factor Scoring'!$E$4:$J$4,0),TRUE)","v":1},{"$f":"VLOOKUP(OFFSET($B:$B,,MATCH(M$4,$B$4:$F$4,0)-1),OFFSET('C. PoC Adj Factor Scoring'!$E$5:$J$282,,MATCH(M$4,'C. PoC Adj Factor Scoring'!$E$3:$AH$3,0)-1),MATCH(M$2&\" Score\",'C. PoC Adj Factor Scoring'!$E$4:$J$4,0),TRUE)","v":1},{"$f":"VLOOKUP(OFFSET($B:$B,,MATCH(N$4,$B$4:$F$4,0)-1),OFFSET('C. PoC Adj Factor Scoring'!$E$5:$J$282,,MATCH(N$4,'C. PoC Adj Factor Scoring'!$E$3:$AH$3,0)-1),MATCH(N$2&\" Score\",'C. PoC Adj Factor Scoring'!$E$4:$J$4,0),TRUE)","v":1},{"$f":"VLOOKUP(OFFSET($B:$B,,MATCH(O$4,$B$4:$F$4,0)-1),OFFSET('C. PoC Adj Factor Scoring'!$E$5:$J$282,,MATCH(O$4,'C. PoC Adj Factor Scoring'!$E$3:$AH$3,0)-1),MATCH(O$2&\" Score\",'C. PoC Adj Factor Scoring'!$E$4:$J$4,0),TRUE)","v":1},{"$f":"VLOOKUP(OFFSET($B:$B,,MATCH(P$4,$B$4:$F$4,0)-1),OFFSET('C. PoC Adj Factor Scoring'!$E$5:$J$282,,MATCH(P$4,'C. PoC Adj Factor Scoring'!$E$3:$AH$3,0)-1),MATCH(P$2&\" Score\",'C. PoC Adj Factor Scoring'!$E$4:$J$4,0),TRUE)","v":1},{"$f":"VLOOKUP(OFFSET($B:$B,,MATCH(Q$4,$B$4:$F$4,0)-1),OFFSET('C. PoC Adj Factor Scoring'!$E$5:$J$282,,MATCH(Q$4,'C. PoC Adj Factor Scoring'!$E$3:$AH$3,0)-1),MATCH(Q$2&\" Score\",'C. PoC Adj Factor Scoring'!$E$4:$J$4,0),TRUE)","v":1},{"$f":"VLOOKUP(OFFSET($B:$B,,MATCH(R$4,$B$4:$F$4,0)-1),OFFSET('C. PoC Adj Factor Scoring'!$E$5:$J$282,,MATCH(R$4,'C. PoC Adj Factor Scoring'!$E$3:$AH$3,0)-1),MATCH(R$2&\" Score\",'C. PoC Adj Factor Scoring'!$E$4:$J$4,0),TRUE)","v":1},{"$f":"VLOOKUP(OFFSET($B:$B,,MATCH(S$4,$B$4:$F$4,0)-1),OFFSET('C. PoC Adj Factor Scoring'!$E$5:$J$282,,MATCH(S$4,'C. PoC Adj Factor Scoring'!$E$3:$AH$3,0)-1),MATCH(S$2&\" Score\",'C. PoC Adj Factor Scoring'!$E$4:$J$4,0),TRUE)","v":1},{"$f":"VLOOKUP(OFFSET($B:$B,,MATCH(T$4,$B$4:$F$4,0)-1),OFFSET('C. PoC Adj Factor Scoring'!$E$5:$J$282,,MATCH(T$4,'C. PoC Adj Factor Scoring'!$E$3:$AH$3,0)-1),MATCH(T$2&\" Score\",'C. PoC Adj Factor Scoring'!$E$4:$J$4,0),TRUE)","v":1},{"$f":"VLOOKUP(OFFSET($B:$B,,MATCH(U$4,$B$4:$F$4,0)-1),OFFSET('C. PoC Adj Factor Scoring'!$E$5:$J$282,,MATCH(U$4,'C. PoC Adj Factor Scoring'!$E$3:$AH$3,0)-1),MATCH(U$2&\" Score\",'C. PoC Adj Factor Scoring'!$E$4:$J$4,0),TRUE)","v":1},{"$f":"VLOOKUP(OFFSET($B:$B,,MATCH(V$4,$B$4:$F$4,0)-1),OFFSET('C. PoC Adj Factor Scoring'!$E$5:$J$282,,MATCH(V$4,'C. PoC Adj Factor Scoring'!$E$3:$AH$3,0)-1),MATCH(V$2&\" Score\",'C. PoC Adj Factor Scoring'!$E$4:$J$4,0),TRUE)","v":1},{"$f":"VLOOKUP(OFFSET($B:$B,,MATCH(W$4,$B$4:$F$4,0)-1),OFFSET('C. PoC Adj Factor Scoring'!$E$5:$J$282,,MATCH(W$4,'C. PoC Adj Factor Scoring'!$E$3:$AH$3,0)-1),MATCH(W$2&\" Score\",'C. PoC Adj Factor Scoring'!$E$4:$J$4,0),TRUE)","v":1},{"$f":"VLOOKUP(OFFSET($B:$B,,MATCH(X$4,$B$4:$F$4,0)-1),OFFSET('C. PoC Adj Factor Scoring'!$E$5:$J$282,,MATCH(X$4,'C. PoC Adj Factor Scoring'!$E$3:$AH$3,0)-1),MATCH(X$2&\" Score\",'C. PoC Adj Factor Scoring'!$E$4:$J$4,0),TRUE)","v":1},{"$f":"VLOOKUP(OFFSET($B:$B,,MATCH(Y$4,$B$4:$F$4,0)-1),OFFSET('C. PoC Adj Factor Scoring'!$E$5:$J$282,,MATCH(Y$4,'C. PoC Adj Factor Scoring'!$E$3:$AH$3,0)-1),MATCH(Y$2&\" Score\",'C. PoC Adj Factor Scoring'!$E$4:$J$4,0),TRUE)","v":1},{"$f":"VLOOKUP(OFFSET($B:$B,,MATCH(Z$4,$B$4:$F$4,0)-1),OFFSET('C. PoC Adj Factor Scoring'!$E$5:$J$282,,MATCH(Z$4,'C. PoC Adj Factor Scoring'!$E$3:$AH$3,0)-1),MATCH(Z$2&\" Score\",'C. PoC Adj Factor Scoring'!$E$4:$J$4,0),TRUE)","v":1},{"$f":"VLOOKUP(OFFSET($B:$B,,MATCH(AA$4,$B$4:$F$4,0)-1),OFFSET('C. PoC Adj Factor Scoring'!$E$5:$J$282,,MATCH(AA$4,'C. PoC Adj Factor Scoring'!$E$3:$AH$3,0)-1),MATCH(AA$2&\" Score\",'C. PoC Adj Factor Scoring'!$E$4:$J$4,0),TRUE)","v":3},{"$f":"VLOOKUP(OFFSET($B:$B,,MATCH(AB$4,$B$4:$F$4,0)-1),OFFSET('C. PoC Adj Factor Scoring'!$E$5:$J$282,,MATCH(AB$4,'C. PoC Adj Factor Scoring'!$E$3:$AH$3,0)-1),MATCH(AB$2&\" Score\",'C. PoC Adj Factor Scoring'!$E$4:$J$4,0),TRUE)","v":1},{"$f":"VLOOKUP(OFFSET($B:$B,,MATCH(AC$4,$B$4:$F$4,0)-1),OFFSET('C. PoC Adj Factor Scoring'!$E$5:$J$282,,MATCH(AC$4,'C. PoC Adj Factor Scoring'!$E$3:$AH$3,0)-1),MATCH(AC$2&\" Score\",'C. PoC Adj Factor Scoring'!$E$4:$J$4,0),TRUE)","v":1},{"$f":"VLOOKUP(OFFSET($B:$B,,MATCH(AD$4,$B$4:$F$4,0)-1),OFFSET('C. PoC Adj Factor Scoring'!$E$5:$J$282,,MATCH(AD$4,'C. PoC Adj Factor Scoring'!$E$3:$AH$3,0)-1),MATCH(AD$2&\" Score\",'C. PoC Adj Factor Scoring'!$E$4:$J$4,0),TRUE)","v":1},{"$f":"VLOOKUP(OFFSET($B:$B,,MATCH(AE$4,$B$4:$F$4,0)-1),OFFSET('C. PoC Adj Factor Scoring'!$E$5:$J$282,,MATCH(AE$4,'C. PoC Adj Factor Scoring'!$E$3:$AH$3,0)-1),MATCH(AE$2&\" Score\",'C. PoC Adj Factor Scoring'!$E$4:$J$4,0),TRUE)","v":1}]
[{"$f":"'A. Population Info'!A361","v":1000400775},{"$f":"'A. Population Info'!L361","v":"OIL"},{"$f":"'A. Population Info'!M361","v":0},{"$f":"'A. Population Info'!N361","v":0},{"$f":"'A. Population Info'!O361","v":0},{"$f":"'A. Population Info'!P361","v":0},{"$f":"VLOOKUP(OFFSET($B:$B,,MATCH(G$4,$B$4:$F$4,0)-1),OFFSET('C. PoC Adj Factor Scoring'!$E$5:$J$282,,MATCH(G$4,'C. PoC Adj Factor Scoring'!$E$3:$AH$3,0)-1),MATCH(G$2&\" Score\",'C. PoC Adj Factor Scoring'!$E$4:$J$4,0),TRUE)","v":4},{"$f":"VLOOKUP(OFFSET($B:$B,,MATCH(H$4,$B$4:$F$4,0)-1),OFFSET('C. PoC Adj Factor Scoring'!$E$5:$J$282,,MATCH(H$4,'C. PoC Adj Factor Scoring'!$E$3:$AH$3,0)-1),MATCH(H$2&\" Score\",'C. PoC Adj Factor Scoring'!$E$4:$J$4,0),TRUE)","v":1},{"$f":"VLOOKUP(OFFSET($B:$B,,MATCH(I$4,$B$4:$F$4,0)-1),OFFSET('C. PoC Adj Factor Scoring'!$E$5:$J$282,,MATCH(I$4,'C. PoC Adj Factor Scoring'!$E$3:$AH$3,0)-1),MATCH(I$2&\" Score\",'C. PoC Adj Factor Scoring'!$E$4:$J$4,0),TRUE)","v":1},{"$f":"VLOOKUP(OFFSET($B:$B,,MATCH(J$4,$B$4:$F$4,0)-1),OFFSET('C. PoC Adj Factor Scoring'!$E$5:$J$282,,MATCH(J$4,'C. PoC Adj Factor Scoring'!$E$3:$AH$3,0)-1),MATCH(J$2&\" Score\",'C. PoC Adj Factor Scoring'!$E$4:$J$4,0),TRUE)","v":1},{"$f":"VLOOKUP(OFFSET($B:$B,,MATCH(K$4,$B$4:$F$4,0)-1),OFFSET('C. PoC Adj Factor Scoring'!$E$5:$J$282,,MATCH(K$4,'C. PoC Adj Factor Scoring'!$E$3:$AH$3,0)-1),MATCH(K$2&\" Score\",'C. PoC Adj Factor Scoring'!$E$4:$J$4,0),TRUE)","v":1},{"$f":"VLOOKUP(OFFSET($B:$B,,MATCH(L$4,$B$4:$F$4,0)-1),OFFSET('C. PoC Adj Factor Scoring'!$E$5:$J$282,,MATCH(L$4,'C. PoC Adj Factor Scoring'!$E$3:$AH$3,0)-1),MATCH(L$2&\" Score\",'C. PoC Adj Factor Scoring'!$E$4:$J$4,0),TRUE)","v":1},{"$f":"VLOOKUP(OFFSET($B:$B,,MATCH(M$4,$B$4:$F$4,0)-1),OFFSET('C. PoC Adj Factor Scoring'!$E$5:$J$282,,MATCH(M$4,'C. PoC Adj Factor Scoring'!$E$3:$AH$3,0)-1),MATCH(M$2&\" Score\",'C. PoC Adj Factor Scoring'!$E$4:$J$4,0),TRUE)","v":1},{"$f":"VLOOKUP(OFFSET($B:$B,,MATCH(N$4,$B$4:$F$4,0)-1),OFFSET('C. PoC Adj Factor Scoring'!$E$5:$J$282,,MATCH(N$4,'C. PoC Adj Factor Scoring'!$E$3:$AH$3,0)-1),MATCH(N$2&\" Score\",'C. PoC Adj Factor Scoring'!$E$4:$J$4,0),TRUE)","v":1},{"$f":"VLOOKUP(OFFSET($B:$B,,MATCH(O$4,$B$4:$F$4,0)-1),OFFSET('C. PoC Adj Factor Scoring'!$E$5:$J$282,,MATCH(O$4,'C. PoC Adj Factor Scoring'!$E$3:$AH$3,0)-1),MATCH(O$2&\" Score\",'C. PoC Adj Factor Scoring'!$E$4:$J$4,0),TRUE)","v":1},{"$f":"VLOOKUP(OFFSET($B:$B,,MATCH(P$4,$B$4:$F$4,0)-1),OFFSET('C. PoC Adj Factor Scoring'!$E$5:$J$282,,MATCH(P$4,'C. PoC Adj Factor Scoring'!$E$3:$AH$3,0)-1),MATCH(P$2&\" Score\",'C. PoC Adj Factor Scoring'!$E$4:$J$4,0),TRUE)","v":1},{"$f":"VLOOKUP(OFFSET($B:$B,,MATCH(Q$4,$B$4:$F$4,0)-1),OFFSET('C. PoC Adj Factor Scoring'!$E$5:$J$282,,MATCH(Q$4,'C. PoC Adj Factor Scoring'!$E$3:$AH$3,0)-1),MATCH(Q$2&\" Score\",'C. PoC Adj Factor Scoring'!$E$4:$J$4,0),TRUE)","v":1},{"$f":"VLOOKUP(OFFSET($B:$B,,MATCH(R$4,$B$4:$F$4,0)-1),OFFSET('C. PoC Adj Factor Scoring'!$E$5:$J$282,,MATCH(R$4,'C. PoC Adj Factor Scoring'!$E$3:$AH$3,0)-1),MATCH(R$2&\" Score\",'C. PoC Adj Factor Scoring'!$E$4:$J$4,0),TRUE)","v":1},{"$f":"VLOOKUP(OFFSET($B:$B,,MATCH(S$4,$B$4:$F$4,0)-1),OFFSET('C. PoC Adj Factor Scoring'!$E$5:$J$282,,MATCH(S$4,'C. PoC Adj Factor Scoring'!$E$3:$AH$3,0)-1),MATCH(S$2&\" Score\",'C. PoC Adj Factor Scoring'!$E$4:$J$4,0),TRUE)","v":1},{"$f":"VLOOKUP(OFFSET($B:$B,,MATCH(T$4,$B$4:$F$4,0)-1),OFFSET('C. PoC Adj Factor Scoring'!$E$5:$J$282,,MATCH(T$4,'C. PoC Adj Factor Scoring'!$E$3:$AH$3,0)-1),MATCH(T$2&\" Score\",'C. PoC Adj Factor Scoring'!$E$4:$J$4,0),TRUE)","v":1},{"$f":"VLOOKUP(OFFSET($B:$B,,MATCH(U$4,$B$4:$F$4,0)-1),OFFSET('C. PoC Adj Factor Scoring'!$E$5:$J$282,,MATCH(U$4,'C. PoC Adj Factor Scoring'!$E$3:$AH$3,0)-1),MATCH(U$2&\" Score\",'C. PoC Adj Factor Scoring'!$E$4:$J$4,0),TRUE)","v":1},{"$f":"VLOOKUP(OFFSET($B:$B,,MATCH(V$4,$B$4:$F$4,0)-1),OFFSET('C. PoC Adj Factor Scoring'!$E$5:$J$282,,MATCH(V$4,'C. PoC Adj Factor Scoring'!$E$3:$AH$3,0)-1),MATCH(V$2&\" Score\",'C. PoC Adj Factor Scoring'!$E$4:$J$4,0),TRUE)","v":1},{"$f":"VLOOKUP(OFFSET($B:$B,,MATCH(W$4,$B$4:$F$4,0)-1),OFFSET('C. PoC Adj Factor Scoring'!$E$5:$J$282,,MATCH(W$4,'C. PoC Adj Factor Scoring'!$E$3:$AH$3,0)-1),MATCH(W$2&\" Score\",'C. PoC Adj Factor Scoring'!$E$4:$J$4,0),TRUE)","v":1},{"$f":"VLOOKUP(OFFSET($B:$B,,MATCH(X$4,$B$4:$F$4,0)-1),OFFSET('C. PoC Adj Factor Scoring'!$E$5:$J$282,,MATCH(X$4,'C. PoC Adj Factor Scoring'!$E$3:$AH$3,0)-1),MATCH(X$2&\" Score\",'C. PoC Adj Factor Scoring'!$E$4:$J$4,0),TRUE)","v":1},{"$f":"VLOOKUP(OFFSET($B:$B,,MATCH(Y$4,$B$4:$F$4,0)-1),OFFSET('C. PoC Adj Factor Scoring'!$E$5:$J$282,,MATCH(Y$4,'C. PoC Adj Factor Scoring'!$E$3:$AH$3,0)-1),MATCH(Y$2&\" Score\",'C. PoC Adj Factor Scoring'!$E$4:$J$4,0),TRUE)","v":1},{"$f":"VLOOKUP(OFFSET($B:$B,,MATCH(Z$4,$B$4:$F$4,0)-1),OFFSET('C. PoC Adj Factor Scoring'!$E$5:$J$282,,MATCH(Z$4,'C. PoC Adj Factor Scoring'!$E$3:$AH$3,0)-1),MATCH(Z$2&\" Score\",'C. PoC Adj Factor Scoring'!$E$4:$J$4,0),TRUE)","v":1},{"$f":"VLOOKUP(OFFSET($B:$B,,MATCH(AA$4,$B$4:$F$4,0)-1),OFFSET('C. PoC Adj Factor Scoring'!$E$5:$J$282,,MATCH(AA$4,'C. PoC Adj Factor Scoring'!$E$3:$AH$3,0)-1),MATCH(AA$2&\" Score\",'C. PoC Adj Factor Scoring'!$E$4:$J$4,0),TRUE)","v":3},{"$f":"VLOOKUP(OFFSET($B:$B,,MATCH(AB$4,$B$4:$F$4,0)-1),OFFSET('C. PoC Adj Factor Scoring'!$E$5:$J$282,,MATCH(AB$4,'C. PoC Adj Factor Scoring'!$E$3:$AH$3,0)-1),MATCH(AB$2&\" Score\",'C. PoC Adj Factor Scoring'!$E$4:$J$4,0),TRUE)","v":1},{"$f":"VLOOKUP(OFFSET($B:$B,,MATCH(AC$4,$B$4:$F$4,0)-1),OFFSET('C. PoC Adj Factor Scoring'!$E$5:$J$282,,MATCH(AC$4,'C. PoC Adj Factor Scoring'!$E$3:$AH$3,0)-1),MATCH(AC$2&\" Score\",'C. PoC Adj Factor Scoring'!$E$4:$J$4,0),TRUE)","v":1},{"$f":"VLOOKUP(OFFSET($B:$B,,MATCH(AD$4,$B$4:$F$4,0)-1),OFFSET('C. PoC Adj Factor Scoring'!$E$5:$J$282,,MATCH(AD$4,'C. PoC Adj Factor Scoring'!$E$3:$AH$3,0)-1),MATCH(AD$2&\" Score\",'C. PoC Adj Factor Scoring'!$E$4:$J$4,0),TRUE)","v":1},{"$f":"VLOOKUP(OFFSET($B:$B,,MATCH(AE$4,$B$4:$F$4,0)-1),OFFSET('C. PoC Adj Factor Scoring'!$E$5:$J$282,,MATCH(AE$4,'C. PoC Adj Factor Scoring'!$E$3:$AH$3,0)-1),MATCH(AE$2&\" Score\",'C. PoC Adj Factor Scoring'!$E$4:$J$4,0),TRUE)","v":1}]
[{"$f":"'A. Population Info'!A362","v":1000400898},{"$f":"'A. Population Info'!L362","v":"OIL"},{"$f":"'A. Population Info'!M362","v":0},{"$f":"'A. Population Info'!N362","v":0},{"$f":"'A. Population Info'!O362","v":0},{"$f":"'A. Population Info'!P362","v":0},{"$f":"VLOOKUP(OFFSET($B:$B,,MATCH(G$4,$B$4:$F$4,0)-1),OFFSET('C. PoC Adj Factor Scoring'!$E$5:$J$282,,MATCH(G$4,'C. PoC Adj Factor Scoring'!$E$3:$AH$3,0)-1),MATCH(G$2&\" Score\",'C. PoC Adj Factor Scoring'!$E$4:$J$4,0),TRUE)","v":4},{"$f":"VLOOKUP(OFFSET($B:$B,,MATCH(H$4,$B$4:$F$4,0)-1),OFFSET('C. PoC Adj Factor Scoring'!$E$5:$J$282,,MATCH(H$4,'C. PoC Adj Factor Scoring'!$E$3:$AH$3,0)-1),MATCH(H$2&\" Score\",'C. PoC Adj Factor Scoring'!$E$4:$J$4,0),TRUE)","v":1},{"$f":"VLOOKUP(OFFSET($B:$B,,MATCH(I$4,$B$4:$F$4,0)-1),OFFSET('C. PoC Adj Factor Scoring'!$E$5:$J$282,,MATCH(I$4,'C. PoC Adj Factor Scoring'!$E$3:$AH$3,0)-1),MATCH(I$2&\" Score\",'C. PoC Adj Factor Scoring'!$E$4:$J$4,0),TRUE)","v":1},{"$f":"VLOOKUP(OFFSET($B:$B,,MATCH(J$4,$B$4:$F$4,0)-1),OFFSET('C. PoC Adj Factor Scoring'!$E$5:$J$282,,MATCH(J$4,'C. PoC Adj Factor Scoring'!$E$3:$AH$3,0)-1),MATCH(J$2&\" Score\",'C. PoC Adj Factor Scoring'!$E$4:$J$4,0),TRUE)","v":1},{"$f":"VLOOKUP(OFFSET($B:$B,,MATCH(K$4,$B$4:$F$4,0)-1),OFFSET('C. PoC Adj Factor Scoring'!$E$5:$J$282,,MATCH(K$4,'C. PoC Adj Factor Scoring'!$E$3:$AH$3,0)-1),MATCH(K$2&\" Score\",'C. PoC Adj Factor Scoring'!$E$4:$J$4,0),TRUE)","v":1},{"$f":"VLOOKUP(OFFSET($B:$B,,MATCH(L$4,$B$4:$F$4,0)-1),OFFSET('C. PoC Adj Factor Scoring'!$E$5:$J$282,,MATCH(L$4,'C. PoC Adj Factor Scoring'!$E$3:$AH$3,0)-1),MATCH(L$2&\" Score\",'C. PoC Adj Factor Scoring'!$E$4:$J$4,0),TRUE)","v":1},{"$f":"VLOOKUP(OFFSET($B:$B,,MATCH(M$4,$B$4:$F$4,0)-1),OFFSET('C. PoC Adj Factor Scoring'!$E$5:$J$282,,MATCH(M$4,'C. PoC Adj Factor Scoring'!$E$3:$AH$3,0)-1),MATCH(M$2&\" Score\",'C. PoC Adj Factor Scoring'!$E$4:$J$4,0),TRUE)","v":1},{"$f":"VLOOKUP(OFFSET($B:$B,,MATCH(N$4,$B$4:$F$4,0)-1),OFFSET('C. PoC Adj Factor Scoring'!$E$5:$J$282,,MATCH(N$4,'C. PoC Adj Factor Scoring'!$E$3:$AH$3,0)-1),MATCH(N$2&\" Score\",'C. PoC Adj Factor Scoring'!$E$4:$J$4,0),TRUE)","v":1},{"$f":"VLOOKUP(OFFSET($B:$B,,MATCH(O$4,$B$4:$F$4,0)-1),OFFSET('C. PoC Adj Factor Scoring'!$E$5:$J$282,,MATCH(O$4,'C. PoC Adj Factor Scoring'!$E$3:$AH$3,0)-1),MATCH(O$2&\" Score\",'C. PoC Adj Factor Scoring'!$E$4:$J$4,0),TRUE)","v":1},{"$f":"VLOOKUP(OFFSET($B:$B,,MATCH(P$4,$B$4:$F$4,0)-1),OFFSET('C. PoC Adj Factor Scoring'!$E$5:$J$282,,MATCH(P$4,'C. PoC Adj Factor Scoring'!$E$3:$AH$3,0)-1),MATCH(P$2&\" Score\",'C. PoC Adj Factor Scoring'!$E$4:$J$4,0),TRUE)","v":1},{"$f":"VLOOKUP(OFFSET($B:$B,,MATCH(Q$4,$B$4:$F$4,0)-1),OFFSET('C. PoC Adj Factor Scoring'!$E$5:$J$282,,MATCH(Q$4,'C. PoC Adj Factor Scoring'!$E$3:$AH$3,0)-1),MATCH(Q$2&\" Score\",'C. PoC Adj Factor Scoring'!$E$4:$J$4,0),TRUE)","v":1},{"$f":"VLOOKUP(OFFSET($B:$B,,MATCH(R$4,$B$4:$F$4,0)-1),OFFSET('C. PoC Adj Factor Scoring'!$E$5:$J$282,,MATCH(R$4,'C. PoC Adj Factor Scoring'!$E$3:$AH$3,0)-1),MATCH(R$2&\" Score\",'C. PoC Adj Factor Scoring'!$E$4:$J$4,0),TRUE)","v":1},{"$f":"VLOOKUP(OFFSET($B:$B,,MATCH(S$4,$B$4:$F$4,0)-1),OFFSET('C. PoC Adj Factor Scoring'!$E$5:$J$282,,MATCH(S$4,'C. PoC Adj Factor Scoring'!$E$3:$AH$3,0)-1),MATCH(S$2&\" Score\",'C. PoC Adj Factor Scoring'!$E$4:$J$4,0),TRUE)","v":1},{"$f":"VLOOKUP(OFFSET($B:$B,,MATCH(T$4,$B$4:$F$4,0)-1),OFFSET('C. PoC Adj Factor Scoring'!$E$5:$J$282,,MATCH(T$4,'C. PoC Adj Factor Scoring'!$E$3:$AH$3,0)-1),MATCH(T$2&\" Score\",'C. PoC Adj Factor Scoring'!$E$4:$J$4,0),TRUE)","v":1},{"$f":"VLOOKUP(OFFSET($B:$B,,MATCH(U$4,$B$4:$F$4,0)-1),OFFSET('C. PoC Adj Factor Scoring'!$E$5:$J$282,,MATCH(U$4,'C. PoC Adj Factor Scoring'!$E$3:$AH$3,0)-1),MATCH(U$2&\" Score\",'C. PoC Adj Factor Scoring'!$E$4:$J$4,0),TRUE)","v":1},{"$f":"VLOOKUP(OFFSET($B:$B,,MATCH(V$4,$B$4:$F$4,0)-1),OFFSET('C. PoC Adj Factor Scoring'!$E$5:$J$282,,MATCH(V$4,'C. PoC Adj Factor Scoring'!$E$3:$AH$3,0)-1),MATCH(V$2&\" Score\",'C. PoC Adj Factor Scoring'!$E$4:$J$4,0),TRUE)","v":1},{"$f":"VLOOKUP(OFFSET($B:$B,,MATCH(W$4,$B$4:$F$4,0)-1),OFFSET('C. PoC Adj Factor Scoring'!$E$5:$J$282,,MATCH(W$4,'C. PoC Adj Factor Scoring'!$E$3:$AH$3,0)-1),MATCH(W$2&\" Score\",'C. PoC Adj Factor Scoring'!$E$4:$J$4,0),TRUE)","v":1},{"$f":"VLOOKUP(OFFSET($B:$B,,MATCH(X$4,$B$4:$F$4,0)-1),OFFSET('C. PoC Adj Factor Scoring'!$E$5:$J$282,,MATCH(X$4,'C. PoC Adj Factor Scoring'!$E$3:$AH$3,0)-1),MATCH(X$2&\" Score\",'C. PoC Adj Factor Scoring'!$E$4:$J$4,0),TRUE)","v":1},{"$f":"VLOOKUP(OFFSET($B:$B,,MATCH(Y$4,$B$4:$F$4,0)-1),OFFSET('C. PoC Adj Factor Scoring'!$E$5:$J$282,,MATCH(Y$4,'C. PoC Adj Factor Scoring'!$E$3:$AH$3,0)-1),MATCH(Y$2&\" Score\",'C. PoC Adj Factor Scoring'!$E$4:$J$4,0),TRUE)","v":1},{"$f":"VLOOKUP(OFFSET($B:$B,,MATCH(Z$4,$B$4:$F$4,0)-1),OFFSET('C. PoC Adj Factor Scoring'!$E$5:$J$282,,MATCH(Z$4,'C. PoC Adj Factor Scoring'!$E$3:$AH$3,0)-1),MATCH(Z$2&\" Score\",'C. PoC Adj Factor Scoring'!$E$4:$J$4,0),TRUE)","v":1},{"$f":"VLOOKUP(OFFSET($B:$B,,MATCH(AA$4,$B$4:$F$4,0)-1),OFFSET('C. PoC Adj Factor Scoring'!$E$5:$J$282,,MATCH(AA$4,'C. PoC Adj Factor Scoring'!$E$3:$AH$3,0)-1),MATCH(AA$2&\" Score\",'C. PoC Adj Factor Scoring'!$E$4:$J$4,0),TRUE)","v":3},{"$f":"VLOOKUP(OFFSET($B:$B,,MATCH(AB$4,$B$4:$F$4,0)-1),OFFSET('C. PoC Adj Factor Scoring'!$E$5:$J$282,,MATCH(AB$4,'C. PoC Adj Factor Scoring'!$E$3:$AH$3,0)-1),MATCH(AB$2&\" Score\",'C. PoC Adj Factor Scoring'!$E$4:$J$4,0),TRUE)","v":1},{"$f":"VLOOKUP(OFFSET($B:$B,,MATCH(AC$4,$B$4:$F$4,0)-1),OFFSET('C. PoC Adj Factor Scoring'!$E$5:$J$282,,MATCH(AC$4,'C. PoC Adj Factor Scoring'!$E$3:$AH$3,0)-1),MATCH(AC$2&\" Score\",'C. PoC Adj Factor Scoring'!$E$4:$J$4,0),TRUE)","v":1},{"$f":"VLOOKUP(OFFSET($B:$B,,MATCH(AD$4,$B$4:$F$4,0)-1),OFFSET('C. PoC Adj Factor Scoring'!$E$5:$J$282,,MATCH(AD$4,'C. PoC Adj Factor Scoring'!$E$3:$AH$3,0)-1),MATCH(AD$2&\" Score\",'C. PoC Adj Factor Scoring'!$E$4:$J$4,0),TRUE)","v":1},{"$f":"VLOOKUP(OFFSET($B:$B,,MATCH(AE$4,$B$4:$F$4,0)-1),OFFSET('C. PoC Adj Factor Scoring'!$E$5:$J$282,,MATCH(AE$4,'C. PoC Adj Factor Scoring'!$E$3:$AH$3,0)-1),MATCH(AE$2&\" Score\",'C. PoC Adj Factor Scoring'!$E$4:$J$4,0),TRUE)","v":1}]
[{"$f":"'A. Population Info'!A363","v":1000400926},{"$f":"'A. Population Info'!L363","v":"OIL"},{"$f":"'A. Population Info'!M363","v":0},{"$f":"'A. Population Info'!N363","v":0},{"$f":"'A. Population Info'!O363","v":0},{"$f":"'A. Population Info'!P363","v":0},{"$f":"VLOOKUP(OFFSET($B:$B,,MATCH(G$4,$B$4:$F$4,0)-1),OFFSET('C. PoC Adj Factor Scoring'!$E$5:$J$282,,MATCH(G$4,'C. PoC Adj Factor Scoring'!$E$3:$AH$3,0)-1),MATCH(G$2&\" Score\",'C. PoC Adj Factor Scoring'!$E$4:$J$4,0),TRUE)","v":4},{"$f":"VLOOKUP(OFFSET($B:$B,,MATCH(H$4,$B$4:$F$4,0)-1),OFFSET('C. PoC Adj Factor Scoring'!$E$5:$J$282,,MATCH(H$4,'C. PoC Adj Factor Scoring'!$E$3:$AH$3,0)-1),MATCH(H$2&\" Score\",'C. PoC Adj Factor Scoring'!$E$4:$J$4,0),TRUE)","v":1},{"$f":"VLOOKUP(OFFSET($B:$B,,MATCH(I$4,$B$4:$F$4,0)-1),OFFSET('C. PoC Adj Factor Scoring'!$E$5:$J$282,,MATCH(I$4,'C. PoC Adj Factor Scoring'!$E$3:$AH$3,0)-1),MATCH(I$2&\" Score\",'C. PoC Adj Factor Scoring'!$E$4:$J$4,0),TRUE)","v":1},{"$f":"VLOOKUP(OFFSET($B:$B,,MATCH(J$4,$B$4:$F$4,0)-1),OFFSET('C. PoC Adj Factor Scoring'!$E$5:$J$282,,MATCH(J$4,'C. PoC Adj Factor Scoring'!$E$3:$AH$3,0)-1),MATCH(J$2&\" Score\",'C. PoC Adj Factor Scoring'!$E$4:$J$4,0),TRUE)","v":1},{"$f":"VLOOKUP(OFFSET($B:$B,,MATCH(K$4,$B$4:$F$4,0)-1),OFFSET('C. PoC Adj Factor Scoring'!$E$5:$J$282,,MATCH(K$4,'C. PoC Adj Factor Scoring'!$E$3:$AH$3,0)-1),MATCH(K$2&\" Score\",'C. PoC Adj Factor Scoring'!$E$4:$J$4,0),TRUE)","v":1},{"$f":"VLOOKUP(OFFSET($B:$B,,MATCH(L$4,$B$4:$F$4,0)-1),OFFSET('C. PoC Adj Factor Scoring'!$E$5:$J$282,,MATCH(L$4,'C. PoC Adj Factor Scoring'!$E$3:$AH$3,0)-1),MATCH(L$2&\" Score\",'C. PoC Adj Factor Scoring'!$E$4:$J$4,0),TRUE)","v":1},{"$f":"VLOOKUP(OFFSET($B:$B,,MATCH(M$4,$B$4:$F$4,0)-1),OFFSET('C. PoC Adj Factor Scoring'!$E$5:$J$282,,MATCH(M$4,'C. PoC Adj Factor Scoring'!$E$3:$AH$3,0)-1),MATCH(M$2&\" Score\",'C. PoC Adj Factor Scoring'!$E$4:$J$4,0),TRUE)","v":1},{"$f":"VLOOKUP(OFFSET($B:$B,,MATCH(N$4,$B$4:$F$4,0)-1),OFFSET('C. PoC Adj Factor Scoring'!$E$5:$J$282,,MATCH(N$4,'C. PoC Adj Factor Scoring'!$E$3:$AH$3,0)-1),MATCH(N$2&\" Score\",'C. PoC Adj Factor Scoring'!$E$4:$J$4,0),TRUE)","v":1},{"$f":"VLOOKUP(OFFSET($B:$B,,MATCH(O$4,$B$4:$F$4,0)-1),OFFSET('C. PoC Adj Factor Scoring'!$E$5:$J$282,,MATCH(O$4,'C. PoC Adj Factor Scoring'!$E$3:$AH$3,0)-1),MATCH(O$2&\" Score\",'C. PoC Adj Factor Scoring'!$E$4:$J$4,0),TRUE)","v":1},{"$f":"VLOOKUP(OFFSET($B:$B,,MATCH(P$4,$B$4:$F$4,0)-1),OFFSET('C. PoC Adj Factor Scoring'!$E$5:$J$282,,MATCH(P$4,'C. PoC Adj Factor Scoring'!$E$3:$AH$3,0)-1),MATCH(P$2&\" Score\",'C. PoC Adj Factor Scoring'!$E$4:$J$4,0),TRUE)","v":1},{"$f":"VLOOKUP(OFFSET($B:$B,,MATCH(Q$4,$B$4:$F$4,0)-1),OFFSET('C. PoC Adj Factor Scoring'!$E$5:$J$282,,MATCH(Q$4,'C. PoC Adj Factor Scoring'!$E$3:$AH$3,0)-1),MATCH(Q$2&\" Score\",'C. PoC Adj Factor Scoring'!$E$4:$J$4,0),TRUE)","v":1},{"$f":"VLOOKUP(OFFSET($B:$B,,MATCH(R$4,$B$4:$F$4,0)-1),OFFSET('C. PoC Adj Factor Scoring'!$E$5:$J$282,,MATCH(R$4,'C. PoC Adj Factor Scoring'!$E$3:$AH$3,0)-1),MATCH(R$2&\" Score\",'C. PoC Adj Factor Scoring'!$E$4:$J$4,0),TRUE)","v":1},{"$f":"VLOOKUP(OFFSET($B:$B,,MATCH(S$4,$B$4:$F$4,0)-1),OFFSET('C. PoC Adj Factor Scoring'!$E$5:$J$282,,MATCH(S$4,'C. PoC Adj Factor Scoring'!$E$3:$AH$3,0)-1),MATCH(S$2&\" Score\",'C. PoC Adj Factor Scoring'!$E$4:$J$4,0),TRUE)","v":1},{"$f":"VLOOKUP(OFFSET($B:$B,,MATCH(T$4,$B$4:$F$4,0)-1),OFFSET('C. PoC Adj Factor Scoring'!$E$5:$J$282,,MATCH(T$4,'C. PoC Adj Factor Scoring'!$E$3:$AH$3,0)-1),MATCH(T$2&\" Score\",'C. PoC Adj Factor Scoring'!$E$4:$J$4,0),TRUE)","v":1},{"$f":"VLOOKUP(OFFSET($B:$B,,MATCH(U$4,$B$4:$F$4,0)-1),OFFSET('C. PoC Adj Factor Scoring'!$E$5:$J$282,,MATCH(U$4,'C. PoC Adj Factor Scoring'!$E$3:$AH$3,0)-1),MATCH(U$2&\" Score\",'C. PoC Adj Factor Scoring'!$E$4:$J$4,0),TRUE)","v":1},{"$f":"VLOOKUP(OFFSET($B:$B,,MATCH(V$4,$B$4:$F$4,0)-1),OFFSET('C. PoC Adj Factor Scoring'!$E$5:$J$282,,MATCH(V$4,'C. PoC Adj Factor Scoring'!$E$3:$AH$3,0)-1),MATCH(V$2&\" Score\",'C. PoC Adj Factor Scoring'!$E$4:$J$4,0),TRUE)","v":1},{"$f":"VLOOKUP(OFFSET($B:$B,,MATCH(W$4,$B$4:$F$4,0)-1),OFFSET('C. PoC Adj Factor Scoring'!$E$5:$J$282,,MATCH(W$4,'C. PoC Adj Factor Scoring'!$E$3:$AH$3,0)-1),MATCH(W$2&\" Score\",'C. PoC Adj Factor Scoring'!$E$4:$J$4,0),TRUE)","v":1},{"$f":"VLOOKUP(OFFSET($B:$B,,MATCH(X$4,$B$4:$F$4,0)-1),OFFSET('C. PoC Adj Factor Scoring'!$E$5:$J$282,,MATCH(X$4,'C. PoC Adj Factor Scoring'!$E$3:$AH$3,0)-1),MATCH(X$2&\" Score\",'C. PoC Adj Factor Scoring'!$E$4:$J$4,0),TRUE)","v":1},{"$f":"VLOOKUP(OFFSET($B:$B,,MATCH(Y$4,$B$4:$F$4,0)-1),OFFSET('C. PoC Adj Factor Scoring'!$E$5:$J$282,,MATCH(Y$4,'C. PoC Adj Factor Scoring'!$E$3:$AH$3,0)-1),MATCH(Y$2&\" Score\",'C. PoC Adj Factor Scoring'!$E$4:$J$4,0),TRUE)","v":1},{"$f":"VLOOKUP(OFFSET($B:$B,,MATCH(Z$4,$B$4:$F$4,0)-1),OFFSET('C. PoC Adj Factor Scoring'!$E$5:$J$282,,MATCH(Z$4,'C. PoC Adj Factor Scoring'!$E$3:$AH$3,0)-1),MATCH(Z$2&\" Score\",'C. PoC Adj Factor Scoring'!$E$4:$J$4,0),TRUE)","v":1},{"$f":"VLOOKUP(OFFSET($B:$B,,MATCH(AA$4,$B$4:$F$4,0)-1),OFFSET('C. PoC Adj Factor Scoring'!$E$5:$J$282,,MATCH(AA$4,'C. PoC Adj Factor Scoring'!$E$3:$AH$3,0)-1),MATCH(AA$2&\" Score\",'C. PoC Adj Factor Scoring'!$E$4:$J$4,0),TRUE)","v":3},{"$f":"VLOOKUP(OFFSET($B:$B,,MATCH(AB$4,$B$4:$F$4,0)-1),OFFSET('C. PoC Adj Factor Scoring'!$E$5:$J$282,,MATCH(AB$4,'C. PoC Adj Factor Scoring'!$E$3:$AH$3,0)-1),MATCH(AB$2&\" Score\",'C. PoC Adj Factor Scoring'!$E$4:$J$4,0),TRUE)","v":1},{"$f":"VLOOKUP(OFFSET($B:$B,,MATCH(AC$4,$B$4:$F$4,0)-1),OFFSET('C. PoC Adj Factor Scoring'!$E$5:$J$282,,MATCH(AC$4,'C. PoC Adj Factor Scoring'!$E$3:$AH$3,0)-1),MATCH(AC$2&\" Score\",'C. PoC Adj Factor Scoring'!$E$4:$J$4,0),TRUE)","v":1},{"$f":"VLOOKUP(OFFSET($B:$B,,MATCH(AD$4,$B$4:$F$4,0)-1),OFFSET('C. PoC Adj Factor Scoring'!$E$5:$J$282,,MATCH(AD$4,'C. PoC Adj Factor Scoring'!$E$3:$AH$3,0)-1),MATCH(AD$2&\" Score\",'C. PoC Adj Factor Scoring'!$E$4:$J$4,0),TRUE)","v":1},{"$f":"VLOOKUP(OFFSET($B:$B,,MATCH(AE$4,$B$4:$F$4,0)-1),OFFSET('C. PoC Adj Factor Scoring'!$E$5:$J$282,,MATCH(AE$4,'C. PoC Adj Factor Scoring'!$E$3:$AH$3,0)-1),MATCH(AE$2&\" Score\",'C. PoC Adj Factor Scoring'!$E$4:$J$4,0),TRUE)","v":1}]
[{"$f":"'A. Population Info'!A364","v":1000400951},{"$f":"'A. Population Info'!L364","v":"OIL"},{"$f":"'A. Population Info'!M364","v":0},{"$f":"'A. Population Info'!N364","v":0},{"$f":"'A. Population Info'!O364","v":0},{"$f":"'A. Population Info'!P364","v":0},{"$f":"VLOOKUP(OFFSET($B:$B,,MATCH(G$4,$B$4:$F$4,0)-1),OFFSET('C. PoC Adj Factor Scoring'!$E$5:$J$282,,MATCH(G$4,'C. PoC Adj Factor Scoring'!$E$3:$AH$3,0)-1),MATCH(G$2&\" Score\",'C. PoC Adj Factor Scoring'!$E$4:$J$4,0),TRUE)","v":4},{"$f":"VLOOKUP(OFFSET($B:$B,,MATCH(H$4,$B$4:$F$4,0)-1),OFFSET('C. PoC Adj Factor Scoring'!$E$5:$J$282,,MATCH(H$4,'C. PoC Adj Factor Scoring'!$E$3:$AH$3,0)-1),MATCH(H$2&\" Score\",'C. PoC Adj Factor Scoring'!$E$4:$J$4,0),TRUE)","v":1},{"$f":"VLOOKUP(OFFSET($B:$B,,MATCH(I$4,$B$4:$F$4,0)-1),OFFSET('C. PoC Adj Factor Scoring'!$E$5:$J$282,,MATCH(I$4,'C. PoC Adj Factor Scoring'!$E$3:$AH$3,0)-1),MATCH(I$2&\" Score\",'C. PoC Adj Factor Scoring'!$E$4:$J$4,0),TRUE)","v":1},{"$f":"VLOOKUP(OFFSET($B:$B,,MATCH(J$4,$B$4:$F$4,0)-1),OFFSET('C. PoC Adj Factor Scoring'!$E$5:$J$282,,MATCH(J$4,'C. PoC Adj Factor Scoring'!$E$3:$AH$3,0)-1),MATCH(J$2&\" Score\",'C. PoC Adj Factor Scoring'!$E$4:$J$4,0),TRUE)","v":1},{"$f":"VLOOKUP(OFFSET($B:$B,,MATCH(K$4,$B$4:$F$4,0)-1),OFFSET('C. PoC Adj Factor Scoring'!$E$5:$J$282,,MATCH(K$4,'C. PoC Adj Factor Scoring'!$E$3:$AH$3,0)-1),MATCH(K$2&\" Score\",'C. PoC Adj Factor Scoring'!$E$4:$J$4,0),TRUE)","v":1},{"$f":"VLOOKUP(OFFSET($B:$B,,MATCH(L$4,$B$4:$F$4,0)-1),OFFSET('C. PoC Adj Factor Scoring'!$E$5:$J$282,,MATCH(L$4,'C. PoC Adj Factor Scoring'!$E$3:$AH$3,0)-1),MATCH(L$2&\" Score\",'C. PoC Adj Factor Scoring'!$E$4:$J$4,0),TRUE)","v":1},{"$f":"VLOOKUP(OFFSET($B:$B,,MATCH(M$4,$B$4:$F$4,0)-1),OFFSET('C. PoC Adj Factor Scoring'!$E$5:$J$282,,MATCH(M$4,'C. PoC Adj Factor Scoring'!$E$3:$AH$3,0)-1),MATCH(M$2&\" Score\",'C. PoC Adj Factor Scoring'!$E$4:$J$4,0),TRUE)","v":1},{"$f":"VLOOKUP(OFFSET($B:$B,,MATCH(N$4,$B$4:$F$4,0)-1),OFFSET('C. PoC Adj Factor Scoring'!$E$5:$J$282,,MATCH(N$4,'C. PoC Adj Factor Scoring'!$E$3:$AH$3,0)-1),MATCH(N$2&\" Score\",'C. PoC Adj Factor Scoring'!$E$4:$J$4,0),TRUE)","v":1},{"$f":"VLOOKUP(OFFSET($B:$B,,MATCH(O$4,$B$4:$F$4,0)-1),OFFSET('C. PoC Adj Factor Scoring'!$E$5:$J$282,,MATCH(O$4,'C. PoC Adj Factor Scoring'!$E$3:$AH$3,0)-1),MATCH(O$2&\" Score\",'C. PoC Adj Factor Scoring'!$E$4:$J$4,0),TRUE)","v":1},{"$f":"VLOOKUP(OFFSET($B:$B,,MATCH(P$4,$B$4:$F$4,0)-1),OFFSET('C. PoC Adj Factor Scoring'!$E$5:$J$282,,MATCH(P$4,'C. PoC Adj Factor Scoring'!$E$3:$AH$3,0)-1),MATCH(P$2&\" Score\",'C. PoC Adj Factor Scoring'!$E$4:$J$4,0),TRUE)","v":1},{"$f":"VLOOKUP(OFFSET($B:$B,,MATCH(Q$4,$B$4:$F$4,0)-1),OFFSET('C. PoC Adj Factor Scoring'!$E$5:$J$282,,MATCH(Q$4,'C. PoC Adj Factor Scoring'!$E$3:$AH$3,0)-1),MATCH(Q$2&\" Score\",'C. PoC Adj Factor Scoring'!$E$4:$J$4,0),TRUE)","v":1},{"$f":"VLOOKUP(OFFSET($B:$B,,MATCH(R$4,$B$4:$F$4,0)-1),OFFSET('C. PoC Adj Factor Scoring'!$E$5:$J$282,,MATCH(R$4,'C. PoC Adj Factor Scoring'!$E$3:$AH$3,0)-1),MATCH(R$2&\" Score\",'C. PoC Adj Factor Scoring'!$E$4:$J$4,0),TRUE)","v":1},{"$f":"VLOOKUP(OFFSET($B:$B,,MATCH(S$4,$B$4:$F$4,0)-1),OFFSET('C. PoC Adj Factor Scoring'!$E$5:$J$282,,MATCH(S$4,'C. PoC Adj Factor Scoring'!$E$3:$AH$3,0)-1),MATCH(S$2&\" Score\",'C. PoC Adj Factor Scoring'!$E$4:$J$4,0),TRUE)","v":1},{"$f":"VLOOKUP(OFFSET($B:$B,,MATCH(T$4,$B$4:$F$4,0)-1),OFFSET('C. PoC Adj Factor Scoring'!$E$5:$J$282,,MATCH(T$4,'C. PoC Adj Factor Scoring'!$E$3:$AH$3,0)-1),MATCH(T$2&\" Score\",'C. PoC Adj Factor Scoring'!$E$4:$J$4,0),TRUE)","v":1},{"$f":"VLOOKUP(OFFSET($B:$B,,MATCH(U$4,$B$4:$F$4,0)-1),OFFSET('C. PoC Adj Factor Scoring'!$E$5:$J$282,,MATCH(U$4,'C. PoC Adj Factor Scoring'!$E$3:$AH$3,0)-1),MATCH(U$2&\" Score\",'C. PoC Adj Factor Scoring'!$E$4:$J$4,0),TRUE)","v":1},{"$f":"VLOOKUP(OFFSET($B:$B,,MATCH(V$4,$B$4:$F$4,0)-1),OFFSET('C. PoC Adj Factor Scoring'!$E$5:$J$282,,MATCH(V$4,'C. PoC Adj Factor Scoring'!$E$3:$AH$3,0)-1),MATCH(V$2&\" Score\",'C. PoC Adj Factor Scoring'!$E$4:$J$4,0),TRUE)","v":1},{"$f":"VLOOKUP(OFFSET($B:$B,,MATCH(W$4,$B$4:$F$4,0)-1),OFFSET('C. PoC Adj Factor Scoring'!$E$5:$J$282,,MATCH(W$4,'C. PoC Adj Factor Scoring'!$E$3:$AH$3,0)-1),MATCH(W$2&\" Score\",'C. PoC Adj Factor Scoring'!$E$4:$J$4,0),TRUE)","v":1},{"$f":"VLOOKUP(OFFSET($B:$B,,MATCH(X$4,$B$4:$F$4,0)-1),OFFSET('C. PoC Adj Factor Scoring'!$E$5:$J$282,,MATCH(X$4,'C. PoC Adj Factor Scoring'!$E$3:$AH$3,0)-1),MATCH(X$2&\" Score\",'C. PoC Adj Factor Scoring'!$E$4:$J$4,0),TRUE)","v":1},{"$f":"VLOOKUP(OFFSET($B:$B,,MATCH(Y$4,$B$4:$F$4,0)-1),OFFSET('C. PoC Adj Factor Scoring'!$E$5:$J$282,,MATCH(Y$4,'C. PoC Adj Factor Scoring'!$E$3:$AH$3,0)-1),MATCH(Y$2&\" Score\",'C. PoC Adj Factor Scoring'!$E$4:$J$4,0),TRUE)","v":1},{"$f":"VLOOKUP(OFFSET($B:$B,,MATCH(Z$4,$B$4:$F$4,0)-1),OFFSET('C. PoC Adj Factor Scoring'!$E$5:$J$282,,MATCH(Z$4,'C. PoC Adj Factor Scoring'!$E$3:$AH$3,0)-1),MATCH(Z$2&\" Score\",'C. PoC Adj Factor Scoring'!$E$4:$J$4,0),TRUE)","v":1},{"$f":"VLOOKUP(OFFSET($B:$B,,MATCH(AA$4,$B$4:$F$4,0)-1),OFFSET('C. PoC Adj Factor Scoring'!$E$5:$J$282,,MATCH(AA$4,'C. PoC Adj Factor Scoring'!$E$3:$AH$3,0)-1),MATCH(AA$2&\" Score\",'C. PoC Adj Factor Scoring'!$E$4:$J$4,0),TRUE)","v":3},{"$f":"VLOOKUP(OFFSET($B:$B,,MATCH(AB$4,$B$4:$F$4,0)-1),OFFSET('C. PoC Adj Factor Scoring'!$E$5:$J$282,,MATCH(AB$4,'C. PoC Adj Factor Scoring'!$E$3:$AH$3,0)-1),MATCH(AB$2&\" Score\",'C. PoC Adj Factor Scoring'!$E$4:$J$4,0),TRUE)","v":1},{"$f":"VLOOKUP(OFFSET($B:$B,,MATCH(AC$4,$B$4:$F$4,0)-1),OFFSET('C. PoC Adj Factor Scoring'!$E$5:$J$282,,MATCH(AC$4,'C. PoC Adj Factor Scoring'!$E$3:$AH$3,0)-1),MATCH(AC$2&\" Score\",'C. PoC Adj Factor Scoring'!$E$4:$J$4,0),TRUE)","v":1},{"$f":"VLOOKUP(OFFSET($B:$B,,MATCH(AD$4,$B$4:$F$4,0)-1),OFFSET('C. PoC Adj Factor Scoring'!$E$5:$J$282,,MATCH(AD$4,'C. PoC Adj Factor Scoring'!$E$3:$AH$3,0)-1),MATCH(AD$2&\" Score\",'C. PoC Adj Factor Scoring'!$E$4:$J$4,0),TRUE)","v":1},{"$f":"VLOOKUP(OFFSET($B:$B,,MATCH(AE$4,$B$4:$F$4,0)-1),OFFSET('C. PoC Adj Factor Scoring'!$E$5:$J$282,,MATCH(AE$4,'C. PoC Adj Factor Scoring'!$E$3:$AH$3,0)-1),MATCH(AE$2&\" Score\",'C. PoC Adj Factor Scoring'!$E$4:$J$4,0),TRUE)","v":1}]
[{"$f":"'A. Population Info'!A365","v":1000400977},{"$f":"'A. Population Info'!L365","v":"OIL"},{"$f":"'A. Population Info'!M365","v":0},{"$f":"'A. Population Info'!N365","v":0},{"$f":"'A. Population Info'!O365","v":0},{"$f":"'A. Population Info'!P365","v":0},{"$f":"VLOOKUP(OFFSET($B:$B,,MATCH(G$4,$B$4:$F$4,0)-1),OFFSET('C. PoC Adj Factor Scoring'!$E$5:$J$282,,MATCH(G$4,'C. PoC Adj Factor Scoring'!$E$3:$AH$3,0)-1),MATCH(G$2&\" Score\",'C. PoC Adj Factor Scoring'!$E$4:$J$4,0),TRUE)","v":4},{"$f":"VLOOKUP(OFFSET($B:$B,,MATCH(H$4,$B$4:$F$4,0)-1),OFFSET('C. PoC Adj Factor Scoring'!$E$5:$J$282,,MATCH(H$4,'C. PoC Adj Factor Scoring'!$E$3:$AH$3,0)-1),MATCH(H$2&\" Score\",'C. PoC Adj Factor Scoring'!$E$4:$J$4,0),TRUE)","v":1},{"$f":"VLOOKUP(OFFSET($B:$B,,MATCH(I$4,$B$4:$F$4,0)-1),OFFSET('C. PoC Adj Factor Scoring'!$E$5:$J$282,,MATCH(I$4,'C. PoC Adj Factor Scoring'!$E$3:$AH$3,0)-1),MATCH(I$2&\" Score\",'C. PoC Adj Factor Scoring'!$E$4:$J$4,0),TRUE)","v":1},{"$f":"VLOOKUP(OFFSET($B:$B,,MATCH(J$4,$B$4:$F$4,0)-1),OFFSET('C. PoC Adj Factor Scoring'!$E$5:$J$282,,MATCH(J$4,'C. PoC Adj Factor Scoring'!$E$3:$AH$3,0)-1),MATCH(J$2&\" Score\",'C. PoC Adj Factor Scoring'!$E$4:$J$4,0),TRUE)","v":1},{"$f":"VLOOKUP(OFFSET($B:$B,,MATCH(K$4,$B$4:$F$4,0)-1),OFFSET('C. PoC Adj Factor Scoring'!$E$5:$J$282,,MATCH(K$4,'C. PoC Adj Factor Scoring'!$E$3:$AH$3,0)-1),MATCH(K$2&\" Score\",'C. PoC Adj Factor Scoring'!$E$4:$J$4,0),TRUE)","v":1},{"$f":"VLOOKUP(OFFSET($B:$B,,MATCH(L$4,$B$4:$F$4,0)-1),OFFSET('C. PoC Adj Factor Scoring'!$E$5:$J$282,,MATCH(L$4,'C. PoC Adj Factor Scoring'!$E$3:$AH$3,0)-1),MATCH(L$2&\" Score\",'C. PoC Adj Factor Scoring'!$E$4:$J$4,0),TRUE)","v":1},{"$f":"VLOOKUP(OFFSET($B:$B,,MATCH(M$4,$B$4:$F$4,0)-1),OFFSET('C. PoC Adj Factor Scoring'!$E$5:$J$282,,MATCH(M$4,'C. PoC Adj Factor Scoring'!$E$3:$AH$3,0)-1),MATCH(M$2&\" Score\",'C. PoC Adj Factor Scoring'!$E$4:$J$4,0),TRUE)","v":1},{"$f":"VLOOKUP(OFFSET($B:$B,,MATCH(N$4,$B$4:$F$4,0)-1),OFFSET('C. PoC Adj Factor Scoring'!$E$5:$J$282,,MATCH(N$4,'C. PoC Adj Factor Scoring'!$E$3:$AH$3,0)-1),MATCH(N$2&\" Score\",'C. PoC Adj Factor Scoring'!$E$4:$J$4,0),TRUE)","v":1},{"$f":"VLOOKUP(OFFSET($B:$B,,MATCH(O$4,$B$4:$F$4,0)-1),OFFSET('C. PoC Adj Factor Scoring'!$E$5:$J$282,,MATCH(O$4,'C. PoC Adj Factor Scoring'!$E$3:$AH$3,0)-1),MATCH(O$2&\" Score\",'C. PoC Adj Factor Scoring'!$E$4:$J$4,0),TRUE)","v":1},{"$f":"VLOOKUP(OFFSET($B:$B,,MATCH(P$4,$B$4:$F$4,0)-1),OFFSET('C. PoC Adj Factor Scoring'!$E$5:$J$282,,MATCH(P$4,'C. PoC Adj Factor Scoring'!$E$3:$AH$3,0)-1),MATCH(P$2&\" Score\",'C. PoC Adj Factor Scoring'!$E$4:$J$4,0),TRUE)","v":1},{"$f":"VLOOKUP(OFFSET($B:$B,,MATCH(Q$4,$B$4:$F$4,0)-1),OFFSET('C. PoC Adj Factor Scoring'!$E$5:$J$282,,MATCH(Q$4,'C. PoC Adj Factor Scoring'!$E$3:$AH$3,0)-1),MATCH(Q$2&\" Score\",'C. PoC Adj Factor Scoring'!$E$4:$J$4,0),TRUE)","v":1},{"$f":"VLOOKUP(OFFSET($B:$B,,MATCH(R$4,$B$4:$F$4,0)-1),OFFSET('C. PoC Adj Factor Scoring'!$E$5:$J$282,,MATCH(R$4,'C. PoC Adj Factor Scoring'!$E$3:$AH$3,0)-1),MATCH(R$2&\" Score\",'C. PoC Adj Factor Scoring'!$E$4:$J$4,0),TRUE)","v":1},{"$f":"VLOOKUP(OFFSET($B:$B,,MATCH(S$4,$B$4:$F$4,0)-1),OFFSET('C. PoC Adj Factor Scoring'!$E$5:$J$282,,MATCH(S$4,'C. PoC Adj Factor Scoring'!$E$3:$AH$3,0)-1),MATCH(S$2&\" Score\",'C. PoC Adj Factor Scoring'!$E$4:$J$4,0),TRUE)","v":1},{"$f":"VLOOKUP(OFFSET($B:$B,,MATCH(T$4,$B$4:$F$4,0)-1),OFFSET('C. PoC Adj Factor Scoring'!$E$5:$J$282,,MATCH(T$4,'C. PoC Adj Factor Scoring'!$E$3:$AH$3,0)-1),MATCH(T$2&\" Score\",'C. PoC Adj Factor Scoring'!$E$4:$J$4,0),TRUE)","v":1},{"$f":"VLOOKUP(OFFSET($B:$B,,MATCH(U$4,$B$4:$F$4,0)-1),OFFSET('C. PoC Adj Factor Scoring'!$E$5:$J$282,,MATCH(U$4,'C. PoC Adj Factor Scoring'!$E$3:$AH$3,0)-1),MATCH(U$2&\" Score\",'C. PoC Adj Factor Scoring'!$E$4:$J$4,0),TRUE)","v":1},{"$f":"VLOOKUP(OFFSET($B:$B,,MATCH(V$4,$B$4:$F$4,0)-1),OFFSET('C. PoC Adj Factor Scoring'!$E$5:$J$282,,MATCH(V$4,'C. PoC Adj Factor Scoring'!$E$3:$AH$3,0)-1),MATCH(V$2&\" Score\",'C. PoC Adj Factor Scoring'!$E$4:$J$4,0),TRUE)","v":1},{"$f":"VLOOKUP(OFFSET($B:$B,,MATCH(W$4,$B$4:$F$4,0)-1),OFFSET('C. PoC Adj Factor Scoring'!$E$5:$J$282,,MATCH(W$4,'C. PoC Adj Factor Scoring'!$E$3:$AH$3,0)-1),MATCH(W$2&\" Score\",'C. PoC Adj Factor Scoring'!$E$4:$J$4,0),TRUE)","v":1},{"$f":"VLOOKUP(OFFSET($B:$B,,MATCH(X$4,$B$4:$F$4,0)-1),OFFSET('C. PoC Adj Factor Scoring'!$E$5:$J$282,,MATCH(X$4,'C. PoC Adj Factor Scoring'!$E$3:$AH$3,0)-1),MATCH(X$2&\" Score\",'C. PoC Adj Factor Scoring'!$E$4:$J$4,0),TRUE)","v":1},{"$f":"VLOOKUP(OFFSET($B:$B,,MATCH(Y$4,$B$4:$F$4,0)-1),OFFSET('C. PoC Adj Factor Scoring'!$E$5:$J$282,,MATCH(Y$4,'C. PoC Adj Factor Scoring'!$E$3:$AH$3,0)-1),MATCH(Y$2&\" Score\",'C. PoC Adj Factor Scoring'!$E$4:$J$4,0),TRUE)","v":1},{"$f":"VLOOKUP(OFFSET($B:$B,,MATCH(Z$4,$B$4:$F$4,0)-1),OFFSET('C. PoC Adj Factor Scoring'!$E$5:$J$282,,MATCH(Z$4,'C. PoC Adj Factor Scoring'!$E$3:$AH$3,0)-1),MATCH(Z$2&\" Score\",'C. PoC Adj Factor Scoring'!$E$4:$J$4,0),TRUE)","v":1},{"$f":"VLOOKUP(OFFSET($B:$B,,MATCH(AA$4,$B$4:$F$4,0)-1),OFFSET('C. PoC Adj Factor Scoring'!$E$5:$J$282,,MATCH(AA$4,'C. PoC Adj Factor Scoring'!$E$3:$AH$3,0)-1),MATCH(AA$2&\" Score\",'C. PoC Adj Factor Scoring'!$E$4:$J$4,0),TRUE)","v":3},{"$f":"VLOOKUP(OFFSET($B:$B,,MATCH(AB$4,$B$4:$F$4,0)-1),OFFSET('C. PoC Adj Factor Scoring'!$E$5:$J$282,,MATCH(AB$4,'C. PoC Adj Factor Scoring'!$E$3:$AH$3,0)-1),MATCH(AB$2&\" Score\",'C. PoC Adj Factor Scoring'!$E$4:$J$4,0),TRUE)","v":1},{"$f":"VLOOKUP(OFFSET($B:$B,,MATCH(AC$4,$B$4:$F$4,0)-1),OFFSET('C. PoC Adj Factor Scoring'!$E$5:$J$282,,MATCH(AC$4,'C. PoC Adj Factor Scoring'!$E$3:$AH$3,0)-1),MATCH(AC$2&\" Score\",'C. PoC Adj Factor Scoring'!$E$4:$J$4,0),TRUE)","v":1},{"$f":"VLOOKUP(OFFSET($B:$B,,MATCH(AD$4,$B$4:$F$4,0)-1),OFFSET('C. PoC Adj Factor Scoring'!$E$5:$J$282,,MATCH(AD$4,'C. PoC Adj Factor Scoring'!$E$3:$AH$3,0)-1),MATCH(AD$2&\" Score\",'C. PoC Adj Factor Scoring'!$E$4:$J$4,0),TRUE)","v":1},{"$f":"VLOOKUP(OFFSET($B:$B,,MATCH(AE$4,$B$4:$F$4,0)-1),OFFSET('C. PoC Adj Factor Scoring'!$E$5:$J$282,,MATCH(AE$4,'C. PoC Adj Factor Scoring'!$E$3:$AH$3,0)-1),MATCH(AE$2&\" Score\",'C. PoC Adj Factor Scoring'!$E$4:$J$4,0),TRUE)","v":1}]
[{"$f":"'A. Population Info'!A366","v":1000404003},{"$f":"'A. Population Info'!L366","v":"OIL"},{"$f":"'A. Population Info'!M366","v":0},{"$f":"'A. Population Info'!N366","v":0},{"$f":"'A. Population Info'!O366","v":0},{"$f":"'A. Population Info'!P366","v":0},{"$f":"VLOOKUP(OFFSET($B:$B,,MATCH(G$4,$B$4:$F$4,0)-1),OFFSET('C. PoC Adj Factor Scoring'!$E$5:$J$282,,MATCH(G$4,'C. PoC Adj Factor Scoring'!$E$3:$AH$3,0)-1),MATCH(G$2&\" Score\",'C. PoC Adj Factor Scoring'!$E$4:$J$4,0),TRUE)","v":4},{"$f":"VLOOKUP(OFFSET($B:$B,,MATCH(H$4,$B$4:$F$4,0)-1),OFFSET('C. PoC Adj Factor Scoring'!$E$5:$J$282,,MATCH(H$4,'C. PoC Adj Factor Scoring'!$E$3:$AH$3,0)-1),MATCH(H$2&\" Score\",'C. PoC Adj Factor Scoring'!$E$4:$J$4,0),TRUE)","v":1},{"$f":"VLOOKUP(OFFSET($B:$B,,MATCH(I$4,$B$4:$F$4,0)-1),OFFSET('C. PoC Adj Factor Scoring'!$E$5:$J$282,,MATCH(I$4,'C. PoC Adj Factor Scoring'!$E$3:$AH$3,0)-1),MATCH(I$2&\" Score\",'C. PoC Adj Factor Scoring'!$E$4:$J$4,0),TRUE)","v":1},{"$f":"VLOOKUP(OFFSET($B:$B,,MATCH(J$4,$B$4:$F$4,0)-1),OFFSET('C. PoC Adj Factor Scoring'!$E$5:$J$282,,MATCH(J$4,'C. PoC Adj Factor Scoring'!$E$3:$AH$3,0)-1),MATCH(J$2&\" Score\",'C. PoC Adj Factor Scoring'!$E$4:$J$4,0),TRUE)","v":1},{"$f":"VLOOKUP(OFFSET($B:$B,,MATCH(K$4,$B$4:$F$4,0)-1),OFFSET('C. PoC Adj Factor Scoring'!$E$5:$J$282,,MATCH(K$4,'C. PoC Adj Factor Scoring'!$E$3:$AH$3,0)-1),MATCH(K$2&\" Score\",'C. PoC Adj Factor Scoring'!$E$4:$J$4,0),TRUE)","v":1},{"$f":"VLOOKUP(OFFSET($B:$B,,MATCH(L$4,$B$4:$F$4,0)-1),OFFSET('C. PoC Adj Factor Scoring'!$E$5:$J$282,,MATCH(L$4,'C. PoC Adj Factor Scoring'!$E$3:$AH$3,0)-1),MATCH(L$2&\" Score\",'C. PoC Adj Factor Scoring'!$E$4:$J$4,0),TRUE)","v":1},{"$f":"VLOOKUP(OFFSET($B:$B,,MATCH(M$4,$B$4:$F$4,0)-1),OFFSET('C. PoC Adj Factor Scoring'!$E$5:$J$282,,MATCH(M$4,'C. PoC Adj Factor Scoring'!$E$3:$AH$3,0)-1),MATCH(M$2&\" Score\",'C. PoC Adj Factor Scoring'!$E$4:$J$4,0),TRUE)","v":1},{"$f":"VLOOKUP(OFFSET($B:$B,,MATCH(N$4,$B$4:$F$4,0)-1),OFFSET('C. PoC Adj Factor Scoring'!$E$5:$J$282,,MATCH(N$4,'C. PoC Adj Factor Scoring'!$E$3:$AH$3,0)-1),MATCH(N$2&\" Score\",'C. PoC Adj Factor Scoring'!$E$4:$J$4,0),TRUE)","v":1},{"$f":"VLOOKUP(OFFSET($B:$B,,MATCH(O$4,$B$4:$F$4,0)-1),OFFSET('C. PoC Adj Factor Scoring'!$E$5:$J$282,,MATCH(O$4,'C. PoC Adj Factor Scoring'!$E$3:$AH$3,0)-1),MATCH(O$2&\" Score\",'C. PoC Adj Factor Scoring'!$E$4:$J$4,0),TRUE)","v":1},{"$f":"VLOOKUP(OFFSET($B:$B,,MATCH(P$4,$B$4:$F$4,0)-1),OFFSET('C. PoC Adj Factor Scoring'!$E$5:$J$282,,MATCH(P$4,'C. PoC Adj Factor Scoring'!$E$3:$AH$3,0)-1),MATCH(P$2&\" Score\",'C. PoC Adj Factor Scoring'!$E$4:$J$4,0),TRUE)","v":1},{"$f":"VLOOKUP(OFFSET($B:$B,,MATCH(Q$4,$B$4:$F$4,0)-1),OFFSET('C. PoC Adj Factor Scoring'!$E$5:$J$282,,MATCH(Q$4,'C. PoC Adj Factor Scoring'!$E$3:$AH$3,0)-1),MATCH(Q$2&\" Score\",'C. PoC Adj Factor Scoring'!$E$4:$J$4,0),TRUE)","v":1},{"$f":"VLOOKUP(OFFSET($B:$B,,MATCH(R$4,$B$4:$F$4,0)-1),OFFSET('C. PoC Adj Factor Scoring'!$E$5:$J$282,,MATCH(R$4,'C. PoC Adj Factor Scoring'!$E$3:$AH$3,0)-1),MATCH(R$2&\" Score\",'C. PoC Adj Factor Scoring'!$E$4:$J$4,0),TRUE)","v":1},{"$f":"VLOOKUP(OFFSET($B:$B,,MATCH(S$4,$B$4:$F$4,0)-1),OFFSET('C. PoC Adj Factor Scoring'!$E$5:$J$282,,MATCH(S$4,'C. PoC Adj Factor Scoring'!$E$3:$AH$3,0)-1),MATCH(S$2&\" Score\",'C. PoC Adj Factor Scoring'!$E$4:$J$4,0),TRUE)","v":1},{"$f":"VLOOKUP(OFFSET($B:$B,,MATCH(T$4,$B$4:$F$4,0)-1),OFFSET('C. PoC Adj Factor Scoring'!$E$5:$J$282,,MATCH(T$4,'C. PoC Adj Factor Scoring'!$E$3:$AH$3,0)-1),MATCH(T$2&\" Score\",'C. PoC Adj Factor Scoring'!$E$4:$J$4,0),TRUE)","v":1},{"$f":"VLOOKUP(OFFSET($B:$B,,MATCH(U$4,$B$4:$F$4,0)-1),OFFSET('C. PoC Adj Factor Scoring'!$E$5:$J$282,,MATCH(U$4,'C. PoC Adj Factor Scoring'!$E$3:$AH$3,0)-1),MATCH(U$2&\" Score\",'C. PoC Adj Factor Scoring'!$E$4:$J$4,0),TRUE)","v":1},{"$f":"VLOOKUP(OFFSET($B:$B,,MATCH(V$4,$B$4:$F$4,0)-1),OFFSET('C. PoC Adj Factor Scoring'!$E$5:$J$282,,MATCH(V$4,'C. PoC Adj Factor Scoring'!$E$3:$AH$3,0)-1),MATCH(V$2&\" Score\",'C. PoC Adj Factor Scoring'!$E$4:$J$4,0),TRUE)","v":1},{"$f":"VLOOKUP(OFFSET($B:$B,,MATCH(W$4,$B$4:$F$4,0)-1),OFFSET('C. PoC Adj Factor Scoring'!$E$5:$J$282,,MATCH(W$4,'C. PoC Adj Factor Scoring'!$E$3:$AH$3,0)-1),MATCH(W$2&\" Score\",'C. PoC Adj Factor Scoring'!$E$4:$J$4,0),TRUE)","v":1},{"$f":"VLOOKUP(OFFSET($B:$B,,MATCH(X$4,$B$4:$F$4,0)-1),OFFSET('C. PoC Adj Factor Scoring'!$E$5:$J$282,,MATCH(X$4,'C. PoC Adj Factor Scoring'!$E$3:$AH$3,0)-1),MATCH(X$2&\" Score\",'C. PoC Adj Factor Scoring'!$E$4:$J$4,0),TRUE)","v":1},{"$f":"VLOOKUP(OFFSET($B:$B,,MATCH(Y$4,$B$4:$F$4,0)-1),OFFSET('C. PoC Adj Factor Scoring'!$E$5:$J$282,,MATCH(Y$4,'C. PoC Adj Factor Scoring'!$E$3:$AH$3,0)-1),MATCH(Y$2&\" Score\",'C. PoC Adj Factor Scoring'!$E$4:$J$4,0),TRUE)","v":1},{"$f":"VLOOKUP(OFFSET($B:$B,,MATCH(Z$4,$B$4:$F$4,0)-1),OFFSET('C. PoC Adj Factor Scoring'!$E$5:$J$282,,MATCH(Z$4,'C. PoC Adj Factor Scoring'!$E$3:$AH$3,0)-1),MATCH(Z$2&\" Score\",'C. PoC Adj Factor Scoring'!$E$4:$J$4,0),TRUE)","v":1},{"$f":"VLOOKUP(OFFSET($B:$B,,MATCH(AA$4,$B$4:$F$4,0)-1),OFFSET('C. PoC Adj Factor Scoring'!$E$5:$J$282,,MATCH(AA$4,'C. PoC Adj Factor Scoring'!$E$3:$AH$3,0)-1),MATCH(AA$2&\" Score\",'C. PoC Adj Factor Scoring'!$E$4:$J$4,0),TRUE)","v":3},{"$f":"VLOOKUP(OFFSET($B:$B,,MATCH(AB$4,$B$4:$F$4,0)-1),OFFSET('C. PoC Adj Factor Scoring'!$E$5:$J$282,,MATCH(AB$4,'C. PoC Adj Factor Scoring'!$E$3:$AH$3,0)-1),MATCH(AB$2&\" Score\",'C. PoC Adj Factor Scoring'!$E$4:$J$4,0),TRUE)","v":1},{"$f":"VLOOKUP(OFFSET($B:$B,,MATCH(AC$4,$B$4:$F$4,0)-1),OFFSET('C. PoC Adj Factor Scoring'!$E$5:$J$282,,MATCH(AC$4,'C. PoC Adj Factor Scoring'!$E$3:$AH$3,0)-1),MATCH(AC$2&\" Score\",'C. PoC Adj Factor Scoring'!$E$4:$J$4,0),TRUE)","v":1},{"$f":"VLOOKUP(OFFSET($B:$B,,MATCH(AD$4,$B$4:$F$4,0)-1),OFFSET('C. PoC Adj Factor Scoring'!$E$5:$J$282,,MATCH(AD$4,'C. PoC Adj Factor Scoring'!$E$3:$AH$3,0)-1),MATCH(AD$2&\" Score\",'C. PoC Adj Factor Scoring'!$E$4:$J$4,0),TRUE)","v":1},{"$f":"VLOOKUP(OFFSET($B:$B,,MATCH(AE$4,$B$4:$F$4,0)-1),OFFSET('C. PoC Adj Factor Scoring'!$E$5:$J$282,,MATCH(AE$4,'C. PoC Adj Factor Scoring'!$E$3:$AH$3,0)-1),MATCH(AE$2&\" Score\",'C. PoC Adj Factor Scoring'!$E$4:$J$4,0),TRUE)","v":1}]
[{"$f":"'A. Population Info'!A367","v":1000404028},{"$f":"'A. Population Info'!L367","v":"OIL"},{"$f":"'A. Population Info'!M367","v":0},{"$f":"'A. Population Info'!N367","v":0},{"$f":"'A. Population Info'!O367","v":0},{"$f":"'A. Population Info'!P367","v":0},{"$f":"VLOOKUP(OFFSET($B:$B,,MATCH(G$4,$B$4:$F$4,0)-1),OFFSET('C. PoC Adj Factor Scoring'!$E$5:$J$282,,MATCH(G$4,'C. PoC Adj Factor Scoring'!$E$3:$AH$3,0)-1),MATCH(G$2&\" Score\",'C. PoC Adj Factor Scoring'!$E$4:$J$4,0),TRUE)","v":4},{"$f":"VLOOKUP(OFFSET($B:$B,,MATCH(H$4,$B$4:$F$4,0)-1),OFFSET('C. PoC Adj Factor Scoring'!$E$5:$J$282,,MATCH(H$4,'C. PoC Adj Factor Scoring'!$E$3:$AH$3,0)-1),MATCH(H$2&\" Score\",'C. PoC Adj Factor Scoring'!$E$4:$J$4,0),TRUE)","v":1},{"$f":"VLOOKUP(OFFSET($B:$B,,MATCH(I$4,$B$4:$F$4,0)-1),OFFSET('C. PoC Adj Factor Scoring'!$E$5:$J$282,,MATCH(I$4,'C. PoC Adj Factor Scoring'!$E$3:$AH$3,0)-1),MATCH(I$2&\" Score\",'C. PoC Adj Factor Scoring'!$E$4:$J$4,0),TRUE)","v":1},{"$f":"VLOOKUP(OFFSET($B:$B,,MATCH(J$4,$B$4:$F$4,0)-1),OFFSET('C. PoC Adj Factor Scoring'!$E$5:$J$282,,MATCH(J$4,'C. PoC Adj Factor Scoring'!$E$3:$AH$3,0)-1),MATCH(J$2&\" Score\",'C. PoC Adj Factor Scoring'!$E$4:$J$4,0),TRUE)","v":1},{"$f":"VLOOKUP(OFFSET($B:$B,,MATCH(K$4,$B$4:$F$4,0)-1),OFFSET('C. PoC Adj Factor Scoring'!$E$5:$J$282,,MATCH(K$4,'C. PoC Adj Factor Scoring'!$E$3:$AH$3,0)-1),MATCH(K$2&\" Score\",'C. PoC Adj Factor Scoring'!$E$4:$J$4,0),TRUE)","v":1},{"$f":"VLOOKUP(OFFSET($B:$B,,MATCH(L$4,$B$4:$F$4,0)-1),OFFSET('C. PoC Adj Factor Scoring'!$E$5:$J$282,,MATCH(L$4,'C. PoC Adj Factor Scoring'!$E$3:$AH$3,0)-1),MATCH(L$2&\" Score\",'C. PoC Adj Factor Scoring'!$E$4:$J$4,0),TRUE)","v":1},{"$f":"VLOOKUP(OFFSET($B:$B,,MATCH(M$4,$B$4:$F$4,0)-1),OFFSET('C. PoC Adj Factor Scoring'!$E$5:$J$282,,MATCH(M$4,'C. PoC Adj Factor Scoring'!$E$3:$AH$3,0)-1),MATCH(M$2&\" Score\",'C. PoC Adj Factor Scoring'!$E$4:$J$4,0),TRUE)","v":1},{"$f":"VLOOKUP(OFFSET($B:$B,,MATCH(N$4,$B$4:$F$4,0)-1),OFFSET('C. PoC Adj Factor Scoring'!$E$5:$J$282,,MATCH(N$4,'C. PoC Adj Factor Scoring'!$E$3:$AH$3,0)-1),MATCH(N$2&\" Score\",'C. PoC Adj Factor Scoring'!$E$4:$J$4,0),TRUE)","v":1},{"$f":"VLOOKUP(OFFSET($B:$B,,MATCH(O$4,$B$4:$F$4,0)-1),OFFSET('C. PoC Adj Factor Scoring'!$E$5:$J$282,,MATCH(O$4,'C. PoC Adj Factor Scoring'!$E$3:$AH$3,0)-1),MATCH(O$2&\" Score\",'C. PoC Adj Factor Scoring'!$E$4:$J$4,0),TRUE)","v":1},{"$f":"VLOOKUP(OFFSET($B:$B,,MATCH(P$4,$B$4:$F$4,0)-1),OFFSET('C. PoC Adj Factor Scoring'!$E$5:$J$282,,MATCH(P$4,'C. PoC Adj Factor Scoring'!$E$3:$AH$3,0)-1),MATCH(P$2&\" Score\",'C. PoC Adj Factor Scoring'!$E$4:$J$4,0),TRUE)","v":1},{"$f":"VLOOKUP(OFFSET($B:$B,,MATCH(Q$4,$B$4:$F$4,0)-1),OFFSET('C. PoC Adj Factor Scoring'!$E$5:$J$282,,MATCH(Q$4,'C. PoC Adj Factor Scoring'!$E$3:$AH$3,0)-1),MATCH(Q$2&\" Score\",'C. PoC Adj Factor Scoring'!$E$4:$J$4,0),TRUE)","v":1},{"$f":"VLOOKUP(OFFSET($B:$B,,MATCH(R$4,$B$4:$F$4,0)-1),OFFSET('C. PoC Adj Factor Scoring'!$E$5:$J$282,,MATCH(R$4,'C. PoC Adj Factor Scoring'!$E$3:$AH$3,0)-1),MATCH(R$2&\" Score\",'C. PoC Adj Factor Scoring'!$E$4:$J$4,0),TRUE)","v":1},{"$f":"VLOOKUP(OFFSET($B:$B,,MATCH(S$4,$B$4:$F$4,0)-1),OFFSET('C. PoC Adj Factor Scoring'!$E$5:$J$282,,MATCH(S$4,'C. PoC Adj Factor Scoring'!$E$3:$AH$3,0)-1),MATCH(S$2&\" Score\",'C. PoC Adj Factor Scoring'!$E$4:$J$4,0),TRUE)","v":1},{"$f":"VLOOKUP(OFFSET($B:$B,,MATCH(T$4,$B$4:$F$4,0)-1),OFFSET('C. PoC Adj Factor Scoring'!$E$5:$J$282,,MATCH(T$4,'C. PoC Adj Factor Scoring'!$E$3:$AH$3,0)-1),MATCH(T$2&\" Score\",'C. PoC Adj Factor Scoring'!$E$4:$J$4,0),TRUE)","v":1},{"$f":"VLOOKUP(OFFSET($B:$B,,MATCH(U$4,$B$4:$F$4,0)-1),OFFSET('C. PoC Adj Factor Scoring'!$E$5:$J$282,,MATCH(U$4,'C. PoC Adj Factor Scoring'!$E$3:$AH$3,0)-1),MATCH(U$2&\" Score\",'C. PoC Adj Factor Scoring'!$E$4:$J$4,0),TRUE)","v":1},{"$f":"VLOOKUP(OFFSET($B:$B,,MATCH(V$4,$B$4:$F$4,0)-1),OFFSET('C. PoC Adj Factor Scoring'!$E$5:$J$282,,MATCH(V$4,'C. PoC Adj Factor Scoring'!$E$3:$AH$3,0)-1),MATCH(V$2&\" Score\",'C. PoC Adj Factor Scoring'!$E$4:$J$4,0),TRUE)","v":1},{"$f":"VLOOKUP(OFFSET($B:$B,,MATCH(W$4,$B$4:$F$4,0)-1),OFFSET('C. PoC Adj Factor Scoring'!$E$5:$J$282,,MATCH(W$4,'C. PoC Adj Factor Scoring'!$E$3:$AH$3,0)-1),MATCH(W$2&\" Score\",'C. PoC Adj Factor Scoring'!$E$4:$J$4,0),TRUE)","v":1},{"$f":"VLOOKUP(OFFSET($B:$B,,MATCH(X$4,$B$4:$F$4,0)-1),OFFSET('C. PoC Adj Factor Scoring'!$E$5:$J$282,,MATCH(X$4,'C. PoC Adj Factor Scoring'!$E$3:$AH$3,0)-1),MATCH(X$2&\" Score\",'C. PoC Adj Factor Scoring'!$E$4:$J$4,0),TRUE)","v":1},{"$f":"VLOOKUP(OFFSET($B:$B,,MATCH(Y$4,$B$4:$F$4,0)-1),OFFSET('C. PoC Adj Factor Scoring'!$E$5:$J$282,,MATCH(Y$4,'C. PoC Adj Factor Scoring'!$E$3:$AH$3,0)-1),MATCH(Y$2&\" Score\",'C. PoC Adj Factor Scoring'!$E$4:$J$4,0),TRUE)","v":1},{"$f":"VLOOKUP(OFFSET($B:$B,,MATCH(Z$4,$B$4:$F$4,0)-1),OFFSET('C. PoC Adj Factor Scoring'!$E$5:$J$282,,MATCH(Z$4,'C. PoC Adj Factor Scoring'!$E$3:$AH$3,0)-1),MATCH(Z$2&\" Score\",'C. PoC Adj Factor Scoring'!$E$4:$J$4,0),TRUE)","v":1},{"$f":"VLOOKUP(OFFSET($B:$B,,MATCH(AA$4,$B$4:$F$4,0)-1),OFFSET('C. PoC Adj Factor Scoring'!$E$5:$J$282,,MATCH(AA$4,'C. PoC Adj Factor Scoring'!$E$3:$AH$3,0)-1),MATCH(AA$2&\" Score\",'C. PoC Adj Factor Scoring'!$E$4:$J$4,0),TRUE)","v":3},{"$f":"VLOOKUP(OFFSET($B:$B,,MATCH(AB$4,$B$4:$F$4,0)-1),OFFSET('C. PoC Adj Factor Scoring'!$E$5:$J$282,,MATCH(AB$4,'C. PoC Adj Factor Scoring'!$E$3:$AH$3,0)-1),MATCH(AB$2&\" Score\",'C. PoC Adj Factor Scoring'!$E$4:$J$4,0),TRUE)","v":1},{"$f":"VLOOKUP(OFFSET($B:$B,,MATCH(AC$4,$B$4:$F$4,0)-1),OFFSET('C. PoC Adj Factor Scoring'!$E$5:$J$282,,MATCH(AC$4,'C. PoC Adj Factor Scoring'!$E$3:$AH$3,0)-1),MATCH(AC$2&\" Score\",'C. PoC Adj Factor Scoring'!$E$4:$J$4,0),TRUE)","v":1},{"$f":"VLOOKUP(OFFSET($B:$B,,MATCH(AD$4,$B$4:$F$4,0)-1),OFFSET('C. PoC Adj Factor Scoring'!$E$5:$J$282,,MATCH(AD$4,'C. PoC Adj Factor Scoring'!$E$3:$AH$3,0)-1),MATCH(AD$2&\" Score\",'C. PoC Adj Factor Scoring'!$E$4:$J$4,0),TRUE)","v":1},{"$f":"VLOOKUP(OFFSET($B:$B,,MATCH(AE$4,$B$4:$F$4,0)-1),OFFSET('C. PoC Adj Factor Scoring'!$E$5:$J$282,,MATCH(AE$4,'C. PoC Adj Factor Scoring'!$E$3:$AH$3,0)-1),MATCH(AE$2&\" Score\",'C. PoC Adj Factor Scoring'!$E$4:$J$4,0),TRUE)","v":1}]
[{"$f":"'A. Population Info'!A368","v":1000404055},{"$f":"'A. Population Info'!L368","v":"OIL"},{"$f":"'A. Population Info'!M368","v":0},{"$f":"'A. Population Info'!N368","v":0},{"$f":"'A. Population Info'!O368","v":0},{"$f":"'A. Population Info'!P368","v":0},{"$f":"VLOOKUP(OFFSET($B:$B,,MATCH(G$4,$B$4:$F$4,0)-1),OFFSET('C. PoC Adj Factor Scoring'!$E$5:$J$282,,MATCH(G$4,'C. PoC Adj Factor Scoring'!$E$3:$AH$3,0)-1),MATCH(G$2&\" Score\",'C. PoC Adj Factor Scoring'!$E$4:$J$4,0),TRUE)","v":4},{"$f":"VLOOKUP(OFFSET($B:$B,,MATCH(H$4,$B$4:$F$4,0)-1),OFFSET('C. PoC Adj Factor Scoring'!$E$5:$J$282,,MATCH(H$4,'C. PoC Adj Factor Scoring'!$E$3:$AH$3,0)-1),MATCH(H$2&\" Score\",'C. PoC Adj Factor Scoring'!$E$4:$J$4,0),TRUE)","v":1},{"$f":"VLOOKUP(OFFSET($B:$B,,MATCH(I$4,$B$4:$F$4,0)-1),OFFSET('C. PoC Adj Factor Scoring'!$E$5:$J$282,,MATCH(I$4,'C. PoC Adj Factor Scoring'!$E$3:$AH$3,0)-1),MATCH(I$2&\" Score\",'C. PoC Adj Factor Scoring'!$E$4:$J$4,0),TRUE)","v":1},{"$f":"VLOOKUP(OFFSET($B:$B,,MATCH(J$4,$B$4:$F$4,0)-1),OFFSET('C. PoC Adj Factor Scoring'!$E$5:$J$282,,MATCH(J$4,'C. PoC Adj Factor Scoring'!$E$3:$AH$3,0)-1),MATCH(J$2&\" Score\",'C. PoC Adj Factor Scoring'!$E$4:$J$4,0),TRUE)","v":1},{"$f":"VLOOKUP(OFFSET($B:$B,,MATCH(K$4,$B$4:$F$4,0)-1),OFFSET('C. PoC Adj Factor Scoring'!$E$5:$J$282,,MATCH(K$4,'C. PoC Adj Factor Scoring'!$E$3:$AH$3,0)-1),MATCH(K$2&\" Score\",'C. PoC Adj Factor Scoring'!$E$4:$J$4,0),TRUE)","v":1},{"$f":"VLOOKUP(OFFSET($B:$B,,MATCH(L$4,$B$4:$F$4,0)-1),OFFSET('C. PoC Adj Factor Scoring'!$E$5:$J$282,,MATCH(L$4,'C. PoC Adj Factor Scoring'!$E$3:$AH$3,0)-1),MATCH(L$2&\" Score\",'C. PoC Adj Factor Scoring'!$E$4:$J$4,0),TRUE)","v":1},{"$f":"VLOOKUP(OFFSET($B:$B,,MATCH(M$4,$B$4:$F$4,0)-1),OFFSET('C. PoC Adj Factor Scoring'!$E$5:$J$282,,MATCH(M$4,'C. PoC Adj Factor Scoring'!$E$3:$AH$3,0)-1),MATCH(M$2&\" Score\",'C. PoC Adj Factor Scoring'!$E$4:$J$4,0),TRUE)","v":1},{"$f":"VLOOKUP(OFFSET($B:$B,,MATCH(N$4,$B$4:$F$4,0)-1),OFFSET('C. PoC Adj Factor Scoring'!$E$5:$J$282,,MATCH(N$4,'C. PoC Adj Factor Scoring'!$E$3:$AH$3,0)-1),MATCH(N$2&\" Score\",'C. PoC Adj Factor Scoring'!$E$4:$J$4,0),TRUE)","v":1},{"$f":"VLOOKUP(OFFSET($B:$B,,MATCH(O$4,$B$4:$F$4,0)-1),OFFSET('C. PoC Adj Factor Scoring'!$E$5:$J$282,,MATCH(O$4,'C. PoC Adj Factor Scoring'!$E$3:$AH$3,0)-1),MATCH(O$2&\" Score\",'C. PoC Adj Factor Scoring'!$E$4:$J$4,0),TRUE)","v":1},{"$f":"VLOOKUP(OFFSET($B:$B,,MATCH(P$4,$B$4:$F$4,0)-1),OFFSET('C. PoC Adj Factor Scoring'!$E$5:$J$282,,MATCH(P$4,'C. PoC Adj Factor Scoring'!$E$3:$AH$3,0)-1),MATCH(P$2&\" Score\",'C. PoC Adj Factor Scoring'!$E$4:$J$4,0),TRUE)","v":1},{"$f":"VLOOKUP(OFFSET($B:$B,,MATCH(Q$4,$B$4:$F$4,0)-1),OFFSET('C. PoC Adj Factor Scoring'!$E$5:$J$282,,MATCH(Q$4,'C. PoC Adj Factor Scoring'!$E$3:$AH$3,0)-1),MATCH(Q$2&\" Score\",'C. PoC Adj Factor Scoring'!$E$4:$J$4,0),TRUE)","v":1},{"$f":"VLOOKUP(OFFSET($B:$B,,MATCH(R$4,$B$4:$F$4,0)-1),OFFSET('C. PoC Adj Factor Scoring'!$E$5:$J$282,,MATCH(R$4,'C. PoC Adj Factor Scoring'!$E$3:$AH$3,0)-1),MATCH(R$2&\" Score\",'C. PoC Adj Factor Scoring'!$E$4:$J$4,0),TRUE)","v":1},{"$f":"VLOOKUP(OFFSET($B:$B,,MATCH(S$4,$B$4:$F$4,0)-1),OFFSET('C. PoC Adj Factor Scoring'!$E$5:$J$282,,MATCH(S$4,'C. PoC Adj Factor Scoring'!$E$3:$AH$3,0)-1),MATCH(S$2&\" Score\",'C. PoC Adj Factor Scoring'!$E$4:$J$4,0),TRUE)","v":1},{"$f":"VLOOKUP(OFFSET($B:$B,,MATCH(T$4,$B$4:$F$4,0)-1),OFFSET('C. PoC Adj Factor Scoring'!$E$5:$J$282,,MATCH(T$4,'C. PoC Adj Factor Scoring'!$E$3:$AH$3,0)-1),MATCH(T$2&\" Score\",'C. PoC Adj Factor Scoring'!$E$4:$J$4,0),TRUE)","v":1},{"$f":"VLOOKUP(OFFSET($B:$B,,MATCH(U$4,$B$4:$F$4,0)-1),OFFSET('C. PoC Adj Factor Scoring'!$E$5:$J$282,,MATCH(U$4,'C. PoC Adj Factor Scoring'!$E$3:$AH$3,0)-1),MATCH(U$2&\" Score\",'C. PoC Adj Factor Scoring'!$E$4:$J$4,0),TRUE)","v":1},{"$f":"VLOOKUP(OFFSET($B:$B,,MATCH(V$4,$B$4:$F$4,0)-1),OFFSET('C. PoC Adj Factor Scoring'!$E$5:$J$282,,MATCH(V$4,'C. PoC Adj Factor Scoring'!$E$3:$AH$3,0)-1),MATCH(V$2&\" Score\",'C. PoC Adj Factor Scoring'!$E$4:$J$4,0),TRUE)","v":1},{"$f":"VLOOKUP(OFFSET($B:$B,,MATCH(W$4,$B$4:$F$4,0)-1),OFFSET('C. PoC Adj Factor Scoring'!$E$5:$J$282,,MATCH(W$4,'C. PoC Adj Factor Scoring'!$E$3:$AH$3,0)-1),MATCH(W$2&\" Score\",'C. PoC Adj Factor Scoring'!$E$4:$J$4,0),TRUE)","v":1},{"$f":"VLOOKUP(OFFSET($B:$B,,MATCH(X$4,$B$4:$F$4,0)-1),OFFSET('C. PoC Adj Factor Scoring'!$E$5:$J$282,,MATCH(X$4,'C. PoC Adj Factor Scoring'!$E$3:$AH$3,0)-1),MATCH(X$2&\" Score\",'C. PoC Adj Factor Scoring'!$E$4:$J$4,0),TRUE)","v":1},{"$f":"VLOOKUP(OFFSET($B:$B,,MATCH(Y$4,$B$4:$F$4,0)-1),OFFSET('C. PoC Adj Factor Scoring'!$E$5:$J$282,,MATCH(Y$4,'C. PoC Adj Factor Scoring'!$E$3:$AH$3,0)-1),MATCH(Y$2&\" Score\",'C. PoC Adj Factor Scoring'!$E$4:$J$4,0),TRUE)","v":1},{"$f":"VLOOKUP(OFFSET($B:$B,,MATCH(Z$4,$B$4:$F$4,0)-1),OFFSET('C. PoC Adj Factor Scoring'!$E$5:$J$282,,MATCH(Z$4,'C. PoC Adj Factor Scoring'!$E$3:$AH$3,0)-1),MATCH(Z$2&\" Score\",'C. PoC Adj Factor Scoring'!$E$4:$J$4,0),TRUE)","v":1},{"$f":"VLOOKUP(OFFSET($B:$B,,MATCH(AA$4,$B$4:$F$4,0)-1),OFFSET('C. PoC Adj Factor Scoring'!$E$5:$J$282,,MATCH(AA$4,'C. PoC Adj Factor Scoring'!$E$3:$AH$3,0)-1),MATCH(AA$2&\" Score\",'C. PoC Adj Factor Scoring'!$E$4:$J$4,0),TRUE)","v":3},{"$f":"VLOOKUP(OFFSET($B:$B,,MATCH(AB$4,$B$4:$F$4,0)-1),OFFSET('C. PoC Adj Factor Scoring'!$E$5:$J$282,,MATCH(AB$4,'C. PoC Adj Factor Scoring'!$E$3:$AH$3,0)-1),MATCH(AB$2&\" Score\",'C. PoC Adj Factor Scoring'!$E$4:$J$4,0),TRUE)","v":1},{"$f":"VLOOKUP(OFFSET($B:$B,,MATCH(AC$4,$B$4:$F$4,0)-1),OFFSET('C. PoC Adj Factor Scoring'!$E$5:$J$282,,MATCH(AC$4,'C. PoC Adj Factor Scoring'!$E$3:$AH$3,0)-1),MATCH(AC$2&\" Score\",'C. PoC Adj Factor Scoring'!$E$4:$J$4,0),TRUE)","v":1},{"$f":"VLOOKUP(OFFSET($B:$B,,MATCH(AD$4,$B$4:$F$4,0)-1),OFFSET('C. PoC Adj Factor Scoring'!$E$5:$J$282,,MATCH(AD$4,'C. PoC Adj Factor Scoring'!$E$3:$AH$3,0)-1),MATCH(AD$2&\" Score\",'C. PoC Adj Factor Scoring'!$E$4:$J$4,0),TRUE)","v":1},{"$f":"VLOOKUP(OFFSET($B:$B,,MATCH(AE$4,$B$4:$F$4,0)-1),OFFSET('C. PoC Adj Factor Scoring'!$E$5:$J$282,,MATCH(AE$4,'C. PoC Adj Factor Scoring'!$E$3:$AH$3,0)-1),MATCH(AE$2&\" Score\",'C. PoC Adj Factor Scoring'!$E$4:$J$4,0),TRUE)","v":1}]
[{"$f":"'A. Population Info'!A369","v":1000404080},{"$f":"'A. Population Info'!L369","v":"OIL"},{"$f":"'A. Population Info'!M369","v":0},{"$f":"'A. Population Info'!N369","v":0},{"$f":"'A. Population Info'!O369","v":0},{"$f":"'A. Population Info'!P369","v":0},{"$f":"VLOOKUP(OFFSET($B:$B,,MATCH(G$4,$B$4:$F$4,0)-1),OFFSET('C. PoC Adj Factor Scoring'!$E$5:$J$282,,MATCH(G$4,'C. PoC Adj Factor Scoring'!$E$3:$AH$3,0)-1),MATCH(G$2&\" Score\",'C. PoC Adj Factor Scoring'!$E$4:$J$4,0),TRUE)","v":4},{"$f":"VLOOKUP(OFFSET($B:$B,,MATCH(H$4,$B$4:$F$4,0)-1),OFFSET('C. PoC Adj Factor Scoring'!$E$5:$J$282,,MATCH(H$4,'C. PoC Adj Factor Scoring'!$E$3:$AH$3,0)-1),MATCH(H$2&\" Score\",'C. PoC Adj Factor Scoring'!$E$4:$J$4,0),TRUE)","v":1},{"$f":"VLOOKUP(OFFSET($B:$B,,MATCH(I$4,$B$4:$F$4,0)-1),OFFSET('C. PoC Adj Factor Scoring'!$E$5:$J$282,,MATCH(I$4,'C. PoC Adj Factor Scoring'!$E$3:$AH$3,0)-1),MATCH(I$2&\" Score\",'C. PoC Adj Factor Scoring'!$E$4:$J$4,0),TRUE)","v":1},{"$f":"VLOOKUP(OFFSET($B:$B,,MATCH(J$4,$B$4:$F$4,0)-1),OFFSET('C. PoC Adj Factor Scoring'!$E$5:$J$282,,MATCH(J$4,'C. PoC Adj Factor Scoring'!$E$3:$AH$3,0)-1),MATCH(J$2&\" Score\",'C. PoC Adj Factor Scoring'!$E$4:$J$4,0),TRUE)","v":1},{"$f":"VLOOKUP(OFFSET($B:$B,,MATCH(K$4,$B$4:$F$4,0)-1),OFFSET('C. PoC Adj Factor Scoring'!$E$5:$J$282,,MATCH(K$4,'C. PoC Adj Factor Scoring'!$E$3:$AH$3,0)-1),MATCH(K$2&\" Score\",'C. PoC Adj Factor Scoring'!$E$4:$J$4,0),TRUE)","v":1},{"$f":"VLOOKUP(OFFSET($B:$B,,MATCH(L$4,$B$4:$F$4,0)-1),OFFSET('C. PoC Adj Factor Scoring'!$E$5:$J$282,,MATCH(L$4,'C. PoC Adj Factor Scoring'!$E$3:$AH$3,0)-1),MATCH(L$2&\" Score\",'C. PoC Adj Factor Scoring'!$E$4:$J$4,0),TRUE)","v":1},{"$f":"VLOOKUP(OFFSET($B:$B,,MATCH(M$4,$B$4:$F$4,0)-1),OFFSET('C. PoC Adj Factor Scoring'!$E$5:$J$282,,MATCH(M$4,'C. PoC Adj Factor Scoring'!$E$3:$AH$3,0)-1),MATCH(M$2&\" Score\",'C. PoC Adj Factor Scoring'!$E$4:$J$4,0),TRUE)","v":1},{"$f":"VLOOKUP(OFFSET($B:$B,,MATCH(N$4,$B$4:$F$4,0)-1),OFFSET('C. PoC Adj Factor Scoring'!$E$5:$J$282,,MATCH(N$4,'C. PoC Adj Factor Scoring'!$E$3:$AH$3,0)-1),MATCH(N$2&\" Score\",'C. PoC Adj Factor Scoring'!$E$4:$J$4,0),TRUE)","v":1},{"$f":"VLOOKUP(OFFSET($B:$B,,MATCH(O$4,$B$4:$F$4,0)-1),OFFSET('C. PoC Adj Factor Scoring'!$E$5:$J$282,,MATCH(O$4,'C. PoC Adj Factor Scoring'!$E$3:$AH$3,0)-1),MATCH(O$2&\" Score\",'C. PoC Adj Factor Scoring'!$E$4:$J$4,0),TRUE)","v":1},{"$f":"VLOOKUP(OFFSET($B:$B,,MATCH(P$4,$B$4:$F$4,0)-1),OFFSET('C. PoC Adj Factor Scoring'!$E$5:$J$282,,MATCH(P$4,'C. PoC Adj Factor Scoring'!$E$3:$AH$3,0)-1),MATCH(P$2&\" Score\",'C. PoC Adj Factor Scoring'!$E$4:$J$4,0),TRUE)","v":1},{"$f":"VLOOKUP(OFFSET($B:$B,,MATCH(Q$4,$B$4:$F$4,0)-1),OFFSET('C. PoC Adj Factor Scoring'!$E$5:$J$282,,MATCH(Q$4,'C. PoC Adj Factor Scoring'!$E$3:$AH$3,0)-1),MATCH(Q$2&\" Score\",'C. PoC Adj Factor Scoring'!$E$4:$J$4,0),TRUE)","v":1},{"$f":"VLOOKUP(OFFSET($B:$B,,MATCH(R$4,$B$4:$F$4,0)-1),OFFSET('C. PoC Adj Factor Scoring'!$E$5:$J$282,,MATCH(R$4,'C. PoC Adj Factor Scoring'!$E$3:$AH$3,0)-1),MATCH(R$2&\" Score\",'C. PoC Adj Factor Scoring'!$E$4:$J$4,0),TRUE)","v":1},{"$f":"VLOOKUP(OFFSET($B:$B,,MATCH(S$4,$B$4:$F$4,0)-1),OFFSET('C. PoC Adj Factor Scoring'!$E$5:$J$282,,MATCH(S$4,'C. PoC Adj Factor Scoring'!$E$3:$AH$3,0)-1),MATCH(S$2&\" Score\",'C. PoC Adj Factor Scoring'!$E$4:$J$4,0),TRUE)","v":1},{"$f":"VLOOKUP(OFFSET($B:$B,,MATCH(T$4,$B$4:$F$4,0)-1),OFFSET('C. PoC Adj Factor Scoring'!$E$5:$J$282,,MATCH(T$4,'C. PoC Adj Factor Scoring'!$E$3:$AH$3,0)-1),MATCH(T$2&\" Score\",'C. PoC Adj Factor Scoring'!$E$4:$J$4,0),TRUE)","v":1},{"$f":"VLOOKUP(OFFSET($B:$B,,MATCH(U$4,$B$4:$F$4,0)-1),OFFSET('C. PoC Adj Factor Scoring'!$E$5:$J$282,,MATCH(U$4,'C. PoC Adj Factor Scoring'!$E$3:$AH$3,0)-1),MATCH(U$2&\" Score\",'C. PoC Adj Factor Scoring'!$E$4:$J$4,0),TRUE)","v":1},{"$f":"VLOOKUP(OFFSET($B:$B,,MATCH(V$4,$B$4:$F$4,0)-1),OFFSET('C. PoC Adj Factor Scoring'!$E$5:$J$282,,MATCH(V$4,'C. PoC Adj Factor Scoring'!$E$3:$AH$3,0)-1),MATCH(V$2&\" Score\",'C. PoC Adj Factor Scoring'!$E$4:$J$4,0),TRUE)","v":1},{"$f":"VLOOKUP(OFFSET($B:$B,,MATCH(W$4,$B$4:$F$4,0)-1),OFFSET('C. PoC Adj Factor Scoring'!$E$5:$J$282,,MATCH(W$4,'C. PoC Adj Factor Scoring'!$E$3:$AH$3,0)-1),MATCH(W$2&\" Score\",'C. PoC Adj Factor Scoring'!$E$4:$J$4,0),TRUE)","v":1},{"$f":"VLOOKUP(OFFSET($B:$B,,MATCH(X$4,$B$4:$F$4,0)-1),OFFSET('C. PoC Adj Factor Scoring'!$E$5:$J$282,,MATCH(X$4,'C. PoC Adj Factor Scoring'!$E$3:$AH$3,0)-1),MATCH(X$2&\" Score\",'C. PoC Adj Factor Scoring'!$E$4:$J$4,0),TRUE)","v":1},{"$f":"VLOOKUP(OFFSET($B:$B,,MATCH(Y$4,$B$4:$F$4,0)-1),OFFSET('C. PoC Adj Factor Scoring'!$E$5:$J$282,,MATCH(Y$4,'C. PoC Adj Factor Scoring'!$E$3:$AH$3,0)-1),MATCH(Y$2&\" Score\",'C. PoC Adj Factor Scoring'!$E$4:$J$4,0),TRUE)","v":1},{"$f":"VLOOKUP(OFFSET($B:$B,,MATCH(Z$4,$B$4:$F$4,0)-1),OFFSET('C. PoC Adj Factor Scoring'!$E$5:$J$282,,MATCH(Z$4,'C. PoC Adj Factor Scoring'!$E$3:$AH$3,0)-1),MATCH(Z$2&\" Score\",'C. PoC Adj Factor Scoring'!$E$4:$J$4,0),TRUE)","v":1},{"$f":"VLOOKUP(OFFSET($B:$B,,MATCH(AA$4,$B$4:$F$4,0)-1),OFFSET('C. PoC Adj Factor Scoring'!$E$5:$J$282,,MATCH(AA$4,'C. PoC Adj Factor Scoring'!$E$3:$AH$3,0)-1),MATCH(AA$2&\" Score\",'C. PoC Adj Factor Scoring'!$E$4:$J$4,0),TRUE)","v":3},{"$f":"VLOOKUP(OFFSET($B:$B,,MATCH(AB$4,$B$4:$F$4,0)-1),OFFSET('C. PoC Adj Factor Scoring'!$E$5:$J$282,,MATCH(AB$4,'C. PoC Adj Factor Scoring'!$E$3:$AH$3,0)-1),MATCH(AB$2&\" Score\",'C. PoC Adj Factor Scoring'!$E$4:$J$4,0),TRUE)","v":1},{"$f":"VLOOKUP(OFFSET($B:$B,,MATCH(AC$4,$B$4:$F$4,0)-1),OFFSET('C. PoC Adj Factor Scoring'!$E$5:$J$282,,MATCH(AC$4,'C. PoC Adj Factor Scoring'!$E$3:$AH$3,0)-1),MATCH(AC$2&\" Score\",'C. PoC Adj Factor Scoring'!$E$4:$J$4,0),TRUE)","v":1},{"$f":"VLOOKUP(OFFSET($B:$B,,MATCH(AD$4,$B$4:$F$4,0)-1),OFFSET('C. PoC Adj Factor Scoring'!$E$5:$J$282,,MATCH(AD$4,'C. PoC Adj Factor Scoring'!$E$3:$AH$3,0)-1),MATCH(AD$2&\" Score\",'C. PoC Adj Factor Scoring'!$E$4:$J$4,0),TRUE)","v":1},{"$f":"VLOOKUP(OFFSET($B:$B,,MATCH(AE$4,$B$4:$F$4,0)-1),OFFSET('C. PoC Adj Factor Scoring'!$E$5:$J$282,,MATCH(AE$4,'C. PoC Adj Factor Scoring'!$E$3:$AH$3,0)-1),MATCH(AE$2&\" Score\",'C. PoC Adj Factor Scoring'!$E$4:$J$4,0),TRUE)","v":1}]
[{"$f":"'A. Population Info'!A370","v":1000404108},{"$f":"'A. Population Info'!L370","v":"OIL"},{"$f":"'A. Population Info'!M370","v":0},{"$f":"'A. Population Info'!N370","v":0},{"$f":"'A. Population Info'!O370","v":0},{"$f":"'A. Population Info'!P370","v":0},{"$f":"VLOOKUP(OFFSET($B:$B,,MATCH(G$4,$B$4:$F$4,0)-1),OFFSET('C. PoC Adj Factor Scoring'!$E$5:$J$282,,MATCH(G$4,'C. PoC Adj Factor Scoring'!$E$3:$AH$3,0)-1),MATCH(G$2&\" Score\",'C. PoC Adj Factor Scoring'!$E$4:$J$4,0),TRUE)","v":4},{"$f":"VLOOKUP(OFFSET($B:$B,,MATCH(H$4,$B$4:$F$4,0)-1),OFFSET('C. PoC Adj Factor Scoring'!$E$5:$J$282,,MATCH(H$4,'C. PoC Adj Factor Scoring'!$E$3:$AH$3,0)-1),MATCH(H$2&\" Score\",'C. PoC Adj Factor Scoring'!$E$4:$J$4,0),TRUE)","v":1},{"$f":"VLOOKUP(OFFSET($B:$B,,MATCH(I$4,$B$4:$F$4,0)-1),OFFSET('C. PoC Adj Factor Scoring'!$E$5:$J$282,,MATCH(I$4,'C. PoC Adj Factor Scoring'!$E$3:$AH$3,0)-1),MATCH(I$2&\" Score\",'C. PoC Adj Factor Scoring'!$E$4:$J$4,0),TRUE)","v":1},{"$f":"VLOOKUP(OFFSET($B:$B,,MATCH(J$4,$B$4:$F$4,0)-1),OFFSET('C. PoC Adj Factor Scoring'!$E$5:$J$282,,MATCH(J$4,'C. PoC Adj Factor Scoring'!$E$3:$AH$3,0)-1),MATCH(J$2&\" Score\",'C. PoC Adj Factor Scoring'!$E$4:$J$4,0),TRUE)","v":1},{"$f":"VLOOKUP(OFFSET($B:$B,,MATCH(K$4,$B$4:$F$4,0)-1),OFFSET('C. PoC Adj Factor Scoring'!$E$5:$J$282,,MATCH(K$4,'C. PoC Adj Factor Scoring'!$E$3:$AH$3,0)-1),MATCH(K$2&\" Score\",'C. PoC Adj Factor Scoring'!$E$4:$J$4,0),TRUE)","v":1},{"$f":"VLOOKUP(OFFSET($B:$B,,MATCH(L$4,$B$4:$F$4,0)-1),OFFSET('C. PoC Adj Factor Scoring'!$E$5:$J$282,,MATCH(L$4,'C. PoC Adj Factor Scoring'!$E$3:$AH$3,0)-1),MATCH(L$2&\" Score\",'C. PoC Adj Factor Scoring'!$E$4:$J$4,0),TRUE)","v":1},{"$f":"VLOOKUP(OFFSET($B:$B,,MATCH(M$4,$B$4:$F$4,0)-1),OFFSET('C. PoC Adj Factor Scoring'!$E$5:$J$282,,MATCH(M$4,'C. PoC Adj Factor Scoring'!$E$3:$AH$3,0)-1),MATCH(M$2&\" Score\",'C. PoC Adj Factor Scoring'!$E$4:$J$4,0),TRUE)","v":1},{"$f":"VLOOKUP(OFFSET($B:$B,,MATCH(N$4,$B$4:$F$4,0)-1),OFFSET('C. PoC Adj Factor Scoring'!$E$5:$J$282,,MATCH(N$4,'C. PoC Adj Factor Scoring'!$E$3:$AH$3,0)-1),MATCH(N$2&\" Score\",'C. PoC Adj Factor Scoring'!$E$4:$J$4,0),TRUE)","v":1},{"$f":"VLOOKUP(OFFSET($B:$B,,MATCH(O$4,$B$4:$F$4,0)-1),OFFSET('C. PoC Adj Factor Scoring'!$E$5:$J$282,,MATCH(O$4,'C. PoC Adj Factor Scoring'!$E$3:$AH$3,0)-1),MATCH(O$2&\" Score\",'C. PoC Adj Factor Scoring'!$E$4:$J$4,0),TRUE)","v":1},{"$f":"VLOOKUP(OFFSET($B:$B,,MATCH(P$4,$B$4:$F$4,0)-1),OFFSET('C. PoC Adj Factor Scoring'!$E$5:$J$282,,MATCH(P$4,'C. PoC Adj Factor Scoring'!$E$3:$AH$3,0)-1),MATCH(P$2&\" Score\",'C. PoC Adj Factor Scoring'!$E$4:$J$4,0),TRUE)","v":1},{"$f":"VLOOKUP(OFFSET($B:$B,,MATCH(Q$4,$B$4:$F$4,0)-1),OFFSET('C. PoC Adj Factor Scoring'!$E$5:$J$282,,MATCH(Q$4,'C. PoC Adj Factor Scoring'!$E$3:$AH$3,0)-1),MATCH(Q$2&\" Score\",'C. PoC Adj Factor Scoring'!$E$4:$J$4,0),TRUE)","v":1},{"$f":"VLOOKUP(OFFSET($B:$B,,MATCH(R$4,$B$4:$F$4,0)-1),OFFSET('C. PoC Adj Factor Scoring'!$E$5:$J$282,,MATCH(R$4,'C. PoC Adj Factor Scoring'!$E$3:$AH$3,0)-1),MATCH(R$2&\" Score\",'C. PoC Adj Factor Scoring'!$E$4:$J$4,0),TRUE)","v":1},{"$f":"VLOOKUP(OFFSET($B:$B,,MATCH(S$4,$B$4:$F$4,0)-1),OFFSET('C. PoC Adj Factor Scoring'!$E$5:$J$282,,MATCH(S$4,'C. PoC Adj Factor Scoring'!$E$3:$AH$3,0)-1),MATCH(S$2&\" Score\",'C. PoC Adj Factor Scoring'!$E$4:$J$4,0),TRUE)","v":1},{"$f":"VLOOKUP(OFFSET($B:$B,,MATCH(T$4,$B$4:$F$4,0)-1),OFFSET('C. PoC Adj Factor Scoring'!$E$5:$J$282,,MATCH(T$4,'C. PoC Adj Factor Scoring'!$E$3:$AH$3,0)-1),MATCH(T$2&\" Score\",'C. PoC Adj Factor Scoring'!$E$4:$J$4,0),TRUE)","v":1},{"$f":"VLOOKUP(OFFSET($B:$B,,MATCH(U$4,$B$4:$F$4,0)-1),OFFSET('C. PoC Adj Factor Scoring'!$E$5:$J$282,,MATCH(U$4,'C. PoC Adj Factor Scoring'!$E$3:$AH$3,0)-1),MATCH(U$2&\" Score\",'C. PoC Adj Factor Scoring'!$E$4:$J$4,0),TRUE)","v":1},{"$f":"VLOOKUP(OFFSET($B:$B,,MATCH(V$4,$B$4:$F$4,0)-1),OFFSET('C. PoC Adj Factor Scoring'!$E$5:$J$282,,MATCH(V$4,'C. PoC Adj Factor Scoring'!$E$3:$AH$3,0)-1),MATCH(V$2&\" Score\",'C. PoC Adj Factor Scoring'!$E$4:$J$4,0),TRUE)","v":1},{"$f":"VLOOKUP(OFFSET($B:$B,,MATCH(W$4,$B$4:$F$4,0)-1),OFFSET('C. PoC Adj Factor Scoring'!$E$5:$J$282,,MATCH(W$4,'C. PoC Adj Factor Scoring'!$E$3:$AH$3,0)-1),MATCH(W$2&\" Score\",'C. PoC Adj Factor Scoring'!$E$4:$J$4,0),TRUE)","v":1},{"$f":"VLOOKUP(OFFSET($B:$B,,MATCH(X$4,$B$4:$F$4,0)-1),OFFSET('C. PoC Adj Factor Scoring'!$E$5:$J$282,,MATCH(X$4,'C. PoC Adj Factor Scoring'!$E$3:$AH$3,0)-1),MATCH(X$2&\" Score\",'C. PoC Adj Factor Scoring'!$E$4:$J$4,0),TRUE)","v":1},{"$f":"VLOOKUP(OFFSET($B:$B,,MATCH(Y$4,$B$4:$F$4,0)-1),OFFSET('C. PoC Adj Factor Scoring'!$E$5:$J$282,,MATCH(Y$4,'C. PoC Adj Factor Scoring'!$E$3:$AH$3,0)-1),MATCH(Y$2&\" Score\",'C. PoC Adj Factor Scoring'!$E$4:$J$4,0),TRUE)","v":1},{"$f":"VLOOKUP(OFFSET($B:$B,,MATCH(Z$4,$B$4:$F$4,0)-1),OFFSET('C. PoC Adj Factor Scoring'!$E$5:$J$282,,MATCH(Z$4,'C. PoC Adj Factor Scoring'!$E$3:$AH$3,0)-1),MATCH(Z$2&\" Score\",'C. PoC Adj Factor Scoring'!$E$4:$J$4,0),TRUE)","v":1},{"$f":"VLOOKUP(OFFSET($B:$B,,MATCH(AA$4,$B$4:$F$4,0)-1),OFFSET('C. PoC Adj Factor Scoring'!$E$5:$J$282,,MATCH(AA$4,'C. PoC Adj Factor Scoring'!$E$3:$AH$3,0)-1),MATCH(AA$2&\" Score\",'C. PoC Adj Factor Scoring'!$E$4:$J$4,0),TRUE)","v":3},{"$f":"VLOOKUP(OFFSET($B:$B,,MATCH(AB$4,$B$4:$F$4,0)-1),OFFSET('C. PoC Adj Factor Scoring'!$E$5:$J$282,,MATCH(AB$4,'C. PoC Adj Factor Scoring'!$E$3:$AH$3,0)-1),MATCH(AB$2&\" Score\",'C. PoC Adj Factor Scoring'!$E$4:$J$4,0),TRUE)","v":1},{"$f":"VLOOKUP(OFFSET($B:$B,,MATCH(AC$4,$B$4:$F$4,0)-1),OFFSET('C. PoC Adj Factor Scoring'!$E$5:$J$282,,MATCH(AC$4,'C. PoC Adj Factor Scoring'!$E$3:$AH$3,0)-1),MATCH(AC$2&\" Score\",'C. PoC Adj Factor Scoring'!$E$4:$J$4,0),TRUE)","v":1},{"$f":"VLOOKUP(OFFSET($B:$B,,MATCH(AD$4,$B$4:$F$4,0)-1),OFFSET('C. PoC Adj Factor Scoring'!$E$5:$J$282,,MATCH(AD$4,'C. PoC Adj Factor Scoring'!$E$3:$AH$3,0)-1),MATCH(AD$2&\" Score\",'C. PoC Adj Factor Scoring'!$E$4:$J$4,0),TRUE)","v":1},{"$f":"VLOOKUP(OFFSET($B:$B,,MATCH(AE$4,$B$4:$F$4,0)-1),OFFSET('C. PoC Adj Factor Scoring'!$E$5:$J$282,,MATCH(AE$4,'C. PoC Adj Factor Scoring'!$E$3:$AH$3,0)-1),MATCH(AE$2&\" Score\",'C. PoC Adj Factor Scoring'!$E$4:$J$4,0),TRUE)","v":1}]
[{"$f":"'A. Population Info'!A371","v":1000404159},{"$f":"'A. Population Info'!L371","v":"OIL"},{"$f":"'A. Population Info'!M371","v":0},{"$f":"'A. Population Info'!N371","v":0},{"$f":"'A. Population Info'!O371","v":0},{"$f":"'A. Population Info'!P371","v":0},{"$f":"VLOOKUP(OFFSET($B:$B,,MATCH(G$4,$B$4:$F$4,0)-1),OFFSET('C. PoC Adj Factor Scoring'!$E$5:$J$282,,MATCH(G$4,'C. PoC Adj Factor Scoring'!$E$3:$AH$3,0)-1),MATCH(G$2&\" Score\",'C. PoC Adj Factor Scoring'!$E$4:$J$4,0),TRUE)","v":4},{"$f":"VLOOKUP(OFFSET($B:$B,,MATCH(H$4,$B$4:$F$4,0)-1),OFFSET('C. PoC Adj Factor Scoring'!$E$5:$J$282,,MATCH(H$4,'C. PoC Adj Factor Scoring'!$E$3:$AH$3,0)-1),MATCH(H$2&\" Score\",'C. PoC Adj Factor Scoring'!$E$4:$J$4,0),TRUE)","v":1},{"$f":"VLOOKUP(OFFSET($B:$B,,MATCH(I$4,$B$4:$F$4,0)-1),OFFSET('C. PoC Adj Factor Scoring'!$E$5:$J$282,,MATCH(I$4,'C. PoC Adj Factor Scoring'!$E$3:$AH$3,0)-1),MATCH(I$2&\" Score\",'C. PoC Adj Factor Scoring'!$E$4:$J$4,0),TRUE)","v":1},{"$f":"VLOOKUP(OFFSET($B:$B,,MATCH(J$4,$B$4:$F$4,0)-1),OFFSET('C. PoC Adj Factor Scoring'!$E$5:$J$282,,MATCH(J$4,'C. PoC Adj Factor Scoring'!$E$3:$AH$3,0)-1),MATCH(J$2&\" Score\",'C. PoC Adj Factor Scoring'!$E$4:$J$4,0),TRUE)","v":1},{"$f":"VLOOKUP(OFFSET($B:$B,,MATCH(K$4,$B$4:$F$4,0)-1),OFFSET('C. PoC Adj Factor Scoring'!$E$5:$J$282,,MATCH(K$4,'C. PoC Adj Factor Scoring'!$E$3:$AH$3,0)-1),MATCH(K$2&\" Score\",'C. PoC Adj Factor Scoring'!$E$4:$J$4,0),TRUE)","v":1},{"$f":"VLOOKUP(OFFSET($B:$B,,MATCH(L$4,$B$4:$F$4,0)-1),OFFSET('C. PoC Adj Factor Scoring'!$E$5:$J$282,,MATCH(L$4,'C. PoC Adj Factor Scoring'!$E$3:$AH$3,0)-1),MATCH(L$2&\" Score\",'C. PoC Adj Factor Scoring'!$E$4:$J$4,0),TRUE)","v":1},{"$f":"VLOOKUP(OFFSET($B:$B,,MATCH(M$4,$B$4:$F$4,0)-1),OFFSET('C. PoC Adj Factor Scoring'!$E$5:$J$282,,MATCH(M$4,'C. PoC Adj Factor Scoring'!$E$3:$AH$3,0)-1),MATCH(M$2&\" Score\",'C. PoC Adj Factor Scoring'!$E$4:$J$4,0),TRUE)","v":1},{"$f":"VLOOKUP(OFFSET($B:$B,,MATCH(N$4,$B$4:$F$4,0)-1),OFFSET('C. PoC Adj Factor Scoring'!$E$5:$J$282,,MATCH(N$4,'C. PoC Adj Factor Scoring'!$E$3:$AH$3,0)-1),MATCH(N$2&\" Score\",'C. PoC Adj Factor Scoring'!$E$4:$J$4,0),TRUE)","v":1},{"$f":"VLOOKUP(OFFSET($B:$B,,MATCH(O$4,$B$4:$F$4,0)-1),OFFSET('C. PoC Adj Factor Scoring'!$E$5:$J$282,,MATCH(O$4,'C. PoC Adj Factor Scoring'!$E$3:$AH$3,0)-1),MATCH(O$2&\" Score\",'C. PoC Adj Factor Scoring'!$E$4:$J$4,0),TRUE)","v":1},{"$f":"VLOOKUP(OFFSET($B:$B,,MATCH(P$4,$B$4:$F$4,0)-1),OFFSET('C. PoC Adj Factor Scoring'!$E$5:$J$282,,MATCH(P$4,'C. PoC Adj Factor Scoring'!$E$3:$AH$3,0)-1),MATCH(P$2&\" Score\",'C. PoC Adj Factor Scoring'!$E$4:$J$4,0),TRUE)","v":1},{"$f":"VLOOKUP(OFFSET($B:$B,,MATCH(Q$4,$B$4:$F$4,0)-1),OFFSET('C. PoC Adj Factor Scoring'!$E$5:$J$282,,MATCH(Q$4,'C. PoC Adj Factor Scoring'!$E$3:$AH$3,0)-1),MATCH(Q$2&\" Score\",'C. PoC Adj Factor Scoring'!$E$4:$J$4,0),TRUE)","v":1},{"$f":"VLOOKUP(OFFSET($B:$B,,MATCH(R$4,$B$4:$F$4,0)-1),OFFSET('C. PoC Adj Factor Scoring'!$E$5:$J$282,,MATCH(R$4,'C. PoC Adj Factor Scoring'!$E$3:$AH$3,0)-1),MATCH(R$2&\" Score\",'C. PoC Adj Factor Scoring'!$E$4:$J$4,0),TRUE)","v":1},{"$f":"VLOOKUP(OFFSET($B:$B,,MATCH(S$4,$B$4:$F$4,0)-1),OFFSET('C. PoC Adj Factor Scoring'!$E$5:$J$282,,MATCH(S$4,'C. PoC Adj Factor Scoring'!$E$3:$AH$3,0)-1),MATCH(S$2&\" Score\",'C. PoC Adj Factor Scoring'!$E$4:$J$4,0),TRUE)","v":1},{"$f":"VLOOKUP(OFFSET($B:$B,,MATCH(T$4,$B$4:$F$4,0)-1),OFFSET('C. PoC Adj Factor Scoring'!$E$5:$J$282,,MATCH(T$4,'C. PoC Adj Factor Scoring'!$E$3:$AH$3,0)-1),MATCH(T$2&\" Score\",'C. PoC Adj Factor Scoring'!$E$4:$J$4,0),TRUE)","v":1},{"$f":"VLOOKUP(OFFSET($B:$B,,MATCH(U$4,$B$4:$F$4,0)-1),OFFSET('C. PoC Adj Factor Scoring'!$E$5:$J$282,,MATCH(U$4,'C. PoC Adj Factor Scoring'!$E$3:$AH$3,0)-1),MATCH(U$2&\" Score\",'C. PoC Adj Factor Scoring'!$E$4:$J$4,0),TRUE)","v":1},{"$f":"VLOOKUP(OFFSET($B:$B,,MATCH(V$4,$B$4:$F$4,0)-1),OFFSET('C. PoC Adj Factor Scoring'!$E$5:$J$282,,MATCH(V$4,'C. PoC Adj Factor Scoring'!$E$3:$AH$3,0)-1),MATCH(V$2&\" Score\",'C. PoC Adj Factor Scoring'!$E$4:$J$4,0),TRUE)","v":1},{"$f":"VLOOKUP(OFFSET($B:$B,,MATCH(W$4,$B$4:$F$4,0)-1),OFFSET('C. PoC Adj Factor Scoring'!$E$5:$J$282,,MATCH(W$4,'C. PoC Adj Factor Scoring'!$E$3:$AH$3,0)-1),MATCH(W$2&\" Score\",'C. PoC Adj Factor Scoring'!$E$4:$J$4,0),TRUE)","v":1},{"$f":"VLOOKUP(OFFSET($B:$B,,MATCH(X$4,$B$4:$F$4,0)-1),OFFSET('C. PoC Adj Factor Scoring'!$E$5:$J$282,,MATCH(X$4,'C. PoC Adj Factor Scoring'!$E$3:$AH$3,0)-1),MATCH(X$2&\" Score\",'C. PoC Adj Factor Scoring'!$E$4:$J$4,0),TRUE)","v":1},{"$f":"VLOOKUP(OFFSET($B:$B,,MATCH(Y$4,$B$4:$F$4,0)-1),OFFSET('C. PoC Adj Factor Scoring'!$E$5:$J$282,,MATCH(Y$4,'C. PoC Adj Factor Scoring'!$E$3:$AH$3,0)-1),MATCH(Y$2&\" Score\",'C. PoC Adj Factor Scoring'!$E$4:$J$4,0),TRUE)","v":1},{"$f":"VLOOKUP(OFFSET($B:$B,,MATCH(Z$4,$B$4:$F$4,0)-1),OFFSET('C. PoC Adj Factor Scoring'!$E$5:$J$282,,MATCH(Z$4,'C. PoC Adj Factor Scoring'!$E$3:$AH$3,0)-1),MATCH(Z$2&\" Score\",'C. PoC Adj Factor Scoring'!$E$4:$J$4,0),TRUE)","v":1},{"$f":"VLOOKUP(OFFSET($B:$B,,MATCH(AA$4,$B$4:$F$4,0)-1),OFFSET('C. PoC Adj Factor Scoring'!$E$5:$J$282,,MATCH(AA$4,'C. PoC Adj Factor Scoring'!$E$3:$AH$3,0)-1),MATCH(AA$2&\" Score\",'C. PoC Adj Factor Scoring'!$E$4:$J$4,0),TRUE)","v":3},{"$f":"VLOOKUP(OFFSET($B:$B,,MATCH(AB$4,$B$4:$F$4,0)-1),OFFSET('C. PoC Adj Factor Scoring'!$E$5:$J$282,,MATCH(AB$4,'C. PoC Adj Factor Scoring'!$E$3:$AH$3,0)-1),MATCH(AB$2&\" Score\",'C. PoC Adj Factor Scoring'!$E$4:$J$4,0),TRUE)","v":1},{"$f":"VLOOKUP(OFFSET($B:$B,,MATCH(AC$4,$B$4:$F$4,0)-1),OFFSET('C. PoC Adj Factor Scoring'!$E$5:$J$282,,MATCH(AC$4,'C. PoC Adj Factor Scoring'!$E$3:$AH$3,0)-1),MATCH(AC$2&\" Score\",'C. PoC Adj Factor Scoring'!$E$4:$J$4,0),TRUE)","v":1},{"$f":"VLOOKUP(OFFSET($B:$B,,MATCH(AD$4,$B$4:$F$4,0)-1),OFFSET('C. PoC Adj Factor Scoring'!$E$5:$J$282,,MATCH(AD$4,'C. PoC Adj Factor Scoring'!$E$3:$AH$3,0)-1),MATCH(AD$2&\" Score\",'C. PoC Adj Factor Scoring'!$E$4:$J$4,0),TRUE)","v":1},{"$f":"VLOOKUP(OFFSET($B:$B,,MATCH(AE$4,$B$4:$F$4,0)-1),OFFSET('C. PoC Adj Factor Scoring'!$E$5:$J$282,,MATCH(AE$4,'C. PoC Adj Factor Scoring'!$E$3:$AH$3,0)-1),MATCH(AE$2&\" Score\",'C. PoC Adj Factor Scoring'!$E$4:$J$4,0),TRUE)","v":1}]
[{"$f":"'A. Population Info'!A372","v":1000404179},{"$f":"'A. Population Info'!L372","v":"OIL"},{"$f":"'A. Population Info'!M372","v":0},{"$f":"'A. Population Info'!N372","v":0},{"$f":"'A. Population Info'!O372","v":0},{"$f":"'A. Population Info'!P372","v":0},{"$f":"VLOOKUP(OFFSET($B:$B,,MATCH(G$4,$B$4:$F$4,0)-1),OFFSET('C. PoC Adj Factor Scoring'!$E$5:$J$282,,MATCH(G$4,'C. PoC Adj Factor Scoring'!$E$3:$AH$3,0)-1),MATCH(G$2&\" Score\",'C. PoC Adj Factor Scoring'!$E$4:$J$4,0),TRUE)","v":4},{"$f":"VLOOKUP(OFFSET($B:$B,,MATCH(H$4,$B$4:$F$4,0)-1),OFFSET('C. PoC Adj Factor Scoring'!$E$5:$J$282,,MATCH(H$4,'C. PoC Adj Factor Scoring'!$E$3:$AH$3,0)-1),MATCH(H$2&\" Score\",'C. PoC Adj Factor Scoring'!$E$4:$J$4,0),TRUE)","v":1},{"$f":"VLOOKUP(OFFSET($B:$B,,MATCH(I$4,$B$4:$F$4,0)-1),OFFSET('C. PoC Adj Factor Scoring'!$E$5:$J$282,,MATCH(I$4,'C. PoC Adj Factor Scoring'!$E$3:$AH$3,0)-1),MATCH(I$2&\" Score\",'C. PoC Adj Factor Scoring'!$E$4:$J$4,0),TRUE)","v":1},{"$f":"VLOOKUP(OFFSET($B:$B,,MATCH(J$4,$B$4:$F$4,0)-1),OFFSET('C. PoC Adj Factor Scoring'!$E$5:$J$282,,MATCH(J$4,'C. PoC Adj Factor Scoring'!$E$3:$AH$3,0)-1),MATCH(J$2&\" Score\",'C. PoC Adj Factor Scoring'!$E$4:$J$4,0),TRUE)","v":1},{"$f":"VLOOKUP(OFFSET($B:$B,,MATCH(K$4,$B$4:$F$4,0)-1),OFFSET('C. PoC Adj Factor Scoring'!$E$5:$J$282,,MATCH(K$4,'C. PoC Adj Factor Scoring'!$E$3:$AH$3,0)-1),MATCH(K$2&\" Score\",'C. PoC Adj Factor Scoring'!$E$4:$J$4,0),TRUE)","v":1},{"$f":"VLOOKUP(OFFSET($B:$B,,MATCH(L$4,$B$4:$F$4,0)-1),OFFSET('C. PoC Adj Factor Scoring'!$E$5:$J$282,,MATCH(L$4,'C. PoC Adj Factor Scoring'!$E$3:$AH$3,0)-1),MATCH(L$2&\" Score\",'C. PoC Adj Factor Scoring'!$E$4:$J$4,0),TRUE)","v":1},{"$f":"VLOOKUP(OFFSET($B:$B,,MATCH(M$4,$B$4:$F$4,0)-1),OFFSET('C. PoC Adj Factor Scoring'!$E$5:$J$282,,MATCH(M$4,'C. PoC Adj Factor Scoring'!$E$3:$AH$3,0)-1),MATCH(M$2&\" Score\",'C. PoC Adj Factor Scoring'!$E$4:$J$4,0),TRUE)","v":1},{"$f":"VLOOKUP(OFFSET($B:$B,,MATCH(N$4,$B$4:$F$4,0)-1),OFFSET('C. PoC Adj Factor Scoring'!$E$5:$J$282,,MATCH(N$4,'C. PoC Adj Factor Scoring'!$E$3:$AH$3,0)-1),MATCH(N$2&\" Score\",'C. PoC Adj Factor Scoring'!$E$4:$J$4,0),TRUE)","v":1},{"$f":"VLOOKUP(OFFSET($B:$B,,MATCH(O$4,$B$4:$F$4,0)-1),OFFSET('C. PoC Adj Factor Scoring'!$E$5:$J$282,,MATCH(O$4,'C. PoC Adj Factor Scoring'!$E$3:$AH$3,0)-1),MATCH(O$2&\" Score\",'C. PoC Adj Factor Scoring'!$E$4:$J$4,0),TRUE)","v":1},{"$f":"VLOOKUP(OFFSET($B:$B,,MATCH(P$4,$B$4:$F$4,0)-1),OFFSET('C. PoC Adj Factor Scoring'!$E$5:$J$282,,MATCH(P$4,'C. PoC Adj Factor Scoring'!$E$3:$AH$3,0)-1),MATCH(P$2&\" Score\",'C. PoC Adj Factor Scoring'!$E$4:$J$4,0),TRUE)","v":1},{"$f":"VLOOKUP(OFFSET($B:$B,,MATCH(Q$4,$B$4:$F$4,0)-1),OFFSET('C. PoC Adj Factor Scoring'!$E$5:$J$282,,MATCH(Q$4,'C. PoC Adj Factor Scoring'!$E$3:$AH$3,0)-1),MATCH(Q$2&\" Score\",'C. PoC Adj Factor Scoring'!$E$4:$J$4,0),TRUE)","v":1},{"$f":"VLOOKUP(OFFSET($B:$B,,MATCH(R$4,$B$4:$F$4,0)-1),OFFSET('C. PoC Adj Factor Scoring'!$E$5:$J$282,,MATCH(R$4,'C. PoC Adj Factor Scoring'!$E$3:$AH$3,0)-1),MATCH(R$2&\" Score\",'C. PoC Adj Factor Scoring'!$E$4:$J$4,0),TRUE)","v":1},{"$f":"VLOOKUP(OFFSET($B:$B,,MATCH(S$4,$B$4:$F$4,0)-1),OFFSET('C. PoC Adj Factor Scoring'!$E$5:$J$282,,MATCH(S$4,'C. PoC Adj Factor Scoring'!$E$3:$AH$3,0)-1),MATCH(S$2&\" Score\",'C. PoC Adj Factor Scoring'!$E$4:$J$4,0),TRUE)","v":1},{"$f":"VLOOKUP(OFFSET($B:$B,,MATCH(T$4,$B$4:$F$4,0)-1),OFFSET('C. PoC Adj Factor Scoring'!$E$5:$J$282,,MATCH(T$4,'C. PoC Adj Factor Scoring'!$E$3:$AH$3,0)-1),MATCH(T$2&\" Score\",'C. PoC Adj Factor Scoring'!$E$4:$J$4,0),TRUE)","v":1},{"$f":"VLOOKUP(OFFSET($B:$B,,MATCH(U$4,$B$4:$F$4,0)-1),OFFSET('C. PoC Adj Factor Scoring'!$E$5:$J$282,,MATCH(U$4,'C. PoC Adj Factor Scoring'!$E$3:$AH$3,0)-1),MATCH(U$2&\" Score\",'C. PoC Adj Factor Scoring'!$E$4:$J$4,0),TRUE)","v":1},{"$f":"VLOOKUP(OFFSET($B:$B,,MATCH(V$4,$B$4:$F$4,0)-1),OFFSET('C. PoC Adj Factor Scoring'!$E$5:$J$282,,MATCH(V$4,'C. PoC Adj Factor Scoring'!$E$3:$AH$3,0)-1),MATCH(V$2&\" Score\",'C. PoC Adj Factor Scoring'!$E$4:$J$4,0),TRUE)","v":1},{"$f":"VLOOKUP(OFFSET($B:$B,,MATCH(W$4,$B$4:$F$4,0)-1),OFFSET('C. PoC Adj Factor Scoring'!$E$5:$J$282,,MATCH(W$4,'C. PoC Adj Factor Scoring'!$E$3:$AH$3,0)-1),MATCH(W$2&\" Score\",'C. PoC Adj Factor Scoring'!$E$4:$J$4,0),TRUE)","v":1},{"$f":"VLOOKUP(OFFSET($B:$B,,MATCH(X$4,$B$4:$F$4,0)-1),OFFSET('C. PoC Adj Factor Scoring'!$E$5:$J$282,,MATCH(X$4,'C. PoC Adj Factor Scoring'!$E$3:$AH$3,0)-1),MATCH(X$2&\" Score\",'C. PoC Adj Factor Scoring'!$E$4:$J$4,0),TRUE)","v":1},{"$f":"VLOOKUP(OFFSET($B:$B,,MATCH(Y$4,$B$4:$F$4,0)-1),OFFSET('C. PoC Adj Factor Scoring'!$E$5:$J$282,,MATCH(Y$4,'C. PoC Adj Factor Scoring'!$E$3:$AH$3,0)-1),MATCH(Y$2&\" Score\",'C. PoC Adj Factor Scoring'!$E$4:$J$4,0),TRUE)","v":1},{"$f":"VLOOKUP(OFFSET($B:$B,,MATCH(Z$4,$B$4:$F$4,0)-1),OFFSET('C. PoC Adj Factor Scoring'!$E$5:$J$282,,MATCH(Z$4,'C. PoC Adj Factor Scoring'!$E$3:$AH$3,0)-1),MATCH(Z$2&\" Score\",'C. PoC Adj Factor Scoring'!$E$4:$J$4,0),TRUE)","v":1},{"$f":"VLOOKUP(OFFSET($B:$B,,MATCH(AA$4,$B$4:$F$4,0)-1),OFFSET('C. PoC Adj Factor Scoring'!$E$5:$J$282,,MATCH(AA$4,'C. PoC Adj Factor Scoring'!$E$3:$AH$3,0)-1),MATCH(AA$2&\" Score\",'C. PoC Adj Factor Scoring'!$E$4:$J$4,0),TRUE)","v":3},{"$f":"VLOOKUP(OFFSET($B:$B,,MATCH(AB$4,$B$4:$F$4,0)-1),OFFSET('C. PoC Adj Factor Scoring'!$E$5:$J$282,,MATCH(AB$4,'C. PoC Adj Factor Scoring'!$E$3:$AH$3,0)-1),MATCH(AB$2&\" Score\",'C. PoC Adj Factor Scoring'!$E$4:$J$4,0),TRUE)","v":1},{"$f":"VLOOKUP(OFFSET($B:$B,,MATCH(AC$4,$B$4:$F$4,0)-1),OFFSET('C. PoC Adj Factor Scoring'!$E$5:$J$282,,MATCH(AC$4,'C. PoC Adj Factor Scoring'!$E$3:$AH$3,0)-1),MATCH(AC$2&\" Score\",'C. PoC Adj Factor Scoring'!$E$4:$J$4,0),TRUE)","v":1},{"$f":"VLOOKUP(OFFSET($B:$B,,MATCH(AD$4,$B$4:$F$4,0)-1),OFFSET('C. PoC Adj Factor Scoring'!$E$5:$J$282,,MATCH(AD$4,'C. PoC Adj Factor Scoring'!$E$3:$AH$3,0)-1),MATCH(AD$2&\" Score\",'C. PoC Adj Factor Scoring'!$E$4:$J$4,0),TRUE)","v":1},{"$f":"VLOOKUP(OFFSET($B:$B,,MATCH(AE$4,$B$4:$F$4,0)-1),OFFSET('C. PoC Adj Factor Scoring'!$E$5:$J$282,,MATCH(AE$4,'C. PoC Adj Factor Scoring'!$E$3:$AH$3,0)-1),MATCH(AE$2&\" Score\",'C. PoC Adj Factor Scoring'!$E$4:$J$4,0),TRUE)","v":1}]
[{"$f":"'A. Population Info'!A373","v":1000404301},{"$f":"'A. Population Info'!L373","v":"OIL"},{"$f":"'A. Population Info'!M373","v":0},{"$f":"'A. Population Info'!N373","v":0},{"$f":"'A. Population Info'!O373","v":0},{"$f":"'A. Population Info'!P373","v":0},{"$f":"VLOOKUP(OFFSET($B:$B,,MATCH(G$4,$B$4:$F$4,0)-1),OFFSET('C. PoC Adj Factor Scoring'!$E$5:$J$282,,MATCH(G$4,'C. PoC Adj Factor Scoring'!$E$3:$AH$3,0)-1),MATCH(G$2&\" Score\",'C. PoC Adj Factor Scoring'!$E$4:$J$4,0),TRUE)","v":4},{"$f":"VLOOKUP(OFFSET($B:$B,,MATCH(H$4,$B$4:$F$4,0)-1),OFFSET('C. PoC Adj Factor Scoring'!$E$5:$J$282,,MATCH(H$4,'C. PoC Adj Factor Scoring'!$E$3:$AH$3,0)-1),MATCH(H$2&\" Score\",'C. PoC Adj Factor Scoring'!$E$4:$J$4,0),TRUE)","v":1},{"$f":"VLOOKUP(OFFSET($B:$B,,MATCH(I$4,$B$4:$F$4,0)-1),OFFSET('C. PoC Adj Factor Scoring'!$E$5:$J$282,,MATCH(I$4,'C. PoC Adj Factor Scoring'!$E$3:$AH$3,0)-1),MATCH(I$2&\" Score\",'C. PoC Adj Factor Scoring'!$E$4:$J$4,0),TRUE)","v":1},{"$f":"VLOOKUP(OFFSET($B:$B,,MATCH(J$4,$B$4:$F$4,0)-1),OFFSET('C. PoC Adj Factor Scoring'!$E$5:$J$282,,MATCH(J$4,'C. PoC Adj Factor Scoring'!$E$3:$AH$3,0)-1),MATCH(J$2&\" Score\",'C. PoC Adj Factor Scoring'!$E$4:$J$4,0),TRUE)","v":1},{"$f":"VLOOKUP(OFFSET($B:$B,,MATCH(K$4,$B$4:$F$4,0)-1),OFFSET('C. PoC Adj Factor Scoring'!$E$5:$J$282,,MATCH(K$4,'C. PoC Adj Factor Scoring'!$E$3:$AH$3,0)-1),MATCH(K$2&\" Score\",'C. PoC Adj Factor Scoring'!$E$4:$J$4,0),TRUE)","v":1},{"$f":"VLOOKUP(OFFSET($B:$B,,MATCH(L$4,$B$4:$F$4,0)-1),OFFSET('C. PoC Adj Factor Scoring'!$E$5:$J$282,,MATCH(L$4,'C. PoC Adj Factor Scoring'!$E$3:$AH$3,0)-1),MATCH(L$2&\" Score\",'C. PoC Adj Factor Scoring'!$E$4:$J$4,0),TRUE)","v":1},{"$f":"VLOOKUP(OFFSET($B:$B,,MATCH(M$4,$B$4:$F$4,0)-1),OFFSET('C. PoC Adj Factor Scoring'!$E$5:$J$282,,MATCH(M$4,'C. PoC Adj Factor Scoring'!$E$3:$AH$3,0)-1),MATCH(M$2&\" Score\",'C. PoC Adj Factor Scoring'!$E$4:$J$4,0),TRUE)","v":1},{"$f":"VLOOKUP(OFFSET($B:$B,,MATCH(N$4,$B$4:$F$4,0)-1),OFFSET('C. PoC Adj Factor Scoring'!$E$5:$J$282,,MATCH(N$4,'C. PoC Adj Factor Scoring'!$E$3:$AH$3,0)-1),MATCH(N$2&\" Score\",'C. PoC Adj Factor Scoring'!$E$4:$J$4,0),TRUE)","v":1},{"$f":"VLOOKUP(OFFSET($B:$B,,MATCH(O$4,$B$4:$F$4,0)-1),OFFSET('C. PoC Adj Factor Scoring'!$E$5:$J$282,,MATCH(O$4,'C. PoC Adj Factor Scoring'!$E$3:$AH$3,0)-1),MATCH(O$2&\" Score\",'C. PoC Adj Factor Scoring'!$E$4:$J$4,0),TRUE)","v":1},{"$f":"VLOOKUP(OFFSET($B:$B,,MATCH(P$4,$B$4:$F$4,0)-1),OFFSET('C. PoC Adj Factor Scoring'!$E$5:$J$282,,MATCH(P$4,'C. PoC Adj Factor Scoring'!$E$3:$AH$3,0)-1),MATCH(P$2&\" Score\",'C. PoC Adj Factor Scoring'!$E$4:$J$4,0),TRUE)","v":1},{"$f":"VLOOKUP(OFFSET($B:$B,,MATCH(Q$4,$B$4:$F$4,0)-1),OFFSET('C. PoC Adj Factor Scoring'!$E$5:$J$282,,MATCH(Q$4,'C. PoC Adj Factor Scoring'!$E$3:$AH$3,0)-1),MATCH(Q$2&\" Score\",'C. PoC Adj Factor Scoring'!$E$4:$J$4,0),TRUE)","v":1},{"$f":"VLOOKUP(OFFSET($B:$B,,MATCH(R$4,$B$4:$F$4,0)-1),OFFSET('C. PoC Adj Factor Scoring'!$E$5:$J$282,,MATCH(R$4,'C. PoC Adj Factor Scoring'!$E$3:$AH$3,0)-1),MATCH(R$2&\" Score\",'C. PoC Adj Factor Scoring'!$E$4:$J$4,0),TRUE)","v":1},{"$f":"VLOOKUP(OFFSET($B:$B,,MATCH(S$4,$B$4:$F$4,0)-1),OFFSET('C. PoC Adj Factor Scoring'!$E$5:$J$282,,MATCH(S$4,'C. PoC Adj Factor Scoring'!$E$3:$AH$3,0)-1),MATCH(S$2&\" Score\",'C. PoC Adj Factor Scoring'!$E$4:$J$4,0),TRUE)","v":1},{"$f":"VLOOKUP(OFFSET($B:$B,,MATCH(T$4,$B$4:$F$4,0)-1),OFFSET('C. PoC Adj Factor Scoring'!$E$5:$J$282,,MATCH(T$4,'C. PoC Adj Factor Scoring'!$E$3:$AH$3,0)-1),MATCH(T$2&\" Score\",'C. PoC Adj Factor Scoring'!$E$4:$J$4,0),TRUE)","v":1},{"$f":"VLOOKUP(OFFSET($B:$B,,MATCH(U$4,$B$4:$F$4,0)-1),OFFSET('C. PoC Adj Factor Scoring'!$E$5:$J$282,,MATCH(U$4,'C. PoC Adj Factor Scoring'!$E$3:$AH$3,0)-1),MATCH(U$2&\" Score\",'C. PoC Adj Factor Scoring'!$E$4:$J$4,0),TRUE)","v":1},{"$f":"VLOOKUP(OFFSET($B:$B,,MATCH(V$4,$B$4:$F$4,0)-1),OFFSET('C. PoC Adj Factor Scoring'!$E$5:$J$282,,MATCH(V$4,'C. PoC Adj Factor Scoring'!$E$3:$AH$3,0)-1),MATCH(V$2&\" Score\",'C. PoC Adj Factor Scoring'!$E$4:$J$4,0),TRUE)","v":1},{"$f":"VLOOKUP(OFFSET($B:$B,,MATCH(W$4,$B$4:$F$4,0)-1),OFFSET('C. PoC Adj Factor Scoring'!$E$5:$J$282,,MATCH(W$4,'C. PoC Adj Factor Scoring'!$E$3:$AH$3,0)-1),MATCH(W$2&\" Score\",'C. PoC Adj Factor Scoring'!$E$4:$J$4,0),TRUE)","v":1},{"$f":"VLOOKUP(OFFSET($B:$B,,MATCH(X$4,$B$4:$F$4,0)-1),OFFSET('C. PoC Adj Factor Scoring'!$E$5:$J$282,,MATCH(X$4,'C. PoC Adj Factor Scoring'!$E$3:$AH$3,0)-1),MATCH(X$2&\" Score\",'C. PoC Adj Factor Scoring'!$E$4:$J$4,0),TRUE)","v":1},{"$f":"VLOOKUP(OFFSET($B:$B,,MATCH(Y$4,$B$4:$F$4,0)-1),OFFSET('C. PoC Adj Factor Scoring'!$E$5:$J$282,,MATCH(Y$4,'C. PoC Adj Factor Scoring'!$E$3:$AH$3,0)-1),MATCH(Y$2&\" Score\",'C. PoC Adj Factor Scoring'!$E$4:$J$4,0),TRUE)","v":1},{"$f":"VLOOKUP(OFFSET($B:$B,,MATCH(Z$4,$B$4:$F$4,0)-1),OFFSET('C. PoC Adj Factor Scoring'!$E$5:$J$282,,MATCH(Z$4,'C. PoC Adj Factor Scoring'!$E$3:$AH$3,0)-1),MATCH(Z$2&\" Score\",'C. PoC Adj Factor Scoring'!$E$4:$J$4,0),TRUE)","v":1},{"$f":"VLOOKUP(OFFSET($B:$B,,MATCH(AA$4,$B$4:$F$4,0)-1),OFFSET('C. PoC Adj Factor Scoring'!$E$5:$J$282,,MATCH(AA$4,'C. PoC Adj Factor Scoring'!$E$3:$AH$3,0)-1),MATCH(AA$2&\" Score\",'C. PoC Adj Factor Scoring'!$E$4:$J$4,0),TRUE)","v":3},{"$f":"VLOOKUP(OFFSET($B:$B,,MATCH(AB$4,$B$4:$F$4,0)-1),OFFSET('C. PoC Adj Factor Scoring'!$E$5:$J$282,,MATCH(AB$4,'C. PoC Adj Factor Scoring'!$E$3:$AH$3,0)-1),MATCH(AB$2&\" Score\",'C. PoC Adj Factor Scoring'!$E$4:$J$4,0),TRUE)","v":1},{"$f":"VLOOKUP(OFFSET($B:$B,,MATCH(AC$4,$B$4:$F$4,0)-1),OFFSET('C. PoC Adj Factor Scoring'!$E$5:$J$282,,MATCH(AC$4,'C. PoC Adj Factor Scoring'!$E$3:$AH$3,0)-1),MATCH(AC$2&\" Score\",'C. PoC Adj Factor Scoring'!$E$4:$J$4,0),TRUE)","v":1},{"$f":"VLOOKUP(OFFSET($B:$B,,MATCH(AD$4,$B$4:$F$4,0)-1),OFFSET('C. PoC Adj Factor Scoring'!$E$5:$J$282,,MATCH(AD$4,'C. PoC Adj Factor Scoring'!$E$3:$AH$3,0)-1),MATCH(AD$2&\" Score\",'C. PoC Adj Factor Scoring'!$E$4:$J$4,0),TRUE)","v":1},{"$f":"VLOOKUP(OFFSET($B:$B,,MATCH(AE$4,$B$4:$F$4,0)-1),OFFSET('C. PoC Adj Factor Scoring'!$E$5:$J$282,,MATCH(AE$4,'C. PoC Adj Factor Scoring'!$E$3:$AH$3,0)-1),MATCH(AE$2&\" Score\",'C. PoC Adj Factor Scoring'!$E$4:$J$4,0),TRUE)","v":1}]
[{"$f":"'A. Population Info'!A374","v":1000404323},{"$f":"'A. Population Info'!L374","v":"OIL"},{"$f":"'A. Population Info'!M374","v":0},{"$f":"'A. Population Info'!N374","v":0},{"$f":"'A. Population Info'!O374","v":0},{"$f":"'A. Population Info'!P374","v":0},{"$f":"VLOOKUP(OFFSET($B:$B,,MATCH(G$4,$B$4:$F$4,0)-1),OFFSET('C. PoC Adj Factor Scoring'!$E$5:$J$282,,MATCH(G$4,'C. PoC Adj Factor Scoring'!$E$3:$AH$3,0)-1),MATCH(G$2&\" Score\",'C. PoC Adj Factor Scoring'!$E$4:$J$4,0),TRUE)","v":4},{"$f":"VLOOKUP(OFFSET($B:$B,,MATCH(H$4,$B$4:$F$4,0)-1),OFFSET('C. PoC Adj Factor Scoring'!$E$5:$J$282,,MATCH(H$4,'C. PoC Adj Factor Scoring'!$E$3:$AH$3,0)-1),MATCH(H$2&\" Score\",'C. PoC Adj Factor Scoring'!$E$4:$J$4,0),TRUE)","v":1},{"$f":"VLOOKUP(OFFSET($B:$B,,MATCH(I$4,$B$4:$F$4,0)-1),OFFSET('C. PoC Adj Factor Scoring'!$E$5:$J$282,,MATCH(I$4,'C. PoC Adj Factor Scoring'!$E$3:$AH$3,0)-1),MATCH(I$2&\" Score\",'C. PoC Adj Factor Scoring'!$E$4:$J$4,0),TRUE)","v":1},{"$f":"VLOOKUP(OFFSET($B:$B,,MATCH(J$4,$B$4:$F$4,0)-1),OFFSET('C. PoC Adj Factor Scoring'!$E$5:$J$282,,MATCH(J$4,'C. PoC Adj Factor Scoring'!$E$3:$AH$3,0)-1),MATCH(J$2&\" Score\",'C. PoC Adj Factor Scoring'!$E$4:$J$4,0),TRUE)","v":1},{"$f":"VLOOKUP(OFFSET($B:$B,,MATCH(K$4,$B$4:$F$4,0)-1),OFFSET('C. PoC Adj Factor Scoring'!$E$5:$J$282,,MATCH(K$4,'C. PoC Adj Factor Scoring'!$E$3:$AH$3,0)-1),MATCH(K$2&\" Score\",'C. PoC Adj Factor Scoring'!$E$4:$J$4,0),TRUE)","v":1},{"$f":"VLOOKUP(OFFSET($B:$B,,MATCH(L$4,$B$4:$F$4,0)-1),OFFSET('C. PoC Adj Factor Scoring'!$E$5:$J$282,,MATCH(L$4,'C. PoC Adj Factor Scoring'!$E$3:$AH$3,0)-1),MATCH(L$2&\" Score\",'C. PoC Adj Factor Scoring'!$E$4:$J$4,0),TRUE)","v":1},{"$f":"VLOOKUP(OFFSET($B:$B,,MATCH(M$4,$B$4:$F$4,0)-1),OFFSET('C. PoC Adj Factor Scoring'!$E$5:$J$282,,MATCH(M$4,'C. PoC Adj Factor Scoring'!$E$3:$AH$3,0)-1),MATCH(M$2&\" Score\",'C. PoC Adj Factor Scoring'!$E$4:$J$4,0),TRUE)","v":1},{"$f":"VLOOKUP(OFFSET($B:$B,,MATCH(N$4,$B$4:$F$4,0)-1),OFFSET('C. PoC Adj Factor Scoring'!$E$5:$J$282,,MATCH(N$4,'C. PoC Adj Factor Scoring'!$E$3:$AH$3,0)-1),MATCH(N$2&\" Score\",'C. PoC Adj Factor Scoring'!$E$4:$J$4,0),TRUE)","v":1},{"$f":"VLOOKUP(OFFSET($B:$B,,MATCH(O$4,$B$4:$F$4,0)-1),OFFSET('C. PoC Adj Factor Scoring'!$E$5:$J$282,,MATCH(O$4,'C. PoC Adj Factor Scoring'!$E$3:$AH$3,0)-1),MATCH(O$2&\" Score\",'C. PoC Adj Factor Scoring'!$E$4:$J$4,0),TRUE)","v":1},{"$f":"VLOOKUP(OFFSET($B:$B,,MATCH(P$4,$B$4:$F$4,0)-1),OFFSET('C. PoC Adj Factor Scoring'!$E$5:$J$282,,MATCH(P$4,'C. PoC Adj Factor Scoring'!$E$3:$AH$3,0)-1),MATCH(P$2&\" Score\",'C. PoC Adj Factor Scoring'!$E$4:$J$4,0),TRUE)","v":1},{"$f":"VLOOKUP(OFFSET($B:$B,,MATCH(Q$4,$B$4:$F$4,0)-1),OFFSET('C. PoC Adj Factor Scoring'!$E$5:$J$282,,MATCH(Q$4,'C. PoC Adj Factor Scoring'!$E$3:$AH$3,0)-1),MATCH(Q$2&\" Score\",'C. PoC Adj Factor Scoring'!$E$4:$J$4,0),TRUE)","v":1},{"$f":"VLOOKUP(OFFSET($B:$B,,MATCH(R$4,$B$4:$F$4,0)-1),OFFSET('C. PoC Adj Factor Scoring'!$E$5:$J$282,,MATCH(R$4,'C. PoC Adj Factor Scoring'!$E$3:$AH$3,0)-1),MATCH(R$2&\" Score\",'C. PoC Adj Factor Scoring'!$E$4:$J$4,0),TRUE)","v":1},{"$f":"VLOOKUP(OFFSET($B:$B,,MATCH(S$4,$B$4:$F$4,0)-1),OFFSET('C. PoC Adj Factor Scoring'!$E$5:$J$282,,MATCH(S$4,'C. PoC Adj Factor Scoring'!$E$3:$AH$3,0)-1),MATCH(S$2&\" Score\",'C. PoC Adj Factor Scoring'!$E$4:$J$4,0),TRUE)","v":1},{"$f":"VLOOKUP(OFFSET($B:$B,,MATCH(T$4,$B$4:$F$4,0)-1),OFFSET('C. PoC Adj Factor Scoring'!$E$5:$J$282,,MATCH(T$4,'C. PoC Adj Factor Scoring'!$E$3:$AH$3,0)-1),MATCH(T$2&\" Score\",'C. PoC Adj Factor Scoring'!$E$4:$J$4,0),TRUE)","v":1},{"$f":"VLOOKUP(OFFSET($B:$B,,MATCH(U$4,$B$4:$F$4,0)-1),OFFSET('C. PoC Adj Factor Scoring'!$E$5:$J$282,,MATCH(U$4,'C. PoC Adj Factor Scoring'!$E$3:$AH$3,0)-1),MATCH(U$2&\" Score\",'C. PoC Adj Factor Scoring'!$E$4:$J$4,0),TRUE)","v":1},{"$f":"VLOOKUP(OFFSET($B:$B,,MATCH(V$4,$B$4:$F$4,0)-1),OFFSET('C. PoC Adj Factor Scoring'!$E$5:$J$282,,MATCH(V$4,'C. PoC Adj Factor Scoring'!$E$3:$AH$3,0)-1),MATCH(V$2&\" Score\",'C. PoC Adj Factor Scoring'!$E$4:$J$4,0),TRUE)","v":1},{"$f":"VLOOKUP(OFFSET($B:$B,,MATCH(W$4,$B$4:$F$4,0)-1),OFFSET('C. PoC Adj Factor Scoring'!$E$5:$J$282,,MATCH(W$4,'C. PoC Adj Factor Scoring'!$E$3:$AH$3,0)-1),MATCH(W$2&\" Score\",'C. PoC Adj Factor Scoring'!$E$4:$J$4,0),TRUE)","v":1},{"$f":"VLOOKUP(OFFSET($B:$B,,MATCH(X$4,$B$4:$F$4,0)-1),OFFSET('C. PoC Adj Factor Scoring'!$E$5:$J$282,,MATCH(X$4,'C. PoC Adj Factor Scoring'!$E$3:$AH$3,0)-1),MATCH(X$2&\" Score\",'C. PoC Adj Factor Scoring'!$E$4:$J$4,0),TRUE)","v":1},{"$f":"VLOOKUP(OFFSET($B:$B,,MATCH(Y$4,$B$4:$F$4,0)-1),OFFSET('C. PoC Adj Factor Scoring'!$E$5:$J$282,,MATCH(Y$4,'C. PoC Adj Factor Scoring'!$E$3:$AH$3,0)-1),MATCH(Y$2&\" Score\",'C. PoC Adj Factor Scoring'!$E$4:$J$4,0),TRUE)","v":1},{"$f":"VLOOKUP(OFFSET($B:$B,,MATCH(Z$4,$B$4:$F$4,0)-1),OFFSET('C. PoC Adj Factor Scoring'!$E$5:$J$282,,MATCH(Z$4,'C. PoC Adj Factor Scoring'!$E$3:$AH$3,0)-1),MATCH(Z$2&\" Score\",'C. PoC Adj Factor Scoring'!$E$4:$J$4,0),TRUE)","v":1},{"$f":"VLOOKUP(OFFSET($B:$B,,MATCH(AA$4,$B$4:$F$4,0)-1),OFFSET('C. PoC Adj Factor Scoring'!$E$5:$J$282,,MATCH(AA$4,'C. PoC Adj Factor Scoring'!$E$3:$AH$3,0)-1),MATCH(AA$2&\" Score\",'C. PoC Adj Factor Scoring'!$E$4:$J$4,0),TRUE)","v":3},{"$f":"VLOOKUP(OFFSET($B:$B,,MATCH(AB$4,$B$4:$F$4,0)-1),OFFSET('C. PoC Adj Factor Scoring'!$E$5:$J$282,,MATCH(AB$4,'C. PoC Adj Factor Scoring'!$E$3:$AH$3,0)-1),MATCH(AB$2&\" Score\",'C. PoC Adj Factor Scoring'!$E$4:$J$4,0),TRUE)","v":1},{"$f":"VLOOKUP(OFFSET($B:$B,,MATCH(AC$4,$B$4:$F$4,0)-1),OFFSET('C. PoC Adj Factor Scoring'!$E$5:$J$282,,MATCH(AC$4,'C. PoC Adj Factor Scoring'!$E$3:$AH$3,0)-1),MATCH(AC$2&\" Score\",'C. PoC Adj Factor Scoring'!$E$4:$J$4,0),TRUE)","v":1},{"$f":"VLOOKUP(OFFSET($B:$B,,MATCH(AD$4,$B$4:$F$4,0)-1),OFFSET('C. PoC Adj Factor Scoring'!$E$5:$J$282,,MATCH(AD$4,'C. PoC Adj Factor Scoring'!$E$3:$AH$3,0)-1),MATCH(AD$2&\" Score\",'C. PoC Adj Factor Scoring'!$E$4:$J$4,0),TRUE)","v":1},{"$f":"VLOOKUP(OFFSET($B:$B,,MATCH(AE$4,$B$4:$F$4,0)-1),OFFSET('C. PoC Adj Factor Scoring'!$E$5:$J$282,,MATCH(AE$4,'C. PoC Adj Factor Scoring'!$E$3:$AH$3,0)-1),MATCH(AE$2&\" Score\",'C. PoC Adj Factor Scoring'!$E$4:$J$4,0),TRUE)","v":1}]
[{"$f":"'A. Population Info'!A375","v":1000404408},{"$f":"'A. Population Info'!L375","v":"OIL"},{"$f":"'A. Population Info'!M375","v":0},{"$f":"'A. Population Info'!N375","v":0},{"$f":"'A. Population Info'!O375","v":0},{"$f":"'A. Population Info'!P375","v":0},{"$f":"VLOOKUP(OFFSET($B:$B,,MATCH(G$4,$B$4:$F$4,0)-1),OFFSET('C. PoC Adj Factor Scoring'!$E$5:$J$282,,MATCH(G$4,'C. PoC Adj Factor Scoring'!$E$3:$AH$3,0)-1),MATCH(G$2&\" Score\",'C. PoC Adj Factor Scoring'!$E$4:$J$4,0),TRUE)","v":4},{"$f":"VLOOKUP(OFFSET($B:$B,,MATCH(H$4,$B$4:$F$4,0)-1),OFFSET('C. PoC Adj Factor Scoring'!$E$5:$J$282,,MATCH(H$4,'C. PoC Adj Factor Scoring'!$E$3:$AH$3,0)-1),MATCH(H$2&\" Score\",'C. PoC Adj Factor Scoring'!$E$4:$J$4,0),TRUE)","v":1},{"$f":"VLOOKUP(OFFSET($B:$B,,MATCH(I$4,$B$4:$F$4,0)-1),OFFSET('C. PoC Adj Factor Scoring'!$E$5:$J$282,,MATCH(I$4,'C. PoC Adj Factor Scoring'!$E$3:$AH$3,0)-1),MATCH(I$2&\" Score\",'C. PoC Adj Factor Scoring'!$E$4:$J$4,0),TRUE)","v":1},{"$f":"VLOOKUP(OFFSET($B:$B,,MATCH(J$4,$B$4:$F$4,0)-1),OFFSET('C. PoC Adj Factor Scoring'!$E$5:$J$282,,MATCH(J$4,'C. PoC Adj Factor Scoring'!$E$3:$AH$3,0)-1),MATCH(J$2&\" Score\",'C. PoC Adj Factor Scoring'!$E$4:$J$4,0),TRUE)","v":1},{"$f":"VLOOKUP(OFFSET($B:$B,,MATCH(K$4,$B$4:$F$4,0)-1),OFFSET('C. PoC Adj Factor Scoring'!$E$5:$J$282,,MATCH(K$4,'C. PoC Adj Factor Scoring'!$E$3:$AH$3,0)-1),MATCH(K$2&\" Score\",'C. PoC Adj Factor Scoring'!$E$4:$J$4,0),TRUE)","v":1},{"$f":"VLOOKUP(OFFSET($B:$B,,MATCH(L$4,$B$4:$F$4,0)-1),OFFSET('C. PoC Adj Factor Scoring'!$E$5:$J$282,,MATCH(L$4,'C. PoC Adj Factor Scoring'!$E$3:$AH$3,0)-1),MATCH(L$2&\" Score\",'C. PoC Adj Factor Scoring'!$E$4:$J$4,0),TRUE)","v":1},{"$f":"VLOOKUP(OFFSET($B:$B,,MATCH(M$4,$B$4:$F$4,0)-1),OFFSET('C. PoC Adj Factor Scoring'!$E$5:$J$282,,MATCH(M$4,'C. PoC Adj Factor Scoring'!$E$3:$AH$3,0)-1),MATCH(M$2&\" Score\",'C. PoC Adj Factor Scoring'!$E$4:$J$4,0),TRUE)","v":1},{"$f":"VLOOKUP(OFFSET($B:$B,,MATCH(N$4,$B$4:$F$4,0)-1),OFFSET('C. PoC Adj Factor Scoring'!$E$5:$J$282,,MATCH(N$4,'C. PoC Adj Factor Scoring'!$E$3:$AH$3,0)-1),MATCH(N$2&\" Score\",'C. PoC Adj Factor Scoring'!$E$4:$J$4,0),TRUE)","v":1},{"$f":"VLOOKUP(OFFSET($B:$B,,MATCH(O$4,$B$4:$F$4,0)-1),OFFSET('C. PoC Adj Factor Scoring'!$E$5:$J$282,,MATCH(O$4,'C. PoC Adj Factor Scoring'!$E$3:$AH$3,0)-1),MATCH(O$2&\" Score\",'C. PoC Adj Factor Scoring'!$E$4:$J$4,0),TRUE)","v":1},{"$f":"VLOOKUP(OFFSET($B:$B,,MATCH(P$4,$B$4:$F$4,0)-1),OFFSET('C. PoC Adj Factor Scoring'!$E$5:$J$282,,MATCH(P$4,'C. PoC Adj Factor Scoring'!$E$3:$AH$3,0)-1),MATCH(P$2&\" Score\",'C. PoC Adj Factor Scoring'!$E$4:$J$4,0),TRUE)","v":1},{"$f":"VLOOKUP(OFFSET($B:$B,,MATCH(Q$4,$B$4:$F$4,0)-1),OFFSET('C. PoC Adj Factor Scoring'!$E$5:$J$282,,MATCH(Q$4,'C. PoC Adj Factor Scoring'!$E$3:$AH$3,0)-1),MATCH(Q$2&\" Score\",'C. PoC Adj Factor Scoring'!$E$4:$J$4,0),TRUE)","v":1},{"$f":"VLOOKUP(OFFSET($B:$B,,MATCH(R$4,$B$4:$F$4,0)-1),OFFSET('C. PoC Adj Factor Scoring'!$E$5:$J$282,,MATCH(R$4,'C. PoC Adj Factor Scoring'!$E$3:$AH$3,0)-1),MATCH(R$2&\" Score\",'C. PoC Adj Factor Scoring'!$E$4:$J$4,0),TRUE)","v":1},{"$f":"VLOOKUP(OFFSET($B:$B,,MATCH(S$4,$B$4:$F$4,0)-1),OFFSET('C. PoC Adj Factor Scoring'!$E$5:$J$282,,MATCH(S$4,'C. PoC Adj Factor Scoring'!$E$3:$AH$3,0)-1),MATCH(S$2&\" Score\",'C. PoC Adj Factor Scoring'!$E$4:$J$4,0),TRUE)","v":1},{"$f":"VLOOKUP(OFFSET($B:$B,,MATCH(T$4,$B$4:$F$4,0)-1),OFFSET('C. PoC Adj Factor Scoring'!$E$5:$J$282,,MATCH(T$4,'C. PoC Adj Factor Scoring'!$E$3:$AH$3,0)-1),MATCH(T$2&\" Score\",'C. PoC Adj Factor Scoring'!$E$4:$J$4,0),TRUE)","v":1},{"$f":"VLOOKUP(OFFSET($B:$B,,MATCH(U$4,$B$4:$F$4,0)-1),OFFSET('C. PoC Adj Factor Scoring'!$E$5:$J$282,,MATCH(U$4,'C. PoC Adj Factor Scoring'!$E$3:$AH$3,0)-1),MATCH(U$2&\" Score\",'C. PoC Adj Factor Scoring'!$E$4:$J$4,0),TRUE)","v":1},{"$f":"VLOOKUP(OFFSET($B:$B,,MATCH(V$4,$B$4:$F$4,0)-1),OFFSET('C. PoC Adj Factor Scoring'!$E$5:$J$282,,MATCH(V$4,'C. PoC Adj Factor Scoring'!$E$3:$AH$3,0)-1),MATCH(V$2&\" Score\",'C. PoC Adj Factor Scoring'!$E$4:$J$4,0),TRUE)","v":1},{"$f":"VLOOKUP(OFFSET($B:$B,,MATCH(W$4,$B$4:$F$4,0)-1),OFFSET('C. PoC Adj Factor Scoring'!$E$5:$J$282,,MATCH(W$4,'C. PoC Adj Factor Scoring'!$E$3:$AH$3,0)-1),MATCH(W$2&\" Score\",'C. PoC Adj Factor Scoring'!$E$4:$J$4,0),TRUE)","v":1},{"$f":"VLOOKUP(OFFSET($B:$B,,MATCH(X$4,$B$4:$F$4,0)-1),OFFSET('C. PoC Adj Factor Scoring'!$E$5:$J$282,,MATCH(X$4,'C. PoC Adj Factor Scoring'!$E$3:$AH$3,0)-1),MATCH(X$2&\" Score\",'C. PoC Adj Factor Scoring'!$E$4:$J$4,0),TRUE)","v":1},{"$f":"VLOOKUP(OFFSET($B:$B,,MATCH(Y$4,$B$4:$F$4,0)-1),OFFSET('C. PoC Adj Factor Scoring'!$E$5:$J$282,,MATCH(Y$4,'C. PoC Adj Factor Scoring'!$E$3:$AH$3,0)-1),MATCH(Y$2&\" Score\",'C. PoC Adj Factor Scoring'!$E$4:$J$4,0),TRUE)","v":1},{"$f":"VLOOKUP(OFFSET($B:$B,,MATCH(Z$4,$B$4:$F$4,0)-1),OFFSET('C. PoC Adj Factor Scoring'!$E$5:$J$282,,MATCH(Z$4,'C. PoC Adj Factor Scoring'!$E$3:$AH$3,0)-1),MATCH(Z$2&\" Score\",'C. PoC Adj Factor Scoring'!$E$4:$J$4,0),TRUE)","v":1},{"$f":"VLOOKUP(OFFSET($B:$B,,MATCH(AA$4,$B$4:$F$4,0)-1),OFFSET('C. PoC Adj Factor Scoring'!$E$5:$J$282,,MATCH(AA$4,'C. PoC Adj Factor Scoring'!$E$3:$AH$3,0)-1),MATCH(AA$2&\" Score\",'C. PoC Adj Factor Scoring'!$E$4:$J$4,0),TRUE)","v":3},{"$f":"VLOOKUP(OFFSET($B:$B,,MATCH(AB$4,$B$4:$F$4,0)-1),OFFSET('C. PoC Adj Factor Scoring'!$E$5:$J$282,,MATCH(AB$4,'C. PoC Adj Factor Scoring'!$E$3:$AH$3,0)-1),MATCH(AB$2&\" Score\",'C. PoC Adj Factor Scoring'!$E$4:$J$4,0),TRUE)","v":1},{"$f":"VLOOKUP(OFFSET($B:$B,,MATCH(AC$4,$B$4:$F$4,0)-1),OFFSET('C. PoC Adj Factor Scoring'!$E$5:$J$282,,MATCH(AC$4,'C. PoC Adj Factor Scoring'!$E$3:$AH$3,0)-1),MATCH(AC$2&\" Score\",'C. PoC Adj Factor Scoring'!$E$4:$J$4,0),TRUE)","v":1},{"$f":"VLOOKUP(OFFSET($B:$B,,MATCH(AD$4,$B$4:$F$4,0)-1),OFFSET('C. PoC Adj Factor Scoring'!$E$5:$J$282,,MATCH(AD$4,'C. PoC Adj Factor Scoring'!$E$3:$AH$3,0)-1),MATCH(AD$2&\" Score\",'C. PoC Adj Factor Scoring'!$E$4:$J$4,0),TRUE)","v":1},{"$f":"VLOOKUP(OFFSET($B:$B,,MATCH(AE$4,$B$4:$F$4,0)-1),OFFSET('C. PoC Adj Factor Scoring'!$E$5:$J$282,,MATCH(AE$4,'C. PoC Adj Factor Scoring'!$E$3:$AH$3,0)-1),MATCH(AE$2&\" Score\",'C. PoC Adj Factor Scoring'!$E$4:$J$4,0),TRUE)","v":1}]
[{"$f":"'A. Population Info'!A376","v":1000404433},{"$f":"'A. Population Info'!L376","v":"OIL"},{"$f":"'A. Population Info'!M376","v":0},{"$f":"'A. Population Info'!N376","v":0},{"$f":"'A. Population Info'!O376","v":0},{"$f":"'A. Population Info'!P376","v":0},{"$f":"VLOOKUP(OFFSET($B:$B,,MATCH(G$4,$B$4:$F$4,0)-1),OFFSET('C. PoC Adj Factor Scoring'!$E$5:$J$282,,MATCH(G$4,'C. PoC Adj Factor Scoring'!$E$3:$AH$3,0)-1),MATCH(G$2&\" Score\",'C. PoC Adj Factor Scoring'!$E$4:$J$4,0),TRUE)","v":4},{"$f":"VLOOKUP(OFFSET($B:$B,,MATCH(H$4,$B$4:$F$4,0)-1),OFFSET('C. PoC Adj Factor Scoring'!$E$5:$J$282,,MATCH(H$4,'C. PoC Adj Factor Scoring'!$E$3:$AH$3,0)-1),MATCH(H$2&\" Score\",'C. PoC Adj Factor Scoring'!$E$4:$J$4,0),TRUE)","v":1},{"$f":"VLOOKUP(OFFSET($B:$B,,MATCH(I$4,$B$4:$F$4,0)-1),OFFSET('C. PoC Adj Factor Scoring'!$E$5:$J$282,,MATCH(I$4,'C. PoC Adj Factor Scoring'!$E$3:$AH$3,0)-1),MATCH(I$2&\" Score\",'C. PoC Adj Factor Scoring'!$E$4:$J$4,0),TRUE)","v":1},{"$f":"VLOOKUP(OFFSET($B:$B,,MATCH(J$4,$B$4:$F$4,0)-1),OFFSET('C. PoC Adj Factor Scoring'!$E$5:$J$282,,MATCH(J$4,'C. PoC Adj Factor Scoring'!$E$3:$AH$3,0)-1),MATCH(J$2&\" Score\",'C. PoC Adj Factor Scoring'!$E$4:$J$4,0),TRUE)","v":1},{"$f":"VLOOKUP(OFFSET($B:$B,,MATCH(K$4,$B$4:$F$4,0)-1),OFFSET('C. PoC Adj Factor Scoring'!$E$5:$J$282,,MATCH(K$4,'C. PoC Adj Factor Scoring'!$E$3:$AH$3,0)-1),MATCH(K$2&\" Score\",'C. PoC Adj Factor Scoring'!$E$4:$J$4,0),TRUE)","v":1},{"$f":"VLOOKUP(OFFSET($B:$B,,MATCH(L$4,$B$4:$F$4,0)-1),OFFSET('C. PoC Adj Factor Scoring'!$E$5:$J$282,,MATCH(L$4,'C. PoC Adj Factor Scoring'!$E$3:$AH$3,0)-1),MATCH(L$2&\" Score\",'C. PoC Adj Factor Scoring'!$E$4:$J$4,0),TRUE)","v":1},{"$f":"VLOOKUP(OFFSET($B:$B,,MATCH(M$4,$B$4:$F$4,0)-1),OFFSET('C. PoC Adj Factor Scoring'!$E$5:$J$282,,MATCH(M$4,'C. PoC Adj Factor Scoring'!$E$3:$AH$3,0)-1),MATCH(M$2&\" Score\",'C. PoC Adj Factor Scoring'!$E$4:$J$4,0),TRUE)","v":1},{"$f":"VLOOKUP(OFFSET($B:$B,,MATCH(N$4,$B$4:$F$4,0)-1),OFFSET('C. PoC Adj Factor Scoring'!$E$5:$J$282,,MATCH(N$4,'C. PoC Adj Factor Scoring'!$E$3:$AH$3,0)-1),MATCH(N$2&\" Score\",'C. PoC Adj Factor Scoring'!$E$4:$J$4,0),TRUE)","v":1},{"$f":"VLOOKUP(OFFSET($B:$B,,MATCH(O$4,$B$4:$F$4,0)-1),OFFSET('C. PoC Adj Factor Scoring'!$E$5:$J$282,,MATCH(O$4,'C. PoC Adj Factor Scoring'!$E$3:$AH$3,0)-1),MATCH(O$2&\" Score\",'C. PoC Adj Factor Scoring'!$E$4:$J$4,0),TRUE)","v":1},{"$f":"VLOOKUP(OFFSET($B:$B,,MATCH(P$4,$B$4:$F$4,0)-1),OFFSET('C. PoC Adj Factor Scoring'!$E$5:$J$282,,MATCH(P$4,'C. PoC Adj Factor Scoring'!$E$3:$AH$3,0)-1),MATCH(P$2&\" Score\",'C. PoC Adj Factor Scoring'!$E$4:$J$4,0),TRUE)","v":1},{"$f":"VLOOKUP(OFFSET($B:$B,,MATCH(Q$4,$B$4:$F$4,0)-1),OFFSET('C. PoC Adj Factor Scoring'!$E$5:$J$282,,MATCH(Q$4,'C. PoC Adj Factor Scoring'!$E$3:$AH$3,0)-1),MATCH(Q$2&\" Score\",'C. PoC Adj Factor Scoring'!$E$4:$J$4,0),TRUE)","v":1},{"$f":"VLOOKUP(OFFSET($B:$B,,MATCH(R$4,$B$4:$F$4,0)-1),OFFSET('C. PoC Adj Factor Scoring'!$E$5:$J$282,,MATCH(R$4,'C. PoC Adj Factor Scoring'!$E$3:$AH$3,0)-1),MATCH(R$2&\" Score\",'C. PoC Adj Factor Scoring'!$E$4:$J$4,0),TRUE)","v":1},{"$f":"VLOOKUP(OFFSET($B:$B,,MATCH(S$4,$B$4:$F$4,0)-1),OFFSET('C. PoC Adj Factor Scoring'!$E$5:$J$282,,MATCH(S$4,'C. PoC Adj Factor Scoring'!$E$3:$AH$3,0)-1),MATCH(S$2&\" Score\",'C. PoC Adj Factor Scoring'!$E$4:$J$4,0),TRUE)","v":1},{"$f":"VLOOKUP(OFFSET($B:$B,,MATCH(T$4,$B$4:$F$4,0)-1),OFFSET('C. PoC Adj Factor Scoring'!$E$5:$J$282,,MATCH(T$4,'C. PoC Adj Factor Scoring'!$E$3:$AH$3,0)-1),MATCH(T$2&\" Score\",'C. PoC Adj Factor Scoring'!$E$4:$J$4,0),TRUE)","v":1},{"$f":"VLOOKUP(OFFSET($B:$B,,MATCH(U$4,$B$4:$F$4,0)-1),OFFSET('C. PoC Adj Factor Scoring'!$E$5:$J$282,,MATCH(U$4,'C. PoC Adj Factor Scoring'!$E$3:$AH$3,0)-1),MATCH(U$2&\" Score\",'C. PoC Adj Factor Scoring'!$E$4:$J$4,0),TRUE)","v":1},{"$f":"VLOOKUP(OFFSET($B:$B,,MATCH(V$4,$B$4:$F$4,0)-1),OFFSET('C. PoC Adj Factor Scoring'!$E$5:$J$282,,MATCH(V$4,'C. PoC Adj Factor Scoring'!$E$3:$AH$3,0)-1),MATCH(V$2&\" Score\",'C. PoC Adj Factor Scoring'!$E$4:$J$4,0),TRUE)","v":1},{"$f":"VLOOKUP(OFFSET($B:$B,,MATCH(W$4,$B$4:$F$4,0)-1),OFFSET('C. PoC Adj Factor Scoring'!$E$5:$J$282,,MATCH(W$4,'C. PoC Adj Factor Scoring'!$E$3:$AH$3,0)-1),MATCH(W$2&\" Score\",'C. PoC Adj Factor Scoring'!$E$4:$J$4,0),TRUE)","v":1},{"$f":"VLOOKUP(OFFSET($B:$B,,MATCH(X$4,$B$4:$F$4,0)-1),OFFSET('C. PoC Adj Factor Scoring'!$E$5:$J$282,,MATCH(X$4,'C. PoC Adj Factor Scoring'!$E$3:$AH$3,0)-1),MATCH(X$2&\" Score\",'C. PoC Adj Factor Scoring'!$E$4:$J$4,0),TRUE)","v":1},{"$f":"VLOOKUP(OFFSET($B:$B,,MATCH(Y$4,$B$4:$F$4,0)-1),OFFSET('C. PoC Adj Factor Scoring'!$E$5:$J$282,,MATCH(Y$4,'C. PoC Adj Factor Scoring'!$E$3:$AH$3,0)-1),MATCH(Y$2&\" Score\",'C. PoC Adj Factor Scoring'!$E$4:$J$4,0),TRUE)","v":1},{"$f":"VLOOKUP(OFFSET($B:$B,,MATCH(Z$4,$B$4:$F$4,0)-1),OFFSET('C. PoC Adj Factor Scoring'!$E$5:$J$282,,MATCH(Z$4,'C. PoC Adj Factor Scoring'!$E$3:$AH$3,0)-1),MATCH(Z$2&\" Score\",'C. PoC Adj Factor Scoring'!$E$4:$J$4,0),TRUE)","v":1},{"$f":"VLOOKUP(OFFSET($B:$B,,MATCH(AA$4,$B$4:$F$4,0)-1),OFFSET('C. PoC Adj Factor Scoring'!$E$5:$J$282,,MATCH(AA$4,'C. PoC Adj Factor Scoring'!$E$3:$AH$3,0)-1),MATCH(AA$2&\" Score\",'C. PoC Adj Factor Scoring'!$E$4:$J$4,0),TRUE)","v":3},{"$f":"VLOOKUP(OFFSET($B:$B,,MATCH(AB$4,$B$4:$F$4,0)-1),OFFSET('C. PoC Adj Factor Scoring'!$E$5:$J$282,,MATCH(AB$4,'C. PoC Adj Factor Scoring'!$E$3:$AH$3,0)-1),MATCH(AB$2&\" Score\",'C. PoC Adj Factor Scoring'!$E$4:$J$4,0),TRUE)","v":1},{"$f":"VLOOKUP(OFFSET($B:$B,,MATCH(AC$4,$B$4:$F$4,0)-1),OFFSET('C. PoC Adj Factor Scoring'!$E$5:$J$282,,MATCH(AC$4,'C. PoC Adj Factor Scoring'!$E$3:$AH$3,0)-1),MATCH(AC$2&\" Score\",'C. PoC Adj Factor Scoring'!$E$4:$J$4,0),TRUE)","v":1},{"$f":"VLOOKUP(OFFSET($B:$B,,MATCH(AD$4,$B$4:$F$4,0)-1),OFFSET('C. PoC Adj Factor Scoring'!$E$5:$J$282,,MATCH(AD$4,'C. PoC Adj Factor Scoring'!$E$3:$AH$3,0)-1),MATCH(AD$2&\" Score\",'C. PoC Adj Factor Scoring'!$E$4:$J$4,0),TRUE)","v":1},{"$f":"VLOOKUP(OFFSET($B:$B,,MATCH(AE$4,$B$4:$F$4,0)-1),OFFSET('C. PoC Adj Factor Scoring'!$E$5:$J$282,,MATCH(AE$4,'C. PoC Adj Factor Scoring'!$E$3:$AH$3,0)-1),MATCH(AE$2&\" Score\",'C. PoC Adj Factor Scoring'!$E$4:$J$4,0),TRUE)","v":1}]
[{"$f":"'A. Population Info'!A377","v":1000404524},{"$f":"'A. Population Info'!L377","v":"OIL"},{"$f":"'A. Population Info'!M377","v":0},{"$f":"'A. Population Info'!N377","v":0},{"$f":"'A. Population Info'!O377","v":0},{"$f":"'A. Population Info'!P377","v":0},{"$f":"VLOOKUP(OFFSET($B:$B,,MATCH(G$4,$B$4:$F$4,0)-1),OFFSET('C. PoC Adj Factor Scoring'!$E$5:$J$282,,MATCH(G$4,'C. PoC Adj Factor Scoring'!$E$3:$AH$3,0)-1),MATCH(G$2&\" Score\",'C. PoC Adj Factor Scoring'!$E$4:$J$4,0),TRUE)","v":4},{"$f":"VLOOKUP(OFFSET($B:$B,,MATCH(H$4,$B$4:$F$4,0)-1),OFFSET('C. PoC Adj Factor Scoring'!$E$5:$J$282,,MATCH(H$4,'C. PoC Adj Factor Scoring'!$E$3:$AH$3,0)-1),MATCH(H$2&\" Score\",'C. PoC Adj Factor Scoring'!$E$4:$J$4,0),TRUE)","v":1},{"$f":"VLOOKUP(OFFSET($B:$B,,MATCH(I$4,$B$4:$F$4,0)-1),OFFSET('C. PoC Adj Factor Scoring'!$E$5:$J$282,,MATCH(I$4,'C. PoC Adj Factor Scoring'!$E$3:$AH$3,0)-1),MATCH(I$2&\" Score\",'C. PoC Adj Factor Scoring'!$E$4:$J$4,0),TRUE)","v":1},{"$f":"VLOOKUP(OFFSET($B:$B,,MATCH(J$4,$B$4:$F$4,0)-1),OFFSET('C. PoC Adj Factor Scoring'!$E$5:$J$282,,MATCH(J$4,'C. PoC Adj Factor Scoring'!$E$3:$AH$3,0)-1),MATCH(J$2&\" Score\",'C. PoC Adj Factor Scoring'!$E$4:$J$4,0),TRUE)","v":1},{"$f":"VLOOKUP(OFFSET($B:$B,,MATCH(K$4,$B$4:$F$4,0)-1),OFFSET('C. PoC Adj Factor Scoring'!$E$5:$J$282,,MATCH(K$4,'C. PoC Adj Factor Scoring'!$E$3:$AH$3,0)-1),MATCH(K$2&\" Score\",'C. PoC Adj Factor Scoring'!$E$4:$J$4,0),TRUE)","v":1},{"$f":"VLOOKUP(OFFSET($B:$B,,MATCH(L$4,$B$4:$F$4,0)-1),OFFSET('C. PoC Adj Factor Scoring'!$E$5:$J$282,,MATCH(L$4,'C. PoC Adj Factor Scoring'!$E$3:$AH$3,0)-1),MATCH(L$2&\" Score\",'C. PoC Adj Factor Scoring'!$E$4:$J$4,0),TRUE)","v":1},{"$f":"VLOOKUP(OFFSET($B:$B,,MATCH(M$4,$B$4:$F$4,0)-1),OFFSET('C. PoC Adj Factor Scoring'!$E$5:$J$282,,MATCH(M$4,'C. PoC Adj Factor Scoring'!$E$3:$AH$3,0)-1),MATCH(M$2&\" Score\",'C. PoC Adj Factor Scoring'!$E$4:$J$4,0),TRUE)","v":1},{"$f":"VLOOKUP(OFFSET($B:$B,,MATCH(N$4,$B$4:$F$4,0)-1),OFFSET('C. PoC Adj Factor Scoring'!$E$5:$J$282,,MATCH(N$4,'C. PoC Adj Factor Scoring'!$E$3:$AH$3,0)-1),MATCH(N$2&\" Score\",'C. PoC Adj Factor Scoring'!$E$4:$J$4,0),TRUE)","v":1},{"$f":"VLOOKUP(OFFSET($B:$B,,MATCH(O$4,$B$4:$F$4,0)-1),OFFSET('C. PoC Adj Factor Scoring'!$E$5:$J$282,,MATCH(O$4,'C. PoC Adj Factor Scoring'!$E$3:$AH$3,0)-1),MATCH(O$2&\" Score\",'C. PoC Adj Factor Scoring'!$E$4:$J$4,0),TRUE)","v":1},{"$f":"VLOOKUP(OFFSET($B:$B,,MATCH(P$4,$B$4:$F$4,0)-1),OFFSET('C. PoC Adj Factor Scoring'!$E$5:$J$282,,MATCH(P$4,'C. PoC Adj Factor Scoring'!$E$3:$AH$3,0)-1),MATCH(P$2&\" Score\",'C. PoC Adj Factor Scoring'!$E$4:$J$4,0),TRUE)","v":1},{"$f":"VLOOKUP(OFFSET($B:$B,,MATCH(Q$4,$B$4:$F$4,0)-1),OFFSET('C. PoC Adj Factor Scoring'!$E$5:$J$282,,MATCH(Q$4,'C. PoC Adj Factor Scoring'!$E$3:$AH$3,0)-1),MATCH(Q$2&\" Score\",'C. PoC Adj Factor Scoring'!$E$4:$J$4,0),TRUE)","v":1},{"$f":"VLOOKUP(OFFSET($B:$B,,MATCH(R$4,$B$4:$F$4,0)-1),OFFSET('C. PoC Adj Factor Scoring'!$E$5:$J$282,,MATCH(R$4,'C. PoC Adj Factor Scoring'!$E$3:$AH$3,0)-1),MATCH(R$2&\" Score\",'C. PoC Adj Factor Scoring'!$E$4:$J$4,0),TRUE)","v":1},{"$f":"VLOOKUP(OFFSET($B:$B,,MATCH(S$4,$B$4:$F$4,0)-1),OFFSET('C. PoC Adj Factor Scoring'!$E$5:$J$282,,MATCH(S$4,'C. PoC Adj Factor Scoring'!$E$3:$AH$3,0)-1),MATCH(S$2&\" Score\",'C. PoC Adj Factor Scoring'!$E$4:$J$4,0),TRUE)","v":1},{"$f":"VLOOKUP(OFFSET($B:$B,,MATCH(T$4,$B$4:$F$4,0)-1),OFFSET('C. PoC Adj Factor Scoring'!$E$5:$J$282,,MATCH(T$4,'C. PoC Adj Factor Scoring'!$E$3:$AH$3,0)-1),MATCH(T$2&\" Score\",'C. PoC Adj Factor Scoring'!$E$4:$J$4,0),TRUE)","v":1},{"$f":"VLOOKUP(OFFSET($B:$B,,MATCH(U$4,$B$4:$F$4,0)-1),OFFSET('C. PoC Adj Factor Scoring'!$E$5:$J$282,,MATCH(U$4,'C. PoC Adj Factor Scoring'!$E$3:$AH$3,0)-1),MATCH(U$2&\" Score\",'C. PoC Adj Factor Scoring'!$E$4:$J$4,0),TRUE)","v":1},{"$f":"VLOOKUP(OFFSET($B:$B,,MATCH(V$4,$B$4:$F$4,0)-1),OFFSET('C. PoC Adj Factor Scoring'!$E$5:$J$282,,MATCH(V$4,'C. PoC Adj Factor Scoring'!$E$3:$AH$3,0)-1),MATCH(V$2&\" Score\",'C. PoC Adj Factor Scoring'!$E$4:$J$4,0),TRUE)","v":1},{"$f":"VLOOKUP(OFFSET($B:$B,,MATCH(W$4,$B$4:$F$4,0)-1),OFFSET('C. PoC Adj Factor Scoring'!$E$5:$J$282,,MATCH(W$4,'C. PoC Adj Factor Scoring'!$E$3:$AH$3,0)-1),MATCH(W$2&\" Score\",'C. PoC Adj Factor Scoring'!$E$4:$J$4,0),TRUE)","v":1},{"$f":"VLOOKUP(OFFSET($B:$B,,MATCH(X$4,$B$4:$F$4,0)-1),OFFSET('C. PoC Adj Factor Scoring'!$E$5:$J$282,,MATCH(X$4,'C. PoC Adj Factor Scoring'!$E$3:$AH$3,0)-1),MATCH(X$2&\" Score\",'C. PoC Adj Factor Scoring'!$E$4:$J$4,0),TRUE)","v":1},{"$f":"VLOOKUP(OFFSET($B:$B,,MATCH(Y$4,$B$4:$F$4,0)-1),OFFSET('C. PoC Adj Factor Scoring'!$E$5:$J$282,,MATCH(Y$4,'C. PoC Adj Factor Scoring'!$E$3:$AH$3,0)-1),MATCH(Y$2&\" Score\",'C. PoC Adj Factor Scoring'!$E$4:$J$4,0),TRUE)","v":1},{"$f":"VLOOKUP(OFFSET($B:$B,,MATCH(Z$4,$B$4:$F$4,0)-1),OFFSET('C. PoC Adj Factor Scoring'!$E$5:$J$282,,MATCH(Z$4,'C. PoC Adj Factor Scoring'!$E$3:$AH$3,0)-1),MATCH(Z$2&\" Score\",'C. PoC Adj Factor Scoring'!$E$4:$J$4,0),TRUE)","v":1},{"$f":"VLOOKUP(OFFSET($B:$B,,MATCH(AA$4,$B$4:$F$4,0)-1),OFFSET('C. PoC Adj Factor Scoring'!$E$5:$J$282,,MATCH(AA$4,'C. PoC Adj Factor Scoring'!$E$3:$AH$3,0)-1),MATCH(AA$2&\" Score\",'C. PoC Adj Factor Scoring'!$E$4:$J$4,0),TRUE)","v":3},{"$f":"VLOOKUP(OFFSET($B:$B,,MATCH(AB$4,$B$4:$F$4,0)-1),OFFSET('C. PoC Adj Factor Scoring'!$E$5:$J$282,,MATCH(AB$4,'C. PoC Adj Factor Scoring'!$E$3:$AH$3,0)-1),MATCH(AB$2&\" Score\",'C. PoC Adj Factor Scoring'!$E$4:$J$4,0),TRUE)","v":1},{"$f":"VLOOKUP(OFFSET($B:$B,,MATCH(AC$4,$B$4:$F$4,0)-1),OFFSET('C. PoC Adj Factor Scoring'!$E$5:$J$282,,MATCH(AC$4,'C. PoC Adj Factor Scoring'!$E$3:$AH$3,0)-1),MATCH(AC$2&\" Score\",'C. PoC Adj Factor Scoring'!$E$4:$J$4,0),TRUE)","v":1},{"$f":"VLOOKUP(OFFSET($B:$B,,MATCH(AD$4,$B$4:$F$4,0)-1),OFFSET('C. PoC Adj Factor Scoring'!$E$5:$J$282,,MATCH(AD$4,'C. PoC Adj Factor Scoring'!$E$3:$AH$3,0)-1),MATCH(AD$2&\" Score\",'C. PoC Adj Factor Scoring'!$E$4:$J$4,0),TRUE)","v":1},{"$f":"VLOOKUP(OFFSET($B:$B,,MATCH(AE$4,$B$4:$F$4,0)-1),OFFSET('C. PoC Adj Factor Scoring'!$E$5:$J$282,,MATCH(AE$4,'C. PoC Adj Factor Scoring'!$E$3:$AH$3,0)-1),MATCH(AE$2&\" Score\",'C. PoC Adj Factor Scoring'!$E$4:$J$4,0),TRUE)","v":1}]
[{"$f":"'A. Population Info'!A378","v":1000404605},{"$f":"'A. Population Info'!L378","v":"OIL"},{"$f":"'A. Population Info'!M378","v":0},{"$f":"'A. Population Info'!N378","v":0},{"$f":"'A. Population Info'!O378","v":0},{"$f":"'A. Population Info'!P378","v":0},{"$f":"VLOOKUP(OFFSET($B:$B,,MATCH(G$4,$B$4:$F$4,0)-1),OFFSET('C. PoC Adj Factor Scoring'!$E$5:$J$282,,MATCH(G$4,'C. PoC Adj Factor Scoring'!$E$3:$AH$3,0)-1),MATCH(G$2&\" Score\",'C. PoC Adj Factor Scoring'!$E$4:$J$4,0),TRUE)","v":4},{"$f":"VLOOKUP(OFFSET($B:$B,,MATCH(H$4,$B$4:$F$4,0)-1),OFFSET('C. PoC Adj Factor Scoring'!$E$5:$J$282,,MATCH(H$4,'C. PoC Adj Factor Scoring'!$E$3:$AH$3,0)-1),MATCH(H$2&\" Score\",'C. PoC Adj Factor Scoring'!$E$4:$J$4,0),TRUE)","v":1},{"$f":"VLOOKUP(OFFSET($B:$B,,MATCH(I$4,$B$4:$F$4,0)-1),OFFSET('C. PoC Adj Factor Scoring'!$E$5:$J$282,,MATCH(I$4,'C. PoC Adj Factor Scoring'!$E$3:$AH$3,0)-1),MATCH(I$2&\" Score\",'C. PoC Adj Factor Scoring'!$E$4:$J$4,0),TRUE)","v":1},{"$f":"VLOOKUP(OFFSET($B:$B,,MATCH(J$4,$B$4:$F$4,0)-1),OFFSET('C. PoC Adj Factor Scoring'!$E$5:$J$282,,MATCH(J$4,'C. PoC Adj Factor Scoring'!$E$3:$AH$3,0)-1),MATCH(J$2&\" Score\",'C. PoC Adj Factor Scoring'!$E$4:$J$4,0),TRUE)","v":1},{"$f":"VLOOKUP(OFFSET($B:$B,,MATCH(K$4,$B$4:$F$4,0)-1),OFFSET('C. PoC Adj Factor Scoring'!$E$5:$J$282,,MATCH(K$4,'C. PoC Adj Factor Scoring'!$E$3:$AH$3,0)-1),MATCH(K$2&\" Score\",'C. PoC Adj Factor Scoring'!$E$4:$J$4,0),TRUE)","v":1},{"$f":"VLOOKUP(OFFSET($B:$B,,MATCH(L$4,$B$4:$F$4,0)-1),OFFSET('C. PoC Adj Factor Scoring'!$E$5:$J$282,,MATCH(L$4,'C. PoC Adj Factor Scoring'!$E$3:$AH$3,0)-1),MATCH(L$2&\" Score\",'C. PoC Adj Factor Scoring'!$E$4:$J$4,0),TRUE)","v":1},{"$f":"VLOOKUP(OFFSET($B:$B,,MATCH(M$4,$B$4:$F$4,0)-1),OFFSET('C. PoC Adj Factor Scoring'!$E$5:$J$282,,MATCH(M$4,'C. PoC Adj Factor Scoring'!$E$3:$AH$3,0)-1),MATCH(M$2&\" Score\",'C. PoC Adj Factor Scoring'!$E$4:$J$4,0),TRUE)","v":1},{"$f":"VLOOKUP(OFFSET($B:$B,,MATCH(N$4,$B$4:$F$4,0)-1),OFFSET('C. PoC Adj Factor Scoring'!$E$5:$J$282,,MATCH(N$4,'C. PoC Adj Factor Scoring'!$E$3:$AH$3,0)-1),MATCH(N$2&\" Score\",'C. PoC Adj Factor Scoring'!$E$4:$J$4,0),TRUE)","v":1},{"$f":"VLOOKUP(OFFSET($B:$B,,MATCH(O$4,$B$4:$F$4,0)-1),OFFSET('C. PoC Adj Factor Scoring'!$E$5:$J$282,,MATCH(O$4,'C. PoC Adj Factor Scoring'!$E$3:$AH$3,0)-1),MATCH(O$2&\" Score\",'C. PoC Adj Factor Scoring'!$E$4:$J$4,0),TRUE)","v":1},{"$f":"VLOOKUP(OFFSET($B:$B,,MATCH(P$4,$B$4:$F$4,0)-1),OFFSET('C. PoC Adj Factor Scoring'!$E$5:$J$282,,MATCH(P$4,'C. PoC Adj Factor Scoring'!$E$3:$AH$3,0)-1),MATCH(P$2&\" Score\",'C. PoC Adj Factor Scoring'!$E$4:$J$4,0),TRUE)","v":1},{"$f":"VLOOKUP(OFFSET($B:$B,,MATCH(Q$4,$B$4:$F$4,0)-1),OFFSET('C. PoC Adj Factor Scoring'!$E$5:$J$282,,MATCH(Q$4,'C. PoC Adj Factor Scoring'!$E$3:$AH$3,0)-1),MATCH(Q$2&\" Score\",'C. PoC Adj Factor Scoring'!$E$4:$J$4,0),TRUE)","v":1},{"$f":"VLOOKUP(OFFSET($B:$B,,MATCH(R$4,$B$4:$F$4,0)-1),OFFSET('C. PoC Adj Factor Scoring'!$E$5:$J$282,,MATCH(R$4,'C. PoC Adj Factor Scoring'!$E$3:$AH$3,0)-1),MATCH(R$2&\" Score\",'C. PoC Adj Factor Scoring'!$E$4:$J$4,0),TRUE)","v":1},{"$f":"VLOOKUP(OFFSET($B:$B,,MATCH(S$4,$B$4:$F$4,0)-1),OFFSET('C. PoC Adj Factor Scoring'!$E$5:$J$282,,MATCH(S$4,'C. PoC Adj Factor Scoring'!$E$3:$AH$3,0)-1),MATCH(S$2&\" Score\",'C. PoC Adj Factor Scoring'!$E$4:$J$4,0),TRUE)","v":1},{"$f":"VLOOKUP(OFFSET($B:$B,,MATCH(T$4,$B$4:$F$4,0)-1),OFFSET('C. PoC Adj Factor Scoring'!$E$5:$J$282,,MATCH(T$4,'C. PoC Adj Factor Scoring'!$E$3:$AH$3,0)-1),MATCH(T$2&\" Score\",'C. PoC Adj Factor Scoring'!$E$4:$J$4,0),TRUE)","v":1},{"$f":"VLOOKUP(OFFSET($B:$B,,MATCH(U$4,$B$4:$F$4,0)-1),OFFSET('C. PoC Adj Factor Scoring'!$E$5:$J$282,,MATCH(U$4,'C. PoC Adj Factor Scoring'!$E$3:$AH$3,0)-1),MATCH(U$2&\" Score\",'C. PoC Adj Factor Scoring'!$E$4:$J$4,0),TRUE)","v":1},{"$f":"VLOOKUP(OFFSET($B:$B,,MATCH(V$4,$B$4:$F$4,0)-1),OFFSET('C. PoC Adj Factor Scoring'!$E$5:$J$282,,MATCH(V$4,'C. PoC Adj Factor Scoring'!$E$3:$AH$3,0)-1),MATCH(V$2&\" Score\",'C. PoC Adj Factor Scoring'!$E$4:$J$4,0),TRUE)","v":1},{"$f":"VLOOKUP(OFFSET($B:$B,,MATCH(W$4,$B$4:$F$4,0)-1),OFFSET('C. PoC Adj Factor Scoring'!$E$5:$J$282,,MATCH(W$4,'C. PoC Adj Factor Scoring'!$E$3:$AH$3,0)-1),MATCH(W$2&\" Score\",'C. PoC Adj Factor Scoring'!$E$4:$J$4,0),TRUE)","v":1},{"$f":"VLOOKUP(OFFSET($B:$B,,MATCH(X$4,$B$4:$F$4,0)-1),OFFSET('C. PoC Adj Factor Scoring'!$E$5:$J$282,,MATCH(X$4,'C. PoC Adj Factor Scoring'!$E$3:$AH$3,0)-1),MATCH(X$2&\" Score\",'C. PoC Adj Factor Scoring'!$E$4:$J$4,0),TRUE)","v":1},{"$f":"VLOOKUP(OFFSET($B:$B,,MATCH(Y$4,$B$4:$F$4,0)-1),OFFSET('C. PoC Adj Factor Scoring'!$E$5:$J$282,,MATCH(Y$4,'C. PoC Adj Factor Scoring'!$E$3:$AH$3,0)-1),MATCH(Y$2&\" Score\",'C. PoC Adj Factor Scoring'!$E$4:$J$4,0),TRUE)","v":1},{"$f":"VLOOKUP(OFFSET($B:$B,,MATCH(Z$4,$B$4:$F$4,0)-1),OFFSET('C. PoC Adj Factor Scoring'!$E$5:$J$282,,MATCH(Z$4,'C. PoC Adj Factor Scoring'!$E$3:$AH$3,0)-1),MATCH(Z$2&\" Score\",'C. PoC Adj Factor Scoring'!$E$4:$J$4,0),TRUE)","v":1},{"$f":"VLOOKUP(OFFSET($B:$B,,MATCH(AA$4,$B$4:$F$4,0)-1),OFFSET('C. PoC Adj Factor Scoring'!$E$5:$J$282,,MATCH(AA$4,'C. PoC Adj Factor Scoring'!$E$3:$AH$3,0)-1),MATCH(AA$2&\" Score\",'C. PoC Adj Factor Scoring'!$E$4:$J$4,0),TRUE)","v":3},{"$f":"VLOOKUP(OFFSET($B:$B,,MATCH(AB$4,$B$4:$F$4,0)-1),OFFSET('C. PoC Adj Factor Scoring'!$E$5:$J$282,,MATCH(AB$4,'C. PoC Adj Factor Scoring'!$E$3:$AH$3,0)-1),MATCH(AB$2&\" Score\",'C. PoC Adj Factor Scoring'!$E$4:$J$4,0),TRUE)","v":1},{"$f":"VLOOKUP(OFFSET($B:$B,,MATCH(AC$4,$B$4:$F$4,0)-1),OFFSET('C. PoC Adj Factor Scoring'!$E$5:$J$282,,MATCH(AC$4,'C. PoC Adj Factor Scoring'!$E$3:$AH$3,0)-1),MATCH(AC$2&\" Score\",'C. PoC Adj Factor Scoring'!$E$4:$J$4,0),TRUE)","v":1},{"$f":"VLOOKUP(OFFSET($B:$B,,MATCH(AD$4,$B$4:$F$4,0)-1),OFFSET('C. PoC Adj Factor Scoring'!$E$5:$J$282,,MATCH(AD$4,'C. PoC Adj Factor Scoring'!$E$3:$AH$3,0)-1),MATCH(AD$2&\" Score\",'C. PoC Adj Factor Scoring'!$E$4:$J$4,0),TRUE)","v":1},{"$f":"VLOOKUP(OFFSET($B:$B,,MATCH(AE$4,$B$4:$F$4,0)-1),OFFSET('C. PoC Adj Factor Scoring'!$E$5:$J$282,,MATCH(AE$4,'C. PoC Adj Factor Scoring'!$E$3:$AH$3,0)-1),MATCH(AE$2&\" Score\",'C. PoC Adj Factor Scoring'!$E$4:$J$4,0),TRUE)","v":1}]
[{"$f":"'A. Population Info'!A379","v":1000404625},{"$f":"'A. Population Info'!L379","v":"OIL"},{"$f":"'A. Population Info'!M379","v":0},{"$f":"'A. Population Info'!N379","v":0},{"$f":"'A. Population Info'!O379","v":0},{"$f":"'A. Population Info'!P379","v":0},{"$f":"VLOOKUP(OFFSET($B:$B,,MATCH(G$4,$B$4:$F$4,0)-1),OFFSET('C. PoC Adj Factor Scoring'!$E$5:$J$282,,MATCH(G$4,'C. PoC Adj Factor Scoring'!$E$3:$AH$3,0)-1),MATCH(G$2&\" Score\",'C. PoC Adj Factor Scoring'!$E$4:$J$4,0),TRUE)","v":4},{"$f":"VLOOKUP(OFFSET($B:$B,,MATCH(H$4,$B$4:$F$4,0)-1),OFFSET('C. PoC Adj Factor Scoring'!$E$5:$J$282,,MATCH(H$4,'C. PoC Adj Factor Scoring'!$E$3:$AH$3,0)-1),MATCH(H$2&\" Score\",'C. PoC Adj Factor Scoring'!$E$4:$J$4,0),TRUE)","v":1},{"$f":"VLOOKUP(OFFSET($B:$B,,MATCH(I$4,$B$4:$F$4,0)-1),OFFSET('C. PoC Adj Factor Scoring'!$E$5:$J$282,,MATCH(I$4,'C. PoC Adj Factor Scoring'!$E$3:$AH$3,0)-1),MATCH(I$2&\" Score\",'C. PoC Adj Factor Scoring'!$E$4:$J$4,0),TRUE)","v":1},{"$f":"VLOOKUP(OFFSET($B:$B,,MATCH(J$4,$B$4:$F$4,0)-1),OFFSET('C. PoC Adj Factor Scoring'!$E$5:$J$282,,MATCH(J$4,'C. PoC Adj Factor Scoring'!$E$3:$AH$3,0)-1),MATCH(J$2&\" Score\",'C. PoC Adj Factor Scoring'!$E$4:$J$4,0),TRUE)","v":1},{"$f":"VLOOKUP(OFFSET($B:$B,,MATCH(K$4,$B$4:$F$4,0)-1),OFFSET('C. PoC Adj Factor Scoring'!$E$5:$J$282,,MATCH(K$4,'C. PoC Adj Factor Scoring'!$E$3:$AH$3,0)-1),MATCH(K$2&\" Score\",'C. PoC Adj Factor Scoring'!$E$4:$J$4,0),TRUE)","v":1},{"$f":"VLOOKUP(OFFSET($B:$B,,MATCH(L$4,$B$4:$F$4,0)-1),OFFSET('C. PoC Adj Factor Scoring'!$E$5:$J$282,,MATCH(L$4,'C. PoC Adj Factor Scoring'!$E$3:$AH$3,0)-1),MATCH(L$2&\" Score\",'C. PoC Adj Factor Scoring'!$E$4:$J$4,0),TRUE)","v":1},{"$f":"VLOOKUP(OFFSET($B:$B,,MATCH(M$4,$B$4:$F$4,0)-1),OFFSET('C. PoC Adj Factor Scoring'!$E$5:$J$282,,MATCH(M$4,'C. PoC Adj Factor Scoring'!$E$3:$AH$3,0)-1),MATCH(M$2&\" Score\",'C. PoC Adj Factor Scoring'!$E$4:$J$4,0),TRUE)","v":1},{"$f":"VLOOKUP(OFFSET($B:$B,,MATCH(N$4,$B$4:$F$4,0)-1),OFFSET('C. PoC Adj Factor Scoring'!$E$5:$J$282,,MATCH(N$4,'C. PoC Adj Factor Scoring'!$E$3:$AH$3,0)-1),MATCH(N$2&\" Score\",'C. PoC Adj Factor Scoring'!$E$4:$J$4,0),TRUE)","v":1},{"$f":"VLOOKUP(OFFSET($B:$B,,MATCH(O$4,$B$4:$F$4,0)-1),OFFSET('C. PoC Adj Factor Scoring'!$E$5:$J$282,,MATCH(O$4,'C. PoC Adj Factor Scoring'!$E$3:$AH$3,0)-1),MATCH(O$2&\" Score\",'C. PoC Adj Factor Scoring'!$E$4:$J$4,0),TRUE)","v":1},{"$f":"VLOOKUP(OFFSET($B:$B,,MATCH(P$4,$B$4:$F$4,0)-1),OFFSET('C. PoC Adj Factor Scoring'!$E$5:$J$282,,MATCH(P$4,'C. PoC Adj Factor Scoring'!$E$3:$AH$3,0)-1),MATCH(P$2&\" Score\",'C. PoC Adj Factor Scoring'!$E$4:$J$4,0),TRUE)","v":1},{"$f":"VLOOKUP(OFFSET($B:$B,,MATCH(Q$4,$B$4:$F$4,0)-1),OFFSET('C. PoC Adj Factor Scoring'!$E$5:$J$282,,MATCH(Q$4,'C. PoC Adj Factor Scoring'!$E$3:$AH$3,0)-1),MATCH(Q$2&\" Score\",'C. PoC Adj Factor Scoring'!$E$4:$J$4,0),TRUE)","v":1},{"$f":"VLOOKUP(OFFSET($B:$B,,MATCH(R$4,$B$4:$F$4,0)-1),OFFSET('C. PoC Adj Factor Scoring'!$E$5:$J$282,,MATCH(R$4,'C. PoC Adj Factor Scoring'!$E$3:$AH$3,0)-1),MATCH(R$2&\" Score\",'C. PoC Adj Factor Scoring'!$E$4:$J$4,0),TRUE)","v":1},{"$f":"VLOOKUP(OFFSET($B:$B,,MATCH(S$4,$B$4:$F$4,0)-1),OFFSET('C. PoC Adj Factor Scoring'!$E$5:$J$282,,MATCH(S$4,'C. PoC Adj Factor Scoring'!$E$3:$AH$3,0)-1),MATCH(S$2&\" Score\",'C. PoC Adj Factor Scoring'!$E$4:$J$4,0),TRUE)","v":1},{"$f":"VLOOKUP(OFFSET($B:$B,,MATCH(T$4,$B$4:$F$4,0)-1),OFFSET('C. PoC Adj Factor Scoring'!$E$5:$J$282,,MATCH(T$4,'C. PoC Adj Factor Scoring'!$E$3:$AH$3,0)-1),MATCH(T$2&\" Score\",'C. PoC Adj Factor Scoring'!$E$4:$J$4,0),TRUE)","v":1},{"$f":"VLOOKUP(OFFSET($B:$B,,MATCH(U$4,$B$4:$F$4,0)-1),OFFSET('C. PoC Adj Factor Scoring'!$E$5:$J$282,,MATCH(U$4,'C. PoC Adj Factor Scoring'!$E$3:$AH$3,0)-1),MATCH(U$2&\" Score\",'C. PoC Adj Factor Scoring'!$E$4:$J$4,0),TRUE)","v":1},{"$f":"VLOOKUP(OFFSET($B:$B,,MATCH(V$4,$B$4:$F$4,0)-1),OFFSET('C. PoC Adj Factor Scoring'!$E$5:$J$282,,MATCH(V$4,'C. PoC Adj Factor Scoring'!$E$3:$AH$3,0)-1),MATCH(V$2&\" Score\",'C. PoC Adj Factor Scoring'!$E$4:$J$4,0),TRUE)","v":1},{"$f":"VLOOKUP(OFFSET($B:$B,,MATCH(W$4,$B$4:$F$4,0)-1),OFFSET('C. PoC Adj Factor Scoring'!$E$5:$J$282,,MATCH(W$4,'C. PoC Adj Factor Scoring'!$E$3:$AH$3,0)-1),MATCH(W$2&\" Score\",'C. PoC Adj Factor Scoring'!$E$4:$J$4,0),TRUE)","v":1},{"$f":"VLOOKUP(OFFSET($B:$B,,MATCH(X$4,$B$4:$F$4,0)-1),OFFSET('C. PoC Adj Factor Scoring'!$E$5:$J$282,,MATCH(X$4,'C. PoC Adj Factor Scoring'!$E$3:$AH$3,0)-1),MATCH(X$2&\" Score\",'C. PoC Adj Factor Scoring'!$E$4:$J$4,0),TRUE)","v":1},{"$f":"VLOOKUP(OFFSET($B:$B,,MATCH(Y$4,$B$4:$F$4,0)-1),OFFSET('C. PoC Adj Factor Scoring'!$E$5:$J$282,,MATCH(Y$4,'C. PoC Adj Factor Scoring'!$E$3:$AH$3,0)-1),MATCH(Y$2&\" Score\",'C. PoC Adj Factor Scoring'!$E$4:$J$4,0),TRUE)","v":1},{"$f":"VLOOKUP(OFFSET($B:$B,,MATCH(Z$4,$B$4:$F$4,0)-1),OFFSET('C. PoC Adj Factor Scoring'!$E$5:$J$282,,MATCH(Z$4,'C. PoC Adj Factor Scoring'!$E$3:$AH$3,0)-1),MATCH(Z$2&\" Score\",'C. PoC Adj Factor Scoring'!$E$4:$J$4,0),TRUE)","v":1},{"$f":"VLOOKUP(OFFSET($B:$B,,MATCH(AA$4,$B$4:$F$4,0)-1),OFFSET('C. PoC Adj Factor Scoring'!$E$5:$J$282,,MATCH(AA$4,'C. PoC Adj Factor Scoring'!$E$3:$AH$3,0)-1),MATCH(AA$2&\" Score\",'C. PoC Adj Factor Scoring'!$E$4:$J$4,0),TRUE)","v":3},{"$f":"VLOOKUP(OFFSET($B:$B,,MATCH(AB$4,$B$4:$F$4,0)-1),OFFSET('C. PoC Adj Factor Scoring'!$E$5:$J$282,,MATCH(AB$4,'C. PoC Adj Factor Scoring'!$E$3:$AH$3,0)-1),MATCH(AB$2&\" Score\",'C. PoC Adj Factor Scoring'!$E$4:$J$4,0),TRUE)","v":1},{"$f":"VLOOKUP(OFFSET($B:$B,,MATCH(AC$4,$B$4:$F$4,0)-1),OFFSET('C. PoC Adj Factor Scoring'!$E$5:$J$282,,MATCH(AC$4,'C. PoC Adj Factor Scoring'!$E$3:$AH$3,0)-1),MATCH(AC$2&\" Score\",'C. PoC Adj Factor Scoring'!$E$4:$J$4,0),TRUE)","v":1},{"$f":"VLOOKUP(OFFSET($B:$B,,MATCH(AD$4,$B$4:$F$4,0)-1),OFFSET('C. PoC Adj Factor Scoring'!$E$5:$J$282,,MATCH(AD$4,'C. PoC Adj Factor Scoring'!$E$3:$AH$3,0)-1),MATCH(AD$2&\" Score\",'C. PoC Adj Factor Scoring'!$E$4:$J$4,0),TRUE)","v":1},{"$f":"VLOOKUP(OFFSET($B:$B,,MATCH(AE$4,$B$4:$F$4,0)-1),OFFSET('C. PoC Adj Factor Scoring'!$E$5:$J$282,,MATCH(AE$4,'C. PoC Adj Factor Scoring'!$E$3:$AH$3,0)-1),MATCH(AE$2&\" Score\",'C. PoC Adj Factor Scoring'!$E$4:$J$4,0),TRUE)","v":1}]
[{"$f":"'A. Population Info'!A380","v":1000404725},{"$f":"'A. Population Info'!L380","v":"OIL"},{"$f":"'A. Population Info'!M380","v":0},{"$f":"'A. Population Info'!N380","v":0},{"$f":"'A. Population Info'!O380","v":0},{"$f":"'A. Population Info'!P380","v":0},{"$f":"VLOOKUP(OFFSET($B:$B,,MATCH(G$4,$B$4:$F$4,0)-1),OFFSET('C. PoC Adj Factor Scoring'!$E$5:$J$282,,MATCH(G$4,'C. PoC Adj Factor Scoring'!$E$3:$AH$3,0)-1),MATCH(G$2&\" Score\",'C. PoC Adj Factor Scoring'!$E$4:$J$4,0),TRUE)","v":4},{"$f":"VLOOKUP(OFFSET($B:$B,,MATCH(H$4,$B$4:$F$4,0)-1),OFFSET('C. PoC Adj Factor Scoring'!$E$5:$J$282,,MATCH(H$4,'C. PoC Adj Factor Scoring'!$E$3:$AH$3,0)-1),MATCH(H$2&\" Score\",'C. PoC Adj Factor Scoring'!$E$4:$J$4,0),TRUE)","v":1},{"$f":"VLOOKUP(OFFSET($B:$B,,MATCH(I$4,$B$4:$F$4,0)-1),OFFSET('C. PoC Adj Factor Scoring'!$E$5:$J$282,,MATCH(I$4,'C. PoC Adj Factor Scoring'!$E$3:$AH$3,0)-1),MATCH(I$2&\" Score\",'C. PoC Adj Factor Scoring'!$E$4:$J$4,0),TRUE)","v":1},{"$f":"VLOOKUP(OFFSET($B:$B,,MATCH(J$4,$B$4:$F$4,0)-1),OFFSET('C. PoC Adj Factor Scoring'!$E$5:$J$282,,MATCH(J$4,'C. PoC Adj Factor Scoring'!$E$3:$AH$3,0)-1),MATCH(J$2&\" Score\",'C. PoC Adj Factor Scoring'!$E$4:$J$4,0),TRUE)","v":1},{"$f":"VLOOKUP(OFFSET($B:$B,,MATCH(K$4,$B$4:$F$4,0)-1),OFFSET('C. PoC Adj Factor Scoring'!$E$5:$J$282,,MATCH(K$4,'C. PoC Adj Factor Scoring'!$E$3:$AH$3,0)-1),MATCH(K$2&\" Score\",'C. PoC Adj Factor Scoring'!$E$4:$J$4,0),TRUE)","v":1},{"$f":"VLOOKUP(OFFSET($B:$B,,MATCH(L$4,$B$4:$F$4,0)-1),OFFSET('C. PoC Adj Factor Scoring'!$E$5:$J$282,,MATCH(L$4,'C. PoC Adj Factor Scoring'!$E$3:$AH$3,0)-1),MATCH(L$2&\" Score\",'C. PoC Adj Factor Scoring'!$E$4:$J$4,0),TRUE)","v":1},{"$f":"VLOOKUP(OFFSET($B:$B,,MATCH(M$4,$B$4:$F$4,0)-1),OFFSET('C. PoC Adj Factor Scoring'!$E$5:$J$282,,MATCH(M$4,'C. PoC Adj Factor Scoring'!$E$3:$AH$3,0)-1),MATCH(M$2&\" Score\",'C. PoC Adj Factor Scoring'!$E$4:$J$4,0),TRUE)","v":1},{"$f":"VLOOKUP(OFFSET($B:$B,,MATCH(N$4,$B$4:$F$4,0)-1),OFFSET('C. PoC Adj Factor Scoring'!$E$5:$J$282,,MATCH(N$4,'C. PoC Adj Factor Scoring'!$E$3:$AH$3,0)-1),MATCH(N$2&\" Score\",'C. PoC Adj Factor Scoring'!$E$4:$J$4,0),TRUE)","v":1},{"$f":"VLOOKUP(OFFSET($B:$B,,MATCH(O$4,$B$4:$F$4,0)-1),OFFSET('C. PoC Adj Factor Scoring'!$E$5:$J$282,,MATCH(O$4,'C. PoC Adj Factor Scoring'!$E$3:$AH$3,0)-1),MATCH(O$2&\" Score\",'C. PoC Adj Factor Scoring'!$E$4:$J$4,0),TRUE)","v":1},{"$f":"VLOOKUP(OFFSET($B:$B,,MATCH(P$4,$B$4:$F$4,0)-1),OFFSET('C. PoC Adj Factor Scoring'!$E$5:$J$282,,MATCH(P$4,'C. PoC Adj Factor Scoring'!$E$3:$AH$3,0)-1),MATCH(P$2&\" Score\",'C. PoC Adj Factor Scoring'!$E$4:$J$4,0),TRUE)","v":1},{"$f":"VLOOKUP(OFFSET($B:$B,,MATCH(Q$4,$B$4:$F$4,0)-1),OFFSET('C. PoC Adj Factor Scoring'!$E$5:$J$282,,MATCH(Q$4,'C. PoC Adj Factor Scoring'!$E$3:$AH$3,0)-1),MATCH(Q$2&\" Score\",'C. PoC Adj Factor Scoring'!$E$4:$J$4,0),TRUE)","v":1},{"$f":"VLOOKUP(OFFSET($B:$B,,MATCH(R$4,$B$4:$F$4,0)-1),OFFSET('C. PoC Adj Factor Scoring'!$E$5:$J$282,,MATCH(R$4,'C. PoC Adj Factor Scoring'!$E$3:$AH$3,0)-1),MATCH(R$2&\" Score\",'C. PoC Adj Factor Scoring'!$E$4:$J$4,0),TRUE)","v":1},{"$f":"VLOOKUP(OFFSET($B:$B,,MATCH(S$4,$B$4:$F$4,0)-1),OFFSET('C. PoC Adj Factor Scoring'!$E$5:$J$282,,MATCH(S$4,'C. PoC Adj Factor Scoring'!$E$3:$AH$3,0)-1),MATCH(S$2&\" Score\",'C. PoC Adj Factor Scoring'!$E$4:$J$4,0),TRUE)","v":1},{"$f":"VLOOKUP(OFFSET($B:$B,,MATCH(T$4,$B$4:$F$4,0)-1),OFFSET('C. PoC Adj Factor Scoring'!$E$5:$J$282,,MATCH(T$4,'C. PoC Adj Factor Scoring'!$E$3:$AH$3,0)-1),MATCH(T$2&\" Score\",'C. PoC Adj Factor Scoring'!$E$4:$J$4,0),TRUE)","v":1},{"$f":"VLOOKUP(OFFSET($B:$B,,MATCH(U$4,$B$4:$F$4,0)-1),OFFSET('C. PoC Adj Factor Scoring'!$E$5:$J$282,,MATCH(U$4,'C. PoC Adj Factor Scoring'!$E$3:$AH$3,0)-1),MATCH(U$2&\" Score\",'C. PoC Adj Factor Scoring'!$E$4:$J$4,0),TRUE)","v":1},{"$f":"VLOOKUP(OFFSET($B:$B,,MATCH(V$4,$B$4:$F$4,0)-1),OFFSET('C. PoC Adj Factor Scoring'!$E$5:$J$282,,MATCH(V$4,'C. PoC Adj Factor Scoring'!$E$3:$AH$3,0)-1),MATCH(V$2&\" Score\",'C. PoC Adj Factor Scoring'!$E$4:$J$4,0),TRUE)","v":1},{"$f":"VLOOKUP(OFFSET($B:$B,,MATCH(W$4,$B$4:$F$4,0)-1),OFFSET('C. PoC Adj Factor Scoring'!$E$5:$J$282,,MATCH(W$4,'C. PoC Adj Factor Scoring'!$E$3:$AH$3,0)-1),MATCH(W$2&\" Score\",'C. PoC Adj Factor Scoring'!$E$4:$J$4,0),TRUE)","v":1},{"$f":"VLOOKUP(OFFSET($B:$B,,MATCH(X$4,$B$4:$F$4,0)-1),OFFSET('C. PoC Adj Factor Scoring'!$E$5:$J$282,,MATCH(X$4,'C. PoC Adj Factor Scoring'!$E$3:$AH$3,0)-1),MATCH(X$2&\" Score\",'C. PoC Adj Factor Scoring'!$E$4:$J$4,0),TRUE)","v":1},{"$f":"VLOOKUP(OFFSET($B:$B,,MATCH(Y$4,$B$4:$F$4,0)-1),OFFSET('C. PoC Adj Factor Scoring'!$E$5:$J$282,,MATCH(Y$4,'C. PoC Adj Factor Scoring'!$E$3:$AH$3,0)-1),MATCH(Y$2&\" Score\",'C. PoC Adj Factor Scoring'!$E$4:$J$4,0),TRUE)","v":1},{"$f":"VLOOKUP(OFFSET($B:$B,,MATCH(Z$4,$B$4:$F$4,0)-1),OFFSET('C. PoC Adj Factor Scoring'!$E$5:$J$282,,MATCH(Z$4,'C. PoC Adj Factor Scoring'!$E$3:$AH$3,0)-1),MATCH(Z$2&\" Score\",'C. PoC Adj Factor Scoring'!$E$4:$J$4,0),TRUE)","v":1},{"$f":"VLOOKUP(OFFSET($B:$B,,MATCH(AA$4,$B$4:$F$4,0)-1),OFFSET('C. PoC Adj Factor Scoring'!$E$5:$J$282,,MATCH(AA$4,'C. PoC Adj Factor Scoring'!$E$3:$AH$3,0)-1),MATCH(AA$2&\" Score\",'C. PoC Adj Factor Scoring'!$E$4:$J$4,0),TRUE)","v":3},{"$f":"VLOOKUP(OFFSET($B:$B,,MATCH(AB$4,$B$4:$F$4,0)-1),OFFSET('C. PoC Adj Factor Scoring'!$E$5:$J$282,,MATCH(AB$4,'C. PoC Adj Factor Scoring'!$E$3:$AH$3,0)-1),MATCH(AB$2&\" Score\",'C. PoC Adj Factor Scoring'!$E$4:$J$4,0),TRUE)","v":1},{"$f":"VLOOKUP(OFFSET($B:$B,,MATCH(AC$4,$B$4:$F$4,0)-1),OFFSET('C. PoC Adj Factor Scoring'!$E$5:$J$282,,MATCH(AC$4,'C. PoC Adj Factor Scoring'!$E$3:$AH$3,0)-1),MATCH(AC$2&\" Score\",'C. PoC Adj Factor Scoring'!$E$4:$J$4,0),TRUE)","v":1},{"$f":"VLOOKUP(OFFSET($B:$B,,MATCH(AD$4,$B$4:$F$4,0)-1),OFFSET('C. PoC Adj Factor Scoring'!$E$5:$J$282,,MATCH(AD$4,'C. PoC Adj Factor Scoring'!$E$3:$AH$3,0)-1),MATCH(AD$2&\" Score\",'C. PoC Adj Factor Scoring'!$E$4:$J$4,0),TRUE)","v":1},{"$f":"VLOOKUP(OFFSET($B:$B,,MATCH(AE$4,$B$4:$F$4,0)-1),OFFSET('C. PoC Adj Factor Scoring'!$E$5:$J$282,,MATCH(AE$4,'C. PoC Adj Factor Scoring'!$E$3:$AH$3,0)-1),MATCH(AE$2&\" Score\",'C. PoC Adj Factor Scoring'!$E$4:$J$4,0),TRUE)","v":1}]
[{"$f":"'A. Population Info'!A381","v":1000404743},{"$f":"'A. Population Info'!L381","v":"OIL"},{"$f":"'A. Population Info'!M381","v":0},{"$f":"'A. Population Info'!N381","v":0},{"$f":"'A. Population Info'!O381","v":0},{"$f":"'A. Population Info'!P381","v":0},{"$f":"VLOOKUP(OFFSET($B:$B,,MATCH(G$4,$B$4:$F$4,0)-1),OFFSET('C. PoC Adj Factor Scoring'!$E$5:$J$282,,MATCH(G$4,'C. PoC Adj Factor Scoring'!$E$3:$AH$3,0)-1),MATCH(G$2&\" Score\",'C. PoC Adj Factor Scoring'!$E$4:$J$4,0),TRUE)","v":4},{"$f":"VLOOKUP(OFFSET($B:$B,,MATCH(H$4,$B$4:$F$4,0)-1),OFFSET('C. PoC Adj Factor Scoring'!$E$5:$J$282,,MATCH(H$4,'C. PoC Adj Factor Scoring'!$E$3:$AH$3,0)-1),MATCH(H$2&\" Score\",'C. PoC Adj Factor Scoring'!$E$4:$J$4,0),TRUE)","v":1},{"$f":"VLOOKUP(OFFSET($B:$B,,MATCH(I$4,$B$4:$F$4,0)-1),OFFSET('C. PoC Adj Factor Scoring'!$E$5:$J$282,,MATCH(I$4,'C. PoC Adj Factor Scoring'!$E$3:$AH$3,0)-1),MATCH(I$2&\" Score\",'C. PoC Adj Factor Scoring'!$E$4:$J$4,0),TRUE)","v":1},{"$f":"VLOOKUP(OFFSET($B:$B,,MATCH(J$4,$B$4:$F$4,0)-1),OFFSET('C. PoC Adj Factor Scoring'!$E$5:$J$282,,MATCH(J$4,'C. PoC Adj Factor Scoring'!$E$3:$AH$3,0)-1),MATCH(J$2&\" Score\",'C. PoC Adj Factor Scoring'!$E$4:$J$4,0),TRUE)","v":1},{"$f":"VLOOKUP(OFFSET($B:$B,,MATCH(K$4,$B$4:$F$4,0)-1),OFFSET('C. PoC Adj Factor Scoring'!$E$5:$J$282,,MATCH(K$4,'C. PoC Adj Factor Scoring'!$E$3:$AH$3,0)-1),MATCH(K$2&\" Score\",'C. PoC Adj Factor Scoring'!$E$4:$J$4,0),TRUE)","v":1},{"$f":"VLOOKUP(OFFSET($B:$B,,MATCH(L$4,$B$4:$F$4,0)-1),OFFSET('C. PoC Adj Factor Scoring'!$E$5:$J$282,,MATCH(L$4,'C. PoC Adj Factor Scoring'!$E$3:$AH$3,0)-1),MATCH(L$2&\" Score\",'C. PoC Adj Factor Scoring'!$E$4:$J$4,0),TRUE)","v":1},{"$f":"VLOOKUP(OFFSET($B:$B,,MATCH(M$4,$B$4:$F$4,0)-1),OFFSET('C. PoC Adj Factor Scoring'!$E$5:$J$282,,MATCH(M$4,'C. PoC Adj Factor Scoring'!$E$3:$AH$3,0)-1),MATCH(M$2&\" Score\",'C. PoC Adj Factor Scoring'!$E$4:$J$4,0),TRUE)","v":1},{"$f":"VLOOKUP(OFFSET($B:$B,,MATCH(N$4,$B$4:$F$4,0)-1),OFFSET('C. PoC Adj Factor Scoring'!$E$5:$J$282,,MATCH(N$4,'C. PoC Adj Factor Scoring'!$E$3:$AH$3,0)-1),MATCH(N$2&\" Score\",'C. PoC Adj Factor Scoring'!$E$4:$J$4,0),TRUE)","v":1},{"$f":"VLOOKUP(OFFSET($B:$B,,MATCH(O$4,$B$4:$F$4,0)-1),OFFSET('C. PoC Adj Factor Scoring'!$E$5:$J$282,,MATCH(O$4,'C. PoC Adj Factor Scoring'!$E$3:$AH$3,0)-1),MATCH(O$2&\" Score\",'C. PoC Adj Factor Scoring'!$E$4:$J$4,0),TRUE)","v":1},{"$f":"VLOOKUP(OFFSET($B:$B,,MATCH(P$4,$B$4:$F$4,0)-1),OFFSET('C. PoC Adj Factor Scoring'!$E$5:$J$282,,MATCH(P$4,'C. PoC Adj Factor Scoring'!$E$3:$AH$3,0)-1),MATCH(P$2&\" Score\",'C. PoC Adj Factor Scoring'!$E$4:$J$4,0),TRUE)","v":1},{"$f":"VLOOKUP(OFFSET($B:$B,,MATCH(Q$4,$B$4:$F$4,0)-1),OFFSET('C. PoC Adj Factor Scoring'!$E$5:$J$282,,MATCH(Q$4,'C. PoC Adj Factor Scoring'!$E$3:$AH$3,0)-1),MATCH(Q$2&\" Score\",'C. PoC Adj Factor Scoring'!$E$4:$J$4,0),TRUE)","v":1},{"$f":"VLOOKUP(OFFSET($B:$B,,MATCH(R$4,$B$4:$F$4,0)-1),OFFSET('C. PoC Adj Factor Scoring'!$E$5:$J$282,,MATCH(R$4,'C. PoC Adj Factor Scoring'!$E$3:$AH$3,0)-1),MATCH(R$2&\" Score\",'C. PoC Adj Factor Scoring'!$E$4:$J$4,0),TRUE)","v":1},{"$f":"VLOOKUP(OFFSET($B:$B,,MATCH(S$4,$B$4:$F$4,0)-1),OFFSET('C. PoC Adj Factor Scoring'!$E$5:$J$282,,MATCH(S$4,'C. PoC Adj Factor Scoring'!$E$3:$AH$3,0)-1),MATCH(S$2&\" Score\",'C. PoC Adj Factor Scoring'!$E$4:$J$4,0),TRUE)","v":1},{"$f":"VLOOKUP(OFFSET($B:$B,,MATCH(T$4,$B$4:$F$4,0)-1),OFFSET('C. PoC Adj Factor Scoring'!$E$5:$J$282,,MATCH(T$4,'C. PoC Adj Factor Scoring'!$E$3:$AH$3,0)-1),MATCH(T$2&\" Score\",'C. PoC Adj Factor Scoring'!$E$4:$J$4,0),TRUE)","v":1},{"$f":"VLOOKUP(OFFSET($B:$B,,MATCH(U$4,$B$4:$F$4,0)-1),OFFSET('C. PoC Adj Factor Scoring'!$E$5:$J$282,,MATCH(U$4,'C. PoC Adj Factor Scoring'!$E$3:$AH$3,0)-1),MATCH(U$2&\" Score\",'C. PoC Adj Factor Scoring'!$E$4:$J$4,0),TRUE)","v":1},{"$f":"VLOOKUP(OFFSET($B:$B,,MATCH(V$4,$B$4:$F$4,0)-1),OFFSET('C. PoC Adj Factor Scoring'!$E$5:$J$282,,MATCH(V$4,'C. PoC Adj Factor Scoring'!$E$3:$AH$3,0)-1),MATCH(V$2&\" Score\",'C. PoC Adj Factor Scoring'!$E$4:$J$4,0),TRUE)","v":1},{"$f":"VLOOKUP(OFFSET($B:$B,,MATCH(W$4,$B$4:$F$4,0)-1),OFFSET('C. PoC Adj Factor Scoring'!$E$5:$J$282,,MATCH(W$4,'C. PoC Adj Factor Scoring'!$E$3:$AH$3,0)-1),MATCH(W$2&\" Score\",'C. PoC Adj Factor Scoring'!$E$4:$J$4,0),TRUE)","v":1},{"$f":"VLOOKUP(OFFSET($B:$B,,MATCH(X$4,$B$4:$F$4,0)-1),OFFSET('C. PoC Adj Factor Scoring'!$E$5:$J$282,,MATCH(X$4,'C. PoC Adj Factor Scoring'!$E$3:$AH$3,0)-1),MATCH(X$2&\" Score\",'C. PoC Adj Factor Scoring'!$E$4:$J$4,0),TRUE)","v":1},{"$f":"VLOOKUP(OFFSET($B:$B,,MATCH(Y$4,$B$4:$F$4,0)-1),OFFSET('C. PoC Adj Factor Scoring'!$E$5:$J$282,,MATCH(Y$4,'C. PoC Adj Factor Scoring'!$E$3:$AH$3,0)-1),MATCH(Y$2&\" Score\",'C. PoC Adj Factor Scoring'!$E$4:$J$4,0),TRUE)","v":1},{"$f":"VLOOKUP(OFFSET($B:$B,,MATCH(Z$4,$B$4:$F$4,0)-1),OFFSET('C. PoC Adj Factor Scoring'!$E$5:$J$282,,MATCH(Z$4,'C. PoC Adj Factor Scoring'!$E$3:$AH$3,0)-1),MATCH(Z$2&\" Score\",'C. PoC Adj Factor Scoring'!$E$4:$J$4,0),TRUE)","v":1},{"$f":"VLOOKUP(OFFSET($B:$B,,MATCH(AA$4,$B$4:$F$4,0)-1),OFFSET('C. PoC Adj Factor Scoring'!$E$5:$J$282,,MATCH(AA$4,'C. PoC Adj Factor Scoring'!$E$3:$AH$3,0)-1),MATCH(AA$2&\" Score\",'C. PoC Adj Factor Scoring'!$E$4:$J$4,0),TRUE)","v":3},{"$f":"VLOOKUP(OFFSET($B:$B,,MATCH(AB$4,$B$4:$F$4,0)-1),OFFSET('C. PoC Adj Factor Scoring'!$E$5:$J$282,,MATCH(AB$4,'C. PoC Adj Factor Scoring'!$E$3:$AH$3,0)-1),MATCH(AB$2&\" Score\",'C. PoC Adj Factor Scoring'!$E$4:$J$4,0),TRUE)","v":1},{"$f":"VLOOKUP(OFFSET($B:$B,,MATCH(AC$4,$B$4:$F$4,0)-1),OFFSET('C. PoC Adj Factor Scoring'!$E$5:$J$282,,MATCH(AC$4,'C. PoC Adj Factor Scoring'!$E$3:$AH$3,0)-1),MATCH(AC$2&\" Score\",'C. PoC Adj Factor Scoring'!$E$4:$J$4,0),TRUE)","v":1},{"$f":"VLOOKUP(OFFSET($B:$B,,MATCH(AD$4,$B$4:$F$4,0)-1),OFFSET('C. PoC Adj Factor Scoring'!$E$5:$J$282,,MATCH(AD$4,'C. PoC Adj Factor Scoring'!$E$3:$AH$3,0)-1),MATCH(AD$2&\" Score\",'C. PoC Adj Factor Scoring'!$E$4:$J$4,0),TRUE)","v":1},{"$f":"VLOOKUP(OFFSET($B:$B,,MATCH(AE$4,$B$4:$F$4,0)-1),OFFSET('C. PoC Adj Factor Scoring'!$E$5:$J$282,,MATCH(AE$4,'C. PoC Adj Factor Scoring'!$E$3:$AH$3,0)-1),MATCH(AE$2&\" Score\",'C. PoC Adj Factor Scoring'!$E$4:$J$4,0),TRUE)","v":1}]
[{"$f":"'A. Population Info'!A382","v":1000404873},{"$f":"'A. Population Info'!L382","v":"OIL"},{"$f":"'A. Population Info'!M382","v":0},{"$f":"'A. Population Info'!N382","v":0},{"$f":"'A. Population Info'!O382","v":0},{"$f":"'A. Population Info'!P382","v":0},{"$f":"VLOOKUP(OFFSET($B:$B,,MATCH(G$4,$B$4:$F$4,0)-1),OFFSET('C. PoC Adj Factor Scoring'!$E$5:$J$282,,MATCH(G$4,'C. PoC Adj Factor Scoring'!$E$3:$AH$3,0)-1),MATCH(G$2&\" Score\",'C. PoC Adj Factor Scoring'!$E$4:$J$4,0),TRUE)","v":4},{"$f":"VLOOKUP(OFFSET($B:$B,,MATCH(H$4,$B$4:$F$4,0)-1),OFFSET('C. PoC Adj Factor Scoring'!$E$5:$J$282,,MATCH(H$4,'C. PoC Adj Factor Scoring'!$E$3:$AH$3,0)-1),MATCH(H$2&\" Score\",'C. PoC Adj Factor Scoring'!$E$4:$J$4,0),TRUE)","v":1},{"$f":"VLOOKUP(OFFSET($B:$B,,MATCH(I$4,$B$4:$F$4,0)-1),OFFSET('C. PoC Adj Factor Scoring'!$E$5:$J$282,,MATCH(I$4,'C. PoC Adj Factor Scoring'!$E$3:$AH$3,0)-1),MATCH(I$2&\" Score\",'C. PoC Adj Factor Scoring'!$E$4:$J$4,0),TRUE)","v":1},{"$f":"VLOOKUP(OFFSET($B:$B,,MATCH(J$4,$B$4:$F$4,0)-1),OFFSET('C. PoC Adj Factor Scoring'!$E$5:$J$282,,MATCH(J$4,'C. PoC Adj Factor Scoring'!$E$3:$AH$3,0)-1),MATCH(J$2&\" Score\",'C. PoC Adj Factor Scoring'!$E$4:$J$4,0),TRUE)","v":1},{"$f":"VLOOKUP(OFFSET($B:$B,,MATCH(K$4,$B$4:$F$4,0)-1),OFFSET('C. PoC Adj Factor Scoring'!$E$5:$J$282,,MATCH(K$4,'C. PoC Adj Factor Scoring'!$E$3:$AH$3,0)-1),MATCH(K$2&\" Score\",'C. PoC Adj Factor Scoring'!$E$4:$J$4,0),TRUE)","v":1},{"$f":"VLOOKUP(OFFSET($B:$B,,MATCH(L$4,$B$4:$F$4,0)-1),OFFSET('C. PoC Adj Factor Scoring'!$E$5:$J$282,,MATCH(L$4,'C. PoC Adj Factor Scoring'!$E$3:$AH$3,0)-1),MATCH(L$2&\" Score\",'C. PoC Adj Factor Scoring'!$E$4:$J$4,0),TRUE)","v":1},{"$f":"VLOOKUP(OFFSET($B:$B,,MATCH(M$4,$B$4:$F$4,0)-1),OFFSET('C. PoC Adj Factor Scoring'!$E$5:$J$282,,MATCH(M$4,'C. PoC Adj Factor Scoring'!$E$3:$AH$3,0)-1),MATCH(M$2&\" Score\",'C. PoC Adj Factor Scoring'!$E$4:$J$4,0),TRUE)","v":1},{"$f":"VLOOKUP(OFFSET($B:$B,,MATCH(N$4,$B$4:$F$4,0)-1),OFFSET('C. PoC Adj Factor Scoring'!$E$5:$J$282,,MATCH(N$4,'C. PoC Adj Factor Scoring'!$E$3:$AH$3,0)-1),MATCH(N$2&\" Score\",'C. PoC Adj Factor Scoring'!$E$4:$J$4,0),TRUE)","v":1},{"$f":"VLOOKUP(OFFSET($B:$B,,MATCH(O$4,$B$4:$F$4,0)-1),OFFSET('C. PoC Adj Factor Scoring'!$E$5:$J$282,,MATCH(O$4,'C. PoC Adj Factor Scoring'!$E$3:$AH$3,0)-1),MATCH(O$2&\" Score\",'C. PoC Adj Factor Scoring'!$E$4:$J$4,0),TRUE)","v":1},{"$f":"VLOOKUP(OFFSET($B:$B,,MATCH(P$4,$B$4:$F$4,0)-1),OFFSET('C. PoC Adj Factor Scoring'!$E$5:$J$282,,MATCH(P$4,'C. PoC Adj Factor Scoring'!$E$3:$AH$3,0)-1),MATCH(P$2&\" Score\",'C. PoC Adj Factor Scoring'!$E$4:$J$4,0),TRUE)","v":1},{"$f":"VLOOKUP(OFFSET($B:$B,,MATCH(Q$4,$B$4:$F$4,0)-1),OFFSET('C. PoC Adj Factor Scoring'!$E$5:$J$282,,MATCH(Q$4,'C. PoC Adj Factor Scoring'!$E$3:$AH$3,0)-1),MATCH(Q$2&\" Score\",'C. PoC Adj Factor Scoring'!$E$4:$J$4,0),TRUE)","v":1},{"$f":"VLOOKUP(OFFSET($B:$B,,MATCH(R$4,$B$4:$F$4,0)-1),OFFSET('C. PoC Adj Factor Scoring'!$E$5:$J$282,,MATCH(R$4,'C. PoC Adj Factor Scoring'!$E$3:$AH$3,0)-1),MATCH(R$2&\" Score\",'C. PoC Adj Factor Scoring'!$E$4:$J$4,0),TRUE)","v":1},{"$f":"VLOOKUP(OFFSET($B:$B,,MATCH(S$4,$B$4:$F$4,0)-1),OFFSET('C. PoC Adj Factor Scoring'!$E$5:$J$282,,MATCH(S$4,'C. PoC Adj Factor Scoring'!$E$3:$AH$3,0)-1),MATCH(S$2&\" Score\",'C. PoC Adj Factor Scoring'!$E$4:$J$4,0),TRUE)","v":1},{"$f":"VLOOKUP(OFFSET($B:$B,,MATCH(T$4,$B$4:$F$4,0)-1),OFFSET('C. PoC Adj Factor Scoring'!$E$5:$J$282,,MATCH(T$4,'C. PoC Adj Factor Scoring'!$E$3:$AH$3,0)-1),MATCH(T$2&\" Score\",'C. PoC Adj Factor Scoring'!$E$4:$J$4,0),TRUE)","v":1},{"$f":"VLOOKUP(OFFSET($B:$B,,MATCH(U$4,$B$4:$F$4,0)-1),OFFSET('C. PoC Adj Factor Scoring'!$E$5:$J$282,,MATCH(U$4,'C. PoC Adj Factor Scoring'!$E$3:$AH$3,0)-1),MATCH(U$2&\" Score\",'C. PoC Adj Factor Scoring'!$E$4:$J$4,0),TRUE)","v":1},{"$f":"VLOOKUP(OFFSET($B:$B,,MATCH(V$4,$B$4:$F$4,0)-1),OFFSET('C. PoC Adj Factor Scoring'!$E$5:$J$282,,MATCH(V$4,'C. PoC Adj Factor Scoring'!$E$3:$AH$3,0)-1),MATCH(V$2&\" Score\",'C. PoC Adj Factor Scoring'!$E$4:$J$4,0),TRUE)","v":1},{"$f":"VLOOKUP(OFFSET($B:$B,,MATCH(W$4,$B$4:$F$4,0)-1),OFFSET('C. PoC Adj Factor Scoring'!$E$5:$J$282,,MATCH(W$4,'C. PoC Adj Factor Scoring'!$E$3:$AH$3,0)-1),MATCH(W$2&\" Score\",'C. PoC Adj Factor Scoring'!$E$4:$J$4,0),TRUE)","v":1},{"$f":"VLOOKUP(OFFSET($B:$B,,MATCH(X$4,$B$4:$F$4,0)-1),OFFSET('C. PoC Adj Factor Scoring'!$E$5:$J$282,,MATCH(X$4,'C. PoC Adj Factor Scoring'!$E$3:$AH$3,0)-1),MATCH(X$2&\" Score\",'C. PoC Adj Factor Scoring'!$E$4:$J$4,0),TRUE)","v":1},{"$f":"VLOOKUP(OFFSET($B:$B,,MATCH(Y$4,$B$4:$F$4,0)-1),OFFSET('C. PoC Adj Factor Scoring'!$E$5:$J$282,,MATCH(Y$4,'C. PoC Adj Factor Scoring'!$E$3:$AH$3,0)-1),MATCH(Y$2&\" Score\",'C. PoC Adj Factor Scoring'!$E$4:$J$4,0),TRUE)","v":1},{"$f":"VLOOKUP(OFFSET($B:$B,,MATCH(Z$4,$B$4:$F$4,0)-1),OFFSET('C. PoC Adj Factor Scoring'!$E$5:$J$282,,MATCH(Z$4,'C. PoC Adj Factor Scoring'!$E$3:$AH$3,0)-1),MATCH(Z$2&\" Score\",'C. PoC Adj Factor Scoring'!$E$4:$J$4,0),TRUE)","v":1},{"$f":"VLOOKUP(OFFSET($B:$B,,MATCH(AA$4,$B$4:$F$4,0)-1),OFFSET('C. PoC Adj Factor Scoring'!$E$5:$J$282,,MATCH(AA$4,'C. PoC Adj Factor Scoring'!$E$3:$AH$3,0)-1),MATCH(AA$2&\" Score\",'C. PoC Adj Factor Scoring'!$E$4:$J$4,0),TRUE)","v":3},{"$f":"VLOOKUP(OFFSET($B:$B,,MATCH(AB$4,$B$4:$F$4,0)-1),OFFSET('C. PoC Adj Factor Scoring'!$E$5:$J$282,,MATCH(AB$4,'C. PoC Adj Factor Scoring'!$E$3:$AH$3,0)-1),MATCH(AB$2&\" Score\",'C. PoC Adj Factor Scoring'!$E$4:$J$4,0),TRUE)","v":1},{"$f":"VLOOKUP(OFFSET($B:$B,,MATCH(AC$4,$B$4:$F$4,0)-1),OFFSET('C. PoC Adj Factor Scoring'!$E$5:$J$282,,MATCH(AC$4,'C. PoC Adj Factor Scoring'!$E$3:$AH$3,0)-1),MATCH(AC$2&\" Score\",'C. PoC Adj Factor Scoring'!$E$4:$J$4,0),TRUE)","v":1},{"$f":"VLOOKUP(OFFSET($B:$B,,MATCH(AD$4,$B$4:$F$4,0)-1),OFFSET('C. PoC Adj Factor Scoring'!$E$5:$J$282,,MATCH(AD$4,'C. PoC Adj Factor Scoring'!$E$3:$AH$3,0)-1),MATCH(AD$2&\" Score\",'C. PoC Adj Factor Scoring'!$E$4:$J$4,0),TRUE)","v":1},{"$f":"VLOOKUP(OFFSET($B:$B,,MATCH(AE$4,$B$4:$F$4,0)-1),OFFSET('C. PoC Adj Factor Scoring'!$E$5:$J$282,,MATCH(AE$4,'C. PoC Adj Factor Scoring'!$E$3:$AH$3,0)-1),MATCH(AE$2&\" Score\",'C. PoC Adj Factor Scoring'!$E$4:$J$4,0),TRUE)","v":1}]
[{"$f":"'A. Population Info'!A383","v":1000404895},{"$f":"'A. Population Info'!L383","v":"OIL"},{"$f":"'A. Population Info'!M383","v":0},{"$f":"'A. Population Info'!N383","v":0},{"$f":"'A. Population Info'!O383","v":0},{"$f":"'A. Population Info'!P383","v":0},{"$f":"VLOOKUP(OFFSET($B:$B,,MATCH(G$4,$B$4:$F$4,0)-1),OFFSET('C. PoC Adj Factor Scoring'!$E$5:$J$282,,MATCH(G$4,'C. PoC Adj Factor Scoring'!$E$3:$AH$3,0)-1),MATCH(G$2&\" Score\",'C. PoC Adj Factor Scoring'!$E$4:$J$4,0),TRUE)","v":4},{"$f":"VLOOKUP(OFFSET($B:$B,,MATCH(H$4,$B$4:$F$4,0)-1),OFFSET('C. PoC Adj Factor Scoring'!$E$5:$J$282,,MATCH(H$4,'C. PoC Adj Factor Scoring'!$E$3:$AH$3,0)-1),MATCH(H$2&\" Score\",'C. PoC Adj Factor Scoring'!$E$4:$J$4,0),TRUE)","v":1},{"$f":"VLOOKUP(OFFSET($B:$B,,MATCH(I$4,$B$4:$F$4,0)-1),OFFSET('C. PoC Adj Factor Scoring'!$E$5:$J$282,,MATCH(I$4,'C. PoC Adj Factor Scoring'!$E$3:$AH$3,0)-1),MATCH(I$2&\" Score\",'C. PoC Adj Factor Scoring'!$E$4:$J$4,0),TRUE)","v":1},{"$f":"VLOOKUP(OFFSET($B:$B,,MATCH(J$4,$B$4:$F$4,0)-1),OFFSET('C. PoC Adj Factor Scoring'!$E$5:$J$282,,MATCH(J$4,'C. PoC Adj Factor Scoring'!$E$3:$AH$3,0)-1),MATCH(J$2&\" Score\",'C. PoC Adj Factor Scoring'!$E$4:$J$4,0),TRUE)","v":1},{"$f":"VLOOKUP(OFFSET($B:$B,,MATCH(K$4,$B$4:$F$4,0)-1),OFFSET('C. PoC Adj Factor Scoring'!$E$5:$J$282,,MATCH(K$4,'C. PoC Adj Factor Scoring'!$E$3:$AH$3,0)-1),MATCH(K$2&\" Score\",'C. PoC Adj Factor Scoring'!$E$4:$J$4,0),TRUE)","v":1},{"$f":"VLOOKUP(OFFSET($B:$B,,MATCH(L$4,$B$4:$F$4,0)-1),OFFSET('C. PoC Adj Factor Scoring'!$E$5:$J$282,,MATCH(L$4,'C. PoC Adj Factor Scoring'!$E$3:$AH$3,0)-1),MATCH(L$2&\" Score\",'C. PoC Adj Factor Scoring'!$E$4:$J$4,0),TRUE)","v":1},{"$f":"VLOOKUP(OFFSET($B:$B,,MATCH(M$4,$B$4:$F$4,0)-1),OFFSET('C. PoC Adj Factor Scoring'!$E$5:$J$282,,MATCH(M$4,'C. PoC Adj Factor Scoring'!$E$3:$AH$3,0)-1),MATCH(M$2&\" Score\",'C. PoC Adj Factor Scoring'!$E$4:$J$4,0),TRUE)","v":1},{"$f":"VLOOKUP(OFFSET($B:$B,,MATCH(N$4,$B$4:$F$4,0)-1),OFFSET('C. PoC Adj Factor Scoring'!$E$5:$J$282,,MATCH(N$4,'C. PoC Adj Factor Scoring'!$E$3:$AH$3,0)-1),MATCH(N$2&\" Score\",'C. PoC Adj Factor Scoring'!$E$4:$J$4,0),TRUE)","v":1},{"$f":"VLOOKUP(OFFSET($B:$B,,MATCH(O$4,$B$4:$F$4,0)-1),OFFSET('C. PoC Adj Factor Scoring'!$E$5:$J$282,,MATCH(O$4,'C. PoC Adj Factor Scoring'!$E$3:$AH$3,0)-1),MATCH(O$2&\" Score\",'C. PoC Adj Factor Scoring'!$E$4:$J$4,0),TRUE)","v":1},{"$f":"VLOOKUP(OFFSET($B:$B,,MATCH(P$4,$B$4:$F$4,0)-1),OFFSET('C. PoC Adj Factor Scoring'!$E$5:$J$282,,MATCH(P$4,'C. PoC Adj Factor Scoring'!$E$3:$AH$3,0)-1),MATCH(P$2&\" Score\",'C. PoC Adj Factor Scoring'!$E$4:$J$4,0),TRUE)","v":1},{"$f":"VLOOKUP(OFFSET($B:$B,,MATCH(Q$4,$B$4:$F$4,0)-1),OFFSET('C. PoC Adj Factor Scoring'!$E$5:$J$282,,MATCH(Q$4,'C. PoC Adj Factor Scoring'!$E$3:$AH$3,0)-1),MATCH(Q$2&\" Score\",'C. PoC Adj Factor Scoring'!$E$4:$J$4,0),TRUE)","v":1},{"$f":"VLOOKUP(OFFSET($B:$B,,MATCH(R$4,$B$4:$F$4,0)-1),OFFSET('C. PoC Adj Factor Scoring'!$E$5:$J$282,,MATCH(R$4,'C. PoC Adj Factor Scoring'!$E$3:$AH$3,0)-1),MATCH(R$2&\" Score\",'C. PoC Adj Factor Scoring'!$E$4:$J$4,0),TRUE)","v":1},{"$f":"VLOOKUP(OFFSET($B:$B,,MATCH(S$4,$B$4:$F$4,0)-1),OFFSET('C. PoC Adj Factor Scoring'!$E$5:$J$282,,MATCH(S$4,'C. PoC Adj Factor Scoring'!$E$3:$AH$3,0)-1),MATCH(S$2&\" Score\",'C. PoC Adj Factor Scoring'!$E$4:$J$4,0),TRUE)","v":1},{"$f":"VLOOKUP(OFFSET($B:$B,,MATCH(T$4,$B$4:$F$4,0)-1),OFFSET('C. PoC Adj Factor Scoring'!$E$5:$J$282,,MATCH(T$4,'C. PoC Adj Factor Scoring'!$E$3:$AH$3,0)-1),MATCH(T$2&\" Score\",'C. PoC Adj Factor Scoring'!$E$4:$J$4,0),TRUE)","v":1},{"$f":"VLOOKUP(OFFSET($B:$B,,MATCH(U$4,$B$4:$F$4,0)-1),OFFSET('C. PoC Adj Factor Scoring'!$E$5:$J$282,,MATCH(U$4,'C. PoC Adj Factor Scoring'!$E$3:$AH$3,0)-1),MATCH(U$2&\" Score\",'C. PoC Adj Factor Scoring'!$E$4:$J$4,0),TRUE)","v":1},{"$f":"VLOOKUP(OFFSET($B:$B,,MATCH(V$4,$B$4:$F$4,0)-1),OFFSET('C. PoC Adj Factor Scoring'!$E$5:$J$282,,MATCH(V$4,'C. PoC Adj Factor Scoring'!$E$3:$AH$3,0)-1),MATCH(V$2&\" Score\",'C. PoC Adj Factor Scoring'!$E$4:$J$4,0),TRUE)","v":1},{"$f":"VLOOKUP(OFFSET($B:$B,,MATCH(W$4,$B$4:$F$4,0)-1),OFFSET('C. PoC Adj Factor Scoring'!$E$5:$J$282,,MATCH(W$4,'C. PoC Adj Factor Scoring'!$E$3:$AH$3,0)-1),MATCH(W$2&\" Score\",'C. PoC Adj Factor Scoring'!$E$4:$J$4,0),TRUE)","v":1},{"$f":"VLOOKUP(OFFSET($B:$B,,MATCH(X$4,$B$4:$F$4,0)-1),OFFSET('C. PoC Adj Factor Scoring'!$E$5:$J$282,,MATCH(X$4,'C. PoC Adj Factor Scoring'!$E$3:$AH$3,0)-1),MATCH(X$2&\" Score\",'C. PoC Adj Factor Scoring'!$E$4:$J$4,0),TRUE)","v":1},{"$f":"VLOOKUP(OFFSET($B:$B,,MATCH(Y$4,$B$4:$F$4,0)-1),OFFSET('C. PoC Adj Factor Scoring'!$E$5:$J$282,,MATCH(Y$4,'C. PoC Adj Factor Scoring'!$E$3:$AH$3,0)-1),MATCH(Y$2&\" Score\",'C. PoC Adj Factor Scoring'!$E$4:$J$4,0),TRUE)","v":1},{"$f":"VLOOKUP(OFFSET($B:$B,,MATCH(Z$4,$B$4:$F$4,0)-1),OFFSET('C. PoC Adj Factor Scoring'!$E$5:$J$282,,MATCH(Z$4,'C. PoC Adj Factor Scoring'!$E$3:$AH$3,0)-1),MATCH(Z$2&\" Score\",'C. PoC Adj Factor Scoring'!$E$4:$J$4,0),TRUE)","v":1},{"$f":"VLOOKUP(OFFSET($B:$B,,MATCH(AA$4,$B$4:$F$4,0)-1),OFFSET('C. PoC Adj Factor Scoring'!$E$5:$J$282,,MATCH(AA$4,'C. PoC Adj Factor Scoring'!$E$3:$AH$3,0)-1),MATCH(AA$2&\" Score\",'C. PoC Adj Factor Scoring'!$E$4:$J$4,0),TRUE)","v":3},{"$f":"VLOOKUP(OFFSET($B:$B,,MATCH(AB$4,$B$4:$F$4,0)-1),OFFSET('C. PoC Adj Factor Scoring'!$E$5:$J$282,,MATCH(AB$4,'C. PoC Adj Factor Scoring'!$E$3:$AH$3,0)-1),MATCH(AB$2&\" Score\",'C. PoC Adj Factor Scoring'!$E$4:$J$4,0),TRUE)","v":1},{"$f":"VLOOKUP(OFFSET($B:$B,,MATCH(AC$4,$B$4:$F$4,0)-1),OFFSET('C. PoC Adj Factor Scoring'!$E$5:$J$282,,MATCH(AC$4,'C. PoC Adj Factor Scoring'!$E$3:$AH$3,0)-1),MATCH(AC$2&\" Score\",'C. PoC Adj Factor Scoring'!$E$4:$J$4,0),TRUE)","v":1},{"$f":"VLOOKUP(OFFSET($B:$B,,MATCH(AD$4,$B$4:$F$4,0)-1),OFFSET('C. PoC Adj Factor Scoring'!$E$5:$J$282,,MATCH(AD$4,'C. PoC Adj Factor Scoring'!$E$3:$AH$3,0)-1),MATCH(AD$2&\" Score\",'C. PoC Adj Factor Scoring'!$E$4:$J$4,0),TRUE)","v":1},{"$f":"VLOOKUP(OFFSET($B:$B,,MATCH(AE$4,$B$4:$F$4,0)-1),OFFSET('C. PoC Adj Factor Scoring'!$E$5:$J$282,,MATCH(AE$4,'C. PoC Adj Factor Scoring'!$E$3:$AH$3,0)-1),MATCH(AE$2&\" Score\",'C. PoC Adj Factor Scoring'!$E$4:$J$4,0),TRUE)","v":1}]
[{"$f":"'A. Population Info'!A384","v":1000407011},{"$f":"'A. Population Info'!L384","v":"OIL"},{"$f":"'A. Population Info'!M384","v":0},{"$f":"'A. Population Info'!N384","v":0},{"$f":"'A. Population Info'!O384","v":0},{"$f":"'A. Population Info'!P384","v":0},{"$f":"VLOOKUP(OFFSET($B:$B,,MATCH(G$4,$B$4:$F$4,0)-1),OFFSET('C. PoC Adj Factor Scoring'!$E$5:$J$282,,MATCH(G$4,'C. PoC Adj Factor Scoring'!$E$3:$AH$3,0)-1),MATCH(G$2&\" Score\",'C. PoC Adj Factor Scoring'!$E$4:$J$4,0),TRUE)","v":4},{"$f":"VLOOKUP(OFFSET($B:$B,,MATCH(H$4,$B$4:$F$4,0)-1),OFFSET('C. PoC Adj Factor Scoring'!$E$5:$J$282,,MATCH(H$4,'C. PoC Adj Factor Scoring'!$E$3:$AH$3,0)-1),MATCH(H$2&\" Score\",'C. PoC Adj Factor Scoring'!$E$4:$J$4,0),TRUE)","v":1},{"$f":"VLOOKUP(OFFSET($B:$B,,MATCH(I$4,$B$4:$F$4,0)-1),OFFSET('C. PoC Adj Factor Scoring'!$E$5:$J$282,,MATCH(I$4,'C. PoC Adj Factor Scoring'!$E$3:$AH$3,0)-1),MATCH(I$2&\" Score\",'C. PoC Adj Factor Scoring'!$E$4:$J$4,0),TRUE)","v":1},{"$f":"VLOOKUP(OFFSET($B:$B,,MATCH(J$4,$B$4:$F$4,0)-1),OFFSET('C. PoC Adj Factor Scoring'!$E$5:$J$282,,MATCH(J$4,'C. PoC Adj Factor Scoring'!$E$3:$AH$3,0)-1),MATCH(J$2&\" Score\",'C. PoC Adj Factor Scoring'!$E$4:$J$4,0),TRUE)","v":1},{"$f":"VLOOKUP(OFFSET($B:$B,,MATCH(K$4,$B$4:$F$4,0)-1),OFFSET('C. PoC Adj Factor Scoring'!$E$5:$J$282,,MATCH(K$4,'C. PoC Adj Factor Scoring'!$E$3:$AH$3,0)-1),MATCH(K$2&\" Score\",'C. PoC Adj Factor Scoring'!$E$4:$J$4,0),TRUE)","v":1},{"$f":"VLOOKUP(OFFSET($B:$B,,MATCH(L$4,$B$4:$F$4,0)-1),OFFSET('C. PoC Adj Factor Scoring'!$E$5:$J$282,,MATCH(L$4,'C. PoC Adj Factor Scoring'!$E$3:$AH$3,0)-1),MATCH(L$2&\" Score\",'C. PoC Adj Factor Scoring'!$E$4:$J$4,0),TRUE)","v":1},{"$f":"VLOOKUP(OFFSET($B:$B,,MATCH(M$4,$B$4:$F$4,0)-1),OFFSET('C. PoC Adj Factor Scoring'!$E$5:$J$282,,MATCH(M$4,'C. PoC Adj Factor Scoring'!$E$3:$AH$3,0)-1),MATCH(M$2&\" Score\",'C. PoC Adj Factor Scoring'!$E$4:$J$4,0),TRUE)","v":1},{"$f":"VLOOKUP(OFFSET($B:$B,,MATCH(N$4,$B$4:$F$4,0)-1),OFFSET('C. PoC Adj Factor Scoring'!$E$5:$J$282,,MATCH(N$4,'C. PoC Adj Factor Scoring'!$E$3:$AH$3,0)-1),MATCH(N$2&\" Score\",'C. PoC Adj Factor Scoring'!$E$4:$J$4,0),TRUE)","v":1},{"$f":"VLOOKUP(OFFSET($B:$B,,MATCH(O$4,$B$4:$F$4,0)-1),OFFSET('C. PoC Adj Factor Scoring'!$E$5:$J$282,,MATCH(O$4,'C. PoC Adj Factor Scoring'!$E$3:$AH$3,0)-1),MATCH(O$2&\" Score\",'C. PoC Adj Factor Scoring'!$E$4:$J$4,0),TRUE)","v":1},{"$f":"VLOOKUP(OFFSET($B:$B,,MATCH(P$4,$B$4:$F$4,0)-1),OFFSET('C. PoC Adj Factor Scoring'!$E$5:$J$282,,MATCH(P$4,'C. PoC Adj Factor Scoring'!$E$3:$AH$3,0)-1),MATCH(P$2&\" Score\",'C. PoC Adj Factor Scoring'!$E$4:$J$4,0),TRUE)","v":1},{"$f":"VLOOKUP(OFFSET($B:$B,,MATCH(Q$4,$B$4:$F$4,0)-1),OFFSET('C. PoC Adj Factor Scoring'!$E$5:$J$282,,MATCH(Q$4,'C. PoC Adj Factor Scoring'!$E$3:$AH$3,0)-1),MATCH(Q$2&\" Score\",'C. PoC Adj Factor Scoring'!$E$4:$J$4,0),TRUE)","v":1},{"$f":"VLOOKUP(OFFSET($B:$B,,MATCH(R$4,$B$4:$F$4,0)-1),OFFSET('C. PoC Adj Factor Scoring'!$E$5:$J$282,,MATCH(R$4,'C. PoC Adj Factor Scoring'!$E$3:$AH$3,0)-1),MATCH(R$2&\" Score\",'C. PoC Adj Factor Scoring'!$E$4:$J$4,0),TRUE)","v":1},{"$f":"VLOOKUP(OFFSET($B:$B,,MATCH(S$4,$B$4:$F$4,0)-1),OFFSET('C. PoC Adj Factor Scoring'!$E$5:$J$282,,MATCH(S$4,'C. PoC Adj Factor Scoring'!$E$3:$AH$3,0)-1),MATCH(S$2&\" Score\",'C. PoC Adj Factor Scoring'!$E$4:$J$4,0),TRUE)","v":1},{"$f":"VLOOKUP(OFFSET($B:$B,,MATCH(T$4,$B$4:$F$4,0)-1),OFFSET('C. PoC Adj Factor Scoring'!$E$5:$J$282,,MATCH(T$4,'C. PoC Adj Factor Scoring'!$E$3:$AH$3,0)-1),MATCH(T$2&\" Score\",'C. PoC Adj Factor Scoring'!$E$4:$J$4,0),TRUE)","v":1},{"$f":"VLOOKUP(OFFSET($B:$B,,MATCH(U$4,$B$4:$F$4,0)-1),OFFSET('C. PoC Adj Factor Scoring'!$E$5:$J$282,,MATCH(U$4,'C. PoC Adj Factor Scoring'!$E$3:$AH$3,0)-1),MATCH(U$2&\" Score\",'C. PoC Adj Factor Scoring'!$E$4:$J$4,0),TRUE)","v":1},{"$f":"VLOOKUP(OFFSET($B:$B,,MATCH(V$4,$B$4:$F$4,0)-1),OFFSET('C. PoC Adj Factor Scoring'!$E$5:$J$282,,MATCH(V$4,'C. PoC Adj Factor Scoring'!$E$3:$AH$3,0)-1),MATCH(V$2&\" Score\",'C. PoC Adj Factor Scoring'!$E$4:$J$4,0),TRUE)","v":1},{"$f":"VLOOKUP(OFFSET($B:$B,,MATCH(W$4,$B$4:$F$4,0)-1),OFFSET('C. PoC Adj Factor Scoring'!$E$5:$J$282,,MATCH(W$4,'C. PoC Adj Factor Scoring'!$E$3:$AH$3,0)-1),MATCH(W$2&\" Score\",'C. PoC Adj Factor Scoring'!$E$4:$J$4,0),TRUE)","v":1},{"$f":"VLOOKUP(OFFSET($B:$B,,MATCH(X$4,$B$4:$F$4,0)-1),OFFSET('C. PoC Adj Factor Scoring'!$E$5:$J$282,,MATCH(X$4,'C. PoC Adj Factor Scoring'!$E$3:$AH$3,0)-1),MATCH(X$2&\" Score\",'C. PoC Adj Factor Scoring'!$E$4:$J$4,0),TRUE)","v":1},{"$f":"VLOOKUP(OFFSET($B:$B,,MATCH(Y$4,$B$4:$F$4,0)-1),OFFSET('C. PoC Adj Factor Scoring'!$E$5:$J$282,,MATCH(Y$4,'C. PoC Adj Factor Scoring'!$E$3:$AH$3,0)-1),MATCH(Y$2&\" Score\",'C. PoC Adj Factor Scoring'!$E$4:$J$4,0),TRUE)","v":1},{"$f":"VLOOKUP(OFFSET($B:$B,,MATCH(Z$4,$B$4:$F$4,0)-1),OFFSET('C. PoC Adj Factor Scoring'!$E$5:$J$282,,MATCH(Z$4,'C. PoC Adj Factor Scoring'!$E$3:$AH$3,0)-1),MATCH(Z$2&\" Score\",'C. PoC Adj Factor Scoring'!$E$4:$J$4,0),TRUE)","v":1},{"$f":"VLOOKUP(OFFSET($B:$B,,MATCH(AA$4,$B$4:$F$4,0)-1),OFFSET('C. PoC Adj Factor Scoring'!$E$5:$J$282,,MATCH(AA$4,'C. PoC Adj Factor Scoring'!$E$3:$AH$3,0)-1),MATCH(AA$2&\" Score\",'C. PoC Adj Factor Scoring'!$E$4:$J$4,0),TRUE)","v":3},{"$f":"VLOOKUP(OFFSET($B:$B,,MATCH(AB$4,$B$4:$F$4,0)-1),OFFSET('C. PoC Adj Factor Scoring'!$E$5:$J$282,,MATCH(AB$4,'C. PoC Adj Factor Scoring'!$E$3:$AH$3,0)-1),MATCH(AB$2&\" Score\",'C. PoC Adj Factor Scoring'!$E$4:$J$4,0),TRUE)","v":1},{"$f":"VLOOKUP(OFFSET($B:$B,,MATCH(AC$4,$B$4:$F$4,0)-1),OFFSET('C. PoC Adj Factor Scoring'!$E$5:$J$282,,MATCH(AC$4,'C. PoC Adj Factor Scoring'!$E$3:$AH$3,0)-1),MATCH(AC$2&\" Score\",'C. PoC Adj Factor Scoring'!$E$4:$J$4,0),TRUE)","v":1},{"$f":"VLOOKUP(OFFSET($B:$B,,MATCH(AD$4,$B$4:$F$4,0)-1),OFFSET('C. PoC Adj Factor Scoring'!$E$5:$J$282,,MATCH(AD$4,'C. PoC Adj Factor Scoring'!$E$3:$AH$3,0)-1),MATCH(AD$2&\" Score\",'C. PoC Adj Factor Scoring'!$E$4:$J$4,0),TRUE)","v":1},{"$f":"VLOOKUP(OFFSET($B:$B,,MATCH(AE$4,$B$4:$F$4,0)-1),OFFSET('C. PoC Adj Factor Scoring'!$E$5:$J$282,,MATCH(AE$4,'C. PoC Adj Factor Scoring'!$E$3:$AH$3,0)-1),MATCH(AE$2&\" Score\",'C. PoC Adj Factor Scoring'!$E$4:$J$4,0),TRUE)","v":1}]
[{"$f":"'A. Population Info'!A385","v":1000407031},{"$f":"'A. Population Info'!L385","v":"OIL"},{"$f":"'A. Population Info'!M385","v":0},{"$f":"'A. Population Info'!N385","v":0},{"$f":"'A. Population Info'!O385","v":0},{"$f":"'A. Population Info'!P385","v":0},{"$f":"VLOOKUP(OFFSET($B:$B,,MATCH(G$4,$B$4:$F$4,0)-1),OFFSET('C. PoC Adj Factor Scoring'!$E$5:$J$282,,MATCH(G$4,'C. PoC Adj Factor Scoring'!$E$3:$AH$3,0)-1),MATCH(G$2&\" Score\",'C. PoC Adj Factor Scoring'!$E$4:$J$4,0),TRUE)","v":4},{"$f":"VLOOKUP(OFFSET($B:$B,,MATCH(H$4,$B$4:$F$4,0)-1),OFFSET('C. PoC Adj Factor Scoring'!$E$5:$J$282,,MATCH(H$4,'C. PoC Adj Factor Scoring'!$E$3:$AH$3,0)-1),MATCH(H$2&\" Score\",'C. PoC Adj Factor Scoring'!$E$4:$J$4,0),TRUE)","v":1},{"$f":"VLOOKUP(OFFSET($B:$B,,MATCH(I$4,$B$4:$F$4,0)-1),OFFSET('C. PoC Adj Factor Scoring'!$E$5:$J$282,,MATCH(I$4,'C. PoC Adj Factor Scoring'!$E$3:$AH$3,0)-1),MATCH(I$2&\" Score\",'C. PoC Adj Factor Scoring'!$E$4:$J$4,0),TRUE)","v":1},{"$f":"VLOOKUP(OFFSET($B:$B,,MATCH(J$4,$B$4:$F$4,0)-1),OFFSET('C. PoC Adj Factor Scoring'!$E$5:$J$282,,MATCH(J$4,'C. PoC Adj Factor Scoring'!$E$3:$AH$3,0)-1),MATCH(J$2&\" Score\",'C. PoC Adj Factor Scoring'!$E$4:$J$4,0),TRUE)","v":1},{"$f":"VLOOKUP(OFFSET($B:$B,,MATCH(K$4,$B$4:$F$4,0)-1),OFFSET('C. PoC Adj Factor Scoring'!$E$5:$J$282,,MATCH(K$4,'C. PoC Adj Factor Scoring'!$E$3:$AH$3,0)-1),MATCH(K$2&\" Score\",'C. PoC Adj Factor Scoring'!$E$4:$J$4,0),TRUE)","v":1},{"$f":"VLOOKUP(OFFSET($B:$B,,MATCH(L$4,$B$4:$F$4,0)-1),OFFSET('C. PoC Adj Factor Scoring'!$E$5:$J$282,,MATCH(L$4,'C. PoC Adj Factor Scoring'!$E$3:$AH$3,0)-1),MATCH(L$2&\" Score\",'C. PoC Adj Factor Scoring'!$E$4:$J$4,0),TRUE)","v":1},{"$f":"VLOOKUP(OFFSET($B:$B,,MATCH(M$4,$B$4:$F$4,0)-1),OFFSET('C. PoC Adj Factor Scoring'!$E$5:$J$282,,MATCH(M$4,'C. PoC Adj Factor Scoring'!$E$3:$AH$3,0)-1),MATCH(M$2&\" Score\",'C. PoC Adj Factor Scoring'!$E$4:$J$4,0),TRUE)","v":1},{"$f":"VLOOKUP(OFFSET($B:$B,,MATCH(N$4,$B$4:$F$4,0)-1),OFFSET('C. PoC Adj Factor Scoring'!$E$5:$J$282,,MATCH(N$4,'C. PoC Adj Factor Scoring'!$E$3:$AH$3,0)-1),MATCH(N$2&\" Score\",'C. PoC Adj Factor Scoring'!$E$4:$J$4,0),TRUE)","v":1},{"$f":"VLOOKUP(OFFSET($B:$B,,MATCH(O$4,$B$4:$F$4,0)-1),OFFSET('C. PoC Adj Factor Scoring'!$E$5:$J$282,,MATCH(O$4,'C. PoC Adj Factor Scoring'!$E$3:$AH$3,0)-1),MATCH(O$2&\" Score\",'C. PoC Adj Factor Scoring'!$E$4:$J$4,0),TRUE)","v":1},{"$f":"VLOOKUP(OFFSET($B:$B,,MATCH(P$4,$B$4:$F$4,0)-1),OFFSET('C. PoC Adj Factor Scoring'!$E$5:$J$282,,MATCH(P$4,'C. PoC Adj Factor Scoring'!$E$3:$AH$3,0)-1),MATCH(P$2&\" Score\",'C. PoC Adj Factor Scoring'!$E$4:$J$4,0),TRUE)","v":1},{"$f":"VLOOKUP(OFFSET($B:$B,,MATCH(Q$4,$B$4:$F$4,0)-1),OFFSET('C. PoC Adj Factor Scoring'!$E$5:$J$282,,MATCH(Q$4,'C. PoC Adj Factor Scoring'!$E$3:$AH$3,0)-1),MATCH(Q$2&\" Score\",'C. PoC Adj Factor Scoring'!$E$4:$J$4,0),TRUE)","v":1},{"$f":"VLOOKUP(OFFSET($B:$B,,MATCH(R$4,$B$4:$F$4,0)-1),OFFSET('C. PoC Adj Factor Scoring'!$E$5:$J$282,,MATCH(R$4,'C. PoC Adj Factor Scoring'!$E$3:$AH$3,0)-1),MATCH(R$2&\" Score\",'C. PoC Adj Factor Scoring'!$E$4:$J$4,0),TRUE)","v":1},{"$f":"VLOOKUP(OFFSET($B:$B,,MATCH(S$4,$B$4:$F$4,0)-1),OFFSET('C. PoC Adj Factor Scoring'!$E$5:$J$282,,MATCH(S$4,'C. PoC Adj Factor Scoring'!$E$3:$AH$3,0)-1),MATCH(S$2&\" Score\",'C. PoC Adj Factor Scoring'!$E$4:$J$4,0),TRUE)","v":1},{"$f":"VLOOKUP(OFFSET($B:$B,,MATCH(T$4,$B$4:$F$4,0)-1),OFFSET('C. PoC Adj Factor Scoring'!$E$5:$J$282,,MATCH(T$4,'C. PoC Adj Factor Scoring'!$E$3:$AH$3,0)-1),MATCH(T$2&\" Score\",'C. PoC Adj Factor Scoring'!$E$4:$J$4,0),TRUE)","v":1},{"$f":"VLOOKUP(OFFSET($B:$B,,MATCH(U$4,$B$4:$F$4,0)-1),OFFSET('C. PoC Adj Factor Scoring'!$E$5:$J$282,,MATCH(U$4,'C. PoC Adj Factor Scoring'!$E$3:$AH$3,0)-1),MATCH(U$2&\" Score\",'C. PoC Adj Factor Scoring'!$E$4:$J$4,0),TRUE)","v":1},{"$f":"VLOOKUP(OFFSET($B:$B,,MATCH(V$4,$B$4:$F$4,0)-1),OFFSET('C. PoC Adj Factor Scoring'!$E$5:$J$282,,MATCH(V$4,'C. PoC Adj Factor Scoring'!$E$3:$AH$3,0)-1),MATCH(V$2&\" Score\",'C. PoC Adj Factor Scoring'!$E$4:$J$4,0),TRUE)","v":1},{"$f":"VLOOKUP(OFFSET($B:$B,,MATCH(W$4,$B$4:$F$4,0)-1),OFFSET('C. PoC Adj Factor Scoring'!$E$5:$J$282,,MATCH(W$4,'C. PoC Adj Factor Scoring'!$E$3:$AH$3,0)-1),MATCH(W$2&\" Score\",'C. PoC Adj Factor Scoring'!$E$4:$J$4,0),TRUE)","v":1},{"$f":"VLOOKUP(OFFSET($B:$B,,MATCH(X$4,$B$4:$F$4,0)-1),OFFSET('C. PoC Adj Factor Scoring'!$E$5:$J$282,,MATCH(X$4,'C. PoC Adj Factor Scoring'!$E$3:$AH$3,0)-1),MATCH(X$2&\" Score\",'C. PoC Adj Factor Scoring'!$E$4:$J$4,0),TRUE)","v":1},{"$f":"VLOOKUP(OFFSET($B:$B,,MATCH(Y$4,$B$4:$F$4,0)-1),OFFSET('C. PoC Adj Factor Scoring'!$E$5:$J$282,,MATCH(Y$4,'C. PoC Adj Factor Scoring'!$E$3:$AH$3,0)-1),MATCH(Y$2&\" Score\",'C. PoC Adj Factor Scoring'!$E$4:$J$4,0),TRUE)","v":1},{"$f":"VLOOKUP(OFFSET($B:$B,,MATCH(Z$4,$B$4:$F$4,0)-1),OFFSET('C. PoC Adj Factor Scoring'!$E$5:$J$282,,MATCH(Z$4,'C. PoC Adj Factor Scoring'!$E$3:$AH$3,0)-1),MATCH(Z$2&\" Score\",'C. PoC Adj Factor Scoring'!$E$4:$J$4,0),TRUE)","v":1},{"$f":"VLOOKUP(OFFSET($B:$B,,MATCH(AA$4,$B$4:$F$4,0)-1),OFFSET('C. PoC Adj Factor Scoring'!$E$5:$J$282,,MATCH(AA$4,'C. PoC Adj Factor Scoring'!$E$3:$AH$3,0)-1),MATCH(AA$2&\" Score\",'C. PoC Adj Factor Scoring'!$E$4:$J$4,0),TRUE)","v":3},{"$f":"VLOOKUP(OFFSET($B:$B,,MATCH(AB$4,$B$4:$F$4,0)-1),OFFSET('C. PoC Adj Factor Scoring'!$E$5:$J$282,,MATCH(AB$4,'C. PoC Adj Factor Scoring'!$E$3:$AH$3,0)-1),MATCH(AB$2&\" Score\",'C. PoC Adj Factor Scoring'!$E$4:$J$4,0),TRUE)","v":1},{"$f":"VLOOKUP(OFFSET($B:$B,,MATCH(AC$4,$B$4:$F$4,0)-1),OFFSET('C. PoC Adj Factor Scoring'!$E$5:$J$282,,MATCH(AC$4,'C. PoC Adj Factor Scoring'!$E$3:$AH$3,0)-1),MATCH(AC$2&\" Score\",'C. PoC Adj Factor Scoring'!$E$4:$J$4,0),TRUE)","v":1},{"$f":"VLOOKUP(OFFSET($B:$B,,MATCH(AD$4,$B$4:$F$4,0)-1),OFFSET('C. PoC Adj Factor Scoring'!$E$5:$J$282,,MATCH(AD$4,'C. PoC Adj Factor Scoring'!$E$3:$AH$3,0)-1),MATCH(AD$2&\" Score\",'C. PoC Adj Factor Scoring'!$E$4:$J$4,0),TRUE)","v":1},{"$f":"VLOOKUP(OFFSET($B:$B,,MATCH(AE$4,$B$4:$F$4,0)-1),OFFSET('C. PoC Adj Factor Scoring'!$E$5:$J$282,,MATCH(AE$4,'C. PoC Adj Factor Scoring'!$E$3:$AH$3,0)-1),MATCH(AE$2&\" Score\",'C. PoC Adj Factor Scoring'!$E$4:$J$4,0),TRUE)","v":1}]
[{"$f":"'A. Population Info'!A386","v":1000407052},{"$f":"'A. Population Info'!L386","v":"OIL"},{"$f":"'A. Population Info'!M386","v":0},{"$f":"'A. Population Info'!N386","v":0},{"$f":"'A. Population Info'!O386","v":0},{"$f":"'A. Population Info'!P386","v":0},{"$f":"VLOOKUP(OFFSET($B:$B,,MATCH(G$4,$B$4:$F$4,0)-1),OFFSET('C. PoC Adj Factor Scoring'!$E$5:$J$282,,MATCH(G$4,'C. PoC Adj Factor Scoring'!$E$3:$AH$3,0)-1),MATCH(G$2&\" Score\",'C. PoC Adj Factor Scoring'!$E$4:$J$4,0),TRUE)","v":4},{"$f":"VLOOKUP(OFFSET($B:$B,,MATCH(H$4,$B$4:$F$4,0)-1),OFFSET('C. PoC Adj Factor Scoring'!$E$5:$J$282,,MATCH(H$4,'C. PoC Adj Factor Scoring'!$E$3:$AH$3,0)-1),MATCH(H$2&\" Score\",'C. PoC Adj Factor Scoring'!$E$4:$J$4,0),TRUE)","v":1},{"$f":"VLOOKUP(OFFSET($B:$B,,MATCH(I$4,$B$4:$F$4,0)-1),OFFSET('C. PoC Adj Factor Scoring'!$E$5:$J$282,,MATCH(I$4,'C. PoC Adj Factor Scoring'!$E$3:$AH$3,0)-1),MATCH(I$2&\" Score\",'C. PoC Adj Factor Scoring'!$E$4:$J$4,0),TRUE)","v":1},{"$f":"VLOOKUP(OFFSET($B:$B,,MATCH(J$4,$B$4:$F$4,0)-1),OFFSET('C. PoC Adj Factor Scoring'!$E$5:$J$282,,MATCH(J$4,'C. PoC Adj Factor Scoring'!$E$3:$AH$3,0)-1),MATCH(J$2&\" Score\",'C. PoC Adj Factor Scoring'!$E$4:$J$4,0),TRUE)","v":1},{"$f":"VLOOKUP(OFFSET($B:$B,,MATCH(K$4,$B$4:$F$4,0)-1),OFFSET('C. PoC Adj Factor Scoring'!$E$5:$J$282,,MATCH(K$4,'C. PoC Adj Factor Scoring'!$E$3:$AH$3,0)-1),MATCH(K$2&\" Score\",'C. PoC Adj Factor Scoring'!$E$4:$J$4,0),TRUE)","v":1},{"$f":"VLOOKUP(OFFSET($B:$B,,MATCH(L$4,$B$4:$F$4,0)-1),OFFSET('C. PoC Adj Factor Scoring'!$E$5:$J$282,,MATCH(L$4,'C. PoC Adj Factor Scoring'!$E$3:$AH$3,0)-1),MATCH(L$2&\" Score\",'C. PoC Adj Factor Scoring'!$E$4:$J$4,0),TRUE)","v":1},{"$f":"VLOOKUP(OFFSET($B:$B,,MATCH(M$4,$B$4:$F$4,0)-1),OFFSET('C. PoC Adj Factor Scoring'!$E$5:$J$282,,MATCH(M$4,'C. PoC Adj Factor Scoring'!$E$3:$AH$3,0)-1),MATCH(M$2&\" Score\",'C. PoC Adj Factor Scoring'!$E$4:$J$4,0),TRUE)","v":1},{"$f":"VLOOKUP(OFFSET($B:$B,,MATCH(N$4,$B$4:$F$4,0)-1),OFFSET('C. PoC Adj Factor Scoring'!$E$5:$J$282,,MATCH(N$4,'C. PoC Adj Factor Scoring'!$E$3:$AH$3,0)-1),MATCH(N$2&\" Score\",'C. PoC Adj Factor Scoring'!$E$4:$J$4,0),TRUE)","v":1},{"$f":"VLOOKUP(OFFSET($B:$B,,MATCH(O$4,$B$4:$F$4,0)-1),OFFSET('C. PoC Adj Factor Scoring'!$E$5:$J$282,,MATCH(O$4,'C. PoC Adj Factor Scoring'!$E$3:$AH$3,0)-1),MATCH(O$2&\" Score\",'C. PoC Adj Factor Scoring'!$E$4:$J$4,0),TRUE)","v":1},{"$f":"VLOOKUP(OFFSET($B:$B,,MATCH(P$4,$B$4:$F$4,0)-1),OFFSET('C. PoC Adj Factor Scoring'!$E$5:$J$282,,MATCH(P$4,'C. PoC Adj Factor Scoring'!$E$3:$AH$3,0)-1),MATCH(P$2&\" Score\",'C. PoC Adj Factor Scoring'!$E$4:$J$4,0),TRUE)","v":1},{"$f":"VLOOKUP(OFFSET($B:$B,,MATCH(Q$4,$B$4:$F$4,0)-1),OFFSET('C. PoC Adj Factor Scoring'!$E$5:$J$282,,MATCH(Q$4,'C. PoC Adj Factor Scoring'!$E$3:$AH$3,0)-1),MATCH(Q$2&\" Score\",'C. PoC Adj Factor Scoring'!$E$4:$J$4,0),TRUE)","v":1},{"$f":"VLOOKUP(OFFSET($B:$B,,MATCH(R$4,$B$4:$F$4,0)-1),OFFSET('C. PoC Adj Factor Scoring'!$E$5:$J$282,,MATCH(R$4,'C. PoC Adj Factor Scoring'!$E$3:$AH$3,0)-1),MATCH(R$2&\" Score\",'C. PoC Adj Factor Scoring'!$E$4:$J$4,0),TRUE)","v":1},{"$f":"VLOOKUP(OFFSET($B:$B,,MATCH(S$4,$B$4:$F$4,0)-1),OFFSET('C. PoC Adj Factor Scoring'!$E$5:$J$282,,MATCH(S$4,'C. PoC Adj Factor Scoring'!$E$3:$AH$3,0)-1),MATCH(S$2&\" Score\",'C. PoC Adj Factor Scoring'!$E$4:$J$4,0),TRUE)","v":1},{"$f":"VLOOKUP(OFFSET($B:$B,,MATCH(T$4,$B$4:$F$4,0)-1),OFFSET('C. PoC Adj Factor Scoring'!$E$5:$J$282,,MATCH(T$4,'C. PoC Adj Factor Scoring'!$E$3:$AH$3,0)-1),MATCH(T$2&\" Score\",'C. PoC Adj Factor Scoring'!$E$4:$J$4,0),TRUE)","v":1},{"$f":"VLOOKUP(OFFSET($B:$B,,MATCH(U$4,$B$4:$F$4,0)-1),OFFSET('C. PoC Adj Factor Scoring'!$E$5:$J$282,,MATCH(U$4,'C. PoC Adj Factor Scoring'!$E$3:$AH$3,0)-1),MATCH(U$2&\" Score\",'C. PoC Adj Factor Scoring'!$E$4:$J$4,0),TRUE)","v":1},{"$f":"VLOOKUP(OFFSET($B:$B,,MATCH(V$4,$B$4:$F$4,0)-1),OFFSET('C. PoC Adj Factor Scoring'!$E$5:$J$282,,MATCH(V$4,'C. PoC Adj Factor Scoring'!$E$3:$AH$3,0)-1),MATCH(V$2&\" Score\",'C. PoC Adj Factor Scoring'!$E$4:$J$4,0),TRUE)","v":1},{"$f":"VLOOKUP(OFFSET($B:$B,,MATCH(W$4,$B$4:$F$4,0)-1),OFFSET('C. PoC Adj Factor Scoring'!$E$5:$J$282,,MATCH(W$4,'C. PoC Adj Factor Scoring'!$E$3:$AH$3,0)-1),MATCH(W$2&\" Score\",'C. PoC Adj Factor Scoring'!$E$4:$J$4,0),TRUE)","v":1},{"$f":"VLOOKUP(OFFSET($B:$B,,MATCH(X$4,$B$4:$F$4,0)-1),OFFSET('C. PoC Adj Factor Scoring'!$E$5:$J$282,,MATCH(X$4,'C. PoC Adj Factor Scoring'!$E$3:$AH$3,0)-1),MATCH(X$2&\" Score\",'C. PoC Adj Factor Scoring'!$E$4:$J$4,0),TRUE)","v":1},{"$f":"VLOOKUP(OFFSET($B:$B,,MATCH(Y$4,$B$4:$F$4,0)-1),OFFSET('C. PoC Adj Factor Scoring'!$E$5:$J$282,,MATCH(Y$4,'C. PoC Adj Factor Scoring'!$E$3:$AH$3,0)-1),MATCH(Y$2&\" Score\",'C. PoC Adj Factor Scoring'!$E$4:$J$4,0),TRUE)","v":1},{"$f":"VLOOKUP(OFFSET($B:$B,,MATCH(Z$4,$B$4:$F$4,0)-1),OFFSET('C. PoC Adj Factor Scoring'!$E$5:$J$282,,MATCH(Z$4,'C. PoC Adj Factor Scoring'!$E$3:$AH$3,0)-1),MATCH(Z$2&\" Score\",'C. PoC Adj Factor Scoring'!$E$4:$J$4,0),TRUE)","v":1},{"$f":"VLOOKUP(OFFSET($B:$B,,MATCH(AA$4,$B$4:$F$4,0)-1),OFFSET('C. PoC Adj Factor Scoring'!$E$5:$J$282,,MATCH(AA$4,'C. PoC Adj Factor Scoring'!$E$3:$AH$3,0)-1),MATCH(AA$2&\" Score\",'C. PoC Adj Factor Scoring'!$E$4:$J$4,0),TRUE)","v":3},{"$f":"VLOOKUP(OFFSET($B:$B,,MATCH(AB$4,$B$4:$F$4,0)-1),OFFSET('C. PoC Adj Factor Scoring'!$E$5:$J$282,,MATCH(AB$4,'C. PoC Adj Factor Scoring'!$E$3:$AH$3,0)-1),MATCH(AB$2&\" Score\",'C. PoC Adj Factor Scoring'!$E$4:$J$4,0),TRUE)","v":1},{"$f":"VLOOKUP(OFFSET($B:$B,,MATCH(AC$4,$B$4:$F$4,0)-1),OFFSET('C. PoC Adj Factor Scoring'!$E$5:$J$282,,MATCH(AC$4,'C. PoC Adj Factor Scoring'!$E$3:$AH$3,0)-1),MATCH(AC$2&\" Score\",'C. PoC Adj Factor Scoring'!$E$4:$J$4,0),TRUE)","v":1},{"$f":"VLOOKUP(OFFSET($B:$B,,MATCH(AD$4,$B$4:$F$4,0)-1),OFFSET('C. PoC Adj Factor Scoring'!$E$5:$J$282,,MATCH(AD$4,'C. PoC Adj Factor Scoring'!$E$3:$AH$3,0)-1),MATCH(AD$2&\" Score\",'C. PoC Adj Factor Scoring'!$E$4:$J$4,0),TRUE)","v":1},{"$f":"VLOOKUP(OFFSET($B:$B,,MATCH(AE$4,$B$4:$F$4,0)-1),OFFSET('C. PoC Adj Factor Scoring'!$E$5:$J$282,,MATCH(AE$4,'C. PoC Adj Factor Scoring'!$E$3:$AH$3,0)-1),MATCH(AE$2&\" Score\",'C. PoC Adj Factor Scoring'!$E$4:$J$4,0),TRUE)","v":1}]
[{"$f":"'A. Population Info'!A387","v":1000407221},{"$f":"'A. Population Info'!L387","v":"OIL"},{"$f":"'A. Population Info'!M387","v":0},{"$f":"'A. Population Info'!N387","v":0},{"$f":"'A. Population Info'!O387","v":0},{"$f":"'A. Population Info'!P387","v":0},{"$f":"VLOOKUP(OFFSET($B:$B,,MATCH(G$4,$B$4:$F$4,0)-1),OFFSET('C. PoC Adj Factor Scoring'!$E$5:$J$282,,MATCH(G$4,'C. PoC Adj Factor Scoring'!$E$3:$AH$3,0)-1),MATCH(G$2&\" Score\",'C. PoC Adj Factor Scoring'!$E$4:$J$4,0),TRUE)","v":4},{"$f":"VLOOKUP(OFFSET($B:$B,,MATCH(H$4,$B$4:$F$4,0)-1),OFFSET('C. PoC Adj Factor Scoring'!$E$5:$J$282,,MATCH(H$4,'C. PoC Adj Factor Scoring'!$E$3:$AH$3,0)-1),MATCH(H$2&\" Score\",'C. PoC Adj Factor Scoring'!$E$4:$J$4,0),TRUE)","v":1},{"$f":"VLOOKUP(OFFSET($B:$B,,MATCH(I$4,$B$4:$F$4,0)-1),OFFSET('C. PoC Adj Factor Scoring'!$E$5:$J$282,,MATCH(I$4,'C. PoC Adj Factor Scoring'!$E$3:$AH$3,0)-1),MATCH(I$2&\" Score\",'C. PoC Adj Factor Scoring'!$E$4:$J$4,0),TRUE)","v":1},{"$f":"VLOOKUP(OFFSET($B:$B,,MATCH(J$4,$B$4:$F$4,0)-1),OFFSET('C. PoC Adj Factor Scoring'!$E$5:$J$282,,MATCH(J$4,'C. PoC Adj Factor Scoring'!$E$3:$AH$3,0)-1),MATCH(J$2&\" Score\",'C. PoC Adj Factor Scoring'!$E$4:$J$4,0),TRUE)","v":1},{"$f":"VLOOKUP(OFFSET($B:$B,,MATCH(K$4,$B$4:$F$4,0)-1),OFFSET('C. PoC Adj Factor Scoring'!$E$5:$J$282,,MATCH(K$4,'C. PoC Adj Factor Scoring'!$E$3:$AH$3,0)-1),MATCH(K$2&\" Score\",'C. PoC Adj Factor Scoring'!$E$4:$J$4,0),TRUE)","v":1},{"$f":"VLOOKUP(OFFSET($B:$B,,MATCH(L$4,$B$4:$F$4,0)-1),OFFSET('C. PoC Adj Factor Scoring'!$E$5:$J$282,,MATCH(L$4,'C. PoC Adj Factor Scoring'!$E$3:$AH$3,0)-1),MATCH(L$2&\" Score\",'C. PoC Adj Factor Scoring'!$E$4:$J$4,0),TRUE)","v":1},{"$f":"VLOOKUP(OFFSET($B:$B,,MATCH(M$4,$B$4:$F$4,0)-1),OFFSET('C. PoC Adj Factor Scoring'!$E$5:$J$282,,MATCH(M$4,'C. PoC Adj Factor Scoring'!$E$3:$AH$3,0)-1),MATCH(M$2&\" Score\",'C. PoC Adj Factor Scoring'!$E$4:$J$4,0),TRUE)","v":1},{"$f":"VLOOKUP(OFFSET($B:$B,,MATCH(N$4,$B$4:$F$4,0)-1),OFFSET('C. PoC Adj Factor Scoring'!$E$5:$J$282,,MATCH(N$4,'C. PoC Adj Factor Scoring'!$E$3:$AH$3,0)-1),MATCH(N$2&\" Score\",'C. PoC Adj Factor Scoring'!$E$4:$J$4,0),TRUE)","v":1},{"$f":"VLOOKUP(OFFSET($B:$B,,MATCH(O$4,$B$4:$F$4,0)-1),OFFSET('C. PoC Adj Factor Scoring'!$E$5:$J$282,,MATCH(O$4,'C. PoC Adj Factor Scoring'!$E$3:$AH$3,0)-1),MATCH(O$2&\" Score\",'C. PoC Adj Factor Scoring'!$E$4:$J$4,0),TRUE)","v":1},{"$f":"VLOOKUP(OFFSET($B:$B,,MATCH(P$4,$B$4:$F$4,0)-1),OFFSET('C. PoC Adj Factor Scoring'!$E$5:$J$282,,MATCH(P$4,'C. PoC Adj Factor Scoring'!$E$3:$AH$3,0)-1),MATCH(P$2&\" Score\",'C. PoC Adj Factor Scoring'!$E$4:$J$4,0),TRUE)","v":1},{"$f":"VLOOKUP(OFFSET($B:$B,,MATCH(Q$4,$B$4:$F$4,0)-1),OFFSET('C. PoC Adj Factor Scoring'!$E$5:$J$282,,MATCH(Q$4,'C. PoC Adj Factor Scoring'!$E$3:$AH$3,0)-1),MATCH(Q$2&\" Score\",'C. PoC Adj Factor Scoring'!$E$4:$J$4,0),TRUE)","v":1},{"$f":"VLOOKUP(OFFSET($B:$B,,MATCH(R$4,$B$4:$F$4,0)-1),OFFSET('C. PoC Adj Factor Scoring'!$E$5:$J$282,,MATCH(R$4,'C. PoC Adj Factor Scoring'!$E$3:$AH$3,0)-1),MATCH(R$2&\" Score\",'C. PoC Adj Factor Scoring'!$E$4:$J$4,0),TRUE)","v":1},{"$f":"VLOOKUP(OFFSET($B:$B,,MATCH(S$4,$B$4:$F$4,0)-1),OFFSET('C. PoC Adj Factor Scoring'!$E$5:$J$282,,MATCH(S$4,'C. PoC Adj Factor Scoring'!$E$3:$AH$3,0)-1),MATCH(S$2&\" Score\",'C. PoC Adj Factor Scoring'!$E$4:$J$4,0),TRUE)","v":1},{"$f":"VLOOKUP(OFFSET($B:$B,,MATCH(T$4,$B$4:$F$4,0)-1),OFFSET('C. PoC Adj Factor Scoring'!$E$5:$J$282,,MATCH(T$4,'C. PoC Adj Factor Scoring'!$E$3:$AH$3,0)-1),MATCH(T$2&\" Score\",'C. PoC Adj Factor Scoring'!$E$4:$J$4,0),TRUE)","v":1},{"$f":"VLOOKUP(OFFSET($B:$B,,MATCH(U$4,$B$4:$F$4,0)-1),OFFSET('C. PoC Adj Factor Scoring'!$E$5:$J$282,,MATCH(U$4,'C. PoC Adj Factor Scoring'!$E$3:$AH$3,0)-1),MATCH(U$2&\" Score\",'C. PoC Adj Factor Scoring'!$E$4:$J$4,0),TRUE)","v":1},{"$f":"VLOOKUP(OFFSET($B:$B,,MATCH(V$4,$B$4:$F$4,0)-1),OFFSET('C. PoC Adj Factor Scoring'!$E$5:$J$282,,MATCH(V$4,'C. PoC Adj Factor Scoring'!$E$3:$AH$3,0)-1),MATCH(V$2&\" Score\",'C. PoC Adj Factor Scoring'!$E$4:$J$4,0),TRUE)","v":1},{"$f":"VLOOKUP(OFFSET($B:$B,,MATCH(W$4,$B$4:$F$4,0)-1),OFFSET('C. PoC Adj Factor Scoring'!$E$5:$J$282,,MATCH(W$4,'C. PoC Adj Factor Scoring'!$E$3:$AH$3,0)-1),MATCH(W$2&\" Score\",'C. PoC Adj Factor Scoring'!$E$4:$J$4,0),TRUE)","v":1},{"$f":"VLOOKUP(OFFSET($B:$B,,MATCH(X$4,$B$4:$F$4,0)-1),OFFSET('C. PoC Adj Factor Scoring'!$E$5:$J$282,,MATCH(X$4,'C. PoC Adj Factor Scoring'!$E$3:$AH$3,0)-1),MATCH(X$2&\" Score\",'C. PoC Adj Factor Scoring'!$E$4:$J$4,0),TRUE)","v":1},{"$f":"VLOOKUP(OFFSET($B:$B,,MATCH(Y$4,$B$4:$F$4,0)-1),OFFSET('C. PoC Adj Factor Scoring'!$E$5:$J$282,,MATCH(Y$4,'C. PoC Adj Factor Scoring'!$E$3:$AH$3,0)-1),MATCH(Y$2&\" Score\",'C. PoC Adj Factor Scoring'!$E$4:$J$4,0),TRUE)","v":1},{"$f":"VLOOKUP(OFFSET($B:$B,,MATCH(Z$4,$B$4:$F$4,0)-1),OFFSET('C. PoC Adj Factor Scoring'!$E$5:$J$282,,MATCH(Z$4,'C. PoC Adj Factor Scoring'!$E$3:$AH$3,0)-1),MATCH(Z$2&\" Score\",'C. PoC Adj Factor Scoring'!$E$4:$J$4,0),TRUE)","v":1},{"$f":"VLOOKUP(OFFSET($B:$B,,MATCH(AA$4,$B$4:$F$4,0)-1),OFFSET('C. PoC Adj Factor Scoring'!$E$5:$J$282,,MATCH(AA$4,'C. PoC Adj Factor Scoring'!$E$3:$AH$3,0)-1),MATCH(AA$2&\" Score\",'C. PoC Adj Factor Scoring'!$E$4:$J$4,0),TRUE)","v":3},{"$f":"VLOOKUP(OFFSET($B:$B,,MATCH(AB$4,$B$4:$F$4,0)-1),OFFSET('C. PoC Adj Factor Scoring'!$E$5:$J$282,,MATCH(AB$4,'C. PoC Adj Factor Scoring'!$E$3:$AH$3,0)-1),MATCH(AB$2&\" Score\",'C. PoC Adj Factor Scoring'!$E$4:$J$4,0),TRUE)","v":1},{"$f":"VLOOKUP(OFFSET($B:$B,,MATCH(AC$4,$B$4:$F$4,0)-1),OFFSET('C. PoC Adj Factor Scoring'!$E$5:$J$282,,MATCH(AC$4,'C. PoC Adj Factor Scoring'!$E$3:$AH$3,0)-1),MATCH(AC$2&\" Score\",'C. PoC Adj Factor Scoring'!$E$4:$J$4,0),TRUE)","v":1},{"$f":"VLOOKUP(OFFSET($B:$B,,MATCH(AD$4,$B$4:$F$4,0)-1),OFFSET('C. PoC Adj Factor Scoring'!$E$5:$J$282,,MATCH(AD$4,'C. PoC Adj Factor Scoring'!$E$3:$AH$3,0)-1),MATCH(AD$2&\" Score\",'C. PoC Adj Factor Scoring'!$E$4:$J$4,0),TRUE)","v":1},{"$f":"VLOOKUP(OFFSET($B:$B,,MATCH(AE$4,$B$4:$F$4,0)-1),OFFSET('C. PoC Adj Factor Scoring'!$E$5:$J$282,,MATCH(AE$4,'C. PoC Adj Factor Scoring'!$E$3:$AH$3,0)-1),MATCH(AE$2&\" Score\",'C. PoC Adj Factor Scoring'!$E$4:$J$4,0),TRUE)","v":1}]
[{"$f":"'A. Population Info'!A388","v":1000407240},{"$f":"'A. Population Info'!L388","v":"OIL"},{"$f":"'A. Population Info'!M388","v":0},{"$f":"'A. Population Info'!N388","v":0},{"$f":"'A. Population Info'!O388","v":0},{"$f":"'A. Population Info'!P388","v":0},{"$f":"VLOOKUP(OFFSET($B:$B,,MATCH(G$4,$B$4:$F$4,0)-1),OFFSET('C. PoC Adj Factor Scoring'!$E$5:$J$282,,MATCH(G$4,'C. PoC Adj Factor Scoring'!$E$3:$AH$3,0)-1),MATCH(G$2&\" Score\",'C. PoC Adj Factor Scoring'!$E$4:$J$4,0),TRUE)","v":4},{"$f":"VLOOKUP(OFFSET($B:$B,,MATCH(H$4,$B$4:$F$4,0)-1),OFFSET('C. PoC Adj Factor Scoring'!$E$5:$J$282,,MATCH(H$4,'C. PoC Adj Factor Scoring'!$E$3:$AH$3,0)-1),MATCH(H$2&\" Score\",'C. PoC Adj Factor Scoring'!$E$4:$J$4,0),TRUE)","v":1},{"$f":"VLOOKUP(OFFSET($B:$B,,MATCH(I$4,$B$4:$F$4,0)-1),OFFSET('C. PoC Adj Factor Scoring'!$E$5:$J$282,,MATCH(I$4,'C. PoC Adj Factor Scoring'!$E$3:$AH$3,0)-1),MATCH(I$2&\" Score\",'C. PoC Adj Factor Scoring'!$E$4:$J$4,0),TRUE)","v":1},{"$f":"VLOOKUP(OFFSET($B:$B,,MATCH(J$4,$B$4:$F$4,0)-1),OFFSET('C. PoC Adj Factor Scoring'!$E$5:$J$282,,MATCH(J$4,'C. PoC Adj Factor Scoring'!$E$3:$AH$3,0)-1),MATCH(J$2&\" Score\",'C. PoC Adj Factor Scoring'!$E$4:$J$4,0),TRUE)","v":1},{"$f":"VLOOKUP(OFFSET($B:$B,,MATCH(K$4,$B$4:$F$4,0)-1),OFFSET('C. PoC Adj Factor Scoring'!$E$5:$J$282,,MATCH(K$4,'C. PoC Adj Factor Scoring'!$E$3:$AH$3,0)-1),MATCH(K$2&\" Score\",'C. PoC Adj Factor Scoring'!$E$4:$J$4,0),TRUE)","v":1},{"$f":"VLOOKUP(OFFSET($B:$B,,MATCH(L$4,$B$4:$F$4,0)-1),OFFSET('C. PoC Adj Factor Scoring'!$E$5:$J$282,,MATCH(L$4,'C. PoC Adj Factor Scoring'!$E$3:$AH$3,0)-1),MATCH(L$2&\" Score\",'C. PoC Adj Factor Scoring'!$E$4:$J$4,0),TRUE)","v":1},{"$f":"VLOOKUP(OFFSET($B:$B,,MATCH(M$4,$B$4:$F$4,0)-1),OFFSET('C. PoC Adj Factor Scoring'!$E$5:$J$282,,MATCH(M$4,'C. PoC Adj Factor Scoring'!$E$3:$AH$3,0)-1),MATCH(M$2&\" Score\",'C. PoC Adj Factor Scoring'!$E$4:$J$4,0),TRUE)","v":1},{"$f":"VLOOKUP(OFFSET($B:$B,,MATCH(N$4,$B$4:$F$4,0)-1),OFFSET('C. PoC Adj Factor Scoring'!$E$5:$J$282,,MATCH(N$4,'C. PoC Adj Factor Scoring'!$E$3:$AH$3,0)-1),MATCH(N$2&\" Score\",'C. PoC Adj Factor Scoring'!$E$4:$J$4,0),TRUE)","v":1},{"$f":"VLOOKUP(OFFSET($B:$B,,MATCH(O$4,$B$4:$F$4,0)-1),OFFSET('C. PoC Adj Factor Scoring'!$E$5:$J$282,,MATCH(O$4,'C. PoC Adj Factor Scoring'!$E$3:$AH$3,0)-1),MATCH(O$2&\" Score\",'C. PoC Adj Factor Scoring'!$E$4:$J$4,0),TRUE)","v":1},{"$f":"VLOOKUP(OFFSET($B:$B,,MATCH(P$4,$B$4:$F$4,0)-1),OFFSET('C. PoC Adj Factor Scoring'!$E$5:$J$282,,MATCH(P$4,'C. PoC Adj Factor Scoring'!$E$3:$AH$3,0)-1),MATCH(P$2&\" Score\",'C. PoC Adj Factor Scoring'!$E$4:$J$4,0),TRUE)","v":1},{"$f":"VLOOKUP(OFFSET($B:$B,,MATCH(Q$4,$B$4:$F$4,0)-1),OFFSET('C. PoC Adj Factor Scoring'!$E$5:$J$282,,MATCH(Q$4,'C. PoC Adj Factor Scoring'!$E$3:$AH$3,0)-1),MATCH(Q$2&\" Score\",'C. PoC Adj Factor Scoring'!$E$4:$J$4,0),TRUE)","v":1},{"$f":"VLOOKUP(OFFSET($B:$B,,MATCH(R$4,$B$4:$F$4,0)-1),OFFSET('C. PoC Adj Factor Scoring'!$E$5:$J$282,,MATCH(R$4,'C. PoC Adj Factor Scoring'!$E$3:$AH$3,0)-1),MATCH(R$2&\" Score\",'C. PoC Adj Factor Scoring'!$E$4:$J$4,0),TRUE)","v":1},{"$f":"VLOOKUP(OFFSET($B:$B,,MATCH(S$4,$B$4:$F$4,0)-1),OFFSET('C. PoC Adj Factor Scoring'!$E$5:$J$282,,MATCH(S$4,'C. PoC Adj Factor Scoring'!$E$3:$AH$3,0)-1),MATCH(S$2&\" Score\",'C. PoC Adj Factor Scoring'!$E$4:$J$4,0),TRUE)","v":1},{"$f":"VLOOKUP(OFFSET($B:$B,,MATCH(T$4,$B$4:$F$4,0)-1),OFFSET('C. PoC Adj Factor Scoring'!$E$5:$J$282,,MATCH(T$4,'C. PoC Adj Factor Scoring'!$E$3:$AH$3,0)-1),MATCH(T$2&\" Score\",'C. PoC Adj Factor Scoring'!$E$4:$J$4,0),TRUE)","v":1},{"$f":"VLOOKUP(OFFSET($B:$B,,MATCH(U$4,$B$4:$F$4,0)-1),OFFSET('C. PoC Adj Factor Scoring'!$E$5:$J$282,,MATCH(U$4,'C. PoC Adj Factor Scoring'!$E$3:$AH$3,0)-1),MATCH(U$2&\" Score\",'C. PoC Adj Factor Scoring'!$E$4:$J$4,0),TRUE)","v":1},{"$f":"VLOOKUP(OFFSET($B:$B,,MATCH(V$4,$B$4:$F$4,0)-1),OFFSET('C. PoC Adj Factor Scoring'!$E$5:$J$282,,MATCH(V$4,'C. PoC Adj Factor Scoring'!$E$3:$AH$3,0)-1),MATCH(V$2&\" Score\",'C. PoC Adj Factor Scoring'!$E$4:$J$4,0),TRUE)","v":1},{"$f":"VLOOKUP(OFFSET($B:$B,,MATCH(W$4,$B$4:$F$4,0)-1),OFFSET('C. PoC Adj Factor Scoring'!$E$5:$J$282,,MATCH(W$4,'C. PoC Adj Factor Scoring'!$E$3:$AH$3,0)-1),MATCH(W$2&\" Score\",'C. PoC Adj Factor Scoring'!$E$4:$J$4,0),TRUE)","v":1},{"$f":"VLOOKUP(OFFSET($B:$B,,MATCH(X$4,$B$4:$F$4,0)-1),OFFSET('C. PoC Adj Factor Scoring'!$E$5:$J$282,,MATCH(X$4,'C. PoC Adj Factor Scoring'!$E$3:$AH$3,0)-1),MATCH(X$2&\" Score\",'C. PoC Adj Factor Scoring'!$E$4:$J$4,0),TRUE)","v":1},{"$f":"VLOOKUP(OFFSET($B:$B,,MATCH(Y$4,$B$4:$F$4,0)-1),OFFSET('C. PoC Adj Factor Scoring'!$E$5:$J$282,,MATCH(Y$4,'C. PoC Adj Factor Scoring'!$E$3:$AH$3,0)-1),MATCH(Y$2&\" Score\",'C. PoC Adj Factor Scoring'!$E$4:$J$4,0),TRUE)","v":1},{"$f":"VLOOKUP(OFFSET($B:$B,,MATCH(Z$4,$B$4:$F$4,0)-1),OFFSET('C. PoC Adj Factor Scoring'!$E$5:$J$282,,MATCH(Z$4,'C. PoC Adj Factor Scoring'!$E$3:$AH$3,0)-1),MATCH(Z$2&\" Score\",'C. PoC Adj Factor Scoring'!$E$4:$J$4,0),TRUE)","v":1},{"$f":"VLOOKUP(OFFSET($B:$B,,MATCH(AA$4,$B$4:$F$4,0)-1),OFFSET('C. PoC Adj Factor Scoring'!$E$5:$J$282,,MATCH(AA$4,'C. PoC Adj Factor Scoring'!$E$3:$AH$3,0)-1),MATCH(AA$2&\" Score\",'C. PoC Adj Factor Scoring'!$E$4:$J$4,0),TRUE)","v":3},{"$f":"VLOOKUP(OFFSET($B:$B,,MATCH(AB$4,$B$4:$F$4,0)-1),OFFSET('C. PoC Adj Factor Scoring'!$E$5:$J$282,,MATCH(AB$4,'C. PoC Adj Factor Scoring'!$E$3:$AH$3,0)-1),MATCH(AB$2&\" Score\",'C. PoC Adj Factor Scoring'!$E$4:$J$4,0),TRUE)","v":1},{"$f":"VLOOKUP(OFFSET($B:$B,,MATCH(AC$4,$B$4:$F$4,0)-1),OFFSET('C. PoC Adj Factor Scoring'!$E$5:$J$282,,MATCH(AC$4,'C. PoC Adj Factor Scoring'!$E$3:$AH$3,0)-1),MATCH(AC$2&\" Score\",'C. PoC Adj Factor Scoring'!$E$4:$J$4,0),TRUE)","v":1},{"$f":"VLOOKUP(OFFSET($B:$B,,MATCH(AD$4,$B$4:$F$4,0)-1),OFFSET('C. PoC Adj Factor Scoring'!$E$5:$J$282,,MATCH(AD$4,'C. PoC Adj Factor Scoring'!$E$3:$AH$3,0)-1),MATCH(AD$2&\" Score\",'C. PoC Adj Factor Scoring'!$E$4:$J$4,0),TRUE)","v":1},{"$f":"VLOOKUP(OFFSET($B:$B,,MATCH(AE$4,$B$4:$F$4,0)-1),OFFSET('C. PoC Adj Factor Scoring'!$E$5:$J$282,,MATCH(AE$4,'C. PoC Adj Factor Scoring'!$E$3:$AH$3,0)-1),MATCH(AE$2&\" Score\",'C. PoC Adj Factor Scoring'!$E$4:$J$4,0),TRUE)","v":1}]
[{"$f":"'A. Population Info'!A389","v":1000407262},{"$f":"'A. Population Info'!L389","v":"OIL"},{"$f":"'A. Population Info'!M389","v":0},{"$f":"'A. Population Info'!N389","v":0},{"$f":"'A. Population Info'!O389","v":0},{"$f":"'A. Population Info'!P389","v":0},{"$f":"VLOOKUP(OFFSET($B:$B,,MATCH(G$4,$B$4:$F$4,0)-1),OFFSET('C. PoC Adj Factor Scoring'!$E$5:$J$282,,MATCH(G$4,'C. PoC Adj Factor Scoring'!$E$3:$AH$3,0)-1),MATCH(G$2&\" Score\",'C. PoC Adj Factor Scoring'!$E$4:$J$4,0),TRUE)","v":4},{"$f":"VLOOKUP(OFFSET($B:$B,,MATCH(H$4,$B$4:$F$4,0)-1),OFFSET('C. PoC Adj Factor Scoring'!$E$5:$J$282,,MATCH(H$4,'C. PoC Adj Factor Scoring'!$E$3:$AH$3,0)-1),MATCH(H$2&\" Score\",'C. PoC Adj Factor Scoring'!$E$4:$J$4,0),TRUE)","v":1},{"$f":"VLOOKUP(OFFSET($B:$B,,MATCH(I$4,$B$4:$F$4,0)-1),OFFSET('C. PoC Adj Factor Scoring'!$E$5:$J$282,,MATCH(I$4,'C. PoC Adj Factor Scoring'!$E$3:$AH$3,0)-1),MATCH(I$2&\" Score\",'C. PoC Adj Factor Scoring'!$E$4:$J$4,0),TRUE)","v":1},{"$f":"VLOOKUP(OFFSET($B:$B,,MATCH(J$4,$B$4:$F$4,0)-1),OFFSET('C. PoC Adj Factor Scoring'!$E$5:$J$282,,MATCH(J$4,'C. PoC Adj Factor Scoring'!$E$3:$AH$3,0)-1),MATCH(J$2&\" Score\",'C. PoC Adj Factor Scoring'!$E$4:$J$4,0),TRUE)","v":1},{"$f":"VLOOKUP(OFFSET($B:$B,,MATCH(K$4,$B$4:$F$4,0)-1),OFFSET('C. PoC Adj Factor Scoring'!$E$5:$J$282,,MATCH(K$4,'C. PoC Adj Factor Scoring'!$E$3:$AH$3,0)-1),MATCH(K$2&\" Score\",'C. PoC Adj Factor Scoring'!$E$4:$J$4,0),TRUE)","v":1},{"$f":"VLOOKUP(OFFSET($B:$B,,MATCH(L$4,$B$4:$F$4,0)-1),OFFSET('C. PoC Adj Factor Scoring'!$E$5:$J$282,,MATCH(L$4,'C. PoC Adj Factor Scoring'!$E$3:$AH$3,0)-1),MATCH(L$2&\" Score\",'C. PoC Adj Factor Scoring'!$E$4:$J$4,0),TRUE)","v":1},{"$f":"VLOOKUP(OFFSET($B:$B,,MATCH(M$4,$B$4:$F$4,0)-1),OFFSET('C. PoC Adj Factor Scoring'!$E$5:$J$282,,MATCH(M$4,'C. PoC Adj Factor Scoring'!$E$3:$AH$3,0)-1),MATCH(M$2&\" Score\",'C. PoC Adj Factor Scoring'!$E$4:$J$4,0),TRUE)","v":1},{"$f":"VLOOKUP(OFFSET($B:$B,,MATCH(N$4,$B$4:$F$4,0)-1),OFFSET('C. PoC Adj Factor Scoring'!$E$5:$J$282,,MATCH(N$4,'C. PoC Adj Factor Scoring'!$E$3:$AH$3,0)-1),MATCH(N$2&\" Score\",'C. PoC Adj Factor Scoring'!$E$4:$J$4,0),TRUE)","v":1},{"$f":"VLOOKUP(OFFSET($B:$B,,MATCH(O$4,$B$4:$F$4,0)-1),OFFSET('C. PoC Adj Factor Scoring'!$E$5:$J$282,,MATCH(O$4,'C. PoC Adj Factor Scoring'!$E$3:$AH$3,0)-1),MATCH(O$2&\" Score\",'C. PoC Adj Factor Scoring'!$E$4:$J$4,0),TRUE)","v":1},{"$f":"VLOOKUP(OFFSET($B:$B,,MATCH(P$4,$B$4:$F$4,0)-1),OFFSET('C. PoC Adj Factor Scoring'!$E$5:$J$282,,MATCH(P$4,'C. PoC Adj Factor Scoring'!$E$3:$AH$3,0)-1),MATCH(P$2&\" Score\",'C. PoC Adj Factor Scoring'!$E$4:$J$4,0),TRUE)","v":1},{"$f":"VLOOKUP(OFFSET($B:$B,,MATCH(Q$4,$B$4:$F$4,0)-1),OFFSET('C. PoC Adj Factor Scoring'!$E$5:$J$282,,MATCH(Q$4,'C. PoC Adj Factor Scoring'!$E$3:$AH$3,0)-1),MATCH(Q$2&\" Score\",'C. PoC Adj Factor Scoring'!$E$4:$J$4,0),TRUE)","v":1},{"$f":"VLOOKUP(OFFSET($B:$B,,MATCH(R$4,$B$4:$F$4,0)-1),OFFSET('C. PoC Adj Factor Scoring'!$E$5:$J$282,,MATCH(R$4,'C. PoC Adj Factor Scoring'!$E$3:$AH$3,0)-1),MATCH(R$2&\" Score\",'C. PoC Adj Factor Scoring'!$E$4:$J$4,0),TRUE)","v":1},{"$f":"VLOOKUP(OFFSET($B:$B,,MATCH(S$4,$B$4:$F$4,0)-1),OFFSET('C. PoC Adj Factor Scoring'!$E$5:$J$282,,MATCH(S$4,'C. PoC Adj Factor Scoring'!$E$3:$AH$3,0)-1),MATCH(S$2&\" Score\",'C. PoC Adj Factor Scoring'!$E$4:$J$4,0),TRUE)","v":1},{"$f":"VLOOKUP(OFFSET($B:$B,,MATCH(T$4,$B$4:$F$4,0)-1),OFFSET('C. PoC Adj Factor Scoring'!$E$5:$J$282,,MATCH(T$4,'C. PoC Adj Factor Scoring'!$E$3:$AH$3,0)-1),MATCH(T$2&\" Score\",'C. PoC Adj Factor Scoring'!$E$4:$J$4,0),TRUE)","v":1},{"$f":"VLOOKUP(OFFSET($B:$B,,MATCH(U$4,$B$4:$F$4,0)-1),OFFSET('C. PoC Adj Factor Scoring'!$E$5:$J$282,,MATCH(U$4,'C. PoC Adj Factor Scoring'!$E$3:$AH$3,0)-1),MATCH(U$2&\" Score\",'C. PoC Adj Factor Scoring'!$E$4:$J$4,0),TRUE)","v":1},{"$f":"VLOOKUP(OFFSET($B:$B,,MATCH(V$4,$B$4:$F$4,0)-1),OFFSET('C. PoC Adj Factor Scoring'!$E$5:$J$282,,MATCH(V$4,'C. PoC Adj Factor Scoring'!$E$3:$AH$3,0)-1),MATCH(V$2&\" Score\",'C. PoC Adj Factor Scoring'!$E$4:$J$4,0),TRUE)","v":1},{"$f":"VLOOKUP(OFFSET($B:$B,,MATCH(W$4,$B$4:$F$4,0)-1),OFFSET('C. PoC Adj Factor Scoring'!$E$5:$J$282,,MATCH(W$4,'C. PoC Adj Factor Scoring'!$E$3:$AH$3,0)-1),MATCH(W$2&\" Score\",'C. PoC Adj Factor Scoring'!$E$4:$J$4,0),TRUE)","v":1},{"$f":"VLOOKUP(OFFSET($B:$B,,MATCH(X$4,$B$4:$F$4,0)-1),OFFSET('C. PoC Adj Factor Scoring'!$E$5:$J$282,,MATCH(X$4,'C. PoC Adj Factor Scoring'!$E$3:$AH$3,0)-1),MATCH(X$2&\" Score\",'C. PoC Adj Factor Scoring'!$E$4:$J$4,0),TRUE)","v":1},{"$f":"VLOOKUP(OFFSET($B:$B,,MATCH(Y$4,$B$4:$F$4,0)-1),OFFSET('C. PoC Adj Factor Scoring'!$E$5:$J$282,,MATCH(Y$4,'C. PoC Adj Factor Scoring'!$E$3:$AH$3,0)-1),MATCH(Y$2&\" Score\",'C. PoC Adj Factor Scoring'!$E$4:$J$4,0),TRUE)","v":1},{"$f":"VLOOKUP(OFFSET($B:$B,,MATCH(Z$4,$B$4:$F$4,0)-1),OFFSET('C. PoC Adj Factor Scoring'!$E$5:$J$282,,MATCH(Z$4,'C. PoC Adj Factor Scoring'!$E$3:$AH$3,0)-1),MATCH(Z$2&\" Score\",'C. PoC Adj Factor Scoring'!$E$4:$J$4,0),TRUE)","v":1},{"$f":"VLOOKUP(OFFSET($B:$B,,MATCH(AA$4,$B$4:$F$4,0)-1),OFFSET('C. PoC Adj Factor Scoring'!$E$5:$J$282,,MATCH(AA$4,'C. PoC Adj Factor Scoring'!$E$3:$AH$3,0)-1),MATCH(AA$2&\" Score\",'C. PoC Adj Factor Scoring'!$E$4:$J$4,0),TRUE)","v":3},{"$f":"VLOOKUP(OFFSET($B:$B,,MATCH(AB$4,$B$4:$F$4,0)-1),OFFSET('C. PoC Adj Factor Scoring'!$E$5:$J$282,,MATCH(AB$4,'C. PoC Adj Factor Scoring'!$E$3:$AH$3,0)-1),MATCH(AB$2&\" Score\",'C. PoC Adj Factor Scoring'!$E$4:$J$4,0),TRUE)","v":1},{"$f":"VLOOKUP(OFFSET($B:$B,,MATCH(AC$4,$B$4:$F$4,0)-1),OFFSET('C. PoC Adj Factor Scoring'!$E$5:$J$282,,MATCH(AC$4,'C. PoC Adj Factor Scoring'!$E$3:$AH$3,0)-1),MATCH(AC$2&\" Score\",'C. PoC Adj Factor Scoring'!$E$4:$J$4,0),TRUE)","v":1},{"$f":"VLOOKUP(OFFSET($B:$B,,MATCH(AD$4,$B$4:$F$4,0)-1),OFFSET('C. PoC Adj Factor Scoring'!$E$5:$J$282,,MATCH(AD$4,'C. PoC Adj Factor Scoring'!$E$3:$AH$3,0)-1),MATCH(AD$2&\" Score\",'C. PoC Adj Factor Scoring'!$E$4:$J$4,0),TRUE)","v":1},{"$f":"VLOOKUP(OFFSET($B:$B,,MATCH(AE$4,$B$4:$F$4,0)-1),OFFSET('C. PoC Adj Factor Scoring'!$E$5:$J$282,,MATCH(AE$4,'C. PoC Adj Factor Scoring'!$E$3:$AH$3,0)-1),MATCH(AE$2&\" Score\",'C. PoC Adj Factor Scoring'!$E$4:$J$4,0),TRUE)","v":1}]
[{"$f":"'A. Population Info'!A390","v":1000407283},{"$f":"'A. Population Info'!L390","v":"OIL"},{"$f":"'A. Population Info'!M390","v":0},{"$f":"'A. Population Info'!N390","v":0},{"$f":"'A. Population Info'!O390","v":0},{"$f":"'A. Population Info'!P390","v":0},{"$f":"VLOOKUP(OFFSET($B:$B,,MATCH(G$4,$B$4:$F$4,0)-1),OFFSET('C. PoC Adj Factor Scoring'!$E$5:$J$282,,MATCH(G$4,'C. PoC Adj Factor Scoring'!$E$3:$AH$3,0)-1),MATCH(G$2&\" Score\",'C. PoC Adj Factor Scoring'!$E$4:$J$4,0),TRUE)","v":4},{"$f":"VLOOKUP(OFFSET($B:$B,,MATCH(H$4,$B$4:$F$4,0)-1),OFFSET('C. PoC Adj Factor Scoring'!$E$5:$J$282,,MATCH(H$4,'C. PoC Adj Factor Scoring'!$E$3:$AH$3,0)-1),MATCH(H$2&\" Score\",'C. PoC Adj Factor Scoring'!$E$4:$J$4,0),TRUE)","v":1},{"$f":"VLOOKUP(OFFSET($B:$B,,MATCH(I$4,$B$4:$F$4,0)-1),OFFSET('C. PoC Adj Factor Scoring'!$E$5:$J$282,,MATCH(I$4,'C. PoC Adj Factor Scoring'!$E$3:$AH$3,0)-1),MATCH(I$2&\" Score\",'C. PoC Adj Factor Scoring'!$E$4:$J$4,0),TRUE)","v":1},{"$f":"VLOOKUP(OFFSET($B:$B,,MATCH(J$4,$B$4:$F$4,0)-1),OFFSET('C. PoC Adj Factor Scoring'!$E$5:$J$282,,MATCH(J$4,'C. PoC Adj Factor Scoring'!$E$3:$AH$3,0)-1),MATCH(J$2&\" Score\",'C. PoC Adj Factor Scoring'!$E$4:$J$4,0),TRUE)","v":1},{"$f":"VLOOKUP(OFFSET($B:$B,,MATCH(K$4,$B$4:$F$4,0)-1),OFFSET('C. PoC Adj Factor Scoring'!$E$5:$J$282,,MATCH(K$4,'C. PoC Adj Factor Scoring'!$E$3:$AH$3,0)-1),MATCH(K$2&\" Score\",'C. PoC Adj Factor Scoring'!$E$4:$J$4,0),TRUE)","v":1},{"$f":"VLOOKUP(OFFSET($B:$B,,MATCH(L$4,$B$4:$F$4,0)-1),OFFSET('C. PoC Adj Factor Scoring'!$E$5:$J$282,,MATCH(L$4,'C. PoC Adj Factor Scoring'!$E$3:$AH$3,0)-1),MATCH(L$2&\" Score\",'C. PoC Adj Factor Scoring'!$E$4:$J$4,0),TRUE)","v":1},{"$f":"VLOOKUP(OFFSET($B:$B,,MATCH(M$4,$B$4:$F$4,0)-1),OFFSET('C. PoC Adj Factor Scoring'!$E$5:$J$282,,MATCH(M$4,'C. PoC Adj Factor Scoring'!$E$3:$AH$3,0)-1),MATCH(M$2&\" Score\",'C. PoC Adj Factor Scoring'!$E$4:$J$4,0),TRUE)","v":1},{"$f":"VLOOKUP(OFFSET($B:$B,,MATCH(N$4,$B$4:$F$4,0)-1),OFFSET('C. PoC Adj Factor Scoring'!$E$5:$J$282,,MATCH(N$4,'C. PoC Adj Factor Scoring'!$E$3:$AH$3,0)-1),MATCH(N$2&\" Score\",'C. PoC Adj Factor Scoring'!$E$4:$J$4,0),TRUE)","v":1},{"$f":"VLOOKUP(OFFSET($B:$B,,MATCH(O$4,$B$4:$F$4,0)-1),OFFSET('C. PoC Adj Factor Scoring'!$E$5:$J$282,,MATCH(O$4,'C. PoC Adj Factor Scoring'!$E$3:$AH$3,0)-1),MATCH(O$2&\" Score\",'C. PoC Adj Factor Scoring'!$E$4:$J$4,0),TRUE)","v":1},{"$f":"VLOOKUP(OFFSET($B:$B,,MATCH(P$4,$B$4:$F$4,0)-1),OFFSET('C. PoC Adj Factor Scoring'!$E$5:$J$282,,MATCH(P$4,'C. PoC Adj Factor Scoring'!$E$3:$AH$3,0)-1),MATCH(P$2&\" Score\",'C. PoC Adj Factor Scoring'!$E$4:$J$4,0),TRUE)","v":1},{"$f":"VLOOKUP(OFFSET($B:$B,,MATCH(Q$4,$B$4:$F$4,0)-1),OFFSET('C. PoC Adj Factor Scoring'!$E$5:$J$282,,MATCH(Q$4,'C. PoC Adj Factor Scoring'!$E$3:$AH$3,0)-1),MATCH(Q$2&\" Score\",'C. PoC Adj Factor Scoring'!$E$4:$J$4,0),TRUE)","v":1},{"$f":"VLOOKUP(OFFSET($B:$B,,MATCH(R$4,$B$4:$F$4,0)-1),OFFSET('C. PoC Adj Factor Scoring'!$E$5:$J$282,,MATCH(R$4,'C. PoC Adj Factor Scoring'!$E$3:$AH$3,0)-1),MATCH(R$2&\" Score\",'C. PoC Adj Factor Scoring'!$E$4:$J$4,0),TRUE)","v":1},{"$f":"VLOOKUP(OFFSET($B:$B,,MATCH(S$4,$B$4:$F$4,0)-1),OFFSET('C. PoC Adj Factor Scoring'!$E$5:$J$282,,MATCH(S$4,'C. PoC Adj Factor Scoring'!$E$3:$AH$3,0)-1),MATCH(S$2&\" Score\",'C. PoC Adj Factor Scoring'!$E$4:$J$4,0),TRUE)","v":1},{"$f":"VLOOKUP(OFFSET($B:$B,,MATCH(T$4,$B$4:$F$4,0)-1),OFFSET('C. PoC Adj Factor Scoring'!$E$5:$J$282,,MATCH(T$4,'C. PoC Adj Factor Scoring'!$E$3:$AH$3,0)-1),MATCH(T$2&\" Score\",'C. PoC Adj Factor Scoring'!$E$4:$J$4,0),TRUE)","v":1},{"$f":"VLOOKUP(OFFSET($B:$B,,MATCH(U$4,$B$4:$F$4,0)-1),OFFSET('C. PoC Adj Factor Scoring'!$E$5:$J$282,,MATCH(U$4,'C. PoC Adj Factor Scoring'!$E$3:$AH$3,0)-1),MATCH(U$2&\" Score\",'C. PoC Adj Factor Scoring'!$E$4:$J$4,0),TRUE)","v":1},{"$f":"VLOOKUP(OFFSET($B:$B,,MATCH(V$4,$B$4:$F$4,0)-1),OFFSET('C. PoC Adj Factor Scoring'!$E$5:$J$282,,MATCH(V$4,'C. PoC Adj Factor Scoring'!$E$3:$AH$3,0)-1),MATCH(V$2&\" Score\",'C. PoC Adj Factor Scoring'!$E$4:$J$4,0),TRUE)","v":1},{"$f":"VLOOKUP(OFFSET($B:$B,,MATCH(W$4,$B$4:$F$4,0)-1),OFFSET('C. PoC Adj Factor Scoring'!$E$5:$J$282,,MATCH(W$4,'C. PoC Adj Factor Scoring'!$E$3:$AH$3,0)-1),MATCH(W$2&\" Score\",'C. PoC Adj Factor Scoring'!$E$4:$J$4,0),TRUE)","v":1},{"$f":"VLOOKUP(OFFSET($B:$B,,MATCH(X$4,$B$4:$F$4,0)-1),OFFSET('C. PoC Adj Factor Scoring'!$E$5:$J$282,,MATCH(X$4,'C. PoC Adj Factor Scoring'!$E$3:$AH$3,0)-1),MATCH(X$2&\" Score\",'C. PoC Adj Factor Scoring'!$E$4:$J$4,0),TRUE)","v":1},{"$f":"VLOOKUP(OFFSET($B:$B,,MATCH(Y$4,$B$4:$F$4,0)-1),OFFSET('C. PoC Adj Factor Scoring'!$E$5:$J$282,,MATCH(Y$4,'C. PoC Adj Factor Scoring'!$E$3:$AH$3,0)-1),MATCH(Y$2&\" Score\",'C. PoC Adj Factor Scoring'!$E$4:$J$4,0),TRUE)","v":1},{"$f":"VLOOKUP(OFFSET($B:$B,,MATCH(Z$4,$B$4:$F$4,0)-1),OFFSET('C. PoC Adj Factor Scoring'!$E$5:$J$282,,MATCH(Z$4,'C. PoC Adj Factor Scoring'!$E$3:$AH$3,0)-1),MATCH(Z$2&\" Score\",'C. PoC Adj Factor Scoring'!$E$4:$J$4,0),TRUE)","v":1},{"$f":"VLOOKUP(OFFSET($B:$B,,MATCH(AA$4,$B$4:$F$4,0)-1),OFFSET('C. PoC Adj Factor Scoring'!$E$5:$J$282,,MATCH(AA$4,'C. PoC Adj Factor Scoring'!$E$3:$AH$3,0)-1),MATCH(AA$2&\" Score\",'C. PoC Adj Factor Scoring'!$E$4:$J$4,0),TRUE)","v":3},{"$f":"VLOOKUP(OFFSET($B:$B,,MATCH(AB$4,$B$4:$F$4,0)-1),OFFSET('C. PoC Adj Factor Scoring'!$E$5:$J$282,,MATCH(AB$4,'C. PoC Adj Factor Scoring'!$E$3:$AH$3,0)-1),MATCH(AB$2&\" Score\",'C. PoC Adj Factor Scoring'!$E$4:$J$4,0),TRUE)","v":1},{"$f":"VLOOKUP(OFFSET($B:$B,,MATCH(AC$4,$B$4:$F$4,0)-1),OFFSET('C. PoC Adj Factor Scoring'!$E$5:$J$282,,MATCH(AC$4,'C. PoC Adj Factor Scoring'!$E$3:$AH$3,0)-1),MATCH(AC$2&\" Score\",'C. PoC Adj Factor Scoring'!$E$4:$J$4,0),TRUE)","v":1},{"$f":"VLOOKUP(OFFSET($B:$B,,MATCH(AD$4,$B$4:$F$4,0)-1),OFFSET('C. PoC Adj Factor Scoring'!$E$5:$J$282,,MATCH(AD$4,'C. PoC Adj Factor Scoring'!$E$3:$AH$3,0)-1),MATCH(AD$2&\" Score\",'C. PoC Adj Factor Scoring'!$E$4:$J$4,0),TRUE)","v":1},{"$f":"VLOOKUP(OFFSET($B:$B,,MATCH(AE$4,$B$4:$F$4,0)-1),OFFSET('C. PoC Adj Factor Scoring'!$E$5:$J$282,,MATCH(AE$4,'C. PoC Adj Factor Scoring'!$E$3:$AH$3,0)-1),MATCH(AE$2&\" Score\",'C. PoC Adj Factor Scoring'!$E$4:$J$4,0),TRUE)","v":1}]
[{"$f":"'A. Population Info'!A391","v":1000407304},{"$f":"'A. Population Info'!L391","v":"OIL"},{"$f":"'A. Population Info'!M391","v":0},{"$f":"'A. Population Info'!N391","v":0},{"$f":"'A. Population Info'!O391","v":0},{"$f":"'A. Population Info'!P391","v":0},{"$f":"VLOOKUP(OFFSET($B:$B,,MATCH(G$4,$B$4:$F$4,0)-1),OFFSET('C. PoC Adj Factor Scoring'!$E$5:$J$282,,MATCH(G$4,'C. PoC Adj Factor Scoring'!$E$3:$AH$3,0)-1),MATCH(G$2&\" Score\",'C. PoC Adj Factor Scoring'!$E$4:$J$4,0),TRUE)","v":4},{"$f":"VLOOKUP(OFFSET($B:$B,,MATCH(H$4,$B$4:$F$4,0)-1),OFFSET('C. PoC Adj Factor Scoring'!$E$5:$J$282,,MATCH(H$4,'C. PoC Adj Factor Scoring'!$E$3:$AH$3,0)-1),MATCH(H$2&\" Score\",'C. PoC Adj Factor Scoring'!$E$4:$J$4,0),TRUE)","v":1},{"$f":"VLOOKUP(OFFSET($B:$B,,MATCH(I$4,$B$4:$F$4,0)-1),OFFSET('C. PoC Adj Factor Scoring'!$E$5:$J$282,,MATCH(I$4,'C. PoC Adj Factor Scoring'!$E$3:$AH$3,0)-1),MATCH(I$2&\" Score\",'C. PoC Adj Factor Scoring'!$E$4:$J$4,0),TRUE)","v":1},{"$f":"VLOOKUP(OFFSET($B:$B,,MATCH(J$4,$B$4:$F$4,0)-1),OFFSET('C. PoC Adj Factor Scoring'!$E$5:$J$282,,MATCH(J$4,'C. PoC Adj Factor Scoring'!$E$3:$AH$3,0)-1),MATCH(J$2&\" Score\",'C. PoC Adj Factor Scoring'!$E$4:$J$4,0),TRUE)","v":1},{"$f":"VLOOKUP(OFFSET($B:$B,,MATCH(K$4,$B$4:$F$4,0)-1),OFFSET('C. PoC Adj Factor Scoring'!$E$5:$J$282,,MATCH(K$4,'C. PoC Adj Factor Scoring'!$E$3:$AH$3,0)-1),MATCH(K$2&\" Score\",'C. PoC Adj Factor Scoring'!$E$4:$J$4,0),TRUE)","v":1},{"$f":"VLOOKUP(OFFSET($B:$B,,MATCH(L$4,$B$4:$F$4,0)-1),OFFSET('C. PoC Adj Factor Scoring'!$E$5:$J$282,,MATCH(L$4,'C. PoC Adj Factor Scoring'!$E$3:$AH$3,0)-1),MATCH(L$2&\" Score\",'C. PoC Adj Factor Scoring'!$E$4:$J$4,0),TRUE)","v":1},{"$f":"VLOOKUP(OFFSET($B:$B,,MATCH(M$4,$B$4:$F$4,0)-1),OFFSET('C. PoC Adj Factor Scoring'!$E$5:$J$282,,MATCH(M$4,'C. PoC Adj Factor Scoring'!$E$3:$AH$3,0)-1),MATCH(M$2&\" Score\",'C. PoC Adj Factor Scoring'!$E$4:$J$4,0),TRUE)","v":1},{"$f":"VLOOKUP(OFFSET($B:$B,,MATCH(N$4,$B$4:$F$4,0)-1),OFFSET('C. PoC Adj Factor Scoring'!$E$5:$J$282,,MATCH(N$4,'C. PoC Adj Factor Scoring'!$E$3:$AH$3,0)-1),MATCH(N$2&\" Score\",'C. PoC Adj Factor Scoring'!$E$4:$J$4,0),TRUE)","v":1},{"$f":"VLOOKUP(OFFSET($B:$B,,MATCH(O$4,$B$4:$F$4,0)-1),OFFSET('C. PoC Adj Factor Scoring'!$E$5:$J$282,,MATCH(O$4,'C. PoC Adj Factor Scoring'!$E$3:$AH$3,0)-1),MATCH(O$2&\" Score\",'C. PoC Adj Factor Scoring'!$E$4:$J$4,0),TRUE)","v":1},{"$f":"VLOOKUP(OFFSET($B:$B,,MATCH(P$4,$B$4:$F$4,0)-1),OFFSET('C. PoC Adj Factor Scoring'!$E$5:$J$282,,MATCH(P$4,'C. PoC Adj Factor Scoring'!$E$3:$AH$3,0)-1),MATCH(P$2&\" Score\",'C. PoC Adj Factor Scoring'!$E$4:$J$4,0),TRUE)","v":1},{"$f":"VLOOKUP(OFFSET($B:$B,,MATCH(Q$4,$B$4:$F$4,0)-1),OFFSET('C. PoC Adj Factor Scoring'!$E$5:$J$282,,MATCH(Q$4,'C. PoC Adj Factor Scoring'!$E$3:$AH$3,0)-1),MATCH(Q$2&\" Score\",'C. PoC Adj Factor Scoring'!$E$4:$J$4,0),TRUE)","v":1},{"$f":"VLOOKUP(OFFSET($B:$B,,MATCH(R$4,$B$4:$F$4,0)-1),OFFSET('C. PoC Adj Factor Scoring'!$E$5:$J$282,,MATCH(R$4,'C. PoC Adj Factor Scoring'!$E$3:$AH$3,0)-1),MATCH(R$2&\" Score\",'C. PoC Adj Factor Scoring'!$E$4:$J$4,0),TRUE)","v":1},{"$f":"VLOOKUP(OFFSET($B:$B,,MATCH(S$4,$B$4:$F$4,0)-1),OFFSET('C. PoC Adj Factor Scoring'!$E$5:$J$282,,MATCH(S$4,'C. PoC Adj Factor Scoring'!$E$3:$AH$3,0)-1),MATCH(S$2&\" Score\",'C. PoC Adj Factor Scoring'!$E$4:$J$4,0),TRUE)","v":1},{"$f":"VLOOKUP(OFFSET($B:$B,,MATCH(T$4,$B$4:$F$4,0)-1),OFFSET('C. PoC Adj Factor Scoring'!$E$5:$J$282,,MATCH(T$4,'C. PoC Adj Factor Scoring'!$E$3:$AH$3,0)-1),MATCH(T$2&\" Score\",'C. PoC Adj Factor Scoring'!$E$4:$J$4,0),TRUE)","v":1},{"$f":"VLOOKUP(OFFSET($B:$B,,MATCH(U$4,$B$4:$F$4,0)-1),OFFSET('C. PoC Adj Factor Scoring'!$E$5:$J$282,,MATCH(U$4,'C. PoC Adj Factor Scoring'!$E$3:$AH$3,0)-1),MATCH(U$2&\" Score\",'C. PoC Adj Factor Scoring'!$E$4:$J$4,0),TRUE)","v":1},{"$f":"VLOOKUP(OFFSET($B:$B,,MATCH(V$4,$B$4:$F$4,0)-1),OFFSET('C. PoC Adj Factor Scoring'!$E$5:$J$282,,MATCH(V$4,'C. PoC Adj Factor Scoring'!$E$3:$AH$3,0)-1),MATCH(V$2&\" Score\",'C. PoC Adj Factor Scoring'!$E$4:$J$4,0),TRUE)","v":1},{"$f":"VLOOKUP(OFFSET($B:$B,,MATCH(W$4,$B$4:$F$4,0)-1),OFFSET('C. PoC Adj Factor Scoring'!$E$5:$J$282,,MATCH(W$4,'C. PoC Adj Factor Scoring'!$E$3:$AH$3,0)-1),MATCH(W$2&\" Score\",'C. PoC Adj Factor Scoring'!$E$4:$J$4,0),TRUE)","v":1},{"$f":"VLOOKUP(OFFSET($B:$B,,MATCH(X$4,$B$4:$F$4,0)-1),OFFSET('C. PoC Adj Factor Scoring'!$E$5:$J$282,,MATCH(X$4,'C. PoC Adj Factor Scoring'!$E$3:$AH$3,0)-1),MATCH(X$2&\" Score\",'C. PoC Adj Factor Scoring'!$E$4:$J$4,0),TRUE)","v":1},{"$f":"VLOOKUP(OFFSET($B:$B,,MATCH(Y$4,$B$4:$F$4,0)-1),OFFSET('C. PoC Adj Factor Scoring'!$E$5:$J$282,,MATCH(Y$4,'C. PoC Adj Factor Scoring'!$E$3:$AH$3,0)-1),MATCH(Y$2&\" Score\",'C. PoC Adj Factor Scoring'!$E$4:$J$4,0),TRUE)","v":1},{"$f":"VLOOKUP(OFFSET($B:$B,,MATCH(Z$4,$B$4:$F$4,0)-1),OFFSET('C. PoC Adj Factor Scoring'!$E$5:$J$282,,MATCH(Z$4,'C. PoC Adj Factor Scoring'!$E$3:$AH$3,0)-1),MATCH(Z$2&\" Score\",'C. PoC Adj Factor Scoring'!$E$4:$J$4,0),TRUE)","v":1},{"$f":"VLOOKUP(OFFSET($B:$B,,MATCH(AA$4,$B$4:$F$4,0)-1),OFFSET('C. PoC Adj Factor Scoring'!$E$5:$J$282,,MATCH(AA$4,'C. PoC Adj Factor Scoring'!$E$3:$AH$3,0)-1),MATCH(AA$2&\" Score\",'C. PoC Adj Factor Scoring'!$E$4:$J$4,0),TRUE)","v":3},{"$f":"VLOOKUP(OFFSET($B:$B,,MATCH(AB$4,$B$4:$F$4,0)-1),OFFSET('C. PoC Adj Factor Scoring'!$E$5:$J$282,,MATCH(AB$4,'C. PoC Adj Factor Scoring'!$E$3:$AH$3,0)-1),MATCH(AB$2&\" Score\",'C. PoC Adj Factor Scoring'!$E$4:$J$4,0),TRUE)","v":1},{"$f":"VLOOKUP(OFFSET($B:$B,,MATCH(AC$4,$B$4:$F$4,0)-1),OFFSET('C. PoC Adj Factor Scoring'!$E$5:$J$282,,MATCH(AC$4,'C. PoC Adj Factor Scoring'!$E$3:$AH$3,0)-1),MATCH(AC$2&\" Score\",'C. PoC Adj Factor Scoring'!$E$4:$J$4,0),TRUE)","v":1},{"$f":"VLOOKUP(OFFSET($B:$B,,MATCH(AD$4,$B$4:$F$4,0)-1),OFFSET('C. PoC Adj Factor Scoring'!$E$5:$J$282,,MATCH(AD$4,'C. PoC Adj Factor Scoring'!$E$3:$AH$3,0)-1),MATCH(AD$2&\" Score\",'C. PoC Adj Factor Scoring'!$E$4:$J$4,0),TRUE)","v":1},{"$f":"VLOOKUP(OFFSET($B:$B,,MATCH(AE$4,$B$4:$F$4,0)-1),OFFSET('C. PoC Adj Factor Scoring'!$E$5:$J$282,,MATCH(AE$4,'C. PoC Adj Factor Scoring'!$E$3:$AH$3,0)-1),MATCH(AE$2&\" Score\",'C. PoC Adj Factor Scoring'!$E$4:$J$4,0),TRUE)","v":1}]
[{"$f":"'A. Population Info'!A392","v":1000407324},{"$f":"'A. Population Info'!L392","v":"OIL"},{"$f":"'A. Population Info'!M392","v":0},{"$f":"'A. Population Info'!N392","v":0},{"$f":"'A. Population Info'!O392","v":0},{"$f":"'A. Population Info'!P392","v":0},{"$f":"VLOOKUP(OFFSET($B:$B,,MATCH(G$4,$B$4:$F$4,0)-1),OFFSET('C. PoC Adj Factor Scoring'!$E$5:$J$282,,MATCH(G$4,'C. PoC Adj Factor Scoring'!$E$3:$AH$3,0)-1),MATCH(G$2&\" Score\",'C. PoC Adj Factor Scoring'!$E$4:$J$4,0),TRUE)","v":4},{"$f":"VLOOKUP(OFFSET($B:$B,,MATCH(H$4,$B$4:$F$4,0)-1),OFFSET('C. PoC Adj Factor Scoring'!$E$5:$J$282,,MATCH(H$4,'C. PoC Adj Factor Scoring'!$E$3:$AH$3,0)-1),MATCH(H$2&\" Score\",'C. PoC Adj Factor Scoring'!$E$4:$J$4,0),TRUE)","v":1},{"$f":"VLOOKUP(OFFSET($B:$B,,MATCH(I$4,$B$4:$F$4,0)-1),OFFSET('C. PoC Adj Factor Scoring'!$E$5:$J$282,,MATCH(I$4,'C. PoC Adj Factor Scoring'!$E$3:$AH$3,0)-1),MATCH(I$2&\" Score\",'C. PoC Adj Factor Scoring'!$E$4:$J$4,0),TRUE)","v":1},{"$f":"VLOOKUP(OFFSET($B:$B,,MATCH(J$4,$B$4:$F$4,0)-1),OFFSET('C. PoC Adj Factor Scoring'!$E$5:$J$282,,MATCH(J$4,'C. PoC Adj Factor Scoring'!$E$3:$AH$3,0)-1),MATCH(J$2&\" Score\",'C. PoC Adj Factor Scoring'!$E$4:$J$4,0),TRUE)","v":1},{"$f":"VLOOKUP(OFFSET($B:$B,,MATCH(K$4,$B$4:$F$4,0)-1),OFFSET('C. PoC Adj Factor Scoring'!$E$5:$J$282,,MATCH(K$4,'C. PoC Adj Factor Scoring'!$E$3:$AH$3,0)-1),MATCH(K$2&\" Score\",'C. PoC Adj Factor Scoring'!$E$4:$J$4,0),TRUE)","v":1},{"$f":"VLOOKUP(OFFSET($B:$B,,MATCH(L$4,$B$4:$F$4,0)-1),OFFSET('C. PoC Adj Factor Scoring'!$E$5:$J$282,,MATCH(L$4,'C. PoC Adj Factor Scoring'!$E$3:$AH$3,0)-1),MATCH(L$2&\" Score\",'C. PoC Adj Factor Scoring'!$E$4:$J$4,0),TRUE)","v":1},{"$f":"VLOOKUP(OFFSET($B:$B,,MATCH(M$4,$B$4:$F$4,0)-1),OFFSET('C. PoC Adj Factor Scoring'!$E$5:$J$282,,MATCH(M$4,'C. PoC Adj Factor Scoring'!$E$3:$AH$3,0)-1),MATCH(M$2&\" Score\",'C. PoC Adj Factor Scoring'!$E$4:$J$4,0),TRUE)","v":1},{"$f":"VLOOKUP(OFFSET($B:$B,,MATCH(N$4,$B$4:$F$4,0)-1),OFFSET('C. PoC Adj Factor Scoring'!$E$5:$J$282,,MATCH(N$4,'C. PoC Adj Factor Scoring'!$E$3:$AH$3,0)-1),MATCH(N$2&\" Score\",'C. PoC Adj Factor Scoring'!$E$4:$J$4,0),TRUE)","v":1},{"$f":"VLOOKUP(OFFSET($B:$B,,MATCH(O$4,$B$4:$F$4,0)-1),OFFSET('C. PoC Adj Factor Scoring'!$E$5:$J$282,,MATCH(O$4,'C. PoC Adj Factor Scoring'!$E$3:$AH$3,0)-1),MATCH(O$2&\" Score\",'C. PoC Adj Factor Scoring'!$E$4:$J$4,0),TRUE)","v":1},{"$f":"VLOOKUP(OFFSET($B:$B,,MATCH(P$4,$B$4:$F$4,0)-1),OFFSET('C. PoC Adj Factor Scoring'!$E$5:$J$282,,MATCH(P$4,'C. PoC Adj Factor Scoring'!$E$3:$AH$3,0)-1),MATCH(P$2&\" Score\",'C. PoC Adj Factor Scoring'!$E$4:$J$4,0),TRUE)","v":1},{"$f":"VLOOKUP(OFFSET($B:$B,,MATCH(Q$4,$B$4:$F$4,0)-1),OFFSET('C. PoC Adj Factor Scoring'!$E$5:$J$282,,MATCH(Q$4,'C. PoC Adj Factor Scoring'!$E$3:$AH$3,0)-1),MATCH(Q$2&\" Score\",'C. PoC Adj Factor Scoring'!$E$4:$J$4,0),TRUE)","v":1},{"$f":"VLOOKUP(OFFSET($B:$B,,MATCH(R$4,$B$4:$F$4,0)-1),OFFSET('C. PoC Adj Factor Scoring'!$E$5:$J$282,,MATCH(R$4,'C. PoC Adj Factor Scoring'!$E$3:$AH$3,0)-1),MATCH(R$2&\" Score\",'C. PoC Adj Factor Scoring'!$E$4:$J$4,0),TRUE)","v":1},{"$f":"VLOOKUP(OFFSET($B:$B,,MATCH(S$4,$B$4:$F$4,0)-1),OFFSET('C. PoC Adj Factor Scoring'!$E$5:$J$282,,MATCH(S$4,'C. PoC Adj Factor Scoring'!$E$3:$AH$3,0)-1),MATCH(S$2&\" Score\",'C. PoC Adj Factor Scoring'!$E$4:$J$4,0),TRUE)","v":1},{"$f":"VLOOKUP(OFFSET($B:$B,,MATCH(T$4,$B$4:$F$4,0)-1),OFFSET('C. PoC Adj Factor Scoring'!$E$5:$J$282,,MATCH(T$4,'C. PoC Adj Factor Scoring'!$E$3:$AH$3,0)-1),MATCH(T$2&\" Score\",'C. PoC Adj Factor Scoring'!$E$4:$J$4,0),TRUE)","v":1},{"$f":"VLOOKUP(OFFSET($B:$B,,MATCH(U$4,$B$4:$F$4,0)-1),OFFSET('C. PoC Adj Factor Scoring'!$E$5:$J$282,,MATCH(U$4,'C. PoC Adj Factor Scoring'!$E$3:$AH$3,0)-1),MATCH(U$2&\" Score\",'C. PoC Adj Factor Scoring'!$E$4:$J$4,0),TRUE)","v":1},{"$f":"VLOOKUP(OFFSET($B:$B,,MATCH(V$4,$B$4:$F$4,0)-1),OFFSET('C. PoC Adj Factor Scoring'!$E$5:$J$282,,MATCH(V$4,'C. PoC Adj Factor Scoring'!$E$3:$AH$3,0)-1),MATCH(V$2&\" Score\",'C. PoC Adj Factor Scoring'!$E$4:$J$4,0),TRUE)","v":1},{"$f":"VLOOKUP(OFFSET($B:$B,,MATCH(W$4,$B$4:$F$4,0)-1),OFFSET('C. PoC Adj Factor Scoring'!$E$5:$J$282,,MATCH(W$4,'C. PoC Adj Factor Scoring'!$E$3:$AH$3,0)-1),MATCH(W$2&\" Score\",'C. PoC Adj Factor Scoring'!$E$4:$J$4,0),TRUE)","v":1},{"$f":"VLOOKUP(OFFSET($B:$B,,MATCH(X$4,$B$4:$F$4,0)-1),OFFSET('C. PoC Adj Factor Scoring'!$E$5:$J$282,,MATCH(X$4,'C. PoC Adj Factor Scoring'!$E$3:$AH$3,0)-1),MATCH(X$2&\" Score\",'C. PoC Adj Factor Scoring'!$E$4:$J$4,0),TRUE)","v":1},{"$f":"VLOOKUP(OFFSET($B:$B,,MATCH(Y$4,$B$4:$F$4,0)-1),OFFSET('C. PoC Adj Factor Scoring'!$E$5:$J$282,,MATCH(Y$4,'C. PoC Adj Factor Scoring'!$E$3:$AH$3,0)-1),MATCH(Y$2&\" Score\",'C. PoC Adj Factor Scoring'!$E$4:$J$4,0),TRUE)","v":1},{"$f":"VLOOKUP(OFFSET($B:$B,,MATCH(Z$4,$B$4:$F$4,0)-1),OFFSET('C. PoC Adj Factor Scoring'!$E$5:$J$282,,MATCH(Z$4,'C. PoC Adj Factor Scoring'!$E$3:$AH$3,0)-1),MATCH(Z$2&\" Score\",'C. PoC Adj Factor Scoring'!$E$4:$J$4,0),TRUE)","v":1},{"$f":"VLOOKUP(OFFSET($B:$B,,MATCH(AA$4,$B$4:$F$4,0)-1),OFFSET('C. PoC Adj Factor Scoring'!$E$5:$J$282,,MATCH(AA$4,'C. PoC Adj Factor Scoring'!$E$3:$AH$3,0)-1),MATCH(AA$2&\" Score\",'C. PoC Adj Factor Scoring'!$E$4:$J$4,0),TRUE)","v":3},{"$f":"VLOOKUP(OFFSET($B:$B,,MATCH(AB$4,$B$4:$F$4,0)-1),OFFSET('C. PoC Adj Factor Scoring'!$E$5:$J$282,,MATCH(AB$4,'C. PoC Adj Factor Scoring'!$E$3:$AH$3,0)-1),MATCH(AB$2&\" Score\",'C. PoC Adj Factor Scoring'!$E$4:$J$4,0),TRUE)","v":1},{"$f":"VLOOKUP(OFFSET($B:$B,,MATCH(AC$4,$B$4:$F$4,0)-1),OFFSET('C. PoC Adj Factor Scoring'!$E$5:$J$282,,MATCH(AC$4,'C. PoC Adj Factor Scoring'!$E$3:$AH$3,0)-1),MATCH(AC$2&\" Score\",'C. PoC Adj Factor Scoring'!$E$4:$J$4,0),TRUE)","v":1},{"$f":"VLOOKUP(OFFSET($B:$B,,MATCH(AD$4,$B$4:$F$4,0)-1),OFFSET('C. PoC Adj Factor Scoring'!$E$5:$J$282,,MATCH(AD$4,'C. PoC Adj Factor Scoring'!$E$3:$AH$3,0)-1),MATCH(AD$2&\" Score\",'C. PoC Adj Factor Scoring'!$E$4:$J$4,0),TRUE)","v":1},{"$f":"VLOOKUP(OFFSET($B:$B,,MATCH(AE$4,$B$4:$F$4,0)-1),OFFSET('C. PoC Adj Factor Scoring'!$E$5:$J$282,,MATCH(AE$4,'C. PoC Adj Factor Scoring'!$E$3:$AH$3,0)-1),MATCH(AE$2&\" Score\",'C. PoC Adj Factor Scoring'!$E$4:$J$4,0),TRUE)","v":1}]
[{"$f":"'A. Population Info'!A393","v":1000407363},{"$f":"'A. Population Info'!L393","v":"OIL"},{"$f":"'A. Population Info'!M393","v":0},{"$f":"'A. Population Info'!N393","v":0},{"$f":"'A. Population Info'!O393","v":0},{"$f":"'A. Population Info'!P393","v":0},{"$f":"VLOOKUP(OFFSET($B:$B,,MATCH(G$4,$B$4:$F$4,0)-1),OFFSET('C. PoC Adj Factor Scoring'!$E$5:$J$282,,MATCH(G$4,'C. PoC Adj Factor Scoring'!$E$3:$AH$3,0)-1),MATCH(G$2&\" Score\",'C. PoC Adj Factor Scoring'!$E$4:$J$4,0),TRUE)","v":4},{"$f":"VLOOKUP(OFFSET($B:$B,,MATCH(H$4,$B$4:$F$4,0)-1),OFFSET('C. PoC Adj Factor Scoring'!$E$5:$J$282,,MATCH(H$4,'C. PoC Adj Factor Scoring'!$E$3:$AH$3,0)-1),MATCH(H$2&\" Score\",'C. PoC Adj Factor Scoring'!$E$4:$J$4,0),TRUE)","v":1},{"$f":"VLOOKUP(OFFSET($B:$B,,MATCH(I$4,$B$4:$F$4,0)-1),OFFSET('C. PoC Adj Factor Scoring'!$E$5:$J$282,,MATCH(I$4,'C. PoC Adj Factor Scoring'!$E$3:$AH$3,0)-1),MATCH(I$2&\" Score\",'C. PoC Adj Factor Scoring'!$E$4:$J$4,0),TRUE)","v":1},{"$f":"VLOOKUP(OFFSET($B:$B,,MATCH(J$4,$B$4:$F$4,0)-1),OFFSET('C. PoC Adj Factor Scoring'!$E$5:$J$282,,MATCH(J$4,'C. PoC Adj Factor Scoring'!$E$3:$AH$3,0)-1),MATCH(J$2&\" Score\",'C. PoC Adj Factor Scoring'!$E$4:$J$4,0),TRUE)","v":1},{"$f":"VLOOKUP(OFFSET($B:$B,,MATCH(K$4,$B$4:$F$4,0)-1),OFFSET('C. PoC Adj Factor Scoring'!$E$5:$J$282,,MATCH(K$4,'C. PoC Adj Factor Scoring'!$E$3:$AH$3,0)-1),MATCH(K$2&\" Score\",'C. PoC Adj Factor Scoring'!$E$4:$J$4,0),TRUE)","v":1},{"$f":"VLOOKUP(OFFSET($B:$B,,MATCH(L$4,$B$4:$F$4,0)-1),OFFSET('C. PoC Adj Factor Scoring'!$E$5:$J$282,,MATCH(L$4,'C. PoC Adj Factor Scoring'!$E$3:$AH$3,0)-1),MATCH(L$2&\" Score\",'C. PoC Adj Factor Scoring'!$E$4:$J$4,0),TRUE)","v":1},{"$f":"VLOOKUP(OFFSET($B:$B,,MATCH(M$4,$B$4:$F$4,0)-1),OFFSET('C. PoC Adj Factor Scoring'!$E$5:$J$282,,MATCH(M$4,'C. PoC Adj Factor Scoring'!$E$3:$AH$3,0)-1),MATCH(M$2&\" Score\",'C. PoC Adj Factor Scoring'!$E$4:$J$4,0),TRUE)","v":1},{"$f":"VLOOKUP(OFFSET($B:$B,,MATCH(N$4,$B$4:$F$4,0)-1),OFFSET('C. PoC Adj Factor Scoring'!$E$5:$J$282,,MATCH(N$4,'C. PoC Adj Factor Scoring'!$E$3:$AH$3,0)-1),MATCH(N$2&\" Score\",'C. PoC Adj Factor Scoring'!$E$4:$J$4,0),TRUE)","v":1},{"$f":"VLOOKUP(OFFSET($B:$B,,MATCH(O$4,$B$4:$F$4,0)-1),OFFSET('C. PoC Adj Factor Scoring'!$E$5:$J$282,,MATCH(O$4,'C. PoC Adj Factor Scoring'!$E$3:$AH$3,0)-1),MATCH(O$2&\" Score\",'C. PoC Adj Factor Scoring'!$E$4:$J$4,0),TRUE)","v":1},{"$f":"VLOOKUP(OFFSET($B:$B,,MATCH(P$4,$B$4:$F$4,0)-1),OFFSET('C. PoC Adj Factor Scoring'!$E$5:$J$282,,MATCH(P$4,'C. PoC Adj Factor Scoring'!$E$3:$AH$3,0)-1),MATCH(P$2&\" Score\",'C. PoC Adj Factor Scoring'!$E$4:$J$4,0),TRUE)","v":1},{"$f":"VLOOKUP(OFFSET($B:$B,,MATCH(Q$4,$B$4:$F$4,0)-1),OFFSET('C. PoC Adj Factor Scoring'!$E$5:$J$282,,MATCH(Q$4,'C. PoC Adj Factor Scoring'!$E$3:$AH$3,0)-1),MATCH(Q$2&\" Score\",'C. PoC Adj Factor Scoring'!$E$4:$J$4,0),TRUE)","v":1},{"$f":"VLOOKUP(OFFSET($B:$B,,MATCH(R$4,$B$4:$F$4,0)-1),OFFSET('C. PoC Adj Factor Scoring'!$E$5:$J$282,,MATCH(R$4,'C. PoC Adj Factor Scoring'!$E$3:$AH$3,0)-1),MATCH(R$2&\" Score\",'C. PoC Adj Factor Scoring'!$E$4:$J$4,0),TRUE)","v":1},{"$f":"VLOOKUP(OFFSET($B:$B,,MATCH(S$4,$B$4:$F$4,0)-1),OFFSET('C. PoC Adj Factor Scoring'!$E$5:$J$282,,MATCH(S$4,'C. PoC Adj Factor Scoring'!$E$3:$AH$3,0)-1),MATCH(S$2&\" Score\",'C. PoC Adj Factor Scoring'!$E$4:$J$4,0),TRUE)","v":1},{"$f":"VLOOKUP(OFFSET($B:$B,,MATCH(T$4,$B$4:$F$4,0)-1),OFFSET('C. PoC Adj Factor Scoring'!$E$5:$J$282,,MATCH(T$4,'C. PoC Adj Factor Scoring'!$E$3:$AH$3,0)-1),MATCH(T$2&\" Score\",'C. PoC Adj Factor Scoring'!$E$4:$J$4,0),TRUE)","v":1},{"$f":"VLOOKUP(OFFSET($B:$B,,MATCH(U$4,$B$4:$F$4,0)-1),OFFSET('C. PoC Adj Factor Scoring'!$E$5:$J$282,,MATCH(U$4,'C. PoC Adj Factor Scoring'!$E$3:$AH$3,0)-1),MATCH(U$2&\" Score\",'C. PoC Adj Factor Scoring'!$E$4:$J$4,0),TRUE)","v":1},{"$f":"VLOOKUP(OFFSET($B:$B,,MATCH(V$4,$B$4:$F$4,0)-1),OFFSET('C. PoC Adj Factor Scoring'!$E$5:$J$282,,MATCH(V$4,'C. PoC Adj Factor Scoring'!$E$3:$AH$3,0)-1),MATCH(V$2&\" Score\",'C. PoC Adj Factor Scoring'!$E$4:$J$4,0),TRUE)","v":1},{"$f":"VLOOKUP(OFFSET($B:$B,,MATCH(W$4,$B$4:$F$4,0)-1),OFFSET('C. PoC Adj Factor Scoring'!$E$5:$J$282,,MATCH(W$4,'C. PoC Adj Factor Scoring'!$E$3:$AH$3,0)-1),MATCH(W$2&\" Score\",'C. PoC Adj Factor Scoring'!$E$4:$J$4,0),TRUE)","v":1},{"$f":"VLOOKUP(OFFSET($B:$B,,MATCH(X$4,$B$4:$F$4,0)-1),OFFSET('C. PoC Adj Factor Scoring'!$E$5:$J$282,,MATCH(X$4,'C. PoC Adj Factor Scoring'!$E$3:$AH$3,0)-1),MATCH(X$2&\" Score\",'C. PoC Adj Factor Scoring'!$E$4:$J$4,0),TRUE)","v":1},{"$f":"VLOOKUP(OFFSET($B:$B,,MATCH(Y$4,$B$4:$F$4,0)-1),OFFSET('C. PoC Adj Factor Scoring'!$E$5:$J$282,,MATCH(Y$4,'C. PoC Adj Factor Scoring'!$E$3:$AH$3,0)-1),MATCH(Y$2&\" Score\",'C. PoC Adj Factor Scoring'!$E$4:$J$4,0),TRUE)","v":1},{"$f":"VLOOKUP(OFFSET($B:$B,,MATCH(Z$4,$B$4:$F$4,0)-1),OFFSET('C. PoC Adj Factor Scoring'!$E$5:$J$282,,MATCH(Z$4,'C. PoC Adj Factor Scoring'!$E$3:$AH$3,0)-1),MATCH(Z$2&\" Score\",'C. PoC Adj Factor Scoring'!$E$4:$J$4,0),TRUE)","v":1},{"$f":"VLOOKUP(OFFSET($B:$B,,MATCH(AA$4,$B$4:$F$4,0)-1),OFFSET('C. PoC Adj Factor Scoring'!$E$5:$J$282,,MATCH(AA$4,'C. PoC Adj Factor Scoring'!$E$3:$AH$3,0)-1),MATCH(AA$2&\" Score\",'C. PoC Adj Factor Scoring'!$E$4:$J$4,0),TRUE)","v":3},{"$f":"VLOOKUP(OFFSET($B:$B,,MATCH(AB$4,$B$4:$F$4,0)-1),OFFSET('C. PoC Adj Factor Scoring'!$E$5:$J$282,,MATCH(AB$4,'C. PoC Adj Factor Scoring'!$E$3:$AH$3,0)-1),MATCH(AB$2&\" Score\",'C. PoC Adj Factor Scoring'!$E$4:$J$4,0),TRUE)","v":1},{"$f":"VLOOKUP(OFFSET($B:$B,,MATCH(AC$4,$B$4:$F$4,0)-1),OFFSET('C. PoC Adj Factor Scoring'!$E$5:$J$282,,MATCH(AC$4,'C. PoC Adj Factor Scoring'!$E$3:$AH$3,0)-1),MATCH(AC$2&\" Score\",'C. PoC Adj Factor Scoring'!$E$4:$J$4,0),TRUE)","v":1},{"$f":"VLOOKUP(OFFSET($B:$B,,MATCH(AD$4,$B$4:$F$4,0)-1),OFFSET('C. PoC Adj Factor Scoring'!$E$5:$J$282,,MATCH(AD$4,'C. PoC Adj Factor Scoring'!$E$3:$AH$3,0)-1),MATCH(AD$2&\" Score\",'C. PoC Adj Factor Scoring'!$E$4:$J$4,0),TRUE)","v":1},{"$f":"VLOOKUP(OFFSET($B:$B,,MATCH(AE$4,$B$4:$F$4,0)-1),OFFSET('C. PoC Adj Factor Scoring'!$E$5:$J$282,,MATCH(AE$4,'C. PoC Adj Factor Scoring'!$E$3:$AH$3,0)-1),MATCH(AE$2&\" Score\",'C. PoC Adj Factor Scoring'!$E$4:$J$4,0),TRUE)","v":1}]
[{"$f":"'A. Population Info'!A394","v":1000407386},{"$f":"'A. Population Info'!L394","v":"OIL"},{"$f":"'A. Population Info'!M394","v":0},{"$f":"'A. Population Info'!N394","v":0},{"$f":"'A. Population Info'!O394","v":0},{"$f":"'A. Population Info'!P394","v":0},{"$f":"VLOOKUP(OFFSET($B:$B,,MATCH(G$4,$B$4:$F$4,0)-1),OFFSET('C. PoC Adj Factor Scoring'!$E$5:$J$282,,MATCH(G$4,'C. PoC Adj Factor Scoring'!$E$3:$AH$3,0)-1),MATCH(G$2&\" Score\",'C. PoC Adj Factor Scoring'!$E$4:$J$4,0),TRUE)","v":4},{"$f":"VLOOKUP(OFFSET($B:$B,,MATCH(H$4,$B$4:$F$4,0)-1),OFFSET('C. PoC Adj Factor Scoring'!$E$5:$J$282,,MATCH(H$4,'C. PoC Adj Factor Scoring'!$E$3:$AH$3,0)-1),MATCH(H$2&\" Score\",'C. PoC Adj Factor Scoring'!$E$4:$J$4,0),TRUE)","v":1},{"$f":"VLOOKUP(OFFSET($B:$B,,MATCH(I$4,$B$4:$F$4,0)-1),OFFSET('C. PoC Adj Factor Scoring'!$E$5:$J$282,,MATCH(I$4,'C. PoC Adj Factor Scoring'!$E$3:$AH$3,0)-1),MATCH(I$2&\" Score\",'C. PoC Adj Factor Scoring'!$E$4:$J$4,0),TRUE)","v":1},{"$f":"VLOOKUP(OFFSET($B:$B,,MATCH(J$4,$B$4:$F$4,0)-1),OFFSET('C. PoC Adj Factor Scoring'!$E$5:$J$282,,MATCH(J$4,'C. PoC Adj Factor Scoring'!$E$3:$AH$3,0)-1),MATCH(J$2&\" Score\",'C. PoC Adj Factor Scoring'!$E$4:$J$4,0),TRUE)","v":1},{"$f":"VLOOKUP(OFFSET($B:$B,,MATCH(K$4,$B$4:$F$4,0)-1),OFFSET('C. PoC Adj Factor Scoring'!$E$5:$J$282,,MATCH(K$4,'C. PoC Adj Factor Scoring'!$E$3:$AH$3,0)-1),MATCH(K$2&\" Score\",'C. PoC Adj Factor Scoring'!$E$4:$J$4,0),TRUE)","v":1},{"$f":"VLOOKUP(OFFSET($B:$B,,MATCH(L$4,$B$4:$F$4,0)-1),OFFSET('C. PoC Adj Factor Scoring'!$E$5:$J$282,,MATCH(L$4,'C. PoC Adj Factor Scoring'!$E$3:$AH$3,0)-1),MATCH(L$2&\" Score\",'C. PoC Adj Factor Scoring'!$E$4:$J$4,0),TRUE)","v":1},{"$f":"VLOOKUP(OFFSET($B:$B,,MATCH(M$4,$B$4:$F$4,0)-1),OFFSET('C. PoC Adj Factor Scoring'!$E$5:$J$282,,MATCH(M$4,'C. PoC Adj Factor Scoring'!$E$3:$AH$3,0)-1),MATCH(M$2&\" Score\",'C. PoC Adj Factor Scoring'!$E$4:$J$4,0),TRUE)","v":1},{"$f":"VLOOKUP(OFFSET($B:$B,,MATCH(N$4,$B$4:$F$4,0)-1),OFFSET('C. PoC Adj Factor Scoring'!$E$5:$J$282,,MATCH(N$4,'C. PoC Adj Factor Scoring'!$E$3:$AH$3,0)-1),MATCH(N$2&\" Score\",'C. PoC Adj Factor Scoring'!$E$4:$J$4,0),TRUE)","v":1},{"$f":"VLOOKUP(OFFSET($B:$B,,MATCH(O$4,$B$4:$F$4,0)-1),OFFSET('C. PoC Adj Factor Scoring'!$E$5:$J$282,,MATCH(O$4,'C. PoC Adj Factor Scoring'!$E$3:$AH$3,0)-1),MATCH(O$2&\" Score\",'C. PoC Adj Factor Scoring'!$E$4:$J$4,0),TRUE)","v":1},{"$f":"VLOOKUP(OFFSET($B:$B,,MATCH(P$4,$B$4:$F$4,0)-1),OFFSET('C. PoC Adj Factor Scoring'!$E$5:$J$282,,MATCH(P$4,'C. PoC Adj Factor Scoring'!$E$3:$AH$3,0)-1),MATCH(P$2&\" Score\",'C. PoC Adj Factor Scoring'!$E$4:$J$4,0),TRUE)","v":1},{"$f":"VLOOKUP(OFFSET($B:$B,,MATCH(Q$4,$B$4:$F$4,0)-1),OFFSET('C. PoC Adj Factor Scoring'!$E$5:$J$282,,MATCH(Q$4,'C. PoC Adj Factor Scoring'!$E$3:$AH$3,0)-1),MATCH(Q$2&\" Score\",'C. PoC Adj Factor Scoring'!$E$4:$J$4,0),TRUE)","v":1},{"$f":"VLOOKUP(OFFSET($B:$B,,MATCH(R$4,$B$4:$F$4,0)-1),OFFSET('C. PoC Adj Factor Scoring'!$E$5:$J$282,,MATCH(R$4,'C. PoC Adj Factor Scoring'!$E$3:$AH$3,0)-1),MATCH(R$2&\" Score\",'C. PoC Adj Factor Scoring'!$E$4:$J$4,0),TRUE)","v":1},{"$f":"VLOOKUP(OFFSET($B:$B,,MATCH(S$4,$B$4:$F$4,0)-1),OFFSET('C. PoC Adj Factor Scoring'!$E$5:$J$282,,MATCH(S$4,'C. PoC Adj Factor Scoring'!$E$3:$AH$3,0)-1),MATCH(S$2&\" Score\",'C. PoC Adj Factor Scoring'!$E$4:$J$4,0),TRUE)","v":1},{"$f":"VLOOKUP(OFFSET($B:$B,,MATCH(T$4,$B$4:$F$4,0)-1),OFFSET('C. PoC Adj Factor Scoring'!$E$5:$J$282,,MATCH(T$4,'C. PoC Adj Factor Scoring'!$E$3:$AH$3,0)-1),MATCH(T$2&\" Score\",'C. PoC Adj Factor Scoring'!$E$4:$J$4,0),TRUE)","v":1},{"$f":"VLOOKUP(OFFSET($B:$B,,MATCH(U$4,$B$4:$F$4,0)-1),OFFSET('C. PoC Adj Factor Scoring'!$E$5:$J$282,,MATCH(U$4,'C. PoC Adj Factor Scoring'!$E$3:$AH$3,0)-1),MATCH(U$2&\" Score\",'C. PoC Adj Factor Scoring'!$E$4:$J$4,0),TRUE)","v":1},{"$f":"VLOOKUP(OFFSET($B:$B,,MATCH(V$4,$B$4:$F$4,0)-1),OFFSET('C. PoC Adj Factor Scoring'!$E$5:$J$282,,MATCH(V$4,'C. PoC Adj Factor Scoring'!$E$3:$AH$3,0)-1),MATCH(V$2&\" Score\",'C. PoC Adj Factor Scoring'!$E$4:$J$4,0),TRUE)","v":1},{"$f":"VLOOKUP(OFFSET($B:$B,,MATCH(W$4,$B$4:$F$4,0)-1),OFFSET('C. PoC Adj Factor Scoring'!$E$5:$J$282,,MATCH(W$4,'C. PoC Adj Factor Scoring'!$E$3:$AH$3,0)-1),MATCH(W$2&\" Score\",'C. PoC Adj Factor Scoring'!$E$4:$J$4,0),TRUE)","v":1},{"$f":"VLOOKUP(OFFSET($B:$B,,MATCH(X$4,$B$4:$F$4,0)-1),OFFSET('C. PoC Adj Factor Scoring'!$E$5:$J$282,,MATCH(X$4,'C. PoC Adj Factor Scoring'!$E$3:$AH$3,0)-1),MATCH(X$2&\" Score\",'C. PoC Adj Factor Scoring'!$E$4:$J$4,0),TRUE)","v":1},{"$f":"VLOOKUP(OFFSET($B:$B,,MATCH(Y$4,$B$4:$F$4,0)-1),OFFSET('C. PoC Adj Factor Scoring'!$E$5:$J$282,,MATCH(Y$4,'C. PoC Adj Factor Scoring'!$E$3:$AH$3,0)-1),MATCH(Y$2&\" Score\",'C. PoC Adj Factor Scoring'!$E$4:$J$4,0),TRUE)","v":1},{"$f":"VLOOKUP(OFFSET($B:$B,,MATCH(Z$4,$B$4:$F$4,0)-1),OFFSET('C. PoC Adj Factor Scoring'!$E$5:$J$282,,MATCH(Z$4,'C. PoC Adj Factor Scoring'!$E$3:$AH$3,0)-1),MATCH(Z$2&\" Score\",'C. PoC Adj Factor Scoring'!$E$4:$J$4,0),TRUE)","v":1},{"$f":"VLOOKUP(OFFSET($B:$B,,MATCH(AA$4,$B$4:$F$4,0)-1),OFFSET('C. PoC Adj Factor Scoring'!$E$5:$J$282,,MATCH(AA$4,'C. PoC Adj Factor Scoring'!$E$3:$AH$3,0)-1),MATCH(AA$2&\" Score\",'C. PoC Adj Factor Scoring'!$E$4:$J$4,0),TRUE)","v":3},{"$f":"VLOOKUP(OFFSET($B:$B,,MATCH(AB$4,$B$4:$F$4,0)-1),OFFSET('C. PoC Adj Factor Scoring'!$E$5:$J$282,,MATCH(AB$4,'C. PoC Adj Factor Scoring'!$E$3:$AH$3,0)-1),MATCH(AB$2&\" Score\",'C. PoC Adj Factor Scoring'!$E$4:$J$4,0),TRUE)","v":1},{"$f":"VLOOKUP(OFFSET($B:$B,,MATCH(AC$4,$B$4:$F$4,0)-1),OFFSET('C. PoC Adj Factor Scoring'!$E$5:$J$282,,MATCH(AC$4,'C. PoC Adj Factor Scoring'!$E$3:$AH$3,0)-1),MATCH(AC$2&\" Score\",'C. PoC Adj Factor Scoring'!$E$4:$J$4,0),TRUE)","v":1},{"$f":"VLOOKUP(OFFSET($B:$B,,MATCH(AD$4,$B$4:$F$4,0)-1),OFFSET('C. PoC Adj Factor Scoring'!$E$5:$J$282,,MATCH(AD$4,'C. PoC Adj Factor Scoring'!$E$3:$AH$3,0)-1),MATCH(AD$2&\" Score\",'C. PoC Adj Factor Scoring'!$E$4:$J$4,0),TRUE)","v":1},{"$f":"VLOOKUP(OFFSET($B:$B,,MATCH(AE$4,$B$4:$F$4,0)-1),OFFSET('C. PoC Adj Factor Scoring'!$E$5:$J$282,,MATCH(AE$4,'C. PoC Adj Factor Scoring'!$E$3:$AH$3,0)-1),MATCH(AE$2&\" Score\",'C. PoC Adj Factor Scoring'!$E$4:$J$4,0),TRUE)","v":1}]
[{"$f":"'A. Population Info'!A395","v":1000407406},{"$f":"'A. Population Info'!L395","v":"OIL"},{"$f":"'A. Population Info'!M395","v":0},{"$f":"'A. Population Info'!N395","v":0},{"$f":"'A. Population Info'!O395","v":0},{"$f":"'A. Population Info'!P395","v":0},{"$f":"VLOOKUP(OFFSET($B:$B,,MATCH(G$4,$B$4:$F$4,0)-1),OFFSET('C. PoC Adj Factor Scoring'!$E$5:$J$282,,MATCH(G$4,'C. PoC Adj Factor Scoring'!$E$3:$AH$3,0)-1),MATCH(G$2&\" Score\",'C. PoC Adj Factor Scoring'!$E$4:$J$4,0),TRUE)","v":4},{"$f":"VLOOKUP(OFFSET($B:$B,,MATCH(H$4,$B$4:$F$4,0)-1),OFFSET('C. PoC Adj Factor Scoring'!$E$5:$J$282,,MATCH(H$4,'C. PoC Adj Factor Scoring'!$E$3:$AH$3,0)-1),MATCH(H$2&\" Score\",'C. PoC Adj Factor Scoring'!$E$4:$J$4,0),TRUE)","v":1},{"$f":"VLOOKUP(OFFSET($B:$B,,MATCH(I$4,$B$4:$F$4,0)-1),OFFSET('C. PoC Adj Factor Scoring'!$E$5:$J$282,,MATCH(I$4,'C. PoC Adj Factor Scoring'!$E$3:$AH$3,0)-1),MATCH(I$2&\" Score\",'C. PoC Adj Factor Scoring'!$E$4:$J$4,0),TRUE)","v":1},{"$f":"VLOOKUP(OFFSET($B:$B,,MATCH(J$4,$B$4:$F$4,0)-1),OFFSET('C. PoC Adj Factor Scoring'!$E$5:$J$282,,MATCH(J$4,'C. PoC Adj Factor Scoring'!$E$3:$AH$3,0)-1),MATCH(J$2&\" Score\",'C. PoC Adj Factor Scoring'!$E$4:$J$4,0),TRUE)","v":1},{"$f":"VLOOKUP(OFFSET($B:$B,,MATCH(K$4,$B$4:$F$4,0)-1),OFFSET('C. PoC Adj Factor Scoring'!$E$5:$J$282,,MATCH(K$4,'C. PoC Adj Factor Scoring'!$E$3:$AH$3,0)-1),MATCH(K$2&\" Score\",'C. PoC Adj Factor Scoring'!$E$4:$J$4,0),TRUE)","v":1},{"$f":"VLOOKUP(OFFSET($B:$B,,MATCH(L$4,$B$4:$F$4,0)-1),OFFSET('C. PoC Adj Factor Scoring'!$E$5:$J$282,,MATCH(L$4,'C. PoC Adj Factor Scoring'!$E$3:$AH$3,0)-1),MATCH(L$2&\" Score\",'C. PoC Adj Factor Scoring'!$E$4:$J$4,0),TRUE)","v":1},{"$f":"VLOOKUP(OFFSET($B:$B,,MATCH(M$4,$B$4:$F$4,0)-1),OFFSET('C. PoC Adj Factor Scoring'!$E$5:$J$282,,MATCH(M$4,'C. PoC Adj Factor Scoring'!$E$3:$AH$3,0)-1),MATCH(M$2&\" Score\",'C. PoC Adj Factor Scoring'!$E$4:$J$4,0),TRUE)","v":1},{"$f":"VLOOKUP(OFFSET($B:$B,,MATCH(N$4,$B$4:$F$4,0)-1),OFFSET('C. PoC Adj Factor Scoring'!$E$5:$J$282,,MATCH(N$4,'C. PoC Adj Factor Scoring'!$E$3:$AH$3,0)-1),MATCH(N$2&\" Score\",'C. PoC Adj Factor Scoring'!$E$4:$J$4,0),TRUE)","v":1},{"$f":"VLOOKUP(OFFSET($B:$B,,MATCH(O$4,$B$4:$F$4,0)-1),OFFSET('C. PoC Adj Factor Scoring'!$E$5:$J$282,,MATCH(O$4,'C. PoC Adj Factor Scoring'!$E$3:$AH$3,0)-1),MATCH(O$2&\" Score\",'C. PoC Adj Factor Scoring'!$E$4:$J$4,0),TRUE)","v":1},{"$f":"VLOOKUP(OFFSET($B:$B,,MATCH(P$4,$B$4:$F$4,0)-1),OFFSET('C. PoC Adj Factor Scoring'!$E$5:$J$282,,MATCH(P$4,'C. PoC Adj Factor Scoring'!$E$3:$AH$3,0)-1),MATCH(P$2&\" Score\",'C. PoC Adj Factor Scoring'!$E$4:$J$4,0),TRUE)","v":1},{"$f":"VLOOKUP(OFFSET($B:$B,,MATCH(Q$4,$B$4:$F$4,0)-1),OFFSET('C. PoC Adj Factor Scoring'!$E$5:$J$282,,MATCH(Q$4,'C. PoC Adj Factor Scoring'!$E$3:$AH$3,0)-1),MATCH(Q$2&\" Score\",'C. PoC Adj Factor Scoring'!$E$4:$J$4,0),TRUE)","v":1},{"$f":"VLOOKUP(OFFSET($B:$B,,MATCH(R$4,$B$4:$F$4,0)-1),OFFSET('C. PoC Adj Factor Scoring'!$E$5:$J$282,,MATCH(R$4,'C. PoC Adj Factor Scoring'!$E$3:$AH$3,0)-1),MATCH(R$2&\" Score\",'C. PoC Adj Factor Scoring'!$E$4:$J$4,0),TRUE)","v":1},{"$f":"VLOOKUP(OFFSET($B:$B,,MATCH(S$4,$B$4:$F$4,0)-1),OFFSET('C. PoC Adj Factor Scoring'!$E$5:$J$282,,MATCH(S$4,'C. PoC Adj Factor Scoring'!$E$3:$AH$3,0)-1),MATCH(S$2&\" Score\",'C. PoC Adj Factor Scoring'!$E$4:$J$4,0),TRUE)","v":1},{"$f":"VLOOKUP(OFFSET($B:$B,,MATCH(T$4,$B$4:$F$4,0)-1),OFFSET('C. PoC Adj Factor Scoring'!$E$5:$J$282,,MATCH(T$4,'C. PoC Adj Factor Scoring'!$E$3:$AH$3,0)-1),MATCH(T$2&\" Score\",'C. PoC Adj Factor Scoring'!$E$4:$J$4,0),TRUE)","v":1},{"$f":"VLOOKUP(OFFSET($B:$B,,MATCH(U$4,$B$4:$F$4,0)-1),OFFSET('C. PoC Adj Factor Scoring'!$E$5:$J$282,,MATCH(U$4,'C. PoC Adj Factor Scoring'!$E$3:$AH$3,0)-1),MATCH(U$2&\" Score\",'C. PoC Adj Factor Scoring'!$E$4:$J$4,0),TRUE)","v":1},{"$f":"VLOOKUP(OFFSET($B:$B,,MATCH(V$4,$B$4:$F$4,0)-1),OFFSET('C. PoC Adj Factor Scoring'!$E$5:$J$282,,MATCH(V$4,'C. PoC Adj Factor Scoring'!$E$3:$AH$3,0)-1),MATCH(V$2&\" Score\",'C. PoC Adj Factor Scoring'!$E$4:$J$4,0),TRUE)","v":1},{"$f":"VLOOKUP(OFFSET($B:$B,,MATCH(W$4,$B$4:$F$4,0)-1),OFFSET('C. PoC Adj Factor Scoring'!$E$5:$J$282,,MATCH(W$4,'C. PoC Adj Factor Scoring'!$E$3:$AH$3,0)-1),MATCH(W$2&\" Score\",'C. PoC Adj Factor Scoring'!$E$4:$J$4,0),TRUE)","v":1},{"$f":"VLOOKUP(OFFSET($B:$B,,MATCH(X$4,$B$4:$F$4,0)-1),OFFSET('C. PoC Adj Factor Scoring'!$E$5:$J$282,,MATCH(X$4,'C. PoC Adj Factor Scoring'!$E$3:$AH$3,0)-1),MATCH(X$2&\" Score\",'C. PoC Adj Factor Scoring'!$E$4:$J$4,0),TRUE)","v":1},{"$f":"VLOOKUP(OFFSET($B:$B,,MATCH(Y$4,$B$4:$F$4,0)-1),OFFSET('C. PoC Adj Factor Scoring'!$E$5:$J$282,,MATCH(Y$4,'C. PoC Adj Factor Scoring'!$E$3:$AH$3,0)-1),MATCH(Y$2&\" Score\",'C. PoC Adj Factor Scoring'!$E$4:$J$4,0),TRUE)","v":1},{"$f":"VLOOKUP(OFFSET($B:$B,,MATCH(Z$4,$B$4:$F$4,0)-1),OFFSET('C. PoC Adj Factor Scoring'!$E$5:$J$282,,MATCH(Z$4,'C. PoC Adj Factor Scoring'!$E$3:$AH$3,0)-1),MATCH(Z$2&\" Score\",'C. PoC Adj Factor Scoring'!$E$4:$J$4,0),TRUE)","v":1},{"$f":"VLOOKUP(OFFSET($B:$B,,MATCH(AA$4,$B$4:$F$4,0)-1),OFFSET('C. PoC Adj Factor Scoring'!$E$5:$J$282,,MATCH(AA$4,'C. PoC Adj Factor Scoring'!$E$3:$AH$3,0)-1),MATCH(AA$2&\" Score\",'C. PoC Adj Factor Scoring'!$E$4:$J$4,0),TRUE)","v":3},{"$f":"VLOOKUP(OFFSET($B:$B,,MATCH(AB$4,$B$4:$F$4,0)-1),OFFSET('C. PoC Adj Factor Scoring'!$E$5:$J$282,,MATCH(AB$4,'C. PoC Adj Factor Scoring'!$E$3:$AH$3,0)-1),MATCH(AB$2&\" Score\",'C. PoC Adj Factor Scoring'!$E$4:$J$4,0),TRUE)","v":1},{"$f":"VLOOKUP(OFFSET($B:$B,,MATCH(AC$4,$B$4:$F$4,0)-1),OFFSET('C. PoC Adj Factor Scoring'!$E$5:$J$282,,MATCH(AC$4,'C. PoC Adj Factor Scoring'!$E$3:$AH$3,0)-1),MATCH(AC$2&\" Score\",'C. PoC Adj Factor Scoring'!$E$4:$J$4,0),TRUE)","v":1},{"$f":"VLOOKUP(OFFSET($B:$B,,MATCH(AD$4,$B$4:$F$4,0)-1),OFFSET('C. PoC Adj Factor Scoring'!$E$5:$J$282,,MATCH(AD$4,'C. PoC Adj Factor Scoring'!$E$3:$AH$3,0)-1),MATCH(AD$2&\" Score\",'C. PoC Adj Factor Scoring'!$E$4:$J$4,0),TRUE)","v":1},{"$f":"VLOOKUP(OFFSET($B:$B,,MATCH(AE$4,$B$4:$F$4,0)-1),OFFSET('C. PoC Adj Factor Scoring'!$E$5:$J$282,,MATCH(AE$4,'C. PoC Adj Factor Scoring'!$E$3:$AH$3,0)-1),MATCH(AE$2&\" Score\",'C. PoC Adj Factor Scoring'!$E$4:$J$4,0),TRUE)","v":1}]
[{"$f":"'A. Population Info'!A396","v":1000407427},{"$f":"'A. Population Info'!L396","v":"OIL"},{"$f":"'A. Population Info'!M396","v":0},{"$f":"'A. Population Info'!N396","v":0},{"$f":"'A. Population Info'!O396","v":0},{"$f":"'A. Population Info'!P396","v":0},{"$f":"VLOOKUP(OFFSET($B:$B,,MATCH(G$4,$B$4:$F$4,0)-1),OFFSET('C. PoC Adj Factor Scoring'!$E$5:$J$282,,MATCH(G$4,'C. PoC Adj Factor Scoring'!$E$3:$AH$3,0)-1),MATCH(G$2&\" Score\",'C. PoC Adj Factor Scoring'!$E$4:$J$4,0),TRUE)","v":4},{"$f":"VLOOKUP(OFFSET($B:$B,,MATCH(H$4,$B$4:$F$4,0)-1),OFFSET('C. PoC Adj Factor Scoring'!$E$5:$J$282,,MATCH(H$4,'C. PoC Adj Factor Scoring'!$E$3:$AH$3,0)-1),MATCH(H$2&\" Score\",'C. PoC Adj Factor Scoring'!$E$4:$J$4,0),TRUE)","v":1},{"$f":"VLOOKUP(OFFSET($B:$B,,MATCH(I$4,$B$4:$F$4,0)-1),OFFSET('C. PoC Adj Factor Scoring'!$E$5:$J$282,,MATCH(I$4,'C. PoC Adj Factor Scoring'!$E$3:$AH$3,0)-1),MATCH(I$2&\" Score\",'C. PoC Adj Factor Scoring'!$E$4:$J$4,0),TRUE)","v":1},{"$f":"VLOOKUP(OFFSET($B:$B,,MATCH(J$4,$B$4:$F$4,0)-1),OFFSET('C. PoC Adj Factor Scoring'!$E$5:$J$282,,MATCH(J$4,'C. PoC Adj Factor Scoring'!$E$3:$AH$3,0)-1),MATCH(J$2&\" Score\",'C. PoC Adj Factor Scoring'!$E$4:$J$4,0),TRUE)","v":1},{"$f":"VLOOKUP(OFFSET($B:$B,,MATCH(K$4,$B$4:$F$4,0)-1),OFFSET('C. PoC Adj Factor Scoring'!$E$5:$J$282,,MATCH(K$4,'C. PoC Adj Factor Scoring'!$E$3:$AH$3,0)-1),MATCH(K$2&\" Score\",'C. PoC Adj Factor Scoring'!$E$4:$J$4,0),TRUE)","v":1},{"$f":"VLOOKUP(OFFSET($B:$B,,MATCH(L$4,$B$4:$F$4,0)-1),OFFSET('C. PoC Adj Factor Scoring'!$E$5:$J$282,,MATCH(L$4,'C. PoC Adj Factor Scoring'!$E$3:$AH$3,0)-1),MATCH(L$2&\" Score\",'C. PoC Adj Factor Scoring'!$E$4:$J$4,0),TRUE)","v":1},{"$f":"VLOOKUP(OFFSET($B:$B,,MATCH(M$4,$B$4:$F$4,0)-1),OFFSET('C. PoC Adj Factor Scoring'!$E$5:$J$282,,MATCH(M$4,'C. PoC Adj Factor Scoring'!$E$3:$AH$3,0)-1),MATCH(M$2&\" Score\",'C. PoC Adj Factor Scoring'!$E$4:$J$4,0),TRUE)","v":1},{"$f":"VLOOKUP(OFFSET($B:$B,,MATCH(N$4,$B$4:$F$4,0)-1),OFFSET('C. PoC Adj Factor Scoring'!$E$5:$J$282,,MATCH(N$4,'C. PoC Adj Factor Scoring'!$E$3:$AH$3,0)-1),MATCH(N$2&\" Score\",'C. PoC Adj Factor Scoring'!$E$4:$J$4,0),TRUE)","v":1},{"$f":"VLOOKUP(OFFSET($B:$B,,MATCH(O$4,$B$4:$F$4,0)-1),OFFSET('C. PoC Adj Factor Scoring'!$E$5:$J$282,,MATCH(O$4,'C. PoC Adj Factor Scoring'!$E$3:$AH$3,0)-1),MATCH(O$2&\" Score\",'C. PoC Adj Factor Scoring'!$E$4:$J$4,0),TRUE)","v":1},{"$f":"VLOOKUP(OFFSET($B:$B,,MATCH(P$4,$B$4:$F$4,0)-1),OFFSET('C. PoC Adj Factor Scoring'!$E$5:$J$282,,MATCH(P$4,'C. PoC Adj Factor Scoring'!$E$3:$AH$3,0)-1),MATCH(P$2&\" Score\",'C. PoC Adj Factor Scoring'!$E$4:$J$4,0),TRUE)","v":1},{"$f":"VLOOKUP(OFFSET($B:$B,,MATCH(Q$4,$B$4:$F$4,0)-1),OFFSET('C. PoC Adj Factor Scoring'!$E$5:$J$282,,MATCH(Q$4,'C. PoC Adj Factor Scoring'!$E$3:$AH$3,0)-1),MATCH(Q$2&\" Score\",'C. PoC Adj Factor Scoring'!$E$4:$J$4,0),TRUE)","v":1},{"$f":"VLOOKUP(OFFSET($B:$B,,MATCH(R$4,$B$4:$F$4,0)-1),OFFSET('C. PoC Adj Factor Scoring'!$E$5:$J$282,,MATCH(R$4,'C. PoC Adj Factor Scoring'!$E$3:$AH$3,0)-1),MATCH(R$2&\" Score\",'C. PoC Adj Factor Scoring'!$E$4:$J$4,0),TRUE)","v":1},{"$f":"VLOOKUP(OFFSET($B:$B,,MATCH(S$4,$B$4:$F$4,0)-1),OFFSET('C. PoC Adj Factor Scoring'!$E$5:$J$282,,MATCH(S$4,'C. PoC Adj Factor Scoring'!$E$3:$AH$3,0)-1),MATCH(S$2&\" Score\",'C. PoC Adj Factor Scoring'!$E$4:$J$4,0),TRUE)","v":1},{"$f":"VLOOKUP(OFFSET($B:$B,,MATCH(T$4,$B$4:$F$4,0)-1),OFFSET('C. PoC Adj Factor Scoring'!$E$5:$J$282,,MATCH(T$4,'C. PoC Adj Factor Scoring'!$E$3:$AH$3,0)-1),MATCH(T$2&\" Score\",'C. PoC Adj Factor Scoring'!$E$4:$J$4,0),TRUE)","v":1},{"$f":"VLOOKUP(OFFSET($B:$B,,MATCH(U$4,$B$4:$F$4,0)-1),OFFSET('C. PoC Adj Factor Scoring'!$E$5:$J$282,,MATCH(U$4,'C. PoC Adj Factor Scoring'!$E$3:$AH$3,0)-1),MATCH(U$2&\" Score\",'C. PoC Adj Factor Scoring'!$E$4:$J$4,0),TRUE)","v":1},{"$f":"VLOOKUP(OFFSET($B:$B,,MATCH(V$4,$B$4:$F$4,0)-1),OFFSET('C. PoC Adj Factor Scoring'!$E$5:$J$282,,MATCH(V$4,'C. PoC Adj Factor Scoring'!$E$3:$AH$3,0)-1),MATCH(V$2&\" Score\",'C. PoC Adj Factor Scoring'!$E$4:$J$4,0),TRUE)","v":1},{"$f":"VLOOKUP(OFFSET($B:$B,,MATCH(W$4,$B$4:$F$4,0)-1),OFFSET('C. PoC Adj Factor Scoring'!$E$5:$J$282,,MATCH(W$4,'C. PoC Adj Factor Scoring'!$E$3:$AH$3,0)-1),MATCH(W$2&\" Score\",'C. PoC Adj Factor Scoring'!$E$4:$J$4,0),TRUE)","v":1},{"$f":"VLOOKUP(OFFSET($B:$B,,MATCH(X$4,$B$4:$F$4,0)-1),OFFSET('C. PoC Adj Factor Scoring'!$E$5:$J$282,,MATCH(X$4,'C. PoC Adj Factor Scoring'!$E$3:$AH$3,0)-1),MATCH(X$2&\" Score\",'C. PoC Adj Factor Scoring'!$E$4:$J$4,0),TRUE)","v":1},{"$f":"VLOOKUP(OFFSET($B:$B,,MATCH(Y$4,$B$4:$F$4,0)-1),OFFSET('C. PoC Adj Factor Scoring'!$E$5:$J$282,,MATCH(Y$4,'C. PoC Adj Factor Scoring'!$E$3:$AH$3,0)-1),MATCH(Y$2&\" Score\",'C. PoC Adj Factor Scoring'!$E$4:$J$4,0),TRUE)","v":1},{"$f":"VLOOKUP(OFFSET($B:$B,,MATCH(Z$4,$B$4:$F$4,0)-1),OFFSET('C. PoC Adj Factor Scoring'!$E$5:$J$282,,MATCH(Z$4,'C. PoC Adj Factor Scoring'!$E$3:$AH$3,0)-1),MATCH(Z$2&\" Score\",'C. PoC Adj Factor Scoring'!$E$4:$J$4,0),TRUE)","v":1},{"$f":"VLOOKUP(OFFSET($B:$B,,MATCH(AA$4,$B$4:$F$4,0)-1),OFFSET('C. PoC Adj Factor Scoring'!$E$5:$J$282,,MATCH(AA$4,'C. PoC Adj Factor Scoring'!$E$3:$AH$3,0)-1),MATCH(AA$2&\" Score\",'C. PoC Adj Factor Scoring'!$E$4:$J$4,0),TRUE)","v":3},{"$f":"VLOOKUP(OFFSET($B:$B,,MATCH(AB$4,$B$4:$F$4,0)-1),OFFSET('C. PoC Adj Factor Scoring'!$E$5:$J$282,,MATCH(AB$4,'C. PoC Adj Factor Scoring'!$E$3:$AH$3,0)-1),MATCH(AB$2&\" Score\",'C. PoC Adj Factor Scoring'!$E$4:$J$4,0),TRUE)","v":1},{"$f":"VLOOKUP(OFFSET($B:$B,,MATCH(AC$4,$B$4:$F$4,0)-1),OFFSET('C. PoC Adj Factor Scoring'!$E$5:$J$282,,MATCH(AC$4,'C. PoC Adj Factor Scoring'!$E$3:$AH$3,0)-1),MATCH(AC$2&\" Score\",'C. PoC Adj Factor Scoring'!$E$4:$J$4,0),TRUE)","v":1},{"$f":"VLOOKUP(OFFSET($B:$B,,MATCH(AD$4,$B$4:$F$4,0)-1),OFFSET('C. PoC Adj Factor Scoring'!$E$5:$J$282,,MATCH(AD$4,'C. PoC Adj Factor Scoring'!$E$3:$AH$3,0)-1),MATCH(AD$2&\" Score\",'C. PoC Adj Factor Scoring'!$E$4:$J$4,0),TRUE)","v":1},{"$f":"VLOOKUP(OFFSET($B:$B,,MATCH(AE$4,$B$4:$F$4,0)-1),OFFSET('C. PoC Adj Factor Scoring'!$E$5:$J$282,,MATCH(AE$4,'C. PoC Adj Factor Scoring'!$E$3:$AH$3,0)-1),MATCH(AE$2&\" Score\",'C. PoC Adj Factor Scoring'!$E$4:$J$4,0),TRUE)","v":1}]
[{"$f":"'A. Population Info'!A397","v":1000407446},{"$f":"'A. Population Info'!L397","v":"OIL"},{"$f":"'A. Population Info'!M397","v":0},{"$f":"'A. Population Info'!N397","v":0},{"$f":"'A. Population Info'!O397","v":0},{"$f":"'A. Population Info'!P397","v":0},{"$f":"VLOOKUP(OFFSET($B:$B,,MATCH(G$4,$B$4:$F$4,0)-1),OFFSET('C. PoC Adj Factor Scoring'!$E$5:$J$282,,MATCH(G$4,'C. PoC Adj Factor Scoring'!$E$3:$AH$3,0)-1),MATCH(G$2&\" Score\",'C. PoC Adj Factor Scoring'!$E$4:$J$4,0),TRUE)","v":4},{"$f":"VLOOKUP(OFFSET($B:$B,,MATCH(H$4,$B$4:$F$4,0)-1),OFFSET('C. PoC Adj Factor Scoring'!$E$5:$J$282,,MATCH(H$4,'C. PoC Adj Factor Scoring'!$E$3:$AH$3,0)-1),MATCH(H$2&\" Score\",'C. PoC Adj Factor Scoring'!$E$4:$J$4,0),TRUE)","v":1},{"$f":"VLOOKUP(OFFSET($B:$B,,MATCH(I$4,$B$4:$F$4,0)-1),OFFSET('C. PoC Adj Factor Scoring'!$E$5:$J$282,,MATCH(I$4,'C. PoC Adj Factor Scoring'!$E$3:$AH$3,0)-1),MATCH(I$2&\" Score\",'C. PoC Adj Factor Scoring'!$E$4:$J$4,0),TRUE)","v":1},{"$f":"VLOOKUP(OFFSET($B:$B,,MATCH(J$4,$B$4:$F$4,0)-1),OFFSET('C. PoC Adj Factor Scoring'!$E$5:$J$282,,MATCH(J$4,'C. PoC Adj Factor Scoring'!$E$3:$AH$3,0)-1),MATCH(J$2&\" Score\",'C. PoC Adj Factor Scoring'!$E$4:$J$4,0),TRUE)","v":1},{"$f":"VLOOKUP(OFFSET($B:$B,,MATCH(K$4,$B$4:$F$4,0)-1),OFFSET('C. PoC Adj Factor Scoring'!$E$5:$J$282,,MATCH(K$4,'C. PoC Adj Factor Scoring'!$E$3:$AH$3,0)-1),MATCH(K$2&\" Score\",'C. PoC Adj Factor Scoring'!$E$4:$J$4,0),TRUE)","v":1},{"$f":"VLOOKUP(OFFSET($B:$B,,MATCH(L$4,$B$4:$F$4,0)-1),OFFSET('C. PoC Adj Factor Scoring'!$E$5:$J$282,,MATCH(L$4,'C. PoC Adj Factor Scoring'!$E$3:$AH$3,0)-1),MATCH(L$2&\" Score\",'C. PoC Adj Factor Scoring'!$E$4:$J$4,0),TRUE)","v":1},{"$f":"VLOOKUP(OFFSET($B:$B,,MATCH(M$4,$B$4:$F$4,0)-1),OFFSET('C. PoC Adj Factor Scoring'!$E$5:$J$282,,MATCH(M$4,'C. PoC Adj Factor Scoring'!$E$3:$AH$3,0)-1),MATCH(M$2&\" Score\",'C. PoC Adj Factor Scoring'!$E$4:$J$4,0),TRUE)","v":1},{"$f":"VLOOKUP(OFFSET($B:$B,,MATCH(N$4,$B$4:$F$4,0)-1),OFFSET('C. PoC Adj Factor Scoring'!$E$5:$J$282,,MATCH(N$4,'C. PoC Adj Factor Scoring'!$E$3:$AH$3,0)-1),MATCH(N$2&\" Score\",'C. PoC Adj Factor Scoring'!$E$4:$J$4,0),TRUE)","v":1},{"$f":"VLOOKUP(OFFSET($B:$B,,MATCH(O$4,$B$4:$F$4,0)-1),OFFSET('C. PoC Adj Factor Scoring'!$E$5:$J$282,,MATCH(O$4,'C. PoC Adj Factor Scoring'!$E$3:$AH$3,0)-1),MATCH(O$2&\" Score\",'C. PoC Adj Factor Scoring'!$E$4:$J$4,0),TRUE)","v":1},{"$f":"VLOOKUP(OFFSET($B:$B,,MATCH(P$4,$B$4:$F$4,0)-1),OFFSET('C. PoC Adj Factor Scoring'!$E$5:$J$282,,MATCH(P$4,'C. PoC Adj Factor Scoring'!$E$3:$AH$3,0)-1),MATCH(P$2&\" Score\",'C. PoC Adj Factor Scoring'!$E$4:$J$4,0),TRUE)","v":1},{"$f":"VLOOKUP(OFFSET($B:$B,,MATCH(Q$4,$B$4:$F$4,0)-1),OFFSET('C. PoC Adj Factor Scoring'!$E$5:$J$282,,MATCH(Q$4,'C. PoC Adj Factor Scoring'!$E$3:$AH$3,0)-1),MATCH(Q$2&\" Score\",'C. PoC Adj Factor Scoring'!$E$4:$J$4,0),TRUE)","v":1},{"$f":"VLOOKUP(OFFSET($B:$B,,MATCH(R$4,$B$4:$F$4,0)-1),OFFSET('C. PoC Adj Factor Scoring'!$E$5:$J$282,,MATCH(R$4,'C. PoC Adj Factor Scoring'!$E$3:$AH$3,0)-1),MATCH(R$2&\" Score\",'C. PoC Adj Factor Scoring'!$E$4:$J$4,0),TRUE)","v":1},{"$f":"VLOOKUP(OFFSET($B:$B,,MATCH(S$4,$B$4:$F$4,0)-1),OFFSET('C. PoC Adj Factor Scoring'!$E$5:$J$282,,MATCH(S$4,'C. PoC Adj Factor Scoring'!$E$3:$AH$3,0)-1),MATCH(S$2&\" Score\",'C. PoC Adj Factor Scoring'!$E$4:$J$4,0),TRUE)","v":1},{"$f":"VLOOKUP(OFFSET($B:$B,,MATCH(T$4,$B$4:$F$4,0)-1),OFFSET('C. PoC Adj Factor Scoring'!$E$5:$J$282,,MATCH(T$4,'C. PoC Adj Factor Scoring'!$E$3:$AH$3,0)-1),MATCH(T$2&\" Score\",'C. PoC Adj Factor Scoring'!$E$4:$J$4,0),TRUE)","v":1},{"$f":"VLOOKUP(OFFSET($B:$B,,MATCH(U$4,$B$4:$F$4,0)-1),OFFSET('C. PoC Adj Factor Scoring'!$E$5:$J$282,,MATCH(U$4,'C. PoC Adj Factor Scoring'!$E$3:$AH$3,0)-1),MATCH(U$2&\" Score\",'C. PoC Adj Factor Scoring'!$E$4:$J$4,0),TRUE)","v":1},{"$f":"VLOOKUP(OFFSET($B:$B,,MATCH(V$4,$B$4:$F$4,0)-1),OFFSET('C. PoC Adj Factor Scoring'!$E$5:$J$282,,MATCH(V$4,'C. PoC Adj Factor Scoring'!$E$3:$AH$3,0)-1),MATCH(V$2&\" Score\",'C. PoC Adj Factor Scoring'!$E$4:$J$4,0),TRUE)","v":1},{"$f":"VLOOKUP(OFFSET($B:$B,,MATCH(W$4,$B$4:$F$4,0)-1),OFFSET('C. PoC Adj Factor Scoring'!$E$5:$J$282,,MATCH(W$4,'C. PoC Adj Factor Scoring'!$E$3:$AH$3,0)-1),MATCH(W$2&\" Score\",'C. PoC Adj Factor Scoring'!$E$4:$J$4,0),TRUE)","v":1},{"$f":"VLOOKUP(OFFSET($B:$B,,MATCH(X$4,$B$4:$F$4,0)-1),OFFSET('C. PoC Adj Factor Scoring'!$E$5:$J$282,,MATCH(X$4,'C. PoC Adj Factor Scoring'!$E$3:$AH$3,0)-1),MATCH(X$2&\" Score\",'C. PoC Adj Factor Scoring'!$E$4:$J$4,0),TRUE)","v":1},{"$f":"VLOOKUP(OFFSET($B:$B,,MATCH(Y$4,$B$4:$F$4,0)-1),OFFSET('C. PoC Adj Factor Scoring'!$E$5:$J$282,,MATCH(Y$4,'C. PoC Adj Factor Scoring'!$E$3:$AH$3,0)-1),MATCH(Y$2&\" Score\",'C. PoC Adj Factor Scoring'!$E$4:$J$4,0),TRUE)","v":1},{"$f":"VLOOKUP(OFFSET($B:$B,,MATCH(Z$4,$B$4:$F$4,0)-1),OFFSET('C. PoC Adj Factor Scoring'!$E$5:$J$282,,MATCH(Z$4,'C. PoC Adj Factor Scoring'!$E$3:$AH$3,0)-1),MATCH(Z$2&\" Score\",'C. PoC Adj Factor Scoring'!$E$4:$J$4,0),TRUE)","v":1},{"$f":"VLOOKUP(OFFSET($B:$B,,MATCH(AA$4,$B$4:$F$4,0)-1),OFFSET('C. PoC Adj Factor Scoring'!$E$5:$J$282,,MATCH(AA$4,'C. PoC Adj Factor Scoring'!$E$3:$AH$3,0)-1),MATCH(AA$2&\" Score\",'C. PoC Adj Factor Scoring'!$E$4:$J$4,0),TRUE)","v":3},{"$f":"VLOOKUP(OFFSET($B:$B,,MATCH(AB$4,$B$4:$F$4,0)-1),OFFSET('C. PoC Adj Factor Scoring'!$E$5:$J$282,,MATCH(AB$4,'C. PoC Adj Factor Scoring'!$E$3:$AH$3,0)-1),MATCH(AB$2&\" Score\",'C. PoC Adj Factor Scoring'!$E$4:$J$4,0),TRUE)","v":1},{"$f":"VLOOKUP(OFFSET($B:$B,,MATCH(AC$4,$B$4:$F$4,0)-1),OFFSET('C. PoC Adj Factor Scoring'!$E$5:$J$282,,MATCH(AC$4,'C. PoC Adj Factor Scoring'!$E$3:$AH$3,0)-1),MATCH(AC$2&\" Score\",'C. PoC Adj Factor Scoring'!$E$4:$J$4,0),TRUE)","v":1},{"$f":"VLOOKUP(OFFSET($B:$B,,MATCH(AD$4,$B$4:$F$4,0)-1),OFFSET('C. PoC Adj Factor Scoring'!$E$5:$J$282,,MATCH(AD$4,'C. PoC Adj Factor Scoring'!$E$3:$AH$3,0)-1),MATCH(AD$2&\" Score\",'C. PoC Adj Factor Scoring'!$E$4:$J$4,0),TRUE)","v":1},{"$f":"VLOOKUP(OFFSET($B:$B,,MATCH(AE$4,$B$4:$F$4,0)-1),OFFSET('C. PoC Adj Factor Scoring'!$E$5:$J$282,,MATCH(AE$4,'C. PoC Adj Factor Scoring'!$E$3:$AH$3,0)-1),MATCH(AE$2&\" Score\",'C. PoC Adj Factor Scoring'!$E$4:$J$4,0),TRUE)","v":1}]
[{"$f":"'A. Population Info'!A398","v":1000407467},{"$f":"'A. Population Info'!L398","v":"OIL"},{"$f":"'A. Population Info'!M398","v":0},{"$f":"'A. Population Info'!N398","v":0},{"$f":"'A. Population Info'!O398","v":0},{"$f":"'A. Population Info'!P398","v":0},{"$f":"VLOOKUP(OFFSET($B:$B,,MATCH(G$4,$B$4:$F$4,0)-1),OFFSET('C. PoC Adj Factor Scoring'!$E$5:$J$282,,MATCH(G$4,'C. PoC Adj Factor Scoring'!$E$3:$AH$3,0)-1),MATCH(G$2&\" Score\",'C. PoC Adj Factor Scoring'!$E$4:$J$4,0),TRUE)","v":4},{"$f":"VLOOKUP(OFFSET($B:$B,,MATCH(H$4,$B$4:$F$4,0)-1),OFFSET('C. PoC Adj Factor Scoring'!$E$5:$J$282,,MATCH(H$4,'C. PoC Adj Factor Scoring'!$E$3:$AH$3,0)-1),MATCH(H$2&\" Score\",'C. PoC Adj Factor Scoring'!$E$4:$J$4,0),TRUE)","v":1},{"$f":"VLOOKUP(OFFSET($B:$B,,MATCH(I$4,$B$4:$F$4,0)-1),OFFSET('C. PoC Adj Factor Scoring'!$E$5:$J$282,,MATCH(I$4,'C. PoC Adj Factor Scoring'!$E$3:$AH$3,0)-1),MATCH(I$2&\" Score\",'C. PoC Adj Factor Scoring'!$E$4:$J$4,0),TRUE)","v":1},{"$f":"VLOOKUP(OFFSET($B:$B,,MATCH(J$4,$B$4:$F$4,0)-1),OFFSET('C. PoC Adj Factor Scoring'!$E$5:$J$282,,MATCH(J$4,'C. PoC Adj Factor Scoring'!$E$3:$AH$3,0)-1),MATCH(J$2&\" Score\",'C. PoC Adj Factor Scoring'!$E$4:$J$4,0),TRUE)","v":1},{"$f":"VLOOKUP(OFFSET($B:$B,,MATCH(K$4,$B$4:$F$4,0)-1),OFFSET('C. PoC Adj Factor Scoring'!$E$5:$J$282,,MATCH(K$4,'C. PoC Adj Factor Scoring'!$E$3:$AH$3,0)-1),MATCH(K$2&\" Score\",'C. PoC Adj Factor Scoring'!$E$4:$J$4,0),TRUE)","v":1},{"$f":"VLOOKUP(OFFSET($B:$B,,MATCH(L$4,$B$4:$F$4,0)-1),OFFSET('C. PoC Adj Factor Scoring'!$E$5:$J$282,,MATCH(L$4,'C. PoC Adj Factor Scoring'!$E$3:$AH$3,0)-1),MATCH(L$2&\" Score\",'C. PoC Adj Factor Scoring'!$E$4:$J$4,0),TRUE)","v":1},{"$f":"VLOOKUP(OFFSET($B:$B,,MATCH(M$4,$B$4:$F$4,0)-1),OFFSET('C. PoC Adj Factor Scoring'!$E$5:$J$282,,MATCH(M$4,'C. PoC Adj Factor Scoring'!$E$3:$AH$3,0)-1),MATCH(M$2&\" Score\",'C. PoC Adj Factor Scoring'!$E$4:$J$4,0),TRUE)","v":1},{"$f":"VLOOKUP(OFFSET($B:$B,,MATCH(N$4,$B$4:$F$4,0)-1),OFFSET('C. PoC Adj Factor Scoring'!$E$5:$J$282,,MATCH(N$4,'C. PoC Adj Factor Scoring'!$E$3:$AH$3,0)-1),MATCH(N$2&\" Score\",'C. PoC Adj Factor Scoring'!$E$4:$J$4,0),TRUE)","v":1},{"$f":"VLOOKUP(OFFSET($B:$B,,MATCH(O$4,$B$4:$F$4,0)-1),OFFSET('C. PoC Adj Factor Scoring'!$E$5:$J$282,,MATCH(O$4,'C. PoC Adj Factor Scoring'!$E$3:$AH$3,0)-1),MATCH(O$2&\" Score\",'C. PoC Adj Factor Scoring'!$E$4:$J$4,0),TRUE)","v":1},{"$f":"VLOOKUP(OFFSET($B:$B,,MATCH(P$4,$B$4:$F$4,0)-1),OFFSET('C. PoC Adj Factor Scoring'!$E$5:$J$282,,MATCH(P$4,'C. PoC Adj Factor Scoring'!$E$3:$AH$3,0)-1),MATCH(P$2&\" Score\",'C. PoC Adj Factor Scoring'!$E$4:$J$4,0),TRUE)","v":1},{"$f":"VLOOKUP(OFFSET($B:$B,,MATCH(Q$4,$B$4:$F$4,0)-1),OFFSET('C. PoC Adj Factor Scoring'!$E$5:$J$282,,MATCH(Q$4,'C. PoC Adj Factor Scoring'!$E$3:$AH$3,0)-1),MATCH(Q$2&\" Score\",'C. PoC Adj Factor Scoring'!$E$4:$J$4,0),TRUE)","v":1},{"$f":"VLOOKUP(OFFSET($B:$B,,MATCH(R$4,$B$4:$F$4,0)-1),OFFSET('C. PoC Adj Factor Scoring'!$E$5:$J$282,,MATCH(R$4,'C. PoC Adj Factor Scoring'!$E$3:$AH$3,0)-1),MATCH(R$2&\" Score\",'C. PoC Adj Factor Scoring'!$E$4:$J$4,0),TRUE)","v":1},{"$f":"VLOOKUP(OFFSET($B:$B,,MATCH(S$4,$B$4:$F$4,0)-1),OFFSET('C. PoC Adj Factor Scoring'!$E$5:$J$282,,MATCH(S$4,'C. PoC Adj Factor Scoring'!$E$3:$AH$3,0)-1),MATCH(S$2&\" Score\",'C. PoC Adj Factor Scoring'!$E$4:$J$4,0),TRUE)","v":1},{"$f":"VLOOKUP(OFFSET($B:$B,,MATCH(T$4,$B$4:$F$4,0)-1),OFFSET('C. PoC Adj Factor Scoring'!$E$5:$J$282,,MATCH(T$4,'C. PoC Adj Factor Scoring'!$E$3:$AH$3,0)-1),MATCH(T$2&\" Score\",'C. PoC Adj Factor Scoring'!$E$4:$J$4,0),TRUE)","v":1},{"$f":"VLOOKUP(OFFSET($B:$B,,MATCH(U$4,$B$4:$F$4,0)-1),OFFSET('C. PoC Adj Factor Scoring'!$E$5:$J$282,,MATCH(U$4,'C. PoC Adj Factor Scoring'!$E$3:$AH$3,0)-1),MATCH(U$2&\" Score\",'C. PoC Adj Factor Scoring'!$E$4:$J$4,0),TRUE)","v":1},{"$f":"VLOOKUP(OFFSET($B:$B,,MATCH(V$4,$B$4:$F$4,0)-1),OFFSET('C. PoC Adj Factor Scoring'!$E$5:$J$282,,MATCH(V$4,'C. PoC Adj Factor Scoring'!$E$3:$AH$3,0)-1),MATCH(V$2&\" Score\",'C. PoC Adj Factor Scoring'!$E$4:$J$4,0),TRUE)","v":1},{"$f":"VLOOKUP(OFFSET($B:$B,,MATCH(W$4,$B$4:$F$4,0)-1),OFFSET('C. PoC Adj Factor Scoring'!$E$5:$J$282,,MATCH(W$4,'C. PoC Adj Factor Scoring'!$E$3:$AH$3,0)-1),MATCH(W$2&\" Score\",'C. PoC Adj Factor Scoring'!$E$4:$J$4,0),TRUE)","v":1},{"$f":"VLOOKUP(OFFSET($B:$B,,MATCH(X$4,$B$4:$F$4,0)-1),OFFSET('C. PoC Adj Factor Scoring'!$E$5:$J$282,,MATCH(X$4,'C. PoC Adj Factor Scoring'!$E$3:$AH$3,0)-1),MATCH(X$2&\" Score\",'C. PoC Adj Factor Scoring'!$E$4:$J$4,0),TRUE)","v":1},{"$f":"VLOOKUP(OFFSET($B:$B,,MATCH(Y$4,$B$4:$F$4,0)-1),OFFSET('C. PoC Adj Factor Scoring'!$E$5:$J$282,,MATCH(Y$4,'C. PoC Adj Factor Scoring'!$E$3:$AH$3,0)-1),MATCH(Y$2&\" Score\",'C. PoC Adj Factor Scoring'!$E$4:$J$4,0),TRUE)","v":1},{"$f":"VLOOKUP(OFFSET($B:$B,,MATCH(Z$4,$B$4:$F$4,0)-1),OFFSET('C. PoC Adj Factor Scoring'!$E$5:$J$282,,MATCH(Z$4,'C. PoC Adj Factor Scoring'!$E$3:$AH$3,0)-1),MATCH(Z$2&\" Score\",'C. PoC Adj Factor Scoring'!$E$4:$J$4,0),TRUE)","v":1},{"$f":"VLOOKUP(OFFSET($B:$B,,MATCH(AA$4,$B$4:$F$4,0)-1),OFFSET('C. PoC Adj Factor Scoring'!$E$5:$J$282,,MATCH(AA$4,'C. PoC Adj Factor Scoring'!$E$3:$AH$3,0)-1),MATCH(AA$2&\" Score\",'C. PoC Adj Factor Scoring'!$E$4:$J$4,0),TRUE)","v":3},{"$f":"VLOOKUP(OFFSET($B:$B,,MATCH(AB$4,$B$4:$F$4,0)-1),OFFSET('C. PoC Adj Factor Scoring'!$E$5:$J$282,,MATCH(AB$4,'C. PoC Adj Factor Scoring'!$E$3:$AH$3,0)-1),MATCH(AB$2&\" Score\",'C. PoC Adj Factor Scoring'!$E$4:$J$4,0),TRUE)","v":1},{"$f":"VLOOKUP(OFFSET($B:$B,,MATCH(AC$4,$B$4:$F$4,0)-1),OFFSET('C. PoC Adj Factor Scoring'!$E$5:$J$282,,MATCH(AC$4,'C. PoC Adj Factor Scoring'!$E$3:$AH$3,0)-1),MATCH(AC$2&\" Score\",'C. PoC Adj Factor Scoring'!$E$4:$J$4,0),TRUE)","v":1},{"$f":"VLOOKUP(OFFSET($B:$B,,MATCH(AD$4,$B$4:$F$4,0)-1),OFFSET('C. PoC Adj Factor Scoring'!$E$5:$J$282,,MATCH(AD$4,'C. PoC Adj Factor Scoring'!$E$3:$AH$3,0)-1),MATCH(AD$2&\" Score\",'C. PoC Adj Factor Scoring'!$E$4:$J$4,0),TRUE)","v":1},{"$f":"VLOOKUP(OFFSET($B:$B,,MATCH(AE$4,$B$4:$F$4,0)-1),OFFSET('C. PoC Adj Factor Scoring'!$E$5:$J$282,,MATCH(AE$4,'C. PoC Adj Factor Scoring'!$E$3:$AH$3,0)-1),MATCH(AE$2&\" Score\",'C. PoC Adj Factor Scoring'!$E$4:$J$4,0),TRUE)","v":1}]
[{"$f":"'A. Population Info'!A399","v":1000407484},{"$f":"'A. Population Info'!L399","v":"OIL"},{"$f":"'A. Population Info'!M399","v":0},{"$f":"'A. Population Info'!N399","v":0},{"$f":"'A. Population Info'!O399","v":0},{"$f":"'A. Population Info'!P399","v":0},{"$f":"VLOOKUP(OFFSET($B:$B,,MATCH(G$4,$B$4:$F$4,0)-1),OFFSET('C. PoC Adj Factor Scoring'!$E$5:$J$282,,MATCH(G$4,'C. PoC Adj Factor Scoring'!$E$3:$AH$3,0)-1),MATCH(G$2&\" Score\",'C. PoC Adj Factor Scoring'!$E$4:$J$4,0),TRUE)","v":4},{"$f":"VLOOKUP(OFFSET($B:$B,,MATCH(H$4,$B$4:$F$4,0)-1),OFFSET('C. PoC Adj Factor Scoring'!$E$5:$J$282,,MATCH(H$4,'C. PoC Adj Factor Scoring'!$E$3:$AH$3,0)-1),MATCH(H$2&\" Score\",'C. PoC Adj Factor Scoring'!$E$4:$J$4,0),TRUE)","v":1},{"$f":"VLOOKUP(OFFSET($B:$B,,MATCH(I$4,$B$4:$F$4,0)-1),OFFSET('C. PoC Adj Factor Scoring'!$E$5:$J$282,,MATCH(I$4,'C. PoC Adj Factor Scoring'!$E$3:$AH$3,0)-1),MATCH(I$2&\" Score\",'C. PoC Adj Factor Scoring'!$E$4:$J$4,0),TRUE)","v":1},{"$f":"VLOOKUP(OFFSET($B:$B,,MATCH(J$4,$B$4:$F$4,0)-1),OFFSET('C. PoC Adj Factor Scoring'!$E$5:$J$282,,MATCH(J$4,'C. PoC Adj Factor Scoring'!$E$3:$AH$3,0)-1),MATCH(J$2&\" Score\",'C. PoC Adj Factor Scoring'!$E$4:$J$4,0),TRUE)","v":1},{"$f":"VLOOKUP(OFFSET($B:$B,,MATCH(K$4,$B$4:$F$4,0)-1),OFFSET('C. PoC Adj Factor Scoring'!$E$5:$J$282,,MATCH(K$4,'C. PoC Adj Factor Scoring'!$E$3:$AH$3,0)-1),MATCH(K$2&\" Score\",'C. PoC Adj Factor Scoring'!$E$4:$J$4,0),TRUE)","v":1},{"$f":"VLOOKUP(OFFSET($B:$B,,MATCH(L$4,$B$4:$F$4,0)-1),OFFSET('C. PoC Adj Factor Scoring'!$E$5:$J$282,,MATCH(L$4,'C. PoC Adj Factor Scoring'!$E$3:$AH$3,0)-1),MATCH(L$2&\" Score\",'C. PoC Adj Factor Scoring'!$E$4:$J$4,0),TRUE)","v":1},{"$f":"VLOOKUP(OFFSET($B:$B,,MATCH(M$4,$B$4:$F$4,0)-1),OFFSET('C. PoC Adj Factor Scoring'!$E$5:$J$282,,MATCH(M$4,'C. PoC Adj Factor Scoring'!$E$3:$AH$3,0)-1),MATCH(M$2&\" Score\",'C. PoC Adj Factor Scoring'!$E$4:$J$4,0),TRUE)","v":1},{"$f":"VLOOKUP(OFFSET($B:$B,,MATCH(N$4,$B$4:$F$4,0)-1),OFFSET('C. PoC Adj Factor Scoring'!$E$5:$J$282,,MATCH(N$4,'C. PoC Adj Factor Scoring'!$E$3:$AH$3,0)-1),MATCH(N$2&\" Score\",'C. PoC Adj Factor Scoring'!$E$4:$J$4,0),TRUE)","v":1},{"$f":"VLOOKUP(OFFSET($B:$B,,MATCH(O$4,$B$4:$F$4,0)-1),OFFSET('C. PoC Adj Factor Scoring'!$E$5:$J$282,,MATCH(O$4,'C. PoC Adj Factor Scoring'!$E$3:$AH$3,0)-1),MATCH(O$2&\" Score\",'C. PoC Adj Factor Scoring'!$E$4:$J$4,0),TRUE)","v":1},{"$f":"VLOOKUP(OFFSET($B:$B,,MATCH(P$4,$B$4:$F$4,0)-1),OFFSET('C. PoC Adj Factor Scoring'!$E$5:$J$282,,MATCH(P$4,'C. PoC Adj Factor Scoring'!$E$3:$AH$3,0)-1),MATCH(P$2&\" Score\",'C. PoC Adj Factor Scoring'!$E$4:$J$4,0),TRUE)","v":1},{"$f":"VLOOKUP(OFFSET($B:$B,,MATCH(Q$4,$B$4:$F$4,0)-1),OFFSET('C. PoC Adj Factor Scoring'!$E$5:$J$282,,MATCH(Q$4,'C. PoC Adj Factor Scoring'!$E$3:$AH$3,0)-1),MATCH(Q$2&\" Score\",'C. PoC Adj Factor Scoring'!$E$4:$J$4,0),TRUE)","v":1},{"$f":"VLOOKUP(OFFSET($B:$B,,MATCH(R$4,$B$4:$F$4,0)-1),OFFSET('C. PoC Adj Factor Scoring'!$E$5:$J$282,,MATCH(R$4,'C. PoC Adj Factor Scoring'!$E$3:$AH$3,0)-1),MATCH(R$2&\" Score\",'C. PoC Adj Factor Scoring'!$E$4:$J$4,0),TRUE)","v":1},{"$f":"VLOOKUP(OFFSET($B:$B,,MATCH(S$4,$B$4:$F$4,0)-1),OFFSET('C. PoC Adj Factor Scoring'!$E$5:$J$282,,MATCH(S$4,'C. PoC Adj Factor Scoring'!$E$3:$AH$3,0)-1),MATCH(S$2&\" Score\",'C. PoC Adj Factor Scoring'!$E$4:$J$4,0),TRUE)","v":1},{"$f":"VLOOKUP(OFFSET($B:$B,,MATCH(T$4,$B$4:$F$4,0)-1),OFFSET('C. PoC Adj Factor Scoring'!$E$5:$J$282,,MATCH(T$4,'C. PoC Adj Factor Scoring'!$E$3:$AH$3,0)-1),MATCH(T$2&\" Score\",'C. PoC Adj Factor Scoring'!$E$4:$J$4,0),TRUE)","v":1},{"$f":"VLOOKUP(OFFSET($B:$B,,MATCH(U$4,$B$4:$F$4,0)-1),OFFSET('C. PoC Adj Factor Scoring'!$E$5:$J$282,,MATCH(U$4,'C. PoC Adj Factor Scoring'!$E$3:$AH$3,0)-1),MATCH(U$2&\" Score\",'C. PoC Adj Factor Scoring'!$E$4:$J$4,0),TRUE)","v":1},{"$f":"VLOOKUP(OFFSET($B:$B,,MATCH(V$4,$B$4:$F$4,0)-1),OFFSET('C. PoC Adj Factor Scoring'!$E$5:$J$282,,MATCH(V$4,'C. PoC Adj Factor Scoring'!$E$3:$AH$3,0)-1),MATCH(V$2&\" Score\",'C. PoC Adj Factor Scoring'!$E$4:$J$4,0),TRUE)","v":1},{"$f":"VLOOKUP(OFFSET($B:$B,,MATCH(W$4,$B$4:$F$4,0)-1),OFFSET('C. PoC Adj Factor Scoring'!$E$5:$J$282,,MATCH(W$4,'C. PoC Adj Factor Scoring'!$E$3:$AH$3,0)-1),MATCH(W$2&\" Score\",'C. PoC Adj Factor Scoring'!$E$4:$J$4,0),TRUE)","v":1},{"$f":"VLOOKUP(OFFSET($B:$B,,MATCH(X$4,$B$4:$F$4,0)-1),OFFSET('C. PoC Adj Factor Scoring'!$E$5:$J$282,,MATCH(X$4,'C. PoC Adj Factor Scoring'!$E$3:$AH$3,0)-1),MATCH(X$2&\" Score\",'C. PoC Adj Factor Scoring'!$E$4:$J$4,0),TRUE)","v":1},{"$f":"VLOOKUP(OFFSET($B:$B,,MATCH(Y$4,$B$4:$F$4,0)-1),OFFSET('C. PoC Adj Factor Scoring'!$E$5:$J$282,,MATCH(Y$4,'C. PoC Adj Factor Scoring'!$E$3:$AH$3,0)-1),MATCH(Y$2&\" Score\",'C. PoC Adj Factor Scoring'!$E$4:$J$4,0),TRUE)","v":1},{"$f":"VLOOKUP(OFFSET($B:$B,,MATCH(Z$4,$B$4:$F$4,0)-1),OFFSET('C. PoC Adj Factor Scoring'!$E$5:$J$282,,MATCH(Z$4,'C. PoC Adj Factor Scoring'!$E$3:$AH$3,0)-1),MATCH(Z$2&\" Score\",'C. PoC Adj Factor Scoring'!$E$4:$J$4,0),TRUE)","v":1},{"$f":"VLOOKUP(OFFSET($B:$B,,MATCH(AA$4,$B$4:$F$4,0)-1),OFFSET('C. PoC Adj Factor Scoring'!$E$5:$J$282,,MATCH(AA$4,'C. PoC Adj Factor Scoring'!$E$3:$AH$3,0)-1),MATCH(AA$2&\" Score\",'C. PoC Adj Factor Scoring'!$E$4:$J$4,0),TRUE)","v":3},{"$f":"VLOOKUP(OFFSET($B:$B,,MATCH(AB$4,$B$4:$F$4,0)-1),OFFSET('C. PoC Adj Factor Scoring'!$E$5:$J$282,,MATCH(AB$4,'C. PoC Adj Factor Scoring'!$E$3:$AH$3,0)-1),MATCH(AB$2&\" Score\",'C. PoC Adj Factor Scoring'!$E$4:$J$4,0),TRUE)","v":1},{"$f":"VLOOKUP(OFFSET($B:$B,,MATCH(AC$4,$B$4:$F$4,0)-1),OFFSET('C. PoC Adj Factor Scoring'!$E$5:$J$282,,MATCH(AC$4,'C. PoC Adj Factor Scoring'!$E$3:$AH$3,0)-1),MATCH(AC$2&\" Score\",'C. PoC Adj Factor Scoring'!$E$4:$J$4,0),TRUE)","v":1},{"$f":"VLOOKUP(OFFSET($B:$B,,MATCH(AD$4,$B$4:$F$4,0)-1),OFFSET('C. PoC Adj Factor Scoring'!$E$5:$J$282,,MATCH(AD$4,'C. PoC Adj Factor Scoring'!$E$3:$AH$3,0)-1),MATCH(AD$2&\" Score\",'C. PoC Adj Factor Scoring'!$E$4:$J$4,0),TRUE)","v":1},{"$f":"VLOOKUP(OFFSET($B:$B,,MATCH(AE$4,$B$4:$F$4,0)-1),OFFSET('C. PoC Adj Factor Scoring'!$E$5:$J$282,,MATCH(AE$4,'C. PoC Adj Factor Scoring'!$E$3:$AH$3,0)-1),MATCH(AE$2&\" Score\",'C. PoC Adj Factor Scoring'!$E$4:$J$4,0),TRUE)","v":1}]
[{"$f":"'A. Population Info'!A400","v":1000407503},{"$f":"'A. Population Info'!L400","v":"OIL"},{"$f":"'A. Population Info'!M400","v":0},{"$f":"'A. Population Info'!N400","v":0},{"$f":"'A. Population Info'!O400","v":0},{"$f":"'A. Population Info'!P400","v":0},{"$f":"VLOOKUP(OFFSET($B:$B,,MATCH(G$4,$B$4:$F$4,0)-1),OFFSET('C. PoC Adj Factor Scoring'!$E$5:$J$282,,MATCH(G$4,'C. PoC Adj Factor Scoring'!$E$3:$AH$3,0)-1),MATCH(G$2&\" Score\",'C. PoC Adj Factor Scoring'!$E$4:$J$4,0),TRUE)","v":4},{"$f":"VLOOKUP(OFFSET($B:$B,,MATCH(H$4,$B$4:$F$4,0)-1),OFFSET('C. PoC Adj Factor Scoring'!$E$5:$J$282,,MATCH(H$4,'C. PoC Adj Factor Scoring'!$E$3:$AH$3,0)-1),MATCH(H$2&\" Score\",'C. PoC Adj Factor Scoring'!$E$4:$J$4,0),TRUE)","v":1},{"$f":"VLOOKUP(OFFSET($B:$B,,MATCH(I$4,$B$4:$F$4,0)-1),OFFSET('C. PoC Adj Factor Scoring'!$E$5:$J$282,,MATCH(I$4,'C. PoC Adj Factor Scoring'!$E$3:$AH$3,0)-1),MATCH(I$2&\" Score\",'C. PoC Adj Factor Scoring'!$E$4:$J$4,0),TRUE)","v":1},{"$f":"VLOOKUP(OFFSET($B:$B,,MATCH(J$4,$B$4:$F$4,0)-1),OFFSET('C. PoC Adj Factor Scoring'!$E$5:$J$282,,MATCH(J$4,'C. PoC Adj Factor Scoring'!$E$3:$AH$3,0)-1),MATCH(J$2&\" Score\",'C. PoC Adj Factor Scoring'!$E$4:$J$4,0),TRUE)","v":1},{"$f":"VLOOKUP(OFFSET($B:$B,,MATCH(K$4,$B$4:$F$4,0)-1),OFFSET('C. PoC Adj Factor Scoring'!$E$5:$J$282,,MATCH(K$4,'C. PoC Adj Factor Scoring'!$E$3:$AH$3,0)-1),MATCH(K$2&\" Score\",'C. PoC Adj Factor Scoring'!$E$4:$J$4,0),TRUE)","v":1},{"$f":"VLOOKUP(OFFSET($B:$B,,MATCH(L$4,$B$4:$F$4,0)-1),OFFSET('C. PoC Adj Factor Scoring'!$E$5:$J$282,,MATCH(L$4,'C. PoC Adj Factor Scoring'!$E$3:$AH$3,0)-1),MATCH(L$2&\" Score\",'C. PoC Adj Factor Scoring'!$E$4:$J$4,0),TRUE)","v":1},{"$f":"VLOOKUP(OFFSET($B:$B,,MATCH(M$4,$B$4:$F$4,0)-1),OFFSET('C. PoC Adj Factor Scoring'!$E$5:$J$282,,MATCH(M$4,'C. PoC Adj Factor Scoring'!$E$3:$AH$3,0)-1),MATCH(M$2&\" Score\",'C. PoC Adj Factor Scoring'!$E$4:$J$4,0),TRUE)","v":1},{"$f":"VLOOKUP(OFFSET($B:$B,,MATCH(N$4,$B$4:$F$4,0)-1),OFFSET('C. PoC Adj Factor Scoring'!$E$5:$J$282,,MATCH(N$4,'C. PoC Adj Factor Scoring'!$E$3:$AH$3,0)-1),MATCH(N$2&\" Score\",'C. PoC Adj Factor Scoring'!$E$4:$J$4,0),TRUE)","v":1},{"$f":"VLOOKUP(OFFSET($B:$B,,MATCH(O$4,$B$4:$F$4,0)-1),OFFSET('C. PoC Adj Factor Scoring'!$E$5:$J$282,,MATCH(O$4,'C. PoC Adj Factor Scoring'!$E$3:$AH$3,0)-1),MATCH(O$2&\" Score\",'C. PoC Adj Factor Scoring'!$E$4:$J$4,0),TRUE)","v":1},{"$f":"VLOOKUP(OFFSET($B:$B,,MATCH(P$4,$B$4:$F$4,0)-1),OFFSET('C. PoC Adj Factor Scoring'!$E$5:$J$282,,MATCH(P$4,'C. PoC Adj Factor Scoring'!$E$3:$AH$3,0)-1),MATCH(P$2&\" Score\",'C. PoC Adj Factor Scoring'!$E$4:$J$4,0),TRUE)","v":1},{"$f":"VLOOKUP(OFFSET($B:$B,,MATCH(Q$4,$B$4:$F$4,0)-1),OFFSET('C. PoC Adj Factor Scoring'!$E$5:$J$282,,MATCH(Q$4,'C. PoC Adj Factor Scoring'!$E$3:$AH$3,0)-1),MATCH(Q$2&\" Score\",'C. PoC Adj Factor Scoring'!$E$4:$J$4,0),TRUE)","v":1},{"$f":"VLOOKUP(OFFSET($B:$B,,MATCH(R$4,$B$4:$F$4,0)-1),OFFSET('C. PoC Adj Factor Scoring'!$E$5:$J$282,,MATCH(R$4,'C. PoC Adj Factor Scoring'!$E$3:$AH$3,0)-1),MATCH(R$2&\" Score\",'C. PoC Adj Factor Scoring'!$E$4:$J$4,0),TRUE)","v":1},{"$f":"VLOOKUP(OFFSET($B:$B,,MATCH(S$4,$B$4:$F$4,0)-1),OFFSET('C. PoC Adj Factor Scoring'!$E$5:$J$282,,MATCH(S$4,'C. PoC Adj Factor Scoring'!$E$3:$AH$3,0)-1),MATCH(S$2&\" Score\",'C. PoC Adj Factor Scoring'!$E$4:$J$4,0),TRUE)","v":1},{"$f":"VLOOKUP(OFFSET($B:$B,,MATCH(T$4,$B$4:$F$4,0)-1),OFFSET('C. PoC Adj Factor Scoring'!$E$5:$J$282,,MATCH(T$4,'C. PoC Adj Factor Scoring'!$E$3:$AH$3,0)-1),MATCH(T$2&\" Score\",'C. PoC Adj Factor Scoring'!$E$4:$J$4,0),TRUE)","v":1},{"$f":"VLOOKUP(OFFSET($B:$B,,MATCH(U$4,$B$4:$F$4,0)-1),OFFSET('C. PoC Adj Factor Scoring'!$E$5:$J$282,,MATCH(U$4,'C. PoC Adj Factor Scoring'!$E$3:$AH$3,0)-1),MATCH(U$2&\" Score\",'C. PoC Adj Factor Scoring'!$E$4:$J$4,0),TRUE)","v":1},{"$f":"VLOOKUP(OFFSET($B:$B,,MATCH(V$4,$B$4:$F$4,0)-1),OFFSET('C. PoC Adj Factor Scoring'!$E$5:$J$282,,MATCH(V$4,'C. PoC Adj Factor Scoring'!$E$3:$AH$3,0)-1),MATCH(V$2&\" Score\",'C. PoC Adj Factor Scoring'!$E$4:$J$4,0),TRUE)","v":1},{"$f":"VLOOKUP(OFFSET($B:$B,,MATCH(W$4,$B$4:$F$4,0)-1),OFFSET('C. PoC Adj Factor Scoring'!$E$5:$J$282,,MATCH(W$4,'C. PoC Adj Factor Scoring'!$E$3:$AH$3,0)-1),MATCH(W$2&\" Score\",'C. PoC Adj Factor Scoring'!$E$4:$J$4,0),TRUE)","v":1},{"$f":"VLOOKUP(OFFSET($B:$B,,MATCH(X$4,$B$4:$F$4,0)-1),OFFSET('C. PoC Adj Factor Scoring'!$E$5:$J$282,,MATCH(X$4,'C. PoC Adj Factor Scoring'!$E$3:$AH$3,0)-1),MATCH(X$2&\" Score\",'C. PoC Adj Factor Scoring'!$E$4:$J$4,0),TRUE)","v":1},{"$f":"VLOOKUP(OFFSET($B:$B,,MATCH(Y$4,$B$4:$F$4,0)-1),OFFSET('C. PoC Adj Factor Scoring'!$E$5:$J$282,,MATCH(Y$4,'C. PoC Adj Factor Scoring'!$E$3:$AH$3,0)-1),MATCH(Y$2&\" Score\",'C. PoC Adj Factor Scoring'!$E$4:$J$4,0),TRUE)","v":1},{"$f":"VLOOKUP(OFFSET($B:$B,,MATCH(Z$4,$B$4:$F$4,0)-1),OFFSET('C. PoC Adj Factor Scoring'!$E$5:$J$282,,MATCH(Z$4,'C. PoC Adj Factor Scoring'!$E$3:$AH$3,0)-1),MATCH(Z$2&\" Score\",'C. PoC Adj Factor Scoring'!$E$4:$J$4,0),TRUE)","v":1},{"$f":"VLOOKUP(OFFSET($B:$B,,MATCH(AA$4,$B$4:$F$4,0)-1),OFFSET('C. PoC Adj Factor Scoring'!$E$5:$J$282,,MATCH(AA$4,'C. PoC Adj Factor Scoring'!$E$3:$AH$3,0)-1),MATCH(AA$2&\" Score\",'C. PoC Adj Factor Scoring'!$E$4:$J$4,0),TRUE)","v":3},{"$f":"VLOOKUP(OFFSET($B:$B,,MATCH(AB$4,$B$4:$F$4,0)-1),OFFSET('C. PoC Adj Factor Scoring'!$E$5:$J$282,,MATCH(AB$4,'C. PoC Adj Factor Scoring'!$E$3:$AH$3,0)-1),MATCH(AB$2&\" Score\",'C. PoC Adj Factor Scoring'!$E$4:$J$4,0),TRUE)","v":1},{"$f":"VLOOKUP(OFFSET($B:$B,,MATCH(AC$4,$B$4:$F$4,0)-1),OFFSET('C. PoC Adj Factor Scoring'!$E$5:$J$282,,MATCH(AC$4,'C. PoC Adj Factor Scoring'!$E$3:$AH$3,0)-1),MATCH(AC$2&\" Score\",'C. PoC Adj Factor Scoring'!$E$4:$J$4,0),TRUE)","v":1},{"$f":"VLOOKUP(OFFSET($B:$B,,MATCH(AD$4,$B$4:$F$4,0)-1),OFFSET('C. PoC Adj Factor Scoring'!$E$5:$J$282,,MATCH(AD$4,'C. PoC Adj Factor Scoring'!$E$3:$AH$3,0)-1),MATCH(AD$2&\" Score\",'C. PoC Adj Factor Scoring'!$E$4:$J$4,0),TRUE)","v":1},{"$f":"VLOOKUP(OFFSET($B:$B,,MATCH(AE$4,$B$4:$F$4,0)-1),OFFSET('C. PoC Adj Factor Scoring'!$E$5:$J$282,,MATCH(AE$4,'C. PoC Adj Factor Scoring'!$E$3:$AH$3,0)-1),MATCH(AE$2&\" Score\",'C. PoC Adj Factor Scoring'!$E$4:$J$4,0),TRUE)","v":1}]
[{"$f":"'A. Population Info'!A401","v":1000407527},{"$f":"'A. Population Info'!L401","v":"OIL"},{"$f":"'A. Population Info'!M401","v":0},{"$f":"'A. Population Info'!N401","v":0},{"$f":"'A. Population Info'!O401","v":0},{"$f":"'A. Population Info'!P401","v":0},{"$f":"VLOOKUP(OFFSET($B:$B,,MATCH(G$4,$B$4:$F$4,0)-1),OFFSET('C. PoC Adj Factor Scoring'!$E$5:$J$282,,MATCH(G$4,'C. PoC Adj Factor Scoring'!$E$3:$AH$3,0)-1),MATCH(G$2&\" Score\",'C. PoC Adj Factor Scoring'!$E$4:$J$4,0),TRUE)","v":4},{"$f":"VLOOKUP(OFFSET($B:$B,,MATCH(H$4,$B$4:$F$4,0)-1),OFFSET('C. PoC Adj Factor Scoring'!$E$5:$J$282,,MATCH(H$4,'C. PoC Adj Factor Scoring'!$E$3:$AH$3,0)-1),MATCH(H$2&\" Score\",'C. PoC Adj Factor Scoring'!$E$4:$J$4,0),TRUE)","v":1},{"$f":"VLOOKUP(OFFSET($B:$B,,MATCH(I$4,$B$4:$F$4,0)-1),OFFSET('C. PoC Adj Factor Scoring'!$E$5:$J$282,,MATCH(I$4,'C. PoC Adj Factor Scoring'!$E$3:$AH$3,0)-1),MATCH(I$2&\" Score\",'C. PoC Adj Factor Scoring'!$E$4:$J$4,0),TRUE)","v":1},{"$f":"VLOOKUP(OFFSET($B:$B,,MATCH(J$4,$B$4:$F$4,0)-1),OFFSET('C. PoC Adj Factor Scoring'!$E$5:$J$282,,MATCH(J$4,'C. PoC Adj Factor Scoring'!$E$3:$AH$3,0)-1),MATCH(J$2&\" Score\",'C. PoC Adj Factor Scoring'!$E$4:$J$4,0),TRUE)","v":1},{"$f":"VLOOKUP(OFFSET($B:$B,,MATCH(K$4,$B$4:$F$4,0)-1),OFFSET('C. PoC Adj Factor Scoring'!$E$5:$J$282,,MATCH(K$4,'C. PoC Adj Factor Scoring'!$E$3:$AH$3,0)-1),MATCH(K$2&\" Score\",'C. PoC Adj Factor Scoring'!$E$4:$J$4,0),TRUE)","v":1},{"$f":"VLOOKUP(OFFSET($B:$B,,MATCH(L$4,$B$4:$F$4,0)-1),OFFSET('C. PoC Adj Factor Scoring'!$E$5:$J$282,,MATCH(L$4,'C. PoC Adj Factor Scoring'!$E$3:$AH$3,0)-1),MATCH(L$2&\" Score\",'C. PoC Adj Factor Scoring'!$E$4:$J$4,0),TRUE)","v":1},{"$f":"VLOOKUP(OFFSET($B:$B,,MATCH(M$4,$B$4:$F$4,0)-1),OFFSET('C. PoC Adj Factor Scoring'!$E$5:$J$282,,MATCH(M$4,'C. PoC Adj Factor Scoring'!$E$3:$AH$3,0)-1),MATCH(M$2&\" Score\",'C. PoC Adj Factor Scoring'!$E$4:$J$4,0),TRUE)","v":1},{"$f":"VLOOKUP(OFFSET($B:$B,,MATCH(N$4,$B$4:$F$4,0)-1),OFFSET('C. PoC Adj Factor Scoring'!$E$5:$J$282,,MATCH(N$4,'C. PoC Adj Factor Scoring'!$E$3:$AH$3,0)-1),MATCH(N$2&\" Score\",'C. PoC Adj Factor Scoring'!$E$4:$J$4,0),TRUE)","v":1},{"$f":"VLOOKUP(OFFSET($B:$B,,MATCH(O$4,$B$4:$F$4,0)-1),OFFSET('C. PoC Adj Factor Scoring'!$E$5:$J$282,,MATCH(O$4,'C. PoC Adj Factor Scoring'!$E$3:$AH$3,0)-1),MATCH(O$2&\" Score\",'C. PoC Adj Factor Scoring'!$E$4:$J$4,0),TRUE)","v":1},{"$f":"VLOOKUP(OFFSET($B:$B,,MATCH(P$4,$B$4:$F$4,0)-1),OFFSET('C. PoC Adj Factor Scoring'!$E$5:$J$282,,MATCH(P$4,'C. PoC Adj Factor Scoring'!$E$3:$AH$3,0)-1),MATCH(P$2&\" Score\",'C. PoC Adj Factor Scoring'!$E$4:$J$4,0),TRUE)","v":1},{"$f":"VLOOKUP(OFFSET($B:$B,,MATCH(Q$4,$B$4:$F$4,0)-1),OFFSET('C. PoC Adj Factor Scoring'!$E$5:$J$282,,MATCH(Q$4,'C. PoC Adj Factor Scoring'!$E$3:$AH$3,0)-1),MATCH(Q$2&\" Score\",'C. PoC Adj Factor Scoring'!$E$4:$J$4,0),TRUE)","v":1},{"$f":"VLOOKUP(OFFSET($B:$B,,MATCH(R$4,$B$4:$F$4,0)-1),OFFSET('C. PoC Adj Factor Scoring'!$E$5:$J$282,,MATCH(R$4,'C. PoC Adj Factor Scoring'!$E$3:$AH$3,0)-1),MATCH(R$2&\" Score\",'C. PoC Adj Factor Scoring'!$E$4:$J$4,0),TRUE)","v":1},{"$f":"VLOOKUP(OFFSET($B:$B,,MATCH(S$4,$B$4:$F$4,0)-1),OFFSET('C. PoC Adj Factor Scoring'!$E$5:$J$282,,MATCH(S$4,'C. PoC Adj Factor Scoring'!$E$3:$AH$3,0)-1),MATCH(S$2&\" Score\",'C. PoC Adj Factor Scoring'!$E$4:$J$4,0),TRUE)","v":1},{"$f":"VLOOKUP(OFFSET($B:$B,,MATCH(T$4,$B$4:$F$4,0)-1),OFFSET('C. PoC Adj Factor Scoring'!$E$5:$J$282,,MATCH(T$4,'C. PoC Adj Factor Scoring'!$E$3:$AH$3,0)-1),MATCH(T$2&\" Score\",'C. PoC Adj Factor Scoring'!$E$4:$J$4,0),TRUE)","v":1},{"$f":"VLOOKUP(OFFSET($B:$B,,MATCH(U$4,$B$4:$F$4,0)-1),OFFSET('C. PoC Adj Factor Scoring'!$E$5:$J$282,,MATCH(U$4,'C. PoC Adj Factor Scoring'!$E$3:$AH$3,0)-1),MATCH(U$2&\" Score\",'C. PoC Adj Factor Scoring'!$E$4:$J$4,0),TRUE)","v":1},{"$f":"VLOOKUP(OFFSET($B:$B,,MATCH(V$4,$B$4:$F$4,0)-1),OFFSET('C. PoC Adj Factor Scoring'!$E$5:$J$282,,MATCH(V$4,'C. PoC Adj Factor Scoring'!$E$3:$AH$3,0)-1),MATCH(V$2&\" Score\",'C. PoC Adj Factor Scoring'!$E$4:$J$4,0),TRUE)","v":1},{"$f":"VLOOKUP(OFFSET($B:$B,,MATCH(W$4,$B$4:$F$4,0)-1),OFFSET('C. PoC Adj Factor Scoring'!$E$5:$J$282,,MATCH(W$4,'C. PoC Adj Factor Scoring'!$E$3:$AH$3,0)-1),MATCH(W$2&\" Score\",'C. PoC Adj Factor Scoring'!$E$4:$J$4,0),TRUE)","v":1},{"$f":"VLOOKUP(OFFSET($B:$B,,MATCH(X$4,$B$4:$F$4,0)-1),OFFSET('C. PoC Adj Factor Scoring'!$E$5:$J$282,,MATCH(X$4,'C. PoC Adj Factor Scoring'!$E$3:$AH$3,0)-1),MATCH(X$2&\" Score\",'C. PoC Adj Factor Scoring'!$E$4:$J$4,0),TRUE)","v":1},{"$f":"VLOOKUP(OFFSET($B:$B,,MATCH(Y$4,$B$4:$F$4,0)-1),OFFSET('C. PoC Adj Factor Scoring'!$E$5:$J$282,,MATCH(Y$4,'C. PoC Adj Factor Scoring'!$E$3:$AH$3,0)-1),MATCH(Y$2&\" Score\",'C. PoC Adj Factor Scoring'!$E$4:$J$4,0),TRUE)","v":1},{"$f":"VLOOKUP(OFFSET($B:$B,,MATCH(Z$4,$B$4:$F$4,0)-1),OFFSET('C. PoC Adj Factor Scoring'!$E$5:$J$282,,MATCH(Z$4,'C. PoC Adj Factor Scoring'!$E$3:$AH$3,0)-1),MATCH(Z$2&\" Score\",'C. PoC Adj Factor Scoring'!$E$4:$J$4,0),TRUE)","v":1},{"$f":"VLOOKUP(OFFSET($B:$B,,MATCH(AA$4,$B$4:$F$4,0)-1),OFFSET('C. PoC Adj Factor Scoring'!$E$5:$J$282,,MATCH(AA$4,'C. PoC Adj Factor Scoring'!$E$3:$AH$3,0)-1),MATCH(AA$2&\" Score\",'C. PoC Adj Factor Scoring'!$E$4:$J$4,0),TRUE)","v":3},{"$f":"VLOOKUP(OFFSET($B:$B,,MATCH(AB$4,$B$4:$F$4,0)-1),OFFSET('C. PoC Adj Factor Scoring'!$E$5:$J$282,,MATCH(AB$4,'C. PoC Adj Factor Scoring'!$E$3:$AH$3,0)-1),MATCH(AB$2&\" Score\",'C. PoC Adj Factor Scoring'!$E$4:$J$4,0),TRUE)","v":1},{"$f":"VLOOKUP(OFFSET($B:$B,,MATCH(AC$4,$B$4:$F$4,0)-1),OFFSET('C. PoC Adj Factor Scoring'!$E$5:$J$282,,MATCH(AC$4,'C. PoC Adj Factor Scoring'!$E$3:$AH$3,0)-1),MATCH(AC$2&\" Score\",'C. PoC Adj Factor Scoring'!$E$4:$J$4,0),TRUE)","v":1},{"$f":"VLOOKUP(OFFSET($B:$B,,MATCH(AD$4,$B$4:$F$4,0)-1),OFFSET('C. PoC Adj Factor Scoring'!$E$5:$J$282,,MATCH(AD$4,'C. PoC Adj Factor Scoring'!$E$3:$AH$3,0)-1),MATCH(AD$2&\" Score\",'C. PoC Adj Factor Scoring'!$E$4:$J$4,0),TRUE)","v":1},{"$f":"VLOOKUP(OFFSET($B:$B,,MATCH(AE$4,$B$4:$F$4,0)-1),OFFSET('C. PoC Adj Factor Scoring'!$E$5:$J$282,,MATCH(AE$4,'C. PoC Adj Factor Scoring'!$E$3:$AH$3,0)-1),MATCH(AE$2&\" Score\",'C. PoC Adj Factor Scoring'!$E$4:$J$4,0),TRUE)","v":1}]
[{"$f":"'A. Population Info'!A402","v":1000407547},{"$f":"'A. Population Info'!L402","v":"OIL"},{"$f":"'A. Population Info'!M402","v":0},{"$f":"'A. Population Info'!N402","v":0},{"$f":"'A. Population Info'!O402","v":0},{"$f":"'A. Population Info'!P402","v":0},{"$f":"VLOOKUP(OFFSET($B:$B,,MATCH(G$4,$B$4:$F$4,0)-1),OFFSET('C. PoC Adj Factor Scoring'!$E$5:$J$282,,MATCH(G$4,'C. PoC Adj Factor Scoring'!$E$3:$AH$3,0)-1),MATCH(G$2&\" Score\",'C. PoC Adj Factor Scoring'!$E$4:$J$4,0),TRUE)","v":4},{"$f":"VLOOKUP(OFFSET($B:$B,,MATCH(H$4,$B$4:$F$4,0)-1),OFFSET('C. PoC Adj Factor Scoring'!$E$5:$J$282,,MATCH(H$4,'C. PoC Adj Factor Scoring'!$E$3:$AH$3,0)-1),MATCH(H$2&\" Score\",'C. PoC Adj Factor Scoring'!$E$4:$J$4,0),TRUE)","v":1},{"$f":"VLOOKUP(OFFSET($B:$B,,MATCH(I$4,$B$4:$F$4,0)-1),OFFSET('C. PoC Adj Factor Scoring'!$E$5:$J$282,,MATCH(I$4,'C. PoC Adj Factor Scoring'!$E$3:$AH$3,0)-1),MATCH(I$2&\" Score\",'C. PoC Adj Factor Scoring'!$E$4:$J$4,0),TRUE)","v":1},{"$f":"VLOOKUP(OFFSET($B:$B,,MATCH(J$4,$B$4:$F$4,0)-1),OFFSET('C. PoC Adj Factor Scoring'!$E$5:$J$282,,MATCH(J$4,'C. PoC Adj Factor Scoring'!$E$3:$AH$3,0)-1),MATCH(J$2&\" Score\",'C. PoC Adj Factor Scoring'!$E$4:$J$4,0),TRUE)","v":1},{"$f":"VLOOKUP(OFFSET($B:$B,,MATCH(K$4,$B$4:$F$4,0)-1),OFFSET('C. PoC Adj Factor Scoring'!$E$5:$J$282,,MATCH(K$4,'C. PoC Adj Factor Scoring'!$E$3:$AH$3,0)-1),MATCH(K$2&\" Score\",'C. PoC Adj Factor Scoring'!$E$4:$J$4,0),TRUE)","v":1},{"$f":"VLOOKUP(OFFSET($B:$B,,MATCH(L$4,$B$4:$F$4,0)-1),OFFSET('C. PoC Adj Factor Scoring'!$E$5:$J$282,,MATCH(L$4,'C. PoC Adj Factor Scoring'!$E$3:$AH$3,0)-1),MATCH(L$2&\" Score\",'C. PoC Adj Factor Scoring'!$E$4:$J$4,0),TRUE)","v":1},{"$f":"VLOOKUP(OFFSET($B:$B,,MATCH(M$4,$B$4:$F$4,0)-1),OFFSET('C. PoC Adj Factor Scoring'!$E$5:$J$282,,MATCH(M$4,'C. PoC Adj Factor Scoring'!$E$3:$AH$3,0)-1),MATCH(M$2&\" Score\",'C. PoC Adj Factor Scoring'!$E$4:$J$4,0),TRUE)","v":1},{"$f":"VLOOKUP(OFFSET($B:$B,,MATCH(N$4,$B$4:$F$4,0)-1),OFFSET('C. PoC Adj Factor Scoring'!$E$5:$J$282,,MATCH(N$4,'C. PoC Adj Factor Scoring'!$E$3:$AH$3,0)-1),MATCH(N$2&\" Score\",'C. PoC Adj Factor Scoring'!$E$4:$J$4,0),TRUE)","v":1},{"$f":"VLOOKUP(OFFSET($B:$B,,MATCH(O$4,$B$4:$F$4,0)-1),OFFSET('C. PoC Adj Factor Scoring'!$E$5:$J$282,,MATCH(O$4,'C. PoC Adj Factor Scoring'!$E$3:$AH$3,0)-1),MATCH(O$2&\" Score\",'C. PoC Adj Factor Scoring'!$E$4:$J$4,0),TRUE)","v":1},{"$f":"VLOOKUP(OFFSET($B:$B,,MATCH(P$4,$B$4:$F$4,0)-1),OFFSET('C. PoC Adj Factor Scoring'!$E$5:$J$282,,MATCH(P$4,'C. PoC Adj Factor Scoring'!$E$3:$AH$3,0)-1),MATCH(P$2&\" Score\",'C. PoC Adj Factor Scoring'!$E$4:$J$4,0),TRUE)","v":1},{"$f":"VLOOKUP(OFFSET($B:$B,,MATCH(Q$4,$B$4:$F$4,0)-1),OFFSET('C. PoC Adj Factor Scoring'!$E$5:$J$282,,MATCH(Q$4,'C. PoC Adj Factor Scoring'!$E$3:$AH$3,0)-1),MATCH(Q$2&\" Score\",'C. PoC Adj Factor Scoring'!$E$4:$J$4,0),TRUE)","v":1},{"$f":"VLOOKUP(OFFSET($B:$B,,MATCH(R$4,$B$4:$F$4,0)-1),OFFSET('C. PoC Adj Factor Scoring'!$E$5:$J$282,,MATCH(R$4,'C. PoC Adj Factor Scoring'!$E$3:$AH$3,0)-1),MATCH(R$2&\" Score\",'C. PoC Adj Factor Scoring'!$E$4:$J$4,0),TRUE)","v":1},{"$f":"VLOOKUP(OFFSET($B:$B,,MATCH(S$4,$B$4:$F$4,0)-1),OFFSET('C. PoC Adj Factor Scoring'!$E$5:$J$282,,MATCH(S$4,'C. PoC Adj Factor Scoring'!$E$3:$AH$3,0)-1),MATCH(S$2&\" Score\",'C. PoC Adj Factor Scoring'!$E$4:$J$4,0),TRUE)","v":1},{"$f":"VLOOKUP(OFFSET($B:$B,,MATCH(T$4,$B$4:$F$4,0)-1),OFFSET('C. PoC Adj Factor Scoring'!$E$5:$J$282,,MATCH(T$4,'C. PoC Adj Factor Scoring'!$E$3:$AH$3,0)-1),MATCH(T$2&\" Score\",'C. PoC Adj Factor Scoring'!$E$4:$J$4,0),TRUE)","v":1},{"$f":"VLOOKUP(OFFSET($B:$B,,MATCH(U$4,$B$4:$F$4,0)-1),OFFSET('C. PoC Adj Factor Scoring'!$E$5:$J$282,,MATCH(U$4,'C. PoC Adj Factor Scoring'!$E$3:$AH$3,0)-1),MATCH(U$2&\" Score\",'C. PoC Adj Factor Scoring'!$E$4:$J$4,0),TRUE)","v":1},{"$f":"VLOOKUP(OFFSET($B:$B,,MATCH(V$4,$B$4:$F$4,0)-1),OFFSET('C. PoC Adj Factor Scoring'!$E$5:$J$282,,MATCH(V$4,'C. PoC Adj Factor Scoring'!$E$3:$AH$3,0)-1),MATCH(V$2&\" Score\",'C. PoC Adj Factor Scoring'!$E$4:$J$4,0),TRUE)","v":1},{"$f":"VLOOKUP(OFFSET($B:$B,,MATCH(W$4,$B$4:$F$4,0)-1),OFFSET('C. PoC Adj Factor Scoring'!$E$5:$J$282,,MATCH(W$4,'C. PoC Adj Factor Scoring'!$E$3:$AH$3,0)-1),MATCH(W$2&\" Score\",'C. PoC Adj Factor Scoring'!$E$4:$J$4,0),TRUE)","v":1},{"$f":"VLOOKUP(OFFSET($B:$B,,MATCH(X$4,$B$4:$F$4,0)-1),OFFSET('C. PoC Adj Factor Scoring'!$E$5:$J$282,,MATCH(X$4,'C. PoC Adj Factor Scoring'!$E$3:$AH$3,0)-1),MATCH(X$2&\" Score\",'C. PoC Adj Factor Scoring'!$E$4:$J$4,0),TRUE)","v":1},{"$f":"VLOOKUP(OFFSET($B:$B,,MATCH(Y$4,$B$4:$F$4,0)-1),OFFSET('C. PoC Adj Factor Scoring'!$E$5:$J$282,,MATCH(Y$4,'C. PoC Adj Factor Scoring'!$E$3:$AH$3,0)-1),MATCH(Y$2&\" Score\",'C. PoC Adj Factor Scoring'!$E$4:$J$4,0),TRUE)","v":1},{"$f":"VLOOKUP(OFFSET($B:$B,,MATCH(Z$4,$B$4:$F$4,0)-1),OFFSET('C. PoC Adj Factor Scoring'!$E$5:$J$282,,MATCH(Z$4,'C. PoC Adj Factor Scoring'!$E$3:$AH$3,0)-1),MATCH(Z$2&\" Score\",'C. PoC Adj Factor Scoring'!$E$4:$J$4,0),TRUE)","v":1},{"$f":"VLOOKUP(OFFSET($B:$B,,MATCH(AA$4,$B$4:$F$4,0)-1),OFFSET('C. PoC Adj Factor Scoring'!$E$5:$J$282,,MATCH(AA$4,'C. PoC Adj Factor Scoring'!$E$3:$AH$3,0)-1),MATCH(AA$2&\" Score\",'C. PoC Adj Factor Scoring'!$E$4:$J$4,0),TRUE)","v":3},{"$f":"VLOOKUP(OFFSET($B:$B,,MATCH(AB$4,$B$4:$F$4,0)-1),OFFSET('C. PoC Adj Factor Scoring'!$E$5:$J$282,,MATCH(AB$4,'C. PoC Adj Factor Scoring'!$E$3:$AH$3,0)-1),MATCH(AB$2&\" Score\",'C. PoC Adj Factor Scoring'!$E$4:$J$4,0),TRUE)","v":1},{"$f":"VLOOKUP(OFFSET($B:$B,,MATCH(AC$4,$B$4:$F$4,0)-1),OFFSET('C. PoC Adj Factor Scoring'!$E$5:$J$282,,MATCH(AC$4,'C. PoC Adj Factor Scoring'!$E$3:$AH$3,0)-1),MATCH(AC$2&\" Score\",'C. PoC Adj Factor Scoring'!$E$4:$J$4,0),TRUE)","v":1},{"$f":"VLOOKUP(OFFSET($B:$B,,MATCH(AD$4,$B$4:$F$4,0)-1),OFFSET('C. PoC Adj Factor Scoring'!$E$5:$J$282,,MATCH(AD$4,'C. PoC Adj Factor Scoring'!$E$3:$AH$3,0)-1),MATCH(AD$2&\" Score\",'C. PoC Adj Factor Scoring'!$E$4:$J$4,0),TRUE)","v":1},{"$f":"VLOOKUP(OFFSET($B:$B,,MATCH(AE$4,$B$4:$F$4,0)-1),OFFSET('C. PoC Adj Factor Scoring'!$E$5:$J$282,,MATCH(AE$4,'C. PoC Adj Factor Scoring'!$E$3:$AH$3,0)-1),MATCH(AE$2&\" Score\",'C. PoC Adj Factor Scoring'!$E$4:$J$4,0),TRUE)","v":1}]
[{"$f":"'A. Population Info'!A403","v":1000407568},{"$f":"'A. Population Info'!L403","v":"OIL"},{"$f":"'A. Population Info'!M403","v":0},{"$f":"'A. Population Info'!N403","v":0},{"$f":"'A. Population Info'!O403","v":0},{"$f":"'A. Population Info'!P403","v":0},{"$f":"VLOOKUP(OFFSET($B:$B,,MATCH(G$4,$B$4:$F$4,0)-1),OFFSET('C. PoC Adj Factor Scoring'!$E$5:$J$282,,MATCH(G$4,'C. PoC Adj Factor Scoring'!$E$3:$AH$3,0)-1),MATCH(G$2&\" Score\",'C. PoC Adj Factor Scoring'!$E$4:$J$4,0),TRUE)","v":4},{"$f":"VLOOKUP(OFFSET($B:$B,,MATCH(H$4,$B$4:$F$4,0)-1),OFFSET('C. PoC Adj Factor Scoring'!$E$5:$J$282,,MATCH(H$4,'C. PoC Adj Factor Scoring'!$E$3:$AH$3,0)-1),MATCH(H$2&\" Score\",'C. PoC Adj Factor Scoring'!$E$4:$J$4,0),TRUE)","v":1},{"$f":"VLOOKUP(OFFSET($B:$B,,MATCH(I$4,$B$4:$F$4,0)-1),OFFSET('C. PoC Adj Factor Scoring'!$E$5:$J$282,,MATCH(I$4,'C. PoC Adj Factor Scoring'!$E$3:$AH$3,0)-1),MATCH(I$2&\" Score\",'C. PoC Adj Factor Scoring'!$E$4:$J$4,0),TRUE)","v":1},{"$f":"VLOOKUP(OFFSET($B:$B,,MATCH(J$4,$B$4:$F$4,0)-1),OFFSET('C. PoC Adj Factor Scoring'!$E$5:$J$282,,MATCH(J$4,'C. PoC Adj Factor Scoring'!$E$3:$AH$3,0)-1),MATCH(J$2&\" Score\",'C. PoC Adj Factor Scoring'!$E$4:$J$4,0),TRUE)","v":1},{"$f":"VLOOKUP(OFFSET($B:$B,,MATCH(K$4,$B$4:$F$4,0)-1),OFFSET('C. PoC Adj Factor Scoring'!$E$5:$J$282,,MATCH(K$4,'C. PoC Adj Factor Scoring'!$E$3:$AH$3,0)-1),MATCH(K$2&\" Score\",'C. PoC Adj Factor Scoring'!$E$4:$J$4,0),TRUE)","v":1},{"$f":"VLOOKUP(OFFSET($B:$B,,MATCH(L$4,$B$4:$F$4,0)-1),OFFSET('C. PoC Adj Factor Scoring'!$E$5:$J$282,,MATCH(L$4,'C. PoC Adj Factor Scoring'!$E$3:$AH$3,0)-1),MATCH(L$2&\" Score\",'C. PoC Adj Factor Scoring'!$E$4:$J$4,0),TRUE)","v":1},{"$f":"VLOOKUP(OFFSET($B:$B,,MATCH(M$4,$B$4:$F$4,0)-1),OFFSET('C. PoC Adj Factor Scoring'!$E$5:$J$282,,MATCH(M$4,'C. PoC Adj Factor Scoring'!$E$3:$AH$3,0)-1),MATCH(M$2&\" Score\",'C. PoC Adj Factor Scoring'!$E$4:$J$4,0),TRUE)","v":1},{"$f":"VLOOKUP(OFFSET($B:$B,,MATCH(N$4,$B$4:$F$4,0)-1),OFFSET('C. PoC Adj Factor Scoring'!$E$5:$J$282,,MATCH(N$4,'C. PoC Adj Factor Scoring'!$E$3:$AH$3,0)-1),MATCH(N$2&\" Score\",'C. PoC Adj Factor Scoring'!$E$4:$J$4,0),TRUE)","v":1},{"$f":"VLOOKUP(OFFSET($B:$B,,MATCH(O$4,$B$4:$F$4,0)-1),OFFSET('C. PoC Adj Factor Scoring'!$E$5:$J$282,,MATCH(O$4,'C. PoC Adj Factor Scoring'!$E$3:$AH$3,0)-1),MATCH(O$2&\" Score\",'C. PoC Adj Factor Scoring'!$E$4:$J$4,0),TRUE)","v":1},{"$f":"VLOOKUP(OFFSET($B:$B,,MATCH(P$4,$B$4:$F$4,0)-1),OFFSET('C. PoC Adj Factor Scoring'!$E$5:$J$282,,MATCH(P$4,'C. PoC Adj Factor Scoring'!$E$3:$AH$3,0)-1),MATCH(P$2&\" Score\",'C. PoC Adj Factor Scoring'!$E$4:$J$4,0),TRUE)","v":1},{"$f":"VLOOKUP(OFFSET($B:$B,,MATCH(Q$4,$B$4:$F$4,0)-1),OFFSET('C. PoC Adj Factor Scoring'!$E$5:$J$282,,MATCH(Q$4,'C. PoC Adj Factor Scoring'!$E$3:$AH$3,0)-1),MATCH(Q$2&\" Score\",'C. PoC Adj Factor Scoring'!$E$4:$J$4,0),TRUE)","v":1},{"$f":"VLOOKUP(OFFSET($B:$B,,MATCH(R$4,$B$4:$F$4,0)-1),OFFSET('C. PoC Adj Factor Scoring'!$E$5:$J$282,,MATCH(R$4,'C. PoC Adj Factor Scoring'!$E$3:$AH$3,0)-1),MATCH(R$2&\" Score\",'C. PoC Adj Factor Scoring'!$E$4:$J$4,0),TRUE)","v":1},{"$f":"VLOOKUP(OFFSET($B:$B,,MATCH(S$4,$B$4:$F$4,0)-1),OFFSET('C. PoC Adj Factor Scoring'!$E$5:$J$282,,MATCH(S$4,'C. PoC Adj Factor Scoring'!$E$3:$AH$3,0)-1),MATCH(S$2&\" Score\",'C. PoC Adj Factor Scoring'!$E$4:$J$4,0),TRUE)","v":1},{"$f":"VLOOKUP(OFFSET($B:$B,,MATCH(T$4,$B$4:$F$4,0)-1),OFFSET('C. PoC Adj Factor Scoring'!$E$5:$J$282,,MATCH(T$4,'C. PoC Adj Factor Scoring'!$E$3:$AH$3,0)-1),MATCH(T$2&\" Score\",'C. PoC Adj Factor Scoring'!$E$4:$J$4,0),TRUE)","v":1},{"$f":"VLOOKUP(OFFSET($B:$B,,MATCH(U$4,$B$4:$F$4,0)-1),OFFSET('C. PoC Adj Factor Scoring'!$E$5:$J$282,,MATCH(U$4,'C. PoC Adj Factor Scoring'!$E$3:$AH$3,0)-1),MATCH(U$2&\" Score\",'C. PoC Adj Factor Scoring'!$E$4:$J$4,0),TRUE)","v":1},{"$f":"VLOOKUP(OFFSET($B:$B,,MATCH(V$4,$B$4:$F$4,0)-1),OFFSET('C. PoC Adj Factor Scoring'!$E$5:$J$282,,MATCH(V$4,'C. PoC Adj Factor Scoring'!$E$3:$AH$3,0)-1),MATCH(V$2&\" Score\",'C. PoC Adj Factor Scoring'!$E$4:$J$4,0),TRUE)","v":1},{"$f":"VLOOKUP(OFFSET($B:$B,,MATCH(W$4,$B$4:$F$4,0)-1),OFFSET('C. PoC Adj Factor Scoring'!$E$5:$J$282,,MATCH(W$4,'C. PoC Adj Factor Scoring'!$E$3:$AH$3,0)-1),MATCH(W$2&\" Score\",'C. PoC Adj Factor Scoring'!$E$4:$J$4,0),TRUE)","v":1},{"$f":"VLOOKUP(OFFSET($B:$B,,MATCH(X$4,$B$4:$F$4,0)-1),OFFSET('C. PoC Adj Factor Scoring'!$E$5:$J$282,,MATCH(X$4,'C. PoC Adj Factor Scoring'!$E$3:$AH$3,0)-1),MATCH(X$2&\" Score\",'C. PoC Adj Factor Scoring'!$E$4:$J$4,0),TRUE)","v":1},{"$f":"VLOOKUP(OFFSET($B:$B,,MATCH(Y$4,$B$4:$F$4,0)-1),OFFSET('C. PoC Adj Factor Scoring'!$E$5:$J$282,,MATCH(Y$4,'C. PoC Adj Factor Scoring'!$E$3:$AH$3,0)-1),MATCH(Y$2&\" Score\",'C. PoC Adj Factor Scoring'!$E$4:$J$4,0),TRUE)","v":1},{"$f":"VLOOKUP(OFFSET($B:$B,,MATCH(Z$4,$B$4:$F$4,0)-1),OFFSET('C. PoC Adj Factor Scoring'!$E$5:$J$282,,MATCH(Z$4,'C. PoC Adj Factor Scoring'!$E$3:$AH$3,0)-1),MATCH(Z$2&\" Score\",'C. PoC Adj Factor Scoring'!$E$4:$J$4,0),TRUE)","v":1},{"$f":"VLOOKUP(OFFSET($B:$B,,MATCH(AA$4,$B$4:$F$4,0)-1),OFFSET('C. PoC Adj Factor Scoring'!$E$5:$J$282,,MATCH(AA$4,'C. PoC Adj Factor Scoring'!$E$3:$AH$3,0)-1),MATCH(AA$2&\" Score\",'C. PoC Adj Factor Scoring'!$E$4:$J$4,0),TRUE)","v":3},{"$f":"VLOOKUP(OFFSET($B:$B,,MATCH(AB$4,$B$4:$F$4,0)-1),OFFSET('C. PoC Adj Factor Scoring'!$E$5:$J$282,,MATCH(AB$4,'C. PoC Adj Factor Scoring'!$E$3:$AH$3,0)-1),MATCH(AB$2&\" Score\",'C. PoC Adj Factor Scoring'!$E$4:$J$4,0),TRUE)","v":1},{"$f":"VLOOKUP(OFFSET($B:$B,,MATCH(AC$4,$B$4:$F$4,0)-1),OFFSET('C. PoC Adj Factor Scoring'!$E$5:$J$282,,MATCH(AC$4,'C. PoC Adj Factor Scoring'!$E$3:$AH$3,0)-1),MATCH(AC$2&\" Score\",'C. PoC Adj Factor Scoring'!$E$4:$J$4,0),TRUE)","v":1},{"$f":"VLOOKUP(OFFSET($B:$B,,MATCH(AD$4,$B$4:$F$4,0)-1),OFFSET('C. PoC Adj Factor Scoring'!$E$5:$J$282,,MATCH(AD$4,'C. PoC Adj Factor Scoring'!$E$3:$AH$3,0)-1),MATCH(AD$2&\" Score\",'C. PoC Adj Factor Scoring'!$E$4:$J$4,0),TRUE)","v":1},{"$f":"VLOOKUP(OFFSET($B:$B,,MATCH(AE$4,$B$4:$F$4,0)-1),OFFSET('C. PoC Adj Factor Scoring'!$E$5:$J$282,,MATCH(AE$4,'C. PoC Adj Factor Scoring'!$E$3:$AH$3,0)-1),MATCH(AE$2&\" Score\",'C. PoC Adj Factor Scoring'!$E$4:$J$4,0),TRUE)","v":1}]
[{"$f":"'A. Population Info'!A404","v":1000407588},{"$f":"'A. Population Info'!L404","v":"OIL"},{"$f":"'A. Population Info'!M404","v":0},{"$f":"'A. Population Info'!N404","v":0},{"$f":"'A. Population Info'!O404","v":0},{"$f":"'A. Population Info'!P404","v":0},{"$f":"VLOOKUP(OFFSET($B:$B,,MATCH(G$4,$B$4:$F$4,0)-1),OFFSET('C. PoC Adj Factor Scoring'!$E$5:$J$282,,MATCH(G$4,'C. PoC Adj Factor Scoring'!$E$3:$AH$3,0)-1),MATCH(G$2&\" Score\",'C. PoC Adj Factor Scoring'!$E$4:$J$4,0),TRUE)","v":4},{"$f":"VLOOKUP(OFFSET($B:$B,,MATCH(H$4,$B$4:$F$4,0)-1),OFFSET('C. PoC Adj Factor Scoring'!$E$5:$J$282,,MATCH(H$4,'C. PoC Adj Factor Scoring'!$E$3:$AH$3,0)-1),MATCH(H$2&\" Score\",'C. PoC Adj Factor Scoring'!$E$4:$J$4,0),TRUE)","v":1},{"$f":"VLOOKUP(OFFSET($B:$B,,MATCH(I$4,$B$4:$F$4,0)-1),OFFSET('C. PoC Adj Factor Scoring'!$E$5:$J$282,,MATCH(I$4,'C. PoC Adj Factor Scoring'!$E$3:$AH$3,0)-1),MATCH(I$2&\" Score\",'C. PoC Adj Factor Scoring'!$E$4:$J$4,0),TRUE)","v":1},{"$f":"VLOOKUP(OFFSET($B:$B,,MATCH(J$4,$B$4:$F$4,0)-1),OFFSET('C. PoC Adj Factor Scoring'!$E$5:$J$282,,MATCH(J$4,'C. PoC Adj Factor Scoring'!$E$3:$AH$3,0)-1),MATCH(J$2&\" Score\",'C. PoC Adj Factor Scoring'!$E$4:$J$4,0),TRUE)","v":1},{"$f":"VLOOKUP(OFFSET($B:$B,,MATCH(K$4,$B$4:$F$4,0)-1),OFFSET('C. PoC Adj Factor Scoring'!$E$5:$J$282,,MATCH(K$4,'C. PoC Adj Factor Scoring'!$E$3:$AH$3,0)-1),MATCH(K$2&\" Score\",'C. PoC Adj Factor Scoring'!$E$4:$J$4,0),TRUE)","v":1},{"$f":"VLOOKUP(OFFSET($B:$B,,MATCH(L$4,$B$4:$F$4,0)-1),OFFSET('C. PoC Adj Factor Scoring'!$E$5:$J$282,,MATCH(L$4,'C. PoC Adj Factor Scoring'!$E$3:$AH$3,0)-1),MATCH(L$2&\" Score\",'C. PoC Adj Factor Scoring'!$E$4:$J$4,0),TRUE)","v":1},{"$f":"VLOOKUP(OFFSET($B:$B,,MATCH(M$4,$B$4:$F$4,0)-1),OFFSET('C. PoC Adj Factor Scoring'!$E$5:$J$282,,MATCH(M$4,'C. PoC Adj Factor Scoring'!$E$3:$AH$3,0)-1),MATCH(M$2&\" Score\",'C. PoC Adj Factor Scoring'!$E$4:$J$4,0),TRUE)","v":1},{"$f":"VLOOKUP(OFFSET($B:$B,,MATCH(N$4,$B$4:$F$4,0)-1),OFFSET('C. PoC Adj Factor Scoring'!$E$5:$J$282,,MATCH(N$4,'C. PoC Adj Factor Scoring'!$E$3:$AH$3,0)-1),MATCH(N$2&\" Score\",'C. PoC Adj Factor Scoring'!$E$4:$J$4,0),TRUE)","v":1},{"$f":"VLOOKUP(OFFSET($B:$B,,MATCH(O$4,$B$4:$F$4,0)-1),OFFSET('C. PoC Adj Factor Scoring'!$E$5:$J$282,,MATCH(O$4,'C. PoC Adj Factor Scoring'!$E$3:$AH$3,0)-1),MATCH(O$2&\" Score\",'C. PoC Adj Factor Scoring'!$E$4:$J$4,0),TRUE)","v":1},{"$f":"VLOOKUP(OFFSET($B:$B,,MATCH(P$4,$B$4:$F$4,0)-1),OFFSET('C. PoC Adj Factor Scoring'!$E$5:$J$282,,MATCH(P$4,'C. PoC Adj Factor Scoring'!$E$3:$AH$3,0)-1),MATCH(P$2&\" Score\",'C. PoC Adj Factor Scoring'!$E$4:$J$4,0),TRUE)","v":1},{"$f":"VLOOKUP(OFFSET($B:$B,,MATCH(Q$4,$B$4:$F$4,0)-1),OFFSET('C. PoC Adj Factor Scoring'!$E$5:$J$282,,MATCH(Q$4,'C. PoC Adj Factor Scoring'!$E$3:$AH$3,0)-1),MATCH(Q$2&\" Score\",'C. PoC Adj Factor Scoring'!$E$4:$J$4,0),TRUE)","v":1},{"$f":"VLOOKUP(OFFSET($B:$B,,MATCH(R$4,$B$4:$F$4,0)-1),OFFSET('C. PoC Adj Factor Scoring'!$E$5:$J$282,,MATCH(R$4,'C. PoC Adj Factor Scoring'!$E$3:$AH$3,0)-1),MATCH(R$2&\" Score\",'C. PoC Adj Factor Scoring'!$E$4:$J$4,0),TRUE)","v":1},{"$f":"VLOOKUP(OFFSET($B:$B,,MATCH(S$4,$B$4:$F$4,0)-1),OFFSET('C. PoC Adj Factor Scoring'!$E$5:$J$282,,MATCH(S$4,'C. PoC Adj Factor Scoring'!$E$3:$AH$3,0)-1),MATCH(S$2&\" Score\",'C. PoC Adj Factor Scoring'!$E$4:$J$4,0),TRUE)","v":1},{"$f":"VLOOKUP(OFFSET($B:$B,,MATCH(T$4,$B$4:$F$4,0)-1),OFFSET('C. PoC Adj Factor Scoring'!$E$5:$J$282,,MATCH(T$4,'C. PoC Adj Factor Scoring'!$E$3:$AH$3,0)-1),MATCH(T$2&\" Score\",'C. PoC Adj Factor Scoring'!$E$4:$J$4,0),TRUE)","v":1},{"$f":"VLOOKUP(OFFSET($B:$B,,MATCH(U$4,$B$4:$F$4,0)-1),OFFSET('C. PoC Adj Factor Scoring'!$E$5:$J$282,,MATCH(U$4,'C. PoC Adj Factor Scoring'!$E$3:$AH$3,0)-1),MATCH(U$2&\" Score\",'C. PoC Adj Factor Scoring'!$E$4:$J$4,0),TRUE)","v":1},{"$f":"VLOOKUP(OFFSET($B:$B,,MATCH(V$4,$B$4:$F$4,0)-1),OFFSET('C. PoC Adj Factor Scoring'!$E$5:$J$282,,MATCH(V$4,'C. PoC Adj Factor Scoring'!$E$3:$AH$3,0)-1),MATCH(V$2&\" Score\",'C. PoC Adj Factor Scoring'!$E$4:$J$4,0),TRUE)","v":1},{"$f":"VLOOKUP(OFFSET($B:$B,,MATCH(W$4,$B$4:$F$4,0)-1),OFFSET('C. PoC Adj Factor Scoring'!$E$5:$J$282,,MATCH(W$4,'C. PoC Adj Factor Scoring'!$E$3:$AH$3,0)-1),MATCH(W$2&\" Score\",'C. PoC Adj Factor Scoring'!$E$4:$J$4,0),TRUE)","v":1},{"$f":"VLOOKUP(OFFSET($B:$B,,MATCH(X$4,$B$4:$F$4,0)-1),OFFSET('C. PoC Adj Factor Scoring'!$E$5:$J$282,,MATCH(X$4,'C. PoC Adj Factor Scoring'!$E$3:$AH$3,0)-1),MATCH(X$2&\" Score\",'C. PoC Adj Factor Scoring'!$E$4:$J$4,0),TRUE)","v":1},{"$f":"VLOOKUP(OFFSET($B:$B,,MATCH(Y$4,$B$4:$F$4,0)-1),OFFSET('C. PoC Adj Factor Scoring'!$E$5:$J$282,,MATCH(Y$4,'C. PoC Adj Factor Scoring'!$E$3:$AH$3,0)-1),MATCH(Y$2&\" Score\",'C. PoC Adj Factor Scoring'!$E$4:$J$4,0),TRUE)","v":1},{"$f":"VLOOKUP(OFFSET($B:$B,,MATCH(Z$4,$B$4:$F$4,0)-1),OFFSET('C. PoC Adj Factor Scoring'!$E$5:$J$282,,MATCH(Z$4,'C. PoC Adj Factor Scoring'!$E$3:$AH$3,0)-1),MATCH(Z$2&\" Score\",'C. PoC Adj Factor Scoring'!$E$4:$J$4,0),TRUE)","v":1},{"$f":"VLOOKUP(OFFSET($B:$B,,MATCH(AA$4,$B$4:$F$4,0)-1),OFFSET('C. PoC Adj Factor Scoring'!$E$5:$J$282,,MATCH(AA$4,'C. PoC Adj Factor Scoring'!$E$3:$AH$3,0)-1),MATCH(AA$2&\" Score\",'C. PoC Adj Factor Scoring'!$E$4:$J$4,0),TRUE)","v":3},{"$f":"VLOOKUP(OFFSET($B:$B,,MATCH(AB$4,$B$4:$F$4,0)-1),OFFSET('C. PoC Adj Factor Scoring'!$E$5:$J$282,,MATCH(AB$4,'C. PoC Adj Factor Scoring'!$E$3:$AH$3,0)-1),MATCH(AB$2&\" Score\",'C. PoC Adj Factor Scoring'!$E$4:$J$4,0),TRUE)","v":1},{"$f":"VLOOKUP(OFFSET($B:$B,,MATCH(AC$4,$B$4:$F$4,0)-1),OFFSET('C. PoC Adj Factor Scoring'!$E$5:$J$282,,MATCH(AC$4,'C. PoC Adj Factor Scoring'!$E$3:$AH$3,0)-1),MATCH(AC$2&\" Score\",'C. PoC Adj Factor Scoring'!$E$4:$J$4,0),TRUE)","v":1},{"$f":"VLOOKUP(OFFSET($B:$B,,MATCH(AD$4,$B$4:$F$4,0)-1),OFFSET('C. PoC Adj Factor Scoring'!$E$5:$J$282,,MATCH(AD$4,'C. PoC Adj Factor Scoring'!$E$3:$AH$3,0)-1),MATCH(AD$2&\" Score\",'C. PoC Adj Factor Scoring'!$E$4:$J$4,0),TRUE)","v":1},{"$f":"VLOOKUP(OFFSET($B:$B,,MATCH(AE$4,$B$4:$F$4,0)-1),OFFSET('C. PoC Adj Factor Scoring'!$E$5:$J$282,,MATCH(AE$4,'C. PoC Adj Factor Scoring'!$E$3:$AH$3,0)-1),MATCH(AE$2&\" Score\",'C. PoC Adj Factor Scoring'!$E$4:$J$4,0),TRUE)","v":1}]
[{"$f":"'A. Population Info'!A405","v":1000407604},{"$f":"'A. Population Info'!L405","v":"OIL"},{"$f":"'A. Population Info'!M405","v":0},{"$f":"'A. Population Info'!N405","v":0},{"$f":"'A. Population Info'!O405","v":0},{"$f":"'A. Population Info'!P405","v":0},{"$f":"VLOOKUP(OFFSET($B:$B,,MATCH(G$4,$B$4:$F$4,0)-1),OFFSET('C. PoC Adj Factor Scoring'!$E$5:$J$282,,MATCH(G$4,'C. PoC Adj Factor Scoring'!$E$3:$AH$3,0)-1),MATCH(G$2&\" Score\",'C. PoC Adj Factor Scoring'!$E$4:$J$4,0),TRUE)","v":4},{"$f":"VLOOKUP(OFFSET($B:$B,,MATCH(H$4,$B$4:$F$4,0)-1),OFFSET('C. PoC Adj Factor Scoring'!$E$5:$J$282,,MATCH(H$4,'C. PoC Adj Factor Scoring'!$E$3:$AH$3,0)-1),MATCH(H$2&\" Score\",'C. PoC Adj Factor Scoring'!$E$4:$J$4,0),TRUE)","v":1},{"$f":"VLOOKUP(OFFSET($B:$B,,MATCH(I$4,$B$4:$F$4,0)-1),OFFSET('C. PoC Adj Factor Scoring'!$E$5:$J$282,,MATCH(I$4,'C. PoC Adj Factor Scoring'!$E$3:$AH$3,0)-1),MATCH(I$2&\" Score\",'C. PoC Adj Factor Scoring'!$E$4:$J$4,0),TRUE)","v":1},{"$f":"VLOOKUP(OFFSET($B:$B,,MATCH(J$4,$B$4:$F$4,0)-1),OFFSET('C. PoC Adj Factor Scoring'!$E$5:$J$282,,MATCH(J$4,'C. PoC Adj Factor Scoring'!$E$3:$AH$3,0)-1),MATCH(J$2&\" Score\",'C. PoC Adj Factor Scoring'!$E$4:$J$4,0),TRUE)","v":1},{"$f":"VLOOKUP(OFFSET($B:$B,,MATCH(K$4,$B$4:$F$4,0)-1),OFFSET('C. PoC Adj Factor Scoring'!$E$5:$J$282,,MATCH(K$4,'C. PoC Adj Factor Scoring'!$E$3:$AH$3,0)-1),MATCH(K$2&\" Score\",'C. PoC Adj Factor Scoring'!$E$4:$J$4,0),TRUE)","v":1},{"$f":"VLOOKUP(OFFSET($B:$B,,MATCH(L$4,$B$4:$F$4,0)-1),OFFSET('C. PoC Adj Factor Scoring'!$E$5:$J$282,,MATCH(L$4,'C. PoC Adj Factor Scoring'!$E$3:$AH$3,0)-1),MATCH(L$2&\" Score\",'C. PoC Adj Factor Scoring'!$E$4:$J$4,0),TRUE)","v":1},{"$f":"VLOOKUP(OFFSET($B:$B,,MATCH(M$4,$B$4:$F$4,0)-1),OFFSET('C. PoC Adj Factor Scoring'!$E$5:$J$282,,MATCH(M$4,'C. PoC Adj Factor Scoring'!$E$3:$AH$3,0)-1),MATCH(M$2&\" Score\",'C. PoC Adj Factor Scoring'!$E$4:$J$4,0),TRUE)","v":1},{"$f":"VLOOKUP(OFFSET($B:$B,,MATCH(N$4,$B$4:$F$4,0)-1),OFFSET('C. PoC Adj Factor Scoring'!$E$5:$J$282,,MATCH(N$4,'C. PoC Adj Factor Scoring'!$E$3:$AH$3,0)-1),MATCH(N$2&\" Score\",'C. PoC Adj Factor Scoring'!$E$4:$J$4,0),TRUE)","v":1},{"$f":"VLOOKUP(OFFSET($B:$B,,MATCH(O$4,$B$4:$F$4,0)-1),OFFSET('C. PoC Adj Factor Scoring'!$E$5:$J$282,,MATCH(O$4,'C. PoC Adj Factor Scoring'!$E$3:$AH$3,0)-1),MATCH(O$2&\" Score\",'C. PoC Adj Factor Scoring'!$E$4:$J$4,0),TRUE)","v":1},{"$f":"VLOOKUP(OFFSET($B:$B,,MATCH(P$4,$B$4:$F$4,0)-1),OFFSET('C. PoC Adj Factor Scoring'!$E$5:$J$282,,MATCH(P$4,'C. PoC Adj Factor Scoring'!$E$3:$AH$3,0)-1),MATCH(P$2&\" Score\",'C. PoC Adj Factor Scoring'!$E$4:$J$4,0),TRUE)","v":1},{"$f":"VLOOKUP(OFFSET($B:$B,,MATCH(Q$4,$B$4:$F$4,0)-1),OFFSET('C. PoC Adj Factor Scoring'!$E$5:$J$282,,MATCH(Q$4,'C. PoC Adj Factor Scoring'!$E$3:$AH$3,0)-1),MATCH(Q$2&\" Score\",'C. PoC Adj Factor Scoring'!$E$4:$J$4,0),TRUE)","v":1},{"$f":"VLOOKUP(OFFSET($B:$B,,MATCH(R$4,$B$4:$F$4,0)-1),OFFSET('C. PoC Adj Factor Scoring'!$E$5:$J$282,,MATCH(R$4,'C. PoC Adj Factor Scoring'!$E$3:$AH$3,0)-1),MATCH(R$2&\" Score\",'C. PoC Adj Factor Scoring'!$E$4:$J$4,0),TRUE)","v":1},{"$f":"VLOOKUP(OFFSET($B:$B,,MATCH(S$4,$B$4:$F$4,0)-1),OFFSET('C. PoC Adj Factor Scoring'!$E$5:$J$282,,MATCH(S$4,'C. PoC Adj Factor Scoring'!$E$3:$AH$3,0)-1),MATCH(S$2&\" Score\",'C. PoC Adj Factor Scoring'!$E$4:$J$4,0),TRUE)","v":1},{"$f":"VLOOKUP(OFFSET($B:$B,,MATCH(T$4,$B$4:$F$4,0)-1),OFFSET('C. PoC Adj Factor Scoring'!$E$5:$J$282,,MATCH(T$4,'C. PoC Adj Factor Scoring'!$E$3:$AH$3,0)-1),MATCH(T$2&\" Score\",'C. PoC Adj Factor Scoring'!$E$4:$J$4,0),TRUE)","v":1},{"$f":"VLOOKUP(OFFSET($B:$B,,MATCH(U$4,$B$4:$F$4,0)-1),OFFSET('C. PoC Adj Factor Scoring'!$E$5:$J$282,,MATCH(U$4,'C. PoC Adj Factor Scoring'!$E$3:$AH$3,0)-1),MATCH(U$2&\" Score\",'C. PoC Adj Factor Scoring'!$E$4:$J$4,0),TRUE)","v":1},{"$f":"VLOOKUP(OFFSET($B:$B,,MATCH(V$4,$B$4:$F$4,0)-1),OFFSET('C. PoC Adj Factor Scoring'!$E$5:$J$282,,MATCH(V$4,'C. PoC Adj Factor Scoring'!$E$3:$AH$3,0)-1),MATCH(V$2&\" Score\",'C. PoC Adj Factor Scoring'!$E$4:$J$4,0),TRUE)","v":1},{"$f":"VLOOKUP(OFFSET($B:$B,,MATCH(W$4,$B$4:$F$4,0)-1),OFFSET('C. PoC Adj Factor Scoring'!$E$5:$J$282,,MATCH(W$4,'C. PoC Adj Factor Scoring'!$E$3:$AH$3,0)-1),MATCH(W$2&\" Score\",'C. PoC Adj Factor Scoring'!$E$4:$J$4,0),TRUE)","v":1},{"$f":"VLOOKUP(OFFSET($B:$B,,MATCH(X$4,$B$4:$F$4,0)-1),OFFSET('C. PoC Adj Factor Scoring'!$E$5:$J$282,,MATCH(X$4,'C. PoC Adj Factor Scoring'!$E$3:$AH$3,0)-1),MATCH(X$2&\" Score\",'C. PoC Adj Factor Scoring'!$E$4:$J$4,0),TRUE)","v":1},{"$f":"VLOOKUP(OFFSET($B:$B,,MATCH(Y$4,$B$4:$F$4,0)-1),OFFSET('C. PoC Adj Factor Scoring'!$E$5:$J$282,,MATCH(Y$4,'C. PoC Adj Factor Scoring'!$E$3:$AH$3,0)-1),MATCH(Y$2&\" Score\",'C. PoC Adj Factor Scoring'!$E$4:$J$4,0),TRUE)","v":1},{"$f":"VLOOKUP(OFFSET($B:$B,,MATCH(Z$4,$B$4:$F$4,0)-1),OFFSET('C. PoC Adj Factor Scoring'!$E$5:$J$282,,MATCH(Z$4,'C. PoC Adj Factor Scoring'!$E$3:$AH$3,0)-1),MATCH(Z$2&\" Score\",'C. PoC Adj Factor Scoring'!$E$4:$J$4,0),TRUE)","v":1},{"$f":"VLOOKUP(OFFSET($B:$B,,MATCH(AA$4,$B$4:$F$4,0)-1),OFFSET('C. PoC Adj Factor Scoring'!$E$5:$J$282,,MATCH(AA$4,'C. PoC Adj Factor Scoring'!$E$3:$AH$3,0)-1),MATCH(AA$2&\" Score\",'C. PoC Adj Factor Scoring'!$E$4:$J$4,0),TRUE)","v":3},{"$f":"VLOOKUP(OFFSET($B:$B,,MATCH(AB$4,$B$4:$F$4,0)-1),OFFSET('C. PoC Adj Factor Scoring'!$E$5:$J$282,,MATCH(AB$4,'C. PoC Adj Factor Scoring'!$E$3:$AH$3,0)-1),MATCH(AB$2&\" Score\",'C. PoC Adj Factor Scoring'!$E$4:$J$4,0),TRUE)","v":1},{"$f":"VLOOKUP(OFFSET($B:$B,,MATCH(AC$4,$B$4:$F$4,0)-1),OFFSET('C. PoC Adj Factor Scoring'!$E$5:$J$282,,MATCH(AC$4,'C. PoC Adj Factor Scoring'!$E$3:$AH$3,0)-1),MATCH(AC$2&\" Score\",'C. PoC Adj Factor Scoring'!$E$4:$J$4,0),TRUE)","v":1},{"$f":"VLOOKUP(OFFSET($B:$B,,MATCH(AD$4,$B$4:$F$4,0)-1),OFFSET('C. PoC Adj Factor Scoring'!$E$5:$J$282,,MATCH(AD$4,'C. PoC Adj Factor Scoring'!$E$3:$AH$3,0)-1),MATCH(AD$2&\" Score\",'C. PoC Adj Factor Scoring'!$E$4:$J$4,0),TRUE)","v":1},{"$f":"VLOOKUP(OFFSET($B:$B,,MATCH(AE$4,$B$4:$F$4,0)-1),OFFSET('C. PoC Adj Factor Scoring'!$E$5:$J$282,,MATCH(AE$4,'C. PoC Adj Factor Scoring'!$E$3:$AH$3,0)-1),MATCH(AE$2&\" Score\",'C. PoC Adj Factor Scoring'!$E$4:$J$4,0),TRUE)","v":1}]
[{"$f":"'A. Population Info'!A406","v":1000407622},{"$f":"'A. Population Info'!L406","v":"OIL"},{"$f":"'A. Population Info'!M406","v":0},{"$f":"'A. Population Info'!N406","v":0},{"$f":"'A. Population Info'!O406","v":0},{"$f":"'A. Population Info'!P406","v":0},{"$f":"VLOOKUP(OFFSET($B:$B,,MATCH(G$4,$B$4:$F$4,0)-1),OFFSET('C. PoC Adj Factor Scoring'!$E$5:$J$282,,MATCH(G$4,'C. PoC Adj Factor Scoring'!$E$3:$AH$3,0)-1),MATCH(G$2&\" Score\",'C. PoC Adj Factor Scoring'!$E$4:$J$4,0),TRUE)","v":4},{"$f":"VLOOKUP(OFFSET($B:$B,,MATCH(H$4,$B$4:$F$4,0)-1),OFFSET('C. PoC Adj Factor Scoring'!$E$5:$J$282,,MATCH(H$4,'C. PoC Adj Factor Scoring'!$E$3:$AH$3,0)-1),MATCH(H$2&\" Score\",'C. PoC Adj Factor Scoring'!$E$4:$J$4,0),TRUE)","v":1},{"$f":"VLOOKUP(OFFSET($B:$B,,MATCH(I$4,$B$4:$F$4,0)-1),OFFSET('C. PoC Adj Factor Scoring'!$E$5:$J$282,,MATCH(I$4,'C. PoC Adj Factor Scoring'!$E$3:$AH$3,0)-1),MATCH(I$2&\" Score\",'C. PoC Adj Factor Scoring'!$E$4:$J$4,0),TRUE)","v":1},{"$f":"VLOOKUP(OFFSET($B:$B,,MATCH(J$4,$B$4:$F$4,0)-1),OFFSET('C. PoC Adj Factor Scoring'!$E$5:$J$282,,MATCH(J$4,'C. PoC Adj Factor Scoring'!$E$3:$AH$3,0)-1),MATCH(J$2&\" Score\",'C. PoC Adj Factor Scoring'!$E$4:$J$4,0),TRUE)","v":1},{"$f":"VLOOKUP(OFFSET($B:$B,,MATCH(K$4,$B$4:$F$4,0)-1),OFFSET('C. PoC Adj Factor Scoring'!$E$5:$J$282,,MATCH(K$4,'C. PoC Adj Factor Scoring'!$E$3:$AH$3,0)-1),MATCH(K$2&\" Score\",'C. PoC Adj Factor Scoring'!$E$4:$J$4,0),TRUE)","v":1},{"$f":"VLOOKUP(OFFSET($B:$B,,MATCH(L$4,$B$4:$F$4,0)-1),OFFSET('C. PoC Adj Factor Scoring'!$E$5:$J$282,,MATCH(L$4,'C. PoC Adj Factor Scoring'!$E$3:$AH$3,0)-1),MATCH(L$2&\" Score\",'C. PoC Adj Factor Scoring'!$E$4:$J$4,0),TRUE)","v":1},{"$f":"VLOOKUP(OFFSET($B:$B,,MATCH(M$4,$B$4:$F$4,0)-1),OFFSET('C. PoC Adj Factor Scoring'!$E$5:$J$282,,MATCH(M$4,'C. PoC Adj Factor Scoring'!$E$3:$AH$3,0)-1),MATCH(M$2&\" Score\",'C. PoC Adj Factor Scoring'!$E$4:$J$4,0),TRUE)","v":1},{"$f":"VLOOKUP(OFFSET($B:$B,,MATCH(N$4,$B$4:$F$4,0)-1),OFFSET('C. PoC Adj Factor Scoring'!$E$5:$J$282,,MATCH(N$4,'C. PoC Adj Factor Scoring'!$E$3:$AH$3,0)-1),MATCH(N$2&\" Score\",'C. PoC Adj Factor Scoring'!$E$4:$J$4,0),TRUE)","v":1},{"$f":"VLOOKUP(OFFSET($B:$B,,MATCH(O$4,$B$4:$F$4,0)-1),OFFSET('C. PoC Adj Factor Scoring'!$E$5:$J$282,,MATCH(O$4,'C. PoC Adj Factor Scoring'!$E$3:$AH$3,0)-1),MATCH(O$2&\" Score\",'C. PoC Adj Factor Scoring'!$E$4:$J$4,0),TRUE)","v":1},{"$f":"VLOOKUP(OFFSET($B:$B,,MATCH(P$4,$B$4:$F$4,0)-1),OFFSET('C. PoC Adj Factor Scoring'!$E$5:$J$282,,MATCH(P$4,'C. PoC Adj Factor Scoring'!$E$3:$AH$3,0)-1),MATCH(P$2&\" Score\",'C. PoC Adj Factor Scoring'!$E$4:$J$4,0),TRUE)","v":1},{"$f":"VLOOKUP(OFFSET($B:$B,,MATCH(Q$4,$B$4:$F$4,0)-1),OFFSET('C. PoC Adj Factor Scoring'!$E$5:$J$282,,MATCH(Q$4,'C. PoC Adj Factor Scoring'!$E$3:$AH$3,0)-1),MATCH(Q$2&\" Score\",'C. PoC Adj Factor Scoring'!$E$4:$J$4,0),TRUE)","v":1},{"$f":"VLOOKUP(OFFSET($B:$B,,MATCH(R$4,$B$4:$F$4,0)-1),OFFSET('C. PoC Adj Factor Scoring'!$E$5:$J$282,,MATCH(R$4,'C. PoC Adj Factor Scoring'!$E$3:$AH$3,0)-1),MATCH(R$2&\" Score\",'C. PoC Adj Factor Scoring'!$E$4:$J$4,0),TRUE)","v":1},{"$f":"VLOOKUP(OFFSET($B:$B,,MATCH(S$4,$B$4:$F$4,0)-1),OFFSET('C. PoC Adj Factor Scoring'!$E$5:$J$282,,MATCH(S$4,'C. PoC Adj Factor Scoring'!$E$3:$AH$3,0)-1),MATCH(S$2&\" Score\",'C. PoC Adj Factor Scoring'!$E$4:$J$4,0),TRUE)","v":1},{"$f":"VLOOKUP(OFFSET($B:$B,,MATCH(T$4,$B$4:$F$4,0)-1),OFFSET('C. PoC Adj Factor Scoring'!$E$5:$J$282,,MATCH(T$4,'C. PoC Adj Factor Scoring'!$E$3:$AH$3,0)-1),MATCH(T$2&\" Score\",'C. PoC Adj Factor Scoring'!$E$4:$J$4,0),TRUE)","v":1},{"$f":"VLOOKUP(OFFSET($B:$B,,MATCH(U$4,$B$4:$F$4,0)-1),OFFSET('C. PoC Adj Factor Scoring'!$E$5:$J$282,,MATCH(U$4,'C. PoC Adj Factor Scoring'!$E$3:$AH$3,0)-1),MATCH(U$2&\" Score\",'C. PoC Adj Factor Scoring'!$E$4:$J$4,0),TRUE)","v":1},{"$f":"VLOOKUP(OFFSET($B:$B,,MATCH(V$4,$B$4:$F$4,0)-1),OFFSET('C. PoC Adj Factor Scoring'!$E$5:$J$282,,MATCH(V$4,'C. PoC Adj Factor Scoring'!$E$3:$AH$3,0)-1),MATCH(V$2&\" Score\",'C. PoC Adj Factor Scoring'!$E$4:$J$4,0),TRUE)","v":1},{"$f":"VLOOKUP(OFFSET($B:$B,,MATCH(W$4,$B$4:$F$4,0)-1),OFFSET('C. PoC Adj Factor Scoring'!$E$5:$J$282,,MATCH(W$4,'C. PoC Adj Factor Scoring'!$E$3:$AH$3,0)-1),MATCH(W$2&\" Score\",'C. PoC Adj Factor Scoring'!$E$4:$J$4,0),TRUE)","v":1},{"$f":"VLOOKUP(OFFSET($B:$B,,MATCH(X$4,$B$4:$F$4,0)-1),OFFSET('C. PoC Adj Factor Scoring'!$E$5:$J$282,,MATCH(X$4,'C. PoC Adj Factor Scoring'!$E$3:$AH$3,0)-1),MATCH(X$2&\" Score\",'C. PoC Adj Factor Scoring'!$E$4:$J$4,0),TRUE)","v":1},{"$f":"VLOOKUP(OFFSET($B:$B,,MATCH(Y$4,$B$4:$F$4,0)-1),OFFSET('C. PoC Adj Factor Scoring'!$E$5:$J$282,,MATCH(Y$4,'C. PoC Adj Factor Scoring'!$E$3:$AH$3,0)-1),MATCH(Y$2&\" Score\",'C. PoC Adj Factor Scoring'!$E$4:$J$4,0),TRUE)","v":1},{"$f":"VLOOKUP(OFFSET($B:$B,,MATCH(Z$4,$B$4:$F$4,0)-1),OFFSET('C. PoC Adj Factor Scoring'!$E$5:$J$282,,MATCH(Z$4,'C. PoC Adj Factor Scoring'!$E$3:$AH$3,0)-1),MATCH(Z$2&\" Score\",'C. PoC Adj Factor Scoring'!$E$4:$J$4,0),TRUE)","v":1},{"$f":"VLOOKUP(OFFSET($B:$B,,MATCH(AA$4,$B$4:$F$4,0)-1),OFFSET('C. PoC Adj Factor Scoring'!$E$5:$J$282,,MATCH(AA$4,'C. PoC Adj Factor Scoring'!$E$3:$AH$3,0)-1),MATCH(AA$2&\" Score\",'C. PoC Adj Factor Scoring'!$E$4:$J$4,0),TRUE)","v":3},{"$f":"VLOOKUP(OFFSET($B:$B,,MATCH(AB$4,$B$4:$F$4,0)-1),OFFSET('C. PoC Adj Factor Scoring'!$E$5:$J$282,,MATCH(AB$4,'C. PoC Adj Factor Scoring'!$E$3:$AH$3,0)-1),MATCH(AB$2&\" Score\",'C. PoC Adj Factor Scoring'!$E$4:$J$4,0),TRUE)","v":1},{"$f":"VLOOKUP(OFFSET($B:$B,,MATCH(AC$4,$B$4:$F$4,0)-1),OFFSET('C. PoC Adj Factor Scoring'!$E$5:$J$282,,MATCH(AC$4,'C. PoC Adj Factor Scoring'!$E$3:$AH$3,0)-1),MATCH(AC$2&\" Score\",'C. PoC Adj Factor Scoring'!$E$4:$J$4,0),TRUE)","v":1},{"$f":"VLOOKUP(OFFSET($B:$B,,MATCH(AD$4,$B$4:$F$4,0)-1),OFFSET('C. PoC Adj Factor Scoring'!$E$5:$J$282,,MATCH(AD$4,'C. PoC Adj Factor Scoring'!$E$3:$AH$3,0)-1),MATCH(AD$2&\" Score\",'C. PoC Adj Factor Scoring'!$E$4:$J$4,0),TRUE)","v":1},{"$f":"VLOOKUP(OFFSET($B:$B,,MATCH(AE$4,$B$4:$F$4,0)-1),OFFSET('C. PoC Adj Factor Scoring'!$E$5:$J$282,,MATCH(AE$4,'C. PoC Adj Factor Scoring'!$E$3:$AH$3,0)-1),MATCH(AE$2&\" Score\",'C. PoC Adj Factor Scoring'!$E$4:$J$4,0),TRUE)","v":1}]
[{"$f":"'A. Population Info'!A407","v":1000407678},{"$f":"'A. Population Info'!L407","v":"OIL"},{"$f":"'A. Population Info'!M407","v":0},{"$f":"'A. Population Info'!N407","v":0},{"$f":"'A. Population Info'!O407","v":0},{"$f":"'A. Population Info'!P407","v":0},{"$f":"VLOOKUP(OFFSET($B:$B,,MATCH(G$4,$B$4:$F$4,0)-1),OFFSET('C. PoC Adj Factor Scoring'!$E$5:$J$282,,MATCH(G$4,'C. PoC Adj Factor Scoring'!$E$3:$AH$3,0)-1),MATCH(G$2&\" Score\",'C. PoC Adj Factor Scoring'!$E$4:$J$4,0),TRUE)","v":4},{"$f":"VLOOKUP(OFFSET($B:$B,,MATCH(H$4,$B$4:$F$4,0)-1),OFFSET('C. PoC Adj Factor Scoring'!$E$5:$J$282,,MATCH(H$4,'C. PoC Adj Factor Scoring'!$E$3:$AH$3,0)-1),MATCH(H$2&\" Score\",'C. PoC Adj Factor Scoring'!$E$4:$J$4,0),TRUE)","v":1},{"$f":"VLOOKUP(OFFSET($B:$B,,MATCH(I$4,$B$4:$F$4,0)-1),OFFSET('C. PoC Adj Factor Scoring'!$E$5:$J$282,,MATCH(I$4,'C. PoC Adj Factor Scoring'!$E$3:$AH$3,0)-1),MATCH(I$2&\" Score\",'C. PoC Adj Factor Scoring'!$E$4:$J$4,0),TRUE)","v":1},{"$f":"VLOOKUP(OFFSET($B:$B,,MATCH(J$4,$B$4:$F$4,0)-1),OFFSET('C. PoC Adj Factor Scoring'!$E$5:$J$282,,MATCH(J$4,'C. PoC Adj Factor Scoring'!$E$3:$AH$3,0)-1),MATCH(J$2&\" Score\",'C. PoC Adj Factor Scoring'!$E$4:$J$4,0),TRUE)","v":1},{"$f":"VLOOKUP(OFFSET($B:$B,,MATCH(K$4,$B$4:$F$4,0)-1),OFFSET('C. PoC Adj Factor Scoring'!$E$5:$J$282,,MATCH(K$4,'C. PoC Adj Factor Scoring'!$E$3:$AH$3,0)-1),MATCH(K$2&\" Score\",'C. PoC Adj Factor Scoring'!$E$4:$J$4,0),TRUE)","v":1},{"$f":"VLOOKUP(OFFSET($B:$B,,MATCH(L$4,$B$4:$F$4,0)-1),OFFSET('C. PoC Adj Factor Scoring'!$E$5:$J$282,,MATCH(L$4,'C. PoC Adj Factor Scoring'!$E$3:$AH$3,0)-1),MATCH(L$2&\" Score\",'C. PoC Adj Factor Scoring'!$E$4:$J$4,0),TRUE)","v":1},{"$f":"VLOOKUP(OFFSET($B:$B,,MATCH(M$4,$B$4:$F$4,0)-1),OFFSET('C. PoC Adj Factor Scoring'!$E$5:$J$282,,MATCH(M$4,'C. PoC Adj Factor Scoring'!$E$3:$AH$3,0)-1),MATCH(M$2&\" Score\",'C. PoC Adj Factor Scoring'!$E$4:$J$4,0),TRUE)","v":1},{"$f":"VLOOKUP(OFFSET($B:$B,,MATCH(N$4,$B$4:$F$4,0)-1),OFFSET('C. PoC Adj Factor Scoring'!$E$5:$J$282,,MATCH(N$4,'C. PoC Adj Factor Scoring'!$E$3:$AH$3,0)-1),MATCH(N$2&\" Score\",'C. PoC Adj Factor Scoring'!$E$4:$J$4,0),TRUE)","v":1},{"$f":"VLOOKUP(OFFSET($B:$B,,MATCH(O$4,$B$4:$F$4,0)-1),OFFSET('C. PoC Adj Factor Scoring'!$E$5:$J$282,,MATCH(O$4,'C. PoC Adj Factor Scoring'!$E$3:$AH$3,0)-1),MATCH(O$2&\" Score\",'C. PoC Adj Factor Scoring'!$E$4:$J$4,0),TRUE)","v":1},{"$f":"VLOOKUP(OFFSET($B:$B,,MATCH(P$4,$B$4:$F$4,0)-1),OFFSET('C. PoC Adj Factor Scoring'!$E$5:$J$282,,MATCH(P$4,'C. PoC Adj Factor Scoring'!$E$3:$AH$3,0)-1),MATCH(P$2&\" Score\",'C. PoC Adj Factor Scoring'!$E$4:$J$4,0),TRUE)","v":1},{"$f":"VLOOKUP(OFFSET($B:$B,,MATCH(Q$4,$B$4:$F$4,0)-1),OFFSET('C. PoC Adj Factor Scoring'!$E$5:$J$282,,MATCH(Q$4,'C. PoC Adj Factor Scoring'!$E$3:$AH$3,0)-1),MATCH(Q$2&\" Score\",'C. PoC Adj Factor Scoring'!$E$4:$J$4,0),TRUE)","v":1},{"$f":"VLOOKUP(OFFSET($B:$B,,MATCH(R$4,$B$4:$F$4,0)-1),OFFSET('C. PoC Adj Factor Scoring'!$E$5:$J$282,,MATCH(R$4,'C. PoC Adj Factor Scoring'!$E$3:$AH$3,0)-1),MATCH(R$2&\" Score\",'C. PoC Adj Factor Scoring'!$E$4:$J$4,0),TRUE)","v":1},{"$f":"VLOOKUP(OFFSET($B:$B,,MATCH(S$4,$B$4:$F$4,0)-1),OFFSET('C. PoC Adj Factor Scoring'!$E$5:$J$282,,MATCH(S$4,'C. PoC Adj Factor Scoring'!$E$3:$AH$3,0)-1),MATCH(S$2&\" Score\",'C. PoC Adj Factor Scoring'!$E$4:$J$4,0),TRUE)","v":1},{"$f":"VLOOKUP(OFFSET($B:$B,,MATCH(T$4,$B$4:$F$4,0)-1),OFFSET('C. PoC Adj Factor Scoring'!$E$5:$J$282,,MATCH(T$4,'C. PoC Adj Factor Scoring'!$E$3:$AH$3,0)-1),MATCH(T$2&\" Score\",'C. PoC Adj Factor Scoring'!$E$4:$J$4,0),TRUE)","v":1},{"$f":"VLOOKUP(OFFSET($B:$B,,MATCH(U$4,$B$4:$F$4,0)-1),OFFSET('C. PoC Adj Factor Scoring'!$E$5:$J$282,,MATCH(U$4,'C. PoC Adj Factor Scoring'!$E$3:$AH$3,0)-1),MATCH(U$2&\" Score\",'C. PoC Adj Factor Scoring'!$E$4:$J$4,0),TRUE)","v":1},{"$f":"VLOOKUP(OFFSET($B:$B,,MATCH(V$4,$B$4:$F$4,0)-1),OFFSET('C. PoC Adj Factor Scoring'!$E$5:$J$282,,MATCH(V$4,'C. PoC Adj Factor Scoring'!$E$3:$AH$3,0)-1),MATCH(V$2&\" Score\",'C. PoC Adj Factor Scoring'!$E$4:$J$4,0),TRUE)","v":1},{"$f":"VLOOKUP(OFFSET($B:$B,,MATCH(W$4,$B$4:$F$4,0)-1),OFFSET('C. PoC Adj Factor Scoring'!$E$5:$J$282,,MATCH(W$4,'C. PoC Adj Factor Scoring'!$E$3:$AH$3,0)-1),MATCH(W$2&\" Score\",'C. PoC Adj Factor Scoring'!$E$4:$J$4,0),TRUE)","v":1},{"$f":"VLOOKUP(OFFSET($B:$B,,MATCH(X$4,$B$4:$F$4,0)-1),OFFSET('C. PoC Adj Factor Scoring'!$E$5:$J$282,,MATCH(X$4,'C. PoC Adj Factor Scoring'!$E$3:$AH$3,0)-1),MATCH(X$2&\" Score\",'C. PoC Adj Factor Scoring'!$E$4:$J$4,0),TRUE)","v":1},{"$f":"VLOOKUP(OFFSET($B:$B,,MATCH(Y$4,$B$4:$F$4,0)-1),OFFSET('C. PoC Adj Factor Scoring'!$E$5:$J$282,,MATCH(Y$4,'C. PoC Adj Factor Scoring'!$E$3:$AH$3,0)-1),MATCH(Y$2&\" Score\",'C. PoC Adj Factor Scoring'!$E$4:$J$4,0),TRUE)","v":1},{"$f":"VLOOKUP(OFFSET($B:$B,,MATCH(Z$4,$B$4:$F$4,0)-1),OFFSET('C. PoC Adj Factor Scoring'!$E$5:$J$282,,MATCH(Z$4,'C. PoC Adj Factor Scoring'!$E$3:$AH$3,0)-1),MATCH(Z$2&\" Score\",'C. PoC Adj Factor Scoring'!$E$4:$J$4,0),TRUE)","v":1},{"$f":"VLOOKUP(OFFSET($B:$B,,MATCH(AA$4,$B$4:$F$4,0)-1),OFFSET('C. PoC Adj Factor Scoring'!$E$5:$J$282,,MATCH(AA$4,'C. PoC Adj Factor Scoring'!$E$3:$AH$3,0)-1),MATCH(AA$2&\" Score\",'C. PoC Adj Factor Scoring'!$E$4:$J$4,0),TRUE)","v":3},{"$f":"VLOOKUP(OFFSET($B:$B,,MATCH(AB$4,$B$4:$F$4,0)-1),OFFSET('C. PoC Adj Factor Scoring'!$E$5:$J$282,,MATCH(AB$4,'C. PoC Adj Factor Scoring'!$E$3:$AH$3,0)-1),MATCH(AB$2&\" Score\",'C. PoC Adj Factor Scoring'!$E$4:$J$4,0),TRUE)","v":1},{"$f":"VLOOKUP(OFFSET($B:$B,,MATCH(AC$4,$B$4:$F$4,0)-1),OFFSET('C. PoC Adj Factor Scoring'!$E$5:$J$282,,MATCH(AC$4,'C. PoC Adj Factor Scoring'!$E$3:$AH$3,0)-1),MATCH(AC$2&\" Score\",'C. PoC Adj Factor Scoring'!$E$4:$J$4,0),TRUE)","v":1},{"$f":"VLOOKUP(OFFSET($B:$B,,MATCH(AD$4,$B$4:$F$4,0)-1),OFFSET('C. PoC Adj Factor Scoring'!$E$5:$J$282,,MATCH(AD$4,'C. PoC Adj Factor Scoring'!$E$3:$AH$3,0)-1),MATCH(AD$2&\" Score\",'C. PoC Adj Factor Scoring'!$E$4:$J$4,0),TRUE)","v":1},{"$f":"VLOOKUP(OFFSET($B:$B,,MATCH(AE$4,$B$4:$F$4,0)-1),OFFSET('C. PoC Adj Factor Scoring'!$E$5:$J$282,,MATCH(AE$4,'C. PoC Adj Factor Scoring'!$E$3:$AH$3,0)-1),MATCH(AE$2&\" Score\",'C. PoC Adj Factor Scoring'!$E$4:$J$4,0),TRUE)","v":1}]
[{"$f":"'A. Population Info'!A408","v":1000407839},{"$f":"'A. Population Info'!L408","v":"OIL"},{"$f":"'A. Population Info'!M408","v":0},{"$f":"'A. Population Info'!N408","v":0},{"$f":"'A. Population Info'!O408","v":0},{"$f":"'A. Population Info'!P408","v":0},{"$f":"VLOOKUP(OFFSET($B:$B,,MATCH(G$4,$B$4:$F$4,0)-1),OFFSET('C. PoC Adj Factor Scoring'!$E$5:$J$282,,MATCH(G$4,'C. PoC Adj Factor Scoring'!$E$3:$AH$3,0)-1),MATCH(G$2&\" Score\",'C. PoC Adj Factor Scoring'!$E$4:$J$4,0),TRUE)","v":4},{"$f":"VLOOKUP(OFFSET($B:$B,,MATCH(H$4,$B$4:$F$4,0)-1),OFFSET('C. PoC Adj Factor Scoring'!$E$5:$J$282,,MATCH(H$4,'C. PoC Adj Factor Scoring'!$E$3:$AH$3,0)-1),MATCH(H$2&\" Score\",'C. PoC Adj Factor Scoring'!$E$4:$J$4,0),TRUE)","v":1},{"$f":"VLOOKUP(OFFSET($B:$B,,MATCH(I$4,$B$4:$F$4,0)-1),OFFSET('C. PoC Adj Factor Scoring'!$E$5:$J$282,,MATCH(I$4,'C. PoC Adj Factor Scoring'!$E$3:$AH$3,0)-1),MATCH(I$2&\" Score\",'C. PoC Adj Factor Scoring'!$E$4:$J$4,0),TRUE)","v":1},{"$f":"VLOOKUP(OFFSET($B:$B,,MATCH(J$4,$B$4:$F$4,0)-1),OFFSET('C. PoC Adj Factor Scoring'!$E$5:$J$282,,MATCH(J$4,'C. PoC Adj Factor Scoring'!$E$3:$AH$3,0)-1),MATCH(J$2&\" Score\",'C. PoC Adj Factor Scoring'!$E$4:$J$4,0),TRUE)","v":1},{"$f":"VLOOKUP(OFFSET($B:$B,,MATCH(K$4,$B$4:$F$4,0)-1),OFFSET('C. PoC Adj Factor Scoring'!$E$5:$J$282,,MATCH(K$4,'C. PoC Adj Factor Scoring'!$E$3:$AH$3,0)-1),MATCH(K$2&\" Score\",'C. PoC Adj Factor Scoring'!$E$4:$J$4,0),TRUE)","v":1},{"$f":"VLOOKUP(OFFSET($B:$B,,MATCH(L$4,$B$4:$F$4,0)-1),OFFSET('C. PoC Adj Factor Scoring'!$E$5:$J$282,,MATCH(L$4,'C. PoC Adj Factor Scoring'!$E$3:$AH$3,0)-1),MATCH(L$2&\" Score\",'C. PoC Adj Factor Scoring'!$E$4:$J$4,0),TRUE)","v":1},{"$f":"VLOOKUP(OFFSET($B:$B,,MATCH(M$4,$B$4:$F$4,0)-1),OFFSET('C. PoC Adj Factor Scoring'!$E$5:$J$282,,MATCH(M$4,'C. PoC Adj Factor Scoring'!$E$3:$AH$3,0)-1),MATCH(M$2&\" Score\",'C. PoC Adj Factor Scoring'!$E$4:$J$4,0),TRUE)","v":1},{"$f":"VLOOKUP(OFFSET($B:$B,,MATCH(N$4,$B$4:$F$4,0)-1),OFFSET('C. PoC Adj Factor Scoring'!$E$5:$J$282,,MATCH(N$4,'C. PoC Adj Factor Scoring'!$E$3:$AH$3,0)-1),MATCH(N$2&\" Score\",'C. PoC Adj Factor Scoring'!$E$4:$J$4,0),TRUE)","v":1},{"$f":"VLOOKUP(OFFSET($B:$B,,MATCH(O$4,$B$4:$F$4,0)-1),OFFSET('C. PoC Adj Factor Scoring'!$E$5:$J$282,,MATCH(O$4,'C. PoC Adj Factor Scoring'!$E$3:$AH$3,0)-1),MATCH(O$2&\" Score\",'C. PoC Adj Factor Scoring'!$E$4:$J$4,0),TRUE)","v":1},{"$f":"VLOOKUP(OFFSET($B:$B,,MATCH(P$4,$B$4:$F$4,0)-1),OFFSET('C. PoC Adj Factor Scoring'!$E$5:$J$282,,MATCH(P$4,'C. PoC Adj Factor Scoring'!$E$3:$AH$3,0)-1),MATCH(P$2&\" Score\",'C. PoC Adj Factor Scoring'!$E$4:$J$4,0),TRUE)","v":1},{"$f":"VLOOKUP(OFFSET($B:$B,,MATCH(Q$4,$B$4:$F$4,0)-1),OFFSET('C. PoC Adj Factor Scoring'!$E$5:$J$282,,MATCH(Q$4,'C. PoC Adj Factor Scoring'!$E$3:$AH$3,0)-1),MATCH(Q$2&\" Score\",'C. PoC Adj Factor Scoring'!$E$4:$J$4,0),TRUE)","v":1},{"$f":"VLOOKUP(OFFSET($B:$B,,MATCH(R$4,$B$4:$F$4,0)-1),OFFSET('C. PoC Adj Factor Scoring'!$E$5:$J$282,,MATCH(R$4,'C. PoC Adj Factor Scoring'!$E$3:$AH$3,0)-1),MATCH(R$2&\" Score\",'C. PoC Adj Factor Scoring'!$E$4:$J$4,0),TRUE)","v":1},{"$f":"VLOOKUP(OFFSET($B:$B,,MATCH(S$4,$B$4:$F$4,0)-1),OFFSET('C. PoC Adj Factor Scoring'!$E$5:$J$282,,MATCH(S$4,'C. PoC Adj Factor Scoring'!$E$3:$AH$3,0)-1),MATCH(S$2&\" Score\",'C. PoC Adj Factor Scoring'!$E$4:$J$4,0),TRUE)","v":1},{"$f":"VLOOKUP(OFFSET($B:$B,,MATCH(T$4,$B$4:$F$4,0)-1),OFFSET('C. PoC Adj Factor Scoring'!$E$5:$J$282,,MATCH(T$4,'C. PoC Adj Factor Scoring'!$E$3:$AH$3,0)-1),MATCH(T$2&\" Score\",'C. PoC Adj Factor Scoring'!$E$4:$J$4,0),TRUE)","v":1},{"$f":"VLOOKUP(OFFSET($B:$B,,MATCH(U$4,$B$4:$F$4,0)-1),OFFSET('C. PoC Adj Factor Scoring'!$E$5:$J$282,,MATCH(U$4,'C. PoC Adj Factor Scoring'!$E$3:$AH$3,0)-1),MATCH(U$2&\" Score\",'C. PoC Adj Factor Scoring'!$E$4:$J$4,0),TRUE)","v":1},{"$f":"VLOOKUP(OFFSET($B:$B,,MATCH(V$4,$B$4:$F$4,0)-1),OFFSET('C. PoC Adj Factor Scoring'!$E$5:$J$282,,MATCH(V$4,'C. PoC Adj Factor Scoring'!$E$3:$AH$3,0)-1),MATCH(V$2&\" Score\",'C. PoC Adj Factor Scoring'!$E$4:$J$4,0),TRUE)","v":1},{"$f":"VLOOKUP(OFFSET($B:$B,,MATCH(W$4,$B$4:$F$4,0)-1),OFFSET('C. PoC Adj Factor Scoring'!$E$5:$J$282,,MATCH(W$4,'C. PoC Adj Factor Scoring'!$E$3:$AH$3,0)-1),MATCH(W$2&\" Score\",'C. PoC Adj Factor Scoring'!$E$4:$J$4,0),TRUE)","v":1},{"$f":"VLOOKUP(OFFSET($B:$B,,MATCH(X$4,$B$4:$F$4,0)-1),OFFSET('C. PoC Adj Factor Scoring'!$E$5:$J$282,,MATCH(X$4,'C. PoC Adj Factor Scoring'!$E$3:$AH$3,0)-1),MATCH(X$2&\" Score\",'C. PoC Adj Factor Scoring'!$E$4:$J$4,0),TRUE)","v":1},{"$f":"VLOOKUP(OFFSET($B:$B,,MATCH(Y$4,$B$4:$F$4,0)-1),OFFSET('C. PoC Adj Factor Scoring'!$E$5:$J$282,,MATCH(Y$4,'C. PoC Adj Factor Scoring'!$E$3:$AH$3,0)-1),MATCH(Y$2&\" Score\",'C. PoC Adj Factor Scoring'!$E$4:$J$4,0),TRUE)","v":1},{"$f":"VLOOKUP(OFFSET($B:$B,,MATCH(Z$4,$B$4:$F$4,0)-1),OFFSET('C. PoC Adj Factor Scoring'!$E$5:$J$282,,MATCH(Z$4,'C. PoC Adj Factor Scoring'!$E$3:$AH$3,0)-1),MATCH(Z$2&\" Score\",'C. PoC Adj Factor Scoring'!$E$4:$J$4,0),TRUE)","v":1},{"$f":"VLOOKUP(OFFSET($B:$B,,MATCH(AA$4,$B$4:$F$4,0)-1),OFFSET('C. PoC Adj Factor Scoring'!$E$5:$J$282,,MATCH(AA$4,'C. PoC Adj Factor Scoring'!$E$3:$AH$3,0)-1),MATCH(AA$2&\" Score\",'C. PoC Adj Factor Scoring'!$E$4:$J$4,0),TRUE)","v":3},{"$f":"VLOOKUP(OFFSET($B:$B,,MATCH(AB$4,$B$4:$F$4,0)-1),OFFSET('C. PoC Adj Factor Scoring'!$E$5:$J$282,,MATCH(AB$4,'C. PoC Adj Factor Scoring'!$E$3:$AH$3,0)-1),MATCH(AB$2&\" Score\",'C. PoC Adj Factor Scoring'!$E$4:$J$4,0),TRUE)","v":1},{"$f":"VLOOKUP(OFFSET($B:$B,,MATCH(AC$4,$B$4:$F$4,0)-1),OFFSET('C. PoC Adj Factor Scoring'!$E$5:$J$282,,MATCH(AC$4,'C. PoC Adj Factor Scoring'!$E$3:$AH$3,0)-1),MATCH(AC$2&\" Score\",'C. PoC Adj Factor Scoring'!$E$4:$J$4,0),TRUE)","v":1},{"$f":"VLOOKUP(OFFSET($B:$B,,MATCH(AD$4,$B$4:$F$4,0)-1),OFFSET('C. PoC Adj Factor Scoring'!$E$5:$J$282,,MATCH(AD$4,'C. PoC Adj Factor Scoring'!$E$3:$AH$3,0)-1),MATCH(AD$2&\" Score\",'C. PoC Adj Factor Scoring'!$E$4:$J$4,0),TRUE)","v":1},{"$f":"VLOOKUP(OFFSET($B:$B,,MATCH(AE$4,$B$4:$F$4,0)-1),OFFSET('C. PoC Adj Factor Scoring'!$E$5:$J$282,,MATCH(AE$4,'C. PoC Adj Factor Scoring'!$E$3:$AH$3,0)-1),MATCH(AE$2&\" Score\",'C. PoC Adj Factor Scoring'!$E$4:$J$4,0),TRUE)","v":1}]
[{"$f":"'A. Population Info'!A409","v":1000407875},{"$f":"'A. Population Info'!L409","v":"OIL"},{"$f":"'A. Population Info'!M409","v":0},{"$f":"'A. Population Info'!N409","v":0},{"$f":"'A. Population Info'!O409","v":0},{"$f":"'A. Population Info'!P409","v":0},{"$f":"VLOOKUP(OFFSET($B:$B,,MATCH(G$4,$B$4:$F$4,0)-1),OFFSET('C. PoC Adj Factor Scoring'!$E$5:$J$282,,MATCH(G$4,'C. PoC Adj Factor Scoring'!$E$3:$AH$3,0)-1),MATCH(G$2&\" Score\",'C. PoC Adj Factor Scoring'!$E$4:$J$4,0),TRUE)","v":4},{"$f":"VLOOKUP(OFFSET($B:$B,,MATCH(H$4,$B$4:$F$4,0)-1),OFFSET('C. PoC Adj Factor Scoring'!$E$5:$J$282,,MATCH(H$4,'C. PoC Adj Factor Scoring'!$E$3:$AH$3,0)-1),MATCH(H$2&\" Score\",'C. PoC Adj Factor Scoring'!$E$4:$J$4,0),TRUE)","v":1},{"$f":"VLOOKUP(OFFSET($B:$B,,MATCH(I$4,$B$4:$F$4,0)-1),OFFSET('C. PoC Adj Factor Scoring'!$E$5:$J$282,,MATCH(I$4,'C. PoC Adj Factor Scoring'!$E$3:$AH$3,0)-1),MATCH(I$2&\" Score\",'C. PoC Adj Factor Scoring'!$E$4:$J$4,0),TRUE)","v":1},{"$f":"VLOOKUP(OFFSET($B:$B,,MATCH(J$4,$B$4:$F$4,0)-1),OFFSET('C. PoC Adj Factor Scoring'!$E$5:$J$282,,MATCH(J$4,'C. PoC Adj Factor Scoring'!$E$3:$AH$3,0)-1),MATCH(J$2&\" Score\",'C. PoC Adj Factor Scoring'!$E$4:$J$4,0),TRUE)","v":1},{"$f":"VLOOKUP(OFFSET($B:$B,,MATCH(K$4,$B$4:$F$4,0)-1),OFFSET('C. PoC Adj Factor Scoring'!$E$5:$J$282,,MATCH(K$4,'C. PoC Adj Factor Scoring'!$E$3:$AH$3,0)-1),MATCH(K$2&\" Score\",'C. PoC Adj Factor Scoring'!$E$4:$J$4,0),TRUE)","v":1},{"$f":"VLOOKUP(OFFSET($B:$B,,MATCH(L$4,$B$4:$F$4,0)-1),OFFSET('C. PoC Adj Factor Scoring'!$E$5:$J$282,,MATCH(L$4,'C. PoC Adj Factor Scoring'!$E$3:$AH$3,0)-1),MATCH(L$2&\" Score\",'C. PoC Adj Factor Scoring'!$E$4:$J$4,0),TRUE)","v":1},{"$f":"VLOOKUP(OFFSET($B:$B,,MATCH(M$4,$B$4:$F$4,0)-1),OFFSET('C. PoC Adj Factor Scoring'!$E$5:$J$282,,MATCH(M$4,'C. PoC Adj Factor Scoring'!$E$3:$AH$3,0)-1),MATCH(M$2&\" Score\",'C. PoC Adj Factor Scoring'!$E$4:$J$4,0),TRUE)","v":1},{"$f":"VLOOKUP(OFFSET($B:$B,,MATCH(N$4,$B$4:$F$4,0)-1),OFFSET('C. PoC Adj Factor Scoring'!$E$5:$J$282,,MATCH(N$4,'C. PoC Adj Factor Scoring'!$E$3:$AH$3,0)-1),MATCH(N$2&\" Score\",'C. PoC Adj Factor Scoring'!$E$4:$J$4,0),TRUE)","v":1},{"$f":"VLOOKUP(OFFSET($B:$B,,MATCH(O$4,$B$4:$F$4,0)-1),OFFSET('C. PoC Adj Factor Scoring'!$E$5:$J$282,,MATCH(O$4,'C. PoC Adj Factor Scoring'!$E$3:$AH$3,0)-1),MATCH(O$2&\" Score\",'C. PoC Adj Factor Scoring'!$E$4:$J$4,0),TRUE)","v":1},{"$f":"VLOOKUP(OFFSET($B:$B,,MATCH(P$4,$B$4:$F$4,0)-1),OFFSET('C. PoC Adj Factor Scoring'!$E$5:$J$282,,MATCH(P$4,'C. PoC Adj Factor Scoring'!$E$3:$AH$3,0)-1),MATCH(P$2&\" Score\",'C. PoC Adj Factor Scoring'!$E$4:$J$4,0),TRUE)","v":1},{"$f":"VLOOKUP(OFFSET($B:$B,,MATCH(Q$4,$B$4:$F$4,0)-1),OFFSET('C. PoC Adj Factor Scoring'!$E$5:$J$282,,MATCH(Q$4,'C. PoC Adj Factor Scoring'!$E$3:$AH$3,0)-1),MATCH(Q$2&\" Score\",'C. PoC Adj Factor Scoring'!$E$4:$J$4,0),TRUE)","v":1},{"$f":"VLOOKUP(OFFSET($B:$B,,MATCH(R$4,$B$4:$F$4,0)-1),OFFSET('C. PoC Adj Factor Scoring'!$E$5:$J$282,,MATCH(R$4,'C. PoC Adj Factor Scoring'!$E$3:$AH$3,0)-1),MATCH(R$2&\" Score\",'C. PoC Adj Factor Scoring'!$E$4:$J$4,0),TRUE)","v":1},{"$f":"VLOOKUP(OFFSET($B:$B,,MATCH(S$4,$B$4:$F$4,0)-1),OFFSET('C. PoC Adj Factor Scoring'!$E$5:$J$282,,MATCH(S$4,'C. PoC Adj Factor Scoring'!$E$3:$AH$3,0)-1),MATCH(S$2&\" Score\",'C. PoC Adj Factor Scoring'!$E$4:$J$4,0),TRUE)","v":1},{"$f":"VLOOKUP(OFFSET($B:$B,,MATCH(T$4,$B$4:$F$4,0)-1),OFFSET('C. PoC Adj Factor Scoring'!$E$5:$J$282,,MATCH(T$4,'C. PoC Adj Factor Scoring'!$E$3:$AH$3,0)-1),MATCH(T$2&\" Score\",'C. PoC Adj Factor Scoring'!$E$4:$J$4,0),TRUE)","v":1},{"$f":"VLOOKUP(OFFSET($B:$B,,MATCH(U$4,$B$4:$F$4,0)-1),OFFSET('C. PoC Adj Factor Scoring'!$E$5:$J$282,,MATCH(U$4,'C. PoC Adj Factor Scoring'!$E$3:$AH$3,0)-1),MATCH(U$2&\" Score\",'C. PoC Adj Factor Scoring'!$E$4:$J$4,0),TRUE)","v":1},{"$f":"VLOOKUP(OFFSET($B:$B,,MATCH(V$4,$B$4:$F$4,0)-1),OFFSET('C. PoC Adj Factor Scoring'!$E$5:$J$282,,MATCH(V$4,'C. PoC Adj Factor Scoring'!$E$3:$AH$3,0)-1),MATCH(V$2&\" Score\",'C. PoC Adj Factor Scoring'!$E$4:$J$4,0),TRUE)","v":1},{"$f":"VLOOKUP(OFFSET($B:$B,,MATCH(W$4,$B$4:$F$4,0)-1),OFFSET('C. PoC Adj Factor Scoring'!$E$5:$J$282,,MATCH(W$4,'C. PoC Adj Factor Scoring'!$E$3:$AH$3,0)-1),MATCH(W$2&\" Score\",'C. PoC Adj Factor Scoring'!$E$4:$J$4,0),TRUE)","v":1},{"$f":"VLOOKUP(OFFSET($B:$B,,MATCH(X$4,$B$4:$F$4,0)-1),OFFSET('C. PoC Adj Factor Scoring'!$E$5:$J$282,,MATCH(X$4,'C. PoC Adj Factor Scoring'!$E$3:$AH$3,0)-1),MATCH(X$2&\" Score\",'C. PoC Adj Factor Scoring'!$E$4:$J$4,0),TRUE)","v":1},{"$f":"VLOOKUP(OFFSET($B:$B,,MATCH(Y$4,$B$4:$F$4,0)-1),OFFSET('C. PoC Adj Factor Scoring'!$E$5:$J$282,,MATCH(Y$4,'C. PoC Adj Factor Scoring'!$E$3:$AH$3,0)-1),MATCH(Y$2&\" Score\",'C. PoC Adj Factor Scoring'!$E$4:$J$4,0),TRUE)","v":1},{"$f":"VLOOKUP(OFFSET($B:$B,,MATCH(Z$4,$B$4:$F$4,0)-1),OFFSET('C. PoC Adj Factor Scoring'!$E$5:$J$282,,MATCH(Z$4,'C. PoC Adj Factor Scoring'!$E$3:$AH$3,0)-1),MATCH(Z$2&\" Score\",'C. PoC Adj Factor Scoring'!$E$4:$J$4,0),TRUE)","v":1},{"$f":"VLOOKUP(OFFSET($B:$B,,MATCH(AA$4,$B$4:$F$4,0)-1),OFFSET('C. PoC Adj Factor Scoring'!$E$5:$J$282,,MATCH(AA$4,'C. PoC Adj Factor Scoring'!$E$3:$AH$3,0)-1),MATCH(AA$2&\" Score\",'C. PoC Adj Factor Scoring'!$E$4:$J$4,0),TRUE)","v":3},{"$f":"VLOOKUP(OFFSET($B:$B,,MATCH(AB$4,$B$4:$F$4,0)-1),OFFSET('C. PoC Adj Factor Scoring'!$E$5:$J$282,,MATCH(AB$4,'C. PoC Adj Factor Scoring'!$E$3:$AH$3,0)-1),MATCH(AB$2&\" Score\",'C. PoC Adj Factor Scoring'!$E$4:$J$4,0),TRUE)","v":1},{"$f":"VLOOKUP(OFFSET($B:$B,,MATCH(AC$4,$B$4:$F$4,0)-1),OFFSET('C. PoC Adj Factor Scoring'!$E$5:$J$282,,MATCH(AC$4,'C. PoC Adj Factor Scoring'!$E$3:$AH$3,0)-1),MATCH(AC$2&\" Score\",'C. PoC Adj Factor Scoring'!$E$4:$J$4,0),TRUE)","v":1},{"$f":"VLOOKUP(OFFSET($B:$B,,MATCH(AD$4,$B$4:$F$4,0)-1),OFFSET('C. PoC Adj Factor Scoring'!$E$5:$J$282,,MATCH(AD$4,'C. PoC Adj Factor Scoring'!$E$3:$AH$3,0)-1),MATCH(AD$2&\" Score\",'C. PoC Adj Factor Scoring'!$E$4:$J$4,0),TRUE)","v":1},{"$f":"VLOOKUP(OFFSET($B:$B,,MATCH(AE$4,$B$4:$F$4,0)-1),OFFSET('C. PoC Adj Factor Scoring'!$E$5:$J$282,,MATCH(AE$4,'C. PoC Adj Factor Scoring'!$E$3:$AH$3,0)-1),MATCH(AE$2&\" Score\",'C. PoC Adj Factor Scoring'!$E$4:$J$4,0),TRUE)","v":1}]
[{"$f":"'A. Population Info'!A410","v":1000407905},{"$f":"'A. Population Info'!L410","v":"OIL"},{"$f":"'A. Population Info'!M410","v":0},{"$f":"'A. Population Info'!N410","v":0},{"$f":"'A. Population Info'!O410","v":0},{"$f":"'A. Population Info'!P410","v":0},{"$f":"VLOOKUP(OFFSET($B:$B,,MATCH(G$4,$B$4:$F$4,0)-1),OFFSET('C. PoC Adj Factor Scoring'!$E$5:$J$282,,MATCH(G$4,'C. PoC Adj Factor Scoring'!$E$3:$AH$3,0)-1),MATCH(G$2&\" Score\",'C. PoC Adj Factor Scoring'!$E$4:$J$4,0),TRUE)","v":4},{"$f":"VLOOKUP(OFFSET($B:$B,,MATCH(H$4,$B$4:$F$4,0)-1),OFFSET('C. PoC Adj Factor Scoring'!$E$5:$J$282,,MATCH(H$4,'C. PoC Adj Factor Scoring'!$E$3:$AH$3,0)-1),MATCH(H$2&\" Score\",'C. PoC Adj Factor Scoring'!$E$4:$J$4,0),TRUE)","v":1},{"$f":"VLOOKUP(OFFSET($B:$B,,MATCH(I$4,$B$4:$F$4,0)-1),OFFSET('C. PoC Adj Factor Scoring'!$E$5:$J$282,,MATCH(I$4,'C. PoC Adj Factor Scoring'!$E$3:$AH$3,0)-1),MATCH(I$2&\" Score\",'C. PoC Adj Factor Scoring'!$E$4:$J$4,0),TRUE)","v":1},{"$f":"VLOOKUP(OFFSET($B:$B,,MATCH(J$4,$B$4:$F$4,0)-1),OFFSET('C. PoC Adj Factor Scoring'!$E$5:$J$282,,MATCH(J$4,'C. PoC Adj Factor Scoring'!$E$3:$AH$3,0)-1),MATCH(J$2&\" Score\",'C. PoC Adj Factor Scoring'!$E$4:$J$4,0),TRUE)","v":1},{"$f":"VLOOKUP(OFFSET($B:$B,,MATCH(K$4,$B$4:$F$4,0)-1),OFFSET('C. PoC Adj Factor Scoring'!$E$5:$J$282,,MATCH(K$4,'C. PoC Adj Factor Scoring'!$E$3:$AH$3,0)-1),MATCH(K$2&\" Score\",'C. PoC Adj Factor Scoring'!$E$4:$J$4,0),TRUE)","v":1},{"$f":"VLOOKUP(OFFSET($B:$B,,MATCH(L$4,$B$4:$F$4,0)-1),OFFSET('C. PoC Adj Factor Scoring'!$E$5:$J$282,,MATCH(L$4,'C. PoC Adj Factor Scoring'!$E$3:$AH$3,0)-1),MATCH(L$2&\" Score\",'C. PoC Adj Factor Scoring'!$E$4:$J$4,0),TRUE)","v":1},{"$f":"VLOOKUP(OFFSET($B:$B,,MATCH(M$4,$B$4:$F$4,0)-1),OFFSET('C. PoC Adj Factor Scoring'!$E$5:$J$282,,MATCH(M$4,'C. PoC Adj Factor Scoring'!$E$3:$AH$3,0)-1),MATCH(M$2&\" Score\",'C. PoC Adj Factor Scoring'!$E$4:$J$4,0),TRUE)","v":1},{"$f":"VLOOKUP(OFFSET($B:$B,,MATCH(N$4,$B$4:$F$4,0)-1),OFFSET('C. PoC Adj Factor Scoring'!$E$5:$J$282,,MATCH(N$4,'C. PoC Adj Factor Scoring'!$E$3:$AH$3,0)-1),MATCH(N$2&\" Score\",'C. PoC Adj Factor Scoring'!$E$4:$J$4,0),TRUE)","v":1},{"$f":"VLOOKUP(OFFSET($B:$B,,MATCH(O$4,$B$4:$F$4,0)-1),OFFSET('C. PoC Adj Factor Scoring'!$E$5:$J$282,,MATCH(O$4,'C. PoC Adj Factor Scoring'!$E$3:$AH$3,0)-1),MATCH(O$2&\" Score\",'C. PoC Adj Factor Scoring'!$E$4:$J$4,0),TRUE)","v":1},{"$f":"VLOOKUP(OFFSET($B:$B,,MATCH(P$4,$B$4:$F$4,0)-1),OFFSET('C. PoC Adj Factor Scoring'!$E$5:$J$282,,MATCH(P$4,'C. PoC Adj Factor Scoring'!$E$3:$AH$3,0)-1),MATCH(P$2&\" Score\",'C. PoC Adj Factor Scoring'!$E$4:$J$4,0),TRUE)","v":1},{"$f":"VLOOKUP(OFFSET($B:$B,,MATCH(Q$4,$B$4:$F$4,0)-1),OFFSET('C. PoC Adj Factor Scoring'!$E$5:$J$282,,MATCH(Q$4,'C. PoC Adj Factor Scoring'!$E$3:$AH$3,0)-1),MATCH(Q$2&\" Score\",'C. PoC Adj Factor Scoring'!$E$4:$J$4,0),TRUE)","v":1},{"$f":"VLOOKUP(OFFSET($B:$B,,MATCH(R$4,$B$4:$F$4,0)-1),OFFSET('C. PoC Adj Factor Scoring'!$E$5:$J$282,,MATCH(R$4,'C. PoC Adj Factor Scoring'!$E$3:$AH$3,0)-1),MATCH(R$2&\" Score\",'C. PoC Adj Factor Scoring'!$E$4:$J$4,0),TRUE)","v":1},{"$f":"VLOOKUP(OFFSET($B:$B,,MATCH(S$4,$B$4:$F$4,0)-1),OFFSET('C. PoC Adj Factor Scoring'!$E$5:$J$282,,MATCH(S$4,'C. PoC Adj Factor Scoring'!$E$3:$AH$3,0)-1),MATCH(S$2&\" Score\",'C. PoC Adj Factor Scoring'!$E$4:$J$4,0),TRUE)","v":1},{"$f":"VLOOKUP(OFFSET($B:$B,,MATCH(T$4,$B$4:$F$4,0)-1),OFFSET('C. PoC Adj Factor Scoring'!$E$5:$J$282,,MATCH(T$4,'C. PoC Adj Factor Scoring'!$E$3:$AH$3,0)-1),MATCH(T$2&\" Score\",'C. PoC Adj Factor Scoring'!$E$4:$J$4,0),TRUE)","v":1},{"$f":"VLOOKUP(OFFSET($B:$B,,MATCH(U$4,$B$4:$F$4,0)-1),OFFSET('C. PoC Adj Factor Scoring'!$E$5:$J$282,,MATCH(U$4,'C. PoC Adj Factor Scoring'!$E$3:$AH$3,0)-1),MATCH(U$2&\" Score\",'C. PoC Adj Factor Scoring'!$E$4:$J$4,0),TRUE)","v":1},{"$f":"VLOOKUP(OFFSET($B:$B,,MATCH(V$4,$B$4:$F$4,0)-1),OFFSET('C. PoC Adj Factor Scoring'!$E$5:$J$282,,MATCH(V$4,'C. PoC Adj Factor Scoring'!$E$3:$AH$3,0)-1),MATCH(V$2&\" Score\",'C. PoC Adj Factor Scoring'!$E$4:$J$4,0),TRUE)","v":1},{"$f":"VLOOKUP(OFFSET($B:$B,,MATCH(W$4,$B$4:$F$4,0)-1),OFFSET('C. PoC Adj Factor Scoring'!$E$5:$J$282,,MATCH(W$4,'C. PoC Adj Factor Scoring'!$E$3:$AH$3,0)-1),MATCH(W$2&\" Score\",'C. PoC Adj Factor Scoring'!$E$4:$J$4,0),TRUE)","v":1},{"$f":"VLOOKUP(OFFSET($B:$B,,MATCH(X$4,$B$4:$F$4,0)-1),OFFSET('C. PoC Adj Factor Scoring'!$E$5:$J$282,,MATCH(X$4,'C. PoC Adj Factor Scoring'!$E$3:$AH$3,0)-1),MATCH(X$2&\" Score\",'C. PoC Adj Factor Scoring'!$E$4:$J$4,0),TRUE)","v":1},{"$f":"VLOOKUP(OFFSET($B:$B,,MATCH(Y$4,$B$4:$F$4,0)-1),OFFSET('C. PoC Adj Factor Scoring'!$E$5:$J$282,,MATCH(Y$4,'C. PoC Adj Factor Scoring'!$E$3:$AH$3,0)-1),MATCH(Y$2&\" Score\",'C. PoC Adj Factor Scoring'!$E$4:$J$4,0),TRUE)","v":1},{"$f":"VLOOKUP(OFFSET($B:$B,,MATCH(Z$4,$B$4:$F$4,0)-1),OFFSET('C. PoC Adj Factor Scoring'!$E$5:$J$282,,MATCH(Z$4,'C. PoC Adj Factor Scoring'!$E$3:$AH$3,0)-1),MATCH(Z$2&\" Score\",'C. PoC Adj Factor Scoring'!$E$4:$J$4,0),TRUE)","v":1},{"$f":"VLOOKUP(OFFSET($B:$B,,MATCH(AA$4,$B$4:$F$4,0)-1),OFFSET('C. PoC Adj Factor Scoring'!$E$5:$J$282,,MATCH(AA$4,'C. PoC Adj Factor Scoring'!$E$3:$AH$3,0)-1),MATCH(AA$2&\" Score\",'C. PoC Adj Factor Scoring'!$E$4:$J$4,0),TRUE)","v":3},{"$f":"VLOOKUP(OFFSET($B:$B,,MATCH(AB$4,$B$4:$F$4,0)-1),OFFSET('C. PoC Adj Factor Scoring'!$E$5:$J$282,,MATCH(AB$4,'C. PoC Adj Factor Scoring'!$E$3:$AH$3,0)-1),MATCH(AB$2&\" Score\",'C. PoC Adj Factor Scoring'!$E$4:$J$4,0),TRUE)","v":1},{"$f":"VLOOKUP(OFFSET($B:$B,,MATCH(AC$4,$B$4:$F$4,0)-1),OFFSET('C. PoC Adj Factor Scoring'!$E$5:$J$282,,MATCH(AC$4,'C. PoC Adj Factor Scoring'!$E$3:$AH$3,0)-1),MATCH(AC$2&\" Score\",'C. PoC Adj Factor Scoring'!$E$4:$J$4,0),TRUE)","v":1},{"$f":"VLOOKUP(OFFSET($B:$B,,MATCH(AD$4,$B$4:$F$4,0)-1),OFFSET('C. PoC Adj Factor Scoring'!$E$5:$J$282,,MATCH(AD$4,'C. PoC Adj Factor Scoring'!$E$3:$AH$3,0)-1),MATCH(AD$2&\" Score\",'C. PoC Adj Factor Scoring'!$E$4:$J$4,0),TRUE)","v":1},{"$f":"VLOOKUP(OFFSET($B:$B,,MATCH(AE$4,$B$4:$F$4,0)-1),OFFSET('C. PoC Adj Factor Scoring'!$E$5:$J$282,,MATCH(AE$4,'C. PoC Adj Factor Scoring'!$E$3:$AH$3,0)-1),MATCH(AE$2&\" Score\",'C. PoC Adj Factor Scoring'!$E$4:$J$4,0),TRUE)","v":1}]
[{"$f":"'A. Population Info'!A411","v":1000407934},{"$f":"'A. Population Info'!L411","v":"OIL"},{"$f":"'A. Population Info'!M411","v":0},{"$f":"'A. Population Info'!N411","v":0},{"$f":"'A. Population Info'!O411","v":0},{"$f":"'A. Population Info'!P411","v":0},{"$f":"VLOOKUP(OFFSET($B:$B,,MATCH(G$4,$B$4:$F$4,0)-1),OFFSET('C. PoC Adj Factor Scoring'!$E$5:$J$282,,MATCH(G$4,'C. PoC Adj Factor Scoring'!$E$3:$AH$3,0)-1),MATCH(G$2&\" Score\",'C. PoC Adj Factor Scoring'!$E$4:$J$4,0),TRUE)","v":4},{"$f":"VLOOKUP(OFFSET($B:$B,,MATCH(H$4,$B$4:$F$4,0)-1),OFFSET('C. PoC Adj Factor Scoring'!$E$5:$J$282,,MATCH(H$4,'C. PoC Adj Factor Scoring'!$E$3:$AH$3,0)-1),MATCH(H$2&\" Score\",'C. PoC Adj Factor Scoring'!$E$4:$J$4,0),TRUE)","v":1},{"$f":"VLOOKUP(OFFSET($B:$B,,MATCH(I$4,$B$4:$F$4,0)-1),OFFSET('C. PoC Adj Factor Scoring'!$E$5:$J$282,,MATCH(I$4,'C. PoC Adj Factor Scoring'!$E$3:$AH$3,0)-1),MATCH(I$2&\" Score\",'C. PoC Adj Factor Scoring'!$E$4:$J$4,0),TRUE)","v":1},{"$f":"VLOOKUP(OFFSET($B:$B,,MATCH(J$4,$B$4:$F$4,0)-1),OFFSET('C. PoC Adj Factor Scoring'!$E$5:$J$282,,MATCH(J$4,'C. PoC Adj Factor Scoring'!$E$3:$AH$3,0)-1),MATCH(J$2&\" Score\",'C. PoC Adj Factor Scoring'!$E$4:$J$4,0),TRUE)","v":1},{"$f":"VLOOKUP(OFFSET($B:$B,,MATCH(K$4,$B$4:$F$4,0)-1),OFFSET('C. PoC Adj Factor Scoring'!$E$5:$J$282,,MATCH(K$4,'C. PoC Adj Factor Scoring'!$E$3:$AH$3,0)-1),MATCH(K$2&\" Score\",'C. PoC Adj Factor Scoring'!$E$4:$J$4,0),TRUE)","v":1},{"$f":"VLOOKUP(OFFSET($B:$B,,MATCH(L$4,$B$4:$F$4,0)-1),OFFSET('C. PoC Adj Factor Scoring'!$E$5:$J$282,,MATCH(L$4,'C. PoC Adj Factor Scoring'!$E$3:$AH$3,0)-1),MATCH(L$2&\" Score\",'C. PoC Adj Factor Scoring'!$E$4:$J$4,0),TRUE)","v":1},{"$f":"VLOOKUP(OFFSET($B:$B,,MATCH(M$4,$B$4:$F$4,0)-1),OFFSET('C. PoC Adj Factor Scoring'!$E$5:$J$282,,MATCH(M$4,'C. PoC Adj Factor Scoring'!$E$3:$AH$3,0)-1),MATCH(M$2&\" Score\",'C. PoC Adj Factor Scoring'!$E$4:$J$4,0),TRUE)","v":1},{"$f":"VLOOKUP(OFFSET($B:$B,,MATCH(N$4,$B$4:$F$4,0)-1),OFFSET('C. PoC Adj Factor Scoring'!$E$5:$J$282,,MATCH(N$4,'C. PoC Adj Factor Scoring'!$E$3:$AH$3,0)-1),MATCH(N$2&\" Score\",'C. PoC Adj Factor Scoring'!$E$4:$J$4,0),TRUE)","v":1},{"$f":"VLOOKUP(OFFSET($B:$B,,MATCH(O$4,$B$4:$F$4,0)-1),OFFSET('C. PoC Adj Factor Scoring'!$E$5:$J$282,,MATCH(O$4,'C. PoC Adj Factor Scoring'!$E$3:$AH$3,0)-1),MATCH(O$2&\" Score\",'C. PoC Adj Factor Scoring'!$E$4:$J$4,0),TRUE)","v":1},{"$f":"VLOOKUP(OFFSET($B:$B,,MATCH(P$4,$B$4:$F$4,0)-1),OFFSET('C. PoC Adj Factor Scoring'!$E$5:$J$282,,MATCH(P$4,'C. PoC Adj Factor Scoring'!$E$3:$AH$3,0)-1),MATCH(P$2&\" Score\",'C. PoC Adj Factor Scoring'!$E$4:$J$4,0),TRUE)","v":1},{"$f":"VLOOKUP(OFFSET($B:$B,,MATCH(Q$4,$B$4:$F$4,0)-1),OFFSET('C. PoC Adj Factor Scoring'!$E$5:$J$282,,MATCH(Q$4,'C. PoC Adj Factor Scoring'!$E$3:$AH$3,0)-1),MATCH(Q$2&\" Score\",'C. PoC Adj Factor Scoring'!$E$4:$J$4,0),TRUE)","v":1},{"$f":"VLOOKUP(OFFSET($B:$B,,MATCH(R$4,$B$4:$F$4,0)-1),OFFSET('C. PoC Adj Factor Scoring'!$E$5:$J$282,,MATCH(R$4,'C. PoC Adj Factor Scoring'!$E$3:$AH$3,0)-1),MATCH(R$2&\" Score\",'C. PoC Adj Factor Scoring'!$E$4:$J$4,0),TRUE)","v":1},{"$f":"VLOOKUP(OFFSET($B:$B,,MATCH(S$4,$B$4:$F$4,0)-1),OFFSET('C. PoC Adj Factor Scoring'!$E$5:$J$282,,MATCH(S$4,'C. PoC Adj Factor Scoring'!$E$3:$AH$3,0)-1),MATCH(S$2&\" Score\",'C. PoC Adj Factor Scoring'!$E$4:$J$4,0),TRUE)","v":1},{"$f":"VLOOKUP(OFFSET($B:$B,,MATCH(T$4,$B$4:$F$4,0)-1),OFFSET('C. PoC Adj Factor Scoring'!$E$5:$J$282,,MATCH(T$4,'C. PoC Adj Factor Scoring'!$E$3:$AH$3,0)-1),MATCH(T$2&\" Score\",'C. PoC Adj Factor Scoring'!$E$4:$J$4,0),TRUE)","v":1},{"$f":"VLOOKUP(OFFSET($B:$B,,MATCH(U$4,$B$4:$F$4,0)-1),OFFSET('C. PoC Adj Factor Scoring'!$E$5:$J$282,,MATCH(U$4,'C. PoC Adj Factor Scoring'!$E$3:$AH$3,0)-1),MATCH(U$2&\" Score\",'C. PoC Adj Factor Scoring'!$E$4:$J$4,0),TRUE)","v":1},{"$f":"VLOOKUP(OFFSET($B:$B,,MATCH(V$4,$B$4:$F$4,0)-1),OFFSET('C. PoC Adj Factor Scoring'!$E$5:$J$282,,MATCH(V$4,'C. PoC Adj Factor Scoring'!$E$3:$AH$3,0)-1),MATCH(V$2&\" Score\",'C. PoC Adj Factor Scoring'!$E$4:$J$4,0),TRUE)","v":1},{"$f":"VLOOKUP(OFFSET($B:$B,,MATCH(W$4,$B$4:$F$4,0)-1),OFFSET('C. PoC Adj Factor Scoring'!$E$5:$J$282,,MATCH(W$4,'C. PoC Adj Factor Scoring'!$E$3:$AH$3,0)-1),MATCH(W$2&\" Score\",'C. PoC Adj Factor Scoring'!$E$4:$J$4,0),TRUE)","v":1},{"$f":"VLOOKUP(OFFSET($B:$B,,MATCH(X$4,$B$4:$F$4,0)-1),OFFSET('C. PoC Adj Factor Scoring'!$E$5:$J$282,,MATCH(X$4,'C. PoC Adj Factor Scoring'!$E$3:$AH$3,0)-1),MATCH(X$2&\" Score\",'C. PoC Adj Factor Scoring'!$E$4:$J$4,0),TRUE)","v":1},{"$f":"VLOOKUP(OFFSET($B:$B,,MATCH(Y$4,$B$4:$F$4,0)-1),OFFSET('C. PoC Adj Factor Scoring'!$E$5:$J$282,,MATCH(Y$4,'C. PoC Adj Factor Scoring'!$E$3:$AH$3,0)-1),MATCH(Y$2&\" Score\",'C. PoC Adj Factor Scoring'!$E$4:$J$4,0),TRUE)","v":1},{"$f":"VLOOKUP(OFFSET($B:$B,,MATCH(Z$4,$B$4:$F$4,0)-1),OFFSET('C. PoC Adj Factor Scoring'!$E$5:$J$282,,MATCH(Z$4,'C. PoC Adj Factor Scoring'!$E$3:$AH$3,0)-1),MATCH(Z$2&\" Score\",'C. PoC Adj Factor Scoring'!$E$4:$J$4,0),TRUE)","v":1},{"$f":"VLOOKUP(OFFSET($B:$B,,MATCH(AA$4,$B$4:$F$4,0)-1),OFFSET('C. PoC Adj Factor Scoring'!$E$5:$J$282,,MATCH(AA$4,'C. PoC Adj Factor Scoring'!$E$3:$AH$3,0)-1),MATCH(AA$2&\" Score\",'C. PoC Adj Factor Scoring'!$E$4:$J$4,0),TRUE)","v":3},{"$f":"VLOOKUP(OFFSET($B:$B,,MATCH(AB$4,$B$4:$F$4,0)-1),OFFSET('C. PoC Adj Factor Scoring'!$E$5:$J$282,,MATCH(AB$4,'C. PoC Adj Factor Scoring'!$E$3:$AH$3,0)-1),MATCH(AB$2&\" Score\",'C. PoC Adj Factor Scoring'!$E$4:$J$4,0),TRUE)","v":1},{"$f":"VLOOKUP(OFFSET($B:$B,,MATCH(AC$4,$B$4:$F$4,0)-1),OFFSET('C. PoC Adj Factor Scoring'!$E$5:$J$282,,MATCH(AC$4,'C. PoC Adj Factor Scoring'!$E$3:$AH$3,0)-1),MATCH(AC$2&\" Score\",'C. PoC Adj Factor Scoring'!$E$4:$J$4,0),TRUE)","v":1},{"$f":"VLOOKUP(OFFSET($B:$B,,MATCH(AD$4,$B$4:$F$4,0)-1),OFFSET('C. PoC Adj Factor Scoring'!$E$5:$J$282,,MATCH(AD$4,'C. PoC Adj Factor Scoring'!$E$3:$AH$3,0)-1),MATCH(AD$2&\" Score\",'C. PoC Adj Factor Scoring'!$E$4:$J$4,0),TRUE)","v":1},{"$f":"VLOOKUP(OFFSET($B:$B,,MATCH(AE$4,$B$4:$F$4,0)-1),OFFSET('C. PoC Adj Factor Scoring'!$E$5:$J$282,,MATCH(AE$4,'C. PoC Adj Factor Scoring'!$E$3:$AH$3,0)-1),MATCH(AE$2&\" Score\",'C. PoC Adj Factor Scoring'!$E$4:$J$4,0),TRUE)","v":1}]
[{"$f":"'A. Population Info'!A412","v":1000407967},{"$f":"'A. Population Info'!L412","v":"OIL"},{"$f":"'A. Population Info'!M412","v":0},{"$f":"'A. Population Info'!N412","v":0},{"$f":"'A. Population Info'!O412","v":0},{"$f":"'A. Population Info'!P412","v":0},{"$f":"VLOOKUP(OFFSET($B:$B,,MATCH(G$4,$B$4:$F$4,0)-1),OFFSET('C. PoC Adj Factor Scoring'!$E$5:$J$282,,MATCH(G$4,'C. PoC Adj Factor Scoring'!$E$3:$AH$3,0)-1),MATCH(G$2&\" Score\",'C. PoC Adj Factor Scoring'!$E$4:$J$4,0),TRUE)","v":4},{"$f":"VLOOKUP(OFFSET($B:$B,,MATCH(H$4,$B$4:$F$4,0)-1),OFFSET('C. PoC Adj Factor Scoring'!$E$5:$J$282,,MATCH(H$4,'C. PoC Adj Factor Scoring'!$E$3:$AH$3,0)-1),MATCH(H$2&\" Score\",'C. PoC Adj Factor Scoring'!$E$4:$J$4,0),TRUE)","v":1},{"$f":"VLOOKUP(OFFSET($B:$B,,MATCH(I$4,$B$4:$F$4,0)-1),OFFSET('C. PoC Adj Factor Scoring'!$E$5:$J$282,,MATCH(I$4,'C. PoC Adj Factor Scoring'!$E$3:$AH$3,0)-1),MATCH(I$2&\" Score\",'C. PoC Adj Factor Scoring'!$E$4:$J$4,0),TRUE)","v":1},{"$f":"VLOOKUP(OFFSET($B:$B,,MATCH(J$4,$B$4:$F$4,0)-1),OFFSET('C. PoC Adj Factor Scoring'!$E$5:$J$282,,MATCH(J$4,'C. PoC Adj Factor Scoring'!$E$3:$AH$3,0)-1),MATCH(J$2&\" Score\",'C. PoC Adj Factor Scoring'!$E$4:$J$4,0),TRUE)","v":1},{"$f":"VLOOKUP(OFFSET($B:$B,,MATCH(K$4,$B$4:$F$4,0)-1),OFFSET('C. PoC Adj Factor Scoring'!$E$5:$J$282,,MATCH(K$4,'C. PoC Adj Factor Scoring'!$E$3:$AH$3,0)-1),MATCH(K$2&\" Score\",'C. PoC Adj Factor Scoring'!$E$4:$J$4,0),TRUE)","v":1},{"$f":"VLOOKUP(OFFSET($B:$B,,MATCH(L$4,$B$4:$F$4,0)-1),OFFSET('C. PoC Adj Factor Scoring'!$E$5:$J$282,,MATCH(L$4,'C. PoC Adj Factor Scoring'!$E$3:$AH$3,0)-1),MATCH(L$2&\" Score\",'C. PoC Adj Factor Scoring'!$E$4:$J$4,0),TRUE)","v":1},{"$f":"VLOOKUP(OFFSET($B:$B,,MATCH(M$4,$B$4:$F$4,0)-1),OFFSET('C. PoC Adj Factor Scoring'!$E$5:$J$282,,MATCH(M$4,'C. PoC Adj Factor Scoring'!$E$3:$AH$3,0)-1),MATCH(M$2&\" Score\",'C. PoC Adj Factor Scoring'!$E$4:$J$4,0),TRUE)","v":1},{"$f":"VLOOKUP(OFFSET($B:$B,,MATCH(N$4,$B$4:$F$4,0)-1),OFFSET('C. PoC Adj Factor Scoring'!$E$5:$J$282,,MATCH(N$4,'C. PoC Adj Factor Scoring'!$E$3:$AH$3,0)-1),MATCH(N$2&\" Score\",'C. PoC Adj Factor Scoring'!$E$4:$J$4,0),TRUE)","v":1},{"$f":"VLOOKUP(OFFSET($B:$B,,MATCH(O$4,$B$4:$F$4,0)-1),OFFSET('C. PoC Adj Factor Scoring'!$E$5:$J$282,,MATCH(O$4,'C. PoC Adj Factor Scoring'!$E$3:$AH$3,0)-1),MATCH(O$2&\" Score\",'C. PoC Adj Factor Scoring'!$E$4:$J$4,0),TRUE)","v":1},{"$f":"VLOOKUP(OFFSET($B:$B,,MATCH(P$4,$B$4:$F$4,0)-1),OFFSET('C. PoC Adj Factor Scoring'!$E$5:$J$282,,MATCH(P$4,'C. PoC Adj Factor Scoring'!$E$3:$AH$3,0)-1),MATCH(P$2&\" Score\",'C. PoC Adj Factor Scoring'!$E$4:$J$4,0),TRUE)","v":1},{"$f":"VLOOKUP(OFFSET($B:$B,,MATCH(Q$4,$B$4:$F$4,0)-1),OFFSET('C. PoC Adj Factor Scoring'!$E$5:$J$282,,MATCH(Q$4,'C. PoC Adj Factor Scoring'!$E$3:$AH$3,0)-1),MATCH(Q$2&\" Score\",'C. PoC Adj Factor Scoring'!$E$4:$J$4,0),TRUE)","v":1},{"$f":"VLOOKUP(OFFSET($B:$B,,MATCH(R$4,$B$4:$F$4,0)-1),OFFSET('C. PoC Adj Factor Scoring'!$E$5:$J$282,,MATCH(R$4,'C. PoC Adj Factor Scoring'!$E$3:$AH$3,0)-1),MATCH(R$2&\" Score\",'C. PoC Adj Factor Scoring'!$E$4:$J$4,0),TRUE)","v":1},{"$f":"VLOOKUP(OFFSET($B:$B,,MATCH(S$4,$B$4:$F$4,0)-1),OFFSET('C. PoC Adj Factor Scoring'!$E$5:$J$282,,MATCH(S$4,'C. PoC Adj Factor Scoring'!$E$3:$AH$3,0)-1),MATCH(S$2&\" Score\",'C. PoC Adj Factor Scoring'!$E$4:$J$4,0),TRUE)","v":1},{"$f":"VLOOKUP(OFFSET($B:$B,,MATCH(T$4,$B$4:$F$4,0)-1),OFFSET('C. PoC Adj Factor Scoring'!$E$5:$J$282,,MATCH(T$4,'C. PoC Adj Factor Scoring'!$E$3:$AH$3,0)-1),MATCH(T$2&\" Score\",'C. PoC Adj Factor Scoring'!$E$4:$J$4,0),TRUE)","v":1},{"$f":"VLOOKUP(OFFSET($B:$B,,MATCH(U$4,$B$4:$F$4,0)-1),OFFSET('C. PoC Adj Factor Scoring'!$E$5:$J$282,,MATCH(U$4,'C. PoC Adj Factor Scoring'!$E$3:$AH$3,0)-1),MATCH(U$2&\" Score\",'C. PoC Adj Factor Scoring'!$E$4:$J$4,0),TRUE)","v":1},{"$f":"VLOOKUP(OFFSET($B:$B,,MATCH(V$4,$B$4:$F$4,0)-1),OFFSET('C. PoC Adj Factor Scoring'!$E$5:$J$282,,MATCH(V$4,'C. PoC Adj Factor Scoring'!$E$3:$AH$3,0)-1),MATCH(V$2&\" Score\",'C. PoC Adj Factor Scoring'!$E$4:$J$4,0),TRUE)","v":1},{"$f":"VLOOKUP(OFFSET($B:$B,,MATCH(W$4,$B$4:$F$4,0)-1),OFFSET('C. PoC Adj Factor Scoring'!$E$5:$J$282,,MATCH(W$4,'C. PoC Adj Factor Scoring'!$E$3:$AH$3,0)-1),MATCH(W$2&\" Score\",'C. PoC Adj Factor Scoring'!$E$4:$J$4,0),TRUE)","v":1},{"$f":"VLOOKUP(OFFSET($B:$B,,MATCH(X$4,$B$4:$F$4,0)-1),OFFSET('C. PoC Adj Factor Scoring'!$E$5:$J$282,,MATCH(X$4,'C. PoC Adj Factor Scoring'!$E$3:$AH$3,0)-1),MATCH(X$2&\" Score\",'C. PoC Adj Factor Scoring'!$E$4:$J$4,0),TRUE)","v":1},{"$f":"VLOOKUP(OFFSET($B:$B,,MATCH(Y$4,$B$4:$F$4,0)-1),OFFSET('C. PoC Adj Factor Scoring'!$E$5:$J$282,,MATCH(Y$4,'C. PoC Adj Factor Scoring'!$E$3:$AH$3,0)-1),MATCH(Y$2&\" Score\",'C. PoC Adj Factor Scoring'!$E$4:$J$4,0),TRUE)","v":1},{"$f":"VLOOKUP(OFFSET($B:$B,,MATCH(Z$4,$B$4:$F$4,0)-1),OFFSET('C. PoC Adj Factor Scoring'!$E$5:$J$282,,MATCH(Z$4,'C. PoC Adj Factor Scoring'!$E$3:$AH$3,0)-1),MATCH(Z$2&\" Score\",'C. PoC Adj Factor Scoring'!$E$4:$J$4,0),TRUE)","v":1},{"$f":"VLOOKUP(OFFSET($B:$B,,MATCH(AA$4,$B$4:$F$4,0)-1),OFFSET('C. PoC Adj Factor Scoring'!$E$5:$J$282,,MATCH(AA$4,'C. PoC Adj Factor Scoring'!$E$3:$AH$3,0)-1),MATCH(AA$2&\" Score\",'C. PoC Adj Factor Scoring'!$E$4:$J$4,0),TRUE)","v":3},{"$f":"VLOOKUP(OFFSET($B:$B,,MATCH(AB$4,$B$4:$F$4,0)-1),OFFSET('C. PoC Adj Factor Scoring'!$E$5:$J$282,,MATCH(AB$4,'C. PoC Adj Factor Scoring'!$E$3:$AH$3,0)-1),MATCH(AB$2&\" Score\",'C. PoC Adj Factor Scoring'!$E$4:$J$4,0),TRUE)","v":1},{"$f":"VLOOKUP(OFFSET($B:$B,,MATCH(AC$4,$B$4:$F$4,0)-1),OFFSET('C. PoC Adj Factor Scoring'!$E$5:$J$282,,MATCH(AC$4,'C. PoC Adj Factor Scoring'!$E$3:$AH$3,0)-1),MATCH(AC$2&\" Score\",'C. PoC Adj Factor Scoring'!$E$4:$J$4,0),TRUE)","v":1},{"$f":"VLOOKUP(OFFSET($B:$B,,MATCH(AD$4,$B$4:$F$4,0)-1),OFFSET('C. PoC Adj Factor Scoring'!$E$5:$J$282,,MATCH(AD$4,'C. PoC Adj Factor Scoring'!$E$3:$AH$3,0)-1),MATCH(AD$2&\" Score\",'C. PoC Adj Factor Scoring'!$E$4:$J$4,0),TRUE)","v":1},{"$f":"VLOOKUP(OFFSET($B:$B,,MATCH(AE$4,$B$4:$F$4,0)-1),OFFSET('C. PoC Adj Factor Scoring'!$E$5:$J$282,,MATCH(AE$4,'C. PoC Adj Factor Scoring'!$E$3:$AH$3,0)-1),MATCH(AE$2&\" Score\",'C. PoC Adj Factor Scoring'!$E$4:$J$4,0),TRUE)","v":1}]
[{"$f":"'A. Population Info'!A413","v":1000410000},{"$f":"'A. Population Info'!L413","v":"OIL"},{"$f":"'A. Population Info'!M413","v":0},{"$f":"'A. Population Info'!N413","v":0},{"$f":"'A. Population Info'!O413","v":0},{"$f":"'A. Population Info'!P413","v":0},{"$f":"VLOOKUP(OFFSET($B:$B,,MATCH(G$4,$B$4:$F$4,0)-1),OFFSET('C. PoC Adj Factor Scoring'!$E$5:$J$282,,MATCH(G$4,'C. PoC Adj Factor Scoring'!$E$3:$AH$3,0)-1),MATCH(G$2&\" Score\",'C. PoC Adj Factor Scoring'!$E$4:$J$4,0),TRUE)","v":4},{"$f":"VLOOKUP(OFFSET($B:$B,,MATCH(H$4,$B$4:$F$4,0)-1),OFFSET('C. PoC Adj Factor Scoring'!$E$5:$J$282,,MATCH(H$4,'C. PoC Adj Factor Scoring'!$E$3:$AH$3,0)-1),MATCH(H$2&\" Score\",'C. PoC Adj Factor Scoring'!$E$4:$J$4,0),TRUE)","v":1},{"$f":"VLOOKUP(OFFSET($B:$B,,MATCH(I$4,$B$4:$F$4,0)-1),OFFSET('C. PoC Adj Factor Scoring'!$E$5:$J$282,,MATCH(I$4,'C. PoC Adj Factor Scoring'!$E$3:$AH$3,0)-1),MATCH(I$2&\" Score\",'C. PoC Adj Factor Scoring'!$E$4:$J$4,0),TRUE)","v":1},{"$f":"VLOOKUP(OFFSET($B:$B,,MATCH(J$4,$B$4:$F$4,0)-1),OFFSET('C. PoC Adj Factor Scoring'!$E$5:$J$282,,MATCH(J$4,'C. PoC Adj Factor Scoring'!$E$3:$AH$3,0)-1),MATCH(J$2&\" Score\",'C. PoC Adj Factor Scoring'!$E$4:$J$4,0),TRUE)","v":1},{"$f":"VLOOKUP(OFFSET($B:$B,,MATCH(K$4,$B$4:$F$4,0)-1),OFFSET('C. PoC Adj Factor Scoring'!$E$5:$J$282,,MATCH(K$4,'C. PoC Adj Factor Scoring'!$E$3:$AH$3,0)-1),MATCH(K$2&\" Score\",'C. PoC Adj Factor Scoring'!$E$4:$J$4,0),TRUE)","v":1},{"$f":"VLOOKUP(OFFSET($B:$B,,MATCH(L$4,$B$4:$F$4,0)-1),OFFSET('C. PoC Adj Factor Scoring'!$E$5:$J$282,,MATCH(L$4,'C. PoC Adj Factor Scoring'!$E$3:$AH$3,0)-1),MATCH(L$2&\" Score\",'C. PoC Adj Factor Scoring'!$E$4:$J$4,0),TRUE)","v":1},{"$f":"VLOOKUP(OFFSET($B:$B,,MATCH(M$4,$B$4:$F$4,0)-1),OFFSET('C. PoC Adj Factor Scoring'!$E$5:$J$282,,MATCH(M$4,'C. PoC Adj Factor Scoring'!$E$3:$AH$3,0)-1),MATCH(M$2&\" Score\",'C. PoC Adj Factor Scoring'!$E$4:$J$4,0),TRUE)","v":1},{"$f":"VLOOKUP(OFFSET($B:$B,,MATCH(N$4,$B$4:$F$4,0)-1),OFFSET('C. PoC Adj Factor Scoring'!$E$5:$J$282,,MATCH(N$4,'C. PoC Adj Factor Scoring'!$E$3:$AH$3,0)-1),MATCH(N$2&\" Score\",'C. PoC Adj Factor Scoring'!$E$4:$J$4,0),TRUE)","v":1},{"$f":"VLOOKUP(OFFSET($B:$B,,MATCH(O$4,$B$4:$F$4,0)-1),OFFSET('C. PoC Adj Factor Scoring'!$E$5:$J$282,,MATCH(O$4,'C. PoC Adj Factor Scoring'!$E$3:$AH$3,0)-1),MATCH(O$2&\" Score\",'C. PoC Adj Factor Scoring'!$E$4:$J$4,0),TRUE)","v":1},{"$f":"VLOOKUP(OFFSET($B:$B,,MATCH(P$4,$B$4:$F$4,0)-1),OFFSET('C. PoC Adj Factor Scoring'!$E$5:$J$282,,MATCH(P$4,'C. PoC Adj Factor Scoring'!$E$3:$AH$3,0)-1),MATCH(P$2&\" Score\",'C. PoC Adj Factor Scoring'!$E$4:$J$4,0),TRUE)","v":1},{"$f":"VLOOKUP(OFFSET($B:$B,,MATCH(Q$4,$B$4:$F$4,0)-1),OFFSET('C. PoC Adj Factor Scoring'!$E$5:$J$282,,MATCH(Q$4,'C. PoC Adj Factor Scoring'!$E$3:$AH$3,0)-1),MATCH(Q$2&\" Score\",'C. PoC Adj Factor Scoring'!$E$4:$J$4,0),TRUE)","v":1},{"$f":"VLOOKUP(OFFSET($B:$B,,MATCH(R$4,$B$4:$F$4,0)-1),OFFSET('C. PoC Adj Factor Scoring'!$E$5:$J$282,,MATCH(R$4,'C. PoC Adj Factor Scoring'!$E$3:$AH$3,0)-1),MATCH(R$2&\" Score\",'C. PoC Adj Factor Scoring'!$E$4:$J$4,0),TRUE)","v":1},{"$f":"VLOOKUP(OFFSET($B:$B,,MATCH(S$4,$B$4:$F$4,0)-1),OFFSET('C. PoC Adj Factor Scoring'!$E$5:$J$282,,MATCH(S$4,'C. PoC Adj Factor Scoring'!$E$3:$AH$3,0)-1),MATCH(S$2&\" Score\",'C. PoC Adj Factor Scoring'!$E$4:$J$4,0),TRUE)","v":1},{"$f":"VLOOKUP(OFFSET($B:$B,,MATCH(T$4,$B$4:$F$4,0)-1),OFFSET('C. PoC Adj Factor Scoring'!$E$5:$J$282,,MATCH(T$4,'C. PoC Adj Factor Scoring'!$E$3:$AH$3,0)-1),MATCH(T$2&\" Score\",'C. PoC Adj Factor Scoring'!$E$4:$J$4,0),TRUE)","v":1},{"$f":"VLOOKUP(OFFSET($B:$B,,MATCH(U$4,$B$4:$F$4,0)-1),OFFSET('C. PoC Adj Factor Scoring'!$E$5:$J$282,,MATCH(U$4,'C. PoC Adj Factor Scoring'!$E$3:$AH$3,0)-1),MATCH(U$2&\" Score\",'C. PoC Adj Factor Scoring'!$E$4:$J$4,0),TRUE)","v":1},{"$f":"VLOOKUP(OFFSET($B:$B,,MATCH(V$4,$B$4:$F$4,0)-1),OFFSET('C. PoC Adj Factor Scoring'!$E$5:$J$282,,MATCH(V$4,'C. PoC Adj Factor Scoring'!$E$3:$AH$3,0)-1),MATCH(V$2&\" Score\",'C. PoC Adj Factor Scoring'!$E$4:$J$4,0),TRUE)","v":1},{"$f":"VLOOKUP(OFFSET($B:$B,,MATCH(W$4,$B$4:$F$4,0)-1),OFFSET('C. PoC Adj Factor Scoring'!$E$5:$J$282,,MATCH(W$4,'C. PoC Adj Factor Scoring'!$E$3:$AH$3,0)-1),MATCH(W$2&\" Score\",'C. PoC Adj Factor Scoring'!$E$4:$J$4,0),TRUE)","v":1},{"$f":"VLOOKUP(OFFSET($B:$B,,MATCH(X$4,$B$4:$F$4,0)-1),OFFSET('C. PoC Adj Factor Scoring'!$E$5:$J$282,,MATCH(X$4,'C. PoC Adj Factor Scoring'!$E$3:$AH$3,0)-1),MATCH(X$2&\" Score\",'C. PoC Adj Factor Scoring'!$E$4:$J$4,0),TRUE)","v":1},{"$f":"VLOOKUP(OFFSET($B:$B,,MATCH(Y$4,$B$4:$F$4,0)-1),OFFSET('C. PoC Adj Factor Scoring'!$E$5:$J$282,,MATCH(Y$4,'C. PoC Adj Factor Scoring'!$E$3:$AH$3,0)-1),MATCH(Y$2&\" Score\",'C. PoC Adj Factor Scoring'!$E$4:$J$4,0),TRUE)","v":1},{"$f":"VLOOKUP(OFFSET($B:$B,,MATCH(Z$4,$B$4:$F$4,0)-1),OFFSET('C. PoC Adj Factor Scoring'!$E$5:$J$282,,MATCH(Z$4,'C. PoC Adj Factor Scoring'!$E$3:$AH$3,0)-1),MATCH(Z$2&\" Score\",'C. PoC Adj Factor Scoring'!$E$4:$J$4,0),TRUE)","v":1},{"$f":"VLOOKUP(OFFSET($B:$B,,MATCH(AA$4,$B$4:$F$4,0)-1),OFFSET('C. PoC Adj Factor Scoring'!$E$5:$J$282,,MATCH(AA$4,'C. PoC Adj Factor Scoring'!$E$3:$AH$3,0)-1),MATCH(AA$2&\" Score\",'C. PoC Adj Factor Scoring'!$E$4:$J$4,0),TRUE)","v":3},{"$f":"VLOOKUP(OFFSET($B:$B,,MATCH(AB$4,$B$4:$F$4,0)-1),OFFSET('C. PoC Adj Factor Scoring'!$E$5:$J$282,,MATCH(AB$4,'C. PoC Adj Factor Scoring'!$E$3:$AH$3,0)-1),MATCH(AB$2&\" Score\",'C. PoC Adj Factor Scoring'!$E$4:$J$4,0),TRUE)","v":1},{"$f":"VLOOKUP(OFFSET($B:$B,,MATCH(AC$4,$B$4:$F$4,0)-1),OFFSET('C. PoC Adj Factor Scoring'!$E$5:$J$282,,MATCH(AC$4,'C. PoC Adj Factor Scoring'!$E$3:$AH$3,0)-1),MATCH(AC$2&\" Score\",'C. PoC Adj Factor Scoring'!$E$4:$J$4,0),TRUE)","v":1},{"$f":"VLOOKUP(OFFSET($B:$B,,MATCH(AD$4,$B$4:$F$4,0)-1),OFFSET('C. PoC Adj Factor Scoring'!$E$5:$J$282,,MATCH(AD$4,'C. PoC Adj Factor Scoring'!$E$3:$AH$3,0)-1),MATCH(AD$2&\" Score\",'C. PoC Adj Factor Scoring'!$E$4:$J$4,0),TRUE)","v":1},{"$f":"VLOOKUP(OFFSET($B:$B,,MATCH(AE$4,$B$4:$F$4,0)-1),OFFSET('C. PoC Adj Factor Scoring'!$E$5:$J$282,,MATCH(AE$4,'C. PoC Adj Factor Scoring'!$E$3:$AH$3,0)-1),MATCH(AE$2&\" Score\",'C. PoC Adj Factor Scoring'!$E$4:$J$4,0),TRUE)","v":1}]
[{"$f":"'A. Population Info'!A414","v":1000410034},{"$f":"'A. Population Info'!L414","v":"OIL"},{"$f":"'A. Population Info'!M414","v":0},{"$f":"'A. Population Info'!N414","v":0},{"$f":"'A. Population Info'!O414","v":0},{"$f":"'A. Population Info'!P414","v":0},{"$f":"VLOOKUP(OFFSET($B:$B,,MATCH(G$4,$B$4:$F$4,0)-1),OFFSET('C. PoC Adj Factor Scoring'!$E$5:$J$282,,MATCH(G$4,'C. PoC Adj Factor Scoring'!$E$3:$AH$3,0)-1),MATCH(G$2&\" Score\",'C. PoC Adj Factor Scoring'!$E$4:$J$4,0),TRUE)","v":4},{"$f":"VLOOKUP(OFFSET($B:$B,,MATCH(H$4,$B$4:$F$4,0)-1),OFFSET('C. PoC Adj Factor Scoring'!$E$5:$J$282,,MATCH(H$4,'C. PoC Adj Factor Scoring'!$E$3:$AH$3,0)-1),MATCH(H$2&\" Score\",'C. PoC Adj Factor Scoring'!$E$4:$J$4,0),TRUE)","v":1},{"$f":"VLOOKUP(OFFSET($B:$B,,MATCH(I$4,$B$4:$F$4,0)-1),OFFSET('C. PoC Adj Factor Scoring'!$E$5:$J$282,,MATCH(I$4,'C. PoC Adj Factor Scoring'!$E$3:$AH$3,0)-1),MATCH(I$2&\" Score\",'C. PoC Adj Factor Scoring'!$E$4:$J$4,0),TRUE)","v":1},{"$f":"VLOOKUP(OFFSET($B:$B,,MATCH(J$4,$B$4:$F$4,0)-1),OFFSET('C. PoC Adj Factor Scoring'!$E$5:$J$282,,MATCH(J$4,'C. PoC Adj Factor Scoring'!$E$3:$AH$3,0)-1),MATCH(J$2&\" Score\",'C. PoC Adj Factor Scoring'!$E$4:$J$4,0),TRUE)","v":1},{"$f":"VLOOKUP(OFFSET($B:$B,,MATCH(K$4,$B$4:$F$4,0)-1),OFFSET('C. PoC Adj Factor Scoring'!$E$5:$J$282,,MATCH(K$4,'C. PoC Adj Factor Scoring'!$E$3:$AH$3,0)-1),MATCH(K$2&\" Score\",'C. PoC Adj Factor Scoring'!$E$4:$J$4,0),TRUE)","v":1},{"$f":"VLOOKUP(OFFSET($B:$B,,MATCH(L$4,$B$4:$F$4,0)-1),OFFSET('C. PoC Adj Factor Scoring'!$E$5:$J$282,,MATCH(L$4,'C. PoC Adj Factor Scoring'!$E$3:$AH$3,0)-1),MATCH(L$2&\" Score\",'C. PoC Adj Factor Scoring'!$E$4:$J$4,0),TRUE)","v":1},{"$f":"VLOOKUP(OFFSET($B:$B,,MATCH(M$4,$B$4:$F$4,0)-1),OFFSET('C. PoC Adj Factor Scoring'!$E$5:$J$282,,MATCH(M$4,'C. PoC Adj Factor Scoring'!$E$3:$AH$3,0)-1),MATCH(M$2&\" Score\",'C. PoC Adj Factor Scoring'!$E$4:$J$4,0),TRUE)","v":1},{"$f":"VLOOKUP(OFFSET($B:$B,,MATCH(N$4,$B$4:$F$4,0)-1),OFFSET('C. PoC Adj Factor Scoring'!$E$5:$J$282,,MATCH(N$4,'C. PoC Adj Factor Scoring'!$E$3:$AH$3,0)-1),MATCH(N$2&\" Score\",'C. PoC Adj Factor Scoring'!$E$4:$J$4,0),TRUE)","v":1},{"$f":"VLOOKUP(OFFSET($B:$B,,MATCH(O$4,$B$4:$F$4,0)-1),OFFSET('C. PoC Adj Factor Scoring'!$E$5:$J$282,,MATCH(O$4,'C. PoC Adj Factor Scoring'!$E$3:$AH$3,0)-1),MATCH(O$2&\" Score\",'C. PoC Adj Factor Scoring'!$E$4:$J$4,0),TRUE)","v":1},{"$f":"VLOOKUP(OFFSET($B:$B,,MATCH(P$4,$B$4:$F$4,0)-1),OFFSET('C. PoC Adj Factor Scoring'!$E$5:$J$282,,MATCH(P$4,'C. PoC Adj Factor Scoring'!$E$3:$AH$3,0)-1),MATCH(P$2&\" Score\",'C. PoC Adj Factor Scoring'!$E$4:$J$4,0),TRUE)","v":1},{"$f":"VLOOKUP(OFFSET($B:$B,,MATCH(Q$4,$B$4:$F$4,0)-1),OFFSET('C. PoC Adj Factor Scoring'!$E$5:$J$282,,MATCH(Q$4,'C. PoC Adj Factor Scoring'!$E$3:$AH$3,0)-1),MATCH(Q$2&\" Score\",'C. PoC Adj Factor Scoring'!$E$4:$J$4,0),TRUE)","v":1},{"$f":"VLOOKUP(OFFSET($B:$B,,MATCH(R$4,$B$4:$F$4,0)-1),OFFSET('C. PoC Adj Factor Scoring'!$E$5:$J$282,,MATCH(R$4,'C. PoC Adj Factor Scoring'!$E$3:$AH$3,0)-1),MATCH(R$2&\" Score\",'C. PoC Adj Factor Scoring'!$E$4:$J$4,0),TRUE)","v":1},{"$f":"VLOOKUP(OFFSET($B:$B,,MATCH(S$4,$B$4:$F$4,0)-1),OFFSET('C. PoC Adj Factor Scoring'!$E$5:$J$282,,MATCH(S$4,'C. PoC Adj Factor Scoring'!$E$3:$AH$3,0)-1),MATCH(S$2&\" Score\",'C. PoC Adj Factor Scoring'!$E$4:$J$4,0),TRUE)","v":1},{"$f":"VLOOKUP(OFFSET($B:$B,,MATCH(T$4,$B$4:$F$4,0)-1),OFFSET('C. PoC Adj Factor Scoring'!$E$5:$J$282,,MATCH(T$4,'C. PoC Adj Factor Scoring'!$E$3:$AH$3,0)-1),MATCH(T$2&\" Score\",'C. PoC Adj Factor Scoring'!$E$4:$J$4,0),TRUE)","v":1},{"$f":"VLOOKUP(OFFSET($B:$B,,MATCH(U$4,$B$4:$F$4,0)-1),OFFSET('C. PoC Adj Factor Scoring'!$E$5:$J$282,,MATCH(U$4,'C. PoC Adj Factor Scoring'!$E$3:$AH$3,0)-1),MATCH(U$2&\" Score\",'C. PoC Adj Factor Scoring'!$E$4:$J$4,0),TRUE)","v":1},{"$f":"VLOOKUP(OFFSET($B:$B,,MATCH(V$4,$B$4:$F$4,0)-1),OFFSET('C. PoC Adj Factor Scoring'!$E$5:$J$282,,MATCH(V$4,'C. PoC Adj Factor Scoring'!$E$3:$AH$3,0)-1),MATCH(V$2&\" Score\",'C. PoC Adj Factor Scoring'!$E$4:$J$4,0),TRUE)","v":1},{"$f":"VLOOKUP(OFFSET($B:$B,,MATCH(W$4,$B$4:$F$4,0)-1),OFFSET('C. PoC Adj Factor Scoring'!$E$5:$J$282,,MATCH(W$4,'C. PoC Adj Factor Scoring'!$E$3:$AH$3,0)-1),MATCH(W$2&\" Score\",'C. PoC Adj Factor Scoring'!$E$4:$J$4,0),TRUE)","v":1},{"$f":"VLOOKUP(OFFSET($B:$B,,MATCH(X$4,$B$4:$F$4,0)-1),OFFSET('C. PoC Adj Factor Scoring'!$E$5:$J$282,,MATCH(X$4,'C. PoC Adj Factor Scoring'!$E$3:$AH$3,0)-1),MATCH(X$2&\" Score\",'C. PoC Adj Factor Scoring'!$E$4:$J$4,0),TRUE)","v":1},{"$f":"VLOOKUP(OFFSET($B:$B,,MATCH(Y$4,$B$4:$F$4,0)-1),OFFSET('C. PoC Adj Factor Scoring'!$E$5:$J$282,,MATCH(Y$4,'C. PoC Adj Factor Scoring'!$E$3:$AH$3,0)-1),MATCH(Y$2&\" Score\",'C. PoC Adj Factor Scoring'!$E$4:$J$4,0),TRUE)","v":1},{"$f":"VLOOKUP(OFFSET($B:$B,,MATCH(Z$4,$B$4:$F$4,0)-1),OFFSET('C. PoC Adj Factor Scoring'!$E$5:$J$282,,MATCH(Z$4,'C. PoC Adj Factor Scoring'!$E$3:$AH$3,0)-1),MATCH(Z$2&\" Score\",'C. PoC Adj Factor Scoring'!$E$4:$J$4,0),TRUE)","v":1},{"$f":"VLOOKUP(OFFSET($B:$B,,MATCH(AA$4,$B$4:$F$4,0)-1),OFFSET('C. PoC Adj Factor Scoring'!$E$5:$J$282,,MATCH(AA$4,'C. PoC Adj Factor Scoring'!$E$3:$AH$3,0)-1),MATCH(AA$2&\" Score\",'C. PoC Adj Factor Scoring'!$E$4:$J$4,0),TRUE)","v":3},{"$f":"VLOOKUP(OFFSET($B:$B,,MATCH(AB$4,$B$4:$F$4,0)-1),OFFSET('C. PoC Adj Factor Scoring'!$E$5:$J$282,,MATCH(AB$4,'C. PoC Adj Factor Scoring'!$E$3:$AH$3,0)-1),MATCH(AB$2&\" Score\",'C. PoC Adj Factor Scoring'!$E$4:$J$4,0),TRUE)","v":1},{"$f":"VLOOKUP(OFFSET($B:$B,,MATCH(AC$4,$B$4:$F$4,0)-1),OFFSET('C. PoC Adj Factor Scoring'!$E$5:$J$282,,MATCH(AC$4,'C. PoC Adj Factor Scoring'!$E$3:$AH$3,0)-1),MATCH(AC$2&\" Score\",'C. PoC Adj Factor Scoring'!$E$4:$J$4,0),TRUE)","v":1},{"$f":"VLOOKUP(OFFSET($B:$B,,MATCH(AD$4,$B$4:$F$4,0)-1),OFFSET('C. PoC Adj Factor Scoring'!$E$5:$J$282,,MATCH(AD$4,'C. PoC Adj Factor Scoring'!$E$3:$AH$3,0)-1),MATCH(AD$2&\" Score\",'C. PoC Adj Factor Scoring'!$E$4:$J$4,0),TRUE)","v":1},{"$f":"VLOOKUP(OFFSET($B:$B,,MATCH(AE$4,$B$4:$F$4,0)-1),OFFSET('C. PoC Adj Factor Scoring'!$E$5:$J$282,,MATCH(AE$4,'C. PoC Adj Factor Scoring'!$E$3:$AH$3,0)-1),MATCH(AE$2&\" Score\",'C. PoC Adj Factor Scoring'!$E$4:$J$4,0),TRUE)","v":1}]
[{"$f":"'A. Population Info'!A415","v":1000410094},{"$f":"'A. Population Info'!L415","v":"OIL"},{"$f":"'A. Population Info'!M415","v":0},{"$f":"'A. Population Info'!N415","v":0},{"$f":"'A. Population Info'!O415","v":0},{"$f":"'A. Population Info'!P415","v":0},{"$f":"VLOOKUP(OFFSET($B:$B,,MATCH(G$4,$B$4:$F$4,0)-1),OFFSET('C. PoC Adj Factor Scoring'!$E$5:$J$282,,MATCH(G$4,'C. PoC Adj Factor Scoring'!$E$3:$AH$3,0)-1),MATCH(G$2&\" Score\",'C. PoC Adj Factor Scoring'!$E$4:$J$4,0),TRUE)","v":4},{"$f":"VLOOKUP(OFFSET($B:$B,,MATCH(H$4,$B$4:$F$4,0)-1),OFFSET('C. PoC Adj Factor Scoring'!$E$5:$J$282,,MATCH(H$4,'C. PoC Adj Factor Scoring'!$E$3:$AH$3,0)-1),MATCH(H$2&\" Score\",'C. PoC Adj Factor Scoring'!$E$4:$J$4,0),TRUE)","v":1},{"$f":"VLOOKUP(OFFSET($B:$B,,MATCH(I$4,$B$4:$F$4,0)-1),OFFSET('C. PoC Adj Factor Scoring'!$E$5:$J$282,,MATCH(I$4,'C. PoC Adj Factor Scoring'!$E$3:$AH$3,0)-1),MATCH(I$2&\" Score\",'C. PoC Adj Factor Scoring'!$E$4:$J$4,0),TRUE)","v":1},{"$f":"VLOOKUP(OFFSET($B:$B,,MATCH(J$4,$B$4:$F$4,0)-1),OFFSET('C. PoC Adj Factor Scoring'!$E$5:$J$282,,MATCH(J$4,'C. PoC Adj Factor Scoring'!$E$3:$AH$3,0)-1),MATCH(J$2&\" Score\",'C. PoC Adj Factor Scoring'!$E$4:$J$4,0),TRUE)","v":1},{"$f":"VLOOKUP(OFFSET($B:$B,,MATCH(K$4,$B$4:$F$4,0)-1),OFFSET('C. PoC Adj Factor Scoring'!$E$5:$J$282,,MATCH(K$4,'C. PoC Adj Factor Scoring'!$E$3:$AH$3,0)-1),MATCH(K$2&\" Score\",'C. PoC Adj Factor Scoring'!$E$4:$J$4,0),TRUE)","v":1},{"$f":"VLOOKUP(OFFSET($B:$B,,MATCH(L$4,$B$4:$F$4,0)-1),OFFSET('C. PoC Adj Factor Scoring'!$E$5:$J$282,,MATCH(L$4,'C. PoC Adj Factor Scoring'!$E$3:$AH$3,0)-1),MATCH(L$2&\" Score\",'C. PoC Adj Factor Scoring'!$E$4:$J$4,0),TRUE)","v":1},{"$f":"VLOOKUP(OFFSET($B:$B,,MATCH(M$4,$B$4:$F$4,0)-1),OFFSET('C. PoC Adj Factor Scoring'!$E$5:$J$282,,MATCH(M$4,'C. PoC Adj Factor Scoring'!$E$3:$AH$3,0)-1),MATCH(M$2&\" Score\",'C. PoC Adj Factor Scoring'!$E$4:$J$4,0),TRUE)","v":1},{"$f":"VLOOKUP(OFFSET($B:$B,,MATCH(N$4,$B$4:$F$4,0)-1),OFFSET('C. PoC Adj Factor Scoring'!$E$5:$J$282,,MATCH(N$4,'C. PoC Adj Factor Scoring'!$E$3:$AH$3,0)-1),MATCH(N$2&\" Score\",'C. PoC Adj Factor Scoring'!$E$4:$J$4,0),TRUE)","v":1},{"$f":"VLOOKUP(OFFSET($B:$B,,MATCH(O$4,$B$4:$F$4,0)-1),OFFSET('C. PoC Adj Factor Scoring'!$E$5:$J$282,,MATCH(O$4,'C. PoC Adj Factor Scoring'!$E$3:$AH$3,0)-1),MATCH(O$2&\" Score\",'C. PoC Adj Factor Scoring'!$E$4:$J$4,0),TRUE)","v":1},{"$f":"VLOOKUP(OFFSET($B:$B,,MATCH(P$4,$B$4:$F$4,0)-1),OFFSET('C. PoC Adj Factor Scoring'!$E$5:$J$282,,MATCH(P$4,'C. PoC Adj Factor Scoring'!$E$3:$AH$3,0)-1),MATCH(P$2&\" Score\",'C. PoC Adj Factor Scoring'!$E$4:$J$4,0),TRUE)","v":1},{"$f":"VLOOKUP(OFFSET($B:$B,,MATCH(Q$4,$B$4:$F$4,0)-1),OFFSET('C. PoC Adj Factor Scoring'!$E$5:$J$282,,MATCH(Q$4,'C. PoC Adj Factor Scoring'!$E$3:$AH$3,0)-1),MATCH(Q$2&\" Score\",'C. PoC Adj Factor Scoring'!$E$4:$J$4,0),TRUE)","v":1},{"$f":"VLOOKUP(OFFSET($B:$B,,MATCH(R$4,$B$4:$F$4,0)-1),OFFSET('C. PoC Adj Factor Scoring'!$E$5:$J$282,,MATCH(R$4,'C. PoC Adj Factor Scoring'!$E$3:$AH$3,0)-1),MATCH(R$2&\" Score\",'C. PoC Adj Factor Scoring'!$E$4:$J$4,0),TRUE)","v":1},{"$f":"VLOOKUP(OFFSET($B:$B,,MATCH(S$4,$B$4:$F$4,0)-1),OFFSET('C. PoC Adj Factor Scoring'!$E$5:$J$282,,MATCH(S$4,'C. PoC Adj Factor Scoring'!$E$3:$AH$3,0)-1),MATCH(S$2&\" Score\",'C. PoC Adj Factor Scoring'!$E$4:$J$4,0),TRUE)","v":1},{"$f":"VLOOKUP(OFFSET($B:$B,,MATCH(T$4,$B$4:$F$4,0)-1),OFFSET('C. PoC Adj Factor Scoring'!$E$5:$J$282,,MATCH(T$4,'C. PoC Adj Factor Scoring'!$E$3:$AH$3,0)-1),MATCH(T$2&\" Score\",'C. PoC Adj Factor Scoring'!$E$4:$J$4,0),TRUE)","v":1},{"$f":"VLOOKUP(OFFSET($B:$B,,MATCH(U$4,$B$4:$F$4,0)-1),OFFSET('C. PoC Adj Factor Scoring'!$E$5:$J$282,,MATCH(U$4,'C. PoC Adj Factor Scoring'!$E$3:$AH$3,0)-1),MATCH(U$2&\" Score\",'C. PoC Adj Factor Scoring'!$E$4:$J$4,0),TRUE)","v":1},{"$f":"VLOOKUP(OFFSET($B:$B,,MATCH(V$4,$B$4:$F$4,0)-1),OFFSET('C. PoC Adj Factor Scoring'!$E$5:$J$282,,MATCH(V$4,'C. PoC Adj Factor Scoring'!$E$3:$AH$3,0)-1),MATCH(V$2&\" Score\",'C. PoC Adj Factor Scoring'!$E$4:$J$4,0),TRUE)","v":1},{"$f":"VLOOKUP(OFFSET($B:$B,,MATCH(W$4,$B$4:$F$4,0)-1),OFFSET('C. PoC Adj Factor Scoring'!$E$5:$J$282,,MATCH(W$4,'C. PoC Adj Factor Scoring'!$E$3:$AH$3,0)-1),MATCH(W$2&\" Score\",'C. PoC Adj Factor Scoring'!$E$4:$J$4,0),TRUE)","v":1},{"$f":"VLOOKUP(OFFSET($B:$B,,MATCH(X$4,$B$4:$F$4,0)-1),OFFSET('C. PoC Adj Factor Scoring'!$E$5:$J$282,,MATCH(X$4,'C. PoC Adj Factor Scoring'!$E$3:$AH$3,0)-1),MATCH(X$2&\" Score\",'C. PoC Adj Factor Scoring'!$E$4:$J$4,0),TRUE)","v":1},{"$f":"VLOOKUP(OFFSET($B:$B,,MATCH(Y$4,$B$4:$F$4,0)-1),OFFSET('C. PoC Adj Factor Scoring'!$E$5:$J$282,,MATCH(Y$4,'C. PoC Adj Factor Scoring'!$E$3:$AH$3,0)-1),MATCH(Y$2&\" Score\",'C. PoC Adj Factor Scoring'!$E$4:$J$4,0),TRUE)","v":1},{"$f":"VLOOKUP(OFFSET($B:$B,,MATCH(Z$4,$B$4:$F$4,0)-1),OFFSET('C. PoC Adj Factor Scoring'!$E$5:$J$282,,MATCH(Z$4,'C. PoC Adj Factor Scoring'!$E$3:$AH$3,0)-1),MATCH(Z$2&\" Score\",'C. PoC Adj Factor Scoring'!$E$4:$J$4,0),TRUE)","v":1},{"$f":"VLOOKUP(OFFSET($B:$B,,MATCH(AA$4,$B$4:$F$4,0)-1),OFFSET('C. PoC Adj Factor Scoring'!$E$5:$J$282,,MATCH(AA$4,'C. PoC Adj Factor Scoring'!$E$3:$AH$3,0)-1),MATCH(AA$2&\" Score\",'C. PoC Adj Factor Scoring'!$E$4:$J$4,0),TRUE)","v":3},{"$f":"VLOOKUP(OFFSET($B:$B,,MATCH(AB$4,$B$4:$F$4,0)-1),OFFSET('C. PoC Adj Factor Scoring'!$E$5:$J$282,,MATCH(AB$4,'C. PoC Adj Factor Scoring'!$E$3:$AH$3,0)-1),MATCH(AB$2&\" Score\",'C. PoC Adj Factor Scoring'!$E$4:$J$4,0),TRUE)","v":1},{"$f":"VLOOKUP(OFFSET($B:$B,,MATCH(AC$4,$B$4:$F$4,0)-1),OFFSET('C. PoC Adj Factor Scoring'!$E$5:$J$282,,MATCH(AC$4,'C. PoC Adj Factor Scoring'!$E$3:$AH$3,0)-1),MATCH(AC$2&\" Score\",'C. PoC Adj Factor Scoring'!$E$4:$J$4,0),TRUE)","v":1},{"$f":"VLOOKUP(OFFSET($B:$B,,MATCH(AD$4,$B$4:$F$4,0)-1),OFFSET('C. PoC Adj Factor Scoring'!$E$5:$J$282,,MATCH(AD$4,'C. PoC Adj Factor Scoring'!$E$3:$AH$3,0)-1),MATCH(AD$2&\" Score\",'C. PoC Adj Factor Scoring'!$E$4:$J$4,0),TRUE)","v":1},{"$f":"VLOOKUP(OFFSET($B:$B,,MATCH(AE$4,$B$4:$F$4,0)-1),OFFSET('C. PoC Adj Factor Scoring'!$E$5:$J$282,,MATCH(AE$4,'C. PoC Adj Factor Scoring'!$E$3:$AH$3,0)-1),MATCH(AE$2&\" Score\",'C. PoC Adj Factor Scoring'!$E$4:$J$4,0),TRUE)","v":1}]
[{"$f":"'A. Population Info'!A416","v":1000410124},{"$f":"'A. Population Info'!L416","v":"OIL"},{"$f":"'A. Population Info'!M416","v":0},{"$f":"'A. Population Info'!N416","v":0},{"$f":"'A. Population Info'!O416","v":0},{"$f":"'A. Population Info'!P416","v":0},{"$f":"VLOOKUP(OFFSET($B:$B,,MATCH(G$4,$B$4:$F$4,0)-1),OFFSET('C. PoC Adj Factor Scoring'!$E$5:$J$282,,MATCH(G$4,'C. PoC Adj Factor Scoring'!$E$3:$AH$3,0)-1),MATCH(G$2&\" Score\",'C. PoC Adj Factor Scoring'!$E$4:$J$4,0),TRUE)","v":4},{"$f":"VLOOKUP(OFFSET($B:$B,,MATCH(H$4,$B$4:$F$4,0)-1),OFFSET('C. PoC Adj Factor Scoring'!$E$5:$J$282,,MATCH(H$4,'C. PoC Adj Factor Scoring'!$E$3:$AH$3,0)-1),MATCH(H$2&\" Score\",'C. PoC Adj Factor Scoring'!$E$4:$J$4,0),TRUE)","v":1},{"$f":"VLOOKUP(OFFSET($B:$B,,MATCH(I$4,$B$4:$F$4,0)-1),OFFSET('C. PoC Adj Factor Scoring'!$E$5:$J$282,,MATCH(I$4,'C. PoC Adj Factor Scoring'!$E$3:$AH$3,0)-1),MATCH(I$2&\" Score\",'C. PoC Adj Factor Scoring'!$E$4:$J$4,0),TRUE)","v":1},{"$f":"VLOOKUP(OFFSET($B:$B,,MATCH(J$4,$B$4:$F$4,0)-1),OFFSET('C. PoC Adj Factor Scoring'!$E$5:$J$282,,MATCH(J$4,'C. PoC Adj Factor Scoring'!$E$3:$AH$3,0)-1),MATCH(J$2&\" Score\",'C. PoC Adj Factor Scoring'!$E$4:$J$4,0),TRUE)","v":1},{"$f":"VLOOKUP(OFFSET($B:$B,,MATCH(K$4,$B$4:$F$4,0)-1),OFFSET('C. PoC Adj Factor Scoring'!$E$5:$J$282,,MATCH(K$4,'C. PoC Adj Factor Scoring'!$E$3:$AH$3,0)-1),MATCH(K$2&\" Score\",'C. PoC Adj Factor Scoring'!$E$4:$J$4,0),TRUE)","v":1},{"$f":"VLOOKUP(OFFSET($B:$B,,MATCH(L$4,$B$4:$F$4,0)-1),OFFSET('C. PoC Adj Factor Scoring'!$E$5:$J$282,,MATCH(L$4,'C. PoC Adj Factor Scoring'!$E$3:$AH$3,0)-1),MATCH(L$2&\" Score\",'C. PoC Adj Factor Scoring'!$E$4:$J$4,0),TRUE)","v":1},{"$f":"VLOOKUP(OFFSET($B:$B,,MATCH(M$4,$B$4:$F$4,0)-1),OFFSET('C. PoC Adj Factor Scoring'!$E$5:$J$282,,MATCH(M$4,'C. PoC Adj Factor Scoring'!$E$3:$AH$3,0)-1),MATCH(M$2&\" Score\",'C. PoC Adj Factor Scoring'!$E$4:$J$4,0),TRUE)","v":1},{"$f":"VLOOKUP(OFFSET($B:$B,,MATCH(N$4,$B$4:$F$4,0)-1),OFFSET('C. PoC Adj Factor Scoring'!$E$5:$J$282,,MATCH(N$4,'C. PoC Adj Factor Scoring'!$E$3:$AH$3,0)-1),MATCH(N$2&\" Score\",'C. PoC Adj Factor Scoring'!$E$4:$J$4,0),TRUE)","v":1},{"$f":"VLOOKUP(OFFSET($B:$B,,MATCH(O$4,$B$4:$F$4,0)-1),OFFSET('C. PoC Adj Factor Scoring'!$E$5:$J$282,,MATCH(O$4,'C. PoC Adj Factor Scoring'!$E$3:$AH$3,0)-1),MATCH(O$2&\" Score\",'C. PoC Adj Factor Scoring'!$E$4:$J$4,0),TRUE)","v":1},{"$f":"VLOOKUP(OFFSET($B:$B,,MATCH(P$4,$B$4:$F$4,0)-1),OFFSET('C. PoC Adj Factor Scoring'!$E$5:$J$282,,MATCH(P$4,'C. PoC Adj Factor Scoring'!$E$3:$AH$3,0)-1),MATCH(P$2&\" Score\",'C. PoC Adj Factor Scoring'!$E$4:$J$4,0),TRUE)","v":1},{"$f":"VLOOKUP(OFFSET($B:$B,,MATCH(Q$4,$B$4:$F$4,0)-1),OFFSET('C. PoC Adj Factor Scoring'!$E$5:$J$282,,MATCH(Q$4,'C. PoC Adj Factor Scoring'!$E$3:$AH$3,0)-1),MATCH(Q$2&\" Score\",'C. PoC Adj Factor Scoring'!$E$4:$J$4,0),TRUE)","v":1},{"$f":"VLOOKUP(OFFSET($B:$B,,MATCH(R$4,$B$4:$F$4,0)-1),OFFSET('C. PoC Adj Factor Scoring'!$E$5:$J$282,,MATCH(R$4,'C. PoC Adj Factor Scoring'!$E$3:$AH$3,0)-1),MATCH(R$2&\" Score\",'C. PoC Adj Factor Scoring'!$E$4:$J$4,0),TRUE)","v":1},{"$f":"VLOOKUP(OFFSET($B:$B,,MATCH(S$4,$B$4:$F$4,0)-1),OFFSET('C. PoC Adj Factor Scoring'!$E$5:$J$282,,MATCH(S$4,'C. PoC Adj Factor Scoring'!$E$3:$AH$3,0)-1),MATCH(S$2&\" Score\",'C. PoC Adj Factor Scoring'!$E$4:$J$4,0),TRUE)","v":1},{"$f":"VLOOKUP(OFFSET($B:$B,,MATCH(T$4,$B$4:$F$4,0)-1),OFFSET('C. PoC Adj Factor Scoring'!$E$5:$J$282,,MATCH(T$4,'C. PoC Adj Factor Scoring'!$E$3:$AH$3,0)-1),MATCH(T$2&\" Score\",'C. PoC Adj Factor Scoring'!$E$4:$J$4,0),TRUE)","v":1},{"$f":"VLOOKUP(OFFSET($B:$B,,MATCH(U$4,$B$4:$F$4,0)-1),OFFSET('C. PoC Adj Factor Scoring'!$E$5:$J$282,,MATCH(U$4,'C. PoC Adj Factor Scoring'!$E$3:$AH$3,0)-1),MATCH(U$2&\" Score\",'C. PoC Adj Factor Scoring'!$E$4:$J$4,0),TRUE)","v":1},{"$f":"VLOOKUP(OFFSET($B:$B,,MATCH(V$4,$B$4:$F$4,0)-1),OFFSET('C. PoC Adj Factor Scoring'!$E$5:$J$282,,MATCH(V$4,'C. PoC Adj Factor Scoring'!$E$3:$AH$3,0)-1),MATCH(V$2&\" Score\",'C. PoC Adj Factor Scoring'!$E$4:$J$4,0),TRUE)","v":1},{"$f":"VLOOKUP(OFFSET($B:$B,,MATCH(W$4,$B$4:$F$4,0)-1),OFFSET('C. PoC Adj Factor Scoring'!$E$5:$J$282,,MATCH(W$4,'C. PoC Adj Factor Scoring'!$E$3:$AH$3,0)-1),MATCH(W$2&\" Score\",'C. PoC Adj Factor Scoring'!$E$4:$J$4,0),TRUE)","v":1},{"$f":"VLOOKUP(OFFSET($B:$B,,MATCH(X$4,$B$4:$F$4,0)-1),OFFSET('C. PoC Adj Factor Scoring'!$E$5:$J$282,,MATCH(X$4,'C. PoC Adj Factor Scoring'!$E$3:$AH$3,0)-1),MATCH(X$2&\" Score\",'C. PoC Adj Factor Scoring'!$E$4:$J$4,0),TRUE)","v":1},{"$f":"VLOOKUP(OFFSET($B:$B,,MATCH(Y$4,$B$4:$F$4,0)-1),OFFSET('C. PoC Adj Factor Scoring'!$E$5:$J$282,,MATCH(Y$4,'C. PoC Adj Factor Scoring'!$E$3:$AH$3,0)-1),MATCH(Y$2&\" Score\",'C. PoC Adj Factor Scoring'!$E$4:$J$4,0),TRUE)","v":1},{"$f":"VLOOKUP(OFFSET($B:$B,,MATCH(Z$4,$B$4:$F$4,0)-1),OFFSET('C. PoC Adj Factor Scoring'!$E$5:$J$282,,MATCH(Z$4,'C. PoC Adj Factor Scoring'!$E$3:$AH$3,0)-1),MATCH(Z$2&\" Score\",'C. PoC Adj Factor Scoring'!$E$4:$J$4,0),TRUE)","v":1},{"$f":"VLOOKUP(OFFSET($B:$B,,MATCH(AA$4,$B$4:$F$4,0)-1),OFFSET('C. PoC Adj Factor Scoring'!$E$5:$J$282,,MATCH(AA$4,'C. PoC Adj Factor Scoring'!$E$3:$AH$3,0)-1),MATCH(AA$2&\" Score\",'C. PoC Adj Factor Scoring'!$E$4:$J$4,0),TRUE)","v":3},{"$f":"VLOOKUP(OFFSET($B:$B,,MATCH(AB$4,$B$4:$F$4,0)-1),OFFSET('C. PoC Adj Factor Scoring'!$E$5:$J$282,,MATCH(AB$4,'C. PoC Adj Factor Scoring'!$E$3:$AH$3,0)-1),MATCH(AB$2&\" Score\",'C. PoC Adj Factor Scoring'!$E$4:$J$4,0),TRUE)","v":1},{"$f":"VLOOKUP(OFFSET($B:$B,,MATCH(AC$4,$B$4:$F$4,0)-1),OFFSET('C. PoC Adj Factor Scoring'!$E$5:$J$282,,MATCH(AC$4,'C. PoC Adj Factor Scoring'!$E$3:$AH$3,0)-1),MATCH(AC$2&\" Score\",'C. PoC Adj Factor Scoring'!$E$4:$J$4,0),TRUE)","v":1},{"$f":"VLOOKUP(OFFSET($B:$B,,MATCH(AD$4,$B$4:$F$4,0)-1),OFFSET('C. PoC Adj Factor Scoring'!$E$5:$J$282,,MATCH(AD$4,'C. PoC Adj Factor Scoring'!$E$3:$AH$3,0)-1),MATCH(AD$2&\" Score\",'C. PoC Adj Factor Scoring'!$E$4:$J$4,0),TRUE)","v":1},{"$f":"VLOOKUP(OFFSET($B:$B,,MATCH(AE$4,$B$4:$F$4,0)-1),OFFSET('C. PoC Adj Factor Scoring'!$E$5:$J$282,,MATCH(AE$4,'C. PoC Adj Factor Scoring'!$E$3:$AH$3,0)-1),MATCH(AE$2&\" Score\",'C. PoC Adj Factor Scoring'!$E$4:$J$4,0),TRUE)","v":1}]
[{"$f":"'A. Population Info'!A417","v":1000410171},{"$f":"'A. Population Info'!L417","v":"OIL"},{"$f":"'A. Population Info'!M417","v":0},{"$f":"'A. Population Info'!N417","v":0},{"$f":"'A. Population Info'!O417","v":0},{"$f":"'A. Population Info'!P417","v":0},{"$f":"VLOOKUP(OFFSET($B:$B,,MATCH(G$4,$B$4:$F$4,0)-1),OFFSET('C. PoC Adj Factor Scoring'!$E$5:$J$282,,MATCH(G$4,'C. PoC Adj Factor Scoring'!$E$3:$AH$3,0)-1),MATCH(G$2&\" Score\",'C. PoC Adj Factor Scoring'!$E$4:$J$4,0),TRUE)","v":4},{"$f":"VLOOKUP(OFFSET($B:$B,,MATCH(H$4,$B$4:$F$4,0)-1),OFFSET('C. PoC Adj Factor Scoring'!$E$5:$J$282,,MATCH(H$4,'C. PoC Adj Factor Scoring'!$E$3:$AH$3,0)-1),MATCH(H$2&\" Score\",'C. PoC Adj Factor Scoring'!$E$4:$J$4,0),TRUE)","v":1},{"$f":"VLOOKUP(OFFSET($B:$B,,MATCH(I$4,$B$4:$F$4,0)-1),OFFSET('C. PoC Adj Factor Scoring'!$E$5:$J$282,,MATCH(I$4,'C. PoC Adj Factor Scoring'!$E$3:$AH$3,0)-1),MATCH(I$2&\" Score\",'C. PoC Adj Factor Scoring'!$E$4:$J$4,0),TRUE)","v":1},{"$f":"VLOOKUP(OFFSET($B:$B,,MATCH(J$4,$B$4:$F$4,0)-1),OFFSET('C. PoC Adj Factor Scoring'!$E$5:$J$282,,MATCH(J$4,'C. PoC Adj Factor Scoring'!$E$3:$AH$3,0)-1),MATCH(J$2&\" Score\",'C. PoC Adj Factor Scoring'!$E$4:$J$4,0),TRUE)","v":1},{"$f":"VLOOKUP(OFFSET($B:$B,,MATCH(K$4,$B$4:$F$4,0)-1),OFFSET('C. PoC Adj Factor Scoring'!$E$5:$J$282,,MATCH(K$4,'C. PoC Adj Factor Scoring'!$E$3:$AH$3,0)-1),MATCH(K$2&\" Score\",'C. PoC Adj Factor Scoring'!$E$4:$J$4,0),TRUE)","v":1},{"$f":"VLOOKUP(OFFSET($B:$B,,MATCH(L$4,$B$4:$F$4,0)-1),OFFSET('C. PoC Adj Factor Scoring'!$E$5:$J$282,,MATCH(L$4,'C. PoC Adj Factor Scoring'!$E$3:$AH$3,0)-1),MATCH(L$2&\" Score\",'C. PoC Adj Factor Scoring'!$E$4:$J$4,0),TRUE)","v":1},{"$f":"VLOOKUP(OFFSET($B:$B,,MATCH(M$4,$B$4:$F$4,0)-1),OFFSET('C. PoC Adj Factor Scoring'!$E$5:$J$282,,MATCH(M$4,'C. PoC Adj Factor Scoring'!$E$3:$AH$3,0)-1),MATCH(M$2&\" Score\",'C. PoC Adj Factor Scoring'!$E$4:$J$4,0),TRUE)","v":1},{"$f":"VLOOKUP(OFFSET($B:$B,,MATCH(N$4,$B$4:$F$4,0)-1),OFFSET('C. PoC Adj Factor Scoring'!$E$5:$J$282,,MATCH(N$4,'C. PoC Adj Factor Scoring'!$E$3:$AH$3,0)-1),MATCH(N$2&\" Score\",'C. PoC Adj Factor Scoring'!$E$4:$J$4,0),TRUE)","v":1},{"$f":"VLOOKUP(OFFSET($B:$B,,MATCH(O$4,$B$4:$F$4,0)-1),OFFSET('C. PoC Adj Factor Scoring'!$E$5:$J$282,,MATCH(O$4,'C. PoC Adj Factor Scoring'!$E$3:$AH$3,0)-1),MATCH(O$2&\" Score\",'C. PoC Adj Factor Scoring'!$E$4:$J$4,0),TRUE)","v":1},{"$f":"VLOOKUP(OFFSET($B:$B,,MATCH(P$4,$B$4:$F$4,0)-1),OFFSET('C. PoC Adj Factor Scoring'!$E$5:$J$282,,MATCH(P$4,'C. PoC Adj Factor Scoring'!$E$3:$AH$3,0)-1),MATCH(P$2&\" Score\",'C. PoC Adj Factor Scoring'!$E$4:$J$4,0),TRUE)","v":1},{"$f":"VLOOKUP(OFFSET($B:$B,,MATCH(Q$4,$B$4:$F$4,0)-1),OFFSET('C. PoC Adj Factor Scoring'!$E$5:$J$282,,MATCH(Q$4,'C. PoC Adj Factor Scoring'!$E$3:$AH$3,0)-1),MATCH(Q$2&\" Score\",'C. PoC Adj Factor Scoring'!$E$4:$J$4,0),TRUE)","v":1},{"$f":"VLOOKUP(OFFSET($B:$B,,MATCH(R$4,$B$4:$F$4,0)-1),OFFSET('C. PoC Adj Factor Scoring'!$E$5:$J$282,,MATCH(R$4,'C. PoC Adj Factor Scoring'!$E$3:$AH$3,0)-1),MATCH(R$2&\" Score\",'C. PoC Adj Factor Scoring'!$E$4:$J$4,0),TRUE)","v":1},{"$f":"VLOOKUP(OFFSET($B:$B,,MATCH(S$4,$B$4:$F$4,0)-1),OFFSET('C. PoC Adj Factor Scoring'!$E$5:$J$282,,MATCH(S$4,'C. PoC Adj Factor Scoring'!$E$3:$AH$3,0)-1),MATCH(S$2&\" Score\",'C. PoC Adj Factor Scoring'!$E$4:$J$4,0),TRUE)","v":1},{"$f":"VLOOKUP(OFFSET($B:$B,,MATCH(T$4,$B$4:$F$4,0)-1),OFFSET('C. PoC Adj Factor Scoring'!$E$5:$J$282,,MATCH(T$4,'C. PoC Adj Factor Scoring'!$E$3:$AH$3,0)-1),MATCH(T$2&\" Score\",'C. PoC Adj Factor Scoring'!$E$4:$J$4,0),TRUE)","v":1},{"$f":"VLOOKUP(OFFSET($B:$B,,MATCH(U$4,$B$4:$F$4,0)-1),OFFSET('C. PoC Adj Factor Scoring'!$E$5:$J$282,,MATCH(U$4,'C. PoC Adj Factor Scoring'!$E$3:$AH$3,0)-1),MATCH(U$2&\" Score\",'C. PoC Adj Factor Scoring'!$E$4:$J$4,0),TRUE)","v":1},{"$f":"VLOOKUP(OFFSET($B:$B,,MATCH(V$4,$B$4:$F$4,0)-1),OFFSET('C. PoC Adj Factor Scoring'!$E$5:$J$282,,MATCH(V$4,'C. PoC Adj Factor Scoring'!$E$3:$AH$3,0)-1),MATCH(V$2&\" Score\",'C. PoC Adj Factor Scoring'!$E$4:$J$4,0),TRUE)","v":1},{"$f":"VLOOKUP(OFFSET($B:$B,,MATCH(W$4,$B$4:$F$4,0)-1),OFFSET('C. PoC Adj Factor Scoring'!$E$5:$J$282,,MATCH(W$4,'C. PoC Adj Factor Scoring'!$E$3:$AH$3,0)-1),MATCH(W$2&\" Score\",'C. PoC Adj Factor Scoring'!$E$4:$J$4,0),TRUE)","v":1},{"$f":"VLOOKUP(OFFSET($B:$B,,MATCH(X$4,$B$4:$F$4,0)-1),OFFSET('C. PoC Adj Factor Scoring'!$E$5:$J$282,,MATCH(X$4,'C. PoC Adj Factor Scoring'!$E$3:$AH$3,0)-1),MATCH(X$2&\" Score\",'C. PoC Adj Factor Scoring'!$E$4:$J$4,0),TRUE)","v":1},{"$f":"VLOOKUP(OFFSET($B:$B,,MATCH(Y$4,$B$4:$F$4,0)-1),OFFSET('C. PoC Adj Factor Scoring'!$E$5:$J$282,,MATCH(Y$4,'C. PoC Adj Factor Scoring'!$E$3:$AH$3,0)-1),MATCH(Y$2&\" Score\",'C. PoC Adj Factor Scoring'!$E$4:$J$4,0),TRUE)","v":1},{"$f":"VLOOKUP(OFFSET($B:$B,,MATCH(Z$4,$B$4:$F$4,0)-1),OFFSET('C. PoC Adj Factor Scoring'!$E$5:$J$282,,MATCH(Z$4,'C. PoC Adj Factor Scoring'!$E$3:$AH$3,0)-1),MATCH(Z$2&\" Score\",'C. PoC Adj Factor Scoring'!$E$4:$J$4,0),TRUE)","v":1},{"$f":"VLOOKUP(OFFSET($B:$B,,MATCH(AA$4,$B$4:$F$4,0)-1),OFFSET('C. PoC Adj Factor Scoring'!$E$5:$J$282,,MATCH(AA$4,'C. PoC Adj Factor Scoring'!$E$3:$AH$3,0)-1),MATCH(AA$2&\" Score\",'C. PoC Adj Factor Scoring'!$E$4:$J$4,0),TRUE)","v":3},{"$f":"VLOOKUP(OFFSET($B:$B,,MATCH(AB$4,$B$4:$F$4,0)-1),OFFSET('C. PoC Adj Factor Scoring'!$E$5:$J$282,,MATCH(AB$4,'C. PoC Adj Factor Scoring'!$E$3:$AH$3,0)-1),MATCH(AB$2&\" Score\",'C. PoC Adj Factor Scoring'!$E$4:$J$4,0),TRUE)","v":1},{"$f":"VLOOKUP(OFFSET($B:$B,,MATCH(AC$4,$B$4:$F$4,0)-1),OFFSET('C. PoC Adj Factor Scoring'!$E$5:$J$282,,MATCH(AC$4,'C. PoC Adj Factor Scoring'!$E$3:$AH$3,0)-1),MATCH(AC$2&\" Score\",'C. PoC Adj Factor Scoring'!$E$4:$J$4,0),TRUE)","v":1},{"$f":"VLOOKUP(OFFSET($B:$B,,MATCH(AD$4,$B$4:$F$4,0)-1),OFFSET('C. PoC Adj Factor Scoring'!$E$5:$J$282,,MATCH(AD$4,'C. PoC Adj Factor Scoring'!$E$3:$AH$3,0)-1),MATCH(AD$2&\" Score\",'C. PoC Adj Factor Scoring'!$E$4:$J$4,0),TRUE)","v":1},{"$f":"VLOOKUP(OFFSET($B:$B,,MATCH(AE$4,$B$4:$F$4,0)-1),OFFSET('C. PoC Adj Factor Scoring'!$E$5:$J$282,,MATCH(AE$4,'C. PoC Adj Factor Scoring'!$E$3:$AH$3,0)-1),MATCH(AE$2&\" Score\",'C. PoC Adj Factor Scoring'!$E$4:$J$4,0),TRUE)","v":1}]
[{"$f":"'A. Population Info'!A418","v":1000410190},{"$f":"'A. Population Info'!L418","v":"OIL"},{"$f":"'A. Population Info'!M418","v":0},{"$f":"'A. Population Info'!N418","v":0},{"$f":"'A. Population Info'!O418","v":0},{"$f":"'A. Population Info'!P418","v":0},{"$f":"VLOOKUP(OFFSET($B:$B,,MATCH(G$4,$B$4:$F$4,0)-1),OFFSET('C. PoC Adj Factor Scoring'!$E$5:$J$282,,MATCH(G$4,'C. PoC Adj Factor Scoring'!$E$3:$AH$3,0)-1),MATCH(G$2&\" Score\",'C. PoC Adj Factor Scoring'!$E$4:$J$4,0),TRUE)","v":4},{"$f":"VLOOKUP(OFFSET($B:$B,,MATCH(H$4,$B$4:$F$4,0)-1),OFFSET('C. PoC Adj Factor Scoring'!$E$5:$J$282,,MATCH(H$4,'C. PoC Adj Factor Scoring'!$E$3:$AH$3,0)-1),MATCH(H$2&\" Score\",'C. PoC Adj Factor Scoring'!$E$4:$J$4,0),TRUE)","v":1},{"$f":"VLOOKUP(OFFSET($B:$B,,MATCH(I$4,$B$4:$F$4,0)-1),OFFSET('C. PoC Adj Factor Scoring'!$E$5:$J$282,,MATCH(I$4,'C. PoC Adj Factor Scoring'!$E$3:$AH$3,0)-1),MATCH(I$2&\" Score\",'C. PoC Adj Factor Scoring'!$E$4:$J$4,0),TRUE)","v":1},{"$f":"VLOOKUP(OFFSET($B:$B,,MATCH(J$4,$B$4:$F$4,0)-1),OFFSET('C. PoC Adj Factor Scoring'!$E$5:$J$282,,MATCH(J$4,'C. PoC Adj Factor Scoring'!$E$3:$AH$3,0)-1),MATCH(J$2&\" Score\",'C. PoC Adj Factor Scoring'!$E$4:$J$4,0),TRUE)","v":1},{"$f":"VLOOKUP(OFFSET($B:$B,,MATCH(K$4,$B$4:$F$4,0)-1),OFFSET('C. PoC Adj Factor Scoring'!$E$5:$J$282,,MATCH(K$4,'C. PoC Adj Factor Scoring'!$E$3:$AH$3,0)-1),MATCH(K$2&\" Score\",'C. PoC Adj Factor Scoring'!$E$4:$J$4,0),TRUE)","v":1},{"$f":"VLOOKUP(OFFSET($B:$B,,MATCH(L$4,$B$4:$F$4,0)-1),OFFSET('C. PoC Adj Factor Scoring'!$E$5:$J$282,,MATCH(L$4,'C. PoC Adj Factor Scoring'!$E$3:$AH$3,0)-1),MATCH(L$2&\" Score\",'C. PoC Adj Factor Scoring'!$E$4:$J$4,0),TRUE)","v":1},{"$f":"VLOOKUP(OFFSET($B:$B,,MATCH(M$4,$B$4:$F$4,0)-1),OFFSET('C. PoC Adj Factor Scoring'!$E$5:$J$282,,MATCH(M$4,'C. PoC Adj Factor Scoring'!$E$3:$AH$3,0)-1),MATCH(M$2&\" Score\",'C. PoC Adj Factor Scoring'!$E$4:$J$4,0),TRUE)","v":1},{"$f":"VLOOKUP(OFFSET($B:$B,,MATCH(N$4,$B$4:$F$4,0)-1),OFFSET('C. PoC Adj Factor Scoring'!$E$5:$J$282,,MATCH(N$4,'C. PoC Adj Factor Scoring'!$E$3:$AH$3,0)-1),MATCH(N$2&\" Score\",'C. PoC Adj Factor Scoring'!$E$4:$J$4,0),TRUE)","v":1},{"$f":"VLOOKUP(OFFSET($B:$B,,MATCH(O$4,$B$4:$F$4,0)-1),OFFSET('C. PoC Adj Factor Scoring'!$E$5:$J$282,,MATCH(O$4,'C. PoC Adj Factor Scoring'!$E$3:$AH$3,0)-1),MATCH(O$2&\" Score\",'C. PoC Adj Factor Scoring'!$E$4:$J$4,0),TRUE)","v":1},{"$f":"VLOOKUP(OFFSET($B:$B,,MATCH(P$4,$B$4:$F$4,0)-1),OFFSET('C. PoC Adj Factor Scoring'!$E$5:$J$282,,MATCH(P$4,'C. PoC Adj Factor Scoring'!$E$3:$AH$3,0)-1),MATCH(P$2&\" Score\",'C. PoC Adj Factor Scoring'!$E$4:$J$4,0),TRUE)","v":1},{"$f":"VLOOKUP(OFFSET($B:$B,,MATCH(Q$4,$B$4:$F$4,0)-1),OFFSET('C. PoC Adj Factor Scoring'!$E$5:$J$282,,MATCH(Q$4,'C. PoC Adj Factor Scoring'!$E$3:$AH$3,0)-1),MATCH(Q$2&\" Score\",'C. PoC Adj Factor Scoring'!$E$4:$J$4,0),TRUE)","v":1},{"$f":"VLOOKUP(OFFSET($B:$B,,MATCH(R$4,$B$4:$F$4,0)-1),OFFSET('C. PoC Adj Factor Scoring'!$E$5:$J$282,,MATCH(R$4,'C. PoC Adj Factor Scoring'!$E$3:$AH$3,0)-1),MATCH(R$2&\" Score\",'C. PoC Adj Factor Scoring'!$E$4:$J$4,0),TRUE)","v":1},{"$f":"VLOOKUP(OFFSET($B:$B,,MATCH(S$4,$B$4:$F$4,0)-1),OFFSET('C. PoC Adj Factor Scoring'!$E$5:$J$282,,MATCH(S$4,'C. PoC Adj Factor Scoring'!$E$3:$AH$3,0)-1),MATCH(S$2&\" Score\",'C. PoC Adj Factor Scoring'!$E$4:$J$4,0),TRUE)","v":1},{"$f":"VLOOKUP(OFFSET($B:$B,,MATCH(T$4,$B$4:$F$4,0)-1),OFFSET('C. PoC Adj Factor Scoring'!$E$5:$J$282,,MATCH(T$4,'C. PoC Adj Factor Scoring'!$E$3:$AH$3,0)-1),MATCH(T$2&\" Score\",'C. PoC Adj Factor Scoring'!$E$4:$J$4,0),TRUE)","v":1},{"$f":"VLOOKUP(OFFSET($B:$B,,MATCH(U$4,$B$4:$F$4,0)-1),OFFSET('C. PoC Adj Factor Scoring'!$E$5:$J$282,,MATCH(U$4,'C. PoC Adj Factor Scoring'!$E$3:$AH$3,0)-1),MATCH(U$2&\" Score\",'C. PoC Adj Factor Scoring'!$E$4:$J$4,0),TRUE)","v":1},{"$f":"VLOOKUP(OFFSET($B:$B,,MATCH(V$4,$B$4:$F$4,0)-1),OFFSET('C. PoC Adj Factor Scoring'!$E$5:$J$282,,MATCH(V$4,'C. PoC Adj Factor Scoring'!$E$3:$AH$3,0)-1),MATCH(V$2&\" Score\",'C. PoC Adj Factor Scoring'!$E$4:$J$4,0),TRUE)","v":1},{"$f":"VLOOKUP(OFFSET($B:$B,,MATCH(W$4,$B$4:$F$4,0)-1),OFFSET('C. PoC Adj Factor Scoring'!$E$5:$J$282,,MATCH(W$4,'C. PoC Adj Factor Scoring'!$E$3:$AH$3,0)-1),MATCH(W$2&\" Score\",'C. PoC Adj Factor Scoring'!$E$4:$J$4,0),TRUE)","v":1},{"$f":"VLOOKUP(OFFSET($B:$B,,MATCH(X$4,$B$4:$F$4,0)-1),OFFSET('C. PoC Adj Factor Scoring'!$E$5:$J$282,,MATCH(X$4,'C. PoC Adj Factor Scoring'!$E$3:$AH$3,0)-1),MATCH(X$2&\" Score\",'C. PoC Adj Factor Scoring'!$E$4:$J$4,0),TRUE)","v":1},{"$f":"VLOOKUP(OFFSET($B:$B,,MATCH(Y$4,$B$4:$F$4,0)-1),OFFSET('C. PoC Adj Factor Scoring'!$E$5:$J$282,,MATCH(Y$4,'C. PoC Adj Factor Scoring'!$E$3:$AH$3,0)-1),MATCH(Y$2&\" Score\",'C. PoC Adj Factor Scoring'!$E$4:$J$4,0),TRUE)","v":1},{"$f":"VLOOKUP(OFFSET($B:$B,,MATCH(Z$4,$B$4:$F$4,0)-1),OFFSET('C. PoC Adj Factor Scoring'!$E$5:$J$282,,MATCH(Z$4,'C. PoC Adj Factor Scoring'!$E$3:$AH$3,0)-1),MATCH(Z$2&\" Score\",'C. PoC Adj Factor Scoring'!$E$4:$J$4,0),TRUE)","v":1},{"$f":"VLOOKUP(OFFSET($B:$B,,MATCH(AA$4,$B$4:$F$4,0)-1),OFFSET('C. PoC Adj Factor Scoring'!$E$5:$J$282,,MATCH(AA$4,'C. PoC Adj Factor Scoring'!$E$3:$AH$3,0)-1),MATCH(AA$2&\" Score\",'C. PoC Adj Factor Scoring'!$E$4:$J$4,0),TRUE)","v":3},{"$f":"VLOOKUP(OFFSET($B:$B,,MATCH(AB$4,$B$4:$F$4,0)-1),OFFSET('C. PoC Adj Factor Scoring'!$E$5:$J$282,,MATCH(AB$4,'C. PoC Adj Factor Scoring'!$E$3:$AH$3,0)-1),MATCH(AB$2&\" Score\",'C. PoC Adj Factor Scoring'!$E$4:$J$4,0),TRUE)","v":1},{"$f":"VLOOKUP(OFFSET($B:$B,,MATCH(AC$4,$B$4:$F$4,0)-1),OFFSET('C. PoC Adj Factor Scoring'!$E$5:$J$282,,MATCH(AC$4,'C. PoC Adj Factor Scoring'!$E$3:$AH$3,0)-1),MATCH(AC$2&\" Score\",'C. PoC Adj Factor Scoring'!$E$4:$J$4,0),TRUE)","v":1},{"$f":"VLOOKUP(OFFSET($B:$B,,MATCH(AD$4,$B$4:$F$4,0)-1),OFFSET('C. PoC Adj Factor Scoring'!$E$5:$J$282,,MATCH(AD$4,'C. PoC Adj Factor Scoring'!$E$3:$AH$3,0)-1),MATCH(AD$2&\" Score\",'C. PoC Adj Factor Scoring'!$E$4:$J$4,0),TRUE)","v":1},{"$f":"VLOOKUP(OFFSET($B:$B,,MATCH(AE$4,$B$4:$F$4,0)-1),OFFSET('C. PoC Adj Factor Scoring'!$E$5:$J$282,,MATCH(AE$4,'C. PoC Adj Factor Scoring'!$E$3:$AH$3,0)-1),MATCH(AE$2&\" Score\",'C. PoC Adj Factor Scoring'!$E$4:$J$4,0),TRUE)","v":1}]
[{"$f":"'A. Population Info'!A419","v":1000410281},{"$f":"'A. Population Info'!L419","v":"OIL"},{"$f":"'A. Population Info'!M419","v":0},{"$f":"'A. Population Info'!N419","v":0},{"$f":"'A. Population Info'!O419","v":0},{"$f":"'A. Population Info'!P419","v":0},{"$f":"VLOOKUP(OFFSET($B:$B,,MATCH(G$4,$B$4:$F$4,0)-1),OFFSET('C. PoC Adj Factor Scoring'!$E$5:$J$282,,MATCH(G$4,'C. PoC Adj Factor Scoring'!$E$3:$AH$3,0)-1),MATCH(G$2&\" Score\",'C. PoC Adj Factor Scoring'!$E$4:$J$4,0),TRUE)","v":4},{"$f":"VLOOKUP(OFFSET($B:$B,,MATCH(H$4,$B$4:$F$4,0)-1),OFFSET('C. PoC Adj Factor Scoring'!$E$5:$J$282,,MATCH(H$4,'C. PoC Adj Factor Scoring'!$E$3:$AH$3,0)-1),MATCH(H$2&\" Score\",'C. PoC Adj Factor Scoring'!$E$4:$J$4,0),TRUE)","v":1},{"$f":"VLOOKUP(OFFSET($B:$B,,MATCH(I$4,$B$4:$F$4,0)-1),OFFSET('C. PoC Adj Factor Scoring'!$E$5:$J$282,,MATCH(I$4,'C. PoC Adj Factor Scoring'!$E$3:$AH$3,0)-1),MATCH(I$2&\" Score\",'C. PoC Adj Factor Scoring'!$E$4:$J$4,0),TRUE)","v":1},{"$f":"VLOOKUP(OFFSET($B:$B,,MATCH(J$4,$B$4:$F$4,0)-1),OFFSET('C. PoC Adj Factor Scoring'!$E$5:$J$282,,MATCH(J$4,'C. PoC Adj Factor Scoring'!$E$3:$AH$3,0)-1),MATCH(J$2&\" Score\",'C. PoC Adj Factor Scoring'!$E$4:$J$4,0),TRUE)","v":1},{"$f":"VLOOKUP(OFFSET($B:$B,,MATCH(K$4,$B$4:$F$4,0)-1),OFFSET('C. PoC Adj Factor Scoring'!$E$5:$J$282,,MATCH(K$4,'C. PoC Adj Factor Scoring'!$E$3:$AH$3,0)-1),MATCH(K$2&\" Score\",'C. PoC Adj Factor Scoring'!$E$4:$J$4,0),TRUE)","v":1},{"$f":"VLOOKUP(OFFSET($B:$B,,MATCH(L$4,$B$4:$F$4,0)-1),OFFSET('C. PoC Adj Factor Scoring'!$E$5:$J$282,,MATCH(L$4,'C. PoC Adj Factor Scoring'!$E$3:$AH$3,0)-1),MATCH(L$2&\" Score\",'C. PoC Adj Factor Scoring'!$E$4:$J$4,0),TRUE)","v":1},{"$f":"VLOOKUP(OFFSET($B:$B,,MATCH(M$4,$B$4:$F$4,0)-1),OFFSET('C. PoC Adj Factor Scoring'!$E$5:$J$282,,MATCH(M$4,'C. PoC Adj Factor Scoring'!$E$3:$AH$3,0)-1),MATCH(M$2&\" Score\",'C. PoC Adj Factor Scoring'!$E$4:$J$4,0),TRUE)","v":1},{"$f":"VLOOKUP(OFFSET($B:$B,,MATCH(N$4,$B$4:$F$4,0)-1),OFFSET('C. PoC Adj Factor Scoring'!$E$5:$J$282,,MATCH(N$4,'C. PoC Adj Factor Scoring'!$E$3:$AH$3,0)-1),MATCH(N$2&\" Score\",'C. PoC Adj Factor Scoring'!$E$4:$J$4,0),TRUE)","v":1},{"$f":"VLOOKUP(OFFSET($B:$B,,MATCH(O$4,$B$4:$F$4,0)-1),OFFSET('C. PoC Adj Factor Scoring'!$E$5:$J$282,,MATCH(O$4,'C. PoC Adj Factor Scoring'!$E$3:$AH$3,0)-1),MATCH(O$2&\" Score\",'C. PoC Adj Factor Scoring'!$E$4:$J$4,0),TRUE)","v":1},{"$f":"VLOOKUP(OFFSET($B:$B,,MATCH(P$4,$B$4:$F$4,0)-1),OFFSET('C. PoC Adj Factor Scoring'!$E$5:$J$282,,MATCH(P$4,'C. PoC Adj Factor Scoring'!$E$3:$AH$3,0)-1),MATCH(P$2&\" Score\",'C. PoC Adj Factor Scoring'!$E$4:$J$4,0),TRUE)","v":1},{"$f":"VLOOKUP(OFFSET($B:$B,,MATCH(Q$4,$B$4:$F$4,0)-1),OFFSET('C. PoC Adj Factor Scoring'!$E$5:$J$282,,MATCH(Q$4,'C. PoC Adj Factor Scoring'!$E$3:$AH$3,0)-1),MATCH(Q$2&\" Score\",'C. PoC Adj Factor Scoring'!$E$4:$J$4,0),TRUE)","v":1},{"$f":"VLOOKUP(OFFSET($B:$B,,MATCH(R$4,$B$4:$F$4,0)-1),OFFSET('C. PoC Adj Factor Scoring'!$E$5:$J$282,,MATCH(R$4,'C. PoC Adj Factor Scoring'!$E$3:$AH$3,0)-1),MATCH(R$2&\" Score\",'C. PoC Adj Factor Scoring'!$E$4:$J$4,0),TRUE)","v":1},{"$f":"VLOOKUP(OFFSET($B:$B,,MATCH(S$4,$B$4:$F$4,0)-1),OFFSET('C. PoC Adj Factor Scoring'!$E$5:$J$282,,MATCH(S$4,'C. PoC Adj Factor Scoring'!$E$3:$AH$3,0)-1),MATCH(S$2&\" Score\",'C. PoC Adj Factor Scoring'!$E$4:$J$4,0),TRUE)","v":1},{"$f":"VLOOKUP(OFFSET($B:$B,,MATCH(T$4,$B$4:$F$4,0)-1),OFFSET('C. PoC Adj Factor Scoring'!$E$5:$J$282,,MATCH(T$4,'C. PoC Adj Factor Scoring'!$E$3:$AH$3,0)-1),MATCH(T$2&\" Score\",'C. PoC Adj Factor Scoring'!$E$4:$J$4,0),TRUE)","v":1},{"$f":"VLOOKUP(OFFSET($B:$B,,MATCH(U$4,$B$4:$F$4,0)-1),OFFSET('C. PoC Adj Factor Scoring'!$E$5:$J$282,,MATCH(U$4,'C. PoC Adj Factor Scoring'!$E$3:$AH$3,0)-1),MATCH(U$2&\" Score\",'C. PoC Adj Factor Scoring'!$E$4:$J$4,0),TRUE)","v":1},{"$f":"VLOOKUP(OFFSET($B:$B,,MATCH(V$4,$B$4:$F$4,0)-1),OFFSET('C. PoC Adj Factor Scoring'!$E$5:$J$282,,MATCH(V$4,'C. PoC Adj Factor Scoring'!$E$3:$AH$3,0)-1),MATCH(V$2&\" Score\",'C. PoC Adj Factor Scoring'!$E$4:$J$4,0),TRUE)","v":1},{"$f":"VLOOKUP(OFFSET($B:$B,,MATCH(W$4,$B$4:$F$4,0)-1),OFFSET('C. PoC Adj Factor Scoring'!$E$5:$J$282,,MATCH(W$4,'C. PoC Adj Factor Scoring'!$E$3:$AH$3,0)-1),MATCH(W$2&\" Score\",'C. PoC Adj Factor Scoring'!$E$4:$J$4,0),TRUE)","v":1},{"$f":"VLOOKUP(OFFSET($B:$B,,MATCH(X$4,$B$4:$F$4,0)-1),OFFSET('C. PoC Adj Factor Scoring'!$E$5:$J$282,,MATCH(X$4,'C. PoC Adj Factor Scoring'!$E$3:$AH$3,0)-1),MATCH(X$2&\" Score\",'C. PoC Adj Factor Scoring'!$E$4:$J$4,0),TRUE)","v":1},{"$f":"VLOOKUP(OFFSET($B:$B,,MATCH(Y$4,$B$4:$F$4,0)-1),OFFSET('C. PoC Adj Factor Scoring'!$E$5:$J$282,,MATCH(Y$4,'C. PoC Adj Factor Scoring'!$E$3:$AH$3,0)-1),MATCH(Y$2&\" Score\",'C. PoC Adj Factor Scoring'!$E$4:$J$4,0),TRUE)","v":1},{"$f":"VLOOKUP(OFFSET($B:$B,,MATCH(Z$4,$B$4:$F$4,0)-1),OFFSET('C. PoC Adj Factor Scoring'!$E$5:$J$282,,MATCH(Z$4,'C. PoC Adj Factor Scoring'!$E$3:$AH$3,0)-1),MATCH(Z$2&\" Score\",'C. PoC Adj Factor Scoring'!$E$4:$J$4,0),TRUE)","v":1},{"$f":"VLOOKUP(OFFSET($B:$B,,MATCH(AA$4,$B$4:$F$4,0)-1),OFFSET('C. PoC Adj Factor Scoring'!$E$5:$J$282,,MATCH(AA$4,'C. PoC Adj Factor Scoring'!$E$3:$AH$3,0)-1),MATCH(AA$2&\" Score\",'C. PoC Adj Factor Scoring'!$E$4:$J$4,0),TRUE)","v":3},{"$f":"VLOOKUP(OFFSET($B:$B,,MATCH(AB$4,$B$4:$F$4,0)-1),OFFSET('C. PoC Adj Factor Scoring'!$E$5:$J$282,,MATCH(AB$4,'C. PoC Adj Factor Scoring'!$E$3:$AH$3,0)-1),MATCH(AB$2&\" Score\",'C. PoC Adj Factor Scoring'!$E$4:$J$4,0),TRUE)","v":1},{"$f":"VLOOKUP(OFFSET($B:$B,,MATCH(AC$4,$B$4:$F$4,0)-1),OFFSET('C. PoC Adj Factor Scoring'!$E$5:$J$282,,MATCH(AC$4,'C. PoC Adj Factor Scoring'!$E$3:$AH$3,0)-1),MATCH(AC$2&\" Score\",'C. PoC Adj Factor Scoring'!$E$4:$J$4,0),TRUE)","v":1},{"$f":"VLOOKUP(OFFSET($B:$B,,MATCH(AD$4,$B$4:$F$4,0)-1),OFFSET('C. PoC Adj Factor Scoring'!$E$5:$J$282,,MATCH(AD$4,'C. PoC Adj Factor Scoring'!$E$3:$AH$3,0)-1),MATCH(AD$2&\" Score\",'C. PoC Adj Factor Scoring'!$E$4:$J$4,0),TRUE)","v":1},{"$f":"VLOOKUP(OFFSET($B:$B,,MATCH(AE$4,$B$4:$F$4,0)-1),OFFSET('C. PoC Adj Factor Scoring'!$E$5:$J$282,,MATCH(AE$4,'C. PoC Adj Factor Scoring'!$E$3:$AH$3,0)-1),MATCH(AE$2&\" Score\",'C. PoC Adj Factor Scoring'!$E$4:$J$4,0),TRUE)","v":1}]
[{"$f":"'A. Population Info'!A420","v":1000410375},{"$f":"'A. Population Info'!L420","v":"OIL"},{"$f":"'A. Population Info'!M420","v":0},{"$f":"'A. Population Info'!N420","v":0},{"$f":"'A. Population Info'!O420","v":0},{"$f":"'A. Population Info'!P420","v":0},{"$f":"VLOOKUP(OFFSET($B:$B,,MATCH(G$4,$B$4:$F$4,0)-1),OFFSET('C. PoC Adj Factor Scoring'!$E$5:$J$282,,MATCH(G$4,'C. PoC Adj Factor Scoring'!$E$3:$AH$3,0)-1),MATCH(G$2&\" Score\",'C. PoC Adj Factor Scoring'!$E$4:$J$4,0),TRUE)","v":4},{"$f":"VLOOKUP(OFFSET($B:$B,,MATCH(H$4,$B$4:$F$4,0)-1),OFFSET('C. PoC Adj Factor Scoring'!$E$5:$J$282,,MATCH(H$4,'C. PoC Adj Factor Scoring'!$E$3:$AH$3,0)-1),MATCH(H$2&\" Score\",'C. PoC Adj Factor Scoring'!$E$4:$J$4,0),TRUE)","v":1},{"$f":"VLOOKUP(OFFSET($B:$B,,MATCH(I$4,$B$4:$F$4,0)-1),OFFSET('C. PoC Adj Factor Scoring'!$E$5:$J$282,,MATCH(I$4,'C. PoC Adj Factor Scoring'!$E$3:$AH$3,0)-1),MATCH(I$2&\" Score\",'C. PoC Adj Factor Scoring'!$E$4:$J$4,0),TRUE)","v":1},{"$f":"VLOOKUP(OFFSET($B:$B,,MATCH(J$4,$B$4:$F$4,0)-1),OFFSET('C. PoC Adj Factor Scoring'!$E$5:$J$282,,MATCH(J$4,'C. PoC Adj Factor Scoring'!$E$3:$AH$3,0)-1),MATCH(J$2&\" Score\",'C. PoC Adj Factor Scoring'!$E$4:$J$4,0),TRUE)","v":1},{"$f":"VLOOKUP(OFFSET($B:$B,,MATCH(K$4,$B$4:$F$4,0)-1),OFFSET('C. PoC Adj Factor Scoring'!$E$5:$J$282,,MATCH(K$4,'C. PoC Adj Factor Scoring'!$E$3:$AH$3,0)-1),MATCH(K$2&\" Score\",'C. PoC Adj Factor Scoring'!$E$4:$J$4,0),TRUE)","v":1},{"$f":"VLOOKUP(OFFSET($B:$B,,MATCH(L$4,$B$4:$F$4,0)-1),OFFSET('C. PoC Adj Factor Scoring'!$E$5:$J$282,,MATCH(L$4,'C. PoC Adj Factor Scoring'!$E$3:$AH$3,0)-1),MATCH(L$2&\" Score\",'C. PoC Adj Factor Scoring'!$E$4:$J$4,0),TRUE)","v":1},{"$f":"VLOOKUP(OFFSET($B:$B,,MATCH(M$4,$B$4:$F$4,0)-1),OFFSET('C. PoC Adj Factor Scoring'!$E$5:$J$282,,MATCH(M$4,'C. PoC Adj Factor Scoring'!$E$3:$AH$3,0)-1),MATCH(M$2&\" Score\",'C. PoC Adj Factor Scoring'!$E$4:$J$4,0),TRUE)","v":1},{"$f":"VLOOKUP(OFFSET($B:$B,,MATCH(N$4,$B$4:$F$4,0)-1),OFFSET('C. PoC Adj Factor Scoring'!$E$5:$J$282,,MATCH(N$4,'C. PoC Adj Factor Scoring'!$E$3:$AH$3,0)-1),MATCH(N$2&\" Score\",'C. PoC Adj Factor Scoring'!$E$4:$J$4,0),TRUE)","v":1},{"$f":"VLOOKUP(OFFSET($B:$B,,MATCH(O$4,$B$4:$F$4,0)-1),OFFSET('C. PoC Adj Factor Scoring'!$E$5:$J$282,,MATCH(O$4,'C. PoC Adj Factor Scoring'!$E$3:$AH$3,0)-1),MATCH(O$2&\" Score\",'C. PoC Adj Factor Scoring'!$E$4:$J$4,0),TRUE)","v":1},{"$f":"VLOOKUP(OFFSET($B:$B,,MATCH(P$4,$B$4:$F$4,0)-1),OFFSET('C. PoC Adj Factor Scoring'!$E$5:$J$282,,MATCH(P$4,'C. PoC Adj Factor Scoring'!$E$3:$AH$3,0)-1),MATCH(P$2&\" Score\",'C. PoC Adj Factor Scoring'!$E$4:$J$4,0),TRUE)","v":1},{"$f":"VLOOKUP(OFFSET($B:$B,,MATCH(Q$4,$B$4:$F$4,0)-1),OFFSET('C. PoC Adj Factor Scoring'!$E$5:$J$282,,MATCH(Q$4,'C. PoC Adj Factor Scoring'!$E$3:$AH$3,0)-1),MATCH(Q$2&\" Score\",'C. PoC Adj Factor Scoring'!$E$4:$J$4,0),TRUE)","v":1},{"$f":"VLOOKUP(OFFSET($B:$B,,MATCH(R$4,$B$4:$F$4,0)-1),OFFSET('C. PoC Adj Factor Scoring'!$E$5:$J$282,,MATCH(R$4,'C. PoC Adj Factor Scoring'!$E$3:$AH$3,0)-1),MATCH(R$2&\" Score\",'C. PoC Adj Factor Scoring'!$E$4:$J$4,0),TRUE)","v":1},{"$f":"VLOOKUP(OFFSET($B:$B,,MATCH(S$4,$B$4:$F$4,0)-1),OFFSET('C. PoC Adj Factor Scoring'!$E$5:$J$282,,MATCH(S$4,'C. PoC Adj Factor Scoring'!$E$3:$AH$3,0)-1),MATCH(S$2&\" Score\",'C. PoC Adj Factor Scoring'!$E$4:$J$4,0),TRUE)","v":1},{"$f":"VLOOKUP(OFFSET($B:$B,,MATCH(T$4,$B$4:$F$4,0)-1),OFFSET('C. PoC Adj Factor Scoring'!$E$5:$J$282,,MATCH(T$4,'C. PoC Adj Factor Scoring'!$E$3:$AH$3,0)-1),MATCH(T$2&\" Score\",'C. PoC Adj Factor Scoring'!$E$4:$J$4,0),TRUE)","v":1},{"$f":"VLOOKUP(OFFSET($B:$B,,MATCH(U$4,$B$4:$F$4,0)-1),OFFSET('C. PoC Adj Factor Scoring'!$E$5:$J$282,,MATCH(U$4,'C. PoC Adj Factor Scoring'!$E$3:$AH$3,0)-1),MATCH(U$2&\" Score\",'C. PoC Adj Factor Scoring'!$E$4:$J$4,0),TRUE)","v":1},{"$f":"VLOOKUP(OFFSET($B:$B,,MATCH(V$4,$B$4:$F$4,0)-1),OFFSET('C. PoC Adj Factor Scoring'!$E$5:$J$282,,MATCH(V$4,'C. PoC Adj Factor Scoring'!$E$3:$AH$3,0)-1),MATCH(V$2&\" Score\",'C. PoC Adj Factor Scoring'!$E$4:$J$4,0),TRUE)","v":1},{"$f":"VLOOKUP(OFFSET($B:$B,,MATCH(W$4,$B$4:$F$4,0)-1),OFFSET('C. PoC Adj Factor Scoring'!$E$5:$J$282,,MATCH(W$4,'C. PoC Adj Factor Scoring'!$E$3:$AH$3,0)-1),MATCH(W$2&\" Score\",'C. PoC Adj Factor Scoring'!$E$4:$J$4,0),TRUE)","v":1},{"$f":"VLOOKUP(OFFSET($B:$B,,MATCH(X$4,$B$4:$F$4,0)-1),OFFSET('C. PoC Adj Factor Scoring'!$E$5:$J$282,,MATCH(X$4,'C. PoC Adj Factor Scoring'!$E$3:$AH$3,0)-1),MATCH(X$2&\" Score\",'C. PoC Adj Factor Scoring'!$E$4:$J$4,0),TRUE)","v":1},{"$f":"VLOOKUP(OFFSET($B:$B,,MATCH(Y$4,$B$4:$F$4,0)-1),OFFSET('C. PoC Adj Factor Scoring'!$E$5:$J$282,,MATCH(Y$4,'C. PoC Adj Factor Scoring'!$E$3:$AH$3,0)-1),MATCH(Y$2&\" Score\",'C. PoC Adj Factor Scoring'!$E$4:$J$4,0),TRUE)","v":1},{"$f":"VLOOKUP(OFFSET($B:$B,,MATCH(Z$4,$B$4:$F$4,0)-1),OFFSET('C. PoC Adj Factor Scoring'!$E$5:$J$282,,MATCH(Z$4,'C. PoC Adj Factor Scoring'!$E$3:$AH$3,0)-1),MATCH(Z$2&\" Score\",'C. PoC Adj Factor Scoring'!$E$4:$J$4,0),TRUE)","v":1},{"$f":"VLOOKUP(OFFSET($B:$B,,MATCH(AA$4,$B$4:$F$4,0)-1),OFFSET('C. PoC Adj Factor Scoring'!$E$5:$J$282,,MATCH(AA$4,'C. PoC Adj Factor Scoring'!$E$3:$AH$3,0)-1),MATCH(AA$2&\" Score\",'C. PoC Adj Factor Scoring'!$E$4:$J$4,0),TRUE)","v":3},{"$f":"VLOOKUP(OFFSET($B:$B,,MATCH(AB$4,$B$4:$F$4,0)-1),OFFSET('C. PoC Adj Factor Scoring'!$E$5:$J$282,,MATCH(AB$4,'C. PoC Adj Factor Scoring'!$E$3:$AH$3,0)-1),MATCH(AB$2&\" Score\",'C. PoC Adj Factor Scoring'!$E$4:$J$4,0),TRUE)","v":1},{"$f":"VLOOKUP(OFFSET($B:$B,,MATCH(AC$4,$B$4:$F$4,0)-1),OFFSET('C. PoC Adj Factor Scoring'!$E$5:$J$282,,MATCH(AC$4,'C. PoC Adj Factor Scoring'!$E$3:$AH$3,0)-1),MATCH(AC$2&\" Score\",'C. PoC Adj Factor Scoring'!$E$4:$J$4,0),TRUE)","v":1},{"$f":"VLOOKUP(OFFSET($B:$B,,MATCH(AD$4,$B$4:$F$4,0)-1),OFFSET('C. PoC Adj Factor Scoring'!$E$5:$J$282,,MATCH(AD$4,'C. PoC Adj Factor Scoring'!$E$3:$AH$3,0)-1),MATCH(AD$2&\" Score\",'C. PoC Adj Factor Scoring'!$E$4:$J$4,0),TRUE)","v":1},{"$f":"VLOOKUP(OFFSET($B:$B,,MATCH(AE$4,$B$4:$F$4,0)-1),OFFSET('C. PoC Adj Factor Scoring'!$E$5:$J$282,,MATCH(AE$4,'C. PoC Adj Factor Scoring'!$E$3:$AH$3,0)-1),MATCH(AE$2&\" Score\",'C. PoC Adj Factor Scoring'!$E$4:$J$4,0),TRUE)","v":1}]
[{"$f":"'A. Population Info'!A421","v":1000410401},{"$f":"'A. Population Info'!L421","v":"OIL"},{"$f":"'A. Population Info'!M421","v":0},{"$f":"'A. Population Info'!N421","v":0},{"$f":"'A. Population Info'!O421","v":0},{"$f":"'A. Population Info'!P421","v":0},{"$f":"VLOOKUP(OFFSET($B:$B,,MATCH(G$4,$B$4:$F$4,0)-1),OFFSET('C. PoC Adj Factor Scoring'!$E$5:$J$282,,MATCH(G$4,'C. PoC Adj Factor Scoring'!$E$3:$AH$3,0)-1),MATCH(G$2&\" Score\",'C. PoC Adj Factor Scoring'!$E$4:$J$4,0),TRUE)","v":4},{"$f":"VLOOKUP(OFFSET($B:$B,,MATCH(H$4,$B$4:$F$4,0)-1),OFFSET('C. PoC Adj Factor Scoring'!$E$5:$J$282,,MATCH(H$4,'C. PoC Adj Factor Scoring'!$E$3:$AH$3,0)-1),MATCH(H$2&\" Score\",'C. PoC Adj Factor Scoring'!$E$4:$J$4,0),TRUE)","v":1},{"$f":"VLOOKUP(OFFSET($B:$B,,MATCH(I$4,$B$4:$F$4,0)-1),OFFSET('C. PoC Adj Factor Scoring'!$E$5:$J$282,,MATCH(I$4,'C. PoC Adj Factor Scoring'!$E$3:$AH$3,0)-1),MATCH(I$2&\" Score\",'C. PoC Adj Factor Scoring'!$E$4:$J$4,0),TRUE)","v":1},{"$f":"VLOOKUP(OFFSET($B:$B,,MATCH(J$4,$B$4:$F$4,0)-1),OFFSET('C. PoC Adj Factor Scoring'!$E$5:$J$282,,MATCH(J$4,'C. PoC Adj Factor Scoring'!$E$3:$AH$3,0)-1),MATCH(J$2&\" Score\",'C. PoC Adj Factor Scoring'!$E$4:$J$4,0),TRUE)","v":1},{"$f":"VLOOKUP(OFFSET($B:$B,,MATCH(K$4,$B$4:$F$4,0)-1),OFFSET('C. PoC Adj Factor Scoring'!$E$5:$J$282,,MATCH(K$4,'C. PoC Adj Factor Scoring'!$E$3:$AH$3,0)-1),MATCH(K$2&\" Score\",'C. PoC Adj Factor Scoring'!$E$4:$J$4,0),TRUE)","v":1},{"$f":"VLOOKUP(OFFSET($B:$B,,MATCH(L$4,$B$4:$F$4,0)-1),OFFSET('C. PoC Adj Factor Scoring'!$E$5:$J$282,,MATCH(L$4,'C. PoC Adj Factor Scoring'!$E$3:$AH$3,0)-1),MATCH(L$2&\" Score\",'C. PoC Adj Factor Scoring'!$E$4:$J$4,0),TRUE)","v":1},{"$f":"VLOOKUP(OFFSET($B:$B,,MATCH(M$4,$B$4:$F$4,0)-1),OFFSET('C. PoC Adj Factor Scoring'!$E$5:$J$282,,MATCH(M$4,'C. PoC Adj Factor Scoring'!$E$3:$AH$3,0)-1),MATCH(M$2&\" Score\",'C. PoC Adj Factor Scoring'!$E$4:$J$4,0),TRUE)","v":1},{"$f":"VLOOKUP(OFFSET($B:$B,,MATCH(N$4,$B$4:$F$4,0)-1),OFFSET('C. PoC Adj Factor Scoring'!$E$5:$J$282,,MATCH(N$4,'C. PoC Adj Factor Scoring'!$E$3:$AH$3,0)-1),MATCH(N$2&\" Score\",'C. PoC Adj Factor Scoring'!$E$4:$J$4,0),TRUE)","v":1},{"$f":"VLOOKUP(OFFSET($B:$B,,MATCH(O$4,$B$4:$F$4,0)-1),OFFSET('C. PoC Adj Factor Scoring'!$E$5:$J$282,,MATCH(O$4,'C. PoC Adj Factor Scoring'!$E$3:$AH$3,0)-1),MATCH(O$2&\" Score\",'C. PoC Adj Factor Scoring'!$E$4:$J$4,0),TRUE)","v":1},{"$f":"VLOOKUP(OFFSET($B:$B,,MATCH(P$4,$B$4:$F$4,0)-1),OFFSET('C. PoC Adj Factor Scoring'!$E$5:$J$282,,MATCH(P$4,'C. PoC Adj Factor Scoring'!$E$3:$AH$3,0)-1),MATCH(P$2&\" Score\",'C. PoC Adj Factor Scoring'!$E$4:$J$4,0),TRUE)","v":1},{"$f":"VLOOKUP(OFFSET($B:$B,,MATCH(Q$4,$B$4:$F$4,0)-1),OFFSET('C. PoC Adj Factor Scoring'!$E$5:$J$282,,MATCH(Q$4,'C. PoC Adj Factor Scoring'!$E$3:$AH$3,0)-1),MATCH(Q$2&\" Score\",'C. PoC Adj Factor Scoring'!$E$4:$J$4,0),TRUE)","v":1},{"$f":"VLOOKUP(OFFSET($B:$B,,MATCH(R$4,$B$4:$F$4,0)-1),OFFSET('C. PoC Adj Factor Scoring'!$E$5:$J$282,,MATCH(R$4,'C. PoC Adj Factor Scoring'!$E$3:$AH$3,0)-1),MATCH(R$2&\" Score\",'C. PoC Adj Factor Scoring'!$E$4:$J$4,0),TRUE)","v":1},{"$f":"VLOOKUP(OFFSET($B:$B,,MATCH(S$4,$B$4:$F$4,0)-1),OFFSET('C. PoC Adj Factor Scoring'!$E$5:$J$282,,MATCH(S$4,'C. PoC Adj Factor Scoring'!$E$3:$AH$3,0)-1),MATCH(S$2&\" Score\",'C. PoC Adj Factor Scoring'!$E$4:$J$4,0),TRUE)","v":1},{"$f":"VLOOKUP(OFFSET($B:$B,,MATCH(T$4,$B$4:$F$4,0)-1),OFFSET('C. PoC Adj Factor Scoring'!$E$5:$J$282,,MATCH(T$4,'C. PoC Adj Factor Scoring'!$E$3:$AH$3,0)-1),MATCH(T$2&\" Score\",'C. PoC Adj Factor Scoring'!$E$4:$J$4,0),TRUE)","v":1},{"$f":"VLOOKUP(OFFSET($B:$B,,MATCH(U$4,$B$4:$F$4,0)-1),OFFSET('C. PoC Adj Factor Scoring'!$E$5:$J$282,,MATCH(U$4,'C. PoC Adj Factor Scoring'!$E$3:$AH$3,0)-1),MATCH(U$2&\" Score\",'C. PoC Adj Factor Scoring'!$E$4:$J$4,0),TRUE)","v":1},{"$f":"VLOOKUP(OFFSET($B:$B,,MATCH(V$4,$B$4:$F$4,0)-1),OFFSET('C. PoC Adj Factor Scoring'!$E$5:$J$282,,MATCH(V$4,'C. PoC Adj Factor Scoring'!$E$3:$AH$3,0)-1),MATCH(V$2&\" Score\",'C. PoC Adj Factor Scoring'!$E$4:$J$4,0),TRUE)","v":1},{"$f":"VLOOKUP(OFFSET($B:$B,,MATCH(W$4,$B$4:$F$4,0)-1),OFFSET('C. PoC Adj Factor Scoring'!$E$5:$J$282,,MATCH(W$4,'C. PoC Adj Factor Scoring'!$E$3:$AH$3,0)-1),MATCH(W$2&\" Score\",'C. PoC Adj Factor Scoring'!$E$4:$J$4,0),TRUE)","v":1},{"$f":"VLOOKUP(OFFSET($B:$B,,MATCH(X$4,$B$4:$F$4,0)-1),OFFSET('C. PoC Adj Factor Scoring'!$E$5:$J$282,,MATCH(X$4,'C. PoC Adj Factor Scoring'!$E$3:$AH$3,0)-1),MATCH(X$2&\" Score\",'C. PoC Adj Factor Scoring'!$E$4:$J$4,0),TRUE)","v":1},{"$f":"VLOOKUP(OFFSET($B:$B,,MATCH(Y$4,$B$4:$F$4,0)-1),OFFSET('C. PoC Adj Factor Scoring'!$E$5:$J$282,,MATCH(Y$4,'C. PoC Adj Factor Scoring'!$E$3:$AH$3,0)-1),MATCH(Y$2&\" Score\",'C. PoC Adj Factor Scoring'!$E$4:$J$4,0),TRUE)","v":1},{"$f":"VLOOKUP(OFFSET($B:$B,,MATCH(Z$4,$B$4:$F$4,0)-1),OFFSET('C. PoC Adj Factor Scoring'!$E$5:$J$282,,MATCH(Z$4,'C. PoC Adj Factor Scoring'!$E$3:$AH$3,0)-1),MATCH(Z$2&\" Score\",'C. PoC Adj Factor Scoring'!$E$4:$J$4,0),TRUE)","v":1},{"$f":"VLOOKUP(OFFSET($B:$B,,MATCH(AA$4,$B$4:$F$4,0)-1),OFFSET('C. PoC Adj Factor Scoring'!$E$5:$J$282,,MATCH(AA$4,'C. PoC Adj Factor Scoring'!$E$3:$AH$3,0)-1),MATCH(AA$2&\" Score\",'C. PoC Adj Factor Scoring'!$E$4:$J$4,0),TRUE)","v":3},{"$f":"VLOOKUP(OFFSET($B:$B,,MATCH(AB$4,$B$4:$F$4,0)-1),OFFSET('C. PoC Adj Factor Scoring'!$E$5:$J$282,,MATCH(AB$4,'C. PoC Adj Factor Scoring'!$E$3:$AH$3,0)-1),MATCH(AB$2&\" Score\",'C. PoC Adj Factor Scoring'!$E$4:$J$4,0),TRUE)","v":1},{"$f":"VLOOKUP(OFFSET($B:$B,,MATCH(AC$4,$B$4:$F$4,0)-1),OFFSET('C. PoC Adj Factor Scoring'!$E$5:$J$282,,MATCH(AC$4,'C. PoC Adj Factor Scoring'!$E$3:$AH$3,0)-1),MATCH(AC$2&\" Score\",'C. PoC Adj Factor Scoring'!$E$4:$J$4,0),TRUE)","v":1},{"$f":"VLOOKUP(OFFSET($B:$B,,MATCH(AD$4,$B$4:$F$4,0)-1),OFFSET('C. PoC Adj Factor Scoring'!$E$5:$J$282,,MATCH(AD$4,'C. PoC Adj Factor Scoring'!$E$3:$AH$3,0)-1),MATCH(AD$2&\" Score\",'C. PoC Adj Factor Scoring'!$E$4:$J$4,0),TRUE)","v":1},{"$f":"VLOOKUP(OFFSET($B:$B,,MATCH(AE$4,$B$4:$F$4,0)-1),OFFSET('C. PoC Adj Factor Scoring'!$E$5:$J$282,,MATCH(AE$4,'C. PoC Adj Factor Scoring'!$E$3:$AH$3,0)-1),MATCH(AE$2&\" Score\",'C. PoC Adj Factor Scoring'!$E$4:$J$4,0),TRUE)","v":1}]
[{"$f":"'A. Population Info'!A422","v":1000410465},{"$f":"'A. Population Info'!L422","v":"OIL"},{"$f":"'A. Population Info'!M422","v":0},{"$f":"'A. Population Info'!N422","v":0},{"$f":"'A. Population Info'!O422","v":0},{"$f":"'A. Population Info'!P422","v":0},{"$f":"VLOOKUP(OFFSET($B:$B,,MATCH(G$4,$B$4:$F$4,0)-1),OFFSET('C. PoC Adj Factor Scoring'!$E$5:$J$282,,MATCH(G$4,'C. PoC Adj Factor Scoring'!$E$3:$AH$3,0)-1),MATCH(G$2&\" Score\",'C. PoC Adj Factor Scoring'!$E$4:$J$4,0),TRUE)","v":4},{"$f":"VLOOKUP(OFFSET($B:$B,,MATCH(H$4,$B$4:$F$4,0)-1),OFFSET('C. PoC Adj Factor Scoring'!$E$5:$J$282,,MATCH(H$4,'C. PoC Adj Factor Scoring'!$E$3:$AH$3,0)-1),MATCH(H$2&\" Score\",'C. PoC Adj Factor Scoring'!$E$4:$J$4,0),TRUE)","v":1},{"$f":"VLOOKUP(OFFSET($B:$B,,MATCH(I$4,$B$4:$F$4,0)-1),OFFSET('C. PoC Adj Factor Scoring'!$E$5:$J$282,,MATCH(I$4,'C. PoC Adj Factor Scoring'!$E$3:$AH$3,0)-1),MATCH(I$2&\" Score\",'C. PoC Adj Factor Scoring'!$E$4:$J$4,0),TRUE)","v":1},{"$f":"VLOOKUP(OFFSET($B:$B,,MATCH(J$4,$B$4:$F$4,0)-1),OFFSET('C. PoC Adj Factor Scoring'!$E$5:$J$282,,MATCH(J$4,'C. PoC Adj Factor Scoring'!$E$3:$AH$3,0)-1),MATCH(J$2&\" Score\",'C. PoC Adj Factor Scoring'!$E$4:$J$4,0),TRUE)","v":1},{"$f":"VLOOKUP(OFFSET($B:$B,,MATCH(K$4,$B$4:$F$4,0)-1),OFFSET('C. PoC Adj Factor Scoring'!$E$5:$J$282,,MATCH(K$4,'C. PoC Adj Factor Scoring'!$E$3:$AH$3,0)-1),MATCH(K$2&\" Score\",'C. PoC Adj Factor Scoring'!$E$4:$J$4,0),TRUE)","v":1},{"$f":"VLOOKUP(OFFSET($B:$B,,MATCH(L$4,$B$4:$F$4,0)-1),OFFSET('C. PoC Adj Factor Scoring'!$E$5:$J$282,,MATCH(L$4,'C. PoC Adj Factor Scoring'!$E$3:$AH$3,0)-1),MATCH(L$2&\" Score\",'C. PoC Adj Factor Scoring'!$E$4:$J$4,0),TRUE)","v":1},{"$f":"VLOOKUP(OFFSET($B:$B,,MATCH(M$4,$B$4:$F$4,0)-1),OFFSET('C. PoC Adj Factor Scoring'!$E$5:$J$282,,MATCH(M$4,'C. PoC Adj Factor Scoring'!$E$3:$AH$3,0)-1),MATCH(M$2&\" Score\",'C. PoC Adj Factor Scoring'!$E$4:$J$4,0),TRUE)","v":1},{"$f":"VLOOKUP(OFFSET($B:$B,,MATCH(N$4,$B$4:$F$4,0)-1),OFFSET('C. PoC Adj Factor Scoring'!$E$5:$J$282,,MATCH(N$4,'C. PoC Adj Factor Scoring'!$E$3:$AH$3,0)-1),MATCH(N$2&\" Score\",'C. PoC Adj Factor Scoring'!$E$4:$J$4,0),TRUE)","v":1},{"$f":"VLOOKUP(OFFSET($B:$B,,MATCH(O$4,$B$4:$F$4,0)-1),OFFSET('C. PoC Adj Factor Scoring'!$E$5:$J$282,,MATCH(O$4,'C. PoC Adj Factor Scoring'!$E$3:$AH$3,0)-1),MATCH(O$2&\" Score\",'C. PoC Adj Factor Scoring'!$E$4:$J$4,0),TRUE)","v":1},{"$f":"VLOOKUP(OFFSET($B:$B,,MATCH(P$4,$B$4:$F$4,0)-1),OFFSET('C. PoC Adj Factor Scoring'!$E$5:$J$282,,MATCH(P$4,'C. PoC Adj Factor Scoring'!$E$3:$AH$3,0)-1),MATCH(P$2&\" Score\",'C. PoC Adj Factor Scoring'!$E$4:$J$4,0),TRUE)","v":1},{"$f":"VLOOKUP(OFFSET($B:$B,,MATCH(Q$4,$B$4:$F$4,0)-1),OFFSET('C. PoC Adj Factor Scoring'!$E$5:$J$282,,MATCH(Q$4,'C. PoC Adj Factor Scoring'!$E$3:$AH$3,0)-1),MATCH(Q$2&\" Score\",'C. PoC Adj Factor Scoring'!$E$4:$J$4,0),TRUE)","v":1},{"$f":"VLOOKUP(OFFSET($B:$B,,MATCH(R$4,$B$4:$F$4,0)-1),OFFSET('C. PoC Adj Factor Scoring'!$E$5:$J$282,,MATCH(R$4,'C. PoC Adj Factor Scoring'!$E$3:$AH$3,0)-1),MATCH(R$2&\" Score\",'C. PoC Adj Factor Scoring'!$E$4:$J$4,0),TRUE)","v":1},{"$f":"VLOOKUP(OFFSET($B:$B,,MATCH(S$4,$B$4:$F$4,0)-1),OFFSET('C. PoC Adj Factor Scoring'!$E$5:$J$282,,MATCH(S$4,'C. PoC Adj Factor Scoring'!$E$3:$AH$3,0)-1),MATCH(S$2&\" Score\",'C. PoC Adj Factor Scoring'!$E$4:$J$4,0),TRUE)","v":1},{"$f":"VLOOKUP(OFFSET($B:$B,,MATCH(T$4,$B$4:$F$4,0)-1),OFFSET('C. PoC Adj Factor Scoring'!$E$5:$J$282,,MATCH(T$4,'C. PoC Adj Factor Scoring'!$E$3:$AH$3,0)-1),MATCH(T$2&\" Score\",'C. PoC Adj Factor Scoring'!$E$4:$J$4,0),TRUE)","v":1},{"$f":"VLOOKUP(OFFSET($B:$B,,MATCH(U$4,$B$4:$F$4,0)-1),OFFSET('C. PoC Adj Factor Scoring'!$E$5:$J$282,,MATCH(U$4,'C. PoC Adj Factor Scoring'!$E$3:$AH$3,0)-1),MATCH(U$2&\" Score\",'C. PoC Adj Factor Scoring'!$E$4:$J$4,0),TRUE)","v":1},{"$f":"VLOOKUP(OFFSET($B:$B,,MATCH(V$4,$B$4:$F$4,0)-1),OFFSET('C. PoC Adj Factor Scoring'!$E$5:$J$282,,MATCH(V$4,'C. PoC Adj Factor Scoring'!$E$3:$AH$3,0)-1),MATCH(V$2&\" Score\",'C. PoC Adj Factor Scoring'!$E$4:$J$4,0),TRUE)","v":1},{"$f":"VLOOKUP(OFFSET($B:$B,,MATCH(W$4,$B$4:$F$4,0)-1),OFFSET('C. PoC Adj Factor Scoring'!$E$5:$J$282,,MATCH(W$4,'C. PoC Adj Factor Scoring'!$E$3:$AH$3,0)-1),MATCH(W$2&\" Score\",'C. PoC Adj Factor Scoring'!$E$4:$J$4,0),TRUE)","v":1},{"$f":"VLOOKUP(OFFSET($B:$B,,MATCH(X$4,$B$4:$F$4,0)-1),OFFSET('C. PoC Adj Factor Scoring'!$E$5:$J$282,,MATCH(X$4,'C. PoC Adj Factor Scoring'!$E$3:$AH$3,0)-1),MATCH(X$2&\" Score\",'C. PoC Adj Factor Scoring'!$E$4:$J$4,0),TRUE)","v":1},{"$f":"VLOOKUP(OFFSET($B:$B,,MATCH(Y$4,$B$4:$F$4,0)-1),OFFSET('C. PoC Adj Factor Scoring'!$E$5:$J$282,,MATCH(Y$4,'C. PoC Adj Factor Scoring'!$E$3:$AH$3,0)-1),MATCH(Y$2&\" Score\",'C. PoC Adj Factor Scoring'!$E$4:$J$4,0),TRUE)","v":1},{"$f":"VLOOKUP(OFFSET($B:$B,,MATCH(Z$4,$B$4:$F$4,0)-1),OFFSET('C. PoC Adj Factor Scoring'!$E$5:$J$282,,MATCH(Z$4,'C. PoC Adj Factor Scoring'!$E$3:$AH$3,0)-1),MATCH(Z$2&\" Score\",'C. PoC Adj Factor Scoring'!$E$4:$J$4,0),TRUE)","v":1},{"$f":"VLOOKUP(OFFSET($B:$B,,MATCH(AA$4,$B$4:$F$4,0)-1),OFFSET('C. PoC Adj Factor Scoring'!$E$5:$J$282,,MATCH(AA$4,'C. PoC Adj Factor Scoring'!$E$3:$AH$3,0)-1),MATCH(AA$2&\" Score\",'C. PoC Adj Factor Scoring'!$E$4:$J$4,0),TRUE)","v":3},{"$f":"VLOOKUP(OFFSET($B:$B,,MATCH(AB$4,$B$4:$F$4,0)-1),OFFSET('C. PoC Adj Factor Scoring'!$E$5:$J$282,,MATCH(AB$4,'C. PoC Adj Factor Scoring'!$E$3:$AH$3,0)-1),MATCH(AB$2&\" Score\",'C. PoC Adj Factor Scoring'!$E$4:$J$4,0),TRUE)","v":1},{"$f":"VLOOKUP(OFFSET($B:$B,,MATCH(AC$4,$B$4:$F$4,0)-1),OFFSET('C. PoC Adj Factor Scoring'!$E$5:$J$282,,MATCH(AC$4,'C. PoC Adj Factor Scoring'!$E$3:$AH$3,0)-1),MATCH(AC$2&\" Score\",'C. PoC Adj Factor Scoring'!$E$4:$J$4,0),TRUE)","v":1},{"$f":"VLOOKUP(OFFSET($B:$B,,MATCH(AD$4,$B$4:$F$4,0)-1),OFFSET('C. PoC Adj Factor Scoring'!$E$5:$J$282,,MATCH(AD$4,'C. PoC Adj Factor Scoring'!$E$3:$AH$3,0)-1),MATCH(AD$2&\" Score\",'C. PoC Adj Factor Scoring'!$E$4:$J$4,0),TRUE)","v":1},{"$f":"VLOOKUP(OFFSET($B:$B,,MATCH(AE$4,$B$4:$F$4,0)-1),OFFSET('C. PoC Adj Factor Scoring'!$E$5:$J$282,,MATCH(AE$4,'C. PoC Adj Factor Scoring'!$E$3:$AH$3,0)-1),MATCH(AE$2&\" Score\",'C. PoC Adj Factor Scoring'!$E$4:$J$4,0),TRUE)","v":1}]
[{"$f":"'A. Population Info'!A423","v":1000410481},{"$f":"'A. Population Info'!L423","v":"OIL"},{"$f":"'A. Population Info'!M423","v":0},{"$f":"'A. Population Info'!N423","v":0},{"$f":"'A. Population Info'!O423","v":0},{"$f":"'A. Population Info'!P423","v":0},{"$f":"VLOOKUP(OFFSET($B:$B,,MATCH(G$4,$B$4:$F$4,0)-1),OFFSET('C. PoC Adj Factor Scoring'!$E$5:$J$282,,MATCH(G$4,'C. PoC Adj Factor Scoring'!$E$3:$AH$3,0)-1),MATCH(G$2&\" Score\",'C. PoC Adj Factor Scoring'!$E$4:$J$4,0),TRUE)","v":4},{"$f":"VLOOKUP(OFFSET($B:$B,,MATCH(H$4,$B$4:$F$4,0)-1),OFFSET('C. PoC Adj Factor Scoring'!$E$5:$J$282,,MATCH(H$4,'C. PoC Adj Factor Scoring'!$E$3:$AH$3,0)-1),MATCH(H$2&\" Score\",'C. PoC Adj Factor Scoring'!$E$4:$J$4,0),TRUE)","v":1},{"$f":"VLOOKUP(OFFSET($B:$B,,MATCH(I$4,$B$4:$F$4,0)-1),OFFSET('C. PoC Adj Factor Scoring'!$E$5:$J$282,,MATCH(I$4,'C. PoC Adj Factor Scoring'!$E$3:$AH$3,0)-1),MATCH(I$2&\" Score\",'C. PoC Adj Factor Scoring'!$E$4:$J$4,0),TRUE)","v":1},{"$f":"VLOOKUP(OFFSET($B:$B,,MATCH(J$4,$B$4:$F$4,0)-1),OFFSET('C. PoC Adj Factor Scoring'!$E$5:$J$282,,MATCH(J$4,'C. PoC Adj Factor Scoring'!$E$3:$AH$3,0)-1),MATCH(J$2&\" Score\",'C. PoC Adj Factor Scoring'!$E$4:$J$4,0),TRUE)","v":1},{"$f":"VLOOKUP(OFFSET($B:$B,,MATCH(K$4,$B$4:$F$4,0)-1),OFFSET('C. PoC Adj Factor Scoring'!$E$5:$J$282,,MATCH(K$4,'C. PoC Adj Factor Scoring'!$E$3:$AH$3,0)-1),MATCH(K$2&\" Score\",'C. PoC Adj Factor Scoring'!$E$4:$J$4,0),TRUE)","v":1},{"$f":"VLOOKUP(OFFSET($B:$B,,MATCH(L$4,$B$4:$F$4,0)-1),OFFSET('C. PoC Adj Factor Scoring'!$E$5:$J$282,,MATCH(L$4,'C. PoC Adj Factor Scoring'!$E$3:$AH$3,0)-1),MATCH(L$2&\" Score\",'C. PoC Adj Factor Scoring'!$E$4:$J$4,0),TRUE)","v":1},{"$f":"VLOOKUP(OFFSET($B:$B,,MATCH(M$4,$B$4:$F$4,0)-1),OFFSET('C. PoC Adj Factor Scoring'!$E$5:$J$282,,MATCH(M$4,'C. PoC Adj Factor Scoring'!$E$3:$AH$3,0)-1),MATCH(M$2&\" Score\",'C. PoC Adj Factor Scoring'!$E$4:$J$4,0),TRUE)","v":1},{"$f":"VLOOKUP(OFFSET($B:$B,,MATCH(N$4,$B$4:$F$4,0)-1),OFFSET('C. PoC Adj Factor Scoring'!$E$5:$J$282,,MATCH(N$4,'C. PoC Adj Factor Scoring'!$E$3:$AH$3,0)-1),MATCH(N$2&\" Score\",'C. PoC Adj Factor Scoring'!$E$4:$J$4,0),TRUE)","v":1},{"$f":"VLOOKUP(OFFSET($B:$B,,MATCH(O$4,$B$4:$F$4,0)-1),OFFSET('C. PoC Adj Factor Scoring'!$E$5:$J$282,,MATCH(O$4,'C. PoC Adj Factor Scoring'!$E$3:$AH$3,0)-1),MATCH(O$2&\" Score\",'C. PoC Adj Factor Scoring'!$E$4:$J$4,0),TRUE)","v":1},{"$f":"VLOOKUP(OFFSET($B:$B,,MATCH(P$4,$B$4:$F$4,0)-1),OFFSET('C. PoC Adj Factor Scoring'!$E$5:$J$282,,MATCH(P$4,'C. PoC Adj Factor Scoring'!$E$3:$AH$3,0)-1),MATCH(P$2&\" Score\",'C. PoC Adj Factor Scoring'!$E$4:$J$4,0),TRUE)","v":1},{"$f":"VLOOKUP(OFFSET($B:$B,,MATCH(Q$4,$B$4:$F$4,0)-1),OFFSET('C. PoC Adj Factor Scoring'!$E$5:$J$282,,MATCH(Q$4,'C. PoC Adj Factor Scoring'!$E$3:$AH$3,0)-1),MATCH(Q$2&\" Score\",'C. PoC Adj Factor Scoring'!$E$4:$J$4,0),TRUE)","v":1},{"$f":"VLOOKUP(OFFSET($B:$B,,MATCH(R$4,$B$4:$F$4,0)-1),OFFSET('C. PoC Adj Factor Scoring'!$E$5:$J$282,,MATCH(R$4,'C. PoC Adj Factor Scoring'!$E$3:$AH$3,0)-1),MATCH(R$2&\" Score\",'C. PoC Adj Factor Scoring'!$E$4:$J$4,0),TRUE)","v":1},{"$f":"VLOOKUP(OFFSET($B:$B,,MATCH(S$4,$B$4:$F$4,0)-1),OFFSET('C. PoC Adj Factor Scoring'!$E$5:$J$282,,MATCH(S$4,'C. PoC Adj Factor Scoring'!$E$3:$AH$3,0)-1),MATCH(S$2&\" Score\",'C. PoC Adj Factor Scoring'!$E$4:$J$4,0),TRUE)","v":1},{"$f":"VLOOKUP(OFFSET($B:$B,,MATCH(T$4,$B$4:$F$4,0)-1),OFFSET('C. PoC Adj Factor Scoring'!$E$5:$J$282,,MATCH(T$4,'C. PoC Adj Factor Scoring'!$E$3:$AH$3,0)-1),MATCH(T$2&\" Score\",'C. PoC Adj Factor Scoring'!$E$4:$J$4,0),TRUE)","v":1},{"$f":"VLOOKUP(OFFSET($B:$B,,MATCH(U$4,$B$4:$F$4,0)-1),OFFSET('C. PoC Adj Factor Scoring'!$E$5:$J$282,,MATCH(U$4,'C. PoC Adj Factor Scoring'!$E$3:$AH$3,0)-1),MATCH(U$2&\" Score\",'C. PoC Adj Factor Scoring'!$E$4:$J$4,0),TRUE)","v":1},{"$f":"VLOOKUP(OFFSET($B:$B,,MATCH(V$4,$B$4:$F$4,0)-1),OFFSET('C. PoC Adj Factor Scoring'!$E$5:$J$282,,MATCH(V$4,'C. PoC Adj Factor Scoring'!$E$3:$AH$3,0)-1),MATCH(V$2&\" Score\",'C. PoC Adj Factor Scoring'!$E$4:$J$4,0),TRUE)","v":1},{"$f":"VLOOKUP(OFFSET($B:$B,,MATCH(W$4,$B$4:$F$4,0)-1),OFFSET('C. PoC Adj Factor Scoring'!$E$5:$J$282,,MATCH(W$4,'C. PoC Adj Factor Scoring'!$E$3:$AH$3,0)-1),MATCH(W$2&\" Score\",'C. PoC Adj Factor Scoring'!$E$4:$J$4,0),TRUE)","v":1},{"$f":"VLOOKUP(OFFSET($B:$B,,MATCH(X$4,$B$4:$F$4,0)-1),OFFSET('C. PoC Adj Factor Scoring'!$E$5:$J$282,,MATCH(X$4,'C. PoC Adj Factor Scoring'!$E$3:$AH$3,0)-1),MATCH(X$2&\" Score\",'C. PoC Adj Factor Scoring'!$E$4:$J$4,0),TRUE)","v":1},{"$f":"VLOOKUP(OFFSET($B:$B,,MATCH(Y$4,$B$4:$F$4,0)-1),OFFSET('C. PoC Adj Factor Scoring'!$E$5:$J$282,,MATCH(Y$4,'C. PoC Adj Factor Scoring'!$E$3:$AH$3,0)-1),MATCH(Y$2&\" Score\",'C. PoC Adj Factor Scoring'!$E$4:$J$4,0),TRUE)","v":1},{"$f":"VLOOKUP(OFFSET($B:$B,,MATCH(Z$4,$B$4:$F$4,0)-1),OFFSET('C. PoC Adj Factor Scoring'!$E$5:$J$282,,MATCH(Z$4,'C. PoC Adj Factor Scoring'!$E$3:$AH$3,0)-1),MATCH(Z$2&\" Score\",'C. PoC Adj Factor Scoring'!$E$4:$J$4,0),TRUE)","v":1},{"$f":"VLOOKUP(OFFSET($B:$B,,MATCH(AA$4,$B$4:$F$4,0)-1),OFFSET('C. PoC Adj Factor Scoring'!$E$5:$J$282,,MATCH(AA$4,'C. PoC Adj Factor Scoring'!$E$3:$AH$3,0)-1),MATCH(AA$2&\" Score\",'C. PoC Adj Factor Scoring'!$E$4:$J$4,0),TRUE)","v":3},{"$f":"VLOOKUP(OFFSET($B:$B,,MATCH(AB$4,$B$4:$F$4,0)-1),OFFSET('C. PoC Adj Factor Scoring'!$E$5:$J$282,,MATCH(AB$4,'C. PoC Adj Factor Scoring'!$E$3:$AH$3,0)-1),MATCH(AB$2&\" Score\",'C. PoC Adj Factor Scoring'!$E$4:$J$4,0),TRUE)","v":1},{"$f":"VLOOKUP(OFFSET($B:$B,,MATCH(AC$4,$B$4:$F$4,0)-1),OFFSET('C. PoC Adj Factor Scoring'!$E$5:$J$282,,MATCH(AC$4,'C. PoC Adj Factor Scoring'!$E$3:$AH$3,0)-1),MATCH(AC$2&\" Score\",'C. PoC Adj Factor Scoring'!$E$4:$J$4,0),TRUE)","v":1},{"$f":"VLOOKUP(OFFSET($B:$B,,MATCH(AD$4,$B$4:$F$4,0)-1),OFFSET('C. PoC Adj Factor Scoring'!$E$5:$J$282,,MATCH(AD$4,'C. PoC Adj Factor Scoring'!$E$3:$AH$3,0)-1),MATCH(AD$2&\" Score\",'C. PoC Adj Factor Scoring'!$E$4:$J$4,0),TRUE)","v":1},{"$f":"VLOOKUP(OFFSET($B:$B,,MATCH(AE$4,$B$4:$F$4,0)-1),OFFSET('C. PoC Adj Factor Scoring'!$E$5:$J$282,,MATCH(AE$4,'C. PoC Adj Factor Scoring'!$E$3:$AH$3,0)-1),MATCH(AE$2&\" Score\",'C. PoC Adj Factor Scoring'!$E$4:$J$4,0),TRUE)","v":1}]
[{"$f":"'A. Population Info'!A424","v":1000410502},{"$f":"'A. Population Info'!L424","v":"OIL"},{"$f":"'A. Population Info'!M424","v":0},{"$f":"'A. Population Info'!N424","v":0},{"$f":"'A. Population Info'!O424","v":0},{"$f":"'A. Population Info'!P424","v":0},{"$f":"VLOOKUP(OFFSET($B:$B,,MATCH(G$4,$B$4:$F$4,0)-1),OFFSET('C. PoC Adj Factor Scoring'!$E$5:$J$282,,MATCH(G$4,'C. PoC Adj Factor Scoring'!$E$3:$AH$3,0)-1),MATCH(G$2&\" Score\",'C. PoC Adj Factor Scoring'!$E$4:$J$4,0),TRUE)","v":4},{"$f":"VLOOKUP(OFFSET($B:$B,,MATCH(H$4,$B$4:$F$4,0)-1),OFFSET('C. PoC Adj Factor Scoring'!$E$5:$J$282,,MATCH(H$4,'C. PoC Adj Factor Scoring'!$E$3:$AH$3,0)-1),MATCH(H$2&\" Score\",'C. PoC Adj Factor Scoring'!$E$4:$J$4,0),TRUE)","v":1},{"$f":"VLOOKUP(OFFSET($B:$B,,MATCH(I$4,$B$4:$F$4,0)-1),OFFSET('C. PoC Adj Factor Scoring'!$E$5:$J$282,,MATCH(I$4,'C. PoC Adj Factor Scoring'!$E$3:$AH$3,0)-1),MATCH(I$2&\" Score\",'C. PoC Adj Factor Scoring'!$E$4:$J$4,0),TRUE)","v":1},{"$f":"VLOOKUP(OFFSET($B:$B,,MATCH(J$4,$B$4:$F$4,0)-1),OFFSET('C. PoC Adj Factor Scoring'!$E$5:$J$282,,MATCH(J$4,'C. PoC Adj Factor Scoring'!$E$3:$AH$3,0)-1),MATCH(J$2&\" Score\",'C. PoC Adj Factor Scoring'!$E$4:$J$4,0),TRUE)","v":1},{"$f":"VLOOKUP(OFFSET($B:$B,,MATCH(K$4,$B$4:$F$4,0)-1),OFFSET('C. PoC Adj Factor Scoring'!$E$5:$J$282,,MATCH(K$4,'C. PoC Adj Factor Scoring'!$E$3:$AH$3,0)-1),MATCH(K$2&\" Score\",'C. PoC Adj Factor Scoring'!$E$4:$J$4,0),TRUE)","v":1},{"$f":"VLOOKUP(OFFSET($B:$B,,MATCH(L$4,$B$4:$F$4,0)-1),OFFSET('C. PoC Adj Factor Scoring'!$E$5:$J$282,,MATCH(L$4,'C. PoC Adj Factor Scoring'!$E$3:$AH$3,0)-1),MATCH(L$2&\" Score\",'C. PoC Adj Factor Scoring'!$E$4:$J$4,0),TRUE)","v":1},{"$f":"VLOOKUP(OFFSET($B:$B,,MATCH(M$4,$B$4:$F$4,0)-1),OFFSET('C. PoC Adj Factor Scoring'!$E$5:$J$282,,MATCH(M$4,'C. PoC Adj Factor Scoring'!$E$3:$AH$3,0)-1),MATCH(M$2&\" Score\",'C. PoC Adj Factor Scoring'!$E$4:$J$4,0),TRUE)","v":1},{"$f":"VLOOKUP(OFFSET($B:$B,,MATCH(N$4,$B$4:$F$4,0)-1),OFFSET('C. PoC Adj Factor Scoring'!$E$5:$J$282,,MATCH(N$4,'C. PoC Adj Factor Scoring'!$E$3:$AH$3,0)-1),MATCH(N$2&\" Score\",'C. PoC Adj Factor Scoring'!$E$4:$J$4,0),TRUE)","v":1},{"$f":"VLOOKUP(OFFSET($B:$B,,MATCH(O$4,$B$4:$F$4,0)-1),OFFSET('C. PoC Adj Factor Scoring'!$E$5:$J$282,,MATCH(O$4,'C. PoC Adj Factor Scoring'!$E$3:$AH$3,0)-1),MATCH(O$2&\" Score\",'C. PoC Adj Factor Scoring'!$E$4:$J$4,0),TRUE)","v":1},{"$f":"VLOOKUP(OFFSET($B:$B,,MATCH(P$4,$B$4:$F$4,0)-1),OFFSET('C. PoC Adj Factor Scoring'!$E$5:$J$282,,MATCH(P$4,'C. PoC Adj Factor Scoring'!$E$3:$AH$3,0)-1),MATCH(P$2&\" Score\",'C. PoC Adj Factor Scoring'!$E$4:$J$4,0),TRUE)","v":1},{"$f":"VLOOKUP(OFFSET($B:$B,,MATCH(Q$4,$B$4:$F$4,0)-1),OFFSET('C. PoC Adj Factor Scoring'!$E$5:$J$282,,MATCH(Q$4,'C. PoC Adj Factor Scoring'!$E$3:$AH$3,0)-1),MATCH(Q$2&\" Score\",'C. PoC Adj Factor Scoring'!$E$4:$J$4,0),TRUE)","v":1},{"$f":"VLOOKUP(OFFSET($B:$B,,MATCH(R$4,$B$4:$F$4,0)-1),OFFSET('C. PoC Adj Factor Scoring'!$E$5:$J$282,,MATCH(R$4,'C. PoC Adj Factor Scoring'!$E$3:$AH$3,0)-1),MATCH(R$2&\" Score\",'C. PoC Adj Factor Scoring'!$E$4:$J$4,0),TRUE)","v":1},{"$f":"VLOOKUP(OFFSET($B:$B,,MATCH(S$4,$B$4:$F$4,0)-1),OFFSET('C. PoC Adj Factor Scoring'!$E$5:$J$282,,MATCH(S$4,'C. PoC Adj Factor Scoring'!$E$3:$AH$3,0)-1),MATCH(S$2&\" Score\",'C. PoC Adj Factor Scoring'!$E$4:$J$4,0),TRUE)","v":1},{"$f":"VLOOKUP(OFFSET($B:$B,,MATCH(T$4,$B$4:$F$4,0)-1),OFFSET('C. PoC Adj Factor Scoring'!$E$5:$J$282,,MATCH(T$4,'C. PoC Adj Factor Scoring'!$E$3:$AH$3,0)-1),MATCH(T$2&\" Score\",'C. PoC Adj Factor Scoring'!$E$4:$J$4,0),TRUE)","v":1},{"$f":"VLOOKUP(OFFSET($B:$B,,MATCH(U$4,$B$4:$F$4,0)-1),OFFSET('C. PoC Adj Factor Scoring'!$E$5:$J$282,,MATCH(U$4,'C. PoC Adj Factor Scoring'!$E$3:$AH$3,0)-1),MATCH(U$2&\" Score\",'C. PoC Adj Factor Scoring'!$E$4:$J$4,0),TRUE)","v":1},{"$f":"VLOOKUP(OFFSET($B:$B,,MATCH(V$4,$B$4:$F$4,0)-1),OFFSET('C. PoC Adj Factor Scoring'!$E$5:$J$282,,MATCH(V$4,'C. PoC Adj Factor Scoring'!$E$3:$AH$3,0)-1),MATCH(V$2&\" Score\",'C. PoC Adj Factor Scoring'!$E$4:$J$4,0),TRUE)","v":1},{"$f":"VLOOKUP(OFFSET($B:$B,,MATCH(W$4,$B$4:$F$4,0)-1),OFFSET('C. PoC Adj Factor Scoring'!$E$5:$J$282,,MATCH(W$4,'C. PoC Adj Factor Scoring'!$E$3:$AH$3,0)-1),MATCH(W$2&\" Score\",'C. PoC Adj Factor Scoring'!$E$4:$J$4,0),TRUE)","v":1},{"$f":"VLOOKUP(OFFSET($B:$B,,MATCH(X$4,$B$4:$F$4,0)-1),OFFSET('C. PoC Adj Factor Scoring'!$E$5:$J$282,,MATCH(X$4,'C. PoC Adj Factor Scoring'!$E$3:$AH$3,0)-1),MATCH(X$2&\" Score\",'C. PoC Adj Factor Scoring'!$E$4:$J$4,0),TRUE)","v":1},{"$f":"VLOOKUP(OFFSET($B:$B,,MATCH(Y$4,$B$4:$F$4,0)-1),OFFSET('C. PoC Adj Factor Scoring'!$E$5:$J$282,,MATCH(Y$4,'C. PoC Adj Factor Scoring'!$E$3:$AH$3,0)-1),MATCH(Y$2&\" Score\",'C. PoC Adj Factor Scoring'!$E$4:$J$4,0),TRUE)","v":1},{"$f":"VLOOKUP(OFFSET($B:$B,,MATCH(Z$4,$B$4:$F$4,0)-1),OFFSET('C. PoC Adj Factor Scoring'!$E$5:$J$282,,MATCH(Z$4,'C. PoC Adj Factor Scoring'!$E$3:$AH$3,0)-1),MATCH(Z$2&\" Score\",'C. PoC Adj Factor Scoring'!$E$4:$J$4,0),TRUE)","v":1},{"$f":"VLOOKUP(OFFSET($B:$B,,MATCH(AA$4,$B$4:$F$4,0)-1),OFFSET('C. PoC Adj Factor Scoring'!$E$5:$J$282,,MATCH(AA$4,'C. PoC Adj Factor Scoring'!$E$3:$AH$3,0)-1),MATCH(AA$2&\" Score\",'C. PoC Adj Factor Scoring'!$E$4:$J$4,0),TRUE)","v":3},{"$f":"VLOOKUP(OFFSET($B:$B,,MATCH(AB$4,$B$4:$F$4,0)-1),OFFSET('C. PoC Adj Factor Scoring'!$E$5:$J$282,,MATCH(AB$4,'C. PoC Adj Factor Scoring'!$E$3:$AH$3,0)-1),MATCH(AB$2&\" Score\",'C. PoC Adj Factor Scoring'!$E$4:$J$4,0),TRUE)","v":1},{"$f":"VLOOKUP(OFFSET($B:$B,,MATCH(AC$4,$B$4:$F$4,0)-1),OFFSET('C. PoC Adj Factor Scoring'!$E$5:$J$282,,MATCH(AC$4,'C. PoC Adj Factor Scoring'!$E$3:$AH$3,0)-1),MATCH(AC$2&\" Score\",'C. PoC Adj Factor Scoring'!$E$4:$J$4,0),TRUE)","v":1},{"$f":"VLOOKUP(OFFSET($B:$B,,MATCH(AD$4,$B$4:$F$4,0)-1),OFFSET('C. PoC Adj Factor Scoring'!$E$5:$J$282,,MATCH(AD$4,'C. PoC Adj Factor Scoring'!$E$3:$AH$3,0)-1),MATCH(AD$2&\" Score\",'C. PoC Adj Factor Scoring'!$E$4:$J$4,0),TRUE)","v":1},{"$f":"VLOOKUP(OFFSET($B:$B,,MATCH(AE$4,$B$4:$F$4,0)-1),OFFSET('C. PoC Adj Factor Scoring'!$E$5:$J$282,,MATCH(AE$4,'C. PoC Adj Factor Scoring'!$E$3:$AH$3,0)-1),MATCH(AE$2&\" Score\",'C. PoC Adj Factor Scoring'!$E$4:$J$4,0),TRUE)","v":1}]
[{"$f":"'A. Population Info'!A425","v":1000410528},{"$f":"'A. Population Info'!L425","v":"OIL"},{"$f":"'A. Population Info'!M425","v":0},{"$f":"'A. Population Info'!N425","v":0},{"$f":"'A. Population Info'!O425","v":0},{"$f":"'A. Population Info'!P425","v":0},{"$f":"VLOOKUP(OFFSET($B:$B,,MATCH(G$4,$B$4:$F$4,0)-1),OFFSET('C. PoC Adj Factor Scoring'!$E$5:$J$282,,MATCH(G$4,'C. PoC Adj Factor Scoring'!$E$3:$AH$3,0)-1),MATCH(G$2&\" Score\",'C. PoC Adj Factor Scoring'!$E$4:$J$4,0),TRUE)","v":4},{"$f":"VLOOKUP(OFFSET($B:$B,,MATCH(H$4,$B$4:$F$4,0)-1),OFFSET('C. PoC Adj Factor Scoring'!$E$5:$J$282,,MATCH(H$4,'C. PoC Adj Factor Scoring'!$E$3:$AH$3,0)-1),MATCH(H$2&\" Score\",'C. PoC Adj Factor Scoring'!$E$4:$J$4,0),TRUE)","v":1},{"$f":"VLOOKUP(OFFSET($B:$B,,MATCH(I$4,$B$4:$F$4,0)-1),OFFSET('C. PoC Adj Factor Scoring'!$E$5:$J$282,,MATCH(I$4,'C. PoC Adj Factor Scoring'!$E$3:$AH$3,0)-1),MATCH(I$2&\" Score\",'C. PoC Adj Factor Scoring'!$E$4:$J$4,0),TRUE)","v":1},{"$f":"VLOOKUP(OFFSET($B:$B,,MATCH(J$4,$B$4:$F$4,0)-1),OFFSET('C. PoC Adj Factor Scoring'!$E$5:$J$282,,MATCH(J$4,'C. PoC Adj Factor Scoring'!$E$3:$AH$3,0)-1),MATCH(J$2&\" Score\",'C. PoC Adj Factor Scoring'!$E$4:$J$4,0),TRUE)","v":1},{"$f":"VLOOKUP(OFFSET($B:$B,,MATCH(K$4,$B$4:$F$4,0)-1),OFFSET('C. PoC Adj Factor Scoring'!$E$5:$J$282,,MATCH(K$4,'C. PoC Adj Factor Scoring'!$E$3:$AH$3,0)-1),MATCH(K$2&\" Score\",'C. PoC Adj Factor Scoring'!$E$4:$J$4,0),TRUE)","v":1},{"$f":"VLOOKUP(OFFSET($B:$B,,MATCH(L$4,$B$4:$F$4,0)-1),OFFSET('C. PoC Adj Factor Scoring'!$E$5:$J$282,,MATCH(L$4,'C. PoC Adj Factor Scoring'!$E$3:$AH$3,0)-1),MATCH(L$2&\" Score\",'C. PoC Adj Factor Scoring'!$E$4:$J$4,0),TRUE)","v":1},{"$f":"VLOOKUP(OFFSET($B:$B,,MATCH(M$4,$B$4:$F$4,0)-1),OFFSET('C. PoC Adj Factor Scoring'!$E$5:$J$282,,MATCH(M$4,'C. PoC Adj Factor Scoring'!$E$3:$AH$3,0)-1),MATCH(M$2&\" Score\",'C. PoC Adj Factor Scoring'!$E$4:$J$4,0),TRUE)","v":1},{"$f":"VLOOKUP(OFFSET($B:$B,,MATCH(N$4,$B$4:$F$4,0)-1),OFFSET('C. PoC Adj Factor Scoring'!$E$5:$J$282,,MATCH(N$4,'C. PoC Adj Factor Scoring'!$E$3:$AH$3,0)-1),MATCH(N$2&\" Score\",'C. PoC Adj Factor Scoring'!$E$4:$J$4,0),TRUE)","v":1},{"$f":"VLOOKUP(OFFSET($B:$B,,MATCH(O$4,$B$4:$F$4,0)-1),OFFSET('C. PoC Adj Factor Scoring'!$E$5:$J$282,,MATCH(O$4,'C. PoC Adj Factor Scoring'!$E$3:$AH$3,0)-1),MATCH(O$2&\" Score\",'C. PoC Adj Factor Scoring'!$E$4:$J$4,0),TRUE)","v":1},{"$f":"VLOOKUP(OFFSET($B:$B,,MATCH(P$4,$B$4:$F$4,0)-1),OFFSET('C. PoC Adj Factor Scoring'!$E$5:$J$282,,MATCH(P$4,'C. PoC Adj Factor Scoring'!$E$3:$AH$3,0)-1),MATCH(P$2&\" Score\",'C. PoC Adj Factor Scoring'!$E$4:$J$4,0),TRUE)","v":1},{"$f":"VLOOKUP(OFFSET($B:$B,,MATCH(Q$4,$B$4:$F$4,0)-1),OFFSET('C. PoC Adj Factor Scoring'!$E$5:$J$282,,MATCH(Q$4,'C. PoC Adj Factor Scoring'!$E$3:$AH$3,0)-1),MATCH(Q$2&\" Score\",'C. PoC Adj Factor Scoring'!$E$4:$J$4,0),TRUE)","v":1},{"$f":"VLOOKUP(OFFSET($B:$B,,MATCH(R$4,$B$4:$F$4,0)-1),OFFSET('C. PoC Adj Factor Scoring'!$E$5:$J$282,,MATCH(R$4,'C. PoC Adj Factor Scoring'!$E$3:$AH$3,0)-1),MATCH(R$2&\" Score\",'C. PoC Adj Factor Scoring'!$E$4:$J$4,0),TRUE)","v":1},{"$f":"VLOOKUP(OFFSET($B:$B,,MATCH(S$4,$B$4:$F$4,0)-1),OFFSET('C. PoC Adj Factor Scoring'!$E$5:$J$282,,MATCH(S$4,'C. PoC Adj Factor Scoring'!$E$3:$AH$3,0)-1),MATCH(S$2&\" Score\",'C. PoC Adj Factor Scoring'!$E$4:$J$4,0),TRUE)","v":1},{"$f":"VLOOKUP(OFFSET($B:$B,,MATCH(T$4,$B$4:$F$4,0)-1),OFFSET('C. PoC Adj Factor Scoring'!$E$5:$J$282,,MATCH(T$4,'C. PoC Adj Factor Scoring'!$E$3:$AH$3,0)-1),MATCH(T$2&\" Score\",'C. PoC Adj Factor Scoring'!$E$4:$J$4,0),TRUE)","v":1},{"$f":"VLOOKUP(OFFSET($B:$B,,MATCH(U$4,$B$4:$F$4,0)-1),OFFSET('C. PoC Adj Factor Scoring'!$E$5:$J$282,,MATCH(U$4,'C. PoC Adj Factor Scoring'!$E$3:$AH$3,0)-1),MATCH(U$2&\" Score\",'C. PoC Adj Factor Scoring'!$E$4:$J$4,0),TRUE)","v":1},{"$f":"VLOOKUP(OFFSET($B:$B,,MATCH(V$4,$B$4:$F$4,0)-1),OFFSET('C. PoC Adj Factor Scoring'!$E$5:$J$282,,MATCH(V$4,'C. PoC Adj Factor Scoring'!$E$3:$AH$3,0)-1),MATCH(V$2&\" Score\",'C. PoC Adj Factor Scoring'!$E$4:$J$4,0),TRUE)","v":1},{"$f":"VLOOKUP(OFFSET($B:$B,,MATCH(W$4,$B$4:$F$4,0)-1),OFFSET('C. PoC Adj Factor Scoring'!$E$5:$J$282,,MATCH(W$4,'C. PoC Adj Factor Scoring'!$E$3:$AH$3,0)-1),MATCH(W$2&\" Score\",'C. PoC Adj Factor Scoring'!$E$4:$J$4,0),TRUE)","v":1},{"$f":"VLOOKUP(OFFSET($B:$B,,MATCH(X$4,$B$4:$F$4,0)-1),OFFSET('C. PoC Adj Factor Scoring'!$E$5:$J$282,,MATCH(X$4,'C. PoC Adj Factor Scoring'!$E$3:$AH$3,0)-1),MATCH(X$2&\" Score\",'C. PoC Adj Factor Scoring'!$E$4:$J$4,0),TRUE)","v":1},{"$f":"VLOOKUP(OFFSET($B:$B,,MATCH(Y$4,$B$4:$F$4,0)-1),OFFSET('C. PoC Adj Factor Scoring'!$E$5:$J$282,,MATCH(Y$4,'C. PoC Adj Factor Scoring'!$E$3:$AH$3,0)-1),MATCH(Y$2&\" Score\",'C. PoC Adj Factor Scoring'!$E$4:$J$4,0),TRUE)","v":1},{"$f":"VLOOKUP(OFFSET($B:$B,,MATCH(Z$4,$B$4:$F$4,0)-1),OFFSET('C. PoC Adj Factor Scoring'!$E$5:$J$282,,MATCH(Z$4,'C. PoC Adj Factor Scoring'!$E$3:$AH$3,0)-1),MATCH(Z$2&\" Score\",'C. PoC Adj Factor Scoring'!$E$4:$J$4,0),TRUE)","v":1},{"$f":"VLOOKUP(OFFSET($B:$B,,MATCH(AA$4,$B$4:$F$4,0)-1),OFFSET('C. PoC Adj Factor Scoring'!$E$5:$J$282,,MATCH(AA$4,'C. PoC Adj Factor Scoring'!$E$3:$AH$3,0)-1),MATCH(AA$2&\" Score\",'C. PoC Adj Factor Scoring'!$E$4:$J$4,0),TRUE)","v":3},{"$f":"VLOOKUP(OFFSET($B:$B,,MATCH(AB$4,$B$4:$F$4,0)-1),OFFSET('C. PoC Adj Factor Scoring'!$E$5:$J$282,,MATCH(AB$4,'C. PoC Adj Factor Scoring'!$E$3:$AH$3,0)-1),MATCH(AB$2&\" Score\",'C. PoC Adj Factor Scoring'!$E$4:$J$4,0),TRUE)","v":1},{"$f":"VLOOKUP(OFFSET($B:$B,,MATCH(AC$4,$B$4:$F$4,0)-1),OFFSET('C. PoC Adj Factor Scoring'!$E$5:$J$282,,MATCH(AC$4,'C. PoC Adj Factor Scoring'!$E$3:$AH$3,0)-1),MATCH(AC$2&\" Score\",'C. PoC Adj Factor Scoring'!$E$4:$J$4,0),TRUE)","v":1},{"$f":"VLOOKUP(OFFSET($B:$B,,MATCH(AD$4,$B$4:$F$4,0)-1),OFFSET('C. PoC Adj Factor Scoring'!$E$5:$J$282,,MATCH(AD$4,'C. PoC Adj Factor Scoring'!$E$3:$AH$3,0)-1),MATCH(AD$2&\" Score\",'C. PoC Adj Factor Scoring'!$E$4:$J$4,0),TRUE)","v":1},{"$f":"VLOOKUP(OFFSET($B:$B,,MATCH(AE$4,$B$4:$F$4,0)-1),OFFSET('C. PoC Adj Factor Scoring'!$E$5:$J$282,,MATCH(AE$4,'C. PoC Adj Factor Scoring'!$E$3:$AH$3,0)-1),MATCH(AE$2&\" Score\",'C. PoC Adj Factor Scoring'!$E$4:$J$4,0),TRUE)","v":1}]
[{"$f":"'A. Population Info'!A426","v":1000410663},{"$f":"'A. Population Info'!L426","v":"OIL"},{"$f":"'A. Population Info'!M426","v":0},{"$f":"'A. Population Info'!N426","v":0},{"$f":"'A. Population Info'!O426","v":0},{"$f":"'A. Population Info'!P426","v":0},{"$f":"VLOOKUP(OFFSET($B:$B,,MATCH(G$4,$B$4:$F$4,0)-1),OFFSET('C. PoC Adj Factor Scoring'!$E$5:$J$282,,MATCH(G$4,'C. PoC Adj Factor Scoring'!$E$3:$AH$3,0)-1),MATCH(G$2&\" Score\",'C. PoC Adj Factor Scoring'!$E$4:$J$4,0),TRUE)","v":4},{"$f":"VLOOKUP(OFFSET($B:$B,,MATCH(H$4,$B$4:$F$4,0)-1),OFFSET('C. PoC Adj Factor Scoring'!$E$5:$J$282,,MATCH(H$4,'C. PoC Adj Factor Scoring'!$E$3:$AH$3,0)-1),MATCH(H$2&\" Score\",'C. PoC Adj Factor Scoring'!$E$4:$J$4,0),TRUE)","v":1},{"$f":"VLOOKUP(OFFSET($B:$B,,MATCH(I$4,$B$4:$F$4,0)-1),OFFSET('C. PoC Adj Factor Scoring'!$E$5:$J$282,,MATCH(I$4,'C. PoC Adj Factor Scoring'!$E$3:$AH$3,0)-1),MATCH(I$2&\" Score\",'C. PoC Adj Factor Scoring'!$E$4:$J$4,0),TRUE)","v":1},{"$f":"VLOOKUP(OFFSET($B:$B,,MATCH(J$4,$B$4:$F$4,0)-1),OFFSET('C. PoC Adj Factor Scoring'!$E$5:$J$282,,MATCH(J$4,'C. PoC Adj Factor Scoring'!$E$3:$AH$3,0)-1),MATCH(J$2&\" Score\",'C. PoC Adj Factor Scoring'!$E$4:$J$4,0),TRUE)","v":1},{"$f":"VLOOKUP(OFFSET($B:$B,,MATCH(K$4,$B$4:$F$4,0)-1),OFFSET('C. PoC Adj Factor Scoring'!$E$5:$J$282,,MATCH(K$4,'C. PoC Adj Factor Scoring'!$E$3:$AH$3,0)-1),MATCH(K$2&\" Score\",'C. PoC Adj Factor Scoring'!$E$4:$J$4,0),TRUE)","v":1},{"$f":"VLOOKUP(OFFSET($B:$B,,MATCH(L$4,$B$4:$F$4,0)-1),OFFSET('C. PoC Adj Factor Scoring'!$E$5:$J$282,,MATCH(L$4,'C. PoC Adj Factor Scoring'!$E$3:$AH$3,0)-1),MATCH(L$2&\" Score\",'C. PoC Adj Factor Scoring'!$E$4:$J$4,0),TRUE)","v":1},{"$f":"VLOOKUP(OFFSET($B:$B,,MATCH(M$4,$B$4:$F$4,0)-1),OFFSET('C. PoC Adj Factor Scoring'!$E$5:$J$282,,MATCH(M$4,'C. PoC Adj Factor Scoring'!$E$3:$AH$3,0)-1),MATCH(M$2&\" Score\",'C. PoC Adj Factor Scoring'!$E$4:$J$4,0),TRUE)","v":1},{"$f":"VLOOKUP(OFFSET($B:$B,,MATCH(N$4,$B$4:$F$4,0)-1),OFFSET('C. PoC Adj Factor Scoring'!$E$5:$J$282,,MATCH(N$4,'C. PoC Adj Factor Scoring'!$E$3:$AH$3,0)-1),MATCH(N$2&\" Score\",'C. PoC Adj Factor Scoring'!$E$4:$J$4,0),TRUE)","v":1},{"$f":"VLOOKUP(OFFSET($B:$B,,MATCH(O$4,$B$4:$F$4,0)-1),OFFSET('C. PoC Adj Factor Scoring'!$E$5:$J$282,,MATCH(O$4,'C. PoC Adj Factor Scoring'!$E$3:$AH$3,0)-1),MATCH(O$2&\" Score\",'C. PoC Adj Factor Scoring'!$E$4:$J$4,0),TRUE)","v":1},{"$f":"VLOOKUP(OFFSET($B:$B,,MATCH(P$4,$B$4:$F$4,0)-1),OFFSET('C. PoC Adj Factor Scoring'!$E$5:$J$282,,MATCH(P$4,'C. PoC Adj Factor Scoring'!$E$3:$AH$3,0)-1),MATCH(P$2&\" Score\",'C. PoC Adj Factor Scoring'!$E$4:$J$4,0),TRUE)","v":1},{"$f":"VLOOKUP(OFFSET($B:$B,,MATCH(Q$4,$B$4:$F$4,0)-1),OFFSET('C. PoC Adj Factor Scoring'!$E$5:$J$282,,MATCH(Q$4,'C. PoC Adj Factor Scoring'!$E$3:$AH$3,0)-1),MATCH(Q$2&\" Score\",'C. PoC Adj Factor Scoring'!$E$4:$J$4,0),TRUE)","v":1},{"$f":"VLOOKUP(OFFSET($B:$B,,MATCH(R$4,$B$4:$F$4,0)-1),OFFSET('C. PoC Adj Factor Scoring'!$E$5:$J$282,,MATCH(R$4,'C. PoC Adj Factor Scoring'!$E$3:$AH$3,0)-1),MATCH(R$2&\" Score\",'C. PoC Adj Factor Scoring'!$E$4:$J$4,0),TRUE)","v":1},{"$f":"VLOOKUP(OFFSET($B:$B,,MATCH(S$4,$B$4:$F$4,0)-1),OFFSET('C. PoC Adj Factor Scoring'!$E$5:$J$282,,MATCH(S$4,'C. PoC Adj Factor Scoring'!$E$3:$AH$3,0)-1),MATCH(S$2&\" Score\",'C. PoC Adj Factor Scoring'!$E$4:$J$4,0),TRUE)","v":1},{"$f":"VLOOKUP(OFFSET($B:$B,,MATCH(T$4,$B$4:$F$4,0)-1),OFFSET('C. PoC Adj Factor Scoring'!$E$5:$J$282,,MATCH(T$4,'C. PoC Adj Factor Scoring'!$E$3:$AH$3,0)-1),MATCH(T$2&\" Score\",'C. PoC Adj Factor Scoring'!$E$4:$J$4,0),TRUE)","v":1},{"$f":"VLOOKUP(OFFSET($B:$B,,MATCH(U$4,$B$4:$F$4,0)-1),OFFSET('C. PoC Adj Factor Scoring'!$E$5:$J$282,,MATCH(U$4,'C. PoC Adj Factor Scoring'!$E$3:$AH$3,0)-1),MATCH(U$2&\" Score\",'C. PoC Adj Factor Scoring'!$E$4:$J$4,0),TRUE)","v":1},{"$f":"VLOOKUP(OFFSET($B:$B,,MATCH(V$4,$B$4:$F$4,0)-1),OFFSET('C. PoC Adj Factor Scoring'!$E$5:$J$282,,MATCH(V$4,'C. PoC Adj Factor Scoring'!$E$3:$AH$3,0)-1),MATCH(V$2&\" Score\",'C. PoC Adj Factor Scoring'!$E$4:$J$4,0),TRUE)","v":1},{"$f":"VLOOKUP(OFFSET($B:$B,,MATCH(W$4,$B$4:$F$4,0)-1),OFFSET('C. PoC Adj Factor Scoring'!$E$5:$J$282,,MATCH(W$4,'C. PoC Adj Factor Scoring'!$E$3:$AH$3,0)-1),MATCH(W$2&\" Score\",'C. PoC Adj Factor Scoring'!$E$4:$J$4,0),TRUE)","v":1},{"$f":"VLOOKUP(OFFSET($B:$B,,MATCH(X$4,$B$4:$F$4,0)-1),OFFSET('C. PoC Adj Factor Scoring'!$E$5:$J$282,,MATCH(X$4,'C. PoC Adj Factor Scoring'!$E$3:$AH$3,0)-1),MATCH(X$2&\" Score\",'C. PoC Adj Factor Scoring'!$E$4:$J$4,0),TRUE)","v":1},{"$f":"VLOOKUP(OFFSET($B:$B,,MATCH(Y$4,$B$4:$F$4,0)-1),OFFSET('C. PoC Adj Factor Scoring'!$E$5:$J$282,,MATCH(Y$4,'C. PoC Adj Factor Scoring'!$E$3:$AH$3,0)-1),MATCH(Y$2&\" Score\",'C. PoC Adj Factor Scoring'!$E$4:$J$4,0),TRUE)","v":1},{"$f":"VLOOKUP(OFFSET($B:$B,,MATCH(Z$4,$B$4:$F$4,0)-1),OFFSET('C. PoC Adj Factor Scoring'!$E$5:$J$282,,MATCH(Z$4,'C. PoC Adj Factor Scoring'!$E$3:$AH$3,0)-1),MATCH(Z$2&\" Score\",'C. PoC Adj Factor Scoring'!$E$4:$J$4,0),TRUE)","v":1},{"$f":"VLOOKUP(OFFSET($B:$B,,MATCH(AA$4,$B$4:$F$4,0)-1),OFFSET('C. PoC Adj Factor Scoring'!$E$5:$J$282,,MATCH(AA$4,'C. PoC Adj Factor Scoring'!$E$3:$AH$3,0)-1),MATCH(AA$2&\" Score\",'C. PoC Adj Factor Scoring'!$E$4:$J$4,0),TRUE)","v":3},{"$f":"VLOOKUP(OFFSET($B:$B,,MATCH(AB$4,$B$4:$F$4,0)-1),OFFSET('C. PoC Adj Factor Scoring'!$E$5:$J$282,,MATCH(AB$4,'C. PoC Adj Factor Scoring'!$E$3:$AH$3,0)-1),MATCH(AB$2&\" Score\",'C. PoC Adj Factor Scoring'!$E$4:$J$4,0),TRUE)","v":1},{"$f":"VLOOKUP(OFFSET($B:$B,,MATCH(AC$4,$B$4:$F$4,0)-1),OFFSET('C. PoC Adj Factor Scoring'!$E$5:$J$282,,MATCH(AC$4,'C. PoC Adj Factor Scoring'!$E$3:$AH$3,0)-1),MATCH(AC$2&\" Score\",'C. PoC Adj Factor Scoring'!$E$4:$J$4,0),TRUE)","v":1},{"$f":"VLOOKUP(OFFSET($B:$B,,MATCH(AD$4,$B$4:$F$4,0)-1),OFFSET('C. PoC Adj Factor Scoring'!$E$5:$J$282,,MATCH(AD$4,'C. PoC Adj Factor Scoring'!$E$3:$AH$3,0)-1),MATCH(AD$2&\" Score\",'C. PoC Adj Factor Scoring'!$E$4:$J$4,0),TRUE)","v":1},{"$f":"VLOOKUP(OFFSET($B:$B,,MATCH(AE$4,$B$4:$F$4,0)-1),OFFSET('C. PoC Adj Factor Scoring'!$E$5:$J$282,,MATCH(AE$4,'C. PoC Adj Factor Scoring'!$E$3:$AH$3,0)-1),MATCH(AE$2&\" Score\",'C. PoC Adj Factor Scoring'!$E$4:$J$4,0),TRUE)","v":1}]
[{"$f":"'A. Population Info'!A427","v":1000410716},{"$f":"'A. Population Info'!L427","v":"OIL"},{"$f":"'A. Population Info'!M427","v":0},{"$f":"'A. Population Info'!N427","v":0},{"$f":"'A. Population Info'!O427","v":0},{"$f":"'A. Population Info'!P427","v":0},{"$f":"VLOOKUP(OFFSET($B:$B,,MATCH(G$4,$B$4:$F$4,0)-1),OFFSET('C. PoC Adj Factor Scoring'!$E$5:$J$282,,MATCH(G$4,'C. PoC Adj Factor Scoring'!$E$3:$AH$3,0)-1),MATCH(G$2&\" Score\",'C. PoC Adj Factor Scoring'!$E$4:$J$4,0),TRUE)","v":4},{"$f":"VLOOKUP(OFFSET($B:$B,,MATCH(H$4,$B$4:$F$4,0)-1),OFFSET('C. PoC Adj Factor Scoring'!$E$5:$J$282,,MATCH(H$4,'C. PoC Adj Factor Scoring'!$E$3:$AH$3,0)-1),MATCH(H$2&\" Score\",'C. PoC Adj Factor Scoring'!$E$4:$J$4,0),TRUE)","v":1},{"$f":"VLOOKUP(OFFSET($B:$B,,MATCH(I$4,$B$4:$F$4,0)-1),OFFSET('C. PoC Adj Factor Scoring'!$E$5:$J$282,,MATCH(I$4,'C. PoC Adj Factor Scoring'!$E$3:$AH$3,0)-1),MATCH(I$2&\" Score\",'C. PoC Adj Factor Scoring'!$E$4:$J$4,0),TRUE)","v":1},{"$f":"VLOOKUP(OFFSET($B:$B,,MATCH(J$4,$B$4:$F$4,0)-1),OFFSET('C. PoC Adj Factor Scoring'!$E$5:$J$282,,MATCH(J$4,'C. PoC Adj Factor Scoring'!$E$3:$AH$3,0)-1),MATCH(J$2&\" Score\",'C. PoC Adj Factor Scoring'!$E$4:$J$4,0),TRUE)","v":1},{"$f":"VLOOKUP(OFFSET($B:$B,,MATCH(K$4,$B$4:$F$4,0)-1),OFFSET('C. PoC Adj Factor Scoring'!$E$5:$J$282,,MATCH(K$4,'C. PoC Adj Factor Scoring'!$E$3:$AH$3,0)-1),MATCH(K$2&\" Score\",'C. PoC Adj Factor Scoring'!$E$4:$J$4,0),TRUE)","v":1},{"$f":"VLOOKUP(OFFSET($B:$B,,MATCH(L$4,$B$4:$F$4,0)-1),OFFSET('C. PoC Adj Factor Scoring'!$E$5:$J$282,,MATCH(L$4,'C. PoC Adj Factor Scoring'!$E$3:$AH$3,0)-1),MATCH(L$2&\" Score\",'C. PoC Adj Factor Scoring'!$E$4:$J$4,0),TRUE)","v":1},{"$f":"VLOOKUP(OFFSET($B:$B,,MATCH(M$4,$B$4:$F$4,0)-1),OFFSET('C. PoC Adj Factor Scoring'!$E$5:$J$282,,MATCH(M$4,'C. PoC Adj Factor Scoring'!$E$3:$AH$3,0)-1),MATCH(M$2&\" Score\",'C. PoC Adj Factor Scoring'!$E$4:$J$4,0),TRUE)","v":1},{"$f":"VLOOKUP(OFFSET($B:$B,,MATCH(N$4,$B$4:$F$4,0)-1),OFFSET('C. PoC Adj Factor Scoring'!$E$5:$J$282,,MATCH(N$4,'C. PoC Adj Factor Scoring'!$E$3:$AH$3,0)-1),MATCH(N$2&\" Score\",'C. PoC Adj Factor Scoring'!$E$4:$J$4,0),TRUE)","v":1},{"$f":"VLOOKUP(OFFSET($B:$B,,MATCH(O$4,$B$4:$F$4,0)-1),OFFSET('C. PoC Adj Factor Scoring'!$E$5:$J$282,,MATCH(O$4,'C. PoC Adj Factor Scoring'!$E$3:$AH$3,0)-1),MATCH(O$2&\" Score\",'C. PoC Adj Factor Scoring'!$E$4:$J$4,0),TRUE)","v":1},{"$f":"VLOOKUP(OFFSET($B:$B,,MATCH(P$4,$B$4:$F$4,0)-1),OFFSET('C. PoC Adj Factor Scoring'!$E$5:$J$282,,MATCH(P$4,'C. PoC Adj Factor Scoring'!$E$3:$AH$3,0)-1),MATCH(P$2&\" Score\",'C. PoC Adj Factor Scoring'!$E$4:$J$4,0),TRUE)","v":1},{"$f":"VLOOKUP(OFFSET($B:$B,,MATCH(Q$4,$B$4:$F$4,0)-1),OFFSET('C. PoC Adj Factor Scoring'!$E$5:$J$282,,MATCH(Q$4,'C. PoC Adj Factor Scoring'!$E$3:$AH$3,0)-1),MATCH(Q$2&\" Score\",'C. PoC Adj Factor Scoring'!$E$4:$J$4,0),TRUE)","v":1},{"$f":"VLOOKUP(OFFSET($B:$B,,MATCH(R$4,$B$4:$F$4,0)-1),OFFSET('C. PoC Adj Factor Scoring'!$E$5:$J$282,,MATCH(R$4,'C. PoC Adj Factor Scoring'!$E$3:$AH$3,0)-1),MATCH(R$2&\" Score\",'C. PoC Adj Factor Scoring'!$E$4:$J$4,0),TRUE)","v":1},{"$f":"VLOOKUP(OFFSET($B:$B,,MATCH(S$4,$B$4:$F$4,0)-1),OFFSET('C. PoC Adj Factor Scoring'!$E$5:$J$282,,MATCH(S$4,'C. PoC Adj Factor Scoring'!$E$3:$AH$3,0)-1),MATCH(S$2&\" Score\",'C. PoC Adj Factor Scoring'!$E$4:$J$4,0),TRUE)","v":1},{"$f":"VLOOKUP(OFFSET($B:$B,,MATCH(T$4,$B$4:$F$4,0)-1),OFFSET('C. PoC Adj Factor Scoring'!$E$5:$J$282,,MATCH(T$4,'C. PoC Adj Factor Scoring'!$E$3:$AH$3,0)-1),MATCH(T$2&\" Score\",'C. PoC Adj Factor Scoring'!$E$4:$J$4,0),TRUE)","v":1},{"$f":"VLOOKUP(OFFSET($B:$B,,MATCH(U$4,$B$4:$F$4,0)-1),OFFSET('C. PoC Adj Factor Scoring'!$E$5:$J$282,,MATCH(U$4,'C. PoC Adj Factor Scoring'!$E$3:$AH$3,0)-1),MATCH(U$2&\" Score\",'C. PoC Adj Factor Scoring'!$E$4:$J$4,0),TRUE)","v":1},{"$f":"VLOOKUP(OFFSET($B:$B,,MATCH(V$4,$B$4:$F$4,0)-1),OFFSET('C. PoC Adj Factor Scoring'!$E$5:$J$282,,MATCH(V$4,'C. PoC Adj Factor Scoring'!$E$3:$AH$3,0)-1),MATCH(V$2&\" Score\",'C. PoC Adj Factor Scoring'!$E$4:$J$4,0),TRUE)","v":1},{"$f":"VLOOKUP(OFFSET($B:$B,,MATCH(W$4,$B$4:$F$4,0)-1),OFFSET('C. PoC Adj Factor Scoring'!$E$5:$J$282,,MATCH(W$4,'C. PoC Adj Factor Scoring'!$E$3:$AH$3,0)-1),MATCH(W$2&\" Score\",'C. PoC Adj Factor Scoring'!$E$4:$J$4,0),TRUE)","v":1},{"$f":"VLOOKUP(OFFSET($B:$B,,MATCH(X$4,$B$4:$F$4,0)-1),OFFSET('C. PoC Adj Factor Scoring'!$E$5:$J$282,,MATCH(X$4,'C. PoC Adj Factor Scoring'!$E$3:$AH$3,0)-1),MATCH(X$2&\" Score\",'C. PoC Adj Factor Scoring'!$E$4:$J$4,0),TRUE)","v":1},{"$f":"VLOOKUP(OFFSET($B:$B,,MATCH(Y$4,$B$4:$F$4,0)-1),OFFSET('C. PoC Adj Factor Scoring'!$E$5:$J$282,,MATCH(Y$4,'C. PoC Adj Factor Scoring'!$E$3:$AH$3,0)-1),MATCH(Y$2&\" Score\",'C. PoC Adj Factor Scoring'!$E$4:$J$4,0),TRUE)","v":1},{"$f":"VLOOKUP(OFFSET($B:$B,,MATCH(Z$4,$B$4:$F$4,0)-1),OFFSET('C. PoC Adj Factor Scoring'!$E$5:$J$282,,MATCH(Z$4,'C. PoC Adj Factor Scoring'!$E$3:$AH$3,0)-1),MATCH(Z$2&\" Score\",'C. PoC Adj Factor Scoring'!$E$4:$J$4,0),TRUE)","v":1},{"$f":"VLOOKUP(OFFSET($B:$B,,MATCH(AA$4,$B$4:$F$4,0)-1),OFFSET('C. PoC Adj Factor Scoring'!$E$5:$J$282,,MATCH(AA$4,'C. PoC Adj Factor Scoring'!$E$3:$AH$3,0)-1),MATCH(AA$2&\" Score\",'C. PoC Adj Factor Scoring'!$E$4:$J$4,0),TRUE)","v":3},{"$f":"VLOOKUP(OFFSET($B:$B,,MATCH(AB$4,$B$4:$F$4,0)-1),OFFSET('C. PoC Adj Factor Scoring'!$E$5:$J$282,,MATCH(AB$4,'C. PoC Adj Factor Scoring'!$E$3:$AH$3,0)-1),MATCH(AB$2&\" Score\",'C. PoC Adj Factor Scoring'!$E$4:$J$4,0),TRUE)","v":1},{"$f":"VLOOKUP(OFFSET($B:$B,,MATCH(AC$4,$B$4:$F$4,0)-1),OFFSET('C. PoC Adj Factor Scoring'!$E$5:$J$282,,MATCH(AC$4,'C. PoC Adj Factor Scoring'!$E$3:$AH$3,0)-1),MATCH(AC$2&\" Score\",'C. PoC Adj Factor Scoring'!$E$4:$J$4,0),TRUE)","v":1},{"$f":"VLOOKUP(OFFSET($B:$B,,MATCH(AD$4,$B$4:$F$4,0)-1),OFFSET('C. PoC Adj Factor Scoring'!$E$5:$J$282,,MATCH(AD$4,'C. PoC Adj Factor Scoring'!$E$3:$AH$3,0)-1),MATCH(AD$2&\" Score\",'C. PoC Adj Factor Scoring'!$E$4:$J$4,0),TRUE)","v":1},{"$f":"VLOOKUP(OFFSET($B:$B,,MATCH(AE$4,$B$4:$F$4,0)-1),OFFSET('C. PoC Adj Factor Scoring'!$E$5:$J$282,,MATCH(AE$4,'C. PoC Adj Factor Scoring'!$E$3:$AH$3,0)-1),MATCH(AE$2&\" Score\",'C. PoC Adj Factor Scoring'!$E$4:$J$4,0),TRUE)","v":1}]
[{"$f":"'A. Population Info'!A428","v":1000410735},{"$f":"'A. Population Info'!L428","v":"OIL"},{"$f":"'A. Population Info'!M428","v":0},{"$f":"'A. Population Info'!N428","v":0},{"$f":"'A. Population Info'!O428","v":0},{"$f":"'A. Population Info'!P428","v":0},{"$f":"VLOOKUP(OFFSET($B:$B,,MATCH(G$4,$B$4:$F$4,0)-1),OFFSET('C. PoC Adj Factor Scoring'!$E$5:$J$282,,MATCH(G$4,'C. PoC Adj Factor Scoring'!$E$3:$AH$3,0)-1),MATCH(G$2&\" Score\",'C. PoC Adj Factor Scoring'!$E$4:$J$4,0),TRUE)","v":4},{"$f":"VLOOKUP(OFFSET($B:$B,,MATCH(H$4,$B$4:$F$4,0)-1),OFFSET('C. PoC Adj Factor Scoring'!$E$5:$J$282,,MATCH(H$4,'C. PoC Adj Factor Scoring'!$E$3:$AH$3,0)-1),MATCH(H$2&\" Score\",'C. PoC Adj Factor Scoring'!$E$4:$J$4,0),TRUE)","v":1},{"$f":"VLOOKUP(OFFSET($B:$B,,MATCH(I$4,$B$4:$F$4,0)-1),OFFSET('C. PoC Adj Factor Scoring'!$E$5:$J$282,,MATCH(I$4,'C. PoC Adj Factor Scoring'!$E$3:$AH$3,0)-1),MATCH(I$2&\" Score\",'C. PoC Adj Factor Scoring'!$E$4:$J$4,0),TRUE)","v":1},{"$f":"VLOOKUP(OFFSET($B:$B,,MATCH(J$4,$B$4:$F$4,0)-1),OFFSET('C. PoC Adj Factor Scoring'!$E$5:$J$282,,MATCH(J$4,'C. PoC Adj Factor Scoring'!$E$3:$AH$3,0)-1),MATCH(J$2&\" Score\",'C. PoC Adj Factor Scoring'!$E$4:$J$4,0),TRUE)","v":1},{"$f":"VLOOKUP(OFFSET($B:$B,,MATCH(K$4,$B$4:$F$4,0)-1),OFFSET('C. PoC Adj Factor Scoring'!$E$5:$J$282,,MATCH(K$4,'C. PoC Adj Factor Scoring'!$E$3:$AH$3,0)-1),MATCH(K$2&\" Score\",'C. PoC Adj Factor Scoring'!$E$4:$J$4,0),TRUE)","v":1},{"$f":"VLOOKUP(OFFSET($B:$B,,MATCH(L$4,$B$4:$F$4,0)-1),OFFSET('C. PoC Adj Factor Scoring'!$E$5:$J$282,,MATCH(L$4,'C. PoC Adj Factor Scoring'!$E$3:$AH$3,0)-1),MATCH(L$2&\" Score\",'C. PoC Adj Factor Scoring'!$E$4:$J$4,0),TRUE)","v":1},{"$f":"VLOOKUP(OFFSET($B:$B,,MATCH(M$4,$B$4:$F$4,0)-1),OFFSET('C. PoC Adj Factor Scoring'!$E$5:$J$282,,MATCH(M$4,'C. PoC Adj Factor Scoring'!$E$3:$AH$3,0)-1),MATCH(M$2&\" Score\",'C. PoC Adj Factor Scoring'!$E$4:$J$4,0),TRUE)","v":1},{"$f":"VLOOKUP(OFFSET($B:$B,,MATCH(N$4,$B$4:$F$4,0)-1),OFFSET('C. PoC Adj Factor Scoring'!$E$5:$J$282,,MATCH(N$4,'C. PoC Adj Factor Scoring'!$E$3:$AH$3,0)-1),MATCH(N$2&\" Score\",'C. PoC Adj Factor Scoring'!$E$4:$J$4,0),TRUE)","v":1},{"$f":"VLOOKUP(OFFSET($B:$B,,MATCH(O$4,$B$4:$F$4,0)-1),OFFSET('C. PoC Adj Factor Scoring'!$E$5:$J$282,,MATCH(O$4,'C. PoC Adj Factor Scoring'!$E$3:$AH$3,0)-1),MATCH(O$2&\" Score\",'C. PoC Adj Factor Scoring'!$E$4:$J$4,0),TRUE)","v":1},{"$f":"VLOOKUP(OFFSET($B:$B,,MATCH(P$4,$B$4:$F$4,0)-1),OFFSET('C. PoC Adj Factor Scoring'!$E$5:$J$282,,MATCH(P$4,'C. PoC Adj Factor Scoring'!$E$3:$AH$3,0)-1),MATCH(P$2&\" Score\",'C. PoC Adj Factor Scoring'!$E$4:$J$4,0),TRUE)","v":1},{"$f":"VLOOKUP(OFFSET($B:$B,,MATCH(Q$4,$B$4:$F$4,0)-1),OFFSET('C. PoC Adj Factor Scoring'!$E$5:$J$282,,MATCH(Q$4,'C. PoC Adj Factor Scoring'!$E$3:$AH$3,0)-1),MATCH(Q$2&\" Score\",'C. PoC Adj Factor Scoring'!$E$4:$J$4,0),TRUE)","v":1},{"$f":"VLOOKUP(OFFSET($B:$B,,MATCH(R$4,$B$4:$F$4,0)-1),OFFSET('C. PoC Adj Factor Scoring'!$E$5:$J$282,,MATCH(R$4,'C. PoC Adj Factor Scoring'!$E$3:$AH$3,0)-1),MATCH(R$2&\" Score\",'C. PoC Adj Factor Scoring'!$E$4:$J$4,0),TRUE)","v":1},{"$f":"VLOOKUP(OFFSET($B:$B,,MATCH(S$4,$B$4:$F$4,0)-1),OFFSET('C. PoC Adj Factor Scoring'!$E$5:$J$282,,MATCH(S$4,'C. PoC Adj Factor Scoring'!$E$3:$AH$3,0)-1),MATCH(S$2&\" Score\",'C. PoC Adj Factor Scoring'!$E$4:$J$4,0),TRUE)","v":1},{"$f":"VLOOKUP(OFFSET($B:$B,,MATCH(T$4,$B$4:$F$4,0)-1),OFFSET('C. PoC Adj Factor Scoring'!$E$5:$J$282,,MATCH(T$4,'C. PoC Adj Factor Scoring'!$E$3:$AH$3,0)-1),MATCH(T$2&\" Score\",'C. PoC Adj Factor Scoring'!$E$4:$J$4,0),TRUE)","v":1},{"$f":"VLOOKUP(OFFSET($B:$B,,MATCH(U$4,$B$4:$F$4,0)-1),OFFSET('C. PoC Adj Factor Scoring'!$E$5:$J$282,,MATCH(U$4,'C. PoC Adj Factor Scoring'!$E$3:$AH$3,0)-1),MATCH(U$2&\" Score\",'C. PoC Adj Factor Scoring'!$E$4:$J$4,0),TRUE)","v":1},{"$f":"VLOOKUP(OFFSET($B:$B,,MATCH(V$4,$B$4:$F$4,0)-1),OFFSET('C. PoC Adj Factor Scoring'!$E$5:$J$282,,MATCH(V$4,'C. PoC Adj Factor Scoring'!$E$3:$AH$3,0)-1),MATCH(V$2&\" Score\",'C. PoC Adj Factor Scoring'!$E$4:$J$4,0),TRUE)","v":1},{"$f":"VLOOKUP(OFFSET($B:$B,,MATCH(W$4,$B$4:$F$4,0)-1),OFFSET('C. PoC Adj Factor Scoring'!$E$5:$J$282,,MATCH(W$4,'C. PoC Adj Factor Scoring'!$E$3:$AH$3,0)-1),MATCH(W$2&\" Score\",'C. PoC Adj Factor Scoring'!$E$4:$J$4,0),TRUE)","v":1},{"$f":"VLOOKUP(OFFSET($B:$B,,MATCH(X$4,$B$4:$F$4,0)-1),OFFSET('C. PoC Adj Factor Scoring'!$E$5:$J$282,,MATCH(X$4,'C. PoC Adj Factor Scoring'!$E$3:$AH$3,0)-1),MATCH(X$2&\" Score\",'C. PoC Adj Factor Scoring'!$E$4:$J$4,0),TRUE)","v":1},{"$f":"VLOOKUP(OFFSET($B:$B,,MATCH(Y$4,$B$4:$F$4,0)-1),OFFSET('C. PoC Adj Factor Scoring'!$E$5:$J$282,,MATCH(Y$4,'C. PoC Adj Factor Scoring'!$E$3:$AH$3,0)-1),MATCH(Y$2&\" Score\",'C. PoC Adj Factor Scoring'!$E$4:$J$4,0),TRUE)","v":1},{"$f":"VLOOKUP(OFFSET($B:$B,,MATCH(Z$4,$B$4:$F$4,0)-1),OFFSET('C. PoC Adj Factor Scoring'!$E$5:$J$282,,MATCH(Z$4,'C. PoC Adj Factor Scoring'!$E$3:$AH$3,0)-1),MATCH(Z$2&\" Score\",'C. PoC Adj Factor Scoring'!$E$4:$J$4,0),TRUE)","v":1},{"$f":"VLOOKUP(OFFSET($B:$B,,MATCH(AA$4,$B$4:$F$4,0)-1),OFFSET('C. PoC Adj Factor Scoring'!$E$5:$J$282,,MATCH(AA$4,'C. PoC Adj Factor Scoring'!$E$3:$AH$3,0)-1),MATCH(AA$2&\" Score\",'C. PoC Adj Factor Scoring'!$E$4:$J$4,0),TRUE)","v":3},{"$f":"VLOOKUP(OFFSET($B:$B,,MATCH(AB$4,$B$4:$F$4,0)-1),OFFSET('C. PoC Adj Factor Scoring'!$E$5:$J$282,,MATCH(AB$4,'C. PoC Adj Factor Scoring'!$E$3:$AH$3,0)-1),MATCH(AB$2&\" Score\",'C. PoC Adj Factor Scoring'!$E$4:$J$4,0),TRUE)","v":1},{"$f":"VLOOKUP(OFFSET($B:$B,,MATCH(AC$4,$B$4:$F$4,0)-1),OFFSET('C. PoC Adj Factor Scoring'!$E$5:$J$282,,MATCH(AC$4,'C. PoC Adj Factor Scoring'!$E$3:$AH$3,0)-1),MATCH(AC$2&\" Score\",'C. PoC Adj Factor Scoring'!$E$4:$J$4,0),TRUE)","v":1},{"$f":"VLOOKUP(OFFSET($B:$B,,MATCH(AD$4,$B$4:$F$4,0)-1),OFFSET('C. PoC Adj Factor Scoring'!$E$5:$J$282,,MATCH(AD$4,'C. PoC Adj Factor Scoring'!$E$3:$AH$3,0)-1),MATCH(AD$2&\" Score\",'C. PoC Adj Factor Scoring'!$E$4:$J$4,0),TRUE)","v":1},{"$f":"VLOOKUP(OFFSET($B:$B,,MATCH(AE$4,$B$4:$F$4,0)-1),OFFSET('C. PoC Adj Factor Scoring'!$E$5:$J$282,,MATCH(AE$4,'C. PoC Adj Factor Scoring'!$E$3:$AH$3,0)-1),MATCH(AE$2&\" Score\",'C. PoC Adj Factor Scoring'!$E$4:$J$4,0),TRUE)","v":1}]
[{"$f":"'A. Population Info'!A429","v":1000410772},{"$f":"'A. Population Info'!L429","v":"OIL"},{"$f":"'A. Population Info'!M429","v":0},{"$f":"'A. Population Info'!N429","v":0},{"$f":"'A. Population Info'!O429","v":0},{"$f":"'A. Population Info'!P429","v":0},{"$f":"VLOOKUP(OFFSET($B:$B,,MATCH(G$4,$B$4:$F$4,0)-1),OFFSET('C. PoC Adj Factor Scoring'!$E$5:$J$282,,MATCH(G$4,'C. PoC Adj Factor Scoring'!$E$3:$AH$3,0)-1),MATCH(G$2&\" Score\",'C. PoC Adj Factor Scoring'!$E$4:$J$4,0),TRUE)","v":4},{"$f":"VLOOKUP(OFFSET($B:$B,,MATCH(H$4,$B$4:$F$4,0)-1),OFFSET('C. PoC Adj Factor Scoring'!$E$5:$J$282,,MATCH(H$4,'C. PoC Adj Factor Scoring'!$E$3:$AH$3,0)-1),MATCH(H$2&\" Score\",'C. PoC Adj Factor Scoring'!$E$4:$J$4,0),TRUE)","v":1},{"$f":"VLOOKUP(OFFSET($B:$B,,MATCH(I$4,$B$4:$F$4,0)-1),OFFSET('C. PoC Adj Factor Scoring'!$E$5:$J$282,,MATCH(I$4,'C. PoC Adj Factor Scoring'!$E$3:$AH$3,0)-1),MATCH(I$2&\" Score\",'C. PoC Adj Factor Scoring'!$E$4:$J$4,0),TRUE)","v":1},{"$f":"VLOOKUP(OFFSET($B:$B,,MATCH(J$4,$B$4:$F$4,0)-1),OFFSET('C. PoC Adj Factor Scoring'!$E$5:$J$282,,MATCH(J$4,'C. PoC Adj Factor Scoring'!$E$3:$AH$3,0)-1),MATCH(J$2&\" Score\",'C. PoC Adj Factor Scoring'!$E$4:$J$4,0),TRUE)","v":1},{"$f":"VLOOKUP(OFFSET($B:$B,,MATCH(K$4,$B$4:$F$4,0)-1),OFFSET('C. PoC Adj Factor Scoring'!$E$5:$J$282,,MATCH(K$4,'C. PoC Adj Factor Scoring'!$E$3:$AH$3,0)-1),MATCH(K$2&\" Score\",'C. PoC Adj Factor Scoring'!$E$4:$J$4,0),TRUE)","v":1},{"$f":"VLOOKUP(OFFSET($B:$B,,MATCH(L$4,$B$4:$F$4,0)-1),OFFSET('C. PoC Adj Factor Scoring'!$E$5:$J$282,,MATCH(L$4,'C. PoC Adj Factor Scoring'!$E$3:$AH$3,0)-1),MATCH(L$2&\" Score\",'C. PoC Adj Factor Scoring'!$E$4:$J$4,0),TRUE)","v":1},{"$f":"VLOOKUP(OFFSET($B:$B,,MATCH(M$4,$B$4:$F$4,0)-1),OFFSET('C. PoC Adj Factor Scoring'!$E$5:$J$282,,MATCH(M$4,'C. PoC Adj Factor Scoring'!$E$3:$AH$3,0)-1),MATCH(M$2&\" Score\",'C. PoC Adj Factor Scoring'!$E$4:$J$4,0),TRUE)","v":1},{"$f":"VLOOKUP(OFFSET($B:$B,,MATCH(N$4,$B$4:$F$4,0)-1),OFFSET('C. PoC Adj Factor Scoring'!$E$5:$J$282,,MATCH(N$4,'C. PoC Adj Factor Scoring'!$E$3:$AH$3,0)-1),MATCH(N$2&\" Score\",'C. PoC Adj Factor Scoring'!$E$4:$J$4,0),TRUE)","v":1},{"$f":"VLOOKUP(OFFSET($B:$B,,MATCH(O$4,$B$4:$F$4,0)-1),OFFSET('C. PoC Adj Factor Scoring'!$E$5:$J$282,,MATCH(O$4,'C. PoC Adj Factor Scoring'!$E$3:$AH$3,0)-1),MATCH(O$2&\" Score\",'C. PoC Adj Factor Scoring'!$E$4:$J$4,0),TRUE)","v":1},{"$f":"VLOOKUP(OFFSET($B:$B,,MATCH(P$4,$B$4:$F$4,0)-1),OFFSET('C. PoC Adj Factor Scoring'!$E$5:$J$282,,MATCH(P$4,'C. PoC Adj Factor Scoring'!$E$3:$AH$3,0)-1),MATCH(P$2&\" Score\",'C. PoC Adj Factor Scoring'!$E$4:$J$4,0),TRUE)","v":1},{"$f":"VLOOKUP(OFFSET($B:$B,,MATCH(Q$4,$B$4:$F$4,0)-1),OFFSET('C. PoC Adj Factor Scoring'!$E$5:$J$282,,MATCH(Q$4,'C. PoC Adj Factor Scoring'!$E$3:$AH$3,0)-1),MATCH(Q$2&\" Score\",'C. PoC Adj Factor Scoring'!$E$4:$J$4,0),TRUE)","v":1},{"$f":"VLOOKUP(OFFSET($B:$B,,MATCH(R$4,$B$4:$F$4,0)-1),OFFSET('C. PoC Adj Factor Scoring'!$E$5:$J$282,,MATCH(R$4,'C. PoC Adj Factor Scoring'!$E$3:$AH$3,0)-1),MATCH(R$2&\" Score\",'C. PoC Adj Factor Scoring'!$E$4:$J$4,0),TRUE)","v":1},{"$f":"VLOOKUP(OFFSET($B:$B,,MATCH(S$4,$B$4:$F$4,0)-1),OFFSET('C. PoC Adj Factor Scoring'!$E$5:$J$282,,MATCH(S$4,'C. PoC Adj Factor Scoring'!$E$3:$AH$3,0)-1),MATCH(S$2&\" Score\",'C. PoC Adj Factor Scoring'!$E$4:$J$4,0),TRUE)","v":1},{"$f":"VLOOKUP(OFFSET($B:$B,,MATCH(T$4,$B$4:$F$4,0)-1),OFFSET('C. PoC Adj Factor Scoring'!$E$5:$J$282,,MATCH(T$4,'C. PoC Adj Factor Scoring'!$E$3:$AH$3,0)-1),MATCH(T$2&\" Score\",'C. PoC Adj Factor Scoring'!$E$4:$J$4,0),TRUE)","v":1},{"$f":"VLOOKUP(OFFSET($B:$B,,MATCH(U$4,$B$4:$F$4,0)-1),OFFSET('C. PoC Adj Factor Scoring'!$E$5:$J$282,,MATCH(U$4,'C. PoC Adj Factor Scoring'!$E$3:$AH$3,0)-1),MATCH(U$2&\" Score\",'C. PoC Adj Factor Scoring'!$E$4:$J$4,0),TRUE)","v":1},{"$f":"VLOOKUP(OFFSET($B:$B,,MATCH(V$4,$B$4:$F$4,0)-1),OFFSET('C. PoC Adj Factor Scoring'!$E$5:$J$282,,MATCH(V$4,'C. PoC Adj Factor Scoring'!$E$3:$AH$3,0)-1),MATCH(V$2&\" Score\",'C. PoC Adj Factor Scoring'!$E$4:$J$4,0),TRUE)","v":1},{"$f":"VLOOKUP(OFFSET($B:$B,,MATCH(W$4,$B$4:$F$4,0)-1),OFFSET('C. PoC Adj Factor Scoring'!$E$5:$J$282,,MATCH(W$4,'C. PoC Adj Factor Scoring'!$E$3:$AH$3,0)-1),MATCH(W$2&\" Score\",'C. PoC Adj Factor Scoring'!$E$4:$J$4,0),TRUE)","v":1},{"$f":"VLOOKUP(OFFSET($B:$B,,MATCH(X$4,$B$4:$F$4,0)-1),OFFSET('C. PoC Adj Factor Scoring'!$E$5:$J$282,,MATCH(X$4,'C. PoC Adj Factor Scoring'!$E$3:$AH$3,0)-1),MATCH(X$2&\" Score\",'C. PoC Adj Factor Scoring'!$E$4:$J$4,0),TRUE)","v":1},{"$f":"VLOOKUP(OFFSET($B:$B,,MATCH(Y$4,$B$4:$F$4,0)-1),OFFSET('C. PoC Adj Factor Scoring'!$E$5:$J$282,,MATCH(Y$4,'C. PoC Adj Factor Scoring'!$E$3:$AH$3,0)-1),MATCH(Y$2&\" Score\",'C. PoC Adj Factor Scoring'!$E$4:$J$4,0),TRUE)","v":1},{"$f":"VLOOKUP(OFFSET($B:$B,,MATCH(Z$4,$B$4:$F$4,0)-1),OFFSET('C. PoC Adj Factor Scoring'!$E$5:$J$282,,MATCH(Z$4,'C. PoC Adj Factor Scoring'!$E$3:$AH$3,0)-1),MATCH(Z$2&\" Score\",'C. PoC Adj Factor Scoring'!$E$4:$J$4,0),TRUE)","v":1},{"$f":"VLOOKUP(OFFSET($B:$B,,MATCH(AA$4,$B$4:$F$4,0)-1),OFFSET('C. PoC Adj Factor Scoring'!$E$5:$J$282,,MATCH(AA$4,'C. PoC Adj Factor Scoring'!$E$3:$AH$3,0)-1),MATCH(AA$2&\" Score\",'C. PoC Adj Factor Scoring'!$E$4:$J$4,0),TRUE)","v":3},{"$f":"VLOOKUP(OFFSET($B:$B,,MATCH(AB$4,$B$4:$F$4,0)-1),OFFSET('C. PoC Adj Factor Scoring'!$E$5:$J$282,,MATCH(AB$4,'C. PoC Adj Factor Scoring'!$E$3:$AH$3,0)-1),MATCH(AB$2&\" Score\",'C. PoC Adj Factor Scoring'!$E$4:$J$4,0),TRUE)","v":1},{"$f":"VLOOKUP(OFFSET($B:$B,,MATCH(AC$4,$B$4:$F$4,0)-1),OFFSET('C. PoC Adj Factor Scoring'!$E$5:$J$282,,MATCH(AC$4,'C. PoC Adj Factor Scoring'!$E$3:$AH$3,0)-1),MATCH(AC$2&\" Score\",'C. PoC Adj Factor Scoring'!$E$4:$J$4,0),TRUE)","v":1},{"$f":"VLOOKUP(OFFSET($B:$B,,MATCH(AD$4,$B$4:$F$4,0)-1),OFFSET('C. PoC Adj Factor Scoring'!$E$5:$J$282,,MATCH(AD$4,'C. PoC Adj Factor Scoring'!$E$3:$AH$3,0)-1),MATCH(AD$2&\" Score\",'C. PoC Adj Factor Scoring'!$E$4:$J$4,0),TRUE)","v":1},{"$f":"VLOOKUP(OFFSET($B:$B,,MATCH(AE$4,$B$4:$F$4,0)-1),OFFSET('C. PoC Adj Factor Scoring'!$E$5:$J$282,,MATCH(AE$4,'C. PoC Adj Factor Scoring'!$E$3:$AH$3,0)-1),MATCH(AE$2&\" Score\",'C. PoC Adj Factor Scoring'!$E$4:$J$4,0),TRUE)","v":1}]
[{"$f":"'A. Population Info'!A430","v":1000410800},{"$f":"'A. Population Info'!L430","v":"OIL"},{"$f":"'A. Population Info'!M430","v":0},{"$f":"'A. Population Info'!N430","v":0},{"$f":"'A. Population Info'!O430","v":0},{"$f":"'A. Population Info'!P430","v":0},{"$f":"VLOOKUP(OFFSET($B:$B,,MATCH(G$4,$B$4:$F$4,0)-1),OFFSET('C. PoC Adj Factor Scoring'!$E$5:$J$282,,MATCH(G$4,'C. PoC Adj Factor Scoring'!$E$3:$AH$3,0)-1),MATCH(G$2&\" Score\",'C. PoC Adj Factor Scoring'!$E$4:$J$4,0),TRUE)","v":4},{"$f":"VLOOKUP(OFFSET($B:$B,,MATCH(H$4,$B$4:$F$4,0)-1),OFFSET('C. PoC Adj Factor Scoring'!$E$5:$J$282,,MATCH(H$4,'C. PoC Adj Factor Scoring'!$E$3:$AH$3,0)-1),MATCH(H$2&\" Score\",'C. PoC Adj Factor Scoring'!$E$4:$J$4,0),TRUE)","v":1},{"$f":"VLOOKUP(OFFSET($B:$B,,MATCH(I$4,$B$4:$F$4,0)-1),OFFSET('C. PoC Adj Factor Scoring'!$E$5:$J$282,,MATCH(I$4,'C. PoC Adj Factor Scoring'!$E$3:$AH$3,0)-1),MATCH(I$2&\" Score\",'C. PoC Adj Factor Scoring'!$E$4:$J$4,0),TRUE)","v":1},{"$f":"VLOOKUP(OFFSET($B:$B,,MATCH(J$4,$B$4:$F$4,0)-1),OFFSET('C. PoC Adj Factor Scoring'!$E$5:$J$282,,MATCH(J$4,'C. PoC Adj Factor Scoring'!$E$3:$AH$3,0)-1),MATCH(J$2&\" Score\",'C. PoC Adj Factor Scoring'!$E$4:$J$4,0),TRUE)","v":1},{"$f":"VLOOKUP(OFFSET($B:$B,,MATCH(K$4,$B$4:$F$4,0)-1),OFFSET('C. PoC Adj Factor Scoring'!$E$5:$J$282,,MATCH(K$4,'C. PoC Adj Factor Scoring'!$E$3:$AH$3,0)-1),MATCH(K$2&\" Score\",'C. PoC Adj Factor Scoring'!$E$4:$J$4,0),TRUE)","v":1},{"$f":"VLOOKUP(OFFSET($B:$B,,MATCH(L$4,$B$4:$F$4,0)-1),OFFSET('C. PoC Adj Factor Scoring'!$E$5:$J$282,,MATCH(L$4,'C. PoC Adj Factor Scoring'!$E$3:$AH$3,0)-1),MATCH(L$2&\" Score\",'C. PoC Adj Factor Scoring'!$E$4:$J$4,0),TRUE)","v":1},{"$f":"VLOOKUP(OFFSET($B:$B,,MATCH(M$4,$B$4:$F$4,0)-1),OFFSET('C. PoC Adj Factor Scoring'!$E$5:$J$282,,MATCH(M$4,'C. PoC Adj Factor Scoring'!$E$3:$AH$3,0)-1),MATCH(M$2&\" Score\",'C. PoC Adj Factor Scoring'!$E$4:$J$4,0),TRUE)","v":1},{"$f":"VLOOKUP(OFFSET($B:$B,,MATCH(N$4,$B$4:$F$4,0)-1),OFFSET('C. PoC Adj Factor Scoring'!$E$5:$J$282,,MATCH(N$4,'C. PoC Adj Factor Scoring'!$E$3:$AH$3,0)-1),MATCH(N$2&\" Score\",'C. PoC Adj Factor Scoring'!$E$4:$J$4,0),TRUE)","v":1},{"$f":"VLOOKUP(OFFSET($B:$B,,MATCH(O$4,$B$4:$F$4,0)-1),OFFSET('C. PoC Adj Factor Scoring'!$E$5:$J$282,,MATCH(O$4,'C. PoC Adj Factor Scoring'!$E$3:$AH$3,0)-1),MATCH(O$2&\" Score\",'C. PoC Adj Factor Scoring'!$E$4:$J$4,0),TRUE)","v":1},{"$f":"VLOOKUP(OFFSET($B:$B,,MATCH(P$4,$B$4:$F$4,0)-1),OFFSET('C. PoC Adj Factor Scoring'!$E$5:$J$282,,MATCH(P$4,'C. PoC Adj Factor Scoring'!$E$3:$AH$3,0)-1),MATCH(P$2&\" Score\",'C. PoC Adj Factor Scoring'!$E$4:$J$4,0),TRUE)","v":1},{"$f":"VLOOKUP(OFFSET($B:$B,,MATCH(Q$4,$B$4:$F$4,0)-1),OFFSET('C. PoC Adj Factor Scoring'!$E$5:$J$282,,MATCH(Q$4,'C. PoC Adj Factor Scoring'!$E$3:$AH$3,0)-1),MATCH(Q$2&\" Score\",'C. PoC Adj Factor Scoring'!$E$4:$J$4,0),TRUE)","v":1},{"$f":"VLOOKUP(OFFSET($B:$B,,MATCH(R$4,$B$4:$F$4,0)-1),OFFSET('C. PoC Adj Factor Scoring'!$E$5:$J$282,,MATCH(R$4,'C. PoC Adj Factor Scoring'!$E$3:$AH$3,0)-1),MATCH(R$2&\" Score\",'C. PoC Adj Factor Scoring'!$E$4:$J$4,0),TRUE)","v":1},{"$f":"VLOOKUP(OFFSET($B:$B,,MATCH(S$4,$B$4:$F$4,0)-1),OFFSET('C. PoC Adj Factor Scoring'!$E$5:$J$282,,MATCH(S$4,'C. PoC Adj Factor Scoring'!$E$3:$AH$3,0)-1),MATCH(S$2&\" Score\",'C. PoC Adj Factor Scoring'!$E$4:$J$4,0),TRUE)","v":1},{"$f":"VLOOKUP(OFFSET($B:$B,,MATCH(T$4,$B$4:$F$4,0)-1),OFFSET('C. PoC Adj Factor Scoring'!$E$5:$J$282,,MATCH(T$4,'C. PoC Adj Factor Scoring'!$E$3:$AH$3,0)-1),MATCH(T$2&\" Score\",'C. PoC Adj Factor Scoring'!$E$4:$J$4,0),TRUE)","v":1},{"$f":"VLOOKUP(OFFSET($B:$B,,MATCH(U$4,$B$4:$F$4,0)-1),OFFSET('C. PoC Adj Factor Scoring'!$E$5:$J$282,,MATCH(U$4,'C. PoC Adj Factor Scoring'!$E$3:$AH$3,0)-1),MATCH(U$2&\" Score\",'C. PoC Adj Factor Scoring'!$E$4:$J$4,0),TRUE)","v":1},{"$f":"VLOOKUP(OFFSET($B:$B,,MATCH(V$4,$B$4:$F$4,0)-1),OFFSET('C. PoC Adj Factor Scoring'!$E$5:$J$282,,MATCH(V$4,'C. PoC Adj Factor Scoring'!$E$3:$AH$3,0)-1),MATCH(V$2&\" Score\",'C. PoC Adj Factor Scoring'!$E$4:$J$4,0),TRUE)","v":1},{"$f":"VLOOKUP(OFFSET($B:$B,,MATCH(W$4,$B$4:$F$4,0)-1),OFFSET('C. PoC Adj Factor Scoring'!$E$5:$J$282,,MATCH(W$4,'C. PoC Adj Factor Scoring'!$E$3:$AH$3,0)-1),MATCH(W$2&\" Score\",'C. PoC Adj Factor Scoring'!$E$4:$J$4,0),TRUE)","v":1},{"$f":"VLOOKUP(OFFSET($B:$B,,MATCH(X$4,$B$4:$F$4,0)-1),OFFSET('C. PoC Adj Factor Scoring'!$E$5:$J$282,,MATCH(X$4,'C. PoC Adj Factor Scoring'!$E$3:$AH$3,0)-1),MATCH(X$2&\" Score\",'C. PoC Adj Factor Scoring'!$E$4:$J$4,0),TRUE)","v":1},{"$f":"VLOOKUP(OFFSET($B:$B,,MATCH(Y$4,$B$4:$F$4,0)-1),OFFSET('C. PoC Adj Factor Scoring'!$E$5:$J$282,,MATCH(Y$4,'C. PoC Adj Factor Scoring'!$E$3:$AH$3,0)-1),MATCH(Y$2&\" Score\",'C. PoC Adj Factor Scoring'!$E$4:$J$4,0),TRUE)","v":1},{"$f":"VLOOKUP(OFFSET($B:$B,,MATCH(Z$4,$B$4:$F$4,0)-1),OFFSET('C. PoC Adj Factor Scoring'!$E$5:$J$282,,MATCH(Z$4,'C. PoC Adj Factor Scoring'!$E$3:$AH$3,0)-1),MATCH(Z$2&\" Score\",'C. PoC Adj Factor Scoring'!$E$4:$J$4,0),TRUE)","v":1},{"$f":"VLOOKUP(OFFSET($B:$B,,MATCH(AA$4,$B$4:$F$4,0)-1),OFFSET('C. PoC Adj Factor Scoring'!$E$5:$J$282,,MATCH(AA$4,'C. PoC Adj Factor Scoring'!$E$3:$AH$3,0)-1),MATCH(AA$2&\" Score\",'C. PoC Adj Factor Scoring'!$E$4:$J$4,0),TRUE)","v":3},{"$f":"VLOOKUP(OFFSET($B:$B,,MATCH(AB$4,$B$4:$F$4,0)-1),OFFSET('C. PoC Adj Factor Scoring'!$E$5:$J$282,,MATCH(AB$4,'C. PoC Adj Factor Scoring'!$E$3:$AH$3,0)-1),MATCH(AB$2&\" Score\",'C. PoC Adj Factor Scoring'!$E$4:$J$4,0),TRUE)","v":1},{"$f":"VLOOKUP(OFFSET($B:$B,,MATCH(AC$4,$B$4:$F$4,0)-1),OFFSET('C. PoC Adj Factor Scoring'!$E$5:$J$282,,MATCH(AC$4,'C. PoC Adj Factor Scoring'!$E$3:$AH$3,0)-1),MATCH(AC$2&\" Score\",'C. PoC Adj Factor Scoring'!$E$4:$J$4,0),TRUE)","v":1},{"$f":"VLOOKUP(OFFSET($B:$B,,MATCH(AD$4,$B$4:$F$4,0)-1),OFFSET('C. PoC Adj Factor Scoring'!$E$5:$J$282,,MATCH(AD$4,'C. PoC Adj Factor Scoring'!$E$3:$AH$3,0)-1),MATCH(AD$2&\" Score\",'C. PoC Adj Factor Scoring'!$E$4:$J$4,0),TRUE)","v":1},{"$f":"VLOOKUP(OFFSET($B:$B,,MATCH(AE$4,$B$4:$F$4,0)-1),OFFSET('C. PoC Adj Factor Scoring'!$E$5:$J$282,,MATCH(AE$4,'C. PoC Adj Factor Scoring'!$E$3:$AH$3,0)-1),MATCH(AE$2&\" Score\",'C. PoC Adj Factor Scoring'!$E$4:$J$4,0),TRUE)","v":1}]
[{"$f":"'A. Population Info'!A431","v":1000410871},{"$f":"'A. Population Info'!L431","v":"OIL"},{"$f":"'A. Population Info'!M431","v":0},{"$f":"'A. Population Info'!N431","v":0},{"$f":"'A. Population Info'!O431","v":0},{"$f":"'A. Population Info'!P431","v":0},{"$f":"VLOOKUP(OFFSET($B:$B,,MATCH(G$4,$B$4:$F$4,0)-1),OFFSET('C. PoC Adj Factor Scoring'!$E$5:$J$282,,MATCH(G$4,'C. PoC Adj Factor Scoring'!$E$3:$AH$3,0)-1),MATCH(G$2&\" Score\",'C. PoC Adj Factor Scoring'!$E$4:$J$4,0),TRUE)","v":4},{"$f":"VLOOKUP(OFFSET($B:$B,,MATCH(H$4,$B$4:$F$4,0)-1),OFFSET('C. PoC Adj Factor Scoring'!$E$5:$J$282,,MATCH(H$4,'C. PoC Adj Factor Scoring'!$E$3:$AH$3,0)-1),MATCH(H$2&\" Score\",'C. PoC Adj Factor Scoring'!$E$4:$J$4,0),TRUE)","v":1},{"$f":"VLOOKUP(OFFSET($B:$B,,MATCH(I$4,$B$4:$F$4,0)-1),OFFSET('C. PoC Adj Factor Scoring'!$E$5:$J$282,,MATCH(I$4,'C. PoC Adj Factor Scoring'!$E$3:$AH$3,0)-1),MATCH(I$2&\" Score\",'C. PoC Adj Factor Scoring'!$E$4:$J$4,0),TRUE)","v":1},{"$f":"VLOOKUP(OFFSET($B:$B,,MATCH(J$4,$B$4:$F$4,0)-1),OFFSET('C. PoC Adj Factor Scoring'!$E$5:$J$282,,MATCH(J$4,'C. PoC Adj Factor Scoring'!$E$3:$AH$3,0)-1),MATCH(J$2&\" Score\",'C. PoC Adj Factor Scoring'!$E$4:$J$4,0),TRUE)","v":1},{"$f":"VLOOKUP(OFFSET($B:$B,,MATCH(K$4,$B$4:$F$4,0)-1),OFFSET('C. PoC Adj Factor Scoring'!$E$5:$J$282,,MATCH(K$4,'C. PoC Adj Factor Scoring'!$E$3:$AH$3,0)-1),MATCH(K$2&\" Score\",'C. PoC Adj Factor Scoring'!$E$4:$J$4,0),TRUE)","v":1},{"$f":"VLOOKUP(OFFSET($B:$B,,MATCH(L$4,$B$4:$F$4,0)-1),OFFSET('C. PoC Adj Factor Scoring'!$E$5:$J$282,,MATCH(L$4,'C. PoC Adj Factor Scoring'!$E$3:$AH$3,0)-1),MATCH(L$2&\" Score\",'C. PoC Adj Factor Scoring'!$E$4:$J$4,0),TRUE)","v":1},{"$f":"VLOOKUP(OFFSET($B:$B,,MATCH(M$4,$B$4:$F$4,0)-1),OFFSET('C. PoC Adj Factor Scoring'!$E$5:$J$282,,MATCH(M$4,'C. PoC Adj Factor Scoring'!$E$3:$AH$3,0)-1),MATCH(M$2&\" Score\",'C. PoC Adj Factor Scoring'!$E$4:$J$4,0),TRUE)","v":1},{"$f":"VLOOKUP(OFFSET($B:$B,,MATCH(N$4,$B$4:$F$4,0)-1),OFFSET('C. PoC Adj Factor Scoring'!$E$5:$J$282,,MATCH(N$4,'C. PoC Adj Factor Scoring'!$E$3:$AH$3,0)-1),MATCH(N$2&\" Score\",'C. PoC Adj Factor Scoring'!$E$4:$J$4,0),TRUE)","v":1},{"$f":"VLOOKUP(OFFSET($B:$B,,MATCH(O$4,$B$4:$F$4,0)-1),OFFSET('C. PoC Adj Factor Scoring'!$E$5:$J$282,,MATCH(O$4,'C. PoC Adj Factor Scoring'!$E$3:$AH$3,0)-1),MATCH(O$2&\" Score\",'C. PoC Adj Factor Scoring'!$E$4:$J$4,0),TRUE)","v":1},{"$f":"VLOOKUP(OFFSET($B:$B,,MATCH(P$4,$B$4:$F$4,0)-1),OFFSET('C. PoC Adj Factor Scoring'!$E$5:$J$282,,MATCH(P$4,'C. PoC Adj Factor Scoring'!$E$3:$AH$3,0)-1),MATCH(P$2&\" Score\",'C. PoC Adj Factor Scoring'!$E$4:$J$4,0),TRUE)","v":1},{"$f":"VLOOKUP(OFFSET($B:$B,,MATCH(Q$4,$B$4:$F$4,0)-1),OFFSET('C. PoC Adj Factor Scoring'!$E$5:$J$282,,MATCH(Q$4,'C. PoC Adj Factor Scoring'!$E$3:$AH$3,0)-1),MATCH(Q$2&\" Score\",'C. PoC Adj Factor Scoring'!$E$4:$J$4,0),TRUE)","v":1},{"$f":"VLOOKUP(OFFSET($B:$B,,MATCH(R$4,$B$4:$F$4,0)-1),OFFSET('C. PoC Adj Factor Scoring'!$E$5:$J$282,,MATCH(R$4,'C. PoC Adj Factor Scoring'!$E$3:$AH$3,0)-1),MATCH(R$2&\" Score\",'C. PoC Adj Factor Scoring'!$E$4:$J$4,0),TRUE)","v":1},{"$f":"VLOOKUP(OFFSET($B:$B,,MATCH(S$4,$B$4:$F$4,0)-1),OFFSET('C. PoC Adj Factor Scoring'!$E$5:$J$282,,MATCH(S$4,'C. PoC Adj Factor Scoring'!$E$3:$AH$3,0)-1),MATCH(S$2&\" Score\",'C. PoC Adj Factor Scoring'!$E$4:$J$4,0),TRUE)","v":1},{"$f":"VLOOKUP(OFFSET($B:$B,,MATCH(T$4,$B$4:$F$4,0)-1),OFFSET('C. PoC Adj Factor Scoring'!$E$5:$J$282,,MATCH(T$4,'C. PoC Adj Factor Scoring'!$E$3:$AH$3,0)-1),MATCH(T$2&\" Score\",'C. PoC Adj Factor Scoring'!$E$4:$J$4,0),TRUE)","v":1},{"$f":"VLOOKUP(OFFSET($B:$B,,MATCH(U$4,$B$4:$F$4,0)-1),OFFSET('C. PoC Adj Factor Scoring'!$E$5:$J$282,,MATCH(U$4,'C. PoC Adj Factor Scoring'!$E$3:$AH$3,0)-1),MATCH(U$2&\" Score\",'C. PoC Adj Factor Scoring'!$E$4:$J$4,0),TRUE)","v":1},{"$f":"VLOOKUP(OFFSET($B:$B,,MATCH(V$4,$B$4:$F$4,0)-1),OFFSET('C. PoC Adj Factor Scoring'!$E$5:$J$282,,MATCH(V$4,'C. PoC Adj Factor Scoring'!$E$3:$AH$3,0)-1),MATCH(V$2&\" Score\",'C. PoC Adj Factor Scoring'!$E$4:$J$4,0),TRUE)","v":1},{"$f":"VLOOKUP(OFFSET($B:$B,,MATCH(W$4,$B$4:$F$4,0)-1),OFFSET('C. PoC Adj Factor Scoring'!$E$5:$J$282,,MATCH(W$4,'C. PoC Adj Factor Scoring'!$E$3:$AH$3,0)-1),MATCH(W$2&\" Score\",'C. PoC Adj Factor Scoring'!$E$4:$J$4,0),TRUE)","v":1},{"$f":"VLOOKUP(OFFSET($B:$B,,MATCH(X$4,$B$4:$F$4,0)-1),OFFSET('C. PoC Adj Factor Scoring'!$E$5:$J$282,,MATCH(X$4,'C. PoC Adj Factor Scoring'!$E$3:$AH$3,0)-1),MATCH(X$2&\" Score\",'C. PoC Adj Factor Scoring'!$E$4:$J$4,0),TRUE)","v":1},{"$f":"VLOOKUP(OFFSET($B:$B,,MATCH(Y$4,$B$4:$F$4,0)-1),OFFSET('C. PoC Adj Factor Scoring'!$E$5:$J$282,,MATCH(Y$4,'C. PoC Adj Factor Scoring'!$E$3:$AH$3,0)-1),MATCH(Y$2&\" Score\",'C. PoC Adj Factor Scoring'!$E$4:$J$4,0),TRUE)","v":1},{"$f":"VLOOKUP(OFFSET($B:$B,,MATCH(Z$4,$B$4:$F$4,0)-1),OFFSET('C. PoC Adj Factor Scoring'!$E$5:$J$282,,MATCH(Z$4,'C. PoC Adj Factor Scoring'!$E$3:$AH$3,0)-1),MATCH(Z$2&\" Score\",'C. PoC Adj Factor Scoring'!$E$4:$J$4,0),TRUE)","v":1},{"$f":"VLOOKUP(OFFSET($B:$B,,MATCH(AA$4,$B$4:$F$4,0)-1),OFFSET('C. PoC Adj Factor Scoring'!$E$5:$J$282,,MATCH(AA$4,'C. PoC Adj Factor Scoring'!$E$3:$AH$3,0)-1),MATCH(AA$2&\" Score\",'C. PoC Adj Factor Scoring'!$E$4:$J$4,0),TRUE)","v":3},{"$f":"VLOOKUP(OFFSET($B:$B,,MATCH(AB$4,$B$4:$F$4,0)-1),OFFSET('C. PoC Adj Factor Scoring'!$E$5:$J$282,,MATCH(AB$4,'C. PoC Adj Factor Scoring'!$E$3:$AH$3,0)-1),MATCH(AB$2&\" Score\",'C. PoC Adj Factor Scoring'!$E$4:$J$4,0),TRUE)","v":1},{"$f":"VLOOKUP(OFFSET($B:$B,,MATCH(AC$4,$B$4:$F$4,0)-1),OFFSET('C. PoC Adj Factor Scoring'!$E$5:$J$282,,MATCH(AC$4,'C. PoC Adj Factor Scoring'!$E$3:$AH$3,0)-1),MATCH(AC$2&\" Score\",'C. PoC Adj Factor Scoring'!$E$4:$J$4,0),TRUE)","v":1},{"$f":"VLOOKUP(OFFSET($B:$B,,MATCH(AD$4,$B$4:$F$4,0)-1),OFFSET('C. PoC Adj Factor Scoring'!$E$5:$J$282,,MATCH(AD$4,'C. PoC Adj Factor Scoring'!$E$3:$AH$3,0)-1),MATCH(AD$2&\" Score\",'C. PoC Adj Factor Scoring'!$E$4:$J$4,0),TRUE)","v":1},{"$f":"VLOOKUP(OFFSET($B:$B,,MATCH(AE$4,$B$4:$F$4,0)-1),OFFSET('C. PoC Adj Factor Scoring'!$E$5:$J$282,,MATCH(AE$4,'C. PoC Adj Factor Scoring'!$E$3:$AH$3,0)-1),MATCH(AE$2&\" Score\",'C. PoC Adj Factor Scoring'!$E$4:$J$4,0),TRUE)","v":1}]
[{"$f":"'A. Population Info'!A432","v":1000410892},{"$f":"'A. Population Info'!L432","v":"OIL"},{"$f":"'A. Population Info'!M432","v":0},{"$f":"'A. Population Info'!N432","v":0},{"$f":"'A. Population Info'!O432","v":0},{"$f":"'A. Population Info'!P432","v":0},{"$f":"VLOOKUP(OFFSET($B:$B,,MATCH(G$4,$B$4:$F$4,0)-1),OFFSET('C. PoC Adj Factor Scoring'!$E$5:$J$282,,MATCH(G$4,'C. PoC Adj Factor Scoring'!$E$3:$AH$3,0)-1),MATCH(G$2&\" Score\",'C. PoC Adj Factor Scoring'!$E$4:$J$4,0),TRUE)","v":4},{"$f":"VLOOKUP(OFFSET($B:$B,,MATCH(H$4,$B$4:$F$4,0)-1),OFFSET('C. PoC Adj Factor Scoring'!$E$5:$J$282,,MATCH(H$4,'C. PoC Adj Factor Scoring'!$E$3:$AH$3,0)-1),MATCH(H$2&\" Score\",'C. PoC Adj Factor Scoring'!$E$4:$J$4,0),TRUE)","v":1},{"$f":"VLOOKUP(OFFSET($B:$B,,MATCH(I$4,$B$4:$F$4,0)-1),OFFSET('C. PoC Adj Factor Scoring'!$E$5:$J$282,,MATCH(I$4,'C. PoC Adj Factor Scoring'!$E$3:$AH$3,0)-1),MATCH(I$2&\" Score\",'C. PoC Adj Factor Scoring'!$E$4:$J$4,0),TRUE)","v":1},{"$f":"VLOOKUP(OFFSET($B:$B,,MATCH(J$4,$B$4:$F$4,0)-1),OFFSET('C. PoC Adj Factor Scoring'!$E$5:$J$282,,MATCH(J$4,'C. PoC Adj Factor Scoring'!$E$3:$AH$3,0)-1),MATCH(J$2&\" Score\",'C. PoC Adj Factor Scoring'!$E$4:$J$4,0),TRUE)","v":1},{"$f":"VLOOKUP(OFFSET($B:$B,,MATCH(K$4,$B$4:$F$4,0)-1),OFFSET('C. PoC Adj Factor Scoring'!$E$5:$J$282,,MATCH(K$4,'C. PoC Adj Factor Scoring'!$E$3:$AH$3,0)-1),MATCH(K$2&\" Score\",'C. PoC Adj Factor Scoring'!$E$4:$J$4,0),TRUE)","v":1},{"$f":"VLOOKUP(OFFSET($B:$B,,MATCH(L$4,$B$4:$F$4,0)-1),OFFSET('C. PoC Adj Factor Scoring'!$E$5:$J$282,,MATCH(L$4,'C. PoC Adj Factor Scoring'!$E$3:$AH$3,0)-1),MATCH(L$2&\" Score\",'C. PoC Adj Factor Scoring'!$E$4:$J$4,0),TRUE)","v":1},{"$f":"VLOOKUP(OFFSET($B:$B,,MATCH(M$4,$B$4:$F$4,0)-1),OFFSET('C. PoC Adj Factor Scoring'!$E$5:$J$282,,MATCH(M$4,'C. PoC Adj Factor Scoring'!$E$3:$AH$3,0)-1),MATCH(M$2&\" Score\",'C. PoC Adj Factor Scoring'!$E$4:$J$4,0),TRUE)","v":1},{"$f":"VLOOKUP(OFFSET($B:$B,,MATCH(N$4,$B$4:$F$4,0)-1),OFFSET('C. PoC Adj Factor Scoring'!$E$5:$J$282,,MATCH(N$4,'C. PoC Adj Factor Scoring'!$E$3:$AH$3,0)-1),MATCH(N$2&\" Score\",'C. PoC Adj Factor Scoring'!$E$4:$J$4,0),TRUE)","v":1},{"$f":"VLOOKUP(OFFSET($B:$B,,MATCH(O$4,$B$4:$F$4,0)-1),OFFSET('C. PoC Adj Factor Scoring'!$E$5:$J$282,,MATCH(O$4,'C. PoC Adj Factor Scoring'!$E$3:$AH$3,0)-1),MATCH(O$2&\" Score\",'C. PoC Adj Factor Scoring'!$E$4:$J$4,0),TRUE)","v":1},{"$f":"VLOOKUP(OFFSET($B:$B,,MATCH(P$4,$B$4:$F$4,0)-1),OFFSET('C. PoC Adj Factor Scoring'!$E$5:$J$282,,MATCH(P$4,'C. PoC Adj Factor Scoring'!$E$3:$AH$3,0)-1),MATCH(P$2&\" Score\",'C. PoC Adj Factor Scoring'!$E$4:$J$4,0),TRUE)","v":1},{"$f":"VLOOKUP(OFFSET($B:$B,,MATCH(Q$4,$B$4:$F$4,0)-1),OFFSET('C. PoC Adj Factor Scoring'!$E$5:$J$282,,MATCH(Q$4,'C. PoC Adj Factor Scoring'!$E$3:$AH$3,0)-1),MATCH(Q$2&\" Score\",'C. PoC Adj Factor Scoring'!$E$4:$J$4,0),TRUE)","v":1},{"$f":"VLOOKUP(OFFSET($B:$B,,MATCH(R$4,$B$4:$F$4,0)-1),OFFSET('C. PoC Adj Factor Scoring'!$E$5:$J$282,,MATCH(R$4,'C. PoC Adj Factor Scoring'!$E$3:$AH$3,0)-1),MATCH(R$2&\" Score\",'C. PoC Adj Factor Scoring'!$E$4:$J$4,0),TRUE)","v":1},{"$f":"VLOOKUP(OFFSET($B:$B,,MATCH(S$4,$B$4:$F$4,0)-1),OFFSET('C. PoC Adj Factor Scoring'!$E$5:$J$282,,MATCH(S$4,'C. PoC Adj Factor Scoring'!$E$3:$AH$3,0)-1),MATCH(S$2&\" Score\",'C. PoC Adj Factor Scoring'!$E$4:$J$4,0),TRUE)","v":1},{"$f":"VLOOKUP(OFFSET($B:$B,,MATCH(T$4,$B$4:$F$4,0)-1),OFFSET('C. PoC Adj Factor Scoring'!$E$5:$J$282,,MATCH(T$4,'C. PoC Adj Factor Scoring'!$E$3:$AH$3,0)-1),MATCH(T$2&\" Score\",'C. PoC Adj Factor Scoring'!$E$4:$J$4,0),TRUE)","v":1},{"$f":"VLOOKUP(OFFSET($B:$B,,MATCH(U$4,$B$4:$F$4,0)-1),OFFSET('C. PoC Adj Factor Scoring'!$E$5:$J$282,,MATCH(U$4,'C. PoC Adj Factor Scoring'!$E$3:$AH$3,0)-1),MATCH(U$2&\" Score\",'C. PoC Adj Factor Scoring'!$E$4:$J$4,0),TRUE)","v":1},{"$f":"VLOOKUP(OFFSET($B:$B,,MATCH(V$4,$B$4:$F$4,0)-1),OFFSET('C. PoC Adj Factor Scoring'!$E$5:$J$282,,MATCH(V$4,'C. PoC Adj Factor Scoring'!$E$3:$AH$3,0)-1),MATCH(V$2&\" Score\",'C. PoC Adj Factor Scoring'!$E$4:$J$4,0),TRUE)","v":1},{"$f":"VLOOKUP(OFFSET($B:$B,,MATCH(W$4,$B$4:$F$4,0)-1),OFFSET('C. PoC Adj Factor Scoring'!$E$5:$J$282,,MATCH(W$4,'C. PoC Adj Factor Scoring'!$E$3:$AH$3,0)-1),MATCH(W$2&\" Score\",'C. PoC Adj Factor Scoring'!$E$4:$J$4,0),TRUE)","v":1},{"$f":"VLOOKUP(OFFSET($B:$B,,MATCH(X$4,$B$4:$F$4,0)-1),OFFSET('C. PoC Adj Factor Scoring'!$E$5:$J$282,,MATCH(X$4,'C. PoC Adj Factor Scoring'!$E$3:$AH$3,0)-1),MATCH(X$2&\" Score\",'C. PoC Adj Factor Scoring'!$E$4:$J$4,0),TRUE)","v":1},{"$f":"VLOOKUP(OFFSET($B:$B,,MATCH(Y$4,$B$4:$F$4,0)-1),OFFSET('C. PoC Adj Factor Scoring'!$E$5:$J$282,,MATCH(Y$4,'C. PoC Adj Factor Scoring'!$E$3:$AH$3,0)-1),MATCH(Y$2&\" Score\",'C. PoC Adj Factor Scoring'!$E$4:$J$4,0),TRUE)","v":1},{"$f":"VLOOKUP(OFFSET($B:$B,,MATCH(Z$4,$B$4:$F$4,0)-1),OFFSET('C. PoC Adj Factor Scoring'!$E$5:$J$282,,MATCH(Z$4,'C. PoC Adj Factor Scoring'!$E$3:$AH$3,0)-1),MATCH(Z$2&\" Score\",'C. PoC Adj Factor Scoring'!$E$4:$J$4,0),TRUE)","v":1},{"$f":"VLOOKUP(OFFSET($B:$B,,MATCH(AA$4,$B$4:$F$4,0)-1),OFFSET('C. PoC Adj Factor Scoring'!$E$5:$J$282,,MATCH(AA$4,'C. PoC Adj Factor Scoring'!$E$3:$AH$3,0)-1),MATCH(AA$2&\" Score\",'C. PoC Adj Factor Scoring'!$E$4:$J$4,0),TRUE)","v":3},{"$f":"VLOOKUP(OFFSET($B:$B,,MATCH(AB$4,$B$4:$F$4,0)-1),OFFSET('C. PoC Adj Factor Scoring'!$E$5:$J$282,,MATCH(AB$4,'C. PoC Adj Factor Scoring'!$E$3:$AH$3,0)-1),MATCH(AB$2&\" Score\",'C. PoC Adj Factor Scoring'!$E$4:$J$4,0),TRUE)","v":1},{"$f":"VLOOKUP(OFFSET($B:$B,,MATCH(AC$4,$B$4:$F$4,0)-1),OFFSET('C. PoC Adj Factor Scoring'!$E$5:$J$282,,MATCH(AC$4,'C. PoC Adj Factor Scoring'!$E$3:$AH$3,0)-1),MATCH(AC$2&\" Score\",'C. PoC Adj Factor Scoring'!$E$4:$J$4,0),TRUE)","v":1},{"$f":"VLOOKUP(OFFSET($B:$B,,MATCH(AD$4,$B$4:$F$4,0)-1),OFFSET('C. PoC Adj Factor Scoring'!$E$5:$J$282,,MATCH(AD$4,'C. PoC Adj Factor Scoring'!$E$3:$AH$3,0)-1),MATCH(AD$2&\" Score\",'C. PoC Adj Factor Scoring'!$E$4:$J$4,0),TRUE)","v":1},{"$f":"VLOOKUP(OFFSET($B:$B,,MATCH(AE$4,$B$4:$F$4,0)-1),OFFSET('C. PoC Adj Factor Scoring'!$E$5:$J$282,,MATCH(AE$4,'C. PoC Adj Factor Scoring'!$E$3:$AH$3,0)-1),MATCH(AE$2&\" Score\",'C. PoC Adj Factor Scoring'!$E$4:$J$4,0),TRUE)","v":1}]
[{"$f":"'A. Population Info'!A433","v":1000412867},{"$f":"'A. Population Info'!L433","v":"OIL"},{"$f":"'A. Population Info'!M433","v":0},{"$f":"'A. Population Info'!N433","v":0},{"$f":"'A. Population Info'!O433","v":0},{"$f":"'A. Population Info'!P433","v":0},{"$f":"VLOOKUP(OFFSET($B:$B,,MATCH(G$4,$B$4:$F$4,0)-1),OFFSET('C. PoC Adj Factor Scoring'!$E$5:$J$282,,MATCH(G$4,'C. PoC Adj Factor Scoring'!$E$3:$AH$3,0)-1),MATCH(G$2&\" Score\",'C. PoC Adj Factor Scoring'!$E$4:$J$4,0),TRUE)","v":4},{"$f":"VLOOKUP(OFFSET($B:$B,,MATCH(H$4,$B$4:$F$4,0)-1),OFFSET('C. PoC Adj Factor Scoring'!$E$5:$J$282,,MATCH(H$4,'C. PoC Adj Factor Scoring'!$E$3:$AH$3,0)-1),MATCH(H$2&\" Score\",'C. PoC Adj Factor Scoring'!$E$4:$J$4,0),TRUE)","v":1},{"$f":"VLOOKUP(OFFSET($B:$B,,MATCH(I$4,$B$4:$F$4,0)-1),OFFSET('C. PoC Adj Factor Scoring'!$E$5:$J$282,,MATCH(I$4,'C. PoC Adj Factor Scoring'!$E$3:$AH$3,0)-1),MATCH(I$2&\" Score\",'C. PoC Adj Factor Scoring'!$E$4:$J$4,0),TRUE)","v":1},{"$f":"VLOOKUP(OFFSET($B:$B,,MATCH(J$4,$B$4:$F$4,0)-1),OFFSET('C. PoC Adj Factor Scoring'!$E$5:$J$282,,MATCH(J$4,'C. PoC Adj Factor Scoring'!$E$3:$AH$3,0)-1),MATCH(J$2&\" Score\",'C. PoC Adj Factor Scoring'!$E$4:$J$4,0),TRUE)","v":1},{"$f":"VLOOKUP(OFFSET($B:$B,,MATCH(K$4,$B$4:$F$4,0)-1),OFFSET('C. PoC Adj Factor Scoring'!$E$5:$J$282,,MATCH(K$4,'C. PoC Adj Factor Scoring'!$E$3:$AH$3,0)-1),MATCH(K$2&\" Score\",'C. PoC Adj Factor Scoring'!$E$4:$J$4,0),TRUE)","v":1},{"$f":"VLOOKUP(OFFSET($B:$B,,MATCH(L$4,$B$4:$F$4,0)-1),OFFSET('C. PoC Adj Factor Scoring'!$E$5:$J$282,,MATCH(L$4,'C. PoC Adj Factor Scoring'!$E$3:$AH$3,0)-1),MATCH(L$2&\" Score\",'C. PoC Adj Factor Scoring'!$E$4:$J$4,0),TRUE)","v":1},{"$f":"VLOOKUP(OFFSET($B:$B,,MATCH(M$4,$B$4:$F$4,0)-1),OFFSET('C. PoC Adj Factor Scoring'!$E$5:$J$282,,MATCH(M$4,'C. PoC Adj Factor Scoring'!$E$3:$AH$3,0)-1),MATCH(M$2&\" Score\",'C. PoC Adj Factor Scoring'!$E$4:$J$4,0),TRUE)","v":1},{"$f":"VLOOKUP(OFFSET($B:$B,,MATCH(N$4,$B$4:$F$4,0)-1),OFFSET('C. PoC Adj Factor Scoring'!$E$5:$J$282,,MATCH(N$4,'C. PoC Adj Factor Scoring'!$E$3:$AH$3,0)-1),MATCH(N$2&\" Score\",'C. PoC Adj Factor Scoring'!$E$4:$J$4,0),TRUE)","v":1},{"$f":"VLOOKUP(OFFSET($B:$B,,MATCH(O$4,$B$4:$F$4,0)-1),OFFSET('C. PoC Adj Factor Scoring'!$E$5:$J$282,,MATCH(O$4,'C. PoC Adj Factor Scoring'!$E$3:$AH$3,0)-1),MATCH(O$2&\" Score\",'C. PoC Adj Factor Scoring'!$E$4:$J$4,0),TRUE)","v":1},{"$f":"VLOOKUP(OFFSET($B:$B,,MATCH(P$4,$B$4:$F$4,0)-1),OFFSET('C. PoC Adj Factor Scoring'!$E$5:$J$282,,MATCH(P$4,'C. PoC Adj Factor Scoring'!$E$3:$AH$3,0)-1),MATCH(P$2&\" Score\",'C. PoC Adj Factor Scoring'!$E$4:$J$4,0),TRUE)","v":1},{"$f":"VLOOKUP(OFFSET($B:$B,,MATCH(Q$4,$B$4:$F$4,0)-1),OFFSET('C. PoC Adj Factor Scoring'!$E$5:$J$282,,MATCH(Q$4,'C. PoC Adj Factor Scoring'!$E$3:$AH$3,0)-1),MATCH(Q$2&\" Score\",'C. PoC Adj Factor Scoring'!$E$4:$J$4,0),TRUE)","v":1},{"$f":"VLOOKUP(OFFSET($B:$B,,MATCH(R$4,$B$4:$F$4,0)-1),OFFSET('C. PoC Adj Factor Scoring'!$E$5:$J$282,,MATCH(R$4,'C. PoC Adj Factor Scoring'!$E$3:$AH$3,0)-1),MATCH(R$2&\" Score\",'C. PoC Adj Factor Scoring'!$E$4:$J$4,0),TRUE)","v":1},{"$f":"VLOOKUP(OFFSET($B:$B,,MATCH(S$4,$B$4:$F$4,0)-1),OFFSET('C. PoC Adj Factor Scoring'!$E$5:$J$282,,MATCH(S$4,'C. PoC Adj Factor Scoring'!$E$3:$AH$3,0)-1),MATCH(S$2&\" Score\",'C. PoC Adj Factor Scoring'!$E$4:$J$4,0),TRUE)","v":1},{"$f":"VLOOKUP(OFFSET($B:$B,,MATCH(T$4,$B$4:$F$4,0)-1),OFFSET('C. PoC Adj Factor Scoring'!$E$5:$J$282,,MATCH(T$4,'C. PoC Adj Factor Scoring'!$E$3:$AH$3,0)-1),MATCH(T$2&\" Score\",'C. PoC Adj Factor Scoring'!$E$4:$J$4,0),TRUE)","v":1},{"$f":"VLOOKUP(OFFSET($B:$B,,MATCH(U$4,$B$4:$F$4,0)-1),OFFSET('C. PoC Adj Factor Scoring'!$E$5:$J$282,,MATCH(U$4,'C. PoC Adj Factor Scoring'!$E$3:$AH$3,0)-1),MATCH(U$2&\" Score\",'C. PoC Adj Factor Scoring'!$E$4:$J$4,0),TRUE)","v":1},{"$f":"VLOOKUP(OFFSET($B:$B,,MATCH(V$4,$B$4:$F$4,0)-1),OFFSET('C. PoC Adj Factor Scoring'!$E$5:$J$282,,MATCH(V$4,'C. PoC Adj Factor Scoring'!$E$3:$AH$3,0)-1),MATCH(V$2&\" Score\",'C. PoC Adj Factor Scoring'!$E$4:$J$4,0),TRUE)","v":1},{"$f":"VLOOKUP(OFFSET($B:$B,,MATCH(W$4,$B$4:$F$4,0)-1),OFFSET('C. PoC Adj Factor Scoring'!$E$5:$J$282,,MATCH(W$4,'C. PoC Adj Factor Scoring'!$E$3:$AH$3,0)-1),MATCH(W$2&\" Score\",'C. PoC Adj Factor Scoring'!$E$4:$J$4,0),TRUE)","v":1},{"$f":"VLOOKUP(OFFSET($B:$B,,MATCH(X$4,$B$4:$F$4,0)-1),OFFSET('C. PoC Adj Factor Scoring'!$E$5:$J$282,,MATCH(X$4,'C. PoC Adj Factor Scoring'!$E$3:$AH$3,0)-1),MATCH(X$2&\" Score\",'C. PoC Adj Factor Scoring'!$E$4:$J$4,0),TRUE)","v":1},{"$f":"VLOOKUP(OFFSET($B:$B,,MATCH(Y$4,$B$4:$F$4,0)-1),OFFSET('C. PoC Adj Factor Scoring'!$E$5:$J$282,,MATCH(Y$4,'C. PoC Adj Factor Scoring'!$E$3:$AH$3,0)-1),MATCH(Y$2&\" Score\",'C. PoC Adj Factor Scoring'!$E$4:$J$4,0),TRUE)","v":1},{"$f":"VLOOKUP(OFFSET($B:$B,,MATCH(Z$4,$B$4:$F$4,0)-1),OFFSET('C. PoC Adj Factor Scoring'!$E$5:$J$282,,MATCH(Z$4,'C. PoC Adj Factor Scoring'!$E$3:$AH$3,0)-1),MATCH(Z$2&\" Score\",'C. PoC Adj Factor Scoring'!$E$4:$J$4,0),TRUE)","v":1},{"$f":"VLOOKUP(OFFSET($B:$B,,MATCH(AA$4,$B$4:$F$4,0)-1),OFFSET('C. PoC Adj Factor Scoring'!$E$5:$J$282,,MATCH(AA$4,'C. PoC Adj Factor Scoring'!$E$3:$AH$3,0)-1),MATCH(AA$2&\" Score\",'C. PoC Adj Factor Scoring'!$E$4:$J$4,0),TRUE)","v":3},{"$f":"VLOOKUP(OFFSET($B:$B,,MATCH(AB$4,$B$4:$F$4,0)-1),OFFSET('C. PoC Adj Factor Scoring'!$E$5:$J$282,,MATCH(AB$4,'C. PoC Adj Factor Scoring'!$E$3:$AH$3,0)-1),MATCH(AB$2&\" Score\",'C. PoC Adj Factor Scoring'!$E$4:$J$4,0),TRUE)","v":1},{"$f":"VLOOKUP(OFFSET($B:$B,,MATCH(AC$4,$B$4:$F$4,0)-1),OFFSET('C. PoC Adj Factor Scoring'!$E$5:$J$282,,MATCH(AC$4,'C. PoC Adj Factor Scoring'!$E$3:$AH$3,0)-1),MATCH(AC$2&\" Score\",'C. PoC Adj Factor Scoring'!$E$4:$J$4,0),TRUE)","v":1},{"$f":"VLOOKUP(OFFSET($B:$B,,MATCH(AD$4,$B$4:$F$4,0)-1),OFFSET('C. PoC Adj Factor Scoring'!$E$5:$J$282,,MATCH(AD$4,'C. PoC Adj Factor Scoring'!$E$3:$AH$3,0)-1),MATCH(AD$2&\" Score\",'C. PoC Adj Factor Scoring'!$E$4:$J$4,0),TRUE)","v":1},{"$f":"VLOOKUP(OFFSET($B:$B,,MATCH(AE$4,$B$4:$F$4,0)-1),OFFSET('C. PoC Adj Factor Scoring'!$E$5:$J$282,,MATCH(AE$4,'C. PoC Adj Factor Scoring'!$E$3:$AH$3,0)-1),MATCH(AE$2&\" Score\",'C. PoC Adj Factor Scoring'!$E$4:$J$4,0),TRUE)","v":1}]
[{"$f":"'A. Population Info'!A434","v":1000412871},{"$f":"'A. Population Info'!L434","v":"OIL"},{"$f":"'A. Population Info'!M434","v":0},{"$f":"'A. Population Info'!N434","v":0},{"$f":"'A. Population Info'!O434","v":0},{"$f":"'A. Population Info'!P434","v":0},{"$f":"VLOOKUP(OFFSET($B:$B,,MATCH(G$4,$B$4:$F$4,0)-1),OFFSET('C. PoC Adj Factor Scoring'!$E$5:$J$282,,MATCH(G$4,'C. PoC Adj Factor Scoring'!$E$3:$AH$3,0)-1),MATCH(G$2&\" Score\",'C. PoC Adj Factor Scoring'!$E$4:$J$4,0),TRUE)","v":4},{"$f":"VLOOKUP(OFFSET($B:$B,,MATCH(H$4,$B$4:$F$4,0)-1),OFFSET('C. PoC Adj Factor Scoring'!$E$5:$J$282,,MATCH(H$4,'C. PoC Adj Factor Scoring'!$E$3:$AH$3,0)-1),MATCH(H$2&\" Score\",'C. PoC Adj Factor Scoring'!$E$4:$J$4,0),TRUE)","v":1},{"$f":"VLOOKUP(OFFSET($B:$B,,MATCH(I$4,$B$4:$F$4,0)-1),OFFSET('C. PoC Adj Factor Scoring'!$E$5:$J$282,,MATCH(I$4,'C. PoC Adj Factor Scoring'!$E$3:$AH$3,0)-1),MATCH(I$2&\" Score\",'C. PoC Adj Factor Scoring'!$E$4:$J$4,0),TRUE)","v":1},{"$f":"VLOOKUP(OFFSET($B:$B,,MATCH(J$4,$B$4:$F$4,0)-1),OFFSET('C. PoC Adj Factor Scoring'!$E$5:$J$282,,MATCH(J$4,'C. PoC Adj Factor Scoring'!$E$3:$AH$3,0)-1),MATCH(J$2&\" Score\",'C. PoC Adj Factor Scoring'!$E$4:$J$4,0),TRUE)","v":1},{"$f":"VLOOKUP(OFFSET($B:$B,,MATCH(K$4,$B$4:$F$4,0)-1),OFFSET('C. PoC Adj Factor Scoring'!$E$5:$J$282,,MATCH(K$4,'C. PoC Adj Factor Scoring'!$E$3:$AH$3,0)-1),MATCH(K$2&\" Score\",'C. PoC Adj Factor Scoring'!$E$4:$J$4,0),TRUE)","v":1},{"$f":"VLOOKUP(OFFSET($B:$B,,MATCH(L$4,$B$4:$F$4,0)-1),OFFSET('C. PoC Adj Factor Scoring'!$E$5:$J$282,,MATCH(L$4,'C. PoC Adj Factor Scoring'!$E$3:$AH$3,0)-1),MATCH(L$2&\" Score\",'C. PoC Adj Factor Scoring'!$E$4:$J$4,0),TRUE)","v":1},{"$f":"VLOOKUP(OFFSET($B:$B,,MATCH(M$4,$B$4:$F$4,0)-1),OFFSET('C. PoC Adj Factor Scoring'!$E$5:$J$282,,MATCH(M$4,'C. PoC Adj Factor Scoring'!$E$3:$AH$3,0)-1),MATCH(M$2&\" Score\",'C. PoC Adj Factor Scoring'!$E$4:$J$4,0),TRUE)","v":1},{"$f":"VLOOKUP(OFFSET($B:$B,,MATCH(N$4,$B$4:$F$4,0)-1),OFFSET('C. PoC Adj Factor Scoring'!$E$5:$J$282,,MATCH(N$4,'C. PoC Adj Factor Scoring'!$E$3:$AH$3,0)-1),MATCH(N$2&\" Score\",'C. PoC Adj Factor Scoring'!$E$4:$J$4,0),TRUE)","v":1},{"$f":"VLOOKUP(OFFSET($B:$B,,MATCH(O$4,$B$4:$F$4,0)-1),OFFSET('C. PoC Adj Factor Scoring'!$E$5:$J$282,,MATCH(O$4,'C. PoC Adj Factor Scoring'!$E$3:$AH$3,0)-1),MATCH(O$2&\" Score\",'C. PoC Adj Factor Scoring'!$E$4:$J$4,0),TRUE)","v":1},{"$f":"VLOOKUP(OFFSET($B:$B,,MATCH(P$4,$B$4:$F$4,0)-1),OFFSET('C. PoC Adj Factor Scoring'!$E$5:$J$282,,MATCH(P$4,'C. PoC Adj Factor Scoring'!$E$3:$AH$3,0)-1),MATCH(P$2&\" Score\",'C. PoC Adj Factor Scoring'!$E$4:$J$4,0),TRUE)","v":1},{"$f":"VLOOKUP(OFFSET($B:$B,,MATCH(Q$4,$B$4:$F$4,0)-1),OFFSET('C. PoC Adj Factor Scoring'!$E$5:$J$282,,MATCH(Q$4,'C. PoC Adj Factor Scoring'!$E$3:$AH$3,0)-1),MATCH(Q$2&\" Score\",'C. PoC Adj Factor Scoring'!$E$4:$J$4,0),TRUE)","v":1},{"$f":"VLOOKUP(OFFSET($B:$B,,MATCH(R$4,$B$4:$F$4,0)-1),OFFSET('C. PoC Adj Factor Scoring'!$E$5:$J$282,,MATCH(R$4,'C. PoC Adj Factor Scoring'!$E$3:$AH$3,0)-1),MATCH(R$2&\" Score\",'C. PoC Adj Factor Scoring'!$E$4:$J$4,0),TRUE)","v":1},{"$f":"VLOOKUP(OFFSET($B:$B,,MATCH(S$4,$B$4:$F$4,0)-1),OFFSET('C. PoC Adj Factor Scoring'!$E$5:$J$282,,MATCH(S$4,'C. PoC Adj Factor Scoring'!$E$3:$AH$3,0)-1),MATCH(S$2&\" Score\",'C. PoC Adj Factor Scoring'!$E$4:$J$4,0),TRUE)","v":1},{"$f":"VLOOKUP(OFFSET($B:$B,,MATCH(T$4,$B$4:$F$4,0)-1),OFFSET('C. PoC Adj Factor Scoring'!$E$5:$J$282,,MATCH(T$4,'C. PoC Adj Factor Scoring'!$E$3:$AH$3,0)-1),MATCH(T$2&\" Score\",'C. PoC Adj Factor Scoring'!$E$4:$J$4,0),TRUE)","v":1},{"$f":"VLOOKUP(OFFSET($B:$B,,MATCH(U$4,$B$4:$F$4,0)-1),OFFSET('C. PoC Adj Factor Scoring'!$E$5:$J$282,,MATCH(U$4,'C. PoC Adj Factor Scoring'!$E$3:$AH$3,0)-1),MATCH(U$2&\" Score\",'C. PoC Adj Factor Scoring'!$E$4:$J$4,0),TRUE)","v":1},{"$f":"VLOOKUP(OFFSET($B:$B,,MATCH(V$4,$B$4:$F$4,0)-1),OFFSET('C. PoC Adj Factor Scoring'!$E$5:$J$282,,MATCH(V$4,'C. PoC Adj Factor Scoring'!$E$3:$AH$3,0)-1),MATCH(V$2&\" Score\",'C. PoC Adj Factor Scoring'!$E$4:$J$4,0),TRUE)","v":1},{"$f":"VLOOKUP(OFFSET($B:$B,,MATCH(W$4,$B$4:$F$4,0)-1),OFFSET('C. PoC Adj Factor Scoring'!$E$5:$J$282,,MATCH(W$4,'C. PoC Adj Factor Scoring'!$E$3:$AH$3,0)-1),MATCH(W$2&\" Score\",'C. PoC Adj Factor Scoring'!$E$4:$J$4,0),TRUE)","v":1},{"$f":"VLOOKUP(OFFSET($B:$B,,MATCH(X$4,$B$4:$F$4,0)-1),OFFSET('C. PoC Adj Factor Scoring'!$E$5:$J$282,,MATCH(X$4,'C. PoC Adj Factor Scoring'!$E$3:$AH$3,0)-1),MATCH(X$2&\" Score\",'C. PoC Adj Factor Scoring'!$E$4:$J$4,0),TRUE)","v":1},{"$f":"VLOOKUP(OFFSET($B:$B,,MATCH(Y$4,$B$4:$F$4,0)-1),OFFSET('C. PoC Adj Factor Scoring'!$E$5:$J$282,,MATCH(Y$4,'C. PoC Adj Factor Scoring'!$E$3:$AH$3,0)-1),MATCH(Y$2&\" Score\",'C. PoC Adj Factor Scoring'!$E$4:$J$4,0),TRUE)","v":1},{"$f":"VLOOKUP(OFFSET($B:$B,,MATCH(Z$4,$B$4:$F$4,0)-1),OFFSET('C. PoC Adj Factor Scoring'!$E$5:$J$282,,MATCH(Z$4,'C. PoC Adj Factor Scoring'!$E$3:$AH$3,0)-1),MATCH(Z$2&\" Score\",'C. PoC Adj Factor Scoring'!$E$4:$J$4,0),TRUE)","v":1},{"$f":"VLOOKUP(OFFSET($B:$B,,MATCH(AA$4,$B$4:$F$4,0)-1),OFFSET('C. PoC Adj Factor Scoring'!$E$5:$J$282,,MATCH(AA$4,'C. PoC Adj Factor Scoring'!$E$3:$AH$3,0)-1),MATCH(AA$2&\" Score\",'C. PoC Adj Factor Scoring'!$E$4:$J$4,0),TRUE)","v":3},{"$f":"VLOOKUP(OFFSET($B:$B,,MATCH(AB$4,$B$4:$F$4,0)-1),OFFSET('C. PoC Adj Factor Scoring'!$E$5:$J$282,,MATCH(AB$4,'C. PoC Adj Factor Scoring'!$E$3:$AH$3,0)-1),MATCH(AB$2&\" Score\",'C. PoC Adj Factor Scoring'!$E$4:$J$4,0),TRUE)","v":1},{"$f":"VLOOKUP(OFFSET($B:$B,,MATCH(AC$4,$B$4:$F$4,0)-1),OFFSET('C. PoC Adj Factor Scoring'!$E$5:$J$282,,MATCH(AC$4,'C. PoC Adj Factor Scoring'!$E$3:$AH$3,0)-1),MATCH(AC$2&\" Score\",'C. PoC Adj Factor Scoring'!$E$4:$J$4,0),TRUE)","v":1},{"$f":"VLOOKUP(OFFSET($B:$B,,MATCH(AD$4,$B$4:$F$4,0)-1),OFFSET('C. PoC Adj Factor Scoring'!$E$5:$J$282,,MATCH(AD$4,'C. PoC Adj Factor Scoring'!$E$3:$AH$3,0)-1),MATCH(AD$2&\" Score\",'C. PoC Adj Factor Scoring'!$E$4:$J$4,0),TRUE)","v":1},{"$f":"VLOOKUP(OFFSET($B:$B,,MATCH(AE$4,$B$4:$F$4,0)-1),OFFSET('C. PoC Adj Factor Scoring'!$E$5:$J$282,,MATCH(AE$4,'C. PoC Adj Factor Scoring'!$E$3:$AH$3,0)-1),MATCH(AE$2&\" Score\",'C. PoC Adj Factor Scoring'!$E$4:$J$4,0),TRUE)","v":1}]
[{"$f":"'A. Population Info'!A435","v":1000412875},{"$f":"'A. Population Info'!L435","v":"OIL"},{"$f":"'A. Population Info'!M435","v":0},{"$f":"'A. Population Info'!N435","v":0},{"$f":"'A. Population Info'!O435","v":0},{"$f":"'A. Population Info'!P435","v":0},{"$f":"VLOOKUP(OFFSET($B:$B,,MATCH(G$4,$B$4:$F$4,0)-1),OFFSET('C. PoC Adj Factor Scoring'!$E$5:$J$282,,MATCH(G$4,'C. PoC Adj Factor Scoring'!$E$3:$AH$3,0)-1),MATCH(G$2&\" Score\",'C. PoC Adj Factor Scoring'!$E$4:$J$4,0),TRUE)","v":4},{"$f":"VLOOKUP(OFFSET($B:$B,,MATCH(H$4,$B$4:$F$4,0)-1),OFFSET('C. PoC Adj Factor Scoring'!$E$5:$J$282,,MATCH(H$4,'C. PoC Adj Factor Scoring'!$E$3:$AH$3,0)-1),MATCH(H$2&\" Score\",'C. PoC Adj Factor Scoring'!$E$4:$J$4,0),TRUE)","v":1},{"$f":"VLOOKUP(OFFSET($B:$B,,MATCH(I$4,$B$4:$F$4,0)-1),OFFSET('C. PoC Adj Factor Scoring'!$E$5:$J$282,,MATCH(I$4,'C. PoC Adj Factor Scoring'!$E$3:$AH$3,0)-1),MATCH(I$2&\" Score\",'C. PoC Adj Factor Scoring'!$E$4:$J$4,0),TRUE)","v":1},{"$f":"VLOOKUP(OFFSET($B:$B,,MATCH(J$4,$B$4:$F$4,0)-1),OFFSET('C. PoC Adj Factor Scoring'!$E$5:$J$282,,MATCH(J$4,'C. PoC Adj Factor Scoring'!$E$3:$AH$3,0)-1),MATCH(J$2&\" Score\",'C. PoC Adj Factor Scoring'!$E$4:$J$4,0),TRUE)","v":1},{"$f":"VLOOKUP(OFFSET($B:$B,,MATCH(K$4,$B$4:$F$4,0)-1),OFFSET('C. PoC Adj Factor Scoring'!$E$5:$J$282,,MATCH(K$4,'C. PoC Adj Factor Scoring'!$E$3:$AH$3,0)-1),MATCH(K$2&\" Score\",'C. PoC Adj Factor Scoring'!$E$4:$J$4,0),TRUE)","v":1},{"$f":"VLOOKUP(OFFSET($B:$B,,MATCH(L$4,$B$4:$F$4,0)-1),OFFSET('C. PoC Adj Factor Scoring'!$E$5:$J$282,,MATCH(L$4,'C. PoC Adj Factor Scoring'!$E$3:$AH$3,0)-1),MATCH(L$2&\" Score\",'C. PoC Adj Factor Scoring'!$E$4:$J$4,0),TRUE)","v":1},{"$f":"VLOOKUP(OFFSET($B:$B,,MATCH(M$4,$B$4:$F$4,0)-1),OFFSET('C. PoC Adj Factor Scoring'!$E$5:$J$282,,MATCH(M$4,'C. PoC Adj Factor Scoring'!$E$3:$AH$3,0)-1),MATCH(M$2&\" Score\",'C. PoC Adj Factor Scoring'!$E$4:$J$4,0),TRUE)","v":1},{"$f":"VLOOKUP(OFFSET($B:$B,,MATCH(N$4,$B$4:$F$4,0)-1),OFFSET('C. PoC Adj Factor Scoring'!$E$5:$J$282,,MATCH(N$4,'C. PoC Adj Factor Scoring'!$E$3:$AH$3,0)-1),MATCH(N$2&\" Score\",'C. PoC Adj Factor Scoring'!$E$4:$J$4,0),TRUE)","v":1},{"$f":"VLOOKUP(OFFSET($B:$B,,MATCH(O$4,$B$4:$F$4,0)-1),OFFSET('C. PoC Adj Factor Scoring'!$E$5:$J$282,,MATCH(O$4,'C. PoC Adj Factor Scoring'!$E$3:$AH$3,0)-1),MATCH(O$2&\" Score\",'C. PoC Adj Factor Scoring'!$E$4:$J$4,0),TRUE)","v":1},{"$f":"VLOOKUP(OFFSET($B:$B,,MATCH(P$4,$B$4:$F$4,0)-1),OFFSET('C. PoC Adj Factor Scoring'!$E$5:$J$282,,MATCH(P$4,'C. PoC Adj Factor Scoring'!$E$3:$AH$3,0)-1),MATCH(P$2&\" Score\",'C. PoC Adj Factor Scoring'!$E$4:$J$4,0),TRUE)","v":1},{"$f":"VLOOKUP(OFFSET($B:$B,,MATCH(Q$4,$B$4:$F$4,0)-1),OFFSET('C. PoC Adj Factor Scoring'!$E$5:$J$282,,MATCH(Q$4,'C. PoC Adj Factor Scoring'!$E$3:$AH$3,0)-1),MATCH(Q$2&\" Score\",'C. PoC Adj Factor Scoring'!$E$4:$J$4,0),TRUE)","v":1},{"$f":"VLOOKUP(OFFSET($B:$B,,MATCH(R$4,$B$4:$F$4,0)-1),OFFSET('C. PoC Adj Factor Scoring'!$E$5:$J$282,,MATCH(R$4,'C. PoC Adj Factor Scoring'!$E$3:$AH$3,0)-1),MATCH(R$2&\" Score\",'C. PoC Adj Factor Scoring'!$E$4:$J$4,0),TRUE)","v":1},{"$f":"VLOOKUP(OFFSET($B:$B,,MATCH(S$4,$B$4:$F$4,0)-1),OFFSET('C. PoC Adj Factor Scoring'!$E$5:$J$282,,MATCH(S$4,'C. PoC Adj Factor Scoring'!$E$3:$AH$3,0)-1),MATCH(S$2&\" Score\",'C. PoC Adj Factor Scoring'!$E$4:$J$4,0),TRUE)","v":1},{"$f":"VLOOKUP(OFFSET($B:$B,,MATCH(T$4,$B$4:$F$4,0)-1),OFFSET('C. PoC Adj Factor Scoring'!$E$5:$J$282,,MATCH(T$4,'C. PoC Adj Factor Scoring'!$E$3:$AH$3,0)-1),MATCH(T$2&\" Score\",'C. PoC Adj Factor Scoring'!$E$4:$J$4,0),TRUE)","v":1},{"$f":"VLOOKUP(OFFSET($B:$B,,MATCH(U$4,$B$4:$F$4,0)-1),OFFSET('C. PoC Adj Factor Scoring'!$E$5:$J$282,,MATCH(U$4,'C. PoC Adj Factor Scoring'!$E$3:$AH$3,0)-1),MATCH(U$2&\" Score\",'C. PoC Adj Factor Scoring'!$E$4:$J$4,0),TRUE)","v":1},{"$f":"VLOOKUP(OFFSET($B:$B,,MATCH(V$4,$B$4:$F$4,0)-1),OFFSET('C. PoC Adj Factor Scoring'!$E$5:$J$282,,MATCH(V$4,'C. PoC Adj Factor Scoring'!$E$3:$AH$3,0)-1),MATCH(V$2&\" Score\",'C. PoC Adj Factor Scoring'!$E$4:$J$4,0),TRUE)","v":1},{"$f":"VLOOKUP(OFFSET($B:$B,,MATCH(W$4,$B$4:$F$4,0)-1),OFFSET('C. PoC Adj Factor Scoring'!$E$5:$J$282,,MATCH(W$4,'C. PoC Adj Factor Scoring'!$E$3:$AH$3,0)-1),MATCH(W$2&\" Score\",'C. PoC Adj Factor Scoring'!$E$4:$J$4,0),TRUE)","v":1},{"$f":"VLOOKUP(OFFSET($B:$B,,MATCH(X$4,$B$4:$F$4,0)-1),OFFSET('C. PoC Adj Factor Scoring'!$E$5:$J$282,,MATCH(X$4,'C. PoC Adj Factor Scoring'!$E$3:$AH$3,0)-1),MATCH(X$2&\" Score\",'C. PoC Adj Factor Scoring'!$E$4:$J$4,0),TRUE)","v":1},{"$f":"VLOOKUP(OFFSET($B:$B,,MATCH(Y$4,$B$4:$F$4,0)-1),OFFSET('C. PoC Adj Factor Scoring'!$E$5:$J$282,,MATCH(Y$4,'C. PoC Adj Factor Scoring'!$E$3:$AH$3,0)-1),MATCH(Y$2&\" Score\",'C. PoC Adj Factor Scoring'!$E$4:$J$4,0),TRUE)","v":1},{"$f":"VLOOKUP(OFFSET($B:$B,,MATCH(Z$4,$B$4:$F$4,0)-1),OFFSET('C. PoC Adj Factor Scoring'!$E$5:$J$282,,MATCH(Z$4,'C. PoC Adj Factor Scoring'!$E$3:$AH$3,0)-1),MATCH(Z$2&\" Score\",'C. PoC Adj Factor Scoring'!$E$4:$J$4,0),TRUE)","v":1},{"$f":"VLOOKUP(OFFSET($B:$B,,MATCH(AA$4,$B$4:$F$4,0)-1),OFFSET('C. PoC Adj Factor Scoring'!$E$5:$J$282,,MATCH(AA$4,'C. PoC Adj Factor Scoring'!$E$3:$AH$3,0)-1),MATCH(AA$2&\" Score\",'C. PoC Adj Factor Scoring'!$E$4:$J$4,0),TRUE)","v":3},{"$f":"VLOOKUP(OFFSET($B:$B,,MATCH(AB$4,$B$4:$F$4,0)-1),OFFSET('C. PoC Adj Factor Scoring'!$E$5:$J$282,,MATCH(AB$4,'C. PoC Adj Factor Scoring'!$E$3:$AH$3,0)-1),MATCH(AB$2&\" Score\",'C. PoC Adj Factor Scoring'!$E$4:$J$4,0),TRUE)","v":1},{"$f":"VLOOKUP(OFFSET($B:$B,,MATCH(AC$4,$B$4:$F$4,0)-1),OFFSET('C. PoC Adj Factor Scoring'!$E$5:$J$282,,MATCH(AC$4,'C. PoC Adj Factor Scoring'!$E$3:$AH$3,0)-1),MATCH(AC$2&\" Score\",'C. PoC Adj Factor Scoring'!$E$4:$J$4,0),TRUE)","v":1},{"$f":"VLOOKUP(OFFSET($B:$B,,MATCH(AD$4,$B$4:$F$4,0)-1),OFFSET('C. PoC Adj Factor Scoring'!$E$5:$J$282,,MATCH(AD$4,'C. PoC Adj Factor Scoring'!$E$3:$AH$3,0)-1),MATCH(AD$2&\" Score\",'C. PoC Adj Factor Scoring'!$E$4:$J$4,0),TRUE)","v":1},{"$f":"VLOOKUP(OFFSET($B:$B,,MATCH(AE$4,$B$4:$F$4,0)-1),OFFSET('C. PoC Adj Factor Scoring'!$E$5:$J$282,,MATCH(AE$4,'C. PoC Adj Factor Scoring'!$E$3:$AH$3,0)-1),MATCH(AE$2&\" Score\",'C. PoC Adj Factor Scoring'!$E$4:$J$4,0),TRUE)","v":1}]
[{"$f":"'A. Population Info'!A436","v":1000414952},{"$f":"'A. Population Info'!L436","v":"OIL"},{"$f":"'A. Population Info'!M436","v":0},{"$f":"'A. Population Info'!N436","v":0},{"$f":"'A. Population Info'!O436","v":0},{"$f":"'A. Population Info'!P436","v":0},{"$f":"VLOOKUP(OFFSET($B:$B,,MATCH(G$4,$B$4:$F$4,0)-1),OFFSET('C. PoC Adj Factor Scoring'!$E$5:$J$282,,MATCH(G$4,'C. PoC Adj Factor Scoring'!$E$3:$AH$3,0)-1),MATCH(G$2&\" Score\",'C. PoC Adj Factor Scoring'!$E$4:$J$4,0),TRUE)","v":4},{"$f":"VLOOKUP(OFFSET($B:$B,,MATCH(H$4,$B$4:$F$4,0)-1),OFFSET('C. PoC Adj Factor Scoring'!$E$5:$J$282,,MATCH(H$4,'C. PoC Adj Factor Scoring'!$E$3:$AH$3,0)-1),MATCH(H$2&\" Score\",'C. PoC Adj Factor Scoring'!$E$4:$J$4,0),TRUE)","v":1},{"$f":"VLOOKUP(OFFSET($B:$B,,MATCH(I$4,$B$4:$F$4,0)-1),OFFSET('C. PoC Adj Factor Scoring'!$E$5:$J$282,,MATCH(I$4,'C. PoC Adj Factor Scoring'!$E$3:$AH$3,0)-1),MATCH(I$2&\" Score\",'C. PoC Adj Factor Scoring'!$E$4:$J$4,0),TRUE)","v":1},{"$f":"VLOOKUP(OFFSET($B:$B,,MATCH(J$4,$B$4:$F$4,0)-1),OFFSET('C. PoC Adj Factor Scoring'!$E$5:$J$282,,MATCH(J$4,'C. PoC Adj Factor Scoring'!$E$3:$AH$3,0)-1),MATCH(J$2&\" Score\",'C. PoC Adj Factor Scoring'!$E$4:$J$4,0),TRUE)","v":1},{"$f":"VLOOKUP(OFFSET($B:$B,,MATCH(K$4,$B$4:$F$4,0)-1),OFFSET('C. PoC Adj Factor Scoring'!$E$5:$J$282,,MATCH(K$4,'C. PoC Adj Factor Scoring'!$E$3:$AH$3,0)-1),MATCH(K$2&\" Score\",'C. PoC Adj Factor Scoring'!$E$4:$J$4,0),TRUE)","v":1},{"$f":"VLOOKUP(OFFSET($B:$B,,MATCH(L$4,$B$4:$F$4,0)-1),OFFSET('C. PoC Adj Factor Scoring'!$E$5:$J$282,,MATCH(L$4,'C. PoC Adj Factor Scoring'!$E$3:$AH$3,0)-1),MATCH(L$2&\" Score\",'C. PoC Adj Factor Scoring'!$E$4:$J$4,0),TRUE)","v":1},{"$f":"VLOOKUP(OFFSET($B:$B,,MATCH(M$4,$B$4:$F$4,0)-1),OFFSET('C. PoC Adj Factor Scoring'!$E$5:$J$282,,MATCH(M$4,'C. PoC Adj Factor Scoring'!$E$3:$AH$3,0)-1),MATCH(M$2&\" Score\",'C. PoC Adj Factor Scoring'!$E$4:$J$4,0),TRUE)","v":1},{"$f":"VLOOKUP(OFFSET($B:$B,,MATCH(N$4,$B$4:$F$4,0)-1),OFFSET('C. PoC Adj Factor Scoring'!$E$5:$J$282,,MATCH(N$4,'C. PoC Adj Factor Scoring'!$E$3:$AH$3,0)-1),MATCH(N$2&\" Score\",'C. PoC Adj Factor Scoring'!$E$4:$J$4,0),TRUE)","v":1},{"$f":"VLOOKUP(OFFSET($B:$B,,MATCH(O$4,$B$4:$F$4,0)-1),OFFSET('C. PoC Adj Factor Scoring'!$E$5:$J$282,,MATCH(O$4,'C. PoC Adj Factor Scoring'!$E$3:$AH$3,0)-1),MATCH(O$2&\" Score\",'C. PoC Adj Factor Scoring'!$E$4:$J$4,0),TRUE)","v":1},{"$f":"VLOOKUP(OFFSET($B:$B,,MATCH(P$4,$B$4:$F$4,0)-1),OFFSET('C. PoC Adj Factor Scoring'!$E$5:$J$282,,MATCH(P$4,'C. PoC Adj Factor Scoring'!$E$3:$AH$3,0)-1),MATCH(P$2&\" Score\",'C. PoC Adj Factor Scoring'!$E$4:$J$4,0),TRUE)","v":1},{"$f":"VLOOKUP(OFFSET($B:$B,,MATCH(Q$4,$B$4:$F$4,0)-1),OFFSET('C. PoC Adj Factor Scoring'!$E$5:$J$282,,MATCH(Q$4,'C. PoC Adj Factor Scoring'!$E$3:$AH$3,0)-1),MATCH(Q$2&\" Score\",'C. PoC Adj Factor Scoring'!$E$4:$J$4,0),TRUE)","v":1},{"$f":"VLOOKUP(OFFSET($B:$B,,MATCH(R$4,$B$4:$F$4,0)-1),OFFSET('C. PoC Adj Factor Scoring'!$E$5:$J$282,,MATCH(R$4,'C. PoC Adj Factor Scoring'!$E$3:$AH$3,0)-1),MATCH(R$2&\" Score\",'C. PoC Adj Factor Scoring'!$E$4:$J$4,0),TRUE)","v":1},{"$f":"VLOOKUP(OFFSET($B:$B,,MATCH(S$4,$B$4:$F$4,0)-1),OFFSET('C. PoC Adj Factor Scoring'!$E$5:$J$282,,MATCH(S$4,'C. PoC Adj Factor Scoring'!$E$3:$AH$3,0)-1),MATCH(S$2&\" Score\",'C. PoC Adj Factor Scoring'!$E$4:$J$4,0),TRUE)","v":1},{"$f":"VLOOKUP(OFFSET($B:$B,,MATCH(T$4,$B$4:$F$4,0)-1),OFFSET('C. PoC Adj Factor Scoring'!$E$5:$J$282,,MATCH(T$4,'C. PoC Adj Factor Scoring'!$E$3:$AH$3,0)-1),MATCH(T$2&\" Score\",'C. PoC Adj Factor Scoring'!$E$4:$J$4,0),TRUE)","v":1},{"$f":"VLOOKUP(OFFSET($B:$B,,MATCH(U$4,$B$4:$F$4,0)-1),OFFSET('C. PoC Adj Factor Scoring'!$E$5:$J$282,,MATCH(U$4,'C. PoC Adj Factor Scoring'!$E$3:$AH$3,0)-1),MATCH(U$2&\" Score\",'C. PoC Adj Factor Scoring'!$E$4:$J$4,0),TRUE)","v":1},{"$f":"VLOOKUP(OFFSET($B:$B,,MATCH(V$4,$B$4:$F$4,0)-1),OFFSET('C. PoC Adj Factor Scoring'!$E$5:$J$282,,MATCH(V$4,'C. PoC Adj Factor Scoring'!$E$3:$AH$3,0)-1),MATCH(V$2&\" Score\",'C. PoC Adj Factor Scoring'!$E$4:$J$4,0),TRUE)","v":1},{"$f":"VLOOKUP(OFFSET($B:$B,,MATCH(W$4,$B$4:$F$4,0)-1),OFFSET('C. PoC Adj Factor Scoring'!$E$5:$J$282,,MATCH(W$4,'C. PoC Adj Factor Scoring'!$E$3:$AH$3,0)-1),MATCH(W$2&\" Score\",'C. PoC Adj Factor Scoring'!$E$4:$J$4,0),TRUE)","v":1},{"$f":"VLOOKUP(OFFSET($B:$B,,MATCH(X$4,$B$4:$F$4,0)-1),OFFSET('C. PoC Adj Factor Scoring'!$E$5:$J$282,,MATCH(X$4,'C. PoC Adj Factor Scoring'!$E$3:$AH$3,0)-1),MATCH(X$2&\" Score\",'C. PoC Adj Factor Scoring'!$E$4:$J$4,0),TRUE)","v":1},{"$f":"VLOOKUP(OFFSET($B:$B,,MATCH(Y$4,$B$4:$F$4,0)-1),OFFSET('C. PoC Adj Factor Scoring'!$E$5:$J$282,,MATCH(Y$4,'C. PoC Adj Factor Scoring'!$E$3:$AH$3,0)-1),MATCH(Y$2&\" Score\",'C. PoC Adj Factor Scoring'!$E$4:$J$4,0),TRUE)","v":1},{"$f":"VLOOKUP(OFFSET($B:$B,,MATCH(Z$4,$B$4:$F$4,0)-1),OFFSET('C. PoC Adj Factor Scoring'!$E$5:$J$282,,MATCH(Z$4,'C. PoC Adj Factor Scoring'!$E$3:$AH$3,0)-1),MATCH(Z$2&\" Score\",'C. PoC Adj Factor Scoring'!$E$4:$J$4,0),TRUE)","v":1},{"$f":"VLOOKUP(OFFSET($B:$B,,MATCH(AA$4,$B$4:$F$4,0)-1),OFFSET('C. PoC Adj Factor Scoring'!$E$5:$J$282,,MATCH(AA$4,'C. PoC Adj Factor Scoring'!$E$3:$AH$3,0)-1),MATCH(AA$2&\" Score\",'C. PoC Adj Factor Scoring'!$E$4:$J$4,0),TRUE)","v":3},{"$f":"VLOOKUP(OFFSET($B:$B,,MATCH(AB$4,$B$4:$F$4,0)-1),OFFSET('C. PoC Adj Factor Scoring'!$E$5:$J$282,,MATCH(AB$4,'C. PoC Adj Factor Scoring'!$E$3:$AH$3,0)-1),MATCH(AB$2&\" Score\",'C. PoC Adj Factor Scoring'!$E$4:$J$4,0),TRUE)","v":1},{"$f":"VLOOKUP(OFFSET($B:$B,,MATCH(AC$4,$B$4:$F$4,0)-1),OFFSET('C. PoC Adj Factor Scoring'!$E$5:$J$282,,MATCH(AC$4,'C. PoC Adj Factor Scoring'!$E$3:$AH$3,0)-1),MATCH(AC$2&\" Score\",'C. PoC Adj Factor Scoring'!$E$4:$J$4,0),TRUE)","v":1},{"$f":"VLOOKUP(OFFSET($B:$B,,MATCH(AD$4,$B$4:$F$4,0)-1),OFFSET('C. PoC Adj Factor Scoring'!$E$5:$J$282,,MATCH(AD$4,'C. PoC Adj Factor Scoring'!$E$3:$AH$3,0)-1),MATCH(AD$2&\" Score\",'C. PoC Adj Factor Scoring'!$E$4:$J$4,0),TRUE)","v":1},{"$f":"VLOOKUP(OFFSET($B:$B,,MATCH(AE$4,$B$4:$F$4,0)-1),OFFSET('C. PoC Adj Factor Scoring'!$E$5:$J$282,,MATCH(AE$4,'C. PoC Adj Factor Scoring'!$E$3:$AH$3,0)-1),MATCH(AE$2&\" Score\",'C. PoC Adj Factor Scoring'!$E$4:$J$4,0),TRUE)","v":1}]
[{"$f":"'A. Population Info'!A437","v":1000414953},{"$f":"'A. Population Info'!L437","v":"OIL"},{"$f":"'A. Population Info'!M437","v":0},{"$f":"'A. Population Info'!N437","v":0},{"$f":"'A. Population Info'!O437","v":0},{"$f":"'A. Population Info'!P437","v":0},{"$f":"VLOOKUP(OFFSET($B:$B,,MATCH(G$4,$B$4:$F$4,0)-1),OFFSET('C. PoC Adj Factor Scoring'!$E$5:$J$282,,MATCH(G$4,'C. PoC Adj Factor Scoring'!$E$3:$AH$3,0)-1),MATCH(G$2&\" Score\",'C. PoC Adj Factor Scoring'!$E$4:$J$4,0),TRUE)","v":4},{"$f":"VLOOKUP(OFFSET($B:$B,,MATCH(H$4,$B$4:$F$4,0)-1),OFFSET('C. PoC Adj Factor Scoring'!$E$5:$J$282,,MATCH(H$4,'C. PoC Adj Factor Scoring'!$E$3:$AH$3,0)-1),MATCH(H$2&\" Score\",'C. PoC Adj Factor Scoring'!$E$4:$J$4,0),TRUE)","v":1},{"$f":"VLOOKUP(OFFSET($B:$B,,MATCH(I$4,$B$4:$F$4,0)-1),OFFSET('C. PoC Adj Factor Scoring'!$E$5:$J$282,,MATCH(I$4,'C. PoC Adj Factor Scoring'!$E$3:$AH$3,0)-1),MATCH(I$2&\" Score\",'C. PoC Adj Factor Scoring'!$E$4:$J$4,0),TRUE)","v":1},{"$f":"VLOOKUP(OFFSET($B:$B,,MATCH(J$4,$B$4:$F$4,0)-1),OFFSET('C. PoC Adj Factor Scoring'!$E$5:$J$282,,MATCH(J$4,'C. PoC Adj Factor Scoring'!$E$3:$AH$3,0)-1),MATCH(J$2&\" Score\",'C. PoC Adj Factor Scoring'!$E$4:$J$4,0),TRUE)","v":1},{"$f":"VLOOKUP(OFFSET($B:$B,,MATCH(K$4,$B$4:$F$4,0)-1),OFFSET('C. PoC Adj Factor Scoring'!$E$5:$J$282,,MATCH(K$4,'C. PoC Adj Factor Scoring'!$E$3:$AH$3,0)-1),MATCH(K$2&\" Score\",'C. PoC Adj Factor Scoring'!$E$4:$J$4,0),TRUE)","v":1},{"$f":"VLOOKUP(OFFSET($B:$B,,MATCH(L$4,$B$4:$F$4,0)-1),OFFSET('C. PoC Adj Factor Scoring'!$E$5:$J$282,,MATCH(L$4,'C. PoC Adj Factor Scoring'!$E$3:$AH$3,0)-1),MATCH(L$2&\" Score\",'C. PoC Adj Factor Scoring'!$E$4:$J$4,0),TRUE)","v":1},{"$f":"VLOOKUP(OFFSET($B:$B,,MATCH(M$4,$B$4:$F$4,0)-1),OFFSET('C. PoC Adj Factor Scoring'!$E$5:$J$282,,MATCH(M$4,'C. PoC Adj Factor Scoring'!$E$3:$AH$3,0)-1),MATCH(M$2&\" Score\",'C. PoC Adj Factor Scoring'!$E$4:$J$4,0),TRUE)","v":1},{"$f":"VLOOKUP(OFFSET($B:$B,,MATCH(N$4,$B$4:$F$4,0)-1),OFFSET('C. PoC Adj Factor Scoring'!$E$5:$J$282,,MATCH(N$4,'C. PoC Adj Factor Scoring'!$E$3:$AH$3,0)-1),MATCH(N$2&\" Score\",'C. PoC Adj Factor Scoring'!$E$4:$J$4,0),TRUE)","v":1},{"$f":"VLOOKUP(OFFSET($B:$B,,MATCH(O$4,$B$4:$F$4,0)-1),OFFSET('C. PoC Adj Factor Scoring'!$E$5:$J$282,,MATCH(O$4,'C. PoC Adj Factor Scoring'!$E$3:$AH$3,0)-1),MATCH(O$2&\" Score\",'C. PoC Adj Factor Scoring'!$E$4:$J$4,0),TRUE)","v":1},{"$f":"VLOOKUP(OFFSET($B:$B,,MATCH(P$4,$B$4:$F$4,0)-1),OFFSET('C. PoC Adj Factor Scoring'!$E$5:$J$282,,MATCH(P$4,'C. PoC Adj Factor Scoring'!$E$3:$AH$3,0)-1),MATCH(P$2&\" Score\",'C. PoC Adj Factor Scoring'!$E$4:$J$4,0),TRUE)","v":1},{"$f":"VLOOKUP(OFFSET($B:$B,,MATCH(Q$4,$B$4:$F$4,0)-1),OFFSET('C. PoC Adj Factor Scoring'!$E$5:$J$282,,MATCH(Q$4,'C. PoC Adj Factor Scoring'!$E$3:$AH$3,0)-1),MATCH(Q$2&\" Score\",'C. PoC Adj Factor Scoring'!$E$4:$J$4,0),TRUE)","v":1},{"$f":"VLOOKUP(OFFSET($B:$B,,MATCH(R$4,$B$4:$F$4,0)-1),OFFSET('C. PoC Adj Factor Scoring'!$E$5:$J$282,,MATCH(R$4,'C. PoC Adj Factor Scoring'!$E$3:$AH$3,0)-1),MATCH(R$2&\" Score\",'C. PoC Adj Factor Scoring'!$E$4:$J$4,0),TRUE)","v":1},{"$f":"VLOOKUP(OFFSET($B:$B,,MATCH(S$4,$B$4:$F$4,0)-1),OFFSET('C. PoC Adj Factor Scoring'!$E$5:$J$282,,MATCH(S$4,'C. PoC Adj Factor Scoring'!$E$3:$AH$3,0)-1),MATCH(S$2&\" Score\",'C. PoC Adj Factor Scoring'!$E$4:$J$4,0),TRUE)","v":1},{"$f":"VLOOKUP(OFFSET($B:$B,,MATCH(T$4,$B$4:$F$4,0)-1),OFFSET('C. PoC Adj Factor Scoring'!$E$5:$J$282,,MATCH(T$4,'C. PoC Adj Factor Scoring'!$E$3:$AH$3,0)-1),MATCH(T$2&\" Score\",'C. PoC Adj Factor Scoring'!$E$4:$J$4,0),TRUE)","v":1},{"$f":"VLOOKUP(OFFSET($B:$B,,MATCH(U$4,$B$4:$F$4,0)-1),OFFSET('C. PoC Adj Factor Scoring'!$E$5:$J$282,,MATCH(U$4,'C. PoC Adj Factor Scoring'!$E$3:$AH$3,0)-1),MATCH(U$2&\" Score\",'C. PoC Adj Factor Scoring'!$E$4:$J$4,0),TRUE)","v":1},{"$f":"VLOOKUP(OFFSET($B:$B,,MATCH(V$4,$B$4:$F$4,0)-1),OFFSET('C. PoC Adj Factor Scoring'!$E$5:$J$282,,MATCH(V$4,'C. PoC Adj Factor Scoring'!$E$3:$AH$3,0)-1),MATCH(V$2&\" Score\",'C. PoC Adj Factor Scoring'!$E$4:$J$4,0),TRUE)","v":1},{"$f":"VLOOKUP(OFFSET($B:$B,,MATCH(W$4,$B$4:$F$4,0)-1),OFFSET('C. PoC Adj Factor Scoring'!$E$5:$J$282,,MATCH(W$4,'C. PoC Adj Factor Scoring'!$E$3:$AH$3,0)-1),MATCH(W$2&\" Score\",'C. PoC Adj Factor Scoring'!$E$4:$J$4,0),TRUE)","v":1},{"$f":"VLOOKUP(OFFSET($B:$B,,MATCH(X$4,$B$4:$F$4,0)-1),OFFSET('C. PoC Adj Factor Scoring'!$E$5:$J$282,,MATCH(X$4,'C. PoC Adj Factor Scoring'!$E$3:$AH$3,0)-1),MATCH(X$2&\" Score\",'C. PoC Adj Factor Scoring'!$E$4:$J$4,0),TRUE)","v":1},{"$f":"VLOOKUP(OFFSET($B:$B,,MATCH(Y$4,$B$4:$F$4,0)-1),OFFSET('C. PoC Adj Factor Scoring'!$E$5:$J$282,,MATCH(Y$4,'C. PoC Adj Factor Scoring'!$E$3:$AH$3,0)-1),MATCH(Y$2&\" Score\",'C. PoC Adj Factor Scoring'!$E$4:$J$4,0),TRUE)","v":1},{"$f":"VLOOKUP(OFFSET($B:$B,,MATCH(Z$4,$B$4:$F$4,0)-1),OFFSET('C. PoC Adj Factor Scoring'!$E$5:$J$282,,MATCH(Z$4,'C. PoC Adj Factor Scoring'!$E$3:$AH$3,0)-1),MATCH(Z$2&\" Score\",'C. PoC Adj Factor Scoring'!$E$4:$J$4,0),TRUE)","v":1},{"$f":"VLOOKUP(OFFSET($B:$B,,MATCH(AA$4,$B$4:$F$4,0)-1),OFFSET('C. PoC Adj Factor Scoring'!$E$5:$J$282,,MATCH(AA$4,'C. PoC Adj Factor Scoring'!$E$3:$AH$3,0)-1),MATCH(AA$2&\" Score\",'C. PoC Adj Factor Scoring'!$E$4:$J$4,0),TRUE)","v":3},{"$f":"VLOOKUP(OFFSET($B:$B,,MATCH(AB$4,$B$4:$F$4,0)-1),OFFSET('C. PoC Adj Factor Scoring'!$E$5:$J$282,,MATCH(AB$4,'C. PoC Adj Factor Scoring'!$E$3:$AH$3,0)-1),MATCH(AB$2&\" Score\",'C. PoC Adj Factor Scoring'!$E$4:$J$4,0),TRUE)","v":1},{"$f":"VLOOKUP(OFFSET($B:$B,,MATCH(AC$4,$B$4:$F$4,0)-1),OFFSET('C. PoC Adj Factor Scoring'!$E$5:$J$282,,MATCH(AC$4,'C. PoC Adj Factor Scoring'!$E$3:$AH$3,0)-1),MATCH(AC$2&\" Score\",'C. PoC Adj Factor Scoring'!$E$4:$J$4,0),TRUE)","v":1},{"$f":"VLOOKUP(OFFSET($B:$B,,MATCH(AD$4,$B$4:$F$4,0)-1),OFFSET('C. PoC Adj Factor Scoring'!$E$5:$J$282,,MATCH(AD$4,'C. PoC Adj Factor Scoring'!$E$3:$AH$3,0)-1),MATCH(AD$2&\" Score\",'C. PoC Adj Factor Scoring'!$E$4:$J$4,0),TRUE)","v":1},{"$f":"VLOOKUP(OFFSET($B:$B,,MATCH(AE$4,$B$4:$F$4,0)-1),OFFSET('C. PoC Adj Factor Scoring'!$E$5:$J$282,,MATCH(AE$4,'C. PoC Adj Factor Scoring'!$E$3:$AH$3,0)-1),MATCH(AE$2&\" Score\",'C. PoC Adj Factor Scoring'!$E$4:$J$4,0),TRUE)","v":1}]
[{"$f":"'A. Population Info'!A438","v":1001423014},{"$f":"'A. Population Info'!L438","v":"OIL"},{"$f":"'A. Population Info'!M438","v":0},{"$f":"'A. Population Info'!N438","v":0},{"$f":"'A. Population Info'!O438","v":0},{"$f":"'A. Population Info'!P438","v":0},{"$f":"VLOOKUP(OFFSET($B:$B,,MATCH(G$4,$B$4:$F$4,0)-1),OFFSET('C. PoC Adj Factor Scoring'!$E$5:$J$282,,MATCH(G$4,'C. PoC Adj Factor Scoring'!$E$3:$AH$3,0)-1),MATCH(G$2&\" Score\",'C. PoC Adj Factor Scoring'!$E$4:$J$4,0),TRUE)","v":4},{"$f":"VLOOKUP(OFFSET($B:$B,,MATCH(H$4,$B$4:$F$4,0)-1),OFFSET('C. PoC Adj Factor Scoring'!$E$5:$J$282,,MATCH(H$4,'C. PoC Adj Factor Scoring'!$E$3:$AH$3,0)-1),MATCH(H$2&\" Score\",'C. PoC Adj Factor Scoring'!$E$4:$J$4,0),TRUE)","v":1},{"$f":"VLOOKUP(OFFSET($B:$B,,MATCH(I$4,$B$4:$F$4,0)-1),OFFSET('C. PoC Adj Factor Scoring'!$E$5:$J$282,,MATCH(I$4,'C. PoC Adj Factor Scoring'!$E$3:$AH$3,0)-1),MATCH(I$2&\" Score\",'C. PoC Adj Factor Scoring'!$E$4:$J$4,0),TRUE)","v":1},{"$f":"VLOOKUP(OFFSET($B:$B,,MATCH(J$4,$B$4:$F$4,0)-1),OFFSET('C. PoC Adj Factor Scoring'!$E$5:$J$282,,MATCH(J$4,'C. PoC Adj Factor Scoring'!$E$3:$AH$3,0)-1),MATCH(J$2&\" Score\",'C. PoC Adj Factor Scoring'!$E$4:$J$4,0),TRUE)","v":1},{"$f":"VLOOKUP(OFFSET($B:$B,,MATCH(K$4,$B$4:$F$4,0)-1),OFFSET('C. PoC Adj Factor Scoring'!$E$5:$J$282,,MATCH(K$4,'C. PoC Adj Factor Scoring'!$E$3:$AH$3,0)-1),MATCH(K$2&\" Score\",'C. PoC Adj Factor Scoring'!$E$4:$J$4,0),TRUE)","v":1},{"$f":"VLOOKUP(OFFSET($B:$B,,MATCH(L$4,$B$4:$F$4,0)-1),OFFSET('C. PoC Adj Factor Scoring'!$E$5:$J$282,,MATCH(L$4,'C. PoC Adj Factor Scoring'!$E$3:$AH$3,0)-1),MATCH(L$2&\" Score\",'C. PoC Adj Factor Scoring'!$E$4:$J$4,0),TRUE)","v":1},{"$f":"VLOOKUP(OFFSET($B:$B,,MATCH(M$4,$B$4:$F$4,0)-1),OFFSET('C. PoC Adj Factor Scoring'!$E$5:$J$282,,MATCH(M$4,'C. PoC Adj Factor Scoring'!$E$3:$AH$3,0)-1),MATCH(M$2&\" Score\",'C. PoC Adj Factor Scoring'!$E$4:$J$4,0),TRUE)","v":1},{"$f":"VLOOKUP(OFFSET($B:$B,,MATCH(N$4,$B$4:$F$4,0)-1),OFFSET('C. PoC Adj Factor Scoring'!$E$5:$J$282,,MATCH(N$4,'C. PoC Adj Factor Scoring'!$E$3:$AH$3,0)-1),MATCH(N$2&\" Score\",'C. PoC Adj Factor Scoring'!$E$4:$J$4,0),TRUE)","v":1},{"$f":"VLOOKUP(OFFSET($B:$B,,MATCH(O$4,$B$4:$F$4,0)-1),OFFSET('C. PoC Adj Factor Scoring'!$E$5:$J$282,,MATCH(O$4,'C. PoC Adj Factor Scoring'!$E$3:$AH$3,0)-1),MATCH(O$2&\" Score\",'C. PoC Adj Factor Scoring'!$E$4:$J$4,0),TRUE)","v":1},{"$f":"VLOOKUP(OFFSET($B:$B,,MATCH(P$4,$B$4:$F$4,0)-1),OFFSET('C. PoC Adj Factor Scoring'!$E$5:$J$282,,MATCH(P$4,'C. PoC Adj Factor Scoring'!$E$3:$AH$3,0)-1),MATCH(P$2&\" Score\",'C. PoC Adj Factor Scoring'!$E$4:$J$4,0),TRUE)","v":1},{"$f":"VLOOKUP(OFFSET($B:$B,,MATCH(Q$4,$B$4:$F$4,0)-1),OFFSET('C. PoC Adj Factor Scoring'!$E$5:$J$282,,MATCH(Q$4,'C. PoC Adj Factor Scoring'!$E$3:$AH$3,0)-1),MATCH(Q$2&\" Score\",'C. PoC Adj Factor Scoring'!$E$4:$J$4,0),TRUE)","v":1},{"$f":"VLOOKUP(OFFSET($B:$B,,MATCH(R$4,$B$4:$F$4,0)-1),OFFSET('C. PoC Adj Factor Scoring'!$E$5:$J$282,,MATCH(R$4,'C. PoC Adj Factor Scoring'!$E$3:$AH$3,0)-1),MATCH(R$2&\" Score\",'C. PoC Adj Factor Scoring'!$E$4:$J$4,0),TRUE)","v":1},{"$f":"VLOOKUP(OFFSET($B:$B,,MATCH(S$4,$B$4:$F$4,0)-1),OFFSET('C. PoC Adj Factor Scoring'!$E$5:$J$282,,MATCH(S$4,'C. PoC Adj Factor Scoring'!$E$3:$AH$3,0)-1),MATCH(S$2&\" Score\",'C. PoC Adj Factor Scoring'!$E$4:$J$4,0),TRUE)","v":1},{"$f":"VLOOKUP(OFFSET($B:$B,,MATCH(T$4,$B$4:$F$4,0)-1),OFFSET('C. PoC Adj Factor Scoring'!$E$5:$J$282,,MATCH(T$4,'C. PoC Adj Factor Scoring'!$E$3:$AH$3,0)-1),MATCH(T$2&\" Score\",'C. PoC Adj Factor Scoring'!$E$4:$J$4,0),TRUE)","v":1},{"$f":"VLOOKUP(OFFSET($B:$B,,MATCH(U$4,$B$4:$F$4,0)-1),OFFSET('C. PoC Adj Factor Scoring'!$E$5:$J$282,,MATCH(U$4,'C. PoC Adj Factor Scoring'!$E$3:$AH$3,0)-1),MATCH(U$2&\" Score\",'C. PoC Adj Factor Scoring'!$E$4:$J$4,0),TRUE)","v":1},{"$f":"VLOOKUP(OFFSET($B:$B,,MATCH(V$4,$B$4:$F$4,0)-1),OFFSET('C. PoC Adj Factor Scoring'!$E$5:$J$282,,MATCH(V$4,'C. PoC Adj Factor Scoring'!$E$3:$AH$3,0)-1),MATCH(V$2&\" Score\",'C. PoC Adj Factor Scoring'!$E$4:$J$4,0),TRUE)","v":1},{"$f":"VLOOKUP(OFFSET($B:$B,,MATCH(W$4,$B$4:$F$4,0)-1),OFFSET('C. PoC Adj Factor Scoring'!$E$5:$J$282,,MATCH(W$4,'C. PoC Adj Factor Scoring'!$E$3:$AH$3,0)-1),MATCH(W$2&\" Score\",'C. PoC Adj Factor Scoring'!$E$4:$J$4,0),TRUE)","v":1},{"$f":"VLOOKUP(OFFSET($B:$B,,MATCH(X$4,$B$4:$F$4,0)-1),OFFSET('C. PoC Adj Factor Scoring'!$E$5:$J$282,,MATCH(X$4,'C. PoC Adj Factor Scoring'!$E$3:$AH$3,0)-1),MATCH(X$2&\" Score\",'C. PoC Adj Factor Scoring'!$E$4:$J$4,0),TRUE)","v":1},{"$f":"VLOOKUP(OFFSET($B:$B,,MATCH(Y$4,$B$4:$F$4,0)-1),OFFSET('C. PoC Adj Factor Scoring'!$E$5:$J$282,,MATCH(Y$4,'C. PoC Adj Factor Scoring'!$E$3:$AH$3,0)-1),MATCH(Y$2&\" Score\",'C. PoC Adj Factor Scoring'!$E$4:$J$4,0),TRUE)","v":1},{"$f":"VLOOKUP(OFFSET($B:$B,,MATCH(Z$4,$B$4:$F$4,0)-1),OFFSET('C. PoC Adj Factor Scoring'!$E$5:$J$282,,MATCH(Z$4,'C. PoC Adj Factor Scoring'!$E$3:$AH$3,0)-1),MATCH(Z$2&\" Score\",'C. PoC Adj Factor Scoring'!$E$4:$J$4,0),TRUE)","v":1},{"$f":"VLOOKUP(OFFSET($B:$B,,MATCH(AA$4,$B$4:$F$4,0)-1),OFFSET('C. PoC Adj Factor Scoring'!$E$5:$J$282,,MATCH(AA$4,'C. PoC Adj Factor Scoring'!$E$3:$AH$3,0)-1),MATCH(AA$2&\" Score\",'C. PoC Adj Factor Scoring'!$E$4:$J$4,0),TRUE)","v":3},{"$f":"VLOOKUP(OFFSET($B:$B,,MATCH(AB$4,$B$4:$F$4,0)-1),OFFSET('C. PoC Adj Factor Scoring'!$E$5:$J$282,,MATCH(AB$4,'C. PoC Adj Factor Scoring'!$E$3:$AH$3,0)-1),MATCH(AB$2&\" Score\",'C. PoC Adj Factor Scoring'!$E$4:$J$4,0),TRUE)","v":1},{"$f":"VLOOKUP(OFFSET($B:$B,,MATCH(AC$4,$B$4:$F$4,0)-1),OFFSET('C. PoC Adj Factor Scoring'!$E$5:$J$282,,MATCH(AC$4,'C. PoC Adj Factor Scoring'!$E$3:$AH$3,0)-1),MATCH(AC$2&\" Score\",'C. PoC Adj Factor Scoring'!$E$4:$J$4,0),TRUE)","v":1},{"$f":"VLOOKUP(OFFSET($B:$B,,MATCH(AD$4,$B$4:$F$4,0)-1),OFFSET('C. PoC Adj Factor Scoring'!$E$5:$J$282,,MATCH(AD$4,'C. PoC Adj Factor Scoring'!$E$3:$AH$3,0)-1),MATCH(AD$2&\" Score\",'C. PoC Adj Factor Scoring'!$E$4:$J$4,0),TRUE)","v":1},{"$f":"VLOOKUP(OFFSET($B:$B,,MATCH(AE$4,$B$4:$F$4,0)-1),OFFSET('C. PoC Adj Factor Scoring'!$E$5:$J$282,,MATCH(AE$4,'C. PoC Adj Factor Scoring'!$E$3:$AH$3,0)-1),MATCH(AE$2&\" Score\",'C. PoC Adj Factor Scoring'!$E$4:$J$4,0),TRUE)","v":1}]
[{"$f":"'A. Population Info'!A439","v":1001433025},{"$f":"'A. Population Info'!L439","v":"OIL"},{"$f":"'A. Population Info'!M439","v":0},{"$f":"'A. Population Info'!N439","v":0},{"$f":"'A. Population Info'!O439","v":0},{"$f":"'A. Population Info'!P439","v":0},{"$f":"VLOOKUP(OFFSET($B:$B,,MATCH(G$4,$B$4:$F$4,0)-1),OFFSET('C. PoC Adj Factor Scoring'!$E$5:$J$282,,MATCH(G$4,'C. PoC Adj Factor Scoring'!$E$3:$AH$3,0)-1),MATCH(G$2&\" Score\",'C. PoC Adj Factor Scoring'!$E$4:$J$4,0),TRUE)","v":4},{"$f":"VLOOKUP(OFFSET($B:$B,,MATCH(H$4,$B$4:$F$4,0)-1),OFFSET('C. PoC Adj Factor Scoring'!$E$5:$J$282,,MATCH(H$4,'C. PoC Adj Factor Scoring'!$E$3:$AH$3,0)-1),MATCH(H$2&\" Score\",'C. PoC Adj Factor Scoring'!$E$4:$J$4,0),TRUE)","v":1},{"$f":"VLOOKUP(OFFSET($B:$B,,MATCH(I$4,$B$4:$F$4,0)-1),OFFSET('C. PoC Adj Factor Scoring'!$E$5:$J$282,,MATCH(I$4,'C. PoC Adj Factor Scoring'!$E$3:$AH$3,0)-1),MATCH(I$2&\" Score\",'C. PoC Adj Factor Scoring'!$E$4:$J$4,0),TRUE)","v":1},{"$f":"VLOOKUP(OFFSET($B:$B,,MATCH(J$4,$B$4:$F$4,0)-1),OFFSET('C. PoC Adj Factor Scoring'!$E$5:$J$282,,MATCH(J$4,'C. PoC Adj Factor Scoring'!$E$3:$AH$3,0)-1),MATCH(J$2&\" Score\",'C. PoC Adj Factor Scoring'!$E$4:$J$4,0),TRUE)","v":1},{"$f":"VLOOKUP(OFFSET($B:$B,,MATCH(K$4,$B$4:$F$4,0)-1),OFFSET('C. PoC Adj Factor Scoring'!$E$5:$J$282,,MATCH(K$4,'C. PoC Adj Factor Scoring'!$E$3:$AH$3,0)-1),MATCH(K$2&\" Score\",'C. PoC Adj Factor Scoring'!$E$4:$J$4,0),TRUE)","v":1},{"$f":"VLOOKUP(OFFSET($B:$B,,MATCH(L$4,$B$4:$F$4,0)-1),OFFSET('C. PoC Adj Factor Scoring'!$E$5:$J$282,,MATCH(L$4,'C. PoC Adj Factor Scoring'!$E$3:$AH$3,0)-1),MATCH(L$2&\" Score\",'C. PoC Adj Factor Scoring'!$E$4:$J$4,0),TRUE)","v":1},{"$f":"VLOOKUP(OFFSET($B:$B,,MATCH(M$4,$B$4:$F$4,0)-1),OFFSET('C. PoC Adj Factor Scoring'!$E$5:$J$282,,MATCH(M$4,'C. PoC Adj Factor Scoring'!$E$3:$AH$3,0)-1),MATCH(M$2&\" Score\",'C. PoC Adj Factor Scoring'!$E$4:$J$4,0),TRUE)","v":1},{"$f":"VLOOKUP(OFFSET($B:$B,,MATCH(N$4,$B$4:$F$4,0)-1),OFFSET('C. PoC Adj Factor Scoring'!$E$5:$J$282,,MATCH(N$4,'C. PoC Adj Factor Scoring'!$E$3:$AH$3,0)-1),MATCH(N$2&\" Score\",'C. PoC Adj Factor Scoring'!$E$4:$J$4,0),TRUE)","v":1},{"$f":"VLOOKUP(OFFSET($B:$B,,MATCH(O$4,$B$4:$F$4,0)-1),OFFSET('C. PoC Adj Factor Scoring'!$E$5:$J$282,,MATCH(O$4,'C. PoC Adj Factor Scoring'!$E$3:$AH$3,0)-1),MATCH(O$2&\" Score\",'C. PoC Adj Factor Scoring'!$E$4:$J$4,0),TRUE)","v":1},{"$f":"VLOOKUP(OFFSET($B:$B,,MATCH(P$4,$B$4:$F$4,0)-1),OFFSET('C. PoC Adj Factor Scoring'!$E$5:$J$282,,MATCH(P$4,'C. PoC Adj Factor Scoring'!$E$3:$AH$3,0)-1),MATCH(P$2&\" Score\",'C. PoC Adj Factor Scoring'!$E$4:$J$4,0),TRUE)","v":1},{"$f":"VLOOKUP(OFFSET($B:$B,,MATCH(Q$4,$B$4:$F$4,0)-1),OFFSET('C. PoC Adj Factor Scoring'!$E$5:$J$282,,MATCH(Q$4,'C. PoC Adj Factor Scoring'!$E$3:$AH$3,0)-1),MATCH(Q$2&\" Score\",'C. PoC Adj Factor Scoring'!$E$4:$J$4,0),TRUE)","v":1},{"$f":"VLOOKUP(OFFSET($B:$B,,MATCH(R$4,$B$4:$F$4,0)-1),OFFSET('C. PoC Adj Factor Scoring'!$E$5:$J$282,,MATCH(R$4,'C. PoC Adj Factor Scoring'!$E$3:$AH$3,0)-1),MATCH(R$2&\" Score\",'C. PoC Adj Factor Scoring'!$E$4:$J$4,0),TRUE)","v":1},{"$f":"VLOOKUP(OFFSET($B:$B,,MATCH(S$4,$B$4:$F$4,0)-1),OFFSET('C. PoC Adj Factor Scoring'!$E$5:$J$282,,MATCH(S$4,'C. PoC Adj Factor Scoring'!$E$3:$AH$3,0)-1),MATCH(S$2&\" Score\",'C. PoC Adj Factor Scoring'!$E$4:$J$4,0),TRUE)","v":1},{"$f":"VLOOKUP(OFFSET($B:$B,,MATCH(T$4,$B$4:$F$4,0)-1),OFFSET('C. PoC Adj Factor Scoring'!$E$5:$J$282,,MATCH(T$4,'C. PoC Adj Factor Scoring'!$E$3:$AH$3,0)-1),MATCH(T$2&\" Score\",'C. PoC Adj Factor Scoring'!$E$4:$J$4,0),TRUE)","v":1},{"$f":"VLOOKUP(OFFSET($B:$B,,MATCH(U$4,$B$4:$F$4,0)-1),OFFSET('C. PoC Adj Factor Scoring'!$E$5:$J$282,,MATCH(U$4,'C. PoC Adj Factor Scoring'!$E$3:$AH$3,0)-1),MATCH(U$2&\" Score\",'C. PoC Adj Factor Scoring'!$E$4:$J$4,0),TRUE)","v":1},{"$f":"VLOOKUP(OFFSET($B:$B,,MATCH(V$4,$B$4:$F$4,0)-1),OFFSET('C. PoC Adj Factor Scoring'!$E$5:$J$282,,MATCH(V$4,'C. PoC Adj Factor Scoring'!$E$3:$AH$3,0)-1),MATCH(V$2&\" Score\",'C. PoC Adj Factor Scoring'!$E$4:$J$4,0),TRUE)","v":1},{"$f":"VLOOKUP(OFFSET($B:$B,,MATCH(W$4,$B$4:$F$4,0)-1),OFFSET('C. PoC Adj Factor Scoring'!$E$5:$J$282,,MATCH(W$4,'C. PoC Adj Factor Scoring'!$E$3:$AH$3,0)-1),MATCH(W$2&\" Score\",'C. PoC Adj Factor Scoring'!$E$4:$J$4,0),TRUE)","v":1},{"$f":"VLOOKUP(OFFSET($B:$B,,MATCH(X$4,$B$4:$F$4,0)-1),OFFSET('C. PoC Adj Factor Scoring'!$E$5:$J$282,,MATCH(X$4,'C. PoC Adj Factor Scoring'!$E$3:$AH$3,0)-1),MATCH(X$2&\" Score\",'C. PoC Adj Factor Scoring'!$E$4:$J$4,0),TRUE)","v":1},{"$f":"VLOOKUP(OFFSET($B:$B,,MATCH(Y$4,$B$4:$F$4,0)-1),OFFSET('C. PoC Adj Factor Scoring'!$E$5:$J$282,,MATCH(Y$4,'C. PoC Adj Factor Scoring'!$E$3:$AH$3,0)-1),MATCH(Y$2&\" Score\",'C. PoC Adj Factor Scoring'!$E$4:$J$4,0),TRUE)","v":1},{"$f":"VLOOKUP(OFFSET($B:$B,,MATCH(Z$4,$B$4:$F$4,0)-1),OFFSET('C. PoC Adj Factor Scoring'!$E$5:$J$282,,MATCH(Z$4,'C. PoC Adj Factor Scoring'!$E$3:$AH$3,0)-1),MATCH(Z$2&\" Score\",'C. PoC Adj Factor Scoring'!$E$4:$J$4,0),TRUE)","v":1},{"$f":"VLOOKUP(OFFSET($B:$B,,MATCH(AA$4,$B$4:$F$4,0)-1),OFFSET('C. PoC Adj Factor Scoring'!$E$5:$J$282,,MATCH(AA$4,'C. PoC Adj Factor Scoring'!$E$3:$AH$3,0)-1),MATCH(AA$2&\" Score\",'C. PoC Adj Factor Scoring'!$E$4:$J$4,0),TRUE)","v":3},{"$f":"VLOOKUP(OFFSET($B:$B,,MATCH(AB$4,$B$4:$F$4,0)-1),OFFSET('C. PoC Adj Factor Scoring'!$E$5:$J$282,,MATCH(AB$4,'C. PoC Adj Factor Scoring'!$E$3:$AH$3,0)-1),MATCH(AB$2&\" Score\",'C. PoC Adj Factor Scoring'!$E$4:$J$4,0),TRUE)","v":1},{"$f":"VLOOKUP(OFFSET($B:$B,,MATCH(AC$4,$B$4:$F$4,0)-1),OFFSET('C. PoC Adj Factor Scoring'!$E$5:$J$282,,MATCH(AC$4,'C. PoC Adj Factor Scoring'!$E$3:$AH$3,0)-1),MATCH(AC$2&\" Score\",'C. PoC Adj Factor Scoring'!$E$4:$J$4,0),TRUE)","v":1},{"$f":"VLOOKUP(OFFSET($B:$B,,MATCH(AD$4,$B$4:$F$4,0)-1),OFFSET('C. PoC Adj Factor Scoring'!$E$5:$J$282,,MATCH(AD$4,'C. PoC Adj Factor Scoring'!$E$3:$AH$3,0)-1),MATCH(AD$2&\" Score\",'C. PoC Adj Factor Scoring'!$E$4:$J$4,0),TRUE)","v":1},{"$f":"VLOOKUP(OFFSET($B:$B,,MATCH(AE$4,$B$4:$F$4,0)-1),OFFSET('C. PoC Adj Factor Scoring'!$E$5:$J$282,,MATCH(AE$4,'C. PoC Adj Factor Scoring'!$E$3:$AH$3,0)-1),MATCH(AE$2&\" Score\",'C. PoC Adj Factor Scoring'!$E$4:$J$4,0),TRUE)","v":1}]
[{"$f":"'A. Population Info'!A440","v":1001433198},{"$f":"'A. Population Info'!L440","v":"OIL"},{"$f":"'A. Population Info'!M440","v":0},{"$f":"'A. Population Info'!N440","v":0},{"$f":"'A. Population Info'!O440","v":0},{"$f":"'A. Population Info'!P440","v":0},{"$f":"VLOOKUP(OFFSET($B:$B,,MATCH(G$4,$B$4:$F$4,0)-1),OFFSET('C. PoC Adj Factor Scoring'!$E$5:$J$282,,MATCH(G$4,'C. PoC Adj Factor Scoring'!$E$3:$AH$3,0)-1),MATCH(G$2&\" Score\",'C. PoC Adj Factor Scoring'!$E$4:$J$4,0),TRUE)","v":4},{"$f":"VLOOKUP(OFFSET($B:$B,,MATCH(H$4,$B$4:$F$4,0)-1),OFFSET('C. PoC Adj Factor Scoring'!$E$5:$J$282,,MATCH(H$4,'C. PoC Adj Factor Scoring'!$E$3:$AH$3,0)-1),MATCH(H$2&\" Score\",'C. PoC Adj Factor Scoring'!$E$4:$J$4,0),TRUE)","v":1},{"$f":"VLOOKUP(OFFSET($B:$B,,MATCH(I$4,$B$4:$F$4,0)-1),OFFSET('C. PoC Adj Factor Scoring'!$E$5:$J$282,,MATCH(I$4,'C. PoC Adj Factor Scoring'!$E$3:$AH$3,0)-1),MATCH(I$2&\" Score\",'C. PoC Adj Factor Scoring'!$E$4:$J$4,0),TRUE)","v":1},{"$f":"VLOOKUP(OFFSET($B:$B,,MATCH(J$4,$B$4:$F$4,0)-1),OFFSET('C. PoC Adj Factor Scoring'!$E$5:$J$282,,MATCH(J$4,'C. PoC Adj Factor Scoring'!$E$3:$AH$3,0)-1),MATCH(J$2&\" Score\",'C. PoC Adj Factor Scoring'!$E$4:$J$4,0),TRUE)","v":1},{"$f":"VLOOKUP(OFFSET($B:$B,,MATCH(K$4,$B$4:$F$4,0)-1),OFFSET('C. PoC Adj Factor Scoring'!$E$5:$J$282,,MATCH(K$4,'C. PoC Adj Factor Scoring'!$E$3:$AH$3,0)-1),MATCH(K$2&\" Score\",'C. PoC Adj Factor Scoring'!$E$4:$J$4,0),TRUE)","v":1},{"$f":"VLOOKUP(OFFSET($B:$B,,MATCH(L$4,$B$4:$F$4,0)-1),OFFSET('C. PoC Adj Factor Scoring'!$E$5:$J$282,,MATCH(L$4,'C. PoC Adj Factor Scoring'!$E$3:$AH$3,0)-1),MATCH(L$2&\" Score\",'C. PoC Adj Factor Scoring'!$E$4:$J$4,0),TRUE)","v":1},{"$f":"VLOOKUP(OFFSET($B:$B,,MATCH(M$4,$B$4:$F$4,0)-1),OFFSET('C. PoC Adj Factor Scoring'!$E$5:$J$282,,MATCH(M$4,'C. PoC Adj Factor Scoring'!$E$3:$AH$3,0)-1),MATCH(M$2&\" Score\",'C. PoC Adj Factor Scoring'!$E$4:$J$4,0),TRUE)","v":1},{"$f":"VLOOKUP(OFFSET($B:$B,,MATCH(N$4,$B$4:$F$4,0)-1),OFFSET('C. PoC Adj Factor Scoring'!$E$5:$J$282,,MATCH(N$4,'C. PoC Adj Factor Scoring'!$E$3:$AH$3,0)-1),MATCH(N$2&\" Score\",'C. PoC Adj Factor Scoring'!$E$4:$J$4,0),TRUE)","v":1},{"$f":"VLOOKUP(OFFSET($B:$B,,MATCH(O$4,$B$4:$F$4,0)-1),OFFSET('C. PoC Adj Factor Scoring'!$E$5:$J$282,,MATCH(O$4,'C. PoC Adj Factor Scoring'!$E$3:$AH$3,0)-1),MATCH(O$2&\" Score\",'C. PoC Adj Factor Scoring'!$E$4:$J$4,0),TRUE)","v":1},{"$f":"VLOOKUP(OFFSET($B:$B,,MATCH(P$4,$B$4:$F$4,0)-1),OFFSET('C. PoC Adj Factor Scoring'!$E$5:$J$282,,MATCH(P$4,'C. PoC Adj Factor Scoring'!$E$3:$AH$3,0)-1),MATCH(P$2&\" Score\",'C. PoC Adj Factor Scoring'!$E$4:$J$4,0),TRUE)","v":1},{"$f":"VLOOKUP(OFFSET($B:$B,,MATCH(Q$4,$B$4:$F$4,0)-1),OFFSET('C. PoC Adj Factor Scoring'!$E$5:$J$282,,MATCH(Q$4,'C. PoC Adj Factor Scoring'!$E$3:$AH$3,0)-1),MATCH(Q$2&\" Score\",'C. PoC Adj Factor Scoring'!$E$4:$J$4,0),TRUE)","v":1},{"$f":"VLOOKUP(OFFSET($B:$B,,MATCH(R$4,$B$4:$F$4,0)-1),OFFSET('C. PoC Adj Factor Scoring'!$E$5:$J$282,,MATCH(R$4,'C. PoC Adj Factor Scoring'!$E$3:$AH$3,0)-1),MATCH(R$2&\" Score\",'C. PoC Adj Factor Scoring'!$E$4:$J$4,0),TRUE)","v":1},{"$f":"VLOOKUP(OFFSET($B:$B,,MATCH(S$4,$B$4:$F$4,0)-1),OFFSET('C. PoC Adj Factor Scoring'!$E$5:$J$282,,MATCH(S$4,'C. PoC Adj Factor Scoring'!$E$3:$AH$3,0)-1),MATCH(S$2&\" Score\",'C. PoC Adj Factor Scoring'!$E$4:$J$4,0),TRUE)","v":1},{"$f":"VLOOKUP(OFFSET($B:$B,,MATCH(T$4,$B$4:$F$4,0)-1),OFFSET('C. PoC Adj Factor Scoring'!$E$5:$J$282,,MATCH(T$4,'C. PoC Adj Factor Scoring'!$E$3:$AH$3,0)-1),MATCH(T$2&\" Score\",'C. PoC Adj Factor Scoring'!$E$4:$J$4,0),TRUE)","v":1},{"$f":"VLOOKUP(OFFSET($B:$B,,MATCH(U$4,$B$4:$F$4,0)-1),OFFSET('C. PoC Adj Factor Scoring'!$E$5:$J$282,,MATCH(U$4,'C. PoC Adj Factor Scoring'!$E$3:$AH$3,0)-1),MATCH(U$2&\" Score\",'C. PoC Adj Factor Scoring'!$E$4:$J$4,0),TRUE)","v":1},{"$f":"VLOOKUP(OFFSET($B:$B,,MATCH(V$4,$B$4:$F$4,0)-1),OFFSET('C. PoC Adj Factor Scoring'!$E$5:$J$282,,MATCH(V$4,'C. PoC Adj Factor Scoring'!$E$3:$AH$3,0)-1),MATCH(V$2&\" Score\",'C. PoC Adj Factor Scoring'!$E$4:$J$4,0),TRUE)","v":1},{"$f":"VLOOKUP(OFFSET($B:$B,,MATCH(W$4,$B$4:$F$4,0)-1),OFFSET('C. PoC Adj Factor Scoring'!$E$5:$J$282,,MATCH(W$4,'C. PoC Adj Factor Scoring'!$E$3:$AH$3,0)-1),MATCH(W$2&\" Score\",'C. PoC Adj Factor Scoring'!$E$4:$J$4,0),TRUE)","v":1},{"$f":"VLOOKUP(OFFSET($B:$B,,MATCH(X$4,$B$4:$F$4,0)-1),OFFSET('C. PoC Adj Factor Scoring'!$E$5:$J$282,,MATCH(X$4,'C. PoC Adj Factor Scoring'!$E$3:$AH$3,0)-1),MATCH(X$2&\" Score\",'C. PoC Adj Factor Scoring'!$E$4:$J$4,0),TRUE)","v":1},{"$f":"VLOOKUP(OFFSET($B:$B,,MATCH(Y$4,$B$4:$F$4,0)-1),OFFSET('C. PoC Adj Factor Scoring'!$E$5:$J$282,,MATCH(Y$4,'C. PoC Adj Factor Scoring'!$E$3:$AH$3,0)-1),MATCH(Y$2&\" Score\",'C. PoC Adj Factor Scoring'!$E$4:$J$4,0),TRUE)","v":1},{"$f":"VLOOKUP(OFFSET($B:$B,,MATCH(Z$4,$B$4:$F$4,0)-1),OFFSET('C. PoC Adj Factor Scoring'!$E$5:$J$282,,MATCH(Z$4,'C. PoC Adj Factor Scoring'!$E$3:$AH$3,0)-1),MATCH(Z$2&\" Score\",'C. PoC Adj Factor Scoring'!$E$4:$J$4,0),TRUE)","v":1},{"$f":"VLOOKUP(OFFSET($B:$B,,MATCH(AA$4,$B$4:$F$4,0)-1),OFFSET('C. PoC Adj Factor Scoring'!$E$5:$J$282,,MATCH(AA$4,'C. PoC Adj Factor Scoring'!$E$3:$AH$3,0)-1),MATCH(AA$2&\" Score\",'C. PoC Adj Factor Scoring'!$E$4:$J$4,0),TRUE)","v":3},{"$f":"VLOOKUP(OFFSET($B:$B,,MATCH(AB$4,$B$4:$F$4,0)-1),OFFSET('C. PoC Adj Factor Scoring'!$E$5:$J$282,,MATCH(AB$4,'C. PoC Adj Factor Scoring'!$E$3:$AH$3,0)-1),MATCH(AB$2&\" Score\",'C. PoC Adj Factor Scoring'!$E$4:$J$4,0),TRUE)","v":1},{"$f":"VLOOKUP(OFFSET($B:$B,,MATCH(AC$4,$B$4:$F$4,0)-1),OFFSET('C. PoC Adj Factor Scoring'!$E$5:$J$282,,MATCH(AC$4,'C. PoC Adj Factor Scoring'!$E$3:$AH$3,0)-1),MATCH(AC$2&\" Score\",'C. PoC Adj Factor Scoring'!$E$4:$J$4,0),TRUE)","v":1},{"$f":"VLOOKUP(OFFSET($B:$B,,MATCH(AD$4,$B$4:$F$4,0)-1),OFFSET('C. PoC Adj Factor Scoring'!$E$5:$J$282,,MATCH(AD$4,'C. PoC Adj Factor Scoring'!$E$3:$AH$3,0)-1),MATCH(AD$2&\" Score\",'C. PoC Adj Factor Scoring'!$E$4:$J$4,0),TRUE)","v":1},{"$f":"VLOOKUP(OFFSET($B:$B,,MATCH(AE$4,$B$4:$F$4,0)-1),OFFSET('C. PoC Adj Factor Scoring'!$E$5:$J$282,,MATCH(AE$4,'C. PoC Adj Factor Scoring'!$E$3:$AH$3,0)-1),MATCH(AE$2&\" Score\",'C. PoC Adj Factor Scoring'!$E$4:$J$4,0),TRUE)","v":1}]
[{"$f":"'A. Population Info'!A441","v":1001435539},{"$f":"'A. Population Info'!L441","v":"OIL"},{"$f":"'A. Population Info'!M441","v":0},{"$f":"'A. Population Info'!N441","v":0},{"$f":"'A. Population Info'!O441","v":0},{"$f":"'A. Population Info'!P441","v":0},{"$f":"VLOOKUP(OFFSET($B:$B,,MATCH(G$4,$B$4:$F$4,0)-1),OFFSET('C. PoC Adj Factor Scoring'!$E$5:$J$282,,MATCH(G$4,'C. PoC Adj Factor Scoring'!$E$3:$AH$3,0)-1),MATCH(G$2&\" Score\",'C. PoC Adj Factor Scoring'!$E$4:$J$4,0),TRUE)","v":4},{"$f":"VLOOKUP(OFFSET($B:$B,,MATCH(H$4,$B$4:$F$4,0)-1),OFFSET('C. PoC Adj Factor Scoring'!$E$5:$J$282,,MATCH(H$4,'C. PoC Adj Factor Scoring'!$E$3:$AH$3,0)-1),MATCH(H$2&\" Score\",'C. PoC Adj Factor Scoring'!$E$4:$J$4,0),TRUE)","v":1},{"$f":"VLOOKUP(OFFSET($B:$B,,MATCH(I$4,$B$4:$F$4,0)-1),OFFSET('C. PoC Adj Factor Scoring'!$E$5:$J$282,,MATCH(I$4,'C. PoC Adj Factor Scoring'!$E$3:$AH$3,0)-1),MATCH(I$2&\" Score\",'C. PoC Adj Factor Scoring'!$E$4:$J$4,0),TRUE)","v":1},{"$f":"VLOOKUP(OFFSET($B:$B,,MATCH(J$4,$B$4:$F$4,0)-1),OFFSET('C. PoC Adj Factor Scoring'!$E$5:$J$282,,MATCH(J$4,'C. PoC Adj Factor Scoring'!$E$3:$AH$3,0)-1),MATCH(J$2&\" Score\",'C. PoC Adj Factor Scoring'!$E$4:$J$4,0),TRUE)","v":1},{"$f":"VLOOKUP(OFFSET($B:$B,,MATCH(K$4,$B$4:$F$4,0)-1),OFFSET('C. PoC Adj Factor Scoring'!$E$5:$J$282,,MATCH(K$4,'C. PoC Adj Factor Scoring'!$E$3:$AH$3,0)-1),MATCH(K$2&\" Score\",'C. PoC Adj Factor Scoring'!$E$4:$J$4,0),TRUE)","v":1},{"$f":"VLOOKUP(OFFSET($B:$B,,MATCH(L$4,$B$4:$F$4,0)-1),OFFSET('C. PoC Adj Factor Scoring'!$E$5:$J$282,,MATCH(L$4,'C. PoC Adj Factor Scoring'!$E$3:$AH$3,0)-1),MATCH(L$2&\" Score\",'C. PoC Adj Factor Scoring'!$E$4:$J$4,0),TRUE)","v":1},{"$f":"VLOOKUP(OFFSET($B:$B,,MATCH(M$4,$B$4:$F$4,0)-1),OFFSET('C. PoC Adj Factor Scoring'!$E$5:$J$282,,MATCH(M$4,'C. PoC Adj Factor Scoring'!$E$3:$AH$3,0)-1),MATCH(M$2&\" Score\",'C. PoC Adj Factor Scoring'!$E$4:$J$4,0),TRUE)","v":1},{"$f":"VLOOKUP(OFFSET($B:$B,,MATCH(N$4,$B$4:$F$4,0)-1),OFFSET('C. PoC Adj Factor Scoring'!$E$5:$J$282,,MATCH(N$4,'C. PoC Adj Factor Scoring'!$E$3:$AH$3,0)-1),MATCH(N$2&\" Score\",'C. PoC Adj Factor Scoring'!$E$4:$J$4,0),TRUE)","v":1},{"$f":"VLOOKUP(OFFSET($B:$B,,MATCH(O$4,$B$4:$F$4,0)-1),OFFSET('C. PoC Adj Factor Scoring'!$E$5:$J$282,,MATCH(O$4,'C. PoC Adj Factor Scoring'!$E$3:$AH$3,0)-1),MATCH(O$2&\" Score\",'C. PoC Adj Factor Scoring'!$E$4:$J$4,0),TRUE)","v":1},{"$f":"VLOOKUP(OFFSET($B:$B,,MATCH(P$4,$B$4:$F$4,0)-1),OFFSET('C. PoC Adj Factor Scoring'!$E$5:$J$282,,MATCH(P$4,'C. PoC Adj Factor Scoring'!$E$3:$AH$3,0)-1),MATCH(P$2&\" Score\",'C. PoC Adj Factor Scoring'!$E$4:$J$4,0),TRUE)","v":1},{"$f":"VLOOKUP(OFFSET($B:$B,,MATCH(Q$4,$B$4:$F$4,0)-1),OFFSET('C. PoC Adj Factor Scoring'!$E$5:$J$282,,MATCH(Q$4,'C. PoC Adj Factor Scoring'!$E$3:$AH$3,0)-1),MATCH(Q$2&\" Score\",'C. PoC Adj Factor Scoring'!$E$4:$J$4,0),TRUE)","v":1},{"$f":"VLOOKUP(OFFSET($B:$B,,MATCH(R$4,$B$4:$F$4,0)-1),OFFSET('C. PoC Adj Factor Scoring'!$E$5:$J$282,,MATCH(R$4,'C. PoC Adj Factor Scoring'!$E$3:$AH$3,0)-1),MATCH(R$2&\" Score\",'C. PoC Adj Factor Scoring'!$E$4:$J$4,0),TRUE)","v":1},{"$f":"VLOOKUP(OFFSET($B:$B,,MATCH(S$4,$B$4:$F$4,0)-1),OFFSET('C. PoC Adj Factor Scoring'!$E$5:$J$282,,MATCH(S$4,'C. PoC Adj Factor Scoring'!$E$3:$AH$3,0)-1),MATCH(S$2&\" Score\",'C. PoC Adj Factor Scoring'!$E$4:$J$4,0),TRUE)","v":1},{"$f":"VLOOKUP(OFFSET($B:$B,,MATCH(T$4,$B$4:$F$4,0)-1),OFFSET('C. PoC Adj Factor Scoring'!$E$5:$J$282,,MATCH(T$4,'C. PoC Adj Factor Scoring'!$E$3:$AH$3,0)-1),MATCH(T$2&\" Score\",'C. PoC Adj Factor Scoring'!$E$4:$J$4,0),TRUE)","v":1},{"$f":"VLOOKUP(OFFSET($B:$B,,MATCH(U$4,$B$4:$F$4,0)-1),OFFSET('C. PoC Adj Factor Scoring'!$E$5:$J$282,,MATCH(U$4,'C. PoC Adj Factor Scoring'!$E$3:$AH$3,0)-1),MATCH(U$2&\" Score\",'C. PoC Adj Factor Scoring'!$E$4:$J$4,0),TRUE)","v":1},{"$f":"VLOOKUP(OFFSET($B:$B,,MATCH(V$4,$B$4:$F$4,0)-1),OFFSET('C. PoC Adj Factor Scoring'!$E$5:$J$282,,MATCH(V$4,'C. PoC Adj Factor Scoring'!$E$3:$AH$3,0)-1),MATCH(V$2&\" Score\",'C. PoC Adj Factor Scoring'!$E$4:$J$4,0),TRUE)","v":1},{"$f":"VLOOKUP(OFFSET($B:$B,,MATCH(W$4,$B$4:$F$4,0)-1),OFFSET('C. PoC Adj Factor Scoring'!$E$5:$J$282,,MATCH(W$4,'C. PoC Adj Factor Scoring'!$E$3:$AH$3,0)-1),MATCH(W$2&\" Score\",'C. PoC Adj Factor Scoring'!$E$4:$J$4,0),TRUE)","v":1},{"$f":"VLOOKUP(OFFSET($B:$B,,MATCH(X$4,$B$4:$F$4,0)-1),OFFSET('C. PoC Adj Factor Scoring'!$E$5:$J$282,,MATCH(X$4,'C. PoC Adj Factor Scoring'!$E$3:$AH$3,0)-1),MATCH(X$2&\" Score\",'C. PoC Adj Factor Scoring'!$E$4:$J$4,0),TRUE)","v":1},{"$f":"VLOOKUP(OFFSET($B:$B,,MATCH(Y$4,$B$4:$F$4,0)-1),OFFSET('C. PoC Adj Factor Scoring'!$E$5:$J$282,,MATCH(Y$4,'C. PoC Adj Factor Scoring'!$E$3:$AH$3,0)-1),MATCH(Y$2&\" Score\",'C. PoC Adj Factor Scoring'!$E$4:$J$4,0),TRUE)","v":1},{"$f":"VLOOKUP(OFFSET($B:$B,,MATCH(Z$4,$B$4:$F$4,0)-1),OFFSET('C. PoC Adj Factor Scoring'!$E$5:$J$282,,MATCH(Z$4,'C. PoC Adj Factor Scoring'!$E$3:$AH$3,0)-1),MATCH(Z$2&\" Score\",'C. PoC Adj Factor Scoring'!$E$4:$J$4,0),TRUE)","v":1},{"$f":"VLOOKUP(OFFSET($B:$B,,MATCH(AA$4,$B$4:$F$4,0)-1),OFFSET('C. PoC Adj Factor Scoring'!$E$5:$J$282,,MATCH(AA$4,'C. PoC Adj Factor Scoring'!$E$3:$AH$3,0)-1),MATCH(AA$2&\" Score\",'C. PoC Adj Factor Scoring'!$E$4:$J$4,0),TRUE)","v":3},{"$f":"VLOOKUP(OFFSET($B:$B,,MATCH(AB$4,$B$4:$F$4,0)-1),OFFSET('C. PoC Adj Factor Scoring'!$E$5:$J$282,,MATCH(AB$4,'C. PoC Adj Factor Scoring'!$E$3:$AH$3,0)-1),MATCH(AB$2&\" Score\",'C. PoC Adj Factor Scoring'!$E$4:$J$4,0),TRUE)","v":1},{"$f":"VLOOKUP(OFFSET($B:$B,,MATCH(AC$4,$B$4:$F$4,0)-1),OFFSET('C. PoC Adj Factor Scoring'!$E$5:$J$282,,MATCH(AC$4,'C. PoC Adj Factor Scoring'!$E$3:$AH$3,0)-1),MATCH(AC$2&\" Score\",'C. PoC Adj Factor Scoring'!$E$4:$J$4,0),TRUE)","v":1},{"$f":"VLOOKUP(OFFSET($B:$B,,MATCH(AD$4,$B$4:$F$4,0)-1),OFFSET('C. PoC Adj Factor Scoring'!$E$5:$J$282,,MATCH(AD$4,'C. PoC Adj Factor Scoring'!$E$3:$AH$3,0)-1),MATCH(AD$2&\" Score\",'C. PoC Adj Factor Scoring'!$E$4:$J$4,0),TRUE)","v":1},{"$f":"VLOOKUP(OFFSET($B:$B,,MATCH(AE$4,$B$4:$F$4,0)-1),OFFSET('C. PoC Adj Factor Scoring'!$E$5:$J$282,,MATCH(AE$4,'C. PoC Adj Factor Scoring'!$E$3:$AH$3,0)-1),MATCH(AE$2&\" Score\",'C. PoC Adj Factor Scoring'!$E$4:$J$4,0),TRUE)","v":1}]
[{"$f":"'A. Population Info'!A442","v":1001435540},{"$f":"'A. Population Info'!L442","v":"OIL"},{"$f":"'A. Population Info'!M442","v":0},{"$f":"'A. Population Info'!N442","v":0},{"$f":"'A. Population Info'!O442","v":0},{"$f":"'A. Population Info'!P442","v":0},{"$f":"VLOOKUP(OFFSET($B:$B,,MATCH(G$4,$B$4:$F$4,0)-1),OFFSET('C. PoC Adj Factor Scoring'!$E$5:$J$282,,MATCH(G$4,'C. PoC Adj Factor Scoring'!$E$3:$AH$3,0)-1),MATCH(G$2&\" Score\",'C. PoC Adj Factor Scoring'!$E$4:$J$4,0),TRUE)","v":4},{"$f":"VLOOKUP(OFFSET($B:$B,,MATCH(H$4,$B$4:$F$4,0)-1),OFFSET('C. PoC Adj Factor Scoring'!$E$5:$J$282,,MATCH(H$4,'C. PoC Adj Factor Scoring'!$E$3:$AH$3,0)-1),MATCH(H$2&\" Score\",'C. PoC Adj Factor Scoring'!$E$4:$J$4,0),TRUE)","v":1},{"$f":"VLOOKUP(OFFSET($B:$B,,MATCH(I$4,$B$4:$F$4,0)-1),OFFSET('C. PoC Adj Factor Scoring'!$E$5:$J$282,,MATCH(I$4,'C. PoC Adj Factor Scoring'!$E$3:$AH$3,0)-1),MATCH(I$2&\" Score\",'C. PoC Adj Factor Scoring'!$E$4:$J$4,0),TRUE)","v":1},{"$f":"VLOOKUP(OFFSET($B:$B,,MATCH(J$4,$B$4:$F$4,0)-1),OFFSET('C. PoC Adj Factor Scoring'!$E$5:$J$282,,MATCH(J$4,'C. PoC Adj Factor Scoring'!$E$3:$AH$3,0)-1),MATCH(J$2&\" Score\",'C. PoC Adj Factor Scoring'!$E$4:$J$4,0),TRUE)","v":1},{"$f":"VLOOKUP(OFFSET($B:$B,,MATCH(K$4,$B$4:$F$4,0)-1),OFFSET('C. PoC Adj Factor Scoring'!$E$5:$J$282,,MATCH(K$4,'C. PoC Adj Factor Scoring'!$E$3:$AH$3,0)-1),MATCH(K$2&\" Score\",'C. PoC Adj Factor Scoring'!$E$4:$J$4,0),TRUE)","v":1},{"$f":"VLOOKUP(OFFSET($B:$B,,MATCH(L$4,$B$4:$F$4,0)-1),OFFSET('C. PoC Adj Factor Scoring'!$E$5:$J$282,,MATCH(L$4,'C. PoC Adj Factor Scoring'!$E$3:$AH$3,0)-1),MATCH(L$2&\" Score\",'C. PoC Adj Factor Scoring'!$E$4:$J$4,0),TRUE)","v":1},{"$f":"VLOOKUP(OFFSET($B:$B,,MATCH(M$4,$B$4:$F$4,0)-1),OFFSET('C. PoC Adj Factor Scoring'!$E$5:$J$282,,MATCH(M$4,'C. PoC Adj Factor Scoring'!$E$3:$AH$3,0)-1),MATCH(M$2&\" Score\",'C. PoC Adj Factor Scoring'!$E$4:$J$4,0),TRUE)","v":1},{"$f":"VLOOKUP(OFFSET($B:$B,,MATCH(N$4,$B$4:$F$4,0)-1),OFFSET('C. PoC Adj Factor Scoring'!$E$5:$J$282,,MATCH(N$4,'C. PoC Adj Factor Scoring'!$E$3:$AH$3,0)-1),MATCH(N$2&\" Score\",'C. PoC Adj Factor Scoring'!$E$4:$J$4,0),TRUE)","v":1},{"$f":"VLOOKUP(OFFSET($B:$B,,MATCH(O$4,$B$4:$F$4,0)-1),OFFSET('C. PoC Adj Factor Scoring'!$E$5:$J$282,,MATCH(O$4,'C. PoC Adj Factor Scoring'!$E$3:$AH$3,0)-1),MATCH(O$2&\" Score\",'C. PoC Adj Factor Scoring'!$E$4:$J$4,0),TRUE)","v":1},{"$f":"VLOOKUP(OFFSET($B:$B,,MATCH(P$4,$B$4:$F$4,0)-1),OFFSET('C. PoC Adj Factor Scoring'!$E$5:$J$282,,MATCH(P$4,'C. PoC Adj Factor Scoring'!$E$3:$AH$3,0)-1),MATCH(P$2&\" Score\",'C. PoC Adj Factor Scoring'!$E$4:$J$4,0),TRUE)","v":1},{"$f":"VLOOKUP(OFFSET($B:$B,,MATCH(Q$4,$B$4:$F$4,0)-1),OFFSET('C. PoC Adj Factor Scoring'!$E$5:$J$282,,MATCH(Q$4,'C. PoC Adj Factor Scoring'!$E$3:$AH$3,0)-1),MATCH(Q$2&\" Score\",'C. PoC Adj Factor Scoring'!$E$4:$J$4,0),TRUE)","v":1},{"$f":"VLOOKUP(OFFSET($B:$B,,MATCH(R$4,$B$4:$F$4,0)-1),OFFSET('C. PoC Adj Factor Scoring'!$E$5:$J$282,,MATCH(R$4,'C. PoC Adj Factor Scoring'!$E$3:$AH$3,0)-1),MATCH(R$2&\" Score\",'C. PoC Adj Factor Scoring'!$E$4:$J$4,0),TRUE)","v":1},{"$f":"VLOOKUP(OFFSET($B:$B,,MATCH(S$4,$B$4:$F$4,0)-1),OFFSET('C. PoC Adj Factor Scoring'!$E$5:$J$282,,MATCH(S$4,'C. PoC Adj Factor Scoring'!$E$3:$AH$3,0)-1),MATCH(S$2&\" Score\",'C. PoC Adj Factor Scoring'!$E$4:$J$4,0),TRUE)","v":1},{"$f":"VLOOKUP(OFFSET($B:$B,,MATCH(T$4,$B$4:$F$4,0)-1),OFFSET('C. PoC Adj Factor Scoring'!$E$5:$J$282,,MATCH(T$4,'C. PoC Adj Factor Scoring'!$E$3:$AH$3,0)-1),MATCH(T$2&\" Score\",'C. PoC Adj Factor Scoring'!$E$4:$J$4,0),TRUE)","v":1},{"$f":"VLOOKUP(OFFSET($B:$B,,MATCH(U$4,$B$4:$F$4,0)-1),OFFSET('C. PoC Adj Factor Scoring'!$E$5:$J$282,,MATCH(U$4,'C. PoC Adj Factor Scoring'!$E$3:$AH$3,0)-1),MATCH(U$2&\" Score\",'C. PoC Adj Factor Scoring'!$E$4:$J$4,0),TRUE)","v":1},{"$f":"VLOOKUP(OFFSET($B:$B,,MATCH(V$4,$B$4:$F$4,0)-1),OFFSET('C. PoC Adj Factor Scoring'!$E$5:$J$282,,MATCH(V$4,'C. PoC Adj Factor Scoring'!$E$3:$AH$3,0)-1),MATCH(V$2&\" Score\",'C. PoC Adj Factor Scoring'!$E$4:$J$4,0),TRUE)","v":1},{"$f":"VLOOKUP(OFFSET($B:$B,,MATCH(W$4,$B$4:$F$4,0)-1),OFFSET('C. PoC Adj Factor Scoring'!$E$5:$J$282,,MATCH(W$4,'C. PoC Adj Factor Scoring'!$E$3:$AH$3,0)-1),MATCH(W$2&\" Score\",'C. PoC Adj Factor Scoring'!$E$4:$J$4,0),TRUE)","v":1},{"$f":"VLOOKUP(OFFSET($B:$B,,MATCH(X$4,$B$4:$F$4,0)-1),OFFSET('C. PoC Adj Factor Scoring'!$E$5:$J$282,,MATCH(X$4,'C. PoC Adj Factor Scoring'!$E$3:$AH$3,0)-1),MATCH(X$2&\" Score\",'C. PoC Adj Factor Scoring'!$E$4:$J$4,0),TRUE)","v":1},{"$f":"VLOOKUP(OFFSET($B:$B,,MATCH(Y$4,$B$4:$F$4,0)-1),OFFSET('C. PoC Adj Factor Scoring'!$E$5:$J$282,,MATCH(Y$4,'C. PoC Adj Factor Scoring'!$E$3:$AH$3,0)-1),MATCH(Y$2&\" Score\",'C. PoC Adj Factor Scoring'!$E$4:$J$4,0),TRUE)","v":1},{"$f":"VLOOKUP(OFFSET($B:$B,,MATCH(Z$4,$B$4:$F$4,0)-1),OFFSET('C. PoC Adj Factor Scoring'!$E$5:$J$282,,MATCH(Z$4,'C. PoC Adj Factor Scoring'!$E$3:$AH$3,0)-1),MATCH(Z$2&\" Score\",'C. PoC Adj Factor Scoring'!$E$4:$J$4,0),TRUE)","v":1},{"$f":"VLOOKUP(OFFSET($B:$B,,MATCH(AA$4,$B$4:$F$4,0)-1),OFFSET('C. PoC Adj Factor Scoring'!$E$5:$J$282,,MATCH(AA$4,'C. PoC Adj Factor Scoring'!$E$3:$AH$3,0)-1),MATCH(AA$2&\" Score\",'C. PoC Adj Factor Scoring'!$E$4:$J$4,0),TRUE)","v":3},{"$f":"VLOOKUP(OFFSET($B:$B,,MATCH(AB$4,$B$4:$F$4,0)-1),OFFSET('C. PoC Adj Factor Scoring'!$E$5:$J$282,,MATCH(AB$4,'C. PoC Adj Factor Scoring'!$E$3:$AH$3,0)-1),MATCH(AB$2&\" Score\",'C. PoC Adj Factor Scoring'!$E$4:$J$4,0),TRUE)","v":1},{"$f":"VLOOKUP(OFFSET($B:$B,,MATCH(AC$4,$B$4:$F$4,0)-1),OFFSET('C. PoC Adj Factor Scoring'!$E$5:$J$282,,MATCH(AC$4,'C. PoC Adj Factor Scoring'!$E$3:$AH$3,0)-1),MATCH(AC$2&\" Score\",'C. PoC Adj Factor Scoring'!$E$4:$J$4,0),TRUE)","v":1},{"$f":"VLOOKUP(OFFSET($B:$B,,MATCH(AD$4,$B$4:$F$4,0)-1),OFFSET('C. PoC Adj Factor Scoring'!$E$5:$J$282,,MATCH(AD$4,'C. PoC Adj Factor Scoring'!$E$3:$AH$3,0)-1),MATCH(AD$2&\" Score\",'C. PoC Adj Factor Scoring'!$E$4:$J$4,0),TRUE)","v":1},{"$f":"VLOOKUP(OFFSET($B:$B,,MATCH(AE$4,$B$4:$F$4,0)-1),OFFSET('C. PoC Adj Factor Scoring'!$E$5:$J$282,,MATCH(AE$4,'C. PoC Adj Factor Scoring'!$E$3:$AH$3,0)-1),MATCH(AE$2&\" Score\",'C. PoC Adj Factor Scoring'!$E$4:$J$4,0),TRUE)","v":1}]
[{"$f":"'A. Population Info'!A443","v":1001440620},{"$f":"'A. Population Info'!L443","v":"OIL"},{"$f":"'A. Population Info'!M443","v":0},{"$f":"'A. Population Info'!N443","v":0},{"$f":"'A. Population Info'!O443","v":0},{"$f":"'A. Population Info'!P443","v":0},{"$f":"VLOOKUP(OFFSET($B:$B,,MATCH(G$4,$B$4:$F$4,0)-1),OFFSET('C. PoC Adj Factor Scoring'!$E$5:$J$282,,MATCH(G$4,'C. PoC Adj Factor Scoring'!$E$3:$AH$3,0)-1),MATCH(G$2&\" Score\",'C. PoC Adj Factor Scoring'!$E$4:$J$4,0),TRUE)","v":4},{"$f":"VLOOKUP(OFFSET($B:$B,,MATCH(H$4,$B$4:$F$4,0)-1),OFFSET('C. PoC Adj Factor Scoring'!$E$5:$J$282,,MATCH(H$4,'C. PoC Adj Factor Scoring'!$E$3:$AH$3,0)-1),MATCH(H$2&\" Score\",'C. PoC Adj Factor Scoring'!$E$4:$J$4,0),TRUE)","v":1},{"$f":"VLOOKUP(OFFSET($B:$B,,MATCH(I$4,$B$4:$F$4,0)-1),OFFSET('C. PoC Adj Factor Scoring'!$E$5:$J$282,,MATCH(I$4,'C. PoC Adj Factor Scoring'!$E$3:$AH$3,0)-1),MATCH(I$2&\" Score\",'C. PoC Adj Factor Scoring'!$E$4:$J$4,0),TRUE)","v":1},{"$f":"VLOOKUP(OFFSET($B:$B,,MATCH(J$4,$B$4:$F$4,0)-1),OFFSET('C. PoC Adj Factor Scoring'!$E$5:$J$282,,MATCH(J$4,'C. PoC Adj Factor Scoring'!$E$3:$AH$3,0)-1),MATCH(J$2&\" Score\",'C. PoC Adj Factor Scoring'!$E$4:$J$4,0),TRUE)","v":1},{"$f":"VLOOKUP(OFFSET($B:$B,,MATCH(K$4,$B$4:$F$4,0)-1),OFFSET('C. PoC Adj Factor Scoring'!$E$5:$J$282,,MATCH(K$4,'C. PoC Adj Factor Scoring'!$E$3:$AH$3,0)-1),MATCH(K$2&\" Score\",'C. PoC Adj Factor Scoring'!$E$4:$J$4,0),TRUE)","v":1},{"$f":"VLOOKUP(OFFSET($B:$B,,MATCH(L$4,$B$4:$F$4,0)-1),OFFSET('C. PoC Adj Factor Scoring'!$E$5:$J$282,,MATCH(L$4,'C. PoC Adj Factor Scoring'!$E$3:$AH$3,0)-1),MATCH(L$2&\" Score\",'C. PoC Adj Factor Scoring'!$E$4:$J$4,0),TRUE)","v":1},{"$f":"VLOOKUP(OFFSET($B:$B,,MATCH(M$4,$B$4:$F$4,0)-1),OFFSET('C. PoC Adj Factor Scoring'!$E$5:$J$282,,MATCH(M$4,'C. PoC Adj Factor Scoring'!$E$3:$AH$3,0)-1),MATCH(M$2&\" Score\",'C. PoC Adj Factor Scoring'!$E$4:$J$4,0),TRUE)","v":1},{"$f":"VLOOKUP(OFFSET($B:$B,,MATCH(N$4,$B$4:$F$4,0)-1),OFFSET('C. PoC Adj Factor Scoring'!$E$5:$J$282,,MATCH(N$4,'C. PoC Adj Factor Scoring'!$E$3:$AH$3,0)-1),MATCH(N$2&\" Score\",'C. PoC Adj Factor Scoring'!$E$4:$J$4,0),TRUE)","v":1},{"$f":"VLOOKUP(OFFSET($B:$B,,MATCH(O$4,$B$4:$F$4,0)-1),OFFSET('C. PoC Adj Factor Scoring'!$E$5:$J$282,,MATCH(O$4,'C. PoC Adj Factor Scoring'!$E$3:$AH$3,0)-1),MATCH(O$2&\" Score\",'C. PoC Adj Factor Scoring'!$E$4:$J$4,0),TRUE)","v":1},{"$f":"VLOOKUP(OFFSET($B:$B,,MATCH(P$4,$B$4:$F$4,0)-1),OFFSET('C. PoC Adj Factor Scoring'!$E$5:$J$282,,MATCH(P$4,'C. PoC Adj Factor Scoring'!$E$3:$AH$3,0)-1),MATCH(P$2&\" Score\",'C. PoC Adj Factor Scoring'!$E$4:$J$4,0),TRUE)","v":1},{"$f":"VLOOKUP(OFFSET($B:$B,,MATCH(Q$4,$B$4:$F$4,0)-1),OFFSET('C. PoC Adj Factor Scoring'!$E$5:$J$282,,MATCH(Q$4,'C. PoC Adj Factor Scoring'!$E$3:$AH$3,0)-1),MATCH(Q$2&\" Score\",'C. PoC Adj Factor Scoring'!$E$4:$J$4,0),TRUE)","v":1},{"$f":"VLOOKUP(OFFSET($B:$B,,MATCH(R$4,$B$4:$F$4,0)-1),OFFSET('C. PoC Adj Factor Scoring'!$E$5:$J$282,,MATCH(R$4,'C. PoC Adj Factor Scoring'!$E$3:$AH$3,0)-1),MATCH(R$2&\" Score\",'C. PoC Adj Factor Scoring'!$E$4:$J$4,0),TRUE)","v":1},{"$f":"VLOOKUP(OFFSET($B:$B,,MATCH(S$4,$B$4:$F$4,0)-1),OFFSET('C. PoC Adj Factor Scoring'!$E$5:$J$282,,MATCH(S$4,'C. PoC Adj Factor Scoring'!$E$3:$AH$3,0)-1),MATCH(S$2&\" Score\",'C. PoC Adj Factor Scoring'!$E$4:$J$4,0),TRUE)","v":1},{"$f":"VLOOKUP(OFFSET($B:$B,,MATCH(T$4,$B$4:$F$4,0)-1),OFFSET('C. PoC Adj Factor Scoring'!$E$5:$J$282,,MATCH(T$4,'C. PoC Adj Factor Scoring'!$E$3:$AH$3,0)-1),MATCH(T$2&\" Score\",'C. PoC Adj Factor Scoring'!$E$4:$J$4,0),TRUE)","v":1},{"$f":"VLOOKUP(OFFSET($B:$B,,MATCH(U$4,$B$4:$F$4,0)-1),OFFSET('C. PoC Adj Factor Scoring'!$E$5:$J$282,,MATCH(U$4,'C. PoC Adj Factor Scoring'!$E$3:$AH$3,0)-1),MATCH(U$2&\" Score\",'C. PoC Adj Factor Scoring'!$E$4:$J$4,0),TRUE)","v":1},{"$f":"VLOOKUP(OFFSET($B:$B,,MATCH(V$4,$B$4:$F$4,0)-1),OFFSET('C. PoC Adj Factor Scoring'!$E$5:$J$282,,MATCH(V$4,'C. PoC Adj Factor Scoring'!$E$3:$AH$3,0)-1),MATCH(V$2&\" Score\",'C. PoC Adj Factor Scoring'!$E$4:$J$4,0),TRUE)","v":1},{"$f":"VLOOKUP(OFFSET($B:$B,,MATCH(W$4,$B$4:$F$4,0)-1),OFFSET('C. PoC Adj Factor Scoring'!$E$5:$J$282,,MATCH(W$4,'C. PoC Adj Factor Scoring'!$E$3:$AH$3,0)-1),MATCH(W$2&\" Score\",'C. PoC Adj Factor Scoring'!$E$4:$J$4,0),TRUE)","v":1},{"$f":"VLOOKUP(OFFSET($B:$B,,MATCH(X$4,$B$4:$F$4,0)-1),OFFSET('C. PoC Adj Factor Scoring'!$E$5:$J$282,,MATCH(X$4,'C. PoC Adj Factor Scoring'!$E$3:$AH$3,0)-1),MATCH(X$2&\" Score\",'C. PoC Adj Factor Scoring'!$E$4:$J$4,0),TRUE)","v":1},{"$f":"VLOOKUP(OFFSET($B:$B,,MATCH(Y$4,$B$4:$F$4,0)-1),OFFSET('C. PoC Adj Factor Scoring'!$E$5:$J$282,,MATCH(Y$4,'C. PoC Adj Factor Scoring'!$E$3:$AH$3,0)-1),MATCH(Y$2&\" Score\",'C. PoC Adj Factor Scoring'!$E$4:$J$4,0),TRUE)","v":1},{"$f":"VLOOKUP(OFFSET($B:$B,,MATCH(Z$4,$B$4:$F$4,0)-1),OFFSET('C. PoC Adj Factor Scoring'!$E$5:$J$282,,MATCH(Z$4,'C. PoC Adj Factor Scoring'!$E$3:$AH$3,0)-1),MATCH(Z$2&\" Score\",'C. PoC Adj Factor Scoring'!$E$4:$J$4,0),TRUE)","v":1},{"$f":"VLOOKUP(OFFSET($B:$B,,MATCH(AA$4,$B$4:$F$4,0)-1),OFFSET('C. PoC Adj Factor Scoring'!$E$5:$J$282,,MATCH(AA$4,'C. PoC Adj Factor Scoring'!$E$3:$AH$3,0)-1),MATCH(AA$2&\" Score\",'C. PoC Adj Factor Scoring'!$E$4:$J$4,0),TRUE)","v":3},{"$f":"VLOOKUP(OFFSET($B:$B,,MATCH(AB$4,$B$4:$F$4,0)-1),OFFSET('C. PoC Adj Factor Scoring'!$E$5:$J$282,,MATCH(AB$4,'C. PoC Adj Factor Scoring'!$E$3:$AH$3,0)-1),MATCH(AB$2&\" Score\",'C. PoC Adj Factor Scoring'!$E$4:$J$4,0),TRUE)","v":1},{"$f":"VLOOKUP(OFFSET($B:$B,,MATCH(AC$4,$B$4:$F$4,0)-1),OFFSET('C. PoC Adj Factor Scoring'!$E$5:$J$282,,MATCH(AC$4,'C. PoC Adj Factor Scoring'!$E$3:$AH$3,0)-1),MATCH(AC$2&\" Score\",'C. PoC Adj Factor Scoring'!$E$4:$J$4,0),TRUE)","v":1},{"$f":"VLOOKUP(OFFSET($B:$B,,MATCH(AD$4,$B$4:$F$4,0)-1),OFFSET('C. PoC Adj Factor Scoring'!$E$5:$J$282,,MATCH(AD$4,'C. PoC Adj Factor Scoring'!$E$3:$AH$3,0)-1),MATCH(AD$2&\" Score\",'C. PoC Adj Factor Scoring'!$E$4:$J$4,0),TRUE)","v":1},{"$f":"VLOOKUP(OFFSET($B:$B,,MATCH(AE$4,$B$4:$F$4,0)-1),OFFSET('C. PoC Adj Factor Scoring'!$E$5:$J$282,,MATCH(AE$4,'C. PoC Adj Factor Scoring'!$E$3:$AH$3,0)-1),MATCH(AE$2&\" Score\",'C. PoC Adj Factor Scoring'!$E$4:$J$4,0),TRUE)","v":1}]
[{"$f":"'A. Population Info'!A444","v":1001440621},{"$f":"'A. Population Info'!L444","v":"OIL"},{"$f":"'A. Population Info'!M444","v":0},{"$f":"'A. Population Info'!N444","v":0},{"$f":"'A. Population Info'!O444","v":0},{"$f":"'A. Population Info'!P444","v":0},{"$f":"VLOOKUP(OFFSET($B:$B,,MATCH(G$4,$B$4:$F$4,0)-1),OFFSET('C. PoC Adj Factor Scoring'!$E$5:$J$282,,MATCH(G$4,'C. PoC Adj Factor Scoring'!$E$3:$AH$3,0)-1),MATCH(G$2&\" Score\",'C. PoC Adj Factor Scoring'!$E$4:$J$4,0),TRUE)","v":4},{"$f":"VLOOKUP(OFFSET($B:$B,,MATCH(H$4,$B$4:$F$4,0)-1),OFFSET('C. PoC Adj Factor Scoring'!$E$5:$J$282,,MATCH(H$4,'C. PoC Adj Factor Scoring'!$E$3:$AH$3,0)-1),MATCH(H$2&\" Score\",'C. PoC Adj Factor Scoring'!$E$4:$J$4,0),TRUE)","v":1},{"$f":"VLOOKUP(OFFSET($B:$B,,MATCH(I$4,$B$4:$F$4,0)-1),OFFSET('C. PoC Adj Factor Scoring'!$E$5:$J$282,,MATCH(I$4,'C. PoC Adj Factor Scoring'!$E$3:$AH$3,0)-1),MATCH(I$2&\" Score\",'C. PoC Adj Factor Scoring'!$E$4:$J$4,0),TRUE)","v":1},{"$f":"VLOOKUP(OFFSET($B:$B,,MATCH(J$4,$B$4:$F$4,0)-1),OFFSET('C. PoC Adj Factor Scoring'!$E$5:$J$282,,MATCH(J$4,'C. PoC Adj Factor Scoring'!$E$3:$AH$3,0)-1),MATCH(J$2&\" Score\",'C. PoC Adj Factor Scoring'!$E$4:$J$4,0),TRUE)","v":1},{"$f":"VLOOKUP(OFFSET($B:$B,,MATCH(K$4,$B$4:$F$4,0)-1),OFFSET('C. PoC Adj Factor Scoring'!$E$5:$J$282,,MATCH(K$4,'C. PoC Adj Factor Scoring'!$E$3:$AH$3,0)-1),MATCH(K$2&\" Score\",'C. PoC Adj Factor Scoring'!$E$4:$J$4,0),TRUE)","v":1},{"$f":"VLOOKUP(OFFSET($B:$B,,MATCH(L$4,$B$4:$F$4,0)-1),OFFSET('C. PoC Adj Factor Scoring'!$E$5:$J$282,,MATCH(L$4,'C. PoC Adj Factor Scoring'!$E$3:$AH$3,0)-1),MATCH(L$2&\" Score\",'C. PoC Adj Factor Scoring'!$E$4:$J$4,0),TRUE)","v":1},{"$f":"VLOOKUP(OFFSET($B:$B,,MATCH(M$4,$B$4:$F$4,0)-1),OFFSET('C. PoC Adj Factor Scoring'!$E$5:$J$282,,MATCH(M$4,'C. PoC Adj Factor Scoring'!$E$3:$AH$3,0)-1),MATCH(M$2&\" Score\",'C. PoC Adj Factor Scoring'!$E$4:$J$4,0),TRUE)","v":1},{"$f":"VLOOKUP(OFFSET($B:$B,,MATCH(N$4,$B$4:$F$4,0)-1),OFFSET('C. PoC Adj Factor Scoring'!$E$5:$J$282,,MATCH(N$4,'C. PoC Adj Factor Scoring'!$E$3:$AH$3,0)-1),MATCH(N$2&\" Score\",'C. PoC Adj Factor Scoring'!$E$4:$J$4,0),TRUE)","v":1},{"$f":"VLOOKUP(OFFSET($B:$B,,MATCH(O$4,$B$4:$F$4,0)-1),OFFSET('C. PoC Adj Factor Scoring'!$E$5:$J$282,,MATCH(O$4,'C. PoC Adj Factor Scoring'!$E$3:$AH$3,0)-1),MATCH(O$2&\" Score\",'C. PoC Adj Factor Scoring'!$E$4:$J$4,0),TRUE)","v":1},{"$f":"VLOOKUP(OFFSET($B:$B,,MATCH(P$4,$B$4:$F$4,0)-1),OFFSET('C. PoC Adj Factor Scoring'!$E$5:$J$282,,MATCH(P$4,'C. PoC Adj Factor Scoring'!$E$3:$AH$3,0)-1),MATCH(P$2&\" Score\",'C. PoC Adj Factor Scoring'!$E$4:$J$4,0),TRUE)","v":1},{"$f":"VLOOKUP(OFFSET($B:$B,,MATCH(Q$4,$B$4:$F$4,0)-1),OFFSET('C. PoC Adj Factor Scoring'!$E$5:$J$282,,MATCH(Q$4,'C. PoC Adj Factor Scoring'!$E$3:$AH$3,0)-1),MATCH(Q$2&\" Score\",'C. PoC Adj Factor Scoring'!$E$4:$J$4,0),TRUE)","v":1},{"$f":"VLOOKUP(OFFSET($B:$B,,MATCH(R$4,$B$4:$F$4,0)-1),OFFSET('C. PoC Adj Factor Scoring'!$E$5:$J$282,,MATCH(R$4,'C. PoC Adj Factor Scoring'!$E$3:$AH$3,0)-1),MATCH(R$2&\" Score\",'C. PoC Adj Factor Scoring'!$E$4:$J$4,0),TRUE)","v":1},{"$f":"VLOOKUP(OFFSET($B:$B,,MATCH(S$4,$B$4:$F$4,0)-1),OFFSET('C. PoC Adj Factor Scoring'!$E$5:$J$282,,MATCH(S$4,'C. PoC Adj Factor Scoring'!$E$3:$AH$3,0)-1),MATCH(S$2&\" Score\",'C. PoC Adj Factor Scoring'!$E$4:$J$4,0),TRUE)","v":1},{"$f":"VLOOKUP(OFFSET($B:$B,,MATCH(T$4,$B$4:$F$4,0)-1),OFFSET('C. PoC Adj Factor Scoring'!$E$5:$J$282,,MATCH(T$4,'C. PoC Adj Factor Scoring'!$E$3:$AH$3,0)-1),MATCH(T$2&\" Score\",'C. PoC Adj Factor Scoring'!$E$4:$J$4,0),TRUE)","v":1},{"$f":"VLOOKUP(OFFSET($B:$B,,MATCH(U$4,$B$4:$F$4,0)-1),OFFSET('C. PoC Adj Factor Scoring'!$E$5:$J$282,,MATCH(U$4,'C. PoC Adj Factor Scoring'!$E$3:$AH$3,0)-1),MATCH(U$2&\" Score\",'C. PoC Adj Factor Scoring'!$E$4:$J$4,0),TRUE)","v":1},{"$f":"VLOOKUP(OFFSET($B:$B,,MATCH(V$4,$B$4:$F$4,0)-1),OFFSET('C. PoC Adj Factor Scoring'!$E$5:$J$282,,MATCH(V$4,'C. PoC Adj Factor Scoring'!$E$3:$AH$3,0)-1),MATCH(V$2&\" Score\",'C. PoC Adj Factor Scoring'!$E$4:$J$4,0),TRUE)","v":1},{"$f":"VLOOKUP(OFFSET($B:$B,,MATCH(W$4,$B$4:$F$4,0)-1),OFFSET('C. PoC Adj Factor Scoring'!$E$5:$J$282,,MATCH(W$4,'C. PoC Adj Factor Scoring'!$E$3:$AH$3,0)-1),MATCH(W$2&\" Score\",'C. PoC Adj Factor Scoring'!$E$4:$J$4,0),TRUE)","v":1},{"$f":"VLOOKUP(OFFSET($B:$B,,MATCH(X$4,$B$4:$F$4,0)-1),OFFSET('C. PoC Adj Factor Scoring'!$E$5:$J$282,,MATCH(X$4,'C. PoC Adj Factor Scoring'!$E$3:$AH$3,0)-1),MATCH(X$2&\" Score\",'C. PoC Adj Factor Scoring'!$E$4:$J$4,0),TRUE)","v":1},{"$f":"VLOOKUP(OFFSET($B:$B,,MATCH(Y$4,$B$4:$F$4,0)-1),OFFSET('C. PoC Adj Factor Scoring'!$E$5:$J$282,,MATCH(Y$4,'C. PoC Adj Factor Scoring'!$E$3:$AH$3,0)-1),MATCH(Y$2&\" Score\",'C. PoC Adj Factor Scoring'!$E$4:$J$4,0),TRUE)","v":1},{"$f":"VLOOKUP(OFFSET($B:$B,,MATCH(Z$4,$B$4:$F$4,0)-1),OFFSET('C. PoC Adj Factor Scoring'!$E$5:$J$282,,MATCH(Z$4,'C. PoC Adj Factor Scoring'!$E$3:$AH$3,0)-1),MATCH(Z$2&\" Score\",'C. PoC Adj Factor Scoring'!$E$4:$J$4,0),TRUE)","v":1},{"$f":"VLOOKUP(OFFSET($B:$B,,MATCH(AA$4,$B$4:$F$4,0)-1),OFFSET('C. PoC Adj Factor Scoring'!$E$5:$J$282,,MATCH(AA$4,'C. PoC Adj Factor Scoring'!$E$3:$AH$3,0)-1),MATCH(AA$2&\" Score\",'C. PoC Adj Factor Scoring'!$E$4:$J$4,0),TRUE)","v":3},{"$f":"VLOOKUP(OFFSET($B:$B,,MATCH(AB$4,$B$4:$F$4,0)-1),OFFSET('C. PoC Adj Factor Scoring'!$E$5:$J$282,,MATCH(AB$4,'C. PoC Adj Factor Scoring'!$E$3:$AH$3,0)-1),MATCH(AB$2&\" Score\",'C. PoC Adj Factor Scoring'!$E$4:$J$4,0),TRUE)","v":1},{"$f":"VLOOKUP(OFFSET($B:$B,,MATCH(AC$4,$B$4:$F$4,0)-1),OFFSET('C. PoC Adj Factor Scoring'!$E$5:$J$282,,MATCH(AC$4,'C. PoC Adj Factor Scoring'!$E$3:$AH$3,0)-1),MATCH(AC$2&\" Score\",'C. PoC Adj Factor Scoring'!$E$4:$J$4,0),TRUE)","v":1},{"$f":"VLOOKUP(OFFSET($B:$B,,MATCH(AD$4,$B$4:$F$4,0)-1),OFFSET('C. PoC Adj Factor Scoring'!$E$5:$J$282,,MATCH(AD$4,'C. PoC Adj Factor Scoring'!$E$3:$AH$3,0)-1),MATCH(AD$2&\" Score\",'C. PoC Adj Factor Scoring'!$E$4:$J$4,0),TRUE)","v":1},{"$f":"VLOOKUP(OFFSET($B:$B,,MATCH(AE$4,$B$4:$F$4,0)-1),OFFSET('C. PoC Adj Factor Scoring'!$E$5:$J$282,,MATCH(AE$4,'C. PoC Adj Factor Scoring'!$E$3:$AH$3,0)-1),MATCH(AE$2&\" Score\",'C. PoC Adj Factor Scoring'!$E$4:$J$4,0),TRUE)","v":1}]
[{"$f":"'A. Population Info'!A445","v":1001465327},{"$f":"'A. Population Info'!L445","v":"OIL"},{"$f":"'A. Population Info'!M445","v":0},{"$f":"'A. Population Info'!N445","v":0},{"$f":"'A. Population Info'!O445","v":0},{"$f":"'A. Population Info'!P445","v":0},{"$f":"VLOOKUP(OFFSET($B:$B,,MATCH(G$4,$B$4:$F$4,0)-1),OFFSET('C. PoC Adj Factor Scoring'!$E$5:$J$282,,MATCH(G$4,'C. PoC Adj Factor Scoring'!$E$3:$AH$3,0)-1),MATCH(G$2&\" Score\",'C. PoC Adj Factor Scoring'!$E$4:$J$4,0),TRUE)","v":4},{"$f":"VLOOKUP(OFFSET($B:$B,,MATCH(H$4,$B$4:$F$4,0)-1),OFFSET('C. PoC Adj Factor Scoring'!$E$5:$J$282,,MATCH(H$4,'C. PoC Adj Factor Scoring'!$E$3:$AH$3,0)-1),MATCH(H$2&\" Score\",'C. PoC Adj Factor Scoring'!$E$4:$J$4,0),TRUE)","v":1},{"$f":"VLOOKUP(OFFSET($B:$B,,MATCH(I$4,$B$4:$F$4,0)-1),OFFSET('C. PoC Adj Factor Scoring'!$E$5:$J$282,,MATCH(I$4,'C. PoC Adj Factor Scoring'!$E$3:$AH$3,0)-1),MATCH(I$2&\" Score\",'C. PoC Adj Factor Scoring'!$E$4:$J$4,0),TRUE)","v":1},{"$f":"VLOOKUP(OFFSET($B:$B,,MATCH(J$4,$B$4:$F$4,0)-1),OFFSET('C. PoC Adj Factor Scoring'!$E$5:$J$282,,MATCH(J$4,'C. PoC Adj Factor Scoring'!$E$3:$AH$3,0)-1),MATCH(J$2&\" Score\",'C. PoC Adj Factor Scoring'!$E$4:$J$4,0),TRUE)","v":1},{"$f":"VLOOKUP(OFFSET($B:$B,,MATCH(K$4,$B$4:$F$4,0)-1),OFFSET('C. PoC Adj Factor Scoring'!$E$5:$J$282,,MATCH(K$4,'C. PoC Adj Factor Scoring'!$E$3:$AH$3,0)-1),MATCH(K$2&\" Score\",'C. PoC Adj Factor Scoring'!$E$4:$J$4,0),TRUE)","v":1},{"$f":"VLOOKUP(OFFSET($B:$B,,MATCH(L$4,$B$4:$F$4,0)-1),OFFSET('C. PoC Adj Factor Scoring'!$E$5:$J$282,,MATCH(L$4,'C. PoC Adj Factor Scoring'!$E$3:$AH$3,0)-1),MATCH(L$2&\" Score\",'C. PoC Adj Factor Scoring'!$E$4:$J$4,0),TRUE)","v":1},{"$f":"VLOOKUP(OFFSET($B:$B,,MATCH(M$4,$B$4:$F$4,0)-1),OFFSET('C. PoC Adj Factor Scoring'!$E$5:$J$282,,MATCH(M$4,'C. PoC Adj Factor Scoring'!$E$3:$AH$3,0)-1),MATCH(M$2&\" Score\",'C. PoC Adj Factor Scoring'!$E$4:$J$4,0),TRUE)","v":1},{"$f":"VLOOKUP(OFFSET($B:$B,,MATCH(N$4,$B$4:$F$4,0)-1),OFFSET('C. PoC Adj Factor Scoring'!$E$5:$J$282,,MATCH(N$4,'C. PoC Adj Factor Scoring'!$E$3:$AH$3,0)-1),MATCH(N$2&\" Score\",'C. PoC Adj Factor Scoring'!$E$4:$J$4,0),TRUE)","v":1},{"$f":"VLOOKUP(OFFSET($B:$B,,MATCH(O$4,$B$4:$F$4,0)-1),OFFSET('C. PoC Adj Factor Scoring'!$E$5:$J$282,,MATCH(O$4,'C. PoC Adj Factor Scoring'!$E$3:$AH$3,0)-1),MATCH(O$2&\" Score\",'C. PoC Adj Factor Scoring'!$E$4:$J$4,0),TRUE)","v":1},{"$f":"VLOOKUP(OFFSET($B:$B,,MATCH(P$4,$B$4:$F$4,0)-1),OFFSET('C. PoC Adj Factor Scoring'!$E$5:$J$282,,MATCH(P$4,'C. PoC Adj Factor Scoring'!$E$3:$AH$3,0)-1),MATCH(P$2&\" Score\",'C. PoC Adj Factor Scoring'!$E$4:$J$4,0),TRUE)","v":1},{"$f":"VLOOKUP(OFFSET($B:$B,,MATCH(Q$4,$B$4:$F$4,0)-1),OFFSET('C. PoC Adj Factor Scoring'!$E$5:$J$282,,MATCH(Q$4,'C. PoC Adj Factor Scoring'!$E$3:$AH$3,0)-1),MATCH(Q$2&\" Score\",'C. PoC Adj Factor Scoring'!$E$4:$J$4,0),TRUE)","v":1},{"$f":"VLOOKUP(OFFSET($B:$B,,MATCH(R$4,$B$4:$F$4,0)-1),OFFSET('C. PoC Adj Factor Scoring'!$E$5:$J$282,,MATCH(R$4,'C. PoC Adj Factor Scoring'!$E$3:$AH$3,0)-1),MATCH(R$2&\" Score\",'C. PoC Adj Factor Scoring'!$E$4:$J$4,0),TRUE)","v":1},{"$f":"VLOOKUP(OFFSET($B:$B,,MATCH(S$4,$B$4:$F$4,0)-1),OFFSET('C. PoC Adj Factor Scoring'!$E$5:$J$282,,MATCH(S$4,'C. PoC Adj Factor Scoring'!$E$3:$AH$3,0)-1),MATCH(S$2&\" Score\",'C. PoC Adj Factor Scoring'!$E$4:$J$4,0),TRUE)","v":1},{"$f":"VLOOKUP(OFFSET($B:$B,,MATCH(T$4,$B$4:$F$4,0)-1),OFFSET('C. PoC Adj Factor Scoring'!$E$5:$J$282,,MATCH(T$4,'C. PoC Adj Factor Scoring'!$E$3:$AH$3,0)-1),MATCH(T$2&\" Score\",'C. PoC Adj Factor Scoring'!$E$4:$J$4,0),TRUE)","v":1},{"$f":"VLOOKUP(OFFSET($B:$B,,MATCH(U$4,$B$4:$F$4,0)-1),OFFSET('C. PoC Adj Factor Scoring'!$E$5:$J$282,,MATCH(U$4,'C. PoC Adj Factor Scoring'!$E$3:$AH$3,0)-1),MATCH(U$2&\" Score\",'C. PoC Adj Factor Scoring'!$E$4:$J$4,0),TRUE)","v":1},{"$f":"VLOOKUP(OFFSET($B:$B,,MATCH(V$4,$B$4:$F$4,0)-1),OFFSET('C. PoC Adj Factor Scoring'!$E$5:$J$282,,MATCH(V$4,'C. PoC Adj Factor Scoring'!$E$3:$AH$3,0)-1),MATCH(V$2&\" Score\",'C. PoC Adj Factor Scoring'!$E$4:$J$4,0),TRUE)","v":1},{"$f":"VLOOKUP(OFFSET($B:$B,,MATCH(W$4,$B$4:$F$4,0)-1),OFFSET('C. PoC Adj Factor Scoring'!$E$5:$J$282,,MATCH(W$4,'C. PoC Adj Factor Scoring'!$E$3:$AH$3,0)-1),MATCH(W$2&\" Score\",'C. PoC Adj Factor Scoring'!$E$4:$J$4,0),TRUE)","v":1},{"$f":"VLOOKUP(OFFSET($B:$B,,MATCH(X$4,$B$4:$F$4,0)-1),OFFSET('C. PoC Adj Factor Scoring'!$E$5:$J$282,,MATCH(X$4,'C. PoC Adj Factor Scoring'!$E$3:$AH$3,0)-1),MATCH(X$2&\" Score\",'C. PoC Adj Factor Scoring'!$E$4:$J$4,0),TRUE)","v":1},{"$f":"VLOOKUP(OFFSET($B:$B,,MATCH(Y$4,$B$4:$F$4,0)-1),OFFSET('C. PoC Adj Factor Scoring'!$E$5:$J$282,,MATCH(Y$4,'C. PoC Adj Factor Scoring'!$E$3:$AH$3,0)-1),MATCH(Y$2&\" Score\",'C. PoC Adj Factor Scoring'!$E$4:$J$4,0),TRUE)","v":1},{"$f":"VLOOKUP(OFFSET($B:$B,,MATCH(Z$4,$B$4:$F$4,0)-1),OFFSET('C. PoC Adj Factor Scoring'!$E$5:$J$282,,MATCH(Z$4,'C. PoC Adj Factor Scoring'!$E$3:$AH$3,0)-1),MATCH(Z$2&\" Score\",'C. PoC Adj Factor Scoring'!$E$4:$J$4,0),TRUE)","v":1},{"$f":"VLOOKUP(OFFSET($B:$B,,MATCH(AA$4,$B$4:$F$4,0)-1),OFFSET('C. PoC Adj Factor Scoring'!$E$5:$J$282,,MATCH(AA$4,'C. PoC Adj Factor Scoring'!$E$3:$AH$3,0)-1),MATCH(AA$2&\" Score\",'C. PoC Adj Factor Scoring'!$E$4:$J$4,0),TRUE)","v":3},{"$f":"VLOOKUP(OFFSET($B:$B,,MATCH(AB$4,$B$4:$F$4,0)-1),OFFSET('C. PoC Adj Factor Scoring'!$E$5:$J$282,,MATCH(AB$4,'C. PoC Adj Factor Scoring'!$E$3:$AH$3,0)-1),MATCH(AB$2&\" Score\",'C. PoC Adj Factor Scoring'!$E$4:$J$4,0),TRUE)","v":1},{"$f":"VLOOKUP(OFFSET($B:$B,,MATCH(AC$4,$B$4:$F$4,0)-1),OFFSET('C. PoC Adj Factor Scoring'!$E$5:$J$282,,MATCH(AC$4,'C. PoC Adj Factor Scoring'!$E$3:$AH$3,0)-1),MATCH(AC$2&\" Score\",'C. PoC Adj Factor Scoring'!$E$4:$J$4,0),TRUE)","v":1},{"$f":"VLOOKUP(OFFSET($B:$B,,MATCH(AD$4,$B$4:$F$4,0)-1),OFFSET('C. PoC Adj Factor Scoring'!$E$5:$J$282,,MATCH(AD$4,'C. PoC Adj Factor Scoring'!$E$3:$AH$3,0)-1),MATCH(AD$2&\" Score\",'C. PoC Adj Factor Scoring'!$E$4:$J$4,0),TRUE)","v":1},{"$f":"VLOOKUP(OFFSET($B:$B,,MATCH(AE$4,$B$4:$F$4,0)-1),OFFSET('C. PoC Adj Factor Scoring'!$E$5:$J$282,,MATCH(AE$4,'C. PoC Adj Factor Scoring'!$E$3:$AH$3,0)-1),MATCH(AE$2&\" Score\",'C. PoC Adj Factor Scoring'!$E$4:$J$4,0),TRUE)","v":1}]
[{"$f":"'A. Population Info'!A446","v":1001472087},{"$f":"'A. Population Info'!L446","v":"OIL"},{"$f":"'A. Population Info'!M446","v":0},{"$f":"'A. Population Info'!N446","v":0},{"$f":"'A. Population Info'!O446","v":0},{"$f":"'A. Population Info'!P446","v":0},{"$f":"VLOOKUP(OFFSET($B:$B,,MATCH(G$4,$B$4:$F$4,0)-1),OFFSET('C. PoC Adj Factor Scoring'!$E$5:$J$282,,MATCH(G$4,'C. PoC Adj Factor Scoring'!$E$3:$AH$3,0)-1),MATCH(G$2&\" Score\",'C. PoC Adj Factor Scoring'!$E$4:$J$4,0),TRUE)","v":4},{"$f":"VLOOKUP(OFFSET($B:$B,,MATCH(H$4,$B$4:$F$4,0)-1),OFFSET('C. PoC Adj Factor Scoring'!$E$5:$J$282,,MATCH(H$4,'C. PoC Adj Factor Scoring'!$E$3:$AH$3,0)-1),MATCH(H$2&\" Score\",'C. PoC Adj Factor Scoring'!$E$4:$J$4,0),TRUE)","v":1},{"$f":"VLOOKUP(OFFSET($B:$B,,MATCH(I$4,$B$4:$F$4,0)-1),OFFSET('C. PoC Adj Factor Scoring'!$E$5:$J$282,,MATCH(I$4,'C. PoC Adj Factor Scoring'!$E$3:$AH$3,0)-1),MATCH(I$2&\" Score\",'C. PoC Adj Factor Scoring'!$E$4:$J$4,0),TRUE)","v":1},{"$f":"VLOOKUP(OFFSET($B:$B,,MATCH(J$4,$B$4:$F$4,0)-1),OFFSET('C. PoC Adj Factor Scoring'!$E$5:$J$282,,MATCH(J$4,'C. PoC Adj Factor Scoring'!$E$3:$AH$3,0)-1),MATCH(J$2&\" Score\",'C. PoC Adj Factor Scoring'!$E$4:$J$4,0),TRUE)","v":1},{"$f":"VLOOKUP(OFFSET($B:$B,,MATCH(K$4,$B$4:$F$4,0)-1),OFFSET('C. PoC Adj Factor Scoring'!$E$5:$J$282,,MATCH(K$4,'C. PoC Adj Factor Scoring'!$E$3:$AH$3,0)-1),MATCH(K$2&\" Score\",'C. PoC Adj Factor Scoring'!$E$4:$J$4,0),TRUE)","v":1},{"$f":"VLOOKUP(OFFSET($B:$B,,MATCH(L$4,$B$4:$F$4,0)-1),OFFSET('C. PoC Adj Factor Scoring'!$E$5:$J$282,,MATCH(L$4,'C. PoC Adj Factor Scoring'!$E$3:$AH$3,0)-1),MATCH(L$2&\" Score\",'C. PoC Adj Factor Scoring'!$E$4:$J$4,0),TRUE)","v":1},{"$f":"VLOOKUP(OFFSET($B:$B,,MATCH(M$4,$B$4:$F$4,0)-1),OFFSET('C. PoC Adj Factor Scoring'!$E$5:$J$282,,MATCH(M$4,'C. PoC Adj Factor Scoring'!$E$3:$AH$3,0)-1),MATCH(M$2&\" Score\",'C. PoC Adj Factor Scoring'!$E$4:$J$4,0),TRUE)","v":1},{"$f":"VLOOKUP(OFFSET($B:$B,,MATCH(N$4,$B$4:$F$4,0)-1),OFFSET('C. PoC Adj Factor Scoring'!$E$5:$J$282,,MATCH(N$4,'C. PoC Adj Factor Scoring'!$E$3:$AH$3,0)-1),MATCH(N$2&\" Score\",'C. PoC Adj Factor Scoring'!$E$4:$J$4,0),TRUE)","v":1},{"$f":"VLOOKUP(OFFSET($B:$B,,MATCH(O$4,$B$4:$F$4,0)-1),OFFSET('C. PoC Adj Factor Scoring'!$E$5:$J$282,,MATCH(O$4,'C. PoC Adj Factor Scoring'!$E$3:$AH$3,0)-1),MATCH(O$2&\" Score\",'C. PoC Adj Factor Scoring'!$E$4:$J$4,0),TRUE)","v":1},{"$f":"VLOOKUP(OFFSET($B:$B,,MATCH(P$4,$B$4:$F$4,0)-1),OFFSET('C. PoC Adj Factor Scoring'!$E$5:$J$282,,MATCH(P$4,'C. PoC Adj Factor Scoring'!$E$3:$AH$3,0)-1),MATCH(P$2&\" Score\",'C. PoC Adj Factor Scoring'!$E$4:$J$4,0),TRUE)","v":1},{"$f":"VLOOKUP(OFFSET($B:$B,,MATCH(Q$4,$B$4:$F$4,0)-1),OFFSET('C. PoC Adj Factor Scoring'!$E$5:$J$282,,MATCH(Q$4,'C. PoC Adj Factor Scoring'!$E$3:$AH$3,0)-1),MATCH(Q$2&\" Score\",'C. PoC Adj Factor Scoring'!$E$4:$J$4,0),TRUE)","v":1},{"$f":"VLOOKUP(OFFSET($B:$B,,MATCH(R$4,$B$4:$F$4,0)-1),OFFSET('C. PoC Adj Factor Scoring'!$E$5:$J$282,,MATCH(R$4,'C. PoC Adj Factor Scoring'!$E$3:$AH$3,0)-1),MATCH(R$2&\" Score\",'C. PoC Adj Factor Scoring'!$E$4:$J$4,0),TRUE)","v":1},{"$f":"VLOOKUP(OFFSET($B:$B,,MATCH(S$4,$B$4:$F$4,0)-1),OFFSET('C. PoC Adj Factor Scoring'!$E$5:$J$282,,MATCH(S$4,'C. PoC Adj Factor Scoring'!$E$3:$AH$3,0)-1),MATCH(S$2&\" Score\",'C. PoC Adj Factor Scoring'!$E$4:$J$4,0),TRUE)","v":1},{"$f":"VLOOKUP(OFFSET($B:$B,,MATCH(T$4,$B$4:$F$4,0)-1),OFFSET('C. PoC Adj Factor Scoring'!$E$5:$J$282,,MATCH(T$4,'C. PoC Adj Factor Scoring'!$E$3:$AH$3,0)-1),MATCH(T$2&\" Score\",'C. PoC Adj Factor Scoring'!$E$4:$J$4,0),TRUE)","v":1},{"$f":"VLOOKUP(OFFSET($B:$B,,MATCH(U$4,$B$4:$F$4,0)-1),OFFSET('C. PoC Adj Factor Scoring'!$E$5:$J$282,,MATCH(U$4,'C. PoC Adj Factor Scoring'!$E$3:$AH$3,0)-1),MATCH(U$2&\" Score\",'C. PoC Adj Factor Scoring'!$E$4:$J$4,0),TRUE)","v":1},{"$f":"VLOOKUP(OFFSET($B:$B,,MATCH(V$4,$B$4:$F$4,0)-1),OFFSET('C. PoC Adj Factor Scoring'!$E$5:$J$282,,MATCH(V$4,'C. PoC Adj Factor Scoring'!$E$3:$AH$3,0)-1),MATCH(V$2&\" Score\",'C. PoC Adj Factor Scoring'!$E$4:$J$4,0),TRUE)","v":1},{"$f":"VLOOKUP(OFFSET($B:$B,,MATCH(W$4,$B$4:$F$4,0)-1),OFFSET('C. PoC Adj Factor Scoring'!$E$5:$J$282,,MATCH(W$4,'C. PoC Adj Factor Scoring'!$E$3:$AH$3,0)-1),MATCH(W$2&\" Score\",'C. PoC Adj Factor Scoring'!$E$4:$J$4,0),TRUE)","v":1},{"$f":"VLOOKUP(OFFSET($B:$B,,MATCH(X$4,$B$4:$F$4,0)-1),OFFSET('C. PoC Adj Factor Scoring'!$E$5:$J$282,,MATCH(X$4,'C. PoC Adj Factor Scoring'!$E$3:$AH$3,0)-1),MATCH(X$2&\" Score\",'C. PoC Adj Factor Scoring'!$E$4:$J$4,0),TRUE)","v":1},{"$f":"VLOOKUP(OFFSET($B:$B,,MATCH(Y$4,$B$4:$F$4,0)-1),OFFSET('C. PoC Adj Factor Scoring'!$E$5:$J$282,,MATCH(Y$4,'C. PoC Adj Factor Scoring'!$E$3:$AH$3,0)-1),MATCH(Y$2&\" Score\",'C. PoC Adj Factor Scoring'!$E$4:$J$4,0),TRUE)","v":1},{"$f":"VLOOKUP(OFFSET($B:$B,,MATCH(Z$4,$B$4:$F$4,0)-1),OFFSET('C. PoC Adj Factor Scoring'!$E$5:$J$282,,MATCH(Z$4,'C. PoC Adj Factor Scoring'!$E$3:$AH$3,0)-1),MATCH(Z$2&\" Score\",'C. PoC Adj Factor Scoring'!$E$4:$J$4,0),TRUE)","v":1},{"$f":"VLOOKUP(OFFSET($B:$B,,MATCH(AA$4,$B$4:$F$4,0)-1),OFFSET('C. PoC Adj Factor Scoring'!$E$5:$J$282,,MATCH(AA$4,'C. PoC Adj Factor Scoring'!$E$3:$AH$3,0)-1),MATCH(AA$2&\" Score\",'C. PoC Adj Factor Scoring'!$E$4:$J$4,0),TRUE)","v":3},{"$f":"VLOOKUP(OFFSET($B:$B,,MATCH(AB$4,$B$4:$F$4,0)-1),OFFSET('C. PoC Adj Factor Scoring'!$E$5:$J$282,,MATCH(AB$4,'C. PoC Adj Factor Scoring'!$E$3:$AH$3,0)-1),MATCH(AB$2&\" Score\",'C. PoC Adj Factor Scoring'!$E$4:$J$4,0),TRUE)","v":1},{"$f":"VLOOKUP(OFFSET($B:$B,,MATCH(AC$4,$B$4:$F$4,0)-1),OFFSET('C. PoC Adj Factor Scoring'!$E$5:$J$282,,MATCH(AC$4,'C. PoC Adj Factor Scoring'!$E$3:$AH$3,0)-1),MATCH(AC$2&\" Score\",'C. PoC Adj Factor Scoring'!$E$4:$J$4,0),TRUE)","v":1},{"$f":"VLOOKUP(OFFSET($B:$B,,MATCH(AD$4,$B$4:$F$4,0)-1),OFFSET('C. PoC Adj Factor Scoring'!$E$5:$J$282,,MATCH(AD$4,'C. PoC Adj Factor Scoring'!$E$3:$AH$3,0)-1),MATCH(AD$2&\" Score\",'C. PoC Adj Factor Scoring'!$E$4:$J$4,0),TRUE)","v":1},{"$f":"VLOOKUP(OFFSET($B:$B,,MATCH(AE$4,$B$4:$F$4,0)-1),OFFSET('C. PoC Adj Factor Scoring'!$E$5:$J$282,,MATCH(AE$4,'C. PoC Adj Factor Scoring'!$E$3:$AH$3,0)-1),MATCH(AE$2&\" Score\",'C. PoC Adj Factor Scoring'!$E$4:$J$4,0),TRUE)","v":1}]
[{"$f":"'A. Population Info'!A447","v":1001472088},{"$f":"'A. Population Info'!L447","v":"OIL"},{"$f":"'A. Population Info'!M447","v":0},{"$f":"'A. Population Info'!N447","v":0},{"$f":"'A. Population Info'!O447","v":0},{"$f":"'A. Population Info'!P447","v":0},{"$f":"VLOOKUP(OFFSET($B:$B,,MATCH(G$4,$B$4:$F$4,0)-1),OFFSET('C. PoC Adj Factor Scoring'!$E$5:$J$282,,MATCH(G$4,'C. PoC Adj Factor Scoring'!$E$3:$AH$3,0)-1),MATCH(G$2&\" Score\",'C. PoC Adj Factor Scoring'!$E$4:$J$4,0),TRUE)","v":4},{"$f":"VLOOKUP(OFFSET($B:$B,,MATCH(H$4,$B$4:$F$4,0)-1),OFFSET('C. PoC Adj Factor Scoring'!$E$5:$J$282,,MATCH(H$4,'C. PoC Adj Factor Scoring'!$E$3:$AH$3,0)-1),MATCH(H$2&\" Score\",'C. PoC Adj Factor Scoring'!$E$4:$J$4,0),TRUE)","v":1},{"$f":"VLOOKUP(OFFSET($B:$B,,MATCH(I$4,$B$4:$F$4,0)-1),OFFSET('C. PoC Adj Factor Scoring'!$E$5:$J$282,,MATCH(I$4,'C. PoC Adj Factor Scoring'!$E$3:$AH$3,0)-1),MATCH(I$2&\" Score\",'C. PoC Adj Factor Scoring'!$E$4:$J$4,0),TRUE)","v":1},{"$f":"VLOOKUP(OFFSET($B:$B,,MATCH(J$4,$B$4:$F$4,0)-1),OFFSET('C. PoC Adj Factor Scoring'!$E$5:$J$282,,MATCH(J$4,'C. PoC Adj Factor Scoring'!$E$3:$AH$3,0)-1),MATCH(J$2&\" Score\",'C. PoC Adj Factor Scoring'!$E$4:$J$4,0),TRUE)","v":1},{"$f":"VLOOKUP(OFFSET($B:$B,,MATCH(K$4,$B$4:$F$4,0)-1),OFFSET('C. PoC Adj Factor Scoring'!$E$5:$J$282,,MATCH(K$4,'C. PoC Adj Factor Scoring'!$E$3:$AH$3,0)-1),MATCH(K$2&\" Score\",'C. PoC Adj Factor Scoring'!$E$4:$J$4,0),TRUE)","v":1},{"$f":"VLOOKUP(OFFSET($B:$B,,MATCH(L$4,$B$4:$F$4,0)-1),OFFSET('C. PoC Adj Factor Scoring'!$E$5:$J$282,,MATCH(L$4,'C. PoC Adj Factor Scoring'!$E$3:$AH$3,0)-1),MATCH(L$2&\" Score\",'C. PoC Adj Factor Scoring'!$E$4:$J$4,0),TRUE)","v":1},{"$f":"VLOOKUP(OFFSET($B:$B,,MATCH(M$4,$B$4:$F$4,0)-1),OFFSET('C. PoC Adj Factor Scoring'!$E$5:$J$282,,MATCH(M$4,'C. PoC Adj Factor Scoring'!$E$3:$AH$3,0)-1),MATCH(M$2&\" Score\",'C. PoC Adj Factor Scoring'!$E$4:$J$4,0),TRUE)","v":1},{"$f":"VLOOKUP(OFFSET($B:$B,,MATCH(N$4,$B$4:$F$4,0)-1),OFFSET('C. PoC Adj Factor Scoring'!$E$5:$J$282,,MATCH(N$4,'C. PoC Adj Factor Scoring'!$E$3:$AH$3,0)-1),MATCH(N$2&\" Score\",'C. PoC Adj Factor Scoring'!$E$4:$J$4,0),TRUE)","v":1},{"$f":"VLOOKUP(OFFSET($B:$B,,MATCH(O$4,$B$4:$F$4,0)-1),OFFSET('C. PoC Adj Factor Scoring'!$E$5:$J$282,,MATCH(O$4,'C. PoC Adj Factor Scoring'!$E$3:$AH$3,0)-1),MATCH(O$2&\" Score\",'C. PoC Adj Factor Scoring'!$E$4:$J$4,0),TRUE)","v":1},{"$f":"VLOOKUP(OFFSET($B:$B,,MATCH(P$4,$B$4:$F$4,0)-1),OFFSET('C. PoC Adj Factor Scoring'!$E$5:$J$282,,MATCH(P$4,'C. PoC Adj Factor Scoring'!$E$3:$AH$3,0)-1),MATCH(P$2&\" Score\",'C. PoC Adj Factor Scoring'!$E$4:$J$4,0),TRUE)","v":1},{"$f":"VLOOKUP(OFFSET($B:$B,,MATCH(Q$4,$B$4:$F$4,0)-1),OFFSET('C. PoC Adj Factor Scoring'!$E$5:$J$282,,MATCH(Q$4,'C. PoC Adj Factor Scoring'!$E$3:$AH$3,0)-1),MATCH(Q$2&\" Score\",'C. PoC Adj Factor Scoring'!$E$4:$J$4,0),TRUE)","v":1},{"$f":"VLOOKUP(OFFSET($B:$B,,MATCH(R$4,$B$4:$F$4,0)-1),OFFSET('C. PoC Adj Factor Scoring'!$E$5:$J$282,,MATCH(R$4,'C. PoC Adj Factor Scoring'!$E$3:$AH$3,0)-1),MATCH(R$2&\" Score\",'C. PoC Adj Factor Scoring'!$E$4:$J$4,0),TRUE)","v":1},{"$f":"VLOOKUP(OFFSET($B:$B,,MATCH(S$4,$B$4:$F$4,0)-1),OFFSET('C. PoC Adj Factor Scoring'!$E$5:$J$282,,MATCH(S$4,'C. PoC Adj Factor Scoring'!$E$3:$AH$3,0)-1),MATCH(S$2&\" Score\",'C. PoC Adj Factor Scoring'!$E$4:$J$4,0),TRUE)","v":1},{"$f":"VLOOKUP(OFFSET($B:$B,,MATCH(T$4,$B$4:$F$4,0)-1),OFFSET('C. PoC Adj Factor Scoring'!$E$5:$J$282,,MATCH(T$4,'C. PoC Adj Factor Scoring'!$E$3:$AH$3,0)-1),MATCH(T$2&\" Score\",'C. PoC Adj Factor Scoring'!$E$4:$J$4,0),TRUE)","v":1},{"$f":"VLOOKUP(OFFSET($B:$B,,MATCH(U$4,$B$4:$F$4,0)-1),OFFSET('C. PoC Adj Factor Scoring'!$E$5:$J$282,,MATCH(U$4,'C. PoC Adj Factor Scoring'!$E$3:$AH$3,0)-1),MATCH(U$2&\" Score\",'C. PoC Adj Factor Scoring'!$E$4:$J$4,0),TRUE)","v":1},{"$f":"VLOOKUP(OFFSET($B:$B,,MATCH(V$4,$B$4:$F$4,0)-1),OFFSET('C. PoC Adj Factor Scoring'!$E$5:$J$282,,MATCH(V$4,'C. PoC Adj Factor Scoring'!$E$3:$AH$3,0)-1),MATCH(V$2&\" Score\",'C. PoC Adj Factor Scoring'!$E$4:$J$4,0),TRUE)","v":1},{"$f":"VLOOKUP(OFFSET($B:$B,,MATCH(W$4,$B$4:$F$4,0)-1),OFFSET('C. PoC Adj Factor Scoring'!$E$5:$J$282,,MATCH(W$4,'C. PoC Adj Factor Scoring'!$E$3:$AH$3,0)-1),MATCH(W$2&\" Score\",'C. PoC Adj Factor Scoring'!$E$4:$J$4,0),TRUE)","v":1},{"$f":"VLOOKUP(OFFSET($B:$B,,MATCH(X$4,$B$4:$F$4,0)-1),OFFSET('C. PoC Adj Factor Scoring'!$E$5:$J$282,,MATCH(X$4,'C. PoC Adj Factor Scoring'!$E$3:$AH$3,0)-1),MATCH(X$2&\" Score\",'C. PoC Adj Factor Scoring'!$E$4:$J$4,0),TRUE)","v":1},{"$f":"VLOOKUP(OFFSET($B:$B,,MATCH(Y$4,$B$4:$F$4,0)-1),OFFSET('C. PoC Adj Factor Scoring'!$E$5:$J$282,,MATCH(Y$4,'C. PoC Adj Factor Scoring'!$E$3:$AH$3,0)-1),MATCH(Y$2&\" Score\",'C. PoC Adj Factor Scoring'!$E$4:$J$4,0),TRUE)","v":1},{"$f":"VLOOKUP(OFFSET($B:$B,,MATCH(Z$4,$B$4:$F$4,0)-1),OFFSET('C. PoC Adj Factor Scoring'!$E$5:$J$282,,MATCH(Z$4,'C. PoC Adj Factor Scoring'!$E$3:$AH$3,0)-1),MATCH(Z$2&\" Score\",'C. PoC Adj Factor Scoring'!$E$4:$J$4,0),TRUE)","v":1},{"$f":"VLOOKUP(OFFSET($B:$B,,MATCH(AA$4,$B$4:$F$4,0)-1),OFFSET('C. PoC Adj Factor Scoring'!$E$5:$J$282,,MATCH(AA$4,'C. PoC Adj Factor Scoring'!$E$3:$AH$3,0)-1),MATCH(AA$2&\" Score\",'C. PoC Adj Factor Scoring'!$E$4:$J$4,0),TRUE)","v":3},{"$f":"VLOOKUP(OFFSET($B:$B,,MATCH(AB$4,$B$4:$F$4,0)-1),OFFSET('C. PoC Adj Factor Scoring'!$E$5:$J$282,,MATCH(AB$4,'C. PoC Adj Factor Scoring'!$E$3:$AH$3,0)-1),MATCH(AB$2&\" Score\",'C. PoC Adj Factor Scoring'!$E$4:$J$4,0),TRUE)","v":1},{"$f":"VLOOKUP(OFFSET($B:$B,,MATCH(AC$4,$B$4:$F$4,0)-1),OFFSET('C. PoC Adj Factor Scoring'!$E$5:$J$282,,MATCH(AC$4,'C. PoC Adj Factor Scoring'!$E$3:$AH$3,0)-1),MATCH(AC$2&\" Score\",'C. PoC Adj Factor Scoring'!$E$4:$J$4,0),TRUE)","v":1},{"$f":"VLOOKUP(OFFSET($B:$B,,MATCH(AD$4,$B$4:$F$4,0)-1),OFFSET('C. PoC Adj Factor Scoring'!$E$5:$J$282,,MATCH(AD$4,'C. PoC Adj Factor Scoring'!$E$3:$AH$3,0)-1),MATCH(AD$2&\" Score\",'C. PoC Adj Factor Scoring'!$E$4:$J$4,0),TRUE)","v":1},{"$f":"VLOOKUP(OFFSET($B:$B,,MATCH(AE$4,$B$4:$F$4,0)-1),OFFSET('C. PoC Adj Factor Scoring'!$E$5:$J$282,,MATCH(AE$4,'C. PoC Adj Factor Scoring'!$E$3:$AH$3,0)-1),MATCH(AE$2&\" Score\",'C. PoC Adj Factor Scoring'!$E$4:$J$4,0),TRUE)","v":1}]
[{"$f":"'A. Population Info'!A448","v":1001472089},{"$f":"'A. Population Info'!L448","v":"OIL"},{"$f":"'A. Population Info'!M448","v":0},{"$f":"'A. Population Info'!N448","v":0},{"$f":"'A. Population Info'!O448","v":0},{"$f":"'A. Population Info'!P448","v":0},{"$f":"VLOOKUP(OFFSET($B:$B,,MATCH(G$4,$B$4:$F$4,0)-1),OFFSET('C. PoC Adj Factor Scoring'!$E$5:$J$282,,MATCH(G$4,'C. PoC Adj Factor Scoring'!$E$3:$AH$3,0)-1),MATCH(G$2&\" Score\",'C. PoC Adj Factor Scoring'!$E$4:$J$4,0),TRUE)","v":4},{"$f":"VLOOKUP(OFFSET($B:$B,,MATCH(H$4,$B$4:$F$4,0)-1),OFFSET('C. PoC Adj Factor Scoring'!$E$5:$J$282,,MATCH(H$4,'C. PoC Adj Factor Scoring'!$E$3:$AH$3,0)-1),MATCH(H$2&\" Score\",'C. PoC Adj Factor Scoring'!$E$4:$J$4,0),TRUE)","v":1},{"$f":"VLOOKUP(OFFSET($B:$B,,MATCH(I$4,$B$4:$F$4,0)-1),OFFSET('C. PoC Adj Factor Scoring'!$E$5:$J$282,,MATCH(I$4,'C. PoC Adj Factor Scoring'!$E$3:$AH$3,0)-1),MATCH(I$2&\" Score\",'C. PoC Adj Factor Scoring'!$E$4:$J$4,0),TRUE)","v":1},{"$f":"VLOOKUP(OFFSET($B:$B,,MATCH(J$4,$B$4:$F$4,0)-1),OFFSET('C. PoC Adj Factor Scoring'!$E$5:$J$282,,MATCH(J$4,'C. PoC Adj Factor Scoring'!$E$3:$AH$3,0)-1),MATCH(J$2&\" Score\",'C. PoC Adj Factor Scoring'!$E$4:$J$4,0),TRUE)","v":1},{"$f":"VLOOKUP(OFFSET($B:$B,,MATCH(K$4,$B$4:$F$4,0)-1),OFFSET('C. PoC Adj Factor Scoring'!$E$5:$J$282,,MATCH(K$4,'C. PoC Adj Factor Scoring'!$E$3:$AH$3,0)-1),MATCH(K$2&\" Score\",'C. PoC Adj Factor Scoring'!$E$4:$J$4,0),TRUE)","v":1},{"$f":"VLOOKUP(OFFSET($B:$B,,MATCH(L$4,$B$4:$F$4,0)-1),OFFSET('C. PoC Adj Factor Scoring'!$E$5:$J$282,,MATCH(L$4,'C. PoC Adj Factor Scoring'!$E$3:$AH$3,0)-1),MATCH(L$2&\" Score\",'C. PoC Adj Factor Scoring'!$E$4:$J$4,0),TRUE)","v":1},{"$f":"VLOOKUP(OFFSET($B:$B,,MATCH(M$4,$B$4:$F$4,0)-1),OFFSET('C. PoC Adj Factor Scoring'!$E$5:$J$282,,MATCH(M$4,'C. PoC Adj Factor Scoring'!$E$3:$AH$3,0)-1),MATCH(M$2&\" Score\",'C. PoC Adj Factor Scoring'!$E$4:$J$4,0),TRUE)","v":1},{"$f":"VLOOKUP(OFFSET($B:$B,,MATCH(N$4,$B$4:$F$4,0)-1),OFFSET('C. PoC Adj Factor Scoring'!$E$5:$J$282,,MATCH(N$4,'C. PoC Adj Factor Scoring'!$E$3:$AH$3,0)-1),MATCH(N$2&\" Score\",'C. PoC Adj Factor Scoring'!$E$4:$J$4,0),TRUE)","v":1},{"$f":"VLOOKUP(OFFSET($B:$B,,MATCH(O$4,$B$4:$F$4,0)-1),OFFSET('C. PoC Adj Factor Scoring'!$E$5:$J$282,,MATCH(O$4,'C. PoC Adj Factor Scoring'!$E$3:$AH$3,0)-1),MATCH(O$2&\" Score\",'C. PoC Adj Factor Scoring'!$E$4:$J$4,0),TRUE)","v":1},{"$f":"VLOOKUP(OFFSET($B:$B,,MATCH(P$4,$B$4:$F$4,0)-1),OFFSET('C. PoC Adj Factor Scoring'!$E$5:$J$282,,MATCH(P$4,'C. PoC Adj Factor Scoring'!$E$3:$AH$3,0)-1),MATCH(P$2&\" Score\",'C. PoC Adj Factor Scoring'!$E$4:$J$4,0),TRUE)","v":1},{"$f":"VLOOKUP(OFFSET($B:$B,,MATCH(Q$4,$B$4:$F$4,0)-1),OFFSET('C. PoC Adj Factor Scoring'!$E$5:$J$282,,MATCH(Q$4,'C. PoC Adj Factor Scoring'!$E$3:$AH$3,0)-1),MATCH(Q$2&\" Score\",'C. PoC Adj Factor Scoring'!$E$4:$J$4,0),TRUE)","v":1},{"$f":"VLOOKUP(OFFSET($B:$B,,MATCH(R$4,$B$4:$F$4,0)-1),OFFSET('C. PoC Adj Factor Scoring'!$E$5:$J$282,,MATCH(R$4,'C. PoC Adj Factor Scoring'!$E$3:$AH$3,0)-1),MATCH(R$2&\" Score\",'C. PoC Adj Factor Scoring'!$E$4:$J$4,0),TRUE)","v":1},{"$f":"VLOOKUP(OFFSET($B:$B,,MATCH(S$4,$B$4:$F$4,0)-1),OFFSET('C. PoC Adj Factor Scoring'!$E$5:$J$282,,MATCH(S$4,'C. PoC Adj Factor Scoring'!$E$3:$AH$3,0)-1),MATCH(S$2&\" Score\",'C. PoC Adj Factor Scoring'!$E$4:$J$4,0),TRUE)","v":1},{"$f":"VLOOKUP(OFFSET($B:$B,,MATCH(T$4,$B$4:$F$4,0)-1),OFFSET('C. PoC Adj Factor Scoring'!$E$5:$J$282,,MATCH(T$4,'C. PoC Adj Factor Scoring'!$E$3:$AH$3,0)-1),MATCH(T$2&\" Score\",'C. PoC Adj Factor Scoring'!$E$4:$J$4,0),TRUE)","v":1},{"$f":"VLOOKUP(OFFSET($B:$B,,MATCH(U$4,$B$4:$F$4,0)-1),OFFSET('C. PoC Adj Factor Scoring'!$E$5:$J$282,,MATCH(U$4,'C. PoC Adj Factor Scoring'!$E$3:$AH$3,0)-1),MATCH(U$2&\" Score\",'C. PoC Adj Factor Scoring'!$E$4:$J$4,0),TRUE)","v":1},{"$f":"VLOOKUP(OFFSET($B:$B,,MATCH(V$4,$B$4:$F$4,0)-1),OFFSET('C. PoC Adj Factor Scoring'!$E$5:$J$282,,MATCH(V$4,'C. PoC Adj Factor Scoring'!$E$3:$AH$3,0)-1),MATCH(V$2&\" Score\",'C. PoC Adj Factor Scoring'!$E$4:$J$4,0),TRUE)","v":1},{"$f":"VLOOKUP(OFFSET($B:$B,,MATCH(W$4,$B$4:$F$4,0)-1),OFFSET('C. PoC Adj Factor Scoring'!$E$5:$J$282,,MATCH(W$4,'C. PoC Adj Factor Scoring'!$E$3:$AH$3,0)-1),MATCH(W$2&\" Score\",'C. PoC Adj Factor Scoring'!$E$4:$J$4,0),TRUE)","v":1},{"$f":"VLOOKUP(OFFSET($B:$B,,MATCH(X$4,$B$4:$F$4,0)-1),OFFSET('C. PoC Adj Factor Scoring'!$E$5:$J$282,,MATCH(X$4,'C. PoC Adj Factor Scoring'!$E$3:$AH$3,0)-1),MATCH(X$2&\" Score\",'C. PoC Adj Factor Scoring'!$E$4:$J$4,0),TRUE)","v":1},{"$f":"VLOOKUP(OFFSET($B:$B,,MATCH(Y$4,$B$4:$F$4,0)-1),OFFSET('C. PoC Adj Factor Scoring'!$E$5:$J$282,,MATCH(Y$4,'C. PoC Adj Factor Scoring'!$E$3:$AH$3,0)-1),MATCH(Y$2&\" Score\",'C. PoC Adj Factor Scoring'!$E$4:$J$4,0),TRUE)","v":1},{"$f":"VLOOKUP(OFFSET($B:$B,,MATCH(Z$4,$B$4:$F$4,0)-1),OFFSET('C. PoC Adj Factor Scoring'!$E$5:$J$282,,MATCH(Z$4,'C. PoC Adj Factor Scoring'!$E$3:$AH$3,0)-1),MATCH(Z$2&\" Score\",'C. PoC Adj Factor Scoring'!$E$4:$J$4,0),TRUE)","v":1},{"$f":"VLOOKUP(OFFSET($B:$B,,MATCH(AA$4,$B$4:$F$4,0)-1),OFFSET('C. PoC Adj Factor Scoring'!$E$5:$J$282,,MATCH(AA$4,'C. PoC Adj Factor Scoring'!$E$3:$AH$3,0)-1),MATCH(AA$2&\" Score\",'C. PoC Adj Factor Scoring'!$E$4:$J$4,0),TRUE)","v":3},{"$f":"VLOOKUP(OFFSET($B:$B,,MATCH(AB$4,$B$4:$F$4,0)-1),OFFSET('C. PoC Adj Factor Scoring'!$E$5:$J$282,,MATCH(AB$4,'C. PoC Adj Factor Scoring'!$E$3:$AH$3,0)-1),MATCH(AB$2&\" Score\",'C. PoC Adj Factor Scoring'!$E$4:$J$4,0),TRUE)","v":1},{"$f":"VLOOKUP(OFFSET($B:$B,,MATCH(AC$4,$B$4:$F$4,0)-1),OFFSET('C. PoC Adj Factor Scoring'!$E$5:$J$282,,MATCH(AC$4,'C. PoC Adj Factor Scoring'!$E$3:$AH$3,0)-1),MATCH(AC$2&\" Score\",'C. PoC Adj Factor Scoring'!$E$4:$J$4,0),TRUE)","v":1},{"$f":"VLOOKUP(OFFSET($B:$B,,MATCH(AD$4,$B$4:$F$4,0)-1),OFFSET('C. PoC Adj Factor Scoring'!$E$5:$J$282,,MATCH(AD$4,'C. PoC Adj Factor Scoring'!$E$3:$AH$3,0)-1),MATCH(AD$2&\" Score\",'C. PoC Adj Factor Scoring'!$E$4:$J$4,0),TRUE)","v":1},{"$f":"VLOOKUP(OFFSET($B:$B,,MATCH(AE$4,$B$4:$F$4,0)-1),OFFSET('C. PoC Adj Factor Scoring'!$E$5:$J$282,,MATCH(AE$4,'C. PoC Adj Factor Scoring'!$E$3:$AH$3,0)-1),MATCH(AE$2&\" Score\",'C. PoC Adj Factor Scoring'!$E$4:$J$4,0),TRUE)","v":1}]
[{"$f":"'A. Population Info'!A449","v":1001472169},{"$f":"'A. Population Info'!L449","v":"OIL"},{"$f":"'A. Population Info'!M449","v":0},{"$f":"'A. Population Info'!N449","v":0},{"$f":"'A. Population Info'!O449","v":0},{"$f":"'A. Population Info'!P449","v":0},{"$f":"VLOOKUP(OFFSET($B:$B,,MATCH(G$4,$B$4:$F$4,0)-1),OFFSET('C. PoC Adj Factor Scoring'!$E$5:$J$282,,MATCH(G$4,'C. PoC Adj Factor Scoring'!$E$3:$AH$3,0)-1),MATCH(G$2&\" Score\",'C. PoC Adj Factor Scoring'!$E$4:$J$4,0),TRUE)","v":4},{"$f":"VLOOKUP(OFFSET($B:$B,,MATCH(H$4,$B$4:$F$4,0)-1),OFFSET('C. PoC Adj Factor Scoring'!$E$5:$J$282,,MATCH(H$4,'C. PoC Adj Factor Scoring'!$E$3:$AH$3,0)-1),MATCH(H$2&\" Score\",'C. PoC Adj Factor Scoring'!$E$4:$J$4,0),TRUE)","v":1},{"$f":"VLOOKUP(OFFSET($B:$B,,MATCH(I$4,$B$4:$F$4,0)-1),OFFSET('C. PoC Adj Factor Scoring'!$E$5:$J$282,,MATCH(I$4,'C. PoC Adj Factor Scoring'!$E$3:$AH$3,0)-1),MATCH(I$2&\" Score\",'C. PoC Adj Factor Scoring'!$E$4:$J$4,0),TRUE)","v":1},{"$f":"VLOOKUP(OFFSET($B:$B,,MATCH(J$4,$B$4:$F$4,0)-1),OFFSET('C. PoC Adj Factor Scoring'!$E$5:$J$282,,MATCH(J$4,'C. PoC Adj Factor Scoring'!$E$3:$AH$3,0)-1),MATCH(J$2&\" Score\",'C. PoC Adj Factor Scoring'!$E$4:$J$4,0),TRUE)","v":1},{"$f":"VLOOKUP(OFFSET($B:$B,,MATCH(K$4,$B$4:$F$4,0)-1),OFFSET('C. PoC Adj Factor Scoring'!$E$5:$J$282,,MATCH(K$4,'C. PoC Adj Factor Scoring'!$E$3:$AH$3,0)-1),MATCH(K$2&\" Score\",'C. PoC Adj Factor Scoring'!$E$4:$J$4,0),TRUE)","v":1},{"$f":"VLOOKUP(OFFSET($B:$B,,MATCH(L$4,$B$4:$F$4,0)-1),OFFSET('C. PoC Adj Factor Scoring'!$E$5:$J$282,,MATCH(L$4,'C. PoC Adj Factor Scoring'!$E$3:$AH$3,0)-1),MATCH(L$2&\" Score\",'C. PoC Adj Factor Scoring'!$E$4:$J$4,0),TRUE)","v":1},{"$f":"VLOOKUP(OFFSET($B:$B,,MATCH(M$4,$B$4:$F$4,0)-1),OFFSET('C. PoC Adj Factor Scoring'!$E$5:$J$282,,MATCH(M$4,'C. PoC Adj Factor Scoring'!$E$3:$AH$3,0)-1),MATCH(M$2&\" Score\",'C. PoC Adj Factor Scoring'!$E$4:$J$4,0),TRUE)","v":1},{"$f":"VLOOKUP(OFFSET($B:$B,,MATCH(N$4,$B$4:$F$4,0)-1),OFFSET('C. PoC Adj Factor Scoring'!$E$5:$J$282,,MATCH(N$4,'C. PoC Adj Factor Scoring'!$E$3:$AH$3,0)-1),MATCH(N$2&\" Score\",'C. PoC Adj Factor Scoring'!$E$4:$J$4,0),TRUE)","v":1},{"$f":"VLOOKUP(OFFSET($B:$B,,MATCH(O$4,$B$4:$F$4,0)-1),OFFSET('C. PoC Adj Factor Scoring'!$E$5:$J$282,,MATCH(O$4,'C. PoC Adj Factor Scoring'!$E$3:$AH$3,0)-1),MATCH(O$2&\" Score\",'C. PoC Adj Factor Scoring'!$E$4:$J$4,0),TRUE)","v":1},{"$f":"VLOOKUP(OFFSET($B:$B,,MATCH(P$4,$B$4:$F$4,0)-1),OFFSET('C. PoC Adj Factor Scoring'!$E$5:$J$282,,MATCH(P$4,'C. PoC Adj Factor Scoring'!$E$3:$AH$3,0)-1),MATCH(P$2&\" Score\",'C. PoC Adj Factor Scoring'!$E$4:$J$4,0),TRUE)","v":1},{"$f":"VLOOKUP(OFFSET($B:$B,,MATCH(Q$4,$B$4:$F$4,0)-1),OFFSET('C. PoC Adj Factor Scoring'!$E$5:$J$282,,MATCH(Q$4,'C. PoC Adj Factor Scoring'!$E$3:$AH$3,0)-1),MATCH(Q$2&\" Score\",'C. PoC Adj Factor Scoring'!$E$4:$J$4,0),TRUE)","v":1},{"$f":"VLOOKUP(OFFSET($B:$B,,MATCH(R$4,$B$4:$F$4,0)-1),OFFSET('C. PoC Adj Factor Scoring'!$E$5:$J$282,,MATCH(R$4,'C. PoC Adj Factor Scoring'!$E$3:$AH$3,0)-1),MATCH(R$2&\" Score\",'C. PoC Adj Factor Scoring'!$E$4:$J$4,0),TRUE)","v":1},{"$f":"VLOOKUP(OFFSET($B:$B,,MATCH(S$4,$B$4:$F$4,0)-1),OFFSET('C. PoC Adj Factor Scoring'!$E$5:$J$282,,MATCH(S$4,'C. PoC Adj Factor Scoring'!$E$3:$AH$3,0)-1),MATCH(S$2&\" Score\",'C. PoC Adj Factor Scoring'!$E$4:$J$4,0),TRUE)","v":1},{"$f":"VLOOKUP(OFFSET($B:$B,,MATCH(T$4,$B$4:$F$4,0)-1),OFFSET('C. PoC Adj Factor Scoring'!$E$5:$J$282,,MATCH(T$4,'C. PoC Adj Factor Scoring'!$E$3:$AH$3,0)-1),MATCH(T$2&\" Score\",'C. PoC Adj Factor Scoring'!$E$4:$J$4,0),TRUE)","v":1},{"$f":"VLOOKUP(OFFSET($B:$B,,MATCH(U$4,$B$4:$F$4,0)-1),OFFSET('C. PoC Adj Factor Scoring'!$E$5:$J$282,,MATCH(U$4,'C. PoC Adj Factor Scoring'!$E$3:$AH$3,0)-1),MATCH(U$2&\" Score\",'C. PoC Adj Factor Scoring'!$E$4:$J$4,0),TRUE)","v":1},{"$f":"VLOOKUP(OFFSET($B:$B,,MATCH(V$4,$B$4:$F$4,0)-1),OFFSET('C. PoC Adj Factor Scoring'!$E$5:$J$282,,MATCH(V$4,'C. PoC Adj Factor Scoring'!$E$3:$AH$3,0)-1),MATCH(V$2&\" Score\",'C. PoC Adj Factor Scoring'!$E$4:$J$4,0),TRUE)","v":1},{"$f":"VLOOKUP(OFFSET($B:$B,,MATCH(W$4,$B$4:$F$4,0)-1),OFFSET('C. PoC Adj Factor Scoring'!$E$5:$J$282,,MATCH(W$4,'C. PoC Adj Factor Scoring'!$E$3:$AH$3,0)-1),MATCH(W$2&\" Score\",'C. PoC Adj Factor Scoring'!$E$4:$J$4,0),TRUE)","v":1},{"$f":"VLOOKUP(OFFSET($B:$B,,MATCH(X$4,$B$4:$F$4,0)-1),OFFSET('C. PoC Adj Factor Scoring'!$E$5:$J$282,,MATCH(X$4,'C. PoC Adj Factor Scoring'!$E$3:$AH$3,0)-1),MATCH(X$2&\" Score\",'C. PoC Adj Factor Scoring'!$E$4:$J$4,0),TRUE)","v":1},{"$f":"VLOOKUP(OFFSET($B:$B,,MATCH(Y$4,$B$4:$F$4,0)-1),OFFSET('C. PoC Adj Factor Scoring'!$E$5:$J$282,,MATCH(Y$4,'C. PoC Adj Factor Scoring'!$E$3:$AH$3,0)-1),MATCH(Y$2&\" Score\",'C. PoC Adj Factor Scoring'!$E$4:$J$4,0),TRUE)","v":1},{"$f":"VLOOKUP(OFFSET($B:$B,,MATCH(Z$4,$B$4:$F$4,0)-1),OFFSET('C. PoC Adj Factor Scoring'!$E$5:$J$282,,MATCH(Z$4,'C. PoC Adj Factor Scoring'!$E$3:$AH$3,0)-1),MATCH(Z$2&\" Score\",'C. PoC Adj Factor Scoring'!$E$4:$J$4,0),TRUE)","v":1},{"$f":"VLOOKUP(OFFSET($B:$B,,MATCH(AA$4,$B$4:$F$4,0)-1),OFFSET('C. PoC Adj Factor Scoring'!$E$5:$J$282,,MATCH(AA$4,'C. PoC Adj Factor Scoring'!$E$3:$AH$3,0)-1),MATCH(AA$2&\" Score\",'C. PoC Adj Factor Scoring'!$E$4:$J$4,0),TRUE)","v":3},{"$f":"VLOOKUP(OFFSET($B:$B,,MATCH(AB$4,$B$4:$F$4,0)-1),OFFSET('C. PoC Adj Factor Scoring'!$E$5:$J$282,,MATCH(AB$4,'C. PoC Adj Factor Scoring'!$E$3:$AH$3,0)-1),MATCH(AB$2&\" Score\",'C. PoC Adj Factor Scoring'!$E$4:$J$4,0),TRUE)","v":1},{"$f":"VLOOKUP(OFFSET($B:$B,,MATCH(AC$4,$B$4:$F$4,0)-1),OFFSET('C. PoC Adj Factor Scoring'!$E$5:$J$282,,MATCH(AC$4,'C. PoC Adj Factor Scoring'!$E$3:$AH$3,0)-1),MATCH(AC$2&\" Score\",'C. PoC Adj Factor Scoring'!$E$4:$J$4,0),TRUE)","v":1},{"$f":"VLOOKUP(OFFSET($B:$B,,MATCH(AD$4,$B$4:$F$4,0)-1),OFFSET('C. PoC Adj Factor Scoring'!$E$5:$J$282,,MATCH(AD$4,'C. PoC Adj Factor Scoring'!$E$3:$AH$3,0)-1),MATCH(AD$2&\" Score\",'C. PoC Adj Factor Scoring'!$E$4:$J$4,0),TRUE)","v":1},{"$f":"VLOOKUP(OFFSET($B:$B,,MATCH(AE$4,$B$4:$F$4,0)-1),OFFSET('C. PoC Adj Factor Scoring'!$E$5:$J$282,,MATCH(AE$4,'C. PoC Adj Factor Scoring'!$E$3:$AH$3,0)-1),MATCH(AE$2&\" Score\",'C. PoC Adj Factor Scoring'!$E$4:$J$4,0),TRUE)","v":1}]
[{"$f":"'A. Population Info'!A450","v":1001472634},{"$f":"'A. Population Info'!L450","v":"OIL"},{"$f":"'A. Population Info'!M450","v":0},{"$f":"'A. Population Info'!N450","v":0},{"$f":"'A. Population Info'!O450","v":0},{"$f":"'A. Population Info'!P450","v":0},{"$f":"VLOOKUP(OFFSET($B:$B,,MATCH(G$4,$B$4:$F$4,0)-1),OFFSET('C. PoC Adj Factor Scoring'!$E$5:$J$282,,MATCH(G$4,'C. PoC Adj Factor Scoring'!$E$3:$AH$3,0)-1),MATCH(G$2&\" Score\",'C. PoC Adj Factor Scoring'!$E$4:$J$4,0),TRUE)","v":4},{"$f":"VLOOKUP(OFFSET($B:$B,,MATCH(H$4,$B$4:$F$4,0)-1),OFFSET('C. PoC Adj Factor Scoring'!$E$5:$J$282,,MATCH(H$4,'C. PoC Adj Factor Scoring'!$E$3:$AH$3,0)-1),MATCH(H$2&\" Score\",'C. PoC Adj Factor Scoring'!$E$4:$J$4,0),TRUE)","v":1},{"$f":"VLOOKUP(OFFSET($B:$B,,MATCH(I$4,$B$4:$F$4,0)-1),OFFSET('C. PoC Adj Factor Scoring'!$E$5:$J$282,,MATCH(I$4,'C. PoC Adj Factor Scoring'!$E$3:$AH$3,0)-1),MATCH(I$2&\" Score\",'C. PoC Adj Factor Scoring'!$E$4:$J$4,0),TRUE)","v":1},{"$f":"VLOOKUP(OFFSET($B:$B,,MATCH(J$4,$B$4:$F$4,0)-1),OFFSET('C. PoC Adj Factor Scoring'!$E$5:$J$282,,MATCH(J$4,'C. PoC Adj Factor Scoring'!$E$3:$AH$3,0)-1),MATCH(J$2&\" Score\",'C. PoC Adj Factor Scoring'!$E$4:$J$4,0),TRUE)","v":1},{"$f":"VLOOKUP(OFFSET($B:$B,,MATCH(K$4,$B$4:$F$4,0)-1),OFFSET('C. PoC Adj Factor Scoring'!$E$5:$J$282,,MATCH(K$4,'C. PoC Adj Factor Scoring'!$E$3:$AH$3,0)-1),MATCH(K$2&\" Score\",'C. PoC Adj Factor Scoring'!$E$4:$J$4,0),TRUE)","v":1},{"$f":"VLOOKUP(OFFSET($B:$B,,MATCH(L$4,$B$4:$F$4,0)-1),OFFSET('C. PoC Adj Factor Scoring'!$E$5:$J$282,,MATCH(L$4,'C. PoC Adj Factor Scoring'!$E$3:$AH$3,0)-1),MATCH(L$2&\" Score\",'C. PoC Adj Factor Scoring'!$E$4:$J$4,0),TRUE)","v":1},{"$f":"VLOOKUP(OFFSET($B:$B,,MATCH(M$4,$B$4:$F$4,0)-1),OFFSET('C. PoC Adj Factor Scoring'!$E$5:$J$282,,MATCH(M$4,'C. PoC Adj Factor Scoring'!$E$3:$AH$3,0)-1),MATCH(M$2&\" Score\",'C. PoC Adj Factor Scoring'!$E$4:$J$4,0),TRUE)","v":1},{"$f":"VLOOKUP(OFFSET($B:$B,,MATCH(N$4,$B$4:$F$4,0)-1),OFFSET('C. PoC Adj Factor Scoring'!$E$5:$J$282,,MATCH(N$4,'C. PoC Adj Factor Scoring'!$E$3:$AH$3,0)-1),MATCH(N$2&\" Score\",'C. PoC Adj Factor Scoring'!$E$4:$J$4,0),TRUE)","v":1},{"$f":"VLOOKUP(OFFSET($B:$B,,MATCH(O$4,$B$4:$F$4,0)-1),OFFSET('C. PoC Adj Factor Scoring'!$E$5:$J$282,,MATCH(O$4,'C. PoC Adj Factor Scoring'!$E$3:$AH$3,0)-1),MATCH(O$2&\" Score\",'C. PoC Adj Factor Scoring'!$E$4:$J$4,0),TRUE)","v":1},{"$f":"VLOOKUP(OFFSET($B:$B,,MATCH(P$4,$B$4:$F$4,0)-1),OFFSET('C. PoC Adj Factor Scoring'!$E$5:$J$282,,MATCH(P$4,'C. PoC Adj Factor Scoring'!$E$3:$AH$3,0)-1),MATCH(P$2&\" Score\",'C. PoC Adj Factor Scoring'!$E$4:$J$4,0),TRUE)","v":1},{"$f":"VLOOKUP(OFFSET($B:$B,,MATCH(Q$4,$B$4:$F$4,0)-1),OFFSET('C. PoC Adj Factor Scoring'!$E$5:$J$282,,MATCH(Q$4,'C. PoC Adj Factor Scoring'!$E$3:$AH$3,0)-1),MATCH(Q$2&\" Score\",'C. PoC Adj Factor Scoring'!$E$4:$J$4,0),TRUE)","v":1},{"$f":"VLOOKUP(OFFSET($B:$B,,MATCH(R$4,$B$4:$F$4,0)-1),OFFSET('C. PoC Adj Factor Scoring'!$E$5:$J$282,,MATCH(R$4,'C. PoC Adj Factor Scoring'!$E$3:$AH$3,0)-1),MATCH(R$2&\" Score\",'C. PoC Adj Factor Scoring'!$E$4:$J$4,0),TRUE)","v":1},{"$f":"VLOOKUP(OFFSET($B:$B,,MATCH(S$4,$B$4:$F$4,0)-1),OFFSET('C. PoC Adj Factor Scoring'!$E$5:$J$282,,MATCH(S$4,'C. PoC Adj Factor Scoring'!$E$3:$AH$3,0)-1),MATCH(S$2&\" Score\",'C. PoC Adj Factor Scoring'!$E$4:$J$4,0),TRUE)","v":1},{"$f":"VLOOKUP(OFFSET($B:$B,,MATCH(T$4,$B$4:$F$4,0)-1),OFFSET('C. PoC Adj Factor Scoring'!$E$5:$J$282,,MATCH(T$4,'C. PoC Adj Factor Scoring'!$E$3:$AH$3,0)-1),MATCH(T$2&\" Score\",'C. PoC Adj Factor Scoring'!$E$4:$J$4,0),TRUE)","v":1},{"$f":"VLOOKUP(OFFSET($B:$B,,MATCH(U$4,$B$4:$F$4,0)-1),OFFSET('C. PoC Adj Factor Scoring'!$E$5:$J$282,,MATCH(U$4,'C. PoC Adj Factor Scoring'!$E$3:$AH$3,0)-1),MATCH(U$2&\" Score\",'C. PoC Adj Factor Scoring'!$E$4:$J$4,0),TRUE)","v":1},{"$f":"VLOOKUP(OFFSET($B:$B,,MATCH(V$4,$B$4:$F$4,0)-1),OFFSET('C. PoC Adj Factor Scoring'!$E$5:$J$282,,MATCH(V$4,'C. PoC Adj Factor Scoring'!$E$3:$AH$3,0)-1),MATCH(V$2&\" Score\",'C. PoC Adj Factor Scoring'!$E$4:$J$4,0),TRUE)","v":1},{"$f":"VLOOKUP(OFFSET($B:$B,,MATCH(W$4,$B$4:$F$4,0)-1),OFFSET('C. PoC Adj Factor Scoring'!$E$5:$J$282,,MATCH(W$4,'C. PoC Adj Factor Scoring'!$E$3:$AH$3,0)-1),MATCH(W$2&\" Score\",'C. PoC Adj Factor Scoring'!$E$4:$J$4,0),TRUE)","v":1},{"$f":"VLOOKUP(OFFSET($B:$B,,MATCH(X$4,$B$4:$F$4,0)-1),OFFSET('C. PoC Adj Factor Scoring'!$E$5:$J$282,,MATCH(X$4,'C. PoC Adj Factor Scoring'!$E$3:$AH$3,0)-1),MATCH(X$2&\" Score\",'C. PoC Adj Factor Scoring'!$E$4:$J$4,0),TRUE)","v":1},{"$f":"VLOOKUP(OFFSET($B:$B,,MATCH(Y$4,$B$4:$F$4,0)-1),OFFSET('C. PoC Adj Factor Scoring'!$E$5:$J$282,,MATCH(Y$4,'C. PoC Adj Factor Scoring'!$E$3:$AH$3,0)-1),MATCH(Y$2&\" Score\",'C. PoC Adj Factor Scoring'!$E$4:$J$4,0),TRUE)","v":1},{"$f":"VLOOKUP(OFFSET($B:$B,,MATCH(Z$4,$B$4:$F$4,0)-1),OFFSET('C. PoC Adj Factor Scoring'!$E$5:$J$282,,MATCH(Z$4,'C. PoC Adj Factor Scoring'!$E$3:$AH$3,0)-1),MATCH(Z$2&\" Score\",'C. PoC Adj Factor Scoring'!$E$4:$J$4,0),TRUE)","v":1},{"$f":"VLOOKUP(OFFSET($B:$B,,MATCH(AA$4,$B$4:$F$4,0)-1),OFFSET('C. PoC Adj Factor Scoring'!$E$5:$J$282,,MATCH(AA$4,'C. PoC Adj Factor Scoring'!$E$3:$AH$3,0)-1),MATCH(AA$2&\" Score\",'C. PoC Adj Factor Scoring'!$E$4:$J$4,0),TRUE)","v":3},{"$f":"VLOOKUP(OFFSET($B:$B,,MATCH(AB$4,$B$4:$F$4,0)-1),OFFSET('C. PoC Adj Factor Scoring'!$E$5:$J$282,,MATCH(AB$4,'C. PoC Adj Factor Scoring'!$E$3:$AH$3,0)-1),MATCH(AB$2&\" Score\",'C. PoC Adj Factor Scoring'!$E$4:$J$4,0),TRUE)","v":1},{"$f":"VLOOKUP(OFFSET($B:$B,,MATCH(AC$4,$B$4:$F$4,0)-1),OFFSET('C. PoC Adj Factor Scoring'!$E$5:$J$282,,MATCH(AC$4,'C. PoC Adj Factor Scoring'!$E$3:$AH$3,0)-1),MATCH(AC$2&\" Score\",'C. PoC Adj Factor Scoring'!$E$4:$J$4,0),TRUE)","v":1},{"$f":"VLOOKUP(OFFSET($B:$B,,MATCH(AD$4,$B$4:$F$4,0)-1),OFFSET('C. PoC Adj Factor Scoring'!$E$5:$J$282,,MATCH(AD$4,'C. PoC Adj Factor Scoring'!$E$3:$AH$3,0)-1),MATCH(AD$2&\" Score\",'C. PoC Adj Factor Scoring'!$E$4:$J$4,0),TRUE)","v":1},{"$f":"VLOOKUP(OFFSET($B:$B,,MATCH(AE$4,$B$4:$F$4,0)-1),OFFSET('C. PoC Adj Factor Scoring'!$E$5:$J$282,,MATCH(AE$4,'C. PoC Adj Factor Scoring'!$E$3:$AH$3,0)-1),MATCH(AE$2&\" Score\",'C. PoC Adj Factor Scoring'!$E$4:$J$4,0),TRUE)","v":1}]
[{"$f":"'A. Population Info'!A451","v":1001472635},{"$f":"'A. Population Info'!L451","v":"OIL"},{"$f":"'A. Population Info'!M451","v":0},{"$f":"'A. Population Info'!N451","v":0},{"$f":"'A. Population Info'!O451","v":0},{"$f":"'A. Population Info'!P451","v":0},{"$f":"VLOOKUP(OFFSET($B:$B,,MATCH(G$4,$B$4:$F$4,0)-1),OFFSET('C. PoC Adj Factor Scoring'!$E$5:$J$282,,MATCH(G$4,'C. PoC Adj Factor Scoring'!$E$3:$AH$3,0)-1),MATCH(G$2&\" Score\",'C. PoC Adj Factor Scoring'!$E$4:$J$4,0),TRUE)","v":4},{"$f":"VLOOKUP(OFFSET($B:$B,,MATCH(H$4,$B$4:$F$4,0)-1),OFFSET('C. PoC Adj Factor Scoring'!$E$5:$J$282,,MATCH(H$4,'C. PoC Adj Factor Scoring'!$E$3:$AH$3,0)-1),MATCH(H$2&\" Score\",'C. PoC Adj Factor Scoring'!$E$4:$J$4,0),TRUE)","v":1},{"$f":"VLOOKUP(OFFSET($B:$B,,MATCH(I$4,$B$4:$F$4,0)-1),OFFSET('C. PoC Adj Factor Scoring'!$E$5:$J$282,,MATCH(I$4,'C. PoC Adj Factor Scoring'!$E$3:$AH$3,0)-1),MATCH(I$2&\" Score\",'C. PoC Adj Factor Scoring'!$E$4:$J$4,0),TRUE)","v":1},{"$f":"VLOOKUP(OFFSET($B:$B,,MATCH(J$4,$B$4:$F$4,0)-1),OFFSET('C. PoC Adj Factor Scoring'!$E$5:$J$282,,MATCH(J$4,'C. PoC Adj Factor Scoring'!$E$3:$AH$3,0)-1),MATCH(J$2&\" Score\",'C. PoC Adj Factor Scoring'!$E$4:$J$4,0),TRUE)","v":1},{"$f":"VLOOKUP(OFFSET($B:$B,,MATCH(K$4,$B$4:$F$4,0)-1),OFFSET('C. PoC Adj Factor Scoring'!$E$5:$J$282,,MATCH(K$4,'C. PoC Adj Factor Scoring'!$E$3:$AH$3,0)-1),MATCH(K$2&\" Score\",'C. PoC Adj Factor Scoring'!$E$4:$J$4,0),TRUE)","v":1},{"$f":"VLOOKUP(OFFSET($B:$B,,MATCH(L$4,$B$4:$F$4,0)-1),OFFSET('C. PoC Adj Factor Scoring'!$E$5:$J$282,,MATCH(L$4,'C. PoC Adj Factor Scoring'!$E$3:$AH$3,0)-1),MATCH(L$2&\" Score\",'C. PoC Adj Factor Scoring'!$E$4:$J$4,0),TRUE)","v":1},{"$f":"VLOOKUP(OFFSET($B:$B,,MATCH(M$4,$B$4:$F$4,0)-1),OFFSET('C. PoC Adj Factor Scoring'!$E$5:$J$282,,MATCH(M$4,'C. PoC Adj Factor Scoring'!$E$3:$AH$3,0)-1),MATCH(M$2&\" Score\",'C. PoC Adj Factor Scoring'!$E$4:$J$4,0),TRUE)","v":1},{"$f":"VLOOKUP(OFFSET($B:$B,,MATCH(N$4,$B$4:$F$4,0)-1),OFFSET('C. PoC Adj Factor Scoring'!$E$5:$J$282,,MATCH(N$4,'C. PoC Adj Factor Scoring'!$E$3:$AH$3,0)-1),MATCH(N$2&\" Score\",'C. PoC Adj Factor Scoring'!$E$4:$J$4,0),TRUE)","v":1},{"$f":"VLOOKUP(OFFSET($B:$B,,MATCH(O$4,$B$4:$F$4,0)-1),OFFSET('C. PoC Adj Factor Scoring'!$E$5:$J$282,,MATCH(O$4,'C. PoC Adj Factor Scoring'!$E$3:$AH$3,0)-1),MATCH(O$2&\" Score\",'C. PoC Adj Factor Scoring'!$E$4:$J$4,0),TRUE)","v":1},{"$f":"VLOOKUP(OFFSET($B:$B,,MATCH(P$4,$B$4:$F$4,0)-1),OFFSET('C. PoC Adj Factor Scoring'!$E$5:$J$282,,MATCH(P$4,'C. PoC Adj Factor Scoring'!$E$3:$AH$3,0)-1),MATCH(P$2&\" Score\",'C. PoC Adj Factor Scoring'!$E$4:$J$4,0),TRUE)","v":1},{"$f":"VLOOKUP(OFFSET($B:$B,,MATCH(Q$4,$B$4:$F$4,0)-1),OFFSET('C. PoC Adj Factor Scoring'!$E$5:$J$282,,MATCH(Q$4,'C. PoC Adj Factor Scoring'!$E$3:$AH$3,0)-1),MATCH(Q$2&\" Score\",'C. PoC Adj Factor Scoring'!$E$4:$J$4,0),TRUE)","v":1},{"$f":"VLOOKUP(OFFSET($B:$B,,MATCH(R$4,$B$4:$F$4,0)-1),OFFSET('C. PoC Adj Factor Scoring'!$E$5:$J$282,,MATCH(R$4,'C. PoC Adj Factor Scoring'!$E$3:$AH$3,0)-1),MATCH(R$2&\" Score\",'C. PoC Adj Factor Scoring'!$E$4:$J$4,0),TRUE)","v":1},{"$f":"VLOOKUP(OFFSET($B:$B,,MATCH(S$4,$B$4:$F$4,0)-1),OFFSET('C. PoC Adj Factor Scoring'!$E$5:$J$282,,MATCH(S$4,'C. PoC Adj Factor Scoring'!$E$3:$AH$3,0)-1),MATCH(S$2&\" Score\",'C. PoC Adj Factor Scoring'!$E$4:$J$4,0),TRUE)","v":1},{"$f":"VLOOKUP(OFFSET($B:$B,,MATCH(T$4,$B$4:$F$4,0)-1),OFFSET('C. PoC Adj Factor Scoring'!$E$5:$J$282,,MATCH(T$4,'C. PoC Adj Factor Scoring'!$E$3:$AH$3,0)-1),MATCH(T$2&\" Score\",'C. PoC Adj Factor Scoring'!$E$4:$J$4,0),TRUE)","v":1},{"$f":"VLOOKUP(OFFSET($B:$B,,MATCH(U$4,$B$4:$F$4,0)-1),OFFSET('C. PoC Adj Factor Scoring'!$E$5:$J$282,,MATCH(U$4,'C. PoC Adj Factor Scoring'!$E$3:$AH$3,0)-1),MATCH(U$2&\" Score\",'C. PoC Adj Factor Scoring'!$E$4:$J$4,0),TRUE)","v":1},{"$f":"VLOOKUP(OFFSET($B:$B,,MATCH(V$4,$B$4:$F$4,0)-1),OFFSET('C. PoC Adj Factor Scoring'!$E$5:$J$282,,MATCH(V$4,'C. PoC Adj Factor Scoring'!$E$3:$AH$3,0)-1),MATCH(V$2&\" Score\",'C. PoC Adj Factor Scoring'!$E$4:$J$4,0),TRUE)","v":1},{"$f":"VLOOKUP(OFFSET($B:$B,,MATCH(W$4,$B$4:$F$4,0)-1),OFFSET('C. PoC Adj Factor Scoring'!$E$5:$J$282,,MATCH(W$4,'C. PoC Adj Factor Scoring'!$E$3:$AH$3,0)-1),MATCH(W$2&\" Score\",'C. PoC Adj Factor Scoring'!$E$4:$J$4,0),TRUE)","v":1},{"$f":"VLOOKUP(OFFSET($B:$B,,MATCH(X$4,$B$4:$F$4,0)-1),OFFSET('C. PoC Adj Factor Scoring'!$E$5:$J$282,,MATCH(X$4,'C. PoC Adj Factor Scoring'!$E$3:$AH$3,0)-1),MATCH(X$2&\" Score\",'C. PoC Adj Factor Scoring'!$E$4:$J$4,0),TRUE)","v":1},{"$f":"VLOOKUP(OFFSET($B:$B,,MATCH(Y$4,$B$4:$F$4,0)-1),OFFSET('C. PoC Adj Factor Scoring'!$E$5:$J$282,,MATCH(Y$4,'C. PoC Adj Factor Scoring'!$E$3:$AH$3,0)-1),MATCH(Y$2&\" Score\",'C. PoC Adj Factor Scoring'!$E$4:$J$4,0),TRUE)","v":1},{"$f":"VLOOKUP(OFFSET($B:$B,,MATCH(Z$4,$B$4:$F$4,0)-1),OFFSET('C. PoC Adj Factor Scoring'!$E$5:$J$282,,MATCH(Z$4,'C. PoC Adj Factor Scoring'!$E$3:$AH$3,0)-1),MATCH(Z$2&\" Score\",'C. PoC Adj Factor Scoring'!$E$4:$J$4,0),TRUE)","v":1},{"$f":"VLOOKUP(OFFSET($B:$B,,MATCH(AA$4,$B$4:$F$4,0)-1),OFFSET('C. PoC Adj Factor Scoring'!$E$5:$J$282,,MATCH(AA$4,'C. PoC Adj Factor Scoring'!$E$3:$AH$3,0)-1),MATCH(AA$2&\" Score\",'C. PoC Adj Factor Scoring'!$E$4:$J$4,0),TRUE)","v":3},{"$f":"VLOOKUP(OFFSET($B:$B,,MATCH(AB$4,$B$4:$F$4,0)-1),OFFSET('C. PoC Adj Factor Scoring'!$E$5:$J$282,,MATCH(AB$4,'C. PoC Adj Factor Scoring'!$E$3:$AH$3,0)-1),MATCH(AB$2&\" Score\",'C. PoC Adj Factor Scoring'!$E$4:$J$4,0),TRUE)","v":1},{"$f":"VLOOKUP(OFFSET($B:$B,,MATCH(AC$4,$B$4:$F$4,0)-1),OFFSET('C. PoC Adj Factor Scoring'!$E$5:$J$282,,MATCH(AC$4,'C. PoC Adj Factor Scoring'!$E$3:$AH$3,0)-1),MATCH(AC$2&\" Score\",'C. PoC Adj Factor Scoring'!$E$4:$J$4,0),TRUE)","v":1},{"$f":"VLOOKUP(OFFSET($B:$B,,MATCH(AD$4,$B$4:$F$4,0)-1),OFFSET('C. PoC Adj Factor Scoring'!$E$5:$J$282,,MATCH(AD$4,'C. PoC Adj Factor Scoring'!$E$3:$AH$3,0)-1),MATCH(AD$2&\" Score\",'C. PoC Adj Factor Scoring'!$E$4:$J$4,0),TRUE)","v":1},{"$f":"VLOOKUP(OFFSET($B:$B,,MATCH(AE$4,$B$4:$F$4,0)-1),OFFSET('C. PoC Adj Factor Scoring'!$E$5:$J$282,,MATCH(AE$4,'C. PoC Adj Factor Scoring'!$E$3:$AH$3,0)-1),MATCH(AE$2&\" Score\",'C. PoC Adj Factor Scoring'!$E$4:$J$4,0),TRUE)","v":1}]
[{"$f":"'A. Population Info'!A452","v":1001472636},{"$f":"'A. Population Info'!L452","v":"OIL"},{"$f":"'A. Population Info'!M452","v":0},{"$f":"'A. Population Info'!N452","v":0},{"$f":"'A. Population Info'!O452","v":0},{"$f":"'A. Population Info'!P452","v":0},{"$f":"VLOOKUP(OFFSET($B:$B,,MATCH(G$4,$B$4:$F$4,0)-1),OFFSET('C. PoC Adj Factor Scoring'!$E$5:$J$282,,MATCH(G$4,'C. PoC Adj Factor Scoring'!$E$3:$AH$3,0)-1),MATCH(G$2&\" Score\",'C. PoC Adj Factor Scoring'!$E$4:$J$4,0),TRUE)","v":4},{"$f":"VLOOKUP(OFFSET($B:$B,,MATCH(H$4,$B$4:$F$4,0)-1),OFFSET('C. PoC Adj Factor Scoring'!$E$5:$J$282,,MATCH(H$4,'C. PoC Adj Factor Scoring'!$E$3:$AH$3,0)-1),MATCH(H$2&\" Score\",'C. PoC Adj Factor Scoring'!$E$4:$J$4,0),TRUE)","v":1},{"$f":"VLOOKUP(OFFSET($B:$B,,MATCH(I$4,$B$4:$F$4,0)-1),OFFSET('C. PoC Adj Factor Scoring'!$E$5:$J$282,,MATCH(I$4,'C. PoC Adj Factor Scoring'!$E$3:$AH$3,0)-1),MATCH(I$2&\" Score\",'C. PoC Adj Factor Scoring'!$E$4:$J$4,0),TRUE)","v":1},{"$f":"VLOOKUP(OFFSET($B:$B,,MATCH(J$4,$B$4:$F$4,0)-1),OFFSET('C. PoC Adj Factor Scoring'!$E$5:$J$282,,MATCH(J$4,'C. PoC Adj Factor Scoring'!$E$3:$AH$3,0)-1),MATCH(J$2&\" Score\",'C. PoC Adj Factor Scoring'!$E$4:$J$4,0),TRUE)","v":1},{"$f":"VLOOKUP(OFFSET($B:$B,,MATCH(K$4,$B$4:$F$4,0)-1),OFFSET('C. PoC Adj Factor Scoring'!$E$5:$J$282,,MATCH(K$4,'C. PoC Adj Factor Scoring'!$E$3:$AH$3,0)-1),MATCH(K$2&\" Score\",'C. PoC Adj Factor Scoring'!$E$4:$J$4,0),TRUE)","v":1},{"$f":"VLOOKUP(OFFSET($B:$B,,MATCH(L$4,$B$4:$F$4,0)-1),OFFSET('C. PoC Adj Factor Scoring'!$E$5:$J$282,,MATCH(L$4,'C. PoC Adj Factor Scoring'!$E$3:$AH$3,0)-1),MATCH(L$2&\" Score\",'C. PoC Adj Factor Scoring'!$E$4:$J$4,0),TRUE)","v":1},{"$f":"VLOOKUP(OFFSET($B:$B,,MATCH(M$4,$B$4:$F$4,0)-1),OFFSET('C. PoC Adj Factor Scoring'!$E$5:$J$282,,MATCH(M$4,'C. PoC Adj Factor Scoring'!$E$3:$AH$3,0)-1),MATCH(M$2&\" Score\",'C. PoC Adj Factor Scoring'!$E$4:$J$4,0),TRUE)","v":1},{"$f":"VLOOKUP(OFFSET($B:$B,,MATCH(N$4,$B$4:$F$4,0)-1),OFFSET('C. PoC Adj Factor Scoring'!$E$5:$J$282,,MATCH(N$4,'C. PoC Adj Factor Scoring'!$E$3:$AH$3,0)-1),MATCH(N$2&\" Score\",'C. PoC Adj Factor Scoring'!$E$4:$J$4,0),TRUE)","v":1},{"$f":"VLOOKUP(OFFSET($B:$B,,MATCH(O$4,$B$4:$F$4,0)-1),OFFSET('C. PoC Adj Factor Scoring'!$E$5:$J$282,,MATCH(O$4,'C. PoC Adj Factor Scoring'!$E$3:$AH$3,0)-1),MATCH(O$2&\" Score\",'C. PoC Adj Factor Scoring'!$E$4:$J$4,0),TRUE)","v":1},{"$f":"VLOOKUP(OFFSET($B:$B,,MATCH(P$4,$B$4:$F$4,0)-1),OFFSET('C. PoC Adj Factor Scoring'!$E$5:$J$282,,MATCH(P$4,'C. PoC Adj Factor Scoring'!$E$3:$AH$3,0)-1),MATCH(P$2&\" Score\",'C. PoC Adj Factor Scoring'!$E$4:$J$4,0),TRUE)","v":1},{"$f":"VLOOKUP(OFFSET($B:$B,,MATCH(Q$4,$B$4:$F$4,0)-1),OFFSET('C. PoC Adj Factor Scoring'!$E$5:$J$282,,MATCH(Q$4,'C. PoC Adj Factor Scoring'!$E$3:$AH$3,0)-1),MATCH(Q$2&\" Score\",'C. PoC Adj Factor Scoring'!$E$4:$J$4,0),TRUE)","v":1},{"$f":"VLOOKUP(OFFSET($B:$B,,MATCH(R$4,$B$4:$F$4,0)-1),OFFSET('C. PoC Adj Factor Scoring'!$E$5:$J$282,,MATCH(R$4,'C. PoC Adj Factor Scoring'!$E$3:$AH$3,0)-1),MATCH(R$2&\" Score\",'C. PoC Adj Factor Scoring'!$E$4:$J$4,0),TRUE)","v":1},{"$f":"VLOOKUP(OFFSET($B:$B,,MATCH(S$4,$B$4:$F$4,0)-1),OFFSET('C. PoC Adj Factor Scoring'!$E$5:$J$282,,MATCH(S$4,'C. PoC Adj Factor Scoring'!$E$3:$AH$3,0)-1),MATCH(S$2&\" Score\",'C. PoC Adj Factor Scoring'!$E$4:$J$4,0),TRUE)","v":1},{"$f":"VLOOKUP(OFFSET($B:$B,,MATCH(T$4,$B$4:$F$4,0)-1),OFFSET('C. PoC Adj Factor Scoring'!$E$5:$J$282,,MATCH(T$4,'C. PoC Adj Factor Scoring'!$E$3:$AH$3,0)-1),MATCH(T$2&\" Score\",'C. PoC Adj Factor Scoring'!$E$4:$J$4,0),TRUE)","v":1},{"$f":"VLOOKUP(OFFSET($B:$B,,MATCH(U$4,$B$4:$F$4,0)-1),OFFSET('C. PoC Adj Factor Scoring'!$E$5:$J$282,,MATCH(U$4,'C. PoC Adj Factor Scoring'!$E$3:$AH$3,0)-1),MATCH(U$2&\" Score\",'C. PoC Adj Factor Scoring'!$E$4:$J$4,0),TRUE)","v":1},{"$f":"VLOOKUP(OFFSET($B:$B,,MATCH(V$4,$B$4:$F$4,0)-1),OFFSET('C. PoC Adj Factor Scoring'!$E$5:$J$282,,MATCH(V$4,'C. PoC Adj Factor Scoring'!$E$3:$AH$3,0)-1),MATCH(V$2&\" Score\",'C. PoC Adj Factor Scoring'!$E$4:$J$4,0),TRUE)","v":1},{"$f":"VLOOKUP(OFFSET($B:$B,,MATCH(W$4,$B$4:$F$4,0)-1),OFFSET('C. PoC Adj Factor Scoring'!$E$5:$J$282,,MATCH(W$4,'C. PoC Adj Factor Scoring'!$E$3:$AH$3,0)-1),MATCH(W$2&\" Score\",'C. PoC Adj Factor Scoring'!$E$4:$J$4,0),TRUE)","v":1},{"$f":"VLOOKUP(OFFSET($B:$B,,MATCH(X$4,$B$4:$F$4,0)-1),OFFSET('C. PoC Adj Factor Scoring'!$E$5:$J$282,,MATCH(X$4,'C. PoC Adj Factor Scoring'!$E$3:$AH$3,0)-1),MATCH(X$2&\" Score\",'C. PoC Adj Factor Scoring'!$E$4:$J$4,0),TRUE)","v":1},{"$f":"VLOOKUP(OFFSET($B:$B,,MATCH(Y$4,$B$4:$F$4,0)-1),OFFSET('C. PoC Adj Factor Scoring'!$E$5:$J$282,,MATCH(Y$4,'C. PoC Adj Factor Scoring'!$E$3:$AH$3,0)-1),MATCH(Y$2&\" Score\",'C. PoC Adj Factor Scoring'!$E$4:$J$4,0),TRUE)","v":1},{"$f":"VLOOKUP(OFFSET($B:$B,,MATCH(Z$4,$B$4:$F$4,0)-1),OFFSET('C. PoC Adj Factor Scoring'!$E$5:$J$282,,MATCH(Z$4,'C. PoC Adj Factor Scoring'!$E$3:$AH$3,0)-1),MATCH(Z$2&\" Score\",'C. PoC Adj Factor Scoring'!$E$4:$J$4,0),TRUE)","v":1},{"$f":"VLOOKUP(OFFSET($B:$B,,MATCH(AA$4,$B$4:$F$4,0)-1),OFFSET('C. PoC Adj Factor Scoring'!$E$5:$J$282,,MATCH(AA$4,'C. PoC Adj Factor Scoring'!$E$3:$AH$3,0)-1),MATCH(AA$2&\" Score\",'C. PoC Adj Factor Scoring'!$E$4:$J$4,0),TRUE)","v":3},{"$f":"VLOOKUP(OFFSET($B:$B,,MATCH(AB$4,$B$4:$F$4,0)-1),OFFSET('C. PoC Adj Factor Scoring'!$E$5:$J$282,,MATCH(AB$4,'C. PoC Adj Factor Scoring'!$E$3:$AH$3,0)-1),MATCH(AB$2&\" Score\",'C. PoC Adj Factor Scoring'!$E$4:$J$4,0),TRUE)","v":1},{"$f":"VLOOKUP(OFFSET($B:$B,,MATCH(AC$4,$B$4:$F$4,0)-1),OFFSET('C. PoC Adj Factor Scoring'!$E$5:$J$282,,MATCH(AC$4,'C. PoC Adj Factor Scoring'!$E$3:$AH$3,0)-1),MATCH(AC$2&\" Score\",'C. PoC Adj Factor Scoring'!$E$4:$J$4,0),TRUE)","v":1},{"$f":"VLOOKUP(OFFSET($B:$B,,MATCH(AD$4,$B$4:$F$4,0)-1),OFFSET('C. PoC Adj Factor Scoring'!$E$5:$J$282,,MATCH(AD$4,'C. PoC Adj Factor Scoring'!$E$3:$AH$3,0)-1),MATCH(AD$2&\" Score\",'C. PoC Adj Factor Scoring'!$E$4:$J$4,0),TRUE)","v":1},{"$f":"VLOOKUP(OFFSET($B:$B,,MATCH(AE$4,$B$4:$F$4,0)-1),OFFSET('C. PoC Adj Factor Scoring'!$E$5:$J$282,,MATCH(AE$4,'C. PoC Adj Factor Scoring'!$E$3:$AH$3,0)-1),MATCH(AE$2&\" Score\",'C. PoC Adj Factor Scoring'!$E$4:$J$4,0),TRUE)","v":1}]
[{"$f":"'A. Population Info'!A453","v":1001472637},{"$f":"'A. Population Info'!L453","v":"OIL"},{"$f":"'A. Population Info'!M453","v":0},{"$f":"'A. Population Info'!N453","v":0},{"$f":"'A. Population Info'!O453","v":0},{"$f":"'A. Population Info'!P453","v":0},{"$f":"VLOOKUP(OFFSET($B:$B,,MATCH(G$4,$B$4:$F$4,0)-1),OFFSET('C. PoC Adj Factor Scoring'!$E$5:$J$282,,MATCH(G$4,'C. PoC Adj Factor Scoring'!$E$3:$AH$3,0)-1),MATCH(G$2&\" Score\",'C. PoC Adj Factor Scoring'!$E$4:$J$4,0),TRUE)","v":4},{"$f":"VLOOKUP(OFFSET($B:$B,,MATCH(H$4,$B$4:$F$4,0)-1),OFFSET('C. PoC Adj Factor Scoring'!$E$5:$J$282,,MATCH(H$4,'C. PoC Adj Factor Scoring'!$E$3:$AH$3,0)-1),MATCH(H$2&\" Score\",'C. PoC Adj Factor Scoring'!$E$4:$J$4,0),TRUE)","v":1},{"$f":"VLOOKUP(OFFSET($B:$B,,MATCH(I$4,$B$4:$F$4,0)-1),OFFSET('C. PoC Adj Factor Scoring'!$E$5:$J$282,,MATCH(I$4,'C. PoC Adj Factor Scoring'!$E$3:$AH$3,0)-1),MATCH(I$2&\" Score\",'C. PoC Adj Factor Scoring'!$E$4:$J$4,0),TRUE)","v":1},{"$f":"VLOOKUP(OFFSET($B:$B,,MATCH(J$4,$B$4:$F$4,0)-1),OFFSET('C. PoC Adj Factor Scoring'!$E$5:$J$282,,MATCH(J$4,'C. PoC Adj Factor Scoring'!$E$3:$AH$3,0)-1),MATCH(J$2&\" Score\",'C. PoC Adj Factor Scoring'!$E$4:$J$4,0),TRUE)","v":1},{"$f":"VLOOKUP(OFFSET($B:$B,,MATCH(K$4,$B$4:$F$4,0)-1),OFFSET('C. PoC Adj Factor Scoring'!$E$5:$J$282,,MATCH(K$4,'C. PoC Adj Factor Scoring'!$E$3:$AH$3,0)-1),MATCH(K$2&\" Score\",'C. PoC Adj Factor Scoring'!$E$4:$J$4,0),TRUE)","v":1},{"$f":"VLOOKUP(OFFSET($B:$B,,MATCH(L$4,$B$4:$F$4,0)-1),OFFSET('C. PoC Adj Factor Scoring'!$E$5:$J$282,,MATCH(L$4,'C. PoC Adj Factor Scoring'!$E$3:$AH$3,0)-1),MATCH(L$2&\" Score\",'C. PoC Adj Factor Scoring'!$E$4:$J$4,0),TRUE)","v":1},{"$f":"VLOOKUP(OFFSET($B:$B,,MATCH(M$4,$B$4:$F$4,0)-1),OFFSET('C. PoC Adj Factor Scoring'!$E$5:$J$282,,MATCH(M$4,'C. PoC Adj Factor Scoring'!$E$3:$AH$3,0)-1),MATCH(M$2&\" Score\",'C. PoC Adj Factor Scoring'!$E$4:$J$4,0),TRUE)","v":1},{"$f":"VLOOKUP(OFFSET($B:$B,,MATCH(N$4,$B$4:$F$4,0)-1),OFFSET('C. PoC Adj Factor Scoring'!$E$5:$J$282,,MATCH(N$4,'C. PoC Adj Factor Scoring'!$E$3:$AH$3,0)-1),MATCH(N$2&\" Score\",'C. PoC Adj Factor Scoring'!$E$4:$J$4,0),TRUE)","v":1},{"$f":"VLOOKUP(OFFSET($B:$B,,MATCH(O$4,$B$4:$F$4,0)-1),OFFSET('C. PoC Adj Factor Scoring'!$E$5:$J$282,,MATCH(O$4,'C. PoC Adj Factor Scoring'!$E$3:$AH$3,0)-1),MATCH(O$2&\" Score\",'C. PoC Adj Factor Scoring'!$E$4:$J$4,0),TRUE)","v":1},{"$f":"VLOOKUP(OFFSET($B:$B,,MATCH(P$4,$B$4:$F$4,0)-1),OFFSET('C. PoC Adj Factor Scoring'!$E$5:$J$282,,MATCH(P$4,'C. PoC Adj Factor Scoring'!$E$3:$AH$3,0)-1),MATCH(P$2&\" Score\",'C. PoC Adj Factor Scoring'!$E$4:$J$4,0),TRUE)","v":1},{"$f":"VLOOKUP(OFFSET($B:$B,,MATCH(Q$4,$B$4:$F$4,0)-1),OFFSET('C. PoC Adj Factor Scoring'!$E$5:$J$282,,MATCH(Q$4,'C. PoC Adj Factor Scoring'!$E$3:$AH$3,0)-1),MATCH(Q$2&\" Score\",'C. PoC Adj Factor Scoring'!$E$4:$J$4,0),TRUE)","v":1},{"$f":"VLOOKUP(OFFSET($B:$B,,MATCH(R$4,$B$4:$F$4,0)-1),OFFSET('C. PoC Adj Factor Scoring'!$E$5:$J$282,,MATCH(R$4,'C. PoC Adj Factor Scoring'!$E$3:$AH$3,0)-1),MATCH(R$2&\" Score\",'C. PoC Adj Factor Scoring'!$E$4:$J$4,0),TRUE)","v":1},{"$f":"VLOOKUP(OFFSET($B:$B,,MATCH(S$4,$B$4:$F$4,0)-1),OFFSET('C. PoC Adj Factor Scoring'!$E$5:$J$282,,MATCH(S$4,'C. PoC Adj Factor Scoring'!$E$3:$AH$3,0)-1),MATCH(S$2&\" Score\",'C. PoC Adj Factor Scoring'!$E$4:$J$4,0),TRUE)","v":1},{"$f":"VLOOKUP(OFFSET($B:$B,,MATCH(T$4,$B$4:$F$4,0)-1),OFFSET('C. PoC Adj Factor Scoring'!$E$5:$J$282,,MATCH(T$4,'C. PoC Adj Factor Scoring'!$E$3:$AH$3,0)-1),MATCH(T$2&\" Score\",'C. PoC Adj Factor Scoring'!$E$4:$J$4,0),TRUE)","v":1},{"$f":"VLOOKUP(OFFSET($B:$B,,MATCH(U$4,$B$4:$F$4,0)-1),OFFSET('C. PoC Adj Factor Scoring'!$E$5:$J$282,,MATCH(U$4,'C. PoC Adj Factor Scoring'!$E$3:$AH$3,0)-1),MATCH(U$2&\" Score\",'C. PoC Adj Factor Scoring'!$E$4:$J$4,0),TRUE)","v":1},{"$f":"VLOOKUP(OFFSET($B:$B,,MATCH(V$4,$B$4:$F$4,0)-1),OFFSET('C. PoC Adj Factor Scoring'!$E$5:$J$282,,MATCH(V$4,'C. PoC Adj Factor Scoring'!$E$3:$AH$3,0)-1),MATCH(V$2&\" Score\",'C. PoC Adj Factor Scoring'!$E$4:$J$4,0),TRUE)","v":1},{"$f":"VLOOKUP(OFFSET($B:$B,,MATCH(W$4,$B$4:$F$4,0)-1),OFFSET('C. PoC Adj Factor Scoring'!$E$5:$J$282,,MATCH(W$4,'C. PoC Adj Factor Scoring'!$E$3:$AH$3,0)-1),MATCH(W$2&\" Score\",'C. PoC Adj Factor Scoring'!$E$4:$J$4,0),TRUE)","v":1},{"$f":"VLOOKUP(OFFSET($B:$B,,MATCH(X$4,$B$4:$F$4,0)-1),OFFSET('C. PoC Adj Factor Scoring'!$E$5:$J$282,,MATCH(X$4,'C. PoC Adj Factor Scoring'!$E$3:$AH$3,0)-1),MATCH(X$2&\" Score\",'C. PoC Adj Factor Scoring'!$E$4:$J$4,0),TRUE)","v":1},{"$f":"VLOOKUP(OFFSET($B:$B,,MATCH(Y$4,$B$4:$F$4,0)-1),OFFSET('C. PoC Adj Factor Scoring'!$E$5:$J$282,,MATCH(Y$4,'C. PoC Adj Factor Scoring'!$E$3:$AH$3,0)-1),MATCH(Y$2&\" Score\",'C. PoC Adj Factor Scoring'!$E$4:$J$4,0),TRUE)","v":1},{"$f":"VLOOKUP(OFFSET($B:$B,,MATCH(Z$4,$B$4:$F$4,0)-1),OFFSET('C. PoC Adj Factor Scoring'!$E$5:$J$282,,MATCH(Z$4,'C. PoC Adj Factor Scoring'!$E$3:$AH$3,0)-1),MATCH(Z$2&\" Score\",'C. PoC Adj Factor Scoring'!$E$4:$J$4,0),TRUE)","v":1},{"$f":"VLOOKUP(OFFSET($B:$B,,MATCH(AA$4,$B$4:$F$4,0)-1),OFFSET('C. PoC Adj Factor Scoring'!$E$5:$J$282,,MATCH(AA$4,'C. PoC Adj Factor Scoring'!$E$3:$AH$3,0)-1),MATCH(AA$2&\" Score\",'C. PoC Adj Factor Scoring'!$E$4:$J$4,0),TRUE)","v":3},{"$f":"VLOOKUP(OFFSET($B:$B,,MATCH(AB$4,$B$4:$F$4,0)-1),OFFSET('C. PoC Adj Factor Scoring'!$E$5:$J$282,,MATCH(AB$4,'C. PoC Adj Factor Scoring'!$E$3:$AH$3,0)-1),MATCH(AB$2&\" Score\",'C. PoC Adj Factor Scoring'!$E$4:$J$4,0),TRUE)","v":1},{"$f":"VLOOKUP(OFFSET($B:$B,,MATCH(AC$4,$B$4:$F$4,0)-1),OFFSET('C. PoC Adj Factor Scoring'!$E$5:$J$282,,MATCH(AC$4,'C. PoC Adj Factor Scoring'!$E$3:$AH$3,0)-1),MATCH(AC$2&\" Score\",'C. PoC Adj Factor Scoring'!$E$4:$J$4,0),TRUE)","v":1},{"$f":"VLOOKUP(OFFSET($B:$B,,MATCH(AD$4,$B$4:$F$4,0)-1),OFFSET('C. PoC Adj Factor Scoring'!$E$5:$J$282,,MATCH(AD$4,'C. PoC Adj Factor Scoring'!$E$3:$AH$3,0)-1),MATCH(AD$2&\" Score\",'C. PoC Adj Factor Scoring'!$E$4:$J$4,0),TRUE)","v":1},{"$f":"VLOOKUP(OFFSET($B:$B,,MATCH(AE$4,$B$4:$F$4,0)-1),OFFSET('C. PoC Adj Factor Scoring'!$E$5:$J$282,,MATCH(AE$4,'C. PoC Adj Factor Scoring'!$E$3:$AH$3,0)-1),MATCH(AE$2&\" Score\",'C. PoC Adj Factor Scoring'!$E$4:$J$4,0),TRUE)","v":1}]
[{"$f":"'A. Population Info'!A454","v":1001472638},{"$f":"'A. Population Info'!L454","v":"OIL"},{"$f":"'A. Population Info'!M454","v":0},{"$f":"'A. Population Info'!N454","v":0},{"$f":"'A. Population Info'!O454","v":0},{"$f":"'A. Population Info'!P454","v":0},{"$f":"VLOOKUP(OFFSET($B:$B,,MATCH(G$4,$B$4:$F$4,0)-1),OFFSET('C. PoC Adj Factor Scoring'!$E$5:$J$282,,MATCH(G$4,'C. PoC Adj Factor Scoring'!$E$3:$AH$3,0)-1),MATCH(G$2&\" Score\",'C. PoC Adj Factor Scoring'!$E$4:$J$4,0),TRUE)","v":4},{"$f":"VLOOKUP(OFFSET($B:$B,,MATCH(H$4,$B$4:$F$4,0)-1),OFFSET('C. PoC Adj Factor Scoring'!$E$5:$J$282,,MATCH(H$4,'C. PoC Adj Factor Scoring'!$E$3:$AH$3,0)-1),MATCH(H$2&\" Score\",'C. PoC Adj Factor Scoring'!$E$4:$J$4,0),TRUE)","v":1},{"$f":"VLOOKUP(OFFSET($B:$B,,MATCH(I$4,$B$4:$F$4,0)-1),OFFSET('C. PoC Adj Factor Scoring'!$E$5:$J$282,,MATCH(I$4,'C. PoC Adj Factor Scoring'!$E$3:$AH$3,0)-1),MATCH(I$2&\" Score\",'C. PoC Adj Factor Scoring'!$E$4:$J$4,0),TRUE)","v":1},{"$f":"VLOOKUP(OFFSET($B:$B,,MATCH(J$4,$B$4:$F$4,0)-1),OFFSET('C. PoC Adj Factor Scoring'!$E$5:$J$282,,MATCH(J$4,'C. PoC Adj Factor Scoring'!$E$3:$AH$3,0)-1),MATCH(J$2&\" Score\",'C. PoC Adj Factor Scoring'!$E$4:$J$4,0),TRUE)","v":1},{"$f":"VLOOKUP(OFFSET($B:$B,,MATCH(K$4,$B$4:$F$4,0)-1),OFFSET('C. PoC Adj Factor Scoring'!$E$5:$J$282,,MATCH(K$4,'C. PoC Adj Factor Scoring'!$E$3:$AH$3,0)-1),MATCH(K$2&\" Score\",'C. PoC Adj Factor Scoring'!$E$4:$J$4,0),TRUE)","v":1},{"$f":"VLOOKUP(OFFSET($B:$B,,MATCH(L$4,$B$4:$F$4,0)-1),OFFSET('C. PoC Adj Factor Scoring'!$E$5:$J$282,,MATCH(L$4,'C. PoC Adj Factor Scoring'!$E$3:$AH$3,0)-1),MATCH(L$2&\" Score\",'C. PoC Adj Factor Scoring'!$E$4:$J$4,0),TRUE)","v":1},{"$f":"VLOOKUP(OFFSET($B:$B,,MATCH(M$4,$B$4:$F$4,0)-1),OFFSET('C. PoC Adj Factor Scoring'!$E$5:$J$282,,MATCH(M$4,'C. PoC Adj Factor Scoring'!$E$3:$AH$3,0)-1),MATCH(M$2&\" Score\",'C. PoC Adj Factor Scoring'!$E$4:$J$4,0),TRUE)","v":1},{"$f":"VLOOKUP(OFFSET($B:$B,,MATCH(N$4,$B$4:$F$4,0)-1),OFFSET('C. PoC Adj Factor Scoring'!$E$5:$J$282,,MATCH(N$4,'C. PoC Adj Factor Scoring'!$E$3:$AH$3,0)-1),MATCH(N$2&\" Score\",'C. PoC Adj Factor Scoring'!$E$4:$J$4,0),TRUE)","v":1},{"$f":"VLOOKUP(OFFSET($B:$B,,MATCH(O$4,$B$4:$F$4,0)-1),OFFSET('C. PoC Adj Factor Scoring'!$E$5:$J$282,,MATCH(O$4,'C. PoC Adj Factor Scoring'!$E$3:$AH$3,0)-1),MATCH(O$2&\" Score\",'C. PoC Adj Factor Scoring'!$E$4:$J$4,0),TRUE)","v":1},{"$f":"VLOOKUP(OFFSET($B:$B,,MATCH(P$4,$B$4:$F$4,0)-1),OFFSET('C. PoC Adj Factor Scoring'!$E$5:$J$282,,MATCH(P$4,'C. PoC Adj Factor Scoring'!$E$3:$AH$3,0)-1),MATCH(P$2&\" Score\",'C. PoC Adj Factor Scoring'!$E$4:$J$4,0),TRUE)","v":1},{"$f":"VLOOKUP(OFFSET($B:$B,,MATCH(Q$4,$B$4:$F$4,0)-1),OFFSET('C. PoC Adj Factor Scoring'!$E$5:$J$282,,MATCH(Q$4,'C. PoC Adj Factor Scoring'!$E$3:$AH$3,0)-1),MATCH(Q$2&\" Score\",'C. PoC Adj Factor Scoring'!$E$4:$J$4,0),TRUE)","v":1},{"$f":"VLOOKUP(OFFSET($B:$B,,MATCH(R$4,$B$4:$F$4,0)-1),OFFSET('C. PoC Adj Factor Scoring'!$E$5:$J$282,,MATCH(R$4,'C. PoC Adj Factor Scoring'!$E$3:$AH$3,0)-1),MATCH(R$2&\" Score\",'C. PoC Adj Factor Scoring'!$E$4:$J$4,0),TRUE)","v":1},{"$f":"VLOOKUP(OFFSET($B:$B,,MATCH(S$4,$B$4:$F$4,0)-1),OFFSET('C. PoC Adj Factor Scoring'!$E$5:$J$282,,MATCH(S$4,'C. PoC Adj Factor Scoring'!$E$3:$AH$3,0)-1),MATCH(S$2&\" Score\",'C. PoC Adj Factor Scoring'!$E$4:$J$4,0),TRUE)","v":1},{"$f":"VLOOKUP(OFFSET($B:$B,,MATCH(T$4,$B$4:$F$4,0)-1),OFFSET('C. PoC Adj Factor Scoring'!$E$5:$J$282,,MATCH(T$4,'C. PoC Adj Factor Scoring'!$E$3:$AH$3,0)-1),MATCH(T$2&\" Score\",'C. PoC Adj Factor Scoring'!$E$4:$J$4,0),TRUE)","v":1},{"$f":"VLOOKUP(OFFSET($B:$B,,MATCH(U$4,$B$4:$F$4,0)-1),OFFSET('C. PoC Adj Factor Scoring'!$E$5:$J$282,,MATCH(U$4,'C. PoC Adj Factor Scoring'!$E$3:$AH$3,0)-1),MATCH(U$2&\" Score\",'C. PoC Adj Factor Scoring'!$E$4:$J$4,0),TRUE)","v":1},{"$f":"VLOOKUP(OFFSET($B:$B,,MATCH(V$4,$B$4:$F$4,0)-1),OFFSET('C. PoC Adj Factor Scoring'!$E$5:$J$282,,MATCH(V$4,'C. PoC Adj Factor Scoring'!$E$3:$AH$3,0)-1),MATCH(V$2&\" Score\",'C. PoC Adj Factor Scoring'!$E$4:$J$4,0),TRUE)","v":1},{"$f":"VLOOKUP(OFFSET($B:$B,,MATCH(W$4,$B$4:$F$4,0)-1),OFFSET('C. PoC Adj Factor Scoring'!$E$5:$J$282,,MATCH(W$4,'C. PoC Adj Factor Scoring'!$E$3:$AH$3,0)-1),MATCH(W$2&\" Score\",'C. PoC Adj Factor Scoring'!$E$4:$J$4,0),TRUE)","v":1},{"$f":"VLOOKUP(OFFSET($B:$B,,MATCH(X$4,$B$4:$F$4,0)-1),OFFSET('C. PoC Adj Factor Scoring'!$E$5:$J$282,,MATCH(X$4,'C. PoC Adj Factor Scoring'!$E$3:$AH$3,0)-1),MATCH(X$2&\" Score\",'C. PoC Adj Factor Scoring'!$E$4:$J$4,0),TRUE)","v":1},{"$f":"VLOOKUP(OFFSET($B:$B,,MATCH(Y$4,$B$4:$F$4,0)-1),OFFSET('C. PoC Adj Factor Scoring'!$E$5:$J$282,,MATCH(Y$4,'C. PoC Adj Factor Scoring'!$E$3:$AH$3,0)-1),MATCH(Y$2&\" Score\",'C. PoC Adj Factor Scoring'!$E$4:$J$4,0),TRUE)","v":1},{"$f":"VLOOKUP(OFFSET($B:$B,,MATCH(Z$4,$B$4:$F$4,0)-1),OFFSET('C. PoC Adj Factor Scoring'!$E$5:$J$282,,MATCH(Z$4,'C. PoC Adj Factor Scoring'!$E$3:$AH$3,0)-1),MATCH(Z$2&\" Score\",'C. PoC Adj Factor Scoring'!$E$4:$J$4,0),TRUE)","v":1},{"$f":"VLOOKUP(OFFSET($B:$B,,MATCH(AA$4,$B$4:$F$4,0)-1),OFFSET('C. PoC Adj Factor Scoring'!$E$5:$J$282,,MATCH(AA$4,'C. PoC Adj Factor Scoring'!$E$3:$AH$3,0)-1),MATCH(AA$2&\" Score\",'C. PoC Adj Factor Scoring'!$E$4:$J$4,0),TRUE)","v":3},{"$f":"VLOOKUP(OFFSET($B:$B,,MATCH(AB$4,$B$4:$F$4,0)-1),OFFSET('C. PoC Adj Factor Scoring'!$E$5:$J$282,,MATCH(AB$4,'C. PoC Adj Factor Scoring'!$E$3:$AH$3,0)-1),MATCH(AB$2&\" Score\",'C. PoC Adj Factor Scoring'!$E$4:$J$4,0),TRUE)","v":1},{"$f":"VLOOKUP(OFFSET($B:$B,,MATCH(AC$4,$B$4:$F$4,0)-1),OFFSET('C. PoC Adj Factor Scoring'!$E$5:$J$282,,MATCH(AC$4,'C. PoC Adj Factor Scoring'!$E$3:$AH$3,0)-1),MATCH(AC$2&\" Score\",'C. PoC Adj Factor Scoring'!$E$4:$J$4,0),TRUE)","v":1},{"$f":"VLOOKUP(OFFSET($B:$B,,MATCH(AD$4,$B$4:$F$4,0)-1),OFFSET('C. PoC Adj Factor Scoring'!$E$5:$J$282,,MATCH(AD$4,'C. PoC Adj Factor Scoring'!$E$3:$AH$3,0)-1),MATCH(AD$2&\" Score\",'C. PoC Adj Factor Scoring'!$E$4:$J$4,0),TRUE)","v":1},{"$f":"VLOOKUP(OFFSET($B:$B,,MATCH(AE$4,$B$4:$F$4,0)-1),OFFSET('C. PoC Adj Factor Scoring'!$E$5:$J$282,,MATCH(AE$4,'C. PoC Adj Factor Scoring'!$E$3:$AH$3,0)-1),MATCH(AE$2&\" Score\",'C. PoC Adj Factor Scoring'!$E$4:$J$4,0),TRUE)","v":1}]
[{"$f":"'A. Population Info'!A455","v":1001472639},{"$f":"'A. Population Info'!L455","v":"OIL"},{"$f":"'A. Population Info'!M455","v":0},{"$f":"'A. Population Info'!N455","v":0},{"$f":"'A. Population Info'!O455","v":0},{"$f":"'A. Population Info'!P455","v":0},{"$f":"VLOOKUP(OFFSET($B:$B,,MATCH(G$4,$B$4:$F$4,0)-1),OFFSET('C. PoC Adj Factor Scoring'!$E$5:$J$282,,MATCH(G$4,'C. PoC Adj Factor Scoring'!$E$3:$AH$3,0)-1),MATCH(G$2&\" Score\",'C. PoC Adj Factor Scoring'!$E$4:$J$4,0),TRUE)","v":4},{"$f":"VLOOKUP(OFFSET($B:$B,,MATCH(H$4,$B$4:$F$4,0)-1),OFFSET('C. PoC Adj Factor Scoring'!$E$5:$J$282,,MATCH(H$4,'C. PoC Adj Factor Scoring'!$E$3:$AH$3,0)-1),MATCH(H$2&\" Score\",'C. PoC Adj Factor Scoring'!$E$4:$J$4,0),TRUE)","v":1},{"$f":"VLOOKUP(OFFSET($B:$B,,MATCH(I$4,$B$4:$F$4,0)-1),OFFSET('C. PoC Adj Factor Scoring'!$E$5:$J$282,,MATCH(I$4,'C. PoC Adj Factor Scoring'!$E$3:$AH$3,0)-1),MATCH(I$2&\" Score\",'C. PoC Adj Factor Scoring'!$E$4:$J$4,0),TRUE)","v":1},{"$f":"VLOOKUP(OFFSET($B:$B,,MATCH(J$4,$B$4:$F$4,0)-1),OFFSET('C. PoC Adj Factor Scoring'!$E$5:$J$282,,MATCH(J$4,'C. PoC Adj Factor Scoring'!$E$3:$AH$3,0)-1),MATCH(J$2&\" Score\",'C. PoC Adj Factor Scoring'!$E$4:$J$4,0),TRUE)","v":1},{"$f":"VLOOKUP(OFFSET($B:$B,,MATCH(K$4,$B$4:$F$4,0)-1),OFFSET('C. PoC Adj Factor Scoring'!$E$5:$J$282,,MATCH(K$4,'C. PoC Adj Factor Scoring'!$E$3:$AH$3,0)-1),MATCH(K$2&\" Score\",'C. PoC Adj Factor Scoring'!$E$4:$J$4,0),TRUE)","v":1},{"$f":"VLOOKUP(OFFSET($B:$B,,MATCH(L$4,$B$4:$F$4,0)-1),OFFSET('C. PoC Adj Factor Scoring'!$E$5:$J$282,,MATCH(L$4,'C. PoC Adj Factor Scoring'!$E$3:$AH$3,0)-1),MATCH(L$2&\" Score\",'C. PoC Adj Factor Scoring'!$E$4:$J$4,0),TRUE)","v":1},{"$f":"VLOOKUP(OFFSET($B:$B,,MATCH(M$4,$B$4:$F$4,0)-1),OFFSET('C. PoC Adj Factor Scoring'!$E$5:$J$282,,MATCH(M$4,'C. PoC Adj Factor Scoring'!$E$3:$AH$3,0)-1),MATCH(M$2&\" Score\",'C. PoC Adj Factor Scoring'!$E$4:$J$4,0),TRUE)","v":1},{"$f":"VLOOKUP(OFFSET($B:$B,,MATCH(N$4,$B$4:$F$4,0)-1),OFFSET('C. PoC Adj Factor Scoring'!$E$5:$J$282,,MATCH(N$4,'C. PoC Adj Factor Scoring'!$E$3:$AH$3,0)-1),MATCH(N$2&\" Score\",'C. PoC Adj Factor Scoring'!$E$4:$J$4,0),TRUE)","v":1},{"$f":"VLOOKUP(OFFSET($B:$B,,MATCH(O$4,$B$4:$F$4,0)-1),OFFSET('C. PoC Adj Factor Scoring'!$E$5:$J$282,,MATCH(O$4,'C. PoC Adj Factor Scoring'!$E$3:$AH$3,0)-1),MATCH(O$2&\" Score\",'C. PoC Adj Factor Scoring'!$E$4:$J$4,0),TRUE)","v":1},{"$f":"VLOOKUP(OFFSET($B:$B,,MATCH(P$4,$B$4:$F$4,0)-1),OFFSET('C. PoC Adj Factor Scoring'!$E$5:$J$282,,MATCH(P$4,'C. PoC Adj Factor Scoring'!$E$3:$AH$3,0)-1),MATCH(P$2&\" Score\",'C. PoC Adj Factor Scoring'!$E$4:$J$4,0),TRUE)","v":1},{"$f":"VLOOKUP(OFFSET($B:$B,,MATCH(Q$4,$B$4:$F$4,0)-1),OFFSET('C. PoC Adj Factor Scoring'!$E$5:$J$282,,MATCH(Q$4,'C. PoC Adj Factor Scoring'!$E$3:$AH$3,0)-1),MATCH(Q$2&\" Score\",'C. PoC Adj Factor Scoring'!$E$4:$J$4,0),TRUE)","v":1},{"$f":"VLOOKUP(OFFSET($B:$B,,MATCH(R$4,$B$4:$F$4,0)-1),OFFSET('C. PoC Adj Factor Scoring'!$E$5:$J$282,,MATCH(R$4,'C. PoC Adj Factor Scoring'!$E$3:$AH$3,0)-1),MATCH(R$2&\" Score\",'C. PoC Adj Factor Scoring'!$E$4:$J$4,0),TRUE)","v":1},{"$f":"VLOOKUP(OFFSET($B:$B,,MATCH(S$4,$B$4:$F$4,0)-1),OFFSET('C. PoC Adj Factor Scoring'!$E$5:$J$282,,MATCH(S$4,'C. PoC Adj Factor Scoring'!$E$3:$AH$3,0)-1),MATCH(S$2&\" Score\",'C. PoC Adj Factor Scoring'!$E$4:$J$4,0),TRUE)","v":1},{"$f":"VLOOKUP(OFFSET($B:$B,,MATCH(T$4,$B$4:$F$4,0)-1),OFFSET('C. PoC Adj Factor Scoring'!$E$5:$J$282,,MATCH(T$4,'C. PoC Adj Factor Scoring'!$E$3:$AH$3,0)-1),MATCH(T$2&\" Score\",'C. PoC Adj Factor Scoring'!$E$4:$J$4,0),TRUE)","v":1},{"$f":"VLOOKUP(OFFSET($B:$B,,MATCH(U$4,$B$4:$F$4,0)-1),OFFSET('C. PoC Adj Factor Scoring'!$E$5:$J$282,,MATCH(U$4,'C. PoC Adj Factor Scoring'!$E$3:$AH$3,0)-1),MATCH(U$2&\" Score\",'C. PoC Adj Factor Scoring'!$E$4:$J$4,0),TRUE)","v":1},{"$f":"VLOOKUP(OFFSET($B:$B,,MATCH(V$4,$B$4:$F$4,0)-1),OFFSET('C. PoC Adj Factor Scoring'!$E$5:$J$282,,MATCH(V$4,'C. PoC Adj Factor Scoring'!$E$3:$AH$3,0)-1),MATCH(V$2&\" Score\",'C. PoC Adj Factor Scoring'!$E$4:$J$4,0),TRUE)","v":1},{"$f":"VLOOKUP(OFFSET($B:$B,,MATCH(W$4,$B$4:$F$4,0)-1),OFFSET('C. PoC Adj Factor Scoring'!$E$5:$J$282,,MATCH(W$4,'C. PoC Adj Factor Scoring'!$E$3:$AH$3,0)-1),MATCH(W$2&\" Score\",'C. PoC Adj Factor Scoring'!$E$4:$J$4,0),TRUE)","v":1},{"$f":"VLOOKUP(OFFSET($B:$B,,MATCH(X$4,$B$4:$F$4,0)-1),OFFSET('C. PoC Adj Factor Scoring'!$E$5:$J$282,,MATCH(X$4,'C. PoC Adj Factor Scoring'!$E$3:$AH$3,0)-1),MATCH(X$2&\" Score\",'C. PoC Adj Factor Scoring'!$E$4:$J$4,0),TRUE)","v":1},{"$f":"VLOOKUP(OFFSET($B:$B,,MATCH(Y$4,$B$4:$F$4,0)-1),OFFSET('C. PoC Adj Factor Scoring'!$E$5:$J$282,,MATCH(Y$4,'C. PoC Adj Factor Scoring'!$E$3:$AH$3,0)-1),MATCH(Y$2&\" Score\",'C. PoC Adj Factor Scoring'!$E$4:$J$4,0),TRUE)","v":1},{"$f":"VLOOKUP(OFFSET($B:$B,,MATCH(Z$4,$B$4:$F$4,0)-1),OFFSET('C. PoC Adj Factor Scoring'!$E$5:$J$282,,MATCH(Z$4,'C. PoC Adj Factor Scoring'!$E$3:$AH$3,0)-1),MATCH(Z$2&\" Score\",'C. PoC Adj Factor Scoring'!$E$4:$J$4,0),TRUE)","v":1},{"$f":"VLOOKUP(OFFSET($B:$B,,MATCH(AA$4,$B$4:$F$4,0)-1),OFFSET('C. PoC Adj Factor Scoring'!$E$5:$J$282,,MATCH(AA$4,'C. PoC Adj Factor Scoring'!$E$3:$AH$3,0)-1),MATCH(AA$2&\" Score\",'C. PoC Adj Factor Scoring'!$E$4:$J$4,0),TRUE)","v":3},{"$f":"VLOOKUP(OFFSET($B:$B,,MATCH(AB$4,$B$4:$F$4,0)-1),OFFSET('C. PoC Adj Factor Scoring'!$E$5:$J$282,,MATCH(AB$4,'C. PoC Adj Factor Scoring'!$E$3:$AH$3,0)-1),MATCH(AB$2&\" Score\",'C. PoC Adj Factor Scoring'!$E$4:$J$4,0),TRUE)","v":1},{"$f":"VLOOKUP(OFFSET($B:$B,,MATCH(AC$4,$B$4:$F$4,0)-1),OFFSET('C. PoC Adj Factor Scoring'!$E$5:$J$282,,MATCH(AC$4,'C. PoC Adj Factor Scoring'!$E$3:$AH$3,0)-1),MATCH(AC$2&\" Score\",'C. PoC Adj Factor Scoring'!$E$4:$J$4,0),TRUE)","v":1},{"$f":"VLOOKUP(OFFSET($B:$B,,MATCH(AD$4,$B$4:$F$4,0)-1),OFFSET('C. PoC Adj Factor Scoring'!$E$5:$J$282,,MATCH(AD$4,'C. PoC Adj Factor Scoring'!$E$3:$AH$3,0)-1),MATCH(AD$2&\" Score\",'C. PoC Adj Factor Scoring'!$E$4:$J$4,0),TRUE)","v":1},{"$f":"VLOOKUP(OFFSET($B:$B,,MATCH(AE$4,$B$4:$F$4,0)-1),OFFSET('C. PoC Adj Factor Scoring'!$E$5:$J$282,,MATCH(AE$4,'C. PoC Adj Factor Scoring'!$E$3:$AH$3,0)-1),MATCH(AE$2&\" Score\",'C. PoC Adj Factor Scoring'!$E$4:$J$4,0),TRUE)","v":1}]
[{"$f":"'A. Population Info'!A456","v":1001472640},{"$f":"'A. Population Info'!L456","v":"OIL"},{"$f":"'A. Population Info'!M456","v":0},{"$f":"'A. Population Info'!N456","v":0},{"$f":"'A. Population Info'!O456","v":0},{"$f":"'A. Population Info'!P456","v":0},{"$f":"VLOOKUP(OFFSET($B:$B,,MATCH(G$4,$B$4:$F$4,0)-1),OFFSET('C. PoC Adj Factor Scoring'!$E$5:$J$282,,MATCH(G$4,'C. PoC Adj Factor Scoring'!$E$3:$AH$3,0)-1),MATCH(G$2&\" Score\",'C. PoC Adj Factor Scoring'!$E$4:$J$4,0),TRUE)","v":4},{"$f":"VLOOKUP(OFFSET($B:$B,,MATCH(H$4,$B$4:$F$4,0)-1),OFFSET('C. PoC Adj Factor Scoring'!$E$5:$J$282,,MATCH(H$4,'C. PoC Adj Factor Scoring'!$E$3:$AH$3,0)-1),MATCH(H$2&\" Score\",'C. PoC Adj Factor Scoring'!$E$4:$J$4,0),TRUE)","v":1},{"$f":"VLOOKUP(OFFSET($B:$B,,MATCH(I$4,$B$4:$F$4,0)-1),OFFSET('C. PoC Adj Factor Scoring'!$E$5:$J$282,,MATCH(I$4,'C. PoC Adj Factor Scoring'!$E$3:$AH$3,0)-1),MATCH(I$2&\" Score\",'C. PoC Adj Factor Scoring'!$E$4:$J$4,0),TRUE)","v":1},{"$f":"VLOOKUP(OFFSET($B:$B,,MATCH(J$4,$B$4:$F$4,0)-1),OFFSET('C. PoC Adj Factor Scoring'!$E$5:$J$282,,MATCH(J$4,'C. PoC Adj Factor Scoring'!$E$3:$AH$3,0)-1),MATCH(J$2&\" Score\",'C. PoC Adj Factor Scoring'!$E$4:$J$4,0),TRUE)","v":1},{"$f":"VLOOKUP(OFFSET($B:$B,,MATCH(K$4,$B$4:$F$4,0)-1),OFFSET('C. PoC Adj Factor Scoring'!$E$5:$J$282,,MATCH(K$4,'C. PoC Adj Factor Scoring'!$E$3:$AH$3,0)-1),MATCH(K$2&\" Score\",'C. PoC Adj Factor Scoring'!$E$4:$J$4,0),TRUE)","v":1},{"$f":"VLOOKUP(OFFSET($B:$B,,MATCH(L$4,$B$4:$F$4,0)-1),OFFSET('C. PoC Adj Factor Scoring'!$E$5:$J$282,,MATCH(L$4,'C. PoC Adj Factor Scoring'!$E$3:$AH$3,0)-1),MATCH(L$2&\" Score\",'C. PoC Adj Factor Scoring'!$E$4:$J$4,0),TRUE)","v":1},{"$f":"VLOOKUP(OFFSET($B:$B,,MATCH(M$4,$B$4:$F$4,0)-1),OFFSET('C. PoC Adj Factor Scoring'!$E$5:$J$282,,MATCH(M$4,'C. PoC Adj Factor Scoring'!$E$3:$AH$3,0)-1),MATCH(M$2&\" Score\",'C. PoC Adj Factor Scoring'!$E$4:$J$4,0),TRUE)","v":1},{"$f":"VLOOKUP(OFFSET($B:$B,,MATCH(N$4,$B$4:$F$4,0)-1),OFFSET('C. PoC Adj Factor Scoring'!$E$5:$J$282,,MATCH(N$4,'C. PoC Adj Factor Scoring'!$E$3:$AH$3,0)-1),MATCH(N$2&\" Score\",'C. PoC Adj Factor Scoring'!$E$4:$J$4,0),TRUE)","v":1},{"$f":"VLOOKUP(OFFSET($B:$B,,MATCH(O$4,$B$4:$F$4,0)-1),OFFSET('C. PoC Adj Factor Scoring'!$E$5:$J$282,,MATCH(O$4,'C. PoC Adj Factor Scoring'!$E$3:$AH$3,0)-1),MATCH(O$2&\" Score\",'C. PoC Adj Factor Scoring'!$E$4:$J$4,0),TRUE)","v":1},{"$f":"VLOOKUP(OFFSET($B:$B,,MATCH(P$4,$B$4:$F$4,0)-1),OFFSET('C. PoC Adj Factor Scoring'!$E$5:$J$282,,MATCH(P$4,'C. PoC Adj Factor Scoring'!$E$3:$AH$3,0)-1),MATCH(P$2&\" Score\",'C. PoC Adj Factor Scoring'!$E$4:$J$4,0),TRUE)","v":1},{"$f":"VLOOKUP(OFFSET($B:$B,,MATCH(Q$4,$B$4:$F$4,0)-1),OFFSET('C. PoC Adj Factor Scoring'!$E$5:$J$282,,MATCH(Q$4,'C. PoC Adj Factor Scoring'!$E$3:$AH$3,0)-1),MATCH(Q$2&\" Score\",'C. PoC Adj Factor Scoring'!$E$4:$J$4,0),TRUE)","v":1},{"$f":"VLOOKUP(OFFSET($B:$B,,MATCH(R$4,$B$4:$F$4,0)-1),OFFSET('C. PoC Adj Factor Scoring'!$E$5:$J$282,,MATCH(R$4,'C. PoC Adj Factor Scoring'!$E$3:$AH$3,0)-1),MATCH(R$2&\" Score\",'C. PoC Adj Factor Scoring'!$E$4:$J$4,0),TRUE)","v":1},{"$f":"VLOOKUP(OFFSET($B:$B,,MATCH(S$4,$B$4:$F$4,0)-1),OFFSET('C. PoC Adj Factor Scoring'!$E$5:$J$282,,MATCH(S$4,'C. PoC Adj Factor Scoring'!$E$3:$AH$3,0)-1),MATCH(S$2&\" Score\",'C. PoC Adj Factor Scoring'!$E$4:$J$4,0),TRUE)","v":1},{"$f":"VLOOKUP(OFFSET($B:$B,,MATCH(T$4,$B$4:$F$4,0)-1),OFFSET('C. PoC Adj Factor Scoring'!$E$5:$J$282,,MATCH(T$4,'C. PoC Adj Factor Scoring'!$E$3:$AH$3,0)-1),MATCH(T$2&\" Score\",'C. PoC Adj Factor Scoring'!$E$4:$J$4,0),TRUE)","v":1},{"$f":"VLOOKUP(OFFSET($B:$B,,MATCH(U$4,$B$4:$F$4,0)-1),OFFSET('C. PoC Adj Factor Scoring'!$E$5:$J$282,,MATCH(U$4,'C. PoC Adj Factor Scoring'!$E$3:$AH$3,0)-1),MATCH(U$2&\" Score\",'C. PoC Adj Factor Scoring'!$E$4:$J$4,0),TRUE)","v":1},{"$f":"VLOOKUP(OFFSET($B:$B,,MATCH(V$4,$B$4:$F$4,0)-1),OFFSET('C. PoC Adj Factor Scoring'!$E$5:$J$282,,MATCH(V$4,'C. PoC Adj Factor Scoring'!$E$3:$AH$3,0)-1),MATCH(V$2&\" Score\",'C. PoC Adj Factor Scoring'!$E$4:$J$4,0),TRUE)","v":1},{"$f":"VLOOKUP(OFFSET($B:$B,,MATCH(W$4,$B$4:$F$4,0)-1),OFFSET('C. PoC Adj Factor Scoring'!$E$5:$J$282,,MATCH(W$4,'C. PoC Adj Factor Scoring'!$E$3:$AH$3,0)-1),MATCH(W$2&\" Score\",'C. PoC Adj Factor Scoring'!$E$4:$J$4,0),TRUE)","v":1},{"$f":"VLOOKUP(OFFSET($B:$B,,MATCH(X$4,$B$4:$F$4,0)-1),OFFSET('C. PoC Adj Factor Scoring'!$E$5:$J$282,,MATCH(X$4,'C. PoC Adj Factor Scoring'!$E$3:$AH$3,0)-1),MATCH(X$2&\" Score\",'C. PoC Adj Factor Scoring'!$E$4:$J$4,0),TRUE)","v":1},{"$f":"VLOOKUP(OFFSET($B:$B,,MATCH(Y$4,$B$4:$F$4,0)-1),OFFSET('C. PoC Adj Factor Scoring'!$E$5:$J$282,,MATCH(Y$4,'C. PoC Adj Factor Scoring'!$E$3:$AH$3,0)-1),MATCH(Y$2&\" Score\",'C. PoC Adj Factor Scoring'!$E$4:$J$4,0),TRUE)","v":1},{"$f":"VLOOKUP(OFFSET($B:$B,,MATCH(Z$4,$B$4:$F$4,0)-1),OFFSET('C. PoC Adj Factor Scoring'!$E$5:$J$282,,MATCH(Z$4,'C. PoC Adj Factor Scoring'!$E$3:$AH$3,0)-1),MATCH(Z$2&\" Score\",'C. PoC Adj Factor Scoring'!$E$4:$J$4,0),TRUE)","v":1},{"$f":"VLOOKUP(OFFSET($B:$B,,MATCH(AA$4,$B$4:$F$4,0)-1),OFFSET('C. PoC Adj Factor Scoring'!$E$5:$J$282,,MATCH(AA$4,'C. PoC Adj Factor Scoring'!$E$3:$AH$3,0)-1),MATCH(AA$2&\" Score\",'C. PoC Adj Factor Scoring'!$E$4:$J$4,0),TRUE)","v":3},{"$f":"VLOOKUP(OFFSET($B:$B,,MATCH(AB$4,$B$4:$F$4,0)-1),OFFSET('C. PoC Adj Factor Scoring'!$E$5:$J$282,,MATCH(AB$4,'C. PoC Adj Factor Scoring'!$E$3:$AH$3,0)-1),MATCH(AB$2&\" Score\",'C. PoC Adj Factor Scoring'!$E$4:$J$4,0),TRUE)","v":1},{"$f":"VLOOKUP(OFFSET($B:$B,,MATCH(AC$4,$B$4:$F$4,0)-1),OFFSET('C. PoC Adj Factor Scoring'!$E$5:$J$282,,MATCH(AC$4,'C. PoC Adj Factor Scoring'!$E$3:$AH$3,0)-1),MATCH(AC$2&\" Score\",'C. PoC Adj Factor Scoring'!$E$4:$J$4,0),TRUE)","v":1},{"$f":"VLOOKUP(OFFSET($B:$B,,MATCH(AD$4,$B$4:$F$4,0)-1),OFFSET('C. PoC Adj Factor Scoring'!$E$5:$J$282,,MATCH(AD$4,'C. PoC Adj Factor Scoring'!$E$3:$AH$3,0)-1),MATCH(AD$2&\" Score\",'C. PoC Adj Factor Scoring'!$E$4:$J$4,0),TRUE)","v":1},{"$f":"VLOOKUP(OFFSET($B:$B,,MATCH(AE$4,$B$4:$F$4,0)-1),OFFSET('C. PoC Adj Factor Scoring'!$E$5:$J$282,,MATCH(AE$4,'C. PoC Adj Factor Scoring'!$E$3:$AH$3,0)-1),MATCH(AE$2&\" Score\",'C. PoC Adj Factor Scoring'!$E$4:$J$4,0),TRUE)","v":1}]
[{"$f":"'A. Population Info'!A457","v":1001473129},{"$f":"'A. Population Info'!L457","v":"OIL"},{"$f":"'A. Population Info'!M457","v":0},{"$f":"'A. Population Info'!N457","v":0},{"$f":"'A. Population Info'!O457","v":0},{"$f":"'A. Population Info'!P457","v":0},{"$f":"VLOOKUP(OFFSET($B:$B,,MATCH(G$4,$B$4:$F$4,0)-1),OFFSET('C. PoC Adj Factor Scoring'!$E$5:$J$282,,MATCH(G$4,'C. PoC Adj Factor Scoring'!$E$3:$AH$3,0)-1),MATCH(G$2&\" Score\",'C. PoC Adj Factor Scoring'!$E$4:$J$4,0),TRUE)","v":4},{"$f":"VLOOKUP(OFFSET($B:$B,,MATCH(H$4,$B$4:$F$4,0)-1),OFFSET('C. PoC Adj Factor Scoring'!$E$5:$J$282,,MATCH(H$4,'C. PoC Adj Factor Scoring'!$E$3:$AH$3,0)-1),MATCH(H$2&\" Score\",'C. PoC Adj Factor Scoring'!$E$4:$J$4,0),TRUE)","v":1},{"$f":"VLOOKUP(OFFSET($B:$B,,MATCH(I$4,$B$4:$F$4,0)-1),OFFSET('C. PoC Adj Factor Scoring'!$E$5:$J$282,,MATCH(I$4,'C. PoC Adj Factor Scoring'!$E$3:$AH$3,0)-1),MATCH(I$2&\" Score\",'C. PoC Adj Factor Scoring'!$E$4:$J$4,0),TRUE)","v":1},{"$f":"VLOOKUP(OFFSET($B:$B,,MATCH(J$4,$B$4:$F$4,0)-1),OFFSET('C. PoC Adj Factor Scoring'!$E$5:$J$282,,MATCH(J$4,'C. PoC Adj Factor Scoring'!$E$3:$AH$3,0)-1),MATCH(J$2&\" Score\",'C. PoC Adj Factor Scoring'!$E$4:$J$4,0),TRUE)","v":1},{"$f":"VLOOKUP(OFFSET($B:$B,,MATCH(K$4,$B$4:$F$4,0)-1),OFFSET('C. PoC Adj Factor Scoring'!$E$5:$J$282,,MATCH(K$4,'C. PoC Adj Factor Scoring'!$E$3:$AH$3,0)-1),MATCH(K$2&\" Score\",'C. PoC Adj Factor Scoring'!$E$4:$J$4,0),TRUE)","v":1},{"$f":"VLOOKUP(OFFSET($B:$B,,MATCH(L$4,$B$4:$F$4,0)-1),OFFSET('C. PoC Adj Factor Scoring'!$E$5:$J$282,,MATCH(L$4,'C. PoC Adj Factor Scoring'!$E$3:$AH$3,0)-1),MATCH(L$2&\" Score\",'C. PoC Adj Factor Scoring'!$E$4:$J$4,0),TRUE)","v":1},{"$f":"VLOOKUP(OFFSET($B:$B,,MATCH(M$4,$B$4:$F$4,0)-1),OFFSET('C. PoC Adj Factor Scoring'!$E$5:$J$282,,MATCH(M$4,'C. PoC Adj Factor Scoring'!$E$3:$AH$3,0)-1),MATCH(M$2&\" Score\",'C. PoC Adj Factor Scoring'!$E$4:$J$4,0),TRUE)","v":1},{"$f":"VLOOKUP(OFFSET($B:$B,,MATCH(N$4,$B$4:$F$4,0)-1),OFFSET('C. PoC Adj Factor Scoring'!$E$5:$J$282,,MATCH(N$4,'C. PoC Adj Factor Scoring'!$E$3:$AH$3,0)-1),MATCH(N$2&\" Score\",'C. PoC Adj Factor Scoring'!$E$4:$J$4,0),TRUE)","v":1},{"$f":"VLOOKUP(OFFSET($B:$B,,MATCH(O$4,$B$4:$F$4,0)-1),OFFSET('C. PoC Adj Factor Scoring'!$E$5:$J$282,,MATCH(O$4,'C. PoC Adj Factor Scoring'!$E$3:$AH$3,0)-1),MATCH(O$2&\" Score\",'C. PoC Adj Factor Scoring'!$E$4:$J$4,0),TRUE)","v":1},{"$f":"VLOOKUP(OFFSET($B:$B,,MATCH(P$4,$B$4:$F$4,0)-1),OFFSET('C. PoC Adj Factor Scoring'!$E$5:$J$282,,MATCH(P$4,'C. PoC Adj Factor Scoring'!$E$3:$AH$3,0)-1),MATCH(P$2&\" Score\",'C. PoC Adj Factor Scoring'!$E$4:$J$4,0),TRUE)","v":1},{"$f":"VLOOKUP(OFFSET($B:$B,,MATCH(Q$4,$B$4:$F$4,0)-1),OFFSET('C. PoC Adj Factor Scoring'!$E$5:$J$282,,MATCH(Q$4,'C. PoC Adj Factor Scoring'!$E$3:$AH$3,0)-1),MATCH(Q$2&\" Score\",'C. PoC Adj Factor Scoring'!$E$4:$J$4,0),TRUE)","v":1},{"$f":"VLOOKUP(OFFSET($B:$B,,MATCH(R$4,$B$4:$F$4,0)-1),OFFSET('C. PoC Adj Factor Scoring'!$E$5:$J$282,,MATCH(R$4,'C. PoC Adj Factor Scoring'!$E$3:$AH$3,0)-1),MATCH(R$2&\" Score\",'C. PoC Adj Factor Scoring'!$E$4:$J$4,0),TRUE)","v":1},{"$f":"VLOOKUP(OFFSET($B:$B,,MATCH(S$4,$B$4:$F$4,0)-1),OFFSET('C. PoC Adj Factor Scoring'!$E$5:$J$282,,MATCH(S$4,'C. PoC Adj Factor Scoring'!$E$3:$AH$3,0)-1),MATCH(S$2&\" Score\",'C. PoC Adj Factor Scoring'!$E$4:$J$4,0),TRUE)","v":1},{"$f":"VLOOKUP(OFFSET($B:$B,,MATCH(T$4,$B$4:$F$4,0)-1),OFFSET('C. PoC Adj Factor Scoring'!$E$5:$J$282,,MATCH(T$4,'C. PoC Adj Factor Scoring'!$E$3:$AH$3,0)-1),MATCH(T$2&\" Score\",'C. PoC Adj Factor Scoring'!$E$4:$J$4,0),TRUE)","v":1},{"$f":"VLOOKUP(OFFSET($B:$B,,MATCH(U$4,$B$4:$F$4,0)-1),OFFSET('C. PoC Adj Factor Scoring'!$E$5:$J$282,,MATCH(U$4,'C. PoC Adj Factor Scoring'!$E$3:$AH$3,0)-1),MATCH(U$2&\" Score\",'C. PoC Adj Factor Scoring'!$E$4:$J$4,0),TRUE)","v":1},{"$f":"VLOOKUP(OFFSET($B:$B,,MATCH(V$4,$B$4:$F$4,0)-1),OFFSET('C. PoC Adj Factor Scoring'!$E$5:$J$282,,MATCH(V$4,'C. PoC Adj Factor Scoring'!$E$3:$AH$3,0)-1),MATCH(V$2&\" Score\",'C. PoC Adj Factor Scoring'!$E$4:$J$4,0),TRUE)","v":1},{"$f":"VLOOKUP(OFFSET($B:$B,,MATCH(W$4,$B$4:$F$4,0)-1),OFFSET('C. PoC Adj Factor Scoring'!$E$5:$J$282,,MATCH(W$4,'C. PoC Adj Factor Scoring'!$E$3:$AH$3,0)-1),MATCH(W$2&\" Score\",'C. PoC Adj Factor Scoring'!$E$4:$J$4,0),TRUE)","v":1},{"$f":"VLOOKUP(OFFSET($B:$B,,MATCH(X$4,$B$4:$F$4,0)-1),OFFSET('C. PoC Adj Factor Scoring'!$E$5:$J$282,,MATCH(X$4,'C. PoC Adj Factor Scoring'!$E$3:$AH$3,0)-1),MATCH(X$2&\" Score\",'C. PoC Adj Factor Scoring'!$E$4:$J$4,0),TRUE)","v":1},{"$f":"VLOOKUP(OFFSET($B:$B,,MATCH(Y$4,$B$4:$F$4,0)-1),OFFSET('C. PoC Adj Factor Scoring'!$E$5:$J$282,,MATCH(Y$4,'C. PoC Adj Factor Scoring'!$E$3:$AH$3,0)-1),MATCH(Y$2&\" Score\",'C. PoC Adj Factor Scoring'!$E$4:$J$4,0),TRUE)","v":1},{"$f":"VLOOKUP(OFFSET($B:$B,,MATCH(Z$4,$B$4:$F$4,0)-1),OFFSET('C. PoC Adj Factor Scoring'!$E$5:$J$282,,MATCH(Z$4,'C. PoC Adj Factor Scoring'!$E$3:$AH$3,0)-1),MATCH(Z$2&\" Score\",'C. PoC Adj Factor Scoring'!$E$4:$J$4,0),TRUE)","v":1},{"$f":"VLOOKUP(OFFSET($B:$B,,MATCH(AA$4,$B$4:$F$4,0)-1),OFFSET('C. PoC Adj Factor Scoring'!$E$5:$J$282,,MATCH(AA$4,'C. PoC Adj Factor Scoring'!$E$3:$AH$3,0)-1),MATCH(AA$2&\" Score\",'C. PoC Adj Factor Scoring'!$E$4:$J$4,0),TRUE)","v":3},{"$f":"VLOOKUP(OFFSET($B:$B,,MATCH(AB$4,$B$4:$F$4,0)-1),OFFSET('C. PoC Adj Factor Scoring'!$E$5:$J$282,,MATCH(AB$4,'C. PoC Adj Factor Scoring'!$E$3:$AH$3,0)-1),MATCH(AB$2&\" Score\",'C. PoC Adj Factor Scoring'!$E$4:$J$4,0),TRUE)","v":1},{"$f":"VLOOKUP(OFFSET($B:$B,,MATCH(AC$4,$B$4:$F$4,0)-1),OFFSET('C. PoC Adj Factor Scoring'!$E$5:$J$282,,MATCH(AC$4,'C. PoC Adj Factor Scoring'!$E$3:$AH$3,0)-1),MATCH(AC$2&\" Score\",'C. PoC Adj Factor Scoring'!$E$4:$J$4,0),TRUE)","v":1},{"$f":"VLOOKUP(OFFSET($B:$B,,MATCH(AD$4,$B$4:$F$4,0)-1),OFFSET('C. PoC Adj Factor Scoring'!$E$5:$J$282,,MATCH(AD$4,'C. PoC Adj Factor Scoring'!$E$3:$AH$3,0)-1),MATCH(AD$2&\" Score\",'C. PoC Adj Factor Scoring'!$E$4:$J$4,0),TRUE)","v":1},{"$f":"VLOOKUP(OFFSET($B:$B,,MATCH(AE$4,$B$4:$F$4,0)-1),OFFSET('C. PoC Adj Factor Scoring'!$E$5:$J$282,,MATCH(AE$4,'C. PoC Adj Factor Scoring'!$E$3:$AH$3,0)-1),MATCH(AE$2&\" Score\",'C. PoC Adj Factor Scoring'!$E$4:$J$4,0),TRUE)","v":1}]
[{"$f":"'A. Population Info'!A458","v":1001474074},{"$f":"'A. Population Info'!L458","v":"OIL"},{"$f":"'A. Population Info'!M458","v":0},{"$f":"'A. Population Info'!N458","v":0},{"$f":"'A. Population Info'!O458","v":0},{"$f":"'A. Population Info'!P458","v":0},{"$f":"VLOOKUP(OFFSET($B:$B,,MATCH(G$4,$B$4:$F$4,0)-1),OFFSET('C. PoC Adj Factor Scoring'!$E$5:$J$282,,MATCH(G$4,'C. PoC Adj Factor Scoring'!$E$3:$AH$3,0)-1),MATCH(G$2&\" Score\",'C. PoC Adj Factor Scoring'!$E$4:$J$4,0),TRUE)","v":4},{"$f":"VLOOKUP(OFFSET($B:$B,,MATCH(H$4,$B$4:$F$4,0)-1),OFFSET('C. PoC Adj Factor Scoring'!$E$5:$J$282,,MATCH(H$4,'C. PoC Adj Factor Scoring'!$E$3:$AH$3,0)-1),MATCH(H$2&\" Score\",'C. PoC Adj Factor Scoring'!$E$4:$J$4,0),TRUE)","v":1},{"$f":"VLOOKUP(OFFSET($B:$B,,MATCH(I$4,$B$4:$F$4,0)-1),OFFSET('C. PoC Adj Factor Scoring'!$E$5:$J$282,,MATCH(I$4,'C. PoC Adj Factor Scoring'!$E$3:$AH$3,0)-1),MATCH(I$2&\" Score\",'C. PoC Adj Factor Scoring'!$E$4:$J$4,0),TRUE)","v":1},{"$f":"VLOOKUP(OFFSET($B:$B,,MATCH(J$4,$B$4:$F$4,0)-1),OFFSET('C. PoC Adj Factor Scoring'!$E$5:$J$282,,MATCH(J$4,'C. PoC Adj Factor Scoring'!$E$3:$AH$3,0)-1),MATCH(J$2&\" Score\",'C. PoC Adj Factor Scoring'!$E$4:$J$4,0),TRUE)","v":1},{"$f":"VLOOKUP(OFFSET($B:$B,,MATCH(K$4,$B$4:$F$4,0)-1),OFFSET('C. PoC Adj Factor Scoring'!$E$5:$J$282,,MATCH(K$4,'C. PoC Adj Factor Scoring'!$E$3:$AH$3,0)-1),MATCH(K$2&\" Score\",'C. PoC Adj Factor Scoring'!$E$4:$J$4,0),TRUE)","v":1},{"$f":"VLOOKUP(OFFSET($B:$B,,MATCH(L$4,$B$4:$F$4,0)-1),OFFSET('C. PoC Adj Factor Scoring'!$E$5:$J$282,,MATCH(L$4,'C. PoC Adj Factor Scoring'!$E$3:$AH$3,0)-1),MATCH(L$2&\" Score\",'C. PoC Adj Factor Scoring'!$E$4:$J$4,0),TRUE)","v":1},{"$f":"VLOOKUP(OFFSET($B:$B,,MATCH(M$4,$B$4:$F$4,0)-1),OFFSET('C. PoC Adj Factor Scoring'!$E$5:$J$282,,MATCH(M$4,'C. PoC Adj Factor Scoring'!$E$3:$AH$3,0)-1),MATCH(M$2&\" Score\",'C. PoC Adj Factor Scoring'!$E$4:$J$4,0),TRUE)","v":1},{"$f":"VLOOKUP(OFFSET($B:$B,,MATCH(N$4,$B$4:$F$4,0)-1),OFFSET('C. PoC Adj Factor Scoring'!$E$5:$J$282,,MATCH(N$4,'C. PoC Adj Factor Scoring'!$E$3:$AH$3,0)-1),MATCH(N$2&\" Score\",'C. PoC Adj Factor Scoring'!$E$4:$J$4,0),TRUE)","v":1},{"$f":"VLOOKUP(OFFSET($B:$B,,MATCH(O$4,$B$4:$F$4,0)-1),OFFSET('C. PoC Adj Factor Scoring'!$E$5:$J$282,,MATCH(O$4,'C. PoC Adj Factor Scoring'!$E$3:$AH$3,0)-1),MATCH(O$2&\" Score\",'C. PoC Adj Factor Scoring'!$E$4:$J$4,0),TRUE)","v":1},{"$f":"VLOOKUP(OFFSET($B:$B,,MATCH(P$4,$B$4:$F$4,0)-1),OFFSET('C. PoC Adj Factor Scoring'!$E$5:$J$282,,MATCH(P$4,'C. PoC Adj Factor Scoring'!$E$3:$AH$3,0)-1),MATCH(P$2&\" Score\",'C. PoC Adj Factor Scoring'!$E$4:$J$4,0),TRUE)","v":1},{"$f":"VLOOKUP(OFFSET($B:$B,,MATCH(Q$4,$B$4:$F$4,0)-1),OFFSET('C. PoC Adj Factor Scoring'!$E$5:$J$282,,MATCH(Q$4,'C. PoC Adj Factor Scoring'!$E$3:$AH$3,0)-1),MATCH(Q$2&\" Score\",'C. PoC Adj Factor Scoring'!$E$4:$J$4,0),TRUE)","v":1},{"$f":"VLOOKUP(OFFSET($B:$B,,MATCH(R$4,$B$4:$F$4,0)-1),OFFSET('C. PoC Adj Factor Scoring'!$E$5:$J$282,,MATCH(R$4,'C. PoC Adj Factor Scoring'!$E$3:$AH$3,0)-1),MATCH(R$2&\" Score\",'C. PoC Adj Factor Scoring'!$E$4:$J$4,0),TRUE)","v":1},{"$f":"VLOOKUP(OFFSET($B:$B,,MATCH(S$4,$B$4:$F$4,0)-1),OFFSET('C. PoC Adj Factor Scoring'!$E$5:$J$282,,MATCH(S$4,'C. PoC Adj Factor Scoring'!$E$3:$AH$3,0)-1),MATCH(S$2&\" Score\",'C. PoC Adj Factor Scoring'!$E$4:$J$4,0),TRUE)","v":1},{"$f":"VLOOKUP(OFFSET($B:$B,,MATCH(T$4,$B$4:$F$4,0)-1),OFFSET('C. PoC Adj Factor Scoring'!$E$5:$J$282,,MATCH(T$4,'C. PoC Adj Factor Scoring'!$E$3:$AH$3,0)-1),MATCH(T$2&\" Score\",'C. PoC Adj Factor Scoring'!$E$4:$J$4,0),TRUE)","v":1},{"$f":"VLOOKUP(OFFSET($B:$B,,MATCH(U$4,$B$4:$F$4,0)-1),OFFSET('C. PoC Adj Factor Scoring'!$E$5:$J$282,,MATCH(U$4,'C. PoC Adj Factor Scoring'!$E$3:$AH$3,0)-1),MATCH(U$2&\" Score\",'C. PoC Adj Factor Scoring'!$E$4:$J$4,0),TRUE)","v":1},{"$f":"VLOOKUP(OFFSET($B:$B,,MATCH(V$4,$B$4:$F$4,0)-1),OFFSET('C. PoC Adj Factor Scoring'!$E$5:$J$282,,MATCH(V$4,'C. PoC Adj Factor Scoring'!$E$3:$AH$3,0)-1),MATCH(V$2&\" Score\",'C. PoC Adj Factor Scoring'!$E$4:$J$4,0),TRUE)","v":1},{"$f":"VLOOKUP(OFFSET($B:$B,,MATCH(W$4,$B$4:$F$4,0)-1),OFFSET('C. PoC Adj Factor Scoring'!$E$5:$J$282,,MATCH(W$4,'C. PoC Adj Factor Scoring'!$E$3:$AH$3,0)-1),MATCH(W$2&\" Score\",'C. PoC Adj Factor Scoring'!$E$4:$J$4,0),TRUE)","v":1},{"$f":"VLOOKUP(OFFSET($B:$B,,MATCH(X$4,$B$4:$F$4,0)-1),OFFSET('C. PoC Adj Factor Scoring'!$E$5:$J$282,,MATCH(X$4,'C. PoC Adj Factor Scoring'!$E$3:$AH$3,0)-1),MATCH(X$2&\" Score\",'C. PoC Adj Factor Scoring'!$E$4:$J$4,0),TRUE)","v":1},{"$f":"VLOOKUP(OFFSET($B:$B,,MATCH(Y$4,$B$4:$F$4,0)-1),OFFSET('C. PoC Adj Factor Scoring'!$E$5:$J$282,,MATCH(Y$4,'C. PoC Adj Factor Scoring'!$E$3:$AH$3,0)-1),MATCH(Y$2&\" Score\",'C. PoC Adj Factor Scoring'!$E$4:$J$4,0),TRUE)","v":1},{"$f":"VLOOKUP(OFFSET($B:$B,,MATCH(Z$4,$B$4:$F$4,0)-1),OFFSET('C. PoC Adj Factor Scoring'!$E$5:$J$282,,MATCH(Z$4,'C. PoC Adj Factor Scoring'!$E$3:$AH$3,0)-1),MATCH(Z$2&\" Score\",'C. PoC Adj Factor Scoring'!$E$4:$J$4,0),TRUE)","v":1},{"$f":"VLOOKUP(OFFSET($B:$B,,MATCH(AA$4,$B$4:$F$4,0)-1),OFFSET('C. PoC Adj Factor Scoring'!$E$5:$J$282,,MATCH(AA$4,'C. PoC Adj Factor Scoring'!$E$3:$AH$3,0)-1),MATCH(AA$2&\" Score\",'C. PoC Adj Factor Scoring'!$E$4:$J$4,0),TRUE)","v":3},{"$f":"VLOOKUP(OFFSET($B:$B,,MATCH(AB$4,$B$4:$F$4,0)-1),OFFSET('C. PoC Adj Factor Scoring'!$E$5:$J$282,,MATCH(AB$4,'C. PoC Adj Factor Scoring'!$E$3:$AH$3,0)-1),MATCH(AB$2&\" Score\",'C. PoC Adj Factor Scoring'!$E$4:$J$4,0),TRUE)","v":1},{"$f":"VLOOKUP(OFFSET($B:$B,,MATCH(AC$4,$B$4:$F$4,0)-1),OFFSET('C. PoC Adj Factor Scoring'!$E$5:$J$282,,MATCH(AC$4,'C. PoC Adj Factor Scoring'!$E$3:$AH$3,0)-1),MATCH(AC$2&\" Score\",'C. PoC Adj Factor Scoring'!$E$4:$J$4,0),TRUE)","v":1},{"$f":"VLOOKUP(OFFSET($B:$B,,MATCH(AD$4,$B$4:$F$4,0)-1),OFFSET('C. PoC Adj Factor Scoring'!$E$5:$J$282,,MATCH(AD$4,'C. PoC Adj Factor Scoring'!$E$3:$AH$3,0)-1),MATCH(AD$2&\" Score\",'C. PoC Adj Factor Scoring'!$E$4:$J$4,0),TRUE)","v":1},{"$f":"VLOOKUP(OFFSET($B:$B,,MATCH(AE$4,$B$4:$F$4,0)-1),OFFSET('C. PoC Adj Factor Scoring'!$E$5:$J$282,,MATCH(AE$4,'C. PoC Adj Factor Scoring'!$E$3:$AH$3,0)-1),MATCH(AE$2&\" Score\",'C. PoC Adj Factor Scoring'!$E$4:$J$4,0),TRUE)","v":1}]
[{"$f":"'A. Population Info'!A459","v":1001474075},{"$f":"'A. Population Info'!L459","v":"OIL"},{"$f":"'A. Population Info'!M459","v":0},{"$f":"'A. Population Info'!N459","v":0},{"$f":"'A. Population Info'!O459","v":0},{"$f":"'A. Population Info'!P459","v":0},{"$f":"VLOOKUP(OFFSET($B:$B,,MATCH(G$4,$B$4:$F$4,0)-1),OFFSET('C. PoC Adj Factor Scoring'!$E$5:$J$282,,MATCH(G$4,'C. PoC Adj Factor Scoring'!$E$3:$AH$3,0)-1),MATCH(G$2&\" Score\",'C. PoC Adj Factor Scoring'!$E$4:$J$4,0),TRUE)","v":4},{"$f":"VLOOKUP(OFFSET($B:$B,,MATCH(H$4,$B$4:$F$4,0)-1),OFFSET('C. PoC Adj Factor Scoring'!$E$5:$J$282,,MATCH(H$4,'C. PoC Adj Factor Scoring'!$E$3:$AH$3,0)-1),MATCH(H$2&\" Score\",'C. PoC Adj Factor Scoring'!$E$4:$J$4,0),TRUE)","v":1},{"$f":"VLOOKUP(OFFSET($B:$B,,MATCH(I$4,$B$4:$F$4,0)-1),OFFSET('C. PoC Adj Factor Scoring'!$E$5:$J$282,,MATCH(I$4,'C. PoC Adj Factor Scoring'!$E$3:$AH$3,0)-1),MATCH(I$2&\" Score\",'C. PoC Adj Factor Scoring'!$E$4:$J$4,0),TRUE)","v":1},{"$f":"VLOOKUP(OFFSET($B:$B,,MATCH(J$4,$B$4:$F$4,0)-1),OFFSET('C. PoC Adj Factor Scoring'!$E$5:$J$282,,MATCH(J$4,'C. PoC Adj Factor Scoring'!$E$3:$AH$3,0)-1),MATCH(J$2&\" Score\",'C. PoC Adj Factor Scoring'!$E$4:$J$4,0),TRUE)","v":1},{"$f":"VLOOKUP(OFFSET($B:$B,,MATCH(K$4,$B$4:$F$4,0)-1),OFFSET('C. PoC Adj Factor Scoring'!$E$5:$J$282,,MATCH(K$4,'C. PoC Adj Factor Scoring'!$E$3:$AH$3,0)-1),MATCH(K$2&\" Score\",'C. PoC Adj Factor Scoring'!$E$4:$J$4,0),TRUE)","v":1},{"$f":"VLOOKUP(OFFSET($B:$B,,MATCH(L$4,$B$4:$F$4,0)-1),OFFSET('C. PoC Adj Factor Scoring'!$E$5:$J$282,,MATCH(L$4,'C. PoC Adj Factor Scoring'!$E$3:$AH$3,0)-1),MATCH(L$2&\" Score\",'C. PoC Adj Factor Scoring'!$E$4:$J$4,0),TRUE)","v":1},{"$f":"VLOOKUP(OFFSET($B:$B,,MATCH(M$4,$B$4:$F$4,0)-1),OFFSET('C. PoC Adj Factor Scoring'!$E$5:$J$282,,MATCH(M$4,'C. PoC Adj Factor Scoring'!$E$3:$AH$3,0)-1),MATCH(M$2&\" Score\",'C. PoC Adj Factor Scoring'!$E$4:$J$4,0),TRUE)","v":1},{"$f":"VLOOKUP(OFFSET($B:$B,,MATCH(N$4,$B$4:$F$4,0)-1),OFFSET('C. PoC Adj Factor Scoring'!$E$5:$J$282,,MATCH(N$4,'C. PoC Adj Factor Scoring'!$E$3:$AH$3,0)-1),MATCH(N$2&\" Score\",'C. PoC Adj Factor Scoring'!$E$4:$J$4,0),TRUE)","v":1},{"$f":"VLOOKUP(OFFSET($B:$B,,MATCH(O$4,$B$4:$F$4,0)-1),OFFSET('C. PoC Adj Factor Scoring'!$E$5:$J$282,,MATCH(O$4,'C. PoC Adj Factor Scoring'!$E$3:$AH$3,0)-1),MATCH(O$2&\" Score\",'C. PoC Adj Factor Scoring'!$E$4:$J$4,0),TRUE)","v":1},{"$f":"VLOOKUP(OFFSET($B:$B,,MATCH(P$4,$B$4:$F$4,0)-1),OFFSET('C. PoC Adj Factor Scoring'!$E$5:$J$282,,MATCH(P$4,'C. PoC Adj Factor Scoring'!$E$3:$AH$3,0)-1),MATCH(P$2&\" Score\",'C. PoC Adj Factor Scoring'!$E$4:$J$4,0),TRUE)","v":1},{"$f":"VLOOKUP(OFFSET($B:$B,,MATCH(Q$4,$B$4:$F$4,0)-1),OFFSET('C. PoC Adj Factor Scoring'!$E$5:$J$282,,MATCH(Q$4,'C. PoC Adj Factor Scoring'!$E$3:$AH$3,0)-1),MATCH(Q$2&\" Score\",'C. PoC Adj Factor Scoring'!$E$4:$J$4,0),TRUE)","v":1},{"$f":"VLOOKUP(OFFSET($B:$B,,MATCH(R$4,$B$4:$F$4,0)-1),OFFSET('C. PoC Adj Factor Scoring'!$E$5:$J$282,,MATCH(R$4,'C. PoC Adj Factor Scoring'!$E$3:$AH$3,0)-1),MATCH(R$2&\" Score\",'C. PoC Adj Factor Scoring'!$E$4:$J$4,0),TRUE)","v":1},{"$f":"VLOOKUP(OFFSET($B:$B,,MATCH(S$4,$B$4:$F$4,0)-1),OFFSET('C. PoC Adj Factor Scoring'!$E$5:$J$282,,MATCH(S$4,'C. PoC Adj Factor Scoring'!$E$3:$AH$3,0)-1),MATCH(S$2&\" Score\",'C. PoC Adj Factor Scoring'!$E$4:$J$4,0),TRUE)","v":1},{"$f":"VLOOKUP(OFFSET($B:$B,,MATCH(T$4,$B$4:$F$4,0)-1),OFFSET('C. PoC Adj Factor Scoring'!$E$5:$J$282,,MATCH(T$4,'C. PoC Adj Factor Scoring'!$E$3:$AH$3,0)-1),MATCH(T$2&\" Score\",'C. PoC Adj Factor Scoring'!$E$4:$J$4,0),TRUE)","v":1},{"$f":"VLOOKUP(OFFSET($B:$B,,MATCH(U$4,$B$4:$F$4,0)-1),OFFSET('C. PoC Adj Factor Scoring'!$E$5:$J$282,,MATCH(U$4,'C. PoC Adj Factor Scoring'!$E$3:$AH$3,0)-1),MATCH(U$2&\" Score\",'C. PoC Adj Factor Scoring'!$E$4:$J$4,0),TRUE)","v":1},{"$f":"VLOOKUP(OFFSET($B:$B,,MATCH(V$4,$B$4:$F$4,0)-1),OFFSET('C. PoC Adj Factor Scoring'!$E$5:$J$282,,MATCH(V$4,'C. PoC Adj Factor Scoring'!$E$3:$AH$3,0)-1),MATCH(V$2&\" Score\",'C. PoC Adj Factor Scoring'!$E$4:$J$4,0),TRUE)","v":1},{"$f":"VLOOKUP(OFFSET($B:$B,,MATCH(W$4,$B$4:$F$4,0)-1),OFFSET('C. PoC Adj Factor Scoring'!$E$5:$J$282,,MATCH(W$4,'C. PoC Adj Factor Scoring'!$E$3:$AH$3,0)-1),MATCH(W$2&\" Score\",'C. PoC Adj Factor Scoring'!$E$4:$J$4,0),TRUE)","v":1},{"$f":"VLOOKUP(OFFSET($B:$B,,MATCH(X$4,$B$4:$F$4,0)-1),OFFSET('C. PoC Adj Factor Scoring'!$E$5:$J$282,,MATCH(X$4,'C. PoC Adj Factor Scoring'!$E$3:$AH$3,0)-1),MATCH(X$2&\" Score\",'C. PoC Adj Factor Scoring'!$E$4:$J$4,0),TRUE)","v":1},{"$f":"VLOOKUP(OFFSET($B:$B,,MATCH(Y$4,$B$4:$F$4,0)-1),OFFSET('C. PoC Adj Factor Scoring'!$E$5:$J$282,,MATCH(Y$4,'C. PoC Adj Factor Scoring'!$E$3:$AH$3,0)-1),MATCH(Y$2&\" Score\",'C. PoC Adj Factor Scoring'!$E$4:$J$4,0),TRUE)","v":1},{"$f":"VLOOKUP(OFFSET($B:$B,,MATCH(Z$4,$B$4:$F$4,0)-1),OFFSET('C. PoC Adj Factor Scoring'!$E$5:$J$282,,MATCH(Z$4,'C. PoC Adj Factor Scoring'!$E$3:$AH$3,0)-1),MATCH(Z$2&\" Score\",'C. PoC Adj Factor Scoring'!$E$4:$J$4,0),TRUE)","v":1},{"$f":"VLOOKUP(OFFSET($B:$B,,MATCH(AA$4,$B$4:$F$4,0)-1),OFFSET('C. PoC Adj Factor Scoring'!$E$5:$J$282,,MATCH(AA$4,'C. PoC Adj Factor Scoring'!$E$3:$AH$3,0)-1),MATCH(AA$2&\" Score\",'C. PoC Adj Factor Scoring'!$E$4:$J$4,0),TRUE)","v":3},{"$f":"VLOOKUP(OFFSET($B:$B,,MATCH(AB$4,$B$4:$F$4,0)-1),OFFSET('C. PoC Adj Factor Scoring'!$E$5:$J$282,,MATCH(AB$4,'C. PoC Adj Factor Scoring'!$E$3:$AH$3,0)-1),MATCH(AB$2&\" Score\",'C. PoC Adj Factor Scoring'!$E$4:$J$4,0),TRUE)","v":1},{"$f":"VLOOKUP(OFFSET($B:$B,,MATCH(AC$4,$B$4:$F$4,0)-1),OFFSET('C. PoC Adj Factor Scoring'!$E$5:$J$282,,MATCH(AC$4,'C. PoC Adj Factor Scoring'!$E$3:$AH$3,0)-1),MATCH(AC$2&\" Score\",'C. PoC Adj Factor Scoring'!$E$4:$J$4,0),TRUE)","v":1},{"$f":"VLOOKUP(OFFSET($B:$B,,MATCH(AD$4,$B$4:$F$4,0)-1),OFFSET('C. PoC Adj Factor Scoring'!$E$5:$J$282,,MATCH(AD$4,'C. PoC Adj Factor Scoring'!$E$3:$AH$3,0)-1),MATCH(AD$2&\" Score\",'C. PoC Adj Factor Scoring'!$E$4:$J$4,0),TRUE)","v":1},{"$f":"VLOOKUP(OFFSET($B:$B,,MATCH(AE$4,$B$4:$F$4,0)-1),OFFSET('C. PoC Adj Factor Scoring'!$E$5:$J$282,,MATCH(AE$4,'C. PoC Adj Factor Scoring'!$E$3:$AH$3,0)-1),MATCH(AE$2&\" Score\",'C. PoC Adj Factor Scoring'!$E$4:$J$4,0),TRUE)","v":1}]
[{"$f":"'A. Population Info'!A460","v":1001474076},{"$f":"'A. Population Info'!L460","v":"OIL"},{"$f":"'A. Population Info'!M460","v":0},{"$f":"'A. Population Info'!N460","v":0},{"$f":"'A. Population Info'!O460","v":0},{"$f":"'A. Population Info'!P460","v":0},{"$f":"VLOOKUP(OFFSET($B:$B,,MATCH(G$4,$B$4:$F$4,0)-1),OFFSET('C. PoC Adj Factor Scoring'!$E$5:$J$282,,MATCH(G$4,'C. PoC Adj Factor Scoring'!$E$3:$AH$3,0)-1),MATCH(G$2&\" Score\",'C. PoC Adj Factor Scoring'!$E$4:$J$4,0),TRUE)","v":4},{"$f":"VLOOKUP(OFFSET($B:$B,,MATCH(H$4,$B$4:$F$4,0)-1),OFFSET('C. PoC Adj Factor Scoring'!$E$5:$J$282,,MATCH(H$4,'C. PoC Adj Factor Scoring'!$E$3:$AH$3,0)-1),MATCH(H$2&\" Score\",'C. PoC Adj Factor Scoring'!$E$4:$J$4,0),TRUE)","v":1},{"$f":"VLOOKUP(OFFSET($B:$B,,MATCH(I$4,$B$4:$F$4,0)-1),OFFSET('C. PoC Adj Factor Scoring'!$E$5:$J$282,,MATCH(I$4,'C. PoC Adj Factor Scoring'!$E$3:$AH$3,0)-1),MATCH(I$2&\" Score\",'C. PoC Adj Factor Scoring'!$E$4:$J$4,0),TRUE)","v":1},{"$f":"VLOOKUP(OFFSET($B:$B,,MATCH(J$4,$B$4:$F$4,0)-1),OFFSET('C. PoC Adj Factor Scoring'!$E$5:$J$282,,MATCH(J$4,'C. PoC Adj Factor Scoring'!$E$3:$AH$3,0)-1),MATCH(J$2&\" Score\",'C. PoC Adj Factor Scoring'!$E$4:$J$4,0),TRUE)","v":1},{"$f":"VLOOKUP(OFFSET($B:$B,,MATCH(K$4,$B$4:$F$4,0)-1),OFFSET('C. PoC Adj Factor Scoring'!$E$5:$J$282,,MATCH(K$4,'C. PoC Adj Factor Scoring'!$E$3:$AH$3,0)-1),MATCH(K$2&\" Score\",'C. PoC Adj Factor Scoring'!$E$4:$J$4,0),TRUE)","v":1},{"$f":"VLOOKUP(OFFSET($B:$B,,MATCH(L$4,$B$4:$F$4,0)-1),OFFSET('C. PoC Adj Factor Scoring'!$E$5:$J$282,,MATCH(L$4,'C. PoC Adj Factor Scoring'!$E$3:$AH$3,0)-1),MATCH(L$2&\" Score\",'C. PoC Adj Factor Scoring'!$E$4:$J$4,0),TRUE)","v":1},{"$f":"VLOOKUP(OFFSET($B:$B,,MATCH(M$4,$B$4:$F$4,0)-1),OFFSET('C. PoC Adj Factor Scoring'!$E$5:$J$282,,MATCH(M$4,'C. PoC Adj Factor Scoring'!$E$3:$AH$3,0)-1),MATCH(M$2&\" Score\",'C. PoC Adj Factor Scoring'!$E$4:$J$4,0),TRUE)","v":1},{"$f":"VLOOKUP(OFFSET($B:$B,,MATCH(N$4,$B$4:$F$4,0)-1),OFFSET('C. PoC Adj Factor Scoring'!$E$5:$J$282,,MATCH(N$4,'C. PoC Adj Factor Scoring'!$E$3:$AH$3,0)-1),MATCH(N$2&\" Score\",'C. PoC Adj Factor Scoring'!$E$4:$J$4,0),TRUE)","v":1},{"$f":"VLOOKUP(OFFSET($B:$B,,MATCH(O$4,$B$4:$F$4,0)-1),OFFSET('C. PoC Adj Factor Scoring'!$E$5:$J$282,,MATCH(O$4,'C. PoC Adj Factor Scoring'!$E$3:$AH$3,0)-1),MATCH(O$2&\" Score\",'C. PoC Adj Factor Scoring'!$E$4:$J$4,0),TRUE)","v":1},{"$f":"VLOOKUP(OFFSET($B:$B,,MATCH(P$4,$B$4:$F$4,0)-1),OFFSET('C. PoC Adj Factor Scoring'!$E$5:$J$282,,MATCH(P$4,'C. PoC Adj Factor Scoring'!$E$3:$AH$3,0)-1),MATCH(P$2&\" Score\",'C. PoC Adj Factor Scoring'!$E$4:$J$4,0),TRUE)","v":1},{"$f":"VLOOKUP(OFFSET($B:$B,,MATCH(Q$4,$B$4:$F$4,0)-1),OFFSET('C. PoC Adj Factor Scoring'!$E$5:$J$282,,MATCH(Q$4,'C. PoC Adj Factor Scoring'!$E$3:$AH$3,0)-1),MATCH(Q$2&\" Score\",'C. PoC Adj Factor Scoring'!$E$4:$J$4,0),TRUE)","v":1},{"$f":"VLOOKUP(OFFSET($B:$B,,MATCH(R$4,$B$4:$F$4,0)-1),OFFSET('C. PoC Adj Factor Scoring'!$E$5:$J$282,,MATCH(R$4,'C. PoC Adj Factor Scoring'!$E$3:$AH$3,0)-1),MATCH(R$2&\" Score\",'C. PoC Adj Factor Scoring'!$E$4:$J$4,0),TRUE)","v":1},{"$f":"VLOOKUP(OFFSET($B:$B,,MATCH(S$4,$B$4:$F$4,0)-1),OFFSET('C. PoC Adj Factor Scoring'!$E$5:$J$282,,MATCH(S$4,'C. PoC Adj Factor Scoring'!$E$3:$AH$3,0)-1),MATCH(S$2&\" Score\",'C. PoC Adj Factor Scoring'!$E$4:$J$4,0),TRUE)","v":1},{"$f":"VLOOKUP(OFFSET($B:$B,,MATCH(T$4,$B$4:$F$4,0)-1),OFFSET('C. PoC Adj Factor Scoring'!$E$5:$J$282,,MATCH(T$4,'C. PoC Adj Factor Scoring'!$E$3:$AH$3,0)-1),MATCH(T$2&\" Score\",'C. PoC Adj Factor Scoring'!$E$4:$J$4,0),TRUE)","v":1},{"$f":"VLOOKUP(OFFSET($B:$B,,MATCH(U$4,$B$4:$F$4,0)-1),OFFSET('C. PoC Adj Factor Scoring'!$E$5:$J$282,,MATCH(U$4,'C. PoC Adj Factor Scoring'!$E$3:$AH$3,0)-1),MATCH(U$2&\" Score\",'C. PoC Adj Factor Scoring'!$E$4:$J$4,0),TRUE)","v":1},{"$f":"VLOOKUP(OFFSET($B:$B,,MATCH(V$4,$B$4:$F$4,0)-1),OFFSET('C. PoC Adj Factor Scoring'!$E$5:$J$282,,MATCH(V$4,'C. PoC Adj Factor Scoring'!$E$3:$AH$3,0)-1),MATCH(V$2&\" Score\",'C. PoC Adj Factor Scoring'!$E$4:$J$4,0),TRUE)","v":1},{"$f":"VLOOKUP(OFFSET($B:$B,,MATCH(W$4,$B$4:$F$4,0)-1),OFFSET('C. PoC Adj Factor Scoring'!$E$5:$J$282,,MATCH(W$4,'C. PoC Adj Factor Scoring'!$E$3:$AH$3,0)-1),MATCH(W$2&\" Score\",'C. PoC Adj Factor Scoring'!$E$4:$J$4,0),TRUE)","v":1},{"$f":"VLOOKUP(OFFSET($B:$B,,MATCH(X$4,$B$4:$F$4,0)-1),OFFSET('C. PoC Adj Factor Scoring'!$E$5:$J$282,,MATCH(X$4,'C. PoC Adj Factor Scoring'!$E$3:$AH$3,0)-1),MATCH(X$2&\" Score\",'C. PoC Adj Factor Scoring'!$E$4:$J$4,0),TRUE)","v":1},{"$f":"VLOOKUP(OFFSET($B:$B,,MATCH(Y$4,$B$4:$F$4,0)-1),OFFSET('C. PoC Adj Factor Scoring'!$E$5:$J$282,,MATCH(Y$4,'C. PoC Adj Factor Scoring'!$E$3:$AH$3,0)-1),MATCH(Y$2&\" Score\",'C. PoC Adj Factor Scoring'!$E$4:$J$4,0),TRUE)","v":1},{"$f":"VLOOKUP(OFFSET($B:$B,,MATCH(Z$4,$B$4:$F$4,0)-1),OFFSET('C. PoC Adj Factor Scoring'!$E$5:$J$282,,MATCH(Z$4,'C. PoC Adj Factor Scoring'!$E$3:$AH$3,0)-1),MATCH(Z$2&\" Score\",'C. PoC Adj Factor Scoring'!$E$4:$J$4,0),TRUE)","v":1},{"$f":"VLOOKUP(OFFSET($B:$B,,MATCH(AA$4,$B$4:$F$4,0)-1),OFFSET('C. PoC Adj Factor Scoring'!$E$5:$J$282,,MATCH(AA$4,'C. PoC Adj Factor Scoring'!$E$3:$AH$3,0)-1),MATCH(AA$2&\" Score\",'C. PoC Adj Factor Scoring'!$E$4:$J$4,0),TRUE)","v":3},{"$f":"VLOOKUP(OFFSET($B:$B,,MATCH(AB$4,$B$4:$F$4,0)-1),OFFSET('C. PoC Adj Factor Scoring'!$E$5:$J$282,,MATCH(AB$4,'C. PoC Adj Factor Scoring'!$E$3:$AH$3,0)-1),MATCH(AB$2&\" Score\",'C. PoC Adj Factor Scoring'!$E$4:$J$4,0),TRUE)","v":1},{"$f":"VLOOKUP(OFFSET($B:$B,,MATCH(AC$4,$B$4:$F$4,0)-1),OFFSET('C. PoC Adj Factor Scoring'!$E$5:$J$282,,MATCH(AC$4,'C. PoC Adj Factor Scoring'!$E$3:$AH$3,0)-1),MATCH(AC$2&\" Score\",'C. PoC Adj Factor Scoring'!$E$4:$J$4,0),TRUE)","v":1},{"$f":"VLOOKUP(OFFSET($B:$B,,MATCH(AD$4,$B$4:$F$4,0)-1),OFFSET('C. PoC Adj Factor Scoring'!$E$5:$J$282,,MATCH(AD$4,'C. PoC Adj Factor Scoring'!$E$3:$AH$3,0)-1),MATCH(AD$2&\" Score\",'C. PoC Adj Factor Scoring'!$E$4:$J$4,0),TRUE)","v":1},{"$f":"VLOOKUP(OFFSET($B:$B,,MATCH(AE$4,$B$4:$F$4,0)-1),OFFSET('C. PoC Adj Factor Scoring'!$E$5:$J$282,,MATCH(AE$4,'C. PoC Adj Factor Scoring'!$E$3:$AH$3,0)-1),MATCH(AE$2&\" Score\",'C. PoC Adj Factor Scoring'!$E$4:$J$4,0),TRUE)","v":1}]
[{"$f":"'A. Population Info'!A461","v":1001476181},{"$f":"'A. Population Info'!L461","v":"OIL"},{"$f":"'A. Population Info'!M461","v":0},{"$f":"'A. Population Info'!N461","v":0},{"$f":"'A. Population Info'!O461","v":0},{"$f":"'A. Population Info'!P461","v":0},{"$f":"VLOOKUP(OFFSET($B:$B,,MATCH(G$4,$B$4:$F$4,0)-1),OFFSET('C. PoC Adj Factor Scoring'!$E$5:$J$282,,MATCH(G$4,'C. PoC Adj Factor Scoring'!$E$3:$AH$3,0)-1),MATCH(G$2&\" Score\",'C. PoC Adj Factor Scoring'!$E$4:$J$4,0),TRUE)","v":4},{"$f":"VLOOKUP(OFFSET($B:$B,,MATCH(H$4,$B$4:$F$4,0)-1),OFFSET('C. PoC Adj Factor Scoring'!$E$5:$J$282,,MATCH(H$4,'C. PoC Adj Factor Scoring'!$E$3:$AH$3,0)-1),MATCH(H$2&\" Score\",'C. PoC Adj Factor Scoring'!$E$4:$J$4,0),TRUE)","v":1},{"$f":"VLOOKUP(OFFSET($B:$B,,MATCH(I$4,$B$4:$F$4,0)-1),OFFSET('C. PoC Adj Factor Scoring'!$E$5:$J$282,,MATCH(I$4,'C. PoC Adj Factor Scoring'!$E$3:$AH$3,0)-1),MATCH(I$2&\" Score\",'C. PoC Adj Factor Scoring'!$E$4:$J$4,0),TRUE)","v":1},{"$f":"VLOOKUP(OFFSET($B:$B,,MATCH(J$4,$B$4:$F$4,0)-1),OFFSET('C. PoC Adj Factor Scoring'!$E$5:$J$282,,MATCH(J$4,'C. PoC Adj Factor Scoring'!$E$3:$AH$3,0)-1),MATCH(J$2&\" Score\",'C. PoC Adj Factor Scoring'!$E$4:$J$4,0),TRUE)","v":1},{"$f":"VLOOKUP(OFFSET($B:$B,,MATCH(K$4,$B$4:$F$4,0)-1),OFFSET('C. PoC Adj Factor Scoring'!$E$5:$J$282,,MATCH(K$4,'C. PoC Adj Factor Scoring'!$E$3:$AH$3,0)-1),MATCH(K$2&\" Score\",'C. PoC Adj Factor Scoring'!$E$4:$J$4,0),TRUE)","v":1},{"$f":"VLOOKUP(OFFSET($B:$B,,MATCH(L$4,$B$4:$F$4,0)-1),OFFSET('C. PoC Adj Factor Scoring'!$E$5:$J$282,,MATCH(L$4,'C. PoC Adj Factor Scoring'!$E$3:$AH$3,0)-1),MATCH(L$2&\" Score\",'C. PoC Adj Factor Scoring'!$E$4:$J$4,0),TRUE)","v":1},{"$f":"VLOOKUP(OFFSET($B:$B,,MATCH(M$4,$B$4:$F$4,0)-1),OFFSET('C. PoC Adj Factor Scoring'!$E$5:$J$282,,MATCH(M$4,'C. PoC Adj Factor Scoring'!$E$3:$AH$3,0)-1),MATCH(M$2&\" Score\",'C. PoC Adj Factor Scoring'!$E$4:$J$4,0),TRUE)","v":1},{"$f":"VLOOKUP(OFFSET($B:$B,,MATCH(N$4,$B$4:$F$4,0)-1),OFFSET('C. PoC Adj Factor Scoring'!$E$5:$J$282,,MATCH(N$4,'C. PoC Adj Factor Scoring'!$E$3:$AH$3,0)-1),MATCH(N$2&\" Score\",'C. PoC Adj Factor Scoring'!$E$4:$J$4,0),TRUE)","v":1},{"$f":"VLOOKUP(OFFSET($B:$B,,MATCH(O$4,$B$4:$F$4,0)-1),OFFSET('C. PoC Adj Factor Scoring'!$E$5:$J$282,,MATCH(O$4,'C. PoC Adj Factor Scoring'!$E$3:$AH$3,0)-1),MATCH(O$2&\" Score\",'C. PoC Adj Factor Scoring'!$E$4:$J$4,0),TRUE)","v":1},{"$f":"VLOOKUP(OFFSET($B:$B,,MATCH(P$4,$B$4:$F$4,0)-1),OFFSET('C. PoC Adj Factor Scoring'!$E$5:$J$282,,MATCH(P$4,'C. PoC Adj Factor Scoring'!$E$3:$AH$3,0)-1),MATCH(P$2&\" Score\",'C. PoC Adj Factor Scoring'!$E$4:$J$4,0),TRUE)","v":1},{"$f":"VLOOKUP(OFFSET($B:$B,,MATCH(Q$4,$B$4:$F$4,0)-1),OFFSET('C. PoC Adj Factor Scoring'!$E$5:$J$282,,MATCH(Q$4,'C. PoC Adj Factor Scoring'!$E$3:$AH$3,0)-1),MATCH(Q$2&\" Score\",'C. PoC Adj Factor Scoring'!$E$4:$J$4,0),TRUE)","v":1},{"$f":"VLOOKUP(OFFSET($B:$B,,MATCH(R$4,$B$4:$F$4,0)-1),OFFSET('C. PoC Adj Factor Scoring'!$E$5:$J$282,,MATCH(R$4,'C. PoC Adj Factor Scoring'!$E$3:$AH$3,0)-1),MATCH(R$2&\" Score\",'C. PoC Adj Factor Scoring'!$E$4:$J$4,0),TRUE)","v":1},{"$f":"VLOOKUP(OFFSET($B:$B,,MATCH(S$4,$B$4:$F$4,0)-1),OFFSET('C. PoC Adj Factor Scoring'!$E$5:$J$282,,MATCH(S$4,'C. PoC Adj Factor Scoring'!$E$3:$AH$3,0)-1),MATCH(S$2&\" Score\",'C. PoC Adj Factor Scoring'!$E$4:$J$4,0),TRUE)","v":1},{"$f":"VLOOKUP(OFFSET($B:$B,,MATCH(T$4,$B$4:$F$4,0)-1),OFFSET('C. PoC Adj Factor Scoring'!$E$5:$J$282,,MATCH(T$4,'C. PoC Adj Factor Scoring'!$E$3:$AH$3,0)-1),MATCH(T$2&\" Score\",'C. PoC Adj Factor Scoring'!$E$4:$J$4,0),TRUE)","v":1},{"$f":"VLOOKUP(OFFSET($B:$B,,MATCH(U$4,$B$4:$F$4,0)-1),OFFSET('C. PoC Adj Factor Scoring'!$E$5:$J$282,,MATCH(U$4,'C. PoC Adj Factor Scoring'!$E$3:$AH$3,0)-1),MATCH(U$2&\" Score\",'C. PoC Adj Factor Scoring'!$E$4:$J$4,0),TRUE)","v":1},{"$f":"VLOOKUP(OFFSET($B:$B,,MATCH(V$4,$B$4:$F$4,0)-1),OFFSET('C. PoC Adj Factor Scoring'!$E$5:$J$282,,MATCH(V$4,'C. PoC Adj Factor Scoring'!$E$3:$AH$3,0)-1),MATCH(V$2&\" Score\",'C. PoC Adj Factor Scoring'!$E$4:$J$4,0),TRUE)","v":1},{"$f":"VLOOKUP(OFFSET($B:$B,,MATCH(W$4,$B$4:$F$4,0)-1),OFFSET('C. PoC Adj Factor Scoring'!$E$5:$J$282,,MATCH(W$4,'C. PoC Adj Factor Scoring'!$E$3:$AH$3,0)-1),MATCH(W$2&\" Score\",'C. PoC Adj Factor Scoring'!$E$4:$J$4,0),TRUE)","v":1},{"$f":"VLOOKUP(OFFSET($B:$B,,MATCH(X$4,$B$4:$F$4,0)-1),OFFSET('C. PoC Adj Factor Scoring'!$E$5:$J$282,,MATCH(X$4,'C. PoC Adj Factor Scoring'!$E$3:$AH$3,0)-1),MATCH(X$2&\" Score\",'C. PoC Adj Factor Scoring'!$E$4:$J$4,0),TRUE)","v":1},{"$f":"VLOOKUP(OFFSET($B:$B,,MATCH(Y$4,$B$4:$F$4,0)-1),OFFSET('C. PoC Adj Factor Scoring'!$E$5:$J$282,,MATCH(Y$4,'C. PoC Adj Factor Scoring'!$E$3:$AH$3,0)-1),MATCH(Y$2&\" Score\",'C. PoC Adj Factor Scoring'!$E$4:$J$4,0),TRUE)","v":1},{"$f":"VLOOKUP(OFFSET($B:$B,,MATCH(Z$4,$B$4:$F$4,0)-1),OFFSET('C. PoC Adj Factor Scoring'!$E$5:$J$282,,MATCH(Z$4,'C. PoC Adj Factor Scoring'!$E$3:$AH$3,0)-1),MATCH(Z$2&\" Score\",'C. PoC Adj Factor Scoring'!$E$4:$J$4,0),TRUE)","v":1},{"$f":"VLOOKUP(OFFSET($B:$B,,MATCH(AA$4,$B$4:$F$4,0)-1),OFFSET('C. PoC Adj Factor Scoring'!$E$5:$J$282,,MATCH(AA$4,'C. PoC Adj Factor Scoring'!$E$3:$AH$3,0)-1),MATCH(AA$2&\" Score\",'C. PoC Adj Factor Scoring'!$E$4:$J$4,0),TRUE)","v":3},{"$f":"VLOOKUP(OFFSET($B:$B,,MATCH(AB$4,$B$4:$F$4,0)-1),OFFSET('C. PoC Adj Factor Scoring'!$E$5:$J$282,,MATCH(AB$4,'C. PoC Adj Factor Scoring'!$E$3:$AH$3,0)-1),MATCH(AB$2&\" Score\",'C. PoC Adj Factor Scoring'!$E$4:$J$4,0),TRUE)","v":1},{"$f":"VLOOKUP(OFFSET($B:$B,,MATCH(AC$4,$B$4:$F$4,0)-1),OFFSET('C. PoC Adj Factor Scoring'!$E$5:$J$282,,MATCH(AC$4,'C. PoC Adj Factor Scoring'!$E$3:$AH$3,0)-1),MATCH(AC$2&\" Score\",'C. PoC Adj Factor Scoring'!$E$4:$J$4,0),TRUE)","v":1},{"$f":"VLOOKUP(OFFSET($B:$B,,MATCH(AD$4,$B$4:$F$4,0)-1),OFFSET('C. PoC Adj Factor Scoring'!$E$5:$J$282,,MATCH(AD$4,'C. PoC Adj Factor Scoring'!$E$3:$AH$3,0)-1),MATCH(AD$2&\" Score\",'C. PoC Adj Factor Scoring'!$E$4:$J$4,0),TRUE)","v":1},{"$f":"VLOOKUP(OFFSET($B:$B,,MATCH(AE$4,$B$4:$F$4,0)-1),OFFSET('C. PoC Adj Factor Scoring'!$E$5:$J$282,,MATCH(AE$4,'C. PoC Adj Factor Scoring'!$E$3:$AH$3,0)-1),MATCH(AE$2&\" Score\",'C. PoC Adj Factor Scoring'!$E$4:$J$4,0),TRUE)","v":1}]
[{"$f":"'A. Population Info'!A462","v":1001477684},{"$f":"'A. Population Info'!L462","v":"OIL"},{"$f":"'A. Population Info'!M462","v":0},{"$f":"'A. Population Info'!N462","v":0},{"$f":"'A. Population Info'!O462","v":0},{"$f":"'A. Population Info'!P462","v":0},{"$f":"VLOOKUP(OFFSET($B:$B,,MATCH(G$4,$B$4:$F$4,0)-1),OFFSET('C. PoC Adj Factor Scoring'!$E$5:$J$282,,MATCH(G$4,'C. PoC Adj Factor Scoring'!$E$3:$AH$3,0)-1),MATCH(G$2&\" Score\",'C. PoC Adj Factor Scoring'!$E$4:$J$4,0),TRUE)","v":4},{"$f":"VLOOKUP(OFFSET($B:$B,,MATCH(H$4,$B$4:$F$4,0)-1),OFFSET('C. PoC Adj Factor Scoring'!$E$5:$J$282,,MATCH(H$4,'C. PoC Adj Factor Scoring'!$E$3:$AH$3,0)-1),MATCH(H$2&\" Score\",'C. PoC Adj Factor Scoring'!$E$4:$J$4,0),TRUE)","v":1},{"$f":"VLOOKUP(OFFSET($B:$B,,MATCH(I$4,$B$4:$F$4,0)-1),OFFSET('C. PoC Adj Factor Scoring'!$E$5:$J$282,,MATCH(I$4,'C. PoC Adj Factor Scoring'!$E$3:$AH$3,0)-1),MATCH(I$2&\" Score\",'C. PoC Adj Factor Scoring'!$E$4:$J$4,0),TRUE)","v":1},{"$f":"VLOOKUP(OFFSET($B:$B,,MATCH(J$4,$B$4:$F$4,0)-1),OFFSET('C. PoC Adj Factor Scoring'!$E$5:$J$282,,MATCH(J$4,'C. PoC Adj Factor Scoring'!$E$3:$AH$3,0)-1),MATCH(J$2&\" Score\",'C. PoC Adj Factor Scoring'!$E$4:$J$4,0),TRUE)","v":1},{"$f":"VLOOKUP(OFFSET($B:$B,,MATCH(K$4,$B$4:$F$4,0)-1),OFFSET('C. PoC Adj Factor Scoring'!$E$5:$J$282,,MATCH(K$4,'C. PoC Adj Factor Scoring'!$E$3:$AH$3,0)-1),MATCH(K$2&\" Score\",'C. PoC Adj Factor Scoring'!$E$4:$J$4,0),TRUE)","v":1},{"$f":"VLOOKUP(OFFSET($B:$B,,MATCH(L$4,$B$4:$F$4,0)-1),OFFSET('C. PoC Adj Factor Scoring'!$E$5:$J$282,,MATCH(L$4,'C. PoC Adj Factor Scoring'!$E$3:$AH$3,0)-1),MATCH(L$2&\" Score\",'C. PoC Adj Factor Scoring'!$E$4:$J$4,0),TRUE)","v":1},{"$f":"VLOOKUP(OFFSET($B:$B,,MATCH(M$4,$B$4:$F$4,0)-1),OFFSET('C. PoC Adj Factor Scoring'!$E$5:$J$282,,MATCH(M$4,'C. PoC Adj Factor Scoring'!$E$3:$AH$3,0)-1),MATCH(M$2&\" Score\",'C. PoC Adj Factor Scoring'!$E$4:$J$4,0),TRUE)","v":1},{"$f":"VLOOKUP(OFFSET($B:$B,,MATCH(N$4,$B$4:$F$4,0)-1),OFFSET('C. PoC Adj Factor Scoring'!$E$5:$J$282,,MATCH(N$4,'C. PoC Adj Factor Scoring'!$E$3:$AH$3,0)-1),MATCH(N$2&\" Score\",'C. PoC Adj Factor Scoring'!$E$4:$J$4,0),TRUE)","v":1},{"$f":"VLOOKUP(OFFSET($B:$B,,MATCH(O$4,$B$4:$F$4,0)-1),OFFSET('C. PoC Adj Factor Scoring'!$E$5:$J$282,,MATCH(O$4,'C. PoC Adj Factor Scoring'!$E$3:$AH$3,0)-1),MATCH(O$2&\" Score\",'C. PoC Adj Factor Scoring'!$E$4:$J$4,0),TRUE)","v":1},{"$f":"VLOOKUP(OFFSET($B:$B,,MATCH(P$4,$B$4:$F$4,0)-1),OFFSET('C. PoC Adj Factor Scoring'!$E$5:$J$282,,MATCH(P$4,'C. PoC Adj Factor Scoring'!$E$3:$AH$3,0)-1),MATCH(P$2&\" Score\",'C. PoC Adj Factor Scoring'!$E$4:$J$4,0),TRUE)","v":1},{"$f":"VLOOKUP(OFFSET($B:$B,,MATCH(Q$4,$B$4:$F$4,0)-1),OFFSET('C. PoC Adj Factor Scoring'!$E$5:$J$282,,MATCH(Q$4,'C. PoC Adj Factor Scoring'!$E$3:$AH$3,0)-1),MATCH(Q$2&\" Score\",'C. PoC Adj Factor Scoring'!$E$4:$J$4,0),TRUE)","v":1},{"$f":"VLOOKUP(OFFSET($B:$B,,MATCH(R$4,$B$4:$F$4,0)-1),OFFSET('C. PoC Adj Factor Scoring'!$E$5:$J$282,,MATCH(R$4,'C. PoC Adj Factor Scoring'!$E$3:$AH$3,0)-1),MATCH(R$2&\" Score\",'C. PoC Adj Factor Scoring'!$E$4:$J$4,0),TRUE)","v":1},{"$f":"VLOOKUP(OFFSET($B:$B,,MATCH(S$4,$B$4:$F$4,0)-1),OFFSET('C. PoC Adj Factor Scoring'!$E$5:$J$282,,MATCH(S$4,'C. PoC Adj Factor Scoring'!$E$3:$AH$3,0)-1),MATCH(S$2&\" Score\",'C. PoC Adj Factor Scoring'!$E$4:$J$4,0),TRUE)","v":1},{"$f":"VLOOKUP(OFFSET($B:$B,,MATCH(T$4,$B$4:$F$4,0)-1),OFFSET('C. PoC Adj Factor Scoring'!$E$5:$J$282,,MATCH(T$4,'C. PoC Adj Factor Scoring'!$E$3:$AH$3,0)-1),MATCH(T$2&\" Score\",'C. PoC Adj Factor Scoring'!$E$4:$J$4,0),TRUE)","v":1},{"$f":"VLOOKUP(OFFSET($B:$B,,MATCH(U$4,$B$4:$F$4,0)-1),OFFSET('C. PoC Adj Factor Scoring'!$E$5:$J$282,,MATCH(U$4,'C. PoC Adj Factor Scoring'!$E$3:$AH$3,0)-1),MATCH(U$2&\" Score\",'C. PoC Adj Factor Scoring'!$E$4:$J$4,0),TRUE)","v":1},{"$f":"VLOOKUP(OFFSET($B:$B,,MATCH(V$4,$B$4:$F$4,0)-1),OFFSET('C. PoC Adj Factor Scoring'!$E$5:$J$282,,MATCH(V$4,'C. PoC Adj Factor Scoring'!$E$3:$AH$3,0)-1),MATCH(V$2&\" Score\",'C. PoC Adj Factor Scoring'!$E$4:$J$4,0),TRUE)","v":1},{"$f":"VLOOKUP(OFFSET($B:$B,,MATCH(W$4,$B$4:$F$4,0)-1),OFFSET('C. PoC Adj Factor Scoring'!$E$5:$J$282,,MATCH(W$4,'C. PoC Adj Factor Scoring'!$E$3:$AH$3,0)-1),MATCH(W$2&\" Score\",'C. PoC Adj Factor Scoring'!$E$4:$J$4,0),TRUE)","v":1},{"$f":"VLOOKUP(OFFSET($B:$B,,MATCH(X$4,$B$4:$F$4,0)-1),OFFSET('C. PoC Adj Factor Scoring'!$E$5:$J$282,,MATCH(X$4,'C. PoC Adj Factor Scoring'!$E$3:$AH$3,0)-1),MATCH(X$2&\" Score\",'C. PoC Adj Factor Scoring'!$E$4:$J$4,0),TRUE)","v":1},{"$f":"VLOOKUP(OFFSET($B:$B,,MATCH(Y$4,$B$4:$F$4,0)-1),OFFSET('C. PoC Adj Factor Scoring'!$E$5:$J$282,,MATCH(Y$4,'C. PoC Adj Factor Scoring'!$E$3:$AH$3,0)-1),MATCH(Y$2&\" Score\",'C. PoC Adj Factor Scoring'!$E$4:$J$4,0),TRUE)","v":1},{"$f":"VLOOKUP(OFFSET($B:$B,,MATCH(Z$4,$B$4:$F$4,0)-1),OFFSET('C. PoC Adj Factor Scoring'!$E$5:$J$282,,MATCH(Z$4,'C. PoC Adj Factor Scoring'!$E$3:$AH$3,0)-1),MATCH(Z$2&\" Score\",'C. PoC Adj Factor Scoring'!$E$4:$J$4,0),TRUE)","v":1},{"$f":"VLOOKUP(OFFSET($B:$B,,MATCH(AA$4,$B$4:$F$4,0)-1),OFFSET('C. PoC Adj Factor Scoring'!$E$5:$J$282,,MATCH(AA$4,'C. PoC Adj Factor Scoring'!$E$3:$AH$3,0)-1),MATCH(AA$2&\" Score\",'C. PoC Adj Factor Scoring'!$E$4:$J$4,0),TRUE)","v":3},{"$f":"VLOOKUP(OFFSET($B:$B,,MATCH(AB$4,$B$4:$F$4,0)-1),OFFSET('C. PoC Adj Factor Scoring'!$E$5:$J$282,,MATCH(AB$4,'C. PoC Adj Factor Scoring'!$E$3:$AH$3,0)-1),MATCH(AB$2&\" Score\",'C. PoC Adj Factor Scoring'!$E$4:$J$4,0),TRUE)","v":1},{"$f":"VLOOKUP(OFFSET($B:$B,,MATCH(AC$4,$B$4:$F$4,0)-1),OFFSET('C. PoC Adj Factor Scoring'!$E$5:$J$282,,MATCH(AC$4,'C. PoC Adj Factor Scoring'!$E$3:$AH$3,0)-1),MATCH(AC$2&\" Score\",'C. PoC Adj Factor Scoring'!$E$4:$J$4,0),TRUE)","v":1},{"$f":"VLOOKUP(OFFSET($B:$B,,MATCH(AD$4,$B$4:$F$4,0)-1),OFFSET('C. PoC Adj Factor Scoring'!$E$5:$J$282,,MATCH(AD$4,'C. PoC Adj Factor Scoring'!$E$3:$AH$3,0)-1),MATCH(AD$2&\" Score\",'C. PoC Adj Factor Scoring'!$E$4:$J$4,0),TRUE)","v":1},{"$f":"VLOOKUP(OFFSET($B:$B,,MATCH(AE$4,$B$4:$F$4,0)-1),OFFSET('C. PoC Adj Factor Scoring'!$E$5:$J$282,,MATCH(AE$4,'C. PoC Adj Factor Scoring'!$E$3:$AH$3,0)-1),MATCH(AE$2&\" Score\",'C. PoC Adj Factor Scoring'!$E$4:$J$4,0),TRUE)","v":1}]
[{"$f":"'A. Population Info'!A463","v":1001477685},{"$f":"'A. Population Info'!L463","v":"OIL"},{"$f":"'A. Population Info'!M463","v":0},{"$f":"'A. Population Info'!N463","v":0},{"$f":"'A. Population Info'!O463","v":0},{"$f":"'A. Population Info'!P463","v":0},{"$f":"VLOOKUP(OFFSET($B:$B,,MATCH(G$4,$B$4:$F$4,0)-1),OFFSET('C. PoC Adj Factor Scoring'!$E$5:$J$282,,MATCH(G$4,'C. PoC Adj Factor Scoring'!$E$3:$AH$3,0)-1),MATCH(G$2&\" Score\",'C. PoC Adj Factor Scoring'!$E$4:$J$4,0),TRUE)","v":4},{"$f":"VLOOKUP(OFFSET($B:$B,,MATCH(H$4,$B$4:$F$4,0)-1),OFFSET('C. PoC Adj Factor Scoring'!$E$5:$J$282,,MATCH(H$4,'C. PoC Adj Factor Scoring'!$E$3:$AH$3,0)-1),MATCH(H$2&\" Score\",'C. PoC Adj Factor Scoring'!$E$4:$J$4,0),TRUE)","v":1},{"$f":"VLOOKUP(OFFSET($B:$B,,MATCH(I$4,$B$4:$F$4,0)-1),OFFSET('C. PoC Adj Factor Scoring'!$E$5:$J$282,,MATCH(I$4,'C. PoC Adj Factor Scoring'!$E$3:$AH$3,0)-1),MATCH(I$2&\" Score\",'C. PoC Adj Factor Scoring'!$E$4:$J$4,0),TRUE)","v":1},{"$f":"VLOOKUP(OFFSET($B:$B,,MATCH(J$4,$B$4:$F$4,0)-1),OFFSET('C. PoC Adj Factor Scoring'!$E$5:$J$282,,MATCH(J$4,'C. PoC Adj Factor Scoring'!$E$3:$AH$3,0)-1),MATCH(J$2&\" Score\",'C. PoC Adj Factor Scoring'!$E$4:$J$4,0),TRUE)","v":1},{"$f":"VLOOKUP(OFFSET($B:$B,,MATCH(K$4,$B$4:$F$4,0)-1),OFFSET('C. PoC Adj Factor Scoring'!$E$5:$J$282,,MATCH(K$4,'C. PoC Adj Factor Scoring'!$E$3:$AH$3,0)-1),MATCH(K$2&\" Score\",'C. PoC Adj Factor Scoring'!$E$4:$J$4,0),TRUE)","v":1},{"$f":"VLOOKUP(OFFSET($B:$B,,MATCH(L$4,$B$4:$F$4,0)-1),OFFSET('C. PoC Adj Factor Scoring'!$E$5:$J$282,,MATCH(L$4,'C. PoC Adj Factor Scoring'!$E$3:$AH$3,0)-1),MATCH(L$2&\" Score\",'C. PoC Adj Factor Scoring'!$E$4:$J$4,0),TRUE)","v":1},{"$f":"VLOOKUP(OFFSET($B:$B,,MATCH(M$4,$B$4:$F$4,0)-1),OFFSET('C. PoC Adj Factor Scoring'!$E$5:$J$282,,MATCH(M$4,'C. PoC Adj Factor Scoring'!$E$3:$AH$3,0)-1),MATCH(M$2&\" Score\",'C. PoC Adj Factor Scoring'!$E$4:$J$4,0),TRUE)","v":1},{"$f":"VLOOKUP(OFFSET($B:$B,,MATCH(N$4,$B$4:$F$4,0)-1),OFFSET('C. PoC Adj Factor Scoring'!$E$5:$J$282,,MATCH(N$4,'C. PoC Adj Factor Scoring'!$E$3:$AH$3,0)-1),MATCH(N$2&\" Score\",'C. PoC Adj Factor Scoring'!$E$4:$J$4,0),TRUE)","v":1},{"$f":"VLOOKUP(OFFSET($B:$B,,MATCH(O$4,$B$4:$F$4,0)-1),OFFSET('C. PoC Adj Factor Scoring'!$E$5:$J$282,,MATCH(O$4,'C. PoC Adj Factor Scoring'!$E$3:$AH$3,0)-1),MATCH(O$2&\" Score\",'C. PoC Adj Factor Scoring'!$E$4:$J$4,0),TRUE)","v":1},{"$f":"VLOOKUP(OFFSET($B:$B,,MATCH(P$4,$B$4:$F$4,0)-1),OFFSET('C. PoC Adj Factor Scoring'!$E$5:$J$282,,MATCH(P$4,'C. PoC Adj Factor Scoring'!$E$3:$AH$3,0)-1),MATCH(P$2&\" Score\",'C. PoC Adj Factor Scoring'!$E$4:$J$4,0),TRUE)","v":1},{"$f":"VLOOKUP(OFFSET($B:$B,,MATCH(Q$4,$B$4:$F$4,0)-1),OFFSET('C. PoC Adj Factor Scoring'!$E$5:$J$282,,MATCH(Q$4,'C. PoC Adj Factor Scoring'!$E$3:$AH$3,0)-1),MATCH(Q$2&\" Score\",'C. PoC Adj Factor Scoring'!$E$4:$J$4,0),TRUE)","v":1},{"$f":"VLOOKUP(OFFSET($B:$B,,MATCH(R$4,$B$4:$F$4,0)-1),OFFSET('C. PoC Adj Factor Scoring'!$E$5:$J$282,,MATCH(R$4,'C. PoC Adj Factor Scoring'!$E$3:$AH$3,0)-1),MATCH(R$2&\" Score\",'C. PoC Adj Factor Scoring'!$E$4:$J$4,0),TRUE)","v":1},{"$f":"VLOOKUP(OFFSET($B:$B,,MATCH(S$4,$B$4:$F$4,0)-1),OFFSET('C. PoC Adj Factor Scoring'!$E$5:$J$282,,MATCH(S$4,'C. PoC Adj Factor Scoring'!$E$3:$AH$3,0)-1),MATCH(S$2&\" Score\",'C. PoC Adj Factor Scoring'!$E$4:$J$4,0),TRUE)","v":1},{"$f":"VLOOKUP(OFFSET($B:$B,,MATCH(T$4,$B$4:$F$4,0)-1),OFFSET('C. PoC Adj Factor Scoring'!$E$5:$J$282,,MATCH(T$4,'C. PoC Adj Factor Scoring'!$E$3:$AH$3,0)-1),MATCH(T$2&\" Score\",'C. PoC Adj Factor Scoring'!$E$4:$J$4,0),TRUE)","v":1},{"$f":"VLOOKUP(OFFSET($B:$B,,MATCH(U$4,$B$4:$F$4,0)-1),OFFSET('C. PoC Adj Factor Scoring'!$E$5:$J$282,,MATCH(U$4,'C. PoC Adj Factor Scoring'!$E$3:$AH$3,0)-1),MATCH(U$2&\" Score\",'C. PoC Adj Factor Scoring'!$E$4:$J$4,0),TRUE)","v":1},{"$f":"VLOOKUP(OFFSET($B:$B,,MATCH(V$4,$B$4:$F$4,0)-1),OFFSET('C. PoC Adj Factor Scoring'!$E$5:$J$282,,MATCH(V$4,'C. PoC Adj Factor Scoring'!$E$3:$AH$3,0)-1),MATCH(V$2&\" Score\",'C. PoC Adj Factor Scoring'!$E$4:$J$4,0),TRUE)","v":1},{"$f":"VLOOKUP(OFFSET($B:$B,,MATCH(W$4,$B$4:$F$4,0)-1),OFFSET('C. PoC Adj Factor Scoring'!$E$5:$J$282,,MATCH(W$4,'C. PoC Adj Factor Scoring'!$E$3:$AH$3,0)-1),MATCH(W$2&\" Score\",'C. PoC Adj Factor Scoring'!$E$4:$J$4,0),TRUE)","v":1},{"$f":"VLOOKUP(OFFSET($B:$B,,MATCH(X$4,$B$4:$F$4,0)-1),OFFSET('C. PoC Adj Factor Scoring'!$E$5:$J$282,,MATCH(X$4,'C. PoC Adj Factor Scoring'!$E$3:$AH$3,0)-1),MATCH(X$2&\" Score\",'C. PoC Adj Factor Scoring'!$E$4:$J$4,0),TRUE)","v":1},{"$f":"VLOOKUP(OFFSET($B:$B,,MATCH(Y$4,$B$4:$F$4,0)-1),OFFSET('C. PoC Adj Factor Scoring'!$E$5:$J$282,,MATCH(Y$4,'C. PoC Adj Factor Scoring'!$E$3:$AH$3,0)-1),MATCH(Y$2&\" Score\",'C. PoC Adj Factor Scoring'!$E$4:$J$4,0),TRUE)","v":1},{"$f":"VLOOKUP(OFFSET($B:$B,,MATCH(Z$4,$B$4:$F$4,0)-1),OFFSET('C. PoC Adj Factor Scoring'!$E$5:$J$282,,MATCH(Z$4,'C. PoC Adj Factor Scoring'!$E$3:$AH$3,0)-1),MATCH(Z$2&\" Score\",'C. PoC Adj Factor Scoring'!$E$4:$J$4,0),TRUE)","v":1},{"$f":"VLOOKUP(OFFSET($B:$B,,MATCH(AA$4,$B$4:$F$4,0)-1),OFFSET('C. PoC Adj Factor Scoring'!$E$5:$J$282,,MATCH(AA$4,'C. PoC Adj Factor Scoring'!$E$3:$AH$3,0)-1),MATCH(AA$2&\" Score\",'C. PoC Adj Factor Scoring'!$E$4:$J$4,0),TRUE)","v":3},{"$f":"VLOOKUP(OFFSET($B:$B,,MATCH(AB$4,$B$4:$F$4,0)-1),OFFSET('C. PoC Adj Factor Scoring'!$E$5:$J$282,,MATCH(AB$4,'C. PoC Adj Factor Scoring'!$E$3:$AH$3,0)-1),MATCH(AB$2&\" Score\",'C. PoC Adj Factor Scoring'!$E$4:$J$4,0),TRUE)","v":1},{"$f":"VLOOKUP(OFFSET($B:$B,,MATCH(AC$4,$B$4:$F$4,0)-1),OFFSET('C. PoC Adj Factor Scoring'!$E$5:$J$282,,MATCH(AC$4,'C. PoC Adj Factor Scoring'!$E$3:$AH$3,0)-1),MATCH(AC$2&\" Score\",'C. PoC Adj Factor Scoring'!$E$4:$J$4,0),TRUE)","v":1},{"$f":"VLOOKUP(OFFSET($B:$B,,MATCH(AD$4,$B$4:$F$4,0)-1),OFFSET('C. PoC Adj Factor Scoring'!$E$5:$J$282,,MATCH(AD$4,'C. PoC Adj Factor Scoring'!$E$3:$AH$3,0)-1),MATCH(AD$2&\" Score\",'C. PoC Adj Factor Scoring'!$E$4:$J$4,0),TRUE)","v":1},{"$f":"VLOOKUP(OFFSET($B:$B,,MATCH(AE$4,$B$4:$F$4,0)-1),OFFSET('C. PoC Adj Factor Scoring'!$E$5:$J$282,,MATCH(AE$4,'C. PoC Adj Factor Scoring'!$E$3:$AH$3,0)-1),MATCH(AE$2&\" Score\",'C. PoC Adj Factor Scoring'!$E$4:$J$4,0),TRUE)","v":1}]
[{"$f":"'A. Population Info'!A464","v":1001477686},{"$f":"'A. Population Info'!L464","v":"OIL"},{"$f":"'A. Population Info'!M464","v":0},{"$f":"'A. Population Info'!N464","v":0},{"$f":"'A. Population Info'!O464","v":0},{"$f":"'A. Population Info'!P464","v":0},{"$f":"VLOOKUP(OFFSET($B:$B,,MATCH(G$4,$B$4:$F$4,0)-1),OFFSET('C. PoC Adj Factor Scoring'!$E$5:$J$282,,MATCH(G$4,'C. PoC Adj Factor Scoring'!$E$3:$AH$3,0)-1),MATCH(G$2&\" Score\",'C. PoC Adj Factor Scoring'!$E$4:$J$4,0),TRUE)","v":4},{"$f":"VLOOKUP(OFFSET($B:$B,,MATCH(H$4,$B$4:$F$4,0)-1),OFFSET('C. PoC Adj Factor Scoring'!$E$5:$J$282,,MATCH(H$4,'C. PoC Adj Factor Scoring'!$E$3:$AH$3,0)-1),MATCH(H$2&\" Score\",'C. PoC Adj Factor Scoring'!$E$4:$J$4,0),TRUE)","v":1},{"$f":"VLOOKUP(OFFSET($B:$B,,MATCH(I$4,$B$4:$F$4,0)-1),OFFSET('C. PoC Adj Factor Scoring'!$E$5:$J$282,,MATCH(I$4,'C. PoC Adj Factor Scoring'!$E$3:$AH$3,0)-1),MATCH(I$2&\" Score\",'C. PoC Adj Factor Scoring'!$E$4:$J$4,0),TRUE)","v":1},{"$f":"VLOOKUP(OFFSET($B:$B,,MATCH(J$4,$B$4:$F$4,0)-1),OFFSET('C. PoC Adj Factor Scoring'!$E$5:$J$282,,MATCH(J$4,'C. PoC Adj Factor Scoring'!$E$3:$AH$3,0)-1),MATCH(J$2&\" Score\",'C. PoC Adj Factor Scoring'!$E$4:$J$4,0),TRUE)","v":1},{"$f":"VLOOKUP(OFFSET($B:$B,,MATCH(K$4,$B$4:$F$4,0)-1),OFFSET('C. PoC Adj Factor Scoring'!$E$5:$J$282,,MATCH(K$4,'C. PoC Adj Factor Scoring'!$E$3:$AH$3,0)-1),MATCH(K$2&\" Score\",'C. PoC Adj Factor Scoring'!$E$4:$J$4,0),TRUE)","v":1},{"$f":"VLOOKUP(OFFSET($B:$B,,MATCH(L$4,$B$4:$F$4,0)-1),OFFSET('C. PoC Adj Factor Scoring'!$E$5:$J$282,,MATCH(L$4,'C. PoC Adj Factor Scoring'!$E$3:$AH$3,0)-1),MATCH(L$2&\" Score\",'C. PoC Adj Factor Scoring'!$E$4:$J$4,0),TRUE)","v":1},{"$f":"VLOOKUP(OFFSET($B:$B,,MATCH(M$4,$B$4:$F$4,0)-1),OFFSET('C. PoC Adj Factor Scoring'!$E$5:$J$282,,MATCH(M$4,'C. PoC Adj Factor Scoring'!$E$3:$AH$3,0)-1),MATCH(M$2&\" Score\",'C. PoC Adj Factor Scoring'!$E$4:$J$4,0),TRUE)","v":1},{"$f":"VLOOKUP(OFFSET($B:$B,,MATCH(N$4,$B$4:$F$4,0)-1),OFFSET('C. PoC Adj Factor Scoring'!$E$5:$J$282,,MATCH(N$4,'C. PoC Adj Factor Scoring'!$E$3:$AH$3,0)-1),MATCH(N$2&\" Score\",'C. PoC Adj Factor Scoring'!$E$4:$J$4,0),TRUE)","v":1},{"$f":"VLOOKUP(OFFSET($B:$B,,MATCH(O$4,$B$4:$F$4,0)-1),OFFSET('C. PoC Adj Factor Scoring'!$E$5:$J$282,,MATCH(O$4,'C. PoC Adj Factor Scoring'!$E$3:$AH$3,0)-1),MATCH(O$2&\" Score\",'C. PoC Adj Factor Scoring'!$E$4:$J$4,0),TRUE)","v":1},{"$f":"VLOOKUP(OFFSET($B:$B,,MATCH(P$4,$B$4:$F$4,0)-1),OFFSET('C. PoC Adj Factor Scoring'!$E$5:$J$282,,MATCH(P$4,'C. PoC Adj Factor Scoring'!$E$3:$AH$3,0)-1),MATCH(P$2&\" Score\",'C. PoC Adj Factor Scoring'!$E$4:$J$4,0),TRUE)","v":1},{"$f":"VLOOKUP(OFFSET($B:$B,,MATCH(Q$4,$B$4:$F$4,0)-1),OFFSET('C. PoC Adj Factor Scoring'!$E$5:$J$282,,MATCH(Q$4,'C. PoC Adj Factor Scoring'!$E$3:$AH$3,0)-1),MATCH(Q$2&\" Score\",'C. PoC Adj Factor Scoring'!$E$4:$J$4,0),TRUE)","v":1},{"$f":"VLOOKUP(OFFSET($B:$B,,MATCH(R$4,$B$4:$F$4,0)-1),OFFSET('C. PoC Adj Factor Scoring'!$E$5:$J$282,,MATCH(R$4,'C. PoC Adj Factor Scoring'!$E$3:$AH$3,0)-1),MATCH(R$2&\" Score\",'C. PoC Adj Factor Scoring'!$E$4:$J$4,0),TRUE)","v":1},{"$f":"VLOOKUP(OFFSET($B:$B,,MATCH(S$4,$B$4:$F$4,0)-1),OFFSET('C. PoC Adj Factor Scoring'!$E$5:$J$282,,MATCH(S$4,'C. PoC Adj Factor Scoring'!$E$3:$AH$3,0)-1),MATCH(S$2&\" Score\",'C. PoC Adj Factor Scoring'!$E$4:$J$4,0),TRUE)","v":1},{"$f":"VLOOKUP(OFFSET($B:$B,,MATCH(T$4,$B$4:$F$4,0)-1),OFFSET('C. PoC Adj Factor Scoring'!$E$5:$J$282,,MATCH(T$4,'C. PoC Adj Factor Scoring'!$E$3:$AH$3,0)-1),MATCH(T$2&\" Score\",'C. PoC Adj Factor Scoring'!$E$4:$J$4,0),TRUE)","v":1},{"$f":"VLOOKUP(OFFSET($B:$B,,MATCH(U$4,$B$4:$F$4,0)-1),OFFSET('C. PoC Adj Factor Scoring'!$E$5:$J$282,,MATCH(U$4,'C. PoC Adj Factor Scoring'!$E$3:$AH$3,0)-1),MATCH(U$2&\" Score\",'C. PoC Adj Factor Scoring'!$E$4:$J$4,0),TRUE)","v":1},{"$f":"VLOOKUP(OFFSET($B:$B,,MATCH(V$4,$B$4:$F$4,0)-1),OFFSET('C. PoC Adj Factor Scoring'!$E$5:$J$282,,MATCH(V$4,'C. PoC Adj Factor Scoring'!$E$3:$AH$3,0)-1),MATCH(V$2&\" Score\",'C. PoC Adj Factor Scoring'!$E$4:$J$4,0),TRUE)","v":1},{"$f":"VLOOKUP(OFFSET($B:$B,,MATCH(W$4,$B$4:$F$4,0)-1),OFFSET('C. PoC Adj Factor Scoring'!$E$5:$J$282,,MATCH(W$4,'C. PoC Adj Factor Scoring'!$E$3:$AH$3,0)-1),MATCH(W$2&\" Score\",'C. PoC Adj Factor Scoring'!$E$4:$J$4,0),TRUE)","v":1},{"$f":"VLOOKUP(OFFSET($B:$B,,MATCH(X$4,$B$4:$F$4,0)-1),OFFSET('C. PoC Adj Factor Scoring'!$E$5:$J$282,,MATCH(X$4,'C. PoC Adj Factor Scoring'!$E$3:$AH$3,0)-1),MATCH(X$2&\" Score\",'C. PoC Adj Factor Scoring'!$E$4:$J$4,0),TRUE)","v":1},{"$f":"VLOOKUP(OFFSET($B:$B,,MATCH(Y$4,$B$4:$F$4,0)-1),OFFSET('C. PoC Adj Factor Scoring'!$E$5:$J$282,,MATCH(Y$4,'C. PoC Adj Factor Scoring'!$E$3:$AH$3,0)-1),MATCH(Y$2&\" Score\",'C. PoC Adj Factor Scoring'!$E$4:$J$4,0),TRUE)","v":1},{"$f":"VLOOKUP(OFFSET($B:$B,,MATCH(Z$4,$B$4:$F$4,0)-1),OFFSET('C. PoC Adj Factor Scoring'!$E$5:$J$282,,MATCH(Z$4,'C. PoC Adj Factor Scoring'!$E$3:$AH$3,0)-1),MATCH(Z$2&\" Score\",'C. PoC Adj Factor Scoring'!$E$4:$J$4,0),TRUE)","v":1},{"$f":"VLOOKUP(OFFSET($B:$B,,MATCH(AA$4,$B$4:$F$4,0)-1),OFFSET('C. PoC Adj Factor Scoring'!$E$5:$J$282,,MATCH(AA$4,'C. PoC Adj Factor Scoring'!$E$3:$AH$3,0)-1),MATCH(AA$2&\" Score\",'C. PoC Adj Factor Scoring'!$E$4:$J$4,0),TRUE)","v":3},{"$f":"VLOOKUP(OFFSET($B:$B,,MATCH(AB$4,$B$4:$F$4,0)-1),OFFSET('C. PoC Adj Factor Scoring'!$E$5:$J$282,,MATCH(AB$4,'C. PoC Adj Factor Scoring'!$E$3:$AH$3,0)-1),MATCH(AB$2&\" Score\",'C. PoC Adj Factor Scoring'!$E$4:$J$4,0),TRUE)","v":1},{"$f":"VLOOKUP(OFFSET($B:$B,,MATCH(AC$4,$B$4:$F$4,0)-1),OFFSET('C. PoC Adj Factor Scoring'!$E$5:$J$282,,MATCH(AC$4,'C. PoC Adj Factor Scoring'!$E$3:$AH$3,0)-1),MATCH(AC$2&\" Score\",'C. PoC Adj Factor Scoring'!$E$4:$J$4,0),TRUE)","v":1},{"$f":"VLOOKUP(OFFSET($B:$B,,MATCH(AD$4,$B$4:$F$4,0)-1),OFFSET('C. PoC Adj Factor Scoring'!$E$5:$J$282,,MATCH(AD$4,'C. PoC Adj Factor Scoring'!$E$3:$AH$3,0)-1),MATCH(AD$2&\" Score\",'C. PoC Adj Factor Scoring'!$E$4:$J$4,0),TRUE)","v":1},{"$f":"VLOOKUP(OFFSET($B:$B,,MATCH(AE$4,$B$4:$F$4,0)-1),OFFSET('C. PoC Adj Factor Scoring'!$E$5:$J$282,,MATCH(AE$4,'C. PoC Adj Factor Scoring'!$E$3:$AH$3,0)-1),MATCH(AE$2&\" Score\",'C. PoC Adj Factor Scoring'!$E$4:$J$4,0),TRUE)","v":1}]
[{"$f":"'A. Population Info'!A465","v":1001477798},{"$f":"'A. Population Info'!L465","v":"OIL"},{"$f":"'A. Population Info'!M465","v":0},{"$f":"'A. Population Info'!N465","v":0},{"$f":"'A. Population Info'!O465","v":0},{"$f":"'A. Population Info'!P465","v":0},{"$f":"VLOOKUP(OFFSET($B:$B,,MATCH(G$4,$B$4:$F$4,0)-1),OFFSET('C. PoC Adj Factor Scoring'!$E$5:$J$282,,MATCH(G$4,'C. PoC Adj Factor Scoring'!$E$3:$AH$3,0)-1),MATCH(G$2&\" Score\",'C. PoC Adj Factor Scoring'!$E$4:$J$4,0),TRUE)","v":4},{"$f":"VLOOKUP(OFFSET($B:$B,,MATCH(H$4,$B$4:$F$4,0)-1),OFFSET('C. PoC Adj Factor Scoring'!$E$5:$J$282,,MATCH(H$4,'C. PoC Adj Factor Scoring'!$E$3:$AH$3,0)-1),MATCH(H$2&\" Score\",'C. PoC Adj Factor Scoring'!$E$4:$J$4,0),TRUE)","v":1},{"$f":"VLOOKUP(OFFSET($B:$B,,MATCH(I$4,$B$4:$F$4,0)-1),OFFSET('C. PoC Adj Factor Scoring'!$E$5:$J$282,,MATCH(I$4,'C. PoC Adj Factor Scoring'!$E$3:$AH$3,0)-1),MATCH(I$2&\" Score\",'C. PoC Adj Factor Scoring'!$E$4:$J$4,0),TRUE)","v":1},{"$f":"VLOOKUP(OFFSET($B:$B,,MATCH(J$4,$B$4:$F$4,0)-1),OFFSET('C. PoC Adj Factor Scoring'!$E$5:$J$282,,MATCH(J$4,'C. PoC Adj Factor Scoring'!$E$3:$AH$3,0)-1),MATCH(J$2&\" Score\",'C. PoC Adj Factor Scoring'!$E$4:$J$4,0),TRUE)","v":1},{"$f":"VLOOKUP(OFFSET($B:$B,,MATCH(K$4,$B$4:$F$4,0)-1),OFFSET('C. PoC Adj Factor Scoring'!$E$5:$J$282,,MATCH(K$4,'C. PoC Adj Factor Scoring'!$E$3:$AH$3,0)-1),MATCH(K$2&\" Score\",'C. PoC Adj Factor Scoring'!$E$4:$J$4,0),TRUE)","v":1},{"$f":"VLOOKUP(OFFSET($B:$B,,MATCH(L$4,$B$4:$F$4,0)-1),OFFSET('C. PoC Adj Factor Scoring'!$E$5:$J$282,,MATCH(L$4,'C. PoC Adj Factor Scoring'!$E$3:$AH$3,0)-1),MATCH(L$2&\" Score\",'C. PoC Adj Factor Scoring'!$E$4:$J$4,0),TRUE)","v":1},{"$f":"VLOOKUP(OFFSET($B:$B,,MATCH(M$4,$B$4:$F$4,0)-1),OFFSET('C. PoC Adj Factor Scoring'!$E$5:$J$282,,MATCH(M$4,'C. PoC Adj Factor Scoring'!$E$3:$AH$3,0)-1),MATCH(M$2&\" Score\",'C. PoC Adj Factor Scoring'!$E$4:$J$4,0),TRUE)","v":1},{"$f":"VLOOKUP(OFFSET($B:$B,,MATCH(N$4,$B$4:$F$4,0)-1),OFFSET('C. PoC Adj Factor Scoring'!$E$5:$J$282,,MATCH(N$4,'C. PoC Adj Factor Scoring'!$E$3:$AH$3,0)-1),MATCH(N$2&\" Score\",'C. PoC Adj Factor Scoring'!$E$4:$J$4,0),TRUE)","v":1},{"$f":"VLOOKUP(OFFSET($B:$B,,MATCH(O$4,$B$4:$F$4,0)-1),OFFSET('C. PoC Adj Factor Scoring'!$E$5:$J$282,,MATCH(O$4,'C. PoC Adj Factor Scoring'!$E$3:$AH$3,0)-1),MATCH(O$2&\" Score\",'C. PoC Adj Factor Scoring'!$E$4:$J$4,0),TRUE)","v":1},{"$f":"VLOOKUP(OFFSET($B:$B,,MATCH(P$4,$B$4:$F$4,0)-1),OFFSET('C. PoC Adj Factor Scoring'!$E$5:$J$282,,MATCH(P$4,'C. PoC Adj Factor Scoring'!$E$3:$AH$3,0)-1),MATCH(P$2&\" Score\",'C. PoC Adj Factor Scoring'!$E$4:$J$4,0),TRUE)","v":1},{"$f":"VLOOKUP(OFFSET($B:$B,,MATCH(Q$4,$B$4:$F$4,0)-1),OFFSET('C. PoC Adj Factor Scoring'!$E$5:$J$282,,MATCH(Q$4,'C. PoC Adj Factor Scoring'!$E$3:$AH$3,0)-1),MATCH(Q$2&\" Score\",'C. PoC Adj Factor Scoring'!$E$4:$J$4,0),TRUE)","v":1},{"$f":"VLOOKUP(OFFSET($B:$B,,MATCH(R$4,$B$4:$F$4,0)-1),OFFSET('C. PoC Adj Factor Scoring'!$E$5:$J$282,,MATCH(R$4,'C. PoC Adj Factor Scoring'!$E$3:$AH$3,0)-1),MATCH(R$2&\" Score\",'C. PoC Adj Factor Scoring'!$E$4:$J$4,0),TRUE)","v":1},{"$f":"VLOOKUP(OFFSET($B:$B,,MATCH(S$4,$B$4:$F$4,0)-1),OFFSET('C. PoC Adj Factor Scoring'!$E$5:$J$282,,MATCH(S$4,'C. PoC Adj Factor Scoring'!$E$3:$AH$3,0)-1),MATCH(S$2&\" Score\",'C. PoC Adj Factor Scoring'!$E$4:$J$4,0),TRUE)","v":1},{"$f":"VLOOKUP(OFFSET($B:$B,,MATCH(T$4,$B$4:$F$4,0)-1),OFFSET('C. PoC Adj Factor Scoring'!$E$5:$J$282,,MATCH(T$4,'C. PoC Adj Factor Scoring'!$E$3:$AH$3,0)-1),MATCH(T$2&\" Score\",'C. PoC Adj Factor Scoring'!$E$4:$J$4,0),TRUE)","v":1},{"$f":"VLOOKUP(OFFSET($B:$B,,MATCH(U$4,$B$4:$F$4,0)-1),OFFSET('C. PoC Adj Factor Scoring'!$E$5:$J$282,,MATCH(U$4,'C. PoC Adj Factor Scoring'!$E$3:$AH$3,0)-1),MATCH(U$2&\" Score\",'C. PoC Adj Factor Scoring'!$E$4:$J$4,0),TRUE)","v":1},{"$f":"VLOOKUP(OFFSET($B:$B,,MATCH(V$4,$B$4:$F$4,0)-1),OFFSET('C. PoC Adj Factor Scoring'!$E$5:$J$282,,MATCH(V$4,'C. PoC Adj Factor Scoring'!$E$3:$AH$3,0)-1),MATCH(V$2&\" Score\",'C. PoC Adj Factor Scoring'!$E$4:$J$4,0),TRUE)","v":1},{"$f":"VLOOKUP(OFFSET($B:$B,,MATCH(W$4,$B$4:$F$4,0)-1),OFFSET('C. PoC Adj Factor Scoring'!$E$5:$J$282,,MATCH(W$4,'C. PoC Adj Factor Scoring'!$E$3:$AH$3,0)-1),MATCH(W$2&\" Score\",'C. PoC Adj Factor Scoring'!$E$4:$J$4,0),TRUE)","v":1},{"$f":"VLOOKUP(OFFSET($B:$B,,MATCH(X$4,$B$4:$F$4,0)-1),OFFSET('C. PoC Adj Factor Scoring'!$E$5:$J$282,,MATCH(X$4,'C. PoC Adj Factor Scoring'!$E$3:$AH$3,0)-1),MATCH(X$2&\" Score\",'C. PoC Adj Factor Scoring'!$E$4:$J$4,0),TRUE)","v":1},{"$f":"VLOOKUP(OFFSET($B:$B,,MATCH(Y$4,$B$4:$F$4,0)-1),OFFSET('C. PoC Adj Factor Scoring'!$E$5:$J$282,,MATCH(Y$4,'C. PoC Adj Factor Scoring'!$E$3:$AH$3,0)-1),MATCH(Y$2&\" Score\",'C. PoC Adj Factor Scoring'!$E$4:$J$4,0),TRUE)","v":1},{"$f":"VLOOKUP(OFFSET($B:$B,,MATCH(Z$4,$B$4:$F$4,0)-1),OFFSET('C. PoC Adj Factor Scoring'!$E$5:$J$282,,MATCH(Z$4,'C. PoC Adj Factor Scoring'!$E$3:$AH$3,0)-1),MATCH(Z$2&\" Score\",'C. PoC Adj Factor Scoring'!$E$4:$J$4,0),TRUE)","v":1},{"$f":"VLOOKUP(OFFSET($B:$B,,MATCH(AA$4,$B$4:$F$4,0)-1),OFFSET('C. PoC Adj Factor Scoring'!$E$5:$J$282,,MATCH(AA$4,'C. PoC Adj Factor Scoring'!$E$3:$AH$3,0)-1),MATCH(AA$2&\" Score\",'C. PoC Adj Factor Scoring'!$E$4:$J$4,0),TRUE)","v":3},{"$f":"VLOOKUP(OFFSET($B:$B,,MATCH(AB$4,$B$4:$F$4,0)-1),OFFSET('C. PoC Adj Factor Scoring'!$E$5:$J$282,,MATCH(AB$4,'C. PoC Adj Factor Scoring'!$E$3:$AH$3,0)-1),MATCH(AB$2&\" Score\",'C. PoC Adj Factor Scoring'!$E$4:$J$4,0),TRUE)","v":1},{"$f":"VLOOKUP(OFFSET($B:$B,,MATCH(AC$4,$B$4:$F$4,0)-1),OFFSET('C. PoC Adj Factor Scoring'!$E$5:$J$282,,MATCH(AC$4,'C. PoC Adj Factor Scoring'!$E$3:$AH$3,0)-1),MATCH(AC$2&\" Score\",'C. PoC Adj Factor Scoring'!$E$4:$J$4,0),TRUE)","v":1},{"$f":"VLOOKUP(OFFSET($B:$B,,MATCH(AD$4,$B$4:$F$4,0)-1),OFFSET('C. PoC Adj Factor Scoring'!$E$5:$J$282,,MATCH(AD$4,'C. PoC Adj Factor Scoring'!$E$3:$AH$3,0)-1),MATCH(AD$2&\" Score\",'C. PoC Adj Factor Scoring'!$E$4:$J$4,0),TRUE)","v":1},{"$f":"VLOOKUP(OFFSET($B:$B,,MATCH(AE$4,$B$4:$F$4,0)-1),OFFSET('C. PoC Adj Factor Scoring'!$E$5:$J$282,,MATCH(AE$4,'C. PoC Adj Factor Scoring'!$E$3:$AH$3,0)-1),MATCH(AE$2&\" Score\",'C. PoC Adj Factor Scoring'!$E$4:$J$4,0),TRUE)","v":1}]
[{"$f":"'A. Population Info'!A466","v":1001477799},{"$f":"'A. Population Info'!L466","v":"OIL"},{"$f":"'A. Population Info'!M466","v":0},{"$f":"'A. Population Info'!N466","v":0},{"$f":"'A. Population Info'!O466","v":0},{"$f":"'A. Population Info'!P466","v":0},{"$f":"VLOOKUP(OFFSET($B:$B,,MATCH(G$4,$B$4:$F$4,0)-1),OFFSET('C. PoC Adj Factor Scoring'!$E$5:$J$282,,MATCH(G$4,'C. PoC Adj Factor Scoring'!$E$3:$AH$3,0)-1),MATCH(G$2&\" Score\",'C. PoC Adj Factor Scoring'!$E$4:$J$4,0),TRUE)","v":4},{"$f":"VLOOKUP(OFFSET($B:$B,,MATCH(H$4,$B$4:$F$4,0)-1),OFFSET('C. PoC Adj Factor Scoring'!$E$5:$J$282,,MATCH(H$4,'C. PoC Adj Factor Scoring'!$E$3:$AH$3,0)-1),MATCH(H$2&\" Score\",'C. PoC Adj Factor Scoring'!$E$4:$J$4,0),TRUE)","v":1},{"$f":"VLOOKUP(OFFSET($B:$B,,MATCH(I$4,$B$4:$F$4,0)-1),OFFSET('C. PoC Adj Factor Scoring'!$E$5:$J$282,,MATCH(I$4,'C. PoC Adj Factor Scoring'!$E$3:$AH$3,0)-1),MATCH(I$2&\" Score\",'C. PoC Adj Factor Scoring'!$E$4:$J$4,0),TRUE)","v":1},{"$f":"VLOOKUP(OFFSET($B:$B,,MATCH(J$4,$B$4:$F$4,0)-1),OFFSET('C. PoC Adj Factor Scoring'!$E$5:$J$282,,MATCH(J$4,'C. PoC Adj Factor Scoring'!$E$3:$AH$3,0)-1),MATCH(J$2&\" Score\",'C. PoC Adj Factor Scoring'!$E$4:$J$4,0),TRUE)","v":1},{"$f":"VLOOKUP(OFFSET($B:$B,,MATCH(K$4,$B$4:$F$4,0)-1),OFFSET('C. PoC Adj Factor Scoring'!$E$5:$J$282,,MATCH(K$4,'C. PoC Adj Factor Scoring'!$E$3:$AH$3,0)-1),MATCH(K$2&\" Score\",'C. PoC Adj Factor Scoring'!$E$4:$J$4,0),TRUE)","v":1},{"$f":"VLOOKUP(OFFSET($B:$B,,MATCH(L$4,$B$4:$F$4,0)-1),OFFSET('C. PoC Adj Factor Scoring'!$E$5:$J$282,,MATCH(L$4,'C. PoC Adj Factor Scoring'!$E$3:$AH$3,0)-1),MATCH(L$2&\" Score\",'C. PoC Adj Factor Scoring'!$E$4:$J$4,0),TRUE)","v":1},{"$f":"VLOOKUP(OFFSET($B:$B,,MATCH(M$4,$B$4:$F$4,0)-1),OFFSET('C. PoC Adj Factor Scoring'!$E$5:$J$282,,MATCH(M$4,'C. PoC Adj Factor Scoring'!$E$3:$AH$3,0)-1),MATCH(M$2&\" Score\",'C. PoC Adj Factor Scoring'!$E$4:$J$4,0),TRUE)","v":1},{"$f":"VLOOKUP(OFFSET($B:$B,,MATCH(N$4,$B$4:$F$4,0)-1),OFFSET('C. PoC Adj Factor Scoring'!$E$5:$J$282,,MATCH(N$4,'C. PoC Adj Factor Scoring'!$E$3:$AH$3,0)-1),MATCH(N$2&\" Score\",'C. PoC Adj Factor Scoring'!$E$4:$J$4,0),TRUE)","v":1},{"$f":"VLOOKUP(OFFSET($B:$B,,MATCH(O$4,$B$4:$F$4,0)-1),OFFSET('C. PoC Adj Factor Scoring'!$E$5:$J$282,,MATCH(O$4,'C. PoC Adj Factor Scoring'!$E$3:$AH$3,0)-1),MATCH(O$2&\" Score\",'C. PoC Adj Factor Scoring'!$E$4:$J$4,0),TRUE)","v":1},{"$f":"VLOOKUP(OFFSET($B:$B,,MATCH(P$4,$B$4:$F$4,0)-1),OFFSET('C. PoC Adj Factor Scoring'!$E$5:$J$282,,MATCH(P$4,'C. PoC Adj Factor Scoring'!$E$3:$AH$3,0)-1),MATCH(P$2&\" Score\",'C. PoC Adj Factor Scoring'!$E$4:$J$4,0),TRUE)","v":1},{"$f":"VLOOKUP(OFFSET($B:$B,,MATCH(Q$4,$B$4:$F$4,0)-1),OFFSET('C. PoC Adj Factor Scoring'!$E$5:$J$282,,MATCH(Q$4,'C. PoC Adj Factor Scoring'!$E$3:$AH$3,0)-1),MATCH(Q$2&\" Score\",'C. PoC Adj Factor Scoring'!$E$4:$J$4,0),TRUE)","v":1},{"$f":"VLOOKUP(OFFSET($B:$B,,MATCH(R$4,$B$4:$F$4,0)-1),OFFSET('C. PoC Adj Factor Scoring'!$E$5:$J$282,,MATCH(R$4,'C. PoC Adj Factor Scoring'!$E$3:$AH$3,0)-1),MATCH(R$2&\" Score\",'C. PoC Adj Factor Scoring'!$E$4:$J$4,0),TRUE)","v":1},{"$f":"VLOOKUP(OFFSET($B:$B,,MATCH(S$4,$B$4:$F$4,0)-1),OFFSET('C. PoC Adj Factor Scoring'!$E$5:$J$282,,MATCH(S$4,'C. PoC Adj Factor Scoring'!$E$3:$AH$3,0)-1),MATCH(S$2&\" Score\",'C. PoC Adj Factor Scoring'!$E$4:$J$4,0),TRUE)","v":1},{"$f":"VLOOKUP(OFFSET($B:$B,,MATCH(T$4,$B$4:$F$4,0)-1),OFFSET('C. PoC Adj Factor Scoring'!$E$5:$J$282,,MATCH(T$4,'C. PoC Adj Factor Scoring'!$E$3:$AH$3,0)-1),MATCH(T$2&\" Score\",'C. PoC Adj Factor Scoring'!$E$4:$J$4,0),TRUE)","v":1},{"$f":"VLOOKUP(OFFSET($B:$B,,MATCH(U$4,$B$4:$F$4,0)-1),OFFSET('C. PoC Adj Factor Scoring'!$E$5:$J$282,,MATCH(U$4,'C. PoC Adj Factor Scoring'!$E$3:$AH$3,0)-1),MATCH(U$2&\" Score\",'C. PoC Adj Factor Scoring'!$E$4:$J$4,0),TRUE)","v":1},{"$f":"VLOOKUP(OFFSET($B:$B,,MATCH(V$4,$B$4:$F$4,0)-1),OFFSET('C. PoC Adj Factor Scoring'!$E$5:$J$282,,MATCH(V$4,'C. PoC Adj Factor Scoring'!$E$3:$AH$3,0)-1),MATCH(V$2&\" Score\",'C. PoC Adj Factor Scoring'!$E$4:$J$4,0),TRUE)","v":1},{"$f":"VLOOKUP(OFFSET($B:$B,,MATCH(W$4,$B$4:$F$4,0)-1),OFFSET('C. PoC Adj Factor Scoring'!$E$5:$J$282,,MATCH(W$4,'C. PoC Adj Factor Scoring'!$E$3:$AH$3,0)-1),MATCH(W$2&\" Score\",'C. PoC Adj Factor Scoring'!$E$4:$J$4,0),TRUE)","v":1},{"$f":"VLOOKUP(OFFSET($B:$B,,MATCH(X$4,$B$4:$F$4,0)-1),OFFSET('C. PoC Adj Factor Scoring'!$E$5:$J$282,,MATCH(X$4,'C. PoC Adj Factor Scoring'!$E$3:$AH$3,0)-1),MATCH(X$2&\" Score\",'C. PoC Adj Factor Scoring'!$E$4:$J$4,0),TRUE)","v":1},{"$f":"VLOOKUP(OFFSET($B:$B,,MATCH(Y$4,$B$4:$F$4,0)-1),OFFSET('C. PoC Adj Factor Scoring'!$E$5:$J$282,,MATCH(Y$4,'C. PoC Adj Factor Scoring'!$E$3:$AH$3,0)-1),MATCH(Y$2&\" Score\",'C. PoC Adj Factor Scoring'!$E$4:$J$4,0),TRUE)","v":1},{"$f":"VLOOKUP(OFFSET($B:$B,,MATCH(Z$4,$B$4:$F$4,0)-1),OFFSET('C. PoC Adj Factor Scoring'!$E$5:$J$282,,MATCH(Z$4,'C. PoC Adj Factor Scoring'!$E$3:$AH$3,0)-1),MATCH(Z$2&\" Score\",'C. PoC Adj Factor Scoring'!$E$4:$J$4,0),TRUE)","v":1},{"$f":"VLOOKUP(OFFSET($B:$B,,MATCH(AA$4,$B$4:$F$4,0)-1),OFFSET('C. PoC Adj Factor Scoring'!$E$5:$J$282,,MATCH(AA$4,'C. PoC Adj Factor Scoring'!$E$3:$AH$3,0)-1),MATCH(AA$2&\" Score\",'C. PoC Adj Factor Scoring'!$E$4:$J$4,0),TRUE)","v":3},{"$f":"VLOOKUP(OFFSET($B:$B,,MATCH(AB$4,$B$4:$F$4,0)-1),OFFSET('C. PoC Adj Factor Scoring'!$E$5:$J$282,,MATCH(AB$4,'C. PoC Adj Factor Scoring'!$E$3:$AH$3,0)-1),MATCH(AB$2&\" Score\",'C. PoC Adj Factor Scoring'!$E$4:$J$4,0),TRUE)","v":1},{"$f":"VLOOKUP(OFFSET($B:$B,,MATCH(AC$4,$B$4:$F$4,0)-1),OFFSET('C. PoC Adj Factor Scoring'!$E$5:$J$282,,MATCH(AC$4,'C. PoC Adj Factor Scoring'!$E$3:$AH$3,0)-1),MATCH(AC$2&\" Score\",'C. PoC Adj Factor Scoring'!$E$4:$J$4,0),TRUE)","v":1},{"$f":"VLOOKUP(OFFSET($B:$B,,MATCH(AD$4,$B$4:$F$4,0)-1),OFFSET('C. PoC Adj Factor Scoring'!$E$5:$J$282,,MATCH(AD$4,'C. PoC Adj Factor Scoring'!$E$3:$AH$3,0)-1),MATCH(AD$2&\" Score\",'C. PoC Adj Factor Scoring'!$E$4:$J$4,0),TRUE)","v":1},{"$f":"VLOOKUP(OFFSET($B:$B,,MATCH(AE$4,$B$4:$F$4,0)-1),OFFSET('C. PoC Adj Factor Scoring'!$E$5:$J$282,,MATCH(AE$4,'C. PoC Adj Factor Scoring'!$E$3:$AH$3,0)-1),MATCH(AE$2&\" Score\",'C. PoC Adj Factor Scoring'!$E$4:$J$4,0),TRUE)","v":1}]
[{"$f":"'A. Population Info'!A467","v":1001481507},{"$f":"'A. Population Info'!L467","v":"SF6"},{"$f":"'A. Population Info'!M467","v":0},{"$f":"'A. Population Info'!N467","v":0},{"$f":"'A. Population Info'!O467","v":0},{"$f":"'A. Population Info'!P467","v":0},{"$f":"VLOOKUP(OFFSET($B:$B,,MATCH(G$4,$B$4:$F$4,0)-1),OFFSET('C. PoC Adj Factor Scoring'!$E$5:$J$282,,MATCH(G$4,'C. PoC Adj Factor Scoring'!$E$3:$AH$3,0)-1),MATCH(G$2&\" Score\",'C. PoC Adj Factor Scoring'!$E$4:$J$4,0),TRUE)","v":1},{"$f":"VLOOKUP(OFFSET($B:$B,,MATCH(H$4,$B$4:$F$4,0)-1),OFFSET('C. PoC Adj Factor Scoring'!$E$5:$J$282,,MATCH(H$4,'C. PoC Adj Factor Scoring'!$E$3:$AH$3,0)-1),MATCH(H$2&\" Score\",'C. PoC Adj Factor Scoring'!$E$4:$J$4,0),TRUE)","v":1},{"$f":"VLOOKUP(OFFSET($B:$B,,MATCH(I$4,$B$4:$F$4,0)-1),OFFSET('C. PoC Adj Factor Scoring'!$E$5:$J$282,,MATCH(I$4,'C. PoC Adj Factor Scoring'!$E$3:$AH$3,0)-1),MATCH(I$2&\" Score\",'C. PoC Adj Factor Scoring'!$E$4:$J$4,0),TRUE)","v":1},{"$f":"VLOOKUP(OFFSET($B:$B,,MATCH(J$4,$B$4:$F$4,0)-1),OFFSET('C. PoC Adj Factor Scoring'!$E$5:$J$282,,MATCH(J$4,'C. PoC Adj Factor Scoring'!$E$3:$AH$3,0)-1),MATCH(J$2&\" Score\",'C. PoC Adj Factor Scoring'!$E$4:$J$4,0),TRUE)","v":1},{"$f":"VLOOKUP(OFFSET($B:$B,,MATCH(K$4,$B$4:$F$4,0)-1),OFFSET('C. PoC Adj Factor Scoring'!$E$5:$J$282,,MATCH(K$4,'C. PoC Adj Factor Scoring'!$E$3:$AH$3,0)-1),MATCH(K$2&\" Score\",'C. PoC Adj Factor Scoring'!$E$4:$J$4,0),TRUE)","v":1},{"$f":"VLOOKUP(OFFSET($B:$B,,MATCH(L$4,$B$4:$F$4,0)-1),OFFSET('C. PoC Adj Factor Scoring'!$E$5:$J$282,,MATCH(L$4,'C. PoC Adj Factor Scoring'!$E$3:$AH$3,0)-1),MATCH(L$2&\" Score\",'C. PoC Adj Factor Scoring'!$E$4:$J$4,0),TRUE)","v":1},{"$f":"VLOOKUP(OFFSET($B:$B,,MATCH(M$4,$B$4:$F$4,0)-1),OFFSET('C. PoC Adj Factor Scoring'!$E$5:$J$282,,MATCH(M$4,'C. PoC Adj Factor Scoring'!$E$3:$AH$3,0)-1),MATCH(M$2&\" Score\",'C. PoC Adj Factor Scoring'!$E$4:$J$4,0),TRUE)","v":1},{"$f":"VLOOKUP(OFFSET($B:$B,,MATCH(N$4,$B$4:$F$4,0)-1),OFFSET('C. PoC Adj Factor Scoring'!$E$5:$J$282,,MATCH(N$4,'C. PoC Adj Factor Scoring'!$E$3:$AH$3,0)-1),MATCH(N$2&\" Score\",'C. PoC Adj Factor Scoring'!$E$4:$J$4,0),TRUE)","v":1},{"$f":"VLOOKUP(OFFSET($B:$B,,MATCH(O$4,$B$4:$F$4,0)-1),OFFSET('C. PoC Adj Factor Scoring'!$E$5:$J$282,,MATCH(O$4,'C. PoC Adj Factor Scoring'!$E$3:$AH$3,0)-1),MATCH(O$2&\" Score\",'C. PoC Adj Factor Scoring'!$E$4:$J$4,0),TRUE)","v":1},{"$f":"VLOOKUP(OFFSET($B:$B,,MATCH(P$4,$B$4:$F$4,0)-1),OFFSET('C. PoC Adj Factor Scoring'!$E$5:$J$282,,MATCH(P$4,'C. PoC Adj Factor Scoring'!$E$3:$AH$3,0)-1),MATCH(P$2&\" Score\",'C. PoC Adj Factor Scoring'!$E$4:$J$4,0),TRUE)","v":1},{"$f":"VLOOKUP(OFFSET($B:$B,,MATCH(Q$4,$B$4:$F$4,0)-1),OFFSET('C. PoC Adj Factor Scoring'!$E$5:$J$282,,MATCH(Q$4,'C. PoC Adj Factor Scoring'!$E$3:$AH$3,0)-1),MATCH(Q$2&\" Score\",'C. PoC Adj Factor Scoring'!$E$4:$J$4,0),TRUE)","v":1},{"$f":"VLOOKUP(OFFSET($B:$B,,MATCH(R$4,$B$4:$F$4,0)-1),OFFSET('C. PoC Adj Factor Scoring'!$E$5:$J$282,,MATCH(R$4,'C. PoC Adj Factor Scoring'!$E$3:$AH$3,0)-1),MATCH(R$2&\" Score\",'C. PoC Adj Factor Scoring'!$E$4:$J$4,0),TRUE)","v":1},{"$f":"VLOOKUP(OFFSET($B:$B,,MATCH(S$4,$B$4:$F$4,0)-1),OFFSET('C. PoC Adj Factor Scoring'!$E$5:$J$282,,MATCH(S$4,'C. PoC Adj Factor Scoring'!$E$3:$AH$3,0)-1),MATCH(S$2&\" Score\",'C. PoC Adj Factor Scoring'!$E$4:$J$4,0),TRUE)","v":1},{"$f":"VLOOKUP(OFFSET($B:$B,,MATCH(T$4,$B$4:$F$4,0)-1),OFFSET('C. PoC Adj Factor Scoring'!$E$5:$J$282,,MATCH(T$4,'C. PoC Adj Factor Scoring'!$E$3:$AH$3,0)-1),MATCH(T$2&\" Score\",'C. PoC Adj Factor Scoring'!$E$4:$J$4,0),TRUE)","v":1},{"$f":"VLOOKUP(OFFSET($B:$B,,MATCH(U$4,$B$4:$F$4,0)-1),OFFSET('C. PoC Adj Factor Scoring'!$E$5:$J$282,,MATCH(U$4,'C. PoC Adj Factor Scoring'!$E$3:$AH$3,0)-1),MATCH(U$2&\" Score\",'C. PoC Adj Factor Scoring'!$E$4:$J$4,0),TRUE)","v":1},{"$f":"VLOOKUP(OFFSET($B:$B,,MATCH(V$4,$B$4:$F$4,0)-1),OFFSET('C. PoC Adj Factor Scoring'!$E$5:$J$282,,MATCH(V$4,'C. PoC Adj Factor Scoring'!$E$3:$AH$3,0)-1),MATCH(V$2&\" Score\",'C. PoC Adj Factor Scoring'!$E$4:$J$4,0),TRUE)","v":1},{"$f":"VLOOKUP(OFFSET($B:$B,,MATCH(W$4,$B$4:$F$4,0)-1),OFFSET('C. PoC Adj Factor Scoring'!$E$5:$J$282,,MATCH(W$4,'C. PoC Adj Factor Scoring'!$E$3:$AH$3,0)-1),MATCH(W$2&\" Score\",'C. PoC Adj Factor Scoring'!$E$4:$J$4,0),TRUE)","v":1},{"$f":"VLOOKUP(OFFSET($B:$B,,MATCH(X$4,$B$4:$F$4,0)-1),OFFSET('C. PoC Adj Factor Scoring'!$E$5:$J$282,,MATCH(X$4,'C. PoC Adj Factor Scoring'!$E$3:$AH$3,0)-1),MATCH(X$2&\" Score\",'C. PoC Adj Factor Scoring'!$E$4:$J$4,0),TRUE)","v":1},{"$f":"VLOOKUP(OFFSET($B:$B,,MATCH(Y$4,$B$4:$F$4,0)-1),OFFSET('C. PoC Adj Factor Scoring'!$E$5:$J$282,,MATCH(Y$4,'C. PoC Adj Factor Scoring'!$E$3:$AH$3,0)-1),MATCH(Y$2&\" Score\",'C. PoC Adj Factor Scoring'!$E$4:$J$4,0),TRUE)","v":1},{"$f":"VLOOKUP(OFFSET($B:$B,,MATCH(Z$4,$B$4:$F$4,0)-1),OFFSET('C. PoC Adj Factor Scoring'!$E$5:$J$282,,MATCH(Z$4,'C. PoC Adj Factor Scoring'!$E$3:$AH$3,0)-1),MATCH(Z$2&\" Score\",'C. PoC Adj Factor Scoring'!$E$4:$J$4,0),TRUE)","v":1},{"$f":"VLOOKUP(OFFSET($B:$B,,MATCH(AA$4,$B$4:$F$4,0)-1),OFFSET('C. PoC Adj Factor Scoring'!$E$5:$J$282,,MATCH(AA$4,'C. PoC Adj Factor Scoring'!$E$3:$AH$3,0)-1),MATCH(AA$2&\" Score\",'C. PoC Adj Factor Scoring'!$E$4:$J$4,0),TRUE)","v":2},{"$f":"VLOOKUP(OFFSET($B:$B,,MATCH(AB$4,$B$4:$F$4,0)-1),OFFSET('C. PoC Adj Factor Scoring'!$E$5:$J$282,,MATCH(AB$4,'C. PoC Adj Factor Scoring'!$E$3:$AH$3,0)-1),MATCH(AB$2&\" Score\",'C. PoC Adj Factor Scoring'!$E$4:$J$4,0),TRUE)","v":1},{"$f":"VLOOKUP(OFFSET($B:$B,,MATCH(AC$4,$B$4:$F$4,0)-1),OFFSET('C. PoC Adj Factor Scoring'!$E$5:$J$282,,MATCH(AC$4,'C. PoC Adj Factor Scoring'!$E$3:$AH$3,0)-1),MATCH(AC$2&\" Score\",'C. PoC Adj Factor Scoring'!$E$4:$J$4,0),TRUE)","v":1},{"$f":"VLOOKUP(OFFSET($B:$B,,MATCH(AD$4,$B$4:$F$4,0)-1),OFFSET('C. PoC Adj Factor Scoring'!$E$5:$J$282,,MATCH(AD$4,'C. PoC Adj Factor Scoring'!$E$3:$AH$3,0)-1),MATCH(AD$2&\" Score\",'C. PoC Adj Factor Scoring'!$E$4:$J$4,0),TRUE)","v":1},{"$f":"VLOOKUP(OFFSET($B:$B,,MATCH(AE$4,$B$4:$F$4,0)-1),OFFSET('C. PoC Adj Factor Scoring'!$E$5:$J$282,,MATCH(AE$4,'C. PoC Adj Factor Scoring'!$E$3:$AH$3,0)-1),MATCH(AE$2&\" Score\",'C. PoC Adj Factor Scoring'!$E$4:$J$4,0),TRUE)","v":1}]
[{"$f":"'A. Population Info'!A468","v":1001481508},{"$f":"'A. Population Info'!L468","v":"SF6"},{"$f":"'A. Population Info'!M468","v":0},{"$f":"'A. Population Info'!N468","v":0},{"$f":"'A. Population Info'!O468","v":0},{"$f":"'A. Population Info'!P468","v":0},{"$f":"VLOOKUP(OFFSET($B:$B,,MATCH(G$4,$B$4:$F$4,0)-1),OFFSET('C. PoC Adj Factor Scoring'!$E$5:$J$282,,MATCH(G$4,'C. PoC Adj Factor Scoring'!$E$3:$AH$3,0)-1),MATCH(G$2&\" Score\",'C. PoC Adj Factor Scoring'!$E$4:$J$4,0),TRUE)","v":1},{"$f":"VLOOKUP(OFFSET($B:$B,,MATCH(H$4,$B$4:$F$4,0)-1),OFFSET('C. PoC Adj Factor Scoring'!$E$5:$J$282,,MATCH(H$4,'C. PoC Adj Factor Scoring'!$E$3:$AH$3,0)-1),MATCH(H$2&\" Score\",'C. PoC Adj Factor Scoring'!$E$4:$J$4,0),TRUE)","v":1},{"$f":"VLOOKUP(OFFSET($B:$B,,MATCH(I$4,$B$4:$F$4,0)-1),OFFSET('C. PoC Adj Factor Scoring'!$E$5:$J$282,,MATCH(I$4,'C. PoC Adj Factor Scoring'!$E$3:$AH$3,0)-1),MATCH(I$2&\" Score\",'C. PoC Adj Factor Scoring'!$E$4:$J$4,0),TRUE)","v":1},{"$f":"VLOOKUP(OFFSET($B:$B,,MATCH(J$4,$B$4:$F$4,0)-1),OFFSET('C. PoC Adj Factor Scoring'!$E$5:$J$282,,MATCH(J$4,'C. PoC Adj Factor Scoring'!$E$3:$AH$3,0)-1),MATCH(J$2&\" Score\",'C. PoC Adj Factor Scoring'!$E$4:$J$4,0),TRUE)","v":1},{"$f":"VLOOKUP(OFFSET($B:$B,,MATCH(K$4,$B$4:$F$4,0)-1),OFFSET('C. PoC Adj Factor Scoring'!$E$5:$J$282,,MATCH(K$4,'C. PoC Adj Factor Scoring'!$E$3:$AH$3,0)-1),MATCH(K$2&\" Score\",'C. PoC Adj Factor Scoring'!$E$4:$J$4,0),TRUE)","v":1},{"$f":"VLOOKUP(OFFSET($B:$B,,MATCH(L$4,$B$4:$F$4,0)-1),OFFSET('C. PoC Adj Factor Scoring'!$E$5:$J$282,,MATCH(L$4,'C. PoC Adj Factor Scoring'!$E$3:$AH$3,0)-1),MATCH(L$2&\" Score\",'C. PoC Adj Factor Scoring'!$E$4:$J$4,0),TRUE)","v":1},{"$f":"VLOOKUP(OFFSET($B:$B,,MATCH(M$4,$B$4:$F$4,0)-1),OFFSET('C. PoC Adj Factor Scoring'!$E$5:$J$282,,MATCH(M$4,'C. PoC Adj Factor Scoring'!$E$3:$AH$3,0)-1),MATCH(M$2&\" Score\",'C. PoC Adj Factor Scoring'!$E$4:$J$4,0),TRUE)","v":1},{"$f":"VLOOKUP(OFFSET($B:$B,,MATCH(N$4,$B$4:$F$4,0)-1),OFFSET('C. PoC Adj Factor Scoring'!$E$5:$J$282,,MATCH(N$4,'C. PoC Adj Factor Scoring'!$E$3:$AH$3,0)-1),MATCH(N$2&\" Score\",'C. PoC Adj Factor Scoring'!$E$4:$J$4,0),TRUE)","v":1},{"$f":"VLOOKUP(OFFSET($B:$B,,MATCH(O$4,$B$4:$F$4,0)-1),OFFSET('C. PoC Adj Factor Scoring'!$E$5:$J$282,,MATCH(O$4,'C. PoC Adj Factor Scoring'!$E$3:$AH$3,0)-1),MATCH(O$2&\" Score\",'C. PoC Adj Factor Scoring'!$E$4:$J$4,0),TRUE)","v":1},{"$f":"VLOOKUP(OFFSET($B:$B,,MATCH(P$4,$B$4:$F$4,0)-1),OFFSET('C. PoC Adj Factor Scoring'!$E$5:$J$282,,MATCH(P$4,'C. PoC Adj Factor Scoring'!$E$3:$AH$3,0)-1),MATCH(P$2&\" Score\",'C. PoC Adj Factor Scoring'!$E$4:$J$4,0),TRUE)","v":1},{"$f":"VLOOKUP(OFFSET($B:$B,,MATCH(Q$4,$B$4:$F$4,0)-1),OFFSET('C. PoC Adj Factor Scoring'!$E$5:$J$282,,MATCH(Q$4,'C. PoC Adj Factor Scoring'!$E$3:$AH$3,0)-1),MATCH(Q$2&\" Score\",'C. PoC Adj Factor Scoring'!$E$4:$J$4,0),TRUE)","v":1},{"$f":"VLOOKUP(OFFSET($B:$B,,MATCH(R$4,$B$4:$F$4,0)-1),OFFSET('C. PoC Adj Factor Scoring'!$E$5:$J$282,,MATCH(R$4,'C. PoC Adj Factor Scoring'!$E$3:$AH$3,0)-1),MATCH(R$2&\" Score\",'C. PoC Adj Factor Scoring'!$E$4:$J$4,0),TRUE)","v":1},{"$f":"VLOOKUP(OFFSET($B:$B,,MATCH(S$4,$B$4:$F$4,0)-1),OFFSET('C. PoC Adj Factor Scoring'!$E$5:$J$282,,MATCH(S$4,'C. PoC Adj Factor Scoring'!$E$3:$AH$3,0)-1),MATCH(S$2&\" Score\",'C. PoC Adj Factor Scoring'!$E$4:$J$4,0),TRUE)","v":1},{"$f":"VLOOKUP(OFFSET($B:$B,,MATCH(T$4,$B$4:$F$4,0)-1),OFFSET('C. PoC Adj Factor Scoring'!$E$5:$J$282,,MATCH(T$4,'C. PoC Adj Factor Scoring'!$E$3:$AH$3,0)-1),MATCH(T$2&\" Score\",'C. PoC Adj Factor Scoring'!$E$4:$J$4,0),TRUE)","v":1},{"$f":"VLOOKUP(OFFSET($B:$B,,MATCH(U$4,$B$4:$F$4,0)-1),OFFSET('C. PoC Adj Factor Scoring'!$E$5:$J$282,,MATCH(U$4,'C. PoC Adj Factor Scoring'!$E$3:$AH$3,0)-1),MATCH(U$2&\" Score\",'C. PoC Adj Factor Scoring'!$E$4:$J$4,0),TRUE)","v":1},{"$f":"VLOOKUP(OFFSET($B:$B,,MATCH(V$4,$B$4:$F$4,0)-1),OFFSET('C. PoC Adj Factor Scoring'!$E$5:$J$282,,MATCH(V$4,'C. PoC Adj Factor Scoring'!$E$3:$AH$3,0)-1),MATCH(V$2&\" Score\",'C. PoC Adj Factor Scoring'!$E$4:$J$4,0),TRUE)","v":1},{"$f":"VLOOKUP(OFFSET($B:$B,,MATCH(W$4,$B$4:$F$4,0)-1),OFFSET('C. PoC Adj Factor Scoring'!$E$5:$J$282,,MATCH(W$4,'C. PoC Adj Factor Scoring'!$E$3:$AH$3,0)-1),MATCH(W$2&\" Score\",'C. PoC Adj Factor Scoring'!$E$4:$J$4,0),TRUE)","v":1},{"$f":"VLOOKUP(OFFSET($B:$B,,MATCH(X$4,$B$4:$F$4,0)-1),OFFSET('C. PoC Adj Factor Scoring'!$E$5:$J$282,,MATCH(X$4,'C. PoC Adj Factor Scoring'!$E$3:$AH$3,0)-1),MATCH(X$2&\" Score\",'C. PoC Adj Factor Scoring'!$E$4:$J$4,0),TRUE)","v":1},{"$f":"VLOOKUP(OFFSET($B:$B,,MATCH(Y$4,$B$4:$F$4,0)-1),OFFSET('C. PoC Adj Factor Scoring'!$E$5:$J$282,,MATCH(Y$4,'C. PoC Adj Factor Scoring'!$E$3:$AH$3,0)-1),MATCH(Y$2&\" Score\",'C. PoC Adj Factor Scoring'!$E$4:$J$4,0),TRUE)","v":1},{"$f":"VLOOKUP(OFFSET($B:$B,,MATCH(Z$4,$B$4:$F$4,0)-1),OFFSET('C. PoC Adj Factor Scoring'!$E$5:$J$282,,MATCH(Z$4,'C. PoC Adj Factor Scoring'!$E$3:$AH$3,0)-1),MATCH(Z$2&\" Score\",'C. PoC Adj Factor Scoring'!$E$4:$J$4,0),TRUE)","v":1},{"$f":"VLOOKUP(OFFSET($B:$B,,MATCH(AA$4,$B$4:$F$4,0)-1),OFFSET('C. PoC Adj Factor Scoring'!$E$5:$J$282,,MATCH(AA$4,'C. PoC Adj Factor Scoring'!$E$3:$AH$3,0)-1),MATCH(AA$2&\" Score\",'C. PoC Adj Factor Scoring'!$E$4:$J$4,0),TRUE)","v":2},{"$f":"VLOOKUP(OFFSET($B:$B,,MATCH(AB$4,$B$4:$F$4,0)-1),OFFSET('C. PoC Adj Factor Scoring'!$E$5:$J$282,,MATCH(AB$4,'C. PoC Adj Factor Scoring'!$E$3:$AH$3,0)-1),MATCH(AB$2&\" Score\",'C. PoC Adj Factor Scoring'!$E$4:$J$4,0),TRUE)","v":1},{"$f":"VLOOKUP(OFFSET($B:$B,,MATCH(AC$4,$B$4:$F$4,0)-1),OFFSET('C. PoC Adj Factor Scoring'!$E$5:$J$282,,MATCH(AC$4,'C. PoC Adj Factor Scoring'!$E$3:$AH$3,0)-1),MATCH(AC$2&\" Score\",'C. PoC Adj Factor Scoring'!$E$4:$J$4,0),TRUE)","v":1},{"$f":"VLOOKUP(OFFSET($B:$B,,MATCH(AD$4,$B$4:$F$4,0)-1),OFFSET('C. PoC Adj Factor Scoring'!$E$5:$J$282,,MATCH(AD$4,'C. PoC Adj Factor Scoring'!$E$3:$AH$3,0)-1),MATCH(AD$2&\" Score\",'C. PoC Adj Factor Scoring'!$E$4:$J$4,0),TRUE)","v":1},{"$f":"VLOOKUP(OFFSET($B:$B,,MATCH(AE$4,$B$4:$F$4,0)-1),OFFSET('C. PoC Adj Factor Scoring'!$E$5:$J$282,,MATCH(AE$4,'C. PoC Adj Factor Scoring'!$E$3:$AH$3,0)-1),MATCH(AE$2&\" Score\",'C. PoC Adj Factor Scoring'!$E$4:$J$4,0),TRUE)","v":1}]
[{"$f":"'A. Population Info'!A469","v":1001481509},{"$f":"'A. Population Info'!L469","v":"SF6"},{"$f":"'A. Population Info'!M469","v":0},{"$f":"'A. Population Info'!N469","v":0},{"$f":"'A. Population Info'!O469","v":0},{"$f":"'A. Population Info'!P469","v":0},{"$f":"VLOOKUP(OFFSET($B:$B,,MATCH(G$4,$B$4:$F$4,0)-1),OFFSET('C. PoC Adj Factor Scoring'!$E$5:$J$282,,MATCH(G$4,'C. PoC Adj Factor Scoring'!$E$3:$AH$3,0)-1),MATCH(G$2&\" Score\",'C. PoC Adj Factor Scoring'!$E$4:$J$4,0),TRUE)","v":1},{"$f":"VLOOKUP(OFFSET($B:$B,,MATCH(H$4,$B$4:$F$4,0)-1),OFFSET('C. PoC Adj Factor Scoring'!$E$5:$J$282,,MATCH(H$4,'C. PoC Adj Factor Scoring'!$E$3:$AH$3,0)-1),MATCH(H$2&\" Score\",'C. PoC Adj Factor Scoring'!$E$4:$J$4,0),TRUE)","v":1},{"$f":"VLOOKUP(OFFSET($B:$B,,MATCH(I$4,$B$4:$F$4,0)-1),OFFSET('C. PoC Adj Factor Scoring'!$E$5:$J$282,,MATCH(I$4,'C. PoC Adj Factor Scoring'!$E$3:$AH$3,0)-1),MATCH(I$2&\" Score\",'C. PoC Adj Factor Scoring'!$E$4:$J$4,0),TRUE)","v":1},{"$f":"VLOOKUP(OFFSET($B:$B,,MATCH(J$4,$B$4:$F$4,0)-1),OFFSET('C. PoC Adj Factor Scoring'!$E$5:$J$282,,MATCH(J$4,'C. PoC Adj Factor Scoring'!$E$3:$AH$3,0)-1),MATCH(J$2&\" Score\",'C. PoC Adj Factor Scoring'!$E$4:$J$4,0),TRUE)","v":1},{"$f":"VLOOKUP(OFFSET($B:$B,,MATCH(K$4,$B$4:$F$4,0)-1),OFFSET('C. PoC Adj Factor Scoring'!$E$5:$J$282,,MATCH(K$4,'C. PoC Adj Factor Scoring'!$E$3:$AH$3,0)-1),MATCH(K$2&\" Score\",'C. PoC Adj Factor Scoring'!$E$4:$J$4,0),TRUE)","v":1},{"$f":"VLOOKUP(OFFSET($B:$B,,MATCH(L$4,$B$4:$F$4,0)-1),OFFSET('C. PoC Adj Factor Scoring'!$E$5:$J$282,,MATCH(L$4,'C. PoC Adj Factor Scoring'!$E$3:$AH$3,0)-1),MATCH(L$2&\" Score\",'C. PoC Adj Factor Scoring'!$E$4:$J$4,0),TRUE)","v":1},{"$f":"VLOOKUP(OFFSET($B:$B,,MATCH(M$4,$B$4:$F$4,0)-1),OFFSET('C. PoC Adj Factor Scoring'!$E$5:$J$282,,MATCH(M$4,'C. PoC Adj Factor Scoring'!$E$3:$AH$3,0)-1),MATCH(M$2&\" Score\",'C. PoC Adj Factor Scoring'!$E$4:$J$4,0),TRUE)","v":1},{"$f":"VLOOKUP(OFFSET($B:$B,,MATCH(N$4,$B$4:$F$4,0)-1),OFFSET('C. PoC Adj Factor Scoring'!$E$5:$J$282,,MATCH(N$4,'C. PoC Adj Factor Scoring'!$E$3:$AH$3,0)-1),MATCH(N$2&\" Score\",'C. PoC Adj Factor Scoring'!$E$4:$J$4,0),TRUE)","v":1},{"$f":"VLOOKUP(OFFSET($B:$B,,MATCH(O$4,$B$4:$F$4,0)-1),OFFSET('C. PoC Adj Factor Scoring'!$E$5:$J$282,,MATCH(O$4,'C. PoC Adj Factor Scoring'!$E$3:$AH$3,0)-1),MATCH(O$2&\" Score\",'C. PoC Adj Factor Scoring'!$E$4:$J$4,0),TRUE)","v":1},{"$f":"VLOOKUP(OFFSET($B:$B,,MATCH(P$4,$B$4:$F$4,0)-1),OFFSET('C. PoC Adj Factor Scoring'!$E$5:$J$282,,MATCH(P$4,'C. PoC Adj Factor Scoring'!$E$3:$AH$3,0)-1),MATCH(P$2&\" Score\",'C. PoC Adj Factor Scoring'!$E$4:$J$4,0),TRUE)","v":1},{"$f":"VLOOKUP(OFFSET($B:$B,,MATCH(Q$4,$B$4:$F$4,0)-1),OFFSET('C. PoC Adj Factor Scoring'!$E$5:$J$282,,MATCH(Q$4,'C. PoC Adj Factor Scoring'!$E$3:$AH$3,0)-1),MATCH(Q$2&\" Score\",'C. PoC Adj Factor Scoring'!$E$4:$J$4,0),TRUE)","v":1},{"$f":"VLOOKUP(OFFSET($B:$B,,MATCH(R$4,$B$4:$F$4,0)-1),OFFSET('C. PoC Adj Factor Scoring'!$E$5:$J$282,,MATCH(R$4,'C. PoC Adj Factor Scoring'!$E$3:$AH$3,0)-1),MATCH(R$2&\" Score\",'C. PoC Adj Factor Scoring'!$E$4:$J$4,0),TRUE)","v":1},{"$f":"VLOOKUP(OFFSET($B:$B,,MATCH(S$4,$B$4:$F$4,0)-1),OFFSET('C. PoC Adj Factor Scoring'!$E$5:$J$282,,MATCH(S$4,'C. PoC Adj Factor Scoring'!$E$3:$AH$3,0)-1),MATCH(S$2&\" Score\",'C. PoC Adj Factor Scoring'!$E$4:$J$4,0),TRUE)","v":1},{"$f":"VLOOKUP(OFFSET($B:$B,,MATCH(T$4,$B$4:$F$4,0)-1),OFFSET('C. PoC Adj Factor Scoring'!$E$5:$J$282,,MATCH(T$4,'C. PoC Adj Factor Scoring'!$E$3:$AH$3,0)-1),MATCH(T$2&\" Score\",'C. PoC Adj Factor Scoring'!$E$4:$J$4,0),TRUE)","v":1},{"$f":"VLOOKUP(OFFSET($B:$B,,MATCH(U$4,$B$4:$F$4,0)-1),OFFSET('C. PoC Adj Factor Scoring'!$E$5:$J$282,,MATCH(U$4,'C. PoC Adj Factor Scoring'!$E$3:$AH$3,0)-1),MATCH(U$2&\" Score\",'C. PoC Adj Factor Scoring'!$E$4:$J$4,0),TRUE)","v":1},{"$f":"VLOOKUP(OFFSET($B:$B,,MATCH(V$4,$B$4:$F$4,0)-1),OFFSET('C. PoC Adj Factor Scoring'!$E$5:$J$282,,MATCH(V$4,'C. PoC Adj Factor Scoring'!$E$3:$AH$3,0)-1),MATCH(V$2&\" Score\",'C. PoC Adj Factor Scoring'!$E$4:$J$4,0),TRUE)","v":1},{"$f":"VLOOKUP(OFFSET($B:$B,,MATCH(W$4,$B$4:$F$4,0)-1),OFFSET('C. PoC Adj Factor Scoring'!$E$5:$J$282,,MATCH(W$4,'C. PoC Adj Factor Scoring'!$E$3:$AH$3,0)-1),MATCH(W$2&\" Score\",'C. PoC Adj Factor Scoring'!$E$4:$J$4,0),TRUE)","v":1},{"$f":"VLOOKUP(OFFSET($B:$B,,MATCH(X$4,$B$4:$F$4,0)-1),OFFSET('C. PoC Adj Factor Scoring'!$E$5:$J$282,,MATCH(X$4,'C. PoC Adj Factor Scoring'!$E$3:$AH$3,0)-1),MATCH(X$2&\" Score\",'C. PoC Adj Factor Scoring'!$E$4:$J$4,0),TRUE)","v":1},{"$f":"VLOOKUP(OFFSET($B:$B,,MATCH(Y$4,$B$4:$F$4,0)-1),OFFSET('C. PoC Adj Factor Scoring'!$E$5:$J$282,,MATCH(Y$4,'C. PoC Adj Factor Scoring'!$E$3:$AH$3,0)-1),MATCH(Y$2&\" Score\",'C. PoC Adj Factor Scoring'!$E$4:$J$4,0),TRUE)","v":1},{"$f":"VLOOKUP(OFFSET($B:$B,,MATCH(Z$4,$B$4:$F$4,0)-1),OFFSET('C. PoC Adj Factor Scoring'!$E$5:$J$282,,MATCH(Z$4,'C. PoC Adj Factor Scoring'!$E$3:$AH$3,0)-1),MATCH(Z$2&\" Score\",'C. PoC Adj Factor Scoring'!$E$4:$J$4,0),TRUE)","v":1},{"$f":"VLOOKUP(OFFSET($B:$B,,MATCH(AA$4,$B$4:$F$4,0)-1),OFFSET('C. PoC Adj Factor Scoring'!$E$5:$J$282,,MATCH(AA$4,'C. PoC Adj Factor Scoring'!$E$3:$AH$3,0)-1),MATCH(AA$2&\" Score\",'C. PoC Adj Factor Scoring'!$E$4:$J$4,0),TRUE)","v":2},{"$f":"VLOOKUP(OFFSET($B:$B,,MATCH(AB$4,$B$4:$F$4,0)-1),OFFSET('C. PoC Adj Factor Scoring'!$E$5:$J$282,,MATCH(AB$4,'C. PoC Adj Factor Scoring'!$E$3:$AH$3,0)-1),MATCH(AB$2&\" Score\",'C. PoC Adj Factor Scoring'!$E$4:$J$4,0),TRUE)","v":1},{"$f":"VLOOKUP(OFFSET($B:$B,,MATCH(AC$4,$B$4:$F$4,0)-1),OFFSET('C. PoC Adj Factor Scoring'!$E$5:$J$282,,MATCH(AC$4,'C. PoC Adj Factor Scoring'!$E$3:$AH$3,0)-1),MATCH(AC$2&\" Score\",'C. PoC Adj Factor Scoring'!$E$4:$J$4,0),TRUE)","v":1},{"$f":"VLOOKUP(OFFSET($B:$B,,MATCH(AD$4,$B$4:$F$4,0)-1),OFFSET('C. PoC Adj Factor Scoring'!$E$5:$J$282,,MATCH(AD$4,'C. PoC Adj Factor Scoring'!$E$3:$AH$3,0)-1),MATCH(AD$2&\" Score\",'C. PoC Adj Factor Scoring'!$E$4:$J$4,0),TRUE)","v":1},{"$f":"VLOOKUP(OFFSET($B:$B,,MATCH(AE$4,$B$4:$F$4,0)-1),OFFSET('C. PoC Adj Factor Scoring'!$E$5:$J$282,,MATCH(AE$4,'C. PoC Adj Factor Scoring'!$E$3:$AH$3,0)-1),MATCH(AE$2&\" Score\",'C. PoC Adj Factor Scoring'!$E$4:$J$4,0),TRUE)","v":1}]
[{"$f":"'A. Population Info'!A470","v":1001481511},{"$f":"'A. Population Info'!L470","v":"SF6"},{"$f":"'A. Population Info'!M470","v":0},{"$f":"'A. Population Info'!N470","v":0},{"$f":"'A. Population Info'!O470","v":0},{"$f":"'A. Population Info'!P470","v":0},{"$f":"VLOOKUP(OFFSET($B:$B,,MATCH(G$4,$B$4:$F$4,0)-1),OFFSET('C. PoC Adj Factor Scoring'!$E$5:$J$282,,MATCH(G$4,'C. PoC Adj Factor Scoring'!$E$3:$AH$3,0)-1),MATCH(G$2&\" Score\",'C. PoC Adj Factor Scoring'!$E$4:$J$4,0),TRUE)","v":1},{"$f":"VLOOKUP(OFFSET($B:$B,,MATCH(H$4,$B$4:$F$4,0)-1),OFFSET('C. PoC Adj Factor Scoring'!$E$5:$J$282,,MATCH(H$4,'C. PoC Adj Factor Scoring'!$E$3:$AH$3,0)-1),MATCH(H$2&\" Score\",'C. PoC Adj Factor Scoring'!$E$4:$J$4,0),TRUE)","v":1},{"$f":"VLOOKUP(OFFSET($B:$B,,MATCH(I$4,$B$4:$F$4,0)-1),OFFSET('C. PoC Adj Factor Scoring'!$E$5:$J$282,,MATCH(I$4,'C. PoC Adj Factor Scoring'!$E$3:$AH$3,0)-1),MATCH(I$2&\" Score\",'C. PoC Adj Factor Scoring'!$E$4:$J$4,0),TRUE)","v":1},{"$f":"VLOOKUP(OFFSET($B:$B,,MATCH(J$4,$B$4:$F$4,0)-1),OFFSET('C. PoC Adj Factor Scoring'!$E$5:$J$282,,MATCH(J$4,'C. PoC Adj Factor Scoring'!$E$3:$AH$3,0)-1),MATCH(J$2&\" Score\",'C. PoC Adj Factor Scoring'!$E$4:$J$4,0),TRUE)","v":1},{"$f":"VLOOKUP(OFFSET($B:$B,,MATCH(K$4,$B$4:$F$4,0)-1),OFFSET('C. PoC Adj Factor Scoring'!$E$5:$J$282,,MATCH(K$4,'C. PoC Adj Factor Scoring'!$E$3:$AH$3,0)-1),MATCH(K$2&\" Score\",'C. PoC Adj Factor Scoring'!$E$4:$J$4,0),TRUE)","v":1},{"$f":"VLOOKUP(OFFSET($B:$B,,MATCH(L$4,$B$4:$F$4,0)-1),OFFSET('C. PoC Adj Factor Scoring'!$E$5:$J$282,,MATCH(L$4,'C. PoC Adj Factor Scoring'!$E$3:$AH$3,0)-1),MATCH(L$2&\" Score\",'C. PoC Adj Factor Scoring'!$E$4:$J$4,0),TRUE)","v":1},{"$f":"VLOOKUP(OFFSET($B:$B,,MATCH(M$4,$B$4:$F$4,0)-1),OFFSET('C. PoC Adj Factor Scoring'!$E$5:$J$282,,MATCH(M$4,'C. PoC Adj Factor Scoring'!$E$3:$AH$3,0)-1),MATCH(M$2&\" Score\",'C. PoC Adj Factor Scoring'!$E$4:$J$4,0),TRUE)","v":1},{"$f":"VLOOKUP(OFFSET($B:$B,,MATCH(N$4,$B$4:$F$4,0)-1),OFFSET('C. PoC Adj Factor Scoring'!$E$5:$J$282,,MATCH(N$4,'C. PoC Adj Factor Scoring'!$E$3:$AH$3,0)-1),MATCH(N$2&\" Score\",'C. PoC Adj Factor Scoring'!$E$4:$J$4,0),TRUE)","v":1},{"$f":"VLOOKUP(OFFSET($B:$B,,MATCH(O$4,$B$4:$F$4,0)-1),OFFSET('C. PoC Adj Factor Scoring'!$E$5:$J$282,,MATCH(O$4,'C. PoC Adj Factor Scoring'!$E$3:$AH$3,0)-1),MATCH(O$2&\" Score\",'C. PoC Adj Factor Scoring'!$E$4:$J$4,0),TRUE)","v":1},{"$f":"VLOOKUP(OFFSET($B:$B,,MATCH(P$4,$B$4:$F$4,0)-1),OFFSET('C. PoC Adj Factor Scoring'!$E$5:$J$282,,MATCH(P$4,'C. PoC Adj Factor Scoring'!$E$3:$AH$3,0)-1),MATCH(P$2&\" Score\",'C. PoC Adj Factor Scoring'!$E$4:$J$4,0),TRUE)","v":1},{"$f":"VLOOKUP(OFFSET($B:$B,,MATCH(Q$4,$B$4:$F$4,0)-1),OFFSET('C. PoC Adj Factor Scoring'!$E$5:$J$282,,MATCH(Q$4,'C. PoC Adj Factor Scoring'!$E$3:$AH$3,0)-1),MATCH(Q$2&\" Score\",'C. PoC Adj Factor Scoring'!$E$4:$J$4,0),TRUE)","v":1},{"$f":"VLOOKUP(OFFSET($B:$B,,MATCH(R$4,$B$4:$F$4,0)-1),OFFSET('C. PoC Adj Factor Scoring'!$E$5:$J$282,,MATCH(R$4,'C. PoC Adj Factor Scoring'!$E$3:$AH$3,0)-1),MATCH(R$2&\" Score\",'C. PoC Adj Factor Scoring'!$E$4:$J$4,0),TRUE)","v":1},{"$f":"VLOOKUP(OFFSET($B:$B,,MATCH(S$4,$B$4:$F$4,0)-1),OFFSET('C. PoC Adj Factor Scoring'!$E$5:$J$282,,MATCH(S$4,'C. PoC Adj Factor Scoring'!$E$3:$AH$3,0)-1),MATCH(S$2&\" Score\",'C. PoC Adj Factor Scoring'!$E$4:$J$4,0),TRUE)","v":1},{"$f":"VLOOKUP(OFFSET($B:$B,,MATCH(T$4,$B$4:$F$4,0)-1),OFFSET('C. PoC Adj Factor Scoring'!$E$5:$J$282,,MATCH(T$4,'C. PoC Adj Factor Scoring'!$E$3:$AH$3,0)-1),MATCH(T$2&\" Score\",'C. PoC Adj Factor Scoring'!$E$4:$J$4,0),TRUE)","v":1},{"$f":"VLOOKUP(OFFSET($B:$B,,MATCH(U$4,$B$4:$F$4,0)-1),OFFSET('C. PoC Adj Factor Scoring'!$E$5:$J$282,,MATCH(U$4,'C. PoC Adj Factor Scoring'!$E$3:$AH$3,0)-1),MATCH(U$2&\" Score\",'C. PoC Adj Factor Scoring'!$E$4:$J$4,0),TRUE)","v":1},{"$f":"VLOOKUP(OFFSET($B:$B,,MATCH(V$4,$B$4:$F$4,0)-1),OFFSET('C. PoC Adj Factor Scoring'!$E$5:$J$282,,MATCH(V$4,'C. PoC Adj Factor Scoring'!$E$3:$AH$3,0)-1),MATCH(V$2&\" Score\",'C. PoC Adj Factor Scoring'!$E$4:$J$4,0),TRUE)","v":1},{"$f":"VLOOKUP(OFFSET($B:$B,,MATCH(W$4,$B$4:$F$4,0)-1),OFFSET('C. PoC Adj Factor Scoring'!$E$5:$J$282,,MATCH(W$4,'C. PoC Adj Factor Scoring'!$E$3:$AH$3,0)-1),MATCH(W$2&\" Score\",'C. PoC Adj Factor Scoring'!$E$4:$J$4,0),TRUE)","v":1},{"$f":"VLOOKUP(OFFSET($B:$B,,MATCH(X$4,$B$4:$F$4,0)-1),OFFSET('C. PoC Adj Factor Scoring'!$E$5:$J$282,,MATCH(X$4,'C. PoC Adj Factor Scoring'!$E$3:$AH$3,0)-1),MATCH(X$2&\" Score\",'C. PoC Adj Factor Scoring'!$E$4:$J$4,0),TRUE)","v":1},{"$f":"VLOOKUP(OFFSET($B:$B,,MATCH(Y$4,$B$4:$F$4,0)-1),OFFSET('C. PoC Adj Factor Scoring'!$E$5:$J$282,,MATCH(Y$4,'C. PoC Adj Factor Scoring'!$E$3:$AH$3,0)-1),MATCH(Y$2&\" Score\",'C. PoC Adj Factor Scoring'!$E$4:$J$4,0),TRUE)","v":1},{"$f":"VLOOKUP(OFFSET($B:$B,,MATCH(Z$4,$B$4:$F$4,0)-1),OFFSET('C. PoC Adj Factor Scoring'!$E$5:$J$282,,MATCH(Z$4,'C. PoC Adj Factor Scoring'!$E$3:$AH$3,0)-1),MATCH(Z$2&\" Score\",'C. PoC Adj Factor Scoring'!$E$4:$J$4,0),TRUE)","v":1},{"$f":"VLOOKUP(OFFSET($B:$B,,MATCH(AA$4,$B$4:$F$4,0)-1),OFFSET('C. PoC Adj Factor Scoring'!$E$5:$J$282,,MATCH(AA$4,'C. PoC Adj Factor Scoring'!$E$3:$AH$3,0)-1),MATCH(AA$2&\" Score\",'C. PoC Adj Factor Scoring'!$E$4:$J$4,0),TRUE)","v":2},{"$f":"VLOOKUP(OFFSET($B:$B,,MATCH(AB$4,$B$4:$F$4,0)-1),OFFSET('C. PoC Adj Factor Scoring'!$E$5:$J$282,,MATCH(AB$4,'C. PoC Adj Factor Scoring'!$E$3:$AH$3,0)-1),MATCH(AB$2&\" Score\",'C. PoC Adj Factor Scoring'!$E$4:$J$4,0),TRUE)","v":1},{"$f":"VLOOKUP(OFFSET($B:$B,,MATCH(AC$4,$B$4:$F$4,0)-1),OFFSET('C. PoC Adj Factor Scoring'!$E$5:$J$282,,MATCH(AC$4,'C. PoC Adj Factor Scoring'!$E$3:$AH$3,0)-1),MATCH(AC$2&\" Score\",'C. PoC Adj Factor Scoring'!$E$4:$J$4,0),TRUE)","v":1},{"$f":"VLOOKUP(OFFSET($B:$B,,MATCH(AD$4,$B$4:$F$4,0)-1),OFFSET('C. PoC Adj Factor Scoring'!$E$5:$J$282,,MATCH(AD$4,'C. PoC Adj Factor Scoring'!$E$3:$AH$3,0)-1),MATCH(AD$2&\" Score\",'C. PoC Adj Factor Scoring'!$E$4:$J$4,0),TRUE)","v":1},{"$f":"VLOOKUP(OFFSET($B:$B,,MATCH(AE$4,$B$4:$F$4,0)-1),OFFSET('C. PoC Adj Factor Scoring'!$E$5:$J$282,,MATCH(AE$4,'C. PoC Adj Factor Scoring'!$E$3:$AH$3,0)-1),MATCH(AE$2&\" Score\",'C. PoC Adj Factor Scoring'!$E$4:$J$4,0),TRUE)","v":1}]
[{"$f":"'A. Population Info'!A471","v":1001481559},{"$f":"'A. Population Info'!L471","v":"OIL"},{"$f":"'A. Population Info'!M471","v":0},{"$f":"'A. Population Info'!N471","v":0},{"$f":"'A. Population Info'!O471","v":0},{"$f":"'A. Population Info'!P471","v":0},{"$f":"VLOOKUP(OFFSET($B:$B,,MATCH(G$4,$B$4:$F$4,0)-1),OFFSET('C. PoC Adj Factor Scoring'!$E$5:$J$282,,MATCH(G$4,'C. PoC Adj Factor Scoring'!$E$3:$AH$3,0)-1),MATCH(G$2&\" Score\",'C. PoC Adj Factor Scoring'!$E$4:$J$4,0),TRUE)","v":4},{"$f":"VLOOKUP(OFFSET($B:$B,,MATCH(H$4,$B$4:$F$4,0)-1),OFFSET('C. PoC Adj Factor Scoring'!$E$5:$J$282,,MATCH(H$4,'C. PoC Adj Factor Scoring'!$E$3:$AH$3,0)-1),MATCH(H$2&\" Score\",'C. PoC Adj Factor Scoring'!$E$4:$J$4,0),TRUE)","v":1},{"$f":"VLOOKUP(OFFSET($B:$B,,MATCH(I$4,$B$4:$F$4,0)-1),OFFSET('C. PoC Adj Factor Scoring'!$E$5:$J$282,,MATCH(I$4,'C. PoC Adj Factor Scoring'!$E$3:$AH$3,0)-1),MATCH(I$2&\" Score\",'C. PoC Adj Factor Scoring'!$E$4:$J$4,0),TRUE)","v":1},{"$f":"VLOOKUP(OFFSET($B:$B,,MATCH(J$4,$B$4:$F$4,0)-1),OFFSET('C. PoC Adj Factor Scoring'!$E$5:$J$282,,MATCH(J$4,'C. PoC Adj Factor Scoring'!$E$3:$AH$3,0)-1),MATCH(J$2&\" Score\",'C. PoC Adj Factor Scoring'!$E$4:$J$4,0),TRUE)","v":1},{"$f":"VLOOKUP(OFFSET($B:$B,,MATCH(K$4,$B$4:$F$4,0)-1),OFFSET('C. PoC Adj Factor Scoring'!$E$5:$J$282,,MATCH(K$4,'C. PoC Adj Factor Scoring'!$E$3:$AH$3,0)-1),MATCH(K$2&\" Score\",'C. PoC Adj Factor Scoring'!$E$4:$J$4,0),TRUE)","v":1},{"$f":"VLOOKUP(OFFSET($B:$B,,MATCH(L$4,$B$4:$F$4,0)-1),OFFSET('C. PoC Adj Factor Scoring'!$E$5:$J$282,,MATCH(L$4,'C. PoC Adj Factor Scoring'!$E$3:$AH$3,0)-1),MATCH(L$2&\" Score\",'C. PoC Adj Factor Scoring'!$E$4:$J$4,0),TRUE)","v":1},{"$f":"VLOOKUP(OFFSET($B:$B,,MATCH(M$4,$B$4:$F$4,0)-1),OFFSET('C. PoC Adj Factor Scoring'!$E$5:$J$282,,MATCH(M$4,'C. PoC Adj Factor Scoring'!$E$3:$AH$3,0)-1),MATCH(M$2&\" Score\",'C. PoC Adj Factor Scoring'!$E$4:$J$4,0),TRUE)","v":1},{"$f":"VLOOKUP(OFFSET($B:$B,,MATCH(N$4,$B$4:$F$4,0)-1),OFFSET('C. PoC Adj Factor Scoring'!$E$5:$J$282,,MATCH(N$4,'C. PoC Adj Factor Scoring'!$E$3:$AH$3,0)-1),MATCH(N$2&\" Score\",'C. PoC Adj Factor Scoring'!$E$4:$J$4,0),TRUE)","v":1},{"$f":"VLOOKUP(OFFSET($B:$B,,MATCH(O$4,$B$4:$F$4,0)-1),OFFSET('C. PoC Adj Factor Scoring'!$E$5:$J$282,,MATCH(O$4,'C. PoC Adj Factor Scoring'!$E$3:$AH$3,0)-1),MATCH(O$2&\" Score\",'C. PoC Adj Factor Scoring'!$E$4:$J$4,0),TRUE)","v":1},{"$f":"VLOOKUP(OFFSET($B:$B,,MATCH(P$4,$B$4:$F$4,0)-1),OFFSET('C. PoC Adj Factor Scoring'!$E$5:$J$282,,MATCH(P$4,'C. PoC Adj Factor Scoring'!$E$3:$AH$3,0)-1),MATCH(P$2&\" Score\",'C. PoC Adj Factor Scoring'!$E$4:$J$4,0),TRUE)","v":1},{"$f":"VLOOKUP(OFFSET($B:$B,,MATCH(Q$4,$B$4:$F$4,0)-1),OFFSET('C. PoC Adj Factor Scoring'!$E$5:$J$282,,MATCH(Q$4,'C. PoC Adj Factor Scoring'!$E$3:$AH$3,0)-1),MATCH(Q$2&\" Score\",'C. PoC Adj Factor Scoring'!$E$4:$J$4,0),TRUE)","v":1},{"$f":"VLOOKUP(OFFSET($B:$B,,MATCH(R$4,$B$4:$F$4,0)-1),OFFSET('C. PoC Adj Factor Scoring'!$E$5:$J$282,,MATCH(R$4,'C. PoC Adj Factor Scoring'!$E$3:$AH$3,0)-1),MATCH(R$2&\" Score\",'C. PoC Adj Factor Scoring'!$E$4:$J$4,0),TRUE)","v":1},{"$f":"VLOOKUP(OFFSET($B:$B,,MATCH(S$4,$B$4:$F$4,0)-1),OFFSET('C. PoC Adj Factor Scoring'!$E$5:$J$282,,MATCH(S$4,'C. PoC Adj Factor Scoring'!$E$3:$AH$3,0)-1),MATCH(S$2&\" Score\",'C. PoC Adj Factor Scoring'!$E$4:$J$4,0),TRUE)","v":1},{"$f":"VLOOKUP(OFFSET($B:$B,,MATCH(T$4,$B$4:$F$4,0)-1),OFFSET('C. PoC Adj Factor Scoring'!$E$5:$J$282,,MATCH(T$4,'C. PoC Adj Factor Scoring'!$E$3:$AH$3,0)-1),MATCH(T$2&\" Score\",'C. PoC Adj Factor Scoring'!$E$4:$J$4,0),TRUE)","v":1},{"$f":"VLOOKUP(OFFSET($B:$B,,MATCH(U$4,$B$4:$F$4,0)-1),OFFSET('C. PoC Adj Factor Scoring'!$E$5:$J$282,,MATCH(U$4,'C. PoC Adj Factor Scoring'!$E$3:$AH$3,0)-1),MATCH(U$2&\" Score\",'C. PoC Adj Factor Scoring'!$E$4:$J$4,0),TRUE)","v":1},{"$f":"VLOOKUP(OFFSET($B:$B,,MATCH(V$4,$B$4:$F$4,0)-1),OFFSET('C. PoC Adj Factor Scoring'!$E$5:$J$282,,MATCH(V$4,'C. PoC Adj Factor Scoring'!$E$3:$AH$3,0)-1),MATCH(V$2&\" Score\",'C. PoC Adj Factor Scoring'!$E$4:$J$4,0),TRUE)","v":1},{"$f":"VLOOKUP(OFFSET($B:$B,,MATCH(W$4,$B$4:$F$4,0)-1),OFFSET('C. PoC Adj Factor Scoring'!$E$5:$J$282,,MATCH(W$4,'C. PoC Adj Factor Scoring'!$E$3:$AH$3,0)-1),MATCH(W$2&\" Score\",'C. PoC Adj Factor Scoring'!$E$4:$J$4,0),TRUE)","v":1},{"$f":"VLOOKUP(OFFSET($B:$B,,MATCH(X$4,$B$4:$F$4,0)-1),OFFSET('C. PoC Adj Factor Scoring'!$E$5:$J$282,,MATCH(X$4,'C. PoC Adj Factor Scoring'!$E$3:$AH$3,0)-1),MATCH(X$2&\" Score\",'C. PoC Adj Factor Scoring'!$E$4:$J$4,0),TRUE)","v":1},{"$f":"VLOOKUP(OFFSET($B:$B,,MATCH(Y$4,$B$4:$F$4,0)-1),OFFSET('C. PoC Adj Factor Scoring'!$E$5:$J$282,,MATCH(Y$4,'C. PoC Adj Factor Scoring'!$E$3:$AH$3,0)-1),MATCH(Y$2&\" Score\",'C. PoC Adj Factor Scoring'!$E$4:$J$4,0),TRUE)","v":1},{"$f":"VLOOKUP(OFFSET($B:$B,,MATCH(Z$4,$B$4:$F$4,0)-1),OFFSET('C. PoC Adj Factor Scoring'!$E$5:$J$282,,MATCH(Z$4,'C. PoC Adj Factor Scoring'!$E$3:$AH$3,0)-1),MATCH(Z$2&\" Score\",'C. PoC Adj Factor Scoring'!$E$4:$J$4,0),TRUE)","v":1},{"$f":"VLOOKUP(OFFSET($B:$B,,MATCH(AA$4,$B$4:$F$4,0)-1),OFFSET('C. PoC Adj Factor Scoring'!$E$5:$J$282,,MATCH(AA$4,'C. PoC Adj Factor Scoring'!$E$3:$AH$3,0)-1),MATCH(AA$2&\" Score\",'C. PoC Adj Factor Scoring'!$E$4:$J$4,0),TRUE)","v":3},{"$f":"VLOOKUP(OFFSET($B:$B,,MATCH(AB$4,$B$4:$F$4,0)-1),OFFSET('C. PoC Adj Factor Scoring'!$E$5:$J$282,,MATCH(AB$4,'C. PoC Adj Factor Scoring'!$E$3:$AH$3,0)-1),MATCH(AB$2&\" Score\",'C. PoC Adj Factor Scoring'!$E$4:$J$4,0),TRUE)","v":1},{"$f":"VLOOKUP(OFFSET($B:$B,,MATCH(AC$4,$B$4:$F$4,0)-1),OFFSET('C. PoC Adj Factor Scoring'!$E$5:$J$282,,MATCH(AC$4,'C. PoC Adj Factor Scoring'!$E$3:$AH$3,0)-1),MATCH(AC$2&\" Score\",'C. PoC Adj Factor Scoring'!$E$4:$J$4,0),TRUE)","v":1},{"$f":"VLOOKUP(OFFSET($B:$B,,MATCH(AD$4,$B$4:$F$4,0)-1),OFFSET('C. PoC Adj Factor Scoring'!$E$5:$J$282,,MATCH(AD$4,'C. PoC Adj Factor Scoring'!$E$3:$AH$3,0)-1),MATCH(AD$2&\" Score\",'C. PoC Adj Factor Scoring'!$E$4:$J$4,0),TRUE)","v":1},{"$f":"VLOOKUP(OFFSET($B:$B,,MATCH(AE$4,$B$4:$F$4,0)-1),OFFSET('C. PoC Adj Factor Scoring'!$E$5:$J$282,,MATCH(AE$4,'C. PoC Adj Factor Scoring'!$E$3:$AH$3,0)-1),MATCH(AE$2&\" Score\",'C. PoC Adj Factor Scoring'!$E$4:$J$4,0),TRUE)","v":1}]
[{"$f":"'A. Population Info'!A472","v":1001482403},{"$f":"'A. Population Info'!L472","v":"OIL"},{"$f":"'A. Population Info'!M472","v":0},{"$f":"'A. Population Info'!N472","v":0},{"$f":"'A. Population Info'!O472","v":0},{"$f":"'A. Population Info'!P472","v":0},{"$f":"VLOOKUP(OFFSET($B:$B,,MATCH(G$4,$B$4:$F$4,0)-1),OFFSET('C. PoC Adj Factor Scoring'!$E$5:$J$282,,MATCH(G$4,'C. PoC Adj Factor Scoring'!$E$3:$AH$3,0)-1),MATCH(G$2&\" Score\",'C. PoC Adj Factor Scoring'!$E$4:$J$4,0),TRUE)","v":4},{"$f":"VLOOKUP(OFFSET($B:$B,,MATCH(H$4,$B$4:$F$4,0)-1),OFFSET('C. PoC Adj Factor Scoring'!$E$5:$J$282,,MATCH(H$4,'C. PoC Adj Factor Scoring'!$E$3:$AH$3,0)-1),MATCH(H$2&\" Score\",'C. PoC Adj Factor Scoring'!$E$4:$J$4,0),TRUE)","v":1},{"$f":"VLOOKUP(OFFSET($B:$B,,MATCH(I$4,$B$4:$F$4,0)-1),OFFSET('C. PoC Adj Factor Scoring'!$E$5:$J$282,,MATCH(I$4,'C. PoC Adj Factor Scoring'!$E$3:$AH$3,0)-1),MATCH(I$2&\" Score\",'C. PoC Adj Factor Scoring'!$E$4:$J$4,0),TRUE)","v":1},{"$f":"VLOOKUP(OFFSET($B:$B,,MATCH(J$4,$B$4:$F$4,0)-1),OFFSET('C. PoC Adj Factor Scoring'!$E$5:$J$282,,MATCH(J$4,'C. PoC Adj Factor Scoring'!$E$3:$AH$3,0)-1),MATCH(J$2&\" Score\",'C. PoC Adj Factor Scoring'!$E$4:$J$4,0),TRUE)","v":1},{"$f":"VLOOKUP(OFFSET($B:$B,,MATCH(K$4,$B$4:$F$4,0)-1),OFFSET('C. PoC Adj Factor Scoring'!$E$5:$J$282,,MATCH(K$4,'C. PoC Adj Factor Scoring'!$E$3:$AH$3,0)-1),MATCH(K$2&\" Score\",'C. PoC Adj Factor Scoring'!$E$4:$J$4,0),TRUE)","v":1},{"$f":"VLOOKUP(OFFSET($B:$B,,MATCH(L$4,$B$4:$F$4,0)-1),OFFSET('C. PoC Adj Factor Scoring'!$E$5:$J$282,,MATCH(L$4,'C. PoC Adj Factor Scoring'!$E$3:$AH$3,0)-1),MATCH(L$2&\" Score\",'C. PoC Adj Factor Scoring'!$E$4:$J$4,0),TRUE)","v":1},{"$f":"VLOOKUP(OFFSET($B:$B,,MATCH(M$4,$B$4:$F$4,0)-1),OFFSET('C. PoC Adj Factor Scoring'!$E$5:$J$282,,MATCH(M$4,'C. PoC Adj Factor Scoring'!$E$3:$AH$3,0)-1),MATCH(M$2&\" Score\",'C. PoC Adj Factor Scoring'!$E$4:$J$4,0),TRUE)","v":1},{"$f":"VLOOKUP(OFFSET($B:$B,,MATCH(N$4,$B$4:$F$4,0)-1),OFFSET('C. PoC Adj Factor Scoring'!$E$5:$J$282,,MATCH(N$4,'C. PoC Adj Factor Scoring'!$E$3:$AH$3,0)-1),MATCH(N$2&\" Score\",'C. PoC Adj Factor Scoring'!$E$4:$J$4,0),TRUE)","v":1},{"$f":"VLOOKUP(OFFSET($B:$B,,MATCH(O$4,$B$4:$F$4,0)-1),OFFSET('C. PoC Adj Factor Scoring'!$E$5:$J$282,,MATCH(O$4,'C. PoC Adj Factor Scoring'!$E$3:$AH$3,0)-1),MATCH(O$2&\" Score\",'C. PoC Adj Factor Scoring'!$E$4:$J$4,0),TRUE)","v":1},{"$f":"VLOOKUP(OFFSET($B:$B,,MATCH(P$4,$B$4:$F$4,0)-1),OFFSET('C. PoC Adj Factor Scoring'!$E$5:$J$282,,MATCH(P$4,'C. PoC Adj Factor Scoring'!$E$3:$AH$3,0)-1),MATCH(P$2&\" Score\",'C. PoC Adj Factor Scoring'!$E$4:$J$4,0),TRUE)","v":1},{"$f":"VLOOKUP(OFFSET($B:$B,,MATCH(Q$4,$B$4:$F$4,0)-1),OFFSET('C. PoC Adj Factor Scoring'!$E$5:$J$282,,MATCH(Q$4,'C. PoC Adj Factor Scoring'!$E$3:$AH$3,0)-1),MATCH(Q$2&\" Score\",'C. PoC Adj Factor Scoring'!$E$4:$J$4,0),TRUE)","v":1},{"$f":"VLOOKUP(OFFSET($B:$B,,MATCH(R$4,$B$4:$F$4,0)-1),OFFSET('C. PoC Adj Factor Scoring'!$E$5:$J$282,,MATCH(R$4,'C. PoC Adj Factor Scoring'!$E$3:$AH$3,0)-1),MATCH(R$2&\" Score\",'C. PoC Adj Factor Scoring'!$E$4:$J$4,0),TRUE)","v":1},{"$f":"VLOOKUP(OFFSET($B:$B,,MATCH(S$4,$B$4:$F$4,0)-1),OFFSET('C. PoC Adj Factor Scoring'!$E$5:$J$282,,MATCH(S$4,'C. PoC Adj Factor Scoring'!$E$3:$AH$3,0)-1),MATCH(S$2&\" Score\",'C. PoC Adj Factor Scoring'!$E$4:$J$4,0),TRUE)","v":1},{"$f":"VLOOKUP(OFFSET($B:$B,,MATCH(T$4,$B$4:$F$4,0)-1),OFFSET('C. PoC Adj Factor Scoring'!$E$5:$J$282,,MATCH(T$4,'C. PoC Adj Factor Scoring'!$E$3:$AH$3,0)-1),MATCH(T$2&\" Score\",'C. PoC Adj Factor Scoring'!$E$4:$J$4,0),TRUE)","v":1},{"$f":"VLOOKUP(OFFSET($B:$B,,MATCH(U$4,$B$4:$F$4,0)-1),OFFSET('C. PoC Adj Factor Scoring'!$E$5:$J$282,,MATCH(U$4,'C. PoC Adj Factor Scoring'!$E$3:$AH$3,0)-1),MATCH(U$2&\" Score\",'C. PoC Adj Factor Scoring'!$E$4:$J$4,0),TRUE)","v":1},{"$f":"VLOOKUP(OFFSET($B:$B,,MATCH(V$4,$B$4:$F$4,0)-1),OFFSET('C. PoC Adj Factor Scoring'!$E$5:$J$282,,MATCH(V$4,'C. PoC Adj Factor Scoring'!$E$3:$AH$3,0)-1),MATCH(V$2&\" Score\",'C. PoC Adj Factor Scoring'!$E$4:$J$4,0),TRUE)","v":1},{"$f":"VLOOKUP(OFFSET($B:$B,,MATCH(W$4,$B$4:$F$4,0)-1),OFFSET('C. PoC Adj Factor Scoring'!$E$5:$J$282,,MATCH(W$4,'C. PoC Adj Factor Scoring'!$E$3:$AH$3,0)-1),MATCH(W$2&\" Score\",'C. PoC Adj Factor Scoring'!$E$4:$J$4,0),TRUE)","v":1},{"$f":"VLOOKUP(OFFSET($B:$B,,MATCH(X$4,$B$4:$F$4,0)-1),OFFSET('C. PoC Adj Factor Scoring'!$E$5:$J$282,,MATCH(X$4,'C. PoC Adj Factor Scoring'!$E$3:$AH$3,0)-1),MATCH(X$2&\" Score\",'C. PoC Adj Factor Scoring'!$E$4:$J$4,0),TRUE)","v":1},{"$f":"VLOOKUP(OFFSET($B:$B,,MATCH(Y$4,$B$4:$F$4,0)-1),OFFSET('C. PoC Adj Factor Scoring'!$E$5:$J$282,,MATCH(Y$4,'C. PoC Adj Factor Scoring'!$E$3:$AH$3,0)-1),MATCH(Y$2&\" Score\",'C. PoC Adj Factor Scoring'!$E$4:$J$4,0),TRUE)","v":1},{"$f":"VLOOKUP(OFFSET($B:$B,,MATCH(Z$4,$B$4:$F$4,0)-1),OFFSET('C. PoC Adj Factor Scoring'!$E$5:$J$282,,MATCH(Z$4,'C. PoC Adj Factor Scoring'!$E$3:$AH$3,0)-1),MATCH(Z$2&\" Score\",'C. PoC Adj Factor Scoring'!$E$4:$J$4,0),TRUE)","v":1},{"$f":"VLOOKUP(OFFSET($B:$B,,MATCH(AA$4,$B$4:$F$4,0)-1),OFFSET('C. PoC Adj Factor Scoring'!$E$5:$J$282,,MATCH(AA$4,'C. PoC Adj Factor Scoring'!$E$3:$AH$3,0)-1),MATCH(AA$2&\" Score\",'C. PoC Adj Factor Scoring'!$E$4:$J$4,0),TRUE)","v":3},{"$f":"VLOOKUP(OFFSET($B:$B,,MATCH(AB$4,$B$4:$F$4,0)-1),OFFSET('C. PoC Adj Factor Scoring'!$E$5:$J$282,,MATCH(AB$4,'C. PoC Adj Factor Scoring'!$E$3:$AH$3,0)-1),MATCH(AB$2&\" Score\",'C. PoC Adj Factor Scoring'!$E$4:$J$4,0),TRUE)","v":1},{"$f":"VLOOKUP(OFFSET($B:$B,,MATCH(AC$4,$B$4:$F$4,0)-1),OFFSET('C. PoC Adj Factor Scoring'!$E$5:$J$282,,MATCH(AC$4,'C. PoC Adj Factor Scoring'!$E$3:$AH$3,0)-1),MATCH(AC$2&\" Score\",'C. PoC Adj Factor Scoring'!$E$4:$J$4,0),TRUE)","v":1},{"$f":"VLOOKUP(OFFSET($B:$B,,MATCH(AD$4,$B$4:$F$4,0)-1),OFFSET('C. PoC Adj Factor Scoring'!$E$5:$J$282,,MATCH(AD$4,'C. PoC Adj Factor Scoring'!$E$3:$AH$3,0)-1),MATCH(AD$2&\" Score\",'C. PoC Adj Factor Scoring'!$E$4:$J$4,0),TRUE)","v":1},{"$f":"VLOOKUP(OFFSET($B:$B,,MATCH(AE$4,$B$4:$F$4,0)-1),OFFSET('C. PoC Adj Factor Scoring'!$E$5:$J$282,,MATCH(AE$4,'C. PoC Adj Factor Scoring'!$E$3:$AH$3,0)-1),MATCH(AE$2&\" Score\",'C. PoC Adj Factor Scoring'!$E$4:$J$4,0),TRUE)","v":1}]
[{"$f":"'A. Population Info'!A473","v":1001485864},{"$f":"'A. Population Info'!L473","v":"OIL"},{"$f":"'A. Population Info'!M473","v":0},{"$f":"'A. Population Info'!N473","v":0},{"$f":"'A. Population Info'!O473","v":0},{"$f":"'A. Population Info'!P473","v":0},{"$f":"VLOOKUP(OFFSET($B:$B,,MATCH(G$4,$B$4:$F$4,0)-1),OFFSET('C. PoC Adj Factor Scoring'!$E$5:$J$282,,MATCH(G$4,'C. PoC Adj Factor Scoring'!$E$3:$AH$3,0)-1),MATCH(G$2&\" Score\",'C. PoC Adj Factor Scoring'!$E$4:$J$4,0),TRUE)","v":4},{"$f":"VLOOKUP(OFFSET($B:$B,,MATCH(H$4,$B$4:$F$4,0)-1),OFFSET('C. PoC Adj Factor Scoring'!$E$5:$J$282,,MATCH(H$4,'C. PoC Adj Factor Scoring'!$E$3:$AH$3,0)-1),MATCH(H$2&\" Score\",'C. PoC Adj Factor Scoring'!$E$4:$J$4,0),TRUE)","v":1},{"$f":"VLOOKUP(OFFSET($B:$B,,MATCH(I$4,$B$4:$F$4,0)-1),OFFSET('C. PoC Adj Factor Scoring'!$E$5:$J$282,,MATCH(I$4,'C. PoC Adj Factor Scoring'!$E$3:$AH$3,0)-1),MATCH(I$2&\" Score\",'C. PoC Adj Factor Scoring'!$E$4:$J$4,0),TRUE)","v":1},{"$f":"VLOOKUP(OFFSET($B:$B,,MATCH(J$4,$B$4:$F$4,0)-1),OFFSET('C. PoC Adj Factor Scoring'!$E$5:$J$282,,MATCH(J$4,'C. PoC Adj Factor Scoring'!$E$3:$AH$3,0)-1),MATCH(J$2&\" Score\",'C. PoC Adj Factor Scoring'!$E$4:$J$4,0),TRUE)","v":1},{"$f":"VLOOKUP(OFFSET($B:$B,,MATCH(K$4,$B$4:$F$4,0)-1),OFFSET('C. PoC Adj Factor Scoring'!$E$5:$J$282,,MATCH(K$4,'C. PoC Adj Factor Scoring'!$E$3:$AH$3,0)-1),MATCH(K$2&\" Score\",'C. PoC Adj Factor Scoring'!$E$4:$J$4,0),TRUE)","v":1},{"$f":"VLOOKUP(OFFSET($B:$B,,MATCH(L$4,$B$4:$F$4,0)-1),OFFSET('C. PoC Adj Factor Scoring'!$E$5:$J$282,,MATCH(L$4,'C. PoC Adj Factor Scoring'!$E$3:$AH$3,0)-1),MATCH(L$2&\" Score\",'C. PoC Adj Factor Scoring'!$E$4:$J$4,0),TRUE)","v":1},{"$f":"VLOOKUP(OFFSET($B:$B,,MATCH(M$4,$B$4:$F$4,0)-1),OFFSET('C. PoC Adj Factor Scoring'!$E$5:$J$282,,MATCH(M$4,'C. PoC Adj Factor Scoring'!$E$3:$AH$3,0)-1),MATCH(M$2&\" Score\",'C. PoC Adj Factor Scoring'!$E$4:$J$4,0),TRUE)","v":1},{"$f":"VLOOKUP(OFFSET($B:$B,,MATCH(N$4,$B$4:$F$4,0)-1),OFFSET('C. PoC Adj Factor Scoring'!$E$5:$J$282,,MATCH(N$4,'C. PoC Adj Factor Scoring'!$E$3:$AH$3,0)-1),MATCH(N$2&\" Score\",'C. PoC Adj Factor Scoring'!$E$4:$J$4,0),TRUE)","v":1},{"$f":"VLOOKUP(OFFSET($B:$B,,MATCH(O$4,$B$4:$F$4,0)-1),OFFSET('C. PoC Adj Factor Scoring'!$E$5:$J$282,,MATCH(O$4,'C. PoC Adj Factor Scoring'!$E$3:$AH$3,0)-1),MATCH(O$2&\" Score\",'C. PoC Adj Factor Scoring'!$E$4:$J$4,0),TRUE)","v":1},{"$f":"VLOOKUP(OFFSET($B:$B,,MATCH(P$4,$B$4:$F$4,0)-1),OFFSET('C. PoC Adj Factor Scoring'!$E$5:$J$282,,MATCH(P$4,'C. PoC Adj Factor Scoring'!$E$3:$AH$3,0)-1),MATCH(P$2&\" Score\",'C. PoC Adj Factor Scoring'!$E$4:$J$4,0),TRUE)","v":1},{"$f":"VLOOKUP(OFFSET($B:$B,,MATCH(Q$4,$B$4:$F$4,0)-1),OFFSET('C. PoC Adj Factor Scoring'!$E$5:$J$282,,MATCH(Q$4,'C. PoC Adj Factor Scoring'!$E$3:$AH$3,0)-1),MATCH(Q$2&\" Score\",'C. PoC Adj Factor Scoring'!$E$4:$J$4,0),TRUE)","v":1},{"$f":"VLOOKUP(OFFSET($B:$B,,MATCH(R$4,$B$4:$F$4,0)-1),OFFSET('C. PoC Adj Factor Scoring'!$E$5:$J$282,,MATCH(R$4,'C. PoC Adj Factor Scoring'!$E$3:$AH$3,0)-1),MATCH(R$2&\" Score\",'C. PoC Adj Factor Scoring'!$E$4:$J$4,0),TRUE)","v":1},{"$f":"VLOOKUP(OFFSET($B:$B,,MATCH(S$4,$B$4:$F$4,0)-1),OFFSET('C. PoC Adj Factor Scoring'!$E$5:$J$282,,MATCH(S$4,'C. PoC Adj Factor Scoring'!$E$3:$AH$3,0)-1),MATCH(S$2&\" Score\",'C. PoC Adj Factor Scoring'!$E$4:$J$4,0),TRUE)","v":1},{"$f":"VLOOKUP(OFFSET($B:$B,,MATCH(T$4,$B$4:$F$4,0)-1),OFFSET('C. PoC Adj Factor Scoring'!$E$5:$J$282,,MATCH(T$4,'C. PoC Adj Factor Scoring'!$E$3:$AH$3,0)-1),MATCH(T$2&\" Score\",'C. PoC Adj Factor Scoring'!$E$4:$J$4,0),TRUE)","v":1},{"$f":"VLOOKUP(OFFSET($B:$B,,MATCH(U$4,$B$4:$F$4,0)-1),OFFSET('C. PoC Adj Factor Scoring'!$E$5:$J$282,,MATCH(U$4,'C. PoC Adj Factor Scoring'!$E$3:$AH$3,0)-1),MATCH(U$2&\" Score\",'C. PoC Adj Factor Scoring'!$E$4:$J$4,0),TRUE)","v":1},{"$f":"VLOOKUP(OFFSET($B:$B,,MATCH(V$4,$B$4:$F$4,0)-1),OFFSET('C. PoC Adj Factor Scoring'!$E$5:$J$282,,MATCH(V$4,'C. PoC Adj Factor Scoring'!$E$3:$AH$3,0)-1),MATCH(V$2&\" Score\",'C. PoC Adj Factor Scoring'!$E$4:$J$4,0),TRUE)","v":1},{"$f":"VLOOKUP(OFFSET($B:$B,,MATCH(W$4,$B$4:$F$4,0)-1),OFFSET('C. PoC Adj Factor Scoring'!$E$5:$J$282,,MATCH(W$4,'C. PoC Adj Factor Scoring'!$E$3:$AH$3,0)-1),MATCH(W$2&\" Score\",'C. PoC Adj Factor Scoring'!$E$4:$J$4,0),TRUE)","v":1},{"$f":"VLOOKUP(OFFSET($B:$B,,MATCH(X$4,$B$4:$F$4,0)-1),OFFSET('C. PoC Adj Factor Scoring'!$E$5:$J$282,,MATCH(X$4,'C. PoC Adj Factor Scoring'!$E$3:$AH$3,0)-1),MATCH(X$2&\" Score\",'C. PoC Adj Factor Scoring'!$E$4:$J$4,0),TRUE)","v":1},{"$f":"VLOOKUP(OFFSET($B:$B,,MATCH(Y$4,$B$4:$F$4,0)-1),OFFSET('C. PoC Adj Factor Scoring'!$E$5:$J$282,,MATCH(Y$4,'C. PoC Adj Factor Scoring'!$E$3:$AH$3,0)-1),MATCH(Y$2&\" Score\",'C. PoC Adj Factor Scoring'!$E$4:$J$4,0),TRUE)","v":1},{"$f":"VLOOKUP(OFFSET($B:$B,,MATCH(Z$4,$B$4:$F$4,0)-1),OFFSET('C. PoC Adj Factor Scoring'!$E$5:$J$282,,MATCH(Z$4,'C. PoC Adj Factor Scoring'!$E$3:$AH$3,0)-1),MATCH(Z$2&\" Score\",'C. PoC Adj Factor Scoring'!$E$4:$J$4,0),TRUE)","v":1},{"$f":"VLOOKUP(OFFSET($B:$B,,MATCH(AA$4,$B$4:$F$4,0)-1),OFFSET('C. PoC Adj Factor Scoring'!$E$5:$J$282,,MATCH(AA$4,'C. PoC Adj Factor Scoring'!$E$3:$AH$3,0)-1),MATCH(AA$2&\" Score\",'C. PoC Adj Factor Scoring'!$E$4:$J$4,0),TRUE)","v":3},{"$f":"VLOOKUP(OFFSET($B:$B,,MATCH(AB$4,$B$4:$F$4,0)-1),OFFSET('C. PoC Adj Factor Scoring'!$E$5:$J$282,,MATCH(AB$4,'C. PoC Adj Factor Scoring'!$E$3:$AH$3,0)-1),MATCH(AB$2&\" Score\",'C. PoC Adj Factor Scoring'!$E$4:$J$4,0),TRUE)","v":1},{"$f":"VLOOKUP(OFFSET($B:$B,,MATCH(AC$4,$B$4:$F$4,0)-1),OFFSET('C. PoC Adj Factor Scoring'!$E$5:$J$282,,MATCH(AC$4,'C. PoC Adj Factor Scoring'!$E$3:$AH$3,0)-1),MATCH(AC$2&\" Score\",'C. PoC Adj Factor Scoring'!$E$4:$J$4,0),TRUE)","v":1},{"$f":"VLOOKUP(OFFSET($B:$B,,MATCH(AD$4,$B$4:$F$4,0)-1),OFFSET('C. PoC Adj Factor Scoring'!$E$5:$J$282,,MATCH(AD$4,'C. PoC Adj Factor Scoring'!$E$3:$AH$3,0)-1),MATCH(AD$2&\" Score\",'C. PoC Adj Factor Scoring'!$E$4:$J$4,0),TRUE)","v":1},{"$f":"VLOOKUP(OFFSET($B:$B,,MATCH(AE$4,$B$4:$F$4,0)-1),OFFSET('C. PoC Adj Factor Scoring'!$E$5:$J$282,,MATCH(AE$4,'C. PoC Adj Factor Scoring'!$E$3:$AH$3,0)-1),MATCH(AE$2&\" Score\",'C. PoC Adj Factor Scoring'!$E$4:$J$4,0),TRUE)","v":1}]
[{"$f":"'A. Population Info'!A474","v":1001485865},{"$f":"'A. Population Info'!L474","v":"OIL"},{"$f":"'A. Population Info'!M474","v":0},{"$f":"'A. Population Info'!N474","v":0},{"$f":"'A. Population Info'!O474","v":0},{"$f":"'A. Population Info'!P474","v":0},{"$f":"VLOOKUP(OFFSET($B:$B,,MATCH(G$4,$B$4:$F$4,0)-1),OFFSET('C. PoC Adj Factor Scoring'!$E$5:$J$282,,MATCH(G$4,'C. PoC Adj Factor Scoring'!$E$3:$AH$3,0)-1),MATCH(G$2&\" Score\",'C. PoC Adj Factor Scoring'!$E$4:$J$4,0),TRUE)","v":4},{"$f":"VLOOKUP(OFFSET($B:$B,,MATCH(H$4,$B$4:$F$4,0)-1),OFFSET('C. PoC Adj Factor Scoring'!$E$5:$J$282,,MATCH(H$4,'C. PoC Adj Factor Scoring'!$E$3:$AH$3,0)-1),MATCH(H$2&\" Score\",'C. PoC Adj Factor Scoring'!$E$4:$J$4,0),TRUE)","v":1},{"$f":"VLOOKUP(OFFSET($B:$B,,MATCH(I$4,$B$4:$F$4,0)-1),OFFSET('C. PoC Adj Factor Scoring'!$E$5:$J$282,,MATCH(I$4,'C. PoC Adj Factor Scoring'!$E$3:$AH$3,0)-1),MATCH(I$2&\" Score\",'C. PoC Adj Factor Scoring'!$E$4:$J$4,0),TRUE)","v":1},{"$f":"VLOOKUP(OFFSET($B:$B,,MATCH(J$4,$B$4:$F$4,0)-1),OFFSET('C. PoC Adj Factor Scoring'!$E$5:$J$282,,MATCH(J$4,'C. PoC Adj Factor Scoring'!$E$3:$AH$3,0)-1),MATCH(J$2&\" Score\",'C. PoC Adj Factor Scoring'!$E$4:$J$4,0),TRUE)","v":1},{"$f":"VLOOKUP(OFFSET($B:$B,,MATCH(K$4,$B$4:$F$4,0)-1),OFFSET('C. PoC Adj Factor Scoring'!$E$5:$J$282,,MATCH(K$4,'C. PoC Adj Factor Scoring'!$E$3:$AH$3,0)-1),MATCH(K$2&\" Score\",'C. PoC Adj Factor Scoring'!$E$4:$J$4,0),TRUE)","v":1},{"$f":"VLOOKUP(OFFSET($B:$B,,MATCH(L$4,$B$4:$F$4,0)-1),OFFSET('C. PoC Adj Factor Scoring'!$E$5:$J$282,,MATCH(L$4,'C. PoC Adj Factor Scoring'!$E$3:$AH$3,0)-1),MATCH(L$2&\" Score\",'C. PoC Adj Factor Scoring'!$E$4:$J$4,0),TRUE)","v":1},{"$f":"VLOOKUP(OFFSET($B:$B,,MATCH(M$4,$B$4:$F$4,0)-1),OFFSET('C. PoC Adj Factor Scoring'!$E$5:$J$282,,MATCH(M$4,'C. PoC Adj Factor Scoring'!$E$3:$AH$3,0)-1),MATCH(M$2&\" Score\",'C. PoC Adj Factor Scoring'!$E$4:$J$4,0),TRUE)","v":1},{"$f":"VLOOKUP(OFFSET($B:$B,,MATCH(N$4,$B$4:$F$4,0)-1),OFFSET('C. PoC Adj Factor Scoring'!$E$5:$J$282,,MATCH(N$4,'C. PoC Adj Factor Scoring'!$E$3:$AH$3,0)-1),MATCH(N$2&\" Score\",'C. PoC Adj Factor Scoring'!$E$4:$J$4,0),TRUE)","v":1},{"$f":"VLOOKUP(OFFSET($B:$B,,MATCH(O$4,$B$4:$F$4,0)-1),OFFSET('C. PoC Adj Factor Scoring'!$E$5:$J$282,,MATCH(O$4,'C. PoC Adj Factor Scoring'!$E$3:$AH$3,0)-1),MATCH(O$2&\" Score\",'C. PoC Adj Factor Scoring'!$E$4:$J$4,0),TRUE)","v":1},{"$f":"VLOOKUP(OFFSET($B:$B,,MATCH(P$4,$B$4:$F$4,0)-1),OFFSET('C. PoC Adj Factor Scoring'!$E$5:$J$282,,MATCH(P$4,'C. PoC Adj Factor Scoring'!$E$3:$AH$3,0)-1),MATCH(P$2&\" Score\",'C. PoC Adj Factor Scoring'!$E$4:$J$4,0),TRUE)","v":1},{"$f":"VLOOKUP(OFFSET($B:$B,,MATCH(Q$4,$B$4:$F$4,0)-1),OFFSET('C. PoC Adj Factor Scoring'!$E$5:$J$282,,MATCH(Q$4,'C. PoC Adj Factor Scoring'!$E$3:$AH$3,0)-1),MATCH(Q$2&\" Score\",'C. PoC Adj Factor Scoring'!$E$4:$J$4,0),TRUE)","v":1},{"$f":"VLOOKUP(OFFSET($B:$B,,MATCH(R$4,$B$4:$F$4,0)-1),OFFSET('C. PoC Adj Factor Scoring'!$E$5:$J$282,,MATCH(R$4,'C. PoC Adj Factor Scoring'!$E$3:$AH$3,0)-1),MATCH(R$2&\" Score\",'C. PoC Adj Factor Scoring'!$E$4:$J$4,0),TRUE)","v":1},{"$f":"VLOOKUP(OFFSET($B:$B,,MATCH(S$4,$B$4:$F$4,0)-1),OFFSET('C. PoC Adj Factor Scoring'!$E$5:$J$282,,MATCH(S$4,'C. PoC Adj Factor Scoring'!$E$3:$AH$3,0)-1),MATCH(S$2&\" Score\",'C. PoC Adj Factor Scoring'!$E$4:$J$4,0),TRUE)","v":1},{"$f":"VLOOKUP(OFFSET($B:$B,,MATCH(T$4,$B$4:$F$4,0)-1),OFFSET('C. PoC Adj Factor Scoring'!$E$5:$J$282,,MATCH(T$4,'C. PoC Adj Factor Scoring'!$E$3:$AH$3,0)-1),MATCH(T$2&\" Score\",'C. PoC Adj Factor Scoring'!$E$4:$J$4,0),TRUE)","v":1},{"$f":"VLOOKUP(OFFSET($B:$B,,MATCH(U$4,$B$4:$F$4,0)-1),OFFSET('C. PoC Adj Factor Scoring'!$E$5:$J$282,,MATCH(U$4,'C. PoC Adj Factor Scoring'!$E$3:$AH$3,0)-1),MATCH(U$2&\" Score\",'C. PoC Adj Factor Scoring'!$E$4:$J$4,0),TRUE)","v":1},{"$f":"VLOOKUP(OFFSET($B:$B,,MATCH(V$4,$B$4:$F$4,0)-1),OFFSET('C. PoC Adj Factor Scoring'!$E$5:$J$282,,MATCH(V$4,'C. PoC Adj Factor Scoring'!$E$3:$AH$3,0)-1),MATCH(V$2&\" Score\",'C. PoC Adj Factor Scoring'!$E$4:$J$4,0),TRUE)","v":1},{"$f":"VLOOKUP(OFFSET($B:$B,,MATCH(W$4,$B$4:$F$4,0)-1),OFFSET('C. PoC Adj Factor Scoring'!$E$5:$J$282,,MATCH(W$4,'C. PoC Adj Factor Scoring'!$E$3:$AH$3,0)-1),MATCH(W$2&\" Score\",'C. PoC Adj Factor Scoring'!$E$4:$J$4,0),TRUE)","v":1},{"$f":"VLOOKUP(OFFSET($B:$B,,MATCH(X$4,$B$4:$F$4,0)-1),OFFSET('C. PoC Adj Factor Scoring'!$E$5:$J$282,,MATCH(X$4,'C. PoC Adj Factor Scoring'!$E$3:$AH$3,0)-1),MATCH(X$2&\" Score\",'C. PoC Adj Factor Scoring'!$E$4:$J$4,0),TRUE)","v":1},{"$f":"VLOOKUP(OFFSET($B:$B,,MATCH(Y$4,$B$4:$F$4,0)-1),OFFSET('C. PoC Adj Factor Scoring'!$E$5:$J$282,,MATCH(Y$4,'C. PoC Adj Factor Scoring'!$E$3:$AH$3,0)-1),MATCH(Y$2&\" Score\",'C. PoC Adj Factor Scoring'!$E$4:$J$4,0),TRUE)","v":1},{"$f":"VLOOKUP(OFFSET($B:$B,,MATCH(Z$4,$B$4:$F$4,0)-1),OFFSET('C. PoC Adj Factor Scoring'!$E$5:$J$282,,MATCH(Z$4,'C. PoC Adj Factor Scoring'!$E$3:$AH$3,0)-1),MATCH(Z$2&\" Score\",'C. PoC Adj Factor Scoring'!$E$4:$J$4,0),TRUE)","v":1},{"$f":"VLOOKUP(OFFSET($B:$B,,MATCH(AA$4,$B$4:$F$4,0)-1),OFFSET('C. PoC Adj Factor Scoring'!$E$5:$J$282,,MATCH(AA$4,'C. PoC Adj Factor Scoring'!$E$3:$AH$3,0)-1),MATCH(AA$2&\" Score\",'C. PoC Adj Factor Scoring'!$E$4:$J$4,0),TRUE)","v":3},{"$f":"VLOOKUP(OFFSET($B:$B,,MATCH(AB$4,$B$4:$F$4,0)-1),OFFSET('C. PoC Adj Factor Scoring'!$E$5:$J$282,,MATCH(AB$4,'C. PoC Adj Factor Scoring'!$E$3:$AH$3,0)-1),MATCH(AB$2&\" Score\",'C. PoC Adj Factor Scoring'!$E$4:$J$4,0),TRUE)","v":1},{"$f":"VLOOKUP(OFFSET($B:$B,,MATCH(AC$4,$B$4:$F$4,0)-1),OFFSET('C. PoC Adj Factor Scoring'!$E$5:$J$282,,MATCH(AC$4,'C. PoC Adj Factor Scoring'!$E$3:$AH$3,0)-1),MATCH(AC$2&\" Score\",'C. PoC Adj Factor Scoring'!$E$4:$J$4,0),TRUE)","v":1},{"$f":"VLOOKUP(OFFSET($B:$B,,MATCH(AD$4,$B$4:$F$4,0)-1),OFFSET('C. PoC Adj Factor Scoring'!$E$5:$J$282,,MATCH(AD$4,'C. PoC Adj Factor Scoring'!$E$3:$AH$3,0)-1),MATCH(AD$2&\" Score\",'C. PoC Adj Factor Scoring'!$E$4:$J$4,0),TRUE)","v":1},{"$f":"VLOOKUP(OFFSET($B:$B,,MATCH(AE$4,$B$4:$F$4,0)-1),OFFSET('C. PoC Adj Factor Scoring'!$E$5:$J$282,,MATCH(AE$4,'C. PoC Adj Factor Scoring'!$E$3:$AH$3,0)-1),MATCH(AE$2&\" Score\",'C. PoC Adj Factor Scoring'!$E$4:$J$4,0),TRUE)","v":1}]
[{"$f":"'A. Population Info'!A475","v":1001485866},{"$f":"'A. Population Info'!L475","v":"OIL"},{"$f":"'A. Population Info'!M475","v":0},{"$f":"'A. Population Info'!N475","v":0},{"$f":"'A. Population Info'!O475","v":0},{"$f":"'A. Population Info'!P475","v":0},{"$f":"VLOOKUP(OFFSET($B:$B,,MATCH(G$4,$B$4:$F$4,0)-1),OFFSET('C. PoC Adj Factor Scoring'!$E$5:$J$282,,MATCH(G$4,'C. PoC Adj Factor Scoring'!$E$3:$AH$3,0)-1),MATCH(G$2&\" Score\",'C. PoC Adj Factor Scoring'!$E$4:$J$4,0),TRUE)","v":4},{"$f":"VLOOKUP(OFFSET($B:$B,,MATCH(H$4,$B$4:$F$4,0)-1),OFFSET('C. PoC Adj Factor Scoring'!$E$5:$J$282,,MATCH(H$4,'C. PoC Adj Factor Scoring'!$E$3:$AH$3,0)-1),MATCH(H$2&\" Score\",'C. PoC Adj Factor Scoring'!$E$4:$J$4,0),TRUE)","v":1},{"$f":"VLOOKUP(OFFSET($B:$B,,MATCH(I$4,$B$4:$F$4,0)-1),OFFSET('C. PoC Adj Factor Scoring'!$E$5:$J$282,,MATCH(I$4,'C. PoC Adj Factor Scoring'!$E$3:$AH$3,0)-1),MATCH(I$2&\" Score\",'C. PoC Adj Factor Scoring'!$E$4:$J$4,0),TRUE)","v":1},{"$f":"VLOOKUP(OFFSET($B:$B,,MATCH(J$4,$B$4:$F$4,0)-1),OFFSET('C. PoC Adj Factor Scoring'!$E$5:$J$282,,MATCH(J$4,'C. PoC Adj Factor Scoring'!$E$3:$AH$3,0)-1),MATCH(J$2&\" Score\",'C. PoC Adj Factor Scoring'!$E$4:$J$4,0),TRUE)","v":1},{"$f":"VLOOKUP(OFFSET($B:$B,,MATCH(K$4,$B$4:$F$4,0)-1),OFFSET('C. PoC Adj Factor Scoring'!$E$5:$J$282,,MATCH(K$4,'C. PoC Adj Factor Scoring'!$E$3:$AH$3,0)-1),MATCH(K$2&\" Score\",'C. PoC Adj Factor Scoring'!$E$4:$J$4,0),TRUE)","v":1},{"$f":"VLOOKUP(OFFSET($B:$B,,MATCH(L$4,$B$4:$F$4,0)-1),OFFSET('C. PoC Adj Factor Scoring'!$E$5:$J$282,,MATCH(L$4,'C. PoC Adj Factor Scoring'!$E$3:$AH$3,0)-1),MATCH(L$2&\" Score\",'C. PoC Adj Factor Scoring'!$E$4:$J$4,0),TRUE)","v":1},{"$f":"VLOOKUP(OFFSET($B:$B,,MATCH(M$4,$B$4:$F$4,0)-1),OFFSET('C. PoC Adj Factor Scoring'!$E$5:$J$282,,MATCH(M$4,'C. PoC Adj Factor Scoring'!$E$3:$AH$3,0)-1),MATCH(M$2&\" Score\",'C. PoC Adj Factor Scoring'!$E$4:$J$4,0),TRUE)","v":1},{"$f":"VLOOKUP(OFFSET($B:$B,,MATCH(N$4,$B$4:$F$4,0)-1),OFFSET('C. PoC Adj Factor Scoring'!$E$5:$J$282,,MATCH(N$4,'C. PoC Adj Factor Scoring'!$E$3:$AH$3,0)-1),MATCH(N$2&\" Score\",'C. PoC Adj Factor Scoring'!$E$4:$J$4,0),TRUE)","v":1},{"$f":"VLOOKUP(OFFSET($B:$B,,MATCH(O$4,$B$4:$F$4,0)-1),OFFSET('C. PoC Adj Factor Scoring'!$E$5:$J$282,,MATCH(O$4,'C. PoC Adj Factor Scoring'!$E$3:$AH$3,0)-1),MATCH(O$2&\" Score\",'C. PoC Adj Factor Scoring'!$E$4:$J$4,0),TRUE)","v":1},{"$f":"VLOOKUP(OFFSET($B:$B,,MATCH(P$4,$B$4:$F$4,0)-1),OFFSET('C. PoC Adj Factor Scoring'!$E$5:$J$282,,MATCH(P$4,'C. PoC Adj Factor Scoring'!$E$3:$AH$3,0)-1),MATCH(P$2&\" Score\",'C. PoC Adj Factor Scoring'!$E$4:$J$4,0),TRUE)","v":1},{"$f":"VLOOKUP(OFFSET($B:$B,,MATCH(Q$4,$B$4:$F$4,0)-1),OFFSET('C. PoC Adj Factor Scoring'!$E$5:$J$282,,MATCH(Q$4,'C. PoC Adj Factor Scoring'!$E$3:$AH$3,0)-1),MATCH(Q$2&\" Score\",'C. PoC Adj Factor Scoring'!$E$4:$J$4,0),TRUE)","v":1},{"$f":"VLOOKUP(OFFSET($B:$B,,MATCH(R$4,$B$4:$F$4,0)-1),OFFSET('C. PoC Adj Factor Scoring'!$E$5:$J$282,,MATCH(R$4,'C. PoC Adj Factor Scoring'!$E$3:$AH$3,0)-1),MATCH(R$2&\" Score\",'C. PoC Adj Factor Scoring'!$E$4:$J$4,0),TRUE)","v":1},{"$f":"VLOOKUP(OFFSET($B:$B,,MATCH(S$4,$B$4:$F$4,0)-1),OFFSET('C. PoC Adj Factor Scoring'!$E$5:$J$282,,MATCH(S$4,'C. PoC Adj Factor Scoring'!$E$3:$AH$3,0)-1),MATCH(S$2&\" Score\",'C. PoC Adj Factor Scoring'!$E$4:$J$4,0),TRUE)","v":1},{"$f":"VLOOKUP(OFFSET($B:$B,,MATCH(T$4,$B$4:$F$4,0)-1),OFFSET('C. PoC Adj Factor Scoring'!$E$5:$J$282,,MATCH(T$4,'C. PoC Adj Factor Scoring'!$E$3:$AH$3,0)-1),MATCH(T$2&\" Score\",'C. PoC Adj Factor Scoring'!$E$4:$J$4,0),TRUE)","v":1},{"$f":"VLOOKUP(OFFSET($B:$B,,MATCH(U$4,$B$4:$F$4,0)-1),OFFSET('C. PoC Adj Factor Scoring'!$E$5:$J$282,,MATCH(U$4,'C. PoC Adj Factor Scoring'!$E$3:$AH$3,0)-1),MATCH(U$2&\" Score\",'C. PoC Adj Factor Scoring'!$E$4:$J$4,0),TRUE)","v":1},{"$f":"VLOOKUP(OFFSET($B:$B,,MATCH(V$4,$B$4:$F$4,0)-1),OFFSET('C. PoC Adj Factor Scoring'!$E$5:$J$282,,MATCH(V$4,'C. PoC Adj Factor Scoring'!$E$3:$AH$3,0)-1),MATCH(V$2&\" Score\",'C. PoC Adj Factor Scoring'!$E$4:$J$4,0),TRUE)","v":1},{"$f":"VLOOKUP(OFFSET($B:$B,,MATCH(W$4,$B$4:$F$4,0)-1),OFFSET('C. PoC Adj Factor Scoring'!$E$5:$J$282,,MATCH(W$4,'C. PoC Adj Factor Scoring'!$E$3:$AH$3,0)-1),MATCH(W$2&\" Score\",'C. PoC Adj Factor Scoring'!$E$4:$J$4,0),TRUE)","v":1},{"$f":"VLOOKUP(OFFSET($B:$B,,MATCH(X$4,$B$4:$F$4,0)-1),OFFSET('C. PoC Adj Factor Scoring'!$E$5:$J$282,,MATCH(X$4,'C. PoC Adj Factor Scoring'!$E$3:$AH$3,0)-1),MATCH(X$2&\" Score\",'C. PoC Adj Factor Scoring'!$E$4:$J$4,0),TRUE)","v":1},{"$f":"VLOOKUP(OFFSET($B:$B,,MATCH(Y$4,$B$4:$F$4,0)-1),OFFSET('C. PoC Adj Factor Scoring'!$E$5:$J$282,,MATCH(Y$4,'C. PoC Adj Factor Scoring'!$E$3:$AH$3,0)-1),MATCH(Y$2&\" Score\",'C. PoC Adj Factor Scoring'!$E$4:$J$4,0),TRUE)","v":1},{"$f":"VLOOKUP(OFFSET($B:$B,,MATCH(Z$4,$B$4:$F$4,0)-1),OFFSET('C. PoC Adj Factor Scoring'!$E$5:$J$282,,MATCH(Z$4,'C. PoC Adj Factor Scoring'!$E$3:$AH$3,0)-1),MATCH(Z$2&\" Score\",'C. PoC Adj Factor Scoring'!$E$4:$J$4,0),TRUE)","v":1},{"$f":"VLOOKUP(OFFSET($B:$B,,MATCH(AA$4,$B$4:$F$4,0)-1),OFFSET('C. PoC Adj Factor Scoring'!$E$5:$J$282,,MATCH(AA$4,'C. PoC Adj Factor Scoring'!$E$3:$AH$3,0)-1),MATCH(AA$2&\" Score\",'C. PoC Adj Factor Scoring'!$E$4:$J$4,0),TRUE)","v":3},{"$f":"VLOOKUP(OFFSET($B:$B,,MATCH(AB$4,$B$4:$F$4,0)-1),OFFSET('C. PoC Adj Factor Scoring'!$E$5:$J$282,,MATCH(AB$4,'C. PoC Adj Factor Scoring'!$E$3:$AH$3,0)-1),MATCH(AB$2&\" Score\",'C. PoC Adj Factor Scoring'!$E$4:$J$4,0),TRUE)","v":1},{"$f":"VLOOKUP(OFFSET($B:$B,,MATCH(AC$4,$B$4:$F$4,0)-1),OFFSET('C. PoC Adj Factor Scoring'!$E$5:$J$282,,MATCH(AC$4,'C. PoC Adj Factor Scoring'!$E$3:$AH$3,0)-1),MATCH(AC$2&\" Score\",'C. PoC Adj Factor Scoring'!$E$4:$J$4,0),TRUE)","v":1},{"$f":"VLOOKUP(OFFSET($B:$B,,MATCH(AD$4,$B$4:$F$4,0)-1),OFFSET('C. PoC Adj Factor Scoring'!$E$5:$J$282,,MATCH(AD$4,'C. PoC Adj Factor Scoring'!$E$3:$AH$3,0)-1),MATCH(AD$2&\" Score\",'C. PoC Adj Factor Scoring'!$E$4:$J$4,0),TRUE)","v":1},{"$f":"VLOOKUP(OFFSET($B:$B,,MATCH(AE$4,$B$4:$F$4,0)-1),OFFSET('C. PoC Adj Factor Scoring'!$E$5:$J$282,,MATCH(AE$4,'C. PoC Adj Factor Scoring'!$E$3:$AH$3,0)-1),MATCH(AE$2&\" Score\",'C. PoC Adj Factor Scoring'!$E$4:$J$4,0),TRUE)","v":1}]
[{"$f":"'A. Population Info'!A476","v":1001485867},{"$f":"'A. Population Info'!L476","v":"OIL"},{"$f":"'A. Population Info'!M476","v":0},{"$f":"'A. Population Info'!N476","v":0},{"$f":"'A. Population Info'!O476","v":0},{"$f":"'A. Population Info'!P476","v":0},{"$f":"VLOOKUP(OFFSET($B:$B,,MATCH(G$4,$B$4:$F$4,0)-1),OFFSET('C. PoC Adj Factor Scoring'!$E$5:$J$282,,MATCH(G$4,'C. PoC Adj Factor Scoring'!$E$3:$AH$3,0)-1),MATCH(G$2&\" Score\",'C. PoC Adj Factor Scoring'!$E$4:$J$4,0),TRUE)","v":4},{"$f":"VLOOKUP(OFFSET($B:$B,,MATCH(H$4,$B$4:$F$4,0)-1),OFFSET('C. PoC Adj Factor Scoring'!$E$5:$J$282,,MATCH(H$4,'C. PoC Adj Factor Scoring'!$E$3:$AH$3,0)-1),MATCH(H$2&\" Score\",'C. PoC Adj Factor Scoring'!$E$4:$J$4,0),TRUE)","v":1},{"$f":"VLOOKUP(OFFSET($B:$B,,MATCH(I$4,$B$4:$F$4,0)-1),OFFSET('C. PoC Adj Factor Scoring'!$E$5:$J$282,,MATCH(I$4,'C. PoC Adj Factor Scoring'!$E$3:$AH$3,0)-1),MATCH(I$2&\" Score\",'C. PoC Adj Factor Scoring'!$E$4:$J$4,0),TRUE)","v":1},{"$f":"VLOOKUP(OFFSET($B:$B,,MATCH(J$4,$B$4:$F$4,0)-1),OFFSET('C. PoC Adj Factor Scoring'!$E$5:$J$282,,MATCH(J$4,'C. PoC Adj Factor Scoring'!$E$3:$AH$3,0)-1),MATCH(J$2&\" Score\",'C. PoC Adj Factor Scoring'!$E$4:$J$4,0),TRUE)","v":1},{"$f":"VLOOKUP(OFFSET($B:$B,,MATCH(K$4,$B$4:$F$4,0)-1),OFFSET('C. PoC Adj Factor Scoring'!$E$5:$J$282,,MATCH(K$4,'C. PoC Adj Factor Scoring'!$E$3:$AH$3,0)-1),MATCH(K$2&\" Score\",'C. PoC Adj Factor Scoring'!$E$4:$J$4,0),TRUE)","v":1},{"$f":"VLOOKUP(OFFSET($B:$B,,MATCH(L$4,$B$4:$F$4,0)-1),OFFSET('C. PoC Adj Factor Scoring'!$E$5:$J$282,,MATCH(L$4,'C. PoC Adj Factor Scoring'!$E$3:$AH$3,0)-1),MATCH(L$2&\" Score\",'C. PoC Adj Factor Scoring'!$E$4:$J$4,0),TRUE)","v":1},{"$f":"VLOOKUP(OFFSET($B:$B,,MATCH(M$4,$B$4:$F$4,0)-1),OFFSET('C. PoC Adj Factor Scoring'!$E$5:$J$282,,MATCH(M$4,'C. PoC Adj Factor Scoring'!$E$3:$AH$3,0)-1),MATCH(M$2&\" Score\",'C. PoC Adj Factor Scoring'!$E$4:$J$4,0),TRUE)","v":1},{"$f":"VLOOKUP(OFFSET($B:$B,,MATCH(N$4,$B$4:$F$4,0)-1),OFFSET('C. PoC Adj Factor Scoring'!$E$5:$J$282,,MATCH(N$4,'C. PoC Adj Factor Scoring'!$E$3:$AH$3,0)-1),MATCH(N$2&\" Score\",'C. PoC Adj Factor Scoring'!$E$4:$J$4,0),TRUE)","v":1},{"$f":"VLOOKUP(OFFSET($B:$B,,MATCH(O$4,$B$4:$F$4,0)-1),OFFSET('C. PoC Adj Factor Scoring'!$E$5:$J$282,,MATCH(O$4,'C. PoC Adj Factor Scoring'!$E$3:$AH$3,0)-1),MATCH(O$2&\" Score\",'C. PoC Adj Factor Scoring'!$E$4:$J$4,0),TRUE)","v":1},{"$f":"VLOOKUP(OFFSET($B:$B,,MATCH(P$4,$B$4:$F$4,0)-1),OFFSET('C. PoC Adj Factor Scoring'!$E$5:$J$282,,MATCH(P$4,'C. PoC Adj Factor Scoring'!$E$3:$AH$3,0)-1),MATCH(P$2&\" Score\",'C. PoC Adj Factor Scoring'!$E$4:$J$4,0),TRUE)","v":1},{"$f":"VLOOKUP(OFFSET($B:$B,,MATCH(Q$4,$B$4:$F$4,0)-1),OFFSET('C. PoC Adj Factor Scoring'!$E$5:$J$282,,MATCH(Q$4,'C. PoC Adj Factor Scoring'!$E$3:$AH$3,0)-1),MATCH(Q$2&\" Score\",'C. PoC Adj Factor Scoring'!$E$4:$J$4,0),TRUE)","v":1},{"$f":"VLOOKUP(OFFSET($B:$B,,MATCH(R$4,$B$4:$F$4,0)-1),OFFSET('C. PoC Adj Factor Scoring'!$E$5:$J$282,,MATCH(R$4,'C. PoC Adj Factor Scoring'!$E$3:$AH$3,0)-1),MATCH(R$2&\" Score\",'C. PoC Adj Factor Scoring'!$E$4:$J$4,0),TRUE)","v":1},{"$f":"VLOOKUP(OFFSET($B:$B,,MATCH(S$4,$B$4:$F$4,0)-1),OFFSET('C. PoC Adj Factor Scoring'!$E$5:$J$282,,MATCH(S$4,'C. PoC Adj Factor Scoring'!$E$3:$AH$3,0)-1),MATCH(S$2&\" Score\",'C. PoC Adj Factor Scoring'!$E$4:$J$4,0),TRUE)","v":1},{"$f":"VLOOKUP(OFFSET($B:$B,,MATCH(T$4,$B$4:$F$4,0)-1),OFFSET('C. PoC Adj Factor Scoring'!$E$5:$J$282,,MATCH(T$4,'C. PoC Adj Factor Scoring'!$E$3:$AH$3,0)-1),MATCH(T$2&\" Score\",'C. PoC Adj Factor Scoring'!$E$4:$J$4,0),TRUE)","v":1},{"$f":"VLOOKUP(OFFSET($B:$B,,MATCH(U$4,$B$4:$F$4,0)-1),OFFSET('C. PoC Adj Factor Scoring'!$E$5:$J$282,,MATCH(U$4,'C. PoC Adj Factor Scoring'!$E$3:$AH$3,0)-1),MATCH(U$2&\" Score\",'C. PoC Adj Factor Scoring'!$E$4:$J$4,0),TRUE)","v":1},{"$f":"VLOOKUP(OFFSET($B:$B,,MATCH(V$4,$B$4:$F$4,0)-1),OFFSET('C. PoC Adj Factor Scoring'!$E$5:$J$282,,MATCH(V$4,'C. PoC Adj Factor Scoring'!$E$3:$AH$3,0)-1),MATCH(V$2&\" Score\",'C. PoC Adj Factor Scoring'!$E$4:$J$4,0),TRUE)","v":1},{"$f":"VLOOKUP(OFFSET($B:$B,,MATCH(W$4,$B$4:$F$4,0)-1),OFFSET('C. PoC Adj Factor Scoring'!$E$5:$J$282,,MATCH(W$4,'C. PoC Adj Factor Scoring'!$E$3:$AH$3,0)-1),MATCH(W$2&\" Score\",'C. PoC Adj Factor Scoring'!$E$4:$J$4,0),TRUE)","v":1},{"$f":"VLOOKUP(OFFSET($B:$B,,MATCH(X$4,$B$4:$F$4,0)-1),OFFSET('C. PoC Adj Factor Scoring'!$E$5:$J$282,,MATCH(X$4,'C. PoC Adj Factor Scoring'!$E$3:$AH$3,0)-1),MATCH(X$2&\" Score\",'C. PoC Adj Factor Scoring'!$E$4:$J$4,0),TRUE)","v":1},{"$f":"VLOOKUP(OFFSET($B:$B,,MATCH(Y$4,$B$4:$F$4,0)-1),OFFSET('C. PoC Adj Factor Scoring'!$E$5:$J$282,,MATCH(Y$4,'C. PoC Adj Factor Scoring'!$E$3:$AH$3,0)-1),MATCH(Y$2&\" Score\",'C. PoC Adj Factor Scoring'!$E$4:$J$4,0),TRUE)","v":1},{"$f":"VLOOKUP(OFFSET($B:$B,,MATCH(Z$4,$B$4:$F$4,0)-1),OFFSET('C. PoC Adj Factor Scoring'!$E$5:$J$282,,MATCH(Z$4,'C. PoC Adj Factor Scoring'!$E$3:$AH$3,0)-1),MATCH(Z$2&\" Score\",'C. PoC Adj Factor Scoring'!$E$4:$J$4,0),TRUE)","v":1},{"$f":"VLOOKUP(OFFSET($B:$B,,MATCH(AA$4,$B$4:$F$4,0)-1),OFFSET('C. PoC Adj Factor Scoring'!$E$5:$J$282,,MATCH(AA$4,'C. PoC Adj Factor Scoring'!$E$3:$AH$3,0)-1),MATCH(AA$2&\" Score\",'C. PoC Adj Factor Scoring'!$E$4:$J$4,0),TRUE)","v":3},{"$f":"VLOOKUP(OFFSET($B:$B,,MATCH(AB$4,$B$4:$F$4,0)-1),OFFSET('C. PoC Adj Factor Scoring'!$E$5:$J$282,,MATCH(AB$4,'C. PoC Adj Factor Scoring'!$E$3:$AH$3,0)-1),MATCH(AB$2&\" Score\",'C. PoC Adj Factor Scoring'!$E$4:$J$4,0),TRUE)","v":1},{"$f":"VLOOKUP(OFFSET($B:$B,,MATCH(AC$4,$B$4:$F$4,0)-1),OFFSET('C. PoC Adj Factor Scoring'!$E$5:$J$282,,MATCH(AC$4,'C. PoC Adj Factor Scoring'!$E$3:$AH$3,0)-1),MATCH(AC$2&\" Score\",'C. PoC Adj Factor Scoring'!$E$4:$J$4,0),TRUE)","v":1},{"$f":"VLOOKUP(OFFSET($B:$B,,MATCH(AD$4,$B$4:$F$4,0)-1),OFFSET('C. PoC Adj Factor Scoring'!$E$5:$J$282,,MATCH(AD$4,'C. PoC Adj Factor Scoring'!$E$3:$AH$3,0)-1),MATCH(AD$2&\" Score\",'C. PoC Adj Factor Scoring'!$E$4:$J$4,0),TRUE)","v":1},{"$f":"VLOOKUP(OFFSET($B:$B,,MATCH(AE$4,$B$4:$F$4,0)-1),OFFSET('C. PoC Adj Factor Scoring'!$E$5:$J$282,,MATCH(AE$4,'C. PoC Adj Factor Scoring'!$E$3:$AH$3,0)-1),MATCH(AE$2&\" Score\",'C. PoC Adj Factor Scoring'!$E$4:$J$4,0),TRUE)","v":1}]
[{"$f":"'A. Population Info'!A477","v":1001485868},{"$f":"'A. Population Info'!L477","v":"OIL"},{"$f":"'A. Population Info'!M477","v":0},{"$f":"'A. Population Info'!N477","v":0},{"$f":"'A. Population Info'!O477","v":0},{"$f":"'A. Population Info'!P477","v":0},{"$f":"VLOOKUP(OFFSET($B:$B,,MATCH(G$4,$B$4:$F$4,0)-1),OFFSET('C. PoC Adj Factor Scoring'!$E$5:$J$282,,MATCH(G$4,'C. PoC Adj Factor Scoring'!$E$3:$AH$3,0)-1),MATCH(G$2&\" Score\",'C. PoC Adj Factor Scoring'!$E$4:$J$4,0),TRUE)","v":4},{"$f":"VLOOKUP(OFFSET($B:$B,,MATCH(H$4,$B$4:$F$4,0)-1),OFFSET('C. PoC Adj Factor Scoring'!$E$5:$J$282,,MATCH(H$4,'C. PoC Adj Factor Scoring'!$E$3:$AH$3,0)-1),MATCH(H$2&\" Score\",'C. PoC Adj Factor Scoring'!$E$4:$J$4,0),TRUE)","v":1},{"$f":"VLOOKUP(OFFSET($B:$B,,MATCH(I$4,$B$4:$F$4,0)-1),OFFSET('C. PoC Adj Factor Scoring'!$E$5:$J$282,,MATCH(I$4,'C. PoC Adj Factor Scoring'!$E$3:$AH$3,0)-1),MATCH(I$2&\" Score\",'C. PoC Adj Factor Scoring'!$E$4:$J$4,0),TRUE)","v":1},{"$f":"VLOOKUP(OFFSET($B:$B,,MATCH(J$4,$B$4:$F$4,0)-1),OFFSET('C. PoC Adj Factor Scoring'!$E$5:$J$282,,MATCH(J$4,'C. PoC Adj Factor Scoring'!$E$3:$AH$3,0)-1),MATCH(J$2&\" Score\",'C. PoC Adj Factor Scoring'!$E$4:$J$4,0),TRUE)","v":1},{"$f":"VLOOKUP(OFFSET($B:$B,,MATCH(K$4,$B$4:$F$4,0)-1),OFFSET('C. PoC Adj Factor Scoring'!$E$5:$J$282,,MATCH(K$4,'C. PoC Adj Factor Scoring'!$E$3:$AH$3,0)-1),MATCH(K$2&\" Score\",'C. PoC Adj Factor Scoring'!$E$4:$J$4,0),TRUE)","v":1},{"$f":"VLOOKUP(OFFSET($B:$B,,MATCH(L$4,$B$4:$F$4,0)-1),OFFSET('C. PoC Adj Factor Scoring'!$E$5:$J$282,,MATCH(L$4,'C. PoC Adj Factor Scoring'!$E$3:$AH$3,0)-1),MATCH(L$2&\" Score\",'C. PoC Adj Factor Scoring'!$E$4:$J$4,0),TRUE)","v":1},{"$f":"VLOOKUP(OFFSET($B:$B,,MATCH(M$4,$B$4:$F$4,0)-1),OFFSET('C. PoC Adj Factor Scoring'!$E$5:$J$282,,MATCH(M$4,'C. PoC Adj Factor Scoring'!$E$3:$AH$3,0)-1),MATCH(M$2&\" Score\",'C. PoC Adj Factor Scoring'!$E$4:$J$4,0),TRUE)","v":1},{"$f":"VLOOKUP(OFFSET($B:$B,,MATCH(N$4,$B$4:$F$4,0)-1),OFFSET('C. PoC Adj Factor Scoring'!$E$5:$J$282,,MATCH(N$4,'C. PoC Adj Factor Scoring'!$E$3:$AH$3,0)-1),MATCH(N$2&\" Score\",'C. PoC Adj Factor Scoring'!$E$4:$J$4,0),TRUE)","v":1},{"$f":"VLOOKUP(OFFSET($B:$B,,MATCH(O$4,$B$4:$F$4,0)-1),OFFSET('C. PoC Adj Factor Scoring'!$E$5:$J$282,,MATCH(O$4,'C. PoC Adj Factor Scoring'!$E$3:$AH$3,0)-1),MATCH(O$2&\" Score\",'C. PoC Adj Factor Scoring'!$E$4:$J$4,0),TRUE)","v":1},{"$f":"VLOOKUP(OFFSET($B:$B,,MATCH(P$4,$B$4:$F$4,0)-1),OFFSET('C. PoC Adj Factor Scoring'!$E$5:$J$282,,MATCH(P$4,'C. PoC Adj Factor Scoring'!$E$3:$AH$3,0)-1),MATCH(P$2&\" Score\",'C. PoC Adj Factor Scoring'!$E$4:$J$4,0),TRUE)","v":1},{"$f":"VLOOKUP(OFFSET($B:$B,,MATCH(Q$4,$B$4:$F$4,0)-1),OFFSET('C. PoC Adj Factor Scoring'!$E$5:$J$282,,MATCH(Q$4,'C. PoC Adj Factor Scoring'!$E$3:$AH$3,0)-1),MATCH(Q$2&\" Score\",'C. PoC Adj Factor Scoring'!$E$4:$J$4,0),TRUE)","v":1},{"$f":"VLOOKUP(OFFSET($B:$B,,MATCH(R$4,$B$4:$F$4,0)-1),OFFSET('C. PoC Adj Factor Scoring'!$E$5:$J$282,,MATCH(R$4,'C. PoC Adj Factor Scoring'!$E$3:$AH$3,0)-1),MATCH(R$2&\" Score\",'C. PoC Adj Factor Scoring'!$E$4:$J$4,0),TRUE)","v":1},{"$f":"VLOOKUP(OFFSET($B:$B,,MATCH(S$4,$B$4:$F$4,0)-1),OFFSET('C. PoC Adj Factor Scoring'!$E$5:$J$282,,MATCH(S$4,'C. PoC Adj Factor Scoring'!$E$3:$AH$3,0)-1),MATCH(S$2&\" Score\",'C. PoC Adj Factor Scoring'!$E$4:$J$4,0),TRUE)","v":1},{"$f":"VLOOKUP(OFFSET($B:$B,,MATCH(T$4,$B$4:$F$4,0)-1),OFFSET('C. PoC Adj Factor Scoring'!$E$5:$J$282,,MATCH(T$4,'C. PoC Adj Factor Scoring'!$E$3:$AH$3,0)-1),MATCH(T$2&\" Score\",'C. PoC Adj Factor Scoring'!$E$4:$J$4,0),TRUE)","v":1},{"$f":"VLOOKUP(OFFSET($B:$B,,MATCH(U$4,$B$4:$F$4,0)-1),OFFSET('C. PoC Adj Factor Scoring'!$E$5:$J$282,,MATCH(U$4,'C. PoC Adj Factor Scoring'!$E$3:$AH$3,0)-1),MATCH(U$2&\" Score\",'C. PoC Adj Factor Scoring'!$E$4:$J$4,0),TRUE)","v":1},{"$f":"VLOOKUP(OFFSET($B:$B,,MATCH(V$4,$B$4:$F$4,0)-1),OFFSET('C. PoC Adj Factor Scoring'!$E$5:$J$282,,MATCH(V$4,'C. PoC Adj Factor Scoring'!$E$3:$AH$3,0)-1),MATCH(V$2&\" Score\",'C. PoC Adj Factor Scoring'!$E$4:$J$4,0),TRUE)","v":1},{"$f":"VLOOKUP(OFFSET($B:$B,,MATCH(W$4,$B$4:$F$4,0)-1),OFFSET('C. PoC Adj Factor Scoring'!$E$5:$J$282,,MATCH(W$4,'C. PoC Adj Factor Scoring'!$E$3:$AH$3,0)-1),MATCH(W$2&\" Score\",'C. PoC Adj Factor Scoring'!$E$4:$J$4,0),TRUE)","v":1},{"$f":"VLOOKUP(OFFSET($B:$B,,MATCH(X$4,$B$4:$F$4,0)-1),OFFSET('C. PoC Adj Factor Scoring'!$E$5:$J$282,,MATCH(X$4,'C. PoC Adj Factor Scoring'!$E$3:$AH$3,0)-1),MATCH(X$2&\" Score\",'C. PoC Adj Factor Scoring'!$E$4:$J$4,0),TRUE)","v":1},{"$f":"VLOOKUP(OFFSET($B:$B,,MATCH(Y$4,$B$4:$F$4,0)-1),OFFSET('C. PoC Adj Factor Scoring'!$E$5:$J$282,,MATCH(Y$4,'C. PoC Adj Factor Scoring'!$E$3:$AH$3,0)-1),MATCH(Y$2&\" Score\",'C. PoC Adj Factor Scoring'!$E$4:$J$4,0),TRUE)","v":1},{"$f":"VLOOKUP(OFFSET($B:$B,,MATCH(Z$4,$B$4:$F$4,0)-1),OFFSET('C. PoC Adj Factor Scoring'!$E$5:$J$282,,MATCH(Z$4,'C. PoC Adj Factor Scoring'!$E$3:$AH$3,0)-1),MATCH(Z$2&\" Score\",'C. PoC Adj Factor Scoring'!$E$4:$J$4,0),TRUE)","v":1},{"$f":"VLOOKUP(OFFSET($B:$B,,MATCH(AA$4,$B$4:$F$4,0)-1),OFFSET('C. PoC Adj Factor Scoring'!$E$5:$J$282,,MATCH(AA$4,'C. PoC Adj Factor Scoring'!$E$3:$AH$3,0)-1),MATCH(AA$2&\" Score\",'C. PoC Adj Factor Scoring'!$E$4:$J$4,0),TRUE)","v":3},{"$f":"VLOOKUP(OFFSET($B:$B,,MATCH(AB$4,$B$4:$F$4,0)-1),OFFSET('C. PoC Adj Factor Scoring'!$E$5:$J$282,,MATCH(AB$4,'C. PoC Adj Factor Scoring'!$E$3:$AH$3,0)-1),MATCH(AB$2&\" Score\",'C. PoC Adj Factor Scoring'!$E$4:$J$4,0),TRUE)","v":1},{"$f":"VLOOKUP(OFFSET($B:$B,,MATCH(AC$4,$B$4:$F$4,0)-1),OFFSET('C. PoC Adj Factor Scoring'!$E$5:$J$282,,MATCH(AC$4,'C. PoC Adj Factor Scoring'!$E$3:$AH$3,0)-1),MATCH(AC$2&\" Score\",'C. PoC Adj Factor Scoring'!$E$4:$J$4,0),TRUE)","v":1},{"$f":"VLOOKUP(OFFSET($B:$B,,MATCH(AD$4,$B$4:$F$4,0)-1),OFFSET('C. PoC Adj Factor Scoring'!$E$5:$J$282,,MATCH(AD$4,'C. PoC Adj Factor Scoring'!$E$3:$AH$3,0)-1),MATCH(AD$2&\" Score\",'C. PoC Adj Factor Scoring'!$E$4:$J$4,0),TRUE)","v":1},{"$f":"VLOOKUP(OFFSET($B:$B,,MATCH(AE$4,$B$4:$F$4,0)-1),OFFSET('C. PoC Adj Factor Scoring'!$E$5:$J$282,,MATCH(AE$4,'C. PoC Adj Factor Scoring'!$E$3:$AH$3,0)-1),MATCH(AE$2&\" Score\",'C. PoC Adj Factor Scoring'!$E$4:$J$4,0),TRUE)","v":1}]
[{"$f":"'A. Population Info'!A478","v":1001485869},{"$f":"'A. Population Info'!L478","v":"OIL"},{"$f":"'A. Population Info'!M478","v":0},{"$f":"'A. Population Info'!N478","v":0},{"$f":"'A. Population Info'!O478","v":0},{"$f":"'A. Population Info'!P478","v":0},{"$f":"VLOOKUP(OFFSET($B:$B,,MATCH(G$4,$B$4:$F$4,0)-1),OFFSET('C. PoC Adj Factor Scoring'!$E$5:$J$282,,MATCH(G$4,'C. PoC Adj Factor Scoring'!$E$3:$AH$3,0)-1),MATCH(G$2&\" Score\",'C. PoC Adj Factor Scoring'!$E$4:$J$4,0),TRUE)","v":4},{"$f":"VLOOKUP(OFFSET($B:$B,,MATCH(H$4,$B$4:$F$4,0)-1),OFFSET('C. PoC Adj Factor Scoring'!$E$5:$J$282,,MATCH(H$4,'C. PoC Adj Factor Scoring'!$E$3:$AH$3,0)-1),MATCH(H$2&\" Score\",'C. PoC Adj Factor Scoring'!$E$4:$J$4,0),TRUE)","v":1},{"$f":"VLOOKUP(OFFSET($B:$B,,MATCH(I$4,$B$4:$F$4,0)-1),OFFSET('C. PoC Adj Factor Scoring'!$E$5:$J$282,,MATCH(I$4,'C. PoC Adj Factor Scoring'!$E$3:$AH$3,0)-1),MATCH(I$2&\" Score\",'C. PoC Adj Factor Scoring'!$E$4:$J$4,0),TRUE)","v":1},{"$f":"VLOOKUP(OFFSET($B:$B,,MATCH(J$4,$B$4:$F$4,0)-1),OFFSET('C. PoC Adj Factor Scoring'!$E$5:$J$282,,MATCH(J$4,'C. PoC Adj Factor Scoring'!$E$3:$AH$3,0)-1),MATCH(J$2&\" Score\",'C. PoC Adj Factor Scoring'!$E$4:$J$4,0),TRUE)","v":1},{"$f":"VLOOKUP(OFFSET($B:$B,,MATCH(K$4,$B$4:$F$4,0)-1),OFFSET('C. PoC Adj Factor Scoring'!$E$5:$J$282,,MATCH(K$4,'C. PoC Adj Factor Scoring'!$E$3:$AH$3,0)-1),MATCH(K$2&\" Score\",'C. PoC Adj Factor Scoring'!$E$4:$J$4,0),TRUE)","v":1},{"$f":"VLOOKUP(OFFSET($B:$B,,MATCH(L$4,$B$4:$F$4,0)-1),OFFSET('C. PoC Adj Factor Scoring'!$E$5:$J$282,,MATCH(L$4,'C. PoC Adj Factor Scoring'!$E$3:$AH$3,0)-1),MATCH(L$2&\" Score\",'C. PoC Adj Factor Scoring'!$E$4:$J$4,0),TRUE)","v":1},{"$f":"VLOOKUP(OFFSET($B:$B,,MATCH(M$4,$B$4:$F$4,0)-1),OFFSET('C. PoC Adj Factor Scoring'!$E$5:$J$282,,MATCH(M$4,'C. PoC Adj Factor Scoring'!$E$3:$AH$3,0)-1),MATCH(M$2&\" Score\",'C. PoC Adj Factor Scoring'!$E$4:$J$4,0),TRUE)","v":1},{"$f":"VLOOKUP(OFFSET($B:$B,,MATCH(N$4,$B$4:$F$4,0)-1),OFFSET('C. PoC Adj Factor Scoring'!$E$5:$J$282,,MATCH(N$4,'C. PoC Adj Factor Scoring'!$E$3:$AH$3,0)-1),MATCH(N$2&\" Score\",'C. PoC Adj Factor Scoring'!$E$4:$J$4,0),TRUE)","v":1},{"$f":"VLOOKUP(OFFSET($B:$B,,MATCH(O$4,$B$4:$F$4,0)-1),OFFSET('C. PoC Adj Factor Scoring'!$E$5:$J$282,,MATCH(O$4,'C. PoC Adj Factor Scoring'!$E$3:$AH$3,0)-1),MATCH(O$2&\" Score\",'C. PoC Adj Factor Scoring'!$E$4:$J$4,0),TRUE)","v":1},{"$f":"VLOOKUP(OFFSET($B:$B,,MATCH(P$4,$B$4:$F$4,0)-1),OFFSET('C. PoC Adj Factor Scoring'!$E$5:$J$282,,MATCH(P$4,'C. PoC Adj Factor Scoring'!$E$3:$AH$3,0)-1),MATCH(P$2&\" Score\",'C. PoC Adj Factor Scoring'!$E$4:$J$4,0),TRUE)","v":1},{"$f":"VLOOKUP(OFFSET($B:$B,,MATCH(Q$4,$B$4:$F$4,0)-1),OFFSET('C. PoC Adj Factor Scoring'!$E$5:$J$282,,MATCH(Q$4,'C. PoC Adj Factor Scoring'!$E$3:$AH$3,0)-1),MATCH(Q$2&\" Score\",'C. PoC Adj Factor Scoring'!$E$4:$J$4,0),TRUE)","v":1},{"$f":"VLOOKUP(OFFSET($B:$B,,MATCH(R$4,$B$4:$F$4,0)-1),OFFSET('C. PoC Adj Factor Scoring'!$E$5:$J$282,,MATCH(R$4,'C. PoC Adj Factor Scoring'!$E$3:$AH$3,0)-1),MATCH(R$2&\" Score\",'C. PoC Adj Factor Scoring'!$E$4:$J$4,0),TRUE)","v":1},{"$f":"VLOOKUP(OFFSET($B:$B,,MATCH(S$4,$B$4:$F$4,0)-1),OFFSET('C. PoC Adj Factor Scoring'!$E$5:$J$282,,MATCH(S$4,'C. PoC Adj Factor Scoring'!$E$3:$AH$3,0)-1),MATCH(S$2&\" Score\",'C. PoC Adj Factor Scoring'!$E$4:$J$4,0),TRUE)","v":1},{"$f":"VLOOKUP(OFFSET($B:$B,,MATCH(T$4,$B$4:$F$4,0)-1),OFFSET('C. PoC Adj Factor Scoring'!$E$5:$J$282,,MATCH(T$4,'C. PoC Adj Factor Scoring'!$E$3:$AH$3,0)-1),MATCH(T$2&\" Score\",'C. PoC Adj Factor Scoring'!$E$4:$J$4,0),TRUE)","v":1},{"$f":"VLOOKUP(OFFSET($B:$B,,MATCH(U$4,$B$4:$F$4,0)-1),OFFSET('C. PoC Adj Factor Scoring'!$E$5:$J$282,,MATCH(U$4,'C. PoC Adj Factor Scoring'!$E$3:$AH$3,0)-1),MATCH(U$2&\" Score\",'C. PoC Adj Factor Scoring'!$E$4:$J$4,0),TRUE)","v":1},{"$f":"VLOOKUP(OFFSET($B:$B,,MATCH(V$4,$B$4:$F$4,0)-1),OFFSET('C. PoC Adj Factor Scoring'!$E$5:$J$282,,MATCH(V$4,'C. PoC Adj Factor Scoring'!$E$3:$AH$3,0)-1),MATCH(V$2&\" Score\",'C. PoC Adj Factor Scoring'!$E$4:$J$4,0),TRUE)","v":1},{"$f":"VLOOKUP(OFFSET($B:$B,,MATCH(W$4,$B$4:$F$4,0)-1),OFFSET('C. PoC Adj Factor Scoring'!$E$5:$J$282,,MATCH(W$4,'C. PoC Adj Factor Scoring'!$E$3:$AH$3,0)-1),MATCH(W$2&\" Score\",'C. PoC Adj Factor Scoring'!$E$4:$J$4,0),TRUE)","v":1},{"$f":"VLOOKUP(OFFSET($B:$B,,MATCH(X$4,$B$4:$F$4,0)-1),OFFSET('C. PoC Adj Factor Scoring'!$E$5:$J$282,,MATCH(X$4,'C. PoC Adj Factor Scoring'!$E$3:$AH$3,0)-1),MATCH(X$2&\" Score\",'C. PoC Adj Factor Scoring'!$E$4:$J$4,0),TRUE)","v":1},{"$f":"VLOOKUP(OFFSET($B:$B,,MATCH(Y$4,$B$4:$F$4,0)-1),OFFSET('C. PoC Adj Factor Scoring'!$E$5:$J$282,,MATCH(Y$4,'C. PoC Adj Factor Scoring'!$E$3:$AH$3,0)-1),MATCH(Y$2&\" Score\",'C. PoC Adj Factor Scoring'!$E$4:$J$4,0),TRUE)","v":1},{"$f":"VLOOKUP(OFFSET($B:$B,,MATCH(Z$4,$B$4:$F$4,0)-1),OFFSET('C. PoC Adj Factor Scoring'!$E$5:$J$282,,MATCH(Z$4,'C. PoC Adj Factor Scoring'!$E$3:$AH$3,0)-1),MATCH(Z$2&\" Score\",'C. PoC Adj Factor Scoring'!$E$4:$J$4,0),TRUE)","v":1},{"$f":"VLOOKUP(OFFSET($B:$B,,MATCH(AA$4,$B$4:$F$4,0)-1),OFFSET('C. PoC Adj Factor Scoring'!$E$5:$J$282,,MATCH(AA$4,'C. PoC Adj Factor Scoring'!$E$3:$AH$3,0)-1),MATCH(AA$2&\" Score\",'C. PoC Adj Factor Scoring'!$E$4:$J$4,0),TRUE)","v":3},{"$f":"VLOOKUP(OFFSET($B:$B,,MATCH(AB$4,$B$4:$F$4,0)-1),OFFSET('C. PoC Adj Factor Scoring'!$E$5:$J$282,,MATCH(AB$4,'C. PoC Adj Factor Scoring'!$E$3:$AH$3,0)-1),MATCH(AB$2&\" Score\",'C. PoC Adj Factor Scoring'!$E$4:$J$4,0),TRUE)","v":1},{"$f":"VLOOKUP(OFFSET($B:$B,,MATCH(AC$4,$B$4:$F$4,0)-1),OFFSET('C. PoC Adj Factor Scoring'!$E$5:$J$282,,MATCH(AC$4,'C. PoC Adj Factor Scoring'!$E$3:$AH$3,0)-1),MATCH(AC$2&\" Score\",'C. PoC Adj Factor Scoring'!$E$4:$J$4,0),TRUE)","v":1},{"$f":"VLOOKUP(OFFSET($B:$B,,MATCH(AD$4,$B$4:$F$4,0)-1),OFFSET('C. PoC Adj Factor Scoring'!$E$5:$J$282,,MATCH(AD$4,'C. PoC Adj Factor Scoring'!$E$3:$AH$3,0)-1),MATCH(AD$2&\" Score\",'C. PoC Adj Factor Scoring'!$E$4:$J$4,0),TRUE)","v":1},{"$f":"VLOOKUP(OFFSET($B:$B,,MATCH(AE$4,$B$4:$F$4,0)-1),OFFSET('C. PoC Adj Factor Scoring'!$E$5:$J$282,,MATCH(AE$4,'C. PoC Adj Factor Scoring'!$E$3:$AH$3,0)-1),MATCH(AE$2&\" Score\",'C. PoC Adj Factor Scoring'!$E$4:$J$4,0),TRUE)","v":1}]
[{"$f":"'A. Population Info'!A479","v":1001485870},{"$f":"'A. Population Info'!L479","v":"OIL"},{"$f":"'A. Population Info'!M479","v":0},{"$f":"'A. Population Info'!N479","v":0},{"$f":"'A. Population Info'!O479","v":0},{"$f":"'A. Population Info'!P479","v":0},{"$f":"VLOOKUP(OFFSET($B:$B,,MATCH(G$4,$B$4:$F$4,0)-1),OFFSET('C. PoC Adj Factor Scoring'!$E$5:$J$282,,MATCH(G$4,'C. PoC Adj Factor Scoring'!$E$3:$AH$3,0)-1),MATCH(G$2&\" Score\",'C. PoC Adj Factor Scoring'!$E$4:$J$4,0),TRUE)","v":4},{"$f":"VLOOKUP(OFFSET($B:$B,,MATCH(H$4,$B$4:$F$4,0)-1),OFFSET('C. PoC Adj Factor Scoring'!$E$5:$J$282,,MATCH(H$4,'C. PoC Adj Factor Scoring'!$E$3:$AH$3,0)-1),MATCH(H$2&\" Score\",'C. PoC Adj Factor Scoring'!$E$4:$J$4,0),TRUE)","v":1},{"$f":"VLOOKUP(OFFSET($B:$B,,MATCH(I$4,$B$4:$F$4,0)-1),OFFSET('C. PoC Adj Factor Scoring'!$E$5:$J$282,,MATCH(I$4,'C. PoC Adj Factor Scoring'!$E$3:$AH$3,0)-1),MATCH(I$2&\" Score\",'C. PoC Adj Factor Scoring'!$E$4:$J$4,0),TRUE)","v":1},{"$f":"VLOOKUP(OFFSET($B:$B,,MATCH(J$4,$B$4:$F$4,0)-1),OFFSET('C. PoC Adj Factor Scoring'!$E$5:$J$282,,MATCH(J$4,'C. PoC Adj Factor Scoring'!$E$3:$AH$3,0)-1),MATCH(J$2&\" Score\",'C. PoC Adj Factor Scoring'!$E$4:$J$4,0),TRUE)","v":1},{"$f":"VLOOKUP(OFFSET($B:$B,,MATCH(K$4,$B$4:$F$4,0)-1),OFFSET('C. PoC Adj Factor Scoring'!$E$5:$J$282,,MATCH(K$4,'C. PoC Adj Factor Scoring'!$E$3:$AH$3,0)-1),MATCH(K$2&\" Score\",'C. PoC Adj Factor Scoring'!$E$4:$J$4,0),TRUE)","v":1},{"$f":"VLOOKUP(OFFSET($B:$B,,MATCH(L$4,$B$4:$F$4,0)-1),OFFSET('C. PoC Adj Factor Scoring'!$E$5:$J$282,,MATCH(L$4,'C. PoC Adj Factor Scoring'!$E$3:$AH$3,0)-1),MATCH(L$2&\" Score\",'C. PoC Adj Factor Scoring'!$E$4:$J$4,0),TRUE)","v":1},{"$f":"VLOOKUP(OFFSET($B:$B,,MATCH(M$4,$B$4:$F$4,0)-1),OFFSET('C. PoC Adj Factor Scoring'!$E$5:$J$282,,MATCH(M$4,'C. PoC Adj Factor Scoring'!$E$3:$AH$3,0)-1),MATCH(M$2&\" Score\",'C. PoC Adj Factor Scoring'!$E$4:$J$4,0),TRUE)","v":1},{"$f":"VLOOKUP(OFFSET($B:$B,,MATCH(N$4,$B$4:$F$4,0)-1),OFFSET('C. PoC Adj Factor Scoring'!$E$5:$J$282,,MATCH(N$4,'C. PoC Adj Factor Scoring'!$E$3:$AH$3,0)-1),MATCH(N$2&\" Score\",'C. PoC Adj Factor Scoring'!$E$4:$J$4,0),TRUE)","v":1},{"$f":"VLOOKUP(OFFSET($B:$B,,MATCH(O$4,$B$4:$F$4,0)-1),OFFSET('C. PoC Adj Factor Scoring'!$E$5:$J$282,,MATCH(O$4,'C. PoC Adj Factor Scoring'!$E$3:$AH$3,0)-1),MATCH(O$2&\" Score\",'C. PoC Adj Factor Scoring'!$E$4:$J$4,0),TRUE)","v":1},{"$f":"VLOOKUP(OFFSET($B:$B,,MATCH(P$4,$B$4:$F$4,0)-1),OFFSET('C. PoC Adj Factor Scoring'!$E$5:$J$282,,MATCH(P$4,'C. PoC Adj Factor Scoring'!$E$3:$AH$3,0)-1),MATCH(P$2&\" Score\",'C. PoC Adj Factor Scoring'!$E$4:$J$4,0),TRUE)","v":1},{"$f":"VLOOKUP(OFFSET($B:$B,,MATCH(Q$4,$B$4:$F$4,0)-1),OFFSET('C. PoC Adj Factor Scoring'!$E$5:$J$282,,MATCH(Q$4,'C. PoC Adj Factor Scoring'!$E$3:$AH$3,0)-1),MATCH(Q$2&\" Score\",'C. PoC Adj Factor Scoring'!$E$4:$J$4,0),TRUE)","v":1},{"$f":"VLOOKUP(OFFSET($B:$B,,MATCH(R$4,$B$4:$F$4,0)-1),OFFSET('C. PoC Adj Factor Scoring'!$E$5:$J$282,,MATCH(R$4,'C. PoC Adj Factor Scoring'!$E$3:$AH$3,0)-1),MATCH(R$2&\" Score\",'C. PoC Adj Factor Scoring'!$E$4:$J$4,0),TRUE)","v":1},{"$f":"VLOOKUP(OFFSET($B:$B,,MATCH(S$4,$B$4:$F$4,0)-1),OFFSET('C. PoC Adj Factor Scoring'!$E$5:$J$282,,MATCH(S$4,'C. PoC Adj Factor Scoring'!$E$3:$AH$3,0)-1),MATCH(S$2&\" Score\",'C. PoC Adj Factor Scoring'!$E$4:$J$4,0),TRUE)","v":1},{"$f":"VLOOKUP(OFFSET($B:$B,,MATCH(T$4,$B$4:$F$4,0)-1),OFFSET('C. PoC Adj Factor Scoring'!$E$5:$J$282,,MATCH(T$4,'C. PoC Adj Factor Scoring'!$E$3:$AH$3,0)-1),MATCH(T$2&\" Score\",'C. PoC Adj Factor Scoring'!$E$4:$J$4,0),TRUE)","v":1},{"$f":"VLOOKUP(OFFSET($B:$B,,MATCH(U$4,$B$4:$F$4,0)-1),OFFSET('C. PoC Adj Factor Scoring'!$E$5:$J$282,,MATCH(U$4,'C. PoC Adj Factor Scoring'!$E$3:$AH$3,0)-1),MATCH(U$2&\" Score\",'C. PoC Adj Factor Scoring'!$E$4:$J$4,0),TRUE)","v":1},{"$f":"VLOOKUP(OFFSET($B:$B,,MATCH(V$4,$B$4:$F$4,0)-1),OFFSET('C. PoC Adj Factor Scoring'!$E$5:$J$282,,MATCH(V$4,'C. PoC Adj Factor Scoring'!$E$3:$AH$3,0)-1),MATCH(V$2&\" Score\",'C. PoC Adj Factor Scoring'!$E$4:$J$4,0),TRUE)","v":1},{"$f":"VLOOKUP(OFFSET($B:$B,,MATCH(W$4,$B$4:$F$4,0)-1),OFFSET('C. PoC Adj Factor Scoring'!$E$5:$J$282,,MATCH(W$4,'C. PoC Adj Factor Scoring'!$E$3:$AH$3,0)-1),MATCH(W$2&\" Score\",'C. PoC Adj Factor Scoring'!$E$4:$J$4,0),TRUE)","v":1},{"$f":"VLOOKUP(OFFSET($B:$B,,MATCH(X$4,$B$4:$F$4,0)-1),OFFSET('C. PoC Adj Factor Scoring'!$E$5:$J$282,,MATCH(X$4,'C. PoC Adj Factor Scoring'!$E$3:$AH$3,0)-1),MATCH(X$2&\" Score\",'C. PoC Adj Factor Scoring'!$E$4:$J$4,0),TRUE)","v":1},{"$f":"VLOOKUP(OFFSET($B:$B,,MATCH(Y$4,$B$4:$F$4,0)-1),OFFSET('C. PoC Adj Factor Scoring'!$E$5:$J$282,,MATCH(Y$4,'C. PoC Adj Factor Scoring'!$E$3:$AH$3,0)-1),MATCH(Y$2&\" Score\",'C. PoC Adj Factor Scoring'!$E$4:$J$4,0),TRUE)","v":1},{"$f":"VLOOKUP(OFFSET($B:$B,,MATCH(Z$4,$B$4:$F$4,0)-1),OFFSET('C. PoC Adj Factor Scoring'!$E$5:$J$282,,MATCH(Z$4,'C. PoC Adj Factor Scoring'!$E$3:$AH$3,0)-1),MATCH(Z$2&\" Score\",'C. PoC Adj Factor Scoring'!$E$4:$J$4,0),TRUE)","v":1},{"$f":"VLOOKUP(OFFSET($B:$B,,MATCH(AA$4,$B$4:$F$4,0)-1),OFFSET('C. PoC Adj Factor Scoring'!$E$5:$J$282,,MATCH(AA$4,'C. PoC Adj Factor Scoring'!$E$3:$AH$3,0)-1),MATCH(AA$2&\" Score\",'C. PoC Adj Factor Scoring'!$E$4:$J$4,0),TRUE)","v":3},{"$f":"VLOOKUP(OFFSET($B:$B,,MATCH(AB$4,$B$4:$F$4,0)-1),OFFSET('C. PoC Adj Factor Scoring'!$E$5:$J$282,,MATCH(AB$4,'C. PoC Adj Factor Scoring'!$E$3:$AH$3,0)-1),MATCH(AB$2&\" Score\",'C. PoC Adj Factor Scoring'!$E$4:$J$4,0),TRUE)","v":1},{"$f":"VLOOKUP(OFFSET($B:$B,,MATCH(AC$4,$B$4:$F$4,0)-1),OFFSET('C. PoC Adj Factor Scoring'!$E$5:$J$282,,MATCH(AC$4,'C. PoC Adj Factor Scoring'!$E$3:$AH$3,0)-1),MATCH(AC$2&\" Score\",'C. PoC Adj Factor Scoring'!$E$4:$J$4,0),TRUE)","v":1},{"$f":"VLOOKUP(OFFSET($B:$B,,MATCH(AD$4,$B$4:$F$4,0)-1),OFFSET('C. PoC Adj Factor Scoring'!$E$5:$J$282,,MATCH(AD$4,'C. PoC Adj Factor Scoring'!$E$3:$AH$3,0)-1),MATCH(AD$2&\" Score\",'C. PoC Adj Factor Scoring'!$E$4:$J$4,0),TRUE)","v":1},{"$f":"VLOOKUP(OFFSET($B:$B,,MATCH(AE$4,$B$4:$F$4,0)-1),OFFSET('C. PoC Adj Factor Scoring'!$E$5:$J$282,,MATCH(AE$4,'C. PoC Adj Factor Scoring'!$E$3:$AH$3,0)-1),MATCH(AE$2&\" Score\",'C. PoC Adj Factor Scoring'!$E$4:$J$4,0),TRUE)","v":1}]
[{"$f":"'A. Population Info'!A480","v":1001485871},{"$f":"'A. Population Info'!L480","v":"OIL"},{"$f":"'A. Population Info'!M480","v":0},{"$f":"'A. Population Info'!N480","v":0},{"$f":"'A. Population Info'!O480","v":0},{"$f":"'A. Population Info'!P480","v":0},{"$f":"VLOOKUP(OFFSET($B:$B,,MATCH(G$4,$B$4:$F$4,0)-1),OFFSET('C. PoC Adj Factor Scoring'!$E$5:$J$282,,MATCH(G$4,'C. PoC Adj Factor Scoring'!$E$3:$AH$3,0)-1),MATCH(G$2&\" Score\",'C. PoC Adj Factor Scoring'!$E$4:$J$4,0),TRUE)","v":4},{"$f":"VLOOKUP(OFFSET($B:$B,,MATCH(H$4,$B$4:$F$4,0)-1),OFFSET('C. PoC Adj Factor Scoring'!$E$5:$J$282,,MATCH(H$4,'C. PoC Adj Factor Scoring'!$E$3:$AH$3,0)-1),MATCH(H$2&\" Score\",'C. PoC Adj Factor Scoring'!$E$4:$J$4,0),TRUE)","v":1},{"$f":"VLOOKUP(OFFSET($B:$B,,MATCH(I$4,$B$4:$F$4,0)-1),OFFSET('C. PoC Adj Factor Scoring'!$E$5:$J$282,,MATCH(I$4,'C. PoC Adj Factor Scoring'!$E$3:$AH$3,0)-1),MATCH(I$2&\" Score\",'C. PoC Adj Factor Scoring'!$E$4:$J$4,0),TRUE)","v":1},{"$f":"VLOOKUP(OFFSET($B:$B,,MATCH(J$4,$B$4:$F$4,0)-1),OFFSET('C. PoC Adj Factor Scoring'!$E$5:$J$282,,MATCH(J$4,'C. PoC Adj Factor Scoring'!$E$3:$AH$3,0)-1),MATCH(J$2&\" Score\",'C. PoC Adj Factor Scoring'!$E$4:$J$4,0),TRUE)","v":1},{"$f":"VLOOKUP(OFFSET($B:$B,,MATCH(K$4,$B$4:$F$4,0)-1),OFFSET('C. PoC Adj Factor Scoring'!$E$5:$J$282,,MATCH(K$4,'C. PoC Adj Factor Scoring'!$E$3:$AH$3,0)-1),MATCH(K$2&\" Score\",'C. PoC Adj Factor Scoring'!$E$4:$J$4,0),TRUE)","v":1},{"$f":"VLOOKUP(OFFSET($B:$B,,MATCH(L$4,$B$4:$F$4,0)-1),OFFSET('C. PoC Adj Factor Scoring'!$E$5:$J$282,,MATCH(L$4,'C. PoC Adj Factor Scoring'!$E$3:$AH$3,0)-1),MATCH(L$2&\" Score\",'C. PoC Adj Factor Scoring'!$E$4:$J$4,0),TRUE)","v":1},{"$f":"VLOOKUP(OFFSET($B:$B,,MATCH(M$4,$B$4:$F$4,0)-1),OFFSET('C. PoC Adj Factor Scoring'!$E$5:$J$282,,MATCH(M$4,'C. PoC Adj Factor Scoring'!$E$3:$AH$3,0)-1),MATCH(M$2&\" Score\",'C. PoC Adj Factor Scoring'!$E$4:$J$4,0),TRUE)","v":1},{"$f":"VLOOKUP(OFFSET($B:$B,,MATCH(N$4,$B$4:$F$4,0)-1),OFFSET('C. PoC Adj Factor Scoring'!$E$5:$J$282,,MATCH(N$4,'C. PoC Adj Factor Scoring'!$E$3:$AH$3,0)-1),MATCH(N$2&\" Score\",'C. PoC Adj Factor Scoring'!$E$4:$J$4,0),TRUE)","v":1},{"$f":"VLOOKUP(OFFSET($B:$B,,MATCH(O$4,$B$4:$F$4,0)-1),OFFSET('C. PoC Adj Factor Scoring'!$E$5:$J$282,,MATCH(O$4,'C. PoC Adj Factor Scoring'!$E$3:$AH$3,0)-1),MATCH(O$2&\" Score\",'C. PoC Adj Factor Scoring'!$E$4:$J$4,0),TRUE)","v":1},{"$f":"VLOOKUP(OFFSET($B:$B,,MATCH(P$4,$B$4:$F$4,0)-1),OFFSET('C. PoC Adj Factor Scoring'!$E$5:$J$282,,MATCH(P$4,'C. PoC Adj Factor Scoring'!$E$3:$AH$3,0)-1),MATCH(P$2&\" Score\",'C. PoC Adj Factor Scoring'!$E$4:$J$4,0),TRUE)","v":1},{"$f":"VLOOKUP(OFFSET($B:$B,,MATCH(Q$4,$B$4:$F$4,0)-1),OFFSET('C. PoC Adj Factor Scoring'!$E$5:$J$282,,MATCH(Q$4,'C. PoC Adj Factor Scoring'!$E$3:$AH$3,0)-1),MATCH(Q$2&\" Score\",'C. PoC Adj Factor Scoring'!$E$4:$J$4,0),TRUE)","v":1},{"$f":"VLOOKUP(OFFSET($B:$B,,MATCH(R$4,$B$4:$F$4,0)-1),OFFSET('C. PoC Adj Factor Scoring'!$E$5:$J$282,,MATCH(R$4,'C. PoC Adj Factor Scoring'!$E$3:$AH$3,0)-1),MATCH(R$2&\" Score\",'C. PoC Adj Factor Scoring'!$E$4:$J$4,0),TRUE)","v":1},{"$f":"VLOOKUP(OFFSET($B:$B,,MATCH(S$4,$B$4:$F$4,0)-1),OFFSET('C. PoC Adj Factor Scoring'!$E$5:$J$282,,MATCH(S$4,'C. PoC Adj Factor Scoring'!$E$3:$AH$3,0)-1),MATCH(S$2&\" Score\",'C. PoC Adj Factor Scoring'!$E$4:$J$4,0),TRUE)","v":1},{"$f":"VLOOKUP(OFFSET($B:$B,,MATCH(T$4,$B$4:$F$4,0)-1),OFFSET('C. PoC Adj Factor Scoring'!$E$5:$J$282,,MATCH(T$4,'C. PoC Adj Factor Scoring'!$E$3:$AH$3,0)-1),MATCH(T$2&\" Score\",'C. PoC Adj Factor Scoring'!$E$4:$J$4,0),TRUE)","v":1},{"$f":"VLOOKUP(OFFSET($B:$B,,MATCH(U$4,$B$4:$F$4,0)-1),OFFSET('C. PoC Adj Factor Scoring'!$E$5:$J$282,,MATCH(U$4,'C. PoC Adj Factor Scoring'!$E$3:$AH$3,0)-1),MATCH(U$2&\" Score\",'C. PoC Adj Factor Scoring'!$E$4:$J$4,0),TRUE)","v":1},{"$f":"VLOOKUP(OFFSET($B:$B,,MATCH(V$4,$B$4:$F$4,0)-1),OFFSET('C. PoC Adj Factor Scoring'!$E$5:$J$282,,MATCH(V$4,'C. PoC Adj Factor Scoring'!$E$3:$AH$3,0)-1),MATCH(V$2&\" Score\",'C. PoC Adj Factor Scoring'!$E$4:$J$4,0),TRUE)","v":1},{"$f":"VLOOKUP(OFFSET($B:$B,,MATCH(W$4,$B$4:$F$4,0)-1),OFFSET('C. PoC Adj Factor Scoring'!$E$5:$J$282,,MATCH(W$4,'C. PoC Adj Factor Scoring'!$E$3:$AH$3,0)-1),MATCH(W$2&\" Score\",'C. PoC Adj Factor Scoring'!$E$4:$J$4,0),TRUE)","v":1},{"$f":"VLOOKUP(OFFSET($B:$B,,MATCH(X$4,$B$4:$F$4,0)-1),OFFSET('C. PoC Adj Factor Scoring'!$E$5:$J$282,,MATCH(X$4,'C. PoC Adj Factor Scoring'!$E$3:$AH$3,0)-1),MATCH(X$2&\" Score\",'C. PoC Adj Factor Scoring'!$E$4:$J$4,0),TRUE)","v":1},{"$f":"VLOOKUP(OFFSET($B:$B,,MATCH(Y$4,$B$4:$F$4,0)-1),OFFSET('C. PoC Adj Factor Scoring'!$E$5:$J$282,,MATCH(Y$4,'C. PoC Adj Factor Scoring'!$E$3:$AH$3,0)-1),MATCH(Y$2&\" Score\",'C. PoC Adj Factor Scoring'!$E$4:$J$4,0),TRUE)","v":1},{"$f":"VLOOKUP(OFFSET($B:$B,,MATCH(Z$4,$B$4:$F$4,0)-1),OFFSET('C. PoC Adj Factor Scoring'!$E$5:$J$282,,MATCH(Z$4,'C. PoC Adj Factor Scoring'!$E$3:$AH$3,0)-1),MATCH(Z$2&\" Score\",'C. PoC Adj Factor Scoring'!$E$4:$J$4,0),TRUE)","v":1},{"$f":"VLOOKUP(OFFSET($B:$B,,MATCH(AA$4,$B$4:$F$4,0)-1),OFFSET('C. PoC Adj Factor Scoring'!$E$5:$J$282,,MATCH(AA$4,'C. PoC Adj Factor Scoring'!$E$3:$AH$3,0)-1),MATCH(AA$2&\" Score\",'C. PoC Adj Factor Scoring'!$E$4:$J$4,0),TRUE)","v":3},{"$f":"VLOOKUP(OFFSET($B:$B,,MATCH(AB$4,$B$4:$F$4,0)-1),OFFSET('C. PoC Adj Factor Scoring'!$E$5:$J$282,,MATCH(AB$4,'C. PoC Adj Factor Scoring'!$E$3:$AH$3,0)-1),MATCH(AB$2&\" Score\",'C. PoC Adj Factor Scoring'!$E$4:$J$4,0),TRUE)","v":1},{"$f":"VLOOKUP(OFFSET($B:$B,,MATCH(AC$4,$B$4:$F$4,0)-1),OFFSET('C. PoC Adj Factor Scoring'!$E$5:$J$282,,MATCH(AC$4,'C. PoC Adj Factor Scoring'!$E$3:$AH$3,0)-1),MATCH(AC$2&\" Score\",'C. PoC Adj Factor Scoring'!$E$4:$J$4,0),TRUE)","v":1},{"$f":"VLOOKUP(OFFSET($B:$B,,MATCH(AD$4,$B$4:$F$4,0)-1),OFFSET('C. PoC Adj Factor Scoring'!$E$5:$J$282,,MATCH(AD$4,'C. PoC Adj Factor Scoring'!$E$3:$AH$3,0)-1),MATCH(AD$2&\" Score\",'C. PoC Adj Factor Scoring'!$E$4:$J$4,0),TRUE)","v":1},{"$f":"VLOOKUP(OFFSET($B:$B,,MATCH(AE$4,$B$4:$F$4,0)-1),OFFSET('C. PoC Adj Factor Scoring'!$E$5:$J$282,,MATCH(AE$4,'C. PoC Adj Factor Scoring'!$E$3:$AH$3,0)-1),MATCH(AE$2&\" Score\",'C. PoC Adj Factor Scoring'!$E$4:$J$4,0),TRUE)","v":1}]
[{"$f":"'A. Population Info'!A481","v":1001487639},{"$f":"'A. Population Info'!L481","v":"OIL"},{"$f":"'A. Population Info'!M481","v":0},{"$f":"'A. Population Info'!N481","v":0},{"$f":"'A. Population Info'!O481","v":0},{"$f":"'A. Population Info'!P481","v":0},{"$f":"VLOOKUP(OFFSET($B:$B,,MATCH(G$4,$B$4:$F$4,0)-1),OFFSET('C. PoC Adj Factor Scoring'!$E$5:$J$282,,MATCH(G$4,'C. PoC Adj Factor Scoring'!$E$3:$AH$3,0)-1),MATCH(G$2&\" Score\",'C. PoC Adj Factor Scoring'!$E$4:$J$4,0),TRUE)","v":4},{"$f":"VLOOKUP(OFFSET($B:$B,,MATCH(H$4,$B$4:$F$4,0)-1),OFFSET('C. PoC Adj Factor Scoring'!$E$5:$J$282,,MATCH(H$4,'C. PoC Adj Factor Scoring'!$E$3:$AH$3,0)-1),MATCH(H$2&\" Score\",'C. PoC Adj Factor Scoring'!$E$4:$J$4,0),TRUE)","v":1},{"$f":"VLOOKUP(OFFSET($B:$B,,MATCH(I$4,$B$4:$F$4,0)-1),OFFSET('C. PoC Adj Factor Scoring'!$E$5:$J$282,,MATCH(I$4,'C. PoC Adj Factor Scoring'!$E$3:$AH$3,0)-1),MATCH(I$2&\" Score\",'C. PoC Adj Factor Scoring'!$E$4:$J$4,0),TRUE)","v":1},{"$f":"VLOOKUP(OFFSET($B:$B,,MATCH(J$4,$B$4:$F$4,0)-1),OFFSET('C. PoC Adj Factor Scoring'!$E$5:$J$282,,MATCH(J$4,'C. PoC Adj Factor Scoring'!$E$3:$AH$3,0)-1),MATCH(J$2&\" Score\",'C. PoC Adj Factor Scoring'!$E$4:$J$4,0),TRUE)","v":1},{"$f":"VLOOKUP(OFFSET($B:$B,,MATCH(K$4,$B$4:$F$4,0)-1),OFFSET('C. PoC Adj Factor Scoring'!$E$5:$J$282,,MATCH(K$4,'C. PoC Adj Factor Scoring'!$E$3:$AH$3,0)-1),MATCH(K$2&\" Score\",'C. PoC Adj Factor Scoring'!$E$4:$J$4,0),TRUE)","v":1},{"$f":"VLOOKUP(OFFSET($B:$B,,MATCH(L$4,$B$4:$F$4,0)-1),OFFSET('C. PoC Adj Factor Scoring'!$E$5:$J$282,,MATCH(L$4,'C. PoC Adj Factor Scoring'!$E$3:$AH$3,0)-1),MATCH(L$2&\" Score\",'C. PoC Adj Factor Scoring'!$E$4:$J$4,0),TRUE)","v":1},{"$f":"VLOOKUP(OFFSET($B:$B,,MATCH(M$4,$B$4:$F$4,0)-1),OFFSET('C. PoC Adj Factor Scoring'!$E$5:$J$282,,MATCH(M$4,'C. PoC Adj Factor Scoring'!$E$3:$AH$3,0)-1),MATCH(M$2&\" Score\",'C. PoC Adj Factor Scoring'!$E$4:$J$4,0),TRUE)","v":1},{"$f":"VLOOKUP(OFFSET($B:$B,,MATCH(N$4,$B$4:$F$4,0)-1),OFFSET('C. PoC Adj Factor Scoring'!$E$5:$J$282,,MATCH(N$4,'C. PoC Adj Factor Scoring'!$E$3:$AH$3,0)-1),MATCH(N$2&\" Score\",'C. PoC Adj Factor Scoring'!$E$4:$J$4,0),TRUE)","v":1},{"$f":"VLOOKUP(OFFSET($B:$B,,MATCH(O$4,$B$4:$F$4,0)-1),OFFSET('C. PoC Adj Factor Scoring'!$E$5:$J$282,,MATCH(O$4,'C. PoC Adj Factor Scoring'!$E$3:$AH$3,0)-1),MATCH(O$2&\" Score\",'C. PoC Adj Factor Scoring'!$E$4:$J$4,0),TRUE)","v":1},{"$f":"VLOOKUP(OFFSET($B:$B,,MATCH(P$4,$B$4:$F$4,0)-1),OFFSET('C. PoC Adj Factor Scoring'!$E$5:$J$282,,MATCH(P$4,'C. PoC Adj Factor Scoring'!$E$3:$AH$3,0)-1),MATCH(P$2&\" Score\",'C. PoC Adj Factor Scoring'!$E$4:$J$4,0),TRUE)","v":1},{"$f":"VLOOKUP(OFFSET($B:$B,,MATCH(Q$4,$B$4:$F$4,0)-1),OFFSET('C. PoC Adj Factor Scoring'!$E$5:$J$282,,MATCH(Q$4,'C. PoC Adj Factor Scoring'!$E$3:$AH$3,0)-1),MATCH(Q$2&\" Score\",'C. PoC Adj Factor Scoring'!$E$4:$J$4,0),TRUE)","v":1},{"$f":"VLOOKUP(OFFSET($B:$B,,MATCH(R$4,$B$4:$F$4,0)-1),OFFSET('C. PoC Adj Factor Scoring'!$E$5:$J$282,,MATCH(R$4,'C. PoC Adj Factor Scoring'!$E$3:$AH$3,0)-1),MATCH(R$2&\" Score\",'C. PoC Adj Factor Scoring'!$E$4:$J$4,0),TRUE)","v":1},{"$f":"VLOOKUP(OFFSET($B:$B,,MATCH(S$4,$B$4:$F$4,0)-1),OFFSET('C. PoC Adj Factor Scoring'!$E$5:$J$282,,MATCH(S$4,'C. PoC Adj Factor Scoring'!$E$3:$AH$3,0)-1),MATCH(S$2&\" Score\",'C. PoC Adj Factor Scoring'!$E$4:$J$4,0),TRUE)","v":1},{"$f":"VLOOKUP(OFFSET($B:$B,,MATCH(T$4,$B$4:$F$4,0)-1),OFFSET('C. PoC Adj Factor Scoring'!$E$5:$J$282,,MATCH(T$4,'C. PoC Adj Factor Scoring'!$E$3:$AH$3,0)-1),MATCH(T$2&\" Score\",'C. PoC Adj Factor Scoring'!$E$4:$J$4,0),TRUE)","v":1},{"$f":"VLOOKUP(OFFSET($B:$B,,MATCH(U$4,$B$4:$F$4,0)-1),OFFSET('C. PoC Adj Factor Scoring'!$E$5:$J$282,,MATCH(U$4,'C. PoC Adj Factor Scoring'!$E$3:$AH$3,0)-1),MATCH(U$2&\" Score\",'C. PoC Adj Factor Scoring'!$E$4:$J$4,0),TRUE)","v":1},{"$f":"VLOOKUP(OFFSET($B:$B,,MATCH(V$4,$B$4:$F$4,0)-1),OFFSET('C. PoC Adj Factor Scoring'!$E$5:$J$282,,MATCH(V$4,'C. PoC Adj Factor Scoring'!$E$3:$AH$3,0)-1),MATCH(V$2&\" Score\",'C. PoC Adj Factor Scoring'!$E$4:$J$4,0),TRUE)","v":1},{"$f":"VLOOKUP(OFFSET($B:$B,,MATCH(W$4,$B$4:$F$4,0)-1),OFFSET('C. PoC Adj Factor Scoring'!$E$5:$J$282,,MATCH(W$4,'C. PoC Adj Factor Scoring'!$E$3:$AH$3,0)-1),MATCH(W$2&\" Score\",'C. PoC Adj Factor Scoring'!$E$4:$J$4,0),TRUE)","v":1},{"$f":"VLOOKUP(OFFSET($B:$B,,MATCH(X$4,$B$4:$F$4,0)-1),OFFSET('C. PoC Adj Factor Scoring'!$E$5:$J$282,,MATCH(X$4,'C. PoC Adj Factor Scoring'!$E$3:$AH$3,0)-1),MATCH(X$2&\" Score\",'C. PoC Adj Factor Scoring'!$E$4:$J$4,0),TRUE)","v":1},{"$f":"VLOOKUP(OFFSET($B:$B,,MATCH(Y$4,$B$4:$F$4,0)-1),OFFSET('C. PoC Adj Factor Scoring'!$E$5:$J$282,,MATCH(Y$4,'C. PoC Adj Factor Scoring'!$E$3:$AH$3,0)-1),MATCH(Y$2&\" Score\",'C. PoC Adj Factor Scoring'!$E$4:$J$4,0),TRUE)","v":1},{"$f":"VLOOKUP(OFFSET($B:$B,,MATCH(Z$4,$B$4:$F$4,0)-1),OFFSET('C. PoC Adj Factor Scoring'!$E$5:$J$282,,MATCH(Z$4,'C. PoC Adj Factor Scoring'!$E$3:$AH$3,0)-1),MATCH(Z$2&\" Score\",'C. PoC Adj Factor Scoring'!$E$4:$J$4,0),TRUE)","v":1},{"$f":"VLOOKUP(OFFSET($B:$B,,MATCH(AA$4,$B$4:$F$4,0)-1),OFFSET('C. PoC Adj Factor Scoring'!$E$5:$J$282,,MATCH(AA$4,'C. PoC Adj Factor Scoring'!$E$3:$AH$3,0)-1),MATCH(AA$2&\" Score\",'C. PoC Adj Factor Scoring'!$E$4:$J$4,0),TRUE)","v":3},{"$f":"VLOOKUP(OFFSET($B:$B,,MATCH(AB$4,$B$4:$F$4,0)-1),OFFSET('C. PoC Adj Factor Scoring'!$E$5:$J$282,,MATCH(AB$4,'C. PoC Adj Factor Scoring'!$E$3:$AH$3,0)-1),MATCH(AB$2&\" Score\",'C. PoC Adj Factor Scoring'!$E$4:$J$4,0),TRUE)","v":1},{"$f":"VLOOKUP(OFFSET($B:$B,,MATCH(AC$4,$B$4:$F$4,0)-1),OFFSET('C. PoC Adj Factor Scoring'!$E$5:$J$282,,MATCH(AC$4,'C. PoC Adj Factor Scoring'!$E$3:$AH$3,0)-1),MATCH(AC$2&\" Score\",'C. PoC Adj Factor Scoring'!$E$4:$J$4,0),TRUE)","v":1},{"$f":"VLOOKUP(OFFSET($B:$B,,MATCH(AD$4,$B$4:$F$4,0)-1),OFFSET('C. PoC Adj Factor Scoring'!$E$5:$J$282,,MATCH(AD$4,'C. PoC Adj Factor Scoring'!$E$3:$AH$3,0)-1),MATCH(AD$2&\" Score\",'C. PoC Adj Factor Scoring'!$E$4:$J$4,0),TRUE)","v":1},{"$f":"VLOOKUP(OFFSET($B:$B,,MATCH(AE$4,$B$4:$F$4,0)-1),OFFSET('C. PoC Adj Factor Scoring'!$E$5:$J$282,,MATCH(AE$4,'C. PoC Adj Factor Scoring'!$E$3:$AH$3,0)-1),MATCH(AE$2&\" Score\",'C. PoC Adj Factor Scoring'!$E$4:$J$4,0),TRUE)","v":1}]
[{"$f":"'A. Population Info'!A482","v":1001489786},{"$f":"'A. Population Info'!L482","v":"OIL"},{"$f":"'A. Population Info'!M482","v":0},{"$f":"'A. Population Info'!N482","v":0},{"$f":"'A. Population Info'!O482","v":0},{"$f":"'A. Population Info'!P482","v":0},{"$f":"VLOOKUP(OFFSET($B:$B,,MATCH(G$4,$B$4:$F$4,0)-1),OFFSET('C. PoC Adj Factor Scoring'!$E$5:$J$282,,MATCH(G$4,'C. PoC Adj Factor Scoring'!$E$3:$AH$3,0)-1),MATCH(G$2&\" Score\",'C. PoC Adj Factor Scoring'!$E$4:$J$4,0),TRUE)","v":4},{"$f":"VLOOKUP(OFFSET($B:$B,,MATCH(H$4,$B$4:$F$4,0)-1),OFFSET('C. PoC Adj Factor Scoring'!$E$5:$J$282,,MATCH(H$4,'C. PoC Adj Factor Scoring'!$E$3:$AH$3,0)-1),MATCH(H$2&\" Score\",'C. PoC Adj Factor Scoring'!$E$4:$J$4,0),TRUE)","v":1},{"$f":"VLOOKUP(OFFSET($B:$B,,MATCH(I$4,$B$4:$F$4,0)-1),OFFSET('C. PoC Adj Factor Scoring'!$E$5:$J$282,,MATCH(I$4,'C. PoC Adj Factor Scoring'!$E$3:$AH$3,0)-1),MATCH(I$2&\" Score\",'C. PoC Adj Factor Scoring'!$E$4:$J$4,0),TRUE)","v":1},{"$f":"VLOOKUP(OFFSET($B:$B,,MATCH(J$4,$B$4:$F$4,0)-1),OFFSET('C. PoC Adj Factor Scoring'!$E$5:$J$282,,MATCH(J$4,'C. PoC Adj Factor Scoring'!$E$3:$AH$3,0)-1),MATCH(J$2&\" Score\",'C. PoC Adj Factor Scoring'!$E$4:$J$4,0),TRUE)","v":1},{"$f":"VLOOKUP(OFFSET($B:$B,,MATCH(K$4,$B$4:$F$4,0)-1),OFFSET('C. PoC Adj Factor Scoring'!$E$5:$J$282,,MATCH(K$4,'C. PoC Adj Factor Scoring'!$E$3:$AH$3,0)-1),MATCH(K$2&\" Score\",'C. PoC Adj Factor Scoring'!$E$4:$J$4,0),TRUE)","v":1},{"$f":"VLOOKUP(OFFSET($B:$B,,MATCH(L$4,$B$4:$F$4,0)-1),OFFSET('C. PoC Adj Factor Scoring'!$E$5:$J$282,,MATCH(L$4,'C. PoC Adj Factor Scoring'!$E$3:$AH$3,0)-1),MATCH(L$2&\" Score\",'C. PoC Adj Factor Scoring'!$E$4:$J$4,0),TRUE)","v":1},{"$f":"VLOOKUP(OFFSET($B:$B,,MATCH(M$4,$B$4:$F$4,0)-1),OFFSET('C. PoC Adj Factor Scoring'!$E$5:$J$282,,MATCH(M$4,'C. PoC Adj Factor Scoring'!$E$3:$AH$3,0)-1),MATCH(M$2&\" Score\",'C. PoC Adj Factor Scoring'!$E$4:$J$4,0),TRUE)","v":1},{"$f":"VLOOKUP(OFFSET($B:$B,,MATCH(N$4,$B$4:$F$4,0)-1),OFFSET('C. PoC Adj Factor Scoring'!$E$5:$J$282,,MATCH(N$4,'C. PoC Adj Factor Scoring'!$E$3:$AH$3,0)-1),MATCH(N$2&\" Score\",'C. PoC Adj Factor Scoring'!$E$4:$J$4,0),TRUE)","v":1},{"$f":"VLOOKUP(OFFSET($B:$B,,MATCH(O$4,$B$4:$F$4,0)-1),OFFSET('C. PoC Adj Factor Scoring'!$E$5:$J$282,,MATCH(O$4,'C. PoC Adj Factor Scoring'!$E$3:$AH$3,0)-1),MATCH(O$2&\" Score\",'C. PoC Adj Factor Scoring'!$E$4:$J$4,0),TRUE)","v":1},{"$f":"VLOOKUP(OFFSET($B:$B,,MATCH(P$4,$B$4:$F$4,0)-1),OFFSET('C. PoC Adj Factor Scoring'!$E$5:$J$282,,MATCH(P$4,'C. PoC Adj Factor Scoring'!$E$3:$AH$3,0)-1),MATCH(P$2&\" Score\",'C. PoC Adj Factor Scoring'!$E$4:$J$4,0),TRUE)","v":1},{"$f":"VLOOKUP(OFFSET($B:$B,,MATCH(Q$4,$B$4:$F$4,0)-1),OFFSET('C. PoC Adj Factor Scoring'!$E$5:$J$282,,MATCH(Q$4,'C. PoC Adj Factor Scoring'!$E$3:$AH$3,0)-1),MATCH(Q$2&\" Score\",'C. PoC Adj Factor Scoring'!$E$4:$J$4,0),TRUE)","v":1},{"$f":"VLOOKUP(OFFSET($B:$B,,MATCH(R$4,$B$4:$F$4,0)-1),OFFSET('C. PoC Adj Factor Scoring'!$E$5:$J$282,,MATCH(R$4,'C. PoC Adj Factor Scoring'!$E$3:$AH$3,0)-1),MATCH(R$2&\" Score\",'C. PoC Adj Factor Scoring'!$E$4:$J$4,0),TRUE)","v":1},{"$f":"VLOOKUP(OFFSET($B:$B,,MATCH(S$4,$B$4:$F$4,0)-1),OFFSET('C. PoC Adj Factor Scoring'!$E$5:$J$282,,MATCH(S$4,'C. PoC Adj Factor Scoring'!$E$3:$AH$3,0)-1),MATCH(S$2&\" Score\",'C. PoC Adj Factor Scoring'!$E$4:$J$4,0),TRUE)","v":1},{"$f":"VLOOKUP(OFFSET($B:$B,,MATCH(T$4,$B$4:$F$4,0)-1),OFFSET('C. PoC Adj Factor Scoring'!$E$5:$J$282,,MATCH(T$4,'C. PoC Adj Factor Scoring'!$E$3:$AH$3,0)-1),MATCH(T$2&\" Score\",'C. PoC Adj Factor Scoring'!$E$4:$J$4,0),TRUE)","v":1},{"$f":"VLOOKUP(OFFSET($B:$B,,MATCH(U$4,$B$4:$F$4,0)-1),OFFSET('C. PoC Adj Factor Scoring'!$E$5:$J$282,,MATCH(U$4,'C. PoC Adj Factor Scoring'!$E$3:$AH$3,0)-1),MATCH(U$2&\" Score\",'C. PoC Adj Factor Scoring'!$E$4:$J$4,0),TRUE)","v":1},{"$f":"VLOOKUP(OFFSET($B:$B,,MATCH(V$4,$B$4:$F$4,0)-1),OFFSET('C. PoC Adj Factor Scoring'!$E$5:$J$282,,MATCH(V$4,'C. PoC Adj Factor Scoring'!$E$3:$AH$3,0)-1),MATCH(V$2&\" Score\",'C. PoC Adj Factor Scoring'!$E$4:$J$4,0),TRUE)","v":1},{"$f":"VLOOKUP(OFFSET($B:$B,,MATCH(W$4,$B$4:$F$4,0)-1),OFFSET('C. PoC Adj Factor Scoring'!$E$5:$J$282,,MATCH(W$4,'C. PoC Adj Factor Scoring'!$E$3:$AH$3,0)-1),MATCH(W$2&\" Score\",'C. PoC Adj Factor Scoring'!$E$4:$J$4,0),TRUE)","v":1},{"$f":"VLOOKUP(OFFSET($B:$B,,MATCH(X$4,$B$4:$F$4,0)-1),OFFSET('C. PoC Adj Factor Scoring'!$E$5:$J$282,,MATCH(X$4,'C. PoC Adj Factor Scoring'!$E$3:$AH$3,0)-1),MATCH(X$2&\" Score\",'C. PoC Adj Factor Scoring'!$E$4:$J$4,0),TRUE)","v":1},{"$f":"VLOOKUP(OFFSET($B:$B,,MATCH(Y$4,$B$4:$F$4,0)-1),OFFSET('C. PoC Adj Factor Scoring'!$E$5:$J$282,,MATCH(Y$4,'C. PoC Adj Factor Scoring'!$E$3:$AH$3,0)-1),MATCH(Y$2&\" Score\",'C. PoC Adj Factor Scoring'!$E$4:$J$4,0),TRUE)","v":1},{"$f":"VLOOKUP(OFFSET($B:$B,,MATCH(Z$4,$B$4:$F$4,0)-1),OFFSET('C. PoC Adj Factor Scoring'!$E$5:$J$282,,MATCH(Z$4,'C. PoC Adj Factor Scoring'!$E$3:$AH$3,0)-1),MATCH(Z$2&\" Score\",'C. PoC Adj Factor Scoring'!$E$4:$J$4,0),TRUE)","v":1},{"$f":"VLOOKUP(OFFSET($B:$B,,MATCH(AA$4,$B$4:$F$4,0)-1),OFFSET('C. PoC Adj Factor Scoring'!$E$5:$J$282,,MATCH(AA$4,'C. PoC Adj Factor Scoring'!$E$3:$AH$3,0)-1),MATCH(AA$2&\" Score\",'C. PoC Adj Factor Scoring'!$E$4:$J$4,0),TRUE)","v":3},{"$f":"VLOOKUP(OFFSET($B:$B,,MATCH(AB$4,$B$4:$F$4,0)-1),OFFSET('C. PoC Adj Factor Scoring'!$E$5:$J$282,,MATCH(AB$4,'C. PoC Adj Factor Scoring'!$E$3:$AH$3,0)-1),MATCH(AB$2&\" Score\",'C. PoC Adj Factor Scoring'!$E$4:$J$4,0),TRUE)","v":1},{"$f":"VLOOKUP(OFFSET($B:$B,,MATCH(AC$4,$B$4:$F$4,0)-1),OFFSET('C. PoC Adj Factor Scoring'!$E$5:$J$282,,MATCH(AC$4,'C. PoC Adj Factor Scoring'!$E$3:$AH$3,0)-1),MATCH(AC$2&\" Score\",'C. PoC Adj Factor Scoring'!$E$4:$J$4,0),TRUE)","v":1},{"$f":"VLOOKUP(OFFSET($B:$B,,MATCH(AD$4,$B$4:$F$4,0)-1),OFFSET('C. PoC Adj Factor Scoring'!$E$5:$J$282,,MATCH(AD$4,'C. PoC Adj Factor Scoring'!$E$3:$AH$3,0)-1),MATCH(AD$2&\" Score\",'C. PoC Adj Factor Scoring'!$E$4:$J$4,0),TRUE)","v":1},{"$f":"VLOOKUP(OFFSET($B:$B,,MATCH(AE$4,$B$4:$F$4,0)-1),OFFSET('C. PoC Adj Factor Scoring'!$E$5:$J$282,,MATCH(AE$4,'C. PoC Adj Factor Scoring'!$E$3:$AH$3,0)-1),MATCH(AE$2&\" Score\",'C. PoC Adj Factor Scoring'!$E$4:$J$4,0),TRUE)","v":1}]
[{"$f":"'A. Population Info'!A483","v":1001489800},{"$f":"'A. Population Info'!L483","v":"OIL"},{"$f":"'A. Population Info'!M483","v":0},{"$f":"'A. Population Info'!N483","v":0},{"$f":"'A. Population Info'!O483","v":0},{"$f":"'A. Population Info'!P483","v":0},{"$f":"VLOOKUP(OFFSET($B:$B,,MATCH(G$4,$B$4:$F$4,0)-1),OFFSET('C. PoC Adj Factor Scoring'!$E$5:$J$282,,MATCH(G$4,'C. PoC Adj Factor Scoring'!$E$3:$AH$3,0)-1),MATCH(G$2&\" Score\",'C. PoC Adj Factor Scoring'!$E$4:$J$4,0),TRUE)","v":4},{"$f":"VLOOKUP(OFFSET($B:$B,,MATCH(H$4,$B$4:$F$4,0)-1),OFFSET('C. PoC Adj Factor Scoring'!$E$5:$J$282,,MATCH(H$4,'C. PoC Adj Factor Scoring'!$E$3:$AH$3,0)-1),MATCH(H$2&\" Score\",'C. PoC Adj Factor Scoring'!$E$4:$J$4,0),TRUE)","v":1},{"$f":"VLOOKUP(OFFSET($B:$B,,MATCH(I$4,$B$4:$F$4,0)-1),OFFSET('C. PoC Adj Factor Scoring'!$E$5:$J$282,,MATCH(I$4,'C. PoC Adj Factor Scoring'!$E$3:$AH$3,0)-1),MATCH(I$2&\" Score\",'C. PoC Adj Factor Scoring'!$E$4:$J$4,0),TRUE)","v":1},{"$f":"VLOOKUP(OFFSET($B:$B,,MATCH(J$4,$B$4:$F$4,0)-1),OFFSET('C. PoC Adj Factor Scoring'!$E$5:$J$282,,MATCH(J$4,'C. PoC Adj Factor Scoring'!$E$3:$AH$3,0)-1),MATCH(J$2&\" Score\",'C. PoC Adj Factor Scoring'!$E$4:$J$4,0),TRUE)","v":1},{"$f":"VLOOKUP(OFFSET($B:$B,,MATCH(K$4,$B$4:$F$4,0)-1),OFFSET('C. PoC Adj Factor Scoring'!$E$5:$J$282,,MATCH(K$4,'C. PoC Adj Factor Scoring'!$E$3:$AH$3,0)-1),MATCH(K$2&\" Score\",'C. PoC Adj Factor Scoring'!$E$4:$J$4,0),TRUE)","v":1},{"$f":"VLOOKUP(OFFSET($B:$B,,MATCH(L$4,$B$4:$F$4,0)-1),OFFSET('C. PoC Adj Factor Scoring'!$E$5:$J$282,,MATCH(L$4,'C. PoC Adj Factor Scoring'!$E$3:$AH$3,0)-1),MATCH(L$2&\" Score\",'C. PoC Adj Factor Scoring'!$E$4:$J$4,0),TRUE)","v":1},{"$f":"VLOOKUP(OFFSET($B:$B,,MATCH(M$4,$B$4:$F$4,0)-1),OFFSET('C. PoC Adj Factor Scoring'!$E$5:$J$282,,MATCH(M$4,'C. PoC Adj Factor Scoring'!$E$3:$AH$3,0)-1),MATCH(M$2&\" Score\",'C. PoC Adj Factor Scoring'!$E$4:$J$4,0),TRUE)","v":1},{"$f":"VLOOKUP(OFFSET($B:$B,,MATCH(N$4,$B$4:$F$4,0)-1),OFFSET('C. PoC Adj Factor Scoring'!$E$5:$J$282,,MATCH(N$4,'C. PoC Adj Factor Scoring'!$E$3:$AH$3,0)-1),MATCH(N$2&\" Score\",'C. PoC Adj Factor Scoring'!$E$4:$J$4,0),TRUE)","v":1},{"$f":"VLOOKUP(OFFSET($B:$B,,MATCH(O$4,$B$4:$F$4,0)-1),OFFSET('C. PoC Adj Factor Scoring'!$E$5:$J$282,,MATCH(O$4,'C. PoC Adj Factor Scoring'!$E$3:$AH$3,0)-1),MATCH(O$2&\" Score\",'C. PoC Adj Factor Scoring'!$E$4:$J$4,0),TRUE)","v":1},{"$f":"VLOOKUP(OFFSET($B:$B,,MATCH(P$4,$B$4:$F$4,0)-1),OFFSET('C. PoC Adj Factor Scoring'!$E$5:$J$282,,MATCH(P$4,'C. PoC Adj Factor Scoring'!$E$3:$AH$3,0)-1),MATCH(P$2&\" Score\",'C. PoC Adj Factor Scoring'!$E$4:$J$4,0),TRUE)","v":1},{"$f":"VLOOKUP(OFFSET($B:$B,,MATCH(Q$4,$B$4:$F$4,0)-1),OFFSET('C. PoC Adj Factor Scoring'!$E$5:$J$282,,MATCH(Q$4,'C. PoC Adj Factor Scoring'!$E$3:$AH$3,0)-1),MATCH(Q$2&\" Score\",'C. PoC Adj Factor Scoring'!$E$4:$J$4,0),TRUE)","v":1},{"$f":"VLOOKUP(OFFSET($B:$B,,MATCH(R$4,$B$4:$F$4,0)-1),OFFSET('C. PoC Adj Factor Scoring'!$E$5:$J$282,,MATCH(R$4,'C. PoC Adj Factor Scoring'!$E$3:$AH$3,0)-1),MATCH(R$2&\" Score\",'C. PoC Adj Factor Scoring'!$E$4:$J$4,0),TRUE)","v":1},{"$f":"VLOOKUP(OFFSET($B:$B,,MATCH(S$4,$B$4:$F$4,0)-1),OFFSET('C. PoC Adj Factor Scoring'!$E$5:$J$282,,MATCH(S$4,'C. PoC Adj Factor Scoring'!$E$3:$AH$3,0)-1),MATCH(S$2&\" Score\",'C. PoC Adj Factor Scoring'!$E$4:$J$4,0),TRUE)","v":1},{"$f":"VLOOKUP(OFFSET($B:$B,,MATCH(T$4,$B$4:$F$4,0)-1),OFFSET('C. PoC Adj Factor Scoring'!$E$5:$J$282,,MATCH(T$4,'C. PoC Adj Factor Scoring'!$E$3:$AH$3,0)-1),MATCH(T$2&\" Score\",'C. PoC Adj Factor Scoring'!$E$4:$J$4,0),TRUE)","v":1},{"$f":"VLOOKUP(OFFSET($B:$B,,MATCH(U$4,$B$4:$F$4,0)-1),OFFSET('C. PoC Adj Factor Scoring'!$E$5:$J$282,,MATCH(U$4,'C. PoC Adj Factor Scoring'!$E$3:$AH$3,0)-1),MATCH(U$2&\" Score\",'C. PoC Adj Factor Scoring'!$E$4:$J$4,0),TRUE)","v":1},{"$f":"VLOOKUP(OFFSET($B:$B,,MATCH(V$4,$B$4:$F$4,0)-1),OFFSET('C. PoC Adj Factor Scoring'!$E$5:$J$282,,MATCH(V$4,'C. PoC Adj Factor Scoring'!$E$3:$AH$3,0)-1),MATCH(V$2&\" Score\",'C. PoC Adj Factor Scoring'!$E$4:$J$4,0),TRUE)","v":1},{"$f":"VLOOKUP(OFFSET($B:$B,,MATCH(W$4,$B$4:$F$4,0)-1),OFFSET('C. PoC Adj Factor Scoring'!$E$5:$J$282,,MATCH(W$4,'C. PoC Adj Factor Scoring'!$E$3:$AH$3,0)-1),MATCH(W$2&\" Score\",'C. PoC Adj Factor Scoring'!$E$4:$J$4,0),TRUE)","v":1},{"$f":"VLOOKUP(OFFSET($B:$B,,MATCH(X$4,$B$4:$F$4,0)-1),OFFSET('C. PoC Adj Factor Scoring'!$E$5:$J$282,,MATCH(X$4,'C. PoC Adj Factor Scoring'!$E$3:$AH$3,0)-1),MATCH(X$2&\" Score\",'C. PoC Adj Factor Scoring'!$E$4:$J$4,0),TRUE)","v":1},{"$f":"VLOOKUP(OFFSET($B:$B,,MATCH(Y$4,$B$4:$F$4,0)-1),OFFSET('C. PoC Adj Factor Scoring'!$E$5:$J$282,,MATCH(Y$4,'C. PoC Adj Factor Scoring'!$E$3:$AH$3,0)-1),MATCH(Y$2&\" Score\",'C. PoC Adj Factor Scoring'!$E$4:$J$4,0),TRUE)","v":1},{"$f":"VLOOKUP(OFFSET($B:$B,,MATCH(Z$4,$B$4:$F$4,0)-1),OFFSET('C. PoC Adj Factor Scoring'!$E$5:$J$282,,MATCH(Z$4,'C. PoC Adj Factor Scoring'!$E$3:$AH$3,0)-1),MATCH(Z$2&\" Score\",'C. PoC Adj Factor Scoring'!$E$4:$J$4,0),TRUE)","v":1},{"$f":"VLOOKUP(OFFSET($B:$B,,MATCH(AA$4,$B$4:$F$4,0)-1),OFFSET('C. PoC Adj Factor Scoring'!$E$5:$J$282,,MATCH(AA$4,'C. PoC Adj Factor Scoring'!$E$3:$AH$3,0)-1),MATCH(AA$2&\" Score\",'C. PoC Adj Factor Scoring'!$E$4:$J$4,0),TRUE)","v":3},{"$f":"VLOOKUP(OFFSET($B:$B,,MATCH(AB$4,$B$4:$F$4,0)-1),OFFSET('C. PoC Adj Factor Scoring'!$E$5:$J$282,,MATCH(AB$4,'C. PoC Adj Factor Scoring'!$E$3:$AH$3,0)-1),MATCH(AB$2&\" Score\",'C. PoC Adj Factor Scoring'!$E$4:$J$4,0),TRUE)","v":1},{"$f":"VLOOKUP(OFFSET($B:$B,,MATCH(AC$4,$B$4:$F$4,0)-1),OFFSET('C. PoC Adj Factor Scoring'!$E$5:$J$282,,MATCH(AC$4,'C. PoC Adj Factor Scoring'!$E$3:$AH$3,0)-1),MATCH(AC$2&\" Score\",'C. PoC Adj Factor Scoring'!$E$4:$J$4,0),TRUE)","v":1},{"$f":"VLOOKUP(OFFSET($B:$B,,MATCH(AD$4,$B$4:$F$4,0)-1),OFFSET('C. PoC Adj Factor Scoring'!$E$5:$J$282,,MATCH(AD$4,'C. PoC Adj Factor Scoring'!$E$3:$AH$3,0)-1),MATCH(AD$2&\" Score\",'C. PoC Adj Factor Scoring'!$E$4:$J$4,0),TRUE)","v":1},{"$f":"VLOOKUP(OFFSET($B:$B,,MATCH(AE$4,$B$4:$F$4,0)-1),OFFSET('C. PoC Adj Factor Scoring'!$E$5:$J$282,,MATCH(AE$4,'C. PoC Adj Factor Scoring'!$E$3:$AH$3,0)-1),MATCH(AE$2&\" Score\",'C. PoC Adj Factor Scoring'!$E$4:$J$4,0),TRUE)","v":1}]
[{"$f":"'A. Population Info'!A484","v":1001489814},{"$f":"'A. Population Info'!L484","v":"OIL"},{"$f":"'A. Population Info'!M484","v":0},{"$f":"'A. Population Info'!N484","v":0},{"$f":"'A. Population Info'!O484","v":0},{"$f":"'A. Population Info'!P484","v":0},{"$f":"VLOOKUP(OFFSET($B:$B,,MATCH(G$4,$B$4:$F$4,0)-1),OFFSET('C. PoC Adj Factor Scoring'!$E$5:$J$282,,MATCH(G$4,'C. PoC Adj Factor Scoring'!$E$3:$AH$3,0)-1),MATCH(G$2&\" Score\",'C. PoC Adj Factor Scoring'!$E$4:$J$4,0),TRUE)","v":4},{"$f":"VLOOKUP(OFFSET($B:$B,,MATCH(H$4,$B$4:$F$4,0)-1),OFFSET('C. PoC Adj Factor Scoring'!$E$5:$J$282,,MATCH(H$4,'C. PoC Adj Factor Scoring'!$E$3:$AH$3,0)-1),MATCH(H$2&\" Score\",'C. PoC Adj Factor Scoring'!$E$4:$J$4,0),TRUE)","v":1},{"$f":"VLOOKUP(OFFSET($B:$B,,MATCH(I$4,$B$4:$F$4,0)-1),OFFSET('C. PoC Adj Factor Scoring'!$E$5:$J$282,,MATCH(I$4,'C. PoC Adj Factor Scoring'!$E$3:$AH$3,0)-1),MATCH(I$2&\" Score\",'C. PoC Adj Factor Scoring'!$E$4:$J$4,0),TRUE)","v":1},{"$f":"VLOOKUP(OFFSET($B:$B,,MATCH(J$4,$B$4:$F$4,0)-1),OFFSET('C. PoC Adj Factor Scoring'!$E$5:$J$282,,MATCH(J$4,'C. PoC Adj Factor Scoring'!$E$3:$AH$3,0)-1),MATCH(J$2&\" Score\",'C. PoC Adj Factor Scoring'!$E$4:$J$4,0),TRUE)","v":1},{"$f":"VLOOKUP(OFFSET($B:$B,,MATCH(K$4,$B$4:$F$4,0)-1),OFFSET('C. PoC Adj Factor Scoring'!$E$5:$J$282,,MATCH(K$4,'C. PoC Adj Factor Scoring'!$E$3:$AH$3,0)-1),MATCH(K$2&\" Score\",'C. PoC Adj Factor Scoring'!$E$4:$J$4,0),TRUE)","v":1},{"$f":"VLOOKUP(OFFSET($B:$B,,MATCH(L$4,$B$4:$F$4,0)-1),OFFSET('C. PoC Adj Factor Scoring'!$E$5:$J$282,,MATCH(L$4,'C. PoC Adj Factor Scoring'!$E$3:$AH$3,0)-1),MATCH(L$2&\" Score\",'C. PoC Adj Factor Scoring'!$E$4:$J$4,0),TRUE)","v":1},{"$f":"VLOOKUP(OFFSET($B:$B,,MATCH(M$4,$B$4:$F$4,0)-1),OFFSET('C. PoC Adj Factor Scoring'!$E$5:$J$282,,MATCH(M$4,'C. PoC Adj Factor Scoring'!$E$3:$AH$3,0)-1),MATCH(M$2&\" Score\",'C. PoC Adj Factor Scoring'!$E$4:$J$4,0),TRUE)","v":1},{"$f":"VLOOKUP(OFFSET($B:$B,,MATCH(N$4,$B$4:$F$4,0)-1),OFFSET('C. PoC Adj Factor Scoring'!$E$5:$J$282,,MATCH(N$4,'C. PoC Adj Factor Scoring'!$E$3:$AH$3,0)-1),MATCH(N$2&\" Score\",'C. PoC Adj Factor Scoring'!$E$4:$J$4,0),TRUE)","v":1},{"$f":"VLOOKUP(OFFSET($B:$B,,MATCH(O$4,$B$4:$F$4,0)-1),OFFSET('C. PoC Adj Factor Scoring'!$E$5:$J$282,,MATCH(O$4,'C. PoC Adj Factor Scoring'!$E$3:$AH$3,0)-1),MATCH(O$2&\" Score\",'C. PoC Adj Factor Scoring'!$E$4:$J$4,0),TRUE)","v":1},{"$f":"VLOOKUP(OFFSET($B:$B,,MATCH(P$4,$B$4:$F$4,0)-1),OFFSET('C. PoC Adj Factor Scoring'!$E$5:$J$282,,MATCH(P$4,'C. PoC Adj Factor Scoring'!$E$3:$AH$3,0)-1),MATCH(P$2&\" Score\",'C. PoC Adj Factor Scoring'!$E$4:$J$4,0),TRUE)","v":1},{"$f":"VLOOKUP(OFFSET($B:$B,,MATCH(Q$4,$B$4:$F$4,0)-1),OFFSET('C. PoC Adj Factor Scoring'!$E$5:$J$282,,MATCH(Q$4,'C. PoC Adj Factor Scoring'!$E$3:$AH$3,0)-1),MATCH(Q$2&\" Score\",'C. PoC Adj Factor Scoring'!$E$4:$J$4,0),TRUE)","v":1},{"$f":"VLOOKUP(OFFSET($B:$B,,MATCH(R$4,$B$4:$F$4,0)-1),OFFSET('C. PoC Adj Factor Scoring'!$E$5:$J$282,,MATCH(R$4,'C. PoC Adj Factor Scoring'!$E$3:$AH$3,0)-1),MATCH(R$2&\" Score\",'C. PoC Adj Factor Scoring'!$E$4:$J$4,0),TRUE)","v":1},{"$f":"VLOOKUP(OFFSET($B:$B,,MATCH(S$4,$B$4:$F$4,0)-1),OFFSET('C. PoC Adj Factor Scoring'!$E$5:$J$282,,MATCH(S$4,'C. PoC Adj Factor Scoring'!$E$3:$AH$3,0)-1),MATCH(S$2&\" Score\",'C. PoC Adj Factor Scoring'!$E$4:$J$4,0),TRUE)","v":1},{"$f":"VLOOKUP(OFFSET($B:$B,,MATCH(T$4,$B$4:$F$4,0)-1),OFFSET('C. PoC Adj Factor Scoring'!$E$5:$J$282,,MATCH(T$4,'C. PoC Adj Factor Scoring'!$E$3:$AH$3,0)-1),MATCH(T$2&\" Score\",'C. PoC Adj Factor Scoring'!$E$4:$J$4,0),TRUE)","v":1},{"$f":"VLOOKUP(OFFSET($B:$B,,MATCH(U$4,$B$4:$F$4,0)-1),OFFSET('C. PoC Adj Factor Scoring'!$E$5:$J$282,,MATCH(U$4,'C. PoC Adj Factor Scoring'!$E$3:$AH$3,0)-1),MATCH(U$2&\" Score\",'C. PoC Adj Factor Scoring'!$E$4:$J$4,0),TRUE)","v":1},{"$f":"VLOOKUP(OFFSET($B:$B,,MATCH(V$4,$B$4:$F$4,0)-1),OFFSET('C. PoC Adj Factor Scoring'!$E$5:$J$282,,MATCH(V$4,'C. PoC Adj Factor Scoring'!$E$3:$AH$3,0)-1),MATCH(V$2&\" Score\",'C. PoC Adj Factor Scoring'!$E$4:$J$4,0),TRUE)","v":1},{"$f":"VLOOKUP(OFFSET($B:$B,,MATCH(W$4,$B$4:$F$4,0)-1),OFFSET('C. PoC Adj Factor Scoring'!$E$5:$J$282,,MATCH(W$4,'C. PoC Adj Factor Scoring'!$E$3:$AH$3,0)-1),MATCH(W$2&\" Score\",'C. PoC Adj Factor Scoring'!$E$4:$J$4,0),TRUE)","v":1},{"$f":"VLOOKUP(OFFSET($B:$B,,MATCH(X$4,$B$4:$F$4,0)-1),OFFSET('C. PoC Adj Factor Scoring'!$E$5:$J$282,,MATCH(X$4,'C. PoC Adj Factor Scoring'!$E$3:$AH$3,0)-1),MATCH(X$2&\" Score\",'C. PoC Adj Factor Scoring'!$E$4:$J$4,0),TRUE)","v":1},{"$f":"VLOOKUP(OFFSET($B:$B,,MATCH(Y$4,$B$4:$F$4,0)-1),OFFSET('C. PoC Adj Factor Scoring'!$E$5:$J$282,,MATCH(Y$4,'C. PoC Adj Factor Scoring'!$E$3:$AH$3,0)-1),MATCH(Y$2&\" Score\",'C. PoC Adj Factor Scoring'!$E$4:$J$4,0),TRUE)","v":1},{"$f":"VLOOKUP(OFFSET($B:$B,,MATCH(Z$4,$B$4:$F$4,0)-1),OFFSET('C. PoC Adj Factor Scoring'!$E$5:$J$282,,MATCH(Z$4,'C. PoC Adj Factor Scoring'!$E$3:$AH$3,0)-1),MATCH(Z$2&\" Score\",'C. PoC Adj Factor Scoring'!$E$4:$J$4,0),TRUE)","v":1},{"$f":"VLOOKUP(OFFSET($B:$B,,MATCH(AA$4,$B$4:$F$4,0)-1),OFFSET('C. PoC Adj Factor Scoring'!$E$5:$J$282,,MATCH(AA$4,'C. PoC Adj Factor Scoring'!$E$3:$AH$3,0)-1),MATCH(AA$2&\" Score\",'C. PoC Adj Factor Scoring'!$E$4:$J$4,0),TRUE)","v":3},{"$f":"VLOOKUP(OFFSET($B:$B,,MATCH(AB$4,$B$4:$F$4,0)-1),OFFSET('C. PoC Adj Factor Scoring'!$E$5:$J$282,,MATCH(AB$4,'C. PoC Adj Factor Scoring'!$E$3:$AH$3,0)-1),MATCH(AB$2&\" Score\",'C. PoC Adj Factor Scoring'!$E$4:$J$4,0),TRUE)","v":1},{"$f":"VLOOKUP(OFFSET($B:$B,,MATCH(AC$4,$B$4:$F$4,0)-1),OFFSET('C. PoC Adj Factor Scoring'!$E$5:$J$282,,MATCH(AC$4,'C. PoC Adj Factor Scoring'!$E$3:$AH$3,0)-1),MATCH(AC$2&\" Score\",'C. PoC Adj Factor Scoring'!$E$4:$J$4,0),TRUE)","v":1},{"$f":"VLOOKUP(OFFSET($B:$B,,MATCH(AD$4,$B$4:$F$4,0)-1),OFFSET('C. PoC Adj Factor Scoring'!$E$5:$J$282,,MATCH(AD$4,'C. PoC Adj Factor Scoring'!$E$3:$AH$3,0)-1),MATCH(AD$2&\" Score\",'C. PoC Adj Factor Scoring'!$E$4:$J$4,0),TRUE)","v":1},{"$f":"VLOOKUP(OFFSET($B:$B,,MATCH(AE$4,$B$4:$F$4,0)-1),OFFSET('C. PoC Adj Factor Scoring'!$E$5:$J$282,,MATCH(AE$4,'C. PoC Adj Factor Scoring'!$E$3:$AH$3,0)-1),MATCH(AE$2&\" Score\",'C. PoC Adj Factor Scoring'!$E$4:$J$4,0),TRUE)","v":1}]
[{"$f":"'A. Population Info'!A485","v":1001489815},{"$f":"'A. Population Info'!L485","v":"OIL"},{"$f":"'A. Population Info'!M485","v":0},{"$f":"'A. Population Info'!N485","v":0},{"$f":"'A. Population Info'!O485","v":0},{"$f":"'A. Population Info'!P485","v":0},{"$f":"VLOOKUP(OFFSET($B:$B,,MATCH(G$4,$B$4:$F$4,0)-1),OFFSET('C. PoC Adj Factor Scoring'!$E$5:$J$282,,MATCH(G$4,'C. PoC Adj Factor Scoring'!$E$3:$AH$3,0)-1),MATCH(G$2&\" Score\",'C. PoC Adj Factor Scoring'!$E$4:$J$4,0),TRUE)","v":4},{"$f":"VLOOKUP(OFFSET($B:$B,,MATCH(H$4,$B$4:$F$4,0)-1),OFFSET('C. PoC Adj Factor Scoring'!$E$5:$J$282,,MATCH(H$4,'C. PoC Adj Factor Scoring'!$E$3:$AH$3,0)-1),MATCH(H$2&\" Score\",'C. PoC Adj Factor Scoring'!$E$4:$J$4,0),TRUE)","v":1},{"$f":"VLOOKUP(OFFSET($B:$B,,MATCH(I$4,$B$4:$F$4,0)-1),OFFSET('C. PoC Adj Factor Scoring'!$E$5:$J$282,,MATCH(I$4,'C. PoC Adj Factor Scoring'!$E$3:$AH$3,0)-1),MATCH(I$2&\" Score\",'C. PoC Adj Factor Scoring'!$E$4:$J$4,0),TRUE)","v":1},{"$f":"VLOOKUP(OFFSET($B:$B,,MATCH(J$4,$B$4:$F$4,0)-1),OFFSET('C. PoC Adj Factor Scoring'!$E$5:$J$282,,MATCH(J$4,'C. PoC Adj Factor Scoring'!$E$3:$AH$3,0)-1),MATCH(J$2&\" Score\",'C. PoC Adj Factor Scoring'!$E$4:$J$4,0),TRUE)","v":1},{"$f":"VLOOKUP(OFFSET($B:$B,,MATCH(K$4,$B$4:$F$4,0)-1),OFFSET('C. PoC Adj Factor Scoring'!$E$5:$J$282,,MATCH(K$4,'C. PoC Adj Factor Scoring'!$E$3:$AH$3,0)-1),MATCH(K$2&\" Score\",'C. PoC Adj Factor Scoring'!$E$4:$J$4,0),TRUE)","v":1},{"$f":"VLOOKUP(OFFSET($B:$B,,MATCH(L$4,$B$4:$F$4,0)-1),OFFSET('C. PoC Adj Factor Scoring'!$E$5:$J$282,,MATCH(L$4,'C. PoC Adj Factor Scoring'!$E$3:$AH$3,0)-1),MATCH(L$2&\" Score\",'C. PoC Adj Factor Scoring'!$E$4:$J$4,0),TRUE)","v":1},{"$f":"VLOOKUP(OFFSET($B:$B,,MATCH(M$4,$B$4:$F$4,0)-1),OFFSET('C. PoC Adj Factor Scoring'!$E$5:$J$282,,MATCH(M$4,'C. PoC Adj Factor Scoring'!$E$3:$AH$3,0)-1),MATCH(M$2&\" Score\",'C. PoC Adj Factor Scoring'!$E$4:$J$4,0),TRUE)","v":1},{"$f":"VLOOKUP(OFFSET($B:$B,,MATCH(N$4,$B$4:$F$4,0)-1),OFFSET('C. PoC Adj Factor Scoring'!$E$5:$J$282,,MATCH(N$4,'C. PoC Adj Factor Scoring'!$E$3:$AH$3,0)-1),MATCH(N$2&\" Score\",'C. PoC Adj Factor Scoring'!$E$4:$J$4,0),TRUE)","v":1},{"$f":"VLOOKUP(OFFSET($B:$B,,MATCH(O$4,$B$4:$F$4,0)-1),OFFSET('C. PoC Adj Factor Scoring'!$E$5:$J$282,,MATCH(O$4,'C. PoC Adj Factor Scoring'!$E$3:$AH$3,0)-1),MATCH(O$2&\" Score\",'C. PoC Adj Factor Scoring'!$E$4:$J$4,0),TRUE)","v":1},{"$f":"VLOOKUP(OFFSET($B:$B,,MATCH(P$4,$B$4:$F$4,0)-1),OFFSET('C. PoC Adj Factor Scoring'!$E$5:$J$282,,MATCH(P$4,'C. PoC Adj Factor Scoring'!$E$3:$AH$3,0)-1),MATCH(P$2&\" Score\",'C. PoC Adj Factor Scoring'!$E$4:$J$4,0),TRUE)","v":1},{"$f":"VLOOKUP(OFFSET($B:$B,,MATCH(Q$4,$B$4:$F$4,0)-1),OFFSET('C. PoC Adj Factor Scoring'!$E$5:$J$282,,MATCH(Q$4,'C. PoC Adj Factor Scoring'!$E$3:$AH$3,0)-1),MATCH(Q$2&\" Score\",'C. PoC Adj Factor Scoring'!$E$4:$J$4,0),TRUE)","v":1},{"$f":"VLOOKUP(OFFSET($B:$B,,MATCH(R$4,$B$4:$F$4,0)-1),OFFSET('C. PoC Adj Factor Scoring'!$E$5:$J$282,,MATCH(R$4,'C. PoC Adj Factor Scoring'!$E$3:$AH$3,0)-1),MATCH(R$2&\" Score\",'C. PoC Adj Factor Scoring'!$E$4:$J$4,0),TRUE)","v":1},{"$f":"VLOOKUP(OFFSET($B:$B,,MATCH(S$4,$B$4:$F$4,0)-1),OFFSET('C. PoC Adj Factor Scoring'!$E$5:$J$282,,MATCH(S$4,'C. PoC Adj Factor Scoring'!$E$3:$AH$3,0)-1),MATCH(S$2&\" Score\",'C. PoC Adj Factor Scoring'!$E$4:$J$4,0),TRUE)","v":1},{"$f":"VLOOKUP(OFFSET($B:$B,,MATCH(T$4,$B$4:$F$4,0)-1),OFFSET('C. PoC Adj Factor Scoring'!$E$5:$J$282,,MATCH(T$4,'C. PoC Adj Factor Scoring'!$E$3:$AH$3,0)-1),MATCH(T$2&\" Score\",'C. PoC Adj Factor Scoring'!$E$4:$J$4,0),TRUE)","v":1},{"$f":"VLOOKUP(OFFSET($B:$B,,MATCH(U$4,$B$4:$F$4,0)-1),OFFSET('C. PoC Adj Factor Scoring'!$E$5:$J$282,,MATCH(U$4,'C. PoC Adj Factor Scoring'!$E$3:$AH$3,0)-1),MATCH(U$2&\" Score\",'C. PoC Adj Factor Scoring'!$E$4:$J$4,0),TRUE)","v":1},{"$f":"VLOOKUP(OFFSET($B:$B,,MATCH(V$4,$B$4:$F$4,0)-1),OFFSET('C. PoC Adj Factor Scoring'!$E$5:$J$282,,MATCH(V$4,'C. PoC Adj Factor Scoring'!$E$3:$AH$3,0)-1),MATCH(V$2&\" Score\",'C. PoC Adj Factor Scoring'!$E$4:$J$4,0),TRUE)","v":1},{"$f":"VLOOKUP(OFFSET($B:$B,,MATCH(W$4,$B$4:$F$4,0)-1),OFFSET('C. PoC Adj Factor Scoring'!$E$5:$J$282,,MATCH(W$4,'C. PoC Adj Factor Scoring'!$E$3:$AH$3,0)-1),MATCH(W$2&\" Score\",'C. PoC Adj Factor Scoring'!$E$4:$J$4,0),TRUE)","v":1},{"$f":"VLOOKUP(OFFSET($B:$B,,MATCH(X$4,$B$4:$F$4,0)-1),OFFSET('C. PoC Adj Factor Scoring'!$E$5:$J$282,,MATCH(X$4,'C. PoC Adj Factor Scoring'!$E$3:$AH$3,0)-1),MATCH(X$2&\" Score\",'C. PoC Adj Factor Scoring'!$E$4:$J$4,0),TRUE)","v":1},{"$f":"VLOOKUP(OFFSET($B:$B,,MATCH(Y$4,$B$4:$F$4,0)-1),OFFSET('C. PoC Adj Factor Scoring'!$E$5:$J$282,,MATCH(Y$4,'C. PoC Adj Factor Scoring'!$E$3:$AH$3,0)-1),MATCH(Y$2&\" Score\",'C. PoC Adj Factor Scoring'!$E$4:$J$4,0),TRUE)","v":1},{"$f":"VLOOKUP(OFFSET($B:$B,,MATCH(Z$4,$B$4:$F$4,0)-1),OFFSET('C. PoC Adj Factor Scoring'!$E$5:$J$282,,MATCH(Z$4,'C. PoC Adj Factor Scoring'!$E$3:$AH$3,0)-1),MATCH(Z$2&\" Score\",'C. PoC Adj Factor Scoring'!$E$4:$J$4,0),TRUE)","v":1},{"$f":"VLOOKUP(OFFSET($B:$B,,MATCH(AA$4,$B$4:$F$4,0)-1),OFFSET('C. PoC Adj Factor Scoring'!$E$5:$J$282,,MATCH(AA$4,'C. PoC Adj Factor Scoring'!$E$3:$AH$3,0)-1),MATCH(AA$2&\" Score\",'C. PoC Adj Factor Scoring'!$E$4:$J$4,0),TRUE)","v":3},{"$f":"VLOOKUP(OFFSET($B:$B,,MATCH(AB$4,$B$4:$F$4,0)-1),OFFSET('C. PoC Adj Factor Scoring'!$E$5:$J$282,,MATCH(AB$4,'C. PoC Adj Factor Scoring'!$E$3:$AH$3,0)-1),MATCH(AB$2&\" Score\",'C. PoC Adj Factor Scoring'!$E$4:$J$4,0),TRUE)","v":1},{"$f":"VLOOKUP(OFFSET($B:$B,,MATCH(AC$4,$B$4:$F$4,0)-1),OFFSET('C. PoC Adj Factor Scoring'!$E$5:$J$282,,MATCH(AC$4,'C. PoC Adj Factor Scoring'!$E$3:$AH$3,0)-1),MATCH(AC$2&\" Score\",'C. PoC Adj Factor Scoring'!$E$4:$J$4,0),TRUE)","v":1},{"$f":"VLOOKUP(OFFSET($B:$B,,MATCH(AD$4,$B$4:$F$4,0)-1),OFFSET('C. PoC Adj Factor Scoring'!$E$5:$J$282,,MATCH(AD$4,'C. PoC Adj Factor Scoring'!$E$3:$AH$3,0)-1),MATCH(AD$2&\" Score\",'C. PoC Adj Factor Scoring'!$E$4:$J$4,0),TRUE)","v":1},{"$f":"VLOOKUP(OFFSET($B:$B,,MATCH(AE$4,$B$4:$F$4,0)-1),OFFSET('C. PoC Adj Factor Scoring'!$E$5:$J$282,,MATCH(AE$4,'C. PoC Adj Factor Scoring'!$E$3:$AH$3,0)-1),MATCH(AE$2&\" Score\",'C. PoC Adj Factor Scoring'!$E$4:$J$4,0),TRUE)","v":1}]
[{"$f":"'A. Population Info'!A486","v":1001489837},{"$f":"'A. Population Info'!L486","v":"OIL"},{"$f":"'A. Population Info'!M486","v":0},{"$f":"'A. Population Info'!N486","v":0},{"$f":"'A. Population Info'!O486","v":0},{"$f":"'A. Population Info'!P486","v":0},{"$f":"VLOOKUP(OFFSET($B:$B,,MATCH(G$4,$B$4:$F$4,0)-1),OFFSET('C. PoC Adj Factor Scoring'!$E$5:$J$282,,MATCH(G$4,'C. PoC Adj Factor Scoring'!$E$3:$AH$3,0)-1),MATCH(G$2&\" Score\",'C. PoC Adj Factor Scoring'!$E$4:$J$4,0),TRUE)","v":4},{"$f":"VLOOKUP(OFFSET($B:$B,,MATCH(H$4,$B$4:$F$4,0)-1),OFFSET('C. PoC Adj Factor Scoring'!$E$5:$J$282,,MATCH(H$4,'C. PoC Adj Factor Scoring'!$E$3:$AH$3,0)-1),MATCH(H$2&\" Score\",'C. PoC Adj Factor Scoring'!$E$4:$J$4,0),TRUE)","v":1},{"$f":"VLOOKUP(OFFSET($B:$B,,MATCH(I$4,$B$4:$F$4,0)-1),OFFSET('C. PoC Adj Factor Scoring'!$E$5:$J$282,,MATCH(I$4,'C. PoC Adj Factor Scoring'!$E$3:$AH$3,0)-1),MATCH(I$2&\" Score\",'C. PoC Adj Factor Scoring'!$E$4:$J$4,0),TRUE)","v":1},{"$f":"VLOOKUP(OFFSET($B:$B,,MATCH(J$4,$B$4:$F$4,0)-1),OFFSET('C. PoC Adj Factor Scoring'!$E$5:$J$282,,MATCH(J$4,'C. PoC Adj Factor Scoring'!$E$3:$AH$3,0)-1),MATCH(J$2&\" Score\",'C. PoC Adj Factor Scoring'!$E$4:$J$4,0),TRUE)","v":1},{"$f":"VLOOKUP(OFFSET($B:$B,,MATCH(K$4,$B$4:$F$4,0)-1),OFFSET('C. PoC Adj Factor Scoring'!$E$5:$J$282,,MATCH(K$4,'C. PoC Adj Factor Scoring'!$E$3:$AH$3,0)-1),MATCH(K$2&\" Score\",'C. PoC Adj Factor Scoring'!$E$4:$J$4,0),TRUE)","v":1},{"$f":"VLOOKUP(OFFSET($B:$B,,MATCH(L$4,$B$4:$F$4,0)-1),OFFSET('C. PoC Adj Factor Scoring'!$E$5:$J$282,,MATCH(L$4,'C. PoC Adj Factor Scoring'!$E$3:$AH$3,0)-1),MATCH(L$2&\" Score\",'C. PoC Adj Factor Scoring'!$E$4:$J$4,0),TRUE)","v":1},{"$f":"VLOOKUP(OFFSET($B:$B,,MATCH(M$4,$B$4:$F$4,0)-1),OFFSET('C. PoC Adj Factor Scoring'!$E$5:$J$282,,MATCH(M$4,'C. PoC Adj Factor Scoring'!$E$3:$AH$3,0)-1),MATCH(M$2&\" Score\",'C. PoC Adj Factor Scoring'!$E$4:$J$4,0),TRUE)","v":1},{"$f":"VLOOKUP(OFFSET($B:$B,,MATCH(N$4,$B$4:$F$4,0)-1),OFFSET('C. PoC Adj Factor Scoring'!$E$5:$J$282,,MATCH(N$4,'C. PoC Adj Factor Scoring'!$E$3:$AH$3,0)-1),MATCH(N$2&\" Score\",'C. PoC Adj Factor Scoring'!$E$4:$J$4,0),TRUE)","v":1},{"$f":"VLOOKUP(OFFSET($B:$B,,MATCH(O$4,$B$4:$F$4,0)-1),OFFSET('C. PoC Adj Factor Scoring'!$E$5:$J$282,,MATCH(O$4,'C. PoC Adj Factor Scoring'!$E$3:$AH$3,0)-1),MATCH(O$2&\" Score\",'C. PoC Adj Factor Scoring'!$E$4:$J$4,0),TRUE)","v":1},{"$f":"VLOOKUP(OFFSET($B:$B,,MATCH(P$4,$B$4:$F$4,0)-1),OFFSET('C. PoC Adj Factor Scoring'!$E$5:$J$282,,MATCH(P$4,'C. PoC Adj Factor Scoring'!$E$3:$AH$3,0)-1),MATCH(P$2&\" Score\",'C. PoC Adj Factor Scoring'!$E$4:$J$4,0),TRUE)","v":1},{"$f":"VLOOKUP(OFFSET($B:$B,,MATCH(Q$4,$B$4:$F$4,0)-1),OFFSET('C. PoC Adj Factor Scoring'!$E$5:$J$282,,MATCH(Q$4,'C. PoC Adj Factor Scoring'!$E$3:$AH$3,0)-1),MATCH(Q$2&\" Score\",'C. PoC Adj Factor Scoring'!$E$4:$J$4,0),TRUE)","v":1},{"$f":"VLOOKUP(OFFSET($B:$B,,MATCH(R$4,$B$4:$F$4,0)-1),OFFSET('C. PoC Adj Factor Scoring'!$E$5:$J$282,,MATCH(R$4,'C. PoC Adj Factor Scoring'!$E$3:$AH$3,0)-1),MATCH(R$2&\" Score\",'C. PoC Adj Factor Scoring'!$E$4:$J$4,0),TRUE)","v":1},{"$f":"VLOOKUP(OFFSET($B:$B,,MATCH(S$4,$B$4:$F$4,0)-1),OFFSET('C. PoC Adj Factor Scoring'!$E$5:$J$282,,MATCH(S$4,'C. PoC Adj Factor Scoring'!$E$3:$AH$3,0)-1),MATCH(S$2&\" Score\",'C. PoC Adj Factor Scoring'!$E$4:$J$4,0),TRUE)","v":1},{"$f":"VLOOKUP(OFFSET($B:$B,,MATCH(T$4,$B$4:$F$4,0)-1),OFFSET('C. PoC Adj Factor Scoring'!$E$5:$J$282,,MATCH(T$4,'C. PoC Adj Factor Scoring'!$E$3:$AH$3,0)-1),MATCH(T$2&\" Score\",'C. PoC Adj Factor Scoring'!$E$4:$J$4,0),TRUE)","v":1},{"$f":"VLOOKUP(OFFSET($B:$B,,MATCH(U$4,$B$4:$F$4,0)-1),OFFSET('C. PoC Adj Factor Scoring'!$E$5:$J$282,,MATCH(U$4,'C. PoC Adj Factor Scoring'!$E$3:$AH$3,0)-1),MATCH(U$2&\" Score\",'C. PoC Adj Factor Scoring'!$E$4:$J$4,0),TRUE)","v":1},{"$f":"VLOOKUP(OFFSET($B:$B,,MATCH(V$4,$B$4:$F$4,0)-1),OFFSET('C. PoC Adj Factor Scoring'!$E$5:$J$282,,MATCH(V$4,'C. PoC Adj Factor Scoring'!$E$3:$AH$3,0)-1),MATCH(V$2&\" Score\",'C. PoC Adj Factor Scoring'!$E$4:$J$4,0),TRUE)","v":1},{"$f":"VLOOKUP(OFFSET($B:$B,,MATCH(W$4,$B$4:$F$4,0)-1),OFFSET('C. PoC Adj Factor Scoring'!$E$5:$J$282,,MATCH(W$4,'C. PoC Adj Factor Scoring'!$E$3:$AH$3,0)-1),MATCH(W$2&\" Score\",'C. PoC Adj Factor Scoring'!$E$4:$J$4,0),TRUE)","v":1},{"$f":"VLOOKUP(OFFSET($B:$B,,MATCH(X$4,$B$4:$F$4,0)-1),OFFSET('C. PoC Adj Factor Scoring'!$E$5:$J$282,,MATCH(X$4,'C. PoC Adj Factor Scoring'!$E$3:$AH$3,0)-1),MATCH(X$2&\" Score\",'C. PoC Adj Factor Scoring'!$E$4:$J$4,0),TRUE)","v":1},{"$f":"VLOOKUP(OFFSET($B:$B,,MATCH(Y$4,$B$4:$F$4,0)-1),OFFSET('C. PoC Adj Factor Scoring'!$E$5:$J$282,,MATCH(Y$4,'C. PoC Adj Factor Scoring'!$E$3:$AH$3,0)-1),MATCH(Y$2&\" Score\",'C. PoC Adj Factor Scoring'!$E$4:$J$4,0),TRUE)","v":1},{"$f":"VLOOKUP(OFFSET($B:$B,,MATCH(Z$4,$B$4:$F$4,0)-1),OFFSET('C. PoC Adj Factor Scoring'!$E$5:$J$282,,MATCH(Z$4,'C. PoC Adj Factor Scoring'!$E$3:$AH$3,0)-1),MATCH(Z$2&\" Score\",'C. PoC Adj Factor Scoring'!$E$4:$J$4,0),TRUE)","v":1},{"$f":"VLOOKUP(OFFSET($B:$B,,MATCH(AA$4,$B$4:$F$4,0)-1),OFFSET('C. PoC Adj Factor Scoring'!$E$5:$J$282,,MATCH(AA$4,'C. PoC Adj Factor Scoring'!$E$3:$AH$3,0)-1),MATCH(AA$2&\" Score\",'C. PoC Adj Factor Scoring'!$E$4:$J$4,0),TRUE)","v":3},{"$f":"VLOOKUP(OFFSET($B:$B,,MATCH(AB$4,$B$4:$F$4,0)-1),OFFSET('C. PoC Adj Factor Scoring'!$E$5:$J$282,,MATCH(AB$4,'C. PoC Adj Factor Scoring'!$E$3:$AH$3,0)-1),MATCH(AB$2&\" Score\",'C. PoC Adj Factor Scoring'!$E$4:$J$4,0),TRUE)","v":1},{"$f":"VLOOKUP(OFFSET($B:$B,,MATCH(AC$4,$B$4:$F$4,0)-1),OFFSET('C. PoC Adj Factor Scoring'!$E$5:$J$282,,MATCH(AC$4,'C. PoC Adj Factor Scoring'!$E$3:$AH$3,0)-1),MATCH(AC$2&\" Score\",'C. PoC Adj Factor Scoring'!$E$4:$J$4,0),TRUE)","v":1},{"$f":"VLOOKUP(OFFSET($B:$B,,MATCH(AD$4,$B$4:$F$4,0)-1),OFFSET('C. PoC Adj Factor Scoring'!$E$5:$J$282,,MATCH(AD$4,'C. PoC Adj Factor Scoring'!$E$3:$AH$3,0)-1),MATCH(AD$2&\" Score\",'C. PoC Adj Factor Scoring'!$E$4:$J$4,0),TRUE)","v":1},{"$f":"VLOOKUP(OFFSET($B:$B,,MATCH(AE$4,$B$4:$F$4,0)-1),OFFSET('C. PoC Adj Factor Scoring'!$E$5:$J$282,,MATCH(AE$4,'C. PoC Adj Factor Scoring'!$E$3:$AH$3,0)-1),MATCH(AE$2&\" Score\",'C. PoC Adj Factor Scoring'!$E$4:$J$4,0),TRUE)","v":1}]
[{"$f":"'A. Population Info'!A487","v":1001489838},{"$f":"'A. Population Info'!L487","v":"OIL"},{"$f":"'A. Population Info'!M487","v":0},{"$f":"'A. Population Info'!N487","v":0},{"$f":"'A. Population Info'!O487","v":0},{"$f":"'A. Population Info'!P487","v":0},{"$f":"VLOOKUP(OFFSET($B:$B,,MATCH(G$4,$B$4:$F$4,0)-1),OFFSET('C. PoC Adj Factor Scoring'!$E$5:$J$282,,MATCH(G$4,'C. PoC Adj Factor Scoring'!$E$3:$AH$3,0)-1),MATCH(G$2&\" Score\",'C. PoC Adj Factor Scoring'!$E$4:$J$4,0),TRUE)","v":4},{"$f":"VLOOKUP(OFFSET($B:$B,,MATCH(H$4,$B$4:$F$4,0)-1),OFFSET('C. PoC Adj Factor Scoring'!$E$5:$J$282,,MATCH(H$4,'C. PoC Adj Factor Scoring'!$E$3:$AH$3,0)-1),MATCH(H$2&\" Score\",'C. PoC Adj Factor Scoring'!$E$4:$J$4,0),TRUE)","v":1},{"$f":"VLOOKUP(OFFSET($B:$B,,MATCH(I$4,$B$4:$F$4,0)-1),OFFSET('C. PoC Adj Factor Scoring'!$E$5:$J$282,,MATCH(I$4,'C. PoC Adj Factor Scoring'!$E$3:$AH$3,0)-1),MATCH(I$2&\" Score\",'C. PoC Adj Factor Scoring'!$E$4:$J$4,0),TRUE)","v":1},{"$f":"VLOOKUP(OFFSET($B:$B,,MATCH(J$4,$B$4:$F$4,0)-1),OFFSET('C. PoC Adj Factor Scoring'!$E$5:$J$282,,MATCH(J$4,'C. PoC Adj Factor Scoring'!$E$3:$AH$3,0)-1),MATCH(J$2&\" Score\",'C. PoC Adj Factor Scoring'!$E$4:$J$4,0),TRUE)","v":1},{"$f":"VLOOKUP(OFFSET($B:$B,,MATCH(K$4,$B$4:$F$4,0)-1),OFFSET('C. PoC Adj Factor Scoring'!$E$5:$J$282,,MATCH(K$4,'C. PoC Adj Factor Scoring'!$E$3:$AH$3,0)-1),MATCH(K$2&\" Score\",'C. PoC Adj Factor Scoring'!$E$4:$J$4,0),TRUE)","v":1},{"$f":"VLOOKUP(OFFSET($B:$B,,MATCH(L$4,$B$4:$F$4,0)-1),OFFSET('C. PoC Adj Factor Scoring'!$E$5:$J$282,,MATCH(L$4,'C. PoC Adj Factor Scoring'!$E$3:$AH$3,0)-1),MATCH(L$2&\" Score\",'C. PoC Adj Factor Scoring'!$E$4:$J$4,0),TRUE)","v":1},{"$f":"VLOOKUP(OFFSET($B:$B,,MATCH(M$4,$B$4:$F$4,0)-1),OFFSET('C. PoC Adj Factor Scoring'!$E$5:$J$282,,MATCH(M$4,'C. PoC Adj Factor Scoring'!$E$3:$AH$3,0)-1),MATCH(M$2&\" Score\",'C. PoC Adj Factor Scoring'!$E$4:$J$4,0),TRUE)","v":1},{"$f":"VLOOKUP(OFFSET($B:$B,,MATCH(N$4,$B$4:$F$4,0)-1),OFFSET('C. PoC Adj Factor Scoring'!$E$5:$J$282,,MATCH(N$4,'C. PoC Adj Factor Scoring'!$E$3:$AH$3,0)-1),MATCH(N$2&\" Score\",'C. PoC Adj Factor Scoring'!$E$4:$J$4,0),TRUE)","v":1},{"$f":"VLOOKUP(OFFSET($B:$B,,MATCH(O$4,$B$4:$F$4,0)-1),OFFSET('C. PoC Adj Factor Scoring'!$E$5:$J$282,,MATCH(O$4,'C. PoC Adj Factor Scoring'!$E$3:$AH$3,0)-1),MATCH(O$2&\" Score\",'C. PoC Adj Factor Scoring'!$E$4:$J$4,0),TRUE)","v":1},{"$f":"VLOOKUP(OFFSET($B:$B,,MATCH(P$4,$B$4:$F$4,0)-1),OFFSET('C. PoC Adj Factor Scoring'!$E$5:$J$282,,MATCH(P$4,'C. PoC Adj Factor Scoring'!$E$3:$AH$3,0)-1),MATCH(P$2&\" Score\",'C. PoC Adj Factor Scoring'!$E$4:$J$4,0),TRUE)","v":1},{"$f":"VLOOKUP(OFFSET($B:$B,,MATCH(Q$4,$B$4:$F$4,0)-1),OFFSET('C. PoC Adj Factor Scoring'!$E$5:$J$282,,MATCH(Q$4,'C. PoC Adj Factor Scoring'!$E$3:$AH$3,0)-1),MATCH(Q$2&\" Score\",'C. PoC Adj Factor Scoring'!$E$4:$J$4,0),TRUE)","v":1},{"$f":"VLOOKUP(OFFSET($B:$B,,MATCH(R$4,$B$4:$F$4,0)-1),OFFSET('C. PoC Adj Factor Scoring'!$E$5:$J$282,,MATCH(R$4,'C. PoC Adj Factor Scoring'!$E$3:$AH$3,0)-1),MATCH(R$2&\" Score\",'C. PoC Adj Factor Scoring'!$E$4:$J$4,0),TRUE)","v":1},{"$f":"VLOOKUP(OFFSET($B:$B,,MATCH(S$4,$B$4:$F$4,0)-1),OFFSET('C. PoC Adj Factor Scoring'!$E$5:$J$282,,MATCH(S$4,'C. PoC Adj Factor Scoring'!$E$3:$AH$3,0)-1),MATCH(S$2&\" Score\",'C. PoC Adj Factor Scoring'!$E$4:$J$4,0),TRUE)","v":1},{"$f":"VLOOKUP(OFFSET($B:$B,,MATCH(T$4,$B$4:$F$4,0)-1),OFFSET('C. PoC Adj Factor Scoring'!$E$5:$J$282,,MATCH(T$4,'C. PoC Adj Factor Scoring'!$E$3:$AH$3,0)-1),MATCH(T$2&\" Score\",'C. PoC Adj Factor Scoring'!$E$4:$J$4,0),TRUE)","v":1},{"$f":"VLOOKUP(OFFSET($B:$B,,MATCH(U$4,$B$4:$F$4,0)-1),OFFSET('C. PoC Adj Factor Scoring'!$E$5:$J$282,,MATCH(U$4,'C. PoC Adj Factor Scoring'!$E$3:$AH$3,0)-1),MATCH(U$2&\" Score\",'C. PoC Adj Factor Scoring'!$E$4:$J$4,0),TRUE)","v":1},{"$f":"VLOOKUP(OFFSET($B:$B,,MATCH(V$4,$B$4:$F$4,0)-1),OFFSET('C. PoC Adj Factor Scoring'!$E$5:$J$282,,MATCH(V$4,'C. PoC Adj Factor Scoring'!$E$3:$AH$3,0)-1),MATCH(V$2&\" Score\",'C. PoC Adj Factor Scoring'!$E$4:$J$4,0),TRUE)","v":1},{"$f":"VLOOKUP(OFFSET($B:$B,,MATCH(W$4,$B$4:$F$4,0)-1),OFFSET('C. PoC Adj Factor Scoring'!$E$5:$J$282,,MATCH(W$4,'C. PoC Adj Factor Scoring'!$E$3:$AH$3,0)-1),MATCH(W$2&\" Score\",'C. PoC Adj Factor Scoring'!$E$4:$J$4,0),TRUE)","v":1},{"$f":"VLOOKUP(OFFSET($B:$B,,MATCH(X$4,$B$4:$F$4,0)-1),OFFSET('C. PoC Adj Factor Scoring'!$E$5:$J$282,,MATCH(X$4,'C. PoC Adj Factor Scoring'!$E$3:$AH$3,0)-1),MATCH(X$2&\" Score\",'C. PoC Adj Factor Scoring'!$E$4:$J$4,0),TRUE)","v":1},{"$f":"VLOOKUP(OFFSET($B:$B,,MATCH(Y$4,$B$4:$F$4,0)-1),OFFSET('C. PoC Adj Factor Scoring'!$E$5:$J$282,,MATCH(Y$4,'C. PoC Adj Factor Scoring'!$E$3:$AH$3,0)-1),MATCH(Y$2&\" Score\",'C. PoC Adj Factor Scoring'!$E$4:$J$4,0),TRUE)","v":1},{"$f":"VLOOKUP(OFFSET($B:$B,,MATCH(Z$4,$B$4:$F$4,0)-1),OFFSET('C. PoC Adj Factor Scoring'!$E$5:$J$282,,MATCH(Z$4,'C. PoC Adj Factor Scoring'!$E$3:$AH$3,0)-1),MATCH(Z$2&\" Score\",'C. PoC Adj Factor Scoring'!$E$4:$J$4,0),TRUE)","v":1},{"$f":"VLOOKUP(OFFSET($B:$B,,MATCH(AA$4,$B$4:$F$4,0)-1),OFFSET('C. PoC Adj Factor Scoring'!$E$5:$J$282,,MATCH(AA$4,'C. PoC Adj Factor Scoring'!$E$3:$AH$3,0)-1),MATCH(AA$2&\" Score\",'C. PoC Adj Factor Scoring'!$E$4:$J$4,0),TRUE)","v":3},{"$f":"VLOOKUP(OFFSET($B:$B,,MATCH(AB$4,$B$4:$F$4,0)-1),OFFSET('C. PoC Adj Factor Scoring'!$E$5:$J$282,,MATCH(AB$4,'C. PoC Adj Factor Scoring'!$E$3:$AH$3,0)-1),MATCH(AB$2&\" Score\",'C. PoC Adj Factor Scoring'!$E$4:$J$4,0),TRUE)","v":1},{"$f":"VLOOKUP(OFFSET($B:$B,,MATCH(AC$4,$B$4:$F$4,0)-1),OFFSET('C. PoC Adj Factor Scoring'!$E$5:$J$282,,MATCH(AC$4,'C. PoC Adj Factor Scoring'!$E$3:$AH$3,0)-1),MATCH(AC$2&\" Score\",'C. PoC Adj Factor Scoring'!$E$4:$J$4,0),TRUE)","v":1},{"$f":"VLOOKUP(OFFSET($B:$B,,MATCH(AD$4,$B$4:$F$4,0)-1),OFFSET('C. PoC Adj Factor Scoring'!$E$5:$J$282,,MATCH(AD$4,'C. PoC Adj Factor Scoring'!$E$3:$AH$3,0)-1),MATCH(AD$2&\" Score\",'C. PoC Adj Factor Scoring'!$E$4:$J$4,0),TRUE)","v":1},{"$f":"VLOOKUP(OFFSET($B:$B,,MATCH(AE$4,$B$4:$F$4,0)-1),OFFSET('C. PoC Adj Factor Scoring'!$E$5:$J$282,,MATCH(AE$4,'C. PoC Adj Factor Scoring'!$E$3:$AH$3,0)-1),MATCH(AE$2&\" Score\",'C. PoC Adj Factor Scoring'!$E$4:$J$4,0),TRUE)","v":1}]
[{"$f":"'A. Population Info'!A488","v":1001495907},{"$f":"'A. Population Info'!L488","v":"OIL"},{"$f":"'A. Population Info'!M488","v":0},{"$f":"'A. Population Info'!N488","v":0},{"$f":"'A. Population Info'!O488","v":0},{"$f":"'A. Population Info'!P488","v":0},{"$f":"VLOOKUP(OFFSET($B:$B,,MATCH(G$4,$B$4:$F$4,0)-1),OFFSET('C. PoC Adj Factor Scoring'!$E$5:$J$282,,MATCH(G$4,'C. PoC Adj Factor Scoring'!$E$3:$AH$3,0)-1),MATCH(G$2&\" Score\",'C. PoC Adj Factor Scoring'!$E$4:$J$4,0),TRUE)","v":4},{"$f":"VLOOKUP(OFFSET($B:$B,,MATCH(H$4,$B$4:$F$4,0)-1),OFFSET('C. PoC Adj Factor Scoring'!$E$5:$J$282,,MATCH(H$4,'C. PoC Adj Factor Scoring'!$E$3:$AH$3,0)-1),MATCH(H$2&\" Score\",'C. PoC Adj Factor Scoring'!$E$4:$J$4,0),TRUE)","v":1},{"$f":"VLOOKUP(OFFSET($B:$B,,MATCH(I$4,$B$4:$F$4,0)-1),OFFSET('C. PoC Adj Factor Scoring'!$E$5:$J$282,,MATCH(I$4,'C. PoC Adj Factor Scoring'!$E$3:$AH$3,0)-1),MATCH(I$2&\" Score\",'C. PoC Adj Factor Scoring'!$E$4:$J$4,0),TRUE)","v":1},{"$f":"VLOOKUP(OFFSET($B:$B,,MATCH(J$4,$B$4:$F$4,0)-1),OFFSET('C. PoC Adj Factor Scoring'!$E$5:$J$282,,MATCH(J$4,'C. PoC Adj Factor Scoring'!$E$3:$AH$3,0)-1),MATCH(J$2&\" Score\",'C. PoC Adj Factor Scoring'!$E$4:$J$4,0),TRUE)","v":1},{"$f":"VLOOKUP(OFFSET($B:$B,,MATCH(K$4,$B$4:$F$4,0)-1),OFFSET('C. PoC Adj Factor Scoring'!$E$5:$J$282,,MATCH(K$4,'C. PoC Adj Factor Scoring'!$E$3:$AH$3,0)-1),MATCH(K$2&\" Score\",'C. PoC Adj Factor Scoring'!$E$4:$J$4,0),TRUE)","v":1},{"$f":"VLOOKUP(OFFSET($B:$B,,MATCH(L$4,$B$4:$F$4,0)-1),OFFSET('C. PoC Adj Factor Scoring'!$E$5:$J$282,,MATCH(L$4,'C. PoC Adj Factor Scoring'!$E$3:$AH$3,0)-1),MATCH(L$2&\" Score\",'C. PoC Adj Factor Scoring'!$E$4:$J$4,0),TRUE)","v":1},{"$f":"VLOOKUP(OFFSET($B:$B,,MATCH(M$4,$B$4:$F$4,0)-1),OFFSET('C. PoC Adj Factor Scoring'!$E$5:$J$282,,MATCH(M$4,'C. PoC Adj Factor Scoring'!$E$3:$AH$3,0)-1),MATCH(M$2&\" Score\",'C. PoC Adj Factor Scoring'!$E$4:$J$4,0),TRUE)","v":1},{"$f":"VLOOKUP(OFFSET($B:$B,,MATCH(N$4,$B$4:$F$4,0)-1),OFFSET('C. PoC Adj Factor Scoring'!$E$5:$J$282,,MATCH(N$4,'C. PoC Adj Factor Scoring'!$E$3:$AH$3,0)-1),MATCH(N$2&\" Score\",'C. PoC Adj Factor Scoring'!$E$4:$J$4,0),TRUE)","v":1},{"$f":"VLOOKUP(OFFSET($B:$B,,MATCH(O$4,$B$4:$F$4,0)-1),OFFSET('C. PoC Adj Factor Scoring'!$E$5:$J$282,,MATCH(O$4,'C. PoC Adj Factor Scoring'!$E$3:$AH$3,0)-1),MATCH(O$2&\" Score\",'C. PoC Adj Factor Scoring'!$E$4:$J$4,0),TRUE)","v":1},{"$f":"VLOOKUP(OFFSET($B:$B,,MATCH(P$4,$B$4:$F$4,0)-1),OFFSET('C. PoC Adj Factor Scoring'!$E$5:$J$282,,MATCH(P$4,'C. PoC Adj Factor Scoring'!$E$3:$AH$3,0)-1),MATCH(P$2&\" Score\",'C. PoC Adj Factor Scoring'!$E$4:$J$4,0),TRUE)","v":1},{"$f":"VLOOKUP(OFFSET($B:$B,,MATCH(Q$4,$B$4:$F$4,0)-1),OFFSET('C. PoC Adj Factor Scoring'!$E$5:$J$282,,MATCH(Q$4,'C. PoC Adj Factor Scoring'!$E$3:$AH$3,0)-1),MATCH(Q$2&\" Score\",'C. PoC Adj Factor Scoring'!$E$4:$J$4,0),TRUE)","v":1},{"$f":"VLOOKUP(OFFSET($B:$B,,MATCH(R$4,$B$4:$F$4,0)-1),OFFSET('C. PoC Adj Factor Scoring'!$E$5:$J$282,,MATCH(R$4,'C. PoC Adj Factor Scoring'!$E$3:$AH$3,0)-1),MATCH(R$2&\" Score\",'C. PoC Adj Factor Scoring'!$E$4:$J$4,0),TRUE)","v":1},{"$f":"VLOOKUP(OFFSET($B:$B,,MATCH(S$4,$B$4:$F$4,0)-1),OFFSET('C. PoC Adj Factor Scoring'!$E$5:$J$282,,MATCH(S$4,'C. PoC Adj Factor Scoring'!$E$3:$AH$3,0)-1),MATCH(S$2&\" Score\",'C. PoC Adj Factor Scoring'!$E$4:$J$4,0),TRUE)","v":1},{"$f":"VLOOKUP(OFFSET($B:$B,,MATCH(T$4,$B$4:$F$4,0)-1),OFFSET('C. PoC Adj Factor Scoring'!$E$5:$J$282,,MATCH(T$4,'C. PoC Adj Factor Scoring'!$E$3:$AH$3,0)-1),MATCH(T$2&\" Score\",'C. PoC Adj Factor Scoring'!$E$4:$J$4,0),TRUE)","v":1},{"$f":"VLOOKUP(OFFSET($B:$B,,MATCH(U$4,$B$4:$F$4,0)-1),OFFSET('C. PoC Adj Factor Scoring'!$E$5:$J$282,,MATCH(U$4,'C. PoC Adj Factor Scoring'!$E$3:$AH$3,0)-1),MATCH(U$2&\" Score\",'C. PoC Adj Factor Scoring'!$E$4:$J$4,0),TRUE)","v":1},{"$f":"VLOOKUP(OFFSET($B:$B,,MATCH(V$4,$B$4:$F$4,0)-1),OFFSET('C. PoC Adj Factor Scoring'!$E$5:$J$282,,MATCH(V$4,'C. PoC Adj Factor Scoring'!$E$3:$AH$3,0)-1),MATCH(V$2&\" Score\",'C. PoC Adj Factor Scoring'!$E$4:$J$4,0),TRUE)","v":1},{"$f":"VLOOKUP(OFFSET($B:$B,,MATCH(W$4,$B$4:$F$4,0)-1),OFFSET('C. PoC Adj Factor Scoring'!$E$5:$J$282,,MATCH(W$4,'C. PoC Adj Factor Scoring'!$E$3:$AH$3,0)-1),MATCH(W$2&\" Score\",'C. PoC Adj Factor Scoring'!$E$4:$J$4,0),TRUE)","v":1},{"$f":"VLOOKUP(OFFSET($B:$B,,MATCH(X$4,$B$4:$F$4,0)-1),OFFSET('C. PoC Adj Factor Scoring'!$E$5:$J$282,,MATCH(X$4,'C. PoC Adj Factor Scoring'!$E$3:$AH$3,0)-1),MATCH(X$2&\" Score\",'C. PoC Adj Factor Scoring'!$E$4:$J$4,0),TRUE)","v":1},{"$f":"VLOOKUP(OFFSET($B:$B,,MATCH(Y$4,$B$4:$F$4,0)-1),OFFSET('C. PoC Adj Factor Scoring'!$E$5:$J$282,,MATCH(Y$4,'C. PoC Adj Factor Scoring'!$E$3:$AH$3,0)-1),MATCH(Y$2&\" Score\",'C. PoC Adj Factor Scoring'!$E$4:$J$4,0),TRUE)","v":1},{"$f":"VLOOKUP(OFFSET($B:$B,,MATCH(Z$4,$B$4:$F$4,0)-1),OFFSET('C. PoC Adj Factor Scoring'!$E$5:$J$282,,MATCH(Z$4,'C. PoC Adj Factor Scoring'!$E$3:$AH$3,0)-1),MATCH(Z$2&\" Score\",'C. PoC Adj Factor Scoring'!$E$4:$J$4,0),TRUE)","v":1},{"$f":"VLOOKUP(OFFSET($B:$B,,MATCH(AA$4,$B$4:$F$4,0)-1),OFFSET('C. PoC Adj Factor Scoring'!$E$5:$J$282,,MATCH(AA$4,'C. PoC Adj Factor Scoring'!$E$3:$AH$3,0)-1),MATCH(AA$2&\" Score\",'C. PoC Adj Factor Scoring'!$E$4:$J$4,0),TRUE)","v":3},{"$f":"VLOOKUP(OFFSET($B:$B,,MATCH(AB$4,$B$4:$F$4,0)-1),OFFSET('C. PoC Adj Factor Scoring'!$E$5:$J$282,,MATCH(AB$4,'C. PoC Adj Factor Scoring'!$E$3:$AH$3,0)-1),MATCH(AB$2&\" Score\",'C. PoC Adj Factor Scoring'!$E$4:$J$4,0),TRUE)","v":1},{"$f":"VLOOKUP(OFFSET($B:$B,,MATCH(AC$4,$B$4:$F$4,0)-1),OFFSET('C. PoC Adj Factor Scoring'!$E$5:$J$282,,MATCH(AC$4,'C. PoC Adj Factor Scoring'!$E$3:$AH$3,0)-1),MATCH(AC$2&\" Score\",'C. PoC Adj Factor Scoring'!$E$4:$J$4,0),TRUE)","v":1},{"$f":"VLOOKUP(OFFSET($B:$B,,MATCH(AD$4,$B$4:$F$4,0)-1),OFFSET('C. PoC Adj Factor Scoring'!$E$5:$J$282,,MATCH(AD$4,'C. PoC Adj Factor Scoring'!$E$3:$AH$3,0)-1),MATCH(AD$2&\" Score\",'C. PoC Adj Factor Scoring'!$E$4:$J$4,0),TRUE)","v":1},{"$f":"VLOOKUP(OFFSET($B:$B,,MATCH(AE$4,$B$4:$F$4,0)-1),OFFSET('C. PoC Adj Factor Scoring'!$E$5:$J$282,,MATCH(AE$4,'C. PoC Adj Factor Scoring'!$E$3:$AH$3,0)-1),MATCH(AE$2&\" Score\",'C. PoC Adj Factor Scoring'!$E$4:$J$4,0),TRUE)","v":1}]
[{"$f":"'A. Population Info'!A489","v":1001495908},{"$f":"'A. Population Info'!L489","v":"OIL"},{"$f":"'A. Population Info'!M489","v":0},{"$f":"'A. Population Info'!N489","v":0},{"$f":"'A. Population Info'!O489","v":0},{"$f":"'A. Population Info'!P489","v":0},{"$f":"VLOOKUP(OFFSET($B:$B,,MATCH(G$4,$B$4:$F$4,0)-1),OFFSET('C. PoC Adj Factor Scoring'!$E$5:$J$282,,MATCH(G$4,'C. PoC Adj Factor Scoring'!$E$3:$AH$3,0)-1),MATCH(G$2&\" Score\",'C. PoC Adj Factor Scoring'!$E$4:$J$4,0),TRUE)","v":4},{"$f":"VLOOKUP(OFFSET($B:$B,,MATCH(H$4,$B$4:$F$4,0)-1),OFFSET('C. PoC Adj Factor Scoring'!$E$5:$J$282,,MATCH(H$4,'C. PoC Adj Factor Scoring'!$E$3:$AH$3,0)-1),MATCH(H$2&\" Score\",'C. PoC Adj Factor Scoring'!$E$4:$J$4,0),TRUE)","v":1},{"$f":"VLOOKUP(OFFSET($B:$B,,MATCH(I$4,$B$4:$F$4,0)-1),OFFSET('C. PoC Adj Factor Scoring'!$E$5:$J$282,,MATCH(I$4,'C. PoC Adj Factor Scoring'!$E$3:$AH$3,0)-1),MATCH(I$2&\" Score\",'C. PoC Adj Factor Scoring'!$E$4:$J$4,0),TRUE)","v":1},{"$f":"VLOOKUP(OFFSET($B:$B,,MATCH(J$4,$B$4:$F$4,0)-1),OFFSET('C. PoC Adj Factor Scoring'!$E$5:$J$282,,MATCH(J$4,'C. PoC Adj Factor Scoring'!$E$3:$AH$3,0)-1),MATCH(J$2&\" Score\",'C. PoC Adj Factor Scoring'!$E$4:$J$4,0),TRUE)","v":1},{"$f":"VLOOKUP(OFFSET($B:$B,,MATCH(K$4,$B$4:$F$4,0)-1),OFFSET('C. PoC Adj Factor Scoring'!$E$5:$J$282,,MATCH(K$4,'C. PoC Adj Factor Scoring'!$E$3:$AH$3,0)-1),MATCH(K$2&\" Score\",'C. PoC Adj Factor Scoring'!$E$4:$J$4,0),TRUE)","v":1},{"$f":"VLOOKUP(OFFSET($B:$B,,MATCH(L$4,$B$4:$F$4,0)-1),OFFSET('C. PoC Adj Factor Scoring'!$E$5:$J$282,,MATCH(L$4,'C. PoC Adj Factor Scoring'!$E$3:$AH$3,0)-1),MATCH(L$2&\" Score\",'C. PoC Adj Factor Scoring'!$E$4:$J$4,0),TRUE)","v":1},{"$f":"VLOOKUP(OFFSET($B:$B,,MATCH(M$4,$B$4:$F$4,0)-1),OFFSET('C. PoC Adj Factor Scoring'!$E$5:$J$282,,MATCH(M$4,'C. PoC Adj Factor Scoring'!$E$3:$AH$3,0)-1),MATCH(M$2&\" Score\",'C. PoC Adj Factor Scoring'!$E$4:$J$4,0),TRUE)","v":1},{"$f":"VLOOKUP(OFFSET($B:$B,,MATCH(N$4,$B$4:$F$4,0)-1),OFFSET('C. PoC Adj Factor Scoring'!$E$5:$J$282,,MATCH(N$4,'C. PoC Adj Factor Scoring'!$E$3:$AH$3,0)-1),MATCH(N$2&\" Score\",'C. PoC Adj Factor Scoring'!$E$4:$J$4,0),TRUE)","v":1},{"$f":"VLOOKUP(OFFSET($B:$B,,MATCH(O$4,$B$4:$F$4,0)-1),OFFSET('C. PoC Adj Factor Scoring'!$E$5:$J$282,,MATCH(O$4,'C. PoC Adj Factor Scoring'!$E$3:$AH$3,0)-1),MATCH(O$2&\" Score\",'C. PoC Adj Factor Scoring'!$E$4:$J$4,0),TRUE)","v":1},{"$f":"VLOOKUP(OFFSET($B:$B,,MATCH(P$4,$B$4:$F$4,0)-1),OFFSET('C. PoC Adj Factor Scoring'!$E$5:$J$282,,MATCH(P$4,'C. PoC Adj Factor Scoring'!$E$3:$AH$3,0)-1),MATCH(P$2&\" Score\",'C. PoC Adj Factor Scoring'!$E$4:$J$4,0),TRUE)","v":1},{"$f":"VLOOKUP(OFFSET($B:$B,,MATCH(Q$4,$B$4:$F$4,0)-1),OFFSET('C. PoC Adj Factor Scoring'!$E$5:$J$282,,MATCH(Q$4,'C. PoC Adj Factor Scoring'!$E$3:$AH$3,0)-1),MATCH(Q$2&\" Score\",'C. PoC Adj Factor Scoring'!$E$4:$J$4,0),TRUE)","v":1},{"$f":"VLOOKUP(OFFSET($B:$B,,MATCH(R$4,$B$4:$F$4,0)-1),OFFSET('C. PoC Adj Factor Scoring'!$E$5:$J$282,,MATCH(R$4,'C. PoC Adj Factor Scoring'!$E$3:$AH$3,0)-1),MATCH(R$2&\" Score\",'C. PoC Adj Factor Scoring'!$E$4:$J$4,0),TRUE)","v":1},{"$f":"VLOOKUP(OFFSET($B:$B,,MATCH(S$4,$B$4:$F$4,0)-1),OFFSET('C. PoC Adj Factor Scoring'!$E$5:$J$282,,MATCH(S$4,'C. PoC Adj Factor Scoring'!$E$3:$AH$3,0)-1),MATCH(S$2&\" Score\",'C. PoC Adj Factor Scoring'!$E$4:$J$4,0),TRUE)","v":1},{"$f":"VLOOKUP(OFFSET($B:$B,,MATCH(T$4,$B$4:$F$4,0)-1),OFFSET('C. PoC Adj Factor Scoring'!$E$5:$J$282,,MATCH(T$4,'C. PoC Adj Factor Scoring'!$E$3:$AH$3,0)-1),MATCH(T$2&\" Score\",'C. PoC Adj Factor Scoring'!$E$4:$J$4,0),TRUE)","v":1},{"$f":"VLOOKUP(OFFSET($B:$B,,MATCH(U$4,$B$4:$F$4,0)-1),OFFSET('C. PoC Adj Factor Scoring'!$E$5:$J$282,,MATCH(U$4,'C. PoC Adj Factor Scoring'!$E$3:$AH$3,0)-1),MATCH(U$2&\" Score\",'C. PoC Adj Factor Scoring'!$E$4:$J$4,0),TRUE)","v":1},{"$f":"VLOOKUP(OFFSET($B:$B,,MATCH(V$4,$B$4:$F$4,0)-1),OFFSET('C. PoC Adj Factor Scoring'!$E$5:$J$282,,MATCH(V$4,'C. PoC Adj Factor Scoring'!$E$3:$AH$3,0)-1),MATCH(V$2&\" Score\",'C. PoC Adj Factor Scoring'!$E$4:$J$4,0),TRUE)","v":1},{"$f":"VLOOKUP(OFFSET($B:$B,,MATCH(W$4,$B$4:$F$4,0)-1),OFFSET('C. PoC Adj Factor Scoring'!$E$5:$J$282,,MATCH(W$4,'C. PoC Adj Factor Scoring'!$E$3:$AH$3,0)-1),MATCH(W$2&\" Score\",'C. PoC Adj Factor Scoring'!$E$4:$J$4,0),TRUE)","v":1},{"$f":"VLOOKUP(OFFSET($B:$B,,MATCH(X$4,$B$4:$F$4,0)-1),OFFSET('C. PoC Adj Factor Scoring'!$E$5:$J$282,,MATCH(X$4,'C. PoC Adj Factor Scoring'!$E$3:$AH$3,0)-1),MATCH(X$2&\" Score\",'C. PoC Adj Factor Scoring'!$E$4:$J$4,0),TRUE)","v":1},{"$f":"VLOOKUP(OFFSET($B:$B,,MATCH(Y$4,$B$4:$F$4,0)-1),OFFSET('C. PoC Adj Factor Scoring'!$E$5:$J$282,,MATCH(Y$4,'C. PoC Adj Factor Scoring'!$E$3:$AH$3,0)-1),MATCH(Y$2&\" Score\",'C. PoC Adj Factor Scoring'!$E$4:$J$4,0),TRUE)","v":1},{"$f":"VLOOKUP(OFFSET($B:$B,,MATCH(Z$4,$B$4:$F$4,0)-1),OFFSET('C. PoC Adj Factor Scoring'!$E$5:$J$282,,MATCH(Z$4,'C. PoC Adj Factor Scoring'!$E$3:$AH$3,0)-1),MATCH(Z$2&\" Score\",'C. PoC Adj Factor Scoring'!$E$4:$J$4,0),TRUE)","v":1},{"$f":"VLOOKUP(OFFSET($B:$B,,MATCH(AA$4,$B$4:$F$4,0)-1),OFFSET('C. PoC Adj Factor Scoring'!$E$5:$J$282,,MATCH(AA$4,'C. PoC Adj Factor Scoring'!$E$3:$AH$3,0)-1),MATCH(AA$2&\" Score\",'C. PoC Adj Factor Scoring'!$E$4:$J$4,0),TRUE)","v":3},{"$f":"VLOOKUP(OFFSET($B:$B,,MATCH(AB$4,$B$4:$F$4,0)-1),OFFSET('C. PoC Adj Factor Scoring'!$E$5:$J$282,,MATCH(AB$4,'C. PoC Adj Factor Scoring'!$E$3:$AH$3,0)-1),MATCH(AB$2&\" Score\",'C. PoC Adj Factor Scoring'!$E$4:$J$4,0),TRUE)","v":1},{"$f":"VLOOKUP(OFFSET($B:$B,,MATCH(AC$4,$B$4:$F$4,0)-1),OFFSET('C. PoC Adj Factor Scoring'!$E$5:$J$282,,MATCH(AC$4,'C. PoC Adj Factor Scoring'!$E$3:$AH$3,0)-1),MATCH(AC$2&\" Score\",'C. PoC Adj Factor Scoring'!$E$4:$J$4,0),TRUE)","v":1},{"$f":"VLOOKUP(OFFSET($B:$B,,MATCH(AD$4,$B$4:$F$4,0)-1),OFFSET('C. PoC Adj Factor Scoring'!$E$5:$J$282,,MATCH(AD$4,'C. PoC Adj Factor Scoring'!$E$3:$AH$3,0)-1),MATCH(AD$2&\" Score\",'C. PoC Adj Factor Scoring'!$E$4:$J$4,0),TRUE)","v":1},{"$f":"VLOOKUP(OFFSET($B:$B,,MATCH(AE$4,$B$4:$F$4,0)-1),OFFSET('C. PoC Adj Factor Scoring'!$E$5:$J$282,,MATCH(AE$4,'C. PoC Adj Factor Scoring'!$E$3:$AH$3,0)-1),MATCH(AE$2&\" Score\",'C. PoC Adj Factor Scoring'!$E$4:$J$4,0),TRUE)","v":1}]
[{"$f":"'A. Population Info'!A490","v":1001499723},{"$f":"'A. Population Info'!L490","v":"OIL"},{"$f":"'A. Population Info'!M490","v":0},{"$f":"'A. Population Info'!N490","v":0},{"$f":"'A. Population Info'!O490","v":0},{"$f":"'A. Population Info'!P490","v":0},{"$f":"VLOOKUP(OFFSET($B:$B,,MATCH(G$4,$B$4:$F$4,0)-1),OFFSET('C. PoC Adj Factor Scoring'!$E$5:$J$282,,MATCH(G$4,'C. PoC Adj Factor Scoring'!$E$3:$AH$3,0)-1),MATCH(G$2&\" Score\",'C. PoC Adj Factor Scoring'!$E$4:$J$4,0),TRUE)","v":4},{"$f":"VLOOKUP(OFFSET($B:$B,,MATCH(H$4,$B$4:$F$4,0)-1),OFFSET('C. PoC Adj Factor Scoring'!$E$5:$J$282,,MATCH(H$4,'C. PoC Adj Factor Scoring'!$E$3:$AH$3,0)-1),MATCH(H$2&\" Score\",'C. PoC Adj Factor Scoring'!$E$4:$J$4,0),TRUE)","v":1},{"$f":"VLOOKUP(OFFSET($B:$B,,MATCH(I$4,$B$4:$F$4,0)-1),OFFSET('C. PoC Adj Factor Scoring'!$E$5:$J$282,,MATCH(I$4,'C. PoC Adj Factor Scoring'!$E$3:$AH$3,0)-1),MATCH(I$2&\" Score\",'C. PoC Adj Factor Scoring'!$E$4:$J$4,0),TRUE)","v":1},{"$f":"VLOOKUP(OFFSET($B:$B,,MATCH(J$4,$B$4:$F$4,0)-1),OFFSET('C. PoC Adj Factor Scoring'!$E$5:$J$282,,MATCH(J$4,'C. PoC Adj Factor Scoring'!$E$3:$AH$3,0)-1),MATCH(J$2&\" Score\",'C. PoC Adj Factor Scoring'!$E$4:$J$4,0),TRUE)","v":1},{"$f":"VLOOKUP(OFFSET($B:$B,,MATCH(K$4,$B$4:$F$4,0)-1),OFFSET('C. PoC Adj Factor Scoring'!$E$5:$J$282,,MATCH(K$4,'C. PoC Adj Factor Scoring'!$E$3:$AH$3,0)-1),MATCH(K$2&\" Score\",'C. PoC Adj Factor Scoring'!$E$4:$J$4,0),TRUE)","v":1},{"$f":"VLOOKUP(OFFSET($B:$B,,MATCH(L$4,$B$4:$F$4,0)-1),OFFSET('C. PoC Adj Factor Scoring'!$E$5:$J$282,,MATCH(L$4,'C. PoC Adj Factor Scoring'!$E$3:$AH$3,0)-1),MATCH(L$2&\" Score\",'C. PoC Adj Factor Scoring'!$E$4:$J$4,0),TRUE)","v":1},{"$f":"VLOOKUP(OFFSET($B:$B,,MATCH(M$4,$B$4:$F$4,0)-1),OFFSET('C. PoC Adj Factor Scoring'!$E$5:$J$282,,MATCH(M$4,'C. PoC Adj Factor Scoring'!$E$3:$AH$3,0)-1),MATCH(M$2&\" Score\",'C. PoC Adj Factor Scoring'!$E$4:$J$4,0),TRUE)","v":1},{"$f":"VLOOKUP(OFFSET($B:$B,,MATCH(N$4,$B$4:$F$4,0)-1),OFFSET('C. PoC Adj Factor Scoring'!$E$5:$J$282,,MATCH(N$4,'C. PoC Adj Factor Scoring'!$E$3:$AH$3,0)-1),MATCH(N$2&\" Score\",'C. PoC Adj Factor Scoring'!$E$4:$J$4,0),TRUE)","v":1},{"$f":"VLOOKUP(OFFSET($B:$B,,MATCH(O$4,$B$4:$F$4,0)-1),OFFSET('C. PoC Adj Factor Scoring'!$E$5:$J$282,,MATCH(O$4,'C. PoC Adj Factor Scoring'!$E$3:$AH$3,0)-1),MATCH(O$2&\" Score\",'C. PoC Adj Factor Scoring'!$E$4:$J$4,0),TRUE)","v":1},{"$f":"VLOOKUP(OFFSET($B:$B,,MATCH(P$4,$B$4:$F$4,0)-1),OFFSET('C. PoC Adj Factor Scoring'!$E$5:$J$282,,MATCH(P$4,'C. PoC Adj Factor Scoring'!$E$3:$AH$3,0)-1),MATCH(P$2&\" Score\",'C. PoC Adj Factor Scoring'!$E$4:$J$4,0),TRUE)","v":1},{"$f":"VLOOKUP(OFFSET($B:$B,,MATCH(Q$4,$B$4:$F$4,0)-1),OFFSET('C. PoC Adj Factor Scoring'!$E$5:$J$282,,MATCH(Q$4,'C. PoC Adj Factor Scoring'!$E$3:$AH$3,0)-1),MATCH(Q$2&\" Score\",'C. PoC Adj Factor Scoring'!$E$4:$J$4,0),TRUE)","v":1},{"$f":"VLOOKUP(OFFSET($B:$B,,MATCH(R$4,$B$4:$F$4,0)-1),OFFSET('C. PoC Adj Factor Scoring'!$E$5:$J$282,,MATCH(R$4,'C. PoC Adj Factor Scoring'!$E$3:$AH$3,0)-1),MATCH(R$2&\" Score\",'C. PoC Adj Factor Scoring'!$E$4:$J$4,0),TRUE)","v":1},{"$f":"VLOOKUP(OFFSET($B:$B,,MATCH(S$4,$B$4:$F$4,0)-1),OFFSET('C. PoC Adj Factor Scoring'!$E$5:$J$282,,MATCH(S$4,'C. PoC Adj Factor Scoring'!$E$3:$AH$3,0)-1),MATCH(S$2&\" Score\",'C. PoC Adj Factor Scoring'!$E$4:$J$4,0),TRUE)","v":1},{"$f":"VLOOKUP(OFFSET($B:$B,,MATCH(T$4,$B$4:$F$4,0)-1),OFFSET('C. PoC Adj Factor Scoring'!$E$5:$J$282,,MATCH(T$4,'C. PoC Adj Factor Scoring'!$E$3:$AH$3,0)-1),MATCH(T$2&\" Score\",'C. PoC Adj Factor Scoring'!$E$4:$J$4,0),TRUE)","v":1},{"$f":"VLOOKUP(OFFSET($B:$B,,MATCH(U$4,$B$4:$F$4,0)-1),OFFSET('C. PoC Adj Factor Scoring'!$E$5:$J$282,,MATCH(U$4,'C. PoC Adj Factor Scoring'!$E$3:$AH$3,0)-1),MATCH(U$2&\" Score\",'C. PoC Adj Factor Scoring'!$E$4:$J$4,0),TRUE)","v":1},{"$f":"VLOOKUP(OFFSET($B:$B,,MATCH(V$4,$B$4:$F$4,0)-1),OFFSET('C. PoC Adj Factor Scoring'!$E$5:$J$282,,MATCH(V$4,'C. PoC Adj Factor Scoring'!$E$3:$AH$3,0)-1),MATCH(V$2&\" Score\",'C. PoC Adj Factor Scoring'!$E$4:$J$4,0),TRUE)","v":1},{"$f":"VLOOKUP(OFFSET($B:$B,,MATCH(W$4,$B$4:$F$4,0)-1),OFFSET('C. PoC Adj Factor Scoring'!$E$5:$J$282,,MATCH(W$4,'C. PoC Adj Factor Scoring'!$E$3:$AH$3,0)-1),MATCH(W$2&\" Score\",'C. PoC Adj Factor Scoring'!$E$4:$J$4,0),TRUE)","v":1},{"$f":"VLOOKUP(OFFSET($B:$B,,MATCH(X$4,$B$4:$F$4,0)-1),OFFSET('C. PoC Adj Factor Scoring'!$E$5:$J$282,,MATCH(X$4,'C. PoC Adj Factor Scoring'!$E$3:$AH$3,0)-1),MATCH(X$2&\" Score\",'C. PoC Adj Factor Scoring'!$E$4:$J$4,0),TRUE)","v":1},{"$f":"VLOOKUP(OFFSET($B:$B,,MATCH(Y$4,$B$4:$F$4,0)-1),OFFSET('C. PoC Adj Factor Scoring'!$E$5:$J$282,,MATCH(Y$4,'C. PoC Adj Factor Scoring'!$E$3:$AH$3,0)-1),MATCH(Y$2&\" Score\",'C. PoC Adj Factor Scoring'!$E$4:$J$4,0),TRUE)","v":1},{"$f":"VLOOKUP(OFFSET($B:$B,,MATCH(Z$4,$B$4:$F$4,0)-1),OFFSET('C. PoC Adj Factor Scoring'!$E$5:$J$282,,MATCH(Z$4,'C. PoC Adj Factor Scoring'!$E$3:$AH$3,0)-1),MATCH(Z$2&\" Score\",'C. PoC Adj Factor Scoring'!$E$4:$J$4,0),TRUE)","v":1},{"$f":"VLOOKUP(OFFSET($B:$B,,MATCH(AA$4,$B$4:$F$4,0)-1),OFFSET('C. PoC Adj Factor Scoring'!$E$5:$J$282,,MATCH(AA$4,'C. PoC Adj Factor Scoring'!$E$3:$AH$3,0)-1),MATCH(AA$2&\" Score\",'C. PoC Adj Factor Scoring'!$E$4:$J$4,0),TRUE)","v":3},{"$f":"VLOOKUP(OFFSET($B:$B,,MATCH(AB$4,$B$4:$F$4,0)-1),OFFSET('C. PoC Adj Factor Scoring'!$E$5:$J$282,,MATCH(AB$4,'C. PoC Adj Factor Scoring'!$E$3:$AH$3,0)-1),MATCH(AB$2&\" Score\",'C. PoC Adj Factor Scoring'!$E$4:$J$4,0),TRUE)","v":1},{"$f":"VLOOKUP(OFFSET($B:$B,,MATCH(AC$4,$B$4:$F$4,0)-1),OFFSET('C. PoC Adj Factor Scoring'!$E$5:$J$282,,MATCH(AC$4,'C. PoC Adj Factor Scoring'!$E$3:$AH$3,0)-1),MATCH(AC$2&\" Score\",'C. PoC Adj Factor Scoring'!$E$4:$J$4,0),TRUE)","v":1},{"$f":"VLOOKUP(OFFSET($B:$B,,MATCH(AD$4,$B$4:$F$4,0)-1),OFFSET('C. PoC Adj Factor Scoring'!$E$5:$J$282,,MATCH(AD$4,'C. PoC Adj Factor Scoring'!$E$3:$AH$3,0)-1),MATCH(AD$2&\" Score\",'C. PoC Adj Factor Scoring'!$E$4:$J$4,0),TRUE)","v":1},{"$f":"VLOOKUP(OFFSET($B:$B,,MATCH(AE$4,$B$4:$F$4,0)-1),OFFSET('C. PoC Adj Factor Scoring'!$E$5:$J$282,,MATCH(AE$4,'C. PoC Adj Factor Scoring'!$E$3:$AH$3,0)-1),MATCH(AE$2&\" Score\",'C. PoC Adj Factor Scoring'!$E$4:$J$4,0),TRUE)","v":1}]
[{"$f":"'A. Population Info'!A491","v":1001499724},{"$f":"'A. Population Info'!L491","v":"OIL"},{"$f":"'A. Population Info'!M491","v":0},{"$f":"'A. Population Info'!N491","v":0},{"$f":"'A. Population Info'!O491","v":0},{"$f":"'A. Population Info'!P491","v":0},{"$f":"VLOOKUP(OFFSET($B:$B,,MATCH(G$4,$B$4:$F$4,0)-1),OFFSET('C. PoC Adj Factor Scoring'!$E$5:$J$282,,MATCH(G$4,'C. PoC Adj Factor Scoring'!$E$3:$AH$3,0)-1),MATCH(G$2&\" Score\",'C. PoC Adj Factor Scoring'!$E$4:$J$4,0),TRUE)","v":4},{"$f":"VLOOKUP(OFFSET($B:$B,,MATCH(H$4,$B$4:$F$4,0)-1),OFFSET('C. PoC Adj Factor Scoring'!$E$5:$J$282,,MATCH(H$4,'C. PoC Adj Factor Scoring'!$E$3:$AH$3,0)-1),MATCH(H$2&\" Score\",'C. PoC Adj Factor Scoring'!$E$4:$J$4,0),TRUE)","v":1},{"$f":"VLOOKUP(OFFSET($B:$B,,MATCH(I$4,$B$4:$F$4,0)-1),OFFSET('C. PoC Adj Factor Scoring'!$E$5:$J$282,,MATCH(I$4,'C. PoC Adj Factor Scoring'!$E$3:$AH$3,0)-1),MATCH(I$2&\" Score\",'C. PoC Adj Factor Scoring'!$E$4:$J$4,0),TRUE)","v":1},{"$f":"VLOOKUP(OFFSET($B:$B,,MATCH(J$4,$B$4:$F$4,0)-1),OFFSET('C. PoC Adj Factor Scoring'!$E$5:$J$282,,MATCH(J$4,'C. PoC Adj Factor Scoring'!$E$3:$AH$3,0)-1),MATCH(J$2&\" Score\",'C. PoC Adj Factor Scoring'!$E$4:$J$4,0),TRUE)","v":1},{"$f":"VLOOKUP(OFFSET($B:$B,,MATCH(K$4,$B$4:$F$4,0)-1),OFFSET('C. PoC Adj Factor Scoring'!$E$5:$J$282,,MATCH(K$4,'C. PoC Adj Factor Scoring'!$E$3:$AH$3,0)-1),MATCH(K$2&\" Score\",'C. PoC Adj Factor Scoring'!$E$4:$J$4,0),TRUE)","v":1},{"$f":"VLOOKUP(OFFSET($B:$B,,MATCH(L$4,$B$4:$F$4,0)-1),OFFSET('C. PoC Adj Factor Scoring'!$E$5:$J$282,,MATCH(L$4,'C. PoC Adj Factor Scoring'!$E$3:$AH$3,0)-1),MATCH(L$2&\" Score\",'C. PoC Adj Factor Scoring'!$E$4:$J$4,0),TRUE)","v":1},{"$f":"VLOOKUP(OFFSET($B:$B,,MATCH(M$4,$B$4:$F$4,0)-1),OFFSET('C. PoC Adj Factor Scoring'!$E$5:$J$282,,MATCH(M$4,'C. PoC Adj Factor Scoring'!$E$3:$AH$3,0)-1),MATCH(M$2&\" Score\",'C. PoC Adj Factor Scoring'!$E$4:$J$4,0),TRUE)","v":1},{"$f":"VLOOKUP(OFFSET($B:$B,,MATCH(N$4,$B$4:$F$4,0)-1),OFFSET('C. PoC Adj Factor Scoring'!$E$5:$J$282,,MATCH(N$4,'C. PoC Adj Factor Scoring'!$E$3:$AH$3,0)-1),MATCH(N$2&\" Score\",'C. PoC Adj Factor Scoring'!$E$4:$J$4,0),TRUE)","v":1},{"$f":"VLOOKUP(OFFSET($B:$B,,MATCH(O$4,$B$4:$F$4,0)-1),OFFSET('C. PoC Adj Factor Scoring'!$E$5:$J$282,,MATCH(O$4,'C. PoC Adj Factor Scoring'!$E$3:$AH$3,0)-1),MATCH(O$2&\" Score\",'C. PoC Adj Factor Scoring'!$E$4:$J$4,0),TRUE)","v":1},{"$f":"VLOOKUP(OFFSET($B:$B,,MATCH(P$4,$B$4:$F$4,0)-1),OFFSET('C. PoC Adj Factor Scoring'!$E$5:$J$282,,MATCH(P$4,'C. PoC Adj Factor Scoring'!$E$3:$AH$3,0)-1),MATCH(P$2&\" Score\",'C. PoC Adj Factor Scoring'!$E$4:$J$4,0),TRUE)","v":1},{"$f":"VLOOKUP(OFFSET($B:$B,,MATCH(Q$4,$B$4:$F$4,0)-1),OFFSET('C. PoC Adj Factor Scoring'!$E$5:$J$282,,MATCH(Q$4,'C. PoC Adj Factor Scoring'!$E$3:$AH$3,0)-1),MATCH(Q$2&\" Score\",'C. PoC Adj Factor Scoring'!$E$4:$J$4,0),TRUE)","v":1},{"$f":"VLOOKUP(OFFSET($B:$B,,MATCH(R$4,$B$4:$F$4,0)-1),OFFSET('C. PoC Adj Factor Scoring'!$E$5:$J$282,,MATCH(R$4,'C. PoC Adj Factor Scoring'!$E$3:$AH$3,0)-1),MATCH(R$2&\" Score\",'C. PoC Adj Factor Scoring'!$E$4:$J$4,0),TRUE)","v":1},{"$f":"VLOOKUP(OFFSET($B:$B,,MATCH(S$4,$B$4:$F$4,0)-1),OFFSET('C. PoC Adj Factor Scoring'!$E$5:$J$282,,MATCH(S$4,'C. PoC Adj Factor Scoring'!$E$3:$AH$3,0)-1),MATCH(S$2&\" Score\",'C. PoC Adj Factor Scoring'!$E$4:$J$4,0),TRUE)","v":1},{"$f":"VLOOKUP(OFFSET($B:$B,,MATCH(T$4,$B$4:$F$4,0)-1),OFFSET('C. PoC Adj Factor Scoring'!$E$5:$J$282,,MATCH(T$4,'C. PoC Adj Factor Scoring'!$E$3:$AH$3,0)-1),MATCH(T$2&\" Score\",'C. PoC Adj Factor Scoring'!$E$4:$J$4,0),TRUE)","v":1},{"$f":"VLOOKUP(OFFSET($B:$B,,MATCH(U$4,$B$4:$F$4,0)-1),OFFSET('C. PoC Adj Factor Scoring'!$E$5:$J$282,,MATCH(U$4,'C. PoC Adj Factor Scoring'!$E$3:$AH$3,0)-1),MATCH(U$2&\" Score\",'C. PoC Adj Factor Scoring'!$E$4:$J$4,0),TRUE)","v":1},{"$f":"VLOOKUP(OFFSET($B:$B,,MATCH(V$4,$B$4:$F$4,0)-1),OFFSET('C. PoC Adj Factor Scoring'!$E$5:$J$282,,MATCH(V$4,'C. PoC Adj Factor Scoring'!$E$3:$AH$3,0)-1),MATCH(V$2&\" Score\",'C. PoC Adj Factor Scoring'!$E$4:$J$4,0),TRUE)","v":1},{"$f":"VLOOKUP(OFFSET($B:$B,,MATCH(W$4,$B$4:$F$4,0)-1),OFFSET('C. PoC Adj Factor Scoring'!$E$5:$J$282,,MATCH(W$4,'C. PoC Adj Factor Scoring'!$E$3:$AH$3,0)-1),MATCH(W$2&\" Score\",'C. PoC Adj Factor Scoring'!$E$4:$J$4,0),TRUE)","v":1},{"$f":"VLOOKUP(OFFSET($B:$B,,MATCH(X$4,$B$4:$F$4,0)-1),OFFSET('C. PoC Adj Factor Scoring'!$E$5:$J$282,,MATCH(X$4,'C. PoC Adj Factor Scoring'!$E$3:$AH$3,0)-1),MATCH(X$2&\" Score\",'C. PoC Adj Factor Scoring'!$E$4:$J$4,0),TRUE)","v":1},{"$f":"VLOOKUP(OFFSET($B:$B,,MATCH(Y$4,$B$4:$F$4,0)-1),OFFSET('C. PoC Adj Factor Scoring'!$E$5:$J$282,,MATCH(Y$4,'C. PoC Adj Factor Scoring'!$E$3:$AH$3,0)-1),MATCH(Y$2&\" Score\",'C. PoC Adj Factor Scoring'!$E$4:$J$4,0),TRUE)","v":1},{"$f":"VLOOKUP(OFFSET($B:$B,,MATCH(Z$4,$B$4:$F$4,0)-1),OFFSET('C. PoC Adj Factor Scoring'!$E$5:$J$282,,MATCH(Z$4,'C. PoC Adj Factor Scoring'!$E$3:$AH$3,0)-1),MATCH(Z$2&\" Score\",'C. PoC Adj Factor Scoring'!$E$4:$J$4,0),TRUE)","v":1},{"$f":"VLOOKUP(OFFSET($B:$B,,MATCH(AA$4,$B$4:$F$4,0)-1),OFFSET('C. PoC Adj Factor Scoring'!$E$5:$J$282,,MATCH(AA$4,'C. PoC Adj Factor Scoring'!$E$3:$AH$3,0)-1),MATCH(AA$2&\" Score\",'C. PoC Adj Factor Scoring'!$E$4:$J$4,0),TRUE)","v":3},{"$f":"VLOOKUP(OFFSET($B:$B,,MATCH(AB$4,$B$4:$F$4,0)-1),OFFSET('C. PoC Adj Factor Scoring'!$E$5:$J$282,,MATCH(AB$4,'C. PoC Adj Factor Scoring'!$E$3:$AH$3,0)-1),MATCH(AB$2&\" Score\",'C. PoC Adj Factor Scoring'!$E$4:$J$4,0),TRUE)","v":1},{"$f":"VLOOKUP(OFFSET($B:$B,,MATCH(AC$4,$B$4:$F$4,0)-1),OFFSET('C. PoC Adj Factor Scoring'!$E$5:$J$282,,MATCH(AC$4,'C. PoC Adj Factor Scoring'!$E$3:$AH$3,0)-1),MATCH(AC$2&\" Score\",'C. PoC Adj Factor Scoring'!$E$4:$J$4,0),TRUE)","v":1},{"$f":"VLOOKUP(OFFSET($B:$B,,MATCH(AD$4,$B$4:$F$4,0)-1),OFFSET('C. PoC Adj Factor Scoring'!$E$5:$J$282,,MATCH(AD$4,'C. PoC Adj Factor Scoring'!$E$3:$AH$3,0)-1),MATCH(AD$2&\" Score\",'C. PoC Adj Factor Scoring'!$E$4:$J$4,0),TRUE)","v":1},{"$f":"VLOOKUP(OFFSET($B:$B,,MATCH(AE$4,$B$4:$F$4,0)-1),OFFSET('C. PoC Adj Factor Scoring'!$E$5:$J$282,,MATCH(AE$4,'C. PoC Adj Factor Scoring'!$E$3:$AH$3,0)-1),MATCH(AE$2&\" Score\",'C. PoC Adj Factor Scoring'!$E$4:$J$4,0),TRUE)","v":1}]
[{"$f":"'A. Population Info'!A492","v":1001503043},{"$f":"'A. Population Info'!L492","v":"OIL"},{"$f":"'A. Population Info'!M492","v":0},{"$f":"'A. Population Info'!N492","v":0},{"$f":"'A. Population Info'!O492","v":0},{"$f":"'A. Population Info'!P492","v":0},{"$f":"VLOOKUP(OFFSET($B:$B,,MATCH(G$4,$B$4:$F$4,0)-1),OFFSET('C. PoC Adj Factor Scoring'!$E$5:$J$282,,MATCH(G$4,'C. PoC Adj Factor Scoring'!$E$3:$AH$3,0)-1),MATCH(G$2&\" Score\",'C. PoC Adj Factor Scoring'!$E$4:$J$4,0),TRUE)","v":4},{"$f":"VLOOKUP(OFFSET($B:$B,,MATCH(H$4,$B$4:$F$4,0)-1),OFFSET('C. PoC Adj Factor Scoring'!$E$5:$J$282,,MATCH(H$4,'C. PoC Adj Factor Scoring'!$E$3:$AH$3,0)-1),MATCH(H$2&\" Score\",'C. PoC Adj Factor Scoring'!$E$4:$J$4,0),TRUE)","v":1},{"$f":"VLOOKUP(OFFSET($B:$B,,MATCH(I$4,$B$4:$F$4,0)-1),OFFSET('C. PoC Adj Factor Scoring'!$E$5:$J$282,,MATCH(I$4,'C. PoC Adj Factor Scoring'!$E$3:$AH$3,0)-1),MATCH(I$2&\" Score\",'C. PoC Adj Factor Scoring'!$E$4:$J$4,0),TRUE)","v":1},{"$f":"VLOOKUP(OFFSET($B:$B,,MATCH(J$4,$B$4:$F$4,0)-1),OFFSET('C. PoC Adj Factor Scoring'!$E$5:$J$282,,MATCH(J$4,'C. PoC Adj Factor Scoring'!$E$3:$AH$3,0)-1),MATCH(J$2&\" Score\",'C. PoC Adj Factor Scoring'!$E$4:$J$4,0),TRUE)","v":1},{"$f":"VLOOKUP(OFFSET($B:$B,,MATCH(K$4,$B$4:$F$4,0)-1),OFFSET('C. PoC Adj Factor Scoring'!$E$5:$J$282,,MATCH(K$4,'C. PoC Adj Factor Scoring'!$E$3:$AH$3,0)-1),MATCH(K$2&\" Score\",'C. PoC Adj Factor Scoring'!$E$4:$J$4,0),TRUE)","v":1},{"$f":"VLOOKUP(OFFSET($B:$B,,MATCH(L$4,$B$4:$F$4,0)-1),OFFSET('C. PoC Adj Factor Scoring'!$E$5:$J$282,,MATCH(L$4,'C. PoC Adj Factor Scoring'!$E$3:$AH$3,0)-1),MATCH(L$2&\" Score\",'C. PoC Adj Factor Scoring'!$E$4:$J$4,0),TRUE)","v":1},{"$f":"VLOOKUP(OFFSET($B:$B,,MATCH(M$4,$B$4:$F$4,0)-1),OFFSET('C. PoC Adj Factor Scoring'!$E$5:$J$282,,MATCH(M$4,'C. PoC Adj Factor Scoring'!$E$3:$AH$3,0)-1),MATCH(M$2&\" Score\",'C. PoC Adj Factor Scoring'!$E$4:$J$4,0),TRUE)","v":1},{"$f":"VLOOKUP(OFFSET($B:$B,,MATCH(N$4,$B$4:$F$4,0)-1),OFFSET('C. PoC Adj Factor Scoring'!$E$5:$J$282,,MATCH(N$4,'C. PoC Adj Factor Scoring'!$E$3:$AH$3,0)-1),MATCH(N$2&\" Score\",'C. PoC Adj Factor Scoring'!$E$4:$J$4,0),TRUE)","v":1},{"$f":"VLOOKUP(OFFSET($B:$B,,MATCH(O$4,$B$4:$F$4,0)-1),OFFSET('C. PoC Adj Factor Scoring'!$E$5:$J$282,,MATCH(O$4,'C. PoC Adj Factor Scoring'!$E$3:$AH$3,0)-1),MATCH(O$2&\" Score\",'C. PoC Adj Factor Scoring'!$E$4:$J$4,0),TRUE)","v":1},{"$f":"VLOOKUP(OFFSET($B:$B,,MATCH(P$4,$B$4:$F$4,0)-1),OFFSET('C. PoC Adj Factor Scoring'!$E$5:$J$282,,MATCH(P$4,'C. PoC Adj Factor Scoring'!$E$3:$AH$3,0)-1),MATCH(P$2&\" Score\",'C. PoC Adj Factor Scoring'!$E$4:$J$4,0),TRUE)","v":1},{"$f":"VLOOKUP(OFFSET($B:$B,,MATCH(Q$4,$B$4:$F$4,0)-1),OFFSET('C. PoC Adj Factor Scoring'!$E$5:$J$282,,MATCH(Q$4,'C. PoC Adj Factor Scoring'!$E$3:$AH$3,0)-1),MATCH(Q$2&\" Score\",'C. PoC Adj Factor Scoring'!$E$4:$J$4,0),TRUE)","v":1},{"$f":"VLOOKUP(OFFSET($B:$B,,MATCH(R$4,$B$4:$F$4,0)-1),OFFSET('C. PoC Adj Factor Scoring'!$E$5:$J$282,,MATCH(R$4,'C. PoC Adj Factor Scoring'!$E$3:$AH$3,0)-1),MATCH(R$2&\" Score\",'C. PoC Adj Factor Scoring'!$E$4:$J$4,0),TRUE)","v":1},{"$f":"VLOOKUP(OFFSET($B:$B,,MATCH(S$4,$B$4:$F$4,0)-1),OFFSET('C. PoC Adj Factor Scoring'!$E$5:$J$282,,MATCH(S$4,'C. PoC Adj Factor Scoring'!$E$3:$AH$3,0)-1),MATCH(S$2&\" Score\",'C. PoC Adj Factor Scoring'!$E$4:$J$4,0),TRUE)","v":1},{"$f":"VLOOKUP(OFFSET($B:$B,,MATCH(T$4,$B$4:$F$4,0)-1),OFFSET('C. PoC Adj Factor Scoring'!$E$5:$J$282,,MATCH(T$4,'C. PoC Adj Factor Scoring'!$E$3:$AH$3,0)-1),MATCH(T$2&\" Score\",'C. PoC Adj Factor Scoring'!$E$4:$J$4,0),TRUE)","v":1},{"$f":"VLOOKUP(OFFSET($B:$B,,MATCH(U$4,$B$4:$F$4,0)-1),OFFSET('C. PoC Adj Factor Scoring'!$E$5:$J$282,,MATCH(U$4,'C. PoC Adj Factor Scoring'!$E$3:$AH$3,0)-1),MATCH(U$2&\" Score\",'C. PoC Adj Factor Scoring'!$E$4:$J$4,0),TRUE)","v":1},{"$f":"VLOOKUP(OFFSET($B:$B,,MATCH(V$4,$B$4:$F$4,0)-1),OFFSET('C. PoC Adj Factor Scoring'!$E$5:$J$282,,MATCH(V$4,'C. PoC Adj Factor Scoring'!$E$3:$AH$3,0)-1),MATCH(V$2&\" Score\",'C. PoC Adj Factor Scoring'!$E$4:$J$4,0),TRUE)","v":1},{"$f":"VLOOKUP(OFFSET($B:$B,,MATCH(W$4,$B$4:$F$4,0)-1),OFFSET('C. PoC Adj Factor Scoring'!$E$5:$J$282,,MATCH(W$4,'C. PoC Adj Factor Scoring'!$E$3:$AH$3,0)-1),MATCH(W$2&\" Score\",'C. PoC Adj Factor Scoring'!$E$4:$J$4,0),TRUE)","v":1},{"$f":"VLOOKUP(OFFSET($B:$B,,MATCH(X$4,$B$4:$F$4,0)-1),OFFSET('C. PoC Adj Factor Scoring'!$E$5:$J$282,,MATCH(X$4,'C. PoC Adj Factor Scoring'!$E$3:$AH$3,0)-1),MATCH(X$2&\" Score\",'C. PoC Adj Factor Scoring'!$E$4:$J$4,0),TRUE)","v":1},{"$f":"VLOOKUP(OFFSET($B:$B,,MATCH(Y$4,$B$4:$F$4,0)-1),OFFSET('C. PoC Adj Factor Scoring'!$E$5:$J$282,,MATCH(Y$4,'C. PoC Adj Factor Scoring'!$E$3:$AH$3,0)-1),MATCH(Y$2&\" Score\",'C. PoC Adj Factor Scoring'!$E$4:$J$4,0),TRUE)","v":1},{"$f":"VLOOKUP(OFFSET($B:$B,,MATCH(Z$4,$B$4:$F$4,0)-1),OFFSET('C. PoC Adj Factor Scoring'!$E$5:$J$282,,MATCH(Z$4,'C. PoC Adj Factor Scoring'!$E$3:$AH$3,0)-1),MATCH(Z$2&\" Score\",'C. PoC Adj Factor Scoring'!$E$4:$J$4,0),TRUE)","v":1},{"$f":"VLOOKUP(OFFSET($B:$B,,MATCH(AA$4,$B$4:$F$4,0)-1),OFFSET('C. PoC Adj Factor Scoring'!$E$5:$J$282,,MATCH(AA$4,'C. PoC Adj Factor Scoring'!$E$3:$AH$3,0)-1),MATCH(AA$2&\" Score\",'C. PoC Adj Factor Scoring'!$E$4:$J$4,0),TRUE)","v":3},{"$f":"VLOOKUP(OFFSET($B:$B,,MATCH(AB$4,$B$4:$F$4,0)-1),OFFSET('C. PoC Adj Factor Scoring'!$E$5:$J$282,,MATCH(AB$4,'C. PoC Adj Factor Scoring'!$E$3:$AH$3,0)-1),MATCH(AB$2&\" Score\",'C. PoC Adj Factor Scoring'!$E$4:$J$4,0),TRUE)","v":1},{"$f":"VLOOKUP(OFFSET($B:$B,,MATCH(AC$4,$B$4:$F$4,0)-1),OFFSET('C. PoC Adj Factor Scoring'!$E$5:$J$282,,MATCH(AC$4,'C. PoC Adj Factor Scoring'!$E$3:$AH$3,0)-1),MATCH(AC$2&\" Score\",'C. PoC Adj Factor Scoring'!$E$4:$J$4,0),TRUE)","v":1},{"$f":"VLOOKUP(OFFSET($B:$B,,MATCH(AD$4,$B$4:$F$4,0)-1),OFFSET('C. PoC Adj Factor Scoring'!$E$5:$J$282,,MATCH(AD$4,'C. PoC Adj Factor Scoring'!$E$3:$AH$3,0)-1),MATCH(AD$2&\" Score\",'C. PoC Adj Factor Scoring'!$E$4:$J$4,0),TRUE)","v":1},{"$f":"VLOOKUP(OFFSET($B:$B,,MATCH(AE$4,$B$4:$F$4,0)-1),OFFSET('C. PoC Adj Factor Scoring'!$E$5:$J$282,,MATCH(AE$4,'C. PoC Adj Factor Scoring'!$E$3:$AH$3,0)-1),MATCH(AE$2&\" Score\",'C. PoC Adj Factor Scoring'!$E$4:$J$4,0),TRUE)","v":1}]
[{"$f":"'A. Population Info'!A493","v":1001503044},{"$f":"'A. Population Info'!L493","v":"OIL"},{"$f":"'A. Population Info'!M493","v":0},{"$f":"'A. Population Info'!N493","v":0},{"$f":"'A. Population Info'!O493","v":0},{"$f":"'A. Population Info'!P493","v":0},{"$f":"VLOOKUP(OFFSET($B:$B,,MATCH(G$4,$B$4:$F$4,0)-1),OFFSET('C. PoC Adj Factor Scoring'!$E$5:$J$282,,MATCH(G$4,'C. PoC Adj Factor Scoring'!$E$3:$AH$3,0)-1),MATCH(G$2&\" Score\",'C. PoC Adj Factor Scoring'!$E$4:$J$4,0),TRUE)","v":4},{"$f":"VLOOKUP(OFFSET($B:$B,,MATCH(H$4,$B$4:$F$4,0)-1),OFFSET('C. PoC Adj Factor Scoring'!$E$5:$J$282,,MATCH(H$4,'C. PoC Adj Factor Scoring'!$E$3:$AH$3,0)-1),MATCH(H$2&\" Score\",'C. PoC Adj Factor Scoring'!$E$4:$J$4,0),TRUE)","v":1},{"$f":"VLOOKUP(OFFSET($B:$B,,MATCH(I$4,$B$4:$F$4,0)-1),OFFSET('C. PoC Adj Factor Scoring'!$E$5:$J$282,,MATCH(I$4,'C. PoC Adj Factor Scoring'!$E$3:$AH$3,0)-1),MATCH(I$2&\" Score\",'C. PoC Adj Factor Scoring'!$E$4:$J$4,0),TRUE)","v":1},{"$f":"VLOOKUP(OFFSET($B:$B,,MATCH(J$4,$B$4:$F$4,0)-1),OFFSET('C. PoC Adj Factor Scoring'!$E$5:$J$282,,MATCH(J$4,'C. PoC Adj Factor Scoring'!$E$3:$AH$3,0)-1),MATCH(J$2&\" Score\",'C. PoC Adj Factor Scoring'!$E$4:$J$4,0),TRUE)","v":1},{"$f":"VLOOKUP(OFFSET($B:$B,,MATCH(K$4,$B$4:$F$4,0)-1),OFFSET('C. PoC Adj Factor Scoring'!$E$5:$J$282,,MATCH(K$4,'C. PoC Adj Factor Scoring'!$E$3:$AH$3,0)-1),MATCH(K$2&\" Score\",'C. PoC Adj Factor Scoring'!$E$4:$J$4,0),TRUE)","v":1},{"$f":"VLOOKUP(OFFSET($B:$B,,MATCH(L$4,$B$4:$F$4,0)-1),OFFSET('C. PoC Adj Factor Scoring'!$E$5:$J$282,,MATCH(L$4,'C. PoC Adj Factor Scoring'!$E$3:$AH$3,0)-1),MATCH(L$2&\" Score\",'C. PoC Adj Factor Scoring'!$E$4:$J$4,0),TRUE)","v":1},{"$f":"VLOOKUP(OFFSET($B:$B,,MATCH(M$4,$B$4:$F$4,0)-1),OFFSET('C. PoC Adj Factor Scoring'!$E$5:$J$282,,MATCH(M$4,'C. PoC Adj Factor Scoring'!$E$3:$AH$3,0)-1),MATCH(M$2&\" Score\",'C. PoC Adj Factor Scoring'!$E$4:$J$4,0),TRUE)","v":1},{"$f":"VLOOKUP(OFFSET($B:$B,,MATCH(N$4,$B$4:$F$4,0)-1),OFFSET('C. PoC Adj Factor Scoring'!$E$5:$J$282,,MATCH(N$4,'C. PoC Adj Factor Scoring'!$E$3:$AH$3,0)-1),MATCH(N$2&\" Score\",'C. PoC Adj Factor Scoring'!$E$4:$J$4,0),TRUE)","v":1},{"$f":"VLOOKUP(OFFSET($B:$B,,MATCH(O$4,$B$4:$F$4,0)-1),OFFSET('C. PoC Adj Factor Scoring'!$E$5:$J$282,,MATCH(O$4,'C. PoC Adj Factor Scoring'!$E$3:$AH$3,0)-1),MATCH(O$2&\" Score\",'C. PoC Adj Factor Scoring'!$E$4:$J$4,0),TRUE)","v":1},{"$f":"VLOOKUP(OFFSET($B:$B,,MATCH(P$4,$B$4:$F$4,0)-1),OFFSET('C. PoC Adj Factor Scoring'!$E$5:$J$282,,MATCH(P$4,'C. PoC Adj Factor Scoring'!$E$3:$AH$3,0)-1),MATCH(P$2&\" Score\",'C. PoC Adj Factor Scoring'!$E$4:$J$4,0),TRUE)","v":1},{"$f":"VLOOKUP(OFFSET($B:$B,,MATCH(Q$4,$B$4:$F$4,0)-1),OFFSET('C. PoC Adj Factor Scoring'!$E$5:$J$282,,MATCH(Q$4,'C. PoC Adj Factor Scoring'!$E$3:$AH$3,0)-1),MATCH(Q$2&\" Score\",'C. PoC Adj Factor Scoring'!$E$4:$J$4,0),TRUE)","v":1},{"$f":"VLOOKUP(OFFSET($B:$B,,MATCH(R$4,$B$4:$F$4,0)-1),OFFSET('C. PoC Adj Factor Scoring'!$E$5:$J$282,,MATCH(R$4,'C. PoC Adj Factor Scoring'!$E$3:$AH$3,0)-1),MATCH(R$2&\" Score\",'C. PoC Adj Factor Scoring'!$E$4:$J$4,0),TRUE)","v":1},{"$f":"VLOOKUP(OFFSET($B:$B,,MATCH(S$4,$B$4:$F$4,0)-1),OFFSET('C. PoC Adj Factor Scoring'!$E$5:$J$282,,MATCH(S$4,'C. PoC Adj Factor Scoring'!$E$3:$AH$3,0)-1),MATCH(S$2&\" Score\",'C. PoC Adj Factor Scoring'!$E$4:$J$4,0),TRUE)","v":1},{"$f":"VLOOKUP(OFFSET($B:$B,,MATCH(T$4,$B$4:$F$4,0)-1),OFFSET('C. PoC Adj Factor Scoring'!$E$5:$J$282,,MATCH(T$4,'C. PoC Adj Factor Scoring'!$E$3:$AH$3,0)-1),MATCH(T$2&\" Score\",'C. PoC Adj Factor Scoring'!$E$4:$J$4,0),TRUE)","v":1},{"$f":"VLOOKUP(OFFSET($B:$B,,MATCH(U$4,$B$4:$F$4,0)-1),OFFSET('C. PoC Adj Factor Scoring'!$E$5:$J$282,,MATCH(U$4,'C. PoC Adj Factor Scoring'!$E$3:$AH$3,0)-1),MATCH(U$2&\" Score\",'C. PoC Adj Factor Scoring'!$E$4:$J$4,0),TRUE)","v":1},{"$f":"VLOOKUP(OFFSET($B:$B,,MATCH(V$4,$B$4:$F$4,0)-1),OFFSET('C. PoC Adj Factor Scoring'!$E$5:$J$282,,MATCH(V$4,'C. PoC Adj Factor Scoring'!$E$3:$AH$3,0)-1),MATCH(V$2&\" Score\",'C. PoC Adj Factor Scoring'!$E$4:$J$4,0),TRUE)","v":1},{"$f":"VLOOKUP(OFFSET($B:$B,,MATCH(W$4,$B$4:$F$4,0)-1),OFFSET('C. PoC Adj Factor Scoring'!$E$5:$J$282,,MATCH(W$4,'C. PoC Adj Factor Scoring'!$E$3:$AH$3,0)-1),MATCH(W$2&\" Score\",'C. PoC Adj Factor Scoring'!$E$4:$J$4,0),TRUE)","v":1},{"$f":"VLOOKUP(OFFSET($B:$B,,MATCH(X$4,$B$4:$F$4,0)-1),OFFSET('C. PoC Adj Factor Scoring'!$E$5:$J$282,,MATCH(X$4,'C. PoC Adj Factor Scoring'!$E$3:$AH$3,0)-1),MATCH(X$2&\" Score\",'C. PoC Adj Factor Scoring'!$E$4:$J$4,0),TRUE)","v":1},{"$f":"VLOOKUP(OFFSET($B:$B,,MATCH(Y$4,$B$4:$F$4,0)-1),OFFSET('C. PoC Adj Factor Scoring'!$E$5:$J$282,,MATCH(Y$4,'C. PoC Adj Factor Scoring'!$E$3:$AH$3,0)-1),MATCH(Y$2&\" Score\",'C. PoC Adj Factor Scoring'!$E$4:$J$4,0),TRUE)","v":1},{"$f":"VLOOKUP(OFFSET($B:$B,,MATCH(Z$4,$B$4:$F$4,0)-1),OFFSET('C. PoC Adj Factor Scoring'!$E$5:$J$282,,MATCH(Z$4,'C. PoC Adj Factor Scoring'!$E$3:$AH$3,0)-1),MATCH(Z$2&\" Score\",'C. PoC Adj Factor Scoring'!$E$4:$J$4,0),TRUE)","v":1},{"$f":"VLOOKUP(OFFSET($B:$B,,MATCH(AA$4,$B$4:$F$4,0)-1),OFFSET('C. PoC Adj Factor Scoring'!$E$5:$J$282,,MATCH(AA$4,'C. PoC Adj Factor Scoring'!$E$3:$AH$3,0)-1),MATCH(AA$2&\" Score\",'C. PoC Adj Factor Scoring'!$E$4:$J$4,0),TRUE)","v":3},{"$f":"VLOOKUP(OFFSET($B:$B,,MATCH(AB$4,$B$4:$F$4,0)-1),OFFSET('C. PoC Adj Factor Scoring'!$E$5:$J$282,,MATCH(AB$4,'C. PoC Adj Factor Scoring'!$E$3:$AH$3,0)-1),MATCH(AB$2&\" Score\",'C. PoC Adj Factor Scoring'!$E$4:$J$4,0),TRUE)","v":1},{"$f":"VLOOKUP(OFFSET($B:$B,,MATCH(AC$4,$B$4:$F$4,0)-1),OFFSET('C. PoC Adj Factor Scoring'!$E$5:$J$282,,MATCH(AC$4,'C. PoC Adj Factor Scoring'!$E$3:$AH$3,0)-1),MATCH(AC$2&\" Score\",'C. PoC Adj Factor Scoring'!$E$4:$J$4,0),TRUE)","v":1},{"$f":"VLOOKUP(OFFSET($B:$B,,MATCH(AD$4,$B$4:$F$4,0)-1),OFFSET('C. PoC Adj Factor Scoring'!$E$5:$J$282,,MATCH(AD$4,'C. PoC Adj Factor Scoring'!$E$3:$AH$3,0)-1),MATCH(AD$2&\" Score\",'C. PoC Adj Factor Scoring'!$E$4:$J$4,0),TRUE)","v":1},{"$f":"VLOOKUP(OFFSET($B:$B,,MATCH(AE$4,$B$4:$F$4,0)-1),OFFSET('C. PoC Adj Factor Scoring'!$E$5:$J$282,,MATCH(AE$4,'C. PoC Adj Factor Scoring'!$E$3:$AH$3,0)-1),MATCH(AE$2&\" Score\",'C. PoC Adj Factor Scoring'!$E$4:$J$4,0),TRUE)","v":1}]
[{"$f":"'A. Population Info'!A494","v":1001503045},{"$f":"'A. Population Info'!L494","v":"OIL"},{"$f":"'A. Population Info'!M494","v":0},{"$f":"'A. Population Info'!N494","v":0},{"$f":"'A. Population Info'!O494","v":0},{"$f":"'A. Population Info'!P494","v":0},{"$f":"VLOOKUP(OFFSET($B:$B,,MATCH(G$4,$B$4:$F$4,0)-1),OFFSET('C. PoC Adj Factor Scoring'!$E$5:$J$282,,MATCH(G$4,'C. PoC Adj Factor Scoring'!$E$3:$AH$3,0)-1),MATCH(G$2&\" Score\",'C. PoC Adj Factor Scoring'!$E$4:$J$4,0),TRUE)","v":4},{"$f":"VLOOKUP(OFFSET($B:$B,,MATCH(H$4,$B$4:$F$4,0)-1),OFFSET('C. PoC Adj Factor Scoring'!$E$5:$J$282,,MATCH(H$4,'C. PoC Adj Factor Scoring'!$E$3:$AH$3,0)-1),MATCH(H$2&\" Score\",'C. PoC Adj Factor Scoring'!$E$4:$J$4,0),TRUE)","v":1},{"$f":"VLOOKUP(OFFSET($B:$B,,MATCH(I$4,$B$4:$F$4,0)-1),OFFSET('C. PoC Adj Factor Scoring'!$E$5:$J$282,,MATCH(I$4,'C. PoC Adj Factor Scoring'!$E$3:$AH$3,0)-1),MATCH(I$2&\" Score\",'C. PoC Adj Factor Scoring'!$E$4:$J$4,0),TRUE)","v":1},{"$f":"VLOOKUP(OFFSET($B:$B,,MATCH(J$4,$B$4:$F$4,0)-1),OFFSET('C. PoC Adj Factor Scoring'!$E$5:$J$282,,MATCH(J$4,'C. PoC Adj Factor Scoring'!$E$3:$AH$3,0)-1),MATCH(J$2&\" Score\",'C. PoC Adj Factor Scoring'!$E$4:$J$4,0),TRUE)","v":1},{"$f":"VLOOKUP(OFFSET($B:$B,,MATCH(K$4,$B$4:$F$4,0)-1),OFFSET('C. PoC Adj Factor Scoring'!$E$5:$J$282,,MATCH(K$4,'C. PoC Adj Factor Scoring'!$E$3:$AH$3,0)-1),MATCH(K$2&\" Score\",'C. PoC Adj Factor Scoring'!$E$4:$J$4,0),TRUE)","v":1},{"$f":"VLOOKUP(OFFSET($B:$B,,MATCH(L$4,$B$4:$F$4,0)-1),OFFSET('C. PoC Adj Factor Scoring'!$E$5:$J$282,,MATCH(L$4,'C. PoC Adj Factor Scoring'!$E$3:$AH$3,0)-1),MATCH(L$2&\" Score\",'C. PoC Adj Factor Scoring'!$E$4:$J$4,0),TRUE)","v":1},{"$f":"VLOOKUP(OFFSET($B:$B,,MATCH(M$4,$B$4:$F$4,0)-1),OFFSET('C. PoC Adj Factor Scoring'!$E$5:$J$282,,MATCH(M$4,'C. PoC Adj Factor Scoring'!$E$3:$AH$3,0)-1),MATCH(M$2&\" Score\",'C. PoC Adj Factor Scoring'!$E$4:$J$4,0),TRUE)","v":1},{"$f":"VLOOKUP(OFFSET($B:$B,,MATCH(N$4,$B$4:$F$4,0)-1),OFFSET('C. PoC Adj Factor Scoring'!$E$5:$J$282,,MATCH(N$4,'C. PoC Adj Factor Scoring'!$E$3:$AH$3,0)-1),MATCH(N$2&\" Score\",'C. PoC Adj Factor Scoring'!$E$4:$J$4,0),TRUE)","v":1},{"$f":"VLOOKUP(OFFSET($B:$B,,MATCH(O$4,$B$4:$F$4,0)-1),OFFSET('C. PoC Adj Factor Scoring'!$E$5:$J$282,,MATCH(O$4,'C. PoC Adj Factor Scoring'!$E$3:$AH$3,0)-1),MATCH(O$2&\" Score\",'C. PoC Adj Factor Scoring'!$E$4:$J$4,0),TRUE)","v":1},{"$f":"VLOOKUP(OFFSET($B:$B,,MATCH(P$4,$B$4:$F$4,0)-1),OFFSET('C. PoC Adj Factor Scoring'!$E$5:$J$282,,MATCH(P$4,'C. PoC Adj Factor Scoring'!$E$3:$AH$3,0)-1),MATCH(P$2&\" Score\",'C. PoC Adj Factor Scoring'!$E$4:$J$4,0),TRUE)","v":1},{"$f":"VLOOKUP(OFFSET($B:$B,,MATCH(Q$4,$B$4:$F$4,0)-1),OFFSET('C. PoC Adj Factor Scoring'!$E$5:$J$282,,MATCH(Q$4,'C. PoC Adj Factor Scoring'!$E$3:$AH$3,0)-1),MATCH(Q$2&\" Score\",'C. PoC Adj Factor Scoring'!$E$4:$J$4,0),TRUE)","v":1},{"$f":"VLOOKUP(OFFSET($B:$B,,MATCH(R$4,$B$4:$F$4,0)-1),OFFSET('C. PoC Adj Factor Scoring'!$E$5:$J$282,,MATCH(R$4,'C. PoC Adj Factor Scoring'!$E$3:$AH$3,0)-1),MATCH(R$2&\" Score\",'C. PoC Adj Factor Scoring'!$E$4:$J$4,0),TRUE)","v":1},{"$f":"VLOOKUP(OFFSET($B:$B,,MATCH(S$4,$B$4:$F$4,0)-1),OFFSET('C. PoC Adj Factor Scoring'!$E$5:$J$282,,MATCH(S$4,'C. PoC Adj Factor Scoring'!$E$3:$AH$3,0)-1),MATCH(S$2&\" Score\",'C. PoC Adj Factor Scoring'!$E$4:$J$4,0),TRUE)","v":1},{"$f":"VLOOKUP(OFFSET($B:$B,,MATCH(T$4,$B$4:$F$4,0)-1),OFFSET('C. PoC Adj Factor Scoring'!$E$5:$J$282,,MATCH(T$4,'C. PoC Adj Factor Scoring'!$E$3:$AH$3,0)-1),MATCH(T$2&\" Score\",'C. PoC Adj Factor Scoring'!$E$4:$J$4,0),TRUE)","v":1},{"$f":"VLOOKUP(OFFSET($B:$B,,MATCH(U$4,$B$4:$F$4,0)-1),OFFSET('C. PoC Adj Factor Scoring'!$E$5:$J$282,,MATCH(U$4,'C. PoC Adj Factor Scoring'!$E$3:$AH$3,0)-1),MATCH(U$2&\" Score\",'C. PoC Adj Factor Scoring'!$E$4:$J$4,0),TRUE)","v":1},{"$f":"VLOOKUP(OFFSET($B:$B,,MATCH(V$4,$B$4:$F$4,0)-1),OFFSET('C. PoC Adj Factor Scoring'!$E$5:$J$282,,MATCH(V$4,'C. PoC Adj Factor Scoring'!$E$3:$AH$3,0)-1),MATCH(V$2&\" Score\",'C. PoC Adj Factor Scoring'!$E$4:$J$4,0),TRUE)","v":1},{"$f":"VLOOKUP(OFFSET($B:$B,,MATCH(W$4,$B$4:$F$4,0)-1),OFFSET('C. PoC Adj Factor Scoring'!$E$5:$J$282,,MATCH(W$4,'C. PoC Adj Factor Scoring'!$E$3:$AH$3,0)-1),MATCH(W$2&\" Score\",'C. PoC Adj Factor Scoring'!$E$4:$J$4,0),TRUE)","v":1},{"$f":"VLOOKUP(OFFSET($B:$B,,MATCH(X$4,$B$4:$F$4,0)-1),OFFSET('C. PoC Adj Factor Scoring'!$E$5:$J$282,,MATCH(X$4,'C. PoC Adj Factor Scoring'!$E$3:$AH$3,0)-1),MATCH(X$2&\" Score\",'C. PoC Adj Factor Scoring'!$E$4:$J$4,0),TRUE)","v":1},{"$f":"VLOOKUP(OFFSET($B:$B,,MATCH(Y$4,$B$4:$F$4,0)-1),OFFSET('C. PoC Adj Factor Scoring'!$E$5:$J$282,,MATCH(Y$4,'C. PoC Adj Factor Scoring'!$E$3:$AH$3,0)-1),MATCH(Y$2&\" Score\",'C. PoC Adj Factor Scoring'!$E$4:$J$4,0),TRUE)","v":1},{"$f":"VLOOKUP(OFFSET($B:$B,,MATCH(Z$4,$B$4:$F$4,0)-1),OFFSET('C. PoC Adj Factor Scoring'!$E$5:$J$282,,MATCH(Z$4,'C. PoC Adj Factor Scoring'!$E$3:$AH$3,0)-1),MATCH(Z$2&\" Score\",'C. PoC Adj Factor Scoring'!$E$4:$J$4,0),TRUE)","v":1},{"$f":"VLOOKUP(OFFSET($B:$B,,MATCH(AA$4,$B$4:$F$4,0)-1),OFFSET('C. PoC Adj Factor Scoring'!$E$5:$J$282,,MATCH(AA$4,'C. PoC Adj Factor Scoring'!$E$3:$AH$3,0)-1),MATCH(AA$2&\" Score\",'C. PoC Adj Factor Scoring'!$E$4:$J$4,0),TRUE)","v":3},{"$f":"VLOOKUP(OFFSET($B:$B,,MATCH(AB$4,$B$4:$F$4,0)-1),OFFSET('C. PoC Adj Factor Scoring'!$E$5:$J$282,,MATCH(AB$4,'C. PoC Adj Factor Scoring'!$E$3:$AH$3,0)-1),MATCH(AB$2&\" Score\",'C. PoC Adj Factor Scoring'!$E$4:$J$4,0),TRUE)","v":1},{"$f":"VLOOKUP(OFFSET($B:$B,,MATCH(AC$4,$B$4:$F$4,0)-1),OFFSET('C. PoC Adj Factor Scoring'!$E$5:$J$282,,MATCH(AC$4,'C. PoC Adj Factor Scoring'!$E$3:$AH$3,0)-1),MATCH(AC$2&\" Score\",'C. PoC Adj Factor Scoring'!$E$4:$J$4,0),TRUE)","v":1},{"$f":"VLOOKUP(OFFSET($B:$B,,MATCH(AD$4,$B$4:$F$4,0)-1),OFFSET('C. PoC Adj Factor Scoring'!$E$5:$J$282,,MATCH(AD$4,'C. PoC Adj Factor Scoring'!$E$3:$AH$3,0)-1),MATCH(AD$2&\" Score\",'C. PoC Adj Factor Scoring'!$E$4:$J$4,0),TRUE)","v":1},{"$f":"VLOOKUP(OFFSET($B:$B,,MATCH(AE$4,$B$4:$F$4,0)-1),OFFSET('C. PoC Adj Factor Scoring'!$E$5:$J$282,,MATCH(AE$4,'C. PoC Adj Factor Scoring'!$E$3:$AH$3,0)-1),MATCH(AE$2&\" Score\",'C. PoC Adj Factor Scoring'!$E$4:$J$4,0),TRUE)","v":1}]
[{"$f":"'A. Population Info'!A495","v":1001503857},{"$f":"'A. Population Info'!L495","v":"OIL"},{"$f":"'A. Population Info'!M495","v":0},{"$f":"'A. Population Info'!N495","v":0},{"$f":"'A. Population Info'!O495","v":0},{"$f":"'A. Population Info'!P495","v":0},{"$f":"VLOOKUP(OFFSET($B:$B,,MATCH(G$4,$B$4:$F$4,0)-1),OFFSET('C. PoC Adj Factor Scoring'!$E$5:$J$282,,MATCH(G$4,'C. PoC Adj Factor Scoring'!$E$3:$AH$3,0)-1),MATCH(G$2&\" Score\",'C. PoC Adj Factor Scoring'!$E$4:$J$4,0),TRUE)","v":4},{"$f":"VLOOKUP(OFFSET($B:$B,,MATCH(H$4,$B$4:$F$4,0)-1),OFFSET('C. PoC Adj Factor Scoring'!$E$5:$J$282,,MATCH(H$4,'C. PoC Adj Factor Scoring'!$E$3:$AH$3,0)-1),MATCH(H$2&\" Score\",'C. PoC Adj Factor Scoring'!$E$4:$J$4,0),TRUE)","v":1},{"$f":"VLOOKUP(OFFSET($B:$B,,MATCH(I$4,$B$4:$F$4,0)-1),OFFSET('C. PoC Adj Factor Scoring'!$E$5:$J$282,,MATCH(I$4,'C. PoC Adj Factor Scoring'!$E$3:$AH$3,0)-1),MATCH(I$2&\" Score\",'C. PoC Adj Factor Scoring'!$E$4:$J$4,0),TRUE)","v":1},{"$f":"VLOOKUP(OFFSET($B:$B,,MATCH(J$4,$B$4:$F$4,0)-1),OFFSET('C. PoC Adj Factor Scoring'!$E$5:$J$282,,MATCH(J$4,'C. PoC Adj Factor Scoring'!$E$3:$AH$3,0)-1),MATCH(J$2&\" Score\",'C. PoC Adj Factor Scoring'!$E$4:$J$4,0),TRUE)","v":1},{"$f":"VLOOKUP(OFFSET($B:$B,,MATCH(K$4,$B$4:$F$4,0)-1),OFFSET('C. PoC Adj Factor Scoring'!$E$5:$J$282,,MATCH(K$4,'C. PoC Adj Factor Scoring'!$E$3:$AH$3,0)-1),MATCH(K$2&\" Score\",'C. PoC Adj Factor Scoring'!$E$4:$J$4,0),TRUE)","v":1},{"$f":"VLOOKUP(OFFSET($B:$B,,MATCH(L$4,$B$4:$F$4,0)-1),OFFSET('C. PoC Adj Factor Scoring'!$E$5:$J$282,,MATCH(L$4,'C. PoC Adj Factor Scoring'!$E$3:$AH$3,0)-1),MATCH(L$2&\" Score\",'C. PoC Adj Factor Scoring'!$E$4:$J$4,0),TRUE)","v":1},{"$f":"VLOOKUP(OFFSET($B:$B,,MATCH(M$4,$B$4:$F$4,0)-1),OFFSET('C. PoC Adj Factor Scoring'!$E$5:$J$282,,MATCH(M$4,'C. PoC Adj Factor Scoring'!$E$3:$AH$3,0)-1),MATCH(M$2&\" Score\",'C. PoC Adj Factor Scoring'!$E$4:$J$4,0),TRUE)","v":1},{"$f":"VLOOKUP(OFFSET($B:$B,,MATCH(N$4,$B$4:$F$4,0)-1),OFFSET('C. PoC Adj Factor Scoring'!$E$5:$J$282,,MATCH(N$4,'C. PoC Adj Factor Scoring'!$E$3:$AH$3,0)-1),MATCH(N$2&\" Score\",'C. PoC Adj Factor Scoring'!$E$4:$J$4,0),TRUE)","v":1},{"$f":"VLOOKUP(OFFSET($B:$B,,MATCH(O$4,$B$4:$F$4,0)-1),OFFSET('C. PoC Adj Factor Scoring'!$E$5:$J$282,,MATCH(O$4,'C. PoC Adj Factor Scoring'!$E$3:$AH$3,0)-1),MATCH(O$2&\" Score\",'C. PoC Adj Factor Scoring'!$E$4:$J$4,0),TRUE)","v":1},{"$f":"VLOOKUP(OFFSET($B:$B,,MATCH(P$4,$B$4:$F$4,0)-1),OFFSET('C. PoC Adj Factor Scoring'!$E$5:$J$282,,MATCH(P$4,'C. PoC Adj Factor Scoring'!$E$3:$AH$3,0)-1),MATCH(P$2&\" Score\",'C. PoC Adj Factor Scoring'!$E$4:$J$4,0),TRUE)","v":1},{"$f":"VLOOKUP(OFFSET($B:$B,,MATCH(Q$4,$B$4:$F$4,0)-1),OFFSET('C. PoC Adj Factor Scoring'!$E$5:$J$282,,MATCH(Q$4,'C. PoC Adj Factor Scoring'!$E$3:$AH$3,0)-1),MATCH(Q$2&\" Score\",'C. PoC Adj Factor Scoring'!$E$4:$J$4,0),TRUE)","v":1},{"$f":"VLOOKUP(OFFSET($B:$B,,MATCH(R$4,$B$4:$F$4,0)-1),OFFSET('C. PoC Adj Factor Scoring'!$E$5:$J$282,,MATCH(R$4,'C. PoC Adj Factor Scoring'!$E$3:$AH$3,0)-1),MATCH(R$2&\" Score\",'C. PoC Adj Factor Scoring'!$E$4:$J$4,0),TRUE)","v":1},{"$f":"VLOOKUP(OFFSET($B:$B,,MATCH(S$4,$B$4:$F$4,0)-1),OFFSET('C. PoC Adj Factor Scoring'!$E$5:$J$282,,MATCH(S$4,'C. PoC Adj Factor Scoring'!$E$3:$AH$3,0)-1),MATCH(S$2&\" Score\",'C. PoC Adj Factor Scoring'!$E$4:$J$4,0),TRUE)","v":1},{"$f":"VLOOKUP(OFFSET($B:$B,,MATCH(T$4,$B$4:$F$4,0)-1),OFFSET('C. PoC Adj Factor Scoring'!$E$5:$J$282,,MATCH(T$4,'C. PoC Adj Factor Scoring'!$E$3:$AH$3,0)-1),MATCH(T$2&\" Score\",'C. PoC Adj Factor Scoring'!$E$4:$J$4,0),TRUE)","v":1},{"$f":"VLOOKUP(OFFSET($B:$B,,MATCH(U$4,$B$4:$F$4,0)-1),OFFSET('C. PoC Adj Factor Scoring'!$E$5:$J$282,,MATCH(U$4,'C. PoC Adj Factor Scoring'!$E$3:$AH$3,0)-1),MATCH(U$2&\" Score\",'C. PoC Adj Factor Scoring'!$E$4:$J$4,0),TRUE)","v":1},{"$f":"VLOOKUP(OFFSET($B:$B,,MATCH(V$4,$B$4:$F$4,0)-1),OFFSET('C. PoC Adj Factor Scoring'!$E$5:$J$282,,MATCH(V$4,'C. PoC Adj Factor Scoring'!$E$3:$AH$3,0)-1),MATCH(V$2&\" Score\",'C. PoC Adj Factor Scoring'!$E$4:$J$4,0),TRUE)","v":1},{"$f":"VLOOKUP(OFFSET($B:$B,,MATCH(W$4,$B$4:$F$4,0)-1),OFFSET('C. PoC Adj Factor Scoring'!$E$5:$J$282,,MATCH(W$4,'C. PoC Adj Factor Scoring'!$E$3:$AH$3,0)-1),MATCH(W$2&\" Score\",'C. PoC Adj Factor Scoring'!$E$4:$J$4,0),TRUE)","v":1},{"$f":"VLOOKUP(OFFSET($B:$B,,MATCH(X$4,$B$4:$F$4,0)-1),OFFSET('C. PoC Adj Factor Scoring'!$E$5:$J$282,,MATCH(X$4,'C. PoC Adj Factor Scoring'!$E$3:$AH$3,0)-1),MATCH(X$2&\" Score\",'C. PoC Adj Factor Scoring'!$E$4:$J$4,0),TRUE)","v":1},{"$f":"VLOOKUP(OFFSET($B:$B,,MATCH(Y$4,$B$4:$F$4,0)-1),OFFSET('C. PoC Adj Factor Scoring'!$E$5:$J$282,,MATCH(Y$4,'C. PoC Adj Factor Scoring'!$E$3:$AH$3,0)-1),MATCH(Y$2&\" Score\",'C. PoC Adj Factor Scoring'!$E$4:$J$4,0),TRUE)","v":1},{"$f":"VLOOKUP(OFFSET($B:$B,,MATCH(Z$4,$B$4:$F$4,0)-1),OFFSET('C. PoC Adj Factor Scoring'!$E$5:$J$282,,MATCH(Z$4,'C. PoC Adj Factor Scoring'!$E$3:$AH$3,0)-1),MATCH(Z$2&\" Score\",'C. PoC Adj Factor Scoring'!$E$4:$J$4,0),TRUE)","v":1},{"$f":"VLOOKUP(OFFSET($B:$B,,MATCH(AA$4,$B$4:$F$4,0)-1),OFFSET('C. PoC Adj Factor Scoring'!$E$5:$J$282,,MATCH(AA$4,'C. PoC Adj Factor Scoring'!$E$3:$AH$3,0)-1),MATCH(AA$2&\" Score\",'C. PoC Adj Factor Scoring'!$E$4:$J$4,0),TRUE)","v":3},{"$f":"VLOOKUP(OFFSET($B:$B,,MATCH(AB$4,$B$4:$F$4,0)-1),OFFSET('C. PoC Adj Factor Scoring'!$E$5:$J$282,,MATCH(AB$4,'C. PoC Adj Factor Scoring'!$E$3:$AH$3,0)-1),MATCH(AB$2&\" Score\",'C. PoC Adj Factor Scoring'!$E$4:$J$4,0),TRUE)","v":1},{"$f":"VLOOKUP(OFFSET($B:$B,,MATCH(AC$4,$B$4:$F$4,0)-1),OFFSET('C. PoC Adj Factor Scoring'!$E$5:$J$282,,MATCH(AC$4,'C. PoC Adj Factor Scoring'!$E$3:$AH$3,0)-1),MATCH(AC$2&\" Score\",'C. PoC Adj Factor Scoring'!$E$4:$J$4,0),TRUE)","v":1},{"$f":"VLOOKUP(OFFSET($B:$B,,MATCH(AD$4,$B$4:$F$4,0)-1),OFFSET('C. PoC Adj Factor Scoring'!$E$5:$J$282,,MATCH(AD$4,'C. PoC Adj Factor Scoring'!$E$3:$AH$3,0)-1),MATCH(AD$2&\" Score\",'C. PoC Adj Factor Scoring'!$E$4:$J$4,0),TRUE)","v":1},{"$f":"VLOOKUP(OFFSET($B:$B,,MATCH(AE$4,$B$4:$F$4,0)-1),OFFSET('C. PoC Adj Factor Scoring'!$E$5:$J$282,,MATCH(AE$4,'C. PoC Adj Factor Scoring'!$E$3:$AH$3,0)-1),MATCH(AE$2&\" Score\",'C. PoC Adj Factor Scoring'!$E$4:$J$4,0),TRUE)","v":1}]
[{"$f":"'A. Population Info'!A496","v":1001503858},{"$f":"'A. Population Info'!L496","v":"OIL"},{"$f":"'A. Population Info'!M496","v":0},{"$f":"'A. Population Info'!N496","v":0},{"$f":"'A. Population Info'!O496","v":0},{"$f":"'A. Population Info'!P496","v":0},{"$f":"VLOOKUP(OFFSET($B:$B,,MATCH(G$4,$B$4:$F$4,0)-1),OFFSET('C. PoC Adj Factor Scoring'!$E$5:$J$282,,MATCH(G$4,'C. PoC Adj Factor Scoring'!$E$3:$AH$3,0)-1),MATCH(G$2&\" Score\",'C. PoC Adj Factor Scoring'!$E$4:$J$4,0),TRUE)","v":4},{"$f":"VLOOKUP(OFFSET($B:$B,,MATCH(H$4,$B$4:$F$4,0)-1),OFFSET('C. PoC Adj Factor Scoring'!$E$5:$J$282,,MATCH(H$4,'C. PoC Adj Factor Scoring'!$E$3:$AH$3,0)-1),MATCH(H$2&\" Score\",'C. PoC Adj Factor Scoring'!$E$4:$J$4,0),TRUE)","v":1},{"$f":"VLOOKUP(OFFSET($B:$B,,MATCH(I$4,$B$4:$F$4,0)-1),OFFSET('C. PoC Adj Factor Scoring'!$E$5:$J$282,,MATCH(I$4,'C. PoC Adj Factor Scoring'!$E$3:$AH$3,0)-1),MATCH(I$2&\" Score\",'C. PoC Adj Factor Scoring'!$E$4:$J$4,0),TRUE)","v":1},{"$f":"VLOOKUP(OFFSET($B:$B,,MATCH(J$4,$B$4:$F$4,0)-1),OFFSET('C. PoC Adj Factor Scoring'!$E$5:$J$282,,MATCH(J$4,'C. PoC Adj Factor Scoring'!$E$3:$AH$3,0)-1),MATCH(J$2&\" Score\",'C. PoC Adj Factor Scoring'!$E$4:$J$4,0),TRUE)","v":1},{"$f":"VLOOKUP(OFFSET($B:$B,,MATCH(K$4,$B$4:$F$4,0)-1),OFFSET('C. PoC Adj Factor Scoring'!$E$5:$J$282,,MATCH(K$4,'C. PoC Adj Factor Scoring'!$E$3:$AH$3,0)-1),MATCH(K$2&\" Score\",'C. PoC Adj Factor Scoring'!$E$4:$J$4,0),TRUE)","v":1},{"$f":"VLOOKUP(OFFSET($B:$B,,MATCH(L$4,$B$4:$F$4,0)-1),OFFSET('C. PoC Adj Factor Scoring'!$E$5:$J$282,,MATCH(L$4,'C. PoC Adj Factor Scoring'!$E$3:$AH$3,0)-1),MATCH(L$2&\" Score\",'C. PoC Adj Factor Scoring'!$E$4:$J$4,0),TRUE)","v":1},{"$f":"VLOOKUP(OFFSET($B:$B,,MATCH(M$4,$B$4:$F$4,0)-1),OFFSET('C. PoC Adj Factor Scoring'!$E$5:$J$282,,MATCH(M$4,'C. PoC Adj Factor Scoring'!$E$3:$AH$3,0)-1),MATCH(M$2&\" Score\",'C. PoC Adj Factor Scoring'!$E$4:$J$4,0),TRUE)","v":1},{"$f":"VLOOKUP(OFFSET($B:$B,,MATCH(N$4,$B$4:$F$4,0)-1),OFFSET('C. PoC Adj Factor Scoring'!$E$5:$J$282,,MATCH(N$4,'C. PoC Adj Factor Scoring'!$E$3:$AH$3,0)-1),MATCH(N$2&\" Score\",'C. PoC Adj Factor Scoring'!$E$4:$J$4,0),TRUE)","v":1},{"$f":"VLOOKUP(OFFSET($B:$B,,MATCH(O$4,$B$4:$F$4,0)-1),OFFSET('C. PoC Adj Factor Scoring'!$E$5:$J$282,,MATCH(O$4,'C. PoC Adj Factor Scoring'!$E$3:$AH$3,0)-1),MATCH(O$2&\" Score\",'C. PoC Adj Factor Scoring'!$E$4:$J$4,0),TRUE)","v":1},{"$f":"VLOOKUP(OFFSET($B:$B,,MATCH(P$4,$B$4:$F$4,0)-1),OFFSET('C. PoC Adj Factor Scoring'!$E$5:$J$282,,MATCH(P$4,'C. PoC Adj Factor Scoring'!$E$3:$AH$3,0)-1),MATCH(P$2&\" Score\",'C. PoC Adj Factor Scoring'!$E$4:$J$4,0),TRUE)","v":1},{"$f":"VLOOKUP(OFFSET($B:$B,,MATCH(Q$4,$B$4:$F$4,0)-1),OFFSET('C. PoC Adj Factor Scoring'!$E$5:$J$282,,MATCH(Q$4,'C. PoC Adj Factor Scoring'!$E$3:$AH$3,0)-1),MATCH(Q$2&\" Score\",'C. PoC Adj Factor Scoring'!$E$4:$J$4,0),TRUE)","v":1},{"$f":"VLOOKUP(OFFSET($B:$B,,MATCH(R$4,$B$4:$F$4,0)-1),OFFSET('C. PoC Adj Factor Scoring'!$E$5:$J$282,,MATCH(R$4,'C. PoC Adj Factor Scoring'!$E$3:$AH$3,0)-1),MATCH(R$2&\" Score\",'C. PoC Adj Factor Scoring'!$E$4:$J$4,0),TRUE)","v":1},{"$f":"VLOOKUP(OFFSET($B:$B,,MATCH(S$4,$B$4:$F$4,0)-1),OFFSET('C. PoC Adj Factor Scoring'!$E$5:$J$282,,MATCH(S$4,'C. PoC Adj Factor Scoring'!$E$3:$AH$3,0)-1),MATCH(S$2&\" Score\",'C. PoC Adj Factor Scoring'!$E$4:$J$4,0),TRUE)","v":1},{"$f":"VLOOKUP(OFFSET($B:$B,,MATCH(T$4,$B$4:$F$4,0)-1),OFFSET('C. PoC Adj Factor Scoring'!$E$5:$J$282,,MATCH(T$4,'C. PoC Adj Factor Scoring'!$E$3:$AH$3,0)-1),MATCH(T$2&\" Score\",'C. PoC Adj Factor Scoring'!$E$4:$J$4,0),TRUE)","v":1},{"$f":"VLOOKUP(OFFSET($B:$B,,MATCH(U$4,$B$4:$F$4,0)-1),OFFSET('C. PoC Adj Factor Scoring'!$E$5:$J$282,,MATCH(U$4,'C. PoC Adj Factor Scoring'!$E$3:$AH$3,0)-1),MATCH(U$2&\" Score\",'C. PoC Adj Factor Scoring'!$E$4:$J$4,0),TRUE)","v":1},{"$f":"VLOOKUP(OFFSET($B:$B,,MATCH(V$4,$B$4:$F$4,0)-1),OFFSET('C. PoC Adj Factor Scoring'!$E$5:$J$282,,MATCH(V$4,'C. PoC Adj Factor Scoring'!$E$3:$AH$3,0)-1),MATCH(V$2&\" Score\",'C. PoC Adj Factor Scoring'!$E$4:$J$4,0),TRUE)","v":1},{"$f":"VLOOKUP(OFFSET($B:$B,,MATCH(W$4,$B$4:$F$4,0)-1),OFFSET('C. PoC Adj Factor Scoring'!$E$5:$J$282,,MATCH(W$4,'C. PoC Adj Factor Scoring'!$E$3:$AH$3,0)-1),MATCH(W$2&\" Score\",'C. PoC Adj Factor Scoring'!$E$4:$J$4,0),TRUE)","v":1},{"$f":"VLOOKUP(OFFSET($B:$B,,MATCH(X$4,$B$4:$F$4,0)-1),OFFSET('C. PoC Adj Factor Scoring'!$E$5:$J$282,,MATCH(X$4,'C. PoC Adj Factor Scoring'!$E$3:$AH$3,0)-1),MATCH(X$2&\" Score\",'C. PoC Adj Factor Scoring'!$E$4:$J$4,0),TRUE)","v":1},{"$f":"VLOOKUP(OFFSET($B:$B,,MATCH(Y$4,$B$4:$F$4,0)-1),OFFSET('C. PoC Adj Factor Scoring'!$E$5:$J$282,,MATCH(Y$4,'C. PoC Adj Factor Scoring'!$E$3:$AH$3,0)-1),MATCH(Y$2&\" Score\",'C. PoC Adj Factor Scoring'!$E$4:$J$4,0),TRUE)","v":1},{"$f":"VLOOKUP(OFFSET($B:$B,,MATCH(Z$4,$B$4:$F$4,0)-1),OFFSET('C. PoC Adj Factor Scoring'!$E$5:$J$282,,MATCH(Z$4,'C. PoC Adj Factor Scoring'!$E$3:$AH$3,0)-1),MATCH(Z$2&\" Score\",'C. PoC Adj Factor Scoring'!$E$4:$J$4,0),TRUE)","v":1},{"$f":"VLOOKUP(OFFSET($B:$B,,MATCH(AA$4,$B$4:$F$4,0)-1),OFFSET('C. PoC Adj Factor Scoring'!$E$5:$J$282,,MATCH(AA$4,'C. PoC Adj Factor Scoring'!$E$3:$AH$3,0)-1),MATCH(AA$2&\" Score\",'C. PoC Adj Factor Scoring'!$E$4:$J$4,0),TRUE)","v":3},{"$f":"VLOOKUP(OFFSET($B:$B,,MATCH(AB$4,$B$4:$F$4,0)-1),OFFSET('C. PoC Adj Factor Scoring'!$E$5:$J$282,,MATCH(AB$4,'C. PoC Adj Factor Scoring'!$E$3:$AH$3,0)-1),MATCH(AB$2&\" Score\",'C. PoC Adj Factor Scoring'!$E$4:$J$4,0),TRUE)","v":1},{"$f":"VLOOKUP(OFFSET($B:$B,,MATCH(AC$4,$B$4:$F$4,0)-1),OFFSET('C. PoC Adj Factor Scoring'!$E$5:$J$282,,MATCH(AC$4,'C. PoC Adj Factor Scoring'!$E$3:$AH$3,0)-1),MATCH(AC$2&\" Score\",'C. PoC Adj Factor Scoring'!$E$4:$J$4,0),TRUE)","v":1},{"$f":"VLOOKUP(OFFSET($B:$B,,MATCH(AD$4,$B$4:$F$4,0)-1),OFFSET('C. PoC Adj Factor Scoring'!$E$5:$J$282,,MATCH(AD$4,'C. PoC Adj Factor Scoring'!$E$3:$AH$3,0)-1),MATCH(AD$2&\" Score\",'C. PoC Adj Factor Scoring'!$E$4:$J$4,0),TRUE)","v":1},{"$f":"VLOOKUP(OFFSET($B:$B,,MATCH(AE$4,$B$4:$F$4,0)-1),OFFSET('C. PoC Adj Factor Scoring'!$E$5:$J$282,,MATCH(AE$4,'C. PoC Adj Factor Scoring'!$E$3:$AH$3,0)-1),MATCH(AE$2&\" Score\",'C. PoC Adj Factor Scoring'!$E$4:$J$4,0),TRUE)","v":1}]
[{"$f":"'A. Population Info'!A497","v":1001503867},{"$f":"'A. Population Info'!L497","v":"OIL"},{"$f":"'A. Population Info'!M497","v":0},{"$f":"'A. Population Info'!N497","v":0},{"$f":"'A. Population Info'!O497","v":0},{"$f":"'A. Population Info'!P497","v":0},{"$f":"VLOOKUP(OFFSET($B:$B,,MATCH(G$4,$B$4:$F$4,0)-1),OFFSET('C. PoC Adj Factor Scoring'!$E$5:$J$282,,MATCH(G$4,'C. PoC Adj Factor Scoring'!$E$3:$AH$3,0)-1),MATCH(G$2&\" Score\",'C. PoC Adj Factor Scoring'!$E$4:$J$4,0),TRUE)","v":4},{"$f":"VLOOKUP(OFFSET($B:$B,,MATCH(H$4,$B$4:$F$4,0)-1),OFFSET('C. PoC Adj Factor Scoring'!$E$5:$J$282,,MATCH(H$4,'C. PoC Adj Factor Scoring'!$E$3:$AH$3,0)-1),MATCH(H$2&\" Score\",'C. PoC Adj Factor Scoring'!$E$4:$J$4,0),TRUE)","v":1},{"$f":"VLOOKUP(OFFSET($B:$B,,MATCH(I$4,$B$4:$F$4,0)-1),OFFSET('C. PoC Adj Factor Scoring'!$E$5:$J$282,,MATCH(I$4,'C. PoC Adj Factor Scoring'!$E$3:$AH$3,0)-1),MATCH(I$2&\" Score\",'C. PoC Adj Factor Scoring'!$E$4:$J$4,0),TRUE)","v":1},{"$f":"VLOOKUP(OFFSET($B:$B,,MATCH(J$4,$B$4:$F$4,0)-1),OFFSET('C. PoC Adj Factor Scoring'!$E$5:$J$282,,MATCH(J$4,'C. PoC Adj Factor Scoring'!$E$3:$AH$3,0)-1),MATCH(J$2&\" Score\",'C. PoC Adj Factor Scoring'!$E$4:$J$4,0),TRUE)","v":1},{"$f":"VLOOKUP(OFFSET($B:$B,,MATCH(K$4,$B$4:$F$4,0)-1),OFFSET('C. PoC Adj Factor Scoring'!$E$5:$J$282,,MATCH(K$4,'C. PoC Adj Factor Scoring'!$E$3:$AH$3,0)-1),MATCH(K$2&\" Score\",'C. PoC Adj Factor Scoring'!$E$4:$J$4,0),TRUE)","v":1},{"$f":"VLOOKUP(OFFSET($B:$B,,MATCH(L$4,$B$4:$F$4,0)-1),OFFSET('C. PoC Adj Factor Scoring'!$E$5:$J$282,,MATCH(L$4,'C. PoC Adj Factor Scoring'!$E$3:$AH$3,0)-1),MATCH(L$2&\" Score\",'C. PoC Adj Factor Scoring'!$E$4:$J$4,0),TRUE)","v":1},{"$f":"VLOOKUP(OFFSET($B:$B,,MATCH(M$4,$B$4:$F$4,0)-1),OFFSET('C. PoC Adj Factor Scoring'!$E$5:$J$282,,MATCH(M$4,'C. PoC Adj Factor Scoring'!$E$3:$AH$3,0)-1),MATCH(M$2&\" Score\",'C. PoC Adj Factor Scoring'!$E$4:$J$4,0),TRUE)","v":1},{"$f":"VLOOKUP(OFFSET($B:$B,,MATCH(N$4,$B$4:$F$4,0)-1),OFFSET('C. PoC Adj Factor Scoring'!$E$5:$J$282,,MATCH(N$4,'C. PoC Adj Factor Scoring'!$E$3:$AH$3,0)-1),MATCH(N$2&\" Score\",'C. PoC Adj Factor Scoring'!$E$4:$J$4,0),TRUE)","v":1},{"$f":"VLOOKUP(OFFSET($B:$B,,MATCH(O$4,$B$4:$F$4,0)-1),OFFSET('C. PoC Adj Factor Scoring'!$E$5:$J$282,,MATCH(O$4,'C. PoC Adj Factor Scoring'!$E$3:$AH$3,0)-1),MATCH(O$2&\" Score\",'C. PoC Adj Factor Scoring'!$E$4:$J$4,0),TRUE)","v":1},{"$f":"VLOOKUP(OFFSET($B:$B,,MATCH(P$4,$B$4:$F$4,0)-1),OFFSET('C. PoC Adj Factor Scoring'!$E$5:$J$282,,MATCH(P$4,'C. PoC Adj Factor Scoring'!$E$3:$AH$3,0)-1),MATCH(P$2&\" Score\",'C. PoC Adj Factor Scoring'!$E$4:$J$4,0),TRUE)","v":1},{"$f":"VLOOKUP(OFFSET($B:$B,,MATCH(Q$4,$B$4:$F$4,0)-1),OFFSET('C. PoC Adj Factor Scoring'!$E$5:$J$282,,MATCH(Q$4,'C. PoC Adj Factor Scoring'!$E$3:$AH$3,0)-1),MATCH(Q$2&\" Score\",'C. PoC Adj Factor Scoring'!$E$4:$J$4,0),TRUE)","v":1},{"$f":"VLOOKUP(OFFSET($B:$B,,MATCH(R$4,$B$4:$F$4,0)-1),OFFSET('C. PoC Adj Factor Scoring'!$E$5:$J$282,,MATCH(R$4,'C. PoC Adj Factor Scoring'!$E$3:$AH$3,0)-1),MATCH(R$2&\" Score\",'C. PoC Adj Factor Scoring'!$E$4:$J$4,0),TRUE)","v":1},{"$f":"VLOOKUP(OFFSET($B:$B,,MATCH(S$4,$B$4:$F$4,0)-1),OFFSET('C. PoC Adj Factor Scoring'!$E$5:$J$282,,MATCH(S$4,'C. PoC Adj Factor Scoring'!$E$3:$AH$3,0)-1),MATCH(S$2&\" Score\",'C. PoC Adj Factor Scoring'!$E$4:$J$4,0),TRUE)","v":1},{"$f":"VLOOKUP(OFFSET($B:$B,,MATCH(T$4,$B$4:$F$4,0)-1),OFFSET('C. PoC Adj Factor Scoring'!$E$5:$J$282,,MATCH(T$4,'C. PoC Adj Factor Scoring'!$E$3:$AH$3,0)-1),MATCH(T$2&\" Score\",'C. PoC Adj Factor Scoring'!$E$4:$J$4,0),TRUE)","v":1},{"$f":"VLOOKUP(OFFSET($B:$B,,MATCH(U$4,$B$4:$F$4,0)-1),OFFSET('C. PoC Adj Factor Scoring'!$E$5:$J$282,,MATCH(U$4,'C. PoC Adj Factor Scoring'!$E$3:$AH$3,0)-1),MATCH(U$2&\" Score\",'C. PoC Adj Factor Scoring'!$E$4:$J$4,0),TRUE)","v":1},{"$f":"VLOOKUP(OFFSET($B:$B,,MATCH(V$4,$B$4:$F$4,0)-1),OFFSET('C. PoC Adj Factor Scoring'!$E$5:$J$282,,MATCH(V$4,'C. PoC Adj Factor Scoring'!$E$3:$AH$3,0)-1),MATCH(V$2&\" Score\",'C. PoC Adj Factor Scoring'!$E$4:$J$4,0),TRUE)","v":1},{"$f":"VLOOKUP(OFFSET($B:$B,,MATCH(W$4,$B$4:$F$4,0)-1),OFFSET('C. PoC Adj Factor Scoring'!$E$5:$J$282,,MATCH(W$4,'C. PoC Adj Factor Scoring'!$E$3:$AH$3,0)-1),MATCH(W$2&\" Score\",'C. PoC Adj Factor Scoring'!$E$4:$J$4,0),TRUE)","v":1},{"$f":"VLOOKUP(OFFSET($B:$B,,MATCH(X$4,$B$4:$F$4,0)-1),OFFSET('C. PoC Adj Factor Scoring'!$E$5:$J$282,,MATCH(X$4,'C. PoC Adj Factor Scoring'!$E$3:$AH$3,0)-1),MATCH(X$2&\" Score\",'C. PoC Adj Factor Scoring'!$E$4:$J$4,0),TRUE)","v":1},{"$f":"VLOOKUP(OFFSET($B:$B,,MATCH(Y$4,$B$4:$F$4,0)-1),OFFSET('C. PoC Adj Factor Scoring'!$E$5:$J$282,,MATCH(Y$4,'C. PoC Adj Factor Scoring'!$E$3:$AH$3,0)-1),MATCH(Y$2&\" Score\",'C. PoC Adj Factor Scoring'!$E$4:$J$4,0),TRUE)","v":1},{"$f":"VLOOKUP(OFFSET($B:$B,,MATCH(Z$4,$B$4:$F$4,0)-1),OFFSET('C. PoC Adj Factor Scoring'!$E$5:$J$282,,MATCH(Z$4,'C. PoC Adj Factor Scoring'!$E$3:$AH$3,0)-1),MATCH(Z$2&\" Score\",'C. PoC Adj Factor Scoring'!$E$4:$J$4,0),TRUE)","v":1},{"$f":"VLOOKUP(OFFSET($B:$B,,MATCH(AA$4,$B$4:$F$4,0)-1),OFFSET('C. PoC Adj Factor Scoring'!$E$5:$J$282,,MATCH(AA$4,'C. PoC Adj Factor Scoring'!$E$3:$AH$3,0)-1),MATCH(AA$2&\" Score\",'C. PoC Adj Factor Scoring'!$E$4:$J$4,0),TRUE)","v":3},{"$f":"VLOOKUP(OFFSET($B:$B,,MATCH(AB$4,$B$4:$F$4,0)-1),OFFSET('C. PoC Adj Factor Scoring'!$E$5:$J$282,,MATCH(AB$4,'C. PoC Adj Factor Scoring'!$E$3:$AH$3,0)-1),MATCH(AB$2&\" Score\",'C. PoC Adj Factor Scoring'!$E$4:$J$4,0),TRUE)","v":1},{"$f":"VLOOKUP(OFFSET($B:$B,,MATCH(AC$4,$B$4:$F$4,0)-1),OFFSET('C. PoC Adj Factor Scoring'!$E$5:$J$282,,MATCH(AC$4,'C. PoC Adj Factor Scoring'!$E$3:$AH$3,0)-1),MATCH(AC$2&\" Score\",'C. PoC Adj Factor Scoring'!$E$4:$J$4,0),TRUE)","v":1},{"$f":"VLOOKUP(OFFSET($B:$B,,MATCH(AD$4,$B$4:$F$4,0)-1),OFFSET('C. PoC Adj Factor Scoring'!$E$5:$J$282,,MATCH(AD$4,'C. PoC Adj Factor Scoring'!$E$3:$AH$3,0)-1),MATCH(AD$2&\" Score\",'C. PoC Adj Factor Scoring'!$E$4:$J$4,0),TRUE)","v":1},{"$f":"VLOOKUP(OFFSET($B:$B,,MATCH(AE$4,$B$4:$F$4,0)-1),OFFSET('C. PoC Adj Factor Scoring'!$E$5:$J$282,,MATCH(AE$4,'C. PoC Adj Factor Scoring'!$E$3:$AH$3,0)-1),MATCH(AE$2&\" Score\",'C. PoC Adj Factor Scoring'!$E$4:$J$4,0),TRUE)","v":1}]
[{"$f":"'A. Population Info'!A498","v":1001503868},{"$f":"'A. Population Info'!L498","v":"OIL"},{"$f":"'A. Population Info'!M498","v":0},{"$f":"'A. Population Info'!N498","v":0},{"$f":"'A. Population Info'!O498","v":0},{"$f":"'A. Population Info'!P498","v":0},{"$f":"VLOOKUP(OFFSET($B:$B,,MATCH(G$4,$B$4:$F$4,0)-1),OFFSET('C. PoC Adj Factor Scoring'!$E$5:$J$282,,MATCH(G$4,'C. PoC Adj Factor Scoring'!$E$3:$AH$3,0)-1),MATCH(G$2&\" Score\",'C. PoC Adj Factor Scoring'!$E$4:$J$4,0),TRUE)","v":4},{"$f":"VLOOKUP(OFFSET($B:$B,,MATCH(H$4,$B$4:$F$4,0)-1),OFFSET('C. PoC Adj Factor Scoring'!$E$5:$J$282,,MATCH(H$4,'C. PoC Adj Factor Scoring'!$E$3:$AH$3,0)-1),MATCH(H$2&\" Score\",'C. PoC Adj Factor Scoring'!$E$4:$J$4,0),TRUE)","v":1},{"$f":"VLOOKUP(OFFSET($B:$B,,MATCH(I$4,$B$4:$F$4,0)-1),OFFSET('C. PoC Adj Factor Scoring'!$E$5:$J$282,,MATCH(I$4,'C. PoC Adj Factor Scoring'!$E$3:$AH$3,0)-1),MATCH(I$2&\" Score\",'C. PoC Adj Factor Scoring'!$E$4:$J$4,0),TRUE)","v":1},{"$f":"VLOOKUP(OFFSET($B:$B,,MATCH(J$4,$B$4:$F$4,0)-1),OFFSET('C. PoC Adj Factor Scoring'!$E$5:$J$282,,MATCH(J$4,'C. PoC Adj Factor Scoring'!$E$3:$AH$3,0)-1),MATCH(J$2&\" Score\",'C. PoC Adj Factor Scoring'!$E$4:$J$4,0),TRUE)","v":1},{"$f":"VLOOKUP(OFFSET($B:$B,,MATCH(K$4,$B$4:$F$4,0)-1),OFFSET('C. PoC Adj Factor Scoring'!$E$5:$J$282,,MATCH(K$4,'C. PoC Adj Factor Scoring'!$E$3:$AH$3,0)-1),MATCH(K$2&\" Score\",'C. PoC Adj Factor Scoring'!$E$4:$J$4,0),TRUE)","v":1},{"$f":"VLOOKUP(OFFSET($B:$B,,MATCH(L$4,$B$4:$F$4,0)-1),OFFSET('C. PoC Adj Factor Scoring'!$E$5:$J$282,,MATCH(L$4,'C. PoC Adj Factor Scoring'!$E$3:$AH$3,0)-1),MATCH(L$2&\" Score\",'C. PoC Adj Factor Scoring'!$E$4:$J$4,0),TRUE)","v":1},{"$f":"VLOOKUP(OFFSET($B:$B,,MATCH(M$4,$B$4:$F$4,0)-1),OFFSET('C. PoC Adj Factor Scoring'!$E$5:$J$282,,MATCH(M$4,'C. PoC Adj Factor Scoring'!$E$3:$AH$3,0)-1),MATCH(M$2&\" Score\",'C. PoC Adj Factor Scoring'!$E$4:$J$4,0),TRUE)","v":1},{"$f":"VLOOKUP(OFFSET($B:$B,,MATCH(N$4,$B$4:$F$4,0)-1),OFFSET('C. PoC Adj Factor Scoring'!$E$5:$J$282,,MATCH(N$4,'C. PoC Adj Factor Scoring'!$E$3:$AH$3,0)-1),MATCH(N$2&\" Score\",'C. PoC Adj Factor Scoring'!$E$4:$J$4,0),TRUE)","v":1},{"$f":"VLOOKUP(OFFSET($B:$B,,MATCH(O$4,$B$4:$F$4,0)-1),OFFSET('C. PoC Adj Factor Scoring'!$E$5:$J$282,,MATCH(O$4,'C. PoC Adj Factor Scoring'!$E$3:$AH$3,0)-1),MATCH(O$2&\" Score\",'C. PoC Adj Factor Scoring'!$E$4:$J$4,0),TRUE)","v":1},{"$f":"VLOOKUP(OFFSET($B:$B,,MATCH(P$4,$B$4:$F$4,0)-1),OFFSET('C. PoC Adj Factor Scoring'!$E$5:$J$282,,MATCH(P$4,'C. PoC Adj Factor Scoring'!$E$3:$AH$3,0)-1),MATCH(P$2&\" Score\",'C. PoC Adj Factor Scoring'!$E$4:$J$4,0),TRUE)","v":1},{"$f":"VLOOKUP(OFFSET($B:$B,,MATCH(Q$4,$B$4:$F$4,0)-1),OFFSET('C. PoC Adj Factor Scoring'!$E$5:$J$282,,MATCH(Q$4,'C. PoC Adj Factor Scoring'!$E$3:$AH$3,0)-1),MATCH(Q$2&\" Score\",'C. PoC Adj Factor Scoring'!$E$4:$J$4,0),TRUE)","v":1},{"$f":"VLOOKUP(OFFSET($B:$B,,MATCH(R$4,$B$4:$F$4,0)-1),OFFSET('C. PoC Adj Factor Scoring'!$E$5:$J$282,,MATCH(R$4,'C. PoC Adj Factor Scoring'!$E$3:$AH$3,0)-1),MATCH(R$2&\" Score\",'C. PoC Adj Factor Scoring'!$E$4:$J$4,0),TRUE)","v":1},{"$f":"VLOOKUP(OFFSET($B:$B,,MATCH(S$4,$B$4:$F$4,0)-1),OFFSET('C. PoC Adj Factor Scoring'!$E$5:$J$282,,MATCH(S$4,'C. PoC Adj Factor Scoring'!$E$3:$AH$3,0)-1),MATCH(S$2&\" Score\",'C. PoC Adj Factor Scoring'!$E$4:$J$4,0),TRUE)","v":1},{"$f":"VLOOKUP(OFFSET($B:$B,,MATCH(T$4,$B$4:$F$4,0)-1),OFFSET('C. PoC Adj Factor Scoring'!$E$5:$J$282,,MATCH(T$4,'C. PoC Adj Factor Scoring'!$E$3:$AH$3,0)-1),MATCH(T$2&\" Score\",'C. PoC Adj Factor Scoring'!$E$4:$J$4,0),TRUE)","v":1},{"$f":"VLOOKUP(OFFSET($B:$B,,MATCH(U$4,$B$4:$F$4,0)-1),OFFSET('C. PoC Adj Factor Scoring'!$E$5:$J$282,,MATCH(U$4,'C. PoC Adj Factor Scoring'!$E$3:$AH$3,0)-1),MATCH(U$2&\" Score\",'C. PoC Adj Factor Scoring'!$E$4:$J$4,0),TRUE)","v":1},{"$f":"VLOOKUP(OFFSET($B:$B,,MATCH(V$4,$B$4:$F$4,0)-1),OFFSET('C. PoC Adj Factor Scoring'!$E$5:$J$282,,MATCH(V$4,'C. PoC Adj Factor Scoring'!$E$3:$AH$3,0)-1),MATCH(V$2&\" Score\",'C. PoC Adj Factor Scoring'!$E$4:$J$4,0),TRUE)","v":1},{"$f":"VLOOKUP(OFFSET($B:$B,,MATCH(W$4,$B$4:$F$4,0)-1),OFFSET('C. PoC Adj Factor Scoring'!$E$5:$J$282,,MATCH(W$4,'C. PoC Adj Factor Scoring'!$E$3:$AH$3,0)-1),MATCH(W$2&\" Score\",'C. PoC Adj Factor Scoring'!$E$4:$J$4,0),TRUE)","v":1},{"$f":"VLOOKUP(OFFSET($B:$B,,MATCH(X$4,$B$4:$F$4,0)-1),OFFSET('C. PoC Adj Factor Scoring'!$E$5:$J$282,,MATCH(X$4,'C. PoC Adj Factor Scoring'!$E$3:$AH$3,0)-1),MATCH(X$2&\" Score\",'C. PoC Adj Factor Scoring'!$E$4:$J$4,0),TRUE)","v":1},{"$f":"VLOOKUP(OFFSET($B:$B,,MATCH(Y$4,$B$4:$F$4,0)-1),OFFSET('C. PoC Adj Factor Scoring'!$E$5:$J$282,,MATCH(Y$4,'C. PoC Adj Factor Scoring'!$E$3:$AH$3,0)-1),MATCH(Y$2&\" Score\",'C. PoC Adj Factor Scoring'!$E$4:$J$4,0),TRUE)","v":1},{"$f":"VLOOKUP(OFFSET($B:$B,,MATCH(Z$4,$B$4:$F$4,0)-1),OFFSET('C. PoC Adj Factor Scoring'!$E$5:$J$282,,MATCH(Z$4,'C. PoC Adj Factor Scoring'!$E$3:$AH$3,0)-1),MATCH(Z$2&\" Score\",'C. PoC Adj Factor Scoring'!$E$4:$J$4,0),TRUE)","v":1},{"$f":"VLOOKUP(OFFSET($B:$B,,MATCH(AA$4,$B$4:$F$4,0)-1),OFFSET('C. PoC Adj Factor Scoring'!$E$5:$J$282,,MATCH(AA$4,'C. PoC Adj Factor Scoring'!$E$3:$AH$3,0)-1),MATCH(AA$2&\" Score\",'C. PoC Adj Factor Scoring'!$E$4:$J$4,0),TRUE)","v":3},{"$f":"VLOOKUP(OFFSET($B:$B,,MATCH(AB$4,$B$4:$F$4,0)-1),OFFSET('C. PoC Adj Factor Scoring'!$E$5:$J$282,,MATCH(AB$4,'C. PoC Adj Factor Scoring'!$E$3:$AH$3,0)-1),MATCH(AB$2&\" Score\",'C. PoC Adj Factor Scoring'!$E$4:$J$4,0),TRUE)","v":1},{"$f":"VLOOKUP(OFFSET($B:$B,,MATCH(AC$4,$B$4:$F$4,0)-1),OFFSET('C. PoC Adj Factor Scoring'!$E$5:$J$282,,MATCH(AC$4,'C. PoC Adj Factor Scoring'!$E$3:$AH$3,0)-1),MATCH(AC$2&\" Score\",'C. PoC Adj Factor Scoring'!$E$4:$J$4,0),TRUE)","v":1},{"$f":"VLOOKUP(OFFSET($B:$B,,MATCH(AD$4,$B$4:$F$4,0)-1),OFFSET('C. PoC Adj Factor Scoring'!$E$5:$J$282,,MATCH(AD$4,'C. PoC Adj Factor Scoring'!$E$3:$AH$3,0)-1),MATCH(AD$2&\" Score\",'C. PoC Adj Factor Scoring'!$E$4:$J$4,0),TRUE)","v":1},{"$f":"VLOOKUP(OFFSET($B:$B,,MATCH(AE$4,$B$4:$F$4,0)-1),OFFSET('C. PoC Adj Factor Scoring'!$E$5:$J$282,,MATCH(AE$4,'C. PoC Adj Factor Scoring'!$E$3:$AH$3,0)-1),MATCH(AE$2&\" Score\",'C. PoC Adj Factor Scoring'!$E$4:$J$4,0),TRUE)","v":1}]
[{"$f":"'A. Population Info'!A499","v":1001503871},{"$f":"'A. Population Info'!L499","v":"OIL"},{"$f":"'A. Population Info'!M499","v":0},{"$f":"'A. Population Info'!N499","v":0},{"$f":"'A. Population Info'!O499","v":0},{"$f":"'A. Population Info'!P499","v":0},{"$f":"VLOOKUP(OFFSET($B:$B,,MATCH(G$4,$B$4:$F$4,0)-1),OFFSET('C. PoC Adj Factor Scoring'!$E$5:$J$282,,MATCH(G$4,'C. PoC Adj Factor Scoring'!$E$3:$AH$3,0)-1),MATCH(G$2&\" Score\",'C. PoC Adj Factor Scoring'!$E$4:$J$4,0),TRUE)","v":4},{"$f":"VLOOKUP(OFFSET($B:$B,,MATCH(H$4,$B$4:$F$4,0)-1),OFFSET('C. PoC Adj Factor Scoring'!$E$5:$J$282,,MATCH(H$4,'C. PoC Adj Factor Scoring'!$E$3:$AH$3,0)-1),MATCH(H$2&\" Score\",'C. PoC Adj Factor Scoring'!$E$4:$J$4,0),TRUE)","v":1},{"$f":"VLOOKUP(OFFSET($B:$B,,MATCH(I$4,$B$4:$F$4,0)-1),OFFSET('C. PoC Adj Factor Scoring'!$E$5:$J$282,,MATCH(I$4,'C. PoC Adj Factor Scoring'!$E$3:$AH$3,0)-1),MATCH(I$2&\" Score\",'C. PoC Adj Factor Scoring'!$E$4:$J$4,0),TRUE)","v":1},{"$f":"VLOOKUP(OFFSET($B:$B,,MATCH(J$4,$B$4:$F$4,0)-1),OFFSET('C. PoC Adj Factor Scoring'!$E$5:$J$282,,MATCH(J$4,'C. PoC Adj Factor Scoring'!$E$3:$AH$3,0)-1),MATCH(J$2&\" Score\",'C. PoC Adj Factor Scoring'!$E$4:$J$4,0),TRUE)","v":1},{"$f":"VLOOKUP(OFFSET($B:$B,,MATCH(K$4,$B$4:$F$4,0)-1),OFFSET('C. PoC Adj Factor Scoring'!$E$5:$J$282,,MATCH(K$4,'C. PoC Adj Factor Scoring'!$E$3:$AH$3,0)-1),MATCH(K$2&\" Score\",'C. PoC Adj Factor Scoring'!$E$4:$J$4,0),TRUE)","v":1},{"$f":"VLOOKUP(OFFSET($B:$B,,MATCH(L$4,$B$4:$F$4,0)-1),OFFSET('C. PoC Adj Factor Scoring'!$E$5:$J$282,,MATCH(L$4,'C. PoC Adj Factor Scoring'!$E$3:$AH$3,0)-1),MATCH(L$2&\" Score\",'C. PoC Adj Factor Scoring'!$E$4:$J$4,0),TRUE)","v":1},{"$f":"VLOOKUP(OFFSET($B:$B,,MATCH(M$4,$B$4:$F$4,0)-1),OFFSET('C. PoC Adj Factor Scoring'!$E$5:$J$282,,MATCH(M$4,'C. PoC Adj Factor Scoring'!$E$3:$AH$3,0)-1),MATCH(M$2&\" Score\",'C. PoC Adj Factor Scoring'!$E$4:$J$4,0),TRUE)","v":1},{"$f":"VLOOKUP(OFFSET($B:$B,,MATCH(N$4,$B$4:$F$4,0)-1),OFFSET('C. PoC Adj Factor Scoring'!$E$5:$J$282,,MATCH(N$4,'C. PoC Adj Factor Scoring'!$E$3:$AH$3,0)-1),MATCH(N$2&\" Score\",'C. PoC Adj Factor Scoring'!$E$4:$J$4,0),TRUE)","v":1},{"$f":"VLOOKUP(OFFSET($B:$B,,MATCH(O$4,$B$4:$F$4,0)-1),OFFSET('C. PoC Adj Factor Scoring'!$E$5:$J$282,,MATCH(O$4,'C. PoC Adj Factor Scoring'!$E$3:$AH$3,0)-1),MATCH(O$2&\" Score\",'C. PoC Adj Factor Scoring'!$E$4:$J$4,0),TRUE)","v":1},{"$f":"VLOOKUP(OFFSET($B:$B,,MATCH(P$4,$B$4:$F$4,0)-1),OFFSET('C. PoC Adj Factor Scoring'!$E$5:$J$282,,MATCH(P$4,'C. PoC Adj Factor Scoring'!$E$3:$AH$3,0)-1),MATCH(P$2&\" Score\",'C. PoC Adj Factor Scoring'!$E$4:$J$4,0),TRUE)","v":1},{"$f":"VLOOKUP(OFFSET($B:$B,,MATCH(Q$4,$B$4:$F$4,0)-1),OFFSET('C. PoC Adj Factor Scoring'!$E$5:$J$282,,MATCH(Q$4,'C. PoC Adj Factor Scoring'!$E$3:$AH$3,0)-1),MATCH(Q$2&\" Score\",'C. PoC Adj Factor Scoring'!$E$4:$J$4,0),TRUE)","v":1},{"$f":"VLOOKUP(OFFSET($B:$B,,MATCH(R$4,$B$4:$F$4,0)-1),OFFSET('C. PoC Adj Factor Scoring'!$E$5:$J$282,,MATCH(R$4,'C. PoC Adj Factor Scoring'!$E$3:$AH$3,0)-1),MATCH(R$2&\" Score\",'C. PoC Adj Factor Scoring'!$E$4:$J$4,0),TRUE)","v":1},{"$f":"VLOOKUP(OFFSET($B:$B,,MATCH(S$4,$B$4:$F$4,0)-1),OFFSET('C. PoC Adj Factor Scoring'!$E$5:$J$282,,MATCH(S$4,'C. PoC Adj Factor Scoring'!$E$3:$AH$3,0)-1),MATCH(S$2&\" Score\",'C. PoC Adj Factor Scoring'!$E$4:$J$4,0),TRUE)","v":1},{"$f":"VLOOKUP(OFFSET($B:$B,,MATCH(T$4,$B$4:$F$4,0)-1),OFFSET('C. PoC Adj Factor Scoring'!$E$5:$J$282,,MATCH(T$4,'C. PoC Adj Factor Scoring'!$E$3:$AH$3,0)-1),MATCH(T$2&\" Score\",'C. PoC Adj Factor Scoring'!$E$4:$J$4,0),TRUE)","v":1},{"$f":"VLOOKUP(OFFSET($B:$B,,MATCH(U$4,$B$4:$F$4,0)-1),OFFSET('C. PoC Adj Factor Scoring'!$E$5:$J$282,,MATCH(U$4,'C. PoC Adj Factor Scoring'!$E$3:$AH$3,0)-1),MATCH(U$2&\" Score\",'C. PoC Adj Factor Scoring'!$E$4:$J$4,0),TRUE)","v":1},{"$f":"VLOOKUP(OFFSET($B:$B,,MATCH(V$4,$B$4:$F$4,0)-1),OFFSET('C. PoC Adj Factor Scoring'!$E$5:$J$282,,MATCH(V$4,'C. PoC Adj Factor Scoring'!$E$3:$AH$3,0)-1),MATCH(V$2&\" Score\",'C. PoC Adj Factor Scoring'!$E$4:$J$4,0),TRUE)","v":1},{"$f":"VLOOKUP(OFFSET($B:$B,,MATCH(W$4,$B$4:$F$4,0)-1),OFFSET('C. PoC Adj Factor Scoring'!$E$5:$J$282,,MATCH(W$4,'C. PoC Adj Factor Scoring'!$E$3:$AH$3,0)-1),MATCH(W$2&\" Score\",'C. PoC Adj Factor Scoring'!$E$4:$J$4,0),TRUE)","v":1},{"$f":"VLOOKUP(OFFSET($B:$B,,MATCH(X$4,$B$4:$F$4,0)-1),OFFSET('C. PoC Adj Factor Scoring'!$E$5:$J$282,,MATCH(X$4,'C. PoC Adj Factor Scoring'!$E$3:$AH$3,0)-1),MATCH(X$2&\" Score\",'C. PoC Adj Factor Scoring'!$E$4:$J$4,0),TRUE)","v":1},{"$f":"VLOOKUP(OFFSET($B:$B,,MATCH(Y$4,$B$4:$F$4,0)-1),OFFSET('C. PoC Adj Factor Scoring'!$E$5:$J$282,,MATCH(Y$4,'C. PoC Adj Factor Scoring'!$E$3:$AH$3,0)-1),MATCH(Y$2&\" Score\",'C. PoC Adj Factor Scoring'!$E$4:$J$4,0),TRUE)","v":1},{"$f":"VLOOKUP(OFFSET($B:$B,,MATCH(Z$4,$B$4:$F$4,0)-1),OFFSET('C. PoC Adj Factor Scoring'!$E$5:$J$282,,MATCH(Z$4,'C. PoC Adj Factor Scoring'!$E$3:$AH$3,0)-1),MATCH(Z$2&\" Score\",'C. PoC Adj Factor Scoring'!$E$4:$J$4,0),TRUE)","v":1},{"$f":"VLOOKUP(OFFSET($B:$B,,MATCH(AA$4,$B$4:$F$4,0)-1),OFFSET('C. PoC Adj Factor Scoring'!$E$5:$J$282,,MATCH(AA$4,'C. PoC Adj Factor Scoring'!$E$3:$AH$3,0)-1),MATCH(AA$2&\" Score\",'C. PoC Adj Factor Scoring'!$E$4:$J$4,0),TRUE)","v":3},{"$f":"VLOOKUP(OFFSET($B:$B,,MATCH(AB$4,$B$4:$F$4,0)-1),OFFSET('C. PoC Adj Factor Scoring'!$E$5:$J$282,,MATCH(AB$4,'C. PoC Adj Factor Scoring'!$E$3:$AH$3,0)-1),MATCH(AB$2&\" Score\",'C. PoC Adj Factor Scoring'!$E$4:$J$4,0),TRUE)","v":1},{"$f":"VLOOKUP(OFFSET($B:$B,,MATCH(AC$4,$B$4:$F$4,0)-1),OFFSET('C. PoC Adj Factor Scoring'!$E$5:$J$282,,MATCH(AC$4,'C. PoC Adj Factor Scoring'!$E$3:$AH$3,0)-1),MATCH(AC$2&\" Score\",'C. PoC Adj Factor Scoring'!$E$4:$J$4,0),TRUE)","v":1},{"$f":"VLOOKUP(OFFSET($B:$B,,MATCH(AD$4,$B$4:$F$4,0)-1),OFFSET('C. PoC Adj Factor Scoring'!$E$5:$J$282,,MATCH(AD$4,'C. PoC Adj Factor Scoring'!$E$3:$AH$3,0)-1),MATCH(AD$2&\" Score\",'C. PoC Adj Factor Scoring'!$E$4:$J$4,0),TRUE)","v":1},{"$f":"VLOOKUP(OFFSET($B:$B,,MATCH(AE$4,$B$4:$F$4,0)-1),OFFSET('C. PoC Adj Factor Scoring'!$E$5:$J$282,,MATCH(AE$4,'C. PoC Adj Factor Scoring'!$E$3:$AH$3,0)-1),MATCH(AE$2&\" Score\",'C. PoC Adj Factor Scoring'!$E$4:$J$4,0),TRUE)","v":1}]
[{"$f":"'A. Population Info'!A500","v":1001503879},{"$f":"'A. Population Info'!L500","v":"OIL"},{"$f":"'A. Population Info'!M500","v":0},{"$f":"'A. Population Info'!N500","v":0},{"$f":"'A. Population Info'!O500","v":0},{"$f":"'A. Population Info'!P500","v":0},{"$f":"VLOOKUP(OFFSET($B:$B,,MATCH(G$4,$B$4:$F$4,0)-1),OFFSET('C. PoC Adj Factor Scoring'!$E$5:$J$282,,MATCH(G$4,'C. PoC Adj Factor Scoring'!$E$3:$AH$3,0)-1),MATCH(G$2&\" Score\",'C. PoC Adj Factor Scoring'!$E$4:$J$4,0),TRUE)","v":4},{"$f":"VLOOKUP(OFFSET($B:$B,,MATCH(H$4,$B$4:$F$4,0)-1),OFFSET('C. PoC Adj Factor Scoring'!$E$5:$J$282,,MATCH(H$4,'C. PoC Adj Factor Scoring'!$E$3:$AH$3,0)-1),MATCH(H$2&\" Score\",'C. PoC Adj Factor Scoring'!$E$4:$J$4,0),TRUE)","v":1},{"$f":"VLOOKUP(OFFSET($B:$B,,MATCH(I$4,$B$4:$F$4,0)-1),OFFSET('C. PoC Adj Factor Scoring'!$E$5:$J$282,,MATCH(I$4,'C. PoC Adj Factor Scoring'!$E$3:$AH$3,0)-1),MATCH(I$2&\" Score\",'C. PoC Adj Factor Scoring'!$E$4:$J$4,0),TRUE)","v":1},{"$f":"VLOOKUP(OFFSET($B:$B,,MATCH(J$4,$B$4:$F$4,0)-1),OFFSET('C. PoC Adj Factor Scoring'!$E$5:$J$282,,MATCH(J$4,'C. PoC Adj Factor Scoring'!$E$3:$AH$3,0)-1),MATCH(J$2&\" Score\",'C. PoC Adj Factor Scoring'!$E$4:$J$4,0),TRUE)","v":1},{"$f":"VLOOKUP(OFFSET($B:$B,,MATCH(K$4,$B$4:$F$4,0)-1),OFFSET('C. PoC Adj Factor Scoring'!$E$5:$J$282,,MATCH(K$4,'C. PoC Adj Factor Scoring'!$E$3:$AH$3,0)-1),MATCH(K$2&\" Score\",'C. PoC Adj Factor Scoring'!$E$4:$J$4,0),TRUE)","v":1},{"$f":"VLOOKUP(OFFSET($B:$B,,MATCH(L$4,$B$4:$F$4,0)-1),OFFSET('C. PoC Adj Factor Scoring'!$E$5:$J$282,,MATCH(L$4,'C. PoC Adj Factor Scoring'!$E$3:$AH$3,0)-1),MATCH(L$2&\" Score\",'C. PoC Adj Factor Scoring'!$E$4:$J$4,0),TRUE)","v":1},{"$f":"VLOOKUP(OFFSET($B:$B,,MATCH(M$4,$B$4:$F$4,0)-1),OFFSET('C. PoC Adj Factor Scoring'!$E$5:$J$282,,MATCH(M$4,'C. PoC Adj Factor Scoring'!$E$3:$AH$3,0)-1),MATCH(M$2&\" Score\",'C. PoC Adj Factor Scoring'!$E$4:$J$4,0),TRUE)","v":1},{"$f":"VLOOKUP(OFFSET($B:$B,,MATCH(N$4,$B$4:$F$4,0)-1),OFFSET('C. PoC Adj Factor Scoring'!$E$5:$J$282,,MATCH(N$4,'C. PoC Adj Factor Scoring'!$E$3:$AH$3,0)-1),MATCH(N$2&\" Score\",'C. PoC Adj Factor Scoring'!$E$4:$J$4,0),TRUE)","v":1},{"$f":"VLOOKUP(OFFSET($B:$B,,MATCH(O$4,$B$4:$F$4,0)-1),OFFSET('C. PoC Adj Factor Scoring'!$E$5:$J$282,,MATCH(O$4,'C. PoC Adj Factor Scoring'!$E$3:$AH$3,0)-1),MATCH(O$2&\" Score\",'C. PoC Adj Factor Scoring'!$E$4:$J$4,0),TRUE)","v":1},{"$f":"VLOOKUP(OFFSET($B:$B,,MATCH(P$4,$B$4:$F$4,0)-1),OFFSET('C. PoC Adj Factor Scoring'!$E$5:$J$282,,MATCH(P$4,'C. PoC Adj Factor Scoring'!$E$3:$AH$3,0)-1),MATCH(P$2&\" Score\",'C. PoC Adj Factor Scoring'!$E$4:$J$4,0),TRUE)","v":1},{"$f":"VLOOKUP(OFFSET($B:$B,,MATCH(Q$4,$B$4:$F$4,0)-1),OFFSET('C. PoC Adj Factor Scoring'!$E$5:$J$282,,MATCH(Q$4,'C. PoC Adj Factor Scoring'!$E$3:$AH$3,0)-1),MATCH(Q$2&\" Score\",'C. PoC Adj Factor Scoring'!$E$4:$J$4,0),TRUE)","v":1},{"$f":"VLOOKUP(OFFSET($B:$B,,MATCH(R$4,$B$4:$F$4,0)-1),OFFSET('C. PoC Adj Factor Scoring'!$E$5:$J$282,,MATCH(R$4,'C. PoC Adj Factor Scoring'!$E$3:$AH$3,0)-1),MATCH(R$2&\" Score\",'C. PoC Adj Factor Scoring'!$E$4:$J$4,0),TRUE)","v":1},{"$f":"VLOOKUP(OFFSET($B:$B,,MATCH(S$4,$B$4:$F$4,0)-1),OFFSET('C. PoC Adj Factor Scoring'!$E$5:$J$282,,MATCH(S$4,'C. PoC Adj Factor Scoring'!$E$3:$AH$3,0)-1),MATCH(S$2&\" Score\",'C. PoC Adj Factor Scoring'!$E$4:$J$4,0),TRUE)","v":1},{"$f":"VLOOKUP(OFFSET($B:$B,,MATCH(T$4,$B$4:$F$4,0)-1),OFFSET('C. PoC Adj Factor Scoring'!$E$5:$J$282,,MATCH(T$4,'C. PoC Adj Factor Scoring'!$E$3:$AH$3,0)-1),MATCH(T$2&\" Score\",'C. PoC Adj Factor Scoring'!$E$4:$J$4,0),TRUE)","v":1},{"$f":"VLOOKUP(OFFSET($B:$B,,MATCH(U$4,$B$4:$F$4,0)-1),OFFSET('C. PoC Adj Factor Scoring'!$E$5:$J$282,,MATCH(U$4,'C. PoC Adj Factor Scoring'!$E$3:$AH$3,0)-1),MATCH(U$2&\" Score\",'C. PoC Adj Factor Scoring'!$E$4:$J$4,0),TRUE)","v":1},{"$f":"VLOOKUP(OFFSET($B:$B,,MATCH(V$4,$B$4:$F$4,0)-1),OFFSET('C. PoC Adj Factor Scoring'!$E$5:$J$282,,MATCH(V$4,'C. PoC Adj Factor Scoring'!$E$3:$AH$3,0)-1),MATCH(V$2&\" Score\",'C. PoC Adj Factor Scoring'!$E$4:$J$4,0),TRUE)","v":1},{"$f":"VLOOKUP(OFFSET($B:$B,,MATCH(W$4,$B$4:$F$4,0)-1),OFFSET('C. PoC Adj Factor Scoring'!$E$5:$J$282,,MATCH(W$4,'C. PoC Adj Factor Scoring'!$E$3:$AH$3,0)-1),MATCH(W$2&\" Score\",'C. PoC Adj Factor Scoring'!$E$4:$J$4,0),TRUE)","v":1},{"$f":"VLOOKUP(OFFSET($B:$B,,MATCH(X$4,$B$4:$F$4,0)-1),OFFSET('C. PoC Adj Factor Scoring'!$E$5:$J$282,,MATCH(X$4,'C. PoC Adj Factor Scoring'!$E$3:$AH$3,0)-1),MATCH(X$2&\" Score\",'C. PoC Adj Factor Scoring'!$E$4:$J$4,0),TRUE)","v":1},{"$f":"VLOOKUP(OFFSET($B:$B,,MATCH(Y$4,$B$4:$F$4,0)-1),OFFSET('C. PoC Adj Factor Scoring'!$E$5:$J$282,,MATCH(Y$4,'C. PoC Adj Factor Scoring'!$E$3:$AH$3,0)-1),MATCH(Y$2&\" Score\",'C. PoC Adj Factor Scoring'!$E$4:$J$4,0),TRUE)","v":1},{"$f":"VLOOKUP(OFFSET($B:$B,,MATCH(Z$4,$B$4:$F$4,0)-1),OFFSET('C. PoC Adj Factor Scoring'!$E$5:$J$282,,MATCH(Z$4,'C. PoC Adj Factor Scoring'!$E$3:$AH$3,0)-1),MATCH(Z$2&\" Score\",'C. PoC Adj Factor Scoring'!$E$4:$J$4,0),TRUE)","v":1},{"$f":"VLOOKUP(OFFSET($B:$B,,MATCH(AA$4,$B$4:$F$4,0)-1),OFFSET('C. PoC Adj Factor Scoring'!$E$5:$J$282,,MATCH(AA$4,'C. PoC Adj Factor Scoring'!$E$3:$AH$3,0)-1),MATCH(AA$2&\" Score\",'C. PoC Adj Factor Scoring'!$E$4:$J$4,0),TRUE)","v":3},{"$f":"VLOOKUP(OFFSET($B:$B,,MATCH(AB$4,$B$4:$F$4,0)-1),OFFSET('C. PoC Adj Factor Scoring'!$E$5:$J$282,,MATCH(AB$4,'C. PoC Adj Factor Scoring'!$E$3:$AH$3,0)-1),MATCH(AB$2&\" Score\",'C. PoC Adj Factor Scoring'!$E$4:$J$4,0),TRUE)","v":1},{"$f":"VLOOKUP(OFFSET($B:$B,,MATCH(AC$4,$B$4:$F$4,0)-1),OFFSET('C. PoC Adj Factor Scoring'!$E$5:$J$282,,MATCH(AC$4,'C. PoC Adj Factor Scoring'!$E$3:$AH$3,0)-1),MATCH(AC$2&\" Score\",'C. PoC Adj Factor Scoring'!$E$4:$J$4,0),TRUE)","v":1},{"$f":"VLOOKUP(OFFSET($B:$B,,MATCH(AD$4,$B$4:$F$4,0)-1),OFFSET('C. PoC Adj Factor Scoring'!$E$5:$J$282,,MATCH(AD$4,'C. PoC Adj Factor Scoring'!$E$3:$AH$3,0)-1),MATCH(AD$2&\" Score\",'C. PoC Adj Factor Scoring'!$E$4:$J$4,0),TRUE)","v":1},{"$f":"VLOOKUP(OFFSET($B:$B,,MATCH(AE$4,$B$4:$F$4,0)-1),OFFSET('C. PoC Adj Factor Scoring'!$E$5:$J$282,,MATCH(AE$4,'C. PoC Adj Factor Scoring'!$E$3:$AH$3,0)-1),MATCH(AE$2&\" Score\",'C. PoC Adj Factor Scoring'!$E$4:$J$4,0),TRUE)","v":1}]
[{"$f":"'A. Population Info'!A501","v":1001505510},{"$f":"'A. Population Info'!L501","v":"OIL"},{"$f":"'A. Population Info'!M501","v":0},{"$f":"'A. Population Info'!N501","v":0},{"$f":"'A. Population Info'!O501","v":0},{"$f":"'A. Population Info'!P501","v":0},{"$f":"VLOOKUP(OFFSET($B:$B,,MATCH(G$4,$B$4:$F$4,0)-1),OFFSET('C. PoC Adj Factor Scoring'!$E$5:$J$282,,MATCH(G$4,'C. PoC Adj Factor Scoring'!$E$3:$AH$3,0)-1),MATCH(G$2&\" Score\",'C. PoC Adj Factor Scoring'!$E$4:$J$4,0),TRUE)","v":4},{"$f":"VLOOKUP(OFFSET($B:$B,,MATCH(H$4,$B$4:$F$4,0)-1),OFFSET('C. PoC Adj Factor Scoring'!$E$5:$J$282,,MATCH(H$4,'C. PoC Adj Factor Scoring'!$E$3:$AH$3,0)-1),MATCH(H$2&\" Score\",'C. PoC Adj Factor Scoring'!$E$4:$J$4,0),TRUE)","v":1},{"$f":"VLOOKUP(OFFSET($B:$B,,MATCH(I$4,$B$4:$F$4,0)-1),OFFSET('C. PoC Adj Factor Scoring'!$E$5:$J$282,,MATCH(I$4,'C. PoC Adj Factor Scoring'!$E$3:$AH$3,0)-1),MATCH(I$2&\" Score\",'C. PoC Adj Factor Scoring'!$E$4:$J$4,0),TRUE)","v":1},{"$f":"VLOOKUP(OFFSET($B:$B,,MATCH(J$4,$B$4:$F$4,0)-1),OFFSET('C. PoC Adj Factor Scoring'!$E$5:$J$282,,MATCH(J$4,'C. PoC Adj Factor Scoring'!$E$3:$AH$3,0)-1),MATCH(J$2&\" Score\",'C. PoC Adj Factor Scoring'!$E$4:$J$4,0),TRUE)","v":1},{"$f":"VLOOKUP(OFFSET($B:$B,,MATCH(K$4,$B$4:$F$4,0)-1),OFFSET('C. PoC Adj Factor Scoring'!$E$5:$J$282,,MATCH(K$4,'C. PoC Adj Factor Scoring'!$E$3:$AH$3,0)-1),MATCH(K$2&\" Score\",'C. PoC Adj Factor Scoring'!$E$4:$J$4,0),TRUE)","v":1},{"$f":"VLOOKUP(OFFSET($B:$B,,MATCH(L$4,$B$4:$F$4,0)-1),OFFSET('C. PoC Adj Factor Scoring'!$E$5:$J$282,,MATCH(L$4,'C. PoC Adj Factor Scoring'!$E$3:$AH$3,0)-1),MATCH(L$2&\" Score\",'C. PoC Adj Factor Scoring'!$E$4:$J$4,0),TRUE)","v":1},{"$f":"VLOOKUP(OFFSET($B:$B,,MATCH(M$4,$B$4:$F$4,0)-1),OFFSET('C. PoC Adj Factor Scoring'!$E$5:$J$282,,MATCH(M$4,'C. PoC Adj Factor Scoring'!$E$3:$AH$3,0)-1),MATCH(M$2&\" Score\",'C. PoC Adj Factor Scoring'!$E$4:$J$4,0),TRUE)","v":1},{"$f":"VLOOKUP(OFFSET($B:$B,,MATCH(N$4,$B$4:$F$4,0)-1),OFFSET('C. PoC Adj Factor Scoring'!$E$5:$J$282,,MATCH(N$4,'C. PoC Adj Factor Scoring'!$E$3:$AH$3,0)-1),MATCH(N$2&\" Score\",'C. PoC Adj Factor Scoring'!$E$4:$J$4,0),TRUE)","v":1},{"$f":"VLOOKUP(OFFSET($B:$B,,MATCH(O$4,$B$4:$F$4,0)-1),OFFSET('C. PoC Adj Factor Scoring'!$E$5:$J$282,,MATCH(O$4,'C. PoC Adj Factor Scoring'!$E$3:$AH$3,0)-1),MATCH(O$2&\" Score\",'C. PoC Adj Factor Scoring'!$E$4:$J$4,0),TRUE)","v":1},{"$f":"VLOOKUP(OFFSET($B:$B,,MATCH(P$4,$B$4:$F$4,0)-1),OFFSET('C. PoC Adj Factor Scoring'!$E$5:$J$282,,MATCH(P$4,'C. PoC Adj Factor Scoring'!$E$3:$AH$3,0)-1),MATCH(P$2&\" Score\",'C. PoC Adj Factor Scoring'!$E$4:$J$4,0),TRUE)","v":1},{"$f":"VLOOKUP(OFFSET($B:$B,,MATCH(Q$4,$B$4:$F$4,0)-1),OFFSET('C. PoC Adj Factor Scoring'!$E$5:$J$282,,MATCH(Q$4,'C. PoC Adj Factor Scoring'!$E$3:$AH$3,0)-1),MATCH(Q$2&\" Score\",'C. PoC Adj Factor Scoring'!$E$4:$J$4,0),TRUE)","v":1},{"$f":"VLOOKUP(OFFSET($B:$B,,MATCH(R$4,$B$4:$F$4,0)-1),OFFSET('C. PoC Adj Factor Scoring'!$E$5:$J$282,,MATCH(R$4,'C. PoC Adj Factor Scoring'!$E$3:$AH$3,0)-1),MATCH(R$2&\" Score\",'C. PoC Adj Factor Scoring'!$E$4:$J$4,0),TRUE)","v":1},{"$f":"VLOOKUP(OFFSET($B:$B,,MATCH(S$4,$B$4:$F$4,0)-1),OFFSET('C. PoC Adj Factor Scoring'!$E$5:$J$282,,MATCH(S$4,'C. PoC Adj Factor Scoring'!$E$3:$AH$3,0)-1),MATCH(S$2&\" Score\",'C. PoC Adj Factor Scoring'!$E$4:$J$4,0),TRUE)","v":1},{"$f":"VLOOKUP(OFFSET($B:$B,,MATCH(T$4,$B$4:$F$4,0)-1),OFFSET('C. PoC Adj Factor Scoring'!$E$5:$J$282,,MATCH(T$4,'C. PoC Adj Factor Scoring'!$E$3:$AH$3,0)-1),MATCH(T$2&\" Score\",'C. PoC Adj Factor Scoring'!$E$4:$J$4,0),TRUE)","v":1},{"$f":"VLOOKUP(OFFSET($B:$B,,MATCH(U$4,$B$4:$F$4,0)-1),OFFSET('C. PoC Adj Factor Scoring'!$E$5:$J$282,,MATCH(U$4,'C. PoC Adj Factor Scoring'!$E$3:$AH$3,0)-1),MATCH(U$2&\" Score\",'C. PoC Adj Factor Scoring'!$E$4:$J$4,0),TRUE)","v":1},{"$f":"VLOOKUP(OFFSET($B:$B,,MATCH(V$4,$B$4:$F$4,0)-1),OFFSET('C. PoC Adj Factor Scoring'!$E$5:$J$282,,MATCH(V$4,'C. PoC Adj Factor Scoring'!$E$3:$AH$3,0)-1),MATCH(V$2&\" Score\",'C. PoC Adj Factor Scoring'!$E$4:$J$4,0),TRUE)","v":1},{"$f":"VLOOKUP(OFFSET($B:$B,,MATCH(W$4,$B$4:$F$4,0)-1),OFFSET('C. PoC Adj Factor Scoring'!$E$5:$J$282,,MATCH(W$4,'C. PoC Adj Factor Scoring'!$E$3:$AH$3,0)-1),MATCH(W$2&\" Score\",'C. PoC Adj Factor Scoring'!$E$4:$J$4,0),TRUE)","v":1},{"$f":"VLOOKUP(OFFSET($B:$B,,MATCH(X$4,$B$4:$F$4,0)-1),OFFSET('C. PoC Adj Factor Scoring'!$E$5:$J$282,,MATCH(X$4,'C. PoC Adj Factor Scoring'!$E$3:$AH$3,0)-1),MATCH(X$2&\" Score\",'C. PoC Adj Factor Scoring'!$E$4:$J$4,0),TRUE)","v":1},{"$f":"VLOOKUP(OFFSET($B:$B,,MATCH(Y$4,$B$4:$F$4,0)-1),OFFSET('C. PoC Adj Factor Scoring'!$E$5:$J$282,,MATCH(Y$4,'C. PoC Adj Factor Scoring'!$E$3:$AH$3,0)-1),MATCH(Y$2&\" Score\",'C. PoC Adj Factor Scoring'!$E$4:$J$4,0),TRUE)","v":1},{"$f":"VLOOKUP(OFFSET($B:$B,,MATCH(Z$4,$B$4:$F$4,0)-1),OFFSET('C. PoC Adj Factor Scoring'!$E$5:$J$282,,MATCH(Z$4,'C. PoC Adj Factor Scoring'!$E$3:$AH$3,0)-1),MATCH(Z$2&\" Score\",'C. PoC Adj Factor Scoring'!$E$4:$J$4,0),TRUE)","v":1},{"$f":"VLOOKUP(OFFSET($B:$B,,MATCH(AA$4,$B$4:$F$4,0)-1),OFFSET('C. PoC Adj Factor Scoring'!$E$5:$J$282,,MATCH(AA$4,'C. PoC Adj Factor Scoring'!$E$3:$AH$3,0)-1),MATCH(AA$2&\" Score\",'C. PoC Adj Factor Scoring'!$E$4:$J$4,0),TRUE)","v":3},{"$f":"VLOOKUP(OFFSET($B:$B,,MATCH(AB$4,$B$4:$F$4,0)-1),OFFSET('C. PoC Adj Factor Scoring'!$E$5:$J$282,,MATCH(AB$4,'C. PoC Adj Factor Scoring'!$E$3:$AH$3,0)-1),MATCH(AB$2&\" Score\",'C. PoC Adj Factor Scoring'!$E$4:$J$4,0),TRUE)","v":1},{"$f":"VLOOKUP(OFFSET($B:$B,,MATCH(AC$4,$B$4:$F$4,0)-1),OFFSET('C. PoC Adj Factor Scoring'!$E$5:$J$282,,MATCH(AC$4,'C. PoC Adj Factor Scoring'!$E$3:$AH$3,0)-1),MATCH(AC$2&\" Score\",'C. PoC Adj Factor Scoring'!$E$4:$J$4,0),TRUE)","v":1},{"$f":"VLOOKUP(OFFSET($B:$B,,MATCH(AD$4,$B$4:$F$4,0)-1),OFFSET('C. PoC Adj Factor Scoring'!$E$5:$J$282,,MATCH(AD$4,'C. PoC Adj Factor Scoring'!$E$3:$AH$3,0)-1),MATCH(AD$2&\" Score\",'C. PoC Adj Factor Scoring'!$E$4:$J$4,0),TRUE)","v":1},{"$f":"VLOOKUP(OFFSET($B:$B,,MATCH(AE$4,$B$4:$F$4,0)-1),OFFSET('C. PoC Adj Factor Scoring'!$E$5:$J$282,,MATCH(AE$4,'C. PoC Adj Factor Scoring'!$E$3:$AH$3,0)-1),MATCH(AE$2&\" Score\",'C. PoC Adj Factor Scoring'!$E$4:$J$4,0),TRUE)","v":1}]
[{"$f":"'A. Population Info'!A502","v":1001505511},{"$f":"'A. Population Info'!L502","v":"OIL"},{"$f":"'A. Population Info'!M502","v":0},{"$f":"'A. Population Info'!N502","v":0},{"$f":"'A. Population Info'!O502","v":0},{"$f":"'A. Population Info'!P502","v":0},{"$f":"VLOOKUP(OFFSET($B:$B,,MATCH(G$4,$B$4:$F$4,0)-1),OFFSET('C. PoC Adj Factor Scoring'!$E$5:$J$282,,MATCH(G$4,'C. PoC Adj Factor Scoring'!$E$3:$AH$3,0)-1),MATCH(G$2&\" Score\",'C. PoC Adj Factor Scoring'!$E$4:$J$4,0),TRUE)","v":4},{"$f":"VLOOKUP(OFFSET($B:$B,,MATCH(H$4,$B$4:$F$4,0)-1),OFFSET('C. PoC Adj Factor Scoring'!$E$5:$J$282,,MATCH(H$4,'C. PoC Adj Factor Scoring'!$E$3:$AH$3,0)-1),MATCH(H$2&\" Score\",'C. PoC Adj Factor Scoring'!$E$4:$J$4,0),TRUE)","v":1},{"$f":"VLOOKUP(OFFSET($B:$B,,MATCH(I$4,$B$4:$F$4,0)-1),OFFSET('C. PoC Adj Factor Scoring'!$E$5:$J$282,,MATCH(I$4,'C. PoC Adj Factor Scoring'!$E$3:$AH$3,0)-1),MATCH(I$2&\" Score\",'C. PoC Adj Factor Scoring'!$E$4:$J$4,0),TRUE)","v":1},{"$f":"VLOOKUP(OFFSET($B:$B,,MATCH(J$4,$B$4:$F$4,0)-1),OFFSET('C. PoC Adj Factor Scoring'!$E$5:$J$282,,MATCH(J$4,'C. PoC Adj Factor Scoring'!$E$3:$AH$3,0)-1),MATCH(J$2&\" Score\",'C. PoC Adj Factor Scoring'!$E$4:$J$4,0),TRUE)","v":1},{"$f":"VLOOKUP(OFFSET($B:$B,,MATCH(K$4,$B$4:$F$4,0)-1),OFFSET('C. PoC Adj Factor Scoring'!$E$5:$J$282,,MATCH(K$4,'C. PoC Adj Factor Scoring'!$E$3:$AH$3,0)-1),MATCH(K$2&\" Score\",'C. PoC Adj Factor Scoring'!$E$4:$J$4,0),TRUE)","v":1},{"$f":"VLOOKUP(OFFSET($B:$B,,MATCH(L$4,$B$4:$F$4,0)-1),OFFSET('C. PoC Adj Factor Scoring'!$E$5:$J$282,,MATCH(L$4,'C. PoC Adj Factor Scoring'!$E$3:$AH$3,0)-1),MATCH(L$2&\" Score\",'C. PoC Adj Factor Scoring'!$E$4:$J$4,0),TRUE)","v":1},{"$f":"VLOOKUP(OFFSET($B:$B,,MATCH(M$4,$B$4:$F$4,0)-1),OFFSET('C. PoC Adj Factor Scoring'!$E$5:$J$282,,MATCH(M$4,'C. PoC Adj Factor Scoring'!$E$3:$AH$3,0)-1),MATCH(M$2&\" Score\",'C. PoC Adj Factor Scoring'!$E$4:$J$4,0),TRUE)","v":1},{"$f":"VLOOKUP(OFFSET($B:$B,,MATCH(N$4,$B$4:$F$4,0)-1),OFFSET('C. PoC Adj Factor Scoring'!$E$5:$J$282,,MATCH(N$4,'C. PoC Adj Factor Scoring'!$E$3:$AH$3,0)-1),MATCH(N$2&\" Score\",'C. PoC Adj Factor Scoring'!$E$4:$J$4,0),TRUE)","v":1},{"$f":"VLOOKUP(OFFSET($B:$B,,MATCH(O$4,$B$4:$F$4,0)-1),OFFSET('C. PoC Adj Factor Scoring'!$E$5:$J$282,,MATCH(O$4,'C. PoC Adj Factor Scoring'!$E$3:$AH$3,0)-1),MATCH(O$2&\" Score\",'C. PoC Adj Factor Scoring'!$E$4:$J$4,0),TRUE)","v":1},{"$f":"VLOOKUP(OFFSET($B:$B,,MATCH(P$4,$B$4:$F$4,0)-1),OFFSET('C. PoC Adj Factor Scoring'!$E$5:$J$282,,MATCH(P$4,'C. PoC Adj Factor Scoring'!$E$3:$AH$3,0)-1),MATCH(P$2&\" Score\",'C. PoC Adj Factor Scoring'!$E$4:$J$4,0),TRUE)","v":1},{"$f":"VLOOKUP(OFFSET($B:$B,,MATCH(Q$4,$B$4:$F$4,0)-1),OFFSET('C. PoC Adj Factor Scoring'!$E$5:$J$282,,MATCH(Q$4,'C. PoC Adj Factor Scoring'!$E$3:$AH$3,0)-1),MATCH(Q$2&\" Score\",'C. PoC Adj Factor Scoring'!$E$4:$J$4,0),TRUE)","v":1},{"$f":"VLOOKUP(OFFSET($B:$B,,MATCH(R$4,$B$4:$F$4,0)-1),OFFSET('C. PoC Adj Factor Scoring'!$E$5:$J$282,,MATCH(R$4,'C. PoC Adj Factor Scoring'!$E$3:$AH$3,0)-1),MATCH(R$2&\" Score\",'C. PoC Adj Factor Scoring'!$E$4:$J$4,0),TRUE)","v":1},{"$f":"VLOOKUP(OFFSET($B:$B,,MATCH(S$4,$B$4:$F$4,0)-1),OFFSET('C. PoC Adj Factor Scoring'!$E$5:$J$282,,MATCH(S$4,'C. PoC Adj Factor Scoring'!$E$3:$AH$3,0)-1),MATCH(S$2&\" Score\",'C. PoC Adj Factor Scoring'!$E$4:$J$4,0),TRUE)","v":1},{"$f":"VLOOKUP(OFFSET($B:$B,,MATCH(T$4,$B$4:$F$4,0)-1),OFFSET('C. PoC Adj Factor Scoring'!$E$5:$J$282,,MATCH(T$4,'C. PoC Adj Factor Scoring'!$E$3:$AH$3,0)-1),MATCH(T$2&\" Score\",'C. PoC Adj Factor Scoring'!$E$4:$J$4,0),TRUE)","v":1},{"$f":"VLOOKUP(OFFSET($B:$B,,MATCH(U$4,$B$4:$F$4,0)-1),OFFSET('C. PoC Adj Factor Scoring'!$E$5:$J$282,,MATCH(U$4,'C. PoC Adj Factor Scoring'!$E$3:$AH$3,0)-1),MATCH(U$2&\" Score\",'C. PoC Adj Factor Scoring'!$E$4:$J$4,0),TRUE)","v":1},{"$f":"VLOOKUP(OFFSET($B:$B,,MATCH(V$4,$B$4:$F$4,0)-1),OFFSET('C. PoC Adj Factor Scoring'!$E$5:$J$282,,MATCH(V$4,'C. PoC Adj Factor Scoring'!$E$3:$AH$3,0)-1),MATCH(V$2&\" Score\",'C. PoC Adj Factor Scoring'!$E$4:$J$4,0),TRUE)","v":1},{"$f":"VLOOKUP(OFFSET($B:$B,,MATCH(W$4,$B$4:$F$4,0)-1),OFFSET('C. PoC Adj Factor Scoring'!$E$5:$J$282,,MATCH(W$4,'C. PoC Adj Factor Scoring'!$E$3:$AH$3,0)-1),MATCH(W$2&\" Score\",'C. PoC Adj Factor Scoring'!$E$4:$J$4,0),TRUE)","v":1},{"$f":"VLOOKUP(OFFSET($B:$B,,MATCH(X$4,$B$4:$F$4,0)-1),OFFSET('C. PoC Adj Factor Scoring'!$E$5:$J$282,,MATCH(X$4,'C. PoC Adj Factor Scoring'!$E$3:$AH$3,0)-1),MATCH(X$2&\" Score\",'C. PoC Adj Factor Scoring'!$E$4:$J$4,0),TRUE)","v":1},{"$f":"VLOOKUP(OFFSET($B:$B,,MATCH(Y$4,$B$4:$F$4,0)-1),OFFSET('C. PoC Adj Factor Scoring'!$E$5:$J$282,,MATCH(Y$4,'C. PoC Adj Factor Scoring'!$E$3:$AH$3,0)-1),MATCH(Y$2&\" Score\",'C. PoC Adj Factor Scoring'!$E$4:$J$4,0),TRUE)","v":1},{"$f":"VLOOKUP(OFFSET($B:$B,,MATCH(Z$4,$B$4:$F$4,0)-1),OFFSET('C. PoC Adj Factor Scoring'!$E$5:$J$282,,MATCH(Z$4,'C. PoC Adj Factor Scoring'!$E$3:$AH$3,0)-1),MATCH(Z$2&\" Score\",'C. PoC Adj Factor Scoring'!$E$4:$J$4,0),TRUE)","v":1},{"$f":"VLOOKUP(OFFSET($B:$B,,MATCH(AA$4,$B$4:$F$4,0)-1),OFFSET('C. PoC Adj Factor Scoring'!$E$5:$J$282,,MATCH(AA$4,'C. PoC Adj Factor Scoring'!$E$3:$AH$3,0)-1),MATCH(AA$2&\" Score\",'C. PoC Adj Factor Scoring'!$E$4:$J$4,0),TRUE)","v":3},{"$f":"VLOOKUP(OFFSET($B:$B,,MATCH(AB$4,$B$4:$F$4,0)-1),OFFSET('C. PoC Adj Factor Scoring'!$E$5:$J$282,,MATCH(AB$4,'C. PoC Adj Factor Scoring'!$E$3:$AH$3,0)-1),MATCH(AB$2&\" Score\",'C. PoC Adj Factor Scoring'!$E$4:$J$4,0),TRUE)","v":1},{"$f":"VLOOKUP(OFFSET($B:$B,,MATCH(AC$4,$B$4:$F$4,0)-1),OFFSET('C. PoC Adj Factor Scoring'!$E$5:$J$282,,MATCH(AC$4,'C. PoC Adj Factor Scoring'!$E$3:$AH$3,0)-1),MATCH(AC$2&\" Score\",'C. PoC Adj Factor Scoring'!$E$4:$J$4,0),TRUE)","v":1},{"$f":"VLOOKUP(OFFSET($B:$B,,MATCH(AD$4,$B$4:$F$4,0)-1),OFFSET('C. PoC Adj Factor Scoring'!$E$5:$J$282,,MATCH(AD$4,'C. PoC Adj Factor Scoring'!$E$3:$AH$3,0)-1),MATCH(AD$2&\" Score\",'C. PoC Adj Factor Scoring'!$E$4:$J$4,0),TRUE)","v":1},{"$f":"VLOOKUP(OFFSET($B:$B,,MATCH(AE$4,$B$4:$F$4,0)-1),OFFSET('C. PoC Adj Factor Scoring'!$E$5:$J$282,,MATCH(AE$4,'C. PoC Adj Factor Scoring'!$E$3:$AH$3,0)-1),MATCH(AE$2&\" Score\",'C. PoC Adj Factor Scoring'!$E$4:$J$4,0),TRUE)","v":1}]
[{"$f":"'A. Population Info'!A503","v":1001505512},{"$f":"'A. Population Info'!L503","v":"OIL"},{"$f":"'A. Population Info'!M503","v":0},{"$f":"'A. Population Info'!N503","v":0},{"$f":"'A. Population Info'!O503","v":0},{"$f":"'A. Population Info'!P503","v":0},{"$f":"VLOOKUP(OFFSET($B:$B,,MATCH(G$4,$B$4:$F$4,0)-1),OFFSET('C. PoC Adj Factor Scoring'!$E$5:$J$282,,MATCH(G$4,'C. PoC Adj Factor Scoring'!$E$3:$AH$3,0)-1),MATCH(G$2&\" Score\",'C. PoC Adj Factor Scoring'!$E$4:$J$4,0),TRUE)","v":4},{"$f":"VLOOKUP(OFFSET($B:$B,,MATCH(H$4,$B$4:$F$4,0)-1),OFFSET('C. PoC Adj Factor Scoring'!$E$5:$J$282,,MATCH(H$4,'C. PoC Adj Factor Scoring'!$E$3:$AH$3,0)-1),MATCH(H$2&\" Score\",'C. PoC Adj Factor Scoring'!$E$4:$J$4,0),TRUE)","v":1},{"$f":"VLOOKUP(OFFSET($B:$B,,MATCH(I$4,$B$4:$F$4,0)-1),OFFSET('C. PoC Adj Factor Scoring'!$E$5:$J$282,,MATCH(I$4,'C. PoC Adj Factor Scoring'!$E$3:$AH$3,0)-1),MATCH(I$2&\" Score\",'C. PoC Adj Factor Scoring'!$E$4:$J$4,0),TRUE)","v":1},{"$f":"VLOOKUP(OFFSET($B:$B,,MATCH(J$4,$B$4:$F$4,0)-1),OFFSET('C. PoC Adj Factor Scoring'!$E$5:$J$282,,MATCH(J$4,'C. PoC Adj Factor Scoring'!$E$3:$AH$3,0)-1),MATCH(J$2&\" Score\",'C. PoC Adj Factor Scoring'!$E$4:$J$4,0),TRUE)","v":1},{"$f":"VLOOKUP(OFFSET($B:$B,,MATCH(K$4,$B$4:$F$4,0)-1),OFFSET('C. PoC Adj Factor Scoring'!$E$5:$J$282,,MATCH(K$4,'C. PoC Adj Factor Scoring'!$E$3:$AH$3,0)-1),MATCH(K$2&\" Score\",'C. PoC Adj Factor Scoring'!$E$4:$J$4,0),TRUE)","v":1},{"$f":"VLOOKUP(OFFSET($B:$B,,MATCH(L$4,$B$4:$F$4,0)-1),OFFSET('C. PoC Adj Factor Scoring'!$E$5:$J$282,,MATCH(L$4,'C. PoC Adj Factor Scoring'!$E$3:$AH$3,0)-1),MATCH(L$2&\" Score\",'C. PoC Adj Factor Scoring'!$E$4:$J$4,0),TRUE)","v":1},{"$f":"VLOOKUP(OFFSET($B:$B,,MATCH(M$4,$B$4:$F$4,0)-1),OFFSET('C. PoC Adj Factor Scoring'!$E$5:$J$282,,MATCH(M$4,'C. PoC Adj Factor Scoring'!$E$3:$AH$3,0)-1),MATCH(M$2&\" Score\",'C. PoC Adj Factor Scoring'!$E$4:$J$4,0),TRUE)","v":1},{"$f":"VLOOKUP(OFFSET($B:$B,,MATCH(N$4,$B$4:$F$4,0)-1),OFFSET('C. PoC Adj Factor Scoring'!$E$5:$J$282,,MATCH(N$4,'C. PoC Adj Factor Scoring'!$E$3:$AH$3,0)-1),MATCH(N$2&\" Score\",'C. PoC Adj Factor Scoring'!$E$4:$J$4,0),TRUE)","v":1},{"$f":"VLOOKUP(OFFSET($B:$B,,MATCH(O$4,$B$4:$F$4,0)-1),OFFSET('C. PoC Adj Factor Scoring'!$E$5:$J$282,,MATCH(O$4,'C. PoC Adj Factor Scoring'!$E$3:$AH$3,0)-1),MATCH(O$2&\" Score\",'C. PoC Adj Factor Scoring'!$E$4:$J$4,0),TRUE)","v":1},{"$f":"VLOOKUP(OFFSET($B:$B,,MATCH(P$4,$B$4:$F$4,0)-1),OFFSET('C. PoC Adj Factor Scoring'!$E$5:$J$282,,MATCH(P$4,'C. PoC Adj Factor Scoring'!$E$3:$AH$3,0)-1),MATCH(P$2&\" Score\",'C. PoC Adj Factor Scoring'!$E$4:$J$4,0),TRUE)","v":1},{"$f":"VLOOKUP(OFFSET($B:$B,,MATCH(Q$4,$B$4:$F$4,0)-1),OFFSET('C. PoC Adj Factor Scoring'!$E$5:$J$282,,MATCH(Q$4,'C. PoC Adj Factor Scoring'!$E$3:$AH$3,0)-1),MATCH(Q$2&\" Score\",'C. PoC Adj Factor Scoring'!$E$4:$J$4,0),TRUE)","v":1},{"$f":"VLOOKUP(OFFSET($B:$B,,MATCH(R$4,$B$4:$F$4,0)-1),OFFSET('C. PoC Adj Factor Scoring'!$E$5:$J$282,,MATCH(R$4,'C. PoC Adj Factor Scoring'!$E$3:$AH$3,0)-1),MATCH(R$2&\" Score\",'C. PoC Adj Factor Scoring'!$E$4:$J$4,0),TRUE)","v":1},{"$f":"VLOOKUP(OFFSET($B:$B,,MATCH(S$4,$B$4:$F$4,0)-1),OFFSET('C. PoC Adj Factor Scoring'!$E$5:$J$282,,MATCH(S$4,'C. PoC Adj Factor Scoring'!$E$3:$AH$3,0)-1),MATCH(S$2&\" Score\",'C. PoC Adj Factor Scoring'!$E$4:$J$4,0),TRUE)","v":1},{"$f":"VLOOKUP(OFFSET($B:$B,,MATCH(T$4,$B$4:$F$4,0)-1),OFFSET('C. PoC Adj Factor Scoring'!$E$5:$J$282,,MATCH(T$4,'C. PoC Adj Factor Scoring'!$E$3:$AH$3,0)-1),MATCH(T$2&\" Score\",'C. PoC Adj Factor Scoring'!$E$4:$J$4,0),TRUE)","v":1},{"$f":"VLOOKUP(OFFSET($B:$B,,MATCH(U$4,$B$4:$F$4,0)-1),OFFSET('C. PoC Adj Factor Scoring'!$E$5:$J$282,,MATCH(U$4,'C. PoC Adj Factor Scoring'!$E$3:$AH$3,0)-1),MATCH(U$2&\" Score\",'C. PoC Adj Factor Scoring'!$E$4:$J$4,0),TRUE)","v":1},{"$f":"VLOOKUP(OFFSET($B:$B,,MATCH(V$4,$B$4:$F$4,0)-1),OFFSET('C. PoC Adj Factor Scoring'!$E$5:$J$282,,MATCH(V$4,'C. PoC Adj Factor Scoring'!$E$3:$AH$3,0)-1),MATCH(V$2&\" Score\",'C. PoC Adj Factor Scoring'!$E$4:$J$4,0),TRUE)","v":1},{"$f":"VLOOKUP(OFFSET($B:$B,,MATCH(W$4,$B$4:$F$4,0)-1),OFFSET('C. PoC Adj Factor Scoring'!$E$5:$J$282,,MATCH(W$4,'C. PoC Adj Factor Scoring'!$E$3:$AH$3,0)-1),MATCH(W$2&\" Score\",'C. PoC Adj Factor Scoring'!$E$4:$J$4,0),TRUE)","v":1},{"$f":"VLOOKUP(OFFSET($B:$B,,MATCH(X$4,$B$4:$F$4,0)-1),OFFSET('C. PoC Adj Factor Scoring'!$E$5:$J$282,,MATCH(X$4,'C. PoC Adj Factor Scoring'!$E$3:$AH$3,0)-1),MATCH(X$2&\" Score\",'C. PoC Adj Factor Scoring'!$E$4:$J$4,0),TRUE)","v":1},{"$f":"VLOOKUP(OFFSET($B:$B,,MATCH(Y$4,$B$4:$F$4,0)-1),OFFSET('C. PoC Adj Factor Scoring'!$E$5:$J$282,,MATCH(Y$4,'C. PoC Adj Factor Scoring'!$E$3:$AH$3,0)-1),MATCH(Y$2&\" Score\",'C. PoC Adj Factor Scoring'!$E$4:$J$4,0),TRUE)","v":1},{"$f":"VLOOKUP(OFFSET($B:$B,,MATCH(Z$4,$B$4:$F$4,0)-1),OFFSET('C. PoC Adj Factor Scoring'!$E$5:$J$282,,MATCH(Z$4,'C. PoC Adj Factor Scoring'!$E$3:$AH$3,0)-1),MATCH(Z$2&\" Score\",'C. PoC Adj Factor Scoring'!$E$4:$J$4,0),TRUE)","v":1},{"$f":"VLOOKUP(OFFSET($B:$B,,MATCH(AA$4,$B$4:$F$4,0)-1),OFFSET('C. PoC Adj Factor Scoring'!$E$5:$J$282,,MATCH(AA$4,'C. PoC Adj Factor Scoring'!$E$3:$AH$3,0)-1),MATCH(AA$2&\" Score\",'C. PoC Adj Factor Scoring'!$E$4:$J$4,0),TRUE)","v":3},{"$f":"VLOOKUP(OFFSET($B:$B,,MATCH(AB$4,$B$4:$F$4,0)-1),OFFSET('C. PoC Adj Factor Scoring'!$E$5:$J$282,,MATCH(AB$4,'C. PoC Adj Factor Scoring'!$E$3:$AH$3,0)-1),MATCH(AB$2&\" Score\",'C. PoC Adj Factor Scoring'!$E$4:$J$4,0),TRUE)","v":1},{"$f":"VLOOKUP(OFFSET($B:$B,,MATCH(AC$4,$B$4:$F$4,0)-1),OFFSET('C. PoC Adj Factor Scoring'!$E$5:$J$282,,MATCH(AC$4,'C. PoC Adj Factor Scoring'!$E$3:$AH$3,0)-1),MATCH(AC$2&\" Score\",'C. PoC Adj Factor Scoring'!$E$4:$J$4,0),TRUE)","v":1},{"$f":"VLOOKUP(OFFSET($B:$B,,MATCH(AD$4,$B$4:$F$4,0)-1),OFFSET('C. PoC Adj Factor Scoring'!$E$5:$J$282,,MATCH(AD$4,'C. PoC Adj Factor Scoring'!$E$3:$AH$3,0)-1),MATCH(AD$2&\" Score\",'C. PoC Adj Factor Scoring'!$E$4:$J$4,0),TRUE)","v":1},{"$f":"VLOOKUP(OFFSET($B:$B,,MATCH(AE$4,$B$4:$F$4,0)-1),OFFSET('C. PoC Adj Factor Scoring'!$E$5:$J$282,,MATCH(AE$4,'C. PoC Adj Factor Scoring'!$E$3:$AH$3,0)-1),MATCH(AE$2&\" Score\",'C. PoC Adj Factor Scoring'!$E$4:$J$4,0),TRUE)","v":1}]
[{"$f":"'A. Population Info'!A504","v":1001505513},{"$f":"'A. Population Info'!L504","v":"OIL"},{"$f":"'A. Population Info'!M504","v":0},{"$f":"'A. Population Info'!N504","v":0},{"$f":"'A. Population Info'!O504","v":0},{"$f":"'A. Population Info'!P504","v":0},{"$f":"VLOOKUP(OFFSET($B:$B,,MATCH(G$4,$B$4:$F$4,0)-1),OFFSET('C. PoC Adj Factor Scoring'!$E$5:$J$282,,MATCH(G$4,'C. PoC Adj Factor Scoring'!$E$3:$AH$3,0)-1),MATCH(G$2&\" Score\",'C. PoC Adj Factor Scoring'!$E$4:$J$4,0),TRUE)","v":4},{"$f":"VLOOKUP(OFFSET($B:$B,,MATCH(H$4,$B$4:$F$4,0)-1),OFFSET('C. PoC Adj Factor Scoring'!$E$5:$J$282,,MATCH(H$4,'C. PoC Adj Factor Scoring'!$E$3:$AH$3,0)-1),MATCH(H$2&\" Score\",'C. PoC Adj Factor Scoring'!$E$4:$J$4,0),TRUE)","v":1},{"$f":"VLOOKUP(OFFSET($B:$B,,MATCH(I$4,$B$4:$F$4,0)-1),OFFSET('C. PoC Adj Factor Scoring'!$E$5:$J$282,,MATCH(I$4,'C. PoC Adj Factor Scoring'!$E$3:$AH$3,0)-1),MATCH(I$2&\" Score\",'C. PoC Adj Factor Scoring'!$E$4:$J$4,0),TRUE)","v":1},{"$f":"VLOOKUP(OFFSET($B:$B,,MATCH(J$4,$B$4:$F$4,0)-1),OFFSET('C. PoC Adj Factor Scoring'!$E$5:$J$282,,MATCH(J$4,'C. PoC Adj Factor Scoring'!$E$3:$AH$3,0)-1),MATCH(J$2&\" Score\",'C. PoC Adj Factor Scoring'!$E$4:$J$4,0),TRUE)","v":1},{"$f":"VLOOKUP(OFFSET($B:$B,,MATCH(K$4,$B$4:$F$4,0)-1),OFFSET('C. PoC Adj Factor Scoring'!$E$5:$J$282,,MATCH(K$4,'C. PoC Adj Factor Scoring'!$E$3:$AH$3,0)-1),MATCH(K$2&\" Score\",'C. PoC Adj Factor Scoring'!$E$4:$J$4,0),TRUE)","v":1},{"$f":"VLOOKUP(OFFSET($B:$B,,MATCH(L$4,$B$4:$F$4,0)-1),OFFSET('C. PoC Adj Factor Scoring'!$E$5:$J$282,,MATCH(L$4,'C. PoC Adj Factor Scoring'!$E$3:$AH$3,0)-1),MATCH(L$2&\" Score\",'C. PoC Adj Factor Scoring'!$E$4:$J$4,0),TRUE)","v":1},{"$f":"VLOOKUP(OFFSET($B:$B,,MATCH(M$4,$B$4:$F$4,0)-1),OFFSET('C. PoC Adj Factor Scoring'!$E$5:$J$282,,MATCH(M$4,'C. PoC Adj Factor Scoring'!$E$3:$AH$3,0)-1),MATCH(M$2&\" Score\",'C. PoC Adj Factor Scoring'!$E$4:$J$4,0),TRUE)","v":1},{"$f":"VLOOKUP(OFFSET($B:$B,,MATCH(N$4,$B$4:$F$4,0)-1),OFFSET('C. PoC Adj Factor Scoring'!$E$5:$J$282,,MATCH(N$4,'C. PoC Adj Factor Scoring'!$E$3:$AH$3,0)-1),MATCH(N$2&\" Score\",'C. PoC Adj Factor Scoring'!$E$4:$J$4,0),TRUE)","v":1},{"$f":"VLOOKUP(OFFSET($B:$B,,MATCH(O$4,$B$4:$F$4,0)-1),OFFSET('C. PoC Adj Factor Scoring'!$E$5:$J$282,,MATCH(O$4,'C. PoC Adj Factor Scoring'!$E$3:$AH$3,0)-1),MATCH(O$2&\" Score\",'C. PoC Adj Factor Scoring'!$E$4:$J$4,0),TRUE)","v":1},{"$f":"VLOOKUP(OFFSET($B:$B,,MATCH(P$4,$B$4:$F$4,0)-1),OFFSET('C. PoC Adj Factor Scoring'!$E$5:$J$282,,MATCH(P$4,'C. PoC Adj Factor Scoring'!$E$3:$AH$3,0)-1),MATCH(P$2&\" Score\",'C. PoC Adj Factor Scoring'!$E$4:$J$4,0),TRUE)","v":1},{"$f":"VLOOKUP(OFFSET($B:$B,,MATCH(Q$4,$B$4:$F$4,0)-1),OFFSET('C. PoC Adj Factor Scoring'!$E$5:$J$282,,MATCH(Q$4,'C. PoC Adj Factor Scoring'!$E$3:$AH$3,0)-1),MATCH(Q$2&\" Score\",'C. PoC Adj Factor Scoring'!$E$4:$J$4,0),TRUE)","v":1},{"$f":"VLOOKUP(OFFSET($B:$B,,MATCH(R$4,$B$4:$F$4,0)-1),OFFSET('C. PoC Adj Factor Scoring'!$E$5:$J$282,,MATCH(R$4,'C. PoC Adj Factor Scoring'!$E$3:$AH$3,0)-1),MATCH(R$2&\" Score\",'C. PoC Adj Factor Scoring'!$E$4:$J$4,0),TRUE)","v":1},{"$f":"VLOOKUP(OFFSET($B:$B,,MATCH(S$4,$B$4:$F$4,0)-1),OFFSET('C. PoC Adj Factor Scoring'!$E$5:$J$282,,MATCH(S$4,'C. PoC Adj Factor Scoring'!$E$3:$AH$3,0)-1),MATCH(S$2&\" Score\",'C. PoC Adj Factor Scoring'!$E$4:$J$4,0),TRUE)","v":1},{"$f":"VLOOKUP(OFFSET($B:$B,,MATCH(T$4,$B$4:$F$4,0)-1),OFFSET('C. PoC Adj Factor Scoring'!$E$5:$J$282,,MATCH(T$4,'C. PoC Adj Factor Scoring'!$E$3:$AH$3,0)-1),MATCH(T$2&\" Score\",'C. PoC Adj Factor Scoring'!$E$4:$J$4,0),TRUE)","v":1},{"$f":"VLOOKUP(OFFSET($B:$B,,MATCH(U$4,$B$4:$F$4,0)-1),OFFSET('C. PoC Adj Factor Scoring'!$E$5:$J$282,,MATCH(U$4,'C. PoC Adj Factor Scoring'!$E$3:$AH$3,0)-1),MATCH(U$2&\" Score\",'C. PoC Adj Factor Scoring'!$E$4:$J$4,0),TRUE)","v":1},{"$f":"VLOOKUP(OFFSET($B:$B,,MATCH(V$4,$B$4:$F$4,0)-1),OFFSET('C. PoC Adj Factor Scoring'!$E$5:$J$282,,MATCH(V$4,'C. PoC Adj Factor Scoring'!$E$3:$AH$3,0)-1),MATCH(V$2&\" Score\",'C. PoC Adj Factor Scoring'!$E$4:$J$4,0),TRUE)","v":1},{"$f":"VLOOKUP(OFFSET($B:$B,,MATCH(W$4,$B$4:$F$4,0)-1),OFFSET('C. PoC Adj Factor Scoring'!$E$5:$J$282,,MATCH(W$4,'C. PoC Adj Factor Scoring'!$E$3:$AH$3,0)-1),MATCH(W$2&\" Score\",'C. PoC Adj Factor Scoring'!$E$4:$J$4,0),TRUE)","v":1},{"$f":"VLOOKUP(OFFSET($B:$B,,MATCH(X$4,$B$4:$F$4,0)-1),OFFSET('C. PoC Adj Factor Scoring'!$E$5:$J$282,,MATCH(X$4,'C. PoC Adj Factor Scoring'!$E$3:$AH$3,0)-1),MATCH(X$2&\" Score\",'C. PoC Adj Factor Scoring'!$E$4:$J$4,0),TRUE)","v":1},{"$f":"VLOOKUP(OFFSET($B:$B,,MATCH(Y$4,$B$4:$F$4,0)-1),OFFSET('C. PoC Adj Factor Scoring'!$E$5:$J$282,,MATCH(Y$4,'C. PoC Adj Factor Scoring'!$E$3:$AH$3,0)-1),MATCH(Y$2&\" Score\",'C. PoC Adj Factor Scoring'!$E$4:$J$4,0),TRUE)","v":1},{"$f":"VLOOKUP(OFFSET($B:$B,,MATCH(Z$4,$B$4:$F$4,0)-1),OFFSET('C. PoC Adj Factor Scoring'!$E$5:$J$282,,MATCH(Z$4,'C. PoC Adj Factor Scoring'!$E$3:$AH$3,0)-1),MATCH(Z$2&\" Score\",'C. PoC Adj Factor Scoring'!$E$4:$J$4,0),TRUE)","v":1},{"$f":"VLOOKUP(OFFSET($B:$B,,MATCH(AA$4,$B$4:$F$4,0)-1),OFFSET('C. PoC Adj Factor Scoring'!$E$5:$J$282,,MATCH(AA$4,'C. PoC Adj Factor Scoring'!$E$3:$AH$3,0)-1),MATCH(AA$2&\" Score\",'C. PoC Adj Factor Scoring'!$E$4:$J$4,0),TRUE)","v":3},{"$f":"VLOOKUP(OFFSET($B:$B,,MATCH(AB$4,$B$4:$F$4,0)-1),OFFSET('C. PoC Adj Factor Scoring'!$E$5:$J$282,,MATCH(AB$4,'C. PoC Adj Factor Scoring'!$E$3:$AH$3,0)-1),MATCH(AB$2&\" Score\",'C. PoC Adj Factor Scoring'!$E$4:$J$4,0),TRUE)","v":1},{"$f":"VLOOKUP(OFFSET($B:$B,,MATCH(AC$4,$B$4:$F$4,0)-1),OFFSET('C. PoC Adj Factor Scoring'!$E$5:$J$282,,MATCH(AC$4,'C. PoC Adj Factor Scoring'!$E$3:$AH$3,0)-1),MATCH(AC$2&\" Score\",'C. PoC Adj Factor Scoring'!$E$4:$J$4,0),TRUE)","v":1},{"$f":"VLOOKUP(OFFSET($B:$B,,MATCH(AD$4,$B$4:$F$4,0)-1),OFFSET('C. PoC Adj Factor Scoring'!$E$5:$J$282,,MATCH(AD$4,'C. PoC Adj Factor Scoring'!$E$3:$AH$3,0)-1),MATCH(AD$2&\" Score\",'C. PoC Adj Factor Scoring'!$E$4:$J$4,0),TRUE)","v":1},{"$f":"VLOOKUP(OFFSET($B:$B,,MATCH(AE$4,$B$4:$F$4,0)-1),OFFSET('C. PoC Adj Factor Scoring'!$E$5:$J$282,,MATCH(AE$4,'C. PoC Adj Factor Scoring'!$E$3:$AH$3,0)-1),MATCH(AE$2&\" Score\",'C. PoC Adj Factor Scoring'!$E$4:$J$4,0),TRUE)","v":1}]
[{"$f":"'A. Population Info'!A505","v":1001505514},{"$f":"'A. Population Info'!L505","v":"OIL"},{"$f":"'A. Population Info'!M505","v":0},{"$f":"'A. Population Info'!N505","v":0},{"$f":"'A. Population Info'!O505","v":0},{"$f":"'A. Population Info'!P505","v":0},{"$f":"VLOOKUP(OFFSET($B:$B,,MATCH(G$4,$B$4:$F$4,0)-1),OFFSET('C. PoC Adj Factor Scoring'!$E$5:$J$282,,MATCH(G$4,'C. PoC Adj Factor Scoring'!$E$3:$AH$3,0)-1),MATCH(G$2&\" Score\",'C. PoC Adj Factor Scoring'!$E$4:$J$4,0),TRUE)","v":4},{"$f":"VLOOKUP(OFFSET($B:$B,,MATCH(H$4,$B$4:$F$4,0)-1),OFFSET('C. PoC Adj Factor Scoring'!$E$5:$J$282,,MATCH(H$4,'C. PoC Adj Factor Scoring'!$E$3:$AH$3,0)-1),MATCH(H$2&\" Score\",'C. PoC Adj Factor Scoring'!$E$4:$J$4,0),TRUE)","v":1},{"$f":"VLOOKUP(OFFSET($B:$B,,MATCH(I$4,$B$4:$F$4,0)-1),OFFSET('C. PoC Adj Factor Scoring'!$E$5:$J$282,,MATCH(I$4,'C. PoC Adj Factor Scoring'!$E$3:$AH$3,0)-1),MATCH(I$2&\" Score\",'C. PoC Adj Factor Scoring'!$E$4:$J$4,0),TRUE)","v":1},{"$f":"VLOOKUP(OFFSET($B:$B,,MATCH(J$4,$B$4:$F$4,0)-1),OFFSET('C. PoC Adj Factor Scoring'!$E$5:$J$282,,MATCH(J$4,'C. PoC Adj Factor Scoring'!$E$3:$AH$3,0)-1),MATCH(J$2&\" Score\",'C. PoC Adj Factor Scoring'!$E$4:$J$4,0),TRUE)","v":1},{"$f":"VLOOKUP(OFFSET($B:$B,,MATCH(K$4,$B$4:$F$4,0)-1),OFFSET('C. PoC Adj Factor Scoring'!$E$5:$J$282,,MATCH(K$4,'C. PoC Adj Factor Scoring'!$E$3:$AH$3,0)-1),MATCH(K$2&\" Score\",'C. PoC Adj Factor Scoring'!$E$4:$J$4,0),TRUE)","v":1},{"$f":"VLOOKUP(OFFSET($B:$B,,MATCH(L$4,$B$4:$F$4,0)-1),OFFSET('C. PoC Adj Factor Scoring'!$E$5:$J$282,,MATCH(L$4,'C. PoC Adj Factor Scoring'!$E$3:$AH$3,0)-1),MATCH(L$2&\" Score\",'C. PoC Adj Factor Scoring'!$E$4:$J$4,0),TRUE)","v":1},{"$f":"VLOOKUP(OFFSET($B:$B,,MATCH(M$4,$B$4:$F$4,0)-1),OFFSET('C. PoC Adj Factor Scoring'!$E$5:$J$282,,MATCH(M$4,'C. PoC Adj Factor Scoring'!$E$3:$AH$3,0)-1),MATCH(M$2&\" Score\",'C. PoC Adj Factor Scoring'!$E$4:$J$4,0),TRUE)","v":1},{"$f":"VLOOKUP(OFFSET($B:$B,,MATCH(N$4,$B$4:$F$4,0)-1),OFFSET('C. PoC Adj Factor Scoring'!$E$5:$J$282,,MATCH(N$4,'C. PoC Adj Factor Scoring'!$E$3:$AH$3,0)-1),MATCH(N$2&\" Score\",'C. PoC Adj Factor Scoring'!$E$4:$J$4,0),TRUE)","v":1},{"$f":"VLOOKUP(OFFSET($B:$B,,MATCH(O$4,$B$4:$F$4,0)-1),OFFSET('C. PoC Adj Factor Scoring'!$E$5:$J$282,,MATCH(O$4,'C. PoC Adj Factor Scoring'!$E$3:$AH$3,0)-1),MATCH(O$2&\" Score\",'C. PoC Adj Factor Scoring'!$E$4:$J$4,0),TRUE)","v":1},{"$f":"VLOOKUP(OFFSET($B:$B,,MATCH(P$4,$B$4:$F$4,0)-1),OFFSET('C. PoC Adj Factor Scoring'!$E$5:$J$282,,MATCH(P$4,'C. PoC Adj Factor Scoring'!$E$3:$AH$3,0)-1),MATCH(P$2&\" Score\",'C. PoC Adj Factor Scoring'!$E$4:$J$4,0),TRUE)","v":1},{"$f":"VLOOKUP(OFFSET($B:$B,,MATCH(Q$4,$B$4:$F$4,0)-1),OFFSET('C. PoC Adj Factor Scoring'!$E$5:$J$282,,MATCH(Q$4,'C. PoC Adj Factor Scoring'!$E$3:$AH$3,0)-1),MATCH(Q$2&\" Score\",'C. PoC Adj Factor Scoring'!$E$4:$J$4,0),TRUE)","v":1},{"$f":"VLOOKUP(OFFSET($B:$B,,MATCH(R$4,$B$4:$F$4,0)-1),OFFSET('C. PoC Adj Factor Scoring'!$E$5:$J$282,,MATCH(R$4,'C. PoC Adj Factor Scoring'!$E$3:$AH$3,0)-1),MATCH(R$2&\" Score\",'C. PoC Adj Factor Scoring'!$E$4:$J$4,0),TRUE)","v":1},{"$f":"VLOOKUP(OFFSET($B:$B,,MATCH(S$4,$B$4:$F$4,0)-1),OFFSET('C. PoC Adj Factor Scoring'!$E$5:$J$282,,MATCH(S$4,'C. PoC Adj Factor Scoring'!$E$3:$AH$3,0)-1),MATCH(S$2&\" Score\",'C. PoC Adj Factor Scoring'!$E$4:$J$4,0),TRUE)","v":1},{"$f":"VLOOKUP(OFFSET($B:$B,,MATCH(T$4,$B$4:$F$4,0)-1),OFFSET('C. PoC Adj Factor Scoring'!$E$5:$J$282,,MATCH(T$4,'C. PoC Adj Factor Scoring'!$E$3:$AH$3,0)-1),MATCH(T$2&\" Score\",'C. PoC Adj Factor Scoring'!$E$4:$J$4,0),TRUE)","v":1},{"$f":"VLOOKUP(OFFSET($B:$B,,MATCH(U$4,$B$4:$F$4,0)-1),OFFSET('C. PoC Adj Factor Scoring'!$E$5:$J$282,,MATCH(U$4,'C. PoC Adj Factor Scoring'!$E$3:$AH$3,0)-1),MATCH(U$2&\" Score\",'C. PoC Adj Factor Scoring'!$E$4:$J$4,0),TRUE)","v":1},{"$f":"VLOOKUP(OFFSET($B:$B,,MATCH(V$4,$B$4:$F$4,0)-1),OFFSET('C. PoC Adj Factor Scoring'!$E$5:$J$282,,MATCH(V$4,'C. PoC Adj Factor Scoring'!$E$3:$AH$3,0)-1),MATCH(V$2&\" Score\",'C. PoC Adj Factor Scoring'!$E$4:$J$4,0),TRUE)","v":1},{"$f":"VLOOKUP(OFFSET($B:$B,,MATCH(W$4,$B$4:$F$4,0)-1),OFFSET('C. PoC Adj Factor Scoring'!$E$5:$J$282,,MATCH(W$4,'C. PoC Adj Factor Scoring'!$E$3:$AH$3,0)-1),MATCH(W$2&\" Score\",'C. PoC Adj Factor Scoring'!$E$4:$J$4,0),TRUE)","v":1},{"$f":"VLOOKUP(OFFSET($B:$B,,MATCH(X$4,$B$4:$F$4,0)-1),OFFSET('C. PoC Adj Factor Scoring'!$E$5:$J$282,,MATCH(X$4,'C. PoC Adj Factor Scoring'!$E$3:$AH$3,0)-1),MATCH(X$2&\" Score\",'C. PoC Adj Factor Scoring'!$E$4:$J$4,0),TRUE)","v":1},{"$f":"VLOOKUP(OFFSET($B:$B,,MATCH(Y$4,$B$4:$F$4,0)-1),OFFSET('C. PoC Adj Factor Scoring'!$E$5:$J$282,,MATCH(Y$4,'C. PoC Adj Factor Scoring'!$E$3:$AH$3,0)-1),MATCH(Y$2&\" Score\",'C. PoC Adj Factor Scoring'!$E$4:$J$4,0),TRUE)","v":1},{"$f":"VLOOKUP(OFFSET($B:$B,,MATCH(Z$4,$B$4:$F$4,0)-1),OFFSET('C. PoC Adj Factor Scoring'!$E$5:$J$282,,MATCH(Z$4,'C. PoC Adj Factor Scoring'!$E$3:$AH$3,0)-1),MATCH(Z$2&\" Score\",'C. PoC Adj Factor Scoring'!$E$4:$J$4,0),TRUE)","v":1},{"$f":"VLOOKUP(OFFSET($B:$B,,MATCH(AA$4,$B$4:$F$4,0)-1),OFFSET('C. PoC Adj Factor Scoring'!$E$5:$J$282,,MATCH(AA$4,'C. PoC Adj Factor Scoring'!$E$3:$AH$3,0)-1),MATCH(AA$2&\" Score\",'C. PoC Adj Factor Scoring'!$E$4:$J$4,0),TRUE)","v":3},{"$f":"VLOOKUP(OFFSET($B:$B,,MATCH(AB$4,$B$4:$F$4,0)-1),OFFSET('C. PoC Adj Factor Scoring'!$E$5:$J$282,,MATCH(AB$4,'C. PoC Adj Factor Scoring'!$E$3:$AH$3,0)-1),MATCH(AB$2&\" Score\",'C. PoC Adj Factor Scoring'!$E$4:$J$4,0),TRUE)","v":1},{"$f":"VLOOKUP(OFFSET($B:$B,,MATCH(AC$4,$B$4:$F$4,0)-1),OFFSET('C. PoC Adj Factor Scoring'!$E$5:$J$282,,MATCH(AC$4,'C. PoC Adj Factor Scoring'!$E$3:$AH$3,0)-1),MATCH(AC$2&\" Score\",'C. PoC Adj Factor Scoring'!$E$4:$J$4,0),TRUE)","v":1},{"$f":"VLOOKUP(OFFSET($B:$B,,MATCH(AD$4,$B$4:$F$4,0)-1),OFFSET('C. PoC Adj Factor Scoring'!$E$5:$J$282,,MATCH(AD$4,'C. PoC Adj Factor Scoring'!$E$3:$AH$3,0)-1),MATCH(AD$2&\" Score\",'C. PoC Adj Factor Scoring'!$E$4:$J$4,0),TRUE)","v":1},{"$f":"VLOOKUP(OFFSET($B:$B,,MATCH(AE$4,$B$4:$F$4,0)-1),OFFSET('C. PoC Adj Factor Scoring'!$E$5:$J$282,,MATCH(AE$4,'C. PoC Adj Factor Scoring'!$E$3:$AH$3,0)-1),MATCH(AE$2&\" Score\",'C. PoC Adj Factor Scoring'!$E$4:$J$4,0),TRUE)","v":1}]
[{"$f":"'A. Population Info'!A506","v":1001505537},{"$f":"'A. Population Info'!L506","v":"OIL"},{"$f":"'A. Population Info'!M506","v":0},{"$f":"'A. Population Info'!N506","v":0},{"$f":"'A. Population Info'!O506","v":0},{"$f":"'A. Population Info'!P506","v":0},{"$f":"VLOOKUP(OFFSET($B:$B,,MATCH(G$4,$B$4:$F$4,0)-1),OFFSET('C. PoC Adj Factor Scoring'!$E$5:$J$282,,MATCH(G$4,'C. PoC Adj Factor Scoring'!$E$3:$AH$3,0)-1),MATCH(G$2&\" Score\",'C. PoC Adj Factor Scoring'!$E$4:$J$4,0),TRUE)","v":4},{"$f":"VLOOKUP(OFFSET($B:$B,,MATCH(H$4,$B$4:$F$4,0)-1),OFFSET('C. PoC Adj Factor Scoring'!$E$5:$J$282,,MATCH(H$4,'C. PoC Adj Factor Scoring'!$E$3:$AH$3,0)-1),MATCH(H$2&\" Score\",'C. PoC Adj Factor Scoring'!$E$4:$J$4,0),TRUE)","v":1},{"$f":"VLOOKUP(OFFSET($B:$B,,MATCH(I$4,$B$4:$F$4,0)-1),OFFSET('C. PoC Adj Factor Scoring'!$E$5:$J$282,,MATCH(I$4,'C. PoC Adj Factor Scoring'!$E$3:$AH$3,0)-1),MATCH(I$2&\" Score\",'C. PoC Adj Factor Scoring'!$E$4:$J$4,0),TRUE)","v":1},{"$f":"VLOOKUP(OFFSET($B:$B,,MATCH(J$4,$B$4:$F$4,0)-1),OFFSET('C. PoC Adj Factor Scoring'!$E$5:$J$282,,MATCH(J$4,'C. PoC Adj Factor Scoring'!$E$3:$AH$3,0)-1),MATCH(J$2&\" Score\",'C. PoC Adj Factor Scoring'!$E$4:$J$4,0),TRUE)","v":1},{"$f":"VLOOKUP(OFFSET($B:$B,,MATCH(K$4,$B$4:$F$4,0)-1),OFFSET('C. PoC Adj Factor Scoring'!$E$5:$J$282,,MATCH(K$4,'C. PoC Adj Factor Scoring'!$E$3:$AH$3,0)-1),MATCH(K$2&\" Score\",'C. PoC Adj Factor Scoring'!$E$4:$J$4,0),TRUE)","v":1},{"$f":"VLOOKUP(OFFSET($B:$B,,MATCH(L$4,$B$4:$F$4,0)-1),OFFSET('C. PoC Adj Factor Scoring'!$E$5:$J$282,,MATCH(L$4,'C. PoC Adj Factor Scoring'!$E$3:$AH$3,0)-1),MATCH(L$2&\" Score\",'C. PoC Adj Factor Scoring'!$E$4:$J$4,0),TRUE)","v":1},{"$f":"VLOOKUP(OFFSET($B:$B,,MATCH(M$4,$B$4:$F$4,0)-1),OFFSET('C. PoC Adj Factor Scoring'!$E$5:$J$282,,MATCH(M$4,'C. PoC Adj Factor Scoring'!$E$3:$AH$3,0)-1),MATCH(M$2&\" Score\",'C. PoC Adj Factor Scoring'!$E$4:$J$4,0),TRUE)","v":1},{"$f":"VLOOKUP(OFFSET($B:$B,,MATCH(N$4,$B$4:$F$4,0)-1),OFFSET('C. PoC Adj Factor Scoring'!$E$5:$J$282,,MATCH(N$4,'C. PoC Adj Factor Scoring'!$E$3:$AH$3,0)-1),MATCH(N$2&\" Score\",'C. PoC Adj Factor Scoring'!$E$4:$J$4,0),TRUE)","v":1},{"$f":"VLOOKUP(OFFSET($B:$B,,MATCH(O$4,$B$4:$F$4,0)-1),OFFSET('C. PoC Adj Factor Scoring'!$E$5:$J$282,,MATCH(O$4,'C. PoC Adj Factor Scoring'!$E$3:$AH$3,0)-1),MATCH(O$2&\" Score\",'C. PoC Adj Factor Scoring'!$E$4:$J$4,0),TRUE)","v":1},{"$f":"VLOOKUP(OFFSET($B:$B,,MATCH(P$4,$B$4:$F$4,0)-1),OFFSET('C. PoC Adj Factor Scoring'!$E$5:$J$282,,MATCH(P$4,'C. PoC Adj Factor Scoring'!$E$3:$AH$3,0)-1),MATCH(P$2&\" Score\",'C. PoC Adj Factor Scoring'!$E$4:$J$4,0),TRUE)","v":1},{"$f":"VLOOKUP(OFFSET($B:$B,,MATCH(Q$4,$B$4:$F$4,0)-1),OFFSET('C. PoC Adj Factor Scoring'!$E$5:$J$282,,MATCH(Q$4,'C. PoC Adj Factor Scoring'!$E$3:$AH$3,0)-1),MATCH(Q$2&\" Score\",'C. PoC Adj Factor Scoring'!$E$4:$J$4,0),TRUE)","v":1},{"$f":"VLOOKUP(OFFSET($B:$B,,MATCH(R$4,$B$4:$F$4,0)-1),OFFSET('C. PoC Adj Factor Scoring'!$E$5:$J$282,,MATCH(R$4,'C. PoC Adj Factor Scoring'!$E$3:$AH$3,0)-1),MATCH(R$2&\" Score\",'C. PoC Adj Factor Scoring'!$E$4:$J$4,0),TRUE)","v":1},{"$f":"VLOOKUP(OFFSET($B:$B,,MATCH(S$4,$B$4:$F$4,0)-1),OFFSET('C. PoC Adj Factor Scoring'!$E$5:$J$282,,MATCH(S$4,'C. PoC Adj Factor Scoring'!$E$3:$AH$3,0)-1),MATCH(S$2&\" Score\",'C. PoC Adj Factor Scoring'!$E$4:$J$4,0),TRUE)","v":1},{"$f":"VLOOKUP(OFFSET($B:$B,,MATCH(T$4,$B$4:$F$4,0)-1),OFFSET('C. PoC Adj Factor Scoring'!$E$5:$J$282,,MATCH(T$4,'C. PoC Adj Factor Scoring'!$E$3:$AH$3,0)-1),MATCH(T$2&\" Score\",'C. PoC Adj Factor Scoring'!$E$4:$J$4,0),TRUE)","v":1},{"$f":"VLOOKUP(OFFSET($B:$B,,MATCH(U$4,$B$4:$F$4,0)-1),OFFSET('C. PoC Adj Factor Scoring'!$E$5:$J$282,,MATCH(U$4,'C. PoC Adj Factor Scoring'!$E$3:$AH$3,0)-1),MATCH(U$2&\" Score\",'C. PoC Adj Factor Scoring'!$E$4:$J$4,0),TRUE)","v":1},{"$f":"VLOOKUP(OFFSET($B:$B,,MATCH(V$4,$B$4:$F$4,0)-1),OFFSET('C. PoC Adj Factor Scoring'!$E$5:$J$282,,MATCH(V$4,'C. PoC Adj Factor Scoring'!$E$3:$AH$3,0)-1),MATCH(V$2&\" Score\",'C. PoC Adj Factor Scoring'!$E$4:$J$4,0),TRUE)","v":1},{"$f":"VLOOKUP(OFFSET($B:$B,,MATCH(W$4,$B$4:$F$4,0)-1),OFFSET('C. PoC Adj Factor Scoring'!$E$5:$J$282,,MATCH(W$4,'C. PoC Adj Factor Scoring'!$E$3:$AH$3,0)-1),MATCH(W$2&\" Score\",'C. PoC Adj Factor Scoring'!$E$4:$J$4,0),TRUE)","v":1},{"$f":"VLOOKUP(OFFSET($B:$B,,MATCH(X$4,$B$4:$F$4,0)-1),OFFSET('C. PoC Adj Factor Scoring'!$E$5:$J$282,,MATCH(X$4,'C. PoC Adj Factor Scoring'!$E$3:$AH$3,0)-1),MATCH(X$2&\" Score\",'C. PoC Adj Factor Scoring'!$E$4:$J$4,0),TRUE)","v":1},{"$f":"VLOOKUP(OFFSET($B:$B,,MATCH(Y$4,$B$4:$F$4,0)-1),OFFSET('C. PoC Adj Factor Scoring'!$E$5:$J$282,,MATCH(Y$4,'C. PoC Adj Factor Scoring'!$E$3:$AH$3,0)-1),MATCH(Y$2&\" Score\",'C. PoC Adj Factor Scoring'!$E$4:$J$4,0),TRUE)","v":1},{"$f":"VLOOKUP(OFFSET($B:$B,,MATCH(Z$4,$B$4:$F$4,0)-1),OFFSET('C. PoC Adj Factor Scoring'!$E$5:$J$282,,MATCH(Z$4,'C. PoC Adj Factor Scoring'!$E$3:$AH$3,0)-1),MATCH(Z$2&\" Score\",'C. PoC Adj Factor Scoring'!$E$4:$J$4,0),TRUE)","v":1},{"$f":"VLOOKUP(OFFSET($B:$B,,MATCH(AA$4,$B$4:$F$4,0)-1),OFFSET('C. PoC Adj Factor Scoring'!$E$5:$J$282,,MATCH(AA$4,'C. PoC Adj Factor Scoring'!$E$3:$AH$3,0)-1),MATCH(AA$2&\" Score\",'C. PoC Adj Factor Scoring'!$E$4:$J$4,0),TRUE)","v":3},{"$f":"VLOOKUP(OFFSET($B:$B,,MATCH(AB$4,$B$4:$F$4,0)-1),OFFSET('C. PoC Adj Factor Scoring'!$E$5:$J$282,,MATCH(AB$4,'C. PoC Adj Factor Scoring'!$E$3:$AH$3,0)-1),MATCH(AB$2&\" Score\",'C. PoC Adj Factor Scoring'!$E$4:$J$4,0),TRUE)","v":1},{"$f":"VLOOKUP(OFFSET($B:$B,,MATCH(AC$4,$B$4:$F$4,0)-1),OFFSET('C. PoC Adj Factor Scoring'!$E$5:$J$282,,MATCH(AC$4,'C. PoC Adj Factor Scoring'!$E$3:$AH$3,0)-1),MATCH(AC$2&\" Score\",'C. PoC Adj Factor Scoring'!$E$4:$J$4,0),TRUE)","v":1},{"$f":"VLOOKUP(OFFSET($B:$B,,MATCH(AD$4,$B$4:$F$4,0)-1),OFFSET('C. PoC Adj Factor Scoring'!$E$5:$J$282,,MATCH(AD$4,'C. PoC Adj Factor Scoring'!$E$3:$AH$3,0)-1),MATCH(AD$2&\" Score\",'C. PoC Adj Factor Scoring'!$E$4:$J$4,0),TRUE)","v":1},{"$f":"VLOOKUP(OFFSET($B:$B,,MATCH(AE$4,$B$4:$F$4,0)-1),OFFSET('C. PoC Adj Factor Scoring'!$E$5:$J$282,,MATCH(AE$4,'C. PoC Adj Factor Scoring'!$E$3:$AH$3,0)-1),MATCH(AE$2&\" Score\",'C. PoC Adj Factor Scoring'!$E$4:$J$4,0),TRUE)","v":1}]
[{"$f":"'A. Population Info'!A507","v":1001505538},{"$f":"'A. Population Info'!L507","v":"OIL"},{"$f":"'A. Population Info'!M507","v":0},{"$f":"'A. Population Info'!N507","v":0},{"$f":"'A. Population Info'!O507","v":0},{"$f":"'A. Population Info'!P507","v":0},{"$f":"VLOOKUP(OFFSET($B:$B,,MATCH(G$4,$B$4:$F$4,0)-1),OFFSET('C. PoC Adj Factor Scoring'!$E$5:$J$282,,MATCH(G$4,'C. PoC Adj Factor Scoring'!$E$3:$AH$3,0)-1),MATCH(G$2&\" Score\",'C. PoC Adj Factor Scoring'!$E$4:$J$4,0),TRUE)","v":4},{"$f":"VLOOKUP(OFFSET($B:$B,,MATCH(H$4,$B$4:$F$4,0)-1),OFFSET('C. PoC Adj Factor Scoring'!$E$5:$J$282,,MATCH(H$4,'C. PoC Adj Factor Scoring'!$E$3:$AH$3,0)-1),MATCH(H$2&\" Score\",'C. PoC Adj Factor Scoring'!$E$4:$J$4,0),TRUE)","v":1},{"$f":"VLOOKUP(OFFSET($B:$B,,MATCH(I$4,$B$4:$F$4,0)-1),OFFSET('C. PoC Adj Factor Scoring'!$E$5:$J$282,,MATCH(I$4,'C. PoC Adj Factor Scoring'!$E$3:$AH$3,0)-1),MATCH(I$2&\" Score\",'C. PoC Adj Factor Scoring'!$E$4:$J$4,0),TRUE)","v":1},{"$f":"VLOOKUP(OFFSET($B:$B,,MATCH(J$4,$B$4:$F$4,0)-1),OFFSET('C. PoC Adj Factor Scoring'!$E$5:$J$282,,MATCH(J$4,'C. PoC Adj Factor Scoring'!$E$3:$AH$3,0)-1),MATCH(J$2&\" Score\",'C. PoC Adj Factor Scoring'!$E$4:$J$4,0),TRUE)","v":1},{"$f":"VLOOKUP(OFFSET($B:$B,,MATCH(K$4,$B$4:$F$4,0)-1),OFFSET('C. PoC Adj Factor Scoring'!$E$5:$J$282,,MATCH(K$4,'C. PoC Adj Factor Scoring'!$E$3:$AH$3,0)-1),MATCH(K$2&\" Score\",'C. PoC Adj Factor Scoring'!$E$4:$J$4,0),TRUE)","v":1},{"$f":"VLOOKUP(OFFSET($B:$B,,MATCH(L$4,$B$4:$F$4,0)-1),OFFSET('C. PoC Adj Factor Scoring'!$E$5:$J$282,,MATCH(L$4,'C. PoC Adj Factor Scoring'!$E$3:$AH$3,0)-1),MATCH(L$2&\" Score\",'C. PoC Adj Factor Scoring'!$E$4:$J$4,0),TRUE)","v":1},{"$f":"VLOOKUP(OFFSET($B:$B,,MATCH(M$4,$B$4:$F$4,0)-1),OFFSET('C. PoC Adj Factor Scoring'!$E$5:$J$282,,MATCH(M$4,'C. PoC Adj Factor Scoring'!$E$3:$AH$3,0)-1),MATCH(M$2&\" Score\",'C. PoC Adj Factor Scoring'!$E$4:$J$4,0),TRUE)","v":1},{"$f":"VLOOKUP(OFFSET($B:$B,,MATCH(N$4,$B$4:$F$4,0)-1),OFFSET('C. PoC Adj Factor Scoring'!$E$5:$J$282,,MATCH(N$4,'C. PoC Adj Factor Scoring'!$E$3:$AH$3,0)-1),MATCH(N$2&\" Score\",'C. PoC Adj Factor Scoring'!$E$4:$J$4,0),TRUE)","v":1},{"$f":"VLOOKUP(OFFSET($B:$B,,MATCH(O$4,$B$4:$F$4,0)-1),OFFSET('C. PoC Adj Factor Scoring'!$E$5:$J$282,,MATCH(O$4,'C. PoC Adj Factor Scoring'!$E$3:$AH$3,0)-1),MATCH(O$2&\" Score\",'C. PoC Adj Factor Scoring'!$E$4:$J$4,0),TRUE)","v":1},{"$f":"VLOOKUP(OFFSET($B:$B,,MATCH(P$4,$B$4:$F$4,0)-1),OFFSET('C. PoC Adj Factor Scoring'!$E$5:$J$282,,MATCH(P$4,'C. PoC Adj Factor Scoring'!$E$3:$AH$3,0)-1),MATCH(P$2&\" Score\",'C. PoC Adj Factor Scoring'!$E$4:$J$4,0),TRUE)","v":1},{"$f":"VLOOKUP(OFFSET($B:$B,,MATCH(Q$4,$B$4:$F$4,0)-1),OFFSET('C. PoC Adj Factor Scoring'!$E$5:$J$282,,MATCH(Q$4,'C. PoC Adj Factor Scoring'!$E$3:$AH$3,0)-1),MATCH(Q$2&\" Score\",'C. PoC Adj Factor Scoring'!$E$4:$J$4,0),TRUE)","v":1},{"$f":"VLOOKUP(OFFSET($B:$B,,MATCH(R$4,$B$4:$F$4,0)-1),OFFSET('C. PoC Adj Factor Scoring'!$E$5:$J$282,,MATCH(R$4,'C. PoC Adj Factor Scoring'!$E$3:$AH$3,0)-1),MATCH(R$2&\" Score\",'C. PoC Adj Factor Scoring'!$E$4:$J$4,0),TRUE)","v":1},{"$f":"VLOOKUP(OFFSET($B:$B,,MATCH(S$4,$B$4:$F$4,0)-1),OFFSET('C. PoC Adj Factor Scoring'!$E$5:$J$282,,MATCH(S$4,'C. PoC Adj Factor Scoring'!$E$3:$AH$3,0)-1),MATCH(S$2&\" Score\",'C. PoC Adj Factor Scoring'!$E$4:$J$4,0),TRUE)","v":1},{"$f":"VLOOKUP(OFFSET($B:$B,,MATCH(T$4,$B$4:$F$4,0)-1),OFFSET('C. PoC Adj Factor Scoring'!$E$5:$J$282,,MATCH(T$4,'C. PoC Adj Factor Scoring'!$E$3:$AH$3,0)-1),MATCH(T$2&\" Score\",'C. PoC Adj Factor Scoring'!$E$4:$J$4,0),TRUE)","v":1},{"$f":"VLOOKUP(OFFSET($B:$B,,MATCH(U$4,$B$4:$F$4,0)-1),OFFSET('C. PoC Adj Factor Scoring'!$E$5:$J$282,,MATCH(U$4,'C. PoC Adj Factor Scoring'!$E$3:$AH$3,0)-1),MATCH(U$2&\" Score\",'C. PoC Adj Factor Scoring'!$E$4:$J$4,0),TRUE)","v":1},{"$f":"VLOOKUP(OFFSET($B:$B,,MATCH(V$4,$B$4:$F$4,0)-1),OFFSET('C. PoC Adj Factor Scoring'!$E$5:$J$282,,MATCH(V$4,'C. PoC Adj Factor Scoring'!$E$3:$AH$3,0)-1),MATCH(V$2&\" Score\",'C. PoC Adj Factor Scoring'!$E$4:$J$4,0),TRUE)","v":1},{"$f":"VLOOKUP(OFFSET($B:$B,,MATCH(W$4,$B$4:$F$4,0)-1),OFFSET('C. PoC Adj Factor Scoring'!$E$5:$J$282,,MATCH(W$4,'C. PoC Adj Factor Scoring'!$E$3:$AH$3,0)-1),MATCH(W$2&\" Score\",'C. PoC Adj Factor Scoring'!$E$4:$J$4,0),TRUE)","v":1},{"$f":"VLOOKUP(OFFSET($B:$B,,MATCH(X$4,$B$4:$F$4,0)-1),OFFSET('C. PoC Adj Factor Scoring'!$E$5:$J$282,,MATCH(X$4,'C. PoC Adj Factor Scoring'!$E$3:$AH$3,0)-1),MATCH(X$2&\" Score\",'C. PoC Adj Factor Scoring'!$E$4:$J$4,0),TRUE)","v":1},{"$f":"VLOOKUP(OFFSET($B:$B,,MATCH(Y$4,$B$4:$F$4,0)-1),OFFSET('C. PoC Adj Factor Scoring'!$E$5:$J$282,,MATCH(Y$4,'C. PoC Adj Factor Scoring'!$E$3:$AH$3,0)-1),MATCH(Y$2&\" Score\",'C. PoC Adj Factor Scoring'!$E$4:$J$4,0),TRUE)","v":1},{"$f":"VLOOKUP(OFFSET($B:$B,,MATCH(Z$4,$B$4:$F$4,0)-1),OFFSET('C. PoC Adj Factor Scoring'!$E$5:$J$282,,MATCH(Z$4,'C. PoC Adj Factor Scoring'!$E$3:$AH$3,0)-1),MATCH(Z$2&\" Score\",'C. PoC Adj Factor Scoring'!$E$4:$J$4,0),TRUE)","v":1},{"$f":"VLOOKUP(OFFSET($B:$B,,MATCH(AA$4,$B$4:$F$4,0)-1),OFFSET('C. PoC Adj Factor Scoring'!$E$5:$J$282,,MATCH(AA$4,'C. PoC Adj Factor Scoring'!$E$3:$AH$3,0)-1),MATCH(AA$2&\" Score\",'C. PoC Adj Factor Scoring'!$E$4:$J$4,0),TRUE)","v":3},{"$f":"VLOOKUP(OFFSET($B:$B,,MATCH(AB$4,$B$4:$F$4,0)-1),OFFSET('C. PoC Adj Factor Scoring'!$E$5:$J$282,,MATCH(AB$4,'C. PoC Adj Factor Scoring'!$E$3:$AH$3,0)-1),MATCH(AB$2&\" Score\",'C. PoC Adj Factor Scoring'!$E$4:$J$4,0),TRUE)","v":1},{"$f":"VLOOKUP(OFFSET($B:$B,,MATCH(AC$4,$B$4:$F$4,0)-1),OFFSET('C. PoC Adj Factor Scoring'!$E$5:$J$282,,MATCH(AC$4,'C. PoC Adj Factor Scoring'!$E$3:$AH$3,0)-1),MATCH(AC$2&\" Score\",'C. PoC Adj Factor Scoring'!$E$4:$J$4,0),TRUE)","v":1},{"$f":"VLOOKUP(OFFSET($B:$B,,MATCH(AD$4,$B$4:$F$4,0)-1),OFFSET('C. PoC Adj Factor Scoring'!$E$5:$J$282,,MATCH(AD$4,'C. PoC Adj Factor Scoring'!$E$3:$AH$3,0)-1),MATCH(AD$2&\" Score\",'C. PoC Adj Factor Scoring'!$E$4:$J$4,0),TRUE)","v":1},{"$f":"VLOOKUP(OFFSET($B:$B,,MATCH(AE$4,$B$4:$F$4,0)-1),OFFSET('C. PoC Adj Factor Scoring'!$E$5:$J$282,,MATCH(AE$4,'C. PoC Adj Factor Scoring'!$E$3:$AH$3,0)-1),MATCH(AE$2&\" Score\",'C. PoC Adj Factor Scoring'!$E$4:$J$4,0),TRUE)","v":1}]
[{"$f":"'A. Population Info'!A508","v":1001509331},{"$f":"'A. Population Info'!L508","v":"OIL"},{"$f":"'A. Population Info'!M508","v":0},{"$f":"'A. Population Info'!N508","v":0},{"$f":"'A. Population Info'!O508","v":0},{"$f":"'A. Population Info'!P508","v":0},{"$f":"VLOOKUP(OFFSET($B:$B,,MATCH(G$4,$B$4:$F$4,0)-1),OFFSET('C. PoC Adj Factor Scoring'!$E$5:$J$282,,MATCH(G$4,'C. PoC Adj Factor Scoring'!$E$3:$AH$3,0)-1),MATCH(G$2&\" Score\",'C. PoC Adj Factor Scoring'!$E$4:$J$4,0),TRUE)","v":4},{"$f":"VLOOKUP(OFFSET($B:$B,,MATCH(H$4,$B$4:$F$4,0)-1),OFFSET('C. PoC Adj Factor Scoring'!$E$5:$J$282,,MATCH(H$4,'C. PoC Adj Factor Scoring'!$E$3:$AH$3,0)-1),MATCH(H$2&\" Score\",'C. PoC Adj Factor Scoring'!$E$4:$J$4,0),TRUE)","v":1},{"$f":"VLOOKUP(OFFSET($B:$B,,MATCH(I$4,$B$4:$F$4,0)-1),OFFSET('C. PoC Adj Factor Scoring'!$E$5:$J$282,,MATCH(I$4,'C. PoC Adj Factor Scoring'!$E$3:$AH$3,0)-1),MATCH(I$2&\" Score\",'C. PoC Adj Factor Scoring'!$E$4:$J$4,0),TRUE)","v":1},{"$f":"VLOOKUP(OFFSET($B:$B,,MATCH(J$4,$B$4:$F$4,0)-1),OFFSET('C. PoC Adj Factor Scoring'!$E$5:$J$282,,MATCH(J$4,'C. PoC Adj Factor Scoring'!$E$3:$AH$3,0)-1),MATCH(J$2&\" Score\",'C. PoC Adj Factor Scoring'!$E$4:$J$4,0),TRUE)","v":1},{"$f":"VLOOKUP(OFFSET($B:$B,,MATCH(K$4,$B$4:$F$4,0)-1),OFFSET('C. PoC Adj Factor Scoring'!$E$5:$J$282,,MATCH(K$4,'C. PoC Adj Factor Scoring'!$E$3:$AH$3,0)-1),MATCH(K$2&\" Score\",'C. PoC Adj Factor Scoring'!$E$4:$J$4,0),TRUE)","v":1},{"$f":"VLOOKUP(OFFSET($B:$B,,MATCH(L$4,$B$4:$F$4,0)-1),OFFSET('C. PoC Adj Factor Scoring'!$E$5:$J$282,,MATCH(L$4,'C. PoC Adj Factor Scoring'!$E$3:$AH$3,0)-1),MATCH(L$2&\" Score\",'C. PoC Adj Factor Scoring'!$E$4:$J$4,0),TRUE)","v":1},{"$f":"VLOOKUP(OFFSET($B:$B,,MATCH(M$4,$B$4:$F$4,0)-1),OFFSET('C. PoC Adj Factor Scoring'!$E$5:$J$282,,MATCH(M$4,'C. PoC Adj Factor Scoring'!$E$3:$AH$3,0)-1),MATCH(M$2&\" Score\",'C. PoC Adj Factor Scoring'!$E$4:$J$4,0),TRUE)","v":1},{"$f":"VLOOKUP(OFFSET($B:$B,,MATCH(N$4,$B$4:$F$4,0)-1),OFFSET('C. PoC Adj Factor Scoring'!$E$5:$J$282,,MATCH(N$4,'C. PoC Adj Factor Scoring'!$E$3:$AH$3,0)-1),MATCH(N$2&\" Score\",'C. PoC Adj Factor Scoring'!$E$4:$J$4,0),TRUE)","v":1},{"$f":"VLOOKUP(OFFSET($B:$B,,MATCH(O$4,$B$4:$F$4,0)-1),OFFSET('C. PoC Adj Factor Scoring'!$E$5:$J$282,,MATCH(O$4,'C. PoC Adj Factor Scoring'!$E$3:$AH$3,0)-1),MATCH(O$2&\" Score\",'C. PoC Adj Factor Scoring'!$E$4:$J$4,0),TRUE)","v":1},{"$f":"VLOOKUP(OFFSET($B:$B,,MATCH(P$4,$B$4:$F$4,0)-1),OFFSET('C. PoC Adj Factor Scoring'!$E$5:$J$282,,MATCH(P$4,'C. PoC Adj Factor Scoring'!$E$3:$AH$3,0)-1),MATCH(P$2&\" Score\",'C. PoC Adj Factor Scoring'!$E$4:$J$4,0),TRUE)","v":1},{"$f":"VLOOKUP(OFFSET($B:$B,,MATCH(Q$4,$B$4:$F$4,0)-1),OFFSET('C. PoC Adj Factor Scoring'!$E$5:$J$282,,MATCH(Q$4,'C. PoC Adj Factor Scoring'!$E$3:$AH$3,0)-1),MATCH(Q$2&\" Score\",'C. PoC Adj Factor Scoring'!$E$4:$J$4,0),TRUE)","v":1},{"$f":"VLOOKUP(OFFSET($B:$B,,MATCH(R$4,$B$4:$F$4,0)-1),OFFSET('C. PoC Adj Factor Scoring'!$E$5:$J$282,,MATCH(R$4,'C. PoC Adj Factor Scoring'!$E$3:$AH$3,0)-1),MATCH(R$2&\" Score\",'C. PoC Adj Factor Scoring'!$E$4:$J$4,0),TRUE)","v":1},{"$f":"VLOOKUP(OFFSET($B:$B,,MATCH(S$4,$B$4:$F$4,0)-1),OFFSET('C. PoC Adj Factor Scoring'!$E$5:$J$282,,MATCH(S$4,'C. PoC Adj Factor Scoring'!$E$3:$AH$3,0)-1),MATCH(S$2&\" Score\",'C. PoC Adj Factor Scoring'!$E$4:$J$4,0),TRUE)","v":1},{"$f":"VLOOKUP(OFFSET($B:$B,,MATCH(T$4,$B$4:$F$4,0)-1),OFFSET('C. PoC Adj Factor Scoring'!$E$5:$J$282,,MATCH(T$4,'C. PoC Adj Factor Scoring'!$E$3:$AH$3,0)-1),MATCH(T$2&\" Score\",'C. PoC Adj Factor Scoring'!$E$4:$J$4,0),TRUE)","v":1},{"$f":"VLOOKUP(OFFSET($B:$B,,MATCH(U$4,$B$4:$F$4,0)-1),OFFSET('C. PoC Adj Factor Scoring'!$E$5:$J$282,,MATCH(U$4,'C. PoC Adj Factor Scoring'!$E$3:$AH$3,0)-1),MATCH(U$2&\" Score\",'C. PoC Adj Factor Scoring'!$E$4:$J$4,0),TRUE)","v":1},{"$f":"VLOOKUP(OFFSET($B:$B,,MATCH(V$4,$B$4:$F$4,0)-1),OFFSET('C. PoC Adj Factor Scoring'!$E$5:$J$282,,MATCH(V$4,'C. PoC Adj Factor Scoring'!$E$3:$AH$3,0)-1),MATCH(V$2&\" Score\",'C. PoC Adj Factor Scoring'!$E$4:$J$4,0),TRUE)","v":1},{"$f":"VLOOKUP(OFFSET($B:$B,,MATCH(W$4,$B$4:$F$4,0)-1),OFFSET('C. PoC Adj Factor Scoring'!$E$5:$J$282,,MATCH(W$4,'C. PoC Adj Factor Scoring'!$E$3:$AH$3,0)-1),MATCH(W$2&\" Score\",'C. PoC Adj Factor Scoring'!$E$4:$J$4,0),TRUE)","v":1},{"$f":"VLOOKUP(OFFSET($B:$B,,MATCH(X$4,$B$4:$F$4,0)-1),OFFSET('C. PoC Adj Factor Scoring'!$E$5:$J$282,,MATCH(X$4,'C. PoC Adj Factor Scoring'!$E$3:$AH$3,0)-1),MATCH(X$2&\" Score\",'C. PoC Adj Factor Scoring'!$E$4:$J$4,0),TRUE)","v":1},{"$f":"VLOOKUP(OFFSET($B:$B,,MATCH(Y$4,$B$4:$F$4,0)-1),OFFSET('C. PoC Adj Factor Scoring'!$E$5:$J$282,,MATCH(Y$4,'C. PoC Adj Factor Scoring'!$E$3:$AH$3,0)-1),MATCH(Y$2&\" Score\",'C. PoC Adj Factor Scoring'!$E$4:$J$4,0),TRUE)","v":1},{"$f":"VLOOKUP(OFFSET($B:$B,,MATCH(Z$4,$B$4:$F$4,0)-1),OFFSET('C. PoC Adj Factor Scoring'!$E$5:$J$282,,MATCH(Z$4,'C. PoC Adj Factor Scoring'!$E$3:$AH$3,0)-1),MATCH(Z$2&\" Score\",'C. PoC Adj Factor Scoring'!$E$4:$J$4,0),TRUE)","v":1},{"$f":"VLOOKUP(OFFSET($B:$B,,MATCH(AA$4,$B$4:$F$4,0)-1),OFFSET('C. PoC Adj Factor Scoring'!$E$5:$J$282,,MATCH(AA$4,'C. PoC Adj Factor Scoring'!$E$3:$AH$3,0)-1),MATCH(AA$2&\" Score\",'C. PoC Adj Factor Scoring'!$E$4:$J$4,0),TRUE)","v":3},{"$f":"VLOOKUP(OFFSET($B:$B,,MATCH(AB$4,$B$4:$F$4,0)-1),OFFSET('C. PoC Adj Factor Scoring'!$E$5:$J$282,,MATCH(AB$4,'C. PoC Adj Factor Scoring'!$E$3:$AH$3,0)-1),MATCH(AB$2&\" Score\",'C. PoC Adj Factor Scoring'!$E$4:$J$4,0),TRUE)","v":1},{"$f":"VLOOKUP(OFFSET($B:$B,,MATCH(AC$4,$B$4:$F$4,0)-1),OFFSET('C. PoC Adj Factor Scoring'!$E$5:$J$282,,MATCH(AC$4,'C. PoC Adj Factor Scoring'!$E$3:$AH$3,0)-1),MATCH(AC$2&\" Score\",'C. PoC Adj Factor Scoring'!$E$4:$J$4,0),TRUE)","v":1},{"$f":"VLOOKUP(OFFSET($B:$B,,MATCH(AD$4,$B$4:$F$4,0)-1),OFFSET('C. PoC Adj Factor Scoring'!$E$5:$J$282,,MATCH(AD$4,'C. PoC Adj Factor Scoring'!$E$3:$AH$3,0)-1),MATCH(AD$2&\" Score\",'C. PoC Adj Factor Scoring'!$E$4:$J$4,0),TRUE)","v":1},{"$f":"VLOOKUP(OFFSET($B:$B,,MATCH(AE$4,$B$4:$F$4,0)-1),OFFSET('C. PoC Adj Factor Scoring'!$E$5:$J$282,,MATCH(AE$4,'C. PoC Adj Factor Scoring'!$E$3:$AH$3,0)-1),MATCH(AE$2&\" Score\",'C. PoC Adj Factor Scoring'!$E$4:$J$4,0),TRUE)","v":1}]
[{"$f":"'A. Population Info'!A509","v":1001509851},{"$f":"'A. Population Info'!L509","v":"OIL"},{"$f":"'A. Population Info'!M509","v":0},{"$f":"'A. Population Info'!N509","v":0},{"$f":"'A. Population Info'!O509","v":0},{"$f":"'A. Population Info'!P509","v":0},{"$f":"VLOOKUP(OFFSET($B:$B,,MATCH(G$4,$B$4:$F$4,0)-1),OFFSET('C. PoC Adj Factor Scoring'!$E$5:$J$282,,MATCH(G$4,'C. PoC Adj Factor Scoring'!$E$3:$AH$3,0)-1),MATCH(G$2&\" Score\",'C. PoC Adj Factor Scoring'!$E$4:$J$4,0),TRUE)","v":4},{"$f":"VLOOKUP(OFFSET($B:$B,,MATCH(H$4,$B$4:$F$4,0)-1),OFFSET('C. PoC Adj Factor Scoring'!$E$5:$J$282,,MATCH(H$4,'C. PoC Adj Factor Scoring'!$E$3:$AH$3,0)-1),MATCH(H$2&\" Score\",'C. PoC Adj Factor Scoring'!$E$4:$J$4,0),TRUE)","v":1},{"$f":"VLOOKUP(OFFSET($B:$B,,MATCH(I$4,$B$4:$F$4,0)-1),OFFSET('C. PoC Adj Factor Scoring'!$E$5:$J$282,,MATCH(I$4,'C. PoC Adj Factor Scoring'!$E$3:$AH$3,0)-1),MATCH(I$2&\" Score\",'C. PoC Adj Factor Scoring'!$E$4:$J$4,0),TRUE)","v":1},{"$f":"VLOOKUP(OFFSET($B:$B,,MATCH(J$4,$B$4:$F$4,0)-1),OFFSET('C. PoC Adj Factor Scoring'!$E$5:$J$282,,MATCH(J$4,'C. PoC Adj Factor Scoring'!$E$3:$AH$3,0)-1),MATCH(J$2&\" Score\",'C. PoC Adj Factor Scoring'!$E$4:$J$4,0),TRUE)","v":1},{"$f":"VLOOKUP(OFFSET($B:$B,,MATCH(K$4,$B$4:$F$4,0)-1),OFFSET('C. PoC Adj Factor Scoring'!$E$5:$J$282,,MATCH(K$4,'C. PoC Adj Factor Scoring'!$E$3:$AH$3,0)-1),MATCH(K$2&\" Score\",'C. PoC Adj Factor Scoring'!$E$4:$J$4,0),TRUE)","v":1},{"$f":"VLOOKUP(OFFSET($B:$B,,MATCH(L$4,$B$4:$F$4,0)-1),OFFSET('C. PoC Adj Factor Scoring'!$E$5:$J$282,,MATCH(L$4,'C. PoC Adj Factor Scoring'!$E$3:$AH$3,0)-1),MATCH(L$2&\" Score\",'C. PoC Adj Factor Scoring'!$E$4:$J$4,0),TRUE)","v":1},{"$f":"VLOOKUP(OFFSET($B:$B,,MATCH(M$4,$B$4:$F$4,0)-1),OFFSET('C. PoC Adj Factor Scoring'!$E$5:$J$282,,MATCH(M$4,'C. PoC Adj Factor Scoring'!$E$3:$AH$3,0)-1),MATCH(M$2&\" Score\",'C. PoC Adj Factor Scoring'!$E$4:$J$4,0),TRUE)","v":1},{"$f":"VLOOKUP(OFFSET($B:$B,,MATCH(N$4,$B$4:$F$4,0)-1),OFFSET('C. PoC Adj Factor Scoring'!$E$5:$J$282,,MATCH(N$4,'C. PoC Adj Factor Scoring'!$E$3:$AH$3,0)-1),MATCH(N$2&\" Score\",'C. PoC Adj Factor Scoring'!$E$4:$J$4,0),TRUE)","v":1},{"$f":"VLOOKUP(OFFSET($B:$B,,MATCH(O$4,$B$4:$F$4,0)-1),OFFSET('C. PoC Adj Factor Scoring'!$E$5:$J$282,,MATCH(O$4,'C. PoC Adj Factor Scoring'!$E$3:$AH$3,0)-1),MATCH(O$2&\" Score\",'C. PoC Adj Factor Scoring'!$E$4:$J$4,0),TRUE)","v":1},{"$f":"VLOOKUP(OFFSET($B:$B,,MATCH(P$4,$B$4:$F$4,0)-1),OFFSET('C. PoC Adj Factor Scoring'!$E$5:$J$282,,MATCH(P$4,'C. PoC Adj Factor Scoring'!$E$3:$AH$3,0)-1),MATCH(P$2&\" Score\",'C. PoC Adj Factor Scoring'!$E$4:$J$4,0),TRUE)","v":1},{"$f":"VLOOKUP(OFFSET($B:$B,,MATCH(Q$4,$B$4:$F$4,0)-1),OFFSET('C. PoC Adj Factor Scoring'!$E$5:$J$282,,MATCH(Q$4,'C. PoC Adj Factor Scoring'!$E$3:$AH$3,0)-1),MATCH(Q$2&\" Score\",'C. PoC Adj Factor Scoring'!$E$4:$J$4,0),TRUE)","v":1},{"$f":"VLOOKUP(OFFSET($B:$B,,MATCH(R$4,$B$4:$F$4,0)-1),OFFSET('C. PoC Adj Factor Scoring'!$E$5:$J$282,,MATCH(R$4,'C. PoC Adj Factor Scoring'!$E$3:$AH$3,0)-1),MATCH(R$2&\" Score\",'C. PoC Adj Factor Scoring'!$E$4:$J$4,0),TRUE)","v":1},{"$f":"VLOOKUP(OFFSET($B:$B,,MATCH(S$4,$B$4:$F$4,0)-1),OFFSET('C. PoC Adj Factor Scoring'!$E$5:$J$282,,MATCH(S$4,'C. PoC Adj Factor Scoring'!$E$3:$AH$3,0)-1),MATCH(S$2&\" Score\",'C. PoC Adj Factor Scoring'!$E$4:$J$4,0),TRUE)","v":1},{"$f":"VLOOKUP(OFFSET($B:$B,,MATCH(T$4,$B$4:$F$4,0)-1),OFFSET('C. PoC Adj Factor Scoring'!$E$5:$J$282,,MATCH(T$4,'C. PoC Adj Factor Scoring'!$E$3:$AH$3,0)-1),MATCH(T$2&\" Score\",'C. PoC Adj Factor Scoring'!$E$4:$J$4,0),TRUE)","v":1},{"$f":"VLOOKUP(OFFSET($B:$B,,MATCH(U$4,$B$4:$F$4,0)-1),OFFSET('C. PoC Adj Factor Scoring'!$E$5:$J$282,,MATCH(U$4,'C. PoC Adj Factor Scoring'!$E$3:$AH$3,0)-1),MATCH(U$2&\" Score\",'C. PoC Adj Factor Scoring'!$E$4:$J$4,0),TRUE)","v":1},{"$f":"VLOOKUP(OFFSET($B:$B,,MATCH(V$4,$B$4:$F$4,0)-1),OFFSET('C. PoC Adj Factor Scoring'!$E$5:$J$282,,MATCH(V$4,'C. PoC Adj Factor Scoring'!$E$3:$AH$3,0)-1),MATCH(V$2&\" Score\",'C. PoC Adj Factor Scoring'!$E$4:$J$4,0),TRUE)","v":1},{"$f":"VLOOKUP(OFFSET($B:$B,,MATCH(W$4,$B$4:$F$4,0)-1),OFFSET('C. PoC Adj Factor Scoring'!$E$5:$J$282,,MATCH(W$4,'C. PoC Adj Factor Scoring'!$E$3:$AH$3,0)-1),MATCH(W$2&\" Score\",'C. PoC Adj Factor Scoring'!$E$4:$J$4,0),TRUE)","v":1},{"$f":"VLOOKUP(OFFSET($B:$B,,MATCH(X$4,$B$4:$F$4,0)-1),OFFSET('C. PoC Adj Factor Scoring'!$E$5:$J$282,,MATCH(X$4,'C. PoC Adj Factor Scoring'!$E$3:$AH$3,0)-1),MATCH(X$2&\" Score\",'C. PoC Adj Factor Scoring'!$E$4:$J$4,0),TRUE)","v":1},{"$f":"VLOOKUP(OFFSET($B:$B,,MATCH(Y$4,$B$4:$F$4,0)-1),OFFSET('C. PoC Adj Factor Scoring'!$E$5:$J$282,,MATCH(Y$4,'C. PoC Adj Factor Scoring'!$E$3:$AH$3,0)-1),MATCH(Y$2&\" Score\",'C. PoC Adj Factor Scoring'!$E$4:$J$4,0),TRUE)","v":1},{"$f":"VLOOKUP(OFFSET($B:$B,,MATCH(Z$4,$B$4:$F$4,0)-1),OFFSET('C. PoC Adj Factor Scoring'!$E$5:$J$282,,MATCH(Z$4,'C. PoC Adj Factor Scoring'!$E$3:$AH$3,0)-1),MATCH(Z$2&\" Score\",'C. PoC Adj Factor Scoring'!$E$4:$J$4,0),TRUE)","v":1},{"$f":"VLOOKUP(OFFSET($B:$B,,MATCH(AA$4,$B$4:$F$4,0)-1),OFFSET('C. PoC Adj Factor Scoring'!$E$5:$J$282,,MATCH(AA$4,'C. PoC Adj Factor Scoring'!$E$3:$AH$3,0)-1),MATCH(AA$2&\" Score\",'C. PoC Adj Factor Scoring'!$E$4:$J$4,0),TRUE)","v":3},{"$f":"VLOOKUP(OFFSET($B:$B,,MATCH(AB$4,$B$4:$F$4,0)-1),OFFSET('C. PoC Adj Factor Scoring'!$E$5:$J$282,,MATCH(AB$4,'C. PoC Adj Factor Scoring'!$E$3:$AH$3,0)-1),MATCH(AB$2&\" Score\",'C. PoC Adj Factor Scoring'!$E$4:$J$4,0),TRUE)","v":1},{"$f":"VLOOKUP(OFFSET($B:$B,,MATCH(AC$4,$B$4:$F$4,0)-1),OFFSET('C. PoC Adj Factor Scoring'!$E$5:$J$282,,MATCH(AC$4,'C. PoC Adj Factor Scoring'!$E$3:$AH$3,0)-1),MATCH(AC$2&\" Score\",'C. PoC Adj Factor Scoring'!$E$4:$J$4,0),TRUE)","v":1},{"$f":"VLOOKUP(OFFSET($B:$B,,MATCH(AD$4,$B$4:$F$4,0)-1),OFFSET('C. PoC Adj Factor Scoring'!$E$5:$J$282,,MATCH(AD$4,'C. PoC Adj Factor Scoring'!$E$3:$AH$3,0)-1),MATCH(AD$2&\" Score\",'C. PoC Adj Factor Scoring'!$E$4:$J$4,0),TRUE)","v":1},{"$f":"VLOOKUP(OFFSET($B:$B,,MATCH(AE$4,$B$4:$F$4,0)-1),OFFSET('C. PoC Adj Factor Scoring'!$E$5:$J$282,,MATCH(AE$4,'C. PoC Adj Factor Scoring'!$E$3:$AH$3,0)-1),MATCH(AE$2&\" Score\",'C. PoC Adj Factor Scoring'!$E$4:$J$4,0),TRUE)","v":1}]
[{"$f":"'A. Population Info'!A510","v":1001509852},{"$f":"'A. Population Info'!L510","v":"OIL"},{"$f":"'A. Population Info'!M510","v":0},{"$f":"'A. Population Info'!N510","v":0},{"$f":"'A. Population Info'!O510","v":0},{"$f":"'A. Population Info'!P510","v":0},{"$f":"VLOOKUP(OFFSET($B:$B,,MATCH(G$4,$B$4:$F$4,0)-1),OFFSET('C. PoC Adj Factor Scoring'!$E$5:$J$282,,MATCH(G$4,'C. PoC Adj Factor Scoring'!$E$3:$AH$3,0)-1),MATCH(G$2&\" Score\",'C. PoC Adj Factor Scoring'!$E$4:$J$4,0),TRUE)","v":4},{"$f":"VLOOKUP(OFFSET($B:$B,,MATCH(H$4,$B$4:$F$4,0)-1),OFFSET('C. PoC Adj Factor Scoring'!$E$5:$J$282,,MATCH(H$4,'C. PoC Adj Factor Scoring'!$E$3:$AH$3,0)-1),MATCH(H$2&\" Score\",'C. PoC Adj Factor Scoring'!$E$4:$J$4,0),TRUE)","v":1},{"$f":"VLOOKUP(OFFSET($B:$B,,MATCH(I$4,$B$4:$F$4,0)-1),OFFSET('C. PoC Adj Factor Scoring'!$E$5:$J$282,,MATCH(I$4,'C. PoC Adj Factor Scoring'!$E$3:$AH$3,0)-1),MATCH(I$2&\" Score\",'C. PoC Adj Factor Scoring'!$E$4:$J$4,0),TRUE)","v":1},{"$f":"VLOOKUP(OFFSET($B:$B,,MATCH(J$4,$B$4:$F$4,0)-1),OFFSET('C. PoC Adj Factor Scoring'!$E$5:$J$282,,MATCH(J$4,'C. PoC Adj Factor Scoring'!$E$3:$AH$3,0)-1),MATCH(J$2&\" Score\",'C. PoC Adj Factor Scoring'!$E$4:$J$4,0),TRUE)","v":1},{"$f":"VLOOKUP(OFFSET($B:$B,,MATCH(K$4,$B$4:$F$4,0)-1),OFFSET('C. PoC Adj Factor Scoring'!$E$5:$J$282,,MATCH(K$4,'C. PoC Adj Factor Scoring'!$E$3:$AH$3,0)-1),MATCH(K$2&\" Score\",'C. PoC Adj Factor Scoring'!$E$4:$J$4,0),TRUE)","v":1},{"$f":"VLOOKUP(OFFSET($B:$B,,MATCH(L$4,$B$4:$F$4,0)-1),OFFSET('C. PoC Adj Factor Scoring'!$E$5:$J$282,,MATCH(L$4,'C. PoC Adj Factor Scoring'!$E$3:$AH$3,0)-1),MATCH(L$2&\" Score\",'C. PoC Adj Factor Scoring'!$E$4:$J$4,0),TRUE)","v":1},{"$f":"VLOOKUP(OFFSET($B:$B,,MATCH(M$4,$B$4:$F$4,0)-1),OFFSET('C. PoC Adj Factor Scoring'!$E$5:$J$282,,MATCH(M$4,'C. PoC Adj Factor Scoring'!$E$3:$AH$3,0)-1),MATCH(M$2&\" Score\",'C. PoC Adj Factor Scoring'!$E$4:$J$4,0),TRUE)","v":1},{"$f":"VLOOKUP(OFFSET($B:$B,,MATCH(N$4,$B$4:$F$4,0)-1),OFFSET('C. PoC Adj Factor Scoring'!$E$5:$J$282,,MATCH(N$4,'C. PoC Adj Factor Scoring'!$E$3:$AH$3,0)-1),MATCH(N$2&\" Score\",'C. PoC Adj Factor Scoring'!$E$4:$J$4,0),TRUE)","v":1},{"$f":"VLOOKUP(OFFSET($B:$B,,MATCH(O$4,$B$4:$F$4,0)-1),OFFSET('C. PoC Adj Factor Scoring'!$E$5:$J$282,,MATCH(O$4,'C. PoC Adj Factor Scoring'!$E$3:$AH$3,0)-1),MATCH(O$2&\" Score\",'C. PoC Adj Factor Scoring'!$E$4:$J$4,0),TRUE)","v":1},{"$f":"VLOOKUP(OFFSET($B:$B,,MATCH(P$4,$B$4:$F$4,0)-1),OFFSET('C. PoC Adj Factor Scoring'!$E$5:$J$282,,MATCH(P$4,'C. PoC Adj Factor Scoring'!$E$3:$AH$3,0)-1),MATCH(P$2&\" Score\",'C. PoC Adj Factor Scoring'!$E$4:$J$4,0),TRUE)","v":1},{"$f":"VLOOKUP(OFFSET($B:$B,,MATCH(Q$4,$B$4:$F$4,0)-1),OFFSET('C. PoC Adj Factor Scoring'!$E$5:$J$282,,MATCH(Q$4,'C. PoC Adj Factor Scoring'!$E$3:$AH$3,0)-1),MATCH(Q$2&\" Score\",'C. PoC Adj Factor Scoring'!$E$4:$J$4,0),TRUE)","v":1},{"$f":"VLOOKUP(OFFSET($B:$B,,MATCH(R$4,$B$4:$F$4,0)-1),OFFSET('C. PoC Adj Factor Scoring'!$E$5:$J$282,,MATCH(R$4,'C. PoC Adj Factor Scoring'!$E$3:$AH$3,0)-1),MATCH(R$2&\" Score\",'C. PoC Adj Factor Scoring'!$E$4:$J$4,0),TRUE)","v":1},{"$f":"VLOOKUP(OFFSET($B:$B,,MATCH(S$4,$B$4:$F$4,0)-1),OFFSET('C. PoC Adj Factor Scoring'!$E$5:$J$282,,MATCH(S$4,'C. PoC Adj Factor Scoring'!$E$3:$AH$3,0)-1),MATCH(S$2&\" Score\",'C. PoC Adj Factor Scoring'!$E$4:$J$4,0),TRUE)","v":1},{"$f":"VLOOKUP(OFFSET($B:$B,,MATCH(T$4,$B$4:$F$4,0)-1),OFFSET('C. PoC Adj Factor Scoring'!$E$5:$J$282,,MATCH(T$4,'C. PoC Adj Factor Scoring'!$E$3:$AH$3,0)-1),MATCH(T$2&\" Score\",'C. PoC Adj Factor Scoring'!$E$4:$J$4,0),TRUE)","v":1},{"$f":"VLOOKUP(OFFSET($B:$B,,MATCH(U$4,$B$4:$F$4,0)-1),OFFSET('C. PoC Adj Factor Scoring'!$E$5:$J$282,,MATCH(U$4,'C. PoC Adj Factor Scoring'!$E$3:$AH$3,0)-1),MATCH(U$2&\" Score\",'C. PoC Adj Factor Scoring'!$E$4:$J$4,0),TRUE)","v":1},{"$f":"VLOOKUP(OFFSET($B:$B,,MATCH(V$4,$B$4:$F$4,0)-1),OFFSET('C. PoC Adj Factor Scoring'!$E$5:$J$282,,MATCH(V$4,'C. PoC Adj Factor Scoring'!$E$3:$AH$3,0)-1),MATCH(V$2&\" Score\",'C. PoC Adj Factor Scoring'!$E$4:$J$4,0),TRUE)","v":1},{"$f":"VLOOKUP(OFFSET($B:$B,,MATCH(W$4,$B$4:$F$4,0)-1),OFFSET('C. PoC Adj Factor Scoring'!$E$5:$J$282,,MATCH(W$4,'C. PoC Adj Factor Scoring'!$E$3:$AH$3,0)-1),MATCH(W$2&\" Score\",'C. PoC Adj Factor Scoring'!$E$4:$J$4,0),TRUE)","v":1},{"$f":"VLOOKUP(OFFSET($B:$B,,MATCH(X$4,$B$4:$F$4,0)-1),OFFSET('C. PoC Adj Factor Scoring'!$E$5:$J$282,,MATCH(X$4,'C. PoC Adj Factor Scoring'!$E$3:$AH$3,0)-1),MATCH(X$2&\" Score\",'C. PoC Adj Factor Scoring'!$E$4:$J$4,0),TRUE)","v":1},{"$f":"VLOOKUP(OFFSET($B:$B,,MATCH(Y$4,$B$4:$F$4,0)-1),OFFSET('C. PoC Adj Factor Scoring'!$E$5:$J$282,,MATCH(Y$4,'C. PoC Adj Factor Scoring'!$E$3:$AH$3,0)-1),MATCH(Y$2&\" Score\",'C. PoC Adj Factor Scoring'!$E$4:$J$4,0),TRUE)","v":1},{"$f":"VLOOKUP(OFFSET($B:$B,,MATCH(Z$4,$B$4:$F$4,0)-1),OFFSET('C. PoC Adj Factor Scoring'!$E$5:$J$282,,MATCH(Z$4,'C. PoC Adj Factor Scoring'!$E$3:$AH$3,0)-1),MATCH(Z$2&\" Score\",'C. PoC Adj Factor Scoring'!$E$4:$J$4,0),TRUE)","v":1},{"$f":"VLOOKUP(OFFSET($B:$B,,MATCH(AA$4,$B$4:$F$4,0)-1),OFFSET('C. PoC Adj Factor Scoring'!$E$5:$J$282,,MATCH(AA$4,'C. PoC Adj Factor Scoring'!$E$3:$AH$3,0)-1),MATCH(AA$2&\" Score\",'C. PoC Adj Factor Scoring'!$E$4:$J$4,0),TRUE)","v":3},{"$f":"VLOOKUP(OFFSET($B:$B,,MATCH(AB$4,$B$4:$F$4,0)-1),OFFSET('C. PoC Adj Factor Scoring'!$E$5:$J$282,,MATCH(AB$4,'C. PoC Adj Factor Scoring'!$E$3:$AH$3,0)-1),MATCH(AB$2&\" Score\",'C. PoC Adj Factor Scoring'!$E$4:$J$4,0),TRUE)","v":1},{"$f":"VLOOKUP(OFFSET($B:$B,,MATCH(AC$4,$B$4:$F$4,0)-1),OFFSET('C. PoC Adj Factor Scoring'!$E$5:$J$282,,MATCH(AC$4,'C. PoC Adj Factor Scoring'!$E$3:$AH$3,0)-1),MATCH(AC$2&\" Score\",'C. PoC Adj Factor Scoring'!$E$4:$J$4,0),TRUE)","v":1},{"$f":"VLOOKUP(OFFSET($B:$B,,MATCH(AD$4,$B$4:$F$4,0)-1),OFFSET('C. PoC Adj Factor Scoring'!$E$5:$J$282,,MATCH(AD$4,'C. PoC Adj Factor Scoring'!$E$3:$AH$3,0)-1),MATCH(AD$2&\" Score\",'C. PoC Adj Factor Scoring'!$E$4:$J$4,0),TRUE)","v":1},{"$f":"VLOOKUP(OFFSET($B:$B,,MATCH(AE$4,$B$4:$F$4,0)-1),OFFSET('C. PoC Adj Factor Scoring'!$E$5:$J$282,,MATCH(AE$4,'C. PoC Adj Factor Scoring'!$E$3:$AH$3,0)-1),MATCH(AE$2&\" Score\",'C. PoC Adj Factor Scoring'!$E$4:$J$4,0),TRUE)","v":1}]
[{"$f":"'A. Population Info'!A511","v":1001511639},{"$f":"'A. Population Info'!L511","v":"OIL"},{"$f":"'A. Population Info'!M511","v":0},{"$f":"'A. Population Info'!N511","v":0},{"$f":"'A. Population Info'!O511","v":0},{"$f":"'A. Population Info'!P511","v":0},{"$f":"VLOOKUP(OFFSET($B:$B,,MATCH(G$4,$B$4:$F$4,0)-1),OFFSET('C. PoC Adj Factor Scoring'!$E$5:$J$282,,MATCH(G$4,'C. PoC Adj Factor Scoring'!$E$3:$AH$3,0)-1),MATCH(G$2&\" Score\",'C. PoC Adj Factor Scoring'!$E$4:$J$4,0),TRUE)","v":4},{"$f":"VLOOKUP(OFFSET($B:$B,,MATCH(H$4,$B$4:$F$4,0)-1),OFFSET('C. PoC Adj Factor Scoring'!$E$5:$J$282,,MATCH(H$4,'C. PoC Adj Factor Scoring'!$E$3:$AH$3,0)-1),MATCH(H$2&\" Score\",'C. PoC Adj Factor Scoring'!$E$4:$J$4,0),TRUE)","v":1},{"$f":"VLOOKUP(OFFSET($B:$B,,MATCH(I$4,$B$4:$F$4,0)-1),OFFSET('C. PoC Adj Factor Scoring'!$E$5:$J$282,,MATCH(I$4,'C. PoC Adj Factor Scoring'!$E$3:$AH$3,0)-1),MATCH(I$2&\" Score\",'C. PoC Adj Factor Scoring'!$E$4:$J$4,0),TRUE)","v":1},{"$f":"VLOOKUP(OFFSET($B:$B,,MATCH(J$4,$B$4:$F$4,0)-1),OFFSET('C. PoC Adj Factor Scoring'!$E$5:$J$282,,MATCH(J$4,'C. PoC Adj Factor Scoring'!$E$3:$AH$3,0)-1),MATCH(J$2&\" Score\",'C. PoC Adj Factor Scoring'!$E$4:$J$4,0),TRUE)","v":1},{"$f":"VLOOKUP(OFFSET($B:$B,,MATCH(K$4,$B$4:$F$4,0)-1),OFFSET('C. PoC Adj Factor Scoring'!$E$5:$J$282,,MATCH(K$4,'C. PoC Adj Factor Scoring'!$E$3:$AH$3,0)-1),MATCH(K$2&\" Score\",'C. PoC Adj Factor Scoring'!$E$4:$J$4,0),TRUE)","v":1},{"$f":"VLOOKUP(OFFSET($B:$B,,MATCH(L$4,$B$4:$F$4,0)-1),OFFSET('C. PoC Adj Factor Scoring'!$E$5:$J$282,,MATCH(L$4,'C. PoC Adj Factor Scoring'!$E$3:$AH$3,0)-1),MATCH(L$2&\" Score\",'C. PoC Adj Factor Scoring'!$E$4:$J$4,0),TRUE)","v":1},{"$f":"VLOOKUP(OFFSET($B:$B,,MATCH(M$4,$B$4:$F$4,0)-1),OFFSET('C. PoC Adj Factor Scoring'!$E$5:$J$282,,MATCH(M$4,'C. PoC Adj Factor Scoring'!$E$3:$AH$3,0)-1),MATCH(M$2&\" Score\",'C. PoC Adj Factor Scoring'!$E$4:$J$4,0),TRUE)","v":1},{"$f":"VLOOKUP(OFFSET($B:$B,,MATCH(N$4,$B$4:$F$4,0)-1),OFFSET('C. PoC Adj Factor Scoring'!$E$5:$J$282,,MATCH(N$4,'C. PoC Adj Factor Scoring'!$E$3:$AH$3,0)-1),MATCH(N$2&\" Score\",'C. PoC Adj Factor Scoring'!$E$4:$J$4,0),TRUE)","v":1},{"$f":"VLOOKUP(OFFSET($B:$B,,MATCH(O$4,$B$4:$F$4,0)-1),OFFSET('C. PoC Adj Factor Scoring'!$E$5:$J$282,,MATCH(O$4,'C. PoC Adj Factor Scoring'!$E$3:$AH$3,0)-1),MATCH(O$2&\" Score\",'C. PoC Adj Factor Scoring'!$E$4:$J$4,0),TRUE)","v":1},{"$f":"VLOOKUP(OFFSET($B:$B,,MATCH(P$4,$B$4:$F$4,0)-1),OFFSET('C. PoC Adj Factor Scoring'!$E$5:$J$282,,MATCH(P$4,'C. PoC Adj Factor Scoring'!$E$3:$AH$3,0)-1),MATCH(P$2&\" Score\",'C. PoC Adj Factor Scoring'!$E$4:$J$4,0),TRUE)","v":1},{"$f":"VLOOKUP(OFFSET($B:$B,,MATCH(Q$4,$B$4:$F$4,0)-1),OFFSET('C. PoC Adj Factor Scoring'!$E$5:$J$282,,MATCH(Q$4,'C. PoC Adj Factor Scoring'!$E$3:$AH$3,0)-1),MATCH(Q$2&\" Score\",'C. PoC Adj Factor Scoring'!$E$4:$J$4,0),TRUE)","v":1},{"$f":"VLOOKUP(OFFSET($B:$B,,MATCH(R$4,$B$4:$F$4,0)-1),OFFSET('C. PoC Adj Factor Scoring'!$E$5:$J$282,,MATCH(R$4,'C. PoC Adj Factor Scoring'!$E$3:$AH$3,0)-1),MATCH(R$2&\" Score\",'C. PoC Adj Factor Scoring'!$E$4:$J$4,0),TRUE)","v":1},{"$f":"VLOOKUP(OFFSET($B:$B,,MATCH(S$4,$B$4:$F$4,0)-1),OFFSET('C. PoC Adj Factor Scoring'!$E$5:$J$282,,MATCH(S$4,'C. PoC Adj Factor Scoring'!$E$3:$AH$3,0)-1),MATCH(S$2&\" Score\",'C. PoC Adj Factor Scoring'!$E$4:$J$4,0),TRUE)","v":1},{"$f":"VLOOKUP(OFFSET($B:$B,,MATCH(T$4,$B$4:$F$4,0)-1),OFFSET('C. PoC Adj Factor Scoring'!$E$5:$J$282,,MATCH(T$4,'C. PoC Adj Factor Scoring'!$E$3:$AH$3,0)-1),MATCH(T$2&\" Score\",'C. PoC Adj Factor Scoring'!$E$4:$J$4,0),TRUE)","v":1},{"$f":"VLOOKUP(OFFSET($B:$B,,MATCH(U$4,$B$4:$F$4,0)-1),OFFSET('C. PoC Adj Factor Scoring'!$E$5:$J$282,,MATCH(U$4,'C. PoC Adj Factor Scoring'!$E$3:$AH$3,0)-1),MATCH(U$2&\" Score\",'C. PoC Adj Factor Scoring'!$E$4:$J$4,0),TRUE)","v":1},{"$f":"VLOOKUP(OFFSET($B:$B,,MATCH(V$4,$B$4:$F$4,0)-1),OFFSET('C. PoC Adj Factor Scoring'!$E$5:$J$282,,MATCH(V$4,'C. PoC Adj Factor Scoring'!$E$3:$AH$3,0)-1),MATCH(V$2&\" Score\",'C. PoC Adj Factor Scoring'!$E$4:$J$4,0),TRUE)","v":1},{"$f":"VLOOKUP(OFFSET($B:$B,,MATCH(W$4,$B$4:$F$4,0)-1),OFFSET('C. PoC Adj Factor Scoring'!$E$5:$J$282,,MATCH(W$4,'C. PoC Adj Factor Scoring'!$E$3:$AH$3,0)-1),MATCH(W$2&\" Score\",'C. PoC Adj Factor Scoring'!$E$4:$J$4,0),TRUE)","v":1},{"$f":"VLOOKUP(OFFSET($B:$B,,MATCH(X$4,$B$4:$F$4,0)-1),OFFSET('C. PoC Adj Factor Scoring'!$E$5:$J$282,,MATCH(X$4,'C. PoC Adj Factor Scoring'!$E$3:$AH$3,0)-1),MATCH(X$2&\" Score\",'C. PoC Adj Factor Scoring'!$E$4:$J$4,0),TRUE)","v":1},{"$f":"VLOOKUP(OFFSET($B:$B,,MATCH(Y$4,$B$4:$F$4,0)-1),OFFSET('C. PoC Adj Factor Scoring'!$E$5:$J$282,,MATCH(Y$4,'C. PoC Adj Factor Scoring'!$E$3:$AH$3,0)-1),MATCH(Y$2&\" Score\",'C. PoC Adj Factor Scoring'!$E$4:$J$4,0),TRUE)","v":1},{"$f":"VLOOKUP(OFFSET($B:$B,,MATCH(Z$4,$B$4:$F$4,0)-1),OFFSET('C. PoC Adj Factor Scoring'!$E$5:$J$282,,MATCH(Z$4,'C. PoC Adj Factor Scoring'!$E$3:$AH$3,0)-1),MATCH(Z$2&\" Score\",'C. PoC Adj Factor Scoring'!$E$4:$J$4,0),TRUE)","v":1},{"$f":"VLOOKUP(OFFSET($B:$B,,MATCH(AA$4,$B$4:$F$4,0)-1),OFFSET('C. PoC Adj Factor Scoring'!$E$5:$J$282,,MATCH(AA$4,'C. PoC Adj Factor Scoring'!$E$3:$AH$3,0)-1),MATCH(AA$2&\" Score\",'C. PoC Adj Factor Scoring'!$E$4:$J$4,0),TRUE)","v":3},{"$f":"VLOOKUP(OFFSET($B:$B,,MATCH(AB$4,$B$4:$F$4,0)-1),OFFSET('C. PoC Adj Factor Scoring'!$E$5:$J$282,,MATCH(AB$4,'C. PoC Adj Factor Scoring'!$E$3:$AH$3,0)-1),MATCH(AB$2&\" Score\",'C. PoC Adj Factor Scoring'!$E$4:$J$4,0),TRUE)","v":1},{"$f":"VLOOKUP(OFFSET($B:$B,,MATCH(AC$4,$B$4:$F$4,0)-1),OFFSET('C. PoC Adj Factor Scoring'!$E$5:$J$282,,MATCH(AC$4,'C. PoC Adj Factor Scoring'!$E$3:$AH$3,0)-1),MATCH(AC$2&\" Score\",'C. PoC Adj Factor Scoring'!$E$4:$J$4,0),TRUE)","v":1},{"$f":"VLOOKUP(OFFSET($B:$B,,MATCH(AD$4,$B$4:$F$4,0)-1),OFFSET('C. PoC Adj Factor Scoring'!$E$5:$J$282,,MATCH(AD$4,'C. PoC Adj Factor Scoring'!$E$3:$AH$3,0)-1),MATCH(AD$2&\" Score\",'C. PoC Adj Factor Scoring'!$E$4:$J$4,0),TRUE)","v":1},{"$f":"VLOOKUP(OFFSET($B:$B,,MATCH(AE$4,$B$4:$F$4,0)-1),OFFSET('C. PoC Adj Factor Scoring'!$E$5:$J$282,,MATCH(AE$4,'C. PoC Adj Factor Scoring'!$E$3:$AH$3,0)-1),MATCH(AE$2&\" Score\",'C. PoC Adj Factor Scoring'!$E$4:$J$4,0),TRUE)","v":1}]
[{"$f":"'A. Population Info'!A512","v":1001521524},{"$f":"'A. Population Info'!L512","v":"OIL"},{"$f":"'A. Population Info'!M512","v":0},{"$f":"'A. Population Info'!N512","v":0},{"$f":"'A. Population Info'!O512","v":0},{"$f":"'A. Population Info'!P512","v":0},{"$f":"VLOOKUP(OFFSET($B:$B,,MATCH(G$4,$B$4:$F$4,0)-1),OFFSET('C. PoC Adj Factor Scoring'!$E$5:$J$282,,MATCH(G$4,'C. PoC Adj Factor Scoring'!$E$3:$AH$3,0)-1),MATCH(G$2&\" Score\",'C. PoC Adj Factor Scoring'!$E$4:$J$4,0),TRUE)","v":4},{"$f":"VLOOKUP(OFFSET($B:$B,,MATCH(H$4,$B$4:$F$4,0)-1),OFFSET('C. PoC Adj Factor Scoring'!$E$5:$J$282,,MATCH(H$4,'C. PoC Adj Factor Scoring'!$E$3:$AH$3,0)-1),MATCH(H$2&\" Score\",'C. PoC Adj Factor Scoring'!$E$4:$J$4,0),TRUE)","v":1},{"$f":"VLOOKUP(OFFSET($B:$B,,MATCH(I$4,$B$4:$F$4,0)-1),OFFSET('C. PoC Adj Factor Scoring'!$E$5:$J$282,,MATCH(I$4,'C. PoC Adj Factor Scoring'!$E$3:$AH$3,0)-1),MATCH(I$2&\" Score\",'C. PoC Adj Factor Scoring'!$E$4:$J$4,0),TRUE)","v":1},{"$f":"VLOOKUP(OFFSET($B:$B,,MATCH(J$4,$B$4:$F$4,0)-1),OFFSET('C. PoC Adj Factor Scoring'!$E$5:$J$282,,MATCH(J$4,'C. PoC Adj Factor Scoring'!$E$3:$AH$3,0)-1),MATCH(J$2&\" Score\",'C. PoC Adj Factor Scoring'!$E$4:$J$4,0),TRUE)","v":1},{"$f":"VLOOKUP(OFFSET($B:$B,,MATCH(K$4,$B$4:$F$4,0)-1),OFFSET('C. PoC Adj Factor Scoring'!$E$5:$J$282,,MATCH(K$4,'C. PoC Adj Factor Scoring'!$E$3:$AH$3,0)-1),MATCH(K$2&\" Score\",'C. PoC Adj Factor Scoring'!$E$4:$J$4,0),TRUE)","v":1},{"$f":"VLOOKUP(OFFSET($B:$B,,MATCH(L$4,$B$4:$F$4,0)-1),OFFSET('C. PoC Adj Factor Scoring'!$E$5:$J$282,,MATCH(L$4,'C. PoC Adj Factor Scoring'!$E$3:$AH$3,0)-1),MATCH(L$2&\" Score\",'C. PoC Adj Factor Scoring'!$E$4:$J$4,0),TRUE)","v":1},{"$f":"VLOOKUP(OFFSET($B:$B,,MATCH(M$4,$B$4:$F$4,0)-1),OFFSET('C. PoC Adj Factor Scoring'!$E$5:$J$282,,MATCH(M$4,'C. PoC Adj Factor Scoring'!$E$3:$AH$3,0)-1),MATCH(M$2&\" Score\",'C. PoC Adj Factor Scoring'!$E$4:$J$4,0),TRUE)","v":1},{"$f":"VLOOKUP(OFFSET($B:$B,,MATCH(N$4,$B$4:$F$4,0)-1),OFFSET('C. PoC Adj Factor Scoring'!$E$5:$J$282,,MATCH(N$4,'C. PoC Adj Factor Scoring'!$E$3:$AH$3,0)-1),MATCH(N$2&\" Score\",'C. PoC Adj Factor Scoring'!$E$4:$J$4,0),TRUE)","v":1},{"$f":"VLOOKUP(OFFSET($B:$B,,MATCH(O$4,$B$4:$F$4,0)-1),OFFSET('C. PoC Adj Factor Scoring'!$E$5:$J$282,,MATCH(O$4,'C. PoC Adj Factor Scoring'!$E$3:$AH$3,0)-1),MATCH(O$2&\" Score\",'C. PoC Adj Factor Scoring'!$E$4:$J$4,0),TRUE)","v":1},{"$f":"VLOOKUP(OFFSET($B:$B,,MATCH(P$4,$B$4:$F$4,0)-1),OFFSET('C. PoC Adj Factor Scoring'!$E$5:$J$282,,MATCH(P$4,'C. PoC Adj Factor Scoring'!$E$3:$AH$3,0)-1),MATCH(P$2&\" Score\",'C. PoC Adj Factor Scoring'!$E$4:$J$4,0),TRUE)","v":1},{"$f":"VLOOKUP(OFFSET($B:$B,,MATCH(Q$4,$B$4:$F$4,0)-1),OFFSET('C. PoC Adj Factor Scoring'!$E$5:$J$282,,MATCH(Q$4,'C. PoC Adj Factor Scoring'!$E$3:$AH$3,0)-1),MATCH(Q$2&\" Score\",'C. PoC Adj Factor Scoring'!$E$4:$J$4,0),TRUE)","v":1},{"$f":"VLOOKUP(OFFSET($B:$B,,MATCH(R$4,$B$4:$F$4,0)-1),OFFSET('C. PoC Adj Factor Scoring'!$E$5:$J$282,,MATCH(R$4,'C. PoC Adj Factor Scoring'!$E$3:$AH$3,0)-1),MATCH(R$2&\" Score\",'C. PoC Adj Factor Scoring'!$E$4:$J$4,0),TRUE)","v":1},{"$f":"VLOOKUP(OFFSET($B:$B,,MATCH(S$4,$B$4:$F$4,0)-1),OFFSET('C. PoC Adj Factor Scoring'!$E$5:$J$282,,MATCH(S$4,'C. PoC Adj Factor Scoring'!$E$3:$AH$3,0)-1),MATCH(S$2&\" Score\",'C. PoC Adj Factor Scoring'!$E$4:$J$4,0),TRUE)","v":1},{"$f":"VLOOKUP(OFFSET($B:$B,,MATCH(T$4,$B$4:$F$4,0)-1),OFFSET('C. PoC Adj Factor Scoring'!$E$5:$J$282,,MATCH(T$4,'C. PoC Adj Factor Scoring'!$E$3:$AH$3,0)-1),MATCH(T$2&\" Score\",'C. PoC Adj Factor Scoring'!$E$4:$J$4,0),TRUE)","v":1},{"$f":"VLOOKUP(OFFSET($B:$B,,MATCH(U$4,$B$4:$F$4,0)-1),OFFSET('C. PoC Adj Factor Scoring'!$E$5:$J$282,,MATCH(U$4,'C. PoC Adj Factor Scoring'!$E$3:$AH$3,0)-1),MATCH(U$2&\" Score\",'C. PoC Adj Factor Scoring'!$E$4:$J$4,0),TRUE)","v":1},{"$f":"VLOOKUP(OFFSET($B:$B,,MATCH(V$4,$B$4:$F$4,0)-1),OFFSET('C. PoC Adj Factor Scoring'!$E$5:$J$282,,MATCH(V$4,'C. PoC Adj Factor Scoring'!$E$3:$AH$3,0)-1),MATCH(V$2&\" Score\",'C. PoC Adj Factor Scoring'!$E$4:$J$4,0),TRUE)","v":1},{"$f":"VLOOKUP(OFFSET($B:$B,,MATCH(W$4,$B$4:$F$4,0)-1),OFFSET('C. PoC Adj Factor Scoring'!$E$5:$J$282,,MATCH(W$4,'C. PoC Adj Factor Scoring'!$E$3:$AH$3,0)-1),MATCH(W$2&\" Score\",'C. PoC Adj Factor Scoring'!$E$4:$J$4,0),TRUE)","v":1},{"$f":"VLOOKUP(OFFSET($B:$B,,MATCH(X$4,$B$4:$F$4,0)-1),OFFSET('C. PoC Adj Factor Scoring'!$E$5:$J$282,,MATCH(X$4,'C. PoC Adj Factor Scoring'!$E$3:$AH$3,0)-1),MATCH(X$2&\" Score\",'C. PoC Adj Factor Scoring'!$E$4:$J$4,0),TRUE)","v":1},{"$f":"VLOOKUP(OFFSET($B:$B,,MATCH(Y$4,$B$4:$F$4,0)-1),OFFSET('C. PoC Adj Factor Scoring'!$E$5:$J$282,,MATCH(Y$4,'C. PoC Adj Factor Scoring'!$E$3:$AH$3,0)-1),MATCH(Y$2&\" Score\",'C. PoC Adj Factor Scoring'!$E$4:$J$4,0),TRUE)","v":1},{"$f":"VLOOKUP(OFFSET($B:$B,,MATCH(Z$4,$B$4:$F$4,0)-1),OFFSET('C. PoC Adj Factor Scoring'!$E$5:$J$282,,MATCH(Z$4,'C. PoC Adj Factor Scoring'!$E$3:$AH$3,0)-1),MATCH(Z$2&\" Score\",'C. PoC Adj Factor Scoring'!$E$4:$J$4,0),TRUE)","v":1},{"$f":"VLOOKUP(OFFSET($B:$B,,MATCH(AA$4,$B$4:$F$4,0)-1),OFFSET('C. PoC Adj Factor Scoring'!$E$5:$J$282,,MATCH(AA$4,'C. PoC Adj Factor Scoring'!$E$3:$AH$3,0)-1),MATCH(AA$2&\" Score\",'C. PoC Adj Factor Scoring'!$E$4:$J$4,0),TRUE)","v":3},{"$f":"VLOOKUP(OFFSET($B:$B,,MATCH(AB$4,$B$4:$F$4,0)-1),OFFSET('C. PoC Adj Factor Scoring'!$E$5:$J$282,,MATCH(AB$4,'C. PoC Adj Factor Scoring'!$E$3:$AH$3,0)-1),MATCH(AB$2&\" Score\",'C. PoC Adj Factor Scoring'!$E$4:$J$4,0),TRUE)","v":1},{"$f":"VLOOKUP(OFFSET($B:$B,,MATCH(AC$4,$B$4:$F$4,0)-1),OFFSET('C. PoC Adj Factor Scoring'!$E$5:$J$282,,MATCH(AC$4,'C. PoC Adj Factor Scoring'!$E$3:$AH$3,0)-1),MATCH(AC$2&\" Score\",'C. PoC Adj Factor Scoring'!$E$4:$J$4,0),TRUE)","v":1},{"$f":"VLOOKUP(OFFSET($B:$B,,MATCH(AD$4,$B$4:$F$4,0)-1),OFFSET('C. PoC Adj Factor Scoring'!$E$5:$J$282,,MATCH(AD$4,'C. PoC Adj Factor Scoring'!$E$3:$AH$3,0)-1),MATCH(AD$2&\" Score\",'C. PoC Adj Factor Scoring'!$E$4:$J$4,0),TRUE)","v":1},{"$f":"VLOOKUP(OFFSET($B:$B,,MATCH(AE$4,$B$4:$F$4,0)-1),OFFSET('C. PoC Adj Factor Scoring'!$E$5:$J$282,,MATCH(AE$4,'C. PoC Adj Factor Scoring'!$E$3:$AH$3,0)-1),MATCH(AE$2&\" Score\",'C. PoC Adj Factor Scoring'!$E$4:$J$4,0),TRUE)","v":1}]
[{"$f":"'A. Population Info'!A513","v":1001521525},{"$f":"'A. Population Info'!L513","v":"OIL"},{"$f":"'A. Population Info'!M513","v":0},{"$f":"'A. Population Info'!N513","v":0},{"$f":"'A. Population Info'!O513","v":0},{"$f":"'A. Population Info'!P513","v":0},{"$f":"VLOOKUP(OFFSET($B:$B,,MATCH(G$4,$B$4:$F$4,0)-1),OFFSET('C. PoC Adj Factor Scoring'!$E$5:$J$282,,MATCH(G$4,'C. PoC Adj Factor Scoring'!$E$3:$AH$3,0)-1),MATCH(G$2&\" Score\",'C. PoC Adj Factor Scoring'!$E$4:$J$4,0),TRUE)","v":4},{"$f":"VLOOKUP(OFFSET($B:$B,,MATCH(H$4,$B$4:$F$4,0)-1),OFFSET('C. PoC Adj Factor Scoring'!$E$5:$J$282,,MATCH(H$4,'C. PoC Adj Factor Scoring'!$E$3:$AH$3,0)-1),MATCH(H$2&\" Score\",'C. PoC Adj Factor Scoring'!$E$4:$J$4,0),TRUE)","v":1},{"$f":"VLOOKUP(OFFSET($B:$B,,MATCH(I$4,$B$4:$F$4,0)-1),OFFSET('C. PoC Adj Factor Scoring'!$E$5:$J$282,,MATCH(I$4,'C. PoC Adj Factor Scoring'!$E$3:$AH$3,0)-1),MATCH(I$2&\" Score\",'C. PoC Adj Factor Scoring'!$E$4:$J$4,0),TRUE)","v":1},{"$f":"VLOOKUP(OFFSET($B:$B,,MATCH(J$4,$B$4:$F$4,0)-1),OFFSET('C. PoC Adj Factor Scoring'!$E$5:$J$282,,MATCH(J$4,'C. PoC Adj Factor Scoring'!$E$3:$AH$3,0)-1),MATCH(J$2&\" Score\",'C. PoC Adj Factor Scoring'!$E$4:$J$4,0),TRUE)","v":1},{"$f":"VLOOKUP(OFFSET($B:$B,,MATCH(K$4,$B$4:$F$4,0)-1),OFFSET('C. PoC Adj Factor Scoring'!$E$5:$J$282,,MATCH(K$4,'C. PoC Adj Factor Scoring'!$E$3:$AH$3,0)-1),MATCH(K$2&\" Score\",'C. PoC Adj Factor Scoring'!$E$4:$J$4,0),TRUE)","v":1},{"$f":"VLOOKUP(OFFSET($B:$B,,MATCH(L$4,$B$4:$F$4,0)-1),OFFSET('C. PoC Adj Factor Scoring'!$E$5:$J$282,,MATCH(L$4,'C. PoC Adj Factor Scoring'!$E$3:$AH$3,0)-1),MATCH(L$2&\" Score\",'C. PoC Adj Factor Scoring'!$E$4:$J$4,0),TRUE)","v":1},{"$f":"VLOOKUP(OFFSET($B:$B,,MATCH(M$4,$B$4:$F$4,0)-1),OFFSET('C. PoC Adj Factor Scoring'!$E$5:$J$282,,MATCH(M$4,'C. PoC Adj Factor Scoring'!$E$3:$AH$3,0)-1),MATCH(M$2&\" Score\",'C. PoC Adj Factor Scoring'!$E$4:$J$4,0),TRUE)","v":1},{"$f":"VLOOKUP(OFFSET($B:$B,,MATCH(N$4,$B$4:$F$4,0)-1),OFFSET('C. PoC Adj Factor Scoring'!$E$5:$J$282,,MATCH(N$4,'C. PoC Adj Factor Scoring'!$E$3:$AH$3,0)-1),MATCH(N$2&\" Score\",'C. PoC Adj Factor Scoring'!$E$4:$J$4,0),TRUE)","v":1},{"$f":"VLOOKUP(OFFSET($B:$B,,MATCH(O$4,$B$4:$F$4,0)-1),OFFSET('C. PoC Adj Factor Scoring'!$E$5:$J$282,,MATCH(O$4,'C. PoC Adj Factor Scoring'!$E$3:$AH$3,0)-1),MATCH(O$2&\" Score\",'C. PoC Adj Factor Scoring'!$E$4:$J$4,0),TRUE)","v":1},{"$f":"VLOOKUP(OFFSET($B:$B,,MATCH(P$4,$B$4:$F$4,0)-1),OFFSET('C. PoC Adj Factor Scoring'!$E$5:$J$282,,MATCH(P$4,'C. PoC Adj Factor Scoring'!$E$3:$AH$3,0)-1),MATCH(P$2&\" Score\",'C. PoC Adj Factor Scoring'!$E$4:$J$4,0),TRUE)","v":1},{"$f":"VLOOKUP(OFFSET($B:$B,,MATCH(Q$4,$B$4:$F$4,0)-1),OFFSET('C. PoC Adj Factor Scoring'!$E$5:$J$282,,MATCH(Q$4,'C. PoC Adj Factor Scoring'!$E$3:$AH$3,0)-1),MATCH(Q$2&\" Score\",'C. PoC Adj Factor Scoring'!$E$4:$J$4,0),TRUE)","v":1},{"$f":"VLOOKUP(OFFSET($B:$B,,MATCH(R$4,$B$4:$F$4,0)-1),OFFSET('C. PoC Adj Factor Scoring'!$E$5:$J$282,,MATCH(R$4,'C. PoC Adj Factor Scoring'!$E$3:$AH$3,0)-1),MATCH(R$2&\" Score\",'C. PoC Adj Factor Scoring'!$E$4:$J$4,0),TRUE)","v":1},{"$f":"VLOOKUP(OFFSET($B:$B,,MATCH(S$4,$B$4:$F$4,0)-1),OFFSET('C. PoC Adj Factor Scoring'!$E$5:$J$282,,MATCH(S$4,'C. PoC Adj Factor Scoring'!$E$3:$AH$3,0)-1),MATCH(S$2&\" Score\",'C. PoC Adj Factor Scoring'!$E$4:$J$4,0),TRUE)","v":1},{"$f":"VLOOKUP(OFFSET($B:$B,,MATCH(T$4,$B$4:$F$4,0)-1),OFFSET('C. PoC Adj Factor Scoring'!$E$5:$J$282,,MATCH(T$4,'C. PoC Adj Factor Scoring'!$E$3:$AH$3,0)-1),MATCH(T$2&\" Score\",'C. PoC Adj Factor Scoring'!$E$4:$J$4,0),TRUE)","v":1},{"$f":"VLOOKUP(OFFSET($B:$B,,MATCH(U$4,$B$4:$F$4,0)-1),OFFSET('C. PoC Adj Factor Scoring'!$E$5:$J$282,,MATCH(U$4,'C. PoC Adj Factor Scoring'!$E$3:$AH$3,0)-1),MATCH(U$2&\" Score\",'C. PoC Adj Factor Scoring'!$E$4:$J$4,0),TRUE)","v":1},{"$f":"VLOOKUP(OFFSET($B:$B,,MATCH(V$4,$B$4:$F$4,0)-1),OFFSET('C. PoC Adj Factor Scoring'!$E$5:$J$282,,MATCH(V$4,'C. PoC Adj Factor Scoring'!$E$3:$AH$3,0)-1),MATCH(V$2&\" Score\",'C. PoC Adj Factor Scoring'!$E$4:$J$4,0),TRUE)","v":1},{"$f":"VLOOKUP(OFFSET($B:$B,,MATCH(W$4,$B$4:$F$4,0)-1),OFFSET('C. PoC Adj Factor Scoring'!$E$5:$J$282,,MATCH(W$4,'C. PoC Adj Factor Scoring'!$E$3:$AH$3,0)-1),MATCH(W$2&\" Score\",'C. PoC Adj Factor Scoring'!$E$4:$J$4,0),TRUE)","v":1},{"$f":"VLOOKUP(OFFSET($B:$B,,MATCH(X$4,$B$4:$F$4,0)-1),OFFSET('C. PoC Adj Factor Scoring'!$E$5:$J$282,,MATCH(X$4,'C. PoC Adj Factor Scoring'!$E$3:$AH$3,0)-1),MATCH(X$2&\" Score\",'C. PoC Adj Factor Scoring'!$E$4:$J$4,0),TRUE)","v":1},{"$f":"VLOOKUP(OFFSET($B:$B,,MATCH(Y$4,$B$4:$F$4,0)-1),OFFSET('C. PoC Adj Factor Scoring'!$E$5:$J$282,,MATCH(Y$4,'C. PoC Adj Factor Scoring'!$E$3:$AH$3,0)-1),MATCH(Y$2&\" Score\",'C. PoC Adj Factor Scoring'!$E$4:$J$4,0),TRUE)","v":1},{"$f":"VLOOKUP(OFFSET($B:$B,,MATCH(Z$4,$B$4:$F$4,0)-1),OFFSET('C. PoC Adj Factor Scoring'!$E$5:$J$282,,MATCH(Z$4,'C. PoC Adj Factor Scoring'!$E$3:$AH$3,0)-1),MATCH(Z$2&\" Score\",'C. PoC Adj Factor Scoring'!$E$4:$J$4,0),TRUE)","v":1},{"$f":"VLOOKUP(OFFSET($B:$B,,MATCH(AA$4,$B$4:$F$4,0)-1),OFFSET('C. PoC Adj Factor Scoring'!$E$5:$J$282,,MATCH(AA$4,'C. PoC Adj Factor Scoring'!$E$3:$AH$3,0)-1),MATCH(AA$2&\" Score\",'C. PoC Adj Factor Scoring'!$E$4:$J$4,0),TRUE)","v":3},{"$f":"VLOOKUP(OFFSET($B:$B,,MATCH(AB$4,$B$4:$F$4,0)-1),OFFSET('C. PoC Adj Factor Scoring'!$E$5:$J$282,,MATCH(AB$4,'C. PoC Adj Factor Scoring'!$E$3:$AH$3,0)-1),MATCH(AB$2&\" Score\",'C. PoC Adj Factor Scoring'!$E$4:$J$4,0),TRUE)","v":1},{"$f":"VLOOKUP(OFFSET($B:$B,,MATCH(AC$4,$B$4:$F$4,0)-1),OFFSET('C. PoC Adj Factor Scoring'!$E$5:$J$282,,MATCH(AC$4,'C. PoC Adj Factor Scoring'!$E$3:$AH$3,0)-1),MATCH(AC$2&\" Score\",'C. PoC Adj Factor Scoring'!$E$4:$J$4,0),TRUE)","v":1},{"$f":"VLOOKUP(OFFSET($B:$B,,MATCH(AD$4,$B$4:$F$4,0)-1),OFFSET('C. PoC Adj Factor Scoring'!$E$5:$J$282,,MATCH(AD$4,'C. PoC Adj Factor Scoring'!$E$3:$AH$3,0)-1),MATCH(AD$2&\" Score\",'C. PoC Adj Factor Scoring'!$E$4:$J$4,0),TRUE)","v":1},{"$f":"VLOOKUP(OFFSET($B:$B,,MATCH(AE$4,$B$4:$F$4,0)-1),OFFSET('C. PoC Adj Factor Scoring'!$E$5:$J$282,,MATCH(AE$4,'C. PoC Adj Factor Scoring'!$E$3:$AH$3,0)-1),MATCH(AE$2&\" Score\",'C. PoC Adj Factor Scoring'!$E$4:$J$4,0),TRUE)","v":1}]
[{"$f":"'A. Population Info'!A514","v":1001521526},{"$f":"'A. Population Info'!L514","v":"OIL"},{"$f":"'A. Population Info'!M514","v":0},{"$f":"'A. Population Info'!N514","v":0},{"$f":"'A. Population Info'!O514","v":0},{"$f":"'A. Population Info'!P514","v":0},{"$f":"VLOOKUP(OFFSET($B:$B,,MATCH(G$4,$B$4:$F$4,0)-1),OFFSET('C. PoC Adj Factor Scoring'!$E$5:$J$282,,MATCH(G$4,'C. PoC Adj Factor Scoring'!$E$3:$AH$3,0)-1),MATCH(G$2&\" Score\",'C. PoC Adj Factor Scoring'!$E$4:$J$4,0),TRUE)","v":4},{"$f":"VLOOKUP(OFFSET($B:$B,,MATCH(H$4,$B$4:$F$4,0)-1),OFFSET('C. PoC Adj Factor Scoring'!$E$5:$J$282,,MATCH(H$4,'C. PoC Adj Factor Scoring'!$E$3:$AH$3,0)-1),MATCH(H$2&\" Score\",'C. PoC Adj Factor Scoring'!$E$4:$J$4,0),TRUE)","v":1},{"$f":"VLOOKUP(OFFSET($B:$B,,MATCH(I$4,$B$4:$F$4,0)-1),OFFSET('C. PoC Adj Factor Scoring'!$E$5:$J$282,,MATCH(I$4,'C. PoC Adj Factor Scoring'!$E$3:$AH$3,0)-1),MATCH(I$2&\" Score\",'C. PoC Adj Factor Scoring'!$E$4:$J$4,0),TRUE)","v":1},{"$f":"VLOOKUP(OFFSET($B:$B,,MATCH(J$4,$B$4:$F$4,0)-1),OFFSET('C. PoC Adj Factor Scoring'!$E$5:$J$282,,MATCH(J$4,'C. PoC Adj Factor Scoring'!$E$3:$AH$3,0)-1),MATCH(J$2&\" Score\",'C. PoC Adj Factor Scoring'!$E$4:$J$4,0),TRUE)","v":1},{"$f":"VLOOKUP(OFFSET($B:$B,,MATCH(K$4,$B$4:$F$4,0)-1),OFFSET('C. PoC Adj Factor Scoring'!$E$5:$J$282,,MATCH(K$4,'C. PoC Adj Factor Scoring'!$E$3:$AH$3,0)-1),MATCH(K$2&\" Score\",'C. PoC Adj Factor Scoring'!$E$4:$J$4,0),TRUE)","v":1},{"$f":"VLOOKUP(OFFSET($B:$B,,MATCH(L$4,$B$4:$F$4,0)-1),OFFSET('C. PoC Adj Factor Scoring'!$E$5:$J$282,,MATCH(L$4,'C. PoC Adj Factor Scoring'!$E$3:$AH$3,0)-1),MATCH(L$2&\" Score\",'C. PoC Adj Factor Scoring'!$E$4:$J$4,0),TRUE)","v":1},{"$f":"VLOOKUP(OFFSET($B:$B,,MATCH(M$4,$B$4:$F$4,0)-1),OFFSET('C. PoC Adj Factor Scoring'!$E$5:$J$282,,MATCH(M$4,'C. PoC Adj Factor Scoring'!$E$3:$AH$3,0)-1),MATCH(M$2&\" Score\",'C. PoC Adj Factor Scoring'!$E$4:$J$4,0),TRUE)","v":1},{"$f":"VLOOKUP(OFFSET($B:$B,,MATCH(N$4,$B$4:$F$4,0)-1),OFFSET('C. PoC Adj Factor Scoring'!$E$5:$J$282,,MATCH(N$4,'C. PoC Adj Factor Scoring'!$E$3:$AH$3,0)-1),MATCH(N$2&\" Score\",'C. PoC Adj Factor Scoring'!$E$4:$J$4,0),TRUE)","v":1},{"$f":"VLOOKUP(OFFSET($B:$B,,MATCH(O$4,$B$4:$F$4,0)-1),OFFSET('C. PoC Adj Factor Scoring'!$E$5:$J$282,,MATCH(O$4,'C. PoC Adj Factor Scoring'!$E$3:$AH$3,0)-1),MATCH(O$2&\" Score\",'C. PoC Adj Factor Scoring'!$E$4:$J$4,0),TRUE)","v":1},{"$f":"VLOOKUP(OFFSET($B:$B,,MATCH(P$4,$B$4:$F$4,0)-1),OFFSET('C. PoC Adj Factor Scoring'!$E$5:$J$282,,MATCH(P$4,'C. PoC Adj Factor Scoring'!$E$3:$AH$3,0)-1),MATCH(P$2&\" Score\",'C. PoC Adj Factor Scoring'!$E$4:$J$4,0),TRUE)","v":1},{"$f":"VLOOKUP(OFFSET($B:$B,,MATCH(Q$4,$B$4:$F$4,0)-1),OFFSET('C. PoC Adj Factor Scoring'!$E$5:$J$282,,MATCH(Q$4,'C. PoC Adj Factor Scoring'!$E$3:$AH$3,0)-1),MATCH(Q$2&\" Score\",'C. PoC Adj Factor Scoring'!$E$4:$J$4,0),TRUE)","v":1},{"$f":"VLOOKUP(OFFSET($B:$B,,MATCH(R$4,$B$4:$F$4,0)-1),OFFSET('C. PoC Adj Factor Scoring'!$E$5:$J$282,,MATCH(R$4,'C. PoC Adj Factor Scoring'!$E$3:$AH$3,0)-1),MATCH(R$2&\" Score\",'C. PoC Adj Factor Scoring'!$E$4:$J$4,0),TRUE)","v":1},{"$f":"VLOOKUP(OFFSET($B:$B,,MATCH(S$4,$B$4:$F$4,0)-1),OFFSET('C. PoC Adj Factor Scoring'!$E$5:$J$282,,MATCH(S$4,'C. PoC Adj Factor Scoring'!$E$3:$AH$3,0)-1),MATCH(S$2&\" Score\",'C. PoC Adj Factor Scoring'!$E$4:$J$4,0),TRUE)","v":1},{"$f":"VLOOKUP(OFFSET($B:$B,,MATCH(T$4,$B$4:$F$4,0)-1),OFFSET('C. PoC Adj Factor Scoring'!$E$5:$J$282,,MATCH(T$4,'C. PoC Adj Factor Scoring'!$E$3:$AH$3,0)-1),MATCH(T$2&\" Score\",'C. PoC Adj Factor Scoring'!$E$4:$J$4,0),TRUE)","v":1},{"$f":"VLOOKUP(OFFSET($B:$B,,MATCH(U$4,$B$4:$F$4,0)-1),OFFSET('C. PoC Adj Factor Scoring'!$E$5:$J$282,,MATCH(U$4,'C. PoC Adj Factor Scoring'!$E$3:$AH$3,0)-1),MATCH(U$2&\" Score\",'C. PoC Adj Factor Scoring'!$E$4:$J$4,0),TRUE)","v":1},{"$f":"VLOOKUP(OFFSET($B:$B,,MATCH(V$4,$B$4:$F$4,0)-1),OFFSET('C. PoC Adj Factor Scoring'!$E$5:$J$282,,MATCH(V$4,'C. PoC Adj Factor Scoring'!$E$3:$AH$3,0)-1),MATCH(V$2&\" Score\",'C. PoC Adj Factor Scoring'!$E$4:$J$4,0),TRUE)","v":1},{"$f":"VLOOKUP(OFFSET($B:$B,,MATCH(W$4,$B$4:$F$4,0)-1),OFFSET('C. PoC Adj Factor Scoring'!$E$5:$J$282,,MATCH(W$4,'C. PoC Adj Factor Scoring'!$E$3:$AH$3,0)-1),MATCH(W$2&\" Score\",'C. PoC Adj Factor Scoring'!$E$4:$J$4,0),TRUE)","v":1},{"$f":"VLOOKUP(OFFSET($B:$B,,MATCH(X$4,$B$4:$F$4,0)-1),OFFSET('C. PoC Adj Factor Scoring'!$E$5:$J$282,,MATCH(X$4,'C. PoC Adj Factor Scoring'!$E$3:$AH$3,0)-1),MATCH(X$2&\" Score\",'C. PoC Adj Factor Scoring'!$E$4:$J$4,0),TRUE)","v":1},{"$f":"VLOOKUP(OFFSET($B:$B,,MATCH(Y$4,$B$4:$F$4,0)-1),OFFSET('C. PoC Adj Factor Scoring'!$E$5:$J$282,,MATCH(Y$4,'C. PoC Adj Factor Scoring'!$E$3:$AH$3,0)-1),MATCH(Y$2&\" Score\",'C. PoC Adj Factor Scoring'!$E$4:$J$4,0),TRUE)","v":1},{"$f":"VLOOKUP(OFFSET($B:$B,,MATCH(Z$4,$B$4:$F$4,0)-1),OFFSET('C. PoC Adj Factor Scoring'!$E$5:$J$282,,MATCH(Z$4,'C. PoC Adj Factor Scoring'!$E$3:$AH$3,0)-1),MATCH(Z$2&\" Score\",'C. PoC Adj Factor Scoring'!$E$4:$J$4,0),TRUE)","v":1},{"$f":"VLOOKUP(OFFSET($B:$B,,MATCH(AA$4,$B$4:$F$4,0)-1),OFFSET('C. PoC Adj Factor Scoring'!$E$5:$J$282,,MATCH(AA$4,'C. PoC Adj Factor Scoring'!$E$3:$AH$3,0)-1),MATCH(AA$2&\" Score\",'C. PoC Adj Factor Scoring'!$E$4:$J$4,0),TRUE)","v":3},{"$f":"VLOOKUP(OFFSET($B:$B,,MATCH(AB$4,$B$4:$F$4,0)-1),OFFSET('C. PoC Adj Factor Scoring'!$E$5:$J$282,,MATCH(AB$4,'C. PoC Adj Factor Scoring'!$E$3:$AH$3,0)-1),MATCH(AB$2&\" Score\",'C. PoC Adj Factor Scoring'!$E$4:$J$4,0),TRUE)","v":1},{"$f":"VLOOKUP(OFFSET($B:$B,,MATCH(AC$4,$B$4:$F$4,0)-1),OFFSET('C. PoC Adj Factor Scoring'!$E$5:$J$282,,MATCH(AC$4,'C. PoC Adj Factor Scoring'!$E$3:$AH$3,0)-1),MATCH(AC$2&\" Score\",'C. PoC Adj Factor Scoring'!$E$4:$J$4,0),TRUE)","v":1},{"$f":"VLOOKUP(OFFSET($B:$B,,MATCH(AD$4,$B$4:$F$4,0)-1),OFFSET('C. PoC Adj Factor Scoring'!$E$5:$J$282,,MATCH(AD$4,'C. PoC Adj Factor Scoring'!$E$3:$AH$3,0)-1),MATCH(AD$2&\" Score\",'C. PoC Adj Factor Scoring'!$E$4:$J$4,0),TRUE)","v":1},{"$f":"VLOOKUP(OFFSET($B:$B,,MATCH(AE$4,$B$4:$F$4,0)-1),OFFSET('C. PoC Adj Factor Scoring'!$E$5:$J$282,,MATCH(AE$4,'C. PoC Adj Factor Scoring'!$E$3:$AH$3,0)-1),MATCH(AE$2&\" Score\",'C. PoC Adj Factor Scoring'!$E$4:$J$4,0),TRUE)","v":1}]
[{"$f":"'A. Population Info'!A515","v":1001521527},{"$f":"'A. Population Info'!L515","v":"OIL"},{"$f":"'A. Population Info'!M515","v":0},{"$f":"'A. Population Info'!N515","v":0},{"$f":"'A. Population Info'!O515","v":0},{"$f":"'A. Population Info'!P515","v":0},{"$f":"VLOOKUP(OFFSET($B:$B,,MATCH(G$4,$B$4:$F$4,0)-1),OFFSET('C. PoC Adj Factor Scoring'!$E$5:$J$282,,MATCH(G$4,'C. PoC Adj Factor Scoring'!$E$3:$AH$3,0)-1),MATCH(G$2&\" Score\",'C. PoC Adj Factor Scoring'!$E$4:$J$4,0),TRUE)","v":4},{"$f":"VLOOKUP(OFFSET($B:$B,,MATCH(H$4,$B$4:$F$4,0)-1),OFFSET('C. PoC Adj Factor Scoring'!$E$5:$J$282,,MATCH(H$4,'C. PoC Adj Factor Scoring'!$E$3:$AH$3,0)-1),MATCH(H$2&\" Score\",'C. PoC Adj Factor Scoring'!$E$4:$J$4,0),TRUE)","v":1},{"$f":"VLOOKUP(OFFSET($B:$B,,MATCH(I$4,$B$4:$F$4,0)-1),OFFSET('C. PoC Adj Factor Scoring'!$E$5:$J$282,,MATCH(I$4,'C. PoC Adj Factor Scoring'!$E$3:$AH$3,0)-1),MATCH(I$2&\" Score\",'C. PoC Adj Factor Scoring'!$E$4:$J$4,0),TRUE)","v":1},{"$f":"VLOOKUP(OFFSET($B:$B,,MATCH(J$4,$B$4:$F$4,0)-1),OFFSET('C. PoC Adj Factor Scoring'!$E$5:$J$282,,MATCH(J$4,'C. PoC Adj Factor Scoring'!$E$3:$AH$3,0)-1),MATCH(J$2&\" Score\",'C. PoC Adj Factor Scoring'!$E$4:$J$4,0),TRUE)","v":1},{"$f":"VLOOKUP(OFFSET($B:$B,,MATCH(K$4,$B$4:$F$4,0)-1),OFFSET('C. PoC Adj Factor Scoring'!$E$5:$J$282,,MATCH(K$4,'C. PoC Adj Factor Scoring'!$E$3:$AH$3,0)-1),MATCH(K$2&\" Score\",'C. PoC Adj Factor Scoring'!$E$4:$J$4,0),TRUE)","v":1},{"$f":"VLOOKUP(OFFSET($B:$B,,MATCH(L$4,$B$4:$F$4,0)-1),OFFSET('C. PoC Adj Factor Scoring'!$E$5:$J$282,,MATCH(L$4,'C. PoC Adj Factor Scoring'!$E$3:$AH$3,0)-1),MATCH(L$2&\" Score\",'C. PoC Adj Factor Scoring'!$E$4:$J$4,0),TRUE)","v":1},{"$f":"VLOOKUP(OFFSET($B:$B,,MATCH(M$4,$B$4:$F$4,0)-1),OFFSET('C. PoC Adj Factor Scoring'!$E$5:$J$282,,MATCH(M$4,'C. PoC Adj Factor Scoring'!$E$3:$AH$3,0)-1),MATCH(M$2&\" Score\",'C. PoC Adj Factor Scoring'!$E$4:$J$4,0),TRUE)","v":1},{"$f":"VLOOKUP(OFFSET($B:$B,,MATCH(N$4,$B$4:$F$4,0)-1),OFFSET('C. PoC Adj Factor Scoring'!$E$5:$J$282,,MATCH(N$4,'C. PoC Adj Factor Scoring'!$E$3:$AH$3,0)-1),MATCH(N$2&\" Score\",'C. PoC Adj Factor Scoring'!$E$4:$J$4,0),TRUE)","v":1},{"$f":"VLOOKUP(OFFSET($B:$B,,MATCH(O$4,$B$4:$F$4,0)-1),OFFSET('C. PoC Adj Factor Scoring'!$E$5:$J$282,,MATCH(O$4,'C. PoC Adj Factor Scoring'!$E$3:$AH$3,0)-1),MATCH(O$2&\" Score\",'C. PoC Adj Factor Scoring'!$E$4:$J$4,0),TRUE)","v":1},{"$f":"VLOOKUP(OFFSET($B:$B,,MATCH(P$4,$B$4:$F$4,0)-1),OFFSET('C. PoC Adj Factor Scoring'!$E$5:$J$282,,MATCH(P$4,'C. PoC Adj Factor Scoring'!$E$3:$AH$3,0)-1),MATCH(P$2&\" Score\",'C. PoC Adj Factor Scoring'!$E$4:$J$4,0),TRUE)","v":1},{"$f":"VLOOKUP(OFFSET($B:$B,,MATCH(Q$4,$B$4:$F$4,0)-1),OFFSET('C. PoC Adj Factor Scoring'!$E$5:$J$282,,MATCH(Q$4,'C. PoC Adj Factor Scoring'!$E$3:$AH$3,0)-1),MATCH(Q$2&\" Score\",'C. PoC Adj Factor Scoring'!$E$4:$J$4,0),TRUE)","v":1},{"$f":"VLOOKUP(OFFSET($B:$B,,MATCH(R$4,$B$4:$F$4,0)-1),OFFSET('C. PoC Adj Factor Scoring'!$E$5:$J$282,,MATCH(R$4,'C. PoC Adj Factor Scoring'!$E$3:$AH$3,0)-1),MATCH(R$2&\" Score\",'C. PoC Adj Factor Scoring'!$E$4:$J$4,0),TRUE)","v":1},{"$f":"VLOOKUP(OFFSET($B:$B,,MATCH(S$4,$B$4:$F$4,0)-1),OFFSET('C. PoC Adj Factor Scoring'!$E$5:$J$282,,MATCH(S$4,'C. PoC Adj Factor Scoring'!$E$3:$AH$3,0)-1),MATCH(S$2&\" Score\",'C. PoC Adj Factor Scoring'!$E$4:$J$4,0),TRUE)","v":1},{"$f":"VLOOKUP(OFFSET($B:$B,,MATCH(T$4,$B$4:$F$4,0)-1),OFFSET('C. PoC Adj Factor Scoring'!$E$5:$J$282,,MATCH(T$4,'C. PoC Adj Factor Scoring'!$E$3:$AH$3,0)-1),MATCH(T$2&\" Score\",'C. PoC Adj Factor Scoring'!$E$4:$J$4,0),TRUE)","v":1},{"$f":"VLOOKUP(OFFSET($B:$B,,MATCH(U$4,$B$4:$F$4,0)-1),OFFSET('C. PoC Adj Factor Scoring'!$E$5:$J$282,,MATCH(U$4,'C. PoC Adj Factor Scoring'!$E$3:$AH$3,0)-1),MATCH(U$2&\" Score\",'C. PoC Adj Factor Scoring'!$E$4:$J$4,0),TRUE)","v":1},{"$f":"VLOOKUP(OFFSET($B:$B,,MATCH(V$4,$B$4:$F$4,0)-1),OFFSET('C. PoC Adj Factor Scoring'!$E$5:$J$282,,MATCH(V$4,'C. PoC Adj Factor Scoring'!$E$3:$AH$3,0)-1),MATCH(V$2&\" Score\",'C. PoC Adj Factor Scoring'!$E$4:$J$4,0),TRUE)","v":1},{"$f":"VLOOKUP(OFFSET($B:$B,,MATCH(W$4,$B$4:$F$4,0)-1),OFFSET('C. PoC Adj Factor Scoring'!$E$5:$J$282,,MATCH(W$4,'C. PoC Adj Factor Scoring'!$E$3:$AH$3,0)-1),MATCH(W$2&\" Score\",'C. PoC Adj Factor Scoring'!$E$4:$J$4,0),TRUE)","v":1},{"$f":"VLOOKUP(OFFSET($B:$B,,MATCH(X$4,$B$4:$F$4,0)-1),OFFSET('C. PoC Adj Factor Scoring'!$E$5:$J$282,,MATCH(X$4,'C. PoC Adj Factor Scoring'!$E$3:$AH$3,0)-1),MATCH(X$2&\" Score\",'C. PoC Adj Factor Scoring'!$E$4:$J$4,0),TRUE)","v":1},{"$f":"VLOOKUP(OFFSET($B:$B,,MATCH(Y$4,$B$4:$F$4,0)-1),OFFSET('C. PoC Adj Factor Scoring'!$E$5:$J$282,,MATCH(Y$4,'C. PoC Adj Factor Scoring'!$E$3:$AH$3,0)-1),MATCH(Y$2&\" Score\",'C. PoC Adj Factor Scoring'!$E$4:$J$4,0),TRUE)","v":1},{"$f":"VLOOKUP(OFFSET($B:$B,,MATCH(Z$4,$B$4:$F$4,0)-1),OFFSET('C. PoC Adj Factor Scoring'!$E$5:$J$282,,MATCH(Z$4,'C. PoC Adj Factor Scoring'!$E$3:$AH$3,0)-1),MATCH(Z$2&\" Score\",'C. PoC Adj Factor Scoring'!$E$4:$J$4,0),TRUE)","v":1},{"$f":"VLOOKUP(OFFSET($B:$B,,MATCH(AA$4,$B$4:$F$4,0)-1),OFFSET('C. PoC Adj Factor Scoring'!$E$5:$J$282,,MATCH(AA$4,'C. PoC Adj Factor Scoring'!$E$3:$AH$3,0)-1),MATCH(AA$2&\" Score\",'C. PoC Adj Factor Scoring'!$E$4:$J$4,0),TRUE)","v":3},{"$f":"VLOOKUP(OFFSET($B:$B,,MATCH(AB$4,$B$4:$F$4,0)-1),OFFSET('C. PoC Adj Factor Scoring'!$E$5:$J$282,,MATCH(AB$4,'C. PoC Adj Factor Scoring'!$E$3:$AH$3,0)-1),MATCH(AB$2&\" Score\",'C. PoC Adj Factor Scoring'!$E$4:$J$4,0),TRUE)","v":1},{"$f":"VLOOKUP(OFFSET($B:$B,,MATCH(AC$4,$B$4:$F$4,0)-1),OFFSET('C. PoC Adj Factor Scoring'!$E$5:$J$282,,MATCH(AC$4,'C. PoC Adj Factor Scoring'!$E$3:$AH$3,0)-1),MATCH(AC$2&\" Score\",'C. PoC Adj Factor Scoring'!$E$4:$J$4,0),TRUE)","v":1},{"$f":"VLOOKUP(OFFSET($B:$B,,MATCH(AD$4,$B$4:$F$4,0)-1),OFFSET('C. PoC Adj Factor Scoring'!$E$5:$J$282,,MATCH(AD$4,'C. PoC Adj Factor Scoring'!$E$3:$AH$3,0)-1),MATCH(AD$2&\" Score\",'C. PoC Adj Factor Scoring'!$E$4:$J$4,0),TRUE)","v":1},{"$f":"VLOOKUP(OFFSET($B:$B,,MATCH(AE$4,$B$4:$F$4,0)-1),OFFSET('C. PoC Adj Factor Scoring'!$E$5:$J$282,,MATCH(AE$4,'C. PoC Adj Factor Scoring'!$E$3:$AH$3,0)-1),MATCH(AE$2&\" Score\",'C. PoC Adj Factor Scoring'!$E$4:$J$4,0),TRUE)","v":1}]
[{"$f":"'A. Population Info'!A516","v":1001521528},{"$f":"'A. Population Info'!L516","v":"OIL"},{"$f":"'A. Population Info'!M516","v":0},{"$f":"'A. Population Info'!N516","v":0},{"$f":"'A. Population Info'!O516","v":0},{"$f":"'A. Population Info'!P516","v":0},{"$f":"VLOOKUP(OFFSET($B:$B,,MATCH(G$4,$B$4:$F$4,0)-1),OFFSET('C. PoC Adj Factor Scoring'!$E$5:$J$282,,MATCH(G$4,'C. PoC Adj Factor Scoring'!$E$3:$AH$3,0)-1),MATCH(G$2&\" Score\",'C. PoC Adj Factor Scoring'!$E$4:$J$4,0),TRUE)","v":4},{"$f":"VLOOKUP(OFFSET($B:$B,,MATCH(H$4,$B$4:$F$4,0)-1),OFFSET('C. PoC Adj Factor Scoring'!$E$5:$J$282,,MATCH(H$4,'C. PoC Adj Factor Scoring'!$E$3:$AH$3,0)-1),MATCH(H$2&\" Score\",'C. PoC Adj Factor Scoring'!$E$4:$J$4,0),TRUE)","v":1},{"$f":"VLOOKUP(OFFSET($B:$B,,MATCH(I$4,$B$4:$F$4,0)-1),OFFSET('C. PoC Adj Factor Scoring'!$E$5:$J$282,,MATCH(I$4,'C. PoC Adj Factor Scoring'!$E$3:$AH$3,0)-1),MATCH(I$2&\" Score\",'C. PoC Adj Factor Scoring'!$E$4:$J$4,0),TRUE)","v":1},{"$f":"VLOOKUP(OFFSET($B:$B,,MATCH(J$4,$B$4:$F$4,0)-1),OFFSET('C. PoC Adj Factor Scoring'!$E$5:$J$282,,MATCH(J$4,'C. PoC Adj Factor Scoring'!$E$3:$AH$3,0)-1),MATCH(J$2&\" Score\",'C. PoC Adj Factor Scoring'!$E$4:$J$4,0),TRUE)","v":1},{"$f":"VLOOKUP(OFFSET($B:$B,,MATCH(K$4,$B$4:$F$4,0)-1),OFFSET('C. PoC Adj Factor Scoring'!$E$5:$J$282,,MATCH(K$4,'C. PoC Adj Factor Scoring'!$E$3:$AH$3,0)-1),MATCH(K$2&\" Score\",'C. PoC Adj Factor Scoring'!$E$4:$J$4,0),TRUE)","v":1},{"$f":"VLOOKUP(OFFSET($B:$B,,MATCH(L$4,$B$4:$F$4,0)-1),OFFSET('C. PoC Adj Factor Scoring'!$E$5:$J$282,,MATCH(L$4,'C. PoC Adj Factor Scoring'!$E$3:$AH$3,0)-1),MATCH(L$2&\" Score\",'C. PoC Adj Factor Scoring'!$E$4:$J$4,0),TRUE)","v":1},{"$f":"VLOOKUP(OFFSET($B:$B,,MATCH(M$4,$B$4:$F$4,0)-1),OFFSET('C. PoC Adj Factor Scoring'!$E$5:$J$282,,MATCH(M$4,'C. PoC Adj Factor Scoring'!$E$3:$AH$3,0)-1),MATCH(M$2&\" Score\",'C. PoC Adj Factor Scoring'!$E$4:$J$4,0),TRUE)","v":1},{"$f":"VLOOKUP(OFFSET($B:$B,,MATCH(N$4,$B$4:$F$4,0)-1),OFFSET('C. PoC Adj Factor Scoring'!$E$5:$J$282,,MATCH(N$4,'C. PoC Adj Factor Scoring'!$E$3:$AH$3,0)-1),MATCH(N$2&\" Score\",'C. PoC Adj Factor Scoring'!$E$4:$J$4,0),TRUE)","v":1},{"$f":"VLOOKUP(OFFSET($B:$B,,MATCH(O$4,$B$4:$F$4,0)-1),OFFSET('C. PoC Adj Factor Scoring'!$E$5:$J$282,,MATCH(O$4,'C. PoC Adj Factor Scoring'!$E$3:$AH$3,0)-1),MATCH(O$2&\" Score\",'C. PoC Adj Factor Scoring'!$E$4:$J$4,0),TRUE)","v":1},{"$f":"VLOOKUP(OFFSET($B:$B,,MATCH(P$4,$B$4:$F$4,0)-1),OFFSET('C. PoC Adj Factor Scoring'!$E$5:$J$282,,MATCH(P$4,'C. PoC Adj Factor Scoring'!$E$3:$AH$3,0)-1),MATCH(P$2&\" Score\",'C. PoC Adj Factor Scoring'!$E$4:$J$4,0),TRUE)","v":1},{"$f":"VLOOKUP(OFFSET($B:$B,,MATCH(Q$4,$B$4:$F$4,0)-1),OFFSET('C. PoC Adj Factor Scoring'!$E$5:$J$282,,MATCH(Q$4,'C. PoC Adj Factor Scoring'!$E$3:$AH$3,0)-1),MATCH(Q$2&\" Score\",'C. PoC Adj Factor Scoring'!$E$4:$J$4,0),TRUE)","v":1},{"$f":"VLOOKUP(OFFSET($B:$B,,MATCH(R$4,$B$4:$F$4,0)-1),OFFSET('C. PoC Adj Factor Scoring'!$E$5:$J$282,,MATCH(R$4,'C. PoC Adj Factor Scoring'!$E$3:$AH$3,0)-1),MATCH(R$2&\" Score\",'C. PoC Adj Factor Scoring'!$E$4:$J$4,0),TRUE)","v":1},{"$f":"VLOOKUP(OFFSET($B:$B,,MATCH(S$4,$B$4:$F$4,0)-1),OFFSET('C. PoC Adj Factor Scoring'!$E$5:$J$282,,MATCH(S$4,'C. PoC Adj Factor Scoring'!$E$3:$AH$3,0)-1),MATCH(S$2&\" Score\",'C. PoC Adj Factor Scoring'!$E$4:$J$4,0),TRUE)","v":1},{"$f":"VLOOKUP(OFFSET($B:$B,,MATCH(T$4,$B$4:$F$4,0)-1),OFFSET('C. PoC Adj Factor Scoring'!$E$5:$J$282,,MATCH(T$4,'C. PoC Adj Factor Scoring'!$E$3:$AH$3,0)-1),MATCH(T$2&\" Score\",'C. PoC Adj Factor Scoring'!$E$4:$J$4,0),TRUE)","v":1},{"$f":"VLOOKUP(OFFSET($B:$B,,MATCH(U$4,$B$4:$F$4,0)-1),OFFSET('C. PoC Adj Factor Scoring'!$E$5:$J$282,,MATCH(U$4,'C. PoC Adj Factor Scoring'!$E$3:$AH$3,0)-1),MATCH(U$2&\" Score\",'C. PoC Adj Factor Scoring'!$E$4:$J$4,0),TRUE)","v":1},{"$f":"VLOOKUP(OFFSET($B:$B,,MATCH(V$4,$B$4:$F$4,0)-1),OFFSET('C. PoC Adj Factor Scoring'!$E$5:$J$282,,MATCH(V$4,'C. PoC Adj Factor Scoring'!$E$3:$AH$3,0)-1),MATCH(V$2&\" Score\",'C. PoC Adj Factor Scoring'!$E$4:$J$4,0),TRUE)","v":1},{"$f":"VLOOKUP(OFFSET($B:$B,,MATCH(W$4,$B$4:$F$4,0)-1),OFFSET('C. PoC Adj Factor Scoring'!$E$5:$J$282,,MATCH(W$4,'C. PoC Adj Factor Scoring'!$E$3:$AH$3,0)-1),MATCH(W$2&\" Score\",'C. PoC Adj Factor Scoring'!$E$4:$J$4,0),TRUE)","v":1},{"$f":"VLOOKUP(OFFSET($B:$B,,MATCH(X$4,$B$4:$F$4,0)-1),OFFSET('C. PoC Adj Factor Scoring'!$E$5:$J$282,,MATCH(X$4,'C. PoC Adj Factor Scoring'!$E$3:$AH$3,0)-1),MATCH(X$2&\" Score\",'C. PoC Adj Factor Scoring'!$E$4:$J$4,0),TRUE)","v":1},{"$f":"VLOOKUP(OFFSET($B:$B,,MATCH(Y$4,$B$4:$F$4,0)-1),OFFSET('C. PoC Adj Factor Scoring'!$E$5:$J$282,,MATCH(Y$4,'C. PoC Adj Factor Scoring'!$E$3:$AH$3,0)-1),MATCH(Y$2&\" Score\",'C. PoC Adj Factor Scoring'!$E$4:$J$4,0),TRUE)","v":1},{"$f":"VLOOKUP(OFFSET($B:$B,,MATCH(Z$4,$B$4:$F$4,0)-1),OFFSET('C. PoC Adj Factor Scoring'!$E$5:$J$282,,MATCH(Z$4,'C. PoC Adj Factor Scoring'!$E$3:$AH$3,0)-1),MATCH(Z$2&\" Score\",'C. PoC Adj Factor Scoring'!$E$4:$J$4,0),TRUE)","v":1},{"$f":"VLOOKUP(OFFSET($B:$B,,MATCH(AA$4,$B$4:$F$4,0)-1),OFFSET('C. PoC Adj Factor Scoring'!$E$5:$J$282,,MATCH(AA$4,'C. PoC Adj Factor Scoring'!$E$3:$AH$3,0)-1),MATCH(AA$2&\" Score\",'C. PoC Adj Factor Scoring'!$E$4:$J$4,0),TRUE)","v":3},{"$f":"VLOOKUP(OFFSET($B:$B,,MATCH(AB$4,$B$4:$F$4,0)-1),OFFSET('C. PoC Adj Factor Scoring'!$E$5:$J$282,,MATCH(AB$4,'C. PoC Adj Factor Scoring'!$E$3:$AH$3,0)-1),MATCH(AB$2&\" Score\",'C. PoC Adj Factor Scoring'!$E$4:$J$4,0),TRUE)","v":1},{"$f":"VLOOKUP(OFFSET($B:$B,,MATCH(AC$4,$B$4:$F$4,0)-1),OFFSET('C. PoC Adj Factor Scoring'!$E$5:$J$282,,MATCH(AC$4,'C. PoC Adj Factor Scoring'!$E$3:$AH$3,0)-1),MATCH(AC$2&\" Score\",'C. PoC Adj Factor Scoring'!$E$4:$J$4,0),TRUE)","v":1},{"$f":"VLOOKUP(OFFSET($B:$B,,MATCH(AD$4,$B$4:$F$4,0)-1),OFFSET('C. PoC Adj Factor Scoring'!$E$5:$J$282,,MATCH(AD$4,'C. PoC Adj Factor Scoring'!$E$3:$AH$3,0)-1),MATCH(AD$2&\" Score\",'C. PoC Adj Factor Scoring'!$E$4:$J$4,0),TRUE)","v":1},{"$f":"VLOOKUP(OFFSET($B:$B,,MATCH(AE$4,$B$4:$F$4,0)-1),OFFSET('C. PoC Adj Factor Scoring'!$E$5:$J$282,,MATCH(AE$4,'C. PoC Adj Factor Scoring'!$E$3:$AH$3,0)-1),MATCH(AE$2&\" Score\",'C. PoC Adj Factor Scoring'!$E$4:$J$4,0),TRUE)","v":1}]
[{"$f":"'A. Population Info'!A517","v":1001526010},{"$f":"'A. Population Info'!L517","v":"OIL"},{"$f":"'A. Population Info'!M517","v":0},{"$f":"'A. Population Info'!N517","v":0},{"$f":"'A. Population Info'!O517","v":0},{"$f":"'A. Population Info'!P517","v":0},{"$f":"VLOOKUP(OFFSET($B:$B,,MATCH(G$4,$B$4:$F$4,0)-1),OFFSET('C. PoC Adj Factor Scoring'!$E$5:$J$282,,MATCH(G$4,'C. PoC Adj Factor Scoring'!$E$3:$AH$3,0)-1),MATCH(G$2&\" Score\",'C. PoC Adj Factor Scoring'!$E$4:$J$4,0),TRUE)","v":4},{"$f":"VLOOKUP(OFFSET($B:$B,,MATCH(H$4,$B$4:$F$4,0)-1),OFFSET('C. PoC Adj Factor Scoring'!$E$5:$J$282,,MATCH(H$4,'C. PoC Adj Factor Scoring'!$E$3:$AH$3,0)-1),MATCH(H$2&\" Score\",'C. PoC Adj Factor Scoring'!$E$4:$J$4,0),TRUE)","v":1},{"$f":"VLOOKUP(OFFSET($B:$B,,MATCH(I$4,$B$4:$F$4,0)-1),OFFSET('C. PoC Adj Factor Scoring'!$E$5:$J$282,,MATCH(I$4,'C. PoC Adj Factor Scoring'!$E$3:$AH$3,0)-1),MATCH(I$2&\" Score\",'C. PoC Adj Factor Scoring'!$E$4:$J$4,0),TRUE)","v":1},{"$f":"VLOOKUP(OFFSET($B:$B,,MATCH(J$4,$B$4:$F$4,0)-1),OFFSET('C. PoC Adj Factor Scoring'!$E$5:$J$282,,MATCH(J$4,'C. PoC Adj Factor Scoring'!$E$3:$AH$3,0)-1),MATCH(J$2&\" Score\",'C. PoC Adj Factor Scoring'!$E$4:$J$4,0),TRUE)","v":1},{"$f":"VLOOKUP(OFFSET($B:$B,,MATCH(K$4,$B$4:$F$4,0)-1),OFFSET('C. PoC Adj Factor Scoring'!$E$5:$J$282,,MATCH(K$4,'C. PoC Adj Factor Scoring'!$E$3:$AH$3,0)-1),MATCH(K$2&\" Score\",'C. PoC Adj Factor Scoring'!$E$4:$J$4,0),TRUE)","v":1},{"$f":"VLOOKUP(OFFSET($B:$B,,MATCH(L$4,$B$4:$F$4,0)-1),OFFSET('C. PoC Adj Factor Scoring'!$E$5:$J$282,,MATCH(L$4,'C. PoC Adj Factor Scoring'!$E$3:$AH$3,0)-1),MATCH(L$2&\" Score\",'C. PoC Adj Factor Scoring'!$E$4:$J$4,0),TRUE)","v":1},{"$f":"VLOOKUP(OFFSET($B:$B,,MATCH(M$4,$B$4:$F$4,0)-1),OFFSET('C. PoC Adj Factor Scoring'!$E$5:$J$282,,MATCH(M$4,'C. PoC Adj Factor Scoring'!$E$3:$AH$3,0)-1),MATCH(M$2&\" Score\",'C. PoC Adj Factor Scoring'!$E$4:$J$4,0),TRUE)","v":1},{"$f":"VLOOKUP(OFFSET($B:$B,,MATCH(N$4,$B$4:$F$4,0)-1),OFFSET('C. PoC Adj Factor Scoring'!$E$5:$J$282,,MATCH(N$4,'C. PoC Adj Factor Scoring'!$E$3:$AH$3,0)-1),MATCH(N$2&\" Score\",'C. PoC Adj Factor Scoring'!$E$4:$J$4,0),TRUE)","v":1},{"$f":"VLOOKUP(OFFSET($B:$B,,MATCH(O$4,$B$4:$F$4,0)-1),OFFSET('C. PoC Adj Factor Scoring'!$E$5:$J$282,,MATCH(O$4,'C. PoC Adj Factor Scoring'!$E$3:$AH$3,0)-1),MATCH(O$2&\" Score\",'C. PoC Adj Factor Scoring'!$E$4:$J$4,0),TRUE)","v":1},{"$f":"VLOOKUP(OFFSET($B:$B,,MATCH(P$4,$B$4:$F$4,0)-1),OFFSET('C. PoC Adj Factor Scoring'!$E$5:$J$282,,MATCH(P$4,'C. PoC Adj Factor Scoring'!$E$3:$AH$3,0)-1),MATCH(P$2&\" Score\",'C. PoC Adj Factor Scoring'!$E$4:$J$4,0),TRUE)","v":1},{"$f":"VLOOKUP(OFFSET($B:$B,,MATCH(Q$4,$B$4:$F$4,0)-1),OFFSET('C. PoC Adj Factor Scoring'!$E$5:$J$282,,MATCH(Q$4,'C. PoC Adj Factor Scoring'!$E$3:$AH$3,0)-1),MATCH(Q$2&\" Score\",'C. PoC Adj Factor Scoring'!$E$4:$J$4,0),TRUE)","v":1},{"$f":"VLOOKUP(OFFSET($B:$B,,MATCH(R$4,$B$4:$F$4,0)-1),OFFSET('C. PoC Adj Factor Scoring'!$E$5:$J$282,,MATCH(R$4,'C. PoC Adj Factor Scoring'!$E$3:$AH$3,0)-1),MATCH(R$2&\" Score\",'C. PoC Adj Factor Scoring'!$E$4:$J$4,0),TRUE)","v":1},{"$f":"VLOOKUP(OFFSET($B:$B,,MATCH(S$4,$B$4:$F$4,0)-1),OFFSET('C. PoC Adj Factor Scoring'!$E$5:$J$282,,MATCH(S$4,'C. PoC Adj Factor Scoring'!$E$3:$AH$3,0)-1),MATCH(S$2&\" Score\",'C. PoC Adj Factor Scoring'!$E$4:$J$4,0),TRUE)","v":1},{"$f":"VLOOKUP(OFFSET($B:$B,,MATCH(T$4,$B$4:$F$4,0)-1),OFFSET('C. PoC Adj Factor Scoring'!$E$5:$J$282,,MATCH(T$4,'C. PoC Adj Factor Scoring'!$E$3:$AH$3,0)-1),MATCH(T$2&\" Score\",'C. PoC Adj Factor Scoring'!$E$4:$J$4,0),TRUE)","v":1},{"$f":"VLOOKUP(OFFSET($B:$B,,MATCH(U$4,$B$4:$F$4,0)-1),OFFSET('C. PoC Adj Factor Scoring'!$E$5:$J$282,,MATCH(U$4,'C. PoC Adj Factor Scoring'!$E$3:$AH$3,0)-1),MATCH(U$2&\" Score\",'C. PoC Adj Factor Scoring'!$E$4:$J$4,0),TRUE)","v":1},{"$f":"VLOOKUP(OFFSET($B:$B,,MATCH(V$4,$B$4:$F$4,0)-1),OFFSET('C. PoC Adj Factor Scoring'!$E$5:$J$282,,MATCH(V$4,'C. PoC Adj Factor Scoring'!$E$3:$AH$3,0)-1),MATCH(V$2&\" Score\",'C. PoC Adj Factor Scoring'!$E$4:$J$4,0),TRUE)","v":1},{"$f":"VLOOKUP(OFFSET($B:$B,,MATCH(W$4,$B$4:$F$4,0)-1),OFFSET('C. PoC Adj Factor Scoring'!$E$5:$J$282,,MATCH(W$4,'C. PoC Adj Factor Scoring'!$E$3:$AH$3,0)-1),MATCH(W$2&\" Score\",'C. PoC Adj Factor Scoring'!$E$4:$J$4,0),TRUE)","v":1},{"$f":"VLOOKUP(OFFSET($B:$B,,MATCH(X$4,$B$4:$F$4,0)-1),OFFSET('C. PoC Adj Factor Scoring'!$E$5:$J$282,,MATCH(X$4,'C. PoC Adj Factor Scoring'!$E$3:$AH$3,0)-1),MATCH(X$2&\" Score\",'C. PoC Adj Factor Scoring'!$E$4:$J$4,0),TRUE)","v":1},{"$f":"VLOOKUP(OFFSET($B:$B,,MATCH(Y$4,$B$4:$F$4,0)-1),OFFSET('C. PoC Adj Factor Scoring'!$E$5:$J$282,,MATCH(Y$4,'C. PoC Adj Factor Scoring'!$E$3:$AH$3,0)-1),MATCH(Y$2&\" Score\",'C. PoC Adj Factor Scoring'!$E$4:$J$4,0),TRUE)","v":1},{"$f":"VLOOKUP(OFFSET($B:$B,,MATCH(Z$4,$B$4:$F$4,0)-1),OFFSET('C. PoC Adj Factor Scoring'!$E$5:$J$282,,MATCH(Z$4,'C. PoC Adj Factor Scoring'!$E$3:$AH$3,0)-1),MATCH(Z$2&\" Score\",'C. PoC Adj Factor Scoring'!$E$4:$J$4,0),TRUE)","v":1},{"$f":"VLOOKUP(OFFSET($B:$B,,MATCH(AA$4,$B$4:$F$4,0)-1),OFFSET('C. PoC Adj Factor Scoring'!$E$5:$J$282,,MATCH(AA$4,'C. PoC Adj Factor Scoring'!$E$3:$AH$3,0)-1),MATCH(AA$2&\" Score\",'C. PoC Adj Factor Scoring'!$E$4:$J$4,0),TRUE)","v":3},{"$f":"VLOOKUP(OFFSET($B:$B,,MATCH(AB$4,$B$4:$F$4,0)-1),OFFSET('C. PoC Adj Factor Scoring'!$E$5:$J$282,,MATCH(AB$4,'C. PoC Adj Factor Scoring'!$E$3:$AH$3,0)-1),MATCH(AB$2&\" Score\",'C. PoC Adj Factor Scoring'!$E$4:$J$4,0),TRUE)","v":1},{"$f":"VLOOKUP(OFFSET($B:$B,,MATCH(AC$4,$B$4:$F$4,0)-1),OFFSET('C. PoC Adj Factor Scoring'!$E$5:$J$282,,MATCH(AC$4,'C. PoC Adj Factor Scoring'!$E$3:$AH$3,0)-1),MATCH(AC$2&\" Score\",'C. PoC Adj Factor Scoring'!$E$4:$J$4,0),TRUE)","v":1},{"$f":"VLOOKUP(OFFSET($B:$B,,MATCH(AD$4,$B$4:$F$4,0)-1),OFFSET('C. PoC Adj Factor Scoring'!$E$5:$J$282,,MATCH(AD$4,'C. PoC Adj Factor Scoring'!$E$3:$AH$3,0)-1),MATCH(AD$2&\" Score\",'C. PoC Adj Factor Scoring'!$E$4:$J$4,0),TRUE)","v":1},{"$f":"VLOOKUP(OFFSET($B:$B,,MATCH(AE$4,$B$4:$F$4,0)-1),OFFSET('C. PoC Adj Factor Scoring'!$E$5:$J$282,,MATCH(AE$4,'C. PoC Adj Factor Scoring'!$E$3:$AH$3,0)-1),MATCH(AE$2&\" Score\",'C. PoC Adj Factor Scoring'!$E$4:$J$4,0),TRUE)","v":1}]
[{"$f":"'A. Population Info'!A518","v":1001526011},{"$f":"'A. Population Info'!L518","v":"OIL"},{"$f":"'A. Population Info'!M518","v":0},{"$f":"'A. Population Info'!N518","v":0},{"$f":"'A. Population Info'!O518","v":0},{"$f":"'A. Population Info'!P518","v":0},{"$f":"VLOOKUP(OFFSET($B:$B,,MATCH(G$4,$B$4:$F$4,0)-1),OFFSET('C. PoC Adj Factor Scoring'!$E$5:$J$282,,MATCH(G$4,'C. PoC Adj Factor Scoring'!$E$3:$AH$3,0)-1),MATCH(G$2&\" Score\",'C. PoC Adj Factor Scoring'!$E$4:$J$4,0),TRUE)","v":4},{"$f":"VLOOKUP(OFFSET($B:$B,,MATCH(H$4,$B$4:$F$4,0)-1),OFFSET('C. PoC Adj Factor Scoring'!$E$5:$J$282,,MATCH(H$4,'C. PoC Adj Factor Scoring'!$E$3:$AH$3,0)-1),MATCH(H$2&\" Score\",'C. PoC Adj Factor Scoring'!$E$4:$J$4,0),TRUE)","v":1},{"$f":"VLOOKUP(OFFSET($B:$B,,MATCH(I$4,$B$4:$F$4,0)-1),OFFSET('C. PoC Adj Factor Scoring'!$E$5:$J$282,,MATCH(I$4,'C. PoC Adj Factor Scoring'!$E$3:$AH$3,0)-1),MATCH(I$2&\" Score\",'C. PoC Adj Factor Scoring'!$E$4:$J$4,0),TRUE)","v":1},{"$f":"VLOOKUP(OFFSET($B:$B,,MATCH(J$4,$B$4:$F$4,0)-1),OFFSET('C. PoC Adj Factor Scoring'!$E$5:$J$282,,MATCH(J$4,'C. PoC Adj Factor Scoring'!$E$3:$AH$3,0)-1),MATCH(J$2&\" Score\",'C. PoC Adj Factor Scoring'!$E$4:$J$4,0),TRUE)","v":1},{"$f":"VLOOKUP(OFFSET($B:$B,,MATCH(K$4,$B$4:$F$4,0)-1),OFFSET('C. PoC Adj Factor Scoring'!$E$5:$J$282,,MATCH(K$4,'C. PoC Adj Factor Scoring'!$E$3:$AH$3,0)-1),MATCH(K$2&\" Score\",'C. PoC Adj Factor Scoring'!$E$4:$J$4,0),TRUE)","v":1},{"$f":"VLOOKUP(OFFSET($B:$B,,MATCH(L$4,$B$4:$F$4,0)-1),OFFSET('C. PoC Adj Factor Scoring'!$E$5:$J$282,,MATCH(L$4,'C. PoC Adj Factor Scoring'!$E$3:$AH$3,0)-1),MATCH(L$2&\" Score\",'C. PoC Adj Factor Scoring'!$E$4:$J$4,0),TRUE)","v":1},{"$f":"VLOOKUP(OFFSET($B:$B,,MATCH(M$4,$B$4:$F$4,0)-1),OFFSET('C. PoC Adj Factor Scoring'!$E$5:$J$282,,MATCH(M$4,'C. PoC Adj Factor Scoring'!$E$3:$AH$3,0)-1),MATCH(M$2&\" Score\",'C. PoC Adj Factor Scoring'!$E$4:$J$4,0),TRUE)","v":1},{"$f":"VLOOKUP(OFFSET($B:$B,,MATCH(N$4,$B$4:$F$4,0)-1),OFFSET('C. PoC Adj Factor Scoring'!$E$5:$J$282,,MATCH(N$4,'C. PoC Adj Factor Scoring'!$E$3:$AH$3,0)-1),MATCH(N$2&\" Score\",'C. PoC Adj Factor Scoring'!$E$4:$J$4,0),TRUE)","v":1},{"$f":"VLOOKUP(OFFSET($B:$B,,MATCH(O$4,$B$4:$F$4,0)-1),OFFSET('C. PoC Adj Factor Scoring'!$E$5:$J$282,,MATCH(O$4,'C. PoC Adj Factor Scoring'!$E$3:$AH$3,0)-1),MATCH(O$2&\" Score\",'C. PoC Adj Factor Scoring'!$E$4:$J$4,0),TRUE)","v":1},{"$f":"VLOOKUP(OFFSET($B:$B,,MATCH(P$4,$B$4:$F$4,0)-1),OFFSET('C. PoC Adj Factor Scoring'!$E$5:$J$282,,MATCH(P$4,'C. PoC Adj Factor Scoring'!$E$3:$AH$3,0)-1),MATCH(P$2&\" Score\",'C. PoC Adj Factor Scoring'!$E$4:$J$4,0),TRUE)","v":1},{"$f":"VLOOKUP(OFFSET($B:$B,,MATCH(Q$4,$B$4:$F$4,0)-1),OFFSET('C. PoC Adj Factor Scoring'!$E$5:$J$282,,MATCH(Q$4,'C. PoC Adj Factor Scoring'!$E$3:$AH$3,0)-1),MATCH(Q$2&\" Score\",'C. PoC Adj Factor Scoring'!$E$4:$J$4,0),TRUE)","v":1},{"$f":"VLOOKUP(OFFSET($B:$B,,MATCH(R$4,$B$4:$F$4,0)-1),OFFSET('C. PoC Adj Factor Scoring'!$E$5:$J$282,,MATCH(R$4,'C. PoC Adj Factor Scoring'!$E$3:$AH$3,0)-1),MATCH(R$2&\" Score\",'C. PoC Adj Factor Scoring'!$E$4:$J$4,0),TRUE)","v":1},{"$f":"VLOOKUP(OFFSET($B:$B,,MATCH(S$4,$B$4:$F$4,0)-1),OFFSET('C. PoC Adj Factor Scoring'!$E$5:$J$282,,MATCH(S$4,'C. PoC Adj Factor Scoring'!$E$3:$AH$3,0)-1),MATCH(S$2&\" Score\",'C. PoC Adj Factor Scoring'!$E$4:$J$4,0),TRUE)","v":1},{"$f":"VLOOKUP(OFFSET($B:$B,,MATCH(T$4,$B$4:$F$4,0)-1),OFFSET('C. PoC Adj Factor Scoring'!$E$5:$J$282,,MATCH(T$4,'C. PoC Adj Factor Scoring'!$E$3:$AH$3,0)-1),MATCH(T$2&\" Score\",'C. PoC Adj Factor Scoring'!$E$4:$J$4,0),TRUE)","v":1},{"$f":"VLOOKUP(OFFSET($B:$B,,MATCH(U$4,$B$4:$F$4,0)-1),OFFSET('C. PoC Adj Factor Scoring'!$E$5:$J$282,,MATCH(U$4,'C. PoC Adj Factor Scoring'!$E$3:$AH$3,0)-1),MATCH(U$2&\" Score\",'C. PoC Adj Factor Scoring'!$E$4:$J$4,0),TRUE)","v":1},{"$f":"VLOOKUP(OFFSET($B:$B,,MATCH(V$4,$B$4:$F$4,0)-1),OFFSET('C. PoC Adj Factor Scoring'!$E$5:$J$282,,MATCH(V$4,'C. PoC Adj Factor Scoring'!$E$3:$AH$3,0)-1),MATCH(V$2&\" Score\",'C. PoC Adj Factor Scoring'!$E$4:$J$4,0),TRUE)","v":1},{"$f":"VLOOKUP(OFFSET($B:$B,,MATCH(W$4,$B$4:$F$4,0)-1),OFFSET('C. PoC Adj Factor Scoring'!$E$5:$J$282,,MATCH(W$4,'C. PoC Adj Factor Scoring'!$E$3:$AH$3,0)-1),MATCH(W$2&\" Score\",'C. PoC Adj Factor Scoring'!$E$4:$J$4,0),TRUE)","v":1},{"$f":"VLOOKUP(OFFSET($B:$B,,MATCH(X$4,$B$4:$F$4,0)-1),OFFSET('C. PoC Adj Factor Scoring'!$E$5:$J$282,,MATCH(X$4,'C. PoC Adj Factor Scoring'!$E$3:$AH$3,0)-1),MATCH(X$2&\" Score\",'C. PoC Adj Factor Scoring'!$E$4:$J$4,0),TRUE)","v":1},{"$f":"VLOOKUP(OFFSET($B:$B,,MATCH(Y$4,$B$4:$F$4,0)-1),OFFSET('C. PoC Adj Factor Scoring'!$E$5:$J$282,,MATCH(Y$4,'C. PoC Adj Factor Scoring'!$E$3:$AH$3,0)-1),MATCH(Y$2&\" Score\",'C. PoC Adj Factor Scoring'!$E$4:$J$4,0),TRUE)","v":1},{"$f":"VLOOKUP(OFFSET($B:$B,,MATCH(Z$4,$B$4:$F$4,0)-1),OFFSET('C. PoC Adj Factor Scoring'!$E$5:$J$282,,MATCH(Z$4,'C. PoC Adj Factor Scoring'!$E$3:$AH$3,0)-1),MATCH(Z$2&\" Score\",'C. PoC Adj Factor Scoring'!$E$4:$J$4,0),TRUE)","v":1},{"$f":"VLOOKUP(OFFSET($B:$B,,MATCH(AA$4,$B$4:$F$4,0)-1),OFFSET('C. PoC Adj Factor Scoring'!$E$5:$J$282,,MATCH(AA$4,'C. PoC Adj Factor Scoring'!$E$3:$AH$3,0)-1),MATCH(AA$2&\" Score\",'C. PoC Adj Factor Scoring'!$E$4:$J$4,0),TRUE)","v":3},{"$f":"VLOOKUP(OFFSET($B:$B,,MATCH(AB$4,$B$4:$F$4,0)-1),OFFSET('C. PoC Adj Factor Scoring'!$E$5:$J$282,,MATCH(AB$4,'C. PoC Adj Factor Scoring'!$E$3:$AH$3,0)-1),MATCH(AB$2&\" Score\",'C. PoC Adj Factor Scoring'!$E$4:$J$4,0),TRUE)","v":1},{"$f":"VLOOKUP(OFFSET($B:$B,,MATCH(AC$4,$B$4:$F$4,0)-1),OFFSET('C. PoC Adj Factor Scoring'!$E$5:$J$282,,MATCH(AC$4,'C. PoC Adj Factor Scoring'!$E$3:$AH$3,0)-1),MATCH(AC$2&\" Score\",'C. PoC Adj Factor Scoring'!$E$4:$J$4,0),TRUE)","v":1},{"$f":"VLOOKUP(OFFSET($B:$B,,MATCH(AD$4,$B$4:$F$4,0)-1),OFFSET('C. PoC Adj Factor Scoring'!$E$5:$J$282,,MATCH(AD$4,'C. PoC Adj Factor Scoring'!$E$3:$AH$3,0)-1),MATCH(AD$2&\" Score\",'C. PoC Adj Factor Scoring'!$E$4:$J$4,0),TRUE)","v":1},{"$f":"VLOOKUP(OFFSET($B:$B,,MATCH(AE$4,$B$4:$F$4,0)-1),OFFSET('C. PoC Adj Factor Scoring'!$E$5:$J$282,,MATCH(AE$4,'C. PoC Adj Factor Scoring'!$E$3:$AH$3,0)-1),MATCH(AE$2&\" Score\",'C. PoC Adj Factor Scoring'!$E$4:$J$4,0),TRUE)","v":1}]
[{"$f":"'A. Population Info'!A519","v":1001526012},{"$f":"'A. Population Info'!L519","v":"OIL"},{"$f":"'A. Population Info'!M519","v":0},{"$f":"'A. Population Info'!N519","v":0},{"$f":"'A. Population Info'!O519","v":0},{"$f":"'A. Population Info'!P519","v":0},{"$f":"VLOOKUP(OFFSET($B:$B,,MATCH(G$4,$B$4:$F$4,0)-1),OFFSET('C. PoC Adj Factor Scoring'!$E$5:$J$282,,MATCH(G$4,'C. PoC Adj Factor Scoring'!$E$3:$AH$3,0)-1),MATCH(G$2&\" Score\",'C. PoC Adj Factor Scoring'!$E$4:$J$4,0),TRUE)","v":4},{"$f":"VLOOKUP(OFFSET($B:$B,,MATCH(H$4,$B$4:$F$4,0)-1),OFFSET('C. PoC Adj Factor Scoring'!$E$5:$J$282,,MATCH(H$4,'C. PoC Adj Factor Scoring'!$E$3:$AH$3,0)-1),MATCH(H$2&\" Score\",'C. PoC Adj Factor Scoring'!$E$4:$J$4,0),TRUE)","v":1},{"$f":"VLOOKUP(OFFSET($B:$B,,MATCH(I$4,$B$4:$F$4,0)-1),OFFSET('C. PoC Adj Factor Scoring'!$E$5:$J$282,,MATCH(I$4,'C. PoC Adj Factor Scoring'!$E$3:$AH$3,0)-1),MATCH(I$2&\" Score\",'C. PoC Adj Factor Scoring'!$E$4:$J$4,0),TRUE)","v":1},{"$f":"VLOOKUP(OFFSET($B:$B,,MATCH(J$4,$B$4:$F$4,0)-1),OFFSET('C. PoC Adj Factor Scoring'!$E$5:$J$282,,MATCH(J$4,'C. PoC Adj Factor Scoring'!$E$3:$AH$3,0)-1),MATCH(J$2&\" Score\",'C. PoC Adj Factor Scoring'!$E$4:$J$4,0),TRUE)","v":1},{"$f":"VLOOKUP(OFFSET($B:$B,,MATCH(K$4,$B$4:$F$4,0)-1),OFFSET('C. PoC Adj Factor Scoring'!$E$5:$J$282,,MATCH(K$4,'C. PoC Adj Factor Scoring'!$E$3:$AH$3,0)-1),MATCH(K$2&\" Score\",'C. PoC Adj Factor Scoring'!$E$4:$J$4,0),TRUE)","v":1},{"$f":"VLOOKUP(OFFSET($B:$B,,MATCH(L$4,$B$4:$F$4,0)-1),OFFSET('C. PoC Adj Factor Scoring'!$E$5:$J$282,,MATCH(L$4,'C. PoC Adj Factor Scoring'!$E$3:$AH$3,0)-1),MATCH(L$2&\" Score\",'C. PoC Adj Factor Scoring'!$E$4:$J$4,0),TRUE)","v":1},{"$f":"VLOOKUP(OFFSET($B:$B,,MATCH(M$4,$B$4:$F$4,0)-1),OFFSET('C. PoC Adj Factor Scoring'!$E$5:$J$282,,MATCH(M$4,'C. PoC Adj Factor Scoring'!$E$3:$AH$3,0)-1),MATCH(M$2&\" Score\",'C. PoC Adj Factor Scoring'!$E$4:$J$4,0),TRUE)","v":1},{"$f":"VLOOKUP(OFFSET($B:$B,,MATCH(N$4,$B$4:$F$4,0)-1),OFFSET('C. PoC Adj Factor Scoring'!$E$5:$J$282,,MATCH(N$4,'C. PoC Adj Factor Scoring'!$E$3:$AH$3,0)-1),MATCH(N$2&\" Score\",'C. PoC Adj Factor Scoring'!$E$4:$J$4,0),TRUE)","v":1},{"$f":"VLOOKUP(OFFSET($B:$B,,MATCH(O$4,$B$4:$F$4,0)-1),OFFSET('C. PoC Adj Factor Scoring'!$E$5:$J$282,,MATCH(O$4,'C. PoC Adj Factor Scoring'!$E$3:$AH$3,0)-1),MATCH(O$2&\" Score\",'C. PoC Adj Factor Scoring'!$E$4:$J$4,0),TRUE)","v":1},{"$f":"VLOOKUP(OFFSET($B:$B,,MATCH(P$4,$B$4:$F$4,0)-1),OFFSET('C. PoC Adj Factor Scoring'!$E$5:$J$282,,MATCH(P$4,'C. PoC Adj Factor Scoring'!$E$3:$AH$3,0)-1),MATCH(P$2&\" Score\",'C. PoC Adj Factor Scoring'!$E$4:$J$4,0),TRUE)","v":1},{"$f":"VLOOKUP(OFFSET($B:$B,,MATCH(Q$4,$B$4:$F$4,0)-1),OFFSET('C. PoC Adj Factor Scoring'!$E$5:$J$282,,MATCH(Q$4,'C. PoC Adj Factor Scoring'!$E$3:$AH$3,0)-1),MATCH(Q$2&\" Score\",'C. PoC Adj Factor Scoring'!$E$4:$J$4,0),TRUE)","v":1},{"$f":"VLOOKUP(OFFSET($B:$B,,MATCH(R$4,$B$4:$F$4,0)-1),OFFSET('C. PoC Adj Factor Scoring'!$E$5:$J$282,,MATCH(R$4,'C. PoC Adj Factor Scoring'!$E$3:$AH$3,0)-1),MATCH(R$2&\" Score\",'C. PoC Adj Factor Scoring'!$E$4:$J$4,0),TRUE)","v":1},{"$f":"VLOOKUP(OFFSET($B:$B,,MATCH(S$4,$B$4:$F$4,0)-1),OFFSET('C. PoC Adj Factor Scoring'!$E$5:$J$282,,MATCH(S$4,'C. PoC Adj Factor Scoring'!$E$3:$AH$3,0)-1),MATCH(S$2&\" Score\",'C. PoC Adj Factor Scoring'!$E$4:$J$4,0),TRUE)","v":1},{"$f":"VLOOKUP(OFFSET($B:$B,,MATCH(T$4,$B$4:$F$4,0)-1),OFFSET('C. PoC Adj Factor Scoring'!$E$5:$J$282,,MATCH(T$4,'C. PoC Adj Factor Scoring'!$E$3:$AH$3,0)-1),MATCH(T$2&\" Score\",'C. PoC Adj Factor Scoring'!$E$4:$J$4,0),TRUE)","v":1},{"$f":"VLOOKUP(OFFSET($B:$B,,MATCH(U$4,$B$4:$F$4,0)-1),OFFSET('C. PoC Adj Factor Scoring'!$E$5:$J$282,,MATCH(U$4,'C. PoC Adj Factor Scoring'!$E$3:$AH$3,0)-1),MATCH(U$2&\" Score\",'C. PoC Adj Factor Scoring'!$E$4:$J$4,0),TRUE)","v":1},{"$f":"VLOOKUP(OFFSET($B:$B,,MATCH(V$4,$B$4:$F$4,0)-1),OFFSET('C. PoC Adj Factor Scoring'!$E$5:$J$282,,MATCH(V$4,'C. PoC Adj Factor Scoring'!$E$3:$AH$3,0)-1),MATCH(V$2&\" Score\",'C. PoC Adj Factor Scoring'!$E$4:$J$4,0),TRUE)","v":1},{"$f":"VLOOKUP(OFFSET($B:$B,,MATCH(W$4,$B$4:$F$4,0)-1),OFFSET('C. PoC Adj Factor Scoring'!$E$5:$J$282,,MATCH(W$4,'C. PoC Adj Factor Scoring'!$E$3:$AH$3,0)-1),MATCH(W$2&\" Score\",'C. PoC Adj Factor Scoring'!$E$4:$J$4,0),TRUE)","v":1},{"$f":"VLOOKUP(OFFSET($B:$B,,MATCH(X$4,$B$4:$F$4,0)-1),OFFSET('C. PoC Adj Factor Scoring'!$E$5:$J$282,,MATCH(X$4,'C. PoC Adj Factor Scoring'!$E$3:$AH$3,0)-1),MATCH(X$2&\" Score\",'C. PoC Adj Factor Scoring'!$E$4:$J$4,0),TRUE)","v":1},{"$f":"VLOOKUP(OFFSET($B:$B,,MATCH(Y$4,$B$4:$F$4,0)-1),OFFSET('C. PoC Adj Factor Scoring'!$E$5:$J$282,,MATCH(Y$4,'C. PoC Adj Factor Scoring'!$E$3:$AH$3,0)-1),MATCH(Y$2&\" Score\",'C. PoC Adj Factor Scoring'!$E$4:$J$4,0),TRUE)","v":1},{"$f":"VLOOKUP(OFFSET($B:$B,,MATCH(Z$4,$B$4:$F$4,0)-1),OFFSET('C. PoC Adj Factor Scoring'!$E$5:$J$282,,MATCH(Z$4,'C. PoC Adj Factor Scoring'!$E$3:$AH$3,0)-1),MATCH(Z$2&\" Score\",'C. PoC Adj Factor Scoring'!$E$4:$J$4,0),TRUE)","v":1},{"$f":"VLOOKUP(OFFSET($B:$B,,MATCH(AA$4,$B$4:$F$4,0)-1),OFFSET('C. PoC Adj Factor Scoring'!$E$5:$J$282,,MATCH(AA$4,'C. PoC Adj Factor Scoring'!$E$3:$AH$3,0)-1),MATCH(AA$2&\" Score\",'C. PoC Adj Factor Scoring'!$E$4:$J$4,0),TRUE)","v":3},{"$f":"VLOOKUP(OFFSET($B:$B,,MATCH(AB$4,$B$4:$F$4,0)-1),OFFSET('C. PoC Adj Factor Scoring'!$E$5:$J$282,,MATCH(AB$4,'C. PoC Adj Factor Scoring'!$E$3:$AH$3,0)-1),MATCH(AB$2&\" Score\",'C. PoC Adj Factor Scoring'!$E$4:$J$4,0),TRUE)","v":1},{"$f":"VLOOKUP(OFFSET($B:$B,,MATCH(AC$4,$B$4:$F$4,0)-1),OFFSET('C. PoC Adj Factor Scoring'!$E$5:$J$282,,MATCH(AC$4,'C. PoC Adj Factor Scoring'!$E$3:$AH$3,0)-1),MATCH(AC$2&\" Score\",'C. PoC Adj Factor Scoring'!$E$4:$J$4,0),TRUE)","v":1},{"$f":"VLOOKUP(OFFSET($B:$B,,MATCH(AD$4,$B$4:$F$4,0)-1),OFFSET('C. PoC Adj Factor Scoring'!$E$5:$J$282,,MATCH(AD$4,'C. PoC Adj Factor Scoring'!$E$3:$AH$3,0)-1),MATCH(AD$2&\" Score\",'C. PoC Adj Factor Scoring'!$E$4:$J$4,0),TRUE)","v":1},{"$f":"VLOOKUP(OFFSET($B:$B,,MATCH(AE$4,$B$4:$F$4,0)-1),OFFSET('C. PoC Adj Factor Scoring'!$E$5:$J$282,,MATCH(AE$4,'C. PoC Adj Factor Scoring'!$E$3:$AH$3,0)-1),MATCH(AE$2&\" Score\",'C. PoC Adj Factor Scoring'!$E$4:$J$4,0),TRUE)","v":1}]
[{"$f":"'A. Population Info'!A520","v":1001528056},{"$f":"'A. Population Info'!L520","v":"OIL"},{"$f":"'A. Population Info'!M520","v":0},{"$f":"'A. Population Info'!N520","v":0},{"$f":"'A. Population Info'!O520","v":0},{"$f":"'A. Population Info'!P520","v":0},{"$f":"VLOOKUP(OFFSET($B:$B,,MATCH(G$4,$B$4:$F$4,0)-1),OFFSET('C. PoC Adj Factor Scoring'!$E$5:$J$282,,MATCH(G$4,'C. PoC Adj Factor Scoring'!$E$3:$AH$3,0)-1),MATCH(G$2&\" Score\",'C. PoC Adj Factor Scoring'!$E$4:$J$4,0),TRUE)","v":4},{"$f":"VLOOKUP(OFFSET($B:$B,,MATCH(H$4,$B$4:$F$4,0)-1),OFFSET('C. PoC Adj Factor Scoring'!$E$5:$J$282,,MATCH(H$4,'C. PoC Adj Factor Scoring'!$E$3:$AH$3,0)-1),MATCH(H$2&\" Score\",'C. PoC Adj Factor Scoring'!$E$4:$J$4,0),TRUE)","v":1},{"$f":"VLOOKUP(OFFSET($B:$B,,MATCH(I$4,$B$4:$F$4,0)-1),OFFSET('C. PoC Adj Factor Scoring'!$E$5:$J$282,,MATCH(I$4,'C. PoC Adj Factor Scoring'!$E$3:$AH$3,0)-1),MATCH(I$2&\" Score\",'C. PoC Adj Factor Scoring'!$E$4:$J$4,0),TRUE)","v":1},{"$f":"VLOOKUP(OFFSET($B:$B,,MATCH(J$4,$B$4:$F$4,0)-1),OFFSET('C. PoC Adj Factor Scoring'!$E$5:$J$282,,MATCH(J$4,'C. PoC Adj Factor Scoring'!$E$3:$AH$3,0)-1),MATCH(J$2&\" Score\",'C. PoC Adj Factor Scoring'!$E$4:$J$4,0),TRUE)","v":1},{"$f":"VLOOKUP(OFFSET($B:$B,,MATCH(K$4,$B$4:$F$4,0)-1),OFFSET('C. PoC Adj Factor Scoring'!$E$5:$J$282,,MATCH(K$4,'C. PoC Adj Factor Scoring'!$E$3:$AH$3,0)-1),MATCH(K$2&\" Score\",'C. PoC Adj Factor Scoring'!$E$4:$J$4,0),TRUE)","v":1},{"$f":"VLOOKUP(OFFSET($B:$B,,MATCH(L$4,$B$4:$F$4,0)-1),OFFSET('C. PoC Adj Factor Scoring'!$E$5:$J$282,,MATCH(L$4,'C. PoC Adj Factor Scoring'!$E$3:$AH$3,0)-1),MATCH(L$2&\" Score\",'C. PoC Adj Factor Scoring'!$E$4:$J$4,0),TRUE)","v":1},{"$f":"VLOOKUP(OFFSET($B:$B,,MATCH(M$4,$B$4:$F$4,0)-1),OFFSET('C. PoC Adj Factor Scoring'!$E$5:$J$282,,MATCH(M$4,'C. PoC Adj Factor Scoring'!$E$3:$AH$3,0)-1),MATCH(M$2&\" Score\",'C. PoC Adj Factor Scoring'!$E$4:$J$4,0),TRUE)","v":1},{"$f":"VLOOKUP(OFFSET($B:$B,,MATCH(N$4,$B$4:$F$4,0)-1),OFFSET('C. PoC Adj Factor Scoring'!$E$5:$J$282,,MATCH(N$4,'C. PoC Adj Factor Scoring'!$E$3:$AH$3,0)-1),MATCH(N$2&\" Score\",'C. PoC Adj Factor Scoring'!$E$4:$J$4,0),TRUE)","v":1},{"$f":"VLOOKUP(OFFSET($B:$B,,MATCH(O$4,$B$4:$F$4,0)-1),OFFSET('C. PoC Adj Factor Scoring'!$E$5:$J$282,,MATCH(O$4,'C. PoC Adj Factor Scoring'!$E$3:$AH$3,0)-1),MATCH(O$2&\" Score\",'C. PoC Adj Factor Scoring'!$E$4:$J$4,0),TRUE)","v":1},{"$f":"VLOOKUP(OFFSET($B:$B,,MATCH(P$4,$B$4:$F$4,0)-1),OFFSET('C. PoC Adj Factor Scoring'!$E$5:$J$282,,MATCH(P$4,'C. PoC Adj Factor Scoring'!$E$3:$AH$3,0)-1),MATCH(P$2&\" Score\",'C. PoC Adj Factor Scoring'!$E$4:$J$4,0),TRUE)","v":1},{"$f":"VLOOKUP(OFFSET($B:$B,,MATCH(Q$4,$B$4:$F$4,0)-1),OFFSET('C. PoC Adj Factor Scoring'!$E$5:$J$282,,MATCH(Q$4,'C. PoC Adj Factor Scoring'!$E$3:$AH$3,0)-1),MATCH(Q$2&\" Score\",'C. PoC Adj Factor Scoring'!$E$4:$J$4,0),TRUE)","v":1},{"$f":"VLOOKUP(OFFSET($B:$B,,MATCH(R$4,$B$4:$F$4,0)-1),OFFSET('C. PoC Adj Factor Scoring'!$E$5:$J$282,,MATCH(R$4,'C. PoC Adj Factor Scoring'!$E$3:$AH$3,0)-1),MATCH(R$2&\" Score\",'C. PoC Adj Factor Scoring'!$E$4:$J$4,0),TRUE)","v":1},{"$f":"VLOOKUP(OFFSET($B:$B,,MATCH(S$4,$B$4:$F$4,0)-1),OFFSET('C. PoC Adj Factor Scoring'!$E$5:$J$282,,MATCH(S$4,'C. PoC Adj Factor Scoring'!$E$3:$AH$3,0)-1),MATCH(S$2&\" Score\",'C. PoC Adj Factor Scoring'!$E$4:$J$4,0),TRUE)","v":1},{"$f":"VLOOKUP(OFFSET($B:$B,,MATCH(T$4,$B$4:$F$4,0)-1),OFFSET('C. PoC Adj Factor Scoring'!$E$5:$J$282,,MATCH(T$4,'C. PoC Adj Factor Scoring'!$E$3:$AH$3,0)-1),MATCH(T$2&\" Score\",'C. PoC Adj Factor Scoring'!$E$4:$J$4,0),TRUE)","v":1},{"$f":"VLOOKUP(OFFSET($B:$B,,MATCH(U$4,$B$4:$F$4,0)-1),OFFSET('C. PoC Adj Factor Scoring'!$E$5:$J$282,,MATCH(U$4,'C. PoC Adj Factor Scoring'!$E$3:$AH$3,0)-1),MATCH(U$2&\" Score\",'C. PoC Adj Factor Scoring'!$E$4:$J$4,0),TRUE)","v":1},{"$f":"VLOOKUP(OFFSET($B:$B,,MATCH(V$4,$B$4:$F$4,0)-1),OFFSET('C. PoC Adj Factor Scoring'!$E$5:$J$282,,MATCH(V$4,'C. PoC Adj Factor Scoring'!$E$3:$AH$3,0)-1),MATCH(V$2&\" Score\",'C. PoC Adj Factor Scoring'!$E$4:$J$4,0),TRUE)","v":1},{"$f":"VLOOKUP(OFFSET($B:$B,,MATCH(W$4,$B$4:$F$4,0)-1),OFFSET('C. PoC Adj Factor Scoring'!$E$5:$J$282,,MATCH(W$4,'C. PoC Adj Factor Scoring'!$E$3:$AH$3,0)-1),MATCH(W$2&\" Score\",'C. PoC Adj Factor Scoring'!$E$4:$J$4,0),TRUE)","v":1},{"$f":"VLOOKUP(OFFSET($B:$B,,MATCH(X$4,$B$4:$F$4,0)-1),OFFSET('C. PoC Adj Factor Scoring'!$E$5:$J$282,,MATCH(X$4,'C. PoC Adj Factor Scoring'!$E$3:$AH$3,0)-1),MATCH(X$2&\" Score\",'C. PoC Adj Factor Scoring'!$E$4:$J$4,0),TRUE)","v":1},{"$f":"VLOOKUP(OFFSET($B:$B,,MATCH(Y$4,$B$4:$F$4,0)-1),OFFSET('C. PoC Adj Factor Scoring'!$E$5:$J$282,,MATCH(Y$4,'C. PoC Adj Factor Scoring'!$E$3:$AH$3,0)-1),MATCH(Y$2&\" Score\",'C. PoC Adj Factor Scoring'!$E$4:$J$4,0),TRUE)","v":1},{"$f":"VLOOKUP(OFFSET($B:$B,,MATCH(Z$4,$B$4:$F$4,0)-1),OFFSET('C. PoC Adj Factor Scoring'!$E$5:$J$282,,MATCH(Z$4,'C. PoC Adj Factor Scoring'!$E$3:$AH$3,0)-1),MATCH(Z$2&\" Score\",'C. PoC Adj Factor Scoring'!$E$4:$J$4,0),TRUE)","v":1},{"$f":"VLOOKUP(OFFSET($B:$B,,MATCH(AA$4,$B$4:$F$4,0)-1),OFFSET('C. PoC Adj Factor Scoring'!$E$5:$J$282,,MATCH(AA$4,'C. PoC Adj Factor Scoring'!$E$3:$AH$3,0)-1),MATCH(AA$2&\" Score\",'C. PoC Adj Factor Scoring'!$E$4:$J$4,0),TRUE)","v":3},{"$f":"VLOOKUP(OFFSET($B:$B,,MATCH(AB$4,$B$4:$F$4,0)-1),OFFSET('C. PoC Adj Factor Scoring'!$E$5:$J$282,,MATCH(AB$4,'C. PoC Adj Factor Scoring'!$E$3:$AH$3,0)-1),MATCH(AB$2&\" Score\",'C. PoC Adj Factor Scoring'!$E$4:$J$4,0),TRUE)","v":1},{"$f":"VLOOKUP(OFFSET($B:$B,,MATCH(AC$4,$B$4:$F$4,0)-1),OFFSET('C. PoC Adj Factor Scoring'!$E$5:$J$282,,MATCH(AC$4,'C. PoC Adj Factor Scoring'!$E$3:$AH$3,0)-1),MATCH(AC$2&\" Score\",'C. PoC Adj Factor Scoring'!$E$4:$J$4,0),TRUE)","v":1},{"$f":"VLOOKUP(OFFSET($B:$B,,MATCH(AD$4,$B$4:$F$4,0)-1),OFFSET('C. PoC Adj Factor Scoring'!$E$5:$J$282,,MATCH(AD$4,'C. PoC Adj Factor Scoring'!$E$3:$AH$3,0)-1),MATCH(AD$2&\" Score\",'C. PoC Adj Factor Scoring'!$E$4:$J$4,0),TRUE)","v":1},{"$f":"VLOOKUP(OFFSET($B:$B,,MATCH(AE$4,$B$4:$F$4,0)-1),OFFSET('C. PoC Adj Factor Scoring'!$E$5:$J$282,,MATCH(AE$4,'C. PoC Adj Factor Scoring'!$E$3:$AH$3,0)-1),MATCH(AE$2&\" Score\",'C. PoC Adj Factor Scoring'!$E$4:$J$4,0),TRUE)","v":1}]
[{"$f":"'A. Population Info'!A521","v":1001528057},{"$f":"'A. Population Info'!L521","v":"OIL"},{"$f":"'A. Population Info'!M521","v":0},{"$f":"'A. Population Info'!N521","v":0},{"$f":"'A. Population Info'!O521","v":0},{"$f":"'A. Population Info'!P521","v":0},{"$f":"VLOOKUP(OFFSET($B:$B,,MATCH(G$4,$B$4:$F$4,0)-1),OFFSET('C. PoC Adj Factor Scoring'!$E$5:$J$282,,MATCH(G$4,'C. PoC Adj Factor Scoring'!$E$3:$AH$3,0)-1),MATCH(G$2&\" Score\",'C. PoC Adj Factor Scoring'!$E$4:$J$4,0),TRUE)","v":4},{"$f":"VLOOKUP(OFFSET($B:$B,,MATCH(H$4,$B$4:$F$4,0)-1),OFFSET('C. PoC Adj Factor Scoring'!$E$5:$J$282,,MATCH(H$4,'C. PoC Adj Factor Scoring'!$E$3:$AH$3,0)-1),MATCH(H$2&\" Score\",'C. PoC Adj Factor Scoring'!$E$4:$J$4,0),TRUE)","v":1},{"$f":"VLOOKUP(OFFSET($B:$B,,MATCH(I$4,$B$4:$F$4,0)-1),OFFSET('C. PoC Adj Factor Scoring'!$E$5:$J$282,,MATCH(I$4,'C. PoC Adj Factor Scoring'!$E$3:$AH$3,0)-1),MATCH(I$2&\" Score\",'C. PoC Adj Factor Scoring'!$E$4:$J$4,0),TRUE)","v":1},{"$f":"VLOOKUP(OFFSET($B:$B,,MATCH(J$4,$B$4:$F$4,0)-1),OFFSET('C. PoC Adj Factor Scoring'!$E$5:$J$282,,MATCH(J$4,'C. PoC Adj Factor Scoring'!$E$3:$AH$3,0)-1),MATCH(J$2&\" Score\",'C. PoC Adj Factor Scoring'!$E$4:$J$4,0),TRUE)","v":1},{"$f":"VLOOKUP(OFFSET($B:$B,,MATCH(K$4,$B$4:$F$4,0)-1),OFFSET('C. PoC Adj Factor Scoring'!$E$5:$J$282,,MATCH(K$4,'C. PoC Adj Factor Scoring'!$E$3:$AH$3,0)-1),MATCH(K$2&\" Score\",'C. PoC Adj Factor Scoring'!$E$4:$J$4,0),TRUE)","v":1},{"$f":"VLOOKUP(OFFSET($B:$B,,MATCH(L$4,$B$4:$F$4,0)-1),OFFSET('C. PoC Adj Factor Scoring'!$E$5:$J$282,,MATCH(L$4,'C. PoC Adj Factor Scoring'!$E$3:$AH$3,0)-1),MATCH(L$2&\" Score\",'C. PoC Adj Factor Scoring'!$E$4:$J$4,0),TRUE)","v":1},{"$f":"VLOOKUP(OFFSET($B:$B,,MATCH(M$4,$B$4:$F$4,0)-1),OFFSET('C. PoC Adj Factor Scoring'!$E$5:$J$282,,MATCH(M$4,'C. PoC Adj Factor Scoring'!$E$3:$AH$3,0)-1),MATCH(M$2&\" Score\",'C. PoC Adj Factor Scoring'!$E$4:$J$4,0),TRUE)","v":1},{"$f":"VLOOKUP(OFFSET($B:$B,,MATCH(N$4,$B$4:$F$4,0)-1),OFFSET('C. PoC Adj Factor Scoring'!$E$5:$J$282,,MATCH(N$4,'C. PoC Adj Factor Scoring'!$E$3:$AH$3,0)-1),MATCH(N$2&\" Score\",'C. PoC Adj Factor Scoring'!$E$4:$J$4,0),TRUE)","v":1},{"$f":"VLOOKUP(OFFSET($B:$B,,MATCH(O$4,$B$4:$F$4,0)-1),OFFSET('C. PoC Adj Factor Scoring'!$E$5:$J$282,,MATCH(O$4,'C. PoC Adj Factor Scoring'!$E$3:$AH$3,0)-1),MATCH(O$2&\" Score\",'C. PoC Adj Factor Scoring'!$E$4:$J$4,0),TRUE)","v":1},{"$f":"VLOOKUP(OFFSET($B:$B,,MATCH(P$4,$B$4:$F$4,0)-1),OFFSET('C. PoC Adj Factor Scoring'!$E$5:$J$282,,MATCH(P$4,'C. PoC Adj Factor Scoring'!$E$3:$AH$3,0)-1),MATCH(P$2&\" Score\",'C. PoC Adj Factor Scoring'!$E$4:$J$4,0),TRUE)","v":1},{"$f":"VLOOKUP(OFFSET($B:$B,,MATCH(Q$4,$B$4:$F$4,0)-1),OFFSET('C. PoC Adj Factor Scoring'!$E$5:$J$282,,MATCH(Q$4,'C. PoC Adj Factor Scoring'!$E$3:$AH$3,0)-1),MATCH(Q$2&\" Score\",'C. PoC Adj Factor Scoring'!$E$4:$J$4,0),TRUE)","v":1},{"$f":"VLOOKUP(OFFSET($B:$B,,MATCH(R$4,$B$4:$F$4,0)-1),OFFSET('C. PoC Adj Factor Scoring'!$E$5:$J$282,,MATCH(R$4,'C. PoC Adj Factor Scoring'!$E$3:$AH$3,0)-1),MATCH(R$2&\" Score\",'C. PoC Adj Factor Scoring'!$E$4:$J$4,0),TRUE)","v":1},{"$f":"VLOOKUP(OFFSET($B:$B,,MATCH(S$4,$B$4:$F$4,0)-1),OFFSET('C. PoC Adj Factor Scoring'!$E$5:$J$282,,MATCH(S$4,'C. PoC Adj Factor Scoring'!$E$3:$AH$3,0)-1),MATCH(S$2&\" Score\",'C. PoC Adj Factor Scoring'!$E$4:$J$4,0),TRUE)","v":1},{"$f":"VLOOKUP(OFFSET($B:$B,,MATCH(T$4,$B$4:$F$4,0)-1),OFFSET('C. PoC Adj Factor Scoring'!$E$5:$J$282,,MATCH(T$4,'C. PoC Adj Factor Scoring'!$E$3:$AH$3,0)-1),MATCH(T$2&\" Score\",'C. PoC Adj Factor Scoring'!$E$4:$J$4,0),TRUE)","v":1},{"$f":"VLOOKUP(OFFSET($B:$B,,MATCH(U$4,$B$4:$F$4,0)-1),OFFSET('C. PoC Adj Factor Scoring'!$E$5:$J$282,,MATCH(U$4,'C. PoC Adj Factor Scoring'!$E$3:$AH$3,0)-1),MATCH(U$2&\" Score\",'C. PoC Adj Factor Scoring'!$E$4:$J$4,0),TRUE)","v":1},{"$f":"VLOOKUP(OFFSET($B:$B,,MATCH(V$4,$B$4:$F$4,0)-1),OFFSET('C. PoC Adj Factor Scoring'!$E$5:$J$282,,MATCH(V$4,'C. PoC Adj Factor Scoring'!$E$3:$AH$3,0)-1),MATCH(V$2&\" Score\",'C. PoC Adj Factor Scoring'!$E$4:$J$4,0),TRUE)","v":1},{"$f":"VLOOKUP(OFFSET($B:$B,,MATCH(W$4,$B$4:$F$4,0)-1),OFFSET('C. PoC Adj Factor Scoring'!$E$5:$J$282,,MATCH(W$4,'C. PoC Adj Factor Scoring'!$E$3:$AH$3,0)-1),MATCH(W$2&\" Score\",'C. PoC Adj Factor Scoring'!$E$4:$J$4,0),TRUE)","v":1},{"$f":"VLOOKUP(OFFSET($B:$B,,MATCH(X$4,$B$4:$F$4,0)-1),OFFSET('C. PoC Adj Factor Scoring'!$E$5:$J$282,,MATCH(X$4,'C. PoC Adj Factor Scoring'!$E$3:$AH$3,0)-1),MATCH(X$2&\" Score\",'C. PoC Adj Factor Scoring'!$E$4:$J$4,0),TRUE)","v":1},{"$f":"VLOOKUP(OFFSET($B:$B,,MATCH(Y$4,$B$4:$F$4,0)-1),OFFSET('C. PoC Adj Factor Scoring'!$E$5:$J$282,,MATCH(Y$4,'C. PoC Adj Factor Scoring'!$E$3:$AH$3,0)-1),MATCH(Y$2&\" Score\",'C. PoC Adj Factor Scoring'!$E$4:$J$4,0),TRUE)","v":1},{"$f":"VLOOKUP(OFFSET($B:$B,,MATCH(Z$4,$B$4:$F$4,0)-1),OFFSET('C. PoC Adj Factor Scoring'!$E$5:$J$282,,MATCH(Z$4,'C. PoC Adj Factor Scoring'!$E$3:$AH$3,0)-1),MATCH(Z$2&\" Score\",'C. PoC Adj Factor Scoring'!$E$4:$J$4,0),TRUE)","v":1},{"$f":"VLOOKUP(OFFSET($B:$B,,MATCH(AA$4,$B$4:$F$4,0)-1),OFFSET('C. PoC Adj Factor Scoring'!$E$5:$J$282,,MATCH(AA$4,'C. PoC Adj Factor Scoring'!$E$3:$AH$3,0)-1),MATCH(AA$2&\" Score\",'C. PoC Adj Factor Scoring'!$E$4:$J$4,0),TRUE)","v":3},{"$f":"VLOOKUP(OFFSET($B:$B,,MATCH(AB$4,$B$4:$F$4,0)-1),OFFSET('C. PoC Adj Factor Scoring'!$E$5:$J$282,,MATCH(AB$4,'C. PoC Adj Factor Scoring'!$E$3:$AH$3,0)-1),MATCH(AB$2&\" Score\",'C. PoC Adj Factor Scoring'!$E$4:$J$4,0),TRUE)","v":1},{"$f":"VLOOKUP(OFFSET($B:$B,,MATCH(AC$4,$B$4:$F$4,0)-1),OFFSET('C. PoC Adj Factor Scoring'!$E$5:$J$282,,MATCH(AC$4,'C. PoC Adj Factor Scoring'!$E$3:$AH$3,0)-1),MATCH(AC$2&\" Score\",'C. PoC Adj Factor Scoring'!$E$4:$J$4,0),TRUE)","v":1},{"$f":"VLOOKUP(OFFSET($B:$B,,MATCH(AD$4,$B$4:$F$4,0)-1),OFFSET('C. PoC Adj Factor Scoring'!$E$5:$J$282,,MATCH(AD$4,'C. PoC Adj Factor Scoring'!$E$3:$AH$3,0)-1),MATCH(AD$2&\" Score\",'C. PoC Adj Factor Scoring'!$E$4:$J$4,0),TRUE)","v":1},{"$f":"VLOOKUP(OFFSET($B:$B,,MATCH(AE$4,$B$4:$F$4,0)-1),OFFSET('C. PoC Adj Factor Scoring'!$E$5:$J$282,,MATCH(AE$4,'C. PoC Adj Factor Scoring'!$E$3:$AH$3,0)-1),MATCH(AE$2&\" Score\",'C. PoC Adj Factor Scoring'!$E$4:$J$4,0),TRUE)","v":1}]
[{"$f":"'A. Population Info'!A522","v":1001528058},{"$f":"'A. Population Info'!L522","v":"OIL"},{"$f":"'A. Population Info'!M522","v":0},{"$f":"'A. Population Info'!N522","v":0},{"$f":"'A. Population Info'!O522","v":0},{"$f":"'A. Population Info'!P522","v":0},{"$f":"VLOOKUP(OFFSET($B:$B,,MATCH(G$4,$B$4:$F$4,0)-1),OFFSET('C. PoC Adj Factor Scoring'!$E$5:$J$282,,MATCH(G$4,'C. PoC Adj Factor Scoring'!$E$3:$AH$3,0)-1),MATCH(G$2&\" Score\",'C. PoC Adj Factor Scoring'!$E$4:$J$4,0),TRUE)","v":4},{"$f":"VLOOKUP(OFFSET($B:$B,,MATCH(H$4,$B$4:$F$4,0)-1),OFFSET('C. PoC Adj Factor Scoring'!$E$5:$J$282,,MATCH(H$4,'C. PoC Adj Factor Scoring'!$E$3:$AH$3,0)-1),MATCH(H$2&\" Score\",'C. PoC Adj Factor Scoring'!$E$4:$J$4,0),TRUE)","v":1},{"$f":"VLOOKUP(OFFSET($B:$B,,MATCH(I$4,$B$4:$F$4,0)-1),OFFSET('C. PoC Adj Factor Scoring'!$E$5:$J$282,,MATCH(I$4,'C. PoC Adj Factor Scoring'!$E$3:$AH$3,0)-1),MATCH(I$2&\" Score\",'C. PoC Adj Factor Scoring'!$E$4:$J$4,0),TRUE)","v":1},{"$f":"VLOOKUP(OFFSET($B:$B,,MATCH(J$4,$B$4:$F$4,0)-1),OFFSET('C. PoC Adj Factor Scoring'!$E$5:$J$282,,MATCH(J$4,'C. PoC Adj Factor Scoring'!$E$3:$AH$3,0)-1),MATCH(J$2&\" Score\",'C. PoC Adj Factor Scoring'!$E$4:$J$4,0),TRUE)","v":1},{"$f":"VLOOKUP(OFFSET($B:$B,,MATCH(K$4,$B$4:$F$4,0)-1),OFFSET('C. PoC Adj Factor Scoring'!$E$5:$J$282,,MATCH(K$4,'C. PoC Adj Factor Scoring'!$E$3:$AH$3,0)-1),MATCH(K$2&\" Score\",'C. PoC Adj Factor Scoring'!$E$4:$J$4,0),TRUE)","v":1},{"$f":"VLOOKUP(OFFSET($B:$B,,MATCH(L$4,$B$4:$F$4,0)-1),OFFSET('C. PoC Adj Factor Scoring'!$E$5:$J$282,,MATCH(L$4,'C. PoC Adj Factor Scoring'!$E$3:$AH$3,0)-1),MATCH(L$2&\" Score\",'C. PoC Adj Factor Scoring'!$E$4:$J$4,0),TRUE)","v":1},{"$f":"VLOOKUP(OFFSET($B:$B,,MATCH(M$4,$B$4:$F$4,0)-1),OFFSET('C. PoC Adj Factor Scoring'!$E$5:$J$282,,MATCH(M$4,'C. PoC Adj Factor Scoring'!$E$3:$AH$3,0)-1),MATCH(M$2&\" Score\",'C. PoC Adj Factor Scoring'!$E$4:$J$4,0),TRUE)","v":1},{"$f":"VLOOKUP(OFFSET($B:$B,,MATCH(N$4,$B$4:$F$4,0)-1),OFFSET('C. PoC Adj Factor Scoring'!$E$5:$J$282,,MATCH(N$4,'C. PoC Adj Factor Scoring'!$E$3:$AH$3,0)-1),MATCH(N$2&\" Score\",'C. PoC Adj Factor Scoring'!$E$4:$J$4,0),TRUE)","v":1},{"$f":"VLOOKUP(OFFSET($B:$B,,MATCH(O$4,$B$4:$F$4,0)-1),OFFSET('C. PoC Adj Factor Scoring'!$E$5:$J$282,,MATCH(O$4,'C. PoC Adj Factor Scoring'!$E$3:$AH$3,0)-1),MATCH(O$2&\" Score\",'C. PoC Adj Factor Scoring'!$E$4:$J$4,0),TRUE)","v":1},{"$f":"VLOOKUP(OFFSET($B:$B,,MATCH(P$4,$B$4:$F$4,0)-1),OFFSET('C. PoC Adj Factor Scoring'!$E$5:$J$282,,MATCH(P$4,'C. PoC Adj Factor Scoring'!$E$3:$AH$3,0)-1),MATCH(P$2&\" Score\",'C. PoC Adj Factor Scoring'!$E$4:$J$4,0),TRUE)","v":1},{"$f":"VLOOKUP(OFFSET($B:$B,,MATCH(Q$4,$B$4:$F$4,0)-1),OFFSET('C. PoC Adj Factor Scoring'!$E$5:$J$282,,MATCH(Q$4,'C. PoC Adj Factor Scoring'!$E$3:$AH$3,0)-1),MATCH(Q$2&\" Score\",'C. PoC Adj Factor Scoring'!$E$4:$J$4,0),TRUE)","v":1},{"$f":"VLOOKUP(OFFSET($B:$B,,MATCH(R$4,$B$4:$F$4,0)-1),OFFSET('C. PoC Adj Factor Scoring'!$E$5:$J$282,,MATCH(R$4,'C. PoC Adj Factor Scoring'!$E$3:$AH$3,0)-1),MATCH(R$2&\" Score\",'C. PoC Adj Factor Scoring'!$E$4:$J$4,0),TRUE)","v":1},{"$f":"VLOOKUP(OFFSET($B:$B,,MATCH(S$4,$B$4:$F$4,0)-1),OFFSET('C. PoC Adj Factor Scoring'!$E$5:$J$282,,MATCH(S$4,'C. PoC Adj Factor Scoring'!$E$3:$AH$3,0)-1),MATCH(S$2&\" Score\",'C. PoC Adj Factor Scoring'!$E$4:$J$4,0),TRUE)","v":1},{"$f":"VLOOKUP(OFFSET($B:$B,,MATCH(T$4,$B$4:$F$4,0)-1),OFFSET('C. PoC Adj Factor Scoring'!$E$5:$J$282,,MATCH(T$4,'C. PoC Adj Factor Scoring'!$E$3:$AH$3,0)-1),MATCH(T$2&\" Score\",'C. PoC Adj Factor Scoring'!$E$4:$J$4,0),TRUE)","v":1},{"$f":"VLOOKUP(OFFSET($B:$B,,MATCH(U$4,$B$4:$F$4,0)-1),OFFSET('C. PoC Adj Factor Scoring'!$E$5:$J$282,,MATCH(U$4,'C. PoC Adj Factor Scoring'!$E$3:$AH$3,0)-1),MATCH(U$2&\" Score\",'C. PoC Adj Factor Scoring'!$E$4:$J$4,0),TRUE)","v":1},{"$f":"VLOOKUP(OFFSET($B:$B,,MATCH(V$4,$B$4:$F$4,0)-1),OFFSET('C. PoC Adj Factor Scoring'!$E$5:$J$282,,MATCH(V$4,'C. PoC Adj Factor Scoring'!$E$3:$AH$3,0)-1),MATCH(V$2&\" Score\",'C. PoC Adj Factor Scoring'!$E$4:$J$4,0),TRUE)","v":1},{"$f":"VLOOKUP(OFFSET($B:$B,,MATCH(W$4,$B$4:$F$4,0)-1),OFFSET('C. PoC Adj Factor Scoring'!$E$5:$J$282,,MATCH(W$4,'C. PoC Adj Factor Scoring'!$E$3:$AH$3,0)-1),MATCH(W$2&\" Score\",'C. PoC Adj Factor Scoring'!$E$4:$J$4,0),TRUE)","v":1},{"$f":"VLOOKUP(OFFSET($B:$B,,MATCH(X$4,$B$4:$F$4,0)-1),OFFSET('C. PoC Adj Factor Scoring'!$E$5:$J$282,,MATCH(X$4,'C. PoC Adj Factor Scoring'!$E$3:$AH$3,0)-1),MATCH(X$2&\" Score\",'C. PoC Adj Factor Scoring'!$E$4:$J$4,0),TRUE)","v":1},{"$f":"VLOOKUP(OFFSET($B:$B,,MATCH(Y$4,$B$4:$F$4,0)-1),OFFSET('C. PoC Adj Factor Scoring'!$E$5:$J$282,,MATCH(Y$4,'C. PoC Adj Factor Scoring'!$E$3:$AH$3,0)-1),MATCH(Y$2&\" Score\",'C. PoC Adj Factor Scoring'!$E$4:$J$4,0),TRUE)","v":1},{"$f":"VLOOKUP(OFFSET($B:$B,,MATCH(Z$4,$B$4:$F$4,0)-1),OFFSET('C. PoC Adj Factor Scoring'!$E$5:$J$282,,MATCH(Z$4,'C. PoC Adj Factor Scoring'!$E$3:$AH$3,0)-1),MATCH(Z$2&\" Score\",'C. PoC Adj Factor Scoring'!$E$4:$J$4,0),TRUE)","v":1},{"$f":"VLOOKUP(OFFSET($B:$B,,MATCH(AA$4,$B$4:$F$4,0)-1),OFFSET('C. PoC Adj Factor Scoring'!$E$5:$J$282,,MATCH(AA$4,'C. PoC Adj Factor Scoring'!$E$3:$AH$3,0)-1),MATCH(AA$2&\" Score\",'C. PoC Adj Factor Scoring'!$E$4:$J$4,0),TRUE)","v":3},{"$f":"VLOOKUP(OFFSET($B:$B,,MATCH(AB$4,$B$4:$F$4,0)-1),OFFSET('C. PoC Adj Factor Scoring'!$E$5:$J$282,,MATCH(AB$4,'C. PoC Adj Factor Scoring'!$E$3:$AH$3,0)-1),MATCH(AB$2&\" Score\",'C. PoC Adj Factor Scoring'!$E$4:$J$4,0),TRUE)","v":1},{"$f":"VLOOKUP(OFFSET($B:$B,,MATCH(AC$4,$B$4:$F$4,0)-1),OFFSET('C. PoC Adj Factor Scoring'!$E$5:$J$282,,MATCH(AC$4,'C. PoC Adj Factor Scoring'!$E$3:$AH$3,0)-1),MATCH(AC$2&\" Score\",'C. PoC Adj Factor Scoring'!$E$4:$J$4,0),TRUE)","v":1},{"$f":"VLOOKUP(OFFSET($B:$B,,MATCH(AD$4,$B$4:$F$4,0)-1),OFFSET('C. PoC Adj Factor Scoring'!$E$5:$J$282,,MATCH(AD$4,'C. PoC Adj Factor Scoring'!$E$3:$AH$3,0)-1),MATCH(AD$2&\" Score\",'C. PoC Adj Factor Scoring'!$E$4:$J$4,0),TRUE)","v":1},{"$f":"VLOOKUP(OFFSET($B:$B,,MATCH(AE$4,$B$4:$F$4,0)-1),OFFSET('C. PoC Adj Factor Scoring'!$E$5:$J$282,,MATCH(AE$4,'C. PoC Adj Factor Scoring'!$E$3:$AH$3,0)-1),MATCH(AE$2&\" Score\",'C. PoC Adj Factor Scoring'!$E$4:$J$4,0),TRUE)","v":1}]
[{"$f":"'A. Population Info'!A523","v":1001528059},{"$f":"'A. Population Info'!L523","v":"OIL"},{"$f":"'A. Population Info'!M523","v":0},{"$f":"'A. Population Info'!N523","v":0},{"$f":"'A. Population Info'!O523","v":0},{"$f":"'A. Population Info'!P523","v":0},{"$f":"VLOOKUP(OFFSET($B:$B,,MATCH(G$4,$B$4:$F$4,0)-1),OFFSET('C. PoC Adj Factor Scoring'!$E$5:$J$282,,MATCH(G$4,'C. PoC Adj Factor Scoring'!$E$3:$AH$3,0)-1),MATCH(G$2&\" Score\",'C. PoC Adj Factor Scoring'!$E$4:$J$4,0),TRUE)","v":4},{"$f":"VLOOKUP(OFFSET($B:$B,,MATCH(H$4,$B$4:$F$4,0)-1),OFFSET('C. PoC Adj Factor Scoring'!$E$5:$J$282,,MATCH(H$4,'C. PoC Adj Factor Scoring'!$E$3:$AH$3,0)-1),MATCH(H$2&\" Score\",'C. PoC Adj Factor Scoring'!$E$4:$J$4,0),TRUE)","v":1},{"$f":"VLOOKUP(OFFSET($B:$B,,MATCH(I$4,$B$4:$F$4,0)-1),OFFSET('C. PoC Adj Factor Scoring'!$E$5:$J$282,,MATCH(I$4,'C. PoC Adj Factor Scoring'!$E$3:$AH$3,0)-1),MATCH(I$2&\" Score\",'C. PoC Adj Factor Scoring'!$E$4:$J$4,0),TRUE)","v":1},{"$f":"VLOOKUP(OFFSET($B:$B,,MATCH(J$4,$B$4:$F$4,0)-1),OFFSET('C. PoC Adj Factor Scoring'!$E$5:$J$282,,MATCH(J$4,'C. PoC Adj Factor Scoring'!$E$3:$AH$3,0)-1),MATCH(J$2&\" Score\",'C. PoC Adj Factor Scoring'!$E$4:$J$4,0),TRUE)","v":1},{"$f":"VLOOKUP(OFFSET($B:$B,,MATCH(K$4,$B$4:$F$4,0)-1),OFFSET('C. PoC Adj Factor Scoring'!$E$5:$J$282,,MATCH(K$4,'C. PoC Adj Factor Scoring'!$E$3:$AH$3,0)-1),MATCH(K$2&\" Score\",'C. PoC Adj Factor Scoring'!$E$4:$J$4,0),TRUE)","v":1},{"$f":"VLOOKUP(OFFSET($B:$B,,MATCH(L$4,$B$4:$F$4,0)-1),OFFSET('C. PoC Adj Factor Scoring'!$E$5:$J$282,,MATCH(L$4,'C. PoC Adj Factor Scoring'!$E$3:$AH$3,0)-1),MATCH(L$2&\" Score\",'C. PoC Adj Factor Scoring'!$E$4:$J$4,0),TRUE)","v":1},{"$f":"VLOOKUP(OFFSET($B:$B,,MATCH(M$4,$B$4:$F$4,0)-1),OFFSET('C. PoC Adj Factor Scoring'!$E$5:$J$282,,MATCH(M$4,'C. PoC Adj Factor Scoring'!$E$3:$AH$3,0)-1),MATCH(M$2&\" Score\",'C. PoC Adj Factor Scoring'!$E$4:$J$4,0),TRUE)","v":1},{"$f":"VLOOKUP(OFFSET($B:$B,,MATCH(N$4,$B$4:$F$4,0)-1),OFFSET('C. PoC Adj Factor Scoring'!$E$5:$J$282,,MATCH(N$4,'C. PoC Adj Factor Scoring'!$E$3:$AH$3,0)-1),MATCH(N$2&\" Score\",'C. PoC Adj Factor Scoring'!$E$4:$J$4,0),TRUE)","v":1},{"$f":"VLOOKUP(OFFSET($B:$B,,MATCH(O$4,$B$4:$F$4,0)-1),OFFSET('C. PoC Adj Factor Scoring'!$E$5:$J$282,,MATCH(O$4,'C. PoC Adj Factor Scoring'!$E$3:$AH$3,0)-1),MATCH(O$2&\" Score\",'C. PoC Adj Factor Scoring'!$E$4:$J$4,0),TRUE)","v":1},{"$f":"VLOOKUP(OFFSET($B:$B,,MATCH(P$4,$B$4:$F$4,0)-1),OFFSET('C. PoC Adj Factor Scoring'!$E$5:$J$282,,MATCH(P$4,'C. PoC Adj Factor Scoring'!$E$3:$AH$3,0)-1),MATCH(P$2&\" Score\",'C. PoC Adj Factor Scoring'!$E$4:$J$4,0),TRUE)","v":1},{"$f":"VLOOKUP(OFFSET($B:$B,,MATCH(Q$4,$B$4:$F$4,0)-1),OFFSET('C. PoC Adj Factor Scoring'!$E$5:$J$282,,MATCH(Q$4,'C. PoC Adj Factor Scoring'!$E$3:$AH$3,0)-1),MATCH(Q$2&\" Score\",'C. PoC Adj Factor Scoring'!$E$4:$J$4,0),TRUE)","v":1},{"$f":"VLOOKUP(OFFSET($B:$B,,MATCH(R$4,$B$4:$F$4,0)-1),OFFSET('C. PoC Adj Factor Scoring'!$E$5:$J$282,,MATCH(R$4,'C. PoC Adj Factor Scoring'!$E$3:$AH$3,0)-1),MATCH(R$2&\" Score\",'C. PoC Adj Factor Scoring'!$E$4:$J$4,0),TRUE)","v":1},{"$f":"VLOOKUP(OFFSET($B:$B,,MATCH(S$4,$B$4:$F$4,0)-1),OFFSET('C. PoC Adj Factor Scoring'!$E$5:$J$282,,MATCH(S$4,'C. PoC Adj Factor Scoring'!$E$3:$AH$3,0)-1),MATCH(S$2&\" Score\",'C. PoC Adj Factor Scoring'!$E$4:$J$4,0),TRUE)","v":1},{"$f":"VLOOKUP(OFFSET($B:$B,,MATCH(T$4,$B$4:$F$4,0)-1),OFFSET('C. PoC Adj Factor Scoring'!$E$5:$J$282,,MATCH(T$4,'C. PoC Adj Factor Scoring'!$E$3:$AH$3,0)-1),MATCH(T$2&\" Score\",'C. PoC Adj Factor Scoring'!$E$4:$J$4,0),TRUE)","v":1},{"$f":"VLOOKUP(OFFSET($B:$B,,MATCH(U$4,$B$4:$F$4,0)-1),OFFSET('C. PoC Adj Factor Scoring'!$E$5:$J$282,,MATCH(U$4,'C. PoC Adj Factor Scoring'!$E$3:$AH$3,0)-1),MATCH(U$2&\" Score\",'C. PoC Adj Factor Scoring'!$E$4:$J$4,0),TRUE)","v":1},{"$f":"VLOOKUP(OFFSET($B:$B,,MATCH(V$4,$B$4:$F$4,0)-1),OFFSET('C. PoC Adj Factor Scoring'!$E$5:$J$282,,MATCH(V$4,'C. PoC Adj Factor Scoring'!$E$3:$AH$3,0)-1),MATCH(V$2&\" Score\",'C. PoC Adj Factor Scoring'!$E$4:$J$4,0),TRUE)","v":1},{"$f":"VLOOKUP(OFFSET($B:$B,,MATCH(W$4,$B$4:$F$4,0)-1),OFFSET('C. PoC Adj Factor Scoring'!$E$5:$J$282,,MATCH(W$4,'C. PoC Adj Factor Scoring'!$E$3:$AH$3,0)-1),MATCH(W$2&\" Score\",'C. PoC Adj Factor Scoring'!$E$4:$J$4,0),TRUE)","v":1},{"$f":"VLOOKUP(OFFSET($B:$B,,MATCH(X$4,$B$4:$F$4,0)-1),OFFSET('C. PoC Adj Factor Scoring'!$E$5:$J$282,,MATCH(X$4,'C. PoC Adj Factor Scoring'!$E$3:$AH$3,0)-1),MATCH(X$2&\" Score\",'C. PoC Adj Factor Scoring'!$E$4:$J$4,0),TRUE)","v":1},{"$f":"VLOOKUP(OFFSET($B:$B,,MATCH(Y$4,$B$4:$F$4,0)-1),OFFSET('C. PoC Adj Factor Scoring'!$E$5:$J$282,,MATCH(Y$4,'C. PoC Adj Factor Scoring'!$E$3:$AH$3,0)-1),MATCH(Y$2&\" Score\",'C. PoC Adj Factor Scoring'!$E$4:$J$4,0),TRUE)","v":1},{"$f":"VLOOKUP(OFFSET($B:$B,,MATCH(Z$4,$B$4:$F$4,0)-1),OFFSET('C. PoC Adj Factor Scoring'!$E$5:$J$282,,MATCH(Z$4,'C. PoC Adj Factor Scoring'!$E$3:$AH$3,0)-1),MATCH(Z$2&\" Score\",'C. PoC Adj Factor Scoring'!$E$4:$J$4,0),TRUE)","v":1},{"$f":"VLOOKUP(OFFSET($B:$B,,MATCH(AA$4,$B$4:$F$4,0)-1),OFFSET('C. PoC Adj Factor Scoring'!$E$5:$J$282,,MATCH(AA$4,'C. PoC Adj Factor Scoring'!$E$3:$AH$3,0)-1),MATCH(AA$2&\" Score\",'C. PoC Adj Factor Scoring'!$E$4:$J$4,0),TRUE)","v":3},{"$f":"VLOOKUP(OFFSET($B:$B,,MATCH(AB$4,$B$4:$F$4,0)-1),OFFSET('C. PoC Adj Factor Scoring'!$E$5:$J$282,,MATCH(AB$4,'C. PoC Adj Factor Scoring'!$E$3:$AH$3,0)-1),MATCH(AB$2&\" Score\",'C. PoC Adj Factor Scoring'!$E$4:$J$4,0),TRUE)","v":1},{"$f":"VLOOKUP(OFFSET($B:$B,,MATCH(AC$4,$B$4:$F$4,0)-1),OFFSET('C. PoC Adj Factor Scoring'!$E$5:$J$282,,MATCH(AC$4,'C. PoC Adj Factor Scoring'!$E$3:$AH$3,0)-1),MATCH(AC$2&\" Score\",'C. PoC Adj Factor Scoring'!$E$4:$J$4,0),TRUE)","v":1},{"$f":"VLOOKUP(OFFSET($B:$B,,MATCH(AD$4,$B$4:$F$4,0)-1),OFFSET('C. PoC Adj Factor Scoring'!$E$5:$J$282,,MATCH(AD$4,'C. PoC Adj Factor Scoring'!$E$3:$AH$3,0)-1),MATCH(AD$2&\" Score\",'C. PoC Adj Factor Scoring'!$E$4:$J$4,0),TRUE)","v":1},{"$f":"VLOOKUP(OFFSET($B:$B,,MATCH(AE$4,$B$4:$F$4,0)-1),OFFSET('C. PoC Adj Factor Scoring'!$E$5:$J$282,,MATCH(AE$4,'C. PoC Adj Factor Scoring'!$E$3:$AH$3,0)-1),MATCH(AE$2&\" Score\",'C. PoC Adj Factor Scoring'!$E$4:$J$4,0),TRUE)","v":1}]
[{"$f":"'A. Population Info'!A524","v":1001528099},{"$f":"'A. Population Info'!L524","v":"OIL"},{"$f":"'A. Population Info'!M524","v":0},{"$f":"'A. Population Info'!N524","v":0},{"$f":"'A. Population Info'!O524","v":0},{"$f":"'A. Population Info'!P524","v":0},{"$f":"VLOOKUP(OFFSET($B:$B,,MATCH(G$4,$B$4:$F$4,0)-1),OFFSET('C. PoC Adj Factor Scoring'!$E$5:$J$282,,MATCH(G$4,'C. PoC Adj Factor Scoring'!$E$3:$AH$3,0)-1),MATCH(G$2&\" Score\",'C. PoC Adj Factor Scoring'!$E$4:$J$4,0),TRUE)","v":4},{"$f":"VLOOKUP(OFFSET($B:$B,,MATCH(H$4,$B$4:$F$4,0)-1),OFFSET('C. PoC Adj Factor Scoring'!$E$5:$J$282,,MATCH(H$4,'C. PoC Adj Factor Scoring'!$E$3:$AH$3,0)-1),MATCH(H$2&\" Score\",'C. PoC Adj Factor Scoring'!$E$4:$J$4,0),TRUE)","v":1},{"$f":"VLOOKUP(OFFSET($B:$B,,MATCH(I$4,$B$4:$F$4,0)-1),OFFSET('C. PoC Adj Factor Scoring'!$E$5:$J$282,,MATCH(I$4,'C. PoC Adj Factor Scoring'!$E$3:$AH$3,0)-1),MATCH(I$2&\" Score\",'C. PoC Adj Factor Scoring'!$E$4:$J$4,0),TRUE)","v":1},{"$f":"VLOOKUP(OFFSET($B:$B,,MATCH(J$4,$B$4:$F$4,0)-1),OFFSET('C. PoC Adj Factor Scoring'!$E$5:$J$282,,MATCH(J$4,'C. PoC Adj Factor Scoring'!$E$3:$AH$3,0)-1),MATCH(J$2&\" Score\",'C. PoC Adj Factor Scoring'!$E$4:$J$4,0),TRUE)","v":1},{"$f":"VLOOKUP(OFFSET($B:$B,,MATCH(K$4,$B$4:$F$4,0)-1),OFFSET('C. PoC Adj Factor Scoring'!$E$5:$J$282,,MATCH(K$4,'C. PoC Adj Factor Scoring'!$E$3:$AH$3,0)-1),MATCH(K$2&\" Score\",'C. PoC Adj Factor Scoring'!$E$4:$J$4,0),TRUE)","v":1},{"$f":"VLOOKUP(OFFSET($B:$B,,MATCH(L$4,$B$4:$F$4,0)-1),OFFSET('C. PoC Adj Factor Scoring'!$E$5:$J$282,,MATCH(L$4,'C. PoC Adj Factor Scoring'!$E$3:$AH$3,0)-1),MATCH(L$2&\" Score\",'C. PoC Adj Factor Scoring'!$E$4:$J$4,0),TRUE)","v":1},{"$f":"VLOOKUP(OFFSET($B:$B,,MATCH(M$4,$B$4:$F$4,0)-1),OFFSET('C. PoC Adj Factor Scoring'!$E$5:$J$282,,MATCH(M$4,'C. PoC Adj Factor Scoring'!$E$3:$AH$3,0)-1),MATCH(M$2&\" Score\",'C. PoC Adj Factor Scoring'!$E$4:$J$4,0),TRUE)","v":1},{"$f":"VLOOKUP(OFFSET($B:$B,,MATCH(N$4,$B$4:$F$4,0)-1),OFFSET('C. PoC Adj Factor Scoring'!$E$5:$J$282,,MATCH(N$4,'C. PoC Adj Factor Scoring'!$E$3:$AH$3,0)-1),MATCH(N$2&\" Score\",'C. PoC Adj Factor Scoring'!$E$4:$J$4,0),TRUE)","v":1},{"$f":"VLOOKUP(OFFSET($B:$B,,MATCH(O$4,$B$4:$F$4,0)-1),OFFSET('C. PoC Adj Factor Scoring'!$E$5:$J$282,,MATCH(O$4,'C. PoC Adj Factor Scoring'!$E$3:$AH$3,0)-1),MATCH(O$2&\" Score\",'C. PoC Adj Factor Scoring'!$E$4:$J$4,0),TRUE)","v":1},{"$f":"VLOOKUP(OFFSET($B:$B,,MATCH(P$4,$B$4:$F$4,0)-1),OFFSET('C. PoC Adj Factor Scoring'!$E$5:$J$282,,MATCH(P$4,'C. PoC Adj Factor Scoring'!$E$3:$AH$3,0)-1),MATCH(P$2&\" Score\",'C. PoC Adj Factor Scoring'!$E$4:$J$4,0),TRUE)","v":1},{"$f":"VLOOKUP(OFFSET($B:$B,,MATCH(Q$4,$B$4:$F$4,0)-1),OFFSET('C. PoC Adj Factor Scoring'!$E$5:$J$282,,MATCH(Q$4,'C. PoC Adj Factor Scoring'!$E$3:$AH$3,0)-1),MATCH(Q$2&\" Score\",'C. PoC Adj Factor Scoring'!$E$4:$J$4,0),TRUE)","v":1},{"$f":"VLOOKUP(OFFSET($B:$B,,MATCH(R$4,$B$4:$F$4,0)-1),OFFSET('C. PoC Adj Factor Scoring'!$E$5:$J$282,,MATCH(R$4,'C. PoC Adj Factor Scoring'!$E$3:$AH$3,0)-1),MATCH(R$2&\" Score\",'C. PoC Adj Factor Scoring'!$E$4:$J$4,0),TRUE)","v":1},{"$f":"VLOOKUP(OFFSET($B:$B,,MATCH(S$4,$B$4:$F$4,0)-1),OFFSET('C. PoC Adj Factor Scoring'!$E$5:$J$282,,MATCH(S$4,'C. PoC Adj Factor Scoring'!$E$3:$AH$3,0)-1),MATCH(S$2&\" Score\",'C. PoC Adj Factor Scoring'!$E$4:$J$4,0),TRUE)","v":1},{"$f":"VLOOKUP(OFFSET($B:$B,,MATCH(T$4,$B$4:$F$4,0)-1),OFFSET('C. PoC Adj Factor Scoring'!$E$5:$J$282,,MATCH(T$4,'C. PoC Adj Factor Scoring'!$E$3:$AH$3,0)-1),MATCH(T$2&\" Score\",'C. PoC Adj Factor Scoring'!$E$4:$J$4,0),TRUE)","v":1},{"$f":"VLOOKUP(OFFSET($B:$B,,MATCH(U$4,$B$4:$F$4,0)-1),OFFSET('C. PoC Adj Factor Scoring'!$E$5:$J$282,,MATCH(U$4,'C. PoC Adj Factor Scoring'!$E$3:$AH$3,0)-1),MATCH(U$2&\" Score\",'C. PoC Adj Factor Scoring'!$E$4:$J$4,0),TRUE)","v":1},{"$f":"VLOOKUP(OFFSET($B:$B,,MATCH(V$4,$B$4:$F$4,0)-1),OFFSET('C. PoC Adj Factor Scoring'!$E$5:$J$282,,MATCH(V$4,'C. PoC Adj Factor Scoring'!$E$3:$AH$3,0)-1),MATCH(V$2&\" Score\",'C. PoC Adj Factor Scoring'!$E$4:$J$4,0),TRUE)","v":1},{"$f":"VLOOKUP(OFFSET($B:$B,,MATCH(W$4,$B$4:$F$4,0)-1),OFFSET('C. PoC Adj Factor Scoring'!$E$5:$J$282,,MATCH(W$4,'C. PoC Adj Factor Scoring'!$E$3:$AH$3,0)-1),MATCH(W$2&\" Score\",'C. PoC Adj Factor Scoring'!$E$4:$J$4,0),TRUE)","v":1},{"$f":"VLOOKUP(OFFSET($B:$B,,MATCH(X$4,$B$4:$F$4,0)-1),OFFSET('C. PoC Adj Factor Scoring'!$E$5:$J$282,,MATCH(X$4,'C. PoC Adj Factor Scoring'!$E$3:$AH$3,0)-1),MATCH(X$2&\" Score\",'C. PoC Adj Factor Scoring'!$E$4:$J$4,0),TRUE)","v":1},{"$f":"VLOOKUP(OFFSET($B:$B,,MATCH(Y$4,$B$4:$F$4,0)-1),OFFSET('C. PoC Adj Factor Scoring'!$E$5:$J$282,,MATCH(Y$4,'C. PoC Adj Factor Scoring'!$E$3:$AH$3,0)-1),MATCH(Y$2&\" Score\",'C. PoC Adj Factor Scoring'!$E$4:$J$4,0),TRUE)","v":1},{"$f":"VLOOKUP(OFFSET($B:$B,,MATCH(Z$4,$B$4:$F$4,0)-1),OFFSET('C. PoC Adj Factor Scoring'!$E$5:$J$282,,MATCH(Z$4,'C. PoC Adj Factor Scoring'!$E$3:$AH$3,0)-1),MATCH(Z$2&\" Score\",'C. PoC Adj Factor Scoring'!$E$4:$J$4,0),TRUE)","v":1},{"$f":"VLOOKUP(OFFSET($B:$B,,MATCH(AA$4,$B$4:$F$4,0)-1),OFFSET('C. PoC Adj Factor Scoring'!$E$5:$J$282,,MATCH(AA$4,'C. PoC Adj Factor Scoring'!$E$3:$AH$3,0)-1),MATCH(AA$2&\" Score\",'C. PoC Adj Factor Scoring'!$E$4:$J$4,0),TRUE)","v":3},{"$f":"VLOOKUP(OFFSET($B:$B,,MATCH(AB$4,$B$4:$F$4,0)-1),OFFSET('C. PoC Adj Factor Scoring'!$E$5:$J$282,,MATCH(AB$4,'C. PoC Adj Factor Scoring'!$E$3:$AH$3,0)-1),MATCH(AB$2&\" Score\",'C. PoC Adj Factor Scoring'!$E$4:$J$4,0),TRUE)","v":1},{"$f":"VLOOKUP(OFFSET($B:$B,,MATCH(AC$4,$B$4:$F$4,0)-1),OFFSET('C. PoC Adj Factor Scoring'!$E$5:$J$282,,MATCH(AC$4,'C. PoC Adj Factor Scoring'!$E$3:$AH$3,0)-1),MATCH(AC$2&\" Score\",'C. PoC Adj Factor Scoring'!$E$4:$J$4,0),TRUE)","v":1},{"$f":"VLOOKUP(OFFSET($B:$B,,MATCH(AD$4,$B$4:$F$4,0)-1),OFFSET('C. PoC Adj Factor Scoring'!$E$5:$J$282,,MATCH(AD$4,'C. PoC Adj Factor Scoring'!$E$3:$AH$3,0)-1),MATCH(AD$2&\" Score\",'C. PoC Adj Factor Scoring'!$E$4:$J$4,0),TRUE)","v":1},{"$f":"VLOOKUP(OFFSET($B:$B,,MATCH(AE$4,$B$4:$F$4,0)-1),OFFSET('C. PoC Adj Factor Scoring'!$E$5:$J$282,,MATCH(AE$4,'C. PoC Adj Factor Scoring'!$E$3:$AH$3,0)-1),MATCH(AE$2&\" Score\",'C. PoC Adj Factor Scoring'!$E$4:$J$4,0),TRUE)","v":1}]
[{"$f":"'A. Population Info'!A525","v":1001528100},{"$f":"'A. Population Info'!L525","v":"OIL"},{"$f":"'A. Population Info'!M525","v":0},{"$f":"'A. Population Info'!N525","v":0},{"$f":"'A. Population Info'!O525","v":0},{"$f":"'A. Population Info'!P525","v":0},{"$f":"VLOOKUP(OFFSET($B:$B,,MATCH(G$4,$B$4:$F$4,0)-1),OFFSET('C. PoC Adj Factor Scoring'!$E$5:$J$282,,MATCH(G$4,'C. PoC Adj Factor Scoring'!$E$3:$AH$3,0)-1),MATCH(G$2&\" Score\",'C. PoC Adj Factor Scoring'!$E$4:$J$4,0),TRUE)","v":4},{"$f":"VLOOKUP(OFFSET($B:$B,,MATCH(H$4,$B$4:$F$4,0)-1),OFFSET('C. PoC Adj Factor Scoring'!$E$5:$J$282,,MATCH(H$4,'C. PoC Adj Factor Scoring'!$E$3:$AH$3,0)-1),MATCH(H$2&\" Score\",'C. PoC Adj Factor Scoring'!$E$4:$J$4,0),TRUE)","v":1},{"$f":"VLOOKUP(OFFSET($B:$B,,MATCH(I$4,$B$4:$F$4,0)-1),OFFSET('C. PoC Adj Factor Scoring'!$E$5:$J$282,,MATCH(I$4,'C. PoC Adj Factor Scoring'!$E$3:$AH$3,0)-1),MATCH(I$2&\" Score\",'C. PoC Adj Factor Scoring'!$E$4:$J$4,0),TRUE)","v":1},{"$f":"VLOOKUP(OFFSET($B:$B,,MATCH(J$4,$B$4:$F$4,0)-1),OFFSET('C. PoC Adj Factor Scoring'!$E$5:$J$282,,MATCH(J$4,'C. PoC Adj Factor Scoring'!$E$3:$AH$3,0)-1),MATCH(J$2&\" Score\",'C. PoC Adj Factor Scoring'!$E$4:$J$4,0),TRUE)","v":1},{"$f":"VLOOKUP(OFFSET($B:$B,,MATCH(K$4,$B$4:$F$4,0)-1),OFFSET('C. PoC Adj Factor Scoring'!$E$5:$J$282,,MATCH(K$4,'C. PoC Adj Factor Scoring'!$E$3:$AH$3,0)-1),MATCH(K$2&\" Score\",'C. PoC Adj Factor Scoring'!$E$4:$J$4,0),TRUE)","v":1},{"$f":"VLOOKUP(OFFSET($B:$B,,MATCH(L$4,$B$4:$F$4,0)-1),OFFSET('C. PoC Adj Factor Scoring'!$E$5:$J$282,,MATCH(L$4,'C. PoC Adj Factor Scoring'!$E$3:$AH$3,0)-1),MATCH(L$2&\" Score\",'C. PoC Adj Factor Scoring'!$E$4:$J$4,0),TRUE)","v":1},{"$f":"VLOOKUP(OFFSET($B:$B,,MATCH(M$4,$B$4:$F$4,0)-1),OFFSET('C. PoC Adj Factor Scoring'!$E$5:$J$282,,MATCH(M$4,'C. PoC Adj Factor Scoring'!$E$3:$AH$3,0)-1),MATCH(M$2&\" Score\",'C. PoC Adj Factor Scoring'!$E$4:$J$4,0),TRUE)","v":1},{"$f":"VLOOKUP(OFFSET($B:$B,,MATCH(N$4,$B$4:$F$4,0)-1),OFFSET('C. PoC Adj Factor Scoring'!$E$5:$J$282,,MATCH(N$4,'C. PoC Adj Factor Scoring'!$E$3:$AH$3,0)-1),MATCH(N$2&\" Score\",'C. PoC Adj Factor Scoring'!$E$4:$J$4,0),TRUE)","v":1},{"$f":"VLOOKUP(OFFSET($B:$B,,MATCH(O$4,$B$4:$F$4,0)-1),OFFSET('C. PoC Adj Factor Scoring'!$E$5:$J$282,,MATCH(O$4,'C. PoC Adj Factor Scoring'!$E$3:$AH$3,0)-1),MATCH(O$2&\" Score\",'C. PoC Adj Factor Scoring'!$E$4:$J$4,0),TRUE)","v":1},{"$f":"VLOOKUP(OFFSET($B:$B,,MATCH(P$4,$B$4:$F$4,0)-1),OFFSET('C. PoC Adj Factor Scoring'!$E$5:$J$282,,MATCH(P$4,'C. PoC Adj Factor Scoring'!$E$3:$AH$3,0)-1),MATCH(P$2&\" Score\",'C. PoC Adj Factor Scoring'!$E$4:$J$4,0),TRUE)","v":1},{"$f":"VLOOKUP(OFFSET($B:$B,,MATCH(Q$4,$B$4:$F$4,0)-1),OFFSET('C. PoC Adj Factor Scoring'!$E$5:$J$282,,MATCH(Q$4,'C. PoC Adj Factor Scoring'!$E$3:$AH$3,0)-1),MATCH(Q$2&\" Score\",'C. PoC Adj Factor Scoring'!$E$4:$J$4,0),TRUE)","v":1},{"$f":"VLOOKUP(OFFSET($B:$B,,MATCH(R$4,$B$4:$F$4,0)-1),OFFSET('C. PoC Adj Factor Scoring'!$E$5:$J$282,,MATCH(R$4,'C. PoC Adj Factor Scoring'!$E$3:$AH$3,0)-1),MATCH(R$2&\" Score\",'C. PoC Adj Factor Scoring'!$E$4:$J$4,0),TRUE)","v":1},{"$f":"VLOOKUP(OFFSET($B:$B,,MATCH(S$4,$B$4:$F$4,0)-1),OFFSET('C. PoC Adj Factor Scoring'!$E$5:$J$282,,MATCH(S$4,'C. PoC Adj Factor Scoring'!$E$3:$AH$3,0)-1),MATCH(S$2&\" Score\",'C. PoC Adj Factor Scoring'!$E$4:$J$4,0),TRUE)","v":1},{"$f":"VLOOKUP(OFFSET($B:$B,,MATCH(T$4,$B$4:$F$4,0)-1),OFFSET('C. PoC Adj Factor Scoring'!$E$5:$J$282,,MATCH(T$4,'C. PoC Adj Factor Scoring'!$E$3:$AH$3,0)-1),MATCH(T$2&\" Score\",'C. PoC Adj Factor Scoring'!$E$4:$J$4,0),TRUE)","v":1},{"$f":"VLOOKUP(OFFSET($B:$B,,MATCH(U$4,$B$4:$F$4,0)-1),OFFSET('C. PoC Adj Factor Scoring'!$E$5:$J$282,,MATCH(U$4,'C. PoC Adj Factor Scoring'!$E$3:$AH$3,0)-1),MATCH(U$2&\" Score\",'C. PoC Adj Factor Scoring'!$E$4:$J$4,0),TRUE)","v":1},{"$f":"VLOOKUP(OFFSET($B:$B,,MATCH(V$4,$B$4:$F$4,0)-1),OFFSET('C. PoC Adj Factor Scoring'!$E$5:$J$282,,MATCH(V$4,'C. PoC Adj Factor Scoring'!$E$3:$AH$3,0)-1),MATCH(V$2&\" Score\",'C. PoC Adj Factor Scoring'!$E$4:$J$4,0),TRUE)","v":1},{"$f":"VLOOKUP(OFFSET($B:$B,,MATCH(W$4,$B$4:$F$4,0)-1),OFFSET('C. PoC Adj Factor Scoring'!$E$5:$J$282,,MATCH(W$4,'C. PoC Adj Factor Scoring'!$E$3:$AH$3,0)-1),MATCH(W$2&\" Score\",'C. PoC Adj Factor Scoring'!$E$4:$J$4,0),TRUE)","v":1},{"$f":"VLOOKUP(OFFSET($B:$B,,MATCH(X$4,$B$4:$F$4,0)-1),OFFSET('C. PoC Adj Factor Scoring'!$E$5:$J$282,,MATCH(X$4,'C. PoC Adj Factor Scoring'!$E$3:$AH$3,0)-1),MATCH(X$2&\" Score\",'C. PoC Adj Factor Scoring'!$E$4:$J$4,0),TRUE)","v":1},{"$f":"VLOOKUP(OFFSET($B:$B,,MATCH(Y$4,$B$4:$F$4,0)-1),OFFSET('C. PoC Adj Factor Scoring'!$E$5:$J$282,,MATCH(Y$4,'C. PoC Adj Factor Scoring'!$E$3:$AH$3,0)-1),MATCH(Y$2&\" Score\",'C. PoC Adj Factor Scoring'!$E$4:$J$4,0),TRUE)","v":1},{"$f":"VLOOKUP(OFFSET($B:$B,,MATCH(Z$4,$B$4:$F$4,0)-1),OFFSET('C. PoC Adj Factor Scoring'!$E$5:$J$282,,MATCH(Z$4,'C. PoC Adj Factor Scoring'!$E$3:$AH$3,0)-1),MATCH(Z$2&\" Score\",'C. PoC Adj Factor Scoring'!$E$4:$J$4,0),TRUE)","v":1},{"$f":"VLOOKUP(OFFSET($B:$B,,MATCH(AA$4,$B$4:$F$4,0)-1),OFFSET('C. PoC Adj Factor Scoring'!$E$5:$J$282,,MATCH(AA$4,'C. PoC Adj Factor Scoring'!$E$3:$AH$3,0)-1),MATCH(AA$2&\" Score\",'C. PoC Adj Factor Scoring'!$E$4:$J$4,0),TRUE)","v":3},{"$f":"VLOOKUP(OFFSET($B:$B,,MATCH(AB$4,$B$4:$F$4,0)-1),OFFSET('C. PoC Adj Factor Scoring'!$E$5:$J$282,,MATCH(AB$4,'C. PoC Adj Factor Scoring'!$E$3:$AH$3,0)-1),MATCH(AB$2&\" Score\",'C. PoC Adj Factor Scoring'!$E$4:$J$4,0),TRUE)","v":1},{"$f":"VLOOKUP(OFFSET($B:$B,,MATCH(AC$4,$B$4:$F$4,0)-1),OFFSET('C. PoC Adj Factor Scoring'!$E$5:$J$282,,MATCH(AC$4,'C. PoC Adj Factor Scoring'!$E$3:$AH$3,0)-1),MATCH(AC$2&\" Score\",'C. PoC Adj Factor Scoring'!$E$4:$J$4,0),TRUE)","v":1},{"$f":"VLOOKUP(OFFSET($B:$B,,MATCH(AD$4,$B$4:$F$4,0)-1),OFFSET('C. PoC Adj Factor Scoring'!$E$5:$J$282,,MATCH(AD$4,'C. PoC Adj Factor Scoring'!$E$3:$AH$3,0)-1),MATCH(AD$2&\" Score\",'C. PoC Adj Factor Scoring'!$E$4:$J$4,0),TRUE)","v":1},{"$f":"VLOOKUP(OFFSET($B:$B,,MATCH(AE$4,$B$4:$F$4,0)-1),OFFSET('C. PoC Adj Factor Scoring'!$E$5:$J$282,,MATCH(AE$4,'C. PoC Adj Factor Scoring'!$E$3:$AH$3,0)-1),MATCH(AE$2&\" Score\",'C. PoC Adj Factor Scoring'!$E$4:$J$4,0),TRUE)","v":1}]
[{"$f":"'A. Population Info'!A526","v":1001537307},{"$f":"'A. Population Info'!L526","v":"OIL"},{"$f":"'A. Population Info'!M526","v":0},{"$f":"'A. Population Info'!N526","v":0},{"$f":"'A. Population Info'!O526","v":0},{"$f":"'A. Population Info'!P526","v":0},{"$f":"VLOOKUP(OFFSET($B:$B,,MATCH(G$4,$B$4:$F$4,0)-1),OFFSET('C. PoC Adj Factor Scoring'!$E$5:$J$282,,MATCH(G$4,'C. PoC Adj Factor Scoring'!$E$3:$AH$3,0)-1),MATCH(G$2&\" Score\",'C. PoC Adj Factor Scoring'!$E$4:$J$4,0),TRUE)","v":4},{"$f":"VLOOKUP(OFFSET($B:$B,,MATCH(H$4,$B$4:$F$4,0)-1),OFFSET('C. PoC Adj Factor Scoring'!$E$5:$J$282,,MATCH(H$4,'C. PoC Adj Factor Scoring'!$E$3:$AH$3,0)-1),MATCH(H$2&\" Score\",'C. PoC Adj Factor Scoring'!$E$4:$J$4,0),TRUE)","v":1},{"$f":"VLOOKUP(OFFSET($B:$B,,MATCH(I$4,$B$4:$F$4,0)-1),OFFSET('C. PoC Adj Factor Scoring'!$E$5:$J$282,,MATCH(I$4,'C. PoC Adj Factor Scoring'!$E$3:$AH$3,0)-1),MATCH(I$2&\" Score\",'C. PoC Adj Factor Scoring'!$E$4:$J$4,0),TRUE)","v":1},{"$f":"VLOOKUP(OFFSET($B:$B,,MATCH(J$4,$B$4:$F$4,0)-1),OFFSET('C. PoC Adj Factor Scoring'!$E$5:$J$282,,MATCH(J$4,'C. PoC Adj Factor Scoring'!$E$3:$AH$3,0)-1),MATCH(J$2&\" Score\",'C. PoC Adj Factor Scoring'!$E$4:$J$4,0),TRUE)","v":1},{"$f":"VLOOKUP(OFFSET($B:$B,,MATCH(K$4,$B$4:$F$4,0)-1),OFFSET('C. PoC Adj Factor Scoring'!$E$5:$J$282,,MATCH(K$4,'C. PoC Adj Factor Scoring'!$E$3:$AH$3,0)-1),MATCH(K$2&\" Score\",'C. PoC Adj Factor Scoring'!$E$4:$J$4,0),TRUE)","v":1},{"$f":"VLOOKUP(OFFSET($B:$B,,MATCH(L$4,$B$4:$F$4,0)-1),OFFSET('C. PoC Adj Factor Scoring'!$E$5:$J$282,,MATCH(L$4,'C. PoC Adj Factor Scoring'!$E$3:$AH$3,0)-1),MATCH(L$2&\" Score\",'C. PoC Adj Factor Scoring'!$E$4:$J$4,0),TRUE)","v":1},{"$f":"VLOOKUP(OFFSET($B:$B,,MATCH(M$4,$B$4:$F$4,0)-1),OFFSET('C. PoC Adj Factor Scoring'!$E$5:$J$282,,MATCH(M$4,'C. PoC Adj Factor Scoring'!$E$3:$AH$3,0)-1),MATCH(M$2&\" Score\",'C. PoC Adj Factor Scoring'!$E$4:$J$4,0),TRUE)","v":1},{"$f":"VLOOKUP(OFFSET($B:$B,,MATCH(N$4,$B$4:$F$4,0)-1),OFFSET('C. PoC Adj Factor Scoring'!$E$5:$J$282,,MATCH(N$4,'C. PoC Adj Factor Scoring'!$E$3:$AH$3,0)-1),MATCH(N$2&\" Score\",'C. PoC Adj Factor Scoring'!$E$4:$J$4,0),TRUE)","v":1},{"$f":"VLOOKUP(OFFSET($B:$B,,MATCH(O$4,$B$4:$F$4,0)-1),OFFSET('C. PoC Adj Factor Scoring'!$E$5:$J$282,,MATCH(O$4,'C. PoC Adj Factor Scoring'!$E$3:$AH$3,0)-1),MATCH(O$2&\" Score\",'C. PoC Adj Factor Scoring'!$E$4:$J$4,0),TRUE)","v":1},{"$f":"VLOOKUP(OFFSET($B:$B,,MATCH(P$4,$B$4:$F$4,0)-1),OFFSET('C. PoC Adj Factor Scoring'!$E$5:$J$282,,MATCH(P$4,'C. PoC Adj Factor Scoring'!$E$3:$AH$3,0)-1),MATCH(P$2&\" Score\",'C. PoC Adj Factor Scoring'!$E$4:$J$4,0),TRUE)","v":1},{"$f":"VLOOKUP(OFFSET($B:$B,,MATCH(Q$4,$B$4:$F$4,0)-1),OFFSET('C. PoC Adj Factor Scoring'!$E$5:$J$282,,MATCH(Q$4,'C. PoC Adj Factor Scoring'!$E$3:$AH$3,0)-1),MATCH(Q$2&\" Score\",'C. PoC Adj Factor Scoring'!$E$4:$J$4,0),TRUE)","v":1},{"$f":"VLOOKUP(OFFSET($B:$B,,MATCH(R$4,$B$4:$F$4,0)-1),OFFSET('C. PoC Adj Factor Scoring'!$E$5:$J$282,,MATCH(R$4,'C. PoC Adj Factor Scoring'!$E$3:$AH$3,0)-1),MATCH(R$2&\" Score\",'C. PoC Adj Factor Scoring'!$E$4:$J$4,0),TRUE)","v":1},{"$f":"VLOOKUP(OFFSET($B:$B,,MATCH(S$4,$B$4:$F$4,0)-1),OFFSET('C. PoC Adj Factor Scoring'!$E$5:$J$282,,MATCH(S$4,'C. PoC Adj Factor Scoring'!$E$3:$AH$3,0)-1),MATCH(S$2&\" Score\",'C. PoC Adj Factor Scoring'!$E$4:$J$4,0),TRUE)","v":1},{"$f":"VLOOKUP(OFFSET($B:$B,,MATCH(T$4,$B$4:$F$4,0)-1),OFFSET('C. PoC Adj Factor Scoring'!$E$5:$J$282,,MATCH(T$4,'C. PoC Adj Factor Scoring'!$E$3:$AH$3,0)-1),MATCH(T$2&\" Score\",'C. PoC Adj Factor Scoring'!$E$4:$J$4,0),TRUE)","v":1},{"$f":"VLOOKUP(OFFSET($B:$B,,MATCH(U$4,$B$4:$F$4,0)-1),OFFSET('C. PoC Adj Factor Scoring'!$E$5:$J$282,,MATCH(U$4,'C. PoC Adj Factor Scoring'!$E$3:$AH$3,0)-1),MATCH(U$2&\" Score\",'C. PoC Adj Factor Scoring'!$E$4:$J$4,0),TRUE)","v":1},{"$f":"VLOOKUP(OFFSET($B:$B,,MATCH(V$4,$B$4:$F$4,0)-1),OFFSET('C. PoC Adj Factor Scoring'!$E$5:$J$282,,MATCH(V$4,'C. PoC Adj Factor Scoring'!$E$3:$AH$3,0)-1),MATCH(V$2&\" Score\",'C. PoC Adj Factor Scoring'!$E$4:$J$4,0),TRUE)","v":1},{"$f":"VLOOKUP(OFFSET($B:$B,,MATCH(W$4,$B$4:$F$4,0)-1),OFFSET('C. PoC Adj Factor Scoring'!$E$5:$J$282,,MATCH(W$4,'C. PoC Adj Factor Scoring'!$E$3:$AH$3,0)-1),MATCH(W$2&\" Score\",'C. PoC Adj Factor Scoring'!$E$4:$J$4,0),TRUE)","v":1},{"$f":"VLOOKUP(OFFSET($B:$B,,MATCH(X$4,$B$4:$F$4,0)-1),OFFSET('C. PoC Adj Factor Scoring'!$E$5:$J$282,,MATCH(X$4,'C. PoC Adj Factor Scoring'!$E$3:$AH$3,0)-1),MATCH(X$2&\" Score\",'C. PoC Adj Factor Scoring'!$E$4:$J$4,0),TRUE)","v":1},{"$f":"VLOOKUP(OFFSET($B:$B,,MATCH(Y$4,$B$4:$F$4,0)-1),OFFSET('C. PoC Adj Factor Scoring'!$E$5:$J$282,,MATCH(Y$4,'C. PoC Adj Factor Scoring'!$E$3:$AH$3,0)-1),MATCH(Y$2&\" Score\",'C. PoC Adj Factor Scoring'!$E$4:$J$4,0),TRUE)","v":1},{"$f":"VLOOKUP(OFFSET($B:$B,,MATCH(Z$4,$B$4:$F$4,0)-1),OFFSET('C. PoC Adj Factor Scoring'!$E$5:$J$282,,MATCH(Z$4,'C. PoC Adj Factor Scoring'!$E$3:$AH$3,0)-1),MATCH(Z$2&\" Score\",'C. PoC Adj Factor Scoring'!$E$4:$J$4,0),TRUE)","v":1},{"$f":"VLOOKUP(OFFSET($B:$B,,MATCH(AA$4,$B$4:$F$4,0)-1),OFFSET('C. PoC Adj Factor Scoring'!$E$5:$J$282,,MATCH(AA$4,'C. PoC Adj Factor Scoring'!$E$3:$AH$3,0)-1),MATCH(AA$2&\" Score\",'C. PoC Adj Factor Scoring'!$E$4:$J$4,0),TRUE)","v":3},{"$f":"VLOOKUP(OFFSET($B:$B,,MATCH(AB$4,$B$4:$F$4,0)-1),OFFSET('C. PoC Adj Factor Scoring'!$E$5:$J$282,,MATCH(AB$4,'C. PoC Adj Factor Scoring'!$E$3:$AH$3,0)-1),MATCH(AB$2&\" Score\",'C. PoC Adj Factor Scoring'!$E$4:$J$4,0),TRUE)","v":1},{"$f":"VLOOKUP(OFFSET($B:$B,,MATCH(AC$4,$B$4:$F$4,0)-1),OFFSET('C. PoC Adj Factor Scoring'!$E$5:$J$282,,MATCH(AC$4,'C. PoC Adj Factor Scoring'!$E$3:$AH$3,0)-1),MATCH(AC$2&\" Score\",'C. PoC Adj Factor Scoring'!$E$4:$J$4,0),TRUE)","v":1},{"$f":"VLOOKUP(OFFSET($B:$B,,MATCH(AD$4,$B$4:$F$4,0)-1),OFFSET('C. PoC Adj Factor Scoring'!$E$5:$J$282,,MATCH(AD$4,'C. PoC Adj Factor Scoring'!$E$3:$AH$3,0)-1),MATCH(AD$2&\" Score\",'C. PoC Adj Factor Scoring'!$E$4:$J$4,0),TRUE)","v":1},{"$f":"VLOOKUP(OFFSET($B:$B,,MATCH(AE$4,$B$4:$F$4,0)-1),OFFSET('C. PoC Adj Factor Scoring'!$E$5:$J$282,,MATCH(AE$4,'C. PoC Adj Factor Scoring'!$E$3:$AH$3,0)-1),MATCH(AE$2&\" Score\",'C. PoC Adj Factor Scoring'!$E$4:$J$4,0),TRUE)","v":1}]
[{"$f":"'A. Population Info'!A527","v":1001538184},{"$f":"'A. Population Info'!L527","v":"OIL"},{"$f":"'A. Population Info'!M527","v":0},{"$f":"'A. Population Info'!N527","v":0},{"$f":"'A. Population Info'!O527","v":0},{"$f":"'A. Population Info'!P527","v":0},{"$f":"VLOOKUP(OFFSET($B:$B,,MATCH(G$4,$B$4:$F$4,0)-1),OFFSET('C. PoC Adj Factor Scoring'!$E$5:$J$282,,MATCH(G$4,'C. PoC Adj Factor Scoring'!$E$3:$AH$3,0)-1),MATCH(G$2&\" Score\",'C. PoC Adj Factor Scoring'!$E$4:$J$4,0),TRUE)","v":4},{"$f":"VLOOKUP(OFFSET($B:$B,,MATCH(H$4,$B$4:$F$4,0)-1),OFFSET('C. PoC Adj Factor Scoring'!$E$5:$J$282,,MATCH(H$4,'C. PoC Adj Factor Scoring'!$E$3:$AH$3,0)-1),MATCH(H$2&\" Score\",'C. PoC Adj Factor Scoring'!$E$4:$J$4,0),TRUE)","v":1},{"$f":"VLOOKUP(OFFSET($B:$B,,MATCH(I$4,$B$4:$F$4,0)-1),OFFSET('C. PoC Adj Factor Scoring'!$E$5:$J$282,,MATCH(I$4,'C. PoC Adj Factor Scoring'!$E$3:$AH$3,0)-1),MATCH(I$2&\" Score\",'C. PoC Adj Factor Scoring'!$E$4:$J$4,0),TRUE)","v":1},{"$f":"VLOOKUP(OFFSET($B:$B,,MATCH(J$4,$B$4:$F$4,0)-1),OFFSET('C. PoC Adj Factor Scoring'!$E$5:$J$282,,MATCH(J$4,'C. PoC Adj Factor Scoring'!$E$3:$AH$3,0)-1),MATCH(J$2&\" Score\",'C. PoC Adj Factor Scoring'!$E$4:$J$4,0),TRUE)","v":1},{"$f":"VLOOKUP(OFFSET($B:$B,,MATCH(K$4,$B$4:$F$4,0)-1),OFFSET('C. PoC Adj Factor Scoring'!$E$5:$J$282,,MATCH(K$4,'C. PoC Adj Factor Scoring'!$E$3:$AH$3,0)-1),MATCH(K$2&\" Score\",'C. PoC Adj Factor Scoring'!$E$4:$J$4,0),TRUE)","v":1},{"$f":"VLOOKUP(OFFSET($B:$B,,MATCH(L$4,$B$4:$F$4,0)-1),OFFSET('C. PoC Adj Factor Scoring'!$E$5:$J$282,,MATCH(L$4,'C. PoC Adj Factor Scoring'!$E$3:$AH$3,0)-1),MATCH(L$2&\" Score\",'C. PoC Adj Factor Scoring'!$E$4:$J$4,0),TRUE)","v":1},{"$f":"VLOOKUP(OFFSET($B:$B,,MATCH(M$4,$B$4:$F$4,0)-1),OFFSET('C. PoC Adj Factor Scoring'!$E$5:$J$282,,MATCH(M$4,'C. PoC Adj Factor Scoring'!$E$3:$AH$3,0)-1),MATCH(M$2&\" Score\",'C. PoC Adj Factor Scoring'!$E$4:$J$4,0),TRUE)","v":1},{"$f":"VLOOKUP(OFFSET($B:$B,,MATCH(N$4,$B$4:$F$4,0)-1),OFFSET('C. PoC Adj Factor Scoring'!$E$5:$J$282,,MATCH(N$4,'C. PoC Adj Factor Scoring'!$E$3:$AH$3,0)-1),MATCH(N$2&\" Score\",'C. PoC Adj Factor Scoring'!$E$4:$J$4,0),TRUE)","v":1},{"$f":"VLOOKUP(OFFSET($B:$B,,MATCH(O$4,$B$4:$F$4,0)-1),OFFSET('C. PoC Adj Factor Scoring'!$E$5:$J$282,,MATCH(O$4,'C. PoC Adj Factor Scoring'!$E$3:$AH$3,0)-1),MATCH(O$2&\" Score\",'C. PoC Adj Factor Scoring'!$E$4:$J$4,0),TRUE)","v":1},{"$f":"VLOOKUP(OFFSET($B:$B,,MATCH(P$4,$B$4:$F$4,0)-1),OFFSET('C. PoC Adj Factor Scoring'!$E$5:$J$282,,MATCH(P$4,'C. PoC Adj Factor Scoring'!$E$3:$AH$3,0)-1),MATCH(P$2&\" Score\",'C. PoC Adj Factor Scoring'!$E$4:$J$4,0),TRUE)","v":1},{"$f":"VLOOKUP(OFFSET($B:$B,,MATCH(Q$4,$B$4:$F$4,0)-1),OFFSET('C. PoC Adj Factor Scoring'!$E$5:$J$282,,MATCH(Q$4,'C. PoC Adj Factor Scoring'!$E$3:$AH$3,0)-1),MATCH(Q$2&\" Score\",'C. PoC Adj Factor Scoring'!$E$4:$J$4,0),TRUE)","v":1},{"$f":"VLOOKUP(OFFSET($B:$B,,MATCH(R$4,$B$4:$F$4,0)-1),OFFSET('C. PoC Adj Factor Scoring'!$E$5:$J$282,,MATCH(R$4,'C. PoC Adj Factor Scoring'!$E$3:$AH$3,0)-1),MATCH(R$2&\" Score\",'C. PoC Adj Factor Scoring'!$E$4:$J$4,0),TRUE)","v":1},{"$f":"VLOOKUP(OFFSET($B:$B,,MATCH(S$4,$B$4:$F$4,0)-1),OFFSET('C. PoC Adj Factor Scoring'!$E$5:$J$282,,MATCH(S$4,'C. PoC Adj Factor Scoring'!$E$3:$AH$3,0)-1),MATCH(S$2&\" Score\",'C. PoC Adj Factor Scoring'!$E$4:$J$4,0),TRUE)","v":1},{"$f":"VLOOKUP(OFFSET($B:$B,,MATCH(T$4,$B$4:$F$4,0)-1),OFFSET('C. PoC Adj Factor Scoring'!$E$5:$J$282,,MATCH(T$4,'C. PoC Adj Factor Scoring'!$E$3:$AH$3,0)-1),MATCH(T$2&\" Score\",'C. PoC Adj Factor Scoring'!$E$4:$J$4,0),TRUE)","v":1},{"$f":"VLOOKUP(OFFSET($B:$B,,MATCH(U$4,$B$4:$F$4,0)-1),OFFSET('C. PoC Adj Factor Scoring'!$E$5:$J$282,,MATCH(U$4,'C. PoC Adj Factor Scoring'!$E$3:$AH$3,0)-1),MATCH(U$2&\" Score\",'C. PoC Adj Factor Scoring'!$E$4:$J$4,0),TRUE)","v":1},{"$f":"VLOOKUP(OFFSET($B:$B,,MATCH(V$4,$B$4:$F$4,0)-1),OFFSET('C. PoC Adj Factor Scoring'!$E$5:$J$282,,MATCH(V$4,'C. PoC Adj Factor Scoring'!$E$3:$AH$3,0)-1),MATCH(V$2&\" Score\",'C. PoC Adj Factor Scoring'!$E$4:$J$4,0),TRUE)","v":1},{"$f":"VLOOKUP(OFFSET($B:$B,,MATCH(W$4,$B$4:$F$4,0)-1),OFFSET('C. PoC Adj Factor Scoring'!$E$5:$J$282,,MATCH(W$4,'C. PoC Adj Factor Scoring'!$E$3:$AH$3,0)-1),MATCH(W$2&\" Score\",'C. PoC Adj Factor Scoring'!$E$4:$J$4,0),TRUE)","v":1},{"$f":"VLOOKUP(OFFSET($B:$B,,MATCH(X$4,$B$4:$F$4,0)-1),OFFSET('C. PoC Adj Factor Scoring'!$E$5:$J$282,,MATCH(X$4,'C. PoC Adj Factor Scoring'!$E$3:$AH$3,0)-1),MATCH(X$2&\" Score\",'C. PoC Adj Factor Scoring'!$E$4:$J$4,0),TRUE)","v":1},{"$f":"VLOOKUP(OFFSET($B:$B,,MATCH(Y$4,$B$4:$F$4,0)-1),OFFSET('C. PoC Adj Factor Scoring'!$E$5:$J$282,,MATCH(Y$4,'C. PoC Adj Factor Scoring'!$E$3:$AH$3,0)-1),MATCH(Y$2&\" Score\",'C. PoC Adj Factor Scoring'!$E$4:$J$4,0),TRUE)","v":1},{"$f":"VLOOKUP(OFFSET($B:$B,,MATCH(Z$4,$B$4:$F$4,0)-1),OFFSET('C. PoC Adj Factor Scoring'!$E$5:$J$282,,MATCH(Z$4,'C. PoC Adj Factor Scoring'!$E$3:$AH$3,0)-1),MATCH(Z$2&\" Score\",'C. PoC Adj Factor Scoring'!$E$4:$J$4,0),TRUE)","v":1},{"$f":"VLOOKUP(OFFSET($B:$B,,MATCH(AA$4,$B$4:$F$4,0)-1),OFFSET('C. PoC Adj Factor Scoring'!$E$5:$J$282,,MATCH(AA$4,'C. PoC Adj Factor Scoring'!$E$3:$AH$3,0)-1),MATCH(AA$2&\" Score\",'C. PoC Adj Factor Scoring'!$E$4:$J$4,0),TRUE)","v":3},{"$f":"VLOOKUP(OFFSET($B:$B,,MATCH(AB$4,$B$4:$F$4,0)-1),OFFSET('C. PoC Adj Factor Scoring'!$E$5:$J$282,,MATCH(AB$4,'C. PoC Adj Factor Scoring'!$E$3:$AH$3,0)-1),MATCH(AB$2&\" Score\",'C. PoC Adj Factor Scoring'!$E$4:$J$4,0),TRUE)","v":1},{"$f":"VLOOKUP(OFFSET($B:$B,,MATCH(AC$4,$B$4:$F$4,0)-1),OFFSET('C. PoC Adj Factor Scoring'!$E$5:$J$282,,MATCH(AC$4,'C. PoC Adj Factor Scoring'!$E$3:$AH$3,0)-1),MATCH(AC$2&\" Score\",'C. PoC Adj Factor Scoring'!$E$4:$J$4,0),TRUE)","v":1},{"$f":"VLOOKUP(OFFSET($B:$B,,MATCH(AD$4,$B$4:$F$4,0)-1),OFFSET('C. PoC Adj Factor Scoring'!$E$5:$J$282,,MATCH(AD$4,'C. PoC Adj Factor Scoring'!$E$3:$AH$3,0)-1),MATCH(AD$2&\" Score\",'C. PoC Adj Factor Scoring'!$E$4:$J$4,0),TRUE)","v":1},{"$f":"VLOOKUP(OFFSET($B:$B,,MATCH(AE$4,$B$4:$F$4,0)-1),OFFSET('C. PoC Adj Factor Scoring'!$E$5:$J$282,,MATCH(AE$4,'C. PoC Adj Factor Scoring'!$E$3:$AH$3,0)-1),MATCH(AE$2&\" Score\",'C. PoC Adj Factor Scoring'!$E$4:$J$4,0),TRUE)","v":1}]
[{"$f":"'A. Population Info'!A528","v":1001538185},{"$f":"'A. Population Info'!L528","v":"OIL"},{"$f":"'A. Population Info'!M528","v":0},{"$f":"'A. Population Info'!N528","v":0},{"$f":"'A. Population Info'!O528","v":0},{"$f":"'A. Population Info'!P528","v":0},{"$f":"VLOOKUP(OFFSET($B:$B,,MATCH(G$4,$B$4:$F$4,0)-1),OFFSET('C. PoC Adj Factor Scoring'!$E$5:$J$282,,MATCH(G$4,'C. PoC Adj Factor Scoring'!$E$3:$AH$3,0)-1),MATCH(G$2&\" Score\",'C. PoC Adj Factor Scoring'!$E$4:$J$4,0),TRUE)","v":4},{"$f":"VLOOKUP(OFFSET($B:$B,,MATCH(H$4,$B$4:$F$4,0)-1),OFFSET('C. PoC Adj Factor Scoring'!$E$5:$J$282,,MATCH(H$4,'C. PoC Adj Factor Scoring'!$E$3:$AH$3,0)-1),MATCH(H$2&\" Score\",'C. PoC Adj Factor Scoring'!$E$4:$J$4,0),TRUE)","v":1},{"$f":"VLOOKUP(OFFSET($B:$B,,MATCH(I$4,$B$4:$F$4,0)-1),OFFSET('C. PoC Adj Factor Scoring'!$E$5:$J$282,,MATCH(I$4,'C. PoC Adj Factor Scoring'!$E$3:$AH$3,0)-1),MATCH(I$2&\" Score\",'C. PoC Adj Factor Scoring'!$E$4:$J$4,0),TRUE)","v":1},{"$f":"VLOOKUP(OFFSET($B:$B,,MATCH(J$4,$B$4:$F$4,0)-1),OFFSET('C. PoC Adj Factor Scoring'!$E$5:$J$282,,MATCH(J$4,'C. PoC Adj Factor Scoring'!$E$3:$AH$3,0)-1),MATCH(J$2&\" Score\",'C. PoC Adj Factor Scoring'!$E$4:$J$4,0),TRUE)","v":1},{"$f":"VLOOKUP(OFFSET($B:$B,,MATCH(K$4,$B$4:$F$4,0)-1),OFFSET('C. PoC Adj Factor Scoring'!$E$5:$J$282,,MATCH(K$4,'C. PoC Adj Factor Scoring'!$E$3:$AH$3,0)-1),MATCH(K$2&\" Score\",'C. PoC Adj Factor Scoring'!$E$4:$J$4,0),TRUE)","v":1},{"$f":"VLOOKUP(OFFSET($B:$B,,MATCH(L$4,$B$4:$F$4,0)-1),OFFSET('C. PoC Adj Factor Scoring'!$E$5:$J$282,,MATCH(L$4,'C. PoC Adj Factor Scoring'!$E$3:$AH$3,0)-1),MATCH(L$2&\" Score\",'C. PoC Adj Factor Scoring'!$E$4:$J$4,0),TRUE)","v":1},{"$f":"VLOOKUP(OFFSET($B:$B,,MATCH(M$4,$B$4:$F$4,0)-1),OFFSET('C. PoC Adj Factor Scoring'!$E$5:$J$282,,MATCH(M$4,'C. PoC Adj Factor Scoring'!$E$3:$AH$3,0)-1),MATCH(M$2&\" Score\",'C. PoC Adj Factor Scoring'!$E$4:$J$4,0),TRUE)","v":1},{"$f":"VLOOKUP(OFFSET($B:$B,,MATCH(N$4,$B$4:$F$4,0)-1),OFFSET('C. PoC Adj Factor Scoring'!$E$5:$J$282,,MATCH(N$4,'C. PoC Adj Factor Scoring'!$E$3:$AH$3,0)-1),MATCH(N$2&\" Score\",'C. PoC Adj Factor Scoring'!$E$4:$J$4,0),TRUE)","v":1},{"$f":"VLOOKUP(OFFSET($B:$B,,MATCH(O$4,$B$4:$F$4,0)-1),OFFSET('C. PoC Adj Factor Scoring'!$E$5:$J$282,,MATCH(O$4,'C. PoC Adj Factor Scoring'!$E$3:$AH$3,0)-1),MATCH(O$2&\" Score\",'C. PoC Adj Factor Scoring'!$E$4:$J$4,0),TRUE)","v":1},{"$f":"VLOOKUP(OFFSET($B:$B,,MATCH(P$4,$B$4:$F$4,0)-1),OFFSET('C. PoC Adj Factor Scoring'!$E$5:$J$282,,MATCH(P$4,'C. PoC Adj Factor Scoring'!$E$3:$AH$3,0)-1),MATCH(P$2&\" Score\",'C. PoC Adj Factor Scoring'!$E$4:$J$4,0),TRUE)","v":1},{"$f":"VLOOKUP(OFFSET($B:$B,,MATCH(Q$4,$B$4:$F$4,0)-1),OFFSET('C. PoC Adj Factor Scoring'!$E$5:$J$282,,MATCH(Q$4,'C. PoC Adj Factor Scoring'!$E$3:$AH$3,0)-1),MATCH(Q$2&\" Score\",'C. PoC Adj Factor Scoring'!$E$4:$J$4,0),TRUE)","v":1},{"$f":"VLOOKUP(OFFSET($B:$B,,MATCH(R$4,$B$4:$F$4,0)-1),OFFSET('C. PoC Adj Factor Scoring'!$E$5:$J$282,,MATCH(R$4,'C. PoC Adj Factor Scoring'!$E$3:$AH$3,0)-1),MATCH(R$2&\" Score\",'C. PoC Adj Factor Scoring'!$E$4:$J$4,0),TRUE)","v":1},{"$f":"VLOOKUP(OFFSET($B:$B,,MATCH(S$4,$B$4:$F$4,0)-1),OFFSET('C. PoC Adj Factor Scoring'!$E$5:$J$282,,MATCH(S$4,'C. PoC Adj Factor Scoring'!$E$3:$AH$3,0)-1),MATCH(S$2&\" Score\",'C. PoC Adj Factor Scoring'!$E$4:$J$4,0),TRUE)","v":1},{"$f":"VLOOKUP(OFFSET($B:$B,,MATCH(T$4,$B$4:$F$4,0)-1),OFFSET('C. PoC Adj Factor Scoring'!$E$5:$J$282,,MATCH(T$4,'C. PoC Adj Factor Scoring'!$E$3:$AH$3,0)-1),MATCH(T$2&\" Score\",'C. PoC Adj Factor Scoring'!$E$4:$J$4,0),TRUE)","v":1},{"$f":"VLOOKUP(OFFSET($B:$B,,MATCH(U$4,$B$4:$F$4,0)-1),OFFSET('C. PoC Adj Factor Scoring'!$E$5:$J$282,,MATCH(U$4,'C. PoC Adj Factor Scoring'!$E$3:$AH$3,0)-1),MATCH(U$2&\" Score\",'C. PoC Adj Factor Scoring'!$E$4:$J$4,0),TRUE)","v":1},{"$f":"VLOOKUP(OFFSET($B:$B,,MATCH(V$4,$B$4:$F$4,0)-1),OFFSET('C. PoC Adj Factor Scoring'!$E$5:$J$282,,MATCH(V$4,'C. PoC Adj Factor Scoring'!$E$3:$AH$3,0)-1),MATCH(V$2&\" Score\",'C. PoC Adj Factor Scoring'!$E$4:$J$4,0),TRUE)","v":1},{"$f":"VLOOKUP(OFFSET($B:$B,,MATCH(W$4,$B$4:$F$4,0)-1),OFFSET('C. PoC Adj Factor Scoring'!$E$5:$J$282,,MATCH(W$4,'C. PoC Adj Factor Scoring'!$E$3:$AH$3,0)-1),MATCH(W$2&\" Score\",'C. PoC Adj Factor Scoring'!$E$4:$J$4,0),TRUE)","v":1},{"$f":"VLOOKUP(OFFSET($B:$B,,MATCH(X$4,$B$4:$F$4,0)-1),OFFSET('C. PoC Adj Factor Scoring'!$E$5:$J$282,,MATCH(X$4,'C. PoC Adj Factor Scoring'!$E$3:$AH$3,0)-1),MATCH(X$2&\" Score\",'C. PoC Adj Factor Scoring'!$E$4:$J$4,0),TRUE)","v":1},{"$f":"VLOOKUP(OFFSET($B:$B,,MATCH(Y$4,$B$4:$F$4,0)-1),OFFSET('C. PoC Adj Factor Scoring'!$E$5:$J$282,,MATCH(Y$4,'C. PoC Adj Factor Scoring'!$E$3:$AH$3,0)-1),MATCH(Y$2&\" Score\",'C. PoC Adj Factor Scoring'!$E$4:$J$4,0),TRUE)","v":1},{"$f":"VLOOKUP(OFFSET($B:$B,,MATCH(Z$4,$B$4:$F$4,0)-1),OFFSET('C. PoC Adj Factor Scoring'!$E$5:$J$282,,MATCH(Z$4,'C. PoC Adj Factor Scoring'!$E$3:$AH$3,0)-1),MATCH(Z$2&\" Score\",'C. PoC Adj Factor Scoring'!$E$4:$J$4,0),TRUE)","v":1},{"$f":"VLOOKUP(OFFSET($B:$B,,MATCH(AA$4,$B$4:$F$4,0)-1),OFFSET('C. PoC Adj Factor Scoring'!$E$5:$J$282,,MATCH(AA$4,'C. PoC Adj Factor Scoring'!$E$3:$AH$3,0)-1),MATCH(AA$2&\" Score\",'C. PoC Adj Factor Scoring'!$E$4:$J$4,0),TRUE)","v":3},{"$f":"VLOOKUP(OFFSET($B:$B,,MATCH(AB$4,$B$4:$F$4,0)-1),OFFSET('C. PoC Adj Factor Scoring'!$E$5:$J$282,,MATCH(AB$4,'C. PoC Adj Factor Scoring'!$E$3:$AH$3,0)-1),MATCH(AB$2&\" Score\",'C. PoC Adj Factor Scoring'!$E$4:$J$4,0),TRUE)","v":1},{"$f":"VLOOKUP(OFFSET($B:$B,,MATCH(AC$4,$B$4:$F$4,0)-1),OFFSET('C. PoC Adj Factor Scoring'!$E$5:$J$282,,MATCH(AC$4,'C. PoC Adj Factor Scoring'!$E$3:$AH$3,0)-1),MATCH(AC$2&\" Score\",'C. PoC Adj Factor Scoring'!$E$4:$J$4,0),TRUE)","v":1},{"$f":"VLOOKUP(OFFSET($B:$B,,MATCH(AD$4,$B$4:$F$4,0)-1),OFFSET('C. PoC Adj Factor Scoring'!$E$5:$J$282,,MATCH(AD$4,'C. PoC Adj Factor Scoring'!$E$3:$AH$3,0)-1),MATCH(AD$2&\" Score\",'C. PoC Adj Factor Scoring'!$E$4:$J$4,0),TRUE)","v":1},{"$f":"VLOOKUP(OFFSET($B:$B,,MATCH(AE$4,$B$4:$F$4,0)-1),OFFSET('C. PoC Adj Factor Scoring'!$E$5:$J$282,,MATCH(AE$4,'C. PoC Adj Factor Scoring'!$E$3:$AH$3,0)-1),MATCH(AE$2&\" Score\",'C. PoC Adj Factor Scoring'!$E$4:$J$4,0),TRUE)","v":1}]
[{"$f":"'A. Population Info'!A529","v":1001542444},{"$f":"'A. Population Info'!L529","v":"OIL"},{"$f":"'A. Population Info'!M529","v":0},{"$f":"'A. Population Info'!N529","v":0},{"$f":"'A. Population Info'!O529","v":0},{"$f":"'A. Population Info'!P529","v":0},{"$f":"VLOOKUP(OFFSET($B:$B,,MATCH(G$4,$B$4:$F$4,0)-1),OFFSET('C. PoC Adj Factor Scoring'!$E$5:$J$282,,MATCH(G$4,'C. PoC Adj Factor Scoring'!$E$3:$AH$3,0)-1),MATCH(G$2&\" Score\",'C. PoC Adj Factor Scoring'!$E$4:$J$4,0),TRUE)","v":4},{"$f":"VLOOKUP(OFFSET($B:$B,,MATCH(H$4,$B$4:$F$4,0)-1),OFFSET('C. PoC Adj Factor Scoring'!$E$5:$J$282,,MATCH(H$4,'C. PoC Adj Factor Scoring'!$E$3:$AH$3,0)-1),MATCH(H$2&\" Score\",'C. PoC Adj Factor Scoring'!$E$4:$J$4,0),TRUE)","v":1},{"$f":"VLOOKUP(OFFSET($B:$B,,MATCH(I$4,$B$4:$F$4,0)-1),OFFSET('C. PoC Adj Factor Scoring'!$E$5:$J$282,,MATCH(I$4,'C. PoC Adj Factor Scoring'!$E$3:$AH$3,0)-1),MATCH(I$2&\" Score\",'C. PoC Adj Factor Scoring'!$E$4:$J$4,0),TRUE)","v":1},{"$f":"VLOOKUP(OFFSET($B:$B,,MATCH(J$4,$B$4:$F$4,0)-1),OFFSET('C. PoC Adj Factor Scoring'!$E$5:$J$282,,MATCH(J$4,'C. PoC Adj Factor Scoring'!$E$3:$AH$3,0)-1),MATCH(J$2&\" Score\",'C. PoC Adj Factor Scoring'!$E$4:$J$4,0),TRUE)","v":1},{"$f":"VLOOKUP(OFFSET($B:$B,,MATCH(K$4,$B$4:$F$4,0)-1),OFFSET('C. PoC Adj Factor Scoring'!$E$5:$J$282,,MATCH(K$4,'C. PoC Adj Factor Scoring'!$E$3:$AH$3,0)-1),MATCH(K$2&\" Score\",'C. PoC Adj Factor Scoring'!$E$4:$J$4,0),TRUE)","v":1},{"$f":"VLOOKUP(OFFSET($B:$B,,MATCH(L$4,$B$4:$F$4,0)-1),OFFSET('C. PoC Adj Factor Scoring'!$E$5:$J$282,,MATCH(L$4,'C. PoC Adj Factor Scoring'!$E$3:$AH$3,0)-1),MATCH(L$2&\" Score\",'C. PoC Adj Factor Scoring'!$E$4:$J$4,0),TRUE)","v":1},{"$f":"VLOOKUP(OFFSET($B:$B,,MATCH(M$4,$B$4:$F$4,0)-1),OFFSET('C. PoC Adj Factor Scoring'!$E$5:$J$282,,MATCH(M$4,'C. PoC Adj Factor Scoring'!$E$3:$AH$3,0)-1),MATCH(M$2&\" Score\",'C. PoC Adj Factor Scoring'!$E$4:$J$4,0),TRUE)","v":1},{"$f":"VLOOKUP(OFFSET($B:$B,,MATCH(N$4,$B$4:$F$4,0)-1),OFFSET('C. PoC Adj Factor Scoring'!$E$5:$J$282,,MATCH(N$4,'C. PoC Adj Factor Scoring'!$E$3:$AH$3,0)-1),MATCH(N$2&\" Score\",'C. PoC Adj Factor Scoring'!$E$4:$J$4,0),TRUE)","v":1},{"$f":"VLOOKUP(OFFSET($B:$B,,MATCH(O$4,$B$4:$F$4,0)-1),OFFSET('C. PoC Adj Factor Scoring'!$E$5:$J$282,,MATCH(O$4,'C. PoC Adj Factor Scoring'!$E$3:$AH$3,0)-1),MATCH(O$2&\" Score\",'C. PoC Adj Factor Scoring'!$E$4:$J$4,0),TRUE)","v":1},{"$f":"VLOOKUP(OFFSET($B:$B,,MATCH(P$4,$B$4:$F$4,0)-1),OFFSET('C. PoC Adj Factor Scoring'!$E$5:$J$282,,MATCH(P$4,'C. PoC Adj Factor Scoring'!$E$3:$AH$3,0)-1),MATCH(P$2&\" Score\",'C. PoC Adj Factor Scoring'!$E$4:$J$4,0),TRUE)","v":1},{"$f":"VLOOKUP(OFFSET($B:$B,,MATCH(Q$4,$B$4:$F$4,0)-1),OFFSET('C. PoC Adj Factor Scoring'!$E$5:$J$282,,MATCH(Q$4,'C. PoC Adj Factor Scoring'!$E$3:$AH$3,0)-1),MATCH(Q$2&\" Score\",'C. PoC Adj Factor Scoring'!$E$4:$J$4,0),TRUE)","v":1},{"$f":"VLOOKUP(OFFSET($B:$B,,MATCH(R$4,$B$4:$F$4,0)-1),OFFSET('C. PoC Adj Factor Scoring'!$E$5:$J$282,,MATCH(R$4,'C. PoC Adj Factor Scoring'!$E$3:$AH$3,0)-1),MATCH(R$2&\" Score\",'C. PoC Adj Factor Scoring'!$E$4:$J$4,0),TRUE)","v":1},{"$f":"VLOOKUP(OFFSET($B:$B,,MATCH(S$4,$B$4:$F$4,0)-1),OFFSET('C. PoC Adj Factor Scoring'!$E$5:$J$282,,MATCH(S$4,'C. PoC Adj Factor Scoring'!$E$3:$AH$3,0)-1),MATCH(S$2&\" Score\",'C. PoC Adj Factor Scoring'!$E$4:$J$4,0),TRUE)","v":1},{"$f":"VLOOKUP(OFFSET($B:$B,,MATCH(T$4,$B$4:$F$4,0)-1),OFFSET('C. PoC Adj Factor Scoring'!$E$5:$J$282,,MATCH(T$4,'C. PoC Adj Factor Scoring'!$E$3:$AH$3,0)-1),MATCH(T$2&\" Score\",'C. PoC Adj Factor Scoring'!$E$4:$J$4,0),TRUE)","v":1},{"$f":"VLOOKUP(OFFSET($B:$B,,MATCH(U$4,$B$4:$F$4,0)-1),OFFSET('C. PoC Adj Factor Scoring'!$E$5:$J$282,,MATCH(U$4,'C. PoC Adj Factor Scoring'!$E$3:$AH$3,0)-1),MATCH(U$2&\" Score\",'C. PoC Adj Factor Scoring'!$E$4:$J$4,0),TRUE)","v":1},{"$f":"VLOOKUP(OFFSET($B:$B,,MATCH(V$4,$B$4:$F$4,0)-1),OFFSET('C. PoC Adj Factor Scoring'!$E$5:$J$282,,MATCH(V$4,'C. PoC Adj Factor Scoring'!$E$3:$AH$3,0)-1),MATCH(V$2&\" Score\",'C. PoC Adj Factor Scoring'!$E$4:$J$4,0),TRUE)","v":1},{"$f":"VLOOKUP(OFFSET($B:$B,,MATCH(W$4,$B$4:$F$4,0)-1),OFFSET('C. PoC Adj Factor Scoring'!$E$5:$J$282,,MATCH(W$4,'C. PoC Adj Factor Scoring'!$E$3:$AH$3,0)-1),MATCH(W$2&\" Score\",'C. PoC Adj Factor Scoring'!$E$4:$J$4,0),TRUE)","v":1},{"$f":"VLOOKUP(OFFSET($B:$B,,MATCH(X$4,$B$4:$F$4,0)-1),OFFSET('C. PoC Adj Factor Scoring'!$E$5:$J$282,,MATCH(X$4,'C. PoC Adj Factor Scoring'!$E$3:$AH$3,0)-1),MATCH(X$2&\" Score\",'C. PoC Adj Factor Scoring'!$E$4:$J$4,0),TRUE)","v":1},{"$f":"VLOOKUP(OFFSET($B:$B,,MATCH(Y$4,$B$4:$F$4,0)-1),OFFSET('C. PoC Adj Factor Scoring'!$E$5:$J$282,,MATCH(Y$4,'C. PoC Adj Factor Scoring'!$E$3:$AH$3,0)-1),MATCH(Y$2&\" Score\",'C. PoC Adj Factor Scoring'!$E$4:$J$4,0),TRUE)","v":1},{"$f":"VLOOKUP(OFFSET($B:$B,,MATCH(Z$4,$B$4:$F$4,0)-1),OFFSET('C. PoC Adj Factor Scoring'!$E$5:$J$282,,MATCH(Z$4,'C. PoC Adj Factor Scoring'!$E$3:$AH$3,0)-1),MATCH(Z$2&\" Score\",'C. PoC Adj Factor Scoring'!$E$4:$J$4,0),TRUE)","v":1},{"$f":"VLOOKUP(OFFSET($B:$B,,MATCH(AA$4,$B$4:$F$4,0)-1),OFFSET('C. PoC Adj Factor Scoring'!$E$5:$J$282,,MATCH(AA$4,'C. PoC Adj Factor Scoring'!$E$3:$AH$3,0)-1),MATCH(AA$2&\" Score\",'C. PoC Adj Factor Scoring'!$E$4:$J$4,0),TRUE)","v":3},{"$f":"VLOOKUP(OFFSET($B:$B,,MATCH(AB$4,$B$4:$F$4,0)-1),OFFSET('C. PoC Adj Factor Scoring'!$E$5:$J$282,,MATCH(AB$4,'C. PoC Adj Factor Scoring'!$E$3:$AH$3,0)-1),MATCH(AB$2&\" Score\",'C. PoC Adj Factor Scoring'!$E$4:$J$4,0),TRUE)","v":1},{"$f":"VLOOKUP(OFFSET($B:$B,,MATCH(AC$4,$B$4:$F$4,0)-1),OFFSET('C. PoC Adj Factor Scoring'!$E$5:$J$282,,MATCH(AC$4,'C. PoC Adj Factor Scoring'!$E$3:$AH$3,0)-1),MATCH(AC$2&\" Score\",'C. PoC Adj Factor Scoring'!$E$4:$J$4,0),TRUE)","v":1},{"$f":"VLOOKUP(OFFSET($B:$B,,MATCH(AD$4,$B$4:$F$4,0)-1),OFFSET('C. PoC Adj Factor Scoring'!$E$5:$J$282,,MATCH(AD$4,'C. PoC Adj Factor Scoring'!$E$3:$AH$3,0)-1),MATCH(AD$2&\" Score\",'C. PoC Adj Factor Scoring'!$E$4:$J$4,0),TRUE)","v":1},{"$f":"VLOOKUP(OFFSET($B:$B,,MATCH(AE$4,$B$4:$F$4,0)-1),OFFSET('C. PoC Adj Factor Scoring'!$E$5:$J$282,,MATCH(AE$4,'C. PoC Adj Factor Scoring'!$E$3:$AH$3,0)-1),MATCH(AE$2&\" Score\",'C. PoC Adj Factor Scoring'!$E$4:$J$4,0),TRUE)","v":1}]
[{"$f":"'A. Population Info'!A530","v":1001542445},{"$f":"'A. Population Info'!L530","v":"OIL"},{"$f":"'A. Population Info'!M530","v":0},{"$f":"'A. Population Info'!N530","v":0},{"$f":"'A. Population Info'!O530","v":0},{"$f":"'A. Population Info'!P530","v":0},{"$f":"VLOOKUP(OFFSET($B:$B,,MATCH(G$4,$B$4:$F$4,0)-1),OFFSET('C. PoC Adj Factor Scoring'!$E$5:$J$282,,MATCH(G$4,'C. PoC Adj Factor Scoring'!$E$3:$AH$3,0)-1),MATCH(G$2&\" Score\",'C. PoC Adj Factor Scoring'!$E$4:$J$4,0),TRUE)","v":4},{"$f":"VLOOKUP(OFFSET($B:$B,,MATCH(H$4,$B$4:$F$4,0)-1),OFFSET('C. PoC Adj Factor Scoring'!$E$5:$J$282,,MATCH(H$4,'C. PoC Adj Factor Scoring'!$E$3:$AH$3,0)-1),MATCH(H$2&\" Score\",'C. PoC Adj Factor Scoring'!$E$4:$J$4,0),TRUE)","v":1},{"$f":"VLOOKUP(OFFSET($B:$B,,MATCH(I$4,$B$4:$F$4,0)-1),OFFSET('C. PoC Adj Factor Scoring'!$E$5:$J$282,,MATCH(I$4,'C. PoC Adj Factor Scoring'!$E$3:$AH$3,0)-1),MATCH(I$2&\" Score\",'C. PoC Adj Factor Scoring'!$E$4:$J$4,0),TRUE)","v":1},{"$f":"VLOOKUP(OFFSET($B:$B,,MATCH(J$4,$B$4:$F$4,0)-1),OFFSET('C. PoC Adj Factor Scoring'!$E$5:$J$282,,MATCH(J$4,'C. PoC Adj Factor Scoring'!$E$3:$AH$3,0)-1),MATCH(J$2&\" Score\",'C. PoC Adj Factor Scoring'!$E$4:$J$4,0),TRUE)","v":1},{"$f":"VLOOKUP(OFFSET($B:$B,,MATCH(K$4,$B$4:$F$4,0)-1),OFFSET('C. PoC Adj Factor Scoring'!$E$5:$J$282,,MATCH(K$4,'C. PoC Adj Factor Scoring'!$E$3:$AH$3,0)-1),MATCH(K$2&\" Score\",'C. PoC Adj Factor Scoring'!$E$4:$J$4,0),TRUE)","v":1},{"$f":"VLOOKUP(OFFSET($B:$B,,MATCH(L$4,$B$4:$F$4,0)-1),OFFSET('C. PoC Adj Factor Scoring'!$E$5:$J$282,,MATCH(L$4,'C. PoC Adj Factor Scoring'!$E$3:$AH$3,0)-1),MATCH(L$2&\" Score\",'C. PoC Adj Factor Scoring'!$E$4:$J$4,0),TRUE)","v":1},{"$f":"VLOOKUP(OFFSET($B:$B,,MATCH(M$4,$B$4:$F$4,0)-1),OFFSET('C. PoC Adj Factor Scoring'!$E$5:$J$282,,MATCH(M$4,'C. PoC Adj Factor Scoring'!$E$3:$AH$3,0)-1),MATCH(M$2&\" Score\",'C. PoC Adj Factor Scoring'!$E$4:$J$4,0),TRUE)","v":1},{"$f":"VLOOKUP(OFFSET($B:$B,,MATCH(N$4,$B$4:$F$4,0)-1),OFFSET('C. PoC Adj Factor Scoring'!$E$5:$J$282,,MATCH(N$4,'C. PoC Adj Factor Scoring'!$E$3:$AH$3,0)-1),MATCH(N$2&\" Score\",'C. PoC Adj Factor Scoring'!$E$4:$J$4,0),TRUE)","v":1},{"$f":"VLOOKUP(OFFSET($B:$B,,MATCH(O$4,$B$4:$F$4,0)-1),OFFSET('C. PoC Adj Factor Scoring'!$E$5:$J$282,,MATCH(O$4,'C. PoC Adj Factor Scoring'!$E$3:$AH$3,0)-1),MATCH(O$2&\" Score\",'C. PoC Adj Factor Scoring'!$E$4:$J$4,0),TRUE)","v":1},{"$f":"VLOOKUP(OFFSET($B:$B,,MATCH(P$4,$B$4:$F$4,0)-1),OFFSET('C. PoC Adj Factor Scoring'!$E$5:$J$282,,MATCH(P$4,'C. PoC Adj Factor Scoring'!$E$3:$AH$3,0)-1),MATCH(P$2&\" Score\",'C. PoC Adj Factor Scoring'!$E$4:$J$4,0),TRUE)","v":1},{"$f":"VLOOKUP(OFFSET($B:$B,,MATCH(Q$4,$B$4:$F$4,0)-1),OFFSET('C. PoC Adj Factor Scoring'!$E$5:$J$282,,MATCH(Q$4,'C. PoC Adj Factor Scoring'!$E$3:$AH$3,0)-1),MATCH(Q$2&\" Score\",'C. PoC Adj Factor Scoring'!$E$4:$J$4,0),TRUE)","v":1},{"$f":"VLOOKUP(OFFSET($B:$B,,MATCH(R$4,$B$4:$F$4,0)-1),OFFSET('C. PoC Adj Factor Scoring'!$E$5:$J$282,,MATCH(R$4,'C. PoC Adj Factor Scoring'!$E$3:$AH$3,0)-1),MATCH(R$2&\" Score\",'C. PoC Adj Factor Scoring'!$E$4:$J$4,0),TRUE)","v":1},{"$f":"VLOOKUP(OFFSET($B:$B,,MATCH(S$4,$B$4:$F$4,0)-1),OFFSET('C. PoC Adj Factor Scoring'!$E$5:$J$282,,MATCH(S$4,'C. PoC Adj Factor Scoring'!$E$3:$AH$3,0)-1),MATCH(S$2&\" Score\",'C. PoC Adj Factor Scoring'!$E$4:$J$4,0),TRUE)","v":1},{"$f":"VLOOKUP(OFFSET($B:$B,,MATCH(T$4,$B$4:$F$4,0)-1),OFFSET('C. PoC Adj Factor Scoring'!$E$5:$J$282,,MATCH(T$4,'C. PoC Adj Factor Scoring'!$E$3:$AH$3,0)-1),MATCH(T$2&\" Score\",'C. PoC Adj Factor Scoring'!$E$4:$J$4,0),TRUE)","v":1},{"$f":"VLOOKUP(OFFSET($B:$B,,MATCH(U$4,$B$4:$F$4,0)-1),OFFSET('C. PoC Adj Factor Scoring'!$E$5:$J$282,,MATCH(U$4,'C. PoC Adj Factor Scoring'!$E$3:$AH$3,0)-1),MATCH(U$2&\" Score\",'C. PoC Adj Factor Scoring'!$E$4:$J$4,0),TRUE)","v":1},{"$f":"VLOOKUP(OFFSET($B:$B,,MATCH(V$4,$B$4:$F$4,0)-1),OFFSET('C. PoC Adj Factor Scoring'!$E$5:$J$282,,MATCH(V$4,'C. PoC Adj Factor Scoring'!$E$3:$AH$3,0)-1),MATCH(V$2&\" Score\",'C. PoC Adj Factor Scoring'!$E$4:$J$4,0),TRUE)","v":1},{"$f":"VLOOKUP(OFFSET($B:$B,,MATCH(W$4,$B$4:$F$4,0)-1),OFFSET('C. PoC Adj Factor Scoring'!$E$5:$J$282,,MATCH(W$4,'C. PoC Adj Factor Scoring'!$E$3:$AH$3,0)-1),MATCH(W$2&\" Score\",'C. PoC Adj Factor Scoring'!$E$4:$J$4,0),TRUE)","v":1},{"$f":"VLOOKUP(OFFSET($B:$B,,MATCH(X$4,$B$4:$F$4,0)-1),OFFSET('C. PoC Adj Factor Scoring'!$E$5:$J$282,,MATCH(X$4,'C. PoC Adj Factor Scoring'!$E$3:$AH$3,0)-1),MATCH(X$2&\" Score\",'C. PoC Adj Factor Scoring'!$E$4:$J$4,0),TRUE)","v":1},{"$f":"VLOOKUP(OFFSET($B:$B,,MATCH(Y$4,$B$4:$F$4,0)-1),OFFSET('C. PoC Adj Factor Scoring'!$E$5:$J$282,,MATCH(Y$4,'C. PoC Adj Factor Scoring'!$E$3:$AH$3,0)-1),MATCH(Y$2&\" Score\",'C. PoC Adj Factor Scoring'!$E$4:$J$4,0),TRUE)","v":1},{"$f":"VLOOKUP(OFFSET($B:$B,,MATCH(Z$4,$B$4:$F$4,0)-1),OFFSET('C. PoC Adj Factor Scoring'!$E$5:$J$282,,MATCH(Z$4,'C. PoC Adj Factor Scoring'!$E$3:$AH$3,0)-1),MATCH(Z$2&\" Score\",'C. PoC Adj Factor Scoring'!$E$4:$J$4,0),TRUE)","v":1},{"$f":"VLOOKUP(OFFSET($B:$B,,MATCH(AA$4,$B$4:$F$4,0)-1),OFFSET('C. PoC Adj Factor Scoring'!$E$5:$J$282,,MATCH(AA$4,'C. PoC Adj Factor Scoring'!$E$3:$AH$3,0)-1),MATCH(AA$2&\" Score\",'C. PoC Adj Factor Scoring'!$E$4:$J$4,0),TRUE)","v":3},{"$f":"VLOOKUP(OFFSET($B:$B,,MATCH(AB$4,$B$4:$F$4,0)-1),OFFSET('C. PoC Adj Factor Scoring'!$E$5:$J$282,,MATCH(AB$4,'C. PoC Adj Factor Scoring'!$E$3:$AH$3,0)-1),MATCH(AB$2&\" Score\",'C. PoC Adj Factor Scoring'!$E$4:$J$4,0),TRUE)","v":1},{"$f":"VLOOKUP(OFFSET($B:$B,,MATCH(AC$4,$B$4:$F$4,0)-1),OFFSET('C. PoC Adj Factor Scoring'!$E$5:$J$282,,MATCH(AC$4,'C. PoC Adj Factor Scoring'!$E$3:$AH$3,0)-1),MATCH(AC$2&\" Score\",'C. PoC Adj Factor Scoring'!$E$4:$J$4,0),TRUE)","v":1},{"$f":"VLOOKUP(OFFSET($B:$B,,MATCH(AD$4,$B$4:$F$4,0)-1),OFFSET('C. PoC Adj Factor Scoring'!$E$5:$J$282,,MATCH(AD$4,'C. PoC Adj Factor Scoring'!$E$3:$AH$3,0)-1),MATCH(AD$2&\" Score\",'C. PoC Adj Factor Scoring'!$E$4:$J$4,0),TRUE)","v":1},{"$f":"VLOOKUP(OFFSET($B:$B,,MATCH(AE$4,$B$4:$F$4,0)-1),OFFSET('C. PoC Adj Factor Scoring'!$E$5:$J$282,,MATCH(AE$4,'C. PoC Adj Factor Scoring'!$E$3:$AH$3,0)-1),MATCH(AE$2&\" Score\",'C. PoC Adj Factor Scoring'!$E$4:$J$4,0),TRUE)","v":1}]
[{"$f":"'A. Population Info'!A531","v":1001551112},{"$f":"'A. Population Info'!L531","v":"OIL"},{"$f":"'A. Population Info'!M531","v":0},{"$f":"'A. Population Info'!N531","v":0},{"$f":"'A. Population Info'!O531","v":0},{"$f":"'A. Population Info'!P531","v":0},{"$f":"VLOOKUP(OFFSET($B:$B,,MATCH(G$4,$B$4:$F$4,0)-1),OFFSET('C. PoC Adj Factor Scoring'!$E$5:$J$282,,MATCH(G$4,'C. PoC Adj Factor Scoring'!$E$3:$AH$3,0)-1),MATCH(G$2&\" Score\",'C. PoC Adj Factor Scoring'!$E$4:$J$4,0),TRUE)","v":4},{"$f":"VLOOKUP(OFFSET($B:$B,,MATCH(H$4,$B$4:$F$4,0)-1),OFFSET('C. PoC Adj Factor Scoring'!$E$5:$J$282,,MATCH(H$4,'C. PoC Adj Factor Scoring'!$E$3:$AH$3,0)-1),MATCH(H$2&\" Score\",'C. PoC Adj Factor Scoring'!$E$4:$J$4,0),TRUE)","v":1},{"$f":"VLOOKUP(OFFSET($B:$B,,MATCH(I$4,$B$4:$F$4,0)-1),OFFSET('C. PoC Adj Factor Scoring'!$E$5:$J$282,,MATCH(I$4,'C. PoC Adj Factor Scoring'!$E$3:$AH$3,0)-1),MATCH(I$2&\" Score\",'C. PoC Adj Factor Scoring'!$E$4:$J$4,0),TRUE)","v":1},{"$f":"VLOOKUP(OFFSET($B:$B,,MATCH(J$4,$B$4:$F$4,0)-1),OFFSET('C. PoC Adj Factor Scoring'!$E$5:$J$282,,MATCH(J$4,'C. PoC Adj Factor Scoring'!$E$3:$AH$3,0)-1),MATCH(J$2&\" Score\",'C. PoC Adj Factor Scoring'!$E$4:$J$4,0),TRUE)","v":1},{"$f":"VLOOKUP(OFFSET($B:$B,,MATCH(K$4,$B$4:$F$4,0)-1),OFFSET('C. PoC Adj Factor Scoring'!$E$5:$J$282,,MATCH(K$4,'C. PoC Adj Factor Scoring'!$E$3:$AH$3,0)-1),MATCH(K$2&\" Score\",'C. PoC Adj Factor Scoring'!$E$4:$J$4,0),TRUE)","v":1},{"$f":"VLOOKUP(OFFSET($B:$B,,MATCH(L$4,$B$4:$F$4,0)-1),OFFSET('C. PoC Adj Factor Scoring'!$E$5:$J$282,,MATCH(L$4,'C. PoC Adj Factor Scoring'!$E$3:$AH$3,0)-1),MATCH(L$2&\" Score\",'C. PoC Adj Factor Scoring'!$E$4:$J$4,0),TRUE)","v":1},{"$f":"VLOOKUP(OFFSET($B:$B,,MATCH(M$4,$B$4:$F$4,0)-1),OFFSET('C. PoC Adj Factor Scoring'!$E$5:$J$282,,MATCH(M$4,'C. PoC Adj Factor Scoring'!$E$3:$AH$3,0)-1),MATCH(M$2&\" Score\",'C. PoC Adj Factor Scoring'!$E$4:$J$4,0),TRUE)","v":1},{"$f":"VLOOKUP(OFFSET($B:$B,,MATCH(N$4,$B$4:$F$4,0)-1),OFFSET('C. PoC Adj Factor Scoring'!$E$5:$J$282,,MATCH(N$4,'C. PoC Adj Factor Scoring'!$E$3:$AH$3,0)-1),MATCH(N$2&\" Score\",'C. PoC Adj Factor Scoring'!$E$4:$J$4,0),TRUE)","v":1},{"$f":"VLOOKUP(OFFSET($B:$B,,MATCH(O$4,$B$4:$F$4,0)-1),OFFSET('C. PoC Adj Factor Scoring'!$E$5:$J$282,,MATCH(O$4,'C. PoC Adj Factor Scoring'!$E$3:$AH$3,0)-1),MATCH(O$2&\" Score\",'C. PoC Adj Factor Scoring'!$E$4:$J$4,0),TRUE)","v":1},{"$f":"VLOOKUP(OFFSET($B:$B,,MATCH(P$4,$B$4:$F$4,0)-1),OFFSET('C. PoC Adj Factor Scoring'!$E$5:$J$282,,MATCH(P$4,'C. PoC Adj Factor Scoring'!$E$3:$AH$3,0)-1),MATCH(P$2&\" Score\",'C. PoC Adj Factor Scoring'!$E$4:$J$4,0),TRUE)","v":1},{"$f":"VLOOKUP(OFFSET($B:$B,,MATCH(Q$4,$B$4:$F$4,0)-1),OFFSET('C. PoC Adj Factor Scoring'!$E$5:$J$282,,MATCH(Q$4,'C. PoC Adj Factor Scoring'!$E$3:$AH$3,0)-1),MATCH(Q$2&\" Score\",'C. PoC Adj Factor Scoring'!$E$4:$J$4,0),TRUE)","v":1},{"$f":"VLOOKUP(OFFSET($B:$B,,MATCH(R$4,$B$4:$F$4,0)-1),OFFSET('C. PoC Adj Factor Scoring'!$E$5:$J$282,,MATCH(R$4,'C. PoC Adj Factor Scoring'!$E$3:$AH$3,0)-1),MATCH(R$2&\" Score\",'C. PoC Adj Factor Scoring'!$E$4:$J$4,0),TRUE)","v":1},{"$f":"VLOOKUP(OFFSET($B:$B,,MATCH(S$4,$B$4:$F$4,0)-1),OFFSET('C. PoC Adj Factor Scoring'!$E$5:$J$282,,MATCH(S$4,'C. PoC Adj Factor Scoring'!$E$3:$AH$3,0)-1),MATCH(S$2&\" Score\",'C. PoC Adj Factor Scoring'!$E$4:$J$4,0),TRUE)","v":1},{"$f":"VLOOKUP(OFFSET($B:$B,,MATCH(T$4,$B$4:$F$4,0)-1),OFFSET('C. PoC Adj Factor Scoring'!$E$5:$J$282,,MATCH(T$4,'C. PoC Adj Factor Scoring'!$E$3:$AH$3,0)-1),MATCH(T$2&\" Score\",'C. PoC Adj Factor Scoring'!$E$4:$J$4,0),TRUE)","v":1},{"$f":"VLOOKUP(OFFSET($B:$B,,MATCH(U$4,$B$4:$F$4,0)-1),OFFSET('C. PoC Adj Factor Scoring'!$E$5:$J$282,,MATCH(U$4,'C. PoC Adj Factor Scoring'!$E$3:$AH$3,0)-1),MATCH(U$2&\" Score\",'C. PoC Adj Factor Scoring'!$E$4:$J$4,0),TRUE)","v":1},{"$f":"VLOOKUP(OFFSET($B:$B,,MATCH(V$4,$B$4:$F$4,0)-1),OFFSET('C. PoC Adj Factor Scoring'!$E$5:$J$282,,MATCH(V$4,'C. PoC Adj Factor Scoring'!$E$3:$AH$3,0)-1),MATCH(V$2&\" Score\",'C. PoC Adj Factor Scoring'!$E$4:$J$4,0),TRUE)","v":1},{"$f":"VLOOKUP(OFFSET($B:$B,,MATCH(W$4,$B$4:$F$4,0)-1),OFFSET('C. PoC Adj Factor Scoring'!$E$5:$J$282,,MATCH(W$4,'C. PoC Adj Factor Scoring'!$E$3:$AH$3,0)-1),MATCH(W$2&\" Score\",'C. PoC Adj Factor Scoring'!$E$4:$J$4,0),TRUE)","v":1},{"$f":"VLOOKUP(OFFSET($B:$B,,MATCH(X$4,$B$4:$F$4,0)-1),OFFSET('C. PoC Adj Factor Scoring'!$E$5:$J$282,,MATCH(X$4,'C. PoC Adj Factor Scoring'!$E$3:$AH$3,0)-1),MATCH(X$2&\" Score\",'C. PoC Adj Factor Scoring'!$E$4:$J$4,0),TRUE)","v":1},{"$f":"VLOOKUP(OFFSET($B:$B,,MATCH(Y$4,$B$4:$F$4,0)-1),OFFSET('C. PoC Adj Factor Scoring'!$E$5:$J$282,,MATCH(Y$4,'C. PoC Adj Factor Scoring'!$E$3:$AH$3,0)-1),MATCH(Y$2&\" Score\",'C. PoC Adj Factor Scoring'!$E$4:$J$4,0),TRUE)","v":1},{"$f":"VLOOKUP(OFFSET($B:$B,,MATCH(Z$4,$B$4:$F$4,0)-1),OFFSET('C. PoC Adj Factor Scoring'!$E$5:$J$282,,MATCH(Z$4,'C. PoC Adj Factor Scoring'!$E$3:$AH$3,0)-1),MATCH(Z$2&\" Score\",'C. PoC Adj Factor Scoring'!$E$4:$J$4,0),TRUE)","v":1},{"$f":"VLOOKUP(OFFSET($B:$B,,MATCH(AA$4,$B$4:$F$4,0)-1),OFFSET('C. PoC Adj Factor Scoring'!$E$5:$J$282,,MATCH(AA$4,'C. PoC Adj Factor Scoring'!$E$3:$AH$3,0)-1),MATCH(AA$2&\" Score\",'C. PoC Adj Factor Scoring'!$E$4:$J$4,0),TRUE)","v":3},{"$f":"VLOOKUP(OFFSET($B:$B,,MATCH(AB$4,$B$4:$F$4,0)-1),OFFSET('C. PoC Adj Factor Scoring'!$E$5:$J$282,,MATCH(AB$4,'C. PoC Adj Factor Scoring'!$E$3:$AH$3,0)-1),MATCH(AB$2&\" Score\",'C. PoC Adj Factor Scoring'!$E$4:$J$4,0),TRUE)","v":1},{"$f":"VLOOKUP(OFFSET($B:$B,,MATCH(AC$4,$B$4:$F$4,0)-1),OFFSET('C. PoC Adj Factor Scoring'!$E$5:$J$282,,MATCH(AC$4,'C. PoC Adj Factor Scoring'!$E$3:$AH$3,0)-1),MATCH(AC$2&\" Score\",'C. PoC Adj Factor Scoring'!$E$4:$J$4,0),TRUE)","v":1},{"$f":"VLOOKUP(OFFSET($B:$B,,MATCH(AD$4,$B$4:$F$4,0)-1),OFFSET('C. PoC Adj Factor Scoring'!$E$5:$J$282,,MATCH(AD$4,'C. PoC Adj Factor Scoring'!$E$3:$AH$3,0)-1),MATCH(AD$2&\" Score\",'C. PoC Adj Factor Scoring'!$E$4:$J$4,0),TRUE)","v":1},{"$f":"VLOOKUP(OFFSET($B:$B,,MATCH(AE$4,$B$4:$F$4,0)-1),OFFSET('C. PoC Adj Factor Scoring'!$E$5:$J$282,,MATCH(AE$4,'C. PoC Adj Factor Scoring'!$E$3:$AH$3,0)-1),MATCH(AE$2&\" Score\",'C. PoC Adj Factor Scoring'!$E$4:$J$4,0),TRUE)","v":1}]
[{"$f":"'A. Population Info'!A532","v":1001551113},{"$f":"'A. Population Info'!L532","v":"OIL"},{"$f":"'A. Population Info'!M532","v":0},{"$f":"'A. Population Info'!N532","v":0},{"$f":"'A. Population Info'!O532","v":0},{"$f":"'A. Population Info'!P532","v":0},{"$f":"VLOOKUP(OFFSET($B:$B,,MATCH(G$4,$B$4:$F$4,0)-1),OFFSET('C. PoC Adj Factor Scoring'!$E$5:$J$282,,MATCH(G$4,'C. PoC Adj Factor Scoring'!$E$3:$AH$3,0)-1),MATCH(G$2&\" Score\",'C. PoC Adj Factor Scoring'!$E$4:$J$4,0),TRUE)","v":4},{"$f":"VLOOKUP(OFFSET($B:$B,,MATCH(H$4,$B$4:$F$4,0)-1),OFFSET('C. PoC Adj Factor Scoring'!$E$5:$J$282,,MATCH(H$4,'C. PoC Adj Factor Scoring'!$E$3:$AH$3,0)-1),MATCH(H$2&\" Score\",'C. PoC Adj Factor Scoring'!$E$4:$J$4,0),TRUE)","v":1},{"$f":"VLOOKUP(OFFSET($B:$B,,MATCH(I$4,$B$4:$F$4,0)-1),OFFSET('C. PoC Adj Factor Scoring'!$E$5:$J$282,,MATCH(I$4,'C. PoC Adj Factor Scoring'!$E$3:$AH$3,0)-1),MATCH(I$2&\" Score\",'C. PoC Adj Factor Scoring'!$E$4:$J$4,0),TRUE)","v":1},{"$f":"VLOOKUP(OFFSET($B:$B,,MATCH(J$4,$B$4:$F$4,0)-1),OFFSET('C. PoC Adj Factor Scoring'!$E$5:$J$282,,MATCH(J$4,'C. PoC Adj Factor Scoring'!$E$3:$AH$3,0)-1),MATCH(J$2&\" Score\",'C. PoC Adj Factor Scoring'!$E$4:$J$4,0),TRUE)","v":1},{"$f":"VLOOKUP(OFFSET($B:$B,,MATCH(K$4,$B$4:$F$4,0)-1),OFFSET('C. PoC Adj Factor Scoring'!$E$5:$J$282,,MATCH(K$4,'C. PoC Adj Factor Scoring'!$E$3:$AH$3,0)-1),MATCH(K$2&\" Score\",'C. PoC Adj Factor Scoring'!$E$4:$J$4,0),TRUE)","v":1},{"$f":"VLOOKUP(OFFSET($B:$B,,MATCH(L$4,$B$4:$F$4,0)-1),OFFSET('C. PoC Adj Factor Scoring'!$E$5:$J$282,,MATCH(L$4,'C. PoC Adj Factor Scoring'!$E$3:$AH$3,0)-1),MATCH(L$2&\" Score\",'C. PoC Adj Factor Scoring'!$E$4:$J$4,0),TRUE)","v":1},{"$f":"VLOOKUP(OFFSET($B:$B,,MATCH(M$4,$B$4:$F$4,0)-1),OFFSET('C. PoC Adj Factor Scoring'!$E$5:$J$282,,MATCH(M$4,'C. PoC Adj Factor Scoring'!$E$3:$AH$3,0)-1),MATCH(M$2&\" Score\",'C. PoC Adj Factor Scoring'!$E$4:$J$4,0),TRUE)","v":1},{"$f":"VLOOKUP(OFFSET($B:$B,,MATCH(N$4,$B$4:$F$4,0)-1),OFFSET('C. PoC Adj Factor Scoring'!$E$5:$J$282,,MATCH(N$4,'C. PoC Adj Factor Scoring'!$E$3:$AH$3,0)-1),MATCH(N$2&\" Score\",'C. PoC Adj Factor Scoring'!$E$4:$J$4,0),TRUE)","v":1},{"$f":"VLOOKUP(OFFSET($B:$B,,MATCH(O$4,$B$4:$F$4,0)-1),OFFSET('C. PoC Adj Factor Scoring'!$E$5:$J$282,,MATCH(O$4,'C. PoC Adj Factor Scoring'!$E$3:$AH$3,0)-1),MATCH(O$2&\" Score\",'C. PoC Adj Factor Scoring'!$E$4:$J$4,0),TRUE)","v":1},{"$f":"VLOOKUP(OFFSET($B:$B,,MATCH(P$4,$B$4:$F$4,0)-1),OFFSET('C. PoC Adj Factor Scoring'!$E$5:$J$282,,MATCH(P$4,'C. PoC Adj Factor Scoring'!$E$3:$AH$3,0)-1),MATCH(P$2&\" Score\",'C. PoC Adj Factor Scoring'!$E$4:$J$4,0),TRUE)","v":1},{"$f":"VLOOKUP(OFFSET($B:$B,,MATCH(Q$4,$B$4:$F$4,0)-1),OFFSET('C. PoC Adj Factor Scoring'!$E$5:$J$282,,MATCH(Q$4,'C. PoC Adj Factor Scoring'!$E$3:$AH$3,0)-1),MATCH(Q$2&\" Score\",'C. PoC Adj Factor Scoring'!$E$4:$J$4,0),TRUE)","v":1},{"$f":"VLOOKUP(OFFSET($B:$B,,MATCH(R$4,$B$4:$F$4,0)-1),OFFSET('C. PoC Adj Factor Scoring'!$E$5:$J$282,,MATCH(R$4,'C. PoC Adj Factor Scoring'!$E$3:$AH$3,0)-1),MATCH(R$2&\" Score\",'C. PoC Adj Factor Scoring'!$E$4:$J$4,0),TRUE)","v":1},{"$f":"VLOOKUP(OFFSET($B:$B,,MATCH(S$4,$B$4:$F$4,0)-1),OFFSET('C. PoC Adj Factor Scoring'!$E$5:$J$282,,MATCH(S$4,'C. PoC Adj Factor Scoring'!$E$3:$AH$3,0)-1),MATCH(S$2&\" Score\",'C. PoC Adj Factor Scoring'!$E$4:$J$4,0),TRUE)","v":1},{"$f":"VLOOKUP(OFFSET($B:$B,,MATCH(T$4,$B$4:$F$4,0)-1),OFFSET('C. PoC Adj Factor Scoring'!$E$5:$J$282,,MATCH(T$4,'C. PoC Adj Factor Scoring'!$E$3:$AH$3,0)-1),MATCH(T$2&\" Score\",'C. PoC Adj Factor Scoring'!$E$4:$J$4,0),TRUE)","v":1},{"$f":"VLOOKUP(OFFSET($B:$B,,MATCH(U$4,$B$4:$F$4,0)-1),OFFSET('C. PoC Adj Factor Scoring'!$E$5:$J$282,,MATCH(U$4,'C. PoC Adj Factor Scoring'!$E$3:$AH$3,0)-1),MATCH(U$2&\" Score\",'C. PoC Adj Factor Scoring'!$E$4:$J$4,0),TRUE)","v":1},{"$f":"VLOOKUP(OFFSET($B:$B,,MATCH(V$4,$B$4:$F$4,0)-1),OFFSET('C. PoC Adj Factor Scoring'!$E$5:$J$282,,MATCH(V$4,'C. PoC Adj Factor Scoring'!$E$3:$AH$3,0)-1),MATCH(V$2&\" Score\",'C. PoC Adj Factor Scoring'!$E$4:$J$4,0),TRUE)","v":1},{"$f":"VLOOKUP(OFFSET($B:$B,,MATCH(W$4,$B$4:$F$4,0)-1),OFFSET('C. PoC Adj Factor Scoring'!$E$5:$J$282,,MATCH(W$4,'C. PoC Adj Factor Scoring'!$E$3:$AH$3,0)-1),MATCH(W$2&\" Score\",'C. PoC Adj Factor Scoring'!$E$4:$J$4,0),TRUE)","v":1},{"$f":"VLOOKUP(OFFSET($B:$B,,MATCH(X$4,$B$4:$F$4,0)-1),OFFSET('C. PoC Adj Factor Scoring'!$E$5:$J$282,,MATCH(X$4,'C. PoC Adj Factor Scoring'!$E$3:$AH$3,0)-1),MATCH(X$2&\" Score\",'C. PoC Adj Factor Scoring'!$E$4:$J$4,0),TRUE)","v":1},{"$f":"VLOOKUP(OFFSET($B:$B,,MATCH(Y$4,$B$4:$F$4,0)-1),OFFSET('C. PoC Adj Factor Scoring'!$E$5:$J$282,,MATCH(Y$4,'C. PoC Adj Factor Scoring'!$E$3:$AH$3,0)-1),MATCH(Y$2&\" Score\",'C. PoC Adj Factor Scoring'!$E$4:$J$4,0),TRUE)","v":1},{"$f":"VLOOKUP(OFFSET($B:$B,,MATCH(Z$4,$B$4:$F$4,0)-1),OFFSET('C. PoC Adj Factor Scoring'!$E$5:$J$282,,MATCH(Z$4,'C. PoC Adj Factor Scoring'!$E$3:$AH$3,0)-1),MATCH(Z$2&\" Score\",'C. PoC Adj Factor Scoring'!$E$4:$J$4,0),TRUE)","v":1},{"$f":"VLOOKUP(OFFSET($B:$B,,MATCH(AA$4,$B$4:$F$4,0)-1),OFFSET('C. PoC Adj Factor Scoring'!$E$5:$J$282,,MATCH(AA$4,'C. PoC Adj Factor Scoring'!$E$3:$AH$3,0)-1),MATCH(AA$2&\" Score\",'C. PoC Adj Factor Scoring'!$E$4:$J$4,0),TRUE)","v":3},{"$f":"VLOOKUP(OFFSET($B:$B,,MATCH(AB$4,$B$4:$F$4,0)-1),OFFSET('C. PoC Adj Factor Scoring'!$E$5:$J$282,,MATCH(AB$4,'C. PoC Adj Factor Scoring'!$E$3:$AH$3,0)-1),MATCH(AB$2&\" Score\",'C. PoC Adj Factor Scoring'!$E$4:$J$4,0),TRUE)","v":1},{"$f":"VLOOKUP(OFFSET($B:$B,,MATCH(AC$4,$B$4:$F$4,0)-1),OFFSET('C. PoC Adj Factor Scoring'!$E$5:$J$282,,MATCH(AC$4,'C. PoC Adj Factor Scoring'!$E$3:$AH$3,0)-1),MATCH(AC$2&\" Score\",'C. PoC Adj Factor Scoring'!$E$4:$J$4,0),TRUE)","v":1},{"$f":"VLOOKUP(OFFSET($B:$B,,MATCH(AD$4,$B$4:$F$4,0)-1),OFFSET('C. PoC Adj Factor Scoring'!$E$5:$J$282,,MATCH(AD$4,'C. PoC Adj Factor Scoring'!$E$3:$AH$3,0)-1),MATCH(AD$2&\" Score\",'C. PoC Adj Factor Scoring'!$E$4:$J$4,0),TRUE)","v":1},{"$f":"VLOOKUP(OFFSET($B:$B,,MATCH(AE$4,$B$4:$F$4,0)-1),OFFSET('C. PoC Adj Factor Scoring'!$E$5:$J$282,,MATCH(AE$4,'C. PoC Adj Factor Scoring'!$E$3:$AH$3,0)-1),MATCH(AE$2&\" Score\",'C. PoC Adj Factor Scoring'!$E$4:$J$4,0),TRUE)","v":1}]
[{"$f":"'A. Population Info'!A533","v":1001553102},{"$f":"'A. Population Info'!L533","v":"OIL"},{"$f":"'A. Population Info'!M533","v":0},{"$f":"'A. Population Info'!N533","v":0},{"$f":"'A. Population Info'!O533","v":0},{"$f":"'A. Population Info'!P533","v":0},{"$f":"VLOOKUP(OFFSET($B:$B,,MATCH(G$4,$B$4:$F$4,0)-1),OFFSET('C. PoC Adj Factor Scoring'!$E$5:$J$282,,MATCH(G$4,'C. PoC Adj Factor Scoring'!$E$3:$AH$3,0)-1),MATCH(G$2&\" Score\",'C. PoC Adj Factor Scoring'!$E$4:$J$4,0),TRUE)","v":4},{"$f":"VLOOKUP(OFFSET($B:$B,,MATCH(H$4,$B$4:$F$4,0)-1),OFFSET('C. PoC Adj Factor Scoring'!$E$5:$J$282,,MATCH(H$4,'C. PoC Adj Factor Scoring'!$E$3:$AH$3,0)-1),MATCH(H$2&\" Score\",'C. PoC Adj Factor Scoring'!$E$4:$J$4,0),TRUE)","v":1},{"$f":"VLOOKUP(OFFSET($B:$B,,MATCH(I$4,$B$4:$F$4,0)-1),OFFSET('C. PoC Adj Factor Scoring'!$E$5:$J$282,,MATCH(I$4,'C. PoC Adj Factor Scoring'!$E$3:$AH$3,0)-1),MATCH(I$2&\" Score\",'C. PoC Adj Factor Scoring'!$E$4:$J$4,0),TRUE)","v":1},{"$f":"VLOOKUP(OFFSET($B:$B,,MATCH(J$4,$B$4:$F$4,0)-1),OFFSET('C. PoC Adj Factor Scoring'!$E$5:$J$282,,MATCH(J$4,'C. PoC Adj Factor Scoring'!$E$3:$AH$3,0)-1),MATCH(J$2&\" Score\",'C. PoC Adj Factor Scoring'!$E$4:$J$4,0),TRUE)","v":1},{"$f":"VLOOKUP(OFFSET($B:$B,,MATCH(K$4,$B$4:$F$4,0)-1),OFFSET('C. PoC Adj Factor Scoring'!$E$5:$J$282,,MATCH(K$4,'C. PoC Adj Factor Scoring'!$E$3:$AH$3,0)-1),MATCH(K$2&\" Score\",'C. PoC Adj Factor Scoring'!$E$4:$J$4,0),TRUE)","v":1},{"$f":"VLOOKUP(OFFSET($B:$B,,MATCH(L$4,$B$4:$F$4,0)-1),OFFSET('C. PoC Adj Factor Scoring'!$E$5:$J$282,,MATCH(L$4,'C. PoC Adj Factor Scoring'!$E$3:$AH$3,0)-1),MATCH(L$2&\" Score\",'C. PoC Adj Factor Scoring'!$E$4:$J$4,0),TRUE)","v":1},{"$f":"VLOOKUP(OFFSET($B:$B,,MATCH(M$4,$B$4:$F$4,0)-1),OFFSET('C. PoC Adj Factor Scoring'!$E$5:$J$282,,MATCH(M$4,'C. PoC Adj Factor Scoring'!$E$3:$AH$3,0)-1),MATCH(M$2&\" Score\",'C. PoC Adj Factor Scoring'!$E$4:$J$4,0),TRUE)","v":1},{"$f":"VLOOKUP(OFFSET($B:$B,,MATCH(N$4,$B$4:$F$4,0)-1),OFFSET('C. PoC Adj Factor Scoring'!$E$5:$J$282,,MATCH(N$4,'C. PoC Adj Factor Scoring'!$E$3:$AH$3,0)-1),MATCH(N$2&\" Score\",'C. PoC Adj Factor Scoring'!$E$4:$J$4,0),TRUE)","v":1},{"$f":"VLOOKUP(OFFSET($B:$B,,MATCH(O$4,$B$4:$F$4,0)-1),OFFSET('C. PoC Adj Factor Scoring'!$E$5:$J$282,,MATCH(O$4,'C. PoC Adj Factor Scoring'!$E$3:$AH$3,0)-1),MATCH(O$2&\" Score\",'C. PoC Adj Factor Scoring'!$E$4:$J$4,0),TRUE)","v":1},{"$f":"VLOOKUP(OFFSET($B:$B,,MATCH(P$4,$B$4:$F$4,0)-1),OFFSET('C. PoC Adj Factor Scoring'!$E$5:$J$282,,MATCH(P$4,'C. PoC Adj Factor Scoring'!$E$3:$AH$3,0)-1),MATCH(P$2&\" Score\",'C. PoC Adj Factor Scoring'!$E$4:$J$4,0),TRUE)","v":1},{"$f":"VLOOKUP(OFFSET($B:$B,,MATCH(Q$4,$B$4:$F$4,0)-1),OFFSET('C. PoC Adj Factor Scoring'!$E$5:$J$282,,MATCH(Q$4,'C. PoC Adj Factor Scoring'!$E$3:$AH$3,0)-1),MATCH(Q$2&\" Score\",'C. PoC Adj Factor Scoring'!$E$4:$J$4,0),TRUE)","v":1},{"$f":"VLOOKUP(OFFSET($B:$B,,MATCH(R$4,$B$4:$F$4,0)-1),OFFSET('C. PoC Adj Factor Scoring'!$E$5:$J$282,,MATCH(R$4,'C. PoC Adj Factor Scoring'!$E$3:$AH$3,0)-1),MATCH(R$2&\" Score\",'C. PoC Adj Factor Scoring'!$E$4:$J$4,0),TRUE)","v":1},{"$f":"VLOOKUP(OFFSET($B:$B,,MATCH(S$4,$B$4:$F$4,0)-1),OFFSET('C. PoC Adj Factor Scoring'!$E$5:$J$282,,MATCH(S$4,'C. PoC Adj Factor Scoring'!$E$3:$AH$3,0)-1),MATCH(S$2&\" Score\",'C. PoC Adj Factor Scoring'!$E$4:$J$4,0),TRUE)","v":1},{"$f":"VLOOKUP(OFFSET($B:$B,,MATCH(T$4,$B$4:$F$4,0)-1),OFFSET('C. PoC Adj Factor Scoring'!$E$5:$J$282,,MATCH(T$4,'C. PoC Adj Factor Scoring'!$E$3:$AH$3,0)-1),MATCH(T$2&\" Score\",'C. PoC Adj Factor Scoring'!$E$4:$J$4,0),TRUE)","v":1},{"$f":"VLOOKUP(OFFSET($B:$B,,MATCH(U$4,$B$4:$F$4,0)-1),OFFSET('C. PoC Adj Factor Scoring'!$E$5:$J$282,,MATCH(U$4,'C. PoC Adj Factor Scoring'!$E$3:$AH$3,0)-1),MATCH(U$2&\" Score\",'C. PoC Adj Factor Scoring'!$E$4:$J$4,0),TRUE)","v":1},{"$f":"VLOOKUP(OFFSET($B:$B,,MATCH(V$4,$B$4:$F$4,0)-1),OFFSET('C. PoC Adj Factor Scoring'!$E$5:$J$282,,MATCH(V$4,'C. PoC Adj Factor Scoring'!$E$3:$AH$3,0)-1),MATCH(V$2&\" Score\",'C. PoC Adj Factor Scoring'!$E$4:$J$4,0),TRUE)","v":1},{"$f":"VLOOKUP(OFFSET($B:$B,,MATCH(W$4,$B$4:$F$4,0)-1),OFFSET('C. PoC Adj Factor Scoring'!$E$5:$J$282,,MATCH(W$4,'C. PoC Adj Factor Scoring'!$E$3:$AH$3,0)-1),MATCH(W$2&\" Score\",'C. PoC Adj Factor Scoring'!$E$4:$J$4,0),TRUE)","v":1},{"$f":"VLOOKUP(OFFSET($B:$B,,MATCH(X$4,$B$4:$F$4,0)-1),OFFSET('C. PoC Adj Factor Scoring'!$E$5:$J$282,,MATCH(X$4,'C. PoC Adj Factor Scoring'!$E$3:$AH$3,0)-1),MATCH(X$2&\" Score\",'C. PoC Adj Factor Scoring'!$E$4:$J$4,0),TRUE)","v":1},{"$f":"VLOOKUP(OFFSET($B:$B,,MATCH(Y$4,$B$4:$F$4,0)-1),OFFSET('C. PoC Adj Factor Scoring'!$E$5:$J$282,,MATCH(Y$4,'C. PoC Adj Factor Scoring'!$E$3:$AH$3,0)-1),MATCH(Y$2&\" Score\",'C. PoC Adj Factor Scoring'!$E$4:$J$4,0),TRUE)","v":1},{"$f":"VLOOKUP(OFFSET($B:$B,,MATCH(Z$4,$B$4:$F$4,0)-1),OFFSET('C. PoC Adj Factor Scoring'!$E$5:$J$282,,MATCH(Z$4,'C. PoC Adj Factor Scoring'!$E$3:$AH$3,0)-1),MATCH(Z$2&\" Score\",'C. PoC Adj Factor Scoring'!$E$4:$J$4,0),TRUE)","v":1},{"$f":"VLOOKUP(OFFSET($B:$B,,MATCH(AA$4,$B$4:$F$4,0)-1),OFFSET('C. PoC Adj Factor Scoring'!$E$5:$J$282,,MATCH(AA$4,'C. PoC Adj Factor Scoring'!$E$3:$AH$3,0)-1),MATCH(AA$2&\" Score\",'C. PoC Adj Factor Scoring'!$E$4:$J$4,0),TRUE)","v":3},{"$f":"VLOOKUP(OFFSET($B:$B,,MATCH(AB$4,$B$4:$F$4,0)-1),OFFSET('C. PoC Adj Factor Scoring'!$E$5:$J$282,,MATCH(AB$4,'C. PoC Adj Factor Scoring'!$E$3:$AH$3,0)-1),MATCH(AB$2&\" Score\",'C. PoC Adj Factor Scoring'!$E$4:$J$4,0),TRUE)","v":1},{"$f":"VLOOKUP(OFFSET($B:$B,,MATCH(AC$4,$B$4:$F$4,0)-1),OFFSET('C. PoC Adj Factor Scoring'!$E$5:$J$282,,MATCH(AC$4,'C. PoC Adj Factor Scoring'!$E$3:$AH$3,0)-1),MATCH(AC$2&\" Score\",'C. PoC Adj Factor Scoring'!$E$4:$J$4,0),TRUE)","v":1},{"$f":"VLOOKUP(OFFSET($B:$B,,MATCH(AD$4,$B$4:$F$4,0)-1),OFFSET('C. PoC Adj Factor Scoring'!$E$5:$J$282,,MATCH(AD$4,'C. PoC Adj Factor Scoring'!$E$3:$AH$3,0)-1),MATCH(AD$2&\" Score\",'C. PoC Adj Factor Scoring'!$E$4:$J$4,0),TRUE)","v":1},{"$f":"VLOOKUP(OFFSET($B:$B,,MATCH(AE$4,$B$4:$F$4,0)-1),OFFSET('C. PoC Adj Factor Scoring'!$E$5:$J$282,,MATCH(AE$4,'C. PoC Adj Factor Scoring'!$E$3:$AH$3,0)-1),MATCH(AE$2&\" Score\",'C. PoC Adj Factor Scoring'!$E$4:$J$4,0),TRUE)","v":1}]
[{"$f":"'A. Population Info'!A534","v":1001553103},{"$f":"'A. Population Info'!L534","v":"OIL"},{"$f":"'A. Population Info'!M534","v":0},{"$f":"'A. Population Info'!N534","v":0},{"$f":"'A. Population Info'!O534","v":0},{"$f":"'A. Population Info'!P534","v":0},{"$f":"VLOOKUP(OFFSET($B:$B,,MATCH(G$4,$B$4:$F$4,0)-1),OFFSET('C. PoC Adj Factor Scoring'!$E$5:$J$282,,MATCH(G$4,'C. PoC Adj Factor Scoring'!$E$3:$AH$3,0)-1),MATCH(G$2&\" Score\",'C. PoC Adj Factor Scoring'!$E$4:$J$4,0),TRUE)","v":4},{"$f":"VLOOKUP(OFFSET($B:$B,,MATCH(H$4,$B$4:$F$4,0)-1),OFFSET('C. PoC Adj Factor Scoring'!$E$5:$J$282,,MATCH(H$4,'C. PoC Adj Factor Scoring'!$E$3:$AH$3,0)-1),MATCH(H$2&\" Score\",'C. PoC Adj Factor Scoring'!$E$4:$J$4,0),TRUE)","v":1},{"$f":"VLOOKUP(OFFSET($B:$B,,MATCH(I$4,$B$4:$F$4,0)-1),OFFSET('C. PoC Adj Factor Scoring'!$E$5:$J$282,,MATCH(I$4,'C. PoC Adj Factor Scoring'!$E$3:$AH$3,0)-1),MATCH(I$2&\" Score\",'C. PoC Adj Factor Scoring'!$E$4:$J$4,0),TRUE)","v":1},{"$f":"VLOOKUP(OFFSET($B:$B,,MATCH(J$4,$B$4:$F$4,0)-1),OFFSET('C. PoC Adj Factor Scoring'!$E$5:$J$282,,MATCH(J$4,'C. PoC Adj Factor Scoring'!$E$3:$AH$3,0)-1),MATCH(J$2&\" Score\",'C. PoC Adj Factor Scoring'!$E$4:$J$4,0),TRUE)","v":1},{"$f":"VLOOKUP(OFFSET($B:$B,,MATCH(K$4,$B$4:$F$4,0)-1),OFFSET('C. PoC Adj Factor Scoring'!$E$5:$J$282,,MATCH(K$4,'C. PoC Adj Factor Scoring'!$E$3:$AH$3,0)-1),MATCH(K$2&\" Score\",'C. PoC Adj Factor Scoring'!$E$4:$J$4,0),TRUE)","v":1},{"$f":"VLOOKUP(OFFSET($B:$B,,MATCH(L$4,$B$4:$F$4,0)-1),OFFSET('C. PoC Adj Factor Scoring'!$E$5:$J$282,,MATCH(L$4,'C. PoC Adj Factor Scoring'!$E$3:$AH$3,0)-1),MATCH(L$2&\" Score\",'C. PoC Adj Factor Scoring'!$E$4:$J$4,0),TRUE)","v":1},{"$f":"VLOOKUP(OFFSET($B:$B,,MATCH(M$4,$B$4:$F$4,0)-1),OFFSET('C. PoC Adj Factor Scoring'!$E$5:$J$282,,MATCH(M$4,'C. PoC Adj Factor Scoring'!$E$3:$AH$3,0)-1),MATCH(M$2&\" Score\",'C. PoC Adj Factor Scoring'!$E$4:$J$4,0),TRUE)","v":1},{"$f":"VLOOKUP(OFFSET($B:$B,,MATCH(N$4,$B$4:$F$4,0)-1),OFFSET('C. PoC Adj Factor Scoring'!$E$5:$J$282,,MATCH(N$4,'C. PoC Adj Factor Scoring'!$E$3:$AH$3,0)-1),MATCH(N$2&\" Score\",'C. PoC Adj Factor Scoring'!$E$4:$J$4,0),TRUE)","v":1},{"$f":"VLOOKUP(OFFSET($B:$B,,MATCH(O$4,$B$4:$F$4,0)-1),OFFSET('C. PoC Adj Factor Scoring'!$E$5:$J$282,,MATCH(O$4,'C. PoC Adj Factor Scoring'!$E$3:$AH$3,0)-1),MATCH(O$2&\" Score\",'C. PoC Adj Factor Scoring'!$E$4:$J$4,0),TRUE)","v":1},{"$f":"VLOOKUP(OFFSET($B:$B,,MATCH(P$4,$B$4:$F$4,0)-1),OFFSET('C. PoC Adj Factor Scoring'!$E$5:$J$282,,MATCH(P$4,'C. PoC Adj Factor Scoring'!$E$3:$AH$3,0)-1),MATCH(P$2&\" Score\",'C. PoC Adj Factor Scoring'!$E$4:$J$4,0),TRUE)","v":1},{"$f":"VLOOKUP(OFFSET($B:$B,,MATCH(Q$4,$B$4:$F$4,0)-1),OFFSET('C. PoC Adj Factor Scoring'!$E$5:$J$282,,MATCH(Q$4,'C. PoC Adj Factor Scoring'!$E$3:$AH$3,0)-1),MATCH(Q$2&\" Score\",'C. PoC Adj Factor Scoring'!$E$4:$J$4,0),TRUE)","v":1},{"$f":"VLOOKUP(OFFSET($B:$B,,MATCH(R$4,$B$4:$F$4,0)-1),OFFSET('C. PoC Adj Factor Scoring'!$E$5:$J$282,,MATCH(R$4,'C. PoC Adj Factor Scoring'!$E$3:$AH$3,0)-1),MATCH(R$2&\" Score\",'C. PoC Adj Factor Scoring'!$E$4:$J$4,0),TRUE)","v":1},{"$f":"VLOOKUP(OFFSET($B:$B,,MATCH(S$4,$B$4:$F$4,0)-1),OFFSET('C. PoC Adj Factor Scoring'!$E$5:$J$282,,MATCH(S$4,'C. PoC Adj Factor Scoring'!$E$3:$AH$3,0)-1),MATCH(S$2&\" Score\",'C. PoC Adj Factor Scoring'!$E$4:$J$4,0),TRUE)","v":1},{"$f":"VLOOKUP(OFFSET($B:$B,,MATCH(T$4,$B$4:$F$4,0)-1),OFFSET('C. PoC Adj Factor Scoring'!$E$5:$J$282,,MATCH(T$4,'C. PoC Adj Factor Scoring'!$E$3:$AH$3,0)-1),MATCH(T$2&\" Score\",'C. PoC Adj Factor Scoring'!$E$4:$J$4,0),TRUE)","v":1},{"$f":"VLOOKUP(OFFSET($B:$B,,MATCH(U$4,$B$4:$F$4,0)-1),OFFSET('C. PoC Adj Factor Scoring'!$E$5:$J$282,,MATCH(U$4,'C. PoC Adj Factor Scoring'!$E$3:$AH$3,0)-1),MATCH(U$2&\" Score\",'C. PoC Adj Factor Scoring'!$E$4:$J$4,0),TRUE)","v":1},{"$f":"VLOOKUP(OFFSET($B:$B,,MATCH(V$4,$B$4:$F$4,0)-1),OFFSET('C. PoC Adj Factor Scoring'!$E$5:$J$282,,MATCH(V$4,'C. PoC Adj Factor Scoring'!$E$3:$AH$3,0)-1),MATCH(V$2&\" Score\",'C. PoC Adj Factor Scoring'!$E$4:$J$4,0),TRUE)","v":1},{"$f":"VLOOKUP(OFFSET($B:$B,,MATCH(W$4,$B$4:$F$4,0)-1),OFFSET('C. PoC Adj Factor Scoring'!$E$5:$J$282,,MATCH(W$4,'C. PoC Adj Factor Scoring'!$E$3:$AH$3,0)-1),MATCH(W$2&\" Score\",'C. PoC Adj Factor Scoring'!$E$4:$J$4,0),TRUE)","v":1},{"$f":"VLOOKUP(OFFSET($B:$B,,MATCH(X$4,$B$4:$F$4,0)-1),OFFSET('C. PoC Adj Factor Scoring'!$E$5:$J$282,,MATCH(X$4,'C. PoC Adj Factor Scoring'!$E$3:$AH$3,0)-1),MATCH(X$2&\" Score\",'C. PoC Adj Factor Scoring'!$E$4:$J$4,0),TRUE)","v":1},{"$f":"VLOOKUP(OFFSET($B:$B,,MATCH(Y$4,$B$4:$F$4,0)-1),OFFSET('C. PoC Adj Factor Scoring'!$E$5:$J$282,,MATCH(Y$4,'C. PoC Adj Factor Scoring'!$E$3:$AH$3,0)-1),MATCH(Y$2&\" Score\",'C. PoC Adj Factor Scoring'!$E$4:$J$4,0),TRUE)","v":1},{"$f":"VLOOKUP(OFFSET($B:$B,,MATCH(Z$4,$B$4:$F$4,0)-1),OFFSET('C. PoC Adj Factor Scoring'!$E$5:$J$282,,MATCH(Z$4,'C. PoC Adj Factor Scoring'!$E$3:$AH$3,0)-1),MATCH(Z$2&\" Score\",'C. PoC Adj Factor Scoring'!$E$4:$J$4,0),TRUE)","v":1},{"$f":"VLOOKUP(OFFSET($B:$B,,MATCH(AA$4,$B$4:$F$4,0)-1),OFFSET('C. PoC Adj Factor Scoring'!$E$5:$J$282,,MATCH(AA$4,'C. PoC Adj Factor Scoring'!$E$3:$AH$3,0)-1),MATCH(AA$2&\" Score\",'C. PoC Adj Factor Scoring'!$E$4:$J$4,0),TRUE)","v":3},{"$f":"VLOOKUP(OFFSET($B:$B,,MATCH(AB$4,$B$4:$F$4,0)-1),OFFSET('C. PoC Adj Factor Scoring'!$E$5:$J$282,,MATCH(AB$4,'C. PoC Adj Factor Scoring'!$E$3:$AH$3,0)-1),MATCH(AB$2&\" Score\",'C. PoC Adj Factor Scoring'!$E$4:$J$4,0),TRUE)","v":1},{"$f":"VLOOKUP(OFFSET($B:$B,,MATCH(AC$4,$B$4:$F$4,0)-1),OFFSET('C. PoC Adj Factor Scoring'!$E$5:$J$282,,MATCH(AC$4,'C. PoC Adj Factor Scoring'!$E$3:$AH$3,0)-1),MATCH(AC$2&\" Score\",'C. PoC Adj Factor Scoring'!$E$4:$J$4,0),TRUE)","v":1},{"$f":"VLOOKUP(OFFSET($B:$B,,MATCH(AD$4,$B$4:$F$4,0)-1),OFFSET('C. PoC Adj Factor Scoring'!$E$5:$J$282,,MATCH(AD$4,'C. PoC Adj Factor Scoring'!$E$3:$AH$3,0)-1),MATCH(AD$2&\" Score\",'C. PoC Adj Factor Scoring'!$E$4:$J$4,0),TRUE)","v":1},{"$f":"VLOOKUP(OFFSET($B:$B,,MATCH(AE$4,$B$4:$F$4,0)-1),OFFSET('C. PoC Adj Factor Scoring'!$E$5:$J$282,,MATCH(AE$4,'C. PoC Adj Factor Scoring'!$E$3:$AH$3,0)-1),MATCH(AE$2&\" Score\",'C. PoC Adj Factor Scoring'!$E$4:$J$4,0),TRUE)","v":1}]
[{"$f":"'A. Population Info'!A535","v":1001560042},{"$f":"'A. Population Info'!L535","v":"OIL"},{"$f":"'A. Population Info'!M535","v":0},{"$f":"'A. Population Info'!N535","v":0},{"$f":"'A. Population Info'!O535","v":0},{"$f":"'A. Population Info'!P535","v":0},{"$f":"VLOOKUP(OFFSET($B:$B,,MATCH(G$4,$B$4:$F$4,0)-1),OFFSET('C. PoC Adj Factor Scoring'!$E$5:$J$282,,MATCH(G$4,'C. PoC Adj Factor Scoring'!$E$3:$AH$3,0)-1),MATCH(G$2&\" Score\",'C. PoC Adj Factor Scoring'!$E$4:$J$4,0),TRUE)","v":4},{"$f":"VLOOKUP(OFFSET($B:$B,,MATCH(H$4,$B$4:$F$4,0)-1),OFFSET('C. PoC Adj Factor Scoring'!$E$5:$J$282,,MATCH(H$4,'C. PoC Adj Factor Scoring'!$E$3:$AH$3,0)-1),MATCH(H$2&\" Score\",'C. PoC Adj Factor Scoring'!$E$4:$J$4,0),TRUE)","v":1},{"$f":"VLOOKUP(OFFSET($B:$B,,MATCH(I$4,$B$4:$F$4,0)-1),OFFSET('C. PoC Adj Factor Scoring'!$E$5:$J$282,,MATCH(I$4,'C. PoC Adj Factor Scoring'!$E$3:$AH$3,0)-1),MATCH(I$2&\" Score\",'C. PoC Adj Factor Scoring'!$E$4:$J$4,0),TRUE)","v":1},{"$f":"VLOOKUP(OFFSET($B:$B,,MATCH(J$4,$B$4:$F$4,0)-1),OFFSET('C. PoC Adj Factor Scoring'!$E$5:$J$282,,MATCH(J$4,'C. PoC Adj Factor Scoring'!$E$3:$AH$3,0)-1),MATCH(J$2&\" Score\",'C. PoC Adj Factor Scoring'!$E$4:$J$4,0),TRUE)","v":1},{"$f":"VLOOKUP(OFFSET($B:$B,,MATCH(K$4,$B$4:$F$4,0)-1),OFFSET('C. PoC Adj Factor Scoring'!$E$5:$J$282,,MATCH(K$4,'C. PoC Adj Factor Scoring'!$E$3:$AH$3,0)-1),MATCH(K$2&\" Score\",'C. PoC Adj Factor Scoring'!$E$4:$J$4,0),TRUE)","v":1},{"$f":"VLOOKUP(OFFSET($B:$B,,MATCH(L$4,$B$4:$F$4,0)-1),OFFSET('C. PoC Adj Factor Scoring'!$E$5:$J$282,,MATCH(L$4,'C. PoC Adj Factor Scoring'!$E$3:$AH$3,0)-1),MATCH(L$2&\" Score\",'C. PoC Adj Factor Scoring'!$E$4:$J$4,0),TRUE)","v":1},{"$f":"VLOOKUP(OFFSET($B:$B,,MATCH(M$4,$B$4:$F$4,0)-1),OFFSET('C. PoC Adj Factor Scoring'!$E$5:$J$282,,MATCH(M$4,'C. PoC Adj Factor Scoring'!$E$3:$AH$3,0)-1),MATCH(M$2&\" Score\",'C. PoC Adj Factor Scoring'!$E$4:$J$4,0),TRUE)","v":1},{"$f":"VLOOKUP(OFFSET($B:$B,,MATCH(N$4,$B$4:$F$4,0)-1),OFFSET('C. PoC Adj Factor Scoring'!$E$5:$J$282,,MATCH(N$4,'C. PoC Adj Factor Scoring'!$E$3:$AH$3,0)-1),MATCH(N$2&\" Score\",'C. PoC Adj Factor Scoring'!$E$4:$J$4,0),TRUE)","v":1},{"$f":"VLOOKUP(OFFSET($B:$B,,MATCH(O$4,$B$4:$F$4,0)-1),OFFSET('C. PoC Adj Factor Scoring'!$E$5:$J$282,,MATCH(O$4,'C. PoC Adj Factor Scoring'!$E$3:$AH$3,0)-1),MATCH(O$2&\" Score\",'C. PoC Adj Factor Scoring'!$E$4:$J$4,0),TRUE)","v":1},{"$f":"VLOOKUP(OFFSET($B:$B,,MATCH(P$4,$B$4:$F$4,0)-1),OFFSET('C. PoC Adj Factor Scoring'!$E$5:$J$282,,MATCH(P$4,'C. PoC Adj Factor Scoring'!$E$3:$AH$3,0)-1),MATCH(P$2&\" Score\",'C. PoC Adj Factor Scoring'!$E$4:$J$4,0),TRUE)","v":1},{"$f":"VLOOKUP(OFFSET($B:$B,,MATCH(Q$4,$B$4:$F$4,0)-1),OFFSET('C. PoC Adj Factor Scoring'!$E$5:$J$282,,MATCH(Q$4,'C. PoC Adj Factor Scoring'!$E$3:$AH$3,0)-1),MATCH(Q$2&\" Score\",'C. PoC Adj Factor Scoring'!$E$4:$J$4,0),TRUE)","v":1},{"$f":"VLOOKUP(OFFSET($B:$B,,MATCH(R$4,$B$4:$F$4,0)-1),OFFSET('C. PoC Adj Factor Scoring'!$E$5:$J$282,,MATCH(R$4,'C. PoC Adj Factor Scoring'!$E$3:$AH$3,0)-1),MATCH(R$2&\" Score\",'C. PoC Adj Factor Scoring'!$E$4:$J$4,0),TRUE)","v":1},{"$f":"VLOOKUP(OFFSET($B:$B,,MATCH(S$4,$B$4:$F$4,0)-1),OFFSET('C. PoC Adj Factor Scoring'!$E$5:$J$282,,MATCH(S$4,'C. PoC Adj Factor Scoring'!$E$3:$AH$3,0)-1),MATCH(S$2&\" Score\",'C. PoC Adj Factor Scoring'!$E$4:$J$4,0),TRUE)","v":1},{"$f":"VLOOKUP(OFFSET($B:$B,,MATCH(T$4,$B$4:$F$4,0)-1),OFFSET('C. PoC Adj Factor Scoring'!$E$5:$J$282,,MATCH(T$4,'C. PoC Adj Factor Scoring'!$E$3:$AH$3,0)-1),MATCH(T$2&\" Score\",'C. PoC Adj Factor Scoring'!$E$4:$J$4,0),TRUE)","v":1},{"$f":"VLOOKUP(OFFSET($B:$B,,MATCH(U$4,$B$4:$F$4,0)-1),OFFSET('C. PoC Adj Factor Scoring'!$E$5:$J$282,,MATCH(U$4,'C. PoC Adj Factor Scoring'!$E$3:$AH$3,0)-1),MATCH(U$2&\" Score\",'C. PoC Adj Factor Scoring'!$E$4:$J$4,0),TRUE)","v":1},{"$f":"VLOOKUP(OFFSET($B:$B,,MATCH(V$4,$B$4:$F$4,0)-1),OFFSET('C. PoC Adj Factor Scoring'!$E$5:$J$282,,MATCH(V$4,'C. PoC Adj Factor Scoring'!$E$3:$AH$3,0)-1),MATCH(V$2&\" Score\",'C. PoC Adj Factor Scoring'!$E$4:$J$4,0),TRUE)","v":1},{"$f":"VLOOKUP(OFFSET($B:$B,,MATCH(W$4,$B$4:$F$4,0)-1),OFFSET('C. PoC Adj Factor Scoring'!$E$5:$J$282,,MATCH(W$4,'C. PoC Adj Factor Scoring'!$E$3:$AH$3,0)-1),MATCH(W$2&\" Score\",'C. PoC Adj Factor Scoring'!$E$4:$J$4,0),TRUE)","v":1},{"$f":"VLOOKUP(OFFSET($B:$B,,MATCH(X$4,$B$4:$F$4,0)-1),OFFSET('C. PoC Adj Factor Scoring'!$E$5:$J$282,,MATCH(X$4,'C. PoC Adj Factor Scoring'!$E$3:$AH$3,0)-1),MATCH(X$2&\" Score\",'C. PoC Adj Factor Scoring'!$E$4:$J$4,0),TRUE)","v":1},{"$f":"VLOOKUP(OFFSET($B:$B,,MATCH(Y$4,$B$4:$F$4,0)-1),OFFSET('C. PoC Adj Factor Scoring'!$E$5:$J$282,,MATCH(Y$4,'C. PoC Adj Factor Scoring'!$E$3:$AH$3,0)-1),MATCH(Y$2&\" Score\",'C. PoC Adj Factor Scoring'!$E$4:$J$4,0),TRUE)","v":1},{"$f":"VLOOKUP(OFFSET($B:$B,,MATCH(Z$4,$B$4:$F$4,0)-1),OFFSET('C. PoC Adj Factor Scoring'!$E$5:$J$282,,MATCH(Z$4,'C. PoC Adj Factor Scoring'!$E$3:$AH$3,0)-1),MATCH(Z$2&\" Score\",'C. PoC Adj Factor Scoring'!$E$4:$J$4,0),TRUE)","v":1},{"$f":"VLOOKUP(OFFSET($B:$B,,MATCH(AA$4,$B$4:$F$4,0)-1),OFFSET('C. PoC Adj Factor Scoring'!$E$5:$J$282,,MATCH(AA$4,'C. PoC Adj Factor Scoring'!$E$3:$AH$3,0)-1),MATCH(AA$2&\" Score\",'C. PoC Adj Factor Scoring'!$E$4:$J$4,0),TRUE)","v":3},{"$f":"VLOOKUP(OFFSET($B:$B,,MATCH(AB$4,$B$4:$F$4,0)-1),OFFSET('C. PoC Adj Factor Scoring'!$E$5:$J$282,,MATCH(AB$4,'C. PoC Adj Factor Scoring'!$E$3:$AH$3,0)-1),MATCH(AB$2&\" Score\",'C. PoC Adj Factor Scoring'!$E$4:$J$4,0),TRUE)","v":1},{"$f":"VLOOKUP(OFFSET($B:$B,,MATCH(AC$4,$B$4:$F$4,0)-1),OFFSET('C. PoC Adj Factor Scoring'!$E$5:$J$282,,MATCH(AC$4,'C. PoC Adj Factor Scoring'!$E$3:$AH$3,0)-1),MATCH(AC$2&\" Score\",'C. PoC Adj Factor Scoring'!$E$4:$J$4,0),TRUE)","v":1},{"$f":"VLOOKUP(OFFSET($B:$B,,MATCH(AD$4,$B$4:$F$4,0)-1),OFFSET('C. PoC Adj Factor Scoring'!$E$5:$J$282,,MATCH(AD$4,'C. PoC Adj Factor Scoring'!$E$3:$AH$3,0)-1),MATCH(AD$2&\" Score\",'C. PoC Adj Factor Scoring'!$E$4:$J$4,0),TRUE)","v":1},{"$f":"VLOOKUP(OFFSET($B:$B,,MATCH(AE$4,$B$4:$F$4,0)-1),OFFSET('C. PoC Adj Factor Scoring'!$E$5:$J$282,,MATCH(AE$4,'C. PoC Adj Factor Scoring'!$E$3:$AH$3,0)-1),MATCH(AE$2&\" Score\",'C. PoC Adj Factor Scoring'!$E$4:$J$4,0),TRUE)","v":1}]
[{"$f":"'A. Population Info'!A536","v":1001560043},{"$f":"'A. Population Info'!L536","v":"OIL"},{"$f":"'A. Population Info'!M536","v":0},{"$f":"'A. Population Info'!N536","v":0},{"$f":"'A. Population Info'!O536","v":0},{"$f":"'A. Population Info'!P536","v":0},{"$f":"VLOOKUP(OFFSET($B:$B,,MATCH(G$4,$B$4:$F$4,0)-1),OFFSET('C. PoC Adj Factor Scoring'!$E$5:$J$282,,MATCH(G$4,'C. PoC Adj Factor Scoring'!$E$3:$AH$3,0)-1),MATCH(G$2&\" Score\",'C. PoC Adj Factor Scoring'!$E$4:$J$4,0),TRUE)","v":4},{"$f":"VLOOKUP(OFFSET($B:$B,,MATCH(H$4,$B$4:$F$4,0)-1),OFFSET('C. PoC Adj Factor Scoring'!$E$5:$J$282,,MATCH(H$4,'C. PoC Adj Factor Scoring'!$E$3:$AH$3,0)-1),MATCH(H$2&\" Score\",'C. PoC Adj Factor Scoring'!$E$4:$J$4,0),TRUE)","v":1},{"$f":"VLOOKUP(OFFSET($B:$B,,MATCH(I$4,$B$4:$F$4,0)-1),OFFSET('C. PoC Adj Factor Scoring'!$E$5:$J$282,,MATCH(I$4,'C. PoC Adj Factor Scoring'!$E$3:$AH$3,0)-1),MATCH(I$2&\" Score\",'C. PoC Adj Factor Scoring'!$E$4:$J$4,0),TRUE)","v":1},{"$f":"VLOOKUP(OFFSET($B:$B,,MATCH(J$4,$B$4:$F$4,0)-1),OFFSET('C. PoC Adj Factor Scoring'!$E$5:$J$282,,MATCH(J$4,'C. PoC Adj Factor Scoring'!$E$3:$AH$3,0)-1),MATCH(J$2&\" Score\",'C. PoC Adj Factor Scoring'!$E$4:$J$4,0),TRUE)","v":1},{"$f":"VLOOKUP(OFFSET($B:$B,,MATCH(K$4,$B$4:$F$4,0)-1),OFFSET('C. PoC Adj Factor Scoring'!$E$5:$J$282,,MATCH(K$4,'C. PoC Adj Factor Scoring'!$E$3:$AH$3,0)-1),MATCH(K$2&\" Score\",'C. PoC Adj Factor Scoring'!$E$4:$J$4,0),TRUE)","v":1},{"$f":"VLOOKUP(OFFSET($B:$B,,MATCH(L$4,$B$4:$F$4,0)-1),OFFSET('C. PoC Adj Factor Scoring'!$E$5:$J$282,,MATCH(L$4,'C. PoC Adj Factor Scoring'!$E$3:$AH$3,0)-1),MATCH(L$2&\" Score\",'C. PoC Adj Factor Scoring'!$E$4:$J$4,0),TRUE)","v":1},{"$f":"VLOOKUP(OFFSET($B:$B,,MATCH(M$4,$B$4:$F$4,0)-1),OFFSET('C. PoC Adj Factor Scoring'!$E$5:$J$282,,MATCH(M$4,'C. PoC Adj Factor Scoring'!$E$3:$AH$3,0)-1),MATCH(M$2&\" Score\",'C. PoC Adj Factor Scoring'!$E$4:$J$4,0),TRUE)","v":1},{"$f":"VLOOKUP(OFFSET($B:$B,,MATCH(N$4,$B$4:$F$4,0)-1),OFFSET('C. PoC Adj Factor Scoring'!$E$5:$J$282,,MATCH(N$4,'C. PoC Adj Factor Scoring'!$E$3:$AH$3,0)-1),MATCH(N$2&\" Score\",'C. PoC Adj Factor Scoring'!$E$4:$J$4,0),TRUE)","v":1},{"$f":"VLOOKUP(OFFSET($B:$B,,MATCH(O$4,$B$4:$F$4,0)-1),OFFSET('C. PoC Adj Factor Scoring'!$E$5:$J$282,,MATCH(O$4,'C. PoC Adj Factor Scoring'!$E$3:$AH$3,0)-1),MATCH(O$2&\" Score\",'C. PoC Adj Factor Scoring'!$E$4:$J$4,0),TRUE)","v":1},{"$f":"VLOOKUP(OFFSET($B:$B,,MATCH(P$4,$B$4:$F$4,0)-1),OFFSET('C. PoC Adj Factor Scoring'!$E$5:$J$282,,MATCH(P$4,'C. PoC Adj Factor Scoring'!$E$3:$AH$3,0)-1),MATCH(P$2&\" Score\",'C. PoC Adj Factor Scoring'!$E$4:$J$4,0),TRUE)","v":1},{"$f":"VLOOKUP(OFFSET($B:$B,,MATCH(Q$4,$B$4:$F$4,0)-1),OFFSET('C. PoC Adj Factor Scoring'!$E$5:$J$282,,MATCH(Q$4,'C. PoC Adj Factor Scoring'!$E$3:$AH$3,0)-1),MATCH(Q$2&\" Score\",'C. PoC Adj Factor Scoring'!$E$4:$J$4,0),TRUE)","v":1},{"$f":"VLOOKUP(OFFSET($B:$B,,MATCH(R$4,$B$4:$F$4,0)-1),OFFSET('C. PoC Adj Factor Scoring'!$E$5:$J$282,,MATCH(R$4,'C. PoC Adj Factor Scoring'!$E$3:$AH$3,0)-1),MATCH(R$2&\" Score\",'C. PoC Adj Factor Scoring'!$E$4:$J$4,0),TRUE)","v":1},{"$f":"VLOOKUP(OFFSET($B:$B,,MATCH(S$4,$B$4:$F$4,0)-1),OFFSET('C. PoC Adj Factor Scoring'!$E$5:$J$282,,MATCH(S$4,'C. PoC Adj Factor Scoring'!$E$3:$AH$3,0)-1),MATCH(S$2&\" Score\",'C. PoC Adj Factor Scoring'!$E$4:$J$4,0),TRUE)","v":1},{"$f":"VLOOKUP(OFFSET($B:$B,,MATCH(T$4,$B$4:$F$4,0)-1),OFFSET('C. PoC Adj Factor Scoring'!$E$5:$J$282,,MATCH(T$4,'C. PoC Adj Factor Scoring'!$E$3:$AH$3,0)-1),MATCH(T$2&\" Score\",'C. PoC Adj Factor Scoring'!$E$4:$J$4,0),TRUE)","v":1},{"$f":"VLOOKUP(OFFSET($B:$B,,MATCH(U$4,$B$4:$F$4,0)-1),OFFSET('C. PoC Adj Factor Scoring'!$E$5:$J$282,,MATCH(U$4,'C. PoC Adj Factor Scoring'!$E$3:$AH$3,0)-1),MATCH(U$2&\" Score\",'C. PoC Adj Factor Scoring'!$E$4:$J$4,0),TRUE)","v":1},{"$f":"VLOOKUP(OFFSET($B:$B,,MATCH(V$4,$B$4:$F$4,0)-1),OFFSET('C. PoC Adj Factor Scoring'!$E$5:$J$282,,MATCH(V$4,'C. PoC Adj Factor Scoring'!$E$3:$AH$3,0)-1),MATCH(V$2&\" Score\",'C. PoC Adj Factor Scoring'!$E$4:$J$4,0),TRUE)","v":1},{"$f":"VLOOKUP(OFFSET($B:$B,,MATCH(W$4,$B$4:$F$4,0)-1),OFFSET('C. PoC Adj Factor Scoring'!$E$5:$J$282,,MATCH(W$4,'C. PoC Adj Factor Scoring'!$E$3:$AH$3,0)-1),MATCH(W$2&\" Score\",'C. PoC Adj Factor Scoring'!$E$4:$J$4,0),TRUE)","v":1},{"$f":"VLOOKUP(OFFSET($B:$B,,MATCH(X$4,$B$4:$F$4,0)-1),OFFSET('C. PoC Adj Factor Scoring'!$E$5:$J$282,,MATCH(X$4,'C. PoC Adj Factor Scoring'!$E$3:$AH$3,0)-1),MATCH(X$2&\" Score\",'C. PoC Adj Factor Scoring'!$E$4:$J$4,0),TRUE)","v":1},{"$f":"VLOOKUP(OFFSET($B:$B,,MATCH(Y$4,$B$4:$F$4,0)-1),OFFSET('C. PoC Adj Factor Scoring'!$E$5:$J$282,,MATCH(Y$4,'C. PoC Adj Factor Scoring'!$E$3:$AH$3,0)-1),MATCH(Y$2&\" Score\",'C. PoC Adj Factor Scoring'!$E$4:$J$4,0),TRUE)","v":1},{"$f":"VLOOKUP(OFFSET($B:$B,,MATCH(Z$4,$B$4:$F$4,0)-1),OFFSET('C. PoC Adj Factor Scoring'!$E$5:$J$282,,MATCH(Z$4,'C. PoC Adj Factor Scoring'!$E$3:$AH$3,0)-1),MATCH(Z$2&\" Score\",'C. PoC Adj Factor Scoring'!$E$4:$J$4,0),TRUE)","v":1},{"$f":"VLOOKUP(OFFSET($B:$B,,MATCH(AA$4,$B$4:$F$4,0)-1),OFFSET('C. PoC Adj Factor Scoring'!$E$5:$J$282,,MATCH(AA$4,'C. PoC Adj Factor Scoring'!$E$3:$AH$3,0)-1),MATCH(AA$2&\" Score\",'C. PoC Adj Factor Scoring'!$E$4:$J$4,0),TRUE)","v":3},{"$f":"VLOOKUP(OFFSET($B:$B,,MATCH(AB$4,$B$4:$F$4,0)-1),OFFSET('C. PoC Adj Factor Scoring'!$E$5:$J$282,,MATCH(AB$4,'C. PoC Adj Factor Scoring'!$E$3:$AH$3,0)-1),MATCH(AB$2&\" Score\",'C. PoC Adj Factor Scoring'!$E$4:$J$4,0),TRUE)","v":1},{"$f":"VLOOKUP(OFFSET($B:$B,,MATCH(AC$4,$B$4:$F$4,0)-1),OFFSET('C. PoC Adj Factor Scoring'!$E$5:$J$282,,MATCH(AC$4,'C. PoC Adj Factor Scoring'!$E$3:$AH$3,0)-1),MATCH(AC$2&\" Score\",'C. PoC Adj Factor Scoring'!$E$4:$J$4,0),TRUE)","v":1},{"$f":"VLOOKUP(OFFSET($B:$B,,MATCH(AD$4,$B$4:$F$4,0)-1),OFFSET('C. PoC Adj Factor Scoring'!$E$5:$J$282,,MATCH(AD$4,'C. PoC Adj Factor Scoring'!$E$3:$AH$3,0)-1),MATCH(AD$2&\" Score\",'C. PoC Adj Factor Scoring'!$E$4:$J$4,0),TRUE)","v":1},{"$f":"VLOOKUP(OFFSET($B:$B,,MATCH(AE$4,$B$4:$F$4,0)-1),OFFSET('C. PoC Adj Factor Scoring'!$E$5:$J$282,,MATCH(AE$4,'C. PoC Adj Factor Scoring'!$E$3:$AH$3,0)-1),MATCH(AE$2&\" Score\",'C. PoC Adj Factor Scoring'!$E$4:$J$4,0),TRUE)","v":1}]
[{"$f":"'A. Population Info'!A537","v":1001560044},{"$f":"'A. Population Info'!L537","v":"OIL"},{"$f":"'A. Population Info'!M537","v":0},{"$f":"'A. Population Info'!N537","v":0},{"$f":"'A. Population Info'!O537","v":0},{"$f":"'A. Population Info'!P537","v":0},{"$f":"VLOOKUP(OFFSET($B:$B,,MATCH(G$4,$B$4:$F$4,0)-1),OFFSET('C. PoC Adj Factor Scoring'!$E$5:$J$282,,MATCH(G$4,'C. PoC Adj Factor Scoring'!$E$3:$AH$3,0)-1),MATCH(G$2&\" Score\",'C. PoC Adj Factor Scoring'!$E$4:$J$4,0),TRUE)","v":4},{"$f":"VLOOKUP(OFFSET($B:$B,,MATCH(H$4,$B$4:$F$4,0)-1),OFFSET('C. PoC Adj Factor Scoring'!$E$5:$J$282,,MATCH(H$4,'C. PoC Adj Factor Scoring'!$E$3:$AH$3,0)-1),MATCH(H$2&\" Score\",'C. PoC Adj Factor Scoring'!$E$4:$J$4,0),TRUE)","v":1},{"$f":"VLOOKUP(OFFSET($B:$B,,MATCH(I$4,$B$4:$F$4,0)-1),OFFSET('C. PoC Adj Factor Scoring'!$E$5:$J$282,,MATCH(I$4,'C. PoC Adj Factor Scoring'!$E$3:$AH$3,0)-1),MATCH(I$2&\" Score\",'C. PoC Adj Factor Scoring'!$E$4:$J$4,0),TRUE)","v":1},{"$f":"VLOOKUP(OFFSET($B:$B,,MATCH(J$4,$B$4:$F$4,0)-1),OFFSET('C. PoC Adj Factor Scoring'!$E$5:$J$282,,MATCH(J$4,'C. PoC Adj Factor Scoring'!$E$3:$AH$3,0)-1),MATCH(J$2&\" Score\",'C. PoC Adj Factor Scoring'!$E$4:$J$4,0),TRUE)","v":1},{"$f":"VLOOKUP(OFFSET($B:$B,,MATCH(K$4,$B$4:$F$4,0)-1),OFFSET('C. PoC Adj Factor Scoring'!$E$5:$J$282,,MATCH(K$4,'C. PoC Adj Factor Scoring'!$E$3:$AH$3,0)-1),MATCH(K$2&\" Score\",'C. PoC Adj Factor Scoring'!$E$4:$J$4,0),TRUE)","v":1},{"$f":"VLOOKUP(OFFSET($B:$B,,MATCH(L$4,$B$4:$F$4,0)-1),OFFSET('C. PoC Adj Factor Scoring'!$E$5:$J$282,,MATCH(L$4,'C. PoC Adj Factor Scoring'!$E$3:$AH$3,0)-1),MATCH(L$2&\" Score\",'C. PoC Adj Factor Scoring'!$E$4:$J$4,0),TRUE)","v":1},{"$f":"VLOOKUP(OFFSET($B:$B,,MATCH(M$4,$B$4:$F$4,0)-1),OFFSET('C. PoC Adj Factor Scoring'!$E$5:$J$282,,MATCH(M$4,'C. PoC Adj Factor Scoring'!$E$3:$AH$3,0)-1),MATCH(M$2&\" Score\",'C. PoC Adj Factor Scoring'!$E$4:$J$4,0),TRUE)","v":1},{"$f":"VLOOKUP(OFFSET($B:$B,,MATCH(N$4,$B$4:$F$4,0)-1),OFFSET('C. PoC Adj Factor Scoring'!$E$5:$J$282,,MATCH(N$4,'C. PoC Adj Factor Scoring'!$E$3:$AH$3,0)-1),MATCH(N$2&\" Score\",'C. PoC Adj Factor Scoring'!$E$4:$J$4,0),TRUE)","v":1},{"$f":"VLOOKUP(OFFSET($B:$B,,MATCH(O$4,$B$4:$F$4,0)-1),OFFSET('C. PoC Adj Factor Scoring'!$E$5:$J$282,,MATCH(O$4,'C. PoC Adj Factor Scoring'!$E$3:$AH$3,0)-1),MATCH(O$2&\" Score\",'C. PoC Adj Factor Scoring'!$E$4:$J$4,0),TRUE)","v":1},{"$f":"VLOOKUP(OFFSET($B:$B,,MATCH(P$4,$B$4:$F$4,0)-1),OFFSET('C. PoC Adj Factor Scoring'!$E$5:$J$282,,MATCH(P$4,'C. PoC Adj Factor Scoring'!$E$3:$AH$3,0)-1),MATCH(P$2&\" Score\",'C. PoC Adj Factor Scoring'!$E$4:$J$4,0),TRUE)","v":1},{"$f":"VLOOKUP(OFFSET($B:$B,,MATCH(Q$4,$B$4:$F$4,0)-1),OFFSET('C. PoC Adj Factor Scoring'!$E$5:$J$282,,MATCH(Q$4,'C. PoC Adj Factor Scoring'!$E$3:$AH$3,0)-1),MATCH(Q$2&\" Score\",'C. PoC Adj Factor Scoring'!$E$4:$J$4,0),TRUE)","v":1},{"$f":"VLOOKUP(OFFSET($B:$B,,MATCH(R$4,$B$4:$F$4,0)-1),OFFSET('C. PoC Adj Factor Scoring'!$E$5:$J$282,,MATCH(R$4,'C. PoC Adj Factor Scoring'!$E$3:$AH$3,0)-1),MATCH(R$2&\" Score\",'C. PoC Adj Factor Scoring'!$E$4:$J$4,0),TRUE)","v":1},{"$f":"VLOOKUP(OFFSET($B:$B,,MATCH(S$4,$B$4:$F$4,0)-1),OFFSET('C. PoC Adj Factor Scoring'!$E$5:$J$282,,MATCH(S$4,'C. PoC Adj Factor Scoring'!$E$3:$AH$3,0)-1),MATCH(S$2&\" Score\",'C. PoC Adj Factor Scoring'!$E$4:$J$4,0),TRUE)","v":1},{"$f":"VLOOKUP(OFFSET($B:$B,,MATCH(T$4,$B$4:$F$4,0)-1),OFFSET('C. PoC Adj Factor Scoring'!$E$5:$J$282,,MATCH(T$4,'C. PoC Adj Factor Scoring'!$E$3:$AH$3,0)-1),MATCH(T$2&\" Score\",'C. PoC Adj Factor Scoring'!$E$4:$J$4,0),TRUE)","v":1},{"$f":"VLOOKUP(OFFSET($B:$B,,MATCH(U$4,$B$4:$F$4,0)-1),OFFSET('C. PoC Adj Factor Scoring'!$E$5:$J$282,,MATCH(U$4,'C. PoC Adj Factor Scoring'!$E$3:$AH$3,0)-1),MATCH(U$2&\" Score\",'C. PoC Adj Factor Scoring'!$E$4:$J$4,0),TRUE)","v":1},{"$f":"VLOOKUP(OFFSET($B:$B,,MATCH(V$4,$B$4:$F$4,0)-1),OFFSET('C. PoC Adj Factor Scoring'!$E$5:$J$282,,MATCH(V$4,'C. PoC Adj Factor Scoring'!$E$3:$AH$3,0)-1),MATCH(V$2&\" Score\",'C. PoC Adj Factor Scoring'!$E$4:$J$4,0),TRUE)","v":1},{"$f":"VLOOKUP(OFFSET($B:$B,,MATCH(W$4,$B$4:$F$4,0)-1),OFFSET('C. PoC Adj Factor Scoring'!$E$5:$J$282,,MATCH(W$4,'C. PoC Adj Factor Scoring'!$E$3:$AH$3,0)-1),MATCH(W$2&\" Score\",'C. PoC Adj Factor Scoring'!$E$4:$J$4,0),TRUE)","v":1},{"$f":"VLOOKUP(OFFSET($B:$B,,MATCH(X$4,$B$4:$F$4,0)-1),OFFSET('C. PoC Adj Factor Scoring'!$E$5:$J$282,,MATCH(X$4,'C. PoC Adj Factor Scoring'!$E$3:$AH$3,0)-1),MATCH(X$2&\" Score\",'C. PoC Adj Factor Scoring'!$E$4:$J$4,0),TRUE)","v":1},{"$f":"VLOOKUP(OFFSET($B:$B,,MATCH(Y$4,$B$4:$F$4,0)-1),OFFSET('C. PoC Adj Factor Scoring'!$E$5:$J$282,,MATCH(Y$4,'C. PoC Adj Factor Scoring'!$E$3:$AH$3,0)-1),MATCH(Y$2&\" Score\",'C. PoC Adj Factor Scoring'!$E$4:$J$4,0),TRUE)","v":1},{"$f":"VLOOKUP(OFFSET($B:$B,,MATCH(Z$4,$B$4:$F$4,0)-1),OFFSET('C. PoC Adj Factor Scoring'!$E$5:$J$282,,MATCH(Z$4,'C. PoC Adj Factor Scoring'!$E$3:$AH$3,0)-1),MATCH(Z$2&\" Score\",'C. PoC Adj Factor Scoring'!$E$4:$J$4,0),TRUE)","v":1},{"$f":"VLOOKUP(OFFSET($B:$B,,MATCH(AA$4,$B$4:$F$4,0)-1),OFFSET('C. PoC Adj Factor Scoring'!$E$5:$J$282,,MATCH(AA$4,'C. PoC Adj Factor Scoring'!$E$3:$AH$3,0)-1),MATCH(AA$2&\" Score\",'C. PoC Adj Factor Scoring'!$E$4:$J$4,0),TRUE)","v":3},{"$f":"VLOOKUP(OFFSET($B:$B,,MATCH(AB$4,$B$4:$F$4,0)-1),OFFSET('C. PoC Adj Factor Scoring'!$E$5:$J$282,,MATCH(AB$4,'C. PoC Adj Factor Scoring'!$E$3:$AH$3,0)-1),MATCH(AB$2&\" Score\",'C. PoC Adj Factor Scoring'!$E$4:$J$4,0),TRUE)","v":1},{"$f":"VLOOKUP(OFFSET($B:$B,,MATCH(AC$4,$B$4:$F$4,0)-1),OFFSET('C. PoC Adj Factor Scoring'!$E$5:$J$282,,MATCH(AC$4,'C. PoC Adj Factor Scoring'!$E$3:$AH$3,0)-1),MATCH(AC$2&\" Score\",'C. PoC Adj Factor Scoring'!$E$4:$J$4,0),TRUE)","v":1},{"$f":"VLOOKUP(OFFSET($B:$B,,MATCH(AD$4,$B$4:$F$4,0)-1),OFFSET('C. PoC Adj Factor Scoring'!$E$5:$J$282,,MATCH(AD$4,'C. PoC Adj Factor Scoring'!$E$3:$AH$3,0)-1),MATCH(AD$2&\" Score\",'C. PoC Adj Factor Scoring'!$E$4:$J$4,0),TRUE)","v":1},{"$f":"VLOOKUP(OFFSET($B:$B,,MATCH(AE$4,$B$4:$F$4,0)-1),OFFSET('C. PoC Adj Factor Scoring'!$E$5:$J$282,,MATCH(AE$4,'C. PoC Adj Factor Scoring'!$E$3:$AH$3,0)-1),MATCH(AE$2&\" Score\",'C. PoC Adj Factor Scoring'!$E$4:$J$4,0),TRUE)","v":1}]
[{"$f":"'A. Population Info'!A538","v":1001571355},{"$f":"'A. Population Info'!L538","v":"OIL_FR3"},{"$f":"'A. Population Info'!M538","v":0},{"$f":"'A. Population Info'!N538","v":0},{"$f":"'A. Population Info'!O538","v":0},{"$f":"'A. Population Info'!P538","v":0},{"$f":"VLOOKUP(OFFSET($B:$B,,MATCH(G$4,$B$4:$F$4,0)-1),OFFSET('C. PoC Adj Factor Scoring'!$E$5:$J$282,,MATCH(G$4,'C. PoC Adj Factor Scoring'!$E$3:$AH$3,0)-1),MATCH(G$2&\" Score\",'C. PoC Adj Factor Scoring'!$E$4:$J$4,0),TRUE)","v":3},{"$f":"VLOOKUP(OFFSET($B:$B,,MATCH(H$4,$B$4:$F$4,0)-1),OFFSET('C. PoC Adj Factor Scoring'!$E$5:$J$282,,MATCH(H$4,'C. PoC Adj Factor Scoring'!$E$3:$AH$3,0)-1),MATCH(H$2&\" Score\",'C. PoC Adj Factor Scoring'!$E$4:$J$4,0),TRUE)","v":1},{"$f":"VLOOKUP(OFFSET($B:$B,,MATCH(I$4,$B$4:$F$4,0)-1),OFFSET('C. PoC Adj Factor Scoring'!$E$5:$J$282,,MATCH(I$4,'C. PoC Adj Factor Scoring'!$E$3:$AH$3,0)-1),MATCH(I$2&\" Score\",'C. PoC Adj Factor Scoring'!$E$4:$J$4,0),TRUE)","v":1},{"$f":"VLOOKUP(OFFSET($B:$B,,MATCH(J$4,$B$4:$F$4,0)-1),OFFSET('C. PoC Adj Factor Scoring'!$E$5:$J$282,,MATCH(J$4,'C. PoC Adj Factor Scoring'!$E$3:$AH$3,0)-1),MATCH(J$2&\" Score\",'C. PoC Adj Factor Scoring'!$E$4:$J$4,0),TRUE)","v":1},{"$f":"VLOOKUP(OFFSET($B:$B,,MATCH(K$4,$B$4:$F$4,0)-1),OFFSET('C. PoC Adj Factor Scoring'!$E$5:$J$282,,MATCH(K$4,'C. PoC Adj Factor Scoring'!$E$3:$AH$3,0)-1),MATCH(K$2&\" Score\",'C. PoC Adj Factor Scoring'!$E$4:$J$4,0),TRUE)","v":1},{"$f":"VLOOKUP(OFFSET($B:$B,,MATCH(L$4,$B$4:$F$4,0)-1),OFFSET('C. PoC Adj Factor Scoring'!$E$5:$J$282,,MATCH(L$4,'C. PoC Adj Factor Scoring'!$E$3:$AH$3,0)-1),MATCH(L$2&\" Score\",'C. PoC Adj Factor Scoring'!$E$4:$J$4,0),TRUE)","v":1},{"$f":"VLOOKUP(OFFSET($B:$B,,MATCH(M$4,$B$4:$F$4,0)-1),OFFSET('C. PoC Adj Factor Scoring'!$E$5:$J$282,,MATCH(M$4,'C. PoC Adj Factor Scoring'!$E$3:$AH$3,0)-1),MATCH(M$2&\" Score\",'C. PoC Adj Factor Scoring'!$E$4:$J$4,0),TRUE)","v":1},{"$f":"VLOOKUP(OFFSET($B:$B,,MATCH(N$4,$B$4:$F$4,0)-1),OFFSET('C. PoC Adj Factor Scoring'!$E$5:$J$282,,MATCH(N$4,'C. PoC Adj Factor Scoring'!$E$3:$AH$3,0)-1),MATCH(N$2&\" Score\",'C. PoC Adj Factor Scoring'!$E$4:$J$4,0),TRUE)","v":1},{"$f":"VLOOKUP(OFFSET($B:$B,,MATCH(O$4,$B$4:$F$4,0)-1),OFFSET('C. PoC Adj Factor Scoring'!$E$5:$J$282,,MATCH(O$4,'C. PoC Adj Factor Scoring'!$E$3:$AH$3,0)-1),MATCH(O$2&\" Score\",'C. PoC Adj Factor Scoring'!$E$4:$J$4,0),TRUE)","v":1},{"$f":"VLOOKUP(OFFSET($B:$B,,MATCH(P$4,$B$4:$F$4,0)-1),OFFSET('C. PoC Adj Factor Scoring'!$E$5:$J$282,,MATCH(P$4,'C. PoC Adj Factor Scoring'!$E$3:$AH$3,0)-1),MATCH(P$2&\" Score\",'C. PoC Adj Factor Scoring'!$E$4:$J$4,0),TRUE)","v":1},{"$f":"VLOOKUP(OFFSET($B:$B,,MATCH(Q$4,$B$4:$F$4,0)-1),OFFSET('C. PoC Adj Factor Scoring'!$E$5:$J$282,,MATCH(Q$4,'C. PoC Adj Factor Scoring'!$E$3:$AH$3,0)-1),MATCH(Q$2&\" Score\",'C. PoC Adj Factor Scoring'!$E$4:$J$4,0),TRUE)","v":1},{"$f":"VLOOKUP(OFFSET($B:$B,,MATCH(R$4,$B$4:$F$4,0)-1),OFFSET('C. PoC Adj Factor Scoring'!$E$5:$J$282,,MATCH(R$4,'C. PoC Adj Factor Scoring'!$E$3:$AH$3,0)-1),MATCH(R$2&\" Score\",'C. PoC Adj Factor Scoring'!$E$4:$J$4,0),TRUE)","v":1},{"$f":"VLOOKUP(OFFSET($B:$B,,MATCH(S$4,$B$4:$F$4,0)-1),OFFSET('C. PoC Adj Factor Scoring'!$E$5:$J$282,,MATCH(S$4,'C. PoC Adj Factor Scoring'!$E$3:$AH$3,0)-1),MATCH(S$2&\" Score\",'C. PoC Adj Factor Scoring'!$E$4:$J$4,0),TRUE)","v":1},{"$f":"VLOOKUP(OFFSET($B:$B,,MATCH(T$4,$B$4:$F$4,0)-1),OFFSET('C. PoC Adj Factor Scoring'!$E$5:$J$282,,MATCH(T$4,'C. PoC Adj Factor Scoring'!$E$3:$AH$3,0)-1),MATCH(T$2&\" Score\",'C. PoC Adj Factor Scoring'!$E$4:$J$4,0),TRUE)","v":1},{"$f":"VLOOKUP(OFFSET($B:$B,,MATCH(U$4,$B$4:$F$4,0)-1),OFFSET('C. PoC Adj Factor Scoring'!$E$5:$J$282,,MATCH(U$4,'C. PoC Adj Factor Scoring'!$E$3:$AH$3,0)-1),MATCH(U$2&\" Score\",'C. PoC Adj Factor Scoring'!$E$4:$J$4,0),TRUE)","v":1},{"$f":"VLOOKUP(OFFSET($B:$B,,MATCH(V$4,$B$4:$F$4,0)-1),OFFSET('C. PoC Adj Factor Scoring'!$E$5:$J$282,,MATCH(V$4,'C. PoC Adj Factor Scoring'!$E$3:$AH$3,0)-1),MATCH(V$2&\" Score\",'C. PoC Adj Factor Scoring'!$E$4:$J$4,0),TRUE)","v":1},{"$f":"VLOOKUP(OFFSET($B:$B,,MATCH(W$4,$B$4:$F$4,0)-1),OFFSET('C. PoC Adj Factor Scoring'!$E$5:$J$282,,MATCH(W$4,'C. PoC Adj Factor Scoring'!$E$3:$AH$3,0)-1),MATCH(W$2&\" Score\",'C. PoC Adj Factor Scoring'!$E$4:$J$4,0),TRUE)","v":1},{"$f":"VLOOKUP(OFFSET($B:$B,,MATCH(X$4,$B$4:$F$4,0)-1),OFFSET('C. PoC Adj Factor Scoring'!$E$5:$J$282,,MATCH(X$4,'C. PoC Adj Factor Scoring'!$E$3:$AH$3,0)-1),MATCH(X$2&\" Score\",'C. PoC Adj Factor Scoring'!$E$4:$J$4,0),TRUE)","v":1},{"$f":"VLOOKUP(OFFSET($B:$B,,MATCH(Y$4,$B$4:$F$4,0)-1),OFFSET('C. PoC Adj Factor Scoring'!$E$5:$J$282,,MATCH(Y$4,'C. PoC Adj Factor Scoring'!$E$3:$AH$3,0)-1),MATCH(Y$2&\" Score\",'C. PoC Adj Factor Scoring'!$E$4:$J$4,0),TRUE)","v":1},{"$f":"VLOOKUP(OFFSET($B:$B,,MATCH(Z$4,$B$4:$F$4,0)-1),OFFSET('C. PoC Adj Factor Scoring'!$E$5:$J$282,,MATCH(Z$4,'C. PoC Adj Factor Scoring'!$E$3:$AH$3,0)-1),MATCH(Z$2&\" Score\",'C. PoC Adj Factor Scoring'!$E$4:$J$4,0),TRUE)","v":1},{"$f":"VLOOKUP(OFFSET($B:$B,,MATCH(AA$4,$B$4:$F$4,0)-1),OFFSET('C. PoC Adj Factor Scoring'!$E$5:$J$282,,MATCH(AA$4,'C. PoC Adj Factor Scoring'!$E$3:$AH$3,0)-1),MATCH(AA$2&\" Score\",'C. PoC Adj Factor Scoring'!$E$4:$J$4,0),TRUE)","v":2},{"$f":"VLOOKUP(OFFSET($B:$B,,MATCH(AB$4,$B$4:$F$4,0)-1),OFFSET('C. PoC Adj Factor Scoring'!$E$5:$J$282,,MATCH(AB$4,'C. PoC Adj Factor Scoring'!$E$3:$AH$3,0)-1),MATCH(AB$2&\" Score\",'C. PoC Adj Factor Scoring'!$E$4:$J$4,0),TRUE)","v":1},{"$f":"VLOOKUP(OFFSET($B:$B,,MATCH(AC$4,$B$4:$F$4,0)-1),OFFSET('C. PoC Adj Factor Scoring'!$E$5:$J$282,,MATCH(AC$4,'C. PoC Adj Factor Scoring'!$E$3:$AH$3,0)-1),MATCH(AC$2&\" Score\",'C. PoC Adj Factor Scoring'!$E$4:$J$4,0),TRUE)","v":1},{"$f":"VLOOKUP(OFFSET($B:$B,,MATCH(AD$4,$B$4:$F$4,0)-1),OFFSET('C. PoC Adj Factor Scoring'!$E$5:$J$282,,MATCH(AD$4,'C. PoC Adj Factor Scoring'!$E$3:$AH$3,0)-1),MATCH(AD$2&\" Score\",'C. PoC Adj Factor Scoring'!$E$4:$J$4,0),TRUE)","v":1},{"$f":"VLOOKUP(OFFSET($B:$B,,MATCH(AE$4,$B$4:$F$4,0)-1),OFFSET('C. PoC Adj Factor Scoring'!$E$5:$J$282,,MATCH(AE$4,'C. PoC Adj Factor Scoring'!$E$3:$AH$3,0)-1),MATCH(AE$2&\" Score\",'C. PoC Adj Factor Scoring'!$E$4:$J$4,0),TRUE)","v":1}]
[{"$f":"'A. Population Info'!A539","v":1001571356},{"$f":"'A. Population Info'!L539","v":"OIL_FR3"},{"$f":"'A. Population Info'!M539","v":0},{"$f":"'A. Population Info'!N539","v":0},{"$f":"'A. Population Info'!O539","v":0},{"$f":"'A. Population Info'!P539","v":0},{"$f":"VLOOKUP(OFFSET($B:$B,,MATCH(G$4,$B$4:$F$4,0)-1),OFFSET('C. PoC Adj Factor Scoring'!$E$5:$J$282,,MATCH(G$4,'C. PoC Adj Factor Scoring'!$E$3:$AH$3,0)-1),MATCH(G$2&\" Score\",'C. PoC Adj Factor Scoring'!$E$4:$J$4,0),TRUE)","v":3},{"$f":"VLOOKUP(OFFSET($B:$B,,MATCH(H$4,$B$4:$F$4,0)-1),OFFSET('C. PoC Adj Factor Scoring'!$E$5:$J$282,,MATCH(H$4,'C. PoC Adj Factor Scoring'!$E$3:$AH$3,0)-1),MATCH(H$2&\" Score\",'C. PoC Adj Factor Scoring'!$E$4:$J$4,0),TRUE)","v":1},{"$f":"VLOOKUP(OFFSET($B:$B,,MATCH(I$4,$B$4:$F$4,0)-1),OFFSET('C. PoC Adj Factor Scoring'!$E$5:$J$282,,MATCH(I$4,'C. PoC Adj Factor Scoring'!$E$3:$AH$3,0)-1),MATCH(I$2&\" Score\",'C. PoC Adj Factor Scoring'!$E$4:$J$4,0),TRUE)","v":1},{"$f":"VLOOKUP(OFFSET($B:$B,,MATCH(J$4,$B$4:$F$4,0)-1),OFFSET('C. PoC Adj Factor Scoring'!$E$5:$J$282,,MATCH(J$4,'C. PoC Adj Factor Scoring'!$E$3:$AH$3,0)-1),MATCH(J$2&\" Score\",'C. PoC Adj Factor Scoring'!$E$4:$J$4,0),TRUE)","v":1},{"$f":"VLOOKUP(OFFSET($B:$B,,MATCH(K$4,$B$4:$F$4,0)-1),OFFSET('C. PoC Adj Factor Scoring'!$E$5:$J$282,,MATCH(K$4,'C. PoC Adj Factor Scoring'!$E$3:$AH$3,0)-1),MATCH(K$2&\" Score\",'C. PoC Adj Factor Scoring'!$E$4:$J$4,0),TRUE)","v":1},{"$f":"VLOOKUP(OFFSET($B:$B,,MATCH(L$4,$B$4:$F$4,0)-1),OFFSET('C. PoC Adj Factor Scoring'!$E$5:$J$282,,MATCH(L$4,'C. PoC Adj Factor Scoring'!$E$3:$AH$3,0)-1),MATCH(L$2&\" Score\",'C. PoC Adj Factor Scoring'!$E$4:$J$4,0),TRUE)","v":1},{"$f":"VLOOKUP(OFFSET($B:$B,,MATCH(M$4,$B$4:$F$4,0)-1),OFFSET('C. PoC Adj Factor Scoring'!$E$5:$J$282,,MATCH(M$4,'C. PoC Adj Factor Scoring'!$E$3:$AH$3,0)-1),MATCH(M$2&\" Score\",'C. PoC Adj Factor Scoring'!$E$4:$J$4,0),TRUE)","v":1},{"$f":"VLOOKUP(OFFSET($B:$B,,MATCH(N$4,$B$4:$F$4,0)-1),OFFSET('C. PoC Adj Factor Scoring'!$E$5:$J$282,,MATCH(N$4,'C. PoC Adj Factor Scoring'!$E$3:$AH$3,0)-1),MATCH(N$2&\" Score\",'C. PoC Adj Factor Scoring'!$E$4:$J$4,0),TRUE)","v":1},{"$f":"VLOOKUP(OFFSET($B:$B,,MATCH(O$4,$B$4:$F$4,0)-1),OFFSET('C. PoC Adj Factor Scoring'!$E$5:$J$282,,MATCH(O$4,'C. PoC Adj Factor Scoring'!$E$3:$AH$3,0)-1),MATCH(O$2&\" Score\",'C. PoC Adj Factor Scoring'!$E$4:$J$4,0),TRUE)","v":1},{"$f":"VLOOKUP(OFFSET($B:$B,,MATCH(P$4,$B$4:$F$4,0)-1),OFFSET('C. PoC Adj Factor Scoring'!$E$5:$J$282,,MATCH(P$4,'C. PoC Adj Factor Scoring'!$E$3:$AH$3,0)-1),MATCH(P$2&\" Score\",'C. PoC Adj Factor Scoring'!$E$4:$J$4,0),TRUE)","v":1},{"$f":"VLOOKUP(OFFSET($B:$B,,MATCH(Q$4,$B$4:$F$4,0)-1),OFFSET('C. PoC Adj Factor Scoring'!$E$5:$J$282,,MATCH(Q$4,'C. PoC Adj Factor Scoring'!$E$3:$AH$3,0)-1),MATCH(Q$2&\" Score\",'C. PoC Adj Factor Scoring'!$E$4:$J$4,0),TRUE)","v":1},{"$f":"VLOOKUP(OFFSET($B:$B,,MATCH(R$4,$B$4:$F$4,0)-1),OFFSET('C. PoC Adj Factor Scoring'!$E$5:$J$282,,MATCH(R$4,'C. PoC Adj Factor Scoring'!$E$3:$AH$3,0)-1),MATCH(R$2&\" Score\",'C. PoC Adj Factor Scoring'!$E$4:$J$4,0),TRUE)","v":1},{"$f":"VLOOKUP(OFFSET($B:$B,,MATCH(S$4,$B$4:$F$4,0)-1),OFFSET('C. PoC Adj Factor Scoring'!$E$5:$J$282,,MATCH(S$4,'C. PoC Adj Factor Scoring'!$E$3:$AH$3,0)-1),MATCH(S$2&\" Score\",'C. PoC Adj Factor Scoring'!$E$4:$J$4,0),TRUE)","v":1},{"$f":"VLOOKUP(OFFSET($B:$B,,MATCH(T$4,$B$4:$F$4,0)-1),OFFSET('C. PoC Adj Factor Scoring'!$E$5:$J$282,,MATCH(T$4,'C. PoC Adj Factor Scoring'!$E$3:$AH$3,0)-1),MATCH(T$2&\" Score\",'C. PoC Adj Factor Scoring'!$E$4:$J$4,0),TRUE)","v":1},{"$f":"VLOOKUP(OFFSET($B:$B,,MATCH(U$4,$B$4:$F$4,0)-1),OFFSET('C. PoC Adj Factor Scoring'!$E$5:$J$282,,MATCH(U$4,'C. PoC Adj Factor Scoring'!$E$3:$AH$3,0)-1),MATCH(U$2&\" Score\",'C. PoC Adj Factor Scoring'!$E$4:$J$4,0),TRUE)","v":1},{"$f":"VLOOKUP(OFFSET($B:$B,,MATCH(V$4,$B$4:$F$4,0)-1),OFFSET('C. PoC Adj Factor Scoring'!$E$5:$J$282,,MATCH(V$4,'C. PoC Adj Factor Scoring'!$E$3:$AH$3,0)-1),MATCH(V$2&\" Score\",'C. PoC Adj Factor Scoring'!$E$4:$J$4,0),TRUE)","v":1},{"$f":"VLOOKUP(OFFSET($B:$B,,MATCH(W$4,$B$4:$F$4,0)-1),OFFSET('C. PoC Adj Factor Scoring'!$E$5:$J$282,,MATCH(W$4,'C. PoC Adj Factor Scoring'!$E$3:$AH$3,0)-1),MATCH(W$2&\" Score\",'C. PoC Adj Factor Scoring'!$E$4:$J$4,0),TRUE)","v":1},{"$f":"VLOOKUP(OFFSET($B:$B,,MATCH(X$4,$B$4:$F$4,0)-1),OFFSET('C. PoC Adj Factor Scoring'!$E$5:$J$282,,MATCH(X$4,'C. PoC Adj Factor Scoring'!$E$3:$AH$3,0)-1),MATCH(X$2&\" Score\",'C. PoC Adj Factor Scoring'!$E$4:$J$4,0),TRUE)","v":1},{"$f":"VLOOKUP(OFFSET($B:$B,,MATCH(Y$4,$B$4:$F$4,0)-1),OFFSET('C. PoC Adj Factor Scoring'!$E$5:$J$282,,MATCH(Y$4,'C. PoC Adj Factor Scoring'!$E$3:$AH$3,0)-1),MATCH(Y$2&\" Score\",'C. PoC Adj Factor Scoring'!$E$4:$J$4,0),TRUE)","v":1},{"$f":"VLOOKUP(OFFSET($B:$B,,MATCH(Z$4,$B$4:$F$4,0)-1),OFFSET('C. PoC Adj Factor Scoring'!$E$5:$J$282,,MATCH(Z$4,'C. PoC Adj Factor Scoring'!$E$3:$AH$3,0)-1),MATCH(Z$2&\" Score\",'C. PoC Adj Factor Scoring'!$E$4:$J$4,0),TRUE)","v":1},{"$f":"VLOOKUP(OFFSET($B:$B,,MATCH(AA$4,$B$4:$F$4,0)-1),OFFSET('C. PoC Adj Factor Scoring'!$E$5:$J$282,,MATCH(AA$4,'C. PoC Adj Factor Scoring'!$E$3:$AH$3,0)-1),MATCH(AA$2&\" Score\",'C. PoC Adj Factor Scoring'!$E$4:$J$4,0),TRUE)","v":2},{"$f":"VLOOKUP(OFFSET($B:$B,,MATCH(AB$4,$B$4:$F$4,0)-1),OFFSET('C. PoC Adj Factor Scoring'!$E$5:$J$282,,MATCH(AB$4,'C. PoC Adj Factor Scoring'!$E$3:$AH$3,0)-1),MATCH(AB$2&\" Score\",'C. PoC Adj Factor Scoring'!$E$4:$J$4,0),TRUE)","v":1},{"$f":"VLOOKUP(OFFSET($B:$B,,MATCH(AC$4,$B$4:$F$4,0)-1),OFFSET('C. PoC Adj Factor Scoring'!$E$5:$J$282,,MATCH(AC$4,'C. PoC Adj Factor Scoring'!$E$3:$AH$3,0)-1),MATCH(AC$2&\" Score\",'C. PoC Adj Factor Scoring'!$E$4:$J$4,0),TRUE)","v":1},{"$f":"VLOOKUP(OFFSET($B:$B,,MATCH(AD$4,$B$4:$F$4,0)-1),OFFSET('C. PoC Adj Factor Scoring'!$E$5:$J$282,,MATCH(AD$4,'C. PoC Adj Factor Scoring'!$E$3:$AH$3,0)-1),MATCH(AD$2&\" Score\",'C. PoC Adj Factor Scoring'!$E$4:$J$4,0),TRUE)","v":1},{"$f":"VLOOKUP(OFFSET($B:$B,,MATCH(AE$4,$B$4:$F$4,0)-1),OFFSET('C. PoC Adj Factor Scoring'!$E$5:$J$282,,MATCH(AE$4,'C. PoC Adj Factor Scoring'!$E$3:$AH$3,0)-1),MATCH(AE$2&\" Score\",'C. PoC Adj Factor Scoring'!$E$4:$J$4,0),TRUE)","v":1}]
[{"$f":"'A. Population Info'!A540","v":1001578289},{"$f":"'A. Population Info'!L540","v":"OIL"},{"$f":"'A. Population Info'!M540","v":0},{"$f":"'A. Population Info'!N540","v":0},{"$f":"'A. Population Info'!O540","v":0},{"$f":"'A. Population Info'!P540","v":0},{"$f":"VLOOKUP(OFFSET($B:$B,,MATCH(G$4,$B$4:$F$4,0)-1),OFFSET('C. PoC Adj Factor Scoring'!$E$5:$J$282,,MATCH(G$4,'C. PoC Adj Factor Scoring'!$E$3:$AH$3,0)-1),MATCH(G$2&\" Score\",'C. PoC Adj Factor Scoring'!$E$4:$J$4,0),TRUE)","v":4},{"$f":"VLOOKUP(OFFSET($B:$B,,MATCH(H$4,$B$4:$F$4,0)-1),OFFSET('C. PoC Adj Factor Scoring'!$E$5:$J$282,,MATCH(H$4,'C. PoC Adj Factor Scoring'!$E$3:$AH$3,0)-1),MATCH(H$2&\" Score\",'C. PoC Adj Factor Scoring'!$E$4:$J$4,0),TRUE)","v":1},{"$f":"VLOOKUP(OFFSET($B:$B,,MATCH(I$4,$B$4:$F$4,0)-1),OFFSET('C. PoC Adj Factor Scoring'!$E$5:$J$282,,MATCH(I$4,'C. PoC Adj Factor Scoring'!$E$3:$AH$3,0)-1),MATCH(I$2&\" Score\",'C. PoC Adj Factor Scoring'!$E$4:$J$4,0),TRUE)","v":1},{"$f":"VLOOKUP(OFFSET($B:$B,,MATCH(J$4,$B$4:$F$4,0)-1),OFFSET('C. PoC Adj Factor Scoring'!$E$5:$J$282,,MATCH(J$4,'C. PoC Adj Factor Scoring'!$E$3:$AH$3,0)-1),MATCH(J$2&\" Score\",'C. PoC Adj Factor Scoring'!$E$4:$J$4,0),TRUE)","v":1},{"$f":"VLOOKUP(OFFSET($B:$B,,MATCH(K$4,$B$4:$F$4,0)-1),OFFSET('C. PoC Adj Factor Scoring'!$E$5:$J$282,,MATCH(K$4,'C. PoC Adj Factor Scoring'!$E$3:$AH$3,0)-1),MATCH(K$2&\" Score\",'C. PoC Adj Factor Scoring'!$E$4:$J$4,0),TRUE)","v":1},{"$f":"VLOOKUP(OFFSET($B:$B,,MATCH(L$4,$B$4:$F$4,0)-1),OFFSET('C. PoC Adj Factor Scoring'!$E$5:$J$282,,MATCH(L$4,'C. PoC Adj Factor Scoring'!$E$3:$AH$3,0)-1),MATCH(L$2&\" Score\",'C. PoC Adj Factor Scoring'!$E$4:$J$4,0),TRUE)","v":1},{"$f":"VLOOKUP(OFFSET($B:$B,,MATCH(M$4,$B$4:$F$4,0)-1),OFFSET('C. PoC Adj Factor Scoring'!$E$5:$J$282,,MATCH(M$4,'C. PoC Adj Factor Scoring'!$E$3:$AH$3,0)-1),MATCH(M$2&\" Score\",'C. PoC Adj Factor Scoring'!$E$4:$J$4,0),TRUE)","v":1},{"$f":"VLOOKUP(OFFSET($B:$B,,MATCH(N$4,$B$4:$F$4,0)-1),OFFSET('C. PoC Adj Factor Scoring'!$E$5:$J$282,,MATCH(N$4,'C. PoC Adj Factor Scoring'!$E$3:$AH$3,0)-1),MATCH(N$2&\" Score\",'C. PoC Adj Factor Scoring'!$E$4:$J$4,0),TRUE)","v":1},{"$f":"VLOOKUP(OFFSET($B:$B,,MATCH(O$4,$B$4:$F$4,0)-1),OFFSET('C. PoC Adj Factor Scoring'!$E$5:$J$282,,MATCH(O$4,'C. PoC Adj Factor Scoring'!$E$3:$AH$3,0)-1),MATCH(O$2&\" Score\",'C. PoC Adj Factor Scoring'!$E$4:$J$4,0),TRUE)","v":1},{"$f":"VLOOKUP(OFFSET($B:$B,,MATCH(P$4,$B$4:$F$4,0)-1),OFFSET('C. PoC Adj Factor Scoring'!$E$5:$J$282,,MATCH(P$4,'C. PoC Adj Factor Scoring'!$E$3:$AH$3,0)-1),MATCH(P$2&\" Score\",'C. PoC Adj Factor Scoring'!$E$4:$J$4,0),TRUE)","v":1},{"$f":"VLOOKUP(OFFSET($B:$B,,MATCH(Q$4,$B$4:$F$4,0)-1),OFFSET('C. PoC Adj Factor Scoring'!$E$5:$J$282,,MATCH(Q$4,'C. PoC Adj Factor Scoring'!$E$3:$AH$3,0)-1),MATCH(Q$2&\" Score\",'C. PoC Adj Factor Scoring'!$E$4:$J$4,0),TRUE)","v":1},{"$f":"VLOOKUP(OFFSET($B:$B,,MATCH(R$4,$B$4:$F$4,0)-1),OFFSET('C. PoC Adj Factor Scoring'!$E$5:$J$282,,MATCH(R$4,'C. PoC Adj Factor Scoring'!$E$3:$AH$3,0)-1),MATCH(R$2&\" Score\",'C. PoC Adj Factor Scoring'!$E$4:$J$4,0),TRUE)","v":1},{"$f":"VLOOKUP(OFFSET($B:$B,,MATCH(S$4,$B$4:$F$4,0)-1),OFFSET('C. PoC Adj Factor Scoring'!$E$5:$J$282,,MATCH(S$4,'C. PoC Adj Factor Scoring'!$E$3:$AH$3,0)-1),MATCH(S$2&\" Score\",'C. PoC Adj Factor Scoring'!$E$4:$J$4,0),TRUE)","v":1},{"$f":"VLOOKUP(OFFSET($B:$B,,MATCH(T$4,$B$4:$F$4,0)-1),OFFSET('C. PoC Adj Factor Scoring'!$E$5:$J$282,,MATCH(T$4,'C. PoC Adj Factor Scoring'!$E$3:$AH$3,0)-1),MATCH(T$2&\" Score\",'C. PoC Adj Factor Scoring'!$E$4:$J$4,0),TRUE)","v":1},{"$f":"VLOOKUP(OFFSET($B:$B,,MATCH(U$4,$B$4:$F$4,0)-1),OFFSET('C. PoC Adj Factor Scoring'!$E$5:$J$282,,MATCH(U$4,'C. PoC Adj Factor Scoring'!$E$3:$AH$3,0)-1),MATCH(U$2&\" Score\",'C. PoC Adj Factor Scoring'!$E$4:$J$4,0),TRUE)","v":1},{"$f":"VLOOKUP(OFFSET($B:$B,,MATCH(V$4,$B$4:$F$4,0)-1),OFFSET('C. PoC Adj Factor Scoring'!$E$5:$J$282,,MATCH(V$4,'C. PoC Adj Factor Scoring'!$E$3:$AH$3,0)-1),MATCH(V$2&\" Score\",'C. PoC Adj Factor Scoring'!$E$4:$J$4,0),TRUE)","v":1},{"$f":"VLOOKUP(OFFSET($B:$B,,MATCH(W$4,$B$4:$F$4,0)-1),OFFSET('C. PoC Adj Factor Scoring'!$E$5:$J$282,,MATCH(W$4,'C. PoC Adj Factor Scoring'!$E$3:$AH$3,0)-1),MATCH(W$2&\" Score\",'C. PoC Adj Factor Scoring'!$E$4:$J$4,0),TRUE)","v":1},{"$f":"VLOOKUP(OFFSET($B:$B,,MATCH(X$4,$B$4:$F$4,0)-1),OFFSET('C. PoC Adj Factor Scoring'!$E$5:$J$282,,MATCH(X$4,'C. PoC Adj Factor Scoring'!$E$3:$AH$3,0)-1),MATCH(X$2&\" Score\",'C. PoC Adj Factor Scoring'!$E$4:$J$4,0),TRUE)","v":1},{"$f":"VLOOKUP(OFFSET($B:$B,,MATCH(Y$4,$B$4:$F$4,0)-1),OFFSET('C. PoC Adj Factor Scoring'!$E$5:$J$282,,MATCH(Y$4,'C. PoC Adj Factor Scoring'!$E$3:$AH$3,0)-1),MATCH(Y$2&\" Score\",'C. PoC Adj Factor Scoring'!$E$4:$J$4,0),TRUE)","v":1},{"$f":"VLOOKUP(OFFSET($B:$B,,MATCH(Z$4,$B$4:$F$4,0)-1),OFFSET('C. PoC Adj Factor Scoring'!$E$5:$J$282,,MATCH(Z$4,'C. PoC Adj Factor Scoring'!$E$3:$AH$3,0)-1),MATCH(Z$2&\" Score\",'C. PoC Adj Factor Scoring'!$E$4:$J$4,0),TRUE)","v":1},{"$f":"VLOOKUP(OFFSET($B:$B,,MATCH(AA$4,$B$4:$F$4,0)-1),OFFSET('C. PoC Adj Factor Scoring'!$E$5:$J$282,,MATCH(AA$4,'C. PoC Adj Factor Scoring'!$E$3:$AH$3,0)-1),MATCH(AA$2&\" Score\",'C. PoC Adj Factor Scoring'!$E$4:$J$4,0),TRUE)","v":3},{"$f":"VLOOKUP(OFFSET($B:$B,,MATCH(AB$4,$B$4:$F$4,0)-1),OFFSET('C. PoC Adj Factor Scoring'!$E$5:$J$282,,MATCH(AB$4,'C. PoC Adj Factor Scoring'!$E$3:$AH$3,0)-1),MATCH(AB$2&\" Score\",'C. PoC Adj Factor Scoring'!$E$4:$J$4,0),TRUE)","v":1},{"$f":"VLOOKUP(OFFSET($B:$B,,MATCH(AC$4,$B$4:$F$4,0)-1),OFFSET('C. PoC Adj Factor Scoring'!$E$5:$J$282,,MATCH(AC$4,'C. PoC Adj Factor Scoring'!$E$3:$AH$3,0)-1),MATCH(AC$2&\" Score\",'C. PoC Adj Factor Scoring'!$E$4:$J$4,0),TRUE)","v":1},{"$f":"VLOOKUP(OFFSET($B:$B,,MATCH(AD$4,$B$4:$F$4,0)-1),OFFSET('C. PoC Adj Factor Scoring'!$E$5:$J$282,,MATCH(AD$4,'C. PoC Adj Factor Scoring'!$E$3:$AH$3,0)-1),MATCH(AD$2&\" Score\",'C. PoC Adj Factor Scoring'!$E$4:$J$4,0),TRUE)","v":1},{"$f":"VLOOKUP(OFFSET($B:$B,,MATCH(AE$4,$B$4:$F$4,0)-1),OFFSET('C. PoC Adj Factor Scoring'!$E$5:$J$282,,MATCH(AE$4,'C. PoC Adj Factor Scoring'!$E$3:$AH$3,0)-1),MATCH(AE$2&\" Score\",'C. PoC Adj Factor Scoring'!$E$4:$J$4,0),TRUE)","v":1}]
[{"$f":"'A. Population Info'!A541","v":1001584020},{"$f":"'A. Population Info'!L541","v":"OIL"},{"$f":"'A. Population Info'!M541","v":0},{"$f":"'A. Population Info'!N541","v":0},{"$f":"'A. Population Info'!O541","v":0},{"$f":"'A. Population Info'!P541","v":0},{"$f":"VLOOKUP(OFFSET($B:$B,,MATCH(G$4,$B$4:$F$4,0)-1),OFFSET('C. PoC Adj Factor Scoring'!$E$5:$J$282,,MATCH(G$4,'C. PoC Adj Factor Scoring'!$E$3:$AH$3,0)-1),MATCH(G$2&\" Score\",'C. PoC Adj Factor Scoring'!$E$4:$J$4,0),TRUE)","v":4},{"$f":"VLOOKUP(OFFSET($B:$B,,MATCH(H$4,$B$4:$F$4,0)-1),OFFSET('C. PoC Adj Factor Scoring'!$E$5:$J$282,,MATCH(H$4,'C. PoC Adj Factor Scoring'!$E$3:$AH$3,0)-1),MATCH(H$2&\" Score\",'C. PoC Adj Factor Scoring'!$E$4:$J$4,0),TRUE)","v":1},{"$f":"VLOOKUP(OFFSET($B:$B,,MATCH(I$4,$B$4:$F$4,0)-1),OFFSET('C. PoC Adj Factor Scoring'!$E$5:$J$282,,MATCH(I$4,'C. PoC Adj Factor Scoring'!$E$3:$AH$3,0)-1),MATCH(I$2&\" Score\",'C. PoC Adj Factor Scoring'!$E$4:$J$4,0),TRUE)","v":1},{"$f":"VLOOKUP(OFFSET($B:$B,,MATCH(J$4,$B$4:$F$4,0)-1),OFFSET('C. PoC Adj Factor Scoring'!$E$5:$J$282,,MATCH(J$4,'C. PoC Adj Factor Scoring'!$E$3:$AH$3,0)-1),MATCH(J$2&\" Score\",'C. PoC Adj Factor Scoring'!$E$4:$J$4,0),TRUE)","v":1},{"$f":"VLOOKUP(OFFSET($B:$B,,MATCH(K$4,$B$4:$F$4,0)-1),OFFSET('C. PoC Adj Factor Scoring'!$E$5:$J$282,,MATCH(K$4,'C. PoC Adj Factor Scoring'!$E$3:$AH$3,0)-1),MATCH(K$2&\" Score\",'C. PoC Adj Factor Scoring'!$E$4:$J$4,0),TRUE)","v":1},{"$f":"VLOOKUP(OFFSET($B:$B,,MATCH(L$4,$B$4:$F$4,0)-1),OFFSET('C. PoC Adj Factor Scoring'!$E$5:$J$282,,MATCH(L$4,'C. PoC Adj Factor Scoring'!$E$3:$AH$3,0)-1),MATCH(L$2&\" Score\",'C. PoC Adj Factor Scoring'!$E$4:$J$4,0),TRUE)","v":1},{"$f":"VLOOKUP(OFFSET($B:$B,,MATCH(M$4,$B$4:$F$4,0)-1),OFFSET('C. PoC Adj Factor Scoring'!$E$5:$J$282,,MATCH(M$4,'C. PoC Adj Factor Scoring'!$E$3:$AH$3,0)-1),MATCH(M$2&\" Score\",'C. PoC Adj Factor Scoring'!$E$4:$J$4,0),TRUE)","v":1},{"$f":"VLOOKUP(OFFSET($B:$B,,MATCH(N$4,$B$4:$F$4,0)-1),OFFSET('C. PoC Adj Factor Scoring'!$E$5:$J$282,,MATCH(N$4,'C. PoC Adj Factor Scoring'!$E$3:$AH$3,0)-1),MATCH(N$2&\" Score\",'C. PoC Adj Factor Scoring'!$E$4:$J$4,0),TRUE)","v":1},{"$f":"VLOOKUP(OFFSET($B:$B,,MATCH(O$4,$B$4:$F$4,0)-1),OFFSET('C. PoC Adj Factor Scoring'!$E$5:$J$282,,MATCH(O$4,'C. PoC Adj Factor Scoring'!$E$3:$AH$3,0)-1),MATCH(O$2&\" Score\",'C. PoC Adj Factor Scoring'!$E$4:$J$4,0),TRUE)","v":1},{"$f":"VLOOKUP(OFFSET($B:$B,,MATCH(P$4,$B$4:$F$4,0)-1),OFFSET('C. PoC Adj Factor Scoring'!$E$5:$J$282,,MATCH(P$4,'C. PoC Adj Factor Scoring'!$E$3:$AH$3,0)-1),MATCH(P$2&\" Score\",'C. PoC Adj Factor Scoring'!$E$4:$J$4,0),TRUE)","v":1},{"$f":"VLOOKUP(OFFSET($B:$B,,MATCH(Q$4,$B$4:$F$4,0)-1),OFFSET('C. PoC Adj Factor Scoring'!$E$5:$J$282,,MATCH(Q$4,'C. PoC Adj Factor Scoring'!$E$3:$AH$3,0)-1),MATCH(Q$2&\" Score\",'C. PoC Adj Factor Scoring'!$E$4:$J$4,0),TRUE)","v":1},{"$f":"VLOOKUP(OFFSET($B:$B,,MATCH(R$4,$B$4:$F$4,0)-1),OFFSET('C. PoC Adj Factor Scoring'!$E$5:$J$282,,MATCH(R$4,'C. PoC Adj Factor Scoring'!$E$3:$AH$3,0)-1),MATCH(R$2&\" Score\",'C. PoC Adj Factor Scoring'!$E$4:$J$4,0),TRUE)","v":1},{"$f":"VLOOKUP(OFFSET($B:$B,,MATCH(S$4,$B$4:$F$4,0)-1),OFFSET('C. PoC Adj Factor Scoring'!$E$5:$J$282,,MATCH(S$4,'C. PoC Adj Factor Scoring'!$E$3:$AH$3,0)-1),MATCH(S$2&\" Score\",'C. PoC Adj Factor Scoring'!$E$4:$J$4,0),TRUE)","v":1},{"$f":"VLOOKUP(OFFSET($B:$B,,MATCH(T$4,$B$4:$F$4,0)-1),OFFSET('C. PoC Adj Factor Scoring'!$E$5:$J$282,,MATCH(T$4,'C. PoC Adj Factor Scoring'!$E$3:$AH$3,0)-1),MATCH(T$2&\" Score\",'C. PoC Adj Factor Scoring'!$E$4:$J$4,0),TRUE)","v":1},{"$f":"VLOOKUP(OFFSET($B:$B,,MATCH(U$4,$B$4:$F$4,0)-1),OFFSET('C. PoC Adj Factor Scoring'!$E$5:$J$282,,MATCH(U$4,'C. PoC Adj Factor Scoring'!$E$3:$AH$3,0)-1),MATCH(U$2&\" Score\",'C. PoC Adj Factor Scoring'!$E$4:$J$4,0),TRUE)","v":1},{"$f":"VLOOKUP(OFFSET($B:$B,,MATCH(V$4,$B$4:$F$4,0)-1),OFFSET('C. PoC Adj Factor Scoring'!$E$5:$J$282,,MATCH(V$4,'C. PoC Adj Factor Scoring'!$E$3:$AH$3,0)-1),MATCH(V$2&\" Score\",'C. PoC Adj Factor Scoring'!$E$4:$J$4,0),TRUE)","v":1},{"$f":"VLOOKUP(OFFSET($B:$B,,MATCH(W$4,$B$4:$F$4,0)-1),OFFSET('C. PoC Adj Factor Scoring'!$E$5:$J$282,,MATCH(W$4,'C. PoC Adj Factor Scoring'!$E$3:$AH$3,0)-1),MATCH(W$2&\" Score\",'C. PoC Adj Factor Scoring'!$E$4:$J$4,0),TRUE)","v":1},{"$f":"VLOOKUP(OFFSET($B:$B,,MATCH(X$4,$B$4:$F$4,0)-1),OFFSET('C. PoC Adj Factor Scoring'!$E$5:$J$282,,MATCH(X$4,'C. PoC Adj Factor Scoring'!$E$3:$AH$3,0)-1),MATCH(X$2&\" Score\",'C. PoC Adj Factor Scoring'!$E$4:$J$4,0),TRUE)","v":1},{"$f":"VLOOKUP(OFFSET($B:$B,,MATCH(Y$4,$B$4:$F$4,0)-1),OFFSET('C. PoC Adj Factor Scoring'!$E$5:$J$282,,MATCH(Y$4,'C. PoC Adj Factor Scoring'!$E$3:$AH$3,0)-1),MATCH(Y$2&\" Score\",'C. PoC Adj Factor Scoring'!$E$4:$J$4,0),TRUE)","v":1},{"$f":"VLOOKUP(OFFSET($B:$B,,MATCH(Z$4,$B$4:$F$4,0)-1),OFFSET('C. PoC Adj Factor Scoring'!$E$5:$J$282,,MATCH(Z$4,'C. PoC Adj Factor Scoring'!$E$3:$AH$3,0)-1),MATCH(Z$2&\" Score\",'C. PoC Adj Factor Scoring'!$E$4:$J$4,0),TRUE)","v":1},{"$f":"VLOOKUP(OFFSET($B:$B,,MATCH(AA$4,$B$4:$F$4,0)-1),OFFSET('C. PoC Adj Factor Scoring'!$E$5:$J$282,,MATCH(AA$4,'C. PoC Adj Factor Scoring'!$E$3:$AH$3,0)-1),MATCH(AA$2&\" Score\",'C. PoC Adj Factor Scoring'!$E$4:$J$4,0),TRUE)","v":3},{"$f":"VLOOKUP(OFFSET($B:$B,,MATCH(AB$4,$B$4:$F$4,0)-1),OFFSET('C. PoC Adj Factor Scoring'!$E$5:$J$282,,MATCH(AB$4,'C. PoC Adj Factor Scoring'!$E$3:$AH$3,0)-1),MATCH(AB$2&\" Score\",'C. PoC Adj Factor Scoring'!$E$4:$J$4,0),TRUE)","v":1},{"$f":"VLOOKUP(OFFSET($B:$B,,MATCH(AC$4,$B$4:$F$4,0)-1),OFFSET('C. PoC Adj Factor Scoring'!$E$5:$J$282,,MATCH(AC$4,'C. PoC Adj Factor Scoring'!$E$3:$AH$3,0)-1),MATCH(AC$2&\" Score\",'C. PoC Adj Factor Scoring'!$E$4:$J$4,0),TRUE)","v":1},{"$f":"VLOOKUP(OFFSET($B:$B,,MATCH(AD$4,$B$4:$F$4,0)-1),OFFSET('C. PoC Adj Factor Scoring'!$E$5:$J$282,,MATCH(AD$4,'C. PoC Adj Factor Scoring'!$E$3:$AH$3,0)-1),MATCH(AD$2&\" Score\",'C. PoC Adj Factor Scoring'!$E$4:$J$4,0),TRUE)","v":1},{"$f":"VLOOKUP(OFFSET($B:$B,,MATCH(AE$4,$B$4:$F$4,0)-1),OFFSET('C. PoC Adj Factor Scoring'!$E$5:$J$282,,MATCH(AE$4,'C. PoC Adj Factor Scoring'!$E$3:$AH$3,0)-1),MATCH(AE$2&\" Score\",'C. PoC Adj Factor Scoring'!$E$4:$J$4,0),TRUE)","v":1}]
[{"$f":"'A. Population Info'!A542","v":1001585103},{"$f":"'A. Population Info'!L542","v":"OIL"},{"$f":"'A. Population Info'!M542","v":0},{"$f":"'A. Population Info'!N542","v":0},{"$f":"'A. Population Info'!O542","v":0},{"$f":"'A. Population Info'!P542","v":0},{"$f":"VLOOKUP(OFFSET($B:$B,,MATCH(G$4,$B$4:$F$4,0)-1),OFFSET('C. PoC Adj Factor Scoring'!$E$5:$J$282,,MATCH(G$4,'C. PoC Adj Factor Scoring'!$E$3:$AH$3,0)-1),MATCH(G$2&\" Score\",'C. PoC Adj Factor Scoring'!$E$4:$J$4,0),TRUE)","v":4},{"$f":"VLOOKUP(OFFSET($B:$B,,MATCH(H$4,$B$4:$F$4,0)-1),OFFSET('C. PoC Adj Factor Scoring'!$E$5:$J$282,,MATCH(H$4,'C. PoC Adj Factor Scoring'!$E$3:$AH$3,0)-1),MATCH(H$2&\" Score\",'C. PoC Adj Factor Scoring'!$E$4:$J$4,0),TRUE)","v":1},{"$f":"VLOOKUP(OFFSET($B:$B,,MATCH(I$4,$B$4:$F$4,0)-1),OFFSET('C. PoC Adj Factor Scoring'!$E$5:$J$282,,MATCH(I$4,'C. PoC Adj Factor Scoring'!$E$3:$AH$3,0)-1),MATCH(I$2&\" Score\",'C. PoC Adj Factor Scoring'!$E$4:$J$4,0),TRUE)","v":1},{"$f":"VLOOKUP(OFFSET($B:$B,,MATCH(J$4,$B$4:$F$4,0)-1),OFFSET('C. PoC Adj Factor Scoring'!$E$5:$J$282,,MATCH(J$4,'C. PoC Adj Factor Scoring'!$E$3:$AH$3,0)-1),MATCH(J$2&\" Score\",'C. PoC Adj Factor Scoring'!$E$4:$J$4,0),TRUE)","v":1},{"$f":"VLOOKUP(OFFSET($B:$B,,MATCH(K$4,$B$4:$F$4,0)-1),OFFSET('C. PoC Adj Factor Scoring'!$E$5:$J$282,,MATCH(K$4,'C. PoC Adj Factor Scoring'!$E$3:$AH$3,0)-1),MATCH(K$2&\" Score\",'C. PoC Adj Factor Scoring'!$E$4:$J$4,0),TRUE)","v":1},{"$f":"VLOOKUP(OFFSET($B:$B,,MATCH(L$4,$B$4:$F$4,0)-1),OFFSET('C. PoC Adj Factor Scoring'!$E$5:$J$282,,MATCH(L$4,'C. PoC Adj Factor Scoring'!$E$3:$AH$3,0)-1),MATCH(L$2&\" Score\",'C. PoC Adj Factor Scoring'!$E$4:$J$4,0),TRUE)","v":1},{"$f":"VLOOKUP(OFFSET($B:$B,,MATCH(M$4,$B$4:$F$4,0)-1),OFFSET('C. PoC Adj Factor Scoring'!$E$5:$J$282,,MATCH(M$4,'C. PoC Adj Factor Scoring'!$E$3:$AH$3,0)-1),MATCH(M$2&\" Score\",'C. PoC Adj Factor Scoring'!$E$4:$J$4,0),TRUE)","v":1},{"$f":"VLOOKUP(OFFSET($B:$B,,MATCH(N$4,$B$4:$F$4,0)-1),OFFSET('C. PoC Adj Factor Scoring'!$E$5:$J$282,,MATCH(N$4,'C. PoC Adj Factor Scoring'!$E$3:$AH$3,0)-1),MATCH(N$2&\" Score\",'C. PoC Adj Factor Scoring'!$E$4:$J$4,0),TRUE)","v":1},{"$f":"VLOOKUP(OFFSET($B:$B,,MATCH(O$4,$B$4:$F$4,0)-1),OFFSET('C. PoC Adj Factor Scoring'!$E$5:$J$282,,MATCH(O$4,'C. PoC Adj Factor Scoring'!$E$3:$AH$3,0)-1),MATCH(O$2&\" Score\",'C. PoC Adj Factor Scoring'!$E$4:$J$4,0),TRUE)","v":1},{"$f":"VLOOKUP(OFFSET($B:$B,,MATCH(P$4,$B$4:$F$4,0)-1),OFFSET('C. PoC Adj Factor Scoring'!$E$5:$J$282,,MATCH(P$4,'C. PoC Adj Factor Scoring'!$E$3:$AH$3,0)-1),MATCH(P$2&\" Score\",'C. PoC Adj Factor Scoring'!$E$4:$J$4,0),TRUE)","v":1},{"$f":"VLOOKUP(OFFSET($B:$B,,MATCH(Q$4,$B$4:$F$4,0)-1),OFFSET('C. PoC Adj Factor Scoring'!$E$5:$J$282,,MATCH(Q$4,'C. PoC Adj Factor Scoring'!$E$3:$AH$3,0)-1),MATCH(Q$2&\" Score\",'C. PoC Adj Factor Scoring'!$E$4:$J$4,0),TRUE)","v":1},{"$f":"VLOOKUP(OFFSET($B:$B,,MATCH(R$4,$B$4:$F$4,0)-1),OFFSET('C. PoC Adj Factor Scoring'!$E$5:$J$282,,MATCH(R$4,'C. PoC Adj Factor Scoring'!$E$3:$AH$3,0)-1),MATCH(R$2&\" Score\",'C. PoC Adj Factor Scoring'!$E$4:$J$4,0),TRUE)","v":1},{"$f":"VLOOKUP(OFFSET($B:$B,,MATCH(S$4,$B$4:$F$4,0)-1),OFFSET('C. PoC Adj Factor Scoring'!$E$5:$J$282,,MATCH(S$4,'C. PoC Adj Factor Scoring'!$E$3:$AH$3,0)-1),MATCH(S$2&\" Score\",'C. PoC Adj Factor Scoring'!$E$4:$J$4,0),TRUE)","v":1},{"$f":"VLOOKUP(OFFSET($B:$B,,MATCH(T$4,$B$4:$F$4,0)-1),OFFSET('C. PoC Adj Factor Scoring'!$E$5:$J$282,,MATCH(T$4,'C. PoC Adj Factor Scoring'!$E$3:$AH$3,0)-1),MATCH(T$2&\" Score\",'C. PoC Adj Factor Scoring'!$E$4:$J$4,0),TRUE)","v":1},{"$f":"VLOOKUP(OFFSET($B:$B,,MATCH(U$4,$B$4:$F$4,0)-1),OFFSET('C. PoC Adj Factor Scoring'!$E$5:$J$282,,MATCH(U$4,'C. PoC Adj Factor Scoring'!$E$3:$AH$3,0)-1),MATCH(U$2&\" Score\",'C. PoC Adj Factor Scoring'!$E$4:$J$4,0),TRUE)","v":1},{"$f":"VLOOKUP(OFFSET($B:$B,,MATCH(V$4,$B$4:$F$4,0)-1),OFFSET('C. PoC Adj Factor Scoring'!$E$5:$J$282,,MATCH(V$4,'C. PoC Adj Factor Scoring'!$E$3:$AH$3,0)-1),MATCH(V$2&\" Score\",'C. PoC Adj Factor Scoring'!$E$4:$J$4,0),TRUE)","v":1},{"$f":"VLOOKUP(OFFSET($B:$B,,MATCH(W$4,$B$4:$F$4,0)-1),OFFSET('C. PoC Adj Factor Scoring'!$E$5:$J$282,,MATCH(W$4,'C. PoC Adj Factor Scoring'!$E$3:$AH$3,0)-1),MATCH(W$2&\" Score\",'C. PoC Adj Factor Scoring'!$E$4:$J$4,0),TRUE)","v":1},{"$f":"VLOOKUP(OFFSET($B:$B,,MATCH(X$4,$B$4:$F$4,0)-1),OFFSET('C. PoC Adj Factor Scoring'!$E$5:$J$282,,MATCH(X$4,'C. PoC Adj Factor Scoring'!$E$3:$AH$3,0)-1),MATCH(X$2&\" Score\",'C. PoC Adj Factor Scoring'!$E$4:$J$4,0),TRUE)","v":1},{"$f":"VLOOKUP(OFFSET($B:$B,,MATCH(Y$4,$B$4:$F$4,0)-1),OFFSET('C. PoC Adj Factor Scoring'!$E$5:$J$282,,MATCH(Y$4,'C. PoC Adj Factor Scoring'!$E$3:$AH$3,0)-1),MATCH(Y$2&\" Score\",'C. PoC Adj Factor Scoring'!$E$4:$J$4,0),TRUE)","v":1},{"$f":"VLOOKUP(OFFSET($B:$B,,MATCH(Z$4,$B$4:$F$4,0)-1),OFFSET('C. PoC Adj Factor Scoring'!$E$5:$J$282,,MATCH(Z$4,'C. PoC Adj Factor Scoring'!$E$3:$AH$3,0)-1),MATCH(Z$2&\" Score\",'C. PoC Adj Factor Scoring'!$E$4:$J$4,0),TRUE)","v":1},{"$f":"VLOOKUP(OFFSET($B:$B,,MATCH(AA$4,$B$4:$F$4,0)-1),OFFSET('C. PoC Adj Factor Scoring'!$E$5:$J$282,,MATCH(AA$4,'C. PoC Adj Factor Scoring'!$E$3:$AH$3,0)-1),MATCH(AA$2&\" Score\",'C. PoC Adj Factor Scoring'!$E$4:$J$4,0),TRUE)","v":3},{"$f":"VLOOKUP(OFFSET($B:$B,,MATCH(AB$4,$B$4:$F$4,0)-1),OFFSET('C. PoC Adj Factor Scoring'!$E$5:$J$282,,MATCH(AB$4,'C. PoC Adj Factor Scoring'!$E$3:$AH$3,0)-1),MATCH(AB$2&\" Score\",'C. PoC Adj Factor Scoring'!$E$4:$J$4,0),TRUE)","v":1},{"$f":"VLOOKUP(OFFSET($B:$B,,MATCH(AC$4,$B$4:$F$4,0)-1),OFFSET('C. PoC Adj Factor Scoring'!$E$5:$J$282,,MATCH(AC$4,'C. PoC Adj Factor Scoring'!$E$3:$AH$3,0)-1),MATCH(AC$2&\" Score\",'C. PoC Adj Factor Scoring'!$E$4:$J$4,0),TRUE)","v":1},{"$f":"VLOOKUP(OFFSET($B:$B,,MATCH(AD$4,$B$4:$F$4,0)-1),OFFSET('C. PoC Adj Factor Scoring'!$E$5:$J$282,,MATCH(AD$4,'C. PoC Adj Factor Scoring'!$E$3:$AH$3,0)-1),MATCH(AD$2&\" Score\",'C. PoC Adj Factor Scoring'!$E$4:$J$4,0),TRUE)","v":1},{"$f":"VLOOKUP(OFFSET($B:$B,,MATCH(AE$4,$B$4:$F$4,0)-1),OFFSET('C. PoC Adj Factor Scoring'!$E$5:$J$282,,MATCH(AE$4,'C. PoC Adj Factor Scoring'!$E$3:$AH$3,0)-1),MATCH(AE$2&\" Score\",'C. PoC Adj Factor Scoring'!$E$4:$J$4,0),TRUE)","v":1}]
[{"$f":"'A. Population Info'!A543","v":1001589233},{"$f":"'A. Population Info'!L543","v":"OIL"},{"$f":"'A. Population Info'!M543","v":0},{"$f":"'A. Population Info'!N543","v":0},{"$f":"'A. Population Info'!O543","v":0},{"$f":"'A. Population Info'!P543","v":0},{"$f":"VLOOKUP(OFFSET($B:$B,,MATCH(G$4,$B$4:$F$4,0)-1),OFFSET('C. PoC Adj Factor Scoring'!$E$5:$J$282,,MATCH(G$4,'C. PoC Adj Factor Scoring'!$E$3:$AH$3,0)-1),MATCH(G$2&\" Score\",'C. PoC Adj Factor Scoring'!$E$4:$J$4,0),TRUE)","v":4},{"$f":"VLOOKUP(OFFSET($B:$B,,MATCH(H$4,$B$4:$F$4,0)-1),OFFSET('C. PoC Adj Factor Scoring'!$E$5:$J$282,,MATCH(H$4,'C. PoC Adj Factor Scoring'!$E$3:$AH$3,0)-1),MATCH(H$2&\" Score\",'C. PoC Adj Factor Scoring'!$E$4:$J$4,0),TRUE)","v":1},{"$f":"VLOOKUP(OFFSET($B:$B,,MATCH(I$4,$B$4:$F$4,0)-1),OFFSET('C. PoC Adj Factor Scoring'!$E$5:$J$282,,MATCH(I$4,'C. PoC Adj Factor Scoring'!$E$3:$AH$3,0)-1),MATCH(I$2&\" Score\",'C. PoC Adj Factor Scoring'!$E$4:$J$4,0),TRUE)","v":1},{"$f":"VLOOKUP(OFFSET($B:$B,,MATCH(J$4,$B$4:$F$4,0)-1),OFFSET('C. PoC Adj Factor Scoring'!$E$5:$J$282,,MATCH(J$4,'C. PoC Adj Factor Scoring'!$E$3:$AH$3,0)-1),MATCH(J$2&\" Score\",'C. PoC Adj Factor Scoring'!$E$4:$J$4,0),TRUE)","v":1},{"$f":"VLOOKUP(OFFSET($B:$B,,MATCH(K$4,$B$4:$F$4,0)-1),OFFSET('C. PoC Adj Factor Scoring'!$E$5:$J$282,,MATCH(K$4,'C. PoC Adj Factor Scoring'!$E$3:$AH$3,0)-1),MATCH(K$2&\" Score\",'C. PoC Adj Factor Scoring'!$E$4:$J$4,0),TRUE)","v":1},{"$f":"VLOOKUP(OFFSET($B:$B,,MATCH(L$4,$B$4:$F$4,0)-1),OFFSET('C. PoC Adj Factor Scoring'!$E$5:$J$282,,MATCH(L$4,'C. PoC Adj Factor Scoring'!$E$3:$AH$3,0)-1),MATCH(L$2&\" Score\",'C. PoC Adj Factor Scoring'!$E$4:$J$4,0),TRUE)","v":1},{"$f":"VLOOKUP(OFFSET($B:$B,,MATCH(M$4,$B$4:$F$4,0)-1),OFFSET('C. PoC Adj Factor Scoring'!$E$5:$J$282,,MATCH(M$4,'C. PoC Adj Factor Scoring'!$E$3:$AH$3,0)-1),MATCH(M$2&\" Score\",'C. PoC Adj Factor Scoring'!$E$4:$J$4,0),TRUE)","v":1},{"$f":"VLOOKUP(OFFSET($B:$B,,MATCH(N$4,$B$4:$F$4,0)-1),OFFSET('C. PoC Adj Factor Scoring'!$E$5:$J$282,,MATCH(N$4,'C. PoC Adj Factor Scoring'!$E$3:$AH$3,0)-1),MATCH(N$2&\" Score\",'C. PoC Adj Factor Scoring'!$E$4:$J$4,0),TRUE)","v":1},{"$f":"VLOOKUP(OFFSET($B:$B,,MATCH(O$4,$B$4:$F$4,0)-1),OFFSET('C. PoC Adj Factor Scoring'!$E$5:$J$282,,MATCH(O$4,'C. PoC Adj Factor Scoring'!$E$3:$AH$3,0)-1),MATCH(O$2&\" Score\",'C. PoC Adj Factor Scoring'!$E$4:$J$4,0),TRUE)","v":1},{"$f":"VLOOKUP(OFFSET($B:$B,,MATCH(P$4,$B$4:$F$4,0)-1),OFFSET('C. PoC Adj Factor Scoring'!$E$5:$J$282,,MATCH(P$4,'C. PoC Adj Factor Scoring'!$E$3:$AH$3,0)-1),MATCH(P$2&\" Score\",'C. PoC Adj Factor Scoring'!$E$4:$J$4,0),TRUE)","v":1},{"$f":"VLOOKUP(OFFSET($B:$B,,MATCH(Q$4,$B$4:$F$4,0)-1),OFFSET('C. PoC Adj Factor Scoring'!$E$5:$J$282,,MATCH(Q$4,'C. PoC Adj Factor Scoring'!$E$3:$AH$3,0)-1),MATCH(Q$2&\" Score\",'C. PoC Adj Factor Scoring'!$E$4:$J$4,0),TRUE)","v":1},{"$f":"VLOOKUP(OFFSET($B:$B,,MATCH(R$4,$B$4:$F$4,0)-1),OFFSET('C. PoC Adj Factor Scoring'!$E$5:$J$282,,MATCH(R$4,'C. PoC Adj Factor Scoring'!$E$3:$AH$3,0)-1),MATCH(R$2&\" Score\",'C. PoC Adj Factor Scoring'!$E$4:$J$4,0),TRUE)","v":1},{"$f":"VLOOKUP(OFFSET($B:$B,,MATCH(S$4,$B$4:$F$4,0)-1),OFFSET('C. PoC Adj Factor Scoring'!$E$5:$J$282,,MATCH(S$4,'C. PoC Adj Factor Scoring'!$E$3:$AH$3,0)-1),MATCH(S$2&\" Score\",'C. PoC Adj Factor Scoring'!$E$4:$J$4,0),TRUE)","v":1},{"$f":"VLOOKUP(OFFSET($B:$B,,MATCH(T$4,$B$4:$F$4,0)-1),OFFSET('C. PoC Adj Factor Scoring'!$E$5:$J$282,,MATCH(T$4,'C. PoC Adj Factor Scoring'!$E$3:$AH$3,0)-1),MATCH(T$2&\" Score\",'C. PoC Adj Factor Scoring'!$E$4:$J$4,0),TRUE)","v":1},{"$f":"VLOOKUP(OFFSET($B:$B,,MATCH(U$4,$B$4:$F$4,0)-1),OFFSET('C. PoC Adj Factor Scoring'!$E$5:$J$282,,MATCH(U$4,'C. PoC Adj Factor Scoring'!$E$3:$AH$3,0)-1),MATCH(U$2&\" Score\",'C. PoC Adj Factor Scoring'!$E$4:$J$4,0),TRUE)","v":1},{"$f":"VLOOKUP(OFFSET($B:$B,,MATCH(V$4,$B$4:$F$4,0)-1),OFFSET('C. PoC Adj Factor Scoring'!$E$5:$J$282,,MATCH(V$4,'C. PoC Adj Factor Scoring'!$E$3:$AH$3,0)-1),MATCH(V$2&\" Score\",'C. PoC Adj Factor Scoring'!$E$4:$J$4,0),TRUE)","v":1},{"$f":"VLOOKUP(OFFSET($B:$B,,MATCH(W$4,$B$4:$F$4,0)-1),OFFSET('C. PoC Adj Factor Scoring'!$E$5:$J$282,,MATCH(W$4,'C. PoC Adj Factor Scoring'!$E$3:$AH$3,0)-1),MATCH(W$2&\" Score\",'C. PoC Adj Factor Scoring'!$E$4:$J$4,0),TRUE)","v":1},{"$f":"VLOOKUP(OFFSET($B:$B,,MATCH(X$4,$B$4:$F$4,0)-1),OFFSET('C. PoC Adj Factor Scoring'!$E$5:$J$282,,MATCH(X$4,'C. PoC Adj Factor Scoring'!$E$3:$AH$3,0)-1),MATCH(X$2&\" Score\",'C. PoC Adj Factor Scoring'!$E$4:$J$4,0),TRUE)","v":1},{"$f":"VLOOKUP(OFFSET($B:$B,,MATCH(Y$4,$B$4:$F$4,0)-1),OFFSET('C. PoC Adj Factor Scoring'!$E$5:$J$282,,MATCH(Y$4,'C. PoC Adj Factor Scoring'!$E$3:$AH$3,0)-1),MATCH(Y$2&\" Score\",'C. PoC Adj Factor Scoring'!$E$4:$J$4,0),TRUE)","v":1},{"$f":"VLOOKUP(OFFSET($B:$B,,MATCH(Z$4,$B$4:$F$4,0)-1),OFFSET('C. PoC Adj Factor Scoring'!$E$5:$J$282,,MATCH(Z$4,'C. PoC Adj Factor Scoring'!$E$3:$AH$3,0)-1),MATCH(Z$2&\" Score\",'C. PoC Adj Factor Scoring'!$E$4:$J$4,0),TRUE)","v":1},{"$f":"VLOOKUP(OFFSET($B:$B,,MATCH(AA$4,$B$4:$F$4,0)-1),OFFSET('C. PoC Adj Factor Scoring'!$E$5:$J$282,,MATCH(AA$4,'C. PoC Adj Factor Scoring'!$E$3:$AH$3,0)-1),MATCH(AA$2&\" Score\",'C. PoC Adj Factor Scoring'!$E$4:$J$4,0),TRUE)","v":3},{"$f":"VLOOKUP(OFFSET($B:$B,,MATCH(AB$4,$B$4:$F$4,0)-1),OFFSET('C. PoC Adj Factor Scoring'!$E$5:$J$282,,MATCH(AB$4,'C. PoC Adj Factor Scoring'!$E$3:$AH$3,0)-1),MATCH(AB$2&\" Score\",'C. PoC Adj Factor Scoring'!$E$4:$J$4,0),TRUE)","v":1},{"$f":"VLOOKUP(OFFSET($B:$B,,MATCH(AC$4,$B$4:$F$4,0)-1),OFFSET('C. PoC Adj Factor Scoring'!$E$5:$J$282,,MATCH(AC$4,'C. PoC Adj Factor Scoring'!$E$3:$AH$3,0)-1),MATCH(AC$2&\" Score\",'C. PoC Adj Factor Scoring'!$E$4:$J$4,0),TRUE)","v":1},{"$f":"VLOOKUP(OFFSET($B:$B,,MATCH(AD$4,$B$4:$F$4,0)-1),OFFSET('C. PoC Adj Factor Scoring'!$E$5:$J$282,,MATCH(AD$4,'C. PoC Adj Factor Scoring'!$E$3:$AH$3,0)-1),MATCH(AD$2&\" Score\",'C. PoC Adj Factor Scoring'!$E$4:$J$4,0),TRUE)","v":1},{"$f":"VLOOKUP(OFFSET($B:$B,,MATCH(AE$4,$B$4:$F$4,0)-1),OFFSET('C. PoC Adj Factor Scoring'!$E$5:$J$282,,MATCH(AE$4,'C. PoC Adj Factor Scoring'!$E$3:$AH$3,0)-1),MATCH(AE$2&\" Score\",'C. PoC Adj Factor Scoring'!$E$4:$J$4,0),TRUE)","v":1}]
[{"$f":"'A. Population Info'!A544","v":1001589234},{"$f":"'A. Population Info'!L544","v":"OIL"},{"$f":"'A. Population Info'!M544","v":0},{"$f":"'A. Population Info'!N544","v":0},{"$f":"'A. Population Info'!O544","v":0},{"$f":"'A. Population Info'!P544","v":0},{"$f":"VLOOKUP(OFFSET($B:$B,,MATCH(G$4,$B$4:$F$4,0)-1),OFFSET('C. PoC Adj Factor Scoring'!$E$5:$J$282,,MATCH(G$4,'C. PoC Adj Factor Scoring'!$E$3:$AH$3,0)-1),MATCH(G$2&\" Score\",'C. PoC Adj Factor Scoring'!$E$4:$J$4,0),TRUE)","v":4},{"$f":"VLOOKUP(OFFSET($B:$B,,MATCH(H$4,$B$4:$F$4,0)-1),OFFSET('C. PoC Adj Factor Scoring'!$E$5:$J$282,,MATCH(H$4,'C. PoC Adj Factor Scoring'!$E$3:$AH$3,0)-1),MATCH(H$2&\" Score\",'C. PoC Adj Factor Scoring'!$E$4:$J$4,0),TRUE)","v":1},{"$f":"VLOOKUP(OFFSET($B:$B,,MATCH(I$4,$B$4:$F$4,0)-1),OFFSET('C. PoC Adj Factor Scoring'!$E$5:$J$282,,MATCH(I$4,'C. PoC Adj Factor Scoring'!$E$3:$AH$3,0)-1),MATCH(I$2&\" Score\",'C. PoC Adj Factor Scoring'!$E$4:$J$4,0),TRUE)","v":1},{"$f":"VLOOKUP(OFFSET($B:$B,,MATCH(J$4,$B$4:$F$4,0)-1),OFFSET('C. PoC Adj Factor Scoring'!$E$5:$J$282,,MATCH(J$4,'C. PoC Adj Factor Scoring'!$E$3:$AH$3,0)-1),MATCH(J$2&\" Score\",'C. PoC Adj Factor Scoring'!$E$4:$J$4,0),TRUE)","v":1},{"$f":"VLOOKUP(OFFSET($B:$B,,MATCH(K$4,$B$4:$F$4,0)-1),OFFSET('C. PoC Adj Factor Scoring'!$E$5:$J$282,,MATCH(K$4,'C. PoC Adj Factor Scoring'!$E$3:$AH$3,0)-1),MATCH(K$2&\" Score\",'C. PoC Adj Factor Scoring'!$E$4:$J$4,0),TRUE)","v":1},{"$f":"VLOOKUP(OFFSET($B:$B,,MATCH(L$4,$B$4:$F$4,0)-1),OFFSET('C. PoC Adj Factor Scoring'!$E$5:$J$282,,MATCH(L$4,'C. PoC Adj Factor Scoring'!$E$3:$AH$3,0)-1),MATCH(L$2&\" Score\",'C. PoC Adj Factor Scoring'!$E$4:$J$4,0),TRUE)","v":1},{"$f":"VLOOKUP(OFFSET($B:$B,,MATCH(M$4,$B$4:$F$4,0)-1),OFFSET('C. PoC Adj Factor Scoring'!$E$5:$J$282,,MATCH(M$4,'C. PoC Adj Factor Scoring'!$E$3:$AH$3,0)-1),MATCH(M$2&\" Score\",'C. PoC Adj Factor Scoring'!$E$4:$J$4,0),TRUE)","v":1},{"$f":"VLOOKUP(OFFSET($B:$B,,MATCH(N$4,$B$4:$F$4,0)-1),OFFSET('C. PoC Adj Factor Scoring'!$E$5:$J$282,,MATCH(N$4,'C. PoC Adj Factor Scoring'!$E$3:$AH$3,0)-1),MATCH(N$2&\" Score\",'C. PoC Adj Factor Scoring'!$E$4:$J$4,0),TRUE)","v":1},{"$f":"VLOOKUP(OFFSET($B:$B,,MATCH(O$4,$B$4:$F$4,0)-1),OFFSET('C. PoC Adj Factor Scoring'!$E$5:$J$282,,MATCH(O$4,'C. PoC Adj Factor Scoring'!$E$3:$AH$3,0)-1),MATCH(O$2&\" Score\",'C. PoC Adj Factor Scoring'!$E$4:$J$4,0),TRUE)","v":1},{"$f":"VLOOKUP(OFFSET($B:$B,,MATCH(P$4,$B$4:$F$4,0)-1),OFFSET('C. PoC Adj Factor Scoring'!$E$5:$J$282,,MATCH(P$4,'C. PoC Adj Factor Scoring'!$E$3:$AH$3,0)-1),MATCH(P$2&\" Score\",'C. PoC Adj Factor Scoring'!$E$4:$J$4,0),TRUE)","v":1},{"$f":"VLOOKUP(OFFSET($B:$B,,MATCH(Q$4,$B$4:$F$4,0)-1),OFFSET('C. PoC Adj Factor Scoring'!$E$5:$J$282,,MATCH(Q$4,'C. PoC Adj Factor Scoring'!$E$3:$AH$3,0)-1),MATCH(Q$2&\" Score\",'C. PoC Adj Factor Scoring'!$E$4:$J$4,0),TRUE)","v":1},{"$f":"VLOOKUP(OFFSET($B:$B,,MATCH(R$4,$B$4:$F$4,0)-1),OFFSET('C. PoC Adj Factor Scoring'!$E$5:$J$282,,MATCH(R$4,'C. PoC Adj Factor Scoring'!$E$3:$AH$3,0)-1),MATCH(R$2&\" Score\",'C. PoC Adj Factor Scoring'!$E$4:$J$4,0),TRUE)","v":1},{"$f":"VLOOKUP(OFFSET($B:$B,,MATCH(S$4,$B$4:$F$4,0)-1),OFFSET('C. PoC Adj Factor Scoring'!$E$5:$J$282,,MATCH(S$4,'C. PoC Adj Factor Scoring'!$E$3:$AH$3,0)-1),MATCH(S$2&\" Score\",'C. PoC Adj Factor Scoring'!$E$4:$J$4,0),TRUE)","v":1},{"$f":"VLOOKUP(OFFSET($B:$B,,MATCH(T$4,$B$4:$F$4,0)-1),OFFSET('C. PoC Adj Factor Scoring'!$E$5:$J$282,,MATCH(T$4,'C. PoC Adj Factor Scoring'!$E$3:$AH$3,0)-1),MATCH(T$2&\" Score\",'C. PoC Adj Factor Scoring'!$E$4:$J$4,0),TRUE)","v":1},{"$f":"VLOOKUP(OFFSET($B:$B,,MATCH(U$4,$B$4:$F$4,0)-1),OFFSET('C. PoC Adj Factor Scoring'!$E$5:$J$282,,MATCH(U$4,'C. PoC Adj Factor Scoring'!$E$3:$AH$3,0)-1),MATCH(U$2&\" Score\",'C. PoC Adj Factor Scoring'!$E$4:$J$4,0),TRUE)","v":1},{"$f":"VLOOKUP(OFFSET($B:$B,,MATCH(V$4,$B$4:$F$4,0)-1),OFFSET('C. PoC Adj Factor Scoring'!$E$5:$J$282,,MATCH(V$4,'C. PoC Adj Factor Scoring'!$E$3:$AH$3,0)-1),MATCH(V$2&\" Score\",'C. PoC Adj Factor Scoring'!$E$4:$J$4,0),TRUE)","v":1},{"$f":"VLOOKUP(OFFSET($B:$B,,MATCH(W$4,$B$4:$F$4,0)-1),OFFSET('C. PoC Adj Factor Scoring'!$E$5:$J$282,,MATCH(W$4,'C. PoC Adj Factor Scoring'!$E$3:$AH$3,0)-1),MATCH(W$2&\" Score\",'C. PoC Adj Factor Scoring'!$E$4:$J$4,0),TRUE)","v":1},{"$f":"VLOOKUP(OFFSET($B:$B,,MATCH(X$4,$B$4:$F$4,0)-1),OFFSET('C. PoC Adj Factor Scoring'!$E$5:$J$282,,MATCH(X$4,'C. PoC Adj Factor Scoring'!$E$3:$AH$3,0)-1),MATCH(X$2&\" Score\",'C. PoC Adj Factor Scoring'!$E$4:$J$4,0),TRUE)","v":1},{"$f":"VLOOKUP(OFFSET($B:$B,,MATCH(Y$4,$B$4:$F$4,0)-1),OFFSET('C. PoC Adj Factor Scoring'!$E$5:$J$282,,MATCH(Y$4,'C. PoC Adj Factor Scoring'!$E$3:$AH$3,0)-1),MATCH(Y$2&\" Score\",'C. PoC Adj Factor Scoring'!$E$4:$J$4,0),TRUE)","v":1},{"$f":"VLOOKUP(OFFSET($B:$B,,MATCH(Z$4,$B$4:$F$4,0)-1),OFFSET('C. PoC Adj Factor Scoring'!$E$5:$J$282,,MATCH(Z$4,'C. PoC Adj Factor Scoring'!$E$3:$AH$3,0)-1),MATCH(Z$2&\" Score\",'C. PoC Adj Factor Scoring'!$E$4:$J$4,0),TRUE)","v":1},{"$f":"VLOOKUP(OFFSET($B:$B,,MATCH(AA$4,$B$4:$F$4,0)-1),OFFSET('C. PoC Adj Factor Scoring'!$E$5:$J$282,,MATCH(AA$4,'C. PoC Adj Factor Scoring'!$E$3:$AH$3,0)-1),MATCH(AA$2&\" Score\",'C. PoC Adj Factor Scoring'!$E$4:$J$4,0),TRUE)","v":3},{"$f":"VLOOKUP(OFFSET($B:$B,,MATCH(AB$4,$B$4:$F$4,0)-1),OFFSET('C. PoC Adj Factor Scoring'!$E$5:$J$282,,MATCH(AB$4,'C. PoC Adj Factor Scoring'!$E$3:$AH$3,0)-1),MATCH(AB$2&\" Score\",'C. PoC Adj Factor Scoring'!$E$4:$J$4,0),TRUE)","v":1},{"$f":"VLOOKUP(OFFSET($B:$B,,MATCH(AC$4,$B$4:$F$4,0)-1),OFFSET('C. PoC Adj Factor Scoring'!$E$5:$J$282,,MATCH(AC$4,'C. PoC Adj Factor Scoring'!$E$3:$AH$3,0)-1),MATCH(AC$2&\" Score\",'C. PoC Adj Factor Scoring'!$E$4:$J$4,0),TRUE)","v":1},{"$f":"VLOOKUP(OFFSET($B:$B,,MATCH(AD$4,$B$4:$F$4,0)-1),OFFSET('C. PoC Adj Factor Scoring'!$E$5:$J$282,,MATCH(AD$4,'C. PoC Adj Factor Scoring'!$E$3:$AH$3,0)-1),MATCH(AD$2&\" Score\",'C. PoC Adj Factor Scoring'!$E$4:$J$4,0),TRUE)","v":1},{"$f":"VLOOKUP(OFFSET($B:$B,,MATCH(AE$4,$B$4:$F$4,0)-1),OFFSET('C. PoC Adj Factor Scoring'!$E$5:$J$282,,MATCH(AE$4,'C. PoC Adj Factor Scoring'!$E$3:$AH$3,0)-1),MATCH(AE$2&\" Score\",'C. PoC Adj Factor Scoring'!$E$4:$J$4,0),TRUE)","v":1}]
[{"$f":"'A. Population Info'!A545","v":1001613550},{"$f":"'A. Population Info'!L545","v":"OIL"},{"$f":"'A. Population Info'!M545","v":0},{"$f":"'A. Population Info'!N545","v":0},{"$f":"'A. Population Info'!O545","v":0},{"$f":"'A. Population Info'!P545","v":0},{"$f":"VLOOKUP(OFFSET($B:$B,,MATCH(G$4,$B$4:$F$4,0)-1),OFFSET('C. PoC Adj Factor Scoring'!$E$5:$J$282,,MATCH(G$4,'C. PoC Adj Factor Scoring'!$E$3:$AH$3,0)-1),MATCH(G$2&\" Score\",'C. PoC Adj Factor Scoring'!$E$4:$J$4,0),TRUE)","v":4},{"$f":"VLOOKUP(OFFSET($B:$B,,MATCH(H$4,$B$4:$F$4,0)-1),OFFSET('C. PoC Adj Factor Scoring'!$E$5:$J$282,,MATCH(H$4,'C. PoC Adj Factor Scoring'!$E$3:$AH$3,0)-1),MATCH(H$2&\" Score\",'C. PoC Adj Factor Scoring'!$E$4:$J$4,0),TRUE)","v":1},{"$f":"VLOOKUP(OFFSET($B:$B,,MATCH(I$4,$B$4:$F$4,0)-1),OFFSET('C. PoC Adj Factor Scoring'!$E$5:$J$282,,MATCH(I$4,'C. PoC Adj Factor Scoring'!$E$3:$AH$3,0)-1),MATCH(I$2&\" Score\",'C. PoC Adj Factor Scoring'!$E$4:$J$4,0),TRUE)","v":1},{"$f":"VLOOKUP(OFFSET($B:$B,,MATCH(J$4,$B$4:$F$4,0)-1),OFFSET('C. PoC Adj Factor Scoring'!$E$5:$J$282,,MATCH(J$4,'C. PoC Adj Factor Scoring'!$E$3:$AH$3,0)-1),MATCH(J$2&\" Score\",'C. PoC Adj Factor Scoring'!$E$4:$J$4,0),TRUE)","v":1},{"$f":"VLOOKUP(OFFSET($B:$B,,MATCH(K$4,$B$4:$F$4,0)-1),OFFSET('C. PoC Adj Factor Scoring'!$E$5:$J$282,,MATCH(K$4,'C. PoC Adj Factor Scoring'!$E$3:$AH$3,0)-1),MATCH(K$2&\" Score\",'C. PoC Adj Factor Scoring'!$E$4:$J$4,0),TRUE)","v":1},{"$f":"VLOOKUP(OFFSET($B:$B,,MATCH(L$4,$B$4:$F$4,0)-1),OFFSET('C. PoC Adj Factor Scoring'!$E$5:$J$282,,MATCH(L$4,'C. PoC Adj Factor Scoring'!$E$3:$AH$3,0)-1),MATCH(L$2&\" Score\",'C. PoC Adj Factor Scoring'!$E$4:$J$4,0),TRUE)","v":1},{"$f":"VLOOKUP(OFFSET($B:$B,,MATCH(M$4,$B$4:$F$4,0)-1),OFFSET('C. PoC Adj Factor Scoring'!$E$5:$J$282,,MATCH(M$4,'C. PoC Adj Factor Scoring'!$E$3:$AH$3,0)-1),MATCH(M$2&\" Score\",'C. PoC Adj Factor Scoring'!$E$4:$J$4,0),TRUE)","v":1},{"$f":"VLOOKUP(OFFSET($B:$B,,MATCH(N$4,$B$4:$F$4,0)-1),OFFSET('C. PoC Adj Factor Scoring'!$E$5:$J$282,,MATCH(N$4,'C. PoC Adj Factor Scoring'!$E$3:$AH$3,0)-1),MATCH(N$2&\" Score\",'C. PoC Adj Factor Scoring'!$E$4:$J$4,0),TRUE)","v":1},{"$f":"VLOOKUP(OFFSET($B:$B,,MATCH(O$4,$B$4:$F$4,0)-1),OFFSET('C. PoC Adj Factor Scoring'!$E$5:$J$282,,MATCH(O$4,'C. PoC Adj Factor Scoring'!$E$3:$AH$3,0)-1),MATCH(O$2&\" Score\",'C. PoC Adj Factor Scoring'!$E$4:$J$4,0),TRUE)","v":1},{"$f":"VLOOKUP(OFFSET($B:$B,,MATCH(P$4,$B$4:$F$4,0)-1),OFFSET('C. PoC Adj Factor Scoring'!$E$5:$J$282,,MATCH(P$4,'C. PoC Adj Factor Scoring'!$E$3:$AH$3,0)-1),MATCH(P$2&\" Score\",'C. PoC Adj Factor Scoring'!$E$4:$J$4,0),TRUE)","v":1},{"$f":"VLOOKUP(OFFSET($B:$B,,MATCH(Q$4,$B$4:$F$4,0)-1),OFFSET('C. PoC Adj Factor Scoring'!$E$5:$J$282,,MATCH(Q$4,'C. PoC Adj Factor Scoring'!$E$3:$AH$3,0)-1),MATCH(Q$2&\" Score\",'C. PoC Adj Factor Scoring'!$E$4:$J$4,0),TRUE)","v":1},{"$f":"VLOOKUP(OFFSET($B:$B,,MATCH(R$4,$B$4:$F$4,0)-1),OFFSET('C. PoC Adj Factor Scoring'!$E$5:$J$282,,MATCH(R$4,'C. PoC Adj Factor Scoring'!$E$3:$AH$3,0)-1),MATCH(R$2&\" Score\",'C. PoC Adj Factor Scoring'!$E$4:$J$4,0),TRUE)","v":1},{"$f":"VLOOKUP(OFFSET($B:$B,,MATCH(S$4,$B$4:$F$4,0)-1),OFFSET('C. PoC Adj Factor Scoring'!$E$5:$J$282,,MATCH(S$4,'C. PoC Adj Factor Scoring'!$E$3:$AH$3,0)-1),MATCH(S$2&\" Score\",'C. PoC Adj Factor Scoring'!$E$4:$J$4,0),TRUE)","v":1},{"$f":"VLOOKUP(OFFSET($B:$B,,MATCH(T$4,$B$4:$F$4,0)-1),OFFSET('C. PoC Adj Factor Scoring'!$E$5:$J$282,,MATCH(T$4,'C. PoC Adj Factor Scoring'!$E$3:$AH$3,0)-1),MATCH(T$2&\" Score\",'C. PoC Adj Factor Scoring'!$E$4:$J$4,0),TRUE)","v":1},{"$f":"VLOOKUP(OFFSET($B:$B,,MATCH(U$4,$B$4:$F$4,0)-1),OFFSET('C. PoC Adj Factor Scoring'!$E$5:$J$282,,MATCH(U$4,'C. PoC Adj Factor Scoring'!$E$3:$AH$3,0)-1),MATCH(U$2&\" Score\",'C. PoC Adj Factor Scoring'!$E$4:$J$4,0),TRUE)","v":1},{"$f":"VLOOKUP(OFFSET($B:$B,,MATCH(V$4,$B$4:$F$4,0)-1),OFFSET('C. PoC Adj Factor Scoring'!$E$5:$J$282,,MATCH(V$4,'C. PoC Adj Factor Scoring'!$E$3:$AH$3,0)-1),MATCH(V$2&\" Score\",'C. PoC Adj Factor Scoring'!$E$4:$J$4,0),TRUE)","v":1},{"$f":"VLOOKUP(OFFSET($B:$B,,MATCH(W$4,$B$4:$F$4,0)-1),OFFSET('C. PoC Adj Factor Scoring'!$E$5:$J$282,,MATCH(W$4,'C. PoC Adj Factor Scoring'!$E$3:$AH$3,0)-1),MATCH(W$2&\" Score\",'C. PoC Adj Factor Scoring'!$E$4:$J$4,0),TRUE)","v":1},{"$f":"VLOOKUP(OFFSET($B:$B,,MATCH(X$4,$B$4:$F$4,0)-1),OFFSET('C. PoC Adj Factor Scoring'!$E$5:$J$282,,MATCH(X$4,'C. PoC Adj Factor Scoring'!$E$3:$AH$3,0)-1),MATCH(X$2&\" Score\",'C. PoC Adj Factor Scoring'!$E$4:$J$4,0),TRUE)","v":1},{"$f":"VLOOKUP(OFFSET($B:$B,,MATCH(Y$4,$B$4:$F$4,0)-1),OFFSET('C. PoC Adj Factor Scoring'!$E$5:$J$282,,MATCH(Y$4,'C. PoC Adj Factor Scoring'!$E$3:$AH$3,0)-1),MATCH(Y$2&\" Score\",'C. PoC Adj Factor Scoring'!$E$4:$J$4,0),TRUE)","v":1},{"$f":"VLOOKUP(OFFSET($B:$B,,MATCH(Z$4,$B$4:$F$4,0)-1),OFFSET('C. PoC Adj Factor Scoring'!$E$5:$J$282,,MATCH(Z$4,'C. PoC Adj Factor Scoring'!$E$3:$AH$3,0)-1),MATCH(Z$2&\" Score\",'C. PoC Adj Factor Scoring'!$E$4:$J$4,0),TRUE)","v":1},{"$f":"VLOOKUP(OFFSET($B:$B,,MATCH(AA$4,$B$4:$F$4,0)-1),OFFSET('C. PoC Adj Factor Scoring'!$E$5:$J$282,,MATCH(AA$4,'C. PoC Adj Factor Scoring'!$E$3:$AH$3,0)-1),MATCH(AA$2&\" Score\",'C. PoC Adj Factor Scoring'!$E$4:$J$4,0),TRUE)","v":3},{"$f":"VLOOKUP(OFFSET($B:$B,,MATCH(AB$4,$B$4:$F$4,0)-1),OFFSET('C. PoC Adj Factor Scoring'!$E$5:$J$282,,MATCH(AB$4,'C. PoC Adj Factor Scoring'!$E$3:$AH$3,0)-1),MATCH(AB$2&\" Score\",'C. PoC Adj Factor Scoring'!$E$4:$J$4,0),TRUE)","v":1},{"$f":"VLOOKUP(OFFSET($B:$B,,MATCH(AC$4,$B$4:$F$4,0)-1),OFFSET('C. PoC Adj Factor Scoring'!$E$5:$J$282,,MATCH(AC$4,'C. PoC Adj Factor Scoring'!$E$3:$AH$3,0)-1),MATCH(AC$2&\" Score\",'C. PoC Adj Factor Scoring'!$E$4:$J$4,0),TRUE)","v":1},{"$f":"VLOOKUP(OFFSET($B:$B,,MATCH(AD$4,$B$4:$F$4,0)-1),OFFSET('C. PoC Adj Factor Scoring'!$E$5:$J$282,,MATCH(AD$4,'C. PoC Adj Factor Scoring'!$E$3:$AH$3,0)-1),MATCH(AD$2&\" Score\",'C. PoC Adj Factor Scoring'!$E$4:$J$4,0),TRUE)","v":1},{"$f":"VLOOKUP(OFFSET($B:$B,,MATCH(AE$4,$B$4:$F$4,0)-1),OFFSET('C. PoC Adj Factor Scoring'!$E$5:$J$282,,MATCH(AE$4,'C. PoC Adj Factor Scoring'!$E$3:$AH$3,0)-1),MATCH(AE$2&\" Score\",'C. PoC Adj Factor Scoring'!$E$4:$J$4,0),TRUE)","v":1}]
[{"$f":"'A. Population Info'!A546","v":1001617236},{"$f":"'A. Population Info'!L546","v":"OIL"},{"$f":"'A. Population Info'!M546","v":0},{"$f":"'A. Population Info'!N546","v":0},{"$f":"'A. Population Info'!O546","v":0},{"$f":"'A. Population Info'!P546","v":0},{"$f":"VLOOKUP(OFFSET($B:$B,,MATCH(G$4,$B$4:$F$4,0)-1),OFFSET('C. PoC Adj Factor Scoring'!$E$5:$J$282,,MATCH(G$4,'C. PoC Adj Factor Scoring'!$E$3:$AH$3,0)-1),MATCH(G$2&\" Score\",'C. PoC Adj Factor Scoring'!$E$4:$J$4,0),TRUE)","v":4},{"$f":"VLOOKUP(OFFSET($B:$B,,MATCH(H$4,$B$4:$F$4,0)-1),OFFSET('C. PoC Adj Factor Scoring'!$E$5:$J$282,,MATCH(H$4,'C. PoC Adj Factor Scoring'!$E$3:$AH$3,0)-1),MATCH(H$2&\" Score\",'C. PoC Adj Factor Scoring'!$E$4:$J$4,0),TRUE)","v":1},{"$f":"VLOOKUP(OFFSET($B:$B,,MATCH(I$4,$B$4:$F$4,0)-1),OFFSET('C. PoC Adj Factor Scoring'!$E$5:$J$282,,MATCH(I$4,'C. PoC Adj Factor Scoring'!$E$3:$AH$3,0)-1),MATCH(I$2&\" Score\",'C. PoC Adj Factor Scoring'!$E$4:$J$4,0),TRUE)","v":1},{"$f":"VLOOKUP(OFFSET($B:$B,,MATCH(J$4,$B$4:$F$4,0)-1),OFFSET('C. PoC Adj Factor Scoring'!$E$5:$J$282,,MATCH(J$4,'C. PoC Adj Factor Scoring'!$E$3:$AH$3,0)-1),MATCH(J$2&\" Score\",'C. PoC Adj Factor Scoring'!$E$4:$J$4,0),TRUE)","v":1},{"$f":"VLOOKUP(OFFSET($B:$B,,MATCH(K$4,$B$4:$F$4,0)-1),OFFSET('C. PoC Adj Factor Scoring'!$E$5:$J$282,,MATCH(K$4,'C. PoC Adj Factor Scoring'!$E$3:$AH$3,0)-1),MATCH(K$2&\" Score\",'C. PoC Adj Factor Scoring'!$E$4:$J$4,0),TRUE)","v":1},{"$f":"VLOOKUP(OFFSET($B:$B,,MATCH(L$4,$B$4:$F$4,0)-1),OFFSET('C. PoC Adj Factor Scoring'!$E$5:$J$282,,MATCH(L$4,'C. PoC Adj Factor Scoring'!$E$3:$AH$3,0)-1),MATCH(L$2&\" Score\",'C. PoC Adj Factor Scoring'!$E$4:$J$4,0),TRUE)","v":1},{"$f":"VLOOKUP(OFFSET($B:$B,,MATCH(M$4,$B$4:$F$4,0)-1),OFFSET('C. PoC Adj Factor Scoring'!$E$5:$J$282,,MATCH(M$4,'C. PoC Adj Factor Scoring'!$E$3:$AH$3,0)-1),MATCH(M$2&\" Score\",'C. PoC Adj Factor Scoring'!$E$4:$J$4,0),TRUE)","v":1},{"$f":"VLOOKUP(OFFSET($B:$B,,MATCH(N$4,$B$4:$F$4,0)-1),OFFSET('C. PoC Adj Factor Scoring'!$E$5:$J$282,,MATCH(N$4,'C. PoC Adj Factor Scoring'!$E$3:$AH$3,0)-1),MATCH(N$2&\" Score\",'C. PoC Adj Factor Scoring'!$E$4:$J$4,0),TRUE)","v":1},{"$f":"VLOOKUP(OFFSET($B:$B,,MATCH(O$4,$B$4:$F$4,0)-1),OFFSET('C. PoC Adj Factor Scoring'!$E$5:$J$282,,MATCH(O$4,'C. PoC Adj Factor Scoring'!$E$3:$AH$3,0)-1),MATCH(O$2&\" Score\",'C. PoC Adj Factor Scoring'!$E$4:$J$4,0),TRUE)","v":1},{"$f":"VLOOKUP(OFFSET($B:$B,,MATCH(P$4,$B$4:$F$4,0)-1),OFFSET('C. PoC Adj Factor Scoring'!$E$5:$J$282,,MATCH(P$4,'C. PoC Adj Factor Scoring'!$E$3:$AH$3,0)-1),MATCH(P$2&\" Score\",'C. PoC Adj Factor Scoring'!$E$4:$J$4,0),TRUE)","v":1},{"$f":"VLOOKUP(OFFSET($B:$B,,MATCH(Q$4,$B$4:$F$4,0)-1),OFFSET('C. PoC Adj Factor Scoring'!$E$5:$J$282,,MATCH(Q$4,'C. PoC Adj Factor Scoring'!$E$3:$AH$3,0)-1),MATCH(Q$2&\" Score\",'C. PoC Adj Factor Scoring'!$E$4:$J$4,0),TRUE)","v":1},{"$f":"VLOOKUP(OFFSET($B:$B,,MATCH(R$4,$B$4:$F$4,0)-1),OFFSET('C. PoC Adj Factor Scoring'!$E$5:$J$282,,MATCH(R$4,'C. PoC Adj Factor Scoring'!$E$3:$AH$3,0)-1),MATCH(R$2&\" Score\",'C. PoC Adj Factor Scoring'!$E$4:$J$4,0),TRUE)","v":1},{"$f":"VLOOKUP(OFFSET($B:$B,,MATCH(S$4,$B$4:$F$4,0)-1),OFFSET('C. PoC Adj Factor Scoring'!$E$5:$J$282,,MATCH(S$4,'C. PoC Adj Factor Scoring'!$E$3:$AH$3,0)-1),MATCH(S$2&\" Score\",'C. PoC Adj Factor Scoring'!$E$4:$J$4,0),TRUE)","v":1},{"$f":"VLOOKUP(OFFSET($B:$B,,MATCH(T$4,$B$4:$F$4,0)-1),OFFSET('C. PoC Adj Factor Scoring'!$E$5:$J$282,,MATCH(T$4,'C. PoC Adj Factor Scoring'!$E$3:$AH$3,0)-1),MATCH(T$2&\" Score\",'C. PoC Adj Factor Scoring'!$E$4:$J$4,0),TRUE)","v":1},{"$f":"VLOOKUP(OFFSET($B:$B,,MATCH(U$4,$B$4:$F$4,0)-1),OFFSET('C. PoC Adj Factor Scoring'!$E$5:$J$282,,MATCH(U$4,'C. PoC Adj Factor Scoring'!$E$3:$AH$3,0)-1),MATCH(U$2&\" Score\",'C. PoC Adj Factor Scoring'!$E$4:$J$4,0),TRUE)","v":1},{"$f":"VLOOKUP(OFFSET($B:$B,,MATCH(V$4,$B$4:$F$4,0)-1),OFFSET('C. PoC Adj Factor Scoring'!$E$5:$J$282,,MATCH(V$4,'C. PoC Adj Factor Scoring'!$E$3:$AH$3,0)-1),MATCH(V$2&\" Score\",'C. PoC Adj Factor Scoring'!$E$4:$J$4,0),TRUE)","v":1},{"$f":"VLOOKUP(OFFSET($B:$B,,MATCH(W$4,$B$4:$F$4,0)-1),OFFSET('C. PoC Adj Factor Scoring'!$E$5:$J$282,,MATCH(W$4,'C. PoC Adj Factor Scoring'!$E$3:$AH$3,0)-1),MATCH(W$2&\" Score\",'C. PoC Adj Factor Scoring'!$E$4:$J$4,0),TRUE)","v":1},{"$f":"VLOOKUP(OFFSET($B:$B,,MATCH(X$4,$B$4:$F$4,0)-1),OFFSET('C. PoC Adj Factor Scoring'!$E$5:$J$282,,MATCH(X$4,'C. PoC Adj Factor Scoring'!$E$3:$AH$3,0)-1),MATCH(X$2&\" Score\",'C. PoC Adj Factor Scoring'!$E$4:$J$4,0),TRUE)","v":1},{"$f":"VLOOKUP(OFFSET($B:$B,,MATCH(Y$4,$B$4:$F$4,0)-1),OFFSET('C. PoC Adj Factor Scoring'!$E$5:$J$282,,MATCH(Y$4,'C. PoC Adj Factor Scoring'!$E$3:$AH$3,0)-1),MATCH(Y$2&\" Score\",'C. PoC Adj Factor Scoring'!$E$4:$J$4,0),TRUE)","v":1},{"$f":"VLOOKUP(OFFSET($B:$B,,MATCH(Z$4,$B$4:$F$4,0)-1),OFFSET('C. PoC Adj Factor Scoring'!$E$5:$J$282,,MATCH(Z$4,'C. PoC Adj Factor Scoring'!$E$3:$AH$3,0)-1),MATCH(Z$2&\" Score\",'C. PoC Adj Factor Scoring'!$E$4:$J$4,0),TRUE)","v":1},{"$f":"VLOOKUP(OFFSET($B:$B,,MATCH(AA$4,$B$4:$F$4,0)-1),OFFSET('C. PoC Adj Factor Scoring'!$E$5:$J$282,,MATCH(AA$4,'C. PoC Adj Factor Scoring'!$E$3:$AH$3,0)-1),MATCH(AA$2&\" Score\",'C. PoC Adj Factor Scoring'!$E$4:$J$4,0),TRUE)","v":3},{"$f":"VLOOKUP(OFFSET($B:$B,,MATCH(AB$4,$B$4:$F$4,0)-1),OFFSET('C. PoC Adj Factor Scoring'!$E$5:$J$282,,MATCH(AB$4,'C. PoC Adj Factor Scoring'!$E$3:$AH$3,0)-1),MATCH(AB$2&\" Score\",'C. PoC Adj Factor Scoring'!$E$4:$J$4,0),TRUE)","v":1},{"$f":"VLOOKUP(OFFSET($B:$B,,MATCH(AC$4,$B$4:$F$4,0)-1),OFFSET('C. PoC Adj Factor Scoring'!$E$5:$J$282,,MATCH(AC$4,'C. PoC Adj Factor Scoring'!$E$3:$AH$3,0)-1),MATCH(AC$2&\" Score\",'C. PoC Adj Factor Scoring'!$E$4:$J$4,0),TRUE)","v":1},{"$f":"VLOOKUP(OFFSET($B:$B,,MATCH(AD$4,$B$4:$F$4,0)-1),OFFSET('C. PoC Adj Factor Scoring'!$E$5:$J$282,,MATCH(AD$4,'C. PoC Adj Factor Scoring'!$E$3:$AH$3,0)-1),MATCH(AD$2&\" Score\",'C. PoC Adj Factor Scoring'!$E$4:$J$4,0),TRUE)","v":1},{"$f":"VLOOKUP(OFFSET($B:$B,,MATCH(AE$4,$B$4:$F$4,0)-1),OFFSET('C. PoC Adj Factor Scoring'!$E$5:$J$282,,MATCH(AE$4,'C. PoC Adj Factor Scoring'!$E$3:$AH$3,0)-1),MATCH(AE$2&\" Score\",'C. PoC Adj Factor Scoring'!$E$4:$J$4,0),TRUE)","v":1}]
[{"$f":"'A. Population Info'!A547","v":1001618746},{"$f":"'A. Population Info'!L547","v":"OIL"},{"$f":"'A. Population Info'!M547","v":0},{"$f":"'A. Population Info'!N547","v":0},{"$f":"'A. Population Info'!O547","v":0},{"$f":"'A. Population Info'!P547","v":0},{"$f":"VLOOKUP(OFFSET($B:$B,,MATCH(G$4,$B$4:$F$4,0)-1),OFFSET('C. PoC Adj Factor Scoring'!$E$5:$J$282,,MATCH(G$4,'C. PoC Adj Factor Scoring'!$E$3:$AH$3,0)-1),MATCH(G$2&\" Score\",'C. PoC Adj Factor Scoring'!$E$4:$J$4,0),TRUE)","v":4},{"$f":"VLOOKUP(OFFSET($B:$B,,MATCH(H$4,$B$4:$F$4,0)-1),OFFSET('C. PoC Adj Factor Scoring'!$E$5:$J$282,,MATCH(H$4,'C. PoC Adj Factor Scoring'!$E$3:$AH$3,0)-1),MATCH(H$2&\" Score\",'C. PoC Adj Factor Scoring'!$E$4:$J$4,0),TRUE)","v":1},{"$f":"VLOOKUP(OFFSET($B:$B,,MATCH(I$4,$B$4:$F$4,0)-1),OFFSET('C. PoC Adj Factor Scoring'!$E$5:$J$282,,MATCH(I$4,'C. PoC Adj Factor Scoring'!$E$3:$AH$3,0)-1),MATCH(I$2&\" Score\",'C. PoC Adj Factor Scoring'!$E$4:$J$4,0),TRUE)","v":1},{"$f":"VLOOKUP(OFFSET($B:$B,,MATCH(J$4,$B$4:$F$4,0)-1),OFFSET('C. PoC Adj Factor Scoring'!$E$5:$J$282,,MATCH(J$4,'C. PoC Adj Factor Scoring'!$E$3:$AH$3,0)-1),MATCH(J$2&\" Score\",'C. PoC Adj Factor Scoring'!$E$4:$J$4,0),TRUE)","v":1},{"$f":"VLOOKUP(OFFSET($B:$B,,MATCH(K$4,$B$4:$F$4,0)-1),OFFSET('C. PoC Adj Factor Scoring'!$E$5:$J$282,,MATCH(K$4,'C. PoC Adj Factor Scoring'!$E$3:$AH$3,0)-1),MATCH(K$2&\" Score\",'C. PoC Adj Factor Scoring'!$E$4:$J$4,0),TRUE)","v":1},{"$f":"VLOOKUP(OFFSET($B:$B,,MATCH(L$4,$B$4:$F$4,0)-1),OFFSET('C. PoC Adj Factor Scoring'!$E$5:$J$282,,MATCH(L$4,'C. PoC Adj Factor Scoring'!$E$3:$AH$3,0)-1),MATCH(L$2&\" Score\",'C. PoC Adj Factor Scoring'!$E$4:$J$4,0),TRUE)","v":1},{"$f":"VLOOKUP(OFFSET($B:$B,,MATCH(M$4,$B$4:$F$4,0)-1),OFFSET('C. PoC Adj Factor Scoring'!$E$5:$J$282,,MATCH(M$4,'C. PoC Adj Factor Scoring'!$E$3:$AH$3,0)-1),MATCH(M$2&\" Score\",'C. PoC Adj Factor Scoring'!$E$4:$J$4,0),TRUE)","v":1},{"$f":"VLOOKUP(OFFSET($B:$B,,MATCH(N$4,$B$4:$F$4,0)-1),OFFSET('C. PoC Adj Factor Scoring'!$E$5:$J$282,,MATCH(N$4,'C. PoC Adj Factor Scoring'!$E$3:$AH$3,0)-1),MATCH(N$2&\" Score\",'C. PoC Adj Factor Scoring'!$E$4:$J$4,0),TRUE)","v":1},{"$f":"VLOOKUP(OFFSET($B:$B,,MATCH(O$4,$B$4:$F$4,0)-1),OFFSET('C. PoC Adj Factor Scoring'!$E$5:$J$282,,MATCH(O$4,'C. PoC Adj Factor Scoring'!$E$3:$AH$3,0)-1),MATCH(O$2&\" Score\",'C. PoC Adj Factor Scoring'!$E$4:$J$4,0),TRUE)","v":1},{"$f":"VLOOKUP(OFFSET($B:$B,,MATCH(P$4,$B$4:$F$4,0)-1),OFFSET('C. PoC Adj Factor Scoring'!$E$5:$J$282,,MATCH(P$4,'C. PoC Adj Factor Scoring'!$E$3:$AH$3,0)-1),MATCH(P$2&\" Score\",'C. PoC Adj Factor Scoring'!$E$4:$J$4,0),TRUE)","v":1},{"$f":"VLOOKUP(OFFSET($B:$B,,MATCH(Q$4,$B$4:$F$4,0)-1),OFFSET('C. PoC Adj Factor Scoring'!$E$5:$J$282,,MATCH(Q$4,'C. PoC Adj Factor Scoring'!$E$3:$AH$3,0)-1),MATCH(Q$2&\" Score\",'C. PoC Adj Factor Scoring'!$E$4:$J$4,0),TRUE)","v":1},{"$f":"VLOOKUP(OFFSET($B:$B,,MATCH(R$4,$B$4:$F$4,0)-1),OFFSET('C. PoC Adj Factor Scoring'!$E$5:$J$282,,MATCH(R$4,'C. PoC Adj Factor Scoring'!$E$3:$AH$3,0)-1),MATCH(R$2&\" Score\",'C. PoC Adj Factor Scoring'!$E$4:$J$4,0),TRUE)","v":1},{"$f":"VLOOKUP(OFFSET($B:$B,,MATCH(S$4,$B$4:$F$4,0)-1),OFFSET('C. PoC Adj Factor Scoring'!$E$5:$J$282,,MATCH(S$4,'C. PoC Adj Factor Scoring'!$E$3:$AH$3,0)-1),MATCH(S$2&\" Score\",'C. PoC Adj Factor Scoring'!$E$4:$J$4,0),TRUE)","v":1},{"$f":"VLOOKUP(OFFSET($B:$B,,MATCH(T$4,$B$4:$F$4,0)-1),OFFSET('C. PoC Adj Factor Scoring'!$E$5:$J$282,,MATCH(T$4,'C. PoC Adj Factor Scoring'!$E$3:$AH$3,0)-1),MATCH(T$2&\" Score\",'C. PoC Adj Factor Scoring'!$E$4:$J$4,0),TRUE)","v":1},{"$f":"VLOOKUP(OFFSET($B:$B,,MATCH(U$4,$B$4:$F$4,0)-1),OFFSET('C. PoC Adj Factor Scoring'!$E$5:$J$282,,MATCH(U$4,'C. PoC Adj Factor Scoring'!$E$3:$AH$3,0)-1),MATCH(U$2&\" Score\",'C. PoC Adj Factor Scoring'!$E$4:$J$4,0),TRUE)","v":1},{"$f":"VLOOKUP(OFFSET($B:$B,,MATCH(V$4,$B$4:$F$4,0)-1),OFFSET('C. PoC Adj Factor Scoring'!$E$5:$J$282,,MATCH(V$4,'C. PoC Adj Factor Scoring'!$E$3:$AH$3,0)-1),MATCH(V$2&\" Score\",'C. PoC Adj Factor Scoring'!$E$4:$J$4,0),TRUE)","v":1},{"$f":"VLOOKUP(OFFSET($B:$B,,MATCH(W$4,$B$4:$F$4,0)-1),OFFSET('C. PoC Adj Factor Scoring'!$E$5:$J$282,,MATCH(W$4,'C. PoC Adj Factor Scoring'!$E$3:$AH$3,0)-1),MATCH(W$2&\" Score\",'C. PoC Adj Factor Scoring'!$E$4:$J$4,0),TRUE)","v":1},{"$f":"VLOOKUP(OFFSET($B:$B,,MATCH(X$4,$B$4:$F$4,0)-1),OFFSET('C. PoC Adj Factor Scoring'!$E$5:$J$282,,MATCH(X$4,'C. PoC Adj Factor Scoring'!$E$3:$AH$3,0)-1),MATCH(X$2&\" Score\",'C. PoC Adj Factor Scoring'!$E$4:$J$4,0),TRUE)","v":1},{"$f":"VLOOKUP(OFFSET($B:$B,,MATCH(Y$4,$B$4:$F$4,0)-1),OFFSET('C. PoC Adj Factor Scoring'!$E$5:$J$282,,MATCH(Y$4,'C. PoC Adj Factor Scoring'!$E$3:$AH$3,0)-1),MATCH(Y$2&\" Score\",'C. PoC Adj Factor Scoring'!$E$4:$J$4,0),TRUE)","v":1},{"$f":"VLOOKUP(OFFSET($B:$B,,MATCH(Z$4,$B$4:$F$4,0)-1),OFFSET('C. PoC Adj Factor Scoring'!$E$5:$J$282,,MATCH(Z$4,'C. PoC Adj Factor Scoring'!$E$3:$AH$3,0)-1),MATCH(Z$2&\" Score\",'C. PoC Adj Factor Scoring'!$E$4:$J$4,0),TRUE)","v":1},{"$f":"VLOOKUP(OFFSET($B:$B,,MATCH(AA$4,$B$4:$F$4,0)-1),OFFSET('C. PoC Adj Factor Scoring'!$E$5:$J$282,,MATCH(AA$4,'C. PoC Adj Factor Scoring'!$E$3:$AH$3,0)-1),MATCH(AA$2&\" Score\",'C. PoC Adj Factor Scoring'!$E$4:$J$4,0),TRUE)","v":3},{"$f":"VLOOKUP(OFFSET($B:$B,,MATCH(AB$4,$B$4:$F$4,0)-1),OFFSET('C. PoC Adj Factor Scoring'!$E$5:$J$282,,MATCH(AB$4,'C. PoC Adj Factor Scoring'!$E$3:$AH$3,0)-1),MATCH(AB$2&\" Score\",'C. PoC Adj Factor Scoring'!$E$4:$J$4,0),TRUE)","v":1},{"$f":"VLOOKUP(OFFSET($B:$B,,MATCH(AC$4,$B$4:$F$4,0)-1),OFFSET('C. PoC Adj Factor Scoring'!$E$5:$J$282,,MATCH(AC$4,'C. PoC Adj Factor Scoring'!$E$3:$AH$3,0)-1),MATCH(AC$2&\" Score\",'C. PoC Adj Factor Scoring'!$E$4:$J$4,0),TRUE)","v":1},{"$f":"VLOOKUP(OFFSET($B:$B,,MATCH(AD$4,$B$4:$F$4,0)-1),OFFSET('C. PoC Adj Factor Scoring'!$E$5:$J$282,,MATCH(AD$4,'C. PoC Adj Factor Scoring'!$E$3:$AH$3,0)-1),MATCH(AD$2&\" Score\",'C. PoC Adj Factor Scoring'!$E$4:$J$4,0),TRUE)","v":1},{"$f":"VLOOKUP(OFFSET($B:$B,,MATCH(AE$4,$B$4:$F$4,0)-1),OFFSET('C. PoC Adj Factor Scoring'!$E$5:$J$282,,MATCH(AE$4,'C. PoC Adj Factor Scoring'!$E$3:$AH$3,0)-1),MATCH(AE$2&\" Score\",'C. PoC Adj Factor Scoring'!$E$4:$J$4,0),TRUE)","v":1}]
[{"$f":"'A. Population Info'!A548","v":1001618747},{"$f":"'A. Population Info'!L548","v":"OIL"},{"$f":"'A. Population Info'!M548","v":0},{"$f":"'A. Population Info'!N548","v":0},{"$f":"'A. Population Info'!O548","v":0},{"$f":"'A. Population Info'!P548","v":0},{"$f":"VLOOKUP(OFFSET($B:$B,,MATCH(G$4,$B$4:$F$4,0)-1),OFFSET('C. PoC Adj Factor Scoring'!$E$5:$J$282,,MATCH(G$4,'C. PoC Adj Factor Scoring'!$E$3:$AH$3,0)-1),MATCH(G$2&\" Score\",'C. PoC Adj Factor Scoring'!$E$4:$J$4,0),TRUE)","v":4},{"$f":"VLOOKUP(OFFSET($B:$B,,MATCH(H$4,$B$4:$F$4,0)-1),OFFSET('C. PoC Adj Factor Scoring'!$E$5:$J$282,,MATCH(H$4,'C. PoC Adj Factor Scoring'!$E$3:$AH$3,0)-1),MATCH(H$2&\" Score\",'C. PoC Adj Factor Scoring'!$E$4:$J$4,0),TRUE)","v":1},{"$f":"VLOOKUP(OFFSET($B:$B,,MATCH(I$4,$B$4:$F$4,0)-1),OFFSET('C. PoC Adj Factor Scoring'!$E$5:$J$282,,MATCH(I$4,'C. PoC Adj Factor Scoring'!$E$3:$AH$3,0)-1),MATCH(I$2&\" Score\",'C. PoC Adj Factor Scoring'!$E$4:$J$4,0),TRUE)","v":1},{"$f":"VLOOKUP(OFFSET($B:$B,,MATCH(J$4,$B$4:$F$4,0)-1),OFFSET('C. PoC Adj Factor Scoring'!$E$5:$J$282,,MATCH(J$4,'C. PoC Adj Factor Scoring'!$E$3:$AH$3,0)-1),MATCH(J$2&\" Score\",'C. PoC Adj Factor Scoring'!$E$4:$J$4,0),TRUE)","v":1},{"$f":"VLOOKUP(OFFSET($B:$B,,MATCH(K$4,$B$4:$F$4,0)-1),OFFSET('C. PoC Adj Factor Scoring'!$E$5:$J$282,,MATCH(K$4,'C. PoC Adj Factor Scoring'!$E$3:$AH$3,0)-1),MATCH(K$2&\" Score\",'C. PoC Adj Factor Scoring'!$E$4:$J$4,0),TRUE)","v":1},{"$f":"VLOOKUP(OFFSET($B:$B,,MATCH(L$4,$B$4:$F$4,0)-1),OFFSET('C. PoC Adj Factor Scoring'!$E$5:$J$282,,MATCH(L$4,'C. PoC Adj Factor Scoring'!$E$3:$AH$3,0)-1),MATCH(L$2&\" Score\",'C. PoC Adj Factor Scoring'!$E$4:$J$4,0),TRUE)","v":1},{"$f":"VLOOKUP(OFFSET($B:$B,,MATCH(M$4,$B$4:$F$4,0)-1),OFFSET('C. PoC Adj Factor Scoring'!$E$5:$J$282,,MATCH(M$4,'C. PoC Adj Factor Scoring'!$E$3:$AH$3,0)-1),MATCH(M$2&\" Score\",'C. PoC Adj Factor Scoring'!$E$4:$J$4,0),TRUE)","v":1},{"$f":"VLOOKUP(OFFSET($B:$B,,MATCH(N$4,$B$4:$F$4,0)-1),OFFSET('C. PoC Adj Factor Scoring'!$E$5:$J$282,,MATCH(N$4,'C. PoC Adj Factor Scoring'!$E$3:$AH$3,0)-1),MATCH(N$2&\" Score\",'C. PoC Adj Factor Scoring'!$E$4:$J$4,0),TRUE)","v":1},{"$f":"VLOOKUP(OFFSET($B:$B,,MATCH(O$4,$B$4:$F$4,0)-1),OFFSET('C. PoC Adj Factor Scoring'!$E$5:$J$282,,MATCH(O$4,'C. PoC Adj Factor Scoring'!$E$3:$AH$3,0)-1),MATCH(O$2&\" Score\",'C. PoC Adj Factor Scoring'!$E$4:$J$4,0),TRUE)","v":1},{"$f":"VLOOKUP(OFFSET($B:$B,,MATCH(P$4,$B$4:$F$4,0)-1),OFFSET('C. PoC Adj Factor Scoring'!$E$5:$J$282,,MATCH(P$4,'C. PoC Adj Factor Scoring'!$E$3:$AH$3,0)-1),MATCH(P$2&\" Score\",'C. PoC Adj Factor Scoring'!$E$4:$J$4,0),TRUE)","v":1},{"$f":"VLOOKUP(OFFSET($B:$B,,MATCH(Q$4,$B$4:$F$4,0)-1),OFFSET('C. PoC Adj Factor Scoring'!$E$5:$J$282,,MATCH(Q$4,'C. PoC Adj Factor Scoring'!$E$3:$AH$3,0)-1),MATCH(Q$2&\" Score\",'C. PoC Adj Factor Scoring'!$E$4:$J$4,0),TRUE)","v":1},{"$f":"VLOOKUP(OFFSET($B:$B,,MATCH(R$4,$B$4:$F$4,0)-1),OFFSET('C. PoC Adj Factor Scoring'!$E$5:$J$282,,MATCH(R$4,'C. PoC Adj Factor Scoring'!$E$3:$AH$3,0)-1),MATCH(R$2&\" Score\",'C. PoC Adj Factor Scoring'!$E$4:$J$4,0),TRUE)","v":1},{"$f":"VLOOKUP(OFFSET($B:$B,,MATCH(S$4,$B$4:$F$4,0)-1),OFFSET('C. PoC Adj Factor Scoring'!$E$5:$J$282,,MATCH(S$4,'C. PoC Adj Factor Scoring'!$E$3:$AH$3,0)-1),MATCH(S$2&\" Score\",'C. PoC Adj Factor Scoring'!$E$4:$J$4,0),TRUE)","v":1},{"$f":"VLOOKUP(OFFSET($B:$B,,MATCH(T$4,$B$4:$F$4,0)-1),OFFSET('C. PoC Adj Factor Scoring'!$E$5:$J$282,,MATCH(T$4,'C. PoC Adj Factor Scoring'!$E$3:$AH$3,0)-1),MATCH(T$2&\" Score\",'C. PoC Adj Factor Scoring'!$E$4:$J$4,0),TRUE)","v":1},{"$f":"VLOOKUP(OFFSET($B:$B,,MATCH(U$4,$B$4:$F$4,0)-1),OFFSET('C. PoC Adj Factor Scoring'!$E$5:$J$282,,MATCH(U$4,'C. PoC Adj Factor Scoring'!$E$3:$AH$3,0)-1),MATCH(U$2&\" Score\",'C. PoC Adj Factor Scoring'!$E$4:$J$4,0),TRUE)","v":1},{"$f":"VLOOKUP(OFFSET($B:$B,,MATCH(V$4,$B$4:$F$4,0)-1),OFFSET('C. PoC Adj Factor Scoring'!$E$5:$J$282,,MATCH(V$4,'C. PoC Adj Factor Scoring'!$E$3:$AH$3,0)-1),MATCH(V$2&\" Score\",'C. PoC Adj Factor Scoring'!$E$4:$J$4,0),TRUE)","v":1},{"$f":"VLOOKUP(OFFSET($B:$B,,MATCH(W$4,$B$4:$F$4,0)-1),OFFSET('C. PoC Adj Factor Scoring'!$E$5:$J$282,,MATCH(W$4,'C. PoC Adj Factor Scoring'!$E$3:$AH$3,0)-1),MATCH(W$2&\" Score\",'C. PoC Adj Factor Scoring'!$E$4:$J$4,0),TRUE)","v":1},{"$f":"VLOOKUP(OFFSET($B:$B,,MATCH(X$4,$B$4:$F$4,0)-1),OFFSET('C. PoC Adj Factor Scoring'!$E$5:$J$282,,MATCH(X$4,'C. PoC Adj Factor Scoring'!$E$3:$AH$3,0)-1),MATCH(X$2&\" Score\",'C. PoC Adj Factor Scoring'!$E$4:$J$4,0),TRUE)","v":1},{"$f":"VLOOKUP(OFFSET($B:$B,,MATCH(Y$4,$B$4:$F$4,0)-1),OFFSET('C. PoC Adj Factor Scoring'!$E$5:$J$282,,MATCH(Y$4,'C. PoC Adj Factor Scoring'!$E$3:$AH$3,0)-1),MATCH(Y$2&\" Score\",'C. PoC Adj Factor Scoring'!$E$4:$J$4,0),TRUE)","v":1},{"$f":"VLOOKUP(OFFSET($B:$B,,MATCH(Z$4,$B$4:$F$4,0)-1),OFFSET('C. PoC Adj Factor Scoring'!$E$5:$J$282,,MATCH(Z$4,'C. PoC Adj Factor Scoring'!$E$3:$AH$3,0)-1),MATCH(Z$2&\" Score\",'C. PoC Adj Factor Scoring'!$E$4:$J$4,0),TRUE)","v":1},{"$f":"VLOOKUP(OFFSET($B:$B,,MATCH(AA$4,$B$4:$F$4,0)-1),OFFSET('C. PoC Adj Factor Scoring'!$E$5:$J$282,,MATCH(AA$4,'C. PoC Adj Factor Scoring'!$E$3:$AH$3,0)-1),MATCH(AA$2&\" Score\",'C. PoC Adj Factor Scoring'!$E$4:$J$4,0),TRUE)","v":3},{"$f":"VLOOKUP(OFFSET($B:$B,,MATCH(AB$4,$B$4:$F$4,0)-1),OFFSET('C. PoC Adj Factor Scoring'!$E$5:$J$282,,MATCH(AB$4,'C. PoC Adj Factor Scoring'!$E$3:$AH$3,0)-1),MATCH(AB$2&\" Score\",'C. PoC Adj Factor Scoring'!$E$4:$J$4,0),TRUE)","v":1},{"$f":"VLOOKUP(OFFSET($B:$B,,MATCH(AC$4,$B$4:$F$4,0)-1),OFFSET('C. PoC Adj Factor Scoring'!$E$5:$J$282,,MATCH(AC$4,'C. PoC Adj Factor Scoring'!$E$3:$AH$3,0)-1),MATCH(AC$2&\" Score\",'C. PoC Adj Factor Scoring'!$E$4:$J$4,0),TRUE)","v":1},{"$f":"VLOOKUP(OFFSET($B:$B,,MATCH(AD$4,$B$4:$F$4,0)-1),OFFSET('C. PoC Adj Factor Scoring'!$E$5:$J$282,,MATCH(AD$4,'C. PoC Adj Factor Scoring'!$E$3:$AH$3,0)-1),MATCH(AD$2&\" Score\",'C. PoC Adj Factor Scoring'!$E$4:$J$4,0),TRUE)","v":1},{"$f":"VLOOKUP(OFFSET($B:$B,,MATCH(AE$4,$B$4:$F$4,0)-1),OFFSET('C. PoC Adj Factor Scoring'!$E$5:$J$282,,MATCH(AE$4,'C. PoC Adj Factor Scoring'!$E$3:$AH$3,0)-1),MATCH(AE$2&\" Score\",'C. PoC Adj Factor Scoring'!$E$4:$J$4,0),TRUE)","v":1}]
[{"$f":"'A. Population Info'!A549","v":1001626218},{"$f":"'A. Population Info'!L549","v":"OIL"},{"$f":"'A. Population Info'!M549","v":0},{"$f":"'A. Population Info'!N549","v":0},{"$f":"'A. Population Info'!O549","v":0},{"$f":"'A. Population Info'!P549","v":0},{"$f":"VLOOKUP(OFFSET($B:$B,,MATCH(G$4,$B$4:$F$4,0)-1),OFFSET('C. PoC Adj Factor Scoring'!$E$5:$J$282,,MATCH(G$4,'C. PoC Adj Factor Scoring'!$E$3:$AH$3,0)-1),MATCH(G$2&\" Score\",'C. PoC Adj Factor Scoring'!$E$4:$J$4,0),TRUE)","v":4},{"$f":"VLOOKUP(OFFSET($B:$B,,MATCH(H$4,$B$4:$F$4,0)-1),OFFSET('C. PoC Adj Factor Scoring'!$E$5:$J$282,,MATCH(H$4,'C. PoC Adj Factor Scoring'!$E$3:$AH$3,0)-1),MATCH(H$2&\" Score\",'C. PoC Adj Factor Scoring'!$E$4:$J$4,0),TRUE)","v":1},{"$f":"VLOOKUP(OFFSET($B:$B,,MATCH(I$4,$B$4:$F$4,0)-1),OFFSET('C. PoC Adj Factor Scoring'!$E$5:$J$282,,MATCH(I$4,'C. PoC Adj Factor Scoring'!$E$3:$AH$3,0)-1),MATCH(I$2&\" Score\",'C. PoC Adj Factor Scoring'!$E$4:$J$4,0),TRUE)","v":1},{"$f":"VLOOKUP(OFFSET($B:$B,,MATCH(J$4,$B$4:$F$4,0)-1),OFFSET('C. PoC Adj Factor Scoring'!$E$5:$J$282,,MATCH(J$4,'C. PoC Adj Factor Scoring'!$E$3:$AH$3,0)-1),MATCH(J$2&\" Score\",'C. PoC Adj Factor Scoring'!$E$4:$J$4,0),TRUE)","v":1},{"$f":"VLOOKUP(OFFSET($B:$B,,MATCH(K$4,$B$4:$F$4,0)-1),OFFSET('C. PoC Adj Factor Scoring'!$E$5:$J$282,,MATCH(K$4,'C. PoC Adj Factor Scoring'!$E$3:$AH$3,0)-1),MATCH(K$2&\" Score\",'C. PoC Adj Factor Scoring'!$E$4:$J$4,0),TRUE)","v":1},{"$f":"VLOOKUP(OFFSET($B:$B,,MATCH(L$4,$B$4:$F$4,0)-1),OFFSET('C. PoC Adj Factor Scoring'!$E$5:$J$282,,MATCH(L$4,'C. PoC Adj Factor Scoring'!$E$3:$AH$3,0)-1),MATCH(L$2&\" Score\",'C. PoC Adj Factor Scoring'!$E$4:$J$4,0),TRUE)","v":1},{"$f":"VLOOKUP(OFFSET($B:$B,,MATCH(M$4,$B$4:$F$4,0)-1),OFFSET('C. PoC Adj Factor Scoring'!$E$5:$J$282,,MATCH(M$4,'C. PoC Adj Factor Scoring'!$E$3:$AH$3,0)-1),MATCH(M$2&\" Score\",'C. PoC Adj Factor Scoring'!$E$4:$J$4,0),TRUE)","v":1},{"$f":"VLOOKUP(OFFSET($B:$B,,MATCH(N$4,$B$4:$F$4,0)-1),OFFSET('C. PoC Adj Factor Scoring'!$E$5:$J$282,,MATCH(N$4,'C. PoC Adj Factor Scoring'!$E$3:$AH$3,0)-1),MATCH(N$2&\" Score\",'C. PoC Adj Factor Scoring'!$E$4:$J$4,0),TRUE)","v":1},{"$f":"VLOOKUP(OFFSET($B:$B,,MATCH(O$4,$B$4:$F$4,0)-1),OFFSET('C. PoC Adj Factor Scoring'!$E$5:$J$282,,MATCH(O$4,'C. PoC Adj Factor Scoring'!$E$3:$AH$3,0)-1),MATCH(O$2&\" Score\",'C. PoC Adj Factor Scoring'!$E$4:$J$4,0),TRUE)","v":1},{"$f":"VLOOKUP(OFFSET($B:$B,,MATCH(P$4,$B$4:$F$4,0)-1),OFFSET('C. PoC Adj Factor Scoring'!$E$5:$J$282,,MATCH(P$4,'C. PoC Adj Factor Scoring'!$E$3:$AH$3,0)-1),MATCH(P$2&\" Score\",'C. PoC Adj Factor Scoring'!$E$4:$J$4,0),TRUE)","v":1},{"$f":"VLOOKUP(OFFSET($B:$B,,MATCH(Q$4,$B$4:$F$4,0)-1),OFFSET('C. PoC Adj Factor Scoring'!$E$5:$J$282,,MATCH(Q$4,'C. PoC Adj Factor Scoring'!$E$3:$AH$3,0)-1),MATCH(Q$2&\" Score\",'C. PoC Adj Factor Scoring'!$E$4:$J$4,0),TRUE)","v":1},{"$f":"VLOOKUP(OFFSET($B:$B,,MATCH(R$4,$B$4:$F$4,0)-1),OFFSET('C. PoC Adj Factor Scoring'!$E$5:$J$282,,MATCH(R$4,'C. PoC Adj Factor Scoring'!$E$3:$AH$3,0)-1),MATCH(R$2&\" Score\",'C. PoC Adj Factor Scoring'!$E$4:$J$4,0),TRUE)","v":1},{"$f":"VLOOKUP(OFFSET($B:$B,,MATCH(S$4,$B$4:$F$4,0)-1),OFFSET('C. PoC Adj Factor Scoring'!$E$5:$J$282,,MATCH(S$4,'C. PoC Adj Factor Scoring'!$E$3:$AH$3,0)-1),MATCH(S$2&\" Score\",'C. PoC Adj Factor Scoring'!$E$4:$J$4,0),TRUE)","v":1},{"$f":"VLOOKUP(OFFSET($B:$B,,MATCH(T$4,$B$4:$F$4,0)-1),OFFSET('C. PoC Adj Factor Scoring'!$E$5:$J$282,,MATCH(T$4,'C. PoC Adj Factor Scoring'!$E$3:$AH$3,0)-1),MATCH(T$2&\" Score\",'C. PoC Adj Factor Scoring'!$E$4:$J$4,0),TRUE)","v":1},{"$f":"VLOOKUP(OFFSET($B:$B,,MATCH(U$4,$B$4:$F$4,0)-1),OFFSET('C. PoC Adj Factor Scoring'!$E$5:$J$282,,MATCH(U$4,'C. PoC Adj Factor Scoring'!$E$3:$AH$3,0)-1),MATCH(U$2&\" Score\",'C. PoC Adj Factor Scoring'!$E$4:$J$4,0),TRUE)","v":1},{"$f":"VLOOKUP(OFFSET($B:$B,,MATCH(V$4,$B$4:$F$4,0)-1),OFFSET('C. PoC Adj Factor Scoring'!$E$5:$J$282,,MATCH(V$4,'C. PoC Adj Factor Scoring'!$E$3:$AH$3,0)-1),MATCH(V$2&\" Score\",'C. PoC Adj Factor Scoring'!$E$4:$J$4,0),TRUE)","v":1},{"$f":"VLOOKUP(OFFSET($B:$B,,MATCH(W$4,$B$4:$F$4,0)-1),OFFSET('C. PoC Adj Factor Scoring'!$E$5:$J$282,,MATCH(W$4,'C. PoC Adj Factor Scoring'!$E$3:$AH$3,0)-1),MATCH(W$2&\" Score\",'C. PoC Adj Factor Scoring'!$E$4:$J$4,0),TRUE)","v":1},{"$f":"VLOOKUP(OFFSET($B:$B,,MATCH(X$4,$B$4:$F$4,0)-1),OFFSET('C. PoC Adj Factor Scoring'!$E$5:$J$282,,MATCH(X$4,'C. PoC Adj Factor Scoring'!$E$3:$AH$3,0)-1),MATCH(X$2&\" Score\",'C. PoC Adj Factor Scoring'!$E$4:$J$4,0),TRUE)","v":1},{"$f":"VLOOKUP(OFFSET($B:$B,,MATCH(Y$4,$B$4:$F$4,0)-1),OFFSET('C. PoC Adj Factor Scoring'!$E$5:$J$282,,MATCH(Y$4,'C. PoC Adj Factor Scoring'!$E$3:$AH$3,0)-1),MATCH(Y$2&\" Score\",'C. PoC Adj Factor Scoring'!$E$4:$J$4,0),TRUE)","v":1},{"$f":"VLOOKUP(OFFSET($B:$B,,MATCH(Z$4,$B$4:$F$4,0)-1),OFFSET('C. PoC Adj Factor Scoring'!$E$5:$J$282,,MATCH(Z$4,'C. PoC Adj Factor Scoring'!$E$3:$AH$3,0)-1),MATCH(Z$2&\" Score\",'C. PoC Adj Factor Scoring'!$E$4:$J$4,0),TRUE)","v":1},{"$f":"VLOOKUP(OFFSET($B:$B,,MATCH(AA$4,$B$4:$F$4,0)-1),OFFSET('C. PoC Adj Factor Scoring'!$E$5:$J$282,,MATCH(AA$4,'C. PoC Adj Factor Scoring'!$E$3:$AH$3,0)-1),MATCH(AA$2&\" Score\",'C. PoC Adj Factor Scoring'!$E$4:$J$4,0),TRUE)","v":3},{"$f":"VLOOKUP(OFFSET($B:$B,,MATCH(AB$4,$B$4:$F$4,0)-1),OFFSET('C. PoC Adj Factor Scoring'!$E$5:$J$282,,MATCH(AB$4,'C. PoC Adj Factor Scoring'!$E$3:$AH$3,0)-1),MATCH(AB$2&\" Score\",'C. PoC Adj Factor Scoring'!$E$4:$J$4,0),TRUE)","v":1},{"$f":"VLOOKUP(OFFSET($B:$B,,MATCH(AC$4,$B$4:$F$4,0)-1),OFFSET('C. PoC Adj Factor Scoring'!$E$5:$J$282,,MATCH(AC$4,'C. PoC Adj Factor Scoring'!$E$3:$AH$3,0)-1),MATCH(AC$2&\" Score\",'C. PoC Adj Factor Scoring'!$E$4:$J$4,0),TRUE)","v":1},{"$f":"VLOOKUP(OFFSET($B:$B,,MATCH(AD$4,$B$4:$F$4,0)-1),OFFSET('C. PoC Adj Factor Scoring'!$E$5:$J$282,,MATCH(AD$4,'C. PoC Adj Factor Scoring'!$E$3:$AH$3,0)-1),MATCH(AD$2&\" Score\",'C. PoC Adj Factor Scoring'!$E$4:$J$4,0),TRUE)","v":1},{"$f":"VLOOKUP(OFFSET($B:$B,,MATCH(AE$4,$B$4:$F$4,0)-1),OFFSET('C. PoC Adj Factor Scoring'!$E$5:$J$282,,MATCH(AE$4,'C. PoC Adj Factor Scoring'!$E$3:$AH$3,0)-1),MATCH(AE$2&\" Score\",'C. PoC Adj Factor Scoring'!$E$4:$J$4,0),TRUE)","v":1}]
[{"$f":"'A. Population Info'!A550","v":1001631721},{"$f":"'A. Population Info'!L550","v":"OIL"},{"$f":"'A. Population Info'!M550","v":0},{"$f":"'A. Population Info'!N550","v":0},{"$f":"'A. Population Info'!O550","v":0},{"$f":"'A. Population Info'!P550","v":0},{"$f":"VLOOKUP(OFFSET($B:$B,,MATCH(G$4,$B$4:$F$4,0)-1),OFFSET('C. PoC Adj Factor Scoring'!$E$5:$J$282,,MATCH(G$4,'C. PoC Adj Factor Scoring'!$E$3:$AH$3,0)-1),MATCH(G$2&\" Score\",'C. PoC Adj Factor Scoring'!$E$4:$J$4,0),TRUE)","v":4},{"$f":"VLOOKUP(OFFSET($B:$B,,MATCH(H$4,$B$4:$F$4,0)-1),OFFSET('C. PoC Adj Factor Scoring'!$E$5:$J$282,,MATCH(H$4,'C. PoC Adj Factor Scoring'!$E$3:$AH$3,0)-1),MATCH(H$2&\" Score\",'C. PoC Adj Factor Scoring'!$E$4:$J$4,0),TRUE)","v":1},{"$f":"VLOOKUP(OFFSET($B:$B,,MATCH(I$4,$B$4:$F$4,0)-1),OFFSET('C. PoC Adj Factor Scoring'!$E$5:$J$282,,MATCH(I$4,'C. PoC Adj Factor Scoring'!$E$3:$AH$3,0)-1),MATCH(I$2&\" Score\",'C. PoC Adj Factor Scoring'!$E$4:$J$4,0),TRUE)","v":1},{"$f":"VLOOKUP(OFFSET($B:$B,,MATCH(J$4,$B$4:$F$4,0)-1),OFFSET('C. PoC Adj Factor Scoring'!$E$5:$J$282,,MATCH(J$4,'C. PoC Adj Factor Scoring'!$E$3:$AH$3,0)-1),MATCH(J$2&\" Score\",'C. PoC Adj Factor Scoring'!$E$4:$J$4,0),TRUE)","v":1},{"$f":"VLOOKUP(OFFSET($B:$B,,MATCH(K$4,$B$4:$F$4,0)-1),OFFSET('C. PoC Adj Factor Scoring'!$E$5:$J$282,,MATCH(K$4,'C. PoC Adj Factor Scoring'!$E$3:$AH$3,0)-1),MATCH(K$2&\" Score\",'C. PoC Adj Factor Scoring'!$E$4:$J$4,0),TRUE)","v":1},{"$f":"VLOOKUP(OFFSET($B:$B,,MATCH(L$4,$B$4:$F$4,0)-1),OFFSET('C. PoC Adj Factor Scoring'!$E$5:$J$282,,MATCH(L$4,'C. PoC Adj Factor Scoring'!$E$3:$AH$3,0)-1),MATCH(L$2&\" Score\",'C. PoC Adj Factor Scoring'!$E$4:$J$4,0),TRUE)","v":1},{"$f":"VLOOKUP(OFFSET($B:$B,,MATCH(M$4,$B$4:$F$4,0)-1),OFFSET('C. PoC Adj Factor Scoring'!$E$5:$J$282,,MATCH(M$4,'C. PoC Adj Factor Scoring'!$E$3:$AH$3,0)-1),MATCH(M$2&\" Score\",'C. PoC Adj Factor Scoring'!$E$4:$J$4,0),TRUE)","v":1},{"$f":"VLOOKUP(OFFSET($B:$B,,MATCH(N$4,$B$4:$F$4,0)-1),OFFSET('C. PoC Adj Factor Scoring'!$E$5:$J$282,,MATCH(N$4,'C. PoC Adj Factor Scoring'!$E$3:$AH$3,0)-1),MATCH(N$2&\" Score\",'C. PoC Adj Factor Scoring'!$E$4:$J$4,0),TRUE)","v":1},{"$f":"VLOOKUP(OFFSET($B:$B,,MATCH(O$4,$B$4:$F$4,0)-1),OFFSET('C. PoC Adj Factor Scoring'!$E$5:$J$282,,MATCH(O$4,'C. PoC Adj Factor Scoring'!$E$3:$AH$3,0)-1),MATCH(O$2&\" Score\",'C. PoC Adj Factor Scoring'!$E$4:$J$4,0),TRUE)","v":1},{"$f":"VLOOKUP(OFFSET($B:$B,,MATCH(P$4,$B$4:$F$4,0)-1),OFFSET('C. PoC Adj Factor Scoring'!$E$5:$J$282,,MATCH(P$4,'C. PoC Adj Factor Scoring'!$E$3:$AH$3,0)-1),MATCH(P$2&\" Score\",'C. PoC Adj Factor Scoring'!$E$4:$J$4,0),TRUE)","v":1},{"$f":"VLOOKUP(OFFSET($B:$B,,MATCH(Q$4,$B$4:$F$4,0)-1),OFFSET('C. PoC Adj Factor Scoring'!$E$5:$J$282,,MATCH(Q$4,'C. PoC Adj Factor Scoring'!$E$3:$AH$3,0)-1),MATCH(Q$2&\" Score\",'C. PoC Adj Factor Scoring'!$E$4:$J$4,0),TRUE)","v":1},{"$f":"VLOOKUP(OFFSET($B:$B,,MATCH(R$4,$B$4:$F$4,0)-1),OFFSET('C. PoC Adj Factor Scoring'!$E$5:$J$282,,MATCH(R$4,'C. PoC Adj Factor Scoring'!$E$3:$AH$3,0)-1),MATCH(R$2&\" Score\",'C. PoC Adj Factor Scoring'!$E$4:$J$4,0),TRUE)","v":1},{"$f":"VLOOKUP(OFFSET($B:$B,,MATCH(S$4,$B$4:$F$4,0)-1),OFFSET('C. PoC Adj Factor Scoring'!$E$5:$J$282,,MATCH(S$4,'C. PoC Adj Factor Scoring'!$E$3:$AH$3,0)-1),MATCH(S$2&\" Score\",'C. PoC Adj Factor Scoring'!$E$4:$J$4,0),TRUE)","v":1},{"$f":"VLOOKUP(OFFSET($B:$B,,MATCH(T$4,$B$4:$F$4,0)-1),OFFSET('C. PoC Adj Factor Scoring'!$E$5:$J$282,,MATCH(T$4,'C. PoC Adj Factor Scoring'!$E$3:$AH$3,0)-1),MATCH(T$2&\" Score\",'C. PoC Adj Factor Scoring'!$E$4:$J$4,0),TRUE)","v":1},{"$f":"VLOOKUP(OFFSET($B:$B,,MATCH(U$4,$B$4:$F$4,0)-1),OFFSET('C. PoC Adj Factor Scoring'!$E$5:$J$282,,MATCH(U$4,'C. PoC Adj Factor Scoring'!$E$3:$AH$3,0)-1),MATCH(U$2&\" Score\",'C. PoC Adj Factor Scoring'!$E$4:$J$4,0),TRUE)","v":1},{"$f":"VLOOKUP(OFFSET($B:$B,,MATCH(V$4,$B$4:$F$4,0)-1),OFFSET('C. PoC Adj Factor Scoring'!$E$5:$J$282,,MATCH(V$4,'C. PoC Adj Factor Scoring'!$E$3:$AH$3,0)-1),MATCH(V$2&\" Score\",'C. PoC Adj Factor Scoring'!$E$4:$J$4,0),TRUE)","v":1},{"$f":"VLOOKUP(OFFSET($B:$B,,MATCH(W$4,$B$4:$F$4,0)-1),OFFSET('C. PoC Adj Factor Scoring'!$E$5:$J$282,,MATCH(W$4,'C. PoC Adj Factor Scoring'!$E$3:$AH$3,0)-1),MATCH(W$2&\" Score\",'C. PoC Adj Factor Scoring'!$E$4:$J$4,0),TRUE)","v":1},{"$f":"VLOOKUP(OFFSET($B:$B,,MATCH(X$4,$B$4:$F$4,0)-1),OFFSET('C. PoC Adj Factor Scoring'!$E$5:$J$282,,MATCH(X$4,'C. PoC Adj Factor Scoring'!$E$3:$AH$3,0)-1),MATCH(X$2&\" Score\",'C. PoC Adj Factor Scoring'!$E$4:$J$4,0),TRUE)","v":1},{"$f":"VLOOKUP(OFFSET($B:$B,,MATCH(Y$4,$B$4:$F$4,0)-1),OFFSET('C. PoC Adj Factor Scoring'!$E$5:$J$282,,MATCH(Y$4,'C. PoC Adj Factor Scoring'!$E$3:$AH$3,0)-1),MATCH(Y$2&\" Score\",'C. PoC Adj Factor Scoring'!$E$4:$J$4,0),TRUE)","v":1},{"$f":"VLOOKUP(OFFSET($B:$B,,MATCH(Z$4,$B$4:$F$4,0)-1),OFFSET('C. PoC Adj Factor Scoring'!$E$5:$J$282,,MATCH(Z$4,'C. PoC Adj Factor Scoring'!$E$3:$AH$3,0)-1),MATCH(Z$2&\" Score\",'C. PoC Adj Factor Scoring'!$E$4:$J$4,0),TRUE)","v":1},{"$f":"VLOOKUP(OFFSET($B:$B,,MATCH(AA$4,$B$4:$F$4,0)-1),OFFSET('C. PoC Adj Factor Scoring'!$E$5:$J$282,,MATCH(AA$4,'C. PoC Adj Factor Scoring'!$E$3:$AH$3,0)-1),MATCH(AA$2&\" Score\",'C. PoC Adj Factor Scoring'!$E$4:$J$4,0),TRUE)","v":3},{"$f":"VLOOKUP(OFFSET($B:$B,,MATCH(AB$4,$B$4:$F$4,0)-1),OFFSET('C. PoC Adj Factor Scoring'!$E$5:$J$282,,MATCH(AB$4,'C. PoC Adj Factor Scoring'!$E$3:$AH$3,0)-1),MATCH(AB$2&\" Score\",'C. PoC Adj Factor Scoring'!$E$4:$J$4,0),TRUE)","v":1},{"$f":"VLOOKUP(OFFSET($B:$B,,MATCH(AC$4,$B$4:$F$4,0)-1),OFFSET('C. PoC Adj Factor Scoring'!$E$5:$J$282,,MATCH(AC$4,'C. PoC Adj Factor Scoring'!$E$3:$AH$3,0)-1),MATCH(AC$2&\" Score\",'C. PoC Adj Factor Scoring'!$E$4:$J$4,0),TRUE)","v":1},{"$f":"VLOOKUP(OFFSET($B:$B,,MATCH(AD$4,$B$4:$F$4,0)-1),OFFSET('C. PoC Adj Factor Scoring'!$E$5:$J$282,,MATCH(AD$4,'C. PoC Adj Factor Scoring'!$E$3:$AH$3,0)-1),MATCH(AD$2&\" Score\",'C. PoC Adj Factor Scoring'!$E$4:$J$4,0),TRUE)","v":1},{"$f":"VLOOKUP(OFFSET($B:$B,,MATCH(AE$4,$B$4:$F$4,0)-1),OFFSET('C. PoC Adj Factor Scoring'!$E$5:$J$282,,MATCH(AE$4,'C. PoC Adj Factor Scoring'!$E$3:$AH$3,0)-1),MATCH(AE$2&\" Score\",'C. PoC Adj Factor Scoring'!$E$4:$J$4,0),TRUE)","v":1}]
[{"$f":"'A. Population Info'!A551","v":1001631725},{"$f":"'A. Population Info'!L551","v":"OIL"},{"$f":"'A. Population Info'!M551","v":0},{"$f":"'A. Population Info'!N551","v":0},{"$f":"'A. Population Info'!O551","v":0},{"$f":"'A. Population Info'!P551","v":0},{"$f":"VLOOKUP(OFFSET($B:$B,,MATCH(G$4,$B$4:$F$4,0)-1),OFFSET('C. PoC Adj Factor Scoring'!$E$5:$J$282,,MATCH(G$4,'C. PoC Adj Factor Scoring'!$E$3:$AH$3,0)-1),MATCH(G$2&\" Score\",'C. PoC Adj Factor Scoring'!$E$4:$J$4,0),TRUE)","v":4},{"$f":"VLOOKUP(OFFSET($B:$B,,MATCH(H$4,$B$4:$F$4,0)-1),OFFSET('C. PoC Adj Factor Scoring'!$E$5:$J$282,,MATCH(H$4,'C. PoC Adj Factor Scoring'!$E$3:$AH$3,0)-1),MATCH(H$2&\" Score\",'C. PoC Adj Factor Scoring'!$E$4:$J$4,0),TRUE)","v":1},{"$f":"VLOOKUP(OFFSET($B:$B,,MATCH(I$4,$B$4:$F$4,0)-1),OFFSET('C. PoC Adj Factor Scoring'!$E$5:$J$282,,MATCH(I$4,'C. PoC Adj Factor Scoring'!$E$3:$AH$3,0)-1),MATCH(I$2&\" Score\",'C. PoC Adj Factor Scoring'!$E$4:$J$4,0),TRUE)","v":1},{"$f":"VLOOKUP(OFFSET($B:$B,,MATCH(J$4,$B$4:$F$4,0)-1),OFFSET('C. PoC Adj Factor Scoring'!$E$5:$J$282,,MATCH(J$4,'C. PoC Adj Factor Scoring'!$E$3:$AH$3,0)-1),MATCH(J$2&\" Score\",'C. PoC Adj Factor Scoring'!$E$4:$J$4,0),TRUE)","v":1},{"$f":"VLOOKUP(OFFSET($B:$B,,MATCH(K$4,$B$4:$F$4,0)-1),OFFSET('C. PoC Adj Factor Scoring'!$E$5:$J$282,,MATCH(K$4,'C. PoC Adj Factor Scoring'!$E$3:$AH$3,0)-1),MATCH(K$2&\" Score\",'C. PoC Adj Factor Scoring'!$E$4:$J$4,0),TRUE)","v":1},{"$f":"VLOOKUP(OFFSET($B:$B,,MATCH(L$4,$B$4:$F$4,0)-1),OFFSET('C. PoC Adj Factor Scoring'!$E$5:$J$282,,MATCH(L$4,'C. PoC Adj Factor Scoring'!$E$3:$AH$3,0)-1),MATCH(L$2&\" Score\",'C. PoC Adj Factor Scoring'!$E$4:$J$4,0),TRUE)","v":1},{"$f":"VLOOKUP(OFFSET($B:$B,,MATCH(M$4,$B$4:$F$4,0)-1),OFFSET('C. PoC Adj Factor Scoring'!$E$5:$J$282,,MATCH(M$4,'C. PoC Adj Factor Scoring'!$E$3:$AH$3,0)-1),MATCH(M$2&\" Score\",'C. PoC Adj Factor Scoring'!$E$4:$J$4,0),TRUE)","v":1},{"$f":"VLOOKUP(OFFSET($B:$B,,MATCH(N$4,$B$4:$F$4,0)-1),OFFSET('C. PoC Adj Factor Scoring'!$E$5:$J$282,,MATCH(N$4,'C. PoC Adj Factor Scoring'!$E$3:$AH$3,0)-1),MATCH(N$2&\" Score\",'C. PoC Adj Factor Scoring'!$E$4:$J$4,0),TRUE)","v":1},{"$f":"VLOOKUP(OFFSET($B:$B,,MATCH(O$4,$B$4:$F$4,0)-1),OFFSET('C. PoC Adj Factor Scoring'!$E$5:$J$282,,MATCH(O$4,'C. PoC Adj Factor Scoring'!$E$3:$AH$3,0)-1),MATCH(O$2&\" Score\",'C. PoC Adj Factor Scoring'!$E$4:$J$4,0),TRUE)","v":1},{"$f":"VLOOKUP(OFFSET($B:$B,,MATCH(P$4,$B$4:$F$4,0)-1),OFFSET('C. PoC Adj Factor Scoring'!$E$5:$J$282,,MATCH(P$4,'C. PoC Adj Factor Scoring'!$E$3:$AH$3,0)-1),MATCH(P$2&\" Score\",'C. PoC Adj Factor Scoring'!$E$4:$J$4,0),TRUE)","v":1},{"$f":"VLOOKUP(OFFSET($B:$B,,MATCH(Q$4,$B$4:$F$4,0)-1),OFFSET('C. PoC Adj Factor Scoring'!$E$5:$J$282,,MATCH(Q$4,'C. PoC Adj Factor Scoring'!$E$3:$AH$3,0)-1),MATCH(Q$2&\" Score\",'C. PoC Adj Factor Scoring'!$E$4:$J$4,0),TRUE)","v":1},{"$f":"VLOOKUP(OFFSET($B:$B,,MATCH(R$4,$B$4:$F$4,0)-1),OFFSET('C. PoC Adj Factor Scoring'!$E$5:$J$282,,MATCH(R$4,'C. PoC Adj Factor Scoring'!$E$3:$AH$3,0)-1),MATCH(R$2&\" Score\",'C. PoC Adj Factor Scoring'!$E$4:$J$4,0),TRUE)","v":1},{"$f":"VLOOKUP(OFFSET($B:$B,,MATCH(S$4,$B$4:$F$4,0)-1),OFFSET('C. PoC Adj Factor Scoring'!$E$5:$J$282,,MATCH(S$4,'C. PoC Adj Factor Scoring'!$E$3:$AH$3,0)-1),MATCH(S$2&\" Score\",'C. PoC Adj Factor Scoring'!$E$4:$J$4,0),TRUE)","v":1},{"$f":"VLOOKUP(OFFSET($B:$B,,MATCH(T$4,$B$4:$F$4,0)-1),OFFSET('C. PoC Adj Factor Scoring'!$E$5:$J$282,,MATCH(T$4,'C. PoC Adj Factor Scoring'!$E$3:$AH$3,0)-1),MATCH(T$2&\" Score\",'C. PoC Adj Factor Scoring'!$E$4:$J$4,0),TRUE)","v":1},{"$f":"VLOOKUP(OFFSET($B:$B,,MATCH(U$4,$B$4:$F$4,0)-1),OFFSET('C. PoC Adj Factor Scoring'!$E$5:$J$282,,MATCH(U$4,'C. PoC Adj Factor Scoring'!$E$3:$AH$3,0)-1),MATCH(U$2&\" Score\",'C. PoC Adj Factor Scoring'!$E$4:$J$4,0),TRUE)","v":1},{"$f":"VLOOKUP(OFFSET($B:$B,,MATCH(V$4,$B$4:$F$4,0)-1),OFFSET('C. PoC Adj Factor Scoring'!$E$5:$J$282,,MATCH(V$4,'C. PoC Adj Factor Scoring'!$E$3:$AH$3,0)-1),MATCH(V$2&\" Score\",'C. PoC Adj Factor Scoring'!$E$4:$J$4,0),TRUE)","v":1},{"$f":"VLOOKUP(OFFSET($B:$B,,MATCH(W$4,$B$4:$F$4,0)-1),OFFSET('C. PoC Adj Factor Scoring'!$E$5:$J$282,,MATCH(W$4,'C. PoC Adj Factor Scoring'!$E$3:$AH$3,0)-1),MATCH(W$2&\" Score\",'C. PoC Adj Factor Scoring'!$E$4:$J$4,0),TRUE)","v":1},{"$f":"VLOOKUP(OFFSET($B:$B,,MATCH(X$4,$B$4:$F$4,0)-1),OFFSET('C. PoC Adj Factor Scoring'!$E$5:$J$282,,MATCH(X$4,'C. PoC Adj Factor Scoring'!$E$3:$AH$3,0)-1),MATCH(X$2&\" Score\",'C. PoC Adj Factor Scoring'!$E$4:$J$4,0),TRUE)","v":1},{"$f":"VLOOKUP(OFFSET($B:$B,,MATCH(Y$4,$B$4:$F$4,0)-1),OFFSET('C. PoC Adj Factor Scoring'!$E$5:$J$282,,MATCH(Y$4,'C. PoC Adj Factor Scoring'!$E$3:$AH$3,0)-1),MATCH(Y$2&\" Score\",'C. PoC Adj Factor Scoring'!$E$4:$J$4,0),TRUE)","v":1},{"$f":"VLOOKUP(OFFSET($B:$B,,MATCH(Z$4,$B$4:$F$4,0)-1),OFFSET('C. PoC Adj Factor Scoring'!$E$5:$J$282,,MATCH(Z$4,'C. PoC Adj Factor Scoring'!$E$3:$AH$3,0)-1),MATCH(Z$2&\" Score\",'C. PoC Adj Factor Scoring'!$E$4:$J$4,0),TRUE)","v":1},{"$f":"VLOOKUP(OFFSET($B:$B,,MATCH(AA$4,$B$4:$F$4,0)-1),OFFSET('C. PoC Adj Factor Scoring'!$E$5:$J$282,,MATCH(AA$4,'C. PoC Adj Factor Scoring'!$E$3:$AH$3,0)-1),MATCH(AA$2&\" Score\",'C. PoC Adj Factor Scoring'!$E$4:$J$4,0),TRUE)","v":3},{"$f":"VLOOKUP(OFFSET($B:$B,,MATCH(AB$4,$B$4:$F$4,0)-1),OFFSET('C. PoC Adj Factor Scoring'!$E$5:$J$282,,MATCH(AB$4,'C. PoC Adj Factor Scoring'!$E$3:$AH$3,0)-1),MATCH(AB$2&\" Score\",'C. PoC Adj Factor Scoring'!$E$4:$J$4,0),TRUE)","v":1},{"$f":"VLOOKUP(OFFSET($B:$B,,MATCH(AC$4,$B$4:$F$4,0)-1),OFFSET('C. PoC Adj Factor Scoring'!$E$5:$J$282,,MATCH(AC$4,'C. PoC Adj Factor Scoring'!$E$3:$AH$3,0)-1),MATCH(AC$2&\" Score\",'C. PoC Adj Factor Scoring'!$E$4:$J$4,0),TRUE)","v":1},{"$f":"VLOOKUP(OFFSET($B:$B,,MATCH(AD$4,$B$4:$F$4,0)-1),OFFSET('C. PoC Adj Factor Scoring'!$E$5:$J$282,,MATCH(AD$4,'C. PoC Adj Factor Scoring'!$E$3:$AH$3,0)-1),MATCH(AD$2&\" Score\",'C. PoC Adj Factor Scoring'!$E$4:$J$4,0),TRUE)","v":1},{"$f":"VLOOKUP(OFFSET($B:$B,,MATCH(AE$4,$B$4:$F$4,0)-1),OFFSET('C. PoC Adj Factor Scoring'!$E$5:$J$282,,MATCH(AE$4,'C. PoC Adj Factor Scoring'!$E$3:$AH$3,0)-1),MATCH(AE$2&\" Score\",'C. PoC Adj Factor Scoring'!$E$4:$J$4,0),TRUE)","v":1}]
[{"$f":"'A. Population Info'!A552","v":1001642113},{"$f":"'A. Population Info'!L552","v":"OIL"},{"$f":"'A. Population Info'!M552","v":0},{"$f":"'A. Population Info'!N552","v":0},{"$f":"'A. Population Info'!O552","v":0},{"$f":"'A. Population Info'!P552","v":0},{"$f":"VLOOKUP(OFFSET($B:$B,,MATCH(G$4,$B$4:$F$4,0)-1),OFFSET('C. PoC Adj Factor Scoring'!$E$5:$J$282,,MATCH(G$4,'C. PoC Adj Factor Scoring'!$E$3:$AH$3,0)-1),MATCH(G$2&\" Score\",'C. PoC Adj Factor Scoring'!$E$4:$J$4,0),TRUE)","v":4},{"$f":"VLOOKUP(OFFSET($B:$B,,MATCH(H$4,$B$4:$F$4,0)-1),OFFSET('C. PoC Adj Factor Scoring'!$E$5:$J$282,,MATCH(H$4,'C. PoC Adj Factor Scoring'!$E$3:$AH$3,0)-1),MATCH(H$2&\" Score\",'C. PoC Adj Factor Scoring'!$E$4:$J$4,0),TRUE)","v":1},{"$f":"VLOOKUP(OFFSET($B:$B,,MATCH(I$4,$B$4:$F$4,0)-1),OFFSET('C. PoC Adj Factor Scoring'!$E$5:$J$282,,MATCH(I$4,'C. PoC Adj Factor Scoring'!$E$3:$AH$3,0)-1),MATCH(I$2&\" Score\",'C. PoC Adj Factor Scoring'!$E$4:$J$4,0),TRUE)","v":1},{"$f":"VLOOKUP(OFFSET($B:$B,,MATCH(J$4,$B$4:$F$4,0)-1),OFFSET('C. PoC Adj Factor Scoring'!$E$5:$J$282,,MATCH(J$4,'C. PoC Adj Factor Scoring'!$E$3:$AH$3,0)-1),MATCH(J$2&\" Score\",'C. PoC Adj Factor Scoring'!$E$4:$J$4,0),TRUE)","v":1},{"$f":"VLOOKUP(OFFSET($B:$B,,MATCH(K$4,$B$4:$F$4,0)-1),OFFSET('C. PoC Adj Factor Scoring'!$E$5:$J$282,,MATCH(K$4,'C. PoC Adj Factor Scoring'!$E$3:$AH$3,0)-1),MATCH(K$2&\" Score\",'C. PoC Adj Factor Scoring'!$E$4:$J$4,0),TRUE)","v":1},{"$f":"VLOOKUP(OFFSET($B:$B,,MATCH(L$4,$B$4:$F$4,0)-1),OFFSET('C. PoC Adj Factor Scoring'!$E$5:$J$282,,MATCH(L$4,'C. PoC Adj Factor Scoring'!$E$3:$AH$3,0)-1),MATCH(L$2&\" Score\",'C. PoC Adj Factor Scoring'!$E$4:$J$4,0),TRUE)","v":1},{"$f":"VLOOKUP(OFFSET($B:$B,,MATCH(M$4,$B$4:$F$4,0)-1),OFFSET('C. PoC Adj Factor Scoring'!$E$5:$J$282,,MATCH(M$4,'C. PoC Adj Factor Scoring'!$E$3:$AH$3,0)-1),MATCH(M$2&\" Score\",'C. PoC Adj Factor Scoring'!$E$4:$J$4,0),TRUE)","v":1},{"$f":"VLOOKUP(OFFSET($B:$B,,MATCH(N$4,$B$4:$F$4,0)-1),OFFSET('C. PoC Adj Factor Scoring'!$E$5:$J$282,,MATCH(N$4,'C. PoC Adj Factor Scoring'!$E$3:$AH$3,0)-1),MATCH(N$2&\" Score\",'C. PoC Adj Factor Scoring'!$E$4:$J$4,0),TRUE)","v":1},{"$f":"VLOOKUP(OFFSET($B:$B,,MATCH(O$4,$B$4:$F$4,0)-1),OFFSET('C. PoC Adj Factor Scoring'!$E$5:$J$282,,MATCH(O$4,'C. PoC Adj Factor Scoring'!$E$3:$AH$3,0)-1),MATCH(O$2&\" Score\",'C. PoC Adj Factor Scoring'!$E$4:$J$4,0),TRUE)","v":1},{"$f":"VLOOKUP(OFFSET($B:$B,,MATCH(P$4,$B$4:$F$4,0)-1),OFFSET('C. PoC Adj Factor Scoring'!$E$5:$J$282,,MATCH(P$4,'C. PoC Adj Factor Scoring'!$E$3:$AH$3,0)-1),MATCH(P$2&\" Score\",'C. PoC Adj Factor Scoring'!$E$4:$J$4,0),TRUE)","v":1},{"$f":"VLOOKUP(OFFSET($B:$B,,MATCH(Q$4,$B$4:$F$4,0)-1),OFFSET('C. PoC Adj Factor Scoring'!$E$5:$J$282,,MATCH(Q$4,'C. PoC Adj Factor Scoring'!$E$3:$AH$3,0)-1),MATCH(Q$2&\" Score\",'C. PoC Adj Factor Scoring'!$E$4:$J$4,0),TRUE)","v":1},{"$f":"VLOOKUP(OFFSET($B:$B,,MATCH(R$4,$B$4:$F$4,0)-1),OFFSET('C. PoC Adj Factor Scoring'!$E$5:$J$282,,MATCH(R$4,'C. PoC Adj Factor Scoring'!$E$3:$AH$3,0)-1),MATCH(R$2&\" Score\",'C. PoC Adj Factor Scoring'!$E$4:$J$4,0),TRUE)","v":1},{"$f":"VLOOKUP(OFFSET($B:$B,,MATCH(S$4,$B$4:$F$4,0)-1),OFFSET('C. PoC Adj Factor Scoring'!$E$5:$J$282,,MATCH(S$4,'C. PoC Adj Factor Scoring'!$E$3:$AH$3,0)-1),MATCH(S$2&\" Score\",'C. PoC Adj Factor Scoring'!$E$4:$J$4,0),TRUE)","v":1},{"$f":"VLOOKUP(OFFSET($B:$B,,MATCH(T$4,$B$4:$F$4,0)-1),OFFSET('C. PoC Adj Factor Scoring'!$E$5:$J$282,,MATCH(T$4,'C. PoC Adj Factor Scoring'!$E$3:$AH$3,0)-1),MATCH(T$2&\" Score\",'C. PoC Adj Factor Scoring'!$E$4:$J$4,0),TRUE)","v":1},{"$f":"VLOOKUP(OFFSET($B:$B,,MATCH(U$4,$B$4:$F$4,0)-1),OFFSET('C. PoC Adj Factor Scoring'!$E$5:$J$282,,MATCH(U$4,'C. PoC Adj Factor Scoring'!$E$3:$AH$3,0)-1),MATCH(U$2&\" Score\",'C. PoC Adj Factor Scoring'!$E$4:$J$4,0),TRUE)","v":1},{"$f":"VLOOKUP(OFFSET($B:$B,,MATCH(V$4,$B$4:$F$4,0)-1),OFFSET('C. PoC Adj Factor Scoring'!$E$5:$J$282,,MATCH(V$4,'C. PoC Adj Factor Scoring'!$E$3:$AH$3,0)-1),MATCH(V$2&\" Score\",'C. PoC Adj Factor Scoring'!$E$4:$J$4,0),TRUE)","v":1},{"$f":"VLOOKUP(OFFSET($B:$B,,MATCH(W$4,$B$4:$F$4,0)-1),OFFSET('C. PoC Adj Factor Scoring'!$E$5:$J$282,,MATCH(W$4,'C. PoC Adj Factor Scoring'!$E$3:$AH$3,0)-1),MATCH(W$2&\" Score\",'C. PoC Adj Factor Scoring'!$E$4:$J$4,0),TRUE)","v":1},{"$f":"VLOOKUP(OFFSET($B:$B,,MATCH(X$4,$B$4:$F$4,0)-1),OFFSET('C. PoC Adj Factor Scoring'!$E$5:$J$282,,MATCH(X$4,'C. PoC Adj Factor Scoring'!$E$3:$AH$3,0)-1),MATCH(X$2&\" Score\",'C. PoC Adj Factor Scoring'!$E$4:$J$4,0),TRUE)","v":1},{"$f":"VLOOKUP(OFFSET($B:$B,,MATCH(Y$4,$B$4:$F$4,0)-1),OFFSET('C. PoC Adj Factor Scoring'!$E$5:$J$282,,MATCH(Y$4,'C. PoC Adj Factor Scoring'!$E$3:$AH$3,0)-1),MATCH(Y$2&\" Score\",'C. PoC Adj Factor Scoring'!$E$4:$J$4,0),TRUE)","v":1},{"$f":"VLOOKUP(OFFSET($B:$B,,MATCH(Z$4,$B$4:$F$4,0)-1),OFFSET('C. PoC Adj Factor Scoring'!$E$5:$J$282,,MATCH(Z$4,'C. PoC Adj Factor Scoring'!$E$3:$AH$3,0)-1),MATCH(Z$2&\" Score\",'C. PoC Adj Factor Scoring'!$E$4:$J$4,0),TRUE)","v":1},{"$f":"VLOOKUP(OFFSET($B:$B,,MATCH(AA$4,$B$4:$F$4,0)-1),OFFSET('C. PoC Adj Factor Scoring'!$E$5:$J$282,,MATCH(AA$4,'C. PoC Adj Factor Scoring'!$E$3:$AH$3,0)-1),MATCH(AA$2&\" Score\",'C. PoC Adj Factor Scoring'!$E$4:$J$4,0),TRUE)","v":3},{"$f":"VLOOKUP(OFFSET($B:$B,,MATCH(AB$4,$B$4:$F$4,0)-1),OFFSET('C. PoC Adj Factor Scoring'!$E$5:$J$282,,MATCH(AB$4,'C. PoC Adj Factor Scoring'!$E$3:$AH$3,0)-1),MATCH(AB$2&\" Score\",'C. PoC Adj Factor Scoring'!$E$4:$J$4,0),TRUE)","v":1},{"$f":"VLOOKUP(OFFSET($B:$B,,MATCH(AC$4,$B$4:$F$4,0)-1),OFFSET('C. PoC Adj Factor Scoring'!$E$5:$J$282,,MATCH(AC$4,'C. PoC Adj Factor Scoring'!$E$3:$AH$3,0)-1),MATCH(AC$2&\" Score\",'C. PoC Adj Factor Scoring'!$E$4:$J$4,0),TRUE)","v":1},{"$f":"VLOOKUP(OFFSET($B:$B,,MATCH(AD$4,$B$4:$F$4,0)-1),OFFSET('C. PoC Adj Factor Scoring'!$E$5:$J$282,,MATCH(AD$4,'C. PoC Adj Factor Scoring'!$E$3:$AH$3,0)-1),MATCH(AD$2&\" Score\",'C. PoC Adj Factor Scoring'!$E$4:$J$4,0),TRUE)","v":1},{"$f":"VLOOKUP(OFFSET($B:$B,,MATCH(AE$4,$B$4:$F$4,0)-1),OFFSET('C. PoC Adj Factor Scoring'!$E$5:$J$282,,MATCH(AE$4,'C. PoC Adj Factor Scoring'!$E$3:$AH$3,0)-1),MATCH(AE$2&\" Score\",'C. PoC Adj Factor Scoring'!$E$4:$J$4,0),TRUE)","v":1}]
[{"$f":"'A. Population Info'!A553","v":1001642114},{"$f":"'A. Population Info'!L553","v":"OIL"},{"$f":"'A. Population Info'!M553","v":0},{"$f":"'A. Population Info'!N553","v":0},{"$f":"'A. Population Info'!O553","v":0},{"$f":"'A. Population Info'!P553","v":0},{"$f":"VLOOKUP(OFFSET($B:$B,,MATCH(G$4,$B$4:$F$4,0)-1),OFFSET('C. PoC Adj Factor Scoring'!$E$5:$J$282,,MATCH(G$4,'C. PoC Adj Factor Scoring'!$E$3:$AH$3,0)-1),MATCH(G$2&\" Score\",'C. PoC Adj Factor Scoring'!$E$4:$J$4,0),TRUE)","v":4},{"$f":"VLOOKUP(OFFSET($B:$B,,MATCH(H$4,$B$4:$F$4,0)-1),OFFSET('C. PoC Adj Factor Scoring'!$E$5:$J$282,,MATCH(H$4,'C. PoC Adj Factor Scoring'!$E$3:$AH$3,0)-1),MATCH(H$2&\" Score\",'C. PoC Adj Factor Scoring'!$E$4:$J$4,0),TRUE)","v":1},{"$f":"VLOOKUP(OFFSET($B:$B,,MATCH(I$4,$B$4:$F$4,0)-1),OFFSET('C. PoC Adj Factor Scoring'!$E$5:$J$282,,MATCH(I$4,'C. PoC Adj Factor Scoring'!$E$3:$AH$3,0)-1),MATCH(I$2&\" Score\",'C. PoC Adj Factor Scoring'!$E$4:$J$4,0),TRUE)","v":1},{"$f":"VLOOKUP(OFFSET($B:$B,,MATCH(J$4,$B$4:$F$4,0)-1),OFFSET('C. PoC Adj Factor Scoring'!$E$5:$J$282,,MATCH(J$4,'C. PoC Adj Factor Scoring'!$E$3:$AH$3,0)-1),MATCH(J$2&\" Score\",'C. PoC Adj Factor Scoring'!$E$4:$J$4,0),TRUE)","v":1},{"$f":"VLOOKUP(OFFSET($B:$B,,MATCH(K$4,$B$4:$F$4,0)-1),OFFSET('C. PoC Adj Factor Scoring'!$E$5:$J$282,,MATCH(K$4,'C. PoC Adj Factor Scoring'!$E$3:$AH$3,0)-1),MATCH(K$2&\" Score\",'C. PoC Adj Factor Scoring'!$E$4:$J$4,0),TRUE)","v":1},{"$f":"VLOOKUP(OFFSET($B:$B,,MATCH(L$4,$B$4:$F$4,0)-1),OFFSET('C. PoC Adj Factor Scoring'!$E$5:$J$282,,MATCH(L$4,'C. PoC Adj Factor Scoring'!$E$3:$AH$3,0)-1),MATCH(L$2&\" Score\",'C. PoC Adj Factor Scoring'!$E$4:$J$4,0),TRUE)","v":1},{"$f":"VLOOKUP(OFFSET($B:$B,,MATCH(M$4,$B$4:$F$4,0)-1),OFFSET('C. PoC Adj Factor Scoring'!$E$5:$J$282,,MATCH(M$4,'C. PoC Adj Factor Scoring'!$E$3:$AH$3,0)-1),MATCH(M$2&\" Score\",'C. PoC Adj Factor Scoring'!$E$4:$J$4,0),TRUE)","v":1},{"$f":"VLOOKUP(OFFSET($B:$B,,MATCH(N$4,$B$4:$F$4,0)-1),OFFSET('C. PoC Adj Factor Scoring'!$E$5:$J$282,,MATCH(N$4,'C. PoC Adj Factor Scoring'!$E$3:$AH$3,0)-1),MATCH(N$2&\" Score\",'C. PoC Adj Factor Scoring'!$E$4:$J$4,0),TRUE)","v":1},{"$f":"VLOOKUP(OFFSET($B:$B,,MATCH(O$4,$B$4:$F$4,0)-1),OFFSET('C. PoC Adj Factor Scoring'!$E$5:$J$282,,MATCH(O$4,'C. PoC Adj Factor Scoring'!$E$3:$AH$3,0)-1),MATCH(O$2&\" Score\",'C. PoC Adj Factor Scoring'!$E$4:$J$4,0),TRUE)","v":1},{"$f":"VLOOKUP(OFFSET($B:$B,,MATCH(P$4,$B$4:$F$4,0)-1),OFFSET('C. PoC Adj Factor Scoring'!$E$5:$J$282,,MATCH(P$4,'C. PoC Adj Factor Scoring'!$E$3:$AH$3,0)-1),MATCH(P$2&\" Score\",'C. PoC Adj Factor Scoring'!$E$4:$J$4,0),TRUE)","v":1},{"$f":"VLOOKUP(OFFSET($B:$B,,MATCH(Q$4,$B$4:$F$4,0)-1),OFFSET('C. PoC Adj Factor Scoring'!$E$5:$J$282,,MATCH(Q$4,'C. PoC Adj Factor Scoring'!$E$3:$AH$3,0)-1),MATCH(Q$2&\" Score\",'C. PoC Adj Factor Scoring'!$E$4:$J$4,0),TRUE)","v":1},{"$f":"VLOOKUP(OFFSET($B:$B,,MATCH(R$4,$B$4:$F$4,0)-1),OFFSET('C. PoC Adj Factor Scoring'!$E$5:$J$282,,MATCH(R$4,'C. PoC Adj Factor Scoring'!$E$3:$AH$3,0)-1),MATCH(R$2&\" Score\",'C. PoC Adj Factor Scoring'!$E$4:$J$4,0),TRUE)","v":1},{"$f":"VLOOKUP(OFFSET($B:$B,,MATCH(S$4,$B$4:$F$4,0)-1),OFFSET('C. PoC Adj Factor Scoring'!$E$5:$J$282,,MATCH(S$4,'C. PoC Adj Factor Scoring'!$E$3:$AH$3,0)-1),MATCH(S$2&\" Score\",'C. PoC Adj Factor Scoring'!$E$4:$J$4,0),TRUE)","v":1},{"$f":"VLOOKUP(OFFSET($B:$B,,MATCH(T$4,$B$4:$F$4,0)-1),OFFSET('C. PoC Adj Factor Scoring'!$E$5:$J$282,,MATCH(T$4,'C. PoC Adj Factor Scoring'!$E$3:$AH$3,0)-1),MATCH(T$2&\" Score\",'C. PoC Adj Factor Scoring'!$E$4:$J$4,0),TRUE)","v":1},{"$f":"VLOOKUP(OFFSET($B:$B,,MATCH(U$4,$B$4:$F$4,0)-1),OFFSET('C. PoC Adj Factor Scoring'!$E$5:$J$282,,MATCH(U$4,'C. PoC Adj Factor Scoring'!$E$3:$AH$3,0)-1),MATCH(U$2&\" Score\",'C. PoC Adj Factor Scoring'!$E$4:$J$4,0),TRUE)","v":1},{"$f":"VLOOKUP(OFFSET($B:$B,,MATCH(V$4,$B$4:$F$4,0)-1),OFFSET('C. PoC Adj Factor Scoring'!$E$5:$J$282,,MATCH(V$4,'C. PoC Adj Factor Scoring'!$E$3:$AH$3,0)-1),MATCH(V$2&\" Score\",'C. PoC Adj Factor Scoring'!$E$4:$J$4,0),TRUE)","v":1},{"$f":"VLOOKUP(OFFSET($B:$B,,MATCH(W$4,$B$4:$F$4,0)-1),OFFSET('C. PoC Adj Factor Scoring'!$E$5:$J$282,,MATCH(W$4,'C. PoC Adj Factor Scoring'!$E$3:$AH$3,0)-1),MATCH(W$2&\" Score\",'C. PoC Adj Factor Scoring'!$E$4:$J$4,0),TRUE)","v":1},{"$f":"VLOOKUP(OFFSET($B:$B,,MATCH(X$4,$B$4:$F$4,0)-1),OFFSET('C. PoC Adj Factor Scoring'!$E$5:$J$282,,MATCH(X$4,'C. PoC Adj Factor Scoring'!$E$3:$AH$3,0)-1),MATCH(X$2&\" Score\",'C. PoC Adj Factor Scoring'!$E$4:$J$4,0),TRUE)","v":1},{"$f":"VLOOKUP(OFFSET($B:$B,,MATCH(Y$4,$B$4:$F$4,0)-1),OFFSET('C. PoC Adj Factor Scoring'!$E$5:$J$282,,MATCH(Y$4,'C. PoC Adj Factor Scoring'!$E$3:$AH$3,0)-1),MATCH(Y$2&\" Score\",'C. PoC Adj Factor Scoring'!$E$4:$J$4,0),TRUE)","v":1},{"$f":"VLOOKUP(OFFSET($B:$B,,MATCH(Z$4,$B$4:$F$4,0)-1),OFFSET('C. PoC Adj Factor Scoring'!$E$5:$J$282,,MATCH(Z$4,'C. PoC Adj Factor Scoring'!$E$3:$AH$3,0)-1),MATCH(Z$2&\" Score\",'C. PoC Adj Factor Scoring'!$E$4:$J$4,0),TRUE)","v":1},{"$f":"VLOOKUP(OFFSET($B:$B,,MATCH(AA$4,$B$4:$F$4,0)-1),OFFSET('C. PoC Adj Factor Scoring'!$E$5:$J$282,,MATCH(AA$4,'C. PoC Adj Factor Scoring'!$E$3:$AH$3,0)-1),MATCH(AA$2&\" Score\",'C. PoC Adj Factor Scoring'!$E$4:$J$4,0),TRUE)","v":3},{"$f":"VLOOKUP(OFFSET($B:$B,,MATCH(AB$4,$B$4:$F$4,0)-1),OFFSET('C. PoC Adj Factor Scoring'!$E$5:$J$282,,MATCH(AB$4,'C. PoC Adj Factor Scoring'!$E$3:$AH$3,0)-1),MATCH(AB$2&\" Score\",'C. PoC Adj Factor Scoring'!$E$4:$J$4,0),TRUE)","v":1},{"$f":"VLOOKUP(OFFSET($B:$B,,MATCH(AC$4,$B$4:$F$4,0)-1),OFFSET('C. PoC Adj Factor Scoring'!$E$5:$J$282,,MATCH(AC$4,'C. PoC Adj Factor Scoring'!$E$3:$AH$3,0)-1),MATCH(AC$2&\" Score\",'C. PoC Adj Factor Scoring'!$E$4:$J$4,0),TRUE)","v":1},{"$f":"VLOOKUP(OFFSET($B:$B,,MATCH(AD$4,$B$4:$F$4,0)-1),OFFSET('C. PoC Adj Factor Scoring'!$E$5:$J$282,,MATCH(AD$4,'C. PoC Adj Factor Scoring'!$E$3:$AH$3,0)-1),MATCH(AD$2&\" Score\",'C. PoC Adj Factor Scoring'!$E$4:$J$4,0),TRUE)","v":1},{"$f":"VLOOKUP(OFFSET($B:$B,,MATCH(AE$4,$B$4:$F$4,0)-1),OFFSET('C. PoC Adj Factor Scoring'!$E$5:$J$282,,MATCH(AE$4,'C. PoC Adj Factor Scoring'!$E$3:$AH$3,0)-1),MATCH(AE$2&\" Score\",'C. PoC Adj Factor Scoring'!$E$4:$J$4,0),TRUE)","v":1}]
[{"$f":"'A. Population Info'!A554","v":1001687771},{"$f":"'A. Population Info'!L554","v":"OIL_FR3"},{"$f":"'A. Population Info'!M554","v":0},{"$f":"'A. Population Info'!N554","v":0},{"$f":"'A. Population Info'!O554","v":0},{"$f":"'A. Population Info'!P554","v":0},{"$f":"VLOOKUP(OFFSET($B:$B,,MATCH(G$4,$B$4:$F$4,0)-1),OFFSET('C. PoC Adj Factor Scoring'!$E$5:$J$282,,MATCH(G$4,'C. PoC Adj Factor Scoring'!$E$3:$AH$3,0)-1),MATCH(G$2&\" Score\",'C. PoC Adj Factor Scoring'!$E$4:$J$4,0),TRUE)","v":3},{"$f":"VLOOKUP(OFFSET($B:$B,,MATCH(H$4,$B$4:$F$4,0)-1),OFFSET('C. PoC Adj Factor Scoring'!$E$5:$J$282,,MATCH(H$4,'C. PoC Adj Factor Scoring'!$E$3:$AH$3,0)-1),MATCH(H$2&\" Score\",'C. PoC Adj Factor Scoring'!$E$4:$J$4,0),TRUE)","v":1},{"$f":"VLOOKUP(OFFSET($B:$B,,MATCH(I$4,$B$4:$F$4,0)-1),OFFSET('C. PoC Adj Factor Scoring'!$E$5:$J$282,,MATCH(I$4,'C. PoC Adj Factor Scoring'!$E$3:$AH$3,0)-1),MATCH(I$2&\" Score\",'C. PoC Adj Factor Scoring'!$E$4:$J$4,0),TRUE)","v":1},{"$f":"VLOOKUP(OFFSET($B:$B,,MATCH(J$4,$B$4:$F$4,0)-1),OFFSET('C. PoC Adj Factor Scoring'!$E$5:$J$282,,MATCH(J$4,'C. PoC Adj Factor Scoring'!$E$3:$AH$3,0)-1),MATCH(J$2&\" Score\",'C. PoC Adj Factor Scoring'!$E$4:$J$4,0),TRUE)","v":1},{"$f":"VLOOKUP(OFFSET($B:$B,,MATCH(K$4,$B$4:$F$4,0)-1),OFFSET('C. PoC Adj Factor Scoring'!$E$5:$J$282,,MATCH(K$4,'C. PoC Adj Factor Scoring'!$E$3:$AH$3,0)-1),MATCH(K$2&\" Score\",'C. PoC Adj Factor Scoring'!$E$4:$J$4,0),TRUE)","v":1},{"$f":"VLOOKUP(OFFSET($B:$B,,MATCH(L$4,$B$4:$F$4,0)-1),OFFSET('C. PoC Adj Factor Scoring'!$E$5:$J$282,,MATCH(L$4,'C. PoC Adj Factor Scoring'!$E$3:$AH$3,0)-1),MATCH(L$2&\" Score\",'C. PoC Adj Factor Scoring'!$E$4:$J$4,0),TRUE)","v":1},{"$f":"VLOOKUP(OFFSET($B:$B,,MATCH(M$4,$B$4:$F$4,0)-1),OFFSET('C. PoC Adj Factor Scoring'!$E$5:$J$282,,MATCH(M$4,'C. PoC Adj Factor Scoring'!$E$3:$AH$3,0)-1),MATCH(M$2&\" Score\",'C. PoC Adj Factor Scoring'!$E$4:$J$4,0),TRUE)","v":1},{"$f":"VLOOKUP(OFFSET($B:$B,,MATCH(N$4,$B$4:$F$4,0)-1),OFFSET('C. PoC Adj Factor Scoring'!$E$5:$J$282,,MATCH(N$4,'C. PoC Adj Factor Scoring'!$E$3:$AH$3,0)-1),MATCH(N$2&\" Score\",'C. PoC Adj Factor Scoring'!$E$4:$J$4,0),TRUE)","v":1},{"$f":"VLOOKUP(OFFSET($B:$B,,MATCH(O$4,$B$4:$F$4,0)-1),OFFSET('C. PoC Adj Factor Scoring'!$E$5:$J$282,,MATCH(O$4,'C. PoC Adj Factor Scoring'!$E$3:$AH$3,0)-1),MATCH(O$2&\" Score\",'C. PoC Adj Factor Scoring'!$E$4:$J$4,0),TRUE)","v":1},{"$f":"VLOOKUP(OFFSET($B:$B,,MATCH(P$4,$B$4:$F$4,0)-1),OFFSET('C. PoC Adj Factor Scoring'!$E$5:$J$282,,MATCH(P$4,'C. PoC Adj Factor Scoring'!$E$3:$AH$3,0)-1),MATCH(P$2&\" Score\",'C. PoC Adj Factor Scoring'!$E$4:$J$4,0),TRUE)","v":1},{"$f":"VLOOKUP(OFFSET($B:$B,,MATCH(Q$4,$B$4:$F$4,0)-1),OFFSET('C. PoC Adj Factor Scoring'!$E$5:$J$282,,MATCH(Q$4,'C. PoC Adj Factor Scoring'!$E$3:$AH$3,0)-1),MATCH(Q$2&\" Score\",'C. PoC Adj Factor Scoring'!$E$4:$J$4,0),TRUE)","v":1},{"$f":"VLOOKUP(OFFSET($B:$B,,MATCH(R$4,$B$4:$F$4,0)-1),OFFSET('C. PoC Adj Factor Scoring'!$E$5:$J$282,,MATCH(R$4,'C. PoC Adj Factor Scoring'!$E$3:$AH$3,0)-1),MATCH(R$2&\" Score\",'C. PoC Adj Factor Scoring'!$E$4:$J$4,0),TRUE)","v":1},{"$f":"VLOOKUP(OFFSET($B:$B,,MATCH(S$4,$B$4:$F$4,0)-1),OFFSET('C. PoC Adj Factor Scoring'!$E$5:$J$282,,MATCH(S$4,'C. PoC Adj Factor Scoring'!$E$3:$AH$3,0)-1),MATCH(S$2&\" Score\",'C. PoC Adj Factor Scoring'!$E$4:$J$4,0),TRUE)","v":1},{"$f":"VLOOKUP(OFFSET($B:$B,,MATCH(T$4,$B$4:$F$4,0)-1),OFFSET('C. PoC Adj Factor Scoring'!$E$5:$J$282,,MATCH(T$4,'C. PoC Adj Factor Scoring'!$E$3:$AH$3,0)-1),MATCH(T$2&\" Score\",'C. PoC Adj Factor Scoring'!$E$4:$J$4,0),TRUE)","v":1},{"$f":"VLOOKUP(OFFSET($B:$B,,MATCH(U$4,$B$4:$F$4,0)-1),OFFSET('C. PoC Adj Factor Scoring'!$E$5:$J$282,,MATCH(U$4,'C. PoC Adj Factor Scoring'!$E$3:$AH$3,0)-1),MATCH(U$2&\" Score\",'C. PoC Adj Factor Scoring'!$E$4:$J$4,0),TRUE)","v":1},{"$f":"VLOOKUP(OFFSET($B:$B,,MATCH(V$4,$B$4:$F$4,0)-1),OFFSET('C. PoC Adj Factor Scoring'!$E$5:$J$282,,MATCH(V$4,'C. PoC Adj Factor Scoring'!$E$3:$AH$3,0)-1),MATCH(V$2&\" Score\",'C. PoC Adj Factor Scoring'!$E$4:$J$4,0),TRUE)","v":1},{"$f":"VLOOKUP(OFFSET($B:$B,,MATCH(W$4,$B$4:$F$4,0)-1),OFFSET('C. PoC Adj Factor Scoring'!$E$5:$J$282,,MATCH(W$4,'C. PoC Adj Factor Scoring'!$E$3:$AH$3,0)-1),MATCH(W$2&\" Score\",'C. PoC Adj Factor Scoring'!$E$4:$J$4,0),TRUE)","v":1},{"$f":"VLOOKUP(OFFSET($B:$B,,MATCH(X$4,$B$4:$F$4,0)-1),OFFSET('C. PoC Adj Factor Scoring'!$E$5:$J$282,,MATCH(X$4,'C. PoC Adj Factor Scoring'!$E$3:$AH$3,0)-1),MATCH(X$2&\" Score\",'C. PoC Adj Factor Scoring'!$E$4:$J$4,0),TRUE)","v":1},{"$f":"VLOOKUP(OFFSET($B:$B,,MATCH(Y$4,$B$4:$F$4,0)-1),OFFSET('C. PoC Adj Factor Scoring'!$E$5:$J$282,,MATCH(Y$4,'C. PoC Adj Factor Scoring'!$E$3:$AH$3,0)-1),MATCH(Y$2&\" Score\",'C. PoC Adj Factor Scoring'!$E$4:$J$4,0),TRUE)","v":1},{"$f":"VLOOKUP(OFFSET($B:$B,,MATCH(Z$4,$B$4:$F$4,0)-1),OFFSET('C. PoC Adj Factor Scoring'!$E$5:$J$282,,MATCH(Z$4,'C. PoC Adj Factor Scoring'!$E$3:$AH$3,0)-1),MATCH(Z$2&\" Score\",'C. PoC Adj Factor Scoring'!$E$4:$J$4,0),TRUE)","v":1},{"$f":"VLOOKUP(OFFSET($B:$B,,MATCH(AA$4,$B$4:$F$4,0)-1),OFFSET('C. PoC Adj Factor Scoring'!$E$5:$J$282,,MATCH(AA$4,'C. PoC Adj Factor Scoring'!$E$3:$AH$3,0)-1),MATCH(AA$2&\" Score\",'C. PoC Adj Factor Scoring'!$E$4:$J$4,0),TRUE)","v":2},{"$f":"VLOOKUP(OFFSET($B:$B,,MATCH(AB$4,$B$4:$F$4,0)-1),OFFSET('C. PoC Adj Factor Scoring'!$E$5:$J$282,,MATCH(AB$4,'C. PoC Adj Factor Scoring'!$E$3:$AH$3,0)-1),MATCH(AB$2&\" Score\",'C. PoC Adj Factor Scoring'!$E$4:$J$4,0),TRUE)","v":1},{"$f":"VLOOKUP(OFFSET($B:$B,,MATCH(AC$4,$B$4:$F$4,0)-1),OFFSET('C. PoC Adj Factor Scoring'!$E$5:$J$282,,MATCH(AC$4,'C. PoC Adj Factor Scoring'!$E$3:$AH$3,0)-1),MATCH(AC$2&\" Score\",'C. PoC Adj Factor Scoring'!$E$4:$J$4,0),TRUE)","v":1},{"$f":"VLOOKUP(OFFSET($B:$B,,MATCH(AD$4,$B$4:$F$4,0)-1),OFFSET('C. PoC Adj Factor Scoring'!$E$5:$J$282,,MATCH(AD$4,'C. PoC Adj Factor Scoring'!$E$3:$AH$3,0)-1),MATCH(AD$2&\" Score\",'C. PoC Adj Factor Scoring'!$E$4:$J$4,0),TRUE)","v":1},{"$f":"VLOOKUP(OFFSET($B:$B,,MATCH(AE$4,$B$4:$F$4,0)-1),OFFSET('C. PoC Adj Factor Scoring'!$E$5:$J$282,,MATCH(AE$4,'C. PoC Adj Factor Scoring'!$E$3:$AH$3,0)-1),MATCH(AE$2&\" Score\",'C. PoC Adj Factor Scoring'!$E$4:$J$4,0),TRUE)","v":1}]
[{"$f":"'A. Population Info'!A555","v":1001853912},{"$f":"'A. Population Info'!L555","v":"OIL"},{"$f":"'A. Population Info'!M555","v":0},{"$f":"'A. Population Info'!N555","v":0},{"$f":"'A. Population Info'!O555","v":0},{"$f":"'A. Population Info'!P555","v":0},{"$f":"VLOOKUP(OFFSET($B:$B,,MATCH(G$4,$B$4:$F$4,0)-1),OFFSET('C. PoC Adj Factor Scoring'!$E$5:$J$282,,MATCH(G$4,'C. PoC Adj Factor Scoring'!$E$3:$AH$3,0)-1),MATCH(G$2&\" Score\",'C. PoC Adj Factor Scoring'!$E$4:$J$4,0),TRUE)","v":4},{"$f":"VLOOKUP(OFFSET($B:$B,,MATCH(H$4,$B$4:$F$4,0)-1),OFFSET('C. PoC Adj Factor Scoring'!$E$5:$J$282,,MATCH(H$4,'C. PoC Adj Factor Scoring'!$E$3:$AH$3,0)-1),MATCH(H$2&\" Score\",'C. PoC Adj Factor Scoring'!$E$4:$J$4,0),TRUE)","v":1},{"$f":"VLOOKUP(OFFSET($B:$B,,MATCH(I$4,$B$4:$F$4,0)-1),OFFSET('C. PoC Adj Factor Scoring'!$E$5:$J$282,,MATCH(I$4,'C. PoC Adj Factor Scoring'!$E$3:$AH$3,0)-1),MATCH(I$2&\" Score\",'C. PoC Adj Factor Scoring'!$E$4:$J$4,0),TRUE)","v":1},{"$f":"VLOOKUP(OFFSET($B:$B,,MATCH(J$4,$B$4:$F$4,0)-1),OFFSET('C. PoC Adj Factor Scoring'!$E$5:$J$282,,MATCH(J$4,'C. PoC Adj Factor Scoring'!$E$3:$AH$3,0)-1),MATCH(J$2&\" Score\",'C. PoC Adj Factor Scoring'!$E$4:$J$4,0),TRUE)","v":1},{"$f":"VLOOKUP(OFFSET($B:$B,,MATCH(K$4,$B$4:$F$4,0)-1),OFFSET('C. PoC Adj Factor Scoring'!$E$5:$J$282,,MATCH(K$4,'C. PoC Adj Factor Scoring'!$E$3:$AH$3,0)-1),MATCH(K$2&\" Score\",'C. PoC Adj Factor Scoring'!$E$4:$J$4,0),TRUE)","v":1},{"$f":"VLOOKUP(OFFSET($B:$B,,MATCH(L$4,$B$4:$F$4,0)-1),OFFSET('C. PoC Adj Factor Scoring'!$E$5:$J$282,,MATCH(L$4,'C. PoC Adj Factor Scoring'!$E$3:$AH$3,0)-1),MATCH(L$2&\" Score\",'C. PoC Adj Factor Scoring'!$E$4:$J$4,0),TRUE)","v":1},{"$f":"VLOOKUP(OFFSET($B:$B,,MATCH(M$4,$B$4:$F$4,0)-1),OFFSET('C. PoC Adj Factor Scoring'!$E$5:$J$282,,MATCH(M$4,'C. PoC Adj Factor Scoring'!$E$3:$AH$3,0)-1),MATCH(M$2&\" Score\",'C. PoC Adj Factor Scoring'!$E$4:$J$4,0),TRUE)","v":1},{"$f":"VLOOKUP(OFFSET($B:$B,,MATCH(N$4,$B$4:$F$4,0)-1),OFFSET('C. PoC Adj Factor Scoring'!$E$5:$J$282,,MATCH(N$4,'C. PoC Adj Factor Scoring'!$E$3:$AH$3,0)-1),MATCH(N$2&\" Score\",'C. PoC Adj Factor Scoring'!$E$4:$J$4,0),TRUE)","v":1},{"$f":"VLOOKUP(OFFSET($B:$B,,MATCH(O$4,$B$4:$F$4,0)-1),OFFSET('C. PoC Adj Factor Scoring'!$E$5:$J$282,,MATCH(O$4,'C. PoC Adj Factor Scoring'!$E$3:$AH$3,0)-1),MATCH(O$2&\" Score\",'C. PoC Adj Factor Scoring'!$E$4:$J$4,0),TRUE)","v":1},{"$f":"VLOOKUP(OFFSET($B:$B,,MATCH(P$4,$B$4:$F$4,0)-1),OFFSET('C. PoC Adj Factor Scoring'!$E$5:$J$282,,MATCH(P$4,'C. PoC Adj Factor Scoring'!$E$3:$AH$3,0)-1),MATCH(P$2&\" Score\",'C. PoC Adj Factor Scoring'!$E$4:$J$4,0),TRUE)","v":1},{"$f":"VLOOKUP(OFFSET($B:$B,,MATCH(Q$4,$B$4:$F$4,0)-1),OFFSET('C. PoC Adj Factor Scoring'!$E$5:$J$282,,MATCH(Q$4,'C. PoC Adj Factor Scoring'!$E$3:$AH$3,0)-1),MATCH(Q$2&\" Score\",'C. PoC Adj Factor Scoring'!$E$4:$J$4,0),TRUE)","v":1},{"$f":"VLOOKUP(OFFSET($B:$B,,MATCH(R$4,$B$4:$F$4,0)-1),OFFSET('C. PoC Adj Factor Scoring'!$E$5:$J$282,,MATCH(R$4,'C. PoC Adj Factor Scoring'!$E$3:$AH$3,0)-1),MATCH(R$2&\" Score\",'C. PoC Adj Factor Scoring'!$E$4:$J$4,0),TRUE)","v":1},{"$f":"VLOOKUP(OFFSET($B:$B,,MATCH(S$4,$B$4:$F$4,0)-1),OFFSET('C. PoC Adj Factor Scoring'!$E$5:$J$282,,MATCH(S$4,'C. PoC Adj Factor Scoring'!$E$3:$AH$3,0)-1),MATCH(S$2&\" Score\",'C. PoC Adj Factor Scoring'!$E$4:$J$4,0),TRUE)","v":1},{"$f":"VLOOKUP(OFFSET($B:$B,,MATCH(T$4,$B$4:$F$4,0)-1),OFFSET('C. PoC Adj Factor Scoring'!$E$5:$J$282,,MATCH(T$4,'C. PoC Adj Factor Scoring'!$E$3:$AH$3,0)-1),MATCH(T$2&\" Score\",'C. PoC Adj Factor Scoring'!$E$4:$J$4,0),TRUE)","v":1},{"$f":"VLOOKUP(OFFSET($B:$B,,MATCH(U$4,$B$4:$F$4,0)-1),OFFSET('C. PoC Adj Factor Scoring'!$E$5:$J$282,,MATCH(U$4,'C. PoC Adj Factor Scoring'!$E$3:$AH$3,0)-1),MATCH(U$2&\" Score\",'C. PoC Adj Factor Scoring'!$E$4:$J$4,0),TRUE)","v":1},{"$f":"VLOOKUP(OFFSET($B:$B,,MATCH(V$4,$B$4:$F$4,0)-1),OFFSET('C. PoC Adj Factor Scoring'!$E$5:$J$282,,MATCH(V$4,'C. PoC Adj Factor Scoring'!$E$3:$AH$3,0)-1),MATCH(V$2&\" Score\",'C. PoC Adj Factor Scoring'!$E$4:$J$4,0),TRUE)","v":1},{"$f":"VLOOKUP(OFFSET($B:$B,,MATCH(W$4,$B$4:$F$4,0)-1),OFFSET('C. PoC Adj Factor Scoring'!$E$5:$J$282,,MATCH(W$4,'C. PoC Adj Factor Scoring'!$E$3:$AH$3,0)-1),MATCH(W$2&\" Score\",'C. PoC Adj Factor Scoring'!$E$4:$J$4,0),TRUE)","v":1},{"$f":"VLOOKUP(OFFSET($B:$B,,MATCH(X$4,$B$4:$F$4,0)-1),OFFSET('C. PoC Adj Factor Scoring'!$E$5:$J$282,,MATCH(X$4,'C. PoC Adj Factor Scoring'!$E$3:$AH$3,0)-1),MATCH(X$2&\" Score\",'C. PoC Adj Factor Scoring'!$E$4:$J$4,0),TRUE)","v":1},{"$f":"VLOOKUP(OFFSET($B:$B,,MATCH(Y$4,$B$4:$F$4,0)-1),OFFSET('C. PoC Adj Factor Scoring'!$E$5:$J$282,,MATCH(Y$4,'C. PoC Adj Factor Scoring'!$E$3:$AH$3,0)-1),MATCH(Y$2&\" Score\",'C. PoC Adj Factor Scoring'!$E$4:$J$4,0),TRUE)","v":1},{"$f":"VLOOKUP(OFFSET($B:$B,,MATCH(Z$4,$B$4:$F$4,0)-1),OFFSET('C. PoC Adj Factor Scoring'!$E$5:$J$282,,MATCH(Z$4,'C. PoC Adj Factor Scoring'!$E$3:$AH$3,0)-1),MATCH(Z$2&\" Score\",'C. PoC Adj Factor Scoring'!$E$4:$J$4,0),TRUE)","v":1},{"$f":"VLOOKUP(OFFSET($B:$B,,MATCH(AA$4,$B$4:$F$4,0)-1),OFFSET('C. PoC Adj Factor Scoring'!$E$5:$J$282,,MATCH(AA$4,'C. PoC Adj Factor Scoring'!$E$3:$AH$3,0)-1),MATCH(AA$2&\" Score\",'C. PoC Adj Factor Scoring'!$E$4:$J$4,0),TRUE)","v":3},{"$f":"VLOOKUP(OFFSET($B:$B,,MATCH(AB$4,$B$4:$F$4,0)-1),OFFSET('C. PoC Adj Factor Scoring'!$E$5:$J$282,,MATCH(AB$4,'C. PoC Adj Factor Scoring'!$E$3:$AH$3,0)-1),MATCH(AB$2&\" Score\",'C. PoC Adj Factor Scoring'!$E$4:$J$4,0),TRUE)","v":1},{"$f":"VLOOKUP(OFFSET($B:$B,,MATCH(AC$4,$B$4:$F$4,0)-1),OFFSET('C. PoC Adj Factor Scoring'!$E$5:$J$282,,MATCH(AC$4,'C. PoC Adj Factor Scoring'!$E$3:$AH$3,0)-1),MATCH(AC$2&\" Score\",'C. PoC Adj Factor Scoring'!$E$4:$J$4,0),TRUE)","v":1},{"$f":"VLOOKUP(OFFSET($B:$B,,MATCH(AD$4,$B$4:$F$4,0)-1),OFFSET('C. PoC Adj Factor Scoring'!$E$5:$J$282,,MATCH(AD$4,'C. PoC Adj Factor Scoring'!$E$3:$AH$3,0)-1),MATCH(AD$2&\" Score\",'C. PoC Adj Factor Scoring'!$E$4:$J$4,0),TRUE)","v":1},{"$f":"VLOOKUP(OFFSET($B:$B,,MATCH(AE$4,$B$4:$F$4,0)-1),OFFSET('C. PoC Adj Factor Scoring'!$E$5:$J$282,,MATCH(AE$4,'C. PoC Adj Factor Scoring'!$E$3:$AH$3,0)-1),MATCH(AE$2&\" Score\",'C. PoC Adj Factor Scoring'!$E$4:$J$4,0),TRUE)","v":1}]
[{"$f":"'A. Population Info'!A556","v":1001865682},{"$f":"'A. Population Info'!L556","v":"OIL"},{"$f":"'A. Population Info'!M556","v":0},{"$f":"'A. Population Info'!N556","v":0},{"$f":"'A. Population Info'!O556","v":0},{"$f":"'A. Population Info'!P556","v":0},{"$f":"VLOOKUP(OFFSET($B:$B,,MATCH(G$4,$B$4:$F$4,0)-1),OFFSET('C. PoC Adj Factor Scoring'!$E$5:$J$282,,MATCH(G$4,'C. PoC Adj Factor Scoring'!$E$3:$AH$3,0)-1),MATCH(G$2&\" Score\",'C. PoC Adj Factor Scoring'!$E$4:$J$4,0),TRUE)","v":4},{"$f":"VLOOKUP(OFFSET($B:$B,,MATCH(H$4,$B$4:$F$4,0)-1),OFFSET('C. PoC Adj Factor Scoring'!$E$5:$J$282,,MATCH(H$4,'C. PoC Adj Factor Scoring'!$E$3:$AH$3,0)-1),MATCH(H$2&\" Score\",'C. PoC Adj Factor Scoring'!$E$4:$J$4,0),TRUE)","v":1},{"$f":"VLOOKUP(OFFSET($B:$B,,MATCH(I$4,$B$4:$F$4,0)-1),OFFSET('C. PoC Adj Factor Scoring'!$E$5:$J$282,,MATCH(I$4,'C. PoC Adj Factor Scoring'!$E$3:$AH$3,0)-1),MATCH(I$2&\" Score\",'C. PoC Adj Factor Scoring'!$E$4:$J$4,0),TRUE)","v":1},{"$f":"VLOOKUP(OFFSET($B:$B,,MATCH(J$4,$B$4:$F$4,0)-1),OFFSET('C. PoC Adj Factor Scoring'!$E$5:$J$282,,MATCH(J$4,'C. PoC Adj Factor Scoring'!$E$3:$AH$3,0)-1),MATCH(J$2&\" Score\",'C. PoC Adj Factor Scoring'!$E$4:$J$4,0),TRUE)","v":1},{"$f":"VLOOKUP(OFFSET($B:$B,,MATCH(K$4,$B$4:$F$4,0)-1),OFFSET('C. PoC Adj Factor Scoring'!$E$5:$J$282,,MATCH(K$4,'C. PoC Adj Factor Scoring'!$E$3:$AH$3,0)-1),MATCH(K$2&\" Score\",'C. PoC Adj Factor Scoring'!$E$4:$J$4,0),TRUE)","v":1},{"$f":"VLOOKUP(OFFSET($B:$B,,MATCH(L$4,$B$4:$F$4,0)-1),OFFSET('C. PoC Adj Factor Scoring'!$E$5:$J$282,,MATCH(L$4,'C. PoC Adj Factor Scoring'!$E$3:$AH$3,0)-1),MATCH(L$2&\" Score\",'C. PoC Adj Factor Scoring'!$E$4:$J$4,0),TRUE)","v":1},{"$f":"VLOOKUP(OFFSET($B:$B,,MATCH(M$4,$B$4:$F$4,0)-1),OFFSET('C. PoC Adj Factor Scoring'!$E$5:$J$282,,MATCH(M$4,'C. PoC Adj Factor Scoring'!$E$3:$AH$3,0)-1),MATCH(M$2&\" Score\",'C. PoC Adj Factor Scoring'!$E$4:$J$4,0),TRUE)","v":1},{"$f":"VLOOKUP(OFFSET($B:$B,,MATCH(N$4,$B$4:$F$4,0)-1),OFFSET('C. PoC Adj Factor Scoring'!$E$5:$J$282,,MATCH(N$4,'C. PoC Adj Factor Scoring'!$E$3:$AH$3,0)-1),MATCH(N$2&\" Score\",'C. PoC Adj Factor Scoring'!$E$4:$J$4,0),TRUE)","v":1},{"$f":"VLOOKUP(OFFSET($B:$B,,MATCH(O$4,$B$4:$F$4,0)-1),OFFSET('C. PoC Adj Factor Scoring'!$E$5:$J$282,,MATCH(O$4,'C. PoC Adj Factor Scoring'!$E$3:$AH$3,0)-1),MATCH(O$2&\" Score\",'C. PoC Adj Factor Scoring'!$E$4:$J$4,0),TRUE)","v":1},{"$f":"VLOOKUP(OFFSET($B:$B,,MATCH(P$4,$B$4:$F$4,0)-1),OFFSET('C. PoC Adj Factor Scoring'!$E$5:$J$282,,MATCH(P$4,'C. PoC Adj Factor Scoring'!$E$3:$AH$3,0)-1),MATCH(P$2&\" Score\",'C. PoC Adj Factor Scoring'!$E$4:$J$4,0),TRUE)","v":1},{"$f":"VLOOKUP(OFFSET($B:$B,,MATCH(Q$4,$B$4:$F$4,0)-1),OFFSET('C. PoC Adj Factor Scoring'!$E$5:$J$282,,MATCH(Q$4,'C. PoC Adj Factor Scoring'!$E$3:$AH$3,0)-1),MATCH(Q$2&\" Score\",'C. PoC Adj Factor Scoring'!$E$4:$J$4,0),TRUE)","v":1},{"$f":"VLOOKUP(OFFSET($B:$B,,MATCH(R$4,$B$4:$F$4,0)-1),OFFSET('C. PoC Adj Factor Scoring'!$E$5:$J$282,,MATCH(R$4,'C. PoC Adj Factor Scoring'!$E$3:$AH$3,0)-1),MATCH(R$2&\" Score\",'C. PoC Adj Factor Scoring'!$E$4:$J$4,0),TRUE)","v":1},{"$f":"VLOOKUP(OFFSET($B:$B,,MATCH(S$4,$B$4:$F$4,0)-1),OFFSET('C. PoC Adj Factor Scoring'!$E$5:$J$282,,MATCH(S$4,'C. PoC Adj Factor Scoring'!$E$3:$AH$3,0)-1),MATCH(S$2&\" Score\",'C. PoC Adj Factor Scoring'!$E$4:$J$4,0),TRUE)","v":1},{"$f":"VLOOKUP(OFFSET($B:$B,,MATCH(T$4,$B$4:$F$4,0)-1),OFFSET('C. PoC Adj Factor Scoring'!$E$5:$J$282,,MATCH(T$4,'C. PoC Adj Factor Scoring'!$E$3:$AH$3,0)-1),MATCH(T$2&\" Score\",'C. PoC Adj Factor Scoring'!$E$4:$J$4,0),TRUE)","v":1},{"$f":"VLOOKUP(OFFSET($B:$B,,MATCH(U$4,$B$4:$F$4,0)-1),OFFSET('C. PoC Adj Factor Scoring'!$E$5:$J$282,,MATCH(U$4,'C. PoC Adj Factor Scoring'!$E$3:$AH$3,0)-1),MATCH(U$2&\" Score\",'C. PoC Adj Factor Scoring'!$E$4:$J$4,0),TRUE)","v":1},{"$f":"VLOOKUP(OFFSET($B:$B,,MATCH(V$4,$B$4:$F$4,0)-1),OFFSET('C. PoC Adj Factor Scoring'!$E$5:$J$282,,MATCH(V$4,'C. PoC Adj Factor Scoring'!$E$3:$AH$3,0)-1),MATCH(V$2&\" Score\",'C. PoC Adj Factor Scoring'!$E$4:$J$4,0),TRUE)","v":1},{"$f":"VLOOKUP(OFFSET($B:$B,,MATCH(W$4,$B$4:$F$4,0)-1),OFFSET('C. PoC Adj Factor Scoring'!$E$5:$J$282,,MATCH(W$4,'C. PoC Adj Factor Scoring'!$E$3:$AH$3,0)-1),MATCH(W$2&\" Score\",'C. PoC Adj Factor Scoring'!$E$4:$J$4,0),TRUE)","v":1},{"$f":"VLOOKUP(OFFSET($B:$B,,MATCH(X$4,$B$4:$F$4,0)-1),OFFSET('C. PoC Adj Factor Scoring'!$E$5:$J$282,,MATCH(X$4,'C. PoC Adj Factor Scoring'!$E$3:$AH$3,0)-1),MATCH(X$2&\" Score\",'C. PoC Adj Factor Scoring'!$E$4:$J$4,0),TRUE)","v":1},{"$f":"VLOOKUP(OFFSET($B:$B,,MATCH(Y$4,$B$4:$F$4,0)-1),OFFSET('C. PoC Adj Factor Scoring'!$E$5:$J$282,,MATCH(Y$4,'C. PoC Adj Factor Scoring'!$E$3:$AH$3,0)-1),MATCH(Y$2&\" Score\",'C. PoC Adj Factor Scoring'!$E$4:$J$4,0),TRUE)","v":1},{"$f":"VLOOKUP(OFFSET($B:$B,,MATCH(Z$4,$B$4:$F$4,0)-1),OFFSET('C. PoC Adj Factor Scoring'!$E$5:$J$282,,MATCH(Z$4,'C. PoC Adj Factor Scoring'!$E$3:$AH$3,0)-1),MATCH(Z$2&\" Score\",'C. PoC Adj Factor Scoring'!$E$4:$J$4,0),TRUE)","v":1},{"$f":"VLOOKUP(OFFSET($B:$B,,MATCH(AA$4,$B$4:$F$4,0)-1),OFFSET('C. PoC Adj Factor Scoring'!$E$5:$J$282,,MATCH(AA$4,'C. PoC Adj Factor Scoring'!$E$3:$AH$3,0)-1),MATCH(AA$2&\" Score\",'C. PoC Adj Factor Scoring'!$E$4:$J$4,0),TRUE)","v":3},{"$f":"VLOOKUP(OFFSET($B:$B,,MATCH(AB$4,$B$4:$F$4,0)-1),OFFSET('C. PoC Adj Factor Scoring'!$E$5:$J$282,,MATCH(AB$4,'C. PoC Adj Factor Scoring'!$E$3:$AH$3,0)-1),MATCH(AB$2&\" Score\",'C. PoC Adj Factor Scoring'!$E$4:$J$4,0),TRUE)","v":1},{"$f":"VLOOKUP(OFFSET($B:$B,,MATCH(AC$4,$B$4:$F$4,0)-1),OFFSET('C. PoC Adj Factor Scoring'!$E$5:$J$282,,MATCH(AC$4,'C. PoC Adj Factor Scoring'!$E$3:$AH$3,0)-1),MATCH(AC$2&\" Score\",'C. PoC Adj Factor Scoring'!$E$4:$J$4,0),TRUE)","v":1},{"$f":"VLOOKUP(OFFSET($B:$B,,MATCH(AD$4,$B$4:$F$4,0)-1),OFFSET('C. PoC Adj Factor Scoring'!$E$5:$J$282,,MATCH(AD$4,'C. PoC Adj Factor Scoring'!$E$3:$AH$3,0)-1),MATCH(AD$2&\" Score\",'C. PoC Adj Factor Scoring'!$E$4:$J$4,0),TRUE)","v":1},{"$f":"VLOOKUP(OFFSET($B:$B,,MATCH(AE$4,$B$4:$F$4,0)-1),OFFSET('C. PoC Adj Factor Scoring'!$E$5:$J$282,,MATCH(AE$4,'C. PoC Adj Factor Scoring'!$E$3:$AH$3,0)-1),MATCH(AE$2&\" Score\",'C. PoC Adj Factor Scoring'!$E$4:$J$4,0),TRUE)","v":1}]
[{"$f":"'A. Population Info'!A557","v":1001865683},{"$f":"'A. Population Info'!L557","v":"OIL"},{"$f":"'A. Population Info'!M557","v":0},{"$f":"'A. Population Info'!N557","v":0},{"$f":"'A. Population Info'!O557","v":0},{"$f":"'A. Population Info'!P557","v":0},{"$f":"VLOOKUP(OFFSET($B:$B,,MATCH(G$4,$B$4:$F$4,0)-1),OFFSET('C. PoC Adj Factor Scoring'!$E$5:$J$282,,MATCH(G$4,'C. PoC Adj Factor Scoring'!$E$3:$AH$3,0)-1),MATCH(G$2&\" Score\",'C. PoC Adj Factor Scoring'!$E$4:$J$4,0),TRUE)","v":4},{"$f":"VLOOKUP(OFFSET($B:$B,,MATCH(H$4,$B$4:$F$4,0)-1),OFFSET('C. PoC Adj Factor Scoring'!$E$5:$J$282,,MATCH(H$4,'C. PoC Adj Factor Scoring'!$E$3:$AH$3,0)-1),MATCH(H$2&\" Score\",'C. PoC Adj Factor Scoring'!$E$4:$J$4,0),TRUE)","v":1},{"$f":"VLOOKUP(OFFSET($B:$B,,MATCH(I$4,$B$4:$F$4,0)-1),OFFSET('C. PoC Adj Factor Scoring'!$E$5:$J$282,,MATCH(I$4,'C. PoC Adj Factor Scoring'!$E$3:$AH$3,0)-1),MATCH(I$2&\" Score\",'C. PoC Adj Factor Scoring'!$E$4:$J$4,0),TRUE)","v":1},{"$f":"VLOOKUP(OFFSET($B:$B,,MATCH(J$4,$B$4:$F$4,0)-1),OFFSET('C. PoC Adj Factor Scoring'!$E$5:$J$282,,MATCH(J$4,'C. PoC Adj Factor Scoring'!$E$3:$AH$3,0)-1),MATCH(J$2&\" Score\",'C. PoC Adj Factor Scoring'!$E$4:$J$4,0),TRUE)","v":1},{"$f":"VLOOKUP(OFFSET($B:$B,,MATCH(K$4,$B$4:$F$4,0)-1),OFFSET('C. PoC Adj Factor Scoring'!$E$5:$J$282,,MATCH(K$4,'C. PoC Adj Factor Scoring'!$E$3:$AH$3,0)-1),MATCH(K$2&\" Score\",'C. PoC Adj Factor Scoring'!$E$4:$J$4,0),TRUE)","v":1},{"$f":"VLOOKUP(OFFSET($B:$B,,MATCH(L$4,$B$4:$F$4,0)-1),OFFSET('C. PoC Adj Factor Scoring'!$E$5:$J$282,,MATCH(L$4,'C. PoC Adj Factor Scoring'!$E$3:$AH$3,0)-1),MATCH(L$2&\" Score\",'C. PoC Adj Factor Scoring'!$E$4:$J$4,0),TRUE)","v":1},{"$f":"VLOOKUP(OFFSET($B:$B,,MATCH(M$4,$B$4:$F$4,0)-1),OFFSET('C. PoC Adj Factor Scoring'!$E$5:$J$282,,MATCH(M$4,'C. PoC Adj Factor Scoring'!$E$3:$AH$3,0)-1),MATCH(M$2&\" Score\",'C. PoC Adj Factor Scoring'!$E$4:$J$4,0),TRUE)","v":1},{"$f":"VLOOKUP(OFFSET($B:$B,,MATCH(N$4,$B$4:$F$4,0)-1),OFFSET('C. PoC Adj Factor Scoring'!$E$5:$J$282,,MATCH(N$4,'C. PoC Adj Factor Scoring'!$E$3:$AH$3,0)-1),MATCH(N$2&\" Score\",'C. PoC Adj Factor Scoring'!$E$4:$J$4,0),TRUE)","v":1},{"$f":"VLOOKUP(OFFSET($B:$B,,MATCH(O$4,$B$4:$F$4,0)-1),OFFSET('C. PoC Adj Factor Scoring'!$E$5:$J$282,,MATCH(O$4,'C. PoC Adj Factor Scoring'!$E$3:$AH$3,0)-1),MATCH(O$2&\" Score\",'C. PoC Adj Factor Scoring'!$E$4:$J$4,0),TRUE)","v":1},{"$f":"VLOOKUP(OFFSET($B:$B,,MATCH(P$4,$B$4:$F$4,0)-1),OFFSET('C. PoC Adj Factor Scoring'!$E$5:$J$282,,MATCH(P$4,'C. PoC Adj Factor Scoring'!$E$3:$AH$3,0)-1),MATCH(P$2&\" Score\",'C. PoC Adj Factor Scoring'!$E$4:$J$4,0),TRUE)","v":1},{"$f":"VLOOKUP(OFFSET($B:$B,,MATCH(Q$4,$B$4:$F$4,0)-1),OFFSET('C. PoC Adj Factor Scoring'!$E$5:$J$282,,MATCH(Q$4,'C. PoC Adj Factor Scoring'!$E$3:$AH$3,0)-1),MATCH(Q$2&\" Score\",'C. PoC Adj Factor Scoring'!$E$4:$J$4,0),TRUE)","v":1},{"$f":"VLOOKUP(OFFSET($B:$B,,MATCH(R$4,$B$4:$F$4,0)-1),OFFSET('C. PoC Adj Factor Scoring'!$E$5:$J$282,,MATCH(R$4,'C. PoC Adj Factor Scoring'!$E$3:$AH$3,0)-1),MATCH(R$2&\" Score\",'C. PoC Adj Factor Scoring'!$E$4:$J$4,0),TRUE)","v":1},{"$f":"VLOOKUP(OFFSET($B:$B,,MATCH(S$4,$B$4:$F$4,0)-1),OFFSET('C. PoC Adj Factor Scoring'!$E$5:$J$282,,MATCH(S$4,'C. PoC Adj Factor Scoring'!$E$3:$AH$3,0)-1),MATCH(S$2&\" Score\",'C. PoC Adj Factor Scoring'!$E$4:$J$4,0),TRUE)","v":1},{"$f":"VLOOKUP(OFFSET($B:$B,,MATCH(T$4,$B$4:$F$4,0)-1),OFFSET('C. PoC Adj Factor Scoring'!$E$5:$J$282,,MATCH(T$4,'C. PoC Adj Factor Scoring'!$E$3:$AH$3,0)-1),MATCH(T$2&\" Score\",'C. PoC Adj Factor Scoring'!$E$4:$J$4,0),TRUE)","v":1},{"$f":"VLOOKUP(OFFSET($B:$B,,MATCH(U$4,$B$4:$F$4,0)-1),OFFSET('C. PoC Adj Factor Scoring'!$E$5:$J$282,,MATCH(U$4,'C. PoC Adj Factor Scoring'!$E$3:$AH$3,0)-1),MATCH(U$2&\" Score\",'C. PoC Adj Factor Scoring'!$E$4:$J$4,0),TRUE)","v":1},{"$f":"VLOOKUP(OFFSET($B:$B,,MATCH(V$4,$B$4:$F$4,0)-1),OFFSET('C. PoC Adj Factor Scoring'!$E$5:$J$282,,MATCH(V$4,'C. PoC Adj Factor Scoring'!$E$3:$AH$3,0)-1),MATCH(V$2&\" Score\",'C. PoC Adj Factor Scoring'!$E$4:$J$4,0),TRUE)","v":1},{"$f":"VLOOKUP(OFFSET($B:$B,,MATCH(W$4,$B$4:$F$4,0)-1),OFFSET('C. PoC Adj Factor Scoring'!$E$5:$J$282,,MATCH(W$4,'C. PoC Adj Factor Scoring'!$E$3:$AH$3,0)-1),MATCH(W$2&\" Score\",'C. PoC Adj Factor Scoring'!$E$4:$J$4,0),TRUE)","v":1},{"$f":"VLOOKUP(OFFSET($B:$B,,MATCH(X$4,$B$4:$F$4,0)-1),OFFSET('C. PoC Adj Factor Scoring'!$E$5:$J$282,,MATCH(X$4,'C. PoC Adj Factor Scoring'!$E$3:$AH$3,0)-1),MATCH(X$2&\" Score\",'C. PoC Adj Factor Scoring'!$E$4:$J$4,0),TRUE)","v":1},{"$f":"VLOOKUP(OFFSET($B:$B,,MATCH(Y$4,$B$4:$F$4,0)-1),OFFSET('C. PoC Adj Factor Scoring'!$E$5:$J$282,,MATCH(Y$4,'C. PoC Adj Factor Scoring'!$E$3:$AH$3,0)-1),MATCH(Y$2&\" Score\",'C. PoC Adj Factor Scoring'!$E$4:$J$4,0),TRUE)","v":1},{"$f":"VLOOKUP(OFFSET($B:$B,,MATCH(Z$4,$B$4:$F$4,0)-1),OFFSET('C. PoC Adj Factor Scoring'!$E$5:$J$282,,MATCH(Z$4,'C. PoC Adj Factor Scoring'!$E$3:$AH$3,0)-1),MATCH(Z$2&\" Score\",'C. PoC Adj Factor Scoring'!$E$4:$J$4,0),TRUE)","v":1},{"$f":"VLOOKUP(OFFSET($B:$B,,MATCH(AA$4,$B$4:$F$4,0)-1),OFFSET('C. PoC Adj Factor Scoring'!$E$5:$J$282,,MATCH(AA$4,'C. PoC Adj Factor Scoring'!$E$3:$AH$3,0)-1),MATCH(AA$2&\" Score\",'C. PoC Adj Factor Scoring'!$E$4:$J$4,0),TRUE)","v":3},{"$f":"VLOOKUP(OFFSET($B:$B,,MATCH(AB$4,$B$4:$F$4,0)-1),OFFSET('C. PoC Adj Factor Scoring'!$E$5:$J$282,,MATCH(AB$4,'C. PoC Adj Factor Scoring'!$E$3:$AH$3,0)-1),MATCH(AB$2&\" Score\",'C. PoC Adj Factor Scoring'!$E$4:$J$4,0),TRUE)","v":1},{"$f":"VLOOKUP(OFFSET($B:$B,,MATCH(AC$4,$B$4:$F$4,0)-1),OFFSET('C. PoC Adj Factor Scoring'!$E$5:$J$282,,MATCH(AC$4,'C. PoC Adj Factor Scoring'!$E$3:$AH$3,0)-1),MATCH(AC$2&\" Score\",'C. PoC Adj Factor Scoring'!$E$4:$J$4,0),TRUE)","v":1},{"$f":"VLOOKUP(OFFSET($B:$B,,MATCH(AD$4,$B$4:$F$4,0)-1),OFFSET('C. PoC Adj Factor Scoring'!$E$5:$J$282,,MATCH(AD$4,'C. PoC Adj Factor Scoring'!$E$3:$AH$3,0)-1),MATCH(AD$2&\" Score\",'C. PoC Adj Factor Scoring'!$E$4:$J$4,0),TRUE)","v":1},{"$f":"VLOOKUP(OFFSET($B:$B,,MATCH(AE$4,$B$4:$F$4,0)-1),OFFSET('C. PoC Adj Factor Scoring'!$E$5:$J$282,,MATCH(AE$4,'C. PoC Adj Factor Scoring'!$E$3:$AH$3,0)-1),MATCH(AE$2&\" Score\",'C. PoC Adj Factor Scoring'!$E$4:$J$4,0),TRUE)","v":1}]
[{"$f":"'A. Population Info'!A558","v":1001895048},{"$f":"'A. Population Info'!L558","v":"OIL"},{"$f":"'A. Population Info'!M558","v":0},{"$f":"'A. Population Info'!N558","v":0},{"$f":"'A. Population Info'!O558","v":0},{"$f":"'A. Population Info'!P558","v":0},{"$f":"VLOOKUP(OFFSET($B:$B,,MATCH(G$4,$B$4:$F$4,0)-1),OFFSET('C. PoC Adj Factor Scoring'!$E$5:$J$282,,MATCH(G$4,'C. PoC Adj Factor Scoring'!$E$3:$AH$3,0)-1),MATCH(G$2&\" Score\",'C. PoC Adj Factor Scoring'!$E$4:$J$4,0),TRUE)","v":4},{"$f":"VLOOKUP(OFFSET($B:$B,,MATCH(H$4,$B$4:$F$4,0)-1),OFFSET('C. PoC Adj Factor Scoring'!$E$5:$J$282,,MATCH(H$4,'C. PoC Adj Factor Scoring'!$E$3:$AH$3,0)-1),MATCH(H$2&\" Score\",'C. PoC Adj Factor Scoring'!$E$4:$J$4,0),TRUE)","v":1},{"$f":"VLOOKUP(OFFSET($B:$B,,MATCH(I$4,$B$4:$F$4,0)-1),OFFSET('C. PoC Adj Factor Scoring'!$E$5:$J$282,,MATCH(I$4,'C. PoC Adj Factor Scoring'!$E$3:$AH$3,0)-1),MATCH(I$2&\" Score\",'C. PoC Adj Factor Scoring'!$E$4:$J$4,0),TRUE)","v":1},{"$f":"VLOOKUP(OFFSET($B:$B,,MATCH(J$4,$B$4:$F$4,0)-1),OFFSET('C. PoC Adj Factor Scoring'!$E$5:$J$282,,MATCH(J$4,'C. PoC Adj Factor Scoring'!$E$3:$AH$3,0)-1),MATCH(J$2&\" Score\",'C. PoC Adj Factor Scoring'!$E$4:$J$4,0),TRUE)","v":1},{"$f":"VLOOKUP(OFFSET($B:$B,,MATCH(K$4,$B$4:$F$4,0)-1),OFFSET('C. PoC Adj Factor Scoring'!$E$5:$J$282,,MATCH(K$4,'C. PoC Adj Factor Scoring'!$E$3:$AH$3,0)-1),MATCH(K$2&\" Score\",'C. PoC Adj Factor Scoring'!$E$4:$J$4,0),TRUE)","v":1},{"$f":"VLOOKUP(OFFSET($B:$B,,MATCH(L$4,$B$4:$F$4,0)-1),OFFSET('C. PoC Adj Factor Scoring'!$E$5:$J$282,,MATCH(L$4,'C. PoC Adj Factor Scoring'!$E$3:$AH$3,0)-1),MATCH(L$2&\" Score\",'C. PoC Adj Factor Scoring'!$E$4:$J$4,0),TRUE)","v":1},{"$f":"VLOOKUP(OFFSET($B:$B,,MATCH(M$4,$B$4:$F$4,0)-1),OFFSET('C. PoC Adj Factor Scoring'!$E$5:$J$282,,MATCH(M$4,'C. PoC Adj Factor Scoring'!$E$3:$AH$3,0)-1),MATCH(M$2&\" Score\",'C. PoC Adj Factor Scoring'!$E$4:$J$4,0),TRUE)","v":1},{"$f":"VLOOKUP(OFFSET($B:$B,,MATCH(N$4,$B$4:$F$4,0)-1),OFFSET('C. PoC Adj Factor Scoring'!$E$5:$J$282,,MATCH(N$4,'C. PoC Adj Factor Scoring'!$E$3:$AH$3,0)-1),MATCH(N$2&\" Score\",'C. PoC Adj Factor Scoring'!$E$4:$J$4,0),TRUE)","v":1},{"$f":"VLOOKUP(OFFSET($B:$B,,MATCH(O$4,$B$4:$F$4,0)-1),OFFSET('C. PoC Adj Factor Scoring'!$E$5:$J$282,,MATCH(O$4,'C. PoC Adj Factor Scoring'!$E$3:$AH$3,0)-1),MATCH(O$2&\" Score\",'C. PoC Adj Factor Scoring'!$E$4:$J$4,0),TRUE)","v":1},{"$f":"VLOOKUP(OFFSET($B:$B,,MATCH(P$4,$B$4:$F$4,0)-1),OFFSET('C. PoC Adj Factor Scoring'!$E$5:$J$282,,MATCH(P$4,'C. PoC Adj Factor Scoring'!$E$3:$AH$3,0)-1),MATCH(P$2&\" Score\",'C. PoC Adj Factor Scoring'!$E$4:$J$4,0),TRUE)","v":1},{"$f":"VLOOKUP(OFFSET($B:$B,,MATCH(Q$4,$B$4:$F$4,0)-1),OFFSET('C. PoC Adj Factor Scoring'!$E$5:$J$282,,MATCH(Q$4,'C. PoC Adj Factor Scoring'!$E$3:$AH$3,0)-1),MATCH(Q$2&\" Score\",'C. PoC Adj Factor Scoring'!$E$4:$J$4,0),TRUE)","v":1},{"$f":"VLOOKUP(OFFSET($B:$B,,MATCH(R$4,$B$4:$F$4,0)-1),OFFSET('C. PoC Adj Factor Scoring'!$E$5:$J$282,,MATCH(R$4,'C. PoC Adj Factor Scoring'!$E$3:$AH$3,0)-1),MATCH(R$2&\" Score\",'C. PoC Adj Factor Scoring'!$E$4:$J$4,0),TRUE)","v":1},{"$f":"VLOOKUP(OFFSET($B:$B,,MATCH(S$4,$B$4:$F$4,0)-1),OFFSET('C. PoC Adj Factor Scoring'!$E$5:$J$282,,MATCH(S$4,'C. PoC Adj Factor Scoring'!$E$3:$AH$3,0)-1),MATCH(S$2&\" Score\",'C. PoC Adj Factor Scoring'!$E$4:$J$4,0),TRUE)","v":1},{"$f":"VLOOKUP(OFFSET($B:$B,,MATCH(T$4,$B$4:$F$4,0)-1),OFFSET('C. PoC Adj Factor Scoring'!$E$5:$J$282,,MATCH(T$4,'C. PoC Adj Factor Scoring'!$E$3:$AH$3,0)-1),MATCH(T$2&\" Score\",'C. PoC Adj Factor Scoring'!$E$4:$J$4,0),TRUE)","v":1},{"$f":"VLOOKUP(OFFSET($B:$B,,MATCH(U$4,$B$4:$F$4,0)-1),OFFSET('C. PoC Adj Factor Scoring'!$E$5:$J$282,,MATCH(U$4,'C. PoC Adj Factor Scoring'!$E$3:$AH$3,0)-1),MATCH(U$2&\" Score\",'C. PoC Adj Factor Scoring'!$E$4:$J$4,0),TRUE)","v":1},{"$f":"VLOOKUP(OFFSET($B:$B,,MATCH(V$4,$B$4:$F$4,0)-1),OFFSET('C. PoC Adj Factor Scoring'!$E$5:$J$282,,MATCH(V$4,'C. PoC Adj Factor Scoring'!$E$3:$AH$3,0)-1),MATCH(V$2&\" Score\",'C. PoC Adj Factor Scoring'!$E$4:$J$4,0),TRUE)","v":1},{"$f":"VLOOKUP(OFFSET($B:$B,,MATCH(W$4,$B$4:$F$4,0)-1),OFFSET('C. PoC Adj Factor Scoring'!$E$5:$J$282,,MATCH(W$4,'C. PoC Adj Factor Scoring'!$E$3:$AH$3,0)-1),MATCH(W$2&\" Score\",'C. PoC Adj Factor Scoring'!$E$4:$J$4,0),TRUE)","v":1},{"$f":"VLOOKUP(OFFSET($B:$B,,MATCH(X$4,$B$4:$F$4,0)-1),OFFSET('C. PoC Adj Factor Scoring'!$E$5:$J$282,,MATCH(X$4,'C. PoC Adj Factor Scoring'!$E$3:$AH$3,0)-1),MATCH(X$2&\" Score\",'C. PoC Adj Factor Scoring'!$E$4:$J$4,0),TRUE)","v":1},{"$f":"VLOOKUP(OFFSET($B:$B,,MATCH(Y$4,$B$4:$F$4,0)-1),OFFSET('C. PoC Adj Factor Scoring'!$E$5:$J$282,,MATCH(Y$4,'C. PoC Adj Factor Scoring'!$E$3:$AH$3,0)-1),MATCH(Y$2&\" Score\",'C. PoC Adj Factor Scoring'!$E$4:$J$4,0),TRUE)","v":1},{"$f":"VLOOKUP(OFFSET($B:$B,,MATCH(Z$4,$B$4:$F$4,0)-1),OFFSET('C. PoC Adj Factor Scoring'!$E$5:$J$282,,MATCH(Z$4,'C. PoC Adj Factor Scoring'!$E$3:$AH$3,0)-1),MATCH(Z$2&\" Score\",'C. PoC Adj Factor Scoring'!$E$4:$J$4,0),TRUE)","v":1},{"$f":"VLOOKUP(OFFSET($B:$B,,MATCH(AA$4,$B$4:$F$4,0)-1),OFFSET('C. PoC Adj Factor Scoring'!$E$5:$J$282,,MATCH(AA$4,'C. PoC Adj Factor Scoring'!$E$3:$AH$3,0)-1),MATCH(AA$2&\" Score\",'C. PoC Adj Factor Scoring'!$E$4:$J$4,0),TRUE)","v":3},{"$f":"VLOOKUP(OFFSET($B:$B,,MATCH(AB$4,$B$4:$F$4,0)-1),OFFSET('C. PoC Adj Factor Scoring'!$E$5:$J$282,,MATCH(AB$4,'C. PoC Adj Factor Scoring'!$E$3:$AH$3,0)-1),MATCH(AB$2&\" Score\",'C. PoC Adj Factor Scoring'!$E$4:$J$4,0),TRUE)","v":1},{"$f":"VLOOKUP(OFFSET($B:$B,,MATCH(AC$4,$B$4:$F$4,0)-1),OFFSET('C. PoC Adj Factor Scoring'!$E$5:$J$282,,MATCH(AC$4,'C. PoC Adj Factor Scoring'!$E$3:$AH$3,0)-1),MATCH(AC$2&\" Score\",'C. PoC Adj Factor Scoring'!$E$4:$J$4,0),TRUE)","v":1},{"$f":"VLOOKUP(OFFSET($B:$B,,MATCH(AD$4,$B$4:$F$4,0)-1),OFFSET('C. PoC Adj Factor Scoring'!$E$5:$J$282,,MATCH(AD$4,'C. PoC Adj Factor Scoring'!$E$3:$AH$3,0)-1),MATCH(AD$2&\" Score\",'C. PoC Adj Factor Scoring'!$E$4:$J$4,0),TRUE)","v":1},{"$f":"VLOOKUP(OFFSET($B:$B,,MATCH(AE$4,$B$4:$F$4,0)-1),OFFSET('C. PoC Adj Factor Scoring'!$E$5:$J$282,,MATCH(AE$4,'C. PoC Adj Factor Scoring'!$E$3:$AH$3,0)-1),MATCH(AE$2&\" Score\",'C. PoC Adj Factor Scoring'!$E$4:$J$4,0),TRUE)","v":1}]
[{"$f":"'A. Population Info'!A559","v":1003132771},{"$f":"'A. Population Info'!L559","v":"OIL"},{"$f":"'A. Population Info'!M559","v":0},{"$f":"'A. Population Info'!N559","v":0},{"$f":"'A. Population Info'!O559","v":0},{"$f":"'A. Population Info'!P559","v":0},{"$f":"VLOOKUP(OFFSET($B:$B,,MATCH(G$4,$B$4:$F$4,0)-1),OFFSET('C. PoC Adj Factor Scoring'!$E$5:$J$282,,MATCH(G$4,'C. PoC Adj Factor Scoring'!$E$3:$AH$3,0)-1),MATCH(G$2&\" Score\",'C. PoC Adj Factor Scoring'!$E$4:$J$4,0),TRUE)","v":4},{"$f":"VLOOKUP(OFFSET($B:$B,,MATCH(H$4,$B$4:$F$4,0)-1),OFFSET('C. PoC Adj Factor Scoring'!$E$5:$J$282,,MATCH(H$4,'C. PoC Adj Factor Scoring'!$E$3:$AH$3,0)-1),MATCH(H$2&\" Score\",'C. PoC Adj Factor Scoring'!$E$4:$J$4,0),TRUE)","v":1},{"$f":"VLOOKUP(OFFSET($B:$B,,MATCH(I$4,$B$4:$F$4,0)-1),OFFSET('C. PoC Adj Factor Scoring'!$E$5:$J$282,,MATCH(I$4,'C. PoC Adj Factor Scoring'!$E$3:$AH$3,0)-1),MATCH(I$2&\" Score\",'C. PoC Adj Factor Scoring'!$E$4:$J$4,0),TRUE)","v":1},{"$f":"VLOOKUP(OFFSET($B:$B,,MATCH(J$4,$B$4:$F$4,0)-1),OFFSET('C. PoC Adj Factor Scoring'!$E$5:$J$282,,MATCH(J$4,'C. PoC Adj Factor Scoring'!$E$3:$AH$3,0)-1),MATCH(J$2&\" Score\",'C. PoC Adj Factor Scoring'!$E$4:$J$4,0),TRUE)","v":1},{"$f":"VLOOKUP(OFFSET($B:$B,,MATCH(K$4,$B$4:$F$4,0)-1),OFFSET('C. PoC Adj Factor Scoring'!$E$5:$J$282,,MATCH(K$4,'C. PoC Adj Factor Scoring'!$E$3:$AH$3,0)-1),MATCH(K$2&\" Score\",'C. PoC Adj Factor Scoring'!$E$4:$J$4,0),TRUE)","v":1},{"$f":"VLOOKUP(OFFSET($B:$B,,MATCH(L$4,$B$4:$F$4,0)-1),OFFSET('C. PoC Adj Factor Scoring'!$E$5:$J$282,,MATCH(L$4,'C. PoC Adj Factor Scoring'!$E$3:$AH$3,0)-1),MATCH(L$2&\" Score\",'C. PoC Adj Factor Scoring'!$E$4:$J$4,0),TRUE)","v":1},{"$f":"VLOOKUP(OFFSET($B:$B,,MATCH(M$4,$B$4:$F$4,0)-1),OFFSET('C. PoC Adj Factor Scoring'!$E$5:$J$282,,MATCH(M$4,'C. PoC Adj Factor Scoring'!$E$3:$AH$3,0)-1),MATCH(M$2&\" Score\",'C. PoC Adj Factor Scoring'!$E$4:$J$4,0),TRUE)","v":1},{"$f":"VLOOKUP(OFFSET($B:$B,,MATCH(N$4,$B$4:$F$4,0)-1),OFFSET('C. PoC Adj Factor Scoring'!$E$5:$J$282,,MATCH(N$4,'C. PoC Adj Factor Scoring'!$E$3:$AH$3,0)-1),MATCH(N$2&\" Score\",'C. PoC Adj Factor Scoring'!$E$4:$J$4,0),TRUE)","v":1},{"$f":"VLOOKUP(OFFSET($B:$B,,MATCH(O$4,$B$4:$F$4,0)-1),OFFSET('C. PoC Adj Factor Scoring'!$E$5:$J$282,,MATCH(O$4,'C. PoC Adj Factor Scoring'!$E$3:$AH$3,0)-1),MATCH(O$2&\" Score\",'C. PoC Adj Factor Scoring'!$E$4:$J$4,0),TRUE)","v":1},{"$f":"VLOOKUP(OFFSET($B:$B,,MATCH(P$4,$B$4:$F$4,0)-1),OFFSET('C. PoC Adj Factor Scoring'!$E$5:$J$282,,MATCH(P$4,'C. PoC Adj Factor Scoring'!$E$3:$AH$3,0)-1),MATCH(P$2&\" Score\",'C. PoC Adj Factor Scoring'!$E$4:$J$4,0),TRUE)","v":1},{"$f":"VLOOKUP(OFFSET($B:$B,,MATCH(Q$4,$B$4:$F$4,0)-1),OFFSET('C. PoC Adj Factor Scoring'!$E$5:$J$282,,MATCH(Q$4,'C. PoC Adj Factor Scoring'!$E$3:$AH$3,0)-1),MATCH(Q$2&\" Score\",'C. PoC Adj Factor Scoring'!$E$4:$J$4,0),TRUE)","v":1},{"$f":"VLOOKUP(OFFSET($B:$B,,MATCH(R$4,$B$4:$F$4,0)-1),OFFSET('C. PoC Adj Factor Scoring'!$E$5:$J$282,,MATCH(R$4,'C. PoC Adj Factor Scoring'!$E$3:$AH$3,0)-1),MATCH(R$2&\" Score\",'C. PoC Adj Factor Scoring'!$E$4:$J$4,0),TRUE)","v":1},{"$f":"VLOOKUP(OFFSET($B:$B,,MATCH(S$4,$B$4:$F$4,0)-1),OFFSET('C. PoC Adj Factor Scoring'!$E$5:$J$282,,MATCH(S$4,'C. PoC Adj Factor Scoring'!$E$3:$AH$3,0)-1),MATCH(S$2&\" Score\",'C. PoC Adj Factor Scoring'!$E$4:$J$4,0),TRUE)","v":1},{"$f":"VLOOKUP(OFFSET($B:$B,,MATCH(T$4,$B$4:$F$4,0)-1),OFFSET('C. PoC Adj Factor Scoring'!$E$5:$J$282,,MATCH(T$4,'C. PoC Adj Factor Scoring'!$E$3:$AH$3,0)-1),MATCH(T$2&\" Score\",'C. PoC Adj Factor Scoring'!$E$4:$J$4,0),TRUE)","v":1},{"$f":"VLOOKUP(OFFSET($B:$B,,MATCH(U$4,$B$4:$F$4,0)-1),OFFSET('C. PoC Adj Factor Scoring'!$E$5:$J$282,,MATCH(U$4,'C. PoC Adj Factor Scoring'!$E$3:$AH$3,0)-1),MATCH(U$2&\" Score\",'C. PoC Adj Factor Scoring'!$E$4:$J$4,0),TRUE)","v":1},{"$f":"VLOOKUP(OFFSET($B:$B,,MATCH(V$4,$B$4:$F$4,0)-1),OFFSET('C. PoC Adj Factor Scoring'!$E$5:$J$282,,MATCH(V$4,'C. PoC Adj Factor Scoring'!$E$3:$AH$3,0)-1),MATCH(V$2&\" Score\",'C. PoC Adj Factor Scoring'!$E$4:$J$4,0),TRUE)","v":1},{"$f":"VLOOKUP(OFFSET($B:$B,,MATCH(W$4,$B$4:$F$4,0)-1),OFFSET('C. PoC Adj Factor Scoring'!$E$5:$J$282,,MATCH(W$4,'C. PoC Adj Factor Scoring'!$E$3:$AH$3,0)-1),MATCH(W$2&\" Score\",'C. PoC Adj Factor Scoring'!$E$4:$J$4,0),TRUE)","v":1},{"$f":"VLOOKUP(OFFSET($B:$B,,MATCH(X$4,$B$4:$F$4,0)-1),OFFSET('C. PoC Adj Factor Scoring'!$E$5:$J$282,,MATCH(X$4,'C. PoC Adj Factor Scoring'!$E$3:$AH$3,0)-1),MATCH(X$2&\" Score\",'C. PoC Adj Factor Scoring'!$E$4:$J$4,0),TRUE)","v":1},{"$f":"VLOOKUP(OFFSET($B:$B,,MATCH(Y$4,$B$4:$F$4,0)-1),OFFSET('C. PoC Adj Factor Scoring'!$E$5:$J$282,,MATCH(Y$4,'C. PoC Adj Factor Scoring'!$E$3:$AH$3,0)-1),MATCH(Y$2&\" Score\",'C. PoC Adj Factor Scoring'!$E$4:$J$4,0),TRUE)","v":1},{"$f":"VLOOKUP(OFFSET($B:$B,,MATCH(Z$4,$B$4:$F$4,0)-1),OFFSET('C. PoC Adj Factor Scoring'!$E$5:$J$282,,MATCH(Z$4,'C. PoC Adj Factor Scoring'!$E$3:$AH$3,0)-1),MATCH(Z$2&\" Score\",'C. PoC Adj Factor Scoring'!$E$4:$J$4,0),TRUE)","v":1},{"$f":"VLOOKUP(OFFSET($B:$B,,MATCH(AA$4,$B$4:$F$4,0)-1),OFFSET('C. PoC Adj Factor Scoring'!$E$5:$J$282,,MATCH(AA$4,'C. PoC Adj Factor Scoring'!$E$3:$AH$3,0)-1),MATCH(AA$2&\" Score\",'C. PoC Adj Factor Scoring'!$E$4:$J$4,0),TRUE)","v":3},{"$f":"VLOOKUP(OFFSET($B:$B,,MATCH(AB$4,$B$4:$F$4,0)-1),OFFSET('C. PoC Adj Factor Scoring'!$E$5:$J$282,,MATCH(AB$4,'C. PoC Adj Factor Scoring'!$E$3:$AH$3,0)-1),MATCH(AB$2&\" Score\",'C. PoC Adj Factor Scoring'!$E$4:$J$4,0),TRUE)","v":1},{"$f":"VLOOKUP(OFFSET($B:$B,,MATCH(AC$4,$B$4:$F$4,0)-1),OFFSET('C. PoC Adj Factor Scoring'!$E$5:$J$282,,MATCH(AC$4,'C. PoC Adj Factor Scoring'!$E$3:$AH$3,0)-1),MATCH(AC$2&\" Score\",'C. PoC Adj Factor Scoring'!$E$4:$J$4,0),TRUE)","v":1},{"$f":"VLOOKUP(OFFSET($B:$B,,MATCH(AD$4,$B$4:$F$4,0)-1),OFFSET('C. PoC Adj Factor Scoring'!$E$5:$J$282,,MATCH(AD$4,'C. PoC Adj Factor Scoring'!$E$3:$AH$3,0)-1),MATCH(AD$2&\" Score\",'C. PoC Adj Factor Scoring'!$E$4:$J$4,0),TRUE)","v":1},{"$f":"VLOOKUP(OFFSET($B:$B,,MATCH(AE$4,$B$4:$F$4,0)-1),OFFSET('C. PoC Adj Factor Scoring'!$E$5:$J$282,,MATCH(AE$4,'C. PoC Adj Factor Scoring'!$E$3:$AH$3,0)-1),MATCH(AE$2&\" Score\",'C. PoC Adj Factor Scoring'!$E$4:$J$4,0),TRUE)","v":1}]
[{"$f":"'A. Population Info'!A560","v":1003132772},{"$f":"'A. Population Info'!L560","v":"OIL"},{"$f":"'A. Population Info'!M560","v":0},{"$f":"'A. Population Info'!N560","v":0},{"$f":"'A. Population Info'!O560","v":0},{"$f":"'A. Population Info'!P560","v":0},{"$f":"VLOOKUP(OFFSET($B:$B,,MATCH(G$4,$B$4:$F$4,0)-1),OFFSET('C. PoC Adj Factor Scoring'!$E$5:$J$282,,MATCH(G$4,'C. PoC Adj Factor Scoring'!$E$3:$AH$3,0)-1),MATCH(G$2&\" Score\",'C. PoC Adj Factor Scoring'!$E$4:$J$4,0),TRUE)","v":4},{"$f":"VLOOKUP(OFFSET($B:$B,,MATCH(H$4,$B$4:$F$4,0)-1),OFFSET('C. PoC Adj Factor Scoring'!$E$5:$J$282,,MATCH(H$4,'C. PoC Adj Factor Scoring'!$E$3:$AH$3,0)-1),MATCH(H$2&\" Score\",'C. PoC Adj Factor Scoring'!$E$4:$J$4,0),TRUE)","v":1},{"$f":"VLOOKUP(OFFSET($B:$B,,MATCH(I$4,$B$4:$F$4,0)-1),OFFSET('C. PoC Adj Factor Scoring'!$E$5:$J$282,,MATCH(I$4,'C. PoC Adj Factor Scoring'!$E$3:$AH$3,0)-1),MATCH(I$2&\" Score\",'C. PoC Adj Factor Scoring'!$E$4:$J$4,0),TRUE)","v":1},{"$f":"VLOOKUP(OFFSET($B:$B,,MATCH(J$4,$B$4:$F$4,0)-1),OFFSET('C. PoC Adj Factor Scoring'!$E$5:$J$282,,MATCH(J$4,'C. PoC Adj Factor Scoring'!$E$3:$AH$3,0)-1),MATCH(J$2&\" Score\",'C. PoC Adj Factor Scoring'!$E$4:$J$4,0),TRUE)","v":1},{"$f":"VLOOKUP(OFFSET($B:$B,,MATCH(K$4,$B$4:$F$4,0)-1),OFFSET('C. PoC Adj Factor Scoring'!$E$5:$J$282,,MATCH(K$4,'C. PoC Adj Factor Scoring'!$E$3:$AH$3,0)-1),MATCH(K$2&\" Score\",'C. PoC Adj Factor Scoring'!$E$4:$J$4,0),TRUE)","v":1},{"$f":"VLOOKUP(OFFSET($B:$B,,MATCH(L$4,$B$4:$F$4,0)-1),OFFSET('C. PoC Adj Factor Scoring'!$E$5:$J$282,,MATCH(L$4,'C. PoC Adj Factor Scoring'!$E$3:$AH$3,0)-1),MATCH(L$2&\" Score\",'C. PoC Adj Factor Scoring'!$E$4:$J$4,0),TRUE)","v":1},{"$f":"VLOOKUP(OFFSET($B:$B,,MATCH(M$4,$B$4:$F$4,0)-1),OFFSET('C. PoC Adj Factor Scoring'!$E$5:$J$282,,MATCH(M$4,'C. PoC Adj Factor Scoring'!$E$3:$AH$3,0)-1),MATCH(M$2&\" Score\",'C. PoC Adj Factor Scoring'!$E$4:$J$4,0),TRUE)","v":1},{"$f":"VLOOKUP(OFFSET($B:$B,,MATCH(N$4,$B$4:$F$4,0)-1),OFFSET('C. PoC Adj Factor Scoring'!$E$5:$J$282,,MATCH(N$4,'C. PoC Adj Factor Scoring'!$E$3:$AH$3,0)-1),MATCH(N$2&\" Score\",'C. PoC Adj Factor Scoring'!$E$4:$J$4,0),TRUE)","v":1},{"$f":"VLOOKUP(OFFSET($B:$B,,MATCH(O$4,$B$4:$F$4,0)-1),OFFSET('C. PoC Adj Factor Scoring'!$E$5:$J$282,,MATCH(O$4,'C. PoC Adj Factor Scoring'!$E$3:$AH$3,0)-1),MATCH(O$2&\" Score\",'C. PoC Adj Factor Scoring'!$E$4:$J$4,0),TRUE)","v":1},{"$f":"VLOOKUP(OFFSET($B:$B,,MATCH(P$4,$B$4:$F$4,0)-1),OFFSET('C. PoC Adj Factor Scoring'!$E$5:$J$282,,MATCH(P$4,'C. PoC Adj Factor Scoring'!$E$3:$AH$3,0)-1),MATCH(P$2&\" Score\",'C. PoC Adj Factor Scoring'!$E$4:$J$4,0),TRUE)","v":1},{"$f":"VLOOKUP(OFFSET($B:$B,,MATCH(Q$4,$B$4:$F$4,0)-1),OFFSET('C. PoC Adj Factor Scoring'!$E$5:$J$282,,MATCH(Q$4,'C. PoC Adj Factor Scoring'!$E$3:$AH$3,0)-1),MATCH(Q$2&\" Score\",'C. PoC Adj Factor Scoring'!$E$4:$J$4,0),TRUE)","v":1},{"$f":"VLOOKUP(OFFSET($B:$B,,MATCH(R$4,$B$4:$F$4,0)-1),OFFSET('C. PoC Adj Factor Scoring'!$E$5:$J$282,,MATCH(R$4,'C. PoC Adj Factor Scoring'!$E$3:$AH$3,0)-1),MATCH(R$2&\" Score\",'C. PoC Adj Factor Scoring'!$E$4:$J$4,0),TRUE)","v":1},{"$f":"VLOOKUP(OFFSET($B:$B,,MATCH(S$4,$B$4:$F$4,0)-1),OFFSET('C. PoC Adj Factor Scoring'!$E$5:$J$282,,MATCH(S$4,'C. PoC Adj Factor Scoring'!$E$3:$AH$3,0)-1),MATCH(S$2&\" Score\",'C. PoC Adj Factor Scoring'!$E$4:$J$4,0),TRUE)","v":1},{"$f":"VLOOKUP(OFFSET($B:$B,,MATCH(T$4,$B$4:$F$4,0)-1),OFFSET('C. PoC Adj Factor Scoring'!$E$5:$J$282,,MATCH(T$4,'C. PoC Adj Factor Scoring'!$E$3:$AH$3,0)-1),MATCH(T$2&\" Score\",'C. PoC Adj Factor Scoring'!$E$4:$J$4,0),TRUE)","v":1},{"$f":"VLOOKUP(OFFSET($B:$B,,MATCH(U$4,$B$4:$F$4,0)-1),OFFSET('C. PoC Adj Factor Scoring'!$E$5:$J$282,,MATCH(U$4,'C. PoC Adj Factor Scoring'!$E$3:$AH$3,0)-1),MATCH(U$2&\" Score\",'C. PoC Adj Factor Scoring'!$E$4:$J$4,0),TRUE)","v":1},{"$f":"VLOOKUP(OFFSET($B:$B,,MATCH(V$4,$B$4:$F$4,0)-1),OFFSET('C. PoC Adj Factor Scoring'!$E$5:$J$282,,MATCH(V$4,'C. PoC Adj Factor Scoring'!$E$3:$AH$3,0)-1),MATCH(V$2&\" Score\",'C. PoC Adj Factor Scoring'!$E$4:$J$4,0),TRUE)","v":1},{"$f":"VLOOKUP(OFFSET($B:$B,,MATCH(W$4,$B$4:$F$4,0)-1),OFFSET('C. PoC Adj Factor Scoring'!$E$5:$J$282,,MATCH(W$4,'C. PoC Adj Factor Scoring'!$E$3:$AH$3,0)-1),MATCH(W$2&\" Score\",'C. PoC Adj Factor Scoring'!$E$4:$J$4,0),TRUE)","v":1},{"$f":"VLOOKUP(OFFSET($B:$B,,MATCH(X$4,$B$4:$F$4,0)-1),OFFSET('C. PoC Adj Factor Scoring'!$E$5:$J$282,,MATCH(X$4,'C. PoC Adj Factor Scoring'!$E$3:$AH$3,0)-1),MATCH(X$2&\" Score\",'C. PoC Adj Factor Scoring'!$E$4:$J$4,0),TRUE)","v":1},{"$f":"VLOOKUP(OFFSET($B:$B,,MATCH(Y$4,$B$4:$F$4,0)-1),OFFSET('C. PoC Adj Factor Scoring'!$E$5:$J$282,,MATCH(Y$4,'C. PoC Adj Factor Scoring'!$E$3:$AH$3,0)-1),MATCH(Y$2&\" Score\",'C. PoC Adj Factor Scoring'!$E$4:$J$4,0),TRUE)","v":1},{"$f":"VLOOKUP(OFFSET($B:$B,,MATCH(Z$4,$B$4:$F$4,0)-1),OFFSET('C. PoC Adj Factor Scoring'!$E$5:$J$282,,MATCH(Z$4,'C. PoC Adj Factor Scoring'!$E$3:$AH$3,0)-1),MATCH(Z$2&\" Score\",'C. PoC Adj Factor Scoring'!$E$4:$J$4,0),TRUE)","v":1},{"$f":"VLOOKUP(OFFSET($B:$B,,MATCH(AA$4,$B$4:$F$4,0)-1),OFFSET('C. PoC Adj Factor Scoring'!$E$5:$J$282,,MATCH(AA$4,'C. PoC Adj Factor Scoring'!$E$3:$AH$3,0)-1),MATCH(AA$2&\" Score\",'C. PoC Adj Factor Scoring'!$E$4:$J$4,0),TRUE)","v":3},{"$f":"VLOOKUP(OFFSET($B:$B,,MATCH(AB$4,$B$4:$F$4,0)-1),OFFSET('C. PoC Adj Factor Scoring'!$E$5:$J$282,,MATCH(AB$4,'C. PoC Adj Factor Scoring'!$E$3:$AH$3,0)-1),MATCH(AB$2&\" Score\",'C. PoC Adj Factor Scoring'!$E$4:$J$4,0),TRUE)","v":1},{"$f":"VLOOKUP(OFFSET($B:$B,,MATCH(AC$4,$B$4:$F$4,0)-1),OFFSET('C. PoC Adj Factor Scoring'!$E$5:$J$282,,MATCH(AC$4,'C. PoC Adj Factor Scoring'!$E$3:$AH$3,0)-1),MATCH(AC$2&\" Score\",'C. PoC Adj Factor Scoring'!$E$4:$J$4,0),TRUE)","v":1},{"$f":"VLOOKUP(OFFSET($B:$B,,MATCH(AD$4,$B$4:$F$4,0)-1),OFFSET('C. PoC Adj Factor Scoring'!$E$5:$J$282,,MATCH(AD$4,'C. PoC Adj Factor Scoring'!$E$3:$AH$3,0)-1),MATCH(AD$2&\" Score\",'C. PoC Adj Factor Scoring'!$E$4:$J$4,0),TRUE)","v":1},{"$f":"VLOOKUP(OFFSET($B:$B,,MATCH(AE$4,$B$4:$F$4,0)-1),OFFSET('C. PoC Adj Factor Scoring'!$E$5:$J$282,,MATCH(AE$4,'C. PoC Adj Factor Scoring'!$E$3:$AH$3,0)-1),MATCH(AE$2&\" Score\",'C. PoC Adj Factor Scoring'!$E$4:$J$4,0),TRUE)","v":1}]
[{"$f":"'A. Population Info'!A561","v":1003132875},{"$f":"'A. Population Info'!L561","v":"OIL"},{"$f":"'A. Population Info'!M561","v":0},{"$f":"'A. Population Info'!N561","v":0},{"$f":"'A. Population Info'!O561","v":0},{"$f":"'A. Population Info'!P561","v":0},{"$f":"VLOOKUP(OFFSET($B:$B,,MATCH(G$4,$B$4:$F$4,0)-1),OFFSET('C. PoC Adj Factor Scoring'!$E$5:$J$282,,MATCH(G$4,'C. PoC Adj Factor Scoring'!$E$3:$AH$3,0)-1),MATCH(G$2&\" Score\",'C. PoC Adj Factor Scoring'!$E$4:$J$4,0),TRUE)","v":4},{"$f":"VLOOKUP(OFFSET($B:$B,,MATCH(H$4,$B$4:$F$4,0)-1),OFFSET('C. PoC Adj Factor Scoring'!$E$5:$J$282,,MATCH(H$4,'C. PoC Adj Factor Scoring'!$E$3:$AH$3,0)-1),MATCH(H$2&\" Score\",'C. PoC Adj Factor Scoring'!$E$4:$J$4,0),TRUE)","v":1},{"$f":"VLOOKUP(OFFSET($B:$B,,MATCH(I$4,$B$4:$F$4,0)-1),OFFSET('C. PoC Adj Factor Scoring'!$E$5:$J$282,,MATCH(I$4,'C. PoC Adj Factor Scoring'!$E$3:$AH$3,0)-1),MATCH(I$2&\" Score\",'C. PoC Adj Factor Scoring'!$E$4:$J$4,0),TRUE)","v":1},{"$f":"VLOOKUP(OFFSET($B:$B,,MATCH(J$4,$B$4:$F$4,0)-1),OFFSET('C. PoC Adj Factor Scoring'!$E$5:$J$282,,MATCH(J$4,'C. PoC Adj Factor Scoring'!$E$3:$AH$3,0)-1),MATCH(J$2&\" Score\",'C. PoC Adj Factor Scoring'!$E$4:$J$4,0),TRUE)","v":1},{"$f":"VLOOKUP(OFFSET($B:$B,,MATCH(K$4,$B$4:$F$4,0)-1),OFFSET('C. PoC Adj Factor Scoring'!$E$5:$J$282,,MATCH(K$4,'C. PoC Adj Factor Scoring'!$E$3:$AH$3,0)-1),MATCH(K$2&\" Score\",'C. PoC Adj Factor Scoring'!$E$4:$J$4,0),TRUE)","v":1},{"$f":"VLOOKUP(OFFSET($B:$B,,MATCH(L$4,$B$4:$F$4,0)-1),OFFSET('C. PoC Adj Factor Scoring'!$E$5:$J$282,,MATCH(L$4,'C. PoC Adj Factor Scoring'!$E$3:$AH$3,0)-1),MATCH(L$2&\" Score\",'C. PoC Adj Factor Scoring'!$E$4:$J$4,0),TRUE)","v":1},{"$f":"VLOOKUP(OFFSET($B:$B,,MATCH(M$4,$B$4:$F$4,0)-1),OFFSET('C. PoC Adj Factor Scoring'!$E$5:$J$282,,MATCH(M$4,'C. PoC Adj Factor Scoring'!$E$3:$AH$3,0)-1),MATCH(M$2&\" Score\",'C. PoC Adj Factor Scoring'!$E$4:$J$4,0),TRUE)","v":1},{"$f":"VLOOKUP(OFFSET($B:$B,,MATCH(N$4,$B$4:$F$4,0)-1),OFFSET('C. PoC Adj Factor Scoring'!$E$5:$J$282,,MATCH(N$4,'C. PoC Adj Factor Scoring'!$E$3:$AH$3,0)-1),MATCH(N$2&\" Score\",'C. PoC Adj Factor Scoring'!$E$4:$J$4,0),TRUE)","v":1},{"$f":"VLOOKUP(OFFSET($B:$B,,MATCH(O$4,$B$4:$F$4,0)-1),OFFSET('C. PoC Adj Factor Scoring'!$E$5:$J$282,,MATCH(O$4,'C. PoC Adj Factor Scoring'!$E$3:$AH$3,0)-1),MATCH(O$2&\" Score\",'C. PoC Adj Factor Scoring'!$E$4:$J$4,0),TRUE)","v":1},{"$f":"VLOOKUP(OFFSET($B:$B,,MATCH(P$4,$B$4:$F$4,0)-1),OFFSET('C. PoC Adj Factor Scoring'!$E$5:$J$282,,MATCH(P$4,'C. PoC Adj Factor Scoring'!$E$3:$AH$3,0)-1),MATCH(P$2&\" Score\",'C. PoC Adj Factor Scoring'!$E$4:$J$4,0),TRUE)","v":1},{"$f":"VLOOKUP(OFFSET($B:$B,,MATCH(Q$4,$B$4:$F$4,0)-1),OFFSET('C. PoC Adj Factor Scoring'!$E$5:$J$282,,MATCH(Q$4,'C. PoC Adj Factor Scoring'!$E$3:$AH$3,0)-1),MATCH(Q$2&\" Score\",'C. PoC Adj Factor Scoring'!$E$4:$J$4,0),TRUE)","v":1},{"$f":"VLOOKUP(OFFSET($B:$B,,MATCH(R$4,$B$4:$F$4,0)-1),OFFSET('C. PoC Adj Factor Scoring'!$E$5:$J$282,,MATCH(R$4,'C. PoC Adj Factor Scoring'!$E$3:$AH$3,0)-1),MATCH(R$2&\" Score\",'C. PoC Adj Factor Scoring'!$E$4:$J$4,0),TRUE)","v":1},{"$f":"VLOOKUP(OFFSET($B:$B,,MATCH(S$4,$B$4:$F$4,0)-1),OFFSET('C. PoC Adj Factor Scoring'!$E$5:$J$282,,MATCH(S$4,'C. PoC Adj Factor Scoring'!$E$3:$AH$3,0)-1),MATCH(S$2&\" Score\",'C. PoC Adj Factor Scoring'!$E$4:$J$4,0),TRUE)","v":1},{"$f":"VLOOKUP(OFFSET($B:$B,,MATCH(T$4,$B$4:$F$4,0)-1),OFFSET('C. PoC Adj Factor Scoring'!$E$5:$J$282,,MATCH(T$4,'C. PoC Adj Factor Scoring'!$E$3:$AH$3,0)-1),MATCH(T$2&\" Score\",'C. PoC Adj Factor Scoring'!$E$4:$J$4,0),TRUE)","v":1},{"$f":"VLOOKUP(OFFSET($B:$B,,MATCH(U$4,$B$4:$F$4,0)-1),OFFSET('C. PoC Adj Factor Scoring'!$E$5:$J$282,,MATCH(U$4,'C. PoC Adj Factor Scoring'!$E$3:$AH$3,0)-1),MATCH(U$2&\" Score\",'C. PoC Adj Factor Scoring'!$E$4:$J$4,0),TRUE)","v":1},{"$f":"VLOOKUP(OFFSET($B:$B,,MATCH(V$4,$B$4:$F$4,0)-1),OFFSET('C. PoC Adj Factor Scoring'!$E$5:$J$282,,MATCH(V$4,'C. PoC Adj Factor Scoring'!$E$3:$AH$3,0)-1),MATCH(V$2&\" Score\",'C. PoC Adj Factor Scoring'!$E$4:$J$4,0),TRUE)","v":1},{"$f":"VLOOKUP(OFFSET($B:$B,,MATCH(W$4,$B$4:$F$4,0)-1),OFFSET('C. PoC Adj Factor Scoring'!$E$5:$J$282,,MATCH(W$4,'C. PoC Adj Factor Scoring'!$E$3:$AH$3,0)-1),MATCH(W$2&\" Score\",'C. PoC Adj Factor Scoring'!$E$4:$J$4,0),TRUE)","v":1},{"$f":"VLOOKUP(OFFSET($B:$B,,MATCH(X$4,$B$4:$F$4,0)-1),OFFSET('C. PoC Adj Factor Scoring'!$E$5:$J$282,,MATCH(X$4,'C. PoC Adj Factor Scoring'!$E$3:$AH$3,0)-1),MATCH(X$2&\" Score\",'C. PoC Adj Factor Scoring'!$E$4:$J$4,0),TRUE)","v":1},{"$f":"VLOOKUP(OFFSET($B:$B,,MATCH(Y$4,$B$4:$F$4,0)-1),OFFSET('C. PoC Adj Factor Scoring'!$E$5:$J$282,,MATCH(Y$4,'C. PoC Adj Factor Scoring'!$E$3:$AH$3,0)-1),MATCH(Y$2&\" Score\",'C. PoC Adj Factor Scoring'!$E$4:$J$4,0),TRUE)","v":1},{"$f":"VLOOKUP(OFFSET($B:$B,,MATCH(Z$4,$B$4:$F$4,0)-1),OFFSET('C. PoC Adj Factor Scoring'!$E$5:$J$282,,MATCH(Z$4,'C. PoC Adj Factor Scoring'!$E$3:$AH$3,0)-1),MATCH(Z$2&\" Score\",'C. PoC Adj Factor Scoring'!$E$4:$J$4,0),TRUE)","v":1},{"$f":"VLOOKUP(OFFSET($B:$B,,MATCH(AA$4,$B$4:$F$4,0)-1),OFFSET('C. PoC Adj Factor Scoring'!$E$5:$J$282,,MATCH(AA$4,'C. PoC Adj Factor Scoring'!$E$3:$AH$3,0)-1),MATCH(AA$2&\" Score\",'C. PoC Adj Factor Scoring'!$E$4:$J$4,0),TRUE)","v":3},{"$f":"VLOOKUP(OFFSET($B:$B,,MATCH(AB$4,$B$4:$F$4,0)-1),OFFSET('C. PoC Adj Factor Scoring'!$E$5:$J$282,,MATCH(AB$4,'C. PoC Adj Factor Scoring'!$E$3:$AH$3,0)-1),MATCH(AB$2&\" Score\",'C. PoC Adj Factor Scoring'!$E$4:$J$4,0),TRUE)","v":1},{"$f":"VLOOKUP(OFFSET($B:$B,,MATCH(AC$4,$B$4:$F$4,0)-1),OFFSET('C. PoC Adj Factor Scoring'!$E$5:$J$282,,MATCH(AC$4,'C. PoC Adj Factor Scoring'!$E$3:$AH$3,0)-1),MATCH(AC$2&\" Score\",'C. PoC Adj Factor Scoring'!$E$4:$J$4,0),TRUE)","v":1},{"$f":"VLOOKUP(OFFSET($B:$B,,MATCH(AD$4,$B$4:$F$4,0)-1),OFFSET('C. PoC Adj Factor Scoring'!$E$5:$J$282,,MATCH(AD$4,'C. PoC Adj Factor Scoring'!$E$3:$AH$3,0)-1),MATCH(AD$2&\" Score\",'C. PoC Adj Factor Scoring'!$E$4:$J$4,0),TRUE)","v":1},{"$f":"VLOOKUP(OFFSET($B:$B,,MATCH(AE$4,$B$4:$F$4,0)-1),OFFSET('C. PoC Adj Factor Scoring'!$E$5:$J$282,,MATCH(AE$4,'C. PoC Adj Factor Scoring'!$E$3:$AH$3,0)-1),MATCH(AE$2&\" Score\",'C. PoC Adj Factor Scoring'!$E$4:$J$4,0),TRUE)","v":1}]
[{"$f":"'A. Population Info'!A562","v":1003132876},{"$f":"'A. Population Info'!L562","v":"OIL"},{"$f":"'A. Population Info'!M562","v":0},{"$f":"'A. Population Info'!N562","v":0},{"$f":"'A. Population Info'!O562","v":0},{"$f":"'A. Population Info'!P562","v":0},{"$f":"VLOOKUP(OFFSET($B:$B,,MATCH(G$4,$B$4:$F$4,0)-1),OFFSET('C. PoC Adj Factor Scoring'!$E$5:$J$282,,MATCH(G$4,'C. PoC Adj Factor Scoring'!$E$3:$AH$3,0)-1),MATCH(G$2&\" Score\",'C. PoC Adj Factor Scoring'!$E$4:$J$4,0),TRUE)","v":4},{"$f":"VLOOKUP(OFFSET($B:$B,,MATCH(H$4,$B$4:$F$4,0)-1),OFFSET('C. PoC Adj Factor Scoring'!$E$5:$J$282,,MATCH(H$4,'C. PoC Adj Factor Scoring'!$E$3:$AH$3,0)-1),MATCH(H$2&\" Score\",'C. PoC Adj Factor Scoring'!$E$4:$J$4,0),TRUE)","v":1},{"$f":"VLOOKUP(OFFSET($B:$B,,MATCH(I$4,$B$4:$F$4,0)-1),OFFSET('C. PoC Adj Factor Scoring'!$E$5:$J$282,,MATCH(I$4,'C. PoC Adj Factor Scoring'!$E$3:$AH$3,0)-1),MATCH(I$2&\" Score\",'C. PoC Adj Factor Scoring'!$E$4:$J$4,0),TRUE)","v":1},{"$f":"VLOOKUP(OFFSET($B:$B,,MATCH(J$4,$B$4:$F$4,0)-1),OFFSET('C. PoC Adj Factor Scoring'!$E$5:$J$282,,MATCH(J$4,'C. PoC Adj Factor Scoring'!$E$3:$AH$3,0)-1),MATCH(J$2&\" Score\",'C. PoC Adj Factor Scoring'!$E$4:$J$4,0),TRUE)","v":1},{"$f":"VLOOKUP(OFFSET($B:$B,,MATCH(K$4,$B$4:$F$4,0)-1),OFFSET('C. PoC Adj Factor Scoring'!$E$5:$J$282,,MATCH(K$4,'C. PoC Adj Factor Scoring'!$E$3:$AH$3,0)-1),MATCH(K$2&\" Score\",'C. PoC Adj Factor Scoring'!$E$4:$J$4,0),TRUE)","v":1},{"$f":"VLOOKUP(OFFSET($B:$B,,MATCH(L$4,$B$4:$F$4,0)-1),OFFSET('C. PoC Adj Factor Scoring'!$E$5:$J$282,,MATCH(L$4,'C. PoC Adj Factor Scoring'!$E$3:$AH$3,0)-1),MATCH(L$2&\" Score\",'C. PoC Adj Factor Scoring'!$E$4:$J$4,0),TRUE)","v":1},{"$f":"VLOOKUP(OFFSET($B:$B,,MATCH(M$4,$B$4:$F$4,0)-1),OFFSET('C. PoC Adj Factor Scoring'!$E$5:$J$282,,MATCH(M$4,'C. PoC Adj Factor Scoring'!$E$3:$AH$3,0)-1),MATCH(M$2&\" Score\",'C. PoC Adj Factor Scoring'!$E$4:$J$4,0),TRUE)","v":1},{"$f":"VLOOKUP(OFFSET($B:$B,,MATCH(N$4,$B$4:$F$4,0)-1),OFFSET('C. PoC Adj Factor Scoring'!$E$5:$J$282,,MATCH(N$4,'C. PoC Adj Factor Scoring'!$E$3:$AH$3,0)-1),MATCH(N$2&\" Score\",'C. PoC Adj Factor Scoring'!$E$4:$J$4,0),TRUE)","v":1},{"$f":"VLOOKUP(OFFSET($B:$B,,MATCH(O$4,$B$4:$F$4,0)-1),OFFSET('C. PoC Adj Factor Scoring'!$E$5:$J$282,,MATCH(O$4,'C. PoC Adj Factor Scoring'!$E$3:$AH$3,0)-1),MATCH(O$2&\" Score\",'C. PoC Adj Factor Scoring'!$E$4:$J$4,0),TRUE)","v":1},{"$f":"VLOOKUP(OFFSET($B:$B,,MATCH(P$4,$B$4:$F$4,0)-1),OFFSET('C. PoC Adj Factor Scoring'!$E$5:$J$282,,MATCH(P$4,'C. PoC Adj Factor Scoring'!$E$3:$AH$3,0)-1),MATCH(P$2&\" Score\",'C. PoC Adj Factor Scoring'!$E$4:$J$4,0),TRUE)","v":1},{"$f":"VLOOKUP(OFFSET($B:$B,,MATCH(Q$4,$B$4:$F$4,0)-1),OFFSET('C. PoC Adj Factor Scoring'!$E$5:$J$282,,MATCH(Q$4,'C. PoC Adj Factor Scoring'!$E$3:$AH$3,0)-1),MATCH(Q$2&\" Score\",'C. PoC Adj Factor Scoring'!$E$4:$J$4,0),TRUE)","v":1},{"$f":"VLOOKUP(OFFSET($B:$B,,MATCH(R$4,$B$4:$F$4,0)-1),OFFSET('C. PoC Adj Factor Scoring'!$E$5:$J$282,,MATCH(R$4,'C. PoC Adj Factor Scoring'!$E$3:$AH$3,0)-1),MATCH(R$2&\" Score\",'C. PoC Adj Factor Scoring'!$E$4:$J$4,0),TRUE)","v":1},{"$f":"VLOOKUP(OFFSET($B:$B,,MATCH(S$4,$B$4:$F$4,0)-1),OFFSET('C. PoC Adj Factor Scoring'!$E$5:$J$282,,MATCH(S$4,'C. PoC Adj Factor Scoring'!$E$3:$AH$3,0)-1),MATCH(S$2&\" Score\",'C. PoC Adj Factor Scoring'!$E$4:$J$4,0),TRUE)","v":1},{"$f":"VLOOKUP(OFFSET($B:$B,,MATCH(T$4,$B$4:$F$4,0)-1),OFFSET('C. PoC Adj Factor Scoring'!$E$5:$J$282,,MATCH(T$4,'C. PoC Adj Factor Scoring'!$E$3:$AH$3,0)-1),MATCH(T$2&\" Score\",'C. PoC Adj Factor Scoring'!$E$4:$J$4,0),TRUE)","v":1},{"$f":"VLOOKUP(OFFSET($B:$B,,MATCH(U$4,$B$4:$F$4,0)-1),OFFSET('C. PoC Adj Factor Scoring'!$E$5:$J$282,,MATCH(U$4,'C. PoC Adj Factor Scoring'!$E$3:$AH$3,0)-1),MATCH(U$2&\" Score\",'C. PoC Adj Factor Scoring'!$E$4:$J$4,0),TRUE)","v":1},{"$f":"VLOOKUP(OFFSET($B:$B,,MATCH(V$4,$B$4:$F$4,0)-1),OFFSET('C. PoC Adj Factor Scoring'!$E$5:$J$282,,MATCH(V$4,'C. PoC Adj Factor Scoring'!$E$3:$AH$3,0)-1),MATCH(V$2&\" Score\",'C. PoC Adj Factor Scoring'!$E$4:$J$4,0),TRUE)","v":1},{"$f":"VLOOKUP(OFFSET($B:$B,,MATCH(W$4,$B$4:$F$4,0)-1),OFFSET('C. PoC Adj Factor Scoring'!$E$5:$J$282,,MATCH(W$4,'C. PoC Adj Factor Scoring'!$E$3:$AH$3,0)-1),MATCH(W$2&\" Score\",'C. PoC Adj Factor Scoring'!$E$4:$J$4,0),TRUE)","v":1},{"$f":"VLOOKUP(OFFSET($B:$B,,MATCH(X$4,$B$4:$F$4,0)-1),OFFSET('C. PoC Adj Factor Scoring'!$E$5:$J$282,,MATCH(X$4,'C. PoC Adj Factor Scoring'!$E$3:$AH$3,0)-1),MATCH(X$2&\" Score\",'C. PoC Adj Factor Scoring'!$E$4:$J$4,0),TRUE)","v":1},{"$f":"VLOOKUP(OFFSET($B:$B,,MATCH(Y$4,$B$4:$F$4,0)-1),OFFSET('C. PoC Adj Factor Scoring'!$E$5:$J$282,,MATCH(Y$4,'C. PoC Adj Factor Scoring'!$E$3:$AH$3,0)-1),MATCH(Y$2&\" Score\",'C. PoC Adj Factor Scoring'!$E$4:$J$4,0),TRUE)","v":1},{"$f":"VLOOKUP(OFFSET($B:$B,,MATCH(Z$4,$B$4:$F$4,0)-1),OFFSET('C. PoC Adj Factor Scoring'!$E$5:$J$282,,MATCH(Z$4,'C. PoC Adj Factor Scoring'!$E$3:$AH$3,0)-1),MATCH(Z$2&\" Score\",'C. PoC Adj Factor Scoring'!$E$4:$J$4,0),TRUE)","v":1},{"$f":"VLOOKUP(OFFSET($B:$B,,MATCH(AA$4,$B$4:$F$4,0)-1),OFFSET('C. PoC Adj Factor Scoring'!$E$5:$J$282,,MATCH(AA$4,'C. PoC Adj Factor Scoring'!$E$3:$AH$3,0)-1),MATCH(AA$2&\" Score\",'C. PoC Adj Factor Scoring'!$E$4:$J$4,0),TRUE)","v":3},{"$f":"VLOOKUP(OFFSET($B:$B,,MATCH(AB$4,$B$4:$F$4,0)-1),OFFSET('C. PoC Adj Factor Scoring'!$E$5:$J$282,,MATCH(AB$4,'C. PoC Adj Factor Scoring'!$E$3:$AH$3,0)-1),MATCH(AB$2&\" Score\",'C. PoC Adj Factor Scoring'!$E$4:$J$4,0),TRUE)","v":1},{"$f":"VLOOKUP(OFFSET($B:$B,,MATCH(AC$4,$B$4:$F$4,0)-1),OFFSET('C. PoC Adj Factor Scoring'!$E$5:$J$282,,MATCH(AC$4,'C. PoC Adj Factor Scoring'!$E$3:$AH$3,0)-1),MATCH(AC$2&\" Score\",'C. PoC Adj Factor Scoring'!$E$4:$J$4,0),TRUE)","v":1},{"$f":"VLOOKUP(OFFSET($B:$B,,MATCH(AD$4,$B$4:$F$4,0)-1),OFFSET('C. PoC Adj Factor Scoring'!$E$5:$J$282,,MATCH(AD$4,'C. PoC Adj Factor Scoring'!$E$3:$AH$3,0)-1),MATCH(AD$2&\" Score\",'C. PoC Adj Factor Scoring'!$E$4:$J$4,0),TRUE)","v":1},{"$f":"VLOOKUP(OFFSET($B:$B,,MATCH(AE$4,$B$4:$F$4,0)-1),OFFSET('C. PoC Adj Factor Scoring'!$E$5:$J$282,,MATCH(AE$4,'C. PoC Adj Factor Scoring'!$E$3:$AH$3,0)-1),MATCH(AE$2&\" Score\",'C. PoC Adj Factor Scoring'!$E$4:$J$4,0),TRUE)","v":1}]
[{"$f":"'A. Population Info'!A563","v":1000332689},{"$f":"'A. Population Info'!L563","v":"OIL"},{"$f":"'A. Population Info'!M563","v":0},{"$f":"'A. Population Info'!N563","v":0},{"$f":"'A. Population Info'!O563","v":0},{"$f":"'A. Population Info'!P563","v":0},{"$f":"VLOOKUP(OFFSET($B:$B,,MATCH(G$4,$B$4:$F$4,0)-1),OFFSET('C. PoC Adj Factor Scoring'!$E$5:$J$282,,MATCH(G$4,'C. PoC Adj Factor Scoring'!$E$3:$AH$3,0)-1),MATCH(G$2&\" Score\",'C. PoC Adj Factor Scoring'!$E$4:$J$4,0),TRUE)","v":4},{"$f":"VLOOKUP(OFFSET($B:$B,,MATCH(H$4,$B$4:$F$4,0)-1),OFFSET('C. PoC Adj Factor Scoring'!$E$5:$J$282,,MATCH(H$4,'C. PoC Adj Factor Scoring'!$E$3:$AH$3,0)-1),MATCH(H$2&\" Score\",'C. PoC Adj Factor Scoring'!$E$4:$J$4,0),TRUE)","v":1},{"$f":"VLOOKUP(OFFSET($B:$B,,MATCH(I$4,$B$4:$F$4,0)-1),OFFSET('C. PoC Adj Factor Scoring'!$E$5:$J$282,,MATCH(I$4,'C. PoC Adj Factor Scoring'!$E$3:$AH$3,0)-1),MATCH(I$2&\" Score\",'C. PoC Adj Factor Scoring'!$E$4:$J$4,0),TRUE)","v":1},{"$f":"VLOOKUP(OFFSET($B:$B,,MATCH(J$4,$B$4:$F$4,0)-1),OFFSET('C. PoC Adj Factor Scoring'!$E$5:$J$282,,MATCH(J$4,'C. PoC Adj Factor Scoring'!$E$3:$AH$3,0)-1),MATCH(J$2&\" Score\",'C. PoC Adj Factor Scoring'!$E$4:$J$4,0),TRUE)","v":1},{"$f":"VLOOKUP(OFFSET($B:$B,,MATCH(K$4,$B$4:$F$4,0)-1),OFFSET('C. PoC Adj Factor Scoring'!$E$5:$J$282,,MATCH(K$4,'C. PoC Adj Factor Scoring'!$E$3:$AH$3,0)-1),MATCH(K$2&\" Score\",'C. PoC Adj Factor Scoring'!$E$4:$J$4,0),TRUE)","v":1},{"$f":"VLOOKUP(OFFSET($B:$B,,MATCH(L$4,$B$4:$F$4,0)-1),OFFSET('C. PoC Adj Factor Scoring'!$E$5:$J$282,,MATCH(L$4,'C. PoC Adj Factor Scoring'!$E$3:$AH$3,0)-1),MATCH(L$2&\" Score\",'C. PoC Adj Factor Scoring'!$E$4:$J$4,0),TRUE)","v":1},{"$f":"VLOOKUP(OFFSET($B:$B,,MATCH(M$4,$B$4:$F$4,0)-1),OFFSET('C. PoC Adj Factor Scoring'!$E$5:$J$282,,MATCH(M$4,'C. PoC Adj Factor Scoring'!$E$3:$AH$3,0)-1),MATCH(M$2&\" Score\",'C. PoC Adj Factor Scoring'!$E$4:$J$4,0),TRUE)","v":1},{"$f":"VLOOKUP(OFFSET($B:$B,,MATCH(N$4,$B$4:$F$4,0)-1),OFFSET('C. PoC Adj Factor Scoring'!$E$5:$J$282,,MATCH(N$4,'C. PoC Adj Factor Scoring'!$E$3:$AH$3,0)-1),MATCH(N$2&\" Score\",'C. PoC Adj Factor Scoring'!$E$4:$J$4,0),TRUE)","v":1},{"$f":"VLOOKUP(OFFSET($B:$B,,MATCH(O$4,$B$4:$F$4,0)-1),OFFSET('C. PoC Adj Factor Scoring'!$E$5:$J$282,,MATCH(O$4,'C. PoC Adj Factor Scoring'!$E$3:$AH$3,0)-1),MATCH(O$2&\" Score\",'C. PoC Adj Factor Scoring'!$E$4:$J$4,0),TRUE)","v":1},{"$f":"VLOOKUP(OFFSET($B:$B,,MATCH(P$4,$B$4:$F$4,0)-1),OFFSET('C. PoC Adj Factor Scoring'!$E$5:$J$282,,MATCH(P$4,'C. PoC Adj Factor Scoring'!$E$3:$AH$3,0)-1),MATCH(P$2&\" Score\",'C. PoC Adj Factor Scoring'!$E$4:$J$4,0),TRUE)","v":1},{"$f":"VLOOKUP(OFFSET($B:$B,,MATCH(Q$4,$B$4:$F$4,0)-1),OFFSET('C. PoC Adj Factor Scoring'!$E$5:$J$282,,MATCH(Q$4,'C. PoC Adj Factor Scoring'!$E$3:$AH$3,0)-1),MATCH(Q$2&\" Score\",'C. PoC Adj Factor Scoring'!$E$4:$J$4,0),TRUE)","v":1},{"$f":"VLOOKUP(OFFSET($B:$B,,MATCH(R$4,$B$4:$F$4,0)-1),OFFSET('C. PoC Adj Factor Scoring'!$E$5:$J$282,,MATCH(R$4,'C. PoC Adj Factor Scoring'!$E$3:$AH$3,0)-1),MATCH(R$2&\" Score\",'C. PoC Adj Factor Scoring'!$E$4:$J$4,0),TRUE)","v":1},{"$f":"VLOOKUP(OFFSET($B:$B,,MATCH(S$4,$B$4:$F$4,0)-1),OFFSET('C. PoC Adj Factor Scoring'!$E$5:$J$282,,MATCH(S$4,'C. PoC Adj Factor Scoring'!$E$3:$AH$3,0)-1),MATCH(S$2&\" Score\",'C. PoC Adj Factor Scoring'!$E$4:$J$4,0),TRUE)","v":1},{"$f":"VLOOKUP(OFFSET($B:$B,,MATCH(T$4,$B$4:$F$4,0)-1),OFFSET('C. PoC Adj Factor Scoring'!$E$5:$J$282,,MATCH(T$4,'C. PoC Adj Factor Scoring'!$E$3:$AH$3,0)-1),MATCH(T$2&\" Score\",'C. PoC Adj Factor Scoring'!$E$4:$J$4,0),TRUE)","v":1},{"$f":"VLOOKUP(OFFSET($B:$B,,MATCH(U$4,$B$4:$F$4,0)-1),OFFSET('C. PoC Adj Factor Scoring'!$E$5:$J$282,,MATCH(U$4,'C. PoC Adj Factor Scoring'!$E$3:$AH$3,0)-1),MATCH(U$2&\" Score\",'C. PoC Adj Factor Scoring'!$E$4:$J$4,0),TRUE)","v":1},{"$f":"VLOOKUP(OFFSET($B:$B,,MATCH(V$4,$B$4:$F$4,0)-1),OFFSET('C. PoC Adj Factor Scoring'!$E$5:$J$282,,MATCH(V$4,'C. PoC Adj Factor Scoring'!$E$3:$AH$3,0)-1),MATCH(V$2&\" Score\",'C. PoC Adj Factor Scoring'!$E$4:$J$4,0),TRUE)","v":1},{"$f":"VLOOKUP(OFFSET($B:$B,,MATCH(W$4,$B$4:$F$4,0)-1),OFFSET('C. PoC Adj Factor Scoring'!$E$5:$J$282,,MATCH(W$4,'C. PoC Adj Factor Scoring'!$E$3:$AH$3,0)-1),MATCH(W$2&\" Score\",'C. PoC Adj Factor Scoring'!$E$4:$J$4,0),TRUE)","v":1},{"$f":"VLOOKUP(OFFSET($B:$B,,MATCH(X$4,$B$4:$F$4,0)-1),OFFSET('C. PoC Adj Factor Scoring'!$E$5:$J$282,,MATCH(X$4,'C. PoC Adj Factor Scoring'!$E$3:$AH$3,0)-1),MATCH(X$2&\" Score\",'C. PoC Adj Factor Scoring'!$E$4:$J$4,0),TRUE)","v":1},{"$f":"VLOOKUP(OFFSET($B:$B,,MATCH(Y$4,$B$4:$F$4,0)-1),OFFSET('C. PoC Adj Factor Scoring'!$E$5:$J$282,,MATCH(Y$4,'C. PoC Adj Factor Scoring'!$E$3:$AH$3,0)-1),MATCH(Y$2&\" Score\",'C. PoC Adj Factor Scoring'!$E$4:$J$4,0),TRUE)","v":1},{"$f":"VLOOKUP(OFFSET($B:$B,,MATCH(Z$4,$B$4:$F$4,0)-1),OFFSET('C. PoC Adj Factor Scoring'!$E$5:$J$282,,MATCH(Z$4,'C. PoC Adj Factor Scoring'!$E$3:$AH$3,0)-1),MATCH(Z$2&\" Score\",'C. PoC Adj Factor Scoring'!$E$4:$J$4,0),TRUE)","v":1},{"$f":"VLOOKUP(OFFSET($B:$B,,MATCH(AA$4,$B$4:$F$4,0)-1),OFFSET('C. PoC Adj Factor Scoring'!$E$5:$J$282,,MATCH(AA$4,'C. PoC Adj Factor Scoring'!$E$3:$AH$3,0)-1),MATCH(AA$2&\" Score\",'C. PoC Adj Factor Scoring'!$E$4:$J$4,0),TRUE)","v":3},{"$f":"VLOOKUP(OFFSET($B:$B,,MATCH(AB$4,$B$4:$F$4,0)-1),OFFSET('C. PoC Adj Factor Scoring'!$E$5:$J$282,,MATCH(AB$4,'C. PoC Adj Factor Scoring'!$E$3:$AH$3,0)-1),MATCH(AB$2&\" Score\",'C. PoC Adj Factor Scoring'!$E$4:$J$4,0),TRUE)","v":1},{"$f":"VLOOKUP(OFFSET($B:$B,,MATCH(AC$4,$B$4:$F$4,0)-1),OFFSET('C. PoC Adj Factor Scoring'!$E$5:$J$282,,MATCH(AC$4,'C. PoC Adj Factor Scoring'!$E$3:$AH$3,0)-1),MATCH(AC$2&\" Score\",'C. PoC Adj Factor Scoring'!$E$4:$J$4,0),TRUE)","v":1},{"$f":"VLOOKUP(OFFSET($B:$B,,MATCH(AD$4,$B$4:$F$4,0)-1),OFFSET('C. PoC Adj Factor Scoring'!$E$5:$J$282,,MATCH(AD$4,'C. PoC Adj Factor Scoring'!$E$3:$AH$3,0)-1),MATCH(AD$2&\" Score\",'C. PoC Adj Factor Scoring'!$E$4:$J$4,0),TRUE)","v":1},{"$f":"VLOOKUP(OFFSET($B:$B,,MATCH(AE$4,$B$4:$F$4,0)-1),OFFSET('C. PoC Adj Factor Scoring'!$E$5:$J$282,,MATCH(AE$4,'C. PoC Adj Factor Scoring'!$E$3:$AH$3,0)-1),MATCH(AE$2&\" Score\",'C. PoC Adj Factor Scoring'!$E$4:$J$4,0),TRUE)","v":1}]
[{"$f":"'A. Population Info'!A564","v":1000340355},{"$f":"'A. Population Info'!L564","v":"OIL"},{"$f":"'A. Population Info'!M564","v":0},{"$f":"'A. Population Info'!N564","v":0},{"$f":"'A. Population Info'!O564","v":0},{"$f":"'A. Population Info'!P564","v":0},{"$f":"VLOOKUP(OFFSET($B:$B,,MATCH(G$4,$B$4:$F$4,0)-1),OFFSET('C. PoC Adj Factor Scoring'!$E$5:$J$282,,MATCH(G$4,'C. PoC Adj Factor Scoring'!$E$3:$AH$3,0)-1),MATCH(G$2&\" Score\",'C. PoC Adj Factor Scoring'!$E$4:$J$4,0),TRUE)","v":4},{"$f":"VLOOKUP(OFFSET($B:$B,,MATCH(H$4,$B$4:$F$4,0)-1),OFFSET('C. PoC Adj Factor Scoring'!$E$5:$J$282,,MATCH(H$4,'C. PoC Adj Factor Scoring'!$E$3:$AH$3,0)-1),MATCH(H$2&\" Score\",'C. PoC Adj Factor Scoring'!$E$4:$J$4,0),TRUE)","v":1},{"$f":"VLOOKUP(OFFSET($B:$B,,MATCH(I$4,$B$4:$F$4,0)-1),OFFSET('C. PoC Adj Factor Scoring'!$E$5:$J$282,,MATCH(I$4,'C. PoC Adj Factor Scoring'!$E$3:$AH$3,0)-1),MATCH(I$2&\" Score\",'C. PoC Adj Factor Scoring'!$E$4:$J$4,0),TRUE)","v":1},{"$f":"VLOOKUP(OFFSET($B:$B,,MATCH(J$4,$B$4:$F$4,0)-1),OFFSET('C. PoC Adj Factor Scoring'!$E$5:$J$282,,MATCH(J$4,'C. PoC Adj Factor Scoring'!$E$3:$AH$3,0)-1),MATCH(J$2&\" Score\",'C. PoC Adj Factor Scoring'!$E$4:$J$4,0),TRUE)","v":1},{"$f":"VLOOKUP(OFFSET($B:$B,,MATCH(K$4,$B$4:$F$4,0)-1),OFFSET('C. PoC Adj Factor Scoring'!$E$5:$J$282,,MATCH(K$4,'C. PoC Adj Factor Scoring'!$E$3:$AH$3,0)-1),MATCH(K$2&\" Score\",'C. PoC Adj Factor Scoring'!$E$4:$J$4,0),TRUE)","v":1},{"$f":"VLOOKUP(OFFSET($B:$B,,MATCH(L$4,$B$4:$F$4,0)-1),OFFSET('C. PoC Adj Factor Scoring'!$E$5:$J$282,,MATCH(L$4,'C. PoC Adj Factor Scoring'!$E$3:$AH$3,0)-1),MATCH(L$2&\" Score\",'C. PoC Adj Factor Scoring'!$E$4:$J$4,0),TRUE)","v":1},{"$f":"VLOOKUP(OFFSET($B:$B,,MATCH(M$4,$B$4:$F$4,0)-1),OFFSET('C. PoC Adj Factor Scoring'!$E$5:$J$282,,MATCH(M$4,'C. PoC Adj Factor Scoring'!$E$3:$AH$3,0)-1),MATCH(M$2&\" Score\",'C. PoC Adj Factor Scoring'!$E$4:$J$4,0),TRUE)","v":1},{"$f":"VLOOKUP(OFFSET($B:$B,,MATCH(N$4,$B$4:$F$4,0)-1),OFFSET('C. PoC Adj Factor Scoring'!$E$5:$J$282,,MATCH(N$4,'C. PoC Adj Factor Scoring'!$E$3:$AH$3,0)-1),MATCH(N$2&\" Score\",'C. PoC Adj Factor Scoring'!$E$4:$J$4,0),TRUE)","v":1},{"$f":"VLOOKUP(OFFSET($B:$B,,MATCH(O$4,$B$4:$F$4,0)-1),OFFSET('C. PoC Adj Factor Scoring'!$E$5:$J$282,,MATCH(O$4,'C. PoC Adj Factor Scoring'!$E$3:$AH$3,0)-1),MATCH(O$2&\" Score\",'C. PoC Adj Factor Scoring'!$E$4:$J$4,0),TRUE)","v":1},{"$f":"VLOOKUP(OFFSET($B:$B,,MATCH(P$4,$B$4:$F$4,0)-1),OFFSET('C. PoC Adj Factor Scoring'!$E$5:$J$282,,MATCH(P$4,'C. PoC Adj Factor Scoring'!$E$3:$AH$3,0)-1),MATCH(P$2&\" Score\",'C. PoC Adj Factor Scoring'!$E$4:$J$4,0),TRUE)","v":1},{"$f":"VLOOKUP(OFFSET($B:$B,,MATCH(Q$4,$B$4:$F$4,0)-1),OFFSET('C. PoC Adj Factor Scoring'!$E$5:$J$282,,MATCH(Q$4,'C. PoC Adj Factor Scoring'!$E$3:$AH$3,0)-1),MATCH(Q$2&\" Score\",'C. PoC Adj Factor Scoring'!$E$4:$J$4,0),TRUE)","v":1},{"$f":"VLOOKUP(OFFSET($B:$B,,MATCH(R$4,$B$4:$F$4,0)-1),OFFSET('C. PoC Adj Factor Scoring'!$E$5:$J$282,,MATCH(R$4,'C. PoC Adj Factor Scoring'!$E$3:$AH$3,0)-1),MATCH(R$2&\" Score\",'C. PoC Adj Factor Scoring'!$E$4:$J$4,0),TRUE)","v":1},{"$f":"VLOOKUP(OFFSET($B:$B,,MATCH(S$4,$B$4:$F$4,0)-1),OFFSET('C. PoC Adj Factor Scoring'!$E$5:$J$282,,MATCH(S$4,'C. PoC Adj Factor Scoring'!$E$3:$AH$3,0)-1),MATCH(S$2&\" Score\",'C. PoC Adj Factor Scoring'!$E$4:$J$4,0),TRUE)","v":1},{"$f":"VLOOKUP(OFFSET($B:$B,,MATCH(T$4,$B$4:$F$4,0)-1),OFFSET('C. PoC Adj Factor Scoring'!$E$5:$J$282,,MATCH(T$4,'C. PoC Adj Factor Scoring'!$E$3:$AH$3,0)-1),MATCH(T$2&\" Score\",'C. PoC Adj Factor Scoring'!$E$4:$J$4,0),TRUE)","v":1},{"$f":"VLOOKUP(OFFSET($B:$B,,MATCH(U$4,$B$4:$F$4,0)-1),OFFSET('C. PoC Adj Factor Scoring'!$E$5:$J$282,,MATCH(U$4,'C. PoC Adj Factor Scoring'!$E$3:$AH$3,0)-1),MATCH(U$2&\" Score\",'C. PoC Adj Factor Scoring'!$E$4:$J$4,0),TRUE)","v":1},{"$f":"VLOOKUP(OFFSET($B:$B,,MATCH(V$4,$B$4:$F$4,0)-1),OFFSET('C. PoC Adj Factor Scoring'!$E$5:$J$282,,MATCH(V$4,'C. PoC Adj Factor Scoring'!$E$3:$AH$3,0)-1),MATCH(V$2&\" Score\",'C. PoC Adj Factor Scoring'!$E$4:$J$4,0),TRUE)","v":1},{"$f":"VLOOKUP(OFFSET($B:$B,,MATCH(W$4,$B$4:$F$4,0)-1),OFFSET('C. PoC Adj Factor Scoring'!$E$5:$J$282,,MATCH(W$4,'C. PoC Adj Factor Scoring'!$E$3:$AH$3,0)-1),MATCH(W$2&\" Score\",'C. PoC Adj Factor Scoring'!$E$4:$J$4,0),TRUE)","v":1},{"$f":"VLOOKUP(OFFSET($B:$B,,MATCH(X$4,$B$4:$F$4,0)-1),OFFSET('C. PoC Adj Factor Scoring'!$E$5:$J$282,,MATCH(X$4,'C. PoC Adj Factor Scoring'!$E$3:$AH$3,0)-1),MATCH(X$2&\" Score\",'C. PoC Adj Factor Scoring'!$E$4:$J$4,0),TRUE)","v":1},{"$f":"VLOOKUP(OFFSET($B:$B,,MATCH(Y$4,$B$4:$F$4,0)-1),OFFSET('C. PoC Adj Factor Scoring'!$E$5:$J$282,,MATCH(Y$4,'C. PoC Adj Factor Scoring'!$E$3:$AH$3,0)-1),MATCH(Y$2&\" Score\",'C. PoC Adj Factor Scoring'!$E$4:$J$4,0),TRUE)","v":1},{"$f":"VLOOKUP(OFFSET($B:$B,,MATCH(Z$4,$B$4:$F$4,0)-1),OFFSET('C. PoC Adj Factor Scoring'!$E$5:$J$282,,MATCH(Z$4,'C. PoC Adj Factor Scoring'!$E$3:$AH$3,0)-1),MATCH(Z$2&\" Score\",'C. PoC Adj Factor Scoring'!$E$4:$J$4,0),TRUE)","v":1},{"$f":"VLOOKUP(OFFSET($B:$B,,MATCH(AA$4,$B$4:$F$4,0)-1),OFFSET('C. PoC Adj Factor Scoring'!$E$5:$J$282,,MATCH(AA$4,'C. PoC Adj Factor Scoring'!$E$3:$AH$3,0)-1),MATCH(AA$2&\" Score\",'C. PoC Adj Factor Scoring'!$E$4:$J$4,0),TRUE)","v":3},{"$f":"VLOOKUP(OFFSET($B:$B,,MATCH(AB$4,$B$4:$F$4,0)-1),OFFSET('C. PoC Adj Factor Scoring'!$E$5:$J$282,,MATCH(AB$4,'C. PoC Adj Factor Scoring'!$E$3:$AH$3,0)-1),MATCH(AB$2&\" Score\",'C. PoC Adj Factor Scoring'!$E$4:$J$4,0),TRUE)","v":1},{"$f":"VLOOKUP(OFFSET($B:$B,,MATCH(AC$4,$B$4:$F$4,0)-1),OFFSET('C. PoC Adj Factor Scoring'!$E$5:$J$282,,MATCH(AC$4,'C. PoC Adj Factor Scoring'!$E$3:$AH$3,0)-1),MATCH(AC$2&\" Score\",'C. PoC Adj Factor Scoring'!$E$4:$J$4,0),TRUE)","v":1},{"$f":"VLOOKUP(OFFSET($B:$B,,MATCH(AD$4,$B$4:$F$4,0)-1),OFFSET('C. PoC Adj Factor Scoring'!$E$5:$J$282,,MATCH(AD$4,'C. PoC Adj Factor Scoring'!$E$3:$AH$3,0)-1),MATCH(AD$2&\" Score\",'C. PoC Adj Factor Scoring'!$E$4:$J$4,0),TRUE)","v":1},{"$f":"VLOOKUP(OFFSET($B:$B,,MATCH(AE$4,$B$4:$F$4,0)-1),OFFSET('C. PoC Adj Factor Scoring'!$E$5:$J$282,,MATCH(AE$4,'C. PoC Adj Factor Scoring'!$E$3:$AH$3,0)-1),MATCH(AE$2&\" Score\",'C. PoC Adj Factor Scoring'!$E$4:$J$4,0),TRUE)","v":1}]
[{"$f":"'A. Population Info'!A565","v":1000349432},{"$f":"'A. Population Info'!L565","v":"OIL"},{"$f":"'A. Population Info'!M565","v":0},{"$f":"'A. Population Info'!N565","v":0},{"$f":"'A. Population Info'!O565","v":0},{"$f":"'A. Population Info'!P565","v":0},{"$f":"VLOOKUP(OFFSET($B:$B,,MATCH(G$4,$B$4:$F$4,0)-1),OFFSET('C. PoC Adj Factor Scoring'!$E$5:$J$282,,MATCH(G$4,'C. PoC Adj Factor Scoring'!$E$3:$AH$3,0)-1),MATCH(G$2&\" Score\",'C. PoC Adj Factor Scoring'!$E$4:$J$4,0),TRUE)","v":4},{"$f":"VLOOKUP(OFFSET($B:$B,,MATCH(H$4,$B$4:$F$4,0)-1),OFFSET('C. PoC Adj Factor Scoring'!$E$5:$J$282,,MATCH(H$4,'C. PoC Adj Factor Scoring'!$E$3:$AH$3,0)-1),MATCH(H$2&\" Score\",'C. PoC Adj Factor Scoring'!$E$4:$J$4,0),TRUE)","v":1},{"$f":"VLOOKUP(OFFSET($B:$B,,MATCH(I$4,$B$4:$F$4,0)-1),OFFSET('C. PoC Adj Factor Scoring'!$E$5:$J$282,,MATCH(I$4,'C. PoC Adj Factor Scoring'!$E$3:$AH$3,0)-1),MATCH(I$2&\" Score\",'C. PoC Adj Factor Scoring'!$E$4:$J$4,0),TRUE)","v":1},{"$f":"VLOOKUP(OFFSET($B:$B,,MATCH(J$4,$B$4:$F$4,0)-1),OFFSET('C. PoC Adj Factor Scoring'!$E$5:$J$282,,MATCH(J$4,'C. PoC Adj Factor Scoring'!$E$3:$AH$3,0)-1),MATCH(J$2&\" Score\",'C. PoC Adj Factor Scoring'!$E$4:$J$4,0),TRUE)","v":1},{"$f":"VLOOKUP(OFFSET($B:$B,,MATCH(K$4,$B$4:$F$4,0)-1),OFFSET('C. PoC Adj Factor Scoring'!$E$5:$J$282,,MATCH(K$4,'C. PoC Adj Factor Scoring'!$E$3:$AH$3,0)-1),MATCH(K$2&\" Score\",'C. PoC Adj Factor Scoring'!$E$4:$J$4,0),TRUE)","v":1},{"$f":"VLOOKUP(OFFSET($B:$B,,MATCH(L$4,$B$4:$F$4,0)-1),OFFSET('C. PoC Adj Factor Scoring'!$E$5:$J$282,,MATCH(L$4,'C. PoC Adj Factor Scoring'!$E$3:$AH$3,0)-1),MATCH(L$2&\" Score\",'C. PoC Adj Factor Scoring'!$E$4:$J$4,0),TRUE)","v":1},{"$f":"VLOOKUP(OFFSET($B:$B,,MATCH(M$4,$B$4:$F$4,0)-1),OFFSET('C. PoC Adj Factor Scoring'!$E$5:$J$282,,MATCH(M$4,'C. PoC Adj Factor Scoring'!$E$3:$AH$3,0)-1),MATCH(M$2&\" Score\",'C. PoC Adj Factor Scoring'!$E$4:$J$4,0),TRUE)","v":1},{"$f":"VLOOKUP(OFFSET($B:$B,,MATCH(N$4,$B$4:$F$4,0)-1),OFFSET('C. PoC Adj Factor Scoring'!$E$5:$J$282,,MATCH(N$4,'C. PoC Adj Factor Scoring'!$E$3:$AH$3,0)-1),MATCH(N$2&\" Score\",'C. PoC Adj Factor Scoring'!$E$4:$J$4,0),TRUE)","v":1},{"$f":"VLOOKUP(OFFSET($B:$B,,MATCH(O$4,$B$4:$F$4,0)-1),OFFSET('C. PoC Adj Factor Scoring'!$E$5:$J$282,,MATCH(O$4,'C. PoC Adj Factor Scoring'!$E$3:$AH$3,0)-1),MATCH(O$2&\" Score\",'C. PoC Adj Factor Scoring'!$E$4:$J$4,0),TRUE)","v":1},{"$f":"VLOOKUP(OFFSET($B:$B,,MATCH(P$4,$B$4:$F$4,0)-1),OFFSET('C. PoC Adj Factor Scoring'!$E$5:$J$282,,MATCH(P$4,'C. PoC Adj Factor Scoring'!$E$3:$AH$3,0)-1),MATCH(P$2&\" Score\",'C. PoC Adj Factor Scoring'!$E$4:$J$4,0),TRUE)","v":1},{"$f":"VLOOKUP(OFFSET($B:$B,,MATCH(Q$4,$B$4:$F$4,0)-1),OFFSET('C. PoC Adj Factor Scoring'!$E$5:$J$282,,MATCH(Q$4,'C. PoC Adj Factor Scoring'!$E$3:$AH$3,0)-1),MATCH(Q$2&\" Score\",'C. PoC Adj Factor Scoring'!$E$4:$J$4,0),TRUE)","v":1},{"$f":"VLOOKUP(OFFSET($B:$B,,MATCH(R$4,$B$4:$F$4,0)-1),OFFSET('C. PoC Adj Factor Scoring'!$E$5:$J$282,,MATCH(R$4,'C. PoC Adj Factor Scoring'!$E$3:$AH$3,0)-1),MATCH(R$2&\" Score\",'C. PoC Adj Factor Scoring'!$E$4:$J$4,0),TRUE)","v":1},{"$f":"VLOOKUP(OFFSET($B:$B,,MATCH(S$4,$B$4:$F$4,0)-1),OFFSET('C. PoC Adj Factor Scoring'!$E$5:$J$282,,MATCH(S$4,'C. PoC Adj Factor Scoring'!$E$3:$AH$3,0)-1),MATCH(S$2&\" Score\",'C. PoC Adj Factor Scoring'!$E$4:$J$4,0),TRUE)","v":1},{"$f":"VLOOKUP(OFFSET($B:$B,,MATCH(T$4,$B$4:$F$4,0)-1),OFFSET('C. PoC Adj Factor Scoring'!$E$5:$J$282,,MATCH(T$4,'C. PoC Adj Factor Scoring'!$E$3:$AH$3,0)-1),MATCH(T$2&\" Score\",'C. PoC Adj Factor Scoring'!$E$4:$J$4,0),TRUE)","v":1},{"$f":"VLOOKUP(OFFSET($B:$B,,MATCH(U$4,$B$4:$F$4,0)-1),OFFSET('C. PoC Adj Factor Scoring'!$E$5:$J$282,,MATCH(U$4,'C. PoC Adj Factor Scoring'!$E$3:$AH$3,0)-1),MATCH(U$2&\" Score\",'C. PoC Adj Factor Scoring'!$E$4:$J$4,0),TRUE)","v":1},{"$f":"VLOOKUP(OFFSET($B:$B,,MATCH(V$4,$B$4:$F$4,0)-1),OFFSET('C. PoC Adj Factor Scoring'!$E$5:$J$282,,MATCH(V$4,'C. PoC Adj Factor Scoring'!$E$3:$AH$3,0)-1),MATCH(V$2&\" Score\",'C. PoC Adj Factor Scoring'!$E$4:$J$4,0),TRUE)","v":1},{"$f":"VLOOKUP(OFFSET($B:$B,,MATCH(W$4,$B$4:$F$4,0)-1),OFFSET('C. PoC Adj Factor Scoring'!$E$5:$J$282,,MATCH(W$4,'C. PoC Adj Factor Scoring'!$E$3:$AH$3,0)-1),MATCH(W$2&\" Score\",'C. PoC Adj Factor Scoring'!$E$4:$J$4,0),TRUE)","v":1},{"$f":"VLOOKUP(OFFSET($B:$B,,MATCH(X$4,$B$4:$F$4,0)-1),OFFSET('C. PoC Adj Factor Scoring'!$E$5:$J$282,,MATCH(X$4,'C. PoC Adj Factor Scoring'!$E$3:$AH$3,0)-1),MATCH(X$2&\" Score\",'C. PoC Adj Factor Scoring'!$E$4:$J$4,0),TRUE)","v":1},{"$f":"VLOOKUP(OFFSET($B:$B,,MATCH(Y$4,$B$4:$F$4,0)-1),OFFSET('C. PoC Adj Factor Scoring'!$E$5:$J$282,,MATCH(Y$4,'C. PoC Adj Factor Scoring'!$E$3:$AH$3,0)-1),MATCH(Y$2&\" Score\",'C. PoC Adj Factor Scoring'!$E$4:$J$4,0),TRUE)","v":1},{"$f":"VLOOKUP(OFFSET($B:$B,,MATCH(Z$4,$B$4:$F$4,0)-1),OFFSET('C. PoC Adj Factor Scoring'!$E$5:$J$282,,MATCH(Z$4,'C. PoC Adj Factor Scoring'!$E$3:$AH$3,0)-1),MATCH(Z$2&\" Score\",'C. PoC Adj Factor Scoring'!$E$4:$J$4,0),TRUE)","v":1},{"$f":"VLOOKUP(OFFSET($B:$B,,MATCH(AA$4,$B$4:$F$4,0)-1),OFFSET('C. PoC Adj Factor Scoring'!$E$5:$J$282,,MATCH(AA$4,'C. PoC Adj Factor Scoring'!$E$3:$AH$3,0)-1),MATCH(AA$2&\" Score\",'C. PoC Adj Factor Scoring'!$E$4:$J$4,0),TRUE)","v":3},{"$f":"VLOOKUP(OFFSET($B:$B,,MATCH(AB$4,$B$4:$F$4,0)-1),OFFSET('C. PoC Adj Factor Scoring'!$E$5:$J$282,,MATCH(AB$4,'C. PoC Adj Factor Scoring'!$E$3:$AH$3,0)-1),MATCH(AB$2&\" Score\",'C. PoC Adj Factor Scoring'!$E$4:$J$4,0),TRUE)","v":1},{"$f":"VLOOKUP(OFFSET($B:$B,,MATCH(AC$4,$B$4:$F$4,0)-1),OFFSET('C. PoC Adj Factor Scoring'!$E$5:$J$282,,MATCH(AC$4,'C. PoC Adj Factor Scoring'!$E$3:$AH$3,0)-1),MATCH(AC$2&\" Score\",'C. PoC Adj Factor Scoring'!$E$4:$J$4,0),TRUE)","v":1},{"$f":"VLOOKUP(OFFSET($B:$B,,MATCH(AD$4,$B$4:$F$4,0)-1),OFFSET('C. PoC Adj Factor Scoring'!$E$5:$J$282,,MATCH(AD$4,'C. PoC Adj Factor Scoring'!$E$3:$AH$3,0)-1),MATCH(AD$2&\" Score\",'C. PoC Adj Factor Scoring'!$E$4:$J$4,0),TRUE)","v":1},{"$f":"VLOOKUP(OFFSET($B:$B,,MATCH(AE$4,$B$4:$F$4,0)-1),OFFSET('C. PoC Adj Factor Scoring'!$E$5:$J$282,,MATCH(AE$4,'C. PoC Adj Factor Scoring'!$E$3:$AH$3,0)-1),MATCH(AE$2&\" Score\",'C. PoC Adj Factor Scoring'!$E$4:$J$4,0),TRUE)","v":1}]
[{"$f":"'A. Population Info'!A566","v":1000358329},{"$f":"'A. Population Info'!L566","v":"OIL"},{"$f":"'A. Population Info'!M566","v":0},{"$f":"'A. Population Info'!N566","v":0},{"$f":"'A. Population Info'!O566","v":0},{"$f":"'A. Population Info'!P566","v":0},{"$f":"VLOOKUP(OFFSET($B:$B,,MATCH(G$4,$B$4:$F$4,0)-1),OFFSET('C. PoC Adj Factor Scoring'!$E$5:$J$282,,MATCH(G$4,'C. PoC Adj Factor Scoring'!$E$3:$AH$3,0)-1),MATCH(G$2&\" Score\",'C. PoC Adj Factor Scoring'!$E$4:$J$4,0),TRUE)","v":4},{"$f":"VLOOKUP(OFFSET($B:$B,,MATCH(H$4,$B$4:$F$4,0)-1),OFFSET('C. PoC Adj Factor Scoring'!$E$5:$J$282,,MATCH(H$4,'C. PoC Adj Factor Scoring'!$E$3:$AH$3,0)-1),MATCH(H$2&\" Score\",'C. PoC Adj Factor Scoring'!$E$4:$J$4,0),TRUE)","v":1},{"$f":"VLOOKUP(OFFSET($B:$B,,MATCH(I$4,$B$4:$F$4,0)-1),OFFSET('C. PoC Adj Factor Scoring'!$E$5:$J$282,,MATCH(I$4,'C. PoC Adj Factor Scoring'!$E$3:$AH$3,0)-1),MATCH(I$2&\" Score\",'C. PoC Adj Factor Scoring'!$E$4:$J$4,0),TRUE)","v":1},{"$f":"VLOOKUP(OFFSET($B:$B,,MATCH(J$4,$B$4:$F$4,0)-1),OFFSET('C. PoC Adj Factor Scoring'!$E$5:$J$282,,MATCH(J$4,'C. PoC Adj Factor Scoring'!$E$3:$AH$3,0)-1),MATCH(J$2&\" Score\",'C. PoC Adj Factor Scoring'!$E$4:$J$4,0),TRUE)","v":1},{"$f":"VLOOKUP(OFFSET($B:$B,,MATCH(K$4,$B$4:$F$4,0)-1),OFFSET('C. PoC Adj Factor Scoring'!$E$5:$J$282,,MATCH(K$4,'C. PoC Adj Factor Scoring'!$E$3:$AH$3,0)-1),MATCH(K$2&\" Score\",'C. PoC Adj Factor Scoring'!$E$4:$J$4,0),TRUE)","v":1},{"$f":"VLOOKUP(OFFSET($B:$B,,MATCH(L$4,$B$4:$F$4,0)-1),OFFSET('C. PoC Adj Factor Scoring'!$E$5:$J$282,,MATCH(L$4,'C. PoC Adj Factor Scoring'!$E$3:$AH$3,0)-1),MATCH(L$2&\" Score\",'C. PoC Adj Factor Scoring'!$E$4:$J$4,0),TRUE)","v":1},{"$f":"VLOOKUP(OFFSET($B:$B,,MATCH(M$4,$B$4:$F$4,0)-1),OFFSET('C. PoC Adj Factor Scoring'!$E$5:$J$282,,MATCH(M$4,'C. PoC Adj Factor Scoring'!$E$3:$AH$3,0)-1),MATCH(M$2&\" Score\",'C. PoC Adj Factor Scoring'!$E$4:$J$4,0),TRUE)","v":1},{"$f":"VLOOKUP(OFFSET($B:$B,,MATCH(N$4,$B$4:$F$4,0)-1),OFFSET('C. PoC Adj Factor Scoring'!$E$5:$J$282,,MATCH(N$4,'C. PoC Adj Factor Scoring'!$E$3:$AH$3,0)-1),MATCH(N$2&\" Score\",'C. PoC Adj Factor Scoring'!$E$4:$J$4,0),TRUE)","v":1},{"$f":"VLOOKUP(OFFSET($B:$B,,MATCH(O$4,$B$4:$F$4,0)-1),OFFSET('C. PoC Adj Factor Scoring'!$E$5:$J$282,,MATCH(O$4,'C. PoC Adj Factor Scoring'!$E$3:$AH$3,0)-1),MATCH(O$2&\" Score\",'C. PoC Adj Factor Scoring'!$E$4:$J$4,0),TRUE)","v":1},{"$f":"VLOOKUP(OFFSET($B:$B,,MATCH(P$4,$B$4:$F$4,0)-1),OFFSET('C. PoC Adj Factor Scoring'!$E$5:$J$282,,MATCH(P$4,'C. PoC Adj Factor Scoring'!$E$3:$AH$3,0)-1),MATCH(P$2&\" Score\",'C. PoC Adj Factor Scoring'!$E$4:$J$4,0),TRUE)","v":1},{"$f":"VLOOKUP(OFFSET($B:$B,,MATCH(Q$4,$B$4:$F$4,0)-1),OFFSET('C. PoC Adj Factor Scoring'!$E$5:$J$282,,MATCH(Q$4,'C. PoC Adj Factor Scoring'!$E$3:$AH$3,0)-1),MATCH(Q$2&\" Score\",'C. PoC Adj Factor Scoring'!$E$4:$J$4,0),TRUE)","v":1},{"$f":"VLOOKUP(OFFSET($B:$B,,MATCH(R$4,$B$4:$F$4,0)-1),OFFSET('C. PoC Adj Factor Scoring'!$E$5:$J$282,,MATCH(R$4,'C. PoC Adj Factor Scoring'!$E$3:$AH$3,0)-1),MATCH(R$2&\" Score\",'C. PoC Adj Factor Scoring'!$E$4:$J$4,0),TRUE)","v":1},{"$f":"VLOOKUP(OFFSET($B:$B,,MATCH(S$4,$B$4:$F$4,0)-1),OFFSET('C. PoC Adj Factor Scoring'!$E$5:$J$282,,MATCH(S$4,'C. PoC Adj Factor Scoring'!$E$3:$AH$3,0)-1),MATCH(S$2&\" Score\",'C. PoC Adj Factor Scoring'!$E$4:$J$4,0),TRUE)","v":1},{"$f":"VLOOKUP(OFFSET($B:$B,,MATCH(T$4,$B$4:$F$4,0)-1),OFFSET('C. PoC Adj Factor Scoring'!$E$5:$J$282,,MATCH(T$4,'C. PoC Adj Factor Scoring'!$E$3:$AH$3,0)-1),MATCH(T$2&\" Score\",'C. PoC Adj Factor Scoring'!$E$4:$J$4,0),TRUE)","v":1},{"$f":"VLOOKUP(OFFSET($B:$B,,MATCH(U$4,$B$4:$F$4,0)-1),OFFSET('C. PoC Adj Factor Scoring'!$E$5:$J$282,,MATCH(U$4,'C. PoC Adj Factor Scoring'!$E$3:$AH$3,0)-1),MATCH(U$2&\" Score\",'C. PoC Adj Factor Scoring'!$E$4:$J$4,0),TRUE)","v":1},{"$f":"VLOOKUP(OFFSET($B:$B,,MATCH(V$4,$B$4:$F$4,0)-1),OFFSET('C. PoC Adj Factor Scoring'!$E$5:$J$282,,MATCH(V$4,'C. PoC Adj Factor Scoring'!$E$3:$AH$3,0)-1),MATCH(V$2&\" Score\",'C. PoC Adj Factor Scoring'!$E$4:$J$4,0),TRUE)","v":1},{"$f":"VLOOKUP(OFFSET($B:$B,,MATCH(W$4,$B$4:$F$4,0)-1),OFFSET('C. PoC Adj Factor Scoring'!$E$5:$J$282,,MATCH(W$4,'C. PoC Adj Factor Scoring'!$E$3:$AH$3,0)-1),MATCH(W$2&\" Score\",'C. PoC Adj Factor Scoring'!$E$4:$J$4,0),TRUE)","v":1},{"$f":"VLOOKUP(OFFSET($B:$B,,MATCH(X$4,$B$4:$F$4,0)-1),OFFSET('C. PoC Adj Factor Scoring'!$E$5:$J$282,,MATCH(X$4,'C. PoC Adj Factor Scoring'!$E$3:$AH$3,0)-1),MATCH(X$2&\" Score\",'C. PoC Adj Factor Scoring'!$E$4:$J$4,0),TRUE)","v":1},{"$f":"VLOOKUP(OFFSET($B:$B,,MATCH(Y$4,$B$4:$F$4,0)-1),OFFSET('C. PoC Adj Factor Scoring'!$E$5:$J$282,,MATCH(Y$4,'C. PoC Adj Factor Scoring'!$E$3:$AH$3,0)-1),MATCH(Y$2&\" Score\",'C. PoC Adj Factor Scoring'!$E$4:$J$4,0),TRUE)","v":1},{"$f":"VLOOKUP(OFFSET($B:$B,,MATCH(Z$4,$B$4:$F$4,0)-1),OFFSET('C. PoC Adj Factor Scoring'!$E$5:$J$282,,MATCH(Z$4,'C. PoC Adj Factor Scoring'!$E$3:$AH$3,0)-1),MATCH(Z$2&\" Score\",'C. PoC Adj Factor Scoring'!$E$4:$J$4,0),TRUE)","v":1},{"$f":"VLOOKUP(OFFSET($B:$B,,MATCH(AA$4,$B$4:$F$4,0)-1),OFFSET('C. PoC Adj Factor Scoring'!$E$5:$J$282,,MATCH(AA$4,'C. PoC Adj Factor Scoring'!$E$3:$AH$3,0)-1),MATCH(AA$2&\" Score\",'C. PoC Adj Factor Scoring'!$E$4:$J$4,0),TRUE)","v":3},{"$f":"VLOOKUP(OFFSET($B:$B,,MATCH(AB$4,$B$4:$F$4,0)-1),OFFSET('C. PoC Adj Factor Scoring'!$E$5:$J$282,,MATCH(AB$4,'C. PoC Adj Factor Scoring'!$E$3:$AH$3,0)-1),MATCH(AB$2&\" Score\",'C. PoC Adj Factor Scoring'!$E$4:$J$4,0),TRUE)","v":1},{"$f":"VLOOKUP(OFFSET($B:$B,,MATCH(AC$4,$B$4:$F$4,0)-1),OFFSET('C. PoC Adj Factor Scoring'!$E$5:$J$282,,MATCH(AC$4,'C. PoC Adj Factor Scoring'!$E$3:$AH$3,0)-1),MATCH(AC$2&\" Score\",'C. PoC Adj Factor Scoring'!$E$4:$J$4,0),TRUE)","v":1},{"$f":"VLOOKUP(OFFSET($B:$B,,MATCH(AD$4,$B$4:$F$4,0)-1),OFFSET('C. PoC Adj Factor Scoring'!$E$5:$J$282,,MATCH(AD$4,'C. PoC Adj Factor Scoring'!$E$3:$AH$3,0)-1),MATCH(AD$2&\" Score\",'C. PoC Adj Factor Scoring'!$E$4:$J$4,0),TRUE)","v":1},{"$f":"VLOOKUP(OFFSET($B:$B,,MATCH(AE$4,$B$4:$F$4,0)-1),OFFSET('C. PoC Adj Factor Scoring'!$E$5:$J$282,,MATCH(AE$4,'C. PoC Adj Factor Scoring'!$E$3:$AH$3,0)-1),MATCH(AE$2&\" Score\",'C. PoC Adj Factor Scoring'!$E$4:$J$4,0),TRUE)","v":1}]
[{"$f":"'A. Population Info'!A567","v":1000374750},{"$f":"'A. Population Info'!L567","v":"OIL"},{"$f":"'A. Population Info'!M567","v":0},{"$f":"'A. Population Info'!N567","v":0},{"$f":"'A. Population Info'!O567","v":0},{"$f":"'A. Population Info'!P567","v":0},{"$f":"VLOOKUP(OFFSET($B:$B,,MATCH(G$4,$B$4:$F$4,0)-1),OFFSET('C. PoC Adj Factor Scoring'!$E$5:$J$282,,MATCH(G$4,'C. PoC Adj Factor Scoring'!$E$3:$AH$3,0)-1),MATCH(G$2&\" Score\",'C. PoC Adj Factor Scoring'!$E$4:$J$4,0),TRUE)","v":4},{"$f":"VLOOKUP(OFFSET($B:$B,,MATCH(H$4,$B$4:$F$4,0)-1),OFFSET('C. PoC Adj Factor Scoring'!$E$5:$J$282,,MATCH(H$4,'C. PoC Adj Factor Scoring'!$E$3:$AH$3,0)-1),MATCH(H$2&\" Score\",'C. PoC Adj Factor Scoring'!$E$4:$J$4,0),TRUE)","v":1},{"$f":"VLOOKUP(OFFSET($B:$B,,MATCH(I$4,$B$4:$F$4,0)-1),OFFSET('C. PoC Adj Factor Scoring'!$E$5:$J$282,,MATCH(I$4,'C. PoC Adj Factor Scoring'!$E$3:$AH$3,0)-1),MATCH(I$2&\" Score\",'C. PoC Adj Factor Scoring'!$E$4:$J$4,0),TRUE)","v":1},{"$f":"VLOOKUP(OFFSET($B:$B,,MATCH(J$4,$B$4:$F$4,0)-1),OFFSET('C. PoC Adj Factor Scoring'!$E$5:$J$282,,MATCH(J$4,'C. PoC Adj Factor Scoring'!$E$3:$AH$3,0)-1),MATCH(J$2&\" Score\",'C. PoC Adj Factor Scoring'!$E$4:$J$4,0),TRUE)","v":1},{"$f":"VLOOKUP(OFFSET($B:$B,,MATCH(K$4,$B$4:$F$4,0)-1),OFFSET('C. PoC Adj Factor Scoring'!$E$5:$J$282,,MATCH(K$4,'C. PoC Adj Factor Scoring'!$E$3:$AH$3,0)-1),MATCH(K$2&\" Score\",'C. PoC Adj Factor Scoring'!$E$4:$J$4,0),TRUE)","v":1},{"$f":"VLOOKUP(OFFSET($B:$B,,MATCH(L$4,$B$4:$F$4,0)-1),OFFSET('C. PoC Adj Factor Scoring'!$E$5:$J$282,,MATCH(L$4,'C. PoC Adj Factor Scoring'!$E$3:$AH$3,0)-1),MATCH(L$2&\" Score\",'C. PoC Adj Factor Scoring'!$E$4:$J$4,0),TRUE)","v":1},{"$f":"VLOOKUP(OFFSET($B:$B,,MATCH(M$4,$B$4:$F$4,0)-1),OFFSET('C. PoC Adj Factor Scoring'!$E$5:$J$282,,MATCH(M$4,'C. PoC Adj Factor Scoring'!$E$3:$AH$3,0)-1),MATCH(M$2&\" Score\",'C. PoC Adj Factor Scoring'!$E$4:$J$4,0),TRUE)","v":1},{"$f":"VLOOKUP(OFFSET($B:$B,,MATCH(N$4,$B$4:$F$4,0)-1),OFFSET('C. PoC Adj Factor Scoring'!$E$5:$J$282,,MATCH(N$4,'C. PoC Adj Factor Scoring'!$E$3:$AH$3,0)-1),MATCH(N$2&\" Score\",'C. PoC Adj Factor Scoring'!$E$4:$J$4,0),TRUE)","v":1},{"$f":"VLOOKUP(OFFSET($B:$B,,MATCH(O$4,$B$4:$F$4,0)-1),OFFSET('C. PoC Adj Factor Scoring'!$E$5:$J$282,,MATCH(O$4,'C. PoC Adj Factor Scoring'!$E$3:$AH$3,0)-1),MATCH(O$2&\" Score\",'C. PoC Adj Factor Scoring'!$E$4:$J$4,0),TRUE)","v":1},{"$f":"VLOOKUP(OFFSET($B:$B,,MATCH(P$4,$B$4:$F$4,0)-1),OFFSET('C. PoC Adj Factor Scoring'!$E$5:$J$282,,MATCH(P$4,'C. PoC Adj Factor Scoring'!$E$3:$AH$3,0)-1),MATCH(P$2&\" Score\",'C. PoC Adj Factor Scoring'!$E$4:$J$4,0),TRUE)","v":1},{"$f":"VLOOKUP(OFFSET($B:$B,,MATCH(Q$4,$B$4:$F$4,0)-1),OFFSET('C. PoC Adj Factor Scoring'!$E$5:$J$282,,MATCH(Q$4,'C. PoC Adj Factor Scoring'!$E$3:$AH$3,0)-1),MATCH(Q$2&\" Score\",'C. PoC Adj Factor Scoring'!$E$4:$J$4,0),TRUE)","v":1},{"$f":"VLOOKUP(OFFSET($B:$B,,MATCH(R$4,$B$4:$F$4,0)-1),OFFSET('C. PoC Adj Factor Scoring'!$E$5:$J$282,,MATCH(R$4,'C. PoC Adj Factor Scoring'!$E$3:$AH$3,0)-1),MATCH(R$2&\" Score\",'C. PoC Adj Factor Scoring'!$E$4:$J$4,0),TRUE)","v":1},{"$f":"VLOOKUP(OFFSET($B:$B,,MATCH(S$4,$B$4:$F$4,0)-1),OFFSET('C. PoC Adj Factor Scoring'!$E$5:$J$282,,MATCH(S$4,'C. PoC Adj Factor Scoring'!$E$3:$AH$3,0)-1),MATCH(S$2&\" Score\",'C. PoC Adj Factor Scoring'!$E$4:$J$4,0),TRUE)","v":1},{"$f":"VLOOKUP(OFFSET($B:$B,,MATCH(T$4,$B$4:$F$4,0)-1),OFFSET('C. PoC Adj Factor Scoring'!$E$5:$J$282,,MATCH(T$4,'C. PoC Adj Factor Scoring'!$E$3:$AH$3,0)-1),MATCH(T$2&\" Score\",'C. PoC Adj Factor Scoring'!$E$4:$J$4,0),TRUE)","v":1},{"$f":"VLOOKUP(OFFSET($B:$B,,MATCH(U$4,$B$4:$F$4,0)-1),OFFSET('C. PoC Adj Factor Scoring'!$E$5:$J$282,,MATCH(U$4,'C. PoC Adj Factor Scoring'!$E$3:$AH$3,0)-1),MATCH(U$2&\" Score\",'C. PoC Adj Factor Scoring'!$E$4:$J$4,0),TRUE)","v":1},{"$f":"VLOOKUP(OFFSET($B:$B,,MATCH(V$4,$B$4:$F$4,0)-1),OFFSET('C. PoC Adj Factor Scoring'!$E$5:$J$282,,MATCH(V$4,'C. PoC Adj Factor Scoring'!$E$3:$AH$3,0)-1),MATCH(V$2&\" Score\",'C. PoC Adj Factor Scoring'!$E$4:$J$4,0),TRUE)","v":1},{"$f":"VLOOKUP(OFFSET($B:$B,,MATCH(W$4,$B$4:$F$4,0)-1),OFFSET('C. PoC Adj Factor Scoring'!$E$5:$J$282,,MATCH(W$4,'C. PoC Adj Factor Scoring'!$E$3:$AH$3,0)-1),MATCH(W$2&\" Score\",'C. PoC Adj Factor Scoring'!$E$4:$J$4,0),TRUE)","v":1},{"$f":"VLOOKUP(OFFSET($B:$B,,MATCH(X$4,$B$4:$F$4,0)-1),OFFSET('C. PoC Adj Factor Scoring'!$E$5:$J$282,,MATCH(X$4,'C. PoC Adj Factor Scoring'!$E$3:$AH$3,0)-1),MATCH(X$2&\" Score\",'C. PoC Adj Factor Scoring'!$E$4:$J$4,0),TRUE)","v":1},{"$f":"VLOOKUP(OFFSET($B:$B,,MATCH(Y$4,$B$4:$F$4,0)-1),OFFSET('C. PoC Adj Factor Scoring'!$E$5:$J$282,,MATCH(Y$4,'C. PoC Adj Factor Scoring'!$E$3:$AH$3,0)-1),MATCH(Y$2&\" Score\",'C. PoC Adj Factor Scoring'!$E$4:$J$4,0),TRUE)","v":1},{"$f":"VLOOKUP(OFFSET($B:$B,,MATCH(Z$4,$B$4:$F$4,0)-1),OFFSET('C. PoC Adj Factor Scoring'!$E$5:$J$282,,MATCH(Z$4,'C. PoC Adj Factor Scoring'!$E$3:$AH$3,0)-1),MATCH(Z$2&\" Score\",'C. PoC Adj Factor Scoring'!$E$4:$J$4,0),TRUE)","v":1},{"$f":"VLOOKUP(OFFSET($B:$B,,MATCH(AA$4,$B$4:$F$4,0)-1),OFFSET('C. PoC Adj Factor Scoring'!$E$5:$J$282,,MATCH(AA$4,'C. PoC Adj Factor Scoring'!$E$3:$AH$3,0)-1),MATCH(AA$2&\" Score\",'C. PoC Adj Factor Scoring'!$E$4:$J$4,0),TRUE)","v":3},{"$f":"VLOOKUP(OFFSET($B:$B,,MATCH(AB$4,$B$4:$F$4,0)-1),OFFSET('C. PoC Adj Factor Scoring'!$E$5:$J$282,,MATCH(AB$4,'C. PoC Adj Factor Scoring'!$E$3:$AH$3,0)-1),MATCH(AB$2&\" Score\",'C. PoC Adj Factor Scoring'!$E$4:$J$4,0),TRUE)","v":1},{"$f":"VLOOKUP(OFFSET($B:$B,,MATCH(AC$4,$B$4:$F$4,0)-1),OFFSET('C. PoC Adj Factor Scoring'!$E$5:$J$282,,MATCH(AC$4,'C. PoC Adj Factor Scoring'!$E$3:$AH$3,0)-1),MATCH(AC$2&\" Score\",'C. PoC Adj Factor Scoring'!$E$4:$J$4,0),TRUE)","v":1},{"$f":"VLOOKUP(OFFSET($B:$B,,MATCH(AD$4,$B$4:$F$4,0)-1),OFFSET('C. PoC Adj Factor Scoring'!$E$5:$J$282,,MATCH(AD$4,'C. PoC Adj Factor Scoring'!$E$3:$AH$3,0)-1),MATCH(AD$2&\" Score\",'C. PoC Adj Factor Scoring'!$E$4:$J$4,0),TRUE)","v":1},{"$f":"VLOOKUP(OFFSET($B:$B,,MATCH(AE$4,$B$4:$F$4,0)-1),OFFSET('C. PoC Adj Factor Scoring'!$E$5:$J$282,,MATCH(AE$4,'C. PoC Adj Factor Scoring'!$E$3:$AH$3,0)-1),MATCH(AE$2&\" Score\",'C. PoC Adj Factor Scoring'!$E$4:$J$4,0),TRUE)","v":1}]
[{"$f":"'A. Population Info'!A568","v":1000374782},{"$f":"'A. Population Info'!L568","v":"OIL"},{"$f":"'A. Population Info'!M568","v":0},{"$f":"'A. Population Info'!N568","v":0},{"$f":"'A. Population Info'!O568","v":0},{"$f":"'A. Population Info'!P568","v":0},{"$f":"VLOOKUP(OFFSET($B:$B,,MATCH(G$4,$B$4:$F$4,0)-1),OFFSET('C. PoC Adj Factor Scoring'!$E$5:$J$282,,MATCH(G$4,'C. PoC Adj Factor Scoring'!$E$3:$AH$3,0)-1),MATCH(G$2&\" Score\",'C. PoC Adj Factor Scoring'!$E$4:$J$4,0),TRUE)","v":4},{"$f":"VLOOKUP(OFFSET($B:$B,,MATCH(H$4,$B$4:$F$4,0)-1),OFFSET('C. PoC Adj Factor Scoring'!$E$5:$J$282,,MATCH(H$4,'C. PoC Adj Factor Scoring'!$E$3:$AH$3,0)-1),MATCH(H$2&\" Score\",'C. PoC Adj Factor Scoring'!$E$4:$J$4,0),TRUE)","v":1},{"$f":"VLOOKUP(OFFSET($B:$B,,MATCH(I$4,$B$4:$F$4,0)-1),OFFSET('C. PoC Adj Factor Scoring'!$E$5:$J$282,,MATCH(I$4,'C. PoC Adj Factor Scoring'!$E$3:$AH$3,0)-1),MATCH(I$2&\" Score\",'C. PoC Adj Factor Scoring'!$E$4:$J$4,0),TRUE)","v":1},{"$f":"VLOOKUP(OFFSET($B:$B,,MATCH(J$4,$B$4:$F$4,0)-1),OFFSET('C. PoC Adj Factor Scoring'!$E$5:$J$282,,MATCH(J$4,'C. PoC Adj Factor Scoring'!$E$3:$AH$3,0)-1),MATCH(J$2&\" Score\",'C. PoC Adj Factor Scoring'!$E$4:$J$4,0),TRUE)","v":1},{"$f":"VLOOKUP(OFFSET($B:$B,,MATCH(K$4,$B$4:$F$4,0)-1),OFFSET('C. PoC Adj Factor Scoring'!$E$5:$J$282,,MATCH(K$4,'C. PoC Adj Factor Scoring'!$E$3:$AH$3,0)-1),MATCH(K$2&\" Score\",'C. PoC Adj Factor Scoring'!$E$4:$J$4,0),TRUE)","v":1},{"$f":"VLOOKUP(OFFSET($B:$B,,MATCH(L$4,$B$4:$F$4,0)-1),OFFSET('C. PoC Adj Factor Scoring'!$E$5:$J$282,,MATCH(L$4,'C. PoC Adj Factor Scoring'!$E$3:$AH$3,0)-1),MATCH(L$2&\" Score\",'C. PoC Adj Factor Scoring'!$E$4:$J$4,0),TRUE)","v":1},{"$f":"VLOOKUP(OFFSET($B:$B,,MATCH(M$4,$B$4:$F$4,0)-1),OFFSET('C. PoC Adj Factor Scoring'!$E$5:$J$282,,MATCH(M$4,'C. PoC Adj Factor Scoring'!$E$3:$AH$3,0)-1),MATCH(M$2&\" Score\",'C. PoC Adj Factor Scoring'!$E$4:$J$4,0),TRUE)","v":1},{"$f":"VLOOKUP(OFFSET($B:$B,,MATCH(N$4,$B$4:$F$4,0)-1),OFFSET('C. PoC Adj Factor Scoring'!$E$5:$J$282,,MATCH(N$4,'C. PoC Adj Factor Scoring'!$E$3:$AH$3,0)-1),MATCH(N$2&\" Score\",'C. PoC Adj Factor Scoring'!$E$4:$J$4,0),TRUE)","v":1},{"$f":"VLOOKUP(OFFSET($B:$B,,MATCH(O$4,$B$4:$F$4,0)-1),OFFSET('C. PoC Adj Factor Scoring'!$E$5:$J$282,,MATCH(O$4,'C. PoC Adj Factor Scoring'!$E$3:$AH$3,0)-1),MATCH(O$2&\" Score\",'C. PoC Adj Factor Scoring'!$E$4:$J$4,0),TRUE)","v":1},{"$f":"VLOOKUP(OFFSET($B:$B,,MATCH(P$4,$B$4:$F$4,0)-1),OFFSET('C. PoC Adj Factor Scoring'!$E$5:$J$282,,MATCH(P$4,'C. PoC Adj Factor Scoring'!$E$3:$AH$3,0)-1),MATCH(P$2&\" Score\",'C. PoC Adj Factor Scoring'!$E$4:$J$4,0),TRUE)","v":1},{"$f":"VLOOKUP(OFFSET($B:$B,,MATCH(Q$4,$B$4:$F$4,0)-1),OFFSET('C. PoC Adj Factor Scoring'!$E$5:$J$282,,MATCH(Q$4,'C. PoC Adj Factor Scoring'!$E$3:$AH$3,0)-1),MATCH(Q$2&\" Score\",'C. PoC Adj Factor Scoring'!$E$4:$J$4,0),TRUE)","v":1},{"$f":"VLOOKUP(OFFSET($B:$B,,MATCH(R$4,$B$4:$F$4,0)-1),OFFSET('C. PoC Adj Factor Scoring'!$E$5:$J$282,,MATCH(R$4,'C. PoC Adj Factor Scoring'!$E$3:$AH$3,0)-1),MATCH(R$2&\" Score\",'C. PoC Adj Factor Scoring'!$E$4:$J$4,0),TRUE)","v":1},{"$f":"VLOOKUP(OFFSET($B:$B,,MATCH(S$4,$B$4:$F$4,0)-1),OFFSET('C. PoC Adj Factor Scoring'!$E$5:$J$282,,MATCH(S$4,'C. PoC Adj Factor Scoring'!$E$3:$AH$3,0)-1),MATCH(S$2&\" Score\",'C. PoC Adj Factor Scoring'!$E$4:$J$4,0),TRUE)","v":1},{"$f":"VLOOKUP(OFFSET($B:$B,,MATCH(T$4,$B$4:$F$4,0)-1),OFFSET('C. PoC Adj Factor Scoring'!$E$5:$J$282,,MATCH(T$4,'C. PoC Adj Factor Scoring'!$E$3:$AH$3,0)-1),MATCH(T$2&\" Score\",'C. PoC Adj Factor Scoring'!$E$4:$J$4,0),TRUE)","v":1},{"$f":"VLOOKUP(OFFSET($B:$B,,MATCH(U$4,$B$4:$F$4,0)-1),OFFSET('C. PoC Adj Factor Scoring'!$E$5:$J$282,,MATCH(U$4,'C. PoC Adj Factor Scoring'!$E$3:$AH$3,0)-1),MATCH(U$2&\" Score\",'C. PoC Adj Factor Scoring'!$E$4:$J$4,0),TRUE)","v":1},{"$f":"VLOOKUP(OFFSET($B:$B,,MATCH(V$4,$B$4:$F$4,0)-1),OFFSET('C. PoC Adj Factor Scoring'!$E$5:$J$282,,MATCH(V$4,'C. PoC Adj Factor Scoring'!$E$3:$AH$3,0)-1),MATCH(V$2&\" Score\",'C. PoC Adj Factor Scoring'!$E$4:$J$4,0),TRUE)","v":1},{"$f":"VLOOKUP(OFFSET($B:$B,,MATCH(W$4,$B$4:$F$4,0)-1),OFFSET('C. PoC Adj Factor Scoring'!$E$5:$J$282,,MATCH(W$4,'C. PoC Adj Factor Scoring'!$E$3:$AH$3,0)-1),MATCH(W$2&\" Score\",'C. PoC Adj Factor Scoring'!$E$4:$J$4,0),TRUE)","v":1},{"$f":"VLOOKUP(OFFSET($B:$B,,MATCH(X$4,$B$4:$F$4,0)-1),OFFSET('C. PoC Adj Factor Scoring'!$E$5:$J$282,,MATCH(X$4,'C. PoC Adj Factor Scoring'!$E$3:$AH$3,0)-1),MATCH(X$2&\" Score\",'C. PoC Adj Factor Scoring'!$E$4:$J$4,0),TRUE)","v":1},{"$f":"VLOOKUP(OFFSET($B:$B,,MATCH(Y$4,$B$4:$F$4,0)-1),OFFSET('C. PoC Adj Factor Scoring'!$E$5:$J$282,,MATCH(Y$4,'C. PoC Adj Factor Scoring'!$E$3:$AH$3,0)-1),MATCH(Y$2&\" Score\",'C. PoC Adj Factor Scoring'!$E$4:$J$4,0),TRUE)","v":1},{"$f":"VLOOKUP(OFFSET($B:$B,,MATCH(Z$4,$B$4:$F$4,0)-1),OFFSET('C. PoC Adj Factor Scoring'!$E$5:$J$282,,MATCH(Z$4,'C. PoC Adj Factor Scoring'!$E$3:$AH$3,0)-1),MATCH(Z$2&\" Score\",'C. PoC Adj Factor Scoring'!$E$4:$J$4,0),TRUE)","v":1},{"$f":"VLOOKUP(OFFSET($B:$B,,MATCH(AA$4,$B$4:$F$4,0)-1),OFFSET('C. PoC Adj Factor Scoring'!$E$5:$J$282,,MATCH(AA$4,'C. PoC Adj Factor Scoring'!$E$3:$AH$3,0)-1),MATCH(AA$2&\" Score\",'C. PoC Adj Factor Scoring'!$E$4:$J$4,0),TRUE)","v":3},{"$f":"VLOOKUP(OFFSET($B:$B,,MATCH(AB$4,$B$4:$F$4,0)-1),OFFSET('C. PoC Adj Factor Scoring'!$E$5:$J$282,,MATCH(AB$4,'C. PoC Adj Factor Scoring'!$E$3:$AH$3,0)-1),MATCH(AB$2&\" Score\",'C. PoC Adj Factor Scoring'!$E$4:$J$4,0),TRUE)","v":1},{"$f":"VLOOKUP(OFFSET($B:$B,,MATCH(AC$4,$B$4:$F$4,0)-1),OFFSET('C. PoC Adj Factor Scoring'!$E$5:$J$282,,MATCH(AC$4,'C. PoC Adj Factor Scoring'!$E$3:$AH$3,0)-1),MATCH(AC$2&\" Score\",'C. PoC Adj Factor Scoring'!$E$4:$J$4,0),TRUE)","v":1},{"$f":"VLOOKUP(OFFSET($B:$B,,MATCH(AD$4,$B$4:$F$4,0)-1),OFFSET('C. PoC Adj Factor Scoring'!$E$5:$J$282,,MATCH(AD$4,'C. PoC Adj Factor Scoring'!$E$3:$AH$3,0)-1),MATCH(AD$2&\" Score\",'C. PoC Adj Factor Scoring'!$E$4:$J$4,0),TRUE)","v":1},{"$f":"VLOOKUP(OFFSET($B:$B,,MATCH(AE$4,$B$4:$F$4,0)-1),OFFSET('C. PoC Adj Factor Scoring'!$E$5:$J$282,,MATCH(AE$4,'C. PoC Adj Factor Scoring'!$E$3:$AH$3,0)-1),MATCH(AE$2&\" Score\",'C. PoC Adj Factor Scoring'!$E$4:$J$4,0),TRUE)","v":1}]
[{"$f":"'A. Population Info'!A569","v":1000400379},{"$f":"'A. Population Info'!L569","v":"OIL"},{"$f":"'A. Population Info'!M569","v":0},{"$f":"'A. Population Info'!N569","v":0},{"$f":"'A. Population Info'!O569","v":0},{"$f":"'A. Population Info'!P569","v":0},{"$f":"VLOOKUP(OFFSET($B:$B,,MATCH(G$4,$B$4:$F$4,0)-1),OFFSET('C. PoC Adj Factor Scoring'!$E$5:$J$282,,MATCH(G$4,'C. PoC Adj Factor Scoring'!$E$3:$AH$3,0)-1),MATCH(G$2&\" Score\",'C. PoC Adj Factor Scoring'!$E$4:$J$4,0),TRUE)","v":4},{"$f":"VLOOKUP(OFFSET($B:$B,,MATCH(H$4,$B$4:$F$4,0)-1),OFFSET('C. PoC Adj Factor Scoring'!$E$5:$J$282,,MATCH(H$4,'C. PoC Adj Factor Scoring'!$E$3:$AH$3,0)-1),MATCH(H$2&\" Score\",'C. PoC Adj Factor Scoring'!$E$4:$J$4,0),TRUE)","v":1},{"$f":"VLOOKUP(OFFSET($B:$B,,MATCH(I$4,$B$4:$F$4,0)-1),OFFSET('C. PoC Adj Factor Scoring'!$E$5:$J$282,,MATCH(I$4,'C. PoC Adj Factor Scoring'!$E$3:$AH$3,0)-1),MATCH(I$2&\" Score\",'C. PoC Adj Factor Scoring'!$E$4:$J$4,0),TRUE)","v":1},{"$f":"VLOOKUP(OFFSET($B:$B,,MATCH(J$4,$B$4:$F$4,0)-1),OFFSET('C. PoC Adj Factor Scoring'!$E$5:$J$282,,MATCH(J$4,'C. PoC Adj Factor Scoring'!$E$3:$AH$3,0)-1),MATCH(J$2&\" Score\",'C. PoC Adj Factor Scoring'!$E$4:$J$4,0),TRUE)","v":1},{"$f":"VLOOKUP(OFFSET($B:$B,,MATCH(K$4,$B$4:$F$4,0)-1),OFFSET('C. PoC Adj Factor Scoring'!$E$5:$J$282,,MATCH(K$4,'C. PoC Adj Factor Scoring'!$E$3:$AH$3,0)-1),MATCH(K$2&\" Score\",'C. PoC Adj Factor Scoring'!$E$4:$J$4,0),TRUE)","v":1},{"$f":"VLOOKUP(OFFSET($B:$B,,MATCH(L$4,$B$4:$F$4,0)-1),OFFSET('C. PoC Adj Factor Scoring'!$E$5:$J$282,,MATCH(L$4,'C. PoC Adj Factor Scoring'!$E$3:$AH$3,0)-1),MATCH(L$2&\" Score\",'C. PoC Adj Factor Scoring'!$E$4:$J$4,0),TRUE)","v":1},{"$f":"VLOOKUP(OFFSET($B:$B,,MATCH(M$4,$B$4:$F$4,0)-1),OFFSET('C. PoC Adj Factor Scoring'!$E$5:$J$282,,MATCH(M$4,'C. PoC Adj Factor Scoring'!$E$3:$AH$3,0)-1),MATCH(M$2&\" Score\",'C. PoC Adj Factor Scoring'!$E$4:$J$4,0),TRUE)","v":1},{"$f":"VLOOKUP(OFFSET($B:$B,,MATCH(N$4,$B$4:$F$4,0)-1),OFFSET('C. PoC Adj Factor Scoring'!$E$5:$J$282,,MATCH(N$4,'C. PoC Adj Factor Scoring'!$E$3:$AH$3,0)-1),MATCH(N$2&\" Score\",'C. PoC Adj Factor Scoring'!$E$4:$J$4,0),TRUE)","v":1},{"$f":"VLOOKUP(OFFSET($B:$B,,MATCH(O$4,$B$4:$F$4,0)-1),OFFSET('C. PoC Adj Factor Scoring'!$E$5:$J$282,,MATCH(O$4,'C. PoC Adj Factor Scoring'!$E$3:$AH$3,0)-1),MATCH(O$2&\" Score\",'C. PoC Adj Factor Scoring'!$E$4:$J$4,0),TRUE)","v":1},{"$f":"VLOOKUP(OFFSET($B:$B,,MATCH(P$4,$B$4:$F$4,0)-1),OFFSET('C. PoC Adj Factor Scoring'!$E$5:$J$282,,MATCH(P$4,'C. PoC Adj Factor Scoring'!$E$3:$AH$3,0)-1),MATCH(P$2&\" Score\",'C. PoC Adj Factor Scoring'!$E$4:$J$4,0),TRUE)","v":1},{"$f":"VLOOKUP(OFFSET($B:$B,,MATCH(Q$4,$B$4:$F$4,0)-1),OFFSET('C. PoC Adj Factor Scoring'!$E$5:$J$282,,MATCH(Q$4,'C. PoC Adj Factor Scoring'!$E$3:$AH$3,0)-1),MATCH(Q$2&\" Score\",'C. PoC Adj Factor Scoring'!$E$4:$J$4,0),TRUE)","v":1},{"$f":"VLOOKUP(OFFSET($B:$B,,MATCH(R$4,$B$4:$F$4,0)-1),OFFSET('C. PoC Adj Factor Scoring'!$E$5:$J$282,,MATCH(R$4,'C. PoC Adj Factor Scoring'!$E$3:$AH$3,0)-1),MATCH(R$2&\" Score\",'C. PoC Adj Factor Scoring'!$E$4:$J$4,0),TRUE)","v":1},{"$f":"VLOOKUP(OFFSET($B:$B,,MATCH(S$4,$B$4:$F$4,0)-1),OFFSET('C. PoC Adj Factor Scoring'!$E$5:$J$282,,MATCH(S$4,'C. PoC Adj Factor Scoring'!$E$3:$AH$3,0)-1),MATCH(S$2&\" Score\",'C. PoC Adj Factor Scoring'!$E$4:$J$4,0),TRUE)","v":1},{"$f":"VLOOKUP(OFFSET($B:$B,,MATCH(T$4,$B$4:$F$4,0)-1),OFFSET('C. PoC Adj Factor Scoring'!$E$5:$J$282,,MATCH(T$4,'C. PoC Adj Factor Scoring'!$E$3:$AH$3,0)-1),MATCH(T$2&\" Score\",'C. PoC Adj Factor Scoring'!$E$4:$J$4,0),TRUE)","v":1},{"$f":"VLOOKUP(OFFSET($B:$B,,MATCH(U$4,$B$4:$F$4,0)-1),OFFSET('C. PoC Adj Factor Scoring'!$E$5:$J$282,,MATCH(U$4,'C. PoC Adj Factor Scoring'!$E$3:$AH$3,0)-1),MATCH(U$2&\" Score\",'C. PoC Adj Factor Scoring'!$E$4:$J$4,0),TRUE)","v":1},{"$f":"VLOOKUP(OFFSET($B:$B,,MATCH(V$4,$B$4:$F$4,0)-1),OFFSET('C. PoC Adj Factor Scoring'!$E$5:$J$282,,MATCH(V$4,'C. PoC Adj Factor Scoring'!$E$3:$AH$3,0)-1),MATCH(V$2&\" Score\",'C. PoC Adj Factor Scoring'!$E$4:$J$4,0),TRUE)","v":1},{"$f":"VLOOKUP(OFFSET($B:$B,,MATCH(W$4,$B$4:$F$4,0)-1),OFFSET('C. PoC Adj Factor Scoring'!$E$5:$J$282,,MATCH(W$4,'C. PoC Adj Factor Scoring'!$E$3:$AH$3,0)-1),MATCH(W$2&\" Score\",'C. PoC Adj Factor Scoring'!$E$4:$J$4,0),TRUE)","v":1},{"$f":"VLOOKUP(OFFSET($B:$B,,MATCH(X$4,$B$4:$F$4,0)-1),OFFSET('C. PoC Adj Factor Scoring'!$E$5:$J$282,,MATCH(X$4,'C. PoC Adj Factor Scoring'!$E$3:$AH$3,0)-1),MATCH(X$2&\" Score\",'C. PoC Adj Factor Scoring'!$E$4:$J$4,0),TRUE)","v":1},{"$f":"VLOOKUP(OFFSET($B:$B,,MATCH(Y$4,$B$4:$F$4,0)-1),OFFSET('C. PoC Adj Factor Scoring'!$E$5:$J$282,,MATCH(Y$4,'C. PoC Adj Factor Scoring'!$E$3:$AH$3,0)-1),MATCH(Y$2&\" Score\",'C. PoC Adj Factor Scoring'!$E$4:$J$4,0),TRUE)","v":1},{"$f":"VLOOKUP(OFFSET($B:$B,,MATCH(Z$4,$B$4:$F$4,0)-1),OFFSET('C. PoC Adj Factor Scoring'!$E$5:$J$282,,MATCH(Z$4,'C. PoC Adj Factor Scoring'!$E$3:$AH$3,0)-1),MATCH(Z$2&\" Score\",'C. PoC Adj Factor Scoring'!$E$4:$J$4,0),TRUE)","v":1},{"$f":"VLOOKUP(OFFSET($B:$B,,MATCH(AA$4,$B$4:$F$4,0)-1),OFFSET('C. PoC Adj Factor Scoring'!$E$5:$J$282,,MATCH(AA$4,'C. PoC Adj Factor Scoring'!$E$3:$AH$3,0)-1),MATCH(AA$2&\" Score\",'C. PoC Adj Factor Scoring'!$E$4:$J$4,0),TRUE)","v":3},{"$f":"VLOOKUP(OFFSET($B:$B,,MATCH(AB$4,$B$4:$F$4,0)-1),OFFSET('C. PoC Adj Factor Scoring'!$E$5:$J$282,,MATCH(AB$4,'C. PoC Adj Factor Scoring'!$E$3:$AH$3,0)-1),MATCH(AB$2&\" Score\",'C. PoC Adj Factor Scoring'!$E$4:$J$4,0),TRUE)","v":1},{"$f":"VLOOKUP(OFFSET($B:$B,,MATCH(AC$4,$B$4:$F$4,0)-1),OFFSET('C. PoC Adj Factor Scoring'!$E$5:$J$282,,MATCH(AC$4,'C. PoC Adj Factor Scoring'!$E$3:$AH$3,0)-1),MATCH(AC$2&\" Score\",'C. PoC Adj Factor Scoring'!$E$4:$J$4,0),TRUE)","v":1},{"$f":"VLOOKUP(OFFSET($B:$B,,MATCH(AD$4,$B$4:$F$4,0)-1),OFFSET('C. PoC Adj Factor Scoring'!$E$5:$J$282,,MATCH(AD$4,'C. PoC Adj Factor Scoring'!$E$3:$AH$3,0)-1),MATCH(AD$2&\" Score\",'C. PoC Adj Factor Scoring'!$E$4:$J$4,0),TRUE)","v":1},{"$f":"VLOOKUP(OFFSET($B:$B,,MATCH(AE$4,$B$4:$F$4,0)-1),OFFSET('C. PoC Adj Factor Scoring'!$E$5:$J$282,,MATCH(AE$4,'C. PoC Adj Factor Scoring'!$E$3:$AH$3,0)-1),MATCH(AE$2&\" Score\",'C. PoC Adj Factor Scoring'!$E$4:$J$4,0),TRUE)","v":1}]
[{"$f":"'A. Population Info'!A570","v":1000400797},{"$f":"'A. Population Info'!L570","v":"OIL"},{"$f":"'A. Population Info'!M570","v":0},{"$f":"'A. Population Info'!N570","v":0},{"$f":"'A. Population Info'!O570","v":0},{"$f":"'A. Population Info'!P570","v":0},{"$f":"VLOOKUP(OFFSET($B:$B,,MATCH(G$4,$B$4:$F$4,0)-1),OFFSET('C. PoC Adj Factor Scoring'!$E$5:$J$282,,MATCH(G$4,'C. PoC Adj Factor Scoring'!$E$3:$AH$3,0)-1),MATCH(G$2&\" Score\",'C. PoC Adj Factor Scoring'!$E$4:$J$4,0),TRUE)","v":4},{"$f":"VLOOKUP(OFFSET($B:$B,,MATCH(H$4,$B$4:$F$4,0)-1),OFFSET('C. PoC Adj Factor Scoring'!$E$5:$J$282,,MATCH(H$4,'C. PoC Adj Factor Scoring'!$E$3:$AH$3,0)-1),MATCH(H$2&\" Score\",'C. PoC Adj Factor Scoring'!$E$4:$J$4,0),TRUE)","v":1},{"$f":"VLOOKUP(OFFSET($B:$B,,MATCH(I$4,$B$4:$F$4,0)-1),OFFSET('C. PoC Adj Factor Scoring'!$E$5:$J$282,,MATCH(I$4,'C. PoC Adj Factor Scoring'!$E$3:$AH$3,0)-1),MATCH(I$2&\" Score\",'C. PoC Adj Factor Scoring'!$E$4:$J$4,0),TRUE)","v":1},{"$f":"VLOOKUP(OFFSET($B:$B,,MATCH(J$4,$B$4:$F$4,0)-1),OFFSET('C. PoC Adj Factor Scoring'!$E$5:$J$282,,MATCH(J$4,'C. PoC Adj Factor Scoring'!$E$3:$AH$3,0)-1),MATCH(J$2&\" Score\",'C. PoC Adj Factor Scoring'!$E$4:$J$4,0),TRUE)","v":1},{"$f":"VLOOKUP(OFFSET($B:$B,,MATCH(K$4,$B$4:$F$4,0)-1),OFFSET('C. PoC Adj Factor Scoring'!$E$5:$J$282,,MATCH(K$4,'C. PoC Adj Factor Scoring'!$E$3:$AH$3,0)-1),MATCH(K$2&\" Score\",'C. PoC Adj Factor Scoring'!$E$4:$J$4,0),TRUE)","v":1},{"$f":"VLOOKUP(OFFSET($B:$B,,MATCH(L$4,$B$4:$F$4,0)-1),OFFSET('C. PoC Adj Factor Scoring'!$E$5:$J$282,,MATCH(L$4,'C. PoC Adj Factor Scoring'!$E$3:$AH$3,0)-1),MATCH(L$2&\" Score\",'C. PoC Adj Factor Scoring'!$E$4:$J$4,0),TRUE)","v":1},{"$f":"VLOOKUP(OFFSET($B:$B,,MATCH(M$4,$B$4:$F$4,0)-1),OFFSET('C. PoC Adj Factor Scoring'!$E$5:$J$282,,MATCH(M$4,'C. PoC Adj Factor Scoring'!$E$3:$AH$3,0)-1),MATCH(M$2&\" Score\",'C. PoC Adj Factor Scoring'!$E$4:$J$4,0),TRUE)","v":1},{"$f":"VLOOKUP(OFFSET($B:$B,,MATCH(N$4,$B$4:$F$4,0)-1),OFFSET('C. PoC Adj Factor Scoring'!$E$5:$J$282,,MATCH(N$4,'C. PoC Adj Factor Scoring'!$E$3:$AH$3,0)-1),MATCH(N$2&\" Score\",'C. PoC Adj Factor Scoring'!$E$4:$J$4,0),TRUE)","v":1},{"$f":"VLOOKUP(OFFSET($B:$B,,MATCH(O$4,$B$4:$F$4,0)-1),OFFSET('C. PoC Adj Factor Scoring'!$E$5:$J$282,,MATCH(O$4,'C. PoC Adj Factor Scoring'!$E$3:$AH$3,0)-1),MATCH(O$2&\" Score\",'C. PoC Adj Factor Scoring'!$E$4:$J$4,0),TRUE)","v":1},{"$f":"VLOOKUP(OFFSET($B:$B,,MATCH(P$4,$B$4:$F$4,0)-1),OFFSET('C. PoC Adj Factor Scoring'!$E$5:$J$282,,MATCH(P$4,'C. PoC Adj Factor Scoring'!$E$3:$AH$3,0)-1),MATCH(P$2&\" Score\",'C. PoC Adj Factor Scoring'!$E$4:$J$4,0),TRUE)","v":1},{"$f":"VLOOKUP(OFFSET($B:$B,,MATCH(Q$4,$B$4:$F$4,0)-1),OFFSET('C. PoC Adj Factor Scoring'!$E$5:$J$282,,MATCH(Q$4,'C. PoC Adj Factor Scoring'!$E$3:$AH$3,0)-1),MATCH(Q$2&\" Score\",'C. PoC Adj Factor Scoring'!$E$4:$J$4,0),TRUE)","v":1},{"$f":"VLOOKUP(OFFSET($B:$B,,MATCH(R$4,$B$4:$F$4,0)-1),OFFSET('C. PoC Adj Factor Scoring'!$E$5:$J$282,,MATCH(R$4,'C. PoC Adj Factor Scoring'!$E$3:$AH$3,0)-1),MATCH(R$2&\" Score\",'C. PoC Adj Factor Scoring'!$E$4:$J$4,0),TRUE)","v":1},{"$f":"VLOOKUP(OFFSET($B:$B,,MATCH(S$4,$B$4:$F$4,0)-1),OFFSET('C. PoC Adj Factor Scoring'!$E$5:$J$282,,MATCH(S$4,'C. PoC Adj Factor Scoring'!$E$3:$AH$3,0)-1),MATCH(S$2&\" Score\",'C. PoC Adj Factor Scoring'!$E$4:$J$4,0),TRUE)","v":1},{"$f":"VLOOKUP(OFFSET($B:$B,,MATCH(T$4,$B$4:$F$4,0)-1),OFFSET('C. PoC Adj Factor Scoring'!$E$5:$J$282,,MATCH(T$4,'C. PoC Adj Factor Scoring'!$E$3:$AH$3,0)-1),MATCH(T$2&\" Score\",'C. PoC Adj Factor Scoring'!$E$4:$J$4,0),TRUE)","v":1},{"$f":"VLOOKUP(OFFSET($B:$B,,MATCH(U$4,$B$4:$F$4,0)-1),OFFSET('C. PoC Adj Factor Scoring'!$E$5:$J$282,,MATCH(U$4,'C. PoC Adj Factor Scoring'!$E$3:$AH$3,0)-1),MATCH(U$2&\" Score\",'C. PoC Adj Factor Scoring'!$E$4:$J$4,0),TRUE)","v":1},{"$f":"VLOOKUP(OFFSET($B:$B,,MATCH(V$4,$B$4:$F$4,0)-1),OFFSET('C. PoC Adj Factor Scoring'!$E$5:$J$282,,MATCH(V$4,'C. PoC Adj Factor Scoring'!$E$3:$AH$3,0)-1),MATCH(V$2&\" Score\",'C. PoC Adj Factor Scoring'!$E$4:$J$4,0),TRUE)","v":1},{"$f":"VLOOKUP(OFFSET($B:$B,,MATCH(W$4,$B$4:$F$4,0)-1),OFFSET('C. PoC Adj Factor Scoring'!$E$5:$J$282,,MATCH(W$4,'C. PoC Adj Factor Scoring'!$E$3:$AH$3,0)-1),MATCH(W$2&\" Score\",'C. PoC Adj Factor Scoring'!$E$4:$J$4,0),TRUE)","v":1},{"$f":"VLOOKUP(OFFSET($B:$B,,MATCH(X$4,$B$4:$F$4,0)-1),OFFSET('C. PoC Adj Factor Scoring'!$E$5:$J$282,,MATCH(X$4,'C. PoC Adj Factor Scoring'!$E$3:$AH$3,0)-1),MATCH(X$2&\" Score\",'C. PoC Adj Factor Scoring'!$E$4:$J$4,0),TRUE)","v":1},{"$f":"VLOOKUP(OFFSET($B:$B,,MATCH(Y$4,$B$4:$F$4,0)-1),OFFSET('C. PoC Adj Factor Scoring'!$E$5:$J$282,,MATCH(Y$4,'C. PoC Adj Factor Scoring'!$E$3:$AH$3,0)-1),MATCH(Y$2&\" Score\",'C. PoC Adj Factor Scoring'!$E$4:$J$4,0),TRUE)","v":1},{"$f":"VLOOKUP(OFFSET($B:$B,,MATCH(Z$4,$B$4:$F$4,0)-1),OFFSET('C. PoC Adj Factor Scoring'!$E$5:$J$282,,MATCH(Z$4,'C. PoC Adj Factor Scoring'!$E$3:$AH$3,0)-1),MATCH(Z$2&\" Score\",'C. PoC Adj Factor Scoring'!$E$4:$J$4,0),TRUE)","v":1},{"$f":"VLOOKUP(OFFSET($B:$B,,MATCH(AA$4,$B$4:$F$4,0)-1),OFFSET('C. PoC Adj Factor Scoring'!$E$5:$J$282,,MATCH(AA$4,'C. PoC Adj Factor Scoring'!$E$3:$AH$3,0)-1),MATCH(AA$2&\" Score\",'C. PoC Adj Factor Scoring'!$E$4:$J$4,0),TRUE)","v":3},{"$f":"VLOOKUP(OFFSET($B:$B,,MATCH(AB$4,$B$4:$F$4,0)-1),OFFSET('C. PoC Adj Factor Scoring'!$E$5:$J$282,,MATCH(AB$4,'C. PoC Adj Factor Scoring'!$E$3:$AH$3,0)-1),MATCH(AB$2&\" Score\",'C. PoC Adj Factor Scoring'!$E$4:$J$4,0),TRUE)","v":1},{"$f":"VLOOKUP(OFFSET($B:$B,,MATCH(AC$4,$B$4:$F$4,0)-1),OFFSET('C. PoC Adj Factor Scoring'!$E$5:$J$282,,MATCH(AC$4,'C. PoC Adj Factor Scoring'!$E$3:$AH$3,0)-1),MATCH(AC$2&\" Score\",'C. PoC Adj Factor Scoring'!$E$4:$J$4,0),TRUE)","v":1},{"$f":"VLOOKUP(OFFSET($B:$B,,MATCH(AD$4,$B$4:$F$4,0)-1),OFFSET('C. PoC Adj Factor Scoring'!$E$5:$J$282,,MATCH(AD$4,'C. PoC Adj Factor Scoring'!$E$3:$AH$3,0)-1),MATCH(AD$2&\" Score\",'C. PoC Adj Factor Scoring'!$E$4:$J$4,0),TRUE)","v":1},{"$f":"VLOOKUP(OFFSET($B:$B,,MATCH(AE$4,$B$4:$F$4,0)-1),OFFSET('C. PoC Adj Factor Scoring'!$E$5:$J$282,,MATCH(AE$4,'C. PoC Adj Factor Scoring'!$E$3:$AH$3,0)-1),MATCH(AE$2&\" Score\",'C. PoC Adj Factor Scoring'!$E$4:$J$4,0),TRUE)","v":1}]
[{"$f":"'A. Population Info'!A571","v":1000407857},{"$f":"'A. Population Info'!L571","v":"OIL"},{"$f":"'A. Population Info'!M571","v":0},{"$f":"'A. Population Info'!N571","v":0},{"$f":"'A. Population Info'!O571","v":0},{"$f":"'A. Population Info'!P571","v":0},{"$f":"VLOOKUP(OFFSET($B:$B,,MATCH(G$4,$B$4:$F$4,0)-1),OFFSET('C. PoC Adj Factor Scoring'!$E$5:$J$282,,MATCH(G$4,'C. PoC Adj Factor Scoring'!$E$3:$AH$3,0)-1),MATCH(G$2&\" Score\",'C. PoC Adj Factor Scoring'!$E$4:$J$4,0),TRUE)","v":4},{"$f":"VLOOKUP(OFFSET($B:$B,,MATCH(H$4,$B$4:$F$4,0)-1),OFFSET('C. PoC Adj Factor Scoring'!$E$5:$J$282,,MATCH(H$4,'C. PoC Adj Factor Scoring'!$E$3:$AH$3,0)-1),MATCH(H$2&\" Score\",'C. PoC Adj Factor Scoring'!$E$4:$J$4,0),TRUE)","v":1},{"$f":"VLOOKUP(OFFSET($B:$B,,MATCH(I$4,$B$4:$F$4,0)-1),OFFSET('C. PoC Adj Factor Scoring'!$E$5:$J$282,,MATCH(I$4,'C. PoC Adj Factor Scoring'!$E$3:$AH$3,0)-1),MATCH(I$2&\" Score\",'C. PoC Adj Factor Scoring'!$E$4:$J$4,0),TRUE)","v":1},{"$f":"VLOOKUP(OFFSET($B:$B,,MATCH(J$4,$B$4:$F$4,0)-1),OFFSET('C. PoC Adj Factor Scoring'!$E$5:$J$282,,MATCH(J$4,'C. PoC Adj Factor Scoring'!$E$3:$AH$3,0)-1),MATCH(J$2&\" Score\",'C. PoC Adj Factor Scoring'!$E$4:$J$4,0),TRUE)","v":1},{"$f":"VLOOKUP(OFFSET($B:$B,,MATCH(K$4,$B$4:$F$4,0)-1),OFFSET('C. PoC Adj Factor Scoring'!$E$5:$J$282,,MATCH(K$4,'C. PoC Adj Factor Scoring'!$E$3:$AH$3,0)-1),MATCH(K$2&\" Score\",'C. PoC Adj Factor Scoring'!$E$4:$J$4,0),TRUE)","v":1},{"$f":"VLOOKUP(OFFSET($B:$B,,MATCH(L$4,$B$4:$F$4,0)-1),OFFSET('C. PoC Adj Factor Scoring'!$E$5:$J$282,,MATCH(L$4,'C. PoC Adj Factor Scoring'!$E$3:$AH$3,0)-1),MATCH(L$2&\" Score\",'C. PoC Adj Factor Scoring'!$E$4:$J$4,0),TRUE)","v":1},{"$f":"VLOOKUP(OFFSET($B:$B,,MATCH(M$4,$B$4:$F$4,0)-1),OFFSET('C. PoC Adj Factor Scoring'!$E$5:$J$282,,MATCH(M$4,'C. PoC Adj Factor Scoring'!$E$3:$AH$3,0)-1),MATCH(M$2&\" Score\",'C. PoC Adj Factor Scoring'!$E$4:$J$4,0),TRUE)","v":1},{"$f":"VLOOKUP(OFFSET($B:$B,,MATCH(N$4,$B$4:$F$4,0)-1),OFFSET('C. PoC Adj Factor Scoring'!$E$5:$J$282,,MATCH(N$4,'C. PoC Adj Factor Scoring'!$E$3:$AH$3,0)-1),MATCH(N$2&\" Score\",'C. PoC Adj Factor Scoring'!$E$4:$J$4,0),TRUE)","v":1},{"$f":"VLOOKUP(OFFSET($B:$B,,MATCH(O$4,$B$4:$F$4,0)-1),OFFSET('C. PoC Adj Factor Scoring'!$E$5:$J$282,,MATCH(O$4,'C. PoC Adj Factor Scoring'!$E$3:$AH$3,0)-1),MATCH(O$2&\" Score\",'C. PoC Adj Factor Scoring'!$E$4:$J$4,0),TRUE)","v":1},{"$f":"VLOOKUP(OFFSET($B:$B,,MATCH(P$4,$B$4:$F$4,0)-1),OFFSET('C. PoC Adj Factor Scoring'!$E$5:$J$282,,MATCH(P$4,'C. PoC Adj Factor Scoring'!$E$3:$AH$3,0)-1),MATCH(P$2&\" Score\",'C. PoC Adj Factor Scoring'!$E$4:$J$4,0),TRUE)","v":1},{"$f":"VLOOKUP(OFFSET($B:$B,,MATCH(Q$4,$B$4:$F$4,0)-1),OFFSET('C. PoC Adj Factor Scoring'!$E$5:$J$282,,MATCH(Q$4,'C. PoC Adj Factor Scoring'!$E$3:$AH$3,0)-1),MATCH(Q$2&\" Score\",'C. PoC Adj Factor Scoring'!$E$4:$J$4,0),TRUE)","v":1},{"$f":"VLOOKUP(OFFSET($B:$B,,MATCH(R$4,$B$4:$F$4,0)-1),OFFSET('C. PoC Adj Factor Scoring'!$E$5:$J$282,,MATCH(R$4,'C. PoC Adj Factor Scoring'!$E$3:$AH$3,0)-1),MATCH(R$2&\" Score\",'C. PoC Adj Factor Scoring'!$E$4:$J$4,0),TRUE)","v":1},{"$f":"VLOOKUP(OFFSET($B:$B,,MATCH(S$4,$B$4:$F$4,0)-1),OFFSET('C. PoC Adj Factor Scoring'!$E$5:$J$282,,MATCH(S$4,'C. PoC Adj Factor Scoring'!$E$3:$AH$3,0)-1),MATCH(S$2&\" Score\",'C. PoC Adj Factor Scoring'!$E$4:$J$4,0),TRUE)","v":1},{"$f":"VLOOKUP(OFFSET($B:$B,,MATCH(T$4,$B$4:$F$4,0)-1),OFFSET('C. PoC Adj Factor Scoring'!$E$5:$J$282,,MATCH(T$4,'C. PoC Adj Factor Scoring'!$E$3:$AH$3,0)-1),MATCH(T$2&\" Score\",'C. PoC Adj Factor Scoring'!$E$4:$J$4,0),TRUE)","v":1},{"$f":"VLOOKUP(OFFSET($B:$B,,MATCH(U$4,$B$4:$F$4,0)-1),OFFSET('C. PoC Adj Factor Scoring'!$E$5:$J$282,,MATCH(U$4,'C. PoC Adj Factor Scoring'!$E$3:$AH$3,0)-1),MATCH(U$2&\" Score\",'C. PoC Adj Factor Scoring'!$E$4:$J$4,0),TRUE)","v":1},{"$f":"VLOOKUP(OFFSET($B:$B,,MATCH(V$4,$B$4:$F$4,0)-1),OFFSET('C. PoC Adj Factor Scoring'!$E$5:$J$282,,MATCH(V$4,'C. PoC Adj Factor Scoring'!$E$3:$AH$3,0)-1),MATCH(V$2&\" Score\",'C. PoC Adj Factor Scoring'!$E$4:$J$4,0),TRUE)","v":1},{"$f":"VLOOKUP(OFFSET($B:$B,,MATCH(W$4,$B$4:$F$4,0)-1),OFFSET('C. PoC Adj Factor Scoring'!$E$5:$J$282,,MATCH(W$4,'C. PoC Adj Factor Scoring'!$E$3:$AH$3,0)-1),MATCH(W$2&\" Score\",'C. PoC Adj Factor Scoring'!$E$4:$J$4,0),TRUE)","v":1},{"$f":"VLOOKUP(OFFSET($B:$B,,MATCH(X$4,$B$4:$F$4,0)-1),OFFSET('C. PoC Adj Factor Scoring'!$E$5:$J$282,,MATCH(X$4,'C. PoC Adj Factor Scoring'!$E$3:$AH$3,0)-1),MATCH(X$2&\" Score\",'C. PoC Adj Factor Scoring'!$E$4:$J$4,0),TRUE)","v":1},{"$f":"VLOOKUP(OFFSET($B:$B,,MATCH(Y$4,$B$4:$F$4,0)-1),OFFSET('C. PoC Adj Factor Scoring'!$E$5:$J$282,,MATCH(Y$4,'C. PoC Adj Factor Scoring'!$E$3:$AH$3,0)-1),MATCH(Y$2&\" Score\",'C. PoC Adj Factor Scoring'!$E$4:$J$4,0),TRUE)","v":1},{"$f":"VLOOKUP(OFFSET($B:$B,,MATCH(Z$4,$B$4:$F$4,0)-1),OFFSET('C. PoC Adj Factor Scoring'!$E$5:$J$282,,MATCH(Z$4,'C. PoC Adj Factor Scoring'!$E$3:$AH$3,0)-1),MATCH(Z$2&\" Score\",'C. PoC Adj Factor Scoring'!$E$4:$J$4,0),TRUE)","v":1},{"$f":"VLOOKUP(OFFSET($B:$B,,MATCH(AA$4,$B$4:$F$4,0)-1),OFFSET('C. PoC Adj Factor Scoring'!$E$5:$J$282,,MATCH(AA$4,'C. PoC Adj Factor Scoring'!$E$3:$AH$3,0)-1),MATCH(AA$2&\" Score\",'C. PoC Adj Factor Scoring'!$E$4:$J$4,0),TRUE)","v":3},{"$f":"VLOOKUP(OFFSET($B:$B,,MATCH(AB$4,$B$4:$F$4,0)-1),OFFSET('C. PoC Adj Factor Scoring'!$E$5:$J$282,,MATCH(AB$4,'C. PoC Adj Factor Scoring'!$E$3:$AH$3,0)-1),MATCH(AB$2&\" Score\",'C. PoC Adj Factor Scoring'!$E$4:$J$4,0),TRUE)","v":1},{"$f":"VLOOKUP(OFFSET($B:$B,,MATCH(AC$4,$B$4:$F$4,0)-1),OFFSET('C. PoC Adj Factor Scoring'!$E$5:$J$282,,MATCH(AC$4,'C. PoC Adj Factor Scoring'!$E$3:$AH$3,0)-1),MATCH(AC$2&\" Score\",'C. PoC Adj Factor Scoring'!$E$4:$J$4,0),TRUE)","v":1},{"$f":"VLOOKUP(OFFSET($B:$B,,MATCH(AD$4,$B$4:$F$4,0)-1),OFFSET('C. PoC Adj Factor Scoring'!$E$5:$J$282,,MATCH(AD$4,'C. PoC Adj Factor Scoring'!$E$3:$AH$3,0)-1),MATCH(AD$2&\" Score\",'C. PoC Adj Factor Scoring'!$E$4:$J$4,0),TRUE)","v":1},{"$f":"VLOOKUP(OFFSET($B:$B,,MATCH(AE$4,$B$4:$F$4,0)-1),OFFSET('C. PoC Adj Factor Scoring'!$E$5:$J$282,,MATCH(AE$4,'C. PoC Adj Factor Scoring'!$E$3:$AH$3,0)-1),MATCH(AE$2&\" Score\",'C. PoC Adj Factor Scoring'!$E$4:$J$4,0),TRUE)","v":1}]
[{"$f":"'A. Population Info'!A572","v":1000410265},{"$f":"'A. Population Info'!L572","v":"OIL"},{"$f":"'A. Population Info'!M572","v":0},{"$f":"'A. Population Info'!N572","v":0},{"$f":"'A. Population Info'!O572","v":0},{"$f":"'A. Population Info'!P572","v":0},{"$f":"VLOOKUP(OFFSET($B:$B,,MATCH(G$4,$B$4:$F$4,0)-1),OFFSET('C. PoC Adj Factor Scoring'!$E$5:$J$282,,MATCH(G$4,'C. PoC Adj Factor Scoring'!$E$3:$AH$3,0)-1),MATCH(G$2&\" Score\",'C. PoC Adj Factor Scoring'!$E$4:$J$4,0),TRUE)","v":4},{"$f":"VLOOKUP(OFFSET($B:$B,,MATCH(H$4,$B$4:$F$4,0)-1),OFFSET('C. PoC Adj Factor Scoring'!$E$5:$J$282,,MATCH(H$4,'C. PoC Adj Factor Scoring'!$E$3:$AH$3,0)-1),MATCH(H$2&\" Score\",'C. PoC Adj Factor Scoring'!$E$4:$J$4,0),TRUE)","v":1},{"$f":"VLOOKUP(OFFSET($B:$B,,MATCH(I$4,$B$4:$F$4,0)-1),OFFSET('C. PoC Adj Factor Scoring'!$E$5:$J$282,,MATCH(I$4,'C. PoC Adj Factor Scoring'!$E$3:$AH$3,0)-1),MATCH(I$2&\" Score\",'C. PoC Adj Factor Scoring'!$E$4:$J$4,0),TRUE)","v":1},{"$f":"VLOOKUP(OFFSET($B:$B,,MATCH(J$4,$B$4:$F$4,0)-1),OFFSET('C. PoC Adj Factor Scoring'!$E$5:$J$282,,MATCH(J$4,'C. PoC Adj Factor Scoring'!$E$3:$AH$3,0)-1),MATCH(J$2&\" Score\",'C. PoC Adj Factor Scoring'!$E$4:$J$4,0),TRUE)","v":1},{"$f":"VLOOKUP(OFFSET($B:$B,,MATCH(K$4,$B$4:$F$4,0)-1),OFFSET('C. PoC Adj Factor Scoring'!$E$5:$J$282,,MATCH(K$4,'C. PoC Adj Factor Scoring'!$E$3:$AH$3,0)-1),MATCH(K$2&\" Score\",'C. PoC Adj Factor Scoring'!$E$4:$J$4,0),TRUE)","v":1},{"$f":"VLOOKUP(OFFSET($B:$B,,MATCH(L$4,$B$4:$F$4,0)-1),OFFSET('C. PoC Adj Factor Scoring'!$E$5:$J$282,,MATCH(L$4,'C. PoC Adj Factor Scoring'!$E$3:$AH$3,0)-1),MATCH(L$2&\" Score\",'C. PoC Adj Factor Scoring'!$E$4:$J$4,0),TRUE)","v":1},{"$f":"VLOOKUP(OFFSET($B:$B,,MATCH(M$4,$B$4:$F$4,0)-1),OFFSET('C. PoC Adj Factor Scoring'!$E$5:$J$282,,MATCH(M$4,'C. PoC Adj Factor Scoring'!$E$3:$AH$3,0)-1),MATCH(M$2&\" Score\",'C. PoC Adj Factor Scoring'!$E$4:$J$4,0),TRUE)","v":1},{"$f":"VLOOKUP(OFFSET($B:$B,,MATCH(N$4,$B$4:$F$4,0)-1),OFFSET('C. PoC Adj Factor Scoring'!$E$5:$J$282,,MATCH(N$4,'C. PoC Adj Factor Scoring'!$E$3:$AH$3,0)-1),MATCH(N$2&\" Score\",'C. PoC Adj Factor Scoring'!$E$4:$J$4,0),TRUE)","v":1},{"$f":"VLOOKUP(OFFSET($B:$B,,MATCH(O$4,$B$4:$F$4,0)-1),OFFSET('C. PoC Adj Factor Scoring'!$E$5:$J$282,,MATCH(O$4,'C. PoC Adj Factor Scoring'!$E$3:$AH$3,0)-1),MATCH(O$2&\" Score\",'C. PoC Adj Factor Scoring'!$E$4:$J$4,0),TRUE)","v":1},{"$f":"VLOOKUP(OFFSET($B:$B,,MATCH(P$4,$B$4:$F$4,0)-1),OFFSET('C. PoC Adj Factor Scoring'!$E$5:$J$282,,MATCH(P$4,'C. PoC Adj Factor Scoring'!$E$3:$AH$3,0)-1),MATCH(P$2&\" Score\",'C. PoC Adj Factor Scoring'!$E$4:$J$4,0),TRUE)","v":1},{"$f":"VLOOKUP(OFFSET($B:$B,,MATCH(Q$4,$B$4:$F$4,0)-1),OFFSET('C. PoC Adj Factor Scoring'!$E$5:$J$282,,MATCH(Q$4,'C. PoC Adj Factor Scoring'!$E$3:$AH$3,0)-1),MATCH(Q$2&\" Score\",'C. PoC Adj Factor Scoring'!$E$4:$J$4,0),TRUE)","v":1},{"$f":"VLOOKUP(OFFSET($B:$B,,MATCH(R$4,$B$4:$F$4,0)-1),OFFSET('C. PoC Adj Factor Scoring'!$E$5:$J$282,,MATCH(R$4,'C. PoC Adj Factor Scoring'!$E$3:$AH$3,0)-1),MATCH(R$2&\" Score\",'C. PoC Adj Factor Scoring'!$E$4:$J$4,0),TRUE)","v":1},{"$f":"VLOOKUP(OFFSET($B:$B,,MATCH(S$4,$B$4:$F$4,0)-1),OFFSET('C. PoC Adj Factor Scoring'!$E$5:$J$282,,MATCH(S$4,'C. PoC Adj Factor Scoring'!$E$3:$AH$3,0)-1),MATCH(S$2&\" Score\",'C. PoC Adj Factor Scoring'!$E$4:$J$4,0),TRUE)","v":1},{"$f":"VLOOKUP(OFFSET($B:$B,,MATCH(T$4,$B$4:$F$4,0)-1),OFFSET('C. PoC Adj Factor Scoring'!$E$5:$J$282,,MATCH(T$4,'C. PoC Adj Factor Scoring'!$E$3:$AH$3,0)-1),MATCH(T$2&\" Score\",'C. PoC Adj Factor Scoring'!$E$4:$J$4,0),TRUE)","v":1},{"$f":"VLOOKUP(OFFSET($B:$B,,MATCH(U$4,$B$4:$F$4,0)-1),OFFSET('C. PoC Adj Factor Scoring'!$E$5:$J$282,,MATCH(U$4,'C. PoC Adj Factor Scoring'!$E$3:$AH$3,0)-1),MATCH(U$2&\" Score\",'C. PoC Adj Factor Scoring'!$E$4:$J$4,0),TRUE)","v":1},{"$f":"VLOOKUP(OFFSET($B:$B,,MATCH(V$4,$B$4:$F$4,0)-1),OFFSET('C. PoC Adj Factor Scoring'!$E$5:$J$282,,MATCH(V$4,'C. PoC Adj Factor Scoring'!$E$3:$AH$3,0)-1),MATCH(V$2&\" Score\",'C. PoC Adj Factor Scoring'!$E$4:$J$4,0),TRUE)","v":1},{"$f":"VLOOKUP(OFFSET($B:$B,,MATCH(W$4,$B$4:$F$4,0)-1),OFFSET('C. PoC Adj Factor Scoring'!$E$5:$J$282,,MATCH(W$4,'C. PoC Adj Factor Scoring'!$E$3:$AH$3,0)-1),MATCH(W$2&\" Score\",'C. PoC Adj Factor Scoring'!$E$4:$J$4,0),TRUE)","v":1},{"$f":"VLOOKUP(OFFSET($B:$B,,MATCH(X$4,$B$4:$F$4,0)-1),OFFSET('C. PoC Adj Factor Scoring'!$E$5:$J$282,,MATCH(X$4,'C. PoC Adj Factor Scoring'!$E$3:$AH$3,0)-1),MATCH(X$2&\" Score\",'C. PoC Adj Factor Scoring'!$E$4:$J$4,0),TRUE)","v":1},{"$f":"VLOOKUP(OFFSET($B:$B,,MATCH(Y$4,$B$4:$F$4,0)-1),OFFSET('C. PoC Adj Factor Scoring'!$E$5:$J$282,,MATCH(Y$4,'C. PoC Adj Factor Scoring'!$E$3:$AH$3,0)-1),MATCH(Y$2&\" Score\",'C. PoC Adj Factor Scoring'!$E$4:$J$4,0),TRUE)","v":1},{"$f":"VLOOKUP(OFFSET($B:$B,,MATCH(Z$4,$B$4:$F$4,0)-1),OFFSET('C. PoC Adj Factor Scoring'!$E$5:$J$282,,MATCH(Z$4,'C. PoC Adj Factor Scoring'!$E$3:$AH$3,0)-1),MATCH(Z$2&\" Score\",'C. PoC Adj Factor Scoring'!$E$4:$J$4,0),TRUE)","v":1},{"$f":"VLOOKUP(OFFSET($B:$B,,MATCH(AA$4,$B$4:$F$4,0)-1),OFFSET('C. PoC Adj Factor Scoring'!$E$5:$J$282,,MATCH(AA$4,'C. PoC Adj Factor Scoring'!$E$3:$AH$3,0)-1),MATCH(AA$2&\" Score\",'C. PoC Adj Factor Scoring'!$E$4:$J$4,0),TRUE)","v":3},{"$f":"VLOOKUP(OFFSET($B:$B,,MATCH(AB$4,$B$4:$F$4,0)-1),OFFSET('C. PoC Adj Factor Scoring'!$E$5:$J$282,,MATCH(AB$4,'C. PoC Adj Factor Scoring'!$E$3:$AH$3,0)-1),MATCH(AB$2&\" Score\",'C. PoC Adj Factor Scoring'!$E$4:$J$4,0),TRUE)","v":1},{"$f":"VLOOKUP(OFFSET($B:$B,,MATCH(AC$4,$B$4:$F$4,0)-1),OFFSET('C. PoC Adj Factor Scoring'!$E$5:$J$282,,MATCH(AC$4,'C. PoC Adj Factor Scoring'!$E$3:$AH$3,0)-1),MATCH(AC$2&\" Score\",'C. PoC Adj Factor Scoring'!$E$4:$J$4,0),TRUE)","v":1},{"$f":"VLOOKUP(OFFSET($B:$B,,MATCH(AD$4,$B$4:$F$4,0)-1),OFFSET('C. PoC Adj Factor Scoring'!$E$5:$J$282,,MATCH(AD$4,'C. PoC Adj Factor Scoring'!$E$3:$AH$3,0)-1),MATCH(AD$2&\" Score\",'C. PoC Adj Factor Scoring'!$E$4:$J$4,0),TRUE)","v":1},{"$f":"VLOOKUP(OFFSET($B:$B,,MATCH(AE$4,$B$4:$F$4,0)-1),OFFSET('C. PoC Adj Factor Scoring'!$E$5:$J$282,,MATCH(AE$4,'C. PoC Adj Factor Scoring'!$E$3:$AH$3,0)-1),MATCH(AE$2&\" Score\",'C. PoC Adj Factor Scoring'!$E$4:$J$4,0),TRUE)","v":1}]
[{"$f":"'A. Population Info'!A573","v":1000410753},{"$f":"'A. Population Info'!L573","v":"OIL"},{"$f":"'A. Population Info'!M573","v":0},{"$f":"'A. Population Info'!N573","v":0},{"$f":"'A. Population Info'!O573","v":0},{"$f":"'A. Population Info'!P573","v":0},{"$f":"VLOOKUP(OFFSET($B:$B,,MATCH(G$4,$B$4:$F$4,0)-1),OFFSET('C. PoC Adj Factor Scoring'!$E$5:$J$282,,MATCH(G$4,'C. PoC Adj Factor Scoring'!$E$3:$AH$3,0)-1),MATCH(G$2&\" Score\",'C. PoC Adj Factor Scoring'!$E$4:$J$4,0),TRUE)","v":4},{"$f":"VLOOKUP(OFFSET($B:$B,,MATCH(H$4,$B$4:$F$4,0)-1),OFFSET('C. PoC Adj Factor Scoring'!$E$5:$J$282,,MATCH(H$4,'C. PoC Adj Factor Scoring'!$E$3:$AH$3,0)-1),MATCH(H$2&\" Score\",'C. PoC Adj Factor Scoring'!$E$4:$J$4,0),TRUE)","v":1},{"$f":"VLOOKUP(OFFSET($B:$B,,MATCH(I$4,$B$4:$F$4,0)-1),OFFSET('C. PoC Adj Factor Scoring'!$E$5:$J$282,,MATCH(I$4,'C. PoC Adj Factor Scoring'!$E$3:$AH$3,0)-1),MATCH(I$2&\" Score\",'C. PoC Adj Factor Scoring'!$E$4:$J$4,0),TRUE)","v":1},{"$f":"VLOOKUP(OFFSET($B:$B,,MATCH(J$4,$B$4:$F$4,0)-1),OFFSET('C. PoC Adj Factor Scoring'!$E$5:$J$282,,MATCH(J$4,'C. PoC Adj Factor Scoring'!$E$3:$AH$3,0)-1),MATCH(J$2&\" Score\",'C. PoC Adj Factor Scoring'!$E$4:$J$4,0),TRUE)","v":1},{"$f":"VLOOKUP(OFFSET($B:$B,,MATCH(K$4,$B$4:$F$4,0)-1),OFFSET('C. PoC Adj Factor Scoring'!$E$5:$J$282,,MATCH(K$4,'C. PoC Adj Factor Scoring'!$E$3:$AH$3,0)-1),MATCH(K$2&\" Score\",'C. PoC Adj Factor Scoring'!$E$4:$J$4,0),TRUE)","v":1},{"$f":"VLOOKUP(OFFSET($B:$B,,MATCH(L$4,$B$4:$F$4,0)-1),OFFSET('C. PoC Adj Factor Scoring'!$E$5:$J$282,,MATCH(L$4,'C. PoC Adj Factor Scoring'!$E$3:$AH$3,0)-1),MATCH(L$2&\" Score\",'C. PoC Adj Factor Scoring'!$E$4:$J$4,0),TRUE)","v":1},{"$f":"VLOOKUP(OFFSET($B:$B,,MATCH(M$4,$B$4:$F$4,0)-1),OFFSET('C. PoC Adj Factor Scoring'!$E$5:$J$282,,MATCH(M$4,'C. PoC Adj Factor Scoring'!$E$3:$AH$3,0)-1),MATCH(M$2&\" Score\",'C. PoC Adj Factor Scoring'!$E$4:$J$4,0),TRUE)","v":1},{"$f":"VLOOKUP(OFFSET($B:$B,,MATCH(N$4,$B$4:$F$4,0)-1),OFFSET('C. PoC Adj Factor Scoring'!$E$5:$J$282,,MATCH(N$4,'C. PoC Adj Factor Scoring'!$E$3:$AH$3,0)-1),MATCH(N$2&\" Score\",'C. PoC Adj Factor Scoring'!$E$4:$J$4,0),TRUE)","v":1},{"$f":"VLOOKUP(OFFSET($B:$B,,MATCH(O$4,$B$4:$F$4,0)-1),OFFSET('C. PoC Adj Factor Scoring'!$E$5:$J$282,,MATCH(O$4,'C. PoC Adj Factor Scoring'!$E$3:$AH$3,0)-1),MATCH(O$2&\" Score\",'C. PoC Adj Factor Scoring'!$E$4:$J$4,0),TRUE)","v":1},{"$f":"VLOOKUP(OFFSET($B:$B,,MATCH(P$4,$B$4:$F$4,0)-1),OFFSET('C. PoC Adj Factor Scoring'!$E$5:$J$282,,MATCH(P$4,'C. PoC Adj Factor Scoring'!$E$3:$AH$3,0)-1),MATCH(P$2&\" Score\",'C. PoC Adj Factor Scoring'!$E$4:$J$4,0),TRUE)","v":1},{"$f":"VLOOKUP(OFFSET($B:$B,,MATCH(Q$4,$B$4:$F$4,0)-1),OFFSET('C. PoC Adj Factor Scoring'!$E$5:$J$282,,MATCH(Q$4,'C. PoC Adj Factor Scoring'!$E$3:$AH$3,0)-1),MATCH(Q$2&\" Score\",'C. PoC Adj Factor Scoring'!$E$4:$J$4,0),TRUE)","v":1},{"$f":"VLOOKUP(OFFSET($B:$B,,MATCH(R$4,$B$4:$F$4,0)-1),OFFSET('C. PoC Adj Factor Scoring'!$E$5:$J$282,,MATCH(R$4,'C. PoC Adj Factor Scoring'!$E$3:$AH$3,0)-1),MATCH(R$2&\" Score\",'C. PoC Adj Factor Scoring'!$E$4:$J$4,0),TRUE)","v":1},{"$f":"VLOOKUP(OFFSET($B:$B,,MATCH(S$4,$B$4:$F$4,0)-1),OFFSET('C. PoC Adj Factor Scoring'!$E$5:$J$282,,MATCH(S$4,'C. PoC Adj Factor Scoring'!$E$3:$AH$3,0)-1),MATCH(S$2&\" Score\",'C. PoC Adj Factor Scoring'!$E$4:$J$4,0),TRUE)","v":1},{"$f":"VLOOKUP(OFFSET($B:$B,,MATCH(T$4,$B$4:$F$4,0)-1),OFFSET('C. PoC Adj Factor Scoring'!$E$5:$J$282,,MATCH(T$4,'C. PoC Adj Factor Scoring'!$E$3:$AH$3,0)-1),MATCH(T$2&\" Score\",'C. PoC Adj Factor Scoring'!$E$4:$J$4,0),TRUE)","v":1},{"$f":"VLOOKUP(OFFSET($B:$B,,MATCH(U$4,$B$4:$F$4,0)-1),OFFSET('C. PoC Adj Factor Scoring'!$E$5:$J$282,,MATCH(U$4,'C. PoC Adj Factor Scoring'!$E$3:$AH$3,0)-1),MATCH(U$2&\" Score\",'C. PoC Adj Factor Scoring'!$E$4:$J$4,0),TRUE)","v":1},{"$f":"VLOOKUP(OFFSET($B:$B,,MATCH(V$4,$B$4:$F$4,0)-1),OFFSET('C. PoC Adj Factor Scoring'!$E$5:$J$282,,MATCH(V$4,'C. PoC Adj Factor Scoring'!$E$3:$AH$3,0)-1),MATCH(V$2&\" Score\",'C. PoC Adj Factor Scoring'!$E$4:$J$4,0),TRUE)","v":1},{"$f":"VLOOKUP(OFFSET($B:$B,,MATCH(W$4,$B$4:$F$4,0)-1),OFFSET('C. PoC Adj Factor Scoring'!$E$5:$J$282,,MATCH(W$4,'C. PoC Adj Factor Scoring'!$E$3:$AH$3,0)-1),MATCH(W$2&\" Score\",'C. PoC Adj Factor Scoring'!$E$4:$J$4,0),TRUE)","v":1},{"$f":"VLOOKUP(OFFSET($B:$B,,MATCH(X$4,$B$4:$F$4,0)-1),OFFSET('C. PoC Adj Factor Scoring'!$E$5:$J$282,,MATCH(X$4,'C. PoC Adj Factor Scoring'!$E$3:$AH$3,0)-1),MATCH(X$2&\" Score\",'C. PoC Adj Factor Scoring'!$E$4:$J$4,0),TRUE)","v":1},{"$f":"VLOOKUP(OFFSET($B:$B,,MATCH(Y$4,$B$4:$F$4,0)-1),OFFSET('C. PoC Adj Factor Scoring'!$E$5:$J$282,,MATCH(Y$4,'C. PoC Adj Factor Scoring'!$E$3:$AH$3,0)-1),MATCH(Y$2&\" Score\",'C. PoC Adj Factor Scoring'!$E$4:$J$4,0),TRUE)","v":1},{"$f":"VLOOKUP(OFFSET($B:$B,,MATCH(Z$4,$B$4:$F$4,0)-1),OFFSET('C. PoC Adj Factor Scoring'!$E$5:$J$282,,MATCH(Z$4,'C. PoC Adj Factor Scoring'!$E$3:$AH$3,0)-1),MATCH(Z$2&\" Score\",'C. PoC Adj Factor Scoring'!$E$4:$J$4,0),TRUE)","v":1},{"$f":"VLOOKUP(OFFSET($B:$B,,MATCH(AA$4,$B$4:$F$4,0)-1),OFFSET('C. PoC Adj Factor Scoring'!$E$5:$J$282,,MATCH(AA$4,'C. PoC Adj Factor Scoring'!$E$3:$AH$3,0)-1),MATCH(AA$2&\" Score\",'C. PoC Adj Factor Scoring'!$E$4:$J$4,0),TRUE)","v":3},{"$f":"VLOOKUP(OFFSET($B:$B,,MATCH(AB$4,$B$4:$F$4,0)-1),OFFSET('C. PoC Adj Factor Scoring'!$E$5:$J$282,,MATCH(AB$4,'C. PoC Adj Factor Scoring'!$E$3:$AH$3,0)-1),MATCH(AB$2&\" Score\",'C. PoC Adj Factor Scoring'!$E$4:$J$4,0),TRUE)","v":1},{"$f":"VLOOKUP(OFFSET($B:$B,,MATCH(AC$4,$B$4:$F$4,0)-1),OFFSET('C. PoC Adj Factor Scoring'!$E$5:$J$282,,MATCH(AC$4,'C. PoC Adj Factor Scoring'!$E$3:$AH$3,0)-1),MATCH(AC$2&\" Score\",'C. PoC Adj Factor Scoring'!$E$4:$J$4,0),TRUE)","v":1},{"$f":"VLOOKUP(OFFSET($B:$B,,MATCH(AD$4,$B$4:$F$4,0)-1),OFFSET('C. PoC Adj Factor Scoring'!$E$5:$J$282,,MATCH(AD$4,'C. PoC Adj Factor Scoring'!$E$3:$AH$3,0)-1),MATCH(AD$2&\" Score\",'C. PoC Adj Factor Scoring'!$E$4:$J$4,0),TRUE)","v":1},{"$f":"VLOOKUP(OFFSET($B:$B,,MATCH(AE$4,$B$4:$F$4,0)-1),OFFSET('C. PoC Adj Factor Scoring'!$E$5:$J$282,,MATCH(AE$4,'C. PoC Adj Factor Scoring'!$E$3:$AH$3,0)-1),MATCH(AE$2&\" Score\",'C. PoC Adj Factor Scoring'!$E$4:$J$4,0),TRUE)","v":1}]

{"sheet":"C. Reliability Consequence","index":13,"n_rows":573,"n_cols":12,"rows_kept":573,"cut":false,"hidden":false,"merged":[[2,5,4,5],[2,6,4,6],[2,7,4,7],[2,0,4,0],[2,1,4,1],[2,2,4,2],[2,3,4,3],[2,4,4,4]]}
[null,null,"Value of Unserved Energy"]
[]
["Asset Identifier","Reliability Asset Identifier","Asset Voltage Reliability Impact","Average Energy Usage (kW)","Average Hours Unserved","kWh Lost per Failure","VCR","Value of Unserved Energy"]
[null,null,null,null,null,null,null,null,null,null,"Average kWh lost per failure",{"$f":"AVERAGE(F:F)","v":0}]
[null,null,null,"Avg Energy Usage","Average hours lost","Load Lost per Consequence","VCR","Value of outage",null,null,"Average value of unserved energy",{"$f":"AVERAGE(H:H)","v":0}]
[{"$f":"'A. Population Info'!A6","v":1000023626},{"$f":"'A. Population Info'!D6","v":"T.S.ZN00340.TXF.T00001/0.TX"},{"$f":"'A. Population Info'!F6","v":"HV"},{"$f":"'A. Population Info'!E6","v":2518.7494200280998},{"$f":"INDEX('C. PoC Summary Stats & Para'!$E$25:$G$25,,MATCH($C6,'C. PoC Summary Stats & Para'!$E$18:$G$18,0))","v":0},{"$f":"IFERROR(D6*E6,\"\")","v":0},{"$f":"INDEX('C. PoC Summary Stats & Para'!$E$14:$G$14,,MATCH($C6,'C. PoC Summary Stats & Para'!$E$18:$G$18,0))","v":40.728999999999999},{"$f":"IFERROR(F6*G6,$L$4*G6)","v":0}]
[{"$f":"'A. Population Info'!A7","v":1000023638},{"$f":"'A. Population Info'!D7","v":"T.S.ZN00340.TXF.T00003/0.TX"},{"$f":"'A. Population Info'!F7","v":"HV"},{"$f":"'A. Population Info'!E7","v":2518.7494200280998},{"$f":"INDEX('C. PoC Summary Stats & Para'!$E$25:$G$25,,MATCH($C7,'C. PoC Summary Stats & Para'!$E$18:$G$18,0))","v":0},{"$f":"IFERROR(D7*E7,\"\")","v":0},{"$f":"INDEX('C. PoC Summary Stats & Para'!$E$14:$G$14,,MATCH($C7,'C. PoC Summary Stats & Para'!$E$18:$G$18,0))","v":40.728999999999999},0]
[{"$f":"'A. Population Info'!A8","v":1000023649},{"$f":"'A. Population Info'!D8","v":"T.S.ZN00384.TXF.T00004/0.TX"},{"$f":"'A. Population Info'!F8","v":"HV"},{"$f":"'A. Population Info'!E8","v":2946.7368276576999},{"$f":"INDEX('C. PoC Summary Stats & Para'!$E$25:$G$25,,MATCH($C8,'C. PoC Summary Stats & Para'!$E$18:$G$18,0))","v":0},0,{"$f":"INDEX('C. PoC Summary Stats & Para'!$E$14:$G$14,,MATCH($C8,'C. PoC Summary Stats & Para'!$E$18:$G$18,0))","v":40.728999999999999},0]
[{"$f":"'A. Population Info'!A9","v":1000048071},{"$f":"'A. Population Info'!D9","v":"T.S.ZN03672.TXF.T00003/0.TX"},{"$f":"'A. Population Info'!F9","v":"HV"},{"$f":"'A. Population Info'!E9","v":8213.0559628606334},{"$f":"INDEX('C. PoC Summary Stats & Para'!$E$25:$G$25,,MATCH($C9,'C. PoC Summary Stats & Para'!$E$18:$G$18,0))","v":0},0,{"$f":"INDEX('C. PoC Summary Stats & Para'!$E$14:$G$14,,MATCH($C9,'C. PoC Summary Stats & Para'!$E$18:$G$18,0))","v":40.728999999999999},0]
[{"$f":"'A. Population Info'!A10","v":1000048606},{"$f":"'A. Population Info'!D10","v":"T.S.ZN00526.TXF.T00001/0.TX"},{"$f":"'A. Population Info'!F10","v":"HV"},{"$f":"'A. Population Info'!E10","v":2124.2673979634501},{"$f":"INDEX('C. PoC Summary Stats & Para'!$E$25:$G$25,,MATCH($C10,'C. PoC Summary Stats & Para'!$E$18:$G$18,0))","v":0},0,{"$f":"INDEX('C. PoC Summary Stats & Para'!$E$14:$G$14,,MATCH($C10,'C. PoC Summary Stats & Para'!$E$18:$G$18,0))","v":40.728999999999999},0]
[{"$f":"'A. Population Info'!A11","v":1000048621},{"$f":"'A. Population Info'!D11","v":"T.S.ZN00526.TXF.T00002/0.TX"},{"$f":"'A. Population Info'!F11","v":"HV"},{"$f":"'A. Population Info'!E11","v":2124.2673979634501},{"$f":"INDEX('C. PoC Summary Stats & Para'!$E$25:$G$25,,MATCH($C11,'C. PoC Summary Stats & Para'!$E$18:$G$18,0))","v":0},0,{"$f":"INDEX('C. PoC Summary Stats & Para'!$E$14:$G$14,,MATCH($C11,'C. PoC Summary Stats & Para'!$E$18:$G$18,0))","v":40.728999999999999},0]
[{"$f":"'A. Population Info'!A12","v":1000048751},{"$f":"'A. Population Info'!D12","v":"T.S.ZN03155.TXF.T00002/0.TX"},{"$f":"'A. Population Info'!F12","v":"HV"},{"$f":"'A. Population Info'!E12","v":7818.88494399705},{"$f":"INDEX('C. PoC Summary Stats & Para'!$E$25:$G$25,,MATCH($C12,'C. PoC Summary Stats & Para'!$E$18:$G$18,0))","v":0},0,{"$f":"INDEX('C. PoC Summary Stats & Para'!$E$14:$G$14,,MATCH($C12,'C. PoC Summary Stats & Para'!$E$18:$G$18,0))","v":40.728999999999999},0]
[{"$f":"'A. Population Info'!A13","v":1000063506},{"$f":"'A. Population Info'!D13","v":"T.S.ZN00230.TXF.T00002/0.TX"},{"$f":"'A. Population Info'!F13","v":"HV"},{"$f":"'A. Population Info'!E13","v":1860.7861576785001},{"$f":"INDEX('C. PoC Summary Stats & Para'!$E$25:$G$25,,MATCH($C13,'C. PoC Summary Stats & Para'!$E$18:$G$18,0))","v":0},0,{"$f":"INDEX('C. PoC Summary Stats & Para'!$E$14:$G$14,,MATCH($C13,'C. PoC Summary Stats & Para'!$E$18:$G$18,0))","v":40.728999999999999},0]
[{"$f":"'A. Population Info'!A14","v":1000096500},{"$f":"'A. Population Info'!D14","v":"T.S.ZN00270.TXF.T00001/0.TX"},{"$f":"'A. Population Info'!F14","v":"HV"},{"$f":"'A. Population Info'!E14","v":4174.3842233148498},{"$f":"INDEX('C. PoC Summary Stats & Para'!$E$25:$G$25,,MATCH($C14,'C. PoC Summary Stats & Para'!$E$18:$G$18,0))","v":0},0,{"$f":"INDEX('C. PoC Summary Stats & Para'!$E$14:$G$14,,MATCH($C14,'C. PoC Summary Stats & Para'!$E$18:$G$18,0))","v":40.728999999999999},0]
[{"$f":"'A. Population Info'!A15","v":1000096880},{"$f":"'A. Population Info'!D15","v":"T.S.ZN15006.TXF.T00002/0.TX"},{"$f":"'A. Population Info'!F15","v":"HV"},{"$f":"'A. Population Info'!E15","v":5814.4695873413002},{"$f":"INDEX('C. PoC Summary Stats & Para'!$E$25:$G$25,,MATCH($C15,'C. PoC Summary Stats & Para'!$E$18:$G$18,0))","v":0},0,{"$f":"INDEX('C. PoC Summary Stats & Para'!$E$14:$G$14,,MATCH($C15,'C. PoC Summary Stats & Para'!$E$18:$G$18,0))","v":40.728999999999999},0]
[{"$f":"'A. Population Info'!A16","v":1000114250},{"$f":"'A. Population Info'!D16","v":"T.S.TS07140.TXF.T00002/0.TX"},{"$f":"'A. Population Info'!F16","v":"HV"},{"$f":"'A. Population Info'!E16","v":18479.30311848105},{"$f":"INDEX('C. PoC Summary Stats & Para'!$E$25:$G$25,,MATCH($C16,'C. PoC Summary Stats & Para'!$E$18:$G$18,0))","v":0},0,{"$f":"INDEX('C. PoC Summary Stats & Para'!$E$14:$G$14,,MATCH($C16,'C. PoC Summary Stats & Para'!$E$18:$G$18,0))","v":40.728999999999999},0]
[{"$f":"'A. Population Info'!A17","v":1000131033},{"$f":"'A. Population Info'!D17","v":"T.S.ZN00224.TXF.T00004/0.TX"},{"$f":"'A. Population Info'!F17","v":"HV"},{"$f":"'A. Population Info'!E17","v":6189.4206688755503},{"$f":"INDEX('C. PoC Summary Stats & Para'!$E$25:$G$25,,MATCH($C17,'C. PoC Summary Stats & Para'!$E$18:$G$18,0))","v":0},0,{"$f":"INDEX('C. PoC Summary Stats & Para'!$E$14:$G$14,,MATCH($C17,'C. PoC Summary Stats & Para'!$E$18:$G$18,0))","v":40.728999999999999},0]
[{"$f":"'A. Population Info'!A18","v":1000207623},{"$f":"'A. Population Info'!D18","v":"T.S.ZN00630.TXF.T00005/0.TX"},{"$f":"'A. Population Info'!F18","v":"HV"},{"$f":"'A. Population Info'!E18","v":3783.3779856536999},{"$f":"INDEX('C. PoC Summary Stats & Para'!$E$25:$G$25,,MATCH($C18,'C. PoC Summary Stats & Para'!$E$18:$G$18,0))","v":0},0,{"$f":"INDEX('C. PoC Summary Stats & Para'!$E$14:$G$14,,MATCH($C18,'C. PoC Summary Stats & Para'!$E$18:$G$18,0))","v":40.728999999999999},0]
[{"$f":"'A. Population Info'!A19","v":1000207714},{"$f":"'A. Population Info'!D19","v":"T.S.ZN00813.TXF.T00002/0.TX"},{"$f":"'A. Population Info'!F19","v":"HV"},{"$f":"'A. Population Info'!E19","v":2263.9793722615964},{"$f":"INDEX('C. PoC Summary Stats & Para'!$E$25:$G$25,,MATCH($C19,'C. PoC Summary Stats & Para'!$E$18:$G$18,0))","v":0},0,{"$f":"INDEX('C. PoC Summary Stats & Para'!$E$14:$G$14,,MATCH($C19,'C. PoC Summary Stats & Para'!$E$18:$G$18,0))","v":40.728999999999999},0]
[{"$f":"'A. Population Info'!A20","v":1000207726},{"$f":"'A. Population Info'!D20","v":"T.S.ZN00813.TXF.T00003/0.TX"},{"$f":"'A. Population Info'!F20","v":"HV"},{"$f":"'A. Population Info'!E20","v":2263.9793722615964},{"$f":"INDEX('C. PoC Summary Stats & Para'!$E$25:$G$25,,MATCH($C20,'C. PoC Summary Stats & Para'!$E$18:$G$18,0))","v":0},0,{"$f":"INDEX('C. PoC Summary Stats & Para'!$E$14:$G$14,,MATCH($C20,'C. PoC Summary Stats & Para'!$E$18:$G$18,0))","v":40.728999999999999},0]
[{"$f":"'A. Population Info'!A21","v":1000224415},{"$f":"'A. Population Info'!D21","v":"T.S.ZN35500.TXF.T00002/0.TX"},{"$f":"'A. Population Info'!F21","v":"HV"},{"$f":"'A. Population Info'!E21","v":8743.2684167117004},{"$f":"INDEX('C. PoC Summary Stats & Para'!$E$25:$G$25,,MATCH($C21,'C. PoC Summary Stats & Para'!$E$18:$G$18,0))","v":0},0,{"$f":"INDEX('C. PoC Summary Stats & Para'!$E$14:$G$14,,MATCH($C21,'C. PoC Summary Stats & Para'!$E$18:$G$18,0))","v":40.728999999999999},0]
[{"$f":"'A. Population Info'!A22","v":1000224424},{"$f":"'A. Population Info'!D22","v":"T.S.TS14450.TXF.T00011/0.TX"},{"$f":"'A. Population Info'!F22","v":"HV"},{"$f":"'A. Population Info'!E22","v":7650.2940646709276},{"$f":"INDEX('C. PoC Summary Stats & Para'!$E$25:$G$25,,MATCH($C22,'C. PoC Summary Stats & Para'!$E$18:$G$18,0))","v":0},0,{"$f":"INDEX('C. PoC Summary Stats & Para'!$E$14:$G$14,,MATCH($C22,'C. PoC Summary Stats & Para'!$E$18:$G$18,0))","v":40.728999999999999},0]
[{"$f":"'A. Population Info'!A23","v":1000224437},{"$f":"'A. Population Info'!D23","v":"T.S.TS14450.TXF.T00012/0.TX"},{"$f":"'A. Population Info'!F23","v":"HV"},{"$f":"'A. Population Info'!E23","v":7650.2940646709276},{"$f":"INDEX('C. PoC Summary Stats & Para'!$E$25:$G$25,,MATCH($C23,'C. PoC Summary Stats & Para'!$E$18:$G$18,0))","v":0},0,{"$f":"INDEX('C. PoC Summary Stats & Para'!$E$14:$G$14,,MATCH($C23,'C. PoC Summary Stats & Para'!$E$18:$G$18,0))","v":40.728999999999999},0]
[{"$f":"'A. Population Info'!A24","v":1000224450},{"$f":"'A. Population Info'!D24","v":"T.S.TS14450.TXF.T00014/0.TX"},{"$f":"'A. Population Info'!F24","v":"HV"},{"$f":"'A. Population Info'!E24","v":7650.2940646709276},{"$f":"INDEX('C. PoC Summary Stats & Para'!$E$25:$G$25,,MATCH($C24,'C. PoC Summary Stats & Para'!$E$18:$G$18,0))","v":0},0,{"$f":"INDEX('C. PoC Summary Stats & Para'!$E$14:$G$14,,MATCH($C24,'C. PoC Summary Stats & Para'!$E$18:$G$18,0))","v":40.728999999999999},0]
[{"$f":"'A. Population Info'!A25","v":1000224464},{"$f":"'A. Population Info'!D25","v":"T.S.TS00404.TXF.T00004/0.TX"},{"$f":"'A. Population Info'!F25","v":"HV"},{"$f":"'A. Population Info'!E25","v":10276.808016445248},{"$f":"INDEX('C. PoC Summary Stats & Para'!$E$25:$G$25,,MATCH($C25,'C. PoC Summary Stats & Para'!$E$18:$G$18,0))","v":0},0,{"$f":"INDEX('C. PoC Summary Stats & Para'!$E$14:$G$14,,MATCH($C25,'C. PoC Summary Stats & Para'!$E$18:$G$18,0))","v":40.728999999999999},0]
[{"$f":"'A. Population Info'!A26","v":1000224475},{"$f":"'A. Population Info'!D26","v":"T.S.ZN05959.TXF.T00003/0.TX"},{"$f":"'A. Population Info'!F26","v":"HV"},{"$f":"'A. Population Info'!E26","v":{"$error":"#N/A"}},{"$f":"INDEX('C. PoC Summary Stats & Para'!$E$25:$G$25,,MATCH($C26,'C. PoC Summary Stats & Para'!$E$18:$G$18,0))","v":0},"",{"$f":"INDEX('C. PoC Summary Stats & Para'!$E$14:$G$14,,MATCH($C26,'C. PoC Summary Stats & Para'!$E$18:$G$18,0))","v":40.728999999999999},0]
[{"$f":"'A. Population Info'!A27","v":1000267271},{"$f":"'A. Population Info'!D27","v":"T.S.ZN00931.TXF.T00001/0.TX"},{"$f":"'A. Population Info'!F27","v":"HV"},{"$f":"'A. Population Info'!E27","v":5529.7032360865251},{"$f":"INDEX('C. PoC Summary Stats & Para'!$E$25:$G$25,,MATCH($C27,'C. PoC Summary Stats & Para'!$E$18:$G$18,0))","v":0},0,{"$f":"INDEX('C. PoC Summary Stats & Para'!$E$14:$G$14,,MATCH($C27,'C. PoC Summary Stats & Para'!$E$18:$G$18,0))","v":40.728999999999999},0]
[{"$f":"'A. Population Info'!A28","v":1000276491},{"$f":"'A. Population Info'!D28","v":"T.S.ZN00340.TXF.T00002/0.TX"},{"$f":"'A. Population Info'!F28","v":"HV"},{"$f":"'A. Population Info'!E28","v":2518.7494200280998},{"$f":"INDEX('C. PoC Summary Stats & Para'!$E$25:$G$25,,MATCH($C28,'C. PoC Summary Stats & Para'!$E$18:$G$18,0))","v":0},0,{"$f":"INDEX('C. PoC Summary Stats & Para'!$E$14:$G$14,,MATCH($C28,'C. PoC Summary Stats & Para'!$E$18:$G$18,0))","v":40.728999999999999},0]
[{"$f":"'A. Population Info'!A29","v":1000276518},{"$f":"'A. Population Info'!D29","v":"T.S.ZN00224.TXF.T00005/0.TX"},{"$f":"'A. Population Info'!F29","v":"HV"},{"$f":"'A. Population Info'!E29","v":6189.4206688755503},{"$f":"INDEX('C. PoC Summary Stats & Para'!$E$25:$G$25,,MATCH($C29,'C. PoC Summary Stats & Para'!$E$18:$G$18,0))","v":0},0,{"$f":"INDEX('C. PoC Summary Stats & Para'!$E$14:$G$14,,MATCH($C29,'C. PoC Summary Stats & Para'!$E$18:$G$18,0))","v":40.728999999999999},0]
[{"$f":"'A. Population Info'!A30","v":1000276530},{"$f":"'A. Population Info'!D30","v":"T.S.TS00416.TXF.T00001/0.TX"},{"$f":"'A. Population Info'!F30","v":"HV"},{"$f":"'A. Population Info'!E30","v":13031.870019098262},{"$f":"INDEX('C. PoC Summary Stats & Para'!$E$25:$G$25,,MATCH($C30,'C. PoC Summary Stats & Para'!$E$18:$G$18,0))","v":0},0,{"$f":"INDEX('C. PoC Summary Stats & Para'!$E$14:$G$14,,MATCH($C30,'C. PoC Summary Stats & Para'!$E$18:$G$18,0))","v":40.728999999999999},0]
[{"$f":"'A. Population Info'!A31","v":1000276542},{"$f":"'A. Population Info'!D31","v":"T.S.TS00416.TXF.T00003/0.TX"},{"$f":"'A. Population Info'!F31","v":"HV"},{"$f":"'A. Population Info'!E31","v":13031.870019098262},{"$f":"INDEX('C. PoC Summary Stats & Para'!$E$25:$G$25,,MATCH($C31,'C. PoC Summary Stats & Para'!$E$18:$G$18,0))","v":0},0,{"$f":"INDEX('C. PoC Summary Stats & Para'!$E$14:$G$14,,MATCH($C31,'C. PoC Summary Stats & Para'!$E$18:$G$18,0))","v":40.728999999999999},0]
[{"$f":"'A. Population Info'!A32","v":1000299647},{"$f":"'A. Population Info'!D32","v":"T.S.ZN00811.TXF.T00001/0.TX"},{"$f":"'A. Population Info'!F32","v":"HV-single"},{"$f":"'A. Population Info'!E32","v":421.09091536910398},{"$f":"INDEX('C. PoC Summary Stats & Para'!$E$25:$G$25,,MATCH($C32,'C. PoC Summary Stats & Para'!$E$18:$G$18,0))","v":0},0,{"$f":"INDEX('C. PoC Summary Stats & Para'!$E$14:$G$14,,MATCH($C32,'C. PoC Summary Stats & Para'!$E$18:$G$18,0))","v":40.728999999999999},0]
[{"$f":"'A. Population Info'!A33","v":1000314154},{"$f":"'A. Population Info'!D33","v":"T.S.ZN00630.TXF.T00001/0.TX"},{"$f":"'A. Population Info'!F33","v":"HV"},{"$f":"'A. Population Info'!E33","v":3783.3779856536999},{"$f":"INDEX('C. PoC Summary Stats & Para'!$E$25:$G$25,,MATCH($C33,'C. PoC Summary Stats & Para'!$E$18:$G$18,0))","v":0},0,{"$f":"INDEX('C. PoC Summary Stats & Para'!$E$14:$G$14,,MATCH($C33,'C. PoC Summary Stats & Para'!$E$18:$G$18,0))","v":40.728999999999999},0]
[{"$f":"'A. Population Info'!A34","v":1000314337},{"$f":"'A. Population Info'!D34","v":"T.S.ZN00711.TXF.T00002/0.TX"},{"$f":"'A. Population Info'!F34","v":"HV"},{"$f":"'A. Population Info'!E34","v":2594.8912715780002},{"$f":"INDEX('C. PoC Summary Stats & Para'!$E$25:$G$25,,MATCH($C34,'C. PoC Summary Stats & Para'!$E$18:$G$18,0))","v":0},0,{"$f":"INDEX('C. PoC Summary Stats & Para'!$E$14:$G$14,,MATCH($C34,'C. PoC Summary Stats & Para'!$E$18:$G$18,0))","v":40.728999999999999},0]
[{"$f":"'A. Population Info'!A35","v":1000314363},{"$f":"'A. Population Info'!D35","v":"T.S.ZN00630.TXF.T00006/0.TX"},{"$f":"'A. Population Info'!F35","v":"HV"},{"$f":"'A. Population Info'!E35","v":3783.3779856536999},{"$f":"INDEX('C. PoC Summary Stats & Para'!$E$25:$G$25,,MATCH($C35,'C. PoC Summary Stats & Para'!$E$18:$G$18,0))","v":0},0,{"$f":"INDEX('C. PoC Summary Stats & Para'!$E$14:$G$14,,MATCH($C35,'C. PoC Summary Stats & Para'!$E$18:$G$18,0))","v":40.728999999999999},0]
[{"$f":"'A. Population Info'!A36","v":1000318066},{"$f":"'A. Population Info'!D36","v":"T.S.ZN00711.TXF.T00001/0.TX"},{"$f":"'A. Population Info'!F36","v":"HV"},{"$f":"'A. Population Info'!E36","v":2594.8912715780002},{"$f":"INDEX('C. PoC Summary Stats & Para'!$E$25:$G$25,,MATCH($C36,'C. PoC Summary Stats & Para'!$E$18:$G$18,0))","v":0},0,{"$f":"INDEX('C. PoC Summary Stats & Para'!$E$14:$G$14,,MATCH($C36,'C. PoC Summary Stats & Para'!$E$18:$G$18,0))","v":40.728999999999999},0]
[{"$f":"'A. Population Info'!A37","v":1000318448},{"$f":"'A. Population Info'!D37","v":"T.S.ZN00072.TXF.T00004/0.TX"},{"$f":"'A. Population Info'!F37","v":"HV"},{"$f":"'A. Population Info'!E37","v":832.8119210809275},{"$f":"INDEX('C. PoC Summary Stats & Para'!$E$25:$G$25,,MATCH($C37,'C. PoC Summary Stats & Para'!$E$18:$G$18,0))","v":0},0,{"$f":"INDEX('C. PoC Summary Stats & Para'!$E$14:$G$14,,MATCH($C37,'C. PoC Summary Stats & Para'!$E$18:$G$18,0))","v":40.728999999999999},0]
[{"$f":"'A. Population Info'!A38","v":1000318505},{"$f":"'A. Population Info'!D38","v":"T.S.S001586.TXF.T9A"},{"$f":"'A. Population Info'!F38","v":"HV"},{"$f":"'A. Population Info'!E38","v":{"$error":"#N/A"}},{"$f":"INDEX('C. PoC Summary Stats & Para'!$E$25:$G$25,,MATCH($C38,'C. PoC Summary Stats & Para'!$E$18:$G$18,0))","v":0},"",{"$f":"INDEX('C. PoC Summary Stats & Para'!$E$14:$G$14,,MATCH($C38,'C. PoC Summary Stats & Para'!$E$18:$G$18,0))","v":40.728999999999999},0]
[{"$f":"'A. Population Info'!A39","v":1000318801},{"$f":"'A. Population Info'!D39","v":"T.S.ZN00340.TXF.T00004/0.TX"},{"$f":"'A. Population Info'!F39","v":"HV"},{"$f":"'A. Population Info'!E39","v":2518.7494200280998},{"$f":"INDEX('C. PoC Summary Stats & Para'!$E$25:$G$25,,MATCH($C39,'C. PoC Summary Stats & Para'!$E$18:$G$18,0))","v":0},0,{"$f":"INDEX('C. PoC Summary Stats & Para'!$E$14:$G$14,,MATCH($C39,'C. PoC Summary Stats & Para'!$E$18:$G$18,0))","v":40.728999999999999},0]
[{"$f":"'A. Population Info'!A40","v":1000318835},{"$f":"'A. Population Info'!D40","v":"T.S.ZN00874.TXF.T00001/0.TX"},{"$f":"'A. Population Info'!F40","v":"HV"},{"$f":"'A. Population Info'!E40","v":4322.3815876307999},{"$f":"INDEX('C. PoC Summary Stats & Para'!$E$25:$G$25,,MATCH($C40,'C. PoC Summary Stats & Para'!$E$18:$G$18,0))","v":0},0,{"$f":"INDEX('C. PoC Summary Stats & Para'!$E$14:$G$14,,MATCH($C40,'C. PoC Summary Stats & Para'!$E$18:$G$18,0))","v":40.728999999999999},0]
[{"$f":"'A. Population Info'!A41","v":1000318894},{"$f":"'A. Population Info'!D41","v":"T.S.ZN12580.TXF.T00001/0.TX"},{"$f":"'A. Population Info'!F41","v":"HV"},{"$f":"'A. Population Info'!E41","v":4411.0695171611997},{"$f":"INDEX('C. PoC Summary Stats & Para'!$E$25:$G$25,,MATCH($C41,'C. PoC Summary Stats & Para'!$E$18:$G$18,0))","v":0},0,{"$f":"INDEX('C. PoC Summary Stats & Para'!$E$14:$G$14,,MATCH($C41,'C. PoC Summary Stats & Para'!$E$18:$G$18,0))","v":40.728999999999999},0]
[{"$f":"'A. Population Info'!A42","v":1000318924},{"$f":"'A. Population Info'!D42","v":"T.S.ZN01648.TXF.T00001/0.TX"},{"$f":"'A. Population Info'!F42","v":"HV"},{"$f":"'A. Population Info'!E42","v":3133.4595018029268},{"$f":"INDEX('C. PoC Summary Stats & Para'!$E$25:$G$25,,MATCH($C42,'C. PoC Summary Stats & Para'!$E$18:$G$18,0))","v":0},0,{"$f":"INDEX('C. PoC Summary Stats & Para'!$E$14:$G$14,,MATCH($C42,'C. PoC Summary Stats & Para'!$E$18:$G$18,0))","v":40.728999999999999},0]
[{"$f":"'A. Population Info'!A43","v":1000318955},{"$f":"'A. Population Info'!D43","v":"T.S.ZN01648.TXF.T00003/0.TX"},{"$f":"'A. Population Info'!F43","v":"HV"},{"$f":"'A. Population Info'!E43","v":3133.4595018029268},{"$f":"INDEX('C. PoC Summary Stats & Para'!$E$25:$G$25,,MATCH($C43,'C. PoC Summary Stats & Para'!$E$18:$G$18,0))","v":0},0,{"$f":"INDEX('C. PoC Summary Stats & Para'!$E$14:$G$14,,MATCH($C43,'C. PoC Summary Stats & Para'!$E$18:$G$18,0))","v":40.728999999999999},0]
[{"$f":"'A. Population Info'!A44","v":1000318984},{"$f":"'A. Population Info'!D44","v":"T.S.ZN09037.TXF.T00001/0.TX"},{"$f":"'A. Population Info'!F44","v":"HV"},{"$f":"'A. Population Info'!E44","v":4752.3407788584664},{"$f":"INDEX('C. PoC Summary Stats & Para'!$E$25:$G$25,,MATCH($C44,'C. PoC Summary Stats & Para'!$E$18:$G$18,0))","v":0},0,{"$f":"INDEX('C. PoC Summary Stats & Para'!$E$14:$G$14,,MATCH($C44,'C. PoC Summary Stats & Para'!$E$18:$G$18,0))","v":40.728999999999999},0]
[{"$f":"'A. Population Info'!A45","v":1000323012},{"$f":"'A. Population Info'!D45","v":"T.S.ZN01648.TXF.T00002/0.TX"},{"$f":"'A. Population Info'!F45","v":"HV"},{"$f":"'A. Population Info'!E45","v":3133.4595018029268},{"$f":"INDEX('C. PoC Summary Stats & Para'!$E$25:$G$25,,MATCH($C45,'C. PoC Summary Stats & Para'!$E$18:$G$18,0))","v":0},0,{"$f":"INDEX('C. PoC Summary Stats & Para'!$E$14:$G$14,,MATCH($C45,'C. PoC Summary Stats & Para'!$E$18:$G$18,0))","v":40.728999999999999},0]
[{"$f":"'A. Population Info'!A46","v":1000323042},{"$f":"'A. Population Info'!D46","v":"T.S.ZN00630.TXF.T00002/0.TX"},{"$f":"'A. Population Info'!F46","v":"HV"},{"$f":"'A. Population Info'!E46","v":3783.3779856536999},{"$f":"INDEX('C. PoC Summary Stats & Para'!$E$25:$G$25,,MATCH($C46,'C. PoC Summary Stats & Para'!$E$18:$G$18,0))","v":0},0,{"$f":"INDEX('C. PoC Summary Stats & Para'!$E$14:$G$14,,MATCH($C46,'C. PoC Summary Stats & Para'!$E$18:$G$18,0))","v":40.728999999999999},0]
[{"$f":"'A. Population Info'!A47","v":1000323073},{"$f":"'A. Population Info'!D47","v":"T.S.ZN09252.TXF.T00001/0.TX"},{"$f":"'A. Population Info'!F47","v":"HV"},{"$f":"'A. Population Info'!E47","v":3602.2828915092668},{"$f":"INDEX('C. PoC Summary Stats & Para'!$E$25:$G$25,,MATCH($C47,'C. PoC Summary Stats & Para'!$E$18:$G$18,0))","v":0},0,{"$f":"INDEX('C. PoC Summary Stats & Para'!$E$14:$G$14,,MATCH($C47,'C. PoC Summary Stats & Para'!$E$18:$G$18,0))","v":40.728999999999999},0]
[{"$f":"'A. Population Info'!A48","v":1000323106},{"$f":"'A. Population Info'!D48","v":"T.S.ZN00398.TXF.T00004/0.TX"},{"$f":"'A. Population Info'!F48","v":"HV"},{"$f":"'A. Population Info'!E48","v":4869.5002904485},{"$f":"INDEX('C. PoC Summary Stats & Para'!$E$25:$G$25,,MATCH($C48,'C. PoC Summary Stats & Para'!$E$18:$G$18,0))","v":0},0,{"$f":"INDEX('C. PoC Summary Stats & Para'!$E$14:$G$14,,MATCH($C48,'C. PoC Summary Stats & Para'!$E$18:$G$18,0))","v":40.728999999999999},0]
[{"$f":"'A. Population Info'!A49","v":1000323136},{"$f":"'A. Population Info'!D49","v":"T.S.ZN01673.TXF.T00002/0.TX"},{"$f":"'A. Population Info'!F49","v":"HV"},{"$f":"'A. Population Info'!E49","v":4859.8442495904337},{"$f":"INDEX('C. PoC Summary Stats & Para'!$E$25:$G$25,,MATCH($C49,'C. PoC Summary Stats & Para'!$E$18:$G$18,0))","v":0},0,{"$f":"INDEX('C. PoC Summary Stats & Para'!$E$14:$G$14,,MATCH($C49,'C. PoC Summary Stats & Para'!$E$18:$G$18,0))","v":40.728999999999999},0]
[{"$f":"'A. Population Info'!A50","v":1000323169},{"$f":"'A. Population Info'!D50","v":"T.S.ZN00167.TXF.T00004/0.TX"},{"$f":"'A. Population Info'!F50","v":"HV"},{"$f":"'A. Population Info'!E50","v":3172.2359036724333},{"$f":"INDEX('C. PoC Summary Stats & Para'!$E$25:$G$25,,MATCH($C50,'C. PoC Summary Stats & Para'!$E$18:$G$18,0))","v":0},0,{"$f":"INDEX('C. PoC Summary Stats & Para'!$E$14:$G$14,,MATCH($C50,'C. PoC Summary Stats & Para'!$E$18:$G$18,0))","v":40.728999999999999},0]
[{"$f":"'A. Population Info'!A51","v":1000323229},{"$f":"'A. Population Info'!D51","v":"T.S.ZN01673.TXF.T00001/0.TX"},{"$f":"'A. Population Info'!F51","v":"HV"},{"$f":"'A. Population Info'!E51","v":4859.8442495904337},{"$f":"INDEX('C. PoC Summary Stats & Para'!$E$25:$G$25,,MATCH($C51,'C. PoC Summary Stats & Para'!$E$18:$G$18,0))","v":0},0,{"$f":"INDEX('C. PoC Summary Stats & Para'!$E$14:$G$14,,MATCH($C51,'C. PoC Summary Stats & Para'!$E$18:$G$18,0))","v":40.728999999999999},0]
[{"$f":"'A. Population Info'!A52","v":1000323262},{"$f":"'A. Population Info'!D52","v":"T.S.ZN00874.TXF.T00003/0.TX"},{"$f":"'A. Population Info'!F52","v":"HV"},{"$f":"'A. Population Info'!E52","v":4322.3815876307999},{"$f":"INDEX('C. PoC Summary Stats & Para'!$E$25:$G$25,,MATCH($C52,'C. PoC Summary Stats & Para'!$E$18:$G$18,0))","v":0},0,{"$f":"INDEX('C. PoC Summary Stats & Para'!$E$14:$G$14,,MATCH($C52,'C. PoC Summary Stats & Para'!$E$18:$G$18,0))","v":40.728999999999999},0]
[{"$f":"'A. Population Info'!A53","v":1000323289},{"$f":"'A. Population Info'!D53","v":"T.S.ZN09037.TXF.T00002/0.TX"},{"$f":"'A. Population Info'!F53","v":"HV"},{"$f":"'A. Population Info'!E53","v":4752.3407788584664},{"$f":"INDEX('C. PoC Summary Stats & Para'!$E$25:$G$25,,MATCH($C53,'C. PoC Summary Stats & Para'!$E$18:$G$18,0))","v":0},0,{"$f":"INDEX('C. PoC Summary Stats & Para'!$E$14:$G$14,,MATCH($C53,'C. PoC Summary Stats & Para'!$E$18:$G$18,0))","v":40.728999999999999},0]
[{"$f":"'A. Population Info'!A54","v":1000323320},{"$f":"'A. Population Info'!D54","v":"T.S.ZN00167.TXF.T00003/0.TX"},{"$f":"'A. Population Info'!F54","v":"HV"},{"$f":"'A. Population Info'!E54","v":3172.2359036724333},{"$f":"INDEX('C. PoC Summary Stats & Para'!$E$25:$G$25,,MATCH($C54,'C. PoC Summary Stats & Para'!$E$18:$G$18,0))","v":0},0,{"$f":"INDEX('C. PoC Summary Stats & Para'!$E$14:$G$14,,MATCH($C54,'C. PoC Summary Stats & Para'!$E$18:$G$18,0))","v":40.728999999999999},0]
[{"$f":"'A. Population Info'!A55","v":1000323378},{"$f":"'A. Population Info'!D55","v":"T.S.ZN01600.TXF.T0000D/0.TX"},{"$f":"'A. Population Info'!F55","v":"HV"},{"$f":"'A. Population Info'!E55","v":2603.0781252926499},{"$f":"INDEX('C. PoC Summary Stats & Para'!$E$25:$G$25,,MATCH($C55,'C. PoC Summary Stats & Para'!$E$18:$G$18,0))","v":0},0,{"$f":"INDEX('C. PoC Summary Stats & Para'!$E$14:$G$14,,MATCH($C55,'C. PoC Summary Stats & Para'!$E$18:$G$18,0))","v":40.728999999999999},0]
[{"$f":"'A. Population Info'!A56","v":1000323408},{"$f":"'A. Population Info'!D56","v":"T.S.ZN01600.TXF.T0000E/0.TX"},{"$f":"'A. Population Info'!F56","v":"HV"},{"$f":"'A. Population Info'!E56","v":2603.0781252926499},{"$f":"INDEX('C. PoC Summary Stats & Para'!$E$25:$G$25,,MATCH($C56,'C. PoC Summary Stats & Para'!$E$18:$G$18,0))","v":0},0,{"$f":"INDEX('C. PoC Summary Stats & Para'!$E$14:$G$14,,MATCH($C56,'C. PoC Summary Stats & Para'!$E$18:$G$18,0))","v":40.728999999999999},0]
[{"$f":"'A. Population Info'!A57","v":1000323435},{"$f":"'A. Population Info'!D57","v":"T.S.ZN01600.TXF.T0000A/0.TX"},{"$f":"'A. Population Info'!F57","v":"HV"},{"$f":"'A. Population Info'!E57","v":2603.0781252926499},{"$f":"INDEX('C. PoC Summary Stats & Para'!$E$25:$G$25,,MATCH($C57,'C. PoC Summary Stats & Para'!$E$18:$G$18,0))","v":0},0,{"$f":"INDEX('C. PoC Summary Stats & Para'!$E$14:$G$14,,MATCH($C57,'C. PoC Summary Stats & Para'!$E$18:$G$18,0))","v":40.728999999999999},0]
[{"$f":"'A. Population Info'!A58","v":1000323556},{"$f":"'A. Population Info'!D58","v":"T.S.ZN01068.TXF.T00001/0.TX"},{"$f":"'A. Population Info'!F58","v":"HV"},{"$f":"'A. Population Info'!E58","v":3039.30688697609},{"$f":"INDEX('C. PoC Summary Stats & Para'!$E$25:$G$25,,MATCH($C58,'C. PoC Summary Stats & Para'!$E$18:$G$18,0))","v":0},0,{"$f":"INDEX('C. PoC Summary Stats & Para'!$E$14:$G$14,,MATCH($C58,'C. PoC Summary Stats & Para'!$E$18:$G$18,0))","v":40.728999999999999},0]
[{"$f":"'A. Population Info'!A59","v":1000323583},{"$f":"'A. Population Info'!D59","v":"T.S.ZN01600.TXF.T0000C/0.TX"},{"$f":"'A. Population Info'!F59","v":"HV"},{"$f":"'A. Population Info'!E59","v":2603.0781252926499},{"$f":"INDEX('C. PoC Summary Stats & Para'!$E$25:$G$25,,MATCH($C59,'C. PoC Summary Stats & Para'!$E$18:$G$18,0))","v":0},0,{"$f":"INDEX('C. PoC Summary Stats & Para'!$E$14:$G$14,,MATCH($C59,'C. PoC Summary Stats & Para'!$E$18:$G$18,0))","v":40.728999999999999},0]
[{"$f":"'A. Population Info'!A60","v":1000323796},{"$f":"'A. Population Info'!D60","v":"T.S.ZN09037.TXF.T00003/0.TX"},{"$f":"'A. Population Info'!F60","v":"HV"},{"$f":"'A. Population Info'!E60","v":4752.3407788584664},{"$f":"INDEX('C. PoC Summary Stats & Para'!$E$25:$G$25,,MATCH($C60,'C. PoC Summary Stats & Para'!$E$18:$G$18,0))","v":0},0,{"$f":"INDEX('C. PoC Summary Stats & Para'!$E$14:$G$14,,MATCH($C60,'C. PoC Summary Stats & Para'!$E$18:$G$18,0))","v":40.728999999999999},0]
[{"$f":"'A. Population Info'!A61","v":1000323882},{"$f":"'A. Population Info'!D61","v":"T.S.ZN01788.TXF.T00003/0.TX"},{"$f":"'A. Population Info'!F61","v":"HV"},{"$f":"'A. Population Info'!E61","v":5386.2084692045801},{"$f":"INDEX('C. PoC Summary Stats & Para'!$E$25:$G$25,,MATCH($C61,'C. PoC Summary Stats & Para'!$E$18:$G$18,0))","v":0},0,{"$f":"INDEX('C. PoC Summary Stats & Para'!$E$14:$G$14,,MATCH($C61,'C. PoC Summary Stats & Para'!$E$18:$G$18,0))","v":40.728999999999999},0]
[{"$f":"'A. Population Info'!A62","v":1000323941},{"$f":"'A. Population Info'!D62","v":"T.S.ZN01788.TXF.T00002/0.TX"},{"$f":"'A. Population Info'!F62","v":"HV"},{"$f":"'A. Population Info'!E62","v":5386.2084692045801},{"$f":"INDEX('C. PoC Summary Stats & Para'!$E$25:$G$25,,MATCH($C62,'C. PoC Summary Stats & Para'!$E$18:$G$18,0))","v":0},0,{"$f":"INDEX('C. PoC Summary Stats & Para'!$E$14:$G$14,,MATCH($C62,'C. PoC Summary Stats & Para'!$E$18:$G$18,0))","v":40.728999999999999},0]
[{"$f":"'A. Population Info'!A63","v":1000323998},{"$f":"'A. Population Info'!D63","v":"T.S.ZN00711.TXF.T00004/0.TX"},{"$f":"'A. Population Info'!F63","v":"HV"},{"$f":"'A. Population Info'!E63","v":2594.8912715780002},{"$f":"INDEX('C. PoC Summary Stats & Para'!$E$25:$G$25,,MATCH($C63,'C. PoC Summary Stats & Para'!$E$18:$G$18,0))","v":0},0,{"$f":"INDEX('C. PoC Summary Stats & Para'!$E$14:$G$14,,MATCH($C63,'C. PoC Summary Stats & Para'!$E$18:$G$18,0))","v":40.728999999999999},0]
[{"$f":"'A. Population Info'!A64","v":1000328026},{"$f":"'A. Population Info'!D64","v":"T.S.ZN01788.TXF.T00001/0.TX"},{"$f":"'A. Population Info'!F64","v":"HV"},{"$f":"'A. Population Info'!E64","v":5386.2084692045801},{"$f":"INDEX('C. PoC Summary Stats & Para'!$E$25:$G$25,,MATCH($C64,'C. PoC Summary Stats & Para'!$E$18:$G$18,0))","v":0},0,{"$f":"INDEX('C. PoC Summary Stats & Para'!$E$14:$G$14,,MATCH($C64,'C. PoC Summary Stats & Para'!$E$18:$G$18,0))","v":40.728999999999999},0]
[{"$f":"'A. Population Info'!A65","v":1000328057},{"$f":"'A. Population Info'!D65","v":"T.S.ZN01850.TXF.T00001/0.TX"},{"$f":"'A. Population Info'!F65","v":"HV"},{"$f":"'A. Population Info'!E65","v":3427.5138350680336},{"$f":"INDEX('C. PoC Summary Stats & Para'!$E$25:$G$25,,MATCH($C65,'C. PoC Summary Stats & Para'!$E$18:$G$18,0))","v":0},0,{"$f":"INDEX('C. PoC Summary Stats & Para'!$E$14:$G$14,,MATCH($C65,'C. PoC Summary Stats & Para'!$E$18:$G$18,0))","v":40.728999999999999},0]
[{"$f":"'A. Population Info'!A66","v":1000328085},{"$f":"'A. Population Info'!D66","v":"T.S.ZN12580.TXF.T00003/0.TX"},{"$f":"'A. Population Info'!F66","v":"HV"},{"$f":"'A. Population Info'!E66","v":4411.0695171611997},{"$f":"INDEX('C. PoC Summary Stats & Para'!$E$25:$G$25,,MATCH($C66,'C. PoC Summary Stats & Para'!$E$18:$G$18,0))","v":0},0,{"$f":"INDEX('C. PoC Summary Stats & Para'!$E$14:$G$14,,MATCH($C66,'C. PoC Summary Stats & Para'!$E$18:$G$18,0))","v":40.728999999999999},0]
[{"$f":"'A. Population Info'!A67","v":1000328116},{"$f":"'A. Population Info'!D67","v":"T.S.ZN01850.TXF.T00011/0.TX"},{"$f":"'A. Population Info'!F67","v":"HV"},{"$f":"'A. Population Info'!E67","v":3427.5138350680336},{"$f":"INDEX('C. PoC Summary Stats & Para'!$E$25:$G$25,,MATCH($C67,'C. PoC Summary Stats & Para'!$E$18:$G$18,0))","v":0},0,{"$f":"INDEX('C. PoC Summary Stats & Para'!$E$14:$G$14,,MATCH($C67,'C. PoC Summary Stats & Para'!$E$18:$G$18,0))","v":40.728999999999999},0]
[{"$f":"'A. Population Info'!A68","v":1000328175},{"$f":"'A. Population Info'!D68","v":"T.S.ZN00195.TXF.T00001/0.TX"},{"$f":"'A. Population Info'!F68","v":"HV"},{"$f":"'A. Population Info'!E68","v":4347.7996584712337},{"$f":"INDEX('C. PoC Summary Stats & Para'!$E$25:$G$25,,MATCH($C68,'C. PoC Summary Stats & Para'!$E$18:$G$18,0))","v":0},0,{"$f":"INDEX('C. PoC Summary Stats & Para'!$E$14:$G$14,,MATCH($C68,'C. PoC Summary Stats & Para'!$E$18:$G$18,0))","v":40.728999999999999},0]
[{"$f":"'A. Population Info'!A69","v":1000328208},{"$f":"'A. Population Info'!D69","v":"T.S.ZN01600.TXF.T0000F/0.TX"},{"$f":"'A. Population Info'!F69","v":"HV"},{"$f":"'A. Population Info'!E69","v":2603.0781252926499},{"$f":"INDEX('C. PoC Summary Stats & Para'!$E$25:$G$25,,MATCH($C69,'C. PoC Summary Stats & Para'!$E$18:$G$18,0))","v":0},0,{"$f":"INDEX('C. PoC Summary Stats & Para'!$E$14:$G$14,,MATCH($C69,'C. PoC Summary Stats & Para'!$E$18:$G$18,0))","v":40.728999999999999},0]
[{"$f":"'A. Population Info'!A70","v":1000328413},{"$f":"'A. Population Info'!D70","v":"T.S.ZN01600.TXF.T0000B/0.TX"},{"$f":"'A. Population Info'!F70","v":"HV"},{"$f":"'A. Population Info'!E70","v":2603.0781252926499},{"$f":"INDEX('C. PoC Summary Stats & Para'!$E$25:$G$25,,MATCH($C70,'C. PoC Summary Stats & Para'!$E$18:$G$18,0))","v":0},0,{"$f":"INDEX('C. PoC Summary Stats & Para'!$E$14:$G$14,,MATCH($C70,'C. PoC Summary Stats & Para'!$E$18:$G$18,0))","v":40.728999999999999},{"$f":"IFERROR(F70*G70,$L$4*G70)","v":0}]
[{"$f":"'A. Population Info'!A71","v":1000328506},{"$f":"'A. Population Info'!D71","v":"T.S.ZN02310.TXF.T00013/0.TX"},{"$f":"'A. Population Info'!F71","v":"HV"},{"$f":"'A. Population Info'!E71","v":3083.3183316724999},{"$f":"INDEX('C. PoC Summary Stats & Para'!$E$25:$G$25,,MATCH($C71,'C. PoC Summary Stats & Para'!$E$18:$G$18,0))","v":0},{"$f":"IFERROR(D71*E71,\"\")","v":0},{"$f":"INDEX('C. PoC Summary Stats & Para'!$E$14:$G$14,,MATCH($C71,'C. PoC Summary Stats & Para'!$E$18:$G$18,0))","v":40.728999999999999},0]
[{"$f":"'A. Population Info'!A72","v":1000328533},{"$f":"'A. Population Info'!D72","v":"T.S.ZN02310.TXF.T00002/0.TX"},{"$f":"'A. Population Info'!F72","v":"HV"},{"$f":"'A. Population Info'!E72","v":3083.3183316724999},{"$f":"INDEX('C. PoC Summary Stats & Para'!$E$25:$G$25,,MATCH($C72,'C. PoC Summary Stats & Para'!$E$18:$G$18,0))","v":0},0,{"$f":"INDEX('C. PoC Summary Stats & Para'!$E$14:$G$14,,MATCH($C72,'C. PoC Summary Stats & Para'!$E$18:$G$18,0))","v":40.728999999999999},0]
[{"$f":"'A. Population Info'!A73","v":1000328564},{"$f":"'A. Population Info'!D73","v":"T.S.ZN02310.TXF.T00001/0.TX"},{"$f":"'A. Population Info'!F73","v":"HV"},{"$f":"'A. Population Info'!E73","v":3083.3183316724999},{"$f":"INDEX('C. PoC Summary Stats & Para'!$E$25:$G$25,,MATCH($C73,'C. PoC Summary Stats & Para'!$E$18:$G$18,0))","v":0},0,{"$f":"INDEX('C. PoC Summary Stats & Para'!$E$14:$G$14,,MATCH($C73,'C. PoC Summary Stats & Para'!$E$18:$G$18,0))","v":40.728999999999999},0]
[{"$f":"'A. Population Info'!A74","v":1000328590},{"$f":"'A. Population Info'!D74","v":"T.S.ZN00398.TXF.T00002/0.TX"},{"$f":"'A. Population Info'!F74","v":"HV"},{"$f":"'A. Population Info'!E74","v":4869.5002904485},{"$f":"INDEX('C. PoC Summary Stats & Para'!$E$25:$G$25,,MATCH($C74,'C. PoC Summary Stats & Para'!$E$18:$G$18,0))","v":0},0,{"$f":"INDEX('C. PoC Summary Stats & Para'!$E$14:$G$14,,MATCH($C74,'C. PoC Summary Stats & Para'!$E$18:$G$18,0))","v":40.728999999999999},0]
[{"$f":"'A. Population Info'!A75","v":1000328647},{"$f":"'A. Population Info'!D75","v":"T.S.ZN00398.TXF.T00003/0.TX"},{"$f":"'A. Population Info'!F75","v":"HV"},{"$f":"'A. Population Info'!E75","v":4869.5002904485},{"$f":"INDEX('C. PoC Summary Stats & Para'!$E$25:$G$25,,MATCH($C75,'C. PoC Summary Stats & Para'!$E$18:$G$18,0))","v":0},0,{"$f":"INDEX('C. PoC Summary Stats & Para'!$E$14:$G$14,,MATCH($C75,'C. PoC Summary Stats & Para'!$E$18:$G$18,0))","v":40.728999999999999},0]
[{"$f":"'A. Population Info'!A76","v":1000328676},{"$f":"'A. Population Info'!D76","v":"T.S.ZN00874.TXF.T00002/0.TX"},{"$f":"'A. Population Info'!F76","v":"HV"},{"$f":"'A. Population Info'!E76","v":4322.3815876307999},{"$f":"INDEX('C. PoC Summary Stats & Para'!$E$25:$G$25,,MATCH($C76,'C. PoC Summary Stats & Para'!$E$18:$G$18,0))","v":0},0,{"$f":"INDEX('C. PoC Summary Stats & Para'!$E$14:$G$14,,MATCH($C76,'C. PoC Summary Stats & Para'!$E$18:$G$18,0))","v":40.728999999999999},0]
[{"$f":"'A. Population Info'!A77","v":1000328766},{"$f":"'A. Population Info'!D77","v":"T.S.ZN00398.TXF.T00001/0.TX"},{"$f":"'A. Population Info'!F77","v":"HV"},{"$f":"'A. Population Info'!E77","v":4869.5002904485},{"$f":"INDEX('C. PoC Summary Stats & Para'!$E$25:$G$25,,MATCH($C77,'C. PoC Summary Stats & Para'!$E$18:$G$18,0))","v":0},0,{"$f":"INDEX('C. PoC Summary Stats & Para'!$E$14:$G$14,,MATCH($C77,'C. PoC Summary Stats & Para'!$E$18:$G$18,0))","v":40.728999999999999},0]
[{"$f":"'A. Population Info'!A78","v":1000328796},{"$f":"'A. Population Info'!D78","v":"T.S.ZN01673.TXF.T00003/0.TX"},{"$f":"'A. Population Info'!F78","v":"HV"},{"$f":"'A. Population Info'!E78","v":4859.8442495904337},{"$f":"INDEX('C. PoC Summary Stats & Para'!$E$25:$G$25,,MATCH($C78,'C. PoC Summary Stats & Para'!$E$18:$G$18,0))","v":0},0,{"$f":"INDEX('C. PoC Summary Stats & Para'!$E$14:$G$14,,MATCH($C78,'C. PoC Summary Stats & Para'!$E$18:$G$18,0))","v":40.728999999999999},0]
[{"$f":"'A. Population Info'!A79","v":1000328825},{"$f":"'A. Population Info'!D79","v":"T.S.ZN00874.TXF.T00004/0.TX"},{"$f":"'A. Population Info'!F79","v":"HV"},{"$f":"'A. Population Info'!E79","v":4322.3815876307999},{"$f":"INDEX('C. PoC Summary Stats & Para'!$E$25:$G$25,,MATCH($C79,'C. PoC Summary Stats & Para'!$E$18:$G$18,0))","v":0},0,{"$f":"INDEX('C. PoC Summary Stats & Para'!$E$14:$G$14,,MATCH($C79,'C. PoC Summary Stats & Para'!$E$18:$G$18,0))","v":40.728999999999999},0]
[{"$f":"'A. Population Info'!A80","v":1000328852},{"$f":"'A. Population Info'!D80","v":"T.S.ZN00690.TXF.T00002/0.TX"},{"$f":"'A. Population Info'!F80","v":"HV"},{"$f":"'A. Population Info'!E80","v":6983.8712946800497},{"$f":"INDEX('C. PoC Summary Stats & Para'!$E$25:$G$25,,MATCH($C80,'C. PoC Summary Stats & Para'!$E$18:$G$18,0))","v":0},0,{"$f":"INDEX('C. PoC Summary Stats & Para'!$E$14:$G$14,,MATCH($C80,'C. PoC Summary Stats & Para'!$E$18:$G$18,0))","v":40.728999999999999},0]
[{"$f":"'A. Population Info'!A81","v":1000328910},{"$f":"'A. Population Info'!D81","v":"T.S.ZN03154.TXF.T00001/0.TX"},{"$f":"'A. Population Info'!F81","v":"HV"},{"$f":"'A. Population Info'!E81","v":5485.3269493792332},{"$f":"INDEX('C. PoC Summary Stats & Para'!$E$25:$G$25,,MATCH($C81,'C. PoC Summary Stats & Para'!$E$18:$G$18,0))","v":0},0,{"$f":"INDEX('C. PoC Summary Stats & Para'!$E$14:$G$14,,MATCH($C81,'C. PoC Summary Stats & Para'!$E$18:$G$18,0))","v":40.728999999999999},0]
[{"$f":"'A. Population Info'!A82","v":1000332025},{"$f":"'A. Population Info'!D82","v":"T.S.ZN00630.TXF.T00003/0.TX"},{"$f":"'A. Population Info'!F82","v":"HV"},{"$f":"'A. Population Info'!E82","v":3783.3779856536999},{"$f":"INDEX('C. PoC Summary Stats & Para'!$E$25:$G$25,,MATCH($C82,'C. PoC Summary Stats & Para'!$E$18:$G$18,0))","v":0},0,{"$f":"INDEX('C. PoC Summary Stats & Para'!$E$14:$G$14,,MATCH($C82,'C. PoC Summary Stats & Para'!$E$18:$G$18,0))","v":40.728999999999999},0]
[{"$f":"'A. Population Info'!A83","v":1000332304},{"$f":"'A. Population Info'!D83","v":"T.S.ZN00129.TXF.T00002/0.TX"},{"$f":"'A. Population Info'!F83","v":"HV"},{"$f":"'A. Population Info'!E83","v":7148.3022660534998},{"$f":"INDEX('C. PoC Summary Stats & Para'!$E$25:$G$25,,MATCH($C83,'C. PoC Summary Stats & Para'!$E$18:$G$18,0))","v":0},0,{"$f":"INDEX('C. PoC Summary Stats & Para'!$E$14:$G$14,,MATCH($C83,'C. PoC Summary Stats & Para'!$E$18:$G$18,0))","v":40.728999999999999},0]
[{"$f":"'A. Population Info'!A84","v":1000332390},{"$f":"'A. Population Info'!D84","v":"T.S.ZN02635.TXF.T00002/0.TX"},{"$f":"'A. Population Info'!F84","v":"HV"},{"$f":"'A. Population Info'!E84","v":8791.0735296048333},{"$f":"INDEX('C. PoC Summary Stats & Para'!$E$25:$G$25,,MATCH($C84,'C. PoC Summary Stats & Para'!$E$18:$G$18,0))","v":0},0,{"$f":"INDEX('C. PoC Summary Stats & Para'!$E$14:$G$14,,MATCH($C84,'C. PoC Summary Stats & Para'!$E$18:$G$18,0))","v":40.728999999999999},0]
[{"$f":"'A. Population Info'!A85","v":1000332419},{"$f":"'A. Population Info'!D85","v":"T.S.ZN01788.TXF.T00004/0.TX"},{"$f":"'A. Population Info'!F85","v":"HV"},{"$f":"'A. Population Info'!E85","v":5386.2084692045801},{"$f":"INDEX('C. PoC Summary Stats & Para'!$E$25:$G$25,,MATCH($C85,'C. PoC Summary Stats & Para'!$E$18:$G$18,0))","v":0},0,{"$f":"INDEX('C. PoC Summary Stats & Para'!$E$14:$G$14,,MATCH($C85,'C. PoC Summary Stats & Para'!$E$18:$G$18,0))","v":40.728999999999999},0]
[{"$f":"'A. Population Info'!A86","v":1000332450},{"$f":"'A. Population Info'!D86","v":"T.S.ZN12580.TXF.T00002/0.TX"},{"$f":"'A. Population Info'!F86","v":"HV"},{"$f":"'A. Population Info'!E86","v":4411.0695171611997},{"$f":"INDEX('C. PoC Summary Stats & Para'!$E$25:$G$25,,MATCH($C86,'C. PoC Summary Stats & Para'!$E$18:$G$18,0))","v":0},0,{"$f":"INDEX('C. PoC Summary Stats & Para'!$E$14:$G$14,,MATCH($C86,'C. PoC Summary Stats & Para'!$E$18:$G$18,0))","v":40.728999999999999},0]
[{"$f":"'A. Population Info'!A87","v":1000332539},{"$f":"'A. Population Info'!D87","v":"T.S.ZN00262.TXF.T00001/0.TX"},{"$f":"'A. Population Info'!F87","v":"HV"},{"$f":"'A. Population Info'!E87","v":8881.8500580132659},{"$f":"INDEX('C. PoC Summary Stats & Para'!$E$25:$G$25,,MATCH($C87,'C. PoC Summary Stats & Para'!$E$18:$G$18,0))","v":0},0,{"$f":"INDEX('C. PoC Summary Stats & Para'!$E$14:$G$14,,MATCH($C87,'C. PoC Summary Stats & Para'!$E$18:$G$18,0))","v":40.728999999999999},0]
[{"$f":"'A. Population Info'!A88","v":1000332568},{"$f":"'A. Population Info'!D88","v":"T.S.ZN00901.TXF.T00004/0.TX"},{"$f":"'A. Population Info'!F88","v":"HV"},{"$f":"'A. Population Info'!E88","v":4410.7855744422004},{"$f":"INDEX('C. PoC Summary Stats & Para'!$E$25:$G$25,,MATCH($C88,'C. PoC Summary Stats & Para'!$E$18:$G$18,0))","v":0},0,{"$f":"INDEX('C. PoC Summary Stats & Para'!$E$14:$G$14,,MATCH($C88,'C. PoC Summary Stats & Para'!$E$18:$G$18,0))","v":40.728999999999999},0]
[{"$f":"'A. Population Info'!A89","v":1000332625},{"$f":"'A. Population Info'!D89","v":"T.S.ZN02835.TXF.T00001/0.TX"},{"$f":"'A. Population Info'!F89","v":"HV"},{"$f":"'A. Population Info'!E89","v":9334.2878786163492},{"$f":"INDEX('C. PoC Summary Stats & Para'!$E$25:$G$25,,MATCH($C89,'C. PoC Summary Stats & Para'!$E$18:$G$18,0))","v":0},0,{"$f":"INDEX('C. PoC Summary Stats & Para'!$E$14:$G$14,,MATCH($C89,'C. PoC Summary Stats & Para'!$E$18:$G$18,0))","v":40.728999999999999},0]
[{"$f":"'A. Population Info'!A90","v":1000332657},{"$f":"'A. Population Info'!D90","v":"T.S.ZN01285.TXF.T00002/0.TX"},{"$f":"'A. Population Info'!F90","v":"HV"},{"$f":"'A. Population Info'!E90","v":7059.447825921925},{"$f":"INDEX('C. PoC Summary Stats & Para'!$E$25:$G$25,,MATCH($C90,'C. PoC Summary Stats & Para'!$E$18:$G$18,0))","v":0},0,{"$f":"INDEX('C. PoC Summary Stats & Para'!$E$14:$G$14,,MATCH($C90,'C. PoC Summary Stats & Para'!$E$18:$G$18,0))","v":40.728999999999999},0]
[{"$f":"'A. Population Info'!A91","v":1000332778},{"$f":"'A. Population Info'!D91","v":"T.S.ZN00195.TXF.T00004/0.TX"},{"$f":"'A. Population Info'!F91","v":"HV"},{"$f":"'A. Population Info'!E91","v":4347.7996584712337},{"$f":"INDEX('C. PoC Summary Stats & Para'!$E$25:$G$25,,MATCH($C91,'C. PoC Summary Stats & Para'!$E$18:$G$18,0))","v":0},0,{"$f":"INDEX('C. PoC Summary Stats & Para'!$E$14:$G$14,,MATCH($C91,'C. PoC Summary Stats & Para'!$E$18:$G$18,0))","v":40.728999999999999},0]
[{"$f":"'A. Population Info'!A92","v":1000332841},{"$f":"'A. Population Info'!D92","v":"T.S.ZN09550.TXF.T00003/0.TX"},{"$f":"'A. Population Info'!F92","v":"HV"},{"$f":"'A. Population Info'!E92","v":4295.4266139541669},{"$f":"INDEX('C. PoC Summary Stats & Para'!$E$25:$G$25,,MATCH($C92,'C. PoC Summary Stats & Para'!$E$18:$G$18,0))","v":0},0,{"$f":"INDEX('C. PoC Summary Stats & Para'!$E$14:$G$14,,MATCH($C92,'C. PoC Summary Stats & Para'!$E$18:$G$18,0))","v":40.728999999999999},0]
[{"$f":"'A. Population Info'!A93","v":1000332870},{"$f":"'A. Population Info'!D93","v":"T.S.ZN09550.TXF.T00001/0.TX"},{"$f":"'A. Population Info'!F93","v":"HV"},{"$f":"'A. Population Info'!E93","v":4295.4266139541669},{"$f":"INDEX('C. PoC Summary Stats & Para'!$E$25:$G$25,,MATCH($C93,'C. PoC Summary Stats & Para'!$E$18:$G$18,0))","v":0},0,{"$f":"INDEX('C. PoC Summary Stats & Para'!$E$14:$G$14,,MATCH($C93,'C. PoC Summary Stats & Para'!$E$18:$G$18,0))","v":40.728999999999999},0]
[{"$f":"'A. Population Info'!A94","v":1000332902},{"$f":"'A. Population Info'!D94","v":"T.S.ZN01287.TXF.T00003/0.TX"},{"$f":"'A. Population Info'!F94","v":"HV"},{"$f":"'A. Population Info'!E94","v":8034.11968564365},{"$f":"INDEX('C. PoC Summary Stats & Para'!$E$25:$G$25,,MATCH($C94,'C. PoC Summary Stats & Para'!$E$18:$G$18,0))","v":0},0,{"$f":"INDEX('C. PoC Summary Stats & Para'!$E$14:$G$14,,MATCH($C94,'C. PoC Summary Stats & Para'!$E$18:$G$18,0))","v":40.728999999999999},0]
[{"$f":"'A. Population Info'!A95","v":1000332930},{"$f":"'A. Population Info'!D95","v":"T.S.ZN02310.TXF.T00012/0.TX"},{"$f":"'A. Population Info'!F95","v":"HV"},{"$f":"'A. Population Info'!E95","v":3083.3183316724999},{"$f":"INDEX('C. PoC Summary Stats & Para'!$E$25:$G$25,,MATCH($C95,'C. PoC Summary Stats & Para'!$E$18:$G$18,0))","v":0},0,{"$f":"INDEX('C. PoC Summary Stats & Para'!$E$14:$G$14,,MATCH($C95,'C. PoC Summary Stats & Para'!$E$18:$G$18,0))","v":40.728999999999999},0]
[{"$f":"'A. Population Info'!A96","v":1000336019},{"$f":"'A. Population Info'!D96","v":"T.S.ZN03425.TXF.T00003/0.TX"},{"$f":"'A. Population Info'!F96","v":"HV"},{"$f":"'A. Population Info'!E96","v":7567.3200140371246},{"$f":"INDEX('C. PoC Summary Stats & Para'!$E$25:$G$25,,MATCH($C96,'C. PoC Summary Stats & Para'!$E$18:$G$18,0))","v":0},0,{"$f":"INDEX('C. PoC Summary Stats & Para'!$E$14:$G$14,,MATCH($C96,'C. PoC Summary Stats & Para'!$E$18:$G$18,0))","v":40.728999999999999},0]
[{"$f":"'A. Population Info'!A97","v":1000336048},{"$f":"'A. Population Info'!D97","v":"T.S.ZN02466.TXF.T00001/0.TX"},{"$f":"'A. Population Info'!F97","v":"HV"},{"$f":"'A. Population Info'!E97","v":10801.897449472899},{"$f":"INDEX('C. PoC Summary Stats & Para'!$E$25:$G$25,,MATCH($C97,'C. PoC Summary Stats & Para'!$E$18:$G$18,0))","v":0},0,{"$f":"INDEX('C. PoC Summary Stats & Para'!$E$14:$G$14,,MATCH($C97,'C. PoC Summary Stats & Para'!$E$18:$G$18,0))","v":40.728999999999999},0]
[{"$f":"'A. Population Info'!A98","v":1000336078},{"$f":"'A. Population Info'!D98","v":"T.S.ZN00901.TXF.T00003/0.TX"},{"$f":"'A. Population Info'!F98","v":"HV"},{"$f":"'A. Population Info'!E98","v":4410.7855744422004},{"$f":"INDEX('C. PoC Summary Stats & Para'!$E$25:$G$25,,MATCH($C98,'C. PoC Summary Stats & Para'!$E$18:$G$18,0))","v":0},0,{"$f":"INDEX('C. PoC Summary Stats & Para'!$E$14:$G$14,,MATCH($C98,'C. PoC Summary Stats & Para'!$E$18:$G$18,0))","v":40.728999999999999},0]
[{"$f":"'A. Population Info'!A99","v":1000336106},{"$f":"'A. Population Info'!D99","v":"T.S.ZN00901.TXF.T00002/0.TX"},{"$f":"'A. Population Info'!F99","v":"HV"},{"$f":"'A. Population Info'!E99","v":4410.7855744422004},{"$f":"INDEX('C. PoC Summary Stats & Para'!$E$25:$G$25,,MATCH($C99,'C. PoC Summary Stats & Para'!$E$18:$G$18,0))","v":0},0,{"$f":"INDEX('C. PoC Summary Stats & Para'!$E$14:$G$14,,MATCH($C99,'C. PoC Summary Stats & Para'!$E$18:$G$18,0))","v":40.728999999999999},0]
[{"$f":"'A. Population Info'!A100","v":1000336136},{"$f":"'A. Population Info'!D100","v":"T.S.ZN00262.TXF.T00003/0.TX"},{"$f":"'A. Population Info'!F100","v":"HV"},{"$f":"'A. Population Info'!E100","v":8881.8500580132659},{"$f":"INDEX('C. PoC Summary Stats & Para'!$E$25:$G$25,,MATCH($C100,'C. PoC Summary Stats & Para'!$E$18:$G$18,0))","v":0},0,{"$f":"INDEX('C. PoC Summary Stats & Para'!$E$14:$G$14,,MATCH($C100,'C. PoC Summary Stats & Para'!$E$18:$G$18,0))","v":40.728999999999999},0]
[{"$f":"'A. Population Info'!A101","v":1000336165},{"$f":"'A. Population Info'!D101","v":"T.S.ZN02466.TXF.T00004/0.TX"},{"$f":"'A. Population Info'!F101","v":"HV"},{"$f":"'A. Population Info'!E101","v":10801.897449472899},{"$f":"INDEX('C. PoC Summary Stats & Para'!$E$25:$G$25,,MATCH($C101,'C. PoC Summary Stats & Para'!$E$18:$G$18,0))","v":0},0,{"$f":"INDEX('C. PoC Summary Stats & Para'!$E$14:$G$14,,MATCH($C101,'C. PoC Summary Stats & Para'!$E$18:$G$18,0))","v":40.728999999999999},0]
[{"$f":"'A. Population Info'!A102","v":1000336194},{"$f":"'A. Population Info'!D102","v":"T.S.ZN03155.TXF.T00001/0.TX"},{"$f":"'A. Population Info'!F102","v":"HV"},{"$f":"'A. Population Info'!E102","v":7818.88494399705},{"$f":"INDEX('C. PoC Summary Stats & Para'!$E$25:$G$25,,MATCH($C102,'C. PoC Summary Stats & Para'!$E$18:$G$18,0))","v":0},0,{"$f":"INDEX('C. PoC Summary Stats & Para'!$E$14:$G$14,,MATCH($C102,'C. PoC Summary Stats & Para'!$E$18:$G$18,0))","v":40.728999999999999},0]
[{"$f":"'A. Population Info'!A103","v":1000336225},{"$f":"'A. Population Info'!D103","v":"T.S.ZN03155.TXF.T00003/0.TX"},{"$f":"'A. Population Info'!F103","v":"HV"},{"$f":"'A. Population Info'!E103","v":7818.88494399705},{"$f":"INDEX('C. PoC Summary Stats & Para'!$E$25:$G$25,,MATCH($C103,'C. PoC Summary Stats & Para'!$E$18:$G$18,0))","v":0},0,{"$f":"INDEX('C. PoC Summary Stats & Para'!$E$14:$G$14,,MATCH($C103,'C. PoC Summary Stats & Para'!$E$18:$G$18,0))","v":40.728999999999999},0]
[{"$f":"'A. Population Info'!A104","v":1000336313},{"$f":"'A. Population Info'!D104","v":"T.S.ZN02466.TXF.T00002/0.TX"},{"$f":"'A. Population Info'!F104","v":"HV"},{"$f":"'A. Population Info'!E104","v":10801.897449472899},{"$f":"INDEX('C. PoC Summary Stats & Para'!$E$25:$G$25,,MATCH($C104,'C. PoC Summary Stats & Para'!$E$18:$G$18,0))","v":0},0,{"$f":"INDEX('C. PoC Summary Stats & Para'!$E$14:$G$14,,MATCH($C104,'C. PoC Summary Stats & Para'!$E$18:$G$18,0))","v":40.728999999999999},0]
[{"$f":"'A. Population Info'!A105","v":1000336348},{"$f":"'A. Population Info'!D105","v":"T.S.ZN00180.TXF.T00003/0.TX"},{"$f":"'A. Population Info'!F105","v":"HV"},{"$f":"'A. Population Info'!E105","v":7827.3052115617502},{"$f":"INDEX('C. PoC Summary Stats & Para'!$E$25:$G$25,,MATCH($C105,'C. PoC Summary Stats & Para'!$E$18:$G$18,0))","v":0},0,{"$f":"INDEX('C. PoC Summary Stats & Para'!$E$14:$G$14,,MATCH($C105,'C. PoC Summary Stats & Para'!$E$18:$G$18,0))","v":40.728999999999999},0]
[{"$f":"'A. Population Info'!A106","v":1000336383},{"$f":"'A. Population Info'!D106","v":"T.S.ZN03425.TXF.T00001/0.TX"},{"$f":"'A. Population Info'!F106","v":"HV"},{"$f":"'A. Population Info'!E106","v":7567.3200140371246},{"$f":"INDEX('C. PoC Summary Stats & Para'!$E$25:$G$25,,MATCH($C106,'C. PoC Summary Stats & Para'!$E$18:$G$18,0))","v":0},0,{"$f":"INDEX('C. PoC Summary Stats & Para'!$E$14:$G$14,,MATCH($C106,'C. PoC Summary Stats & Para'!$E$18:$G$18,0))","v":40.728999999999999},0]
[{"$f":"'A. Population Info'!A107","v":1000336450},{"$f":"'A. Population Info'!D107","v":"T.S.ZN03154.TXF.T00003/0.TX"},{"$f":"'A. Population Info'!F107","v":"HV"},{"$f":"'A. Population Info'!E107","v":5485.3269493792332},{"$f":"INDEX('C. PoC Summary Stats & Para'!$E$25:$G$25,,MATCH($C107,'C. PoC Summary Stats & Para'!$E$18:$G$18,0))","v":0},0,{"$f":"INDEX('C. PoC Summary Stats & Para'!$E$14:$G$14,,MATCH($C107,'C. PoC Summary Stats & Para'!$E$18:$G$18,0))","v":40.728999999999999},0]
[{"$f":"'A. Population Info'!A108","v":1000336477},{"$f":"'A. Population Info'!D108","v":"T.S.ZN00690.TXF.T00001/0.TX"},{"$f":"'A. Population Info'!F108","v":"HV"},{"$f":"'A. Population Info'!E108","v":6983.8712946800497},{"$f":"INDEX('C. PoC Summary Stats & Para'!$E$25:$G$25,,MATCH($C108,'C. PoC Summary Stats & Para'!$E$18:$G$18,0))","v":0},0,{"$f":"INDEX('C. PoC Summary Stats & Para'!$E$14:$G$14,,MATCH($C108,'C. PoC Summary Stats & Para'!$E$18:$G$18,0))","v":40.728999999999999},0]
[{"$f":"'A. Population Info'!A109","v":1000336508},{"$f":"'A. Population Info'!D109","v":"T.S.ZN03472.TXF.T00003/0.TX"},{"$f":"'A. Population Info'!F109","v":"HV"},{"$f":"'A. Population Info'!E109","v":5069.5917147683003},{"$f":"INDEX('C. PoC Summary Stats & Para'!$E$25:$G$25,,MATCH($C109,'C. PoC Summary Stats & Para'!$E$18:$G$18,0))","v":0},0,{"$f":"INDEX('C. PoC Summary Stats & Para'!$E$14:$G$14,,MATCH($C109,'C. PoC Summary Stats & Para'!$E$18:$G$18,0))","v":40.728999999999999},0]
[{"$f":"'A. Population Info'!A110","v":1000336536},{"$f":"'A. Population Info'!D110","v":"T.S.ZN03472.TXF.T00001/0.TX"},{"$f":"'A. Population Info'!F110","v":"HV"},{"$f":"'A. Population Info'!E110","v":5069.5917147683003},{"$f":"INDEX('C. PoC Summary Stats & Para'!$E$25:$G$25,,MATCH($C110,'C. PoC Summary Stats & Para'!$E$18:$G$18,0))","v":0},0,{"$f":"INDEX('C. PoC Summary Stats & Para'!$E$14:$G$14,,MATCH($C110,'C. PoC Summary Stats & Para'!$E$18:$G$18,0))","v":40.728999999999999},0]
[{"$f":"'A. Population Info'!A111","v":1000336594},{"$f":"'A. Population Info'!D111","v":"T.S.ZN00180.TXF.T00001/0.TX"},{"$f":"'A. Population Info'!F111","v":"HV"},{"$f":"'A. Population Info'!E111","v":7827.3052115617502},{"$f":"INDEX('C. PoC Summary Stats & Para'!$E$25:$G$25,,MATCH($C111,'C. PoC Summary Stats & Para'!$E$18:$G$18,0))","v":0},0,{"$f":"INDEX('C. PoC Summary Stats & Para'!$E$14:$G$14,,MATCH($C111,'C. PoC Summary Stats & Para'!$E$18:$G$18,0))","v":40.728999999999999},0]
[{"$f":"'A. Population Info'!A112","v":1000336623},{"$f":"'A. Population Info'!D112","v":"T.S.ZN15001.TXF.T00001/0.TX"},{"$f":"'A. Population Info'!F112","v":"HV"},{"$f":"'A. Population Info'!E112","v":6114.4151861479331},{"$f":"INDEX('C. PoC Summary Stats & Para'!$E$25:$G$25,,MATCH($C112,'C. PoC Summary Stats & Para'!$E$18:$G$18,0))","v":0},0,{"$f":"INDEX('C. PoC Summary Stats & Para'!$E$14:$G$14,,MATCH($C112,'C. PoC Summary Stats & Para'!$E$18:$G$18,0))","v":40.728999999999999},0]
[{"$f":"'A. Population Info'!A113","v":1000336651},{"$f":"'A. Population Info'!D113","v":"T.S.ZN03155.TXF.T00004/0.TX"},{"$f":"'A. Population Info'!F113","v":"HV"},{"$f":"'A. Population Info'!E113","v":7818.88494399705},{"$f":"INDEX('C. PoC Summary Stats & Para'!$E$25:$G$25,,MATCH($C113,'C. PoC Summary Stats & Para'!$E$18:$G$18,0))","v":0},0,{"$f":"INDEX('C. PoC Summary Stats & Para'!$E$14:$G$14,,MATCH($C113,'C. PoC Summary Stats & Para'!$E$18:$G$18,0))","v":40.728999999999999},0]
[{"$f":"'A. Population Info'!A114","v":1000336679},{"$f":"'A. Population Info'!D114","v":"T.S.ZN02400.TXF.T00001/0.TX"},{"$f":"'A. Population Info'!F114","v":"HV"},{"$f":"'A. Population Info'!E114","v":3172.9798906690503},{"$f":"INDEX('C. PoC Summary Stats & Para'!$E$25:$G$25,,MATCH($C114,'C. PoC Summary Stats & Para'!$E$18:$G$18,0))","v":0},0,{"$f":"INDEX('C. PoC Summary Stats & Para'!$E$14:$G$14,,MATCH($C114,'C. PoC Summary Stats & Para'!$E$18:$G$18,0))","v":40.728999999999999},0]
[{"$f":"'A. Population Info'!A115","v":1000336708},{"$f":"'A. Population Info'!D115","v":"T.S.ZN02400.TXF.T00002/0.TX"},{"$f":"'A. Population Info'!F115","v":"HV"},{"$f":"'A. Population Info'!E115","v":3172.9798906690503},{"$f":"INDEX('C. PoC Summary Stats & Para'!$E$25:$G$25,,MATCH($C115,'C. PoC Summary Stats & Para'!$E$18:$G$18,0))","v":0},0,{"$f":"INDEX('C. PoC Summary Stats & Para'!$E$14:$G$14,,MATCH($C115,'C. PoC Summary Stats & Para'!$E$18:$G$18,0))","v":40.728999999999999},0]
[{"$f":"'A. Population Info'!A116","v":1000336737},{"$f":"'A. Population Info'!D116","v":"T.S.ZN02568.TXF.T00002/0.TX"},{"$f":"'A. Population Info'!F116","v":"HV"},{"$f":"'A. Population Info'!E116","v":9522.4053547612748},{"$f":"INDEX('C. PoC Summary Stats & Para'!$E$25:$G$25,,MATCH($C116,'C. PoC Summary Stats & Para'!$E$18:$G$18,0))","v":0},0,{"$f":"INDEX('C. PoC Summary Stats & Para'!$E$14:$G$14,,MATCH($C116,'C. PoC Summary Stats & Para'!$E$18:$G$18,0))","v":40.728999999999999},0]
[{"$f":"'A. Population Info'!A117","v":1000336855},{"$f":"'A. Population Info'!D117","v":"T.S.ZN14891.TXF.T00002/0.TX"},{"$f":"'A. Population Info'!F117","v":"HV"},{"$f":"'A. Population Info'!E117","v":8268.0129029031505},{"$f":"INDEX('C. PoC Summary Stats & Para'!$E$25:$G$25,,MATCH($C117,'C. PoC Summary Stats & Para'!$E$18:$G$18,0))","v":0},0,{"$f":"INDEX('C. PoC Summary Stats & Para'!$E$14:$G$14,,MATCH($C117,'C. PoC Summary Stats & Para'!$E$18:$G$18,0))","v":40.728999999999999},0]
[{"$f":"'A. Population Info'!A118","v":1000336884},{"$f":"'A. Population Info'!D118","v":"T.S.ZN09700.TXF.T00003/0.TX"},{"$f":"'A. Population Info'!F118","v":"HV"},{"$f":"'A. Population Info'!E118","v":8385.6364774139001},{"$f":"INDEX('C. PoC Summary Stats & Para'!$E$25:$G$25,,MATCH($C118,'C. PoC Summary Stats & Para'!$E$18:$G$18,0))","v":0},0,{"$f":"INDEX('C. PoC Summary Stats & Para'!$E$14:$G$14,,MATCH($C118,'C. PoC Summary Stats & Para'!$E$18:$G$18,0))","v":40.728999999999999},0]
[{"$f":"'A. Population Info'!A119","v":1000336912},{"$f":"'A. Population Info'!D119","v":"T.S.ZN03922.TXF.T00001/0.TX"},{"$f":"'A. Population Info'!F119","v":"HV"},{"$f":"'A. Population Info'!E119","v":10988.14217128495},{"$f":"INDEX('C. PoC Summary Stats & Para'!$E$25:$G$25,,MATCH($C119,'C. PoC Summary Stats & Para'!$E$18:$G$18,0))","v":0},0,{"$f":"INDEX('C. PoC Summary Stats & Para'!$E$14:$G$14,,MATCH($C119,'C. PoC Summary Stats & Para'!$E$18:$G$18,0))","v":40.728999999999999},0]
[{"$f":"'A. Population Info'!A120","v":1000336942},{"$f":"'A. Population Info'!D120","v":"T.S.ZN03922.TXF.T00002/0.TX"},{"$f":"'A. Population Info'!F120","v":"HV"},{"$f":"'A. Population Info'!E120","v":10988.14217128495},{"$f":"INDEX('C. PoC Summary Stats & Para'!$E$25:$G$25,,MATCH($C120,'C. PoC Summary Stats & Para'!$E$18:$G$18,0))","v":0},0,{"$f":"INDEX('C. PoC Summary Stats & Para'!$E$14:$G$14,,MATCH($C120,'C. PoC Summary Stats & Para'!$E$18:$G$18,0))","v":40.728999999999999},0]
[{"$f":"'A. Population Info'!A121","v":1000336972},{"$f":"'A. Population Info'!D121","v":"T.S.ZN01287.TXF.T00001/0.TX"},{"$f":"'A. Population Info'!F121","v":"HV"},{"$f":"'A. Population Info'!E121","v":8034.11968564365},{"$f":"INDEX('C. PoC Summary Stats & Para'!$E$25:$G$25,,MATCH($C121,'C. PoC Summary Stats & Para'!$E$18:$G$18,0))","v":0},0,{"$f":"INDEX('C. PoC Summary Stats & Para'!$E$14:$G$14,,MATCH($C121,'C. PoC Summary Stats & Para'!$E$18:$G$18,0))","v":40.728999999999999},0]
[{"$f":"'A. Population Info'!A122","v":1000340000},{"$f":"'A. Population Info'!D122","v":"T.S.ZN00901.TXF.T00001/0.TX"},{"$f":"'A. Population Info'!F122","v":"HV"},{"$f":"'A. Population Info'!E122","v":4410.7855744422004},{"$f":"INDEX('C. PoC Summary Stats & Para'!$E$25:$G$25,,MATCH($C122,'C. PoC Summary Stats & Para'!$E$18:$G$18,0))","v":0},0,{"$f":"INDEX('C. PoC Summary Stats & Para'!$E$14:$G$14,,MATCH($C122,'C. PoC Summary Stats & Para'!$E$18:$G$18,0))","v":40.728999999999999},0]
[{"$f":"'A. Population Info'!A123","v":1000340030},{"$f":"'A. Population Info'!D123","v":"T.S.ZN02835.TXF.T00003/0.TX"},{"$f":"'A. Population Info'!F123","v":"HV"},{"$f":"'A. Population Info'!E123","v":9334.2878786163492},{"$f":"INDEX('C. PoC Summary Stats & Para'!$E$25:$G$25,,MATCH($C123,'C. PoC Summary Stats & Para'!$E$18:$G$18,0))","v":0},0,{"$f":"INDEX('C. PoC Summary Stats & Para'!$E$14:$G$14,,MATCH($C123,'C. PoC Summary Stats & Para'!$E$18:$G$18,0))","v":40.728999999999999},0]
[{"$f":"'A. Population Info'!A124","v":1000340058},{"$f":"'A. Population Info'!D124","v":"T.S.ZN03672.TXF.T00002/0.TX"},{"$f":"'A. Population Info'!F124","v":"HV"},{"$f":"'A. Population Info'!E124","v":8213.0559628606334},{"$f":"INDEX('C. PoC Summary Stats & Para'!$E$25:$G$25,,MATCH($C124,'C. PoC Summary Stats & Para'!$E$18:$G$18,0))","v":0},0,{"$f":"INDEX('C. PoC Summary Stats & Para'!$E$14:$G$14,,MATCH($C124,'C. PoC Summary Stats & Para'!$E$18:$G$18,0))","v":40.728999999999999},0]
[{"$f":"'A. Population Info'!A125","v":1000340087},{"$f":"'A. Population Info'!D125","v":"T.S.ZN04545.TXF.T00001/0.TX"},{"$f":"'A. Population Info'!F125","v":"HV"},{"$f":"'A. Population Info'!E125","v":10921.472141929067},{"$f":"INDEX('C. PoC Summary Stats & Para'!$E$25:$G$25,,MATCH($C125,'C. PoC Summary Stats & Para'!$E$18:$G$18,0))","v":0},0,{"$f":"INDEX('C. PoC Summary Stats & Para'!$E$14:$G$14,,MATCH($C125,'C. PoC Summary Stats & Para'!$E$18:$G$18,0))","v":40.728999999999999},0]
[{"$f":"'A. Population Info'!A126","v":1000340114},{"$f":"'A. Population Info'!D126","v":"T.S.ZN04545.TXF.T00002/0.TX"},{"$f":"'A. Population Info'!F126","v":"HV"},{"$f":"'A. Population Info'!E126","v":10921.472141929067},{"$f":"INDEX('C. PoC Summary Stats & Para'!$E$25:$G$25,,MATCH($C126,'C. PoC Summary Stats & Para'!$E$18:$G$18,0))","v":0},0,{"$f":"INDEX('C. PoC Summary Stats & Para'!$E$14:$G$14,,MATCH($C126,'C. PoC Summary Stats & Para'!$E$18:$G$18,0))","v":40.728999999999999},0]
[{"$f":"'A. Population Info'!A127","v":1000340144},{"$f":"'A. Population Info'!D127","v":"T.S.ZN03672.TXF.T00001/0.TX"},{"$f":"'A. Population Info'!F127","v":"HV"},{"$f":"'A. Population Info'!E127","v":8213.0559628606334},{"$f":"INDEX('C. PoC Summary Stats & Para'!$E$25:$G$25,,MATCH($C127,'C. PoC Summary Stats & Para'!$E$18:$G$18,0))","v":0},0,{"$f":"INDEX('C. PoC Summary Stats & Para'!$E$14:$G$14,,MATCH($C127,'C. PoC Summary Stats & Para'!$E$18:$G$18,0))","v":40.728999999999999},0]
[{"$f":"'A. Population Info'!A128","v":1000340385},{"$f":"'A. Population Info'!D128","v":"T.S.ZN10997.TXF.T00001/0.TX"},{"$f":"'A. Population Info'!F128","v":"HV"},{"$f":"'A. Population Info'!E128","v":3160.5263170970552},{"$f":"INDEX('C. PoC Summary Stats & Para'!$E$25:$G$25,,MATCH($C128,'C. PoC Summary Stats & Para'!$E$18:$G$18,0))","v":0},0,{"$f":"INDEX('C. PoC Summary Stats & Para'!$E$14:$G$14,,MATCH($C128,'C. PoC Summary Stats & Para'!$E$18:$G$18,0))","v":40.728999999999999},0]
[{"$f":"'A. Population Info'!A129","v":1000340415},{"$f":"'A. Population Info'!D129","v":"T.S.ZN10997.TXF.T00003/0.TX"},{"$f":"'A. Population Info'!F129","v":"HV"},{"$f":"'A. Population Info'!E129","v":3160.5263170970552},{"$f":"INDEX('C. PoC Summary Stats & Para'!$E$25:$G$25,,MATCH($C129,'C. PoC Summary Stats & Para'!$E$18:$G$18,0))","v":0},0,{"$f":"INDEX('C. PoC Summary Stats & Para'!$E$14:$G$14,,MATCH($C129,'C. PoC Summary Stats & Para'!$E$18:$G$18,0))","v":40.728999999999999},0]
[{"$f":"'A. Population Info'!A130","v":1000340445},{"$f":"'A. Population Info'!D130","v":"T.S.ZN10990.TXF.T00001/0.TX"},{"$f":"'A. Population Info'!F130","v":"HV"},{"$f":"'A. Population Info'!E130","v":3541.2902216150351},{"$f":"INDEX('C. PoC Summary Stats & Para'!$E$25:$G$25,,MATCH($C130,'C. PoC Summary Stats & Para'!$E$18:$G$18,0))","v":0},0,{"$f":"INDEX('C. PoC Summary Stats & Para'!$E$14:$G$14,,MATCH($C130,'C. PoC Summary Stats & Para'!$E$18:$G$18,0))","v":40.728999999999999},0]
[{"$f":"'A. Population Info'!A131","v":1000340477},{"$f":"'A. Population Info'!D131","v":"T.S.ZN10990.TXF.T00002/0.TX"},{"$f":"'A. Population Info'!F131","v":"HV"},{"$f":"'A. Population Info'!E131","v":3541.2902216150351},{"$f":"INDEX('C. PoC Summary Stats & Para'!$E$25:$G$25,,MATCH($C131,'C. PoC Summary Stats & Para'!$E$18:$G$18,0))","v":0},0,{"$f":"INDEX('C. PoC Summary Stats & Para'!$E$14:$G$14,,MATCH($C131,'C. PoC Summary Stats & Para'!$E$18:$G$18,0))","v":40.728999999999999},0]
[{"$f":"'A. Population Info'!A132","v":1000340534},{"$f":"'A. Population Info'!D132","v":"T.S.ZN10991.TXF.T00001/0.TX"},{"$f":"'A. Population Info'!F132","v":"HV"},{"$f":"'A. Population Info'!E132","v":2874.8966171107731},{"$f":"INDEX('C. PoC Summary Stats & Para'!$E$25:$G$25,,MATCH($C132,'C. PoC Summary Stats & Para'!$E$18:$G$18,0))","v":0},0,{"$f":"INDEX('C. PoC Summary Stats & Para'!$E$14:$G$14,,MATCH($C132,'C. PoC Summary Stats & Para'!$E$18:$G$18,0))","v":40.728999999999999},0]
[{"$f":"'A. Population Info'!A133","v":1000340565},{"$f":"'A. Population Info'!D133","v":"T.S.ZN10991.TXF.T00002/0.TX"},{"$f":"'A. Population Info'!F133","v":"HV"},{"$f":"'A. Population Info'!E133","v":2874.8966171107731},{"$f":"INDEX('C. PoC Summary Stats & Para'!$E$25:$G$25,,MATCH($C133,'C. PoC Summary Stats & Para'!$E$18:$G$18,0))","v":0},0,{"$f":"INDEX('C. PoC Summary Stats & Para'!$E$14:$G$14,,MATCH($C133,'C. PoC Summary Stats & Para'!$E$18:$G$18,0))","v":40.728999999999999},0]
[{"$f":"'A. Population Info'!A134","v":1000340593},{"$f":"'A. Population Info'!D134","v":"T.S.ZN10991.TXF.T00003/0.TX"},{"$f":"'A. Population Info'!F134","v":"HV"},{"$f":"'A. Population Info'!E134","v":2874.8966171107731},{"$f":"INDEX('C. PoC Summary Stats & Para'!$E$25:$G$25,,MATCH($C134,'C. PoC Summary Stats & Para'!$E$18:$G$18,0))","v":0},0,{"$f":"INDEX('C. PoC Summary Stats & Para'!$E$14:$G$14,,MATCH($C134,'C. PoC Summary Stats & Para'!$E$18:$G$18,0))","v":40.728999999999999},{"$f":"IFERROR(F134*G134,$L$4*G134)","v":0}]
[{"$f":"'A. Population Info'!A135","v":1000340623},{"$f":"'A. Population Info'!D135","v":"T.S.ZN05868.TXF.T00004/0.TX"},{"$f":"'A. Population Info'!F135","v":"HV"},{"$f":"'A. Population Info'!E135","v":7842.4780902971752},{"$f":"INDEX('C. PoC Summary Stats & Para'!$E$25:$G$25,,MATCH($C135,'C. PoC Summary Stats & Para'!$E$18:$G$18,0))","v":0},{"$f":"IFERROR(D135*E135,\"\")","v":0},{"$f":"INDEX('C. PoC Summary Stats & Para'!$E$14:$G$14,,MATCH($C135,'C. PoC Summary Stats & Para'!$E$18:$G$18,0))","v":40.728999999999999},0]
[{"$f":"'A. Population Info'!A136","v":1000340657},{"$f":"'A. Population Info'!D136","v":"T.S.ZN05868.TXF.T00001/0.TX"},{"$f":"'A. Population Info'!F136","v":"HV"},{"$f":"'A. Population Info'!E136","v":7842.4780902971752},{"$f":"INDEX('C. PoC Summary Stats & Para'!$E$25:$G$25,,MATCH($C136,'C. PoC Summary Stats & Para'!$E$18:$G$18,0))","v":0},0,{"$f":"INDEX('C. PoC Summary Stats & Para'!$E$14:$G$14,,MATCH($C136,'C. PoC Summary Stats & Para'!$E$18:$G$18,0))","v":40.728999999999999},0]
[{"$f":"'A. Population Info'!A137","v":1000340689},{"$f":"'A. Population Info'!D137","v":"T.S.ZN05868.TXF.T00002/0.TX"},{"$f":"'A. Population Info'!F137","v":"HV"},{"$f":"'A. Population Info'!E137","v":7842.4780902971752},{"$f":"INDEX('C. PoC Summary Stats & Para'!$E$25:$G$25,,MATCH($C137,'C. PoC Summary Stats & Para'!$E$18:$G$18,0))","v":0},0,{"$f":"INDEX('C. PoC Summary Stats & Para'!$E$14:$G$14,,MATCH($C137,'C. PoC Summary Stats & Para'!$E$18:$G$18,0))","v":40.728999999999999},0]
[{"$f":"'A. Population Info'!A138","v":1000340819},{"$f":"'A. Population Info'!D138","v":"T.S.ZN09118.TXF.T00001/0.TX"},{"$f":"'A. Population Info'!F138","v":"HV"},{"$f":"'A. Population Info'!E138","v":10849.1384706104},{"$f":"INDEX('C. PoC Summary Stats & Para'!$E$25:$G$25,,MATCH($C138,'C. PoC Summary Stats & Para'!$E$18:$G$18,0))","v":0},0,{"$f":"INDEX('C. PoC Summary Stats & Para'!$E$14:$G$14,,MATCH($C138,'C. PoC Summary Stats & Para'!$E$18:$G$18,0))","v":40.728999999999999},0]
[{"$f":"'A. Population Info'!A139","v":1000340854},{"$f":"'A. Population Info'!D139","v":"T.S.ZN00965.TXF.T00002/0.TX"},{"$f":"'A. Population Info'!F139","v":"HV"},{"$f":"'A. Population Info'!E139","v":10411.827225082101},{"$f":"INDEX('C. PoC Summary Stats & Para'!$E$25:$G$25,,MATCH($C139,'C. PoC Summary Stats & Para'!$E$18:$G$18,0))","v":0},0,{"$f":"INDEX('C. PoC Summary Stats & Para'!$E$14:$G$14,,MATCH($C139,'C. PoC Summary Stats & Para'!$E$18:$G$18,0))","v":40.728999999999999},0]
[{"$f":"'A. Population Info'!A140","v":1000340887},{"$f":"'A. Population Info'!D140","v":"T.S.ZN00965.TXF.T00001/0.TX"},{"$f":"'A. Population Info'!F140","v":"HV"},{"$f":"'A. Population Info'!E140","v":10411.827225082101},{"$f":"INDEX('C. PoC Summary Stats & Para'!$E$25:$G$25,,MATCH($C140,'C. PoC Summary Stats & Para'!$E$18:$G$18,0))","v":0},0,{"$f":"INDEX('C. PoC Summary Stats & Para'!$E$14:$G$14,,MATCH($C140,'C. PoC Summary Stats & Para'!$E$18:$G$18,0))","v":40.728999999999999},0]
[{"$f":"'A. Population Info'!A141","v":1000340972},{"$f":"'A. Population Info'!D141","v":"T.S.ZN09118.TXF.T00002/0.TX"},{"$f":"'A. Population Info'!F141","v":"HV"},{"$f":"'A. Population Info'!E141","v":10849.1384706104},{"$f":"INDEX('C. PoC Summary Stats & Para'!$E$25:$G$25,,MATCH($C141,'C. PoC Summary Stats & Para'!$E$18:$G$18,0))","v":0},0,{"$f":"INDEX('C. PoC Summary Stats & Para'!$E$14:$G$14,,MATCH($C141,'C. PoC Summary Stats & Para'!$E$18:$G$18,0))","v":40.728999999999999},0]
[{"$f":"'A. Population Info'!A142","v":1000344030},{"$f":"'A. Population Info'!D142","v":"T.S.ZN00188.TXF.T00002/0.TX"},{"$f":"'A. Population Info'!F142","v":"HV"},{"$f":"'A. Population Info'!E142","v":7495.1161749794001},{"$f":"INDEX('C. PoC Summary Stats & Para'!$E$25:$G$25,,MATCH($C142,'C. PoC Summary Stats & Para'!$E$18:$G$18,0))","v":0},0,{"$f":"INDEX('C. PoC Summary Stats & Para'!$E$14:$G$14,,MATCH($C142,'C. PoC Summary Stats & Para'!$E$18:$G$18,0))","v":40.728999999999999},0]
[{"$f":"'A. Population Info'!A143","v":1000344072},{"$f":"'A. Population Info'!D143","v":"T.S.ZN00262.TXF.T00004/0.TX"},{"$f":"'A. Population Info'!F143","v":"HV"},{"$f":"'A. Population Info'!E143","v":8881.8500580132659},{"$f":"INDEX('C. PoC Summary Stats & Para'!$E$25:$G$25,,MATCH($C143,'C. PoC Summary Stats & Para'!$E$18:$G$18,0))","v":0},0,{"$f":"INDEX('C. PoC Summary Stats & Para'!$E$14:$G$14,,MATCH($C143,'C. PoC Summary Stats & Para'!$E$18:$G$18,0))","v":40.728999999999999},0]
[{"$f":"'A. Population Info'!A144","v":1000344130},{"$f":"'A. Population Info'!D144","v":"T.S.ZN02835.TXF.T00002/0.TX"},{"$f":"'A. Population Info'!F144","v":"HV"},{"$f":"'A. Population Info'!E144","v":9334.2878786163492},{"$f":"INDEX('C. PoC Summary Stats & Para'!$E$25:$G$25,,MATCH($C144,'C. PoC Summary Stats & Para'!$E$18:$G$18,0))","v":0},0,{"$f":"INDEX('C. PoC Summary Stats & Para'!$E$14:$G$14,,MATCH($C144,'C. PoC Summary Stats & Para'!$E$18:$G$18,0))","v":40.728999999999999},0]
[{"$f":"'A. Population Info'!A145","v":1000344161},{"$f":"'A. Population Info'!D145","v":"T.S.ZN00188.TXF.T00004/0.TX"},{"$f":"'A. Population Info'!F145","v":"HV"},{"$f":"'A. Population Info'!E145","v":7495.1161749794001},{"$f":"INDEX('C. PoC Summary Stats & Para'!$E$25:$G$25,,MATCH($C145,'C. PoC Summary Stats & Para'!$E$18:$G$18,0))","v":0},0,{"$f":"INDEX('C. PoC Summary Stats & Para'!$E$14:$G$14,,MATCH($C145,'C. PoC Summary Stats & Para'!$E$18:$G$18,0))","v":40.728999999999999},0]
[{"$f":"'A. Population Info'!A146","v":1000344307},{"$f":"'A. Population Info'!D146","v":"T.S.ZN09900.TXF.T00002/0.TX"},{"$f":"'A. Population Info'!F146","v":"HV"},{"$f":"'A. Population Info'!E146","v":7327.8627083518004},{"$f":"INDEX('C. PoC Summary Stats & Para'!$E$25:$G$25,,MATCH($C146,'C. PoC Summary Stats & Para'!$E$18:$G$18,0))","v":0},0,{"$f":"INDEX('C. PoC Summary Stats & Para'!$E$14:$G$14,,MATCH($C146,'C. PoC Summary Stats & Para'!$E$18:$G$18,0))","v":40.728999999999999},0]
[{"$f":"'A. Population Info'!A147","v":1000344336},{"$f":"'A. Population Info'!D147","v":"T.S.ZN09900.TXF.T00001/0.TX"},{"$f":"'A. Population Info'!F147","v":"HV"},{"$f":"'A. Population Info'!E147","v":7327.8627083518004},{"$f":"INDEX('C. PoC Summary Stats & Para'!$E$25:$G$25,,MATCH($C147,'C. PoC Summary Stats & Para'!$E$18:$G$18,0))","v":0},0,{"$f":"INDEX('C. PoC Summary Stats & Para'!$E$14:$G$14,,MATCH($C147,'C. PoC Summary Stats & Para'!$E$18:$G$18,0))","v":40.728999999999999},0]
[{"$f":"'A. Population Info'!A148","v":1000344368},{"$f":"'A. Population Info'!D148","v":"T.S.ZN14460.TXF.T00002/0.TX"},{"$f":"'A. Population Info'!F148","v":"HV"},{"$f":"'A. Population Info'!E148","v":1611.4827402968051},{"$f":"INDEX('C. PoC Summary Stats & Para'!$E$25:$G$25,,MATCH($C148,'C. PoC Summary Stats & Para'!$E$18:$G$18,0))","v":0},0,{"$f":"INDEX('C. PoC Summary Stats & Para'!$E$14:$G$14,,MATCH($C148,'C. PoC Summary Stats & Para'!$E$18:$G$18,0))","v":40.728999999999999},0]
[{"$f":"'A. Population Info'!A149","v":1000344393},{"$f":"'A. Population Info'!D149","v":"T.S.ZN14460.TXF.T00001/0.TX"},{"$f":"'A. Population Info'!F149","v":"HV"},{"$f":"'A. Population Info'!E149","v":1611.4827402968051},{"$f":"INDEX('C. PoC Summary Stats & Para'!$E$25:$G$25,,MATCH($C149,'C. PoC Summary Stats & Para'!$E$18:$G$18,0))","v":0},0,{"$f":"INDEX('C. PoC Summary Stats & Para'!$E$14:$G$14,,MATCH($C149,'C. PoC Summary Stats & Para'!$E$18:$G$18,0))","v":40.728999999999999},0]
[{"$f":"'A. Population Info'!A150","v":1000344489},{"$f":"'A. Population Info'!D150","v":"T.S.ZN05868.TXF.T00003/0.TX"},{"$f":"'A. Population Info'!F150","v":"HV"},{"$f":"'A. Population Info'!E150","v":7842.4780902971752},{"$f":"INDEX('C. PoC Summary Stats & Para'!$E$25:$G$25,,MATCH($C150,'C. PoC Summary Stats & Para'!$E$18:$G$18,0))","v":0},0,{"$f":"INDEX('C. PoC Summary Stats & Para'!$E$14:$G$14,,MATCH($C150,'C. PoC Summary Stats & Para'!$E$18:$G$18,0))","v":40.728999999999999},0]
[{"$f":"'A. Population Info'!A151","v":1000344516},{"$f":"'A. Population Info'!D151","v":"T.S.ZN03425.TXF.T00002/0.TX"},{"$f":"'A. Population Info'!F151","v":"HV"},{"$f":"'A. Population Info'!E151","v":7567.3200140371246},{"$f":"INDEX('C. PoC Summary Stats & Para'!$E$25:$G$25,,MATCH($C151,'C. PoC Summary Stats & Para'!$E$18:$G$18,0))","v":0},0,{"$f":"INDEX('C. PoC Summary Stats & Para'!$E$14:$G$14,,MATCH($C151,'C. PoC Summary Stats & Para'!$E$18:$G$18,0))","v":40.728999999999999},0]
[{"$f":"'A. Population Info'!A152","v":1000344547},{"$f":"'A. Population Info'!D152","v":"T.S.ZN02466.TXF.T00003/0.TX"},{"$f":"'A. Population Info'!F152","v":"HV"},{"$f":"'A. Population Info'!E152","v":10801.897449472899},{"$f":"INDEX('C. PoC Summary Stats & Para'!$E$25:$G$25,,MATCH($C152,'C. PoC Summary Stats & Para'!$E$18:$G$18,0))","v":0},0,{"$f":"INDEX('C. PoC Summary Stats & Para'!$E$14:$G$14,,MATCH($C152,'C. PoC Summary Stats & Para'!$E$18:$G$18,0))","v":40.728999999999999},0]
[{"$f":"'A. Population Info'!A153","v":1000344577},{"$f":"'A. Population Info'!D153","v":"T.S.ZN09035.TXF.T00001/0.TX"},{"$f":"'A. Population Info'!F153","v":"HV"},{"$f":"'A. Population Info'!E153","v":5860.4556983316497},{"$f":"INDEX('C. PoC Summary Stats & Para'!$E$25:$G$25,,MATCH($C153,'C. PoC Summary Stats & Para'!$E$18:$G$18,0))","v":0},0,{"$f":"INDEX('C. PoC Summary Stats & Para'!$E$14:$G$14,,MATCH($C153,'C. PoC Summary Stats & Para'!$E$18:$G$18,0))","v":40.728999999999999},0]
[{"$f":"'A. Population Info'!A154","v":1000344603},{"$f":"'A. Population Info'!D154","v":"T.S.ZN09035.TXF.T00002/0.TX"},{"$f":"'A. Population Info'!F154","v":"HV"},{"$f":"'A. Population Info'!E154","v":5860.4556983316497},{"$f":"INDEX('C. PoC Summary Stats & Para'!$E$25:$G$25,,MATCH($C154,'C. PoC Summary Stats & Para'!$E$18:$G$18,0))","v":0},0,{"$f":"INDEX('C. PoC Summary Stats & Para'!$E$14:$G$14,,MATCH($C154,'C. PoC Summary Stats & Para'!$E$18:$G$18,0))","v":40.728999999999999},0]
[{"$f":"'A. Population Info'!A155","v":1000344840},{"$f":"'A. Population Info'!D155","v":"T.S.ZN02568.TXF.T00001/0.TX"},{"$f":"'A. Population Info'!F155","v":"HV"},{"$f":"'A. Population Info'!E155","v":9522.4053547612748},{"$f":"INDEX('C. PoC Summary Stats & Para'!$E$25:$G$25,,MATCH($C155,'C. PoC Summary Stats & Para'!$E$18:$G$18,0))","v":0},0,{"$f":"INDEX('C. PoC Summary Stats & Para'!$E$14:$G$14,,MATCH($C155,'C. PoC Summary Stats & Para'!$E$18:$G$18,0))","v":40.728999999999999},0]
[{"$f":"'A. Population Info'!A156","v":1000344872},{"$f":"'A. Population Info'!D156","v":"T.S.ZN14143.TXF.T00001/0.TX"},{"$f":"'A. Population Info'!F156","v":"HV"},{"$f":"'A. Population Info'!E156","v":4585.3608747142453},{"$f":"INDEX('C. PoC Summary Stats & Para'!$E$25:$G$25,,MATCH($C156,'C. PoC Summary Stats & Para'!$E$18:$G$18,0))","v":0},0,{"$f":"INDEX('C. PoC Summary Stats & Para'!$E$14:$G$14,,MATCH($C156,'C. PoC Summary Stats & Para'!$E$18:$G$18,0))","v":40.728999999999999},0]
[{"$f":"'A. Population Info'!A157","v":1000344903},{"$f":"'A. Population Info'!D157","v":"T.S.ZN14143.TXF.T00002/0.TX"},{"$f":"'A. Population Info'!F157","v":"HV"},{"$f":"'A. Population Info'!E157","v":4585.3608747142453},{"$f":"INDEX('C. PoC Summary Stats & Para'!$E$25:$G$25,,MATCH($C157,'C. PoC Summary Stats & Para'!$E$18:$G$18,0))","v":0},0,{"$f":"INDEX('C. PoC Summary Stats & Para'!$E$14:$G$14,,MATCH($C157,'C. PoC Summary Stats & Para'!$E$18:$G$18,0))","v":40.728999999999999},0]
[{"$f":"'A. Population Info'!A158","v":1000344995},{"$f":"'A. Population Info'!D158","v":"T.S.TS07150.TXF.T00003/0.TX"},{"$f":"'A. Population Info'!F158","v":"HV"},{"$f":"'A. Population Info'!E158","v":8371.0830748668322},{"$f":"INDEX('C. PoC Summary Stats & Para'!$E$25:$G$25,,MATCH($C158,'C. PoC Summary Stats & Para'!$E$18:$G$18,0))","v":0},0,{"$f":"INDEX('C. PoC Summary Stats & Para'!$E$14:$G$14,,MATCH($C158,'C. PoC Summary Stats & Para'!$E$18:$G$18,0))","v":40.728999999999999},0]
[{"$f":"'A. Population Info'!A159","v":1000349025},{"$f":"'A. Population Info'!D159","v":"T.S.ZN04545.TXF.T00003/0.TX"},{"$f":"'A. Population Info'!F159","v":"HV"},{"$f":"'A. Population Info'!E159","v":10921.472141929067},{"$f":"INDEX('C. PoC Summary Stats & Para'!$E$25:$G$25,,MATCH($C159,'C. PoC Summary Stats & Para'!$E$18:$G$18,0))","v":0},0,{"$f":"INDEX('C. PoC Summary Stats & Para'!$E$14:$G$14,,MATCH($C159,'C. PoC Summary Stats & Para'!$E$18:$G$18,0))","v":40.728999999999999},0]
[{"$f":"'A. Population Info'!A160","v":1000349053},{"$f":"'A. Population Info'!D160","v":"T.S.ZN01610.TXF.T00001/0.TX"},{"$f":"'A. Population Info'!F160","v":"HV"},{"$f":"'A. Population Info'!E160","v":10055.1070406284},{"$f":"INDEX('C. PoC Summary Stats & Para'!$E$25:$G$25,,MATCH($C160,'C. PoC Summary Stats & Para'!$E$18:$G$18,0))","v":0},0,{"$f":"INDEX('C. PoC Summary Stats & Para'!$E$14:$G$14,,MATCH($C160,'C. PoC Summary Stats & Para'!$E$18:$G$18,0))","v":40.728999999999999},0]
[{"$f":"'A. Population Info'!A161","v":1000349084},{"$f":"'A. Population Info'!D161","v":"T.S.ZN01610.TXF.T00002/0.TX"},{"$f":"'A. Population Info'!F161","v":"HV"},{"$f":"'A. Population Info'!E161","v":10055.1070406284},{"$f":"INDEX('C. PoC Summary Stats & Para'!$E$25:$G$25,,MATCH($C161,'C. PoC Summary Stats & Para'!$E$18:$G$18,0))","v":0},0,{"$f":"INDEX('C. PoC Summary Stats & Para'!$E$14:$G$14,,MATCH($C161,'C. PoC Summary Stats & Para'!$E$18:$G$18,0))","v":40.728999999999999},0]
[{"$f":"'A. Population Info'!A162","v":1000349112},{"$f":"'A. Population Info'!D162","v":"T.S.TS16600.TXF.T00004/0.TX"},{"$f":"'A. Population Info'!F162","v":"HV"},{"$f":"'A. Population Info'!E162","v":20854.448960514972},{"$f":"INDEX('C. PoC Summary Stats & Para'!$E$25:$G$25,,MATCH($C162,'C. PoC Summary Stats & Para'!$E$18:$G$18,0))","v":0},0,{"$f":"INDEX('C. PoC Summary Stats & Para'!$E$14:$G$14,,MATCH($C162,'C. PoC Summary Stats & Para'!$E$18:$G$18,0))","v":40.728999999999999},0]
[{"$f":"'A. Population Info'!A163","v":1000349143},{"$f":"'A. Population Info'!D163","v":"T.S.TS16600.TXF.T00002/0.TX"},{"$f":"'A. Population Info'!F163","v":"HV"},{"$f":"'A. Population Info'!E163","v":20854.448960514972},{"$f":"INDEX('C. PoC Summary Stats & Para'!$E$25:$G$25,,MATCH($C163,'C. PoC Summary Stats & Para'!$E$18:$G$18,0))","v":0},0,{"$f":"INDEX('C. PoC Summary Stats & Para'!$E$14:$G$14,,MATCH($C163,'C. PoC Summary Stats & Para'!$E$18:$G$18,0))","v":40.728999999999999},0]
[{"$f":"'A. Population Info'!A164","v":1000349169},{"$f":"'A. Population Info'!D164","v":"T.S.ZN07481.TXF.T00011/0.TX"},{"$f":"'A. Population Info'!F164","v":"HV"},{"$f":"'A. Population Info'!E164","v":15375.5013114467},{"$f":"INDEX('C. PoC Summary Stats & Para'!$E$25:$G$25,,MATCH($C164,'C. PoC Summary Stats & Para'!$E$18:$G$18,0))","v":0},0,{"$f":"INDEX('C. PoC Summary Stats & Para'!$E$14:$G$14,,MATCH($C164,'C. PoC Summary Stats & Para'!$E$18:$G$18,0))","v":40.728999999999999},0]
[{"$f":"'A. Population Info'!A165","v":1000349201},{"$f":"'A. Population Info'!D165","v":"T.S.ZN07481.TXF.T00012/0.TX"},{"$f":"'A. Population Info'!F165","v":"HV"},{"$f":"'A. Population Info'!E165","v":15375.5013114467},{"$f":"INDEX('C. PoC Summary Stats & Para'!$E$25:$G$25,,MATCH($C165,'C. PoC Summary Stats & Para'!$E$18:$G$18,0))","v":0},0,{"$f":"INDEX('C. PoC Summary Stats & Para'!$E$14:$G$14,,MATCH($C165,'C. PoC Summary Stats & Para'!$E$18:$G$18,0))","v":40.728999999999999},0]
[{"$f":"'A. Population Info'!A166","v":1000349231},{"$f":"'A. Population Info'!D166","v":"T.S.ZN00188.TXF.T00003/0.TX"},{"$f":"'A. Population Info'!F166","v":"HV"},{"$f":"'A. Population Info'!E166","v":7495.1161749794001},{"$f":"INDEX('C. PoC Summary Stats & Para'!$E$25:$G$25,,MATCH($C166,'C. PoC Summary Stats & Para'!$E$18:$G$18,0))","v":0},0,{"$f":"INDEX('C. PoC Summary Stats & Para'!$E$14:$G$14,,MATCH($C166,'C. PoC Summary Stats & Para'!$E$18:$G$18,0))","v":40.728999999999999},0]
[{"$f":"'A. Population Info'!A167","v":1000349259},{"$f":"'A. Population Info'!D167","v":"T.S.ZN00847.TXF.T00002/0.TX"},{"$f":"'A. Population Info'!F167","v":"HV"},{"$f":"'A. Population Info'!E167","v":11181.798898452065},{"$f":"INDEX('C. PoC Summary Stats & Para'!$E$25:$G$25,,MATCH($C167,'C. PoC Summary Stats & Para'!$E$18:$G$18,0))","v":0},0,{"$f":"INDEX('C. PoC Summary Stats & Para'!$E$14:$G$14,,MATCH($C167,'C. PoC Summary Stats & Para'!$E$18:$G$18,0))","v":40.728999999999999},0]
[{"$f":"'A. Population Info'!A168","v":1000349287},{"$f":"'A. Population Info'!D168","v":"T.S.ZN00847.TXF.T00003/0.TX"},{"$f":"'A. Population Info'!F168","v":"HV"},{"$f":"'A. Population Info'!E168","v":11181.798898452065},{"$f":"INDEX('C. PoC Summary Stats & Para'!$E$25:$G$25,,MATCH($C168,'C. PoC Summary Stats & Para'!$E$18:$G$18,0))","v":0},0,{"$f":"INDEX('C. PoC Summary Stats & Para'!$E$14:$G$14,,MATCH($C168,'C. PoC Summary Stats & Para'!$E$18:$G$18,0))","v":40.728999999999999},0]
[{"$f":"'A. Population Info'!A169","v":1000349315},{"$f":"'A. Population Info'!D169","v":"T.S.ZN00931.TXF.T00002/0.TX"},{"$f":"'A. Population Info'!F169","v":"HV"},{"$f":"'A. Population Info'!E169","v":5529.7032360865251},{"$f":"INDEX('C. PoC Summary Stats & Para'!$E$25:$G$25,,MATCH($C169,'C. PoC Summary Stats & Para'!$E$18:$G$18,0))","v":0},0,{"$f":"INDEX('C. PoC Summary Stats & Para'!$E$14:$G$14,,MATCH($C169,'C. PoC Summary Stats & Para'!$E$18:$G$18,0))","v":40.728999999999999},0]
[{"$f":"'A. Population Info'!A170","v":1000349346},{"$f":"'A. Population Info'!D170","v":"T.S.ZN00931.TXF.T00003/0.TX"},{"$f":"'A. Population Info'!F170","v":"HV"},{"$f":"'A. Population Info'!E170","v":5529.7032360865251},{"$f":"INDEX('C. PoC Summary Stats & Para'!$E$25:$G$25,,MATCH($C170,'C. PoC Summary Stats & Para'!$E$18:$G$18,0))","v":0},0,{"$f":"INDEX('C. PoC Summary Stats & Para'!$E$14:$G$14,,MATCH($C170,'C. PoC Summary Stats & Para'!$E$18:$G$18,0))","v":40.728999999999999},0]
[{"$f":"'A. Population Info'!A171","v":1000349374},{"$f":"'A. Population Info'!D171","v":"T.S.ZN00931.TXF.T00004/0.TX"},{"$f":"'A. Population Info'!F171","v":"HV"},{"$f":"'A. Population Info'!E171","v":5529.7032360865251},{"$f":"INDEX('C. PoC Summary Stats & Para'!$E$25:$G$25,,MATCH($C171,'C. PoC Summary Stats & Para'!$E$18:$G$18,0))","v":0},0,{"$f":"INDEX('C. PoC Summary Stats & Para'!$E$14:$G$14,,MATCH($C171,'C. PoC Summary Stats & Para'!$E$18:$G$18,0))","v":40.728999999999999},0]
[{"$f":"'A. Population Info'!A172","v":1000349403},{"$f":"'A. Population Info'!D172","v":"T.S.ZN00965.TXF.T00003/0.TX"},{"$f":"'A. Population Info'!F172","v":"HV"},{"$f":"'A. Population Info'!E172","v":10411.827225082101},{"$f":"INDEX('C. PoC Summary Stats & Para'!$E$25:$G$25,,MATCH($C172,'C. PoC Summary Stats & Para'!$E$18:$G$18,0))","v":0},0,{"$f":"INDEX('C. PoC Summary Stats & Para'!$E$14:$G$14,,MATCH($C172,'C. PoC Summary Stats & Para'!$E$18:$G$18,0))","v":40.728999999999999},0]
[{"$f":"'A. Population Info'!A173","v":1000349461},{"$f":"'A. Population Info'!D173","v":"T.S.ZN02835.TXF.T00004/0.TX"},{"$f":"'A. Population Info'!F173","v":"HV"},{"$f":"'A. Population Info'!E173","v":9334.2878786163492},{"$f":"INDEX('C. PoC Summary Stats & Para'!$E$25:$G$25,,MATCH($C173,'C. PoC Summary Stats & Para'!$E$18:$G$18,0))","v":0},0,{"$f":"INDEX('C. PoC Summary Stats & Para'!$E$14:$G$14,,MATCH($C173,'C. PoC Summary Stats & Para'!$E$18:$G$18,0))","v":40.728999999999999},0]
[{"$f":"'A. Population Info'!A174","v":1000349494},{"$f":"'A. Population Info'!D174","v":"T.S.ZN00532.TXF.T00001/0.TX"},{"$f":"'A. Population Info'!F174","v":"HV"},{"$f":"'A. Population Info'!E174","v":5707.8665444852504},{"$f":"INDEX('C. PoC Summary Stats & Para'!$E$25:$G$25,,MATCH($C174,'C. PoC Summary Stats & Para'!$E$18:$G$18,0))","v":0},0,{"$f":"INDEX('C. PoC Summary Stats & Para'!$E$14:$G$14,,MATCH($C174,'C. PoC Summary Stats & Para'!$E$18:$G$18,0))","v":40.728999999999999},0]
[{"$f":"'A. Population Info'!A175","v":1000349615},{"$f":"'A. Population Info'!D175","v":"T.S.ZN00340.TXF.T00011/0"},{"$f":"'A. Population Info'!F175","v":"HV"},{"$f":"'A. Population Info'!E175","v":2518.7494200280998},{"$f":"INDEX('C. PoC Summary Stats & Para'!$E$25:$G$25,,MATCH($C175,'C. PoC Summary Stats & Para'!$E$18:$G$18,0))","v":0},0,{"$f":"INDEX('C. PoC Summary Stats & Para'!$E$14:$G$14,,MATCH($C175,'C. PoC Summary Stats & Para'!$E$18:$G$18,0))","v":40.728999999999999},0]
[{"$f":"'A. Population Info'!A176","v":1000349645},{"$f":"'A. Population Info'!D176","v":"T.S.ZN14892.TXF.T00001/0.TX"},{"$f":"'A. Population Info'!F176","v":"HV"},{"$f":"'A. Population Info'!E176","v":8545.5342697128508},{"$f":"INDEX('C. PoC Summary Stats & Para'!$E$25:$G$25,,MATCH($C176,'C. PoC Summary Stats & Para'!$E$18:$G$18,0))","v":0},0,{"$f":"INDEX('C. PoC Summary Stats & Para'!$E$14:$G$14,,MATCH($C176,'C. PoC Summary Stats & Para'!$E$18:$G$18,0))","v":40.728999999999999},0]
[{"$f":"'A. Population Info'!A177","v":1000349674},{"$f":"'A. Population Info'!D177","v":"T.S.ZN14892.TXF.T00002/0.TX"},{"$f":"'A. Population Info'!F177","v":"HV"},{"$f":"'A. Population Info'!E177","v":8545.5342697128508},{"$f":"INDEX('C. PoC Summary Stats & Para'!$E$25:$G$25,,MATCH($C177,'C. PoC Summary Stats & Para'!$E$18:$G$18,0))","v":0},0,{"$f":"INDEX('C. PoC Summary Stats & Para'!$E$14:$G$14,,MATCH($C177,'C. PoC Summary Stats & Para'!$E$18:$G$18,0))","v":40.728999999999999},0]
[{"$f":"'A. Population Info'!A178","v":1000349704},{"$f":"'A. Population Info'!D178","v":"T.S.ZN02196.TXF.T00002/0.TX"},{"$f":"'A. Population Info'!F178","v":"HV"},{"$f":"'A. Population Info'!E178","v":10796.7451571566},{"$f":"INDEX('C. PoC Summary Stats & Para'!$E$25:$G$25,,MATCH($C178,'C. PoC Summary Stats & Para'!$E$18:$G$18,0))","v":0},0,{"$f":"INDEX('C. PoC Summary Stats & Para'!$E$14:$G$14,,MATCH($C178,'C. PoC Summary Stats & Para'!$E$18:$G$18,0))","v":40.728999999999999},0]
[{"$f":"'A. Population Info'!A179","v":1000349797},{"$f":"'A. Population Info'!D179","v":"T.S.ZN09171.TXF.T00002/0.TX"},{"$f":"'A. Population Info'!F179","v":"HV"},{"$f":"'A. Population Info'!E179","v":2485.9424275114152},{"$f":"INDEX('C. PoC Summary Stats & Para'!$E$25:$G$25,,MATCH($C179,'C. PoC Summary Stats & Para'!$E$18:$G$18,0))","v":0},0,{"$f":"INDEX('C. PoC Summary Stats & Para'!$E$14:$G$14,,MATCH($C179,'C. PoC Summary Stats & Para'!$E$18:$G$18,0))","v":40.728999999999999},0]
[{"$f":"'A. Population Info'!A180","v":1000349829},{"$f":"'A. Population Info'!D180","v":"T.S.ZN09171.TXF.T00001/0.TX"},{"$f":"'A. Population Info'!F180","v":"HV"},{"$f":"'A. Population Info'!E180","v":2485.9424275114152},{"$f":"INDEX('C. PoC Summary Stats & Para'!$E$25:$G$25,,MATCH($C180,'C. PoC Summary Stats & Para'!$E$18:$G$18,0))","v":0},0,{"$f":"INDEX('C. PoC Summary Stats & Para'!$E$14:$G$14,,MATCH($C180,'C. PoC Summary Stats & Para'!$E$18:$G$18,0))","v":40.728999999999999},0]
[{"$f":"'A. Population Info'!A181","v":1000349857},{"$f":"'A. Population Info'!D181","v":"T.S.ZN01285.TXF.T00001/0.TX"},{"$f":"'A. Population Info'!F181","v":"HV"},{"$f":"'A. Population Info'!E181","v":7059.447825921925},{"$f":"INDEX('C. PoC Summary Stats & Para'!$E$25:$G$25,,MATCH($C181,'C. PoC Summary Stats & Para'!$E$18:$G$18,0))","v":0},0,{"$f":"INDEX('C. PoC Summary Stats & Para'!$E$14:$G$14,,MATCH($C181,'C. PoC Summary Stats & Para'!$E$18:$G$18,0))","v":40.728999999999999},0]
[{"$f":"'A. Population Info'!A182","v":1000349884},{"$f":"'A. Population Info'!D182","v":"T.S.ZN00263.TXF.T00003/0.TX"},{"$f":"'A. Population Info'!F182","v":"HV"},{"$f":"'A. Population Info'!E182","v":8497.6413623076241},{"$f":"INDEX('C. PoC Summary Stats & Para'!$E$25:$G$25,,MATCH($C182,'C. PoC Summary Stats & Para'!$E$18:$G$18,0))","v":0},0,{"$f":"INDEX('C. PoC Summary Stats & Para'!$E$14:$G$14,,MATCH($C182,'C. PoC Summary Stats & Para'!$E$18:$G$18,0))","v":40.728999999999999},0]
[{"$f":"'A. Population Info'!A183","v":1000349913},{"$f":"'A. Population Info'!D183","v":"T.S.ZN00342.TXF.T00003/0.TX"},{"$f":"'A. Population Info'!F183","v":"HV"},{"$f":"'A. Population Info'!E183","v":6532.9701660047331},{"$f":"INDEX('C. PoC Summary Stats & Para'!$E$25:$G$25,,MATCH($C183,'C. PoC Summary Stats & Para'!$E$18:$G$18,0))","v":0},0,{"$f":"INDEX('C. PoC Summary Stats & Para'!$E$14:$G$14,,MATCH($C183,'C. PoC Summary Stats & Para'!$E$18:$G$18,0))","v":40.728999999999999},0]
[{"$f":"'A. Population Info'!A184","v":1000349939},{"$f":"'A. Population Info'!D184","v":"T.S.ZN08000.TXF.T00001/0.TX"},{"$f":"'A. Population Info'!F184","v":"HV"},{"$f":"'A. Population Info'!E184","v":14700.2642144533},{"$f":"INDEX('C. PoC Summary Stats & Para'!$E$25:$G$25,,MATCH($C184,'C. PoC Summary Stats & Para'!$E$18:$G$18,0))","v":0},0,{"$f":"INDEX('C. PoC Summary Stats & Para'!$E$14:$G$14,,MATCH($C184,'C. PoC Summary Stats & Para'!$E$18:$G$18,0))","v":40.728999999999999},0]
[{"$f":"'A. Population Info'!A185","v":1000349972},{"$f":"'A. Population Info'!D185","v":"T.S.ZN08000.TXF.T00002/0.TX"},{"$f":"'A. Population Info'!F185","v":"HV"},{"$f":"'A. Population Info'!E185","v":14700.2642144533},{"$f":"INDEX('C. PoC Summary Stats & Para'!$E$25:$G$25,,MATCH($C185,'C. PoC Summary Stats & Para'!$E$18:$G$18,0))","v":0},0,{"$f":"INDEX('C. PoC Summary Stats & Para'!$E$14:$G$14,,MATCH($C185,'C. PoC Summary Stats & Para'!$E$18:$G$18,0))","v":40.728999999999999},0]
[{"$f":"'A. Population Info'!A186","v":1000353004},{"$f":"'A. Population Info'!D186","v":"T.S.TS10900.TXF.T00004/0.TX"},{"$f":"'A. Population Info'!F186","v":"HV"},{"$f":"'A. Population Info'!E186","v":14303.164705002158},{"$f":"INDEX('C. PoC Summary Stats & Para'!$E$25:$G$25,,MATCH($C186,'C. PoC Summary Stats & Para'!$E$18:$G$18,0))","v":0},0,{"$f":"INDEX('C. PoC Summary Stats & Para'!$E$14:$G$14,,MATCH($C186,'C. PoC Summary Stats & Para'!$E$18:$G$18,0))","v":40.728999999999999},0]
[{"$f":"'A. Population Info'!A187","v":1000353037},{"$f":"'A. Population Info'!D187","v":"T.S.ZN00116.TXF.T00004/0.TX"},{"$f":"'A. Population Info'!F187","v":"HV"},{"$f":"'A. Population Info'!E187","v":3510.8213801948664},{"$f":"INDEX('C. PoC Summary Stats & Para'!$E$25:$G$25,,MATCH($C187,'C. PoC Summary Stats & Para'!$E$18:$G$18,0))","v":0},0,{"$f":"INDEX('C. PoC Summary Stats & Para'!$E$14:$G$14,,MATCH($C187,'C. PoC Summary Stats & Para'!$E$18:$G$18,0))","v":40.728999999999999},0]
[{"$f":"'A. Population Info'!A188","v":1000353068},{"$f":"'A. Population Info'!D188","v":"T.S.ZN04990.TXF.T00003/0.TX"},{"$f":"'A. Population Info'!F188","v":"HV"},{"$f":"'A. Population Info'!E188","v":11187.439714865324},{"$f":"INDEX('C. PoC Summary Stats & Para'!$E$25:$G$25,,MATCH($C188,'C. PoC Summary Stats & Para'!$E$18:$G$18,0))","v":0},0,{"$f":"INDEX('C. PoC Summary Stats & Para'!$E$14:$G$14,,MATCH($C188,'C. PoC Summary Stats & Para'!$E$18:$G$18,0))","v":40.728999999999999},0]
[{"$f":"'A. Population Info'!A189","v":1000353101},{"$f":"'A. Population Info'!D189","v":"T.S.ZN04990.TXF.T00002/0.TX"},{"$f":"'A. Population Info'!F189","v":"HV"},{"$f":"'A. Population Info'!E189","v":11187.439714865324},{"$f":"INDEX('C. PoC Summary Stats & Para'!$E$25:$G$25,,MATCH($C189,'C. PoC Summary Stats & Para'!$E$18:$G$18,0))","v":0},0,{"$f":"INDEX('C. PoC Summary Stats & Para'!$E$14:$G$14,,MATCH($C189,'C. PoC Summary Stats & Para'!$E$18:$G$18,0))","v":40.728999999999999},0]
[{"$f":"'A. Population Info'!A190","v":1000353135},{"$f":"'A. Population Info'!D190","v":"T.S.ZN04990.TXF.T00004/0.TX"},{"$f":"'A. Population Info'!F190","v":"HV"},{"$f":"'A. Population Info'!E190","v":11187.439714865324},{"$f":"INDEX('C. PoC Summary Stats & Para'!$E$25:$G$25,,MATCH($C190,'C. PoC Summary Stats & Para'!$E$18:$G$18,0))","v":0},0,{"$f":"INDEX('C. PoC Summary Stats & Para'!$E$14:$G$14,,MATCH($C190,'C. PoC Summary Stats & Para'!$E$18:$G$18,0))","v":40.728999999999999},0]
[{"$f":"'A. Population Info'!A191","v":1000353167},{"$f":"'A. Population Info'!D191","v":"T.S.ZN15002.TXF.T00002/0.TX"},{"$f":"'A. Population Info'!F191","v":"HV"},{"$f":"'A. Population Info'!E191","v":2687.8499487062099},{"$f":"INDEX('C. PoC Summary Stats & Para'!$E$25:$G$25,,MATCH($C191,'C. PoC Summary Stats & Para'!$E$18:$G$18,0))","v":0},0,{"$f":"INDEX('C. PoC Summary Stats & Para'!$E$14:$G$14,,MATCH($C191,'C. PoC Summary Stats & Para'!$E$18:$G$18,0))","v":40.728999999999999},0]
[{"$f":"'A. Population Info'!A192","v":1000353227},{"$f":"'A. Population Info'!D192","v":"T.S.ZN01193.TXF.T00002/0.TX"},{"$f":"'A. Population Info'!F192","v":"HV"},{"$f":"'A. Population Info'!E192","v":4133.8100954997672},{"$f":"INDEX('C. PoC Summary Stats & Para'!$E$25:$G$25,,MATCH($C192,'C. PoC Summary Stats & Para'!$E$18:$G$18,0))","v":0},0,{"$f":"INDEX('C. PoC Summary Stats & Para'!$E$14:$G$14,,MATCH($C192,'C. PoC Summary Stats & Para'!$E$18:$G$18,0))","v":40.728999999999999},0]
[{"$f":"'A. Population Info'!A193","v":1000353258},{"$f":"'A. Population Info'!D193","v":"T.S.ZN01193.TXF.T00003/0.TX"},{"$f":"'A. Population Info'!F193","v":"HV"},{"$f":"'A. Population Info'!E193","v":4133.8100954997672},{"$f":"INDEX('C. PoC Summary Stats & Para'!$E$25:$G$25,,MATCH($C193,'C. PoC Summary Stats & Para'!$E$18:$G$18,0))","v":0},0,{"$f":"INDEX('C. PoC Summary Stats & Para'!$E$14:$G$14,,MATCH($C193,'C. PoC Summary Stats & Para'!$E$18:$G$18,0))","v":40.728999999999999},0]
[{"$f":"'A. Population Info'!A194","v":1000353287},{"$f":"'A. Population Info'!D194","v":"T.S.ZN02310.TXF.T00011/0.TX"},{"$f":"'A. Population Info'!F194","v":"HV"},{"$f":"'A. Population Info'!E194","v":3083.3183316724999},{"$f":"INDEX('C. PoC Summary Stats & Para'!$E$25:$G$25,,MATCH($C194,'C. PoC Summary Stats & Para'!$E$18:$G$18,0))","v":0},0,{"$f":"INDEX('C. PoC Summary Stats & Para'!$E$14:$G$14,,MATCH($C194,'C. PoC Summary Stats & Para'!$E$18:$G$18,0))","v":40.728999999999999},0]
[{"$f":"'A. Population Info'!A195","v":1000353314},{"$f":"'A. Population Info'!D195","v":"T.S.ZN03425.TXF.T00004/0.TX"},{"$f":"'A. Population Info'!F195","v":"HV"},{"$f":"'A. Population Info'!E195","v":7567.3200140371246},{"$f":"INDEX('C. PoC Summary Stats & Para'!$E$25:$G$25,,MATCH($C195,'C. PoC Summary Stats & Para'!$E$18:$G$18,0))","v":0},0,{"$f":"INDEX('C. PoC Summary Stats & Para'!$E$14:$G$14,,MATCH($C195,'C. PoC Summary Stats & Para'!$E$18:$G$18,0))","v":40.728999999999999},0]
[{"$f":"'A. Population Info'!A196","v":1000353347},{"$f":"'A. Population Info'!D196","v":"T.S.ZN02196.TXF.T00003/0.TX"},{"$f":"'A. Population Info'!F196","v":"HV"},{"$f":"'A. Population Info'!E196","v":10796.7451571566},{"$f":"INDEX('C. PoC Summary Stats & Para'!$E$25:$G$25,,MATCH($C196,'C. PoC Summary Stats & Para'!$E$18:$G$18,0))","v":0},0,{"$f":"INDEX('C. PoC Summary Stats & Para'!$E$14:$G$14,,MATCH($C196,'C. PoC Summary Stats & Para'!$E$18:$G$18,0))","v":40.728999999999999},0]
[{"$f":"'A. Population Info'!A197","v":1000353379},{"$f":"'A. Population Info'!D197","v":"T.S.ZN12650.TXF.T00013/0.TX"},{"$f":"'A. Population Info'!F197","v":"HV"},{"$f":"'A. Population Info'!E197","v":11089.439279143049},{"$f":"INDEX('C. PoC Summary Stats & Para'!$E$25:$G$25,,MATCH($C197,'C. PoC Summary Stats & Para'!$E$18:$G$18,0))","v":0},0,{"$f":"INDEX('C. PoC Summary Stats & Para'!$E$14:$G$14,,MATCH($C197,'C. PoC Summary Stats & Para'!$E$18:$G$18,0))","v":40.728999999999999},0]
[{"$f":"'A. Population Info'!A198","v":1000353459},{"$f":"'A. Population Info'!D198","v":"T.S.ZN12650.TXF.T00011/0.TX"},{"$f":"'A. Population Info'!F198","v":"HV"},{"$f":"'A. Population Info'!E198","v":11089.439279143049},{"$f":"INDEX('C. PoC Summary Stats & Para'!$E$25:$G$25,,MATCH($C198,'C. PoC Summary Stats & Para'!$E$18:$G$18,0))","v":0},0,{"$f":"INDEX('C. PoC Summary Stats & Para'!$E$14:$G$14,,MATCH($C198,'C. PoC Summary Stats & Para'!$E$18:$G$18,0))","v":40.728999999999999},{"$f":"IFERROR(F198*G198,$L$4*G198)","v":0}]
[{"$f":"'A. Population Info'!A199","v":1000353491},{"$f":"'A. Population Info'!D199","v":"T.S.ZN00210.TXF.T00001/0.TX"},{"$f":"'A. Population Info'!F199","v":"HV"},{"$f":"'A. Population Info'!E199","v":3760.3643061560501},{"$f":"INDEX('C. PoC Summary Stats & Para'!$E$25:$G$25,,MATCH($C199,'C. PoC Summary Stats & Para'!$E$18:$G$18,0))","v":0},{"$f":"IFERROR(D199*E199,\"\")","v":0},{"$f":"INDEX('C. PoC Summary Stats & Para'!$E$14:$G$14,,MATCH($C199,'C. PoC Summary Stats & Para'!$E$18:$G$18,0))","v":40.728999999999999},0]
[{"$f":"'A. Population Info'!A200","v":1000353523},{"$f":"'A. Population Info'!D200","v":"T.S.ZN00210.TXF.T00002/0.TX"},{"$f":"'A. Population Info'!F200","v":"HV"},{"$f":"'A. Population Info'!E200","v":3760.3643061560501},{"$f":"INDEX('C. PoC Summary Stats & Para'!$E$25:$G$25,,MATCH($C200,'C. PoC Summary Stats & Para'!$E$18:$G$18,0))","v":0},0,{"$f":"INDEX('C. PoC Summary Stats & Para'!$E$14:$G$14,,MATCH($C200,'C. PoC Summary Stats & Para'!$E$18:$G$18,0))","v":40.728999999999999},0]
[{"$f":"'A. Population Info'!A201","v":1000353554},{"$f":"'A. Population Info'!D201","v":"T.S.ZN00263.TXF.T00002/0.TX"},{"$f":"'A. Population Info'!F201","v":"HV"},{"$f":"'A. Population Info'!E201","v":8497.6413623076241},{"$f":"INDEX('C. PoC Summary Stats & Para'!$E$25:$G$25,,MATCH($C201,'C. PoC Summary Stats & Para'!$E$18:$G$18,0))","v":0},0,{"$f":"INDEX('C. PoC Summary Stats & Para'!$E$14:$G$14,,MATCH($C201,'C. PoC Summary Stats & Para'!$E$18:$G$18,0))","v":40.728999999999999},0]
[{"$f":"'A. Population Info'!A202","v":1000353588},{"$f":"'A. Population Info'!D202","v":"T.S.ZN00205.TXF.T00002/0.TX"},{"$f":"'A. Population Info'!F202","v":"HV"},{"$f":"'A. Population Info'!E202","v":4176.4495111529905},{"$f":"INDEX('C. PoC Summary Stats & Para'!$E$25:$G$25,,MATCH($C202,'C. PoC Summary Stats & Para'!$E$18:$G$18,0))","v":0},0,{"$f":"INDEX('C. PoC Summary Stats & Para'!$E$14:$G$14,,MATCH($C202,'C. PoC Summary Stats & Para'!$E$18:$G$18,0))","v":40.728999999999999},0]
[{"$f":"'A. Population Info'!A203","v":1000353620},{"$f":"'A. Population Info'!D203","v":"T.S.ZN03472.TXF.T00002/0.TX"},{"$f":"'A. Population Info'!F203","v":"HV"},{"$f":"'A. Population Info'!E203","v":5069.5917147683003},{"$f":"INDEX('C. PoC Summary Stats & Para'!$E$25:$G$25,,MATCH($C203,'C. PoC Summary Stats & Para'!$E$18:$G$18,0))","v":0},0,{"$f":"INDEX('C. PoC Summary Stats & Para'!$E$14:$G$14,,MATCH($C203,'C. PoC Summary Stats & Para'!$E$18:$G$18,0))","v":40.728999999999999},0]
[{"$f":"'A. Population Info'!A204","v":1000353653},{"$f":"'A. Population Info'!D204","v":"T.S.ZN00263.TXF.T00001/0.TX"},{"$f":"'A. Population Info'!F204","v":"HV"},{"$f":"'A. Population Info'!E204","v":8497.6413623076241},{"$f":"INDEX('C. PoC Summary Stats & Para'!$E$25:$G$25,,MATCH($C204,'C. PoC Summary Stats & Para'!$E$18:$G$18,0))","v":0},0,{"$f":"INDEX('C. PoC Summary Stats & Para'!$E$14:$G$14,,MATCH($C204,'C. PoC Summary Stats & Para'!$E$18:$G$18,0))","v":40.728999999999999},0]
[{"$f":"'A. Population Info'!A205","v":1000353684},{"$f":"'A. Population Info'!D205","v":"T.S.ZN12570.TXF.T00012/0.TX"},{"$f":"'A. Population Info'!F205","v":"HV"},{"$f":"'A. Population Info'!E205","v":5141.6948496801006},{"$f":"INDEX('C. PoC Summary Stats & Para'!$E$25:$G$25,,MATCH($C205,'C. PoC Summary Stats & Para'!$E$18:$G$18,0))","v":0},0,{"$f":"INDEX('C. PoC Summary Stats & Para'!$E$14:$G$14,,MATCH($C205,'C. PoC Summary Stats & Para'!$E$18:$G$18,0))","v":40.728999999999999},0]
[{"$f":"'A. Population Info'!A206","v":1000353713},{"$f":"'A. Population Info'!D206","v":"T.S.ZN02602.TXF.T00001/0.TX"},{"$f":"'A. Population Info'!F206","v":"HV"},{"$f":"'A. Population Info'!E206","v":8922.2679157638759},{"$f":"INDEX('C. PoC Summary Stats & Para'!$E$25:$G$25,,MATCH($C206,'C. PoC Summary Stats & Para'!$E$18:$G$18,0))","v":0},0,{"$f":"INDEX('C. PoC Summary Stats & Para'!$E$14:$G$14,,MATCH($C206,'C. PoC Summary Stats & Para'!$E$18:$G$18,0))","v":40.728999999999999},0]
[{"$f":"'A. Population Info'!A207","v":1000353747},{"$f":"'A. Population Info'!D207","v":"T.S.ZN07900.TXF.T00001/0.TX"},{"$f":"'A. Population Info'!F207","v":"HV"},{"$f":"'A. Population Info'!E207","v":10183.725025575901},{"$f":"INDEX('C. PoC Summary Stats & Para'!$E$25:$G$25,,MATCH($C207,'C. PoC Summary Stats & Para'!$E$18:$G$18,0))","v":0},0,{"$f":"INDEX('C. PoC Summary Stats & Para'!$E$14:$G$14,,MATCH($C207,'C. PoC Summary Stats & Para'!$E$18:$G$18,0))","v":40.728999999999999},0]
[{"$f":"'A. Population Info'!A208","v":1000353781},{"$f":"'A. Population Info'!D208","v":"T.S.ZN07900.TXF.T00002/0.TX"},{"$f":"'A. Population Info'!F208","v":"HV"},{"$f":"'A. Population Info'!E208","v":10183.725025575901},{"$f":"INDEX('C. PoC Summary Stats & Para'!$E$25:$G$25,,MATCH($C208,'C. PoC Summary Stats & Para'!$E$18:$G$18,0))","v":0},0,{"$f":"INDEX('C. PoC Summary Stats & Para'!$E$14:$G$14,,MATCH($C208,'C. PoC Summary Stats & Para'!$E$18:$G$18,0))","v":40.728999999999999},0]
[{"$f":"'A. Population Info'!A209","v":1000353814},{"$f":"'A. Population Info'!D209","v":"T.S.ZN00509.TXF.T00002/0.TX"},{"$f":"'A. Population Info'!F209","v":"HV"},{"$f":"'A. Population Info'!E209","v":944.96452259430498},{"$f":"INDEX('C. PoC Summary Stats & Para'!$E$25:$G$25,,MATCH($C209,'C. PoC Summary Stats & Para'!$E$18:$G$18,0))","v":0},0,{"$f":"INDEX('C. PoC Summary Stats & Para'!$E$14:$G$14,,MATCH($C209,'C. PoC Summary Stats & Para'!$E$18:$G$18,0))","v":40.728999999999999},0]
[{"$f":"'A. Population Info'!A210","v":1000353845},{"$f":"'A. Population Info'!D210","v":"T.S.ZN01193.TXF.T00004/0.TX"},{"$f":"'A. Population Info'!F210","v":"HV"},{"$f":"'A. Population Info'!E210","v":4133.8100954997672},{"$f":"INDEX('C. PoC Summary Stats & Para'!$E$25:$G$25,,MATCH($C210,'C. PoC Summary Stats & Para'!$E$18:$G$18,0))","v":0},0,{"$f":"INDEX('C. PoC Summary Stats & Para'!$E$14:$G$14,,MATCH($C210,'C. PoC Summary Stats & Para'!$E$18:$G$18,0))","v":40.728999999999999},0]
[{"$f":"'A. Population Info'!A211","v":1000353873},{"$f":"'A. Population Info'!D211","v":"T.S.ZN04990.TXF.T00001/0.TX"},{"$f":"'A. Population Info'!F211","v":"HV"},{"$f":"'A. Population Info'!E211","v":11187.439714865324},{"$f":"INDEX('C. PoC Summary Stats & Para'!$E$25:$G$25,,MATCH($C211,'C. PoC Summary Stats & Para'!$E$18:$G$18,0))","v":0},0,{"$f":"INDEX('C. PoC Summary Stats & Para'!$E$14:$G$14,,MATCH($C211,'C. PoC Summary Stats & Para'!$E$18:$G$18,0))","v":40.728999999999999},0]
[{"$f":"'A. Population Info'!A212","v":1000353900},{"$f":"'A. Population Info'!D212","v":"T.S.ZN01850.TXF.T00012/0.TX"},{"$f":"'A. Population Info'!F212","v":"HV"},{"$f":"'A. Population Info'!E212","v":3427.5138350680336},{"$f":"INDEX('C. PoC Summary Stats & Para'!$E$25:$G$25,,MATCH($C212,'C. PoC Summary Stats & Para'!$E$18:$G$18,0))","v":0},0,{"$f":"INDEX('C. PoC Summary Stats & Para'!$E$14:$G$14,,MATCH($C212,'C. PoC Summary Stats & Para'!$E$18:$G$18,0))","v":40.728999999999999},0]
[{"$f":"'A. Population Info'!A213","v":1000353934},{"$f":"'A. Population Info'!D213","v":"T.S.ZN00238.TXF.T00003/0.TX"},{"$f":"'A. Population Info'!F213","v":"HV"},{"$f":"'A. Population Info'!E213","v":3117.3881429418466},{"$f":"INDEX('C. PoC Summary Stats & Para'!$E$25:$G$25,,MATCH($C213,'C. PoC Summary Stats & Para'!$E$18:$G$18,0))","v":0},0,{"$f":"INDEX('C. PoC Summary Stats & Para'!$E$14:$G$14,,MATCH($C213,'C. PoC Summary Stats & Para'!$E$18:$G$18,0))","v":40.728999999999999},0]
[{"$f":"'A. Population Info'!A214","v":1000353966},{"$f":"'A. Population Info'!D214","v":"T.S.ZN00204.TXF.T00002/0.TX"},{"$f":"'A. Population Info'!F214","v":"HV"},{"$f":"'A. Population Info'!E214","v":3659.7152652149548},{"$f":"INDEX('C. PoC Summary Stats & Para'!$E$25:$G$25,,MATCH($C214,'C. PoC Summary Stats & Para'!$E$18:$G$18,0))","v":0},0,{"$f":"INDEX('C. PoC Summary Stats & Para'!$E$14:$G$14,,MATCH($C214,'C. PoC Summary Stats & Para'!$E$18:$G$18,0))","v":40.728999999999999},0]
[{"$f":"'A. Population Info'!A215","v":1000353995},{"$f":"'A. Population Info'!D215","v":"T.S.ZN00204.TXF.T00001/0.TX"},{"$f":"'A. Population Info'!F215","v":"HV"},{"$f":"'A. Population Info'!E215","v":3659.7152652149548},{"$f":"INDEX('C. PoC Summary Stats & Para'!$E$25:$G$25,,MATCH($C215,'C. PoC Summary Stats & Para'!$E$18:$G$18,0))","v":0},0,{"$f":"INDEX('C. PoC Summary Stats & Para'!$E$14:$G$14,,MATCH($C215,'C. PoC Summary Stats & Para'!$E$18:$G$18,0))","v":40.728999999999999},0]
[{"$f":"'A. Population Info'!A216","v":1000358026},{"$f":"'A. Population Info'!D216","v":"T.S.ZN00523.TXF.T00002/0.TX"},{"$f":"'A. Population Info'!F216","v":"HV"},{"$f":"'A. Population Info'!E216","v":2666.4031133840199},{"$f":"INDEX('C. PoC Summary Stats & Para'!$E$25:$G$25,,MATCH($C216,'C. PoC Summary Stats & Para'!$E$18:$G$18,0))","v":0},0,{"$f":"INDEX('C. PoC Summary Stats & Para'!$E$14:$G$14,,MATCH($C216,'C. PoC Summary Stats & Para'!$E$18:$G$18,0))","v":40.728999999999999},0]
[{"$f":"'A. Population Info'!A217","v":1000358056},{"$f":"'A. Population Info'!D217","v":"T.S.ZN00523.TXF.T00001/0.TX"},{"$f":"'A. Population Info'!F217","v":"HV"},{"$f":"'A. Population Info'!E217","v":2666.4031133840199},{"$f":"INDEX('C. PoC Summary Stats & Para'!$E$25:$G$25,,MATCH($C217,'C. PoC Summary Stats & Para'!$E$18:$G$18,0))","v":0},0,{"$f":"INDEX('C. PoC Summary Stats & Para'!$E$14:$G$14,,MATCH($C217,'C. PoC Summary Stats & Para'!$E$18:$G$18,0))","v":40.728999999999999},0]
[{"$f":"'A. Population Info'!A218","v":1000358084},{"$f":"'A. Population Info'!D218","v":"T.S.ZN02602.TXF.T00004/0.TX"},{"$f":"'A. Population Info'!F218","v":"HV"},{"$f":"'A. Population Info'!E218","v":8922.2679157638759},{"$f":"INDEX('C. PoC Summary Stats & Para'!$E$25:$G$25,,MATCH($C218,'C. PoC Summary Stats & Para'!$E$18:$G$18,0))","v":0},0,{"$f":"INDEX('C. PoC Summary Stats & Para'!$E$14:$G$14,,MATCH($C218,'C. PoC Summary Stats & Para'!$E$18:$G$18,0))","v":40.728999999999999},0]
[{"$f":"'A. Population Info'!A219","v":1000358116},{"$f":"'A. Population Info'!D219","v":"T.S.ZN03154.TXF.T00002/0.TX"},{"$f":"'A. Population Info'!F219","v":"HV"},{"$f":"'A. Population Info'!E219","v":5485.3269493792332},{"$f":"INDEX('C. PoC Summary Stats & Para'!$E$25:$G$25,,MATCH($C219,'C. PoC Summary Stats & Para'!$E$18:$G$18,0))","v":0},0,{"$f":"INDEX('C. PoC Summary Stats & Para'!$E$14:$G$14,,MATCH($C219,'C. PoC Summary Stats & Para'!$E$18:$G$18,0))","v":40.728999999999999},0]
[{"$f":"'A. Population Info'!A220","v":1000358149},{"$f":"'A. Population Info'!D220","v":"T.S.TS00415.TXF.T00003/0.TX"},{"$f":"'A. Population Info'!F220","v":"HV"},{"$f":"'A. Population Info'!E220","v":15750.61095216427},{"$f":"INDEX('C. PoC Summary Stats & Para'!$E$25:$G$25,,MATCH($C220,'C. PoC Summary Stats & Para'!$E$18:$G$18,0))","v":0},0,{"$f":"INDEX('C. PoC Summary Stats & Para'!$E$14:$G$14,,MATCH($C220,'C. PoC Summary Stats & Para'!$E$18:$G$18,0))","v":40.728999999999999},0]
[{"$f":"'A. Population Info'!A221","v":1000358181},{"$f":"'A. Population Info'!D221","v":"T.S.TS00415.TXF.T00001/0.TX"},{"$f":"'A. Population Info'!F221","v":"HV"},{"$f":"'A. Population Info'!E221","v":15750.61095216427},{"$f":"INDEX('C. PoC Summary Stats & Para'!$E$25:$G$25,,MATCH($C221,'C. PoC Summary Stats & Para'!$E$18:$G$18,0))","v":0},0,{"$f":"INDEX('C. PoC Summary Stats & Para'!$E$14:$G$14,,MATCH($C221,'C. PoC Summary Stats & Para'!$E$18:$G$18,0))","v":40.728999999999999},0]
[{"$f":"'A. Population Info'!A222","v":1000358266},{"$f":"'A. Population Info'!D222","v":"T.S.ZN15014.TXF.T00001/0.TX"},{"$f":"'A. Population Info'!F222","v":"HV"},{"$f":"'A. Population Info'!E222","v":5013.648803058567},{"$f":"INDEX('C. PoC Summary Stats & Para'!$E$25:$G$25,,MATCH($C222,'C. PoC Summary Stats & Para'!$E$18:$G$18,0))","v":0},0,{"$f":"INDEX('C. PoC Summary Stats & Para'!$E$14:$G$14,,MATCH($C222,'C. PoC Summary Stats & Para'!$E$18:$G$18,0))","v":40.728999999999999},0]
[{"$f":"'A. Population Info'!A223","v":1000358298},{"$f":"'A. Population Info'!D223","v":"T.S.TS00404.TXF.T00001/0.TX"},{"$f":"'A. Population Info'!F223","v":"HV"},{"$f":"'A. Population Info'!E223","v":10276.808016445248},{"$f":"INDEX('C. PoC Summary Stats & Para'!$E$25:$G$25,,MATCH($C223,'C. PoC Summary Stats & Para'!$E$18:$G$18,0))","v":0},0,{"$f":"INDEX('C. PoC Summary Stats & Para'!$E$14:$G$14,,MATCH($C223,'C. PoC Summary Stats & Para'!$E$18:$G$18,0))","v":40.728999999999999},0]
[{"$f":"'A. Population Info'!A224","v":1000358360},{"$f":"'A. Population Info'!D224","v":"T.S.ZN00631.TXF.T00001/0.TX"},{"$f":"'A. Population Info'!F224","v":"HV"},{"$f":"'A. Population Info'!E224","v":{"$error":"#N/A"}},{"$f":"INDEX('C. PoC Summary Stats & Para'!$E$25:$G$25,,MATCH($C224,'C. PoC Summary Stats & Para'!$E$18:$G$18,0))","v":0},"",{"$f":"INDEX('C. PoC Summary Stats & Para'!$E$14:$G$14,,MATCH($C224,'C. PoC Summary Stats & Para'!$E$18:$G$18,0))","v":40.728999999999999},0]
[{"$f":"'A. Population Info'!A225","v":1000358393},{"$f":"'A. Population Info'!D225","v":"T.S.ZN15010.TXF.T00001/0.TX"},{"$f":"'A. Population Info'!F225","v":"HV"},{"$f":"'A. Population Info'!E225","v":2682.0670025097502},{"$f":"INDEX('C. PoC Summary Stats & Para'!$E$25:$G$25,,MATCH($C225,'C. PoC Summary Stats & Para'!$E$18:$G$18,0))","v":0},0,{"$f":"INDEX('C. PoC Summary Stats & Para'!$E$14:$G$14,,MATCH($C225,'C. PoC Summary Stats & Para'!$E$18:$G$18,0))","v":40.728999999999999},0]
[{"$f":"'A. Population Info'!A226","v":1000358426},{"$f":"'A. Population Info'!D226","v":"T.S.TS00404.TXF.T00002/0.TX"},{"$f":"'A. Population Info'!F226","v":"HV"},{"$f":"'A. Population Info'!E226","v":10276.808016445248},{"$f":"INDEX('C. PoC Summary Stats & Para'!$E$25:$G$25,,MATCH($C226,'C. PoC Summary Stats & Para'!$E$18:$G$18,0))","v":0},0,{"$f":"INDEX('C. PoC Summary Stats & Para'!$E$14:$G$14,,MATCH($C226,'C. PoC Summary Stats & Para'!$E$18:$G$18,0))","v":40.728999999999999},0]
[{"$f":"'A. Population Info'!A227","v":1000358459},{"$f":"'A. Population Info'!D227","v":"T.S.ZN00384.TXF.T00002/0.TX"},{"$f":"'A. Population Info'!F227","v":"HV"},{"$f":"'A. Population Info'!E227","v":2946.7368276576999},{"$f":"INDEX('C. PoC Summary Stats & Para'!$E$25:$G$25,,MATCH($C227,'C. PoC Summary Stats & Para'!$E$18:$G$18,0))","v":0},0,{"$f":"INDEX('C. PoC Summary Stats & Para'!$E$14:$G$14,,MATCH($C227,'C. PoC Summary Stats & Para'!$E$18:$G$18,0))","v":40.728999999999999},0]
[{"$f":"'A. Population Info'!A228","v":1000358493},{"$f":"'A. Population Info'!D228","v":"T.S.ZN00384.TXF.T00001/0.TX"},{"$f":"'A. Population Info'!F228","v":"HV"},{"$f":"'A. Population Info'!E228","v":2946.7368276576999},{"$f":"INDEX('C. PoC Summary Stats & Para'!$E$25:$G$25,,MATCH($C228,'C. PoC Summary Stats & Para'!$E$18:$G$18,0))","v":0},0,{"$f":"INDEX('C. PoC Summary Stats & Para'!$E$14:$G$14,,MATCH($C228,'C. PoC Summary Stats & Para'!$E$18:$G$18,0))","v":40.728999999999999},0]
[{"$f":"'A. Population Info'!A229","v":1000358522},{"$f":"'A. Population Info'!D229","v":"T.S.ZN00384.TXF.T00005/0.TX"},{"$f":"'A. Population Info'!F229","v":"HV"},{"$f":"'A. Population Info'!E229","v":2946.7368276576999},{"$f":"INDEX('C. PoC Summary Stats & Para'!$E$25:$G$25,,MATCH($C229,'C. PoC Summary Stats & Para'!$E$18:$G$18,0))","v":0},0,{"$f":"INDEX('C. PoC Summary Stats & Para'!$E$14:$G$14,,MATCH($C229,'C. PoC Summary Stats & Para'!$E$18:$G$18,0))","v":40.728999999999999},0]
[{"$f":"'A. Population Info'!A230","v":1000358550},{"$f":"'A. Population Info'!D230","v":"T.S.ZN00711.TXF.T00003/0.TX"},{"$f":"'A. Population Info'!F230","v":"HV"},{"$f":"'A. Population Info'!E230","v":2594.8912715780002},{"$f":"INDEX('C. PoC Summary Stats & Para'!$E$25:$G$25,,MATCH($C230,'C. PoC Summary Stats & Para'!$E$18:$G$18,0))","v":0},0,{"$f":"INDEX('C. PoC Summary Stats & Para'!$E$14:$G$14,,MATCH($C230,'C. PoC Summary Stats & Para'!$E$18:$G$18,0))","v":40.728999999999999},0]
[{"$f":"'A. Population Info'!A231","v":1000358581},{"$f":"'A. Population Info'!D231","v":"T.S.ZN08100.TXF.T00001/0.TX"},{"$f":"'A. Population Info'!F231","v":"HV"},{"$f":"'A. Population Info'!E231","v":9722.756606045501},{"$f":"INDEX('C. PoC Summary Stats & Para'!$E$25:$G$25,,MATCH($C231,'C. PoC Summary Stats & Para'!$E$18:$G$18,0))","v":0},0,{"$f":"INDEX('C. PoC Summary Stats & Para'!$E$14:$G$14,,MATCH($C231,'C. PoC Summary Stats & Para'!$E$18:$G$18,0))","v":40.728999999999999},0]
[{"$f":"'A. Population Info'!A232","v":1000358609},{"$f":"'A. Population Info'!D232","v":"T.S.ZN00238.TXF.T00002/0.TX"},{"$f":"'A. Population Info'!F232","v":"HV"},{"$f":"'A. Population Info'!E232","v":3117.3881429418466},{"$f":"INDEX('C. PoC Summary Stats & Para'!$E$25:$G$25,,MATCH($C232,'C. PoC Summary Stats & Para'!$E$18:$G$18,0))","v":0},0,{"$f":"INDEX('C. PoC Summary Stats & Para'!$E$14:$G$14,,MATCH($C232,'C. PoC Summary Stats & Para'!$E$18:$G$18,0))","v":40.728999999999999},0]
[{"$f":"'A. Population Info'!A233","v":1000358641},{"$f":"'A. Population Info'!D233","v":"T.S.ZN00238.TXF.T00001/0.TX"},{"$f":"'A. Population Info'!F233","v":"HV"},{"$f":"'A. Population Info'!E233","v":3117.3881429418466},{"$f":"INDEX('C. PoC Summary Stats & Para'!$E$25:$G$25,,MATCH($C233,'C. PoC Summary Stats & Para'!$E$18:$G$18,0))","v":0},0,{"$f":"INDEX('C. PoC Summary Stats & Para'!$E$14:$G$14,,MATCH($C233,'C. PoC Summary Stats & Para'!$E$18:$G$18,0))","v":40.728999999999999},0]
[{"$f":"'A. Population Info'!A234","v":1000358676},{"$f":"'A. Population Info'!D234","v":"T.S.ZN00080.TXF.T00012/0.TX"},{"$f":"'A. Population Info'!F234","v":"HV"},{"$f":"'A. Population Info'!E234","v":7252.8713430689668},{"$f":"INDEX('C. PoC Summary Stats & Para'!$E$25:$G$25,,MATCH($C234,'C. PoC Summary Stats & Para'!$E$18:$G$18,0))","v":0},0,{"$f":"INDEX('C. PoC Summary Stats & Para'!$E$14:$G$14,,MATCH($C234,'C. PoC Summary Stats & Para'!$E$18:$G$18,0))","v":40.728999999999999},0]
[{"$f":"'A. Population Info'!A235","v":1000358704},{"$f":"'A. Population Info'!D235","v":"T.S.ZN02602.TXF.T00003/0.TX"},{"$f":"'A. Population Info'!F235","v":"HV"},{"$f":"'A. Population Info'!E235","v":8922.2679157638759},{"$f":"INDEX('C. PoC Summary Stats & Para'!$E$25:$G$25,,MATCH($C235,'C. PoC Summary Stats & Para'!$E$18:$G$18,0))","v":0},0,{"$f":"INDEX('C. PoC Summary Stats & Para'!$E$14:$G$14,,MATCH($C235,'C. PoC Summary Stats & Para'!$E$18:$G$18,0))","v":40.728999999999999},0]
[{"$f":"'A. Population Info'!A236","v":1000358763},{"$f":"'A. Population Info'!D236","v":"T.S.ZN10995.TXF.T00002/0.TX"},{"$f":"'A. Population Info'!F236","v":"HV"},{"$f":"'A. Population Info'!E236","v":3877.7650077308667},{"$f":"INDEX('C. PoC Summary Stats & Para'!$E$25:$G$25,,MATCH($C236,'C. PoC Summary Stats & Para'!$E$18:$G$18,0))","v":0},0,{"$f":"INDEX('C. PoC Summary Stats & Para'!$E$14:$G$14,,MATCH($C236,'C. PoC Summary Stats & Para'!$E$18:$G$18,0))","v":40.728999999999999},0]
[{"$f":"'A. Population Info'!A237","v":1000358821},{"$f":"'A. Population Info'!D237","v":"T.S.ZN00630.TXF.T00004/0.TX"},{"$f":"'A. Population Info'!F237","v":"HV"},{"$f":"'A. Population Info'!E237","v":3783.3779856536999},{"$f":"INDEX('C. PoC Summary Stats & Para'!$E$25:$G$25,,MATCH($C237,'C. PoC Summary Stats & Para'!$E$18:$G$18,0))","v":0},0,{"$f":"INDEX('C. PoC Summary Stats & Para'!$E$14:$G$14,,MATCH($C237,'C. PoC Summary Stats & Para'!$E$18:$G$18,0))","v":40.728999999999999},0]
[{"$f":"'A. Population Info'!A238","v":1000358848},{"$f":"'A. Population Info'!D238","v":"T.S.ZN03472.TXF.T00004/0.TX"},{"$f":"'A. Population Info'!F238","v":"HV"},{"$f":"'A. Population Info'!E238","v":5069.5917147683003},{"$f":"INDEX('C. PoC Summary Stats & Para'!$E$25:$G$25,,MATCH($C238,'C. PoC Summary Stats & Para'!$E$18:$G$18,0))","v":0},0,{"$f":"INDEX('C. PoC Summary Stats & Para'!$E$14:$G$14,,MATCH($C238,'C. PoC Summary Stats & Para'!$E$18:$G$18,0))","v":40.728999999999999},0]
[{"$f":"'A. Population Info'!A239","v":1000358878},{"$f":"'A. Population Info'!D239","v":"T.S.ZN00502.TXF.T00001/0.TX"},{"$f":"'A. Population Info'!F239","v":"HV"},{"$f":"'A. Population Info'!E239","v":1865.212972806735},{"$f":"INDEX('C. PoC Summary Stats & Para'!$E$25:$G$25,,MATCH($C239,'C. PoC Summary Stats & Para'!$E$18:$G$18,0))","v":0},0,{"$f":"INDEX('C. PoC Summary Stats & Para'!$E$14:$G$14,,MATCH($C239,'C. PoC Summary Stats & Para'!$E$18:$G$18,0))","v":40.728999999999999},0]
[{"$f":"'A. Population Info'!A240","v":1000358906},{"$f":"'A. Population Info'!D240","v":"T.S.ZN00195.TXF.T00002/0.TX"},{"$f":"'A. Population Info'!F240","v":"HV"},{"$f":"'A. Population Info'!E240","v":4347.7996584712337},{"$f":"INDEX('C. PoC Summary Stats & Para'!$E$25:$G$25,,MATCH($C240,'C. PoC Summary Stats & Para'!$E$18:$G$18,0))","v":0},0,{"$f":"INDEX('C. PoC Summary Stats & Para'!$E$14:$G$14,,MATCH($C240,'C. PoC Summary Stats & Para'!$E$18:$G$18,0))","v":40.728999999999999},0]
[{"$f":"'A. Population Info'!A241","v":1000358936},{"$f":"'A. Population Info'!D241","v":"T.S.ZN15009.TXF.T00003/0.TX"},{"$f":"'A. Population Info'!F241","v":"HV"},{"$f":"'A. Population Info'!E241","v":4643.4074513087853},{"$f":"INDEX('C. PoC Summary Stats & Para'!$E$25:$G$25,,MATCH($C241,'C. PoC Summary Stats & Para'!$E$18:$G$18,0))","v":0},0,{"$f":"INDEX('C. PoC Summary Stats & Para'!$E$14:$G$14,,MATCH($C241,'C. PoC Summary Stats & Para'!$E$18:$G$18,0))","v":40.728999999999999},0]
[{"$f":"'A. Population Info'!A242","v":1000358963},{"$f":"'A. Population Info'!D242","v":"T.S.TS07190.TXF.T00001/0.TX"},{"$f":"'A. Population Info'!F242","v":"HV"},{"$f":"'A. Population Info'!E242","v":18826.780952940666},{"$f":"INDEX('C. PoC Summary Stats & Para'!$E$25:$G$25,,MATCH($C242,'C. PoC Summary Stats & Para'!$E$18:$G$18,0))","v":0},0,{"$f":"INDEX('C. PoC Summary Stats & Para'!$E$14:$G$14,,MATCH($C242,'C. PoC Summary Stats & Para'!$E$18:$G$18,0))","v":40.728999999999999},0]
[{"$f":"'A. Population Info'!A243","v":1000358993},{"$f":"'A. Population Info'!D243","v":"T.S.TS07190.TXF.T00002/0.TX"},{"$f":"'A. Population Info'!F243","v":"HV"},{"$f":"'A. Population Info'!E243","v":18826.780952940666},{"$f":"INDEX('C. PoC Summary Stats & Para'!$E$25:$G$25,,MATCH($C243,'C. PoC Summary Stats & Para'!$E$18:$G$18,0))","v":0},0,{"$f":"INDEX('C. PoC Summary Stats & Para'!$E$14:$G$14,,MATCH($C243,'C. PoC Summary Stats & Para'!$E$18:$G$18,0))","v":40.728999999999999},0]
[{"$f":"'A. Population Info'!A244","v":1000362022},{"$f":"'A. Population Info'!D244","v":"T.S.ZN00632.TXF.T00002/0.TX"},{"$f":"'A. Population Info'!F244","v":"HV"},{"$f":"'A. Population Info'!E244","v":{"$error":"#N/A"}},{"$f":"INDEX('C. PoC Summary Stats & Para'!$E$25:$G$25,,MATCH($C244,'C. PoC Summary Stats & Para'!$E$18:$G$18,0))","v":0},"",{"$f":"INDEX('C. PoC Summary Stats & Para'!$E$14:$G$14,,MATCH($C244,'C. PoC Summary Stats & Para'!$E$18:$G$18,0))","v":40.728999999999999},0]
[{"$f":"'A. Population Info'!A245","v":1000362081},{"$f":"'A. Population Info'!D245","v":"T.S.TS07270.TXF.T00002/0.TX"},{"$f":"'A. Population Info'!F245","v":"HV"},{"$f":"'A. Population Info'!E245","v":18937.954948640992},{"$f":"INDEX('C. PoC Summary Stats & Para'!$E$25:$G$25,,MATCH($C245,'C. PoC Summary Stats & Para'!$E$18:$G$18,0))","v":0},0,{"$f":"INDEX('C. PoC Summary Stats & Para'!$E$14:$G$14,,MATCH($C245,'C. PoC Summary Stats & Para'!$E$18:$G$18,0))","v":40.728999999999999},0]
[{"$f":"'A. Population Info'!A246","v":1000362111},{"$f":"'A. Population Info'!D246","v":"T.S.ZN02602.TXF.T00002/0.TX"},{"$f":"'A. Population Info'!F246","v":"HV"},{"$f":"'A. Population Info'!E246","v":8922.2679157638759},{"$f":"INDEX('C. PoC Summary Stats & Para'!$E$25:$G$25,,MATCH($C246,'C. PoC Summary Stats & Para'!$E$18:$G$18,0))","v":0},0,{"$f":"INDEX('C. PoC Summary Stats & Para'!$E$14:$G$14,,MATCH($C246,'C. PoC Summary Stats & Para'!$E$18:$G$18,0))","v":40.728999999999999},0]
[{"$f":"'A. Population Info'!A247","v":1000362141},{"$f":"'A. Population Info'!D247","v":"T.S.ZN00228.TXF.T00001/0.TX"},{"$f":"'A. Population Info'!F247","v":"HV"},{"$f":"'A. Population Info'!E247","v":1328.7268500221801},{"$f":"INDEX('C. PoC Summary Stats & Para'!$E$25:$G$25,,MATCH($C247,'C. PoC Summary Stats & Para'!$E$18:$G$18,0))","v":0},0,{"$f":"INDEX('C. PoC Summary Stats & Para'!$E$14:$G$14,,MATCH($C247,'C. PoC Summary Stats & Para'!$E$18:$G$18,0))","v":40.728999999999999},0]
[{"$f":"'A. Population Info'!A248","v":1000362166},{"$f":"'A. Population Info'!D248","v":"T.S.ZN00228.TXF.T00002/0.TX"},{"$f":"'A. Population Info'!F248","v":"HV"},{"$f":"'A. Population Info'!E248","v":1328.7268500221801},{"$f":"INDEX('C. PoC Summary Stats & Para'!$E$25:$G$25,,MATCH($C248,'C. PoC Summary Stats & Para'!$E$18:$G$18,0))","v":0},0,{"$f":"INDEX('C. PoC Summary Stats & Para'!$E$14:$G$14,,MATCH($C248,'C. PoC Summary Stats & Para'!$E$18:$G$18,0))","v":40.728999999999999},0]
[{"$f":"'A. Population Info'!A249","v":1000362199},{"$f":"'A. Population Info'!D249","v":"T.S.ZN00129.TXF.T00003/0.TX"},{"$f":"'A. Population Info'!F249","v":"HV"},{"$f":"'A. Population Info'!E249","v":7148.3022660534998},{"$f":"INDEX('C. PoC Summary Stats & Para'!$E$25:$G$25,,MATCH($C249,'C. PoC Summary Stats & Para'!$E$18:$G$18,0))","v":0},0,{"$f":"INDEX('C. PoC Summary Stats & Para'!$E$14:$G$14,,MATCH($C249,'C. PoC Summary Stats & Para'!$E$18:$G$18,0))","v":40.728999999999999},0]
[{"$f":"'A. Population Info'!A250","v":1000362227},{"$f":"'A. Population Info'!D250","v":"T.S.ZN10995.TXF.T00001/0.TX"},{"$f":"'A. Population Info'!F250","v":"HV"},{"$f":"'A. Population Info'!E250","v":3877.7650077308667},{"$f":"INDEX('C. PoC Summary Stats & Para'!$E$25:$G$25,,MATCH($C250,'C. PoC Summary Stats & Para'!$E$18:$G$18,0))","v":0},0,{"$f":"INDEX('C. PoC Summary Stats & Para'!$E$14:$G$14,,MATCH($C250,'C. PoC Summary Stats & Para'!$E$18:$G$18,0))","v":40.728999999999999},0]
[{"$f":"'A. Population Info'!A251","v":1000362285},{"$f":"'A. Population Info'!D251","v":"T.S.TS00404.TXF.T00003/0.TX"},{"$f":"'A. Population Info'!F251","v":"HV"},{"$f":"'A. Population Info'!E251","v":10276.808016445248},{"$f":"INDEX('C. PoC Summary Stats & Para'!$E$25:$G$25,,MATCH($C251,'C. PoC Summary Stats & Para'!$E$18:$G$18,0))","v":0},0,{"$f":"INDEX('C. PoC Summary Stats & Para'!$E$14:$G$14,,MATCH($C251,'C. PoC Summary Stats & Para'!$E$18:$G$18,0))","v":40.728999999999999},0]
[{"$f":"'A. Population Info'!A252","v":1000362316},{"$f":"'A. Population Info'!D252","v":"T.S.TS00412.TXF.T00001/0.TX"},{"$f":"'A. Population Info'!F252","v":"HV"},{"$f":"'A. Population Info'!E252","v":15417.063811061294},{"$f":"INDEX('C. PoC Summary Stats & Para'!$E$25:$G$25,,MATCH($C252,'C. PoC Summary Stats & Para'!$E$18:$G$18,0))","v":0},0,{"$f":"INDEX('C. PoC Summary Stats & Para'!$E$14:$G$14,,MATCH($C252,'C. PoC Summary Stats & Para'!$E$18:$G$18,0))","v":40.728999999999999},0]
[{"$f":"'A. Population Info'!A253","v":1000362345},{"$f":"'A. Population Info'!D253","v":"T.S.TS00412.TXF.T00002/0.TX"},{"$f":"'A. Population Info'!F253","v":"HV"},{"$f":"'A. Population Info'!E253","v":15417.063811061294},{"$f":"INDEX('C. PoC Summary Stats & Para'!$E$25:$G$25,,MATCH($C253,'C. PoC Summary Stats & Para'!$E$18:$G$18,0))","v":0},0,{"$f":"INDEX('C. PoC Summary Stats & Para'!$E$14:$G$14,,MATCH($C253,'C. PoC Summary Stats & Para'!$E$18:$G$18,0))","v":40.728999999999999},0]
[{"$f":"'A. Population Info'!A254","v":1000362379},{"$f":"'A. Population Info'!D254","v":"T.S.ZN01068.TXF.T00003/0.TX"},{"$f":"'A. Population Info'!F254","v":"HV"},{"$f":"'A. Population Info'!E254","v":3039.30688697609},{"$f":"INDEX('C. PoC Summary Stats & Para'!$E$25:$G$25,,MATCH($C254,'C. PoC Summary Stats & Para'!$E$18:$G$18,0))","v":0},0,{"$f":"INDEX('C. PoC Summary Stats & Para'!$E$14:$G$14,,MATCH($C254,'C. PoC Summary Stats & Para'!$E$18:$G$18,0))","v":40.728999999999999},0]
[{"$f":"'A. Population Info'!A255","v":1000362439},{"$f":"'A. Population Info'!D255","v":"T.S.ZN09700.TXF.T00001/0.TX"},{"$f":"'A. Population Info'!F255","v":"HV"},{"$f":"'A. Population Info'!E255","v":8385.6364774139001},{"$f":"INDEX('C. PoC Summary Stats & Para'!$E$25:$G$25,,MATCH($C255,'C. PoC Summary Stats & Para'!$E$18:$G$18,0))","v":0},0,{"$f":"INDEX('C. PoC Summary Stats & Para'!$E$14:$G$14,,MATCH($C255,'C. PoC Summary Stats & Para'!$E$18:$G$18,0))","v":40.728999999999999},0]
[{"$f":"'A. Population Info'!A256","v":1000362467},{"$f":"'A. Population Info'!D256","v":"T.S.ZN12570.TXF.T00011/0.TX"},{"$f":"'A. Population Info'!F256","v":"HV"},{"$f":"'A. Population Info'!E256","v":5141.6948496801006},{"$f":"INDEX('C. PoC Summary Stats & Para'!$E$25:$G$25,,MATCH($C256,'C. PoC Summary Stats & Para'!$E$18:$G$18,0))","v":0},0,{"$f":"INDEX('C. PoC Summary Stats & Para'!$E$14:$G$14,,MATCH($C256,'C. PoC Summary Stats & Para'!$E$18:$G$18,0))","v":40.728999999999999},0]
[{"$f":"'A. Population Info'!A257","v":1000362497},{"$f":"'A. Population Info'!D257","v":"T.S.ZN00206.TXF.T00001/0.TX"},{"$f":"'A. Population Info'!F257","v":"HV"},{"$f":"'A. Population Info'!E257","v":3308.7142125178052},{"$f":"INDEX('C. PoC Summary Stats & Para'!$E$25:$G$25,,MATCH($C257,'C. PoC Summary Stats & Para'!$E$18:$G$18,0))","v":0},0,{"$f":"INDEX('C. PoC Summary Stats & Para'!$E$14:$G$14,,MATCH($C257,'C. PoC Summary Stats & Para'!$E$18:$G$18,0))","v":40.728999999999999},0]
[{"$f":"'A. Population Info'!A258","v":1000362528},{"$f":"'A. Population Info'!D258","v":"T.S.ZN00206.TXF.T00002/0.TX"},{"$f":"'A. Population Info'!F258","v":"HV"},{"$f":"'A. Population Info'!E258","v":3308.7142125178052},{"$f":"INDEX('C. PoC Summary Stats & Para'!$E$25:$G$25,,MATCH($C258,'C. PoC Summary Stats & Para'!$E$18:$G$18,0))","v":0},0,{"$f":"INDEX('C. PoC Summary Stats & Para'!$E$14:$G$14,,MATCH($C258,'C. PoC Summary Stats & Para'!$E$18:$G$18,0))","v":40.728999999999999},0]
[{"$f":"'A. Population Info'!A259","v":1000362556},{"$f":"'A. Population Info'!D259","v":"T.S.ZN00202.TXF.T00003/0.TX"},{"$f":"'A. Population Info'!F259","v":"HV"},{"$f":"'A. Population Info'!E259","v":6174.7274939166336},{"$f":"INDEX('C. PoC Summary Stats & Para'!$E$25:$G$25,,MATCH($C259,'C. PoC Summary Stats & Para'!$E$18:$G$18,0))","v":0},0,{"$f":"INDEX('C. PoC Summary Stats & Para'!$E$14:$G$14,,MATCH($C259,'C. PoC Summary Stats & Para'!$E$18:$G$18,0))","v":40.728999999999999},0]
[{"$f":"'A. Population Info'!A260","v":1000362587},{"$f":"'A. Population Info'!D260","v":"T.S.ZN00202.TXF.T00001/0.TX"},{"$f":"'A. Population Info'!F260","v":"HV"},{"$f":"'A. Population Info'!E260","v":6174.7274939166336},{"$f":"INDEX('C. PoC Summary Stats & Para'!$E$25:$G$25,,MATCH($C260,'C. PoC Summary Stats & Para'!$E$18:$G$18,0))","v":0},0,{"$f":"INDEX('C. PoC Summary Stats & Para'!$E$14:$G$14,,MATCH($C260,'C. PoC Summary Stats & Para'!$E$18:$G$18,0))","v":40.728999999999999},0]
[{"$f":"'A. Population Info'!A261","v":1000362618},{"$f":"'A. Population Info'!D261","v":"T.S.ZN00202.TXF.T00002/0.TX"},{"$f":"'A. Population Info'!F261","v":"HV"},{"$f":"'A. Population Info'!E261","v":6174.7274939166336},{"$f":"INDEX('C. PoC Summary Stats & Para'!$E$25:$G$25,,MATCH($C261,'C. PoC Summary Stats & Para'!$E$18:$G$18,0))","v":0},0,{"$f":"INDEX('C. PoC Summary Stats & Para'!$E$14:$G$14,,MATCH($C261,'C. PoC Summary Stats & Para'!$E$18:$G$18,0))","v":40.728999999999999},0]
[{"$f":"'A. Population Info'!A262","v":1000362675},{"$f":"'A. Population Info'!D262","v":"T.S.TS07270.TXF.T00003/0.TX"},{"$f":"'A. Population Info'!F262","v":"HV"},{"$f":"'A. Population Info'!E262","v":18937.954948640992},{"$f":"INDEX('C. PoC Summary Stats & Para'!$E$25:$G$25,,MATCH($C262,'C. PoC Summary Stats & Para'!$E$18:$G$18,0))","v":0},0,{"$f":"INDEX('C. PoC Summary Stats & Para'!$E$14:$G$14,,MATCH($C262,'C. PoC Summary Stats & Para'!$E$18:$G$18,0))","v":40.728999999999999},{"$f":"IFERROR(F262*G262,$L$4*G262)","v":0}]
[{"$f":"'A. Population Info'!A263","v":1000362711},{"$f":"'A. Population Info'!D263","v":"T.S.ZN00525.TXF.T00001/0.TX"},{"$f":"'A. Population Info'!F263","v":"HV-single"},{"$f":"'A. Population Info'!E263","v":459.35510570776302},{"$f":"INDEX('C. PoC Summary Stats & Para'!$E$25:$G$25,,MATCH($C263,'C. PoC Summary Stats & Para'!$E$18:$G$18,0))","v":0},{"$f":"IFERROR(D263*E263,\"\")","v":0},{"$f":"INDEX('C. PoC Summary Stats & Para'!$E$14:$G$14,,MATCH($C263,'C. PoC Summary Stats & Para'!$E$18:$G$18,0))","v":40.728999999999999},0]
[{"$f":"'A. Population Info'!A264","v":1000362743},{"$f":"'A. Population Info'!D264","v":"T.S.ZN15010.TXF.T00003/0.TX"},{"$f":"'A. Population Info'!F264","v":"HV"},{"$f":"'A. Population Info'!E264","v":2682.0670025097502},{"$f":"INDEX('C. PoC Summary Stats & Para'!$E$25:$G$25,,MATCH($C264,'C. PoC Summary Stats & Para'!$E$18:$G$18,0))","v":0},0,{"$f":"INDEX('C. PoC Summary Stats & Para'!$E$14:$G$14,,MATCH($C264,'C. PoC Summary Stats & Para'!$E$18:$G$18,0))","v":40.728999999999999},0]
[{"$f":"'A. Population Info'!A265","v":1000362772},{"$f":"'A. Population Info'!D265","v":"T.S.ZN02635.TXF.T00001/0.TX"},{"$f":"'A. Population Info'!F265","v":"HV"},{"$f":"'A. Population Info'!E265","v":8791.0735296048333},{"$f":"INDEX('C. PoC Summary Stats & Para'!$E$25:$G$25,,MATCH($C265,'C. PoC Summary Stats & Para'!$E$18:$G$18,0))","v":0},0,{"$f":"INDEX('C. PoC Summary Stats & Para'!$E$14:$G$14,,MATCH($C265,'C. PoC Summary Stats & Para'!$E$18:$G$18,0))","v":40.728999999999999},0]
[{"$f":"'A. Population Info'!A266","v":1000362807},{"$f":"'A. Population Info'!D266","v":"T.S.ZN15008.TXF.T00002/0.TX"},{"$f":"'A. Population Info'!F266","v":"HV"},{"$f":"'A. Population Info'!E266","v":3709.0115294808402},{"$f":"INDEX('C. PoC Summary Stats & Para'!$E$25:$G$25,,MATCH($C266,'C. PoC Summary Stats & Para'!$E$18:$G$18,0))","v":0},0,{"$f":"INDEX('C. PoC Summary Stats & Para'!$E$14:$G$14,,MATCH($C266,'C. PoC Summary Stats & Para'!$E$18:$G$18,0))","v":40.728999999999999},0]
[{"$f":"'A. Population Info'!A267","v":1000362836},{"$f":"'A. Population Info'!D267","v":"T.S.ZN12690.TXF.T00013/0.TX"},{"$f":"'A. Population Info'!F267","v":"HV"},{"$f":"'A. Population Info'!E267","v":10361.349307822},{"$f":"INDEX('C. PoC Summary Stats & Para'!$E$25:$G$25,,MATCH($C267,'C. PoC Summary Stats & Para'!$E$18:$G$18,0))","v":0},0,{"$f":"INDEX('C. PoC Summary Stats & Para'!$E$14:$G$14,,MATCH($C267,'C. PoC Summary Stats & Para'!$E$18:$G$18,0))","v":40.728999999999999},0]
[{"$f":"'A. Population Info'!A268","v":1000362870},{"$f":"'A. Population Info'!D268","v":"T.S.ZN00690.TXF.T00003/0.TX"},{"$f":"'A. Population Info'!F268","v":"HV"},{"$f":"'A. Population Info'!E268","v":6983.8712946800497},{"$f":"INDEX('C. PoC Summary Stats & Para'!$E$25:$G$25,,MATCH($C268,'C. PoC Summary Stats & Para'!$E$18:$G$18,0))","v":0},0,{"$f":"INDEX('C. PoC Summary Stats & Para'!$E$14:$G$14,,MATCH($C268,'C. PoC Summary Stats & Para'!$E$18:$G$18,0))","v":40.728999999999999},0]
[{"$f":"'A. Population Info'!A269","v":1000362899},{"$f":"'A. Population Info'!D269","v":"T.S.ZN00205.TXF.T00001/0.TX"},{"$f":"'A. Population Info'!F269","v":"HV"},{"$f":"'A. Population Info'!E269","v":4176.4495111529905},{"$f":"INDEX('C. PoC Summary Stats & Para'!$E$25:$G$25,,MATCH($C269,'C. PoC Summary Stats & Para'!$E$18:$G$18,0))","v":0},0,{"$f":"INDEX('C. PoC Summary Stats & Para'!$E$14:$G$14,,MATCH($C269,'C. PoC Summary Stats & Para'!$E$18:$G$18,0))","v":40.728999999999999},0]
[{"$f":"'A. Population Info'!A270","v":1000362927},{"$f":"'A. Population Info'!D270","v":"T.S.ZN00847.TXF.T00001/0.TX"},{"$f":"'A. Population Info'!F270","v":"HV"},{"$f":"'A. Population Info'!E270","v":11181.798898452065},{"$f":"INDEX('C. PoC Summary Stats & Para'!$E$25:$G$25,,MATCH($C270,'C. PoC Summary Stats & Para'!$E$18:$G$18,0))","v":0},0,{"$f":"INDEX('C. PoC Summary Stats & Para'!$E$14:$G$14,,MATCH($C270,'C. PoC Summary Stats & Para'!$E$18:$G$18,0))","v":40.728999999999999},0]
[{"$f":"'A. Population Info'!A271","v":1000362965},{"$f":"'A. Population Info'!D271","v":"T.S.ZN15013.TXF.T00002/0.TX"},{"$f":"'A. Population Info'!F271","v":"HV"},{"$f":"'A. Population Info'!E271","v":2309.2894413335666},{"$f":"INDEX('C. PoC Summary Stats & Para'!$E$25:$G$25,,MATCH($C271,'C. PoC Summary Stats & Para'!$E$18:$G$18,0))","v":0},0,{"$f":"INDEX('C. PoC Summary Stats & Para'!$E$14:$G$14,,MATCH($C271,'C. PoC Summary Stats & Para'!$E$18:$G$18,0))","v":40.728999999999999},0]
[{"$f":"'A. Population Info'!A272","v":1000362998},{"$f":"'A. Population Info'!D272","v":"T.S.ZN00243.TXF.T00002/0.TX"},{"$f":"'A. Population Info'!F272","v":"HV"},{"$f":"'A. Population Info'!E272","v":4498.9606184235554},{"$f":"INDEX('C. PoC Summary Stats & Para'!$E$25:$G$25,,MATCH($C272,'C. PoC Summary Stats & Para'!$E$18:$G$18,0))","v":0},0,{"$f":"INDEX('C. PoC Summary Stats & Para'!$E$14:$G$14,,MATCH($C272,'C. PoC Summary Stats & Para'!$E$18:$G$18,0))","v":40.728999999999999},0]
[{"$f":"'A. Population Info'!A273","v":1000366027},{"$f":"'A. Population Info'!D273","v":"T.S.ZN00515.TXF.T00001/0.TX"},{"$f":"'A. Population Info'!F273","v":"HV"},{"$f":"'A. Population Info'!E273","v":1622.44256064775},{"$f":"INDEX('C. PoC Summary Stats & Para'!$E$25:$G$25,,MATCH($C273,'C. PoC Summary Stats & Para'!$E$18:$G$18,0))","v":0},0,{"$f":"INDEX('C. PoC Summary Stats & Para'!$E$14:$G$14,,MATCH($C273,'C. PoC Summary Stats & Para'!$E$18:$G$18,0))","v":40.728999999999999},0]
[{"$f":"'A. Population Info'!A274","v":1000366060},{"$f":"'A. Population Info'!D274","v":"T.S.ZN02568.TXF.T00004/0.TX"},{"$f":"'A. Population Info'!F274","v":"HV"},{"$f":"'A. Population Info'!E274","v":9522.4053547612748},{"$f":"INDEX('C. PoC Summary Stats & Para'!$E$25:$G$25,,MATCH($C274,'C. PoC Summary Stats & Para'!$E$18:$G$18,0))","v":0},0,{"$f":"INDEX('C. PoC Summary Stats & Para'!$E$14:$G$14,,MATCH($C274,'C. PoC Summary Stats & Para'!$E$18:$G$18,0))","v":40.728999999999999},0]
[{"$f":"'A. Population Info'!A275","v":1000366091},{"$f":"'A. Population Info'!D275","v":"T.S.ZN12600.TXF.T00001/0.TX"},{"$f":"'A. Population Info'!F275","v":"HV"},{"$f":"'A. Population Info'!E275","v":5234.8719688691499},{"$f":"INDEX('C. PoC Summary Stats & Para'!$E$25:$G$25,,MATCH($C275,'C. PoC Summary Stats & Para'!$E$18:$G$18,0))","v":0},0,{"$f":"INDEX('C. PoC Summary Stats & Para'!$E$14:$G$14,,MATCH($C275,'C. PoC Summary Stats & Para'!$E$18:$G$18,0))","v":40.728999999999999},0]
[{"$f":"'A. Population Info'!A276","v":1000366122},{"$f":"'A. Population Info'!D276","v":"T.S.ZN10994.TXF.T00003/0.TX"},{"$f":"'A. Population Info'!F276","v":"HV"},{"$f":"'A. Population Info'!E276","v":5957.5220047965668},{"$f":"INDEX('C. PoC Summary Stats & Para'!$E$25:$G$25,,MATCH($C276,'C. PoC Summary Stats & Para'!$E$18:$G$18,0))","v":0},0,{"$f":"INDEX('C. PoC Summary Stats & Para'!$E$14:$G$14,,MATCH($C276,'C. PoC Summary Stats & Para'!$E$18:$G$18,0))","v":40.728999999999999},0]
[{"$f":"'A. Population Info'!A277","v":1000366153},{"$f":"'A. Population Info'!D277","v":"T.S.TS09200.TXF.T00003/0.TX"},{"$f":"'A. Population Info'!F277","v":"HV"},{"$f":"'A. Population Info'!E277","v":10011.918622042009},{"$f":"INDEX('C. PoC Summary Stats & Para'!$E$25:$G$25,,MATCH($C277,'C. PoC Summary Stats & Para'!$E$18:$G$18,0))","v":0},0,{"$f":"INDEX('C. PoC Summary Stats & Para'!$E$14:$G$14,,MATCH($C277,'C. PoC Summary Stats & Para'!$E$18:$G$18,0))","v":40.728999999999999},0]
[{"$f":"'A. Population Info'!A278","v":1000366184},{"$f":"'A. Population Info'!D278","v":"T.S.ZN08000.TXF.T00003/0.TX"},{"$f":"'A. Population Info'!F278","v":"HV"},{"$f":"'A. Population Info'!E278","v":14700.2642144533},{"$f":"INDEX('C. PoC Summary Stats & Para'!$E$25:$G$25,,MATCH($C278,'C. PoC Summary Stats & Para'!$E$18:$G$18,0))","v":0},0,{"$f":"INDEX('C. PoC Summary Stats & Para'!$E$14:$G$14,,MATCH($C278,'C. PoC Summary Stats & Para'!$E$18:$G$18,0))","v":40.728999999999999},0]
[{"$f":"'A. Population Info'!A279","v":1000366216},{"$f":"'A. Population Info'!D279","v":"T.S.ZN00129.TXF.T00001/0.TX"},{"$f":"'A. Population Info'!F279","v":"HV"},{"$f":"'A. Population Info'!E279","v":7148.3022660534998},{"$f":"INDEX('C. PoC Summary Stats & Para'!$E$25:$G$25,,MATCH($C279,'C. PoC Summary Stats & Para'!$E$18:$G$18,0))","v":0},0,{"$f":"INDEX('C. PoC Summary Stats & Para'!$E$14:$G$14,,MATCH($C279,'C. PoC Summary Stats & Para'!$E$18:$G$18,0))","v":40.728999999999999},0]
[{"$f":"'A. Population Info'!A280","v":1000366244},{"$f":"'A. Population Info'!D280","v":"T.S.ZN00813.TXF.T00001/0.TX"},{"$f":"'A. Population Info'!F280","v":"HV"},{"$f":"'A. Population Info'!E280","v":2263.9793722615964},{"$f":"INDEX('C. PoC Summary Stats & Para'!$E$25:$G$25,,MATCH($C280,'C. PoC Summary Stats & Para'!$E$18:$G$18,0))","v":0},0,{"$f":"INDEX('C. PoC Summary Stats & Para'!$E$14:$G$14,,MATCH($C280,'C. PoC Summary Stats & Para'!$E$18:$G$18,0))","v":40.728999999999999},0]
[{"$f":"'A. Population Info'!A281","v":1000366397},{"$f":"'A. Population Info'!D281","v":"T.S.ZN15015.TXF.T00002/0.TX"},{"$f":"'A. Population Info'!F281","v":"HV"},{"$f":"'A. Population Info'!E281","v":1817.6510259410634},{"$f":"INDEX('C. PoC Summary Stats & Para'!$E$25:$G$25,,MATCH($C281,'C. PoC Summary Stats & Para'!$E$18:$G$18,0))","v":0},0,{"$f":"INDEX('C. PoC Summary Stats & Para'!$E$14:$G$14,,MATCH($C281,'C. PoC Summary Stats & Para'!$E$18:$G$18,0))","v":40.728999999999999},0]
[{"$f":"'A. Population Info'!A282","v":1000366483},{"$f":"'A. Population Info'!D282","v":"T.S.ZN15015.TXF.T00001/0.TX"},{"$f":"'A. Population Info'!F282","v":"HV"},{"$f":"'A. Population Info'!E282","v":1817.6510259410634},{"$f":"INDEX('C. PoC Summary Stats & Para'!$E$25:$G$25,,MATCH($C282,'C. PoC Summary Stats & Para'!$E$18:$G$18,0))","v":0},0,{"$f":"INDEX('C. PoC Summary Stats & Para'!$E$14:$G$14,,MATCH($C282,'C. PoC Summary Stats & Para'!$E$18:$G$18,0))","v":40.728999999999999},0]
[{"$f":"'A. Population Info'!A283","v":1000366599},{"$f":"'A. Population Info'!D283","v":"T.S.ZN15005.TXF.T00003/0.TX"},{"$f":"'A. Population Info'!F283","v":"HV"},{"$f":"'A. Population Info'!E283","v":3485.410718387167},{"$f":"INDEX('C. PoC Summary Stats & Para'!$E$25:$G$25,,MATCH($C283,'C. PoC Summary Stats & Para'!$E$18:$G$18,0))","v":0},0,{"$f":"INDEX('C. PoC Summary Stats & Para'!$E$14:$G$14,,MATCH($C283,'C. PoC Summary Stats & Para'!$E$18:$G$18,0))","v":40.728999999999999},0]
[{"$f":"'A. Population Info'!A284","v":1000366630},{"$f":"'A. Population Info'!D284","v":"T.S.ZN15005.TXF.T00001/0.TX"},{"$f":"'A. Population Info'!F284","v":"HV"},{"$f":"'A. Population Info'!E284","v":3485.410718387167},{"$f":"INDEX('C. PoC Summary Stats & Para'!$E$25:$G$25,,MATCH($C284,'C. PoC Summary Stats & Para'!$E$18:$G$18,0))","v":0},0,{"$f":"INDEX('C. PoC Summary Stats & Para'!$E$14:$G$14,,MATCH($C284,'C. PoC Summary Stats & Para'!$E$18:$G$18,0))","v":40.728999999999999},0]
[{"$f":"'A. Population Info'!A285","v":1000366661},{"$f":"'A. Population Info'!D285","v":"T.S.ZN15004.TXF.T00002/0.TX"},{"$f":"'A. Population Info'!F285","v":"HV"},{"$f":"'A. Population Info'!E285","v":2807.3853147599152},{"$f":"INDEX('C. PoC Summary Stats & Para'!$E$25:$G$25,,MATCH($C285,'C. PoC Summary Stats & Para'!$E$18:$G$18,0))","v":0},0,{"$f":"INDEX('C. PoC Summary Stats & Para'!$E$14:$G$14,,MATCH($C285,'C. PoC Summary Stats & Para'!$E$18:$G$18,0))","v":40.728999999999999},0]
[{"$f":"'A. Population Info'!A286","v":1000366782},{"$f":"'A. Population Info'!D286","v":"T.S.ZN15012.TXF.T00001/0.TX"},{"$f":"'A. Population Info'!F286","v":"HV"},{"$f":"'A. Population Info'!E286","v":2721.3074925436199},{"$f":"INDEX('C. PoC Summary Stats & Para'!$E$25:$G$25,,MATCH($C286,'C. PoC Summary Stats & Para'!$E$18:$G$18,0))","v":0},0,{"$f":"INDEX('C. PoC Summary Stats & Para'!$E$14:$G$14,,MATCH($C286,'C. PoC Summary Stats & Para'!$E$18:$G$18,0))","v":40.728999999999999},0]
[{"$f":"'A. Population Info'!A287","v":1000366876},{"$f":"'A. Population Info'!D287","v":"T.S.ZN12660.TXF.T00001/0.TX"},{"$f":"'A. Population Info'!F287","v":"HV"},{"$f":"'A. Population Info'!E287","v":4169.9378584613651},{"$f":"INDEX('C. PoC Summary Stats & Para'!$E$25:$G$25,,MATCH($C287,'C. PoC Summary Stats & Para'!$E$18:$G$18,0))","v":0},0,{"$f":"INDEX('C. PoC Summary Stats & Para'!$E$14:$G$14,,MATCH($C287,'C. PoC Summary Stats & Para'!$E$18:$G$18,0))","v":40.728999999999999},0]
[{"$f":"'A. Population Info'!A288","v":1000366906},{"$f":"'A. Population Info'!D288","v":"T.S.ZN12660.TXF.T00002/0.TX"},{"$f":"'A. Population Info'!F288","v":"HV"},{"$f":"'A. Population Info'!E288","v":4169.9378584613651},{"$f":"INDEX('C. PoC Summary Stats & Para'!$E$25:$G$25,,MATCH($C288,'C. PoC Summary Stats & Para'!$E$18:$G$18,0))","v":0},0,{"$f":"INDEX('C. PoC Summary Stats & Para'!$E$14:$G$14,,MATCH($C288,'C. PoC Summary Stats & Para'!$E$18:$G$18,0))","v":40.728999999999999},0]
[{"$f":"'A. Population Info'!A289","v":1000367691},{"$f":"'A. Population Info'!D289","v":"T.S.ZN00213.TXF.T00002/0.TX"},{"$f":"'A. Population Info'!F289","v":"HV"},{"$f":"'A. Population Info'!E289","v":3533.875970062415},{"$f":"INDEX('C. PoC Summary Stats & Para'!$E$25:$G$25,,MATCH($C289,'C. PoC Summary Stats & Para'!$E$18:$G$18,0))","v":0},0,{"$f":"INDEX('C. PoC Summary Stats & Para'!$E$14:$G$14,,MATCH($C289,'C. PoC Summary Stats & Para'!$E$18:$G$18,0))","v":40.728999999999999},0]
[{"$f":"'A. Population Info'!A290","v":1000367704},{"$f":"'A. Population Info'!D290","v":"T.S.ZN00213.TXF.T00001/0.TX"},{"$f":"'A. Population Info'!F290","v":"HV"},{"$f":"'A. Population Info'!E290","v":3533.875970062415},{"$f":"INDEX('C. PoC Summary Stats & Para'!$E$25:$G$25,,MATCH($C290,'C. PoC Summary Stats & Para'!$E$18:$G$18,0))","v":0},0,{"$f":"INDEX('C. PoC Summary Stats & Para'!$E$14:$G$14,,MATCH($C290,'C. PoC Summary Stats & Para'!$E$18:$G$18,0))","v":40.728999999999999},0]
[{"$f":"'A. Population Info'!A291","v":1000370022},{"$f":"'A. Population Info'!D291","v":"T.S.ZN12570.TXF.T00013/0.TX"},{"$f":"'A. Population Info'!F291","v":"HV"},{"$f":"'A. Population Info'!E291","v":5141.6948496801006},{"$f":"INDEX('C. PoC Summary Stats & Para'!$E$25:$G$25,,MATCH($C291,'C. PoC Summary Stats & Para'!$E$18:$G$18,0))","v":0},0,{"$f":"INDEX('C. PoC Summary Stats & Para'!$E$14:$G$14,,MATCH($C291,'C. PoC Summary Stats & Para'!$E$18:$G$18,0))","v":40.728999999999999},0]
[{"$f":"'A. Population Info'!A292","v":1000370112},{"$f":"'A. Population Info'!D292","v":"T.S.ZN15013.TXF.T00001/0.TX"},{"$f":"'A. Population Info'!F292","v":"HV"},{"$f":"'A. Population Info'!E292","v":2309.2894413335666},{"$f":"INDEX('C. PoC Summary Stats & Para'!$E$25:$G$25,,MATCH($C292,'C. PoC Summary Stats & Para'!$E$18:$G$18,0))","v":0},0,{"$f":"INDEX('C. PoC Summary Stats & Para'!$E$14:$G$14,,MATCH($C292,'C. PoC Summary Stats & Para'!$E$18:$G$18,0))","v":40.728999999999999},0]
[{"$f":"'A. Population Info'!A293","v":1000370140},{"$f":"'A. Population Info'!D293","v":"T.S.ZN15013.TXF.T00003/0.TX"},{"$f":"'A. Population Info'!F293","v":"HV"},{"$f":"'A. Population Info'!E293","v":2309.2894413335666},{"$f":"INDEX('C. PoC Summary Stats & Para'!$E$25:$G$25,,MATCH($C293,'C. PoC Summary Stats & Para'!$E$18:$G$18,0))","v":0},0,{"$f":"INDEX('C. PoC Summary Stats & Para'!$E$14:$G$14,,MATCH($C293,'C. PoC Summary Stats & Para'!$E$18:$G$18,0))","v":40.728999999999999},0]
[{"$f":"'A. Population Info'!A294","v":1000370197},{"$f":"'A. Population Info'!D294","v":"T.S.ZN12630.TXF.T00002/0.TX"},{"$f":"'A. Population Info'!F294","v":"HV"},{"$f":"'A. Population Info'!E294","v":2541.0203144254901},{"$f":"INDEX('C. PoC Summary Stats & Para'!$E$25:$G$25,,MATCH($C294,'C. PoC Summary Stats & Para'!$E$18:$G$18,0))","v":0},0,{"$f":"INDEX('C. PoC Summary Stats & Para'!$E$14:$G$14,,MATCH($C294,'C. PoC Summary Stats & Para'!$E$18:$G$18,0))","v":40.728999999999999},0]
[{"$f":"'A. Population Info'!A295","v":1000370256},{"$f":"'A. Population Info'!D295","v":"T.S.ZN12620.TXF.T00001/0.TX"},{"$f":"'A. Population Info'!F295","v":"HV"},{"$f":"'A. Population Info'!E295","v":3127.330764066},{"$f":"INDEX('C. PoC Summary Stats & Para'!$E$25:$G$25,,MATCH($C295,'C. PoC Summary Stats & Para'!$E$18:$G$18,0))","v":0},0,{"$f":"INDEX('C. PoC Summary Stats & Para'!$E$14:$G$14,,MATCH($C295,'C. PoC Summary Stats & Para'!$E$18:$G$18,0))","v":40.728999999999999},0]
[{"$f":"'A. Population Info'!A296","v":1000370289},{"$f":"'A. Population Info'!D296","v":"T.S.ZN12620.TXF.T00002/0.TX"},{"$f":"'A. Population Info'!F296","v":"HV"},{"$f":"'A. Population Info'!E296","v":3127.330764066},{"$f":"INDEX('C. PoC Summary Stats & Para'!$E$25:$G$25,,MATCH($C296,'C. PoC Summary Stats & Para'!$E$18:$G$18,0))","v":0},0,{"$f":"INDEX('C. PoC Summary Stats & Para'!$E$14:$G$14,,MATCH($C296,'C. PoC Summary Stats & Para'!$E$18:$G$18,0))","v":40.728999999999999},0]
[{"$f":"'A. Population Info'!A297","v":1000370319},{"$f":"'A. Population Info'!D297","v":"T.S.ZN12620.TXF.T00003/0.TX"},{"$f":"'A. Population Info'!F297","v":"HV"},{"$f":"'A. Population Info'!E297","v":3127.330764066},{"$f":"INDEX('C. PoC Summary Stats & Para'!$E$25:$G$25,,MATCH($C297,'C. PoC Summary Stats & Para'!$E$18:$G$18,0))","v":0},0,{"$f":"INDEX('C. PoC Summary Stats & Para'!$E$14:$G$14,,MATCH($C297,'C. PoC Summary Stats & Para'!$E$18:$G$18,0))","v":40.728999999999999},0]
[{"$f":"'A. Population Info'!A298","v":1000370381},{"$f":"'A. Population Info'!D298","v":"T.S.ZN12630.TXF.T00001/0.TX"},{"$f":"'A. Population Info'!F298","v":"HV"},{"$f":"'A. Population Info'!E298","v":2541.0203144254901},{"$f":"INDEX('C. PoC Summary Stats & Para'!$E$25:$G$25,,MATCH($C298,'C. PoC Summary Stats & Para'!$E$18:$G$18,0))","v":0},0,{"$f":"INDEX('C. PoC Summary Stats & Para'!$E$14:$G$14,,MATCH($C298,'C. PoC Summary Stats & Para'!$E$18:$G$18,0))","v":40.728999999999999},0]
[{"$f":"'A. Population Info'!A299","v":1000370592},{"$f":"'A. Population Info'!D299","v":"T.S.TS07250.TXF.T00001/0.TX"},{"$f":"'A. Population Info'!F299","v":"HV"},{"$f":"'A. Population Info'!E299","v":{"$error":"#N/A"}},{"$f":"INDEX('C. PoC Summary Stats & Para'!$E$25:$G$25,,MATCH($C299,'C. PoC Summary Stats & Para'!$E$18:$G$18,0))","v":0},"",{"$f":"INDEX('C. PoC Summary Stats & Para'!$E$14:$G$14,,MATCH($C299,'C. PoC Summary Stats & Para'!$E$18:$G$18,0))","v":40.728999999999999},0]
[{"$f":"'A. Population Info'!A300","v":1000370708},{"$f":"'A. Population Info'!D300","v":"T.S.TS14440.TXF.T00001/0.TX"},{"$f":"'A. Population Info'!F300","v":"HV"},{"$f":"'A. Population Info'!E300","v":15865.965247112872},{"$f":"INDEX('C. PoC Summary Stats & Para'!$E$25:$G$25,,MATCH($C300,'C. PoC Summary Stats & Para'!$E$18:$G$18,0))","v":0},0,{"$f":"INDEX('C. PoC Summary Stats & Para'!$E$14:$G$14,,MATCH($C300,'C. PoC Summary Stats & Para'!$E$18:$G$18,0))","v":40.728999999999999},0]
[{"$f":"'A. Population Info'!A301","v":1000370828},{"$f":"'A. Population Info'!D301","v":"T.S.TS07270.TXF.T00004/0.TX"},{"$f":"'A. Population Info'!F301","v":"HV"},{"$f":"'A. Population Info'!E301","v":18937.954948640992},{"$f":"INDEX('C. PoC Summary Stats & Para'!$E$25:$G$25,,MATCH($C301,'C. PoC Summary Stats & Para'!$E$18:$G$18,0))","v":0},0,{"$f":"INDEX('C. PoC Summary Stats & Para'!$E$14:$G$14,,MATCH($C301,'C. PoC Summary Stats & Para'!$E$18:$G$18,0))","v":40.728999999999999},0]
[{"$f":"'A. Population Info'!A302","v":1000370886},{"$f":"'A. Population Info'!D302","v":"T.S.TS16600.TXF.T00001/0.TX"},{"$f":"'A. Population Info'!F302","v":"HV"},{"$f":"'A. Population Info'!E302","v":20854.448960514972},{"$f":"INDEX('C. PoC Summary Stats & Para'!$E$25:$G$25,,MATCH($C302,'C. PoC Summary Stats & Para'!$E$18:$G$18,0))","v":0},0,{"$f":"INDEX('C. PoC Summary Stats & Para'!$E$14:$G$14,,MATCH($C302,'C. PoC Summary Stats & Para'!$E$18:$G$18,0))","v":40.728999999999999},0]
[{"$f":"'A. Population Info'!A303","v":1000374033},{"$f":"'A. Population Info'!D303","v":"T.S.TS10900.TXF.T00003/0.TX"},{"$f":"'A. Population Info'!F303","v":"HV"},{"$f":"'A. Population Info'!E303","v":14303.164705002158},{"$f":"INDEX('C. PoC Summary Stats & Para'!$E$25:$G$25,,MATCH($C303,'C. PoC Summary Stats & Para'!$E$18:$G$18,0))","v":0},0,{"$f":"INDEX('C. PoC Summary Stats & Para'!$E$14:$G$14,,MATCH($C303,'C. PoC Summary Stats & Para'!$E$18:$G$18,0))","v":40.728999999999999},0]
[{"$f":"'A. Population Info'!A304","v":1000374059},{"$f":"'A. Population Info'!D304","v":"T.S.TS10900.TXF.T00002/0.TX"},{"$f":"'A. Population Info'!F304","v":"HV"},{"$f":"'A. Population Info'!E304","v":14303.164705002158},{"$f":"INDEX('C. PoC Summary Stats & Para'!$E$25:$G$25,,MATCH($C304,'C. PoC Summary Stats & Para'!$E$18:$G$18,0))","v":0},0,{"$f":"INDEX('C. PoC Summary Stats & Para'!$E$14:$G$14,,MATCH($C304,'C. PoC Summary Stats & Para'!$E$18:$G$18,0))","v":40.728999999999999},0]
[{"$f":"'A. Population Info'!A305","v":1000374121},{"$f":"'A. Population Info'!D305","v":"T.S.TS07170.TXF.T00001/0.TX"},{"$f":"'A. Population Info'!F305","v":"HV"},{"$f":"'A. Population Info'!E305","v":18744.833622971251},{"$f":"INDEX('C. PoC Summary Stats & Para'!$E$25:$G$25,,MATCH($C305,'C. PoC Summary Stats & Para'!$E$18:$G$18,0))","v":0},0,{"$f":"INDEX('C. PoC Summary Stats & Para'!$E$14:$G$14,,MATCH($C305,'C. PoC Summary Stats & Para'!$E$18:$G$18,0))","v":40.728999999999999},0]
[{"$f":"'A. Population Info'!A306","v":1000374180},{"$f":"'A. Population Info'!D306","v":"T.S.TS07250.TXF.T00002/0.TX"},{"$f":"'A. Population Info'!F306","v":"HV"},{"$f":"'A. Population Info'!E306","v":{"$error":"#N/A"}},{"$f":"INDEX('C. PoC Summary Stats & Para'!$E$25:$G$25,,MATCH($C306,'C. PoC Summary Stats & Para'!$E$18:$G$18,0))","v":0},"",{"$f":"INDEX('C. PoC Summary Stats & Para'!$E$14:$G$14,,MATCH($C306,'C. PoC Summary Stats & Para'!$E$18:$G$18,0))","v":40.728999999999999},0]
[{"$f":"'A. Population Info'!A307","v":1000374211},{"$f":"'A. Population Info'!D307","v":"T.S.TS00407.TXF.T00003/0.TX"},{"$f":"'A. Population Info'!F307","v":"HV"},{"$f":"'A. Population Info'!E307","v":2255.4251620072664},{"$f":"INDEX('C. PoC Summary Stats & Para'!$E$25:$G$25,,MATCH($C307,'C. PoC Summary Stats & Para'!$E$18:$G$18,0))","v":0},0,{"$f":"INDEX('C. PoC Summary Stats & Para'!$E$14:$G$14,,MATCH($C307,'C. PoC Summary Stats & Para'!$E$18:$G$18,0))","v":40.728999999999999},0]
[{"$f":"'A. Population Info'!A308","v":1000374241},{"$f":"'A. Population Info'!D308","v":"T.S.TS07220.TXF.T00003/0.TX"},{"$f":"'A. Population Info'!F308","v":"HV"},{"$f":"'A. Population Info'!E308","v":17709.508796798535},{"$f":"INDEX('C. PoC Summary Stats & Para'!$E$25:$G$25,,MATCH($C308,'C. PoC Summary Stats & Para'!$E$18:$G$18,0))","v":0},0,{"$f":"INDEX('C. PoC Summary Stats & Para'!$E$14:$G$14,,MATCH($C308,'C. PoC Summary Stats & Para'!$E$18:$G$18,0))","v":40.728999999999999},0]
[{"$f":"'A. Population Info'!A309","v":1000374449},{"$f":"'A. Population Info'!D309","v":"T.S.TS07220.TXF.T00001/0.TX"},{"$f":"'A. Population Info'!F309","v":"HV"},{"$f":"'A. Population Info'!E309","v":17709.508796798535},{"$f":"INDEX('C. PoC Summary Stats & Para'!$E$25:$G$25,,MATCH($C309,'C. PoC Summary Stats & Para'!$E$18:$G$18,0))","v":0},0,{"$f":"INDEX('C. PoC Summary Stats & Para'!$E$14:$G$14,,MATCH($C309,'C. PoC Summary Stats & Para'!$E$18:$G$18,0))","v":40.728999999999999},0]
[{"$f":"'A. Population Info'!A310","v":1000374873},{"$f":"'A. Population Info'!D310","v":"T.S.ZN00520.TXF.T00001/0.TX"},{"$f":"'A. Population Info'!F310","v":"HV-single"},{"$f":"'A. Population Info'!E310","v":395.114998698482},{"$f":"INDEX('C. PoC Summary Stats & Para'!$E$25:$G$25,,MATCH($C310,'C. PoC Summary Stats & Para'!$E$18:$G$18,0))","v":0},0,{"$f":"INDEX('C. PoC Summary Stats & Para'!$E$14:$G$14,,MATCH($C310,'C. PoC Summary Stats & Para'!$E$18:$G$18,0))","v":40.728999999999999},0]
[{"$f":"'A. Population Info'!A311","v":1000375968},{"$f":"'A. Population Info'!D311","v":"T.S.ZN00807.TXF.T0001A/0.TX"},{"$f":"'A. Population Info'!F311","v":"HV"},{"$f":"'A. Population Info'!E311","v":538.25717876837746},{"$f":"INDEX('C. PoC Summary Stats & Para'!$E$25:$G$25,,MATCH($C311,'C. PoC Summary Stats & Para'!$E$18:$G$18,0))","v":0},0,{"$f":"INDEX('C. PoC Summary Stats & Para'!$E$14:$G$14,,MATCH($C311,'C. PoC Summary Stats & Para'!$E$18:$G$18,0))","v":40.728999999999999},0]
[{"$f":"'A. Population Info'!A312","v":1000375980},{"$f":"'A. Population Info'!D312","v":"T.S.ZN12640.TXF.T00002/0.TX"},{"$f":"'A. Population Info'!F312","v":"HV"},{"$f":"'A. Population Info'!E312","v":5712.1209929861498},{"$f":"INDEX('C. PoC Summary Stats & Para'!$E$25:$G$25,,MATCH($C312,'C. PoC Summary Stats & Para'!$E$18:$G$18,0))","v":0},0,{"$f":"INDEX('C. PoC Summary Stats & Para'!$E$14:$G$14,,MATCH($C312,'C. PoC Summary Stats & Para'!$E$18:$G$18,0))","v":40.728999999999999},0]
[{"$f":"'A. Population Info'!A313","v":1000390269},{"$f":"'A. Population Info'!D313","v":"T.S.ZN00384.TXF.T00003/0.TX"},{"$f":"'A. Population Info'!F313","v":"HV"},{"$f":"'A. Population Info'!E313","v":2946.7368276576999},{"$f":"INDEX('C. PoC Summary Stats & Para'!$E$25:$G$25,,MATCH($C313,'C. PoC Summary Stats & Para'!$E$18:$G$18,0))","v":0},0,{"$f":"INDEX('C. PoC Summary Stats & Para'!$E$14:$G$14,,MATCH($C313,'C. PoC Summary Stats & Para'!$E$18:$G$18,0))","v":40.728999999999999},0]
[{"$f":"'A. Population Info'!A314","v":1000391949},{"$f":"'A. Population Info'!D314","v":"T.S.ZN01068.TXF.T00002/0.TX"},{"$f":"'A. Population Info'!F314","v":"HV"},{"$f":"'A. Population Info'!E314","v":3039.30688697609},{"$f":"INDEX('C. PoC Summary Stats & Para'!$E$25:$G$25,,MATCH($C314,'C. PoC Summary Stats & Para'!$E$18:$G$18,0))","v":0},0,{"$f":"INDEX('C. PoC Summary Stats & Para'!$E$14:$G$14,,MATCH($C314,'C. PoC Summary Stats & Para'!$E$18:$G$18,0))","v":40.728999999999999},0]
[{"$f":"'A. Population Info'!A315","v":1000395044},{"$f":"'A. Population Info'!D315","v":"T.S.ZN00072.TXF.T00002/0.TX"},{"$f":"'A. Population Info'!F315","v":"HV"},{"$f":"'A. Population Info'!E315","v":832.8119210809275},{"$f":"INDEX('C. PoC Summary Stats & Para'!$E$25:$G$25,,MATCH($C315,'C. PoC Summary Stats & Para'!$E$18:$G$18,0))","v":0},0,{"$f":"INDEX('C. PoC Summary Stats & Para'!$E$14:$G$14,,MATCH($C315,'C. PoC Summary Stats & Para'!$E$18:$G$18,0))","v":40.728999999999999},0]
[{"$f":"'A. Population Info'!A316","v":1000395120},{"$f":"'A. Population Info'!D316","v":"T.S.ZN01290.TXF.T00001/0.TX"},{"$f":"'A. Population Info'!F316","v":"HV"},{"$f":"'A. Population Info'!E316","v":4156.759234351367},{"$f":"INDEX('C. PoC Summary Stats & Para'!$E$25:$G$25,,MATCH($C316,'C. PoC Summary Stats & Para'!$E$18:$G$18,0))","v":0},0,{"$f":"INDEX('C. PoC Summary Stats & Para'!$E$14:$G$14,,MATCH($C316,'C. PoC Summary Stats & Para'!$E$18:$G$18,0))","v":40.728999999999999},0]
[{"$f":"'A. Population Info'!A317","v":1000395215},{"$f":"'A. Population Info'!D317","v":"T.S.ZN00072.TXF.T00003/0.TX"},{"$f":"'A. Population Info'!F317","v":"HV"},{"$f":"'A. Population Info'!E317","v":832.8119210809275},{"$f":"INDEX('C. PoC Summary Stats & Para'!$E$25:$G$25,,MATCH($C317,'C. PoC Summary Stats & Para'!$E$18:$G$18,0))","v":0},0,{"$f":"INDEX('C. PoC Summary Stats & Para'!$E$14:$G$14,,MATCH($C317,'C. PoC Summary Stats & Para'!$E$18:$G$18,0))","v":40.728999999999999},0]
[{"$f":"'A. Population Info'!A318","v":1000395235},{"$f":"'A. Population Info'!D318","v":"T.S.ZN00072.TXF.T00001/0.TX"},{"$f":"'A. Population Info'!F318","v":"HV"},{"$f":"'A. Population Info'!E318","v":832.8119210809275},{"$f":"INDEX('C. PoC Summary Stats & Para'!$E$25:$G$25,,MATCH($C318,'C. PoC Summary Stats & Para'!$E$18:$G$18,0))","v":0},0,{"$f":"INDEX('C. PoC Summary Stats & Para'!$E$14:$G$14,,MATCH($C318,'C. PoC Summary Stats & Para'!$E$18:$G$18,0))","v":40.728999999999999},0]
[{"$f":"'A. Population Info'!A319","v":1000395352},{"$f":"'A. Population Info'!D319","v":"T.S.ZN01285.TXF.T00004/0.TX"},{"$f":"'A. Population Info'!F319","v":"HV"},{"$f":"'A. Population Info'!E319","v":7059.447825921925},{"$f":"INDEX('C. PoC Summary Stats & Para'!$E$25:$G$25,,MATCH($C319,'C. PoC Summary Stats & Para'!$E$18:$G$18,0))","v":0},0,{"$f":"INDEX('C. PoC Summary Stats & Para'!$E$14:$G$14,,MATCH($C319,'C. PoC Summary Stats & Para'!$E$18:$G$18,0))","v":40.728999999999999},0]
[{"$f":"'A. Population Info'!A320","v":1000395372},{"$f":"'A. Population Info'!D320","v":"T.S.ZN00188.TXF.T00001/0.TX"},{"$f":"'A. Population Info'!F320","v":"HV"},{"$f":"'A. Population Info'!E320","v":7495.1161749794001},{"$f":"INDEX('C. PoC Summary Stats & Para'!$E$25:$G$25,,MATCH($C320,'C. PoC Summary Stats & Para'!$E$18:$G$18,0))","v":0},0,{"$f":"INDEX('C. PoC Summary Stats & Para'!$E$14:$G$14,,MATCH($C320,'C. PoC Summary Stats & Para'!$E$18:$G$18,0))","v":40.728999999999999},0]
[{"$f":"'A. Population Info'!A321","v":1000395408},{"$f":"'A. Population Info'!D321","v":"T.S.ZN00221.TXF.T00001/0.TX"},{"$f":"'A. Population Info'!F321","v":"HV"},{"$f":"'A. Population Info'!E321","v":3443.7886340472601},{"$f":"INDEX('C. PoC Summary Stats & Para'!$E$25:$G$25,,MATCH($C321,'C. PoC Summary Stats & Para'!$E$18:$G$18,0))","v":0},0,{"$f":"INDEX('C. PoC Summary Stats & Para'!$E$14:$G$14,,MATCH($C321,'C. PoC Summary Stats & Para'!$E$18:$G$18,0))","v":40.728999999999999},0]
[{"$f":"'A. Population Info'!A322","v":1000395428},{"$f":"'A. Population Info'!D322","v":"T.S.ZN00221.TXF.T00002/0.TX"},{"$f":"'A. Population Info'!F322","v":"HV"},{"$f":"'A. Population Info'!E322","v":3443.7886340472601},{"$f":"INDEX('C. PoC Summary Stats & Para'!$E$25:$G$25,,MATCH($C322,'C. PoC Summary Stats & Para'!$E$18:$G$18,0))","v":0},0,{"$f":"INDEX('C. PoC Summary Stats & Para'!$E$14:$G$14,,MATCH($C322,'C. PoC Summary Stats & Para'!$E$18:$G$18,0))","v":40.728999999999999},0]
[{"$f":"'A. Population Info'!A323","v":1000395446},{"$f":"'A. Population Info'!D323","v":"T.S.ZN00227.TXF.T00001/0.TX"},{"$f":"'A. Population Info'!F323","v":"HV"},{"$f":"'A. Population Info'!E323","v":2057.5824074778852},{"$f":"INDEX('C. PoC Summary Stats & Para'!$E$25:$G$25,,MATCH($C323,'C. PoC Summary Stats & Para'!$E$18:$G$18,0))","v":0},0,{"$f":"INDEX('C. PoC Summary Stats & Para'!$E$14:$G$14,,MATCH($C323,'C. PoC Summary Stats & Para'!$E$18:$G$18,0))","v":40.728999999999999},0]
[{"$f":"'A. Population Info'!A324","v":1000395463},{"$f":"'A. Population Info'!D324","v":"T.S.ZN15004.TXF.T00003/0.TX"},{"$f":"'A. Population Info'!F324","v":"HV"},{"$f":"'A. Population Info'!E324","v":2807.3853147599152},{"$f":"INDEX('C. PoC Summary Stats & Para'!$E$25:$G$25,,MATCH($C324,'C. PoC Summary Stats & Para'!$E$18:$G$18,0))","v":0},0,{"$f":"INDEX('C. PoC Summary Stats & Para'!$E$14:$G$14,,MATCH($C324,'C. PoC Summary Stats & Para'!$E$18:$G$18,0))","v":40.728999999999999},0]
[{"$f":"'A. Population Info'!A325","v":1000395483},{"$f":"'A. Population Info'!D325","v":"T.S.ZN00524.TXF.T00001/0.TX"},{"$f":"'A. Population Info'!F325","v":"HV"},{"$f":"'A. Population Info'!E325","v":3815.324461637525},{"$f":"INDEX('C. PoC Summary Stats & Para'!$E$25:$G$25,,MATCH($C325,'C. PoC Summary Stats & Para'!$E$18:$G$18,0))","v":0},0,{"$f":"INDEX('C. PoC Summary Stats & Para'!$E$14:$G$14,,MATCH($C325,'C. PoC Summary Stats & Para'!$E$18:$G$18,0))","v":40.728999999999999},0]
[{"$f":"'A. Population Info'!A326","v":1000395500},{"$f":"'A. Population Info'!D326","v":"T.S.ZN00524.TXF.T00002/0.TX"},{"$f":"'A. Population Info'!F326","v":"HV"},{"$f":"'A. Population Info'!E326","v":3815.324461637525},{"$f":"INDEX('C. PoC Summary Stats & Para'!$E$25:$G$25,,MATCH($C326,'C. PoC Summary Stats & Para'!$E$18:$G$18,0))","v":0},0,{"$f":"INDEX('C. PoC Summary Stats & Para'!$E$14:$G$14,,MATCH($C326,'C. PoC Summary Stats & Para'!$E$18:$G$18,0))","v":40.728999999999999},{"$f":"IFERROR(F326*G326,$L$4*G326)","v":0}]
[{"$f":"'A. Population Info'!A327","v":1000395521},{"$f":"'A. Population Info'!D327","v":"T.S.ZN00232.TXF.T00003/0.TX"},{"$f":"'A. Population Info'!F327","v":"HV"},{"$f":"'A. Population Info'!E327","v":3513.2201072383336},{"$f":"INDEX('C. PoC Summary Stats & Para'!$E$25:$G$25,,MATCH($C327,'C. PoC Summary Stats & Para'!$E$18:$G$18,0))","v":0},{"$f":"IFERROR(D327*E327,\"\")","v":0},{"$f":"INDEX('C. PoC Summary Stats & Para'!$E$14:$G$14,,MATCH($C327,'C. PoC Summary Stats & Para'!$E$18:$G$18,0))","v":40.728999999999999},0]
[{"$f":"'A. Population Info'!A328","v":1000395538},{"$f":"'A. Population Info'!D328","v":"T.S.ZN02400.TXF.T00003/0.TX"},{"$f":"'A. Population Info'!F328","v":"HV"},{"$f":"'A. Population Info'!E328","v":3172.9798906690503},{"$f":"INDEX('C. PoC Summary Stats & Para'!$E$25:$G$25,,MATCH($C328,'C. PoC Summary Stats & Para'!$E$18:$G$18,0))","v":0},0,{"$f":"INDEX('C. PoC Summary Stats & Para'!$E$14:$G$14,,MATCH($C328,'C. PoC Summary Stats & Para'!$E$18:$G$18,0))","v":40.728999999999999},0]
[{"$f":"'A. Population Info'!A329","v":1000395577},{"$f":"'A. Population Info'!D329","v":"T.S.ZN15009.TXF.T00001/0.TX"},{"$f":"'A. Population Info'!F329","v":"HV"},{"$f":"'A. Population Info'!E329","v":4643.4074513087853},{"$f":"INDEX('C. PoC Summary Stats & Para'!$E$25:$G$25,,MATCH($C329,'C. PoC Summary Stats & Para'!$E$18:$G$18,0))","v":0},0,{"$f":"INDEX('C. PoC Summary Stats & Para'!$E$14:$G$14,,MATCH($C329,'C. PoC Summary Stats & Para'!$E$18:$G$18,0))","v":40.728999999999999},0]
[{"$f":"'A. Population Info'!A330","v":1000395597},{"$f":"'A. Population Info'!D330","v":"T.S.ZN00222.TXF.T00002/0.TX"},{"$f":"'A. Population Info'!F330","v":"HV"},{"$f":"'A. Population Info'!E330","v":2649.1429891191151},{"$f":"INDEX('C. PoC Summary Stats & Para'!$E$25:$G$25,,MATCH($C330,'C. PoC Summary Stats & Para'!$E$18:$G$18,0))","v":0},0,{"$f":"INDEX('C. PoC Summary Stats & Para'!$E$14:$G$14,,MATCH($C330,'C. PoC Summary Stats & Para'!$E$18:$G$18,0))","v":40.728999999999999},0]
[{"$f":"'A. Population Info'!A331","v":1000395616},{"$f":"'A. Population Info'!D331","v":"T.S.ZN00222.TXF.T00001/0.TX"},{"$f":"'A. Population Info'!F331","v":"HV"},{"$f":"'A. Population Info'!E331","v":2649.1429891191151},{"$f":"INDEX('C. PoC Summary Stats & Para'!$E$25:$G$25,,MATCH($C331,'C. PoC Summary Stats & Para'!$E$18:$G$18,0))","v":0},0,{"$f":"INDEX('C. PoC Summary Stats & Para'!$E$14:$G$14,,MATCH($C331,'C. PoC Summary Stats & Para'!$E$18:$G$18,0))","v":40.728999999999999},0]
[{"$f":"'A. Population Info'!A332","v":1000395639},{"$f":"'A. Population Info'!D332","v":"T.S.TS07240.TXF.T00001/0.TX"},{"$f":"'A. Population Info'!F332","v":"HV"},{"$f":"'A. Population Info'!E332","v":{"$error":"#N/A"}},{"$f":"INDEX('C. PoC Summary Stats & Para'!$E$25:$G$25,,MATCH($C332,'C. PoC Summary Stats & Para'!$E$18:$G$18,0))","v":0},"",{"$f":"INDEX('C. PoC Summary Stats & Para'!$E$14:$G$14,,MATCH($C332,'C. PoC Summary Stats & Para'!$E$18:$G$18,0))","v":40.728999999999999},0]
[{"$f":"'A. Population Info'!A333","v":1000395669},{"$f":"'A. Population Info'!D333","v":"T.S.ZN02635.TXF.T00003/0.TX"},{"$f":"'A. Population Info'!F333","v":"HV"},{"$f":"'A. Population Info'!E333","v":8791.0735296048333},{"$f":"INDEX('C. PoC Summary Stats & Para'!$E$25:$G$25,,MATCH($C333,'C. PoC Summary Stats & Para'!$E$18:$G$18,0))","v":0},0,{"$f":"INDEX('C. PoC Summary Stats & Para'!$E$14:$G$14,,MATCH($C333,'C. PoC Summary Stats & Para'!$E$18:$G$18,0))","v":40.728999999999999},0]
[{"$f":"'A. Population Info'!A334","v":1000395733},{"$f":"'A. Population Info'!D334","v":"T.S.ZN00515.TXF.T00002/0.TX"},{"$f":"'A. Population Info'!F334","v":"HV"},{"$f":"'A. Population Info'!E334","v":1622.44256064775},{"$f":"INDEX('C. PoC Summary Stats & Para'!$E$25:$G$25,,MATCH($C334,'C. PoC Summary Stats & Para'!$E$18:$G$18,0))","v":0},0,{"$f":"INDEX('C. PoC Summary Stats & Para'!$E$14:$G$14,,MATCH($C334,'C. PoC Summary Stats & Para'!$E$18:$G$18,0))","v":40.728999999999999},0]
[{"$f":"'A. Population Info'!A335","v":1000395763},{"$f":"'A. Population Info'!D335","v":"T.S.TS00409.TXF.T00003/0.TX"},{"$f":"'A. Population Info'!F335","v":"HV"},{"$f":"'A. Population Info'!E335","v":8935.9804578713283},{"$f":"INDEX('C. PoC Summary Stats & Para'!$E$25:$G$25,,MATCH($C335,'C. PoC Summary Stats & Para'!$E$18:$G$18,0))","v":0},0,{"$f":"INDEX('C. PoC Summary Stats & Para'!$E$14:$G$14,,MATCH($C335,'C. PoC Summary Stats & Para'!$E$18:$G$18,0))","v":40.728999999999999},0]
[{"$f":"'A. Population Info'!A336","v":1000395789},{"$f":"'A. Population Info'!D336","v":"T.S.TS07170.TXF.T00002/0.TX"},{"$f":"'A. Population Info'!F336","v":"HV"},{"$f":"'A. Population Info'!E336","v":18744.833622971251},{"$f":"INDEX('C. PoC Summary Stats & Para'!$E$25:$G$25,,MATCH($C336,'C. PoC Summary Stats & Para'!$E$18:$G$18,0))","v":0},0,{"$f":"INDEX('C. PoC Summary Stats & Para'!$E$14:$G$14,,MATCH($C336,'C. PoC Summary Stats & Para'!$E$18:$G$18,0))","v":40.728999999999999},0]
[{"$f":"'A. Population Info'!A337","v":1000395818},{"$f":"'A. Population Info'!D337","v":"T.S.ZN14891.TXF.T00001/0.TX"},{"$f":"'A. Population Info'!F337","v":"HV"},{"$f":"'A. Population Info'!E337","v":8268.0129029031505},{"$f":"INDEX('C. PoC Summary Stats & Para'!$E$25:$G$25,,MATCH($C337,'C. PoC Summary Stats & Para'!$E$18:$G$18,0))","v":0},0,{"$f":"INDEX('C. PoC Summary Stats & Para'!$E$14:$G$14,,MATCH($C337,'C. PoC Summary Stats & Para'!$E$18:$G$18,0))","v":40.728999999999999},0]
[{"$f":"'A. Population Info'!A338","v":1000395877},{"$f":"'A. Population Info'!D338","v":"T.S.TS00412.TXF.T00003/0.TX"},{"$f":"'A. Population Info'!F338","v":"HV"},{"$f":"'A. Population Info'!E338","v":15417.063811061294},{"$f":"INDEX('C. PoC Summary Stats & Para'!$E$25:$G$25,,MATCH($C338,'C. PoC Summary Stats & Para'!$E$18:$G$18,0))","v":0},0,{"$f":"INDEX('C. PoC Summary Stats & Para'!$E$14:$G$14,,MATCH($C338,'C. PoC Summary Stats & Para'!$E$18:$G$18,0))","v":40.728999999999999},0]
[{"$f":"'A. Population Info'!A339","v":1000395930},{"$f":"'A. Population Info'!D339","v":"T.S.ZN00167.TXF.T00005/0.TX"},{"$f":"'A. Population Info'!F339","v":"HV"},{"$f":"'A. Population Info'!E339","v":3172.2359036724333},{"$f":"INDEX('C. PoC Summary Stats & Para'!$E$25:$G$25,,MATCH($C339,'C. PoC Summary Stats & Para'!$E$18:$G$18,0))","v":0},0,{"$f":"INDEX('C. PoC Summary Stats & Para'!$E$14:$G$14,,MATCH($C339,'C. PoC Summary Stats & Para'!$E$18:$G$18,0))","v":40.728999999999999},0]
[{"$f":"'A. Population Info'!A340","v":1000395955},{"$f":"'A. Population Info'!D340","v":"T.S.ZN01788.TXF.T00005/0.TX"},{"$f":"'A. Population Info'!F340","v":"HV"},{"$f":"'A. Population Info'!E340","v":5386.2084692045801},{"$f":"INDEX('C. PoC Summary Stats & Para'!$E$25:$G$25,,MATCH($C340,'C. PoC Summary Stats & Para'!$E$18:$G$18,0))","v":0},0,{"$f":"INDEX('C. PoC Summary Stats & Para'!$E$14:$G$14,,MATCH($C340,'C. PoC Summary Stats & Para'!$E$18:$G$18,0))","v":40.728999999999999},0]
[{"$f":"'A. Population Info'!A341","v":1000395984},{"$f":"'A. Population Info'!D341","v":"T.S.ZN01285.TXF.T00003/0.TX"},{"$f":"'A. Population Info'!F341","v":"HV"},{"$f":"'A. Population Info'!E341","v":7059.447825921925},{"$f":"INDEX('C. PoC Summary Stats & Para'!$E$25:$G$25,,MATCH($C341,'C. PoC Summary Stats & Para'!$E$18:$G$18,0))","v":0},0,{"$f":"INDEX('C. PoC Summary Stats & Para'!$E$14:$G$14,,MATCH($C341,'C. PoC Summary Stats & Para'!$E$18:$G$18,0))","v":40.728999999999999},0]
[{"$f":"'A. Population Info'!A342","v":1000400013},{"$f":"'A. Population Info'!D342","v":"T.S.ZN14144.TXF.T00001/0.TX"},{"$f":"'A. Population Info'!F342","v":"HV"},{"$f":"'A. Population Info'!E342","v":2908.6821936577799},{"$f":"INDEX('C. PoC Summary Stats & Para'!$E$25:$G$25,,MATCH($C342,'C. PoC Summary Stats & Para'!$E$18:$G$18,0))","v":0},0,{"$f":"INDEX('C. PoC Summary Stats & Para'!$E$14:$G$14,,MATCH($C342,'C. PoC Summary Stats & Para'!$E$18:$G$18,0))","v":40.728999999999999},0]
[{"$f":"'A. Population Info'!A343","v":1000400036},{"$f":"'A. Population Info'!D343","v":"T.S.ZN15012.TXF.T00002/0.TX"},{"$f":"'A. Population Info'!F343","v":"HV"},{"$f":"'A. Population Info'!E343","v":2721.3074925436199},{"$f":"INDEX('C. PoC Summary Stats & Para'!$E$25:$G$25,,MATCH($C343,'C. PoC Summary Stats & Para'!$E$18:$G$18,0))","v":0},0,{"$f":"INDEX('C. PoC Summary Stats & Para'!$E$14:$G$14,,MATCH($C343,'C. PoC Summary Stats & Para'!$E$18:$G$18,0))","v":40.728999999999999},0]
[{"$f":"'A. Population Info'!A344","v":1000400062},{"$f":"'A. Population Info'!D344","v":"T.S.ZN12640.TXF.T00003/0.TX"},{"$f":"'A. Population Info'!F344","v":"HV"},{"$f":"'A. Population Info'!E344","v":5712.1209929861498},{"$f":"INDEX('C. PoC Summary Stats & Para'!$E$25:$G$25,,MATCH($C344,'C. PoC Summary Stats & Para'!$E$18:$G$18,0))","v":0},0,{"$f":"INDEX('C. PoC Summary Stats & Para'!$E$14:$G$14,,MATCH($C344,'C. PoC Summary Stats & Para'!$E$18:$G$18,0))","v":40.728999999999999},0]
[{"$f":"'A. Population Info'!A345","v":1000400113},{"$f":"'A. Population Info'!D345","v":"T.S.ZN00180.TXF.T00002/0.TX"},{"$f":"'A. Population Info'!F345","v":"HV"},{"$f":"'A. Population Info'!E345","v":7827.3052115617502},{"$f":"INDEX('C. PoC Summary Stats & Para'!$E$25:$G$25,,MATCH($C345,'C. PoC Summary Stats & Para'!$E$18:$G$18,0))","v":0},0,{"$f":"INDEX('C. PoC Summary Stats & Para'!$E$14:$G$14,,MATCH($C345,'C. PoC Summary Stats & Para'!$E$18:$G$18,0))","v":40.728999999999999},0]
[{"$f":"'A. Population Info'!A346","v":1000400141},{"$f":"'A. Population Info'!D346","v":"T.S.ZN00180.TXF.T00004/0.TX"},{"$f":"'A. Population Info'!F346","v":"HV"},{"$f":"'A. Population Info'!E346","v":7827.3052115617502},{"$f":"INDEX('C. PoC Summary Stats & Para'!$E$25:$G$25,,MATCH($C346,'C. PoC Summary Stats & Para'!$E$18:$G$18,0))","v":0},0,{"$f":"INDEX('C. PoC Summary Stats & Para'!$E$14:$G$14,,MATCH($C346,'C. PoC Summary Stats & Para'!$E$18:$G$18,0))","v":40.728999999999999},0]
[{"$f":"'A. Population Info'!A347","v":1000400168},{"$f":"'A. Population Info'!D347","v":"T.S.TS07300.TXF.T00012/0.TX"},{"$f":"'A. Population Info'!F347","v":"HV"},{"$f":"'A. Population Info'!E347","v":19627.701203396238},{"$f":"INDEX('C. PoC Summary Stats & Para'!$E$25:$G$25,,MATCH($C347,'C. PoC Summary Stats & Para'!$E$18:$G$18,0))","v":0},0,{"$f":"INDEX('C. PoC Summary Stats & Para'!$E$14:$G$14,,MATCH($C347,'C. PoC Summary Stats & Para'!$E$18:$G$18,0))","v":40.728999999999999},0]
[{"$f":"'A. Population Info'!A348","v":1000400193},{"$f":"'A. Population Info'!D348","v":"T.S.ZN12600.TXF.T00002/0.TX"},{"$f":"'A. Population Info'!F348","v":"HV"},{"$f":"'A. Population Info'!E348","v":5234.8719688691499},{"$f":"INDEX('C. PoC Summary Stats & Para'!$E$25:$G$25,,MATCH($C348,'C. PoC Summary Stats & Para'!$E$18:$G$18,0))","v":0},0,{"$f":"INDEX('C. PoC Summary Stats & Para'!$E$14:$G$14,,MATCH($C348,'C. PoC Summary Stats & Para'!$E$18:$G$18,0))","v":40.728999999999999},0]
[{"$f":"'A. Population Info'!A349","v":1000400222},{"$f":"'A. Population Info'!D349","v":"T.S.ZN10994.TXF.T00002/0.TX"},{"$f":"'A. Population Info'!F349","v":"HV"},{"$f":"'A. Population Info'!E349","v":5957.5220047965668},{"$f":"INDEX('C. PoC Summary Stats & Para'!$E$25:$G$25,,MATCH($C349,'C. PoC Summary Stats & Para'!$E$18:$G$18,0))","v":0},0,{"$f":"INDEX('C. PoC Summary Stats & Para'!$E$14:$G$14,,MATCH($C349,'C. PoC Summary Stats & Para'!$E$18:$G$18,0))","v":40.728999999999999},0]
[{"$f":"'A. Population Info'!A350","v":1000400253},{"$f":"'A. Population Info'!D350","v":"T.S.ZN10994.TXF.T00001/0.TX"},{"$f":"'A. Population Info'!F350","v":"HV"},{"$f":"'A. Population Info'!E350","v":5957.5220047965668},{"$f":"INDEX('C. PoC Summary Stats & Para'!$E$25:$G$25,,MATCH($C350,'C. PoC Summary Stats & Para'!$E$18:$G$18,0))","v":0},0,{"$f":"INDEX('C. PoC Summary Stats & Para'!$E$14:$G$14,,MATCH($C350,'C. PoC Summary Stats & Para'!$E$18:$G$18,0))","v":40.728999999999999},0]
[{"$f":"'A. Population Info'!A351","v":1000400282},{"$f":"'A. Population Info'!D351","v":"T.S.ZN15006.TXF.T00001/0.TX"},{"$f":"'A. Population Info'!F351","v":"HV"},{"$f":"'A. Population Info'!E351","v":5814.4695873413002},{"$f":"INDEX('C. PoC Summary Stats & Para'!$E$25:$G$25,,MATCH($C351,'C. PoC Summary Stats & Para'!$E$18:$G$18,0))","v":0},0,{"$f":"INDEX('C. PoC Summary Stats & Para'!$E$14:$G$14,,MATCH($C351,'C. PoC Summary Stats & Para'!$E$18:$G$18,0))","v":40.728999999999999},0]
[{"$f":"'A. Population Info'!A352","v":1000400309},{"$f":"'A. Population Info'!D352","v":"T.S.ZN00243.TXF.T00001/0.TX"},{"$f":"'A. Population Info'!F352","v":"HV"},{"$f":"'A. Population Info'!E352","v":4498.9606184235554},{"$f":"INDEX('C. PoC Summary Stats & Para'!$E$25:$G$25,,MATCH($C352,'C. PoC Summary Stats & Para'!$E$18:$G$18,0))","v":0},0,{"$f":"INDEX('C. PoC Summary Stats & Para'!$E$14:$G$14,,MATCH($C352,'C. PoC Summary Stats & Para'!$E$18:$G$18,0))","v":40.728999999999999},0]
[{"$f":"'A. Population Info'!A353","v":1000400338},{"$f":"'A. Population Info'!D353","v":"T.S.ZN05959.TXF.T00001/0.TX"},{"$f":"'A. Population Info'!F353","v":"HV"},{"$f":"'A. Population Info'!E353","v":{"$error":"#N/A"}},{"$f":"INDEX('C. PoC Summary Stats & Para'!$E$25:$G$25,,MATCH($C353,'C. PoC Summary Stats & Para'!$E$18:$G$18,0))","v":0},"",{"$f":"INDEX('C. PoC Summary Stats & Para'!$E$14:$G$14,,MATCH($C353,'C. PoC Summary Stats & Para'!$E$18:$G$18,0))","v":40.728999999999999},0]
[{"$f":"'A. Population Info'!A354","v":1000400470},{"$f":"'A. Population Info'!D354","v":"T.S.ZN15011.TXF.T00002/0.TX"},{"$f":"'A. Population Info'!F354","v":"HV"},{"$f":"'A. Population Info'!E354","v":4787.2516709704996},{"$f":"INDEX('C. PoC Summary Stats & Para'!$E$25:$G$25,,MATCH($C354,'C. PoC Summary Stats & Para'!$E$18:$G$18,0))","v":0},0,{"$f":"INDEX('C. PoC Summary Stats & Para'!$E$14:$G$14,,MATCH($C354,'C. PoC Summary Stats & Para'!$E$18:$G$18,0))","v":40.728999999999999},0]
[{"$f":"'A. Population Info'!A355","v":1000400498},{"$f":"'A. Population Info'!D355","v":"T.S.ZN15011.TXF.T00001/0.TX"},{"$f":"'A. Population Info'!F355","v":"HV"},{"$f":"'A. Population Info'!E355","v":4787.2516709704996},{"$f":"INDEX('C. PoC Summary Stats & Para'!$E$25:$G$25,,MATCH($C355,'C. PoC Summary Stats & Para'!$E$18:$G$18,0))","v":0},0,{"$f":"INDEX('C. PoC Summary Stats & Para'!$E$14:$G$14,,MATCH($C355,'C. PoC Summary Stats & Para'!$E$18:$G$18,0))","v":40.728999999999999},0]
[{"$f":"'A. Population Info'!A356","v":1000400520},{"$f":"'A. Population Info'!D356","v":"T.S.ZN15014.TXF.T00002/0.TX"},{"$f":"'A. Population Info'!F356","v":"HV"},{"$f":"'A. Population Info'!E356","v":5013.648803058567},{"$f":"INDEX('C. PoC Summary Stats & Para'!$E$25:$G$25,,MATCH($C356,'C. PoC Summary Stats & Para'!$E$18:$G$18,0))","v":0},0,{"$f":"INDEX('C. PoC Summary Stats & Para'!$E$14:$G$14,,MATCH($C356,'C. PoC Summary Stats & Para'!$E$18:$G$18,0))","v":40.728999999999999},0]
[{"$f":"'A. Population Info'!A357","v":1000400548},{"$f":"'A. Population Info'!D357","v":"T.S.ZN15001.TXF.T00003/0.TX"},{"$f":"'A. Population Info'!F357","v":"HV"},{"$f":"'A. Population Info'!E357","v":6114.4151861479331},{"$f":"INDEX('C. PoC Summary Stats & Para'!$E$25:$G$25,,MATCH($C357,'C. PoC Summary Stats & Para'!$E$18:$G$18,0))","v":0},0,{"$f":"INDEX('C. PoC Summary Stats & Para'!$E$14:$G$14,,MATCH($C357,'C. PoC Summary Stats & Para'!$E$18:$G$18,0))","v":40.728999999999999},0]
[{"$f":"'A. Population Info'!A358","v":1000400598},{"$f":"'A. Population Info'!D358","v":"T.S.ZN15006.TXF.T00003/0.TX"},{"$f":"'A. Population Info'!F358","v":"HV"},{"$f":"'A. Population Info'!E358","v":5814.4695873413002},{"$f":"INDEX('C. PoC Summary Stats & Para'!$E$25:$G$25,,MATCH($C358,'C. PoC Summary Stats & Para'!$E$18:$G$18,0))","v":0},0,{"$f":"INDEX('C. PoC Summary Stats & Para'!$E$14:$G$14,,MATCH($C358,'C. PoC Summary Stats & Para'!$E$18:$G$18,0))","v":40.728999999999999},0]
[{"$f":"'A. Population Info'!A359","v":1000400719},{"$f":"'A. Population Info'!D359","v":"T.S.TS07240.TXF.T00002/0.TX"},{"$f":"'A. Population Info'!F359","v":"HV"},{"$f":"'A. Population Info'!E359","v":{"$error":"#N/A"}},{"$f":"INDEX('C. PoC Summary Stats & Para'!$E$25:$G$25,,MATCH($C359,'C. PoC Summary Stats & Para'!$E$18:$G$18,0))","v":0},"",{"$f":"INDEX('C. PoC Summary Stats & Para'!$E$14:$G$14,,MATCH($C359,'C. PoC Summary Stats & Para'!$E$18:$G$18,0))","v":40.728999999999999},0]
[{"$f":"'A. Population Info'!A360","v":1000400757},{"$f":"'A. Population Info'!D360","v":"T.S.TS07290.TXF.T00003/0.TX"},{"$f":"'A. Population Info'!F360","v":"HV"},{"$f":"'A. Population Info'!E360","v":8566.3777211888664},{"$f":"INDEX('C. PoC Summary Stats & Para'!$E$25:$G$25,,MATCH($C360,'C. PoC Summary Stats & Para'!$E$18:$G$18,0))","v":0},0,{"$f":"INDEX('C. PoC Summary Stats & Para'!$E$14:$G$14,,MATCH($C360,'C. PoC Summary Stats & Para'!$E$18:$G$18,0))","v":40.728999999999999},0]
[{"$f":"'A. Population Info'!A361","v":1000400775},{"$f":"'A. Population Info'!D361","v":"T.S.TS07290.TXF.T00002/0.TX"},{"$f":"'A. Population Info'!F361","v":"HV"},{"$f":"'A. Population Info'!E361","v":8566.3777211888664},{"$f":"INDEX('C. PoC Summary Stats & Para'!$E$25:$G$25,,MATCH($C361,'C. PoC Summary Stats & Para'!$E$18:$G$18,0))","v":0},0,{"$f":"INDEX('C. PoC Summary Stats & Para'!$E$14:$G$14,,MATCH($C361,'C. PoC Summary Stats & Para'!$E$18:$G$18,0))","v":40.728999999999999},0]
[{"$f":"'A. Population Info'!A362","v":1000400898},{"$f":"'A. Population Info'!D362","v":"T.S.TS07170.TXF.T00004/0.TX"},{"$f":"'A. Population Info'!F362","v":"HV"},{"$f":"'A. Population Info'!E362","v":18744.833622971251},{"$f":"INDEX('C. PoC Summary Stats & Para'!$E$25:$G$25,,MATCH($C362,'C. PoC Summary Stats & Para'!$E$18:$G$18,0))","v":0},0,{"$f":"INDEX('C. PoC Summary Stats & Para'!$E$14:$G$14,,MATCH($C362,'C. PoC Summary Stats & Para'!$E$18:$G$18,0))","v":40.728999999999999},0]
[{"$f":"'A. Population Info'!A363","v":1000400926},{"$f":"'A. Population Info'!D363","v":"T.S.TS16700.TXF.T00008/0.TX"},{"$f":"'A. Population Info'!F363","v":"HV"},{"$f":"'A. Population Info'!E363","v":19161.709632564074},{"$f":"INDEX('C. PoC Summary Stats & Para'!$E$25:$G$25,,MATCH($C363,'C. PoC Summary Stats & Para'!$E$18:$G$18,0))","v":0},0,{"$f":"INDEX('C. PoC Summary Stats & Para'!$E$14:$G$14,,MATCH($C363,'C. PoC Summary Stats & Para'!$E$18:$G$18,0))","v":40.728999999999999},0]
[{"$f":"'A. Population Info'!A364","v":1000400951},{"$f":"'A. Population Info'!D364","v":"T.S.TS16700.TXF.T00007/0.TX"},{"$f":"'A. Population Info'!F364","v":"HV"},{"$f":"'A. Population Info'!E364","v":19161.709632564074},{"$f":"INDEX('C. PoC Summary Stats & Para'!$E$25:$G$25,,MATCH($C364,'C. PoC Summary Stats & Para'!$E$18:$G$18,0))","v":0},0,{"$f":"INDEX('C. PoC Summary Stats & Para'!$E$14:$G$14,,MATCH($C364,'C. PoC Summary Stats & Para'!$E$18:$G$18,0))","v":40.728999999999999},0]
[{"$f":"'A. Population Info'!A365","v":1000400977},{"$f":"'A. Population Info'!D365","v":"T.S.TS07190.TXF.T00003/0.TX"},{"$f":"'A. Population Info'!F365","v":"HV"},{"$f":"'A. Population Info'!E365","v":18826.780952940666},{"$f":"INDEX('C. PoC Summary Stats & Para'!$E$25:$G$25,,MATCH($C365,'C. PoC Summary Stats & Para'!$E$18:$G$18,0))","v":0},0,{"$f":"INDEX('C. PoC Summary Stats & Para'!$E$14:$G$14,,MATCH($C365,'C. PoC Summary Stats & Para'!$E$18:$G$18,0))","v":40.728999999999999},0]
[{"$f":"'A. Population Info'!A366","v":1000404003},{"$f":"'A. Population Info'!D366","v":"T.S.TS14440.TXF.T00002/0.TX"},{"$f":"'A. Population Info'!F366","v":"HV"},{"$f":"'A. Population Info'!E366","v":15865.965247112872},{"$f":"INDEX('C. PoC Summary Stats & Para'!$E$25:$G$25,,MATCH($C366,'C. PoC Summary Stats & Para'!$E$18:$G$18,0))","v":0},0,{"$f":"INDEX('C. PoC Summary Stats & Para'!$E$14:$G$14,,MATCH($C366,'C. PoC Summary Stats & Para'!$E$18:$G$18,0))","v":40.728999999999999},0]
[{"$f":"'A. Population Info'!A367","v":1000404028},{"$f":"'A. Population Info'!D367","v":"T.S.TS14440.TXF.T00004/0.TX"},{"$f":"'A. Population Info'!F367","v":"HV"},{"$f":"'A. Population Info'!E367","v":15865.965247112872},{"$f":"INDEX('C. PoC Summary Stats & Para'!$E$25:$G$25,,MATCH($C367,'C. PoC Summary Stats & Para'!$E$18:$G$18,0))","v":0},0,{"$f":"INDEX('C. PoC Summary Stats & Para'!$E$14:$G$14,,MATCH($C367,'C. PoC Summary Stats & Para'!$E$18:$G$18,0))","v":40.728999999999999},0]
[{"$f":"'A. Population Info'!A368","v":1000404055},{"$f":"'A. Population Info'!D368","v":"T.S.TS07150.TXF.T00002/0.TX"},{"$f":"'A. Population Info'!F368","v":"HV"},{"$f":"'A. Population Info'!E368","v":8371.0830748668322},{"$f":"INDEX('C. PoC Summary Stats & Para'!$E$25:$G$25,,MATCH($C368,'C. PoC Summary Stats & Para'!$E$18:$G$18,0))","v":0},0,{"$f":"INDEX('C. PoC Summary Stats & Para'!$E$14:$G$14,,MATCH($C368,'C. PoC Summary Stats & Para'!$E$18:$G$18,0))","v":40.728999999999999},0]
[{"$f":"'A. Population Info'!A369","v":1000404080},{"$f":"'A. Population Info'!D369","v":"T.S.TS07150.TXF.T00001/0.TX"},{"$f":"'A. Population Info'!F369","v":"HV"},{"$f":"'A. Population Info'!E369","v":8371.0830748668322},{"$f":"INDEX('C. PoC Summary Stats & Para'!$E$25:$G$25,,MATCH($C369,'C. PoC Summary Stats & Para'!$E$18:$G$18,0))","v":0},0,{"$f":"INDEX('C. PoC Summary Stats & Para'!$E$14:$G$14,,MATCH($C369,'C. PoC Summary Stats & Para'!$E$18:$G$18,0))","v":40.728999999999999},0]
[{"$f":"'A. Population Info'!A370","v":1000404108},{"$f":"'A. Population Info'!D370","v":"T.S.TS14440.TXF.T00003/0.TX"},{"$f":"'A. Population Info'!F370","v":"HV"},{"$f":"'A. Population Info'!E370","v":15865.965247112872},{"$f":"INDEX('C. PoC Summary Stats & Para'!$E$25:$G$25,,MATCH($C370,'C. PoC Summary Stats & Para'!$E$18:$G$18,0))","v":0},0,{"$f":"INDEX('C. PoC Summary Stats & Para'!$E$14:$G$14,,MATCH($C370,'C. PoC Summary Stats & Para'!$E$18:$G$18,0))","v":40.728999999999999},0]
[{"$f":"'A. Population Info'!A371","v":1000404159},{"$f":"'A. Population Info'!D371","v":"T.S.TS00413.TXF.T00006/0.TX"},{"$f":"'A. Population Info'!F371","v":"HV"},{"$f":"'A. Population Info'!E371","v":{"$error":"#N/A"}},{"$f":"INDEX('C. PoC Summary Stats & Para'!$E$25:$G$25,,MATCH($C371,'C. PoC Summary Stats & Para'!$E$18:$G$18,0))","v":0},"",{"$f":"INDEX('C. PoC Summary Stats & Para'!$E$14:$G$14,,MATCH($C371,'C. PoC Summary Stats & Para'!$E$18:$G$18,0))","v":40.728999999999999},0]
[{"$f":"'A. Population Info'!A372","v":1000404179},{"$f":"'A. Population Info'!D372","v":"T.S.TS07140.TXF.T00004/0.TX"},{"$f":"'A. Population Info'!F372","v":"HV"},{"$f":"'A. Population Info'!E372","v":18479.30311848105},{"$f":"INDEX('C. PoC Summary Stats & Para'!$E$25:$G$25,,MATCH($C372,'C. PoC Summary Stats & Para'!$E$18:$G$18,0))","v":0},0,{"$f":"INDEX('C. PoC Summary Stats & Para'!$E$14:$G$14,,MATCH($C372,'C. PoC Summary Stats & Para'!$E$18:$G$18,0))","v":40.728999999999999},0]
[{"$f":"'A. Population Info'!A373","v":1000404301},{"$f":"'A. Population Info'!D373","v":"T.S.ZN00214.TXF.T00002/0.TX"},{"$f":"'A. Population Info'!F373","v":"HV"},{"$f":"'A. Population Info'!E373","v":3426.1195354588499},{"$f":"INDEX('C. PoC Summary Stats & Para'!$E$25:$G$25,,MATCH($C373,'C. PoC Summary Stats & Para'!$E$18:$G$18,0))","v":0},0,{"$f":"INDEX('C. PoC Summary Stats & Para'!$E$14:$G$14,,MATCH($C373,'C. PoC Summary Stats & Para'!$E$18:$G$18,0))","v":40.728999999999999},0]
[{"$f":"'A. Population Info'!A374","v":1000404323},{"$f":"'A. Population Info'!D374","v":"T.S.ZN00214.TXF.T00001/0.TX"},{"$f":"'A. Population Info'!F374","v":"HV"},{"$f":"'A. Population Info'!E374","v":3426.1195354588499},{"$f":"INDEX('C. PoC Summary Stats & Para'!$E$25:$G$25,,MATCH($C374,'C. PoC Summary Stats & Para'!$E$18:$G$18,0))","v":0},0,{"$f":"INDEX('C. PoC Summary Stats & Para'!$E$14:$G$14,,MATCH($C374,'C. PoC Summary Stats & Para'!$E$18:$G$18,0))","v":40.728999999999999},0]
[{"$f":"'A. Population Info'!A375","v":1000404408},{"$f":"'A. Population Info'!D375","v":"T.S.ZN00223.TXF.T00001/0.TX"},{"$f":"'A. Population Info'!F375","v":"HV"},{"$f":"'A. Population Info'!E375","v":2569.1173780704048},{"$f":"INDEX('C. PoC Summary Stats & Para'!$E$25:$G$25,,MATCH($C375,'C. PoC Summary Stats & Para'!$E$18:$G$18,0))","v":0},0,{"$f":"INDEX('C. PoC Summary Stats & Para'!$E$14:$G$14,,MATCH($C375,'C. PoC Summary Stats & Para'!$E$18:$G$18,0))","v":40.728999999999999},0]
[{"$f":"'A. Population Info'!A376","v":1000404433},{"$f":"'A. Population Info'!D376","v":"T.S.ZN00223.TXF.T00002/0.TX"},{"$f":"'A. Population Info'!F376","v":"HV"},{"$f":"'A. Population Info'!E376","v":2569.1173780704048},{"$f":"INDEX('C. PoC Summary Stats & Para'!$E$25:$G$25,,MATCH($C376,'C. PoC Summary Stats & Para'!$E$18:$G$18,0))","v":0},0,{"$f":"INDEX('C. PoC Summary Stats & Para'!$E$14:$G$14,,MATCH($C376,'C. PoC Summary Stats & Para'!$E$18:$G$18,0))","v":40.728999999999999},0]
[{"$f":"'A. Population Info'!A377","v":1000404524},{"$f":"'A. Population Info'!D377","v":"T.S.ZN00227.TXF.T00002/0.TX"},{"$f":"'A. Population Info'!F377","v":"HV"},{"$f":"'A. Population Info'!E377","v":2057.5824074778852},{"$f":"INDEX('C. PoC Summary Stats & Para'!$E$25:$G$25,,MATCH($C377,'C. PoC Summary Stats & Para'!$E$18:$G$18,0))","v":0},0,{"$f":"INDEX('C. PoC Summary Stats & Para'!$E$14:$G$14,,MATCH($C377,'C. PoC Summary Stats & Para'!$E$18:$G$18,0))","v":40.728999999999999},0]
[{"$f":"'A. Population Info'!A378","v":1000404605},{"$f":"'A. Population Info'!D378","v":"T.S.ZN00217.TXF.T00002/0.TX"},{"$f":"'A. Population Info'!F378","v":"HV"},{"$f":"'A. Population Info'!E378","v":2858.7371767852251},{"$f":"INDEX('C. PoC Summary Stats & Para'!$E$25:$G$25,,MATCH($C378,'C. PoC Summary Stats & Para'!$E$18:$G$18,0))","v":0},0,{"$f":"INDEX('C. PoC Summary Stats & Para'!$E$14:$G$14,,MATCH($C378,'C. PoC Summary Stats & Para'!$E$18:$G$18,0))","v":40.728999999999999},0]
[{"$f":"'A. Population Info'!A379","v":1000404625},{"$f":"'A. Population Info'!D379","v":"T.S.ZN00217.TXF.T00001/0.TX"},{"$f":"'A. Population Info'!F379","v":"HV"},{"$f":"'A. Population Info'!E379","v":2858.7371767852251},{"$f":"INDEX('C. PoC Summary Stats & Para'!$E$25:$G$25,,MATCH($C379,'C. PoC Summary Stats & Para'!$E$18:$G$18,0))","v":0},0,{"$f":"INDEX('C. PoC Summary Stats & Para'!$E$14:$G$14,,MATCH($C379,'C. PoC Summary Stats & Para'!$E$18:$G$18,0))","v":40.728999999999999},0]
[{"$f":"'A. Population Info'!A380","v":1000404725},{"$f":"'A. Population Info'!D380","v":"T.S.ZN00232.TXF.T00001/0.TX"},{"$f":"'A. Population Info'!F380","v":"HV"},{"$f":"'A. Population Info'!E380","v":3513.2201072383336},{"$f":"INDEX('C. PoC Summary Stats & Para'!$E$25:$G$25,,MATCH($C380,'C. PoC Summary Stats & Para'!$E$18:$G$18,0))","v":0},0,{"$f":"INDEX('C. PoC Summary Stats & Para'!$E$14:$G$14,,MATCH($C380,'C. PoC Summary Stats & Para'!$E$18:$G$18,0))","v":40.728999999999999},0]
[{"$f":"'A. Population Info'!A381","v":1000404743},{"$f":"'A. Population Info'!D381","v":"T.S.ZN00232.TXF.T00002/0.TX"},{"$f":"'A. Population Info'!F381","v":"HV"},{"$f":"'A. Population Info'!E381","v":3513.2201072383336},{"$f":"INDEX('C. PoC Summary Stats & Para'!$E$25:$G$25,,MATCH($C381,'C. PoC Summary Stats & Para'!$E$18:$G$18,0))","v":0},0,{"$f":"INDEX('C. PoC Summary Stats & Para'!$E$14:$G$14,,MATCH($C381,'C. PoC Summary Stats & Para'!$E$18:$G$18,0))","v":40.728999999999999},0]
[{"$f":"'A. Population Info'!A382","v":1000404873},{"$f":"'A. Population Info'!D382","v":"T.S.ZN00235.TXF.T00002/0.TX"},{"$f":"'A. Population Info'!F382","v":"HV"},{"$f":"'A. Population Info'!E382","v":5366.6621932662501},{"$f":"INDEX('C. PoC Summary Stats & Para'!$E$25:$G$25,,MATCH($C382,'C. PoC Summary Stats & Para'!$E$18:$G$18,0))","v":0},0,{"$f":"INDEX('C. PoC Summary Stats & Para'!$E$14:$G$14,,MATCH($C382,'C. PoC Summary Stats & Para'!$E$18:$G$18,0))","v":40.728999999999999},0]
[{"$f":"'A. Population Info'!A383","v":1000404895},{"$f":"'A. Population Info'!D383","v":"T.S.ZN00235.TXF.T00001/0.TX"},{"$f":"'A. Population Info'!F383","v":"HV"},{"$f":"'A. Population Info'!E383","v":5366.6621932662501},{"$f":"INDEX('C. PoC Summary Stats & Para'!$E$25:$G$25,,MATCH($C383,'C. PoC Summary Stats & Para'!$E$18:$G$18,0))","v":0},0,{"$f":"INDEX('C. PoC Summary Stats & Para'!$E$14:$G$14,,MATCH($C383,'C. PoC Summary Stats & Para'!$E$18:$G$18,0))","v":40.728999999999999},0]
[{"$f":"'A. Population Info'!A384","v":1000407011},{"$f":"'A. Population Info'!D384","v":"T.S.ZN00230.TXF.T00001/0.TX"},{"$f":"'A. Population Info'!F384","v":"HV"},{"$f":"'A. Population Info'!E384","v":1860.7861576785001},{"$f":"INDEX('C. PoC Summary Stats & Para'!$E$25:$G$25,,MATCH($C384,'C. PoC Summary Stats & Para'!$E$18:$G$18,0))","v":0},0,{"$f":"INDEX('C. PoC Summary Stats & Para'!$E$14:$G$14,,MATCH($C384,'C. PoC Summary Stats & Para'!$E$18:$G$18,0))","v":40.728999999999999},0]
[{"$f":"'A. Population Info'!A385","v":1000407031},{"$f":"'A. Population Info'!D385","v":"T.S.ZN00801.TXF.T00001/0.TX"},{"$f":"'A. Population Info'!F385","v":"HV"},{"$f":"'A. Population Info'!E385","v":2948.4091749123099},{"$f":"INDEX('C. PoC Summary Stats & Para'!$E$25:$G$25,,MATCH($C385,'C. PoC Summary Stats & Para'!$E$18:$G$18,0))","v":0},0,{"$f":"INDEX('C. PoC Summary Stats & Para'!$E$14:$G$14,,MATCH($C385,'C. PoC Summary Stats & Para'!$E$18:$G$18,0))","v":40.728999999999999},0]
[{"$f":"'A. Population Info'!A386","v":1000407052},{"$f":"'A. Population Info'!D386","v":"T.S.ZN00801.TXF.T00002/0.TX"},{"$f":"'A. Population Info'!F386","v":"HV"},{"$f":"'A. Population Info'!E386","v":2948.4091749123099},{"$f":"INDEX('C. PoC Summary Stats & Para'!$E$25:$G$25,,MATCH($C386,'C. PoC Summary Stats & Para'!$E$18:$G$18,0))","v":0},0,{"$f":"INDEX('C. PoC Summary Stats & Para'!$E$14:$G$14,,MATCH($C386,'C. PoC Summary Stats & Para'!$E$18:$G$18,0))","v":40.728999999999999},0]
[{"$f":"'A. Population Info'!A387","v":1000407221},{"$f":"'A. Population Info'!D387","v":"T.S.ZN00806.TXF.T00001/0.TX"},{"$f":"'A. Population Info'!F387","v":"HV"},{"$f":"'A. Population Info'!E387","v":224.183110414038},{"$f":"INDEX('C. PoC Summary Stats & Para'!$E$25:$G$25,,MATCH($C387,'C. PoC Summary Stats & Para'!$E$18:$G$18,0))","v":0},0,{"$f":"INDEX('C. PoC Summary Stats & Para'!$E$14:$G$14,,MATCH($C387,'C. PoC Summary Stats & Para'!$E$18:$G$18,0))","v":40.728999999999999},0]
[{"$f":"'A. Population Info'!A388","v":1000407240},{"$f":"'A. Population Info'!D388","v":"T.S.ZN00806.TXF.T00002/0.TX"},{"$f":"'A. Population Info'!F388","v":"HV"},{"$f":"'A. Population Info'!E388","v":224.183110414038},{"$f":"INDEX('C. PoC Summary Stats & Para'!$E$25:$G$25,,MATCH($C388,'C. PoC Summary Stats & Para'!$E$18:$G$18,0))","v":0},0,{"$f":"INDEX('C. PoC Summary Stats & Para'!$E$14:$G$14,,MATCH($C388,'C. PoC Summary Stats & Para'!$E$18:$G$18,0))","v":40.728999999999999},0]
[{"$f":"'A. Population Info'!A389","v":1000407262},{"$f":"'A. Population Info'!D389","v":"T.S.ZN00810.TXF.T00002/0.TX"},{"$f":"'A. Population Info'!F389","v":"HV"},{"$f":"'A. Population Info'!E389","v":667.05441443083998},{"$f":"INDEX('C. PoC Summary Stats & Para'!$E$25:$G$25,,MATCH($C389,'C. PoC Summary Stats & Para'!$E$18:$G$18,0))","v":0},0,{"$f":"INDEX('C. PoC Summary Stats & Para'!$E$14:$G$14,,MATCH($C389,'C. PoC Summary Stats & Para'!$E$18:$G$18,0))","v":40.728999999999999},0]
[{"$f":"'A. Population Info'!A390","v":1000407283},{"$f":"'A. Population Info'!D390","v":"T.S.ZN00810.TXF.T00001/0.TX"},{"$f":"'A. Population Info'!F390","v":"HV"},{"$f":"'A. Population Info'!E390","v":667.05441443083998},{"$f":"INDEX('C. PoC Summary Stats & Para'!$E$25:$G$25,,MATCH($C390,'C. PoC Summary Stats & Para'!$E$18:$G$18,0))","v":0},0,{"$f":"INDEX('C. PoC Summary Stats & Para'!$E$14:$G$14,,MATCH($C390,'C. PoC Summary Stats & Para'!$E$18:$G$18,0))","v":40.728999999999999},{"$f":"IFERROR(F390*G390,$L$4*G390)","v":0}]
[{"$f":"'A. Population Info'!A391","v":1000407304},{"$f":"'A. Population Info'!D391","v":"T.S.ZN00802.TXF.T00002/0.TX"},{"$f":"'A. Population Info'!F391","v":"HV"},{"$f":"'A. Population Info'!E391","v":174.87038829172101},{"$f":"INDEX('C. PoC Summary Stats & Para'!$E$25:$G$25,,MATCH($C391,'C. PoC Summary Stats & Para'!$E$18:$G$18,0))","v":0},{"$f":"IFERROR(D391*E391,\"\")","v":0},{"$f":"INDEX('C. PoC Summary Stats & Para'!$E$14:$G$14,,MATCH($C391,'C. PoC Summary Stats & Para'!$E$18:$G$18,0))","v":40.728999999999999},0]
[{"$f":"'A. Population Info'!A392","v":1000407324},{"$f":"'A. Population Info'!D392","v":"T.S.ZN00802.TXF.T00001/0.TX"},{"$f":"'A. Population Info'!F392","v":"HV"},{"$f":"'A. Population Info'!E392","v":174.87038829172101},{"$f":"INDEX('C. PoC Summary Stats & Para'!$E$25:$G$25,,MATCH($C392,'C. PoC Summary Stats & Para'!$E$18:$G$18,0))","v":0},0,{"$f":"INDEX('C. PoC Summary Stats & Para'!$E$14:$G$14,,MATCH($C392,'C. PoC Summary Stats & Para'!$E$18:$G$18,0))","v":40.728999999999999},0]
[{"$f":"'A. Population Info'!A393","v":1000407363},{"$f":"'A. Population Info'!D393","v":"T.S.ZN00812.TXF.T00002/0.TX"},{"$f":"'A. Population Info'!F393","v":"HV"},{"$f":"'A. Population Info'!E393","v":2343.5557278290298},{"$f":"INDEX('C. PoC Summary Stats & Para'!$E$25:$G$25,,MATCH($C393,'C. PoC Summary Stats & Para'!$E$18:$G$18,0))","v":0},0,{"$f":"INDEX('C. PoC Summary Stats & Para'!$E$14:$G$14,,MATCH($C393,'C. PoC Summary Stats & Para'!$E$18:$G$18,0))","v":40.728999999999999},0]
[{"$f":"'A. Population Info'!A394","v":1000407386},{"$f":"'A. Population Info'!D394","v":"T.S.ZN00812.TXF.T00001/0.TX"},{"$f":"'A. Population Info'!F394","v":"HV"},{"$f":"'A. Population Info'!E394","v":2343.5557278290298},{"$f":"INDEX('C. PoC Summary Stats & Para'!$E$25:$G$25,,MATCH($C394,'C. PoC Summary Stats & Para'!$E$18:$G$18,0))","v":0},0,{"$f":"INDEX('C. PoC Summary Stats & Para'!$E$14:$G$14,,MATCH($C394,'C. PoC Summary Stats & Para'!$E$18:$G$18,0))","v":40.728999999999999},0]
[{"$f":"'A. Population Info'!A395","v":1000407406},{"$f":"'A. Population Info'!D395","v":"T.S.ZN00513.TXF.T00002/0.TX"},{"$f":"'A. Population Info'!F395","v":"HV"},{"$f":"'A. Population Info'!E395","v":4233.2267584246147},{"$f":"INDEX('C. PoC Summary Stats & Para'!$E$25:$G$25,,MATCH($C395,'C. PoC Summary Stats & Para'!$E$18:$G$18,0))","v":0},0,{"$f":"INDEX('C. PoC Summary Stats & Para'!$E$14:$G$14,,MATCH($C395,'C. PoC Summary Stats & Para'!$E$18:$G$18,0))","v":40.728999999999999},0]
[{"$f":"'A. Population Info'!A396","v":1000407427},{"$f":"'A. Population Info'!D396","v":"T.S.ZN00513.TXF.T00001/0.TX"},{"$f":"'A. Population Info'!F396","v":"HV"},{"$f":"'A. Population Info'!E396","v":4233.2267584246147},{"$f":"INDEX('C. PoC Summary Stats & Para'!$E$25:$G$25,,MATCH($C396,'C. PoC Summary Stats & Para'!$E$18:$G$18,0))","v":0},0,{"$f":"INDEX('C. PoC Summary Stats & Para'!$E$14:$G$14,,MATCH($C396,'C. PoC Summary Stats & Para'!$E$18:$G$18,0))","v":40.728999999999999},0]
[{"$f":"'A. Population Info'!A397","v":1000407446},{"$f":"'A. Population Info'!D397","v":"T.S.ZN00522.TXF.T00002/0.TX"},{"$f":"'A. Population Info'!F397","v":"HV"},{"$f":"'A. Population Info'!E397","v":3498.66455996687},{"$f":"INDEX('C. PoC Summary Stats & Para'!$E$25:$G$25,,MATCH($C397,'C. PoC Summary Stats & Para'!$E$18:$G$18,0))","v":0},0,{"$f":"INDEX('C. PoC Summary Stats & Para'!$E$14:$G$14,,MATCH($C397,'C. PoC Summary Stats & Para'!$E$18:$G$18,0))","v":40.728999999999999},0]
[{"$f":"'A. Population Info'!A398","v":1000407467},{"$f":"'A. Population Info'!D398","v":"T.S.ZN00522.TXF.T00001/0.TX"},{"$f":"'A. Population Info'!F398","v":"HV"},{"$f":"'A. Population Info'!E398","v":3498.66455996687},{"$f":"INDEX('C. PoC Summary Stats & Para'!$E$25:$G$25,,MATCH($C398,'C. PoC Summary Stats & Para'!$E$18:$G$18,0))","v":0},0,{"$f":"INDEX('C. PoC Summary Stats & Para'!$E$14:$G$14,,MATCH($C398,'C. PoC Summary Stats & Para'!$E$18:$G$18,0))","v":40.728999999999999},0]
[{"$f":"'A. Population Info'!A399","v":1000407484},{"$f":"'A. Population Info'!D399","v":"T.S.ZN00514.TXF.T00002/0.TX"},{"$f":"'A. Population Info'!F399","v":"HV"},{"$f":"'A. Population Info'!E399","v":2542.5598487215502},{"$f":"INDEX('C. PoC Summary Stats & Para'!$E$25:$G$25,,MATCH($C399,'C. PoC Summary Stats & Para'!$E$18:$G$18,0))","v":0},0,{"$f":"INDEX('C. PoC Summary Stats & Para'!$E$14:$G$14,,MATCH($C399,'C. PoC Summary Stats & Para'!$E$18:$G$18,0))","v":40.728999999999999},0]
[{"$f":"'A. Population Info'!A400","v":1000407503},{"$f":"'A. Population Info'!D400","v":"T.S.ZN00514.TXF.T00001/0.TX"},{"$f":"'A. Population Info'!F400","v":"HV"},{"$f":"'A. Population Info'!E400","v":2542.5598487215502},{"$f":"INDEX('C. PoC Summary Stats & Para'!$E$25:$G$25,,MATCH($C400,'C. PoC Summary Stats & Para'!$E$18:$G$18,0))","v":0},0,{"$f":"INDEX('C. PoC Summary Stats & Para'!$E$14:$G$14,,MATCH($C400,'C. PoC Summary Stats & Para'!$E$18:$G$18,0))","v":40.728999999999999},0]
[{"$f":"'A. Population Info'!A401","v":1000407527},{"$f":"'A. Population Info'!D401","v":"T.S.ZN00216.TXF.T00002/0.TX"},{"$f":"'A. Population Info'!F401","v":"HV"},{"$f":"'A. Population Info'!E401","v":3438.2990943363802},{"$f":"INDEX('C. PoC Summary Stats & Para'!$E$25:$G$25,,MATCH($C401,'C. PoC Summary Stats & Para'!$E$18:$G$18,0))","v":0},0,{"$f":"INDEX('C. PoC Summary Stats & Para'!$E$14:$G$14,,MATCH($C401,'C. PoC Summary Stats & Para'!$E$18:$G$18,0))","v":40.728999999999999},0]
[{"$f":"'A. Population Info'!A402","v":1000407547},{"$f":"'A. Population Info'!D402","v":"T.S.ZN00216.TXF.T00001/0.TX"},{"$f":"'A. Population Info'!F402","v":"HV"},{"$f":"'A. Population Info'!E402","v":3438.2990943363802},{"$f":"INDEX('C. PoC Summary Stats & Para'!$E$25:$G$25,,MATCH($C402,'C. PoC Summary Stats & Para'!$E$18:$G$18,0))","v":0},0,{"$f":"INDEX('C. PoC Summary Stats & Para'!$E$14:$G$14,,MATCH($C402,'C. PoC Summary Stats & Para'!$E$18:$G$18,0))","v":40.728999999999999},0]
[{"$f":"'A. Population Info'!A403","v":1000407568},{"$f":"'A. Population Info'!D403","v":"T.S.ZN00245.TXF.T00002/0.TX"},{"$f":"'A. Population Info'!F403","v":"HV"},{"$f":"'A. Population Info'!E403","v":1794.8153692922399},{"$f":"INDEX('C. PoC Summary Stats & Para'!$E$25:$G$25,,MATCH($C403,'C. PoC Summary Stats & Para'!$E$18:$G$18,0))","v":0},0,{"$f":"INDEX('C. PoC Summary Stats & Para'!$E$14:$G$14,,MATCH($C403,'C. PoC Summary Stats & Para'!$E$18:$G$18,0))","v":40.728999999999999},0]
[{"$f":"'A. Population Info'!A404","v":1000407588},{"$f":"'A. Population Info'!D404","v":"T.S.ZN00245.TXF.T00001/0.TX"},{"$f":"'A. Population Info'!F404","v":"HV"},{"$f":"'A. Population Info'!E404","v":1794.8153692922399},{"$f":"INDEX('C. PoC Summary Stats & Para'!$E$25:$G$25,,MATCH($C404,'C. PoC Summary Stats & Para'!$E$18:$G$18,0))","v":0},0,{"$f":"INDEX('C. PoC Summary Stats & Para'!$E$14:$G$14,,MATCH($C404,'C. PoC Summary Stats & Para'!$E$18:$G$18,0))","v":40.728999999999999},0]
[{"$f":"'A. Population Info'!A405","v":1000407604},{"$f":"'A. Population Info'!D405","v":"T.S.ZN00246.TXF.T00002/0.TX"},{"$f":"'A. Population Info'!F405","v":"HV"},{"$f":"'A. Population Info'!E405","v":655.17060575180994},{"$f":"INDEX('C. PoC Summary Stats & Para'!$E$25:$G$25,,MATCH($C405,'C. PoC Summary Stats & Para'!$E$18:$G$18,0))","v":0},0,{"$f":"INDEX('C. PoC Summary Stats & Para'!$E$14:$G$14,,MATCH($C405,'C. PoC Summary Stats & Para'!$E$18:$G$18,0))","v":40.728999999999999},0]
[{"$f":"'A. Population Info'!A406","v":1000407622},{"$f":"'A. Population Info'!D406","v":"T.S.ZN00246.TXF.T00001/0.TX"},{"$f":"'A. Population Info'!F406","v":"HV"},{"$f":"'A. Population Info'!E406","v":655.17060575180994},{"$f":"INDEX('C. PoC Summary Stats & Para'!$E$25:$G$25,,MATCH($C406,'C. PoC Summary Stats & Para'!$E$18:$G$18,0))","v":0},0,{"$f":"INDEX('C. PoC Summary Stats & Para'!$E$14:$G$14,,MATCH($C406,'C. PoC Summary Stats & Para'!$E$18:$G$18,0))","v":40.728999999999999},0]
[{"$f":"'A. Population Info'!A407","v":1000407678},{"$f":"'A. Population Info'!D407","v":"T.S.ZN00502.TXF.T00002/0.TX"},{"$f":"'A. Population Info'!F407","v":"HV"},{"$f":"'A. Population Info'!E407","v":1865.212972806735},{"$f":"INDEX('C. PoC Summary Stats & Para'!$E$25:$G$25,,MATCH($C407,'C. PoC Summary Stats & Para'!$E$18:$G$18,0))","v":0},0,{"$f":"INDEX('C. PoC Summary Stats & Para'!$E$14:$G$14,,MATCH($C407,'C. PoC Summary Stats & Para'!$E$18:$G$18,0))","v":40.728999999999999},0]
[{"$f":"'A. Population Info'!A408","v":1000407839},{"$f":"'A. Population Info'!D408","v":"T.S.ZN00512.TXF.T00001/0.TX"},{"$f":"'A. Population Info'!F408","v":"HV"},{"$f":"'A. Population Info'!E408","v":1932.0540241098599},{"$f":"INDEX('C. PoC Summary Stats & Para'!$E$25:$G$25,,MATCH($C408,'C. PoC Summary Stats & Para'!$E$18:$G$18,0))","v":0},0,{"$f":"INDEX('C. PoC Summary Stats & Para'!$E$14:$G$14,,MATCH($C408,'C. PoC Summary Stats & Para'!$E$18:$G$18,0))","v":40.728999999999999},0]
[{"$f":"'A. Population Info'!A409","v":1000407875},{"$f":"'A. Population Info'!D409","v":"T.S.ZN00516.TXF.T00001/0.TX"},{"$f":"'A. Population Info'!F409","v":"HV"},{"$f":"'A. Population Info'!E409","v":407.28438151919647},{"$f":"INDEX('C. PoC Summary Stats & Para'!$E$25:$G$25,,MATCH($C409,'C. PoC Summary Stats & Para'!$E$18:$G$18,0))","v":0},0,{"$f":"INDEX('C. PoC Summary Stats & Para'!$E$14:$G$14,,MATCH($C409,'C. PoC Summary Stats & Para'!$E$18:$G$18,0))","v":40.728999999999999},0]
[{"$f":"'A. Population Info'!A410","v":1000407905},{"$f":"'A. Population Info'!D410","v":"T.S.ZN00516.TXF.T00002/0.TX"},{"$f":"'A. Population Info'!F410","v":"HV"},{"$f":"'A. Population Info'!E410","v":407.28438151919647},{"$f":"INDEX('C. PoC Summary Stats & Para'!$E$25:$G$25,,MATCH($C410,'C. PoC Summary Stats & Para'!$E$18:$G$18,0))","v":0},0,{"$f":"INDEX('C. PoC Summary Stats & Para'!$E$14:$G$14,,MATCH($C410,'C. PoC Summary Stats & Para'!$E$18:$G$18,0))","v":40.728999999999999},0]
[{"$f":"'A. Population Info'!A411","v":1000407934},{"$f":"'A. Population Info'!D411","v":"T.S.ZN00807.TXF.T00001/0.TX"},{"$f":"'A. Population Info'!F411","v":"HV"},{"$f":"'A. Population Info'!E411","v":538.25717876837746},{"$f":"INDEX('C. PoC Summary Stats & Para'!$E$25:$G$25,,MATCH($C411,'C. PoC Summary Stats & Para'!$E$18:$G$18,0))","v":0},0,{"$f":"INDEX('C. PoC Summary Stats & Para'!$E$14:$G$14,,MATCH($C411,'C. PoC Summary Stats & Para'!$E$18:$G$18,0))","v":40.728999999999999},0]
[{"$f":"'A. Population Info'!A412","v":1000407967},{"$f":"'A. Population Info'!D412","v":"T.S.ZN00807.TXF.T00002/0.TX"},{"$f":"'A. Population Info'!F412","v":"HV"},{"$f":"'A. Population Info'!E412","v":538.25717876837746},{"$f":"INDEX('C. PoC Summary Stats & Para'!$E$25:$G$25,,MATCH($C412,'C. PoC Summary Stats & Para'!$E$18:$G$18,0))","v":0},0,{"$f":"INDEX('C. PoC Summary Stats & Para'!$E$14:$G$14,,MATCH($C412,'C. PoC Summary Stats & Para'!$E$18:$G$18,0))","v":40.728999999999999},0]
[{"$f":"'A. Population Info'!A413","v":1000410000},{"$f":"'A. Population Info'!D413","v":"T.S.ZN01290.TXF.T00002/0.TX"},{"$f":"'A. Population Info'!F413","v":"HV"},{"$f":"'A. Population Info'!E413","v":4156.759234351367},{"$f":"INDEX('C. PoC Summary Stats & Para'!$E$25:$G$25,,MATCH($C413,'C. PoC Summary Stats & Para'!$E$18:$G$18,0))","v":0},0,{"$f":"INDEX('C. PoC Summary Stats & Para'!$E$14:$G$14,,MATCH($C413,'C. PoC Summary Stats & Para'!$E$18:$G$18,0))","v":40.728999999999999},0]
[{"$f":"'A. Population Info'!A414","v":1000410034},{"$f":"'A. Population Info'!D414","v":"T.S.ZN01290.TXF.T00003/0.TX"},{"$f":"'A. Population Info'!F414","v":"HV"},{"$f":"'A. Population Info'!E414","v":4156.759234351367},{"$f":"INDEX('C. PoC Summary Stats & Para'!$E$25:$G$25,,MATCH($C414,'C. PoC Summary Stats & Para'!$E$18:$G$18,0))","v":0},0,{"$f":"INDEX('C. PoC Summary Stats & Para'!$E$14:$G$14,,MATCH($C414,'C. PoC Summary Stats & Para'!$E$18:$G$18,0))","v":40.728999999999999},0]
[{"$f":"'A. Population Info'!A415","v":1000410094},{"$f":"'A. Population Info'!D415","v":"T.S.TS00405.TXF.T00001/0.TX"},{"$f":"'A. Population Info'!F415","v":"HV"},{"$f":"'A. Population Info'!E415","v":21507.905206226184},{"$f":"INDEX('C. PoC Summary Stats & Para'!$E$25:$G$25,,MATCH($C415,'C. PoC Summary Stats & Para'!$E$18:$G$18,0))","v":0},0,{"$f":"INDEX('C. PoC Summary Stats & Para'!$E$14:$G$14,,MATCH($C415,'C. PoC Summary Stats & Para'!$E$18:$G$18,0))","v":40.728999999999999},0]
[{"$f":"'A. Population Info'!A416","v":1000410124},{"$f":"'A. Population Info'!D416","v":"T.S.TS00405.TXF.T00002/0.TX"},{"$f":"'A. Population Info'!F416","v":"HV"},{"$f":"'A. Population Info'!E416","v":21507.905206226184},{"$f":"INDEX('C. PoC Summary Stats & Para'!$E$25:$G$25,,MATCH($C416,'C. PoC Summary Stats & Para'!$E$18:$G$18,0))","v":0},0,{"$f":"INDEX('C. PoC Summary Stats & Para'!$E$14:$G$14,,MATCH($C416,'C. PoC Summary Stats & Para'!$E$18:$G$18,0))","v":40.728999999999999},0]
[{"$f":"'A. Population Info'!A417","v":1000410171},{"$f":"'A. Population Info'!D417","v":"T.S.TS00413.TXF.T00004/0.TX"},{"$f":"'A. Population Info'!F417","v":"HV"},{"$f":"'A. Population Info'!E417","v":{"$error":"#N/A"}},{"$f":"INDEX('C. PoC Summary Stats & Para'!$E$25:$G$25,,MATCH($C417,'C. PoC Summary Stats & Para'!$E$18:$G$18,0))","v":0},"",{"$f":"INDEX('C. PoC Summary Stats & Para'!$E$14:$G$14,,MATCH($C417,'C. PoC Summary Stats & Para'!$E$18:$G$18,0))","v":40.728999999999999},0]
[{"$f":"'A. Population Info'!A418","v":1000410190},{"$f":"'A. Population Info'!D418","v":"T.S.TS00413.TXF.T00007/0.TX"},{"$f":"'A. Population Info'!F418","v":"HV"},{"$f":"'A. Population Info'!E418","v":{"$error":"#N/A"}},{"$f":"INDEX('C. PoC Summary Stats & Para'!$E$25:$G$25,,MATCH($C418,'C. PoC Summary Stats & Para'!$E$18:$G$18,0))","v":0},"",{"$f":"INDEX('C. PoC Summary Stats & Para'!$E$14:$G$14,,MATCH($C418,'C. PoC Summary Stats & Para'!$E$18:$G$18,0))","v":40.728999999999999},0]
[{"$f":"'A. Population Info'!A419","v":1000410281},{"$f":"'A. Population Info'!D419","v":"T.S.TS00402.TXF.T00001/0.TX"},{"$f":"'A. Population Info'!F419","v":"HV"},{"$f":"'A. Population Info'!E419","v":4507.5683825219348},{"$f":"INDEX('C. PoC Summary Stats & Para'!$E$25:$G$25,,MATCH($C419,'C. PoC Summary Stats & Para'!$E$18:$G$18,0))","v":0},0,{"$f":"INDEX('C. PoC Summary Stats & Para'!$E$14:$G$14,,MATCH($C419,'C. PoC Summary Stats & Para'!$E$18:$G$18,0))","v":40.728999999999999},0]
[{"$f":"'A. Population Info'!A420","v":1000410375},{"$f":"'A. Population Info'!D420","v":"T.S.TS00401.TXF.T00002/0.TX"},{"$f":"'A. Population Info'!F420","v":"HV"},{"$f":"'A. Population Info'!E420","v":{"$error":"#N/A"}},{"$f":"INDEX('C. PoC Summary Stats & Para'!$E$25:$G$25,,MATCH($C420,'C. PoC Summary Stats & Para'!$E$18:$G$18,0))","v":0},"",{"$f":"INDEX('C. PoC Summary Stats & Para'!$E$14:$G$14,,MATCH($C420,'C. PoC Summary Stats & Para'!$E$18:$G$18,0))","v":40.728999999999999},0]
[{"$f":"'A. Population Info'!A421","v":1000410401},{"$f":"'A. Population Info'!D421","v":"T.S.TS00401.TXF.T00003/0.TX"},{"$f":"'A. Population Info'!F421","v":"HV"},{"$f":"'A. Population Info'!E421","v":{"$error":"#N/A"}},{"$f":"INDEX('C. PoC Summary Stats & Para'!$E$25:$G$25,,MATCH($C421,'C. PoC Summary Stats & Para'!$E$18:$G$18,0))","v":0},"",{"$f":"INDEX('C. PoC Summary Stats & Para'!$E$14:$G$14,,MATCH($C421,'C. PoC Summary Stats & Para'!$E$18:$G$18,0))","v":40.728999999999999},0]
[{"$f":"'A. Population Info'!A422","v":1000410465},{"$f":"'A. Population Info'!D422","v":"T.S.ZN00220.TXF.T00001/0.TX"},{"$f":"'A. Population Info'!F422","v":"HV"},{"$f":"'A. Population Info'!E422","v":2741.1884847035499},{"$f":"INDEX('C. PoC Summary Stats & Para'!$E$25:$G$25,,MATCH($C422,'C. PoC Summary Stats & Para'!$E$18:$G$18,0))","v":0},0,{"$f":"INDEX('C. PoC Summary Stats & Para'!$E$14:$G$14,,MATCH($C422,'C. PoC Summary Stats & Para'!$E$18:$G$18,0))","v":40.728999999999999},0]
[{"$f":"'A. Population Info'!A423","v":1000410481},{"$f":"'A. Population Info'!D423","v":"T.S.ZN00220.TXF.T00002/0.TX"},{"$f":"'A. Population Info'!F423","v":"HV"},{"$f":"'A. Population Info'!E423","v":2741.1884847035499},{"$f":"INDEX('C. PoC Summary Stats & Para'!$E$25:$G$25,,MATCH($C423,'C. PoC Summary Stats & Para'!$E$18:$G$18,0))","v":0},0,{"$f":"INDEX('C. PoC Summary Stats & Para'!$E$14:$G$14,,MATCH($C423,'C. PoC Summary Stats & Para'!$E$18:$G$18,0))","v":40.728999999999999},0]
[{"$f":"'A. Population Info'!A424","v":1000410502},{"$f":"'A. Population Info'!D424","v":"T.S.TS00405.TXF.T00003/0.TX"},{"$f":"'A. Population Info'!F424","v":"HV"},{"$f":"'A. Population Info'!E424","v":21507.905206226184},{"$f":"INDEX('C. PoC Summary Stats & Para'!$E$25:$G$25,,MATCH($C424,'C. PoC Summary Stats & Para'!$E$18:$G$18,0))","v":0},0,{"$f":"INDEX('C. PoC Summary Stats & Para'!$E$14:$G$14,,MATCH($C424,'C. PoC Summary Stats & Para'!$E$18:$G$18,0))","v":40.728999999999999},0]
[{"$f":"'A. Population Info'!A425","v":1000410528},{"$f":"'A. Population Info'!D425","v":"T.S.TS00402.TXF.T00002/0.TX"},{"$f":"'A. Population Info'!F425","v":"HV"},{"$f":"'A. Population Info'!E425","v":4507.5683825219348},{"$f":"INDEX('C. PoC Summary Stats & Para'!$E$25:$G$25,,MATCH($C425,'C. PoC Summary Stats & Para'!$E$18:$G$18,0))","v":0},0,{"$f":"INDEX('C. PoC Summary Stats & Para'!$E$14:$G$14,,MATCH($C425,'C. PoC Summary Stats & Para'!$E$18:$G$18,0))","v":40.728999999999999},0]
[{"$f":"'A. Population Info'!A426","v":1000410663},{"$f":"'A. Population Info'!D426","v":"T.S.ZN00509.TXF.T00001/0.TX"},{"$f":"'A. Population Info'!F426","v":"HV"},{"$f":"'A. Population Info'!E426","v":944.96452259430498},{"$f":"INDEX('C. PoC Summary Stats & Para'!$E$25:$G$25,,MATCH($C426,'C. PoC Summary Stats & Para'!$E$18:$G$18,0))","v":0},0,{"$f":"INDEX('C. PoC Summary Stats & Para'!$E$14:$G$14,,MATCH($C426,'C. PoC Summary Stats & Para'!$E$18:$G$18,0))","v":40.728999999999999},0]
[{"$f":"'A. Population Info'!A427","v":1000410716},{"$f":"'A. Population Info'!D427","v":"T.S.TS00407.TXF.T00002/0.TX"},{"$f":"'A. Population Info'!F427","v":"HV"},{"$f":"'A. Population Info'!E427","v":2255.4251620072664},{"$f":"INDEX('C. PoC Summary Stats & Para'!$E$25:$G$25,,MATCH($C427,'C. PoC Summary Stats & Para'!$E$18:$G$18,0))","v":0},0,{"$f":"INDEX('C. PoC Summary Stats & Para'!$E$14:$G$14,,MATCH($C427,'C. PoC Summary Stats & Para'!$E$18:$G$18,0))","v":40.728999999999999},0]
[{"$f":"'A. Population Info'!A428","v":1000410735},{"$f":"'A. Population Info'!D428","v":"T.S.TS00407.TXF.T00001/0.TX"},{"$f":"'A. Population Info'!F428","v":"HV"},{"$f":"'A. Population Info'!E428","v":2255.4251620072664},{"$f":"INDEX('C. PoC Summary Stats & Para'!$E$25:$G$25,,MATCH($C428,'C. PoC Summary Stats & Para'!$E$18:$G$18,0))","v":0},0,{"$f":"INDEX('C. PoC Summary Stats & Para'!$E$14:$G$14,,MATCH($C428,'C. PoC Summary Stats & Para'!$E$18:$G$18,0))","v":40.728999999999999},0]
[{"$f":"'A. Population Info'!A429","v":1000410772},{"$f":"'A. Population Info'!D429","v":"T.S.TS00406.TXF.T00001/0.TX"},{"$f":"'A. Population Info'!F429","v":"HV"},{"$f":"'A. Population Info'!E429","v":8802.9609287153053},{"$f":"INDEX('C. PoC Summary Stats & Para'!$E$25:$G$25,,MATCH($C429,'C. PoC Summary Stats & Para'!$E$18:$G$18,0))","v":0},0,{"$f":"INDEX('C. PoC Summary Stats & Para'!$E$14:$G$14,,MATCH($C429,'C. PoC Summary Stats & Para'!$E$18:$G$18,0))","v":40.728999999999999},0]
[{"$f":"'A. Population Info'!A430","v":1000410800},{"$f":"'A. Population Info'!D430","v":"T.S.TS00406.TXF.T00002/0.TX"},{"$f":"'A. Population Info'!F430","v":"HV"},{"$f":"'A. Population Info'!E430","v":8802.9609287153053},{"$f":"INDEX('C. PoC Summary Stats & Para'!$E$25:$G$25,,MATCH($C430,'C. PoC Summary Stats & Para'!$E$18:$G$18,0))","v":0},0,{"$f":"INDEX('C. PoC Summary Stats & Para'!$E$14:$G$14,,MATCH($C430,'C. PoC Summary Stats & Para'!$E$18:$G$18,0))","v":40.728999999999999},0]
[{"$f":"'A. Population Info'!A431","v":1000410871},{"$f":"'A. Population Info'!D431","v":"T.S.TS00409.TXF.T00001/0.TX"},{"$f":"'A. Population Info'!F431","v":"HV"},{"$f":"'A. Population Info'!E431","v":8935.9804578713283},{"$f":"INDEX('C. PoC Summary Stats & Para'!$E$25:$G$25,,MATCH($C431,'C. PoC Summary Stats & Para'!$E$18:$G$18,0))","v":0},0,{"$f":"INDEX('C. PoC Summary Stats & Para'!$E$14:$G$14,,MATCH($C431,'C. PoC Summary Stats & Para'!$E$18:$G$18,0))","v":40.728999999999999},0]
[{"$f":"'A. Population Info'!A432","v":1000410892},{"$f":"'A. Population Info'!D432","v":"T.S.TS00409.TXF.T00002/0.TX"},{"$f":"'A. Population Info'!F432","v":"HV"},{"$f":"'A. Population Info'!E432","v":8935.9804578713283},{"$f":"INDEX('C. PoC Summary Stats & Para'!$E$25:$G$25,,MATCH($C432,'C. PoC Summary Stats & Para'!$E$18:$G$18,0))","v":0},0,{"$f":"INDEX('C. PoC Summary Stats & Para'!$E$14:$G$14,,MATCH($C432,'C. PoC Summary Stats & Para'!$E$18:$G$18,0))","v":40.728999999999999},0]
[{"$f":"'A. Population Info'!A433","v":1000412867},{"$f":"'A. Population Info'!D433","v":"T.S.ZN08100.TXF.T00002/0.TX"},{"$f":"'A. Population Info'!F433","v":"HV"},{"$f":"'A. Population Info'!E433","v":9722.756606045501},{"$f":"INDEX('C. PoC Summary Stats & Para'!$E$25:$G$25,,MATCH($C433,'C. PoC Summary Stats & Para'!$E$18:$G$18,0))","v":0},0,{"$f":"INDEX('C. PoC Summary Stats & Para'!$E$14:$G$14,,MATCH($C433,'C. PoC Summary Stats & Para'!$E$18:$G$18,0))","v":40.728999999999999},0]
[{"$f":"'A. Population Info'!A434","v":1000412871},{"$f":"'A. Population Info'!D434","v":"T.S.ZN00080.TXF.T00011/0.TX"},{"$f":"'A. Population Info'!F434","v":"HV"},{"$f":"'A. Population Info'!E434","v":7252.8713430689668},{"$f":"INDEX('C. PoC Summary Stats & Para'!$E$25:$G$25,,MATCH($C434,'C. PoC Summary Stats & Para'!$E$18:$G$18,0))","v":0},0,{"$f":"INDEX('C. PoC Summary Stats & Para'!$E$14:$G$14,,MATCH($C434,'C. PoC Summary Stats & Para'!$E$18:$G$18,0))","v":40.728999999999999},0]
[{"$f":"'A. Population Info'!A435","v":1000412875},{"$f":"'A. Population Info'!D435","v":"T.S.ZN00080.TXF.T00013/0.TX"},{"$f":"'A. Population Info'!F435","v":"HV"},{"$f":"'A. Population Info'!E435","v":7252.8713430689668},{"$f":"INDEX('C. PoC Summary Stats & Para'!$E$25:$G$25,,MATCH($C435,'C. PoC Summary Stats & Para'!$E$18:$G$18,0))","v":0},0,{"$f":"INDEX('C. PoC Summary Stats & Para'!$E$14:$G$14,,MATCH($C435,'C. PoC Summary Stats & Para'!$E$18:$G$18,0))","v":40.728999999999999},0]
[{"$f":"'A. Population Info'!A436","v":1000414952},{"$f":"'A. Population Info'!D436","v":"T.S.ZN15015.TXF.T00003/0.TX"},{"$f":"'A. Population Info'!F436","v":"HV"},{"$f":"'A. Population Info'!E436","v":1817.6510259410634},{"$f":"INDEX('C. PoC Summary Stats & Para'!$E$25:$G$25,,MATCH($C436,'C. PoC Summary Stats & Para'!$E$18:$G$18,0))","v":0},0,{"$f":"INDEX('C. PoC Summary Stats & Para'!$E$14:$G$14,,MATCH($C436,'C. PoC Summary Stats & Para'!$E$18:$G$18,0))","v":40.728999999999999},0]
[{"$f":"'A. Population Info'!A437","v":1000414953},{"$f":"'A. Population Info'!D437","v":"T.S.ZN00532.TXF.T00002/0.TX"},{"$f":"'A. Population Info'!F437","v":"HV"},{"$f":"'A. Population Info'!E437","v":5707.8665444852504},{"$f":"INDEX('C. PoC Summary Stats & Para'!$E$25:$G$25,,MATCH($C437,'C. PoC Summary Stats & Para'!$E$18:$G$18,0))","v":0},0,{"$f":"INDEX('C. PoC Summary Stats & Para'!$E$14:$G$14,,MATCH($C437,'C. PoC Summary Stats & Para'!$E$18:$G$18,0))","v":40.728999999999999},0]
[{"$f":"'A. Population Info'!A438","v":1001423014},{"$f":"'A. Population Info'!D438","v":"T.S.TS09200.TXF.T00002/0.TX"},{"$f":"'A. Population Info'!F438","v":"HV"},{"$f":"'A. Population Info'!E438","v":10011.918622042009},{"$f":"INDEX('C. PoC Summary Stats & Para'!$E$25:$G$25,,MATCH($C438,'C. PoC Summary Stats & Para'!$E$18:$G$18,0))","v":0},0,{"$f":"INDEX('C. PoC Summary Stats & Para'!$E$14:$G$14,,MATCH($C438,'C. PoC Summary Stats & Para'!$E$18:$G$18,0))","v":40.728999999999999},0]
[{"$f":"'A. Population Info'!A439","v":1001433025},{"$f":"'A. Population Info'!D439","v":"T.S.ZN00690.TXF.T00004/0.TX"},{"$f":"'A. Population Info'!F439","v":"HV"},{"$f":"'A. Population Info'!E439","v":6983.8712946800497},{"$f":"INDEX('C. PoC Summary Stats & Para'!$E$25:$G$25,,MATCH($C439,'C. PoC Summary Stats & Para'!$E$18:$G$18,0))","v":0},0,{"$f":"INDEX('C. PoC Summary Stats & Para'!$E$14:$G$14,,MATCH($C439,'C. PoC Summary Stats & Para'!$E$18:$G$18,0))","v":40.728999999999999},0]
[{"$f":"'A. Population Info'!A440","v":1001433198},{"$f":"'A. Population Info'!D440","v":"T.S.ZN09252.TXF.T00003/0.TX"},{"$f":"'A. Population Info'!F440","v":"HV"},{"$f":"'A. Population Info'!E440","v":3602.2828915092668},{"$f":"INDEX('C. PoC Summary Stats & Para'!$E$25:$G$25,,MATCH($C440,'C. PoC Summary Stats & Para'!$E$18:$G$18,0))","v":0},0,{"$f":"INDEX('C. PoC Summary Stats & Para'!$E$14:$G$14,,MATCH($C440,'C. PoC Summary Stats & Para'!$E$18:$G$18,0))","v":40.728999999999999},0]
[{"$f":"'A. Population Info'!A441","v":1001435539},{"$f":"'A. Population Info'!D441","v":"T.S.ZN35600.TXF.T00001/0.TX"},{"$f":"'A. Population Info'!F441","v":"HV"},{"$f":"'A. Population Info'!E441","v":12734.352549813},{"$f":"INDEX('C. PoC Summary Stats & Para'!$E$25:$G$25,,MATCH($C441,'C. PoC Summary Stats & Para'!$E$18:$G$18,0))","v":0},0,{"$f":"INDEX('C. PoC Summary Stats & Para'!$E$14:$G$14,,MATCH($C441,'C. PoC Summary Stats & Para'!$E$18:$G$18,0))","v":40.728999999999999},0]
[{"$f":"'A. Population Info'!A442","v":1001435540},{"$f":"'A. Population Info'!D442","v":"T.S.ZN35600.TXF.T00002/0.TX"},{"$f":"'A. Population Info'!F442","v":"HV"},{"$f":"'A. Population Info'!E442","v":12734.352549813},{"$f":"INDEX('C. PoC Summary Stats & Para'!$E$25:$G$25,,MATCH($C442,'C. PoC Summary Stats & Para'!$E$18:$G$18,0))","v":0},0,{"$f":"INDEX('C. PoC Summary Stats & Para'!$E$14:$G$14,,MATCH($C442,'C. PoC Summary Stats & Para'!$E$18:$G$18,0))","v":40.728999999999999},0]
[{"$f":"'A. Population Info'!A443","v":1001440620},{"$f":"'A. Population Info'!D443","v":"T.S.ZN00229.TXF.T00001/0.TX"},{"$f":"'A. Population Info'!F443","v":"HV"},{"$f":"'A. Population Info'!E443","v":1220.1063697950599},{"$f":"INDEX('C. PoC Summary Stats & Para'!$E$25:$G$25,,MATCH($C443,'C. PoC Summary Stats & Para'!$E$18:$G$18,0))","v":0},0,{"$f":"INDEX('C. PoC Summary Stats & Para'!$E$14:$G$14,,MATCH($C443,'C. PoC Summary Stats & Para'!$E$18:$G$18,0))","v":40.728999999999999},0]
[{"$f":"'A. Population Info'!A444","v":1001440621},{"$f":"'A. Population Info'!D444","v":"T.S.ZN00229.TXF.T00002/0.TX"},{"$f":"'A. Population Info'!F444","v":"HV"},{"$f":"'A. Population Info'!E444","v":1220.1063697950599},{"$f":"INDEX('C. PoC Summary Stats & Para'!$E$25:$G$25,,MATCH($C444,'C. PoC Summary Stats & Para'!$E$18:$G$18,0))","v":0},0,{"$f":"INDEX('C. PoC Summary Stats & Para'!$E$14:$G$14,,MATCH($C444,'C. PoC Summary Stats & Para'!$E$18:$G$18,0))","v":40.728999999999999},0]
[{"$f":"'A. Population Info'!A445","v":1001465327},{"$f":"'A. Population Info'!D445","v":"T.S.TS07300.TXF.T00014/0.TX"},{"$f":"'A. Population Info'!F445","v":"HV"},{"$f":"'A. Population Info'!E445","v":19627.701203396238},{"$f":"INDEX('C. PoC Summary Stats & Para'!$E$25:$G$25,,MATCH($C445,'C. PoC Summary Stats & Para'!$E$18:$G$18,0))","v":0},0,{"$f":"INDEX('C. PoC Summary Stats & Para'!$E$14:$G$14,,MATCH($C445,'C. PoC Summary Stats & Para'!$E$18:$G$18,0))","v":40.728999999999999},0]
[{"$f":"'A. Population Info'!A446","v":1001472087},{"$f":"'A. Population Info'!D446","v":"T.S.ZN10995.TXF.T00003/0.TX"},{"$f":"'A. Population Info'!F446","v":"HV"},{"$f":"'A. Population Info'!E446","v":3877.7650077308667},{"$f":"INDEX('C. PoC Summary Stats & Para'!$E$25:$G$25,,MATCH($C446,'C. PoC Summary Stats & Para'!$E$18:$G$18,0))","v":0},0,{"$f":"INDEX('C. PoC Summary Stats & Para'!$E$14:$G$14,,MATCH($C446,'C. PoC Summary Stats & Para'!$E$18:$G$18,0))","v":40.728999999999999},0]
[{"$f":"'A. Population Info'!A447","v":1001472088},{"$f":"'A. Population Info'!D447","v":"T.S.ZN00342.TXF.T00002/0.TX"},{"$f":"'A. Population Info'!F447","v":"HV"},{"$f":"'A. Population Info'!E447","v":6532.9701660047331},{"$f":"INDEX('C. PoC Summary Stats & Para'!$E$25:$G$25,,MATCH($C447,'C. PoC Summary Stats & Para'!$E$18:$G$18,0))","v":0},0,{"$f":"INDEX('C. PoC Summary Stats & Para'!$E$14:$G$14,,MATCH($C447,'C. PoC Summary Stats & Para'!$E$18:$G$18,0))","v":40.728999999999999},0]
[{"$f":"'A. Population Info'!A448","v":1001472089},{"$f":"'A. Population Info'!D448","v":"T.S.ZN00342.TXF.T00004/0.TX"},{"$f":"'A. Population Info'!F448","v":"HV"},{"$f":"'A. Population Info'!E448","v":6532.9701660047331},{"$f":"INDEX('C. PoC Summary Stats & Para'!$E$25:$G$25,,MATCH($C448,'C. PoC Summary Stats & Para'!$E$18:$G$18,0))","v":0},0,{"$f":"INDEX('C. PoC Summary Stats & Para'!$E$14:$G$14,,MATCH($C448,'C. PoC Summary Stats & Para'!$E$18:$G$18,0))","v":40.728999999999999},0]
[{"$f":"'A. Population Info'!A449","v":1001472169},{"$f":"'A. Population Info'!D449","v":"T.S.ZN00530.TXF.T00001/0.TX"},{"$f":"'A. Population Info'!F449","v":"HV-single"},{"$f":"'A. Population Info'!E449","v":6326.7692134703202},{"$f":"INDEX('C. PoC Summary Stats & Para'!$E$25:$G$25,,MATCH($C449,'C. PoC Summary Stats & Para'!$E$18:$G$18,0))","v":0},0,{"$f":"INDEX('C. PoC Summary Stats & Para'!$E$14:$G$14,,MATCH($C449,'C. PoC Summary Stats & Para'!$E$18:$G$18,0))","v":40.728999999999999},0]
[{"$f":"'A. Population Info'!A450","v":1001472634},{"$f":"'A. Population Info'!D450","v":"T.S.TS07220.TXF.T00002/0.TX"},{"$f":"'A. Population Info'!F450","v":"HV"},{"$f":"'A. Population Info'!E450","v":17709.508796798535},{"$f":"INDEX('C. PoC Summary Stats & Para'!$E$25:$G$25,,MATCH($C450,'C. PoC Summary Stats & Para'!$E$18:$G$18,0))","v":0},0,{"$f":"INDEX('C. PoC Summary Stats & Para'!$E$14:$G$14,,MATCH($C450,'C. PoC Summary Stats & Para'!$E$18:$G$18,0))","v":40.728999999999999},0]
[{"$f":"'A. Population Info'!A451","v":1001472635},{"$f":"'A. Population Info'!D451","v":"T.S.ZN00265.TXF.T00001/0.TX"},{"$f":"'A. Population Info'!F451","v":"HV"},{"$f":"'A. Population Info'!E451","v":3390.4903184667301},{"$f":"INDEX('C. PoC Summary Stats & Para'!$E$25:$G$25,,MATCH($C451,'C. PoC Summary Stats & Para'!$E$18:$G$18,0))","v":0},0,{"$f":"INDEX('C. PoC Summary Stats & Para'!$E$14:$G$14,,MATCH($C451,'C. PoC Summary Stats & Para'!$E$18:$G$18,0))","v":40.728999999999999},0]
[{"$f":"'A. Population Info'!A452","v":1001472636},{"$f":"'A. Population Info'!D452","v":"T.S.ZN00265.TXF.T00002/0.TX"},{"$f":"'A. Population Info'!F452","v":"HV"},{"$f":"'A. Population Info'!E452","v":3390.4903184667301},{"$f":"INDEX('C. PoC Summary Stats & Para'!$E$25:$G$25,,MATCH($C452,'C. PoC Summary Stats & Para'!$E$18:$G$18,0))","v":0},0,{"$f":"INDEX('C. PoC Summary Stats & Para'!$E$14:$G$14,,MATCH($C452,'C. PoC Summary Stats & Para'!$E$18:$G$18,0))","v":40.728999999999999},0]
[{"$f":"'A. Population Info'!A453","v":1001472637},{"$f":"'A. Population Info'!D453","v":"T.S.ZN35900.TXF.T00001/0.TX"},{"$f":"'A. Population Info'!F453","v":"HV"},{"$f":"'A. Population Info'!E453","v":9646.9613995309501},{"$f":"INDEX('C. PoC Summary Stats & Para'!$E$25:$G$25,,MATCH($C453,'C. PoC Summary Stats & Para'!$E$18:$G$18,0))","v":0},0,{"$f":"INDEX('C. PoC Summary Stats & Para'!$E$14:$G$14,,MATCH($C453,'C. PoC Summary Stats & Para'!$E$18:$G$18,0))","v":40.728999999999999},0]
[{"$f":"'A. Population Info'!A454","v":1001472638},{"$f":"'A. Population Info'!D454","v":"T.S.ZN35500.TXF.T00003/0.TX"},{"$f":"'A. Population Info'!F454","v":"HV"},{"$f":"'A. Population Info'!E454","v":8743.2684167117004},{"$f":"INDEX('C. PoC Summary Stats & Para'!$E$25:$G$25,,MATCH($C454,'C. PoC Summary Stats & Para'!$E$18:$G$18,0))","v":0},0,{"$f":"INDEX('C. PoC Summary Stats & Para'!$E$14:$G$14,,MATCH($C454,'C. PoC Summary Stats & Para'!$E$18:$G$18,0))","v":40.728999999999999},{"$f":"IFERROR(F454*G454,$L$4*G454)","v":0}]
[{"$f":"'A. Population Info'!A455","v":1001472639},{"$f":"'A. Population Info'!D455","v":"T.S.ZN36300.TXF.T00002/0.TX"},{"$f":"'A. Population Info'!F455","v":"HV"},{"$f":"'A. Population Info'!E455","v":4560.3840783220339},{"$f":"INDEX('C. PoC Summary Stats & Para'!$E$25:$G$25,,MATCH($C455,'C. PoC Summary Stats & Para'!$E$18:$G$18,0))","v":0},{"$f":"IFERROR(D455*E455,\"\")","v":0},{"$f":"INDEX('C. PoC Summary Stats & Para'!$E$14:$G$14,,MATCH($C455,'C. PoC Summary Stats & Para'!$E$18:$G$18,0))","v":40.728999999999999},0]
[{"$f":"'A. Population Info'!A456","v":1001472640},{"$f":"'A. Population Info'!D456","v":"T.S.ZN36300.TXF.T00003/0.TX"},{"$f":"'A. Population Info'!F456","v":"HV"},{"$f":"'A. Population Info'!E456","v":4560.3840783220339},{"$f":"INDEX('C. PoC Summary Stats & Para'!$E$25:$G$25,,MATCH($C456,'C. PoC Summary Stats & Para'!$E$18:$G$18,0))","v":0},0,{"$f":"INDEX('C. PoC Summary Stats & Para'!$E$14:$G$14,,MATCH($C456,'C. PoC Summary Stats & Para'!$E$18:$G$18,0))","v":40.728999999999999},0]
[{"$f":"'A. Population Info'!A457","v":1001473129},{"$f":"'A. Population Info'!D457","v":"T.S.TS09200.TXF.T00001/0.TX"},{"$f":"'A. Population Info'!F457","v":"HV"},{"$f":"'A. Population Info'!E457","v":10011.918622042009},{"$f":"INDEX('C. PoC Summary Stats & Para'!$E$25:$G$25,,MATCH($C457,'C. PoC Summary Stats & Para'!$E$18:$G$18,0))","v":0},0,{"$f":"INDEX('C. PoC Summary Stats & Para'!$E$14:$G$14,,MATCH($C457,'C. PoC Summary Stats & Para'!$E$18:$G$18,0))","v":40.728999999999999},0]
[{"$f":"'A. Population Info'!A458","v":1001474074},{"$f":"'A. Population Info'!D458","v":"T.S.ZN36100.TXF.T00002/0.TX"},{"$f":"'A. Population Info'!F458","v":"HV"},{"$f":"'A. Population Info'!E458","v":8283.9590461445496},{"$f":"INDEX('C. PoC Summary Stats & Para'!$E$25:$G$25,,MATCH($C458,'C. PoC Summary Stats & Para'!$E$18:$G$18,0))","v":0},0,{"$f":"INDEX('C. PoC Summary Stats & Para'!$E$14:$G$14,,MATCH($C458,'C. PoC Summary Stats & Para'!$E$18:$G$18,0))","v":40.728999999999999},0]
[{"$f":"'A. Population Info'!A459","v":1001474075},{"$f":"'A. Population Info'!D459","v":"T.S.ZN00261.TXF.T00002/0.TX"},{"$f":"'A. Population Info'!F459","v":"HV"},{"$f":"'A. Population Info'!E459","v":6356.8196244873998},{"$f":"INDEX('C. PoC Summary Stats & Para'!$E$25:$G$25,,MATCH($C459,'C. PoC Summary Stats & Para'!$E$18:$G$18,0))","v":0},0,{"$f":"INDEX('C. PoC Summary Stats & Para'!$E$14:$G$14,,MATCH($C459,'C. PoC Summary Stats & Para'!$E$18:$G$18,0))","v":40.728999999999999},0]
[{"$f":"'A. Population Info'!A460","v":1001474076},{"$f":"'A. Population Info'!D460","v":"T.S.ZN35900.TXF.T00002/0.TX"},{"$f":"'A. Population Info'!F460","v":"HV"},{"$f":"'A. Population Info'!E460","v":9646.9613995309501},{"$f":"INDEX('C. PoC Summary Stats & Para'!$E$25:$G$25,,MATCH($C460,'C. PoC Summary Stats & Para'!$E$18:$G$18,0))","v":0},0,{"$f":"INDEX('C. PoC Summary Stats & Para'!$E$14:$G$14,,MATCH($C460,'C. PoC Summary Stats & Para'!$E$18:$G$18,0))","v":40.728999999999999},0]
[{"$f":"'A. Population Info'!A461","v":1001476181},{"$f":"'A. Population Info'!D461","v":"T.S.ZN12690.TXF.T00012/0.TX"},{"$f":"'A. Population Info'!F461","v":"HV"},{"$f":"'A. Population Info'!E461","v":10361.349307822},{"$f":"INDEX('C. PoC Summary Stats & Para'!$E$25:$G$25,,MATCH($C461,'C. PoC Summary Stats & Para'!$E$18:$G$18,0))","v":0},0,{"$f":"INDEX('C. PoC Summary Stats & Para'!$E$14:$G$14,,MATCH($C461,'C. PoC Summary Stats & Para'!$E$18:$G$18,0))","v":40.728999999999999},0]
[{"$f":"'A. Population Info'!A462","v":1001477684},{"$f":"'A. Population Info'!D462","v":"T.S.ZN10999.TXF.T00001/0.TX"},{"$f":"'A. Population Info'!F462","v":"HV"},{"$f":"'A. Population Info'!E462","v":12666.800445298033},{"$f":"INDEX('C. PoC Summary Stats & Para'!$E$25:$G$25,,MATCH($C462,'C. PoC Summary Stats & Para'!$E$18:$G$18,0))","v":0},0,{"$f":"INDEX('C. PoC Summary Stats & Para'!$E$14:$G$14,,MATCH($C462,'C. PoC Summary Stats & Para'!$E$18:$G$18,0))","v":40.728999999999999},0]
[{"$f":"'A. Population Info'!A463","v":1001477685},{"$f":"'A. Population Info'!D463","v":"T.S.ZN10999.TXF.T00002/0.TX"},{"$f":"'A. Population Info'!F463","v":"HV"},{"$f":"'A. Population Info'!E463","v":12666.800445298033},{"$f":"INDEX('C. PoC Summary Stats & Para'!$E$25:$G$25,,MATCH($C463,'C. PoC Summary Stats & Para'!$E$18:$G$18,0))","v":0},0,{"$f":"INDEX('C. PoC Summary Stats & Para'!$E$14:$G$14,,MATCH($C463,'C. PoC Summary Stats & Para'!$E$18:$G$18,0))","v":40.728999999999999},0]
[{"$f":"'A. Population Info'!A464","v":1001477686},{"$f":"'A. Population Info'!D464","v":"T.S.ZN10999.TXF.T00003/0.TX"},{"$f":"'A. Population Info'!F464","v":"HV"},{"$f":"'A. Population Info'!E464","v":12666.800445298033},{"$f":"INDEX('C. PoC Summary Stats & Para'!$E$25:$G$25,,MATCH($C464,'C. PoC Summary Stats & Para'!$E$18:$G$18,0))","v":0},0,{"$f":"INDEX('C. PoC Summary Stats & Para'!$E$14:$G$14,,MATCH($C464,'C. PoC Summary Stats & Para'!$E$18:$G$18,0))","v":40.728999999999999},0]
[{"$f":"'A. Population Info'!A465","v":1001477798},{"$f":"'A. Population Info'!D465","v":"T.S.ZN35370.TXF.T00002/0.TX"},{"$f":"'A. Population Info'!F465","v":"HV"},{"$f":"'A. Population Info'!E465","v":2040.9922294401449},{"$f":"INDEX('C. PoC Summary Stats & Para'!$E$25:$G$25,,MATCH($C465,'C. PoC Summary Stats & Para'!$E$18:$G$18,0))","v":0},0,{"$f":"INDEX('C. PoC Summary Stats & Para'!$E$14:$G$14,,MATCH($C465,'C. PoC Summary Stats & Para'!$E$18:$G$18,0))","v":40.728999999999999},0]
[{"$f":"'A. Population Info'!A466","v":1001477799},{"$f":"'A. Population Info'!D466","v":"T.S.ZN35370.TXF.T00001/0.TX"},{"$f":"'A. Population Info'!F466","v":"HV"},{"$f":"'A. Population Info'!E466","v":2040.9922294401449},{"$f":"INDEX('C. PoC Summary Stats & Para'!$E$25:$G$25,,MATCH($C466,'C. PoC Summary Stats & Para'!$E$18:$G$18,0))","v":0},0,{"$f":"INDEX('C. PoC Summary Stats & Para'!$E$14:$G$14,,MATCH($C466,'C. PoC Summary Stats & Para'!$E$18:$G$18,0))","v":40.728999999999999},0]
[{"$f":"'A. Population Info'!A467","v":1001481507},{"$f":"'A. Population Info'!D467","v":"T.S.ZN03288.TXF.T00001/0.TX"},{"$f":"'A. Population Info'!F467","v":"HV"},{"$f":"'A. Population Info'!E467","v":14364.591366903251},{"$f":"INDEX('C. PoC Summary Stats & Para'!$E$25:$G$25,,MATCH($C467,'C. PoC Summary Stats & Para'!$E$18:$G$18,0))","v":0},0,{"$f":"INDEX('C. PoC Summary Stats & Para'!$E$14:$G$14,,MATCH($C467,'C. PoC Summary Stats & Para'!$E$18:$G$18,0))","v":40.728999999999999},0]
[{"$f":"'A. Population Info'!A468","v":1001481508},{"$f":"'A. Population Info'!D468","v":"T.S.ZN03288.TXF.T00002/0.TX"},{"$f":"'A. Population Info'!F468","v":"HV"},{"$f":"'A. Population Info'!E468","v":14364.591366903251},{"$f":"INDEX('C. PoC Summary Stats & Para'!$E$25:$G$25,,MATCH($C468,'C. PoC Summary Stats & Para'!$E$18:$G$18,0))","v":0},0,{"$f":"INDEX('C. PoC Summary Stats & Para'!$E$14:$G$14,,MATCH($C468,'C. PoC Summary Stats & Para'!$E$18:$G$18,0))","v":40.728999999999999},0]
[{"$f":"'A. Population Info'!A469","v":1001481509},{"$f":"'A. Population Info'!D469","v":"T.S.ZN03288.TXF.T00004/0.TX"},{"$f":"'A. Population Info'!F469","v":"HV"},{"$f":"'A. Population Info'!E469","v":14364.591366903251},{"$f":"INDEX('C. PoC Summary Stats & Para'!$E$25:$G$25,,MATCH($C469,'C. PoC Summary Stats & Para'!$E$18:$G$18,0))","v":0},0,{"$f":"INDEX('C. PoC Summary Stats & Para'!$E$14:$G$14,,MATCH($C469,'C. PoC Summary Stats & Para'!$E$18:$G$18,0))","v":40.728999999999999},0]
[{"$f":"'A. Population Info'!A470","v":1001481511},{"$f":"'A. Population Info'!D470","v":"T.S.ZN03288.TXF.T00003/0.TX"},{"$f":"'A. Population Info'!F470","v":"HV"},{"$f":"'A. Population Info'!E470","v":14364.591366903251},{"$f":"INDEX('C. PoC Summary Stats & Para'!$E$25:$G$25,,MATCH($C470,'C. PoC Summary Stats & Para'!$E$18:$G$18,0))","v":0},0,{"$f":"INDEX('C. PoC Summary Stats & Para'!$E$14:$G$14,,MATCH($C470,'C. PoC Summary Stats & Para'!$E$18:$G$18,0))","v":40.728999999999999},0]
[{"$f":"'A. Population Info'!A471","v":1001481559},{"$f":"'A. Population Info'!D471","v":"T.S.ZN14144.TXF.T00002/0.TX"},{"$f":"'A. Population Info'!F471","v":"HV"},{"$f":"'A. Population Info'!E471","v":2908.6821936577799},{"$f":"INDEX('C. PoC Summary Stats & Para'!$E$25:$G$25,,MATCH($C471,'C. PoC Summary Stats & Para'!$E$18:$G$18,0))","v":0},0,{"$f":"INDEX('C. PoC Summary Stats & Para'!$E$14:$G$14,,MATCH($C471,'C. PoC Summary Stats & Para'!$E$18:$G$18,0))","v":40.728999999999999},0]
[{"$f":"'A. Population Info'!A472","v":1001482403},{"$f":"'A. Population Info'!D472","v":"T.S.TS16600.TXF.T00003/0.TX"},{"$f":"'A. Population Info'!F472","v":"HV"},{"$f":"'A. Population Info'!E472","v":20854.448960514972},{"$f":"INDEX('C. PoC Summary Stats & Para'!$E$25:$G$25,,MATCH($C472,'C. PoC Summary Stats & Para'!$E$18:$G$18,0))","v":0},0,{"$f":"INDEX('C. PoC Summary Stats & Para'!$E$14:$G$14,,MATCH($C472,'C. PoC Summary Stats & Para'!$E$18:$G$18,0))","v":40.728999999999999},0]
[{"$f":"'A. Population Info'!A473","v":1001485864},{"$f":"'A. Population Info'!D473","v":"T.S.ZN00240.TXF.T00001/0.TX"},{"$f":"'A. Population Info'!F473","v":"HV"},{"$f":"'A. Population Info'!E473","v":5526.9435938894003},{"$f":"INDEX('C. PoC Summary Stats & Para'!$E$25:$G$25,,MATCH($C473,'C. PoC Summary Stats & Para'!$E$18:$G$18,0))","v":0},0,{"$f":"INDEX('C. PoC Summary Stats & Para'!$E$14:$G$14,,MATCH($C473,'C. PoC Summary Stats & Para'!$E$18:$G$18,0))","v":40.728999999999999},0]
[{"$f":"'A. Population Info'!A474","v":1001485865},{"$f":"'A. Population Info'!D474","v":"T.S.ZN00240.TXF.T00002/0.TX"},{"$f":"'A. Population Info'!F474","v":"HV"},{"$f":"'A. Population Info'!E474","v":5526.9435938894003},{"$f":"INDEX('C. PoC Summary Stats & Para'!$E$25:$G$25,,MATCH($C474,'C. PoC Summary Stats & Para'!$E$18:$G$18,0))","v":0},0,{"$f":"INDEX('C. PoC Summary Stats & Para'!$E$14:$G$14,,MATCH($C474,'C. PoC Summary Stats & Para'!$E$18:$G$18,0))","v":40.728999999999999},0]
[{"$f":"'A. Population Info'!A475","v":1001485866},{"$f":"'A. Population Info'!D475","v":"T.S.ZN00256.TXF.T00001/0.TX"},{"$f":"'A. Population Info'!F475","v":"HV"},{"$f":"'A. Population Info'!E475","v":5040.1573975575002},{"$f":"INDEX('C. PoC Summary Stats & Para'!$E$25:$G$25,,MATCH($C475,'C. PoC Summary Stats & Para'!$E$18:$G$18,0))","v":0},0,{"$f":"INDEX('C. PoC Summary Stats & Para'!$E$14:$G$14,,MATCH($C475,'C. PoC Summary Stats & Para'!$E$18:$G$18,0))","v":40.728999999999999},0]
[{"$f":"'A. Population Info'!A476","v":1001485867},{"$f":"'A. Population Info'!D476","v":"T.S.ZN00256.TXF.T00002/0.TX"},{"$f":"'A. Population Info'!F476","v":"HV"},{"$f":"'A. Population Info'!E476","v":5040.1573975575002},{"$f":"INDEX('C. PoC Summary Stats & Para'!$E$25:$G$25,,MATCH($C476,'C. PoC Summary Stats & Para'!$E$18:$G$18,0))","v":0},0,{"$f":"INDEX('C. PoC Summary Stats & Para'!$E$14:$G$14,,MATCH($C476,'C. PoC Summary Stats & Para'!$E$18:$G$18,0))","v":40.728999999999999},0]
[{"$f":"'A. Population Info'!A477","v":1001485868},{"$f":"'A. Population Info'!D477","v":"T.S.ZN00258.TXF.T00001/0.TX"},{"$f":"'A. Population Info'!F477","v":"HV"},{"$f":"'A. Population Info'!E477","v":8837.4903110996001},{"$f":"INDEX('C. PoC Summary Stats & Para'!$E$25:$G$25,,MATCH($C477,'C. PoC Summary Stats & Para'!$E$18:$G$18,0))","v":0},0,{"$f":"INDEX('C. PoC Summary Stats & Para'!$E$14:$G$14,,MATCH($C477,'C. PoC Summary Stats & Para'!$E$18:$G$18,0))","v":40.728999999999999},0]
[{"$f":"'A. Population Info'!A478","v":1001485869},{"$f":"'A. Population Info'!D478","v":"T.S.ZN00258.TXF.T00002/0.TX"},{"$f":"'A. Population Info'!F478","v":"HV"},{"$f":"'A. Population Info'!E478","v":8837.4903110996001},{"$f":"INDEX('C. PoC Summary Stats & Para'!$E$25:$G$25,,MATCH($C478,'C. PoC Summary Stats & Para'!$E$18:$G$18,0))","v":0},0,{"$f":"INDEX('C. PoC Summary Stats & Para'!$E$14:$G$14,,MATCH($C478,'C. PoC Summary Stats & Para'!$E$18:$G$18,0))","v":40.728999999999999},0]
[{"$f":"'A. Population Info'!A479","v":1001485870},{"$f":"'A. Population Info'!D479","v":"T.S.TS00417.TXF.T00003/0.TX"},{"$f":"'A. Population Info'!F479","v":"HV"},{"$f":"'A. Population Info'!E479","v":{"$error":"#N/A"}},{"$f":"INDEX('C. PoC Summary Stats & Para'!$E$25:$G$25,,MATCH($C479,'C. PoC Summary Stats & Para'!$E$18:$G$18,0))","v":0},"",{"$f":"INDEX('C. PoC Summary Stats & Para'!$E$14:$G$14,,MATCH($C479,'C. PoC Summary Stats & Para'!$E$18:$G$18,0))","v":40.728999999999999},0]
[{"$f":"'A. Population Info'!A480","v":1001485871},{"$f":"'A. Population Info'!D480","v":"T.S.TS00417.TXF.T00001/0.TX"},{"$f":"'A. Population Info'!F480","v":"HV"},{"$f":"'A. Population Info'!E480","v":{"$error":"#N/A"}},{"$f":"INDEX('C. PoC Summary Stats & Para'!$E$25:$G$25,,MATCH($C480,'C. PoC Summary Stats & Para'!$E$18:$G$18,0))","v":0},"",{"$f":"INDEX('C. PoC Summary Stats & Para'!$E$14:$G$14,,MATCH($C480,'C. PoC Summary Stats & Para'!$E$18:$G$18,0))","v":40.728999999999999},0]
[{"$f":"'A. Population Info'!A481","v":1001487639},{"$f":"'A. Population Info'!D481","v":"T.S.TS07140.TXF.T00003/0.TX"},{"$f":"'A. Population Info'!F481","v":"HV"},{"$f":"'A. Population Info'!E481","v":18479.30311848105},{"$f":"INDEX('C. PoC Summary Stats & Para'!$E$25:$G$25,,MATCH($C481,'C. PoC Summary Stats & Para'!$E$18:$G$18,0))","v":0},0,{"$f":"INDEX('C. PoC Summary Stats & Para'!$E$14:$G$14,,MATCH($C481,'C. PoC Summary Stats & Para'!$E$18:$G$18,0))","v":40.728999999999999},0]
[{"$f":"'A. Population Info'!A482","v":1001489786},{"$f":"'A. Population Info'!D482","v":"T.S.ZN08100.TXF.T00003/0.TX"},{"$f":"'A. Population Info'!F482","v":"HV"},{"$f":"'A. Population Info'!E482","v":9722.756606045501},{"$f":"INDEX('C. PoC Summary Stats & Para'!$E$25:$G$25,,MATCH($C482,'C. PoC Summary Stats & Para'!$E$18:$G$18,0))","v":0},0,{"$f":"INDEX('C. PoC Summary Stats & Para'!$E$14:$G$14,,MATCH($C482,'C. PoC Summary Stats & Para'!$E$18:$G$18,0))","v":40.728999999999999},0]
[{"$f":"'A. Population Info'!A483","v":1001489800},{"$f":"'A. Population Info'!D483","v":"T.S.ZN08700.TXF.T00005/0.TX"},{"$f":"'A. Population Info'!F483","v":"HV"},{"$f":"'A. Population Info'!E483","v":9073.1770453258196},{"$f":"INDEX('C. PoC Summary Stats & Para'!$E$25:$G$25,,MATCH($C483,'C. PoC Summary Stats & Para'!$E$18:$G$18,0))","v":0},0,{"$f":"INDEX('C. PoC Summary Stats & Para'!$E$14:$G$14,,MATCH($C483,'C. PoC Summary Stats & Para'!$E$18:$G$18,0))","v":40.728999999999999},0]
[{"$f":"'A. Population Info'!A484","v":1001489814},{"$f":"'A. Population Info'!D484","v":"T.S.ZN08700.TXF.T00002/0.TX"},{"$f":"'A. Population Info'!F484","v":"HV"},{"$f":"'A. Population Info'!E484","v":9073.1770453258196},{"$f":"INDEX('C. PoC Summary Stats & Para'!$E$25:$G$25,,MATCH($C484,'C. PoC Summary Stats & Para'!$E$18:$G$18,0))","v":0},0,{"$f":"INDEX('C. PoC Summary Stats & Para'!$E$14:$G$14,,MATCH($C484,'C. PoC Summary Stats & Para'!$E$18:$G$18,0))","v":40.728999999999999},0]
[{"$f":"'A. Population Info'!A485","v":1001489815},{"$f":"'A. Population Info'!D485","v":"T.S.ZN08700.TXF.T00001/0.TX"},{"$f":"'A. Population Info'!F485","v":"HV"},{"$f":"'A. Population Info'!E485","v":9073.1770453258196},{"$f":"INDEX('C. PoC Summary Stats & Para'!$E$25:$G$25,,MATCH($C485,'C. PoC Summary Stats & Para'!$E$18:$G$18,0))","v":0},0,{"$f":"INDEX('C. PoC Summary Stats & Para'!$E$14:$G$14,,MATCH($C485,'C. PoC Summary Stats & Para'!$E$18:$G$18,0))","v":40.728999999999999},0]
[{"$f":"'A. Population Info'!A486","v":1001489837},{"$f":"'A. Population Info'!D486","v":"T.S.ZN08700.TXF.T00003/0.TX"},{"$f":"'A. Population Info'!F486","v":"HV"},{"$f":"'A. Population Info'!E486","v":9073.1770453258196},{"$f":"INDEX('C. PoC Summary Stats & Para'!$E$25:$G$25,,MATCH($C486,'C. PoC Summary Stats & Para'!$E$18:$G$18,0))","v":0},0,{"$f":"INDEX('C. PoC Summary Stats & Para'!$E$14:$G$14,,MATCH($C486,'C. PoC Summary Stats & Para'!$E$18:$G$18,0))","v":40.728999999999999},0]
[{"$f":"'A. Population Info'!A487","v":1001489838},{"$f":"'A. Population Info'!D487","v":"T.S.ZN08700.TXF.T00004/0.TX"},{"$f":"'A. Population Info'!F487","v":"HV"},{"$f":"'A. Population Info'!E487","v":9073.1770453258196},{"$f":"INDEX('C. PoC Summary Stats & Para'!$E$25:$G$25,,MATCH($C487,'C. PoC Summary Stats & Para'!$E$18:$G$18,0))","v":0},0,{"$f":"INDEX('C. PoC Summary Stats & Para'!$E$14:$G$14,,MATCH($C487,'C. PoC Summary Stats & Para'!$E$18:$G$18,0))","v":40.728999999999999},0]
[{"$f":"'A. Population Info'!A488","v":1001495907},{"$f":"'A. Population Info'!D488","v":"T.S.ZN00814.TXF.T00001/0.TX"},{"$f":"'A. Population Info'!F488","v":"HV"},{"$f":"'A. Population Info'!E488","v":1144.9969822345649},{"$f":"INDEX('C. PoC Summary Stats & Para'!$E$25:$G$25,,MATCH($C488,'C. PoC Summary Stats & Para'!$E$18:$G$18,0))","v":0},0,{"$f":"INDEX('C. PoC Summary Stats & Para'!$E$14:$G$14,,MATCH($C488,'C. PoC Summary Stats & Para'!$E$18:$G$18,0))","v":40.728999999999999},0]
[{"$f":"'A. Population Info'!A489","v":1001495908},{"$f":"'A. Population Info'!D489","v":"T.S.ZN00814.TXF.T00002/0.TX"},{"$f":"'A. Population Info'!F489","v":"HV"},{"$f":"'A. Population Info'!E489","v":1144.9969822345649},{"$f":"INDEX('C. PoC Summary Stats & Para'!$E$25:$G$25,,MATCH($C489,'C. PoC Summary Stats & Para'!$E$18:$G$18,0))","v":0},0,{"$f":"INDEX('C. PoC Summary Stats & Para'!$E$14:$G$14,,MATCH($C489,'C. PoC Summary Stats & Para'!$E$18:$G$18,0))","v":40.728999999999999},0]
[{"$f":"'A. Population Info'!A490","v":1001499723},{"$f":"'A. Population Info'!D490","v":"T.S.ZN00242.TXF.T00001/0.TX"},{"$f":"'A. Population Info'!F490","v":"HV"},{"$f":"'A. Population Info'!E490","v":3236.478046588255},{"$f":"INDEX('C. PoC Summary Stats & Para'!$E$25:$G$25,,MATCH($C490,'C. PoC Summary Stats & Para'!$E$18:$G$18,0))","v":0},0,{"$f":"INDEX('C. PoC Summary Stats & Para'!$E$14:$G$14,,MATCH($C490,'C. PoC Summary Stats & Para'!$E$18:$G$18,0))","v":40.728999999999999},0]
[{"$f":"'A. Population Info'!A491","v":1001499724},{"$f":"'A. Population Info'!D491","v":"T.S.ZN00242.TXF.T00002/0.TX"},{"$f":"'A. Population Info'!F491","v":"HV"},{"$f":"'A. Population Info'!E491","v":3236.478046588255},{"$f":"INDEX('C. PoC Summary Stats & Para'!$E$25:$G$25,,MATCH($C491,'C. PoC Summary Stats & Para'!$E$18:$G$18,0))","v":0},0,{"$f":"INDEX('C. PoC Summary Stats & Para'!$E$14:$G$14,,MATCH($C491,'C. PoC Summary Stats & Para'!$E$18:$G$18,0))","v":40.728999999999999},0]
[{"$f":"'A. Population Info'!A492","v":1001503043},{"$f":"'A. Population Info'!D492","v":"T.S.ZN35700.TXF.T00003/0.TX"},{"$f":"'A. Population Info'!F492","v":"HV"},{"$f":"'A. Population Info'!E492","v":3897.3850379462001},{"$f":"INDEX('C. PoC Summary Stats & Para'!$E$25:$G$25,,MATCH($C492,'C. PoC Summary Stats & Para'!$E$18:$G$18,0))","v":0},0,{"$f":"INDEX('C. PoC Summary Stats & Para'!$E$14:$G$14,,MATCH($C492,'C. PoC Summary Stats & Para'!$E$18:$G$18,0))","v":40.728999999999999},0]
[{"$f":"'A. Population Info'!A493","v":1001503044},{"$f":"'A. Population Info'!D493","v":"T.S.ZN35700.TXF.T00001/0.TX"},{"$f":"'A. Population Info'!F493","v":"HV"},{"$f":"'A. Population Info'!E493","v":3897.3850379462001},{"$f":"INDEX('C. PoC Summary Stats & Para'!$E$25:$G$25,,MATCH($C493,'C. PoC Summary Stats & Para'!$E$18:$G$18,0))","v":0},0,{"$f":"INDEX('C. PoC Summary Stats & Para'!$E$14:$G$14,,MATCH($C493,'C. PoC Summary Stats & Para'!$E$18:$G$18,0))","v":40.728999999999999},0]
[{"$f":"'A. Population Info'!A494","v":1001503045},{"$f":"'A. Population Info'!D494","v":"T.S.ZN35700.TXF.T00002/0.TX"},{"$f":"'A. Population Info'!F494","v":"HV"},{"$f":"'A. Population Info'!E494","v":3897.3850379462001},{"$f":"INDEX('C. PoC Summary Stats & Para'!$E$25:$G$25,,MATCH($C494,'C. PoC Summary Stats & Para'!$E$18:$G$18,0))","v":0},0,{"$f":"INDEX('C. PoC Summary Stats & Para'!$E$14:$G$14,,MATCH($C494,'C. PoC Summary Stats & Para'!$E$18:$G$18,0))","v":40.728999999999999},0]
[{"$f":"'A. Population Info'!A495","v":1001503857},{"$f":"'A. Population Info'!D495","v":"T.S.ZN13000.TXF.T00001/0.TX"},{"$f":"'A. Population Info'!F495","v":"HV"},{"$f":"'A. Population Info'!E495","v":4160.3405547621151},{"$f":"INDEX('C. PoC Summary Stats & Para'!$E$25:$G$25,,MATCH($C495,'C. PoC Summary Stats & Para'!$E$18:$G$18,0))","v":0},0,{"$f":"INDEX('C. PoC Summary Stats & Para'!$E$14:$G$14,,MATCH($C495,'C. PoC Summary Stats & Para'!$E$18:$G$18,0))","v":40.728999999999999},0]
[{"$f":"'A. Population Info'!A496","v":1001503858},{"$f":"'A. Population Info'!D496","v":"T.S.ZN13000.TXF.T00002/0.TX"},{"$f":"'A. Population Info'!F496","v":"HV"},{"$f":"'A. Population Info'!E496","v":4160.3405547621151},{"$f":"INDEX('C. PoC Summary Stats & Para'!$E$25:$G$25,,MATCH($C496,'C. PoC Summary Stats & Para'!$E$18:$G$18,0))","v":0},0,{"$f":"INDEX('C. PoC Summary Stats & Para'!$E$14:$G$14,,MATCH($C496,'C. PoC Summary Stats & Para'!$E$18:$G$18,0))","v":40.728999999999999},0]
[{"$f":"'A. Population Info'!A497","v":1001503867},{"$f":"'A. Population Info'!D497","v":"T.S.ZN10993.TXF.T00011/0.TX"},{"$f":"'A. Population Info'!F497","v":"HV"},{"$f":"'A. Population Info'!E497","v":5379.0082004327996},{"$f":"INDEX('C. PoC Summary Stats & Para'!$E$25:$G$25,,MATCH($C497,'C. PoC Summary Stats & Para'!$E$18:$G$18,0))","v":0},0,{"$f":"INDEX('C. PoC Summary Stats & Para'!$E$14:$G$14,,MATCH($C497,'C. PoC Summary Stats & Para'!$E$18:$G$18,0))","v":40.728999999999999},0]
[{"$f":"'A. Population Info'!A498","v":1001503868},{"$f":"'A. Population Info'!D498","v":"T.S.ZN10993.TXF.T00012/0.TX"},{"$f":"'A. Population Info'!F498","v":"HV"},{"$f":"'A. Population Info'!E498","v":5379.0082004327996},{"$f":"INDEX('C. PoC Summary Stats & Para'!$E$25:$G$25,,MATCH($C498,'C. PoC Summary Stats & Para'!$E$18:$G$18,0))","v":0},0,{"$f":"INDEX('C. PoC Summary Stats & Para'!$E$14:$G$14,,MATCH($C498,'C. PoC Summary Stats & Para'!$E$18:$G$18,0))","v":40.728999999999999},0]
[{"$f":"'A. Population Info'!A499","v":1001503871},{"$f":"'A. Population Info'!D499","v":"T.S.ZN15001.TXF.T00002/0.TX"},{"$f":"'A. Population Info'!F499","v":"HV"},{"$f":"'A. Population Info'!E499","v":6114.4151861479331},{"$f":"INDEX('C. PoC Summary Stats & Para'!$E$25:$G$25,,MATCH($C499,'C. PoC Summary Stats & Para'!$E$18:$G$18,0))","v":0},0,{"$f":"INDEX('C. PoC Summary Stats & Para'!$E$14:$G$14,,MATCH($C499,'C. PoC Summary Stats & Para'!$E$18:$G$18,0))","v":40.728999999999999},0]
[{"$f":"'A. Population Info'!A500","v":1001503879},{"$f":"'A. Population Info'!D500","v":"T.S.TS07140.TXF.T00001/0.TX"},{"$f":"'A. Population Info'!F500","v":"HV"},{"$f":"'A. Population Info'!E500","v":18479.30311848105},{"$f":"INDEX('C. PoC Summary Stats & Para'!$E$25:$G$25,,MATCH($C500,'C. PoC Summary Stats & Para'!$E$18:$G$18,0))","v":0},0,{"$f":"INDEX('C. PoC Summary Stats & Para'!$E$14:$G$14,,MATCH($C500,'C. PoC Summary Stats & Para'!$E$18:$G$18,0))","v":40.728999999999999},0]
[{"$f":"'A. Population Info'!A501","v":1001505510},{"$f":"'A. Population Info'!D501","v":"T.S.ZN35400.TXF.T00013/0.TX"},{"$f":"'A. Population Info'!F501","v":"HV"},{"$f":"'A. Population Info'!E501","v":9966.4305021655327},{"$f":"INDEX('C. PoC Summary Stats & Para'!$E$25:$G$25,,MATCH($C501,'C. PoC Summary Stats & Para'!$E$18:$G$18,0))","v":0},0,{"$f":"INDEX('C. PoC Summary Stats & Para'!$E$14:$G$14,,MATCH($C501,'C. PoC Summary Stats & Para'!$E$18:$G$18,0))","v":40.728999999999999},0]
[{"$f":"'A. Population Info'!A502","v":1001505511},{"$f":"'A. Population Info'!D502","v":"T.S.ZN35400.TXF.T00012/0.TX"},{"$f":"'A. Population Info'!F502","v":"HV"},{"$f":"'A. Population Info'!E502","v":9966.4305021655327},{"$f":"INDEX('C. PoC Summary Stats & Para'!$E$25:$G$25,,MATCH($C502,'C. PoC Summary Stats & Para'!$E$18:$G$18,0))","v":0},0,{"$f":"INDEX('C. PoC Summary Stats & Para'!$E$14:$G$14,,MATCH($C502,'C. PoC Summary Stats & Para'!$E$18:$G$18,0))","v":40.728999999999999},0]
[{"$f":"'A. Population Info'!A503","v":1001505512},{"$f":"'A. Population Info'!D503","v":"T.S.ZN35400.TXF.T00011/0.TX"},{"$f":"'A. Population Info'!F503","v":"HV"},{"$f":"'A. Population Info'!E503","v":9966.4305021655327},{"$f":"INDEX('C. PoC Summary Stats & Para'!$E$25:$G$25,,MATCH($C503,'C. PoC Summary Stats & Para'!$E$18:$G$18,0))","v":0},0,{"$f":"INDEX('C. PoC Summary Stats & Para'!$E$14:$G$14,,MATCH($C503,'C. PoC Summary Stats & Para'!$E$18:$G$18,0))","v":40.728999999999999},0]
[{"$f":"'A. Population Info'!A504","v":1001505513},{"$f":"'A. Population Info'!D504","v":"T.S.ZN36100.TXF.T00001/0.TX"},{"$f":"'A. Population Info'!F504","v":"HV"},{"$f":"'A. Population Info'!E504","v":8283.9590461445496},{"$f":"INDEX('C. PoC Summary Stats & Para'!$E$25:$G$25,,MATCH($C504,'C. PoC Summary Stats & Para'!$E$18:$G$18,0))","v":0},0,{"$f":"INDEX('C. PoC Summary Stats & Para'!$E$14:$G$14,,MATCH($C504,'C. PoC Summary Stats & Para'!$E$18:$G$18,0))","v":40.728999999999999},0]
[{"$f":"'A. Population Info'!A505","v":1001505514},{"$f":"'A. Population Info'!D505","v":"T.S.ZN00261.TXF.T00001/0.TX"},{"$f":"'A. Population Info'!F505","v":"HV"},{"$f":"'A. Population Info'!E505","v":6356.8196244873998},{"$f":"INDEX('C. PoC Summary Stats & Para'!$E$25:$G$25,,MATCH($C505,'C. PoC Summary Stats & Para'!$E$18:$G$18,0))","v":0},0,{"$f":"INDEX('C. PoC Summary Stats & Para'!$E$14:$G$14,,MATCH($C505,'C. PoC Summary Stats & Para'!$E$18:$G$18,0))","v":40.728999999999999},0]
[{"$f":"'A. Population Info'!A506","v":1001505537},{"$f":"'A. Population Info'!D506","v":"T.S.ZN00511.TXF.T00001/0.TX"},{"$f":"'A. Population Info'!F506","v":"HV"},{"$f":"'A. Population Info'!E506","v":6261.6632808030499},{"$f":"INDEX('C. PoC Summary Stats & Para'!$E$25:$G$25,,MATCH($C506,'C. PoC Summary Stats & Para'!$E$18:$G$18,0))","v":0},0,{"$f":"INDEX('C. PoC Summary Stats & Para'!$E$14:$G$14,,MATCH($C506,'C. PoC Summary Stats & Para'!$E$18:$G$18,0))","v":40.728999999999999},0]
[{"$f":"'A. Population Info'!A507","v":1001505538},{"$f":"'A. Population Info'!D507","v":"T.S.ZN00511.TXF.T00002/0.TX"},{"$f":"'A. Population Info'!F507","v":"HV"},{"$f":"'A. Population Info'!E507","v":6261.6632808030499},{"$f":"INDEX('C. PoC Summary Stats & Para'!$E$25:$G$25,,MATCH($C507,'C. PoC Summary Stats & Para'!$E$18:$G$18,0))","v":0},0,{"$f":"INDEX('C. PoC Summary Stats & Para'!$E$14:$G$14,,MATCH($C507,'C. PoC Summary Stats & Para'!$E$18:$G$18,0))","v":40.728999999999999},0]
[{"$f":"'A. Population Info'!A508","v":1001509331},{"$f":"'A. Population Info'!D508","v":"T.S.ZN00263.TXF.T00004/0.TX"},{"$f":"'A. Population Info'!F508","v":"HV"},{"$f":"'A. Population Info'!E508","v":8497.6413623076241},{"$f":"INDEX('C. PoC Summary Stats & Para'!$E$25:$G$25,,MATCH($C508,'C. PoC Summary Stats & Para'!$E$18:$G$18,0))","v":0},0,{"$f":"INDEX('C. PoC Summary Stats & Para'!$E$14:$G$14,,MATCH($C508,'C. PoC Summary Stats & Para'!$E$18:$G$18,0))","v":40.728999999999999},0]
[{"$f":"'A. Population Info'!A509","v":1001509851},{"$f":"'A. Population Info'!D509","v":"T.S.ZN36200.TXF.T00001/0.TX"},{"$f":"'A. Population Info'!F509","v":"HV"},{"$f":"'A. Population Info'!E509","v":2285.8531236471299},{"$f":"INDEX('C. PoC Summary Stats & Para'!$E$25:$G$25,,MATCH($C509,'C. PoC Summary Stats & Para'!$E$18:$G$18,0))","v":0},0,{"$f":"INDEX('C. PoC Summary Stats & Para'!$E$14:$G$14,,MATCH($C509,'C. PoC Summary Stats & Para'!$E$18:$G$18,0))","v":40.728999999999999},0]
[{"$f":"'A. Population Info'!A510","v":1001509852},{"$f":"'A. Population Info'!D510","v":"T.S.ZN36200.TXF.T00002/0.TX"},{"$f":"'A. Population Info'!F510","v":"HV"},{"$f":"'A. Population Info'!E510","v":2285.8531236471299},{"$f":"INDEX('C. PoC Summary Stats & Para'!$E$25:$G$25,,MATCH($C510,'C. PoC Summary Stats & Para'!$E$18:$G$18,0))","v":0},0,{"$f":"INDEX('C. PoC Summary Stats & Para'!$E$14:$G$14,,MATCH($C510,'C. PoC Summary Stats & Para'!$E$18:$G$18,0))","v":40.728999999999999},0]
[{"$f":"'A. Population Info'!A511","v":1001511639},{"$f":"'A. Population Info'!D511","v":"T.S.ZN15005.TXF.T00002/0.TX"},{"$f":"'A. Population Info'!F511","v":"HV"},{"$f":"'A. Population Info'!E511","v":3485.410718387167},{"$f":"INDEX('C. PoC Summary Stats & Para'!$E$25:$G$25,,MATCH($C511,'C. PoC Summary Stats & Para'!$E$18:$G$18,0))","v":0},0,{"$f":"INDEX('C. PoC Summary Stats & Para'!$E$14:$G$14,,MATCH($C511,'C. PoC Summary Stats & Para'!$E$18:$G$18,0))","v":40.728999999999999},0]
[{"$f":"'A. Population Info'!A512","v":1001521524},{"$f":"'A. Population Info'!D512","v":"T.S.ZN09550.TXF.T00011/0.TX"},{"$f":"'A. Population Info'!F512","v":"HV"},{"$f":"'A. Population Info'!E512","v":4295.4266139541669},{"$f":"INDEX('C. PoC Summary Stats & Para'!$E$25:$G$25,,MATCH($C512,'C. PoC Summary Stats & Para'!$E$18:$G$18,0))","v":0},0,{"$f":"INDEX('C. PoC Summary Stats & Para'!$E$14:$G$14,,MATCH($C512,'C. PoC Summary Stats & Para'!$E$18:$G$18,0))","v":40.728999999999999},0]
[{"$f":"'A. Population Info'!A513","v":1001521525},{"$f":"'A. Population Info'!D513","v":"T.S.ZN00508.TXF.T00001/0.TX"},{"$f":"'A. Population Info'!F513","v":"HV"},{"$f":"'A. Population Info'!E513","v":1193.2175002850449},{"$f":"INDEX('C. PoC Summary Stats & Para'!$E$25:$G$25,,MATCH($C513,'C. PoC Summary Stats & Para'!$E$18:$G$18,0))","v":0},0,{"$f":"INDEX('C. PoC Summary Stats & Para'!$E$14:$G$14,,MATCH($C513,'C. PoC Summary Stats & Para'!$E$18:$G$18,0))","v":40.728999999999999},0]
[{"$f":"'A. Population Info'!A514","v":1001521526},{"$f":"'A. Population Info'!D514","v":"T.S.ZN00508.TXF.T00002/0.TX"},{"$f":"'A. Population Info'!F514","v":"HV"},{"$f":"'A. Population Info'!E514","v":1193.2175002850449},{"$f":"INDEX('C. PoC Summary Stats & Para'!$E$25:$G$25,,MATCH($C514,'C. PoC Summary Stats & Para'!$E$18:$G$18,0))","v":0},0,{"$f":"INDEX('C. PoC Summary Stats & Para'!$E$14:$G$14,,MATCH($C514,'C. PoC Summary Stats & Para'!$E$18:$G$18,0))","v":40.728999999999999},0]
[{"$f":"'A. Population Info'!A515","v":1001521527},{"$f":"'A. Population Info'!D515","v":"T.S.ZN09245.TXF.T00001/0.TX"},{"$f":"'A. Population Info'!F515","v":"HV"},{"$f":"'A. Population Info'!E515","v":5557.0715966406997},{"$f":"INDEX('C. PoC Summary Stats & Para'!$E$25:$G$25,,MATCH($C515,'C. PoC Summary Stats & Para'!$E$18:$G$18,0))","v":0},0,{"$f":"INDEX('C. PoC Summary Stats & Para'!$E$14:$G$14,,MATCH($C515,'C. PoC Summary Stats & Para'!$E$18:$G$18,0))","v":40.728999999999999},0]
[{"$f":"'A. Population Info'!A516","v":1001521528},{"$f":"'A. Population Info'!D516","v":"T.S.ZN09245.TXF.T00002/0.TX"},{"$f":"'A. Population Info'!F516","v":"HV"},{"$f":"'A. Population Info'!E516","v":5557.0715966406997},{"$f":"INDEX('C. PoC Summary Stats & Para'!$E$25:$G$25,,MATCH($C516,'C. PoC Summary Stats & Para'!$E$18:$G$18,0))","v":0},0,{"$f":"INDEX('C. PoC Summary Stats & Para'!$E$14:$G$14,,MATCH($C516,'C. PoC Summary Stats & Para'!$E$18:$G$18,0))","v":40.728999999999999},0]
[{"$f":"'A. Population Info'!A517","v":1001526010},{"$f":"'A. Population Info'!D517","v":"T.S.ZN15002.TXF.T00001/0.TX"},{"$f":"'A. Population Info'!F517","v":"HV"},{"$f":"'A. Population Info'!E517","v":2687.8499487062099},{"$f":"INDEX('C. PoC Summary Stats & Para'!$E$25:$G$25,,MATCH($C517,'C. PoC Summary Stats & Para'!$E$18:$G$18,0))","v":0},0,{"$f":"INDEX('C. PoC Summary Stats & Para'!$E$14:$G$14,,MATCH($C517,'C. PoC Summary Stats & Para'!$E$18:$G$18,0))","v":40.728999999999999},0]
[{"$f":"'A. Population Info'!A518","v":1001526011},{"$f":"'A. Population Info'!D518","v":"T.S.ZN00233.TXF.T00001/0.TX"},{"$f":"'A. Population Info'!F518","v":"HV"},{"$f":"'A. Population Info'!E518","v":1954.8796504611},{"$f":"INDEX('C. PoC Summary Stats & Para'!$E$25:$G$25,,MATCH($C518,'C. PoC Summary Stats & Para'!$E$18:$G$18,0))","v":0},0,{"$f":"INDEX('C. PoC Summary Stats & Para'!$E$14:$G$14,,MATCH($C518,'C. PoC Summary Stats & Para'!$E$18:$G$18,0))","v":40.728999999999999},{"$f":"IFERROR(F518*G518,$L$4*G518)","v":0}]
[{"$f":"'A. Population Info'!A519","v":1001526012},{"$f":"'A. Population Info'!D519","v":"T.S.ZN00233.TXF.T00002/0.TX"},{"$f":"'A. Population Info'!F519","v":"HV"},{"$f":"'A. Population Info'!E519","v":1954.8796504611},{"$f":"INDEX('C. PoC Summary Stats & Para'!$E$25:$G$25,,MATCH($C519,'C. PoC Summary Stats & Para'!$E$18:$G$18,0))","v":0},{"$f":"IFERROR(D519*E519,\"\")","v":0},{"$f":"INDEX('C. PoC Summary Stats & Para'!$E$14:$G$14,,MATCH($C519,'C. PoC Summary Stats & Para'!$E$18:$G$18,0))","v":40.728999999999999},0]
[{"$f":"'A. Population Info'!A520","v":1001528056},{"$f":"'A. Population Info'!D520","v":"T.S.ZN00257.TXF.T00001/0.TX"},{"$f":"'A. Population Info'!F520","v":"HV"},{"$f":"'A. Population Info'!E520","v":5648.1955066400997},{"$f":"INDEX('C. PoC Summary Stats & Para'!$E$25:$G$25,,MATCH($C520,'C. PoC Summary Stats & Para'!$E$18:$G$18,0))","v":0},0,{"$f":"INDEX('C. PoC Summary Stats & Para'!$E$14:$G$14,,MATCH($C520,'C. PoC Summary Stats & Para'!$E$18:$G$18,0))","v":40.728999999999999},0]
[{"$f":"'A. Population Info'!A521","v":1001528057},{"$f":"'A. Population Info'!D521","v":"T.S.ZN00257.TXF.T00002/0.TX"},{"$f":"'A. Population Info'!F521","v":"HV"},{"$f":"'A. Population Info'!E521","v":5648.1955066400997},{"$f":"INDEX('C. PoC Summary Stats & Para'!$E$25:$G$25,,MATCH($C521,'C. PoC Summary Stats & Para'!$E$18:$G$18,0))","v":0},0,{"$f":"INDEX('C. PoC Summary Stats & Para'!$E$14:$G$14,,MATCH($C521,'C. PoC Summary Stats & Para'!$E$18:$G$18,0))","v":40.728999999999999},0]
[{"$f":"'A. Population Info'!A522","v":1001528058},{"$f":"'A. Population Info'!D522","v":"T.S.ZN00187.TXF.T00011/0.TX"},{"$f":"'A. Population Info'!F522","v":"HV"},{"$f":"'A. Population Info'!E522","v":10139.284539735399},{"$f":"INDEX('C. PoC Summary Stats & Para'!$E$25:$G$25,,MATCH($C522,'C. PoC Summary Stats & Para'!$E$18:$G$18,0))","v":0},0,{"$f":"INDEX('C. PoC Summary Stats & Para'!$E$14:$G$14,,MATCH($C522,'C. PoC Summary Stats & Para'!$E$18:$G$18,0))","v":40.728999999999999},0]
[{"$f":"'A. Population Info'!A523","v":1001528059},{"$f":"'A. Population Info'!D523","v":"T.S.ZN00187.TXF.T00012/0.TX"},{"$f":"'A. Population Info'!F523","v":"HV"},{"$f":"'A. Population Info'!E523","v":10139.284539735399},{"$f":"INDEX('C. PoC Summary Stats & Para'!$E$25:$G$25,,MATCH($C523,'C. PoC Summary Stats & Para'!$E$18:$G$18,0))","v":0},0,{"$f":"INDEX('C. PoC Summary Stats & Para'!$E$14:$G$14,,MATCH($C523,'C. PoC Summary Stats & Para'!$E$18:$G$18,0))","v":40.728999999999999},0]
[{"$f":"'A. Population Info'!A524","v":1001528099},{"$f":"'A. Population Info'!D524","v":"T.S.ZN35800.TXF.T00011/0.TX"},{"$f":"'A. Population Info'!F524","v":"HV"},{"$f":"'A. Population Info'!E524","v":10300.506396332101},{"$f":"INDEX('C. PoC Summary Stats & Para'!$E$25:$G$25,,MATCH($C524,'C. PoC Summary Stats & Para'!$E$18:$G$18,0))","v":0},0,{"$f":"INDEX('C. PoC Summary Stats & Para'!$E$14:$G$14,,MATCH($C524,'C. PoC Summary Stats & Para'!$E$18:$G$18,0))","v":40.728999999999999},0]
[{"$f":"'A. Population Info'!A525","v":1001528100},{"$f":"'A. Population Info'!D525","v":"T.S.ZN35800.TXF.T00012/0.TX"},{"$f":"'A. Population Info'!F525","v":"HV"},{"$f":"'A. Population Info'!E525","v":10300.506396332101},{"$f":"INDEX('C. PoC Summary Stats & Para'!$E$25:$G$25,,MATCH($C525,'C. PoC Summary Stats & Para'!$E$18:$G$18,0))","v":0},0,{"$f":"INDEX('C. PoC Summary Stats & Para'!$E$14:$G$14,,MATCH($C525,'C. PoC Summary Stats & Para'!$E$18:$G$18,0))","v":40.728999999999999},0]
[{"$f":"'A. Population Info'!A526","v":1001537307},{"$f":"'A. Population Info'!D526","v":"T.S.TS07170.TXF.T00003/0.TX"},{"$f":"'A. Population Info'!F526","v":"HV"},{"$f":"'A. Population Info'!E526","v":18744.833622971251},{"$f":"INDEX('C. PoC Summary Stats & Para'!$E$25:$G$25,,MATCH($C526,'C. PoC Summary Stats & Para'!$E$18:$G$18,0))","v":0},0,{"$f":"INDEX('C. PoC Summary Stats & Para'!$E$14:$G$14,,MATCH($C526,'C. PoC Summary Stats & Para'!$E$18:$G$18,0))","v":40.728999999999999},0]
[{"$f":"'A. Population Info'!A527","v":1001538184},{"$f":"'A. Population Info'!D527","v":"T.S.ZN00507.TXF.T00001/0.TX"},{"$f":"'A. Population Info'!F527","v":"HV"},{"$f":"'A. Population Info'!E527","v":5179.2492060735503},{"$f":"INDEX('C. PoC Summary Stats & Para'!$E$25:$G$25,,MATCH($C527,'C. PoC Summary Stats & Para'!$E$18:$G$18,0))","v":0},0,{"$f":"INDEX('C. PoC Summary Stats & Para'!$E$14:$G$14,,MATCH($C527,'C. PoC Summary Stats & Para'!$E$18:$G$18,0))","v":40.728999999999999},0]
[{"$f":"'A. Population Info'!A528","v":1001538185},{"$f":"'A. Population Info'!D528","v":"T.S.ZN00507.TXF.T00002/0.TX"},{"$f":"'A. Population Info'!F528","v":"HV"},{"$f":"'A. Population Info'!E528","v":5179.2492060735503},{"$f":"INDEX('C. PoC Summary Stats & Para'!$E$25:$G$25,,MATCH($C528,'C. PoC Summary Stats & Para'!$E$18:$G$18,0))","v":0},0,{"$f":"INDEX('C. PoC Summary Stats & Para'!$E$14:$G$14,,MATCH($C528,'C. PoC Summary Stats & Para'!$E$18:$G$18,0))","v":40.728999999999999},0]
[{"$f":"'A. Population Info'!A529","v":1001542444},{"$f":"'A. Population Info'!D529","v":"T.S.ZN35335.TXF.T00001/0.TX"},{"$f":"'A. Population Info'!F529","v":"HV"},{"$f":"'A. Population Info'!E529","v":3262.563078797165},{"$f":"INDEX('C. PoC Summary Stats & Para'!$E$25:$G$25,,MATCH($C529,'C. PoC Summary Stats & Para'!$E$18:$G$18,0))","v":0},0,{"$f":"INDEX('C. PoC Summary Stats & Para'!$E$14:$G$14,,MATCH($C529,'C. PoC Summary Stats & Para'!$E$18:$G$18,0))","v":40.728999999999999},0]
[{"$f":"'A. Population Info'!A530","v":1001542445},{"$f":"'A. Population Info'!D530","v":"T.S.ZN35335.TXF.T00002/0.TX"},{"$f":"'A. Population Info'!F530","v":"HV"},{"$f":"'A. Population Info'!E530","v":3262.563078797165},{"$f":"INDEX('C. PoC Summary Stats & Para'!$E$25:$G$25,,MATCH($C530,'C. PoC Summary Stats & Para'!$E$18:$G$18,0))","v":0},0,{"$f":"INDEX('C. PoC Summary Stats & Para'!$E$14:$G$14,,MATCH($C530,'C. PoC Summary Stats & Para'!$E$18:$G$18,0))","v":40.728999999999999},0]
[{"$f":"'A. Population Info'!A531","v":1001551112},{"$f":"'A. Population Info'!D531","v":"T.S.ZN35555.TXF.T00001/0.TX"},{"$f":"'A. Population Info'!F531","v":"HV"},{"$f":"'A. Population Info'!E531","v":7266.3000978420996},{"$f":"INDEX('C. PoC Summary Stats & Para'!$E$25:$G$25,,MATCH($C531,'C. PoC Summary Stats & Para'!$E$18:$G$18,0))","v":0},0,{"$f":"INDEX('C. PoC Summary Stats & Para'!$E$14:$G$14,,MATCH($C531,'C. PoC Summary Stats & Para'!$E$18:$G$18,0))","v":40.728999999999999},0]
[{"$f":"'A. Population Info'!A532","v":1001551113},{"$f":"'A. Population Info'!D532","v":"T.S.ZN35555.TXF.T00002/0.TX"},{"$f":"'A. Population Info'!F532","v":"HV"},{"$f":"'A. Population Info'!E532","v":7266.3000978420996},{"$f":"INDEX('C. PoC Summary Stats & Para'!$E$25:$G$25,,MATCH($C532,'C. PoC Summary Stats & Para'!$E$18:$G$18,0))","v":0},0,{"$f":"INDEX('C. PoC Summary Stats & Para'!$E$14:$G$14,,MATCH($C532,'C. PoC Summary Stats & Para'!$E$18:$G$18,0))","v":40.728999999999999},0]
[{"$f":"'A. Population Info'!A533","v":1001553102},{"$f":"'A. Population Info'!D533","v":"T.S.ZN00116.TXF.T00001/0.TX"},{"$f":"'A. Population Info'!F533","v":"HV"},{"$f":"'A. Population Info'!E533","v":3510.8213801948664},{"$f":"INDEX('C. PoC Summary Stats & Para'!$E$25:$G$25,,MATCH($C533,'C. PoC Summary Stats & Para'!$E$18:$G$18,0))","v":0},0,{"$f":"INDEX('C. PoC Summary Stats & Para'!$E$14:$G$14,,MATCH($C533,'C. PoC Summary Stats & Para'!$E$18:$G$18,0))","v":40.728999999999999},0]
[{"$f":"'A. Population Info'!A534","v":1001553103},{"$f":"'A. Population Info'!D534","v":"T.S.ZN00116.TXF.T00002/0.TX"},{"$f":"'A. Population Info'!F534","v":"HV"},{"$f":"'A. Population Info'!E534","v":3510.8213801948664},{"$f":"INDEX('C. PoC Summary Stats & Para'!$E$25:$G$25,,MATCH($C534,'C. PoC Summary Stats & Para'!$E$18:$G$18,0))","v":0},0,{"$f":"INDEX('C. PoC Summary Stats & Para'!$E$14:$G$14,,MATCH($C534,'C. PoC Summary Stats & Para'!$E$18:$G$18,0))","v":40.728999999999999},0]
[{"$f":"'A. Population Info'!A535","v":1001560042},{"$f":"'A. Population Info'!D535","v":"T.S.ZN09534.TXF.T00011/0.TX"},{"$f":"'A. Population Info'!F535","v":"HV"},{"$f":"'A. Population Info'!E535","v":1798.0469518489999},{"$f":"INDEX('C. PoC Summary Stats & Para'!$E$25:$G$25,,MATCH($C535,'C. PoC Summary Stats & Para'!$E$18:$G$18,0))","v":0},0,{"$f":"INDEX('C. PoC Summary Stats & Para'!$E$14:$G$14,,MATCH($C535,'C. PoC Summary Stats & Para'!$E$18:$G$18,0))","v":40.728999999999999},0]
[{"$f":"'A. Population Info'!A536","v":1001560043},{"$f":"'A. Population Info'!D536","v":"T.S.ZN09534.TXF.T00012/0.TX"},{"$f":"'A. Population Info'!F536","v":"HV"},{"$f":"'A. Population Info'!E536","v":1798.0469518489999},{"$f":"INDEX('C. PoC Summary Stats & Para'!$E$25:$G$25,,MATCH($C536,'C. PoC Summary Stats & Para'!$E$18:$G$18,0))","v":0},0,{"$f":"INDEX('C. PoC Summary Stats & Para'!$E$14:$G$14,,MATCH($C536,'C. PoC Summary Stats & Para'!$E$18:$G$18,0))","v":40.728999999999999},0]
[{"$f":"'A. Population Info'!A537","v":1001560044},{"$f":"'A. Population Info'!D537","v":"T.S.ZN10998.TXF.T00002/0.TX"},{"$f":"'A. Population Info'!F537","v":"HV"},{"$f":"'A. Population Info'!E537","v":3908.6981384417049},{"$f":"INDEX('C. PoC Summary Stats & Para'!$E$25:$G$25,,MATCH($C537,'C. PoC Summary Stats & Para'!$E$18:$G$18,0))","v":0},0,{"$f":"INDEX('C. PoC Summary Stats & Para'!$E$14:$G$14,,MATCH($C537,'C. PoC Summary Stats & Para'!$E$18:$G$18,0))","v":40.728999999999999},0]
[{"$f":"'A. Population Info'!A538","v":1001571355},{"$f":"'A. Population Info'!D538","v":"T.S.ZN05959.TXF.T00004/0.TX"},{"$f":"'A. Population Info'!F538","v":"HV"},{"$f":"'A. Population Info'!E538","v":{"$error":"#N/A"}},{"$f":"INDEX('C. PoC Summary Stats & Para'!$E$25:$G$25,,MATCH($C538,'C. PoC Summary Stats & Para'!$E$18:$G$18,0))","v":0},"",{"$f":"INDEX('C. PoC Summary Stats & Para'!$E$14:$G$14,,MATCH($C538,'C. PoC Summary Stats & Para'!$E$18:$G$18,0))","v":40.728999999999999},0]
[{"$f":"'A. Population Info'!A539","v":1001571356},{"$f":"'A. Population Info'!D539","v":"T.S.ZN05959.TXF.T00002/0.TX"},{"$f":"'A. Population Info'!F539","v":"HV"},{"$f":"'A. Population Info'!E539","v":{"$error":"#N/A"}},{"$f":"INDEX('C. PoC Summary Stats & Para'!$E$25:$G$25,,MATCH($C539,'C. PoC Summary Stats & Para'!$E$18:$G$18,0))","v":0},"",{"$f":"INDEX('C. PoC Summary Stats & Para'!$E$14:$G$14,,MATCH($C539,'C. PoC Summary Stats & Para'!$E$18:$G$18,0))","v":40.728999999999999},0]
[{"$f":"'A. Population Info'!A540","v":1001578289},{"$f":"'A. Population Info'!D540","v":"T.S.ZN12610.TXF.T00003/0.TX"},{"$f":"'A. Population Info'!F540","v":"HV"},{"$f":"'A. Population Info'!E540","v":5956.2805217206005},{"$f":"INDEX('C. PoC Summary Stats & Para'!$E$25:$G$25,,MATCH($C540,'C. PoC Summary Stats & Para'!$E$18:$G$18,0))","v":0},0,{"$f":"INDEX('C. PoC Summary Stats & Para'!$E$14:$G$14,,MATCH($C540,'C. PoC Summary Stats & Para'!$E$18:$G$18,0))","v":40.728999999999999},0]
[{"$f":"'A. Population Info'!A541","v":1001584020},{"$f":"'A. Population Info'!D541","v":"T.S.ZN00528.TXF.T00001/0.TX"},{"$f":"'A. Population Info'!F541","v":"HV"},{"$f":"'A. Population Info'!E541","v":3938.10868222813},{"$f":"INDEX('C. PoC Summary Stats & Para'!$E$25:$G$25,,MATCH($C541,'C. PoC Summary Stats & Para'!$E$18:$G$18,0))","v":0},0,{"$f":"INDEX('C. PoC Summary Stats & Para'!$E$14:$G$14,,MATCH($C541,'C. PoC Summary Stats & Para'!$E$18:$G$18,0))","v":40.728999999999999},0]
[{"$f":"'A. Population Info'!A542","v":1001585103},{"$f":"'A. Population Info'!D542","v":"T.S.ZN00528.TXF.T00002/0.TX"},{"$f":"'A. Population Info'!F542","v":"HV"},{"$f":"'A. Population Info'!E542","v":3938.10868222813},{"$f":"INDEX('C. PoC Summary Stats & Para'!$E$25:$G$25,,MATCH($C542,'C. PoC Summary Stats & Para'!$E$18:$G$18,0))","v":0},0,{"$f":"INDEX('C. PoC Summary Stats & Para'!$E$14:$G$14,,MATCH($C542,'C. PoC Summary Stats & Para'!$E$18:$G$18,0))","v":40.728999999999999},0]
[{"$f":"'A. Population Info'!A543","v":1001589233},{"$f":"'A. Population Info'!D543","v":"T.S.ZN12610.TXF.T00002/0.TX"},{"$f":"'A. Population Info'!F543","v":"HV"},{"$f":"'A. Population Info'!E543","v":5956.2805217206005},{"$f":"INDEX('C. PoC Summary Stats & Para'!$E$25:$G$25,,MATCH($C543,'C. PoC Summary Stats & Para'!$E$18:$G$18,0))","v":0},0,{"$f":"INDEX('C. PoC Summary Stats & Para'!$E$14:$G$14,,MATCH($C543,'C. PoC Summary Stats & Para'!$E$18:$G$18,0))","v":40.728999999999999},0]
[{"$f":"'A. Population Info'!A544","v":1001589234},{"$f":"'A. Population Info'!D544","v":"T.S.ZN12610.TXF.T00001/0.TX"},{"$f":"'A. Population Info'!F544","v":"HV"},{"$f":"'A. Population Info'!E544","v":5956.2805217206005},{"$f":"INDEX('C. PoC Summary Stats & Para'!$E$25:$G$25,,MATCH($C544,'C. PoC Summary Stats & Para'!$E$18:$G$18,0))","v":0},0,{"$f":"INDEX('C. PoC Summary Stats & Para'!$E$14:$G$14,,MATCH($C544,'C. PoC Summary Stats & Para'!$E$18:$G$18,0))","v":40.728999999999999},0]
[{"$f":"'A. Population Info'!A545","v":1001613550},{"$f":"'A. Population Info'!D545","v":"T.S.ZN00270.TXF.T00002/0.TX"},{"$f":"'A. Population Info'!F545","v":"HV"},{"$f":"'A. Population Info'!E545","v":4174.3842233148498},{"$f":"INDEX('C. PoC Summary Stats & Para'!$E$25:$G$25,,MATCH($C545,'C. PoC Summary Stats & Para'!$E$18:$G$18,0))","v":0},0,{"$f":"INDEX('C. PoC Summary Stats & Para'!$E$14:$G$14,,MATCH($C545,'C. PoC Summary Stats & Para'!$E$18:$G$18,0))","v":40.728999999999999},0]
[{"$f":"'A. Population Info'!A546","v":1001617236},{"$f":"'A. Population Info'!D546","v":"T.S.ZN36300.TXF.T00001/0.TX"},{"$f":"'A. Population Info'!F546","v":"HV"},{"$f":"'A. Population Info'!E546","v":4560.3840783220339},{"$f":"INDEX('C. PoC Summary Stats & Para'!$E$25:$G$25,,MATCH($C546,'C. PoC Summary Stats & Para'!$E$18:$G$18,0))","v":0},0,{"$f":"INDEX('C. PoC Summary Stats & Para'!$E$14:$G$14,,MATCH($C546,'C. PoC Summary Stats & Para'!$E$18:$G$18,0))","v":40.728999999999999},0]
[{"$f":"'A. Population Info'!A547","v":1001618746},{"$f":"'A. Population Info'!D547","v":"T.S.ZN00264.TXF.T00001/0.TX"},{"$f":"'A. Population Info'!F547","v":"HV"},{"$f":"'A. Population Info'!E547","v":4864.2981627226154},{"$f":"INDEX('C. PoC Summary Stats & Para'!$E$25:$G$25,,MATCH($C547,'C. PoC Summary Stats & Para'!$E$18:$G$18,0))","v":0},0,{"$f":"INDEX('C. PoC Summary Stats & Para'!$E$14:$G$14,,MATCH($C547,'C. PoC Summary Stats & Para'!$E$18:$G$18,0))","v":40.728999999999999},0]
[{"$f":"'A. Population Info'!A548","v":1001618747},{"$f":"'A. Population Info'!D548","v":"T.S.ZN00264.TXF.T00003/0.TX"},{"$f":"'A. Population Info'!F548","v":"HV"},{"$f":"'A. Population Info'!E548","v":4864.2981627226154},{"$f":"INDEX('C. PoC Summary Stats & Para'!$E$25:$G$25,,MATCH($C548,'C. PoC Summary Stats & Para'!$E$18:$G$18,0))","v":0},0,{"$f":"INDEX('C. PoC Summary Stats & Para'!$E$14:$G$14,,MATCH($C548,'C. PoC Summary Stats & Para'!$E$18:$G$18,0))","v":40.728999999999999},0]
[{"$f":"'A. Population Info'!A549","v":1001626218},{"$f":"'A. Population Info'!D549","v":"T.S.ZN10998.TXF.T00001/0.TX"},{"$f":"'A. Population Info'!F549","v":"HV"},{"$f":"'A. Population Info'!E549","v":3908.6981384417049},{"$f":"INDEX('C. PoC Summary Stats & Para'!$E$25:$G$25,,MATCH($C549,'C. PoC Summary Stats & Para'!$E$18:$G$18,0))","v":0},0,{"$f":"INDEX('C. PoC Summary Stats & Para'!$E$14:$G$14,,MATCH($C549,'C. PoC Summary Stats & Para'!$E$18:$G$18,0))","v":40.728999999999999},0]
[{"$f":"'A. Population Info'!A550","v":1001631721},{"$f":"'A. Population Info'!D550","v":"T.S.ZN36800.TXF.T00012/0.TX"},{"$f":"'A. Population Info'!F550","v":"HV"},{"$f":"'A. Population Info'!E550","v":6243.9908001126496},{"$f":"INDEX('C. PoC Summary Stats & Para'!$E$25:$G$25,,MATCH($C550,'C. PoC Summary Stats & Para'!$E$18:$G$18,0))","v":0},0,{"$f":"INDEX('C. PoC Summary Stats & Para'!$E$14:$G$14,,MATCH($C550,'C. PoC Summary Stats & Para'!$E$18:$G$18,0))","v":40.728999999999999},0]
[{"$f":"'A. Population Info'!A551","v":1001631725},{"$f":"'A. Population Info'!D551","v":"T.S.ZN36800.TXF.T00011/0.TX"},{"$f":"'A. Population Info'!F551","v":"HV"},{"$f":"'A. Population Info'!E551","v":6243.9908001126496},{"$f":"INDEX('C. PoC Summary Stats & Para'!$E$25:$G$25,,MATCH($C551,'C. PoC Summary Stats & Para'!$E$18:$G$18,0))","v":0},0,{"$f":"INDEX('C. PoC Summary Stats & Para'!$E$14:$G$14,,MATCH($C551,'C. PoC Summary Stats & Para'!$E$18:$G$18,0))","v":40.728999999999999},0]
[{"$f":"'A. Population Info'!A552","v":1001642113},{"$f":"'A. Population Info'!D552","v":"T.S.ZN00239.TXF.T00001/0.TX"},{"$f":"'A. Population Info'!F552","v":"HV"},{"$f":"'A. Population Info'!E552","v":2417.9717781198451},{"$f":"INDEX('C. PoC Summary Stats & Para'!$E$25:$G$25,,MATCH($C552,'C. PoC Summary Stats & Para'!$E$18:$G$18,0))","v":0},0,{"$f":"INDEX('C. PoC Summary Stats & Para'!$E$14:$G$14,,MATCH($C552,'C. PoC Summary Stats & Para'!$E$18:$G$18,0))","v":40.728999999999999},0]
[{"$f":"'A. Population Info'!A553","v":1001642114},{"$f":"'A. Population Info'!D553","v":"T.S.ZN00239.TXF.T00002/0.TX"},{"$f":"'A. Population Info'!F553","v":"HV"},{"$f":"'A. Population Info'!E553","v":2417.9717781198451},{"$f":"INDEX('C. PoC Summary Stats & Para'!$E$25:$G$25,,MATCH($C553,'C. PoC Summary Stats & Para'!$E$18:$G$18,0))","v":0},0,{"$f":"INDEX('C. PoC Summary Stats & Para'!$E$14:$G$14,,MATCH($C553,'C. PoC Summary Stats & Para'!$E$18:$G$18,0))","v":40.728999999999999},0]
[{"$f":"'A. Population Info'!A554","v":1001687771},{"$f":"'A. Population Info'!D554","v":"T.S.ZN00580.TXF.T00001/0.TX"},{"$f":"'A. Population Info'!F554","v":"HV"},{"$f":"'A. Population Info'!E554","v":{"$error":"#N/A"}},{"$f":"INDEX('C. PoC Summary Stats & Para'!$E$25:$G$25,,MATCH($C554,'C. PoC Summary Stats & Para'!$E$18:$G$18,0))","v":0},"",{"$f":"INDEX('C. PoC Summary Stats & Para'!$E$14:$G$14,,MATCH($C554,'C. PoC Summary Stats & Para'!$E$18:$G$18,0))","v":40.728999999999999},0]
[{"$f":"'A. Population Info'!A555","v":1001853912},{"$f":"'A. Population Info'!D555","v":"T.S.ZN15014.TXF.T00003/0.TX"},{"$f":"'A. Population Info'!F555","v":"HV"},{"$f":"'A. Population Info'!E555","v":5013.648803058567},{"$f":"INDEX('C. PoC Summary Stats & Para'!$E$25:$G$25,,MATCH($C555,'C. PoC Summary Stats & Para'!$E$18:$G$18,0))","v":0},0,{"$f":"INDEX('C. PoC Summary Stats & Para'!$E$14:$G$14,,MATCH($C555,'C. PoC Summary Stats & Para'!$E$18:$G$18,0))","v":40.728999999999999},0]
[{"$f":"'A. Population Info'!A556","v":1001865682},{"$f":"'A. Population Info'!D556","v":"T.S.ZN36000.TXF.T00001/0.TX"},{"$f":"'A. Population Info'!F556","v":"HV"},{"$f":"'A. Population Info'!E556","v":1072.12868790621},{"$f":"INDEX('C. PoC Summary Stats & Para'!$E$25:$G$25,,MATCH($C556,'C. PoC Summary Stats & Para'!$E$18:$G$18,0))","v":0},0,{"$f":"INDEX('C. PoC Summary Stats & Para'!$E$14:$G$14,,MATCH($C556,'C. PoC Summary Stats & Para'!$E$18:$G$18,0))","v":40.728999999999999},0]
[{"$f":"'A. Population Info'!A557","v":1001865683},{"$f":"'A. Population Info'!D557","v":"T.S.ZN36000.TXF.T00002/0.TX"},{"$f":"'A. Population Info'!F557","v":"HV"},{"$f":"'A. Population Info'!E557","v":1072.12868790621},{"$f":"INDEX('C. PoC Summary Stats & Para'!$E$25:$G$25,,MATCH($C557,'C. PoC Summary Stats & Para'!$E$18:$G$18,0))","v":0},0,{"$f":"INDEX('C. PoC Summary Stats & Para'!$E$14:$G$14,,MATCH($C557,'C. PoC Summary Stats & Para'!$E$18:$G$18,0))","v":40.728999999999999},0]
[{"$f":"'A. Population Info'!A558","v":1001895048},{"$f":"'A. Population Info'!D558","v":"T.S.ZN09252.TXF.T00002/0.TX"},{"$f":"'A. Population Info'!F558","v":"HV"},{"$f":"'A. Population Info'!E558","v":3602.2828915092668},{"$f":"INDEX('C. PoC Summary Stats & Para'!$E$25:$G$25,,MATCH($C558,'C. PoC Summary Stats & Para'!$E$18:$G$18,0))","v":0},0,{"$f":"INDEX('C. PoC Summary Stats & Para'!$E$14:$G$14,,MATCH($C558,'C. PoC Summary Stats & Para'!$E$18:$G$18,0))","v":40.728999999999999},0]
[{"$f":"'A. Population Info'!A559","v":1003132771},{"$f":"'A. Population Info'!D559","v":"T.S.TS14406.TXF.T00001/0.TX"},{"$f":"'A. Population Info'!F559","v":"HV"},{"$f":"'A. Population Info'!E559","v":6302.4788863958047},{"$f":"INDEX('C. PoC Summary Stats & Para'!$E$25:$G$25,,MATCH($C559,'C. PoC Summary Stats & Para'!$E$18:$G$18,0))","v":0},0,{"$f":"INDEX('C. PoC Summary Stats & Para'!$E$14:$G$14,,MATCH($C559,'C. PoC Summary Stats & Para'!$E$18:$G$18,0))","v":40.728999999999999},0]
[{"$f":"'A. Population Info'!A560","v":1003132772},{"$f":"'A. Population Info'!D560","v":"T.S.TS14406.TXF.T00002/0.TX"},{"$f":"'A. Population Info'!F560","v":"HV"},{"$f":"'A. Population Info'!E560","v":6302.4788863958047},{"$f":"INDEX('C. PoC Summary Stats & Para'!$E$25:$G$25,,MATCH($C560,'C. PoC Summary Stats & Para'!$E$18:$G$18,0))","v":0},0,{"$f":"INDEX('C. PoC Summary Stats & Para'!$E$14:$G$14,,MATCH($C560,'C. PoC Summary Stats & Para'!$E$18:$G$18,0))","v":40.728999999999999},0]
[{"$f":"'A. Population Info'!A561","v":1003132875},{"$f":"'A. Population Info'!D561","v":"T.S.TS37000.TXF.T00001/0.TX"},{"$f":"'A. Population Info'!F561","v":"HV"},{"$f":"'A. Population Info'!E561","v":{"$error":"#N/A"}},{"$f":"INDEX('C. PoC Summary Stats & Para'!$E$25:$G$25,,MATCH($C561,'C. PoC Summary Stats & Para'!$E$18:$G$18,0))","v":0},"",{"$f":"INDEX('C. PoC Summary Stats & Para'!$E$14:$G$14,,MATCH($C561,'C. PoC Summary Stats & Para'!$E$18:$G$18,0))","v":40.728999999999999},0]
[{"$f":"'A. Population Info'!A562","v":1003132876},{"$f":"'A. Population Info'!D562","v":"T.S.TS37000.TXF.T00003/0.TX"},{"$f":"'A. Population Info'!F562","v":"HV"},{"$f":"'A. Population Info'!E562","v":{"$error":"#N/A"}},{"$f":"INDEX('C. PoC Summary Stats & Para'!$E$25:$G$25,,MATCH($C562,'C. PoC Summary Stats & Para'!$E$18:$G$18,0))","v":0},"",{"$f":"INDEX('C. PoC Summary Stats & Para'!$E$14:$G$14,,MATCH($C562,'C. PoC Summary Stats & Para'!$E$18:$G$18,0))","v":40.728999999999999},0]
[{"$f":"'A. Population Info'!A563","v":1000332689},{"$f":"'A. Population Info'!D563","v":"T.S.ZN02568.TXF.T00003/0.TX"},{"$f":"'A. Population Info'!F563","v":"HV"},{"$f":"'A. Population Info'!E563","v":9522.4053547612748},{"$f":"INDEX('C. PoC Summary Stats & Para'!$E$25:$G$25,,MATCH($C563,'C. PoC Summary Stats & Para'!$E$18:$G$18,0))","v":0},0,{"$f":"INDEX('C. PoC Summary Stats & Para'!$E$14:$G$14,,MATCH($C563,'C. PoC Summary Stats & Para'!$E$18:$G$18,0))","v":40.728999999999999},0]
[{"$f":"'A. Population Info'!A564","v":1000340355},{"$f":"'A. Population Info'!D564","v":"T.S.ZN10996.TXF.T00002/0.TX"},{"$f":"'A. Population Info'!F564","v":"HV"},{"$f":"'A. Population Info'!E564","v":{"$error":"#N/A"}},{"$f":"INDEX('C. PoC Summary Stats & Para'!$E$25:$G$25,,MATCH($C564,'C. PoC Summary Stats & Para'!$E$18:$G$18,0))","v":0},"",{"$f":"INDEX('C. PoC Summary Stats & Para'!$E$14:$G$14,,MATCH($C564,'C. PoC Summary Stats & Para'!$E$18:$G$18,0))","v":40.728999999999999},0]
[{"$f":"'A. Population Info'!A565","v":1000349432},{"$f":"'A. Population Info'!D565","v":"T.S.ZN10996.TXF.T00003/0.TX"},{"$f":"'A. Population Info'!F565","v":"HV"},{"$f":"'A. Population Info'!E565","v":{"$error":"#N/A"}},{"$f":"INDEX('C. PoC Summary Stats & Para'!$E$25:$G$25,,MATCH($C565,'C. PoC Summary Stats & Para'!$E$18:$G$18,0))","v":0},"",{"$f":"INDEX('C. PoC Summary Stats & Para'!$E$14:$G$14,,MATCH($C565,'C. PoC Summary Stats & Para'!$E$18:$G$18,0))","v":40.728999999999999},0]
[{"$f":"'A. Population Info'!A566","v":1000358329},{"$f":"'A. Population Info'!D566","v":"T.S.ZN10996.TXF.T00001/0.TX"},{"$f":"'A. Population Info'!F566","v":"HV"},{"$f":"'A. Population Info'!E566","v":{"$error":"#N/A"}},{"$f":"INDEX('C. PoC Summary Stats & Para'!$E$25:$G$25,,MATCH($C566,'C. PoC Summary Stats & Para'!$E$18:$G$18,0))","v":0},"",{"$f":"INDEX('C. PoC Summary Stats & Para'!$E$14:$G$14,,MATCH($C566,'C. PoC Summary Stats & Para'!$E$18:$G$18,0))","v":40.728999999999999},0]
[{"$f":"'A. Population Info'!A567","v":1000374750},{"$f":"'A. Population Info'!D567","v":"T.S.ZN00203.TXF.T00001/0.TX"},{"$f":"'A. Population Info'!F567","v":"HV"},{"$f":"'A. Population Info'!E567","v":{"$error":"#N/A"}},{"$f":"INDEX('C. PoC Summary Stats & Para'!$E$25:$G$25,,MATCH($C567,'C. PoC Summary Stats & Para'!$E$18:$G$18,0))","v":0},"",{"$f":"INDEX('C. PoC Summary Stats & Para'!$E$14:$G$14,,MATCH($C567,'C. PoC Summary Stats & Para'!$E$18:$G$18,0))","v":40.728999999999999},0]
[{"$f":"'A. Population Info'!A568","v":1000374782},{"$f":"'A. Population Info'!D568","v":"T.S.ZN00203.TXF.T00002/0.TX"},{"$f":"'A. Population Info'!F568","v":"HV"},{"$f":"'A. Population Info'!E568","v":{"$error":"#N/A"}},{"$f":"INDEX('C. PoC Summary Stats & Para'!$E$25:$G$25,,MATCH($C568,'C. PoC Summary Stats & Para'!$E$18:$G$18,0))","v":0},"",{"$f":"INDEX('C. PoC Summary Stats & Para'!$E$14:$G$14,,MATCH($C568,'C. PoC Summary Stats & Para'!$E$18:$G$18,0))","v":40.728999999999999},0]
[{"$f":"'A. Population Info'!A569","v":1000400379},{"$f":"'A. Population Info'!D569","v":"T.S.ZN15008.TXF.T00001/0.TX"},{"$f":"'A. Population Info'!F569","v":"HV"},{"$f":"'A. Population Info'!E569","v":3709.0115294808402},{"$f":"INDEX('C. PoC Summary Stats & Para'!$E$25:$G$25,,MATCH($C569,'C. PoC Summary Stats & Para'!$E$18:$G$18,0))","v":0},0,{"$f":"INDEX('C. PoC Summary Stats & Para'!$E$14:$G$14,,MATCH($C569,'C. PoC Summary Stats & Para'!$E$18:$G$18,0))","v":40.728999999999999},0]
[{"$f":"'A. Population Info'!A570","v":1000400797},{"$f":"'A. Population Info'!D570","v":"T.S.TS07290.TXF.T00004/0.TX"},{"$f":"'A. Population Info'!F570","v":"HV"},{"$f":"'A. Population Info'!E570","v":8566.3777211888664},{"$f":"INDEX('C. PoC Summary Stats & Para'!$E$25:$G$25,,MATCH($C570,'C. PoC Summary Stats & Para'!$E$18:$G$18,0))","v":0},0,{"$f":"INDEX('C. PoC Summary Stats & Para'!$E$14:$G$14,,MATCH($C570,'C. PoC Summary Stats & Para'!$E$18:$G$18,0))","v":40.728999999999999},0]
[{"$f":"'A. Population Info'!A571","v":1000407857},{"$f":"'A. Population Info'!D571","v":"T.S.ZN00512.TXF.T00002/0.TX"},{"$f":"'A. Population Info'!F571","v":"HV"},{"$f":"'A. Population Info'!E571","v":1932.0540241098599},{"$f":"INDEX('C. PoC Summary Stats & Para'!$E$25:$G$25,,MATCH($C571,'C. PoC Summary Stats & Para'!$E$18:$G$18,0))","v":0},0,{"$f":"INDEX('C. PoC Summary Stats & Para'!$E$14:$G$14,,MATCH($C571,'C. PoC Summary Stats & Para'!$E$18:$G$18,0))","v":40.728999999999999},0]
[{"$f":"'A. Population Info'!A572","v":1000410265},{"$f":"'A. Population Info'!D572","v":"T.S.TS00413.TXF.T00003/0.TX"},{"$f":"'A. Population Info'!F572","v":"HV"},{"$f":"'A. Population Info'!E572","v":{"$error":"#N/A"}},{"$f":"INDEX('C. PoC Summary Stats & Para'!$E$25:$G$25,,MATCH($C572,'C. PoC Summary Stats & Para'!$E$18:$G$18,0))","v":0},"",{"$f":"INDEX('C. PoC Summary Stats & Para'!$E$14:$G$14,,MATCH($C572,'C. PoC Summary Stats & Para'!$E$18:$G$18,0))","v":40.728999999999999},0]
[{"$f":"'A. Population Info'!A573","v":1000410753},{"$f":"'A. Population Info'!D573","v":"T.S.ZN00807.TXF.T0002A/0.TX"},{"$f":"'A. Population Info'!F573","v":"HV"},{"$f":"'A. Population Info'!E573","v":538.25717876837746},{"$f":"INDEX('C. PoC Summary Stats & Para'!$E$25:$G$25,,MATCH($C573,'C. PoC Summary Stats & Para'!$E$18:$G$18,0))","v":0},0,{"$f":"INDEX('C. PoC Summary Stats & Para'!$E$14:$G$14,,MATCH($C573,'C. PoC Summary Stats & Para'!$E$18:$G$18,0))","v":40.728999999999999},0]

{"sheet":"C. Population PoC & Risk","index":14,"n_rows":573,"n_cols":117,"rows_kept":573,"cut":false,"hidden":false,"merged":[[1,0,4,0],[1,1,1,5],[1,11,1,15],[1,16,1,20],[1,21,1,116],[1,6,1,10]]}
[null,null,"Population PoC and Risk"]
["Asset Identifier","Total PoC Score",null,null,null,null,"Population Normalised PoC Score",null,null,null,null,"Z-Scores",null,null,null,null,"Adjusted PoC",null,null,null,null,"Risk Cost ($) - Per Risk Category, Per Asset, Per Annum"]
[null,"C1","C2","C3","C4","C5",{"$f":"B3","v":"C1"},{"$f":"C3","v":"C2"},"C3","C4","C5","C1","C2","C3","C4","C5","C1","C2","C3","C4","C5",{"$f":"$B$3","v":"C1"},{"$f":"V3","v":"C1"},{"$f":"V3","v":"C1"},{"$f":"V3","v":"C1"},{"$f":"V3","v":"C1"},{"$f":"V3","v":"C1"},{"$f":"V3","v":"C1"},{"$f":"V3","v":"C1"},{"$f":"V3","v":"C1"},{"$f":"V3","v":"C1"},{"$f":"V3","v":"C1"},{"$f":"V3","v":"C1"},{"$f":"$C$3","v":"C2"},{"$f":"AH3","v":"C2"},{"$f":"AH3","v":"C2"},{"$f":"AH3","v":"C2"},{"$f":"AH3","v":"C2"},{"$f":"AH3","v":"C2"},{"$f":"AH3","v":"C2"},{"$f":"AH3","v":"C2"},{"$f":"AH3","v":"C2"},{"$f":"AH3","v":"C2"},{"$f":"AH3","v":"C2"},{"$f":"AH3","v":"C2"},{"$f":"$D$3","v":"C3"},{"$f":"AT3","v":"C3"},{"$f":"AT3","v":"C3"},{"$f":"AT3","v":"C3"},{"$f":"AT3","v":"C3"},{"$f":"AT3","v":"C3"},{"$f":"AT3","v":"C3"},{"$f":"AT3","v":"C3"},{"$f":"AT3","v":"C3"},{"$f":"AT3","v":"C3"},{"$f":"AT3","v":"C3"},{"$f":"AT3","v":"C3"},{"$f":"$E$3","v":"C4"},{"$f":"BF3","v":"C4"},{"$f":"BF3","v":"C4"},{"$f":"BF3","v":"C4"},{"$f":"BF3","v":"C4"},{"$f":"BF3","v":"C4"},{"$f":"BF3","v":"C4"},{"$f":"BF3","v":"C4"},{"$f":"BF3","v":"C4"},{"$f":"BF3","v":"C4"},{"$f":"BF3","v":"C4"},{"$f":"BF3","v":"C4"},{"$f":"$F$3","v":"C5"},{"$f":"BR3","v":"C5"},{"$f":"BR3","v":"C5"},{"$f":"BR3","v":"C5"},{"$f":"BR3","v":"C5"},{"$f":"BR3","v":"C5"},{"$f":"BR3","v":"C5"},{"$f":"BR3","v":"C5"},{"$f":"BR3","v":"C5"},{"$f":"BR3","v":"C5"},{"$f":"BR3","v":"C5"},{"$f":"BR3","v":"C5"},"Reliability","Reliability","Reliability","Reliability","Reliability","Reliability","Reliability","Reliability","Reliability","Reliability","Reliability","Reliability","Finance","Finance","Finance","Finance","Finance","Finance","Finance","Finance","Finance","Finance","Finance","Finance","Total",{"$f":"DB3","v":"Total"},{"$f":"DB3","v":"Total"},{"$f":"DB3","v":"Total"},{"$f":"DB3","v":"Total"},{"$f":"DB3","v":"Total"},{"$f":"DB3","v":"Total"},{"$f":"DB3","v":"Total"},{"$f":"DB3","v":"Total"},{"$f":"DB3","v":"Total"},{"$f":"DB3","v":"Total"},{"$f":"DB3","v":"Total"}]
[null,{"$f":"INDEX('C. PoC Summary Stats & Para'!$N$7:$N$11, MATCH(B3, 'C. PoC Summary Stats & Para'!$O$7:$O$11, 0))","v":"Worker Safety"},{"$f":"INDEX('C. PoC Summary Stats & Para'!$N$7:$N$11, MATCH(C3, 'C. PoC Summary Stats & Para'!$O$7:$O$11, 0))","v":"Physical Impact"},{"$f":"INDEX('C. PoC Summary Stats & Para'!$N$7:$N$11, MATCH(D3, 'C. PoC Summary Stats & Para'!$O$7:$O$11, 0))","v":"Shock"},{"$f":"INDEX('C. PoC Summary Stats & Para'!$N$7:$N$11, MATCH(E3, 'C. PoC Summary Stats & Para'!$O$7:$O$11, 0))","v":"Fire"},{"$f":"INDEX('C. PoC Summary Stats & Para'!$N$7:$N$11, MATCH(F3, 'C. PoC Summary Stats & Para'!$O$7:$O$11, 0))","v":"Environment"},{"$f":"B4","v":"Worker Safety"},{"$f":"C4","v":"Physical Impact"},{"$f":"D4","v":"Shock"},{"$f":"E4","v":"Fire"},{"$f":"F4","v":"Environment"},{"$f":"$B$4","v":"Worker Safety"},{"$f":"$C$4","v":"Physical Impact"},{"$f":"$D$4","v":"Shock"},{"$f":"$E$4","v":"Fire"},{"$f":"$F$4","v":"Environment"},{"$f":"$B$4","v":"Worker Safety"},{"$f":"$C$4","v":"Physical Impact"},{"$f":"$D$4","v":"Shock"},{"$f":"$E$4","v":"Fire"},{"$f":"$F$4","v":"Environment"},{"$f":"IFERROR(INDEX('C. PoC Summary Stats & Para'!$N$7:$N$11, MATCH(V3, 'C. PoC Summary Stats & Para'!$O$7:$O$11, 0)), \"\")","v":"Worker Safety"},{"$f":"IFERROR(INDEX('C. PoC Summary Stats & Para'!$N$7:$N$11, MATCH(W3, 'C. PoC Summary Stats & Para'!$O$7:$O$11, 0)), \"\")","v":"Worker Safety"},{"$f":"IFERROR(INDEX('C. PoC Summary Stats & Para'!$N$7:$N$11, MATCH(X3, 'C. PoC Summary Stats & Para'!$O$7:$O$11, 0)), \"\")","v":"Worker Safety"},{"$f":"IFERROR(INDEX('C. PoC Summary Stats & Para'!$N$7:$N$11, MATCH(Y3, 'C. PoC Summary Stats & Para'!$O$7:$O$11, 0)), \"\")","v":"Worker Safety"},{"$f":"IFERROR(INDEX('C. PoC Summary Stats & Para'!$N$7:$N$11, MATCH(Z3, 'C. PoC Summary Stats & Para'!$O$7:$O$11, 0)), \"\")","v":"Worker Safety"},{"$f":"IFERROR(INDEX('C. PoC Summary Stats & Para'!$N$7:$N$11, MATCH(AA3, 'C. PoC Summary Stats & Para'!$O$7:$O$11, 0)), \"\")","v":"Worker Safety"},{"$f":"IFERROR(INDEX('C. PoC Summary Stats & Para'!$N$7:$N$11, MATCH(AB3, 'C. PoC Summary Stats & Para'!$O$7:$O$11, 0)), \"\")","v":"Worker Safety"},{"$f":"IFERROR(INDEX('C. PoC Summary Stats & Para'!$N$7:$N$11, MATCH(AC3, 'C. PoC Summary Stats & Para'!$O$7:$O$11, 0)), \"\")","v":"Worker Safety"},{"$f":"IFERROR(INDEX('C. PoC Summary Stats & Para'!$N$7:$N$11, MATCH(AD3, 'C. PoC Summary Stats & Para'!$O$7:$O$11, 0)), \"\")","v":"Worker Safety"},{"$f":"IFERROR(INDEX('C. PoC Summary Stats & Para'!$N$7:$N$11, MATCH(AE3, 'C. PoC Summary Stats & Para'!$O$7:$O$11, 0)), \"\")","v":"Worker Safety"},{"$f":"IFERROR(INDEX('C. PoC Summary Stats & Para'!$N$7:$N$11, MATCH(AF3, 'C. PoC Summary Stats & Para'!$O$7:$O$11, 0)), \"\")","v":"Worker Safety"},{"$f":"IFERROR(INDEX('C. PoC Summary Stats & Para'!$N$7:$N$11, MATCH(AG3, 'C. PoC Summary Stats & Para'!$O$7:$O$11, 0)), \"\")","v":"Worker Safety"},{"$f":"IFERROR(INDEX('C. PoC Summary Stats & Para'!$N$7:$N$11, MATCH(AH3, 'C. PoC Summary Stats & Para'!$O$7:$O$11, 0)), \"\")","v":"Physical Impact"},{"$f":"IFERROR(INDEX('C. PoC Summary Stats & Para'!$N$7:$N$11, MATCH(AI3, 'C. PoC Summary Stats & Para'!$O$7:$O$11, 0)), \"\")","v":"Physical Impact"},{"$f":"IFERROR(INDEX('C. PoC Summary Stats & Para'!$N$7:$N$11, MATCH(AJ3, 'C. PoC Summary Stats & Para'!$O$7:$O$11, 0)), \"\")","v":"Physical Impact"},{"$f":"IFERROR(INDEX('C. PoC Summary Stats & Para'!$N$7:$N$11, MATCH(AK3, 'C. PoC Summary Stats & Para'!$O$7:$O$11, 0)), \"\")","v":"Physical Impact"},{"$f":"IFERROR(INDEX('C. PoC Summary Stats & Para'!$N$7:$N$11, MATCH(AL3, 'C. PoC Summary Stats & Para'!$O$7:$O$11, 0)), \"\")","v":"Physical Impact"},{"$f":"IFERROR(INDEX('C. PoC Summary Stats & Para'!$N$7:$N$11, MATCH(AM3, 'C. PoC Summary Stats & Para'!$O$7:$O$11, 0)), \"\")","v":"Physical Impact"},{"$f":"IFERROR(INDEX('C. PoC Summary Stats & Para'!$N$7:$N$11, MATCH(AN3, 'C. PoC Summary Stats & Para'!$O$7:$O$11, 0)), \"\")","v":"Physical Impact"},{"$f":"IFERROR(INDEX('C. PoC Summary Stats & Para'!$N$7:$N$11, MATCH(AO3, 'C. PoC Summary Stats & Para'!$O$7:$O$11, 0)), \"\")","v":"Physical Impact"},{"$f":"IFERROR(INDEX('C. PoC Summary Stats & Para'!$N$7:$N$11, MATCH(AP3, 'C. PoC Summary Stats & Para'!$O$7:$O$11, 0)), \"\")","v":"Physical Impact"},{"$f":"IFERROR(INDEX('C. PoC Summary Stats & Para'!$N$7:$N$11, MATCH(AQ3, 'C. PoC Summary Stats & Para'!$O$7:$O$11, 0)), \"\")","v":"Physical Impact"},{"$f":"IFERROR(INDEX('C. PoC Summary Stats & Para'!$N$7:$N$11, MATCH(AR3, 'C. PoC Summary Stats & Para'!$O$7:$O$11, 0)), \"\")","v":"Physical Impact"},{"$f":"IFERROR(INDEX('C. PoC Summary Stats & Para'!$N$7:$N$11, MATCH(AS3, 'C. PoC Summary Stats & Para'!$O$7:$O$11, 0)), \"\")","v":"Physical Impact"},{"$f":"IFERROR(INDEX('C. PoC Summary Stats & Para'!$N$7:$N$11, MATCH(AT3, 'C. PoC Summary Stats & Para'!$O$7:$O$11, 0)), \"\")","v":"Shock"},{"$f":"IFERROR(INDEX('C. PoC Summary Stats & Para'!$N$7:$N$11, MATCH(AU3, 'C. PoC Summary Stats & Para'!$O$7:$O$11, 0)), \"\")","v":"Shock"},{"$f":"IFERROR(INDEX('C. PoC Summary Stats & Para'!$N$7:$N$11, MATCH(AV3, 'C. PoC Summary Stats & Para'!$O$7:$O$11, 0)), \"\")","v":"Shock"},{"$f":"IFERROR(INDEX('C. PoC Summary Stats & Para'!$N$7:$N$11, MATCH(AW3, 'C. PoC Summary Stats & Para'!$O$7:$O$11, 0)), \"\")","v":"Shock"},{"$f":"IFERROR(INDEX('C. PoC Summary Stats & Para'!$N$7:$N$11, MATCH(AX3, 'C. PoC Summary Stats & Para'!$O$7:$O$11, 0)), \"\")","v":"Shock"},{"$f":"IFERROR(INDEX('C. PoC Summary Stats & Para'!$N$7:$N$11, MATCH(AY3, 'C. PoC Summary Stats & Para'!$O$7:$O$11, 0)), \"\")","v":"Shock"},{"$f":"IFERROR(INDEX('C. PoC Summary Stats & Para'!$N$7:$N$11, MATCH(AZ3, 'C. PoC Summary Stats & Para'!$O$7:$O$11, 0)), \"\")","v":"Shock"},{"$f":"IFERROR(INDEX('C. PoC Summary Stats & Para'!$N$7:$N$11, MATCH(BA3, 'C. PoC Summary Stats & Para'!$O$7:$O$11, 0)), \"\")","v":"Shock"},{"$f":"IFERROR(INDEX('C. PoC Summary Stats & Para'!$N$7:$N$11, MATCH(BB3, 'C. PoC Summary Stats & Para'!$O$7:$O$11, 0)), \"\")","v":"Shock"},{"$f":"IFERROR(INDEX('C. PoC Summary Stats & Para'!$N$7:$N$11, MATCH(BC3, 'C. PoC Summary Stats & Para'!$O$7:$O$11, 0)), \"\")","v":"Shock"},{"$f":"IFERROR(INDEX('C. PoC Summary Stats & Para'!$N$7:$N$11, MATCH(BD3, 'C. PoC Summary Stats & Para'!$O$7:$O$11, 0)), \"\")","v":"Shock"},{"$f":"IFERROR(INDEX('C. PoC Summary Stats & Para'!$N$7:$N$11, MATCH(BE3, 'C. PoC Summary Stats & Para'!$O$7:$O$11, 0)), \"\")","v":"Shock"},{"$f":"IFERROR(INDEX('C. PoC Summary Stats & Para'!$N$7:$N$11, MATCH(BF3, 'C. PoC Summary Stats & Para'!$O$7:$O$11, 0)), \"\")","v":"Fire"},{"$f":"IFERROR(INDEX('C. PoC Summary Stats & Para'!$N$7:$N$11, MATCH(BG3, 'C. PoC Summary Stats & Para'!$O$7:$O$11, 0)), \"\")","v":"Fire"},{"$f":"IFERROR(INDEX('C. PoC Summary Stats & Para'!$N$7:$N$11, MATCH(BH3, 'C. PoC Summary Stats & Para'!$O$7:$O$11, 0)), \"\")","v":"Fire"},{"$f":"IFERROR(INDEX('C. PoC Summary Stats & Para'!$N$7:$N$11, MATCH(BI3, 'C. PoC Summary Stats & Para'!$O$7:$O$11, 0)), \"\")","v":"Fire"},{"$f":"IFERROR(INDEX('C. PoC Summary Stats & Para'!$N$7:$N$11, MATCH(BJ3, 'C. PoC Summary Stats & Para'!$O$7:$O$11, 0)), \"\")","v":"Fire"},{"$f":"IFERROR(INDEX('C. PoC Summary Stats & Para'!$N$7:$N$11, MATCH(BK3, 'C. PoC Summary Stats & Para'!$O$7:$O$11, 0)), \"\")","v":"Fire"},{"$f":"IFERROR(INDEX('C. PoC Summary Stats & Para'!$N$7:$N$11, MATCH(BL3, 'C. PoC Summary Stats & Para'!$O$7:$O$11, 0)), \"\")","v":"Fire"},{"$f":"IFERROR(INDEX('C. PoC Summary Stats & Para'!$N$7:$N$11, MATCH(BM3, 'C. PoC Summary Stats & Para'!$O$7:$O$11, 0)), \"\")","v":"Fire"},{"$f":"IFERROR(INDEX('C. PoC Summary Stats & Para'!$N$7:$N$11, MATCH(BN3, 'C. PoC Summary Stats & Para'!$O$7:$O$11, 0)), \"\")","v":"Fire"},{"$f":"IFERROR(INDEX('C. PoC Summary Stats & Para'!$N$7:$N$11, MATCH(BO3, 'C. PoC Summary Stats & Para'!$O$7:$O$11, 0)), \"\")","v":"Fire"},{"$f":"IFERROR(INDEX('C. PoC Summary Stats & Para'!$N$7:$N$11, MATCH(BP3, 'C. PoC Summary Stats & Para'!$O$7:$O$11, 0)), \"\")","v":"Fire"},{"$f":"IFERROR(INDEX('C. PoC Summary Stats & Para'!$N$7:$N$11, MATCH(BQ3, 'C. PoC Summary Stats & Para'!$O$7:$O$11, 0)), \"\")","v":"Fire"},{"$f":"IFERROR(INDEX('C. PoC Summary Stats & Para'!$N$7:$N$11, MATCH(BR3, 'C. PoC Summary Stats & Para'!$O$7:$O$11, 0)), \"\")","v":"Environment"},{"$f":"IFERROR(INDEX('C. PoC Summary Stats & Para'!$N$7:$N$11, MATCH(BS3, 'C. PoC Summary Stats & Para'!$O$7:$O$11, 0)), \"\")","v":"Environment"},{"$f":"IFERROR(INDEX('C. PoC Summary Stats & Para'!$N$7:$N$11, MATCH(BT3, 'C. PoC Summary Stats & Para'!$O$7:$O$11, 0)), \"\")","v":"Environment"},{"$f":"IFERROR(INDEX('C. PoC Summary Stats & Para'!$N$7:$N$11, MATCH(BU3, 'C. PoC Summary Stats & Para'!$O$7:$O$11, 0)), \"\")","v":"Environment"},{"$f":"IFERROR(INDEX('C. PoC Summary Stats & Para'!$N$7:$N$11, MATCH(BV3, 'C. PoC Summary Stats & Para'!$O$7:$O$11, 0)), \"\")","v":"Environment"},{"$f":"IFERROR(INDEX('C. PoC Summary Stats & Para'!$N$7:$N$11, MATCH(BW3, 'C. PoC Summary Stats & Para'!$O$7:$O$11, 0)), \"\")","v":"Environment"},{"$f":"IFERROR(INDEX('C. PoC Summary Stats & Para'!$N$7:$N$11, MATCH(BX3, 'C. PoC Summary Stats & Para'!$O$7:$O$11, 0)), \"\")","v":"Environment"},{"$f":"IFERROR(INDEX('C. PoC Summary Stats & Para'!$N$7:$N$11, MATCH(BY3, 'C. PoC Summary Stats & Para'!$O$7:$O$11, 0)), \"\")","v":"Environment"},{"$f":"IFERROR(INDEX('C. PoC Summary Stats & Para'!$N$7:$N$11, MATCH(BZ3, 'C. PoC Summary Stats & Para'!$O$7:$O$11, 0)), \"\")","v":"Environment"},{"$f":"IFERROR(INDEX('C. PoC Summary Stats & Para'!$N$7:$N$11, MATCH(CA3, 'C. PoC Summary Stats & Para'!$O$7:$O$11, 0)), \"\")","v":"Environment"},{"$f":"IFERROR(INDEX('C. PoC Summary Stats & Para'!$N$7:$N$11, MATCH(CB3, 'C. PoC Summary Stats & Para'!$O$7:$O$11, 0)), \"\")","v":"Environment"},{"$f":"IFERROR(INDEX('C. PoC Summary Stats & Para'!$N$7:$N$11, MATCH(CC3, 'C. PoC Summary Stats & Para'!$O$7:$O$11, 0)), \"\")","v":"Environment"},{"$f":"SUM(CD6:CD1048576)","v":0},0,0,0,0,0,0,0,0,0,0,0,678736.90862893476,687089.18907628127,695804.67661224981,704893.15935331455,714364.3006375758,724227.653455636,734492.67136667925,745168.71719878842,756265.07021451055,767790.93214962631,779755.43239085306,792167.63247585669,1175735.5193896247,1213304.002025781,1252502.1480899723,1293373.5658326459,1335961.312628367,1380307.9585680477,1426455.6345280616,1474446.070474463,1524320.6270112891,1576120.3219718691,1629885.8532233243,1685657.6184910838]
[null,null,null,null,null,null,null,null,null,null,null,null,null,null,null,null,null,null,null,null,null,2019,2020,2021,2022,2023,2024,2025,2026,2027,2028,2029,2030,2019,2020,2021,2022,2023,2024,2025,2026,2027,2028,2029,2030,2019,2020,2021,2022,2023,2024,2025,2026,2027,2028,2029,2030,2019,2020,2021,2022,2023,2024,2025,2026,2027,2028,2029,2030,2019,2020,2021,2022,2023,2024,2025,2026,2027,2028,2029,2030,2019,2020,2021,2022,2023,2024,2025,2026,2027,2028,2029,2030,2019,2020,2021,2022,2023,2024,2025,2026,2027,2028,2029,2030,2019,2020,2021,2022,2023,2024,2025,2026,2027,2028,2029,2030]
[1000023626,4,1,1,1,3,3.0306803023566031,3,3,3,3.0230632761679481,2.1694249845207684E-2,0,0,0,1.6308198974734206E-2,0.12304063405958204,0,0,0,0.3677509745712596,20.898335090615813,25.585582173483054,30.889524476582746,36.842036338549633,43.474423051897745,50.817465771241231,58.901460450564159,67.756251890949088,77.411263737631444,87.895525086545064,99.237694226602784,111.46607994206619,0,0,0,0,0,0,0,0,0,0,0,0,0,0,0,0,0,0,0,0,0,0,0,0,0,0,0,0,0,0,0,0,0,0,0,0,10.135160867043924,12.408356459059,14.980633544211758,17.867450365859522,21.08398919446757,24.64517810695375,28.565709870273789,32.860058453703466,37.542493576646898,42.627093612134182,48.12775710122358,54.058213084108843,0,0,0,0,0,0,0,0,0,0,0,0,953.86375850175716,955.85179372085247,958.10139224045133,960.62607314898037,963.43911418131495,966.55357076602024,969.98229254009038,973.73793778985203,977.83298617382718,982.27975000755498,987.09038433357352,992.27689595654374,984.8972544594169,993.84573235339451,1003.9715502612459,1015.3355598533896,1027.9975264276802,1042.0162146442151,1057.4494628609282,1074.3542481345046,1092.7867434881055,1112.8023687062343,1134.4558356614,1157.8011889827189]
[1000023638,4,1,1,1,3,3.0306803023566031,3,3,3,3.0230632761679481,2.1694249845207684E-2,0,0,0,1.6308198974734206E-2,0.12304063405958204,0,0,0,0.3677509745712596,20.898335090615813,25.585582173483054,30.889524476582746,36.842036338549633,43.474423051897745,50.817465771241231,58.901460450564159,67.756251890949088,77.411263737631444,87.895525086545064,99.237694226602784,111.46607994206619,0,0,0,0,0,0,0,0,0,0,0,0,0,0,0,0,0,0,0,0,0,0,0,0,0,0,0,0,0,0,0,0,0,0,0,0,10.135160867043924,12.408356459059,14.980633544211758,17.867450365859522,21.08398919446757,24.64517810695375,28.565709870273789,32.860058453703466,37.542493576646898,42.627093612134182,48.12775710122358,54.058213084108843,0,0,0,0,0,0,0,0,0,0,0,0,953.86375850175716,955.85179372085247,958.10139224045133,960.62607314898037,963.43911418131495,966.55357076602024,969.98229254009038,973.73793778985203,977.83298617382718,982.27975000755498,987.09038433357352,992.27689595654374,984.8972544594169,993.84573235339451,1003.9715502612459,1015.3355598533896,1027.9975264276802,1042.0162146442151,1057.4494628609282,1074.3542481345046,1092.7867434881055,1112.8023687062343,1134.4558356614,1157.8011889827189]
[1000023649,4,1,1,1,3,3.0306803023566031,3,3,3,3.0230632761679481,2.1694249845207684E-2,0,0,0,1.6308198974734206E-2,0.12304063405958204,0,0,0,0.3677509745712596,16.795287547117443,20.898335090615813,25.585582173483054,30.889524476582746,36.842036338549633,43.474423051897745,50.817465771241231,58.901460450564159,67.756251890949088,77.411263737631444,87.895525086545064,99.237694226602784,0,0,0,0,0,0,0,0,0,0,0,0,0,0,0,0,0,0,0,0,0,0,0,0,0,0,0,0,0,0,0,0,0,0,0,0,8.1452871896351073,10.135160867043924,12.408356459059,14.980633544211758,17.867450365859522,21.08398919446757,24.64517810695375,28.565709870273789,32.860058453703466,37.542493576646898,42.627093612134182,48.12775710122358,0,0,0,0,0,0,0,0,0,0,0,0,952.12350396046941,953.86375850175716,955.85179372085247,958.10139224045133,960.62607314898037,963.43911418131495,966.55357076602024,969.98229254009038,973.73793778985203,977.83298617382718,982.27975000755498,987.09038433357352,977.06407869722204,984.8972544594169,993.84573235339451,1003.9715502612459,1015.3355598533896,1027.9975264276802,1042.0162146442151,1057.4494628609282,1074.3542481345046,1092.7867434881055,1112.8023687062343,1134.4558356614]
[1000048071,4,1,1,1,3,3.0306803023566031,3,3,3,3.0230632761679481,2.1694249845207684E-2,0,0,0,1.6308198974734206E-2,0.12304063405958204,0,0,0,0.3677509745712596,20.898335090615813,25.585582173483054,30.889524476582746,36.842036338549633,43.474423051897745,50.817465771241231,58.901460450564159,67.756251890949088,77.411263737631444,87.895525086545064,99.237694226602784,111.46607994206619,0,0,0,0,0,0,0,0,0,0,0,0,0,0,0,0,0,0,0,0,0,0,0,0,0,0,0,0,0,0,0,0,0,0,0,0,10.135160867043924,12.408356459059,14.980633544211758,17.867450365859522,21.08398919446757,24.64517810695375,28.565709870273789,32.860058453703466,37.542493576646898,42.627093612134182,48.12775710122358,54.058213084108843,0,0,0,0,0,0,0,0,0,0,0,0,953.86375850175716,955.85179372085247,958.10139224045133,960.62607314898037,963.43911418131495,966.55357076602024,969.98229254009038,973.73793778985203,977.83298617382718,982.27975000755498,987.09038433357352,992.27689595654374,984.8972544594169,993.84573235339451,1003.9715502612459,1015.3355598533896,1027.9975264276802,1042.0162146442151,1057.4494628609282,1074.3542481345046,1092.7867434881055,1112.8023687062343,1134.4558356614,1157.8011889827189]
[1000048606,4,1,1,1,3,3.0306803023566031,3,3,3,3.0230632761679481,2.1694249845207684E-2,0,0,0,1.6308198974734206E-2,0.12304063405958204,0,0,0,0.3677509745712596,16.795287547117443,20.898335090615813,25.585582173483054,30.889524476582746,36.842036338549633,43.474423051897745,50.817465771241231,58.901460450564159,67.756251890949088,77.411263737631444,87.895525086545064,99.237694226602784,0,0,0,0,0,0,0,0,0,0,0,0,0,0,0,0,0,0,0,0,0,0,0,0,0,0,0,0,0,0,0,0,0,0,0,0,8.1452871896351073,10.135160867043924,12.408356459059,14.980633544211758,17.867450365859522,21.08398919446757,24.64517810695375,28.565709870273789,32.860058453703466,37.542493576646898,42.627093612134182,48.12775710122358,0,0,0,0,0,0,0,0,0,0,0,0,952.12350396046941,953.86375850175716,955.85179372085247,958.10139224045133,960.62607314898037,963.43911418131495,966.55357076602024,969.98229254009038,973.73793778985203,977.83298617382718,982.27975000755498,987.09038433357352,977.06407869722204,984.8972544594169,993.84573235339451,1003.9715502612459,1015.3355598533896,1027.9975264276802,1042.0162146442151,1057.4494628609282,1074.3542481345046,1092.7867434881055,1112.8023687062343,1134.4558356614]
[1000048621,4,1,1,1,3,3.0306803023566031,3,3,3,3.0230632761679481,2.1694249845207684E-2,0,0,0,1.6308198974734206E-2,0.12304063405958204,0,0,0,0.3677509745712596,16.795287547117443,20.898335090615813,25.585582173483054,30.889524476582746,36.842036338549633,43.474423051897745,50.817465771241231,58.901460450564159,67.756251890949088,77.411263737631444,87.895525086545064,99.237694226602784,0,0,0,0,0,0,0,0,0,0,0,0,0,0,0,0,0,0,0,0,0,0,0,0,0,0,0,0,0,0,0,0,0,0,0,0,8.1452871896351073,10.135160867043924,12.408356459059,14.980633544211758,17.867450365859522,21.08398919446757,24.64517810695375,28.565709870273789,32.860058453703466,37.542493576646898,42.627093612134182,48.12775710122358,0,0,0,0,0,0,0,0,0,0,0,0,952.12350396046941,953.86375850175716,955.85179372085247,958.10139224045133,960.62607314898037,963.43911418131495,966.55357076602024,969.98229254009038,973.73793778985203,977.83298617382718,982.27975000755498,987.09038433357352,977.06407869722204,984.8972544594169,993.84573235339451,1003.9715502612459,1015.3355598533896,1027.9975264276802,1042.0162146442151,1057.4494628609282,1074.3542481345046,1092.7867434881055,1112.8023687062343,1134.4558356614]
[1000048751,4,1,1,1,3,3.0306803023566031,3,3,3,3.0230632761679481,2.1694249845207684E-2,0,0,0,1.6308198974734206E-2,0.12304063405958204,0,0,0,0.3677509745712596,20.898335090615813,25.585582173483054,30.889524476582746,36.842036338549633,43.474423051897745,50.817465771241231,58.901460450564159,67.756251890949088,77.411263737631444,87.895525086545064,99.237694226602784,111.46607994206619,0,0,0,0,0,0,0,0,0,0,0,0,0,0,0,0,0,0,0,0,0,0,0,0,0,0,0,0,0,0,0,0,0,0,0,0,10.135160867043924,12.408356459059,14.980633544211758,17.867450365859522,21.08398919446757,24.64517810695375,28.565709870273789,32.860058453703466,37.542493576646898,42.627093612134182,48.12775710122358,54.058213084108843,0,0,0,0,0,0,0,0,0,0,0,0,953.86375850175716,955.85179372085247,958.10139224045133,960.62607314898037,963.43911418131495,966.55357076602024,969.98229254009038,973.73793778985203,977.83298617382718,982.27975000755498,987.09038433357352,992.27689595654374,984.8972544594169,993.84573235339451,1003.9715502612459,1015.3355598533896,1027.9975264276802,1042.0162146442151,1057.4494628609282,1074.3542481345046,1092.7867434881055,1112.8023687062343,1134.4558356614,1157.8011889827189]
[1000063506,4,1,1,1,3,3.0306803023566031,3,3,3,3.0230632761679481,2.1694249845207684E-2,0,0,0,1.6308198974734206E-2,0.12304063405958204,0,0,0,0.3677509745712596,20.898335090615813,25.585582173483054,30.889524476582746,36.842036338549633,43.474423051897745,50.817465771241231,58.901460450564159,67.756251890949088,77.411263737631444,87.895525086545064,99.237694226602784,111.46607994206619,0,0,0,0,0,0,0,0,0,0,0,0,0,0,0,0,0,0,0,0,0,0,0,0,0,0,0,0,0,0,0,0,0,0,0,0,10.135160867043924,12.408356459059,14.980633544211758,17.867450365859522,21.08398919446757,24.64517810695375,28.565709870273789,32.860058453703466,37.542493576646898,42.627093612134182,48.12775710122358,54.058213084108843,0,0,0,0,0,0,0,0,0,0,0,0,953.86375850175716,955.85179372085247,958.10139224045133,960.62607314898037,963.43911418131495,966.55357076602024,969.98229254009038,973.73793778985203,977.83298617382718,982.27975000755498,987.09038433357352,992.27689595654374,984.8972544594169,993.84573235339451,1003.9715502612459,1015.3355598533896,1027.9975264276802,1042.0162146442151,1057.4494628609282,1074.3542481345046,1092.7867434881055,1112.8023687062343,1134.4558356614,1157.8011889827189]
[1000096500,4,1,1,1,3,3.0306803023566031,3,3,3,3.0230632761679481,2.1694249845207684E-2,0,0,0,1.6308198974734206E-2,0.12304063405958204,0,0,0,0.3677509745712596,16.795287547117443,20.898335090615813,25.585582173483054,30.889524476582746,36.842036338549633,43.474423051897745,50.817465771241231,58.901460450564159,67.756251890949088,77.411263737631444,87.895525086545064,99.237694226602784,0,0,0,0,0,0,0,0,0,0,0,0,0,0,0,0,0,0,0,0,0,0,0,0,0,0,0,0,0,0,0,0,0,0,0,0,8.1452871896351073,10.135160867043924,12.408356459059,14.980633544211758,17.867450365859522,21.08398919446757,24.64517810695375,28.565709870273789,32.860058453703466,37.542493576646898,42.627093612134182,48.12775710122358,0,0,0,0,0,0,0,0,0,0,0,0,952.12350396046941,953.86375850175716,955.85179372085247,958.10139224045133,960.62607314898037,963.43911418131495,966.55357076602024,969.98229254009038,973.73793778985203,977.83298617382718,982.27975000755498,987.09038433357352,977.06407869722204,984.8972544594169,993.84573235339451,1003.9715502612459,1015.3355598533896,1027.9975264276802,1042.0162146442151,1057.4494628609282,1074.3542481345046,1092.7867434881055,1112.8023687062343,1134.4558356614]
[1000096880,4,1,1,1,3,3.0306803023566031,3,3,3,3.0230632761679481,2.1694249845207684E-2,0,0,0,1.6308198974734206E-2,0.12304063405958204,0,0,0,0.3677509745712596,16.795287547117443,20.898335090615813,25.585582173483054,30.889524476582746,36.842036338549633,43.474423051897745,50.817465771241231,58.901460450564159,67.756251890949088,77.411263737631444,87.895525086545064,99.237694226602784,0,0,0,0,0,0,0,0,0,0,0,0,0,0,0,0,0,0,0,0,0,0,0,0,0,0,0,0,0,0,0,0,0,0,0,0,8.1452871896351073,10.135160867043924,12.408356459059,14.980633544211758,17.867450365859522,21.08398919446757,24.64517810695375,28.565709870273789,32.860058453703466,37.542493576646898,42.627093612134182,48.12775710122358,0,0,0,0,0,0,0,0,0,0,0,0,952.12350396046941,953.86375850175716,955.85179372085247,958.10139224045133,960.62607314898037,963.43911418131495,966.55357076602024,969.98229254009038,973.73793778985203,977.83298617382718,982.27975000755498,987.09038433357352,977.06407869722204,984.8972544594169,993.84573235339451,1003.9715502612459,1015.3355598533896,1027.9975264276802,1042.0162146442151,1057.4494628609282,1074.3542481345046,1092.7867434881055,1112.8023687062343,1134.4558356614]
[1000114250,4,1,1,1,3,3.0306803023566031,3,3,3,3.0230632761679481,2.1694249845207684E-2,0,0,0,1.6308198974734206E-2,0.12304063405958204,0,0,0,0.3677509745712596,13.243260944614924,16.795287547117443,20.898335090615813,25.585582173483054,30.889524476582746,36.842036338549633,43.474423051897745,50.817465771241231,58.901460450564159,67.756251890949088,77.411263737631444,87.895525086545064,0,0,0,0,0,0,0,0,0,0,0,0,0,0,0,0,0,0,0,0,0,0,0,0,0,0,0,0,0,0,0,0,0,0,0,0,6.4226446506824182,8.1452871896351073,10.135160867043924,12.408356459059,14.980633544211758,17.867450365859522,21.08398919446757,24.64517810695375,28.565709870273789,32.860058453703466,37.542493576646898,42.627093612134182,0,0,0,0,0,0,0,0,0,0,0,0,950.61695782366553,952.12350396046941,953.86375850175716,955.85179372085247,958.10139224045133,960.62607314898037,963.43911418131495,966.55357076602024,969.98229254009038,973.73793778985203,977.83298617382718,982.27975000755498,970.28286341896285,977.06407869722204,984.8972544594169,993.84573235339451,1003.9715502612459,1015.3355598533896,1027.9975264276802,1042.0162146442151,1057.4494628609282,1074.3542481345046,1092.7867434881055,1112.8023687062343]
[1000131033,4,1,1,1,3,3.0306803023566031,3,3,3,3.0230632761679481,2.1694249845207684E-2,0,0,0,1.6308198974734206E-2,0.12304063405958204,0,0,0,0.3677509745712596,10.208320333996825,13.243260944614924,16.795287547117443,20.898335090615813,25.585582173483054,30.889524476582746,36.842036338549633,43.474423051897745,50.817465771241231,58.901460450564159,67.756251890949088,77.411263737631444,0,0,0,0,0,0,0,0,0,0,0,0,0,0,0,0,0,0,0,0,0,0,0,0,0,0,0,0,0,0,0,0,0,0,0,0,4.9507756631690896,6.4226446506824182,8.1452871896351073,10.135160867043924,12.408356459059,14.980633544211758,17.867450365859522,21.08398919446757,24.64517810695375,28.565709870273789,32.860058453703466,37.542493576646898,0,0,0,0,0,0,0,0,0,0,0,0,949.32972702163988,950.61695782366553,952.12350396046941,953.86375850175716,955.85179372085247,958.10139224045133,960.62607314898037,963.43911418131495,966.55357076602024,969.98229254009038,973.73793778985203,977.83298617382718,964.48882301880587,970.28286341896285,977.06407869722204,984.8972544594169,993.84573235339451,1003.9715502612459,1015.3355598533896,1027.9975264276802,1042.0162146442151,1057.4494628609282,1074.3542481345046,1092.7867434881055]
[1000207623,4,1,1,1,3,3.0306803023566031,3,3,3,3.0230632761679481,2.1694249845207684E-2,0,0,0,1.6308198974734206E-2,0.12304063405958204,0,0,0,0.3677509745712596,13.243260944614924,16.795287547117443,20.898335090615813,25.585582173483054,30.889524476582746,36.842036338549633,43.474423051897745,50.817465771241231,58.901460450564159,67.756251890949088,77.411263737631444,87.895525086545064,0,0,0,0,0,0,0,0,0,0,0,0,0,0,0,0,0,0,0,0,0,0,0,0,0,0,0,0,0,0,0,0,0,0,0,0,6.4226446506824182,8.1452871896351073,10.135160867043924,12.408356459059,14.980633544211758,17.867450365859522,21.08398919446757,24.64517810695375,28.565709870273789,32.860058453703466,37.542493576646898,42.627093612134182,0,0,0,0,0,0,0,0,0,0,0,0,950.61695782366553,952.12350396046941,953.86375850175716,955.85179372085247,958.10139224045133,960.62607314898037,963.43911418131495,966.55357076602024,969.98229254009038,973.73793778985203,977.83298617382718,982.27975000755498,970.28286341896285,977.06407869722204,984.8972544594169,993.84573235339451,1003.9715502612459,1015.3355598533896,1027.9975264276802,1042.0162146442151,1057.4494628609282,1074.3542481345046,1092.7867434881055,1112.8023687062343]
[1000207714,4,1,1,1,3,3.0306803023566031,3,3,3,3.0230632761679481,2.1694249845207684E-2,0,0,0,1.6308198974734206E-2,0.12304063405958204,0,0,0,0.3677509745712596,16.795287547117443,20.898335090615813,25.585582173483054,30.889524476582746,36.842036338549633,43.474423051897745,50.817465771241231,58.901460450564159,67.756251890949088,77.411263737631444,87.895525086545064,99.237694226602784,0,0,0,0,0,0,0,0,0,0,0,0,0,0,0,0,0,0,0,0,0,0,0,0,0,0,0,0,0,0,0,0,0,0,0,0,8.1452871896351073,10.135160867043924,12.408356459059,14.980633544211758,17.867450365859522,21.08398919446757,24.64517810695375,28.565709870273789,32.860058453703466,37.542493576646898,42.627093612134182,48.12775710122358,0,0,0,0,0,0,0,0,0,0,0,0,952.12350396046941,953.86375850175716,955.85179372085247,958.10139224045133,960.62607314898037,963.43911418131495,966.55357076602024,969.98229254009038,973.73793778985203,977.83298617382718,982.27975000755498,987.09038433357352,977.06407869722204,984.8972544594169,993.84573235339451,1003.9715502612459,1015.3355598533896,1027.9975264276802,1042.0162146442151,1057.4494628609282,1074.3542481345046,1092.7867434881055,1112.8023687062343,1134.4558356614]
[1000207726,4,1,1,1,3,3.0306803023566031,3,3,3,3.0230632761679481,2.1694249845207684E-2,0,0,0,1.6308198974734206E-2,0.12304063405958204,0,0,0,0.3677509745712596,16.795287547117443,20.898335090615813,25.585582173483054,30.889524476582746,36.842036338549633,43.474423051897745,50.817465771241231,58.901460450564159,67.756251890949088,77.411263737631444,87.895525086545064,99.237694226602784,0,0,0,0,0,0,0,0,0,0,0,0,0,0,0,0,0,0,0,0,0,0,0,0,0,0,0,0,0,0,0,0,0,0,0,0,8.1452871896351073,10.135160867043924,12.408356459059,14.980633544211758,17.867450365859522,21.08398919446757,24.64517810695375,28.565709870273789,32.860058453703466,37.542493576646898,42.627093612134182,48.12775710122358,0,0,0,0,0,0,0,0,0,0,0,0,952.12350396046941,953.86375850175716,955.85179372085247,958.10139224045133,960.62607314898037,963.43911418131495,966.55357076602024,969.98229254009038,973.73793778985203,977.83298617382718,982.27975000755498,987.09038433357352,977.06407869722204,984.8972544594169,993.84573235339451,1003.9715502612459,1015.3355598533896,1027.9975264276802,1042.0162146442151,1057.4494628609282,1074.3542481345046,1092.7867434881055,1112.8023687062343,1134.4558356614]
[1000224415,4,1,1,1,3,3.0306803023566031,3,3,3,3.0230632761679481,2.1694249845207684E-2,0,0,0,1.6308198974734206E-2,0.12304063405958204,0,0,0,0.3677509745712596,5.5496215163108102,7.6556855199203593,10.208320333996825,13.243260944614924,16.795287547117443,20.898335090615813,25.585582173483054,30.889524476582746,36.842036338549633,43.474423051897745,50.817465771241231,58.901460450564159,0,0,0,0,0,0,0,0,0,0,0,0,0,0,0,0,0,0,0,0,0,0,0,0,0,0,0,0,0,0,0,0,0,0,0,0,2.6914252535014205,3.7128127171591463,4.9507756631690896,6.4226446506824182,8.1452871896351073,10.135160867043924,12.408356459059,14.980633544211758,17.867450365859522,21.08398919446757,24.64517810695375,28.565709870273789,0,0,0,0,0,0,0,0,0,0,0,0,947.35380017993987,948.24705998443119,949.32972702163988,950.61695782366553,952.12350396046941,953.86375850175716,955.85179372085247,958.10139224045133,960.62607314898037,963.43911418131495,966.55357076602024,969.98229254009038,955.59484694975208,959.6155582215107,964.48882301880587,970.28286341896285,977.06407869722204,984.8972544594169,993.84573235339451,1003.9715502612459,1015.3355598533896,1027.9975264276802,1042.0162146442151,1057.4494628609282]
[1000224424,4,1,1,1,3,3.0306803023566031,3,3,3,3.0230632761679481,2.1694249845207684E-2,0,0,0,1.6308198974734206E-2,0.12304063405958204,0,0,0,0.3677509745712596,21.406215965875141,27.577002427660744,34.812987497018305,43.194734643958625,52.802255191383644,63.715051291511266,76.01215290533267,89.772149946485101,105.07322047044566,121.99315558915362,140.60938164437835,160.99898006384194,0,0,0,0,0,0,0,0,0,0,0,0,0,0,0,0,0,0,0,0,0,0,0,0,0,0,0,0,0,0,0,0,0,0,0,0,10.381470171097517,13.374144620769716,16.883413296550422,20.948347431866907,25.607750482845223,30.90017897078291,36.863960416245071,43.537208928024917,50.95783887418559,59.163576965018251,68.191973006561369,78.080409530315009,0,0,0,0,0,0,0,0,0,0,0,0,954.07916960539001,956.69642886197744,959.76547832926769,963.32048796095035,967.39539352466124,972.02391482987673,977.23957141227243,983.07569616713079,989.56544730542328,996.74181892102479,1004.6376503952616,1013.285634818628,985.86685574236265,997.64757591040791,1011.4618791228364,1027.4635700367758,1045.80539919889,1066.639145092171,1090.1156847338502,1116.3850550416407,1145.5965066500546,1177.8985514751967,1213.4390050462014,1252.3650244127848]
[1000224437,4,1,1,1,3,3.0306803023566031,3,3,3,3.0230632761679481,2.1694249845207684E-2,0,0,0,1.6308198974734206E-2,0.12304063405958204,0,0,0,0.3677509745712596,13.243260944614924,16.795287547117443,20.898335090615813,25.585582173483054,30.889524476582746,36.842036338549633,43.474423051897745,50.817465771241231,58.901460450564159,67.756251890949088,77.411263737631444,87.895525086545064,0,0,0,0,0,0,0,0,0,0,0,0,0,0,0,0,0,0,0,0,0,0,0,0,0,0,0,0,0,0,0,0,0,0,0,0,6.4226446506824182,8.1452871896351073,10.135160867043924,12.408356459059,14.980633544211758,17.867450365859522,21.08398919446757,24.64517810695375,28.565709870273789,32.860058453703466,37.542493576646898,42.627093612134182,0,0,0,0,0,0,0,0,0,0,0,0,950.61695782366553,952.12350396046941,953.86375850175716,955.85179372085247,958.10139224045133,960.62607314898037,963.43911418131495,966.55357076602024,969.98229254009038,973.73793778985203,977.83298617382718,982.27975000755498,970.28286341896285,977.06407869722204,984.8972544594169,993.84573235339451,1003.9715502612459,1015.3355598533896,1027.9975264276802,1042.0162146442151,1057.4494628609282,1074.3542481345046,1092.7867434881055,1112.8023687062343]
[1000224450,4,1,1,1,3,3.0306803023566031,3,3,3,3.0230632761679481,2.1694249845207684E-2,0,0,0,1.6308198974734206E-2,0.12304063405958204,0,0,0,0.3677509745712596,16.841887531525625,21.527333670816041,26.980451254940544,33.253361770335118,40.397470487172143,48.463526635693704,57.501674848808335,67.561499606835071,78.692063992957557,90.941943763863506,104.3592575189911,118.99169358806412,0,0,0,0,0,0,0,0,0,0,0,0,0,0,0,0,0,0,0,0,0,0,0,0,0,0,0,0,0,0,0,0,0,0,0,0,8.1678869965733512,10.440209176769525,13.084832478212583,16.127034495857711,19.59174547799272,23.503577510228823,27.886849463851373,32.765608550390063,38.1636491170282,44.104529169996113,50.611585005888166,57.707944251433261,0,0,0,0,0,0,0,0,0,0,0,0,952.14326874106985,954.13054011324289,956.4434093986564,959.10398325157337,962.13406455239317,965.55517793066485,969.38859158379876,973.65533612773072,978.37622103454567,983.57184908309898,989.26262915491247,995.46878763817381,977.15304326916873,986.09808296082838,996.50869313180954,1008.4843795177662,1022.123280517558,1037.5222820765873,1054.7771158964586,1073.9824442849558,1095.2319341445314,1118.6183220169587,1144.2334716797918,1172.1684254776712]
[1000224464,4,1,1,1,3,3.0306803023566031,3,3,3,3.0230632761679481,2.1694249845207684E-2,0,0,0,1.6308198974734206E-2,0.12304063405958204,0,0,0,0.3677509745712596,13.243260944614924,16.795287547117443,20.898335090615813,25.585582173483054,30.889524476582746,36.842036338549633,43.474423051897745,50.817465771241231,58.901460450564159,67.756251890949088,77.411263737631444,87.895525086545064,0,0,0,0,0,0,0,0,0,0,0,0,0,0,0,0,0,0,0,0,0,0,0,0,0,0,0,0,0,0,0,0,0,0,0,0,6.4226446506824182,8.1452871896351073,10.135160867043924,12.408356459059,14.980633544211758,17.867450365859522,21.08398919446757,24.64517810695375,28.565709870273789,32.860058453703466,37.542493576646898,42.627093612134182,0,0,0,0,0,0,0,0,0,0,0,0,950.61695782366553,952.12350396046941,953.86375850175716,955.85179372085247,958.10139224045133,960.62607314898037,963.43911418131495,966.55357076602024,969.98229254009038,973.73793778985203,977.83298617382718,982.27975000755498,970.28286341896285,977.06407869722204,984.8972544594169,993.84573235339451,1003.9715502612459,1015.3355598533896,1027.9975264276802,1042.0162146442151,1057.4494628609282,1074.3542481345046,1092.7867434881055,1112.8023687062343]
[1000224475,3,1,1,1,2,2.2730102267674521,3,3,3,2.0153755174452987,-0.51405939850600502,0,0,0,-0.69623464853672468,7.7584975544686519E-2,0,0,0,0.18638531638083977,0.70866084679093511,1.3584416274291116,2.3107542682216811,3.6202775624994947,5.3408751680778996,7.525723595327463,10.227406328118811,13.497985888242932,17.389060738339044,21.951811320199386,27.237038045398197,33.295193161504685,0,0,0,0,0,0,0,0,0,0,0,0,0,0,0,0,0,0,0,0,0,0,0,0,0,0,0,0,0,0,0,0,0,0,0,0,0.27623976279950074,0.52952776301565763,0.90074428950327656,1.4112034263806987,2.0819015136119625,2.9335670374366969,3.9866973192144362,5.26158660651849,6.7783482541995204,8.5569326703613235,10.617142125309835,12.978643173172221,0,0,0,0,0,0,0,0,0,0,0,0,945.47666756166325,945.91373053999064,946.5542859572729,947.43511248868253,948.59244052362158,950.06203825452053,951.87927498554507,954.07916960539001,956.69642886197744,959.76547832926769,963.32048796095035,967.39539352466124,946.4615681712537,947.80169993043535,949.76578451499779,952.4665934775627,956.01521720531139,960.52132888728465,966.09337863287828,972.83874210015142,980.86383785451596,990.27422231982837,1001.1746681316583,1013.6692298593382]
[1000267271,4,1,1,1,3,3.0306803023566031,3,3,3,3.0230632761679481,2.1694249845207684E-2,0,0,0,1.6308198974734206E-2,0.12304063405958204,0,0,0,0.3677509745712596,16.795287547117443,20.898335090615813,25.585582173483054,30.889524476582746,36.842036338549633,43.474423051897745,50.817465771241231,58.901460450564159,67.756251890949088,77.411263737631444,87.895525086545064,99.237694226602784,0,0,0,0,0,0,0,0,0,0,0,0,0,0,0,0,0,0,0,0,0,0,0,0,0,0,0,0,0,0,0,0,0,0,0,0,8.1452871896351073,10.135160867043924,12.408356459059,14.980633544211758,17.867450365859522,21.08398919446757,24.64517810695375,28.565709870273789,32.860058453703466,37.542493576646898,42.627093612134182,48.12775710122358,0,0,0,0,0,0,0,0,0,0,0,0,952.12350396046941,953.86375850175716,955.85179372085247,958.10139224045133,960.62607314898037,963.43911418131495,966.55357076602024,969.98229254009038,973.73793778985203,977.83298617382718,982.27975000755498,987.09038433357352,977.06407869722204,984.8972544594169,993.84573235339451,1003.9715502612459,1015.3355598533896,1027.9975264276802,1042.0162146442151,1057.4494628609282,1074.3542481345046,1092.7867434881055,1112.8023687062343,1134.4558356614]
[1000276491,4,1,1,1,3,3.0306803023566031,3,3,3,3.0230632761679481,2.1694249845207684E-2,0,0,0,1.6308198974734206E-2,0.12304063405958204,0,0,0,0.3677509745712596,21.527333670816041,26.980451254940544,33.253361770335118,40.397470487172143,48.463526635693704,57.501674848808335,67.561499606835071,78.692063992957557,90.941943763863506,104.3592575189911,118.99169358806412,134.88653413328203,0,0,0,0,0,0,0,0,0,0,0,0,0,0,0,0,0,0,0,0,0,0,0,0,0,0,0,0,0,0,0,0,0,0,0,0,10.440209176769525,13.084832478212583,16.127034495857711,19.59174547799272,23.503577510228823,27.886849463851373,32.765608550390063,38.1636491170282,44.104529169996113,50.611585005888166,57.707944251433261,65.416537552443856,0,0,0,0,0,0,0,0,0,0,0,0,954.13054011324289,956.4434093986564,959.10398325157337,962.13406455239317,965.55517793066485,969.38859158379876,973.65533612773072,978.37622103454567,983.57184908309898,989.26262915491247,995.46878763817381,1002.2103786503694,986.09808296082838,996.50869313180954,1008.4843795177662,1022.123280517558,1037.5222820765873,1054.7771158964586,1073.9824442849558,1095.2319341445314,1118.6183220169587,1144.2334716797918,1172.1684254776712,1202.5134503360955]
[1000276518,4,1,1,1,3,3.0306803023566031,3,3,3,3.0230632761679481,2.1694249845207684E-2,0,0,0,1.6308198974734206E-2,0.12304063405958204,0,0,0,0.3677509745712596,10.208320333996825,13.243260944614924,16.795287547117443,20.898335090615813,25.585582173483054,30.889524476582746,36.842036338549633,43.474423051897745,50.817465771241231,58.901460450564159,67.756251890949088,77.411263737631444,0,0,0,0,0,0,0,0,0,0,0,0,0,0,0,0,0,0,0,0,0,0,0,0,0,0,0,0,0,0,0,0,0,0,0,0,4.9507756631690896,6.4226446506824182,8.1452871896351073,10.135160867043924,12.408356459059,14.980633544211758,17.867450365859522,21.08398919446757,24.64517810695375,28.565709870273789,32.860058453703466,37.542493576646898,0,0,0,0,0,0,0,0,0,0,0,0,949.32972702163988,950.61695782366553,952.12350396046941,953.86375850175716,955.85179372085247,958.10139224045133,960.62607314898037,963.43911418131495,966.55357076602024,969.98229254009038,973.73793778985203,977.83298617382718,964.48882301880587,970.28286341896285,977.06407869722204,984.8972544594169,993.84573235339451,1003.9715502612459,1015.3355598533896,1027.9975264276802,1042.0162146442151,1057.4494628609282,1074.3542481345046,1092.7867434881055]
[1000276530,4,1,1,1,3,3.0306803023566031,3,3,3,3.0230632761679481,2.1694249845207684E-2,0,0,0,1.6308198974734206E-2,0.12304063405958204,0,0,0,0.3677509745712596,10.208320333996825,13.243260944614924,16.795287547117443,20.898335090615813,25.585582173483054,30.889524476582746,36.842036338549633,43.474423051897745,50.817465771241231,58.901460450564159,67.756251890949088,77.411263737631444,0,0,0,0,0,0,0,0,0,0,0,0,0,0,0,0,0,0,0,0,0,0,0,0,0,0,0,0,0,0,0,0,0,0,0,0,4.9507756631690896,6.4226446506824182,8.1452871896351073,10.135160867043924,12.408356459059,14.980633544211758,17.867450365859522,21.08398919446757,24.64517810695375,28.565709870273789,32.860058453703466,37.542493576646898,0,0,0,0,0,0,0,0,0,0,0,0,949.32972702163988,950.61695782366553,952.12350396046941,953.86375850175716,955.85179372085247,958.10139224045133,960.62607314898037,963.43911418131495,966.55357076602024,969.98229254009038,973.73793778985203,977.83298617382718,964.48882301880587,970.28286341896285,977.06407869722204,984.8972544594169,993.84573235339451,1003.9715502612459,1015.3355598533896,1027.9975264276802,1042.0162146442151,1057.4494628609282,1074.3542481345046,1092.7867434881055]
[1000276542,4,1,1,1,3,3.0306803023566031,3,3,3,3.0230632761679481,2.1694249845207684E-2,0,0,0,1.6308198974734206E-2,0.12304063405958204,0,0,0,0.3677509745712596,10.208320333996825,13.243260944614924,16.795287547117443,20.898335090615813,25.585582173483054,30.889524476582746,36.842036338549633,43.474423051897745,50.817465771241231,58.901460450564159,67.756251890949088,77.411263737631444,0,0,0,0,0,0,0,0,0,0,0,0,0,0,0,0,0,0,0,0,0,0,0,0,0,0,0,0,0,0,0,0,0,0,0,0,4.9507756631690896,6.4226446506824182,8.1452871896351073,10.135160867043924,12.408356459059,14.980633544211758,17.867450365859522,21.08398919446757,24.64517810695375,28.565709870273789,32.860058453703466,37.542493576646898,0,0,0,0,0,0,0,0,0,0,0,0,949.32972702163988,950.61695782366553,952.12350396046941,953.86375850175716,955.85179372085247,958.10139224045133,960.62607314898037,963.43911418131495,966.55357076602024,969.98229254009038,973.73793778985203,977.83298617382718,964.48882301880587,970.28286341896285,977.06407869722204,984.8972544594169,993.84573235339451,1003.9715502612459,1015.3355598533896,1027.9975264276802,1042.0162146442151,1057.4494628609282,1074.3542481345046,1092.7867434881055]
[1000299647,4,1,1,1,3,3.0306803023566031,3,3,3,3.0230632761679481,2.1694249845207684E-2,0,0,0,1.6308198974734206E-2,0.12304063405958204,0,0,0,0.3677509745712596,204.9926837289363,224.19149595049328,244.49238997319185,265.92121744920513,288.50361295780101,312.26500232903965,337.23061041350149,363.4254683496606,390.8744203744061,419.60213021697916,449.63308711207839,480.99161146397978,0,0,0,0,0,0,0,0,0,0,0,0,0,0,0,0,0,0,0,0,0,0,0,0,0,0,0,0,0,0,0,0,0,0,0,0,99.416236611727371,108.72717212299804,118.57258927095313,128.96502544923271,139.91691277664015,151.44058213392361,163.54826693189656,176.25210663592875,189.56415006887616,203.49635851197752,218.06060862105755,233.26869517348106,0,0,0,0,0,0,0,0,0,0,0,0,1031.9449951549625,1040.0879230157029,1048.6982846166022,1057.7870446015299,1067.3650755456906,1077.443161486013,1088.0320012165785,1099.142211370985,1110.7843293109406,1122.9688158381693,1135.7060577447921,1149.0063702156904,1336.3539154956261,1373.0065910891944,1411.7632638607472,1452.6732874999677,1495.7856012801317,1541.1487459489761,1588.8108785619766,1638.8197863565745,1691.2228997542229,1746.067304567126,1803.399753477928,1863.2666768531512]
[1000314154,4,1,1,1,3,3.0306803023566031,3,3,3,3.0230632761679481,2.1694249845207684E-2,0,0,0,1.6308198974734206E-2,0.12304063405958204,0,0,0,0.3677509745712596,3505.422653956618,3642.5582828823594,3783.1095387787072,3927.1142494028513,4074.6101520941074,4225.6348951756599,4380.2260393166598,4538.4210588563201,4700.2573430914908,4865.7721975292134,5035.0028451055932,5207.986427372306,0,0,0,0,0,0,0,0,0,0,0,0,0,0,0,0,0,0,0,0,0,0,0,0,0,0,0,0,0,0,0,0,0,0,0,0,1700.0408095084983,1766.5481008185009,1834.7118843159817,1904.550505500843,1976.0822660226177,2049.325424360281,2124.29819648283,2201.018756491439,2279.5052372439,2359.7757309620788,2441.8482898230386,2525.7409265344641,0,0,0,0,0,0,0,0,0,0,0,0,2431.7796748656929,2489.9439779794934,2549.5569750906038,2610.6347103529215,2673.1931895707721,2737.2483807934404,2802.8162148928877,2869.9125861253474,2938.5533526774361,3008.7543371974057,3080.5313273121146,3153.9000761302673,7637.2431383308094,7899.0503616803544,8167.378398185293,8442.2994652566158,8723.8856076874981,9012.2087003293818,9307.340450692378,9609.3524014731065,9918.3159330128274,10234.302265688697,10557.382462240746,10887.627430037039]
[1000314337,4,1,1,1,3,3.0306803023566031,3,3,3,3.0230632761679481,2.1694249845207684E-2,0,0,0,1.6308198974734206E-2,0.12304063405958204,0,0,0,0.3677509745712596,4298.9898633693501,4485.6081537792452,4677.4666099586311,4874.6343567420199,5077.1804309147556,5285.173782563118,5498.6832763852635,5717.7776929646679,5942.5257300076246,6172.9960035462937,6409.2570491086917,6651.3773228569253,0,0,0,0,0,0,0,0,0,0,0,0,0,0,0,0,0,0,0,0,0,0,0,0,0,0,0,0,0,0,0,0,0,0,0,0,2084.9007177899371,2175.4058410849657,2268.4523114688163,2364.0736527276977,2462.3033459462113,2563.1748301621183,2666.7215030021125,2772.976721299407,2881.9738016938909,2993.7460212155747,3108.3266178520098,3225.7487911002977,0,0,0,0,0,0,0,0,0,0,0,0,2768.360941681839,2847.5126755894303,2928.8869580248602,3012.5131073925354,3098.4204047519452,3186.6380943902932,3277.1953843785141,3370.121447111389,3465.4454198324156,3563.1964051440632,3663.4034715040098,3766.0956537079101,9152.2515228411266,9508.5266704536407,9874.8058794523076,10251.221116862253,10637.904181612912,11034.986707115529,11442.60016376589,11860.875861375464,12289.944951533931,12729.938429905931,13180.987138464712,13643.221767665134]
[1000314363,4,1,1,1,3,3.0306803023566031,3,3,3,3.0230632761679481,2.1694249845207684E-2,0,0,0,1.6308198974734206E-2,0.12304063405958204,0,0,0,0.3677509745712596,3941.1968318852901,4117.5425244542548,4298.9898633693501,4485.6081537792452,4677.4666099586311,4874.6343567420199,5077.1804309147556,5285.173782563118,5498.6832763852635,5717.7776929646679,5942.5257300076246,6172.9960035462937,0,0,0,0,0,0,0,0,0,0,0,0,0,0,0,0,0,0,0,0,0,0,0,0,0,0,0,0,0,0,0,0,0,0,0,0,1911.3801997450998,1996.9033744213107,2084.9007177899371,2175.4058410849657,2268.4523114688163,2364.0736527276977,2462.3033459462113,2563.1748301621183,2666.7215030021125,2772.976721299407,2881.9738016938909,2993.7460212155747,0,0,0,0,0,0,0,0,0,0,0,0,2616.6076555499512,2691.4023999627871,2768.360941681839,2847.5126755894303,2928.8869580248602,3012.5131073925354,3098.4204047519452,3186.6380943902932,3277.1953843785141,3370.121447111389,3465.4454198324156,3563.1964051440632,8469.1846871803409,8805.848298838353,9152.2515228411266,9508.5266704536407,9874.8058794523076,10251.221116862253,10637.904181612912,11034.986707115529,11442.60016376589,11860.875861375464,12289.944951533931,12729.938429905931]
[1000318066,4,1,1,1,3,3.0306803023566031,3,3,3,3.0230632761679481,2.1694249845207684E-2,0,0,0,1.6308198974734206E-2,0.12304063405958204,0,0,0,0.3677509745712596,2526.7298403724526,2637.9136000084891,2752.2069267778838,2869.6484276114243,2990.2766061540497,3114.1298645542752,3241.246505197154,3371.6647323833295,3505.422653956618,3642.5582828823594,3783.1095387787072,3927.1142494028513,0,0,0,0,0,0,0,0,0,0,0,0,0,0,0,0,0,0,0,0,0,0,0,0,0,0,0,0,0,0,0,0,0,0,0,0,1225.3996927838714,1279.3209877017612,1334.7503435722006,1391.706483774464,1450.2080815968186,1510.2737611043465,1571.9220979793879,1635.1716203358421,1700.0408095084983,1766.5481008185009,1834.7118843159817,1904.550505500843,0,0,0,0,0,0,0,0,0,0,0,0,2016.679777701605,2063.8369311522533,2112.3129672792293,2162.1242607128315,2213.287142276004,2265.8178997432956,2319.7327785758716,2375.047982633665,2431.7796748656929,2489.9439779794934,2549.5569750906038,2610.6347103529215,5768.8093108579287,5981.0715188625036,6199.2702376293137,6423.4791720987196,6653.7718300268725,6890.2215254019175,7132.9013817524137,7381.8843353528364,7637.2431383308094,7899.0503616803544,8167.378398185293,8442.2994652566158]
[1000318448,4,1,1,1,3,3.0306803023566031,3,3,3,3.0230632761679481,2.1694249845207684E-2,0,0,0,1.6308198974734206E-2,0.12304063405958204,0,0,0,0.3677509745712596,3938.7916791060711,4141.5084693333101,4351.0474722743184,4567.5207866901201,4791.0404856147779,5021.7186167761802,5259.6672030033724,5504.9982426210709,5757.8237098319541,6018.255555087273,6286.4057054463392,6562.3860649253538,0,0,0,0,0,0,0,0,0,0,0,0,0,0,0,0,0,0,0,0,0,0,0,0,0,0,0,0,0,0,0,0,0,0,0,0,1910.2137618340651,2008.5262479960104,2110.1473337676107,2215.1313841961787,2323.5327518521071,2435.4057770329359,2550.8047879609021,2669.7841009742633,2792.3980207127061,2918.7008402970755,3048.7468415037233,3182.5902949336778,0,0,0,0,0,0,0,0,0,0,0,0,2615.5875411100978,2701.5672454757564,2790.4405031163651,2882.2548592713783,2977.0578482684919,3074.8969937021138,3175.819808606132,3279.873795621239,3387.1064471570776,3497.5652455494287,3611.2976632126865,3728.3511627878061,8464.5929820502333,8851.6019628050781,9251.6353091582932,9664.9070301576776,10091.631085735376,10532.021387511231,10986.291799570407,11454.656139216573,11937.328177701736,12434.521640933777,12946.450210162749,13473.327522646838]
[1000318505,4,1,1,1,3,3.0306803023566031,3,3,3,3.0230632761679481,2.1694249845207684E-2,0,0,0,1.6308198974734206E-2,0.12304063405958204,0,0,0,0.3677509745712596,1922.7527109502378,2016.0958383537586,2112.3146142565274,2211.448306410618,2313.5360671943886,2418.6169358045431,2526.7298403724526,2637.9136000084891,2752.2069267778838,2869.6484276114243,2990.2766061540497,3114.1298645542752,0,0,0,0,0,0,0,0,0,0,0,0,0,0,0,0,0,0,0,0,0,0,0,0,0,0,0,0,0,0,0,0,0,0,0,0,932.4861501419839,977.75519229130191,1024.4188508064967,1072.4961695483562,1122.00613642435,1172.9676844517262,1225.3996927838714,1279.3209877017612,1334.7503435722006,1391.706483774464,1450.2080815968186,1510.2737611043465,0,0,0,0,0,0,0,0,0,0,0,0,1760.5106909025819,1800.1009709663313,1840.9109201435649,1882.957193343384,1926.2563965406198,1970.8250877055691,2016.679777701605,2063.8369311522533,2112.3129672792293,2162.1242607128315,2213.287142276004,2265.8178997432956,4615.7495519948034,4793.9520016113911,4977.6443852065895,5166.9016693023586,5361.7986001593581,5562.4097079618386,5768.8093108579287,5981.0715188625036,6199.2702376293137,6423.4791720987196,6653.7718300268725,6890.2215254019175]
[1000318801,4,1,1,1,3,3.0306803023566031,3,3,3,3.0230632761679481,2.1694249845207684E-2,0,0,0,1.6308198974734206E-2,0.12304063405958204,0,0,0,0.3677509745712596,1182.5411797879206,1240.0478325433839,1299.2958966696308,1360.307247754426,1423.1036615943347,1487.706816302207,1554.1382943363806,1622.4195844557503,1692.5720836045273,1764.6170987302821,1838.5758485386214,1914.4694651876243,0,0,0,0,0,0,0,0,0,0,0,0,0,0,0,0,0,0,0,0,0,0,0,0,0,0,0,0,0,0,0,0,0,0,0,0,573.50238844798412,601.3916520699255,630.12545590533682,659.71440905777058,690.16907223458645,721.49995876902767,753.71753560433149,786.83222424189,820.85440165530952,855.79440117211402,891.6625133247212,928.46898667219887,0,0,0,0,0,0,0,0,0,0,0,0,1446.559544842873,1470.9502477413887,1496.0795477470858,1521.9567231075471,1548.5910097452079,1575.9916021512206,1604.1676542461125,1633.1282802090045,1662.8825552770077,1693.4395165163212,1724.8081635664571,1756.9974593589134,3202.6031130787778,3312.389732354698,3425.500900322053,3541.9783799197435,3661.8637435741293,3785.1983772224548,3912.0234841868246,4042.3800889066447,4176.3090405368448,4313.8510164187173,4455.0465254297997,4599.9359112187367]
[1000318835,4,1,1,1,3,3.0306803023566031,3,3,3,3.0230632761679481,2.1694249845207684E-2,0,0,0,1.6308198974734206E-2,0.12304063405958204,0,0,0,0.3677509745712596,1744.5357400489818,1832.245846648339,1922.7527109502378,2016.0958383537586,2112.3146142565274,2211.448306410618,2313.5360671943886,2418.6169358045431,2526.7298403724526,2637.9136000084891,2752.2069267778838,2869.6484276114243,0,0,0,0,0,0,0,0,0,0,0,0,0,0,0,0,0,0,0,0,0,0,0,0,0,0,0,0,0,0,0,0,0,0,0,0,846.05545307977627,888.59262344265528,932.4861501419839,977.75519229130191,1024.4188508064967,1072.4961695483562,1122.00613642435,1172.9676844517262,1225.3996927838714,1279.3209877017612,1334.7503435722006,1391.706483774464,0,0,0,0,0,0,0,0,0,0,0,0,1684.9222679907132,1722.1233751453774,1760.5106909025819,1800.1009709663313,1840.9109201435649,1882.957193343384,1926.2563965406198,1970.8250877055691,2016.679777701605,2063.8369311522533,2112.3129672792293,2162.1242607128315,4275.5134611194717,4442.961845236372,4615.7495519948034,4793.9520016113911,4977.6443852065895,5166.9016693023586,5361.7986001593581,5562.4097079618386,5768.8093108579287,5981.0715188625036,6199.2702376293137,6423.4791720987196]
[1000318894,4,1,1,1,3,3.0306803023566031,3,3,3,3.0230632761679481,2.1694249845207684E-2,0,0,0,1.6308198974734206E-2,0.12304063405958204,0,0,0,0.3677509745712596,1659.5827633070335,1744.5357400489818,1832.245846648339,1922.7527109502378,2016.0958383537586,2112.3146142565274,2211.448306410618,2313.5360671943886,2418.6169358045431,2526.7298403724526,2637.9136000084891,2752.2069267778838,0,0,0,0,0,0,0,0,0,0,0,0,0,0,0,0,0,0,0,0,0,0,0,0,0,0,0,0,0,0,0,0,0,0,0,0,804.85542055658675,846.05545307977627,888.59262344265528,932.4861501419839,977.75519229130191,1024.4188508064967,1072.4961695483562,1122.00613642435,1172.9676844517262,1225.3996927838714,1279.3209877017612,1334.7503435722006,0,0,0,0,0,0,0,0,0,0,0,0,1648.8905618006756,1684.9222679907132,1722.1233751453774,1760.5106909025819,1800.1009709663313,1840.9109201435649,1882.957193343384,1926.2563965406198,1970.8250877055691,2016.679777701605,2063.8369311522533,2112.3129672792293,4113.3287456642956,4275.5134611194717,4442.961845236372,4615.7495519948034,4793.9520016113911,4977.6443852065895,5166.9016693023586,5361.7986001593581,5562.4097079618386,5768.8093108579287,5981.0715188625036,6199.2702376293137]
[1000318924,4,1,1,1,3,3.0306803023566031,3,3,3,3.0230632761679481,2.1694249845207684E-2,0,0,0,1.6308198974734206E-2,0.12304063405958204,0,0,0,0.3677509745712596,2572.1773649121155,2705.7427374175149,2843.7816600850119,2986.3643285911803,3133.5608325386338,3285.4411573805737,3442.0751862794764,3603.5327019031511,3769.8833881612809,3941.1968318852901,4117.5425244542548,4298.9898633693501,0,0,0,0,0,0,0,0,0,0,0,0,0,0,0,0,0,0,0,0,0,0,0,0,0,0,0,0,0,0,0,0,0,0,0,0,1247.4405860043678,1312.2163937775304,1379.1617595725666,1448.3107265068427,1519.6972862545526,1593.355379980075,1669.3188992393884,1747.6216868511156,1828.2975377387004,1911.3801997450998,1996.9033744213107,2084.9007177899371,0,0,0,0,0,0,0,0,0,0,0,0,2035.9557573562306,2092.605782391799,2151.1532058617599,2211.6278003543271,2274.0592934678161,2338.4773686269182,2404.9116658710345,2473.391782616055,2543.9472743908873,2616.6076555499512,2691.4023999627871,2768.360941681839,5855.5737082727137,6110.5649135868443,6374.096625519338,6646.3028554523498,6927.3174122610026,7217.2739059875666,7516.3057513898993,7824.5461713703216,8142.1282002908683,8469.1846871803409,8805.848298838353,9152.2515228411266]
[1000318955,4,1,1,1,3,3.0306803023566031,3,3,3,3.0230632761679481,2.1694249845207684E-2,0,0,0,1.6308198974734206E-2,0.12304063405958204,0,0,0,0.3677509745712596,3553.376210489645,3742.7849766696972,3938.7916791060711,4141.5084693333101,4351.0474722743184,4567.5207866901201,4791.0404856147779,5021.7186167761802,5259.6672030033724,5504.9982426210709,5757.8237098319541,6018.255555087273,0,0,0,0,0,0,0,0,0,0,0,0,0,0,0,0,0,0,0,0,0,0,0,0,0,0,0,0,0,0,0,0,0,0,0,0,1723.297064492531,1815.1554975466147,1910.2137618340651,2008.5262479960104,2110.1473337676107,2215.1313841961787,2323.5327518521071,2435.4057770329359,2550.8047879609021,2669.7841009742633,2792.3980207127061,2918.7008402970755,0,0,0,0,0,0,0,0,0,0,0,0,2452.1185555739448,2532.453833683714,2615.5875411100978,2701.5672454757564,2790.4405031163651,2882.2548592713783,2977.0578482684919,3074.8969937021138,3175.819808606132,3279.873795621239,3387.1064471570776,3497.5652455494287,7728.7918305561207,8090.3943079000264,8464.5929820502333,8851.6019628050781,9251.6353091582932,9664.9070301576776,10091.631085735376,10532.021387511231,10986.291799570407,11454.656139216573,11937.328177701736,12434.521640933777]
[1000318984,4,1,1,1,3,3.0306803023566031,3,3,3,3.0230632761679481,2.1694249845207684E-2,0,0,0,1.6308198974734206E-2,0.12304063405958204,0,0,0,0.3677509745712596,1659.5827633070335,1744.5357400489818,1832.245846648339,1922.7527109502378,2016.0958383537586,2112.3146142565274,2211.448306410618,2313.5360671943886,2418.6169358045431,2526.7298403724526,2637.9136000084891,2752.2069267778838,0,0,0,0,0,0,0,0,0,0,0,0,0,0,0,0,0,0,0,0,0,0,0,0,0,0,0,0,0,0,0,0,0,0,0,0,804.85542055658675,846.05545307977627,888.59262344265528,932.4861501419839,977.75519229130191,1024.4188508064967,1072.4961695483562,1122.00613642435,1172.9676844517262,1225.3996927838714,1279.3209877017612,1334.7503435722006,0,0,0,0,0,0,0,0,0,0,0,0,1648.8905618006756,1684.9222679907132,1722.1233751453774,1760.5106909025819,1800.1009709663313,1840.9109201435649,1882.957193343384,1926.2563965406198,1970.8250877055691,2016.679777701605,2063.8369311522533,2112.3129672792293,4113.3287456642956,4275.5134611194717,4442.961845236372,4615.7495519948034,4793.9520016113911,4977.6443852065895,5166.9016693023586,5361.7986001593581,5562.4097079618386,5768.8093108579287,5981.0715188625036,6199.2702376293137]
[1000323012,4,1,1,1,3,3.0306803023566031,3,3,3,3.0230632761679481,2.1694249845207684E-2,0,0,0,1.6308198974734206E-2,0.12304063405958204,0,0,0,0.3677509745712596,1182.5411797879206,1240.0478325433839,1299.2958966696308,1360.307247754426,1423.1036615943347,1487.706816302207,1554.1382943363806,1622.4195844557503,1692.5720836045273,1764.6170987302821,1838.5758485386214,1914.4694651876243,0,0,0,0,0,0,0,0,0,0,0,0,0,0,0,0,0,0,0,0,0,0,0,0,0,0,0,0,0,0,0,0,0,0,0,0,573.50238844798412,601.3916520699255,630.12545590533682,659.71440905777058,690.16907223458645,721.49995876902767,753.71753560433149,786.83222424189,820.85440165530952,855.79440117211402,891.6625133247212,928.46898667219887,0,0,0,0,0,0,0,0,0,0,0,0,1446.559544842873,1470.9502477413887,1496.0795477470858,1521.9567231075471,1548.5910097452079,1575.9916021512206,1604.1676542461125,1633.1282802090045,1662.8825552770077,1693.4395165163212,1724.8081635664571,1756.9974593589134,3202.6031130787778,3312.389732354698,3425.500900322053,3541.9783799197435,3661.8637435741293,3785.1983772224548,3912.0234841868246,4042.3800889066447,4176.3090405368448,4313.8510164187173,4455.0465254297997,4599.9359112187367]
[1000323042,4,1,1,1,3,3.0306803023566031,3,3,3,3.0230632761679481,2.1694249845207684E-2,0,0,0,1.6308198974734206E-2,0.12304063405958204,0,0,0,0.3677509745712596,1126.7539608341217,1182.5411797879206,1240.0478325433839,1299.2958966696308,1360.307247754426,1423.1036615943347,1487.706816302207,1554.1382943363806,1622.4195844557503,1692.5720836045273,1764.6170987302821,1838.5758485386214,0,0,0,0,0,0,0,0,0,0,0,0,0,0,0,0,0,0,0,0,0,0,0,0,0,0,0,0,0,0,0,0,0,0,0,0,546.44700647759703,573.50238844798412,601.3916520699255,630.12545590533682,659.71440905777058,690.16907223458645,721.49995876902767,753.71753560433149,786.83222424189,820.85440165530952,855.79440117211402,891.6625133247212,0,0,0,0,0,0,0,0,0,0,0,0,1422.8981175498843,1446.559544842873,1470.9502477413887,1496.0795477470858,1521.9567231075471,1548.5910097452079,1575.9916021512206,1604.1676542461125,1633.1282802090045,1662.8825552770077,1693.4395165163212,1724.8081635664571,3096.0990848616029,3202.6031130787778,3312.389732354698,3425.500900322053,3541.9783799197435,3661.8637435741293,3785.1983772224548,3912.0234841868246,4042.3800889066447,4176.3090405368448,4313.8510164187173,4455.0465254297997]
[1000323073,4,1,1,1,3,3.0306803023566031,3,3,3,3.0230632761679481,2.1694249845207684E-2,0,0,0,1.6308198974734206E-2,0.12304063405958204,0,0,0,0.3677509745712596,1072.6640938538956,1126.7539608341217,1182.5411797879206,1240.0478325433839,1299.2958966696308,1360.307247754426,1423.1036615943347,1487.706816302207,1554.1382943363806,1622.4195844557503,1692.5720836045273,1764.6170987302821,0,0,0,0,0,0,0,0,0,0,0,0,0,0,0,0,0,0,0,0,0,0,0,0,0,0,0,0,0,0,0,0,0,0,0,0,520.21479703389991,546.44700647759703,573.50238844798412,601.3916520699255,630.12545590533682,659.71440905777058,690.16907223458645,721.49995876902767,753.71753560433149,786.83222424189,820.85440165530952,855.79440117211402,0,0,0,0,0,0,0,0,0,0,0,0,1399.9566001406731,1422.8981175498843,1446.559544842873,1470.9502477413887,1496.0795477470858,1521.9567231075471,1548.5910097452079,1575.9916021512206,1604.1676542461125,1633.1282802090045,1662.8825552770077,1693.4395165163212,2992.8354910284688,3096.0990848616029,3202.6031130787778,3312.389732354698,3425.500900322053,3541.9783799197435,3661.8637435741293,3785.1983772224548,3912.0234841868246,4042.3800889066447,4176.3090405368448,4313.8510164187173]
[1000323106,4,1,1,1,3,3.0306803023566031,3,3,3,3.0230632761679481,2.1694249845207684E-2,0,0,0,1.6308198974734206E-2,0.12304063405958204,0,0,0,0.3677509745712596,2443.0152388243255,2572.1773649121155,2705.7427374175149,2843.7816600850119,2986.3643285911803,3133.5608325386338,3285.4411573805737,3442.0751862794764,3603.5327019031511,3769.8833881612809,3941.1968318852901,4117.5425244542548,0,0,0,0,0,0,0,0,0,0,0,0,0,0,0,0,0,0,0,0,0,0,0,0,0,0,0,0,0,0,0,0,0,0,0,0,1184.8002407255235,1247.4405860043678,1312.2163937775304,1379.1617595725666,1448.3107265068427,1519.6972862545526,1593.355379980075,1669.3188992393884,1747.6216868511156,1828.2975377387004,1911.3801997450998,1996.9033744213107,0,0,0,0,0,0,0,0,0,0,0,0,1981.173312331231,2035.9557573562306,2092.605782391799,2151.1532058617599,2211.6278003543271,2274.0592934678161,2338.4773686269182,2404.9116658710345,2473.391782616055,2543.9472743908873,2616.6076555499512,2691.4023999627871,5608.98879188108,5855.5737082727137,6110.5649135868443,6374.096625519338,6646.3028554523498,6927.3174122610026,7217.2739059875666,7516.3057513898993,7824.5461713703216,8142.1282002908683,8469.1846871803409,8805.848298838353]
[1000323136,4,1,1,1,3,3.0306803023566031,3,3,3,3.0230632761679481,2.1694249845207684E-2,0,0,0,1.6308198974734206E-2,0.12304063405958204,0,0,0,0.3677509745712596,2572.1773649121155,2705.7427374175149,2843.7816600850119,2986.3643285911803,3133.5608325386338,3285.4411573805737,3442.0751862794764,3603.5327019031511,3769.8833881612809,3941.1968318852901,4117.5425244542548,4298.9898633693501,0,0,0,0,0,0,0,0,0,0,0,0,0,0,0,0,0,0,0,0,0,0,0,0,0,0,0,0,0,0,0,0,0,0,0,0,1247.4405860043678,1312.2163937775304,1379.1617595725666,1448.3107265068427,1519.6972862545526,1593.355379980075,1669.3188992393884,1747.6216868511156,1828.2975377387004,1911.3801997450998,1996.9033744213107,2084.9007177899371,0,0,0,0,0,0,0,0,0,0,0,0,2035.9557573562306,2092.605782391799,2151.1532058617599,2211.6278003543271,2274.0592934678161,2338.4773686269182,2404.9116658710345,2473.391782616055,2543.9472743908873,2616.6076555499512,2691.4023999627871,2768.360941681839,5855.5737082727137,6110.5649135868443,6374.096625519338,6646.3028554523498,6927.3174122610026,7217.2739059875666,7516.3057513898993,7824.5461713703216,8142.1282002908683,8469.1846871803409,8805.848298838353,9152.2515228411266]
[1000323169,4,1,1,1,3,3.0306803023566031,3,3,3,3.0230632761679481,2.1694249845207684E-2,0,0,0,1.6308198974734206E-2,0.12304063405958204,0,0,0,0.3677509745712596,1126.7539608341217,1182.5411797879206,1240.0478325433839,1299.2958966696308,1360.307247754426,1423.1036615943347,1487.706816302207,1554.1382943363806,1622.4195844557503,1692.5720836045273,1764.6170987302821,1838.5758485386214,0,0,0,0,0,0,0,0,0,0,0,0,0,0,0,0,0,0,0,0,0,0,0,0,0,0,0,0,0,0,0,0,0,0,0,0,546.44700647759703,573.50238844798412,601.3916520699255,630.12545590533682,659.71440905777058,690.16907223458645,721.49995876902767,753.71753560433149,786.83222424189,820.85440165530952,855.79440117211402,891.6625133247212,0,0,0,0,0,0,0,0,0,0,0,0,1422.8981175498843,1446.559544842873,1470.9502477413887,1496.0795477470858,1521.9567231075471,1548.5910097452079,1575.9916021512206,1604.1676542461125,1633.1282802090045,1662.8825552770077,1693.4395165163212,1724.8081635664571,3096.0990848616029,3202.6031130787778,3312.389732354698,3425.500900322053,3541.9783799197435,3661.8637435741293,3785.1983772224548,3912.0234841868246,4042.3800889066447,4176.3090405368448,4313.8510164187173,4455.0465254297997]
[1000323229,4,1,1,1,3,3.0306803023566031,3,3,3,3.0230632761679481,2.1694249845207684E-2,0,0,0,1.6308198974734206E-2,0.12304063405958204,0,0,0,0.3677509745712596,1182.5411797879206,1240.0478325433839,1299.2958966696308,1360.307247754426,1423.1036615943347,1487.706816302207,1554.1382943363806,1622.4195844557503,1692.5720836045273,1764.6170987302821,1838.5758485386214,1914.4694651876243,0,0,0,0,0,0,0,0,0,0,0,0,0,0,0,0,0,0,0,0,0,0,0,0,0,0,0,0,0,0,0,0,0,0,0,0,573.50238844798412,601.3916520699255,630.12545590533682,659.71440905777058,690.16907223458645,721.49995876902767,753.71753560433149,786.83222424189,820.85440165530952,855.79440117211402,891.6625133247212,928.46898667219887,0,0,0,0,0,0,0,0,0,0,0,0,1446.559544842873,1470.9502477413887,1496.0795477470858,1521.9567231075471,1548.5910097452079,1575.9916021512206,1604.1676542461125,1633.1282802090045,1662.8825552770077,1693.4395165163212,1724.8081635664571,1756.9974593589134,3202.6031130787778,3312.389732354698,3425.500900322053,3541.9783799197435,3661.8637435741293,3785.1983772224548,3912.0234841868246,4042.3800889066447,4176.3090405368448,4313.8510164187173,4455.0465254297997,4599.9359112187367]
[1000323262,4,1,1,1,3,3.0306803023566031,3,3,3,3.0230632761679481,2.1694249845207684E-2,0,0,0,1.6308198974734206E-2,0.12304063405958204,0,0,0,0.3677509745712596,2318.1859452746135,2443.0152388243255,2572.1773649121155,2705.7427374175149,2843.7816600850119,2986.3643285911803,3133.5608325386338,3285.4411573805737,3442.0751862794764,3603.5327019031511,3769.8833881612809,3941.1968318852901,0,0,0,0,0,0,0,0,0,0,0,0,0,0,0,0,0,0,0,0,0,0,0,0,0,0,0,0,0,0,0,0,0,0,0,0,1124.2612090007476,1184.8002407255235,1247.4405860043678,1312.2163937775304,1379.1617595725666,1448.3107265068427,1519.6972862545526,1593.355379980075,1669.3188992393884,1747.6216868511156,1828.2975377387004,1911.3801997450998,0,0,0,0,0,0,0,0,0,0,0,0,1928.2285821806245,1981.173312331231,2035.9557573562306,2092.605782391799,2151.1532058617599,2211.6278003543271,2274.0592934678161,2338.4773686269182,2404.9116658710345,2473.391782616055,2543.9472743908873,2616.6076555499512,5370.6757364559853,5608.98879188108,5855.5737082727137,6110.5649135868443,6374.096625519338,6646.3028554523498,6927.3174122610026,7217.2739059875666,7516.3057513898993,7824.5461713703216,8142.1282002908683,8469.1846871803409]
[1000323289,4,1,1,1,3,3.0306803023566031,3,3,3,3.0230632761679481,2.1694249845207684E-2,0,0,0,1.6308198974734206E-2,0.12304063405958204,0,0,0,0.3677509745712596,2443.0152388243255,2572.1773649121155,2705.7427374175149,2843.7816600850119,2986.3643285911803,3133.5608325386338,3285.4411573805737,3442.0751862794764,3603.5327019031511,3769.8833881612809,3941.1968318852901,4117.5425244542548,0,0,0,0,0,0,0,0,0,0,0,0,0,0,0,0,0,0,0,0,0,0,0,0,0,0,0,0,0,0,0,0,0,0,0,0,1184.8002407255235,1247.4405860043678,1312.2163937775304,1379.1617595725666,1448.3107265068427,1519.6972862545526,1593.355379980075,1669.3188992393884,1747.6216868511156,1828.2975377387004,1911.3801997450998,1996.9033744213107,0,0,0,0,0,0,0,0,0,0,0,0,1981.173312331231,2035.9557573562306,2092.605782391799,2151.1532058617599,2211.6278003543271,2274.0592934678161,2338.4773686269182,2404.9116658710345,2473.391782616055,2543.9472743908873,2616.6076555499512,2691.4023999627871,5608.98879188108,5855.5737082727137,6110.5649135868443,6374.096625519338,6646.3028554523498,6927.3174122610026,7217.2739059875666,7516.3057513898993,7824.5461713703216,8142.1282002908683,8469.1846871803409,8805.848298838353]
[1000323320,4,1,1,1,3,3.0306803023566031,3,3,3,3.0230632761679481,2.1694249845207684E-2,0,0,0,1.6308198974734206E-2,0.12304063405958204,0,0,0,0.3677509745712596,2443.0152388243255,2572.1773649121155,2705.7427374175149,2843.7816600850119,2986.3643285911803,3133.5608325386338,3285.4411573805737,3442.0751862794764,3603.5327019031511,3769.8833881612809,3941.1968318852901,4117.5425244542548,0,0,0,0,0,0,0,0,0,0,0,0,0,0,0,0,0,0,0,0,0,0,0,0,0,0,0,0,0,0,0,0,0,0,0,0,1184.8002407255235,1247.4405860043678,1312.2163937775304,1379.1617595725666,1448.3107265068427,1519.6972862545526,1593.355379980075,1669.3188992393884,1747.6216868511156,1828.2975377387004,1911.3801997450998,1996.9033744213107,0,0,0,0,0,0,0,0,0,0,0,0,1981.173312331231,2035.9557573562306,2092.605782391799,2151.1532058617599,2211.6278003543271,2274.0592934678161,2338.4773686269182,2404.9116658710345,2473.391782616055,2543.9472743908873,2616.6076555499512,2691.4023999627871,5608.98879188108,5855.5737082727137,6110.5649135868443,6374.096625519338,6646.3028554523498,6927.3174122610026,7217.2739059875666,7516.3057513898993,7824.5461713703216,8142.1282002908683,8469.1846871803409,8805.848298838353]
[1000323378,4,1,1,1,3,3.0306803023566031,3,3,3,3.0230632761679481,2.1694249845207684E-2,0,0,0,1.6308198974734206E-2,0.12304063405958204,0,0,0,0.3677509745712596,2318.1859452746135,2443.0152388243255,2572.1773649121155,2705.7427374175149,2843.7816600850119,2986.3643285911803,3133.5608325386338,3285.4411573805737,3442.0751862794764,3603.5327019031511,3769.8833881612809,3941.1968318852901,0,0,0,0,0,0,0,0,0,0,0,0,0,0,0,0,0,0,0,0,0,0,0,0,0,0,0,0,0,0,0,0,0,0,0,0,1124.2612090007476,1184.8002407255235,1247.4405860043678,1312.2163937775304,1379.1617595725666,1448.3107265068427,1519.6972862545526,1593.355379980075,1669.3188992393884,1747.6216868511156,1828.2975377387004,1911.3801997450998,0,0,0,0,0,0,0,0,0,0,0,0,1928.2285821806245,1981.173312331231,2035.9557573562306,2092.605782391799,2151.1532058617599,2211.6278003543271,2274.0592934678161,2338.4773686269182,2404.9116658710345,2473.391782616055,2543.9472743908873,2616.6076555499512,5370.6757364559853,5608.98879188108,5855.5737082727137,6110.5649135868443,6374.096625519338,6646.3028554523498,6927.3174122610026,7217.2739059875666,7516.3057513898993,7824.5461713703216,8142.1282002908683,8469.1846871803409]
[1000323408,4,1,1,1,3,3.0306803023566031,3,3,3,3.0230632761679481,2.1694249845207684E-2,0,0,0,1.6308198974734206E-2,0.12304063405958204,0,0,0,0.3677509745712596,2318.1859452746135,2443.0152388243255,2572.1773649121155,2705.7427374175149,2843.7816600850119,2986.3643285911803,3133.5608325386338,3285.4411573805737,3442.0751862794764,3603.5327019031511,3769.8833881612809,3941.1968318852901,0,0,0,0,0,0,0,0,0,0,0,0,0,0,0,0,0,0,0,0,0,0,0,0,0,0,0,0,0,0,0,0,0,0,0,0,1124.2612090007476,1184.8002407255235,1247.4405860043678,1312.2163937775304,1379.1617595725666,1448.3107265068427,1519.6972862545526,1593.355379980075,1669.3188992393884,1747.6216868511156,1828.2975377387004,1911.3801997450998,0,0,0,0,0,0,0,0,0,0,0,0,1928.2285821806245,1981.173312331231,2035.9557573562306,2092.605782391799,2151.1532058617599,2211.6278003543271,2274.0592934678161,2338.4773686269182,2404.9116658710345,2473.391782616055,2543.9472743908873,2616.6076555499512,5370.6757364559853,5608.98879188108,5855.5737082727137,6110.5649135868443,6374.096625519338,6646.3028554523498,6927.3174122610026,7217.2739059875666,7516.3057513898993,7824.5461713703216,8142.1282002908683,8469.1846871803409]
[1000323435,4,1,1,1,3,3.0306803023566031,3,3,3,3.0230632761679481,2.1694249845207684E-2,0,0,0,1.6308198974734206E-2,0.12304063405958204,0,0,0,0.3677509745712596,1577.3471635930578,1659.5827633070335,1744.5357400489818,1832.245846648339,1922.7527109502378,2016.0958383537586,2112.3146142565274,2211.448306410618,2313.5360671943886,2418.6169358045431,2526.7298403724526,2637.9136000084891,0,0,0,0,0,0,0,0,0,0,0,0,0,0,0,0,0,0,0,0,0,0,0,0,0,0,0,0,0,0,0,0,0,0,0,0,764.97324676211849,804.85542055658675,846.05545307977627,888.59262344265528,932.4861501419839,977.75519229130191,1024.4188508064967,1072.4961695483562,1122.00613642435,1172.9676844517262,1225.3996927838714,1279.3209877017612,0,0,0,0,0,0,0,0,0,0,0,0,1614.0113959268754,1648.8905618006756,1684.9222679907132,1722.1233751453774,1760.5106909025819,1800.1009709663313,1840.9109201435649,1882.957193343384,1926.2563965406198,1970.8250877055691,2016.679777701605,2063.8369311522533,3956.3318062820517,4113.3287456642956,4275.5134611194717,4442.961845236372,4615.7495519948034,4793.9520016113911,4977.6443852065895,5166.9016693023586,5361.7986001593581,5562.4097079618386,5768.8093108579287,5981.0715188625036]
[1000323556,4,1,1,1,3,3.0306803023566031,3,3,3,3.0230632761679481,2.1694249845207684E-2,0,0,0,1.6308198974734206E-2,0.12304063405958204,0,0,0,0.3677509745712596,1577.3471635930578,1659.5827633070335,1744.5357400489818,1832.245846648339,1922.7527109502378,2016.0958383537586,2112.3146142565274,2211.448306410618,2313.5360671943886,2418.6169358045431,2526.7298403724526,2637.9136000084891,0,0,0,0,0,0,0,0,0,0,0,0,0,0,0,0,0,0,0,0,0,0,0,0,0,0,0,0,0,0,0,0,0,0,0,0,764.97324676211849,804.85542055658675,846.05545307977627,888.59262344265528,932.4861501419839,977.75519229130191,1024.4188508064967,1072.4961695483562,1122.00613642435,1172.9676844517262,1225.3996927838714,1279.3209877017612,0,0,0,0,0,0,0,0,0,0,0,0,1614.0113959268754,1648.8905618006756,1684.9222679907132,1722.1233751453774,1760.5106909025819,1800.1009709663313,1840.9109201435649,1882.957193343384,1926.2563965406198,1970.8250877055691,2016.679777701605,2063.8369311522533,3956.3318062820517,4113.3287456642956,4275.5134611194717,4442.961845236372,4615.7495519948034,4793.9520016113911,4977.6443852065895,5166.9016693023586,5361.7986001593581,5562.4097079618386,5768.8093108579287,5981.0715188625036]
[1000323583,4,1,1,1,3,3.0306803023566031,3,3,3,3.0230632761679481,2.1694249845207684E-2,0,0,0,1.6308198974734206E-2,0.12304063405958204,0,0,0,0.3677509745712596,1577.3471635930578,1659.5827633070335,1744.5357400489818,1832.245846648339,1922.7527109502378,2016.0958383537586,2112.3146142565274,2211.448306410618,2313.5360671943886,2418.6169358045431,2526.7298403724526,2637.9136000084891,0,0,0,0,0,0,0,0,0,0,0,0,0,0,0,0,0,0,0,0,0,0,0,0,0,0,0,0,0,0,0,0,0,0,0,0,764.97324676211849,804.85542055658675,846.05545307977627,888.59262344265528,932.4861501419839,977.75519229130191,1024.4188508064967,1072.4961695483562,1122.00613642435,1172.9676844517262,1225.3996927838714,1279.3209877017612,0,0,0,0,0,0,0,0,0,0,0,0,1614.0113959268754,1648.8905618006756,1684.9222679907132,1722.1233751453774,1760.5106909025819,1800.1009709663313,1840.9109201435649,1882.957193343384,1926.2563965406198,1970.8250877055691,2016.679777701605,2063.8369311522533,3956.3318062820517,4113.3287456642956,4275.5134611194717,4442.961845236372,4615.7495519948034,4793.9520016113911,4977.6443852065895,5166.9016693023586,5361.7986001593581,5562.4097079618386,5768.8093108579287,5981.0715188625036]
[1000323796,4,1,1,1,3,3.0306803023566031,3,3,3,3.0230632761679481,2.1694249845207684E-2,0,0,0,1.6308198974734206E-2,0.12304063405958204,0,0,0,0.3677509745712596,1020.2493903900088,1072.6640938538956,1126.7539608341217,1182.5411797879206,1240.0478325433839,1299.2958966696308,1360.307247754426,1423.1036615943347,1487.706816302207,1554.1382943363806,1622.4195844557503,1692.5720836045273,0,0,0,0,0,0,0,0,0,0,0,0,0,0,0,0,0,0,0,0,0,0,0,0,0,0,0,0,0,0,0,0,0,0,0,0,494.79499927960688,520.21479703389991,546.44700647759703,573.50238844798412,601.3916520699255,630.12545590533682,659.71440905777058,690.16907223458645,721.49995876902767,753.71753560433149,786.83222424189,820.85440165530952,0,0,0,0,0,0,0,0,0,0,0,0,1377.7255816681188,1399.9566001406731,1422.8981175498843,1446.559544842873,1470.9502477413887,1496.0795477470858,1521.9567231075471,1548.5910097452079,1575.9916021512206,1604.1676542461125,1633.1282802090045,1662.8825552770077,2892.7699713377342,2992.8354910284688,3096.0990848616029,3202.6031130787778,3312.389732354698,3425.500900322053,3541.9783799197435,3661.8637435741293,3785.1983772224548,3912.0234841868246,4042.3800889066447,4176.3090405368448]
[1000323882,4,1,1,1,3,3.0306803023566031,3,3,3,3.0230632761679481,2.1694249845207684E-2,0,0,0,1.6308198974734206E-2,0.12304063405958204,0,0,0,0.3677509745712596,1497.7890604561005,1577.3471635930578,1659.5827633070335,1744.5357400489818,1832.245846648339,1922.7527109502378,2016.0958383537586,2112.3146142565274,2211.448306410618,2313.5360671943886,2418.6169358045431,2526.7298403724526,0,0,0,0,0,0,0,0,0,0,0,0,0,0,0,0,0,0,0,0,0,0,0,0,0,0,0,0,0,0,0,0,0,0,0,0,726.38959069221403,764.97324676211849,804.85542055658675,846.05545307977627,888.59262344265528,932.4861501419839,977.75519229130191,1024.4188508064967,1072.4961695483562,1122.00613642435,1172.9676844517262,1225.3996927838714,0,0,0,0,0,0,0,0,0,0,0,0,1580.2678555919069,1614.0113959268754,1648.8905618006756,1684.9222679907132,1722.1233751453774,1760.5106909025819,1800.1009709663313,1840.9109201435649,1882.957193343384,1926.2563965406198,1970.8250877055691,2016.679777701605,3804.4465067402216,3956.3318062820517,4113.3287456642956,4275.5134611194717,4442.961845236372,4615.7495519948034,4793.9520016113911,4977.6443852065895,5166.9016693023586,5361.7986001593581,5562.4097079618386,5768.8093108579287]
[1000323941,4,1,1,1,3,3.0306803023566031,3,3,3,3.0230632761679481,2.1694249845207684E-2,0,0,0,1.6308198974734206E-2,0.12304063405958204,0,0,0,0.3677509745712596,1497.7890604561005,1577.3471635930578,1659.5827633070335,1744.5357400489818,1832.245846648339,1922.7527109502378,2016.0958383537586,2112.3146142565274,2211.448306410618,2313.5360671943886,2418.6169358045431,2526.7298403724526,0,0,0,0,0,0,0,0,0,0,0,0,0,0,0,0,0,0,0,0,0,0,0,0,0,0,0,0,0,0,0,0,0,0,0,0,726.38959069221403,764.97324676211849,804.85542055658675,846.05545307977627,888.59262344265528,932.4861501419839,977.75519229130191,1024.4188508064967,1072.4961695483562,1122.00613642435,1172.9676844517262,1225.3996927838714,0,0,0,0,0,0,0,0,0,0,0,0,1580.2678555919069,1614.0113959268754,1648.8905618006756,1684.9222679907132,1722.1233751453774,1760.5106909025819,1800.1009709663313,1840.9109201435649,1882.957193343384,1926.2563965406198,1970.8250877055691,2016.679777701605,3804.4465067402216,3956.3318062820517,4113.3287456642956,4275.5134611194717,4442.961845236372,4615.7495519948034,4793.9520016113911,4977.6443852065895,5166.9016693023586,5361.7986001593581,5562.4097079618386,5768.8093108579287]
[1000323998,4,1,1,1,3,3.0306803023566031,3,3,3,3.0230632761679481,2.1694249845207684E-2,0,0,0,1.6308198974734206E-2,0.12304063405958204,0,0,0,0.3677509745712596,969.48755288782002,1020.2493903900088,1072.6640938538956,1126.7539608341217,1182.5411797879206,1240.0478325433839,1299.2958966696308,1360.307247754426,1423.1036615943347,1487.706816302207,1554.1382943363806,1622.4195844557503,0,0,0,0,0,0,0,0,0,0,0,0,0,0,0,0,0,0,0,0,0,0,0,0,0,0,0,0,0,0,0,0,0,0,0,0,470.17679946796505,494.79499927960688,520.21479703389991,546.44700647759703,573.50238844798412,601.3916520699255,630.12545590533682,659.71440905777058,690.16907223458645,721.49995876902767,753.71753560433149,786.83222424189,0,0,0,0,0,0,0,0,0,0,0,0,1356.1956049128471,1377.7255816681188,1399.9566001406731,1422.8981175498843,1446.559544842873,1470.9502477413887,1496.0795477470858,1521.9567231075471,1548.5910097452079,1575.9916021512206,1604.1676542461125,1633.1282802090045,2795.8599572686321,2892.7699713377342,2992.8354910284688,3096.0990848616029,3202.6031130787778,3312.389732354698,3425.500900322053,3541.9783799197435,3661.8637435741293,3785.1983772224548,3912.0234841868246,4042.3800889066447]
[1000328026,4,1,1,1,3,3.0306803023566031,3,3,3,3.0230632761679481,2.1694249845207684E-2,0,0,0,1.6308198974734206E-2,0.12304063405958204,0,0,0,0.3677509745712596,1020.2493903900088,1072.6640938538956,1126.7539608341217,1182.5411797879206,1240.0478325433839,1299.2958966696308,1360.307247754426,1423.1036615943347,1487.706816302207,1554.1382943363806,1622.4195844557503,1692.5720836045273,0,0,0,0,0,0,0,0,0,0,0,0,0,0,0,0,0,0,0,0,0,0,0,0,0,0,0,0,0,0,0,0,0,0,0,0,494.79499927960688,520.21479703389991,546.44700647759703,573.50238844798412,601.3916520699255,630.12545590533682,659.71440905777058,690.16907223458645,721.49995876902767,753.71753560433149,786.83222424189,820.85440165530952,0,0,0,0,0,0,0,0,0,0,0,0,1377.7255816681188,1399.9566001406731,1422.8981175498843,1446.559544842873,1470.9502477413887,1496.0795477470858,1521.9567231075471,1548.5910097452079,1575.9916021512206,1604.1676542461125,1633.1282802090045,1662.8825552770077,2892.7699713377342,2992.8354910284688,3096.0990848616029,3202.6031130787778,3312.389732354698,3425.500900322053,3541.9783799197435,3661.8637435741293,3785.1983772224548,3912.0234841868246,4042.3800889066447,4176.3090405368448]
[1000328057,4,1,1,1,3,3.0306803023566031,3,3,3,3.0230632761679481,2.1694249845207684E-2,0,0,0,1.6308198974734206E-2,0.12304063405958204,0,0,0,0.3677509745712596,2081.2436366486231,2197.6189581040876,2318.1859452746135,2443.0152388243255,2572.1773649121155,2705.7427374175149,2843.7816600850119,2986.3643285911803,3133.5608325386338,3285.4411573805737,3442.0751862794764,3603.5327019031511,0,0,0,0,0,0,0,0,0,0,0,0,0,0,0,0,0,0,0,0,0,0,0,0,0,0,0,0,0,0,0,0,0,0,0,0,1009.3502171097466,1065.7892874371582,1124.2612090007476,1184.8002407255235,1247.4405860043678,1312.2163937775304,1379.1617595725666,1448.3107265068427,1519.6972862545526,1593.355379980075,1669.3188992393884,1747.6216868511156,0,0,0,0,0,0,0,0,0,0,0,0,1827.7325669046204,1877.0916541463971,1928.2285821806245,1981.173312331231,2035.9557573562306,2092.605782391799,2151.1532058617599,2211.6278003543271,2274.0592934678161,2338.4773686269182,2404.9116658710345,2473.391782616055,4918.3264206629901,5140.4998996876429,5370.6757364559853,5608.98879188108,5855.5737082727137,6110.5649135868443,6374.096625519338,6646.3028554523498,6927.3174122610026,7217.2739059875666,7516.3057513898993,7824.5461713703216]
[1000328085,4,1,1,1,3,3.0306803023566031,3,3,3,3.0230632761679481,2.1694249845207684E-2,0,0,0,1.6308198974734206E-2,0.12304063405958204,0,0,0,0.3677509745712596,1420.8684430817493,1497.7890604561005,1577.3471635930578,1659.5827633070335,1744.5357400489818,1832.245846648339,1922.7527109502378,2016.0958383537586,2112.3146142565274,2211.448306410618,2313.5360671943886,2418.6169358045431,0,0,0,0,0,0,0,0,0,0,0,0,0,0,0,0,0,0,0,0,0,0,0,0,0,0,0,0,0,0,0,0,0,0,0,0,689.08504811975558,726.38959069221403,764.97324676211849,804.85542055658675,846.05545307977627,888.59262344265528,932.4861501419839,977.75519229130191,1024.4188508064967,1072.4961695483562,1122.00613642435,1172.9676844517262,0,0,0,0,0,0,0,0,0,0,0,0,1547.642970726391,1580.2678555919069,1614.0113959268754,1648.8905618006756,1684.9222679907132,1722.1233751453774,1760.5106909025819,1800.1009709663313,1840.9109201435649,1882.957193343384,1926.2563965406198,1970.8250877055691,3657.5964619278957,3804.4465067402216,3956.3318062820517,4113.3287456642956,4275.5134611194717,4442.961845236372,4615.7495519948034,4793.9520016113911,4977.6443852065895,5166.9016693023586,5361.7986001593581,5562.4097079618386]
[1000328116,4,1,1,1,3,3.0306803023566031,3,3,3,3.0230632761679481,2.1694249845207684E-2,0,0,0,1.6308198974734206E-2,0.12304063405958204,0,0,0,0.3677509745712596,969.48755288782002,1020.2493903900088,1072.6640938538956,1126.7539608341217,1182.5411797879206,1240.0478325433839,1299.2958966696308,1360.307247754426,1423.1036615943347,1487.706816302207,1554.1382943363806,1622.4195844557503,0,0,0,0,0,0,0,0,0,0,0,0,0,0,0,0,0,0,0,0,0,0,0,0,0,0,0,0,0,0,0,0,0,0,0,0,470.17679946796505,494.79499927960688,520.21479703389991,546.44700647759703,573.50238844798412,601.3916520699255,630.12545590533682,659.71440905777058,690.16907223458645,721.49995876902767,753.71753560433149,786.83222424189,0,0,0,0,0,0,0,0,0,0,0,0,1356.1956049128471,1377.7255816681188,1399.9566001406731,1422.8981175498843,1446.559544842873,1470.9502477413887,1496.0795477470858,1521.9567231075471,1548.5910097452079,1575.9916021512206,1604.1676542461125,1633.1282802090045,2795.8599572686321,2892.7699713377342,2992.8354910284688,3096.0990848616029,3202.6031130787778,3312.389732354698,3425.500900322053,3541.9783799197435,3661.8637435741293,3785.1983772224548,3912.0234841868246,4042.3800889066447]
[1000328175,4,1,1,1,3,3.0306803023566031,3,3,3,3.0230632761679481,2.1694249845207684E-2,0,0,0,1.6308198974734206E-2,0.12304063405958204,0,0,0,0.3677509745712596,2318.1859452746135,2443.0152388243255,2572.1773649121155,2705.7427374175149,2843.7816600850119,2986.3643285911803,3133.5608325386338,3285.4411573805737,3442.0751862794764,3603.5327019031511,3769.8833881612809,3941.1968318852901,0,0,0,0,0,0,0,0,0,0,0,0,0,0,0,0,0,0,0,0,0,0,0,0,0,0,0,0,0,0,0,0,0,0,0,0,1124.2612090007476,1184.8002407255235,1247.4405860043678,1312.2163937775304,1379.1617595725666,1448.3107265068427,1519.6972862545526,1593.355379980075,1669.3188992393884,1747.6216868511156,1828.2975377387004,1911.3801997450998,0,0,0,0,0,0,0,0,0,0,0,0,1928.2285821806245,1981.173312331231,2035.9557573562306,2092.605782391799,2151.1532058617599,2211.6278003543271,2274.0592934678161,2338.4773686269182,2404.9116658710345,2473.391782616055,2543.9472743908873,2616.6076555499512,5370.6757364559853,5608.98879188108,5855.5737082727137,6110.5649135868443,6374.096625519338,6646.3028554523498,6927.3174122610026,7217.2739059875666,7516.3057513898993,7824.5461713703216,8142.1282002908683,8469.1846871803409]
[1000328208,4,1,1,1,3,3.0306803023566031,3,3,3,3.0230632761679481,2.1694249845207684E-2,0,0,0,1.6308198974734206E-2,0.12304063405958204,0,0,0,0.3677509745712596,1346.5451674393178,1420.8684430817493,1497.7890604561005,1577.3471635930578,1659.5827633070335,1744.5357400489818,1832.245846648339,1922.7527109502378,2016.0958383537586,2112.3146142565274,2211.448306410618,2313.5360671943886,0,0,0,0,0,0,0,0,0,0,0,0,0,0,0,0,0,0,0,0,0,0,0,0,0,0,0,0,0,0,0,0,0,0,0,0,653.04015021112048,689.08504811975558,726.38959069221403,764.97324676211849,804.85542055658675,846.05545307977627,888.59262344265528,932.4861501419839,977.75519229130191,1024.4188508064967,1072.4961695483562,1122.00613642435,0,0,0,0,0,0,0,0,0,0,0,0,1516.119714758988,1547.642970726391,1580.2678555919069,1614.0113959268754,1648.8905618006756,1684.9222679907132,1722.1233751453774,1760.5106909025819,1800.1009709663313,1840.9109201435649,1882.957193343384,1926.2563965406198,3515.7050324094262,3657.5964619278957,3804.4465067402216,3956.3318062820517,4113.3287456642956,4275.5134611194717,4442.961845236372,4615.7495519948034,4793.9520016113911,4977.6443852065895,5166.9016693023586,5361.7986001593581]
[1000328413,4,1,1,1,3,3.0306803023566031,3,3,3,3.0230632761679481,2.1694249845207684E-2,0,0,0,1.6308198974734206E-2,0.12304063405958204,0,0,0,0.3677509745712596,1346.5451674393178,1420.8684430817493,1497.7890604561005,1577.3471635930578,1659.5827633070335,1744.5357400489818,1832.245846648339,1922.7527109502378,2016.0958383537586,2112.3146142565274,2211.448306410618,2313.5360671943886,0,0,0,0,0,0,0,0,0,0,0,0,0,0,0,0,0,0,0,0,0,0,0,0,0,0,0,0,0,0,0,0,0,0,0,0,653.04015021112048,689.08504811975558,726.38959069221403,764.97324676211849,804.85542055658675,846.05545307977627,888.59262344265528,932.4861501419839,977.75519229130191,1024.4188508064967,1072.4961695483562,1122.00613642435,0,0,0,0,0,0,0,0,0,0,0,0,1516.119714758988,1547.642970726391,1580.2678555919069,1614.0113959268754,1648.8905618006756,1684.9222679907132,1722.1233751453774,1760.5106909025819,1800.1009709663313,1840.9109201435649,1882.957193343384,1926.2563965406198,3515.7050324094262,3657.5964619278957,3804.4465067402216,3956.3318062820517,4113.3287456642956,4275.5134611194717,4442.961845236372,4615.7495519948034,4793.9520016113911,4977.6443852065895,5166.9016693023586,5361.7986001593581]
[1000328506,4,1,1,1,3,3.0306803023566031,3,3,3,3.0230632761679481,2.1694249845207684E-2,0,0,0,1.6308198974734206E-2,0.12304063405958204,0,0,0,0.3677509745712596,1968.9892234267761,2081.2436366486231,2197.6189581040876,2318.1859452746135,2443.0152388243255,2572.1773649121155,2705.7427374175149,2843.7816600850119,2986.3643285911803,3133.5608325386338,3285.4411573805737,3442.0751862794764,0,0,0,0,0,0,0,0,0,0,0,0,0,0,0,0,0,0,0,0,0,0,0,0,0,0,0,0,0,0,0,0,0,0,0,0,954.90968244007706,1009.3502171097466,1065.7892874371582,1124.2612090007476,1184.8002407255235,1247.4405860043678,1312.2163937775304,1379.1617595725666,1448.3107265068427,1519.6972862545526,1593.355379980075,1669.3188992393884,0,0,0,0,0,0,0,0,0,0,0,0,1780.1213095848111,1827.7325669046204,1877.0916541463971,1928.2285821806245,1981.173312331231,2035.9557573562306,2092.605782391799,2151.1532058617599,2211.6278003543271,2274.0592934678161,2338.4773686269182,2404.9116658710345,4704.0202154516646,4918.3264206629901,5140.4998996876429,5370.6757364559853,5608.98879188108,5855.5737082727137,6110.5649135868443,6374.096625519338,6646.3028554523498,6927.3174122610026,7217.2739059875666,7516.3057513898993]
[1000328533,4,1,1,1,3,3.0306803023566031,3,3,3,3.0230632761679481,2.1694249845207684E-2,0,0,0,1.6308198974734206E-2,0.12304063405958204,0,0,0,0.3677509745712596,1968.9892234267761,2081.2436366486231,2197.6189581040876,2318.1859452746135,2443.0152388243255,2572.1773649121155,2705.7427374175149,2843.7816600850119,2986.3643285911803,3133.5608325386338,3285.4411573805737,3442.0751862794764,0,0,0,0,0,0,0,0,0,0,0,0,0,0,0,0,0,0,0,0,0,0,0,0,0,0,0,0,0,0,0,0,0,0,0,0,954.90968244007706,1009.3502171097466,1065.7892874371582,1124.2612090007476,1184.8002407255235,1247.4405860043678,1312.2163937775304,1379.1617595725666,1448.3107265068427,1519.6972862545526,1593.355379980075,1669.3188992393884,0,0,0,0,0,0,0,0,0,0,0,0,1780.1213095848111,1827.7325669046204,1877.0916541463971,1928.2285821806245,1981.173312331231,2035.9557573562306,2092.605782391799,2151.1532058617599,2211.6278003543271,2274.0592934678161,2338.4773686269182,2404.9116658710345,4704.0202154516646,4918.3264206629901,5140.4998996876429,5370.6757364559853,5608.98879188108,5855.5737082727137,6110.5649135868443,6374.096625519338,6646.3028554523498,6927.3174122610026,7217.2739059875666,7516.3057513898993]
[1000328564,4,1,1,1,3,3.0306803023566031,3,3,3,3.0230632761679481,2.1694249845207684E-2,0,0,0,1.6308198974734206E-2,0.12304063405958204,0,0,0,0.3677509745712596,1968.9892234267761,2081.2436366486231,2197.6189581040876,2318.1859452746135,2443.0152388243255,2572.1773649121155,2705.7427374175149,2843.7816600850119,2986.3643285911803,3133.5608325386338,3285.4411573805737,3442.0751862794764,0,0,0,0,0,0,0,0,0,0,0,0,0,0,0,0,0,0,0,0,0,0,0,0,0,0,0,0,0,0,0,0,0,0,0,0,954.90968244007706,1009.3502171097466,1065.7892874371582,1124.2612090007476,1184.8002407255235,1247.4405860043678,1312.2163937775304,1379.1617595725666,1448.3107265068427,1519.6972862545526,1593.355379980075,1669.3188992393884,0,0,0,0,0,0,0,0,0,0,0,0,1780.1213095848111,1827.7325669046204,1877.0916541463971,1928.2285821806245,1981.173312331231,2035.9557573562306,2092.605782391799,2151.1532058617599,2211.6278003543271,2274.0592934678161,2338.4773686269182,2404.9116658710345,4704.0202154516646,4918.3264206629901,5140.4998996876429,5370.6757364559853,5608.98879188108,5855.5737082727137,6110.5649135868443,6374.096625519338,6646.3028554523498,6927.3174122610026,7217.2739059875666,7516.3057513898993]
[1000328590,4,1,1,1,3,3.0306803023566031,3,3,3,3.0230632761679481,2.1694249845207684E-2,0,0,0,1.6308198974734206E-2,0.12304063405958204,0,0,0,0.3677509745712596,2549.1963149468606,2701.3741968558461,2859.4765197042443,3023.6156050779236,3193.9037448932627,3370.453201954324,3553.376210489645,3742.7849766696972,3938.7916791060711,4141.5084693333101,4351.0474722743184,4567.5207866901201,0,0,0,0,0,0,0,0,0,0,0,0,0,0,0,0,0,0,0,0,0,0,0,0,0,0,0,0,0,0,0,0,0,0,0,0,1236.2953614072169,1310.0977627404291,1386.7733672119723,1466.3766479335409,1548.9620636278812,1634.5840588990075,1723.297064492531,1815.1554975466147,1910.2137618340651,2008.5262479960104,2110.1473337676107,2215.1313841961787,0,0,0,0,0,0,0,0,0,0,0,0,2026.208642281006,2090.7529224210953,2157.8099775510191,2227.4274474185058,2299.652959187355,2374.5341276737518,2452.1185555739448,2532.453833683714,2615.5875411100978,2701.5672454757564,2790.4405031163651,2882.2548592713783,5811.700318635083,6102.22488201737,6404.0598644672355,6717.4197004299704,7042.5187677084996,7379.5713885270834,7728.7918305561207,8090.3943079000264,8464.5929820502333,8851.6019628050781,9251.6353091582932,9664.9070301576776]
[1000328647,4,1,1,1,3,3.0306803023566031,3,3,3,3.0230632761679481,2.1694249845207684E-2,0,0,0,1.6308198974734206E-2,0.12304063405958204,0,0,0,0.3677509745712596,1860.7848417364414,1968.9892234267761,2081.2436366486231,2197.6189581040876,2318.1859452746135,2443.0152388243255,2572.1773649121155,2705.7427374175149,2843.7816600850119,2986.3643285911803,3133.5608325386338,3285.4411573805737,0,0,0,0,0,0,0,0,0,0,0,0,0,0,0,0,0,0,0,0,0,0,0,0,0,0,0,0,0,0,0,0,0,0,0,0,902.43331003072603,954.90968244007706,1009.3502171097466,1065.7892874371582,1124.2612090007476,1184.8002407255235,1247.4405860043678,1312.2163937775304,1379.1617595725666,1448.3107265068427,1519.6972862545526,1593.355379980075,0,0,0,0,0,0,0,0,0,0,0,0,1734.2278207505856,1780.1213095848111,1827.7325669046204,1877.0916541463971,1928.2285821806245,1981.173312331231,2035.9557573562306,2092.605782391799,2151.1532058617599,2211.6278003543271,2274.0592934678161,2338.4773686269182,4497.445972517753,4704.0202154516646,4918.3264206629901,5140.4998996876429,5370.6757364559853,5608.98879188108,5855.5737082727137,6110.5649135868443,6374.096625519338,6646.3028554523498,6927.3174122610026,7217.2739059875666]
[1000328676,4,1,1,1,3,3.0306803023566031,3,3,3,3.0230632761679481,2.1694249845207684E-2,0,0,0,1.6308198974734206E-2,0.12304063405958204,0,0,0,0.3677509745712596,872.832724518654,920.35617212298052,969.48755288782002,1020.2493903900088,1072.6640938538956,1126.7539608341217,1182.5411797879206,1240.0478325433839,1299.2958966696308,1360.307247754426,1423.1036615943347,1487.706816302207,0,0,0,0,0,0,0,0,0,0,0,0,0,0,0,0,0,0,0,0,0,0,0,0,0,0,0,0,0,0,0,0,0,0,0,0,423.30166659970598,446.34932969525403,470.17679946796505,494.79499927960688,520.21479703389991,546.44700647759703,573.50238844798412,601.3916520699255,630.12545590533682,659.71440905777058,690.16907223458645,721.49995876902767,0,0,0,0,0,0,0,0,0,0,0,0,1315.2007097224748,1335.3571652922208,1356.1956049128471,1377.7255816681188,1399.9566001406731,1422.8981175498843,1446.559544842873,1470.9502477413887,1496.0795477470858,1521.9567231075471,1548.5910097452079,1575.9916021512206,2611.3351008408345,2702.0626671104555,2795.8599572686321,2892.7699713377342,2992.8354910284688,3096.0990848616029,3202.6031130787778,3312.389732354698,3425.500900322053,3541.9783799197435,3661.8637435741293,3785.1983772224548]
[1000328766,4,1,1,1,3,3.0306803023566031,3,3,3,3.0230632761679481,2.1694249845207684E-2,0,0,0,1.6308198974734206E-2,0.12304063405958204,0,0,0,0.3677509745712596,1860.7848417364414,1968.9892234267761,2081.2436366486231,2197.6189581040876,2318.1859452746135,2443.0152388243255,2572.1773649121155,2705.7427374175149,2843.7816600850119,2986.3643285911803,3133.5608325386338,3285.4411573805737,0,0,0,0,0,0,0,0,0,0,0,0,0,0,0,0,0,0,0,0,0,0,0,0,0,0,0,0,0,0,0,0,0,0,0,0,902.43331003072603,954.90968244007706,1009.3502171097466,1065.7892874371582,1124.2612090007476,1184.8002407255235,1247.4405860043678,1312.2163937775304,1379.1617595725666,1448.3107265068427,1519.6972862545526,1593.355379980075,0,0,0,0,0,0,0,0,0,0,0,0,1734.2278207505856,1780.1213095848111,1827.7325669046204,1877.0916541463971,1928.2285821806245,1981.173312331231,2035.9557573562306,2092.605782391799,2151.1532058617599,2211.6278003543271,2274.0592934678161,2338.4773686269182,4497.445972517753,4704.0202154516646,4918.3264206629901,5140.4998996876429,5370.6757364559853,5608.98879188108,5855.5737082727137,6110.5649135868443,6374.096625519338,6646.3028554523498,6927.3174122610026,7217.2739059875666]
[1000328796,4,1,1,1,3,3.0306803023566031,3,3,3,3.0230632761679481,2.1694249845207684E-2,0,0,0,1.6308198974734206E-2,0.12304063405958204,0,0,0,0.3677509745712596,2549.1963149468606,2701.3741968558461,2859.4765197042443,3023.6156050779236,3193.9037448932627,3370.453201954324,3553.376210489645,3742.7849766696972,3938.7916791060711,4141.5084693333101,4351.0474722743184,4567.5207866901201,0,0,0,0,0,0,0,0,0,0,0,0,0,0,0,0,0,0,0,0,0,0,0,0,0,0,0,0,0,0,0,0,0,0,0,0,1236.2953614072169,1310.0977627404291,1386.7733672119723,1466.3766479335409,1548.9620636278812,1634.5840588990075,1723.297064492531,1815.1554975466147,1910.2137618340651,2008.5262479960104,2110.1473337676107,2215.1313841961787,0,0,0,0,0,0,0,0,0,0,0,0,2026.208642281006,2090.7529224210953,2157.8099775510191,2227.4274474185058,2299.652959187355,2374.5341276737518,2452.1185555739448,2532.453833683714,2615.5875411100978,2701.5672454757564,2790.4405031163651,2882.2548592713783,5811.700318635083,6102.22488201737,6404.0598644672355,6717.4197004299704,7042.5187677084996,7379.5713885270834,7728.7918305561207,8090.3943079000264,8464.5929820502333,8851.6019628050781,9251.6353091582932,9664.9070301576776]
[1000328825,4,1,1,1,3,3.0306803023566031,3,3,3,3.0230632761679481,2.1694249845207684E-2,0,0,0,1.6308198974734206E-2,0.12304063405958204,0,0,0,0.3677509745712596,1860.7848417364414,1968.9892234267761,2081.2436366486231,2197.6189581040876,2318.1859452746135,2443.0152388243255,2572.1773649121155,2705.7427374175149,2843.7816600850119,2986.3643285911803,3133.5608325386338,3285.4411573805737,0,0,0,0,0,0,0,0,0,0,0,0,0,0,0,0,0,0,0,0,0,0,0,0,0,0,0,0,0,0,0,0,0,0,0,0,902.43331003072603,954.90968244007706,1009.3502171097466,1065.7892874371582,1124.2612090007476,1184.8002407255235,1247.4405860043678,1312.2163937775304,1379.1617595725666,1448.3107265068427,1519.6972862545526,1593.355379980075,0,0,0,0,0,0,0,0,0,0,0,0,1734.2278207505856,1780.1213095848111,1827.7325669046204,1877.0916541463971,1928.2285821806245,1981.173312331231,2035.9557573562306,2092.605782391799,2151.1532058617599,2211.6278003543271,2274.0592934678161,2338.4773686269182,4497.445972517753,4704.0202154516646,4918.3264206629901,5140.4998996876429,5370.6757364559853,5608.98879188108,5855.5737082727137,6110.5649135868443,6374.096625519338,6646.3028554523498,6927.3174122610026,7217.2739059875666]
[1000328852,4,1,1,1,3,3.0306803023566031,3,3,3,3.0230632761679481,2.1694249845207684E-2,0,0,0,1.6308198974734206E-2,0.12304063405958204,0,0,0,0.3677509745712596,337.23061041350149,363.4254683496606,390.8744203744061,419.60213021697916,449.63308711207839,480.99161146397978,513.7018601901292,547.78783176970308,583.27337102005492,620.18217362168446,658.53779041037683,698.36363145339078,0,0,0,0,0,0,0,0,0,0,0,0,0,0,0,0,0,0,0,0,0,0,0,0,0,0,0,0,0,0,0,0,0,0,0,0,163.54826693189656,176.25210663592875,189.56415006887616,203.49635851197752,218.06060862105755,233.26869517348106,249.13233365965937,265.66316273147368,282.8727465187302,300.7725768236553,319.37407520247342,338.68859494225489,0,0,0,0,0,0,0,0,0,0,0,0,1088.0320012165785,1099.142211370985,1110.7843293109406,1122.9688158381693,1135.7060577447921,1149.0063702156904,1162.8799990949205,1177.3371230269972,1192.3878554827602,1208.0422466785822,1224.310285396823,1241.2019007146939,1588.8108785619766,1638.8197863565745,1691.2228997542229,1746.067304567126,1803.399753477928,1863.2666768531512,1925.7141929447089,1990.7881175281741,2058.5339730215455,2128.996997123922,2202.2221510096733,2278.2541271103396]
[1000328910,4,1,1,1,3,3.0306803023566031,3,3,3,3.0230632761679481,2.1694249845207684E-2,0,0,0,1.6308198974734206E-2,0.12304063405958204,0,0,0,0.3677509745712596,1205.5293811990873,1274.7789533114706,1346.5451674393178,1420.8684430817493,1497.7890604561005,1577.3471635930578,1659.5827633070335,1744.5357400489818,1832.245846648339,1922.7527109502378,2016.0958383537586,2112.3146142565274,0,0,0,0,0,0,0,0,0,0,0,0,0,0,0,0,0,0,0,0,0,0,0,0,0,0,0,0,0,0,0,0,0,0,0,0,584.65108131446993,618.23536208562689,653.04015021112048,689.08504811975558,726.38959069221403,764.97324676211849,804.85542055658675,846.05545307977627,888.59262344265528,932.4861501419839,977.75519229130191,1024.4188508064967,0,0,0,0,0,0,0,0,0,0,0,0,1456.3096931113746,1485.6810033565534,1516.119714758988,1547.642970726391,1580.2678555919069,1614.0113959268754,1648.8905618006756,1684.9222679907132,1722.1233751453774,1760.5106909025819,1800.1009709663313,1840.9109201435649,3246.490155624932,3378.695318753651,3515.7050324094262,3657.5964619278957,3804.4465067402216,3956.3318062820517,4113.3287456642956,4275.5134611194717,4442.961845236372,4615.7495519948034,4793.9520016113911,4977.6443852065895]
[1000332025,4,1,1,1,3,3.0306803023566031,3,3,3,3.0230632761679481,2.1694249845207684E-2,0,0,0,1.6308198974734206E-2,0.12304063405958204,0,0,0,0.3677509745712596,1205.5293811990873,1274.7789533114706,1346.5451674393178,1420.8684430817493,1497.7890604561005,1577.3471635930578,1659.5827633070335,1744.5357400489818,1832.245846648339,1922.7527109502378,2016.0958383537586,2112.3146142565274,0,0,0,0,0,0,0,0,0,0,0,0,0,0,0,0,0,0,0,0,0,0,0,0,0,0,0,0,0,0,0,0,0,0,0,0,584.65108131446993,618.23536208562689,653.04015021112048,689.08504811975558,726.38959069221403,764.97324676211849,804.85542055658675,846.05545307977627,888.59262344265528,932.4861501419839,977.75519229130191,1024.4188508064967,0,0,0,0,0,0,0,0,0,0,0,0,1456.3096931113746,1485.6810033565534,1516.119714758988,1547.642970726391,1580.2678555919069,1614.0113959268754,1648.8905618006756,1684.9222679907132,1722.1233751453774,1760.5106909025819,1800.1009709663313,1840.9109201435649,3246.490155624932,3378.695318753651,3515.7050324094262,3657.5964619278957,3804.4465067402216,3956.3318062820517,4113.3287456642956,4275.5134611194717,4442.961845236372,4615.7495519948034,4793.9520016113911,4977.6443852065895]
[1000332304,4,1,1,1,3,3.0306803023566031,3,3,3,3.0230632761679481,2.1694249845207684E-2,0,0,0,1.6308198974734206E-2,0.12304063405958204,0,0,0,0.3677509745712596,826.89456934528289,872.832724518654,920.35617212298052,969.48755288782002,1020.2493903900088,1072.6640938538956,1126.7539608341217,1182.5411797879206,1240.0478325433839,1299.2958966696308,1360.307247754426,1423.1036615943347,0,0,0,0,0,0,0,0,0,0,0,0,0,0,0,0,0,0,0,0,0,0,0,0,0,0,0,0,0,0,0,0,0,0,0,0,401.02283000346387,423.30166659970598,446.34932969525403,470.17679946796505,494.79499927960688,520.21479703389991,546.44700647759703,573.50238844798412,601.3916520699255,630.12545590533682,659.71440905777058,690.16907223458645,0,0,0,0,0,0,0,0,0,0,0,0,1295.7166354310327,1315.2007097224748,1335.3571652922208,1356.1956049128471,1377.7255816681188,1399.9566001406731,1422.8981175498843,1446.559544842873,1470.9502477413887,1496.0795477470858,1521.9567231075471,1548.5910097452079,2523.6340347797795,2611.3351008408345,2702.0626671104555,2795.8599572686321,2892.7699713377342,2992.8354910284688,3096.0990848616029,3202.6031130787778,3312.389732354698,3425.500900322053,3541.9783799197435,3661.8637435741293]
[1000332390,4,1,1,1,3,3.0306803023566031,3,3,3,3.0230632761679481,2.1694249845207684E-2,0,0,0,1.6308198974734206E-2,0.12304063405958204,0,0,0,0.3677509745712596,1756.5594931548401,1860.7848417364414,1968.9892234267761,2081.2436366486231,2197.6189581040876,2318.1859452746135,2443.0152388243255,2572.1773649121155,2705.7427374175149,2843.7816600850119,2986.3643285911803,3133.5608325386338,0,0,0,0,0,0,0,0,0,0,0,0,0,0,0,0,0,0,0,0,0,0,0,0,0,0,0,0,0,0,0,0,0,0,0,0,851.88666745283979,902.43331003072603,954.90968244007706,1009.3502171097466,1065.7892874371582,1124.2612090007476,1184.8002407255235,1247.4405860043678,1312.2163937775304,1379.1617595725666,1448.3107265068427,1519.6972862545526,0,0,0,0,0,0,0,0,0,0,0,0,1690.0219873393103,1734.2278207505856,1780.1213095848111,1827.7325669046204,1877.0916541463971,1928.2285821806245,1981.173312331231,2035.9557573562306,2092.605782391799,2151.1532058617599,2211.6278003543271,2274.0592934678161,4298.46814794699,4497.445972517753,4704.0202154516646,4918.3264206629901,5140.4998996876429,5370.6757364559853,5608.98879188108,5855.5737082727137,6110.5649135868443,6374.096625519338,6646.3028554523498,6927.3174122610026]
[1000332419,4,1,1,1,3,3.0306803023566031,3,3,3,3.0230632761679481,2.1694249845207684E-2,0,0,0,1.6308198974734206E-2,0.12304063405958204,0,0,0,0.3677509745712596,739.68296992500564,782.51894579536281,826.89456934528289,872.832724518654,920.35617212298052,969.48755288782002,1020.2493903900088,1072.6640938538956,1126.7539608341217,1182.5411797879206,1240.0478325433839,1299.2958966696308,0,0,0,0,0,0,0,0,0,0,0,0,0,0,0,0,0,0,0,0,0,0,0,0,0,0,0,0,0,0,0,0,0,0,0,0,358.72742294045759,379.5017814939211,401.02283000346387,423.30166659970598,446.34932969525403,470.17679946796505,494.79499927960688,520.21479703389991,546.44700647759703,573.50238844798412,601.3916520699255,630.12545590533682,0,0,0,0,0,0,0,0,0,0,0,0,1258.7269636480189,1276.8952887158105,1295.7166354310327,1315.2007097224748,1335.3571652922208,1356.1956049128471,1377.7255816681188,1399.9566001406731,1422.8981175498843,1446.559544842873,1470.9502477413887,1496.0795477470858,2357.1373565134822,2438.9160160050942,2523.6340347797795,2611.3351008408345,2702.0626671104555,2795.8599572686321,2892.7699713377342,2992.8354910284688,3096.0990848616029,3202.6031130787778,3312.389732354698,3425.500900322053]
[1000332450,4,1,1,1,3,3.0306803023566031,3,3,3,3.0230632761679481,2.1694249845207684E-2,0,0,0,1.6308198974734206E-2,0.12304063405958204,0,0,0,0.3677509745712596,1138.7558890935766,1205.5293811990873,1274.7789533114706,1346.5451674393178,1420.8684430817493,1497.7890604561005,1577.3471635930578,1659.5827633070335,1744.5357400489818,1832.245846648339,1922.7527109502378,2016.0958383537586,0,0,0,0,0,0,0,0,0,0,0,0,0,0,0,0,0,0,0,0,0,0,0,0,0,0,0,0,0,0,0,0,0,0,0,0,552.26763635537702,584.65108131446993,618.23536208562689,653.04015021112048,689.08504811975558,726.38959069221403,764.97324676211849,804.85542055658675,846.05545307977627,888.59262344265528,932.4861501419839,977.75519229130191,0,0,0,0,0,0,0,0,0,0,0,0,1427.988580172191,1456.3096931113746,1485.6810033565534,1516.119714758988,1547.642970726391,1580.2678555919069,1614.0113959268754,1648.8905618006756,1684.9222679907132,1722.1233751453774,1760.5106909025819,1800.1009709663313,3119.0121056211447,3246.490155624932,3378.695318753651,3515.7050324094262,3657.5964619278957,3804.4465067402216,3956.3318062820517,4113.3287456642956,4275.5134611194717,4442.961845236372,4615.7495519948034,4793.9520016113911]
[1000332539,4,1,1,1,3,3.0306803023566031,3,3,3,3.0230632761679481,2.1694249845207684E-2,0,0,0,1.6308198974734206E-2,0.12304063405958204,0,0,0,0.3677509745712596,186.86987564701454,204.9926837289363,224.19149595049328,244.49238997319185,265.92121744920513,288.50361295780101,312.26500232903965,337.23061041350149,363.4254683496606,390.8744203744061,419.60213021697916,449.63308711207839,0,0,0,0,0,0,0,0,0,0,0,0,0,0,0,0,0,0,0,0,0,0,0,0,0,0,0,0,0,0,0,0,0,0,0,0,90.627135734724064,99.416236611727371,108.72717212299804,118.57258927095313,128.96502544923271,139.91691277664015,151.44058213392361,163.54826693189656,176.25210663592875,189.56415006887616,203.49635851197752,218.06060862105755,0,0,0,0,0,0,0,0,0,0,0,0,1024.2584405315763,1031.9449951549625,1040.0879230157029,1048.6982846166022,1057.7870446015299,1067.3650755456906,1077.443161486013,1088.0320012165785,1099.142211370985,1110.7843293109406,1122.9688158381693,1135.7060577447921,1301.755451913315,1336.3539154956261,1373.0065910891944,1411.7632638607472,1452.6732874999677,1495.7856012801317,1541.1487459489761,1588.8108785619766,1638.8197863565745,1691.2228997542229,1746.067304567126,1803.399753477928]
[1000332568,4,1,1,1,3,3.0306803023566031,3,3,3,3.0230632761679481,2.1694249845207684E-2,0,0,0,1.6308198974734206E-2,0.12304063405958204,0,0,0,0.3677509745712596,782.51894579536281,826.89456934528289,872.832724518654,920.35617212298052,969.48755288782002,1020.2493903900088,1072.6640938538956,1126.7539608341217,1182.5411797879206,1240.0478325433839,1299.2958966696308,1360.307247754426,0,0,0,0,0,0,0,0,0,0,0,0,0,0,0,0,0,0,0,0,0,0,0,0,0,0,0,0,0,0,0,0,0,0,0,0,379.5017814939211,401.02283000346387,423.30166659970598,446.34932969525403,470.17679946796505,494.79499927960688,520.21479703389991,546.44700647759703,573.50238844798412,601.3916520699255,630.12545590533682,659.71440905777058,0,0,0,0,0,0,0,0,0,0,0,0,1276.8952887158105,1295.7166354310327,1315.2007097224748,1335.3571652922208,1356.1956049128471,1377.7255816681188,1399.9566001406731,1422.8981175498843,1446.559544842873,1470.9502477413887,1496.0795477470858,1521.9567231075471,2438.9160160050942,2523.6340347797795,2611.3351008408345,2702.0626671104555,2795.8599572686321,2892.7699713377342,2992.8354910284688,3096.0990848616029,3202.6031130787778,3312.389732354698,3425.500900322053,3541.9783799197435]
[1000332625,4,1,1,1,3,3.0306803023566031,3,3,3,3.0230632761679481,2.1694249845207684E-2,0,0,0,1.6308198974734206E-2,0.12304063405958204,0,0,0,0.3677509745712596,2262.1644357606792,2402.8305221431542,2549.1963149468606,2701.3741968558461,2859.4765197042443,3023.6156050779236,3193.9037448932627,3370.453201954324,3553.376210489645,3742.7849766696972,3938.7916791060711,4141.5084693333101,0,0,0,0,0,0,0,0,0,0,0,0,0,0,0,0,0,0,0,0,0,0,0,0,0,0,0,0,0,0,0,0,0,0,0,0,1097.0922020690277,1165.311675431002,1236.2953614072169,1310.0977627404291,1386.7733672119723,1466.3766479335409,1548.9620636278812,1634.5840588990075,1723.297064492531,1815.1554975466147,1910.2137618340651,2008.5262479960104,0,0,0,0,0,0,0,0,0,0,0,0,1904.4677835771813,1964.1294845536117,2026.208642281006,2090.7529224210953,2157.8099775510191,2227.4274474185058,2299.652959187355,2374.5341276737518,2452.1185555739448,2532.453833683714,2615.5875411100978,2701.5672454757564,5263.7244214068887,5532.2716821277681,5811.700318635083,6102.22488201737,6404.0598644672355,6717.4197004299704,7042.5187677084996,7379.5713885270834,7728.7918305561207,8090.3943079000264,8464.5929820502333,8851.6019628050781]
[1000332657,4,1,1,1,3,3.0306803023566031,3,3,3,3.0230632761679481,2.1694249845207684E-2,0,0,0,1.6308198974734206E-2,0.12304063405958204,0,0,0,0.3677509745712596,1656.2420549359613,1756.5594931548401,1860.7848417364414,1968.9892234267761,2081.2436366486231,2197.6189581040876,2318.1859452746135,2443.0152388243255,2572.1773649121155,2705.7427374175149,2843.7816600850119,2986.3643285911803,0,0,0,0,0,0,0,0,0,0,0,0,0,0,0,0,0,0,0,0,0,0,0,0,0,0,0,0,0,0,0,0,0,0,0,0,803.23526198395939,851.88666745283979,902.43331003072603,954.90968244007706,1009.3502171097466,1065.7892874371582,1124.2612090007476,1184.8002407255235,1247.4405860043678,1312.2163937775304,1379.1617595725666,1448.3107265068427,0,0,0,0,0,0,0,0,0,0,0,0,1647.4736435582613,1690.0219873393103,1734.2278207505856,1780.1213095848111,1827.7325669046204,1877.0916541463971,1928.2285821806245,1981.173312331231,2035.9557573562306,2092.605782391799,2151.1532058617599,2211.6278003543271,4106.9509604781815,4298.46814794699,4497.445972517753,4704.0202154516646,4918.3264206629901,5140.4998996876429,5370.6757364559853,5608.98879188108,5855.5737082727137,6110.5649135868443,6374.096625519338,6646.3028554523498]
[1000332778,4,1,1,1,3,3.0306803023566031,3,3,3,3.0230632761679481,2.1694249845207684E-2,0,0,0,1.6308198974734206E-2,0.12304063405958204,0,0,0,0.3677509745712596,1074.4177691081893,1138.7558890935766,1205.5293811990873,1274.7789533114706,1346.5451674393178,1420.8684430817493,1497.7890604561005,1577.3471635930578,1659.5827633070335,1744.5357400489818,1832.245846648339,1922.7527109502378,0,0,0,0,0,0,0,0,0,0,0,0,0,0,0,0,0,0,0,0,0,0,0,0,0,0,0,0,0,0,0,0,0,0,0,0,521.0652849188798,552.26763635537702,584.65108131446993,618.23536208562689,653.04015021112048,689.08504811975558,726.38959069221403,764.97324676211849,804.85542055658675,846.05545307977627,888.59262344265528,932.4861501419839,0,0,0,0,0,0,0,0,0,0,0,0,1400.7003988154079,1427.988580172191,1456.3096931113746,1485.6810033565534,1516.119714758988,1547.642970726391,1580.2678555919069,1614.0113959268754,1648.8905618006756,1684.9222679907132,1722.1233751453774,1760.5106909025819,2996.183452842477,3119.0121056211447,3246.490155624932,3378.695318753651,3515.7050324094262,3657.5964619278957,3804.4465067402216,3956.3318062820517,4113.3287456642956,4275.5134611194717,4442.961845236372,4615.7495519948034]
[1000332841,4,1,1,1,3,3.0306803023566031,3,3,3,3.0230632761679481,2.1694249845207684E-2,0,0,0,1.6308198974734206E-2,0.12304063405958204,0,0,0,0.3677509745712596,698.36363145339078,739.68296992500564,782.51894579536281,826.89456934528289,872.832724518654,920.35617212298052,969.48755288782002,1020.2493903900088,1072.6640938538956,1126.7539608341217,1182.5411797879206,1240.0478325433839,0,0,0,0,0,0,0,0,0,0,0,0,0,0,0,0,0,0,0,0,0,0,0,0,0,0,0,0,0,0,0,0,0,0,0,0,338.68859494225489,358.72742294045759,379.5017814939211,401.02283000346387,423.30166659970598,446.34932969525403,470.17679946796505,494.79499927960688,520.21479703389991,546.44700647759703,573.50238844798412,601.3916520699255,0,0,0,0,0,0,0,0,0,0,0,0,1241.2019007146939,1258.7269636480189,1276.8952887158105,1295.7166354310327,1315.2007097224748,1335.3571652922208,1356.1956049128471,1377.7255816681188,1399.9566001406731,1422.8981175498843,1446.559544842873,1470.9502477413887,2278.2541271103396,2357.1373565134822,2438.9160160050942,2523.6340347797795,2611.3351008408345,2702.0626671104555,2795.8599572686321,2892.7699713377342,2992.8354910284688,3096.0990848616029,3202.6031130787778,3312.389732354698]
[1000332870,4,1,1,1,3,3.0306803023566031,3,3,3,3.0230632761679481,2.1694249845207684E-2,0,0,0,1.6308198974734206E-2,0.12304063405958204,0,0,0,0.3677509745712596,698.36363145339078,739.68296992500564,782.51894579536281,826.89456934528289,872.832724518654,920.35617212298052,969.48755288782002,1020.2493903900088,1072.6640938538956,1126.7539608341217,1182.5411797879206,1240.0478325433839,0,0,0,0,0,0,0,0,0,0,0,0,0,0,0,0,0,0,0,0,0,0,0,0,0,0,0,0,0,0,0,0,0,0,0,0,338.68859494225489,358.72742294045759,379.5017814939211,401.02283000346387,423.30166659970598,446.34932969525403,470.17679946796505,494.79499927960688,520.21479703389991,546.44700647759703,573.50238844798412,601.3916520699255,0,0,0,0,0,0,0,0,0,0,0,0,1241.2019007146939,1258.7269636480189,1276.8952887158105,1295.7166354310327,1315.2007097224748,1335.3571652922208,1356.1956049128471,1377.7255816681188,1399.9566001406731,1422.8981175498843,1446.559544842873,1470.9502477413887,2278.2541271103396,2357.1373565134822,2438.9160160050942,2523.6340347797795,2611.3351008408345,2702.0626671104555,2795.8599572686321,2892.7699713377342,2992.8354910284688,3096.0990848616029,3202.6031130787778,3312.389732354698]
[1000332902,4,1,1,1,3,3.0306803023566031,3,3,3,3.0230632761679481,2.1694249845207684E-2,0,0,0,1.6308198974734206E-2,0.12304063405958204,0,0,0,0.3677509745712596,698.36363145339078,739.68296992500564,782.51894579536281,826.89456934528289,872.832724518654,920.35617212298052,969.48755288782002,1020.2493903900088,1072.6640938538956,1126.7539608341217,1182.5411797879206,1240.0478325433839,0,0,0,0,0,0,0,0,0,0,0,0,0,0,0,0,0,0,0,0,0,0,0,0,0,0,0,0,0,0,0,0,0,0,0,0,338.68859494225489,358.72742294045759,379.5017814939211,401.02283000346387,423.30166659970598,446.34932969525403,470.17679946796505,494.79499927960688,520.21479703389991,546.44700647759703,573.50238844798412,601.3916520699255,0,0,0,0,0,0,0,0,0,0,0,0,1241.2019007146939,1258.7269636480189,1276.8952887158105,1295.7166354310327,1315.2007097224748,1335.3571652922208,1356.1956049128471,1377.7255816681188,1399.9566001406731,1422.8981175498843,1446.559544842873,1470.9502477413887,2278.2541271103396,2357.1373565134822,2438.9160160050942,2523.6340347797795,2611.3351008408345,2702.0626671104555,2795.8599572686321,2892.7699713377342,2992.8354910284688,3096.0990848616029,3202.6031130787778,3312.389732354698]
[1000332930,4,1,1,1,3,3.0306803023566031,3,3,3,3.0230632761679481,2.1694249845207684E-2,0,0,0,1.6308198974734206E-2,0.12304063405958204,0,0,0,0.3677509745712596,739.68296992500564,782.51894579536281,826.89456934528289,872.832724518654,920.35617212298052,969.48755288782002,1020.2493903900088,1072.6640938538956,1126.7539608341217,1182.5411797879206,1240.0478325433839,1299.2958966696308,0,0,0,0,0,0,0,0,0,0,0,0,0,0,0,0,0,0,0,0,0,0,0,0,0,0,0,0,0,0,0,0,0,0,0,0,358.72742294045759,379.5017814939211,401.02283000346387,423.30166659970598,446.34932969525403,470.17679946796505,494.79499927960688,520.21479703389991,546.44700647759703,573.50238844798412,601.3916520699255,630.12545590533682,0,0,0,0,0,0,0,0,0,0,0,0,1258.7269636480189,1276.8952887158105,1295.7166354310327,1315.2007097224748,1335.3571652922208,1356.1956049128471,1377.7255816681188,1399.9566001406731,1422.8981175498843,1446.559544842873,1470.9502477413887,1496.0795477470858,2357.1373565134822,2438.9160160050942,2523.6340347797795,2611.3351008408345,2702.0626671104555,2795.8599572686321,2892.7699713377342,2992.8354910284688,3096.0990848616029,3202.6031130787778,3312.389732354698,3425.500900322053]
[1000336019,4,1,1,1,3,3.0306803023566031,3,3,3,3.0230632761679481,2.1694249845207684E-2,0,0,0,1.6308198974734206E-2,0.12304063405958204,0,0,0,0.3677509745712596,698.36363145339078,739.68296992500564,782.51894579536281,826.89456934528289,872.832724518654,920.35617212298052,969.48755288782002,1020.2493903900088,1072.6640938538956,1126.7539608341217,1182.5411797879206,1240.0478325433839,0,0,0,0,0,0,0,0,0,0,0,0,0,0,0,0,0,0,0,0,0,0,0,0,0,0,0,0,0,0,0,0,0,0,0,0,338.68859494225489,358.72742294045759,379.5017814939211,401.02283000346387,423.30166659970598,446.34932969525403,470.17679946796505,494.79499927960688,520.21479703389991,546.44700647759703,573.50238844798412,601.3916520699255,0,0,0,0,0,0,0,0,0,0,0,0,1241.2019007146939,1258.7269636480189,1276.8952887158105,1295.7166354310327,1315.2007097224748,1335.3571652922208,1356.1956049128471,1377.7255816681188,1399.9566001406731,1422.8981175498843,1446.559544842873,1470.9502477413887,2278.2541271103396,2357.1373565134822,2438.9160160050942,2523.6340347797795,2611.3351008408345,2702.0626671104555,2795.8599572686321,2892.7699713377342,2992.8354910284688,3096.0990848616029,3202.6031130787778,3312.389732354698]
[1000336048,4,1,1,1,3,3.0306803023566031,3,3,3,3.0230632761679481,2.1694249845207684E-2,0,0,0,1.6308198974734206E-2,0.12304063405958204,0,0,0,0.3677509745712596,312.26500232903965,337.23061041350149,363.4254683496606,390.8744203744061,419.60213021697916,449.63308711207839,480.99161146397978,513.7018601901292,547.78783176970308,583.27337102005492,620.18217362168446,658.53779041037683,0,0,0,0,0,0,0,0,0,0,0,0,0,0,0,0,0,0,0,0,0,0,0,0,0,0,0,0,0,0,0,0,0,0,0,0,151.44058213392361,163.54826693189656,176.25210663592875,189.56415006887616,203.49635851197752,218.06060862105755,233.26869517348106,249.13233365965937,265.66316273147368,282.8727465187302,300.7725768236553,319.37407520247342,0,0,0,0,0,0,0,0,0,0,0,0,1077.443161486013,1088.0320012165785,1099.142211370985,1110.7843293109406,1122.9688158381693,1135.7060577447921,1149.0063702156904,1162.8799990949205,1177.3371230269972,1192.3878554827602,1208.0422466785822,1224.310285396823,1541.1487459489761,1588.8108785619766,1638.8197863565745,1691.2228997542229,1746.067304567126,1803.399753477928,1863.2666768531512,1925.7141929447089,1990.7881175281741,2058.5339730215455,2128.996997123922,2202.2221510096733]
[1000336078,4,1,1,1,3,3.0306803023566031,3,3,3,3.0230632761679481,2.1694249845207684E-2,0,0,0,1.6308198974734206E-2,0.12304063405958204,0,0,0,0.3677509745712596,1012.4741639591531,1074.4177691081893,1138.7558890935766,1205.5293811990873,1274.7789533114706,1346.5451674393178,1420.8684430817493,1497.7890604561005,1577.3471635930578,1659.5827633070335,1744.5357400489818,1832.245846648339,0,0,0,0,0,0,0,0,0,0,0,0,0,0,0,0,0,0,0,0,0,0,0,0,0,0,0,0,0,0,0,0,0,0,0,0,491.024212261755,521.0652849188798,552.26763635537702,584.65108131446993,618.23536208562689,653.04015021112048,689.08504811975558,726.38959069221403,764.97324676211849,804.85542055658675,846.05545307977627,888.59262344265528,0,0,0,0,0,0,0,0,0,0,0,0,1374.4278199526159,1400.7003988154079,1427.988580172191,1456.3096931113746,1485.6810033565534,1516.119714758988,1547.642970726391,1580.2678555919069,1614.0113959268754,1648.8905618006756,1684.9222679907132,1722.1233751453774,2877.9261961735237,2996.183452842477,3119.0121056211447,3246.490155624932,3378.695318753651,3515.7050324094262,3657.5964619278957,3804.4465067402216,3956.3318062820517,4113.3287456642956,4275.5134611194717,4442.961845236372]
[1000336106,4,1,1,1,3,3.0306803023566031,3,3,3,3.0230632761679481,2.1694249845207684E-2,0,0,0,1.6308198974734206E-2,0.12304063405958204,0,0,0,0.3677509745712596,224.19149595049328,244.49238997319185,265.92121744920513,288.50361295780101,312.26500232903965,337.23061041350149,363.4254683496606,390.8744203744061,419.60213021697916,449.63308711207839,480.99161146397978,513.7018601901292,0,0,0,0,0,0,0,0,0,0,0,0,0,0,0,0,0,0,0,0,0,0,0,0,0,0,0,0,0,0,0,0,0,0,0,0,108.72717212299804,118.57258927095313,128.96502544923271,139.91691277664015,151.44058213392361,163.54826693189656,176.25210663592875,189.56415006887616,203.49635851197752,218.06060862105755,233.26869517348106,249.13233365965937,0,0,0,0,0,0,0,0,0,0,0,0,1040.0879230157029,1048.6982846166022,1057.7870446015299,1067.3650755456906,1077.443161486013,1088.0320012165785,1099.142211370985,1110.7843293109406,1122.9688158381693,1135.7060577447921,1149.0063702156904,1162.8799990949205,1373.0065910891944,1411.7632638607472,1452.6732874999677,1495.7856012801317,1541.1487459489761,1588.8108785619766,1638.8197863565745,1691.2228997542229,1746.067304567126,1803.399753477928,1863.2666768531512,1925.7141929447089]
[1000336136,4,1,1,1,3,3.0306803023566031,3,3,3,3.0230632761679481,2.1694249845207684E-2,0,0,0,1.6308198974734206E-2,0.12304063405958204,0,0,0,0.3677509745712596,698.36363145339078,739.68296992500564,782.51894579536281,826.89456934528289,872.832724518654,920.35617212298052,969.48755288782002,1020.2493903900088,1072.6640938538956,1126.7539608341217,1182.5411797879206,1240.0478325433839,0,0,0,0,0,0,0,0,0,0,0,0,0,0,0,0,0,0,0,0,0,0,0,0,0,0,0,0,0,0,0,0,0,0,0,0,338.68859494225489,358.72742294045759,379.5017814939211,401.02283000346387,423.30166659970598,446.34932969525403,470.17679946796505,494.79499927960688,520.21479703389991,546.44700647759703,573.50238844798412,601.3916520699255,0,0,0,0,0,0,0,0,0,0,0,0,1241.2019007146939,1258.7269636480189,1276.8952887158105,1295.7166354310327,1315.2007097224748,1335.3571652922208,1356.1956049128471,1377.7255816681188,1399.9566001406731,1422.8981175498843,1446.559544842873,1470.9502477413887,2278.2541271103396,2357.1373565134822,2438.9160160050942,2523.6340347797795,2611.3351008408345,2702.0626671104555,2795.8599572686321,2892.7699713377342,2992.8354910284688,3096.0990848616029,3202.6031130787778,3312.389732354698]
[1000336165,4,1,1,1,3,3.0306803023566031,3,3,3,3.0230632761679481,2.1694249845207684E-2,0,0,0,1.6308198974734206E-2,0.12304063405958204,0,0,0,0.3677509745712596,1378.0240523890004,1467.045780601758,1559.761277299122,1656.2420549359613,1756.5594931548401,1860.7848417364414,1968.9892234267761,2081.2436366486231,2197.6189581040876,2318.1859452746135,2443.0152388243255,2572.1773649121155,0,0,0,0,0,0,0,0,0,0,0,0,0,0,0,0,0,0,0,0,0,0,0,0,0,0,0,0,0,0,0,0,0,0,0,0,668.3066085915043,711.47988206933769,756.44453929304268,803.23526198395939,851.88666745283979,902.43331003072603,954.90968244007706,1009.3502171097466,1065.7892874371582,1124.2612090007476,1184.8002407255235,1247.4405860043678,0,0,0,0,0,0,0,0,0,0,0,0,1529.4710766205308,1567.228491116256,1606.5525697346011,1647.4736435582613,1690.0219873393103,1734.2278207505856,1780.1213095848111,1827.7325669046204,1877.0916541463971,1928.2285821806245,1981.173312331231,2035.9557573562306,3575.8017376010357,3745.7541537873517,3922.758386326766,4106.9509604781815,4298.46814794699,4497.445972517753,4704.0202154516646,4918.3264206629901,5140.4998996876429,5370.6757364559853,5608.98879188108,5855.5737082727137]
[1000336194,4,1,1,1,3,3.0306803023566031,3,3,3,3.0230632761679481,2.1694249845207684E-2,0,0,0,1.6308198974734206E-2,0.12304063405958204,0,0,0,0.3677509745712596,952.88406328666952,1012.4741639591531,1074.4177691081893,1138.7558890935766,1205.5293811990873,1274.7789533114706,1346.5451674393178,1420.8684430817493,1497.7890604561005,1577.3471635930578,1659.5827633070335,1744.5357400489818,0,0,0,0,0,0,0,0,0,0,0,0,0,0,0,0,0,0,0,0,0,0,0,0,0,0,0,0,0,0,0,0,0,0,0,0,462.12452940280019,491.024212261755,521.0652849188798,552.26763635537702,584.65108131446993,618.23536208562689,653.04015021112048,689.08504811975558,726.38959069221403,764.97324676211849,804.85542055658675,846.05545307977627,0,0,0,0,0,0,0,0,0,0,0,0,1349.1534495701892,1374.4278199526159,1400.7003988154079,1427.988580172191,1456.3096931113746,1485.6810033565534,1516.119714758988,1547.642970726391,1580.2678555919069,1614.0113959268754,1648.8905618006756,1684.9222679907132,2764.1620422596588,2877.9261961735237,2996.183452842477,3119.0121056211447,3246.490155624932,3378.695318753651,3515.7050324094262,3657.5964619278957,3804.4465067402216,3956.3318062820517,4113.3287456642956,4275.5134611194717]
[1000336225,4,1,1,1,3,3.0306803023566031,3,3,3,3.0230632761679481,2.1694249845207684E-2,0,0,0,1.6308198974734206E-2,0.12304063405958204,0,0,0,0.3677509745712596,1378.0240523890004,1467.045780601758,1559.761277299122,1656.2420549359613,1756.5594931548401,1860.7848417364414,1968.9892234267761,2081.2436366486231,2197.6189581040876,2318.1859452746135,2443.0152388243255,2572.1773649121155,0,0,0,0,0,0,0,0,0,0,0,0,0,0,0,0,0,0,0,0,0,0,0,0,0,0,0,0,0,0,0,0,0,0,0,0,668.3066085915043,711.47988206933769,756.44453929304268,803.23526198395939,851.88666745283979,902.43331003072603,954.90968244007706,1009.3502171097466,1065.7892874371582,1124.2612090007476,1184.8002407255235,1247.4405860043678,0,0,0,0,0,0,0,0,0,0,0,0,1529.4710766205308,1567.228491116256,1606.5525697346011,1647.4736435582613,1690.0219873393103,1734.2278207505856,1780.1213095848111,1827.7325669046204,1877.0916541463971,1928.2285821806245,1981.173312331231,2035.9557573562306,3575.8017376010357,3745.7541537873517,3922.758386326766,4106.9509604781815,4298.46814794699,4497.445972517753,4704.0202154516646,4918.3264206629901,5140.4998996876429,5370.6757364559853,5608.98879188108,5855.5737082727137]
[1000336313,4,1,1,1,3,3.0306803023566031,3,3,3,3.0230632761679481,2.1694249845207684E-2,0,0,0,1.6308198974734206E-2,0.12304063405958204,0,0,0,0.3677509745712596,658.53779041037683,698.36363145339078,739.68296992500564,782.51894579536281,826.89456934528289,872.832724518654,920.35617212298052,969.48755288782002,1020.2493903900088,1072.6640938538956,1126.7539608341217,1182.5411797879206,0,0,0,0,0,0,0,0,0,0,0,0,0,0,0,0,0,0,0,0,0,0,0,0,0,0,0,0,0,0,0,0,0,0,0,0,319.37407520247342,338.68859494225489,358.72742294045759,379.5017814939211,401.02283000346387,423.30166659970598,446.34932969525403,470.17679946796505,494.79499927960688,520.21479703389991,546.44700647759703,573.50238844798412,0,0,0,0,0,0,0,0,0,0,0,0,1224.310285396823,1241.2019007146939,1258.7269636480189,1276.8952887158105,1295.7166354310327,1315.2007097224748,1335.3571652922208,1356.1956049128471,1377.7255816681188,1399.9566001406731,1422.8981175498843,1446.559544842873,2202.2221510096733,2278.2541271103396,2357.1373565134822,2438.9160160050942,2523.6340347797795,2611.3351008408345,2702.0626671104555,2795.8599572686321,2892.7699713377342,2992.8354910284688,3096.0990848616029,3202.6031130787778]
[1000336348,4,1,1,1,3,3.0306803023566031,3,3,3,3.0230632761679481,2.1694249845207684E-2,0,0,0,1.6308198974734206E-2,0.12304063405958204,0,0,0,0.3677509745712596,698.36363145339078,739.68296992500564,782.51894579536281,826.89456934528289,872.832724518654,920.35617212298052,969.48755288782002,1020.2493903900088,1072.6640938538956,1126.7539608341217,1182.5411797879206,1240.0478325433839,0,0,0,0,0,0,0,0,0,0,0,0,0,0,0,0,0,0,0,0,0,0,0,0,0,0,0,0,0,0,0,0,0,0,0,0,338.68859494225489,358.72742294045759,379.5017814939211,401.02283000346387,423.30166659970598,446.34932969525403,470.17679946796505,494.79499927960688,520.21479703389991,546.44700647759703,573.50238844798412,601.3916520699255,0,0,0,0,0,0,0,0,0,0,0,0,1241.2019007146939,1258.7269636480189,1276.8952887158105,1295.7166354310327,1315.2007097224748,1335.3571652922208,1356.1956049128471,1377.7255816681188,1399.9566001406731,1422.8981175498843,1446.559544842873,1470.9502477413887,2278.2541271103396,2357.1373565134822,2438.9160160050942,2523.6340347797795,2611.3351008408345,2702.0626671104555,2795.8599572686321,2892.7699713377342,2992.8354910284688,3096.0990848616029,3202.6031130787778,3312.389732354698]
[1000336383,4,1,1,1,3,3.0306803023566031,3,3,3,3.0230632761679481,2.1694249845207684E-2,0,0,0,1.6308198974734206E-2,0.12304063405958204,0,0,0,0.3677509745712596,952.88406328666952,1012.4741639591531,1074.4177691081893,1138.7558890935766,1205.5293811990873,1274.7789533114706,1346.5451674393178,1420.8684430817493,1497.7890604561005,1577.3471635930578,1659.5827633070335,1744.5357400489818,0,0,0,0,0,0,0,0,0,0,0,0,0,0,0,0,0,0,0,0,0,0,0,0,0,0,0,0,0,0,0,0,0,0,0,0,462.12452940280019,491.024212261755,521.0652849188798,552.26763635537702,584.65108131446993,618.23536208562689,653.04015021112048,689.08504811975558,726.38959069221403,764.97324676211849,804.85542055658675,846.05545307977627,0,0,0,0,0,0,0,0,0,0,0,0,1349.1534495701892,1374.4278199526159,1400.7003988154079,1427.988580172191,1456.3096931113746,1485.6810033565534,1516.119714758988,1547.642970726391,1580.2678555919069,1614.0113959268754,1648.8905618006756,1684.9222679907132,2764.1620422596588,2877.9261961735237,2996.183452842477,3119.0121056211447,3246.490155624932,3378.695318753651,3515.7050324094262,3657.5964619278957,3804.4465067402216,3956.3318062820517,4113.3287456642956,4275.5134611194717]
[1000336450,4,1,1,1,3,3.0306803023566031,3,3,3,3.0230632761679481,2.1694249845207684E-2,0,0,0,1.6308198974734206E-2,0.12304063405958204,0,0,0,0.3677509745712596,895.60629980489841,952.88406328666952,1012.4741639591531,1074.4177691081893,1138.7558890935766,1205.5293811990873,1274.7789533114706,1346.5451674393178,1420.8684430817493,1497.7890604561005,1577.3471635930578,1659.5827633070335,0,0,0,0,0,0,0,0,0,0,0,0,0,0,0,0,0,0,0,0,0,0,0,0,0,0,0,0,0,0,0,0,0,0,0,0,434.34627125567533,462.12452940280019,491.024212261755,521.0652849188798,552.26763635537702,584.65108131446993,618.23536208562689,653.04015021112048,689.08504811975558,726.38959069221403,764.97324676211849,804.85542055658675,0,0,0,0,0,0,0,0,0,0,0,0,1324.8598270963512,1349.1534495701892,1374.4278199526159,1400.7003988154079,1427.988580172191,1456.3096931113746,1485.6810033565534,1516.119714758988,1547.642970726391,1580.2678555919069,1614.0113959268754,1648.8905618006756,2654.8123981569247,2764.1620422596588,2877.9261961735237,2996.183452842477,3119.0121056211447,3246.490155624932,3378.695318753651,3515.7050324094262,3657.5964619278957,3804.4465067402216,3956.3318062820517,4113.3287456642956]
[1000336477,4,1,1,1,3,3.0306803023566031,3,3,3,3.0230632761679481,2.1694249845207684E-2,0,0,0,1.6308198974734206E-2,0.12304063405958204,0,0,0,0.3677509745712596,583.27337102005492,620.18217362168446,658.53779041037683,698.36363145339078,739.68296992500564,782.51894579536281,826.89456934528289,872.832724518654,920.35617212298052,969.48755288782002,1020.2493903900088,1072.6640938538956,0,0,0,0,0,0,0,0,0,0,0,0,0,0,0,0,0,0,0,0,0,0,0,0,0,0,0,0,0,0,0,0,0,0,0,0,282.8727465187302,300.7725768236553,319.37407520247342,338.68859494225489,358.72742294045759,379.5017814939211,401.02283000346387,423.30166659970598,446.34932969525403,470.17679946796505,494.79499927960688,520.21479703389991,0,0,0,0,0,0,0,0,0,0,0,0,1192.3878554827602,1208.0422466785822,1224.310285396823,1241.2019007146939,1258.7269636480189,1276.8952887158105,1295.7166354310327,1315.2007097224748,1335.3571652922208,1356.1956049128471,1377.7255816681188,1399.9566001406731,2058.5339730215455,2128.996997123922,2202.2221510096733,2278.2541271103396,2357.1373565134822,2438.9160160050942,2523.6340347797795,2611.3351008408345,2702.0626671104555,2795.8599572686321,2892.7699713377342,2992.8354910284688]
[1000336508,4,1,1,1,3,3.0306803023566031,3,3,3,3.0230632761679481,2.1694249845207684E-2,0,0,0,1.6308198974734206E-2,0.12304063405958204,0,0,0,0.3677509745712596,583.27337102005492,620.18217362168446,658.53779041037683,698.36363145339078,739.68296992500564,782.51894579536281,826.89456934528289,872.832724518654,920.35617212298052,969.48755288782002,1020.2493903900088,1072.6640938538956,0,0,0,0,0,0,0,0,0,0,0,0,0,0,0,0,0,0,0,0,0,0,0,0,0,0,0,0,0,0,0,0,0,0,0,0,282.8727465187302,300.7725768236553,319.37407520247342,338.68859494225489,358.72742294045759,379.5017814939211,401.02283000346387,423.30166659970598,446.34932969525403,470.17679946796505,494.79499927960688,520.21479703389991,0,0,0,0,0,0,0,0,0,0,0,0,1192.3878554827602,1208.0422466785822,1224.310285396823,1241.2019007146939,1258.7269636480189,1276.8952887158105,1295.7166354310327,1315.2007097224748,1335.3571652922208,1356.1956049128471,1377.7255816681188,1399.9566001406731,2058.5339730215455,2128.996997123922,2202.2221510096733,2278.2541271103396,2357.1373565134822,2438.9160160050942,2523.6340347797795,2611.3351008408345,2702.0626671104555,2795.8599572686321,2892.7699713377342,2992.8354910284688]
[1000336536,4,1,1,1,3,3.0306803023566031,3,3,3,3.0230632761679481,2.1694249845207684E-2,0,0,0,1.6308198974734206E-2,0.12304063405958204,0,0,0,0.3677509745712596,583.27337102005492,620.18217362168446,658.53779041037683,698.36363145339078,739.68296992500564,782.51894579536281,826.89456934528289,872.832724518654,920.35617212298052,969.48755288782002,1020.2493903900088,1072.6640938538956,0,0,0,0,0,0,0,0,0,0,0,0,0,0,0,0,0,0,0,0,0,0,0,0,0,0,0,0,0,0,0,0,0,0,0,0,282.8727465187302,300.7725768236553,319.37407520247342,338.68859494225489,358.72742294045759,379.5017814939211,401.02283000346387,423.30166659970598,446.34932969525403,470.17679946796505,494.79499927960688,520.21479703389991,0,0,0,0,0,0,0,0,0,0,0,0,1192.3878554827602,1208.0422466785822,1224.310285396823,1241.2019007146939,1258.7269636480189,1276.8952887158105,1295.7166354310327,1315.2007097224748,1335.3571652922208,1356.1956049128471,1377.7255816681188,1399.9566001406731,2058.5339730215455,2128.996997123922,2202.2221510096733,2278.2541271103396,2357.1373565134822,2438.9160160050942,2523.6340347797795,2611.3351008408345,2702.0626671104555,2795.8599572686321,2892.7699713377342,2992.8354910284688]
[1000336594,4,1,1,1,3,3.0306803023566031,3,3,3,3.0230632761679481,2.1694249845207684E-2,0,0,0,1.6308198974734206E-2,0.12304063405958204,0,0,0,0.3677509745712596,620.18217362168446,658.53779041037683,698.36363145339078,739.68296992500564,782.51894579536281,826.89456934528289,872.832724518654,920.35617212298052,969.48755288782002,1020.2493903900088,1072.6640938538956,1126.7539608341217,0,0,0,0,0,0,0,0,0,0,0,0,0,0,0,0,0,0,0,0,0,0,0,0,0,0,0,0,0,0,0,0,0,0,0,0,300.7725768236553,319.37407520247342,338.68859494225489,358.72742294045759,379.5017814939211,401.02283000346387,423.30166659970598,446.34932969525403,470.17679946796505,494.79499927960688,520.21479703389991,546.44700647759703,0,0,0,0,0,0,0,0,0,0,0,0,1208.0422466785822,1224.310285396823,1241.2019007146939,1258.7269636480189,1276.8952887158105,1295.7166354310327,1315.2007097224748,1335.3571652922208,1356.1956049128471,1377.7255816681188,1399.9566001406731,1422.8981175498843,2128.996997123922,2202.2221510096733,2278.2541271103396,2357.1373565134822,2438.9160160050942,2523.6340347797795,2611.3351008408345,2702.0626671104555,2795.8599572686321,2892.7699713377342,2992.8354910284688,3096.0990848616029]
[1000336623,4,1,1,1,3,3.0306803023566031,3,3,3,3.0230632761679481,2.1694249845207684E-2,0,0,0,1.6308198974734206E-2,0.12304063405958204,0,0,0,0.3677509745712596,547.78783176970308,583.27337102005492,620.18217362168446,658.53779041037683,698.36363145339078,739.68296992500564,782.51894579536281,826.89456934528289,872.832724518654,920.35617212298052,969.48755288782002,1020.2493903900088,0,0,0,0,0,0,0,0,0,0,0,0,0,0,0,0,0,0,0,0,0,0,0,0,0,0,0,0,0,0,0,0,0,0,0,0,265.66316273147368,282.8727465187302,300.7725768236553,319.37407520247342,338.68859494225489,358.72742294045759,379.5017814939211,401.02283000346387,423.30166659970598,446.34932969525403,470.17679946796505,494.79499927960688,0,0,0,0,0,0,0,0,0,0,0,0,1177.3371230269972,1192.3878554827602,1208.0422466785822,1224.310285396823,1241.2019007146939,1258.7269636480189,1276.8952887158105,1295.7166354310327,1315.2007097224748,1335.3571652922208,1356.1956049128471,1377.7255816681188,1990.7881175281741,2058.5339730215455,2128.996997123922,2202.2221510096733,2278.2541271103396,2357.1373565134822,2438.9160160050942,2523.6340347797795,2611.3351008408345,2702.0626671104555,2795.8599572686321,2892.7699713377342]
[1000336651,4,1,1,1,3,3.0306803023566031,3,3,3,3.0230632761679481,2.1694249845207684E-2,0,0,0,1.6308198974734206E-2,0.12304063405958204,0,0,0,0.3677509745712596,952.88406328666952,1012.4741639591531,1074.4177691081893,1138.7558890935766,1205.5293811990873,1274.7789533114706,1346.5451674393178,1420.8684430817493,1497.7890604561005,1577.3471635930578,1659.5827633070335,1744.5357400489818,0,0,0,0,0,0,0,0,0,0,0,0,0,0,0,0,0,0,0,0,0,0,0,0,0,0,0,0,0,0,0,0,0,0,0,0,462.12452940280019,491.024212261755,521.0652849188798,552.26763635537702,584.65108131446993,618.23536208562689,653.04015021112048,689.08504811975558,726.38959069221403,764.97324676211849,804.85542055658675,846.05545307977627,0,0,0,0,0,0,0,0,0,0,0,0,1349.1534495701892,1374.4278199526159,1400.7003988154079,1427.988580172191,1456.3096931113746,1485.6810033565534,1516.119714758988,1547.642970726391,1580.2678555919069,1614.0113959268754,1648.8905618006756,1684.9222679907132,2764.1620422596588,2877.9261961735237,2996.183452842477,3119.0121056211447,3246.490155624932,3378.695318753651,3515.7050324094262,3657.5964619278957,3804.4465067402216,3956.3318062820517,4113.3287456642956,4275.5134611194717]
[1000336679,4,1,1,1,3,3.0306803023566031,3,3,3,3.0230632761679481,2.1694249845207684E-2,0,0,0,1.6308198974734206E-2,0.12304063405958204,0,0,0,0.3677509745712596,620.18217362168446,658.53779041037683,698.36363145339078,739.68296992500564,782.51894579536281,826.89456934528289,872.832724518654,920.35617212298052,969.48755288782002,1020.2493903900088,1072.6640938538956,1126.7539608341217,0,0,0,0,0,0,0,0,0,0,0,0,0,0,0,0,0,0,0,0,0,0,0,0,0,0,0,0,0,0,0,0,0,0,0,0,300.7725768236553,319.37407520247342,338.68859494225489,358.72742294045759,379.5017814939211,401.02283000346387,423.30166659970598,446.34932969525403,470.17679946796505,494.79499927960688,520.21479703389991,546.44700647759703,0,0,0,0,0,0,0,0,0,0,0,0,1208.0422466785822,1224.310285396823,1241.2019007146939,1258.7269636480189,1276.8952887158105,1295.7166354310327,1315.2007097224748,1335.3571652922208,1356.1956049128471,1377.7255816681188,1399.9566001406731,1422.8981175498843,2128.996997123922,2202.2221510096733,2278.2541271103396,2357.1373565134822,2438.9160160050942,2523.6340347797795,2611.3351008408345,2702.0626671104555,2795.8599572686321,2892.7699713377342,2992.8354910284688,3096.0990848616029]
[1000336708,4,1,1,1,3,3.0306803023566031,3,3,3,3.0230632761679481,2.1694249845207684E-2,0,0,0,1.6308198974734206E-2,0.12304063405958204,0,0,0,0.3677509745712596,620.18217362168446,658.53779041037683,698.36363145339078,739.68296992500564,782.51894579536281,826.89456934528289,872.832724518654,920.35617212298052,969.48755288782002,1020.2493903900088,1072.6640938538956,1126.7539608341217,0,0,0,0,0,0,0,0,0,0,0,0,0,0,0,0,0,0,0,0,0,0,0,0,0,0,0,0,0,0,0,0,0,0,0,0,300.7725768236553,319.37407520247342,338.68859494225489,358.72742294045759,379.5017814939211,401.02283000346387,423.30166659970598,446.34932969525403,470.17679946796505,494.79499927960688,520.21479703389991,546.44700647759703,0,0,0,0,0,0,0,0,0,0,0,0,1208.0422466785822,1224.310285396823,1241.2019007146939,1258.7269636480189,1276.8952887158105,1295.7166354310327,1315.2007097224748,1335.3571652922208,1356.1956049128471,1377.7255816681188,1399.9566001406731,1422.8981175498843,2128.996997123922,2202.2221510096733,2278.2541271103396,2357.1373565134822,2438.9160160050942,2523.6340347797795,2611.3351008408345,2702.0626671104555,2795.8599572686321,2892.7699713377342,2992.8354910284688,3096.0990848616029]
[1000336737,4,1,1,1,3,3.0306803023566031,3,3,3,3.0230632761679481,2.1694249845207684E-2,0,0,0,1.6308198974734206E-2,0.12304063405958204,0,0,0,0.3677509745712596,513.7018601901292,547.78783176970308,583.27337102005492,620.18217362168446,658.53779041037683,698.36363145339078,739.68296992500564,782.51894579536281,826.89456934528289,872.832724518654,920.35617212298052,969.48755288782002,0,0,0,0,0,0,0,0,0,0,0,0,0,0,0,0,0,0,0,0,0,0,0,0,0,0,0,0,0,0,0,0,0,0,0,0,249.13233365965937,265.66316273147368,282.8727465187302,300.7725768236553,319.37407520247342,338.68859494225489,358.72742294045759,379.5017814939211,401.02283000346387,423.30166659970598,446.34932969525403,470.17679946796505,0,0,0,0,0,0,0,0,0,0,0,0,1162.8799990949205,1177.3371230269972,1192.3878554827602,1208.0422466785822,1224.310285396823,1241.2019007146939,1258.7269636480189,1276.8952887158105,1295.7166354310327,1315.2007097224748,1335.3571652922208,1356.1956049128471,1925.7141929447089,1990.7881175281741,2058.5339730215455,2128.996997123922,2202.2221510096733,2278.2541271103396,2357.1373565134822,2438.9160160050942,2523.6340347797795,2611.3351008408345,2702.0626671104555,2795.8599572686321]
[1000336855,4,1,1,1,3,3.0306803023566031,3,3,3,3.0230632761679481,2.1694249845207684E-2,0,0,0,1.6308198974734206E-2,0.12304063405958204,0,0,0,0.3677509745712596,449.63308711207839,480.99161146397978,513.7018601901292,547.78783176970308,583.27337102005492,620.18217362168446,658.53779041037683,698.36363145339078,739.68296992500564,782.51894579536281,826.89456934528289,872.832724518654,0,0,0,0,0,0,0,0,0,0,0,0,0,0,0,0,0,0,0,0,0,0,0,0,0,0,0,0,0,0,0,0,0,0,0,0,218.06060862105755,233.26869517348106,249.13233365965937,265.66316273147368,282.8727465187302,300.7725768236553,319.37407520247342,338.68859494225489,358.72742294045759,379.5017814939211,401.02283000346387,423.30166659970598,0,0,0,0,0,0,0,0,0,0,0,0,1135.7060577447921,1149.0063702156904,1162.8799990949205,1177.3371230269972,1192.3878554827602,1208.0422466785822,1224.310285396823,1241.2019007146939,1258.7269636480189,1276.8952887158105,1295.7166354310327,1315.2007097224748,1803.399753477928,1863.2666768531512,1925.7141929447089,1990.7881175281741,2058.5339730215455,2128.996997123922,2202.2221510096733,2278.2541271103396,2357.1373565134822,2438.9160160050942,2523.6340347797795,2611.3351008408345]
[1000336884,4,1,1,1,3,3.0306803023566031,3,3,3,3.0230632761679481,2.1694249845207684E-2,0,0,0,1.6308198974734206E-2,0.12304063405958204,0,0,0,0.3677509745712596,480.99161146397978,513.7018601901292,547.78783176970308,583.27337102005492,620.18217362168446,658.53779041037683,698.36363145339078,739.68296992500564,782.51894579536281,826.89456934528289,872.832724518654,920.35617212298052,0,0,0,0,0,0,0,0,0,0,0,0,0,0,0,0,0,0,0,0,0,0,0,0,0,0,0,0,0,0,0,0,0,0,0,0,233.26869517348106,249.13233365965937,265.66316273147368,282.8727465187302,300.7725768236553,319.37407520247342,338.68859494225489,358.72742294045759,379.5017814939211,401.02283000346387,423.30166659970598,446.34932969525403,0,0,0,0,0,0,0,0,0,0,0,0,1149.0063702156904,1162.8799990949205,1177.3371230269972,1192.3878554827602,1208.0422466785822,1224.310285396823,1241.2019007146939,1258.7269636480189,1276.8952887158105,1295.7166354310327,1315.2007097224748,1335.3571652922208,1863.2666768531512,1925.7141929447089,1990.7881175281741,2058.5339730215455,2128.996997123922,2202.2221510096733,2278.2541271103396,2357.1373565134822,2438.9160160050942,2523.6340347797795,2611.3351008408345,2702.0626671104555]
[1000336912,4,1,1,1,3,3.0306803023566031,3,3,3,3.0230632761679481,2.1694249845207684E-2,0,0,0,1.6308198974734206E-2,0.12304063405958204,0,0,0,0.3677509745712596,642.45017531699955,688.78954821867353,737.23291967981379,787.82230624692738,840.59954526909416,895.60629980489841,952.88406328666952,1012.4741639591531,1074.4177691081893,1138.7558890935766,1205.5293811990873,1274.7789533114706,0,0,0,0,0,0,0,0,0,0,0,0,0,0,0,0,0,0,0,0,0,0,0,0,0,0,0,0,0,0,0,0,0,0,0,0,311.57199114977402,334.04540813729739,357.5392109006138,382.07377639588162,407.66939467306582,434.34627125567533,462.12452940280019,491.024212261755,521.0652849188798,552.26763635537702,584.65108131446993,618.23536208562689,0,0,0,0,0,0,0,0,0,0,0,0,1217.4869315536284,1237.1411771546452,1257.6878065287369,1279.1446404506071,1301.5294236906875,1324.8598270963512,1349.1534495701892,1374.4278199526159,1400.7003988154079,1427.988580172191,1456.3096931113746,1485.6810033565534,2171.5090980204022,2259.9761335106164,2352.4599371091645,2449.0407230934161,2549.7983636328477,2654.8123981569247,2764.1620422596588,2877.9261961735237,2996.183452842477,3119.0121056211447,3246.490155624932,3378.695318753651]
[1000336942,4,1,1,1,3,3.0306803023566031,3,3,3,3.0230632761679481,2.1694249845207684E-2,0,0,0,1.6308198974734206E-2,0.12304063405958204,0,0,0,0.3677509745712596,642.45017531699955,688.78954821867353,737.23291967981379,787.82230624692738,840.59954526909416,895.60629980489841,952.88406328666952,1012.4741639591531,1074.4177691081893,1138.7558890935766,1205.5293811990873,1274.7789533114706,0,0,0,0,0,0,0,0,0,0,0,0,0,0,0,0,0,0,0,0,0,0,0,0,0,0,0,0,0,0,0,0,0,0,0,0,311.57199114977402,334.04540813729739,357.5392109006138,382.07377639588162,407.66939467306582,434.34627125567533,462.12452940280019,491.024212261755,521.0652849188798,552.26763635537702,584.65108131446993,618.23536208562689,0,0,0,0,0,0,0,0,0,0,0,0,1217.4869315536284,1237.1411771546452,1257.6878065287369,1279.1446404506071,1301.5294236906875,1324.8598270963512,1349.1534495701892,1374.4278199526159,1400.7003988154079,1427.988580172191,1456.3096931113746,1485.6810033565534,2171.5090980204022,2259.9761335106164,2352.4599371091645,2449.0407230934161,2549.7983636328477,2654.8123981569247,2764.1620422596588,2877.9261961735237,2996.183452842477,3119.0121056211447,3246.490155624932,3378.695318753651]
[1000336972,4,1,1,1,3,3.0306803023566031,3,3,3,3.0230632761679481,2.1694249845207684E-2,0,0,0,1.6308198974734206E-2,0.12304063405958204,0,0,0,0.3677509745712596,840.59954526909416,895.60629980489841,952.88406328666952,1012.4741639591531,1074.4177691081893,1138.7558890935766,1205.5293811990873,1274.7789533114706,1346.5451674393178,1420.8684430817493,1497.7890604561005,1577.3471635930578,0,0,0,0,0,0,0,0,0,0,0,0,0,0,0,0,0,0,0,0,0,0,0,0,0,0,0,0,0,0,0,0,0,0,0,0,407.66939467306582,434.34627125567533,462.12452940280019,491.024212261755,521.0652849188798,552.26763635537702,584.65108131446993,618.23536208562689,653.04015021112048,689.08504811975558,726.38959069221403,764.97324676211849,0,0,0,0,0,0,0,0,0,0,0,0,1301.5294236906875,1324.8598270963512,1349.1534495701892,1374.4278199526159,1400.7003988154079,1427.988580172191,1456.3096931113746,1485.6810033565534,1516.119714758988,1547.642970726391,1580.2678555919069,1614.0113959268754,2549.7983636328477,2654.8123981569247,2764.1620422596588,2877.9261961735237,2996.183452842477,3119.0121056211447,3246.490155624932,3378.695318753651,3515.7050324094262,3657.5964619278957,3804.4465067402216,3956.3318062820517]
[1000340000,4,1,1,1,3,3.0306803023566031,3,3,3,3.0230632761679481,2.1694249845207684E-2,0,0,0,1.6308198974734206E-2,0.12304063405958204,0,0,0,0.3677509745712596,449.63308711207839,480.99161146397978,513.7018601901292,547.78783176970308,583.27337102005492,620.18217362168446,658.53779041037683,698.36363145339078,739.68296992500564,782.51894579536281,826.89456934528289,872.832724518654,0,0,0,0,0,0,0,0,0,0,0,0,0,0,0,0,0,0,0,0,0,0,0,0,0,0,0,0,0,0,0,0,0,0,0,0,218.06060862105755,233.26869517348106,249.13233365965937,265.66316273147368,282.8727465187302,300.7725768236553,319.37407520247342,338.68859494225489,358.72742294045759,379.5017814939211,401.02283000346387,423.30166659970598,0,0,0,0,0,0,0,0,0,0,0,0,1135.7060577447921,1149.0063702156904,1162.8799990949205,1177.3371230269972,1192.3878554827602,1208.0422466785822,1224.310285396823,1241.2019007146939,1258.7269636480189,1276.8952887158105,1295.7166354310327,1315.2007097224748,1803.399753477928,1863.2666768531512,1925.7141929447089,1990.7881175281741,2058.5339730215455,2128.996997123922,2202.2221510096733,2278.2541271103396,2357.1373565134822,2438.9160160050942,2523.6340347797795,2611.3351008408345]
[1000340030,4,1,1,1,3,3.0306803023566031,3,3,3,3.0230632761679481,2.1694249845207684E-2,0,0,0,1.6308198974734206E-2,0.12304063405958204,0,0,0,0.3677509745712596,449.63308711207839,480.99161146397978,513.7018601901292,547.78783176970308,583.27337102005492,620.18217362168446,658.53779041037683,698.36363145339078,739.68296992500564,782.51894579536281,826.89456934528289,872.832724518654,0,0,0,0,0,0,0,0,0,0,0,0,0,0,0,0,0,0,0,0,0,0,0,0,0,0,0,0,0,0,0,0,0,0,0,0,218.06060862105755,233.26869517348106,249.13233365965937,265.66316273147368,282.8727465187302,300.7725768236553,319.37407520247342,338.68859494225489,358.72742294045759,379.5017814939211,401.02283000346387,423.30166659970598,0,0,0,0,0,0,0,0,0,0,0,0,1135.7060577447921,1149.0063702156904,1162.8799990949205,1177.3371230269972,1192.3878554827602,1208.0422466785822,1224.310285396823,1241.2019007146939,1258.7269636480189,1276.8952887158105,1295.7166354310327,1315.2007097224748,1803.399753477928,1863.2666768531512,1925.7141929447089,1990.7881175281741,2058.5339730215455,2128.996997123922,2202.2221510096733,2278.2541271103396,2357.1373565134822,2438.9160160050942,2523.6340347797795,2611.3351008408345]
[1000340058,4,1,1,1,3,3.0306803023566031,3,3,3,3.0230632761679481,2.1694249845207684E-2,0,0,0,1.6308198974734206E-2,0.12304063405958204,0,0,0,0.3677509745712596,419.60213021697916,449.63308711207839,480.99161146397978,513.7018601901292,547.78783176970308,583.27337102005492,620.18217362168446,658.53779041037683,698.36363145339078,739.68296992500564,782.51894579536281,826.89456934528289,0,0,0,0,0,0,0,0,0,0,0,0,0,0,0,0,0,0,0,0,0,0,0,0,0,0,0,0,0,0,0,0,0,0,0,0,203.49635851197752,218.06060862105755,233.26869517348106,249.13233365965937,265.66316273147368,282.8727465187302,300.7725768236553,319.37407520247342,338.68859494225489,358.72742294045759,379.5017814939211,401.02283000346387,0,0,0,0,0,0,0,0,0,0,0,0,1122.9688158381693,1135.7060577447921,1149.0063702156904,1162.8799990949205,1177.3371230269972,1192.3878554827602,1208.0422466785822,1224.310285396823,1241.2019007146939,1258.7269636480189,1276.8952887158105,1295.7166354310327,1746.067304567126,1803.399753477928,1863.2666768531512,1925.7141929447089,1990.7881175281741,2058.5339730215455,2128.996997123922,2202.2221510096733,2278.2541271103396,2357.1373565134822,2438.9160160050942,2523.6340347797795]
[1000340087,4,1,1,1,3,3.0306803023566031,3,3,3,3.0230632761679481,2.1694249845207684E-2,0,0,0,1.6308198974734206E-2,0.12304063405958204,0,0,0,0.3677509745712596,419.60213021697916,449.63308711207839,480.99161146397978,513.7018601901292,547.78783176970308,583.27337102005492,620.18217362168446,658.53779041037683,698.36363145339078,739.68296992500564,782.51894579536281,826.89456934528289,0,0,0,0,0,0,0,0,0,0,0,0,0,0,0,0,0,0,0,0,0,0,0,0,0,0,0,0,0,0,0,0,0,0,0,0,203.49635851197752,218.06060862105755,233.26869517348106,249.13233365965937,265.66316273147368,282.8727465187302,300.7725768236553,319.37407520247342,338.68859494225489,358.72742294045759,379.5017814939211,401.02283000346387,0,0,0,0,0,0,0,0,0,0,0,0,1122.9688158381693,1135.7060577447921,1149.0063702156904,1162.8799990949205,1177.3371230269972,1192.3878554827602,1208.0422466785822,1224.310285396823,1241.2019007146939,1258.7269636480189,1276.8952887158105,1295.7166354310327,1746.067304567126,1803.399753477928,1863.2666768531512,1925.7141929447089,1990.7881175281741,2058.5339730215455,2128.996997123922,2202.2221510096733,2278.2541271103396,2357.1373565134822,2438.9160160050942,2523.6340347797795]
[1000340114,4,1,1,1,3,3.0306803023566031,3,3,3,3.0230632761679481,2.1694249845207684E-2,0,0,0,1.6308198974734206E-2,0.12304063405958204,0,0,0,0.3677509745712596,419.60213021697916,449.63308711207839,480.99161146397978,513.7018601901292,547.78783176970308,583.27337102005492,620.18217362168446,658.53779041037683,698.36363145339078,739.68296992500564,782.51894579536281,826.89456934528289,0,0,0,0,0,0,0,0,0,0,0,0,0,0,0,0,0,0,0,0,0,0,0,0,0,0,0,0,0,0,0,0,0,0,0,0,203.49635851197752,218.06060862105755,233.26869517348106,249.13233365965937,265.66316273147368,282.8727465187302,300.7725768236553,319.37407520247342,338.68859494225489,358.72742294045759,379.5017814939211,401.02283000346387,0,0,0,0,0,0,0,0,0,0,0,0,1122.9688158381693,1135.7060577447921,1149.0063702156904,1162.8799990949205,1177.3371230269972,1192.3878554827602,1208.0422466785822,1224.310285396823,1241.2019007146939,1258.7269636480189,1276.8952887158105,1295.7166354310327,1746.067304567126,1803.399753477928,1863.2666768531512,1925.7141929447089,1990.7881175281741,2058.5339730215455,2128.996997123922,2202.2221510096733,2278.2541271103396,2357.1373565134822,2438.9160160050942,2523.6340347797795]
[1000340144,4,1,1,1,3,3.0306803023566031,3,3,3,3.0230632761679481,2.1694249845207684E-2,0,0,0,1.6308198974734206E-2,0.12304063405958204,0,0,0,0.3677509745712596,419.60213021697916,449.63308711207839,480.99161146397978,513.7018601901292,547.78783176970308,583.27337102005492,620.18217362168446,658.53779041037683,698.36363145339078,739.68296992500564,782.51894579536281,826.89456934528289,0,0,0,0,0,0,0,0,0,0,0,0,0,0,0,0,0,0,0,0,0,0,0,0,0,0,0,0,0,0,0,0,0,0,0,0,203.49635851197752,218.06060862105755,233.26869517348106,249.13233365965937,265.66316273147368,282.8727465187302,300.7725768236553,319.37407520247342,338.68859494225489,358.72742294045759,379.5017814939211,401.02283000346387,0,0,0,0,0,0,0,0,0,0,0,0,1122.9688158381693,1135.7060577447921,1149.0063702156904,1162.8799990949205,1177.3371230269972,1192.3878554827602,1208.0422466785822,1224.310285396823,1241.2019007146939,1258.7269636480189,1276.8952887158105,1295.7166354310327,1746.067304567126,1803.399753477928,1863.2666768531512,1925.7141929447089,1990.7881175281741,2058.5339730215455,2128.996997123922,2202.2221510096733,2278.2541271103396,2357.1373565134822,2438.9160160050942,2523.6340347797795]
[1000340385,4,1,1,1,3,3.0306803023566031,3,3,3,3.0230632761679481,2.1694249845207684E-2,0,0,0,1.6308198974734206E-2,0.12304063405958204,0,0,0,0.3677509745712596,1756.5594931548401,1860.7848417364414,1968.9892234267761,2081.2436366486231,2197.6189581040876,2318.1859452746135,2443.0152388243255,2572.1773649121155,2705.7427374175149,2843.7816600850119,2986.3643285911803,3133.5608325386338,0,0,0,0,0,0,0,0,0,0,0,0,0,0,0,0,0,0,0,0,0,0,0,0,0,0,0,0,0,0,0,0,0,0,0,0,851.88666745283979,902.43331003072603,954.90968244007706,1009.3502171097466,1065.7892874371582,1124.2612090007476,1184.8002407255235,1247.4405860043678,1312.2163937775304,1379.1617595725666,1448.3107265068427,1519.6972862545526,0,0,0,0,0,0,0,0,0,0,0,0,1690.0219873393103,1734.2278207505856,1780.1213095848111,1827.7325669046204,1877.0916541463971,1928.2285821806245,1981.173312331231,2035.9557573562306,2092.605782391799,2151.1532058617599,2211.6278003543271,2274.0592934678161,4298.46814794699,4497.445972517753,4704.0202154516646,4918.3264206629901,5140.4998996876429,5370.6757364559853,5608.98879188108,5855.5737082727137,6110.5649135868443,6374.096625519338,6646.3028554523498,6927.3174122610026]
[1000340415,4,1,1,1,3,3.0306803023566031,3,3,3,3.0230632761679481,2.1694249845207684E-2,0,0,0,1.6308198974734206E-2,0.12304063405958204,0,0,0,0.3677509745712596,2402.8305221431542,2549.1963149468606,2701.3741968558461,2859.4765197042443,3023.6156050779236,3193.9037448932627,3370.453201954324,3553.376210489645,3742.7849766696972,3938.7916791060711,4141.5084693333101,4351.0474722743184,0,0,0,0,0,0,0,0,0,0,0,0,0,0,0,0,0,0,0,0,0,0,0,0,0,0,0,0,0,0,0,0,0,0,0,0,1165.311675431002,1236.2953614072169,1310.0977627404291,1386.7733672119723,1466.3766479335409,1548.9620636278812,1634.5840588990075,1723.297064492531,1815.1554975466147,1910.2137618340651,2008.5262479960104,2110.1473337676107,0,0,0,0,0,0,0,0,0,0,0,0,1964.1294845536117,2026.208642281006,2090.7529224210953,2157.8099775510191,2227.4274474185058,2299.652959187355,2374.5341276737518,2452.1185555739448,2532.453833683714,2615.5875411100978,2701.5672454757564,2790.4405031163651,5532.2716821277681,5811.700318635083,6102.22488201737,6404.0598644672355,6717.4197004299704,7042.5187677084996,7379.5713885270834,7728.7918305561207,8090.3943079000264,8464.5929820502333,8851.6019628050781,9251.6353091582932]
[1000340445,4,1,1,1,3,3.0306803023566031,3,3,3,3.0230632761679481,2.1694249845207684E-2,0,0,0,1.6308198974734206E-2,0.12304063405958204,0,0,0,0.3677509745712596,3938.7916791060711,4141.5084693333101,4351.0474722743184,4567.5207866901201,4791.0404856147779,5021.7186167761802,5259.6672030033724,5504.9982426210709,5757.8237098319541,6018.255555087273,6286.4057054463392,6562.3860649253538,0,0,0,0,0,0,0,0,0,0,0,0,0,0,0,0,0,0,0,0,0,0,0,0,0,0,0,0,0,0,0,0,0,0,0,0,1910.2137618340651,2008.5262479960104,2110.1473337676107,2215.1313841961787,2323.5327518521071,2435.4057770329359,2550.8047879609021,2669.7841009742633,2792.3980207127061,2918.7008402970755,3048.7468415037233,3182.5902949336778,0,0,0,0,0,0,0,0,0,0,0,0,2615.5875411100978,2701.5672454757564,2790.4405031163651,2882.2548592713783,2977.0578482684919,3074.8969937021138,3175.819808606132,3279.873795621239,3387.1064471570776,3497.5652455494287,3611.2976632126865,3728.3511627878061,8464.5929820502333,8851.6019628050781,9251.6353091582932,9664.9070301576776,10091.631085735376,10532.021387511231,10986.291799570407,11454.656139216573,11937.328177701736,12434.521640933777,12946.450210162749,13473.327522646838]
[1000340477,4,1,1,1,3,3.0306803023566031,3,3,3,3.0230632761679481,2.1694249845207684E-2,0,0,0,1.6308198974734206E-2,0.12304063405958204,0,0,0,0.3677509745712596,2197.6189581040876,2318.1859452746135,2443.0152388243255,2572.1773649121155,2705.7427374175149,2843.7816600850119,2986.3643285911803,3133.5608325386338,3285.4411573805737,3442.0751862794764,3603.5327019031511,3769.8833881612809,0,0,0,0,0,0,0,0,0,0,0,0,0,0,0,0,0,0,0,0,0,0,0,0,0,0,0,0,0,0,0,0,0,0,0,0,1065.7892874371582,1124.2612090007476,1184.8002407255235,1247.4405860043678,1312.2163937775304,1379.1617595725666,1448.3107265068427,1519.6972862545526,1593.355379980075,1669.3188992393884,1747.6216868511156,1828.2975377387004,0,0,0,0,0,0,0,0,0,0,0,0,1877.0916541463971,1928.2285821806245,1981.173312331231,2035.9557573562306,2092.605782391799,2151.1532058617599,2211.6278003543271,2274.0592934678161,2338.4773686269182,2404.9116658710345,2473.391782616055,2543.9472743908873,5140.4998996876429,5370.6757364559853,5608.98879188108,5855.5737082727137,6110.5649135868443,6374.096625519338,6646.3028554523498,6927.3174122610026,7217.2739059875666,7516.3057513898993,7824.5461713703216,8142.1282002908683]
[1000340534,4,1,1,1,3,3.0306803023566031,3,3,3,3.0230632761679481,2.1694249845207684E-2,0,0,0,1.6308198974734206E-2,0.12304063405958204,0,0,0,0.3677509745712596,2318.1859452746135,2443.0152388243255,2572.1773649121155,2705.7427374175149,2843.7816600850119,2986.3643285911803,3133.5608325386338,3285.4411573805737,3442.0751862794764,3603.5327019031511,3769.8833881612809,3941.1968318852901,0,0,0,0,0,0,0,0,0,0,0,0,0,0,0,0,0,0,0,0,0,0,0,0,0,0,0,0,0,0,0,0,0,0,0,0,1124.2612090007476,1184.8002407255235,1247.4405860043678,1312.2163937775304,1379.1617595725666,1448.3107265068427,1519.6972862545526,1593.355379980075,1669.3188992393884,1747.6216868511156,1828.2975377387004,1911.3801997450998,0,0,0,0,0,0,0,0,0,0,0,0,1928.2285821806245,1981.173312331231,2035.9557573562306,2092.605782391799,2151.1532058617599,2211.6278003543271,2274.0592934678161,2338.4773686269182,2404.9116658710345,2473.391782616055,2543.9472743908873,2616.6076555499512,5370.6757364559853,5608.98879188108,5855.5737082727137,6110.5649135868443,6374.096625519338,6646.3028554523498,6927.3174122610026,7217.2739059875666,7516.3057513898993,7824.5461713703216,8142.1282002908683,8469.1846871803409]
[1000340565,4,1,1,1,3,3.0306803023566031,3,3,3,3.0230632761679481,2.1694249845207684E-2,0,0,0,1.6308198974734206E-2,0.12304063405958204,0,0,0,0.3677509745712596,1072.6640938538956,1126.7539608341217,1182.5411797879206,1240.0478325433839,1299.2958966696308,1360.307247754426,1423.1036615943347,1487.706816302207,1554.1382943363806,1622.4195844557503,1692.5720836045273,1764.6170987302821,0,0,0,0,0,0,0,0,0,0,0,0,0,0,0,0,0,0,0,0,0,0,0,0,0,0,0,0,0,0,0,0,0,0,0,0,520.21479703389991,546.44700647759703,573.50238844798412,601.3916520699255,630.12545590533682,659.71440905777058,690.16907223458645,721.49995876902767,753.71753560433149,786.83222424189,820.85440165530952,855.79440117211402,0,0,0,0,0,0,0,0,0,0,0,0,1399.9566001406731,1422.8981175498843,1446.559544842873,1470.9502477413887,1496.0795477470858,1521.9567231075471,1548.5910097452079,1575.9916021512206,1604.1676542461125,1633.1282802090045,1662.8825552770077,1693.4395165163212,2992.8354910284688,3096.0990848616029,3202.6031130787778,3312.389732354698,3425.500900322053,3541.9783799197435,3661.8637435741293,3785.1983772224548,3912.0234841868246,4042.3800889066447,4176.3090405368448,4313.8510164187173]
[1000340593,4,1,1,1,3,3.0306803023566031,3,3,3,3.0230632761679481,2.1694249845207684E-2,0,0,0,1.6308198974734206E-2,0.12304063405958204,0,0,0,0.3677509745712596,1072.6640938538956,1126.7539608341217,1182.5411797879206,1240.0478325433839,1299.2958966696308,1360.307247754426,1423.1036615943347,1487.706816302207,1554.1382943363806,1622.4195844557503,1692.5720836045273,1764.6170987302821,0,0,0,0,0,0,0,0,0,0,0,0,0,0,0,0,0,0,0,0,0,0,0,0,0,0,0,0,0,0,0,0,0,0,0,0,520.21479703389991,546.44700647759703,573.50238844798412,601.3916520699255,630.12545590533682,659.71440905777058,690.16907223458645,721.49995876902767,753.71753560433149,786.83222424189,820.85440165530952,855.79440117211402,0,0,0,0,0,0,0,0,0,0,0,0,1399.9566001406731,1422.8981175498843,1446.559544842873,1470.9502477413887,1496.0795477470858,1521.9567231075471,1548.5910097452079,1575.9916021512206,1604.1676542461125,1633.1282802090045,1662.8825552770077,1693.4395165163212,2992.8354910284688,3096.0990848616029,3202.6031130787778,3312.389732354698,3425.500900322053,3541.9783799197435,3661.8637435741293,3785.1983772224548,3912.0234841868246,4042.3800889066447,4176.3090405368448,4313.8510164187173]
[1000340623,4,1,1,1,3,3.0306803023566031,3,3,3,3.0230632761679481,2.1694249845207684E-2,0,0,0,1.6308198974734206E-2,0.12304063405958204,0,0,0,0.3677509745712596,1656.2420549359613,1756.5594931548401,1860.7848417364414,1968.9892234267761,2081.2436366486231,2197.6189581040876,2318.1859452746135,2443.0152388243255,2572.1773649121155,2705.7427374175149,2843.7816600850119,2986.3643285911803,0,0,0,0,0,0,0,0,0,0,0,0,0,0,0,0,0,0,0,0,0,0,0,0,0,0,0,0,0,0,0,0,0,0,0,0,803.23526198395939,851.88666745283979,902.43331003072603,954.90968244007706,1009.3502171097466,1065.7892874371582,1124.2612090007476,1184.8002407255235,1247.4405860043678,1312.2163937775304,1379.1617595725666,1448.3107265068427,0,0,0,0,0,0,0,0,0,0,0,0,1647.4736435582613,1690.0219873393103,1734.2278207505856,1780.1213095848111,1827.7325669046204,1877.0916541463971,1928.2285821806245,1981.173312331231,2035.9557573562306,2092.605782391799,2151.1532058617599,2211.6278003543271,4106.9509604781815,4298.46814794699,4497.445972517753,4704.0202154516646,4918.3264206629901,5140.4998996876429,5370.6757364559853,5608.98879188108,5855.5737082727137,6110.5649135868443,6374.096625519338,6646.3028554523498]
[1000340657,4,1,1,1,3,3.0306803023566031,3,3,3,3.0230632761679481,2.1694249845207684E-2,0,0,0,1.6308198974734206E-2,0.12304063405958204,0,0,0,0.3677509745712596,1012.4741639591531,1074.4177691081893,1138.7558890935766,1205.5293811990873,1274.7789533114706,1346.5451674393178,1420.8684430817493,1497.7890604561005,1577.3471635930578,1659.5827633070335,1744.5357400489818,1832.245846648339,0,0,0,0,0,0,0,0,0,0,0,0,0,0,0,0,0,0,0,0,0,0,0,0,0,0,0,0,0,0,0,0,0,0,0,0,491.024212261755,521.0652849188798,552.26763635537702,584.65108131446993,618.23536208562689,653.04015021112048,689.08504811975558,726.38959069221403,764.97324676211849,804.85542055658675,846.05545307977627,888.59262344265528,0,0,0,0,0,0,0,0,0,0,0,0,1374.4278199526159,1400.7003988154079,1427.988580172191,1456.3096931113746,1485.6810033565534,1516.119714758988,1547.642970726391,1580.2678555919069,1614.0113959268754,1648.8905618006756,1684.9222679907132,1722.1233751453774,2877.9261961735237,2996.183452842477,3119.0121056211447,3246.490155624932,3378.695318753651,3515.7050324094262,3657.5964619278957,3804.4465067402216,3956.3318062820517,4113.3287456642956,4275.5134611194717,4442.961845236372]
[1000340689,4,1,1,1,3,3.0306803023566031,3,3,3,3.0230632761679481,2.1694249845207684E-2,0,0,0,1.6308198974734206E-2,0.12304063405958204,0,0,0,0.3677509745712596,2262.1644357606792,2402.8305221431542,2549.1963149468606,2701.3741968558461,2859.4765197042443,3023.6156050779236,3193.9037448932627,3370.453201954324,3553.376210489645,3742.7849766696972,3938.7916791060711,4141.5084693333101,0,0,0,0,0,0,0,0,0,0,0,0,0,0,0,0,0,0,0,0,0,0,0,0,0,0,0,0,0,0,0,0,0,0,0,0,1097.0922020690277,1165.311675431002,1236.2953614072169,1310.0977627404291,1386.7733672119723,1466.3766479335409,1548.9620636278812,1634.5840588990075,1723.297064492531,1815.1554975466147,1910.2137618340651,2008.5262479960104,0,0,0,0,0,0,0,0,0,0,0,0,1904.4677835771813,1964.1294845536117,2026.208642281006,2090.7529224210953,2157.8099775510191,2227.4274474185058,2299.652959187355,2374.5341276737518,2452.1185555739448,2532.453833683714,2615.5875411100978,2701.5672454757564,5263.7244214068887,5532.2716821277681,5811.700318635083,6102.22488201737,6404.0598644672355,6717.4197004299704,7042.5187677084996,7379.5713885270834,7728.7918305561207,8090.3943079000264,8464.5929820502333,8851.6019628050781]
[1000340819,4,1,1,1,3,3.0306803023566031,3,3,3,3.0230632761679481,2.1694249845207684E-2,0,0,0,1.6308198974734206E-2,0.12304063405958204,0,0,0,0.3677509745712596,390.8744203744061,419.60213021697916,449.63308711207839,480.99161146397978,513.7018601901292,547.78783176970308,583.27337102005492,620.18217362168446,658.53779041037683,698.36363145339078,739.68296992500564,782.51894579536281,0,0,0,0,0,0,0,0,0,0,0,0,0,0,0,0,0,0,0,0,0,0,0,0,0,0,0,0,0,0,0,0,0,0,0,0,189.56415006887616,203.49635851197752,218.06060862105755,233.26869517348106,249.13233365965937,265.66316273147368,282.8727465187302,300.7725768236553,319.37407520247342,338.68859494225489,358.72742294045759,379.5017814939211,0,0,0,0,0,0,0,0,0,0,0,0,1110.7843293109406,1122.9688158381693,1135.7060577447921,1149.0063702156904,1162.8799990949205,1177.3371230269972,1192.3878554827602,1208.0422466785822,1224.310285396823,1241.2019007146939,1258.7269636480189,1276.8952887158105,1691.2228997542229,1746.067304567126,1803.399753477928,1863.2666768531512,1925.7141929447089,1990.7881175281741,2058.5339730215455,2128.996997123922,2202.2221510096733,2278.2541271103396,2357.1373565134822,2438.9160160050942]
[1000340854,4,1,1,1,3,3.0306803023566031,3,3,3,3.0230632761679481,2.1694249845207684E-2,0,0,0,1.6308198974734206E-2,0.12304063405958204,0,0,0,0.3677509745712596,390.8744203744061,419.60213021697916,449.63308711207839,480.99161146397978,513.7018601901292,547.78783176970308,583.27337102005492,620.18217362168446,658.53779041037683,698.36363145339078,739.68296992500564,782.51894579536281,0,0,0,0,0,0,0,0,0,0,0,0,0,0,0,0,0,0,0,0,0,0,0,0,0,0,0,0,0,0,0,0,0,0,0,0,189.56415006887616,203.49635851197752,218.06060862105755,233.26869517348106,249.13233365965937,265.66316273147368,282.8727465187302,300.7725768236553,319.37407520247342,338.68859494225489,358.72742294045759,379.5017814939211,0,0,0,0,0,0,0,0,0,0,0,0,1110.7843293109406,1122.9688158381693,1135.7060577447921,1149.0063702156904,1162.8799990949205,1177.3371230269972,1192.3878554827602,1208.0422466785822,1224.310285396823,1241.2019007146939,1258.7269636480189,1276.8952887158105,1691.2228997542229,1746.067304567126,1803.399753477928,1863.2666768531512,1925.7141929447089,1990.7881175281741,2058.5339730215455,2128.996997123922,2202.2221510096733,2278.2541271103396,2357.1373565134822,2438.9160160050942]
[1000340887,4,1,1,1,3,3.0306803023566031,3,3,3,3.0230632761679481,2.1694249845207684E-2,0,0,0,1.6308198974734206E-2,0.12304063405958204,0,0,0,0.3677509745712596,390.8744203744061,419.60213021697916,449.63308711207839,480.99161146397978,513.7018601901292,547.78783176970308,583.27337102005492,620.18217362168446,658.53779041037683,698.36363145339078,739.68296992500564,782.51894579536281,0,0,0,0,0,0,0,0,0,0,0,0,0,0,0,0,0,0,0,0,0,0,0,0,0,0,0,0,0,0,0,0,0,0,0,0,189.56415006887616,203.49635851197752,218.06060862105755,233.26869517348106,249.13233365965937,265.66316273147368,282.8727465187302,300.7725768236553,319.37407520247342,338.68859494225489,358.72742294045759,379.5017814939211,0,0,0,0,0,0,0,0,0,0,0,0,1110.7843293109406,1122.9688158381693,1135.7060577447921,1149.0063702156904,1162.8799990949205,1177.3371230269972,1192.3878554827602,1208.0422466785822,1224.310285396823,1241.2019007146939,1258.7269636480189,1276.8952887158105,1691.2228997542229,1746.067304567126,1803.399753477928,1863.2666768531512,1925.7141929447089,1990.7881175281741,2058.5339730215455,2128.996997123922,2202.2221510096733,2278.2541271103396,2357.1373565134822,2438.9160160050942]
[1000340972,4,1,1,1,3,3.0306803023566031,3,3,3,3.0230632761679481,2.1694249845207684E-2,0,0,0,1.6308198974734206E-2,0.12304063405958204,0,0,0,0.3677509745712596,390.8744203744061,419.60213021697916,449.63308711207839,480.99161146397978,513.7018601901292,547.78783176970308,583.27337102005492,620.18217362168446,658.53779041037683,698.36363145339078,739.68296992500564,782.51894579536281,0,0,0,0,0,0,0,0,0,0,0,0,0,0,0,0,0,0,0,0,0,0,0,0,0,0,0,0,0,0,0,0,0,0,0,0,189.56415006887616,203.49635851197752,218.06060862105755,233.26869517348106,249.13233365965937,265.66316273147368,282.8727465187302,300.7725768236553,319.37407520247342,338.68859494225489,358.72742294045759,379.5017814939211,0,0,0,0,0,0,0,0,0,0,0,0,1110.7843293109406,1122.9688158381693,1135.7060577447921,1149.0063702156904,1162.8799990949205,1177.3371230269972,1192.3878554827602,1208.0422466785822,1224.310285396823,1241.2019007146939,1258.7269636480189,1276.8952887158105,1691.2228997542229,1746.067304567126,1803.399753477928,1863.2666768531512,1925.7141929447089,1990.7881175281741,2058.5339730215455,2128.996997123922,2202.2221510096733,2278.2541271103396,2357.1373565134822,2438.9160160050942]
[1000344030,4,1,1,1,3,3.0306803023566031,3,3,3,3.0230632761679481,2.1694249845207684E-2,0,0,0,1.6308198974734206E-2,0.12304063405958204,0,0,0,0.3677509745712596,337.23061041350149,363.4254683496606,390.8744203744061,419.60213021697916,449.63308711207839,480.99161146397978,513.7018601901292,547.78783176970308,583.27337102005492,620.18217362168446,658.53779041037683,698.36363145339078,0,0,0,0,0,0,0,0,0,0,0,0,0,0,0,0,0,0,0,0,0,0,0,0,0,0,0,0,0,0,0,0,0,0,0,0,163.54826693189656,176.25210663592875,189.56415006887616,203.49635851197752,218.06060862105755,233.26869517348106,249.13233365965937,265.66316273147368,282.8727465187302,300.7725768236553,319.37407520247342,338.68859494225489,0,0,0,0,0,0,0,0,0,0,0,0,1088.0320012165785,1099.142211370985,1110.7843293109406,1122.9688158381693,1135.7060577447921,1149.0063702156904,1162.8799990949205,1177.3371230269972,1192.3878554827602,1208.0422466785822,1224.310285396823,1241.2019007146939,1588.8108785619766,1638.8197863565745,1691.2228997542229,1746.067304567126,1803.399753477928,1863.2666768531512,1925.7141929447089,1990.7881175281741,2058.5339730215455,2128.996997123922,2202.2221510096733,2278.2541271103396]
[1000344072,4,1,1,1,3,3.0306803023566031,3,3,3,3.0230632761679481,2.1694249845207684E-2,0,0,0,1.6308198974734206E-2,0.12304063405958204,0,0,0,0.3677509745712596,515.63308400372046,555.91443172545758,598.17260006235642,642.45017531699955,688.78954821867353,737.23291967981379,787.82230624692738,840.59954526909416,895.60629980489841,952.88406328666952,1012.4741639591531,1074.4177691081893,0,0,0,0,0,0,0,0,0,0,0,0,0,0,0,0,0,0,0,0,0,0,0,0,0,0,0,0,0,0,0,0,0,0,0,0,250.06892807907809,269.60435696998832,290.09849356910007,311.57199114977402,334.04540813729739,357.5392109006138,382.07377639588162,407.66939467306582,434.34627125567533,462.12452940280019,491.024212261755,521.0652849188798,0,0,0,0,0,0,0,0,0,0,0,0,1163.6991026944318,1180.7839152779525,1198.7071707545606,1217.4869315536284,1237.1411771546452,1257.6878065287369,1279.1446404506071,1301.5294236906875,1324.8598270963512,1349.1534495701892,1374.4278199526159,1400.7003988154079,1929.4011147772303,2006.3027039733984,2086.9782643860171,2171.5090980204022,2259.9761335106164,2352.4599371091645,2449.0407230934161,2549.7983636328477,2654.8123981569247,2764.1620422596588,2877.9261961735237,2996.183452842477]
[1000344130,4,1,1,1,3,3.0306803023566031,3,3,3,3.0230632761679481,2.1694249845207684E-2,0,0,0,1.6308198974734206E-2,0.12304063405958204,0,0,0,0.3677509745712596,621.97823037937155,675.12970943605353,731.1785586096147,790.19799111696545,852.26104381041,917.44058222936121,985.80930538156963,1057.4397502747399,1132.4042962173407,1210.7751689055815,1292.6244443119174,1378.0240523890004,0,0,0,0,0,0,0,0,0,0,0,0,0,0,0,0,0,0,0,0,0,0,0,0,0,0,0,0,0,0,0,0,0,0,0,0,301.64361865959921,327.420733832888,354.60299980400879,383.22592312062471,413.32492479805205,444.93534276921275,478.09243420340914,512.83137770404232,549.18727539439647,587.19515489971707,626.88997123303818,668.3066085915043,0,0,0,0,0,0,0,0,0,0,0,0,1208.8040209197625,1231.3475332295629,1255.1199275959898,1280.1522564579584,1306.4754974516172,1334.1205555529687,1363.1182651057641,1393.4993917435309,1425.2946342137056,1458.5346261110722,1493.2499375270208,1529.4710766205308,2132.4258699587335,2233.8979764985042,2340.9014860096131,2453.5761706955486,2572.0614660600795,2696.4964805515424,2827.020004690743,2963.7705197223131,3106.8862058254426,3256.5049499163706,3412.7643530719761,3575.8017376010357]
[1000344161,4,1,1,1,3,3.0306803023566031,3,3,3,3.0230632761679481,2.1694249845207684E-2,0,0,0,1.6308198974734206E-2,0.12304063405958204,0,0,0,0.3677509745712596,337.23061041350149,363.4254683496606,390.8744203744061,419.60213021697916,449.63308711207839,480.99161146397978,513.7018601901292,547.78783176970308,583.27337102005492,620.18217362168446,658.53779041037683,698.36363145339078,0,0,0,0,0,0,0,0,0,0,0,0,0,0,0,0,0,0,0,0,0,0,0,0,0,0,0,0,0,0,0,0,0,0,0,0,163.54826693189656,176.25210663592875,189.56415006887616,203.49635851197752,218.06060862105755,233.26869517348106,249.13233365965937,265.66316273147368,282.8727465187302,300.7725768236553,319.37407520247342,338.68859494225489,0,0,0,0,0,0,0,0,0,0,0,0,1088.0320012165785,1099.142211370985,1110.7843293109406,1122.9688158381693,1135.7060577447921,1149.0063702156904,1162.8799990949205,1177.3371230269972,1192.3878554827602,1208.0422466785822,1224.310285396823,1241.2019007146939,1588.8108785619766,1638.8197863565745,1691.2228997542229,1746.067304567126,1803.399753477928,1863.2666768531512,1925.7141929447089,1990.7881175281741,2058.5339730215455,2128.996997123922,2202.2221510096733,2278.2541271103396]
[1000344307,4,1,1,1,3,3.0306803023566031,3,3,3,3.0230632761679481,2.1694249845207684E-2,0,0,0,1.6308198974734206E-2,0.12304063405958204,0,0,0,0.3677509745712596,244.49238997319185,265.92121744920513,288.50361295780101,312.26500232903965,337.23061041350149,363.4254683496606,390.8744203744061,419.60213021697916,449.63308711207839,480.99161146397978,513.7018601901292,547.78783176970308,0,0,0,0,0,0,0,0,0,0,0,0,0,0,0,0,0,0,0,0,0,0,0,0,0,0,0,0,0,0,0,0,0,0,0,0,118.57258927095313,128.96502544923271,139.91691277664015,151.44058213392361,163.54826693189656,176.25210663592875,189.56415006887616,203.49635851197752,218.06060862105755,233.26869517348106,249.13233365965937,265.66316273147368,0,0,0,0,0,0,0,0,0,0,0,0,1048.6982846166022,1057.7870446015299,1067.3650755456906,1077.443161486013,1088.0320012165785,1099.142211370985,1110.7843293109406,1122.9688158381693,1135.7060577447921,1149.0063702156904,1162.8799990949205,1177.3371230269972,1411.7632638607472,1452.6732874999677,1495.7856012801317,1541.1487459489761,1588.8108785619766,1638.8197863565745,1691.2228997542229,1746.067304567126,1803.399753477928,1863.2666768531512,1925.7141929447089,1990.7881175281741]
[1000344336,4,1,1,1,3,3.0306803023566031,3,3,3,3.0230632761679481,2.1694249845207684E-2,0,0,0,1.6308198974734206E-2,0.12304063405958204,0,0,0,0.3677509745712596,342.37364546335112,373.41697691421336,406.22103751449725,440.82949044354785,477.28576893365852,515.63308400372046,555.91443172545758,598.17260006235642,642.45017531699955,688.78954821867353,737.23291967981379,787.82230624692738,0,0,0,0,0,0,0,0,0,0,0,0,0,0,0,0,0,0,0,0,0,0,0,0,0,0,0,0,0,0,0,0,0,0,0,0,166.04250809269016,181.09773410659085,197.00686896515808,213.79108819958651,231.47145582260072,250.06892807907809,269.60435696998832,290.09849356910007,311.57199114977402,334.04540813729739,357.5392109006138,382.07377639588162,0,0,0,0,0,0,0,0,0,0,0,0,1090.2133530061003,1103.3799804851478,1117.2933984573042,1131.9721260952911,1147.4345850427624,1163.6991026944318,1180.7839152779525,1198.7071707545606,1217.4869315536284,1237.1411771546452,1257.6878065287369,1279.1446404506071,1598.6295065621416,1657.8946915059521,1720.5213049369595,1786.5927047384255,1856.1918097990217,1929.4011147772303,2006.3027039733984,2086.9782643860171,2171.5090980204022,2259.9761335106164,2352.4599371091645,2449.0407230934161]
[1000344368,4,1,1,1,3,3.0306803023566031,3,3,3,3.0230632761679481,2.1694249845207684E-2,0,0,0,1.6308198974734206E-2,0.12304063405958204,0,0,0,0.3677509745712596,2843.7816600850119,2986.3643285911803,3133.5608325386338,3285.4411573805737,3442.0751862794764,3603.5327019031511,3769.8833881612809,3941.1968318852901,4117.5425244542548,4298.9898633693501,4485.6081537792452,4677.4666099586311,0,0,0,0,0,0,0,0,0,0,0,0,0,0,0,0,0,0,0,0,0,0,0,0,0,0,0,0,0,0,0,0,0,0,0,0,1379.1617595725666,1448.3107265068427,1519.6972862545526,1593.355379980075,1669.3188992393884,1747.6216868511156,1828.2975377387004,1911.3801997450998,1996.9033744213107,2084.9007177899371,2175.4058410849657,2268.4523114688163,0,0,0,0,0,0,0,0,0,0,0,0,2151.1532058617599,2211.6278003543271,2274.0592934678161,2338.4773686269182,2404.9116658710345,2473.391782616055,2543.9472743908873,2616.6076555499512,2691.4023999627871,2768.360941681839,2847.5126755894303,2928.8869580248602,6374.096625519338,6646.3028554523498,6927.3174122610026,7217.2739059875666,7516.3057513898993,7824.5461713703216,8142.1282002908683,8469.1846871803409,8805.848298838353,9152.2515228411266,9508.5266704536407,9874.8058794523076]
[1000344393,4,1,1,1,3,3.0306803023566031,3,3,3,3.0230632761679481,2.1694249845207684E-2,0,0,0,1.6308198974734206E-2,0.12304063405958204,0,0,0,0.3677509745712596,2843.7816600850119,2986.3643285911803,3133.5608325386338,3285.4411573805737,3442.0751862794764,3603.5327019031511,3769.8833881612809,3941.1968318852901,4117.5425244542548,4298.9898633693501,4485.6081537792452,4677.4666099586311,0,0,0,0,0,0,0,0,0,0,0,0,0,0,0,0,0,0,0,0,0,0,0,0,0,0,0,0,0,0,0,0,0,0,0,0,1379.1617595725666,1448.3107265068427,1519.6972862545526,1593.355379980075,1669.3188992393884,1747.6216868511156,1828.2975377387004,1911.3801997450998,1996.9033744213107,2084.9007177899371,2175.4058410849657,2268.4523114688163,0,0,0,0,0,0,0,0,0,0,0,0,2151.1532058617599,2211.6278003543271,2274.0592934678161,2338.4773686269182,2404.9116658710345,2473.391782616055,2543.9472743908873,2616.6076555499512,2691.4023999627871,2768.360941681839,2847.5126755894303,2928.8869580248602,6374.096625519338,6646.3028554523498,6927.3174122610026,7217.2739059875666,7516.3057513898993,7824.5461713703216,8142.1282002908683,8469.1846871803409,8805.848298838353,9152.2515228411266,9508.5266704536407,9874.8058794523076]
[1000344489,4,1,1,1,3,3.0306803023566031,3,3,3,3.0230632761679481,2.1694249845207684E-2,0,0,0,1.6308198974734206E-2,0.12304063405958204,0,0,0,0.3677509745712596,153.74677275431705,169.79675841755133,186.86987564701454,204.9926837289363,224.19149595049328,244.49238997319185,265.92121744920513,288.50361295780101,312.26500232903965,337.23061041350149,363.4254683496606,390.8744203744061,0,0,0,0,0,0,0,0,0,0,0,0,0,0,0,0,0,0,0,0,0,0,0,0,0,0,0,0,0,0,0,0,0,0,0,0,74.563273480745593,82.347108217115235,90.627135734724064,99.416236611727371,108.72717212299804,118.57258927095313,128.96502544923271,139.91691277664015,151.44058213392361,163.54826693189656,176.25210663592875,189.56415006887616,0,0,0,0,0,0,0,0,0,0,0,0,1010.2097048980108,1017.0170987051594,1024.2584405315763,1031.9449951549625,1040.0879230157029,1048.6982846166022,1057.7870446015299,1067.3650755456906,1077.443161486013,1088.0320012165785,1099.142211370985,1110.7843293109406,1238.5197511330737,1269.1609653398259,1301.755451913315,1336.3539154956261,1373.0065910891944,1411.7632638607472,1452.6732874999677,1495.7856012801317,1541.1487459489761,1588.8108785619766,1638.8197863565745,1691.2228997542229]
[1000344516,4,1,1,1,3,3.0306803023566031,3,3,3,3.0230632761679481,2.1694249845207684E-2,0,0,0,1.6308198974734206E-2,0.12304063405958204,0,0,0,0.3677509745712596,138.69310215262723,153.74677275431705,169.79675841755133,186.86987564701454,204.9926837289363,224.19149595049328,244.49238997319185,265.92121744920513,288.50361295780101,312.26500232903965,337.23061041350149,363.4254683496606,0,0,0,0,0,0,0,0,0,0,0,0,0,0,0,0,0,0,0,0,0,0,0,0,0,0,0,0,0,0,0,0,0,0,0,0,67.262626203052804,74.563273480745593,82.347108217115235,90.627135734724064,99.416236611727371,108.72717212299804,118.57258927095313,128.96502544923271,139.91691277664015,151.44058213392361,163.54826693189656,176.25210663592875,0,0,0,0,0,0,0,0,0,0,0,0,1003.8248852365491,1010.2097048980108,1017.0170987051594,1024.2584405315763,1031.9449951549625,1040.0879230157029,1048.6982846166022,1057.7870446015299,1067.3650755456906,1077.443161486013,1088.0320012165785,1099.142211370985,1209.7806135922292,1238.5197511330737,1269.1609653398259,1301.755451913315,1336.3539154956261,1373.0065910891944,1411.7632638607472,1452.6732874999677,1495.7856012801317,1541.1487459489761,1588.8108785619766,1638.8197863565745]
[1000344547,4,1,1,1,3,3.0306803023566031,3,3,3,3.0230632761679481,2.1694249845207684E-2,0,0,0,1.6308198974734206E-2,0.12304063405958204,0,0,0,0.3677509745712596,170.65065472277598,190.6126537251331,212.02252932849518,234.92582137124518,259.36776783198644,285.39331751586963,313.04714178924394,342.37364546335112,373.41697691421336,406.22103751449725,440.82949044354785,477.28576893365852,0,0,0,0,0,0,0,0,0,0,0,0,0,0,0,0,0,0,0,0,0,0,0,0,0,0,0,0,0,0,0,0,0,0,0,0,82.761226202098285,92.44228788664887,102.82553288882667,113.93304687171775,125.78676910409429,138.40849861296053,151.81989987455995,166.04250809269016,181.09773410659085,197.00686896515808,213.79108819958651,231.47145582260072,0,0,0,0,0,0,0,0,0,0,0,0,1017.3792677775872,1025.8458914393286,1034.9266132326202,1044.6407482908389,1055.0074837174409,1066.0458839667033,1077.774895820824,1090.2133530061003,1103.3799804851478,1117.2933984573042,1131.9721260952911,1147.4345850427624,1270.7911487024614,1308.9008330511106,1349.7746754499422,1393.4996165338018,1440.1620206535215,1489.8477000955336,1542.6419374846278,1598.6295065621416,1657.8946915059521,1720.5213049369595,1786.5927047384255,1856.1918097990217]
[1000344577,4,1,1,1,3,3.0306803023566031,3,3,3,3.0230632761679481,2.1694249845207684E-2,0,0,0,1.6308198974734206E-2,0.12304063405958204,0,0,0,0.3677509745712596,212.02252932849518,234.92582137124518,259.36776783198644,285.39331751586963,313.04714178924394,342.37364546335112,373.41697691421336,406.22103751449725,440.82949044354785,477.28576893365852,515.63308400372046,555.91443172545758,0,0,0,0,0,0,0,0,0,0,0,0,0,0,0,0,0,0,0,0,0,0,0,0,0,0,0,0,0,0,0,0,0,0,0,0,102.82553288882667,113.93304687171775,125.78676910409429,138.40849861296053,151.81989987455995,166.04250809269016,181.09773410659085,197.00686896515808,213.79108819958651,231.47145582260072,250.06892807907809,269.60435696998832,0,0,0,0,0,0,0,0,0,0,0,0,1034.9266132326202,1044.6407482908389,1055.0074837174409,1066.0458839667033,1077.774895820824,1090.2133530061003,1103.3799804851478,1117.2933984573042,1131.9721260952911,1147.4345850427624,1163.6991026944318,1180.7839152779525,1349.7746754499422,1393.4996165338018,1440.1620206535215,1489.8477000955336,1542.6419374846278,1598.6295065621416,1657.8946915059521,1720.5213049369595,1786.5927047384255,1856.1918097990217,1929.4011147772303,2006.3027039733984]
[1000344603,4,1,1,1,3,3.0306803023566031,3,3,3,3.0230632761679481,2.1694249845207684E-2,0,0,0,1.6308198974734206E-2,0.12304063405958204,0,0,0,0.3677509745712596,153.74677275431705,169.79675841755133,186.86987564701454,204.9926837289363,224.19149595049328,244.49238997319185,265.92121744920513,288.50361295780101,312.26500232903965,337.23061041350149,363.4254683496606,390.8744203744061,0,0,0,0,0,0,0,0,0,0,0,0,0,0,0,0,0,0,0,0,0,0,0,0,0,0,0,0,0,0,0,0,0,0,0,0,74.563273480745593,82.347108217115235,90.627135734724064,99.416236611727371,108.72717212299804,118.57258927095313,128.96502544923271,139.91691277664015,151.44058213392361,163.54826693189656,176.25210663592875,189.56415006887616,0,0,0,0,0,0,0,0,0,0,0,0,1010.2097048980108,1017.0170987051594,1024.2584405315763,1031.9449951549625,1040.0879230157029,1048.6982846166022,1057.7870446015299,1067.3650755456906,1077.443161486013,1088.0320012165785,1099.142211370985,1110.7843293109406,1238.5197511330737,1269.1609653398259,1301.755451913315,1336.3539154956261,1373.0065910891944,1411.7632638607472,1452.6732874999677,1495.7856012801317,1541.1487459489761,1588.8108785619766,1638.8197863565745,1691.2228997542229]
[1000344840,4,1,1,1,3,3.0306803023566031,3,3,3,3.0230632761679481,2.1694249845207684E-2,0,0,0,1.6308198974734206E-2,0.12304063405958204,0,0,0,0.3677509745712596,138.69310215262723,153.74677275431705,169.79675841755133,186.86987564701454,204.9926837289363,224.19149595049328,244.49238997319185,265.92121744920513,288.50361295780101,312.26500232903965,337.23061041350149,363.4254683496606,0,0,0,0,0,0,0,0,0,0,0,0,0,0,0,0,0,0,0,0,0,0,0,0,0,0,0,0,0,0,0,0,0,0,0,0,67.262626203052804,74.563273480745593,82.347108217115235,90.627135734724064,99.416236611727371,108.72717212299804,118.57258927095313,128.96502544923271,139.91691277664015,151.44058213392361,163.54826693189656,176.25210663592875,0,0,0,0,0,0,0,0,0,0,0,0,1003.8248852365491,1010.2097048980108,1017.0170987051594,1024.2584405315763,1031.9449951549625,1040.0879230157029,1048.6982846166022,1057.7870446015299,1067.3650755456906,1077.443161486013,1088.0320012165785,1099.142211370985,1209.7806135922292,1238.5197511330737,1269.1609653398259,1301.755451913315,1336.3539154956261,1373.0065910891944,1411.7632638607472,1452.6732874999677,1495.7856012801317,1541.1487459489761,1588.8108785619766,1638.8197863565745]
[1000344872,4,1,1,1,3,3.0306803023566031,3,3,3,3.0230632761679481,2.1694249845207684E-2,0,0,0,1.6308198974734206E-2,0.12304063405958204,0,0,0,0.3677509745712596,124.60866072077268,138.69310215262723,153.74677275431705,169.79675841755133,186.86987564701454,204.9926837289363,224.19149595049328,244.49238997319185,265.92121744920513,288.50361295780101,312.26500232903965,337.23061041350149,0,0,0,0,0,0,0,0,0,0,0,0,0,0,0,0,0,0,0,0,0,0,0,0,0,0,0,0,0,0,0,0,0,0,0,0,60.432030415620723,67.262626203052804,74.563273480745593,82.347108217115235,90.627135734724064,99.416236611727371,108.72717212299804,118.57258927095313,128.96502544923271,139.91691277664015,151.44058213392361,163.54826693189656,0,0,0,0,0,0,0,0,0,0,0,0,997.85115159017073,1003.8248852365491,1010.2097048980108,1017.0170987051594,1024.2584405315763,1031.9449951549625,1040.0879230157029,1048.6982846166022,1057.7870446015299,1067.3650755456906,1077.443161486013,1088.0320012165785,1182.8918427265642,1209.7806135922292,1238.5197511330737,1269.1609653398259,1301.755451913315,1336.3539154956261,1373.0065910891944,1411.7632638607472,1452.6732874999677,1495.7856012801317,1541.1487459489761,1588.8108785619766]
[1000344903,4,1,1,1,3,3.0306803023566031,3,3,3,3.0230632761679481,2.1694249845207684E-2,0,0,0,1.6308198974734206E-2,0.12304063405958204,0,0,0,0.3677509745712596,170.65065472277598,190.6126537251331,212.02252932849518,234.92582137124518,259.36776783198644,285.39331751586963,313.04714178924394,342.37364546335112,373.41697691421336,406.22103751449725,440.82949044354785,477.28576893365852,0,0,0,0,0,0,0,0,0,0,0,0,0,0,0,0,0,0,0,0,0,0,0,0,0,0,0,0,0,0,0,0,0,0,0,0,82.761226202098285,92.44228788664887,102.82553288882667,113.93304687171775,125.78676910409429,138.40849861296053,151.81989987455995,166.04250809269016,181.09773410659085,197.00686896515808,213.79108819958651,231.47145582260072,0,0,0,0,0,0,0,0,0,0,0,0,1017.3792677775872,1025.8458914393286,1034.9266132326202,1044.6407482908389,1055.0074837174409,1066.0458839667033,1077.774895820824,1090.2133530061003,1103.3799804851478,1117.2933984573042,1131.9721260952911,1147.4345850427624,1270.7911487024614,1308.9008330511106,1349.7746754499422,1393.4996165338018,1440.1620206535215,1489.8477000955336,1542.6419374846278,1598.6295065621416,1657.8946915059521,1720.5213049369595,1786.5927047384255,1856.1918097990217]
[1000344995,4,1,1,1,3,3.0306803023566031,3,3,3,3.0230632761679481,2.1694249845207684E-2,0,0,0,1.6308198974734206E-2,0.12304063405958204,0,0,0,0.3677509745712596,1182.5411797879206,1240.0478325433839,1299.2958966696308,1360.307247754426,1423.1036615943347,1487.706816302207,1554.1382943363806,1622.4195844557503,1692.5720836045273,1764.6170987302821,1838.5758485386214,1914.4694651876243,0,0,0,0,0,0,0,0,0,0,0,0,0,0,0,0,0,0,0,0,0,0,0,0,0,0,0,0,0,0,0,0,0,0,0,0,573.50238844798412,601.3916520699255,630.12545590533682,659.71440905777058,690.16907223458645,721.49995876902767,753.71753560433149,786.83222424189,820.85440165530952,855.79440117211402,891.6625133247212,928.46898667219887,0,0,0,0,0,0,0,0,0,0,0,0,1446.559544842873,1470.9502477413887,1496.0795477470858,1521.9567231075471,1548.5910097452079,1575.9916021512206,1604.1676542461125,1633.1282802090045,1662.8825552770077,1693.4395165163212,1724.8081635664571,1756.9974593589134,3202.6031130787778,3312.389732354698,3425.500900322053,3541.9783799197435,3661.8637435741293,3785.1983772224548,3912.0234841868246,4042.3800889066447,4176.3090405368448,4313.8510164187173,4455.0465254297997,4599.9359112187367]
[1000349025,4,1,1,1,3,3.0306803023566031,3,3,3,3.0230632761679481,2.1694249845207684E-2,0,0,0,1.6308198974734206E-2,0.12304063405958204,0,0,0,0.3677509745712596,87.895525086545064,99.237694226602784,111.46607994206619,124.60866072077268,138.69310215262723,153.74677275431705,169.79675841755133,186.86987564701454,204.9926837289363,224.19149595049328,244.49238997319185,265.92121744920513,0,0,0,0,0,0,0,0,0,0,0,0,0,0,0,0,0,0,0,0,0,0,0,0,0,0,0,0,0,0,0,0,0,0,0,0,42.627093612134182,48.12775710122358,54.058213084108843,60.432030415620723,67.262626203052804,74.563273480745593,82.347108217115235,90.627135734724064,99.416236611727371,108.72717212299804,118.57258927095313,128.96502544923271,0,0,0,0,0,0,0,0,0,0,0,0,982.27975000755498,987.09038433357352,992.27689595654374,997.85115159017073,1003.8248852365491,1010.2097048980108,1017.0170987051594,1024.2584405315763,1031.9449951549625,1040.0879230157029,1048.6982846166022,1057.7870446015299,1112.8023687062343,1134.4558356614,1157.8011889827189,1182.8918427265642,1209.7806135922292,1238.5197511330737,1269.1609653398259,1301.755451913315,1336.3539154956261,1373.0065910891944,1411.7632638607472,1452.6732874999677]
[1000349053,4,1,1,1,3,3.0306803023566031,3,3,3,3.0230632761679481,2.1694249845207684E-2,0,0,0,1.6308198974734206E-2,0.12304063405958204,0,0,0,0.3677509745712596,77.411263737631444,87.895525086545064,99.237694226602784,111.46607994206619,124.60866072077268,138.69310215262723,153.74677275431705,169.79675841755133,186.86987564701454,204.9926837289363,224.19149595049328,244.49238997319185,0,0,0,0,0,0,0,0,0,0,0,0,0,0,0,0,0,0,0,0,0,0,0,0,0,0,0,0,0,0,0,0,0,0,0,0,37.542493576646898,42.627093612134182,48.12775710122358,54.058213084108843,60.432030415620723,67.262626203052804,74.563273480745593,82.347108217115235,90.627135734724064,99.416236611727371,108.72717212299804,118.57258927095313,0,0,0,0,0,0,0,0,0,0,0,0,977.83298617382718,982.27975000755498,987.09038433357352,992.27689595654374,997.85115159017073,1003.8248852365491,1010.2097048980108,1017.0170987051594,1024.2584405315763,1031.9449951549625,1040.0879230157029,1048.6982846166022,1092.7867434881055,1112.8023687062343,1134.4558356614,1157.8011889827189,1182.8918427265642,1209.7806135922292,1238.5197511330737,1269.1609653398259,1301.755451913315,1336.3539154956261,1373.0065910891944,1411.7632638607472]
[1000349084,4,1,1,1,3,3.0306803023566031,3,3,3,3.0230632761679481,2.1694249845207684E-2,0,0,0,1.6308198974734206E-2,0.12304063405958204,0,0,0,0.3677509745712596,77.411263737631444,87.895525086545064,99.237694226602784,111.46607994206619,124.60866072077268,138.69310215262723,153.74677275431705,169.79675841755133,186.86987564701454,204.9926837289363,224.19149595049328,244.49238997319185,0,0,0,0,0,0,0,0,0,0,0,0,0,0,0,0,0,0,0,0,0,0,0,0,0,0,0,0,0,0,0,0,0,0,0,0,37.542493576646898,42.627093612134182,48.12775710122358,54.058213084108843,60.432030415620723,67.262626203052804,74.563273480745593,82.347108217115235,90.627135734724064,99.416236611727371,108.72717212299804,118.57258927095313,0,0,0,0,0,0,0,0,0,0,0,0,977.83298617382718,982.27975000755498,987.09038433357352,992.27689595654374,997.85115159017073,1003.8248852365491,1010.2097048980108,1017.0170987051594,1024.2584405315763,1031.9449951549625,1040.0879230157029,1048.6982846166022,1092.7867434881055,1112.8023687062343,1134.4558356614,1157.8011889827189,1182.8918427265642,1209.7806135922292,1238.5197511330737,1269.1609653398259,1301.755451913315,1336.3539154956261,1373.0065910891944,1411.7632638607472]
[1000349112,4,1,1,1,3,3.0306803023566031,3,3,3,3.0230632761679481,2.1694249845207684E-2,0,0,0,1.6308198974734206E-2,0.12304063405958204,0,0,0,0.3677509745712596,67.756251890949088,77.411263737631444,87.895525086545064,99.237694226602784,111.46607994206619,124.60866072077268,138.69310215262723,153.74677275431705,169.79675841755133,186.86987564701454,204.9926837289363,224.19149595049328,0,0,0,0,0,0,0,0,0,0,0,0,0,0,0,0,0,0,0,0,0,0,0,0,0,0,0,0,0,0,0,0,0,0,0,0,32.860058453703466,37.542493576646898,42.627093612134182,48.12775710122358,54.058213084108843,60.432030415620723,67.262626203052804,74.563273480745593,82.347108217115235,90.627135734724064,99.416236611727371,108.72717212299804,0,0,0,0,0,0,0,0,0,0,0,0,973.73793778985203,977.83298617382718,982.27975000755498,987.09038433357352,992.27689595654374,997.85115159017073,1003.8248852365491,1010.2097048980108,1017.0170987051594,1024.2584405315763,1031.9449951549625,1040.0879230157029,1074.3542481345046,1092.7867434881055,1112.8023687062343,1134.4558356614,1157.8011889827189,1182.8918427265642,1209.7806135922292,1238.5197511330737,1269.1609653398259,1301.755451913315,1336.3539154956261,1373.0065910891944]
[1000349143,4,1,1,1,3,3.0306803023566031,3,3,3,3.0230632761679481,2.1694249845207684E-2,0,0,0,1.6308198974734206E-2,0.12304063405958204,0,0,0,0.3677509745712596,58.901460450564159,67.756251890949088,77.411263737631444,87.895525086545064,99.237694226602784,111.46607994206619,124.60866072077268,138.69310215262723,153.74677275431705,169.79675841755133,186.86987564701454,204.9926837289363,0,0,0,0,0,0,0,0,0,0,0,0,0,0,0,0,0,0,0,0,0,0,0,0,0,0,0,0,0,0,0,0,0,0,0,0,28.565709870273789,32.860058453703466,37.542493576646898,42.627093612134182,48.12775710122358,54.058213084108843,60.432030415620723,67.262626203052804,74.563273480745593,82.347108217115235,90.627135734724064,99.416236611727371,0,0,0,0,0,0,0,0,0,0,0,0,969.98229254009038,973.73793778985203,977.83298617382718,982.27975000755498,987.09038433357352,992.27689595654374,997.85115159017073,1003.8248852365491,1010.2097048980108,1017.0170987051594,1024.2584405315763,1031.9449951549625,1057.4494628609282,1074.3542481345046,1092.7867434881055,1112.8023687062343,1134.4558356614,1157.8011889827189,1182.8918427265642,1209.7806135922292,1238.5197511330737,1269.1609653398259,1301.755451913315,1336.3539154956261]
[1000349169,4,1,1,1,3,3.0306803023566031,3,3,3,3.0230632761679481,2.1694249845207684E-2,0,0,0,1.6308198974734206E-2,0.12304063405958204,0,0,0,0.3677509745712596,87.895525086545064,99.237694226602784,111.46607994206619,124.60866072077268,138.69310215262723,153.74677275431705,169.79675841755133,186.86987564701454,204.9926837289363,224.19149595049328,244.49238997319185,265.92121744920513,0,0,0,0,0,0,0,0,0,0,0,0,0,0,0,0,0,0,0,0,0,0,0,0,0,0,0,0,0,0,0,0,0,0,0,0,42.627093612134182,48.12775710122358,54.058213084108843,60.432030415620723,67.262626203052804,74.563273480745593,82.347108217115235,90.627135734724064,99.416236611727371,108.72717212299804,118.57258927095313,128.96502544923271,0,0,0,0,0,0,0,0,0,0,0,0,982.27975000755498,987.09038433357352,992.27689595654374,997.85115159017073,1003.8248852365491,1010.2097048980108,1017.0170987051594,1024.2584405315763,1031.9449951549625,1040.0879230157029,1048.6982846166022,1057.7870446015299,1112.8023687062343,1134.4558356614,1157.8011889827189,1182.8918427265642,1209.7806135922292,1238.5197511330737,1269.1609653398259,1301.755451913315,1336.3539154956261,1373.0065910891944,1411.7632638607472,1452.6732874999677]
[1000349201,4,1,1,1,3,3.0306803023566031,3,3,3,3.0230632761679481,2.1694249845207684E-2,0,0,0,1.6308198974734206E-2,0.12304063405958204,0,0,0,0.3677509745712596,87.895525086545064,99.237694226602784,111.46607994206619,124.60866072077268,138.69310215262723,153.74677275431705,169.79675841755133,186.86987564701454,204.9926837289363,224.19149595049328,244.49238997319185,265.92121744920513,0,0,0,0,0,0,0,0,0,0,0,0,0,0,0,0,0,0,0,0,0,0,0,0,0,0,0,0,0,0,0,0,0,0,0,0,42.627093612134182,48.12775710122358,54.058213084108843,60.432030415620723,67.262626203052804,74.563273480745593,82.347108217115235,90.627135734724064,99.416236611727371,108.72717212299804,118.57258927095313,128.96502544923271,0,0,0,0,0,0,0,0,0,0,0,0,982.27975000755498,987.09038433357352,992.27689595654374,997.85115159017073,1003.8248852365491,1010.2097048980108,1017.0170987051594,1024.2584405315763,1031.9449951549625,1040.0879230157029,1048.6982846166022,1057.7870446015299,1112.8023687062343,1134.4558356614,1157.8011889827189,1182.8918427265642,1209.7806135922292,1238.5197511330737,1269.1609653398259,1301.755451913315,1336.3539154956261,1373.0065910891944,1411.7632638607472,1452.6732874999677]
[1000349231,4,1,1,1,3,3.0306803023566031,3,3,3,3.0230632761679481,2.1694249845207684E-2,0,0,0,1.6308198974734206E-2,0.12304063405958204,0,0,0,0.3677509745712596,67.756251890949088,77.411263737631444,87.895525086545064,99.237694226602784,111.46607994206619,124.60866072077268,138.69310215262723,153.74677275431705,169.79675841755133,186.86987564701454,204.9926837289363,224.19149595049328,0,0,0,0,0,0,0,0,0,0,0,0,0,0,0,0,0,0,0,0,0,0,0,0,0,0,0,0,0,0,0,0,0,0,0,0,32.860058453703466,37.542493576646898,42.627093612134182,48.12775710122358,54.058213084108843,60.432030415620723,67.262626203052804,74.563273480745593,82.347108217115235,90.627135734724064,99.416236611727371,108.72717212299804,0,0,0,0,0,0,0,0,0,0,0,0,973.73793778985203,977.83298617382718,982.27975000755498,987.09038433357352,992.27689595654374,997.85115159017073,1003.8248852365491,1010.2097048980108,1017.0170987051594,1024.2584405315763,1031.9449951549625,1040.0879230157029,1074.3542481345046,1092.7867434881055,1112.8023687062343,1134.4558356614,1157.8011889827189,1182.8918427265642,1209.7806135922292,1238.5197511330737,1269.1609653398259,1301.755451913315,1336.3539154956261,1373.0065910891944]
[1000349259,4,1,1,1,3,3.0306803023566031,3,3,3,3.0230632761679481,2.1694249845207684E-2,0,0,0,1.6308198974734206E-2,0.12304063405958204,0,0,0,0.3677509745712596,67.756251890949088,77.411263737631444,87.895525086545064,99.237694226602784,111.46607994206619,124.60866072077268,138.69310215262723,153.74677275431705,169.79675841755133,186.86987564701454,204.9926837289363,224.19149595049328,0,0,0,0,0,0,0,0,0,0,0,0,0,0,0,0,0,0,0,0,0,0,0,0,0,0,0,0,0,0,0,0,0,0,0,0,32.860058453703466,37.542493576646898,42.627093612134182,48.12775710122358,54.058213084108843,60.432030415620723,67.262626203052804,74.563273480745593,82.347108217115235,90.627135734724064,99.416236611727371,108.72717212299804,0,0,0,0,0,0,0,0,0,0,0,0,973.73793778985203,977.83298617382718,982.27975000755498,987.09038433357352,992.27689595654374,997.85115159017073,1003.8248852365491,1010.2097048980108,1017.0170987051594,1024.2584405315763,1031.9449951549625,1040.0879230157029,1074.3542481345046,1092.7867434881055,1112.8023687062343,1134.4558356614,1157.8011889827189,1182.8918427265642,1209.7806135922292,1238.5197511330737,1269.1609653398259,1301.755451913315,1336.3539154956261,1373.0065910891944]
[1000349287,4,1,1,1,3,3.0306803023566031,3,3,3,3.0230632761679481,2.1694249845207684E-2,0,0,0,1.6308198974734206E-2,0.12304063405958204,0,0,0,0.3677509745712596,67.756251890949088,77.411263737631444,87.895525086545064,99.237694226602784,111.46607994206619,124.60866072077268,138.69310215262723,153.74677275431705,169.79675841755133,186.86987564701454,204.9926837289363,224.19149595049328,0,0,0,0,0,0,0,0,0,0,0,0,0,0,0,0,0,0,0,0,0,0,0,0,0,0,0,0,0,0,0,0,0,0,0,0,32.860058453703466,37.542493576646898,42.627093612134182,48.12775710122358,54.058213084108843,60.432030415620723,67.262626203052804,74.563273480745593,82.347108217115235,90.627135734724064,99.416236611727371,108.72717212299804,0,0,0,0,0,0,0,0,0,0,0,0,973.73793778985203,977.83298617382718,982.27975000755498,987.09038433357352,992.27689595654374,997.85115159017073,1003.8248852365491,1010.2097048980108,1017.0170987051594,1024.2584405315763,1031.9449951549625,1040.0879230157029,1074.3542481345046,1092.7867434881055,1112.8023687062343,1134.4558356614,1157.8011889827189,1182.8918427265642,1209.7806135922292,1238.5197511330737,1269.1609653398259,1301.755451913315,1336.3539154956261,1373.0065910891944]
[1000349315,4,1,1,1,3,3.0306803023566031,3,3,3,3.0230632761679481,2.1694249845207684E-2,0,0,0,1.6308198974734206E-2,0.12304063405958204,0,0,0,0.3677509745712596,58.901460450564159,67.756251890949088,77.411263737631444,87.895525086545064,99.237694226602784,111.46607994206619,124.60866072077268,138.69310215262723,153.74677275431705,169.79675841755133,186.86987564701454,204.9926837289363,0,0,0,0,0,0,0,0,0,0,0,0,0,0,0,0,0,0,0,0,0,0,0,0,0,0,0,0,0,0,0,0,0,0,0,0,28.565709870273789,32.860058453703466,37.542493576646898,42.627093612134182,48.12775710122358,54.058213084108843,60.432030415620723,67.262626203052804,74.563273480745593,82.347108217115235,90.627135734724064,99.416236611727371,0,0,0,0,0,0,0,0,0,0,0,0,969.98229254009038,973.73793778985203,977.83298617382718,982.27975000755498,987.09038433357352,992.27689595654374,997.85115159017073,1003.8248852365491,1010.2097048980108,1017.0170987051594,1024.2584405315763,1031.9449951549625,1057.4494628609282,1074.3542481345046,1092.7867434881055,1112.8023687062343,1134.4558356614,1157.8011889827189,1182.8918427265642,1209.7806135922292,1238.5197511330737,1269.1609653398259,1301.755451913315,1336.3539154956261]
[1000349346,4,1,1,1,3,3.0306803023566031,3,3,3,3.0230632761679481,2.1694249845207684E-2,0,0,0,1.6308198974734206E-2,0.12304063405958204,0,0,0,0.3677509745712596,58.901460450564159,67.756251890949088,77.411263737631444,87.895525086545064,99.237694226602784,111.46607994206619,124.60866072077268,138.69310215262723,153.74677275431705,169.79675841755133,186.86987564701454,204.9926837289363,0,0,0,0,0,0,0,0,0,0,0,0,0,0,0,0,0,0,0,0,0,0,0,0,0,0,0,0,0,0,0,0,0,0,0,0,28.565709870273789,32.860058453703466,37.542493576646898,42.627093612134182,48.12775710122358,54.058213084108843,60.432030415620723,67.262626203052804,74.563273480745593,82.347108217115235,90.627135734724064,99.416236611727371,0,0,0,0,0,0,0,0,0,0,0,0,969.98229254009038,973.73793778985203,977.83298617382718,982.27975000755498,987.09038433357352,992.27689595654374,997.85115159017073,1003.8248852365491,1010.2097048980108,1017.0170987051594,1024.2584405315763,1031.9449951549625,1057.4494628609282,1074.3542481345046,1092.7867434881055,1112.8023687062343,1134.4558356614,1157.8011889827189,1182.8918427265642,1209.7806135922292,1238.5197511330737,1269.1609653398259,1301.755451913315,1336.3539154956261]
[1000349374,4,1,1,1,3,3.0306803023566031,3,3,3,3.0230632761679481,2.1694249845207684E-2,0,0,0,1.6308198974734206E-2,0.12304063405958204,0,0,0,0.3677509745712596,58.901460450564159,67.756251890949088,77.411263737631444,87.895525086545064,99.237694226602784,111.46607994206619,124.60866072077268,138.69310215262723,153.74677275431705,169.79675841755133,186.86987564701454,204.9926837289363,0,0,0,0,0,0,0,0,0,0,0,0,0,0,0,0,0,0,0,0,0,0,0,0,0,0,0,0,0,0,0,0,0,0,0,0,28.565709870273789,32.860058453703466,37.542493576646898,42.627093612134182,48.12775710122358,54.058213084108843,60.432030415620723,67.262626203052804,74.563273480745593,82.347108217115235,90.627135734724064,99.416236611727371,0,0,0,0,0,0,0,0,0,0,0,0,969.98229254009038,973.73793778985203,977.83298617382718,982.27975000755498,987.09038433357352,992.27689595654374,997.85115159017073,1003.8248852365491,1010.2097048980108,1017.0170987051594,1024.2584405315763,1031.9449951549625,1057.4494628609282,1074.3542481345046,1092.7867434881055,1112.8023687062343,1134.4558356614,1157.8011889827189,1182.8918427265642,1209.7806135922292,1238.5197511330737,1269.1609653398259,1301.755451913315,1336.3539154956261]
[1000349403,4,1,1,1,3,3.0306803023566031,3,3,3,3.0230632761679481,2.1694249845207684E-2,0,0,0,1.6308198974734206E-2,0.12304063405958204,0,0,0,0.3677509745712596,58.901460450564159,67.756251890949088,77.411263737631444,87.895525086545064,99.237694226602784,111.46607994206619,124.60866072077268,138.69310215262723,153.74677275431705,169.79675841755133,186.86987564701454,204.9926837289363,0,0,0,0,0,0,0,0,0,0,0,0,0,0,0,0,0,0,0,0,0,0,0,0,0,0,0,0,0,0,0,0,0,0,0,0,28.565709870273789,32.860058453703466,37.542493576646898,42.627093612134182,48.12775710122358,54.058213084108843,60.432030415620723,67.262626203052804,74.563273480745593,82.347108217115235,90.627135734724064,99.416236611727371,0,0,0,0,0,0,0,0,0,0,0,0,969.98229254009038,973.73793778985203,977.83298617382718,982.27975000755498,987.09038433357352,992.27689595654374,997.85115159017073,1003.8248852365491,1010.2097048980108,1017.0170987051594,1024.2584405315763,1031.9449951549625,1057.4494628609282,1074.3542481345046,1092.7867434881055,1112.8023687062343,1134.4558356614,1157.8011889827189,1182.8918427265642,1209.7806135922292,1238.5197511330737,1269.1609653398259,1301.755451913315,1336.3539154956261]
[1000349461,4,1,1,1,3,3.0306803023566031,3,3,3,3.0230632761679481,2.1694249845207684E-2,0,0,0,1.6308198974734206E-2,0.12304063405958204,0,0,0,0.3677509745712596,67.756251890949088,77.411263737631444,87.895525086545064,99.237694226602784,111.46607994206619,124.60866072077268,138.69310215262723,153.74677275431705,169.79675841755133,186.86987564701454,204.9926837289363,224.19149595049328,0,0,0,0,0,0,0,0,0,0,0,0,0,0,0,0,0,0,0,0,0,0,0,0,0,0,0,0,0,0,0,0,0,0,0,0,32.860058453703466,37.542493576646898,42.627093612134182,48.12775710122358,54.058213084108843,60.432030415620723,67.262626203052804,74.563273480745593,82.347108217115235,90.627135734724064,99.416236611727371,108.72717212299804,0,0,0,0,0,0,0,0,0,0,0,0,973.73793778985203,977.83298617382718,982.27975000755498,987.09038433357352,992.27689595654374,997.85115159017073,1003.8248852365491,1010.2097048980108,1017.0170987051594,1024.2584405315763,1031.9449951549625,1040.0879230157029,1074.3542481345046,1092.7867434881055,1112.8023687062343,1134.4558356614,1157.8011889827189,1182.8918427265642,1209.7806135922292,1238.5197511330737,1269.1609653398259,1301.755451913315,1336.3539154956261,1373.0065910891944]
[1000349494,4,1,1,1,3,3.0306803023566031,3,3,3,3.0230632761679481,2.1694249845207684E-2,0,0,0,1.6308198974734206E-2,0.12304063405958204,0,0,0,0.3677509745712596,43.474423051897745,50.817465771241231,58.901460450564159,67.756251890949088,77.411263737631444,87.895525086545064,99.237694226602784,111.46607994206619,124.60866072077268,138.69310215262723,153.74677275431705,169.79675841755133,0,0,0,0,0,0,0,0,0,0,0,0,0,0,0,0,0,0,0,0,0,0,0,0,0,0,0,0,0,0,0,0,0,0,0,0,21.08398919446757,24.64517810695375,28.565709870273789,32.860058453703466,37.542493576646898,42.627093612134182,48.12775710122358,54.058213084108843,60.432030415620723,67.262626203052804,74.563273480745593,82.347108217115235,0,0,0,0,0,0,0,0,0,0,0,0,963.43911418131495,966.55357076602024,969.98229254009038,973.73793778985203,977.83298617382718,982.27975000755498,987.09038433357352,992.27689595654374,997.85115159017073,1003.8248852365491,1010.2097048980108,1017.0170987051594,1027.9975264276802,1042.0162146442151,1057.4494628609282,1074.3542481345046,1092.7867434881055,1112.8023687062343,1134.4558356614,1157.8011889827189,1182.8918427265642,1209.7806135922292,1238.5197511330737,1269.1609653398259]
[1000349615,4,1,1,1,3,3.0306803023566031,3,3,3,3.0230632761679481,2.1694249845207684E-2,0,0,0,1.6308198974734206E-2,0.12304063405958204,0,0,0,0.3677509745712596,58.901460450564159,67.756251890949088,77.411263737631444,87.895525086545064,99.237694226602784,111.46607994206619,124.60866072077268,138.69310215262723,153.74677275431705,169.79675841755133,186.86987564701454,204.9926837289363,0,0,0,0,0,0,0,0,0,0,0,0,0,0,0,0,0,0,0,0,0,0,0,0,0,0,0,0,0,0,0,0,0,0,0,0,28.565709870273789,32.860058453703466,37.542493576646898,42.627093612134182,48.12775710122358,54.058213084108843,60.432030415620723,67.262626203052804,74.563273480745593,82.347108217115235,90.627135734724064,99.416236611727371,0,0,0,0,0,0,0,0,0,0,0,0,969.98229254009038,973.73793778985203,977.83298617382718,982.27975000755498,987.09038433357352,992.27689595654374,997.85115159017073,1003.8248852365491,1010.2097048980108,1017.0170987051594,1024.2584405315763,1031.9449951549625,1057.4494628609282,1074.3542481345046,1092.7867434881055,1112.8023687062343,1134.4558356614,1157.8011889827189,1182.8918427265642,1209.7806135922292,1238.5197511330737,1269.1609653398259,1301.755451913315,1336.3539154956261]
[1000349645,4,1,1,1,3,3.0306803023566031,3,3,3,3.0230632761679481,2.1694249845207684E-2,0,0,0,1.6308198974734206E-2,0.12304063405958204,0,0,0,0.3677509745712596,50.817465771241231,58.901460450564159,67.756251890949088,77.411263737631444,87.895525086545064,99.237694226602784,111.46607994206619,124.60866072077268,138.69310215262723,153.74677275431705,169.79675841755133,186.86987564701454,0,0,0,0,0,0,0,0,0,0,0,0,0,0,0,0,0,0,0,0,0,0,0,0,0,0,0,0,0,0,0,0,0,0,0,0,24.64517810695375,28.565709870273789,32.860058453703466,37.542493576646898,42.627093612134182,48.12775710122358,54.058213084108843,60.432030415620723,67.262626203052804,74.563273480745593,82.347108217115235,90.627135734724064,0,0,0,0,0,0,0,0,0,0,0,0,966.55357076602024,969.98229254009038,973.73793778985203,977.83298617382718,982.27975000755498,987.09038433357352,992.27689595654374,997.85115159017073,1003.8248852365491,1010.2097048980108,1017.0170987051594,1024.2584405315763,1042.0162146442151,1057.4494628609282,1074.3542481345046,1092.7867434881055,1112.8023687062343,1134.4558356614,1157.8011889827189,1182.8918427265642,1209.7806135922292,1238.5197511330737,1269.1609653398259,1301.755451913315]
[1000349674,4,1,1,1,3,3.0306803023566031,3,3,3,3.0230632761679481,2.1694249845207684E-2,0,0,0,1.6308198974734206E-2,0.12304063405958204,0,0,0,0.3677509745712596,50.817465771241231,58.901460450564159,67.756251890949088,77.411263737631444,87.895525086545064,99.237694226602784,111.46607994206619,124.60866072077268,138.69310215262723,153.74677275431705,169.79675841755133,186.86987564701454,0,0,0,0,0,0,0,0,0,0,0,0,0,0,0,0,0,0,0,0,0,0,0,0,0,0,0,0,0,0,0,0,0,0,0,0,24.64517810695375,28.565709870273789,32.860058453703466,37.542493576646898,42.627093612134182,48.12775710122358,54.058213084108843,60.432030415620723,67.262626203052804,74.563273480745593,82.347108217115235,90.627135734724064,0,0,0,0,0,0,0,0,0,0,0,0,966.55357076602024,969.98229254009038,973.73793778985203,977.83298617382718,982.27975000755498,987.09038433357352,992.27689595654374,997.85115159017073,1003.8248852365491,1010.2097048980108,1017.0170987051594,1024.2584405315763,1042.0162146442151,1057.4494628609282,1074.3542481345046,1092.7867434881055,1112.8023687062343,1134.4558356614,1157.8011889827189,1182.8918427265642,1209.7806135922292,1238.5197511330737,1269.1609653398259,1301.755451913315]
[1000349704,4,1,1,1,3,3.0306803023566031,3,3,3,3.0230632761679481,2.1694249845207684E-2,0,0,0,1.6308198974734206E-2,0.12304063405958204,0,0,0,0.3677509745712596,36.842036338549633,43.474423051897745,50.817465771241231,58.901460450564159,67.756251890949088,77.411263737631444,87.895525086545064,99.237694226602784,111.46607994206619,124.60866072077268,138.69310215262723,153.74677275431705,0,0,0,0,0,0,0,0,0,0,0,0,0,0,0,0,0,0,0,0,0,0,0,0,0,0,0,0,0,0,0,0,0,0,0,0,17.867450365859522,21.08398919446757,24.64517810695375,28.565709870273789,32.860058453703466,37.542493576646898,42.627093612134182,48.12775710122358,54.058213084108843,60.432030415620723,67.262626203052804,74.563273480745593,0,0,0,0,0,0,0,0,0,0,0,0,960.62607314898037,963.43911418131495,966.55357076602024,969.98229254009038,973.73793778985203,977.83298617382718,982.27975000755498,987.09038433357352,992.27689595654374,997.85115159017073,1003.8248852365491,1010.2097048980108,1015.3355598533896,1027.9975264276802,1042.0162146442151,1057.4494628609282,1074.3542481345046,1092.7867434881055,1112.8023687062343,1134.4558356614,1157.8011889827189,1182.8918427265642,1209.7806135922292,1238.5197511330737]
[1000349797,4,1,1,1,3,3.0306803023566031,3,3,3,3.0230632761679481,2.1694249845207684E-2,0,0,0,1.6308198974734206E-2,0.12304063405958204,0,0,0,0.3677509745712596,36.842036338549633,43.474423051897745,50.817465771241231,58.901460450564159,67.756251890949088,77.411263737631444,87.895525086545064,99.237694226602784,111.46607994206619,124.60866072077268,138.69310215262723,153.74677275431705,0,0,0,0,0,0,0,0,0,0,0,0,0,0,0,0,0,0,0,0,0,0,0,0,0,0,0,0,0,0,0,0,0,0,0,0,17.867450365859522,21.08398919446757,24.64517810695375,28.565709870273789,32.860058453703466,37.542493576646898,42.627093612134182,48.12775710122358,54.058213084108843,60.432030415620723,67.262626203052804,74.563273480745593,0,0,0,0,0,0,0,0,0,0,0,0,960.62607314898037,963.43911418131495,966.55357076602024,969.98229254009038,973.73793778985203,977.83298617382718,982.27975000755498,987.09038433357352,992.27689595654374,997.85115159017073,1003.8248852365491,1010.2097048980108,1015.3355598533896,1027.9975264276802,1042.0162146442151,1057.4494628609282,1074.3542481345046,1092.7867434881055,1112.8023687062343,1134.4558356614,1157.8011889827189,1182.8918427265642,1209.7806135922292,1238.5197511330737]
[1000349829,4,1,1,1,3,3.0306803023566031,3,3,3,3.0230632761679481,2.1694249845207684E-2,0,0,0,1.6308198974734206E-2,0.12304063405958204,0,0,0,0.3677509745712596,36.842036338549633,43.474423051897745,50.817465771241231,58.901460450564159,67.756251890949088,77.411263737631444,87.895525086545064,99.237694226602784,111.46607994206619,124.60866072077268,138.69310215262723,153.74677275431705,0,0,0,0,0,0,0,0,0,0,0,0,0,0,0,0,0,0,0,0,0,0,0,0,0,0,0,0,0,0,0,0,0,0,0,0,17.867450365859522,21.08398919446757,24.64517810695375,28.565709870273789,32.860058453703466,37.542493576646898,42.627093612134182,48.12775710122358,54.058213084108843,60.432030415620723,67.262626203052804,74.563273480745593,0,0,0,0,0,0,0,0,0,0,0,0,960.62607314898037,963.43911418131495,966.55357076602024,969.98229254009038,973.73793778985203,977.83298617382718,982.27975000755498,987.09038433357352,992.27689595654374,997.85115159017073,1003.8248852365491,1010.2097048980108,1015.3355598533896,1027.9975264276802,1042.0162146442151,1057.4494628609282,1074.3542481345046,1092.7867434881055,1112.8023687062343,1134.4558356614,1157.8011889827189,1182.8918427265642,1209.7806135922292,1238.5197511330737]
[1000349857,4,1,1,1,3,3.0306803023566031,3,3,3,3.0230632761679481,2.1694249845207684E-2,0,0,0,1.6308198974734206E-2,0.12304063405958204,0,0,0,0.3677509745712596,43.474423051897745,50.817465771241231,58.901460450564159,67.756251890949088,77.411263737631444,87.895525086545064,99.237694226602784,111.46607994206619,124.60866072077268,138.69310215262723,153.74677275431705,169.79675841755133,0,0,0,0,0,0,0,0,0,0,0,0,0,0,0,0,0,0,0,0,0,0,0,0,0,0,0,0,0,0,0,0,0,0,0,0,21.08398919446757,24.64517810695375,28.565709870273789,32.860058453703466,37.542493576646898,42.627093612134182,48.12775710122358,54.058213084108843,60.432030415620723,67.262626203052804,74.563273480745593,82.347108217115235,0,0,0,0,0,0,0,0,0,0,0,0,963.43911418131495,966.55357076602024,969.98229254009038,973.73793778985203,977.83298617382718,982.27975000755498,987.09038433357352,992.27689595654374,997.85115159017073,1003.8248852365491,1010.2097048980108,1017.0170987051594,1027.9975264276802,1042.0162146442151,1057.4494628609282,1074.3542481345046,1092.7867434881055,1112.8023687062343,1134.4558356614,1157.8011889827189,1182.8918427265642,1209.7806135922292,1238.5197511330737,1269.1609653398259]
[1000349884,4,1,1,1,3,3.0306803023566031,3,3,3,3.0230632761679481,2.1694249845207684E-2,0,0,0,1.6308198974734206E-2,0.12304063405958204,0,0,0,0.3677509745712596,50.817465771241231,58.901460450564159,67.756251890949088,77.411263737631444,87.895525086545064,99.237694226602784,111.46607994206619,124.60866072077268,138.69310215262723,153.74677275431705,169.79675841755133,186.86987564701454,0,0,0,0,0,0,0,0,0,0,0,0,0,0,0,0,0,0,0,0,0,0,0,0,0,0,0,0,0,0,0,0,0,0,0,0,24.64517810695375,28.565709870273789,32.860058453703466,37.542493576646898,42.627093612134182,48.12775710122358,54.058213084108843,60.432030415620723,67.262626203052804,74.563273480745593,82.347108217115235,90.627135734724064,0,0,0,0,0,0,0,0,0,0,0,0,966.55357076602024,969.98229254009038,973.73793778985203,977.83298617382718,982.27975000755498,987.09038433357352,992.27689595654374,997.85115159017073,1003.8248852365491,1010.2097048980108,1017.0170987051594,1024.2584405315763,1042.0162146442151,1057.4494628609282,1074.3542481345046,1092.7867434881055,1112.8023687062343,1134.4558356614,1157.8011889827189,1182.8918427265642,1209.7806135922292,1238.5197511330737,1269.1609653398259,1301.755451913315]
[1000349913,4,1,1,1,3,3.0306803023566031,3,3,3,3.0230632761679481,2.1694249845207684E-2,0,0,0,1.6308198974734206E-2,0.12304063405958204,0,0,0,0.3677509745712596,58.901460450564159,67.756251890949088,77.411263737631444,87.895525086545064,99.237694226602784,111.46607994206619,124.60866072077268,138.69310215262723,153.74677275431705,169.79675841755133,186.86987564701454,204.9926837289363,0,0,0,0,0,0,0,0,0,0,0,0,0,0,0,0,0,0,0,0,0,0,0,0,0,0,0,0,0,0,0,0,0,0,0,0,28.565709870273789,32.860058453703466,37.542493576646898,42.627093612134182,48.12775710122358,54.058213084108843,60.432030415620723,67.262626203052804,74.563273480745593,82.347108217115235,90.627135734724064,99.416236611727371,0,0,0,0,0,0,0,0,0,0,0,0,969.98229254009038,973.73793778985203,977.83298617382718,982.27975000755498,987.09038433357352,992.27689595654374,997.85115159017073,1003.8248852365491,1010.2097048980108,1017.0170987051594,1024.2584405315763,1031.9449951549625,1057.4494628609282,1074.3542481345046,1092.7867434881055,1112.8023687062343,1134.4558356614,1157.8011889827189,1182.8918427265642,1209.7806135922292,1238.5197511330737,1269.1609653398259,1301.755451913315,1336.3539154956261]
[1000349939,4,1,1,1,3,3.0306803023566031,3,3,3,3.0230632761679481,2.1694249845207684E-2,0,0,0,1.6308198974734206E-2,0.12304063405958204,0,0,0,0.3677509745712596,89.772149946485101,105.07322047044566,121.99315558915362,140.60938164437835,160.99898006384194,183.2387052413664,207.40500071877531,233.57401389782106,261.82160947146735,292.22338173285181,324.85466589533036,359.79054853678451,0,0,0,0,0,0,0,0,0,0,0,0,0,0,0,0,0,0,0,0,0,0,0,0,0,0,0,0,0,0,0,0,0,0,0,0,43.537208928024917,50.95783887418559,59.163576965018251,68.191973006561369,78.080409530315009,88.866110464657496,100.58614898265593,113.27745463697664,126.97681987371553,141.72090600193184,157.54624868358169,174.48926299874125,0,0,0,0,0,0,0,0,0,0,0,0,983.07569616713079,989.56544730542328,996.74181892102479,1004.6376503952616,1013.285634818628,1022.7183265744196,1032.9681482020787,1044.0673966370662,1056.0482489075675,1068.94276735518,1082.7829044361622,1097.6005071512527,1116.3850550416407,1145.5965066500546,1177.8985514751967,1213.4390050462014,1252.3650244127848,1294.8231422804436,1340.9592979035099,1390.9188651718639,1444.8466782527505,1502.8870550899635,1565.1838190150743,1631.8803186867785]
[1000349972,4,1,1,1,3,3.0306803023566031,3,3,3,3.0230632761679481,2.1694249845207684E-2,0,0,0,1.6308198974734206E-2,0.12304063405958204,0,0,0,0.3677509745712596,67.561499606835071,78.692063992957557,90.941943763863506,104.3592575189911,118.99169358806412,134.88653413328203,152.09067686825912,170.65065472277598,190.6126537251331,212.02252932849518,234.92582137124518,259.36776783198644,0,0,0,0,0,0,0,0,0,0,0,0,0,0,0,0,0,0,0,0,0,0,0,0,0,0,0,0,0,0,0,0,0,0,0,0,32.765608550390063,38.1636491170282,44.104529169996113,50.611585005888166,57.707944251433261,65.416537552443856,73.760109106948946,82.761226202098285,92.44228788664887,102.82553288882667,113.93304687171775,125.78676910409429,0,0,0,0,0,0,0,0,0,0,0,0,973.65533612773072,978.37622103454567,983.57184908309898,989.26262915491247,995.46878763817381,1002.2103786503694,1009.5072932500915,1017.3792677775872,1025.8458914393286,1034.9266132326202,1044.6407482908389,1055.0074837174409,1073.9824442849558,1095.2319341445314,1118.6183220169587,1144.2334716797918,1172.1684254776712,1202.5134503360955,1235.3580792252997,1270.7911487024614,1308.9008330511106,1349.7746754499422,1393.4996165338018,1440.1620206535215]
[1000353004,4,1,1,1,3,3.0306803023566031,3,3,3,3.0230632761679481,2.1694249845207684E-2,0,0,0,1.6308198974734206E-2,0.12304063405958204,0,0,0,0.3677509745712596,50.817465771241231,58.901460450564159,67.756251890949088,77.411263737631444,87.895525086545064,99.237694226602784,111.46607994206619,124.60866072077268,138.69310215262723,153.74677275431705,169.79675841755133,186.86987564701454,0,0,0,0,0,0,0,0,0,0,0,0,0,0,0,0,0,0,0,0,0,0,0,0,0,0,0,0,0,0,0,0,0,0,0,0,24.64517810695375,28.565709870273789,32.860058453703466,37.542493576646898,42.627093612134182,48.12775710122358,54.058213084108843,60.432030415620723,67.262626203052804,74.563273480745593,82.347108217115235,90.627135734724064,0,0,0,0,0,0,0,0,0,0,0,0,966.55357076602024,969.98229254009038,973.73793778985203,977.83298617382718,982.27975000755498,987.09038433357352,992.27689595654374,997.85115159017073,1003.8248852365491,1010.2097048980108,1017.0170987051594,1024.2584405315763,1042.0162146442151,1057.4494628609282,1074.3542481345046,1092.7867434881055,1112.8023687062343,1134.4558356614,1157.8011889827189,1182.8918427265642,1209.7806135922292,1238.5197511330737,1269.1609653398259,1301.755451913315]
[1000353037,4,1,1,1,3,3.0306803023566031,3,3,3,3.0230632761679481,2.1694249845207684E-2,0,0,0,1.6308198974734206E-2,0.12304063405958204,0,0,0,0.3677509745712596,36.842036338549633,43.474423051897745,50.817465771241231,58.901460450564159,67.756251890949088,77.411263737631444,87.895525086545064,99.237694226602784,111.46607994206619,124.60866072077268,138.69310215262723,153.74677275431705,0,0,0,0,0,0,0,0,0,0,0,0,0,0,0,0,0,0,0,0,0,0,0,0,0,0,0,0,0,0,0,0,0,0,0,0,17.867450365859522,21.08398919446757,24.64517810695375,28.565709870273789,32.860058453703466,37.542493576646898,42.627093612134182,48.12775710122358,54.058213084108843,60.432030415620723,67.262626203052804,74.563273480745593,0,0,0,0,0,0,0,0,0,0,0,0,960.62607314898037,963.43911418131495,966.55357076602024,969.98229254009038,973.73793778985203,977.83298617382718,982.27975000755498,987.09038433357352,992.27689595654374,997.85115159017073,1003.8248852365491,1010.2097048980108,1015.3355598533896,1027.9975264276802,1042.0162146442151,1057.4494628609282,1074.3542481345046,1092.7867434881055,1112.8023687062343,1134.4558356614,1157.8011889827189,1182.8918427265642,1209.7806135922292,1238.5197511330737]
[1000353068,4,1,1,1,3,3.0306803023566031,3,3,3,3.0230632761679481,2.1694249845207684E-2,0,0,0,1.6308198974734206E-2,0.12304063405958204,0,0,0,0.3677509745712596,43.474423051897745,50.817465771241231,58.901460450564159,67.756251890949088,77.411263737631444,87.895525086545064,99.237694226602784,111.46607994206619,124.60866072077268,138.69310215262723,153.74677275431705,169.79675841755133,0,0,0,0,0,0,0,0,0,0,0,0,0,0,0,0,0,0,0,0,0,0,0,0,0,0,0,0,0,0,0,0,0,0,0,0,21.08398919446757,24.64517810695375,28.565709870273789,32.860058453703466,37.542493576646898,42.627093612134182,48.12775710122358,54.058213084108843,60.432030415620723,67.262626203052804,74.563273480745593,82.347108217115235,0,0,0,0,0,0,0,0,0,0,0,0,963.43911418131495,966.55357076602024,969.98229254009038,973.73793778985203,977.83298617382718,982.27975000755498,987.09038433357352,992.27689595654374,997.85115159017073,1003.8248852365491,1010.2097048980108,1017.0170987051594,1027.9975264276802,1042.0162146442151,1057.4494628609282,1074.3542481345046,1092.7867434881055,1112.8023687062343,1134.4558356614,1157.8011889827189,1182.8918427265642,1209.7806135922292,1238.5197511330737,1269.1609653398259]
[1000353101,4,1,1,1,3,3.0306803023566031,3,3,3,3.0230632761679481,2.1694249845207684E-2,0,0,0,1.6308198974734206E-2,0.12304063405958204,0,0,0,0.3677509745712596,43.474423051897745,50.817465771241231,58.901460450564159,67.756251890949088,77.411263737631444,87.895525086545064,99.237694226602784,111.46607994206619,124.60866072077268,138.69310215262723,153.74677275431705,169.79675841755133,0,0,0,0,0,0,0,0,0,0,0,0,0,0,0,0,0,0,0,0,0,0,0,0,0,0,0,0,0,0,0,0,0,0,0,0,21.08398919446757,24.64517810695375,28.565709870273789,32.860058453703466,37.542493576646898,42.627093612134182,48.12775710122358,54.058213084108843,60.432030415620723,67.262626203052804,74.563273480745593,82.347108217115235,0,0,0,0,0,0,0,0,0,0,0,0,963.43911418131495,966.55357076602024,969.98229254009038,973.73793778985203,977.83298617382718,982.27975000755498,987.09038433357352,992.27689595654374,997.85115159017073,1003.8248852365491,1010.2097048980108,1017.0170987051594,1027.9975264276802,1042.0162146442151,1057.4494628609282,1074.3542481345046,1092.7867434881055,1112.8023687062343,1134.4558356614,1157.8011889827189,1182.8918427265642,1209.7806135922292,1238.5197511330737,1269.1609653398259]
[1000353135,4,1,1,1,3,3.0306803023566031,3,3,3,3.0230632761679481,2.1694249845207684E-2,0,0,0,1.6308198974734206E-2,0.12304063405958204,0,0,0,0.3677509745712596,43.474423051897745,50.817465771241231,58.901460450564159,67.756251890949088,77.411263737631444,87.895525086545064,99.237694226602784,111.46607994206619,124.60866072077268,138.69310215262723,153.74677275431705,169.79675841755133,0,0,0,0,0,0,0,0,0,0,0,0,0,0,0,0,0,0,0,0,0,0,0,0,0,0,0,0,0,0,0,0,0,0,0,0,21.08398919446757,24.64517810695375,28.565709870273789,32.860058453703466,37.542493576646898,42.627093612134182,48.12775710122358,54.058213084108843,60.432030415620723,67.262626203052804,74.563273480745593,82.347108217115235,0,0,0,0,0,0,0,0,0,0,0,0,963.43911418131495,966.55357076602024,969.98229254009038,973.73793778985203,977.83298617382718,982.27975000755498,987.09038433357352,992.27689595654374,997.85115159017073,1003.8248852365491,1010.2097048980108,1017.0170987051594,1027.9975264276802,1042.0162146442151,1057.4494628609282,1074.3542481345046,1092.7867434881055,1112.8023687062343,1134.4558356614,1157.8011889827189,1182.8918427265642,1209.7806135922292,1238.5197511330737,1269.1609653398259]
[1000353167,4,1,1,1,3,3.0306803023566031,3,3,3,3.0230632761679481,2.1694249845207684E-2,0,0,0,1.6308198974734206E-2,0.12304063405958204,0,0,0,0.3677509745712596,43.474423051897745,50.817465771241231,58.901460450564159,67.756251890949088,77.411263737631444,87.895525086545064,99.237694226602784,111.46607994206619,124.60866072077268,138.69310215262723,153.74677275431705,169.79675841755133,0,0,0,0,0,0,0,0,0,0,0,0,0,0,0,0,0,0,0,0,0,0,0,0,0,0,0,0,0,0,0,0,0,0,0,0,21.08398919446757,24.64517810695375,28.565709870273789,32.860058453703466,37.542493576646898,42.627093612134182,48.12775710122358,54.058213084108843,60.432030415620723,67.262626203052804,74.563273480745593,82.347108217115235,0,0,0,0,0,0,0,0,0,0,0,0,963.43911418131495,966.55357076602024,969.98229254009038,973.73793778985203,977.83298617382718,982.27975000755498,987.09038433357352,992.27689595654374,997.85115159017073,1003.8248852365491,1010.2097048980108,1017.0170987051594,1027.9975264276802,1042.0162146442151,1057.4494628609282,1074.3542481345046,1092.7867434881055,1112.8023687062343,1134.4558356614,1157.8011889827189,1182.8918427265642,1209.7806135922292,1238.5197511330737,1269.1609653398259]
[1000353227,4,1,1,1,3,3.0306803023566031,3,3,3,3.0230632761679481,2.1694249845207684E-2,0,0,0,1.6308198974734206E-2,0.12304063405958204,0,0,0,0.3677509745712596,43.474423051897745,50.817465771241231,58.901460450564159,67.756251890949088,77.411263737631444,87.895525086545064,99.237694226602784,111.46607994206619,124.60866072077268,138.69310215262723,153.74677275431705,169.79675841755133,0,0,0,0,0,0,0,0,0,0,0,0,0,0,0,0,0,0,0,0,0,0,0,0,0,0,0,0,0,0,0,0,0,0,0,0,21.08398919446757,24.64517810695375,28.565709870273789,32.860058453703466,37.542493576646898,42.627093612134182,48.12775710122358,54.058213084108843,60.432030415620723,67.262626203052804,74.563273480745593,82.347108217115235,0,0,0,0,0,0,0,0,0,0,0,0,963.43911418131495,966.55357076602024,969.98229254009038,973.73793778985203,977.83298617382718,982.27975000755498,987.09038433357352,992.27689595654374,997.85115159017073,1003.8248852365491,1010.2097048980108,1017.0170987051594,1027.9975264276802,1042.0162146442151,1057.4494628609282,1074.3542481345046,1092.7867434881055,1112.8023687062343,1134.4558356614,1157.8011889827189,1182.8918427265642,1209.7806135922292,1238.5197511330737,1269.1609653398259]
[1000353258,4,1,1,1,3,3.0306803023566031,3,3,3,3.0230632761679481,2.1694249845207684E-2,0,0,0,1.6308198974734206E-2,0.12304063405958204,0,0,0,0.3677509745712596,43.474423051897745,50.817465771241231,58.901460450564159,67.756251890949088,77.411263737631444,87.895525086545064,99.237694226602784,111.46607994206619,124.60866072077268,138.69310215262723,153.74677275431705,169.79675841755133,0,0,0,0,0,0,0,0,0,0,0,0,0,0,0,0,0,0,0,0,0,0,0,0,0,0,0,0,0,0,0,0,0,0,0,0,21.08398919446757,24.64517810695375,28.565709870273789,32.860058453703466,37.542493576646898,42.627093612134182,48.12775710122358,54.058213084108843,60.432030415620723,67.262626203052804,74.563273480745593,82.347108217115235,0,0,0,0,0,0,0,0,0,0,0,0,963.43911418131495,966.55357076602024,969.98229254009038,973.73793778985203,977.83298617382718,982.27975000755498,987.09038433357352,992.27689595654374,997.85115159017073,1003.8248852365491,1010.2097048980108,1017.0170987051594,1027.9975264276802,1042.0162146442151,1057.4494628609282,1074.3542481345046,1092.7867434881055,1112.8023687062343,1134.4558356614,1157.8011889827189,1182.8918427265642,1209.7806135922292,1238.5197511330737,1269.1609653398259]
[1000353287,4,1,1,1,3,3.0306803023566031,3,3,3,3.0230632761679481,2.1694249845207684E-2,0,0,0,1.6308198974734206E-2,0.12304063405958204,0,0,0,0.3677509745712596,43.474423051897745,50.817465771241231,58.901460450564159,67.756251890949088,77.411263737631444,87.895525086545064,99.237694226602784,111.46607994206619,124.60866072077268,138.69310215262723,153.74677275431705,169.79675841755133,0,0,0,0,0,0,0,0,0,0,0,0,0,0,0,0,0,0,0,0,0,0,0,0,0,0,0,0,0,0,0,0,0,0,0,0,21.08398919446757,24.64517810695375,28.565709870273789,32.860058453703466,37.542493576646898,42.627093612134182,48.12775710122358,54.058213084108843,60.432030415620723,67.262626203052804,74.563273480745593,82.347108217115235,0,0,0,0,0,0,0,0,0,0,0,0,963.43911418131495,966.55357076602024,969.98229254009038,973.73793778985203,977.83298617382718,982.27975000755498,987.09038433357352,992.27689595654374,997.85115159017073,1003.8248852365491,1010.2097048980108,1017.0170987051594,1027.9975264276802,1042.0162146442151,1057.4494628609282,1074.3542481345046,1092.7867434881055,1112.8023687062343,1134.4558356614,1157.8011889827189,1182.8918427265642,1209.7806135922292,1238.5197511330737,1269.1609653398259]
[1000353314,4,1,1,1,3,3.0306803023566031,3,3,3,3.0230632761679481,2.1694249845207684E-2,0,0,0,1.6308198974734206E-2,0.12304063405958204,0,0,0,0.3677509745712596,30.889524476582746,36.842036338549633,43.474423051897745,50.817465771241231,58.901460450564159,67.756251890949088,77.411263737631444,87.895525086545064,99.237694226602784,111.46607994206619,124.60866072077268,138.69310215262723,0,0,0,0,0,0,0,0,0,0,0,0,0,0,0,0,0,0,0,0,0,0,0,0,0,0,0,0,0,0,0,0,0,0,0,0,14.980633544211758,17.867450365859522,21.08398919446757,24.64517810695375,28.565709870273789,32.860058453703466,37.542493576646898,42.627093612134182,48.12775710122358,54.058213084108843,60.432030415620723,67.262626203052804,0,0,0,0,0,0,0,0,0,0,0,0,958.10139224045133,960.62607314898037,963.43911418131495,966.55357076602024,969.98229254009038,973.73793778985203,977.83298617382718,982.27975000755498,987.09038433357352,992.27689595654374,997.85115159017073,1003.8248852365491,1003.9715502612459,1015.3355598533896,1027.9975264276802,1042.0162146442151,1057.4494628609282,1074.3542481345046,1092.7867434881055,1112.8023687062343,1134.4558356614,1157.8011889827189,1182.8918427265642,1209.7806135922292]
[1000353347,4,1,1,1,3,3.0306803023566031,3,3,3,3.0230632761679481,2.1694249845207684E-2,0,0,0,1.6308198974734206E-2,0.12304063405958204,0,0,0,0.3677509745712596,36.842036338549633,43.474423051897745,50.817465771241231,58.901460450564159,67.756251890949088,77.411263737631444,87.895525086545064,99.237694226602784,111.46607994206619,124.60866072077268,138.69310215262723,153.74677275431705,0,0,0,0,0,0,0,0,0,0,0,0,0,0,0,0,0,0,0,0,0,0,0,0,0,0,0,0,0,0,0,0,0,0,0,0,17.867450365859522,21.08398919446757,24.64517810695375,28.565709870273789,32.860058453703466,37.542493576646898,42.627093612134182,48.12775710122358,54.058213084108843,60.432030415620723,67.262626203052804,74.563273480745593,0,0,0,0,0,0,0,0,0,0,0,0,960.62607314898037,963.43911418131495,966.55357076602024,969.98229254009038,973.73793778985203,977.83298617382718,982.27975000755498,987.09038433357352,992.27689595654374,997.85115159017073,1003.8248852365491,1010.2097048980108,1015.3355598533896,1027.9975264276802,1042.0162146442151,1057.4494628609282,1074.3542481345046,1092.7867434881055,1112.8023687062343,1134.4558356614,1157.8011889827189,1182.8918427265642,1209.7806135922292,1238.5197511330737]
[1000353379,4,1,1,1,3,3.0306803023566031,3,3,3,3.0230632761679481,2.1694249845207684E-2,0,0,0,1.6308198974734206E-2,0.12304063405958204,0,0,0,0.3677509745712596,63.715051291511266,76.01215290533267,89.772149946485101,105.07322047044566,121.99315558915362,140.60938164437835,160.99898006384194,183.2387052413664,207.40500071877531,233.57401389782106,261.82160947146735,292.22338173285181,0,0,0,0,0,0,0,0,0,0,0,0,0,0,0,0,0,0,0,0,0,0,0,0,0,0,0,0,0,0,0,0,0,0,0,0,30.90017897078291,36.863960416245071,43.537208928024917,50.95783887418559,59.163576965018251,68.191973006561369,78.080409530315009,88.866110464657496,100.58614898265593,113.27745463697664,126.97681987371553,141.72090600193184,0,0,0,0,0,0,0,0,0,0,0,0,972.02391482987673,977.23957141227243,983.07569616713079,989.56544730542328,996.74181892102479,1004.6376503952616,1013.285634818628,1022.7183265744196,1032.9681482020787,1044.0673966370662,1056.0482489075675,1068.94276735518,1066.639145092171,1090.1156847338502,1116.3850550416407,1145.5965066500546,1177.8985514751967,1213.4390050462014,1252.3650244127848,1294.8231422804436,1340.9592979035099,1390.9188651718639,1444.8466782527505,1502.8870550899635]
[1000353459,4,1,1,1,3,3.0306803023566031,3,3,3,3.0230632761679481,2.1694249845207684E-2,0,0,0,1.6308198974734206E-2,0.12304063405958204,0,0,0,0.3677509745712596,36.842036338549633,43.474423051897745,50.817465771241231,58.901460450564159,67.756251890949088,77.411263737631444,87.895525086545064,99.237694226602784,111.46607994206619,124.60866072077268,138.69310215262723,153.74677275431705,0,0,0,0,0,0,0,0,0,0,0,0,0,0,0,0,0,0,0,0,0,0,0,0,0,0,0,0,0,0,0,0,0,0,0,0,17.867450365859522,21.08398919446757,24.64517810695375,28.565709870273789,32.860058453703466,37.542493576646898,42.627093612134182,48.12775710122358,54.058213084108843,60.432030415620723,67.262626203052804,74.563273480745593,0,0,0,0,0,0,0,0,0,0,0,0,960.62607314898037,963.43911418131495,966.55357076602024,969.98229254009038,973.73793778985203,977.83298617382718,982.27975000755498,987.09038433357352,992.27689595654374,997.85115159017073,1003.8248852365491,1010.2097048980108,1015.3355598533896,1027.9975264276802,1042.0162146442151,1057.4494628609282,1074.3542481345046,1092.7867434881055,1112.8023687062343,1134.4558356614,1157.8011889827189,1182.8918427265642,1209.7806135922292,1238.5197511330737]
[1000353491,4,1,1,1,3,3.0306803023566031,3,3,3,3.0230632761679481,2.1694249845207684E-2,0,0,0,1.6308198974734206E-2,0.12304063405958204,0,0,0,0.3677509745712596,36.842036338549633,43.474423051897745,50.817465771241231,58.901460450564159,67.756251890949088,77.411263737631444,87.895525086545064,99.237694226602784,111.46607994206619,124.60866072077268,138.69310215262723,153.74677275431705,0,0,0,0,0,0,0,0,0,0,0,0,0,0,0,0,0,0,0,0,0,0,0,0,0,0,0,0,0,0,0,0,0,0,0,0,17.867450365859522,21.08398919446757,24.64517810695375,28.565709870273789,32.860058453703466,37.542493576646898,42.627093612134182,48.12775710122358,54.058213084108843,60.432030415620723,67.262626203052804,74.563273480745593,0,0,0,0,0,0,0,0,0,0,0,0,960.62607314898037,963.43911418131495,966.55357076602024,969.98229254009038,973.73793778985203,977.83298617382718,982.27975000755498,987.09038433357352,992.27689595654374,997.85115159017073,1003.8248852365491,1010.2097048980108,1015.3355598533896,1027.9975264276802,1042.0162146442151,1057.4494628609282,1074.3542481345046,1092.7867434881055,1112.8023687062343,1134.4558356614,1157.8011889827189,1182.8918427265642,1209.7806135922292,1238.5197511330737]
[1000353523,4,1,1,1,3,3.0306803023566031,3,3,3,3.0230632761679481,2.1694249845207684E-2,0,0,0,1.6308198974734206E-2,0.12304063405958204,0,0,0,0.3677509745712596,25.585582173483054,30.889524476582746,36.842036338549633,43.474423051897745,50.817465771241231,58.901460450564159,67.756251890949088,77.411263737631444,87.895525086545064,99.237694226602784,111.46607994206619,124.60866072077268,0,0,0,0,0,0,0,0,0,0,0,0,0,0,0,0,0,0,0,0,0,0,0,0,0,0,0,0,0,0,0,0,0,0,0,0,12.408356459059,14.980633544211758,17.867450365859522,21.08398919446757,24.64517810695375,28.565709870273789,32.860058453703466,37.542493576646898,42.627093612134182,48.12775710122358,54.058213084108843,60.432030415620723,0,0,0,0,0,0,0,0,0,0,0,0,955.85179372085247,958.10139224045133,960.62607314898037,963.43911418131495,966.55357076602024,969.98229254009038,973.73793778985203,977.83298617382718,982.27975000755498,987.09038433357352,992.27689595654374,997.85115159017073,993.84573235339451,1003.9715502612459,1015.3355598533896,1027.9975264276802,1042.0162146442151,1057.4494628609282,1074.3542481345046,1092.7867434881055,1112.8023687062343,1134.4558356614,1157.8011889827189,1182.8918427265642]
[1000353554,4,1,1,1,3,3.0306803023566031,3,3,3,3.0230632761679481,2.1694249845207684E-2,0,0,0,1.6308198974734206E-2,0.12304063405958204,0,0,0,0.3677509745712596,30.889524476582746,36.842036338549633,43.474423051897745,50.817465771241231,58.901460450564159,67.756251890949088,77.411263737631444,87.895525086545064,99.237694226602784,111.46607994206619,124.60866072077268,138.69310215262723,0,0,0,0,0,0,0,0,0,0,0,0,0,0,0,0,0,0,0,0,0,0,0,0,0,0,0,0,0,0,0,0,0,0,0,0,14.980633544211758,17.867450365859522,21.08398919446757,24.64517810695375,28.565709870273789,32.860058453703466,37.542493576646898,42.627093612134182,48.12775710122358,54.058213084108843,60.432030415620723,67.262626203052804,0,0,0,0,0,0,0,0,0,0,0,0,958.10139224045133,960.62607314898037,963.43911418131495,966.55357076602024,969.98229254009038,973.73793778985203,977.83298617382718,982.27975000755498,987.09038433357352,992.27689595654374,997.85115159017073,1003.8248852365491,1003.9715502612459,1015.3355598533896,1027.9975264276802,1042.0162146442151,1057.4494628609282,1074.3542481345046,1092.7867434881055,1112.8023687062343,1134.4558356614,1157.8011889827189,1182.8918427265642,1209.7806135922292]
[1000353588,4,1,1,1,3,3.0306803023566031,3,3,3,3.0230632761679481,2.1694249845207684E-2,0,0,0,1.6308198974734206E-2,0.12304063405958204,0,0,0,0.3677509745712596,36.842036338549633,43.474423051897745,50.817465771241231,58.901460450564159,67.756251890949088,77.411263737631444,87.895525086545064,99.237694226602784,111.46607994206619,124.60866072077268,138.69310215262723,153.74677275431705,0,0,0,0,0,0,0,0,0,0,0,0,0,0,0,0,0,0,0,0,0,0,0,0,0,0,0,0,0,0,0,0,0,0,0,0,17.867450365859522,21.08398919446757,24.64517810695375,28.565709870273789,32.860058453703466,37.542493576646898,42.627093612134182,48.12775710122358,54.058213084108843,60.432030415620723,67.262626203052804,74.563273480745593,0,0,0,0,0,0,0,0,0,0,0,0,960.62607314898037,963.43911418131495,966.55357076602024,969.98229254009038,973.73793778985203,977.83298617382718,982.27975000755498,987.09038433357352,992.27689595654374,997.85115159017073,1003.8248852365491,1010.2097048980108,1015.3355598533896,1027.9975264276802,1042.0162146442151,1057.4494628609282,1074.3542481345046,1092.7867434881055,1112.8023687062343,1134.4558356614,1157.8011889827189,1182.8918427265642,1209.7806135922292,1238.5197511330737]
[1000353620,4,1,1,1,3,3.0306803023566031,3,3,3,3.0230632761679481,2.1694249845207684E-2,0,0,0,1.6308198974734206E-2,0.12304063405958204,0,0,0,0.3677509745712596,36.842036338549633,43.474423051897745,50.817465771241231,58.901460450564159,67.756251890949088,77.411263737631444,87.895525086545064,99.237694226602784,111.46607994206619,124.60866072077268,138.69310215262723,153.74677275431705,0,0,0,0,0,0,0,0,0,0,0,0,0,0,0,0,0,0,0,0,0,0,0,0,0,0,0,0,0,0,0,0,0,0,0,0,17.867450365859522,21.08398919446757,24.64517810695375,28.565709870273789,32.860058453703466,37.542493576646898,42.627093612134182,48.12775710122358,54.058213084108843,60.432030415620723,67.262626203052804,74.563273480745593,0,0,0,0,0,0,0,0,0,0,0,0,960.62607314898037,963.43911418131495,966.55357076602024,969.98229254009038,973.73793778985203,977.83298617382718,982.27975000755498,987.09038433357352,992.27689595654374,997.85115159017073,1003.8248852365491,1010.2097048980108,1015.3355598533896,1027.9975264276802,1042.0162146442151,1057.4494628609282,1074.3542481345046,1092.7867434881055,1112.8023687062343,1134.4558356614,1157.8011889827189,1182.8918427265642,1209.7806135922292,1238.5197511330737]
[1000353653,4,1,1,1,3,3.0306803023566031,3,3,3,3.0230632761679481,2.1694249845207684E-2,0,0,0,1.6308198974734206E-2,0.12304063405958204,0,0,0,0.3677509745712596,36.842036338549633,43.474423051897745,50.817465771241231,58.901460450564159,67.756251890949088,77.411263737631444,87.895525086545064,99.237694226602784,111.46607994206619,124.60866072077268,138.69310215262723,153.74677275431705,0,0,0,0,0,0,0,0,0,0,0,0,0,0,0,0,0,0,0,0,0,0,0,0,0,0,0,0,0,0,0,0,0,0,0,0,17.867450365859522,21.08398919446757,24.64517810695375,28.565709870273789,32.860058453703466,37.542493576646898,42.627093612134182,48.12775710122358,54.058213084108843,60.432030415620723,67.262626203052804,74.563273480745593,0,0,0,0,0,0,0,0,0,0,0,0,960.62607314898037,963.43911418131495,966.55357076602024,969.98229254009038,973.73793778985203,977.83298617382718,982.27975000755498,987.09038433357352,992.27689595654374,997.85115159017073,1003.8248852365491,1010.2097048980108,1015.3355598533896,1027.9975264276802,1042.0162146442151,1057.4494628609282,1074.3542481345046,1092.7867434881055,1112.8023687062343,1134.4558356614,1157.8011889827189,1182.8918427265642,1209.7806135922292,1238.5197511330737]
[1000353684,4,1,1,1,3,3.0306803023566031,3,3,3,3.0230632761679481,2.1694249845207684E-2,0,0,0,1.6308198974734206E-2,0.12304063405958204,0,0,0,0.3677509745712596,36.842036338549633,43.474423051897745,50.817465771241231,58.901460450564159,67.756251890949088,77.411263737631444,87.895525086545064,99.237694226602784,111.46607994206619,124.60866072077268,138.69310215262723,153.74677275431705,0,0,0,0,0,0,0,0,0,0,0,0,0,0,0,0,0,0,0,0,0,0,0,0,0,0,0,0,0,0,0,0,0,0,0,0,17.867450365859522,21.08398919446757,24.64517810695375,28.565709870273789,32.860058453703466,37.542493576646898,42.627093612134182,48.12775710122358,54.058213084108843,60.432030415620723,67.262626203052804,74.563273480745593,0,0,0,0,0,0,0,0,0,0,0,0,960.62607314898037,963.43911418131495,966.55357076602024,969.98229254009038,973.73793778985203,977.83298617382718,982.27975000755498,987.09038433357352,992.27689595654374,997.85115159017073,1003.8248852365491,1010.2097048980108,1015.3355598533896,1027.9975264276802,1042.0162146442151,1057.4494628609282,1074.3542481345046,1092.7867434881055,1112.8023687062343,1134.4558356614,1157.8011889827189,1182.8918427265642,1209.7806135922292,1238.5197511330737]
[1000353713,4,1,1,1,3,3.0306803023566031,3,3,3,3.0230632761679481,2.1694249845207684E-2,0,0,0,1.6308198974734206E-2,0.12304063405958204,0,0,0,0.3677509745712596,30.889524476582746,36.842036338549633,43.474423051897745,50.817465771241231,58.901460450564159,67.756251890949088,77.411263737631444,87.895525086545064,99.237694226602784,111.46607994206619,124.60866072077268,138.69310215262723,0,0,0,0,0,0,0,0,0,0,0,0,0,0,0,0,0,0,0,0,0,0,0,0,0,0,0,0,0,0,0,0,0,0,0,0,14.980633544211758,17.867450365859522,21.08398919446757,24.64517810695375,28.565709870273789,32.860058453703466,37.542493576646898,42.627093612134182,48.12775710122358,54.058213084108843,60.432030415620723,67.262626203052804,0,0,0,0,0,0,0,0,0,0,0,0,958.10139224045133,960.62607314898037,963.43911418131495,966.55357076602024,969.98229254009038,973.73793778985203,977.83298617382718,982.27975000755498,987.09038433357352,992.27689595654374,997.85115159017073,1003.8248852365491,1003.9715502612459,1015.3355598533896,1027.9975264276802,1042.0162146442151,1057.4494628609282,1074.3542481345046,1092.7867434881055,1112.8023687062343,1134.4558356614,1157.8011889827189,1182.8918427265642,1209.7806135922292]
[1000353747,4,1,1,1,3,3.0306803023566031,3,3,3,3.0230632761679481,2.1694249845207684E-2,0,0,0,1.6308198974734206E-2,0.12304063405958204,0,0,0,0.3677509745712596,30.889524476582746,36.842036338549633,43.474423051897745,50.817465771241231,58.901460450564159,67.756251890949088,77.411263737631444,87.895525086545064,99.237694226602784,111.46607994206619,124.60866072077268,138.69310215262723,0,0,0,0,0,0,0,0,0,0,0,0,0,0,0,0,0,0,0,0,0,0,0,0,0,0,0,0,0,0,0,0,0,0,0,0,14.980633544211758,17.867450365859522,21.08398919446757,24.64517810695375,28.565709870273789,32.860058453703466,37.542493576646898,42.627093612134182,48.12775710122358,54.058213084108843,60.432030415620723,67.262626203052804,0,0,0,0,0,0,0,0,0,0,0,0,958.10139224045133,960.62607314898037,963.43911418131495,966.55357076602024,969.98229254009038,973.73793778985203,977.83298617382718,982.27975000755498,987.09038433357352,992.27689595654374,997.85115159017073,1003.8248852365491,1003.9715502612459,1015.3355598533896,1027.9975264276802,1042.0162146442151,1057.4494628609282,1074.3542481345046,1092.7867434881055,1112.8023687062343,1134.4558356614,1157.8011889827189,1182.8918427265642,1209.7806135922292]
[1000353781,4,1,1,1,3,3.0306803023566031,3,3,3,3.0230632761679481,2.1694249845207684E-2,0,0,0,1.6308198974734206E-2,0.12304063405958204,0,0,0,0.3677509745712596,30.889524476582746,36.842036338549633,43.474423051897745,50.817465771241231,58.901460450564159,67.756251890949088,77.411263737631444,87.895525086545064,99.237694226602784,111.46607994206619,124.60866072077268,138.69310215262723,0,0,0,0,0,0,0,0,0,0,0,0,0,0,0,0,0,0,0,0,0,0,0,0,0,0,0,0,0,0,0,0,0,0,0,0,14.980633544211758,17.867450365859522,21.08398919446757,24.64517810695375,28.565709870273789,32.860058453703466,37.542493576646898,42.627093612134182,48.12775710122358,54.058213084108843,60.432030415620723,67.262626203052804,0,0,0,0,0,0,0,0,0,0,0,0,958.10139224045133,960.62607314898037,963.43911418131495,966.55357076602024,969.98229254009038,973.73793778985203,977.83298617382718,982.27975000755498,987.09038433357352,992.27689595654374,997.85115159017073,1003.8248852365491,1003.9715502612459,1015.3355598533896,1027.9975264276802,1042.0162146442151,1057.4494628609282,1074.3542481345046,1092.7867434881055,1112.8023687062343,1134.4558356614,1157.8011889827189,1182.8918427265642,1209.7806135922292]
[1000353814,4,1,1,1,3,3.0306803023566031,3,3,3,3.0230632761679481,2.1694249845207684E-2,0,0,0,1.6308198974734206E-2,0.12304063405958204,0,0,0,0.3677509745712596,43.474423051897745,50.817465771241231,58.901460450564159,67.756251890949088,77.411263737631444,87.895525086545064,99.237694226602784,111.46607994206619,124.60866072077268,138.69310215262723,153.74677275431705,169.79675841755133,0,0,0,0,0,0,0,0,0,0,0,0,0,0,0,0,0,0,0,0,0,0,0,0,0,0,0,0,0,0,0,0,0,0,0,0,21.08398919446757,24.64517810695375,28.565709870273789,32.860058453703466,37.542493576646898,42.627093612134182,48.12775710122358,54.058213084108843,60.432030415620723,67.262626203052804,74.563273480745593,82.347108217115235,0,0,0,0,0,0,0,0,0,0,0,0,963.43911418131495,966.55357076602024,969.98229254009038,973.73793778985203,977.83298617382718,982.27975000755498,987.09038433357352,992.27689595654374,997.85115159017073,1003.8248852365491,1010.2097048980108,1017.0170987051594,1027.9975264276802,1042.0162146442151,1057.4494628609282,1074.3542481345046,1092.7867434881055,1112.8023687062343,1134.4558356614,1157.8011889827189,1182.8918427265642,1209.7806135922292,1238.5197511330737,1269.1609653398259]
[1000353845,4,1,1,1,3,3.0306803023566031,3,3,3,3.0230632761679481,2.1694249845207684E-2,0,0,0,1.6308198974734206E-2,0.12304063405958204,0,0,0,0.3677509745712596,30.889524476582746,36.842036338549633,43.474423051897745,50.817465771241231,58.901460450564159,67.756251890949088,77.411263737631444,87.895525086545064,99.237694226602784,111.46607994206619,124.60866072077268,138.69310215262723,0,0,0,0,0,0,0,0,0,0,0,0,0,0,0,0,0,0,0,0,0,0,0,0,0,0,0,0,0,0,0,0,0,0,0,0,14.980633544211758,17.867450365859522,21.08398919446757,24.64517810695375,28.565709870273789,32.860058453703466,37.542493576646898,42.627093612134182,48.12775710122358,54.058213084108843,60.432030415620723,67.262626203052804,0,0,0,0,0,0,0,0,0,0,0,0,958.10139224045133,960.62607314898037,963.43911418131495,966.55357076602024,969.98229254009038,973.73793778985203,977.83298617382718,982.27975000755498,987.09038433357352,992.27689595654374,997.85115159017073,1003.8248852365491,1003.9715502612459,1015.3355598533896,1027.9975264276802,1042.0162146442151,1057.4494628609282,1074.3542481345046,1092.7867434881055,1112.8023687062343,1134.4558356614,1157.8011889827189,1182.8918427265642,1209.7806135922292]
[1000353873,4,1,1,1,3,3.0306803023566031,3,3,3,3.0230632761679481,2.1694249845207684E-2,0,0,0,1.6308198974734206E-2,0.12304063405958204,0,0,0,0.3677509745712596,36.842036338549633,43.474423051897745,50.817465771241231,58.901460450564159,67.756251890949088,77.411263737631444,87.895525086545064,99.237694226602784,111.46607994206619,124.60866072077268,138.69310215262723,153.74677275431705,0,0,0,0,0,0,0,0,0,0,0,0,0,0,0,0,0,0,0,0,0,0,0,0,0,0,0,0,0,0,0,0,0,0,0,0,17.867450365859522,21.08398919446757,24.64517810695375,28.565709870273789,32.860058453703466,37.542493576646898,42.627093612134182,48.12775710122358,54.058213084108843,60.432030415620723,67.262626203052804,74.563273480745593,0,0,0,0,0,0,0,0,0,0,0,0,960.62607314898037,963.43911418131495,966.55357076602024,969.98229254009038,973.73793778985203,977.83298617382718,982.27975000755498,987.09038433357352,992.27689595654374,997.85115159017073,1003.8248852365491,1010.2097048980108,1015.3355598533896,1027.9975264276802,1042.0162146442151,1057.4494628609282,1074.3542481345046,1092.7867434881055,1112.8023687062343,1134.4558356614,1157.8011889827189,1182.8918427265642,1209.7806135922292,1238.5197511330737]
[1000353900,4,1,1,1,3,3.0306803023566031,3,3,3,3.0230632761679481,2.1694249845207684E-2,0,0,0,1.6308198974734206E-2,0.12304063405958204,0,0,0,0.3677509745712596,36.842036338549633,43.474423051897745,50.817465771241231,58.901460450564159,67.756251890949088,77.411263737631444,87.895525086545064,99.237694226602784,111.46607994206619,124.60866072077268,138.69310215262723,153.74677275431705,0,0,0,0,0,0,0,0,0,0,0,0,0,0,0,0,0,0,0,0,0,0,0,0,0,0,0,0,0,0,0,0,0,0,0,0,17.867450365859522,21.08398919446757,24.64517810695375,28.565709870273789,32.860058453703466,37.542493576646898,42.627093612134182,48.12775710122358,54.058213084108843,60.432030415620723,67.262626203052804,74.563273480745593,0,0,0,0,0,0,0,0,0,0,0,0,960.62607314898037,963.43911418131495,966.55357076602024,969.98229254009038,973.73793778985203,977.83298617382718,982.27975000755498,987.09038433357352,992.27689595654374,997.85115159017073,1003.8248852365491,1010.2097048980108,1015.3355598533896,1027.9975264276802,1042.0162146442151,1057.4494628609282,1074.3542481345046,1092.7867434881055,1112.8023687062343,1134.4558356614,1157.8011889827189,1182.8918427265642,1209.7806135922292,1238.5197511330737]
[1000353934,4,1,1,1,3,3.0306803023566031,3,3,3,3.0230632761679481,2.1694249845207684E-2,0,0,0,1.6308198974734206E-2,0.12304063405958204,0,0,0,0.3677509745712596,36.842036338549633,43.474423051897745,50.817465771241231,58.901460450564159,67.756251890949088,77.411263737631444,87.895525086545064,99.237694226602784,111.46607994206619,124.60866072077268,138.69310215262723,153.74677275431705,0,0,0,0,0,0,0,0,0,0,0,0,0,0,0,0,0,0,0,0,0,0,0,0,0,0,0,0,0,0,0,0,0,0,0,0,17.867450365859522,21.08398919446757,24.64517810695375,28.565709870273789,32.860058453703466,37.542493576646898,42.627093612134182,48.12775710122358,54.058213084108843,60.432030415620723,67.262626203052804,74.563273480745593,0,0,0,0,0,0,0,0,0,0,0,0,960.62607314898037,963.43911418131495,966.55357076602024,969.98229254009038,973.73793778985203,977.83298617382718,982.27975000755498,987.09038433357352,992.27689595654374,997.85115159017073,1003.8248852365491,1010.2097048980108,1015.3355598533896,1027.9975264276802,1042.0162146442151,1057.4494628609282,1074.3542481345046,1092.7867434881055,1112.8023687062343,1134.4558356614,1157.8011889827189,1182.8918427265642,1209.7806135922292,1238.5197511330737]
[1000353966,4,1,1,1,3,3.0306803023566031,3,3,3,3.0230632761679481,2.1694249845207684E-2,0,0,0,1.6308198974734206E-2,0.12304063405958204,0,0,0,0.3677509745712596,36.842036338549633,43.474423051897745,50.817465771241231,58.901460450564159,67.756251890949088,77.411263737631444,87.895525086545064,99.237694226602784,111.46607994206619,124.60866072077268,138.69310215262723,153.74677275431705,0,0,0,0,0,0,0,0,0,0,0,0,0,0,0,0,0,0,0,0,0,0,0,0,0,0,0,0,0,0,0,0,0,0,0,0,17.867450365859522,21.08398919446757,24.64517810695375,28.565709870273789,32.860058453703466,37.542493576646898,42.627093612134182,48.12775710122358,54.058213084108843,60.432030415620723,67.262626203052804,74.563273480745593,0,0,0,0,0,0,0,0,0,0,0,0,960.62607314898037,963.43911418131495,966.55357076602024,969.98229254009038,973.73793778985203,977.83298617382718,982.27975000755498,987.09038433357352,992.27689595654374,997.85115159017073,1003.8248852365491,1010.2097048980108,1015.3355598533896,1027.9975264276802,1042.0162146442151,1057.4494628609282,1074.3542481345046,1092.7867434881055,1112.8023687062343,1134.4558356614,1157.8011889827189,1182.8918427265642,1209.7806135922292,1238.5197511330737]
[1000353995,4,1,1,1,3,3.0306803023566031,3,3,3,3.0230632761679481,2.1694249845207684E-2,0,0,0,1.6308198974734206E-2,0.12304063405958204,0,0,0,0.3677509745712596,30.889524476582746,36.842036338549633,43.474423051897745,50.817465771241231,58.901460450564159,67.756251890949088,77.411263737631444,87.895525086545064,99.237694226602784,111.46607994206619,124.60866072077268,138.69310215262723,0,0,0,0,0,0,0,0,0,0,0,0,0,0,0,0,0,0,0,0,0,0,0,0,0,0,0,0,0,0,0,0,0,0,0,0,14.980633544211758,17.867450365859522,21.08398919446757,24.64517810695375,28.565709870273789,32.860058453703466,37.542493576646898,42.627093612134182,48.12775710122358,54.058213084108843,60.432030415620723,67.262626203052804,0,0,0,0,0,0,0,0,0,0,0,0,958.10139224045133,960.62607314898037,963.43911418131495,966.55357076602024,969.98229254009038,973.73793778985203,977.83298617382718,982.27975000755498,987.09038433357352,992.27689595654374,997.85115159017073,1003.8248852365491,1003.9715502612459,1015.3355598533896,1027.9975264276802,1042.0162146442151,1057.4494628609282,1074.3542481345046,1092.7867434881055,1112.8023687062343,1134.4558356614,1157.8011889827189,1182.8918427265642,1209.7806135922292]
[1000358026,4,1,1,1,3,3.0306803023566031,3,3,3,3.0230632761679481,2.1694249845207684E-2,0,0,0,1.6308198974734206E-2,0.12304063405958204,0,0,0,0.3677509745712596,30.889524476582746,36.842036338549633,43.474423051897745,50.817465771241231,58.901460450564159,67.756251890949088,77.411263737631444,87.895525086545064,99.237694226602784,111.46607994206619,124.60866072077268,138.69310215262723,0,0,0,0,0,0,0,0,0,0,0,0,0,0,0,0,0,0,0,0,0,0,0,0,0,0,0,0,0,0,0,0,0,0,0,0,14.980633544211758,17.867450365859522,21.08398919446757,24.64517810695375,28.565709870273789,32.860058453703466,37.542493576646898,42.627093612134182,48.12775710122358,54.058213084108843,60.432030415620723,67.262626203052804,0,0,0,0,0,0,0,0,0,0,0,0,958.10139224045133,960.62607314898037,963.43911418131495,966.55357076602024,969.98229254009038,973.73793778985203,977.83298617382718,982.27975000755498,987.09038433357352,992.27689595654374,997.85115159017073,1003.8248852365491,1003.9715502612459,1015.3355598533896,1027.9975264276802,1042.0162146442151,1057.4494628609282,1074.3542481345046,1092.7867434881055,1112.8023687062343,1134.4558356614,1157.8011889827189,1182.8918427265642,1209.7806135922292]
[1000358056,4,1,1,1,3,3.0306803023566031,3,3,3,3.0230632761679481,2.1694249845207684E-2,0,0,0,1.6308198974734206E-2,0.12304063405958204,0,0,0,0.3677509745712596,30.889524476582746,36.842036338549633,43.474423051897745,50.817465771241231,58.901460450564159,67.756251890949088,77.411263737631444,87.895525086545064,99.237694226602784,111.46607994206619,124.60866072077268,138.69310215262723,0,0,0,0,0,0,0,0,0,0,0,0,0,0,0,0,0,0,0,0,0,0,0,0,0,0,0,0,0,0,0,0,0,0,0,0,14.980633544211758,17.867450365859522,21.08398919446757,24.64517810695375,28.565709870273789,32.860058453703466,37.542493576646898,42.627093612134182,48.12775710122358,54.058213084108843,60.432030415620723,67.262626203052804,0,0,0,0,0,0,0,0,0,0,0,0,958.10139224045133,960.62607314898037,963.43911418131495,966.55357076602024,969.98229254009038,973.73793778985203,977.83298617382718,982.27975000755498,987.09038433357352,992.27689595654374,997.85115159017073,1003.8248852365491,1003.9715502612459,1015.3355598533896,1027.9975264276802,1042.0162146442151,1057.4494628609282,1074.3542481345046,1092.7867434881055,1112.8023687062343,1134.4558356614,1157.8011889827189,1182.8918427265642,1209.7806135922292]
[1000358084,4,1,1,1,3,3.0306803023566031,3,3,3,3.0230632761679481,2.1694249845207684E-2,0,0,0,1.6308198974734206E-2,0.12304063405958204,0,0,0,0.3677509745712596,30.889524476582746,36.842036338549633,43.474423051897745,50.817465771241231,58.901460450564159,67.756251890949088,77.411263737631444,87.895525086545064,99.237694226602784,111.46607994206619,124.60866072077268,138.69310215262723,0,0,0,0,0,0,0,0,0,0,0,0,0,0,0,0,0,0,0,0,0,0,0,0,0,0,0,0,0,0,0,0,0,0,0,0,14.980633544211758,17.867450365859522,21.08398919446757,24.64517810695375,28.565709870273789,32.860058453703466,37.542493576646898,42.627093612134182,48.12775710122358,54.058213084108843,60.432030415620723,67.262626203052804,0,0,0,0,0,0,0,0,0,0,0,0,958.10139224045133,960.62607314898037,963.43911418131495,966.55357076602024,969.98229254009038,973.73793778985203,977.83298617382718,982.27975000755498,987.09038433357352,992.27689595654374,997.85115159017073,1003.8248852365491,1003.9715502612459,1015.3355598533896,1027.9975264276802,1042.0162146442151,1057.4494628609282,1074.3542481345046,1092.7867434881055,1112.8023687062343,1134.4558356614,1157.8011889827189,1182.8918427265642,1209.7806135922292]
[1000358116,4,1,1,1,3,3.0306803023566031,3,3,3,3.0230632761679481,2.1694249845207684E-2,0,0,0,1.6308198974734206E-2,0.12304063405958204,0,0,0,0.3677509745712596,30.889524476582746,36.842036338549633,43.474423051897745,50.817465771241231,58.901460450564159,67.756251890949088,77.411263737631444,87.895525086545064,99.237694226602784,111.46607994206619,124.60866072077268,138.69310215262723,0,0,0,0,0,0,0,0,0,0,0,0,0,0,0,0,0,0,0,0,0,0,0,0,0,0,0,0,0,0,0,0,0,0,0,0,14.980633544211758,17.867450365859522,21.08398919446757,24.64517810695375,28.565709870273789,32.860058453703466,37.542493576646898,42.627093612134182,48.12775710122358,54.058213084108843,60.432030415620723,67.262626203052804,0,0,0,0,0,0,0,0,0,0,0,0,958.10139224045133,960.62607314898037,963.43911418131495,966.55357076602024,969.98229254009038,973.73793778985203,977.83298617382718,982.27975000755498,987.09038433357352,992.27689595654374,997.85115159017073,1003.8248852365491,1003.9715502612459,1015.3355598533896,1027.9975264276802,1042.0162146442151,1057.4494628609282,1074.3542481345046,1092.7867434881055,1112.8023687062343,1134.4558356614,1157.8011889827189,1182.8918427265642,1209.7806135922292]
[1000358149,4,1,1,1,3,3.0306803023566031,3,3,3,3.0230632761679481,2.1694249845207684E-2,0,0,0,1.6308198974734206E-2,0.12304063405958204,0,0,0,0.3677509745712596,30.889524476582746,36.842036338549633,43.474423051897745,50.817465771241231,58.901460450564159,67.756251890949088,77.411263737631444,87.895525086545064,99.237694226602784,111.46607994206619,124.60866072077268,138.69310215262723,0,0,0,0,0,0,0,0,0,0,0,0,0,0,0,0,0,0,0,0,0,0,0,0,0,0,0,0,0,0,0,0,0,0,0,0,14.980633544211758,17.867450365859522,21.08398919446757,24.64517810695375,28.565709870273789,32.860058453703466,37.542493576646898,42.627093612134182,48.12775710122358,54.058213084108843,60.432030415620723,67.262626203052804,0,0,0,0,0,0,0,0,0,0,0,0,958.10139224045133,960.62607314898037,963.43911418131495,966.55357076602024,969.98229254009038,973.73793778985203,977.83298617382718,982.27975000755498,987.09038433357352,992.27689595654374,997.85115159017073,1003.8248852365491,1003.9715502612459,1015.3355598533896,1027.9975264276802,1042.0162146442151,1057.4494628609282,1074.3542481345046,1092.7867434881055,1112.8023687062343,1134.4558356614,1157.8011889827189,1182.8918427265642,1209.7806135922292]
[1000358181,4,1,1,1,3,3.0306803023566031,3,3,3,3.0230632761679481,2.1694249845207684E-2,0,0,0,1.6308198974734206E-2,0.12304063405958204,0,0,0,0.3677509745712596,30.889524476582746,36.842036338549633,43.474423051897745,50.817465771241231,58.901460450564159,67.756251890949088,77.411263737631444,87.895525086545064,99.237694226602784,111.46607994206619,124.60866072077268,138.69310215262723,0,0,0,0,0,0,0,0,0,0,0,0,0,0,0,0,0,0,0,0,0,0,0,0,0,0,0,0,0,0,0,0,0,0,0,0,14.980633544211758,17.867450365859522,21.08398919446757,24.64517810695375,28.565709870273789,32.860058453703466,37.542493576646898,42.627093612134182,48.12775710122358,54.058213084108843,60.432030415620723,67.262626203052804,0,0,0,0,0,0,0,0,0,0,0,0,958.10139224045133,960.62607314898037,963.43911418131495,966.55357076602024,969.98229254009038,973.73793778985203,977.83298617382718,982.27975000755498,987.09038433357352,992.27689595654374,997.85115159017073,1003.8248852365491,1003.9715502612459,1015.3355598533896,1027.9975264276802,1042.0162146442151,1057.4494628609282,1074.3542481345046,1092.7867434881055,1112.8023687062343,1134.4558356614,1157.8011889827189,1182.8918427265642,1209.7806135922292]
[1000358266,4,1,1,1,3,3.0306803023566031,3,3,3,3.0230632761679481,2.1694249845207684E-2,0,0,0,1.6308198974734206E-2,0.12304063405958204,0,0,0,0.3677509745712596,30.889524476582746,36.842036338549633,43.474423051897745,50.817465771241231,58.901460450564159,67.756251890949088,77.411263737631444,87.895525086545064,99.237694226602784,111.46607994206619,124.60866072077268,138.69310215262723,0,0,0,0,0,0,0,0,0,0,0,0,0,0,0,0,0,0,0,0,0,0,0,0,0,0,0,0,0,0,0,0,0,0,0,0,14.980633544211758,17.867450365859522,21.08398919446757,24.64517810695375,28.565709870273789,32.860058453703466,37.542493576646898,42.627093612134182,48.12775710122358,54.058213084108843,60.432030415620723,67.262626203052804,0,0,0,0,0,0,0,0,0,0,0,0,958.10139224045133,960.62607314898037,963.43911418131495,966.55357076602024,969.98229254009038,973.73793778985203,977.83298617382718,982.27975000755498,987.09038433357352,992.27689595654374,997.85115159017073,1003.8248852365491,1003.9715502612459,1015.3355598533896,1027.9975264276802,1042.0162146442151,1057.4494628609282,1074.3542481345046,1092.7867434881055,1112.8023687062343,1134.4558356614,1157.8011889827189,1182.8918427265642,1209.7806135922292]
[1000358298,4,1,1,1,3,3.0306803023566031,3,3,3,3.0230632761679481,2.1694249845207684E-2,0,0,0,1.6308198974734206E-2,0.12304063405958204,0,0,0,0.3677509745712596,30.889524476582746,36.842036338549633,43.474423051897745,50.817465771241231,58.901460450564159,67.756251890949088,77.411263737631444,87.895525086545064,99.237694226602784,111.46607994206619,124.60866072077268,138.69310215262723,0,0,0,0,0,0,0,0,0,0,0,0,0,0,0,0,0,0,0,0,0,0,0,0,0,0,0,0,0,0,0,0,0,0,0,0,14.980633544211758,17.867450365859522,21.08398919446757,24.64517810695375,28.565709870273789,32.860058453703466,37.542493576646898,42.627093612134182,48.12775710122358,54.058213084108843,60.432030415620723,67.262626203052804,0,0,0,0,0,0,0,0,0,0,0,0,958.10139224045133,960.62607314898037,963.43911418131495,966.55357076602024,969.98229254009038,973.73793778985203,977.83298617382718,982.27975000755498,987.09038433357352,992.27689595654374,997.85115159017073,1003.8248852365491,1003.9715502612459,1015.3355598533896,1027.9975264276802,1042.0162146442151,1057.4494628609282,1074.3542481345046,1092.7867434881055,1112.8023687062343,1134.4558356614,1157.8011889827189,1182.8918427265642,1209.7806135922292]
[1000358360,4,1,1,1,3,3.0306803023566031,3,3,3,3.0230632761679481,2.1694249845207684E-2,0,0,0,1.6308198974734206E-2,0.12304063405958204,0,0,0,0.3677509745712596,30.889524476582746,36.842036338549633,43.474423051897745,50.817465771241231,58.901460450564159,67.756251890949088,77.411263737631444,87.895525086545064,99.237694226602784,111.46607994206619,124.60866072077268,138.69310215262723,0,0,0,0,0,0,0,0,0,0,0,0,0,0,0,0,0,0,0,0,0,0,0,0,0,0,0,0,0,0,0,0,0,0,0,0,14.980633544211758,17.867450365859522,21.08398919446757,24.64517810695375,28.565709870273789,32.860058453703466,37.542493576646898,42.627093612134182,48.12775710122358,54.058213084108843,60.432030415620723,67.262626203052804,0,0,0,0,0,0,0,0,0,0,0,0,958.10139224045133,960.62607314898037,963.43911418131495,966.55357076602024,969.98229254009038,973.73793778985203,977.83298617382718,982.27975000755498,987.09038433357352,992.27689595654374,997.85115159017073,1003.8248852365491,1003.9715502612459,1015.3355598533896,1027.9975264276802,1042.0162146442151,1057.4494628609282,1074.3542481345046,1092.7867434881055,1112.8023687062343,1134.4558356614,1157.8011889827189,1182.8918427265642,1209.7806135922292]
[1000358393,4,1,1,1,3,3.0306803023566031,3,3,3,3.0230632761679481,2.1694249845207684E-2,0,0,0,1.6308198974734206E-2,0.12304063405958204,0,0,0,0.3677509745712596,25.585582173483054,30.889524476582746,36.842036338549633,43.474423051897745,50.817465771241231,58.901460450564159,67.756251890949088,77.411263737631444,87.895525086545064,99.237694226602784,111.46607994206619,124.60866072077268,0,0,0,0,0,0,0,0,0,0,0,0,0,0,0,0,0,0,0,0,0,0,0,0,0,0,0,0,0,0,0,0,0,0,0,0,12.408356459059,14.980633544211758,17.867450365859522,21.08398919446757,24.64517810695375,28.565709870273789,32.860058453703466,37.542493576646898,42.627093612134182,48.12775710122358,54.058213084108843,60.432030415620723,0,0,0,0,0,0,0,0,0,0,0,0,955.85179372085247,958.10139224045133,960.62607314898037,963.43911418131495,966.55357076602024,969.98229254009038,973.73793778985203,977.83298617382718,982.27975000755498,987.09038433357352,992.27689595654374,997.85115159017073,993.84573235339451,1003.9715502612459,1015.3355598533896,1027.9975264276802,1042.0162146442151,1057.4494628609282,1074.3542481345046,1092.7867434881055,1112.8023687062343,1134.4558356614,1157.8011889827189,1182.8918427265642]
[1000358426,4,1,1,1,3,3.0306803023566031,3,3,3,3.0230632761679481,2.1694249845207684E-2,0,0,0,1.6308198974734206E-2,0.12304063405958204,0,0,0,0.3677509745712596,25.585582173483054,30.889524476582746,36.842036338549633,43.474423051897745,50.817465771241231,58.901460450564159,67.756251890949088,77.411263737631444,87.895525086545064,99.237694226602784,111.46607994206619,124.60866072077268,0,0,0,0,0,0,0,0,0,0,0,0,0,0,0,0,0,0,0,0,0,0,0,0,0,0,0,0,0,0,0,0,0,0,0,0,12.408356459059,14.980633544211758,17.867450365859522,21.08398919446757,24.64517810695375,28.565709870273789,32.860058453703466,37.542493576646898,42.627093612134182,48.12775710122358,54.058213084108843,60.432030415620723,0,0,0,0,0,0,0,0,0,0,0,0,955.85179372085247,958.10139224045133,960.62607314898037,963.43911418131495,966.55357076602024,969.98229254009038,973.73793778985203,977.83298617382718,982.27975000755498,987.09038433357352,992.27689595654374,997.85115159017073,993.84573235339451,1003.9715502612459,1015.3355598533896,1027.9975264276802,1042.0162146442151,1057.4494628609282,1074.3542481345046,1092.7867434881055,1112.8023687062343,1134.4558356614,1157.8011889827189,1182.8918427265642]
[1000358459,4,1,1,1,3,3.0306803023566031,3,3,3,3.0230632761679481,2.1694249845207684E-2,0,0,0,1.6308198974734206E-2,0.12304063405958204,0,0,0,0.3677509745712596,25.585582173483054,30.889524476582746,36.842036338549633,43.474423051897745,50.817465771241231,58.901460450564159,67.756251890949088,77.411263737631444,87.895525086545064,99.237694226602784,111.46607994206619,124.60866072077268,0,0,0,0,0,0,0,0,0,0,0,0,0,0,0,0,0,0,0,0,0,0,0,0,0,0,0,0,0,0,0,0,0,0,0,0,12.408356459059,14.980633544211758,17.867450365859522,21.08398919446757,24.64517810695375,28.565709870273789,32.860058453703466,37.542493576646898,42.627093612134182,48.12775710122358,54.058213084108843,60.432030415620723,0,0,0,0,0,0,0,0,0,0,0,0,955.85179372085247,958.10139224045133,960.62607314898037,963.43911418131495,966.55357076602024,969.98229254009038,973.73793778985203,977.83298617382718,982.27975000755498,987.09038433357352,992.27689595654374,997.85115159017073,993.84573235339451,1003.9715502612459,1015.3355598533896,1027.9975264276802,1042.0162146442151,1057.4494628609282,1074.3542481345046,1092.7867434881055,1112.8023687062343,1134.4558356614,1157.8011889827189,1182.8918427265642]
[1000358493,4,1,1,1,3,3.0306803023566031,3,3,3,3.0230632761679481,2.1694249845207684E-2,0,0,0,1.6308198974734206E-2,0.12304063405958204,0,0,0,0.3677509745712596,25.585582173483054,30.889524476582746,36.842036338549633,43.474423051897745,50.817465771241231,58.901460450564159,67.756251890949088,77.411263737631444,87.895525086545064,99.237694226602784,111.46607994206619,124.60866072077268,0,0,0,0,0,0,0,0,0,0,0,0,0,0,0,0,0,0,0,0,0,0,0,0,0,0,0,0,0,0,0,0,0,0,0,0,12.408356459059,14.980633544211758,17.867450365859522,21.08398919446757,24.64517810695375,28.565709870273789,32.860058453703466,37.542493576646898,42.627093612134182,48.12775710122358,54.058213084108843,60.432030415620723,0,0,0,0,0,0,0,0,0,0,0,0,955.85179372085247,958.10139224045133,960.62607314898037,963.43911418131495,966.55357076602024,969.98229254009038,973.73793778985203,977.83298617382718,982.27975000755498,987.09038433357352,992.27689595654374,997.85115159017073,993.84573235339451,1003.9715502612459,1015.3355598533896,1027.9975264276802,1042.0162146442151,1057.4494628609282,1074.3542481345046,1092.7867434881055,1112.8023687062343,1134.4558356614,1157.8011889827189,1182.8918427265642]
[1000358522,4,1,1,1,3,3.0306803023566031,3,3,3,3.0230632761679481,2.1694249845207684E-2,0,0,0,1.6308198974734206E-2,0.12304063405958204,0,0,0,0.3677509745712596,25.585582173483054,30.889524476582746,36.842036338549633,43.474423051897745,50.817465771241231,58.901460450564159,67.756251890949088,77.411263737631444,87.895525086545064,99.237694226602784,111.46607994206619,124.60866072077268,0,0,0,0,0,0,0,0,0,0,0,0,0,0,0,0,0,0,0,0,0,0,0,0,0,0,0,0,0,0,0,0,0,0,0,0,12.408356459059,14.980633544211758,17.867450365859522,21.08398919446757,24.64517810695375,28.565709870273789,32.860058453703466,37.542493576646898,42.627093612134182,48.12775710122358,54.058213084108843,60.432030415620723,0,0,0,0,0,0,0,0,0,0,0,0,955.85179372085247,958.10139224045133,960.62607314898037,963.43911418131495,966.55357076602024,969.98229254009038,973.73793778985203,977.83298617382718,982.27975000755498,987.09038433357352,992.27689595654374,997.85115159017073,993.84573235339451,1003.9715502612459,1015.3355598533896,1027.9975264276802,1042.0162146442151,1057.4494628609282,1074.3542481345046,1092.7867434881055,1112.8023687062343,1134.4558356614,1157.8011889827189,1182.8918427265642]
[1000358550,4,1,1,1,3,3.0306803023566031,3,3,3,3.0230632761679481,2.1694249845207684E-2,0,0,0,1.6308198974734206E-2,0.12304063405958204,0,0,0,0.3677509745712596,25.585582173483054,30.889524476582746,36.842036338549633,43.474423051897745,50.817465771241231,58.901460450564159,67.756251890949088,77.411263737631444,87.895525086545064,99.237694226602784,111.46607994206619,124.60866072077268,0,0,0,0,0,0,0,0,0,0,0,0,0,0,0,0,0,0,0,0,0,0,0,0,0,0,0,0,0,0,0,0,0,0,0,0,12.408356459059,14.980633544211758,17.867450365859522,21.08398919446757,24.64517810695375,28.565709870273789,32.860058453703466,37.542493576646898,42.627093612134182,48.12775710122358,54.058213084108843,60.432030415620723,0,0,0,0,0,0,0,0,0,0,0,0,955.85179372085247,958.10139224045133,960.62607314898037,963.43911418131495,966.55357076602024,969.98229254009038,973.73793778985203,977.83298617382718,982.27975000755498,987.09038433357352,992.27689595654374,997.85115159017073,993.84573235339451,1003.9715502612459,1015.3355598533896,1027.9975264276802,1042.0162146442151,1057.4494628609282,1074.3542481345046,1092.7867434881055,1112.8023687062343,1134.4558356614,1157.8011889827189,1182.8918427265642]
[1000358581,4,1,1,1,3,3.0306803023566031,3,3,3,3.0230632761679481,2.1694249845207684E-2,0,0,0,1.6308198974734206E-2,0.12304063405958204,0,0,0,0.3677509745712596,25.585582173483054,30.889524476582746,36.842036338549633,43.474423051897745,50.817465771241231,58.901460450564159,67.756251890949088,77.411263737631444,87.895525086545064,99.237694226602784,111.46607994206619,124.60866072077268,0,0,0,0,0,0,0,0,0,0,0,0,0,0,0,0,0,0,0,0,0,0,0,0,0,0,0,0,0,0,0,0,0,0,0,0,12.408356459059,14.980633544211758,17.867450365859522,21.08398919446757,24.64517810695375,28.565709870273789,32.860058453703466,37.542493576646898,42.627093612134182,48.12775710122358,54.058213084108843,60.432030415620723,0,0,0,0,0,0,0,0,0,0,0,0,955.85179372085247,958.10139224045133,960.62607314898037,963.43911418131495,966.55357076602024,969.98229254009038,973.73793778985203,977.83298617382718,982.27975000755498,987.09038433357352,992.27689595654374,997.85115159017073,993.84573235339451,1003.9715502612459,1015.3355598533896,1027.9975264276802,1042.0162146442151,1057.4494628609282,1074.3542481345046,1092.7867434881055,1112.8023687062343,1134.4558356614,1157.8011889827189,1182.8918427265642]
[1000358609,4,1,1,1,3,3.0306803023566031,3,3,3,3.0230632761679481,2.1694249845207684E-2,0,0,0,1.6308198974734206E-2,0.12304063405958204,0,0,0,0.3677509745712596,25.585582173483054,30.889524476582746,36.842036338549633,43.474423051897745,50.817465771241231,58.901460450564159,67.756251890949088,77.411263737631444,87.895525086545064,99.237694226602784,111.46607994206619,124.60866072077268,0,0,0,0,0,0,0,0,0,0,0,0,0,0,0,0,0,0,0,0,0,0,0,0,0,0,0,0,0,0,0,0,0,0,0,0,12.408356459059,14.980633544211758,17.867450365859522,21.08398919446757,24.64517810695375,28.565709870273789,32.860058453703466,37.542493576646898,42.627093612134182,48.12775710122358,54.058213084108843,60.432030415620723,0,0,0,0,0,0,0,0,0,0,0,0,955.85179372085247,958.10139224045133,960.62607314898037,963.43911418131495,966.55357076602024,969.98229254009038,973.73793778985203,977.83298617382718,982.27975000755498,987.09038433357352,992.27689595654374,997.85115159017073,993.84573235339451,1003.9715502612459,1015.3355598533896,1027.9975264276802,1042.0162146442151,1057.4494628609282,1074.3542481345046,1092.7867434881055,1112.8023687062343,1134.4558356614,1157.8011889827189,1182.8918427265642]
[1000358641,4,1,1,1,3,3.0306803023566031,3,3,3,3.0230632761679481,2.1694249845207684E-2,0,0,0,1.6308198974734206E-2,0.12304063405958204,0,0,0,0.3677509745712596,25.585582173483054,30.889524476582746,36.842036338549633,43.474423051897745,50.817465771241231,58.901460450564159,67.756251890949088,77.411263737631444,87.895525086545064,99.237694226602784,111.46607994206619,124.60866072077268,0,0,0,0,0,0,0,0,0,0,0,0,0,0,0,0,0,0,0,0,0,0,0,0,0,0,0,0,0,0,0,0,0,0,0,0,12.408356459059,14.980633544211758,17.867450365859522,21.08398919446757,24.64517810695375,28.565709870273789,32.860058453703466,37.542493576646898,42.627093612134182,48.12775710122358,54.058213084108843,60.432030415620723,0,0,0,0,0,0,0,0,0,0,0,0,955.85179372085247,958.10139224045133,960.62607314898037,963.43911418131495,966.55357076602024,969.98229254009038,973.73793778985203,977.83298617382718,982.27975000755498,987.09038433357352,992.27689595654374,997.85115159017073,993.84573235339451,1003.9715502612459,1015.3355598533896,1027.9975264276802,1042.0162146442151,1057.4494628609282,1074.3542481345046,1092.7867434881055,1112.8023687062343,1134.4558356614,1157.8011889827189,1182.8918427265642]
[1000358676,4,1,1,1,3,3.0306803023566031,3,3,3,3.0230632761679481,2.1694249845207684E-2,0,0,0,1.6308198974734206E-2,0.12304063405958204,0,0,0,0.3677509745712596,26.980451254940544,33.253361770335118,40.397470487172143,48.463526635693704,57.501674848808335,67.561499606835071,78.692063992957557,90.941943763863506,104.3592575189911,118.99169358806412,134.88653413328203,152.09067686825912,0,0,0,0,0,0,0,0,0,0,0,0,0,0,0,0,0,0,0,0,0,0,0,0,0,0,0,0,0,0,0,0,0,0,0,0,13.084832478212583,16.127034495857711,19.59174547799272,23.503577510228823,27.886849463851373,32.765608550390063,38.1636491170282,44.104529169996113,50.611585005888166,57.707944251433261,65.416537552443856,73.760109106948946,0,0,0,0,0,0,0,0,0,0,0,0,956.4434093986564,959.10398325157337,962.13406455239317,965.55517793066485,969.38859158379876,973.65533612773072,978.37622103454567,983.57184908309898,989.26262915491247,995.46878763817381,1002.2103786503694,1009.5072932500915,996.50869313180954,1008.4843795177662,1022.123280517558,1037.5222820765873,1054.7771158964586,1073.9824442849558,1095.2319341445314,1118.6183220169587,1144.2334716797918,1172.1684254776712,1202.5134503360955,1235.3580792252997]
[1000358704,4,1,1,1,3,3.0306803023566031,3,3,3,3.0230632761679481,2.1694249845207684E-2,0,0,0,1.6308198974734206E-2,0.12304063405958204,0,0,0,0.3677509745712596,25.585582173483054,30.889524476582746,36.842036338549633,43.474423051897745,50.817465771241231,58.901460450564159,67.756251890949088,77.411263737631444,87.895525086545064,99.237694226602784,111.46607994206619,124.60866072077268,0,0,0,0,0,0,0,0,0,0,0,0,0,0,0,0,0,0,0,0,0,0,0,0,0,0,0,0,0,0,0,0,0,0,0,0,12.408356459059,14.980633544211758,17.867450365859522,21.08398919446757,24.64517810695375,28.565709870273789,32.860058453703466,37.542493576646898,42.627093612134182,48.12775710122358,54.058213084108843,60.432030415620723,0,0,0,0,0,0,0,0,0,0,0,0,955.85179372085247,958.10139224045133,960.62607314898037,963.43911418131495,966.55357076602024,969.98229254009038,973.73793778985203,977.83298617382718,982.27975000755498,987.09038433357352,992.27689595654374,997.85115159017073,993.84573235339451,1003.9715502612459,1015.3355598533896,1027.9975264276802,1042.0162146442151,1057.4494628609282,1074.3542481345046,1092.7867434881055,1112.8023687062343,1134.4558356614,1157.8011889827189,1182.8918427265642]
[1000358763,4,1,1,1,3,3.0306803023566031,3,3,3,3.0230632761679481,2.1694249845207684E-2,0,0,0,1.6308198974734206E-2,0.12304063405958204,0,0,0,0.3677509745712596,25.585582173483054,30.889524476582746,36.842036338549633,43.474423051897745,50.817465771241231,58.901460450564159,67.756251890949088,77.411263737631444,87.895525086545064,99.237694226602784,111.46607994206619,124.60866072077268,0,0,0,0,0,0,0,0,0,0,0,0,0,0,0,0,0,0,0,0,0,0,0,0,0,0,0,0,0,0,0,0,0,0,0,0,12.408356459059,14.980633544211758,17.867450365859522,21.08398919446757,24.64517810695375,28.565709870273789,32.860058453703466,37.542493576646898,42.627093612134182,48.12775710122358,54.058213084108843,60.432030415620723,0,0,0,0,0,0,0,0,0,0,0,0,955.85179372085247,958.10139224045133,960.62607314898037,963.43911418131495,966.55357076602024,969.98229254009038,973.73793778985203,977.83298617382718,982.27975000755498,987.09038433357352,992.27689595654374,997.85115159017073,993.84573235339451,1003.9715502612459,1015.3355598533896,1027.9975264276802,1042.0162146442151,1057.4494628609282,1074.3542481345046,1092.7867434881055,1112.8023687062343,1134.4558356614,1157.8011889827189,1182.8918427265642]
[1000358821,4,1,1,1,3,3.0306803023566031,3,3,3,3.0230632761679481,2.1694249845207684E-2,0,0,0,1.6308198974734206E-2,0.12304063405958204,0,0,0,0.3677509745712596,25.585582173483054,30.889524476582746,36.842036338549633,43.474423051897745,50.817465771241231,58.901460450564159,67.756251890949088,77.411263737631444,87.895525086545064,99.237694226602784,111.46607994206619,124.60866072077268,0,0,0,0,0,0,0,0,0,0,0,0,0,0,0,0,0,0,0,0,0,0,0,0,0,0,0,0,0,0,0,0,0,0,0,0,12.408356459059,14.980633544211758,17.867450365859522,21.08398919446757,24.64517810695375,28.565709870273789,32.860058453703466,37.542493576646898,42.627093612134182,48.12775710122358,54.058213084108843,60.432030415620723,0,0,0,0,0,0,0,0,0,0,0,0,955.85179372085247,958.10139224045133,960.62607314898037,963.43911418131495,966.55357076602024,969.98229254009038,973.73793778985203,977.83298617382718,982.27975000755498,987.09038433357352,992.27689595654374,997.85115159017073,993.84573235339451,1003.9715502612459,1015.3355598533896,1027.9975264276802,1042.0162146442151,1057.4494628609282,1074.3542481345046,1092.7867434881055,1112.8023687062343,1134.4558356614,1157.8011889827189,1182.8918427265642]
[1000358848,4,1,1,1,3,3.0306803023566031,3,3,3,3.0230632761679481,2.1694249845207684E-2,0,0,0,1.6308198974734206E-2,0.12304063405958204,0,0,0,0.3677509745712596,20.898335090615813,25.585582173483054,30.889524476582746,36.842036338549633,43.474423051897745,50.817465771241231,58.901460450564159,67.756251890949088,77.411263737631444,87.895525086545064,99.237694226602784,111.46607994206619,0,0,0,0,0,0,0,0,0,0,0,0,0,0,0,0,0,0,0,0,0,0,0,0,0,0,0,0,0,0,0,0,0,0,0,0,10.135160867043924,12.408356459059,14.980633544211758,17.867450365859522,21.08398919446757,24.64517810695375,28.565709870273789,32.860058453703466,37.542493576646898,42.627093612134182,48.12775710122358,54.058213084108843,0,0,0,0,0,0,0,0,0,0,0,0,953.86375850175716,955.85179372085247,958.10139224045133,960.62607314898037,963.43911418131495,966.55357076602024,969.98229254009038,973.73793778985203,977.83298617382718,982.27975000755498,987.09038433357352,992.27689595654374,984.8972544594169,993.84573235339451,1003.9715502612459,1015.3355598533896,1027.9975264276802,1042.0162146442151,1057.4494628609282,1074.3542481345046,1092.7867434881055,1112.8023687062343,1134.4558356614,1157.8011889827189]
[1000358878,4,1,1,1,3,3.0306803023566031,3,3,3,3.0230632761679481,2.1694249845207684E-2,0,0,0,1.6308198974734206E-2,0.12304063405958204,0,0,0,0.3677509745712596,25.585582173483054,30.889524476582746,36.842036338549633,43.474423051897745,50.817465771241231,58.901460450564159,67.756251890949088,77.411263737631444,87.895525086545064,99.237694226602784,111.46607994206619,124.60866072077268,0,0,0,0,0,0,0,0,0,0,0,0,0,0,0,0,0,0,0,0,0,0,0,0,0,0,0,0,0,0,0,0,0,0,0,0,12.408356459059,14.980633544211758,17.867450365859522,21.08398919446757,24.64517810695375,28.565709870273789,32.860058453703466,37.542493576646898,42.627093612134182,48.12775710122358,54.058213084108843,60.432030415620723,0,0,0,0,0,0,0,0,0,0,0,0,955.85179372085247,958.10139224045133,960.62607314898037,963.43911418131495,966.55357076602024,969.98229254009038,973.73793778985203,977.83298617382718,982.27975000755498,987.09038433357352,992.27689595654374,997.85115159017073,993.84573235339451,1003.9715502612459,1015.3355598533896,1027.9975264276802,1042.0162146442151,1057.4494628609282,1074.3542481345046,1092.7867434881055,1112.8023687062343,1134.4558356614,1157.8011889827189,1182.8918427265642]
[1000358906,4,1,1,1,3,3.0306803023566031,3,3,3,3.0230632761679481,2.1694249845207684E-2,0,0,0,1.6308198974734206E-2,0.12304063405958204,0,0,0,0.3677509745712596,25.585582173483054,30.889524476582746,36.842036338549633,43.474423051897745,50.817465771241231,58.901460450564159,67.756251890949088,77.411263737631444,87.895525086545064,99.237694226602784,111.46607994206619,124.60866072077268,0,0,0,0,0,0,0,0,0,0,0,0,0,0,0,0,0,0,0,0,0,0,0,0,0,0,0,0,0,0,0,0,0,0,0,0,12.408356459059,14.980633544211758,17.867450365859522,21.08398919446757,24.64517810695375,28.565709870273789,32.860058453703466,37.542493576646898,42.627093612134182,48.12775710122358,54.058213084108843,60.432030415620723,0,0,0,0,0,0,0,0,0,0,0,0,955.85179372085247,958.10139224045133,960.62607314898037,963.43911418131495,966.55357076602024,969.98229254009038,973.73793778985203,977.83298617382718,982.27975000755498,987.09038433357352,992.27689595654374,997.85115159017073,993.84573235339451,1003.9715502612459,1015.3355598533896,1027.9975264276802,1042.0162146442151,1057.4494628609282,1074.3542481345046,1092.7867434881055,1112.8023687062343,1134.4558356614,1157.8011889827189,1182.8918427265642]
[1000358936,1,1,1,1,1,0.75767007558915078,3,3,3,1.0076877587226494,-1.5855666952084297,0,0,0,-1.4087774960481836,0,0,0,0,5.0196581904198845E-3,0,0,0,0,0,0,0,0,0,0,0,0,0,0,0,0,0,0,0,0,0,0,0,0,0,0,0,0,0,0,0,0,0,0,0,0,0,0,0,0,0,0,0,0,0,0,0,0,0.111180011426051,0.13834101545697469,0.1693692537510755,0.20447983844380066,0.24388376856232766,0.28778827621087866,0.33639712385032905,0.38991086205182329,0.44852705488302363,0.51244047848005148,0.5818432971752262,0.65692522066419023,0,0,0,0,0,0,0,0,0,0,0,0,952.12350396046941,953.86375850175716,955.85179372085247,958.10139224045133,960.62607314898037,963.43911418131495,966.55357076602024,969.98229254009038,973.73793778985203,977.83298617382718,982.27975000755498,987.09038433357352,952.23468397189549,954.00209951721411,956.0211629746035,958.30587207889516,960.86995691754271,963.72690245752585,966.8899678898706,970.37220340214219,974.18646484473504,978.3454266523072,982.86159330473026,987.74730955423775]
[1000358963,4,1,1,1,3,3.0306803023566031,3,3,3,3.0230632761679481,2.1694249845207684E-2,0,0,0,1.6308198974734206E-2,0.12304063405958204,0,0,0,0.3677509745712596,25.585582173483054,30.889524476582746,36.842036338549633,43.474423051897745,50.817465771241231,58.901460450564159,67.756251890949088,77.411263737631444,87.895525086545064,99.237694226602784,111.46607994206619,124.60866072077268,0,0,0,0,0,0,0,0,0,0,0,0,0,0,0,0,0,0,0,0,0,0,0,0,0,0,0,0,0,0,0,0,0,0,0,0,12.408356459059,14.980633544211758,17.867450365859522,21.08398919446757,24.64517810695375,28.565709870273789,32.860058453703466,37.542493576646898,42.627093612134182,48.12775710122358,54.058213084108843,60.432030415620723,0,0,0,0,0,0,0,0,0,0,0,0,955.85179372085247,958.10139224045133,960.62607314898037,963.43911418131495,966.55357076602024,969.98229254009038,973.73793778985203,977.83298617382718,982.27975000755498,987.09038433357352,992.27689595654374,997.85115159017073,993.84573235339451,1003.9715502612459,1015.3355598533896,1027.9975264276802,1042.0162146442151,1057.4494628609282,1074.3542481345046,1092.7867434881055,1112.8023687062343,1134.4558356614,1157.8011889827189,1182.8918427265642]
[1000358993,4,1,1,1,3,3.0306803023566031,3,3,3,3.0230632761679481,2.1694249845207684E-2,0,0,0,1.6308198974734206E-2,0.12304063405958204,0,0,0,0.3677509745712596,20.898335090615813,25.585582173483054,30.889524476582746,36.842036338549633,43.474423051897745,50.817465771241231,58.901460450564159,67.756251890949088,77.411263737631444,87.895525086545064,99.237694226602784,111.46607994206619,0,0,0,0,0,0,0,0,0,0,0,0,0,0,0,0,0,0,0,0,0,0,0,0,0,0,0,0,0,0,0,0,0,0,0,0,10.135160867043924,12.408356459059,14.980633544211758,17.867450365859522,21.08398919446757,24.64517810695375,28.565709870273789,32.860058453703466,37.542493576646898,42.627093612134182,48.12775710122358,54.058213084108843,0,0,0,0,0,0,0,0,0,0,0,0,953.86375850175716,955.85179372085247,958.10139224045133,960.62607314898037,963.43911418131495,966.55357076602024,969.98229254009038,973.73793778985203,977.83298617382718,982.27975000755498,987.09038433357352,992.27689595654374,984.8972544594169,993.84573235339451,1003.9715502612459,1015.3355598533896,1027.9975264276802,1042.0162146442151,1057.4494628609282,1074.3542481345046,1092.7867434881055,1112.8023687062343,1134.4558356614,1157.8011889827189]
[1000362022,4,1,1,1,3,3.0306803023566031,3,3,3,3.0230632761679481,2.1694249845207684E-2,0,0,0,1.6308198974734206E-2,0.12304063405958204,0,0,0,0.3677509745712596,20.898335090615813,25.585582173483054,30.889524476582746,36.842036338549633,43.474423051897745,50.817465771241231,58.901460450564159,67.756251890949088,77.411263737631444,87.895525086545064,99.237694226602784,111.46607994206619,0,0,0,0,0,0,0,0,0,0,0,0,0,0,0,0,0,0,0,0,0,0,0,0,0,0,0,0,0,0,0,0,0,0,0,0,10.135160867043924,12.408356459059,14.980633544211758,17.867450365859522,21.08398919446757,24.64517810695375,28.565709870273789,32.860058453703466,37.542493576646898,42.627093612134182,48.12775710122358,54.058213084108843,0,0,0,0,0,0,0,0,0,0,0,0,953.86375850175716,955.85179372085247,958.10139224045133,960.62607314898037,963.43911418131495,966.55357076602024,969.98229254009038,973.73793778985203,977.83298617382718,982.27975000755498,987.09038433357352,992.27689595654374,984.8972544594169,993.84573235339451,1003.9715502612459,1015.3355598533896,1027.9975264276802,1042.0162146442151,1057.4494628609282,1074.3542481345046,1092.7867434881055,1112.8023687062343,1134.4558356614,1157.8011889827189]
[1000362081,4,1,1,1,3,3.0306803023566031,3,3,3,3.0230632761679481,2.1694249845207684E-2,0,0,0,1.6308198974734206E-2,0.12304063405958204,0,0,0,0.3677509745712596,25.585582173483054,30.889524476582746,36.842036338549633,43.474423051897745,50.817465771241231,58.901460450564159,67.756251890949088,77.411263737631444,87.895525086545064,99.237694226602784,111.46607994206619,124.60866072077268,0,0,0,0,0,0,0,0,0,0,0,0,0,0,0,0,0,0,0,0,0,0,0,0,0,0,0,0,0,0,0,0,0,0,0,0,12.408356459059,14.980633544211758,17.867450365859522,21.08398919446757,24.64517810695375,28.565709870273789,32.860058453703466,37.542493576646898,42.627093612134182,48.12775710122358,54.058213084108843,60.432030415620723,0,0,0,0,0,0,0,0,0,0,0,0,955.85179372085247,958.10139224045133,960.62607314898037,963.43911418131495,966.55357076602024,969.98229254009038,973.73793778985203,977.83298617382718,982.27975000755498,987.09038433357352,992.27689595654374,997.85115159017073,993.84573235339451,1003.9715502612459,1015.3355598533896,1027.9975264276802,1042.0162146442151,1057.4494628609282,1074.3542481345046,1092.7867434881055,1112.8023687062343,1134.4558356614,1157.8011889827189,1182.8918427265642]
[1000362111,4,1,1,1,3,3.0306803023566031,3,3,3,3.0230632761679481,2.1694249845207684E-2,0,0,0,1.6308198974734206E-2,0.12304063405958204,0,0,0,0.3677509745712596,25.585582173483054,30.889524476582746,36.842036338549633,43.474423051897745,50.817465771241231,58.901460450564159,67.756251890949088,77.411263737631444,87.895525086545064,99.237694226602784,111.46607994206619,124.60866072077268,0,0,0,0,0,0,0,0,0,0,0,0,0,0,0,0,0,0,0,0,0,0,0,0,0,0,0,0,0,0,0,0,0,0,0,0,12.408356459059,14.980633544211758,17.867450365859522,21.08398919446757,24.64517810695375,28.565709870273789,32.860058453703466,37.542493576646898,42.627093612134182,48.12775710122358,54.058213084108843,60.432030415620723,0,0,0,0,0,0,0,0,0,0,0,0,955.85179372085247,958.10139224045133,960.62607314898037,963.43911418131495,966.55357076602024,969.98229254009038,973.73793778985203,977.83298617382718,982.27975000755498,987.09038433357352,992.27689595654374,997.85115159017073,993.84573235339451,1003.9715502612459,1015.3355598533896,1027.9975264276802,1042.0162146442151,1057.4494628609282,1074.3542481345046,1092.7867434881055,1112.8023687062343,1134.4558356614,1157.8011889827189,1182.8918427265642]
[1000362141,4,1,1,1,3,3.0306803023566031,3,3,3,3.0230632761679481,2.1694249845207684E-2,0,0,0,1.6308198974734206E-2,0.12304063405958204,0,0,0,0.3677509745712596,25.585582173483054,30.889524476582746,36.842036338549633,43.474423051897745,50.817465771241231,58.901460450564159,67.756251890949088,77.411263737631444,87.895525086545064,99.237694226602784,111.46607994206619,124.60866072077268,0,0,0,0,0,0,0,0,0,0,0,0,0,0,0,0,0,0,0,0,0,0,0,0,0,0,0,0,0,0,0,0,0,0,0,0,12.408356459059,14.980633544211758,17.867450365859522,21.08398919446757,24.64517810695375,28.565709870273789,32.860058453703466,37.542493576646898,42.627093612134182,48.12775710122358,54.058213084108843,60.432030415620723,0,0,0,0,0,0,0,0,0,0,0,0,955.85179372085247,958.10139224045133,960.62607314898037,963.43911418131495,966.55357076602024,969.98229254009038,973.73793778985203,977.83298617382718,982.27975000755498,987.09038433357352,992.27689595654374,997.85115159017073,993.84573235339451,1003.9715502612459,1015.3355598533896,1027.9975264276802,1042.0162146442151,1057.4494628609282,1074.3542481345046,1092.7867434881055,1112.8023687062343,1134.4558356614,1157.8011889827189,1182.8918427265642]
[1000362166,4,1,1,1,3,3.0306803023566031,3,3,3,3.0230632761679481,2.1694249845207684E-2,0,0,0,1.6308198974734206E-2,0.12304063405958204,0,0,0,0.3677509745712596,25.585582173483054,30.889524476582746,36.842036338549633,43.474423051897745,50.817465771241231,58.901460450564159,67.756251890949088,77.411263737631444,87.895525086545064,99.237694226602784,111.46607994206619,124.60866072077268,0,0,0,0,0,0,0,0,0,0,0,0,0,0,0,0,0,0,0,0,0,0,0,0,0,0,0,0,0,0,0,0,0,0,0,0,12.408356459059,14.980633544211758,17.867450365859522,21.08398919446757,24.64517810695375,28.565709870273789,32.860058453703466,37.542493576646898,42.627093612134182,48.12775710122358,54.058213084108843,60.432030415620723,0,0,0,0,0,0,0,0,0,0,0,0,955.85179372085247,958.10139224045133,960.62607314898037,963.43911418131495,966.55357076602024,969.98229254009038,973.73793778985203,977.83298617382718,982.27975000755498,987.09038433357352,992.27689595654374,997.85115159017073,993.84573235339451,1003.9715502612459,1015.3355598533896,1027.9975264276802,1042.0162146442151,1057.4494628609282,1074.3542481345046,1092.7867434881055,1112.8023687062343,1134.4558356614,1157.8011889827189,1182.8918427265642]
[1000362199,4,1,1,1,3,3.0306803023566031,3,3,3,3.0230632761679481,2.1694249845207684E-2,0,0,0,1.6308198974734206E-2,0.12304063405958204,0,0,0,0.3677509745712596,20.898335090615813,25.585582173483054,30.889524476582746,36.842036338549633,43.474423051897745,50.817465771241231,58.901460450564159,67.756251890949088,77.411263737631444,87.895525086545064,99.237694226602784,111.46607994206619,0,0,0,0,0,0,0,0,0,0,0,0,0,0,0,0,0,0,0,0,0,0,0,0,0,0,0,0,0,0,0,0,0,0,0,0,10.135160867043924,12.408356459059,14.980633544211758,17.867450365859522,21.08398919446757,24.64517810695375,28.565709870273789,32.860058453703466,37.542493576646898,42.627093612134182,48.12775710122358,54.058213084108843,0,0,0,0,0,0,0,0,0,0,0,0,953.86375850175716,955.85179372085247,958.10139224045133,960.62607314898037,963.43911418131495,966.55357076602024,969.98229254009038,973.73793778985203,977.83298617382718,982.27975000755498,987.09038433357352,992.27689595654374,984.8972544594169,993.84573235339451,1003.9715502612459,1015.3355598533896,1027.9975264276802,1042.0162146442151,1057.4494628609282,1074.3542481345046,1092.7867434881055,1112.8023687062343,1134.4558356614,1157.8011889827189]
[1000362227,4,1,1,1,3,3.0306803023566031,3,3,3,3.0230632761679481,2.1694249845207684E-2,0,0,0,1.6308198974734206E-2,0.12304063405958204,0,0,0,0.3677509745712596,20.898335090615813,25.585582173483054,30.889524476582746,36.842036338549633,43.474423051897745,50.817465771241231,58.901460450564159,67.756251890949088,77.411263737631444,87.895525086545064,99.237694226602784,111.46607994206619,0,0,0,0,0,0,0,0,0,0,0,0,0,0,0,0,0,0,0,0,0,0,0,0,0,0,0,0,0,0,0,0,0,0,0,0,10.135160867043924,12.408356459059,14.980633544211758,17.867450365859522,21.08398919446757,24.64517810695375,28.565709870273789,32.860058453703466,37.542493576646898,42.627093612134182,48.12775710122358,54.058213084108843,0,0,0,0,0,0,0,0,0,0,0,0,953.86375850175716,955.85179372085247,958.10139224045133,960.62607314898037,963.43911418131495,966.55357076602024,969.98229254009038,973.73793778985203,977.83298617382718,982.27975000755498,987.09038433357352,992.27689595654374,984.8972544594169,993.84573235339451,1003.9715502612459,1015.3355598533896,1027.9975264276802,1042.0162146442151,1057.4494628609282,1074.3542481345046,1092.7867434881055,1112.8023687062343,1134.4558356614,1157.8011889827189]
[1000362285,4,1,1,1,3,3.0306803023566031,3,3,3,3.0230632761679481,2.1694249845207684E-2,0,0,0,1.6308198974734206E-2,0.12304063405958204,0,0,0,0.3677509745712596,25.585582173483054,30.889524476582746,36.842036338549633,43.474423051897745,50.817465771241231,58.901460450564159,67.756251890949088,77.411263737631444,87.895525086545064,99.237694226602784,111.46607994206619,124.60866072077268,0,0,0,0,0,0,0,0,0,0,0,0,0,0,0,0,0,0,0,0,0,0,0,0,0,0,0,0,0,0,0,0,0,0,0,0,12.408356459059,14.980633544211758,17.867450365859522,21.08398919446757,24.64517810695375,28.565709870273789,32.860058453703466,37.542493576646898,42.627093612134182,48.12775710122358,54.058213084108843,60.432030415620723,0,0,0,0,0,0,0,0,0,0,0,0,955.85179372085247,958.10139224045133,960.62607314898037,963.43911418131495,966.55357076602024,969.98229254009038,973.73793778985203,977.83298617382718,982.27975000755498,987.09038433357352,992.27689595654374,997.85115159017073,993.84573235339451,1003.9715502612459,1015.3355598533896,1027.9975264276802,1042.0162146442151,1057.4494628609282,1074.3542481345046,1092.7867434881055,1112.8023687062343,1134.4558356614,1157.8011889827189,1182.8918427265642]
[1000362316,4,1,1,1,3,3.0306803023566031,3,3,3,3.0230632761679481,2.1694249845207684E-2,0,0,0,1.6308198974734206E-2,0.12304063405958204,0,0,0,0.3677509745712596,20.898335090615813,25.585582173483054,30.889524476582746,36.842036338549633,43.474423051897745,50.817465771241231,58.901460450564159,67.756251890949088,77.411263737631444,87.895525086545064,99.237694226602784,111.46607994206619,0,0,0,0,0,0,0,0,0,0,0,0,0,0,0,0,0,0,0,0,0,0,0,0,0,0,0,0,0,0,0,0,0,0,0,0,10.135160867043924,12.408356459059,14.980633544211758,17.867450365859522,21.08398919446757,24.64517810695375,28.565709870273789,32.860058453703466,37.542493576646898,42.627093612134182,48.12775710122358,54.058213084108843,0,0,0,0,0,0,0,0,0,0,0,0,953.86375850175716,955.85179372085247,958.10139224045133,960.62607314898037,963.43911418131495,966.55357076602024,969.98229254009038,973.73793778985203,977.83298617382718,982.27975000755498,987.09038433357352,992.27689595654374,984.8972544594169,993.84573235339451,1003.9715502612459,1015.3355598533896,1027.9975264276802,1042.0162146442151,1057.4494628609282,1074.3542481345046,1092.7867434881055,1112.8023687062343,1134.4558356614,1157.8011889827189]
[1000362345,4,1,1,1,3,3.0306803023566031,3,3,3,3.0230632761679481,2.1694249845207684E-2,0,0,0,1.6308198974734206E-2,0.12304063405958204,0,0,0,0.3677509745712596,25.585582173483054,30.889524476582746,36.842036338549633,43.474423051897745,50.817465771241231,58.901460450564159,67.756251890949088,77.411263737631444,87.895525086545064,99.237694226602784,111.46607994206619,124.60866072077268,0,0,0,0,0,0,0,0,0,0,0,0,0,0,0,0,0,0,0,0,0,0,0,0,0,0,0,0,0,0,0,0,0,0,0,0,12.408356459059,14.980633544211758,17.867450365859522,21.08398919446757,24.64517810695375,28.565709870273789,32.860058453703466,37.542493576646898,42.627093612134182,48.12775710122358,54.058213084108843,60.432030415620723,0,0,0,0,0,0,0,0,0,0,0,0,955.85179372085247,958.10139224045133,960.62607314898037,963.43911418131495,966.55357076602024,969.98229254009038,973.73793778985203,977.83298617382718,982.27975000755498,987.09038433357352,992.27689595654374,997.85115159017073,993.84573235339451,1003.9715502612459,1015.3355598533896,1027.9975264276802,1042.0162146442151,1057.4494628609282,1074.3542481345046,1092.7867434881055,1112.8023687062343,1134.4558356614,1157.8011889827189,1182.8918427265642]
[1000362379,4,1,1,1,3,3.0306803023566031,3,3,3,3.0230632761679481,2.1694249845207684E-2,0,0,0,1.6308198974734206E-2,0.12304063405958204,0,0,0,0.3677509745712596,20.898335090615813,25.585582173483054,30.889524476582746,36.842036338549633,43.474423051897745,50.817465771241231,58.901460450564159,67.756251890949088,77.411263737631444,87.895525086545064,99.237694226602784,111.46607994206619,0,0,0,0,0,0,0,0,0,0,0,0,0,0,0,0,0,0,0,0,0,0,0,0,0,0,0,0,0,0,0,0,0,0,0,0,10.135160867043924,12.408356459059,14.980633544211758,17.867450365859522,21.08398919446757,24.64517810695375,28.565709870273789,32.860058453703466,37.542493576646898,42.627093612134182,48.12775710122358,54.058213084108843,0,0,0,0,0,0,0,0,0,0,0,0,953.86375850175716,955.85179372085247,958.10139224045133,960.62607314898037,963.43911418131495,966.55357076602024,969.98229254009038,973.73793778985203,977.83298617382718,982.27975000755498,987.09038433357352,992.27689595654374,984.8972544594169,993.84573235339451,1003.9715502612459,1015.3355598533896,1027.9975264276802,1042.0162146442151,1057.4494628609282,1074.3542481345046,1092.7867434881055,1112.8023687062343,1134.4558356614,1157.8011889827189]
[1000362439,4,1,1,1,3,3.0306803023566031,3,3,3,3.0230632761679481,2.1694249845207684E-2,0,0,0,1.6308198974734206E-2,0.12304063405958204,0,0,0,0.3677509745712596,20.898335090615813,25.585582173483054,30.889524476582746,36.842036338549633,43.474423051897745,50.817465771241231,58.901460450564159,67.756251890949088,77.411263737631444,87.895525086545064,99.237694226602784,111.46607994206619,0,0,0,0,0,0,0,0,0,0,0,0,0,0,0,0,0,0,0,0,0,0,0,0,0,0,0,0,0,0,0,0,0,0,0,0,10.135160867043924,12.408356459059,14.980633544211758,17.867450365859522,21.08398919446757,24.64517810695375,28.565709870273789,32.860058453703466,37.542493576646898,42.627093612134182,48.12775710122358,54.058213084108843,0,0,0,0,0,0,0,0,0,0,0,0,953.86375850175716,955.85179372085247,958.10139224045133,960.62607314898037,963.43911418131495,966.55357076602024,969.98229254009038,973.73793778985203,977.83298617382718,982.27975000755498,987.09038433357352,992.27689595654374,984.8972544594169,993.84573235339451,1003.9715502612459,1015.3355598533896,1027.9975264276802,1042.0162146442151,1057.4494628609282,1074.3542481345046,1092.7867434881055,1112.8023687062343,1134.4558356614,1157.8011889827189]
[1000362467,4,1,1,1,3,3.0306803023566031,3,3,3,3.0230632761679481,2.1694249845207684E-2,0,0,0,1.6308198974734206E-2,0.12304063405958204,0,0,0,0.3677509745712596,25.585582173483054,30.889524476582746,36.842036338549633,43.474423051897745,50.817465771241231,58.901460450564159,67.756251890949088,77.411263737631444,87.895525086545064,99.237694226602784,111.46607994206619,124.60866072077268,0,0,0,0,0,0,0,0,0,0,0,0,0,0,0,0,0,0,0,0,0,0,0,0,0,0,0,0,0,0,0,0,0,0,0,0,12.408356459059,14.980633544211758,17.867450365859522,21.08398919446757,24.64517810695375,28.565709870273789,32.860058453703466,37.542493576646898,42.627093612134182,48.12775710122358,54.058213084108843,60.432030415620723,0,0,0,0,0,0,0,0,0,0,0,0,955.85179372085247,958.10139224045133,960.62607314898037,963.43911418131495,966.55357076602024,969.98229254009038,973.73793778985203,977.83298617382718,982.27975000755498,987.09038433357352,992.27689595654374,997.85115159017073,993.84573235339451,1003.9715502612459,1015.3355598533896,1027.9975264276802,1042.0162146442151,1057.4494628609282,1074.3542481345046,1092.7867434881055,1112.8023687062343,1134.4558356614,1157.8011889827189,1182.8918427265642]
[1000362497,4,1,1,1,3,3.0306803023566031,3,3,3,3.0230632761679481,2.1694249845207684E-2,0,0,0,1.6308198974734206E-2,0.12304063405958204,0,0,0,0.3677509745712596,16.795287547117443,20.898335090615813,25.585582173483054,30.889524476582746,36.842036338549633,43.474423051897745,50.817465771241231,58.901460450564159,67.756251890949088,77.411263737631444,87.895525086545064,99.237694226602784,0,0,0,0,0,0,0,0,0,0,0,0,0,0,0,0,0,0,0,0,0,0,0,0,0,0,0,0,0,0,0,0,0,0,0,0,8.1452871896351073,10.135160867043924,12.408356459059,14.980633544211758,17.867450365859522,21.08398919446757,24.64517810695375,28.565709870273789,32.860058453703466,37.542493576646898,42.627093612134182,48.12775710122358,0,0,0,0,0,0,0,0,0,0,0,0,952.12350396046941,953.86375850175716,955.85179372085247,958.10139224045133,960.62607314898037,963.43911418131495,966.55357076602024,969.98229254009038,973.73793778985203,977.83298617382718,982.27975000755498,987.09038433357352,977.06407869722204,984.8972544594169,993.84573235339451,1003.9715502612459,1015.3355598533896,1027.9975264276802,1042.0162146442151,1057.4494628609282,1074.3542481345046,1092.7867434881055,1112.8023687062343,1134.4558356614]
[1000362528,4,1,1,1,3,3.0306803023566031,3,3,3,3.0230632761679481,2.1694249845207684E-2,0,0,0,1.6308198974734206E-2,0.12304063405958204,0,0,0,0.3677509745712596,16.795287547117443,20.898335090615813,25.585582173483054,30.889524476582746,36.842036338549633,43.474423051897745,50.817465771241231,58.901460450564159,67.756251890949088,77.411263737631444,87.895525086545064,99.237694226602784,0,0,0,0,0,0,0,0,0,0,0,0,0,0,0,0,0,0,0,0,0,0,0,0,0,0,0,0,0,0,0,0,0,0,0,0,8.1452871896351073,10.135160867043924,12.408356459059,14.980633544211758,17.867450365859522,21.08398919446757,24.64517810695375,28.565709870273789,32.860058453703466,37.542493576646898,42.627093612134182,48.12775710122358,0,0,0,0,0,0,0,0,0,0,0,0,952.12350396046941,953.86375850175716,955.85179372085247,958.10139224045133,960.62607314898037,963.43911418131495,966.55357076602024,969.98229254009038,973.73793778985203,977.83298617382718,982.27975000755498,987.09038433357352,977.06407869722204,984.8972544594169,993.84573235339451,1003.9715502612459,1015.3355598533896,1027.9975264276802,1042.0162146442151,1057.4494628609282,1074.3542481345046,1092.7867434881055,1112.8023687062343,1134.4558356614]
[1000362556,4,1,1,1,3,3.0306803023566031,3,3,3,3.0230632761679481,2.1694249845207684E-2,0,0,0,1.6308198974734206E-2,0.12304063405958204,0,0,0,0.3677509745712596,16.795287547117443,20.898335090615813,25.585582173483054,30.889524476582746,36.842036338549633,43.474423051897745,50.817465771241231,58.901460450564159,67.756251890949088,77.411263737631444,87.895525086545064,99.237694226602784,0,0,0,0,0,0,0,0,0,0,0,0,0,0,0,0,0,0,0,0,0,0,0,0,0,0,0,0,0,0,0,0,0,0,0,0,8.1452871896351073,10.135160867043924,12.408356459059,14.980633544211758,17.867450365859522,21.08398919446757,24.64517810695375,28.565709870273789,32.860058453703466,37.542493576646898,42.627093612134182,48.12775710122358,0,0,0,0,0,0,0,0,0,0,0,0,952.12350396046941,953.86375850175716,955.85179372085247,958.10139224045133,960.62607314898037,963.43911418131495,966.55357076602024,969.98229254009038,973.73793778985203,977.83298617382718,982.27975000755498,987.09038433357352,977.06407869722204,984.8972544594169,993.84573235339451,1003.9715502612459,1015.3355598533896,1027.9975264276802,1042.0162146442151,1057.4494628609282,1074.3542481345046,1092.7867434881055,1112.8023687062343,1134.4558356614]
[1000362587,4,1,1,1,3,3.0306803023566031,3,3,3,3.0230632761679481,2.1694249845207684E-2,0,0,0,1.6308198974734206E-2,0.12304063405958204,0,0,0,0.3677509745712596,16.795287547117443,20.898335090615813,25.585582173483054,30.889524476582746,36.842036338549633,43.474423051897745,50.817465771241231,58.901460450564159,67.756251890949088,77.411263737631444,87.895525086545064,99.237694226602784,0,0,0,0,0,0,0,0,0,0,0,0,0,0,0,0,0,0,0,0,0,0,0,0,0,0,0,0,0,0,0,0,0,0,0,0,8.1452871896351073,10.135160867043924,12.408356459059,14.980633544211758,17.867450365859522,21.08398919446757,24.64517810695375,28.565709870273789,32.860058453703466,37.542493576646898,42.627093612134182,48.12775710122358,0,0,0,0,0,0,0,0,0,0,0,0,952.12350396046941,953.86375850175716,955.85179372085247,958.10139224045133,960.62607314898037,963.43911418131495,966.55357076602024,969.98229254009038,973.73793778985203,977.83298617382718,982.27975000755498,987.09038433357352,977.06407869722204,984.8972544594169,993.84573235339451,1003.9715502612459,1015.3355598533896,1027.9975264276802,1042.0162146442151,1057.4494628609282,1074.3542481345046,1092.7867434881055,1112.8023687062343,1134.4558356614]
[1000362618,4,1,1,1,3,3.0306803023566031,3,3,3,3.0230632761679481,2.1694249845207684E-2,0,0,0,1.6308198974734206E-2,0.12304063405958204,0,0,0,0.3677509745712596,16.795287547117443,20.898335090615813,25.585582173483054,30.889524476582746,36.842036338549633,43.474423051897745,50.817465771241231,58.901460450564159,67.756251890949088,77.411263737631444,87.895525086545064,99.237694226602784,0,0,0,0,0,0,0,0,0,0,0,0,0,0,0,0,0,0,0,0,0,0,0,0,0,0,0,0,0,0,0,0,0,0,0,0,8.1452871896351073,10.135160867043924,12.408356459059,14.980633544211758,17.867450365859522,21.08398919446757,24.64517810695375,28.565709870273789,32.860058453703466,37.542493576646898,42.627093612134182,48.12775710122358,0,0,0,0,0,0,0,0,0,0,0,0,952.12350396046941,953.86375850175716,955.85179372085247,958.10139224045133,960.62607314898037,963.43911418131495,966.55357076602024,969.98229254009038,973.73793778985203,977.83298617382718,982.27975000755498,987.09038433357352,977.06407869722204,984.8972544594169,993.84573235339451,1003.9715502612459,1015.3355598533896,1027.9975264276802,1042.0162146442151,1057.4494628609282,1074.3542481345046,1092.7867434881055,1112.8023687062343,1134.4558356614]
[1000362675,4,1,1,1,3,3.0306803023566031,3,3,3,3.0230632761679481,2.1694249845207684E-2,0,0,0,1.6308198974734206E-2,0.12304063405958204,0,0,0,0.3677509745712596,13.243260944614924,16.795287547117443,20.898335090615813,25.585582173483054,30.889524476582746,36.842036338549633,43.474423051897745,50.817465771241231,58.901460450564159,67.756251890949088,77.411263737631444,87.895525086545064,0,0,0,0,0,0,0,0,0,0,0,0,0,0,0,0,0,0,0,0,0,0,0,0,0,0,0,0,0,0,0,0,0,0,0,0,6.4226446506824182,8.1452871896351073,10.135160867043924,12.408356459059,14.980633544211758,17.867450365859522,21.08398919446757,24.64517810695375,28.565709870273789,32.860058453703466,37.542493576646898,42.627093612134182,0,0,0,0,0,0,0,0,0,0,0,0,950.61695782366553,952.12350396046941,953.86375850175716,955.85179372085247,958.10139224045133,960.62607314898037,963.43911418131495,966.55357076602024,969.98229254009038,973.73793778985203,977.83298617382718,982.27975000755498,970.28286341896285,977.06407869722204,984.8972544594169,993.84573235339451,1003.9715502612459,1015.3355598533896,1027.9975264276802,1042.0162146442151,1057.4494628609282,1074.3542481345046,1092.7867434881055,1112.8023687062343]
[1000362711,4,1,1,1,3,3.0306803023566031,3,3,3,3.0230632761679481,2.1694249845207684E-2,0,0,0,1.6308198974734206E-2,0.12304063405958204,0,0,0,0.3677509745712596,21.527333670816041,26.980451254940544,33.253361770335118,40.397470487172143,48.463526635693704,57.501674848808335,67.561499606835071,78.692063992957557,90.941943763863506,104.3592575189911,118.99169358806412,134.88653413328203,0,0,0,0,0,0,0,0,0,0,0,0,0,0,0,0,0,0,0,0,0,0,0,0,0,0,0,0,0,0,0,0,0,0,0,0,10.440209176769525,13.084832478212583,16.127034495857711,19.59174547799272,23.503577510228823,27.886849463851373,32.765608550390063,38.1636491170282,44.104529169996113,50.611585005888166,57.707944251433261,65.416537552443856,0,0,0,0,0,0,0,0,0,0,0,0,954.13054011324289,956.4434093986564,959.10398325157337,962.13406455239317,965.55517793066485,969.38859158379876,973.65533612773072,978.37622103454567,983.57184908309898,989.26262915491247,995.46878763817381,1002.2103786503694,986.09808296082838,996.50869313180954,1008.4843795177662,1022.123280517558,1037.5222820765873,1054.7771158964586,1073.9824442849558,1095.2319341445314,1118.6183220169587,1144.2334716797918,1172.1684254776712,1202.5134503360955]
[1000362743,4,1,1,1,3,3.0306803023566031,3,3,3,3.0230632761679481,2.1694249845207684E-2,0,0,0,1.6308198974734206E-2,0.12304063405958204,0,0,0,0.3677509745712596,26.980451254940544,33.253361770335118,40.397470487172143,48.463526635693704,57.501674848808335,67.561499606835071,78.692063992957557,90.941943763863506,104.3592575189911,118.99169358806412,134.88653413328203,152.09067686825912,0,0,0,0,0,0,0,0,0,0,0,0,0,0,0,0,0,0,0,0,0,0,0,0,0,0,0,0,0,0,0,0,0,0,0,0,13.084832478212583,16.127034495857711,19.59174547799272,23.503577510228823,27.886849463851373,32.765608550390063,38.1636491170282,44.104529169996113,50.611585005888166,57.707944251433261,65.416537552443856,73.760109106948946,0,0,0,0,0,0,0,0,0,0,0,0,956.4434093986564,959.10398325157337,962.13406455239317,965.55517793066485,969.38859158379876,973.65533612773072,978.37622103454567,983.57184908309898,989.26262915491247,995.46878763817381,1002.2103786503694,1009.5072932500915,996.50869313180954,1008.4843795177662,1022.123280517558,1037.5222820765873,1054.7771158964586,1073.9824442849558,1095.2319341445314,1118.6183220169587,1144.2334716797918,1172.1684254776712,1202.5134503360955,1235.3580792252997]
[1000362772,4,1,1,1,3,3.0306803023566031,3,3,3,3.0230632761679481,2.1694249845207684E-2,0,0,0,1.6308198974734206E-2,0.12304063405958204,0,0,0,0.3677509745712596,16.795287547117443,20.898335090615813,25.585582173483054,30.889524476582746,36.842036338549633,43.474423051897745,50.817465771241231,58.901460450564159,67.756251890949088,77.411263737631444,87.895525086545064,99.237694226602784,0,0,0,0,0,0,0,0,0,0,0,0,0,0,0,0,0,0,0,0,0,0,0,0,0,0,0,0,0,0,0,0,0,0,0,0,8.1452871896351073,10.135160867043924,12.408356459059,14.980633544211758,17.867450365859522,21.08398919446757,24.64517810695375,28.565709870273789,32.860058453703466,37.542493576646898,42.627093612134182,48.12775710122358,0,0,0,0,0,0,0,0,0,0,0,0,952.12350396046941,953.86375850175716,955.85179372085247,958.10139224045133,960.62607314898037,963.43911418131495,966.55357076602024,969.98229254009038,973.73793778985203,977.83298617382718,982.27975000755498,987.09038433357352,977.06407869722204,984.8972544594169,993.84573235339451,1003.9715502612459,1015.3355598533896,1027.9975264276802,1042.0162146442151,1057.4494628609282,1074.3542481345046,1092.7867434881055,1112.8023687062343,1134.4558356614]
[1000362807,4,1,1,1,3,3.0306803023566031,3,3,3,3.0230632761679481,2.1694249845207684E-2,0,0,0,1.6308198974734206E-2,0.12304063405958204,0,0,0,0.3677509745712596,16.795287547117443,20.898335090615813,25.585582173483054,30.889524476582746,36.842036338549633,43.474423051897745,50.817465771241231,58.901460450564159,67.756251890949088,77.411263737631444,87.895525086545064,99.237694226602784,0,0,0,0,0,0,0,0,0,0,0,0,0,0,0,0,0,0,0,0,0,0,0,0,0,0,0,0,0,0,0,0,0,0,0,0,8.1452871896351073,10.135160867043924,12.408356459059,14.980633544211758,17.867450365859522,21.08398919446757,24.64517810695375,28.565709870273789,32.860058453703466,37.542493576646898,42.627093612134182,48.12775710122358,0,0,0,0,0,0,0,0,0,0,0,0,952.12350396046941,953.86375850175716,955.85179372085247,958.10139224045133,960.62607314898037,963.43911418131495,966.55357076602024,969.98229254009038,973.73793778985203,977.83298617382718,982.27975000755498,987.09038433357352,977.06407869722204,984.8972544594169,993.84573235339451,1003.9715502612459,1015.3355598533896,1027.9975264276802,1042.0162146442151,1057.4494628609282,1074.3542481345046,1092.7867434881055,1112.8023687062343,1134.4558356614]
[1000362836,4,1,1,1,3,3.0306803023566031,3,3,3,3.0230632761679481,2.1694249845207684E-2,0,0,0,1.6308198974734206E-2,0.12304063405958204,0,0,0,0.3677509745712596,16.795287547117443,20.898335090615813,25.585582173483054,30.889524476582746,36.842036338549633,43.474423051897745,50.817465771241231,58.901460450564159,67.756251890949088,77.411263737631444,87.895525086545064,99.237694226602784,0,0,0,0,0,0,0,0,0,0,0,0,0,0,0,0,0,0,0,0,0,0,0,0,0,0,0,0,0,0,0,0,0,0,0,0,8.1452871896351073,10.135160867043924,12.408356459059,14.980633544211758,17.867450365859522,21.08398919446757,24.64517810695375,28.565709870273789,32.860058453703466,37.542493576646898,42.627093612134182,48.12775710122358,0,0,0,0,0,0,0,0,0,0,0,0,952.12350396046941,953.86375850175716,955.85179372085247,958.10139224045133,960.62607314898037,963.43911418131495,966.55357076602024,969.98229254009038,973.73793778985203,977.83298617382718,982.27975000755498,987.09038433357352,977.06407869722204,984.8972544594169,993.84573235339451,1003.9715502612459,1015.3355598533896,1027.9975264276802,1042.0162146442151,1057.4494628609282,1074.3542481345046,1092.7867434881055,1112.8023687062343,1134.4558356614]
[1000362870,4,1,1,1,3,3.0306803023566031,3,3,3,3.0230632761679481,2.1694249845207684E-2,0,0,0,1.6308198974734206E-2,0.12304063405958204,0,0,0,0.3677509745712596,16.795287547117443,20.898335090615813,25.585582173483054,30.889524476582746,36.842036338549633,43.474423051897745,50.817465771241231,58.901460450564159,67.756251890949088,77.411263737631444,87.895525086545064,99.237694226602784,0,0,0,0,0,0,0,0,0,0,0,0,0,0,0,0,0,0,0,0,0,0,0,0,0,0,0,0,0,0,0,0,0,0,0,0,8.1452871896351073,10.135160867043924,12.408356459059,14.980633544211758,17.867450365859522,21.08398919446757,24.64517810695375,28.565709870273789,32.860058453703466,37.542493576646898,42.627093612134182,48.12775710122358,0,0,0,0,0,0,0,0,0,0,0,0,952.12350396046941,953.86375850175716,955.85179372085247,958.10139224045133,960.62607314898037,963.43911418131495,966.55357076602024,969.98229254009038,973.73793778985203,977.83298617382718,982.27975000755498,987.09038433357352,977.06407869722204,984.8972544594169,993.84573235339451,1003.9715502612459,1015.3355598533896,1027.9975264276802,1042.0162146442151,1057.4494628609282,1074.3542481345046,1092.7867434881055,1112.8023687062343,1134.4558356614]
[1000362899,4,1,1,1,3,3.0306803023566031,3,3,3,3.0230632761679481,2.1694249845207684E-2,0,0,0,1.6308198974734206E-2,0.12304063405958204,0,0,0,0.3677509745712596,20.898335090615813,25.585582173483054,30.889524476582746,36.842036338549633,43.474423051897745,50.817465771241231,58.901460450564159,67.756251890949088,77.411263737631444,87.895525086545064,99.237694226602784,111.46607994206619,0,0,0,0,0,0,0,0,0,0,0,0,0,0,0,0,0,0,0,0,0,0,0,0,0,0,0,0,0,0,0,0,0,0,0,0,10.135160867043924,12.408356459059,14.980633544211758,17.867450365859522,21.08398919446757,24.64517810695375,28.565709870273789,32.860058453703466,37.542493576646898,42.627093612134182,48.12775710122358,54.058213084108843,0,0,0,0,0,0,0,0,0,0,0,0,953.86375850175716,955.85179372085247,958.10139224045133,960.62607314898037,963.43911418131495,966.55357076602024,969.98229254009038,973.73793778985203,977.83298617382718,982.27975000755498,987.09038433357352,992.27689595654374,984.8972544594169,993.84573235339451,1003.9715502612459,1015.3355598533896,1027.9975264276802,1042.0162146442151,1057.4494628609282,1074.3542481345046,1092.7867434881055,1112.8023687062343,1134.4558356614,1157.8011889827189]
[1000362927,4,1,1,1,3,3.0306803023566031,3,3,3,3.0230632761679481,2.1694249845207684E-2,0,0,0,1.6308198974734206E-2,0.12304063405958204,0,0,0,0.3677509745712596,26.980451254940544,33.253361770335118,40.397470487172143,48.463526635693704,57.501674848808335,67.561499606835071,78.692063992957557,90.941943763863506,104.3592575189911,118.99169358806412,134.88653413328203,152.09067686825912,0,0,0,0,0,0,0,0,0,0,0,0,0,0,0,0,0,0,0,0,0,0,0,0,0,0,0,0,0,0,0,0,0,0,0,0,13.084832478212583,16.127034495857711,19.59174547799272,23.503577510228823,27.886849463851373,32.765608550390063,38.1636491170282,44.104529169996113,50.611585005888166,57.707944251433261,65.416537552443856,73.760109106948946,0,0,0,0,0,0,0,0,0,0,0,0,956.4434093986564,959.10398325157337,962.13406455239317,965.55517793066485,969.38859158379876,973.65533612773072,978.37622103454567,983.57184908309898,989.26262915491247,995.46878763817381,1002.2103786503694,1009.5072932500915,996.50869313180954,1008.4843795177662,1022.123280517558,1037.5222820765873,1054.7771158964586,1073.9824442849558,1095.2319341445314,1118.6183220169587,1144.2334716797918,1172.1684254776712,1202.5134503360955,1235.3580792252997]
[1000362965,4,1,1,1,3,3.0306803023566031,3,3,3,3.0230632761679481,2.1694249845207684E-2,0,0,0,1.6308198974734206E-2,0.12304063405958204,0,0,0,0.3677509745712596,21.527333670816041,26.980451254940544,33.253361770335118,40.397470487172143,48.463526635693704,57.501674848808335,67.561499606835071,78.692063992957557,90.941943763863506,104.3592575189911,118.99169358806412,134.88653413328203,0,0,0,0,0,0,0,0,0,0,0,0,0,0,0,0,0,0,0,0,0,0,0,0,0,0,0,0,0,0,0,0,0,0,0,0,10.440209176769525,13.084832478212583,16.127034495857711,19.59174547799272,23.503577510228823,27.886849463851373,32.765608550390063,38.1636491170282,44.104529169996113,50.611585005888166,57.707944251433261,65.416537552443856,0,0,0,0,0,0,0,0,0,0,0,0,954.13054011324289,956.4434093986564,959.10398325157337,962.13406455239317,965.55517793066485,969.38859158379876,973.65533612773072,978.37622103454567,983.57184908309898,989.26262915491247,995.46878763817381,1002.2103786503694,986.09808296082838,996.50869313180954,1008.4843795177662,1022.123280517558,1037.5222820765873,1054.7771158964586,1073.9824442849558,1095.2319341445314,1118.6183220169587,1144.2334716797918,1172.1684254776712,1202.5134503360955]
[1000362998,4,1,1,1,3,3.0306803023566031,3,3,3,3.0230632761679481,2.1694249845207684E-2,0,0,0,1.6308198974734206E-2,0.12304063405958204,0,0,0,0.3677509745712596,13.243260944614924,16.795287547117443,20.898335090615813,25.585582173483054,30.889524476582746,36.842036338549633,43.474423051897745,50.817465771241231,58.901460450564159,67.756251890949088,77.411263737631444,87.895525086545064,0,0,0,0,0,0,0,0,0,0,0,0,0,0,0,0,0,0,0,0,0,0,0,0,0,0,0,0,0,0,0,0,0,0,0,0,6.4226446506824182,8.1452871896351073,10.135160867043924,12.408356459059,14.980633544211758,17.867450365859522,21.08398919446757,24.64517810695375,28.565709870273789,32.860058453703466,37.542493576646898,42.627093612134182,0,0,0,0,0,0,0,0,0,0,0,0,950.61695782366553,952.12350396046941,953.86375850175716,955.85179372085247,958.10139224045133,960.62607314898037,963.43911418131495,966.55357076602024,969.98229254009038,973.73793778985203,977.83298617382718,982.27975000755498,970.28286341896285,977.06407869722204,984.8972544594169,993.84573235339451,1003.9715502612459,1015.3355598533896,1027.9975264276802,1042.0162146442151,1057.4494628609282,1074.3542481345046,1092.7867434881055,1112.8023687062343]
[1000366027,4,1,1,1,3,3.0306803023566031,3,3,3,3.0230632761679481,2.1694249845207684E-2,0,0,0,1.6308198974734206E-2,0.12304063405958204,0,0,0,0.3677509745712596,16.795287547117443,20.898335090615813,25.585582173483054,30.889524476582746,36.842036338549633,43.474423051897745,50.817465771241231,58.901460450564159,67.756251890949088,77.411263737631444,87.895525086545064,99.237694226602784,0,0,0,0,0,0,0,0,0,0,0,0,0,0,0,0,0,0,0,0,0,0,0,0,0,0,0,0,0,0,0,0,0,0,0,0,8.1452871896351073,10.135160867043924,12.408356459059,14.980633544211758,17.867450365859522,21.08398919446757,24.64517810695375,28.565709870273789,32.860058453703466,37.542493576646898,42.627093612134182,48.12775710122358,0,0,0,0,0,0,0,0,0,0,0,0,952.12350396046941,953.86375850175716,955.85179372085247,958.10139224045133,960.62607314898037,963.43911418131495,966.55357076602024,969.98229254009038,973.73793778985203,977.83298617382718,982.27975000755498,987.09038433357352,977.06407869722204,984.8972544594169,993.84573235339451,1003.9715502612459,1015.3355598533896,1027.9975264276802,1042.0162146442151,1057.4494628609282,1074.3542481345046,1092.7867434881055,1112.8023687062343,1134.4558356614]
[1000366060,4,1,1,1,3,3.0306803023566031,3,3,3,3.0230632761679481,2.1694249845207684E-2,0,0,0,1.6308198974734206E-2,0.12304063405958204,0,0,0,0.3677509745712596,13.243260944614924,16.795287547117443,20.898335090615813,25.585582173483054,30.889524476582746,36.842036338549633,43.474423051897745,50.817465771241231,58.901460450564159,67.756251890949088,77.411263737631444,87.895525086545064,0,0,0,0,0,0,0,0,0,0,0,0,0,0,0,0,0,0,0,0,0,0,0,0,0,0,0,0,0,0,0,0,0,0,0,0,6.4226446506824182,8.1452871896351073,10.135160867043924,12.408356459059,14.980633544211758,17.867450365859522,21.08398919446757,24.64517810695375,28.565709870273789,32.860058453703466,37.542493576646898,42.627093612134182,0,0,0,0,0,0,0,0,0,0,0,0,950.61695782366553,952.12350396046941,953.86375850175716,955.85179372085247,958.10139224045133,960.62607314898037,963.43911418131495,966.55357076602024,969.98229254009038,973.73793778985203,977.83298617382718,982.27975000755498,970.28286341896285,977.06407869722204,984.8972544594169,993.84573235339451,1003.9715502612459,1015.3355598533896,1027.9975264276802,1042.0162146442151,1057.4494628609282,1074.3542481345046,1092.7867434881055,1112.8023687062343]
[1000366091,4,1,1,1,3,3.0306803023566031,3,3,3,3.0230632761679481,2.1694249845207684E-2,0,0,0,1.6308198974734206E-2,0.12304063405958204,0,0,0,0.3677509745712596,21.527333670816041,26.980451254940544,33.253361770335118,40.397470487172143,48.463526635693704,57.501674848808335,67.561499606835071,78.692063992957557,90.941943763863506,104.3592575189911,118.99169358806412,134.88653413328203,0,0,0,0,0,0,0,0,0,0,0,0,0,0,0,0,0,0,0,0,0,0,0,0,0,0,0,0,0,0,0,0,0,0,0,0,10.440209176769525,13.084832478212583,16.127034495857711,19.59174547799272,23.503577510228823,27.886849463851373,32.765608550390063,38.1636491170282,44.104529169996113,50.611585005888166,57.707944251433261,65.416537552443856,0,0,0,0,0,0,0,0,0,0,0,0,954.13054011324289,956.4434093986564,959.10398325157337,962.13406455239317,965.55517793066485,969.38859158379876,973.65533612773072,978.37622103454567,983.57184908309898,989.26262915491247,995.46878763817381,1002.2103786503694,986.09808296082838,996.50869313180954,1008.4843795177662,1022.123280517558,1037.5222820765873,1054.7771158964586,1073.9824442849558,1095.2319341445314,1118.6183220169587,1144.2334716797918,1172.1684254776712,1202.5134503360955]
[1000366122,4,1,1,1,3,3.0306803023566031,3,3,3,3.0230632761679481,2.1694249845207684E-2,0,0,0,1.6308198974734206E-2,0.12304063405958204,0,0,0,0.3677509745712596,16.795287547117443,20.898335090615813,25.585582173483054,30.889524476582746,36.842036338549633,43.474423051897745,50.817465771241231,58.901460450564159,67.756251890949088,77.411263737631444,87.895525086545064,99.237694226602784,0,0,0,0,0,0,0,0,0,0,0,0,0,0,0,0,0,0,0,0,0,0,0,0,0,0,0,0,0,0,0,0,0,0,0,0,8.1452871896351073,10.135160867043924,12.408356459059,14.980633544211758,17.867450365859522,21.08398919446757,24.64517810695375,28.565709870273789,32.860058453703466,37.542493576646898,42.627093612134182,48.12775710122358,0,0,0,0,0,0,0,0,0,0,0,0,952.12350396046941,953.86375850175716,955.85179372085247,958.10139224045133,960.62607314898037,963.43911418131495,966.55357076602024,969.98229254009038,973.73793778985203,977.83298617382718,982.27975000755498,987.09038433357352,977.06407869722204,984.8972544594169,993.84573235339451,1003.9715502612459,1015.3355598533896,1027.9975264276802,1042.0162146442151,1057.4494628609282,1074.3542481345046,1092.7867434881055,1112.8023687062343,1134.4558356614]
[1000366153,4,1,1,1,3,3.0306803023566031,3,3,3,3.0230632761679481,2.1694249845207684E-2,0,0,0,1.6308198974734206E-2,0.12304063405958204,0,0,0,0.3677509745712596,13.243260944614924,16.795287547117443,20.898335090615813,25.585582173483054,30.889524476582746,36.842036338549633,43.474423051897745,50.817465771241231,58.901460450564159,67.756251890949088,77.411263737631444,87.895525086545064,0,0,0,0,0,0,0,0,0,0,0,0,0,0,0,0,0,0,0,0,0,0,0,0,0,0,0,0,0,0,0,0,0,0,0,0,6.4226446506824182,8.1452871896351073,10.135160867043924,12.408356459059,14.980633544211758,17.867450365859522,21.08398919446757,24.64517810695375,28.565709870273789,32.860058453703466,37.542493576646898,42.627093612134182,0,0,0,0,0,0,0,0,0,0,0,0,950.61695782366553,952.12350396046941,953.86375850175716,955.85179372085247,958.10139224045133,960.62607314898037,963.43911418131495,966.55357076602024,969.98229254009038,973.73793778985203,977.83298617382718,982.27975000755498,970.28286341896285,977.06407869722204,984.8972544594169,993.84573235339451,1003.9715502612459,1015.3355598533896,1027.9975264276802,1042.0162146442151,1057.4494628609282,1074.3542481345046,1092.7867434881055,1112.8023687062343]
[1000366184,4,1,1,1,3,3.0306803023566031,3,3,3,3.0230632761679481,2.1694249845207684E-2,0,0,0,1.6308198974734206E-2,0.12304063405958204,0,0,0,0.3677509745712596,16.841887531525625,21.527333670816041,26.980451254940544,33.253361770335118,40.397470487172143,48.463526635693704,57.501674848808335,67.561499606835071,78.692063992957557,90.941943763863506,104.3592575189911,118.99169358806412,0,0,0,0,0,0,0,0,0,0,0,0,0,0,0,0,0,0,0,0,0,0,0,0,0,0,0,0,0,0,0,0,0,0,0,0,8.1678869965733512,10.440209176769525,13.084832478212583,16.127034495857711,19.59174547799272,23.503577510228823,27.886849463851373,32.765608550390063,38.1636491170282,44.104529169996113,50.611585005888166,57.707944251433261,0,0,0,0,0,0,0,0,0,0,0,0,952.14326874106985,954.13054011324289,956.4434093986564,959.10398325157337,962.13406455239317,965.55517793066485,969.38859158379876,973.65533612773072,978.37622103454567,983.57184908309898,989.26262915491247,995.46878763817381,977.15304326916873,986.09808296082838,996.50869313180954,1008.4843795177662,1022.123280517558,1037.5222820765873,1054.7771158964586,1073.9824442849558,1095.2319341445314,1118.6183220169587,1144.2334716797918,1172.1684254776712]
[1000366216,4,1,1,1,3,3.0306803023566031,3,3,3,3.0230632761679481,2.1694249845207684E-2,0,0,0,1.6308198974734206E-2,0.12304063405958204,0,0,0,0.3677509745712596,13.243260944614924,16.795287547117443,20.898335090615813,25.585582173483054,30.889524476582746,36.842036338549633,43.474423051897745,50.817465771241231,58.901460450564159,67.756251890949088,77.411263737631444,87.895525086545064,0,0,0,0,0,0,0,0,0,0,0,0,0,0,0,0,0,0,0,0,0,0,0,0,0,0,0,0,0,0,0,0,0,0,0,0,6.4226446506824182,8.1452871896351073,10.135160867043924,12.408356459059,14.980633544211758,17.867450365859522,21.08398919446757,24.64517810695375,28.565709870273789,32.860058453703466,37.542493576646898,42.627093612134182,0,0,0,0,0,0,0,0,0,0,0,0,950.61695782366553,952.12350396046941,953.86375850175716,955.85179372085247,958.10139224045133,960.62607314898037,963.43911418131495,966.55357076602024,969.98229254009038,973.73793778985203,977.83298617382718,982.27975000755498,970.28286341896285,977.06407869722204,984.8972544594169,993.84573235339451,1003.9715502612459,1015.3355598533896,1027.9975264276802,1042.0162146442151,1057.4494628609282,1074.3542481345046,1092.7867434881055,1112.8023687062343]
[1000366244,4,1,1,1,3,3.0306803023566031,3,3,3,3.0230632761679481,2.1694249845207684E-2,0,0,0,1.6308198974734206E-2,0.12304063405958204,0,0,0,0.3677509745712596,16.795287547117443,20.898335090615813,25.585582173483054,30.889524476582746,36.842036338549633,43.474423051897745,50.817465771241231,58.901460450564159,67.756251890949088,77.411263737631444,87.895525086545064,99.237694226602784,0,0,0,0,0,0,0,0,0,0,0,0,0,0,0,0,0,0,0,0,0,0,0,0,0,0,0,0,0,0,0,0,0,0,0,0,8.1452871896351073,10.135160867043924,12.408356459059,14.980633544211758,17.867450365859522,21.08398919446757,24.64517810695375,28.565709870273789,32.860058453703466,37.542493576646898,42.627093612134182,48.12775710122358,0,0,0,0,0,0,0,0,0,0,0,0,952.12350396046941,953.86375850175716,955.85179372085247,958.10139224045133,960.62607314898037,963.43911418131495,966.55357076602024,969.98229254009038,973.73793778985203,977.83298617382718,982.27975000755498,987.09038433357352,977.06407869722204,984.8972544594169,993.84573235339451,1003.9715502612459,1015.3355598533896,1027.9975264276802,1042.0162146442151,1057.4494628609282,1074.3542481345046,1092.7867434881055,1112.8023687062343,1134.4558356614]
[1000366397,4,1,1,1,3,3.0306803023566031,3,3,3,3.0230632761679481,2.1694249845207684E-2,0,0,0,1.6308198974734206E-2,0.12304063405958204,0,0,0,0.3677509745712596,2843.7816600850119,2986.3643285911803,3133.5608325386338,3285.4411573805737,3442.0751862794764,3603.5327019031511,3769.8833881612809,3941.1968318852901,4117.5425244542548,4298.9898633693501,4485.6081537792452,4677.4666099586311,0,0,0,0,0,0,0,0,0,0,0,0,0,0,0,0,0,0,0,0,0,0,0,0,0,0,0,0,0,0,0,0,0,0,0,0,1379.1617595725666,1448.3107265068427,1519.6972862545526,1593.355379980075,1669.3188992393884,1747.6216868511156,1828.2975377387004,1911.3801997450998,1996.9033744213107,2084.9007177899371,2175.4058410849657,2268.4523114688163,0,0,0,0,0,0,0,0,0,0,0,0,2151.1532058617599,2211.6278003543271,2274.0592934678161,2338.4773686269182,2404.9116658710345,2473.391782616055,2543.9472743908873,2616.6076555499512,2691.4023999627871,2768.360941681839,2847.5126755894303,2928.8869580248602,6374.096625519338,6646.3028554523498,6927.3174122610026,7217.2739059875666,7516.3057513898993,7824.5461713703216,8142.1282002908683,8469.1846871803409,8805.848298838353,9152.2515228411266,9508.5266704536407,9874.8058794523076]
[1000366483,4,1,1,1,3,3.0306803023566031,3,3,3,3.0230632761679481,2.1694249845207684E-2,0,0,0,1.6308198974734206E-2,0.12304063405958204,0,0,0,0.3677509745712596,1182.5411797879206,1240.0478325433839,1299.2958966696308,1360.307247754426,1423.1036615943347,1487.706816302207,1554.1382943363806,1622.4195844557503,1692.5720836045273,1764.6170987302821,1838.5758485386214,1914.4694651876243,0,0,0,0,0,0,0,0,0,0,0,0,0,0,0,0,0,0,0,0,0,0,0,0,0,0,0,0,0,0,0,0,0,0,0,0,573.50238844798412,601.3916520699255,630.12545590533682,659.71440905777058,690.16907223458645,721.49995876902767,753.71753560433149,786.83222424189,820.85440165530952,855.79440117211402,891.6625133247212,928.46898667219887,0,0,0,0,0,0,0,0,0,0,0,0,1446.559544842873,1470.9502477413887,1496.0795477470858,1521.9567231075471,1548.5910097452079,1575.9916021512206,1604.1676542461125,1633.1282802090045,1662.8825552770077,1693.4395165163212,1724.8081635664571,1756.9974593589134,3202.6031130787778,3312.389732354698,3425.500900322053,3541.9783799197435,3661.8637435741293,3785.1983772224548,3912.0234841868246,4042.3800889066447,4176.3090405368448,4313.8510164187173,4455.0465254297997,4599.9359112187367]
[1000366599,4,1,1,1,3,3.0306803023566031,3,3,3,3.0230632761679481,2.1694249845207684E-2,0,0,0,1.6308198974734206E-2,0.12304063405958204,0,0,0,0.3677509745712596,1138.7558890935766,1205.5293811990873,1274.7789533114706,1346.5451674393178,1420.8684430817493,1497.7890604561005,1577.3471635930578,1659.5827633070335,1744.5357400489818,1832.245846648339,1922.7527109502378,2016.0958383537586,0,0,0,0,0,0,0,0,0,0,0,0,0,0,0,0,0,0,0,0,0,0,0,0,0,0,0,0,0,0,0,0,0,0,0,0,552.26763635537702,584.65108131446993,618.23536208562689,653.04015021112048,689.08504811975558,726.38959069221403,764.97324676211849,804.85542055658675,846.05545307977627,888.59262344265528,932.4861501419839,977.75519229130191,0,0,0,0,0,0,0,0,0,0,0,0,1427.988580172191,1456.3096931113746,1485.6810033565534,1516.119714758988,1547.642970726391,1580.2678555919069,1614.0113959268754,1648.8905618006756,1684.9222679907132,1722.1233751453774,1760.5106909025819,1800.1009709663313,3119.0121056211447,3246.490155624932,3378.695318753651,3515.7050324094262,3657.5964619278957,3804.4465067402216,3956.3318062820517,4113.3287456642956,4275.5134611194717,4442.961845236372,4615.7495519948034,4793.9520016113911]
[1000366630,4,1,1,1,3,3.0306803023566031,3,3,3,3.0230632761679481,2.1694249845207684E-2,0,0,0,1.6308198974734206E-2,0.12304063405958204,0,0,0,0.3677509745712596,2262.1644357606792,2402.8305221431542,2549.1963149468606,2701.3741968558461,2859.4765197042443,3023.6156050779236,3193.9037448932627,3370.453201954324,3553.376210489645,3742.7849766696972,3938.7916791060711,4141.5084693333101,0,0,0,0,0,0,0,0,0,0,0,0,0,0,0,0,0,0,0,0,0,0,0,0,0,0,0,0,0,0,0,0,0,0,0,0,1097.0922020690277,1165.311675431002,1236.2953614072169,1310.0977627404291,1386.7733672119723,1466.3766479335409,1548.9620636278812,1634.5840588990075,1723.297064492531,1815.1554975466147,1910.2137618340651,2008.5262479960104,0,0,0,0,0,0,0,0,0,0,0,0,1904.4677835771813,1964.1294845536117,2026.208642281006,2090.7529224210953,2157.8099775510191,2227.4274474185058,2299.652959187355,2374.5341276737518,2452.1185555739448,2532.453833683714,2615.5875411100978,2701.5672454757564,5263.7244214068887,5532.2716821277681,5811.700318635083,6102.22488201737,6404.0598644672355,6717.4197004299704,7042.5187677084996,7379.5713885270834,7728.7918305561207,8090.3943079000264,8464.5929820502333,8851.6019628050781]
[1000366661,4,1,1,1,3,3.0306803023566031,3,3,3,3.0230632761679481,2.1694249845207684E-2,0,0,0,1.6308198974734206E-2,0.12304063405958204,0,0,0,0.3677509745712596,2549.1963149468606,2701.3741968558461,2859.4765197042443,3023.6156050779236,3193.9037448932627,3370.453201954324,3553.376210489645,3742.7849766696972,3938.7916791060711,4141.5084693333101,4351.0474722743184,4567.5207866901201,0,0,0,0,0,0,0,0,0,0,0,0,0,0,0,0,0,0,0,0,0,0,0,0,0,0,0,0,0,0,0,0,0,0,0,0,1236.2953614072169,1310.0977627404291,1386.7733672119723,1466.3766479335409,1548.9620636278812,1634.5840588990075,1723.297064492531,1815.1554975466147,1910.2137618340651,2008.5262479960104,2110.1473337676107,2215.1313841961787,0,0,0,0,0,0,0,0,0,0,0,0,2026.208642281006,2090.7529224210953,2157.8099775510191,2227.4274474185058,2299.652959187355,2374.5341276737518,2452.1185555739448,2532.453833683714,2615.5875411100978,2701.5672454757564,2790.4405031163651,2882.2548592713783,5811.700318635083,6102.22488201737,6404.0598644672355,6717.4197004299704,7042.5187677084996,7379.5713885270834,7728.7918305561207,8090.3943079000264,8464.5929820502333,8851.6019628050781,9251.6353091582932,9664.9070301576776]
[1000366782,4,1,1,1,3,3.0306803023566031,3,3,3,3.0230632761679481,2.1694249845207684E-2,0,0,0,1.6308198974734206E-2,0.12304063405958204,0,0,0,0.3677509745712596,1497.7890604561005,1577.3471635930578,1659.5827633070335,1744.5357400489818,1832.245846648339,1922.7527109502378,2016.0958383537586,2112.3146142565274,2211.448306410618,2313.5360671943886,2418.6169358045431,2526.7298403724526,0,0,0,0,0,0,0,0,0,0,0,0,0,0,0,0,0,0,0,0,0,0,0,0,0,0,0,0,0,0,0,0,0,0,0,0,726.38959069221403,764.97324676211849,804.85542055658675,846.05545307977627,888.59262344265528,932.4861501419839,977.75519229130191,1024.4188508064967,1072.4961695483562,1122.00613642435,1172.9676844517262,1225.3996927838714,0,0,0,0,0,0,0,0,0,0,0,0,1580.2678555919069,1614.0113959268754,1648.8905618006756,1684.9222679907132,1722.1233751453774,1760.5106909025819,1800.1009709663313,1840.9109201435649,1882.957193343384,1926.2563965406198,1970.8250877055691,2016.679777701605,3804.4465067402216,3956.3318062820517,4113.3287456642956,4275.5134611194717,4442.961845236372,4615.7495519948034,4793.9520016113911,4977.6443852065895,5166.9016693023586,5361.7986001593581,5562.4097079618386,5768.8093108579287]
[1000366876,4,1,1,1,3,3.0306803023566031,3,3,3,3.0230632761679481,2.1694249845207684E-2,0,0,0,1.6308198974734206E-2,0.12304063405958204,0,0,0,0.3677509745712596,547.78783176970308,583.27337102005492,620.18217362168446,658.53779041037683,698.36363145339078,739.68296992500564,782.51894579536281,826.89456934528289,872.832724518654,920.35617212298052,969.48755288782002,1020.2493903900088,0,0,0,0,0,0,0,0,0,0,0,0,0,0,0,0,0,0,0,0,0,0,0,0,0,0,0,0,0,0,0,0,0,0,0,0,265.66316273147368,282.8727465187302,300.7725768236553,319.37407520247342,338.68859494225489,358.72742294045759,379.5017814939211,401.02283000346387,423.30166659970598,446.34932969525403,470.17679946796505,494.79499927960688,0,0,0,0,0,0,0,0,0,0,0,0,1177.3371230269972,1192.3878554827602,1208.0422466785822,1224.310285396823,1241.2019007146939,1258.7269636480189,1276.8952887158105,1295.7166354310327,1315.2007097224748,1335.3571652922208,1356.1956049128471,1377.7255816681188,1990.7881175281741,2058.5339730215455,2128.996997123922,2202.2221510096733,2278.2541271103396,2357.1373565134822,2438.9160160050942,2523.6340347797795,2611.3351008408345,2702.0626671104555,2795.8599572686321,2892.7699713377342]
[1000366906,4,1,1,1,3,3.0306803023566031,3,3,3,3.0230632761679481,2.1694249845207684E-2,0,0,0,1.6308198974734206E-2,0.12304063405958204,0,0,0,0.3677509745712596,787.82230624692738,840.59954526909416,895.60629980489841,952.88406328666952,1012.4741639591531,1074.4177691081893,1138.7558890935766,1205.5293811990873,1274.7789533114706,1346.5451674393178,1420.8684430817493,1497.7890604561005,0,0,0,0,0,0,0,0,0,0,0,0,0,0,0,0,0,0,0,0,0,0,0,0,0,0,0,0,0,0,0,0,0,0,0,0,382.07377639588162,407.66939467306582,434.34627125567533,462.12452940280019,491.024212261755,521.0652849188798,552.26763635537702,584.65108131446993,618.23536208562689,653.04015021112048,689.08504811975558,726.38959069221403,0,0,0,0,0,0,0,0,0,0,0,0,1279.1446404506071,1301.5294236906875,1324.8598270963512,1349.1534495701892,1374.4278199526159,1400.7003988154079,1427.988580172191,1456.3096931113746,1485.6810033565534,1516.119714758988,1547.642970726391,1580.2678555919069,2449.0407230934161,2549.7983636328477,2654.8123981569247,2764.1620422596588,2877.9261961735237,2996.183452842477,3119.0121056211447,3246.490155624932,3378.695318753651,3515.7050324094262,3657.5964619278957,3804.4465067402216]
[1000367691,4,1,1,1,3,3.0306803023566031,3,3,3,3.0230632761679481,2.1694249845207684E-2,0,0,0,1.6308198974734206E-2,0.12304063405958204,0,0,0,0.3677509745712596,25.585582173483054,30.889524476582746,36.842036338549633,43.474423051897745,50.817465771241231,58.901460450564159,67.756251890949088,77.411263737631444,87.895525086545064,99.237694226602784,111.46607994206619,124.60866072077268,0,0,0,0,0,0,0,0,0,0,0,0,0,0,0,0,0,0,0,0,0,0,0,0,0,0,0,0,0,0,0,0,0,0,0,0,12.408356459059,14.980633544211758,17.867450365859522,21.08398919446757,24.64517810695375,28.565709870273789,32.860058453703466,37.542493576646898,42.627093612134182,48.12775710122358,54.058213084108843,60.432030415620723,0,0,0,0,0,0,0,0,0,0,0,0,955.85179372085247,958.10139224045133,960.62607314898037,963.43911418131495,966.55357076602024,969.98229254009038,973.73793778985203,977.83298617382718,982.27975000755498,987.09038433357352,992.27689595654374,997.85115159017073,993.84573235339451,1003.9715502612459,1015.3355598533896,1027.9975264276802,1042.0162146442151,1057.4494628609282,1074.3542481345046,1092.7867434881055,1112.8023687062343,1134.4558356614,1157.8011889827189,1182.8918427265642]
[1000367704,4,1,1,1,3,3.0306803023566031,3,3,3,3.0230632761679481,2.1694249845207684E-2,0,0,0,1.6308198974734206E-2,0.12304063405958204,0,0,0,0.3677509745712596,25.585582173483054,30.889524476582746,36.842036338549633,43.474423051897745,50.817465771241231,58.901460450564159,67.756251890949088,77.411263737631444,87.895525086545064,99.237694226602784,111.46607994206619,124.60866072077268,0,0,0,0,0,0,0,0,0,0,0,0,0,0,0,0,0,0,0,0,0,0,0,0,0,0,0,0,0,0,0,0,0,0,0,0,12.408356459059,14.980633544211758,17.867450365859522,21.08398919446757,24.64517810695375,28.565709870273789,32.860058453703466,37.542493576646898,42.627093612134182,48.12775710122358,54.058213084108843,60.432030415620723,0,0,0,0,0,0,0,0,0,0,0,0,955.85179372085247,958.10139224045133,960.62607314898037,963.43911418131495,966.55357076602024,969.98229254009038,973.73793778985203,977.83298617382718,982.27975000755498,987.09038433357352,992.27689595654374,997.85115159017073,993.84573235339451,1003.9715502612459,1015.3355598533896,1027.9975264276802,1042.0162146442151,1057.4494628609282,1074.3542481345046,1092.7867434881055,1112.8023687062343,1134.4558356614,1157.8011889827189,1182.8918427265642]
[1000370022,4,1,1,1,3,3.0306803023566031,3,3,3,3.0230632761679481,2.1694249845207684E-2,0,0,0,1.6308198974734206E-2,0.12304063405958204,0,0,0,0.3677509745712596,419.60213021697916,449.63308711207839,480.99161146397978,513.7018601901292,547.78783176970308,583.27337102005492,620.18217362168446,658.53779041037683,698.36363145339078,739.68296992500564,782.51894579536281,826.89456934528289,0,0,0,0,0,0,0,0,0,0,0,0,0,0,0,0,0,0,0,0,0,0,0,0,0,0,0,0,0,0,0,0,0,0,0,0,203.49635851197752,218.06060862105755,233.26869517348106,249.13233365965937,265.66316273147368,282.8727465187302,300.7725768236553,319.37407520247342,338.68859494225489,358.72742294045759,379.5017814939211,401.02283000346387,0,0,0,0,0,0,0,0,0,0,0,0,1122.9688158381693,1135.7060577447921,1149.0063702156904,1162.8799990949205,1177.3371230269972,1192.3878554827602,1208.0422466785822,1224.310285396823,1241.2019007146939,1258.7269636480189,1276.8952887158105,1295.7166354310327,1746.067304567126,1803.399753477928,1863.2666768531512,1925.7141929447089,1990.7881175281741,2058.5339730215455,2128.996997123922,2202.2221510096733,2278.2541271103396,2357.1373565134822,2438.9160160050942,2523.6340347797795]
[1000370112,4,1,1,1,3,3.0306803023566031,3,3,3,3.0230632761679481,2.1694249845207684E-2,0,0,0,1.6308198974734206E-2,0.12304063405958204,0,0,0,0.3677509745712596,1997.4816934926141,2127.0856416395914,2262.1644357606792,2402.8305221431542,2549.1963149468606,2701.3741968558461,2859.4765197042443,3023.6156050779236,3193.9037448932627,3370.453201954324,3553.376210489645,3742.7849766696972,0,0,0,0,0,0,0,0,0,0,0,0,0,0,0,0,0,0,0,0,0,0,0,0,0,0,0,0,0,0,0,0,0,0,0,0,968.72780557594228,1031.5824233135761,1097.0922020690277,1165.311675431002,1236.2953614072169,1310.0977627404291,1386.7733672119723,1466.3766479335409,1548.9620636278812,1634.5840588990075,1723.297064492531,1815.1554975466147,0,0,0,0,0,0,0,0,0,0,0,0,1792.2060222036425,1847.1758603399308,1904.4677835771813,1964.1294845536117,2026.208642281006,2090.7529224210953,2157.8099775510191,2227.4274474185058,2299.652959187355,2374.5341276737518,2452.1185555739448,2532.453833683714,4758.4155212721989,5005.8439252930984,5263.7244214068887,5532.2716821277681,5811.700318635083,6102.22488201737,6404.0598644672355,6717.4197004299704,7042.5187677084996,7379.5713885270834,7728.7918305561207,8090.3943079000264]
[1000370140,4,1,1,1,3,3.0306803023566031,3,3,3,3.0230632761679481,2.1694249845207684E-2,0,0,0,1.6308198974734206E-2,0.12304063405958204,0,0,0,0.3677509745712596,1074.4177691081893,1138.7558890935766,1205.5293811990873,1274.7789533114706,1346.5451674393178,1420.8684430817493,1497.7890604561005,1577.3471635930578,1659.5827633070335,1744.5357400489818,1832.245846648339,1922.7527109502378,0,0,0,0,0,0,0,0,0,0,0,0,0,0,0,0,0,0,0,0,0,0,0,0,0,0,0,0,0,0,0,0,0,0,0,0,521.0652849188798,552.26763635537702,584.65108131446993,618.23536208562689,653.04015021112048,689.08504811975558,726.38959069221403,764.97324676211849,804.85542055658675,846.05545307977627,888.59262344265528,932.4861501419839,0,0,0,0,0,0,0,0,0,0,0,0,1400.7003988154079,1427.988580172191,1456.3096931113746,1485.6810033565534,1516.119714758988,1547.642970726391,1580.2678555919069,1614.0113959268754,1648.8905618006756,1684.9222679907132,1722.1233751453774,1760.5106909025819,2996.183452842477,3119.0121056211447,3246.490155624932,3378.695318753651,3515.7050324094262,3657.5964619278957,3804.4465067402216,3956.3318062820517,4113.3287456642956,4275.5134611194717,4442.961845236372,4615.7495519948034]
[1000370197,4,1,1,1,3,3.0306803023566031,3,3,3,3.0230632761679481,2.1694249845207684E-2,0,0,0,1.6308198974734206E-2,0.12304063405958204,0,0,0,0.3677509745712596,1922.7527109502378,2016.0958383537586,2112.3146142565274,2211.448306410618,2313.5360671943886,2418.6169358045431,2526.7298403724526,2637.9136000084891,2752.2069267778838,2869.6484276114243,2990.2766061540497,3114.1298645542752,0,0,0,0,0,0,0,0,0,0,0,0,0,0,0,0,0,0,0,0,0,0,0,0,0,0,0,0,0,0,0,0,0,0,0,0,932.4861501419839,977.75519229130191,1024.4188508064967,1072.4961695483562,1122.00613642435,1172.9676844517262,1225.3996927838714,1279.3209877017612,1334.7503435722006,1391.706483774464,1450.2080815968186,1510.2737611043465,0,0,0,0,0,0,0,0,0,0,0,0,1760.5106909025819,1800.1009709663313,1840.9109201435649,1882.957193343384,1926.2563965406198,1970.8250877055691,2016.679777701605,2063.8369311522533,2112.3129672792293,2162.1242607128315,2213.287142276004,2265.8178997432956,4615.7495519948034,4793.9520016113911,4977.6443852065895,5166.9016693023586,5361.7986001593581,5562.4097079618386,5768.8093108579287,5981.0715188625036,6199.2702376293137,6423.4791720987196,6653.7718300268725,6890.2215254019175]
[1000370256,4,1,1,1,3,3.0306803023566031,3,3,3,3.0230632761679481,2.1694249845207684E-2,0,0,0,1.6308198974734206E-2,0.12304063405958204,0,0,0,0.3677509745712596,1577.3471635930578,1659.5827633070335,1744.5357400489818,1832.245846648339,1922.7527109502378,2016.0958383537586,2112.3146142565274,2211.448306410618,2313.5360671943886,2418.6169358045431,2526.7298403724526,2637.9136000084891,0,0,0,0,0,0,0,0,0,0,0,0,0,0,0,0,0,0,0,0,0,0,0,0,0,0,0,0,0,0,0,0,0,0,0,0,764.97324676211849,804.85542055658675,846.05545307977627,888.59262344265528,932.4861501419839,977.75519229130191,1024.4188508064967,1072.4961695483562,1122.00613642435,1172.9676844517262,1225.3996927838714,1279.3209877017612,0,0,0,0,0,0,0,0,0,0,0,0,1614.0113959268754,1648.8905618006756,1684.9222679907132,1722.1233751453774,1760.5106909025819,1800.1009709663313,1840.9109201435649,1882.957193343384,1926.2563965406198,1970.8250877055691,2016.679777701605,2063.8369311522533,3956.3318062820517,4113.3287456642956,4275.5134611194717,4442.961845236372,4615.7495519948034,4793.9520016113911,4977.6443852065895,5166.9016693023586,5361.7986001593581,5562.4097079618386,5768.8093108579287,5981.0715188625036]
[1000370289,4,1,1,1,3,3.0306803023566031,3,3,3,3.0230632761679481,2.1694249845207684E-2,0,0,0,1.6308198974734206E-2,0.12304063405958204,0,0,0,0.3677509745712596,2318.1859452746135,2443.0152388243255,2572.1773649121155,2705.7427374175149,2843.7816600850119,2986.3643285911803,3133.5608325386338,3285.4411573805737,3442.0751862794764,3603.5327019031511,3769.8833881612809,3941.1968318852901,0,0,0,0,0,0,0,0,0,0,0,0,0,0,0,0,0,0,0,0,0,0,0,0,0,0,0,0,0,0,0,0,0,0,0,0,1124.2612090007476,1184.8002407255235,1247.4405860043678,1312.2163937775304,1379.1617595725666,1448.3107265068427,1519.6972862545526,1593.355379980075,1669.3188992393884,1747.6216868511156,1828.2975377387004,1911.3801997450998,0,0,0,0,0,0,0,0,0,0,0,0,1928.2285821806245,1981.173312331231,2035.9557573562306,2092.605782391799,2151.1532058617599,2211.6278003543271,2274.0592934678161,2338.4773686269182,2404.9116658710345,2473.391782616055,2543.9472743908873,2616.6076555499512,5370.6757364559853,5608.98879188108,5855.5737082727137,6110.5649135868443,6374.096625519338,6646.3028554523498,6927.3174122610026,7217.2739059875666,7516.3057513898993,7824.5461713703216,8142.1282002908683,8469.1846871803409]
[1000370319,4,1,1,1,3,3.0306803023566031,3,3,3,3.0230632761679481,2.1694249845207684E-2,0,0,0,1.6308198974734206E-2,0.12304063405958204,0,0,0,0.3677509745712596,2081.2436366486231,2197.6189581040876,2318.1859452746135,2443.0152388243255,2572.1773649121155,2705.7427374175149,2843.7816600850119,2986.3643285911803,3133.5608325386338,3285.4411573805737,3442.0751862794764,3603.5327019031511,0,0,0,0,0,0,0,0,0,0,0,0,0,0,0,0,0,0,0,0,0,0,0,0,0,0,0,0,0,0,0,0,0,0,0,0,1009.3502171097466,1065.7892874371582,1124.2612090007476,1184.8002407255235,1247.4405860043678,1312.2163937775304,1379.1617595725666,1448.3107265068427,1519.6972862545526,1593.355379980075,1669.3188992393884,1747.6216868511156,0,0,0,0,0,0,0,0,0,0,0,0,1827.7325669046204,1877.0916541463971,1928.2285821806245,1981.173312331231,2035.9557573562306,2092.605782391799,2151.1532058617599,2211.6278003543271,2274.0592934678161,2338.4773686269182,2404.9116658710345,2473.391782616055,4918.3264206629901,5140.4998996876429,5370.6757364559853,5608.98879188108,5855.5737082727137,6110.5649135868443,6374.096625519338,6646.3028554523498,6927.3174122610026,7217.2739059875666,7516.3057513898993,7824.5461713703216]
[1000370381,4,1,1,1,3,3.0306803023566031,3,3,3,3.0230632761679481,2.1694249845207684E-2,0,0,0,1.6308198974734206E-2,0.12304063405958204,0,0,0,0.3677509745712596,1423.1036615943347,1487.706816302207,1554.1382943363806,1622.4195844557503,1692.5720836045273,1764.6170987302821,1838.5758485386214,1914.4694651876243,1992.3189959249894,2072.1454046706203,2153.9695735472537,2237.8123043615365,0,0,0,0,0,0,0,0,0,0,0,0,0,0,0,0,0,0,0,0,0,0,0,0,0,0,0,0,0,0,0,0,0,0,0,0,690.16907223458645,721.49995876902767,753.71753560433149,786.83222424189,820.85440165530952,855.79440117211402,891.6625133247212,928.46898667219887,966.22402859424074,1004.9378060586794,1044.6204463638028,1085.2820378566387,0,0,0,0,0,0,0,0,0,0,0,0,1548.5910097452079,1575.9916021512206,1604.1676542461125,1633.1282802090045,1662.8825552770077,1693.4395165163212,1724.8081635664571,1756.9974593589134,1790.016330811548,1823.8736694998124,1858.5783323059491,1894.1391420471682,3661.8637435741293,3785.1983772224548,3912.0234841868246,4042.3800889066447,4176.3090405368448,4313.8510164187173,4455.0465254297997,4599.9359112187367,4748.5593553307781,4900.9568802291124,5057.168352217006,5217.2334842653436]
[1000370592,4,1,1,1,3,3.0306803023566031,3,3,3,3.0230632761679481,2.1694249845207684E-2,0,0,0,1.6308198974734206E-2,0.12304063405958204,0,0,0,0.3677509745712596,3193.9037448932627,3370.453201954324,3553.376210489645,3742.7849766696972,3938.7916791060711,4141.5084693333101,4351.0474722743184,4567.5207866901201,4791.0404856147779,5021.7186167761802,5259.6672030033724,5504.9982426210709,0,0,0,0,0,0,0,0,0,0,0,0,0,0,0,0,0,0,0,0,0,0,0,0,0,0,0,0,0,0,0,0,0,0,0,0,1548.9620636278812,1634.5840588990075,1723.297064492531,1815.1554975466147,1910.2137618340651,2008.5262479960104,2110.1473337676107,2215.1313841961787,2323.5327518521071,2435.4057770329359,2550.8047879609021,2669.7841009742633,0,0,0,0,0,0,0,0,0,0,0,0,2299.652959187355,2374.5341276737518,2452.1185555739448,2532.453833683714,2615.5875411100978,2701.5672454757564,2790.4405031163651,2882.2548592713783,2977.0578482684919,3074.8969937021138,3175.819808606132,3279.873795621239,7042.5187677084996,7379.5713885270834,7728.7918305561207,8090.3943079000264,8464.5929820502333,8851.6019628050781,9251.6353091582932,9664.9070301576776,10091.631085735376,10532.021387511231,10986.291799570407,11454.656139216573]
[1000370708,4,1,1,1,3,3.0306803023566031,3,3,3,3.0230632761679481,2.1694249845207684E-2,0,0,0,1.6308198974734206E-2,0.12304063405958204,0,0,0,0.3677509745712596,1328.5285524685976,1427.6466853267916,1531.5642715865069,1640.3939656477728,1754.2483852317262,1873.2401122260605,1997.4816934926141,2127.0856416395914,2262.1644357606792,2402.8305221431542,2549.1963149468606,2701.3741968558461,0,0,0,0,0,0,0,0,0,0,0,0,0,0,0,0,0,0,0,0,0,0,0,0,0,0,0,0,0,0,0,0,0,0,0,0,644.30255029150601,692.37232317068265,742.76970885190201,795.54934185325999,850.76583890452241,908.47379935714707,968.72780557594228,1031.5824233135761,1097.0922020690277,1165.311675431002,1236.2953614072169,1310.0977627404291,0,0,0,0,0,0,0,0,0,0,0,0,1508.4782005700747,1550.5178744958039,1594.5931744992595,1640.7518814869914,1689.0417608086725,1739.5105626156837,1792.2060222036425,1847.1758603399308,1904.4677835771813,1964.1294845536117,2026.208642281006,2090.7529224210953,3481.3093033301784,3670.5368829932781,3868.9271549376685,4076.6951889880243,4294.055984944921,4521.2244741988916,4758.4155212721989,5005.8439252930984,5263.7244214068887,5532.2716821277681,5811.700318635083,6102.22488201737]
[1000370828,4,1,1,1,3,3.0306803023566031,3,3,3,3.0230632761679481,2.1694249845207684E-2,0,0,0,1.6308198974734206E-2,0.12304063405958204,0,0,0,0.3677509745712596,3742.7849766696972,3938.7916791060711,4141.5084693333101,4351.0474722743184,4567.5207866901201,4791.0404856147779,5021.7186167761802,5259.6672030033724,5504.9982426210709,5757.8237098319541,6018.255555087273,6286.4057054463392,0,0,0,0,0,0,0,0,0,0,0,0,0,0,0,0,0,0,0,0,0,0,0,0,0,0,0,0,0,0,0,0,0,0,0,0,1815.1554975466147,1910.2137618340651,2008.5262479960104,2110.1473337676107,2215.1313841961787,2323.5327518521071,2435.4057770329359,2550.8047879609021,2669.7841009742633,2792.3980207127061,2918.7008402970755,3048.7468415037233,0,0,0,0,0,0,0,0,0,0,0,0,2532.453833683714,2615.5875411100978,2701.5672454757564,2790.4405031163651,2882.2548592713783,2977.0578482684919,3074.8969937021138,3175.819808606132,3279.873795621239,3387.1064471570776,3497.5652455494287,3611.2976632126865,8090.3943079000264,8464.5929820502333,8851.6019628050781,9251.6353091582932,9664.9070301576776,10091.631085735376,10532.021387511231,10986.291799570407,11454.656139216573,11937.328177701736,12434.521640933777,12946.450210162749]
[1000370886,4,1,1,1,3,3.0306803023566031,3,3,3,3.0230632761679481,2.1694249845207684E-2,0,0,0,1.6308198974734206E-2,0.12304063405958204,0,0,0,0.3677509745712596,2572.1773649121155,2705.7427374175149,2843.7816600850119,2986.3643285911803,3133.5608325386338,3285.4411573805737,3442.0751862794764,3603.5327019031511,3769.8833881612809,3941.1968318852901,4117.5425244542548,4298.9898633693501,0,0,0,0,0,0,0,0,0,0,0,0,0,0,0,0,0,0,0,0,0,0,0,0,0,0,0,0,0,0,0,0,0,0,0,0,1247.4405860043678,1312.2163937775304,1379.1617595725666,1448.3107265068427,1519.6972862545526,1593.355379980075,1669.3188992393884,1747.6216868511156,1828.2975377387004,1911.3801997450998,1996.9033744213107,2084.9007177899371,0,0,0,0,0,0,0,0,0,0,0,0,2035.9557573562306,2092.605782391799,2151.1532058617599,2211.6278003543271,2274.0592934678161,2338.4773686269182,2404.9116658710345,2473.391782616055,2543.9472743908873,2616.6076555499512,2691.4023999627871,2768.360941681839,5855.5737082727137,6110.5649135868443,6374.096625519338,6646.3028554523498,6927.3174122610026,7217.2739059875666,7516.3057513898993,7824.5461713703216,8142.1282002908683,8469.1846871803409,8805.848298838353,9152.2515228411266]
[1000374033,4,1,1,1,3,3.0306803023566031,3,3,3,3.0230632761679481,2.1694249845207684E-2,0,0,0,1.6308198974734206E-2,0.12304063405958204,0,0,0,0.3677509745712596,1072.6640938538956,1126.7539608341217,1182.5411797879206,1240.0478325433839,1299.2958966696308,1360.307247754426,1423.1036615943347,1487.706816302207,1554.1382943363806,1622.4195844557503,1692.5720836045273,1764.6170987302821,0,0,0,0,0,0,0,0,0,0,0,0,0,0,0,0,0,0,0,0,0,0,0,0,0,0,0,0,0,0,0,0,0,0,0,0,520.21479703389991,546.44700647759703,573.50238844798412,601.3916520699255,630.12545590533682,659.71440905777058,690.16907223458645,721.49995876902767,753.71753560433149,786.83222424189,820.85440165530952,855.79440117211402,0,0,0,0,0,0,0,0,0,0,0,0,1399.9566001406731,1422.8981175498843,1446.559544842873,1470.9502477413887,1496.0795477470858,1521.9567231075471,1548.5910097452079,1575.9916021512206,1604.1676542461125,1633.1282802090045,1662.8825552770077,1693.4395165163212,2992.8354910284688,3096.0990848616029,3202.6031130787778,3312.389732354698,3425.500900322053,3541.9783799197435,3661.8637435741293,3785.1983772224548,3912.0234841868246,4042.3800889066447,4176.3090405368448,4313.8510164187173]
[1000374059,4,1,1,1,3,3.0306803023566031,3,3,3,3.0230632761679481,2.1694249845207684E-2,0,0,0,1.6308198974734206E-2,0.12304063405958204,0,0,0,0.3677509745712596,1577.3471635930578,1659.5827633070335,1744.5357400489818,1832.245846648339,1922.7527109502378,2016.0958383537586,2112.3146142565274,2211.448306410618,2313.5360671943886,2418.6169358045431,2526.7298403724526,2637.9136000084891,0,0,0,0,0,0,0,0,0,0,0,0,0,0,0,0,0,0,0,0,0,0,0,0,0,0,0,0,0,0,0,0,0,0,0,0,764.97324676211849,804.85542055658675,846.05545307977627,888.59262344265528,932.4861501419839,977.75519229130191,1024.4188508064967,1072.4961695483562,1122.00613642435,1172.9676844517262,1225.3996927838714,1279.3209877017612,0,0,0,0,0,0,0,0,0,0,0,0,1614.0113959268754,1648.8905618006756,1684.9222679907132,1722.1233751453774,1760.5106909025819,1800.1009709663313,1840.9109201435649,1882.957193343384,1926.2563965406198,1970.8250877055691,2016.679777701605,2063.8369311522533,3956.3318062820517,4113.3287456642956,4275.5134611194717,4442.961845236372,4615.7495519948034,4793.9520016113911,4977.6443852065895,5166.9016693023586,5361.7986001593581,5562.4097079618386,5768.8093108579287,5981.0715188625036]
[1000374121,4,1,1,1,3,3.0306803023566031,3,3,3,3.0230632761679481,2.1694249845207684E-2,0,0,0,1.6308198974734206E-2,0.12304063405958204,0,0,0,0.3677509745712596,1205.5293811990873,1274.7789533114706,1346.5451674393178,1420.8684430817493,1497.7890604561005,1577.3471635930578,1659.5827633070335,1744.5357400489818,1832.245846648339,1922.7527109502378,2016.0958383537586,2112.3146142565274,0,0,0,0,0,0,0,0,0,0,0,0,0,0,0,0,0,0,0,0,0,0,0,0,0,0,0,0,0,0,0,0,0,0,0,0,584.65108131446993,618.23536208562689,653.04015021112048,689.08504811975558,726.38959069221403,764.97324676211849,804.85542055658675,846.05545307977627,888.59262344265528,932.4861501419839,977.75519229130191,1024.4188508064967,0,0,0,0,0,0,0,0,0,0,0,0,1456.3096931113746,1485.6810033565534,1516.119714758988,1547.642970726391,1580.2678555919069,1614.0113959268754,1648.8905618006756,1684.9222679907132,1722.1233751453774,1760.5106909025819,1800.1009709663313,1840.9109201435649,3246.490155624932,3378.695318753651,3515.7050324094262,3657.5964619278957,3804.4465067402216,3956.3318062820517,4113.3287456642956,4275.5134611194717,4442.961845236372,4615.7495519948034,4793.9520016113911,4977.6443852065895]
[1000374180,4,1,1,1,3,3.0306803023566031,3,3,3,3.0230632761679481,2.1694249845207684E-2,0,0,0,1.6308198974734206E-2,0.12304063405958204,0,0,0,0.3677509745712596,2318.1859452746135,2443.0152388243255,2572.1773649121155,2705.7427374175149,2843.7816600850119,2986.3643285911803,3133.5608325386338,3285.4411573805737,3442.0751862794764,3603.5327019031511,3769.8833881612809,3941.1968318852901,0,0,0,0,0,0,0,0,0,0,0,0,0,0,0,0,0,0,0,0,0,0,0,0,0,0,0,0,0,0,0,0,0,0,0,0,1124.2612090007476,1184.8002407255235,1247.4405860043678,1312.2163937775304,1379.1617595725666,1448.3107265068427,1519.6972862545526,1593.355379980075,1669.3188992393884,1747.6216868511156,1828.2975377387004,1911.3801997450998,0,0,0,0,0,0,0,0,0,0,0,0,1928.2285821806245,1981.173312331231,2035.9557573562306,2092.605782391799,2151.1532058617599,2211.6278003543271,2274.0592934678161,2338.4773686269182,2404.9116658710345,2473.391782616055,2543.9472743908873,2616.6076555499512,5370.6757364559853,5608.98879188108,5855.5737082727137,6110.5649135868443,6374.096625519338,6646.3028554523498,6927.3174122610026,7217.2739059875666,7516.3057513898993,7824.5461713703216,8142.1282002908683,8469.1846871803409]
[1000374211,4,1,1,1,3,3.0306803023566031,3,3,3,3.0230632761679481,2.1694249845207684E-2,0,0,0,1.6308198974734206E-2,0.12304063405958204,0,0,0,0.3677509745712596,969.48755288782002,1020.2493903900088,1072.6640938538956,1126.7539608341217,1182.5411797879206,1240.0478325433839,1299.2958966696308,1360.307247754426,1423.1036615943347,1487.706816302207,1554.1382943363806,1622.4195844557503,0,0,0,0,0,0,0,0,0,0,0,0,0,0,0,0,0,0,0,0,0,0,0,0,0,0,0,0,0,0,0,0,0,0,0,0,470.17679946796505,494.79499927960688,520.21479703389991,546.44700647759703,573.50238844798412,601.3916520699255,630.12545590533682,659.71440905777058,690.16907223458645,721.49995876902767,753.71753560433149,786.83222424189,0,0,0,0,0,0,0,0,0,0,0,0,1356.1956049128471,1377.7255816681188,1399.9566001406731,1422.8981175498843,1446.559544842873,1470.9502477413887,1496.0795477470858,1521.9567231075471,1548.5910097452079,1575.9916021512206,1604.1676542461125,1633.1282802090045,2795.8599572686321,2892.7699713377342,2992.8354910284688,3096.0990848616029,3202.6031130787778,3312.389732354698,3425.500900322053,3541.9783799197435,3661.8637435741293,3785.1983772224548,3912.0234841868246,4042.3800889066447]
[1000374241,4,1,1,1,3,3.0306803023566031,3,3,3,3.0230632761679481,2.1694249845207684E-2,0,0,0,1.6308198974734206E-2,0.12304063405958204,0,0,0,0.3677509745712596,1274.7789533114706,1346.5451674393178,1420.8684430817493,1497.7890604561005,1577.3471635930578,1659.5827633070335,1744.5357400489818,1832.245846648339,1922.7527109502378,2016.0958383537586,2112.3146142565274,2211.448306410618,0,0,0,0,0,0,0,0,0,0,0,0,0,0,0,0,0,0,0,0,0,0,0,0,0,0,0,0,0,0,0,0,0,0,0,0,618.23536208562689,653.04015021112048,689.08504811975558,726.38959069221403,764.97324676211849,804.85542055658675,846.05545307977627,888.59262344265528,932.4861501419839,977.75519229130191,1024.4188508064967,1072.4961695483562,0,0,0,0,0,0,0,0,0,0,0,0,1485.6810033565534,1516.119714758988,1547.642970726391,1580.2678555919069,1614.0113959268754,1648.8905618006756,1684.9222679907132,1722.1233751453774,1760.5106909025819,1800.1009709663313,1840.9109201435649,1882.957193343384,3378.695318753651,3515.7050324094262,3657.5964619278957,3804.4465067402216,3956.3318062820517,4113.3287456642956,4275.5134611194717,4442.961845236372,4615.7495519948034,4793.9520016113911,4977.6443852065895,5166.9016693023586]
[1000374449,4,1,1,1,3,3.0306803023566031,3,3,3,3.0230632761679481,2.1694249845207684E-2,0,0,0,1.6308198974734206E-2,0.12304063405958204,0,0,0,0.3677509745712596,2549.1963149468606,2701.3741968558461,2859.4765197042443,3023.6156050779236,3193.9037448932627,3370.453201954324,3553.376210489645,3742.7849766696972,3938.7916791060711,4141.5084693333101,4351.0474722743184,4567.5207866901201,0,0,0,0,0,0,0,0,0,0,0,0,0,0,0,0,0,0,0,0,0,0,0,0,0,0,0,0,0,0,0,0,0,0,0,0,1236.2953614072169,1310.0977627404291,1386.7733672119723,1466.3766479335409,1548.9620636278812,1634.5840588990075,1723.297064492531,1815.1554975466147,1910.2137618340651,2008.5262479960104,2110.1473337676107,2215.1313841961787,0,0,0,0,0,0,0,0,0,0,0,0,2026.208642281006,2090.7529224210953,2157.8099775510191,2227.4274474185058,2299.652959187355,2374.5341276737518,2452.1185555739448,2532.453833683714,2615.5875411100978,2701.5672454757564,2790.4405031163651,2882.2548592713783,5811.700318635083,6102.22488201737,6404.0598644672355,6717.4197004299704,7042.5187677084996,7379.5713885270834,7728.7918305561207,8090.3943079000264,8464.5929820502333,8851.6019628050781,9251.6353091582932,9664.9070301576776]
[1000374873,4,1,1,1,3,3.0306803023566031,3,3,3,3.0230632761679481,2.1694249845207684E-2,0,0,0,1.6308198974734206E-2,0.12304063405958204,0,0,0,0.3677509745712596,3285.4411573805737,3442.0751862794764,3603.5327019031511,3769.8833881612809,3941.1968318852901,4117.5425244542548,4298.9898633693501,4485.6081537792452,4677.4666099586311,4874.6343567420199,5077.1804309147556,5285.173782563118,0,0,0,0,0,0,0,0,0,0,0,0,0,0,0,0,0,0,0,0,0,0,0,0,0,0,0,0,0,0,0,0,0,0,0,0,1593.355379980075,1669.3188992393884,1747.6216868511156,1828.2975377387004,1911.3801997450998,1996.9033744213107,2084.9007177899371,2175.4058410849657,2268.4523114688163,2364.0736527276977,2462.3033459462113,2563.1748301621183,0,0,0,0,0,0,0,0,0,0,0,0,2338.4773686269182,2404.9116658710345,2473.391782616055,2543.9472743908873,2616.6076555499512,2691.4023999627871,2768.360941681839,2847.5126755894303,2928.8869580248602,3012.5131073925354,3098.4204047519452,3186.6380943902932,7217.2739059875666,7516.3057513898993,7824.5461713703216,8142.1282002908683,8469.1846871803409,8805.848298838353,9152.2515228411266,9508.5266704536407,9874.8058794523076,10251.221116862253,10637.904181612912,11034.986707115529]
[1000375968,4,1,1,1,3,3.0306803023566031,3,3,3,3.0230632761679481,2.1694249845207684E-2,0,0,0,1.6308198974734206E-2,0.12304063405958204,0,0,0,0.3677509745712596,30.889524476582746,36.842036338549633,43.474423051897745,50.817465771241231,58.901460450564159,67.756251890949088,77.411263737631444,87.895525086545064,99.237694226602784,111.46607994206619,124.60866072077268,138.69310215262723,0,0,0,0,0,0,0,0,0,0,0,0,0,0,0,0,0,0,0,0,0,0,0,0,0,0,0,0,0,0,0,0,0,0,0,0,14.980633544211758,17.867450365859522,21.08398919446757,24.64517810695375,28.565709870273789,32.860058453703466,37.542493576646898,42.627093612134182,48.12775710122358,54.058213084108843,60.432030415620723,67.262626203052804,0,0,0,0,0,0,0,0,0,0,0,0,958.10139224045133,960.62607314898037,963.43911418131495,966.55357076602024,969.98229254009038,973.73793778985203,977.83298617382718,982.27975000755498,987.09038433357352,992.27689595654374,997.85115159017073,1003.8248852365491,1003.9715502612459,1015.3355598533896,1027.9975264276802,1042.0162146442151,1057.4494628609282,1074.3542481345046,1092.7867434881055,1112.8023687062343,1134.4558356614,1157.8011889827189,1182.8918427265642,1209.7806135922292]
[1000375980,4,1,1,1,3,3.0306803023566031,3,3,3,3.0230632761679481,2.1694249845207684E-2,0,0,0,1.6308198974734206E-2,0.12304063405958204,0,0,0,0.3677509745712596,30.889524476582746,36.842036338549633,43.474423051897745,50.817465771241231,58.901460450564159,67.756251890949088,77.411263737631444,87.895525086545064,99.237694226602784,111.46607994206619,124.60866072077268,138.69310215262723,0,0,0,0,0,0,0,0,0,0,0,0,0,0,0,0,0,0,0,0,0,0,0,0,0,0,0,0,0,0,0,0,0,0,0,0,14.980633544211758,17.867450365859522,21.08398919446757,24.64517810695375,28.565709870273789,32.860058453703466,37.542493576646898,42.627093612134182,48.12775710122358,54.058213084108843,60.432030415620723,67.262626203052804,0,0,0,0,0,0,0,0,0,0,0,0,958.10139224045133,960.62607314898037,963.43911418131495,966.55357076602024,969.98229254009038,973.73793778985203,977.83298617382718,982.27975000755498,987.09038433357352,992.27689595654374,997.85115159017073,1003.8248852365491,1003.9715502612459,1015.3355598533896,1027.9975264276802,1042.0162146442151,1057.4494628609282,1074.3542481345046,1092.7867434881055,1112.8023687062343,1134.4558356614,1157.8011889827189,1182.8918427265642,1209.7806135922292]
[1000390269,4,1,1,1,3,3.0306803023566031,3,3,3,3.0230632761679481,2.1694249845207684E-2,0,0,0,1.6308198974734206E-2,0.12304063405958204,0,0,0,0.3677509745712596,20.898335090615813,25.585582173483054,30.889524476582746,36.842036338549633,43.474423051897745,50.817465771241231,58.901460450564159,67.756251890949088,77.411263737631444,87.895525086545064,99.237694226602784,111.46607994206619,0,0,0,0,0,0,0,0,0,0,0,0,0,0,0,0,0,0,0,0,0,0,0,0,0,0,0,0,0,0,0,0,0,0,0,0,10.135160867043924,12.408356459059,14.980633544211758,17.867450365859522,21.08398919446757,24.64517810695375,28.565709870273789,32.860058453703466,37.542493576646898,42.627093612134182,48.12775710122358,54.058213084108843,0,0,0,0,0,0,0,0,0,0,0,0,953.86375850175716,955.85179372085247,958.10139224045133,960.62607314898037,963.43911418131495,966.55357076602024,969.98229254009038,973.73793778985203,977.83298617382718,982.27975000755498,987.09038433357352,992.27689595654374,984.8972544594169,993.84573235339451,1003.9715502612459,1015.3355598533896,1027.9975264276802,1042.0162146442151,1057.4494628609282,1074.3542481345046,1092.7867434881055,1112.8023687062343,1134.4558356614,1157.8011889827189]
[1000391949,4,1,1,1,3,3.0306803023566031,3,3,3,3.0230632761679481,2.1694249845207684E-2,0,0,0,1.6308198974734206E-2,0.12304063405958204,0,0,0,0.3677509745712596,1764.6170987302821,1838.5758485386214,1914.4694651876243,1992.3189959249894,2072.1454046706203,2153.9695735472537,2237.8123043615365,2323.6943200378369,2411.6362660069321,2501.6587115515908,2593.7821511109487,2688.0270055454766,0,0,0,0,0,0,0,0,0,0,0,0,0,0,0,0,0,0,0,0,0,0,0,0,0,0,0,0,0,0,0,0,0,0,0,0,855.79440117211402,891.6625133247212,928.46898667219887,966.22402859424074,1004.9378060586794,1044.6204463638028,1085.2820378566387,1126.9326306283158,1169.5822371875438,1213.2408331131835,1257.9183576868397,1303.6247145063353,0,0,0,0,0,0,0,0,0,0,0,0,1693.4395165163212,1724.8081635664571,1756.9974593589134,1790.016330811548,1823.8736694998124,1858.5783323059491,1894.1391420471682,1930.564888083783,1967.8643269082022,2006.0461827156414,2045.1191479573577,2085.0918838771686,4313.8510164187173,4455.0465254297997,4599.9359112187367,4748.5593553307781,4900.9568802291124,5057.168352217006,5217.2334842653436,5381.1918387499354,5549.0828301026777,5720.9457273804164,5896.8196567551458,6076.7436039289805]
[1000395044,4,1,1,1,3,3.0306803023566031,3,3,3,3.0230632761679481,2.1694249845207684E-2,0,0,0,1.6308198974734206E-2,0.12304063405958204,0,0,0,0.3677509745712596,2526.7298403724526,2637.9136000084891,2752.2069267778838,2869.6484276114243,2990.2766061540497,3114.1298645542752,3241.246505197154,3371.6647323833295,3505.422653956618,3642.5582828823594,3783.1095387787072,3927.1142494028513,0,0,0,0,0,0,0,0,0,0,0,0,0,0,0,0,0,0,0,0,0,0,0,0,0,0,0,0,0,0,0,0,0,0,0,0,1225.3996927838714,1279.3209877017612,1334.7503435722006,1391.706483774464,1450.2080815968186,1510.2737611043465,1571.9220979793879,1635.1716203358421,1700.0408095084983,1766.5481008185009,1834.7118843159817,1904.550505500843,0,0,0,0,0,0,0,0,0,0,0,0,2016.679777701605,2063.8369311522533,2112.3129672792293,2162.1242607128315,2213.287142276004,2265.8178997432956,2319.7327785758716,2375.047982633665,2431.7796748656929,2489.9439779794934,2549.5569750906038,2610.6347103529215,5768.8093108579287,5981.0715188625036,6199.2702376293137,6423.4791720987196,6653.7718300268725,6890.2215254019175,7132.9013817524137,7381.8843353528364,7637.2431383308094,7899.0503616803544,8167.378398185293,8442.2994652566158]
[1000395120,4,1,1,1,3,3.0306803023566031,3,3,3,3.0230632761679481,2.1694249845207684E-2,0,0,0,1.6308198974734206E-2,0.12304063405958204,0,0,0,0.3677509745712596,2986.3643285911803,3133.5608325386338,3285.4411573805737,3442.0751862794764,3603.5327019031511,3769.8833881612809,3941.1968318852901,4117.5425244542548,4298.9898633693501,4485.6081537792452,4677.4666099586311,4874.6343567420199,0,0,0,0,0,0,0,0,0,0,0,0,0,0,0,0,0,0,0,0,0,0,0,0,0,0,0,0,0,0,0,0,0,0,0,0,1448.3107265068427,1519.6972862545526,1593.355379980075,1669.3188992393884,1747.6216868511156,1828.2975377387004,1911.3801997450998,1996.9033744213107,2084.9007177899371,2175.4058410849657,2268.4523114688163,2364.0736527276977,0,0,0,0,0,0,0,0,0,0,0,0,2211.6278003543271,2274.0592934678161,2338.4773686269182,2404.9116658710345,2473.391782616055,2543.9472743908873,2616.6076555499512,2691.4023999627871,2768.360941681839,2847.5126755894303,2928.8869580248602,3012.5131073925354,6646.3028554523498,6927.3174122610026,7217.2739059875666,7516.3057513898993,7824.5461713703216,8142.1282002908683,8469.1846871803409,8805.848298838353,9152.2515228411266,9508.5266704536407,9874.8058794523076,10251.221116862253]
[1000395215,4,1,1,1,3,3.0306803023566031,3,3,3,3.0230632761679481,2.1694249845207684E-2,0,0,0,1.6308198974734206E-2,0.12304063405958204,0,0,0,0.3677509745712596,1126.7539608341217,1182.5411797879206,1240.0478325433839,1299.2958966696308,1360.307247754426,1423.1036615943347,1487.706816302207,1554.1382943363806,1622.4195844557503,1692.5720836045273,1764.6170987302821,1838.5758485386214,0,0,0,0,0,0,0,0,0,0,0,0,0,0,0,0,0,0,0,0,0,0,0,0,0,0,0,0,0,0,0,0,0,0,0,0,546.44700647759703,573.50238844798412,601.3916520699255,630.12545590533682,659.71440905777058,690.16907223458645,721.49995876902767,753.71753560433149,786.83222424189,820.85440165530952,855.79440117211402,891.6625133247212,0,0,0,0,0,0,0,0,0,0,0,0,1422.8981175498843,1446.559544842873,1470.9502477413887,1496.0795477470858,1521.9567231075471,1548.5910097452079,1575.9916021512206,1604.1676542461125,1633.1282802090045,1662.8825552770077,1693.4395165163212,1724.8081635664571,3096.0990848616029,3202.6031130787778,3312.389732354698,3425.500900322053,3541.9783799197435,3661.8637435741293,3785.1983772224548,3912.0234841868246,4042.3800889066447,4176.3090405368448,4313.8510164187173,4455.0465254297997]
[1000395235,4,1,1,1,3,3.0306803023566031,3,3,3,3.0230632761679481,2.1694249845207684E-2,0,0,0,1.6308198974734206E-2,0.12304063405958204,0,0,0,0.3677509745712596,2443.0152388243255,2572.1773649121155,2705.7427374175149,2843.7816600850119,2986.3643285911803,3133.5608325386338,3285.4411573805737,3442.0751862794764,3603.5327019031511,3769.8833881612809,3941.1968318852901,4117.5425244542548,0,0,0,0,0,0,0,0,0,0,0,0,0,0,0,0,0,0,0,0,0,0,0,0,0,0,0,0,0,0,0,0,0,0,0,0,1184.8002407255235,1247.4405860043678,1312.2163937775304,1379.1617595725666,1448.3107265068427,1519.6972862545526,1593.355379980075,1669.3188992393884,1747.6216868511156,1828.2975377387004,1911.3801997450998,1996.9033744213107,0,0,0,0,0,0,0,0,0,0,0,0,1981.173312331231,2035.9557573562306,2092.605782391799,2151.1532058617599,2211.6278003543271,2274.0592934678161,2338.4773686269182,2404.9116658710345,2473.391782616055,2543.9472743908873,2616.6076555499512,2691.4023999627871,5608.98879188108,5855.5737082727137,6110.5649135868443,6374.096625519338,6646.3028554523498,6927.3174122610026,7217.2739059875666,7516.3057513898993,7824.5461713703216,8142.1282002908683,8469.1846871803409,8805.848298838353]
[1000395352,4,1,1,1,3,3.0306803023566031,3,3,3,3.0230632761679481,2.1694249845207684E-2,0,0,0,1.6308198974734206E-2,0.12304063405958204,0,0,0,0.3677509745712596,124.60866072077268,138.69310215262723,153.74677275431705,169.79675841755133,186.86987564701454,204.9926837289363,224.19149595049328,244.49238997319185,265.92121744920513,288.50361295780101,312.26500232903965,337.23061041350149,0,0,0,0,0,0,0,0,0,0,0,0,0,0,0,0,0,0,0,0,0,0,0,0,0,0,0,0,0,0,0,0,0,0,0,0,60.432030415620723,67.262626203052804,74.563273480745593,82.347108217115235,90.627135734724064,99.416236611727371,108.72717212299804,118.57258927095313,128.96502544923271,139.91691277664015,151.44058213392361,163.54826693189656,0,0,0,0,0,0,0,0,0,0,0,0,997.85115159017073,1003.8248852365491,1010.2097048980108,1017.0170987051594,1024.2584405315763,1031.9449951549625,1040.0879230157029,1048.6982846166022,1057.7870446015299,1067.3650755456906,1077.443161486013,1088.0320012165785,1182.8918427265642,1209.7806135922292,1238.5197511330737,1269.1609653398259,1301.755451913315,1336.3539154956261,1373.0065910891944,1411.7632638607472,1452.6732874999677,1495.7856012801317,1541.1487459489761,1588.8108785619766]
[1000395372,4,1,1,1,3,3.0306803023566031,3,3,3,3.0230632761679481,2.1694249845207684E-2,0,0,0,1.6308198974734206E-2,0.12304063405958204,0,0,0,0.3677509745712596,138.69310215262723,153.74677275431705,169.79675841755133,186.86987564701454,204.9926837289363,224.19149595049328,244.49238997319185,265.92121744920513,288.50361295780101,312.26500232903965,337.23061041350149,363.4254683496606,0,0,0,0,0,0,0,0,0,0,0,0,0,0,0,0,0,0,0,0,0,0,0,0,0,0,0,0,0,0,0,0,0,0,0,0,67.262626203052804,74.563273480745593,82.347108217115235,90.627135734724064,99.416236611727371,108.72717212299804,118.57258927095313,128.96502544923271,139.91691277664015,151.44058213392361,163.54826693189656,176.25210663592875,0,0,0,0,0,0,0,0,0,0,0,0,1003.8248852365491,1010.2097048980108,1017.0170987051594,1024.2584405315763,1031.9449951549625,1040.0879230157029,1048.6982846166022,1057.7870446015299,1067.3650755456906,1077.443161486013,1088.0320012165785,1099.142211370985,1209.7806135922292,1238.5197511330737,1269.1609653398259,1301.755451913315,1336.3539154956261,1373.0065910891944,1411.7632638607472,1452.6732874999677,1495.7856012801317,1541.1487459489761,1588.8108785619766,1638.8197863565745]
[1000395408,4,1,1,1,3,3.0306803023566031,3,3,3,3.0230632761679481,2.1694249845207684E-2,0,0,0,1.6308198974734206E-2,0.12304063405958204,0,0,0,0.3677509745712596,36.842036338549633,43.474423051897745,50.817465771241231,58.901460450564159,67.756251890949088,77.411263737631444,87.895525086545064,99.237694226602784,111.46607994206619,124.60866072077268,138.69310215262723,153.74677275431705,0,0,0,0,0,0,0,0,0,0,0,0,0,0,0,0,0,0,0,0,0,0,0,0,0,0,0,0,0,0,0,0,0,0,0,0,17.867450365859522,21.08398919446757,24.64517810695375,28.565709870273789,32.860058453703466,37.542493576646898,42.627093612134182,48.12775710122358,54.058213084108843,60.432030415620723,67.262626203052804,74.563273480745593,0,0,0,0,0,0,0,0,0,0,0,0,960.62607314898037,963.43911418131495,966.55357076602024,969.98229254009038,973.73793778985203,977.83298617382718,982.27975000755498,987.09038433357352,992.27689595654374,997.85115159017073,1003.8248852365491,1010.2097048980108,1015.3355598533896,1027.9975264276802,1042.0162146442151,1057.4494628609282,1074.3542481345046,1092.7867434881055,1112.8023687062343,1134.4558356614,1157.8011889827189,1182.8918427265642,1209.7806135922292,1238.5197511330737]
[1000395428,4,1,1,1,3,3.0306803023566031,3,3,3,3.0230632761679481,2.1694249845207684E-2,0,0,0,1.6308198974734206E-2,0.12304063405958204,0,0,0,0.3677509745712596,36.842036338549633,43.474423051897745,50.817465771241231,58.901460450564159,67.756251890949088,77.411263737631444,87.895525086545064,99.237694226602784,111.46607994206619,124.60866072077268,138.69310215262723,153.74677275431705,0,0,0,0,0,0,0,0,0,0,0,0,0,0,0,0,0,0,0,0,0,0,0,0,0,0,0,0,0,0,0,0,0,0,0,0,17.867450365859522,21.08398919446757,24.64517810695375,28.565709870273789,32.860058453703466,37.542493576646898,42.627093612134182,48.12775710122358,54.058213084108843,60.432030415620723,67.262626203052804,74.563273480745593,0,0,0,0,0,0,0,0,0,0,0,0,960.62607314898037,963.43911418131495,966.55357076602024,969.98229254009038,973.73793778985203,977.83298617382718,982.27975000755498,987.09038433357352,992.27689595654374,997.85115159017073,1003.8248852365491,1010.2097048980108,1015.3355598533896,1027.9975264276802,1042.0162146442151,1057.4494628609282,1074.3542481345046,1092.7867434881055,1112.8023687062343,1134.4558356614,1157.8011889827189,1182.8918427265642,1209.7806135922292,1238.5197511330737]
[1000395446,4,1,1,1,3,3.0306803023566031,3,3,3,3.0230632761679481,2.1694249845207684E-2,0,0,0,1.6308198974734206E-2,0.12304063405958204,0,0,0,0.3677509745712596,36.842036338549633,43.474423051897745,50.817465771241231,58.901460450564159,67.756251890949088,77.411263737631444,87.895525086545064,99.237694226602784,111.46607994206619,124.60866072077268,138.69310215262723,153.74677275431705,0,0,0,0,0,0,0,0,0,0,0,0,0,0,0,0,0,0,0,0,0,0,0,0,0,0,0,0,0,0,0,0,0,0,0,0,17.867450365859522,21.08398919446757,24.64517810695375,28.565709870273789,32.860058453703466,37.542493576646898,42.627093612134182,48.12775710122358,54.058213084108843,60.432030415620723,67.262626203052804,74.563273480745593,0,0,0,0,0,0,0,0,0,0,0,0,960.62607314898037,963.43911418131495,966.55357076602024,969.98229254009038,973.73793778985203,977.83298617382718,982.27975000755498,987.09038433357352,992.27689595654374,997.85115159017073,1003.8248852365491,1010.2097048980108,1015.3355598533896,1027.9975264276802,1042.0162146442151,1057.4494628609282,1074.3542481345046,1092.7867434881055,1112.8023687062343,1134.4558356614,1157.8011889827189,1182.8918427265642,1209.7806135922292,1238.5197511330737]
[1000395463,4,1,1,1,3,3.0306803023566031,3,3,3,3.0230632761679481,2.1694249845207684E-2,0,0,0,1.6308198974734206E-2,0.12304063405958204,0,0,0,0.3677509745712596,30.889524476582746,36.842036338549633,43.474423051897745,50.817465771241231,58.901460450564159,67.756251890949088,77.411263737631444,87.895525086545064,99.237694226602784,111.46607994206619,124.60866072077268,138.69310215262723,0,0,0,0,0,0,0,0,0,0,0,0,0,0,0,0,0,0,0,0,0,0,0,0,0,0,0,0,0,0,0,0,0,0,0,0,14.980633544211758,17.867450365859522,21.08398919446757,24.64517810695375,28.565709870273789,32.860058453703466,37.542493576646898,42.627093612134182,48.12775710122358,54.058213084108843,60.432030415620723,67.262626203052804,0,0,0,0,0,0,0,0,0,0,0,0,958.10139224045133,960.62607314898037,963.43911418131495,966.55357076602024,969.98229254009038,973.73793778985203,977.83298617382718,982.27975000755498,987.09038433357352,992.27689595654374,997.85115159017073,1003.8248852365491,1003.9715502612459,1015.3355598533896,1027.9975264276802,1042.0162146442151,1057.4494628609282,1074.3542481345046,1092.7867434881055,1112.8023687062343,1134.4558356614,1157.8011889827189,1182.8918427265642,1209.7806135922292]
[1000395483,4,1,1,1,3,3.0306803023566031,3,3,3,3.0230632761679481,2.1694249845207684E-2,0,0,0,1.6308198974734206E-2,0.12304063405958204,0,0,0,0.3677509745712596,30.889524476582746,36.842036338549633,43.474423051897745,50.817465771241231,58.901460450564159,67.756251890949088,77.411263737631444,87.895525086545064,99.237694226602784,111.46607994206619,124.60866072077268,138.69310215262723,0,0,0,0,0,0,0,0,0,0,0,0,0,0,0,0,0,0,0,0,0,0,0,0,0,0,0,0,0,0,0,0,0,0,0,0,14.980633544211758,17.867450365859522,21.08398919446757,24.64517810695375,28.565709870273789,32.860058453703466,37.542493576646898,42.627093612134182,48.12775710122358,54.058213084108843,60.432030415620723,67.262626203052804,0,0,0,0,0,0,0,0,0,0,0,0,958.10139224045133,960.62607314898037,963.43911418131495,966.55357076602024,969.98229254009038,973.73793778985203,977.83298617382718,982.27975000755498,987.09038433357352,992.27689595654374,997.85115159017073,1003.8248852365491,1003.9715502612459,1015.3355598533896,1027.9975264276802,1042.0162146442151,1057.4494628609282,1074.3542481345046,1092.7867434881055,1112.8023687062343,1134.4558356614,1157.8011889827189,1182.8918427265642,1209.7806135922292]
[1000395500,4,1,1,1,3,3.0306803023566031,3,3,3,3.0230632761679481,2.1694249845207684E-2,0,0,0,1.6308198974734206E-2,0.12304063405958204,0,0,0,0.3677509745712596,30.889524476582746,36.842036338549633,43.474423051897745,50.817465771241231,58.901460450564159,67.756251890949088,77.411263737631444,87.895525086545064,99.237694226602784,111.46607994206619,124.60866072077268,138.69310215262723,0,0,0,0,0,0,0,0,0,0,0,0,0,0,0,0,0,0,0,0,0,0,0,0,0,0,0,0,0,0,0,0,0,0,0,0,14.980633544211758,17.867450365859522,21.08398919446757,24.64517810695375,28.565709870273789,32.860058453703466,37.542493576646898,42.627093612134182,48.12775710122358,54.058213084108843,60.432030415620723,67.262626203052804,0,0,0,0,0,0,0,0,0,0,0,0,958.10139224045133,960.62607314898037,963.43911418131495,966.55357076602024,969.98229254009038,973.73793778985203,977.83298617382718,982.27975000755498,987.09038433357352,992.27689595654374,997.85115159017073,1003.8248852365491,1003.9715502612459,1015.3355598533896,1027.9975264276802,1042.0162146442151,1057.4494628609282,1074.3542481345046,1092.7867434881055,1112.8023687062343,1134.4558356614,1157.8011889827189,1182.8918427265642,1209.7806135922292]
[1000395521,4,1,1,1,3,3.0306803023566031,3,3,3,3.0230632761679481,2.1694249845207684E-2,0,0,0,1.6308198974734206E-2,0.12304063405958204,0,0,0,0.3677509745712596,30.889524476582746,36.842036338549633,43.474423051897745,50.817465771241231,58.901460450564159,67.756251890949088,77.411263737631444,87.895525086545064,99.237694226602784,111.46607994206619,124.60866072077268,138.69310215262723,0,0,0,0,0,0,0,0,0,0,0,0,0,0,0,0,0,0,0,0,0,0,0,0,0,0,0,0,0,0,0,0,0,0,0,0,14.980633544211758,17.867450365859522,21.08398919446757,24.64517810695375,28.565709870273789,32.860058453703466,37.542493576646898,42.627093612134182,48.12775710122358,54.058213084108843,60.432030415620723,67.262626203052804,0,0,0,0,0,0,0,0,0,0,0,0,958.10139224045133,960.62607314898037,963.43911418131495,966.55357076602024,969.98229254009038,973.73793778985203,977.83298617382718,982.27975000755498,987.09038433357352,992.27689595654374,997.85115159017073,1003.8248852365491,1003.9715502612459,1015.3355598533896,1027.9975264276802,1042.0162146442151,1057.4494628609282,1074.3542481345046,1092.7867434881055,1112.8023687062343,1134.4558356614,1157.8011889827189,1182.8918427265642,1209.7806135922292]
[1000395538,4,1,1,1,3,3.0306803023566031,3,3,3,3.0230632761679481,2.1694249845207684E-2,0,0,0,1.6308198974734206E-2,0.12304063405958204,0,0,0,0.3677509745712596,16.795287547117443,20.898335090615813,25.585582173483054,30.889524476582746,36.842036338549633,43.474423051897745,50.817465771241231,58.901460450564159,67.756251890949088,77.411263737631444,87.895525086545064,99.237694226602784,0,0,0,0,0,0,0,0,0,0,0,0,0,0,0,0,0,0,0,0,0,0,0,0,0,0,0,0,0,0,0,0,0,0,0,0,8.1452871896351073,10.135160867043924,12.408356459059,14.980633544211758,17.867450365859522,21.08398919446757,24.64517810695375,28.565709870273789,32.860058453703466,37.542493576646898,42.627093612134182,48.12775710122358,0,0,0,0,0,0,0,0,0,0,0,0,952.12350396046941,953.86375850175716,955.85179372085247,958.10139224045133,960.62607314898037,963.43911418131495,966.55357076602024,969.98229254009038,973.73793778985203,977.83298617382718,982.27975000755498,987.09038433357352,977.06407869722204,984.8972544594169,993.84573235339451,1003.9715502612459,1015.3355598533896,1027.9975264276802,1042.0162146442151,1057.4494628609282,1074.3542481345046,1092.7867434881055,1112.8023687062343,1134.4558356614]
[1000395577,1,1,1,1,1,0.75767007558915078,3,3,3,1.0076877587226494,-1.5855666952084297,0,0,0,-1.4087774960481836,0,0,0,0,5.0196581904198845E-3,0,0,0,0,0,0,0,0,0,0,0,0,0,0,0,0,0,0,0,0,0,0,0,0,0,0,0,0,0,0,0,0,0,0,0,0,0,0,0,0,0,0,0,0,0,0,0,0,0.111180011426051,0.13834101545697469,0.1693692537510755,0.20447983844380066,0.24388376856232766,0.28778827621087866,0.33639712385032905,0.38991086205182329,0.44852705488302363,0.51244047848005148,0.5818432971752262,0.65692522066419023,0,0,0,0,0,0,0,0,0,0,0,0,952.12350396046941,953.86375850175716,955.85179372085247,958.10139224045133,960.62607314898037,963.43911418131495,966.55357076602024,969.98229254009038,973.73793778985203,977.83298617382718,982.27975000755498,987.09038433357352,952.23468397189549,954.00209951721411,956.0211629746035,958.30587207889516,960.86995691754271,963.72690245752585,966.8899678898706,970.37220340214219,974.18646484473504,978.3454266523072,982.86159330473026,987.74730955423775]
[1000395597,4,1,1,1,3,3.0306803023566031,3,3,3,3.0230632761679481,2.1694249845207684E-2,0,0,0,1.6308198974734206E-2,0.12304063405958204,0,0,0,0.3677509745712596,20.898335090615813,25.585582173483054,30.889524476582746,36.842036338549633,43.474423051897745,50.817465771241231,58.901460450564159,67.756251890949088,77.411263737631444,87.895525086545064,99.237694226602784,111.46607994206619,0,0,0,0,0,0,0,0,0,0,0,0,0,0,0,0,0,0,0,0,0,0,0,0,0,0,0,0,0,0,0,0,0,0,0,0,10.135160867043924,12.408356459059,14.980633544211758,17.867450365859522,21.08398919446757,24.64517810695375,28.565709870273789,32.860058453703466,37.542493576646898,42.627093612134182,48.12775710122358,54.058213084108843,0,0,0,0,0,0,0,0,0,0,0,0,953.86375850175716,955.85179372085247,958.10139224045133,960.62607314898037,963.43911418131495,966.55357076602024,969.98229254009038,973.73793778985203,977.83298617382718,982.27975000755498,987.09038433357352,992.27689595654374,984.8972544594169,993.84573235339451,1003.9715502612459,1015.3355598533896,1027.9975264276802,1042.0162146442151,1057.4494628609282,1074.3542481345046,1092.7867434881055,1112.8023687062343,1134.4558356614,1157.8011889827189]
[1000395616,4,1,1,1,3,3.0306803023566031,3,3,3,3.0230632761679481,2.1694249845207684E-2,0,0,0,1.6308198974734206E-2,0.12304063405958204,0,0,0,0.3677509745712596,20.898335090615813,25.585582173483054,30.889524476582746,36.842036338549633,43.474423051897745,50.817465771241231,58.901460450564159,67.756251890949088,77.411263737631444,87.895525086545064,99.237694226602784,111.46607994206619,0,0,0,0,0,0,0,0,0,0,0,0,0,0,0,0,0,0,0,0,0,0,0,0,0,0,0,0,0,0,0,0,0,0,0,0,10.135160867043924,12.408356459059,14.980633544211758,17.867450365859522,21.08398919446757,24.64517810695375,28.565709870273789,32.860058453703466,37.542493576646898,42.627093612134182,48.12775710122358,54.058213084108843,0,0,0,0,0,0,0,0,0,0,0,0,953.86375850175716,955.85179372085247,958.10139224045133,960.62607314898037,963.43911418131495,966.55357076602024,969.98229254009038,973.73793778985203,977.83298617382718,982.27975000755498,987.09038433357352,992.27689595654374,984.8972544594169,993.84573235339451,1003.9715502612459,1015.3355598533896,1027.9975264276802,1042.0162146442151,1057.4494628609282,1074.3542481345046,1092.7867434881055,1112.8023687062343,1134.4558356614,1157.8011889827189]
[1000395639,4,1,1,1,3,3.0306803023566031,3,3,3,3.0230632761679481,2.1694249845207684E-2,0,0,0,1.6308198974734206E-2,0.12304063405958204,0,0,0,0.3677509745712596,16.841887531525625,21.527333670816041,26.980451254940544,33.253361770335118,40.397470487172143,48.463526635693704,57.501674848808335,67.561499606835071,78.692063992957557,90.941943763863506,104.3592575189911,118.99169358806412,0,0,0,0,0,0,0,0,0,0,0,0,0,0,0,0,0,0,0,0,0,0,0,0,0,0,0,0,0,0,0,0,0,0,0,0,8.1678869965733512,10.440209176769525,13.084832478212583,16.127034495857711,19.59174547799272,23.503577510228823,27.886849463851373,32.765608550390063,38.1636491170282,44.104529169996113,50.611585005888166,57.707944251433261,0,0,0,0,0,0,0,0,0,0,0,0,952.14326874106985,954.13054011324289,956.4434093986564,959.10398325157337,962.13406455239317,965.55517793066485,969.38859158379876,973.65533612773072,978.37622103454567,983.57184908309898,989.26262915491247,995.46878763817381,977.15304326916873,986.09808296082838,996.50869313180954,1008.4843795177662,1022.123280517558,1037.5222820765873,1054.7771158964586,1073.9824442849558,1095.2319341445314,1118.6183220169587,1144.2334716797918,1172.1684254776712]
[1000395669,4,1,1,1,3,3.0306803023566031,3,3,3,3.0230632761679481,2.1694249845207684E-2,0,0,0,1.6308198974734206E-2,0.12304063405958204,0,0,0,0.3677509745712596,20.898335090615813,25.585582173483054,30.889524476582746,36.842036338549633,43.474423051897745,50.817465771241231,58.901460450564159,67.756251890949088,77.411263737631444,87.895525086545064,99.237694226602784,111.46607994206619,0,0,0,0,0,0,0,0,0,0,0,0,0,0,0,0,0,0,0,0,0,0,0,0,0,0,0,0,0,0,0,0,0,0,0,0,10.135160867043924,12.408356459059,14.980633544211758,17.867450365859522,21.08398919446757,24.64517810695375,28.565709870273789,32.860058453703466,37.542493576646898,42.627093612134182,48.12775710122358,54.058213084108843,0,0,0,0,0,0,0,0,0,0,0,0,953.86375850175716,955.85179372085247,958.10139224045133,960.62607314898037,963.43911418131495,966.55357076602024,969.98229254009038,973.73793778985203,977.83298617382718,982.27975000755498,987.09038433357352,992.27689595654374,984.8972544594169,993.84573235339451,1003.9715502612459,1015.3355598533896,1027.9975264276802,1042.0162146442151,1057.4494628609282,1074.3542481345046,1092.7867434881055,1112.8023687062343,1134.4558356614,1157.8011889827189]
[1000395733,4,1,1,1,3,3.0306803023566031,3,3,3,3.0230632761679481,2.1694249845207684E-2,0,0,0,1.6308198974734206E-2,0.12304063405958204,0,0,0,0.3677509745712596,16.795287547117443,20.898335090615813,25.585582173483054,30.889524476582746,36.842036338549633,43.474423051897745,50.817465771241231,58.901460450564159,67.756251890949088,77.411263737631444,87.895525086545064,99.237694226602784,0,0,0,0,0,0,0,0,0,0,0,0,0,0,0,0,0,0,0,0,0,0,0,0,0,0,0,0,0,0,0,0,0,0,0,0,8.1452871896351073,10.135160867043924,12.408356459059,14.980633544211758,17.867450365859522,21.08398919446757,24.64517810695375,28.565709870273789,32.860058453703466,37.542493576646898,42.627093612134182,48.12775710122358,0,0,0,0,0,0,0,0,0,0,0,0,952.12350396046941,953.86375850175716,955.85179372085247,958.10139224045133,960.62607314898037,963.43911418131495,966.55357076602024,969.98229254009038,973.73793778985203,977.83298617382718,982.27975000755498,987.09038433357352,977.06407869722204,984.8972544594169,993.84573235339451,1003.9715502612459,1015.3355598533896,1027.9975264276802,1042.0162146442151,1057.4494628609282,1074.3542481345046,1092.7867434881055,1112.8023687062343,1134.4558356614]
[1000395763,4,1,1,1,3,3.0306803023566031,3,3,3,3.0230632761679481,2.1694249845207684E-2,0,0,0,1.6308198974734206E-2,0.12304063405958204,0,0,0,0.3677509745712596,16.795287547117443,20.898335090615813,25.585582173483054,30.889524476582746,36.842036338549633,43.474423051897745,50.817465771241231,58.901460450564159,67.756251890949088,77.411263737631444,87.895525086545064,99.237694226602784,0,0,0,0,0,0,0,0,0,0,0,0,0,0,0,0,0,0,0,0,0,0,0,0,0,0,0,0,0,0,0,0,0,0,0,0,8.1452871896351073,10.135160867043924,12.408356459059,14.980633544211758,17.867450365859522,21.08398919446757,24.64517810695375,28.565709870273789,32.860058453703466,37.542493576646898,42.627093612134182,48.12775710122358,0,0,0,0,0,0,0,0,0,0,0,0,952.12350396046941,953.86375850175716,955.85179372085247,958.10139224045133,960.62607314898037,963.43911418131495,966.55357076602024,969.98229254009038,973.73793778985203,977.83298617382718,982.27975000755498,987.09038433357352,977.06407869722204,984.8972544594169,993.84573235339451,1003.9715502612459,1015.3355598533896,1027.9975264276802,1042.0162146442151,1057.4494628609282,1074.3542481345046,1092.7867434881055,1112.8023687062343,1134.4558356614]
[1000395789,4,1,1,1,3,3.0306803023566031,3,3,3,3.0230632761679481,2.1694249845207684E-2,0,0,0,1.6308198974734206E-2,0.12304063405958204,0,0,0,0.3677509745712596,16.795287547117443,20.898335090615813,25.585582173483054,30.889524476582746,36.842036338549633,43.474423051897745,50.817465771241231,58.901460450564159,67.756251890949088,77.411263737631444,87.895525086545064,99.237694226602784,0,0,0,0,0,0,0,0,0,0,0,0,0,0,0,0,0,0,0,0,0,0,0,0,0,0,0,0,0,0,0,0,0,0,0,0,8.1452871896351073,10.135160867043924,12.408356459059,14.980633544211758,17.867450365859522,21.08398919446757,24.64517810695375,28.565709870273789,32.860058453703466,37.542493576646898,42.627093612134182,48.12775710122358,0,0,0,0,0,0,0,0,0,0,0,0,952.12350396046941,953.86375850175716,955.85179372085247,958.10139224045133,960.62607314898037,963.43911418131495,966.55357076602024,969.98229254009038,973.73793778985203,977.83298617382718,982.27975000755498,987.09038433357352,977.06407869722204,984.8972544594169,993.84573235339451,1003.9715502612459,1015.3355598533896,1027.9975264276802,1042.0162146442151,1057.4494628609282,1074.3542481345046,1092.7867434881055,1112.8023687062343,1134.4558356614]
[1000395818,4,1,1,1,3,3.0306803023566031,3,3,3,3.0230632761679481,2.1694249845207684E-2,0,0,0,1.6308198974734206E-2,0.12304063405958204,0,0,0,0.3677509745712596,16.795287547117443,20.898335090615813,25.585582173483054,30.889524476582746,36.842036338549633,43.474423051897745,50.817465771241231,58.901460450564159,67.756251890949088,77.411263737631444,87.895525086545064,99.237694226602784,0,0,0,0,0,0,0,0,0,0,0,0,0,0,0,0,0,0,0,0,0,0,0,0,0,0,0,0,0,0,0,0,0,0,0,0,8.1452871896351073,10.135160867043924,12.408356459059,14.980633544211758,17.867450365859522,21.08398919446757,24.64517810695375,28.565709870273789,32.860058453703466,37.542493576646898,42.627093612134182,48.12775710122358,0,0,0,0,0,0,0,0,0,0,0,0,952.12350396046941,953.86375850175716,955.85179372085247,958.10139224045133,960.62607314898037,963.43911418131495,966.55357076602024,969.98229254009038,973.73793778985203,977.83298617382718,982.27975000755498,987.09038433357352,977.06407869722204,984.8972544594169,993.84573235339451,1003.9715502612459,1015.3355598533896,1027.9975264276802,1042.0162146442151,1057.4494628609282,1074.3542481345046,1092.7867434881055,1112.8023687062343,1134.4558356614]
[1000395877,4,1,1,1,3,3.0306803023566031,3,3,3,3.0230632761679481,2.1694249845207684E-2,0,0,0,1.6308198974734206E-2,0.12304063405958204,0,0,0,0.3677509745712596,16.795287547117443,20.898335090615813,25.585582173483054,30.889524476582746,36.842036338549633,43.474423051897745,50.817465771241231,58.901460450564159,67.756251890949088,77.411263737631444,87.895525086545064,99.237694226602784,0,0,0,0,0,0,0,0,0,0,0,0,0,0,0,0,0,0,0,0,0,0,0,0,0,0,0,0,0,0,0,0,0,0,0,0,8.1452871896351073,10.135160867043924,12.408356459059,14.980633544211758,17.867450365859522,21.08398919446757,24.64517810695375,28.565709870273789,32.860058453703466,37.542493576646898,42.627093612134182,48.12775710122358,0,0,0,0,0,0,0,0,0,0,0,0,952.12350396046941,953.86375850175716,955.85179372085247,958.10139224045133,960.62607314898037,963.43911418131495,966.55357076602024,969.98229254009038,973.73793778985203,977.83298617382718,982.27975000755498,987.09038433357352,977.06407869722204,984.8972544594169,993.84573235339451,1003.9715502612459,1015.3355598533896,1027.9975264276802,1042.0162146442151,1057.4494628609282,1074.3542481345046,1092.7867434881055,1112.8023687062343,1134.4558356614]
[1000395930,4,1,1,1,3,3.0306803023566031,3,3,3,3.0230632761679481,2.1694249845207684E-2,0,0,0,1.6308198974734206E-2,0.12304063405958204,0,0,0,0.3677509745712596,13.243260944614924,16.795287547117443,20.898335090615813,25.585582173483054,30.889524476582746,36.842036338549633,43.474423051897745,50.817465771241231,58.901460450564159,67.756251890949088,77.411263737631444,87.895525086545064,0,0,0,0,0,0,0,0,0,0,0,0,0,0,0,0,0,0,0,0,0,0,0,0,0,0,0,0,0,0,0,0,0,0,0,0,6.4226446506824182,8.1452871896351073,10.135160867043924,12.408356459059,14.980633544211758,17.867450365859522,21.08398919446757,24.64517810695375,28.565709870273789,32.860058453703466,37.542493576646898,42.627093612134182,0,0,0,0,0,0,0,0,0,0,0,0,950.61695782366553,952.12350396046941,953.86375850175716,955.85179372085247,958.10139224045133,960.62607314898037,963.43911418131495,966.55357076602024,969.98229254009038,973.73793778985203,977.83298617382718,982.27975000755498,970.28286341896285,977.06407869722204,984.8972544594169,993.84573235339451,1003.9715502612459,1015.3355598533896,1027.9975264276802,1042.0162146442151,1057.4494628609282,1074.3542481345046,1092.7867434881055,1112.8023687062343]
[1000395955,4,1,1,1,3,3.0306803023566031,3,3,3,3.0230632761679481,2.1694249845207684E-2,0,0,0,1.6308198974734206E-2,0.12304063405958204,0,0,0,0.3677509745712596,16.795287547117443,20.898335090615813,25.585582173483054,30.889524476582746,36.842036338549633,43.474423051897745,50.817465771241231,58.901460450564159,67.756251890949088,77.411263737631444,87.895525086545064,99.237694226602784,0,0,0,0,0,0,0,0,0,0,0,0,0,0,0,0,0,0,0,0,0,0,0,0,0,0,0,0,0,0,0,0,0,0,0,0,8.1452871896351073,10.135160867043924,12.408356459059,14.980633544211758,17.867450365859522,21.08398919446757,24.64517810695375,28.565709870273789,32.860058453703466,37.542493576646898,42.627093612134182,48.12775710122358,0,0,0,0,0,0,0,0,0,0,0,0,952.12350396046941,953.86375850175716,955.85179372085247,958.10139224045133,960.62607314898037,963.43911418131495,966.55357076602024,969.98229254009038,973.73793778985203,977.83298617382718,982.27975000755498,987.09038433357352,977.06407869722204,984.8972544594169,993.84573235339451,1003.9715502612459,1015.3355598533896,1027.9975264276802,1042.0162146442151,1057.4494628609282,1074.3542481345046,1092.7867434881055,1112.8023687062343,1134.4558356614]
[1000395984,4,1,1,1,3,3.0306803023566031,3,3,3,3.0230632761679481,2.1694249845207684E-2,0,0,0,1.6308198974734206E-2,0.12304063405958204,0,0,0,0.3677509745712596,13.243260944614924,16.795287547117443,20.898335090615813,25.585582173483054,30.889524476582746,36.842036338549633,43.474423051897745,50.817465771241231,58.901460450564159,67.756251890949088,77.411263737631444,87.895525086545064,0,0,0,0,0,0,0,0,0,0,0,0,0,0,0,0,0,0,0,0,0,0,0,0,0,0,0,0,0,0,0,0,0,0,0,0,6.4226446506824182,8.1452871896351073,10.135160867043924,12.408356459059,14.980633544211758,17.867450365859522,21.08398919446757,24.64517810695375,28.565709870273789,32.860058453703466,37.542493576646898,42.627093612134182,0,0,0,0,0,0,0,0,0,0,0,0,950.61695782366553,952.12350396046941,953.86375850175716,955.85179372085247,958.10139224045133,960.62607314898037,963.43911418131495,966.55357076602024,969.98229254009038,973.73793778985203,977.83298617382718,982.27975000755498,970.28286341896285,977.06407869722204,984.8972544594169,993.84573235339451,1003.9715502612459,1015.3355598533896,1027.9975264276802,1042.0162146442151,1057.4494628609282,1074.3542481345046,1092.7867434881055,1112.8023687062343]
[1000400013,4,1,1,1,3,3.0306803023566031,3,3,3,3.0230632761679481,2.1694249845207684E-2,0,0,0,1.6308198974734206E-2,0.12304063405958204,0,0,0,0.3677509745712596,16.795287547117443,20.898335090615813,25.585582173483054,30.889524476582746,36.842036338549633,43.474423051897745,50.817465771241231,58.901460450564159,67.756251890949088,77.411263737631444,87.895525086545064,99.237694226602784,0,0,0,0,0,0,0,0,0,0,0,0,0,0,0,0,0,0,0,0,0,0,0,0,0,0,0,0,0,0,0,0,0,0,0,0,8.1452871896351073,10.135160867043924,12.408356459059,14.980633544211758,17.867450365859522,21.08398919446757,24.64517810695375,28.565709870273789,32.860058453703466,37.542493576646898,42.627093612134182,48.12775710122358,0,0,0,0,0,0,0,0,0,0,0,0,952.12350396046941,953.86375850175716,955.85179372085247,958.10139224045133,960.62607314898037,963.43911418131495,966.55357076602024,969.98229254009038,973.73793778985203,977.83298617382718,982.27975000755498,987.09038433357352,977.06407869722204,984.8972544594169,993.84573235339451,1003.9715502612459,1015.3355598533896,1027.9975264276802,1042.0162146442151,1057.4494628609282,1074.3542481345046,1092.7867434881055,1112.8023687062343,1134.4558356614]
[1000400036,4,1,1,1,3,3.0306803023566031,3,3,3,3.0230632761679481,2.1694249845207684E-2,0,0,0,1.6308198974734206E-2,0.12304063405958204,0,0,0,0.3677509745712596,13.243260944614924,16.795287547117443,20.898335090615813,25.585582173483054,30.889524476582746,36.842036338549633,43.474423051897745,50.817465771241231,58.901460450564159,67.756251890949088,77.411263737631444,87.895525086545064,0,0,0,0,0,0,0,0,0,0,0,0,0,0,0,0,0,0,0,0,0,0,0,0,0,0,0,0,0,0,0,0,0,0,0,0,6.4226446506824182,8.1452871896351073,10.135160867043924,12.408356459059,14.980633544211758,17.867450365859522,21.08398919446757,24.64517810695375,28.565709870273789,32.860058453703466,37.542493576646898,42.627093612134182,0,0,0,0,0,0,0,0,0,0,0,0,950.61695782366553,952.12350396046941,953.86375850175716,955.85179372085247,958.10139224045133,960.62607314898037,963.43911418131495,966.55357076602024,969.98229254009038,973.73793778985203,977.83298617382718,982.27975000755498,970.28286341896285,977.06407869722204,984.8972544594169,993.84573235339451,1003.9715502612459,1015.3355598533896,1027.9975264276802,1042.0162146442151,1057.4494628609282,1074.3542481345046,1092.7867434881055,1112.8023687062343]
[1000400062,4,1,1,1,3,3.0306803023566031,3,3,3,3.0230632761679481,2.1694249845207684E-2,0,0,0,1.6308198974734206E-2,0.12304063405958204,0,0,0,0.3677509745712596,13.243260944614924,16.795287547117443,20.898335090615813,25.585582173483054,30.889524476582746,36.842036338549633,43.474423051897745,50.817465771241231,58.901460450564159,67.756251890949088,77.411263737631444,87.895525086545064,0,0,0,0,0,0,0,0,0,0,0,0,0,0,0,0,0,0,0,0,0,0,0,0,0,0,0,0,0,0,0,0,0,0,0,0,6.4226446506824182,8.1452871896351073,10.135160867043924,12.408356459059,14.980633544211758,17.867450365859522,21.08398919446757,24.64517810695375,28.565709870273789,32.860058453703466,37.542493576646898,42.627093612134182,0,0,0,0,0,0,0,0,0,0,0,0,950.61695782366553,952.12350396046941,953.86375850175716,955.85179372085247,958.10139224045133,960.62607314898037,963.43911418131495,966.55357076602024,969.98229254009038,973.73793778985203,977.83298617382718,982.27975000755498,970.28286341896285,977.06407869722204,984.8972544594169,993.84573235339451,1003.9715502612459,1015.3355598533896,1027.9975264276802,1042.0162146442151,1057.4494628609282,1074.3542481345046,1092.7867434881055,1112.8023687062343]
[1000400113,4,1,1,1,3,3.0306803023566031,3,3,3,3.0230632761679481,2.1694249845207684E-2,0,0,0,1.6308198974734206E-2,0.12304063405958204,0,0,0,0.3677509745712596,21.406215965875141,27.577002427660744,34.812987497018305,43.194734643958625,52.802255191383644,63.715051291511266,76.01215290533267,89.772149946485101,105.07322047044566,121.99315558915362,140.60938164437835,160.99898006384194,0,0,0,0,0,0,0,0,0,0,0,0,0,0,0,0,0,0,0,0,0,0,0,0,0,0,0,0,0,0,0,0,0,0,0,0,10.381470171097517,13.374144620769716,16.883413296550422,20.948347431866907,25.607750482845223,30.90017897078291,36.863960416245071,43.537208928024917,50.95783887418559,59.163576965018251,68.191973006561369,78.080409530315009,0,0,0,0,0,0,0,0,0,0,0,0,954.07916960539001,956.69642886197744,959.76547832926769,963.32048796095035,967.39539352466124,972.02391482987673,977.23957141227243,983.07569616713079,989.56544730542328,996.74181892102479,1004.6376503952616,1013.285634818628,985.86685574236265,997.64757591040791,1011.4618791228364,1027.4635700367758,1045.80539919889,1066.639145092171,1090.1156847338502,1116.3850550416407,1145.5965066500546,1177.8985514751967,1213.4390050462014,1252.3650244127848]
[1000400141,4,1,1,1,3,3.0306803023566031,3,3,3,3.0230632761679481,2.1694249845207684E-2,0,0,0,1.6308198974734206E-2,0.12304063405958204,0,0,0,0.3677509745712596,13.243260944614924,16.795287547117443,20.898335090615813,25.585582173483054,30.889524476582746,36.842036338549633,43.474423051897745,50.817465771241231,58.901460450564159,67.756251890949088,77.411263737631444,87.895525086545064,0,0,0,0,0,0,0,0,0,0,0,0,0,0,0,0,0,0,0,0,0,0,0,0,0,0,0,0,0,0,0,0,0,0,0,0,6.4226446506824182,8.1452871896351073,10.135160867043924,12.408356459059,14.980633544211758,17.867450365859522,21.08398919446757,24.64517810695375,28.565709870273789,32.860058453703466,37.542493576646898,42.627093612134182,0,0,0,0,0,0,0,0,0,0,0,0,950.61695782366553,952.12350396046941,953.86375850175716,955.85179372085247,958.10139224045133,960.62607314898037,963.43911418131495,966.55357076602024,969.98229254009038,973.73793778985203,977.83298617382718,982.27975000755498,970.28286341896285,977.06407869722204,984.8972544594169,993.84573235339451,1003.9715502612459,1015.3355598533896,1027.9975264276802,1042.0162146442151,1057.4494628609282,1074.3542481345046,1092.7867434881055,1112.8023687062343]
[1000400168,4,1,1,1,3,3.0306803023566031,3,3,3,3.0230632761679481,2.1694249845207684E-2,0,0,0,1.6308198974734206E-2,0.12304063405958204,0,0,0,0.3677509745712596,13.243260944614924,16.795287547117443,20.898335090615813,25.585582173483054,30.889524476582746,36.842036338549633,43.474423051897745,50.817465771241231,58.901460450564159,67.756251890949088,77.411263737631444,87.895525086545064,0,0,0,0,0,0,0,0,0,0,0,0,0,0,0,0,0,0,0,0,0,0,0,0,0,0,0,0,0,0,0,0,0,0,0,0,6.4226446506824182,8.1452871896351073,10.135160867043924,12.408356459059,14.980633544211758,17.867450365859522,21.08398919446757,24.64517810695375,28.565709870273789,32.860058453703466,37.542493576646898,42.627093612134182,0,0,0,0,0,0,0,0,0,0,0,0,950.61695782366553,952.12350396046941,953.86375850175716,955.85179372085247,958.10139224045133,960.62607314898037,963.43911418131495,966.55357076602024,969.98229254009038,973.73793778985203,977.83298617382718,982.27975000755498,970.28286341896285,977.06407869722204,984.8972544594169,993.84573235339451,1003.9715502612459,1015.3355598533896,1027.9975264276802,1042.0162146442151,1057.4494628609282,1074.3542481345046,1092.7867434881055,1112.8023687062343]
[1000400193,4,1,1,1,3,3.0306803023566031,3,3,3,3.0230632761679481,2.1694249845207684E-2,0,0,0,1.6308198974734206E-2,0.12304063405958204,0,0,0,0.3677509745712596,13.243260944614924,16.795287547117443,20.898335090615813,25.585582173483054,30.889524476582746,36.842036338549633,43.474423051897745,50.817465771241231,58.901460450564159,67.756251890949088,77.411263737631444,87.895525086545064,0,0,0,0,0,0,0,0,0,0,0,0,0,0,0,0,0,0,0,0,0,0,0,0,0,0,0,0,0,0,0,0,0,0,0,0,6.4226446506824182,8.1452871896351073,10.135160867043924,12.408356459059,14.980633544211758,17.867450365859522,21.08398919446757,24.64517810695375,28.565709870273789,32.860058453703466,37.542493576646898,42.627093612134182,0,0,0,0,0,0,0,0,0,0,0,0,950.61695782366553,952.12350396046941,953.86375850175716,955.85179372085247,958.10139224045133,960.62607314898037,963.43911418131495,966.55357076602024,969.98229254009038,973.73793778985203,977.83298617382718,982.27975000755498,970.28286341896285,977.06407869722204,984.8972544594169,993.84573235339451,1003.9715502612459,1015.3355598533896,1027.9975264276802,1042.0162146442151,1057.4494628609282,1074.3542481345046,1092.7867434881055,1112.8023687062343]
[1000400222,4,1,1,1,3,3.0306803023566031,3,3,3,3.0230632761679481,2.1694249845207684E-2,0,0,0,1.6308198974734206E-2,0.12304063405958204,0,0,0,0.3677509745712596,13.243260944614924,16.795287547117443,20.898335090615813,25.585582173483054,30.889524476582746,36.842036338549633,43.474423051897745,50.817465771241231,58.901460450564159,67.756251890949088,77.411263737631444,87.895525086545064,0,0,0,0,0,0,0,0,0,0,0,0,0,0,0,0,0,0,0,0,0,0,0,0,0,0,0,0,0,0,0,0,0,0,0,0,6.4226446506824182,8.1452871896351073,10.135160867043924,12.408356459059,14.980633544211758,17.867450365859522,21.08398919446757,24.64517810695375,28.565709870273789,32.860058453703466,37.542493576646898,42.627093612134182,0,0,0,0,0,0,0,0,0,0,0,0,950.61695782366553,952.12350396046941,953.86375850175716,955.85179372085247,958.10139224045133,960.62607314898037,963.43911418131495,966.55357076602024,969.98229254009038,973.73793778985203,977.83298617382718,982.27975000755498,970.28286341896285,977.06407869722204,984.8972544594169,993.84573235339451,1003.9715502612459,1015.3355598533896,1027.9975264276802,1042.0162146442151,1057.4494628609282,1074.3542481345046,1092.7867434881055,1112.8023687062343]
[1000400253,4,1,1,1,3,3.0306803023566031,3,3,3,3.0230632761679481,2.1694249845207684E-2,0,0,0,1.6308198974734206E-2,0.12304063405958204,0,0,0,0.3677509745712596,13.243260944614924,16.795287547117443,20.898335090615813,25.585582173483054,30.889524476582746,36.842036338549633,43.474423051897745,50.817465771241231,58.901460450564159,67.756251890949088,77.411263737631444,87.895525086545064,0,0,0,0,0,0,0,0,0,0,0,0,0,0,0,0,0,0,0,0,0,0,0,0,0,0,0,0,0,0,0,0,0,0,0,0,6.4226446506824182,8.1452871896351073,10.135160867043924,12.408356459059,14.980633544211758,17.867450365859522,21.08398919446757,24.64517810695375,28.565709870273789,32.860058453703466,37.542493576646898,42.627093612134182,0,0,0,0,0,0,0,0,0,0,0,0,950.61695782366553,952.12350396046941,953.86375850175716,955.85179372085247,958.10139224045133,960.62607314898037,963.43911418131495,966.55357076602024,969.98229254009038,973.73793778985203,977.83298617382718,982.27975000755498,970.28286341896285,977.06407869722204,984.8972544594169,993.84573235339451,1003.9715502612459,1015.3355598533896,1027.9975264276802,1042.0162146442151,1057.4494628609282,1074.3542481345046,1092.7867434881055,1112.8023687062343]
[1000400282,4,1,1,1,3,3.0306803023566031,3,3,3,3.0230632761679481,2.1694249845207684E-2,0,0,0,1.6308198974734206E-2,0.12304063405958204,0,0,0,0.3677509745712596,16.795287547117443,20.898335090615813,25.585582173483054,30.889524476582746,36.842036338549633,43.474423051897745,50.817465771241231,58.901460450564159,67.756251890949088,77.411263737631444,87.895525086545064,99.237694226602784,0,0,0,0,0,0,0,0,0,0,0,0,0,0,0,0,0,0,0,0,0,0,0,0,0,0,0,0,0,0,0,0,0,0,0,0,8.1452871896351073,10.135160867043924,12.408356459059,14.980633544211758,17.867450365859522,21.08398919446757,24.64517810695375,28.565709870273789,32.860058453703466,37.542493576646898,42.627093612134182,48.12775710122358,0,0,0,0,0,0,0,0,0,0,0,0,952.12350396046941,953.86375850175716,955.85179372085247,958.10139224045133,960.62607314898037,963.43911418131495,966.55357076602024,969.98229254009038,973.73793778985203,977.83298617382718,982.27975000755498,987.09038433357352,977.06407869722204,984.8972544594169,993.84573235339451,1003.9715502612459,1015.3355598533896,1027.9975264276802,1042.0162146442151,1057.4494628609282,1074.3542481345046,1092.7867434881055,1112.8023687062343,1134.4558356614]
[1000400309,4,1,1,1,3,3.0306803023566031,3,3,3,3.0230632761679481,2.1694249845207684E-2,0,0,0,1.6308198974734206E-2,0.12304063405958204,0,0,0,0.3677509745712596,13.243260944614924,16.795287547117443,20.898335090615813,25.585582173483054,30.889524476582746,36.842036338549633,43.474423051897745,50.817465771241231,58.901460450564159,67.756251890949088,77.411263737631444,87.895525086545064,0,0,0,0,0,0,0,0,0,0,0,0,0,0,0,0,0,0,0,0,0,0,0,0,0,0,0,0,0,0,0,0,0,0,0,0,6.4226446506824182,8.1452871896351073,10.135160867043924,12.408356459059,14.980633544211758,17.867450365859522,21.08398919446757,24.64517810695375,28.565709870273789,32.860058453703466,37.542493576646898,42.627093612134182,0,0,0,0,0,0,0,0,0,0,0,0,950.61695782366553,952.12350396046941,953.86375850175716,955.85179372085247,958.10139224045133,960.62607314898037,963.43911418131495,966.55357076602024,969.98229254009038,973.73793778985203,977.83298617382718,982.27975000755498,970.28286341896285,977.06407869722204,984.8972544594169,993.84573235339451,1003.9715502612459,1015.3355598533896,1027.9975264276802,1042.0162146442151,1057.4494628609282,1074.3542481345046,1092.7867434881055,1112.8023687062343]
[1000400338,3,1,1,1,2,2.2730102267674521,3,3,3,2.0153755174452987,-0.51405939850600502,0,0,0,-0.69623464853672468,7.7584975544686519E-2,0,0,0,0.18638531638083977,8.3507215674969437,10.59050112646592,13.177734569743324,16.133343121955896,19.477817384638474,23.231256163379811,27.413399443857681,32.043656709339359,37.141131493116298,42.724642847770788,48.812744260233991,55.423740428911628,0,0,0,0,0,0,0,0,0,0,0,0,0,0,0,0,0,0,0,0,0,0,0,0,0,0,0,0,0,0,0,0,0,0,0,0,3.2551556297431095,4.1282336005305797,5.1367509412504493,6.2888628564050384,7.5925566913277791,9.0556670672109263,10.685888735339226,12.490787615402043,14.477810366162808,16.654292754293252,19.027467027563478,21.604468454654704,0,0,0,0,0,0,0,0,0,0,0,0,950.61695782366553,952.12350396046941,953.86375850175716,955.85179372085247,958.10139224045133,960.62607314898037,963.43911418131495,966.55357076602024,969.98229254009038,973.73793778985203,977.83298617382718,982.27975000755498,962.22283502090556,966.84223868746597,972.17824401275084,978.27399969921339,985.17176631641757,992.91299637957115,1001.5384023605118,1011.0880150907617,1021.6012343993694,1033.116873391916,1045.6731974616246,1059.3079588911214]
[1000400470,4,1,1,1,3,3.0306803023566031,3,3,3,3.0230632761679481,2.1694249845207684E-2,0,0,0,1.6308198974734206E-2,0.12304063405958204,0,0,0,0.3677509745712596,1378.0240523890004,1467.045780601758,1559.761277299122,1656.2420549359613,1756.5594931548401,1860.7848417364414,1968.9892234267761,2081.2436366486231,2197.6189581040876,2318.1859452746135,2443.0152388243255,2572.1773649121155,0,0,0,0,0,0,0,0,0,0,0,0,0,0,0,0,0,0,0,0,0,0,0,0,0,0,0,0,0,0,0,0,0,0,0,0,668.3066085915043,711.47988206933769,756.44453929304268,803.23526198395939,851.88666745283979,902.43331003072603,954.90968244007706,1009.3502171097466,1065.7892874371582,1124.2612090007476,1184.8002407255235,1247.4405860043678,0,0,0,0,0,0,0,0,0,0,0,0,1529.4710766205308,1567.228491116256,1606.5525697346011,1647.4736435582613,1690.0219873393103,1734.2278207505856,1780.1213095848111,1827.7325669046204,1877.0916541463971,1928.2285821806245,1981.173312331231,2035.9557573562306,3575.8017376010357,3745.7541537873517,3922.758386326766,4106.9509604781815,4298.46814794699,4497.445972517753,4704.0202154516646,4918.3264206629901,5140.4998996876429,5370.6757364559853,5608.98879188108,5855.5737082727137]
[1000400498,4,1,1,1,3,3.0306803023566031,3,3,3,3.0230632761679481,2.1694249845207684E-2,0,0,0,1.6308198974734206E-2,0.12304063405958204,0,0,0,0.3677509745712596,658.53779041037683,698.36363145339078,739.68296992500564,782.51894579536281,826.89456934528289,872.832724518654,920.35617212298052,969.48755288782002,1020.2493903900088,1072.6640938538956,1126.7539608341217,1182.5411797879206,0,0,0,0,0,0,0,0,0,0,0,0,0,0,0,0,0,0,0,0,0,0,0,0,0,0,0,0,0,0,0,0,0,0,0,0,319.37407520247342,338.68859494225489,358.72742294045759,379.5017814939211,401.02283000346387,423.30166659970598,446.34932969525403,470.17679946796505,494.79499927960688,520.21479703389991,546.44700647759703,573.50238844798412,0,0,0,0,0,0,0,0,0,0,0,0,1224.310285396823,1241.2019007146939,1258.7269636480189,1276.8952887158105,1295.7166354310327,1315.2007097224748,1335.3571652922208,1356.1956049128471,1377.7255816681188,1399.9566001406731,1422.8981175498843,1446.559544842873,2202.2221510096733,2278.2541271103396,2357.1373565134822,2438.9160160050942,2523.6340347797795,2611.3351008408345,2702.0626671104555,2795.8599572686321,2892.7699713377342,2992.8354910284688,3096.0990848616029,3202.6031130787778]
[1000400520,4,1,1,1,3,3.0306803023566031,3,3,3,3.0230632761679481,2.1694249845207684E-2,0,0,0,1.6308198974734206E-2,0.12304063405958204,0,0,0,0.3677509745712596,547.78783176970308,583.27337102005492,620.18217362168446,658.53779041037683,698.36363145339078,739.68296992500564,782.51894579536281,826.89456934528289,872.832724518654,920.35617212298052,969.48755288782002,1020.2493903900088,0,0,0,0,0,0,0,0,0,0,0,0,0,0,0,0,0,0,0,0,0,0,0,0,0,0,0,0,0,0,0,0,0,0,0,0,265.66316273147368,282.8727465187302,300.7725768236553,319.37407520247342,338.68859494225489,358.72742294045759,379.5017814939211,401.02283000346387,423.30166659970598,446.34932969525403,470.17679946796505,494.79499927960688,0,0,0,0,0,0,0,0,0,0,0,0,1177.3371230269972,1192.3878554827602,1208.0422466785822,1224.310285396823,1241.2019007146939,1258.7269636480189,1276.8952887158105,1295.7166354310327,1315.2007097224748,1335.3571652922208,1356.1956049128471,1377.7255816681188,1990.7881175281741,2058.5339730215455,2128.996997123922,2202.2221510096733,2278.2541271103396,2357.1373565134822,2438.9160160050942,2523.6340347797795,2611.3351008408345,2702.0626671104555,2795.8599572686321,2892.7699713377342]
[1000400548,4,1,1,1,3,3.0306803023566031,3,3,3,3.0230632761679481,2.1694249845207684E-2,0,0,0,1.6308198974734206E-2,0.12304063405958204,0,0,0,0.3677509745712596,1292.6244443119174,1378.0240523890004,1467.045780601758,1559.761277299122,1656.2420549359613,1756.5594931548401,1860.7848417364414,1968.9892234267761,2081.2436366486231,2197.6189581040876,2318.1859452746135,2443.0152388243255,0,0,0,0,0,0,0,0,0,0,0,0,0,0,0,0,0,0,0,0,0,0,0,0,0,0,0,0,0,0,0,0,0,0,0,0,626.88997123303818,668.3066085915043,711.47988206933769,756.44453929304268,803.23526198395939,851.88666745283979,902.43331003072603,954.90968244007706,1009.3502171097466,1065.7892874371582,1124.2612090007476,1184.8002407255235,0,0,0,0,0,0,0,0,0,0,0,0,1493.2499375270208,1529.4710766205308,1567.228491116256,1606.5525697346011,1647.4736435582613,1690.0219873393103,1734.2278207505856,1780.1213095848111,1827.7325669046204,1877.0916541463971,1928.2285821806245,1981.173312331231,3412.7643530719761,3575.8017376010357,3745.7541537873517,3922.758386326766,4106.9509604781815,4298.46814794699,4497.445972517753,4704.0202154516646,4918.3264206629901,5140.4998996876429,5370.6757364559853,5608.98879188108]
[1000400598,4,1,1,1,3,3.0306803023566031,3,3,3,3.0230632761679481,2.1694249845207684E-2,0,0,0,1.6308198974734206E-2,0.12304063405958204,0,0,0,0.3677509745712596,1210.7751689055815,1292.6244443119174,1378.0240523890004,1467.045780601758,1559.761277299122,1656.2420549359613,1756.5594931548401,1860.7848417364414,1968.9892234267761,2081.2436366486231,2197.6189581040876,2318.1859452746135,0,0,0,0,0,0,0,0,0,0,0,0,0,0,0,0,0,0,0,0,0,0,0,0,0,0,0,0,0,0,0,0,0,0,0,0,587.19515489971707,626.88997123303818,668.3066085915043,711.47988206933769,756.44453929304268,803.23526198395939,851.88666745283979,902.43331003072603,954.90968244007706,1009.3502171097466,1065.7892874371582,1124.2612090007476,0,0,0,0,0,0,0,0,0,0,0,0,1458.5346261110722,1493.2499375270208,1529.4710766205308,1567.228491116256,1606.5525697346011,1647.4736435582613,1690.0219873393103,1734.2278207505856,1780.1213095848111,1827.7325669046204,1877.0916541463971,1928.2285821806245,3256.5049499163706,3412.7643530719761,3575.8017376010357,3745.7541537873517,3922.758386326766,4106.9509604781815,4298.46814794699,4497.445972517753,4704.0202154516646,4918.3264206629901,5140.4998996876429,5370.6757364559853]
[1000400719,4,1,1,1,3,3.0306803023566031,3,3,3,3.0230632761679481,2.1694249845207684E-2,0,0,0,1.6308198974734206E-2,0.12304063405958204,0,0,0,0.3677509745712596,2526.7298403724526,2637.9136000084891,2752.2069267778838,2869.6484276114243,2990.2766061540497,3114.1298645542752,3241.246505197154,3371.6647323833295,3505.422653956618,3642.5582828823594,3783.1095387787072,3927.1142494028513,0,0,0,0,0,0,0,0,0,0,0,0,0,0,0,0,0,0,0,0,0,0,0,0,0,0,0,0,0,0,0,0,0,0,0,0,1225.3996927838714,1279.3209877017612,1334.7503435722006,1391.706483774464,1450.2080815968186,1510.2737611043465,1571.9220979793879,1635.1716203358421,1700.0408095084983,1766.5481008185009,1834.7118843159817,1904.550505500843,0,0,0,0,0,0,0,0,0,0,0,0,2016.679777701605,2063.8369311522533,2112.3129672792293,2162.1242607128315,2213.287142276004,2265.8178997432956,2319.7327785758716,2375.047982633665,2431.7796748656929,2489.9439779794934,2549.5569750906038,2610.6347103529215,5768.8093108579287,5981.0715188625036,6199.2702376293137,6423.4791720987196,6653.7718300268725,6890.2215254019175,7132.9013817524137,7381.8843353528364,7637.2431383308094,7899.0503616803544,8167.378398185293,8442.2994652566158]
[1000400757,4,1,1,1,3,3.0306803023566031,3,3,3,3.0230632761679481,2.1694249845207684E-2,0,0,0,1.6308198974734206E-2,0.12304063405958204,0,0,0,0.3677509745712596,3285.4411573805737,3442.0751862794764,3603.5327019031511,3769.8833881612809,3941.1968318852901,4117.5425244542548,4298.9898633693501,4485.6081537792452,4677.4666099586311,4874.6343567420199,5077.1804309147556,5285.173782563118,0,0,0,0,0,0,0,0,0,0,0,0,0,0,0,0,0,0,0,0,0,0,0,0,0,0,0,0,0,0,0,0,0,0,0,0,1593.355379980075,1669.3188992393884,1747.6216868511156,1828.2975377387004,1911.3801997450998,1996.9033744213107,2084.9007177899371,2175.4058410849657,2268.4523114688163,2364.0736527276977,2462.3033459462113,2563.1748301621183,0,0,0,0,0,0,0,0,0,0,0,0,2338.4773686269182,2404.9116658710345,2473.391782616055,2543.9472743908873,2616.6076555499512,2691.4023999627871,2768.360941681839,2847.5126755894303,2928.8869580248602,3012.5131073925354,3098.4204047519452,3186.6380943902932,7217.2739059875666,7516.3057513898993,7824.5461713703216,8142.1282002908683,8469.1846871803409,8805.848298838353,9152.2515228411266,9508.5266704536407,9874.8058794523076,10251.221116862253,10637.904181612912,11034.986707115529]
[1000400775,4,1,1,1,3,3.0306803023566031,3,3,3,3.0230632761679481,2.1694249845207684E-2,0,0,0,1.6308198974734206E-2,0.12304063405958204,0,0,0,0.3677509745712596,2211.448306410618,2313.5360671943886,2418.6169358045431,2526.7298403724526,2637.9136000084891,2752.2069267778838,2869.6484276114243,2990.2766061540497,3114.1298645542752,3241.246505197154,3371.6647323833295,3505.422653956618,0,0,0,0,0,0,0,0,0,0,0,0,0,0,0,0,0,0,0,0,0,0,0,0,0,0,0,0,0,0,0,0,0,0,0,0,1072.4961695483562,1122.00613642435,1172.9676844517262,1225.3996927838714,1279.3209877017612,1334.7503435722006,1391.706483774464,1450.2080815968186,1510.2737611043465,1571.9220979793879,1635.1716203358421,1700.0408095084983,0,0,0,0,0,0,0,0,0,0,0,0,1882.957193343384,1926.2563965406198,1970.8250877055691,2016.679777701605,2063.8369311522533,2112.3129672792293,2162.1242607128315,2213.287142276004,2265.8178997432956,2319.7327785758716,2375.047982633665,2431.7796748656929,5166.9016693023586,5361.7986001593581,5562.4097079618386,5768.8093108579287,5981.0715188625036,6199.2702376293137,6423.4791720987196,6653.7718300268725,6890.2215254019175,7132.9013817524137,7381.8843353528364,7637.2431383308094]
[1000400898,4,1,1,1,3,3.0306803023566031,3,3,3,3.0230632761679481,2.1694249845207684E-2,0,0,0,1.6308198974734206E-2,0.12304063405958204,0,0,0,0.3677509745712596,1328.5285524685976,1427.6466853267916,1531.5642715865069,1640.3939656477728,1754.2483852317262,1873.2401122260605,1997.4816934926141,2127.0856416395914,2262.1644357606792,2402.8305221431542,2549.1963149468606,2701.3741968558461,0,0,0,0,0,0,0,0,0,0,0,0,0,0,0,0,0,0,0,0,0,0,0,0,0,0,0,0,0,0,0,0,0,0,0,0,644.30255029150601,692.37232317068265,742.76970885190201,795.54934185325999,850.76583890452241,908.47379935714707,968.72780557594228,1031.5824233135761,1097.0922020690277,1165.311675431002,1236.2953614072169,1310.0977627404291,0,0,0,0,0,0,0,0,0,0,0,0,1508.4782005700747,1550.5178744958039,1594.5931744992595,1640.7518814869914,1689.0417608086725,1739.5105626156837,1792.2060222036425,1847.1758603399308,1904.4677835771813,1964.1294845536117,2026.208642281006,2090.7529224210953,3481.3093033301784,3670.5368829932781,3868.9271549376685,4076.6951889880243,4294.055984944921,4521.2244741988916,4758.4155212721989,5005.8439252930984,5263.7244214068887,5532.2716821277681,5811.700318635083,6102.22488201737]
[1000400926,4,1,1,1,3,3.0306803023566031,3,3,3,3.0230632761679481,2.1694249845207684E-2,0,0,0,1.6308198974734206E-2,0.12304063405958204,0,0,0,0.3677509745712596,1074.4177691081893,1138.7558890935766,1205.5293811990873,1274.7789533114706,1346.5451674393178,1420.8684430817493,1497.7890604561005,1577.3471635930578,1659.5827633070335,1744.5357400489818,1832.245846648339,1922.7527109502378,0,0,0,0,0,0,0,0,0,0,0,0,0,0,0,0,0,0,0,0,0,0,0,0,0,0,0,0,0,0,0,0,0,0,0,0,521.0652849188798,552.26763635537702,584.65108131446993,618.23536208562689,653.04015021112048,689.08504811975558,726.38959069221403,764.97324676211849,804.85542055658675,846.05545307977627,888.59262344265528,932.4861501419839,0,0,0,0,0,0,0,0,0,0,0,0,1400.7003988154079,1427.988580172191,1456.3096931113746,1485.6810033565534,1516.119714758988,1547.642970726391,1580.2678555919069,1614.0113959268754,1648.8905618006756,1684.9222679907132,1722.1233751453774,1760.5106909025819,2996.183452842477,3119.0121056211447,3246.490155624932,3378.695318753651,3515.7050324094262,3657.5964619278957,3804.4465067402216,3956.3318062820517,4113.3287456642956,4275.5134611194717,4442.961845236372,4615.7495519948034]
[1000400951,4,1,1,1,3,3.0306803023566031,3,3,3,3.0230632761679481,2.1694249845207684E-2,0,0,0,1.6308198974734206E-2,0.12304063405958204,0,0,0,0.3677509745712596,739.68296992500564,782.51894579536281,826.89456934528289,872.832724518654,920.35617212298052,969.48755288782002,1020.2493903900088,1072.6640938538956,1126.7539608341217,1182.5411797879206,1240.0478325433839,1299.2958966696308,0,0,0,0,0,0,0,0,0,0,0,0,0,0,0,0,0,0,0,0,0,0,0,0,0,0,0,0,0,0,0,0,0,0,0,0,358.72742294045759,379.5017814939211,401.02283000346387,423.30166659970598,446.34932969525403,470.17679946796505,494.79499927960688,520.21479703389991,546.44700647759703,573.50238844798412,601.3916520699255,630.12545590533682,0,0,0,0,0,0,0,0,0,0,0,0,1258.7269636480189,1276.8952887158105,1295.7166354310327,1315.2007097224748,1335.3571652922208,1356.1956049128471,1377.7255816681188,1399.9566001406731,1422.8981175498843,1446.559544842873,1470.9502477413887,1496.0795477470858,2357.1373565134822,2438.9160160050942,2523.6340347797795,2611.3351008408345,2702.0626671104555,2795.8599572686321,2892.7699713377342,2992.8354910284688,3096.0990848616029,3202.6031130787778,3312.389732354698,3425.500900322053]
[1000400977,4,1,1,1,3,3.0306803023566031,3,3,3,3.0230632761679481,2.1694249845207684E-2,0,0,0,1.6308198974734206E-2,0.12304063405958204,0,0,0,0.3677509745712596,1182.5411797879206,1240.0478325433839,1299.2958966696308,1360.307247754426,1423.1036615943347,1487.706816302207,1554.1382943363806,1622.4195844557503,1692.5720836045273,1764.6170987302821,1838.5758485386214,1914.4694651876243,0,0,0,0,0,0,0,0,0,0,0,0,0,0,0,0,0,0,0,0,0,0,0,0,0,0,0,0,0,0,0,0,0,0,0,0,573.50238844798412,601.3916520699255,630.12545590533682,659.71440905777058,690.16907223458645,721.49995876902767,753.71753560433149,786.83222424189,820.85440165530952,855.79440117211402,891.6625133247212,928.46898667219887,0,0,0,0,0,0,0,0,0,0,0,0,1446.559544842873,1470.9502477413887,1496.0795477470858,1521.9567231075471,1548.5910097452079,1575.9916021512206,1604.1676542461125,1633.1282802090045,1662.8825552770077,1693.4395165163212,1724.8081635664571,1756.9974593589134,3202.6031130787778,3312.389732354698,3425.500900322053,3541.9783799197435,3661.8637435741293,3785.1983772224548,3912.0234841868246,4042.3800889066447,4176.3090405368448,4313.8510164187173,4455.0465254297997,4599.9359112187367]
[1000404003,4,1,1,1,3,3.0306803023566031,3,3,3,3.0230632761679481,2.1694249845207684E-2,0,0,0,1.6308198974734206E-2,0.12304063405958204,0,0,0,0.3677509745712596,480.99161146397978,513.7018601901292,547.78783176970308,583.27337102005492,620.18217362168446,658.53779041037683,698.36363145339078,739.68296992500564,782.51894579536281,826.89456934528289,872.832724518654,920.35617212298052,0,0,0,0,0,0,0,0,0,0,0,0,0,0,0,0,0,0,0,0,0,0,0,0,0,0,0,0,0,0,0,0,0,0,0,0,233.26869517348106,249.13233365965937,265.66316273147368,282.8727465187302,300.7725768236553,319.37407520247342,338.68859494225489,358.72742294045759,379.5017814939211,401.02283000346387,423.30166659970598,446.34932969525403,0,0,0,0,0,0,0,0,0,0,0,0,1149.0063702156904,1162.8799990949205,1177.3371230269972,1192.3878554827602,1208.0422466785822,1224.310285396823,1241.2019007146939,1258.7269636480189,1276.8952887158105,1295.7166354310327,1315.2007097224748,1335.3571652922208,1863.2666768531512,1925.7141929447089,1990.7881175281741,2058.5339730215455,2128.996997123922,2202.2221510096733,2278.2541271103396,2357.1373565134822,2438.9160160050942,2523.6340347797795,2611.3351008408345,2702.0626671104555]
[1000404028,4,1,1,1,3,3.0306803023566031,3,3,3,3.0230632761679481,2.1694249845207684E-2,0,0,0,1.6308198974734206E-2,0.12304063405958204,0,0,0,0.3677509745712596,480.99161146397978,513.7018601901292,547.78783176970308,583.27337102005492,620.18217362168446,658.53779041037683,698.36363145339078,739.68296992500564,782.51894579536281,826.89456934528289,872.832724518654,920.35617212298052,0,0,0,0,0,0,0,0,0,0,0,0,0,0,0,0,0,0,0,0,0,0,0,0,0,0,0,0,0,0,0,0,0,0,0,0,233.26869517348106,249.13233365965937,265.66316273147368,282.8727465187302,300.7725768236553,319.37407520247342,338.68859494225489,358.72742294045759,379.5017814939211,401.02283000346387,423.30166659970598,446.34932969525403,0,0,0,0,0,0,0,0,0,0,0,0,1149.0063702156904,1162.8799990949205,1177.3371230269972,1192.3878554827602,1208.0422466785822,1224.310285396823,1241.2019007146939,1258.7269636480189,1276.8952887158105,1295.7166354310327,1315.2007097224748,1335.3571652922208,1863.2666768531512,1925.7141929447089,1990.7881175281741,2058.5339730215455,2128.996997123922,2202.2221510096733,2278.2541271103396,2357.1373565134822,2438.9160160050942,2523.6340347797795,2611.3351008408345,2702.0626671104555]
[1000404055,4,1,1,1,3,3.0306803023566031,3,3,3,3.0230632761679481,2.1694249845207684E-2,0,0,0,1.6308198974734206E-2,0.12304063405958204,0,0,0,0.3677509745712596,169.79675841755133,186.86987564701454,204.9926837289363,224.19149595049328,244.49238997319185,265.92121744920513,288.50361295780101,312.26500232903965,337.23061041350149,363.4254683496606,390.8744203744061,419.60213021697916,0,0,0,0,0,0,0,0,0,0,0,0,0,0,0,0,0,0,0,0,0,0,0,0,0,0,0,0,0,0,0,0,0,0,0,0,82.347108217115235,90.627135734724064,99.416236611727371,108.72717212299804,118.57258927095313,128.96502544923271,139.91691277664015,151.44058213392361,163.54826693189656,176.25210663592875,189.56415006887616,203.49635851197752,0,0,0,0,0,0,0,0,0,0,0,0,1017.0170987051594,1024.2584405315763,1031.9449951549625,1040.0879230157029,1048.6982846166022,1057.7870446015299,1067.3650755456906,1077.443161486013,1088.0320012165785,1099.142211370985,1110.7843293109406,1122.9688158381693,1269.1609653398259,1301.755451913315,1336.3539154956261,1373.0065910891944,1411.7632638607472,1452.6732874999677,1495.7856012801317,1541.1487459489761,1588.8108785619766,1638.8197863565745,1691.2228997542229,1746.067304567126]
[1000404080,4,1,1,1,3,3.0306803023566031,3,3,3,3.0230632761679481,2.1694249845207684E-2,0,0,0,1.6308198974734206E-2,0.12304063405958204,0,0,0,0.3677509745712596,169.79675841755133,186.86987564701454,204.9926837289363,224.19149595049328,244.49238997319185,265.92121744920513,288.50361295780101,312.26500232903965,337.23061041350149,363.4254683496606,390.8744203744061,419.60213021697916,0,0,0,0,0,0,0,0,0,0,0,0,0,0,0,0,0,0,0,0,0,0,0,0,0,0,0,0,0,0,0,0,0,0,0,0,82.347108217115235,90.627135734724064,99.416236611727371,108.72717212299804,118.57258927095313,128.96502544923271,139.91691277664015,151.44058213392361,163.54826693189656,176.25210663592875,189.56415006887616,203.49635851197752,0,0,0,0,0,0,0,0,0,0,0,0,1017.0170987051594,1024.2584405315763,1031.9449951549625,1040.0879230157029,1048.6982846166022,1057.7870446015299,1067.3650755456906,1077.443161486013,1088.0320012165785,1099.142211370985,1110.7843293109406,1122.9688158381693,1269.1609653398259,1301.755451913315,1336.3539154956261,1373.0065910891944,1411.7632638607472,1452.6732874999677,1495.7856012801317,1541.1487459489761,1588.8108785619766,1638.8197863565745,1691.2228997542229,1746.067304567126]
[1000404108,4,1,1,1,3,3.0306803023566031,3,3,3,3.0230632761679481,2.1694249845207684E-2,0,0,0,1.6308198974734206E-2,0.12304063405958204,0,0,0,0.3677509745712596,363.4254683496606,390.8744203744061,419.60213021697916,449.63308711207839,480.99161146397978,513.7018601901292,547.78783176970308,583.27337102005492,620.18217362168446,658.53779041037683,698.36363145339078,739.68296992500564,0,0,0,0,0,0,0,0,0,0,0,0,0,0,0,0,0,0,0,0,0,0,0,0,0,0,0,0,0,0,0,0,0,0,0,0,176.25210663592875,189.56415006887616,203.49635851197752,218.06060862105755,233.26869517348106,249.13233365965937,265.66316273147368,282.8727465187302,300.7725768236553,319.37407520247342,338.68859494225489,358.72742294045759,0,0,0,0,0,0,0,0,0,0,0,0,1099.142211370985,1110.7843293109406,1122.9688158381693,1135.7060577447921,1149.0063702156904,1162.8799990949205,1177.3371230269972,1192.3878554827602,1208.0422466785822,1224.310285396823,1241.2019007146939,1258.7269636480189,1638.8197863565745,1691.2228997542229,1746.067304567126,1803.399753477928,1863.2666768531512,1925.7141929447089,1990.7881175281741,2058.5339730215455,2128.996997123922,2202.2221510096733,2278.2541271103396,2357.1373565134822]
[1000404159,4,1,1,1,3,3.0306803023566031,3,3,3,3.0230632761679481,2.1694249845207684E-2,0,0,0,1.6308198974734206E-2,0.12304063405958204,0,0,0,0.3677509745712596,1126.7539608341217,1182.5411797879206,1240.0478325433839,1299.2958966696308,1360.307247754426,1423.1036615943347,1487.706816302207,1554.1382943363806,1622.4195844557503,1692.5720836045273,1764.6170987302821,1838.5758485386214,0,0,0,0,0,0,0,0,0,0,0,0,0,0,0,0,0,0,0,0,0,0,0,0,0,0,0,0,0,0,0,0,0,0,0,0,546.44700647759703,573.50238844798412,601.3916520699255,630.12545590533682,659.71440905777058,690.16907223458645,721.49995876902767,753.71753560433149,786.83222424189,820.85440165530952,855.79440117211402,891.6625133247212,0,0,0,0,0,0,0,0,0,0,0,0,1422.8981175498843,1446.559544842873,1470.9502477413887,1496.0795477470858,1521.9567231075471,1548.5910097452079,1575.9916021512206,1604.1676542461125,1633.1282802090045,1662.8825552770077,1693.4395165163212,1724.8081635664571,3096.0990848616029,3202.6031130787778,3312.389732354698,3425.500900322053,3541.9783799197435,3661.8637435741293,3785.1983772224548,3912.0234841868246,4042.3800889066447,4176.3090405368448,4313.8510164187173,4455.0465254297997]
[1000404179,4,1,1,1,3,3.0306803023566031,3,3,3,3.0230632761679481,2.1694249845207684E-2,0,0,0,1.6308198974734206E-2,0.12304063405958204,0,0,0,0.3677509745712596,7.6556855199203593,10.208320333996825,13.243260944614924,16.795287547117443,20.898335090615813,25.585582173483054,30.889524476582746,36.842036338549633,43.474423051897745,50.817465771241231,58.901460450564159,67.756251890949088,0,0,0,0,0,0,0,0,0,0,0,0,0,0,0,0,0,0,0,0,0,0,0,0,0,0,0,0,0,0,0,0,0,0,0,0,3.7128127171591463,4.9507756631690896,6.4226446506824182,8.1452871896351073,10.135160867043924,12.408356459059,14.980633544211758,17.867450365859522,21.08398919446757,24.64517810695375,28.565709870273789,32.860058453703466,0,0,0,0,0,0,0,0,0,0,0,0,948.24705998443119,949.32972702163988,950.61695782366553,952.12350396046941,953.86375850175716,955.85179372085247,958.10139224045133,960.62607314898037,963.43911418131495,966.55357076602024,969.98229254009038,973.73793778985203,959.6155582215107,964.48882301880587,970.28286341896285,977.06407869722204,984.8972544594169,993.84573235339451,1003.9715502612459,1015.3355598533896,1027.9975264276802,1042.0162146442151,1057.4494628609282,1074.3542481345046]
[1000404301,4,1,1,1,3,3.0306803023566031,3,3,3,3.0230632761679481,2.1694249845207684E-2,0,0,0,1.6308198974734206E-2,0.12304063405958204,0,0,0,0.3677509745712596,872.832724518654,920.35617212298052,969.48755288782002,1020.2493903900088,1072.6640938538956,1126.7539608341217,1182.5411797879206,1240.0478325433839,1299.2958966696308,1360.307247754426,1423.1036615943347,1487.706816302207,0,0,0,0,0,0,0,0,0,0,0,0,0,0,0,0,0,0,0,0,0,0,0,0,0,0,0,0,0,0,0,0,0,0,0,0,423.30166659970598,446.34932969525403,470.17679946796505,494.79499927960688,520.21479703389991,546.44700647759703,573.50238844798412,601.3916520699255,630.12545590533682,659.71440905777058,690.16907223458645,721.49995876902767,0,0,0,0,0,0,0,0,0,0,0,0,1315.2007097224748,1335.3571652922208,1356.1956049128471,1377.7255816681188,1399.9566001406731,1422.8981175498843,1446.559544842873,1470.9502477413887,1496.0795477470858,1521.9567231075471,1548.5910097452079,1575.9916021512206,2611.3351008408345,2702.0626671104555,2795.8599572686321,2892.7699713377342,2992.8354910284688,3096.0990848616029,3202.6031130787778,3312.389732354698,3425.500900322053,3541.9783799197435,3661.8637435741293,3785.1983772224548]
[1000404323,4,1,1,1,3,3.0306803023566031,3,3,3,3.0230632761679481,2.1694249845207684E-2,0,0,0,1.6308198974734206E-2,0.12304063405958204,0,0,0,0.3677509745712596,872.832724518654,920.35617212298052,969.48755288782002,1020.2493903900088,1072.6640938538956,1126.7539608341217,1182.5411797879206,1240.0478325433839,1299.2958966696308,1360.307247754426,1423.1036615943347,1487.706816302207,0,0,0,0,0,0,0,0,0,0,0,0,0,0,0,0,0,0,0,0,0,0,0,0,0,0,0,0,0,0,0,0,0,0,0,0,423.30166659970598,446.34932969525403,470.17679946796505,494.79499927960688,520.21479703389991,546.44700647759703,573.50238844798412,601.3916520699255,630.12545590533682,659.71440905777058,690.16907223458645,721.49995876902767,0,0,0,0,0,0,0,0,0,0,0,0,1315.2007097224748,1335.3571652922208,1356.1956049128471,1377.7255816681188,1399.9566001406731,1422.8981175498843,1446.559544842873,1470.9502477413887,1496.0795477470858,1521.9567231075471,1548.5910097452079,1575.9916021512206,2611.3351008408345,2702.0626671104555,2795.8599572686321,2892.7699713377342,2992.8354910284688,3096.0990848616029,3202.6031130787778,3312.389732354698,3425.500900322053,3541.9783799197435,3661.8637435741293,3785.1983772224548]
[1000404408,4,1,1,1,3,3.0306803023566031,3,3,3,3.0230632761679481,2.1694249845207684E-2,0,0,0,1.6308198974734206E-2,0.12304063405958204,0,0,0,0.3677509745712596,2572.1773649121155,2705.7427374175149,2843.7816600850119,2986.3643285911803,3133.5608325386338,3285.4411573805737,3442.0751862794764,3603.5327019031511,3769.8833881612809,3941.1968318852901,4117.5425244542548,4298.9898633693501,0,0,0,0,0,0,0,0,0,0,0,0,0,0,0,0,0,0,0,0,0,0,0,0,0,0,0,0,0,0,0,0,0,0,0,0,1247.4405860043678,1312.2163937775304,1379.1617595725666,1448.3107265068427,1519.6972862545526,1593.355379980075,1669.3188992393884,1747.6216868511156,1828.2975377387004,1911.3801997450998,1996.9033744213107,2084.9007177899371,0,0,0,0,0,0,0,0,0,0,0,0,2035.9557573562306,2092.605782391799,2151.1532058617599,2211.6278003543271,2274.0592934678161,2338.4773686269182,2404.9116658710345,2473.391782616055,2543.9472743908873,2616.6076555499512,2691.4023999627871,2768.360941681839,5855.5737082727137,6110.5649135868443,6374.096625519338,6646.3028554523498,6927.3174122610026,7217.2739059875666,7516.3057513898993,7824.5461713703216,8142.1282002908683,8469.1846871803409,8805.848298838353,9152.2515228411266]
[1000404433,4,1,1,1,3,3.0306803023566031,3,3,3,3.0230632761679481,2.1694249845207684E-2,0,0,0,1.6308198974734206E-2,0.12304063405958204,0,0,0,0.3677509745712596,1126.7539608341217,1182.5411797879206,1240.0478325433839,1299.2958966696308,1360.307247754426,1423.1036615943347,1487.706816302207,1554.1382943363806,1622.4195844557503,1692.5720836045273,1764.6170987302821,1838.5758485386214,0,0,0,0,0,0,0,0,0,0,0,0,0,0,0,0,0,0,0,0,0,0,0,0,0,0,0,0,0,0,0,0,0,0,0,0,546.44700647759703,573.50238844798412,601.3916520699255,630.12545590533682,659.71440905777058,690.16907223458645,721.49995876902767,753.71753560433149,786.83222424189,820.85440165530952,855.79440117211402,891.6625133247212,0,0,0,0,0,0,0,0,0,0,0,0,1422.8981175498843,1446.559544842873,1470.9502477413887,1496.0795477470858,1521.9567231075471,1548.5910097452079,1575.9916021512206,1604.1676542461125,1633.1282802090045,1662.8825552770077,1693.4395165163212,1724.8081635664571,3096.0990848616029,3202.6031130787778,3312.389732354698,3425.500900322053,3541.9783799197435,3661.8637435741293,3785.1983772224548,3912.0234841868246,4042.3800889066447,4176.3090405368448,4313.8510164187173,4455.0465254297997]
[1000404524,4,1,1,1,3,3.0306803023566031,3,3,3,3.0230632761679481,2.1694249845207684E-2,0,0,0,1.6308198974734206E-2,0.12304063405958204,0,0,0,0.3677509745712596,620.18217362168446,658.53779041037683,698.36363145339078,739.68296992500564,782.51894579536281,826.89456934528289,872.832724518654,920.35617212298052,969.48755288782002,1020.2493903900088,1072.6640938538956,1126.7539608341217,0,0,0,0,0,0,0,0,0,0,0,0,0,0,0,0,0,0,0,0,0,0,0,0,0,0,0,0,0,0,0,0,0,0,0,0,300.7725768236553,319.37407520247342,338.68859494225489,358.72742294045759,379.5017814939211,401.02283000346387,423.30166659970598,446.34932969525403,470.17679946796505,494.79499927960688,520.21479703389991,546.44700647759703,0,0,0,0,0,0,0,0,0,0,0,0,1208.0422466785822,1224.310285396823,1241.2019007146939,1258.7269636480189,1276.8952887158105,1295.7166354310327,1315.2007097224748,1335.3571652922208,1356.1956049128471,1377.7255816681188,1399.9566001406731,1422.8981175498843,2128.996997123922,2202.2221510096733,2278.2541271103396,2357.1373565134822,2438.9160160050942,2523.6340347797795,2611.3351008408345,2702.0626671104555,2795.8599572686321,2892.7699713377342,2992.8354910284688,3096.0990848616029]
[1000404605,4,1,1,1,3,3.0306803023566031,3,3,3,3.0230632761679481,2.1694249845207684E-2,0,0,0,1.6308198974734206E-2,0.12304063405958204,0,0,0,0.3677509745712596,739.68296992500564,782.51894579536281,826.89456934528289,872.832724518654,920.35617212298052,969.48755288782002,1020.2493903900088,1072.6640938538956,1126.7539608341217,1182.5411797879206,1240.0478325433839,1299.2958966696308,0,0,0,0,0,0,0,0,0,0,0,0,0,0,0,0,0,0,0,0,0,0,0,0,0,0,0,0,0,0,0,0,0,0,0,0,358.72742294045759,379.5017814939211,401.02283000346387,423.30166659970598,446.34932969525403,470.17679946796505,494.79499927960688,520.21479703389991,546.44700647759703,573.50238844798412,601.3916520699255,630.12545590533682,0,0,0,0,0,0,0,0,0,0,0,0,1258.7269636480189,1276.8952887158105,1295.7166354310327,1315.2007097224748,1335.3571652922208,1356.1956049128471,1377.7255816681188,1399.9566001406731,1422.8981175498843,1446.559544842873,1470.9502477413887,1496.0795477470858,2357.1373565134822,2438.9160160050942,2523.6340347797795,2611.3351008408345,2702.0626671104555,2795.8599572686321,2892.7699713377342,2992.8354910284688,3096.0990848616029,3202.6031130787778,3312.389732354698,3425.500900322053]
[1000404625,4,1,1,1,3,3.0306803023566031,3,3,3,3.0230632761679481,2.1694249845207684E-2,0,0,0,1.6308198974734206E-2,0.12304063405958204,0,0,0,0.3677509745712596,739.68296992500564,782.51894579536281,826.89456934528289,872.832724518654,920.35617212298052,969.48755288782002,1020.2493903900088,1072.6640938538956,1126.7539608341217,1182.5411797879206,1240.0478325433839,1299.2958966696308,0,0,0,0,0,0,0,0,0,0,0,0,0,0,0,0,0,0,0,0,0,0,0,0,0,0,0,0,0,0,0,0,0,0,0,0,358.72742294045759,379.5017814939211,401.02283000346387,423.30166659970598,446.34932969525403,470.17679946796505,494.79499927960688,520.21479703389991,546.44700647759703,573.50238844798412,601.3916520699255,630.12545590533682,0,0,0,0,0,0,0,0,0,0,0,0,1258.7269636480189,1276.8952887158105,1295.7166354310327,1315.2007097224748,1335.3571652922208,1356.1956049128471,1377.7255816681188,1399.9566001406731,1422.8981175498843,1446.559544842873,1470.9502477413887,1496.0795477470858,2357.1373565134822,2438.9160160050942,2523.6340347797795,2611.3351008408345,2702.0626671104555,2795.8599572686321,2892.7699713377342,2992.8354910284688,3096.0990848616029,3202.6031130787778,3312.389732354698,3425.500900322053]
[1000404725,4,1,1,1,3,3.0306803023566031,3,3,3,3.0230632761679481,2.1694249845207684E-2,0,0,0,1.6308198974734206E-2,0.12304063405958204,0,0,0,0.3677509745712596,1074.4177691081893,1138.7558890935766,1205.5293811990873,1274.7789533114706,1346.5451674393178,1420.8684430817493,1497.7890604561005,1577.3471635930578,1659.5827633070335,1744.5357400489818,1832.245846648339,1922.7527109502378,0,0,0,0,0,0,0,0,0,0,0,0,0,0,0,0,0,0,0,0,0,0,0,0,0,0,0,0,0,0,0,0,0,0,0,0,521.0652849188798,552.26763635537702,584.65108131446993,618.23536208562689,653.04015021112048,689.08504811975558,726.38959069221403,764.97324676211849,804.85542055658675,846.05545307977627,888.59262344265528,932.4861501419839,0,0,0,0,0,0,0,0,0,0,0,0,1400.7003988154079,1427.988580172191,1456.3096931113746,1485.6810033565534,1516.119714758988,1547.642970726391,1580.2678555919069,1614.0113959268754,1648.8905618006756,1684.9222679907132,1722.1233751453774,1760.5106909025819,2996.183452842477,3119.0121056211447,3246.490155624932,3378.695318753651,3515.7050324094262,3657.5964619278957,3804.4465067402216,3956.3318062820517,4113.3287456642956,4275.5134611194717,4442.961845236372,4615.7495519948034]
[1000404743,4,1,1,1,3,3.0306803023566031,3,3,3,3.0230632761679481,2.1694249845207684E-2,0,0,0,1.6308198974734206E-2,0.12304063405958204,0,0,0,0.3677509745712596,2127.0856416395914,2262.1644357606792,2402.8305221431542,2549.1963149468606,2701.3741968558461,2859.4765197042443,3023.6156050779236,3193.9037448932627,3370.453201954324,3553.376210489645,3742.7849766696972,3938.7916791060711,0,0,0,0,0,0,0,0,0,0,0,0,0,0,0,0,0,0,0,0,0,0,0,0,0,0,0,0,0,0,0,0,0,0,0,0,1031.5824233135761,1097.0922020690277,1165.311675431002,1236.2953614072169,1310.0977627404291,1386.7733672119723,1466.3766479335409,1548.9620636278812,1634.5840588990075,1723.297064492531,1815.1554975466147,1910.2137618340651,0,0,0,0,0,0,0,0,0,0,0,0,1847.1758603399308,1904.4677835771813,1964.1294845536117,2026.208642281006,2090.7529224210953,2157.8099775510191,2227.4274474185058,2299.652959187355,2374.5341276737518,2452.1185555739448,2532.453833683714,2615.5875411100978,5005.8439252930984,5263.7244214068887,5532.2716821277681,5811.700318635083,6102.22488201737,6404.0598644672355,6717.4197004299704,7042.5187677084996,7379.5713885270834,7728.7918305561207,8090.3943079000264,8464.5929820502333]
[1000404873,4,1,1,1,3,3.0306803023566031,3,3,3,3.0230632761679481,2.1694249845207684E-2,0,0,0,1.6308198974734206E-2,0.12304063405958204,0,0,0,0.3677509745712596,1074.4177691081893,1138.7558890935766,1205.5293811990873,1274.7789533114706,1346.5451674393178,1420.8684430817493,1497.7890604561005,1577.3471635930578,1659.5827633070335,1744.5357400489818,1832.245846648339,1922.7527109502378,0,0,0,0,0,0,0,0,0,0,0,0,0,0,0,0,0,0,0,0,0,0,0,0,0,0,0,0,0,0,0,0,0,0,0,0,521.0652849188798,552.26763635537702,584.65108131446993,618.23536208562689,653.04015021112048,689.08504811975558,726.38959069221403,764.97324676211849,804.85542055658675,846.05545307977627,888.59262344265528,932.4861501419839,0,0,0,0,0,0,0,0,0,0,0,0,1400.7003988154079,1427.988580172191,1456.3096931113746,1485.6810033565534,1516.119714758988,1547.642970726391,1580.2678555919069,1614.0113959268754,1648.8905618006756,1684.9222679907132,1722.1233751453774,1760.5106909025819,2996.183452842477,3119.0121056211447,3246.490155624932,3378.695318753651,3515.7050324094262,3657.5964619278957,3804.4465067402216,3956.3318062820517,4113.3287456642956,4275.5134611194717,4442.961845236372,4615.7495519948034]
[1000404895,4,1,1,1,3,3.0306803023566031,3,3,3,3.0230632761679481,2.1694249845207684E-2,0,0,0,1.6308198974734206E-2,0.12304063405958204,0,0,0,0.3677509745712596,1074.4177691081893,1138.7558890935766,1205.5293811990873,1274.7789533114706,1346.5451674393178,1420.8684430817493,1497.7890604561005,1577.3471635930578,1659.5827633070335,1744.5357400489818,1832.245846648339,1922.7527109502378,0,0,0,0,0,0,0,0,0,0,0,0,0,0,0,0,0,0,0,0,0,0,0,0,0,0,0,0,0,0,0,0,0,0,0,0,521.0652849188798,552.26763635537702,584.65108131446993,618.23536208562689,653.04015021112048,689.08504811975558,726.38959069221403,764.97324676211849,804.85542055658675,846.05545307977627,888.59262344265528,932.4861501419839,0,0,0,0,0,0,0,0,0,0,0,0,1400.7003988154079,1427.988580172191,1456.3096931113746,1485.6810033565534,1516.119714758988,1547.642970726391,1580.2678555919069,1614.0113959268754,1648.8905618006756,1684.9222679907132,1722.1233751453774,1760.5106909025819,2996.183452842477,3119.0121056211447,3246.490155624932,3378.695318753651,3515.7050324094262,3657.5964619278957,3804.4465067402216,3956.3318062820517,4113.3287456642956,4275.5134611194717,4442.961845236372,4615.7495519948034]
[1000407011,4,1,1,1,3,3.0306803023566031,3,3,3,3.0230632761679481,2.1694249845207684E-2,0,0,0,1.6308198974734206E-2,0.12304063405958204,0,0,0,0.3677509745712596,920.35617212298052,969.48755288782002,1020.2493903900088,1072.6640938538956,1126.7539608341217,1182.5411797879206,1240.0478325433839,1299.2958966696308,1360.307247754426,1423.1036615943347,1487.706816302207,1554.1382943363806,0,0,0,0,0,0,0,0,0,0,0,0,0,0,0,0,0,0,0,0,0,0,0,0,0,0,0,0,0,0,0,0,0,0,0,0,446.34932969525403,470.17679946796505,494.79499927960688,520.21479703389991,546.44700647759703,573.50238844798412,601.3916520699255,630.12545590533682,659.71440905777058,690.16907223458645,721.49995876902767,753.71753560433149,0,0,0,0,0,0,0,0,0,0,0,0,1335.3571652922208,1356.1956049128471,1377.7255816681188,1399.9566001406731,1422.8981175498843,1446.559544842873,1470.9502477413887,1496.0795477470858,1521.9567231075471,1548.5910097452079,1575.9916021512206,1604.1676542461125,2702.0626671104555,2795.8599572686321,2892.7699713377342,2992.8354910284688,3096.0990848616029,3202.6031130787778,3312.389732354698,3425.500900322053,3541.9783799197435,3661.8637435741293,3785.1983772224548,3912.0234841868246]
[1000407031,4,1,1,1,3,3.0306803023566031,3,3,3,3.0230632761679481,2.1694249845207684E-2,0,0,0,1.6308198974734206E-2,0.12304063405958204,0,0,0,0.3677509745712596,547.78783176970308,583.27337102005492,620.18217362168446,658.53779041037683,698.36363145339078,739.68296992500564,782.51894579536281,826.89456934528289,872.832724518654,920.35617212298052,969.48755288782002,1020.2493903900088,0,0,0,0,0,0,0,0,0,0,0,0,0,0,0,0,0,0,0,0,0,0,0,0,0,0,0,0,0,0,0,0,0,0,0,0,265.66316273147368,282.8727465187302,300.7725768236553,319.37407520247342,338.68859494225489,358.72742294045759,379.5017814939211,401.02283000346387,423.30166659970598,446.34932969525403,470.17679946796505,494.79499927960688,0,0,0,0,0,0,0,0,0,0,0,0,1177.3371230269972,1192.3878554827602,1208.0422466785822,1224.310285396823,1241.2019007146939,1258.7269636480189,1276.8952887158105,1295.7166354310327,1315.2007097224748,1335.3571652922208,1356.1956049128471,1377.7255816681188,1990.7881175281741,2058.5339730215455,2128.996997123922,2202.2221510096733,2278.2541271103396,2357.1373565134822,2438.9160160050942,2523.6340347797795,2611.3351008408345,2702.0626671104555,2795.8599572686321,2892.7699713377342]
[1000407052,4,1,1,1,3,3.0306803023566031,3,3,3,3.0230632761679481,2.1694249845207684E-2,0,0,0,1.6308198974734206E-2,0.12304063405958204,0,0,0,0.3677509745712596,547.78783176970308,583.27337102005492,620.18217362168446,658.53779041037683,698.36363145339078,739.68296992500564,782.51894579536281,826.89456934528289,872.832724518654,920.35617212298052,969.48755288782002,1020.2493903900088,0,0,0,0,0,0,0,0,0,0,0,0,0,0,0,0,0,0,0,0,0,0,0,0,0,0,0,0,0,0,0,0,0,0,0,0,265.66316273147368,282.8727465187302,300.7725768236553,319.37407520247342,338.68859494225489,358.72742294045759,379.5017814939211,401.02283000346387,423.30166659970598,446.34932969525403,470.17679946796505,494.79499927960688,0,0,0,0,0,0,0,0,0,0,0,0,1177.3371230269972,1192.3878554827602,1208.0422466785822,1224.310285396823,1241.2019007146939,1258.7269636480189,1276.8952887158105,1295.7166354310327,1315.2007097224748,1335.3571652922208,1356.1956049128471,1377.7255816681188,1990.7881175281741,2058.5339730215455,2128.996997123922,2202.2221510096733,2278.2541271103396,2357.1373565134822,2438.9160160050942,2523.6340347797795,2611.3351008408345,2702.0626671104555,2795.8599572686321,2892.7699713377342]
[1000407221,4,1,1,1,3,3.0306803023566031,3,3,3,3.0230632761679481,2.1694249845207684E-2,0,0,0,1.6308198974734206E-2,0.12304063405958204,0,0,0,0.3677509745712596,1240.0478325433839,1299.2958966696308,1360.307247754426,1423.1036615943347,1487.706816302207,1554.1382943363806,1622.4195844557503,1692.5720836045273,1764.6170987302821,1838.5758485386214,1914.4694651876243,1992.3189959249894,0,0,0,0,0,0,0,0,0,0,0,0,0,0,0,0,0,0,0,0,0,0,0,0,0,0,0,0,0,0,0,0,0,0,0,0,601.3916520699255,630.12545590533682,659.71440905777058,690.16907223458645,721.49995876902767,753.71753560433149,786.83222424189,820.85440165530952,855.79440117211402,891.6625133247212,928.46898667219887,966.22402859424074,0,0,0,0,0,0,0,0,0,0,0,0,1470.9502477413887,1496.0795477470858,1521.9567231075471,1548.5910097452079,1575.9916021512206,1604.1676542461125,1633.1282802090045,1662.8825552770077,1693.4395165163212,1724.8081635664571,1756.9974593589134,1790.016330811548,3312.389732354698,3425.500900322053,3541.9783799197435,3661.8637435741293,3785.1983772224548,3912.0234841868246,4042.3800889066447,4176.3090405368448,4313.8510164187173,4455.0465254297997,4599.9359112187367,4748.5593553307781]
[1000407240,4,1,1,1,3,3.0306803023566031,3,3,3,3.0230632761679481,2.1694249845207684E-2,0,0,0,1.6308198974734206E-2,0.12304063405958204,0,0,0,0.3677509745712596,1832.245846648339,1922.7527109502378,2016.0958383537586,2112.3146142565274,2211.448306410618,2313.5360671943886,2418.6169358045431,2526.7298403724526,2637.9136000084891,2752.2069267778838,2869.6484276114243,2990.2766061540497,0,0,0,0,0,0,0,0,0,0,0,0,0,0,0,0,0,0,0,0,0,0,0,0,0,0,0,0,0,0,0,0,0,0,0,0,888.59262344265528,932.4861501419839,977.75519229130191,1024.4188508064967,1072.4961695483562,1122.00613642435,1172.9676844517262,1225.3996927838714,1279.3209877017612,1334.7503435722006,1391.706483774464,1450.2080815968186,0,0,0,0,0,0,0,0,0,0,0,0,1722.1233751453774,1760.5106909025819,1800.1009709663313,1840.9109201435649,1882.957193343384,1926.2563965406198,1970.8250877055691,2016.679777701605,2063.8369311522533,2112.3129672792293,2162.1242607128315,2213.287142276004,4442.961845236372,4615.7495519948034,4793.9520016113911,4977.6443852065895,5166.9016693023586,5361.7986001593581,5562.4097079618386,5768.8093108579287,5981.0715188625036,6199.2702376293137,6423.4791720987196,6653.7718300268725]
[1000407262,4,1,1,1,3,3.0306803023566031,3,3,3,3.0230632761679481,2.1694249845207684E-2,0,0,0,1.6308198974734206E-2,0.12304063405958204,0,0,0,0.3677509745712596,2572.1773649121155,2705.7427374175149,2843.7816600850119,2986.3643285911803,3133.5608325386338,3285.4411573805737,3442.0751862794764,3603.5327019031511,3769.8833881612809,3941.1968318852901,4117.5425244542548,4298.9898633693501,0,0,0,0,0,0,0,0,0,0,0,0,0,0,0,0,0,0,0,0,0,0,0,0,0,0,0,0,0,0,0,0,0,0,0,0,1247.4405860043678,1312.2163937775304,1379.1617595725666,1448.3107265068427,1519.6972862545526,1593.355379980075,1669.3188992393884,1747.6216868511156,1828.2975377387004,1911.3801997450998,1996.9033744213107,2084.9007177899371,0,0,0,0,0,0,0,0,0,0,0,0,2035.9557573562306,2092.605782391799,2151.1532058617599,2211.6278003543271,2274.0592934678161,2338.4773686269182,2404.9116658710345,2473.391782616055,2543.9472743908873,2616.6076555499512,2691.4023999627871,2768.360941681839,5855.5737082727137,6110.5649135868443,6374.096625519338,6646.3028554523498,6927.3174122610026,7217.2739059875666,7516.3057513898993,7824.5461713703216,8142.1282002908683,8469.1846871803409,8805.848298838353,9152.2515228411266]
[1000407283,4,1,1,1,3,3.0306803023566031,3,3,3,3.0230632761679481,2.1694249845207684E-2,0,0,0,1.6308198974734206E-2,0.12304063405958204,0,0,0,0.3677509745712596,1182.5411797879206,1240.0478325433839,1299.2958966696308,1360.307247754426,1423.1036615943347,1487.706816302207,1554.1382943363806,1622.4195844557503,1692.5720836045273,1764.6170987302821,1838.5758485386214,1914.4694651876243,0,0,0,0,0,0,0,0,0,0,0,0,0,0,0,0,0,0,0,0,0,0,0,0,0,0,0,0,0,0,0,0,0,0,0,0,573.50238844798412,601.3916520699255,630.12545590533682,659.71440905777058,690.16907223458645,721.49995876902767,753.71753560433149,786.83222424189,820.85440165530952,855.79440117211402,891.6625133247212,928.46898667219887,0,0,0,0,0,0,0,0,0,0,0,0,1446.559544842873,1470.9502477413887,1496.0795477470858,1521.9567231075471,1548.5910097452079,1575.9916021512206,1604.1676542461125,1633.1282802090045,1662.8825552770077,1693.4395165163212,1724.8081635664571,1756.9974593589134,3202.6031130787778,3312.389732354698,3425.500900322053,3541.9783799197435,3661.8637435741293,3785.1983772224548,3912.0234841868246,4042.3800889066447,4176.3090405368448,4313.8510164187173,4455.0465254297997,4599.9359112187367]
[1000407304,4,1,1,1,3,3.0306803023566031,3,3,3,3.0230632761679481,2.1694249845207684E-2,0,0,0,1.6308198974734206E-2,0.12304063405958204,0,0,0,0.3677509745712596,1126.7539608341217,1182.5411797879206,1240.0478325433839,1299.2958966696308,1360.307247754426,1423.1036615943347,1487.706816302207,1554.1382943363806,1622.4195844557503,1692.5720836045273,1764.6170987302821,1838.5758485386214,0,0,0,0,0,0,0,0,0,0,0,0,0,0,0,0,0,0,0,0,0,0,0,0,0,0,0,0,0,0,0,0,0,0,0,0,546.44700647759703,573.50238844798412,601.3916520699255,630.12545590533682,659.71440905777058,690.16907223458645,721.49995876902767,753.71753560433149,786.83222424189,820.85440165530952,855.79440117211402,891.6625133247212,0,0,0,0,0,0,0,0,0,0,0,0,1422.8981175498843,1446.559544842873,1470.9502477413887,1496.0795477470858,1521.9567231075471,1548.5910097452079,1575.9916021512206,1604.1676542461125,1633.1282802090045,1662.8825552770077,1693.4395165163212,1724.8081635664571,3096.0990848616029,3202.6031130787778,3312.389732354698,3425.500900322053,3541.9783799197435,3661.8637435741293,3785.1983772224548,3912.0234841868246,4042.3800889066447,4176.3090405368448,4313.8510164187173,4455.0465254297997]
[1000407324,4,1,1,1,3,3.0306803023566031,3,3,3,3.0230632761679481,2.1694249845207684E-2,0,0,0,1.6308198974734206E-2,0.12304063405958204,0,0,0,0.3677509745712596,969.48755288782002,1020.2493903900088,1072.6640938538956,1126.7539608341217,1182.5411797879206,1240.0478325433839,1299.2958966696308,1360.307247754426,1423.1036615943347,1487.706816302207,1554.1382943363806,1622.4195844557503,0,0,0,0,0,0,0,0,0,0,0,0,0,0,0,0,0,0,0,0,0,0,0,0,0,0,0,0,0,0,0,0,0,0,0,0,470.17679946796505,494.79499927960688,520.21479703389991,546.44700647759703,573.50238844798412,601.3916520699255,630.12545590533682,659.71440905777058,690.16907223458645,721.49995876902767,753.71753560433149,786.83222424189,0,0,0,0,0,0,0,0,0,0,0,0,1356.1956049128471,1377.7255816681188,1399.9566001406731,1422.8981175498843,1446.559544842873,1470.9502477413887,1496.0795477470858,1521.9567231075471,1548.5910097452079,1575.9916021512206,1604.1676542461125,1633.1282802090045,2795.8599572686321,2892.7699713377342,2992.8354910284688,3096.0990848616029,3202.6031130787778,3312.389732354698,3425.500900322053,3541.9783799197435,3661.8637435741293,3785.1983772224548,3912.0234841868246,4042.3800889066447]
[1000407363,4,1,1,1,3,3.0306803023566031,3,3,3,3.0230632761679481,2.1694249845207684E-2,0,0,0,1.6308198974734206E-2,0.12304063405958204,0,0,0,0.3677509745712596,312.26500232903965,337.23061041350149,363.4254683496606,390.8744203744061,419.60213021697916,449.63308711207839,480.99161146397978,513.7018601901292,547.78783176970308,583.27337102005492,620.18217362168446,658.53779041037683,0,0,0,0,0,0,0,0,0,0,0,0,0,0,0,0,0,0,0,0,0,0,0,0,0,0,0,0,0,0,0,0,0,0,0,0,151.44058213392361,163.54826693189656,176.25210663592875,189.56415006887616,203.49635851197752,218.06060862105755,233.26869517348106,249.13233365965937,265.66316273147368,282.8727465187302,300.7725768236553,319.37407520247342,0,0,0,0,0,0,0,0,0,0,0,0,1077.443161486013,1088.0320012165785,1099.142211370985,1110.7843293109406,1122.9688158381693,1135.7060577447921,1149.0063702156904,1162.8799990949205,1177.3371230269972,1192.3878554827602,1208.0422466785822,1224.310285396823,1541.1487459489761,1588.8108785619766,1638.8197863565745,1691.2228997542229,1746.067304567126,1803.399753477928,1863.2666768531512,1925.7141929447089,1990.7881175281741,2058.5339730215455,2128.996997123922,2202.2221510096733]
[1000407386,4,1,1,1,3,3.0306803023566031,3,3,3,3.0230632761679481,2.1694249845207684E-2,0,0,0,1.6308198974734206E-2,0.12304063405958204,0,0,0,0.3677509745712596,312.26500232903965,337.23061041350149,363.4254683496606,390.8744203744061,419.60213021697916,449.63308711207839,480.99161146397978,513.7018601901292,547.78783176970308,583.27337102005492,620.18217362168446,658.53779041037683,0,0,0,0,0,0,0,0,0,0,0,0,0,0,0,0,0,0,0,0,0,0,0,0,0,0,0,0,0,0,0,0,0,0,0,0,151.44058213392361,163.54826693189656,176.25210663592875,189.56415006887616,203.49635851197752,218.06060862105755,233.26869517348106,249.13233365965937,265.66316273147368,282.8727465187302,300.7725768236553,319.37407520247342,0,0,0,0,0,0,0,0,0,0,0,0,1077.443161486013,1088.0320012165785,1099.142211370985,1110.7843293109406,1122.9688158381693,1135.7060577447921,1149.0063702156904,1162.8799990949205,1177.3371230269972,1192.3878554827602,1208.0422466785822,1224.310285396823,1541.1487459489761,1588.8108785619766,1638.8197863565745,1691.2228997542229,1746.067304567126,1803.399753477928,1863.2666768531512,1925.7141929447089,1990.7881175281741,2058.5339730215455,2128.996997123922,2202.2221510096733]
[1000407406,4,1,1,1,3,3.0306803023566031,3,3,3,3.0230632761679481,2.1694249845207684E-2,0,0,0,1.6308198974734206E-2,0.12304063405958204,0,0,0,0.3677509745712596,312.26500232903965,337.23061041350149,363.4254683496606,390.8744203744061,419.60213021697916,449.63308711207839,480.99161146397978,513.7018601901292,547.78783176970308,583.27337102005492,620.18217362168446,658.53779041037683,0,0,0,0,0,0,0,0,0,0,0,0,0,0,0,0,0,0,0,0,0,0,0,0,0,0,0,0,0,0,0,0,0,0,0,0,151.44058213392361,163.54826693189656,176.25210663592875,189.56415006887616,203.49635851197752,218.06060862105755,233.26869517348106,249.13233365965937,265.66316273147368,282.8727465187302,300.7725768236553,319.37407520247342,0,0,0,0,0,0,0,0,0,0,0,0,1077.443161486013,1088.0320012165785,1099.142211370985,1110.7843293109406,1122.9688158381693,1135.7060577447921,1149.0063702156904,1162.8799990949205,1177.3371230269972,1192.3878554827602,1208.0422466785822,1224.310285396823,1541.1487459489761,1588.8108785619766,1638.8197863565745,1691.2228997542229,1746.067304567126,1803.399753477928,1863.2666768531512,1925.7141929447089,1990.7881175281741,2058.5339730215455,2128.996997123922,2202.2221510096733]
[1000407427,4,1,1,1,3,3.0306803023566031,3,3,3,3.0230632761679481,2.1694249845207684E-2,0,0,0,1.6308198974734206E-2,0.12304063405958204,0,0,0,0.3677509745712596,620.18217362168446,658.53779041037683,698.36363145339078,739.68296992500564,782.51894579536281,826.89456934528289,872.832724518654,920.35617212298052,969.48755288782002,1020.2493903900088,1072.6640938538956,1126.7539608341217,0,0,0,0,0,0,0,0,0,0,0,0,0,0,0,0,0,0,0,0,0,0,0,0,0,0,0,0,0,0,0,0,0,0,0,0,300.7725768236553,319.37407520247342,338.68859494225489,358.72742294045759,379.5017814939211,401.02283000346387,423.30166659970598,446.34932969525403,470.17679946796505,494.79499927960688,520.21479703389991,546.44700647759703,0,0,0,0,0,0,0,0,0,0,0,0,1208.0422466785822,1224.310285396823,1241.2019007146939,1258.7269636480189,1276.8952887158105,1295.7166354310327,1315.2007097224748,1335.3571652922208,1356.1956049128471,1377.7255816681188,1399.9566001406731,1422.8981175498843,2128.996997123922,2202.2221510096733,2278.2541271103396,2357.1373565134822,2438.9160160050942,2523.6340347797795,2611.3351008408345,2702.0626671104555,2795.8599572686321,2892.7699713377342,2992.8354910284688,3096.0990848616029]
[1000407446,4,1,1,1,3,3.0306803023566031,3,3,3,3.0230632761679481,2.1694249845207684E-2,0,0,0,1.6308198974734206E-2,0.12304063405958204,0,0,0,0.3677509745712596,337.23061041350149,363.4254683496606,390.8744203744061,419.60213021697916,449.63308711207839,480.99161146397978,513.7018601901292,547.78783176970308,583.27337102005492,620.18217362168446,658.53779041037683,698.36363145339078,0,0,0,0,0,0,0,0,0,0,0,0,0,0,0,0,0,0,0,0,0,0,0,0,0,0,0,0,0,0,0,0,0,0,0,0,163.54826693189656,176.25210663592875,189.56415006887616,203.49635851197752,218.06060862105755,233.26869517348106,249.13233365965937,265.66316273147368,282.8727465187302,300.7725768236553,319.37407520247342,338.68859494225489,0,0,0,0,0,0,0,0,0,0,0,0,1088.0320012165785,1099.142211370985,1110.7843293109406,1122.9688158381693,1135.7060577447921,1149.0063702156904,1162.8799990949205,1177.3371230269972,1192.3878554827602,1208.0422466785822,1224.310285396823,1241.2019007146939,1588.8108785619766,1638.8197863565745,1691.2228997542229,1746.067304567126,1803.399753477928,1863.2666768531512,1925.7141929447089,1990.7881175281741,2058.5339730215455,2128.996997123922,2202.2221510096733,2278.2541271103396]
[1000407467,4,1,1,1,3,3.0306803023566031,3,3,3,3.0230632761679481,2.1694249845207684E-2,0,0,0,1.6308198974734206E-2,0.12304063405958204,0,0,0,0.3677509745712596,337.23061041350149,363.4254683496606,390.8744203744061,419.60213021697916,449.63308711207839,480.99161146397978,513.7018601901292,547.78783176970308,583.27337102005492,620.18217362168446,658.53779041037683,698.36363145339078,0,0,0,0,0,0,0,0,0,0,0,0,0,0,0,0,0,0,0,0,0,0,0,0,0,0,0,0,0,0,0,0,0,0,0,0,163.54826693189656,176.25210663592875,189.56415006887616,203.49635851197752,218.06060862105755,233.26869517348106,249.13233365965937,265.66316273147368,282.8727465187302,300.7725768236553,319.37407520247342,338.68859494225489,0,0,0,0,0,0,0,0,0,0,0,0,1088.0320012165785,1099.142211370985,1110.7843293109406,1122.9688158381693,1135.7060577447921,1149.0063702156904,1162.8799990949205,1177.3371230269972,1192.3878554827602,1208.0422466785822,1224.310285396823,1241.2019007146939,1588.8108785619766,1638.8197863565745,1691.2228997542229,1746.067304567126,1803.399753477928,1863.2666768531512,1925.7141929447089,1990.7881175281741,2058.5339730215455,2128.996997123922,2202.2221510096733,2278.2541271103396]
[1000407484,4,1,1,1,3,3.0306803023566031,3,3,3,3.0230632761679481,2.1694249845207684E-2,0,0,0,1.6308198974734206E-2,0.12304063405958204,0,0,0,0.3677509745712596,337.23061041350149,363.4254683496606,390.8744203744061,419.60213021697916,449.63308711207839,480.99161146397978,513.7018601901292,547.78783176970308,583.27337102005492,620.18217362168446,658.53779041037683,698.36363145339078,0,0,0,0,0,0,0,0,0,0,0,0,0,0,0,0,0,0,0,0,0,0,0,0,0,0,0,0,0,0,0,0,0,0,0,0,163.54826693189656,176.25210663592875,189.56415006887616,203.49635851197752,218.06060862105755,233.26869517348106,249.13233365965937,265.66316273147368,282.8727465187302,300.7725768236553,319.37407520247342,338.68859494225489,0,0,0,0,0,0,0,0,0,0,0,0,1088.0320012165785,1099.142211370985,1110.7843293109406,1122.9688158381693,1135.7060577447921,1149.0063702156904,1162.8799990949205,1177.3371230269972,1192.3878554827602,1208.0422466785822,1224.310285396823,1241.2019007146939,1588.8108785619766,1638.8197863565745,1691.2228997542229,1746.067304567126,1803.399753477928,1863.2666768531512,1925.7141929447089,1990.7881175281741,2058.5339730215455,2128.996997123922,2202.2221510096733,2278.2541271103396]
[1000407503,4,1,1,1,3,3.0306803023566031,3,3,3,3.0230632761679481,2.1694249845207684E-2,0,0,0,1.6308198974734206E-2,0.12304063405958204,0,0,0,0.3677509745712596,477.28576893365852,515.63308400372046,555.91443172545758,598.17260006235642,642.45017531699955,688.78954821867353,737.23291967981379,787.82230624692738,840.59954526909416,895.60629980489841,952.88406328666952,1012.4741639591531,0,0,0,0,0,0,0,0,0,0,0,0,0,0,0,0,0,0,0,0,0,0,0,0,0,0,0,0,0,0,0,0,0,0,0,0,231.47145582260072,250.06892807907809,269.60435696998832,290.09849356910007,311.57199114977402,334.04540813729739,357.5392109006138,382.07377639588162,407.66939467306582,434.34627125567533,462.12452940280019,491.024212261755,0,0,0,0,0,0,0,0,0,0,0,0,1147.4345850427624,1163.6991026944318,1180.7839152779525,1198.7071707545606,1217.4869315536284,1237.1411771546452,1257.6878065287369,1279.1446404506071,1301.5294236906875,1324.8598270963512,1349.1534495701892,1374.4278199526159,1856.1918097990217,1929.4011147772303,2006.3027039733984,2086.9782643860171,2171.5090980204022,2259.9761335106164,2352.4599371091645,2449.0407230934161,2549.7983636328477,2654.8123981569247,2764.1620422596588,2877.9261961735237]
[1000407527,4,1,1,1,3,3.0306803023566031,3,3,3,3.0230632761679481,2.1694249845207684E-2,0,0,0,1.6308198974734206E-2,0.12304063405958204,0,0,0,0.3677509745712596,265.92121744920513,288.50361295780101,312.26500232903965,337.23061041350149,363.4254683496606,390.8744203744061,419.60213021697916,449.63308711207839,480.99161146397978,513.7018601901292,547.78783176970308,583.27337102005492,0,0,0,0,0,0,0,0,0,0,0,0,0,0,0,0,0,0,0,0,0,0,0,0,0,0,0,0,0,0,0,0,0,0,0,0,128.96502544923271,139.91691277664015,151.44058213392361,163.54826693189656,176.25210663592875,189.56415006887616,203.49635851197752,218.06060862105755,233.26869517348106,249.13233365965937,265.66316273147368,282.8727465187302,0,0,0,0,0,0,0,0,0,0,0,0,1057.7870446015299,1067.3650755456906,1077.443161486013,1088.0320012165785,1099.142211370985,1110.7843293109406,1122.9688158381693,1135.7060577447921,1149.0063702156904,1162.8799990949205,1177.3371230269972,1192.3878554827602,1452.6732874999677,1495.7856012801317,1541.1487459489761,1588.8108785619766,1638.8197863565745,1691.2228997542229,1746.067304567126,1803.399753477928,1863.2666768531512,1925.7141929447089,1990.7881175281741,2058.5339730215455]
[1000407547,4,1,1,1,3,3.0306803023566031,3,3,3,3.0230632761679481,2.1694249845207684E-2,0,0,0,1.6308198974734206E-2,0.12304063405958204,0,0,0,0.3677509745712596,373.41697691421336,406.22103751449725,440.82949044354785,477.28576893365852,515.63308400372046,555.91443172545758,598.17260006235642,642.45017531699955,688.78954821867353,737.23291967981379,787.82230624692738,840.59954526909416,0,0,0,0,0,0,0,0,0,0,0,0,0,0,0,0,0,0,0,0,0,0,0,0,0,0,0,0,0,0,0,0,0,0,0,0,181.09773410659085,197.00686896515808,213.79108819958651,231.47145582260072,250.06892807907809,269.60435696998832,290.09849356910007,311.57199114977402,334.04540813729739,357.5392109006138,382.07377639588162,407.66939467306582,0,0,0,0,0,0,0,0,0,0,0,0,1103.3799804851478,1117.2933984573042,1131.9721260952911,1147.4345850427624,1163.6991026944318,1180.7839152779525,1198.7071707545606,1217.4869315536284,1237.1411771546452,1257.6878065287369,1279.1446404506071,1301.5294236906875,1657.8946915059521,1720.5213049369595,1786.5927047384255,1856.1918097990217,1929.4011147772303,2006.3027039733984,2086.9782643860171,2171.5090980204022,2259.9761335106164,2352.4599371091645,2449.0407230934161,2549.7983636328477]
[1000407568,4,1,1,1,3,3.0306803023566031,3,3,3,3.0230632761679481,2.1694249845207684E-2,0,0,0,1.6308198974734206E-2,0.12304063405958204,0,0,0,0.3677509745712596,688.78954821867353,737.23291967981379,787.82230624692738,840.59954526909416,895.60629980489841,952.88406328666952,1012.4741639591531,1074.4177691081893,1138.7558890935766,1205.5293811990873,1274.7789533114706,1346.5451674393178,0,0,0,0,0,0,0,0,0,0,0,0,0,0,0,0,0,0,0,0,0,0,0,0,0,0,0,0,0,0,0,0,0,0,0,0,334.04540813729739,357.5392109006138,382.07377639588162,407.66939467306582,434.34627125567533,462.12452940280019,491.024212261755,521.0652849188798,552.26763635537702,584.65108131446993,618.23536208562689,653.04015021112048,0,0,0,0,0,0,0,0,0,0,0,0,1237.1411771546452,1257.6878065287369,1279.1446404506071,1301.5294236906875,1324.8598270963512,1349.1534495701892,1374.4278199526159,1400.7003988154079,1427.988580172191,1456.3096931113746,1485.6810033565534,1516.119714758988,2259.9761335106164,2352.4599371091645,2449.0407230934161,2549.7983636328477,2654.8123981569247,2764.1620422596588,2877.9261961735237,2996.183452842477,3119.0121056211447,3246.490155624932,3378.695318753651,3515.7050324094262]
[1000407588,4,1,1,1,3,3.0306803023566031,3,3,3,3.0230632761679481,2.1694249845207684E-2,0,0,0,1.6308198974734206E-2,0.12304063405958204,0,0,0,0.3677509745712596,688.78954821867353,737.23291967981379,787.82230624692738,840.59954526909416,895.60629980489841,952.88406328666952,1012.4741639591531,1074.4177691081893,1138.7558890935766,1205.5293811990873,1274.7789533114706,1346.5451674393178,0,0,0,0,0,0,0,0,0,0,0,0,0,0,0,0,0,0,0,0,0,0,0,0,0,0,0,0,0,0,0,0,0,0,0,0,334.04540813729739,357.5392109006138,382.07377639588162,407.66939467306582,434.34627125567533,462.12452940280019,491.024212261755,521.0652849188798,552.26763635537702,584.65108131446993,618.23536208562689,653.04015021112048,0,0,0,0,0,0,0,0,0,0,0,0,1237.1411771546452,1257.6878065287369,1279.1446404506071,1301.5294236906875,1324.8598270963512,1349.1534495701892,1374.4278199526159,1400.7003988154079,1427.988580172191,1456.3096931113746,1485.6810033565534,1516.119714758988,2259.9761335106164,2352.4599371091645,2449.0407230934161,2549.7983636328477,2654.8123981569247,2764.1620422596588,2877.9261961735237,2996.183452842477,3119.0121056211447,3246.490155624932,3378.695318753651,3515.7050324094262]
[1000407604,4,1,1,1,3,3.0306803023566031,3,3,3,3.0230632761679481,2.1694249845207684E-2,0,0,0,1.6308198974734206E-2,0.12304063405958204,0,0,0,0.3677509745712596,480.99161146397978,513.7018601901292,547.78783176970308,583.27337102005492,620.18217362168446,658.53779041037683,698.36363145339078,739.68296992500564,782.51894579536281,826.89456934528289,872.832724518654,920.35617212298052,0,0,0,0,0,0,0,0,0,0,0,0,0,0,0,0,0,0,0,0,0,0,0,0,0,0,0,0,0,0,0,0,0,0,0,0,233.26869517348106,249.13233365965937,265.66316273147368,282.8727465187302,300.7725768236553,319.37407520247342,338.68859494225489,358.72742294045759,379.5017814939211,401.02283000346387,423.30166659970598,446.34932969525403,0,0,0,0,0,0,0,0,0,0,0,0,1149.0063702156904,1162.8799990949205,1177.3371230269972,1192.3878554827602,1208.0422466785822,1224.310285396823,1241.2019007146939,1258.7269636480189,1276.8952887158105,1295.7166354310327,1315.2007097224748,1335.3571652922208,1863.2666768531512,1925.7141929447089,1990.7881175281741,2058.5339730215455,2128.996997123922,2202.2221510096733,2278.2541271103396,2357.1373565134822,2438.9160160050942,2523.6340347797795,2611.3351008408345,2702.0626671104555]
[1000407622,4,1,1,1,3,3.0306803023566031,3,3,3,3.0230632761679481,2.1694249845207684E-2,0,0,0,1.6308198974734206E-2,0.12304063405958204,0,0,0,0.3677509745712596,688.78954821867353,737.23291967981379,787.82230624692738,840.59954526909416,895.60629980489841,952.88406328666952,1012.4741639591531,1074.4177691081893,1138.7558890935766,1205.5293811990873,1274.7789533114706,1346.5451674393178,0,0,0,0,0,0,0,0,0,0,0,0,0,0,0,0,0,0,0,0,0,0,0,0,0,0,0,0,0,0,0,0,0,0,0,0,334.04540813729739,357.5392109006138,382.07377639588162,407.66939467306582,434.34627125567533,462.12452940280019,491.024212261755,521.0652849188798,552.26763635537702,584.65108131446993,618.23536208562689,653.04015021112048,0,0,0,0,0,0,0,0,0,0,0,0,1237.1411771546452,1257.6878065287369,1279.1446404506071,1301.5294236906875,1324.8598270963512,1349.1534495701892,1374.4278199526159,1400.7003988154079,1427.988580172191,1456.3096931113746,1485.6810033565534,1516.119714758988,2259.9761335106164,2352.4599371091645,2449.0407230934161,2549.7983636328477,2654.8123981569247,2764.1620422596588,2877.9261961735237,2996.183452842477,3119.0121056211447,3246.490155624932,3378.695318753651,3515.7050324094262]
[1000407678,4,1,1,1,3,3.0306803023566031,3,3,3,3.0230632761679481,2.1694249845207684E-2,0,0,0,1.6308198974734206E-2,0.12304063405958204,0,0,0,0.3677509745712596,1299.2958966696308,1360.307247754426,1423.1036615943347,1487.706816302207,1554.1382943363806,1622.4195844557503,1692.5720836045273,1764.6170987302821,1838.5758485386214,1914.4694651876243,1992.3189959249894,2072.1454046706203,0,0,0,0,0,0,0,0,0,0,0,0,0,0,0,0,0,0,0,0,0,0,0,0,0,0,0,0,0,0,0,0,0,0,0,0,630.12545590533682,659.71440905777058,690.16907223458645,721.49995876902767,753.71753560433149,786.83222424189,820.85440165530952,855.79440117211402,891.6625133247212,928.46898667219887,966.22402859424074,1004.9378060586794,0,0,0,0,0,0,0,0,0,0,0,0,1496.0795477470858,1521.9567231075471,1548.5910097452079,1575.9916021512206,1604.1676542461125,1633.1282802090045,1662.8825552770077,1693.4395165163212,1724.8081635664571,1756.9974593589134,1790.016330811548,1823.8736694998124,3425.500900322053,3541.9783799197435,3661.8637435741293,3785.1983772224548,3912.0234841868246,4042.3800889066447,4176.3090405368448,4313.8510164187173,4455.0465254297997,4599.9359112187367,4748.5593553307781,4900.9568802291124]
[1000407839,4,1,1,1,3,3.0306803023566031,3,3,3,3.0230632761679481,2.1694249845207684E-2,0,0,0,1.6308198974734206E-2,0.12304063405958204,0,0,0,0.3677509745712596,920.35617212298052,969.48755288782002,1020.2493903900088,1072.6640938538956,1126.7539608341217,1182.5411797879206,1240.0478325433839,1299.2958966696308,1360.307247754426,1423.1036615943347,1487.706816302207,1554.1382943363806,0,0,0,0,0,0,0,0,0,0,0,0,0,0,0,0,0,0,0,0,0,0,0,0,0,0,0,0,0,0,0,0,0,0,0,0,446.34932969525403,470.17679946796505,494.79499927960688,520.21479703389991,546.44700647759703,573.50238844798412,601.3916520699255,630.12545590533682,659.71440905777058,690.16907223458645,721.49995876902767,753.71753560433149,0,0,0,0,0,0,0,0,0,0,0,0,1335.3571652922208,1356.1956049128471,1377.7255816681188,1399.9566001406731,1422.8981175498843,1446.559544842873,1470.9502477413887,1496.0795477470858,1521.9567231075471,1548.5910097452079,1575.9916021512206,1604.1676542461125,2702.0626671104555,2795.8599572686321,2892.7699713377342,2992.8354910284688,3096.0990848616029,3202.6031130787778,3312.389732354698,3425.500900322053,3541.9783799197435,3661.8637435741293,3785.1983772224548,3912.0234841868246]
[1000407875,4,1,1,1,3,3.0306803023566031,3,3,3,3.0230632761679481,2.1694249845207684E-2,0,0,0,1.6308198974734206E-2,0.12304063405958204,0,0,0,0.3677509745712596,1559.761277299122,1656.2420549359613,1756.5594931548401,1860.7848417364414,1968.9892234267761,2081.2436366486231,2197.6189581040876,2318.1859452746135,2443.0152388243255,2572.1773649121155,2705.7427374175149,2843.7816600850119,0,0,0,0,0,0,0,0,0,0,0,0,0,0,0,0,0,0,0,0,0,0,0,0,0,0,0,0,0,0,0,0,0,0,0,0,756.44453929304268,803.23526198395939,851.88666745283979,902.43331003072603,954.90968244007706,1009.3502171097466,1065.7892874371582,1124.2612090007476,1184.8002407255235,1247.4405860043678,1312.2163937775304,1379.1617595725666,0,0,0,0,0,0,0,0,0,0,0,0,1606.5525697346011,1647.4736435582613,1690.0219873393103,1734.2278207505856,1780.1213095848111,1827.7325669046204,1877.0916541463971,1928.2285821806245,1981.173312331231,2035.9557573562306,2092.605782391799,2151.1532058617599,3922.758386326766,4106.9509604781815,4298.46814794699,4497.445972517753,4704.0202154516646,4918.3264206629901,5140.4998996876429,5370.6757364559853,5608.98879188108,5855.5737082727137,6110.5649135868443,6374.096625519338]
[1000407905,4,1,1,1,3,3.0306803023566031,3,3,3,3.0230632761679481,2.1694249845207684E-2,0,0,0,1.6308198974734206E-2,0.12304063405958204,0,0,0,0.3677509745712596,739.68296992500564,782.51894579536281,826.89456934528289,872.832724518654,920.35617212298052,969.48755288782002,1020.2493903900088,1072.6640938538956,1126.7539608341217,1182.5411797879206,1240.0478325433839,1299.2958966696308,0,0,0,0,0,0,0,0,0,0,0,0,0,0,0,0,0,0,0,0,0,0,0,0,0,0,0,0,0,0,0,0,0,0,0,0,358.72742294045759,379.5017814939211,401.02283000346387,423.30166659970598,446.34932969525403,470.17679946796505,494.79499927960688,520.21479703389991,546.44700647759703,573.50238844798412,601.3916520699255,630.12545590533682,0,0,0,0,0,0,0,0,0,0,0,0,1258.7269636480189,1276.8952887158105,1295.7166354310327,1315.2007097224748,1335.3571652922208,1356.1956049128471,1377.7255816681188,1399.9566001406731,1422.8981175498843,1446.559544842873,1470.9502477413887,1496.0795477470858,2357.1373565134822,2438.9160160050942,2523.6340347797795,2611.3351008408345,2702.0626671104555,2795.8599572686321,2892.7699713377342,2992.8354910284688,3096.0990848616029,3202.6031130787778,3312.389732354698,3425.500900322053]
[1000407934,4,1,1,1,3,3.0306803023566031,3,3,3,3.0230632761679481,2.1694249845207684E-2,0,0,0,1.6308198974734206E-2,0.12304063405958204,0,0,0,0.3677509745712596,1057.4397502747399,1132.4042962173407,1210.7751689055815,1292.6244443119174,1378.0240523890004,1467.045780601758,1559.761277299122,1656.2420549359613,1756.5594931548401,1860.7848417364414,1968.9892234267761,2081.2436366486231,0,0,0,0,0,0,0,0,0,0,0,0,0,0,0,0,0,0,0,0,0,0,0,0,0,0,0,0,0,0,0,0,0,0,0,0,512.83137770404232,549.18727539439647,587.19515489971707,626.88997123303818,668.3066085915043,711.47988206933769,756.44453929304268,803.23526198395939,851.88666745283979,902.43331003072603,954.90968244007706,1009.3502171097466,0,0,0,0,0,0,0,0,0,0,0,0,1393.4993917435309,1425.2946342137056,1458.5346261110722,1493.2499375270208,1529.4710766205308,1567.228491116256,1606.5525697346011,1647.4736435582613,1690.0219873393103,1734.2278207505856,1780.1213095848111,1827.7325669046204,2963.7705197223131,3106.8862058254426,3256.5049499163706,3412.7643530719761,3575.8017376010357,3745.7541537873517,3922.758386326766,4106.9509604781815,4298.46814794699,4497.445972517753,4704.0202154516646,4918.3264206629901]
[1000407967,4,1,1,1,3,3.0306803023566031,3,3,3,3.0230632761679481,2.1694249845207684E-2,0,0,0,1.6308198974734206E-2,0.12304063405958204,0,0,0,0.3677509745712596,1057.4397502747399,1132.4042962173407,1210.7751689055815,1292.6244443119174,1378.0240523890004,1467.045780601758,1559.761277299122,1656.2420549359613,1756.5594931548401,1860.7848417364414,1968.9892234267761,2081.2436366486231,0,0,0,0,0,0,0,0,0,0,0,0,0,0,0,0,0,0,0,0,0,0,0,0,0,0,0,0,0,0,0,0,0,0,0,0,512.83137770404232,549.18727539439647,587.19515489971707,626.88997123303818,668.3066085915043,711.47988206933769,756.44453929304268,803.23526198395939,851.88666745283979,902.43331003072603,954.90968244007706,1009.3502171097466,0,0,0,0,0,0,0,0,0,0,0,0,1393.4993917435309,1425.2946342137056,1458.5346261110722,1493.2499375270208,1529.4710766205308,1567.228491116256,1606.5525697346011,1647.4736435582613,1690.0219873393103,1734.2278207505856,1780.1213095848111,1827.7325669046204,2963.7705197223131,3106.8862058254426,3256.5049499163706,3412.7643530719761,3575.8017376010357,3745.7541537873517,3922.758386326766,4106.9509604781815,4298.46814794699,4497.445972517753,4704.0202154516646,4918.3264206629901]
[1000410000,4,1,1,1,3,3.0306803023566031,3,3,3,3.0230632761679481,2.1694249845207684E-2,0,0,0,1.6308198974734206E-2,0.12304063405958204,0,0,0,0.3677509745712596,513.7018601901292,547.78783176970308,583.27337102005492,620.18217362168446,658.53779041037683,698.36363145339078,739.68296992500564,782.51894579536281,826.89456934528289,872.832724518654,920.35617212298052,969.48755288782002,0,0,0,0,0,0,0,0,0,0,0,0,0,0,0,0,0,0,0,0,0,0,0,0,0,0,0,0,0,0,0,0,0,0,0,0,249.13233365965937,265.66316273147368,282.8727465187302,300.7725768236553,319.37407520247342,338.68859494225489,358.72742294045759,379.5017814939211,401.02283000346387,423.30166659970598,446.34932969525403,470.17679946796505,0,0,0,0,0,0,0,0,0,0,0,0,1162.8799990949205,1177.3371230269972,1192.3878554827602,1208.0422466785822,1224.310285396823,1241.2019007146939,1258.7269636480189,1276.8952887158105,1295.7166354310327,1315.2007097224748,1335.3571652922208,1356.1956049128471,1925.7141929447089,1990.7881175281741,2058.5339730215455,2128.996997123922,2202.2221510096733,2278.2541271103396,2357.1373565134822,2438.9160160050942,2523.6340347797795,2611.3351008408345,2702.0626671104555,2795.8599572686321]
[1000410034,4,1,1,1,3,3.0306803023566031,3,3,3,3.0230632761679481,2.1694249845207684E-2,0,0,0,1.6308198974734206E-2,0.12304063405958204,0,0,0,0.3677509745712596,513.7018601901292,547.78783176970308,583.27337102005492,620.18217362168446,658.53779041037683,698.36363145339078,739.68296992500564,782.51894579536281,826.89456934528289,872.832724518654,920.35617212298052,969.48755288782002,0,0,0,0,0,0,0,0,0,0,0,0,0,0,0,0,0,0,0,0,0,0,0,0,0,0,0,0,0,0,0,0,0,0,0,0,249.13233365965937,265.66316273147368,282.8727465187302,300.7725768236553,319.37407520247342,338.68859494225489,358.72742294045759,379.5017814939211,401.02283000346387,423.30166659970598,446.34932969525403,470.17679946796505,0,0,0,0,0,0,0,0,0,0,0,0,1162.8799990949205,1177.3371230269972,1192.3878554827602,1208.0422466785822,1224.310285396823,1241.2019007146939,1258.7269636480189,1276.8952887158105,1295.7166354310327,1315.2007097224748,1335.3571652922208,1356.1956049128471,1925.7141929447089,1990.7881175281741,2058.5339730215455,2128.996997123922,2202.2221510096733,2278.2541271103396,2357.1373565134822,2438.9160160050942,2523.6340347797795,2611.3351008408345,2702.0626671104555,2795.8599572686321]
[1000410094,4,1,1,1,3,3.0306803023566031,3,3,3,3.0230632761679481,2.1694249845207684E-2,0,0,0,1.6308198974734206E-2,0.12304063405958204,0,0,0,0.3677509745712596,1968.9892234267761,2081.2436366486231,2197.6189581040876,2318.1859452746135,2443.0152388243255,2572.1773649121155,2705.7427374175149,2843.7816600850119,2986.3643285911803,3133.5608325386338,3285.4411573805737,3442.0751862794764,0,0,0,0,0,0,0,0,0,0,0,0,0,0,0,0,0,0,0,0,0,0,0,0,0,0,0,0,0,0,0,0,0,0,0,0,954.90968244007706,1009.3502171097466,1065.7892874371582,1124.2612090007476,1184.8002407255235,1247.4405860043678,1312.2163937775304,1379.1617595725666,1448.3107265068427,1519.6972862545526,1593.355379980075,1669.3188992393884,0,0,0,0,0,0,0,0,0,0,0,0,1780.1213095848111,1827.7325669046204,1877.0916541463971,1928.2285821806245,1981.173312331231,2035.9557573562306,2092.605782391799,2151.1532058617599,2211.6278003543271,2274.0592934678161,2338.4773686269182,2404.9116658710345,4704.0202154516646,4918.3264206629901,5140.4998996876429,5370.6757364559853,5608.98879188108,5855.5737082727137,6110.5649135868443,6374.096625519338,6646.3028554523498,6927.3174122610026,7217.2739059875666,7516.3057513898993]
[1000410124,4,1,1,1,3,3.0306803023566031,3,3,3,3.0230632761679481,2.1694249845207684E-2,0,0,0,1.6308198974734206E-2,0.12304063405958204,0,0,0,0.3677509745712596,1346.5451674393178,1420.8684430817493,1497.7890604561005,1577.3471635930578,1659.5827633070335,1744.5357400489818,1832.245846648339,1922.7527109502378,2016.0958383537586,2112.3146142565274,2211.448306410618,2313.5360671943886,0,0,0,0,0,0,0,0,0,0,0,0,0,0,0,0,0,0,0,0,0,0,0,0,0,0,0,0,0,0,0,0,0,0,0,0,653.04015021112048,689.08504811975558,726.38959069221403,764.97324676211849,804.85542055658675,846.05545307977627,888.59262344265528,932.4861501419839,977.75519229130191,1024.4188508064967,1072.4961695483562,1122.00613642435,0,0,0,0,0,0,0,0,0,0,0,0,1516.119714758988,1547.642970726391,1580.2678555919069,1614.0113959268754,1648.8905618006756,1684.9222679907132,1722.1233751453774,1760.5106909025819,1800.1009709663313,1840.9109201435649,1882.957193343384,1926.2563965406198,3515.7050324094262,3657.5964619278957,3804.4465067402216,3956.3318062820517,4113.3287456642956,4275.5134611194717,4442.961845236372,4615.7495519948034,4793.9520016113911,4977.6443852065895,5166.9016693023586,5361.7986001593581]
[1000410171,4,1,1,1,3,3.0306803023566031,3,3,3,3.0230632761679481,2.1694249845207684E-2,0,0,0,1.6308198974734206E-2,0.12304063405958204,0,0,0,0.3677509745712596,3938.7916791060711,4141.5084693333101,4351.0474722743184,4567.5207866901201,4791.0404856147779,5021.7186167761802,5259.6672030033724,5504.9982426210709,5757.8237098319541,6018.255555087273,6286.4057054463392,6562.3860649253538,0,0,0,0,0,0,0,0,0,0,0,0,0,0,0,0,0,0,0,0,0,0,0,0,0,0,0,0,0,0,0,0,0,0,0,0,1910.2137618340651,2008.5262479960104,2110.1473337676107,2215.1313841961787,2323.5327518521071,2435.4057770329359,2550.8047879609021,2669.7841009742633,2792.3980207127061,2918.7008402970755,3048.7468415037233,3182.5902949336778,0,0,0,0,0,0,0,0,0,0,0,0,2615.5875411100978,2701.5672454757564,2790.4405031163651,2882.2548592713783,2977.0578482684919,3074.8969937021138,3175.819808606132,3279.873795621239,3387.1064471570776,3497.5652455494287,3611.2976632126865,3728.3511627878061,8464.5929820502333,8851.6019628050781,9251.6353091582932,9664.9070301576776,10091.631085735376,10532.021387511231,10986.291799570407,11454.656139216573,11937.328177701736,12434.521640933777,12946.450210162749,13473.327522646838]
[1000410190,4,1,1,1,3,3.0306803023566031,3,3,3,3.0230632761679481,2.1694249845207684E-2,0,0,0,1.6308198974734206E-2,0.12304063405958204,0,0,0,0.3677509745712596,2843.7816600850119,2986.3643285911803,3133.5608325386338,3285.4411573805737,3442.0751862794764,3603.5327019031511,3769.8833881612809,3941.1968318852901,4117.5425244542548,4298.9898633693501,4485.6081537792452,4677.4666099586311,0,0,0,0,0,0,0,0,0,0,0,0,0,0,0,0,0,0,0,0,0,0,0,0,0,0,0,0,0,0,0,0,0,0,0,0,1379.1617595725666,1448.3107265068427,1519.6972862545526,1593.355379980075,1669.3188992393884,1747.6216868511156,1828.2975377387004,1911.3801997450998,1996.9033744213107,2084.9007177899371,2175.4058410849657,2268.4523114688163,0,0,0,0,0,0,0,0,0,0,0,0,2151.1532058617599,2211.6278003543271,2274.0592934678161,2338.4773686269182,2404.9116658710345,2473.391782616055,2543.9472743908873,2616.6076555499512,2691.4023999627871,2768.360941681839,2847.5126755894303,2928.8869580248602,6374.096625519338,6646.3028554523498,6927.3174122610026,7217.2739059875666,7516.3057513898993,7824.5461713703216,8142.1282002908683,8469.1846871803409,8805.848298838353,9152.2515228411266,9508.5266704536407,9874.8058794523076]
[1000410281,4,1,1,1,3,3.0306803023566031,3,3,3,3.0230632761679481,2.1694249845207684E-2,0,0,0,1.6308198974734206E-2,0.12304063405958204,0,0,0,0.3677509745712596,872.832724518654,920.35617212298052,969.48755288782002,1020.2493903900088,1072.6640938538956,1126.7539608341217,1182.5411797879206,1240.0478325433839,1299.2958966696308,1360.307247754426,1423.1036615943347,1487.706816302207,0,0,0,0,0,0,0,0,0,0,0,0,0,0,0,0,0,0,0,0,0,0,0,0,0,0,0,0,0,0,0,0,0,0,0,0,423.30166659970598,446.34932969525403,470.17679946796505,494.79499927960688,520.21479703389991,546.44700647759703,573.50238844798412,601.3916520699255,630.12545590533682,659.71440905777058,690.16907223458645,721.49995876902767,0,0,0,0,0,0,0,0,0,0,0,0,1315.2007097224748,1335.3571652922208,1356.1956049128471,1377.7255816681188,1399.9566001406731,1422.8981175498843,1446.559544842873,1470.9502477413887,1496.0795477470858,1521.9567231075471,1548.5910097452079,1575.9916021512206,2611.3351008408345,2702.0626671104555,2795.8599572686321,2892.7699713377342,2992.8354910284688,3096.0990848616029,3202.6031130787778,3312.389732354698,3425.500900322053,3541.9783799197435,3661.8637435741293,3785.1983772224548]
[1000410375,4,1,1,1,3,3.0306803023566031,3,3,3,3.0230632761679481,2.1694249845207684E-2,0,0,0,1.6308198974734206E-2,0.12304063405958204,0,0,0,0.3677509745712596,1756.5594931548401,1860.7848417364414,1968.9892234267761,2081.2436366486231,2197.6189581040876,2318.1859452746135,2443.0152388243255,2572.1773649121155,2705.7427374175149,2843.7816600850119,2986.3643285911803,3133.5608325386338,0,0,0,0,0,0,0,0,0,0,0,0,0,0,0,0,0,0,0,0,0,0,0,0,0,0,0,0,0,0,0,0,0,0,0,0,851.88666745283979,902.43331003072603,954.90968244007706,1009.3502171097466,1065.7892874371582,1124.2612090007476,1184.8002407255235,1247.4405860043678,1312.2163937775304,1379.1617595725666,1448.3107265068427,1519.6972862545526,0,0,0,0,0,0,0,0,0,0,0,0,1690.0219873393103,1734.2278207505856,1780.1213095848111,1827.7325669046204,1877.0916541463971,1928.2285821806245,1981.173312331231,2035.9557573562306,2092.605782391799,2151.1532058617599,2211.6278003543271,2274.0592934678161,4298.46814794699,4497.445972517753,4704.0202154516646,4918.3264206629901,5140.4998996876429,5370.6757364559853,5608.98879188108,5855.5737082727137,6110.5649135868443,6374.096625519338,6646.3028554523498,6927.3174122610026]
[1000410401,4,1,1,1,3,3.0306803023566031,3,3,3,3.0230632761679481,2.1694249845207684E-2,0,0,0,1.6308198974734206E-2,0.12304063405958204,0,0,0,0.3677509745712596,2402.8305221431542,2549.1963149468606,2701.3741968558461,2859.4765197042443,3023.6156050779236,3193.9037448932627,3370.453201954324,3553.376210489645,3742.7849766696972,3938.7916791060711,4141.5084693333101,4351.0474722743184,0,0,0,0,0,0,0,0,0,0,0,0,0,0,0,0,0,0,0,0,0,0,0,0,0,0,0,0,0,0,0,0,0,0,0,0,1165.311675431002,1236.2953614072169,1310.0977627404291,1386.7733672119723,1466.3766479335409,1548.9620636278812,1634.5840588990075,1723.297064492531,1815.1554975466147,1910.2137618340651,2008.5262479960104,2110.1473337676107,0,0,0,0,0,0,0,0,0,0,0,0,1964.1294845536117,2026.208642281006,2090.7529224210953,2157.8099775510191,2227.4274474185058,2299.652959187355,2374.5341276737518,2452.1185555739448,2532.453833683714,2615.5875411100978,2701.5672454757564,2790.4405031163651,5532.2716821277681,5811.700318635083,6102.22488201737,6404.0598644672355,6717.4197004299704,7042.5187677084996,7379.5713885270834,7728.7918305561207,8090.3943079000264,8464.5929820502333,8851.6019628050781,9251.6353091582932]
[1000410465,4,1,1,1,3,3.0306803023566031,3,3,3,3.0230632761679481,2.1694249845207684E-2,0,0,0,1.6308198974734206E-2,0.12304063405958204,0,0,0,0.3677509745712596,1205.5293811990873,1274.7789533114706,1346.5451674393178,1420.8684430817493,1497.7890604561005,1577.3471635930578,1659.5827633070335,1744.5357400489818,1832.245846648339,1922.7527109502378,2016.0958383537586,2112.3146142565274,0,0,0,0,0,0,0,0,0,0,0,0,0,0,0,0,0,0,0,0,0,0,0,0,0,0,0,0,0,0,0,0,0,0,0,0,584.65108131446993,618.23536208562689,653.04015021112048,689.08504811975558,726.38959069221403,764.97324676211849,804.85542055658675,846.05545307977627,888.59262344265528,932.4861501419839,977.75519229130191,1024.4188508064967,0,0,0,0,0,0,0,0,0,0,0,0,1456.3096931113746,1485.6810033565534,1516.119714758988,1547.642970726391,1580.2678555919069,1614.0113959268754,1648.8905618006756,1684.9222679907132,1722.1233751453774,1760.5106909025819,1800.1009709663313,1840.9109201435649,3246.490155624932,3378.695318753651,3515.7050324094262,3657.5964619278957,3804.4465067402216,3956.3318062820517,4113.3287456642956,4275.5134611194717,4442.961845236372,4615.7495519948034,4793.9520016113911,4977.6443852065895]
[1000410481,4,1,1,1,3,3.0306803023566031,3,3,3,3.0230632761679481,2.1694249845207684E-2,0,0,0,1.6308198974734206E-2,0.12304063405958204,0,0,0,0.3677509745712596,1756.5594931548401,1860.7848417364414,1968.9892234267761,2081.2436366486231,2197.6189581040876,2318.1859452746135,2443.0152388243255,2572.1773649121155,2705.7427374175149,2843.7816600850119,2986.3643285911803,3133.5608325386338,0,0,0,0,0,0,0,0,0,0,0,0,0,0,0,0,0,0,0,0,0,0,0,0,0,0,0,0,0,0,0,0,0,0,0,0,851.88666745283979,902.43331003072603,954.90968244007706,1009.3502171097466,1065.7892874371582,1124.2612090007476,1184.8002407255235,1247.4405860043678,1312.2163937775304,1379.1617595725666,1448.3107265068427,1519.6972862545526,0,0,0,0,0,0,0,0,0,0,0,0,1690.0219873393103,1734.2278207505856,1780.1213095848111,1827.7325669046204,1877.0916541463971,1928.2285821806245,1981.173312331231,2035.9557573562306,2092.605782391799,2151.1532058617599,2211.6278003543271,2274.0592934678161,4298.46814794699,4497.445972517753,4704.0202154516646,4918.3264206629901,5140.4998996876429,5370.6757364559853,5608.98879188108,5855.5737082727137,6110.5649135868443,6374.096625519338,6646.3028554523498,6927.3174122610026]
[1000410502,4,1,1,1,3,3.0306803023566031,3,3,3,3.0230632761679481,2.1694249845207684E-2,0,0,0,1.6308198974734206E-2,0.12304063405958204,0,0,0,0.3677509745712596,1012.4741639591531,1074.4177691081893,1138.7558890935766,1205.5293811990873,1274.7789533114706,1346.5451674393178,1420.8684430817493,1497.7890604561005,1577.3471635930578,1659.5827633070335,1744.5357400489818,1832.245846648339,0,0,0,0,0,0,0,0,0,0,0,0,0,0,0,0,0,0,0,0,0,0,0,0,0,0,0,0,0,0,0,0,0,0,0,0,491.024212261755,521.0652849188798,552.26763635537702,584.65108131446993,618.23536208562689,653.04015021112048,689.08504811975558,726.38959069221403,764.97324676211849,804.85542055658675,846.05545307977627,888.59262344265528,0,0,0,0,0,0,0,0,0,0,0,0,1374.4278199526159,1400.7003988154079,1427.988580172191,1456.3096931113746,1485.6810033565534,1516.119714758988,1547.642970726391,1580.2678555919069,1614.0113959268754,1648.8905618006756,1684.9222679907132,1722.1233751453774,2877.9261961735237,2996.183452842477,3119.0121056211447,3246.490155624932,3378.695318753651,3515.7050324094262,3657.5964619278957,3804.4465067402216,3956.3318062820517,4113.3287456642956,4275.5134611194717,4442.961845236372]
[1000410528,4,1,1,1,3,3.0306803023566031,3,3,3,3.0230632761679481,2.1694249845207684E-2,0,0,0,1.6308198974734206E-2,0.12304063405958204,0,0,0,0.3677509745712596,312.26500232903965,337.23061041350149,363.4254683496606,390.8744203744061,419.60213021697916,449.63308711207839,480.99161146397978,513.7018601901292,547.78783176970308,583.27337102005492,620.18217362168446,658.53779041037683,0,0,0,0,0,0,0,0,0,0,0,0,0,0,0,0,0,0,0,0,0,0,0,0,0,0,0,0,0,0,0,0,0,0,0,0,151.44058213392361,163.54826693189656,176.25210663592875,189.56415006887616,203.49635851197752,218.06060862105755,233.26869517348106,249.13233365965937,265.66316273147368,282.8727465187302,300.7725768236553,319.37407520247342,0,0,0,0,0,0,0,0,0,0,0,0,1077.443161486013,1088.0320012165785,1099.142211370985,1110.7843293109406,1122.9688158381693,1135.7060577447921,1149.0063702156904,1162.8799990949205,1177.3371230269972,1192.3878554827602,1208.0422466785822,1224.310285396823,1541.1487459489761,1588.8108785619766,1638.8197863565745,1691.2228997542229,1746.067304567126,1803.399753477928,1863.2666768531512,1925.7141929447089,1990.7881175281741,2058.5339730215455,2128.996997123922,2202.2221510096733]
[1000410663,4,1,1,1,3,3.0306803023566031,3,3,3,3.0230632761679481,2.1694249845207684E-2,0,0,0,1.6308198974734206E-2,0.12304063405958204,0,0,0,0.3677509745712596,50.817465771241231,58.901460450564159,67.756251890949088,77.411263737631444,87.895525086545064,99.237694226602784,111.46607994206619,124.60866072077268,138.69310215262723,153.74677275431705,169.79675841755133,186.86987564701454,0,0,0,0,0,0,0,0,0,0,0,0,0,0,0,0,0,0,0,0,0,0,0,0,0,0,0,0,0,0,0,0,0,0,0,0,24.64517810695375,28.565709870273789,32.860058453703466,37.542493576646898,42.627093612134182,48.12775710122358,54.058213084108843,60.432030415620723,67.262626203052804,74.563273480745593,82.347108217115235,90.627135734724064,0,0,0,0,0,0,0,0,0,0,0,0,966.55357076602024,969.98229254009038,973.73793778985203,977.83298617382718,982.27975000755498,987.09038433357352,992.27689595654374,997.85115159017073,1003.8248852365491,1010.2097048980108,1017.0170987051594,1024.2584405315763,1042.0162146442151,1057.4494628609282,1074.3542481345046,1092.7867434881055,1112.8023687062343,1134.4558356614,1157.8011889827189,1182.8918427265642,1209.7806135922292,1238.5197511330737,1269.1609653398259,1301.755451913315]
[1000410716,4,1,1,1,3,3.0306803023566031,3,3,3,3.0230632761679481,2.1694249845207684E-2,0,0,0,1.6308198974734206E-2,0.12304063405958204,0,0,0,0.3677509745712596,1659.5827633070335,1744.5357400489818,1832.245846648339,1922.7527109502378,2016.0958383537586,2112.3146142565274,2211.448306410618,2313.5360671943886,2418.6169358045431,2526.7298403724526,2637.9136000084891,2752.2069267778838,0,0,0,0,0,0,0,0,0,0,0,0,0,0,0,0,0,0,0,0,0,0,0,0,0,0,0,0,0,0,0,0,0,0,0,0,804.85542055658675,846.05545307977627,888.59262344265528,932.4861501419839,977.75519229130191,1024.4188508064967,1072.4961695483562,1122.00613642435,1172.9676844517262,1225.3996927838714,1279.3209877017612,1334.7503435722006,0,0,0,0,0,0,0,0,0,0,0,0,1648.8905618006756,1684.9222679907132,1722.1233751453774,1760.5106909025819,1800.1009709663313,1840.9109201435649,1882.957193343384,1926.2563965406198,1970.8250877055691,2016.679777701605,2063.8369311522533,2112.3129672792293,4113.3287456642956,4275.5134611194717,4442.961845236372,4615.7495519948034,4793.9520016113911,4977.6443852065895,5166.9016693023586,5361.7986001593581,5562.4097079618386,5768.8093108579287,5981.0715188625036,6199.2702376293137]
[1000410735,4,1,1,1,3,3.0306803023566031,3,3,3,3.0230632761679481,2.1694249845207684E-2,0,0,0,1.6308198974734206E-2,0.12304063405958204,0,0,0,0.3677509745712596,1659.5827633070335,1744.5357400489818,1832.245846648339,1922.7527109502378,2016.0958383537586,2112.3146142565274,2211.448306410618,2313.5360671943886,2418.6169358045431,2526.7298403724526,2637.9136000084891,2752.2069267778838,0,0,0,0,0,0,0,0,0,0,0,0,0,0,0,0,0,0,0,0,0,0,0,0,0,0,0,0,0,0,0,0,0,0,0,0,804.85542055658675,846.05545307977627,888.59262344265528,932.4861501419839,977.75519229130191,1024.4188508064967,1072.4961695483562,1122.00613642435,1172.9676844517262,1225.3996927838714,1279.3209877017612,1334.7503435722006,0,0,0,0,0,0,0,0,0,0,0,0,1648.8905618006756,1684.9222679907132,1722.1233751453774,1760.5106909025819,1800.1009709663313,1840.9109201435649,1882.957193343384,1926.2563965406198,1970.8250877055691,2016.679777701605,2063.8369311522533,2112.3129672792293,4113.3287456642956,4275.5134611194717,4442.961845236372,4615.7495519948034,4793.9520016113911,4977.6443852065895,5166.9016693023586,5361.7986001593581,5562.4097079618386,5768.8093108579287,5981.0715188625036,6199.2702376293137]
[1000410772,4,1,1,1,3,3.0306803023566031,3,3,3,3.0230632761679481,2.1694249845207684E-2,0,0,0,1.6308198974734206E-2,0.12304063405958204,0,0,0,0.3677509745712596,363.4254683496606,390.8744203744061,419.60213021697916,449.63308711207839,480.99161146397978,513.7018601901292,547.78783176970308,583.27337102005492,620.18217362168446,658.53779041037683,698.36363145339078,739.68296992500564,0,0,0,0,0,0,0,0,0,0,0,0,0,0,0,0,0,0,0,0,0,0,0,0,0,0,0,0,0,0,0,0,0,0,0,0,176.25210663592875,189.56415006887616,203.49635851197752,218.06060862105755,233.26869517348106,249.13233365965937,265.66316273147368,282.8727465187302,300.7725768236553,319.37407520247342,338.68859494225489,358.72742294045759,0,0,0,0,0,0,0,0,0,0,0,0,1099.142211370985,1110.7843293109406,1122.9688158381693,1135.7060577447921,1149.0063702156904,1162.8799990949205,1177.3371230269972,1192.3878554827602,1208.0422466785822,1224.310285396823,1241.2019007146939,1258.7269636480189,1638.8197863565745,1691.2228997542229,1746.067304567126,1803.399753477928,1863.2666768531512,1925.7141929447089,1990.7881175281741,2058.5339730215455,2128.996997123922,2202.2221510096733,2278.2541271103396,2357.1373565134822]
[1000410800,4,1,1,1,3,3.0306803023566031,3,3,3,3.0230632761679481,2.1694249845207684E-2,0,0,0,1.6308198974734206E-2,0.12304063405958204,0,0,0,0.3677509745712596,363.4254683496606,390.8744203744061,419.60213021697916,449.63308711207839,480.99161146397978,513.7018601901292,547.78783176970308,583.27337102005492,620.18217362168446,658.53779041037683,698.36363145339078,739.68296992500564,0,0,0,0,0,0,0,0,0,0,0,0,0,0,0,0,0,0,0,0,0,0,0,0,0,0,0,0,0,0,0,0,0,0,0,0,176.25210663592875,189.56415006887616,203.49635851197752,218.06060862105755,233.26869517348106,249.13233365965937,265.66316273147368,282.8727465187302,300.7725768236553,319.37407520247342,338.68859494225489,358.72742294045759,0,0,0,0,0,0,0,0,0,0,0,0,1099.142211370985,1110.7843293109406,1122.9688158381693,1135.7060577447921,1149.0063702156904,1162.8799990949205,1177.3371230269972,1192.3878554827602,1208.0422466785822,1224.310285396823,1241.2019007146939,1258.7269636480189,1638.8197863565745,1691.2228997542229,1746.067304567126,1803.399753477928,1863.2666768531512,1925.7141929447089,1990.7881175281741,2058.5339730215455,2128.996997123922,2202.2221510096733,2278.2541271103396,2357.1373565134822]
[1000410871,4,1,1,1,3,3.0306803023566031,3,3,3,3.0230632761679481,2.1694249845207684E-2,0,0,0,1.6308198974734206E-2,0.12304063405958204,0,0,0,0.3677509745712596,390.8744203744061,419.60213021697916,449.63308711207839,480.99161146397978,513.7018601901292,547.78783176970308,583.27337102005492,620.18217362168446,658.53779041037683,698.36363145339078,739.68296992500564,782.51894579536281,0,0,0,0,0,0,0,0,0,0,0,0,0,0,0,0,0,0,0,0,0,0,0,0,0,0,0,0,0,0,0,0,0,0,0,0,189.56415006887616,203.49635851197752,218.06060862105755,233.26869517348106,249.13233365965937,265.66316273147368,282.8727465187302,300.7725768236553,319.37407520247342,338.68859494225489,358.72742294045759,379.5017814939211,0,0,0,0,0,0,0,0,0,0,0,0,1110.7843293109406,1122.9688158381693,1135.7060577447921,1149.0063702156904,1162.8799990949205,1177.3371230269972,1192.3878554827602,1208.0422466785822,1224.310285396823,1241.2019007146939,1258.7269636480189,1276.8952887158105,1691.2228997542229,1746.067304567126,1803.399753477928,1863.2666768531512,1925.7141929447089,1990.7881175281741,2058.5339730215455,2128.996997123922,2202.2221510096733,2278.2541271103396,2357.1373565134822,2438.9160160050942]
[1000410892,4,1,1,1,3,3.0306803023566031,3,3,3,3.0230632761679481,2.1694249845207684E-2,0,0,0,1.6308198974734206E-2,0.12304063405958204,0,0,0,0.3677509745712596,790.19799111696545,852.26104381041,917.44058222936121,985.80930538156963,1057.4397502747399,1132.4042962173407,1210.7751689055815,1292.6244443119174,1378.0240523890004,1467.045780601758,1559.761277299122,1656.2420549359613,0,0,0,0,0,0,0,0,0,0,0,0,0,0,0,0,0,0,0,0,0,0,0,0,0,0,0,0,0,0,0,0,0,0,0,0,383.22592312062471,413.32492479805205,444.93534276921275,478.09243420340914,512.83137770404232,549.18727539439647,587.19515489971707,626.88997123303818,668.3066085915043,711.47988206933769,756.44453929304268,803.23526198395939,0,0,0,0,0,0,0,0,0,0,0,0,1280.1522564579584,1306.4754974516172,1334.1205555529687,1363.1182651057641,1393.4993917435309,1425.2946342137056,1458.5346261110722,1493.2499375270208,1529.4710766205308,1567.228491116256,1606.5525697346011,1647.4736435582613,2453.5761706955486,2572.0614660600795,2696.4964805515424,2827.020004690743,2963.7705197223131,3106.8862058254426,3256.5049499163706,3412.7643530719761,3575.8017376010357,3745.7541537873517,3922.758386326766,4106.9509604781815]
[1000412867,4,1,1,1,3,3.0306803023566031,3,3,3,3.0230632761679481,2.1694249845207684E-2,0,0,0,1.6308198974734206E-2,0.12304063405958204,0,0,0,0.3677509745712596,25.585582173483054,30.889524476582746,36.842036338549633,43.474423051897745,50.817465771241231,58.901460450564159,67.756251890949088,77.411263737631444,87.895525086545064,99.237694226602784,111.46607994206619,124.60866072077268,0,0,0,0,0,0,0,0,0,0,0,0,0,0,0,0,0,0,0,0,0,0,0,0,0,0,0,0,0,0,0,0,0,0,0,0,12.408356459059,14.980633544211758,17.867450365859522,21.08398919446757,24.64517810695375,28.565709870273789,32.860058453703466,37.542493576646898,42.627093612134182,48.12775710122358,54.058213084108843,60.432030415620723,0,0,0,0,0,0,0,0,0,0,0,0,955.85179372085247,958.10139224045133,960.62607314898037,963.43911418131495,966.55357076602024,969.98229254009038,973.73793778985203,977.83298617382718,982.27975000755498,987.09038433357352,992.27689595654374,997.85115159017073,993.84573235339451,1003.9715502612459,1015.3355598533896,1027.9975264276802,1042.0162146442151,1057.4494628609282,1074.3542481345046,1092.7867434881055,1112.8023687062343,1134.4558356614,1157.8011889827189,1182.8918427265642]
[1000412871,4,1,1,1,3,3.0306803023566031,3,3,3,3.0230632761679481,2.1694249845207684E-2,0,0,0,1.6308198974734206E-2,0.12304063405958204,0,0,0,0.3677509745712596,26.980451254940544,33.253361770335118,40.397470487172143,48.463526635693704,57.501674848808335,67.561499606835071,78.692063992957557,90.941943763863506,104.3592575189911,118.99169358806412,134.88653413328203,152.09067686825912,0,0,0,0,0,0,0,0,0,0,0,0,0,0,0,0,0,0,0,0,0,0,0,0,0,0,0,0,0,0,0,0,0,0,0,0,13.084832478212583,16.127034495857711,19.59174547799272,23.503577510228823,27.886849463851373,32.765608550390063,38.1636491170282,44.104529169996113,50.611585005888166,57.707944251433261,65.416537552443856,73.760109106948946,0,0,0,0,0,0,0,0,0,0,0,0,956.4434093986564,959.10398325157337,962.13406455239317,965.55517793066485,969.38859158379876,973.65533612773072,978.37622103454567,983.57184908309898,989.26262915491247,995.46878763817381,1002.2103786503694,1009.5072932500915,996.50869313180954,1008.4843795177662,1022.123280517558,1037.5222820765873,1054.7771158964586,1073.9824442849558,1095.2319341445314,1118.6183220169587,1144.2334716797918,1172.1684254776712,1202.5134503360955,1235.3580792252997]
[1000412875,4,1,1,1,3,3.0306803023566031,3,3,3,3.0230632761679481,2.1694249845207684E-2,0,0,0,1.6308198974734206E-2,0.12304063405958204,0,0,0,0.3677509745712596,20.898335090615813,25.585582173483054,30.889524476582746,36.842036338549633,43.474423051897745,50.817465771241231,58.901460450564159,67.756251890949088,77.411263737631444,87.895525086545064,99.237694226602784,111.46607994206619,0,0,0,0,0,0,0,0,0,0,0,0,0,0,0,0,0,0,0,0,0,0,0,0,0,0,0,0,0,0,0,0,0,0,0,0,10.135160867043924,12.408356459059,14.980633544211758,17.867450365859522,21.08398919446757,24.64517810695375,28.565709870273789,32.860058453703466,37.542493576646898,42.627093612134182,48.12775710122358,54.058213084108843,0,0,0,0,0,0,0,0,0,0,0,0,953.86375850175716,955.85179372085247,958.10139224045133,960.62607314898037,963.43911418131495,966.55357076602024,969.98229254009038,973.73793778985203,977.83298617382718,982.27975000755498,987.09038433357352,992.27689595654374,984.8972544594169,993.84573235339451,1003.9715502612459,1015.3355598533896,1027.9975264276802,1042.0162146442151,1057.4494628609282,1074.3542481345046,1092.7867434881055,1112.8023687062343,1134.4558356614,1157.8011889827189]
[1000414952,4,1,1,1,3,3.0306803023566031,3,3,3,3.0230632761679481,2.1694249845207684E-2,0,0,0,1.6308198974734206E-2,0.12304063405958204,0,0,0,0.3677509745712596,16.795287547117443,20.898335090615813,25.585582173483054,30.889524476582746,36.842036338549633,43.474423051897745,50.817465771241231,58.901460450564159,67.756251890949088,77.411263737631444,87.895525086545064,99.237694226602784,0,0,0,0,0,0,0,0,0,0,0,0,0,0,0,0,0,0,0,0,0,0,0,0,0,0,0,0,0,0,0,0,0,0,0,0,8.1452871896351073,10.135160867043924,12.408356459059,14.980633544211758,17.867450365859522,21.08398919446757,24.64517810695375,28.565709870273789,32.860058453703466,37.542493576646898,42.627093612134182,48.12775710122358,0,0,0,0,0,0,0,0,0,0,0,0,952.12350396046941,953.86375850175716,955.85179372085247,958.10139224045133,960.62607314898037,963.43911418131495,966.55357076602024,969.98229254009038,973.73793778985203,977.83298617382718,982.27975000755498,987.09038433357352,977.06407869722204,984.8972544594169,993.84573235339451,1003.9715502612459,1015.3355598533896,1027.9975264276802,1042.0162146442151,1057.4494628609282,1074.3542481345046,1092.7867434881055,1112.8023687062343,1134.4558356614]
[1000414953,4,1,1,1,3,3.0306803023566031,3,3,3,3.0230632761679481,2.1694249845207684E-2,0,0,0,1.6308198974734206E-2,0.12304063405958204,0,0,0,0.3677509745712596,25.585582173483054,30.889524476582746,36.842036338549633,43.474423051897745,50.817465771241231,58.901460450564159,67.756251890949088,77.411263737631444,87.895525086545064,99.237694226602784,111.46607994206619,124.60866072077268,0,0,0,0,0,0,0,0,0,0,0,0,0,0,0,0,0,0,0,0,0,0,0,0,0,0,0,0,0,0,0,0,0,0,0,0,12.408356459059,14.980633544211758,17.867450365859522,21.08398919446757,24.64517810695375,28.565709870273789,32.860058453703466,37.542493576646898,42.627093612134182,48.12775710122358,54.058213084108843,60.432030415620723,0,0,0,0,0,0,0,0,0,0,0,0,955.85179372085247,958.10139224045133,960.62607314898037,963.43911418131495,966.55357076602024,969.98229254009038,973.73793778985203,977.83298617382718,982.27975000755498,987.09038433357352,992.27689595654374,997.85115159017073,993.84573235339451,1003.9715502612459,1015.3355598533896,1027.9975264276802,1042.0162146442151,1057.4494628609282,1074.3542481345046,1092.7867434881055,1112.8023687062343,1134.4558356614,1157.8011889827189,1182.8918427265642]
[1001423014,4,1,1,1,3,3.0306803023566031,3,3,3,3.0230632761679481,2.1694249845207684E-2,0,0,0,1.6308198974734206E-2,0.12304063405958204,0,0,0,0.3677509745712596,10.208320333996825,13.243260944614924,16.795287547117443,20.898335090615813,25.585582173483054,30.889524476582746,36.842036338549633,43.474423051897745,50.817465771241231,58.901460450564159,67.756251890949088,77.411263737631444,0,0,0,0,0,0,0,0,0,0,0,0,0,0,0,0,0,0,0,0,0,0,0,0,0,0,0,0,0,0,0,0,0,0,0,0,4.9507756631690896,6.4226446506824182,8.1452871896351073,10.135160867043924,12.408356459059,14.980633544211758,17.867450365859522,21.08398919446757,24.64517810695375,28.565709870273789,32.860058453703466,37.542493576646898,0,0,0,0,0,0,0,0,0,0,0,0,949.32972702163988,950.61695782366553,952.12350396046941,953.86375850175716,955.85179372085247,958.10139224045133,960.62607314898037,963.43911418131495,966.55357076602024,969.98229254009038,973.73793778985203,977.83298617382718,964.48882301880587,970.28286341896285,977.06407869722204,984.8972544594169,993.84573235339451,1003.9715502612459,1015.3355598533896,1027.9975264276802,1042.0162146442151,1057.4494628609282,1074.3542481345046,1092.7867434881055]
[1001433025,4,1,1,1,3,3.0306803023566031,3,3,3,3.0230632761679481,2.1694249845207684E-2,0,0,0,1.6308198974734206E-2,0.12304063405958204,0,0,0,0.3677509745712596,10.208320333996825,13.243260944614924,16.795287547117443,20.898335090615813,25.585582173483054,30.889524476582746,36.842036338549633,43.474423051897745,50.817465771241231,58.901460450564159,67.756251890949088,77.411263737631444,0,0,0,0,0,0,0,0,0,0,0,0,0,0,0,0,0,0,0,0,0,0,0,0,0,0,0,0,0,0,0,0,0,0,0,0,4.9507756631690896,6.4226446506824182,8.1452871896351073,10.135160867043924,12.408356459059,14.980633544211758,17.867450365859522,21.08398919446757,24.64517810695375,28.565709870273789,32.860058453703466,37.542493576646898,0,0,0,0,0,0,0,0,0,0,0,0,949.32972702163988,950.61695782366553,952.12350396046941,953.86375850175716,955.85179372085247,958.10139224045133,960.62607314898037,963.43911418131495,966.55357076602024,969.98229254009038,973.73793778985203,977.83298617382718,964.48882301880587,970.28286341896285,977.06407869722204,984.8972544594169,993.84573235339451,1003.9715502612459,1015.3355598533896,1027.9975264276802,1042.0162146442151,1057.4494628609282,1074.3542481345046,1092.7867434881055]
[1001433198,4,1,1,1,3,3.0306803023566031,3,3,3,3.0230632761679481,2.1694249845207684E-2,0,0,0,1.6308198974734206E-2,0.12304063405958204,0,0,0,0.3677509745712596,0.3786718380774976,0.83392896743133116,1.5359838080958728,2.5286241135206606,3.8533006240259637,5.5496215163108102,7.6556855199203593,10.208320333996825,13.243260944614924,16.795287547117443,20.898335090615813,25.585582173483054,0,0,0,0,0,0,0,0,0,0,0,0,0,0,0,0,0,0,0,0,0,0,0,0,0,0,0,0,0,0,0,0,0,0,0,0,0.18364620808755319,0.40443433412069568,0.74491307162630371,1.2263183670706013,1.8687527750055364,2.6914252535014205,3.7128127171591463,4.9507756631690896,6.4226446506824182,8.1452871896351073,10.135160867043924,12.408356459059,0,0,0,0,0,0,0,0,0,0,0,0,945.16060876187419,945.35370018438698,945.65146766374153,946.07248320915437,946.63432761595311,947.35380017993987,948.24705998443119,949.32972702163988,950.61695782366553,952.12350396046941,953.86375850175716,955.85179372085247,945.72292680803923,946.59206348593898,947.93236454346379,949.82742568974561,952.35638101498466,955.59484694975208,959.6155582215107,964.48882301880587,970.28286341896285,977.06407869722204,984.8972544594169,993.84573235339451]
[1001435539,4,1,1,1,3,3.0306803023566031,3,3,3,3.0230632761679481,2.1694249845207684E-2,0,0,0,1.6308198974734206E-2,0.12304063405958204,0,0,0,0.3677509745712596,10.208320333996825,13.243260944614924,16.795287547117443,20.898335090615813,25.585582173483054,30.889524476582746,36.842036338549633,43.474423051897745,50.817465771241231,58.901460450564159,67.756251890949088,77.411263737631444,0,0,0,0,0,0,0,0,0,0,0,0,0,0,0,0,0,0,0,0,0,0,0,0,0,0,0,0,0,0,0,0,0,0,0,0,4.9507756631690896,6.4226446506824182,8.1452871896351073,10.135160867043924,12.408356459059,14.980633544211758,17.867450365859522,21.08398919446757,24.64517810695375,28.565709870273789,32.860058453703466,37.542493576646898,0,0,0,0,0,0,0,0,0,0,0,0,949.32972702163988,950.61695782366553,952.12350396046941,953.86375850175716,955.85179372085247,958.10139224045133,960.62607314898037,963.43911418131495,966.55357076602024,969.98229254009038,973.73793778985203,977.83298617382718,964.48882301880587,970.28286341896285,977.06407869722204,984.8972544594169,993.84573235339451,1003.9715502612459,1015.3355598533896,1027.9975264276802,1042.0162146442151,1057.4494628609282,1074.3542481345046,1092.7867434881055]
[1001435540,4,1,1,1,3,3.0306803023566031,3,3,3,3.0230632761679481,2.1694249845207684E-2,0,0,0,1.6308198974734206E-2,0.12304063405958204,0,0,0,0.3677509745712596,10.208320333996825,13.243260944614924,16.795287547117443,20.898335090615813,25.585582173483054,30.889524476582746,36.842036338549633,43.474423051897745,50.817465771241231,58.901460450564159,67.756251890949088,77.411263737631444,0,0,0,0,0,0,0,0,0,0,0,0,0,0,0,0,0,0,0,0,0,0,0,0,0,0,0,0,0,0,0,0,0,0,0,0,4.9507756631690896,6.4226446506824182,8.1452871896351073,10.135160867043924,12.408356459059,14.980633544211758,17.867450365859522,21.08398919446757,24.64517810695375,28.565709870273789,32.860058453703466,37.542493576646898,0,0,0,0,0,0,0,0,0,0,0,0,949.32972702163988,950.61695782366553,952.12350396046941,953.86375850175716,955.85179372085247,958.10139224045133,960.62607314898037,963.43911418131495,966.55357076602024,969.98229254009038,973.73793778985203,977.83298617382718,964.48882301880587,970.28286341896285,977.06407869722204,984.8972544594169,993.84573235339451,1003.9715502612459,1015.3355598533896,1027.9975264276802,1042.0162146442151,1057.4494628609282,1074.3542481345046,1092.7867434881055]
[1001440620,4,1,1,1,3,3.0306803023566031,3,3,3,3.0230632761679481,2.1694249845207684E-2,0,0,0,1.6308198974734206E-2,0.12304063405958204,0,0,0,0.3677509745712596,21.406215965875141,27.577002427660744,34.812987497018305,43.194734643958625,52.802255191383644,63.715051291511266,76.01215290533267,89.772149946485101,105.07322047044566,121.99315558915362,140.60938164437835,160.99898006384194,0,0,0,0,0,0,0,0,0,0,0,0,0,0,0,0,0,0,0,0,0,0,0,0,0,0,0,0,0,0,0,0,0,0,0,0,10.381470171097517,13.374144620769716,16.883413296550422,20.948347431866907,25.607750482845223,30.90017897078291,36.863960416245071,43.537208928024917,50.95783887418559,59.163576965018251,68.191973006561369,78.080409530315009,0,0,0,0,0,0,0,0,0,0,0,0,954.07916960539001,956.69642886197744,959.76547832926769,963.32048796095035,967.39539352466124,972.02391482987673,977.23957141227243,983.07569616713079,989.56544730542328,996.74181892102479,1004.6376503952616,1013.285634818628,985.86685574236265,997.64757591040791,1011.4618791228364,1027.4635700367758,1045.80539919889,1066.639145092171,1090.1156847338502,1116.3850550416407,1145.5965066500546,1177.8985514751967,1213.4390050462014,1252.3650244127848]
[1001440621,4,1,1,1,3,3.0306803023566031,3,3,3,3.0230632761679481,2.1694249845207684E-2,0,0,0,1.6308198974734206E-2,0.12304063405958204,0,0,0,0.3677509745712596,13.243260944614924,16.795287547117443,20.898335090615813,25.585582173483054,30.889524476582746,36.842036338549633,43.474423051897745,50.817465771241231,58.901460450564159,67.756251890949088,77.411263737631444,87.895525086545064,0,0,0,0,0,0,0,0,0,0,0,0,0,0,0,0,0,0,0,0,0,0,0,0,0,0,0,0,0,0,0,0,0,0,0,0,6.4226446506824182,8.1452871896351073,10.135160867043924,12.408356459059,14.980633544211758,17.867450365859522,21.08398919446757,24.64517810695375,28.565709870273789,32.860058453703466,37.542493576646898,42.627093612134182,0,0,0,0,0,0,0,0,0,0,0,0,950.61695782366553,952.12350396046941,953.86375850175716,955.85179372085247,958.10139224045133,960.62607314898037,963.43911418131495,966.55357076602024,969.98229254009038,973.73793778985203,977.83298617382718,982.27975000755498,970.28286341896285,977.06407869722204,984.8972544594169,993.84573235339451,1003.9715502612459,1015.3355598533896,1027.9975264276802,1042.0162146442151,1057.4494628609282,1074.3542481345046,1092.7867434881055,1112.8023687062343]
[1001465327,4,1,1,1,3,3.0306803023566031,3,3,3,3.0230632761679481,2.1694249845207684E-2,0,0,0,1.6308198974734206E-2,0.12304063405958204,0,0,0,0.3677509745712596,10.208320333996825,13.243260944614924,16.795287547117443,20.898335090615813,25.585582173483054,30.889524476582746,36.842036338549633,43.474423051897745,50.817465771241231,58.901460450564159,67.756251890949088,77.411263737631444,0,0,0,0,0,0,0,0,0,0,0,0,0,0,0,0,0,0,0,0,0,0,0,0,0,0,0,0,0,0,0,0,0,0,0,0,4.9507756631690896,6.4226446506824182,8.1452871896351073,10.135160867043924,12.408356459059,14.980633544211758,17.867450365859522,21.08398919446757,24.64517810695375,28.565709870273789,32.860058453703466,37.542493576646898,0,0,0,0,0,0,0,0,0,0,0,0,949.32972702163988,950.61695782366553,952.12350396046941,953.86375850175716,955.85179372085247,958.10139224045133,960.62607314898037,963.43911418131495,966.55357076602024,969.98229254009038,973.73793778985203,977.83298617382718,964.48882301880587,970.28286341896285,977.06407869722204,984.8972544594169,993.84573235339451,1003.9715502612459,1015.3355598533896,1027.9975264276802,1042.0162146442151,1057.4494628609282,1074.3542481345046,1092.7867434881055]
[1001472087,4,1,1,1,3,3.0306803023566031,3,3,3,3.0230632761679481,2.1694249845207684E-2,0,0,0,1.6308198974734206E-2,0.12304063405958204,0,0,0,0.3677509745712596,9.5615006449442763,12.871203873079162,16.841887531525625,21.527333670816041,26.980451254940544,33.253361770335118,40.397470487172143,48.463526635693704,57.501674848808335,67.561499606835071,78.692063992957557,90.941943763863506,0,0,0,0,0,0,0,0,0,0,0,0,0,0,0,0,0,0,0,0,0,0,0,0,0,0,0,0,0,0,0,0,0,0,0,0,4.6370845690176408,6.2422064360884972,8.1678869965733512,10.440209176769525,13.084832478212583,16.127034495857711,19.59174547799272,23.503577510228823,27.886849463851373,32.765608550390063,38.1636491170282,44.104529169996113,0,0,0,0,0,0,0,0,0,0,0,0,949.05538681735641,950.45915462945584,952.14326874106985,954.13054011324289,956.4434093986564,959.10398325157337,962.13406455239317,965.55517793066485,969.38859158379876,973.65533612773072,978.37622103454567,983.57184908309898,963.25397203131831,969.57256493862349,977.15304326916873,986.09808296082838,996.50869313180954,1008.4843795177662,1022.123280517558,1037.5222820765873,1054.7771158964586,1073.9824442849558,1095.2319341445314,1118.6183220169587]
[1001472088,4,1,1,1,3,3.0306803023566031,3,3,3,3.0230632761679481,2.1694249845207684E-2,0,0,0,1.6308198974734206E-2,0.12304063405958204,0,0,0,0.3677509745712596,5.5496215163108102,7.6556855199203593,10.208320333996825,13.243260944614924,16.795287547117443,20.898335090615813,25.585582173483054,30.889524476582746,36.842036338549633,43.474423051897745,50.817465771241231,58.901460450564159,0,0,0,0,0,0,0,0,0,0,0,0,0,0,0,0,0,0,0,0,0,0,0,0,0,0,0,0,0,0,0,0,0,0,0,0,2.6914252535014205,3.7128127171591463,4.9507756631690896,6.4226446506824182,8.1452871896351073,10.135160867043924,12.408356459059,14.980633544211758,17.867450365859522,21.08398919446757,24.64517810695375,28.565709870273789,0,0,0,0,0,0,0,0,0,0,0,0,947.35380017993987,948.24705998443119,949.32972702163988,950.61695782366553,952.12350396046941,953.86375850175716,955.85179372085247,958.10139224045133,960.62607314898037,963.43911418131495,966.55357076602024,969.98229254009038,955.59484694975208,959.6155582215107,964.48882301880587,970.28286341896285,977.06407869722204,984.8972544594169,993.84573235339451,1003.9715502612459,1015.3355598533896,1027.9975264276802,1042.0162146442151,1057.4494628609282]
[1001472089,4,1,1,1,3,3.0306803023566031,3,3,3,3.0230632761679481,2.1694249845207684E-2,0,0,0,1.6308198974734206E-2,0.12304063405958204,0,0,0,0.3677509745712596,5.5496215163108102,7.6556855199203593,10.208320333996825,13.243260944614924,16.795287547117443,20.898335090615813,25.585582173483054,30.889524476582746,36.842036338549633,43.474423051897745,50.817465771241231,58.901460450564159,0,0,0,0,0,0,0,0,0,0,0,0,0,0,0,0,0,0,0,0,0,0,0,0,0,0,0,0,0,0,0,0,0,0,0,0,2.6914252535014205,3.7128127171591463,4.9507756631690896,6.4226446506824182,8.1452871896351073,10.135160867043924,12.408356459059,14.980633544211758,17.867450365859522,21.08398919446757,24.64517810695375,28.565709870273789,0,0,0,0,0,0,0,0,0,0,0,0,947.35380017993987,948.24705998443119,949.32972702163988,950.61695782366553,952.12350396046941,953.86375850175716,955.85179372085247,958.10139224045133,960.62607314898037,963.43911418131495,966.55357076602024,969.98229254009038,955.59484694975208,959.6155582215107,964.48882301880587,970.28286341896285,977.06407869722204,984.8972544594169,993.84573235339451,1003.9715502612459,1015.3355598533896,1027.9975264276802,1042.0162146442151,1057.4494628609282]
[1001472169,4,1,1,1,3,3.0306803023566031,3,3,3,3.0230632761679481,2.1694249845207684E-2,0,0,0,1.6308198974734206E-2,0.12304063405958204,0,0,0,0.3677509745712596,5.5496215163108102,7.6556855199203593,10.208320333996825,13.243260944614924,16.795287547117443,20.898335090615813,25.585582173483054,30.889524476582746,36.842036338549633,43.474423051897745,50.817465771241231,58.901460450564159,0,0,0,0,0,0,0,0,0,0,0,0,0,0,0,0,0,0,0,0,0,0,0,0,0,0,0,0,0,0,0,0,0,0,0,0,2.6914252535014205,3.7128127171591463,4.9507756631690896,6.4226446506824182,8.1452871896351073,10.135160867043924,12.408356459059,14.980633544211758,17.867450365859522,21.08398919446757,24.64517810695375,28.565709870273789,0,0,0,0,0,0,0,0,0,0,0,0,947.35380017993987,948.24705998443119,949.32972702163988,950.61695782366553,952.12350396046941,953.86375850175716,955.85179372085247,958.10139224045133,960.62607314898037,963.43911418131495,966.55357076602024,969.98229254009038,955.59484694975208,959.6155582215107,964.48882301880587,970.28286341896285,977.06407869722204,984.8972544594169,993.84573235339451,1003.9715502612459,1015.3355598533896,1027.9975264276802,1042.0162146442151,1057.4494628609282]
[1001472634,4,1,1,1,3,3.0306803023566031,3,3,3,3.0230632761679481,2.1694249845207684E-2,0,0,0,1.6308198974734206E-2,0.12304063405958204,0,0,0,0.3677509745712596,9.5615006449442763,12.871203873079162,16.841887531525625,21.527333670816041,26.980451254940544,33.253361770335118,40.397470487172143,48.463526635693704,57.501674848808335,67.561499606835071,78.692063992957557,90.941943763863506,0,0,0,0,0,0,0,0,0,0,0,0,0,0,0,0,0,0,0,0,0,0,0,0,0,0,0,0,0,0,0,0,0,0,0,0,4.6370845690176408,6.2422064360884972,8.1678869965733512,10.440209176769525,13.084832478212583,16.127034495857711,19.59174547799272,23.503577510228823,27.886849463851373,32.765608550390063,38.1636491170282,44.104529169996113,0,0,0,0,0,0,0,0,0,0,0,0,949.05538681735641,950.45915462945584,952.14326874106985,954.13054011324289,956.4434093986564,959.10398325157337,962.13406455239317,965.55517793066485,969.38859158379876,973.65533612773072,978.37622103454567,983.57184908309898,963.25397203131831,969.57256493862349,977.15304326916873,986.09808296082838,996.50869313180954,1008.4843795177662,1022.123280517558,1037.5222820765873,1054.7771158964586,1073.9824442849558,1095.2319341445314,1118.6183220169587]
[1001472635,4,1,1,1,3,3.0306803023566031,3,3,3,3.0230632761679481,2.1694249845207684E-2,0,0,0,1.6308198974734206E-2,0.12304063405958204,0,0,0,0.3677509745712596,5.5496215163108102,7.6556855199203593,10.208320333996825,13.243260944614924,16.795287547117443,20.898335090615813,25.585582173483054,30.889524476582746,36.842036338549633,43.474423051897745,50.817465771241231,58.901460450564159,0,0,0,0,0,0,0,0,0,0,0,0,0,0,0,0,0,0,0,0,0,0,0,0,0,0,0,0,0,0,0,0,0,0,0,0,2.6914252535014205,3.7128127171591463,4.9507756631690896,6.4226446506824182,8.1452871896351073,10.135160867043924,12.408356459059,14.980633544211758,17.867450365859522,21.08398919446757,24.64517810695375,28.565709870273789,0,0,0,0,0,0,0,0,0,0,0,0,947.35380017993987,948.24705998443119,949.32972702163988,950.61695782366553,952.12350396046941,953.86375850175716,955.85179372085247,958.10139224045133,960.62607314898037,963.43911418131495,966.55357076602024,969.98229254009038,955.59484694975208,959.6155582215107,964.48882301880587,970.28286341896285,977.06407869722204,984.8972544594169,993.84573235339451,1003.9715502612459,1015.3355598533896,1027.9975264276802,1042.0162146442151,1057.4494628609282]
[1001472636,4,1,1,1,3,3.0306803023566031,3,3,3,3.0230632761679481,2.1694249845207684E-2,0,0,0,1.6308198974734206E-2,0.12304063405958204,0,0,0,0.3677509745712596,5.5496215163108102,7.6556855199203593,10.208320333996825,13.243260944614924,16.795287547117443,20.898335090615813,25.585582173483054,30.889524476582746,36.842036338549633,43.474423051897745,50.817465771241231,58.901460450564159,0,0,0,0,0,0,0,0,0,0,0,0,0,0,0,0,0,0,0,0,0,0,0,0,0,0,0,0,0,0,0,0,0,0,0,0,2.6914252535014205,3.7128127171591463,4.9507756631690896,6.4226446506824182,8.1452871896351073,10.135160867043924,12.408356459059,14.980633544211758,17.867450365859522,21.08398919446757,24.64517810695375,28.565709870273789,0,0,0,0,0,0,0,0,0,0,0,0,947.35380017993987,948.24705998443119,949.32972702163988,950.61695782366553,952.12350396046941,953.86375850175716,955.85179372085247,958.10139224045133,960.62607314898037,963.43911418131495,966.55357076602024,969.98229254009038,955.59484694975208,959.6155582215107,964.48882301880587,970.28286341896285,977.06407869722204,984.8972544594169,993.84573235339451,1003.9715502612459,1015.3355598533896,1027.9975264276802,1042.0162146442151,1057.4494628609282]
[1001472637,4,1,1,1,3,3.0306803023566031,3,3,3,3.0230632761679481,2.1694249845207684E-2,0,0,0,1.6308198974734206E-2,0.12304063405958204,0,0,0,0.3677509745712596,3.8533006240259637,5.5496215163108102,7.6556855199203593,10.208320333996825,13.243260944614924,16.795287547117443,20.898335090615813,25.585582173483054,30.889524476582746,36.842036338549633,43.474423051897745,50.817465771241231,0,0,0,0,0,0,0,0,0,0,0,0,0,0,0,0,0,0,0,0,0,0,0,0,0,0,0,0,0,0,0,0,0,0,0,0,1.8687527750055364,2.6914252535014205,3.7128127171591463,4.9507756631690896,6.4226446506824182,8.1452871896351073,10.135160867043924,12.408356459059,14.980633544211758,17.867450365859522,21.08398919446757,24.64517810695375,0,0,0,0,0,0,0,0,0,0,0,0,946.63432761595311,947.35380017993987,948.24705998443119,949.32972702163988,950.61695782366553,952.12350396046941,953.86375850175716,955.85179372085247,958.10139224045133,960.62607314898037,963.43911418131495,966.55357076602024,952.35638101498466,955.59484694975208,959.6155582215107,964.48882301880587,970.28286341896285,977.06407869722204,984.8972544594169,993.84573235339451,1003.9715502612459,1015.3355598533896,1027.9975264276802,1042.0162146442151]
[1001472638,4,1,1,1,3,3.0306803023566031,3,3,3,3.0230632761679481,2.1694249845207684E-2,0,0,0,1.6308198974734206E-2,0.12304063405958204,0,0,0,0.3677509745712596,5.5496215163108102,7.6556855199203593,10.208320333996825,13.243260944614924,16.795287547117443,20.898335090615813,25.585582173483054,30.889524476582746,36.842036338549633,43.474423051897745,50.817465771241231,58.901460450564159,0,0,0,0,0,0,0,0,0,0,0,0,0,0,0,0,0,0,0,0,0,0,0,0,0,0,0,0,0,0,0,0,0,0,0,0,2.6914252535014205,3.7128127171591463,4.9507756631690896,6.4226446506824182,8.1452871896351073,10.135160867043924,12.408356459059,14.980633544211758,17.867450365859522,21.08398919446757,24.64517810695375,28.565709870273789,0,0,0,0,0,0,0,0,0,0,0,0,947.35380017993987,948.24705998443119,949.32972702163988,950.61695782366553,952.12350396046941,953.86375850175716,955.85179372085247,958.10139224045133,960.62607314898037,963.43911418131495,966.55357076602024,969.98229254009038,955.59484694975208,959.6155582215107,964.48882301880587,970.28286341896285,977.06407869722204,984.8972544594169,993.84573235339451,1003.9715502612459,1015.3355598533896,1027.9975264276802,1042.0162146442151,1057.4494628609282]
[1001472639,4,1,1,1,3,3.0306803023566031,3,3,3,3.0230632761679481,2.1694249845207684E-2,0,0,0,1.6308198974734206E-2,0.12304063405958204,0,0,0,0.3677509745712596,8.4699990236497129,11.934911320464602,16.219461958480981,21.406215965875141,27.577002427660744,34.812987497018305,43.194734643958625,52.802255191383644,63.715051291511266,76.01215290533267,89.772149946485101,105.07322047044566,0,0,0,0,0,0,0,0,0,0,0,0,0,0,0,0,0,0,0,0,0,0,0,0,0,0,0,0,0,0,0,0,0,0,0,0,4.1077340504001469,5.7881283672750197,7.8660264281014571,10.381470171097517,13.374144620769716,16.883413296550422,20.948347431866907,25.607750482845223,30.90017897078291,36.863960416245071,43.537208928024917,50.95783887418559,0,0,0,0,0,0,0,0,0,0,0,0,948.59244052362158,950.06203825452053,951.87927498554507,954.07916960539001,956.69642886197744,959.76547832926769,963.32048796095035,967.39539352466124,972.02391482987673,977.23957141227243,983.07569616713079,989.56544730542328,961.17017359767146,967.78507794226016,975.96476337212755,985.86685574236265,997.64757591040791,1011.4618791228364,1027.4635700367758,1045.80539919889,1066.639145092171,1090.1156847338502,1116.3850550416407,1145.5965066500546]
[1001472640,4,1,1,1,3,3.0306803023566031,3,3,3,3.0230632761679481,2.1694249845207684E-2,0,0,0,1.6308198974734206E-2,0.12304063405958204,0,0,0,0.3677509745712596,5.5496215163108102,7.6556855199203593,10.208320333996825,13.243260944614924,16.795287547117443,20.898335090615813,25.585582173483054,30.889524476582746,36.842036338549633,43.474423051897745,50.817465771241231,58.901460450564159,0,0,0,0,0,0,0,0,0,0,0,0,0,0,0,0,0,0,0,0,0,0,0,0,0,0,0,0,0,0,0,0,0,0,0,0,2.6914252535014205,3.7128127171591463,4.9507756631690896,6.4226446506824182,8.1452871896351073,10.135160867043924,12.408356459059,14.980633544211758,17.867450365859522,21.08398919446757,24.64517810695375,28.565709870273789,0,0,0,0,0,0,0,0,0,0,0,0,947.35380017993987,948.24705998443119,949.32972702163988,950.61695782366553,952.12350396046941,953.86375850175716,955.85179372085247,958.10139224045133,960.62607314898037,963.43911418131495,966.55357076602024,969.98229254009038,955.59484694975208,959.6155582215107,964.48882301880587,970.28286341896285,977.06407869722204,984.8972544594169,993.84573235339451,1003.9715502612459,1015.3355598533896,1027.9975264276802,1042.0162146442151,1057.4494628609282]
[1001473129,4,1,1,1,3,3.0306803023566031,3,3,3,3.0230632761679481,2.1694249845207684E-2,0,0,0,1.6308198974734206E-2,0.12304063405958204,0,0,0,0.3677509745712596,10.208320333996825,13.243260944614924,16.795287547117443,20.898335090615813,25.585582173483054,30.889524476582746,36.842036338549633,43.474423051897745,50.817465771241231,58.901460450564159,67.756251890949088,77.411263737631444,0,0,0,0,0,0,0,0,0,0,0,0,0,0,0,0,0,0,0,0,0,0,0,0,0,0,0,0,0,0,0,0,0,0,0,0,4.9507756631690896,6.4226446506824182,8.1452871896351073,10.135160867043924,12.408356459059,14.980633544211758,17.867450365859522,21.08398919446757,24.64517810695375,28.565709870273789,32.860058453703466,37.542493576646898,0,0,0,0,0,0,0,0,0,0,0,0,949.32972702163988,950.61695782366553,952.12350396046941,953.86375850175716,955.85179372085247,958.10139224045133,960.62607314898037,963.43911418131495,966.55357076602024,969.98229254009038,973.73793778985203,977.83298617382718,964.48882301880587,970.28286341896285,977.06407869722204,984.8972544594169,993.84573235339451,1003.9715502612459,1015.3355598533896,1027.9975264276802,1042.0162146442151,1057.4494628609282,1074.3542481345046,1092.7867434881055]
[1001474074,4,1,1,1,3,3.0306803023566031,3,3,3,3.0230632761679481,2.1694249845207684E-2,0,0,0,1.6308198974734206E-2,0.12304063405958204,0,0,0,0.3677509745712596,1.5359838080958728,2.5286241135206606,3.8533006240259637,5.5496215163108102,7.6556855199203593,10.208320333996825,13.243260944614924,16.795287547117443,20.898335090615813,25.585582173483054,30.889524476582746,36.842036338549633,0,0,0,0,0,0,0,0,0,0,0,0,0,0,0,0,0,0,0,0,0,0,0,0,0,0,0,0,0,0,0,0,0,0,0,0,0.74491307162630371,1.2263183670706013,1.8687527750055364,2.6914252535014205,3.7128127171591463,4.9507756631690896,6.4226446506824182,8.1452871896351073,10.135160867043924,12.408356459059,14.980633544211758,17.867450365859522,0,0,0,0,0,0,0,0,0,0,0,0,945.65146766374153,946.07248320915437,946.63432761595311,947.35380017993987,948.24705998443119,949.32972702163988,950.61695782366553,952.12350396046941,953.86375850175716,955.85179372085247,958.10139224045133,960.62607314898037,947.93236454346379,949.82742568974561,952.35638101498466,955.59484694975208,959.6155582215107,964.48882301880587,970.28286341896285,977.06407869722204,984.8972544594169,993.84573235339451,1003.9715502612459,1015.3355598533896]
[1001474075,4,1,1,1,3,3.0306803023566031,3,3,3,3.0230632761679481,2.1694249845207684E-2,0,0,0,1.6308198974734206E-2,0.12304063405958204,0,0,0,0.3677509745712596,3.8533006240259637,5.5496215163108102,7.6556855199203593,10.208320333996825,13.243260944614924,16.795287547117443,20.898335090615813,25.585582173483054,30.889524476582746,36.842036338549633,43.474423051897745,50.817465771241231,0,0,0,0,0,0,0,0,0,0,0,0,0,0,0,0,0,0,0,0,0,0,0,0,0,0,0,0,0,0,0,0,0,0,0,0,1.8687527750055364,2.6914252535014205,3.7128127171591463,4.9507756631690896,6.4226446506824182,8.1452871896351073,10.135160867043924,12.408356459059,14.980633544211758,17.867450365859522,21.08398919446757,24.64517810695375,0,0,0,0,0,0,0,0,0,0,0,0,946.63432761595311,947.35380017993987,948.24705998443119,949.32972702163988,950.61695782366553,952.12350396046941,953.86375850175716,955.85179372085247,958.10139224045133,960.62607314898037,963.43911418131495,966.55357076602024,952.35638101498466,955.59484694975208,959.6155582215107,964.48882301880587,970.28286341896285,977.06407869722204,984.8972544594169,993.84573235339451,1003.9715502612459,1015.3355598533896,1027.9975264276802,1042.0162146442151]
[1001474076,4,1,1,1,3,3.0306803023566031,3,3,3,3.0230632761679481,2.1694249845207684E-2,0,0,0,1.6308198974734206E-2,0.12304063405958204,0,0,0,0.3677509745712596,3.8533006240259637,5.5496215163108102,7.6556855199203593,10.208320333996825,13.243260944614924,16.795287547117443,20.898335090615813,25.585582173483054,30.889524476582746,36.842036338549633,43.474423051897745,50.817465771241231,0,0,0,0,0,0,0,0,0,0,0,0,0,0,0,0,0,0,0,0,0,0,0,0,0,0,0,0,0,0,0,0,0,0,0,0,1.8687527750055364,2.6914252535014205,3.7128127171591463,4.9507756631690896,6.4226446506824182,8.1452871896351073,10.135160867043924,12.408356459059,14.980633544211758,17.867450365859522,21.08398919446757,24.64517810695375,0,0,0,0,0,0,0,0,0,0,0,0,946.63432761595311,947.35380017993987,948.24705998443119,949.32972702163988,950.61695782366553,952.12350396046941,953.86375850175716,955.85179372085247,958.10139224045133,960.62607314898037,963.43911418131495,966.55357076602024,952.35638101498466,955.59484694975208,959.6155582215107,964.48882301880587,970.28286341896285,977.06407869722204,984.8972544594169,993.84573235339451,1003.9715502612459,1015.3355598533896,1027.9975264276802,1042.0162146442151]
[1001476181,4,1,1,1,3,3.0306803023566031,3,3,3,3.0230632761679481,2.1694249845207684E-2,0,0,0,1.6308198974734206E-2,0.12304063405958204,0,0,0,0.3677509745712596,10.208320333996825,13.243260944614924,16.795287547117443,20.898335090615813,25.585582173483054,30.889524476582746,36.842036338549633,43.474423051897745,50.817465771241231,58.901460450564159,67.756251890949088,77.411263737631444,0,0,0,0,0,0,0,0,0,0,0,0,0,0,0,0,0,0,0,0,0,0,0,0,0,0,0,0,0,0,0,0,0,0,0,0,4.9507756631690896,6.4226446506824182,8.1452871896351073,10.135160867043924,12.408356459059,14.980633544211758,17.867450365859522,21.08398919446757,24.64517810695375,28.565709870273789,32.860058453703466,37.542493576646898,0,0,0,0,0,0,0,0,0,0,0,0,949.32972702163988,950.61695782366553,952.12350396046941,953.86375850175716,955.85179372085247,958.10139224045133,960.62607314898037,963.43911418131495,966.55357076602024,969.98229254009038,973.73793778985203,977.83298617382718,964.48882301880587,970.28286341896285,977.06407869722204,984.8972544594169,993.84573235339451,1003.9715502612459,1015.3355598533896,1027.9975264276802,1042.0162146442151,1057.4494628609282,1074.3542481345046,1092.7867434881055]
[1001477684,4,1,1,1,3,3.0306803023566031,3,3,3,3.0230632761679481,2.1694249845207684E-2,0,0,0,1.6308198974734206E-2,0.12304063405958204,0,0,0,0.3677509745712596,12.871203873079162,16.841887531525625,21.527333670816041,26.980451254940544,33.253361770335118,40.397470487172143,48.463526635693704,57.501674848808335,67.561499606835071,78.692063992957557,90.941943763863506,104.3592575189911,0,0,0,0,0,0,0,0,0,0,0,0,0,0,0,0,0,0,0,0,0,0,0,0,0,0,0,0,0,0,0,0,0,0,0,0,6.2422064360884972,8.1678869965733512,10.440209176769525,13.084832478212583,16.127034495857711,19.59174547799272,23.503577510228823,27.886849463851373,32.765608550390063,38.1636491170282,44.104529169996113,50.611585005888166,0,0,0,0,0,0,0,0,0,0,0,0,950.45915462945584,952.14326874106985,954.13054011324289,956.4434093986564,959.10398325157337,962.13406455239317,965.55517793066485,969.38859158379876,973.65533612773072,978.37622103454567,983.57184908309898,989.26262915491247,969.57256493862349,977.15304326916873,986.09808296082838,996.50869313180954,1008.4843795177662,1022.123280517558,1037.5222820765873,1054.7771158964586,1073.9824442849558,1095.2319341445314,1118.6183220169587,1144.2334716797918]
[1001477685,4,1,1,1,3,3.0306803023566031,3,3,3,3.0230632761679481,2.1694249845207684E-2,0,0,0,1.6308198974734206E-2,0.12304063405958204,0,0,0,0.3677509745712596,12.871203873079162,16.841887531525625,21.527333670816041,26.980451254940544,33.253361770335118,40.397470487172143,48.463526635693704,57.501674848808335,67.561499606835071,78.692063992957557,90.941943763863506,104.3592575189911,0,0,0,0,0,0,0,0,0,0,0,0,0,0,0,0,0,0,0,0,0,0,0,0,0,0,0,0,0,0,0,0,0,0,0,0,6.2422064360884972,8.1678869965733512,10.440209176769525,13.084832478212583,16.127034495857711,19.59174547799272,23.503577510228823,27.886849463851373,32.765608550390063,38.1636491170282,44.104529169996113,50.611585005888166,0,0,0,0,0,0,0,0,0,0,0,0,950.45915462945584,952.14326874106985,954.13054011324289,956.4434093986564,959.10398325157337,962.13406455239317,965.55517793066485,969.38859158379876,973.65533612773072,978.37622103454567,983.57184908309898,989.26262915491247,969.57256493862349,977.15304326916873,986.09808296082838,996.50869313180954,1008.4843795177662,1022.123280517558,1037.5222820765873,1054.7771158964586,1073.9824442849558,1095.2319341445314,1118.6183220169587,1144.2334716797918]
[1001477686,4,1,1,1,3,3.0306803023566031,3,3,3,3.0230632761679481,2.1694249845207684E-2,0,0,0,1.6308198974734206E-2,0.12304063405958204,0,0,0,0.3677509745712596,10.208320333996825,13.243260944614924,16.795287547117443,20.898335090615813,25.585582173483054,30.889524476582746,36.842036338549633,43.474423051897745,50.817465771241231,58.901460450564159,67.756251890949088,77.411263737631444,0,0,0,0,0,0,0,0,0,0,0,0,0,0,0,0,0,0,0,0,0,0,0,0,0,0,0,0,0,0,0,0,0,0,0,0,4.9507756631690896,6.4226446506824182,8.1452871896351073,10.135160867043924,12.408356459059,14.980633544211758,17.867450365859522,21.08398919446757,24.64517810695375,28.565709870273789,32.860058453703466,37.542493576646898,0,0,0,0,0,0,0,0,0,0,0,0,949.32972702163988,950.61695782366553,952.12350396046941,953.86375850175716,955.85179372085247,958.10139224045133,960.62607314898037,963.43911418131495,966.55357076602024,969.98229254009038,973.73793778985203,977.83298617382718,964.48882301880587,970.28286341896285,977.06407869722204,984.8972544594169,993.84573235339451,1003.9715502612459,1015.3355598533896,1027.9975264276802,1042.0162146442151,1057.4494628609282,1074.3542481345046,1092.7867434881055]
[1001477798,4,1,1,1,3,3.0306803023566031,3,3,3,3.0230632761679481,2.1694249845207684E-2,0,0,0,1.6308198974734206E-2,0.12304063405958204,0,0,0,0.3677509745712596,9.5615006449442763,12.871203873079162,16.841887531525625,21.527333670816041,26.980451254940544,33.253361770335118,40.397470487172143,48.463526635693704,57.501674848808335,67.561499606835071,78.692063992957557,90.941943763863506,0,0,0,0,0,0,0,0,0,0,0,0,0,0,0,0,0,0,0,0,0,0,0,0,0,0,0,0,0,0,0,0,0,0,0,0,4.6370845690176408,6.2422064360884972,8.1678869965733512,10.440209176769525,13.084832478212583,16.127034495857711,19.59174547799272,23.503577510228823,27.886849463851373,32.765608550390063,38.1636491170282,44.104529169996113,0,0,0,0,0,0,0,0,0,0,0,0,949.05538681735641,950.45915462945584,952.14326874106985,954.13054011324289,956.4434093986564,959.10398325157337,962.13406455239317,965.55517793066485,969.38859158379876,973.65533612773072,978.37622103454567,983.57184908309898,963.25397203131831,969.57256493862349,977.15304326916873,986.09808296082838,996.50869313180954,1008.4843795177662,1022.123280517558,1037.5222820765873,1054.7771158964586,1073.9824442849558,1095.2319341445314,1118.6183220169587]
[1001477799,4,1,1,1,3,3.0306803023566031,3,3,3,3.0230632761679481,2.1694249845207684E-2,0,0,0,1.6308198974734206E-2,0.12304063405958204,0,0,0,0.3677509745712596,7.6556855199203593,10.208320333996825,13.243260944614924,16.795287547117443,20.898335090615813,25.585582173483054,30.889524476582746,36.842036338549633,43.474423051897745,50.817465771241231,58.901460450564159,67.756251890949088,0,0,0,0,0,0,0,0,0,0,0,0,0,0,0,0,0,0,0,0,0,0,0,0,0,0,0,0,0,0,0,0,0,0,0,0,3.7128127171591463,4.9507756631690896,6.4226446506824182,8.1452871896351073,10.135160867043924,12.408356459059,14.980633544211758,17.867450365859522,21.08398919446757,24.64517810695375,28.565709870273789,32.860058453703466,0,0,0,0,0,0,0,0,0,0,0,0,948.24705998443119,949.32972702163988,950.61695782366553,952.12350396046941,953.86375850175716,955.85179372085247,958.10139224045133,960.62607314898037,963.43911418131495,966.55357076602024,969.98229254009038,973.73793778985203,959.6155582215107,964.48882301880587,970.28286341896285,977.06407869722204,984.8972544594169,993.84573235339451,1003.9715502612459,1015.3355598533896,1027.9975264276802,1042.0162146442151,1057.4494628609282,1074.3542481345046]
[1001481507,1,1,1,1,2,0.75767007558915078,3,3,3,2.0153755174452987,-1.5855666952084297,0,0,0,-0.69623464853672468,0,0,0,0,0.18638531638083977,0,0,0,0,0,0,0,0,0,0,0,0,0,0,0,0,0,0,0,0,0,0,0,0,0,0,0,0,0,0,0,0,0,0,0,0,0,0,0,0,0,0,0,0,0,0,0,0,1.8817455854666143,2.5091759155393616,3.2551556297431095,4.1282336005305797,5.1367509412504493,6.2888628564050384,7.5925566913277791,9.0556670672109263,10.685888735339226,12.490787615402043,14.477810366162808,16.654292754293252,0,0,0,0,0,0,0,0,0,0,0,0,948.24705998443119,949.32972702163988,950.61695782366553,952.12350396046941,953.86375850175716,955.85179372085247,958.10139224045133,960.62607314898037,963.43911418131495,966.55357076602024,969.98229254009038,973.73793778985203,950.12880556989785,951.83890293717923,953.87211345340859,956.25173756100003,959.00050944300756,962.14065657725746,965.69394893177912,969.68174021619132,974.12500291665413,979.04435838142228,984.46010290625316,990.39223054414526]
[1001481508,1,1,1,1,2,0.75767007558915078,3,3,3,2.0153755174452987,-1.5855666952084297,0,0,0,-0.69623464853672468,0,0,0,0,0.18638531638083977,0,0,0,0,0,0,0,0,0,0,0,0,0,0,0,0,0,0,0,0,0,0,0,0,0,0,0,0,0,0,0,0,0,0,0,0,0,0,0,0,0,0,0,0,0,0,0,0,1.3640810822434415,1.8817455854666143,2.5091759155393616,3.2551556297431095,4.1282336005305797,5.1367509412504493,6.2888628564050384,7.5925566913277791,9.0556670672109263,10.685888735339226,12.490787615402043,14.477810366162808,0,0,0,0,0,0,0,0,0,0,0,0,947.35380017993987,948.24705998443119,949.32972702163988,950.61695782366553,952.12350396046941,953.86375850175716,955.85179372085247,958.10139224045133,960.62607314898037,963.43911418131495,966.55357076602024,969.98229254009038,948.71788126218325,950.12880556989785,951.83890293717923,953.87211345340859,956.25173756100003,959.00050944300756,962.14065657725746,965.69394893177912,969.68174021619132,974.12500291665413,979.04435838142228,984.46010290625316]
[1001481509,1,1,1,1,2,0.75767007558915078,3,3,3,2.0153755174452987,-1.5855666952084297,0,0,0,-0.69623464853672468,0,0,0,0,0.18638531638083977,0,0,0,0,0,0,0,0,0,0,0,0,0,0,0,0,0,0,0,0,0,0,0,0,0,0,0,0,0,0,0,0,0,0,0,0,0,0,0,0,0,0,0,0,0,0,0,0,0.94713026284444846,1.3640810822434415,1.8817455854666143,2.5091759155393616,3.2551556297431095,4.1282336005305797,5.1367509412504493,6.2888628564050384,7.5925566913277791,9.0556670672109263,10.685888735339226,12.490787615402043,0,0,0,0,0,0,0,0,0,0,0,0,946.63432761595311,947.35380017993987,948.24705998443119,949.32972702163988,950.61695782366553,952.12350396046941,953.86375850175716,955.85179372085247,958.10139224045133,960.62607314898037,963.43911418131495,966.55357076602024,947.58145787879755,948.71788126218325,950.12880556989785,951.83890293717923,953.87211345340859,956.25173756100003,959.00050944300756,962.14065657725746,965.69394893177912,969.68174021619132,974.12500291665413,979.04435838142228]
[1001481511,1,1,1,1,2,0.75767007558915078,3,3,3,2.0153755174452987,-1.5855666952084297,0,0,0,-0.69623464853672468,0,0,0,0,0.18638531638083977,0,0,0,0,0,0,0,0,0,0,0,0,0,0,0,0,0,0,0,0,0,0,0,0,0,0,0,0,0,0,0,0,0,0,0,0,0,0,0,0,0,0,0,0,0,0,0,0,0.62152856860967731,0.94713026284444846,1.3640810822434415,1.8817455854666143,2.5091759155393616,3.2551556297431095,4.1282336005305797,5.1367509412504493,6.2888628564050384,7.5925566913277791,9.0556670672109263,10.685888735339226,0,0,0,0,0,0,0,0,0,0,0,0,946.07248320915437,946.63432761595311,947.35380017993987,948.24705998443119,949.32972702163988,950.61695782366553,952.12350396046941,953.86375850175716,955.85179372085247,958.10139224045133,960.62607314898037,963.43911418131495,946.6940117777641,947.58145787879755,948.71788126218325,950.12880556989785,951.83890293717923,953.87211345340859,956.25173756100003,959.00050944300756,962.14065657725746,965.69394893177912,969.68174021619132,974.12500291665413]
[1001481559,4,1,1,1,3,3.0306803023566031,3,3,3,3.0230632761679481,2.1694249845207684E-2,0,0,0,1.6308198974734206E-2,0.12304063405958204,0,0,0,0.3677509745712596,5.5496215163108102,7.6556855199203593,10.208320333996825,13.243260944614924,16.795287547117443,20.898335090615813,25.585582173483054,30.889524476582746,36.842036338549633,43.474423051897745,50.817465771241231,58.901460450564159,0,0,0,0,0,0,0,0,0,0,0,0,0,0,0,0,0,0,0,0,0,0,0,0,0,0,0,0,0,0,0,0,0,0,0,0,2.6914252535014205,3.7128127171591463,4.9507756631690896,6.4226446506824182,8.1452871896351073,10.135160867043924,12.408356459059,14.980633544211758,17.867450365859522,21.08398919446757,24.64517810695375,28.565709870273789,0,0,0,0,0,0,0,0,0,0,0,0,947.35380017993987,948.24705998443119,949.32972702163988,950.61695782366553,952.12350396046941,953.86375850175716,955.85179372085247,958.10139224045133,960.62607314898037,963.43911418131495,966.55357076602024,969.98229254009038,955.59484694975208,959.6155582215107,964.48882301880587,970.28286341896285,977.06407869722204,984.8972544594169,993.84573235339451,1003.9715502612459,1015.3355598533896,1027.9975264276802,1042.0162146442151,1057.4494628609282]
[1001482403,4,1,1,1,3,3.0306803023566031,3,3,3,3.0230632761679481,2.1694249845207684E-2,0,0,0,1.6308198974734206E-2,0.12304063405958204,0,0,0,0.3677509745712596,10.208320333996825,13.243260944614924,16.795287547117443,20.898335090615813,25.585582173483054,30.889524476582746,36.842036338549633,43.474423051897745,50.817465771241231,58.901460450564159,67.756251890949088,77.411263737631444,0,0,0,0,0,0,0,0,0,0,0,0,0,0,0,0,0,0,0,0,0,0,0,0,0,0,0,0,0,0,0,0,0,0,0,0,4.9507756631690896,6.4226446506824182,8.1452871896351073,10.135160867043924,12.408356459059,14.980633544211758,17.867450365859522,21.08398919446757,24.64517810695375,28.565709870273789,32.860058453703466,37.542493576646898,0,0,0,0,0,0,0,0,0,0,0,0,949.32972702163988,950.61695782366553,952.12350396046941,953.86375850175716,955.85179372085247,958.10139224045133,960.62607314898037,963.43911418131495,966.55357076602024,969.98229254009038,973.73793778985203,977.83298617382718,964.48882301880587,970.28286341896285,977.06407869722204,984.8972544594169,993.84573235339451,1003.9715502612459,1015.3355598533896,1027.9975264276802,1042.0162146442151,1057.4494628609282,1074.3542481345046,1092.7867434881055]
[1001485864,4,1,1,1,3,3.0306803023566031,3,3,3,3.0230632761679481,2.1694249845207684E-2,0,0,0,1.6308198974734206E-2,0.12304063405958204,0,0,0,0.3677509745712596,10.208320333996825,13.243260944614924,16.795287547117443,20.898335090615813,25.585582173483054,30.889524476582746,36.842036338549633,43.474423051897745,50.817465771241231,58.901460450564159,67.756251890949088,77.411263737631444,0,0,0,0,0,0,0,0,0,0,0,0,0,0,0,0,0,0,0,0,0,0,0,0,0,0,0,0,0,0,0,0,0,0,0,0,4.9507756631690896,6.4226446506824182,8.1452871896351073,10.135160867043924,12.408356459059,14.980633544211758,17.867450365859522,21.08398919446757,24.64517810695375,28.565709870273789,32.860058453703466,37.542493576646898,0,0,0,0,0,0,0,0,0,0,0,0,949.32972702163988,950.61695782366553,952.12350396046941,953.86375850175716,955.85179372085247,958.10139224045133,960.62607314898037,963.43911418131495,966.55357076602024,969.98229254009038,973.73793778985203,977.83298617382718,964.48882301880587,970.28286341896285,977.06407869722204,984.8972544594169,993.84573235339451,1003.9715502612459,1015.3355598533896,1027.9975264276802,1042.0162146442151,1057.4494628609282,1074.3542481345046,1092.7867434881055]
[1001485865,4,1,1,1,3,3.0306803023566031,3,3,3,3.0230632761679481,2.1694249845207684E-2,0,0,0,1.6308198974734206E-2,0.12304063405958204,0,0,0,0.3677509745712596,10.208320333996825,13.243260944614924,16.795287547117443,20.898335090615813,25.585582173483054,30.889524476582746,36.842036338549633,43.474423051897745,50.817465771241231,58.901460450564159,67.756251890949088,77.411263737631444,0,0,0,0,0,0,0,0,0,0,0,0,0,0,0,0,0,0,0,0,0,0,0,0,0,0,0,0,0,0,0,0,0,0,0,0,4.9507756631690896,6.4226446506824182,8.1452871896351073,10.135160867043924,12.408356459059,14.980633544211758,17.867450365859522,21.08398919446757,24.64517810695375,28.565709870273789,32.860058453703466,37.542493576646898,0,0,0,0,0,0,0,0,0,0,0,0,949.32972702163988,950.61695782366553,952.12350396046941,953.86375850175716,955.85179372085247,958.10139224045133,960.62607314898037,963.43911418131495,966.55357076602024,969.98229254009038,973.73793778985203,977.83298617382718,964.48882301880587,970.28286341896285,977.06407869722204,984.8972544594169,993.84573235339451,1003.9715502612459,1015.3355598533896,1027.9975264276802,1042.0162146442151,1057.4494628609282,1074.3542481345046,1092.7867434881055]
[1001485866,4,1,1,1,3,3.0306803023566031,3,3,3,3.0230632761679481,2.1694249845207684E-2,0,0,0,1.6308198974734206E-2,0.12304063405958204,0,0,0,0.3677509745712596,7.6556855199203593,10.208320333996825,13.243260944614924,16.795287547117443,20.898335090615813,25.585582173483054,30.889524476582746,36.842036338549633,43.474423051897745,50.817465771241231,58.901460450564159,67.756251890949088,0,0,0,0,0,0,0,0,0,0,0,0,0,0,0,0,0,0,0,0,0,0,0,0,0,0,0,0,0,0,0,0,0,0,0,0,3.7128127171591463,4.9507756631690896,6.4226446506824182,8.1452871896351073,10.135160867043924,12.408356459059,14.980633544211758,17.867450365859522,21.08398919446757,24.64517810695375,28.565709870273789,32.860058453703466,0,0,0,0,0,0,0,0,0,0,0,0,948.24705998443119,949.32972702163988,950.61695782366553,952.12350396046941,953.86375850175716,955.85179372085247,958.10139224045133,960.62607314898037,963.43911418131495,966.55357076602024,969.98229254009038,973.73793778985203,959.6155582215107,964.48882301880587,970.28286341896285,977.06407869722204,984.8972544594169,993.84573235339451,1003.9715502612459,1015.3355598533896,1027.9975264276802,1042.0162146442151,1057.4494628609282,1074.3542481345046]
[1001485867,4,1,1,1,3,3.0306803023566031,3,3,3,3.0230632761679481,2.1694249845207684E-2,0,0,0,1.6308198974734206E-2,0.12304063405958204,0,0,0,0.3677509745712596,7.6556855199203593,10.208320333996825,13.243260944614924,16.795287547117443,20.898335090615813,25.585582173483054,30.889524476582746,36.842036338549633,43.474423051897745,50.817465771241231,58.901460450564159,67.756251890949088,0,0,0,0,0,0,0,0,0,0,0,0,0,0,0,0,0,0,0,0,0,0,0,0,0,0,0,0,0,0,0,0,0,0,0,0,3.7128127171591463,4.9507756631690896,6.4226446506824182,8.1452871896351073,10.135160867043924,12.408356459059,14.980633544211758,17.867450365859522,21.08398919446757,24.64517810695375,28.565709870273789,32.860058453703466,0,0,0,0,0,0,0,0,0,0,0,0,948.24705998443119,949.32972702163988,950.61695782366553,952.12350396046941,953.86375850175716,955.85179372085247,958.10139224045133,960.62607314898037,963.43911418131495,966.55357076602024,969.98229254009038,973.73793778985203,959.6155582215107,964.48882301880587,970.28286341896285,977.06407869722204,984.8972544594169,993.84573235339451,1003.9715502612459,1015.3355598533896,1027.9975264276802,1042.0162146442151,1057.4494628609282,1074.3542481345046]
[1001485868,4,1,1,1,3,3.0306803023566031,3,3,3,3.0230632761679481,2.1694249845207684E-2,0,0,0,1.6308198974734206E-2,0.12304063405958204,0,0,0,0.3677509745712596,7.6556855199203593,10.208320333996825,13.243260944614924,16.795287547117443,20.898335090615813,25.585582173483054,30.889524476582746,36.842036338549633,43.474423051897745,50.817465771241231,58.901460450564159,67.756251890949088,0,0,0,0,0,0,0,0,0,0,0,0,0,0,0,0,0,0,0,0,0,0,0,0,0,0,0,0,0,0,0,0,0,0,0,0,3.7128127171591463,4.9507756631690896,6.4226446506824182,8.1452871896351073,10.135160867043924,12.408356459059,14.980633544211758,17.867450365859522,21.08398919446757,24.64517810695375,28.565709870273789,32.860058453703466,0,0,0,0,0,0,0,0,0,0,0,0,948.24705998443119,949.32972702163988,950.61695782366553,952.12350396046941,953.86375850175716,955.85179372085247,958.10139224045133,960.62607314898037,963.43911418131495,966.55357076602024,969.98229254009038,973.73793778985203,959.6155582215107,964.48882301880587,970.28286341896285,977.06407869722204,984.8972544594169,993.84573235339451,1003.9715502612459,1015.3355598533896,1027.9975264276802,1042.0162146442151,1057.4494628609282,1074.3542481345046]
[1001485869,4,1,1,1,3,3.0306803023566031,3,3,3,3.0230632761679481,2.1694249845207684E-2,0,0,0,1.6308198974734206E-2,0.12304063405958204,0,0,0,0.3677509745712596,7.6556855199203593,10.208320333996825,13.243260944614924,16.795287547117443,20.898335090615813,25.585582173483054,30.889524476582746,36.842036338549633,43.474423051897745,50.817465771241231,58.901460450564159,67.756251890949088,0,0,0,0,0,0,0,0,0,0,0,0,0,0,0,0,0,0,0,0,0,0,0,0,0,0,0,0,0,0,0,0,0,0,0,0,3.7128127171591463,4.9507756631690896,6.4226446506824182,8.1452871896351073,10.135160867043924,12.408356459059,14.980633544211758,17.867450365859522,21.08398919446757,24.64517810695375,28.565709870273789,32.860058453703466,0,0,0,0,0,0,0,0,0,0,0,0,948.24705998443119,949.32972702163988,950.61695782366553,952.12350396046941,953.86375850175716,955.85179372085247,958.10139224045133,960.62607314898037,963.43911418131495,966.55357076602024,969.98229254009038,973.73793778985203,959.6155582215107,964.48882301880587,970.28286341896285,977.06407869722204,984.8972544594169,993.84573235339451,1003.9715502612459,1015.3355598533896,1027.9975264276802,1042.0162146442151,1057.4494628609282,1074.3542481345046]
[1001485870,4,1,1,1,3,3.0306803023566031,3,3,3,3.0230632761679481,2.1694249845207684E-2,0,0,0,1.6308198974734206E-2,0.12304063405958204,0,0,0,0.3677509745712596,10.208320333996825,13.243260944614924,16.795287547117443,20.898335090615813,25.585582173483054,30.889524476582746,36.842036338549633,43.474423051897745,50.817465771241231,58.901460450564159,67.756251890949088,77.411263737631444,0,0,0,0,0,0,0,0,0,0,0,0,0,0,0,0,0,0,0,0,0,0,0,0,0,0,0,0,0,0,0,0,0,0,0,0,4.9507756631690896,6.4226446506824182,8.1452871896351073,10.135160867043924,12.408356459059,14.980633544211758,17.867450365859522,21.08398919446757,24.64517810695375,28.565709870273789,32.860058453703466,37.542493576646898,0,0,0,0,0,0,0,0,0,0,0,0,949.32972702163988,950.61695782366553,952.12350396046941,953.86375850175716,955.85179372085247,958.10139224045133,960.62607314898037,963.43911418131495,966.55357076602024,969.98229254009038,973.73793778985203,977.83298617382718,964.48882301880587,970.28286341896285,977.06407869722204,984.8972544594169,993.84573235339451,1003.9715502612459,1015.3355598533896,1027.9975264276802,1042.0162146442151,1057.4494628609282,1074.3542481345046,1092.7867434881055]
[1001485871,4,1,1,1,3,3.0306803023566031,3,3,3,3.0230632761679481,2.1694249845207684E-2,0,0,0,1.6308198974734206E-2,0.12304063405958204,0,0,0,0.3677509745712596,10.208320333996825,13.243260944614924,16.795287547117443,20.898335090615813,25.585582173483054,30.889524476582746,36.842036338549633,43.474423051897745,50.817465771241231,58.901460450564159,67.756251890949088,77.411263737631444,0,0,0,0,0,0,0,0,0,0,0,0,0,0,0,0,0,0,0,0,0,0,0,0,0,0,0,0,0,0,0,0,0,0,0,0,4.9507756631690896,6.4226446506824182,8.1452871896351073,10.135160867043924,12.408356459059,14.980633544211758,17.867450365859522,21.08398919446757,24.64517810695375,28.565709870273789,32.860058453703466,37.542493576646898,0,0,0,0,0,0,0,0,0,0,0,0,949.32972702163988,950.61695782366553,952.12350396046941,953.86375850175716,955.85179372085247,958.10139224045133,960.62607314898037,963.43911418131495,966.55357076602024,969.98229254009038,973.73793778985203,977.83298617382718,964.48882301880587,970.28286341896285,977.06407869722204,984.8972544594169,993.84573235339451,1003.9715502612459,1015.3355598533896,1027.9975264276802,1042.0162146442151,1057.4494628609282,1074.3542481345046,1092.7867434881055]
[1001487639,4,1,1,1,3,3.0306803023566031,3,3,3,3.0230632761679481,2.1694249845207684E-2,0,0,0,1.6308198974734206E-2,0.12304063405958204,0,0,0,0.3677509745712596,10.208320333996825,13.243260944614924,16.795287547117443,20.898335090615813,25.585582173483054,30.889524476582746,36.842036338549633,43.474423051897745,50.817465771241231,58.901460450564159,67.756251890949088,77.411263737631444,0,0,0,0,0,0,0,0,0,0,0,0,0,0,0,0,0,0,0,0,0,0,0,0,0,0,0,0,0,0,0,0,0,0,0,0,4.9507756631690896,6.4226446506824182,8.1452871896351073,10.135160867043924,12.408356459059,14.980633544211758,17.867450365859522,21.08398919446757,24.64517810695375,28.565709870273789,32.860058453703466,37.542493576646898,0,0,0,0,0,0,0,0,0,0,0,0,949.32972702163988,950.61695782366553,952.12350396046941,953.86375850175716,955.85179372085247,958.10139224045133,960.62607314898037,963.43911418131495,966.55357076602024,969.98229254009038,973.73793778985203,977.83298617382718,964.48882301880587,970.28286341896285,977.06407869722204,984.8972544594169,993.84573235339451,1003.9715502612459,1015.3355598533896,1027.9975264276802,1042.0162146442151,1057.4494628609282,1074.3542481345046,1092.7867434881055]
[1001489786,4,1,1,1,3,3.0306803023566031,3,3,3,3.0230632761679481,2.1694249845207684E-2,0,0,0,1.6308198974734206E-2,0.12304063405958204,0,0,0,0.3677509745712596,5.5496215163108102,7.6556855199203593,10.208320333996825,13.243260944614924,16.795287547117443,20.898335090615813,25.585582173483054,30.889524476582746,36.842036338549633,43.474423051897745,50.817465771241231,58.901460450564159,0,0,0,0,0,0,0,0,0,0,0,0,0,0,0,0,0,0,0,0,0,0,0,0,0,0,0,0,0,0,0,0,0,0,0,0,2.6914252535014205,3.7128127171591463,4.9507756631690896,6.4226446506824182,8.1452871896351073,10.135160867043924,12.408356459059,14.980633544211758,17.867450365859522,21.08398919446757,24.64517810695375,28.565709870273789,0,0,0,0,0,0,0,0,0,0,0,0,947.35380017993987,948.24705998443119,949.32972702163988,950.61695782366553,952.12350396046941,953.86375850175716,955.85179372085247,958.10139224045133,960.62607314898037,963.43911418131495,966.55357076602024,969.98229254009038,955.59484694975208,959.6155582215107,964.48882301880587,970.28286341896285,977.06407869722204,984.8972544594169,993.84573235339451,1003.9715502612459,1015.3355598533896,1027.9975264276802,1042.0162146442151,1057.4494628609282]
[1001489800,4,1,1,1,3,3.0306803023566031,3,3,3,3.0230632761679481,2.1694249845207684E-2,0,0,0,1.6308198974734206E-2,0.12304063405958204,0,0,0,0.3677509745712596,7.6556855199203593,10.208320333996825,13.243260944614924,16.795287547117443,20.898335090615813,25.585582173483054,30.889524476582746,36.842036338549633,43.474423051897745,50.817465771241231,58.901460450564159,67.756251890949088,0,0,0,0,0,0,0,0,0,0,0,0,0,0,0,0,0,0,0,0,0,0,0,0,0,0,0,0,0,0,0,0,0,0,0,0,3.7128127171591463,4.9507756631690896,6.4226446506824182,8.1452871896351073,10.135160867043924,12.408356459059,14.980633544211758,17.867450365859522,21.08398919446757,24.64517810695375,28.565709870273789,32.860058453703466,0,0,0,0,0,0,0,0,0,0,0,0,948.24705998443119,949.32972702163988,950.61695782366553,952.12350396046941,953.86375850175716,955.85179372085247,958.10139224045133,960.62607314898037,963.43911418131495,966.55357076602024,969.98229254009038,973.73793778985203,959.6155582215107,964.48882301880587,970.28286341896285,977.06407869722204,984.8972544594169,993.84573235339451,1003.9715502612459,1015.3355598533896,1027.9975264276802,1042.0162146442151,1057.4494628609282,1074.3542481345046]
[1001489814,4,1,1,1,3,3.0306803023566031,3,3,3,3.0230632761679481,2.1694249845207684E-2,0,0,0,1.6308198974734206E-2,0.12304063405958204,0,0,0,0.3677509745712596,9.5615006449442763,12.871203873079162,16.841887531525625,21.527333670816041,26.980451254940544,33.253361770335118,40.397470487172143,48.463526635693704,57.501674848808335,67.561499606835071,78.692063992957557,90.941943763863506,0,0,0,0,0,0,0,0,0,0,0,0,0,0,0,0,0,0,0,0,0,0,0,0,0,0,0,0,0,0,0,0,0,0,0,0,4.6370845690176408,6.2422064360884972,8.1678869965733512,10.440209176769525,13.084832478212583,16.127034495857711,19.59174547799272,23.503577510228823,27.886849463851373,32.765608550390063,38.1636491170282,44.104529169996113,0,0,0,0,0,0,0,0,0,0,0,0,949.05538681735641,950.45915462945584,952.14326874106985,954.13054011324289,956.4434093986564,959.10398325157337,962.13406455239317,965.55517793066485,969.38859158379876,973.65533612773072,978.37622103454567,983.57184908309898,963.25397203131831,969.57256493862349,977.15304326916873,986.09808296082838,996.50869313180954,1008.4843795177662,1022.123280517558,1037.5222820765873,1054.7771158964586,1073.9824442849558,1095.2319341445314,1118.6183220169587]
[1001489815,4,1,1,1,3,3.0306803023566031,3,3,3,3.0230632761679481,2.1694249845207684E-2,0,0,0,1.6308198974734206E-2,0.12304063405958204,0,0,0,0.3677509745712596,7.6556855199203593,10.208320333996825,13.243260944614924,16.795287547117443,20.898335090615813,25.585582173483054,30.889524476582746,36.842036338549633,43.474423051897745,50.817465771241231,58.901460450564159,67.756251890949088,0,0,0,0,0,0,0,0,0,0,0,0,0,0,0,0,0,0,0,0,0,0,0,0,0,0,0,0,0,0,0,0,0,0,0,0,3.7128127171591463,4.9507756631690896,6.4226446506824182,8.1452871896351073,10.135160867043924,12.408356459059,14.980633544211758,17.867450365859522,21.08398919446757,24.64517810695375,28.565709870273789,32.860058453703466,0,0,0,0,0,0,0,0,0,0,0,0,948.24705998443119,949.32972702163988,950.61695782366553,952.12350396046941,953.86375850175716,955.85179372085247,958.10139224045133,960.62607314898037,963.43911418131495,966.55357076602024,969.98229254009038,973.73793778985203,959.6155582215107,964.48882301880587,970.28286341896285,977.06407869722204,984.8972544594169,993.84573235339451,1003.9715502612459,1015.3355598533896,1027.9975264276802,1042.0162146442151,1057.4494628609282,1074.3542481345046]
[1001489837,4,1,1,1,3,3.0306803023566031,3,3,3,3.0230632761679481,2.1694249845207684E-2,0,0,0,1.6308198974734206E-2,0.12304063405958204,0,0,0,0.3677509745712596,7.6556855199203593,10.208320333996825,13.243260944614924,16.795287547117443,20.898335090615813,25.585582173483054,30.889524476582746,36.842036338549633,43.474423051897745,50.817465771241231,58.901460450564159,67.756251890949088,0,0,0,0,0,0,0,0,0,0,0,0,0,0,0,0,0,0,0,0,0,0,0,0,0,0,0,0,0,0,0,0,0,0,0,0,3.7128127171591463,4.9507756631690896,6.4226446506824182,8.1452871896351073,10.135160867043924,12.408356459059,14.980633544211758,17.867450365859522,21.08398919446757,24.64517810695375,28.565709870273789,32.860058453703466,0,0,0,0,0,0,0,0,0,0,0,0,948.24705998443119,949.32972702163988,950.61695782366553,952.12350396046941,953.86375850175716,955.85179372085247,958.10139224045133,960.62607314898037,963.43911418131495,966.55357076602024,969.98229254009038,973.73793778985203,959.6155582215107,964.48882301880587,970.28286341896285,977.06407869722204,984.8972544594169,993.84573235339451,1003.9715502612459,1015.3355598533896,1027.9975264276802,1042.0162146442151,1057.4494628609282,1074.3542481345046]
[1001489838,4,1,1,1,3,3.0306803023566031,3,3,3,3.0230632761679481,2.1694249845207684E-2,0,0,0,1.6308198974734206E-2,0.12304063405958204,0,0,0,0.3677509745712596,7.6556855199203593,10.208320333996825,13.243260944614924,16.795287547117443,20.898335090615813,25.585582173483054,30.889524476582746,36.842036338549633,43.474423051897745,50.817465771241231,58.901460450564159,67.756251890949088,0,0,0,0,0,0,0,0,0,0,0,0,0,0,0,0,0,0,0,0,0,0,0,0,0,0,0,0,0,0,0,0,0,0,0,0,3.7128127171591463,4.9507756631690896,6.4226446506824182,8.1452871896351073,10.135160867043924,12.408356459059,14.980633544211758,17.867450365859522,21.08398919446757,24.64517810695375,28.565709870273789,32.860058453703466,0,0,0,0,0,0,0,0,0,0,0,0,948.24705998443119,949.32972702163988,950.61695782366553,952.12350396046941,953.86375850175716,955.85179372085247,958.10139224045133,960.62607314898037,963.43911418131495,966.55357076602024,969.98229254009038,973.73793778985203,959.6155582215107,964.48882301880587,970.28286341896285,977.06407869722204,984.8972544594169,993.84573235339451,1003.9715502612459,1015.3355598533896,1027.9975264276802,1042.0162146442151,1057.4494628609282,1074.3542481345046]
[1001495907,4,1,1,1,3,3.0306803023566031,3,3,3,3.0230632761679481,2.1694249845207684E-2,0,0,0,1.6308198974734206E-2,0.12304063405958204,0,0,0,0.3677509745712596,4.7048882646945964,6.8580180947884282,9.5615006449442763,12.871203873079162,16.841887531525625,21.527333670816041,26.980451254940544,33.253361770335118,40.397470487172143,48.463526635693704,57.501674848808335,67.561499606835071,0,0,0,0,0,0,0,0,0,0,0,0,0,0,0,0,0,0,0,0,0,0,0,0,0,0,0,0,0,0,0,0,0,0,0,0,2.2817511164111464,3.3259643085630426,4.6370845690176408,6.2422064360884972,8.1678869965733512,10.440209176769525,13.084832478212583,16.127034495857711,19.59174547799272,23.503577510228823,27.886849463851373,32.765608550390063,0,0,0,0,0,0,0,0,0,0,0,0,946.99551749817283,947.90873966415541,949.05538681735641,950.45915462945584,952.14326874106985,954.13054011324289,956.4434093986564,959.10398325157337,962.13406455239317,965.55517793066485,969.38859158379876,973.65533612773072,953.98215687927848,958.09272206750688,963.25397203131831,969.57256493862349,977.15304326916873,986.09808296082838,996.50869313180954,1008.4843795177662,1022.123280517558,1037.5222820765873,1054.7771158964586,1073.9824442849558]
[1001495908,4,1,1,1,3,3.0306803023566031,3,3,3,3.0230632761679481,2.1694249845207684E-2,0,0,0,1.6308198974734206E-2,0.12304063405958204,0,0,0,0.3677509745712596,3.8533006240259637,5.5496215163108102,7.6556855199203593,10.208320333996825,13.243260944614924,16.795287547117443,20.898335090615813,25.585582173483054,30.889524476582746,36.842036338549633,43.474423051897745,50.817465771241231,0,0,0,0,0,0,0,0,0,0,0,0,0,0,0,0,0,0,0,0,0,0,0,0,0,0,0,0,0,0,0,0,0,0,0,0,1.8687527750055364,2.6914252535014205,3.7128127171591463,4.9507756631690896,6.4226446506824182,8.1452871896351073,10.135160867043924,12.408356459059,14.980633544211758,17.867450365859522,21.08398919446757,24.64517810695375,0,0,0,0,0,0,0,0,0,0,0,0,946.63432761595311,947.35380017993987,948.24705998443119,949.32972702163988,950.61695782366553,952.12350396046941,953.86375850175716,955.85179372085247,958.10139224045133,960.62607314898037,963.43911418131495,966.55357076602024,952.35638101498466,955.59484694975208,959.6155582215107,964.48882301880587,970.28286341896285,977.06407869722204,984.8972544594169,993.84573235339451,1003.9715502612459,1015.3355598533896,1027.9975264276802,1042.0162146442151]
[1001499723,4,1,1,1,3,3.0306803023566031,3,3,3,3.0230632761679481,2.1694249845207684E-2,0,0,0,1.6308198974734206E-2,0.12304063405958204,0,0,0,0.3677509745712596,5.5496215163108102,7.6556855199203593,10.208320333996825,13.243260944614924,16.795287547117443,20.898335090615813,25.585582173483054,30.889524476582746,36.842036338549633,43.474423051897745,50.817465771241231,58.901460450564159,0,0,0,0,0,0,0,0,0,0,0,0,0,0,0,0,0,0,0,0,0,0,0,0,0,0,0,0,0,0,0,0,0,0,0,0,2.6914252535014205,3.7128127171591463,4.9507756631690896,6.4226446506824182,8.1452871896351073,10.135160867043924,12.408356459059,14.980633544211758,17.867450365859522,21.08398919446757,24.64517810695375,28.565709870273789,0,0,0,0,0,0,0,0,0,0,0,0,947.35380017993987,948.24705998443119,949.32972702163988,950.61695782366553,952.12350396046941,953.86375850175716,955.85179372085247,958.10139224045133,960.62607314898037,963.43911418131495,966.55357076602024,969.98229254009038,955.59484694975208,959.6155582215107,964.48882301880587,970.28286341896285,977.06407869722204,984.8972544594169,993.84573235339451,1003.9715502612459,1015.3355598533896,1027.9975264276802,1042.0162146442151,1057.4494628609282]
[1001499724,4,1,1,1,3,3.0306803023566031,3,3,3,3.0230632761679481,2.1694249845207684E-2,0,0,0,1.6308198974734206E-2,0.12304063405958204,0,0,0,0.3677509745712596,5.5496215163108102,7.6556855199203593,10.208320333996825,13.243260944614924,16.795287547117443,20.898335090615813,25.585582173483054,30.889524476582746,36.842036338549633,43.474423051897745,50.817465771241231,58.901460450564159,0,0,0,0,0,0,0,0,0,0,0,0,0,0,0,0,0,0,0,0,0,0,0,0,0,0,0,0,0,0,0,0,0,0,0,0,2.6914252535014205,3.7128127171591463,4.9507756631690896,6.4226446506824182,8.1452871896351073,10.135160867043924,12.408356459059,14.980633544211758,17.867450365859522,21.08398919446757,24.64517810695375,28.565709870273789,0,0,0,0,0,0,0,0,0,0,0,0,947.35380017993987,948.24705998443119,949.32972702163988,950.61695782366553,952.12350396046941,953.86375850175716,955.85179372085247,958.10139224045133,960.62607314898037,963.43911418131495,966.55357076602024,969.98229254009038,955.59484694975208,959.6155582215107,964.48882301880587,970.28286341896285,977.06407869722204,984.8972544594169,993.84573235339451,1003.9715502612459,1015.3355598533896,1027.9975264276802,1042.0162146442151,1057.4494628609282]
[1001503043,4,1,1,1,3,3.0306803023566031,3,3,3,3.0230632761679481,2.1694249845207684E-2,0,0,0,1.6308198974734206E-2,0.12304063405958204,0,0,0,0.3677509745712596,7.6556855199203593,10.208320333996825,13.243260944614924,16.795287547117443,20.898335090615813,25.585582173483054,30.889524476582746,36.842036338549633,43.474423051897745,50.817465771241231,58.901460450564159,67.756251890949088,0,0,0,0,0,0,0,0,0,0,0,0,0,0,0,0,0,0,0,0,0,0,0,0,0,0,0,0,0,0,0,0,0,0,0,0,3.7128127171591463,4.9507756631690896,6.4226446506824182,8.1452871896351073,10.135160867043924,12.408356459059,14.980633544211758,17.867450365859522,21.08398919446757,24.64517810695375,28.565709870273789,32.860058453703466,0,0,0,0,0,0,0,0,0,0,0,0,948.24705998443119,949.32972702163988,950.61695782366553,952.12350396046941,953.86375850175716,955.85179372085247,958.10139224045133,960.62607314898037,963.43911418131495,966.55357076602024,969.98229254009038,973.73793778985203,959.6155582215107,964.48882301880587,970.28286341896285,977.06407869722204,984.8972544594169,993.84573235339451,1003.9715502612459,1015.3355598533896,1027.9975264276802,1042.0162146442151,1057.4494628609282,1074.3542481345046]
[1001503044,4,1,1,1,3,3.0306803023566031,3,3,3,3.0230632761679481,2.1694249845207684E-2,0,0,0,1.6308198974734206E-2,0.12304063405958204,0,0,0,0.3677509745712596,7.6556855199203593,10.208320333996825,13.243260944614924,16.795287547117443,20.898335090615813,25.585582173483054,30.889524476582746,36.842036338549633,43.474423051897745,50.817465771241231,58.901460450564159,67.756251890949088,0,0,0,0,0,0,0,0,0,0,0,0,0,0,0,0,0,0,0,0,0,0,0,0,0,0,0,0,0,0,0,0,0,0,0,0,3.7128127171591463,4.9507756631690896,6.4226446506824182,8.1452871896351073,10.135160867043924,12.408356459059,14.980633544211758,17.867450365859522,21.08398919446757,24.64517810695375,28.565709870273789,32.860058453703466,0,0,0,0,0,0,0,0,0,0,0,0,948.24705998443119,949.32972702163988,950.61695782366553,952.12350396046941,953.86375850175716,955.85179372085247,958.10139224045133,960.62607314898037,963.43911418131495,966.55357076602024,969.98229254009038,973.73793778985203,959.6155582215107,964.48882301880587,970.28286341896285,977.06407869722204,984.8972544594169,993.84573235339451,1003.9715502612459,1015.3355598533896,1027.9975264276802,1042.0162146442151,1057.4494628609282,1074.3542481345046]
[1001503045,4,1,1,1,3,3.0306803023566031,3,3,3,3.0230632761679481,2.1694249845207684E-2,0,0,0,1.6308198974734206E-2,0.12304063405958204,0,0,0,0.3677509745712596,7.6556855199203593,10.208320333996825,13.243260944614924,16.795287547117443,20.898335090615813,25.585582173483054,30.889524476582746,36.842036338549633,43.474423051897745,50.817465771241231,58.901460450564159,67.756251890949088,0,0,0,0,0,0,0,0,0,0,0,0,0,0,0,0,0,0,0,0,0,0,0,0,0,0,0,0,0,0,0,0,0,0,0,0,3.7128127171591463,4.9507756631690896,6.4226446506824182,8.1452871896351073,10.135160867043924,12.408356459059,14.980633544211758,17.867450365859522,21.08398919446757,24.64517810695375,28.565709870273789,32.860058453703466,0,0,0,0,0,0,0,0,0,0,0,0,948.24705998443119,949.32972702163988,950.61695782366553,952.12350396046941,953.86375850175716,955.85179372085247,958.10139224045133,960.62607314898037,963.43911418131495,966.55357076602024,969.98229254009038,973.73793778985203,959.6155582215107,964.48882301880587,970.28286341896285,977.06407869722204,984.8972544594169,993.84573235339451,1003.9715502612459,1015.3355598533896,1027.9975264276802,1042.0162146442151,1057.4494628609282,1074.3542481345046]
[1001503857,4,1,1,1,3,3.0306803023566031,3,3,3,3.0230632761679481,2.1694249845207684E-2,0,0,0,1.6308198974734206E-2,0.12304063405958204,0,0,0,0.3677509745712596,3.8533006240259637,5.5496215163108102,7.6556855199203593,10.208320333996825,13.243260944614924,16.795287547117443,20.898335090615813,25.585582173483054,30.889524476582746,36.842036338549633,43.474423051897745,50.817465771241231,0,0,0,0,0,0,0,0,0,0,0,0,0,0,0,0,0,0,0,0,0,0,0,0,0,0,0,0,0,0,0,0,0,0,0,0,1.8687527750055364,2.6914252535014205,3.7128127171591463,4.9507756631690896,6.4226446506824182,8.1452871896351073,10.135160867043924,12.408356459059,14.980633544211758,17.867450365859522,21.08398919446757,24.64517810695375,0,0,0,0,0,0,0,0,0,0,0,0,946.63432761595311,947.35380017993987,948.24705998443119,949.32972702163988,950.61695782366553,952.12350396046941,953.86375850175716,955.85179372085247,958.10139224045133,960.62607314898037,963.43911418131495,966.55357076602024,952.35638101498466,955.59484694975208,959.6155582215107,964.48882301880587,970.28286341896285,977.06407869722204,984.8972544594169,993.84573235339451,1003.9715502612459,1015.3355598533896,1027.9975264276802,1042.0162146442151]
[1001503858,4,1,1,1,3,3.0306803023566031,3,3,3,3.0230632761679481,2.1694249845207684E-2,0,0,0,1.6308198974734206E-2,0.12304063405958204,0,0,0,0.3677509745712596,5.7413338553552258,8.4699990236497129,11.934911320464602,16.219461958480981,21.406215965875141,27.577002427660744,34.812987497018305,43.194734643958625,52.802255191383644,63.715051291511266,76.01215290533267,89.772149946485101,0,0,0,0,0,0,0,0,0,0,0,0,0,0,0,0,0,0,0,0,0,0,0,0,0,0,0,0,0,0,0,0,0,0,0,0,2.7844008607920174,4.1077340504001469,5.7881283672750197,7.8660264281014571,10.381470171097517,13.374144620769716,16.883413296550422,20.948347431866907,25.607750482845223,30.90017897078291,36.863960416245071,43.537208928024917,0,0,0,0,0,0,0,0,0,0,0,0,947.43511248868253,948.59244052362158,950.06203825452053,951.87927498554507,954.07916960539001,956.69642886197744,959.76547832926769,963.32048796095035,967.39539352466124,972.02391482987673,977.23957141227243,983.07569616713079,955.96084720482986,961.17017359767146,967.78507794226016,975.96476337212755,985.86685574236265,997.64757591040791,1011.4618791228364,1027.4635700367758,1045.80539919889,1066.639145092171,1090.1156847338502,1116.3850550416407]
[1001503867,4,1,1,1,3,3.0306803023566031,3,3,3,3.0230632761679481,2.1694249845207684E-2,0,0,0,1.6308198974734206E-2,0.12304063405958204,0,0,0,0.3677509745712596,1.5359838080958728,2.5286241135206606,3.8533006240259637,5.5496215163108102,7.6556855199203593,10.208320333996825,13.243260944614924,16.795287547117443,20.898335090615813,25.585582173483054,30.889524476582746,36.842036338549633,0,0,0,0,0,0,0,0,0,0,0,0,0,0,0,0,0,0,0,0,0,0,0,0,0,0,0,0,0,0,0,0,0,0,0,0,0.74491307162630371,1.2263183670706013,1.8687527750055364,2.6914252535014205,3.7128127171591463,4.9507756631690896,6.4226446506824182,8.1452871896351073,10.135160867043924,12.408356459059,14.980633544211758,17.867450365859522,0,0,0,0,0,0,0,0,0,0,0,0,945.65146766374153,946.07248320915437,946.63432761595311,947.35380017993987,948.24705998443119,949.32972702163988,950.61695782366553,952.12350396046941,953.86375850175716,955.85179372085247,958.10139224045133,960.62607314898037,947.93236454346379,949.82742568974561,952.35638101498466,955.59484694975208,959.6155582215107,964.48882301880587,970.28286341896285,977.06407869722204,984.8972544594169,993.84573235339451,1003.9715502612459,1015.3355598533896]
[1001503868,4,1,1,1,3,3.0306803023566031,3,3,3,3.0230632761679481,2.1694249845207684E-2,0,0,0,1.6308198974734206E-2,0.12304063405958204,0,0,0,0.3677509745712596,1.5359838080958728,2.5286241135206606,3.8533006240259637,5.5496215163108102,7.6556855199203593,10.208320333996825,13.243260944614924,16.795287547117443,20.898335090615813,25.585582173483054,30.889524476582746,36.842036338549633,0,0,0,0,0,0,0,0,0,0,0,0,0,0,0,0,0,0,0,0,0,0,0,0,0,0,0,0,0,0,0,0,0,0,0,0,0.74491307162630371,1.2263183670706013,1.8687527750055364,2.6914252535014205,3.7128127171591463,4.9507756631690896,6.4226446506824182,8.1452871896351073,10.135160867043924,12.408356459059,14.980633544211758,17.867450365859522,0,0,0,0,0,0,0,0,0,0,0,0,945.65146766374153,946.07248320915437,946.63432761595311,947.35380017993987,948.24705998443119,949.32972702163988,950.61695782366553,952.12350396046941,953.86375850175716,955.85179372085247,958.10139224045133,960.62607314898037,947.93236454346379,949.82742568974561,952.35638101498466,955.59484694975208,959.6155582215107,964.48882301880587,970.28286341896285,977.06407869722204,984.8972544594169,993.84573235339451,1003.9715502612459,1015.3355598533896]
[1001503871,4,1,1,1,3,3.0306803023566031,3,3,3,3.0230632761679481,2.1694249845207684E-2,0,0,0,1.6308198974734206E-2,0.12304063405958204,0,0,0,0.3677509745712596,5.5496215163108102,7.6556855199203593,10.208320333996825,13.243260944614924,16.795287547117443,20.898335090615813,25.585582173483054,30.889524476582746,36.842036338549633,43.474423051897745,50.817465771241231,58.901460450564159,0,0,0,0,0,0,0,0,0,0,0,0,0,0,0,0,0,0,0,0,0,0,0,0,0,0,0,0,0,0,0,0,0,0,0,0,2.6914252535014205,3.7128127171591463,4.9507756631690896,6.4226446506824182,8.1452871896351073,10.135160867043924,12.408356459059,14.980633544211758,17.867450365859522,21.08398919446757,24.64517810695375,28.565709870273789,0,0,0,0,0,0,0,0,0,0,0,0,947.35380017993987,948.24705998443119,949.32972702163988,950.61695782366553,952.12350396046941,953.86375850175716,955.85179372085247,958.10139224045133,960.62607314898037,963.43911418131495,966.55357076602024,969.98229254009038,955.59484694975208,959.6155582215107,964.48882301880587,970.28286341896285,977.06407869722204,984.8972544594169,993.84573235339451,1003.9715502612459,1015.3355598533896,1027.9975264276802,1042.0162146442151,1057.4494628609282]
[1001503879,4,1,1,1,3,3.0306803023566031,3,3,3,3.0230632761679481,2.1694249845207684E-2,0,0,0,1.6308198974734206E-2,0.12304063405958204,0,0,0,0.3677509745712596,1.5359838080958728,2.5286241135206606,3.8533006240259637,5.5496215163108102,7.6556855199203593,10.208320333996825,13.243260944614924,16.795287547117443,20.898335090615813,25.585582173483054,30.889524476582746,36.842036338549633,0,0,0,0,0,0,0,0,0,0,0,0,0,0,0,0,0,0,0,0,0,0,0,0,0,0,0,0,0,0,0,0,0,0,0,0,0.74491307162630371,1.2263183670706013,1.8687527750055364,2.6914252535014205,3.7128127171591463,4.9507756631690896,6.4226446506824182,8.1452871896351073,10.135160867043924,12.408356459059,14.980633544211758,17.867450365859522,0,0,0,0,0,0,0,0,0,0,0,0,945.65146766374153,946.07248320915437,946.63432761595311,947.35380017993987,948.24705998443119,949.32972702163988,950.61695782366553,952.12350396046941,953.86375850175716,955.85179372085247,958.10139224045133,960.62607314898037,947.93236454346379,949.82742568974561,952.35638101498466,955.59484694975208,959.6155582215107,964.48882301880587,970.28286341896285,977.06407869722204,984.8972544594169,993.84573235339451,1003.9715502612459,1015.3355598533896]
[1001505510,4,1,1,1,3,3.0306803023566031,3,3,3,3.0230632761679481,2.1694249845207684E-2,0,0,0,1.6308198974734206E-2,0.12304063405958204,0,0,0,0.3677509745712596,0.96840004471247532,1.819618278554318,3.0449679999843098,4.7048882646945964,6.8580180947884282,9.5615006449442763,12.871203873079162,16.841887531525625,21.527333670816041,26.980451254940544,33.253361770335118,40.397470487172143,0,0,0,0,0,0,0,0,0,0,0,0,0,0,0,0,0,0,0,0,0,0,0,0,0,0,0,0,0,0,0,0,0,0,0,0,0.46964938566904041,0.88246857416133617,1.4767320162599895,2.2817511164111464,3.3259643085630426,4.6370845690176408,6.2422064360884972,8.1678869965733512,10.440209176769525,13.084832478212583,16.127034495857711,19.59174547799272,0,0,0,0,0,0,0,0,0,0,0,0,945.41073435238752,945.7717675554801,946.29148378951766,946.99551749817283,947.90873966415541,949.05538681735641,950.45915462945584,952.14326874106985,954.13054011324289,956.4434093986564,959.10398325157337,962.13406455239317,946.84878378276903,948.47385440819573,950.81318380576204,953.98215687927848,958.09272206750688,963.25397203131831,969.57256493862349,977.15304326916873,986.09808296082838,996.50869313180954,1008.4843795177662,1022.123280517558]
[1001505511,4,1,1,1,3,3.0306803023566031,3,3,3,3.0230632761679481,2.1694249845207684E-2,0,0,0,1.6308198974734206E-2,0.12304063405958204,0,0,0,0.3677509745712596,0.96840004471247532,1.819618278554318,3.0449679999843098,4.7048882646945964,6.8580180947884282,9.5615006449442763,12.871203873079162,16.841887531525625,21.527333670816041,26.980451254940544,33.253361770335118,40.397470487172143,0,0,0,0,0,0,0,0,0,0,0,0,0,0,0,0,0,0,0,0,0,0,0,0,0,0,0,0,0,0,0,0,0,0,0,0,0.46964938566904041,0.88246857416133617,1.4767320162599895,2.2817511164111464,3.3259643085630426,4.6370845690176408,6.2422064360884972,8.1678869965733512,10.440209176769525,13.084832478212583,16.127034495857711,19.59174547799272,0,0,0,0,0,0,0,0,0,0,0,0,945.41073435238752,945.7717675554801,946.29148378951766,946.99551749817283,947.90873966415541,949.05538681735641,950.45915462945584,952.14326874106985,954.13054011324289,956.4434093986564,959.10398325157337,962.13406455239317,946.84878378276903,948.47385440819573,950.81318380576204,953.98215687927848,958.09272206750688,963.25397203131831,969.57256493862349,977.15304326916873,986.09808296082838,996.50869313180954,1008.4843795177662,1022.123280517558]
[1001505512,4,1,1,1,3,3.0306803023566031,3,3,3,3.0230632761679481,2.1694249845207684E-2,0,0,0,1.6308198974734206E-2,0.12304063405958204,0,0,0,0.3677509745712596,0.96840004471247532,1.819618278554318,3.0449679999843098,4.7048882646945964,6.8580180947884282,9.5615006449442763,12.871203873079162,16.841887531525625,21.527333670816041,26.980451254940544,33.253361770335118,40.397470487172143,0,0,0,0,0,0,0,0,0,0,0,0,0,0,0,0,0,0,0,0,0,0,0,0,0,0,0,0,0,0,0,0,0,0,0,0,0.46964938566904041,0.88246857416133617,1.4767320162599895,2.2817511164111464,3.3259643085630426,4.6370845690176408,6.2422064360884972,8.1678869965733512,10.440209176769525,13.084832478212583,16.127034495857711,19.59174547799272,0,0,0,0,0,0,0,0,0,0,0,0,945.41073435238752,945.7717675554801,946.29148378951766,946.99551749817283,947.90873966415541,949.05538681735641,950.45915462945584,952.14326874106985,954.13054011324289,956.4434093986564,959.10398325157337,962.13406455239317,946.84878378276903,948.47385440819573,950.81318380576204,953.98215687927848,958.09272206750688,963.25397203131831,969.57256493862349,977.15304326916873,986.09808296082838,996.50869313180954,1008.4843795177662,1022.123280517558]
[1001505513,4,1,1,1,3,3.0306803023566031,3,3,3,3.0230632761679481,2.1694249845207684E-2,0,0,0,1.6308198974734206E-2,0.12304063405958204,0,0,0,0.3677509745712596,1.5359838080958728,2.5286241135206606,3.8533006240259637,5.5496215163108102,7.6556855199203593,10.208320333996825,13.243260944614924,16.795287547117443,20.898335090615813,25.585582173483054,30.889524476582746,36.842036338549633,0,0,0,0,0,0,0,0,0,0,0,0,0,0,0,0,0,0,0,0,0,0,0,0,0,0,0,0,0,0,0,0,0,0,0,0,0.74491307162630371,1.2263183670706013,1.8687527750055364,2.6914252535014205,3.7128127171591463,4.9507756631690896,6.4226446506824182,8.1452871896351073,10.135160867043924,12.408356459059,14.980633544211758,17.867450365859522,0,0,0,0,0,0,0,0,0,0,0,0,945.65146766374153,946.07248320915437,946.63432761595311,947.35380017993987,948.24705998443119,949.32972702163988,950.61695782366553,952.12350396046941,953.86375850175716,955.85179372085247,958.10139224045133,960.62607314898037,947.93236454346379,949.82742568974561,952.35638101498466,955.59484694975208,959.6155582215107,964.48882301880587,970.28286341896285,977.06407869722204,984.8972544594169,993.84573235339451,1003.9715502612459,1015.3355598533896]
[1001505514,4,1,1,1,3,3.0306803023566031,3,3,3,3.0230632761679481,2.1694249845207684E-2,0,0,0,1.6308198974734206E-2,0.12304063405958204,0,0,0,0.3677509745712596,4.7048882646945964,6.8580180947884282,9.5615006449442763,12.871203873079162,16.841887531525625,21.527333670816041,26.980451254940544,33.253361770335118,40.397470487172143,48.463526635693704,57.501674848808335,67.561499606835071,0,0,0,0,0,0,0,0,0,0,0,0,0,0,0,0,0,0,0,0,0,0,0,0,0,0,0,0,0,0,0,0,0,0,0,0,2.2817511164111464,3.3259643085630426,4.6370845690176408,6.2422064360884972,8.1678869965733512,10.440209176769525,13.084832478212583,16.127034495857711,19.59174547799272,23.503577510228823,27.886849463851373,32.765608550390063,0,0,0,0,0,0,0,0,0,0,0,0,946.99551749817283,947.90873966415541,949.05538681735641,950.45915462945584,952.14326874106985,954.13054011324289,956.4434093986564,959.10398325157337,962.13406455239317,965.55517793066485,969.38859158379876,973.65533612773072,953.98215687927848,958.09272206750688,963.25397203131831,969.57256493862349,977.15304326916873,986.09808296082838,996.50869313180954,1008.4843795177662,1022.123280517558,1037.5222820765873,1054.7771158964586,1073.9824442849558]
[1001505537,4,1,1,1,3,3.0306803023566031,3,3,3,3.0230632761679481,2.1694249845207684E-2,0,0,0,1.6308198974734206E-2,0.12304063405958204,0,0,0,0.3677509745712596,7.6556855199203593,10.208320333996825,13.243260944614924,16.795287547117443,20.898335090615813,25.585582173483054,30.889524476582746,36.842036338549633,43.474423051897745,50.817465771241231,58.901460450564159,67.756251890949088,0,0,0,0,0,0,0,0,0,0,0,0,0,0,0,0,0,0,0,0,0,0,0,0,0,0,0,0,0,0,0,0,0,0,0,0,3.7128127171591463,4.9507756631690896,6.4226446506824182,8.1452871896351073,10.135160867043924,12.408356459059,14.980633544211758,17.867450365859522,21.08398919446757,24.64517810695375,28.565709870273789,32.860058453703466,0,0,0,0,0,0,0,0,0,0,0,0,948.24705998443119,949.32972702163988,950.61695782366553,952.12350396046941,953.86375850175716,955.85179372085247,958.10139224045133,960.62607314898037,963.43911418131495,966.55357076602024,969.98229254009038,973.73793778985203,959.6155582215107,964.48882301880587,970.28286341896285,977.06407869722204,984.8972544594169,993.84573235339451,1003.9715502612459,1015.3355598533896,1027.9975264276802,1042.0162146442151,1057.4494628609282,1074.3542481345046]
[1001505538,4,1,1,1,3,3.0306803023566031,3,3,3,3.0230632761679481,2.1694249845207684E-2,0,0,0,1.6308198974734206E-2,0.12304063405958204,0,0,0,0.3677509745712596,7.6556855199203593,10.208320333996825,13.243260944614924,16.795287547117443,20.898335090615813,25.585582173483054,30.889524476582746,36.842036338549633,43.474423051897745,50.817465771241231,58.901460450564159,67.756251890949088,0,0,0,0,0,0,0,0,0,0,0,0,0,0,0,0,0,0,0,0,0,0,0,0,0,0,0,0,0,0,0,0,0,0,0,0,3.7128127171591463,4.9507756631690896,6.4226446506824182,8.1452871896351073,10.135160867043924,12.408356459059,14.980633544211758,17.867450365859522,21.08398919446757,24.64517810695375,28.565709870273789,32.860058453703466,0,0,0,0,0,0,0,0,0,0,0,0,948.24705998443119,949.32972702163988,950.61695782366553,952.12350396046941,953.86375850175716,955.85179372085247,958.10139224045133,960.62607314898037,963.43911418131495,966.55357076602024,969.98229254009038,973.73793778985203,959.6155582215107,964.48882301880587,970.28286341896285,977.06407869722204,984.8972544594169,993.84573235339451,1003.9715502612459,1015.3355598533896,1027.9975264276802,1042.0162146442151,1057.4494628609282,1074.3542481345046]
[1001509331,4,1,1,1,3,3.0306803023566031,3,3,3,3.0230632761679481,2.1694249845207684E-2,0,0,0,1.6308198974734206E-2,0.12304063405958204,0,0,0,0.3677509745712596,5.5496215163108102,7.6556855199203593,10.208320333996825,13.243260944614924,16.795287547117443,20.898335090615813,25.585582173483054,30.889524476582746,36.842036338549633,43.474423051897745,50.817465771241231,58.901460450564159,0,0,0,0,0,0,0,0,0,0,0,0,0,0,0,0,0,0,0,0,0,0,0,0,0,0,0,0,0,0,0,0,0,0,0,0,2.6914252535014205,3.7128127171591463,4.9507756631690896,6.4226446506824182,8.1452871896351073,10.135160867043924,12.408356459059,14.980633544211758,17.867450365859522,21.08398919446757,24.64517810695375,28.565709870273789,0,0,0,0,0,0,0,0,0,0,0,0,947.35380017993987,948.24705998443119,949.32972702163988,950.61695782366553,952.12350396046941,953.86375850175716,955.85179372085247,958.10139224045133,960.62607314898037,963.43911418131495,966.55357076602024,969.98229254009038,955.59484694975208,959.6155582215107,964.48882301880587,970.28286341896285,977.06407869722204,984.8972544594169,993.84573235339451,1003.9715502612459,1015.3355598533896,1027.9975264276802,1042.0162146442151,1057.4494628609282]
[1001509851,4,1,1,1,3,3.0306803023566031,3,3,3,3.0230632761679481,2.1694249845207684E-2,0,0,0,1.6308198974734206E-2,0.12304063405958204,0,0,0,0.3677509745712596,2.5286241135206606,3.8533006240259637,5.5496215163108102,7.6556855199203593,10.208320333996825,13.243260944614924,16.795287547117443,20.898335090615813,25.585582173483054,30.889524476582746,36.842036338549633,43.474423051897745,0,0,0,0,0,0,0,0,0,0,0,0,0,0,0,0,0,0,0,0,0,0,0,0,0,0,0,0,0,0,0,0,0,0,0,0,1.2263183670706013,1.8687527750055364,2.6914252535014205,3.7128127171591463,4.9507756631690896,6.4226446506824182,8.1452871896351073,10.135160867043924,12.408356459059,14.980633544211758,17.867450365859522,21.08398919446757,0,0,0,0,0,0,0,0,0,0,0,0,946.07248320915437,946.63432761595311,947.35380017993987,948.24705998443119,949.32972702163988,950.61695782366553,952.12350396046941,953.86375850175716,955.85179372085247,958.10139224045133,960.62607314898037,963.43911418131495,949.82742568974561,952.35638101498466,955.59484694975208,959.6155582215107,964.48882301880587,970.28286341896285,977.06407869722204,984.8972544594169,993.84573235339451,1003.9715502612459,1015.3355598533896,1027.9975264276802]
[1001509852,4,1,1,1,3,3.0306803023566031,3,3,3,3.0230632761679481,2.1694249845207684E-2,0,0,0,1.6308198974734206E-2,0.12304063405958204,0,0,0,0.3677509745712596,2.5286241135206606,3.8533006240259637,5.5496215163108102,7.6556855199203593,10.208320333996825,13.243260944614924,16.795287547117443,20.898335090615813,25.585582173483054,30.889524476582746,36.842036338549633,43.474423051897745,0,0,0,0,0,0,0,0,0,0,0,0,0,0,0,0,0,0,0,0,0,0,0,0,0,0,0,0,0,0,0,0,0,0,0,0,1.2263183670706013,1.8687527750055364,2.6914252535014205,3.7128127171591463,4.9507756631690896,6.4226446506824182,8.1452871896351073,10.135160867043924,12.408356459059,14.980633544211758,17.867450365859522,21.08398919446757,0,0,0,0,0,0,0,0,0,0,0,0,946.07248320915437,946.63432761595311,947.35380017993987,948.24705998443119,949.32972702163988,950.61695782366553,952.12350396046941,953.86375850175716,955.85179372085247,958.10139224045133,960.62607314898037,963.43911418131495,949.82742568974561,952.35638101498466,955.59484694975208,959.6155582215107,964.48882301880587,970.28286341896285,977.06407869722204,984.8972544594169,993.84573235339451,1003.9715502612459,1015.3355598533896,1027.9975264276802]
[1001511639,4,1,1,1,3,3.0306803023566031,3,3,3,3.0230632761679481,2.1694249845207684E-2,0,0,0,1.6308198974734206E-2,0.12304063405958204,0,0,0,0.3677509745712596,9.5615006449442763,12.871203873079162,16.841887531525625,21.527333670816041,26.980451254940544,33.253361770335118,40.397470487172143,48.463526635693704,57.501674848808335,67.561499606835071,78.692063992957557,90.941943763863506,0,0,0,0,0,0,0,0,0,0,0,0,0,0,0,0,0,0,0,0,0,0,0,0,0,0,0,0,0,0,0,0,0,0,0,0,4.6370845690176408,6.2422064360884972,8.1678869965733512,10.440209176769525,13.084832478212583,16.127034495857711,19.59174547799272,23.503577510228823,27.886849463851373,32.765608550390063,38.1636491170282,44.104529169996113,0,0,0,0,0,0,0,0,0,0,0,0,949.05538681735641,950.45915462945584,952.14326874106985,954.13054011324289,956.4434093986564,959.10398325157337,962.13406455239317,965.55517793066485,969.38859158379876,973.65533612773072,978.37622103454567,983.57184908309898,963.25397203131831,969.57256493862349,977.15304326916873,986.09808296082838,996.50869313180954,1008.4843795177662,1022.123280517558,1037.5222820765873,1054.7771158964586,1073.9824442849558,1095.2319341445314,1118.6183220169587]
[1001521524,4,1,1,1,3,3.0306803023566031,3,3,3,3.0230632761679481,2.1694249845207684E-2,0,0,0,1.6308198974734206E-2,0.12304063405958204,0,0,0,0.3677509745712596,3.8533006240259637,5.5496215163108102,7.6556855199203593,10.208320333996825,13.243260944614924,16.795287547117443,20.898335090615813,25.585582173483054,30.889524476582746,36.842036338549633,43.474423051897745,50.817465771241231,0,0,0,0,0,0,0,0,0,0,0,0,0,0,0,0,0,0,0,0,0,0,0,0,0,0,0,0,0,0,0,0,0,0,0,0,1.8687527750055364,2.6914252535014205,3.7128127171591463,4.9507756631690896,6.4226446506824182,8.1452871896351073,10.135160867043924,12.408356459059,14.980633544211758,17.867450365859522,21.08398919446757,24.64517810695375,0,0,0,0,0,0,0,0,0,0,0,0,946.63432761595311,947.35380017993987,948.24705998443119,949.32972702163988,950.61695782366553,952.12350396046941,953.86375850175716,955.85179372085247,958.10139224045133,960.62607314898037,963.43911418131495,966.55357076602024,952.35638101498466,955.59484694975208,959.6155582215107,964.48882301880587,970.28286341896285,977.06407869722204,984.8972544594169,993.84573235339451,1003.9715502612459,1015.3355598533896,1027.9975264276802,1042.0162146442151]
[1001521525,4,1,1,1,3,3.0306803023566031,3,3,3,3.0230632761679481,2.1694249845207684E-2,0,0,0,1.6308198974734206E-2,0.12304063405958204,0,0,0,0.3677509745712596,5.5496215163108102,7.6556855199203593,10.208320333996825,13.243260944614924,16.795287547117443,20.898335090615813,25.585582173483054,30.889524476582746,36.842036338549633,43.474423051897745,50.817465771241231,58.901460450564159,0,0,0,0,0,0,0,0,0,0,0,0,0,0,0,0,0,0,0,0,0,0,0,0,0,0,0,0,0,0,0,0,0,0,0,0,2.6914252535014205,3.7128127171591463,4.9507756631690896,6.4226446506824182,8.1452871896351073,10.135160867043924,12.408356459059,14.980633544211758,17.867450365859522,21.08398919446757,24.64517810695375,28.565709870273789,0,0,0,0,0,0,0,0,0,0,0,0,947.35380017993987,948.24705998443119,949.32972702163988,950.61695782366553,952.12350396046941,953.86375850175716,955.85179372085247,958.10139224045133,960.62607314898037,963.43911418131495,966.55357076602024,969.98229254009038,955.59484694975208,959.6155582215107,964.48882301880587,970.28286341896285,977.06407869722204,984.8972544594169,993.84573235339451,1003.9715502612459,1015.3355598533896,1027.9975264276802,1042.0162146442151,1057.4494628609282]
[1001521526,4,1,1,1,3,3.0306803023566031,3,3,3,3.0230632761679481,2.1694249845207684E-2,0,0,0,1.6308198974734206E-2,0.12304063405958204,0,0,0,0.3677509745712596,5.5496215163108102,7.6556855199203593,10.208320333996825,13.243260944614924,16.795287547117443,20.898335090615813,25.585582173483054,30.889524476582746,36.842036338549633,43.474423051897745,50.817465771241231,58.901460450564159,0,0,0,0,0,0,0,0,0,0,0,0,0,0,0,0,0,0,0,0,0,0,0,0,0,0,0,0,0,0,0,0,0,0,0,0,2.6914252535014205,3.7128127171591463,4.9507756631690896,6.4226446506824182,8.1452871896351073,10.135160867043924,12.408356459059,14.980633544211758,17.867450365859522,21.08398919446757,24.64517810695375,28.565709870273789,0,0,0,0,0,0,0,0,0,0,0,0,947.35380017993987,948.24705998443119,949.32972702163988,950.61695782366553,952.12350396046941,953.86375850175716,955.85179372085247,958.10139224045133,960.62607314898037,963.43911418131495,966.55357076602024,969.98229254009038,955.59484694975208,959.6155582215107,964.48882301880587,970.28286341896285,977.06407869722204,984.8972544594169,993.84573235339451,1003.9715502612459,1015.3355598533896,1027.9975264276802,1042.0162146442151,1057.4494628609282]
[1001521527,4,1,1,1,3,3.0306803023566031,3,3,3,3.0230632761679481,2.1694249845207684E-2,0,0,0,1.6308198974734206E-2,0.12304063405958204,0,0,0,0.3677509745712596,0.83392896743133116,1.5359838080958728,2.5286241135206606,3.8533006240259637,5.5496215163108102,7.6556855199203593,10.208320333996825,13.243260944614924,16.795287547117443,20.898335090615813,25.585582173483054,30.889524476582746,0,0,0,0,0,0,0,0,0,0,0,0,0,0,0,0,0,0,0,0,0,0,0,0,0,0,0,0,0,0,0,0,0,0,0,0,0.40443433412069568,0.74491307162630371,1.2263183670706013,1.8687527750055364,2.6914252535014205,3.7128127171591463,4.9507756631690896,6.4226446506824182,8.1452871896351073,10.135160867043924,12.408356459059,14.980633544211758,0,0,0,0,0,0,0,0,0,0,0,0,945.35370018438698,945.65146766374153,946.07248320915437,946.63432761595311,947.35380017993987,948.24705998443119,949.32972702163988,950.61695782366553,952.12350396046941,953.86375850175716,955.85179372085247,958.10139224045133,946.59206348593898,947.93236454346379,949.82742568974561,952.35638101498466,955.59484694975208,959.6155582215107,964.48882301880587,970.28286341896285,977.06407869722204,984.8972544594169,993.84573235339451,1003.9715502612459]
[1001521528,4,1,1,1,3,3.0306803023566031,3,3,3,3.0230632761679481,2.1694249845207684E-2,0,0,0,1.6308198974734206E-2,0.12304063405958204,0,0,0,0.3677509745712596,0.83392896743133116,1.5359838080958728,2.5286241135206606,3.8533006240259637,5.5496215163108102,7.6556855199203593,10.208320333996825,13.243260944614924,16.795287547117443,20.898335090615813,25.585582173483054,30.889524476582746,0,0,0,0,0,0,0,0,0,0,0,0,0,0,0,0,0,0,0,0,0,0,0,0,0,0,0,0,0,0,0,0,0,0,0,0,0.40443433412069568,0.74491307162630371,1.2263183670706013,1.8687527750055364,2.6914252535014205,3.7128127171591463,4.9507756631690896,6.4226446506824182,8.1452871896351073,10.135160867043924,12.408356459059,14.980633544211758,0,0,0,0,0,0,0,0,0,0,0,0,945.35370018438698,945.65146766374153,946.07248320915437,946.63432761595311,947.35380017993987,948.24705998443119,949.32972702163988,950.61695782366553,952.12350396046941,953.86375850175716,955.85179372085247,958.10139224045133,946.59206348593898,947.93236454346379,949.82742568974561,952.35638101498466,955.59484694975208,959.6155582215107,964.48882301880587,970.28286341896285,977.06407869722204,984.8972544594169,993.84573235339451,1003.9715502612459]
[1001526010,4,1,1,1,3,3.0306803023566031,3,3,3,3.0230632761679481,2.1694249845207684E-2,0,0,0,1.6308198974734206E-2,0.12304063405958204,0,0,0,0.3677509745712596,5.5496215163108102,7.6556855199203593,10.208320333996825,13.243260944614924,16.795287547117443,20.898335090615813,25.585582173483054,30.889524476582746,36.842036338549633,43.474423051897745,50.817465771241231,58.901460450564159,0,0,0,0,0,0,0,0,0,0,0,0,0,0,0,0,0,0,0,0,0,0,0,0,0,0,0,0,0,0,0,0,0,0,0,0,2.6914252535014205,3.7128127171591463,4.9507756631690896,6.4226446506824182,8.1452871896351073,10.135160867043924,12.408356459059,14.980633544211758,17.867450365859522,21.08398919446757,24.64517810695375,28.565709870273789,0,0,0,0,0,0,0,0,0,0,0,0,947.35380017993987,948.24705998443119,949.32972702163988,950.61695782366553,952.12350396046941,953.86375850175716,955.85179372085247,958.10139224045133,960.62607314898037,963.43911418131495,966.55357076602024,969.98229254009038,955.59484694975208,959.6155582215107,964.48882301880587,970.28286341896285,977.06407869722204,984.8972544594169,993.84573235339451,1003.9715502612459,1015.3355598533896,1027.9975264276802,1042.0162146442151,1057.4494628609282]
[1001526011,4,1,1,1,3,3.0306803023566031,3,3,3,3.0230632761679481,2.1694249845207684E-2,0,0,0,1.6308198974734206E-2,0.12304063405958204,0,0,0,0.3677509745712596,3.8533006240259637,5.5496215163108102,7.6556855199203593,10.208320333996825,13.243260944614924,16.795287547117443,20.898335090615813,25.585582173483054,30.889524476582746,36.842036338549633,43.474423051897745,50.817465771241231,0,0,0,0,0,0,0,0,0,0,0,0,0,0,0,0,0,0,0,0,0,0,0,0,0,0,0,0,0,0,0,0,0,0,0,0,1.8687527750055364,2.6914252535014205,3.7128127171591463,4.9507756631690896,6.4226446506824182,8.1452871896351073,10.135160867043924,12.408356459059,14.980633544211758,17.867450365859522,21.08398919446757,24.64517810695375,0,0,0,0,0,0,0,0,0,0,0,0,946.63432761595311,947.35380017993987,948.24705998443119,949.32972702163988,950.61695782366553,952.12350396046941,953.86375850175716,955.85179372085247,958.10139224045133,960.62607314898037,963.43911418131495,966.55357076602024,952.35638101498466,955.59484694975208,959.6155582215107,964.48882301880587,970.28286341896285,977.06407869722204,984.8972544594169,993.84573235339451,1003.9715502612459,1015.3355598533896,1027.9975264276802,1042.0162146442151]
[1001526012,4,1,1,1,3,3.0306803023566031,3,3,3,3.0230632761679481,2.1694249845207684E-2,0,0,0,1.6308198974734206E-2,0.12304063405958204,0,0,0,0.3677509745712596,3.8533006240259637,5.5496215163108102,7.6556855199203593,10.208320333996825,13.243260944614924,16.795287547117443,20.898335090615813,25.585582173483054,30.889524476582746,36.842036338549633,43.474423051897745,50.817465771241231,0,0,0,0,0,0,0,0,0,0,0,0,0,0,0,0,0,0,0,0,0,0,0,0,0,0,0,0,0,0,0,0,0,0,0,0,1.8687527750055364,2.6914252535014205,3.7128127171591463,4.9507756631690896,6.4226446506824182,8.1452871896351073,10.135160867043924,12.408356459059,14.980633544211758,17.867450365859522,21.08398919446757,24.64517810695375,0,0,0,0,0,0,0,0,0,0,0,0,946.63432761595311,947.35380017993987,948.24705998443119,949.32972702163988,950.61695782366553,952.12350396046941,953.86375850175716,955.85179372085247,958.10139224045133,960.62607314898037,963.43911418131495,966.55357076602024,952.35638101498466,955.59484694975208,959.6155582215107,964.48882301880587,970.28286341896285,977.06407869722204,984.8972544594169,993.84573235339451,1003.9715502612459,1015.3355598533896,1027.9975264276802,1042.0162146442151]
[1001528056,4,1,1,1,3,3.0306803023566031,3,3,3,3.0230632761679481,2.1694249845207684E-2,0,0,0,1.6308198974734206E-2,0.12304063405958204,0,0,0,0.3677509745712596,3.8533006240259637,5.5496215163108102,7.6556855199203593,10.208320333996825,13.243260944614924,16.795287547117443,20.898335090615813,25.585582173483054,30.889524476582746,36.842036338549633,43.474423051897745,50.817465771241231,0,0,0,0,0,0,0,0,0,0,0,0,0,0,0,0,0,0,0,0,0,0,0,0,0,0,0,0,0,0,0,0,0,0,0,0,1.8687527750055364,2.6914252535014205,3.7128127171591463,4.9507756631690896,6.4226446506824182,8.1452871896351073,10.135160867043924,12.408356459059,14.980633544211758,17.867450365859522,21.08398919446757,24.64517810695375,0,0,0,0,0,0,0,0,0,0,0,0,946.63432761595311,947.35380017993987,948.24705998443119,949.32972702163988,950.61695782366553,952.12350396046941,953.86375850175716,955.85179372085247,958.10139224045133,960.62607314898037,963.43911418131495,966.55357076602024,952.35638101498466,955.59484694975208,959.6155582215107,964.48882301880587,970.28286341896285,977.06407869722204,984.8972544594169,993.84573235339451,1003.9715502612459,1015.3355598533896,1027.9975264276802,1042.0162146442151]
[1001528057,4,1,1,1,3,3.0306803023566031,3,3,3,3.0230632761679481,2.1694249845207684E-2,0,0,0,1.6308198974734206E-2,0.12304063405958204,0,0,0,0.3677509745712596,4.7048882646945964,6.8580180947884282,9.5615006449442763,12.871203873079162,16.841887531525625,21.527333670816041,26.980451254940544,33.253361770335118,40.397470487172143,48.463526635693704,57.501674848808335,67.561499606835071,0,0,0,0,0,0,0,0,0,0,0,0,0,0,0,0,0,0,0,0,0,0,0,0,0,0,0,0,0,0,0,0,0,0,0,0,2.2817511164111464,3.3259643085630426,4.6370845690176408,6.2422064360884972,8.1678869965733512,10.440209176769525,13.084832478212583,16.127034495857711,19.59174547799272,23.503577510228823,27.886849463851373,32.765608550390063,0,0,0,0,0,0,0,0,0,0,0,0,946.99551749817283,947.90873966415541,949.05538681735641,950.45915462945584,952.14326874106985,954.13054011324289,956.4434093986564,959.10398325157337,962.13406455239317,965.55517793066485,969.38859158379876,973.65533612773072,953.98215687927848,958.09272206750688,963.25397203131831,969.57256493862349,977.15304326916873,986.09808296082838,996.50869313180954,1008.4843795177662,1022.123280517558,1037.5222820765873,1054.7771158964586,1073.9824442849558]
[1001528058,4,1,1,1,3,3.0306803023566031,3,3,3,3.0230632761679481,2.1694249845207684E-2,0,0,0,1.6308198974734206E-2,0.12304063405958204,0,0,0,0.3677509745712596,3.8533006240259637,5.5496215163108102,7.6556855199203593,10.208320333996825,13.243260944614924,16.795287547117443,20.898335090615813,25.585582173483054,30.889524476582746,36.842036338549633,43.474423051897745,50.817465771241231,0,0,0,0,0,0,0,0,0,0,0,0,0,0,0,0,0,0,0,0,0,0,0,0,0,0,0,0,0,0,0,0,0,0,0,0,1.8687527750055364,2.6914252535014205,3.7128127171591463,4.9507756631690896,6.4226446506824182,8.1452871896351073,10.135160867043924,12.408356459059,14.980633544211758,17.867450365859522,21.08398919446757,24.64517810695375,0,0,0,0,0,0,0,0,0,0,0,0,946.63432761595311,947.35380017993987,948.24705998443119,949.32972702163988,950.61695782366553,952.12350396046941,953.86375850175716,955.85179372085247,958.10139224045133,960.62607314898037,963.43911418131495,966.55357076602024,952.35638101498466,955.59484694975208,959.6155582215107,964.48882301880587,970.28286341896285,977.06407869722204,984.8972544594169,993.84573235339451,1003.9715502612459,1015.3355598533896,1027.9975264276802,1042.0162146442151]
[1001528059,4,1,1,1,3,3.0306803023566031,3,3,3,3.0230632761679481,2.1694249845207684E-2,0,0,0,1.6308198974734206E-2,0.12304063405958204,0,0,0,0.3677509745712596,3.8533006240259637,5.5496215163108102,7.6556855199203593,10.208320333996825,13.243260944614924,16.795287547117443,20.898335090615813,25.585582173483054,30.889524476582746,36.842036338549633,43.474423051897745,50.817465771241231,0,0,0,0,0,0,0,0,0,0,0,0,0,0,0,0,0,0,0,0,0,0,0,0,0,0,0,0,0,0,0,0,0,0,0,0,1.8687527750055364,2.6914252535014205,3.7128127171591463,4.9507756631690896,6.4226446506824182,8.1452871896351073,10.135160867043924,12.408356459059,14.980633544211758,17.867450365859522,21.08398919446757,24.64517810695375,0,0,0,0,0,0,0,0,0,0,0,0,946.63432761595311,947.35380017993987,948.24705998443119,949.32972702163988,950.61695782366553,952.12350396046941,953.86375850175716,955.85179372085247,958.10139224045133,960.62607314898037,963.43911418131495,966.55357076602024,952.35638101498466,955.59484694975208,959.6155582215107,964.48882301880587,970.28286341896285,977.06407869722204,984.8972544594169,993.84573235339451,1003.9715502612459,1015.3355598533896,1027.9975264276802,1042.0162146442151]
[1001528099,4,1,1,1,3,3.0306803023566031,3,3,3,3.0230632761679481,2.1694249845207684E-2,0,0,0,1.6308198974734206E-2,0.12304063405958204,0,0,0,0.3677509745712596,7.6556855199203593,10.208320333996825,13.243260944614924,16.795287547117443,20.898335090615813,25.585582173483054,30.889524476582746,36.842036338549633,43.474423051897745,50.817465771241231,58.901460450564159,67.756251890949088,0,0,0,0,0,0,0,0,0,0,0,0,0,0,0,0,0,0,0,0,0,0,0,0,0,0,0,0,0,0,0,0,0,0,0,0,3.7128127171591463,4.9507756631690896,6.4226446506824182,8.1452871896351073,10.135160867043924,12.408356459059,14.980633544211758,17.867450365859522,21.08398919446757,24.64517810695375,28.565709870273789,32.860058453703466,0,0,0,0,0,0,0,0,0,0,0,0,948.24705998443119,949.32972702163988,950.61695782366553,952.12350396046941,953.86375850175716,955.85179372085247,958.10139224045133,960.62607314898037,963.43911418131495,966.55357076602024,969.98229254009038,973.73793778985203,959.6155582215107,964.48882301880587,970.28286341896285,977.06407869722204,984.8972544594169,993.84573235339451,1003.9715502612459,1015.3355598533896,1027.9975264276802,1042.0162146442151,1057.4494628609282,1074.3542481345046]
[1001528100,4,1,1,1,3,3.0306803023566031,3,3,3,3.0230632761679481,2.1694249845207684E-2,0,0,0,1.6308198974734206E-2,0.12304063405958204,0,0,0,0.3677509745712596,7.6556855199203593,10.208320333996825,13.243260944614924,16.795287547117443,20.898335090615813,25.585582173483054,30.889524476582746,36.842036338549633,43.474423051897745,50.817465771241231,58.901460450564159,67.756251890949088,0,0,0,0,0,0,0,0,0,0,0,0,0,0,0,0,0,0,0,0,0,0,0,0,0,0,0,0,0,0,0,0,0,0,0,0,3.7128127171591463,4.9507756631690896,6.4226446506824182,8.1452871896351073,10.135160867043924,12.408356459059,14.980633544211758,17.867450365859522,21.08398919446757,24.64517810695375,28.565709870273789,32.860058453703466,0,0,0,0,0,0,0,0,0,0,0,0,948.24705998443119,949.32972702163988,950.61695782366553,952.12350396046941,953.86375850175716,955.85179372085247,958.10139224045133,960.62607314898037,963.43911418131495,966.55357076602024,969.98229254009038,973.73793778985203,959.6155582215107,964.48882301880587,970.28286341896285,977.06407869722204,984.8972544594169,993.84573235339451,1003.9715502612459,1015.3355598533896,1027.9975264276802,1042.0162146442151,1057.4494628609282,1074.3542481345046]
[1001537307,4,1,1,1,3,3.0306803023566031,3,3,3,3.0230632761679481,2.1694249845207684E-2,0,0,0,1.6308198974734206E-2,0.12304063405958204,0,0,0,0.3677509745712596,7.6556855199203593,10.208320333996825,13.243260944614924,16.795287547117443,20.898335090615813,25.585582173483054,30.889524476582746,36.842036338549633,43.474423051897745,50.817465771241231,58.901460450564159,67.756251890949088,0,0,0,0,0,0,0,0,0,0,0,0,0,0,0,0,0,0,0,0,0,0,0,0,0,0,0,0,0,0,0,0,0,0,0,0,3.7128127171591463,4.9507756631690896,6.4226446506824182,8.1452871896351073,10.135160867043924,12.408356459059,14.980633544211758,17.867450365859522,21.08398919446757,24.64517810695375,28.565709870273789,32.860058453703466,0,0,0,0,0,0,0,0,0,0,0,0,948.24705998443119,949.32972702163988,950.61695782366553,952.12350396046941,953.86375850175716,955.85179372085247,958.10139224045133,960.62607314898037,963.43911418131495,966.55357076602024,969.98229254009038,973.73793778985203,959.6155582215107,964.48882301880587,970.28286341896285,977.06407869722204,984.8972544594169,993.84573235339451,1003.9715502612459,1015.3355598533896,1027.9975264276802,1042.0162146442151,1057.4494628609282,1074.3542481345046]
[1001538184,4,1,1,1,3,3.0306803023566031,3,3,3,3.0230632761679481,2.1694249845207684E-2,0,0,0,1.6308198974734206E-2,0.12304063405958204,0,0,0,0.3677509745712596,7.6556855199203593,10.208320333996825,13.243260944614924,16.795287547117443,20.898335090615813,25.585582173483054,30.889524476582746,36.842036338549633,43.474423051897745,50.817465771241231,58.901460450564159,67.756251890949088,0,0,0,0,0,0,0,0,0,0,0,0,0,0,0,0,0,0,0,0,0,0,0,0,0,0,0,0,0,0,0,0,0,0,0,0,3.7128127171591463,4.9507756631690896,6.4226446506824182,8.1452871896351073,10.135160867043924,12.408356459059,14.980633544211758,17.867450365859522,21.08398919446757,24.64517810695375,28.565709870273789,32.860058453703466,0,0,0,0,0,0,0,0,0,0,0,0,948.24705998443119,949.32972702163988,950.61695782366553,952.12350396046941,953.86375850175716,955.85179372085247,958.10139224045133,960.62607314898037,963.43911418131495,966.55357076602024,969.98229254009038,973.73793778985203,959.6155582215107,964.48882301880587,970.28286341896285,977.06407869722204,984.8972544594169,993.84573235339451,1003.9715502612459,1015.3355598533896,1027.9975264276802,1042.0162146442151,1057.4494628609282,1074.3542481345046]
[1001538185,4,1,1,1,3,3.0306803023566031,3,3,3,3.0230632761679481,2.1694249845207684E-2,0,0,0,1.6308198974734206E-2,0.12304063405958204,0,0,0,0.3677509745712596,7.6556855199203593,10.208320333996825,13.243260944614924,16.795287547117443,20.898335090615813,25.585582173483054,30.889524476582746,36.842036338549633,43.474423051897745,50.817465771241231,58.901460450564159,67.756251890949088,0,0,0,0,0,0,0,0,0,0,0,0,0,0,0,0,0,0,0,0,0,0,0,0,0,0,0,0,0,0,0,0,0,0,0,0,3.7128127171591463,4.9507756631690896,6.4226446506824182,8.1452871896351073,10.135160867043924,12.408356459059,14.980633544211758,17.867450365859522,21.08398919446757,24.64517810695375,28.565709870273789,32.860058453703466,0,0,0,0,0,0,0,0,0,0,0,0,948.24705998443119,949.32972702163988,950.61695782366553,952.12350396046941,953.86375850175716,955.85179372085247,958.10139224045133,960.62607314898037,963.43911418131495,966.55357076602024,969.98229254009038,973.73793778985203,959.6155582215107,964.48882301880587,970.28286341896285,977.06407869722204,984.8972544594169,993.84573235339451,1003.9715502612459,1015.3355598533896,1027.9975264276802,1042.0162146442151,1057.4494628609282,1074.3542481345046]
[1001542444,4,1,1,1,3,3.0306803023566031,3,3,3,3.0230632761679481,2.1694249845207684E-2,0,0,0,1.6308198974734206E-2,0.12304063405958204,0,0,0,0.3677509745712596,7.6556855199203593,10.208320333996825,13.243260944614924,16.795287547117443,20.898335090615813,25.585582173483054,30.889524476582746,36.842036338549633,43.474423051897745,50.817465771241231,58.901460450564159,67.756251890949088,0,0,0,0,0,0,0,0,0,0,0,0,0,0,0,0,0,0,0,0,0,0,0,0,0,0,0,0,0,0,0,0,0,0,0,0,3.7128127171591463,4.9507756631690896,6.4226446506824182,8.1452871896351073,10.135160867043924,12.408356459059,14.980633544211758,17.867450365859522,21.08398919446757,24.64517810695375,28.565709870273789,32.860058453703466,0,0,0,0,0,0,0,0,0,0,0,0,948.24705998443119,949.32972702163988,950.61695782366553,952.12350396046941,953.86375850175716,955.85179372085247,958.10139224045133,960.62607314898037,963.43911418131495,966.55357076602024,969.98229254009038,973.73793778985203,959.6155582215107,964.48882301880587,970.28286341896285,977.06407869722204,984.8972544594169,993.84573235339451,1003.9715502612459,1015.3355598533896,1027.9975264276802,1042.0162146442151,1057.4494628609282,1074.3542481345046]
[1001542445,4,1,1,1,3,3.0306803023566031,3,3,3,3.0230632761679481,2.1694249845207684E-2,0,0,0,1.6308198974734206E-2,0.12304063405958204,0,0,0,0.3677509745712596,7.6556855199203593,10.208320333996825,13.243260944614924,16.795287547117443,20.898335090615813,25.585582173483054,30.889524476582746,36.842036338549633,43.474423051897745,50.817465771241231,58.901460450564159,67.756251890949088,0,0,0,0,0,0,0,0,0,0,0,0,0,0,0,0,0,0,0,0,0,0,0,0,0,0,0,0,0,0,0,0,0,0,0,0,3.7128127171591463,4.9507756631690896,6.4226446506824182,8.1452871896351073,10.135160867043924,12.408356459059,14.980633544211758,17.867450365859522,21.08398919446757,24.64517810695375,28.565709870273789,32.860058453703466,0,0,0,0,0,0,0,0,0,0,0,0,948.24705998443119,949.32972702163988,950.61695782366553,952.12350396046941,953.86375850175716,955.85179372085247,958.10139224045133,960.62607314898037,963.43911418131495,966.55357076602024,969.98229254009038,973.73793778985203,959.6155582215107,964.48882301880587,970.28286341896285,977.06407869722204,984.8972544594169,993.84573235339451,1003.9715502612459,1015.3355598533896,1027.9975264276802,1042.0162146442151,1057.4494628609282,1074.3542481345046]
[1001551112,4,1,1,1,3,3.0306803023566031,3,3,3,3.0230632761679481,2.1694249845207684E-2,0,0,0,1.6308198974734206E-2,0.12304063405958204,0,0,0,0.3677509745712596,0.12328530691863733,0.3786718380774976,0.83392896743133116,1.5359838080958728,2.5286241135206606,3.8533006240259637,5.5496215163108102,7.6556855199203593,10.208320333996825,13.243260944614924,16.795287547117443,20.898335090615813,0,0,0,0,0,0,0,0,0,0,0,0,0,0,0,0,0,0,0,0,0,0,0,0,0,0,0,0,0,0,0,0,0,0,0,0,5.9790237487595613E-2,0.18364620808755319,0.40443433412069568,0.74491307162630371,1.2263183670706013,1.8687527750055364,2.6914252535014205,3.7128127171591463,4.9507756631690896,6.4226446506824182,8.1452871896351073,10.135160867043924,0,0,0,0,0,0,0,0,0,0,0,0,945.05228986819304,945.16060876187419,945.35370018438698,945.65146766374153,946.07248320915437,946.63432761595311,947.35380017993987,948.24705998443119,949.32972702163988,950.61695782366553,952.12350396046941,953.86375850175716,945.23536541259932,945.72292680803923,946.59206348593898,947.93236454346379,949.82742568974561,952.35638101498466,955.59484694975208,959.6155582215107,964.48882301880587,970.28286341896285,977.06407869722204,984.8972544594169]
[1001551113,4,1,1,1,3,3.0306803023566031,3,3,3,3.0230632761679481,2.1694249845207684E-2,0,0,0,1.6308198974734206E-2,0.12304063405958204,0,0,0,0.3677509745712596,0.12328530691863733,0.3786718380774976,0.83392896743133116,1.5359838080958728,2.5286241135206606,3.8533006240259637,5.5496215163108102,7.6556855199203593,10.208320333996825,13.243260944614924,16.795287547117443,20.898335090615813,0,0,0,0,0,0,0,0,0,0,0,0,0,0,0,0,0,0,0,0,0,0,0,0,0,0,0,0,0,0,0,0,0,0,0,0,5.9790237487595613E-2,0.18364620808755319,0.40443433412069568,0.74491307162630371,1.2263183670706013,1.8687527750055364,2.6914252535014205,3.7128127171591463,4.9507756631690896,6.4226446506824182,8.1452871896351073,10.135160867043924,0,0,0,0,0,0,0,0,0,0,0,0,945.05228986819304,945.16060876187419,945.35370018438698,945.65146766374153,946.07248320915437,946.63432761595311,947.35380017993987,948.24705998443119,949.32972702163988,950.61695782366553,952.12350396046941,953.86375850175716,945.23536541259932,945.72292680803923,946.59206348593898,947.93236454346379,949.82742568974561,952.35638101498466,955.59484694975208,959.6155582215107,964.48882301880587,970.28286341896285,977.06407869722204,984.8972544594169]
[1001553102,4,1,1,1,3,3.0306803023566031,3,3,3,3.0230632761679481,2.1694249845207684E-2,0,0,0,1.6308198974734206E-2,0.12304063405958204,0,0,0,0.3677509745712596,0.14700739910923555,0.48485820490063575,1.1238526442807981,2.15432843792725,3.6645841327116702,5.7413338553552258,8.4699990236497129,11.934911320464602,16.219461958480981,21.406215965875141,27.577002427660744,34.812987497018305,0,0,0,0,0,0,0,0,0,0,0,0,0,0,0,0,0,0,0,0,0,0,0,0,0,0,0,0,0,0,0,0,0,0,0,0,7.1294848711985478E-2,0.23514389462444413,0.54503994175848658,1.0447944864586212,1.7772300776499306,2.7844008607920174,4.1077340504001469,5.7881283672750197,7.8660264281014571,10.381470171097517,13.374144620769716,16.883413296550422,0,0,0,0,0,0,0,0,0,0,0,0,945.06235128674246,945.20564633580614,945.47666756166325,945.91373053999064,946.5542859572729,947.43511248868253,948.59244052362158,950.06203825452053,951.87927498554507,954.07916960539001,956.69642886197744,959.76547832926769,945.28065353456373,945.92564843533125,947.14556014770244,949.11285346437649,951.99610016763449,955.96084720482986,961.17017359767146,967.78507794226016,975.96476337212755,985.86685574236265,997.64757591040791,1011.4618791228364]
[1001553103,4,1,1,1,3,3.0306803023566031,3,3,3,3.0230632761679481,2.1694249845207684E-2,0,0,0,1.6308198974734206E-2,0.12304063405958204,0,0,0,0.3677509745712596,1.6192996087881509E-2,0.12328530691863733,0.3786718380774976,0.83392896743133116,1.5359838080958728,2.5286241135206606,3.8533006240259637,5.5496215163108102,7.6556855199203593,10.208320333996825,13.243260944614924,16.795287547117443,0,0,0,0,0,0,0,0,0,0,0,0,0,0,0,0,0,0,0,0,0,0,0,0,0,0,0,0,0,0,0,0,0,0,0,0,7.8531911541502575E-3,5.9790237487595613E-2,0.18364620808755319,0.40443433412069568,0.74491307162630371,1.2263183670706013,1.8687527750055364,2.6914252535014205,3.7128127171591463,4.9507756631690896,6.4226446506824182,8.1452871896351073,0,0,0,0,0,0,0,0,0,0,0,0,945.00686804982888,945.05228986819304,945.16060876187419,945.35370018438698,945.65146766374153,946.07248320915437,946.63432761595311,947.35380017993987,948.24705998443119,949.32972702163988,950.61695782366553,952.12350396046941,945.03091423707087,945.23536541259932,945.72292680803923,946.59206348593898,947.93236454346379,949.82742568974561,952.35638101498466,955.59484694975208,959.6155582215107,964.48882301880587,970.28286341896285,977.06407869722204]
[1001560042,4,1,1,1,3,3.0306803023566031,3,3,3,3.0230632761679481,2.1694249845207684E-2,0,0,0,1.6308198974734206E-2,0.12304063405958204,0,0,0,0.3677509745712596,0.83392896743133116,1.5359838080958728,2.5286241135206606,3.8533006240259637,5.5496215163108102,7.6556855199203593,10.208320333996825,13.243260944614924,16.795287547117443,20.898335090615813,25.585582173483054,30.889524476582746,0,0,0,0,0,0,0,0,0,0,0,0,0,0,0,0,0,0,0,0,0,0,0,0,0,0,0,0,0,0,0,0,0,0,0,0,0.40443433412069568,0.74491307162630371,1.2263183670706013,1.8687527750055364,2.6914252535014205,3.7128127171591463,4.9507756631690896,6.4226446506824182,8.1452871896351073,10.135160867043924,12.408356459059,14.980633544211758,0,0,0,0,0,0,0,0,0,0,0,0,945.35370018438698,945.65146766374153,946.07248320915437,946.63432761595311,947.35380017993987,948.24705998443119,949.32972702163988,950.61695782366553,952.12350396046941,953.86375850175716,955.85179372085247,958.10139224045133,946.59206348593898,947.93236454346379,949.82742568974561,952.35638101498466,955.59484694975208,959.6155582215107,964.48882301880587,970.28286341896285,977.06407869722204,984.8972544594169,993.84573235339451,1003.9715502612459]
[1001560043,4,1,1,1,3,3.0306803023566031,3,3,3,3.0230632761679481,2.1694249845207684E-2,0,0,0,1.6308198974734206E-2,0.12304063405958204,0,0,0,0.3677509745712596,0.83392896743133116,1.5359838080958728,2.5286241135206606,3.8533006240259637,5.5496215163108102,7.6556855199203593,10.208320333996825,13.243260944614924,16.795287547117443,20.898335090615813,25.585582173483054,30.889524476582746,0,0,0,0,0,0,0,0,0,0,0,0,0,0,0,0,0,0,0,0,0,0,0,0,0,0,0,0,0,0,0,0,0,0,0,0,0.40443433412069568,0.74491307162630371,1.2263183670706013,1.8687527750055364,2.6914252535014205,3.7128127171591463,4.9507756631690896,6.4226446506824182,8.1452871896351073,10.135160867043924,12.408356459059,14.980633544211758,0,0,0,0,0,0,0,0,0,0,0,0,945.35370018438698,945.65146766374153,946.07248320915437,946.63432761595311,947.35380017993987,948.24705998443119,949.32972702163988,950.61695782366553,952.12350396046941,953.86375850175716,955.85179372085247,958.10139224045133,946.59206348593898,947.93236454346379,949.82742568974561,952.35638101498466,955.59484694975208,959.6155582215107,964.48882301880587,970.28286341896285,977.06407869722204,984.8972544594169,993.84573235339451,1003.9715502612459]
[1001560044,4,1,1,1,3,3.0306803023566031,3,3,3,3.0230632761679481,2.1694249845207684E-2,0,0,0,1.6308198974734206E-2,0.12304063405958204,0,0,0,0.3677509745712596,0.83392896743133116,1.5359838080958728,2.5286241135206606,3.8533006240259637,5.5496215163108102,7.6556855199203593,10.208320333996825,13.243260944614924,16.795287547117443,20.898335090615813,25.585582173483054,30.889524476582746,0,0,0,0,0,0,0,0,0,0,0,0,0,0,0,0,0,0,0,0,0,0,0,0,0,0,0,0,0,0,0,0,0,0,0,0,0.40443433412069568,0.74491307162630371,1.2263183670706013,1.8687527750055364,2.6914252535014205,3.7128127171591463,4.9507756631690896,6.4226446506824182,8.1452871896351073,10.135160867043924,12.408356459059,14.980633544211758,0,0,0,0,0,0,0,0,0,0,0,0,945.35370018438698,945.65146766374153,946.07248320915437,946.63432761595311,947.35380017993987,948.24705998443119,949.32972702163988,950.61695782366553,952.12350396046941,953.86375850175716,955.85179372085247,958.10139224045133,946.59206348593898,947.93236454346379,949.82742568974561,952.35638101498466,955.59484694975208,959.6155582215107,964.48882301880587,970.28286341896285,977.06407869722204,984.8972544594169,993.84573235339451,1003.9715502612459]
[1001571355,3,1,1,1,2,2.2730102267674521,3,3,3,2.0153755174452987,-0.51405939850600502,0,0,0,-0.69623464853672468,7.7584975544686519E-2,0,0,0,0.18638531638083977,0.52584545779270409,0.96853585889719485,1.5944589485308078,2.4297520649691235,3.4993906924824487,4.8273985125369681,6.4369977407783869,8.3507215674969437,10.59050112646592,13.177734569743324,16.133343121955896,19.477817384638474,0,0,0,0,0,0,0,0,0,0,0,0,0,0,0,0,0,0,0,0,0,0,0,0,0,0,0,0,0,0,0,0,0,0,0,0,0.2049773529716466,0.37754042308972419,0.62152856860967731,0.94713026284444846,1.3640810822434415,1.8817455854666143,2.5091759155393616,3.2551556297431095,4.1282336005305797,5.1367509412504493,6.2888628564050384,7.5925566913277791,0,0,0,0,0,0,0,0,0,0,0,0,945.35370018438698,945.65146766374153,946.07248320915437,946.63432761595311,947.35380017993987,948.24705998443119,949.32972702163988,950.61695782366553,952.12350396046941,953.86375850175716,955.85179372085247,958.10139224045133,946.08452299515136,946.99754394572847,948.28847072629492,950.01120994376663,952.21727195466565,954.95620408243485,958.27590067795757,962.22283502090556,966.84223868746597,972.17824401275084,978.27399969921339,985.17176631641757]
[1001571356,3,1,1,1,2,2.2730102267674521,3,3,3,2.0153755174452987,-0.51405939850600502,0,0,0,-0.69623464853672468,7.7584975544686519E-2,0,0,0,0.18638531638083977,0.70866084679093511,1.3584416274291116,2.3107542682216811,3.6202775624994947,5.3408751680778996,7.525723595327463,10.227406328118811,13.497985888242932,17.389060738339044,21.951811320199386,27.237038045398197,33.295193161504685,0,0,0,0,0,0,0,0,0,0,0,0,0,0,0,0,0,0,0,0,0,0,0,0,0,0,0,0,0,0,0,0,0,0,0,0,0.27623976279950074,0.52952776301565763,0.90074428950327656,1.4112034263806987,2.0819015136119625,2.9335670374366969,3.9866973192144362,5.26158660651849,6.7783482541995204,8.5569326703613235,10.617142125309835,12.978643173172221,0,0,0,0,0,0,0,0,0,0,0,0,945.47666756166325,945.91373053999064,946.5542859572729,947.43511248868253,948.59244052362158,950.06203825452053,951.87927498554507,954.07916960539001,956.69642886197744,959.76547832926769,963.32048796095035,967.39539352466124,946.4615681712537,947.80169993043535,949.76578451499779,952.4665934775627,956.01521720531139,960.52132888728465,966.09337863287828,972.83874210015142,980.86383785451596,990.27422231982837,1001.1746681316583,1013.6692298593382]
[1001578289,4,1,1,1,3,3.0306803023566031,3,3,3,3.0230632761679481,2.1694249845207684E-2,0,0,0,1.6308198974734206E-2,0.12304063405958204,0,0,0,0.3677509745712596,5.5496215163108102,7.6556855199203593,10.208320333996825,13.243260944614924,16.795287547117443,20.898335090615813,25.585582173483054,30.889524476582746,36.842036338549633,43.474423051897745,50.817465771241231,58.901460450564159,0,0,0,0,0,0,0,0,0,0,0,0,0,0,0,0,0,0,0,0,0,0,0,0,0,0,0,0,0,0,0,0,0,0,0,0,2.6914252535014205,3.7128127171591463,4.9507756631690896,6.4226446506824182,8.1452871896351073,10.135160867043924,12.408356459059,14.980633544211758,17.867450365859522,21.08398919446757,24.64517810695375,28.565709870273789,0,0,0,0,0,0,0,0,0,0,0,0,947.35380017993987,948.24705998443119,949.32972702163988,950.61695782366553,952.12350396046941,953.86375850175716,955.85179372085247,958.10139224045133,960.62607314898037,963.43911418131495,966.55357076602024,969.98229254009038,955.59484694975208,959.6155582215107,964.48882301880587,970.28286341896285,977.06407869722204,984.8972544594169,993.84573235339451,1003.9715502612459,1015.3355598533896,1027.9975264276802,1042.0162146442151,1057.4494628609282]
[1001584020,4,1,1,1,3,3.0306803023566031,3,3,3,3.0230632761679481,2.1694249845207684E-2,0,0,0,1.6308198974734206E-2,0.12304063405958204,0,0,0,0.3677509745712596,2.5286241135206606,3.8533006240259637,5.5496215163108102,7.6556855199203593,10.208320333996825,13.243260944614924,16.795287547117443,20.898335090615813,25.585582173483054,30.889524476582746,36.842036338549633,43.474423051897745,0,0,0,0,0,0,0,0,0,0,0,0,0,0,0,0,0,0,0,0,0,0,0,0,0,0,0,0,0,0,0,0,0,0,0,0,1.2263183670706013,1.8687527750055364,2.6914252535014205,3.7128127171591463,4.9507756631690896,6.4226446506824182,8.1452871896351073,10.135160867043924,12.408356459059,14.980633544211758,17.867450365859522,21.08398919446757,0,0,0,0,0,0,0,0,0,0,0,0,946.07248320915437,946.63432761595311,947.35380017993987,948.24705998443119,949.32972702163988,950.61695782366553,952.12350396046941,953.86375850175716,955.85179372085247,958.10139224045133,960.62607314898037,963.43911418131495,949.82742568974561,952.35638101498466,955.59484694975208,959.6155582215107,964.48882301880587,970.28286341896285,977.06407869722204,984.8972544594169,993.84573235339451,1003.9715502612459,1015.3355598533896,1027.9975264276802]
[1001585103,4,1,1,1,3,3.0306803023566031,3,3,3,3.0230632761679481,2.1694249845207684E-2,0,0,0,1.6308198974734206E-2,0.12304063405958204,0,0,0,0.3677509745712596,2.5286241135206606,3.8533006240259637,5.5496215163108102,7.6556855199203593,10.208320333996825,13.243260944614924,16.795287547117443,20.898335090615813,25.585582173483054,30.889524476582746,36.842036338549633,43.474423051897745,0,0,0,0,0,0,0,0,0,0,0,0,0,0,0,0,0,0,0,0,0,0,0,0,0,0,0,0,0,0,0,0,0,0,0,0,1.2263183670706013,1.8687527750055364,2.6914252535014205,3.7128127171591463,4.9507756631690896,6.4226446506824182,8.1452871896351073,10.135160867043924,12.408356459059,14.980633544211758,17.867450365859522,21.08398919446757,0,0,0,0,0,0,0,0,0,0,0,0,946.07248320915437,946.63432761595311,947.35380017993987,948.24705998443119,949.32972702163988,950.61695782366553,952.12350396046941,953.86375850175716,955.85179372085247,958.10139224045133,960.62607314898037,963.43911418131495,949.82742568974561,952.35638101498466,955.59484694975208,959.6155582215107,964.48882301880587,970.28286341896285,977.06407869722204,984.8972544594169,993.84573235339451,1003.9715502612459,1015.3355598533896,1027.9975264276802]
[1001589233,4,1,1,1,3,3.0306803023566031,3,3,3,3.0230632761679481,2.1694249845207684E-2,0,0,0,1.6308198974734206E-2,0.12304063405958204,0,0,0,0.3677509745712596,5.5496215163108102,7.6556855199203593,10.208320333996825,13.243260944614924,16.795287547117443,20.898335090615813,25.585582173483054,30.889524476582746,36.842036338549633,43.474423051897745,50.817465771241231,58.901460450564159,0,0,0,0,0,0,0,0,0,0,0,0,0,0,0,0,0,0,0,0,0,0,0,0,0,0,0,0,0,0,0,0,0,0,0,0,2.6914252535014205,3.7128127171591463,4.9507756631690896,6.4226446506824182,8.1452871896351073,10.135160867043924,12.408356459059,14.980633544211758,17.867450365859522,21.08398919446757,24.64517810695375,28.565709870273789,0,0,0,0,0,0,0,0,0,0,0,0,947.35380017993987,948.24705998443119,949.32972702163988,950.61695782366553,952.12350396046941,953.86375850175716,955.85179372085247,958.10139224045133,960.62607314898037,963.43911418131495,966.55357076602024,969.98229254009038,955.59484694975208,959.6155582215107,964.48882301880587,970.28286341896285,977.06407869722204,984.8972544594169,993.84573235339451,1003.9715502612459,1015.3355598533896,1027.9975264276802,1042.0162146442151,1057.4494628609282]
[1001589234,4,1,1,1,3,3.0306803023566031,3,3,3,3.0230632761679481,2.1694249845207684E-2,0,0,0,1.6308198974734206E-2,0.12304063405958204,0,0,0,0.3677509745712596,5.5496215163108102,7.6556855199203593,10.208320333996825,13.243260944614924,16.795287547117443,20.898335090615813,25.585582173483054,30.889524476582746,36.842036338549633,43.474423051897745,50.817465771241231,58.901460450564159,0,0,0,0,0,0,0,0,0,0,0,0,0,0,0,0,0,0,0,0,0,0,0,0,0,0,0,0,0,0,0,0,0,0,0,0,2.6914252535014205,3.7128127171591463,4.9507756631690896,6.4226446506824182,8.1452871896351073,10.135160867043924,12.408356459059,14.980633544211758,17.867450365859522,21.08398919446757,24.64517810695375,28.565709870273789,0,0,0,0,0,0,0,0,0,0,0,0,947.35380017993987,948.24705998443119,949.32972702163988,950.61695782366553,952.12350396046941,953.86375850175716,955.85179372085247,958.10139224045133,960.62607314898037,963.43911418131495,966.55357076602024,969.98229254009038,955.59484694975208,959.6155582215107,964.48882301880587,970.28286341896285,977.06407869722204,984.8972544594169,993.84573235339451,1003.9715502612459,1015.3355598533896,1027.9975264276802,1042.0162146442151,1057.4494628609282]
[1001613550,4,1,1,1,3,3.0306803023566031,3,3,3,3.0230632761679481,2.1694249845207684E-2,0,0,0,1.6308198974734206E-2,0.12304063405958204,0,0,0,0.3677509745712596,7.6556855199203593,10.208320333996825,13.243260944614924,16.795287547117443,20.898335090615813,25.585582173483054,30.889524476582746,36.842036338549633,43.474423051897745,50.817465771241231,58.901460450564159,67.756251890949088,0,0,0,0,0,0,0,0,0,0,0,0,0,0,0,0,0,0,0,0,0,0,0,0,0,0,0,0,0,0,0,0,0,0,0,0,3.7128127171591463,4.9507756631690896,6.4226446506824182,8.1452871896351073,10.135160867043924,12.408356459059,14.980633544211758,17.867450365859522,21.08398919446757,24.64517810695375,28.565709870273789,32.860058453703466,0,0,0,0,0,0,0,0,0,0,0,0,948.24705998443119,949.32972702163988,950.61695782366553,952.12350396046941,953.86375850175716,955.85179372085247,958.10139224045133,960.62607314898037,963.43911418131495,966.55357076602024,969.98229254009038,973.73793778985203,959.6155582215107,964.48882301880587,970.28286341896285,977.06407869722204,984.8972544594169,993.84573235339451,1003.9715502612459,1015.3355598533896,1027.9975264276802,1042.0162146442151,1057.4494628609282,1074.3542481345046]
[1001617236,4,1,1,1,3,3.0306803023566031,3,3,3,3.0230632761679481,2.1694249845207684E-2,0,0,0,1.6308198974734206E-2,0.12304063405958204,0,0,0,0.3677509745712596,5.5496215163108102,7.6556855199203593,10.208320333996825,13.243260944614924,16.795287547117443,20.898335090615813,25.585582173483054,30.889524476582746,36.842036338549633,43.474423051897745,50.817465771241231,58.901460450564159,0,0,0,0,0,0,0,0,0,0,0,0,0,0,0,0,0,0,0,0,0,0,0,0,0,0,0,0,0,0,0,0,0,0,0,0,2.6914252535014205,3.7128127171591463,4.9507756631690896,6.4226446506824182,8.1452871896351073,10.135160867043924,12.408356459059,14.980633544211758,17.867450365859522,21.08398919446757,24.64517810695375,28.565709870273789,0,0,0,0,0,0,0,0,0,0,0,0,947.35380017993987,948.24705998443119,949.32972702163988,950.61695782366553,952.12350396046941,953.86375850175716,955.85179372085247,958.10139224045133,960.62607314898037,963.43911418131495,966.55357076602024,969.98229254009038,955.59484694975208,959.6155582215107,964.48882301880587,970.28286341896285,977.06407869722204,984.8972544594169,993.84573235339451,1003.9715502612459,1015.3355598533896,1027.9975264276802,1042.0162146442151,1057.4494628609282]
[1001618746,4,1,1,1,3,3.0306803023566031,3,3,3,3.0230632761679481,2.1694249845207684E-2,0,0,0,1.6308198974734206E-2,0.12304063405958204,0,0,0,0.3677509745712596,5.5496215163108102,7.6556855199203593,10.208320333996825,13.243260944614924,16.795287547117443,20.898335090615813,25.585582173483054,30.889524476582746,36.842036338549633,43.474423051897745,50.817465771241231,58.901460450564159,0,0,0,0,0,0,0,0,0,0,0,0,0,0,0,0,0,0,0,0,0,0,0,0,0,0,0,0,0,0,0,0,0,0,0,0,2.6914252535014205,3.7128127171591463,4.9507756631690896,6.4226446506824182,8.1452871896351073,10.135160867043924,12.408356459059,14.980633544211758,17.867450365859522,21.08398919446757,24.64517810695375,28.565709870273789,0,0,0,0,0,0,0,0,0,0,0,0,947.35380017993987,948.24705998443119,949.32972702163988,950.61695782366553,952.12350396046941,953.86375850175716,955.85179372085247,958.10139224045133,960.62607314898037,963.43911418131495,966.55357076602024,969.98229254009038,955.59484694975208,959.6155582215107,964.48882301880587,970.28286341896285,977.06407869722204,984.8972544594169,993.84573235339451,1003.9715502612459,1015.3355598533896,1027.9975264276802,1042.0162146442151,1057.4494628609282]
[1001618747,4,1,1,1,3,3.0306803023566031,3,3,3,3.0230632761679481,2.1694249845207684E-2,0,0,0,1.6308198974734206E-2,0.12304063405958204,0,0,0,0.3677509745712596,5.5496215163108102,7.6556855199203593,10.208320333996825,13.243260944614924,16.795287547117443,20.898335090615813,25.585582173483054,30.889524476582746,36.842036338549633,43.474423051897745,50.817465771241231,58.901460450564159,0,0,0,0,0,0,0,0,0,0,0,0,0,0,0,0,0,0,0,0,0,0,0,0,0,0,0,0,0,0,0,0,0,0,0,0,2.6914252535014205,3.7128127171591463,4.9507756631690896,6.4226446506824182,8.1452871896351073,10.135160867043924,12.408356459059,14.980633544211758,17.867450365859522,21.08398919446757,24.64517810695375,28.565709870273789,0,0,0,0,0,0,0,0,0,0,0,0,947.35380017993987,948.24705998443119,949.32972702163988,950.61695782366553,952.12350396046941,953.86375850175716,955.85179372085247,958.10139224045133,960.62607314898037,963.43911418131495,966.55357076602024,969.98229254009038,955.59484694975208,959.6155582215107,964.48882301880587,970.28286341896285,977.06407869722204,984.8972544594169,993.84573235339451,1003.9715502612459,1015.3355598533896,1027.9975264276802,1042.0162146442151,1057.4494628609282]
[1001626218,4,1,1,1,3,3.0306803023566031,3,3,3,3.0230632761679481,2.1694249845207684E-2,0,0,0,1.6308198974734206E-2,0.12304063405958204,0,0,0,0.3677509745712596,0.12328530691863733,0.3786718380774976,0.83392896743133116,1.5359838080958728,2.5286241135206606,3.8533006240259637,5.5496215163108102,7.6556855199203593,10.208320333996825,13.243260944614924,16.795287547117443,20.898335090615813,0,0,0,0,0,0,0,0,0,0,0,0,0,0,0,0,0,0,0,0,0,0,0,0,0,0,0,0,0,0,0,0,0,0,0,0,5.9790237487595613E-2,0.18364620808755319,0.40443433412069568,0.74491307162630371,1.2263183670706013,1.8687527750055364,2.6914252535014205,3.7128127171591463,4.9507756631690896,6.4226446506824182,8.1452871896351073,10.135160867043924,0,0,0,0,0,0,0,0,0,0,0,0,945.05228986819304,945.16060876187419,945.35370018438698,945.65146766374153,946.07248320915437,946.63432761595311,947.35380017993987,948.24705998443119,949.32972702163988,950.61695782366553,952.12350396046941,953.86375850175716,945.23536541259932,945.72292680803923,946.59206348593898,947.93236454346379,949.82742568974561,952.35638101498466,955.59484694975208,959.6155582215107,964.48882301880587,970.28286341896285,977.06407869722204,984.8972544594169]
[1001631721,4,1,1,1,3,3.0306803023566031,3,3,3,3.0230632761679481,2.1694249845207684E-2,0,0,0,1.6308198974734206E-2,0.12304063405958204,0,0,0,0.3677509745712596,1.5359838080958728,2.5286241135206606,3.8533006240259637,5.5496215163108102,7.6556855199203593,10.208320333996825,13.243260944614924,16.795287547117443,20.898335090615813,25.585582173483054,30.889524476582746,36.842036338549633,0,0,0,0,0,0,0,0,0,0,0,0,0,0,0,0,0,0,0,0,0,0,0,0,0,0,0,0,0,0,0,0,0,0,0,0,0.74491307162630371,1.2263183670706013,1.8687527750055364,2.6914252535014205,3.7128127171591463,4.9507756631690896,6.4226446506824182,8.1452871896351073,10.135160867043924,12.408356459059,14.980633544211758,17.867450365859522,0,0,0,0,0,0,0,0,0,0,0,0,945.65146766374153,946.07248320915437,946.63432761595311,947.35380017993987,948.24705998443119,949.32972702163988,950.61695782366553,952.12350396046941,953.86375850175716,955.85179372085247,958.10139224045133,960.62607314898037,947.93236454346379,949.82742568974561,952.35638101498466,955.59484694975208,959.6155582215107,964.48882301880587,970.28286341896285,977.06407869722204,984.8972544594169,993.84573235339451,1003.9715502612459,1015.3355598533896]
[1001631725,4,1,1,1,3,3.0306803023566031,3,3,3,3.0230632761679481,2.1694249845207684E-2,0,0,0,1.6308198974734206E-2,0.12304063405958204,0,0,0,0.3677509745712596,1.5359838080958728,2.5286241135206606,3.8533006240259637,5.5496215163108102,7.6556855199203593,10.208320333996825,13.243260944614924,16.795287547117443,20.898335090615813,25.585582173483054,30.889524476582746,36.842036338549633,0,0,0,0,0,0,0,0,0,0,0,0,0,0,0,0,0,0,0,0,0,0,0,0,0,0,0,0,0,0,0,0,0,0,0,0,0.74491307162630371,1.2263183670706013,1.8687527750055364,2.6914252535014205,3.7128127171591463,4.9507756631690896,6.4226446506824182,8.1452871896351073,10.135160867043924,12.408356459059,14.980633544211758,17.867450365859522,0,0,0,0,0,0,0,0,0,0,0,0,945.65146766374153,946.07248320915437,946.63432761595311,947.35380017993987,948.24705998443119,949.32972702163988,950.61695782366553,952.12350396046941,953.86375850175716,955.85179372085247,958.10139224045133,960.62607314898037,947.93236454346379,949.82742568974561,952.35638101498466,955.59484694975208,959.6155582215107,964.48882301880587,970.28286341896285,977.06407869722204,984.8972544594169,993.84573235339451,1003.9715502612459,1015.3355598533896]
[1001642113,4,1,1,1,3,3.0306803023566031,3,3,3,3.0230632761679481,2.1694249845207684E-2,0,0,0,1.6308198974734206E-2,0.12304063405958204,0,0,0,0.3677509745712596,2.5286241135206606,3.8533006240259637,5.5496215163108102,7.6556855199203593,10.208320333996825,13.243260944614924,16.795287547117443,20.898335090615813,25.585582173483054,30.889524476582746,36.842036338549633,43.474423051897745,0,0,0,0,0,0,0,0,0,0,0,0,0,0,0,0,0,0,0,0,0,0,0,0,0,0,0,0,0,0,0,0,0,0,0,0,1.2263183670706013,1.8687527750055364,2.6914252535014205,3.7128127171591463,4.9507756631690896,6.4226446506824182,8.1452871896351073,10.135160867043924,12.408356459059,14.980633544211758,17.867450365859522,21.08398919446757,0,0,0,0,0,0,0,0,0,0,0,0,946.07248320915437,946.63432761595311,947.35380017993987,948.24705998443119,949.32972702163988,950.61695782366553,952.12350396046941,953.86375850175716,955.85179372085247,958.10139224045133,960.62607314898037,963.43911418131495,949.82742568974561,952.35638101498466,955.59484694975208,959.6155582215107,964.48882301880587,970.28286341896285,977.06407869722204,984.8972544594169,993.84573235339451,1003.9715502612459,1015.3355598533896,1027.9975264276802]
[1001642114,4,1,1,1,3,3.0306803023566031,3,3,3,3.0230632761679481,2.1694249845207684E-2,0,0,0,1.6308198974734206E-2,0.12304063405958204,0,0,0,0.3677509745712596,2.5286241135206606,3.8533006240259637,5.5496215163108102,7.6556855199203593,10.208320333996825,13.243260944614924,16.795287547117443,20.898335090615813,25.585582173483054,30.889524476582746,36.842036338549633,43.474423051897745,0,0,0,0,0,0,0,0,0,0,0,0,0,0,0,0,0,0,0,0,0,0,0,0,0,0,0,0,0,0,0,0,0,0,0,0,1.2263183670706013,1.8687527750055364,2.6914252535014205,3.7128127171591463,4.9507756631690896,6.4226446506824182,8.1452871896351073,10.135160867043924,12.408356459059,14.980633544211758,17.867450365859522,21.08398919446757,0,0,0,0,0,0,0,0,0,0,0,0,946.07248320915437,946.63432761595311,947.35380017993987,948.24705998443119,949.32972702163988,950.61695782366553,952.12350396046941,953.86375850175716,955.85179372085247,958.10139224045133,960.62607314898037,963.43911418131495,949.82742568974561,952.35638101498466,955.59484694975208,959.6155582215107,964.48882301880587,970.28286341896285,977.06407869722204,984.8972544594169,993.84573235339451,1003.9715502612459,1015.3355598533896,1027.9975264276802]
[1001687771,3,1,1,1,2,2.2730102267674521,3,3,3,2.0153755174452987,-0.51405939850600502,0,0,0,-0.69623464853672468,7.7584975544686519E-2,0,0,0,0.18638531638083977,2.4297520649691235,3.4993906924824487,4.8273985125369681,6.4369977407783869,8.3507215674969437,10.59050112646592,13.177734569743324,16.133343121955896,19.477817384638474,23.231256163379811,27.413399443857681,32.043656709339359,0,0,0,0,0,0,0,0,0,0,0,0,0,0,0,0,0,0,0,0,0,0,0,0,0,0,0,0,0,0,0,0,0,0,0,0,0.94713026284444846,1.3640810822434415,1.8817455854666143,2.5091759155393616,3.2551556297431095,4.1282336005305797,5.1367509412504493,6.2888628564050384,7.5925566913277791,9.0556670672109263,10.685888735339226,12.490787615402043,0,0,0,0,0,0,0,0,0,0,0,0,946.63432761595311,947.35380017993987,948.24705998443119,949.32972702163988,950.61695782366553,952.12350396046941,953.86375850175716,955.85179372085247,958.10139224045133,960.62607314898037,963.43911418131495,966.55357076602024,950.01120994376663,952.21727195466565,954.95620408243485,958.27590067795757,962.22283502090556,966.84223868746597,972.17824401275084,978.27399969921339,985.17176631641757,992.91299637957115,1001.5384023605118,1011.0880150907617]
[1001853912,4,1,1,1,3,3.0306803023566031,3,3,3,3.0230632761679481,2.1694249845207684E-2,0,0,0,1.6308198974734206E-2,0.12304063405958204,0,0,0,0.3677509745712596,1.5359838080958728,2.5286241135206606,3.8533006240259637,5.5496215163108102,7.6556855199203593,10.208320333996825,13.243260944614924,16.795287547117443,20.898335090615813,25.585582173483054,30.889524476582746,36.842036338549633,0,0,0,0,0,0,0,0,0,0,0,0,0,0,0,0,0,0,0,0,0,0,0,0,0,0,0,0,0,0,0,0,0,0,0,0,0.74491307162630371,1.2263183670706013,1.8687527750055364,2.6914252535014205,3.7128127171591463,4.9507756631690896,6.4226446506824182,8.1452871896351073,10.135160867043924,12.408356459059,14.980633544211758,17.867450365859522,0,0,0,0,0,0,0,0,0,0,0,0,945.65146766374153,946.07248320915437,946.63432761595311,947.35380017993987,948.24705998443119,949.32972702163988,950.61695782366553,952.12350396046941,953.86375850175716,955.85179372085247,958.10139224045133,960.62607314898037,947.93236454346379,949.82742568974561,952.35638101498466,955.59484694975208,959.6155582215107,964.48882301880587,970.28286341896285,977.06407869722204,984.8972544594169,993.84573235339451,1003.9715502612459,1015.3355598533896]
[1001865682,4,1,1,1,3,3.0306803023566031,3,3,3,3.0230632761679481,2.1694249845207684E-2,0,0,0,1.6308198974734206E-2,0.12304063405958204,0,0,0,0.3677509745712596,0.12328530691863733,0.3786718380774976,0.83392896743133116,1.5359838080958728,2.5286241135206606,3.8533006240259637,5.5496215163108102,7.6556855199203593,10.208320333996825,13.243260944614924,16.795287547117443,20.898335090615813,0,0,0,0,0,0,0,0,0,0,0,0,0,0,0,0,0,0,0,0,0,0,0,0,0,0,0,0,0,0,0,0,0,0,0,0,5.9790237487595613E-2,0.18364620808755319,0.40443433412069568,0.74491307162630371,1.2263183670706013,1.8687527750055364,2.6914252535014205,3.7128127171591463,4.9507756631690896,6.4226446506824182,8.1452871896351073,10.135160867043924,0,0,0,0,0,0,0,0,0,0,0,0,945.05228986819304,945.16060876187419,945.35370018438698,945.65146766374153,946.07248320915437,946.63432761595311,947.35380017993987,948.24705998443119,949.32972702163988,950.61695782366553,952.12350396046941,953.86375850175716,945.23536541259932,945.72292680803923,946.59206348593898,947.93236454346379,949.82742568974561,952.35638101498466,955.59484694975208,959.6155582215107,964.48882301880587,970.28286341896285,977.06407869722204,984.8972544594169]
[1001865683,4,1,1,1,3,3.0306803023566031,3,3,3,3.0230632761679481,2.1694249845207684E-2,0,0,0,1.6308198974734206E-2,0.12304063405958204,0,0,0,0.3677509745712596,0.12328530691863733,0.3786718380774976,0.83392896743133116,1.5359838080958728,2.5286241135206606,3.8533006240259637,5.5496215163108102,7.6556855199203593,10.208320333996825,13.243260944614924,16.795287547117443,20.898335090615813,0,0,0,0,0,0,0,0,0,0,0,0,0,0,0,0,0,0,0,0,0,0,0,0,0,0,0,0,0,0,0,0,0,0,0,0,5.9790237487595613E-2,0.18364620808755319,0.40443433412069568,0.74491307162630371,1.2263183670706013,1.8687527750055364,2.6914252535014205,3.7128127171591463,4.9507756631690896,6.4226446506824182,8.1452871896351073,10.135160867043924,0,0,0,0,0,0,0,0,0,0,0,0,945.05228986819304,945.16060876187419,945.35370018438698,945.65146766374153,946.07248320915437,946.63432761595311,947.35380017993987,948.24705998443119,949.32972702163988,950.61695782366553,952.12350396046941,953.86375850175716,945.23536541259932,945.72292680803923,946.59206348593898,947.93236454346379,949.82742568974561,952.35638101498466,955.59484694975208,959.6155582215107,964.48882301880587,970.28286341896285,977.06407869722204,984.8972544594169]
[1001895048,4,1,1,1,3,3.0306803023566031,3,3,3,3.0230632761679481,2.1694249845207684E-2,0,0,0,1.6308198974734206E-2,0.12304063405958204,0,0,0,0.3677509745712596,0.83392896743133116,1.5359838080958728,2.5286241135206606,3.8533006240259637,5.5496215163108102,7.6556855199203593,10.208320333996825,13.243260944614924,16.795287547117443,20.898335090615813,25.585582173483054,30.889524476582746,0,0,0,0,0,0,0,0,0,0,0,0,0,0,0,0,0,0,0,0,0,0,0,0,0,0,0,0,0,0,0,0,0,0,0,0,0.40443433412069568,0.74491307162630371,1.2263183670706013,1.8687527750055364,2.6914252535014205,3.7128127171591463,4.9507756631690896,6.4226446506824182,8.1452871896351073,10.135160867043924,12.408356459059,14.980633544211758,0,0,0,0,0,0,0,0,0,0,0,0,945.35370018438698,945.65146766374153,946.07248320915437,946.63432761595311,947.35380017993987,948.24705998443119,949.32972702163988,950.61695782366553,952.12350396046941,953.86375850175716,955.85179372085247,958.10139224045133,946.59206348593898,947.93236454346379,949.82742568974561,952.35638101498466,955.59484694975208,959.6155582215107,964.48882301880587,970.28286341896285,977.06407869722204,984.8972544594169,993.84573235339451,1003.9715502612459]
[1003132771,4,1,1,1,3,3.0306803023566031,3,3,3,3.0230632761679481,2.1694249845207684E-2,0,0,0,1.6308198974734206E-2,0.12304063405958204,0,0,0,0.3677509745712596,0.12328530691863733,0.3786718380774976,0.83392896743133116,1.5359838080958728,2.5286241135206606,3.8533006240259637,5.5496215163108102,7.6556855199203593,10.208320333996825,13.243260944614924,16.795287547117443,20.898335090615813,0,0,0,0,0,0,0,0,0,0,0,0,0,0,0,0,0,0,0,0,0,0,0,0,0,0,0,0,0,0,0,0,0,0,0,0,5.9790237487595613E-2,0.18364620808755319,0.40443433412069568,0.74491307162630371,1.2263183670706013,1.8687527750055364,2.6914252535014205,3.7128127171591463,4.9507756631690896,6.4226446506824182,8.1452871896351073,10.135160867043924,0,0,0,0,0,0,0,0,0,0,0,0,945.05228986819304,945.16060876187419,945.35370018438698,945.65146766374153,946.07248320915437,946.63432761595311,947.35380017993987,948.24705998443119,949.32972702163988,950.61695782366553,952.12350396046941,953.86375850175716,945.23536541259932,945.72292680803923,946.59206348593898,947.93236454346379,949.82742568974561,952.35638101498466,955.59484694975208,959.6155582215107,964.48882301880587,970.28286341896285,977.06407869722204,984.8972544594169]
[1003132772,4,1,1,1,3,3.0306803023566031,3,3,3,3.0230632761679481,2.1694249845207684E-2,0,0,0,1.6308198974734206E-2,0.12304063405958204,0,0,0,0.3677509745712596,0.12328530691863733,0.3786718380774976,0.83392896743133116,1.5359838080958728,2.5286241135206606,3.8533006240259637,5.5496215163108102,7.6556855199203593,10.208320333996825,13.243260944614924,16.795287547117443,20.898335090615813,0,0,0,0,0,0,0,0,0,0,0,0,0,0,0,0,0,0,0,0,0,0,0,0,0,0,0,0,0,0,0,0,0,0,0,0,5.9790237487595613E-2,0.18364620808755319,0.40443433412069568,0.74491307162630371,1.2263183670706013,1.8687527750055364,2.6914252535014205,3.7128127171591463,4.9507756631690896,6.4226446506824182,8.1452871896351073,10.135160867043924,0,0,0,0,0,0,0,0,0,0,0,0,945.05228986819304,945.16060876187419,945.35370018438698,945.65146766374153,946.07248320915437,946.63432761595311,947.35380017993987,948.24705998443119,949.32972702163988,950.61695782366553,952.12350396046941,953.86375850175716,945.23536541259932,945.72292680803923,946.59206348593898,947.93236454346379,949.82742568974561,952.35638101498466,955.59484694975208,959.6155582215107,964.48882301880587,970.28286341896285,977.06407869722204,984.8972544594169]
[1003132875,4,1,1,1,3,3.0306803023566031,3,3,3,3.0230632761679481,2.1694249845207684E-2,0,0,0,1.6308198974734206E-2,0.12304063405958204,0,0,0,0.3677509745712596,0.12328530691863733,0.3786718380774976,0.83392896743133116,1.5359838080958728,2.5286241135206606,3.8533006240259637,5.5496215163108102,7.6556855199203593,10.208320333996825,13.243260944614924,16.795287547117443,20.898335090615813,0,0,0,0,0,0,0,0,0,0,0,0,0,0,0,0,0,0,0,0,0,0,0,0,0,0,0,0,0,0,0,0,0,0,0,0,5.9790237487595613E-2,0.18364620808755319,0.40443433412069568,0.74491307162630371,1.2263183670706013,1.8687527750055364,2.6914252535014205,3.7128127171591463,4.9507756631690896,6.4226446506824182,8.1452871896351073,10.135160867043924,0,0,0,0,0,0,0,0,0,0,0,0,945.05228986819304,945.16060876187419,945.35370018438698,945.65146766374153,946.07248320915437,946.63432761595311,947.35380017993987,948.24705998443119,949.32972702163988,950.61695782366553,952.12350396046941,953.86375850175716,945.23536541259932,945.72292680803923,946.59206348593898,947.93236454346379,949.82742568974561,952.35638101498466,955.59484694975208,959.6155582215107,964.48882301880587,970.28286341896285,977.06407869722204,984.8972544594169]
[1003132876,4,1,1,1,3,3.0306803023566031,3,3,3,3.0230632761679481,2.1694249845207684E-2,0,0,0,1.6308198974734206E-2,0.12304063405958204,0,0,0,0.3677509745712596,0.12328530691863733,0.3786718380774976,0.83392896743133116,1.5359838080958728,2.5286241135206606,3.8533006240259637,5.5496215163108102,7.6556855199203593,10.208320333996825,13.243260944614924,16.795287547117443,20.898335090615813,0,0,0,0,0,0,0,0,0,0,0,0,0,0,0,0,0,0,0,0,0,0,0,0,0,0,0,0,0,0,0,0,0,0,0,0,5.9790237487595613E-2,0.18364620808755319,0.40443433412069568,0.74491307162630371,1.2263183670706013,1.8687527750055364,2.6914252535014205,3.7128127171591463,4.9507756631690896,6.4226446506824182,8.1452871896351073,10.135160867043924,0,0,0,0,0,0,0,0,0,0,0,0,945.05228986819304,945.16060876187419,945.35370018438698,945.65146766374153,946.07248320915437,946.63432761595311,947.35380017993987,948.24705998443119,949.32972702163988,950.61695782366553,952.12350396046941,953.86375850175716,945.23536541259932,945.72292680803923,946.59206348593898,947.93236454346379,949.82742568974561,952.35638101498466,955.59484694975208,959.6155582215107,964.48882301880587,970.28286341896285,977.06407869722204,984.8972544594169]
[1000332689,4,1,1,1,3,3.0306803023566031,3,3,3,3.0230632761679481,2.1694249845207684E-2,0,0,0,1.6308198974734206E-2,0.12304063405958204,0,0,0,0.3677509745712596,739.68296992500564,782.51894579536281,826.89456934528289,872.832724518654,920.35617212298052,969.48755288782002,1020.2493903900088,1072.6640938538956,1126.7539608341217,1182.5411797879206,1240.0478325433839,1299.2958966696308,0,0,0,0,0,0,0,0,0,0,0,0,0,0,0,0,0,0,0,0,0,0,0,0,0,0,0,0,0,0,0,0,0,0,0,0,358.72742294045759,379.5017814939211,401.02283000346387,423.30166659970598,446.34932969525403,470.17679946796505,494.79499927960688,520.21479703389991,546.44700647759703,573.50238844798412,601.3916520699255,630.12545590533682,0,0,0,0,0,0,0,0,0,0,0,0,1258.7269636480189,1276.8952887158105,1295.7166354310327,1315.2007097224748,1335.3571652922208,1356.1956049128471,1377.7255816681188,1399.9566001406731,1422.8981175498843,1446.559544842873,1470.9502477413887,1496.0795477470858,2357.1373565134822,2438.9160160050942,2523.6340347797795,2611.3351008408345,2702.0626671104555,2795.8599572686321,2892.7699713377342,2992.8354910284688,3096.0990848616029,3202.6031130787778,3312.389732354698,3425.500900322053]
[1000340355,4,1,1,1,3,3.0306803023566031,3,3,3,3.0230632761679481,2.1694249845207684E-2,0,0,0,1.6308198974734206E-2,0.12304063405958204,0,0,0,0.3677509745712596,2016.0958383537586,2112.3146142565274,2211.448306410618,2313.5360671943886,2418.6169358045431,2526.7298403724526,2637.9136000084891,2752.2069267778838,2869.6484276114243,2990.2766061540497,3114.1298645542752,3241.246505197154,0,0,0,0,0,0,0,0,0,0,0,0,0,0,0,0,0,0,0,0,0,0,0,0,0,0,0,0,0,0,0,0,0,0,0,0,977.75519229130191,1024.4188508064967,1072.4961695483562,1122.00613642435,1172.9676844517262,1225.3996927838714,1279.3209877017612,1334.7503435722006,1391.706483774464,1450.2080815968186,1510.2737611043465,1571.9220979793879,0,0,0,0,0,0,0,0,0,0,0,0,1800.1009709663313,1840.9109201435649,1882.957193343384,1926.2563965406198,1970.8250877055691,2016.679777701605,2063.8369311522533,2112.3129672792293,2162.1242607128315,2213.287142276004,2265.8178997432956,2319.7327785758716,4793.9520016113911,4977.6443852065895,5166.9016693023586,5361.7986001593581,5562.4097079618386,5768.8093108579287,5981.0715188625036,6199.2702376293137,6423.4791720987196,6653.7718300268725,6890.2215254019175,7132.9013817524137]
[1000349432,4,1,1,1,3,3.0306803023566031,3,3,3,3.0230632761679481,2.1694249845207684E-2,0,0,0,1.6308198974734206E-2,0.12304063405958204,0,0,0,0.3677509745712596,58.901460450564159,67.756251890949088,77.411263737631444,87.895525086545064,99.237694226602784,111.46607994206619,124.60866072077268,138.69310215262723,153.74677275431705,169.79675841755133,186.86987564701454,204.9926837289363,0,0,0,0,0,0,0,0,0,0,0,0,0,0,0,0,0,0,0,0,0,0,0,0,0,0,0,0,0,0,0,0,0,0,0,0,28.565709870273789,32.860058453703466,37.542493576646898,42.627093612134182,48.12775710122358,54.058213084108843,60.432030415620723,67.262626203052804,74.563273480745593,82.347108217115235,90.627135734724064,99.416236611727371,0,0,0,0,0,0,0,0,0,0,0,0,969.98229254009038,973.73793778985203,977.83298617382718,982.27975000755498,987.09038433357352,992.27689595654374,997.85115159017073,1003.8248852365491,1010.2097048980108,1017.0170987051594,1024.2584405315763,1031.9449951549625,1057.4494628609282,1074.3542481345046,1092.7867434881055,1112.8023687062343,1134.4558356614,1157.8011889827189,1182.8918427265642,1209.7806135922292,1238.5197511330737,1269.1609653398259,1301.755451913315,1336.3539154956261]
[1000358329,4,1,1,1,3,3.0306803023566031,3,3,3,3.0230632761679481,2.1694249845207684E-2,0,0,0,1.6308198974734206E-2,0.12304063405958204,0,0,0,0.3677509745712596,30.889524476582746,36.842036338549633,43.474423051897745,50.817465771241231,58.901460450564159,67.756251890949088,77.411263737631444,87.895525086545064,99.237694226602784,111.46607994206619,124.60866072077268,138.69310215262723,0,0,0,0,0,0,0,0,0,0,0,0,0,0,0,0,0,0,0,0,0,0,0,0,0,0,0,0,0,0,0,0,0,0,0,0,14.980633544211758,17.867450365859522,21.08398919446757,24.64517810695375,28.565709870273789,32.860058453703466,37.542493576646898,42.627093612134182,48.12775710122358,54.058213084108843,60.432030415620723,67.262626203052804,0,0,0,0,0,0,0,0,0,0,0,0,958.10139224045133,960.62607314898037,963.43911418131495,966.55357076602024,969.98229254009038,973.73793778985203,977.83298617382718,982.27975000755498,987.09038433357352,992.27689595654374,997.85115159017073,1003.8248852365491,1003.9715502612459,1015.3355598533896,1027.9975264276802,1042.0162146442151,1057.4494628609282,1074.3542481345046,1092.7867434881055,1112.8023687062343,1134.4558356614,1157.8011889827189,1182.8918427265642,1209.7806135922292]
[1000374750,4,1,1,1,3,3.0306803023566031,3,3,3,3.0230632761679481,2.1694249845207684E-2,0,0,0,1.6308198974734206E-2,0.12304063405958204,0,0,0,0.3677509745712596,969.48755288782002,1020.2493903900088,1072.6640938538956,1126.7539608341217,1182.5411797879206,1240.0478325433839,1299.2958966696308,1360.307247754426,1423.1036615943347,1487.706816302207,1554.1382943363806,1622.4195844557503,0,0,0,0,0,0,0,0,0,0,0,0,0,0,0,0,0,0,0,0,0,0,0,0,0,0,0,0,0,0,0,0,0,0,0,0,470.17679946796505,494.79499927960688,520.21479703389991,546.44700647759703,573.50238844798412,601.3916520699255,630.12545590533682,659.71440905777058,690.16907223458645,721.49995876902767,753.71753560433149,786.83222424189,0,0,0,0,0,0,0,0,0,0,0,0,1356.1956049128471,1377.7255816681188,1399.9566001406731,1422.8981175498843,1446.559544842873,1470.9502477413887,1496.0795477470858,1521.9567231075471,1548.5910097452079,1575.9916021512206,1604.1676542461125,1633.1282802090045,2795.8599572686321,2892.7699713377342,2992.8354910284688,3096.0990848616029,3202.6031130787778,3312.389732354698,3425.500900322053,3541.9783799197435,3661.8637435741293,3785.1983772224548,3912.0234841868246,4042.3800889066447]
[1000374782,4,1,1,1,3,3.0306803023566031,3,3,3,3.0230632761679481,2.1694249845207684E-2,0,0,0,1.6308198974734206E-2,0.12304063405958204,0,0,0,0.3677509745712596,2081.2436366486231,2197.6189581040876,2318.1859452746135,2443.0152388243255,2572.1773649121155,2705.7427374175149,2843.7816600850119,2986.3643285911803,3133.5608325386338,3285.4411573805737,3442.0751862794764,3603.5327019031511,0,0,0,0,0,0,0,0,0,0,0,0,0,0,0,0,0,0,0,0,0,0,0,0,0,0,0,0,0,0,0,0,0,0,0,0,1009.3502171097466,1065.7892874371582,1124.2612090007476,1184.8002407255235,1247.4405860043678,1312.2163937775304,1379.1617595725666,1448.3107265068427,1519.6972862545526,1593.355379980075,1669.3188992393884,1747.6216868511156,0,0,0,0,0,0,0,0,0,0,0,0,1827.7325669046204,1877.0916541463971,1928.2285821806245,1981.173312331231,2035.9557573562306,2092.605782391799,2151.1532058617599,2211.6278003543271,2274.0592934678161,2338.4773686269182,2404.9116658710345,2473.391782616055,4918.3264206629901,5140.4998996876429,5370.6757364559853,5608.98879188108,5855.5737082727137,6110.5649135868443,6374.096625519338,6646.3028554523498,6927.3174122610026,7217.2739059875666,7516.3057513898993,7824.5461713703216]
[1000400379,4,1,1,1,3,3.0306803023566031,3,3,3,3.0230632761679481,2.1694249845207684E-2,0,0,0,1.6308198974734206E-2,0.12304063405958204,0,0,0,0.3677509745712596,2127.0856416395914,2262.1644357606792,2402.8305221431542,2549.1963149468606,2701.3741968558461,2859.4765197042443,3023.6156050779236,3193.9037448932627,3370.453201954324,3553.376210489645,3742.7849766696972,3938.7916791060711,0,0,0,0,0,0,0,0,0,0,0,0,0,0,0,0,0,0,0,0,0,0,0,0,0,0,0,0,0,0,0,0,0,0,0,0,1031.5824233135761,1097.0922020690277,1165.311675431002,1236.2953614072169,1310.0977627404291,1386.7733672119723,1466.3766479335409,1548.9620636278812,1634.5840588990075,1723.297064492531,1815.1554975466147,1910.2137618340651,0,0,0,0,0,0,0,0,0,0,0,0,1847.1758603399308,1904.4677835771813,1964.1294845536117,2026.208642281006,2090.7529224210953,2157.8099775510191,2227.4274474185058,2299.652959187355,2374.5341276737518,2452.1185555739448,2532.453833683714,2615.5875411100978,5005.8439252930984,5263.7244214068887,5532.2716821277681,5811.700318635083,6102.22488201737,6404.0598644672355,6717.4197004299704,7042.5187677084996,7379.5713885270834,7728.7918305561207,8090.3943079000264,8464.5929820502333]
[1000400797,4,1,1,1,3,3.0306803023566031,3,3,3,3.0230632761679481,2.1694249845207684E-2,0,0,0,1.6308198974734206E-2,0.12304063405958204,0,0,0,0.3677509745712596,4567.5207866901201,4791.0404856147779,5021.7186167761802,5259.6672030033724,5504.9982426210709,5757.8237098319541,6018.255555087273,6286.4057054463392,6562.3860649253538,6846.3085148360451,7138.2849141145925,7438.4270996411624,0,0,0,0,0,0,0,0,0,0,0,0,0,0,0,0,0,0,0,0,0,0,0,0,0,0,0,0,0,0,0,0,0,0,0,0,2215.1313841961787,2323.5327518521071,2435.4057770329359,2550.8047879609021,2669.7841009742633,2792.3980207127061,2918.7008402970755,3048.7468415037233,3182.5902949336778,3320.2854601768763,3461.8865859716834,3607.4479103598596,0,0,0,0,0,0,0,0,0,0,0,0,2882.2548592713783,2977.0578482684919,3074.8969937021138,3175.819808606132,3279.873795621239,3387.1064471570776,3497.5652455494287,3611.2976632126865,3728.3511627878061,3848.7731972859356,3972.611210227923,4099.9126357798432,9664.9070301576776,10091.631085735376,10532.021387511231,10986.291799570407,11454.656139216573,11937.328177701736,12434.521640933777,12946.450210162749,13473.327522646838,14015.367172298858,14572.782710314199,15145.787645780865]
[1000407857,4,1,1,1,3,3.0306803023566031,3,3,3,3.0230632761679481,2.1694249845207684E-2,0,0,0,1.6308198974734206E-2,0.12304063405958204,0,0,0,0.3677509745712596,1346.5451674393178,1420.8684430817493,1497.7890604561005,1577.3471635930578,1659.5827633070335,1744.5357400489818,1832.245846648339,1922.7527109502378,2016.0958383537586,2112.3146142565274,2211.448306410618,2313.5360671943886,0,0,0,0,0,0,0,0,0,0,0,0,0,0,0,0,0,0,0,0,0,0,0,0,0,0,0,0,0,0,0,0,0,0,0,0,653.04015021112048,689.08504811975558,726.38959069221403,764.97324676211849,804.85542055658675,846.05545307977627,888.59262344265528,932.4861501419839,977.75519229130191,1024.4188508064967,1072.4961695483562,1122.00613642435,0,0,0,0,0,0,0,0,0,0,0,0,1516.119714758988,1547.642970726391,1580.2678555919069,1614.0113959268754,1648.8905618006756,1684.9222679907132,1722.1233751453774,1760.5106909025819,1800.1009709663313,1840.9109201435649,1882.957193343384,1926.2563965406198,3515.7050324094262,3657.5964619278957,3804.4465067402216,3956.3318062820517,4113.3287456642956,4275.5134611194717,4442.961845236372,4615.7495519948034,4793.9520016113911,4977.6443852065895,5166.9016693023586,5361.7986001593581]
[1000410265,4,1,1,1,3,3.0306803023566031,3,3,3,3.0230632761679481,2.1694249845207684E-2,0,0,0,1.6308198974734206E-2,0.12304063405958204,0,0,0,0.3677509745712596,5757.8237098319541,6018.255555087273,6286.4057054463392,6562.3860649253538,6846.3085148360451,7138.2849141145925,7438.4270996411624,7746.8468865505765,8063.656068534362,8388.9664181345797,8722.8896870297831,9065.5376063133881,0,0,0,0,0,0,0,0,0,0,0,0,0,0,0,0,0,0,0,0,0,0,0,0,0,0,0,0,0,0,0,0,0,0,0,0,2792.3980207127061,2918.7008402970755,3048.7468415037233,3182.5902949336778,3320.2854601768763,3461.8865859716834,3607.4479103598596,3757.0236608372252,3910.6680545001482,4068.4352981880447,4230.3795886220596,4396.5551125400698,0,0,0,0,0,0,0,0,0,0,0,0,3387.1064471570776,3497.5652455494287,3611.2976632126865,3728.3511627878061,3848.7731972859356,3972.611210227923,4099.9126357798432,4230.7248988847641,4365.0954153908597,4503.0715921760293,4644.7008272691864,4790.0305099683237,11937.328177701736,12434.521640933777,12946.450210162749,13473.327522646838,14015.367172298858,14572.782710314199,15145.787645780865,15734.595446272566,16339.419538425369,16960.473308498655,17597.97010292103,18252.12322882178]
[1000410753,4,1,1,1,3,3.0306803023566031,3,3,3,3.0230632761679481,2.1694249845207684E-2,0,0,0,1.6308198974734206E-2,0.12304063405958204,0,0,0,0.3677509745712596,2443.0152388243255,2572.1773649121155,2705.7427374175149,2843.7816600850119,2986.3643285911803,3133.5608325386338,3285.4411573805737,3442.0751862794764,3603.5327019031511,3769.8833881612809,3941.1968318852901,4117.5425244542548,0,0,0,0,0,0,0,0,0,0,0,0,0,0,0,0,0,0,0,0,0,0,0,0,0,0,0,0,0,0,0,0,0,0,0,0,1184.8002407255235,1247.4405860043678,1312.2163937775304,1379.1617595725666,1448.3107265068427,1519.6972862545526,1593.355379980075,1669.3188992393884,1747.6216868511156,1828.2975377387004,1911.3801997450998,1996.9033744213107,0,0,0,0,0,0,0,0,0,0,0,0,1981.173312331231,2035.9557573562306,2092.605782391799,2151.1532058617599,2211.6278003543271,2274.0592934678161,2338.4773686269182,2404.9116658710345,2473.391782616055,2543.9472743908873,2616.6076555499512,2691.4023999627871,5608.98879188108,5855.5737082727137,6110.5649135868443,6374.096625519338,6646.3028554523498,6927.3174122610026,7217.2739059875666,7516.3057513898993,7824.5461713703216,8142.1282002908683,8469.1846871803409,8805.848298838353]

{"sheet":"D. Risk Index Parameters","index":15,"n_rows":23,"n_cols":8,"rows_kept":23,"cut":false,"hidden":false,"merged":[[3,1,3,8],[22,2,22,3],[19,2,19,3],[20,2,20,3],[21,2,21,3],[6,2,6,3],[6,4,6,5],[6,6,6,7]]}
[null,null,null,"Risk Index Parameters"]
[]
[]
[null,"Risk Index Mapping Table and Parameters"]
[]
[]
[null,null,"RISK INDEX",null,"RISK RANGE ($)",null,"RISK - REPLACEMENT RATIO"]
[null,null,"R1($)",1,{"$f":"G8*$E$20","v":0},{"$f":"H8*$E$20","v":7006.7372473532241},0,{"$f":"$H$18*D8","v":0.16666666666666666}]
[null,null,"R2($)",2,7006.7372473532241,14013.474494706448,{"$f":"H8","v":0.16666666666666666},0.33333333333333331]
[null,null,"R3($)",3,14013.474494706448,21020.211742059673,0.33333333333333331,{"$f":"$H$18*D10","v":0.5}]
[null,null,"R4($)",4,21020.211742059673,28026.948989412896,0.5,{"$f":"$H$18*D11","v":0.66666666666666663}]
[null,null,"R5($)",5,28026.948989412896,35033.686236766116,0.66666666666666663,0.83333333333333326]
[null,null,"R6($)",6,35033.686236766116,42040.423484119347,0.83333333333333326,{"$f":"$H$18*D13","v":1}]
[null,null,"R7($)",7,42040.423484119347,50448.508180943216,1,1.2]
[null,null,"R8($)",8,50448.508180943216,63060.635226179016,1.2,1.5]
[null,null,"R9($)",9,63060.635226179016,84080.846968238693,1.5,2]
[null,null,"R10($)",10,{"$f":"G17*$E$20","v":84080.846968238693},{"$f":"H17*E20","v":4204042.3484119345},2,100]
[null,null,null,null,null,null,null,{"$f":"0.5/3","v":0.16666666666666666}]
[]
[null,null,"Annual Deferral Benefit (ADB)",null,{"$f":"(E22*E21)/(1+E21)","v":42040.423484119347},"(per unit, per annum)"]
[null,null,"WACC",null,3.9E-2,"(%)"]
[null,null,"Asset Replacement Cost",null,{"$f":"'C. PoC Summary Stats & Para'!E30","v":1120000},"(per unit)"]
[null,null,"Asset RAB Life",null,{"$f":"'B. PoF Summary Stats & Params'!$V$7","v":45.89},"(years)"]

{"sheet":"D. Population Risk Index","index":16,"n_rows":573,"n_cols":46,"rows_kept":573,"cut":false,"hidden":false,"merged":[[16,27,16,28],[18,27,18,28],[19,27,19,28],[3,0,4,0],[3,2,3,13],[3,14,3,25],[3,27,3,28],[15,27,15,28]]}
[null,null,"Individual Asset Risk Index"]
[]
[]
["Asset Identifier","Replacement Cost ","RISK($) / REPLACEMENT DEFERRAL VALUE ($) RATIO",null,null,null,null,null,null,null,null,null,null,null,"ASSET RISK INDEX",null,null,null,null,null,null,null,null,null,null,null,null,"RISK INDEX SUMMARY TABLE",null,2019,2020,2021,2022,2023,2024,2025,2026,2027,2028,2029,2030,null,"Description","Consequence Category ID","Average Risk (2019)","Proportion of Risk"]
[null,{"$f":"'D. Risk Index Parameters'!$E$20","v":42040.423484119347},2019,2020,2021,2022,2023,2024,2025,2026,2027,2028,2029,2030,2019,2020,2021,2022,2023,2024,2025,2026,2027,2028,2029,2030,null,"R1($)",1,{"$f":"SUMIF(O:O, $AC5,'A. Population Info'!$C:$C)","v":555},{"$f":"SUMIF(P:P, $AC5,'A. Population Info'!$C:$C)","v":555},{"$f":"SUMIF(Q:Q, $AC5,'A. Population Info'!$C:$C)","v":554},{"$f":"SUMIF(R:R, $AC5,'A. Population Info'!$C:$C)","v":550},{"$f":"SUMIF(S:S, $AC5,'A. Population Info'!$C:$C)","v":546},{"$f":"SUMIF(T:T, $AC5,'A. Population Info'!$C:$C)","v":539},{"$f":"SUMIF(U:U, $AC5,'A. Population Info'!$C:$C)","v":528},{"$f":"SUMIF(V:V, $AC5,'A. Population Info'!$C:$C)","v":519},{"$f":"SUMIF(W:W, $AC5,'A. Population Info'!$C:$C)","v":517},{"$f":"SUMIF(X:X, $AC5,'A. Population Info'!$C:$C)","v":513},{"$f":"SUMIF(Y:Y, $AC5,'A. Population Info'!$C:$C)","v":509},{"$f":"SUMIF(Z:Z, $AC5,'A. Population Info'!$C:$C)","v":505},null,{"$f":"'C. PoC Summary Stats & Para'!N7","v":"Worker Safety"},{"$f":"'C. PoC Summary Stats & Para'!O7","v":"C1"},{"$f":"IFERROR(SUM('C. Population PoC & Risk'!V6:V1048576)/SUM('A. Population Info'!$C$6:$C$1048576), \"\")","v":589.22950052848773},{"$f":"IFERROR(AS5/$AS$12, \"\")","v":0.28465785951072492}]
[1000023626,42040.423484119347,2.3427386615918821E-2,2.3640240748973831E-2,2.3881099833366174E-2,2.415141132526721E-2,2.4452596839706037E-2,2.4786054189911616E-2,2.515315915550605E-2,2.5555267028657284E-2,2.599371397628529E-2,2.6469818248300764E-2,2.6984881255773686E-2,2.7540188538302313E-2,1,1,1,1,1,1,1,1,1,1,1,1,null,"R2($)",2,{"$f":"SUMIF(O:O, $AC6,'A. Population Info'!$C:$C)","v":13},{"$f":"SUMIF(P:P, $AC6,'A. Population Info'!$C:$C)","v":13},{"$f":"SUMIF(Q:Q, $AC6,'A. Population Info'!$C:$C)","v":14},{"$f":"SUMIF(R:R, $AC6,'A. Population Info'!$C:$C)","v":18},{"$f":"SUMIF(S:S, $AC6,'A. Population Info'!$C:$C)","v":21},{"$f":"SUMIF(T:T, $AC6,'A. Population Info'!$C:$C)","v":28},{"$f":"SUMIF(U:U, $AC6,'A. Population Info'!$C:$C)","v":39},{"$f":"SUMIF(V:V, $AC6,'A. Population Info'!$C:$C)","v":48},{"$f":"SUMIF(W:W, $AC6,'A. Population Info'!$C:$C)","v":50},{"$f":"SUMIF(X:X, $AC6,'A. Population Info'!$C:$C)","v":53},{"$f":"SUMIF(Y:Y, $AC6,'A. Population Info'!$C:$C)","v":57},{"$f":"SUMIF(Z:Z, $AC6,'A. Population Info'!$C:$C)","v":61},null,{"$f":"'C. PoC Summary Stats & Para'!N8","v":"Physical Impact"},{"$f":"'C. PoC Summary Stats & Para'!O8","v":"C2"},{"$f":"IFERROR(SUM('C. Population PoC & Risk'!AH6:AH1048576)/SUM('A. Population Info'!$C$6:$C$1048576), \"\")","v":0},{"$f":"IFERROR(AS6/$AS$12, \"\")","v":0}]
[1000023638,42040.423484119347,2.3427386615918821E-2,2.3640240748973831E-2,2.3881099833366174E-2,2.415141132526721E-2,2.4452596839706037E-2,2.4786054189911616E-2,2.515315915550605E-2,2.5555267028657284E-2,2.599371397628529E-2,2.6469818248300764E-2,2.6984881255773686E-2,2.7540188538302313E-2,1,1,1,1,1,1,1,1,1,1,1,1,null,"R3($)",3,{"$f":"SUMIF(O:O, $AC7,'A. Population Info'!$C:$C)","v":0},{"$f":"SUMIF(P:P, $AC7,'A. Population Info'!$C:$C)","v":0},{"$f":"SUMIF(Q:Q, $AC7,'A. Population Info'!$C:$C)","v":0},{"$f":"SUMIF(R:R, $AC7,'A. Population Info'!$C:$C)","v":0},{"$f":"SUMIF(S:S, $AC7,'A. Population Info'!$C:$C)","v":1},{"$f":"SUMIF(T:T, $AC7,'A. Population Info'!$C:$C)","v":1},{"$f":"SUMIF(U:U, $AC7,'A. Population Info'!$C:$C)","v":1},{"$f":"SUMIF(V:V, $AC7,'A. Population Info'!$C:$C)","v":1},{"$f":"SUMIF(W:W, $AC7,'A. Population Info'!$C:$C)","v":1},{"$f":"SUMIF(X:X, $AC7,'A. Population Info'!$C:$C)","v":2},{"$f":"SUMIF(Y:Y, $AC7,'A. Population Info'!$C:$C)","v":2},{"$f":"SUMIF(Z:Z, $AC7,'A. Population Info'!$C:$C)","v":2},null,{"$f":"'C. PoC Summary Stats & Para'!N9","v":"Shock"},{"$f":"'C. PoC Summary Stats & Para'!O9","v":"C3"},{"$f":"IFERROR(SUM('C. Population PoC & Risk'!AT6:AT1048576)/SUM('A. Population Info'!$C$6:$C$1048576), \"\")","v":0},{"$f":"IFERROR(AS7/$AS$12, \"\")","v":0}]
[1000023649,42040.423484119347,2.3241061762051596E-2,2.3427386615918821E-2,2.3640240748973831E-2,2.3881099833366174E-2,2.415141132526721E-2,2.4452596839706037E-2,2.4786054189911616E-2,2.515315915550605E-2,2.5555267028657284E-2,2.599371397628529E-2,2.6469818248300764E-2,2.6984881255773686E-2,1,1,1,1,1,1,1,1,1,1,1,1,null,"R4($)",4,{"$f":"SUMIF(O:O, $AC8,'A. Population Info'!$C:$C)","v":0},{"$f":"SUMIF(P:P, $AC8,'A. Population Info'!$C:$C)","v":0},{"$f":"SUMIF(Q:Q, $AC8,'A. Population Info'!$C:$C)","v":0},{"$f":"SUMIF(R:R, $AC8,'A. Population Info'!$C:$C)","v":0},{"$f":"SUMIF(S:S, $AC8,'A. Population Info'!$C:$C)","v":0},{"$f":"SUMIF(T:T, $AC8,'A. Population Info'!$C:$C)","v":0},{"$f":"SUMIF(U:U, $AC8,'A. Population Info'!$C:$C)","v":0},{"$f":"SUMIF(V:V, $AC8,'A. Population Info'!$C:$C)","v":0},{"$f":"SUMIF(W:W, $AC8,'A. Population Info'!$C:$C)","v":0},{"$f":"SUMIF(X:X, $AC8,'A. Population Info'!$C:$C)","v":0},{"$f":"SUMIF(Y:Y, $AC8,'A. Population Info'!$C:$C)","v":0},{"$f":"SUMIF(Z:Z, $AC8,'A. Population Info'!$C:$C)","v":0},null,{"$f":"'C. PoC Summary Stats & Para'!N10","v":"Fire"},{"$f":"'C. PoC Summary Stats & Para'!O10","v":"C4"},{"$f":"IFERROR(SUM('C. Population PoC & Risk'!BF6:BF1048576)/SUM('A. Population Info'!$C$6:$C$1048576), \"\")","v":0},0]
[1000048071,42040.423484119347,2.3427386615918821E-2,2.3640240748973831E-2,2.3881099833366174E-2,2.415141132526721E-2,2.4452596839706037E-2,2.4786054189911616E-2,2.515315915550605E-2,2.5555267028657284E-2,2.599371397628529E-2,2.6469818248300764E-2,2.6984881255773686E-2,2.7540188538302313E-2,1,1,1,1,1,1,1,1,1,1,1,1,null,"R5($)",5,{"$f":"SUMIF(O:O, $AC9,'A. Population Info'!$C:$C)","v":0},{"$f":"SUMIF(P:P, $AC9,'A. Population Info'!$C:$C)","v":0},{"$f":"SUMIF(Q:Q, $AC9,'A. Population Info'!$C:$C)","v":0},{"$f":"SUMIF(R:R, $AC9,'A. Population Info'!$C:$C)","v":0},{"$f":"SUMIF(S:S, $AC9,'A. Population Info'!$C:$C)","v":0},{"$f":"SUMIF(T:T, $AC9,'A. Population Info'!$C:$C)","v":0},{"$f":"SUMIF(U:U, $AC9,'A. Population Info'!$C:$C)","v":0},{"$f":"SUMIF(V:V, $AC9,'A. Population Info'!$C:$C)","v":0},{"$f":"SUMIF(W:W, $AC9,'A. Population Info'!$C:$C)","v":0},{"$f":"SUMIF(X:X, $AC9,'A. Population Info'!$C:$C)","v":0},{"$f":"SUMIF(Y:Y, $AC9,'A. Population Info'!$C:$C)","v":0},{"$f":"SUMIF(Z:Z, $AC9,'A. Population Info'!$C:$C)","v":0},null,{"$f":"'C. PoC Summary Stats & Para'!N11","v":"Environment"},{"$f":"'C. PoC Summary Stats & Para'!O11","v":"C5"},{"$f":"IFERROR(SUM('C. Population PoC & Risk'!BR6:BR1048576)/SUM('A. Population Info'!$C$6:$C$1048576), \"\")","v":285.76805362765828},0.13805507427790842]
[1000048606,42040.423484119347,2.3241061762051596E-2,2.3427386615918821E-2,2.3640240748973831E-2,2.3881099833366174E-2,2.415141132526721E-2,2.4452596839706037E-2,2.4786054189911616E-2,2.515315915550605E-2,2.5555267028657284E-2,2.599371397628529E-2,2.6469818248300764E-2,2.6984881255773686E-2,1,1,1,1,1,1,1,1,1,1,1,1,null,"R6($)",6,{"$f":"SUMIF(O:O, $AC10,'A. Population Info'!$C:$C)","v":0},{"$f":"SUMIF(P:P, $AC10,'A. Population Info'!$C:$C)","v":0},{"$f":"SUMIF(Q:Q, $AC10,'A. Population Info'!$C:$C)","v":0},{"$f":"SUMIF(R:R, $AC10,'A. Population Info'!$C:$C)","v":0},{"$f":"SUMIF(S:S, $AC10,'A. Population Info'!$C:$C)","v":0},{"$f":"SUMIF(T:T, $AC10,'A. Population Info'!$C:$C)","v":0},{"$f":"SUMIF(U:U, $AC10,'A. Population Info'!$C:$C)","v":0},{"$f":"SUMIF(V:V, $AC10,'A. Population Info'!$C:$C)","v":0},{"$f":"SUMIF(W:W, $AC10,'A. Population Info'!$C:$C)","v":0},{"$f":"SUMIF(X:X, $AC10,'A. Population Info'!$C:$C)","v":0},{"$f":"SUMIF(Y:Y, $AC10,'A. Population Info'!$C:$C)","v":0},{"$f":"SUMIF(Z:Z, $AC10,'A. Population Info'!$C:$C)","v":0},null,"Reliability","Reliability",{"$f":"IFERROR(SUM('C. Population PoC & Risk'!CD6:CD1048576)/SUM('A. Population Info'!$C$6:$C$1048576), \"\")","v":0},0]
[1000048621,42040.423484119347,2.3241061762051596E-2,2.3427386615918821E-2,2.3640240748973831E-2,2.3881099833366174E-2,2.415141132526721E-2,2.4452596839706037E-2,2.4786054189911616E-2,2.515315915550605E-2,2.5555267028657284E-2,2.599371397628529E-2,2.6469818248300764E-2,2.6984881255773686E-2,1,1,1,1,1,1,1,1,1,1,1,1,null,"R7($)",7,{"$f":"SUMIF(O:O, $AC11,'A. Population Info'!$C:$C)","v":0},{"$f":"SUMIF(P:P, $AC11,'A. Population Info'!$C:$C)","v":0},{"$f":"SUMIF(Q:Q, $AC11,'A. Population Info'!$C:$C)","v":0},{"$f":"SUMIF(R:R, $AC11,'A. Population Info'!$C:$C)","v":0},{"$f":"SUMIF(S:S, $AC11,'A. Population Info'!$C:$C)","v":0},{"$f":"SUMIF(T:T, $AC11,'A. Population Info'!$C:$C)","v":0},{"$f":"SUMIF(U:U, $AC11,'A. Population Info'!$C:$C)","v":0},{"$f":"SUMIF(V:V, $AC11,'A. Population Info'!$C:$C)","v":0},{"$f":"SUMIF(W:W, $AC11,'A. Population Info'!$C:$C)","v":0},{"$f":"SUMIF(X:X, $AC11,'A. Population Info'!$C:$C)","v":0},{"$f":"SUMIF(Y:Y, $AC11,'A. Population Info'!$C:$C)","v":0},{"$f":"SUMIF(Z:Z, $AC11,'A. Population Info'!$C:$C)","v":0},null,"Replacement/Repair","Finance",{"$f":"IFERROR(SUM('C. Population PoC & Risk'!CP6:CP1048576)/SUM('A. Population Info'!$C$6:$C$1048576), \"\")","v":1194.9593461777019},0.57728706621136738]
[1000048751,42040.423484119347,2.3427386615918821E-2,2.3640240748973831E-2,2.3881099833366174E-2,2.415141132526721E-2,2.4452596839706037E-2,2.4786054189911616E-2,2.515315915550605E-2,2.5555267028657284E-2,2.599371397628529E-2,2.6469818248300764E-2,2.6984881255773686E-2,2.7540188538302313E-2,1,1,1,1,1,1,1,1,1,1,1,1,null,"R8($)",8,{"$f":"SUMIF(O:O, $AC12,'A. Population Info'!$C:$C)","v":0},{"$f":"SUMIF(P:P, $AC12,'A. Population Info'!$C:$C)","v":0},{"$f":"SUMIF(Q:Q, $AC12,'A. Population Info'!$C:$C)","v":0},{"$f":"SUMIF(R:R, $AC12,'A. Population Info'!$C:$C)","v":0},{"$f":"SUMIF(S:S, $AC12,'A. Population Info'!$C:$C)","v":0},{"$f":"SUMIF(T:T, $AC12,'A. Population Info'!$C:$C)","v":0},{"$f":"SUMIF(U:U, $AC12,'A. Population Info'!$C:$C)","v":0},{"$f":"SUMIF(V:V, $AC12,'A. Population Info'!$C:$C)","v":0},{"$f":"SUMIF(W:W, $AC12,'A. Population Info'!$C:$C)","v":0},{"$f":"SUMIF(X:X, $AC12,'A. Population Info'!$C:$C)","v":0},{"$f":"SUMIF(Y:Y, $AC12,'A. Population Info'!$C:$C)","v":0},{"$f":"SUMIF(Z:Z, $AC12,'A. Population Info'!$C:$C)","v":0},null,"Total","Total",{"$f":"SUM('C. Population PoC & Risk'!DB6:DB1048576)/SUM('A. Population Info'!$C$6:$C$1048576)","v":2069.9569003338465},1]
[1000063506,42040.423484119347,2.3427386615918821E-2,2.3640240748973831E-2,2.3881099833366174E-2,2.415141132526721E-2,2.4452596839706037E-2,2.4786054189911616E-2,2.515315915550605E-2,2.5555267028657284E-2,2.599371397628529E-2,2.6469818248300764E-2,2.6984881255773686E-2,2.7540188538302313E-2,1,1,1,1,1,1,1,1,1,1,1,1,null,"R9($)",9,{"$f":"SUMIF(O:O, $AC13,'A. Population Info'!$C:$C)","v":0},{"$f":"SUMIF(P:P, $AC13,'A. Population Info'!$C:$C)","v":0},{"$f":"SUMIF(Q:Q, $AC13,'A. Population Info'!$C:$C)","v":0},{"$f":"SUMIF(R:R, $AC13,'A. Population Info'!$C:$C)","v":0},{"$f":"SUMIF(S:S, $AC13,'A. Population Info'!$C:$C)","v":0},{"$f":"SUMIF(T:T, $AC13,'A. Population Info'!$C:$C)","v":0},{"$f":"SUMIF(U:U, $AC13,'A. Population Info'!$C:$C)","v":0},{"$f":"SUMIF(V:V, $AC13,'A. Population Info'!$C:$C)","v":0},{"$f":"SUMIF(W:W, $AC13,'A. Population Info'!$C:$C)","v":0},{"$f":"SUMIF(X:X, $AC13,'A. Population Info'!$C:$C)","v":0},{"$f":"SUMIF(Y:Y, $AC13,'A. Population Info'!$C:$C)","v":0},{"$f":"SUMIF(Z:Z, $AC13,'A. Population Info'!$C:$C)","v":0}]
[1000096500,42040.423484119347,2.3241061762051596E-2,2.3427386615918821E-2,2.3640240748973831E-2,2.3881099833366174E-2,2.415141132526721E-2,2.4452596839706037E-2,2.4786054189911616E-2,2.515315915550605E-2,2.5555267028657284E-2,2.599371397628529E-2,2.6469818248300764E-2,2.6984881255773686E-2,1,1,1,1,1,1,1,1,1,1,1,1,null,"R10($)",10,{"$f":"SUMIF(O:O, $AC14,'A. Population Info'!$C:$C)","v":0},{"$f":"SUMIF(P:P, $AC14,'A. Population Info'!$C:$C)","v":0},{"$f":"SUMIF(Q:Q, $AC14,'A. Population Info'!$C:$C)","v":0},{"$f":"SUMIF(R:R, $AC14,'A. Population Info'!$C:$C)","v":0},{"$f":"SUMIF(S:S, $AC14,'A. Population Info'!$C:$C)","v":0},{"$f":"SUMIF(T:T, $AC14,'A. Population Info'!$C:$C)","v":0},{"$f":"SUMIF(U:U, $AC14,'A. Population Info'!$C:$C)","v":0},{"$f":"SUMIF(V:V, $AC14,'A. Population Info'!$C:$C)","v":0},{"$f":"SUMIF(W:W, $AC14,'A. Population Info'!$C:$C)","v":0},{"$f":"SUMIF(X:X, $AC14,'A. Population Info'!$C:$C)","v":0},{"$f":"SUMIF(Y:Y, $AC14,'A. Population Info'!$C:$C)","v":0},{"$f":"SUMIF(Z:Z, $AC14,'A. Population Info'!$C:$C)","v":0}]
[1000096880,42040.423484119347,2.3241061762051596E-2,2.3427386615918821E-2,2.3640240748973831E-2,2.3881099833366174E-2,2.415141132526721E-2,2.4452596839706037E-2,2.4786054189911616E-2,2.515315915550605E-2,2.5555267028657284E-2,2.599371397628529E-2,2.6469818248300764E-2,2.6984881255773686E-2,1,1,1,1,1,1,1,1,1,1,1,1]
[1000114250,42040.423484119347,2.3079759503028902E-2,2.3241061762051596E-2,2.3427386615918821E-2,2.3640240748973831E-2,2.3881099833366174E-2,2.415141132526721E-2,2.4452596839706037E-2,2.4786054189911616E-2,2.515315915550605E-2,2.5555267028657284E-2,2.599371397628529E-2,2.6469818248300764E-2,1,1,1,1,1,1,1,1,1,1,1,1,null,"RISK INDEX (Positive CBA)",null,2019,2020,2021,2022,2023,2024,2025,2026,2027,2028,2029,2030]
[1000131033,42040.423484119347,2.2941938807613079E-2,2.3079759503028902E-2,2.3241061762051596E-2,2.3427386615918821E-2,2.3640240748973831E-2,2.3881099833366174E-2,2.415141132526721E-2,2.4452596839706037E-2,2.4786054189911616E-2,2.515315915550605E-2,2.5555267028657284E-2,2.599371397628529E-2,1,1,1,1,1,1,1,1,1,1,1,1,null,"R7($) to R10($)",null,{"$f":"SUM(AD11:AD14)","v":0},0,0,0,0,0,0,0,0,0,0,0]
[1000207623,42040.423484119347,2.3079759503028902E-2,2.3241061762051596E-2,2.3427386615918821E-2,2.3640240748973831E-2,2.3881099833366174E-2,2.415141132526721E-2,2.4452596839706037E-2,2.4786054189911616E-2,2.515315915550605E-2,2.5555267028657284E-2,2.599371397628529E-2,2.6469818248300764E-2,1,1,1,1,1,1,1,1,1,1,1,1]
[1000207714,42040.423484119347,2.3241061762051596E-2,2.3427386615918821E-2,2.3640240748973831E-2,2.3881099833366174E-2,2.415141132526721E-2,2.4452596839706037E-2,2.4786054189911616E-2,2.515315915550605E-2,2.5555267028657284E-2,2.599371397628529E-2,2.6469818248300764E-2,2.6984881255773686E-2,1,1,1,1,1,1,1,1,1,1,1,1,null,"RISK INDEX (Remainder)",null,2019,2020,2021,2022,2023,2024,2025,2026,2027,2028,2029,2030]
[1000207726,42040.423484119347,2.3241061762051596E-2,2.3427386615918821E-2,2.3640240748973831E-2,2.3881099833366174E-2,2.415141132526721E-2,2.4452596839706037E-2,2.4786054189911616E-2,2.515315915550605E-2,2.5555267028657284E-2,2.599371397628529E-2,2.6469818248300764E-2,2.6984881255773686E-2,1,1,1,1,1,1,1,1,1,1,1,1,null,"R1($) to R6($)",null,{"$f":"SUM(AD5:AD10)","v":568},568,568,568,568,568,568,568,568,568,568,568]
[1000224415,42040.423484119347,2.2730381089303853E-2,2.2826020260809286E-2,2.2941938807613079E-2,2.3079759503028902E-2,2.3241061762051596E-2,2.3427386615918821E-2,2.3640240748973831E-2,2.3881099833366174E-2,2.415141132526721E-2,2.4452596839706037E-2,2.4786054189911616E-2,2.515315915550605E-2,1,1,1,1,1,1,1,1,1,1,1,1]
[1000224424,42040.423484119347,2.3450450162919294E-2,2.3730673795121653E-2,2.4059269514849518E-2,2.4439895816579901E-2,2.4876186121054182E-2,2.5371750726894817E-2,2.5930178489891719E-2,2.6555038282698368E-2,2.724988027494063E-2,2.8018237064622923E-2,2.8863624685050441E-2,2.9789543506522055E-2,1,1,1,1,1,1,1,1,1,1,1,1]
[1000224437,42040.423484119347,2.3079759503028902E-2,2.3241061762051596E-2,2.3427386615918821E-2,2.3640240748973831E-2,2.3881099833366174E-2,2.415141132526721E-2,2.4452596839706037E-2,2.4786054189911616E-2,2.515315915550605E-2,2.5555267028657284E-2,2.599371397628529E-2,2.6469818248300764E-2,1,1,1,1,1,1,1,1,1,1,1,1]
[1000224450,42040.423484119347,2.3243177929410858E-2,2.3455950279219338E-2,2.3703583611812046E-2,2.3988444833309502E-2,2.4312868325497772E-2,2.4679158678515892E-2,2.5089593026932703E-2,2.5546423068041873E-2,2.6051876821798717E-2,2.660816017801328E-2,2.7217458266376001E-2,2.7881936677456511E-2,1,1,1,1,1,1,1,1,1,1,1,1]
[1000224464,42040.423484119347,2.3079759503028902E-2,2.3241061762051596E-2,2.3427386615918821E-2,2.3640240748973831E-2,2.3881099833366174E-2,2.415141132526721E-2,2.4452596839706037E-2,2.4786054189911616E-2,2.515315915550605E-2,2.5555267028657284E-2,2.599371397628529E-2,2.6469818248300764E-2,1,1,1,1,1,1,1,1,1,1,1,1]
[1000224475,42040.423484119347,2.251313116597831E-2,2.2545008384334302E-2,2.2591727337707937E-2,2.2655970481300084E-2,2.2740380281051249E-2,2.2847565492534083E-2,2.2980105778378217E-2,2.3140555243636843E-2,2.3331445227354444E-2,2.355528656113328E-2,2.3814571432893613E-2,2.4111774950179771E-2,1,1,1,1,1,1,1,1,1,1,1,1]
[1000267271,42040.423484119347,2.3241061762051596E-2,2.3427386615918821E-2,2.3640240748973831E-2,2.3881099833366174E-2,2.415141132526721E-2,2.4452596839706037E-2,2.4786054189911616E-2,2.515315915550605E-2,2.5555267028657284E-2,2.599371397628529E-2,2.6469818248300764E-2,2.6984881255773686E-2,1,1,1,1,1,1,1,1,1,1,1,1]
[1000276491,42040.423484119347,2.3455950279219338E-2,2.3703583611812046E-2,2.3988444833309502E-2,2.4312868325497772E-2,2.4679158678515892E-2,2.5089593026932703E-2,2.5546423068041873E-2,2.6051876821798717E-2,2.660816017801328E-2,2.7217458266376001E-2,2.7881936677456511E-2,2.8603742557216191E-2,1,1,1,1,1,1,1,1,1,1,1,1]
[1000276518,42040.423484119347,2.2941938807613079E-2,2.3079759503028902E-2,2.3241061762051596E-2,2.3427386615918821E-2,2.3640240748973831E-2,2.3881099833366174E-2,2.415141132526721E-2,2.4452596839706037E-2,2.4786054189911616E-2,2.515315915550605E-2,2.5555267028657284E-2,2.599371397628529E-2,1,1,1,1,1,1,1,1,1,1,1,1]
[1000276530,42040.423484119347,2.2941938807613079E-2,2.3079759503028902E-2,2.3241061762051596E-2,2.3427386615918821E-2,2.3640240748973831E-2,2.3881099833366174E-2,2.415141132526721E-2,2.4452596839706037E-2,2.4786054189911616E-2,2.515315915550605E-2,2.5555267028657284E-2,2.599371397628529E-2,1,1,1,1,1,1,1,1,1,1,1,1]
[1000276542,42040.423484119347,2.2941938807613079E-2,2.3079759503028902E-2,2.3241061762051596E-2,2.3427386615918821E-2,2.3640240748973831E-2,2.3881099833366174E-2,2.415141132526721E-2,2.4452596839706037E-2,2.4786054189911616E-2,2.515315915550605E-2,2.5555267028657284E-2,2.599371397628529E-2,1,1,1,1,1,1,1,1,1,1,1,1]
[1000299647,42040.423484119347,3.1787356185896419E-2,3.2659199820093243E-2,3.3581090456760908E-2,3.4554202053856835E-2,3.5579698711768699E-2,3.6658735051304625E-2,3.7792456566526869E-2,3.898199995477291E-2,4.0228493425930344E-2,4.1533056992794047E-2,4.2896802744129284E-2,4.4320835101887002E-2,1,1,1,1,1,1,1,1,1,1,1,1]
[1000314154,42040.423484119347,0.18166427703126628,0.18789178859399927,0.1942744083267976,0.20081385403849872,0.20751183943194393,0.2143700741676334,0.22139026392558106,0.22857411046544315,0.23592331168498917,0.24343956167698158,0.25112455078452689,0.25897996565495612,2,2,2,2,2,2,2,2,2,2,2,2]
[1000314337,42040.423484119347,0.21770122097600572,0.22617580610351035,0.23488835413807113,0.24384200413049176,0.25303989113314596,0.26248514626128744,0.2721808967525815,0.28213026602493374,0.29233637373268667,0.30280233582125143,0.31353126458023889,0.32452626869514822,2,2,2,2,2,2,2,2,2,2,2,2]
[1000314363,42040.423484119347,0.20145336286585105,0.20946145564315588,0.21770122097600572,0.22617580610351035,0.23488835413807113,0.24384200413049176,0.25303989113314596,0.26248514626128744,0.2721808967525815,0.28213026602493374,0.29233637373268667,0.30280233582125143,2,2,2,2,2,2,2,2,2,2,2,2]
[1000318066,42040.423484119347,0.13722053282924424,0.14226953544180726,0.14745974763958006,0.15279292261471084,0.158270808869,0.16389515029516008,0.16966768625551185,0.17559015165823252,0.18166427703126628,0.18789178859399927,0.1942744083267976,0.20081385403849872,1,1,1,1,1,1,2,2,2,2,2,2]
[1000318448,42040.423484119347,0.2013441416746839,0.21054978112075265,0.22006522633277167,0.22989556786478541,0.24004589510254248,0.25052129628260461,0.2613268585108437,0.27246766778035758,0.28394880898883024,0.29577536595536158,0.30795242143679252,0.32048505714354542,2,2,2,2,2,2,2,2,2,2,2,2]
[1000318505,42040.423484119347,0.10979312693504122,0.1140319626756922,0.11840138544481792,0.12290317844334135,0.12753911963291148,0.13231098183544757,0.13722053282924424,0.14226953544180726,0.14745974763958006,0.15279292261471084,0.158270808869,0.16389515029516008,1,1,1,1,1,1,1,1,1,1,1,1]
[1000318801,42040.423484119347,7.6179135404964515E-2,7.8790589100653188E-2,8.1481122606103781E-2,8.4251729320893157E-2,8.7103398112946887E-2,9.003711341424292E-2,9.3053855312960412E-2,9.6154599642261987E-2,9.9340318065883282E-2,0.10261197816069247,0.10597054349637275,0.10941697371236876,1,1,1,1,1,1,1,1,1,1,1,1]
[1000318835,42040.423484119347,0.10170005691628047,0.1056830896795007,0.10979312693504122,0.1140319626756922,0.11840138544481792,0.12290317844334135,0.12753911963291148,0.13231098183544757,0.13722053282924424,0.14226953544180726,0.14745974763958006,0.15279292261471084,1,1,1,1,1,1,1,1,1,1,1,1]
[1000318894,42040.423484119347,9.784222909215208E-2,0.10170005691628047,0.1056830896795007,0.10979312693504122,0.1140319626756922,0.11840138544481792,0.12290317844334135,0.12753911963291148,0.13231098183544757,0.13722053282924424,0.14226953544180726,0.14745974763958006,1,1,1,1,1,1,1,1,1,1,1,1]
[1000318924,42040.423484119347,0.13928436545090087,0.14534974691430244,0.15161827824896043,0.15809314713404285,0.16477753643175783,0.17167462427475003,0.17878758415050608,0.18611958498291584,0.19367379121113124,0.20145336286585105,0.20946145564315588,0.21770122097600572,1,1,1,1,1,2,2,2,2,2,2,2]
[1000318955,42040.423484119347,0.18384191190356705,0.19244321625247543,0.2013441416746839,0.21054978112075265,0.22006522633277167,0.22989556786478541,0.24004589510254248,0.25052129628260461,0.2613268585108437,0.27246766778035758,0.28394880898883024,0.29577536595536158,2,2,2,2,2,2,2,2,2,2,2,2]
[1000318984,42040.423484119347,9.784222909215208E-2,0.10170005691628047,0.1056830896795007,0.10979312693504122,0.1140319626756922,0.11840138544481792,0.12290317844334135,0.12753911963291148,0.13231098183544757,0.13722053282924424,0.14226953544180726,0.14745974763958006,1,1,1,1,1,1,1,1,1,1,1,1]
[1000323012,42040.423484119347,7.6179135404964515E-2,7.8790589100653188E-2,8.1481122606103781E-2,8.4251729320893157E-2,8.7103398112946887E-2,9.003711341424292E-2,9.3053855312960412E-2,9.6154599642261987E-2,9.9340318065883282E-2,0.10261197816069247,0.10597054349637275,0.10941697371236876,1,1,1,1,1,1,1,1,1,1,1,1]
[1000323042,42040.423484119347,7.3645763488351765E-2,7.6179135404964515E-2,7.8790589100653188E-2,8.1481122606103781E-2,8.4251729320893157E-2,8.7103398112946887E-2,9.003711341424292E-2,9.3053855312960412E-2,9.6154599642261987E-2,9.9340318065883282E-2,0.10261197816069247,0.10597054349637275,1,1,1,1,1,1,1,1,1,1,1,1]
[1000323073,42040.423484119347,7.1189470585590178E-2,7.3645763488351765E-2,7.6179135404964515E-2,7.8790589100653188E-2,8.1481122606103781E-2,8.4251729320893157E-2,8.7103398112946887E-2,9.003711341424292E-2,9.3053855312960412E-2,9.6154599642261987E-2,9.9340318065883282E-2,0.10261197816069247,1,1,1,1,1,1,1,1,1,1,1,1]
[1000323106,42040.423484119347,0.13341894127207971,0.13928436545090087,0.14534974691430244,0.15161827824896043,0.15809314713404285,0.16477753643175783,0.17167462427475003,0.17878758415050608,0.18611958498291584,0.19367379121113124,0.20145336286585105,0.20946145564315588,1,1,1,1,1,1,2,2,2,2,2,2]
[1000323136,42040.423484119347,0.13928436545090087,0.14534974691430244,0.15161827824896043,0.15809314713404285,0.16477753643175783,0.17167462427475003,0.17878758415050608,0.18611958498291584,0.19367379121113124,0.20145336286585105,0.20946145564315588,0.21770122097600572,1,1,1,1,1,2,2,2,2,2,2,2]
[1000323169,42040.423484119347,7.3645763488351765E-2,7.6179135404964515E-2,7.8790589100653188E-2,8.1481122606103781E-2,8.4251729320893157E-2,8.7103398112946887E-2,9.003711341424292E-2,9.3053855312960412E-2,9.6154599642261987E-2,9.9340318065883282E-2,0.10261197816069247,0.10597054349637275,1,1,1,1,1,1,1,1,1,1,1,1]
[1000323229,42040.423484119347,7.6179135404964515E-2,7.8790589100653188E-2,8.1481122606103781E-2,8.4251729320893157E-2,8.7103398112946887E-2,9.003711341424292E-2,9.3053855312960412E-2,9.6154599642261987E-2,9.9340318065883282E-2,0.10261197816069247,0.10597054349637275,0.10941697371236876,1,1,1,1,1,1,1,1,1,1,1,1]
[1000323262,42040.423484119347,0.12775027678978407,0.13341894127207971,0.13928436545090087,0.14534974691430244,0.15161827824896043,0.15809314713404285,0.16477753643175783,0.17167462427475003,0.17878758415050608,0.18611958498291584,0.19367379121113124,0.20145336286585105,1,1,1,1,1,1,1,2,2,2,2,2]
[1000323289,42040.423484119347,0.13341894127207971,0.13928436545090087,0.14534974691430244,0.15161827824896043,0.15809314713404285,0.16477753643175783,0.17167462427475003,0.17878758415050608,0.18611958498291584,0.19367379121113124,0.20145336286585105,0.20946145564315588,1,1,1,1,1,1,2,2,2,2,2,2]
[1000323320,42040.423484119347,0.13341894127207971,0.13928436545090087,0.14534974691430244,0.15161827824896043,0.15809314713404285,0.16477753643175783,0.17167462427475003,0.17878758415050608,0.18611958498291584,0.19367379121113124,0.20145336286585105,0.20946145564315588,1,1,1,1,1,1,2,2,2,2,2,2]
[1000323378,42040.423484119347,0.12775027678978407,0.13341894127207971,0.13928436545090087,0.14534974691430244,0.15161827824896043,0.15809314713404285,0.16477753643175783,0.17167462427475003,0.17878758415050608,0.18611958498291584,0.19367379121113124,0.20145336286585105,1,1,1,1,1,1,1,2,2,2,2,2]
[1000323408,42040.423484119347,0.12775027678978407,0.13341894127207971,0.13928436545090087,0.14534974691430244,0.15161827824896043,0.15809314713404285,0.16477753643175783,0.17167462427475003,0.17878758415050608,0.18611958498291584,0.19367379121113124,0.20145336286585105,1,1,1,1,1,1,1,2,2,2,2,2]
[1000323435,42040.423484119347,9.4107800978183415E-2,9.784222909215208E-2,0.10170005691628047,0.1056830896795007,0.10979312693504122,0.1140319626756922,0.11840138544481792,0.12290317844334135,0.12753911963291148,0.13231098183544757,0.13722053282924424,0.14226953544180726,1,1,1,1,1,1,1,1,1,1,1,1]
[1000323556,42040.423484119347,9.4107800978183415E-2,9.784222909215208E-2,0.10170005691628047,0.1056830896795007,0.10979312693504122,0.1140319626756922,0.11840138544481792,0.12290317844334135,0.12753911963291148,0.13231098183544757,0.13722053282924424,0.14226953544180726,1,1,1,1,1,1,1,1,1,1,1,1]
[1000323583,42040.423484119347,9.4107800978183415E-2,9.784222909215208E-2,0.10170005691628047,0.1056830896795007,0.10979312693504122,0.1140319626756922,0.11840138544481792,0.12290317844334135,0.12753911963291148,0.13231098183544757,0.13722053282924424,0.14226953544180726,1,1,1,1,1,1,1,1,1,1,1,1]
[1000323796,42040.423484119347,6.8809249089283556E-2,7.1189470585590178E-2,7.3645763488351765E-2,7.6179135404964515E-2,7.8790589100653188E-2,8.1481122606103781E-2,8.4251729320893157E-2,8.7103398112946887E-2,9.003711341424292E-2,9.3053855312960412E-2,9.6154599642261987E-2,9.9340318065883282E-2,1,1,1,1,1,1,1,1,1,1,1,1]
[1000323882,42040.423484119347,9.0494961549979172E-2,9.4107800978183415E-2,9.784222909215208E-2,0.10170005691628047,0.1056830896795007,0.10979312693504122,0.1140319626756922,0.11840138544481792,0.12290317844334135,0.12753911963291148,0.13231098183544757,0.13722053282924424,1,1,1,1,1,1,1,1,1,1,1,1]
[1000323941,42040.423484119347,9.0494961549979172E-2,9.4107800978183415E-2,9.784222909215208E-2,0.10170005691628047,0.1056830896795007,0.10979312693504122,0.1140319626756922,0.11840138544481792,0.12290317844334135,0.12753911963291148,0.13231098183544757,0.13722053282924424,1,1,1,1,1,1,1,1,1,1,1,1]
[1000323998,42040.423484119347,6.6504086437777207E-2,6.8809249089283556E-2,7.1189470585590178E-2,7.3645763488351765E-2,7.6179135404964515E-2,7.8790589100653188E-2,8.1481122606103781E-2,8.4251729320893157E-2,8.7103398112946887E-2,9.003711341424292E-2,9.3053855312960412E-2,9.6154599642261987E-2,1,1,1,1,1,1,1,1,1,1,1,1]
[1000328026,42040.423484119347,6.8809249089283556E-2,7.1189470585590178E-2,7.3645763488351765E-2,7.6179135404964515E-2,7.8790589100653188E-2,8.1481122606103781E-2,8.4251729320893157E-2,8.7103398112946887E-2,9.003711341424292E-2,9.3053855312960412E-2,9.6154599642261987E-2,9.9340318065883282E-2,1,1,1,1,1,1,1,1,1,1,1,1]
[1000328057,42040.423484119347,0.11699041096769337,0.12227516931720378,0.12775027678978407,0.13341894127207971,0.13928436545090087,0.14534974691430244,0.15161827824896043,0.15809314713404285,0.16477753643175783,0.17167462427475003,0.17878758415050608,0.18611958498291584,1,1,1,1,1,1,1,1,1,2,2,2]
[1000328085,42040.423484119347,8.7001893863165827E-2,9.0494961549979172E-2,9.4107800978183415E-2,9.784222909215208E-2,0.10170005691628047,0.1056830896795007,0.10979312693504122,0.1140319626756922,0.11840138544481792,0.12290317844334135,0.12753911963291148,0.13231098183544757,1,1,1,1,1,1,1,1,1,1,1,1]
[1000328116,42040.423484119347,6.6504086437777207E-2,6.8809249089283556E-2,7.1189470585590178E-2,7.3645763488351765E-2,7.6179135404964515E-2,7.8790589100653188E-2,8.1481122606103781E-2,8.4251729320893157E-2,8.7103398112946887E-2,9.003711341424292E-2,9.3053855312960412E-2,9.6154599642261987E-2,1,1,1,1,1,1,1,1,1,1,1,1]
[1000328175,42040.423484119347,0.12775027678978407,0.13341894127207971,0.13928436545090087,0.14534974691430244,0.15161827824896043,0.15809314713404285,0.16477753643175783,0.17167462427475003,0.17878758415050608,0.18611958498291584,0.19367379121113124,0.20145336286585105,1,1,1,1,1,1,1,2,2,2,2,2]
[1000328208,42040.423484119347,8.3626774923841435E-2,8.7001893863165827E-2,9.0494961549979172E-2,9.4107800978183415E-2,9.784222909215208E-2,0.10170005691628047,0.1056830896795007,0.10979312693504122,0.1140319626756922,0.11840138544481792,0.12290317844334135,0.12753911963291148,1,1,1,1,1,1,1,1,1,1,1,1]
[1000328413,42040.423484119347,8.3626774923841435E-2,8.7001893863165827E-2,9.0494961549979172E-2,9.4107800978183415E-2,9.784222909215208E-2,0.10170005691628047,0.1056830896795007,0.10979312693504122,0.1140319626756922,0.11840138544481792,0.12290317844334135,0.12753911963291148,1,1,1,1,1,1,1,1,1,1,1,1]
[1000328506,42040.423484119347,0.11189278854977745,0.11699041096769337,0.12227516931720378,0.12775027678978407,0.13341894127207971,0.13928436545090087,0.14534974691430244,0.15161827824896043,0.15809314713404285,0.16477753643175783,0.17167462427475003,0.17878758415050608,1,1,1,1,1,1,1,1,1,1,2,2]
[1000328533,42040.423484119347,0.11189278854977745,0.11699041096769337,0.12227516931720378,0.12775027678978407,0.13341894127207971,0.13928436545090087,0.14534974691430244,0.15161827824896043,0.15809314713404285,0.16477753643175783,0.17167462427475003,0.17878758415050608,1,1,1,1,1,1,1,1,1,1,2,2]
[1000328564,42040.423484119347,0.11189278854977745,0.11699041096769337,0.12227516931720378,0.12775027678978407,0.13341894127207971,0.13928436545090087,0.14534974691430244,0.15161827824896043,0.15809314713404285,0.16477753643175783,0.17167462427475003,0.17878758415050608,1,1,1,1,1,1,1,1,1,1,2,2]
[1000328590,42040.423484119347,0.13824076536313762,0.14515136566886555,0.15233100272851322,0.15978477721489787,0.16751778845350573,0.17553513444779395,0.18384191190356705,0.19244321625247543,0.2013441416746839,0.21054978112075265,0.22006522633277167,0.22989556786478541,1,1,1,1,2,2,2,2,2,2,2,2]
[1000328647,42040.423484119347,0.10697908345801156,0.11189278854977745,0.11699041096769337,0.12227516931720378,0.12775027678978407,0.13341894127207971,0.13928436545090087,0.14534974691430244,0.15161827824896043,0.15809314713404285,0.16477753643175783,0.17167462427475003,1,1,1,1,1,1,1,1,1,1,1,2]
[1000328676,42040.423484119347,6.2114861945366917E-2,6.4272964998346227E-2,6.6504086437777207E-2,6.8809249089283556E-2,7.1189470585590178E-2,7.3645763488351765E-2,7.6179135404964515E-2,7.8790589100653188E-2,8.1481122606103781E-2,8.4251729320893157E-2,8.7103398112946887E-2,9.003711341424292E-2,1,1,1,1,1,1,1,1,1,1,1,1]
[1000328766,42040.423484119347,0.10697908345801156,0.11189278854977745,0.11699041096769337,0.12227516931720378,0.12775027678978407,0.13341894127207971,0.13928436545090087,0.14534974691430244,0.15161827824896043,0.15809314713404285,0.16477753643175783,0.17167462427475003,1,1,1,1,1,1,1,1,1,1,1,2]
[1000328796,42040.423484119347,0.13824076536313762,0.14515136566886555,0.15233100272851322,0.15978477721489787,0.16751778845350573,0.17553513444779395,0.18384191190356705,0.19244321625247543,0.2013441416746839,0.21054978112075265,0.22006522633277167,0.22989556786478541,1,1,1,1,2,2,2,2,2,2,2,2]
[1000328825,42040.423484119347,0.10697908345801156,0.11189278854977745,0.11699041096769337,0.12227516931720378,0.12775027678978407,0.13341894127207971,0.13928436545090087,0.14534974691430244,0.15161827824896043,0.15809314713404285,0.16477753643175783,0.17167462427475003,1,1,1,1,1,1,1,1,1,1,1,2]
[1000328852,42040.423484119347,3.7792456566526869E-2,3.898199995477291E-2,4.0228493425930344E-2,4.1533056992794047E-2,4.2896802744129284E-2,4.4320835101887002E-2,4.5806251063863379E-2,4.7354140432961829E-2,4.8965586034097661E-2,5.0641663919683035E-2,5.2383443564538702E-2,5.4191988050999146E-2,1,1,1,1,1,1,1,1,1,1,1,1]
[1000328910,42040.423484119347,7.7223060249411724E-2,8.036777555368689E-2,8.3626774923841435E-2,8.7001893863165827E-2,9.0494961549979172E-2,9.4107800978183415E-2,9.784222909215208E-2,0.10170005691628047,0.1056830896795007,0.10979312693504122,0.1140319626756922,0.11840138544481792,1,1,1,1,1,1,1,1,1,1,1,1]
[1000332025,42040.423484119347,7.7223060249411724E-2,8.036777555368689E-2,8.3626774923841435E-2,8.7001893863165827E-2,9.0494961549979172E-2,9.4107800978183415E-2,9.784222909215208E-2,0.10170005691628047,0.1056830896795007,0.10979312693504122,0.1140319626756922,0.11840138544481792,1,1,1,1,1,1,1,1,1,1,1,1]
[1000332304,42040.423484119347,6.0028749133154556E-2,6.2114861945366917E-2,6.4272964998346227E-2,6.6504086437777207E-2,6.8809249089283556E-2,7.1189470585590178E-2,7.3645763488351765E-2,7.6179135404964515E-2,7.8790589100653188E-2,8.1481122606103781E-2,8.4251729320893157E-2,8.7103398112946887E-2,1,1,1,1,1,1,1,1,1,1,1,1]
[1000332390,42040.423484119347,0.10224607155945335,0.10697908345801156,0.11189278854977745,0.11699041096769337,0.12227516931720378,0.12775027678978407,0.13341894127207971,0.13928436545090087,0.14534974691430244,0.15161827824896043,0.15809314713404285,0.16477753643175783,1,1,1,1,1,1,1,1,1,1,1,1]
[1000332419,42040.423484119347,5.6068354244906318E-2,5.8013592963124833E-2,6.0028749133154556E-2,6.2114861945366917E-2,6.4272964998346227E-2,6.6504086437777207E-2,6.8809249089283556E-2,7.1189470585590178E-2,7.3645763488351765E-2,7.6179135404964515E-2,7.8790589100653188E-2,8.1481122606103781E-2,1,1,1,1,1,1,1,1,1,1,1,1]
[1000332450,42040.423484119347,7.4190787036180608E-2,7.7223060249411724E-2,8.036777555368689E-2,8.3626774923841435E-2,8.7001893863165827E-2,9.0494961549979172E-2,9.4107800978183415E-2,9.784222909215208E-2,0.10170005691628047,0.1056830896795007,0.10979312693504122,0.1140319626756922,1,1,1,1,1,1,1,1,1,1,1,1]
[1000332539,42040.423484119347,3.0964375332828167E-2,3.1787356185896419E-2,3.2659199820093243E-2,3.3581090456760908E-2,3.4554202053856835E-2,3.5579698711768699E-2,3.6658735051304625E-2,3.7792456566526869E-2,3.898199995477291E-2,4.0228493425930344E-2,4.1533056992794047E-2,4.2896802744129284E-2,1,1,1,1,1,1,1,1,1,1,1,1]
[1000332568,42040.423484119347,5.8013592963124833E-2,6.0028749133154556E-2,6.2114861945366917E-2,6.4272964998346227E-2,6.6504086437777207E-2,6.8809249089283556E-2,7.1189470585590178E-2,7.3645763488351765E-2,7.6179135404964515E-2,7.8790589100653188E-2,8.1481122606103781E-2,8.4251729320893157E-2,1,1,1,1,1,1,1,1,1,1,1,1]
[1000332625,42040.423484119347,0.12520626542678015,0.13159409976489814,0.13824076536313762,0.14515136566886555,0.15233100272851322,0.15978477721489787,0.16751778845350573,0.17553513444779395,0.18384191190356705,0.19244321625247543,0.2013441416746839,0.21054978112075265,1,1,1,1,1,1,2,2,2,2,2,2]
[1000332657,42040.423484119347,9.769052307547689E-2,0.10224607155945335,0.10697908345801156,0.11189278854977745,0.11699041096769337,0.12227516931720378,0.12775027678978407,0.13341894127207971,0.13928436545090087,0.14534974691430244,0.15161827824896043,0.15809314713404285,1,1,1,1,1,1,1,1,1,1,1,1]
[1000332778,42040.423484119347,7.1269107314636759E-2,7.4190787036180608E-2,7.7223060249411724E-2,8.036777555368689E-2,8.3626774923841435E-2,8.7001893863165827E-2,9.0494961549979172E-2,9.4107800978183415E-2,9.784222909215208E-2,0.10170005691628047,0.1056830896795007,0.10979312693504122,1,1,1,1,1,1,1,1,1,1,1,1]
[1000332841,42040.423484119347,5.4191988050999146E-2,5.6068354244906318E-2,5.8013592963124833E-2,6.0028749133154556E-2,6.2114861945366917E-2,6.4272964998346227E-2,6.6504086437777207E-2,6.8809249089283556E-2,7.1189470585590178E-2,7.3645763488351765E-2,7.6179135404964515E-2,7.8790589100653188E-2,1,1,1,1,1,1,1,1,1,1,1,1]
[1000332870,42040.423484119347,5.4191988050999146E-2,5.6068354244906318E-2,5.8013592963124833E-2,6.0028749133154556E-2,6.2114861945366917E-2,6.4272964998346227E-2,6.6504086437777207E-2,6.8809249089283556E-2,7.1189470585590178E-2,7.3645763488351765E-2,7.6179135404964515E-2,7.8790589100653188E-2,1,1,1,1,1,1,1,1,1,1,1,1]
[1000332902,42040.423484119347,5.4191988050999146E-2,5.6068354244906318E-2,5.8013592963124833E-2,6.0028749133154556E-2,6.2114861945366917E-2,6.4272964998346227E-2,6.6504086437777207E-2,6.8809249089283556E-2,7.1189470585590178E-2,7.3645763488351765E-2,7.6179135404964515E-2,7.8790589100653188E-2,1,1,1,1,1,1,1,1,1,1,1,1]
[1000332930,42040.423484119347,5.6068354244906318E-2,5.8013592963124833E-2,6.0028749133154556E-2,6.2114861945366917E-2,6.4272964998346227E-2,6.6504086437777207E-2,6.8809249089283556E-2,7.1189470585590178E-2,7.3645763488351765E-2,7.6179135404964515E-2,7.8790589100653188E-2,8.1481122606103781E-2,1,1,1,1,1,1,1,1,1,1,1,1]
[1000336019,42040.423484119347,5.4191988050999146E-2,5.6068354244906318E-2,5.8013592963124833E-2,6.0028749133154556E-2,6.2114861945366917E-2,6.4272964998346227E-2,6.6504086437777207E-2,6.8809249089283556E-2,7.1189470585590178E-2,7.3645763488351765E-2,7.6179135404964515E-2,7.8790589100653188E-2,1,1,1,1,1,1,1,1,1,1,1,1]
[1000336048,42040.423484119347,3.6658735051304625E-2,3.7792456566526869E-2,3.898199995477291E-2,4.0228493425930344E-2,4.1533056992794047E-2,4.2896802744129284E-2,4.4320835101887002E-2,4.5806251063863379E-2,4.7354140432961829E-2,4.8965586034097661E-2,5.0641663919683035E-2,5.2383443564538702E-2,1,1,1,1,1,1,1,1,1,1,1,1]
[1000336078,42040.423484119347,6.8456165701105562E-2,7.1269107314636759E-2,7.4190787036180608E-2,7.7223060249411724E-2,8.036777555368689E-2,8.3626774923841435E-2,8.7001893863165827E-2,9.0494961549979172E-2,9.4107800978183415E-2,9.784222909215208E-2,0.10170005691628047,0.1056830896795007,1,1,1,1,1,1,1,1,1,1,1,1]
[1000336106,42040.423484119347,3.2659199820093243E-2,3.3581090456760908E-2,3.4554202053856835E-2,3.5579698711768699E-2,3.6658735051304625E-2,3.7792456566526869E-2,3.898199995477291E-2,4.0228493425930344E-2,4.1533056992794047E-2,4.2896802744129284E-2,4.4320835101887002E-2,4.5806251063863379E-2,1,1,1,1,1,1,1,1,1,1,1,1]
[1000336136,42040.423484119347,5.4191988050999146E-2,5.6068354244906318E-2,5.8013592963124833E-2,6.0028749133154556E-2,6.2114861945366917E-2,6.4272964998346227E-2,6.6504086437777207E-2,6.8809249089283556E-2,7.1189470585590178E-2,7.3645763488351765E-2,7.6179135404964515E-2,7.8790589100653188E-2,1,1,1,1,1,1,1,1,1,1,1,1]
[1000336165,42040.423484119347,8.5056273016654665E-2,8.9098868264309947E-2,9.3309202458642618E-2,9.769052307547689E-2,0.10224607155945335,0.10697908345801156,0.11189278854977745,0.11699041096769337,0.12227516931720378,0.12775027678978407,0.13341894127207971,0.13928436545090087,1,1,1,1,1,1,1,1,1,1,1,1]
[1000336194,42040.423484119347,6.5750099860526226E-2,6.8456165701105562E-2,7.1269107314636759E-2,7.4190787036180608E-2,7.7223060249411724E-2,8.036777555368689E-2,8.3626774923841435E-2,8.7001893863165827E-2,9.0494961549979172E-2,9.4107800978183415E-2,9.784222909215208E-2,0.10170005691628047,1,1,1,1,1,1,1,1,1,1,1,1]
[1000336225,42040.423484119347,8.5056273016654665E-2,8.9098868264309947E-2,9.3309202458642618E-2,9.769052307547689E-2,0.10224607155945335,0.10697908345801156,0.11189278854977745,0.11699041096769337,0.12227516931720378,0.12775027678978407,0.13341894127207971,0.13928436545090087,1,1,1,1,1,1,1,1,1,1,1,1]
[1000336313,42040.423484119347,5.2383443564538702E-2,5.4191988050999146E-2,5.6068354244906318E-2,5.8013592963124833E-2,6.0028749133154556E-2,6.2114861945366917E-2,6.4272964998346227E-2,6.6504086437777207E-2,6.8809249089283556E-2,7.1189470585590178E-2,7.3645763488351765E-2,7.6179135404964515E-2,1,1,1,1,1,1,1,1,1,1,1,1]
[1000336348,42040.423484119347,5.4191988050999146E-2,5.6068354244906318E-2,5.8013592963124833E-2,6.0028749133154556E-2,6.2114861945366917E-2,6.4272964998346227E-2,6.6504086437777207E-2,6.8809249089283556E-2,7.1189470585590178E-2,7.3645763488351765E-2,7.6179135404964515E-2,7.8790589100653188E-2,1,1,1,1,1,1,1,1,1,1,1,1]
[1000336383,42040.423484119347,6.5750099860526226E-2,6.8456165701105562E-2,7.1269107314636759E-2,7.4190787036180608E-2,7.7223060249411724E-2,8.036777555368689E-2,8.3626774923841435E-2,8.7001893863165827E-2,9.0494961549979172E-2,9.4107800978183415E-2,9.784222909215208E-2,0.10170005691628047,1,1,1,1,1,1,1,1,1,1,1,1]
[1000336450,42040.423484119347,6.314904033161732E-2,6.5750099860526226E-2,6.8456165701105562E-2,7.1269107314636759E-2,7.4190787036180608E-2,7.7223060249411724E-2,8.036777555368689E-2,8.3626774923841435E-2,8.7001893863165827E-2,9.0494961549979172E-2,9.4107800978183415E-2,9.784222909215208E-2,1,1,1,1,1,1,1,1,1,1,1,1]
[1000336477,42040.423484119347,4.8965586034097661E-2,5.0641663919683035E-2,5.2383443564538702E-2,5.4191988050999146E-2,5.6068354244906318E-2,5.8013592963124833E-2,6.0028749133154556E-2,6.2114861945366917E-2,6.4272964998346227E-2,6.6504086437777207E-2,6.8809249089283556E-2,7.1189470585590178E-2,1,1,1,1,1,1,1,1,1,1,1,1]
[1000336508,42040.423484119347,4.8965586034097661E-2,5.0641663919683035E-2,5.2383443564538702E-2,5.4191988050999146E-2,5.6068354244906318E-2,5.8013592963124833E-2,6.0028749133154556E-2,6.2114861945366917E-2,6.4272964998346227E-2,6.6504086437777207E-2,6.8809249089283556E-2,7.1189470585590178E-2,1,1,1,1,1,1,1,1,1,1,1,1]
[1000336536,42040.423484119347,4.8965586034097661E-2,5.0641663919683035E-2,5.2383443564538702E-2,5.4191988050999146E-2,5.6068354244906318E-2,5.8013592963124833E-2,6.0028749133154556E-2,6.2114861945366917E-2,6.4272964998346227E-2,6.6504086437777207E-2,6.8809249089283556E-2,7.1189470585590178E-2,1,1,1,1,1,1,1,1,1,1,1,1]
[1000336594,42040.423484119347,5.0641663919683035E-2,5.2383443564538702E-2,5.4191988050999146E-2,5.6068354244906318E-2,5.8013592963124833E-2,6.0028749133154556E-2,6.2114861945366917E-2,6.4272964998346227E-2,6.6504086437777207E-2,6.8809249089283556E-2,7.1189470585590178E-2,7.3645763488351765E-2,1,1,1,1,1,1,1,1,1,1,1,1]
[1000336623,42040.423484119347,4.7354140432961829E-2,4.8965586034097661E-2,5.0641663919683035E-2,5.2383443564538702E-2,5.4191988050999146E-2,5.6068354244906318E-2,5.8013592963124833E-2,6.0028749133154556E-2,6.2114861945366917E-2,6.4272964998346227E-2,6.6504086437777207E-2,6.8809249089283556E-2,1,1,1,1,1,1,1,1,1,1,1,1]
[1000336651,42040.423484119347,6.5750099860526226E-2,6.8456165701105562E-2,7.1269107314636759E-2,7.4190787036180608E-2,7.7223060249411724E-2,8.036777555368689E-2,8.3626774923841435E-2,8.7001893863165827E-2,9.0494961549979172E-2,9.4107800978183415E-2,9.784222909215208E-2,0.10170005691628047,1,1,1,1,1,1,1,1,1,1,1,1]
[1000336679,42040.423484119347,5.0641663919683035E-2,5.2383443564538702E-2,5.4191988050999146E-2,5.6068354244906318E-2,5.8013592963124833E-2,6.0028749133154556E-2,6.2114861945366917E-2,6.4272964998346227E-2,6.6504086437777207E-2,6.8809249089283556E-2,7.1189470585590178E-2,7.3645763488351765E-2,1,1,1,1,1,1,1,1,1,1,1,1]
[1000336708,42040.423484119347,5.0641663919683035E-2,5.2383443564538702E-2,5.4191988050999146E-2,5.6068354244906318E-2,5.8013592963124833E-2,6.0028749133154556E-2,6.2114861945366917E-2,6.4272964998346227E-2,6.6504086437777207E-2,6.8809249089283556E-2,7.1189470585590178E-2,7.3645763488351765E-2,1,1,1,1,1,1,1,1,1,1,1,1]
[1000336737,42040.423484119347,4.5806251063863379E-2,4.7354140432961829E-2,4.8965586034097661E-2,5.0641663919683035E-2,5.2383443564538702E-2,5.4191988050999146E-2,5.6068354244906318E-2,5.8013592963124833E-2,6.0028749133154556E-2,6.2114861945366917E-2,6.4272964998346227E-2,6.6504086437777207E-2,1,1,1,1,1,1,1,1,1,1,1,1]
[1000336855,42040.423484119347,4.2896802744129284E-2,4.4320835101887002E-2,4.5806251063863379E-2,4.7354140432961829E-2,4.8965586034097661E-2,5.0641663919683035E-2,5.2383443564538702E-2,5.4191988050999146E-2,5.6068354244906318E-2,5.8013592963124833E-2,6.0028749133154556E-2,6.2114861945366917E-2,1,1,1,1,1,1,1,1,1,1,1,1]
[1000336884,42040.423484119347,4.4320835101887002E-2,4.5806251063863379E-2,4.7354140432961829E-2,4.8965586034097661E-2,5.0641663919683035E-2,5.2383443564538702E-2,5.4191988050999146E-2,5.6068354244906318E-2,5.8013592963124833E-2,6.0028749133154556E-2,6.2114861945366917E-2,6.4272964998346227E-2,1,1,1,1,1,1,1,1,1,1,1,1]
[1000336912,42040.423484119347,5.1652883535787494E-2,5.3757216179430641E-2,5.5957094200009654E-2,5.8254425624863992E-2,6.0651110343739212E-2,6.314904033161732E-2,6.5750099860526226E-2,6.8456165701105562E-2,7.1269107314636759E-2,7.4190787036180608E-2,7.7223060249411724E-2,8.036777555368689E-2,1,1,1,1,1,1,1,1,1,1,1,1]
[1000336942,42040.423484119347,5.1652883535787494E-2,5.3757216179430641E-2,5.5957094200009654E-2,5.8254425624863992E-2,6.0651110343739212E-2,6.314904033161732E-2,6.5750099860526226E-2,6.8456165701105562E-2,7.1269107314636759E-2,7.4190787036180608E-2,7.7223060249411724E-2,8.036777555368689E-2,1,1,1,1,1,1,1,1,1,1,1,1]
[1000336972,42040.423484119347,6.0651110343739212E-2,6.314904033161732E-2,6.5750099860526226E-2,6.8456165701105562E-2,7.1269107314636759E-2,7.4190787036180608E-2,7.7223060249411724E-2,8.036777555368689E-2,8.3626774923841435E-2,8.7001893863165827E-2,9.0494961549979172E-2,9.4107800978183415E-2,1,1,1,1,1,1,1,1,1,1,1,1]
[1000340000,42040.423484119347,4.2896802744129284E-2,4.4320835101887002E-2,4.5806251063863379E-2,4.7354140432961829E-2,4.8965586034097661E-2,5.0641663919683035E-2,5.2383443564538702E-2,5.4191988050999146E-2,5.6068354244906318E-2,5.8013592963124833E-2,6.0028749133154556E-2,6.2114861945366917E-2,1,1,1,1,1,1,1,1,1,1,1,1]
[1000340030,42040.423484119347,4.2896802744129284E-2,4.4320835101887002E-2,4.5806251063863379E-2,4.7354140432961829E-2,4.8965586034097661E-2,5.0641663919683035E-2,5.2383443564538702E-2,5.4191988050999146E-2,5.6068354244906318E-2,5.8013592963124833E-2,6.0028749133154556E-2,6.2114861945366917E-2,1,1,1,1,1,1,1,1,1,1,1,1]
[1000340058,42040.423484119347,4.1533056992794047E-2,4.2896802744129284E-2,4.4320835101887002E-2,4.5806251063863379E-2,4.7354140432961829E-2,4.8965586034097661E-2,5.0641663919683035E-2,5.2383443564538702E-2,5.4191988050999146E-2,5.6068354244906318E-2,5.8013592963124833E-2,6.0028749133154556E-2,1,1,1,1,1,1,1,1,1,1,1,1]
[1000340087,42040.423484119347,4.1533056992794047E-2,4.2896802744129284E-2,4.4320835101887002E-2,4.5806251063863379E-2,4.7354140432961829E-2,4.8965586034097661E-2,5.0641663919683035E-2,5.2383443564538702E-2,5.4191988050999146E-2,5.6068354244906318E-2,5.8013592963124833E-2,6.0028749133154556E-2,1,1,1,1,1,1,1,1,1,1,1,1]
[1000340114,42040.423484119347,4.1533056992794047E-2,4.2896802744129284E-2,4.4320835101887002E-2,4.5806251063863379E-2,4.7354140432961829E-2,4.8965586034097661E-2,5.0641663919683035E-2,5.2383443564538702E-2,5.4191988050999146E-2,5.6068354244906318E-2,5.8013592963124833E-2,6.0028749133154556E-2,1,1,1,1,1,1,1,1,1,1,1,1]
[1000340144,42040.423484119347,4.1533056992794047E-2,4.2896802744129284E-2,4.4320835101887002E-2,4.5806251063863379E-2,4.7354140432961829E-2,4.8965586034097661E-2,5.0641663919683035E-2,5.2383443564538702E-2,5.4191988050999146E-2,5.6068354244906318E-2,5.8013592963124833E-2,6.0028749133154556E-2,1,1,1,1,1,1,1,1,1,1,1,1]
[1000340385,42040.423484119347,0.10224607155945335,0.10697908345801156,0.11189278854977745,0.11699041096769337,0.12227516931720378,0.12775027678978407,0.13341894127207971,0.13928436545090087,0.14534974691430244,0.15161827824896043,0.15809314713404285,0.16477753643175783,1,1,1,1,1,1,1,1,1,1,1,1]
[1000340415,42040.423484119347,0.13159409976489814,0.13824076536313762,0.14515136566886555,0.15233100272851322,0.15978477721489787,0.16751778845350573,0.17553513444779395,0.18384191190356705,0.19244321625247543,0.2013441416746839,0.21054978112075265,0.22006522633277167,1,1,1,1,1,2,2,2,2,2,2,2]
[1000340445,42040.423484119347,0.2013441416746839,0.21054978112075265,0.22006522633277167,0.22989556786478541,0.24004589510254248,0.25052129628260461,0.2613268585108437,0.27246766778035758,0.28394880898883024,0.29577536595536158,0.30795242143679252,0.32048505714354542,2,2,2,2,2,2,2,2,2,2,2,2]
[1000340477,42040.423484119347,0.12227516931720378,0.12775027678978407,0.13341894127207971,0.13928436545090087,0.14534974691430244,0.15161827824896043,0.15809314713404285,0.16477753643175783,0.17167462427475003,0.17878758415050608,0.18611958498291584,0.19367379121113124,1,1,1,1,1,1,1,1,2,2,2,2]
[1000340534,42040.423484119347,0.12775027678978407,0.13341894127207971,0.13928436545090087,0.14534974691430244,0.15161827824896043,0.15809314713404285,0.16477753643175783,0.17167462427475003,0.17878758415050608,0.18611958498291584,0.19367379121113124,0.20145336286585105,1,1,1,1,1,1,1,2,2,2,2,2]
[1000340565,42040.423484119347,7.1189470585590178E-2,7.3645763488351765E-2,7.6179135404964515E-2,7.8790589100653188E-2,8.1481122606103781E-2,8.4251729320893157E-2,8.7103398112946887E-2,9.003711341424292E-2,9.3053855312960412E-2,9.6154599642261987E-2,9.9340318065883282E-2,0.10261197816069247,1,1,1,1,1,1,1,1,1,1,1,1]
[1000340593,42040.423484119347,7.1189470585590178E-2,7.3645763488351765E-2,7.6179135404964515E-2,7.8790589100653188E-2,8.1481122606103781E-2,8.4251729320893157E-2,8.7103398112946887E-2,9.003711341424292E-2,9.3053855312960412E-2,9.6154599642261987E-2,9.9340318065883282E-2,0.10261197816069247,1,1,1,1,1,1,1,1,1,1,1,1]
[1000340623,42040.423484119347,9.769052307547689E-2,0.10224607155945335,0.10697908345801156,0.11189278854977745,0.11699041096769337,0.12227516931720378,0.12775027678978407,0.13341894127207971,0.13928436545090087,0.14534974691430244,0.15161827824896043,0.15809314713404285,1,1,1,1,1,1,1,1,1,1,1,1]
[1000340657,42040.423484119347,6.8456165701105562E-2,7.1269107314636759E-2,7.4190787036180608E-2,7.7223060249411724E-2,8.036777555368689E-2,8.3626774923841435E-2,8.7001893863165827E-2,9.0494961549979172E-2,9.4107800978183415E-2,9.784222909215208E-2,0.10170005691628047,0.1056830896795007,1,1,1,1,1,1,1,1,1,1,1,1]
[1000340689,42040.423484119347,0.12520626542678015,0.13159409976489814,0.13824076536313762,0.14515136566886555,0.15233100272851322,0.15978477721489787,0.16751778845350573,0.17553513444779395,0.18384191190356705,0.19244321625247543,0.2013441416746839,0.21054978112075265,1,1,1,1,1,1,2,2,2,2,2,2]
[1000340819,42040.423484119347,4.0228493425930344E-2,4.1533056992794047E-2,4.2896802744129284E-2,4.4320835101887002E-2,4.5806251063863379E-2,4.7354140432961829E-2,4.8965586034097661E-2,5.0641663919683035E-2,5.2383443564538702E-2,5.4191988050999146E-2,5.6068354244906318E-2,5.8013592963124833E-2,1,1,1,1,1,1,1,1,1,1,1,1]
[1000340854,42040.423484119347,4.0228493425930344E-2,4.1533056992794047E-2,4.2896802744129284E-2,4.4320835101887002E-2,4.5806251063863379E-2,4.7354140432961829E-2,4.8965586034097661E-2,5.0641663919683035E-2,5.2383443564538702E-2,5.4191988050999146E-2,5.6068354244906318E-2,5.8013592963124833E-2,1,1,1,1,1,1,1,1,1,1,1,1]
[1000340887,42040.423484119347,4.0228493425930344E-2,4.1533056992794047E-2,4.2896802744129284E-2,4.4320835101887002E-2,4.5806251063863379E-2,4.7354140432961829E-2,4.8965586034097661E-2,5.0641663919683035E-2,5.2383443564538702E-2,5.4191988050999146E-2,5.6068354244906318E-2,5.8013592963124833E-2,1,1,1,1,1,1,1,1,1,1,1,1]
[1000340972,42040.423484119347,4.0228493425930344E-2,4.1533056992794047E-2,4.2896802744129284E-2,4.4320835101887002E-2,4.5806251063863379E-2,4.7354140432961829E-2,4.8965586034097661E-2,5.0641663919683035E-2,5.2383443564538702E-2,5.4191988050999146E-2,5.6068354244906318E-2,5.8013592963124833E-2,1,1,1,1,1,1,1,1,1,1,1,1]
[1000344030,42040.423484119347,3.7792456566526869E-2,3.898199995477291E-2,4.0228493425930344E-2,4.1533056992794047E-2,4.2896802744129284E-2,4.4320835101887002E-2,4.5806251063863379E-2,4.7354140432961829E-2,4.8965586034097661E-2,5.0641663919683035E-2,5.2383443564538702E-2,5.4191988050999146E-2,1,1,1,1,1,1,1,1,1,1,1,1]
[1000344072,42040.423484119347,4.589395050946754E-2,4.7723180160905695E-2,4.9642179869438453E-2,5.1652883535787494E-2,5.3757216179430641E-2,5.5957094200009654E-2,5.8254425624863992E-2,6.0651110343739212E-2,6.314904033161732E-2,6.5750099860526226E-2,6.8456165701105562E-2,7.1269107314636759E-2,1,1,1,1,1,1,1,1,1,1,1,1]
[1000344130,42040.423484119347,5.0723225249247349E-2,5.3136904706546383E-2,5.5682157599908147E-2,5.8362308639026445E-2,6.1180674524643375E-2,6.4140564177954495E-2,6.7245278957730817E-2,7.0498112866105384E-2,7.3902352743879005E-2,7.7461278456115126E-2,8.1178163068722137E-2,8.5056273016654665E-2,1,1,1,1,1,1,1,1,1,1,1,1]
[1000344161,42040.423484119347,3.7792456566526869E-2,3.898199995477291E-2,4.0228493425930344E-2,4.1533056992794047E-2,4.2896802744129284E-2,4.4320835101887002E-2,4.5806251063863379E-2,4.7354140432961829E-2,4.8965586034097661E-2,5.0641663919683035E-2,5.2383443564538702E-2,5.4191988050999146E-2,1,1,1,1,1,1,1,1,1,1,1,1]
[1000344307,42040.423484119347,3.3581090456760908E-2,3.4554202053856835E-2,3.5579698711768699E-2,3.6658735051304625E-2,3.7792456566526869E-2,3.898199995477291E-2,4.0228493425930344E-2,4.1533056992794047E-2,4.2896802744129284E-2,4.4320835101887002E-2,4.5806251063863379E-2,4.7354140432961829E-2,1,1,1,1,1,1,1,1,1,1,1,1]
[1000344336,42040.423484119347,3.8026008638234091E-2,3.9435727666544969E-2,4.0925403750675389E-2,4.2497019693755127E-2,4.4152547856712077E-2,4.589395050946754E-2,4.7723180160905695E-2,4.9642179869438453E-2,5.1652883535787494E-2,5.3757216179430641E-2,5.5957094200009654E-2,5.8254425624863992E-2,1,1,1,1,1,1,1,1,1,1,1,1]
[1000344368,42040.423484119347,0.15161827824896043,0.15809314713404285,0.16477753643175783,0.17167462427475003,0.17878758415050608,0.18611958498291584,0.19367379121113124,0.20145336286585105,0.20946145564315588,0.21770122097600572,0.22617580610351035,0.23488835413807113,1,1,1,2,2,2,2,2,2,2,2,2]
[1000344393,42040.423484119347,0.15161827824896043,0.15809314713404285,0.16477753643175783,0.17167462427475003,0.17878758415050608,0.18611958498291584,0.19367379121113124,0.20145336286585105,0.20946145564315588,0.21770122097600572,0.22617580610351035,0.23488835413807113,1,1,1,2,2,2,2,2,2,2,2,2]
[1000344489,42040.423484119347,2.9460211113261529E-2,3.0189062339470676E-2,3.0964375332828167E-2,3.1787356185896419E-2,3.2659199820093243E-2,3.3581090456760908E-2,3.4554202053856835E-2,3.5579698711768699E-2,3.6658735051304625E-2,3.7792456566526869E-2,3.898199995477291E-2,4.0228493425930344E-2,1,1,1,1,1,1,1,1,1,1,1,1]
[1000344516,42040.423484119347,2.8776603881005634E-2,2.9460211113261529E-2,3.0189062339470676E-2,3.0964375332828167E-2,3.1787356185896419E-2,3.2659199820093243E-2,3.3581090456760908E-2,3.4554202053856835E-2,3.5579698711768699E-2,3.6658735051304625E-2,3.7792456566526869E-2,3.898199995477291E-2,1,1,1,1,1,1,1,1,1,1,1,1]
[1000344547,42040.423484119347,3.0227838908009556E-2,3.1134339870423623E-2,3.2106590837740152E-2,3.3146659834675365E-2,3.4256601178090859E-2,3.5438456053096597E-2,3.6694253045937E-2,3.8026008638234091E-2,3.9435727666544969E-2,4.0925403750675389E-2,4.2497019693755127E-2,4.4152547856712077E-2,1,1,1,1,1,1,1,1,1,1,1,1]
[1000344577,42040.423484119347,3.2106590837740152E-2,3.3146659834675365E-2,3.4256601178090859E-2,3.5438456053096597E-2,3.6694253045937E-2,3.8026008638234091E-2,3.9435727666544969E-2,4.0925403750675389E-2,4.2497019693755127E-2,4.4152547856712077E-2,4.589395050946754E-2,4.7723180160905695E-2,1,1,1,1,1,1,1,1,1,1,1,1]
[1000344603,42040.423484119347,2.9460211113261529E-2,3.0189062339470676E-2,3.0964375332828167E-2,3.1787356185896419E-2,3.2659199820093243E-2,3.3581090456760908E-2,3.4554202053856835E-2,3.5579698711768699E-2,3.6658735051304625E-2,3.7792456566526869E-2,3.898199995477291E-2,4.0228493425930344E-2,1,1,1,1,1,1,1,1,1,1,1,1]
[1000344840,42040.423484119347,2.8776603881005634E-2,2.9460211113261529E-2,3.0189062339470676E-2,3.0964375332828167E-2,3.1787356185896419E-2,3.2659199820093243E-2,3.3581090456760908E-2,3.4554202053856835E-2,3.5579698711768699E-2,3.6658735051304625E-2,3.7792456566526869E-2,3.898199995477291E-2,1,1,1,1,1,1,1,1,1,1,1,1]
[1000344872,42040.423484119347,2.8137010636284345E-2,2.8776603881005634E-2,2.9460211113261529E-2,3.0189062339470676E-2,3.0964375332828167E-2,3.1787356185896419E-2,3.2659199820093243E-2,3.3581090456760908E-2,3.4554202053856835E-2,3.5579698711768699E-2,3.6658735051304625E-2,3.7792456566526869E-2,1,1,1,1,1,1,1,1,1,1,1,1]
[1000344903,42040.423484119347,3.0227838908009556E-2,3.1134339870423623E-2,3.2106590837740152E-2,3.3146659834675365E-2,3.4256601178090859E-2,3.5438456053096597E-2,3.6694253045937E-2,3.8026008638234091E-2,3.9435727666544969E-2,4.0925403750675389E-2,4.2497019693755127E-2,4.4152547856712077E-2,1,1,1,1,1,1,1,1,1,1,1,1]
[1000344995,42040.423484119347,7.6179135404964515E-2,7.8790589100653188E-2,8.1481122606103781E-2,8.4251729320893157E-2,8.7103398112946887E-2,9.003711341424292E-2,9.3053855312960412E-2,9.6154599642261987E-2,9.9340318065883282E-2,0.10261197816069247,0.10597054349637275,0.10941697371236876,1,1,1,1,1,1,1,1,1,1,1,1]
[1000349025,42040.423484119347,2.6469818248300764E-2,2.6984881255773686E-2,2.7540188538302313E-2,2.8137010636284345E-2,2.8776603881005634E-2,2.9460211113261529E-2,3.0189062339470676E-2,3.0964375332828167E-2,3.1787356185896419E-2,3.2659199820093243E-2,3.3581090456760908E-2,3.4554202053856835E-2,1,1,1,1,1,1,1,1,1,1,1,1]
[1000349053,42040.423484119347,2.599371397628529E-2,2.6469818248300764E-2,2.6984881255773686E-2,2.7540188538302313E-2,2.8137010636284345E-2,2.8776603881005634E-2,2.9460211113261529E-2,3.0189062339470676E-2,3.0964375332828167E-2,3.1787356185896419E-2,3.2659199820093243E-2,3.3581090456760908E-2,1,1,1,1,1,1,1,1,1,1,1,1]
[1000349084,42040.423484119347,2.599371397628529E-2,2.6469818248300764E-2,2.6984881255773686E-2,2.7540188538302313E-2,2.8137010636284345E-2,2.8776603881005634E-2,2.9460211113261529E-2,3.0189062339470676E-2,3.0964375332828167E-2,3.1787356185896419E-2,3.2659199820093243E-2,3.3581090456760908E-2,1,1,1,1,1,1,1,1,1,1,1,1]
[1000349112,42040.423484119347,2.5555267028657284E-2,2.599371397628529E-2,2.6469818248300764E-2,2.6984881255773686E-2,2.7540188538302313E-2,2.8137010636284345E-2,2.8776603881005634E-2,2.9460211113261529E-2,3.0189062339470676E-2,3.0964375332828167E-2,3.1787356185896419E-2,3.2659199820093243E-2,1,1,1,1,1,1,1,1,1,1,1,1]
[1000349143,42040.423484119347,2.515315915550605E-2,2.5555267028657284E-2,2.599371397628529E-2,2.6469818248300764E-2,2.6984881255773686E-2,2.7540188538302313E-2,2.8137010636284345E-2,2.8776603881005634E-2,2.9460211113261529E-2,3.0189062339470676E-2,3.0964375332828167E-2,3.1787356185896419E-2,1,1,1,1,1,1,1,1,1,1,1,1]
[1000349169,42040.423484119347,2.6469818248300764E-2,2.6984881255773686E-2,2.7540188538302313E-2,2.8137010636284345E-2,2.8776603881005634E-2,2.9460211113261529E-2,3.0189062339470676E-2,3.0964375332828167E-2,3.1787356185896419E-2,3.2659199820093243E-2,3.3581090456760908E-2,3.4554202053856835E-2,1,1,1,1,1,1,1,1,1,1,1,1]
[1000349201,42040.423484119347,2.6469818248300764E-2,2.6984881255773686E-2,2.7540188538302313E-2,2.8137010636284345E-2,2.8776603881005634E-2,2.9460211113261529E-2,3.0189062339470676E-2,3.0964375332828167E-2,3.1787356185896419E-2,3.2659199820093243E-2,3.3581090456760908E-2,3.4554202053856835E-2,1,1,1,1,1,1,1,1,1,1,1,1]
[1000349231,42040.423484119347,2.5555267028657284E-2,2.599371397628529E-2,2.6469818248300764E-2,2.6984881255773686E-2,2.7540188538302313E-2,2.8137010636284345E-2,2.8776603881005634E-2,2.9460211113261529E-2,3.0189062339470676E-2,3.0964375332828167E-2,3.1787356185896419E-2,3.2659199820093243E-2,1,1,1,1,1,1,1,1,1,1,1,1]
[1000349259,42040.423484119347,2.5555267028657284E-2,2.599371397628529E-2,2.6469818248300764E-2,2.6984881255773686E-2,2.7540188538302313E-2,2.8137010636284345E-2,2.8776603881005634E-2,2.9460211113261529E-2,3.0189062339470676E-2,3.0964375332828167E-2,3.1787356185896419E-2,3.2659199820093243E-2,1,1,1,1,1,1,1,1,1,1,1,1]
[1000349287,42040.423484119347,2.5555267028657284E-2,2.599371397628529E-2,2.6469818248300764E-2,2.6984881255773686E-2,2.7540188538302313E-2,2.8137010636284345E-2,2.8776603881005634E-2,2.9460211113261529E-2,3.0189062339470676E-2,3.0964375332828167E-2,3.1787356185896419E-2,3.2659199820093243E-2,1,1,1,1,1,1,1,1,1,1,1,1]
[1000349315,42040.423484119347,2.515315915550605E-2,2.5555267028657284E-2,2.599371397628529E-2,2.6469818248300764E-2,2.6984881255773686E-2,2.7540188538302313E-2,2.8137010636284345E-2,2.8776603881005634E-2,2.9460211113261529E-2,3.0189062339470676E-2,3.0964375332828167E-2,3.1787356185896419E-2,1,1,1,1,1,1,1,1,1,1,1,1]
[1000349346,42040.423484119347,2.515315915550605E-2,2.5555267028657284E-2,2.599371397628529E-2,2.6469818248300764E-2,2.6984881255773686E-2,2.7540188538302313E-2,2.8137010636284345E-2,2.8776603881005634E-2,2.9460211113261529E-2,3.0189062339470676E-2,3.0964375332828167E-2,3.1787356185896419E-2,1,1,1,1,1,1,1,1,1,1,1,1]
[1000349374,42040.423484119347,2.515315915550605E-2,2.5555267028657284E-2,2.599371397628529E-2,2.6469818248300764E-2,2.6984881255773686E-2,2.7540188538302313E-2,2.8137010636284345E-2,2.8776603881005634E-2,2.9460211113261529E-2,3.0189062339470676E-2,3.0964375332828167E-2,3.1787356185896419E-2,1,1,1,1,1,1,1,1,1,1,1,1]
[1000349403,42040.423484119347,2.515315915550605E-2,2.5555267028657284E-2,2.599371397628529E-2,2.6469818248300764E-2,2.6984881255773686E-2,2.7540188538302313E-2,2.8137010636284345E-2,2.8776603881005634E-2,2.9460211113261529E-2,3.0189062339470676E-2,3.0964375332828167E-2,3.1787356185896419E-2,1,1,1,1,1,1,1,1,1,1,1,1]
[1000349461,42040.423484119347,2.5555267028657284E-2,2.599371397628529E-2,2.6469818248300764E-2,2.6984881255773686E-2,2.7540188538302313E-2,2.8137010636284345E-2,2.8776603881005634E-2,2.9460211113261529E-2,3.0189062339470676E-2,3.0964375332828167E-2,3.1787356185896419E-2,3.2659199820093243E-2,1,1,1,1,1,1,1,1,1,1,1,1]
[1000349494,42040.423484119347,2.4452596839706037E-2,2.4786054189911616E-2,2.515315915550605E-2,2.5555267028657284E-2,2.599371397628529E-2,2.6469818248300764E-2,2.6984881255773686E-2,2.7540188538302313E-2,2.8137010636284345E-2,2.8776603881005634E-2,2.9460211113261529E-2,3.0189062339470676E-2,1,1,1,1,1,1,1,1,1,1,1,1]
[1000349615,42040.423484119347,2.515315915550605E-2,2.5555267028657284E-2,2.599371397628529E-2,2.6469818248300764E-2,2.6984881255773686E-2,2.7540188538302313E-2,2.8137010636284345E-2,2.8776603881005634E-2,2.9460211113261529E-2,3.0189062339470676E-2,3.0964375332828167E-2,3.1787356185896419E-2,1,1,1,1,1,1,1,1,1,1,1,1]
[1000349645,42040.423484119347,2.4786054189911616E-2,2.515315915550605E-2,2.5555267028657284E-2,2.599371397628529E-2,2.6469818248300764E-2,2.6984881255773686E-2,2.7540188538302313E-2,2.8137010636284345E-2,2.8776603881005634E-2,2.9460211113261529E-2,3.0189062339470676E-2,3.0964375332828167E-2,1,1,1,1,1,1,1,1,1,1,1,1]
[1000349674,42040.423484119347,2.4786054189911616E-2,2.515315915550605E-2,2.5555267028657284E-2,2.599371397628529E-2,2.6469818248300764E-2,2.6984881255773686E-2,2.7540188538302313E-2,2.8137010636284345E-2,2.8776603881005634E-2,2.9460211113261529E-2,3.0189062339470676E-2,3.0964375332828167E-2,1,1,1,1,1,1,1,1,1,1,1,1]
[1000349704,42040.423484119347,2.415141132526721E-2,2.4452596839706037E-2,2.4786054189911616E-2,2.515315915550605E-2,2.5555267028657284E-2,2.599371397628529E-2,2.6469818248300764E-2,2.6984881255773686E-2,2.7540188538302313E-2,2.8137010636284345E-2,2.8776603881005634E-2,2.9460211113261529E-2,1,1,1,1,1,1,1,1,1,1,1,1]
[1000349797,42040.423484119347,2.415141132526721E-2,2.4452596839706037E-2,2.4786054189911616E-2,2.515315915550605E-2,2.5555267028657284E-2,2.599371397628529E-2,2.6469818248300764E-2,2.6984881255773686E-2,2.7540188538302313E-2,2.8137010636284345E-2,2.8776603881005634E-2,2.9460211113261529E-2,1,1,1,1,1,1,1,1,1,1,1,1]
[1000349829,42040.423484119347,2.415141132526721E-2,2.4452596839706037E-2,2.4786054189911616E-2,2.515315915550605E-2,2.5555267028657284E-2,2.599371397628529E-2,2.6469818248300764E-2,2.6984881255773686E-2,2.7540188538302313E-2,2.8137010636284345E-2,2.8776603881005634E-2,2.9460211113261529E-2,1,1,1,1,1,1,1,1,1,1,1,1]
[1000349857,42040.423484119347,2.4452596839706037E-2,2.4786054189911616E-2,2.515315915550605E-2,2.5555267028657284E-2,2.599371397628529E-2,2.6469818248300764E-2,2.6984881255773686E-2,2.7540188538302313E-2,2.8137010636284345E-2,2.8776603881005634E-2,2.9460211113261529E-2,3.0189062339470676E-2,1,1,1,1,1,1,1,1,1,1,1,1]
[1000349884,42040.423484119347,2.4786054189911616E-2,2.515315915550605E-2,2.5555267028657284E-2,2.599371397628529E-2,2.6469818248300764E-2,2.6984881255773686E-2,2.7540188538302313E-2,2.8137010636284345E-2,2.8776603881005634E-2,2.9460211113261529E-2,3.0189062339470676E-2,3.0964375332828167E-2,1,1,1,1,1,1,1,1,1,1,1,1]
[1000349913,42040.423484119347,2.515315915550605E-2,2.5555267028657284E-2,2.599371397628529E-2,2.6469818248300764E-2,2.6984881255773686E-2,2.7540188538302313E-2,2.8137010636284345E-2,2.8776603881005634E-2,2.9460211113261529E-2,3.0189062339470676E-2,3.0964375332828167E-2,3.1787356185896419E-2,1,1,1,1,1,1,1,1,1,1,1,1]
[1000349939,42040.423484119347,2.6555038282698368E-2,2.724988027494063E-2,2.8018237064622923E-2,2.8863624685050441E-2,2.9789543506522055E-2,3.0799479048291684E-2,3.1896902713409954E-2,3.308527245681242E-2,3.4368033395252011E-2,3.5748618366265382E-2,3.7230448442231279E-2,3.8816933404660324E-2,1,1,1,1,1,1,1,1,1,1,1,1]
[1000349972,42040.423484119347,2.5546423068041873E-2,2.6051876821798717E-2,2.660816017801328E-2,2.7217458266376001E-2,2.7881936677456511E-2,2.8603742557216191E-2,2.93850055932941E-2,3.0227838908009556E-2,3.1134339870423623E-2,3.2106590837740152E-2,3.3146659834675365E-2,3.4256601178090859E-2,1,1,1,1,1,1,1,1,1,1,1,1]
[1000353004,42040.423484119347,2.4786054189911616E-2,2.515315915550605E-2,2.5555267028657284E-2,2.599371397628529E-2,2.6469818248300764E-2,2.6984881255773686E-2,2.7540188538302313E-2,2.8137010636284345E-2,2.8776603881005634E-2,2.9460211113261529E-2,3.0189062339470676E-2,3.0964375332828167E-2,1,1,1,1,1,1,1,1,1,1,1,1]
[1000353037,42040.423484119347,2.415141132526721E-2,2.4452596839706037E-2,2.4786054189911616E-2,2.515315915550605E-2,2.5555267028657284E-2,2.599371397628529E-2,2.6469818248300764E-2,2.6984881255773686E-2,2.7540188538302313E-2,2.8137010636284345E-2,2.8776603881005634E-2,2.9460211113261529E-2,1,1,1,1,1,1,1,1,1,1,1,1]
[1000353068,42040.423484119347,2.4452596839706037E-2,2.4786054189911616E-2,2.515315915550605E-2,2.5555267028657284E-2,2.599371397628529E-2,2.6469818248300764E-2,2.6984881255773686E-2,2.7540188538302313E-2,2.8137010636284345E-2,2.8776603881005634E-2,2.9460211113261529E-2,3.0189062339470676E-2,1,1,1,1,1,1,1,1,1,1,1,1]
[1000353101,42040.423484119347,2.4452596839706037E-2,2.4786054189911616E-2,2.515315915550605E-2,2.5555267028657284E-2,2.599371397628529E-2,2.6469818248300764E-2,2.6984881255773686E-2,2.7540188538302313E-2,2.8137010636284345E-2,2.8776603881005634E-2,2.9460211113261529E-2,3.0189062339470676E-2,1,1,1,1,1,1,1,1,1,1,1,1]
[1000353135,42040.423484119347,2.4452596839706037E-2,2.4786054189911616E-2,2.515315915550605E-2,2.5555267028657284E-2,2.599371397628529E-2,2.6469818248300764E-2,2.6984881255773686E-2,2.7540188538302313E-2,2.8137010636284345E-2,2.8776603881005634E-2,2.9460211113261529E-2,3.0189062339470676E-2,1,1,1,1,1,1,1,1,1,1,1,1]
[1000353167,42040.423484119347,2.4452596839706037E-2,2.4786054189911616E-2,2.515315915550605E-2,2.5555267028657284E-2,2.599371397628529E-2,2.6469818248300764E-2,2.6984881255773686E-2,2.7540188538302313E-2,2.8137010636284345E-2,2.8776603881005634E-2,2.9460211113261529E-2,3.0189062339470676E-2,1,1,1,1,1,1,1,1,1,1,1,1]
[1000353227,42040.423484119347,2.4452596839706037E-2,2.4786054189911616E-2,2.515315915550605E-2,2.5555267028657284E-2,2.599371397628529E-2,2.6469818248300764E-2,2.6984881255773686E-2,2.7540188538302313E-2,2.8137010636284345E-2,2.8776603881005634E-2,2.9460211113261529E-2,3.0189062339470676E-2,1,1,1,1,1,1,1,1,1,1,1,1]
[1000353258,42040.423484119347,2.4452596839706037E-2,2.4786054189911616E-2,2.515315915550605E-2,2.5555267028657284E-2,2.599371397628529E-2,2.6469818248300764E-2,2.6984881255773686E-2,2.7540188538302313E-2,2.8137010636284345E-2,2.8776603881005634E-2,2.9460211113261529E-2,3.0189062339470676E-2,1,1,1,1,1,1,1,1,1,1,1,1]
[1000353287,42040.423484119347,2.4452596839706037E-2,2.4786054189911616E-2,2.515315915550605E-2,2.5555267028657284E-2,2.599371397628529E-2,2.6469818248300764E-2,2.6984881255773686E-2,2.7540188538302313E-2,2.8137010636284345E-2,2.8776603881005634E-2,2.9460211113261529E-2,3.0189062339470676E-2,1,1,1,1,1,1,1,1,1,1,1,1]
[1000353314,42040.423484119347,2.3881099833366174E-2,2.415141132526721E-2,2.4452596839706037E-2,2.4786054189911616E-2,2.515315915550605E-2,2.5555267028657284E-2,2.599371397628529E-2,2.6469818248300764E-2,2.6984881255773686E-2,2.7540188538302313E-2,2.8137010636284345E-2,2.8776603881005634E-2,1,1,1,1,1,1,1,1,1,1,1,1]
[1000353347,42040.423484119347,2.415141132526721E-2,2.4452596839706037E-2,2.4786054189911616E-2,2.515315915550605E-2,2.5555267028657284E-2,2.599371397628529E-2,2.6469818248300764E-2,2.6984881255773686E-2,2.7540188538302313E-2,2.8137010636284345E-2,2.8776603881005634E-2,2.9460211113261529E-2,1,1,1,1,1,1,1,1,1,1,1,1]
[1000353379,42040.423484119347,2.5371750726894817E-2,2.5930178489891719E-2,2.6555038282698368E-2,2.724988027494063E-2,2.8018237064622923E-2,2.8863624685050441E-2,2.9789543506522055E-2,3.0799479048291684E-2,3.1896902713409954E-2,3.308527245681242E-2,3.4368033395252011E-2,3.5748618366265382E-2,1,1,1,1,1,1,1,1,1,1,1,1]
[1000353459,42040.423484119347,2.415141132526721E-2,2.4452596839706037E-2,2.4786054189911616E-2,2.515315915550605E-2,2.5555267028657284E-2,2.599371397628529E-2,2.6469818248300764E-2,2.6984881255773686E-2,2.7540188538302313E-2,2.8137010636284345E-2,2.8776603881005634E-2,2.9460211113261529E-2,1,1,1,1,1,1,1,1,1,1,1,1]
[1000353491,42040.423484119347,2.415141132526721E-2,2.4452596839706037E-2,2.4786054189911616E-2,2.515315915550605E-2,2.5555267028657284E-2,2.599371397628529E-2,2.6469818248300764E-2,2.6984881255773686E-2,2.7540188538302313E-2,2.8137010636284345E-2,2.8776603881005634E-2,2.9460211113261529E-2,1,1,1,1,1,1,1,1,1,1,1,1]
[1000353523,42040.423484119347,2.3640240748973831E-2,2.3881099833366174E-2,2.415141132526721E-2,2.4452596839706037E-2,2.4786054189911616E-2,2.515315915550605E-2,2.5555267028657284E-2,2.599371397628529E-2,2.6469818248300764E-2,2.6984881255773686E-2,2.7540188538302313E-2,2.8137010636284345E-2,1,1,1,1,1,1,1,1,1,1,1,1]
[1000353554,42040.423484119347,2.3881099833366174E-2,2.415141132526721E-2,2.4452596839706037E-2,2.4786054189911616E-2,2.515315915550605E-2,2.5555267028657284E-2,2.599371397628529E-2,2.6469818248300764E-2,2.6984881255773686E-2,2.7540188538302313E-2,2.8137010636284345E-2,2.8776603881005634E-2,1,1,1,1,1,1,1,1,1,1,1,1]
[1000353588,42040.423484119347,2.415141132526721E-2,2.4452596839706037E-2,2.4786054189911616E-2,2.515315915550605E-2,2.5555267028657284E-2,2.599371397628529E-2,2.6469818248300764E-2,2.6984881255773686E-2,2.7540188538302313E-2,2.8137010636284345E-2,2.8776603881005634E-2,2.9460211113261529E-2,1,1,1,1,1,1,1,1,1,1,1,1]
[1000353620,42040.423484119347,2.415141132526721E-2,2.4452596839706037E-2,2.4786054189911616E-2,2.515315915550605E-2,2.5555267028657284E-2,2.599371397628529E-2,2.6469818248300764E-2,2.6984881255773686E-2,2.7540188538302313E-2,2.8137010636284345E-2,2.8776603881005634E-2,2.9460211113261529E-2,1,1,1,1,1,1,1,1,1,1,1,1]
[1000353653,42040.423484119347,2.415141132526721E-2,2.4452596839706037E-2,2.4786054189911616E-2,2.515315915550605E-2,2.5555267028657284E-2,2.599371397628529E-2,2.6469818248300764E-2,2.6984881255773686E-2,2.7540188538302313E-2,2.8137010636284345E-2,2.8776603881005634E-2,2.9460211113261529E-2,1,1,1,1,1,1,1,1,1,1,1,1]
[1000353684,42040.423484119347,2.415141132526721E-2,2.4452596839706037E-2,2.4786054189911616E-2,2.515315915550605E-2,2.5555267028657284E-2,2.599371397628529E-2,2.6469818248300764E-2,2.6984881255773686E-2,2.7540188538302313E-2,2.8137010636284345E-2,2.8776603881005634E-2,2.9460211113261529E-2,1,1,1,1,1,1,1,1,1,1,1,1]
[1000353713,42040.423484119347,2.3881099833366174E-2,2.415141132526721E-2,2.4452596839706037E-2,2.4786054189911616E-2,2.515315915550605E-2,2.5555267028657284E-2,2.599371397628529E-2,2.6469818248300764E-2,2.6984881255773686E-2,2.7540188538302313E-2,2.8137010636284345E-2,2.8776603881005634E-2,1,1,1,1,1,1,1,1,1,1,1,1]
[1000353747,42040.423484119347,2.3881099833366174E-2,2.415141132526721E-2,2.4452596839706037E-2,2.4786054189911616E-2,2.515315915550605E-2,2.5555267028657284E-2,2.599371397628529E-2,2.6469818248300764E-2,2.6984881255773686E-2,2.7540188538302313E-2,2.8137010636284345E-2,2.8776603881005634E-2,1,1,1,1,1,1,1,1,1,1,1,1]
[1000353781,42040.423484119347,2.3881099833366174E-2,2.415141132526721E-2,2.4452596839706037E-2,2.4786054189911616E-2,2.515315915550605E-2,2.5555267028657284E-2,2.599371397628529E-2,2.6469818248300764E-2,2.6984881255773686E-2,2.7540188538302313E-2,2.8137010636284345E-2,2.8776603881005634E-2,1,1,1,1,1,1,1,1,1,1,1,1]
[1000353814,42040.423484119347,2.4452596839706037E-2,2.4786054189911616E-2,2.515315915550605E-2,2.5555267028657284E-2,2.599371397628529E-2,2.6469818248300764E-2,2.6984881255773686E-2,2.7540188538302313E-2,2.8137010636284345E-2,2.8776603881005634E-2,2.9460211113261529E-2,3.0189062339470676E-2,1,1,1,1,1,1,1,1,1,1,1,1]
[1000353845,42040.423484119347,2.3881099833366174E-2,2.415141132526721E-2,2.4452596839706037E-2,2.4786054189911616E-2,2.515315915550605E-2,2.5555267028657284E-2,2.599371397628529E-2,2.6469818248300764E-2,2.6984881255773686E-2,2.7540188538302313E-2,2.8137010636284345E-2,2.8776603881005634E-2,1,1,1,1,1,1,1,1,1,1,1,1]
[1000353873,42040.423484119347,2.415141132526721E-2,2.4452596839706037E-2,2.4786054189911616E-2,2.515315915550605E-2,2.5555267028657284E-2,2.599371397628529E-2,2.6469818248300764E-2,2.6984881255773686E-2,2.7540188538302313E-2,2.8137010636284345E-2,2.8776603881005634E-2,2.9460211113261529E-2,1,1,1,1,1,1,1,1,1,1,1,1]
[1000353900,42040.423484119347,2.415141132526721E-2,2.4452596839706037E-2,2.4786054189911616E-2,2.515315915550605E-2,2.5555267028657284E-2,2.599371397628529E-2,2.6469818248300764E-2,2.6984881255773686E-2,2.7540188538302313E-2,2.8137010636284345E-2,2.8776603881005634E-2,2.9460211113261529E-2,1,1,1,1,1,1,1,1,1,1,1,1]
[1000353934,42040.423484119347,2.415141132526721E-2,2.4452596839706037E-2,2.4786054189911616E-2,2.515315915550605E-2,2.5555267028657284E-2,2.599371397628529E-2,2.6469818248300764E-2,2.6984881255773686E-2,2.7540188538302313E-2,2.8137010636284345E-2,2.8776603881005634E-2,2.9460211113261529E-2,1,1,1,1,1,1,1,1,1,1,1,1]
[1000353966,42040.423484119347,2.415141132526721E-2,2.4452596839706037E-2,2.4786054189911616E-2,2.515315915550605E-2,2.5555267028657284E-2,2.599371397628529E-2,2.6469818248300764E-2,2.6984881255773686E-2,2.7540188538302313E-2,2.8137010636284345E-2,2.8776603881005634E-2,2.9460211113261529E-2,1,1,1,1,1,1,1,1,1,1,1,1]
[1000353995,42040.423484119347,2.3881099833366174E-2,2.415141132526721E-2,2.4452596839706037E-2,2.4786054189911616E-2,2.515315915550605E-2,2.5555267028657284E-2,2.599371397628529E-2,2.6469818248300764E-2,2.6984881255773686E-2,2.7540188538302313E-2,2.8137010636284345E-2,2.8776603881005634E-2,1,1,1,1,1,1,1,1,1,1,1,1]
[1000358026,42040.423484119347,2.3881099833366174E-2,2.415141132526721E-2,2.4452596839706037E-2,2.4786054189911616E-2,2.515315915550605E-2,2.5555267028657284E-2,2.599371397628529E-2,2.6469818248300764E-2,2.6984881255773686E-2,2.7540188538302313E-2,2.8137010636284345E-2,2.8776603881005634E-2,1,1,1,1,1,1,1,1,1,1,1,1]
[1000358056,42040.423484119347,2.3881099833366174E-2,2.415141132526721E-2,2.4452596839706037E-2,2.4786054189911616E-2,2.515315915550605E-2,2.5555267028657284E-2,2.599371397628529E-2,2.6469818248300764E-2,2.6984881255773686E-2,2.7540188538302313E-2,2.8137010636284345E-2,2.8776603881005634E-2,1,1,1,1,1,1,1,1,1,1,1,1]
[1000358084,42040.423484119347,2.3881099833366174E-2,2.415141132526721E-2,2.4452596839706037E-2,2.4786054189911616E-2,2.515315915550605E-2,2.5555267028657284E-2,2.599371397628529E-2,2.6469818248300764E-2,2.6984881255773686E-2,2.7540188538302313E-2,2.8137010636284345E-2,2.8776603881005634E-2,1,1,1,1,1,1,1,1,1,1,1,1]
[1000358116,42040.423484119347,2.3881099833366174E-2,2.415141132526721E-2,2.4452596839706037E-2,2.4786054189911616E-2,2.515315915550605E-2,2.5555267028657284E-2,2.599371397628529E-2,2.6469818248300764E-2,2.6984881255773686E-2,2.7540188538302313E-2,2.8137010636284345E-2,2.8776603881005634E-2,1,1,1,1,1,1,1,1,1,1,1,1]
[1000358149,42040.423484119347,2.3881099833366174E-2,2.415141132526721E-2,2.4452596839706037E-2,2.4786054189911616E-2,2.515315915550605E-2,2.5555267028657284E-2,2.599371397628529E-2,2.6469818248300764E-2,2.6984881255773686E-2,2.7540188538302313E-2,2.8137010636284345E-2,2.8776603881005634E-2,1,1,1,1,1,1,1,1,1,1,1,1]
[1000358181,42040.423484119347,2.3881099833366174E-2,2.415141132526721E-2,2.4452596839706037E-2,2.4786054189911616E-2,2.515315915550605E-2,2.5555267028657284E-2,2.599371397628529E-2,2.6469818248300764E-2,2.6984881255773686E-2,2.7540188538302313E-2,2.8137010636284345E-2,2.8776603881005634E-2,1,1,1,1,1,1,1,1,1,1,1,1]
[1000358266,42040.423484119347,2.3881099833366174E-2,2.415141132526721E-2,2.4452596839706037E-2,2.4786054189911616E-2,2.515315915550605E-2,2.5555267028657284E-2,2.599371397628529E-2,2.6469818248300764E-2,2.6984881255773686E-2,2.7540188538302313E-2,2.8137010636284345E-2,2.8776603881005634E-2,1,1,1,1,1,1,1,1,1,1,1,1]
[1000358298,42040.423484119347,2.3881099833366174E-2,2.415141132526721E-2,2.4452596839706037E-2,2.4786054189911616E-2,2.515315915550605E-2,2.5555267028657284E-2,2.599371397628529E-2,2.6469818248300764E-2,2.6984881255773686E-2,2.7540188538302313E-2,2.8137010636284345E-2,2.8776603881005634E-2,1,1,1,1,1,1,1,1,1,1,1,1]
[1000358360,42040.423484119347,2.3881099833366174E-2,2.415141132526721E-2,2.4452596839706037E-2,2.4786054189911616E-2,2.515315915550605E-2,2.5555267028657284E-2,2.599371397628529E-2,2.6469818248300764E-2,2.6984881255773686E-2,2.7540188538302313E-2,2.8137010636284345E-2,2.8776603881005634E-2,1,1,1,1,1,1,1,1,1,1,1,1]
[1000358393,42040.423484119347,2.3640240748973831E-2,2.3881099833366174E-2,2.415141132526721E-2,2.4452596839706037E-2,2.4786054189911616E-2,2.515315915550605E-2,2.5555267028657284E-2,2.599371397628529E-2,2.6469818248300764E-2,2.6984881255773686E-2,2.7540188538302313E-2,2.8137010636284345E-2,1,1,1,1,1,1,1,1,1,1,1,1]
[1000358426,42040.423484119347,2.3640240748973831E-2,2.3881099833366174E-2,2.415141132526721E-2,2.4452596839706037E-2,2.4786054189911616E-2,2.515315915550605E-2,2.5555267028657284E-2,2.599371397628529E-2,2.6469818248300764E-2,2.6984881255773686E-2,2.7540188538302313E-2,2.8137010636284345E-2,1,1,1,1,1,1,1,1,1,1,1,1]
[1000358459,42040.423484119347,2.3640240748973831E-2,2.3881099833366174E-2,2.415141132526721E-2,2.4452596839706037E-2,2.4786054189911616E-2,2.515315915550605E-2,2.5555267028657284E-2,2.599371397628529E-2,2.6469818248300764E-2,2.6984881255773686E-2,2.7540188538302313E-2,2.8137010636284345E-2,1,1,1,1,1,1,1,1,1,1,1,1]
[1000358493,42040.423484119347,2.3640240748973831E-2,2.3881099833366174E-2,2.415141132526721E-2,2.4452596839706037E-2,2.4786054189911616E-2,2.515315915550605E-2,2.5555267028657284E-2,2.599371397628529E-2,2.6469818248300764E-2,2.6984881255773686E-2,2.7540188538302313E-2,2.8137010636284345E-2,1,1,1,1,1,1,1,1,1,1,1,1]
[1000358522,42040.423484119347,2.3640240748973831E-2,2.3881099833366174E-2,2.415141132526721E-2,2.4452596839706037E-2,2.4786054189911616E-2,2.515315915550605E-2,2.5555267028657284E-2,2.599371397628529E-2,2.6469818248300764E-2,2.6984881255773686E-2,2.7540188538302313E-2,2.8137010636284345E-2,1,1,1,1,1,1,1,1,1,1,1,1]
[1000358550,42040.423484119347,2.3640240748973831E-2,2.3881099833366174E-2,2.415141132526721E-2,2.4452596839706037E-2,2.4786054189911616E-2,2.515315915550605E-2,2.5555267028657284E-2,2.599371397628529E-2,2.6469818248300764E-2,2.6984881255773686E-2,2.7540188538302313E-2,2.8137010636284345E-2,1,1,1,1,1,1,1,1,1,1,1,1]
[1000358581,42040.423484119347,2.3640240748973831E-2,2.3881099833366174E-2,2.415141132526721E-2,2.4452596839706037E-2,2.4786054189911616E-2,2.515315915550605E-2,2.5555267028657284E-2,2.599371397628529E-2,2.6469818248300764E-2,2.6984881255773686E-2,2.7540188538302313E-2,2.8137010636284345E-2,1,1,1,1,1,1,1,1,1,1,1,1]
[1000358609,42040.423484119347,2.3640240748973831E-2,2.3881099833366174E-2,2.415141132526721E-2,2.4452596839706037E-2,2.4786054189911616E-2,2.515315915550605E-2,2.5555267028657284E-2,2.599371397628529E-2,2.6469818248300764E-2,2.6984881255773686E-2,2.7540188538302313E-2,2.8137010636284345E-2,1,1,1,1,1,1,1,1,1,1,1,1]
[1000358641,42040.423484119347,2.3640240748973831E-2,2.3881099833366174E-2,2.415141132526721E-2,2.4452596839706037E-2,2.4786054189911616E-2,2.515315915550605E-2,2.5555267028657284E-2,2.599371397628529E-2,2.6469818248300764E-2,2.6984881255773686E-2,2.7540188538302313E-2,2.8137010636284345E-2,1,1,1,1,1,1,1,1,1,1,1,1]
[1000358676,42040.423484119347,2.3703583611812046E-2,2.3988444833309502E-2,2.4312868325497772E-2,2.4679158678515892E-2,2.5089593026932703E-2,2.5546423068041873E-2,2.6051876821798717E-2,2.660816017801328E-2,2.7217458266376001E-2,2.7881936677456511E-2,2.8603742557216191E-2,2.93850055932941E-2,1,1,1,1,1,1,1,1,1,1,1,1]
[1000358704,42040.423484119347,2.3640240748973831E-2,2.3881099833366174E-2,2.415141132526721E-2,2.4452596839706037E-2,2.4786054189911616E-2,2.515315915550605E-2,2.5555267028657284E-2,2.599371397628529E-2,2.6469818248300764E-2,2.6984881255773686E-2,2.7540188538302313E-2,2.8137010636284345E-2,1,1,1,1,1,1,1,1,1,1,1,1]
[1000358763,42040.423484119347,2.3640240748973831E-2,2.3881099833366174E-2,2.415141132526721E-2,2.4452596839706037E-2,2.4786054189911616E-2,2.515315915550605E-2,2.5555267028657284E-2,2.599371397628529E-2,2.6469818248300764E-2,2.6984881255773686E-2,2.7540188538302313E-2,2.8137010636284345E-2,1,1,1,1,1,1,1,1,1,1,1,1]
[1000358821,42040.423484119347,2.3640240748973831E-2,2.3881099833366174E-2,2.415141132526721E-2,2.4452596839706037E-2,2.4786054189911616E-2,2.515315915550605E-2,2.5555267028657284E-2,2.599371397628529E-2,2.6469818248300764E-2,2.6984881255773686E-2,2.7540188538302313E-2,2.8137010636284345E-2,1,1,1,1,1,1,1,1,1,1,1,1]
[1000358848,42040.423484119347,2.3427386615918821E-2,2.3640240748973831E-2,2.3881099833366174E-2,2.415141132526721E-2,2.4452596839706037E-2,2.4786054189911616E-2,2.515315915550605E-2,2.5555267028657284E-2,2.599371397628529E-2,2.6469818248300764E-2,2.6984881255773686E-2,2.7540188538302313E-2,1,1,1,1,1,1,1,1,1,1,1,1]
[1000358878,42040.423484119347,2.3640240748973831E-2,2.3881099833366174E-2,2.415141132526721E-2,2.4452596839706037E-2,2.4786054189911616E-2,2.515315915550605E-2,2.5555267028657284E-2,2.599371397628529E-2,2.6469818248300764E-2,2.6984881255773686E-2,2.7540188538302313E-2,2.8137010636284345E-2,1,1,1,1,1,1,1,1,1,1,1,1]
[1000358906,42040.423484119347,2.3640240748973831E-2,2.3881099833366174E-2,2.415141132526721E-2,2.4452596839706037E-2,2.4786054189911616E-2,2.515315915550605E-2,2.5555267028657284E-2,2.599371397628529E-2,2.6469818248300764E-2,2.6984881255773686E-2,2.7540188538302313E-2,2.8137010636284345E-2,1,1,1,1,1,1,1,1,1,1,1,1]
[1000358936,42040.423484119347,2.2650454135686799E-2,2.2692494995384282E-2,2.2740521710865682E-2,2.2794867241070788E-2,2.2855858178510231E-2,2.292381528510461E-2,2.2999053952325446E-2,2.3081884600156265E-2,2.3172613025954206E-2,2.3271540711807398E-2,2.337896509715235E-2,2.3495179822043338E-2,1,1,1,1,1,1,1,1,1,1,1,1]
[1000358963,42040.423484119347,2.3640240748973831E-2,2.3881099833366174E-2,2.415141132526721E-2,2.4452596839706037E-2,2.4786054189911616E-2,2.515315915550605E-2,2.5555267028657284E-2,2.599371397628529E-2,2.6469818248300764E-2,2.6984881255773686E-2,2.7540188538302313E-2,2.8137010636284345E-2,1,1,1,1,1,1,1,1,1,1,1,1]
[1000358993,42040.423484119347,2.3427386615918821E-2,2.3640240748973831E-2,2.3881099833366174E-2,2.415141132526721E-2,2.4452596839706037E-2,2.4786054189911616E-2,2.515315915550605E-2,2.5555267028657284E-2,2.599371397628529E-2,2.6469818248300764E-2,2.6984881255773686E-2,2.7540188538302313E-2,1,1,1,1,1,1,1,1,1,1,1,1]
[1000362022,42040.423484119347,2.3427386615918821E-2,2.3640240748973831E-2,2.3881099833366174E-2,2.415141132526721E-2,2.4452596839706037E-2,2.4786054189911616E-2,2.515315915550605E-2,2.5555267028657284E-2,2.599371397628529E-2,2.6469818248300764E-2,2.6984881255773686E-2,2.7540188538302313E-2,1,1,1,1,1,1,1,1,1,1,1,1]
[1000362081,42040.423484119347,2.3640240748973831E-2,2.3881099833366174E-2,2.415141132526721E-2,2.4452596839706037E-2,2.4786054189911616E-2,2.515315915550605E-2,2.5555267028657284E-2,2.599371397628529E-2,2.6469818248300764E-2,2.6984881255773686E-2,2.7540188538302313E-2,2.8137010636284345E-2,1,1,1,1,1,1,1,1,1,1,1,1]
[1000362111,42040.423484119347,2.3640240748973831E-2,2.3881099833366174E-2,2.415141132526721E-2,2.4452596839706037E-2,2.4786054189911616E-2,2.515315915550605E-2,2.5555267028657284E-2,2.599371397628529E-2,2.6469818248300764E-2,2.6984881255773686E-2,2.7540188538302313E-2,2.8137010636284345E-2,1,1,1,1,1,1,1,1,1,1,1,1]
[1000362141,42040.423484119347,2.3640240748973831E-2,2.3881099833366174E-2,2.415141132526721E-2,2.4452596839706037E-2,2.4786054189911616E-2,2.515315915550605E-2,2.5555267028657284E-2,2.599371397628529E-2,2.6469818248300764E-2,2.6984881255773686E-2,2.7540188538302313E-2,2.8137010636284345E-2,1,1,1,1,1,1,1,1,1,1,1,1]
[1000362166,42040.423484119347,2.3640240748973831E-2,2.3881099833366174E-2,2.415141132526721E-2,2.4452596839706037E-2,2.4786054189911616E-2,2.515315915550605E-2,2.5555267028657284E-2,2.599371397628529E-2,2.6469818248300764E-2,2.6984881255773686E-2,2.7540188538302313E-2,2.8137010636284345E-2,1,1,1,1,1,1,1,1,1,1,1,1]
[1000362199,42040.423484119347,2.3427386615918821E-2,2.3640240748973831E-2,2.3881099833366174E-2,2.415141132526721E-2,2.4452596839706037E-2,2.4786054189911616E-2,2.515315915550605E-2,2.5555267028657284E-2,2.599371397628529E-2,2.6469818248300764E-2,2.6984881255773686E-2,2.7540188538302313E-2,1,1,1,1,1,1,1,1,1,1,1,1]
[1000362227,42040.423484119347,2.3427386615918821E-2,2.3640240748973831E-2,2.3881099833366174E-2,2.415141132526721E-2,2.4452596839706037E-2,2.4786054189911616E-2,2.515315915550605E-2,2.5555267028657284E-2,2.599371397628529E-2,2.6469818248300764E-2,2.6984881255773686E-2,2.7540188538302313E-2,1,1,1,1,1,1,1,1,1,1,1,1]
[1000362285,42040.423484119347,2.3640240748973831E-2,2.3881099833366174E-2,2.415141132526721E-2,2.4452596839706037E-2,2.4786054189911616E-2,2.515315915550605E-2,2.5555267028657284E-2,2.599371397628529E-2,2.6469818248300764E-2,2.6984881255773686E-2,2.7540188538302313E-2,2.8137010636284345E-2,1,1,1,1,1,1,1,1,1,1,1,1]
[1000362316,42040.423484119347,2.3427386615918821E-2,2.3640240748973831E-2,2.3881099833366174E-2,2.415141132526721E-2,2.4452596839706037E-2,2.4786054189911616E-2,2.515315915550605E-2,2.5555267028657284E-2,2.599371397628529E-2,2.6469818248300764E-2,2.6984881255773686E-2,2.7540188538302313E-2,1,1,1,1,1,1,1,1,1,1,1,1]
[1000362345,42040.423484119347,2.3640240748973831E-2,2.3881099833366174E-2,2.415141132526721E-2,2.4452596839706037E-2,2.4786054189911616E-2,2.515315915550605E-2,2.5555267028657284E-2,2.599371397628529E-2,2.6469818248300764E-2,2.6984881255773686E-2,2.7540188538302313E-2,2.8137010636284345E-2,1,1,1,1,1,1,1,1,1,1,1,1]
[1000362379,42040.423484119347,2.3427386615918821E-2,2.3640240748973831E-2,2.3881099833366174E-2,2.415141132526721E-2,2.4452596839706037E-2,2.4786054189911616E-2,2.515315915550605E-2,2.5555267028657284E-2,2.599371397628529E-2,2.6469818248300764E-2,2.6984881255773686E-2,2.7540188538302313E-2,1,1,1,1,1,1,1,1,1,1,1,1]
[1000362439,42040.423484119347,2.3427386615918821E-2,2.3640240748973831E-2,2.3881099833366174E-2,2.415141132526721E-2,2.4452596839706037E-2,2.4786054189911616E-2,2.515315915550605E-2,2.5555267028657284E-2,2.599371397628529E-2,2.6469818248300764E-2,2.6984881255773686E-2,2.7540188538302313E-2,1,1,1,1,1,1,1,1,1,1,1,1]
[1000362467,42040.423484119347,2.3640240748973831E-2,2.3881099833366174E-2,2.415141132526721E-2,2.4452596839706037E-2,2.4786054189911616E-2,2.515315915550605E-2,2.5555267028657284E-2,2.599371397628529E-2,2.6469818248300764E-2,2.6984881255773686E-2,2.7540188538302313E-2,2.8137010636284345E-2,1,1,1,1,1,1,1,1,1,1,1,1]
[1000362497,42040.423484119347,2.3241061762051596E-2,2.3427386615918821E-2,2.3640240748973831E-2,2.3881099833366174E-2,2.415141132526721E-2,2.4452596839706037E-2,2.4786054189911616E-2,2.515315915550605E-2,2.5555267028657284E-2,2.599371397628529E-2,2.6469818248300764E-2,2.6984881255773686E-2,1,1,1,1,1,1,1,1,1,1,1,1]
[1000362528,42040.423484119347,2.3241061762051596E-2,2.3427386615918821E-2,2.3640240748973831E-2,2.3881099833366174E-2,2.415141132526721E-2,2.4452596839706037E-2,2.4786054189911616E-2,2.515315915550605E-2,2.5555267028657284E-2,2.599371397628529E-2,2.6469818248300764E-2,2.6984881255773686E-2,1,1,1,1,1,1,1,1,1,1,1,1]
[1000362556,42040.423484119347,2.3241061762051596E-2,2.3427386615918821E-2,2.3640240748973831E-2,2.3881099833366174E-2,2.415141132526721E-2,2.4452596839706037E-2,2.4786054189911616E-2,2.515315915550605E-2,2.5555267028657284E-2,2.599371397628529E-2,2.6469818248300764E-2,2.6984881255773686E-2,1,1,1,1,1,1,1,1,1,1,1,1]
[1000362587,42040.423484119347,2.3241061762051596E-2,2.3427386615918821E-2,2.3640240748973831E-2,2.3881099833366174E-2,2.415141132526721E-2,2.4452596839706037E-2,2.4786054189911616E-2,2.515315915550605E-2,2.5555267028657284E-2,2.599371397628529E-2,2.6469818248300764E-2,2.6984881255773686E-2,1,1,1,1,1,1,1,1,1,1,1,1]
[1000362618,42040.423484119347,2.3241061762051596E-2,2.3427386615918821E-2,2.3640240748973831E-2,2.3881099833366174E-2,2.415141132526721E-2,2.4452596839706037E-2,2.4786054189911616E-2,2.515315915550605E-2,2.5555267028657284E-2,2.599371397628529E-2,2.6469818248300764E-2,2.6984881255773686E-2,1,1,1,1,1,1,1,1,1,1,1,1]
[1000362675,42040.423484119347,2.3079759503028902E-2,2.3241061762051596E-2,2.3427386615918821E-2,2.3640240748973831E-2,2.3881099833366174E-2,2.415141132526721E-2,2.4452596839706037E-2,2.4786054189911616E-2,2.515315915550605E-2,2.5555267028657284E-2,2.599371397628529E-2,2.6469818248300764E-2,1,1,1,1,1,1,1,1,1,1,1,1]
[1000362711,42040.423484119347,2.3455950279219338E-2,2.3703583611812046E-2,2.3988444833309502E-2,2.4312868325497772E-2,2.4679158678515892E-2,2.5089593026932703E-2,2.5546423068041873E-2,2.6051876821798717E-2,2.660816017801328E-2,2.7217458266376001E-2,2.7881936677456511E-2,2.8603742557216191E-2,1,1,1,1,1,1,1,1,1,1,1,1]
[1000362743,42040.423484119347,2.3703583611812046E-2,2.3988444833309502E-2,2.4312868325497772E-2,2.4679158678515892E-2,2.5089593026932703E-2,2.5546423068041873E-2,2.6051876821798717E-2,2.660816017801328E-2,2.7217458266376001E-2,2.7881936677456511E-2,2.8603742557216191E-2,2.93850055932941E-2,1,1,1,1,1,1,1,1,1,1,1,1]
[1000362772,42040.423484119347,2.3241061762051596E-2,2.3427386615918821E-2,2.3640240748973831E-2,2.3881099833366174E-2,2.415141132526721E-2,2.4452596839706037E-2,2.4786054189911616E-2,2.515315915550605E-2,2.5555267028657284E-2,2.599371397628529E-2,2.6469818248300764E-2,2.6984881255773686E-2,1,1,1,1,1,1,1,1,1,1,1,1]
[1000362807,42040.423484119347,2.3241061762051596E-2,2.3427386615918821E-2,2.3640240748973831E-2,2.3881099833366174E-2,2.415141132526721E-2,2.4452596839706037E-2,2.4786054189911616E-2,2.515315915550605E-2,2.5555267028657284E-2,2.599371397628529E-2,2.6469818248300764E-2,2.6984881255773686E-2,1,1,1,1,1,1,1,1,1,1,1,1]
[1000362836,42040.423484119347,2.3241061762051596E-2,2.3427386615918821E-2,2.3640240748973831E-2,2.3881099833366174E-2,2.415141132526721E-2,2.4452596839706037E-2,2.4786054189911616E-2,2.515315915550605E-2,2.5555267028657284E-2,2.599371397628529E-2,2.6469818248300764E-2,2.6984881255773686E-2,1,1,1,1,1,1,1,1,1,1,1,1]
[1000362870,42040.423484119347,2.3241061762051596E-2,2.3427386615918821E-2,2.3640240748973831E-2,2.3881099833366174E-2,2.415141132526721E-2,2.4452596839706037E-2,2.4786054189911616E-2,2.515315915550605E-2,2.5555267028657284E-2,2.599371397628529E-2,2.6469818248300764E-2,2.6984881255773686E-2,1,1,1,1,1,1,1,1,1,1,1,1]
[1000362899,42040.423484119347,2.3427386615918821E-2,2.3640240748973831E-2,2.3881099833366174E-2,2.415141132526721E-2,2.4452596839706037E-2,2.4786054189911616E-2,2.515315915550605E-2,2.5555267028657284E-2,2.599371397628529E-2,2.6469818248300764E-2,2.6984881255773686E-2,2.7540188538302313E-2,1,1,1,1,1,1,1,1,1,1,1,1]
[1000362927,42040.423484119347,2.3703583611812046E-2,2.3988444833309502E-2,2.4312868325497772E-2,2.4679158678515892E-2,2.5089593026932703E-2,2.5546423068041873E-2,2.6051876821798717E-2,2.660816017801328E-2,2.7217458266376001E-2,2.7881936677456511E-2,2.8603742557216191E-2,2.93850055932941E-2,1,1,1,1,1,1,1,1,1,1,1,1]
[1000362965,42040.423484119347,2.3455950279219338E-2,2.3703583611812046E-2,2.3988444833309502E-2,2.4312868325497772E-2,2.4679158678515892E-2,2.5089593026932703E-2,2.5546423068041873E-2,2.6051876821798717E-2,2.660816017801328E-2,2.7217458266376001E-2,2.7881936677456511E-2,2.8603742557216191E-2,1,1,1,1,1,1,1,1,1,1,1,1]
[1000362998,42040.423484119347,2.3079759503028902E-2,2.3241061762051596E-2,2.3427386615918821E-2,2.3640240748973831E-2,2.3881099833366174E-2,2.415141132526721E-2,2.4452596839706037E-2,2.4786054189911616E-2,2.515315915550605E-2,2.5555267028657284E-2,2.599371397628529E-2,2.6469818248300764E-2,1,1,1,1,1,1,1,1,1,1,1,1]
[1000366027,42040.423484119347,2.3241061762051596E-2,2.3427386615918821E-2,2.3640240748973831E-2,2.3881099833366174E-2,2.415141132526721E-2,2.4452596839706037E-2,2.4786054189911616E-2,2.515315915550605E-2,2.5555267028657284E-2,2.599371397628529E-2,2.6469818248300764E-2,2.6984881255773686E-2,1,1,1,1,1,1,1,1,1,1,1,1]
[1000366060,42040.423484119347,2.3079759503028902E-2,2.3241061762051596E-2,2.3427386615918821E-2,2.3640240748973831E-2,2.3881099833366174E-2,2.415141132526721E-2,2.4452596839706037E-2,2.4786054189911616E-2,2.515315915550605E-2,2.5555267028657284E-2,2.599371397628529E-2,2.6469818248300764E-2,1,1,1,1,1,1,1,1,1,1,1,1]
[1000366091,42040.423484119347,2.3455950279219338E-2,2.3703583611812046E-2,2.3988444833309502E-2,2.4312868325497772E-2,2.4679158678515892E-2,2.5089593026932703E-2,2.5546423068041873E-2,2.6051876821798717E-2,2.660816017801328E-2,2.7217458266376001E-2,2.7881936677456511E-2,2.8603742557216191E-2,1,1,1,1,1,1,1,1,1,1,1,1]
[1000366122,42040.423484119347,2.3241061762051596E-2,2.3427386615918821E-2,2.3640240748973831E-2,2.3881099833366174E-2,2.415141132526721E-2,2.4452596839706037E-2,2.4786054189911616E-2,2.515315915550605E-2,2.5555267028657284E-2,2.599371397628529E-2,2.6469818248300764E-2,2.6984881255773686E-2,1,1,1,1,1,1,1,1,1,1,1,1]
[1000366153,42040.423484119347,2.3079759503028902E-2,2.3241061762051596E-2,2.3427386615918821E-2,2.3640240748973831E-2,2.3881099833366174E-2,2.415141132526721E-2,2.4452596839706037E-2,2.4786054189911616E-2,2.515315915550605E-2,2.5555267028657284E-2,2.599371397628529E-2,2.6469818248300764E-2,1,1,1,1,1,1,1,1,1,1,1,1]
[1000366184,42040.423484119347,2.3243177929410858E-2,2.3455950279219338E-2,2.3703583611812046E-2,2.3988444833309502E-2,2.4312868325497772E-2,2.4679158678515892E-2,2.5089593026932703E-2,2.5546423068041873E-2,2.6051876821798717E-2,2.660816017801328E-2,2.7217458266376001E-2,2.7881936677456511E-2,1,1,1,1,1,1,1,1,1,1,1,1]
[1000366216,42040.423484119347,2.3079759503028902E-2,2.3241061762051596E-2,2.3427386615918821E-2,2.3640240748973831E-2,2.3881099833366174E-2,2.415141132526721E-2,2.4452596839706037E-2,2.4786054189911616E-2,2.515315915550605E-2,2.5555267028657284E-2,2.599371397628529E-2,2.6469818248300764E-2,1,1,1,1,1,1,1,1,1,1,1,1]
[1000366244,42040.423484119347,2.3241061762051596E-2,2.3427386615918821E-2,2.3640240748973831E-2,2.3881099833366174E-2,2.415141132526721E-2,2.4452596839706037E-2,2.4786054189911616E-2,2.515315915550605E-2,2.5555267028657284E-2,2.599371397628529E-2,2.6469818248300764E-2,2.6984881255773686E-2,1,1,1,1,1,1,1,1,1,1,1,1]
[1000366397,42040.423484119347,0.15161827824896043,0.15809314713404285,0.16477753643175783,0.17167462427475003,0.17878758415050608,0.18611958498291584,0.19367379121113124,0.20145336286585105,0.20946145564315588,0.21770122097600572,0.22617580610351035,0.23488835413807113,1,1,1,2,2,2,2,2,2,2,2,2]
[1000366483,42040.423484119347,7.6179135404964515E-2,7.8790589100653188E-2,8.1481122606103781E-2,8.4251729320893157E-2,8.7103398112946887E-2,9.003711341424292E-2,9.3053855312960412E-2,9.6154599642261987E-2,9.9340318065883282E-2,0.10261197816069247,0.10597054349637275,0.10941697371236876,1,1,1,1,1,1,1,1,1,1,1,1]
[1000366599,42040.423484119347,7.4190787036180608E-2,7.7223060249411724E-2,8.036777555368689E-2,8.3626774923841435E-2,8.7001893863165827E-2,9.0494961549979172E-2,9.4107800978183415E-2,9.784222909215208E-2,0.10170005691628047,0.1056830896795007,0.10979312693504122,0.1140319626756922,1,1,1,1,1,1,1,1,1,1,1,1]
[1000366630,42040.423484119347,0.12520626542678015,0.13159409976489814,0.13824076536313762,0.14515136566886555,0.15233100272851322,0.15978477721489787,0.16751778845350573,0.17553513444779395,0.18384191190356705,0.19244321625247543,0.2013441416746839,0.21054978112075265,1,1,1,1,1,1,2,2,2,2,2,2]
[1000366661,42040.423484119347,0.13824076536313762,0.14515136566886555,0.15233100272851322,0.15978477721489787,0.16751778845350573,0.17553513444779395,0.18384191190356705,0.19244321625247543,0.2013441416746839,0.21054978112075265,0.22006522633277167,0.22989556786478541,1,1,1,1,2,2,2,2,2,2,2,2]
[1000366782,42040.423484119347,9.0494961549979172E-2,9.4107800978183415E-2,9.784222909215208E-2,0.10170005691628047,0.1056830896795007,0.10979312693504122,0.1140319626756922,0.11840138544481792,0.12290317844334135,0.12753911963291148,0.13231098183544757,0.13722053282924424,1,1,1,1,1,1,1,1,1,1,1,1]
[1000366876,42040.423484119347,4.7354140432961829E-2,4.8965586034097661E-2,5.0641663919683035E-2,5.2383443564538702E-2,5.4191988050999146E-2,5.6068354244906318E-2,5.8013592963124833E-2,6.0028749133154556E-2,6.2114861945366917E-2,6.4272964998346227E-2,6.6504086437777207E-2,6.8809249089283556E-2,1,1,1,1,1,1,1,1,1,1,1,1]
[1000366906,42040.423484119347,5.8254425624863992E-2,6.0651110343739212E-2,6.314904033161732E-2,6.5750099860526226E-2,6.8456165701105562E-2,7.1269107314636759E-2,7.4190787036180608E-2,7.7223060249411724E-2,8.036777555368689E-2,8.3626774923841435E-2,8.7001893863165827E-2,9.0494961549979172E-2,1,1,1,1,1,1,1,1,1,1,1,1]
[1000367691,42040.423484119347,2.3640240748973831E-2,2.3881099833366174E-2,2.415141132526721E-2,2.4452596839706037E-2,2.4786054189911616E-2,2.515315915550605E-2,2.5555267028657284E-2,2.599371397628529E-2,2.6469818248300764E-2,2.6984881255773686E-2,2.7540188538302313E-2,2.8137010636284345E-2,1,1,1,1,1,1,1,1,1,1,1,1]
[1000367704,42040.423484119347,2.3640240748973831E-2,2.3881099833366174E-2,2.415141132526721E-2,2.4452596839706037E-2,2.4786054189911616E-2,2.515315915550605E-2,2.5555267028657284E-2,2.599371397628529E-2,2.6469818248300764E-2,2.6984881255773686E-2,2.7540188538302313E-2,2.8137010636284345E-2,1,1,1,1,1,1,1,1,1,1,1,1]
[1000370022,42040.423484119347,4.1533056992794047E-2,4.2896802744129284E-2,4.4320835101887002E-2,4.5806251063863379E-2,4.7354140432961829E-2,4.8965586034097661E-2,5.0641663919683035E-2,5.2383443564538702E-2,5.4191988050999146E-2,5.6068354244906318E-2,5.8013592963124833E-2,6.0028749133154556E-2,1,1,1,1,1,1,1,1,1,1,1,1]
[1000370112,42040.423484119347,0.11318666956505986,0.11907215747205882,0.12520626542678015,0.13159409976489814,0.13824076536313762,0.14515136566886555,0.15233100272851322,0.15978477721489787,0.16751778845350573,0.17553513444779395,0.18384191190356705,0.19244321625247543,1,1,1,1,1,1,1,1,2,2,2,2]
[1000370140,42040.423484119347,7.1269107314636759E-2,7.4190787036180608E-2,7.7223060249411724E-2,8.036777555368689E-2,8.3626774923841435E-2,8.7001893863165827E-2,9.0494961549979172E-2,9.4107800978183415E-2,9.784222909215208E-2,0.10170005691628047,0.1056830896795007,0.10979312693504122,1,1,1,1,1,1,1,1,1,1,1,1]
[1000370197,42040.423484119347,0.10979312693504122,0.1140319626756922,0.11840138544481792,0.12290317844334135,0.12753911963291148,0.13231098183544757,0.13722053282924424,0.14226953544180726,0.14745974763958006,0.15279292261471084,0.158270808869,0.16389515029516008,1,1,1,1,1,1,1,1,1,1,1,1]
[1000370256,42040.423484119347,9.4107800978183415E-2,9.784222909215208E-2,0.10170005691628047,0.1056830896795007,0.10979312693504122,0.1140319626756922,0.11840138544481792,0.12290317844334135,0.12753911963291148,0.13231098183544757,0.13722053282924424,0.14226953544180726,1,1,1,1,1,1,1,1,1,1,1,1]
[1000370289,42040.423484119347,0.12775027678978407,0.13341894127207971,0.13928436545090087,0.14534974691430244,0.15161827824896043,0.15809314713404285,0.16477753643175783,0.17167462427475003,0.17878758415050608,0.18611958498291584,0.19367379121113124,0.20145336286585105,1,1,1,1,1,1,1,2,2,2,2,2]
[1000370319,42040.423484119347,0.11699041096769337,0.12227516931720378,0.12775027678978407,0.13341894127207971,0.13928436545090087,0.14534974691430244,0.15161827824896043,0.15809314713404285,0.16477753643175783,0.17167462427475003,0.17878758415050608,0.18611958498291584,1,1,1,1,1,1,1,1,1,2,2,2]
[1000370381,42040.423484119347,8.7103398112946887E-2,9.003711341424292E-2,9.3053855312960412E-2,9.6154599642261987E-2,9.9340318065883282E-2,0.10261197816069247,0.10597054349637275,0.10941697371236876,0.11295222459223164,0.11657724813548644,0.12029299262713986,0.124100402704938,1,1,1,1,1,1,1,1,1,1,1,1]
[1000370592,42040.423484119347,0.16751778845350573,0.17553513444779395,0.18384191190356705,0.19244321625247543,0.2013441416746839,0.21054978112075265,0.22006522633277167,0.22989556786478541,0.24004589510254248,0.25052129628260461,0.2613268585108437,0.27246766778035758,2,2,2,2,2,2,2,2,2,2,2,2]
[1000370708,42040.423484119347,8.2808616441393201E-2,8.7309702871566294E-2,9.2028738873173935E-2,9.6970840232567704E-2,0.10214112107046183,0.1075446938803262,0.11318666956505986,0.11907215747205882,0.12520626542678015,0.13159409976489814,0.13824076536313762,0.14515136566886555,1,1,1,1,1,1,1,1,1,1,1,1]
[1000370828,42040.423484119347,0.19244321625247543,0.2013441416746839,0.21054978112075265,0.22006522633277167,0.22989556786478541,0.24004589510254248,0.25052129628260461,0.2613268585108437,0.27246766778035758,0.28394880898883024,0.29577536595536158,0.30795242143679252,2,2,2,2,2,2,2,2,2,2,2,2]
[1000370886,42040.423484119347,0.13928436545090087,0.14534974691430244,0.15161827824896043,0.15809314713404285,0.16477753643175783,0.17167462427475003,0.17878758415050608,0.18611958498291584,0.19367379121113124,0.20145336286585105,0.20946145564315588,0.21770122097600572,1,1,1,1,1,2,2,2,2,2,2,2]
[1000374033,42040.423484119347,7.1189470585590178E-2,7.3645763488351765E-2,7.6179135404964515E-2,7.8790589100653188E-2,8.1481122606103781E-2,8.4251729320893157E-2,8.7103398112946887E-2,9.003711341424292E-2,9.3053855312960412E-2,9.6154599642261987E-2,9.9340318065883282E-2,0.10261197816069247,1,1,1,1,1,1,1,1,1,1,1,1]
[1000374059,42040.423484119347,9.4107800978183415E-2,9.784222909215208E-2,0.10170005691628047,0.1056830896795007,0.10979312693504122,0.1140319626756922,0.11840138544481792,0.12290317844334135,0.12753911963291148,0.13231098183544757,0.13722053282924424,0.14226953544180726,1,1,1,1,1,1,1,1,1,1,1,1]
[1000374121,42040.423484119347,7.7223060249411724E-2,8.036777555368689E-2,8.3626774923841435E-2,8.7001893863165827E-2,9.0494961549979172E-2,9.4107800978183415E-2,9.784222909215208E-2,0.10170005691628047,0.1056830896795007,0.10979312693504122,0.1140319626756922,0.11840138544481792,1,1,1,1,1,1,1,1,1,1,1,1]
[1000374180,42040.423484119347,0.12775027678978407,0.13341894127207971,0.13928436545090087,0.14534974691430244,0.15161827824896043,0.15809314713404285,0.16477753643175783,0.17167462427475003,0.17878758415050608,0.18611958498291584,0.19367379121113124,0.20145336286585105,1,1,1,1,1,1,1,2,2,2,2,2]
[1000374211,42040.423484119347,6.6504086437777207E-2,6.8809249089283556E-2,7.1189470585590178E-2,7.3645763488351765E-2,7.6179135404964515E-2,7.8790589100653188E-2,8.1481122606103781E-2,8.4251729320893157E-2,8.7103398112946887E-2,9.003711341424292E-2,9.3053855312960412E-2,9.6154599642261987E-2,1,1,1,1,1,1,1,1,1,1,1,1]
[1000374241,42040.423484119347,8.036777555368689E-2,8.3626774923841435E-2,8.7001893863165827E-2,9.0494961549979172E-2,9.4107800978183415E-2,9.784222909215208E-2,0.10170005691628047,0.1056830896795007,0.10979312693504122,0.1140319626756922,0.11840138544481792,0.12290317844334135,1,1,1,1,1,1,1,1,1,1,1,1]
[1000374449,42040.423484119347,0.13824076536313762,0.14515136566886555,0.15233100272851322,0.15978477721489787,0.16751778845350573,0.17553513444779395,0.18384191190356705,0.19244321625247543,0.2013441416746839,0.21054978112075265,0.22006522633277167,0.22989556786478541,1,1,1,1,2,2,2,2,2,2,2,2]
[1000374873,42040.423484119347,0.17167462427475003,0.17878758415050608,0.18611958498291584,0.19367379121113124,0.20145336286585105,0.20946145564315588,0.21770122097600572,0.22617580610351035,0.23488835413807113,0.24384200413049176,0.25303989113314596,0.26248514626128744,2,2,2,2,2,2,2,2,2,2,2,2]
[1000375968,42040.423484119347,2.3881099833366174E-2,2.415141132526721E-2,2.4452596839706037E-2,2.4786054189911616E-2,2.515315915550605E-2,2.5555267028657284E-2,2.599371397628529E-2,2.6469818248300764E-2,2.6984881255773686E-2,2.7540188538302313E-2,2.8137010636284345E-2,2.8776603881005634E-2,1,1,1,1,1,1,1,1,1,1,1,1]
[1000375980,42040.423484119347,2.3881099833366174E-2,2.415141132526721E-2,2.4452596839706037E-2,2.4786054189911616E-2,2.515315915550605E-2,2.5555267028657284E-2,2.599371397628529E-2,2.6469818248300764E-2,2.6984881255773686E-2,2.7540188538302313E-2,2.8137010636284345E-2,2.8776603881005634E-2,1,1,1,1,1,1,1,1,1,1,1,1]
[1000390269,42040.423484119347,2.3427386615918821E-2,2.3640240748973831E-2,2.3881099833366174E-2,2.415141132526721E-2,2.4452596839706037E-2,2.4786054189911616E-2,2.515315915550605E-2,2.5555267028657284E-2,2.599371397628529E-2,2.6469818248300764E-2,2.6984881255773686E-2,2.7540188538302313E-2,1,1,1,1,1,1,1,1,1,1,1,1]
[1000391949,42040.423484119347,0.10261197816069247,0.10597054349637275,0.10941697371236876,0.11295222459223164,0.11657724813548644,0.12029299262713986,0.124100402704938,0.12800041942447762,0.13199398032226836,0.13608201947683729,0.14026546756796238,0.14454525193411655,1,1,1,1,1,1,1,1,1,1,1,1]
[1000395044,42040.423484119347,0.13722053282924424,0.14226953544180726,0.14745974763958006,0.15279292261471084,0.158270808869,0.16389515029516008,0.16966768625551185,0.17559015165823252,0.18166427703126628,0.18789178859399927,0.1942744083267976,0.20081385403849872,1,1,1,1,1,1,2,2,2,2,2,2]
[1000395120,42040.423484119347,0.15809314713404285,0.16477753643175783,0.17167462427475003,0.17878758415050608,0.18611958498291584,0.19367379121113124,0.20145336286585105,0.20946145564315588,0.21770122097600572,0.22617580610351035,0.23488835413807113,0.24384200413049176,1,1,2,2,2,2,2,2,2,2,2,2]
[1000395215,42040.423484119347,7.3645763488351765E-2,7.6179135404964515E-2,7.8790589100653188E-2,8.1481122606103781E-2,8.4251729320893157E-2,8.7103398112946887E-2,9.003711341424292E-2,9.3053855312960412E-2,9.6154599642261987E-2,9.9340318065883282E-2,0.10261197816069247,0.10597054349637275,1,1,1,1,1,1,1,1,1,1,1,1]
[1000395235,42040.423484119347,0.13341894127207971,0.13928436545090087,0.14534974691430244,0.15161827824896043,0.15809314713404285,0.16477753643175783,0.17167462427475003,0.17878758415050608,0.18611958498291584,0.19367379121113124,0.20145336286585105,0.20946145564315588,1,1,1,1,1,1,2,2,2,2,2,2]
[1000395352,42040.423484119347,2.8137010636284345E-2,2.8776603881005634E-2,2.9460211113261529E-2,3.0189062339470676E-2,3.0964375332828167E-2,3.1787356185896419E-2,3.2659199820093243E-2,3.3581090456760908E-2,3.4554202053856835E-2,3.5579698711768699E-2,3.6658735051304625E-2,3.7792456566526869E-2,1,1,1,1,1,1,1,1,1,1,1,1]
[1000395372,42040.423484119347,2.8776603881005634E-2,2.9460211113261529E-2,3.0189062339470676E-2,3.0964375332828167E-2,3.1787356185896419E-2,3.2659199820093243E-2,3.3581090456760908E-2,3.4554202053856835E-2,3.5579698711768699E-2,3.6658735051304625E-2,3.7792456566526869E-2,3.898199995477291E-2,1,1,1,1,1,1,1,1,1,1,1,1]
[1000395408,42040.423484119347,2.415141132526721E-2,2.4452596839706037E-2,2.4786054189911616E-2,2.515315915550605E-2,2.5555267028657284E-2,2.599371397628529E-2,2.6469818248300764E-2,2.6984881255773686E-2,2.7540188538302313E-2,2.8137010636284345E-2,2.8776603881005634E-2,2.9460211113261529E-2,1,1,1,1,1,1,1,1,1,1,1,1]
[1000395428,42040.423484119347,2.415141132526721E-2,2.4452596839706037E-2,2.4786054189911616E-2,2.515315915550605E-2,2.5555267028657284E-2,2.599371397628529E-2,2.6469818248300764E-2,2.6984881255773686E-2,2.7540188538302313E-2,2.8137010636284345E-2,2.8776603881005634E-2,2.9460211113261529E-2,1,1,1,1,1,1,1,1,1,1,1,1]
[1000395446,42040.423484119347,2.415141132526721E-2,2.4452596839706037E-2,2.4786054189911616E-2,2.515315915550605E-2,2.5555267028657284E-2,2.599371397628529E-2,2.6469818248300764E-2,2.6984881255773686E-2,2.7540188538302313E-2,2.8137010636284345E-2,2.8776603881005634E-2,2.9460211113261529E-2,1,1,1,1,1,1,1,1,1,1,1,1]
[1000395463,42040.423484119347,2.3881099833366174E-2,2.415141132526721E-2,2.4452596839706037E-2,2.4786054189911616E-2,2.515315915550605E-2,2.5555267028657284E-2,2.599371397628529E-2,2.6469818248300764E-2,2.6984881255773686E-2,2.7540188538302313E-2,2.8137010636284345E-2,2.8776603881005634E-2,1,1,1,1,1,1,1,1,1,1,1,1]
[1000395483,42040.423484119347,2.3881099833366174E-2,2.415141132526721E-2,2.4452596839706037E-2,2.4786054189911616E-2,2.515315915550605E-2,2.5555267028657284E-2,2.599371397628529E-2,2.6469818248300764E-2,2.6984881255773686E-2,2.7540188538302313E-2,2.8137010636284345E-2,2.8776603881005634E-2,1,1,1,1,1,1,1,1,1,1,1,1]
[1000395500,42040.423484119347,2.3881099833366174E-2,2.415141132526721E-2,2.4452596839706037E-2,2.4786054189911616E-2,2.515315915550605E-2,2.5555267028657284E-2,2.599371397628529E-2,2.6469818248300764E-2,2.6984881255773686E-2,2.7540188538302313E-2,2.8137010636284345E-2,2.8776603881005634E-2,1,1,1,1,1,1,1,1,1,1,1,1]
[1000395521,42040.423484119347,2.3881099833366174E-2,2.415141132526721E-2,2.4452596839706037E-2,2.4786054189911616E-2,2.515315915550605E-2,2.5555267028657284E-2,2.599371397628529E-2,2.6469818248300764E-2,2.6984881255773686E-2,2.7540188538302313E-2,2.8137010636284345E-2,2.8776603881005634E-2,1,1,1,1,1,1,1,1,1,1,1,1]
[1000395538,42040.423484119347,2.3241061762051596E-2,2.3427386615918821E-2,2.3640240748973831E-2,2.3881099833366174E-2,2.415141132526721E-2,2.4452596839706037E-2,2.4786054189911616E-2,2.515315915550605E-2,2.5555267028657284E-2,2.599371397628529E-2,2.6469818248300764E-2,2.6984881255773686E-2,1,1,1,1,1,1,1,1,1,1,1,1]
[1000395577,42040.423484119347,2.2650454135686799E-2,2.2692494995384282E-2,2.2740521710865682E-2,2.2794867241070788E-2,2.2855858178510231E-2,2.292381528510461E-2,2.2999053952325446E-2,2.3081884600156265E-2,2.3172613025954206E-2,2.3271540711807398E-2,2.337896509715235E-2,2.3495179822043338E-2,1,1,1,1,1,1,1,1,1,1,1,1]
[1000395597,42040.423484119347,2.3427386615918821E-2,2.3640240748973831E-2,2.3881099833366174E-2,2.415141132526721E-2,2.4452596839706037E-2,2.4786054189911616E-2,2.515315915550605E-2,2.5555267028657284E-2,2.599371397628529E-2,2.6469818248300764E-2,2.6984881255773686E-2,2.7540188538302313E-2,1,1,1,1,1,1,1,1,1,1,1,1]
[1000395616,42040.423484119347,2.3427386615918821E-2,2.3640240748973831E-2,2.3881099833366174E-2,2.415141132526721E-2,2.4452596839706037E-2,2.4786054189911616E-2,2.515315915550605E-2,2.5555267028657284E-2,2.599371397628529E-2,2.6469818248300764E-2,2.6984881255773686E-2,2.7540188538302313E-2,1,1,1,1,1,1,1,1,1,1,1,1]
[1000395639,42040.423484119347,2.3243177929410858E-2,2.3455950279219338E-2,2.3703583611812046E-2,2.3988444833309502E-2,2.4312868325497772E-2,2.4679158678515892E-2,2.5089593026932703E-2,2.5546423068041873E-2,2.6051876821798717E-2,2.660816017801328E-2,2.7217458266376001E-2,2.7881936677456511E-2,1,1,1,1,1,1,1,1,1,1,1,1]
[1000395669,42040.423484119347,2.3427386615918821E-2,2.3640240748973831E-2,2.3881099833366174E-2,2.415141132526721E-2,2.4452596839706037E-2,2.4786054189911616E-2,2.515315915550605E-2,2.5555267028657284E-2,2.599371397628529E-2,2.6469818248300764E-2,2.6984881255773686E-2,2.7540188538302313E-2,1,1,1,1,1,1,1,1,1,1,1,1]
[1000395733,42040.423484119347,2.3241061762051596E-2,2.3427386615918821E-2,2.3640240748973831E-2,2.3881099833366174E-2,2.415141132526721E-2,2.4452596839706037E-2,2.4786054189911616E-2,2.515315915550605E-2,2.5555267028657284E-2,2.599371397628529E-2,2.6469818248300764E-2,2.6984881255773686E-2,1,1,1,1,1,1,1,1,1,1,1,1]
[1000395763,42040.423484119347,2.3241061762051596E-2,2.3427386615918821E-2,2.3640240748973831E-2,2.3881099833366174E-2,2.415141132526721E-2,2.4452596839706037E-2,2.4786054189911616E-2,2.515315915550605E-2,2.5555267028657284E-2,2.599371397628529E-2,2.6469818248300764E-2,2.6984881255773686E-2,1,1,1,1,1,1,1,1,1,1,1,1]
[1000395789,42040.423484119347,2.3241061762051596E-2,2.3427386615918821E-2,2.3640240748973831E-2,2.3881099833366174E-2,2.415141132526721E-2,2.4452596839706037E-2,2.4786054189911616E-2,2.515315915550605E-2,2.5555267028657284E-2,2.599371397628529E-2,2.6469818248300764E-2,2.6984881255773686E-2,1,1,1,1,1,1,1,1,1,1,1,1]
[1000395818,42040.423484119347,2.3241061762051596E-2,2.3427386615918821E-2,2.3640240748973831E-2,2.3881099833366174E-2,2.415141132526721E-2,2.4452596839706037E-2,2.4786054189911616E-2,2.515315915550605E-2,2.5555267028657284E-2,2.599371397628529E-2,2.6469818248300764E-2,2.6984881255773686E-2,1,1,1,1,1,1,1,1,1,1,1,1]
[1000395877,42040.423484119347,2.3241061762051596E-2,2.3427386615918821E-2,2.3640240748973831E-2,2.3881099833366174E-2,2.415141132526721E-2,2.4452596839706037E-2,2.4786054189911616E-2,2.515315915550605E-2,2.5555267028657284E-2,2.599371397628529E-2,2.6469818248300764E-2,2.6984881255773686E-2,1,1,1,1,1,1,1,1,1,1,1,1]
[1000395930,42040.423484119347,2.3079759503028902E-2,2.3241061762051596E-2,2.3427386615918821E-2,2.3640240748973831E-2,2.3881099833366174E-2,2.415141132526721E-2,2.4452596839706037E-2,2.4786054189911616E-2,2.515315915550605E-2,2.5555267028657284E-2,2.599371397628529E-2,2.6469818248300764E-2,1,1,1,1,1,1,1,1,1,1,1,1]
[1000395955,42040.423484119347,2.3241061762051596E-2,2.3427386615918821E-2,2.3640240748973831E-2,2.3881099833366174E-2,2.415141132526721E-2,2.4452596839706037E-2,2.4786054189911616E-2,2.515315915550605E-2,2.5555267028657284E-2,2.599371397628529E-2,2.6469818248300764E-2,2.6984881255773686E-2,1,1,1,1,1,1,1,1,1,1,1,1]
[1000395984,42040.423484119347,2.3079759503028902E-2,2.3241061762051596E-2,2.3427386615918821E-2,2.3640240748973831E-2,2.3881099833366174E-2,2.415141132526721E-2,2.4452596839706037E-2,2.4786054189911616E-2,2.515315915550605E-2,2.5555267028657284E-2,2.599371397628529E-2,2.6469818248300764E-2,1,1,1,1,1,1,1,1,1,1,1,1]
[1000400013,42040.423484119347,2.3241061762051596E-2,2.3427386615918821E-2,2.3640240748973831E-2,2.3881099833366174E-2,2.415141132526721E-2,2.4452596839706037E-2,2.4786054189911616E-2,2.515315915550605E-2,2.5555267028657284E-2,2.599371397628529E-2,2.6469818248300764E-2,2.6984881255773686E-2,1,1,1,1,1,1,1,1,1,1,1,1]
[1000400036,42040.423484119347,2.3079759503028902E-2,2.3241061762051596E-2,2.3427386615918821E-2,2.3640240748973831E-2,2.3881099833366174E-2,2.415141132526721E-2,2.4452596839706037E-2,2.4786054189911616E-2,2.515315915550605E-2,2.5555267028657284E-2,2.599371397628529E-2,2.6469818248300764E-2,1,1,1,1,1,1,1,1,1,1,1,1]
[1000400062,42040.423484119347,2.3079759503028902E-2,2.3241061762051596E-2,2.3427386615918821E-2,2.3640240748973831E-2,2.3881099833366174E-2,2.415141132526721E-2,2.4452596839706037E-2,2.4786054189911616E-2,2.515315915550605E-2,2.5555267028657284E-2,2.599371397628529E-2,2.6469818248300764E-2,1,1,1,1,1,1,1,1,1,1,1,1]
[1000400113,42040.423484119347,2.3450450162919294E-2,2.3730673795121653E-2,2.4059269514849518E-2,2.4439895816579901E-2,2.4876186121054182E-2,2.5371750726894817E-2,2.5930178489891719E-2,2.6555038282698368E-2,2.724988027494063E-2,2.8018237064622923E-2,2.8863624685050441E-2,2.9789543506522055E-2,1,1,1,1,1,1,1,1,1,1,1,1]
[1000400141,42040.423484119347,2.3079759503028902E-2,2.3241061762051596E-2,2.3427386615918821E-2,2.3640240748973831E-2,2.3881099833366174E-2,2.415141132526721E-2,2.4452596839706037E-2,2.4786054189911616E-2,2.515315915550605E-2,2.5555267028657284E-2,2.599371397628529E-2,2.6469818248300764E-2,1,1,1,1,1,1,1,1,1,1,1,1]
[1000400168,42040.423484119347,2.3079759503028902E-2,2.3241061762051596E-2,2.3427386615918821E-2,2.3640240748973831E-2,2.3881099833366174E-2,2.415141132526721E-2,2.4452596839706037E-2,2.4786054189911616E-2,2.515315915550605E-2,2.5555267028657284E-2,2.599371397628529E-2,2.6469818248300764E-2,1,1,1,1,1,1,1,1,1,1,1,1]
[1000400193,42040.423484119347,2.3079759503028902E-2,2.3241061762051596E-2,2.3427386615918821E-2,2.3640240748973831E-2,2.3881099833366174E-2,2.415141132526721E-2,2.4452596839706037E-2,2.4786054189911616E-2,2.515315915550605E-2,2.5555267028657284E-2,2.599371397628529E-2,2.6469818248300764E-2,1,1,1,1,1,1,1,1,1,1,1,1]
[1000400222,42040.423484119347,2.3079759503028902E-2,2.3241061762051596E-2,2.3427386615918821E-2,2.3640240748973831E-2,2.3881099833366174E-2,2.415141132526721E-2,2.4452596839706037E-2,2.4786054189911616E-2,2.515315915550605E-2,2.5555267028657284E-2,2.599371397628529E-2,2.6469818248300764E-2,1,1,1,1,1,1,1,1,1,1,1,1]
[1000400253,42040.423484119347,2.3079759503028902E-2,2.3241061762051596E-2,2.3427386615918821E-2,2.3640240748973831E-2,2.3881099833366174E-2,2.415141132526721E-2,2.4452596839706037E-2,2.4786054189911616E-2,2.515315915550605E-2,2.5555267028657284E-2,2.599371397628529E-2,2.6469818248300764E-2,1,1,1,1,1,1,1,1,1,1,1,1]
[1000400282,42040.423484119347,2.3241061762051596E-2,2.3427386615918821E-2,2.3640240748973831E-2,2.3881099833366174E-2,2.415141132526721E-2,2.4452596839706037E-2,2.4786054189911616E-2,2.515315915550605E-2,2.5555267028657284E-2,2.599371397628529E-2,2.6469818248300764E-2,2.6984881255773686E-2,1,1,1,1,1,1,1,1,1,1,1,1]
[1000400309,42040.423484119347,2.3079759503028902E-2,2.3241061762051596E-2,2.3427386615918821E-2,2.3640240748973831E-2,2.3881099833366174E-2,2.415141132526721E-2,2.4452596839706037E-2,2.4786054189911616E-2,2.515315915550605E-2,2.5555267028657284E-2,2.599371397628529E-2,2.6469818248300764E-2,1,1,1,1,1,1,1,1,1,1,1,1]
[1000400338,42040.423484119347,2.288803858943958E-2,2.2997918635445903E-2,2.3124844219991943E-2,2.3269841705299513E-2,2.3433916327901965E-2,2.3618054103442636E-2,2.3823223444427007E-2,2.4050376549434555E-2,2.4300450607622363E-2,2.457436885197346E-2,2.487304148723965E-2,2.5197366513000804E-2,1,1,1,1,1,1,1,1,1,1,1,1]
[1000400470,42040.423484119347,8.5056273016654665E-2,8.9098868264309947E-2,9.3309202458642618E-2,9.769052307547689E-2,0.10224607155945335,0.10697908345801156,0.11189278854977745,0.11699041096769337,0.12227516931720378,0.12775027678978407,0.13341894127207971,0.13928436545090087,1,1,1,1,1,1,1,1,1,1,1,1]
[1000400498,42040.423484119347,5.2383443564538702E-2,5.4191988050999146E-2,5.6068354244906318E-2,5.8013592963124833E-2,6.0028749133154556E-2,6.2114861945366917E-2,6.4272964998346227E-2,6.6504086437777207E-2,6.8809249089283556E-2,7.1189470585590178E-2,7.3645763488351765E-2,7.6179135404964515E-2,1,1,1,1,1,1,1,1,1,1,1,1]
[1000400520,42040.423484119347,4.7354140432961829E-2,4.8965586034097661E-2,5.0641663919683035E-2,5.2383443564538702E-2,5.4191988050999146E-2,5.6068354244906318E-2,5.8013592963124833E-2,6.0028749133154556E-2,6.2114861945366917E-2,6.4272964998346227E-2,6.6504086437777207E-2,6.8809249089283556E-2,1,1,1,1,1,1,1,1,1,1,1,1]
[1000400548,42040.423484119347,8.1178163068722137E-2,8.5056273016654665E-2,8.9098868264309947E-2,9.3309202458642618E-2,9.769052307547689E-2,0.10224607155945335,0.10697908345801156,0.11189278854977745,0.11699041096769337,0.12227516931720378,0.12775027678978407,0.13341894127207971,1,1,1,1,1,1,1,1,1,1,1,1]
[1000400598,42040.423484119347,7.7461278456115126E-2,8.1178163068722137E-2,8.5056273016654665E-2,8.9098868264309947E-2,9.3309202458642618E-2,9.769052307547689E-2,0.10224607155945335,0.10697908345801156,0.11189278854977745,0.11699041096769337,0.12227516931720378,0.12775027678978407,1,1,1,1,1,1,1,1,1,1,1,1]
[1000400719,42040.423484119347,0.13722053282924424,0.14226953544180726,0.14745974763958006,0.15279292261471084,0.158270808869,0.16389515029516008,0.16966768625551185,0.17559015165823252,0.18166427703126628,0.18789178859399927,0.1942744083267976,0.20081385403849872,1,1,1,1,1,1,2,2,2,2,2,2]
[1000400757,42040.423484119347,0.17167462427475003,0.17878758415050608,0.18611958498291584,0.19367379121113124,0.20145336286585105,0.20946145564315588,0.21770122097600572,0.22617580610351035,0.23488835413807113,0.24384200413049176,0.25303989113314596,0.26248514626128744,2,2,2,2,2,2,2,2,2,2,2,2]
[1000400775,42040.423484119347,0.12290317844334135,0.12753911963291148,0.13231098183544757,0.13722053282924424,0.14226953544180726,0.14745974763958006,0.15279292261471084,0.158270808869,0.16389515029516008,0.16966768625551185,0.17559015165823252,0.18166427703126628,1,1,1,1,1,1,1,1,1,2,2,2]
[1000400898,42040.423484119347,8.2808616441393201E-2,8.7309702871566294E-2,9.2028738873173935E-2,9.6970840232567704E-2,0.10214112107046183,0.1075446938803262,0.11318666956505986,0.11907215747205882,0.12520626542678015,0.13159409976489814,0.13824076536313762,0.14515136566886555,1,1,1,1,1,1,1,1,1,1,1,1]
[1000400926,42040.423484119347,7.1269107314636759E-2,7.4190787036180608E-2,7.7223060249411724E-2,8.036777555368689E-2,8.3626774923841435E-2,8.7001893863165827E-2,9.0494961549979172E-2,9.4107800978183415E-2,9.784222909215208E-2,0.10170005691628047,0.1056830896795007,0.10979312693504122,1,1,1,1,1,1,1,1,1,1,1,1]
[1000400951,42040.423484119347,5.6068354244906318E-2,5.8013592963124833E-2,6.0028749133154556E-2,6.2114861945366917E-2,6.4272964998346227E-2,6.6504086437777207E-2,6.8809249089283556E-2,7.1189470585590178E-2,7.3645763488351765E-2,7.6179135404964515E-2,7.8790589100653188E-2,8.1481122606103781E-2,1,1,1,1,1,1,1,1,1,1,1,1]
[1000400977,42040.423484119347,7.6179135404964515E-2,7.8790589100653188E-2,8.1481122606103781E-2,8.4251729320893157E-2,8.7103398112946887E-2,9.003711341424292E-2,9.3053855312960412E-2,9.6154599642261987E-2,9.9340318065883282E-2,0.10261197816069247,0.10597054349637275,0.10941697371236876,1,1,1,1,1,1,1,1,1,1,1,1]
[1000404003,42040.423484119347,4.4320835101887002E-2,4.5806251063863379E-2,4.7354140432961829E-2,4.8965586034097661E-2,5.0641663919683035E-2,5.2383443564538702E-2,5.4191988050999146E-2,5.6068354244906318E-2,5.8013592963124833E-2,6.0028749133154556E-2,6.2114861945366917E-2,6.4272964998346227E-2,1,1,1,1,1,1,1,1,1,1,1,1]
[1000404028,42040.423484119347,4.4320835101887002E-2,4.5806251063863379E-2,4.7354140432961829E-2,4.8965586034097661E-2,5.0641663919683035E-2,5.2383443564538702E-2,5.4191988050999146E-2,5.6068354244906318E-2,5.8013592963124833E-2,6.0028749133154556E-2,6.2114861945366917E-2,6.4272964998346227E-2,1,1,1,1,1,1,1,1,1,1,1,1]
[1000404055,42040.423484119347,3.0189062339470676E-2,3.0964375332828167E-2,3.1787356185896419E-2,3.2659199820093243E-2,3.3581090456760908E-2,3.4554202053856835E-2,3.5579698711768699E-2,3.6658735051304625E-2,3.7792456566526869E-2,3.898199995477291E-2,4.0228493425930344E-2,4.1533056992794047E-2,1,1,1,1,1,1,1,1,1,1,1,1]
[1000404080,42040.423484119347,3.0189062339470676E-2,3.0964375332828167E-2,3.1787356185896419E-2,3.2659199820093243E-2,3.3581090456760908E-2,3.4554202053856835E-2,3.5579698711768699E-2,3.6658735051304625E-2,3.7792456566526869E-2,3.898199995477291E-2,4.0228493425930344E-2,4.1533056992794047E-2,1,1,1,1,1,1,1,1,1,1,1,1]
[1000404108,42040.423484119347,3.898199995477291E-2,4.0228493425930344E-2,4.1533056992794047E-2,4.2896802744129284E-2,4.4320835101887002E-2,4.5806251063863379E-2,4.7354140432961829E-2,4.8965586034097661E-2,5.0641663919683035E-2,5.2383443564538702E-2,5.4191988050999146E-2,5.6068354244906318E-2,1,1,1,1,1,1,1,1,1,1,1,1]
[1000404159,42040.423484119347,7.3645763488351765E-2,7.6179135404964515E-2,7.8790589100653188E-2,8.1481122606103781E-2,8.4251729320893157E-2,8.7103398112946887E-2,9.003711341424292E-2,9.3053855312960412E-2,9.6154599642261987E-2,9.9340318065883282E-2,0.10261197816069247,0.10597054349637275,1,1,1,1,1,1,1,1,1,1,1,1]
[1000404179,42040.423484119347,2.2826020260809286E-2,2.2941938807613079E-2,2.3079759503028902E-2,2.3241061762051596E-2,2.3427386615918821E-2,2.3640240748973831E-2,2.3881099833366174E-2,2.415141132526721E-2,2.4452596839706037E-2,2.4786054189911616E-2,2.515315915550605E-2,2.5555267028657284E-2,1,1,1,1,1,1,1,1,1,1,1,1]
[1000404301,42040.423484119347,6.2114861945366917E-2,6.4272964998346227E-2,6.6504086437777207E-2,6.8809249089283556E-2,7.1189470585590178E-2,7.3645763488351765E-2,7.6179135404964515E-2,7.8790589100653188E-2,8.1481122606103781E-2,8.4251729320893157E-2,8.7103398112946887E-2,9.003711341424292E-2,1,1,1,1,1,1,1,1,1,1,1,1]
[1000404323,42040.423484119347,6.2114861945366917E-2,6.4272964998346227E-2,6.6504086437777207E-2,6.8809249089283556E-2,7.1189470585590178E-2,7.3645763488351765E-2,7.6179135404964515E-2,7.8790589100653188E-2,8.1481122606103781E-2,8.4251729320893157E-2,8.7103398112946887E-2,9.003711341424292E-2,1,1,1,1,1,1,1,1,1,1,1,1]
[1000404408,42040.423484119347,0.13928436545090087,0.14534974691430244,0.15161827824896043,0.15809314713404285,0.16477753643175783,0.17167462427475003,0.17878758415050608,0.18611958498291584,0.19367379121113124,0.20145336286585105,0.20946145564315588,0.21770122097600572,1,1,1,1,1,2,2,2,2,2,2,2]
[1000404433,42040.423484119347,7.3645763488351765E-2,7.6179135404964515E-2,7.8790589100653188E-2,8.1481122606103781E-2,8.4251729320893157E-2,8.7103398112946887E-2,9.003711341424292E-2,9.3053855312960412E-2,9.6154599642261987E-2,9.9340318065883282E-2,0.10261197816069247,0.10597054349637275,1,1,1,1,1,1,1,1,1,1,1,1]
[1000404524,42040.423484119347,5.0641663919683035E-2,5.2383443564538702E-2,5.4191988050999146E-2,5.6068354244906318E-2,5.8013592963124833E-2,6.0028749133154556E-2,6.2114861945366917E-2,6.4272964998346227E-2,6.6504086437777207E-2,6.8809249089283556E-2,7.1189470585590178E-2,7.3645763488351765E-2,1,1,1,1,1,1,1,1,1,1,1,1]
[1000404605,42040.423484119347,5.6068354244906318E-2,5.8013592963124833E-2,6.0028749133154556E-2,6.2114861945366917E-2,6.4272964998346227E-2,6.6504086437777207E-2,6.8809249089283556E-2,7.1189470585590178E-2,7.3645763488351765E-2,7.6179135404964515E-2,7.8790589100653188E-2,8.1481122606103781E-2,1,1,1,1,1,1,1,1,1,1,1,1]
[1000404625,42040.423484119347,5.6068354244906318E-2,5.8013592963124833E-2,6.0028749133154556E-2,6.2114861945366917E-2,6.4272964998346227E-2,6.6504086437777207E-2,6.8809249089283556E-2,7.1189470585590178E-2,7.3645763488351765E-2,7.6179135404964515E-2,7.8790589100653188E-2,8.1481122606103781E-2,1,1,1,1,1,1,1,1,1,1,1,1]
[1000404725,42040.423484119347,7.1269107314636759E-2,7.4190787036180608E-2,7.7223060249411724E-2,8.036777555368689E-2,8.3626774923841435E-2,8.7001893863165827E-2,9.0494961549979172E-2,9.4107800978183415E-2,9.784222909215208E-2,0.10170005691628047,0.1056830896795007,0.10979312693504122,1,1,1,1,1,1,1,1,1,1,1,1]
[1000404743,42040.423484119347,0.11907215747205882,0.12520626542678015,0.13159409976489814,0.13824076536313762,0.14515136566886555,0.15233100272851322,0.15978477721489787,0.16751778845350573,0.17553513444779395,0.18384191190356705,0.19244321625247543,0.2013441416746839,1,1,1,1,1,1,1,2,2,2,2,2]
[1000404873,42040.423484119347,7.1269107314636759E-2,7.4190787036180608E-2,7.7223060249411724E-2,8.036777555368689E-2,8.3626774923841435E-2,8.7001893863165827E-2,9.0494961549979172E-2,9.4107800978183415E-2,9.784222909215208E-2,0.10170005691628047,0.1056830896795007,0.10979312693504122,1,1,1,1,1,1,1,1,1,1,1,1]
[1000404895,42040.423484119347,7.1269107314636759E-2,7.4190787036180608E-2,7.7223060249411724E-2,8.036777555368689E-2,8.3626774923841435E-2,8.7001893863165827E-2,9.0494961549979172E-2,9.4107800978183415E-2,9.784222909215208E-2,0.10170005691628047,0.1056830896795007,0.10979312693504122,1,1,1,1,1,1,1,1,1,1,1,1]
[1000407011,42040.423484119347,6.4272964998346227E-2,6.6504086437777207E-2,6.8809249089283556E-2,7.1189470585590178E-2,7.3645763488351765E-2,7.6179135404964515E-2,7.8790589100653188E-2,8.1481122606103781E-2,8.4251729320893157E-2,8.7103398112946887E-2,9.003711341424292E-2,9.3053855312960412E-2,1,1,1,1,1,1,1,1,1,1,1,1]
[1000407031,42040.423484119347,4.7354140432961829E-2,4.8965586034097661E-2,5.0641663919683035E-2,5.2383443564538702E-2,5.4191988050999146E-2,5.6068354244906318E-2,5.8013592963124833E-2,6.0028749133154556E-2,6.2114861945366917E-2,6.4272964998346227E-2,6.6504086437777207E-2,6.8809249089283556E-2,1,1,1,1,1,1,1,1,1,1,1,1]
[1000407052,42040.423484119347,4.7354140432961829E-2,4.8965586034097661E-2,5.0641663919683035E-2,5.2383443564538702E-2,5.4191988050999146E-2,5.6068354244906318E-2,5.8013592963124833E-2,6.0028749133154556E-2,6.2114861945366917E-2,6.4272964998346227E-2,6.6504086437777207E-2,6.8809249089283556E-2,1,1,1,1,1,1,1,1,1,1,1,1]
[1000407221,42040.423484119347,7.8790589100653188E-2,8.1481122606103781E-2,8.4251729320893157E-2,8.7103398112946887E-2,9.003711341424292E-2,9.3053855312960412E-2,9.6154599642261987E-2,9.9340318065883282E-2,0.10261197816069247,0.10597054349637275,0.10941697371236876,0.11295222459223164,1,1,1,1,1,1,1,1,1,1,1,1]
[1000407240,42040.423484119347,0.1056830896795007,0.10979312693504122,0.1140319626756922,0.11840138544481792,0.12290317844334135,0.12753911963291148,0.13231098183544757,0.13722053282924424,0.14226953544180726,0.14745974763958006,0.15279292261471084,0.158270808869,1,1,1,1,1,1,1,1,1,1,1,1]
[1000407262,42040.423484119347,0.13928436545090087,0.14534974691430244,0.15161827824896043,0.15809314713404285,0.16477753643175783,0.17167462427475003,0.17878758415050608,0.18611958498291584,0.19367379121113124,0.20145336286585105,0.20946145564315588,0.21770122097600572,1,1,1,1,1,2,2,2,2,2,2,2]
[1000407283,42040.423484119347,7.6179135404964515E-2,7.8790589100653188E-2,8.1481122606103781E-2,8.4251729320893157E-2,8.7103398112946887E-2,9.003711341424292E-2,9.3053855312960412E-2,9.6154599642261987E-2,9.9340318065883282E-2,0.10261197816069247,0.10597054349637275,0.10941697371236876,1,1,1,1,1,1,1,1,1,1,1,1]
[1000407304,42040.423484119347,7.3645763488351765E-2,7.6179135404964515E-2,7.8790589100653188E-2,8.1481122606103781E-2,8.4251729320893157E-2,8.7103398112946887E-2,9.003711341424292E-2,9.3053855312960412E-2,9.6154599642261987E-2,9.9340318065883282E-2,0.10261197816069247,0.10597054349637275,1,1,1,1,1,1,1,1,1,1,1,1]
[1000407324,42040.423484119347,6.6504086437777207E-2,6.8809249089283556E-2,7.1189470585590178E-2,7.3645763488351765E-2,7.6179135404964515E-2,7.8790589100653188E-2,8.1481122606103781E-2,8.4251729320893157E-2,8.7103398112946887E-2,9.003711341424292E-2,9.3053855312960412E-2,9.6154599642261987E-2,1,1,1,1,1,1,1,1,1,1,1,1]
[1000407363,42040.423484119347,3.6658735051304625E-2,3.7792456566526869E-2,3.898199995477291E-2,4.0228493425930344E-2,4.1533056992794047E-2,4.2896802744129284E-2,4.4320835101887002E-2,4.5806251063863379E-2,4.7354140432961829E-2,4.8965586034097661E-2,5.0641663919683035E-2,5.2383443564538702E-2,1,1,1,1,1,1,1,1,1,1,1,1]
[1000407386,42040.423484119347,3.6658735051304625E-2,3.7792456566526869E-2,3.898199995477291E-2,4.0228493425930344E-2,4.1533056992794047E-2,4.2896802744129284E-2,4.4320835101887002E-2,4.5806251063863379E-2,4.7354140432961829E-2,4.8965586034097661E-2,5.0641663919683035E-2,5.2383443564538702E-2,1,1,1,1,1,1,1,1,1,1,1,1]
[1000407406,42040.423484119347,3.6658735051304625E-2,3.7792456566526869E-2,3.898199995477291E-2,4.0228493425930344E-2,4.1533056992794047E-2,4.2896802744129284E-2,4.4320835101887002E-2,4.5806251063863379E-2,4.7354140432961829E-2,4.8965586034097661E-2,5.0641663919683035E-2,5.2383443564538702E-2,1,1,1,1,1,1,1,1,1,1,1,1]
[1000407427,42040.423484119347,5.0641663919683035E-2,5.2383443564538702E-2,5.4191988050999146E-2,5.6068354244906318E-2,5.8013592963124833E-2,6.0028749133154556E-2,6.2114861945366917E-2,6.4272964998346227E-2,6.6504086437777207E-2,6.8809249089283556E-2,7.1189470585590178E-2,7.3645763488351765E-2,1,1,1,1,1,1,1,1,1,1,1,1]
[1000407446,42040.423484119347,3.7792456566526869E-2,3.898199995477291E-2,4.0228493425930344E-2,4.1533056992794047E-2,4.2896802744129284E-2,4.4320835101887002E-2,4.5806251063863379E-2,4.7354140432961829E-2,4.8965586034097661E-2,5.0641663919683035E-2,5.2383443564538702E-2,5.4191988050999146E-2,1,1,1,1,1,1,1,1,1,1,1,1]
[1000407467,42040.423484119347,3.7792456566526869E-2,3.898199995477291E-2,4.0228493425930344E-2,4.1533056992794047E-2,4.2896802744129284E-2,4.4320835101887002E-2,4.5806251063863379E-2,4.7354140432961829E-2,4.8965586034097661E-2,5.0641663919683035E-2,5.2383443564538702E-2,5.4191988050999146E-2,1,1,1,1,1,1,1,1,1,1,1,1]
[1000407484,42040.423484119347,3.7792456566526869E-2,3.898199995477291E-2,4.0228493425930344E-2,4.1533056992794047E-2,4.2896802744129284E-2,4.4320835101887002E-2,4.5806251063863379E-2,4.7354140432961829E-2,4.8965586034097661E-2,5.0641663919683035E-2,5.2383443564538702E-2,5.4191988050999146E-2,1,1,1,1,1,1,1,1,1,1,1,1]
[1000407503,42040.423484119347,4.4152547856712077E-2,4.589395050946754E-2,4.7723180160905695E-2,4.9642179869438453E-2,5.1652883535787494E-2,5.3757216179430641E-2,5.5957094200009654E-2,5.8254425624863992E-2,6.0651110343739212E-2,6.314904033161732E-2,6.5750099860526226E-2,6.8456165701105562E-2,1,1,1,1,1,1,1,1,1,1,1,1]
[1000407527,42040.423484119347,3.4554202053856835E-2,3.5579698711768699E-2,3.6658735051304625E-2,3.7792456566526869E-2,3.898199995477291E-2,4.0228493425930344E-2,4.1533056992794047E-2,4.2896802744129284E-2,4.4320835101887002E-2,4.5806251063863379E-2,4.7354140432961829E-2,4.8965586034097661E-2,1,1,1,1,1,1,1,1,1,1,1,1]
[1000407547,42040.423484119347,3.9435727666544969E-2,4.0925403750675389E-2,4.2497019693755127E-2,4.4152547856712077E-2,4.589395050946754E-2,4.7723180160905695E-2,4.9642179869438453E-2,5.1652883535787494E-2,5.3757216179430641E-2,5.5957094200009654E-2,5.8254425624863992E-2,6.0651110343739212E-2,1,1,1,1,1,1,1,1,1,1,1,1]
[1000407568,42040.423484119347,5.3757216179430641E-2,5.5957094200009654E-2,5.8254425624863992E-2,6.0651110343739212E-2,6.314904033161732E-2,6.5750099860526226E-2,6.8456165701105562E-2,7.1269107314636759E-2,7.4190787036180608E-2,7.7223060249411724E-2,8.036777555368689E-2,8.3626774923841435E-2,1,1,1,1,1,1,1,1,1,1,1,1]
[1000407588,42040.423484119347,5.3757216179430641E-2,5.5957094200009654E-2,5.8254425624863992E-2,6.0651110343739212E-2,6.314904033161732E-2,6.5750099860526226E-2,6.8456165701105562E-2,7.1269107314636759E-2,7.4190787036180608E-2,7.7223060249411724E-2,8.036777555368689E-2,8.3626774923841435E-2,1,1,1,1,1,1,1,1,1,1,1,1]
[1000407604,42040.423484119347,4.4320835101887002E-2,4.5806251063863379E-2,4.7354140432961829E-2,4.8965586034097661E-2,5.0641663919683035E-2,5.2383443564538702E-2,5.4191988050999146E-2,5.6068354244906318E-2,5.8013592963124833E-2,6.0028749133154556E-2,6.2114861945366917E-2,6.4272964998346227E-2,1,1,1,1,1,1,1,1,1,1,1,1]
[1000407622,42040.423484119347,5.3757216179430641E-2,5.5957094200009654E-2,5.8254425624863992E-2,6.0651110343739212E-2,6.314904033161732E-2,6.5750099860526226E-2,6.8456165701105562E-2,7.1269107314636759E-2,7.4190787036180608E-2,7.7223060249411724E-2,8.036777555368689E-2,8.3626774923841435E-2,1,1,1,1,1,1,1,1,1,1,1,1]
[1000407678,42040.423484119347,8.1481122606103781E-2,8.4251729320893157E-2,8.7103398112946887E-2,9.003711341424292E-2,9.3053855312960412E-2,9.6154599642261987E-2,9.9340318065883282E-2,0.10261197816069247,0.10597054349637275,0.10941697371236876,0.11295222459223164,0.11657724813548644,1,1,1,1,1,1,1,1,1,1,1,1]
[1000407839,42040.423484119347,6.4272964998346227E-2,6.6504086437777207E-2,6.8809249089283556E-2,7.1189470585590178E-2,7.3645763488351765E-2,7.6179135404964515E-2,7.8790589100653188E-2,8.1481122606103781E-2,8.4251729320893157E-2,8.7103398112946887E-2,9.003711341424292E-2,9.3053855312960412E-2,1,1,1,1,1,1,1,1,1,1,1,1]
[1000407875,42040.423484119347,9.3309202458642618E-2,9.769052307547689E-2,0.10224607155945335,0.10697908345801156,0.11189278854977745,0.11699041096769337,0.12227516931720378,0.12775027678978407,0.13341894127207971,0.13928436545090087,0.14534974691430244,0.15161827824896043,1,1,1,1,1,1,1,1,1,1,1,1]
[1000407905,42040.423484119347,5.6068354244906318E-2,5.8013592963124833E-2,6.0028749133154556E-2,6.2114861945366917E-2,6.4272964998346227E-2,6.6504086437777207E-2,6.8809249089283556E-2,7.1189470585590178E-2,7.3645763488351765E-2,7.6179135404964515E-2,7.8790589100653188E-2,8.1481122606103781E-2,1,1,1,1,1,1,1,1,1,1,1,1]
[1000407934,42040.423484119347,7.0498112866105384E-2,7.3902352743879005E-2,7.7461278456115126E-2,8.1178163068722137E-2,8.5056273016654665E-2,8.9098868264309947E-2,9.3309202458642618E-2,9.769052307547689E-2,0.10224607155945335,0.10697908345801156,0.11189278854977745,0.11699041096769337,1,1,1,1,1,1,1,1,1,1,1,1]
[1000407967,42040.423484119347,7.0498112866105384E-2,7.3902352743879005E-2,7.7461278456115126E-2,8.1178163068722137E-2,8.5056273016654665E-2,8.9098868264309947E-2,9.3309202458642618E-2,9.769052307547689E-2,0.10224607155945335,0.10697908345801156,0.11189278854977745,0.11699041096769337,1,1,1,1,1,1,1,1,1,1,1,1]
[1000410000,42040.423484119347,4.5806251063863379E-2,4.7354140432961829E-2,4.8965586034097661E-2,5.0641663919683035E-2,5.2383443564538702E-2,5.4191988050999146E-2,5.6068354244906318E-2,5.8013592963124833E-2,6.0028749133154556E-2,6.2114861945366917E-2,6.4272964998346227E-2,6.6504086437777207E-2,1,1,1,1,1,1,1,1,1,1,1,1]
[1000410034,42040.423484119347,4.5806251063863379E-2,4.7354140432961829E-2,4.8965586034097661E-2,5.0641663919683035E-2,5.2383443564538702E-2,5.4191988050999146E-2,5.6068354244906318E-2,5.8013592963124833E-2,6.0028749133154556E-2,6.2114861945366917E-2,6.4272964998346227E-2,6.6504086437777207E-2,1,1,1,1,1,1,1,1,1,1,1,1]
[1000410094,42040.423484119347,0.11189278854977745,0.11699041096769337,0.12227516931720378,0.12775027678978407,0.13341894127207971,0.13928436545090087,0.14534974691430244,0.15161827824896043,0.15809314713404285,0.16477753643175783,0.17167462427475003,0.17878758415050608,1,1,1,1,1,1,1,1,1,1,2,2]
[1000410124,42040.423484119347,8.3626774923841435E-2,8.7001893863165827E-2,9.0494961549979172E-2,9.4107800978183415E-2,9.784222909215208E-2,0.10170005691628047,0.1056830896795007,0.10979312693504122,0.1140319626756922,0.11840138544481792,0.12290317844334135,0.12753911963291148,1,1,1,1,1,1,1,1,1,1,1,1]
[1000410171,42040.423484119347,0.2013441416746839,0.21054978112075265,0.22006522633277167,0.22989556786478541,0.24004589510254248,0.25052129628260461,0.2613268585108437,0.27246766778035758,0.28394880898883024,0.29577536595536158,0.30795242143679252,0.32048505714354542,2,2,2,2,2,2,2,2,2,2,2,2]
[1000410190,42040.423484119347,0.15161827824896043,0.15809314713404285,0.16477753643175783,0.17167462427475003,0.17878758415050608,0.18611958498291584,0.19367379121113124,0.20145336286585105,0.20946145564315588,0.21770122097600572,0.22617580610351035,0.23488835413807113,1,1,1,2,2,2,2,2,2,2,2,2]
[1000410281,42040.423484119347,6.2114861945366917E-2,6.4272964998346227E-2,6.6504086437777207E-2,6.8809249089283556E-2,7.1189470585590178E-2,7.3645763488351765E-2,7.6179135404964515E-2,7.8790589100653188E-2,8.1481122606103781E-2,8.4251729320893157E-2,8.7103398112946887E-2,9.003711341424292E-2,1,1,1,1,1,1,1,1,1,1,1,1]
[1000410375,42040.423484119347,0.10224607155945335,0.10697908345801156,0.11189278854977745,0.11699041096769337,0.12227516931720378,0.12775027678978407,0.13341894127207971,0.13928436545090087,0.14534974691430244,0.15161827824896043,0.15809314713404285,0.16477753643175783,1,1,1,1,1,1,1,1,1,1,1,1]
[1000410401,42040.423484119347,0.13159409976489814,0.13824076536313762,0.14515136566886555,0.15233100272851322,0.15978477721489787,0.16751778845350573,0.17553513444779395,0.18384191190356705,0.19244321625247543,0.2013441416746839,0.21054978112075265,0.22006522633277167,1,1,1,1,1,2,2,2,2,2,2,2]
[1000410465,42040.423484119347,7.7223060249411724E-2,8.036777555368689E-2,8.3626774923841435E-2,8.7001893863165827E-2,9.0494961549979172E-2,9.4107800978183415E-2,9.784222909215208E-2,0.10170005691628047,0.1056830896795007,0.10979312693504122,0.1140319626756922,0.11840138544481792,1,1,1,1,1,1,1,1,1,1,1,1]
[1000410481,42040.423484119347,0.10224607155945335,0.10697908345801156,0.11189278854977745,0.11699041096769337,0.12227516931720378,0.12775027678978407,0.13341894127207971,0.13928436545090087,0.14534974691430244,0.15161827824896043,0.15809314713404285,0.16477753643175783,1,1,1,1,1,1,1,1,1,1,1,1]
[1000410502,42040.423484119347,6.8456165701105562E-2,7.1269107314636759E-2,7.4190787036180608E-2,7.7223060249411724E-2,8.036777555368689E-2,8.3626774923841435E-2,8.7001893863165827E-2,9.0494961549979172E-2,9.4107800978183415E-2,9.784222909215208E-2,0.10170005691628047,0.1056830896795007,1,1,1,1,1,1,1,1,1,1,1,1]
[1000410528,42040.423484119347,3.6658735051304625E-2,3.7792456566526869E-2,3.898199995477291E-2,4.0228493425930344E-2,4.1533056992794047E-2,4.2896802744129284E-2,4.4320835101887002E-2,4.5806251063863379E-2,4.7354140432961829E-2,4.8965586034097661E-2,5.0641663919683035E-2,5.2383443564538702E-2,1,1,1,1,1,1,1,1,1,1,1,1]
[1000410663,42040.423484119347,2.4786054189911616E-2,2.515315915550605E-2,2.5555267028657284E-2,2.599371397628529E-2,2.6469818248300764E-2,2.6984881255773686E-2,2.7540188538302313E-2,2.8137010636284345E-2,2.8776603881005634E-2,2.9460211113261529E-2,3.0189062339470676E-2,3.0964375332828167E-2,1,1,1,1,1,1,1,1,1,1,1,1]
[1000410716,42040.423484119347,9.784222909215208E-2,0.10170005691628047,0.1056830896795007,0.10979312693504122,0.1140319626756922,0.11840138544481792,0.12290317844334135,0.12753911963291148,0.13231098183544757,0.13722053282924424,0.14226953544180726,0.14745974763958006,1,1,1,1,1,1,1,1,1,1,1,1]
[1000410735,42040.423484119347,9.784222909215208E-2,0.10170005691628047,0.1056830896795007,0.10979312693504122,0.1140319626756922,0.11840138544481792,0.12290317844334135,0.12753911963291148,0.13231098183544757,0.13722053282924424,0.14226953544180726,0.14745974763958006,1,1,1,1,1,1,1,1,1,1,1,1]
[1000410772,42040.423484119347,3.898199995477291E-2,4.0228493425930344E-2,4.1533056992794047E-2,4.2896802744129284E-2,4.4320835101887002E-2,4.5806251063863379E-2,4.7354140432961829E-2,4.8965586034097661E-2,5.0641663919683035E-2,5.2383443564538702E-2,5.4191988050999146E-2,5.6068354244906318E-2,1,1,1,1,1,1,1,1,1,1,1,1]
[1000410800,42040.423484119347,3.898199995477291E-2,4.0228493425930344E-2,4.1533056992794047E-2,4.2896802744129284E-2,4.4320835101887002E-2,4.5806251063863379E-2,4.7354140432961829E-2,4.8965586034097661E-2,5.0641663919683035E-2,5.2383443564538702E-2,5.4191988050999146E-2,5.6068354244906318E-2,1,1,1,1,1,1,1,1,1,1,1,1]
[1000410871,42040.423484119347,4.0228493425930344E-2,4.1533056992794047E-2,4.2896802744129284E-2,4.4320835101887002E-2,4.5806251063863379E-2,4.7354140432961829E-2,4.8965586034097661E-2,5.0641663919683035E-2,5.2383443564538702E-2,5.4191988050999146E-2,5.6068354244906318E-2,5.8013592963124833E-2,1,1,1,1,1,1,1,1,1,1,1,1]
[1000410892,42040.423484119347,5.8362308639026445E-2,6.1180674524643375E-2,6.4140564177954495E-2,6.7245278957730817E-2,7.0498112866105384E-2,7.3902352743879005E-2,7.7461278456115126E-2,8.1178163068722137E-2,8.5056273016654665E-2,8.9098868264309947E-2,9.3309202458642618E-2,9.769052307547689E-2,1,1,1,1,1,1,1,1,1,1,1,1]
[1000412867,42040.423484119347,2.3640240748973831E-2,2.3881099833366174E-2,2.415141132526721E-2,2.4452596839706037E-2,2.4786054189911616E-2,2.515315915550605E-2,2.5555267028657284E-2,2.599371397628529E-2,2.6469818248300764E-2,2.6984881255773686E-2,2.7540188538302313E-2,2.8137010636284345E-2,1,1,1,1,1,1,1,1,1,1,1,1]
[1000412871,42040.423484119347,2.3703583611812046E-2,2.3988444833309502E-2,2.4312868325497772E-2,2.4679158678515892E-2,2.5089593026932703E-2,2.5546423068041873E-2,2.6051876821798717E-2,2.660816017801328E-2,2.7217458266376001E-2,2.7881936677456511E-2,2.8603742557216191E-2,2.93850055932941E-2,1,1,1,1,1,1,1,1,1,1,1,1]
[1000412875,42040.423484119347,2.3427386615918821E-2,2.3640240748973831E-2,2.3881099833366174E-2,2.415141132526721E-2,2.4452596839706037E-2,2.4786054189911616E-2,2.515315915550605E-2,2.5555267028657284E-2,2.599371397628529E-2,2.6469818248300764E-2,2.6984881255773686E-2,2.7540188538302313E-2,1,1,1,1,1,1,1,1,1,1,1,1]
[1000414952,42040.423484119347,2.3241061762051596E-2,2.3427386615918821E-2,2.3640240748973831E-2,2.3881099833366174E-2,2.415141132526721E-2,2.4452596839706037E-2,2.4786054189911616E-2,2.515315915550605E-2,2.5555267028657284E-2,2.599371397628529E-2,2.6469818248300764E-2,2.6984881255773686E-2,1,1,1,1,1,1,1,1,1,1,1,1]
[1000414953,42040.423484119347,2.3640240748973831E-2,2.3881099833366174E-2,2.415141132526721E-2,2.4452596839706037E-2,2.4786054189911616E-2,2.515315915550605E-2,2.5555267028657284E-2,2.599371397628529E-2,2.6469818248300764E-2,2.6984881255773686E-2,2.7540188538302313E-2,2.8137010636284345E-2,1,1,1,1,1,1,1,1,1,1,1,1]
[1001423014,42040.423484119347,2.2941938807613079E-2,2.3079759503028902E-2,2.3241061762051596E-2,2.3427386615918821E-2,2.3640240748973831E-2,2.3881099833366174E-2,2.415141132526721E-2,2.4452596839706037E-2,2.4786054189911616E-2,2.515315915550605E-2,2.5555267028657284E-2,2.599371397628529E-2,1,1,1,1,1,1,1,1,1,1,1,1]
[1001433025,42040.423484119347,2.2941938807613079E-2,2.3079759503028902E-2,2.3241061762051596E-2,2.3427386615918821E-2,2.3640240748973831E-2,2.3881099833366174E-2,2.415141132526721E-2,2.4452596839706037E-2,2.4786054189911616E-2,2.515315915550605E-2,2.5555267028657284E-2,2.599371397628529E-2,1,1,1,1,1,1,1,1,1,1,1,1]
[1001433198,42040.423484119347,2.2495561377141777E-2,2.2516235209750241E-2,2.2548116455143288E-2,2.2593193573526685E-2,2.2653348898227312E-2,2.2730381089303853E-2,2.2826020260809286E-2,2.2941938807613079E-2,2.3079759503028902E-2,2.3241061762051596E-2,2.3427386615918821E-2,2.3640240748973831E-2,1,1,1,1,1,1,1,1,1,1,1,1]
[1001435539,42040.423484119347,2.2941938807613079E-2,2.3079759503028902E-2,2.3241061762051596E-2,2.3427386615918821E-2,2.3640240748973831E-2,2.3881099833366174E-2,2.415141132526721E-2,2.4452596839706037E-2,2.4786054189911616E-2,2.515315915550605E-2,2.5555267028657284E-2,2.599371397628529E-2,1,1,1,1,1,1,1,1,1,1,1,1]
[1001435540,42040.423484119347,2.2941938807613079E-2,2.3079759503028902E-2,2.3241061762051596E-2,2.3427386615918821E-2,2.3640240748973831E-2,2.3881099833366174E-2,2.415141132526721E-2,2.4452596839706037E-2,2.4786054189911616E-2,2.515315915550605E-2,2.5555267028657284E-2,2.599371397628529E-2,1,1,1,1,1,1,1,1,1,1,1,1]
[1001440620,42040.423484119347,2.3450450162919294E-2,2.3730673795121653E-2,2.4059269514849518E-2,2.4439895816579901E-2,2.4876186121054182E-2,2.5371750726894817E-2,2.5930178489891719E-2,2.6555038282698368E-2,2.724988027494063E-2,2.8018237064622923E-2,2.8863624685050441E-2,2.9789543506522055E-2,1,1,1,1,1,1,1,1,1,1,1,1]
[1001440621,42040.423484119347,2.3079759503028902E-2,2.3241061762051596E-2,2.3427386615918821E-2,2.3640240748973831E-2,2.3881099833366174E-2,2.415141132526721E-2,2.4452596839706037E-2,2.4786054189911616E-2,2.515315915550605E-2,2.5555267028657284E-2,2.599371397628529E-2,2.6469818248300764E-2,1,1,1,1,1,1,1,1,1,1,1,1]
[1001465327,42040.423484119347,2.2941938807613079E-2,2.3079759503028902E-2,2.3241061762051596E-2,2.3427386615918821E-2,2.3640240748973831E-2,2.3881099833366174E-2,2.415141132526721E-2,2.4452596839706037E-2,2.4786054189911616E-2,2.515315915550605E-2,2.5555267028657284E-2,2.599371397628529E-2,1,1,1,1,1,1,1,1,1,1,1,1]
[1001472087,42040.423484119347,2.2912565864023345E-2,2.3062863895861489E-2,2.3243177929410858E-2,2.3455950279219338E-2,2.3703583611812046E-2,2.3988444833309502E-2,2.4312868325497772E-2,2.4679158678515892E-2,2.5089593026932703E-2,2.5546423068041873E-2,2.6051876821798717E-2,2.660816017801328E-2,1,1,1,1,1,1,1,1,1,1,1,1]
[1001472088,42040.423484119347,2.2730381089303853E-2,2.2826020260809286E-2,2.2941938807613079E-2,2.3079759503028902E-2,2.3241061762051596E-2,2.3427386615918821E-2,2.3640240748973831E-2,2.3881099833366174E-2,2.415141132526721E-2,2.4452596839706037E-2,2.4786054189911616E-2,2.515315915550605E-2,1,1,1,1,1,1,1,1,1,1,1,1]
[1001472089,42040.423484119347,2.2730381089303853E-2,2.2826020260809286E-2,2.2941938807613079E-2,2.3079759503028902E-2,2.3241061762051596E-2,2.3427386615918821E-2,2.3640240748973831E-2,2.3881099833366174E-2,2.415141132526721E-2,2.4452596839706037E-2,2.4786054189911616E-2,2.515315915550605E-2,1,1,1,1,1,1,1,1,1,1,1,1]
[1001472169,42040.423484119347,2.2730381089303853E-2,2.2826020260809286E-2,2.2941938807613079E-2,2.3079759503028902E-2,2.3241061762051596E-2,2.3427386615918821E-2,2.3640240748973831E-2,2.3881099833366174E-2,2.415141132526721E-2,2.4452596839706037E-2,2.4786054189911616E-2,2.515315915550605E-2,1,1,1,1,1,1,1,1,1,1,1,1]
[1001472634,42040.423484119347,2.2912565864023345E-2,2.3062863895861489E-2,2.3243177929410858E-2,2.3455950279219338E-2,2.3703583611812046E-2,2.3988444833309502E-2,2.4312868325497772E-2,2.4679158678515892E-2,2.5089593026932703E-2,2.5546423068041873E-2,2.6051876821798717E-2,2.660816017801328E-2,1,1,1,1,1,1,1,1,1,1,1,1]
[1001472635,42040.423484119347,2.2730381089303853E-2,2.2826020260809286E-2,2.2941938807613079E-2,2.3079759503028902E-2,2.3241061762051596E-2,2.3427386615918821E-2,2.3640240748973831E-2,2.3881099833366174E-2,2.415141132526721E-2,2.4452596839706037E-2,2.4786054189911616E-2,2.515315915550605E-2,1,1,1,1,1,1,1,1,1,1,1,1]
[1001472636,42040.423484119347,2.2730381089303853E-2,2.2826020260809286E-2,2.2941938807613079E-2,2.3079759503028902E-2,2.3241061762051596E-2,2.3427386615918821E-2,2.3640240748973831E-2,2.3881099833366174E-2,2.415141132526721E-2,2.4452596839706037E-2,2.4786054189911616E-2,2.515315915550605E-2,1,1,1,1,1,1,1,1,1,1,1,1]
[1001472637,42040.423484119347,2.2653348898227312E-2,2.2730381089303853E-2,2.2826020260809286E-2,2.2941938807613079E-2,2.3079759503028902E-2,2.3241061762051596E-2,2.3427386615918821E-2,2.3640240748973831E-2,2.3881099833366174E-2,2.415141132526721E-2,2.4452596839706037E-2,2.4786054189911616E-2,1,1,1,1,1,1,1,1,1,1,1,1]
[1001472638,42040.423484119347,2.2730381089303853E-2,2.2826020260809286E-2,2.2941938807613079E-2,2.3079759503028902E-2,2.3241061762051596E-2,2.3427386615918821E-2,2.3640240748973831E-2,2.3881099833366174E-2,2.415141132526721E-2,2.4452596839706037E-2,2.4786054189911616E-2,2.515315915550605E-2,1,1,1,1,1,1,1,1,1,1,1,1]
[1001472639,42040.423484119347,2.2862999321611278E-2,2.3020345603983704E-2,2.3214912755119974E-2,2.3450450162919294E-2,2.3730673795121653E-2,2.4059269514849518E-2,2.4439895816579901E-2,2.4876186121054182E-2,2.5371750726894817E-2,2.5930178489891719E-2,2.6555038282698368E-2,2.724988027494063E-2,1,1,1,1,1,1,1,1,1,1,1,1]
[1001472640,42040.423484119347,2.2730381089303853E-2,2.2826020260809286E-2,2.2941938807613079E-2,2.3079759503028902E-2,2.3241061762051596E-2,2.3427386615918821E-2,2.3640240748973831E-2,2.3881099833366174E-2,2.415141132526721E-2,2.4452596839706037E-2,2.4786054189911616E-2,2.515315915550605E-2,1,1,1,1,1,1,1,1,1,1,1,1]
[1001473129,42040.423484119347,2.2941938807613079E-2,2.3079759503028902E-2,2.3241061762051596E-2,2.3427386615918821E-2,2.3640240748973831E-2,2.3881099833366174E-2,2.415141132526721E-2,2.4452596839706037E-2,2.4786054189911616E-2,2.515315915550605E-2,2.5555267028657284E-2,2.599371397628529E-2,1,1,1,1,1,1,1,1,1,1,1,1]
[1001474074,42040.423484119347,2.2548116455143288E-2,2.2593193573526685E-2,2.2653348898227312E-2,2.2730381089303853E-2,2.2826020260809286E-2,2.2941938807613079E-2,2.3079759503028902E-2,2.3241061762051596E-2,2.3427386615918821E-2,2.3640240748973831E-2,2.3881099833366174E-2,2.415141132526721E-2,1,1,1,1,1,1,1,1,1,1,1,1]
[1001474075,42040.423484119347,2.2653348898227312E-2,2.2730381089303853E-2,2.2826020260809286E-2,2.2941938807613079E-2,2.3079759503028902E-2,2.3241061762051596E-2,2.3427386615918821E-2,2.3640240748973831E-2,2.3881099833366174E-2,2.415141132526721E-2,2.4452596839706037E-2,2.4786054189911616E-2,1,1,1,1,1,1,1,1,1,1,1,1]
[1001474076,42040.423484119347,2.2653348898227312E-2,2.2730381089303853E-2,2.2826020260809286E-2,2.2941938807613079E-2,2.3079759503028902E-2,2.3241061762051596E-2,2.3427386615918821E-2,2.3640240748973831E-2,2.3881099833366174E-2,2.415141132526721E-2,2.4452596839706037E-2,2.4786054189911616E-2,1,1,1,1,1,1,1,1,1,1,1,1]
[1001476181,42040.423484119347,2.2941938807613079E-2,2.3079759503028902E-2,2.3241061762051596E-2,2.3427386615918821E-2,2.3640240748973831E-2,2.3881099833366174E-2,2.415141132526721E-2,2.4452596839706037E-2,2.4786054189911616E-2,2.515315915550605E-2,2.5555267028657284E-2,2.599371397628529E-2,1,1,1,1,1,1,1,1,1,1,1,1]
[1001477684,42040.423484119347,2.3062863895861489E-2,2.3243177929410858E-2,2.3455950279219338E-2,2.3703583611812046E-2,2.3988444833309502E-2,2.4312868325497772E-2,2.4679158678515892E-2,2.5089593026932703E-2,2.5546423068041873E-2,2.6051876821798717E-2,2.660816017801328E-2,2.7217458266376001E-2,1,1,1,1,1,1,1,1,1,1,1,1]
[1001477685,42040.423484119347,2.3062863895861489E-2,2.3243177929410858E-2,2.3455950279219338E-2,2.3703583611812046E-2,2.3988444833309502E-2,2.4312868325497772E-2,2.4679158678515892E-2,2.5089593026932703E-2,2.5546423068041873E-2,2.6051876821798717E-2,2.660816017801328E-2,2.7217458266376001E-2,1,1,1,1,1,1,1,1,1,1,1,1]
[1001477686,42040.423484119347,2.2941938807613079E-2,2.3079759503028902E-2,2.3241061762051596E-2,2.3427386615918821E-2,2.3640240748973831E-2,2.3881099833366174E-2,2.415141132526721E-2,2.4452596839706037E-2,2.4786054189911616E-2,2.515315915550605E-2,2.5555267028657284E-2,2.599371397628529E-2,1,1,1,1,1,1,1,1,1,1,1,1]
[1001477798,42040.423484119347,2.2912565864023345E-2,2.3062863895861489E-2,2.3243177929410858E-2,2.3455950279219338E-2,2.3703583611812046E-2,2.3988444833309502E-2,2.4312868325497772E-2,2.4679158678515892E-2,2.5089593026932703E-2,2.5546423068041873E-2,2.6051876821798717E-2,2.660816017801328E-2,1,1,1,1,1,1,1,1,1,1,1,1]
[1001477799,42040.423484119347,2.2826020260809286E-2,2.2941938807613079E-2,2.3079759503028902E-2,2.3241061762051596E-2,2.3427386615918821E-2,2.3640240748973831E-2,2.3881099833366174E-2,2.415141132526721E-2,2.4452596839706037E-2,2.4786054189911616E-2,2.515315915550605E-2,2.5555267028657284E-2,1,1,1,1,1,1,1,1,1,1,1,1]
[1001481507,42040.423484119347,2.2600362385236352E-2,2.264103983863849E-2,2.2689403064974623E-2,2.2746006303248145E-2,2.2811390323060551E-2,2.2886083841203535E-2,2.2970604691852529E-2,2.306546080779814E-2,2.3171151053809607E-2,2.3288165942268721E-2,2.3416988253653778E-2,2.3558093579106387E-2,1,1,1,1,1,1,1,1,1,1,1,1]
[1001481508,42040.423484119347,2.2566801250719058E-2,2.2600362385236352E-2,2.264103983863849E-2,2.2689403064974623E-2,2.2746006303248145E-2,2.2811390323060551E-2,2.2886083841203535E-2,2.2970604691852529E-2,2.306546080779814E-2,2.3171151053809607E-2,2.3288165942268721E-2,2.3416988253653778E-2,1,1,1,1,1,1,1,1,1,1,1,1]
[1001481509,42040.423484119347,2.2539769568133486E-2,2.2566801250719058E-2,2.2600362385236352E-2,2.264103983863849E-2,2.2689403064974623E-2,2.2746006303248145E-2,2.2811390323060551E-2,2.2886083841203535E-2,2.2970604691852529E-2,2.306546080779814E-2,2.3171151053809607E-2,2.3288165942268721E-2,1,1,1,1,1,1,1,1,1,1,1,1]
[1001481511,42040.423484119347,2.2518660216050753E-2,2.2539769568133486E-2,2.2566801250719058E-2,2.2600362385236352E-2,2.264103983863849E-2,2.2689403064974623E-2,2.2746006303248145E-2,2.2811390323060551E-2,2.2886083841203535E-2,2.2970604691852529E-2,2.306546080779814E-2,2.3171151053809607E-2,1,1,1,1,1,1,1,1,1,1,1,1]
[1001481559,42040.423484119347,2.2730381089303853E-2,2.2826020260809286E-2,2.2941938807613079E-2,2.3079759503028902E-2,2.3241061762051596E-2,2.3427386615918821E-2,2.3640240748973831E-2,2.3881099833366174E-2,2.415141132526721E-2,2.4452596839706037E-2,2.4786054189911616E-2,2.515315915550605E-2,1,1,1,1,1,1,1,1,1,1,1,1]
[1001482403,42040.423484119347,2.2941938807613079E-2,2.3079759503028902E-2,2.3241061762051596E-2,2.3427386615918821E-2,2.3640240748973831E-2,2.3881099833366174E-2,2.415141132526721E-2,2.4452596839706037E-2,2.4786054189911616E-2,2.515315915550605E-2,2.5555267028657284E-2,2.599371397628529E-2,1,1,1,1,1,1,1,1,1,1,1,1]
[1001485864,42040.423484119347,2.2941938807613079E-2,2.3079759503028902E-2,2.3241061762051596E-2,2.3427386615918821E-2,2.3640240748973831E-2,2.3881099833366174E-2,2.415141132526721E-2,2.4452596839706037E-2,2.4786054189911616E-2,2.515315915550605E-2,2.5555267028657284E-2,2.599371397628529E-2,1,1,1,1,1,1,1,1,1,1,1,1]
[1001485865,42040.423484119347,2.2941938807613079E-2,2.3079759503028902E-2,2.3241061762051596E-2,2.3427386615918821E-2,2.3640240748973831E-2,2.3881099833366174E-2,2.415141132526721E-2,2.4452596839706037E-2,2.4786054189911616E-2,2.515315915550605E-2,2.5555267028657284E-2,2.599371397628529E-2,1,1,1,1,1,1,1,1,1,1,1,1]
[1001485866,42040.423484119347,2.2826020260809286E-2,2.2941938807613079E-2,2.3079759503028902E-2,2.3241061762051596E-2,2.3427386615918821E-2,2.3640240748973831E-2,2.3881099833366174E-2,2.415141132526721E-2,2.4452596839706037E-2,2.4786054189911616E-2,2.515315915550605E-2,2.5555267028657284E-2,1,1,1,1,1,1,1,1,1,1,1,1]
[1001485867,42040.423484119347,2.2826020260809286E-2,2.2941938807613079E-2,2.3079759503028902E-2,2.3241061762051596E-2,2.3427386615918821E-2,2.3640240748973831E-2,2.3881099833366174E-2,2.415141132526721E-2,2.4452596839706037E-2,2.4786054189911616E-2,2.515315915550605E-2,2.5555267028657284E-2,1,1,1,1,1,1,1,1,1,1,1,1]
[1001485868,42040.423484119347,2.2826020260809286E-2,2.2941938807613079E-2,2.3079759503028902E-2,2.3241061762051596E-2,2.3427386615918821E-2,2.3640240748973831E-2,2.3881099833366174E-2,2.415141132526721E-2,2.4452596839706037E-2,2.4786054189911616E-2,2.515315915550605E-2,2.5555267028657284E-2,1,1,1,1,1,1,1,1,1,1,1,1]
[1001485869,42040.423484119347,2.2826020260809286E-2,2.2941938807613079E-2,2.3079759503028902E-2,2.3241061762051596E-2,2.3427386615918821E-2,2.3640240748973831E-2,2.3881099833366174E-2,2.415141132526721E-2,2.4452596839706037E-2,2.4786054189911616E-2,2.515315915550605E-2,2.5555267028657284E-2,1,1,1,1,1,1,1,1,1,1,1,1]
[1001485870,42040.423484119347,2.2941938807613079E-2,2.3079759503028902E-2,2.3241061762051596E-2,2.3427386615918821E-2,2.3640240748973831E-2,2.3881099833366174E-2,2.415141132526721E-2,2.4452596839706037E-2,2.4786054189911616E-2,2.515315915550605E-2,2.5555267028657284E-2,2.599371397628529E-2,1,1,1,1,1,1,1,1,1,1,1,1]
[1001485871,42040.423484119347,2.2941938807613079E-2,2.3079759503028902E-2,2.3241061762051596E-2,2.3427386615918821E-2,2.3640240748973831E-2,2.3881099833366174E-2,2.415141132526721E-2,2.4452596839706037E-2,2.4786054189911616E-2,2.515315915550605E-2,2.5555267028657284E-2,2.599371397628529E-2,1,1,1,1,1,1,1,1,1,1,1,1]
[1001487639,42040.423484119347,2.2941938807613079E-2,2.3079759503028902E-2,2.3241061762051596E-2,2.3427386615918821E-2,2.3640240748973831E-2,2.3881099833366174E-2,2.415141132526721E-2,2.4452596839706037E-2,2.4786054189911616E-2,2.515315915550605E-2,2.5555267028657284E-2,2.599371397628529E-2,1,1,1,1,1,1,1,1,1,1,1,1]
[1001489786,42040.423484119347,2.2730381089303853E-2,2.2826020260809286E-2,2.2941938807613079E-2,2.3079759503028902E-2,2.3241061762051596E-2,2.3427386615918821E-2,2.3640240748973831E-2,2.3881099833366174E-2,2.415141132526721E-2,2.4452596839706037E-2,2.4786054189911616E-2,2.515315915550605E-2,1,1,1,1,1,1,1,1,1,1,1,1]
[1001489800,42040.423484119347,2.2826020260809286E-2,2.2941938807613079E-2,2.3079759503028902E-2,2.3241061762051596E-2,2.3427386615918821E-2,2.3640240748973831E-2,2.3881099833366174E-2,2.415141132526721E-2,2.4452596839706037E-2,2.4786054189911616E-2,2.515315915550605E-2,2.5555267028657284E-2,1,1,1,1,1,1,1,1,1,1,1,1]
[1001489814,42040.423484119347,2.2912565864023345E-2,2.3062863895861489E-2,2.3243177929410858E-2,2.3455950279219338E-2,2.3703583611812046E-2,2.3988444833309502E-2,2.4312868325497772E-2,2.4679158678515892E-2,2.5089593026932703E-2,2.5546423068041873E-2,2.6051876821798717E-2,2.660816017801328E-2,1,1,1,1,1,1,1,1,1,1,1,1]
[1001489815,42040.423484119347,2.2826020260809286E-2,2.2941938807613079E-2,2.3079759503028902E-2,2.3241061762051596E-2,2.3427386615918821E-2,2.3640240748973831E-2,2.3881099833366174E-2,2.415141132526721E-2,2.4452596839706037E-2,2.4786054189911616E-2,2.515315915550605E-2,2.5555267028657284E-2,1,1,1,1,1,1,1,1,1,1,1,1]
[1001489837,42040.423484119347,2.2826020260809286E-2,2.2941938807613079E-2,2.3079759503028902E-2,2.3241061762051596E-2,2.3427386615918821E-2,2.3640240748973831E-2,2.3881099833366174E-2,2.415141132526721E-2,2.4452596839706037E-2,2.4786054189911616E-2,2.515315915550605E-2,2.5555267028657284E-2,1,1,1,1,1,1,1,1,1,1,1,1]
[1001489838,42040.423484119347,2.2826020260809286E-2,2.2941938807613079E-2,2.3079759503028902E-2,2.3241061762051596E-2,2.3427386615918821E-2,2.3640240748973831E-2,2.3881099833366174E-2,2.415141132526721E-2,2.4452596839706037E-2,2.4786054189911616E-2,2.515315915550605E-2,2.5555267028657284E-2,1,1,1,1,1,1,1,1,1,1,1,1]
[1001495907,42040.423484119347,2.2692020627233751E-2,2.2789797120607594E-2,2.2912565864023345E-2,2.3062863895861489E-2,2.3243177929410858E-2,2.3455950279219338E-2,2.3703583611812046E-2,2.3988444833309502E-2,2.4312868325497772E-2,2.4679158678515892E-2,2.5089593026932703E-2,2.5546423068041873E-2,1,1,1,1,1,1,1,1,1,1,1,1]
[1001495908,42040.423484119347,2.2653348898227312E-2,2.2730381089303853E-2,2.2826020260809286E-2,2.2941938807613079E-2,2.3079759503028902E-2,2.3241061762051596E-2,2.3427386615918821E-2,2.3640240748973831E-2,2.3881099833366174E-2,2.415141132526721E-2,2.4452596839706037E-2,2.4786054189911616E-2,1,1,1,1,1,1,1,1,1,1,1,1]
[1001499723,42040.423484119347,2.2730381089303853E-2,2.2826020260809286E-2,2.2941938807613079E-2,2.3079759503028902E-2,2.3241061762051596E-2,2.3427386615918821E-2,2.3640240748973831E-2,2.3881099833366174E-2,2.415141132526721E-2,2.4452596839706037E-2,2.4786054189911616E-2,2.515315915550605E-2,1,1,1,1,1,1,1,1,1,1,1,1]
[1001499724,42040.423484119347,2.2730381089303853E-2,2.2826020260809286E-2,2.2941938807613079E-2,2.3079759503028902E-2,2.3241061762051596E-2,2.3427386615918821E-2,2.3640240748973831E-2,2.3881099833366174E-2,2.415141132526721E-2,2.4452596839706037E-2,2.4786054189911616E-2,2.515315915550605E-2,1,1,1,1,1,1,1,1,1,1,1,1]
[1001503043,42040.423484119347,2.2826020260809286E-2,2.2941938807613079E-2,2.3079759503028902E-2,2.3241061762051596E-2,2.3427386615918821E-2,2.3640240748973831E-2,2.3881099833366174E-2,2.415141132526721E-2,2.4452596839706037E-2,2.4786054189911616E-2,2.515315915550605E-2,2.5555267028657284E-2,1,1,1,1,1,1,1,1,1,1,1,1]
[1001503044,42040.423484119347,2.2826020260809286E-2,2.2941938807613079E-2,2.3079759503028902E-2,2.3241061762051596E-2,2.3427386615918821E-2,2.3640240748973831E-2,2.3881099833366174E-2,2.415141132526721E-2,2.4452596839706037E-2,2.4786054189911616E-2,2.515315915550605E-2,2.5555267028657284E-2,1,1,1,1,1,1,1,1,1,1,1,1]
[1001503045,42040.423484119347,2.2826020260809286E-2,2.2941938807613079E-2,2.3079759503028902E-2,2.3241061762051596E-2,2.3427386615918821E-2,2.3640240748973831E-2,2.3881099833366174E-2,2.415141132526721E-2,2.4452596839706037E-2,2.4786054189911616E-2,2.515315915550605E-2,2.5555267028657284E-2,1,1,1,1,1,1,1,1,1,1,1,1]
[1001503857,42040.423484119347,2.2653348898227312E-2,2.2730381089303853E-2,2.2826020260809286E-2,2.2941938807613079E-2,2.3079759503028902E-2,2.3241061762051596E-2,2.3427386615918821E-2,2.3640240748973831E-2,2.3881099833366174E-2,2.415141132526721E-2,2.4452596839706037E-2,2.4786054189911616E-2,1,1,1,1,1,1,1,1,1,1,1,1]
[1001503858,42040.423484119347,2.2739087001964701E-2,2.2862999321611278E-2,2.3020345603983704E-2,2.3214912755119974E-2,2.3450450162919294E-2,2.3730673795121653E-2,2.4059269514849518E-2,2.4439895816579901E-2,2.4876186121054182E-2,2.5371750726894817E-2,2.5930178489891719E-2,2.6555038282698368E-2,1,1,1,1,1,1,1,1,1,1,1,1]
[1001503867,42040.423484119347,2.2548116455143288E-2,2.2593193573526685E-2,2.2653348898227312E-2,2.2730381089303853E-2,2.2826020260809286E-2,2.2941938807613079E-2,2.3079759503028902E-2,2.3241061762051596E-2,2.3427386615918821E-2,2.3640240748973831E-2,2.3881099833366174E-2,2.415141132526721E-2,1,1,1,1,1,1,1,1,1,1,1,1]
[1001503868,42040.423484119347,2.2548116455143288E-2,2.2593193573526685E-2,2.2653348898227312E-2,2.2730381089303853E-2,2.2826020260809286E-2,2.2941938807613079E-2,2.3079759503028902E-2,2.3241061762051596E-2,2.3427386615918821E-2,2.3640240748973831E-2,2.3881099833366174E-2,2.415141132526721E-2,1,1,1,1,1,1,1,1,1,1,1,1]
[1001503871,42040.423484119347,2.2730381089303853E-2,2.2826020260809286E-2,2.2941938807613079E-2,2.3079759503028902E-2,2.3241061762051596E-2,2.3427386615918821E-2,2.3640240748973831E-2,2.3881099833366174E-2,2.415141132526721E-2,2.4452596839706037E-2,2.4786054189911616E-2,2.515315915550605E-2,1,1,1,1,1,1,1,1,1,1,1,1]
[1001503879,42040.423484119347,2.2548116455143288E-2,2.2593193573526685E-2,2.2653348898227312E-2,2.2730381089303853E-2,2.2826020260809286E-2,2.2941938807613079E-2,2.3079759503028902E-2,2.3241061762051596E-2,2.3427386615918821E-2,2.3640240748973831E-2,2.3881099833366174E-2,2.415141132526721E-2,1,1,1,1,1,1,1,1,1,1,1,1]
[1001505510,42040.423484119347,2.2522341720473831E-2,2.2560996674224253E-2,2.2616641437137975E-2,2.2692020627233751E-2,2.2789797120607594E-2,2.2912565864023345E-2,2.3062863895861489E-2,2.3243177929410858E-2,2.3455950279219338E-2,2.3703583611812046E-2,2.3988444833309502E-2,2.4312868325497772E-2,1,1,1,1,1,1,1,1,1,1,1,1]
[1001505511,42040.423484119347,2.2522341720473831E-2,2.2560996674224253E-2,2.2616641437137975E-2,2.2692020627233751E-2,2.2789797120607594E-2,2.2912565864023345E-2,2.3062863895861489E-2,2.3243177929410858E-2,2.3455950279219338E-2,2.3703583611812046E-2,2.3988444833309502E-2,2.4312868325497772E-2,1,1,1,1,1,1,1,1,1,1,1,1]
[1001505512,42040.423484119347,2.2522341720473831E-2,2.2560996674224253E-2,2.2616641437137975E-2,2.2692020627233751E-2,2.2789797120607594E-2,2.2912565864023345E-2,2.3062863895861489E-2,2.3243177929410858E-2,2.3455950279219338E-2,2.3703583611812046E-2,2.3988444833309502E-2,2.4312868325497772E-2,1,1,1,1,1,1,1,1,1,1,1,1]
[1001505513,42040.423484119347,2.2548116455143288E-2,2.2593193573526685E-2,2.2653348898227312E-2,2.2730381089303853E-2,2.2826020260809286E-2,2.2941938807613079E-2,2.3079759503028902E-2,2.3241061762051596E-2,2.3427386615918821E-2,2.3640240748973831E-2,2.3881099833366174E-2,2.415141132526721E-2,1,1,1,1,1,1,1,1,1,1,1,1]
[1001505514,42040.423484119347,2.2692020627233751E-2,2.2789797120607594E-2,2.2912565864023345E-2,2.3062863895861489E-2,2.3243177929410858E-2,2.3455950279219338E-2,2.3703583611812046E-2,2.3988444833309502E-2,2.4312868325497772E-2,2.4679158678515892E-2,2.5089593026932703E-2,2.5546423068041873E-2,1,1,1,1,1,1,1,1,1,1,1,1]
[1001505537,42040.423484119347,2.2826020260809286E-2,2.2941938807613079E-2,2.3079759503028902E-2,2.3241061762051596E-2,2.3427386615918821E-2,2.3640240748973831E-2,2.3881099833366174E-2,2.415141132526721E-2,2.4452596839706037E-2,2.4786054189911616E-2,2.515315915550605E-2,2.5555267028657284E-2,1,1,1,1,1,1,1,1,1,1,1,1]
[1001505538,42040.423484119347,2.2826020260809286E-2,2.2941938807613079E-2,2.3079759503028902E-2,2.3241061762051596E-2,2.3427386615918821E-2,2.3640240748973831E-2,2.3881099833366174E-2,2.415141132526721E-2,2.4452596839706037E-2,2.4786054189911616E-2,2.515315915550605E-2,2.5555267028657284E-2,1,1,1,1,1,1,1,1,1,1,1,1]
[1001509331,42040.423484119347,2.2730381089303853E-2,2.2826020260809286E-2,2.2941938807613079E-2,2.3079759503028902E-2,2.3241061762051596E-2,2.3427386615918821E-2,2.3640240748973831E-2,2.3881099833366174E-2,2.415141132526721E-2,2.4452596839706037E-2,2.4786054189911616E-2,2.515315915550605E-2,1,1,1,1,1,1,1,1,1,1,1,1]
[1001509851,42040.423484119347,2.2593193573526685E-2,2.2653348898227312E-2,2.2730381089303853E-2,2.2826020260809286E-2,2.2941938807613079E-2,2.3079759503028902E-2,2.3241061762051596E-2,2.3427386615918821E-2,2.3640240748973831E-2,2.3881099833366174E-2,2.415141132526721E-2,2.4452596839706037E-2,1,1,1,1,1,1,1,1,1,1,1,1]
[1001509852,42040.423484119347,2.2593193573526685E-2,2.2653348898227312E-2,2.2730381089303853E-2,2.2826020260809286E-2,2.2941938807613079E-2,2.3079759503028902E-2,2.3241061762051596E-2,2.3427386615918821E-2,2.3640240748973831E-2,2.3881099833366174E-2,2.415141132526721E-2,2.4452596839706037E-2,1,1,1,1,1,1,1,1,1,1,1,1]
[1001511639,42040.423484119347,2.2912565864023345E-2,2.3062863895861489E-2,2.3243177929410858E-2,2.3455950279219338E-2,2.3703583611812046E-2,2.3988444833309502E-2,2.4312868325497772E-2,2.4679158678515892E-2,2.5089593026932703E-2,2.5546423068041873E-2,2.6051876821798717E-2,2.660816017801328E-2,1,1,1,1,1,1,1,1,1,1,1,1]
[1001521524,42040.423484119347,2.2653348898227312E-2,2.2730381089303853E-2,2.2826020260809286E-2,2.2941938807613079E-2,2.3079759503028902E-2,2.3241061762051596E-2,2.3427386615918821E-2,2.3640240748973831E-2,2.3881099833366174E-2,2.415141132526721E-2,2.4452596839706037E-2,2.4786054189911616E-2,1,1,1,1,1,1,1,1,1,1,1,1]
[1001521525,42040.423484119347,2.2730381089303853E-2,2.2826020260809286E-2,2.2941938807613079E-2,2.3079759503028902E-2,2.3241061762051596E-2,2.3427386615918821E-2,2.3640240748973831E-2,2.3881099833366174E-2,2.415141132526721E-2,2.4452596839706037E-2,2.4786054189911616E-2,2.515315915550605E-2,1,1,1,1,1,1,1,1,1,1,1,1]
[1001521526,42040.423484119347,2.2730381089303853E-2,2.2826020260809286E-2,2.2941938807613079E-2,2.3079759503028902E-2,2.3241061762051596E-2,2.3427386615918821E-2,2.3640240748973831E-2,2.3881099833366174E-2,2.415141132526721E-2,2.4452596839706037E-2,2.4786054189911616E-2,2.515315915550605E-2,1,1,1,1,1,1,1,1,1,1,1,1]
[1001521527,42040.423484119347,2.2516235209750241E-2,2.2548116455143288E-2,2.2593193573526685E-2,2.2653348898227312E-2,2.2730381089303853E-2,2.2826020260809286E-2,2.2941938807613079E-2,2.3079759503028902E-2,2.3241061762051596E-2,2.3427386615918821E-2,2.3640240748973831E-2,2.3881099833366174E-2,1,1,1,1,1,1,1,1,1,1,1,1]
[1001521528,42040.423484119347,2.2516235209750241E-2,2.2548116455143288E-2,2.2593193573526685E-2,2.2653348898227312E-2,2.2730381089303853E-2,2.2826020260809286E-2,2.2941938807613079E-2,2.3079759503028902E-2,2.3241061762051596E-2,2.3427386615918821E-2,2.3640240748973831E-2,2.3881099833366174E-2,1,1,1,1,1,1,1,1,1,1,1,1]
[1001526010,42040.423484119347,2.2730381089303853E-2,2.2826020260809286E-2,2.2941938807613079E-2,2.3079759503028902E-2,2.3241061762051596E-2,2.3427386615918821E-2,2.3640240748973831E-2,2.3881099833366174E-2,2.415141132526721E-2,2.4452596839706037E-2,2.4786054189911616E-2,2.515315915550605E-2,1,1,1,1,1,1,1,1,1,1,1,1]
[1001526011,42040.423484119347,2.2653348898227312E-2,2.2730381089303853E-2,2.2826020260809286E-2,2.2941938807613079E-2,2.3079759503028902E-2,2.3241061762051596E-2,2.3427386615918821E-2,2.3640240748973831E-2,2.3881099833366174E-2,2.415141132526721E-2,2.4452596839706037E-2,2.4786054189911616E-2,1,1,1,1,1,1,1,1,1,1,1,1]
[1001526012,42040.423484119347,2.2653348898227312E-2,2.2730381089303853E-2,2.2826020260809286E-2,2.2941938807613079E-2,2.3079759503028902E-2,2.3241061762051596E-2,2.3427386615918821E-2,2.3640240748973831E-2,2.3881099833366174E-2,2.415141132526721E-2,2.4452596839706037E-2,2.4786054189911616E-2,1,1,1,1,1,1,1,1,1,1,1,1]
[1001528056,42040.423484119347,2.2653348898227312E-2,2.2730381089303853E-2,2.2826020260809286E-2,2.2941938807613079E-2,2.3079759503028902E-2,2.3241061762051596E-2,2.3427386615918821E-2,2.3640240748973831E-2,2.3881099833366174E-2,2.415141132526721E-2,2.4452596839706037E-2,2.4786054189911616E-2,1,1,1,1,1,1,1,1,1,1,1,1]
[1001528057,42040.423484119347,2.2692020627233751E-2,2.2789797120607594E-2,2.2912565864023345E-2,2.3062863895861489E-2,2.3243177929410858E-2,2.3455950279219338E-2,2.3703583611812046E-2,2.3988444833309502E-2,2.4312868325497772E-2,2.4679158678515892E-2,2.5089593026932703E-2,2.5546423068041873E-2,1,1,1,1,1,1,1,1,1,1,1,1]
[1001528058,42040.423484119347,2.2653348898227312E-2,2.2730381089303853E-2,2.2826020260809286E-2,2.2941938807613079E-2,2.3079759503028902E-2,2.3241061762051596E-2,2.3427386615918821E-2,2.3640240748973831E-2,2.3881099833366174E-2,2.415141132526721E-2,2.4452596839706037E-2,2.4786054189911616E-2,1,1,1,1,1,1,1,1,1,1,1,1]
[1001528059,42040.423484119347,2.2653348898227312E-2,2.2730381089303853E-2,2.2826020260809286E-2,2.2941938807613079E-2,2.3079759503028902E-2,2.3241061762051596E-2,2.3427386615918821E-2,2.3640240748973831E-2,2.3881099833366174E-2,2.415141132526721E-2,2.4452596839706037E-2,2.4786054189911616E-2,1,1,1,1,1,1,1,1,1,1,1,1]
[1001528099,42040.423484119347,2.2826020260809286E-2,2.2941938807613079E-2,2.3079759503028902E-2,2.3241061762051596E-2,2.3427386615918821E-2,2.3640240748973831E-2,2.3881099833366174E-2,2.415141132526721E-2,2.4452596839706037E-2,2.4786054189911616E-2,2.515315915550605E-2,2.5555267028657284E-2,1,1,1,1,1,1,1,1,1,1,1,1]
[1001528100,42040.423484119347,2.2826020260809286E-2,2.2941938807613079E-2,2.3079759503028902E-2,2.3241061762051596E-2,2.3427386615918821E-2,2.3640240748973831E-2,2.3881099833366174E-2,2.415141132526721E-2,2.4452596839706037E-2,2.4786054189911616E-2,2.515315915550605E-2,2.5555267028657284E-2,1,1,1,1,1,1,1,1,1,1,1,1]
[1001537307,42040.423484119347,2.2826020260809286E-2,2.2941938807613079E-2,2.3079759503028902E-2,2.3241061762051596E-2,2.3427386615918821E-2,2.3640240748973831E-2,2.3881099833366174E-2,2.415141132526721E-2,2.4452596839706037E-2,2.4786054189911616E-2,2.515315915550605E-2,2.5555267028657284E-2,1,1,1,1,1,1,1,1,1,1,1,1]
[1001538184,42040.423484119347,2.2826020260809286E-2,2.2941938807613079E-2,2.3079759503028902E-2,2.3241061762051596E-2,2.3427386615918821E-2,2.3640240748973831E-2,2.3881099833366174E-2,2.415141132526721E-2,2.4452596839706037E-2,2.4786054189911616E-2,2.515315915550605E-2,2.5555267028657284E-2,1,1,1,1,1,1,1,1,1,1,1,1]
[1001538185,42040.423484119347,2.2826020260809286E-2,2.2941938807613079E-2,2.3079759503028902E-2,2.3241061762051596E-2,2.3427386615918821E-2,2.3640240748973831E-2,2.3881099833366174E-2,2.415141132526721E-2,2.4452596839706037E-2,2.4786054189911616E-2,2.515315915550605E-2,2.5555267028657284E-2,1,1,1,1,1,1,1,1,1,1,1,1]
[1001542444,42040.423484119347,2.2826020260809286E-2,2.2941938807613079E-2,2.3079759503028902E-2,2.3241061762051596E-2,2.3427386615918821E-2,2.3640240748973831E-2,2.3881099833366174E-2,2.415141132526721E-2,2.4452596839706037E-2,2.4786054189911616E-2,2.515315915550605E-2,2.5555267028657284E-2,1,1,1,1,1,1,1,1,1,1,1,1]
[1001542445,42040.423484119347,2.2826020260809286E-2,2.2941938807613079E-2,2.3079759503028902E-2,2.3241061762051596E-2,2.3427386615918821E-2,2.3640240748973831E-2,2.3881099833366174E-2,2.415141132526721E-2,2.4452596839706037E-2,2.4786054189911616E-2,2.515315915550605E-2,2.5555267028657284E-2,1,1,1,1,1,1,1,1,1,1,1,1]
[1001551112,42040.423484119347,2.2483963934608303E-2,2.2495561377141777E-2,2.2516235209750241E-2,2.2548116455143288E-2,2.2593193573526685E-2,2.2653348898227312E-2,2.2730381089303853E-2,2.2826020260809286E-2,2.2941938807613079E-2,2.3079759503028902E-2,2.3241061762051596E-2,2.3427386615918821E-2,1,1,1,1,1,1,1,1,1,1,1,1]
[1001551113,42040.423484119347,2.2483963934608303E-2,2.2495561377141777E-2,2.2516235209750241E-2,2.2548116455143288E-2,2.2593193573526685E-2,2.2653348898227312E-2,2.2730381089303853E-2,2.2826020260809286E-2,2.2941938807613079E-2,2.3079759503028902E-2,2.3241061762051596E-2,2.3427386615918821E-2,1,1,1,1,1,1,1,1,1,1,1,1]
[1001553102,42040.423484119347,2.2485041186410523E-2,2.2500383441490593E-2,2.2529401030070121E-2,2.257619630836738E-2,2.2644779031002111E-2,2.2739087001964701E-2,2.2862999321611278E-2,2.3020345603983704E-2,2.3214912755119974E-2,2.3450450162919294E-2,2.3730673795121653E-2,2.4059269514849518E-2,1,1,1,1,1,1,1,1,1,1,1,1]
[1001553103,42040.423484119347,2.2479100730135454E-2,2.2483963934608303E-2,2.2495561377141777E-2,2.2516235209750241E-2,2.2548116455143288E-2,2.2593193573526685E-2,2.2653348898227312E-2,2.2730381089303853E-2,2.2826020260809286E-2,2.2941938807613079E-2,2.3079759503028902E-2,2.3241061762051596E-2,1,1,1,1,1,1,1,1,1,1,1,1]
[1001560042,42040.423484119347,2.2516235209750241E-2,2.2548116455143288E-2,2.2593193573526685E-2,2.2653348898227312E-2,2.2730381089303853E-2,2.2826020260809286E-2,2.2941938807613079E-2,2.3079759503028902E-2,2.3241061762051596E-2,2.3427386615918821E-2,2.3640240748973831E-2,2.3881099833366174E-2,1,1,1,1,1,1,1,1,1,1,1,1]
[1001560043,42040.423484119347,2.2516235209750241E-2,2.2548116455143288E-2,2.2593193573526685E-2,2.2653348898227312E-2,2.2730381089303853E-2,2.2826020260809286E-2,2.2941938807613079E-2,2.3079759503028902E-2,2.3241061762051596E-2,2.3427386615918821E-2,2.3640240748973831E-2,2.3881099833366174E-2,1,1,1,1,1,1,1,1,1,1,1,1]
[1001560044,42040.423484119347,2.2516235209750241E-2,2.2548116455143288E-2,2.2593193573526685E-2,2.2653348898227312E-2,2.2730381089303853E-2,2.2826020260809286E-2,2.2941938807613079E-2,2.3079759503028902E-2,2.3241061762051596E-2,2.3427386615918821E-2,2.3640240748973831E-2,2.3881099833366174E-2,1,1,1,1,1,1,1,1,1,1,1,1]
[1001571355,42040.423484119347,2.2504162531867267E-2,2.2525880223434339E-2,2.2556587021168049E-2,2.2597565181583644E-2,2.265003996247476E-2,2.2715189927693447E-2,2.2794154322445005E-2,2.288803858943958E-2,2.2997918635445903E-2,2.3124844219991943E-2,2.3269841705299513E-2,2.3433916327901965E-2,1,1,1,1,1,1,1,1,1,1,1,1]
[1001571356,42040.423484119347,2.251313116597831E-2,2.2545008384334302E-2,2.2591727337707937E-2,2.2655970481300084E-2,2.2740380281051249E-2,2.2847565492534083E-2,2.2980105778378217E-2,2.3140555243636843E-2,2.3331445227354444E-2,2.355528656113328E-2,2.3814571432893613E-2,2.4111774950179771E-2,1,1,1,1,1,1,1,1,1,1,1,1]
[1001578289,42040.423484119347,2.2730381089303853E-2,2.2826020260809286E-2,2.2941938807613079E-2,2.3079759503028902E-2,2.3241061762051596E-2,2.3427386615918821E-2,2.3640240748973831E-2,2.3881099833366174E-2,2.415141132526721E-2,2.4452596839706037E-2,2.4786054189911616E-2,2.515315915550605E-2,1,1,1,1,1,1,1,1,1,1,1,1]
[1001584020,42040.423484119347,2.2593193573526685E-2,2.2653348898227312E-2,2.2730381089303853E-2,2.2826020260809286E-2,2.2941938807613079E-2,2.3079759503028902E-2,2.3241061762051596E-2,2.3427386615918821E-2,2.3640240748973831E-2,2.3881099833366174E-2,2.415141132526721E-2,2.4452596839706037E-2,1,1,1,1,1,1,1,1,1,1,1,1]
[1001585103,42040.423484119347,2.2593193573526685E-2,2.2653348898227312E-2,2.2730381089303853E-2,2.2826020260809286E-2,2.2941938807613079E-2,2.3079759503028902E-2,2.3241061762051596E-2,2.3427386615918821E-2,2.3640240748973831E-2,2.3881099833366174E-2,2.415141132526721E-2,2.4452596839706037E-2,1,1,1,1,1,1,1,1,1,1,1,1]
[1001589233,42040.423484119347,2.2730381089303853E-2,2.2826020260809286E-2,2.2941938807613079E-2,2.3079759503028902E-2,2.3241061762051596E-2,2.3427386615918821E-2,2.3640240748973831E-2,2.3881099833366174E-2,2.415141132526721E-2,2.4452596839706037E-2,2.4786054189911616E-2,2.515315915550605E-2,1,1,1,1,1,1,1,1,1,1,1,1]
[1001589234,42040.423484119347,2.2730381089303853E-2,2.2826020260809286E-2,2.2941938807613079E-2,2.3079759503028902E-2,2.3241061762051596E-2,2.3427386615918821E-2,2.3640240748973831E-2,2.3881099833366174E-2,2.415141132526721E-2,2.4452596839706037E-2,2.4786054189911616E-2,2.515315915550605E-2,1,1,1,1,1,1,1,1,1,1,1,1]
[1001613550,42040.423484119347,2.2826020260809286E-2,2.2941938807613079E-2,2.3079759503028902E-2,2.3241061762051596E-2,2.3427386615918821E-2,2.3640240748973831E-2,2.3881099833366174E-2,2.415141132526721E-2,2.4452596839706037E-2,2.4786054189911616E-2,2.515315915550605E-2,2.5555267028657284E-2,1,1,1,1,1,1,1,1,1,1,1,1]
[1001617236,42040.423484119347,2.2730381089303853E-2,2.2826020260809286E-2,2.2941938807613079E-2,2.3079759503028902E-2,2.3241061762051596E-2,2.3427386615918821E-2,2.3640240748973831E-2,2.3881099833366174E-2,2.415141132526721E-2,2.4452596839706037E-2,2.4786054189911616E-2,2.515315915550605E-2,1,1,1,1,1,1,1,1,1,1,1,1]
[1001618746,42040.423484119347,2.2730381089303853E-2,2.2826020260809286E-2,2.2941938807613079E-2,2.3079759503028902E-2,2.3241061762051596E-2,2.3427386615918821E-2,2.3640240748973831E-2,2.3881099833366174E-2,2.415141132526721E-2,2.4452596839706037E-2,2.4786054189911616E-2,2.515315915550605E-2,1,1,1,1,1,1,1,1,1,1,1,1]
[1001618747,42040.423484119347,2.2730381089303853E-2,2.2826020260809286E-2,2.2941938807613079E-2,2.3079759503028902E-2,2.3241061762051596E-2,2.3427386615918821E-2,2.3640240748973831E-2,2.3881099833366174E-2,2.415141132526721E-2,2.4452596839706037E-2,2.4786054189911616E-2,2.515315915550605E-2,1,1,1,1,1,1,1,1,1,1,1,1]
[1001626218,42040.423484119347,2.2483963934608303E-2,2.2495561377141777E-2,2.2516235209750241E-2,2.2548116455143288E-2,2.2593193573526685E-2,2.2653348898227312E-2,2.2730381089303853E-2,2.2826020260809286E-2,2.2941938807613079E-2,2.3079759503028902E-2,2.3241061762051596E-2,2.3427386615918821E-2,1,1,1,1,1,1,1,1,1,1,1,1]
[1001631721,42040.423484119347,2.2548116455143288E-2,2.2593193573526685E-2,2.2653348898227312E-2,2.2730381089303853E-2,2.2826020260809286E-2,2.2941938807613079E-2,2.3079759503028902E-2,2.3241061762051596E-2,2.3427386615918821E-2,2.3640240748973831E-2,2.3881099833366174E-2,2.415141132526721E-2,1,1,1,1,1,1,1,1,1,1,1,1]
[1001631725,42040.423484119347,2.2548116455143288E-2,2.2593193573526685E-2,2.2653348898227312E-2,2.2730381089303853E-2,2.2826020260809286E-2,2.2941938807613079E-2,2.3079759503028902E-2,2.3241061762051596E-2,2.3427386615918821E-2,2.3640240748973831E-2,2.3881099833366174E-2,2.415141132526721E-2,1,1,1,1,1,1,1,1,1,1,1,1]
[1001642113,42040.423484119347,2.2593193573526685E-2,2.2653348898227312E-2,2.2730381089303853E-2,2.2826020260809286E-2,2.2941938807613079E-2,2.3079759503028902E-2,2.3241061762051596E-2,2.3427386615918821E-2,2.3640240748973831E-2,2.3881099833366174E-2,2.415141132526721E-2,2.4452596839706037E-2,1,1,1,1,1,1,1,1,1,1,1,1]
[1001642114,42040.423484119347,2.2593193573526685E-2,2.2653348898227312E-2,2.2730381089303853E-2,2.2826020260809286E-2,2.2941938807613079E-2,2.3079759503028902E-2,2.3241061762051596E-2,2.3427386615918821E-2,2.3640240748973831E-2,2.3881099833366174E-2,2.415141132526721E-2,2.4452596839706037E-2,1,1,1,1,1,1,1,1,1,1,1,1]
[1001687771,42040.423484119347,2.2597565181583644E-2,2.265003996247476E-2,2.2715189927693447E-2,2.2794154322445005E-2,2.288803858943958E-2,2.2997918635445903E-2,2.3124844219991943E-2,2.3269841705299513E-2,2.3433916327901965E-2,2.3618054103442636E-2,2.3823223444427007E-2,2.4050376549434555E-2,1,1,1,1,1,1,1,1,1,1,1,1]
[1001853912,42040.423484119347,2.2548116455143288E-2,2.2593193573526685E-2,2.2653348898227312E-2,2.2730381089303853E-2,2.2826020260809286E-2,2.2941938807613079E-2,2.3079759503028902E-2,2.3241061762051596E-2,2.3427386615918821E-2,2.3640240748973831E-2,2.3881099833366174E-2,2.415141132526721E-2,1,1,1,1,1,1,1,1,1,1,1,1]
[1001865682,42040.423484119347,2.2483963934608303E-2,2.2495561377141777E-2,2.2516235209750241E-2,2.2548116455143288E-2,2.2593193573526685E-2,2.2653348898227312E-2,2.2730381089303853E-2,2.2826020260809286E-2,2.2941938807613079E-2,2.3079759503028902E-2,2.3241061762051596E-2,2.3427386615918821E-2,1,1,1,1,1,1,1,1,1,1,1,1]
[1001865683,42040.423484119347,2.2483963934608303E-2,2.2495561377141777E-2,2.2516235209750241E-2,2.2548116455143288E-2,2.2593193573526685E-2,2.2653348898227312E-2,2.2730381089303853E-2,2.2826020260809286E-2,2.2941938807613079E-2,2.3079759503028902E-2,2.3241061762051596E-2,2.3427386615918821E-2,1,1,1,1,1,1,1,1,1,1,1,1]
[1001895048,42040.423484119347,2.2516235209750241E-2,2.2548116455143288E-2,2.2593193573526685E-2,2.2653348898227312E-2,2.2730381089303853E-2,2.2826020260809286E-2,2.2941938807613079E-2,2.3079759503028902E-2,2.3241061762051596E-2,2.3427386615918821E-2,2.3640240748973831E-2,2.3881099833366174E-2,1,1,1,1,1,1,1,1,1,1,1,1]
[1003132771,42040.423484119347,2.2483963934608303E-2,2.2495561377141777E-2,2.2516235209750241E-2,2.2548116455143288E-2,2.2593193573526685E-2,2.2653348898227312E-2,2.2730381089303853E-2,2.2826020260809286E-2,2.2941938807613079E-2,2.3079759503028902E-2,2.3241061762051596E-2,2.3427386615918821E-2,1,1,1,1,1,1,1,1,1,1,1,1]
[1003132772,42040.423484119347,2.2483963934608303E-2,2.2495561377141777E-2,2.2516235209750241E-2,2.2548116455143288E-2,2.2593193573526685E-2,2.2653348898227312E-2,2.2730381089303853E-2,2.2826020260809286E-2,2.2941938807613079E-2,2.3079759503028902E-2,2.3241061762051596E-2,2.3427386615918821E-2,1,1,1,1,1,1,1,1,1,1,1,1]
[1003132875,42040.423484119347,2.2483963934608303E-2,2.2495561377141777E-2,2.2516235209750241E-2,2.2548116455143288E-2,2.2593193573526685E-2,2.2653348898227312E-2,2.2730381089303853E-2,2.2826020260809286E-2,2.2941938807613079E-2,2.3079759503028902E-2,2.3241061762051596E-2,2.3427386615918821E-2,1,1,1,1,1,1,1,1,1,1,1,1]
[1003132876,42040.423484119347,2.2483963934608303E-2,2.2495561377141777E-2,2.2516235209750241E-2,2.2548116455143288E-2,2.2593193573526685E-2,2.2653348898227312E-2,2.2730381089303853E-2,2.2826020260809286E-2,2.2941938807613079E-2,2.3079759503028902E-2,2.3241061762051596E-2,2.3427386615918821E-2,1,1,1,1,1,1,1,1,1,1,1,1]
[1000332689,42040.423484119347,5.6068354244906318E-2,5.8013592963124833E-2,6.0028749133154556E-2,6.2114861945366917E-2,6.4272964998346227E-2,6.6504086437777207E-2,6.8809249089283556E-2,7.1189470585590178E-2,7.3645763488351765E-2,7.6179135404964515E-2,7.8790589100653188E-2,8.1481122606103781E-2,1,1,1,1,1,1,1,1,1,1,1,1]
[1000340355,42040.423484119347,0.1140319626756922,0.11840138544481792,0.12290317844334135,0.12753911963291148,0.13231098183544757,0.13722053282924424,0.14226953544180726,0.14745974763958006,0.15279292261471084,0.158270808869,0.16389515029516008,0.16966768625551185,1,1,1,1,1,1,1,1,1,1,1,2]
[1000349432,42040.423484119347,2.515315915550605E-2,2.5555267028657284E-2,2.599371397628529E-2,2.6469818248300764E-2,2.6984881255773686E-2,2.7540188538302313E-2,2.8137010636284345E-2,2.8776603881005634E-2,2.9460211113261529E-2,3.0189062339470676E-2,3.0964375332828167E-2,3.1787356185896419E-2,1,1,1,1,1,1,1,1,1,1,1,1]
[1000358329,42040.423484119347,2.3881099833366174E-2,2.415141132526721E-2,2.4452596839706037E-2,2.4786054189911616E-2,2.515315915550605E-2,2.5555267028657284E-2,2.599371397628529E-2,2.6469818248300764E-2,2.6984881255773686E-2,2.7540188538302313E-2,2.8137010636284345E-2,2.8776603881005634E-2,1,1,1,1,1,1,1,1,1,1,1,1]
[1000374750,42040.423484119347,6.6504086437777207E-2,6.8809249089283556E-2,7.1189470585590178E-2,7.3645763488351765E-2,7.6179135404964515E-2,7.8790589100653188E-2,8.1481122606103781E-2,8.4251729320893157E-2,8.7103398112946887E-2,9.003711341424292E-2,9.3053855312960412E-2,9.6154599642261987E-2,1,1,1,1,1,1,1,1,1,1,1,1]
[1000374782,42040.423484119347,0.11699041096769337,0.12227516931720378,0.12775027678978407,0.13341894127207971,0.13928436545090087,0.14534974691430244,0.15161827824896043,0.15809314713404285,0.16477753643175783,0.17167462427475003,0.17878758415050608,0.18611958498291584,1,1,1,1,1,1,1,1,1,2,2,2]
[1000400379,42040.423484119347,0.11907215747205882,0.12520626542678015,0.13159409976489814,0.13824076536313762,0.14515136566886555,0.15233100272851322,0.15978477721489787,0.16751778845350573,0.17553513444779395,0.18384191190356705,0.19244321625247543,0.2013441416746839,1,1,1,1,1,1,1,2,2,2,2,2]
[1000400797,42040.423484119347,0.22989556786478541,0.24004589510254248,0.25052129628260461,0.2613268585108437,0.27246766778035758,0.28394880898883024,0.29577536595536158,0.30795242143679252,0.32048505714354542,0.33337835375500258,0.34663739093444257,0.36026724734355126,2,2,2,2,2,2,2,2,2,3,3,3]
[1000407857,42040.423484119347,8.3626774923841435E-2,8.7001893863165827E-2,9.0494961549979172E-2,9.4107800978183415E-2,9.784222909215208E-2,0.10170005691628047,0.1056830896795007,0.10979312693504122,0.1140319626756922,0.11840138544481792,0.12290317844334135,0.12753911963291148,1,1,1,1,1,1,1,1,1,1,1,1]
[1000410265,42040.423484119347,0.28394880898883024,0.29577536595536158,0.30795242143679252,0.32048505714354542,0.33337835375500258,0.34663739093444257,0.36026724734355126,0.37427300065652919,0.38865972757380857,0.40343250383539608,0.41859640423385874,0.43415650262696492,2,2,2,2,3,3,3,3,3,3,3,3]
[1000410753,42040.423484119347,0.13341894127207971,0.13928436545090087,0.14534974691430244,0.15161827824896043,0.15809314713404285,0.16477753643175783,0.17167462427475003,0.17878758415050608,0.18611958498291584,0.19367379121113124,0.20145336286585105,0.20946145564315588,1,1,1,1,1,1,2,2,2,2,2,2]

{"sheet":"E. Risk Index Prog Evaluation","index":17,"n_rows":254,"n_cols":63,"rows_kept":254,"cut":false,"hidden":false,"merged":[[2,49,2,57],[4,1,4,2],[15,1,15,2],[16,1,16,2],[17,1,17,2],[19,17,19,18],[34,1,34,2],[34,17,34,19],[34,33,34,35],[2,1,2,9],[2,17,2,25],[2,33,2,41],[38,17,38,19],[38,33,38,35],[38,49,38,51],[39,33,39,35],[39,49,39,51],[41,33,41,35],[41,49,41,51],[34,49,34,51],[35,17,35,19],[35,33,35,35],[35,49,35,51],[37,17,37,19],[37,33,37,35],[37,49,37,51],[51,33,51,34],[51,49,51,50],[66,33,66,34],[66,49,66,50],[77,33,77,34],[77,49,77,50],[42,33,42,35],[42,49,42,51],[45,1,45,2],[46,1,46,2],[47,1,47,2],[49,33,49,41],[49,49,49,57],[92,33,92,34],[92,49,92,50],[93,33,93,34],[93,49,93,50],[94,33,94,34],[94,49,94,50],[78,33,78,34],[78,49,78,50],[79,33,79,34],[79,49,79,50],[81,33,81,34],[81,49,81,50],[109,33,109,34],[109,49,109,50],[111,33,111,34],[111,49,111,50],[122,33,122,34],[122,49,122,50],[96,33,96,34],[96,49,96,50],[107,33,107,34],[107,49,107,50],[108,33,108,34],[108,49,108,50],[138,49,138,50],[139,49,139,50],[141,49,141,50],[152,49,152,50],[153,49,153,50],[154,49,154,50],[123,33,123,34],[123,49,123,50],[124,33,124,34],[124,49,124,50],[126,49,126,50],[137,49,137,50],[126,33,126,34],[137,33,137,34],[138,33,138,34],[139,33,139,34],[141,33,141,34],[152,33,152,34],[153,33,153,34],[154,33,154,34],[183,49,183,50],[184,49,184,50],[186,49,186,50],[197,49,197,50],[198,49,198,50],[199,49,199,50],[156,49,156,50],[167,49,167,50],[168,49,168,50],[169,49,169,50],[171,49,171,50],[182,49,182,50],[236,49,236,50],[246,49,246,50],[228,49,228,50],[229,49,229,50],[231,49,231,50],[232,49,232,50],[233,49,233,50],[234,49,234,50],[201,49,201,50],[212,49,212,50],[213,49,213,50],[214,49,214,50],[216,49,216,50],[227,49,227,50],[156,33,156,34],[167,33,167,34],[168,33,168,34],[169,33,169,34],[171,33,171,34],[182,33,182,34],[183,33,183,34],[184,33,184,34],[186,33,186,34],[197,33,197,34],[198,33,198,34],[199,33,199,34],[201,33,201,34],[212,33,212,34],[213,33,213,34],[214,33,214,34],[216,33,216,34],[227,33,227,34],[252,33,252,34],[253,33,253,34],[228,33,228,34],[229,33,229,34],[231,33,231,34],[232,33,232,34],[233,33,233,34],[234,33,234,34],[236,33,236,34],[244,33,244,34],[246,33,246,34]]}
[null,null,"Risk Index Program Evaluation"]
[]
[null,"Inherent Asset Risk",null,null,null,null,null,null,null,null,null,null,null,null,null,null,null,"Base Case Option - Do Nothing (Reactive)",null,null,null,null,null,null,null,null,null,null,null,null,null,null,null,"Option Two – Replace where cost benefit positive",null,null,null,null,null,null,null,null,null,null,null,null,null,null,null,"Option Three – Replace all cost benefit positive by the end of the period"]
[]
[null,"TOTAL ASSET RISK BY RISK INDEX CATEGORY",null,2019,2020,2021,2022,2023,2024,2025,2026,2027,2028,2029,2030]
[null,1,"R1($)",{"$f":"SUMIF('D. Population Risk Index'!O:O,$B6,'C. Population PoC & Risk'!DB:DB)","v":1066184.5731691257},{"$f":"SUMIF('D. Population Risk Index'!P:P,$B6,'C. Population PoC & Risk'!DC:DC)","v":1099042.4478984715},{"$f":"SUMIF('D. Population Risk Index'!Q:Q,$B6,'C. Population PoC & Risk'!DD:DD)","v":1126162.9817402067},{"$f":"SUMIF('D. Population Risk Index'!R:R,$B6,'C. Population PoC & Risk'!DE:DE)","v":1132853.8888115981},{"$f":"SUMIF('D. Population Risk Index'!S:S,$B6,'C. Population PoC & Risk'!DF:DF)","v":1140600.4514474007},{"$f":"SUMIF('D. Population Risk Index'!T:T,$B6,'C. Population PoC & Risk'!DG:DG)","v":1126553.5248115824},{"$f":"SUMIF('D. Population Risk Index'!U:U,$B6,'C. Population PoC & Risk'!DH:DH)","v":1083442.6478955869},{"$f":"SUMIF('D. Population Risk Index'!V:V,$B6,'C. Population PoC & Risk'!DI:DI)","v":1052599.2382692262},{"$f":"SUMIF('D. Population Risk Index'!W:W,$B6,'C. Population PoC & Risk'!DJ:DJ)","v":1070783.4858477314},{"$f":"SUMIF('D. Population Risk Index'!X:X,$B6,'C. Population PoC & Risk'!DK:DK)","v":1075201.3199495729},{"$f":"SUMIF('D. Population Risk Index'!Y:Y,$B6,'C. Population PoC & Risk'!DL:DL)","v":1079794.8272183849},{"$f":"SUMIF('D. Population Risk Index'!Z:Z,$B6,'C. Population PoC & Risk'!DM:DM)","v":1084680.9602099215}]
[null,2,"R2($)",{"$f":"SUMIF('D. Population Risk Index'!O:O,$B7,'C. Population PoC & Risk'!DB:DB)","v":109550.94622050216},{"$f":"SUMIF('D. Population Risk Index'!P:P,$B7,'C. Population PoC & Risk'!DC:DC)","v":114261.55412731387},{"$f":"SUMIF('D. Population Risk Index'!Q:Q,$B7,'C. Population PoC & Risk'!DD:DD)","v":126339.16634976723},{"$f":"SUMIF('D. Population Risk Index'!R:R,$B7,'C. Population PoC & Risk'!DE:DE)","v":160519.67702104806},{"$f":"SUMIF('D. Population Risk Index'!S:S,$B7,'C. Population PoC & Risk'!DF:DF)","v":181345.4940086662},{"$f":"SUMIF('D. Population Risk Index'!T:T,$B7,'C. Population PoC & Risk'!DG:DG)","v":239181.65104615275},{"$f":"SUMIF('D. Population Risk Index'!U:U,$B7,'C. Population PoC & Risk'!DH:DH)","v":327867.19898669585},{"$f":"SUMIF('D. Population Risk Index'!V:V,$B7,'C. Population PoC & Risk'!DI:DI)","v":406112.236758966},{"$f":"SUMIF('D. Population Risk Index'!W:W,$B7,'C. Population PoC & Risk'!DJ:DJ)","v":437197.72162513342},{"$f":"SUMIF('D. Population Risk Index'!X:X,$B7,'C. Population PoC & Risk'!DK:DK)","v":469943.16154149798},{"$f":"SUMIF('D. Population Risk Index'!Y:Y,$B7,'C. Population PoC & Risk'!DL:DL)","v":517920.273191705},{"$f":"SUMIF('D. Population Risk Index'!Z:Z,$B7,'C. Population PoC & Risk'!DM:DM)","v":567578.74740656419}]
[null,3,"R3($)",{"$f":"SUMIF('D. Population Risk Index'!O:O,$B8,'C. Population PoC & Risk'!DB:DB)","v":0},{"$f":"SUMIF('D. Population Risk Index'!P:P,$B8,'C. Population PoC & Risk'!DC:DC)","v":0},{"$f":"SUMIF('D. Population Risk Index'!Q:Q,$B8,'C. Population PoC & Risk'!DD:DD)","v":0},{"$f":"SUMIF('D. Population Risk Index'!R:R,$B8,'C. Population PoC & Risk'!DE:DE)","v":0},{"$f":"SUMIF('D. Population Risk Index'!S:S,$B8,'C. Population PoC & Risk'!DF:DF)","v":14015.367172298858},{"$f":"SUMIF('D. Population Risk Index'!T:T,$B8,'C. Population PoC & Risk'!DG:DG)","v":14572.782710314199},{"$f":"SUMIF('D. Population Risk Index'!U:U,$B8,'C. Population PoC & Risk'!DH:DH)","v":15145.787645780865},{"$f":"SUMIF('D. Population Risk Index'!V:V,$B8,'C. Population PoC & Risk'!DI:DI)","v":15734.595446272566},{"$f":"SUMIF('D. Population Risk Index'!W:W,$B8,'C. Population PoC & Risk'!DJ:DJ)","v":16339.419538425369},{"$f":"SUMIF('D. Population Risk Index'!X:X,$B8,'C. Population PoC & Risk'!DK:DK)","v":30975.840480797513},{"$f":"SUMIF('D. Population Risk Index'!Y:Y,$B8,'C. Population PoC & Risk'!DL:DL)","v":32170.752813235231},{"$f":"SUMIF('D. Population Risk Index'!Z:Z,$B8,'C. Population PoC & Risk'!DM:DM)","v":33397.910874602647}]
[null,4,"R4($)",{"$f":"SUMIF('D. Population Risk Index'!O:O,$B9,'C. Population PoC & Risk'!DB:DB)","v":0},{"$f":"SUMIF('D. Population Risk Index'!P:P,$B9,'C. Population PoC & Risk'!DC:DC)","v":0},{"$f":"SUMIF('D. Population Risk Index'!Q:Q,$B9,'C. Population PoC & Risk'!DD:DD)","v":0},{"$f":"SUMIF('D. Population Risk Index'!R:R,$B9,'C. Population PoC & Risk'!DE:DE)","v":0},{"$f":"SUMIF('D. Population Risk Index'!S:S,$B9,'C. Population PoC & Risk'!DF:DF)","v":0},{"$f":"SUMIF('D. Population Risk Index'!T:T,$B9,'C. Population PoC & Risk'!DG:DG)","v":0},{"$f":"SUMIF('D. Population Risk Index'!U:U,$B9,'C. Population PoC & Risk'!DH:DH)","v":0},{"$f":"SUMIF('D. Population Risk Index'!V:V,$B9,'C. Population PoC & Risk'!DI:DI)","v":0},{"$f":"SUMIF('D. Population Risk Index'!W:W,$B9,'C. Population PoC & Risk'!DJ:DJ)","v":0},{"$f":"SUMIF('D. Population Risk Index'!X:X,$B9,'C. Population PoC & Risk'!DK:DK)","v":0},{"$f":"SUMIF('D. Population Risk Index'!Y:Y,$B9,'C. Population PoC & Risk'!DL:DL)","v":0},{"$f":"SUMIF('D. Population Risk Index'!Z:Z,$B9,'C. Population PoC & Risk'!DM:DM)","v":0}]
[null,5,"R5($)",{"$f":"SUMIF('D. Population Risk Index'!O:O,$B10,'C. Population PoC & Risk'!DB:DB)","v":0},{"$f":"SUMIF('D. Population Risk Index'!P:P,$B10,'C. Population PoC & Risk'!DC:DC)","v":0},{"$f":"SUMIF('D. Population Risk Index'!Q:Q,$B10,'C. Population PoC & Risk'!DD:DD)","v":0},{"$f":"SUMIF('D. Population Risk Index'!R:R,$B10,'C. Population PoC & Risk'!DE:DE)","v":0},{"$f":"SUMIF('D. Population Risk Index'!S:S,$B10,'C. Population PoC & Risk'!DF:DF)","v":0},{"$f":"SUMIF('D. Population Risk Index'!T:T,$B10,'C. Population PoC & Risk'!DG:DG)","v":0},{"$f":"SUMIF('D. Population Risk Index'!U:U,$B10,'C. Population PoC & Risk'!DH:DH)","v":0},{"$f":"SUMIF('D. Population Risk Index'!V:V,$B10,'C. Population PoC & Risk'!DI:DI)","v":0},{"$f":"SUMIF('D. Population Risk Index'!W:W,$B10,'C. Population PoC & Risk'!DJ:DJ)","v":0},{"$f":"SUMIF('D. Population Risk Index'!X:X,$B10,'C. Population PoC & Risk'!DK:DK)","v":0},{"$f":"SUMIF('D. Population Risk Index'!Y:Y,$B10,'C. Population PoC & Risk'!DL:DL)","v":0},{"$f":"SUMIF('D. Population Risk Index'!Z:Z,$B10,'C. Population PoC & Risk'!DM:DM)","v":0}]
[null,6,"R6($)",{"$f":"SUMIF('D. Population Risk Index'!O:O,$B11,'C. Population PoC & Risk'!DB:DB)","v":0},{"$f":"SUMIF('D. Population Risk Index'!P:P,$B11,'C. Population PoC & Risk'!DC:DC)","v":0},{"$f":"SUMIF('D. Population Risk Index'!Q:Q,$B11,'C. Population PoC & Risk'!DD:DD)","v":0},{"$f":"SUMIF('D. Population Risk Index'!R:R,$B11,'C. Population PoC & Risk'!DE:DE)","v":0},{"$f":"SUMIF('D. Population Risk Index'!S:S,$B11,'C. Population PoC & Risk'!DF:DF)","v":0},{"$f":"SUMIF('D. Population Risk Index'!T:T,$B11,'C. Population PoC & Risk'!DG:DG)","v":0},{"$f":"SUMIF('D. Population Risk Index'!U:U,$B11,'C. Population PoC & Risk'!DH:DH)","v":0},{"$f":"SUMIF('D. Population Risk Index'!V:V,$B11,'C. Population PoC & Risk'!DI:DI)","v":0},{"$f":"SUMIF('D. Population Risk Index'!W:W,$B11,'C. Population PoC & Risk'!DJ:DJ)","v":0},{"$f":"SUMIF('D. Population Risk Index'!X:X,$B11,'C. Population PoC & Risk'!DK:DK)","v":0},{"$f":"SUMIF('D. Population Risk Index'!Y:Y,$B11,'C. Population PoC & Risk'!DL:DL)","v":0},{"$f":"SUMIF('D. Population Risk Index'!Z:Z,$B11,'C. Population PoC & Risk'!DM:DM)","v":0}]
[null,7,"R7($)",{"$f":"SUMIF('D. Population Risk Index'!O:O,$B12,'C. Population PoC & Risk'!DB:DB)","v":0},{"$f":"SUMIF('D. Population Risk Index'!P:P,$B12,'C. Population PoC & Risk'!DC:DC)","v":0},{"$f":"SUMIF('D. Population Risk Index'!Q:Q,$B12,'C. Population PoC & Risk'!DD:DD)","v":0},{"$f":"SUMIF('D. Population Risk Index'!R:R,$B12,'C. Population PoC & Risk'!DE:DE)","v":0},{"$f":"SUMIF('D. Population Risk Index'!S:S,$B12,'C. Population PoC & Risk'!DF:DF)","v":0},{"$f":"SUMIF('D. Population Risk Index'!T:T,$B12,'C. Population PoC & Risk'!DG:DG)","v":0},{"$f":"SUMIF('D. Population Risk Index'!U:U,$B12,'C. Population PoC & Risk'!DH:DH)","v":0},{"$f":"SUMIF('D. Population Risk Index'!V:V,$B12,'C. Population PoC & Risk'!DI:DI)","v":0},{"$f":"SUMIF('D. Population Risk Index'!W:W,$B12,'C. Population PoC & Risk'!DJ:DJ)","v":0},{"$f":"SUMIF('D. Population Risk Index'!X:X,$B12,'C. Population PoC & Risk'!DK:DK)","v":0},{"$f":"SUMIF('D. Population Risk Index'!Y:Y,$B12,'C. Population PoC & Risk'!DL:DL)","v":0},{"$f":"SUMIF('D. Population Risk Index'!Z:Z,$B12,'C. Population PoC & Risk'!DM:DM)","v":0}]
[null,8,"R8($)",{"$f":"SUMIF('D. Population Risk Index'!O:O,$B13,'C. Population PoC & Risk'!DB:DB)","v":0},{"$f":"SUMIF('D. Population Risk Index'!P:P,$B13,'C. Population PoC & Risk'!DC:DC)","v":0},{"$f":"SUMIF('D. Population Risk Index'!Q:Q,$B13,'C. Population PoC & Risk'!DD:DD)","v":0},{"$f":"SUMIF('D. Population Risk Index'!R:R,$B13,'C. Population PoC & Risk'!DE:DE)","v":0},{"$f":"SUMIF('D. Population Risk Index'!S:S,$B13,'C. Population PoC & Risk'!DF:DF)","v":0},{"$f":"SUMIF('D. Population Risk Index'!T:T,$B13,'C. Population PoC & Risk'!DG:DG)","v":0},{"$f":"SUMIF('D. Population Risk Index'!U:U,$B13,'C. Population PoC & Risk'!DH:DH)","v":0},{"$f":"SUMIF('D. Population Risk Index'!V:V,$B13,'C. Population PoC & Risk'!DI:DI)","v":0},{"$f":"SUMIF('D. Population Risk Index'!W:W,$B13,'C. Population PoC & Risk'!DJ:DJ)","v":0},{"$f":"SUMIF('D. Population Risk Index'!X:X,$B13,'C. Population PoC & Risk'!DK:DK)","v":0},{"$f":"SUMIF('D. Population Risk Index'!Y:Y,$B13,'C. Population PoC & Risk'!DL:DL)","v":0},{"$f":"SUMIF('D. Population Risk Index'!Z:Z,$B13,'C. Population PoC & Risk'!DM:DM)","v":0}]
[null,9,"R9($)",{"$f":"SUMIF('D. Population Risk Index'!O:O,$B14,'C. Population PoC & Risk'!DB:DB)","v":0},{"$f":"SUMIF('D. Population Risk Index'!P:P,$B14,'C. Population PoC & Risk'!DC:DC)","v":0},{"$f":"SUMIF('D. Population Risk Index'!Q:Q,$B14,'C. Population PoC & Risk'!DD:DD)","v":0},{"$f":"SUMIF('D. Population Risk Index'!R:R,$B14,'C. Population PoC & Risk'!DE:DE)","v":0},{"$f":"SUMIF('D. Population Risk Index'!S:S,$B14,'C. Population PoC & Risk'!DF:DF)","v":0},{"$f":"SUMIF('D. Population Risk Index'!T:T,$B14,'C. Population PoC & Risk'!DG:DG)","v":0},{"$f":"SUMIF('D. Population Risk Index'!U:U,$B14,'C. Population PoC & Risk'!DH:DH)","v":0},{"$f":"SUMIF('D. Population Risk Index'!V:V,$B14,'C. Population PoC & Risk'!DI:DI)","v":0},{"$f":"SUMIF('D. Population Risk Index'!W:W,$B14,'C. Population PoC & Risk'!DJ:DJ)","v":0},{"$f":"SUMIF('D. Population Risk Index'!X:X,$B14,'C. Population PoC & Risk'!DK:DK)","v":0},{"$f":"SUMIF('D. Population Risk Index'!Y:Y,$B14,'C. Population PoC & Risk'!DL:DL)","v":0},{"$f":"SUMIF('D. Population Risk Index'!Z:Z,$B14,'C. Population PoC & Risk'!DM:DM)","v":0}]
[null,10,"R10($)",{"$f":"SUMIF('D. Population Risk Index'!O:O,$B15,'C. Population PoC & Risk'!DB:DB)","v":0},{"$f":"SUMIF('D. Population Risk Index'!P:P,$B15,'C. Population PoC & Risk'!DC:DC)","v":0},{"$f":"SUMIF('D. Population Risk Index'!Q:Q,$B15,'C. Population PoC & Risk'!DD:DD)","v":0},{"$f":"SUMIF('D. Population Risk Index'!R:R,$B15,'C. Population PoC & Risk'!DE:DE)","v":0},{"$f":"SUMIF('D. Population Risk Index'!S:S,$B15,'C. Population PoC & Risk'!DF:DF)","v":0},{"$f":"SUMIF('D. Population Risk Index'!T:T,$B15,'C. Population PoC & Risk'!DG:DG)","v":0},{"$f":"SUMIF('D. Population Risk Index'!U:U,$B15,'C. Population PoC & Risk'!DH:DH)","v":0},{"$f":"SUMIF('D. Population Risk Index'!V:V,$B15,'C. Population PoC & Risk'!DI:DI)","v":0},{"$f":"SUMIF('D. Population Risk Index'!W:W,$B15,'C. Population PoC & Risk'!DJ:DJ)","v":0},{"$f":"SUMIF('D. Population Risk Index'!X:X,$B15,'C. Population PoC & Risk'!DK:DK)","v":0},{"$f":"SUMIF('D. Population Risk Index'!Y:Y,$B15,'C. Population PoC & Risk'!DL:DL)","v":0},{"$f":"SUMIF('D. Population Risk Index'!Z:Z,$B15,'C. Population PoC & Risk'!DM:DM)","v":0}]
[null,"Total Risk Cost: R1($) to R6($)",null,{"$f":"SUM(D6:D11)","v":1175735.519389628},{"$f":"SUM(E6:E11)","v":1213304.0020257854},1252502.148089974,1293373.5658326461,1335961.3126283658,1380307.9585680494,1426455.6345280637,1474446.0704744647,1524320.6270112901,1576120.3219718684,1629885.853223325,1685657.6184910883]
[null,"Total Risk Cost: R7($) to R10($)",null,{"$f":"SUM(D12:D15)","v":0},{"$f":"SUM(E12:E15)","v":0},0,0,0,0,0,0,0,0,0,0]
[null,"Total Risk Cost",null,{"$f":"SUM(D6:D15)","v":1175735.519389628},{"$f":"SUM(E6:E15)","v":1213304.0020257854},1252502.148089974,1293373.5658326461,1335961.3126283658,1380307.9585680494,1426455.6345280637,1474446.0704744647,1524320.6270112901,1576120.3219718684,1629885.853223325,1685657.6184910883]
[]
[null,null,null,null,null,null,null,null,null,null,null,null,null,null,null,null,null,"REACTIVE REPLACEMENTS",null,2019,2020,2021,2022,2023,2024,2025,2026,2027,2028,2029,2030]
[null,null,null,null,null,null,null,null,null,null,null,null,null,null,null,null,null,"Number of Failures","Count",{"$f":"ROUND('B. Asset PoF & Health Index'!J4, 0)","v":3},{"$f":"ROUND('B. Asset PoF & Health Index'!K4, 0)","v":3},{"$f":"ROUND('B. Asset PoF & Health Index'!L4, 0)","v":4},{"$f":"ROUND('B. Asset PoF & Health Index'!M4, 0)","v":4},{"$f":"ROUND('B. Asset PoF & Health Index'!N4, 0)","v":4},{"$f":"ROUND('B. Asset PoF & Health Index'!O4, 0)","v":4},{"$f":"ROUND('B. Asset PoF & Health Index'!P4, 0)","v":5},{"$f":"ROUND('B. Asset PoF & Health Index'!Q4, 0)","v":5},{"$f":"ROUND('B. Asset PoF & Health Index'!R4, 0)","v":5},{"$f":"ROUND('B. Asset PoF & Health Index'!S4, 0)","v":5},{"$f":"ROUND('B. Asset PoF & Health Index'!T4, 0)","v":6},{"$f":"ROUND('B. Asset PoF & Health Index'!U4, 0)","v":6}]
[null,null,null,null,null,null,null,null,null,null,null,null,null,null,null,null,null,"Number of Failures Requiring Replacement","Count",{"$f":"ROUND(T21*'C. PoC Summary Stats & Para'!$E$32, 0)","v":3},{"$f":"ROUND(U21*'C. PoC Summary Stats & Para'!$E$32, 0)","v":3},{"$f":"ROUND(V21*'C. PoC Summary Stats & Para'!$E$32, 0)","v":4},{"$f":"ROUND(W21*'C. PoC Summary Stats & Para'!$E$32, 0)","v":4},{"$f":"ROUND(X21*'C. PoC Summary Stats & Para'!$E$32, 0)","v":4},{"$f":"ROUND(Y21*'C. PoC Summary Stats & Para'!$E$32, 0)","v":4},{"$f":"ROUND(Z21*'C. PoC Summary Stats & Para'!$E$32, 0)","v":5},{"$f":"ROUND(AA21*'C. PoC Summary Stats & Para'!$E$32, 0)","v":5},{"$f":"ROUND(AB21*'C. PoC Summary Stats & Para'!$E$32, 0)","v":5},{"$f":"ROUND(AC21*'C. PoC Summary Stats & Para'!$E$32, 0)","v":5},{"$f":"ROUND(AD21*'C. PoC Summary Stats & Para'!$E$32, 0)","v":6},{"$f":"ROUND(AE21*'C. PoC Summary Stats & Para'!$E$32, 0)","v":6}]
[null,null,null,null,null,null,null,null,null,null,null,null,null,null,null,null,null,"Reactive Replacement Cost (per unit)","$",{"$f":"'C. PoC Summary Stats & Para'!$E$31","v":1120000},{"$f":"'C. PoC Summary Stats & Para'!$E$31","v":1120000},{"$f":"'C. PoC Summary Stats & Para'!$E$31","v":1120000},{"$f":"'C. PoC Summary Stats & Para'!$E$31","v":1120000},{"$f":"'C. PoC Summary Stats & Para'!$E$31","v":1120000},{"$f":"'C. PoC Summary Stats & Para'!$E$31","v":1120000},{"$f":"'C. PoC Summary Stats & Para'!$E$31","v":1120000},{"$f":"'C. PoC Summary Stats & Para'!$E$31","v":1120000},{"$f":"'C. PoC Summary Stats & Para'!$E$31","v":1120000},{"$f":"'C. PoC Summary Stats & Para'!$E$31","v":1120000},{"$f":"'C. PoC Summary Stats & Para'!$E$31","v":1120000},{"$f":"'C. PoC Summary Stats & Para'!$E$31","v":1120000}]
[null,null,null,null,null,null,null,null,null,null,null,null,null,null,null,null,null,"Reactive Replacement Cost (total)","$",{"$f":"T22*T23","v":3360000},3360000,4480000,4480000,4480000,4480000,5600000,5600000,5600000,5600000,6720000,6720000]
[]
[]
[]
[]
[]
[]
[]
[]
[]
[]
[null,"NUMBER OF ASSET UNITS BY RISK INDEX CATEGORY",null,2019,2020,2021,2022,2023,2024,2025,2026,2027,2028,2029,2030,null,null,"Base Case Option",null,null,"FY20","FY21","FY22","FY23","FY24",null,null,null,null,null,null,null,null,"Option Two",null,null,"FY20","FY21","FY22","FY23","FY24",null,null,null,null,null,null,null,null,"Option Three",null,null,"FY20","FY21","FY22","FY23","FY24"]
[null,1,"R1($)",{"$f":"SUMIF('D. Population Risk Index'!O:O,$B36,'A. Population Info'!$C:$C)","v":555},{"$f":"SUMIF('D. Population Risk Index'!P:P,$B36,'A. Population Info'!$C:$C)","v":555},{"$f":"SUMIF('D. Population Risk Index'!Q:Q,$B36,'A. Population Info'!$C:$C)","v":554},{"$f":"SUMIF('D. Population Risk Index'!R:R,$B36,'A. Population Info'!$C:$C)","v":550},{"$f":"SUMIF('D. Population Risk Index'!S:S,$B36,'A. Population Info'!$C:$C)","v":546},{"$f":"SUMIF('D. Population Risk Index'!T:T,$B36,'A. Population Info'!$C:$C)","v":539},{"$f":"SUMIF('D. Population Risk Index'!U:U,$B36,'A. Population Info'!$C:$C)","v":528},{"$f":"SUMIF('D. Population Risk Index'!V:V,$B36,'A. Population Info'!$C:$C)","v":519},{"$f":"SUMIF('D. Population Risk Index'!W:W,$B36,'A. Population Info'!$C:$C)","v":517},{"$f":"SUMIF('D. Population Risk Index'!X:X,$B36,'A. Population Info'!$C:$C)","v":513},{"$f":"SUMIF('D. Population Risk Index'!Y:Y,$B36,'A. Population Info'!$C:$C)","v":509},{"$f":"SUMIF('D. Population Risk Index'!Z:Z,$B36,'A. Population Info'!$C:$C)","v":505},null,null,"Annual Reactive Cost FY20-24",null,null,{"$f":"U24","v":3360000},{"$f":"V24","v":4480000},{"$f":"W24","v":4480000},{"$f":"X24","v":4480000},{"$f":"Y24","v":4480000},null,null,null,null,null,null,null,null,"Volumes for replacement (Option One)",null,null,{"$f":"AK55","v":0},{"$f":"AL55","v":0},{"$f":"AM55","v":0},{"$f":"AN55","v":0},{"$f":"AO55","v":0},null,null,null,null,null,null,null,null,"Volumes for replacement (Option Two)",null,null,{"$f":"BA55","v":0},{"$f":"BB55","v":0},0,0,0]
[null,2,"R2($)",{"$f":"SUMIF('D. Population Risk Index'!O:O,$B37,'A. Population Info'!$C:$C)","v":13},{"$f":"SUMIF('D. Population Risk Index'!P:P,$B37,'A. Population Info'!$C:$C)","v":13},{"$f":"SUMIF('D. Population Risk Index'!Q:Q,$B37,'A. Population Info'!$C:$C)","v":14},{"$f":"SUMIF('D. Population Risk Index'!R:R,$B37,'A. Population Info'!$C:$C)","v":18},{"$f":"SUMIF('D. Population Risk Index'!S:S,$B37,'A. Population Info'!$C:$C)","v":21},{"$f":"SUMIF('D. Population Risk Index'!T:T,$B37,'A. Population Info'!$C:$C)","v":28},{"$f":"SUMIF('D. Population Risk Index'!U:U,$B37,'A. Population Info'!$C:$C)","v":39},{"$f":"SUMIF('D. Population Risk Index'!V:V,$B37,'A. Population Info'!$C:$C)","v":48},{"$f":"SUMIF('D. Population Risk Index'!W:W,$B37,'A. Population Info'!$C:$C)","v":50},{"$f":"SUMIF('D. Population Risk Index'!X:X,$B37,'A. Population Info'!$C:$C)","v":53},{"$f":"SUMIF('D. Population Risk Index'!Y:Y,$B37,'A. Population Info'!$C:$C)","v":57},{"$f":"SUMIF('D. Population Risk Index'!Z:Z,$B37,'A. Population Info'!$C:$C)","v":61}]
[null,3,"R3($)",{"$f":"SUMIF('D. Population Risk Index'!O:O,$B38,'A. Population Info'!$C:$C)","v":0},{"$f":"SUMIF('D. Population Risk Index'!P:P,$B38,'A. Population Info'!$C:$C)","v":0},{"$f":"SUMIF('D. Population Risk Index'!Q:Q,$B38,'A. Population Info'!$C:$C)","v":0},{"$f":"SUMIF('D. Population Risk Index'!R:R,$B38,'A. Population Info'!$C:$C)","v":0},{"$f":"SUMIF('D. Population Risk Index'!S:S,$B38,'A. Population Info'!$C:$C)","v":1},{"$f":"SUMIF('D. Population Risk Index'!T:T,$B38,'A. Population Info'!$C:$C)","v":1},{"$f":"SUMIF('D. Population Risk Index'!U:U,$B38,'A. Population Info'!$C:$C)","v":1},{"$f":"SUMIF('D. Population Risk Index'!V:V,$B38,'A. Population Info'!$C:$C)","v":1},{"$f":"SUMIF('D. Population Risk Index'!W:W,$B38,'A. Population Info'!$C:$C)","v":1},{"$f":"SUMIF('D. Population Risk Index'!X:X,$B38,'A. Population Info'!$C:$C)","v":2},{"$f":"SUMIF('D. Population Risk Index'!Y:Y,$B38,'A. Population Info'!$C:$C)","v":2},{"$f":"SUMIF('D. Population Risk Index'!Z:Z,$B38,'A. Population Info'!$C:$C)","v":2},null,null,"Total (Base Case) Reactive Replacements FY20-24",null,null,{"$f":"ROUND(SUM(U22:Y22), 0)","v":19},null,null,null,null,null,null,null,null,null,null,null,null,"Total Volume for replacement (Option One) FY20-24",null,null,{"$f":"SUM(AK36:AO36)","v":0},null,null,null,null,null,null,null,null,null,null,null,null,"Total Volume for replacement (Option Two) FY20-24",null,null,{"$f":"SUM(BA36:BE36)","v":0}]
[null,4,"R4($)",{"$f":"SUMIF('D. Population Risk Index'!O:O,$B39,'A. Population Info'!$C:$C)","v":0},{"$f":"SUMIF('D. Population Risk Index'!P:P,$B39,'A. Population Info'!$C:$C)","v":0},{"$f":"SUMIF('D. Population Risk Index'!Q:Q,$B39,'A. Population Info'!$C:$C)","v":0},{"$f":"SUMIF('D. Population Risk Index'!R:R,$B39,'A. Population Info'!$C:$C)","v":0},{"$f":"SUMIF('D. Population Risk Index'!S:S,$B39,'A. Population Info'!$C:$C)","v":0},{"$f":"SUMIF('D. Population Risk Index'!T:T,$B39,'A. Population Info'!$C:$C)","v":0},{"$f":"SUMIF('D. Population Risk Index'!U:U,$B39,'A. Population Info'!$C:$C)","v":0},{"$f":"SUMIF('D. Population Risk Index'!V:V,$B39,'A. Population Info'!$C:$C)","v":0},{"$f":"SUMIF('D. Population Risk Index'!W:W,$B39,'A. Population Info'!$C:$C)","v":0},{"$f":"SUMIF('D. Population Risk Index'!X:X,$B39,'A. Population Info'!$C:$C)","v":0},{"$f":"SUMIF('D. Population Risk Index'!Y:Y,$B39,'A. Population Info'!$C:$C)","v":0},{"$f":"SUMIF('D. Population Risk Index'!Z:Z,$B39,'A. Population Info'!$C:$C)","v":0},null,null,"Total Base Case (Reactive) Cost FY20-24",null,null,{"$f":"SUM(U36:Y36)","v":21280000},null,null,null,null,null,null,null,null,null,null,null,null,"Average Volume for replacement (Option One) FY20-24",null,null,{"$f":"AVERAGE(AK36:AO36)","v":0},null,null,null,null,null,null,null,null,null,null,null,null,"Average Volume for replacement (Option Two) FY20-24",null,null,{"$f":"AVERAGE(BA36:BE36)","v":0}]
[null,5,"R5($)",{"$f":"SUMIF('D. Population Risk Index'!O:O,$B40,'A. Population Info'!$C:$C)","v":0},{"$f":"SUMIF('D. Population Risk Index'!P:P,$B40,'A. Population Info'!$C:$C)","v":0},{"$f":"SUMIF('D. Population Risk Index'!Q:Q,$B40,'A. Population Info'!$C:$C)","v":0},{"$f":"SUMIF('D. Population Risk Index'!R:R,$B40,'A. Population Info'!$C:$C)","v":0},{"$f":"SUMIF('D. Population Risk Index'!S:S,$B40,'A. Population Info'!$C:$C)","v":0},{"$f":"SUMIF('D. Population Risk Index'!T:T,$B40,'A. Population Info'!$C:$C)","v":0},{"$f":"SUMIF('D. Population Risk Index'!U:U,$B40,'A. Population Info'!$C:$C)","v":0},{"$f":"SUMIF('D. Population Risk Index'!V:V,$B40,'A. Population Info'!$C:$C)","v":0},{"$f":"SUMIF('D. Population Risk Index'!W:W,$B40,'A. Population Info'!$C:$C)","v":0},{"$f":"SUMIF('D. Population Risk Index'!X:X,$B40,'A. Population Info'!$C:$C)","v":0},{"$f":"SUMIF('D. Population Risk Index'!Y:Y,$B40,'A. Population Info'!$C:$C)","v":0},{"$f":"SUMIF('D. Population Risk Index'!Z:Z,$B40,'A. Population Info'!$C:$C)","v":0},null,null,null,null,null,null,null,null,null,null,null,null,null,null,null,null,null,null,"Total Program Cost  for replacement (Option One) FY20-24",null,null,{"$f":"SUM(AK58:AO58)","v":0},null,null,null,null,null,null,null,null,null,null,null,null,"Total Program Cost  for replacement (Option Two) FY20-24",null,null,{"$f":"SUM(BA58:BE58)","v":0}]
[null,6,"R6($)",{"$f":"SUMIF('D. Population Risk Index'!O:O,$B41,'A. Population Info'!$C:$C)","v":0},{"$f":"SUMIF('D. Population Risk Index'!P:P,$B41,'A. Population Info'!$C:$C)","v":0},{"$f":"SUMIF('D. Population Risk Index'!Q:Q,$B41,'A. Population Info'!$C:$C)","v":0},{"$f":"SUMIF('D. Population Risk Index'!R:R,$B41,'A. Population Info'!$C:$C)","v":0},{"$f":"SUMIF('D. Population Risk Index'!S:S,$B41,'A. Population Info'!$C:$C)","v":0},{"$f":"SUMIF('D. Population Risk Index'!T:T,$B41,'A. Population Info'!$C:$C)","v":0},{"$f":"SUMIF('D. Population Risk Index'!U:U,$B41,'A. Population Info'!$C:$C)","v":0},{"$f":"SUMIF('D. Population Risk Index'!V:V,$B41,'A. Population Info'!$C:$C)","v":0},{"$f":"SUMIF('D. Population Risk Index'!W:W,$B41,'A. Population Info'!$C:$C)","v":0},{"$f":"SUMIF('D. Population Risk Index'!X:X,$B41,'A. Population Info'!$C:$C)","v":0},{"$f":"SUMIF('D. Population Risk Index'!Y:Y,$B41,'A. Population Info'!$C:$C)","v":0},{"$f":"SUMIF('D. Population Risk Index'!Z:Z,$B41,'A. Population Info'!$C:$C)","v":0}]
[null,7,"R7($)",{"$f":"SUMIF('D. Population Risk Index'!O:O,$B42,'A. Population Info'!$C:$C)","v":0},{"$f":"SUMIF('D. Population Risk Index'!P:P,$B42,'A. Population Info'!$C:$C)","v":0},{"$f":"SUMIF('D. Population Risk Index'!Q:Q,$B42,'A. Population Info'!$C:$C)","v":0},{"$f":"SUMIF('D. Population Risk Index'!R:R,$B42,'A. Population Info'!$C:$C)","v":0},{"$f":"SUMIF('D. Population Risk Index'!S:S,$B42,'A. Population Info'!$C:$C)","v":0},{"$f":"SUMIF('D. Population Risk Index'!T:T,$B42,'A. Population Info'!$C:$C)","v":0},{"$f":"SUMIF('D. Population Risk Index'!U:U,$B42,'A. Population Info'!$C:$C)","v":0},{"$f":"SUMIF('D. Population Risk Index'!V:V,$B42,'A. Population Info'!$C:$C)","v":0},{"$f":"SUMIF('D. Population Risk Index'!W:W,$B42,'A. Population Info'!$C:$C)","v":0},{"$f":"SUMIF('D. Population Risk Index'!X:X,$B42,'A. Population Info'!$C:$C)","v":0},{"$f":"SUMIF('D. Population Risk Index'!Y:Y,$B42,'A. Population Info'!$C:$C)","v":0},{"$f":"SUMIF('D. Population Risk Index'!Z:Z,$B42,'A. Population Info'!$C:$C)","v":0},null,null,null,null,null,null,null,null,null,null,null,null,null,null,null,null,null,null,"Additional Reactive Replacements FY20-24",null,null,{"$f":"MAX($U$38-ROUND(AK38, 0), 0)","v":19},null,null,null,null,null,null,null,null,null,null,null,null,"Additional Reactive Replacements FY20-24",null,null,{"$f":"MAX($U$38-ROUND(BA38, 0), 0)","v":19}]
[null,8,"R8($)",{"$f":"SUMIF('D. Population Risk Index'!O:O,$B43,'A. Population Info'!$C:$C)","v":0},{"$f":"SUMIF('D. Population Risk Index'!P:P,$B43,'A. Population Info'!$C:$C)","v":0},{"$f":"SUMIF('D. Population Risk Index'!Q:Q,$B43,'A. Population Info'!$C:$C)","v":0},{"$f":"SUMIF('D. Population Risk Index'!R:R,$B43,'A. Population Info'!$C:$C)","v":0},{"$f":"SUMIF('D. Population Risk Index'!S:S,$B43,'A. Population Info'!$C:$C)","v":0},{"$f":"SUMIF('D. Population Risk Index'!T:T,$B43,'A. Population Info'!$C:$C)","v":0},{"$f":"SUMIF('D. Population Risk Index'!U:U,$B43,'A. Population Info'!$C:$C)","v":0},{"$f":"SUMIF('D. Population Risk Index'!V:V,$B43,'A. Population Info'!$C:$C)","v":0},{"$f":"SUMIF('D. Population Risk Index'!W:W,$B43,'A. Population Info'!$C:$C)","v":0},{"$f":"SUMIF('D. Population Risk Index'!X:X,$B43,'A. Population Info'!$C:$C)","v":0},{"$f":"SUMIF('D. Population Risk Index'!Y:Y,$B43,'A. Population Info'!$C:$C)","v":0},{"$f":"SUMIF('D. Population Risk Index'!Z:Z,$B43,'A. Population Info'!$C:$C)","v":0},null,null,null,null,null,null,null,null,null,null,null,null,null,null,null,null,null,null,"Additional Reactive Cost FY20-24",null,null,{"$f":"AK42*'C. PoC Summary Stats & Para'!$E$31","v":21280000},null,null,null,null,null,null,null,null,null,null,null,null,"Additional Reactive Cost FY20-24",null,null,{"$f":"BA42*'C. PoC Summary Stats & Para'!$E$31","v":21280000}]
[null,9,"R9($)",{"$f":"SUMIF('D. Population Risk Index'!O:O,$B44,'A. Population Info'!$C:$C)","v":0},{"$f":"SUMIF('D. Population Risk Index'!P:P,$B44,'A. Population Info'!$C:$C)","v":0},{"$f":"SUMIF('D. Population Risk Index'!Q:Q,$B44,'A. Population Info'!$C:$C)","v":0},{"$f":"SUMIF('D. Population Risk Index'!R:R,$B44,'A. Population Info'!$C:$C)","v":0},{"$f":"SUMIF('D. Population Risk Index'!S:S,$B44,'A. Population Info'!$C:$C)","v":0},{"$f":"SUMIF('D. Population Risk Index'!T:T,$B44,'A. Population Info'!$C:$C)","v":0},{"$f":"SUMIF('D. Population Risk Index'!U:U,$B44,'A. Population Info'!$C:$C)","v":0},{"$f":"SUMIF('D. Population Risk Index'!V:V,$B44,'A. Population Info'!$C:$C)","v":0},{"$f":"SUMIF('D. Population Risk Index'!W:W,$B44,'A. Population Info'!$C:$C)","v":0},{"$f":"SUMIF('D. Population Risk Index'!X:X,$B44,'A. Population Info'!$C:$C)","v":0},{"$f":"SUMIF('D. Population Risk Index'!Y:Y,$B44,'A. Population Info'!$C:$C)","v":0},{"$f":"SUMIF('D. Population Risk Index'!Z:Z,$B44,'A. Population Info'!$C:$C)","v":0}]
[null,10,"R10($)",{"$f":"SUMIF('D. Population Risk Index'!O:O,$B45,'A. Population Info'!$C:$C)","v":0},{"$f":"SUMIF('D. Population Risk Index'!P:P,$B45,'A. Population Info'!$C:$C)","v":0},{"$f":"SUMIF('D. Population Risk Index'!Q:Q,$B45,'A. Population Info'!$C:$C)","v":0},{"$f":"SUMIF('D. Population Risk Index'!R:R,$B45,'A. Population Info'!$C:$C)","v":0},{"$f":"SUMIF('D. Population Risk Index'!S:S,$B45,'A. Population Info'!$C:$C)","v":0},{"$f":"SUMIF('D. Population Risk Index'!T:T,$B45,'A. Population Info'!$C:$C)","v":0},{"$f":"SUMIF('D. Population Risk Index'!U:U,$B45,'A. Population Info'!$C:$C)","v":0},{"$f":"SUMIF('D. Population Risk Index'!V:V,$B45,'A. Population Info'!$C:$C)","v":0},{"$f":"SUMIF('D. Population Risk Index'!W:W,$B45,'A. Population Info'!$C:$C)","v":0},{"$f":"SUMIF('D. Population Risk Index'!X:X,$B45,'A. Population Info'!$C:$C)","v":0},{"$f":"SUMIF('D. Population Risk Index'!Y:Y,$B45,'A. Population Info'!$C:$C)","v":0},{"$f":"SUMIF('D. Population Risk Index'!Z:Z,$B45,'A. Population Info'!$C:$C)","v":0}]
[null,"Asset Volume R1 to R6",null,{"$f":"SUM(D36:D41)","v":568},568,568,568,568,568,568,568,568,568,568,568]
[null,"Asset Volume R7 to R10",null,{"$f":"SUM(D42:D45)","v":0},0,0,0,0,0,0,0,0,0,0,0]
[null,"Total Asset Volume",null,{"$f":"SUM(D36:D45)","v":568},568,568,568,568,568,568,568,568,568,568,568]
[]
[null,null,null,null,null,null,null,null,null,null,null,null,null,null,null,null,null,null,null,null,null,null,null,null,null,null,null,null,null,null,null,null,null,"Option Two – Replace where cost benefit positive",null,null,null,null,null,null,null,null,null,null,null,null,null,null,null,"Option Three – Replace all cost benefit positive by the end of the period"]
[]
[null,null,null,null,null,null,null,null,null,null,null,null,null,null,null,null,null,null,null,null,null,null,null,null,null,null,null,null,null,null,null,null,null,"PROPOSED ASSET REPLACEMENT PROGRAM",null,2019,2020,2021,2022,2023,2024,2025,2026,2027,2028,2029,2030,null,null,"PROPOSED ASSET REPLACEMENT PROGRAM (OPTION TWO)",null,2019,2020,2021,2022,2023,2024,2025,2026,2027,2028,2029,2030]
[null,null,null,null,null,null,null,null,null,null,null,null,null,null,null,null,null,null,null,null,null,null,null,null,null,null,null,null,null,null,null,null,null,"Assets CBA positive","Count",{"$f":"D47","v":0},0,0,0,0,0,0,0,0,0,0,0,null,null,"No. Assets CBA +ve","Count",{"$f":"D47","v":0},0,0,0,0,0,0,0,0,0,0,0]
[]
[null,null,null,null,null,null,null,null,null,null,null,null,null,null,null,null,null,null,null,null,null,null,null,null,null,null,null,null,null,null,null,null,null,"Planned Replacement Vol.","Count",6,{"$f":"MAX(AK53-AJ56, 0)","v":0},{"$f":"MAX(AL53-AK56, 0)","v":0},0,0,0,0,0,0,0,0,0,null,null,"Planned Replacement Vol.","Count",{"$f":"AJ55","v":6},{"$f":"MAX(($BE$53-$AZ$56)/COUNT($BA$53:$BE$53), 0)","v":0},{"$f":"MAX(($BE$53-$AZ$56)/COUNT($BA$53:$BE$53), 0)","v":0},{"$f":"MAX(($BE$53-$AZ$56)/COUNT($BA$53:$BE$53), 0)","v":0},{"$f":"MAX(($BE$53-$AZ$56)/COUNT($BA$53:$BE$53), 0)","v":0},{"$f":"MAX(($BE$53-$AZ$56)/COUNT($BA$53:$BE$53), 0)","v":0},{"$f":"MAX(($BK$53-$BE$56)/COUNT($BF$53:$BK$53), 0)","v":0},{"$f":"MAX(($BK$53-$BE$56)/COUNT($BF$53:$BK$53), 0)","v":0},{"$f":"MAX(($BK$53-$BE$56)/COUNT($BF$53:$BK$53), 0)","v":0},0,0,0]
[null,null,null,null,null,null,null,null,null,null,null,null,null,null,null,null,null,null,null,null,null,null,null,null,null,null,null,null,null,null,null,null,null,"Cumulative Replacements","Count",{"$f":"AJ55","v":6},{"$f":"AJ56+AK55","v":6},6,6,6,6,6,6,6,6,6,6,null,null,"Cumulative Replacements","Count",{"$f":"AZ55","v":6},{"$f":"AZ56+BA55","v":6},{"$f":"BA56+BB55","v":6},6,6,6,6,6,6,6,6,6]
[null,null,null,null,null,null,null,null,null,null,null,null,null,null,null,null,null,null,null,null,null,null,null,null,null,null,null,null,null,null,null,null,null,"Unit Rate","$",{"$f":"AK57","v":1120000},1120000,1120000,1120000,1120000,1120000,1120000,1120000,1120000,1120000,1120000,{"$f":"AT57","v":1120000},null,null,"Unit Rate","$",{"$f":"AJ57","v":1120000},1120000,1120000,1120000,1120000,1120000,1120000,1120000,1120000,1120000,1120000,1120000]
[null,null,null,null,null,null,null,null,null,null,null,null,null,null,null,null,null,null,null,null,null,null,null,null,null,null,null,null,null,null,null,null,null,"Annual Program Cost","$",{"$f":"AJ55*AJ57","v":6720000},{"$f":"AK55*AK57","v":0},{"$f":"AL55*AL57","v":0},0,0,0,0,0,0,0,0,0,null,null,"Annual Program Cost","$",{"$f":"AZ55*AZ57","v":6720000},{"$f":"BA55*BA57","v":0},{"$f":"BB55*BB57","v":0},{"$f":"BC55*BC57","v":0},0,0,0,0,0,0,0,0]
[null,null,null,null,null,null,null,null,null,null,null,null,null,null,null,null,null,null,null,null,null,null,null,null,null,null,null,null,null,null,null,null,null,"Estimated Realised Benefit","$",{"$f":"AJ125","v":50561.975178693305},{"$f":"AK125","v":52736.101904914096},54145.357007043101,53506.559007016025,57192.865745790819,57283.791825698623,57180.043926126476,58037.95344199815,60059.191700938711,66443.248899023747,68516.035142477675,70616.189393065899,null,null,"Estimated Realised Benefit","$",{"$f":"AZ125","v":50561.975178693305},52736.101904914096,54145.357007043101,53506.559007016025,57192.865745790819,57283.791825698623,57180.043926126476,58037.95344199815,60059.191700938711,66443.248899023747,68516.035142477675,70616.189393065899]
[null,null,null,null,null,null,null,null,null,null,null,null,null,null,null,null,null,null,null,null,null,null,null,null,null,null,null,null,null,null,null,null,null,"Annual Deferral Benefit (ADB)","One Year",{"$f":"AJ55*'D. Risk Index Parameters'!$E$20","v":252242.54090471606},{"$f":"AK55*'D. Risk Index Parameters'!$E$20","v":0},{"$f":"AL55*'D. Risk Index Parameters'!$E$20","v":0},{"$f":"AM55*'D. Risk Index Parameters'!$E$20","v":0},{"$f":"AN55*'D. Risk Index Parameters'!$E$20","v":0},{"$f":"AO55*'D. Risk Index Parameters'!$E$20","v":0},{"$f":"AP55*'D. Risk Index Parameters'!$E$20","v":0},{"$f":"AQ55*'D. Risk Index Parameters'!$E$20","v":0},{"$f":"AR55*'D. Risk Index Parameters'!$E$20","v":0},{"$f":"AS55*'D. Risk Index Parameters'!$E$20","v":0},{"$f":"AT55*'D. Risk Index Parameters'!$E$20","v":0},{"$f":"AU55*'D. Risk Index Parameters'!$E$20","v":0},null,null,"Annual Deferral Benefit (ADB)","One Year",{"$f":"AZ55*'D. Risk Index Parameters'!$E$20","v":252242.54090471606},{"$f":"BA55*'D. Risk Index Parameters'!$E$20","v":0},{"$f":"BB55*'D. Risk Index Parameters'!$E$20","v":0},{"$f":"BC55*'D. Risk Index Parameters'!$E$20","v":0},{"$f":"BD55*'D. Risk Index Parameters'!$E$20","v":0},{"$f":"BE55*'D. Risk Index Parameters'!$E$20","v":0},{"$f":"BF55*'D. Risk Index Parameters'!$E$20","v":0},{"$f":"BG55*'D. Risk Index Parameters'!$E$20","v":0},{"$f":"BH55*'D. Risk Index Parameters'!$E$20","v":0},{"$f":"BI55*'D. Risk Index Parameters'!$E$20","v":0},{"$f":"BJ55*'D. Risk Index Parameters'!$E$20","v":0},{"$f":"BK55*'D. Risk Index Parameters'!$E$20","v":0}]
[null,null,null,null,null,null,null,null,null,null,null,null,null,null,null,null,null,null,null,null,null,null,null,null,null,null,null,null,null,null,null,null,null,"Annual Deferral Benefit (ADB)","Cumulative",{"$f":"AJ60","v":252242.54090471606},{"$f":"AK60+AJ61","v":252242.54090471606},{"$f":"AL60+AK61","v":252242.54090471606},{"$f":"AM60+AL61","v":252242.54090471606},252242.54090471606,252242.54090471606,252242.54090471606,252242.54090471606,252242.54090471606,252242.54090471606,252242.54090471606,252242.54090471606,null,null,"Annual Deferral Benefit (ADB)","Cumulative",{"$f":"AZ60","v":252242.54090471606},{"$f":"BA60+AZ61","v":252242.54090471606},{"$f":"BB60+BA61","v":252242.54090471606},{"$f":"BC60+BB61","v":252242.54090471606},252242.54090471606,252242.54090471606,252242.54090471606,252242.54090471606,252242.54090471606,252242.54090471606,252242.54090471606,252242.54090471606]
[null,null,null,null,null,null,null,null,null,null,null,null,null,null,null,null,null,null,null,null,null,null,null,null,null,null,null,null,null,null,null,null,null,"Net Customer Benefit","$",{"$f":"AJ59-AJ61","v":-201680.56572602276},{"$f":"AK59-AK61","v":-199506.43899980196},-198097.18389767298,-198735.98189770005,-195049.67515892524,-194958.74907901743,-195062.4969785896,-194204.5874627179,-192183.34920377735,-185799.29200569232,-183726.5057622384,-181626.35151165017,null,null,"Net Customer Benefit","$",{"$f":"AZ59-AZ61","v":-201680.56572602276},{"$f":"BA59-BA61","v":-199506.43899980196},-198097.18389767298,-198735.98189770005,-195049.67515892524,-194958.74907901743,-195062.4969785896,-194204.5874627179,-192183.34920377735,-185799.29200569232,-183726.5057622384,-181626.35151165017]
[]
[]
[]
[]
[null,null,null,null,null,null,null,null,null,null,null,null,null,null,null,null,null,null,null,null,null,null,null,null,null,null,null,null,null,null,null,null,null,"NUMBER OF ASSET UNITS REMAINING BY RISK INDEX CATEGORY",null,2019,2020,2021,2022,2023,2024,2025,2026,2027,2028,2029,2030,null,null,"NUMBER OF ASSET UNITS REMAINING BY RISK INDEX CATEGORY",null,2019,2020,2021,2022,2023,2024,2025,2026,2027,2028,2029,2030]
[null,null,null,null,null,null,null,null,null,null,null,null,null,null,null,null,null,null,null,null,null,null,null,null,null,null,null,null,null,null,null,null,null,1,"R1($)",{"$f":"IF(AJ$56>SUM(D36:D$45),0,IF(AJ$56<SUM(D37:D$45),D36,D36-(AJ$56-SUM(D37:D$45))))","v":555},{"$f":"IF(AK$56>SUM(E36:E$45),0,IF(AK$56<SUM(E37:E$45),E36,E36-(AK$56-SUM(E37:E$45))))","v":555},{"$f":"IF(AL$56>SUM(F36:F$45),0,IF(AL$56<SUM(F37:F$45),F36,F36-(AL$56-SUM(F37:F$45))))","v":554},{"$f":"IF(AM$56>SUM(G36:G$45),0,IF(AM$56<SUM(G37:G$45),G36,G36-(AM$56-SUM(G37:G$45))))","v":550},{"$f":"IF(AN$56>SUM(H36:H$45),0,IF(AN$56<SUM(H37:H$45),H36,H36-(AN$56-SUM(H37:H$45))))","v":546},{"$f":"IF(AO$56>SUM(I36:I$45),0,IF(AO$56<SUM(I37:I$45),I36,I36-(AO$56-SUM(I37:I$45))))","v":539},{"$f":"IF(AP$56>SUM(J36:J$45),0,IF(AP$56<SUM(J37:J$45),J36,J36-(AP$56-SUM(J37:J$45))))","v":528},{"$f":"IF(AQ$56>SUM(K36:K$45),0,IF(AQ$56<SUM(K37:K$45),K36,K36-(AQ$56-SUM(K37:K$45))))","v":519},{"$f":"IF(AR$56>SUM(L36:L$45),0,IF(AR$56<SUM(L37:L$45),L36,L36-(AR$56-SUM(L37:L$45))))","v":517},{"$f":"IF(AS$56>SUM(M36:M$45),0,IF(AS$56<SUM(M37:M$45),M36,M36-(AS$56-SUM(M37:M$45))))","v":513},{"$f":"IF(AT$56>SUM(N36:N$45),0,IF(AT$56<SUM(N37:N$45),N36,N36-(AT$56-SUM(N37:N$45))))","v":509},{"$f":"IF(AU$56>SUM(O36:O$45),0,IF(AU$56<SUM(O37:O$45),O36,O36-(AU$56-SUM(O37:O$45))))","v":505},null,null,1,"R1($)",{"$f":"IF(AZ$56>SUM(D36:D$45),0,IF(AZ$56<SUM(D37:D$45),D36,D36-(AZ$56-SUM(D37:D$45))))","v":555},{"$f":"IF(BA$56>SUM(E36:E$45),0,IF(BA$56<SUM(E37:E$45),E36,E36-(BA$56-SUM(E37:E$45))))","v":555},{"$f":"IF(BB$56>SUM(F36:F$45),0,IF(BB$56<SUM(F37:F$45),F36,F36-(BB$56-SUM(F37:F$45))))","v":554},{"$f":"IF(BC$56>SUM(G36:G$45),0,IF(BC$56<SUM(G37:G$45),G36,G36-(BC$56-SUM(G37:G$45))))","v":550},{"$f":"IF(BD$56>SUM(H36:H$45),0,IF(BD$56<SUM(H37:H$45),H36,H36-(BD$56-SUM(H37:H$45))))","v":546},{"$f":"IF(BE$56>SUM(I36:I$45),0,IF(BE$56<SUM(I37:I$45),I36,I36-(BE$56-SUM(I37:I$45))))","v":539},{"$f":"IF(BF$56>SUM(J36:J$45),0,IF(BF$56<SUM(J37:J$45),J36,J36-(BF$56-SUM(J37:J$45))))","v":528},{"$f":"IF(BG$56>SUM(K36:K$45),0,IF(BG$56<SUM(K37:K$45),K36,K36-(BG$56-SUM(K37:K$45))))","v":519},{"$f":"IF(BH$56>SUM(L36:L$45),0,IF(BH$56<SUM(L37:L$45),L36,L36-(BH$56-SUM(L37:L$45))))","v":517},{"$f":"IF(BI$56>SUM(M36:M$45),0,IF(BI$56<SUM(M37:M$45),M36,M36-(BI$56-SUM(M37:M$45))))","v":513},{"$f":"IF(BJ$56>SUM(N36:N$45),0,IF(BJ$56<SUM(N37:N$45),N36,N36-(BJ$56-SUM(N37:N$45))))","v":509},{"$f":"IF(BK$56>SUM(O36:O$45),0,IF(BK$56<SUM(O37:O$45),O36,O36-(BK$56-SUM(O37:O$45))))","v":505}]
[null,null,null,null,null,null,null,null,null,null,null,null,null,null,null,null,null,null,null,null,null,null,null,null,null,null,null,null,null,null,null,null,null,2,"R2($)",{"$f":"IF(AJ$56>SUM(D37:D$45),0,IF(AJ$56<SUM(D38:D$45),D37,D37-(AJ$56-SUM(D38:D$45))))","v":7},{"$f":"IF(AK$56>SUM(E37:E$45),0,IF(AK$56<SUM(E38:E$45),E37,E37-(AK$56-SUM(E38:E$45))))","v":7},{"$f":"IF(AL$56>SUM(F37:F$45),0,IF(AL$56<SUM(F38:F$45),F37,F37-(AL$56-SUM(F38:F$45))))","v":8},{"$f":"IF(AM$56>SUM(G37:G$45),0,IF(AM$56<SUM(G38:G$45),G37,G37-(AM$56-SUM(G38:G$45))))","v":12},{"$f":"IF(AN$56>SUM(H37:H$45),0,IF(AN$56<SUM(H38:H$45),H37,H37-(AN$56-SUM(H38:H$45))))","v":16},{"$f":"IF(AO$56>SUM(I37:I$45),0,IF(AO$56<SUM(I38:I$45),I37,I37-(AO$56-SUM(I38:I$45))))","v":23},{"$f":"IF(AP$56>SUM(J37:J$45),0,IF(AP$56<SUM(J38:J$45),J37,J37-(AP$56-SUM(J38:J$45))))","v":34},{"$f":"IF(AQ$56>SUM(K37:K$45),0,IF(AQ$56<SUM(K38:K$45),K37,K37-(AQ$56-SUM(K38:K$45))))","v":43},{"$f":"IF(AR$56>SUM(L37:L$45),0,IF(AR$56<SUM(L38:L$45),L37,L37-(AR$56-SUM(L38:L$45))))","v":45},{"$f":"IF(AS$56>SUM(M37:M$45),0,IF(AS$56<SUM(M38:M$45),M37,M37-(AS$56-SUM(M38:M$45))))","v":49},{"$f":"IF(AT$56>SUM(N37:N$45),0,IF(AT$56<SUM(N38:N$45),N37,N37-(AT$56-SUM(N38:N$45))))","v":53},{"$f":"IF(AU$56>SUM(O37:O$45),0,IF(AU$56<SUM(O38:O$45),O37,O37-(AU$56-SUM(O38:O$45))))","v":57},null,null,2,"R2($)",{"$f":"IF(AZ$56>SUM(D37:D$45),0,IF(AZ$56<SUM(D38:D$45),D37,D37-(AZ$56-SUM(D38:D$45))))","v":7},{"$f":"IF(BA$56>SUM(E37:E$45),0,IF(BA$56<SUM(E38:E$45),E37,E37-(BA$56-SUM(E38:E$45))))","v":7},{"$f":"IF(BB$56>SUM(F37:F$45),0,IF(BB$56<SUM(F38:F$45),F37,F37-(BB$56-SUM(F38:F$45))))","v":8},{"$f":"IF(BC$56>SUM(G37:G$45),0,IF(BC$56<SUM(G38:G$45),G37,G37-(BC$56-SUM(G38:G$45))))","v":12},{"$f":"IF(BD$56>SUM(H37:H$45),0,IF(BD$56<SUM(H38:H$45),H37,H37-(BD$56-SUM(H38:H$45))))","v":16},{"$f":"IF(BE$56>SUM(I37:I$45),0,IF(BE$56<SUM(I38:I$45),I37,I37-(BE$56-SUM(I38:I$45))))","v":23},{"$f":"IF(BF$56>SUM(J37:J$45),0,IF(BF$56<SUM(J38:J$45),J37,J37-(BF$56-SUM(J38:J$45))))","v":34},{"$f":"IF(BG$56>SUM(K37:K$45),0,IF(BG$56<SUM(K38:K$45),K37,K37-(BG$56-SUM(K38:K$45))))","v":43},{"$f":"IF(BH$56>SUM(L37:L$45),0,IF(BH$56<SUM(L38:L$45),L37,L37-(BH$56-SUM(L38:L$45))))","v":45},{"$f":"IF(BI$56>SUM(M37:M$45),0,IF(BI$56<SUM(M38:M$45),M37,M37-(BI$56-SUM(M38:M$45))))","v":49},{"$f":"IF(BJ$56>SUM(N37:N$45),0,IF(BJ$56<SUM(N38:N$45),N37,N37-(BJ$56-SUM(N38:N$45))))","v":53},{"$f":"IF(BK$56>SUM(O37:O$45),0,IF(BK$56<SUM(O38:O$45),O37,O37-(BK$56-SUM(O38:O$45))))","v":57}]
[null,null,null,null,null,null,null,null,null,null,null,null,null,null,null,null,null,null,null,null,null,null,null,null,null,null,null,null,null,null,null,null,null,3,"R3($)",{"$f":"IF(AJ$56>SUM(D38:D$45),0,IF(AJ$56<SUM(D39:D$45),D38,D38-(AJ$56-SUM(D39:D$45))))","v":0},{"$f":"IF(AK$56>SUM(E38:E$45),0,IF(AK$56<SUM(E39:E$45),E38,E38-(AK$56-SUM(E39:E$45))))","v":0},{"$f":"IF(AL$56>SUM(F38:F$45),0,IF(AL$56<SUM(F39:F$45),F38,F38-(AL$56-SUM(F39:F$45))))","v":0},{"$f":"IF(AM$56>SUM(G38:G$45),0,IF(AM$56<SUM(G39:G$45),G38,G38-(AM$56-SUM(G39:G$45))))","v":0},{"$f":"IF(AN$56>SUM(H38:H$45),0,IF(AN$56<SUM(H39:H$45),H38,H38-(AN$56-SUM(H39:H$45))))","v":0},{"$f":"IF(AO$56>SUM(I38:I$45),0,IF(AO$56<SUM(I39:I$45),I38,I38-(AO$56-SUM(I39:I$45))))","v":0},{"$f":"IF(AP$56>SUM(J38:J$45),0,IF(AP$56<SUM(J39:J$45),J38,J38-(AP$56-SUM(J39:J$45))))","v":0},{"$f":"IF(AQ$56>SUM(K38:K$45),0,IF(AQ$56<SUM(K39:K$45),K38,K38-(AQ$56-SUM(K39:K$45))))","v":0},{"$f":"IF(AR$56>SUM(L38:L$45),0,IF(AR$56<SUM(L39:L$45),L38,L38-(AR$56-SUM(L39:L$45))))","v":0},{"$f":"IF(AS$56>SUM(M38:M$45),0,IF(AS$56<SUM(M39:M$45),M38,M38-(AS$56-SUM(M39:M$45))))","v":0},{"$f":"IF(AT$56>SUM(N38:N$45),0,IF(AT$56<SUM(N39:N$45),N38,N38-(AT$56-SUM(N39:N$45))))","v":0},{"$f":"IF(AU$56>SUM(O38:O$45),0,IF(AU$56<SUM(O39:O$45),O38,O38-(AU$56-SUM(O39:O$45))))","v":0},null,null,3,"R3($)",{"$f":"IF(AZ$56>SUM(D38:D$45),0,IF(AZ$56<SUM(D39:D$45),D38,D38-(AZ$56-SUM(D39:D$45))))","v":0},{"$f":"IF(BA$56>SUM(E38:E$45),0,IF(BA$56<SUM(E39:E$45),E38,E38-(BA$56-SUM(E39:E$45))))","v":0},{"$f":"IF(BB$56>SUM(F38:F$45),0,IF(BB$56<SUM(F39:F$45),F38,F38-(BB$56-SUM(F39:F$45))))","v":0},{"$f":"IF(BC$56>SUM(G38:G$45),0,IF(BC$56<SUM(G39:G$45),G38,G38-(BC$56-SUM(G39:G$45))))","v":0},{"$f":"IF(BD$56>SUM(H38:H$45),0,IF(BD$56<SUM(H39:H$45),H38,H38-(BD$56-SUM(H39:H$45))))","v":0},{"$f":"IF(BE$56>SUM(I38:I$45),0,IF(BE$56<SUM(I39:I$45),I38,I38-(BE$56-SUM(I39:I$45))))","v":0},{"$f":"IF(BF$56>SUM(J38:J$45),0,IF(BF$56<SUM(J39:J$45),J38,J38-(BF$56-SUM(J39:J$45))))","v":0},{"$f":"IF(BG$56>SUM(K38:K$45),0,IF(BG$56<SUM(K39:K$45),K38,K38-(BG$56-SUM(K39:K$45))))","v":0},{"$f":"IF(BH$56>SUM(L38:L$45),0,IF(BH$56<SUM(L39:L$45),L38,L38-(BH$56-SUM(L39:L$45))))","v":0},{"$f":"IF(BI$56>SUM(M38:M$45),0,IF(BI$56<SUM(M39:M$45),M38,M38-(BI$56-SUM(M39:M$45))))","v":0},{"$f":"IF(BJ$56>SUM(N38:N$45),0,IF(BJ$56<SUM(N39:N$45),N38,N38-(BJ$56-SUM(N39:N$45))))","v":0},{"$f":"IF(BK$56>SUM(O38:O$45),0,IF(BK$56<SUM(O39:O$45),O38,O38-(BK$56-SUM(O39:O$45))))","v":0}]
[null,null,null,null,null,null,null,null,null,null,null,null,null,null,null,null,null,null,null,null,null,null,null,null,null,null,null,null,null,null,null,null,null,4,"R4($)",{"$f":"IF(AJ$56>SUM(D39:D$45),0,IF(AJ$56<SUM(D40:D$45),D39,D39-(AJ$56-SUM(D40:D$45))))","v":0},{"$f":"IF(AK$56>SUM(E39:E$45),0,IF(AK$56<SUM(E40:E$45),E39,E39-(AK$56-SUM(E40:E$45))))","v":0},{"$f":"IF(AL$56>SUM(F39:F$45),0,IF(AL$56<SUM(F40:F$45),F39,F39-(AL$56-SUM(F40:F$45))))","v":0},{"$f":"IF(AM$56>SUM(G39:G$45),0,IF(AM$56<SUM(G40:G$45),G39,G39-(AM$56-SUM(G40:G$45))))","v":0},{"$f":"IF(AN$56>SUM(H39:H$45),0,IF(AN$56<SUM(H40:H$45),H39,H39-(AN$56-SUM(H40:H$45))))","v":0},{"$f":"IF(AO$56>SUM(I39:I$45),0,IF(AO$56<SUM(I40:I$45),I39,I39-(AO$56-SUM(I40:I$45))))","v":0},{"$f":"IF(AP$56>SUM(J39:J$45),0,IF(AP$56<SUM(J40:J$45),J39,J39-(AP$56-SUM(J40:J$45))))","v":0},{"$f":"IF(AQ$56>SUM(K39:K$45),0,IF(AQ$56<SUM(K40:K$45),K39,K39-(AQ$56-SUM(K40:K$45))))","v":0},{"$f":"IF(AR$56>SUM(L39:L$45),0,IF(AR$56<SUM(L40:L$45),L39,L39-(AR$56-SUM(L40:L$45))))","v":0},{"$f":"IF(AS$56>SUM(M39:M$45),0,IF(AS$56<SUM(M40:M$45),M39,M39-(AS$56-SUM(M40:M$45))))","v":0},{"$f":"IF(AT$56>SUM(N39:N$45),0,IF(AT$56<SUM(N40:N$45),N39,N39-(AT$56-SUM(N40:N$45))))","v":0},{"$f":"IF(AU$56>SUM(O39:O$45),0,IF(AU$56<SUM(O40:O$45),O39,O39-(AU$56-SUM(O40:O$45))))","v":0},null,null,4,"R4($)",{"$f":"IF(AZ$56>SUM(D39:D$45),0,IF(AZ$56<SUM(D40:D$45),D39,D39-(AZ$56-SUM(D40:D$45))))","v":0},{"$f":"IF(BA$56>SUM(E39:E$45),0,IF(BA$56<SUM(E40:E$45),E39,E39-(BA$56-SUM(E40:E$45))))","v":0},{"$f":"IF(BB$56>SUM(F39:F$45),0,IF(BB$56<SUM(F40:F$45),F39,F39-(BB$56-SUM(F40:F$45))))","v":0},{"$f":"IF(BC$56>SUM(G39:G$45),0,IF(BC$56<SUM(G40:G$45),G39,G39-(BC$56-SUM(G40:G$45))))","v":0},{"$f":"IF(BD$56>SUM(H39:H$45),0,IF(BD$56<SUM(H40:H$45),H39,H39-(BD$56-SUM(H40:H$45))))","v":0},{"$f":"IF(BE$56>SUM(I39:I$45),0,IF(BE$56<SUM(I40:I$45),I39,I39-(BE$56-SUM(I40:I$45))))","v":0},{"$f":"IF(BF$56>SUM(J39:J$45),0,IF(BF$56<SUM(J40:J$45),J39,J39-(BF$56-SUM(J40:J$45))))","v":0},{"$f":"IF(BG$56>SUM(K39:K$45),0,IF(BG$56<SUM(K40:K$45),K39,K39-(BG$56-SUM(K40:K$45))))","v":0},{"$f":"IF(BH$56>SUM(L39:L$45),0,IF(BH$56<SUM(L40:L$45),L39,L39-(BH$56-SUM(L40:L$45))))","v":0},{"$f":"IF(BI$56>SUM(M39:M$45),0,IF(BI$56<SUM(M40:M$45),M39,M39-(BI$56-SUM(M40:M$45))))","v":0},{"$f":"IF(BJ$56>SUM(N39:N$45),0,IF(BJ$56<SUM(N40:N$45),N39,N39-(BJ$56-SUM(N40:N$45))))","v":0},{"$f":"IF(BK$56>SUM(O39:O$45),0,IF(BK$56<SUM(O40:O$45),O39,O39-(BK$56-SUM(O40:O$45))))","v":0}]
[null,null,null,null,null,null,null,null,null,null,null,null,null,null,null,null,null,null,null,null,null,null,null,null,null,null,null,null,null,null,null,null,null,5,"R5($)",{"$f":"IF(AJ$56>SUM(D40:D$45),0,IF(AJ$56<SUM(D41:D$45),D40,D40-(AJ$56-SUM(D41:D$45))))","v":0},{"$f":"IF(AK$56>SUM(E40:E$45),0,IF(AK$56<SUM(E41:E$45),E40,E40-(AK$56-SUM(E41:E$45))))","v":0},{"$f":"IF(AL$56>SUM(F40:F$45),0,IF(AL$56<SUM(F41:F$45),F40,F40-(AL$56-SUM(F41:F$45))))","v":0},{"$f":"IF(AM$56>SUM(G40:G$45),0,IF(AM$56<SUM(G41:G$45),G40,G40-(AM$56-SUM(G41:G$45))))","v":0},{"$f":"IF(AN$56>SUM(H40:H$45),0,IF(AN$56<SUM(H41:H$45),H40,H40-(AN$56-SUM(H41:H$45))))","v":0},{"$f":"IF(AO$56>SUM(I40:I$45),0,IF(AO$56<SUM(I41:I$45),I40,I40-(AO$56-SUM(I41:I$45))))","v":0},{"$f":"IF(AP$56>SUM(J40:J$45),0,IF(AP$56<SUM(J41:J$45),J40,J40-(AP$56-SUM(J41:J$45))))","v":0},{"$f":"IF(AQ$56>SUM(K40:K$45),0,IF(AQ$56<SUM(K41:K$45),K40,K40-(AQ$56-SUM(K41:K$45))))","v":0},{"$f":"IF(AR$56>SUM(L40:L$45),0,IF(AR$56<SUM(L41:L$45),L40,L40-(AR$56-SUM(L41:L$45))))","v":0},{"$f":"IF(AS$56>SUM(M40:M$45),0,IF(AS$56<SUM(M41:M$45),M40,M40-(AS$56-SUM(M41:M$45))))","v":0},{"$f":"IF(AT$56>SUM(N40:N$45),0,IF(AT$56<SUM(N41:N$45),N40,N40-(AT$56-SUM(N41:N$45))))","v":0},{"$f":"IF(AU$56>SUM(O40:O$45),0,IF(AU$56<SUM(O41:O$45),O40,O40-(AU$56-SUM(O41:O$45))))","v":0},null,null,5,"R5($)",{"$f":"IF(AZ$56>SUM(D40:D$45),0,IF(AZ$56<SUM(D41:D$45),D40,D40-(AZ$56-SUM(D41:D$45))))","v":0},{"$f":"IF(BA$56>SUM(E40:E$45),0,IF(BA$56<SUM(E41:E$45),E40,E40-(BA$56-SUM(E41:E$45))))","v":0},{"$f":"IF(BB$56>SUM(F40:F$45),0,IF(BB$56<SUM(F41:F$45),F40,F40-(BB$56-SUM(F41:F$45))))","v":0},{"$f":"IF(BC$56>SUM(G40:G$45),0,IF(BC$56<SUM(G41:G$45),G40,G40-(BC$56-SUM(G41:G$45))))","v":0},{"$f":"IF(BD$56>SUM(H40:H$45),0,IF(BD$56<SUM(H41:H$45),H40,H40-(BD$56-SUM(H41:H$45))))","v":0},{"$f":"IF(BE$56>SUM(I40:I$45),0,IF(BE$56<SUM(I41:I$45),I40,I40-(BE$56-SUM(I41:I$45))))","v":0},{"$f":"IF(BF$56>SUM(J40:J$45),0,IF(BF$56<SUM(J41:J$45),J40,J40-(BF$56-SUM(J41:J$45))))","v":0},{"$f":"IF(BG$56>SUM(K40:K$45),0,IF(BG$56<SUM(K41:K$45),K40,K40-(BG$56-SUM(K41:K$45))))","v":0},{"$f":"IF(BH$56>SUM(L40:L$45),0,IF(BH$56<SUM(L41:L$45),L40,L40-(BH$56-SUM(L41:L$45))))","v":0},{"$f":"IF(BI$56>SUM(M40:M$45),0,IF(BI$56<SUM(M41:M$45),M40,M40-(BI$56-SUM(M41:M$45))))","v":0},{"$f":"IF(BJ$56>SUM(N40:N$45),0,IF(BJ$56<SUM(N41:N$45),N40,N40-(BJ$56-SUM(N41:N$45))))","v":0},{"$f":"IF(BK$56>SUM(O40:O$45),0,IF(BK$56<SUM(O41:O$45),O40,O40-(BK$56-SUM(O41:O$45))))","v":0}]
[null,null,null,null,null,null,null,null,null,null,null,null,null,null,null,null,null,null,null,null,null,null,null,null,null,null,null,null,null,null,null,null,null,6,"R6($)",{"$f":"IF(AJ$56>SUM(D41:D$45),0,IF(AJ$56<SUM(D42:D$45),D41,D41-(AJ$56-SUM(D42:D$45))))","v":0},{"$f":"IF(AK$56>SUM(E41:E$45),0,IF(AK$56<SUM(E42:E$45),E41,E41-(AK$56-SUM(E42:E$45))))","v":0},{"$f":"IF(AL$56>SUM(F41:F$45),0,IF(AL$56<SUM(F42:F$45),F41,F41-(AL$56-SUM(F42:F$45))))","v":0},{"$f":"IF(AM$56>SUM(G41:G$45),0,IF(AM$56<SUM(G42:G$45),G41,G41-(AM$56-SUM(G42:G$45))))","v":0},{"$f":"IF(AN$56>SUM(H41:H$45),0,IF(AN$56<SUM(H42:H$45),H41,H41-(AN$56-SUM(H42:H$45))))","v":0},{"$f":"IF(AO$56>SUM(I41:I$45),0,IF(AO$56<SUM(I42:I$45),I41,I41-(AO$56-SUM(I42:I$45))))","v":0},{"$f":"IF(AP$56>SUM(J41:J$45),0,IF(AP$56<SUM(J42:J$45),J41,J41-(AP$56-SUM(J42:J$45))))","v":0},{"$f":"IF(AQ$56>SUM(K41:K$45),0,IF(AQ$56<SUM(K42:K$45),K41,K41-(AQ$56-SUM(K42:K$45))))","v":0},{"$f":"IF(AR$56>SUM(L41:L$45),0,IF(AR$56<SUM(L42:L$45),L41,L41-(AR$56-SUM(L42:L$45))))","v":0},{"$f":"IF(AS$56>SUM(M41:M$45),0,IF(AS$56<SUM(M42:M$45),M41,M41-(AS$56-SUM(M42:M$45))))","v":0},{"$f":"IF(AT$56>SUM(N41:N$45),0,IF(AT$56<SUM(N42:N$45),N41,N41-(AT$56-SUM(N42:N$45))))","v":0},{"$f":"IF(AU$56>SUM(O41:O$45),0,IF(AU$56<SUM(O42:O$45),O41,O41-(AU$56-SUM(O42:O$45))))","v":0},null,null,6,"R6($)",{"$f":"IF(AZ$56>SUM(D41:D$45),0,IF(AZ$56<SUM(D42:D$45),D41,D41-(AZ$56-SUM(D42:D$45))))","v":0},{"$f":"IF(BA$56>SUM(E41:E$45),0,IF(BA$56<SUM(E42:E$45),E41,E41-(BA$56-SUM(E42:E$45))))","v":0},{"$f":"IF(BB$56>SUM(F41:F$45),0,IF(BB$56<SUM(F42:F$45),F41,F41-(BB$56-SUM(F42:F$45))))","v":0},{"$f":"IF(BC$56>SUM(G41:G$45),0,IF(BC$56<SUM(G42:G$45),G41,G41-(BC$56-SUM(G42:G$45))))","v":0},{"$f":"IF(BD$56>SUM(H41:H$45),0,IF(BD$56<SUM(H42:H$45),H41,H41-(BD$56-SUM(H42:H$45))))","v":0},{"$f":"IF(BE$56>SUM(I41:I$45),0,IF(BE$56<SUM(I42:I$45),I41,I41-(BE$56-SUM(I42:I$45))))","v":0},{"$f":"IF(BF$56>SUM(J41:J$45),0,IF(BF$56<SUM(J42:J$45),J41,J41-(BF$56-SUM(J42:J$45))))","v":0},{"$f":"IF(BG$56>SUM(K41:K$45),0,IF(BG$56<SUM(K42:K$45),K41,K41-(BG$56-SUM(K42:K$45))))","v":0},{"$f":"IF(BH$56>SUM(L41:L$45),0,IF(BH$56<SUM(L42:L$45),L41,L41-(BH$56-SUM(L42:L$45))))","v":0},{"$f":"IF(BI$56>SUM(M41:M$45),0,IF(BI$56<SUM(M42:M$45),M41,M41-(BI$56-SUM(M42:M$45))))","v":0},{"$f":"IF(BJ$56>SUM(N41:N$45),0,IF(BJ$56<SUM(N42:N$45),N41,N41-(BJ$56-SUM(N42:N$45))))","v":0},{"$f":"IF(BK$56>SUM(O41:O$45),0,IF(BK$56<SUM(O42:O$45),O41,O41-(BK$56-SUM(O42:O$45))))","v":0}]
[null,null,null,null,null,null,null,null,null,null,null,null,null,null,null,null,null,null,null,null,null,null,null,null,null,null,null,null,null,null,null,null,null,7,"R7($)",{"$f":"IF(AJ$56>SUM(D42:D$45),0,IF(AJ$56<SUM(D43:D$45),D42,D42-(AJ$56-SUM(D43:D$45))))","v":0},{"$f":"IF(AK$56>SUM(E42:E$45),0,IF(AK$56<SUM(E43:E$45),E42,E42-(AK$56-SUM(E43:E$45))))","v":0},{"$f":"IF(AL$56>SUM(F42:F$45),0,IF(AL$56<SUM(F43:F$45),F42,F42-(AL$56-SUM(F43:F$45))))","v":0},{"$f":"IF(AM$56>SUM(G42:G$45),0,IF(AM$56<SUM(G43:G$45),G42,G42-(AM$56-SUM(G43:G$45))))","v":0},{"$f":"IF(AN$56>SUM(H42:H$45),0,IF(AN$56<SUM(H43:H$45),H42,H42-(AN$56-SUM(H43:H$45))))","v":0},{"$f":"IF(AO$56>SUM(I42:I$45),0,IF(AO$56<SUM(I43:I$45),I42,I42-(AO$56-SUM(I43:I$45))))","v":0},{"$f":"IF(AP$56>SUM(J42:J$45),0,IF(AP$56<SUM(J43:J$45),J42,J42-(AP$56-SUM(J43:J$45))))","v":0},{"$f":"IF(AQ$56>SUM(K42:K$45),0,IF(AQ$56<SUM(K43:K$45),K42,K42-(AQ$56-SUM(K43:K$45))))","v":0},{"$f":"IF(AR$56>SUM(L42:L$45),0,IF(AR$56<SUM(L43:L$45),L42,L42-(AR$56-SUM(L43:L$45))))","v":0},{"$f":"IF(AS$56>SUM(M42:M$45),0,IF(AS$56<SUM(M43:M$45),M42,M42-(AS$56-SUM(M43:M$45))))","v":0},{"$f":"IF(AT$56>SUM(N42:N$45),0,IF(AT$56<SUM(N43:N$45),N42,N42-(AT$56-SUM(N43:N$45))))","v":0},{"$f":"IF(AU$56>SUM(O42:O$45),0,IF(AU$56<SUM(O43:O$45),O42,O42-(AU$56-SUM(O43:O$45))))","v":0},null,null,7,"R7($)",{"$f":"IF(AZ$56>SUM(D42:D$45),0,IF(AZ$56<SUM(D43:D$45),D42,D42-(AZ$56-SUM(D43:D$45))))","v":0},{"$f":"IF(BA$56>SUM(E42:E$45),0,IF(BA$56<SUM(E43:E$45),E42,E42-(BA$56-SUM(E43:E$45))))","v":0},{"$f":"IF(BB$56>SUM(F42:F$45),0,IF(BB$56<SUM(F43:F$45),F42,F42-(BB$56-SUM(F43:F$45))))","v":0},{"$f":"IF(BC$56>SUM(G42:G$45),0,IF(BC$56<SUM(G43:G$45),G42,G42-(BC$56-SUM(G43:G$45))))","v":0},{"$f":"IF(BD$56>SUM(H42:H$45),0,IF(BD$56<SUM(H43:H$45),H42,H42-(BD$56-SUM(H43:H$45))))","v":0},{"$f":"IF(BE$56>SUM(I42:I$45),0,IF(BE$56<SUM(I43:I$45),I42,I42-(BE$56-SUM(I43:I$45))))","v":0},{"$f":"IF(BF$56>SUM(J42:J$45),0,IF(BF$56<SUM(J43:J$45),J42,J42-(BF$56-SUM(J43:J$45))))","v":0},{"$f":"IF(BG$56>SUM(K42:K$45),0,IF(BG$56<SUM(K43:K$45),K42,K42-(BG$56-SUM(K43:K$45))))","v":0},{"$f":"IF(BH$56>SUM(L42:L$45),0,IF(BH$56<SUM(L43:L$45),L42,L42-(BH$56-SUM(L43:L$45))))","v":0},{"$f":"IF(BI$56>SUM(M42:M$45),0,IF(BI$56<SUM(M43:M$45),M42,M42-(BI$56-SUM(M43:M$45))))","v":0},{"$f":"IF(BJ$56>SUM(N42:N$45),0,IF(BJ$56<SUM(N43:N$45),N42,N42-(BJ$56-SUM(N43:N$45))))","v":0},{"$f":"IF(BK$56>SUM(O42:O$45),0,IF(BK$56<SUM(O43:O$45),O42,O42-(BK$56-SUM(O43:O$45))))","v":0}]
[null,null,null,null,null,null,null,null,null,null,null,null,null,null,null,null,null,null,null,null,null,null,null,null,null,null,null,null,null,null,null,null,null,8,"R8($)",{"$f":"IF(AJ$56>SUM(D43:D$45),0,IF(AJ$56<SUM(D44:D$45),D43,D43-(AJ$56-SUM(D44:D$45))))","v":0},{"$f":"IF(AK$56>SUM(E43:E$45),0,IF(AK$56<SUM(E44:E$45),E43,E43-(AK$56-SUM(E44:E$45))))","v":0},{"$f":"IF(AL$56>SUM(F43:F$45),0,IF(AL$56<SUM(F44:F$45),F43,F43-(AL$56-SUM(F44:F$45))))","v":0},{"$f":"IF(AM$56>SUM(G43:G$45),0,IF(AM$56<SUM(G44:G$45),G43,G43-(AM$56-SUM(G44:G$45))))","v":0},{"$f":"IF(AN$56>SUM(H43:H$45),0,IF(AN$56<SUM(H44:H$45),H43,H43-(AN$56-SUM(H44:H$45))))","v":0},{"$f":"IF(AO$56>SUM(I43:I$45),0,IF(AO$56<SUM(I44:I$45),I43,I43-(AO$56-SUM(I44:I$45))))","v":0},{"$f":"IF(AP$56>SUM(J43:J$45),0,IF(AP$56<SUM(J44:J$45),J43,J43-(AP$56-SUM(J44:J$45))))","v":0},{"$f":"IF(AQ$56>SUM(K43:K$45),0,IF(AQ$56<SUM(K44:K$45),K43,K43-(AQ$56-SUM(K44:K$45))))","v":0},{"$f":"IF(AR$56>SUM(L43:L$45),0,IF(AR$56<SUM(L44:L$45),L43,L43-(AR$56-SUM(L44:L$45))))","v":0},{"$f":"IF(AS$56>SUM(M43:M$45),0,IF(AS$56<SUM(M44:M$45),M43,M43-(AS$56-SUM(M44:M$45))))","v":0},{"$f":"IF(AT$56>SUM(N43:N$45),0,IF(AT$56<SUM(N44:N$45),N43,N43-(AT$56-SUM(N44:N$45))))","v":0},{"$f":"IF(AU$56>SUM(O43:O$45),0,IF(AU$56<SUM(O44:O$45),O43,O43-(AU$56-SUM(O44:O$45))))","v":0},null,null,8,"R8($)",{"$f":"IF(AZ$56>SUM(D43:D$45),0,IF(AZ$56<SUM(D44:D$45),D43,D43-(AZ$56-SUM(D44:D$45))))","v":0},{"$f":"IF(BA$56>SUM(E43:E$45),0,IF(BA$56<SUM(E44:E$45),E43,E43-(BA$56-SUM(E44:E$45))))","v":0},{"$f":"IF(BB$56>SUM(F43:F$45),0,IF(BB$56<SUM(F44:F$45),F43,F43-(BB$56-SUM(F44:F$45))))","v":0},{"$f":"IF(BC$56>SUM(G43:G$45),0,IF(BC$56<SUM(G44:G$45),G43,G43-(BC$56-SUM(G44:G$45))))","v":0},{"$f":"IF(BD$56>SUM(H43:H$45),0,IF(BD$56<SUM(H44:H$45),H43,H43-(BD$56-SUM(H44:H$45))))","v":0},{"$f":"IF(BE$56>SUM(I43:I$45),0,IF(BE$56<SUM(I44:I$45),I43,I43-(BE$56-SUM(I44:I$45))))","v":0},{"$f":"IF(BF$56>SUM(J43:J$45),0,IF(BF$56<SUM(J44:J$45),J43,J43-(BF$56-SUM(J44:J$45))))","v":0},{"$f":"IF(BG$56>SUM(K43:K$45),0,IF(BG$56<SUM(K44:K$45),K43,K43-(BG$56-SUM(K44:K$45))))","v":0},{"$f":"IF(BH$56>SUM(L43:L$45),0,IF(BH$56<SUM(L44:L$45),L43,L43-(BH$56-SUM(L44:L$45))))","v":0},{"$f":"IF(BI$56>SUM(M43:M$45),0,IF(BI$56<SUM(M44:M$45),M43,M43-(BI$56-SUM(M44:M$45))))","v":0},{"$f":"IF(BJ$56>SUM(N43:N$45),0,IF(BJ$56<SUM(N44:N$45),N43,N43-(BJ$56-SUM(N44:N$45))))","v":0},{"$f":"IF(BK$56>SUM(O43:O$45),0,IF(BK$56<SUM(O44:O$45),O43,O43-(BK$56-SUM(O44:O$45))))","v":0}]
[null,null,null,null,null,null,null,null,null,null,null,null,null,null,null,null,null,null,null,null,null,null,null,null,null,null,null,null,null,null,null,null,null,9,"R9($)",{"$f":"IF(AJ$56>SUM(D44:D$45),0,IF(AJ$56<SUM(D45:D$45),D44,D44-(AJ$56-SUM(D45:D$45))))","v":0},{"$f":"IF(AK$56>SUM(E44:E$45),0,IF(AK$56<SUM(E45:E$45),E44,E44-(AK$56-SUM(E45:E$45))))","v":0},{"$f":"IF(AL$56>SUM(F44:F$45),0,IF(AL$56<SUM(F45:F$45),F44,F44-(AL$56-SUM(F45:F$45))))","v":0},{"$f":"IF(AM$56>SUM(G44:G$45),0,IF(AM$56<SUM(G45:G$45),G44,G44-(AM$56-SUM(G45:G$45))))","v":0},{"$f":"IF(AN$56>SUM(H44:H$45),0,IF(AN$56<SUM(H45:H$45),H44,H44-(AN$56-SUM(H45:H$45))))","v":0},{"$f":"IF(AO$56>SUM(I44:I$45),0,IF(AO$56<SUM(I45:I$45),I44,I44-(AO$56-SUM(I45:I$45))))","v":0},{"$f":"IF(AP$56>SUM(J44:J$45),0,IF(AP$56<SUM(J45:J$45),J44,J44-(AP$56-SUM(J45:J$45))))","v":0},{"$f":"IF(AQ$56>SUM(K44:K$45),0,IF(AQ$56<SUM(K45:K$45),K44,K44-(AQ$56-SUM(K45:K$45))))","v":0},{"$f":"IF(AR$56>SUM(L44:L$45),0,IF(AR$56<SUM(L45:L$45),L44,L44-(AR$56-SUM(L45:L$45))))","v":0},{"$f":"IF(AS$56>SUM(M44:M$45),0,IF(AS$56<SUM(M45:M$45),M44,M44-(AS$56-SUM(M45:M$45))))","v":0},{"$f":"IF(AT$56>SUM(N44:N$45),0,IF(AT$56<SUM(N45:N$45),N44,N44-(AT$56-SUM(N45:N$45))))","v":0},{"$f":"IF(AU$56>SUM(O44:O$45),0,IF(AU$56<SUM(O45:O$45),O44,O44-(AU$56-SUM(O45:O$45))))","v":0},null,null,9,"R9($)",{"$f":"IF(AZ$56>SUM(D44:D$45),0,IF(AZ$56<SUM(D45:D$45),D44,D44-(AZ$56-SUM(D45:D$45))))","v":0},{"$f":"IF(BA$56>SUM(E44:E$45),0,IF(BA$56<SUM(E45:E$45),E44,E44-(BA$56-SUM(E45:E$45))))","v":0},{"$f":"IF(BB$56>SUM(F44:F$45),0,IF(BB$56<SUM(F45:F$45),F44,F44-(BB$56-SUM(F45:F$45))))","v":0},{"$f":"IF(BC$56>SUM(G44:G$45),0,IF(BC$56<SUM(G45:G$45),G44,G44-(BC$56-SUM(G45:G$45))))","v":0},{"$f":"IF(BD$56>SUM(H44:H$45),0,IF(BD$56<SUM(H45:H$45),H44,H44-(BD$56-SUM(H45:H$45))))","v":0},{"$f":"IF(BE$56>SUM(I44:I$45),0,IF(BE$56<SUM(I45:I$45),I44,I44-(BE$56-SUM(I45:I$45))))","v":0},{"$f":"IF(BF$56>SUM(J44:J$45),0,IF(BF$56<SUM(J45:J$45),J44,J44-(BF$56-SUM(J45:J$45))))","v":0},{"$f":"IF(BG$56>SUM(K44:K$45),0,IF(BG$56<SUM(K45:K$45),K44,K44-(BG$56-SUM(K45:K$45))))","v":0},{"$f":"IF(BH$56>SUM(L44:L$45),0,IF(BH$56<SUM(L45:L$45),L44,L44-(BH$56-SUM(L45:L$45))))","v":0},{"$f":"IF(BI$56>SUM(M44:M$45),0,IF(BI$56<SUM(M45:M$45),M44,M44-(BI$56-SUM(M45:M$45))))","v":0},{"$f":"IF(BJ$56>SUM(N44:N$45),0,IF(BJ$56<SUM(N45:N$45),N44,N44-(BJ$56-SUM(N45:N$45))))","v":0},{"$f":"IF(BK$56>SUM(O44:O$45),0,IF(BK$56<SUM(O45:O$45),O44,O44-(BK$56-SUM(O45:O$45))))","v":0}]
[null,null,null,null,null,null,null,null,null,null,null,null,null,null,null,null,null,null,null,null,null,null,null,null,null,null,null,null,null,null,null,null,null,10,"R10($)",{"$f":"IF(AJ$56>SUM(D45:D$45),0,D45-AJ$56)","v":0},{"$f":"IF(AK$56>SUM(E45:E$45),0,E45-AK$56)","v":0},{"$f":"IF(AL$56>SUM(F45:F$45),0,F45-AL$56)","v":0},{"$f":"IF(AM$56>SUM(G45:G$45),0,G45-AM$56)","v":0},{"$f":"IF(AN$56>SUM(H45:H$45),0,H45-AN$56)","v":0},{"$f":"IF(AO$56>SUM(I45:I$45),0,I45-AO$56)","v":0},{"$f":"IF(AP$56>SUM(J45:J$45),0,J45-AP$56)","v":0},{"$f":"IF(AQ$56>SUM(K45:K$45),0,K45-AQ$56)","v":0},{"$f":"IF(AR$56>SUM(L45:L$45),0,L45-AR$56)","v":0},{"$f":"IF(AS$56>SUM(M45:M$45),0,M45-AS$56)","v":0},{"$f":"IF(AT$56>SUM(N45:N$45),0,N45-AT$56)","v":0},{"$f":"IF(AU$56>SUM(O45:O$45),0,O45-AU$56)","v":0},null,null,10,"R10($)",{"$f":"IF(AZ$56>SUM(D45:D$45),0,D45-AZ$56)","v":0},{"$f":"IF(BA$56>SUM(E45:E$45),0,E45-BA$56)","v":0},{"$f":"IF(BB$56>SUM(F45:F$45),0,F45-BB$56)","v":0},{"$f":"IF(BC$56>SUM(G45:G$45),0,G45-BC$56)","v":0},{"$f":"IF(BD$56>SUM(H45:H$45),0,H45-BD$56)","v":0},{"$f":"IF(BE$56>SUM(I45:I$45),0,I45-BE$56)","v":0},{"$f":"IF(BF$56>SUM(J45:J$45),0,J45-BF$56)","v":0},{"$f":"IF(BG$56>SUM(K45:K$45),0,K45-BG$56)","v":0},{"$f":"IF(BH$56>SUM(L45:L$45),0,L45-BH$56)","v":0},{"$f":"IF(BI$56>SUM(M45:M$45),0,M45-BI$56)","v":0},{"$f":"IF(BJ$56>SUM(N45:N$45),0,N45-BJ$56)","v":0},{"$f":"IF(BK$56>SUM(O45:O$45),0,O45-BK$56)","v":0}]
[null,null,null,null,null,null,null,null,null,null,null,null,null,null,null,null,null,null,null,null,null,null,null,null,null,null,null,null,null,null,null,null,null,"Total R1($) to R6($)",null,{"$f":"SUM(AJ68:AJ73)","v":562},{"$f":"SUM(AK68:AK73)","v":562},562,562,562,562,562,562,562,562,562,562,null,null,"Total R1($) to R6($)",null,{"$f":"SUM(AZ68:AZ73)","v":562},{"$f":"SUM(BA68:BA73)","v":562},562,562,562,562,562,562,562,562,562,562]
[null,null,null,null,null,null,null,null,null,null,null,null,null,null,null,null,null,null,null,null,null,null,null,null,null,null,null,null,null,null,null,null,null,"Total R7($) to R10($)",null,{"$f":"SUM(AJ74:AJ77)","v":0},{"$f":"SUM(AK74:AK77)","v":0},0,0,0,0,0,0,0,0,0,0,null,null,"Total R7($) to R10($)",null,{"$f":"SUM(AZ74:AZ77)","v":0},{"$f":"SUM(BA74:BA77)","v":0},0,0,0,0,0,0,0,0,0,0]
[null,null,null,null,null,null,null,null,null,null,null,null,null,null,null,null,null,null,null,null,null,null,null,null,null,null,null,null,null,null,null,null,null,"Total",null,{"$f":"SUM(AJ68:AJ77)","v":562},{"$f":"SUM(AK68:AK77)","v":562},562,562,562,562,562,562,562,562,562,562,null,null,"Total",null,{"$f":"SUM(AZ68:AZ77)","v":562},{"$f":"SUM(BA68:BA77)","v":562},562,562,562,562,562,562,562,562,562,562]
[]
[null,null,null,null,null,null,null,null,null,null,null,null,null,null,null,null,null,null,null,null,null,null,null,null,null,null,null,null,null,null,null,null,null,"PROPOSED ASSET REPLACEMENT PROGRAM BY RISK INDEX CATEGORY",null,2019,2020,2021,2022,2023,2024,2025,2026,2027,2028,2029,2030,null,null,"PROPOSED ASSET REPLACEMENT PROGRAM BY RISK INDEX CATEGORY",null,2019,2020,2021,2022,2023,2024,2025,2026,2027,2028,2029,2030]
[null,null,null,null,null,null,null,null,null,null,null,null,null,null,null,null,null,null,null,null,null,null,null,null,null,null,null,null,null,null,null,null,null,1,"R1($)",{"$f":"MAX(0, D36-AJ68)","v":0},{"$f":"MAX(SUM(E36:E$45)-SUM(AK68:AK$77)-SUM($AJ$83:AJ$92)-SUM(AK84:AK$92),0)","v":0},{"$f":"MAX(SUM(F36:F$45)-SUM(AL68:AL$77)-SUM($AJ$83:AK$92)-SUM(AL84:AL$92),0)","v":0},{"$f":"MAX(SUM(G36:G$45)-SUM(AM68:AM$77)-SUM($AJ$83:AL$92)-SUM(AM84:AM$92),0)","v":0},{"$f":"MAX(SUM(H36:H$45)-SUM(AN68:AN$77)-SUM($AJ$83:AM$92)-SUM(AN84:AN$92),0)","v":0},{"$f":"MAX(SUM(I36:I$45)-SUM(AO68:AO$77)-SUM($AJ$83:AN$92)-SUM(AO84:AO$92),0)","v":0},{"$f":"MAX(SUM(J36:J$45)-SUM(AP68:AP$77)-SUM($AJ$83:AO$92)-SUM(AP84:AP$92),0)","v":0},{"$f":"MAX(SUM(K36:K$45)-SUM(AQ68:AQ$77)-SUM($AJ$83:AP$92)-SUM(AQ84:AQ$92),0)","v":0},{"$f":"MAX(SUM(L36:L$45)-SUM(AR68:AR$77)-SUM($AJ$83:AQ$92)-SUM(AR84:AR$92),0)","v":0},{"$f":"MAX(SUM(M36:M$45)-SUM(AS68:AS$77)-SUM($AJ$83:AR$92)-SUM(AS84:AS$92),0)","v":0},{"$f":"MAX(SUM(N36:N$45)-SUM(AT68:AT$77)-SUM($AJ$83:AS$92)-SUM(AT84:AT$92),0)","v":0},{"$f":"MAX(SUM(O36:O$45)-SUM(AU68:AU$77)-SUM($AJ$83:AT$92)-SUM(AU84:AU$92),0)","v":0},null,null,1,"R1($)",{"$f":"MAX(0, D36-AZ68)","v":0},{"$f":"MAX(SUM(E36:E$45)-SUM(BA68:BA$77)-SUM($AZ$83:AZ$92)-SUM(BA84:BA$92),0)","v":0},{"$f":"MAX(SUM(F36:F$45)-SUM(BB68:BB$77)-SUM($AZ$83:BA$92)-SUM(BB84:BB$92),0)","v":0},{"$f":"MAX(SUM(G36:G$45)-SUM(BC68:BC$77)-SUM($AZ$83:BB$92)-SUM(BC84:BC$92),0)","v":0},{"$f":"MAX(SUM(H36:H$45)-SUM(BD68:BD$77)-SUM($AZ$83:BC$92)-SUM(BD84:BD$92),0)","v":0},{"$f":"MAX(SUM(I36:I$45)-SUM(BE68:BE$77)-SUM($AZ$83:BD$92)-SUM(BE84:BE$92),0)","v":0},{"$f":"MAX(SUM(J36:J$45)-SUM(BF68:BF$77)-SUM($AZ$83:BE$92)-SUM(BF84:BF$92),0)","v":0},{"$f":"MAX(SUM(K36:K$45)-SUM(BG68:BG$77)-SUM($AZ$83:BF$92)-SUM(BG84:BG$92),0)","v":0},{"$f":"MAX(SUM(L36:L$45)-SUM(BH68:BH$77)-SUM($AZ$83:BG$92)-SUM(BH84:BH$92),0)","v":0},{"$f":"MAX(SUM(M36:M$45)-SUM(BI68:BI$77)-SUM($AZ$83:BH$92)-SUM(BI84:BI$92),0)","v":0},{"$f":"MAX(SUM(N36:N$45)-SUM(BJ68:BJ$77)-SUM($AZ$83:BI$92)-SUM(BJ84:BJ$92),0)","v":0},{"$f":"MAX(SUM(O36:O$45)-SUM(BK68:BK$77)-SUM($AZ$83:BJ$92)-SUM(BK84:BK$92),0)","v":0}]
[null,null,null,null,null,null,null,null,null,null,null,null,null,null,null,null,null,null,null,null,null,null,null,null,null,null,null,null,null,null,null,null,null,2,"R2($)",6,{"$f":"MAX(SUM(E37:E$45)-SUM(AK69:AK$77)-SUM($AJ$83:AJ$92)-SUM(AK85:AK$92),0)","v":0},{"$f":"MAX(SUM(F37:F$45)-SUM(AL69:AL$77)-SUM($AJ$83:AK$92)-SUM(AL85:AL$92),0)","v":0},{"$f":"MAX(SUM(G37:G$45)-SUM(AM69:AM$77)-SUM($AJ$83:AL$92)-SUM(AM85:AM$92),0)","v":0},{"$f":"MAX(SUM(H37:H$45)-SUM(AN69:AN$77)-SUM($AJ$83:AM$92)-SUM(AN85:AN$92),0)","v":0},{"$f":"MAX(SUM(I37:I$45)-SUM(AO69:AO$77)-SUM($AJ$83:AN$92)-SUM(AO85:AO$92),0)","v":0},{"$f":"MAX(SUM(J37:J$45)-SUM(AP69:AP$77)-SUM($AJ$83:AO$92)-SUM(AP85:AP$92),0)","v":0},{"$f":"MAX(SUM(K37:K$45)-SUM(AQ69:AQ$77)-SUM($AJ$83:AP$92)-SUM(AQ85:AQ$92),0)","v":0},{"$f":"MAX(SUM(L37:L$45)-SUM(AR69:AR$77)-SUM($AJ$83:AQ$92)-SUM(AR85:AR$92),0)","v":0},{"$f":"MAX(SUM(M37:M$45)-SUM(AS69:AS$77)-SUM($AJ$83:AR$92)-SUM(AS85:AS$92),0)","v":0},{"$f":"MAX(SUM(N37:N$45)-SUM(AT69:AT$77)-SUM($AJ$83:AS$92)-SUM(AT85:AT$92),0)","v":0},{"$f":"MAX(SUM(O37:O$45)-SUM(AU69:AU$77)-SUM($AJ$83:AT$92)-SUM(AU85:AU$92),0)","v":0},null,null,2,"R2($)",6,{"$f":"MAX(SUM(E37:E$45)-SUM(BA69:BA$77)-SUM($AZ$83:AZ$92)-SUM(BA85:BA$92),0)","v":0},{"$f":"MAX(SUM(F37:F$45)-SUM(BB69:BB$77)-SUM($AZ$83:BA$92)-SUM(BB85:BB$92),0)","v":0},{"$f":"MAX(SUM(G37:G$45)-SUM(BC69:BC$77)-SUM($AZ$83:BB$92)-SUM(BC85:BC$92),0)","v":0},{"$f":"MAX(SUM(H37:H$45)-SUM(BD69:BD$77)-SUM($AZ$83:BC$92)-SUM(BD85:BD$92),0)","v":0},{"$f":"MAX(SUM(I37:I$45)-SUM(BE69:BE$77)-SUM($AZ$83:BD$92)-SUM(BE85:BE$92),0)","v":0},{"$f":"MAX(SUM(J37:J$45)-SUM(BF69:BF$77)-SUM($AZ$83:BE$92)-SUM(BF85:BF$92),0)","v":0},{"$f":"MAX(SUM(K37:K$45)-SUM(BG69:BG$77)-SUM($AZ$83:BF$92)-SUM(BG85:BG$92),0)","v":0},{"$f":"MAX(SUM(L37:L$45)-SUM(BH69:BH$77)-SUM($AZ$83:BG$92)-SUM(BH85:BH$92),0)","v":0},{"$f":"MAX(SUM(M37:M$45)-SUM(BI69:BI$77)-SUM($AZ$83:BH$92)-SUM(BI85:BI$92),0)","v":0},{"$f":"MAX(SUM(N37:N$45)-SUM(BJ69:BJ$77)-SUM($AZ$83:BI$92)-SUM(BJ85:BJ$92),0)","v":0},{"$f":"MAX(SUM(O37:O$45)-SUM(BK69:BK$77)-SUM($AZ$83:BJ$92)-SUM(BK85:BK$92),0)","v":0}]
[null,null,null,null,null,null,null,null,null,null,null,null,null,null,null,null,null,null,null,null,null,null,null,null,null,null,null,null,null,null,null,null,null,3,"R3($)",0,{"$f":"MAX(SUM(E38:E$45)-SUM(AK70:AK$77)-SUM($AJ$83:AJ$92)-SUM(AK86:AK$92),0)","v":0},{"$f":"MAX(SUM(F38:F$45)-SUM(AL70:AL$77)-SUM($AJ$83:AK$92)-SUM(AL86:AL$92),0)","v":0},{"$f":"MAX(SUM(G38:G$45)-SUM(AM70:AM$77)-SUM($AJ$83:AL$92)-SUM(AM86:AM$92),0)","v":0},{"$f":"MAX(SUM(H38:H$45)-SUM(AN70:AN$77)-SUM($AJ$83:AM$92)-SUM(AN86:AN$92),0)","v":0},{"$f":"MAX(SUM(I38:I$45)-SUM(AO70:AO$77)-SUM($AJ$83:AN$92)-SUM(AO86:AO$92),0)","v":0},{"$f":"MAX(SUM(J38:J$45)-SUM(AP70:AP$77)-SUM($AJ$83:AO$92)-SUM(AP86:AP$92),0)","v":0},{"$f":"MAX(SUM(K38:K$45)-SUM(AQ70:AQ$77)-SUM($AJ$83:AP$92)-SUM(AQ86:AQ$92),0)","v":0},{"$f":"MAX(SUM(L38:L$45)-SUM(AR70:AR$77)-SUM($AJ$83:AQ$92)-SUM(AR86:AR$92),0)","v":0},{"$f":"MAX(SUM(M38:M$45)-SUM(AS70:AS$77)-SUM($AJ$83:AR$92)-SUM(AS86:AS$92),0)","v":0},{"$f":"MAX(SUM(N38:N$45)-SUM(AT70:AT$77)-SUM($AJ$83:AS$92)-SUM(AT86:AT$92),0)","v":0},{"$f":"MAX(SUM(O38:O$45)-SUM(AU70:AU$77)-SUM($AJ$83:AT$92)-SUM(AU86:AU$92),0)","v":0},null,null,3,"R3($)",0,{"$f":"MAX(SUM(E38:E$45)-SUM(BA70:BA$77)-SUM($AZ$83:AZ$92)-SUM(BA86:BA$92),0)","v":0},{"$f":"MAX(SUM(F38:F$45)-SUM(BB70:BB$77)-SUM($AZ$83:BA$92)-SUM(BB86:BB$92),0)","v":0},{"$f":"MAX(SUM(G38:G$45)-SUM(BC70:BC$77)-SUM($AZ$83:BB$92)-SUM(BC86:BC$92),0)","v":0},{"$f":"MAX(SUM(H38:H$45)-SUM(BD70:BD$77)-SUM($AZ$83:BC$92)-SUM(BD86:BD$92),0)","v":0},{"$f":"MAX(SUM(I38:I$45)-SUM(BE70:BE$77)-SUM($AZ$83:BD$92)-SUM(BE86:BE$92),0)","v":0},{"$f":"MAX(SUM(J38:J$45)-SUM(BF70:BF$77)-SUM($AZ$83:BE$92)-SUM(BF86:BF$92),0)","v":0},{"$f":"MAX(SUM(K38:K$45)-SUM(BG70:BG$77)-SUM($AZ$83:BF$92)-SUM(BG86:BG$92),0)","v":0},{"$f":"MAX(SUM(L38:L$45)-SUM(BH70:BH$77)-SUM($AZ$83:BG$92)-SUM(BH86:BH$92),0)","v":0},{"$f":"MAX(SUM(M38:M$45)-SUM(BI70:BI$77)-SUM($AZ$83:BH$92)-SUM(BI86:BI$92),0)","v":0},{"$f":"MAX(SUM(N38:N$45)-SUM(BJ70:BJ$77)-SUM($AZ$83:BI$92)-SUM(BJ86:BJ$92),0)","v":0},{"$f":"MAX(SUM(O38:O$45)-SUM(BK70:BK$77)-SUM($AZ$83:BJ$92)-SUM(BK86:BK$92),0)","v":0}]
[null,null,null,null,null,null,null,null,null,null,null,null,null,null,null,null,null,null,null,null,null,null,null,null,null,null,null,null,null,null,null,null,null,4,"R4($)",0,{"$f":"MAX(SUM(E39:E$45)-SUM(AK71:AK$77)-SUM($AJ$83:AJ$92)-SUM(AK87:AK$92),0)","v":0},{"$f":"MAX(SUM(F39:F$45)-SUM(AL71:AL$77)-SUM($AJ$83:AK$92)-SUM(AL87:AL$92),0)","v":0},{"$f":"MAX(SUM(G39:G$45)-SUM(AM71:AM$77)-SUM($AJ$83:AL$92)-SUM(AM87:AM$92),0)","v":0},{"$f":"MAX(SUM(H39:H$45)-SUM(AN71:AN$77)-SUM($AJ$83:AM$92)-SUM(AN87:AN$92),0)","v":0},{"$f":"MAX(SUM(I39:I$45)-SUM(AO71:AO$77)-SUM($AJ$83:AN$92)-SUM(AO87:AO$92),0)","v":0},{"$f":"MAX(SUM(J39:J$45)-SUM(AP71:AP$77)-SUM($AJ$83:AO$92)-SUM(AP87:AP$92),0)","v":0},{"$f":"MAX(SUM(K39:K$45)-SUM(AQ71:AQ$77)-SUM($AJ$83:AP$92)-SUM(AQ87:AQ$92),0)","v":0},{"$f":"MAX(SUM(L39:L$45)-SUM(AR71:AR$77)-SUM($AJ$83:AQ$92)-SUM(AR87:AR$92),0)","v":0},{"$f":"MAX(SUM(M39:M$45)-SUM(AS71:AS$77)-SUM($AJ$83:AR$92)-SUM(AS87:AS$92),0)","v":0},{"$f":"MAX(SUM(N39:N$45)-SUM(AT71:AT$77)-SUM($AJ$83:AS$92)-SUM(AT87:AT$92),0)","v":0},{"$f":"MAX(SUM(O39:O$45)-SUM(AU71:AU$77)-SUM($AJ$83:AT$92)-SUM(AU87:AU$92),0)","v":0},null,null,4,"R4($)",0,{"$f":"MAX(SUM(E39:E$45)-SUM(BA71:BA$77)-SUM($AZ$83:AZ$92)-SUM(BA87:BA$92),0)","v":0},{"$f":"MAX(SUM(F39:F$45)-SUM(BB71:BB$77)-SUM($AZ$83:BA$92)-SUM(BB87:BB$92),0)","v":0},{"$f":"MAX(SUM(G39:G$45)-SUM(BC71:BC$77)-SUM($AZ$83:BB$92)-SUM(BC87:BC$92),0)","v":0},{"$f":"MAX(SUM(H39:H$45)-SUM(BD71:BD$77)-SUM($AZ$83:BC$92)-SUM(BD87:BD$92),0)","v":0},{"$f":"MAX(SUM(I39:I$45)-SUM(BE71:BE$77)-SUM($AZ$83:BD$92)-SUM(BE87:BE$92),0)","v":0},{"$f":"MAX(SUM(J39:J$45)-SUM(BF71:BF$77)-SUM($AZ$83:BE$92)-SUM(BF87:BF$92),0)","v":0},{"$f":"MAX(SUM(K39:K$45)-SUM(BG71:BG$77)-SUM($AZ$83:BF$92)-SUM(BG87:BG$92),0)","v":0},{"$f":"MAX(SUM(L39:L$45)-SUM(BH71:BH$77)-SUM($AZ$83:BG$92)-SUM(BH87:BH$92),0)","v":0},{"$f":"MAX(SUM(M39:M$45)-SUM(BI71:BI$77)-SUM($AZ$83:BH$92)-SUM(BI87:BI$92),0)","v":0},{"$f":"MAX(SUM(N39:N$45)-SUM(BJ71:BJ$77)-SUM($AZ$83:BI$92)-SUM(BJ87:BJ$92),0)","v":0},{"$f":"MAX(SUM(O39:O$45)-SUM(BK71:BK$77)-SUM($AZ$83:BJ$92)-SUM(BK87:BK$92),0)","v":0}]
[null,null,null,null,null,null,null,null,null,null,null,null,null,null,null,null,null,null,null,null,null,null,null,null,null,null,null,null,null,null,null,null,null,5,"R5($)",0,{"$f":"MAX(SUM(E40:E$45)-SUM(AK72:AK$77)-SUM($AJ$83:AJ$92)-SUM(AK88:AK$92),0)","v":0},{"$f":"MAX(SUM(F40:F$45)-SUM(AL72:AL$77)-SUM($AJ$83:AK$92)-SUM(AL88:AL$92),0)","v":0},{"$f":"MAX(SUM(G40:G$45)-SUM(AM72:AM$77)-SUM($AJ$83:AL$92)-SUM(AM88:AM$92),0)","v":0},{"$f":"MAX(SUM(H40:H$45)-SUM(AN72:AN$77)-SUM($AJ$83:AM$92)-SUM(AN88:AN$92),0)","v":0},{"$f":"MAX(SUM(I40:I$45)-SUM(AO72:AO$77)-SUM($AJ$83:AN$92)-SUM(AO88:AO$92),0)","v":0},{"$f":"MAX(SUM(J40:J$45)-SUM(AP72:AP$77)-SUM($AJ$83:AO$92)-SUM(AP88:AP$92),0)","v":0},{"$f":"MAX(SUM(K40:K$45)-SUM(AQ72:AQ$77)-SUM($AJ$83:AP$92)-SUM(AQ88:AQ$92),0)","v":0},{"$f":"MAX(SUM(L40:L$45)-SUM(AR72:AR$77)-SUM($AJ$83:AQ$92)-SUM(AR88:AR$92),0)","v":0},{"$f":"MAX(SUM(M40:M$45)-SUM(AS72:AS$77)-SUM($AJ$83:AR$92)-SUM(AS88:AS$92),0)","v":0},{"$f":"MAX(SUM(N40:N$45)-SUM(AT72:AT$77)-SUM($AJ$83:AS$92)-SUM(AT88:AT$92),0)","v":0},{"$f":"MAX(SUM(O40:O$45)-SUM(AU72:AU$77)-SUM($AJ$83:AT$92)-SUM(AU88:AU$92),0)","v":0},null,null,5,"R5($)",0,{"$f":"MAX(SUM(E40:E$45)-SUM(BA72:BA$77)-SUM($AZ$83:AZ$92)-SUM(BA88:BA$92),0)","v":0},{"$f":"MAX(SUM(F40:F$45)-SUM(BB72:BB$77)-SUM($AZ$83:BA$92)-SUM(BB88:BB$92),0)","v":0},{"$f":"MAX(SUM(G40:G$45)-SUM(BC72:BC$77)-SUM($AZ$83:BB$92)-SUM(BC88:BC$92),0)","v":0},{"$f":"MAX(SUM(H40:H$45)-SUM(BD72:BD$77)-SUM($AZ$83:BC$92)-SUM(BD88:BD$92),0)","v":0},{"$f":"MAX(SUM(I40:I$45)-SUM(BE72:BE$77)-SUM($AZ$83:BD$92)-SUM(BE88:BE$92),0)","v":0},{"$f":"MAX(SUM(J40:J$45)-SUM(BF72:BF$77)-SUM($AZ$83:BE$92)-SUM(BF88:BF$92),0)","v":0},{"$f":"MAX(SUM(K40:K$45)-SUM(BG72:BG$77)-SUM($AZ$83:BF$92)-SUM(BG88:BG$92),0)","v":0},{"$f":"MAX(SUM(L40:L$45)-SUM(BH72:BH$77)-SUM($AZ$83:BG$92)-SUM(BH88:BH$92),0)","v":0},{"$f":"MAX(SUM(M40:M$45)-SUM(BI72:BI$77)-SUM($AZ$83:BH$92)-SUM(BI88:BI$92),0)","v":0},{"$f":"MAX(SUM(N40:N$45)-SUM(BJ72:BJ$77)-SUM($AZ$83:BI$92)-SUM(BJ88:BJ$92),0)","v":0},{"$f":"MAX(SUM(O40:O$45)-SUM(BK72:BK$77)-SUM($AZ$83:BJ$92)-SUM(BK88:BK$92),0)","v":0}]
[null,null,null,null,null,null,null,null,null,null,null,null,null,null,null,null,null,null,null,null,null,null,null,null,null,null,null,null,null,null,null,null,null,6,"R6($)",0,{"$f":"MAX(SUM(E41:E$45)-SUM(AK73:AK$77)-SUM($AJ$83:AJ$92)-SUM(AK89:AK$92),0)","v":0},{"$f":"MAX(SUM(F41:F$45)-SUM(AL73:AL$77)-SUM($AJ$83:AK$92)-SUM(AL89:AL$92),0)","v":0},{"$f":"MAX(SUM(G41:G$45)-SUM(AM73:AM$77)-SUM($AJ$83:AL$92)-SUM(AM89:AM$92),0)","v":0},{"$f":"MAX(SUM(H41:H$45)-SUM(AN73:AN$77)-SUM($AJ$83:AM$92)-SUM(AN89:AN$92),0)","v":0},{"$f":"MAX(SUM(I41:I$45)-SUM(AO73:AO$77)-SUM($AJ$83:AN$92)-SUM(AO89:AO$92),0)","v":0},{"$f":"MAX(SUM(J41:J$45)-SUM(AP73:AP$77)-SUM($AJ$83:AO$92)-SUM(AP89:AP$92),0)","v":0},{"$f":"MAX(SUM(K41:K$45)-SUM(AQ73:AQ$77)-SUM($AJ$83:AP$92)-SUM(AQ89:AQ$92),0)","v":0},{"$f":"MAX(SUM(L41:L$45)-SUM(AR73:AR$77)-SUM($AJ$83:AQ$92)-SUM(AR89:AR$92),0)","v":0},{"$f":"MAX(SUM(M41:M$45)-SUM(AS73:AS$77)-SUM($AJ$83:AR$92)-SUM(AS89:AS$92),0)","v":0},{"$f":"MAX(SUM(N41:N$45)-SUM(AT73:AT$77)-SUM($AJ$83:AS$92)-SUM(AT89:AT$92),0)","v":0},{"$f":"MAX(SUM(O41:O$45)-SUM(AU73:AU$77)-SUM($AJ$83:AT$92)-SUM(AU89:AU$92),0)","v":0},null,null,6,"R6($)",0,{"$f":"MAX(SUM(E41:E$45)-SUM(BA73:BA$77)-SUM($AZ$83:AZ$92)-SUM(BA89:BA$92),0)","v":0},{"$f":"MAX(SUM(F41:F$45)-SUM(BB73:BB$77)-SUM($AZ$83:BA$92)-SUM(BB89:BB$92),0)","v":0},{"$f":"MAX(SUM(G41:G$45)-SUM(BC73:BC$77)-SUM($AZ$83:BB$92)-SUM(BC89:BC$92),0)","v":0},{"$f":"MAX(SUM(H41:H$45)-SUM(BD73:BD$77)-SUM($AZ$83:BC$92)-SUM(BD89:BD$92),0)","v":0},{"$f":"MAX(SUM(I41:I$45)-SUM(BE73:BE$77)-SUM($AZ$83:BD$92)-SUM(BE89:BE$92),0)","v":0},{"$f":"MAX(SUM(J41:J$45)-SUM(BF73:BF$77)-SUM($AZ$83:BE$92)-SUM(BF89:BF$92),0)","v":0},{"$f":"MAX(SUM(K41:K$45)-SUM(BG73:BG$77)-SUM($AZ$83:BF$92)-SUM(BG89:BG$92),0)","v":0},{"$f":"MAX(SUM(L41:L$45)-SUM(BH73:BH$77)-SUM($AZ$83:BG$92)-SUM(BH89:BH$92),0)","v":0},{"$f":"MAX(SUM(M41:M$45)-SUM(BI73:BI$77)-SUM($AZ$83:BH$92)-SUM(BI89:BI$92),0)","v":0},{"$f":"MAX(SUM(N41:N$45)-SUM(BJ73:BJ$77)-SUM($AZ$83:BI$92)-SUM(BJ89:BJ$92),0)","v":0},{"$f":"MAX(SUM(O41:O$45)-SUM(BK73:BK$77)-SUM($AZ$83:BJ$92)-SUM(BK89:BK$92),0)","v":0}]
[null,null,null,null,null,null,null,null,null,null,null,null,null,null,null,null,null,null,null,null,null,null,null,null,null,null,null,null,null,null,null,null,null,7,"R7($)",0,{"$f":"MAX(SUM(E42:E$45)-SUM(AK74:AK$77)-SUM($AJ$83:AJ$92)-SUM(AK90:AK$92),0)","v":0},{"$f":"MAX(SUM(F42:F$45)-SUM(AL74:AL$77)-SUM($AJ$83:AK$92)-SUM(AL90:AL$92),0)","v":0},{"$f":"MAX(SUM(G42:G$45)-SUM(AM74:AM$77)-SUM($AJ$83:AL$92)-SUM(AM90:AM$92),0)","v":0},{"$f":"MAX(SUM(H42:H$45)-SUM(AN74:AN$77)-SUM($AJ$83:AM$92)-SUM(AN90:AN$92),0)","v":0},{"$f":"MAX(SUM(I42:I$45)-SUM(AO74:AO$77)-SUM($AJ$83:AN$92)-SUM(AO90:AO$92),0)","v":0},{"$f":"MAX(SUM(J42:J$45)-SUM(AP74:AP$77)-SUM($AJ$83:AO$92)-SUM(AP90:AP$92),0)","v":0},{"$f":"MAX(SUM(K42:K$45)-SUM(AQ74:AQ$77)-SUM($AJ$83:AP$92)-SUM(AQ90:AQ$92),0)","v":0},{"$f":"MAX(SUM(L42:L$45)-SUM(AR74:AR$77)-SUM($AJ$83:AQ$92)-SUM(AR90:AR$92),0)","v":0},{"$f":"MAX(SUM(M42:M$45)-SUM(AS74:AS$77)-SUM($AJ$83:AR$92)-SUM(AS90:AS$92),0)","v":0},{"$f":"MAX(SUM(N42:N$45)-SUM(AT74:AT$77)-SUM($AJ$83:AS$92)-SUM(AT90:AT$92),0)","v":0},{"$f":"MAX(SUM(O42:O$45)-SUM(AU74:AU$77)-SUM($AJ$83:AT$92)-SUM(AU90:AU$92),0)","v":0},null,null,7,"R7($)",0,{"$f":"MAX(SUM(E42:E$45)-SUM(BA74:BA$77)-SUM($AZ$83:AZ$92)-SUM(BA90:BA$92),0)","v":0},{"$f":"MAX(SUM(F42:F$45)-SUM(BB74:BB$77)-SUM($AZ$83:BA$92)-SUM(BB90:BB$92),0)","v":0},{"$f":"MAX(SUM(G42:G$45)-SUM(BC74:BC$77)-SUM($AZ$83:BB$92)-SUM(BC90:BC$92),0)","v":0},{"$f":"MAX(SUM(H42:H$45)-SUM(BD74:BD$77)-SUM($AZ$83:BC$92)-SUM(BD90:BD$92),0)","v":0},{"$f":"MAX(SUM(I42:I$45)-SUM(BE74:BE$77)-SUM($AZ$83:BD$92)-SUM(BE90:BE$92),0)","v":0},{"$f":"MAX(SUM(J42:J$45)-SUM(BF74:BF$77)-SUM($AZ$83:BE$92)-SUM(BF90:BF$92),0)","v":0},{"$f":"MAX(SUM(K42:K$45)-SUM(BG74:BG$77)-SUM($AZ$83:BF$92)-SUM(BG90:BG$92),0)","v":0},{"$f":"MAX(SUM(L42:L$45)-SUM(BH74:BH$77)-SUM($AZ$83:BG$92)-SUM(BH90:BH$92),0)","v":0},{"$f":"MAX(SUM(M42:M$45)-SUM(BI74:BI$77)-SUM($AZ$83:BH$92)-SUM(BI90:BI$92),0)","v":0},{"$f":"MAX(SUM(N42:N$45)-SUM(BJ74:BJ$77)-SUM($AZ$83:BI$92)-SUM(BJ90:BJ$92),0)","v":0},{"$f":"MAX(SUM(O42:O$45)-SUM(BK74:BK$77)-SUM($AZ$83:BJ$92)-SUM(BK90:BK$92),0)","v":0}]
[null,null,null,null,null,null,null,null,null,null,null,null,null,null,null,null,null,null,null,null,null,null,null,null,null,null,null,null,null,null,null,null,null,8,"R8($)",0,{"$f":"MAX(SUM(E43:E$45)-SUM(AK75:AK$77)-SUM($AJ$83:AJ$92)-SUM(AK91:AK$92),0)","v":0},{"$f":"MAX(SUM(F43:F$45)-SUM(AL75:AL$77)-SUM($AJ$83:AK$92)-SUM(AL91:AL$92),0)","v":0},{"$f":"MAX(SUM(G43:G$45)-SUM(AM75:AM$77)-SUM($AJ$83:AL$92)-SUM(AM91:AM$92),0)","v":0},{"$f":"MAX(SUM(H43:H$45)-SUM(AN75:AN$77)-SUM($AJ$83:AM$92)-SUM(AN91:AN$92),0)","v":0},{"$f":"MAX(SUM(I43:I$45)-SUM(AO75:AO$77)-SUM($AJ$83:AN$92)-SUM(AO91:AO$92),0)","v":0},{"$f":"MAX(SUM(J43:J$45)-SUM(AP75:AP$77)-SUM($AJ$83:AO$92)-SUM(AP91:AP$92),0)","v":0},{"$f":"MAX(SUM(K43:K$45)-SUM(AQ75:AQ$77)-SUM($AJ$83:AP$92)-SUM(AQ91:AQ$92),0)","v":0},{"$f":"MAX(SUM(L43:L$45)-SUM(AR75:AR$77)-SUM($AJ$83:AQ$92)-SUM(AR91:AR$92),0)","v":0},{"$f":"MAX(SUM(M43:M$45)-SUM(AS75:AS$77)-SUM($AJ$83:AR$92)-SUM(AS91:AS$92),0)","v":0},{"$f":"MAX(SUM(N43:N$45)-SUM(AT75:AT$77)-SUM($AJ$83:AS$92)-SUM(AT91:AT$92),0)","v":0},{"$f":"MAX(SUM(O43:O$45)-SUM(AU75:AU$77)-SUM($AJ$83:AT$92)-SUM(AU91:AU$92),0)","v":0},null,null,8,"R8($)",0,{"$f":"MAX(SUM(E43:E$45)-SUM(BA75:BA$77)-SUM($AZ$83:AZ$92)-SUM(BA91:BA$92),0)","v":0},{"$f":"MAX(SUM(F43:F$45)-SUM(BB75:BB$77)-SUM($AZ$83:BA$92)-SUM(BB91:BB$92),0)","v":0},{"$f":"MAX(SUM(G43:G$45)-SUM(BC75:BC$77)-SUM($AZ$83:BB$92)-SUM(BC91:BC$92),0)","v":0},{"$f":"MAX(SUM(H43:H$45)-SUM(BD75:BD$77)-SUM($AZ$83:BC$92)-SUM(BD91:BD$92),0)","v":0},{"$f":"MAX(SUM(I43:I$45)-SUM(BE75:BE$77)-SUM($AZ$83:BD$92)-SUM(BE91:BE$92),0)","v":0},{"$f":"MAX(SUM(J43:J$45)-SUM(BF75:BF$77)-SUM($AZ$83:BE$92)-SUM(BF91:BF$92),0)","v":0},{"$f":"MAX(SUM(K43:K$45)-SUM(BG75:BG$77)-SUM($AZ$83:BF$92)-SUM(BG91:BG$92),0)","v":0},{"$f":"MAX(SUM(L43:L$45)-SUM(BH75:BH$77)-SUM($AZ$83:BG$92)-SUM(BH91:BH$92),0)","v":0},{"$f":"MAX(SUM(M43:M$45)-SUM(BI75:BI$77)-SUM($AZ$83:BH$92)-SUM(BI91:BI$92),0)","v":0},{"$f":"MAX(SUM(N43:N$45)-SUM(BJ75:BJ$77)-SUM($AZ$83:BI$92)-SUM(BJ91:BJ$92),0)","v":0},{"$f":"MAX(SUM(O43:O$45)-SUM(BK75:BK$77)-SUM($AZ$83:BJ$92)-SUM(BK91:BK$92),0)","v":0}]
[null,null,null,null,null,null,null,null,null,null,null,null,null,null,null,null,null,null,null,null,null,null,null,null,null,null,null,null,null,null,null,null,null,9,"R9($)",0,{"$f":"MAX(SUM(E44:E$45)-SUM(AK76:AK$77)-SUM($AJ$83:AJ$92)-SUM(AK92:AK$92),0)","v":0},{"$f":"MAX(SUM(F44:F$45)-SUM(AL76:AL$77)-SUM($AJ$83:AK$92)-SUM(AL92:AL$92),0)","v":0},{"$f":"MAX(SUM(G44:G$45)-SUM(AM76:AM$77)-SUM($AJ$83:AL$92)-SUM(AM92:AM$92),0)","v":0},{"$f":"MAX(SUM(H44:H$45)-SUM(AN76:AN$77)-SUM($AJ$83:AM$92)-SUM(AN92:AN$92),0)","v":0},{"$f":"MAX(SUM(I44:I$45)-SUM(AO76:AO$77)-SUM($AJ$83:AN$92)-SUM(AO92:AO$92),0)","v":0},{"$f":"MAX(SUM(J44:J$45)-SUM(AP76:AP$77)-SUM($AJ$83:AO$92)-SUM(AP92:AP$92),0)","v":0},{"$f":"MAX(SUM(K44:K$45)-SUM(AQ76:AQ$77)-SUM($AJ$83:AP$92)-SUM(AQ92:AQ$92),0)","v":0},{"$f":"MAX(SUM(L44:L$45)-SUM(AR76:AR$77)-SUM($AJ$83:AQ$92)-SUM(AR92:AR$92),0)","v":0},{"$f":"MAX(SUM(M44:M$45)-SUM(AS76:AS$77)-SUM($AJ$83:AR$92)-SUM(AS92:AS$92),0)","v":0},{"$f":"MAX(SUM(N44:N$45)-SUM(AT76:AT$77)-SUM($AJ$83:AS$92)-SUM(AT92:AT$92),0)","v":0},{"$f":"MAX(SUM(O44:O$45)-SUM(AU76:AU$77)-SUM($AJ$83:AT$92)-SUM(AU92:AU$92),0)","v":0},null,null,9,"R9($)",0,{"$f":"MAX(SUM(E44:E$45)-SUM(BA76:BA$77)-SUM($AZ$83:AZ$92)-SUM(BA92:BA$92),0)","v":0},{"$f":"MAX(SUM(F44:F$45)-SUM(BB76:BB$77)-SUM($AZ$83:BA$92)-SUM(BB92:BB$92),0)","v":0},{"$f":"MAX(SUM(G44:G$45)-SUM(BC76:BC$77)-SUM($AZ$83:BB$92)-SUM(BC92:BC$92),0)","v":0},{"$f":"MAX(SUM(H44:H$45)-SUM(BD76:BD$77)-SUM($AZ$83:BC$92)-SUM(BD92:BD$92),0)","v":0},{"$f":"MAX(SUM(I44:I$45)-SUM(BE76:BE$77)-SUM($AZ$83:BD$92)-SUM(BE92:BE$92),0)","v":0},{"$f":"MAX(SUM(J44:J$45)-SUM(BF76:BF$77)-SUM($AZ$83:BE$92)-SUM(BF92:BF$92),0)","v":0},{"$f":"MAX(SUM(K44:K$45)-SUM(BG76:BG$77)-SUM($AZ$83:BF$92)-SUM(BG92:BG$92),0)","v":0},{"$f":"MAX(SUM(L44:L$45)-SUM(BH76:BH$77)-SUM($AZ$83:BG$92)-SUM(BH92:BH$92),0)","v":0},{"$f":"MAX(SUM(M44:M$45)-SUM(BI76:BI$77)-SUM($AZ$83:BH$92)-SUM(BI92:BI$92),0)","v":0},{"$f":"MAX(SUM(N44:N$45)-SUM(BJ76:BJ$77)-SUM($AZ$83:BI$92)-SUM(BJ92:BJ$92),0)","v":0},{"$f":"MAX(SUM(O44:O$45)-SUM(BK76:BK$77)-SUM($AZ$83:BJ$92)-SUM(BK92:BK$92),0)","v":0}]
[null,null,null,null,null,null,null,null,null,null,null,null,null,null,null,null,null,null,null,null,null,null,null,null,null,null,null,null,null,null,null,null,null,10,"R10($)",0,{"$f":"MAX(E45-AK77-SUM($AJ$83:AJ$92),0)","v":0},{"$f":"MAX(F45-AL77-SUM($AJ$83:AK$92),0)","v":0},{"$f":"MAX(G45-AM77-SUM($AJ$83:AL$92),0)","v":0},{"$f":"MAX(H45-AN77-SUM($AJ$83:AM$92),0)","v":0},{"$f":"MAX(I45-AO77-SUM($AJ$83:AN$92),0)","v":0},{"$f":"MAX(J45-AP77-SUM($AJ$83:AO$92),0)","v":0},{"$f":"MAX(K45-AQ77-SUM($AJ$83:AP$92),0)","v":0},{"$f":"MAX(L45-AR77-SUM($AJ$83:AQ$92),0)","v":0},{"$f":"MAX(M45-AS77-SUM($AJ$83:AR$92),0)","v":0},{"$f":"MAX(N45-AT77-SUM($AJ$83:AS$92),0)","v":0},{"$f":"MAX(O45-AU77-SUM($AJ$83:AT$92),0)","v":0},null,null,10,"R10($)",0,{"$f":"MAX(E45-BA77-SUM($AZ$83:AZ$92),0)","v":0},{"$f":"MAX(F45-BB77-SUM($AZ$83:BA$92),0)","v":0},{"$f":"MAX(G45-BC77-SUM($AZ$83:BB$92),0)","v":0},{"$f":"MAX(H45-BD77-SUM($AZ$83:BC$92),0)","v":0},{"$f":"MAX(I45-BE77-SUM($AZ$83:BD$92),0)","v":0},{"$f":"MAX(J45-BF77-SUM($AZ$83:BE$92),0)","v":0},{"$f":"MAX(K45-BG77-SUM($AZ$83:BF$92),0)","v":0},{"$f":"MAX(L45-BH77-SUM($AZ$83:BG$92),0)","v":0},{"$f":"MAX(M45-BI77-SUM($AZ$83:BH$92),0)","v":0},{"$f":"MAX(N45-BJ77-SUM($AZ$83:BI$92),0)","v":0},{"$f":"MAX(O45-BK77-SUM($AZ$83:BJ$92),0)","v":0}]
[null,null,null,null,null,null,null,null,null,null,null,null,null,null,null,null,null,null,null,null,null,null,null,null,null,null,null,null,null,null,null,null,null,"Total R1($) to R6($)",null,{"$f":"SUM(AJ83:AJ88)","v":6},{"$f":"SUM(AK83:AK88)","v":0},0,0,0,0,0,0,0,0,0,0,null,null,"Total R1($) to R6($)",null,{"$f":"SUM(AZ83:AZ88)","v":6},{"$f":"SUM(BA83:BA88)","v":0},0,0,0,0,0,0,0,0,0,0]
[null,null,null,null,null,null,null,null,null,null,null,null,null,null,null,null,null,null,null,null,null,null,null,null,null,null,null,null,null,null,null,null,null,"Total R7($) to R10($)",null,{"$f":"SUM(AJ89:AJ92)","v":0},{"$f":"SUM(AK89:AK92)","v":0},0,0,0,0,0,0,0,0,0,0,null,null,"Total R7($) to R10($)",null,{"$f":"SUM(AZ89:AZ92)","v":0},{"$f":"SUM(BA89:BA92)","v":0},0,0,0,0,0,0,0,0,0,0]
[null,null,null,null,null,null,null,null,null,null,null,null,null,null,null,null,null,null,null,null,null,null,null,null,null,null,null,null,null,null,null,null,null,"Total",null,{"$f":"SUM(AJ83:AJ92)","v":6},{"$f":"SUM(AK83:AK92)","v":0},0,0,0,0,0,0,0,0,0,0,null,null,"Total",null,{"$f":"SUM(AZ83:AZ92)","v":6},{"$f":"SUM(BA83:BA92)","v":0},0,0,0,0,0,0,0,0,0,0]
[]
[null,null,null,null,null,null,null,null,null,null,null,null,null,null,null,null,null,null,null,null,null,null,null,null,null,null,null,null,null,null,null,null,null,"ANNUAL RESIDUAL RISK",null,2019,2020,2021,2022,2023,2024,2025,2026,2027,2028,2029,2030,null,null,"ANNUAL RESIDUAL RISK",null,2019,2020,2021,2022,2023,2024,2025,2026,2027,2028,2029,2030]
[null,null,null,null,null,null,null,null,null,null,null,null,null,null,null,null,null,null,null,null,null,null,null,null,null,null,null,null,null,null,null,null,null,1,"R1($)",{"$f":"IF(AJ68=0, 0, D6*(AJ68/D36))","v":1066184.5731691257},1099042.4478984715,1126162.9817402067,1132853.8888115981,1140600.4514474007,1126553.5248115824,1083442.6478955869,1052599.2382692262,1070783.4858477314,1075201.3199495729,1079794.8272183849,1084680.9602099215,null,null,1,"R1($)",{"$f":"IF(AZ68=0, 0, D6*(AZ68/D36))","v":1066184.5731691257},1099042.4478984715,1126162.9817402067,1132853.8888115981,1140600.4514474007,1126553.5248115824,1083442.6478955869,1052599.2382692262,1070783.4858477314,1075201.3199495729,1079794.8272183849,1084680.9602099215]
[null,null,null,null,null,null,null,null,null,null,null,null,null,null,null,null,null,null,null,null,null,null,null,null,null,null,null,null,null,null,null,null,null,2,"R2($)",58988.971041808851,61525.45222239977,72193.809342724126,107013.11801403204,138167.99543517423,196470.64193076832,285832.94270635024,363808.87876324041,393477.94946262008,434475.75312327174,481574.99086246255,530360.46888810094,null,null,2,"R2($)",58988.971041808851,61525.45222239977,72193.809342724126,107013.11801403204,138167.99543517423,196470.64193076832,285832.94270635024,363808.87876324041,393477.94946262008,434475.75312327174,481574.99086246255,530360.46888810094]
[null,null,null,null,null,null,null,null,null,null,null,null,null,null,null,null,null,null,null,null,null,null,null,null,null,null,null,null,null,null,null,null,null,3,"R3($)",0,0,0,0,0,0,0,0,0,0,0,0,null,null,3,"R3($)",0,0,0,0,0,0,0,0,0,0,0,0]
[null,null,null,null,null,null,null,null,null,null,null,null,null,null,null,null,null,null,null,null,null,null,null,null,null,null,null,null,null,null,null,null,null,4,"R4($)",0,0,0,0,0,0,0,0,0,0,0,0,null,null,4,"R4($)",0,0,0,0,0,0,0,0,0,0,0,0]
[null,null,null,null,null,null,null,null,null,null,null,null,null,null,null,null,null,null,null,null,null,null,null,null,null,null,null,null,null,null,null,null,null,5,"R5($)",0,0,0,0,0,0,0,0,0,0,0,0,null,null,5,"R5($)",0,0,0,0,0,0,0,0,0,0,0,0]
[null,null,null,null,null,null,null,null,null,null,null,null,null,null,null,null,null,null,null,null,null,null,null,null,null,null,null,null,null,null,null,null,null,6,"R6($)",0,0,0,0,0,0,0,0,0,0,0,0,null,null,6,"R6($)",0,0,0,0,0,0,0,0,0,0,0,0]
[null,null,null,null,null,null,null,null,null,null,null,null,null,null,null,null,null,null,null,null,null,null,null,null,null,null,null,null,null,null,null,null,null,7,"R7($)",0,0,0,0,0,0,0,0,0,0,0,0,null,null,7,"R7($)",0,0,0,0,0,0,0,0,0,0,0,0]
[null,null,null,null,null,null,null,null,null,null,null,null,null,null,null,null,null,null,null,null,null,null,null,null,null,null,null,null,null,null,null,null,null,8,"R8($)",0,0,0,0,0,0,0,0,0,0,0,0,null,null,8,"R8($)",0,0,0,0,0,0,0,0,0,0,0,0]
[null,null,null,null,null,null,null,null,null,null,null,null,null,null,null,null,null,null,null,null,null,null,null,null,null,null,null,null,null,null,null,null,null,9,"R9($)",0,0,0,0,0,0,0,0,0,0,0,0,null,null,9,"R9($)",0,0,0,0,0,0,0,0,0,0,0,0]
[null,null,null,null,null,null,null,null,null,null,null,null,null,null,null,null,null,null,null,null,null,null,null,null,null,null,null,null,null,null,null,null,null,10,"R10($)",0,0,0,0,0,0,0,0,0,0,0,0,null,null,10,"R10($)",0,0,0,0,0,0,0,0,0,0,0,0]
[null,null,null,null,null,null,null,null,null,null,null,null,null,null,null,null,null,null,null,null,null,null,null,null,null,null,null,null,null,null,null,null,null,"Total R1($) to R6($)",null,{"$f":"SUM(AJ98:AJ103)","v":1125173.5442109345},{"$f":"SUM(AK98:AK103)","v":1160567.9001208714},1198356.7910829308,1239867.0068256301,1278768.4468825751,1323024.1667423507,1369275.5906019371,1416408.1170324665,1464261.4353103514,1509677.0730728447,1561369.8180808476,1615041.4290980224,null,null,"Total R1($) to R6($)",null,{"$f":"SUM(AZ98:AZ103)","v":1125173.5442109345},{"$f":"SUM(BA98:BA103)","v":1160567.9001208714},1198356.7910829308,1239867.0068256301,1278768.4468825751,1323024.1667423507,1369275.5906019371,1416408.1170324665,1464261.4353103514,1509677.0730728447,1561369.8180808476,1615041.4290980224]
[null,null,null,null,null,null,null,null,null,null,null,null,null,null,null,null,null,null,null,null,null,null,null,null,null,null,null,null,null,null,null,null,null,"Total R7($) to R10($)",null,{"$f":"SUM(AJ104:AJ107)","v":0},{"$f":"SUM(AK104:AK107)","v":0},0,0,0,0,0,0,0,0,0,0,null,null,"Total R7($) to R10($)",null,{"$f":"SUM(AZ104:AZ107)","v":0},{"$f":"SUM(BA104:BA107)","v":0},0,0,0,0,0,0,0,0,0,0]
[null,null,null,null,null,null,null,null,null,null,null,null,null,null,null,null,null,null,null,null,null,null,null,null,null,null,null,null,null,null,null,null,null,"Total",null,{"$f":"SUM(AJ98:AJ107)","v":1125173.5442109345},{"$f":"SUM(AK98:AK107)","v":1160567.9001208714},1198356.7910829308,1239867.0068256301,1278768.4468825751,1323024.1667423507,1369275.5906019371,1416408.1170324665,1464261.4353103514,1509677.0730728447,1561369.8180808476,1615041.4290980224,null,null,"Total",null,{"$f":"SUM(AZ98:AZ107)","v":1125173.5442109345},{"$f":"SUM(BA98:BA107)","v":1160567.9001208714},1198356.7910829308,1239867.0068256301,1278768.4468825751,1323024.1667423507,1369275.5906019371,1416408.1170324665,1464261.4353103514,1509677.0730728447,1561369.8180808476,1615041.4290980224]
[]
[null,null,null,null,null,null,null,null,null,null,null,null,null,null,null,null,null,null,null,null,null,null,null,null,null,null,null,null,null,null,null,null,null,"ESTIMATED REALISED BENEFIT",null,2019,2020,2021,2022,2023,2024,2025,2026,2027,2028,2029,2030,null,null,"ESTIMATED REALISED BENEFIT",null,2019,2020,2021,2022,2023,2024,2025,2026,2027,2028,2029,2030]
[null,null,null,null,null,null,null,null,null,null,null,null,null,null,null,null,null,null,null,null,null,null,null,null,null,null,null,null,null,null,null,null,null,1,"R1($)",{"$f":"D6-AJ98","v":0},0,0,0,0,0,0,0,0,0,0,0,null,null,1,"R1($)",{"$f":"D6-AZ98","v":0},0,0,0,0,0,0,0,0,0,0,0]
[null,null,null,null,null,null,null,null,null,null,null,null,null,null,null,null,null,null,null,null,null,null,null,null,null,null,null,null,null,null,null,null,null,2,"R2($)",50561.975178693305,52736.101904914096,54145.357007043101,53506.559007016025,43177.498573491961,42711.009115384426,42034.256280345609,42303.357995725586,43719.772162513342,35467.40841822623,36345.282329242444,37218.278518463252,null,null,2,"R2($)",50561.975178693305,52736.101904914096,54145.357007043101,53506.559007016025,43177.498573491961,42711.009115384426,42034.256280345609,42303.357995725586,43719.772162513342,35467.40841822623,36345.282329242444,37218.278518463252]
[null,null,null,null,null,null,null,null,null,null,null,null,null,null,null,null,null,null,null,null,null,null,null,null,null,null,null,null,null,null,null,null,null,3,"R3($)",0,0,0,0,14015.367172298858,14572.782710314199,15145.787645780865,15734.595446272566,16339.419538425369,30975.840480797513,32170.752813235231,33397.910874602647,null,null,3,"R3($)",0,0,0,0,14015.367172298858,14572.782710314199,15145.787645780865,15734.595446272566,16339.419538425369,30975.840480797513,32170.752813235231,33397.910874602647]
[null,null,null,null,null,null,null,null,null,null,null,null,null,null,null,null,null,null,null,null,null,null,null,null,null,null,null,null,null,null,null,null,null,4,"R4($)",0,0,0,0,0,0,0,0,0,0,0,0,null,null,4,"R4($)",0,0,0,0,0,0,0,0,0,0,0,0]
[null,null,null,null,null,null,null,null,null,null,null,null,null,null,null,null,null,null,null,null,null,null,null,null,null,null,null,null,null,null,null,null,null,5,"R5($)",0,0,0,0,0,0,0,0,0,0,0,0,null,null,5,"R5($)",0,0,0,0,0,0,0,0,0,0,0,0]
[null,null,null,null,null,null,null,null,null,null,null,null,null,null,null,null,null,null,null,null,null,null,null,null,null,null,null,null,null,null,null,null,null,6,"R6($)",0,0,0,0,0,0,0,0,0,0,0,0,null,null,6,"R6($)",0,0,0,0,0,0,0,0,0,0,0,0]
[null,null,null,null,null,null,null,null,null,null,null,null,null,null,null,null,null,null,null,null,null,null,null,null,null,null,null,null,null,null,null,null,null,7,"R7($)",0,0,0,0,0,0,0,0,0,0,0,0,null,null,7,"R7($)",0,0,0,0,0,0,0,0,0,0,0,0]
[null,null,null,null,null,null,null,null,null,null,null,null,null,null,null,null,null,null,null,null,null,null,null,null,null,null,null,null,null,null,null,null,null,8,"R8($)",0,0,0,0,0,0,0,0,0,0,0,0,null,null,8,"R8($)",0,0,0,0,0,0,0,0,0,0,0,0]
[null,null,null,null,null,null,null,null,null,null,null,null,null,null,null,null,null,null,null,null,null,null,null,null,null,null,null,null,null,null,null,null,null,9,"R9($)",0,0,0,0,0,0,0,0,0,0,0,0,null,null,9,"R9($)",0,0,0,0,0,0,0,0,0,0,0,0]
[null,null,null,null,null,null,null,null,null,null,null,null,null,null,null,null,null,null,null,null,null,null,null,null,null,null,null,null,null,null,null,null,null,10,"R10($)",0,0,0,0,0,0,0,0,0,0,0,0,null,null,10,"R10($)",0,0,0,0,0,0,0,0,0,0,0,0]
[null,null,null,null,null,null,null,null,null,null,null,null,null,null,null,null,null,null,null,null,null,null,null,null,null,null,null,null,null,null,null,null,null,"Total R1($) to R6($)",null,{"$f":"SUM(AJ113:AJ118)","v":50561.975178693305},{"$f":"SUM(AK113:AK118)","v":52736.101904914096},54145.357007043101,53506.559007016025,57192.865745790819,57283.791825698623,57180.043926126476,58037.95344199815,60059.191700938711,66443.248899023747,68516.035142477675,70616.189393065899,null,null,"Total R1($) to R6($)",null,{"$f":"SUM(AZ113:AZ118)","v":50561.975178693305},{"$f":"SUM(BA113:BA118)","v":52736.101904914096},54145.357007043101,53506.559007016025,57192.865745790819,57283.791825698623,57180.043926126476,58037.95344199815,60059.191700938711,66443.248899023747,68516.035142477675,70616.189393065899]
[null,null,null,null,null,null,null,null,null,null,null,null,null,null,null,null,null,null,null,null,null,null,null,null,null,null,null,null,null,null,null,null,null,"Total R7($) to R10($)",null,{"$f":"SUM(AJ119:AJ122)","v":0},{"$f":"SUM(AK119:AK122)","v":0},0,0,0,0,0,0,0,0,0,0,null,null,"Total R7($) to R10($)",null,{"$f":"SUM(AZ119:AZ122)","v":0},{"$f":"SUM(BA119:BA122)","v":0},0,0,0,0,0,0,0,0,0,0]
[null,null,null,null,null,null,null,null,null,null,null,null,null,null,null,null,null,null,null,null,null,null,null,null,null,null,null,null,null,null,null,null,null,"Total",null,{"$f":"SUM(AJ113:AJ122)","v":50561.975178693305},{"$f":"SUM(AK113:AK122)","v":52736.101904914096},54145.357007043101,53506.559007016025,57192.865745790819,57283.791825698623,57180.043926126476,58037.95344199815,60059.191700938711,66443.248899023747,68516.035142477675,70616.189393065899,null,null,"Total",null,{"$f":"SUM(AZ113:AZ122)","v":50561.975178693305},{"$f":"SUM(BA113:BA122)","v":52736.101904914096},54145.357007043101,53506.559007016025,57192.865745790819,57283.791825698623,57180.043926126476,58037.95344199815,60059.191700938711,66443.248899023747,68516.035142477675,70616.189393065899]
[]
[null,null,null,null,null,null,null,null,null,null,null,null,null,null,null,null,null,null,null,null,null,null,null,null,null,null,null,null,null,null,null,null,null,"TOTAL WORKER SAFETY RISK BY RISK INDEX CATEGORY",null,2019,2020,2021,2022,2023,2024,2025,2026,2027,2028,2029,2030,null,null,"TOTAL WORKER SAFETY RISK BY RISK INDEX CATEGORY",null,2019,2020,2021,2022,2023,2024,2025,2026,2027,2028,2029,2030]
[null,null,null,null,null,null,null,null,null,null,null,null,null,null,null,null,null,null,null,null,null,null,null,null,null,null,null,null,null,null,null,null,null,1,"R1($)",{"$f":"AZ128","v":0.26612097690266251},{"$f":"BA128","v":0.27382036928567643},0.28027480970994645,0.28345476508776624,0.28681592447760973,0.28692837591026937,0.28251874616702849,0.27966953804482919,0.28472750440717087,0.28753746782029949,0.2903609650680925,0.29322125349550338,null,null,1,"R1($)",{"$f":"IFERROR((SUMIF('D. Population Risk Index'!O:O,$AX128,'C. Population PoC & Risk'!V:V))/D6, 0)","v":0.26612097690266251},{"$f":"IFERROR((SUMIF('D. Population Risk Index'!P:P,$AX128,'C. Population PoC & Risk'!W:W))/E6, 0)","v":0.27382036928567643},{"$f":"IFERROR((SUMIF('D. Population Risk Index'!Q:Q,$AX128,'C. Population PoC & Risk'!X:X))/F6, 0)","v":0.28027480970994645},{"$f":"IFERROR((SUMIF('D. Population Risk Index'!R:R,$AX128,'C. Population PoC & Risk'!Y:Y))/G6, 0)","v":0.28345476508776624},{"$f":"IFERROR((SUMIF('D. Population Risk Index'!S:S,$AX128,'C. Population PoC & Risk'!Z:Z))/H6, 0)","v":0.28681592447760973},{"$f":"IFERROR((SUMIF('D. Population Risk Index'!T:T,$AX128,'C. Population PoC & Risk'!AA:AA))/I6, 0)","v":0.28692837591026937},{"$f":"IFERROR((SUMIF('D. Population Risk Index'!U:U,$AX128,'C. Population PoC & Risk'!AB:AB))/J6, 0)","v":0.28251874616702849},{"$f":"IFERROR((SUMIF('D. Population Risk Index'!V:V,$AX128,'C. Population PoC & Risk'!AC:AC))/K6, 0)","v":0.27966953804482919},{"$f":"IFERROR((SUMIF('D. Population Risk Index'!W:W,$AX128,'C. Population PoC & Risk'!AD:AD))/L6, 0)","v":0.28472750440717087},{"$f":"IFERROR((SUMIF('D. Population Risk Index'!X:X,$AX128,'C. Population PoC & Risk'!AE:AE))/M6, 0)","v":0.28753746782029949},{"$f":"IFERROR((SUMIF('D. Population Risk Index'!Y:Y,$AX128,'C. Population PoC & Risk'!AF:AF))/N6, 0)","v":0.2903609650680925},{"$f":"IFERROR((SUMIF('D. Population Risk Index'!Z:Z,$AX128,'C. Population PoC & Risk'!AG:AG))/O6, 0)","v":0.29322125349550338}]
[null,null,null,null,null,null,null,null,null,null,null,null,null,null,null,null,null,null,null,null,null,null,null,null,null,null,null,null,null,null,null,null,null,2,"R2($)",{"$f":"AZ129","v":0.46506468348815105},0.46748629535171043,0.46895208653857984,0.46829722868473067,0.46648293845572736,0.46585687981545049,0.46492393195231646,0.46529848104258104,0.46719391222021794,0.46797854562282026,0.46932693436415746,0.47060475088063264,null,null,2,"R2($)",{"$f":"IFERROR((SUMIF('D. Population Risk Index'!O:O,$AX129,'C. Population PoC & Risk'!V:V))/D7, 0)","v":0.46506468348815105},{"$f":"IFERROR((SUMIF('D. Population Risk Index'!P:P,$AX129,'C. Population PoC & Risk'!W:W))/E7, 0)","v":0.46748629535171043},{"$f":"IFERROR((SUMIF('D. Population Risk Index'!Q:Q,$AX129,'C. Population PoC & Risk'!X:X))/F7, 0)","v":0.46895208653857984},{"$f":"IFERROR((SUMIF('D. Population Risk Index'!R:R,$AX129,'C. Population PoC & Risk'!Y:Y))/G7, 0)","v":0.46829722868473067},{"$f":"IFERROR((SUMIF('D. Population Risk Index'!S:S,$AX129,'C. Population PoC & Risk'!Z:Z))/H7, 0)","v":0.46648293845572736},{"$f":"IFERROR((SUMIF('D. Population Risk Index'!T:T,$AX129,'C. Population PoC & Risk'!AA:AA))/I7, 0)","v":0.46585687981545049},{"$f":"IFERROR((SUMIF('D. Population Risk Index'!U:U,$AX129,'C. Population PoC & Risk'!AB:AB))/J7, 0)","v":0.46492393195231646},{"$f":"IFERROR((SUMIF('D. Population Risk Index'!V:V,$AX129,'C. Population PoC & Risk'!AC:AC))/K7, 0)","v":0.46529848104258104},{"$f":"IFERROR((SUMIF('D. Population Risk Index'!W:W,$AX129,'C. Population PoC & Risk'!AD:AD))/L7, 0)","v":0.46719391222021794},{"$f":"IFERROR((SUMIF('D. Population Risk Index'!X:X,$AX129,'C. Population PoC & Risk'!AE:AE))/M7, 0)","v":0.46797854562282026},{"$f":"IFERROR((SUMIF('D. Population Risk Index'!Y:Y,$AX129,'C. Population PoC & Risk'!AF:AF))/N7, 0)","v":0.46932693436415746},{"$f":"IFERROR((SUMIF('D. Population Risk Index'!Z:Z,$AX129,'C. Population PoC & Risk'!AG:AG))/O7, 0)","v":0.47060475088063264}]
[null,null,null,null,null,null,null,null,null,null,null,null,null,null,null,null,null,null,null,null,null,null,null,null,null,null,null,null,null,null,null,null,null,3,"R3($)",0,0,0,0,0.48848584776056819,0.48983677695697186,0.49112184018460547,0.49234484057775757,0.49350933486780751,0.4918437949218924,0.49303088097518805,0.49416158896648071,null,null,3,"R3($)",{"$f":"IFERROR((SUMIF('D. Population Risk Index'!O:O,$AX130,'C. Population PoC & Risk'!V:V))/D8, 0)","v":0},{"$f":"IFERROR((SUMIF('D. Population Risk Index'!P:P,$AX130,'C. Population PoC & Risk'!W:W))/E8, 0)","v":0},{"$f":"IFERROR((SUMIF('D. Population Risk Index'!Q:Q,$AX130,'C. Population PoC & Risk'!X:X))/F8, 0)","v":0},{"$f":"IFERROR((SUMIF('D. Population Risk Index'!R:R,$AX130,'C. Population PoC & Risk'!Y:Y))/G8, 0)","v":0},{"$f":"IFERROR((SUMIF('D. Population Risk Index'!S:S,$AX130,'C. Population PoC & Risk'!Z:Z))/H8, 0)","v":0.48848584776056819},{"$f":"IFERROR((SUMIF('D. Population Risk Index'!T:T,$AX130,'C. Population PoC & Risk'!AA:AA))/I8, 0)","v":0.48983677695697186},{"$f":"IFERROR((SUMIF('D. Population Risk Index'!U:U,$AX130,'C. Population PoC & Risk'!AB:AB))/J8, 0)","v":0.49112184018460547},{"$f":"IFERROR((SUMIF('D. Population Risk Index'!V:V,$AX130,'C. Population PoC & Risk'!AC:AC))/K8, 0)","v":0.49234484057775757},{"$f":"IFERROR((SUMIF('D. Population Risk Index'!W:W,$AX130,'C. Population PoC & Risk'!AD:AD))/L8, 0)","v":0.49350933486780751},{"$f":"IFERROR((SUMIF('D. Population Risk Index'!X:X,$AX130,'C. Population PoC & Risk'!AE:AE))/M8, 0)","v":0.4918437949218924},{"$f":"IFERROR((SUMIF('D. Population Risk Index'!Y:Y,$AX130,'C. Population PoC & Risk'!AF:AF))/N8, 0)","v":0.49303088097518805},{"$f":"IFERROR((SUMIF('D. Population Risk Index'!Z:Z,$AX130,'C. Population PoC & Risk'!AG:AG))/O8, 0)","v":0.49416158896648071}]
[null,null,null,null,null,null,null,null,null,null,null,null,null,null,null,null,null,null,null,null,null,null,null,null,null,null,null,null,null,null,null,null,null,4,"R4($)",0,0,0,0,0,0,0,0,0,0,0,0,null,null,4,"R4($)",{"$f":"IFERROR((SUMIF('D. Population Risk Index'!O:O,$AX131,'C. Population PoC & Risk'!V:V))/D9, 0)","v":0},{"$f":"IFERROR((SUMIF('D. Population Risk Index'!P:P,$AX131,'C. Population PoC & Risk'!W:W))/E9, 0)","v":0},{"$f":"IFERROR((SUMIF('D. Population Risk Index'!Q:Q,$AX131,'C. Population PoC & Risk'!X:X))/F9, 0)","v":0},{"$f":"IFERROR((SUMIF('D. Population Risk Index'!R:R,$AX131,'C. Population PoC & Risk'!Y:Y))/G9, 0)","v":0},{"$f":"IFERROR((SUMIF('D. Population Risk Index'!S:S,$AX131,'C. Population PoC & Risk'!Z:Z))/H9, 0)","v":0},{"$f":"IFERROR((SUMIF('D. Population Risk Index'!T:T,$AX131,'C. Population PoC & Risk'!AA:AA))/I9, 0)","v":0},{"$f":"IFERROR((SUMIF('D. Population Risk Index'!U:U,$AX131,'C. Population PoC & Risk'!AB:AB))/J9, 0)","v":0},{"$f":"IFERROR((SUMIF('D. Population Risk Index'!V:V,$AX131,'C. Population PoC & Risk'!AC:AC))/K9, 0)","v":0},{"$f":"IFERROR((SUMIF('D. Population Risk Index'!W:W,$AX131,'C. Population PoC & Risk'!AD:AD))/L9, 0)","v":0},{"$f":"IFERROR((SUMIF('D. Population Risk Index'!X:X,$AX131,'C. Population PoC & Risk'!AE:AE))/M9, 0)","v":0},{"$f":"IFERROR((SUMIF('D. Population Risk Index'!Y:Y,$AX131,'C. Population PoC & Risk'!AF:AF))/N9, 0)","v":0},{"$f":"IFERROR((SUMIF('D. Population Risk Index'!Z:Z,$AX131,'C. Population PoC & Risk'!AG:AG))/O9, 0)","v":0}]
[null,null,null,null,null,null,null,null,null,null,null,null,null,null,null,null,null,null,null,null,null,null,null,null,null,null,null,null,null,null,null,null,null,5,"R5($)",0,0,0,0,0,0,0,0,0,0,0,0,null,null,5,"R5($)",{"$f":"IFERROR((SUMIF('D. Population Risk Index'!O:O,$AX132,'C. Population PoC & Risk'!V:V))/D10, 0)","v":0},{"$f":"IFERROR((SUMIF('D. Population Risk Index'!P:P,$AX132,'C. Population PoC & Risk'!W:W))/E10, 0)","v":0},{"$f":"IFERROR((SUMIF('D. Population Risk Index'!Q:Q,$AX132,'C. Population PoC & Risk'!X:X))/F10, 0)","v":0},{"$f":"IFERROR((SUMIF('D. Population Risk Index'!R:R,$AX132,'C. Population PoC & Risk'!Y:Y))/G10, 0)","v":0},{"$f":"IFERROR((SUMIF('D. Population Risk Index'!S:S,$AX132,'C. Population PoC & Risk'!Z:Z))/H10, 0)","v":0},{"$f":"IFERROR((SUMIF('D. Population Risk Index'!T:T,$AX132,'C. Population PoC & Risk'!AA:AA))/I10, 0)","v":0},{"$f":"IFERROR((SUMIF('D. Population Risk Index'!U:U,$AX132,'C. Population PoC & Risk'!AB:AB))/J10, 0)","v":0},{"$f":"IFERROR((SUMIF('D. Population Risk Index'!V:V,$AX132,'C. Population PoC & Risk'!AC:AC))/K10, 0)","v":0},{"$f":"IFERROR((SUMIF('D. Population Risk Index'!W:W,$AX132,'C. Population PoC & Risk'!AD:AD))/L10, 0)","v":0},{"$f":"IFERROR((SUMIF('D. Population Risk Index'!X:X,$AX132,'C. Population PoC & Risk'!AE:AE))/M10, 0)","v":0},{"$f":"IFERROR((SUMIF('D. Population Risk Index'!Y:Y,$AX132,'C. Population PoC & Risk'!AF:AF))/N10, 0)","v":0},{"$f":"IFERROR((SUMIF('D. Population Risk Index'!Z:Z,$AX132,'C. Population PoC & Risk'!AG:AG))/O10, 0)","v":0}]
[null,null,null,null,null,null,null,null,null,null,null,null,null,null,null,null,null,null,null,null,null,null,null,null,null,null,null,null,null,null,null,null,null,6,"R6($)",0,0,0,0,0,0,0,0,0,0,0,0,null,null,6,"R6($)",{"$f":"IFERROR((SUMIF('D. Population Risk Index'!O:O,$AX133,'C. Population PoC & Risk'!V:V))/D11, 0)","v":0},{"$f":"IFERROR((SUMIF('D. Population Risk Index'!P:P,$AX133,'C. Population PoC & Risk'!W:W))/E11, 0)","v":0},{"$f":"IFERROR((SUMIF('D. Population Risk Index'!Q:Q,$AX133,'C. Population PoC & Risk'!X:X))/F11, 0)","v":0},{"$f":"IFERROR((SUMIF('D. Population Risk Index'!R:R,$AX133,'C. Population PoC & Risk'!Y:Y))/G11, 0)","v":0},{"$f":"IFERROR((SUMIF('D. Population Risk Index'!S:S,$AX133,'C. Population PoC & Risk'!Z:Z))/H11, 0)","v":0},{"$f":"IFERROR((SUMIF('D. Population Risk Index'!T:T,$AX133,'C. Population PoC & Risk'!AA:AA))/I11, 0)","v":0},{"$f":"IFERROR((SUMIF('D. Population Risk Index'!U:U,$AX133,'C. Population PoC & Risk'!AB:AB))/J11, 0)","v":0},{"$f":"IFERROR((SUMIF('D. Population Risk Index'!V:V,$AX133,'C. Population PoC & Risk'!AC:AC))/K11, 0)","v":0},{"$f":"IFERROR((SUMIF('D. Population Risk Index'!W:W,$AX133,'C. Population PoC & Risk'!AD:AD))/L11, 0)","v":0},{"$f":"IFERROR((SUMIF('D. Population Risk Index'!X:X,$AX133,'C. Population PoC & Risk'!AE:AE))/M11, 0)","v":0},{"$f":"IFERROR((SUMIF('D. Population Risk Index'!Y:Y,$AX133,'C. Population PoC & Risk'!AF:AF))/N11, 0)","v":0},{"$f":"IFERROR((SUMIF('D. Population Risk Index'!Z:Z,$AX133,'C. Population PoC & Risk'!AG:AG))/O11, 0)","v":0}]
[null,null,null,null,null,null,null,null,null,null,null,null,null,null,null,null,null,null,null,null,null,null,null,null,null,null,null,null,null,null,null,null,null,7,"R7($)",0,0,0,0,0,0,0,0,0,0,0,0,null,null,7,"R7($)",{"$f":"IFERROR((SUMIF('D. Population Risk Index'!O:O,$AX134,'C. Population PoC & Risk'!V:V))/D12, 0)","v":0},{"$f":"IFERROR((SUMIF('D. Population Risk Index'!P:P,$AX134,'C. Population PoC & Risk'!W:W))/E12, 0)","v":0},{"$f":"IFERROR((SUMIF('D. Population Risk Index'!Q:Q,$AX134,'C. Population PoC & Risk'!X:X))/F12, 0)","v":0},{"$f":"IFERROR((SUMIF('D. Population Risk Index'!R:R,$AX134,'C. Population PoC & Risk'!Y:Y))/G12, 0)","v":0},{"$f":"IFERROR((SUMIF('D. Population Risk Index'!S:S,$AX134,'C. Population PoC & Risk'!Z:Z))/H12, 0)","v":0},{"$f":"IFERROR((SUMIF('D. Population Risk Index'!T:T,$AX134,'C. Population PoC & Risk'!AA:AA))/I12, 0)","v":0},{"$f":"IFERROR((SUMIF('D. Population Risk Index'!U:U,$AX134,'C. Population PoC & Risk'!AB:AB))/J12, 0)","v":0},{"$f":"IFERROR((SUMIF('D. Population Risk Index'!V:V,$AX134,'C. Population PoC & Risk'!AC:AC))/K12, 0)","v":0},{"$f":"IFERROR((SUMIF('D. Population Risk Index'!W:W,$AX134,'C. Population PoC & Risk'!AD:AD))/L12, 0)","v":0},{"$f":"IFERROR((SUMIF('D. Population Risk Index'!X:X,$AX134,'C. Population PoC & Risk'!AE:AE))/M12, 0)","v":0},{"$f":"IFERROR((SUMIF('D. Population Risk Index'!Y:Y,$AX134,'C. Population PoC & Risk'!AF:AF))/N12, 0)","v":0},{"$f":"IFERROR((SUMIF('D. Population Risk Index'!Z:Z,$AX134,'C. Population PoC & Risk'!AG:AG))/O12, 0)","v":0}]
[null,null,null,null,null,null,null,null,null,null,null,null,null,null,null,null,null,null,null,null,null,null,null,null,null,null,null,null,null,null,null,null,null,8,"R8($)",0,0,0,0,0,0,0,0,0,0,0,0,null,null,8,"R8($)",{"$f":"IFERROR((SUMIF('D. Population Risk Index'!O:O,$AX135,'C. Population PoC & Risk'!V:V))/D13, 0)","v":0},{"$f":"IFERROR((SUMIF('D. Population Risk Index'!P:P,$AX135,'C. Population PoC & Risk'!W:W))/E13, 0)","v":0},{"$f":"IFERROR((SUMIF('D. Population Risk Index'!Q:Q,$AX135,'C. Population PoC & Risk'!X:X))/F13, 0)","v":0},{"$f":"IFERROR((SUMIF('D. Population Risk Index'!R:R,$AX135,'C. Population PoC & Risk'!Y:Y))/G13, 0)","v":0},{"$f":"IFERROR((SUMIF('D. Population Risk Index'!S:S,$AX135,'C. Population PoC & Risk'!Z:Z))/H13, 0)","v":0},{"$f":"IFERROR((SUMIF('D. Population Risk Index'!T:T,$AX135,'C. Population PoC & Risk'!AA:AA))/I13, 0)","v":0},{"$f":"IFERROR((SUMIF('D. Population Risk Index'!U:U,$AX135,'C. Population PoC & Risk'!AB:AB))/J13, 0)","v":0},{"$f":"IFERROR((SUMIF('D. Population Risk Index'!V:V,$AX135,'C. Population PoC & Risk'!AC:AC))/K13, 0)","v":0},{"$f":"IFERROR((SUMIF('D. Population Risk Index'!W:W,$AX135,'C. Population PoC & Risk'!AD:AD))/L13, 0)","v":0},{"$f":"IFERROR((SUMIF('D. Population Risk Index'!X:X,$AX135,'C. Population PoC & Risk'!AE:AE))/M13, 0)","v":0},{"$f":"IFERROR((SUMIF('D. Population Risk Index'!Y:Y,$AX135,'C. Population PoC & Risk'!AF:AF))/N13, 0)","v":0},{"$f":"IFERROR((SUMIF('D. Population Risk Index'!Z:Z,$AX135,'C. Population PoC & Risk'!AG:AG))/O13, 0)","v":0}]
[null,null,null,null,null,null,null,null,null,null,null,null,null,null,null,null,null,null,null,null,null,null,null,null,null,null,null,null,null,null,null,null,null,9,"R9($)",0,0,0,0,0,0,0,0,0,0,0,0,null,null,9,"R9($)",{"$f":"IFERROR((SUMIF('D. Population Risk Index'!O:O,$AX136,'C. Population PoC & Risk'!V:V))/D14, 0)","v":0},{"$f":"IFERROR((SUMIF('D. Population Risk Index'!P:P,$AX136,'C. Population PoC & Risk'!W:W))/E14, 0)","v":0},{"$f":"IFERROR((SUMIF('D. Population Risk Index'!Q:Q,$AX136,'C. Population PoC & Risk'!X:X))/F14, 0)","v":0},{"$f":"IFERROR((SUMIF('D. Population Risk Index'!R:R,$AX136,'C. Population PoC & Risk'!Y:Y))/G14, 0)","v":0},{"$f":"IFERROR((SUMIF('D. Population Risk Index'!S:S,$AX136,'C. Population PoC & Risk'!Z:Z))/H14, 0)","v":0},{"$f":"IFERROR((SUMIF('D. Population Risk Index'!T:T,$AX136,'C. Population PoC & Risk'!AA:AA))/I14, 0)","v":0},{"$f":"IFERROR((SUMIF('D. Population Risk Index'!U:U,$AX136,'C. Population PoC & Risk'!AB:AB))/J14, 0)","v":0},{"$f":"IFERROR((SUMIF('D. Population Risk Index'!V:V,$AX136,'C. Population PoC & Risk'!AC:AC))/K14, 0)","v":0},{"$f":"IFERROR((SUMIF('D. Population Risk Index'!W:W,$AX136,'C. Population PoC & Risk'!AD:AD))/L14, 0)","v":0},{"$f":"IFERROR((SUMIF('D. Population Risk Index'!X:X,$AX136,'C. Population PoC & Risk'!AE:AE))/M14, 0)","v":0},{"$f":"IFERROR((SUMIF('D. Population Risk Index'!Y:Y,$AX136,'C. Population PoC & Risk'!AF:AF))/N14, 0)","v":0},{"$f":"IFERROR((SUMIF('D. Population Risk Index'!Z:Z,$AX136,'C. Population PoC & Risk'!AG:AG))/O14, 0)","v":0}]
[null,null,null,null,null,null,null,null,null,null,null,null,null,null,null,null,null,null,null,null,null,null,null,null,null,null,null,null,null,null,null,null,null,10,"R10($)",0,0,0,0,0,0,0,0,0,0,0,0,null,null,10,"R10($)",{"$f":"IFERROR((SUMIF('D. Population Risk Index'!O:O,$AX137,'C. Population PoC & Risk'!V:V))/D15, 0)","v":0},{"$f":"IFERROR((SUMIF('D. Population Risk Index'!P:P,$AX137,'C. Population PoC & Risk'!W:W))/E15, 0)","v":0},{"$f":"IFERROR((SUMIF('D. Population Risk Index'!Q:Q,$AX137,'C. Population PoC & Risk'!X:X))/F15, 0)","v":0},{"$f":"IFERROR((SUMIF('D. Population Risk Index'!R:R,$AX137,'C. Population PoC & Risk'!Y:Y))/G15, 0)","v":0},{"$f":"IFERROR((SUMIF('D. Population Risk Index'!S:S,$AX137,'C. Population PoC & Risk'!Z:Z))/H15, 0)","v":0},{"$f":"IFERROR((SUMIF('D. Population Risk Index'!T:T,$AX137,'C. Population PoC & Risk'!AA:AA))/I15, 0)","v":0},{"$f":"IFERROR((SUMIF('D. Population Risk Index'!U:U,$AX137,'C. Population PoC & Risk'!AB:AB))/J15, 0)","v":0},{"$f":"IFERROR((SUMIF('D. Population Risk Index'!V:V,$AX137,'C. Population PoC & Risk'!AC:AC))/K15, 0)","v":0},{"$f":"IFERROR((SUMIF('D. Population Risk Index'!W:W,$AX137,'C. Population PoC & Risk'!AD:AD))/L15, 0)","v":0},{"$f":"IFERROR((SUMIF('D. Population Risk Index'!X:X,$AX137,'C. Population PoC & Risk'!AE:AE))/M15, 0)","v":0},{"$f":"IFERROR((SUMIF('D. Population Risk Index'!Y:Y,$AX137,'C. Population PoC & Risk'!AF:AF))/N15, 0)","v":0},{"$f":"IFERROR((SUMIF('D. Population Risk Index'!Z:Z,$AX137,'C. Population PoC & Risk'!AG:AG))/O15, 0)","v":0}]
[null,null,null,null,null,null,null,null,null,null,null,null,null,null,null,null,null,null,null,null,null,null,null,null,null,null,null,null,null,null,null,null,null,"Estimated Total Realised Benefit - R1($) to R6($)",null,{"$f":"SUMPRODUCT(AJ128:AJ133, AJ$113:AJ$118)","v":23514.58898301475},24653.404910818572,25391.578144829178,25056.973299441619,26987.874924566549,27035.502354376844,26981.158806190793,27430.535104962219,28489.267466515546,31833.261141542709,32918.994535327511,34019.063396341953,null,null,"Estimated Total Realised Benefit - R1($) to R6($)",null,{"$f":"SUMPRODUCT(AZ128:AZ133, AZ$113:AZ$118)","v":23514.58898301475},24653.404910818572,25391.578144829178,25056.973299441619,26987.874924566549,27035.502354376844,26981.158806190793,27430.535104962219,28489.267466515546,31833.261141542709,32918.994535327511,34019.063396341953]
[null,null,null,null,null,null,null,null,null,null,null,null,null,null,null,null,null,null,null,null,null,null,null,null,null,null,null,null,null,null,null,null,null,"Estimated Total Realised Benefit - R7($) to R10($)",null,{"$f":"SUMPRODUCT(AJ134:AJ137, AJ$119:AJ$122)","v":0},0,0,0,0,0,0,0,0,0,0,0,null,null,"Estimated Total Realised Benefit - R7($) to R10($)",null,{"$f":"SUMPRODUCT(AZ134:AZ137, AZ$119:AZ$122)","v":0},0,0,0,0,0,0,0,0,0,0,0]
[null,null,null,null,null,null,null,null,null,null,null,null,null,null,null,null,null,null,null,null,null,null,null,null,null,null,null,null,null,null,null,null,null,"Estimated Total Realised Benefit",null,{"$f":"SUM(AJ138:AJ139)","v":23514.58898301475},{"$f":"SUM(AK138:AK139)","v":24653.404910818572},25391.578144829178,25056.973299441619,26987.874924566549,27035.502354376844,26981.158806190793,27430.535104962219,28489.267466515546,31833.261141542709,32918.994535327511,34019.063396341953,null,null,"Estimated Total Realised Benefit",null,{"$f":"SUM(AZ138:AZ139)","v":23514.58898301475},{"$f":"SUM(BA138:BA139)","v":24653.404910818572},25391.578144829178,25056.973299441619,26987.874924566549,27035.502354376844,26981.158806190793,27430.535104962219,28489.267466515546,31833.261141542709,32918.994535327511,34019.063396341953]
[]
[null,null,null,null,null,null,null,null,null,null,null,null,null,null,null,null,null,null,null,null,null,null,null,null,null,null,null,null,null,null,null,null,null,"TOTAL PHYSICAL IMPACT RISK BY RISK INDEX CATEGORY",null,2019,2020,2021,2022,2023,2024,2025,2026,2027,2028,2029,2030,null,null,"TOTAL PHYSICAL IMPACT RISK BY RISK INDEX CATEGORY",null,2019,2020,2021,2022,2023,2024,2025,2026,2027,2028,2029,2030]
[null,null,null,null,null,null,null,null,null,null,null,null,null,null,null,null,null,null,null,null,null,null,null,null,null,null,null,null,null,null,null,null,null,1,"R1($)",{"$f":"AZ143","v":0},{"$f":"BA143","v":0},0,0,0,0,0,0,0,0,0,0,null,null,1,"R1($)",{"$f":"IFERROR((SUMIF('D. Population Risk Index'!O:O,$AX143,'C. Population PoC & Risk'!AH:AH))/D6, 0)","v":0},{"$f":"IFERROR((SUMIF('D. Population Risk Index'!P:P,$AX143,'C. Population PoC & Risk'!AI:AI))/E6, 0)","v":0},{"$f":"IFERROR((SUMIF('D. Population Risk Index'!Q:Q,$AX143,'C. Population PoC & Risk'!AJ:AJ))/F6, 0)","v":0},{"$f":"IFERROR((SUMIF('D. Population Risk Index'!R:R,$AX143,'C. Population PoC & Risk'!AK:AK))/G6, 0)","v":0},{"$f":"IFERROR((SUMIF('D. Population Risk Index'!S:S,$AX143,'C. Population PoC & Risk'!AL:AL))/H6, 0)","v":0},{"$f":"IFERROR((SUMIF('D. Population Risk Index'!T:T,$AX143,'C. Population PoC & Risk'!AM:AM))/I6, 0)","v":0},{"$f":"IFERROR((SUMIF('D. Population Risk Index'!U:U,$AX143,'C. Population PoC & Risk'!AN:AN))/J6, 0)","v":0},{"$f":"IFERROR((SUMIF('D. Population Risk Index'!V:V,$AX143,'C. Population PoC & Risk'!AO:AO))/K6, 0)","v":0},{"$f":"IFERROR((SUMIF('D. Population Risk Index'!W:W,$AX143,'C. Population PoC & Risk'!AP:AP))/L6, 0)","v":0},{"$f":"IFERROR((SUMIF('D. Population Risk Index'!X:X,$AX143,'C. Population PoC & Risk'!AQ:AQ))/M6, 0)","v":0},{"$f":"IFERROR((SUMIF('D. Population Risk Index'!Y:Y,$AX143,'C. Population PoC & Risk'!AR:AR))/N6, 0)","v":0},{"$f":"IFERROR((SUMIF('D. Population Risk Index'!Z:Z,$AX143,'C. Population PoC & Risk'!AS:AS))/O6, 0)","v":0}]
[null,null,null,null,null,null,null,null,null,null,null,null,null,null,null,null,null,null,null,null,null,null,null,null,null,null,null,null,null,null,null,null,null,2,"R2($)",{"$f":"AZ144","v":0},0,0,0,0,0,0,0,0,0,0,0,null,null,2,"R2($)",{"$f":"IFERROR((SUMIF('D. Population Risk Index'!O:O,$AX144,'C. Population PoC & Risk'!AH:AH))/D7, 0)","v":0},{"$f":"IFERROR((SUMIF('D. Population Risk Index'!P:P,$AX144,'C. Population PoC & Risk'!AI:AI))/E7, 0)","v":0},{"$f":"IFERROR((SUMIF('D. Population Risk Index'!Q:Q,$AX144,'C. Population PoC & Risk'!AJ:AJ))/F7, 0)","v":0},{"$f":"IFERROR((SUMIF('D. Population Risk Index'!R:R,$AX144,'C. Population PoC & Risk'!AK:AK))/G7, 0)","v":0},{"$f":"IFERROR((SUMIF('D. Population Risk Index'!S:S,$AX144,'C. Population PoC & Risk'!AL:AL))/H7, 0)","v":0},{"$f":"IFERROR((SUMIF('D. Population Risk Index'!T:T,$AX144,'C. Population PoC & Risk'!AM:AM))/I7, 0)","v":0},{"$f":"IFERROR((SUMIF('D. Population Risk Index'!U:U,$AX144,'C. Population PoC & Risk'!AN:AN))/J7, 0)","v":0},{"$f":"IFERROR((SUMIF('D. Population Risk Index'!V:V,$AX144,'C. Population PoC & Risk'!AO:AO))/K7, 0)","v":0},{"$f":"IFERROR((SUMIF('D. Population Risk Index'!W:W,$AX144,'C. Population PoC & Risk'!AP:AP))/L7, 0)","v":0},{"$f":"IFERROR((SUMIF('D. Population Risk Index'!X:X,$AX144,'C. Population PoC & Risk'!AQ:AQ))/M7, 0)","v":0},{"$f":"IFERROR((SUMIF('D. Population Risk Index'!Y:Y,$AX144,'C. Population PoC & Risk'!AR:AR))/N7, 0)","v":0},{"$f":"IFERROR((SUMIF('D. Population Risk Index'!Z:Z,$AX144,'C. Population PoC & Risk'!AS:AS))/O7, 0)","v":0}]
[null,null,null,null,null,null,null,null,null,null,null,null,null,null,null,null,null,null,null,null,null,null,null,null,null,null,null,null,null,null,null,null,null,3,"R3($)",0,0,0,0,0,0,0,0,0,0,0,0,null,null,3,"R3($)",{"$f":"IFERROR((SUMIF('D. Population Risk Index'!O:O,$AX145,'C. Population PoC & Risk'!AH:AH))/D8, 0)","v":0},{"$f":"IFERROR((SUMIF('D. Population Risk Index'!P:P,$AX145,'C. Population PoC & Risk'!AI:AI))/E8, 0)","v":0},{"$f":"IFERROR((SUMIF('D. Population Risk Index'!Q:Q,$AX145,'C. Population PoC & Risk'!AJ:AJ))/F8, 0)","v":0},{"$f":"IFERROR((SUMIF('D. Population Risk Index'!R:R,$AX145,'C. Population PoC & Risk'!AK:AK))/G8, 0)","v":0},{"$f":"IFERROR((SUMIF('D. Population Risk Index'!S:S,$AX145,'C. Population PoC & Risk'!AL:AL))/H8, 0)","v":0},{"$f":"IFERROR((SUMIF('D. Population Risk Index'!T:T,$AX145,'C. Population PoC & Risk'!AM:AM))/I8, 0)","v":0},{"$f":"IFERROR((SUMIF('D. Population Risk Index'!U:U,$AX145,'C. Population PoC & Risk'!AN:AN))/J8, 0)","v":0},{"$f":"IFERROR((SUMIF('D. Population Risk Index'!V:V,$AX145,'C. Population PoC & Risk'!AO:AO))/K8, 0)","v":0},{"$f":"IFERROR((SUMIF('D. Population Risk Index'!W:W,$AX145,'C. Population PoC & Risk'!AP:AP))/L8, 0)","v":0},{"$f":"IFERROR((SUMIF('D. Population Risk Index'!X:X,$AX145,'C. Population PoC & Risk'!AQ:AQ))/M8, 0)","v":0},{"$f":"IFERROR((SUMIF('D. Population Risk Index'!Y:Y,$AX145,'C. Population PoC & Risk'!AR:AR))/N8, 0)","v":0},{"$f":"IFERROR((SUMIF('D. Population Risk Index'!Z:Z,$AX145,'C. Population PoC & Risk'!AS:AS))/O8, 0)","v":0}]
[null,null,null,null,null,null,null,null,null,null,null,null,null,null,null,null,null,null,null,null,null,null,null,null,null,null,null,null,null,null,null,null,null,4,"R4($)",0,0,0,0,0,0,0,0,0,0,0,0,null,null,4,"R4($)",{"$f":"IFERROR((SUMIF('D. Population Risk Index'!O:O,$AX146,'C. Population PoC & Risk'!AH:AH))/D9, 0)","v":0},{"$f":"IFERROR((SUMIF('D. Population Risk Index'!P:P,$AX146,'C. Population PoC & Risk'!AI:AI))/E9, 0)","v":0},{"$f":"IFERROR((SUMIF('D. Population Risk Index'!Q:Q,$AX146,'C. Population PoC & Risk'!AJ:AJ))/F9, 0)","v":0},{"$f":"IFERROR((SUMIF('D. Population Risk Index'!R:R,$AX146,'C. Population PoC & Risk'!AK:AK))/G9, 0)","v":0},{"$f":"IFERROR((SUMIF('D. Population Risk Index'!S:S,$AX146,'C. Population PoC & Risk'!AL:AL))/H9, 0)","v":0},{"$f":"IFERROR((SUMIF('D. Population Risk Index'!T:T,$AX146,'C. Population PoC & Risk'!AM:AM))/I9, 0)","v":0},{"$f":"IFERROR((SUMIF('D. Population Risk Index'!U:U,$AX146,'C. Population PoC & Risk'!AN:AN))/J9, 0)","v":0},{"$f":"IFERROR((SUMIF('D. Population Risk Index'!V:V,$AX146,'C. Population PoC & Risk'!AO:AO))/K9, 0)","v":0},{"$f":"IFERROR((SUMIF('D. Population Risk Index'!W:W,$AX146,'C. Population PoC & Risk'!AP:AP))/L9, 0)","v":0},{"$f":"IFERROR((SUMIF('D. Population Risk Index'!X:X,$AX146,'C. Population PoC & Risk'!AQ:AQ))/M9, 0)","v":0},{"$f":"IFERROR((SUMIF('D. Population Risk Index'!Y:Y,$AX146,'C. Population PoC & Risk'!AR:AR))/N9, 0)","v":0},{"$f":"IFERROR((SUMIF('D. Population Risk Index'!Z:Z,$AX146,'C. Population PoC & Risk'!AS:AS))/O9, 0)","v":0}]
[null,null,null,null,null,null,null,null,null,null,null,null,null,null,null,null,null,null,null,null,null,null,null,null,null,null,null,null,null,null,null,null,null,5,"R5($)",0,0,0,0,0,0,0,0,0,0,0,0,null,null,5,"R5($)",{"$f":"IFERROR((SUMIF('D. Population Risk Index'!O:O,$AX147,'C. Population PoC & Risk'!AH:AH))/D10, 0)","v":0},{"$f":"IFERROR((SUMIF('D. Population Risk Index'!P:P,$AX147,'C. Population PoC & Risk'!AI:AI))/E10, 0)","v":0},{"$f":"IFERROR((SUMIF('D. Population Risk Index'!Q:Q,$AX147,'C. Population PoC & Risk'!AJ:AJ))/F10, 0)","v":0},{"$f":"IFERROR((SUMIF('D. Population Risk Index'!R:R,$AX147,'C. Population PoC & Risk'!AK:AK))/G10, 0)","v":0},{"$f":"IFERROR((SUMIF('D. Population Risk Index'!S:S,$AX147,'C. Population PoC & Risk'!AL:AL))/H10, 0)","v":0},{"$f":"IFERROR((SUMIF('D. Population Risk Index'!T:T,$AX147,'C. Population PoC & Risk'!AM:AM))/I10, 0)","v":0},{"$f":"IFERROR((SUMIF('D. Population Risk Index'!U:U,$AX147,'C. Population PoC & Risk'!AN:AN))/J10, 0)","v":0},{"$f":"IFERROR((SUMIF('D. Population Risk Index'!V:V,$AX147,'C. Population PoC & Risk'!AO:AO))/K10, 0)","v":0},{"$f":"IFERROR((SUMIF('D. Population Risk Index'!W:W,$AX147,'C. Population PoC & Risk'!AP:AP))/L10, 0)","v":0},{"$f":"IFERROR((SUMIF('D. Population Risk Index'!X:X,$AX147,'C. Population PoC & Risk'!AQ:AQ))/M10, 0)","v":0},{"$f":"IFERROR((SUMIF('D. Population Risk Index'!Y:Y,$AX147,'C. Population PoC & Risk'!AR:AR))/N10, 0)","v":0},{"$f":"IFERROR((SUMIF('D. Population Risk Index'!Z:Z,$AX147,'C. Population PoC & Risk'!AS:AS))/O10, 0)","v":0}]
[null,null,null,null,null,null,null,null,null,null,null,null,null,null,null,null,null,null,null,null,null,null,null,null,null,null,null,null,null,null,null,null,null,6,"R6($)",0,0,0,0,0,0,0,0,0,0,0,0,null,null,6,"R6($)",{"$f":"IFERROR((SUMIF('D. Population Risk Index'!O:O,$AX148,'C. Population PoC & Risk'!AH:AH))/D11, 0)","v":0},{"$f":"IFERROR((SUMIF('D. Population Risk Index'!P:P,$AX148,'C. Population PoC & Risk'!AI:AI))/E11, 0)","v":0},{"$f":"IFERROR((SUMIF('D. Population Risk Index'!Q:Q,$AX148,'C. Population PoC & Risk'!AJ:AJ))/F11, 0)","v":0},{"$f":"IFERROR((SUMIF('D. Population Risk Index'!R:R,$AX148,'C. Population PoC & Risk'!AK:AK))/G11, 0)","v":0},{"$f":"IFERROR((SUMIF('D. Population Risk Index'!S:S,$AX148,'C. Population PoC & Risk'!AL:AL))/H11, 0)","v":0},{"$f":"IFERROR((SUMIF('D. Population Risk Index'!T:T,$AX148,'C. Population PoC & Risk'!AM:AM))/I11, 0)","v":0},{"$f":"IFERROR((SUMIF('D. Population Risk Index'!U:U,$AX148,'C. Population PoC & Risk'!AN:AN))/J11, 0)","v":0},{"$f":"IFERROR((SUMIF('D. Population Risk Index'!V:V,$AX148,'C. Population PoC & Risk'!AO:AO))/K11, 0)","v":0},{"$f":"IFERROR((SUMIF('D. Population Risk Index'!W:W,$AX148,'C. Population PoC & Risk'!AP:AP))/L11, 0)","v":0},{"$f":"IFERROR((SUMIF('D. Population Risk Index'!X:X,$AX148,'C. Population PoC & Risk'!AQ:AQ))/M11, 0)","v":0},{"$f":"IFERROR((SUMIF('D. Population Risk Index'!Y:Y,$AX148,'C. Population PoC & Risk'!AR:AR))/N11, 0)","v":0},{"$f":"IFERROR((SUMIF('D. Population Risk Index'!Z:Z,$AX148,'C. Population PoC & Risk'!AS:AS))/O11, 0)","v":0}]
[null,null,null,null,null,null,null,null,null,null,null,null,null,null,null,null,null,null,null,null,null,null,null,null,null,null,null,null,null,null,null,null,null,7,"R7($)",0,0,0,0,0,0,0,0,0,0,0,0,null,null,7,"R7($)",{"$f":"IFERROR((SUMIF('D. Population Risk Index'!O:O,$AX149,'C. Population PoC & Risk'!AH:AH))/D12, 0)","v":0},{"$f":"IFERROR((SUMIF('D. Population Risk Index'!P:P,$AX149,'C. Population PoC & Risk'!AI:AI))/E12, 0)","v":0},{"$f":"IFERROR((SUMIF('D. Population Risk Index'!Q:Q,$AX149,'C. Population PoC & Risk'!AJ:AJ))/F12, 0)","v":0},{"$f":"IFERROR((SUMIF('D. Population Risk Index'!R:R,$AX149,'C. Population PoC & Risk'!AK:AK))/G12, 0)","v":0},{"$f":"IFERROR((SUMIF('D. Population Risk Index'!S:S,$AX149,'C. Population PoC & Risk'!AL:AL))/H12, 0)","v":0},{"$f":"IFERROR((SUMIF('D. Population Risk Index'!T:T,$AX149,'C. Population PoC & Risk'!AM:AM))/I12, 0)","v":0},{"$f":"IFERROR((SUMIF('D. Population Risk Index'!U:U,$AX149,'C. Population PoC & Risk'!AN:AN))/J12, 0)","v":0},{"$f":"IFERROR((SUMIF('D. Population Risk Index'!V:V,$AX149,'C. Population PoC & Risk'!AO:AO))/K12, 0)","v":0},{"$f":"IFERROR((SUMIF('D. Population Risk Index'!W:W,$AX149,'C. Population PoC & Risk'!AP:AP))/L12, 0)","v":0},{"$f":"IFERROR((SUMIF('D. Population Risk Index'!X:X,$AX149,'C. Population PoC & Risk'!AQ:AQ))/M12, 0)","v":0},{"$f":"IFERROR((SUMIF('D. Population Risk Index'!Y:Y,$AX149,'C. Population PoC & Risk'!AR:AR))/N12, 0)","v":0},{"$f":"IFERROR((SUMIF('D. Population Risk Index'!Z:Z,$AX149,'C. Population PoC & Risk'!AS:AS))/O12, 0)","v":0}]
[null,null,null,null,null,null,null,null,null,null,null,null,null,null,null,null,null,null,null,null,null,null,null,null,null,null,null,null,null,null,null,null,null,8,"R8($)",0,0,0,0,0,0,0,0,0,0,0,0,null,null,8,"R8($)",{"$f":"IFERROR((SUMIF('D. Population Risk Index'!O:O,$AX150,'C. Population PoC & Risk'!AH:AH))/D13, 0)","v":0},{"$f":"IFERROR((SUMIF('D. Population Risk Index'!P:P,$AX150,'C. Population PoC & Risk'!AI:AI))/E13, 0)","v":0},{"$f":"IFERROR((SUMIF('D. Population Risk Index'!Q:Q,$AX150,'C. Population PoC & Risk'!AJ:AJ))/F13, 0)","v":0},{"$f":"IFERROR((SUMIF('D. Population Risk Index'!R:R,$AX150,'C. Population PoC & Risk'!AK:AK))/G13, 0)","v":0},{"$f":"IFERROR((SUMIF('D. Population Risk Index'!S:S,$AX150,'C. Population PoC & Risk'!AL:AL))/H13, 0)","v":0},{"$f":"IFERROR((SUMIF('D. Population Risk Index'!T:T,$AX150,'C. Population PoC & Risk'!AM:AM))/I13, 0)","v":0},{"$f":"IFERROR((SUMIF('D. Population Risk Index'!U:U,$AX150,'C. Population PoC & Risk'!AN:AN))/J13, 0)","v":0},{"$f":"IFERROR((SUMIF('D. Population Risk Index'!V:V,$AX150,'C. Population PoC & Risk'!AO:AO))/K13, 0)","v":0},{"$f":"IFERROR((SUMIF('D. Population Risk Index'!W:W,$AX150,'C. Population PoC & Risk'!AP:AP))/L13, 0)","v":0},{"$f":"IFERROR((SUMIF('D. Population Risk Index'!X:X,$AX150,'C. Population PoC & Risk'!AQ:AQ))/M13, 0)","v":0},{"$f":"IFERROR((SUMIF('D. Population Risk Index'!Y:Y,$AX150,'C. Population PoC & Risk'!AR:AR))/N13, 0)","v":0},{"$f":"IFERROR((SUMIF('D. Population Risk Index'!Z:Z,$AX150,'C. Population PoC & Risk'!AS:AS))/O13, 0)","v":0}]
[null,null,null,null,null,null,null,null,null,null,null,null,null,null,null,null,null,null,null,null,null,null,null,null,null,null,null,null,null,null,null,null,null,9,"R9($)",0,0,0,0,0,0,0,0,0,0,0,0,null,null,9,"R9($)",{"$f":"IFERROR((SUMIF('D. Population Risk Index'!O:O,$AX151,'C. Population PoC & Risk'!AH:AH))/D14, 0)","v":0},{"$f":"IFERROR((SUMIF('D. Population Risk Index'!P:P,$AX151,'C. Population PoC & Risk'!AI:AI))/E14, 0)","v":0},{"$f":"IFERROR((SUMIF('D. Population Risk Index'!Q:Q,$AX151,'C. Population PoC & Risk'!AJ:AJ))/F14, 0)","v":0},{"$f":"IFERROR((SUMIF('D. Population Risk Index'!R:R,$AX151,'C. Population PoC & Risk'!AK:AK))/G14, 0)","v":0},{"$f":"IFERROR((SUMIF('D. Population Risk Index'!S:S,$AX151,'C. Population PoC & Risk'!AL:AL))/H14, 0)","v":0},{"$f":"IFERROR((SUMIF('D. Population Risk Index'!T:T,$AX151,'C. Population PoC & Risk'!AM:AM))/I14, 0)","v":0},{"$f":"IFERROR((SUMIF('D. Population Risk Index'!U:U,$AX151,'C. Population PoC & Risk'!AN:AN))/J14, 0)","v":0},{"$f":"IFERROR((SUMIF('D. Population Risk Index'!V:V,$AX151,'C. Population PoC & Risk'!AO:AO))/K14, 0)","v":0},{"$f":"IFERROR((SUMIF('D. Population Risk Index'!W:W,$AX151,'C. Population PoC & Risk'!AP:AP))/L14, 0)","v":0},{"$f":"IFERROR((SUMIF('D. Population Risk Index'!X:X,$AX151,'C. Population PoC & Risk'!AQ:AQ))/M14, 0)","v":0},{"$f":"IFERROR((SUMIF('D. Population Risk Index'!Y:Y,$AX151,'C. Population PoC & Risk'!AR:AR))/N14, 0)","v":0},{"$f":"IFERROR((SUMIF('D. Population Risk Index'!Z:Z,$AX151,'C. Population PoC & Risk'!AS:AS))/O14, 0)","v":0}]
[null,null,null,null,null,null,null,null,null,null,null,null,null,null,null,null,null,null,null,null,null,null,null,null,null,null,null,null,null,null,null,null,null,10,"R10($)",0,0,0,0,0,0,0,0,0,0,0,0,null,null,10,"R10($)",{"$f":"IFERROR((SUMIF('D. Population Risk Index'!O:O,$AX152,'C. Population PoC & Risk'!AH:AH))/D15, 0)","v":0},{"$f":"IFERROR((SUMIF('D. Population Risk Index'!P:P,$AX152,'C. Population PoC & Risk'!AI:AI))/E15, 0)","v":0},{"$f":"IFERROR((SUMIF('D. Population Risk Index'!Q:Q,$AX152,'C. Population PoC & Risk'!AJ:AJ))/F15, 0)","v":0},{"$f":"IFERROR((SUMIF('D. Population Risk Index'!R:R,$AX152,'C. Population PoC & Risk'!AK:AK))/G15, 0)","v":0},{"$f":"IFERROR((SUMIF('D. Population Risk Index'!S:S,$AX152,'C. Population PoC & Risk'!AL:AL))/H15, 0)","v":0},{"$f":"IFERROR((SUMIF('D. Population Risk Index'!T:T,$AX152,'C. Population PoC & Risk'!AM:AM))/I15, 0)","v":0},{"$f":"IFERROR((SUMIF('D. Population Risk Index'!U:U,$AX152,'C. Population PoC & Risk'!AN:AN))/J15, 0)","v":0},{"$f":"IFERROR((SUMIF('D. Population Risk Index'!V:V,$AX152,'C. Population PoC & Risk'!AO:AO))/K15, 0)","v":0},{"$f":"IFERROR((SUMIF('D. Population Risk Index'!W:W,$AX152,'C. Population PoC & Risk'!AP:AP))/L15, 0)","v":0},{"$f":"IFERROR((SUMIF('D. Population Risk Index'!X:X,$AX152,'C. Population PoC & Risk'!AQ:AQ))/M15, 0)","v":0},{"$f":"IFERROR((SUMIF('D. Population Risk Index'!Y:Y,$AX152,'C. Population PoC & Risk'!AR:AR))/N15, 0)","v":0},{"$f":"IFERROR((SUMIF('D. Population Risk Index'!Z:Z,$AX152,'C. Population PoC & Risk'!AS:AS))/O15, 0)","v":0}]
[null,null,null,null,null,null,null,null,null,null,null,null,null,null,null,null,null,null,null,null,null,null,null,null,null,null,null,null,null,null,null,null,null,"Estimated Total Realised Benefit - R1($) to R6($)",null,{"$f":"SUMPRODUCT(AJ143:AJ148, AJ$113:AJ$118)","v":0},0,0,0,0,0,0,0,0,0,0,0,null,null,"Estimated Total Realised Benefit - R1($) to R6($)",null,{"$f":"SUMPRODUCT(AZ143:AZ148, AZ$113:AZ$118)","v":0},0,0,0,0,0,0,0,0,0,0,0]
[null,null,null,null,null,null,null,null,null,null,null,null,null,null,null,null,null,null,null,null,null,null,null,null,null,null,null,null,null,null,null,null,null,"Estimated Total Realised Benefit - R7($) to R10($)",null,{"$f":"SUMPRODUCT(AJ149:AJ152, AJ$119:AJ$122)","v":0},0,0,0,0,0,0,0,0,0,0,0,null,null,"Estimated Total Realised Benefit - R7($) to R10($)",null,{"$f":"SUMPRODUCT(AZ149:AZ152, AZ$119:AZ$122)","v":0},0,0,0,0,0,0,0,0,0,0,0]
[null,null,null,null,null,null,null,null,null,null,null,null,null,null,null,null,null,null,null,null,null,null,null,null,null,null,null,null,null,null,null,null,null,"Estimated Total Realised Benefit",null,{"$f":"SUM(AJ153:AJ154)","v":0},{"$f":"SUM(AK153:AK154)","v":0},0,0,0,0,0,0,0,0,0,0,null,null,"Estimated Total Realised Benefit",null,{"$f":"SUM(AZ153:AZ154)","v":0},{"$f":"SUM(BA153:BA154)","v":0},0,0,0,0,0,0,0,0,0,0]
[]
[null,null,null,null,null,null,null,null,null,null,null,null,null,null,null,null,null,null,null,null,null,null,null,null,null,null,null,null,null,null,null,null,null,"TOTAL SHOCK RISK BY RISK INDEX CATEGORY",null,2019,2020,2021,2022,2023,2024,2025,2026,2027,2028,2029,2030,null,null,"TOTAL SHOCK RISK BY RISK INDEX CATEGORY",null,2019,2020,2021,2022,2023,2024,2025,2026,2027,2028,2029,2030]
[null,null,null,null,null,null,null,null,null,null,null,null,null,null,null,null,null,null,null,null,null,null,null,null,null,null,null,null,null,null,null,null,null,1,"R1($)",{"$f":"AZ158","v":0},{"$f":"BA158","v":0},0,0,0,0,0,0,0,0,0,0,null,null,1,"R1($)",{"$f":"IFERROR((SUMIF('D. Population Risk Index'!O:O,$AX158,'C. Population PoC & Risk'!AT:AT))/D6, 0)","v":0},{"$f":"IFERROR((SUMIF('D. Population Risk Index'!P:P,$AX158,'C. Population PoC & Risk'!AU:AU))/E6, 0)","v":0},{"$f":"IFERROR((SUMIF('D. Population Risk Index'!Q:Q,$AX158,'C. Population PoC & Risk'!AV:AV))/F6, 0)","v":0},{"$f":"IFERROR((SUMIF('D. Population Risk Index'!R:R,$AX158,'C. Population PoC & Risk'!AW:AW))/G6, 0)","v":0},{"$f":"IFERROR((SUMIF('D. Population Risk Index'!S:S,$AX158,'C. Population PoC & Risk'!AX:AX))/H6, 0)","v":0},{"$f":"IFERROR((SUMIF('D. Population Risk Index'!T:T,$AX158,'C. Population PoC & Risk'!AY:AY))/I6, 0)","v":0},{"$f":"IFERROR((SUMIF('D. Population Risk Index'!U:U,$AX158,'C. Population PoC & Risk'!AZ:AZ))/J6, 0)","v":0},{"$f":"IFERROR((SUMIF('D. Population Risk Index'!V:V,$AX158,'C. Population PoC & Risk'!BA:BA))/K6, 0)","v":0},{"$f":"IFERROR((SUMIF('D. Population Risk Index'!W:W,$AX158,'C. Population PoC & Risk'!BB:BB))/L6, 0)","v":0},{"$f":"IFERROR((SUMIF('D. Population Risk Index'!X:X,$AX158,'C. Population PoC & Risk'!BC:BC))/M6, 0)","v":0},{"$f":"IFERROR((SUMIF('D. Population Risk Index'!Y:Y,$AX158,'C. Population PoC & Risk'!BD:BD))/N6, 0)","v":0},{"$f":"IFERROR((SUMIF('D. Population Risk Index'!Z:Z,$AX158,'C. Population PoC & Risk'!BE:BE))/O6, 0)","v":0}]
[null,null,null,null,null,null,null,null,null,null,null,null,null,null,null,null,null,null,null,null,null,null,null,null,null,null,null,null,null,null,null,null,null,2,"R2($)",{"$f":"AZ159","v":0},0,0,0,0,0,0,0,0,0,0,0,null,null,2,"R2($)",{"$f":"IFERROR((SUMIF('D. Population Risk Index'!O:O,$AX159,'C. Population PoC & Risk'!AT:AT))/D7, 0)","v":0},{"$f":"IFERROR((SUMIF('D. Population Risk Index'!P:P,$AX159,'C. Population PoC & Risk'!AU:AU))/E7, 0)","v":0},{"$f":"IFERROR((SUMIF('D. Population Risk Index'!Q:Q,$AX159,'C. Population PoC & Risk'!AV:AV))/F7, 0)","v":0},{"$f":"IFERROR((SUMIF('D. Population Risk Index'!R:R,$AX159,'C. Population PoC & Risk'!AW:AW))/G7, 0)","v":0},{"$f":"IFERROR((SUMIF('D. Population Risk Index'!S:S,$AX159,'C. Population PoC & Risk'!AX:AX))/H7, 0)","v":0},{"$f":"IFERROR((SUMIF('D. Population Risk Index'!T:T,$AX159,'C. Population PoC & Risk'!AY:AY))/I7, 0)","v":0},{"$f":"IFERROR((SUMIF('D. Population Risk Index'!U:U,$AX159,'C. Population PoC & Risk'!AZ:AZ))/J7, 0)","v":0},{"$f":"IFERROR((SUMIF('D. Population Risk Index'!V:V,$AX159,'C. Population PoC & Risk'!BA:BA))/K7, 0)","v":0},{"$f":"IFERROR((SUMIF('D. Population Risk Index'!W:W,$AX159,'C. Population PoC & Risk'!BB:BB))/L7, 0)","v":0},{"$f":"IFERROR((SUMIF('D. Population Risk Index'!X:X,$AX159,'C. Population PoC & Risk'!BC:BC))/M7, 0)","v":0},{"$f":"IFERROR((SUMIF('D. Population Risk Index'!Y:Y,$AX159,'C. Population PoC & Risk'!BD:BD))/N7, 0)","v":0},{"$f":"IFERROR((SUMIF('D. Population Risk Index'!Z:Z,$AX159,'C. Population PoC & Risk'!BE:BE))/O7, 0)","v":0}]
[null,null,null,null,null,null,null,null,null,null,null,null,null,null,null,null,null,null,null,null,null,null,null,null,null,null,null,null,null,null,null,null,null,3,"R3($)",0,0,0,0,0,0,0,0,0,0,0,0,null,null,3,"R3($)",{"$f":"IFERROR((SUMIF('D. Population Risk Index'!O:O,$AX160,'C. Population PoC & Risk'!AT:AT))/D8, 0)","v":0},{"$f":"IFERROR((SUMIF('D. Population Risk Index'!P:P,$AX160,'C. Population PoC & Risk'!AU:AU))/E8, 0)","v":0},{"$f":"IFERROR((SUMIF('D. Population Risk Index'!Q:Q,$AX160,'C. Population PoC & Risk'!AV:AV))/F8, 0)","v":0},{"$f":"IFERROR((SUMIF('D. Population Risk Index'!R:R,$AX160,'C. Population PoC & Risk'!AW:AW))/G8, 0)","v":0},{"$f":"IFERROR((SUMIF('D. Population Risk Index'!S:S,$AX160,'C. Population PoC & Risk'!AX:AX))/H8, 0)","v":0},{"$f":"IFERROR((SUMIF('D. Population Risk Index'!T:T,$AX160,'C. Population PoC & Risk'!AY:AY))/I8, 0)","v":0},{"$f":"IFERROR((SUMIF('D. Population Risk Index'!U:U,$AX160,'C. Population PoC & Risk'!AZ:AZ))/J8, 0)","v":0},{"$f":"IFERROR((SUMIF('D. Population Risk Index'!V:V,$AX160,'C. Population PoC & Risk'!BA:BA))/K8, 0)","v":0},{"$f":"IFERROR((SUMIF('D. Population Risk Index'!W:W,$AX160,'C. Population PoC & Risk'!BB:BB))/L8, 0)","v":0},{"$f":"IFERROR((SUMIF('D. Population Risk Index'!X:X,$AX160,'C. Population PoC & Risk'!BC:BC))/M8, 0)","v":0},{"$f":"IFERROR((SUMIF('D. Population Risk Index'!Y:Y,$AX160,'C. Population PoC & Risk'!BD:BD))/N8, 0)","v":0},{"$f":"IFERROR((SUMIF('D. Population Risk Index'!Z:Z,$AX160,'C. Population PoC & Risk'!BE:BE))/O8, 0)","v":0}]
[null,null,null,null,null,null,null,null,null,null,null,null,null,null,null,null,null,null,null,null,null,null,null,null,null,null,null,null,null,null,null,null,null,4,"R4($)",0,0,0,0,0,0,0,0,0,0,0,0,null,null,4,"R4($)",{"$f":"IFERROR((SUMIF('D. Population Risk Index'!O:O,$AX161,'C. Population PoC & Risk'!AT:AT))/D9, 0)","v":0},{"$f":"IFERROR((SUMIF('D. Population Risk Index'!P:P,$AX161,'C. Population PoC & Risk'!AU:AU))/E9, 0)","v":0},{"$f":"IFERROR((SUMIF('D. Population Risk Index'!Q:Q,$AX161,'C. Population PoC & Risk'!AV:AV))/F9, 0)","v":0},{"$f":"IFERROR((SUMIF('D. Population Risk Index'!R:R,$AX161,'C. Population PoC & Risk'!AW:AW))/G9, 0)","v":0},{"$f":"IFERROR((SUMIF('D. Population Risk Index'!S:S,$AX161,'C. Population PoC & Risk'!AX:AX))/H9, 0)","v":0},{"$f":"IFERROR((SUMIF('D. Population Risk Index'!T:T,$AX161,'C. Population PoC & Risk'!AY:AY))/I9, 0)","v":0},{"$f":"IFERROR((SUMIF('D. Population Risk Index'!U:U,$AX161,'C. Population PoC & Risk'!AZ:AZ))/J9, 0)","v":0},{"$f":"IFERROR((SUMIF('D. Population Risk Index'!V:V,$AX161,'C. Population PoC & Risk'!BA:BA))/K9, 0)","v":0},{"$f":"IFERROR((SUMIF('D. Population Risk Index'!W:W,$AX161,'C. Population PoC & Risk'!BB:BB))/L9, 0)","v":0},{"$f":"IFERROR((SUMIF('D. Population Risk Index'!X:X,$AX161,'C. Population PoC & Risk'!BC:BC))/M9, 0)","v":0},{"$f":"IFERROR((SUMIF('D. Population Risk Index'!Y:Y,$AX161,'C. Population PoC & Risk'!BD:BD))/N9, 0)","v":0},{"$f":"IFERROR((SUMIF('D. Population Risk Index'!Z:Z,$AX161,'C. Population PoC & Risk'!BE:BE))/O9, 0)","v":0}]
[null,null,null,null,null,null,null,null,null,null,null,null,null,null,null,null,null,null,null,null,null,null,null,null,null,null,null,null,null,null,null,null,null,5,"R5($)",0,0,0,0,0,0,0,0,0,0,0,0,null,null,5,"R5($)",{"$f":"IFERROR((SUMIF('D. Population Risk Index'!O:O,$AX162,'C. Population PoC & Risk'!AT:AT))/D10, 0)","v":0},{"$f":"IFERROR((SUMIF('D. Population Risk Index'!P:P,$AX162,'C. Population PoC & Risk'!AU:AU))/E10, 0)","v":0},{"$f":"IFERROR((SUMIF('D. Population Risk Index'!Q:Q,$AX162,'C. Population PoC & Risk'!AV:AV))/F10, 0)","v":0},{"$f":"IFERROR((SUMIF('D. Population Risk Index'!R:R,$AX162,'C. Population PoC & Risk'!AW:AW))/G10, 0)","v":0},{"$f":"IFERROR((SUMIF('D. Population Risk Index'!S:S,$AX162,'C. Population PoC & Risk'!AX:AX))/H10, 0)","v":0},{"$f":"IFERROR((SUMIF('D. Population Risk Index'!T:T,$AX162,'C. Population PoC & Risk'!AY:AY))/I10, 0)","v":0},{"$f":"IFERROR((SUMIF('D. Population Risk Index'!U:U,$AX162,'C. Population PoC & Risk'!AZ:AZ))/J10, 0)","v":0},{"$f":"IFERROR((SUMIF('D. Population Risk Index'!V:V,$AX162,'C. Population PoC & Risk'!BA:BA))/K10, 0)","v":0},{"$f":"IFERROR((SUMIF('D. Population Risk Index'!W:W,$AX162,'C. Population PoC & Risk'!BB:BB))/L10, 0)","v":0},{"$f":"IFERROR((SUMIF('D. Population Risk Index'!X:X,$AX162,'C. Population PoC & Risk'!BC:BC))/M10, 0)","v":0},{"$f":"IFERROR((SUMIF('D. Population Risk Index'!Y:Y,$AX162,'C. Population PoC & Risk'!BD:BD))/N10, 0)","v":0},{"$f":"IFERROR((SUMIF('D. Population Risk Index'!Z:Z,$AX162,'C. Population PoC & Risk'!BE:BE))/O10, 0)","v":0}]
[null,null,null,null,null,null,null,null,null,null,null,null,null,null,null,null,null,null,null,null,null,null,null,null,null,null,null,null,null,null,null,null,null,6,"R6($)",0,0,0,0,0,0,0,0,0,0,0,0,null,null,6,"R6($)",{"$f":"IFERROR((SUMIF('D. Population Risk Index'!O:O,$AX163,'C. Population PoC & Risk'!AT:AT))/D11, 0)","v":0},{"$f":"IFERROR((SUMIF('D. Population Risk Index'!P:P,$AX163,'C. Population PoC & Risk'!AU:AU))/E11, 0)","v":0},{"$f":"IFERROR((SUMIF('D. Population Risk Index'!Q:Q,$AX163,'C. Population PoC & Risk'!AV:AV))/F11, 0)","v":0},{"$f":"IFERROR((SUMIF('D. Population Risk Index'!R:R,$AX163,'C. Population PoC & Risk'!AW:AW))/G11, 0)","v":0},{"$f":"IFERROR((SUMIF('D. Population Risk Index'!S:S,$AX163,'C. Population PoC & Risk'!AX:AX))/H11, 0)","v":0},{"$f":"IFERROR((SUMIF('D. Population Risk Index'!T:T,$AX163,'C. Population PoC & Risk'!AY:AY))/I11, 0)","v":0},{"$f":"IFERROR((SUMIF('D. Population Risk Index'!U:U,$AX163,'C. Population PoC & Risk'!AZ:AZ))/J11, 0)","v":0},{"$f":"IFERROR((SUMIF('D. Population Risk Index'!V:V,$AX163,'C. Population PoC & Risk'!BA:BA))/K11, 0)","v":0},{"$f":"IFERROR((SUMIF('D. Population Risk Index'!W:W,$AX163,'C. Population PoC & Risk'!BB:BB))/L11, 0)","v":0},{"$f":"IFERROR((SUMIF('D. Population Risk Index'!X:X,$AX163,'C. Population PoC & Risk'!BC:BC))/M11, 0)","v":0},{"$f":"IFERROR((SUMIF('D. Population Risk Index'!Y:Y,$AX163,'C. Population PoC & Risk'!BD:BD))/N11, 0)","v":0},{"$f":"IFERROR((SUMIF('D. Population Risk Index'!Z:Z,$AX163,'C. Population PoC & Risk'!BE:BE))/O11, 0)","v":0}]
[null,null,null,null,null,null,null,null,null,null,null,null,null,null,null,null,null,null,null,null,null,null,null,null,null,null,null,null,null,null,null,null,null,7,"R7($)",0,0,0,0,0,0,0,0,0,0,0,0,null,null,7,"R7($)",{"$f":"IFERROR((SUMIF('D. Population Risk Index'!O:O,$AX164,'C. Population PoC & Risk'!AT:AT))/D12, 0)","v":0},{"$f":"IFERROR((SUMIF('D. Population Risk Index'!P:P,$AX164,'C. Population PoC & Risk'!AU:AU))/E12, 0)","v":0},{"$f":"IFERROR((SUMIF('D. Population Risk Index'!Q:Q,$AX164,'C. Population PoC & Risk'!AV:AV))/F12, 0)","v":0},{"$f":"IFERROR((SUMIF('D. Population Risk Index'!R:R,$AX164,'C. Population PoC & Risk'!AW:AW))/G12, 0)","v":0},{"$f":"IFERROR((SUMIF('D. Population Risk Index'!S:S,$AX164,'C. Population PoC & Risk'!AX:AX))/H12, 0)","v":0},{"$f":"IFERROR((SUMIF('D. Population Risk Index'!T:T,$AX164,'C. Population PoC & Risk'!AY:AY))/I12, 0)","v":0},{"$f":"IFERROR((SUMIF('D. Population Risk Index'!U:U,$AX164,'C. Population PoC & Risk'!AZ:AZ))/J12, 0)","v":0},{"$f":"IFERROR((SUMIF('D. Population Risk Index'!V:V,$AX164,'C. Population PoC & Risk'!BA:BA))/K12, 0)","v":0},{"$f":"IFERROR((SUMIF('D. Population Risk Index'!W:W,$AX164,'C. Population PoC & Risk'!BB:BB))/L12, 0)","v":0},{"$f":"IFERROR((SUMIF('D. Population Risk Index'!X:X,$AX164,'C. Population PoC & Risk'!BC:BC))/M12, 0)","v":0},{"$f":"IFERROR((SUMIF('D. Population Risk Index'!Y:Y,$AX164,'C. Population PoC & Risk'!BD:BD))/N12, 0)","v":0},{"$f":"IFERROR((SUMIF('D. Population Risk Index'!Z:Z,$AX164,'C. Population PoC & Risk'!BE:BE))/O12, 0)","v":0}]
[null,null,null,null,null,null,null,null,null,null,null,null,null,null,null,null,null,null,null,null,null,null,null,null,null,null,null,null,null,null,null,null,null,8,"R8($)",0,0,0,0,0,0,0,0,0,0,0,0,null,null,8,"R8($)",{"$f":"IFERROR((SUMIF('D. Population Risk Index'!O:O,$AX165,'C. Population PoC & Risk'!AT:AT))/D13, 0)","v":0},{"$f":"IFERROR((SUMIF('D. Population Risk Index'!P:P,$AX165,'C. Population PoC & Risk'!AU:AU))/E13, 0)","v":0},{"$f":"IFERROR((SUMIF('D. Population Risk Index'!Q:Q,$AX165,'C. Population PoC & Risk'!AV:AV))/F13, 0)","v":0},{"$f":"IFERROR((SUMIF('D. Population Risk Index'!R:R,$AX165,'C. Population PoC & Risk'!AW:AW))/G13, 0)","v":0},{"$f":"IFERROR((SUMIF('D. Population Risk Index'!S:S,$AX165,'C. Population PoC & Risk'!AX:AX))/H13, 0)","v":0},{"$f":"IFERROR((SUMIF('D. Population Risk Index'!T:T,$AX165,'C. Population PoC & Risk'!AY:AY))/I13, 0)","v":0},{"$f":"IFERROR((SUMIF('D. Population Risk Index'!U:U,$AX165,'C. Population PoC & Risk'!AZ:AZ))/J13, 0)","v":0},{"$f":"IFERROR((SUMIF('D. Population Risk Index'!V:V,$AX165,'C. Population PoC & Risk'!BA:BA))/K13, 0)","v":0},{"$f":"IFERROR((SUMIF('D. Population Risk Index'!W:W,$AX165,'C. Population PoC & Risk'!BB:BB))/L13, 0)","v":0},{"$f":"IFERROR((SUMIF('D. Population Risk Index'!X:X,$AX165,'C. Population PoC & Risk'!BC:BC))/M13, 0)","v":0},{"$f":"IFERROR((SUMIF('D. Population Risk Index'!Y:Y,$AX165,'C. Population PoC & Risk'!BD:BD))/N13, 0)","v":0},{"$f":"IFERROR((SUMIF('D. Population Risk Index'!Z:Z,$AX165,'C. Population PoC & Risk'!BE:BE))/O13, 0)","v":0}]
[null,null,null,null,null,null,null,null,null,null,null,null,null,null,null,null,null,null,null,null,null,null,null,null,null,null,null,null,null,null,null,null,null,9,"R9($)",0,0,0,0,0,0,0,0,0,0,0,0,null,null,9,"R9($)",{"$f":"IFERROR((SUMIF('D. Population Risk Index'!O:O,$AX166,'C. Population PoC & Risk'!AT:AT))/D14, 0)","v":0},{"$f":"IFERROR((SUMIF('D. Population Risk Index'!P:P,$AX166,'C. Population PoC & Risk'!AU:AU))/E14, 0)","v":0},{"$f":"IFERROR((SUMIF('D. Population Risk Index'!Q:Q,$AX166,'C. Population PoC & Risk'!AV:AV))/F14, 0)","v":0},{"$f":"IFERROR((SUMIF('D. Population Risk Index'!R:R,$AX166,'C. Population PoC & Risk'!AW:AW))/G14, 0)","v":0},{"$f":"IFERROR((SUMIF('D. Population Risk Index'!S:S,$AX166,'C. Population PoC & Risk'!AX:AX))/H14, 0)","v":0},{"$f":"IFERROR((SUMIF('D. Population Risk Index'!T:T,$AX166,'C. Population PoC & Risk'!AY:AY))/I14, 0)","v":0},{"$f":"IFERROR((SUMIF('D. Population Risk Index'!U:U,$AX166,'C. Population PoC & Risk'!AZ:AZ))/J14, 0)","v":0},{"$f":"IFERROR((SUMIF('D. Population Risk Index'!V:V,$AX166,'C. Population PoC & Risk'!BA:BA))/K14, 0)","v":0},{"$f":"IFERROR((SUMIF('D. Population Risk Index'!W:W,$AX166,'C. Population PoC & Risk'!BB:BB))/L14, 0)","v":0},{"$f":"IFERROR((SUMIF('D. Population Risk Index'!X:X,$AX166,'C. Population PoC & Risk'!BC:BC))/M14, 0)","v":0},{"$f":"IFERROR((SUMIF('D. Population Risk Index'!Y:Y,$AX166,'C. Population PoC & Risk'!BD:BD))/N14, 0)","v":0},{"$f":"IFERROR((SUMIF('D. Population Risk Index'!Z:Z,$AX166,'C. Population PoC & Risk'!BE:BE))/O14, 0)","v":0}]
[null,null,null,null,null,null,null,null,null,null,null,null,null,null,null,null,null,null,null,null,null,null,null,null,null,null,null,null,null,null,null,null,null,10,"R10($)",0,0,0,0,0,0,0,0,0,0,0,0,null,null,10,"R10($)",{"$f":"IFERROR((SUMIF('D. Population Risk Index'!O:O,$AX167,'C. Population PoC & Risk'!AT:AT))/D15, 0)","v":0},{"$f":"IFERROR((SUMIF('D. Population Risk Index'!P:P,$AX167,'C. Population PoC & Risk'!AU:AU))/E15, 0)","v":0},{"$f":"IFERROR((SUMIF('D. Population Risk Index'!Q:Q,$AX167,'C. Population PoC & Risk'!AV:AV))/F15, 0)","v":0},{"$f":"IFERROR((SUMIF('D. Population Risk Index'!R:R,$AX167,'C. Population PoC & Risk'!AW:AW))/G15, 0)","v":0},{"$f":"IFERROR((SUMIF('D. Population Risk Index'!S:S,$AX167,'C. Population PoC & Risk'!AX:AX))/H15, 0)","v":0},{"$f":"IFERROR((SUMIF('D. Population Risk Index'!T:T,$AX167,'C. Population PoC & Risk'!AY:AY))/I15, 0)","v":0},{"$f":"IFERROR((SUMIF('D. Population Risk Index'!U:U,$AX167,'C. Population PoC & Risk'!AZ:AZ))/J15, 0)","v":0},{"$f":"IFERROR((SUMIF('D. Population Risk Index'!V:V,$AX167,'C. Population PoC & Risk'!BA:BA))/K15, 0)","v":0},{"$f":"IFERROR((SUMIF('D. Population Risk Index'!W:W,$AX167,'C. Population PoC & Risk'!BB:BB))/L15, 0)","v":0},{"$f":"IFERROR((SUMIF('D. Population Risk Index'!X:X,$AX167,'C. Population PoC & Risk'!BC:BC))/M15, 0)","v":0},{"$f":"IFERROR((SUMIF('D. Population Risk Index'!Y:Y,$AX167,'C. Population PoC & Risk'!BD:BD))/N15, 0)","v":0},{"$f":"IFERROR((SUMIF('D. Population Risk Index'!Z:Z,$AX167,'C. Population PoC & Risk'!BE:BE))/O15, 0)","v":0}]
[null,null,null,null,null,null,null,null,null,null,null,null,null,null,null,null,null,null,null,null,null,null,null,null,null,null,null,null,null,null,null,null,null,"Estimated Total Realised Benefit - R1($) to R6($)",null,{"$f":"SUMPRODUCT(AJ158:AJ163, AJ$113:AJ$118)","v":0},0,0,0,0,0,0,0,0,0,0,0,null,null,"Estimated Total Realised Benefit - R1($) to R6($)",null,{"$f":"SUMPRODUCT(AZ158:AZ163, AZ$113:AZ$118)","v":0},0,0,0,0,0,0,0,0,0,0,0]
[null,null,null,null,null,null,null,null,null,null,null,null,null,null,null,null,null,null,null,null,null,null,null,null,null,null,null,null,null,null,null,null,null,"Estimated Total Realised Benefit - R7($) to R10($)",null,{"$f":"SUMPRODUCT(AJ164:AJ167, AJ$119:AJ$122)","v":0},0,0,0,0,0,0,0,0,0,0,0,null,null,"Estimated Total Realised Benefit - R7($) to R10($)",null,{"$f":"SUMPRODUCT(AZ164:AZ167, AZ$119:AZ$122)","v":0},0,0,0,0,0,0,0,0,0,0,0]
[null,null,null,null,null,null,null,null,null,null,null,null,null,null,null,null,null,null,null,null,null,null,null,null,null,null,null,null,null,null,null,null,null,"Estimated Total Realised Benefit",null,{"$f":"SUM(AJ168:AJ169)","v":0},{"$f":"SUM(AK168:AK169)","v":0},0,0,0,0,0,0,0,0,0,0,null,null,"Estimated Total Realised Benefit",null,{"$f":"SUM(AZ168:AZ169)","v":0},{"$f":"SUM(BA168:BA169)","v":0},0,0,0,0,0,0,0,0,0,0]
[]
[null,null,null,null,null,null,null,null,null,null,null,null,null,null,null,null,null,null,null,null,null,null,null,null,null,null,null,null,null,null,null,null,null,"TOTAL FIRE RISK BY RISK INDEX CATEGORY",null,2019,2020,2021,2022,2023,2024,2025,2026,2027,2028,2029,2030,null,null,"TOTAL FIRE RISK BY RISK INDEX CATEGORY",null,2019,2020,2021,2022,2023,2024,2025,2026,2027,2028,2029,2030]
[null,null,null,null,null,null,null,null,null,null,null,null,null,null,null,null,null,null,null,null,null,null,null,null,null,null,null,null,null,null,null,null,null,1,"R1($)",{"$f":"AZ173","v":0},{"$f":"BA173","v":0},0,0,0,0,0,0,0,0,0,0,null,null,1,"R1($)",{"$f":"IFERROR((SUMIF('D. Population Risk Index'!O:O,$AX173,'C. Population PoC & Risk'!BF:BF))/D6, 0)","v":0},{"$f":"IFERROR((SUMIF('D. Population Risk Index'!P:P,$AX173,'C. Population PoC & Risk'!BG:BG))/E6, 0)","v":0},{"$f":"IFERROR((SUMIF('D. Population Risk Index'!Q:Q,$AX173,'C. Population PoC & Risk'!BH:BH))/F6, 0)","v":0},{"$f":"IFERROR((SUMIF('D. Population Risk Index'!R:R,$AX173,'C. Population PoC & Risk'!BI:BI))/G6, 0)","v":0},{"$f":"IFERROR((SUMIF('D. Population Risk Index'!S:S,$AX173,'C. Population PoC & Risk'!BJ:BJ))/H6, 0)","v":0},{"$f":"IFERROR((SUMIF('D. Population Risk Index'!T:T,$AX173,'C. Population PoC & Risk'!BK:BK))/I6, 0)","v":0},{"$f":"IFERROR((SUMIF('D. Population Risk Index'!U:U,$AX173,'C. Population PoC & Risk'!BL:BL))/J6, 0)","v":0},{"$f":"IFERROR((SUMIF('D. Population Risk Index'!V:V,$AX173,'C. Population PoC & Risk'!BM:BM))/K6, 0)","v":0},{"$f":"IFERROR((SUMIF('D. Population Risk Index'!W:W,$AX173,'C. Population PoC & Risk'!BN:BN))/L6, 0)","v":0},{"$f":"IFERROR((SUMIF('D. Population Risk Index'!X:X,$AX173,'C. Population PoC & Risk'!BO:BO))/M6, 0)","v":0},{"$f":"IFERROR((SUMIF('D. Population Risk Index'!Y:Y,$AX173,'C. Population PoC & Risk'!BP:BP))/N6, 0)","v":0},{"$f":"IFERROR((SUMIF('D. Population Risk Index'!Z:Z,$AX173,'C. Population PoC & Risk'!BQ:BQ))/O6, 0)","v":0}]
[null,null,null,null,null,null,null,null,null,null,null,null,null,null,null,null,null,null,null,null,null,null,null,null,null,null,null,null,null,null,null,null,null,2,"R2($)",{"$f":"AZ174","v":0},0,0,0,0,0,0,0,0,0,0,0,null,null,2,"R2($)",{"$f":"IFERROR((SUMIF('D. Population Risk Index'!O:O,$AX174,'C. Population PoC & Risk'!BF:BF))/D7, 0)","v":0},{"$f":"IFERROR((SUMIF('D. Population Risk Index'!P:P,$AX174,'C. Population PoC & Risk'!BG:BG))/E7, 0)","v":0},{"$f":"IFERROR((SUMIF('D. Population Risk Index'!Q:Q,$AX174,'C. Population PoC & Risk'!BH:BH))/F7, 0)","v":0},{"$f":"IFERROR((SUMIF('D. Population Risk Index'!R:R,$AX174,'C. Population PoC & Risk'!BI:BI))/G7, 0)","v":0},{"$f":"IFERROR((SUMIF('D. Population Risk Index'!S:S,$AX174,'C. Population PoC & Risk'!BJ:BJ))/H7, 0)","v":0},{"$f":"IFERROR((SUMIF('D. Population Risk Index'!T:T,$AX174,'C. Population PoC & Risk'!BK:BK))/I7, 0)","v":0},{"$f":"IFERROR((SUMIF('D. Population Risk Index'!U:U,$AX174,'C. Population PoC & Risk'!BL:BL))/J7, 0)","v":0},{"$f":"IFERROR((SUMIF('D. Population Risk Index'!V:V,$AX174,'C. Population PoC & Risk'!BM:BM))/K7, 0)","v":0},{"$f":"IFERROR((SUMIF('D. Population Risk Index'!W:W,$AX174,'C. Population PoC & Risk'!BN:BN))/L7, 0)","v":0},{"$f":"IFERROR((SUMIF('D. Population Risk Index'!X:X,$AX174,'C. Population PoC & Risk'!BO:BO))/M7, 0)","v":0},{"$f":"IFERROR((SUMIF('D. Population Risk Index'!Y:Y,$AX174,'C. Population PoC & Risk'!BP:BP))/N7, 0)","v":0},{"$f":"IFERROR((SUMIF('D. Population Risk Index'!Z:Z,$AX174,'C. Population PoC & Risk'!BQ:BQ))/O7, 0)","v":0}]
[null,null,null,null,null,null,null,null,null,null,null,null,null,null,null,null,null,null,null,null,null,null,null,null,null,null,null,null,null,null,null,null,null,3,"R3($)",0,0,0,0,0,0,0,0,0,0,0,0,null,null,3,"R3($)",{"$f":"IFERROR((SUMIF('D. Population Risk Index'!O:O,$AX175,'C. Population PoC & Risk'!BF:BF))/D8, 0)","v":0},{"$f":"IFERROR((SUMIF('D. Population Risk Index'!P:P,$AX175,'C. Population PoC & Risk'!BG:BG))/E8, 0)","v":0},{"$f":"IFERROR((SUMIF('D. Population Risk Index'!Q:Q,$AX175,'C. Population PoC & Risk'!BH:BH))/F8, 0)","v":0},{"$f":"IFERROR((SUMIF('D. Population Risk Index'!R:R,$AX175,'C. Population PoC & Risk'!BI:BI))/G8, 0)","v":0},{"$f":"IFERROR((SUMIF('D. Population Risk Index'!S:S,$AX175,'C. Population PoC & Risk'!BJ:BJ))/H8, 0)","v":0},{"$f":"IFERROR((SUMIF('D. Population Risk Index'!T:T,$AX175,'C. Population PoC & Risk'!BK:BK))/I8, 0)","v":0},{"$f":"IFERROR((SUMIF('D. Population Risk Index'!U:U,$AX175,'C. Population PoC & Risk'!BL:BL))/J8, 0)","v":0},{"$f":"IFERROR((SUMIF('D. Population Risk Index'!V:V,$AX175,'C. Population PoC & Risk'!BM:BM))/K8, 0)","v":0},{"$f":"IFERROR((SUMIF('D. Population Risk Index'!W:W,$AX175,'C. Population PoC & Risk'!BN:BN))/L8, 0)","v":0},{"$f":"IFERROR((SUMIF('D. Population Risk Index'!X:X,$AX175,'C. Population PoC & Risk'!BO:BO))/M8, 0)","v":0},{"$f":"IFERROR((SUMIF('D. Population Risk Index'!Y:Y,$AX175,'C. Population PoC & Risk'!BP:BP))/N8, 0)","v":0},{"$f":"IFERROR((SUMIF('D. Population Risk Index'!Z:Z,$AX175,'C. Population PoC & Risk'!BQ:BQ))/O8, 0)","v":0}]
[null,null,null,null,null,null,null,null,null,null,null,null,null,null,null,null,null,null,null,null,null,null,null,null,null,null,null,null,null,null,null,null,null,4,"R4($)",0,0,0,0,0,0,0,0,0,0,0,0,null,null,4,"R4($)",{"$f":"IFERROR((SUMIF('D. Population Risk Index'!O:O,$AX176,'C. Population PoC & Risk'!BF:BF))/D9, 0)","v":0},{"$f":"IFERROR((SUMIF('D. Population Risk Index'!P:P,$AX176,'C. Population PoC & Risk'!BG:BG))/E9, 0)","v":0},{"$f":"IFERROR((SUMIF('D. Population Risk Index'!Q:Q,$AX176,'C. Population PoC & Risk'!BH:BH))/F9, 0)","v":0},{"$f":"IFERROR((SUMIF('D. Population Risk Index'!R:R,$AX176,'C. Population PoC & Risk'!BI:BI))/G9, 0)","v":0},{"$f":"IFERROR((SUMIF('D. Population Risk Index'!S:S,$AX176,'C. Population PoC & Risk'!BJ:BJ))/H9, 0)","v":0},{"$f":"IFERROR((SUMIF('D. Population Risk Index'!T:T,$AX176,'C. Population PoC & Risk'!BK:BK))/I9, 0)","v":0},{"$f":"IFERROR((SUMIF('D. Population Risk Index'!U:U,$AX176,'C. Population PoC & Risk'!BL:BL))/J9, 0)","v":0},{"$f":"IFERROR((SUMIF('D. Population Risk Index'!V:V,$AX176,'C. Population PoC & Risk'!BM:BM))/K9, 0)","v":0},{"$f":"IFERROR((SUMIF('D. Population Risk Index'!W:W,$AX176,'C. Population PoC & Risk'!BN:BN))/L9, 0)","v":0},{"$f":"IFERROR((SUMIF('D. Population Risk Index'!X:X,$AX176,'C. Population PoC & Risk'!BO:BO))/M9, 0)","v":0},{"$f":"IFERROR((SUMIF('D. Population Risk Index'!Y:Y,$AX176,'C. Population PoC & Risk'!BP:BP))/N9, 0)","v":0},{"$f":"IFERROR((SUMIF('D. Population Risk Index'!Z:Z,$AX176,'C. Population PoC & Risk'!BQ:BQ))/O9, 0)","v":0}]
[null,null,null,null,null,null,null,null,null,null,null,null,null,null,null,null,null,null,null,null,null,null,null,null,null,null,null,null,null,null,null,null,null,5,"R5($)",0,0,0,0,0,0,0,0,0,0,0,0,null,null,5,"R5($)",{"$f":"IFERROR((SUMIF('D. Population Risk Index'!O:O,$AX177,'C. Population PoC & Risk'!BF:BF))/D10, 0)","v":0},{"$f":"IFERROR((SUMIF('D. Population Risk Index'!P:P,$AX177,'C. Population PoC & Risk'!BG:BG))/E10, 0)","v":0},{"$f":"IFERROR((SUMIF('D. Population Risk Index'!Q:Q,$AX177,'C. Population PoC & Risk'!BH:BH))/F10, 0)","v":0},{"$f":"IFERROR((SUMIF('D. Population Risk Index'!R:R,$AX177,'C. Population PoC & Risk'!BI:BI))/G10, 0)","v":0},{"$f":"IFERROR((SUMIF('D. Population Risk Index'!S:S,$AX177,'C. Population PoC & Risk'!BJ:BJ))/H10, 0)","v":0},{"$f":"IFERROR((SUMIF('D. Population Risk Index'!T:T,$AX177,'C. Population PoC & Risk'!BK:BK))/I10, 0)","v":0},{"$f":"IFERROR((SUMIF('D. Population Risk Index'!U:U,$AX177,'C. Population PoC & Risk'!BL:BL))/J10, 0)","v":0},{"$f":"IFERROR((SUMIF('D. Population Risk Index'!V:V,$AX177,'C. Population PoC & Risk'!BM:BM))/K10, 0)","v":0},{"$f":"IFERROR((SUMIF('D. Population Risk Index'!W:W,$AX177,'C. Population PoC & Risk'!BN:BN))/L10, 0)","v":0},{"$f":"IFERROR((SUMIF('D. Population Risk Index'!X:X,$AX177,'C. Population PoC & Risk'!BO:BO))/M10, 0)","v":0},{"$f":"IFERROR((SUMIF('D. Population Risk Index'!Y:Y,$AX177,'C. Population PoC & Risk'!BP:BP))/N10, 0)","v":0},{"$f":"IFERROR((SUMIF('D. Population Risk Index'!Z:Z,$AX177,'C. Population PoC & Risk'!BQ:BQ))/O10, 0)","v":0}]
[null,null,null,null,null,null,null,null,null,null,null,null,null,null,null,null,null,null,null,null,null,null,null,null,null,null,null,null,null,null,null,null,null,6,"R6($)",0,0,0,0,0,0,0,0,0,0,0,0,null,null,6,"R6($)",{"$f":"IFERROR((SUMIF('D. Population Risk Index'!O:O,$AX178,'C. Population PoC & Risk'!BF:BF))/D11, 0)","v":0},{"$f":"IFERROR((SUMIF('D. Population Risk Index'!P:P,$AX178,'C. Population PoC & Risk'!BG:BG))/E11, 0)","v":0},{"$f":"IFERROR((SUMIF('D. Population Risk Index'!Q:Q,$AX178,'C. Population PoC & Risk'!BH:BH))/F11, 0)","v":0},{"$f":"IFERROR((SUMIF('D. Population Risk Index'!R:R,$AX178,'C. Population PoC & Risk'!BI:BI))/G11, 0)","v":0},{"$f":"IFERROR((SUMIF('D. Population Risk Index'!S:S,$AX178,'C. Population PoC & Risk'!BJ:BJ))/H11, 0)","v":0},{"$f":"IFERROR((SUMIF('D. Population Risk Index'!T:T,$AX178,'C. Population PoC & Risk'!BK:BK))/I11, 0)","v":0},{"$f":"IFERROR((SUMIF('D. Population Risk Index'!U:U,$AX178,'C. Population PoC & Risk'!BL:BL))/J11, 0)","v":0},{"$f":"IFERROR((SUMIF('D. Population Risk Index'!V:V,$AX178,'C. Population PoC & Risk'!BM:BM))/K11, 0)","v":0},{"$f":"IFERROR((SUMIF('D. Population Risk Index'!W:W,$AX178,'C. Population PoC & Risk'!BN:BN))/L11, 0)","v":0},{"$f":"IFERROR((SUMIF('D. Population Risk Index'!X:X,$AX178,'C. Population PoC & Risk'!BO:BO))/M11, 0)","v":0},{"$f":"IFERROR((SUMIF('D. Population Risk Index'!Y:Y,$AX178,'C. Population PoC & Risk'!BP:BP))/N11, 0)","v":0},{"$f":"IFERROR((SUMIF('D. Population Risk Index'!Z:Z,$AX178,'C. Population PoC & Risk'!BQ:BQ))/O11, 0)","v":0}]
[null,null,null,null,null,null,null,null,null,null,null,null,null,null,null,null,null,null,null,null,null,null,null,null,null,null,null,null,null,null,null,null,null,7,"R7($)",0,0,0,0,0,0,0,0,0,0,0,0,null,null,7,"R7($)",{"$f":"IFERROR((SUMIF('D. Population Risk Index'!O:O,$AX179,'C. Population PoC & Risk'!BF:BF))/D12, 0)","v":0},{"$f":"IFERROR((SUMIF('D. Population Risk Index'!P:P,$AX179,'C. Population PoC & Risk'!BG:BG))/E12, 0)","v":0},{"$f":"IFERROR((SUMIF('D. Population Risk Index'!Q:Q,$AX179,'C. Population PoC & Risk'!BH:BH))/F12, 0)","v":0},{"$f":"IFERROR((SUMIF('D. Population Risk Index'!R:R,$AX179,'C. Population PoC & Risk'!BI:BI))/G12, 0)","v":0},{"$f":"IFERROR((SUMIF('D. Population Risk Index'!S:S,$AX179,'C. Population PoC & Risk'!BJ:BJ))/H12, 0)","v":0},{"$f":"IFERROR((SUMIF('D. Population Risk Index'!T:T,$AX179,'C. Population PoC & Risk'!BK:BK))/I12, 0)","v":0},{"$f":"IFERROR((SUMIF('D. Population Risk Index'!U:U,$AX179,'C. Population PoC & Risk'!BL:BL))/J12, 0)","v":0},{"$f":"IFERROR((SUMIF('D. Population Risk Index'!V:V,$AX179,'C. Population PoC & Risk'!BM:BM))/K12, 0)","v":0},{"$f":"IFERROR((SUMIF('D. Population Risk Index'!W:W,$AX179,'C. Population PoC & Risk'!BN:BN))/L12, 0)","v":0},{"$f":"IFERROR((SUMIF('D. Population Risk Index'!X:X,$AX179,'C. Population PoC & Risk'!BO:BO))/M12, 0)","v":0},{"$f":"IFERROR((SUMIF('D. Population Risk Index'!Y:Y,$AX179,'C. Population PoC & Risk'!BP:BP))/N12, 0)","v":0},{"$f":"IFERROR((SUMIF('D. Population Risk Index'!Z:Z,$AX179,'C. Population PoC & Risk'!BQ:BQ))/O12, 0)","v":0}]
[null,null,null,null,null,null,null,null,null,null,null,null,null,null,null,null,null,null,null,null,null,null,null,null,null,null,null,null,null,null,null,null,null,8,"R8($)",0,0,0,0,0,0,0,0,0,0,0,0,null,null,8,"R8($)",{"$f":"IFERROR((SUMIF('D. Population Risk Index'!O:O,$AX180,'C. Population PoC & Risk'!BF:BF))/D13, 0)","v":0},{"$f":"IFERROR((SUMIF('D. Population Risk Index'!P:P,$AX180,'C. Population PoC & Risk'!BG:BG))/E13, 0)","v":0},{"$f":"IFERROR((SUMIF('D. Population Risk Index'!Q:Q,$AX180,'C. Population PoC & Risk'!BH:BH))/F13, 0)","v":0},{"$f":"IFERROR((SUMIF('D. Population Risk Index'!R:R,$AX180,'C. Population PoC & Risk'!BI:BI))/G13, 0)","v":0},{"$f":"IFERROR((SUMIF('D. Population Risk Index'!S:S,$AX180,'C. Population PoC & Risk'!BJ:BJ))/H13, 0)","v":0},{"$f":"IFERROR((SUMIF('D. Population Risk Index'!T:T,$AX180,'C. Population PoC & Risk'!BK:BK))/I13, 0)","v":0},{"$f":"IFERROR((SUMIF('D. Population Risk Index'!U:U,$AX180,'C. Population PoC & Risk'!BL:BL))/J13, 0)","v":0},{"$f":"IFERROR((SUMIF('D. Population Risk Index'!V:V,$AX180,'C. Population PoC & Risk'!BM:BM))/K13, 0)","v":0},{"$f":"IFERROR((SUMIF('D. Population Risk Index'!W:W,$AX180,'C. Population PoC & Risk'!BN:BN))/L13, 0)","v":0},{"$f":"IFERROR((SUMIF('D. Population Risk Index'!X:X,$AX180,'C. Population PoC & Risk'!BO:BO))/M13, 0)","v":0},{"$f":"IFERROR((SUMIF('D. Population Risk Index'!Y:Y,$AX180,'C. Population PoC & Risk'!BP:BP))/N13, 0)","v":0},{"$f":"IFERROR((SUMIF('D. Population Risk Index'!Z:Z,$AX180,'C. Population PoC & Risk'!BQ:BQ))/O13, 0)","v":0}]
[null,null,null,null,null,null,null,null,null,null,null,null,null,null,null,null,null,null,null,null,null,null,null,null,null,null,null,null,null,null,null,null,null,9,"R9($)",0,0,0,0,0,0,0,0,0,0,0,0,null,null,9,"R9($)",{"$f":"IFERROR((SUMIF('D. Population Risk Index'!O:O,$AX181,'C. Population PoC & Risk'!BF:BF))/D14, 0)","v":0},{"$f":"IFERROR((SUMIF('D. Population Risk Index'!P:P,$AX181,'C. Population PoC & Risk'!BG:BG))/E14, 0)","v":0},{"$f":"IFERROR((SUMIF('D. Population Risk Index'!Q:Q,$AX181,'C. Population PoC & Risk'!BH:BH))/F14, 0)","v":0},{"$f":"IFERROR((SUMIF('D. Population Risk Index'!R:R,$AX181,'C. Population PoC & Risk'!BI:BI))/G14, 0)","v":0},{"$f":"IFERROR((SUMIF('D. Population Risk Index'!S:S,$AX181,'C. Population PoC & Risk'!BJ:BJ))/H14, 0)","v":0},{"$f":"IFERROR((SUMIF('D. Population Risk Index'!T:T,$AX181,'C. Population PoC & Risk'!BK:BK))/I14, 0)","v":0},{"$f":"IFERROR((SUMIF('D. Population Risk Index'!U:U,$AX181,'C. Population PoC & Risk'!BL:BL))/J14, 0)","v":0},{"$f":"IFERROR((SUMIF('D. Population Risk Index'!V:V,$AX181,'C. Population PoC & Risk'!BM:BM))/K14, 0)","v":0},{"$f":"IFERROR((SUMIF('D. Population Risk Index'!W:W,$AX181,'C. Population PoC & Risk'!BN:BN))/L14, 0)","v":0},{"$f":"IFERROR((SUMIF('D. Population Risk Index'!X:X,$AX181,'C. Population PoC & Risk'!BO:BO))/M14, 0)","v":0},{"$f":"IFERROR((SUMIF('D. Population Risk Index'!Y:Y,$AX181,'C. Population PoC & Risk'!BP:BP))/N14, 0)","v":0},{"$f":"IFERROR((SUMIF('D. Population Risk Index'!Z:Z,$AX181,'C. Population PoC & Risk'!BQ:BQ))/O14, 0)","v":0}]
[null,null,null,null,null,null,null,null,null,null,null,null,null,null,null,null,null,null,null,null,null,null,null,null,null,null,null,null,null,null,null,null,null,10,"R10($)",0,0,0,0,0,0,0,0,0,0,0,0,null,null,10,"R10($)",{"$f":"IFERROR((SUMIF('D. Population Risk Index'!O:O,$AX182,'C. Population PoC & Risk'!BF:BF))/D15, 0)","v":0},{"$f":"IFERROR((SUMIF('D. Population Risk Index'!P:P,$AX182,'C. Population PoC & Risk'!BG:BG))/E15, 0)","v":0},{"$f":"IFERROR((SUMIF('D. Population Risk Index'!Q:Q,$AX182,'C. Population PoC & Risk'!BH:BH))/F15, 0)","v":0},{"$f":"IFERROR((SUMIF('D. Population Risk Index'!R:R,$AX182,'C. Population PoC & Risk'!BI:BI))/G15, 0)","v":0},{"$f":"IFERROR((SUMIF('D. Population Risk Index'!S:S,$AX182,'C. Population PoC & Risk'!BJ:BJ))/H15, 0)","v":0},{"$f":"IFERROR((SUMIF('D. Population Risk Index'!T:T,$AX182,'C. Population PoC & Risk'!BK:BK))/I15, 0)","v":0},{"$f":"IFERROR((SUMIF('D. Population Risk Index'!U:U,$AX182,'C. Population PoC & Risk'!BL:BL))/J15, 0)","v":0},{"$f":"IFERROR((SUMIF('D. Population Risk Index'!V:V,$AX182,'C. Population PoC & Risk'!BM:BM))/K15, 0)","v":0},{"$f":"IFERROR((SUMIF('D. Population Risk Index'!W:W,$AX182,'C. Population PoC & Risk'!BN:BN))/L15, 0)","v":0},{"$f":"IFERROR((SUMIF('D. Population Risk Index'!X:X,$AX182,'C. Population PoC & Risk'!BO:BO))/M15, 0)","v":0},{"$f":"IFERROR((SUMIF('D. Population Risk Index'!Y:Y,$AX182,'C. Population PoC & Risk'!BP:BP))/N15, 0)","v":0},{"$f":"IFERROR((SUMIF('D. Population Risk Index'!Z:Z,$AX182,'C. Population PoC & Risk'!BQ:BQ))/O15, 0)","v":0}]
[null,null,null,null,null,null,null,null,null,null,null,null,null,null,null,null,null,null,null,null,null,null,null,null,null,null,null,null,null,null,null,null,null,"Estimated Total Realised Benefit - R1($) to R6($)",null,{"$f":"SUMPRODUCT(AJ173:AJ178, AJ$113:AJ$118)","v":0},0,0,0,0,0,0,0,0,0,0,0,null,null,"Estimated Total Realised Benefit - R1($) to R6($)",null,{"$f":"SUMPRODUCT(AZ173:AZ178, AZ$113:AZ$118)","v":0},0,0,0,0,0,0,0,0,0,0,0]
[null,null,null,null,null,null,null,null,null,null,null,null,null,null,null,null,null,null,null,null,null,null,null,null,null,null,null,null,null,null,null,null,null,"Estimated Total Realised Benefit - R7($) to R10($)",null,{"$f":"SUMPRODUCT(AJ179:AJ182, AJ$119:AJ$122)","v":0},0,0,0,0,0,0,0,0,0,0,0,null,null,"Estimated Total Realised Benefit - R7($) to R10($)",null,{"$f":"SUMPRODUCT(AZ179:AZ182, AZ$119:AZ$122)","v":0},0,0,0,0,0,0,0,0,0,0,0]
[null,null,null,null,null,null,null,null,null,null,null,null,null,null,null,null,null,null,null,null,null,null,null,null,null,null,null,null,null,null,null,null,null,"Estimated Total Realised Benefit",null,{"$f":"SUM(AJ183:AJ184)","v":0},{"$f":"SUM(AK183:AK184)","v":0},0,0,0,0,0,0,0,0,0,0,null,null,"Estimated Total Realised Benefit",null,{"$f":"SUM(AZ183:AZ184)","v":0},{"$f":"SUM(BA183:BA184)","v":0},0,0,0,0,0,0,0,0,0,0]
[]
[null,null,null,null,null,null,null,null,null,null,null,null,null,null,null,null,null,null,null,null,null,null,null,null,null,null,null,null,null,null,null,null,null,"TOTAL ENVIRONMENT RISK BY RISK INDEX CATEGORY",null,2019,2020,2021,2022,2023,2024,2025,2026,2027,2028,2029,2030,null,null,"TOTAL ENVIRONMENT RISK BY RISK INDEX CATEGORY",null,2019,2020,2021,2022,2023,2024,2025,2026,2027,2028,2029,2030]
[null,null,null,null,null,null,null,null,null,null,null,null,null,null,null,null,null,null,null,null,null,null,null,null,null,null,null,null,null,null,null,null,null,1,"R1($)",{"$f":"AZ188","v":0.129065492148703},{"$f":"BA188","v":0.13280072382560587},0.13593240722480687,0.13747639601059355,0.13910852591240072,0.13916563332670534,0.13703046169179928,0.13565247132578365,0.13810876983159937,0.13947545925358379,0.1408490759677658,0.14224090268840395,null,null,1,"R1($)",{"$f":"IFERROR((SUMIF('D. Population Risk Index'!O:O,$AX188,'C. Population PoC & Risk'!BR:BR))/D6, 0)","v":0.129065492148703},{"$f":"IFERROR((SUMIF('D. Population Risk Index'!P:P,$AX188,'C. Population PoC & Risk'!BS:BS))/E6, 0)","v":0.13280072382560587},{"$f":"IFERROR((SUMIF('D. Population Risk Index'!Q:Q,$AX188,'C. Population PoC & Risk'!BT:BT))/F6, 0)","v":0.13593240722480687},{"$f":"IFERROR((SUMIF('D. Population Risk Index'!R:R,$AX188,'C. Population PoC & Risk'!BU:BU))/G6, 0)","v":0.13747639601059355},{"$f":"IFERROR((SUMIF('D. Population Risk Index'!S:S,$AX188,'C. Population PoC & Risk'!BV:BV))/H6, 0)","v":0.13910852591240072},{"$f":"IFERROR((SUMIF('D. Population Risk Index'!T:T,$AX188,'C. Population PoC & Risk'!BW:BW))/I6, 0)","v":0.13916563332670534},{"$f":"IFERROR((SUMIF('D. Population Risk Index'!U:U,$AX188,'C. Population PoC & Risk'!BX:BX))/J6, 0)","v":0.13703046169179928},{"$f":"IFERROR((SUMIF('D. Population Risk Index'!V:V,$AX188,'C. Population PoC & Risk'!BY:BY))/K6, 0)","v":0.13565247132578365},{"$f":"IFERROR((SUMIF('D. Population Risk Index'!W:W,$AX188,'C. Population PoC & Risk'!BZ:BZ))/L6, 0)","v":0.13810876983159937},{"$f":"IFERROR((SUMIF('D. Population Risk Index'!X:X,$AX188,'C. Population PoC & Risk'!CA:CA))/M6, 0)","v":0.13947545925358379},{"$f":"IFERROR((SUMIF('D. Population Risk Index'!Y:Y,$AX188,'C. Population PoC & Risk'!CB:CB))/N6, 0)","v":0.1408490759677658},{"$f":"IFERROR((SUMIF('D. Population Risk Index'!Z:Z,$AX188,'C. Population PoC & Risk'!CC:CC))/O6, 0)","v":0.14224090268840395}]
[null,null,null,null,null,null,null,null,null,null,null,null,null,null,null,null,null,null,null,null,null,null,null,null,null,null,null,null,null,null,null,null,null,2,"R2($)",{"$f":"AZ189","v":0.22554454028492585},0.22671896043314785,0.22742983186917379,0.22711224246958628,0.22623235786391199,0.22592873535025731,0.22547627937075346,0.22565792615103408,0.22657716205257658,0.2269576892918303,0.22761162352848152,0.22823133203142615,null,null,2,"R2($)",{"$f":"IFERROR((SUMIF('D. Population Risk Index'!O:O,$AX189,'C. Population PoC & Risk'!BR:BR))/D7, 0)","v":0.22554454028492585},{"$f":"IFERROR((SUMIF('D. Population Risk Index'!P:P,$AX189,'C. Population PoC & Risk'!BS:BS))/E7, 0)","v":0.22671896043314785},{"$f":"IFERROR((SUMIF('D. Population Risk Index'!Q:Q,$AX189,'C. Population PoC & Risk'!BT:BT))/F7, 0)","v":0.22742983186917379},{"$f":"IFERROR((SUMIF('D. Population Risk Index'!R:R,$AX189,'C. Population PoC & Risk'!BU:BU))/G7, 0)","v":0.22711224246958628},{"$f":"IFERROR((SUMIF('D. Population Risk Index'!S:S,$AX189,'C. Population PoC & Risk'!BV:BV))/H7, 0)","v":0.22623235786391199},{"$f":"IFERROR((SUMIF('D. Population Risk Index'!T:T,$AX189,'C. Population PoC & Risk'!BW:BW))/I7, 0)","v":0.22592873535025731},{"$f":"IFERROR((SUMIF('D. Population Risk Index'!U:U,$AX189,'C. Population PoC & Risk'!BX:BX))/J7, 0)","v":0.22547627937075346},{"$f":"IFERROR((SUMIF('D. Population Risk Index'!V:V,$AX189,'C. Population PoC & Risk'!BY:BY))/K7, 0)","v":0.22565792615103408},{"$f":"IFERROR((SUMIF('D. Population Risk Index'!W:W,$AX189,'C. Population PoC & Risk'!BZ:BZ))/L7, 0)","v":0.22657716205257658},{"$f":"IFERROR((SUMIF('D. Population Risk Index'!X:X,$AX189,'C. Population PoC & Risk'!CA:CA))/M7, 0)","v":0.2269576892918303},{"$f":"IFERROR((SUMIF('D. Population Risk Index'!Y:Y,$AX189,'C. Population PoC & Risk'!CB:CB))/N7, 0)","v":0.22761162352848152},{"$f":"IFERROR((SUMIF('D. Population Risk Index'!Z:Z,$AX189,'C. Population PoC & Risk'!CC:CC))/O7, 0)","v":0.22823133203142615}]
[null,null,null,null,null,null,null,null,null,null,null,null,null,null,null,null,null,null,null,null,null,null,null,null,null,null,null,null,null,null,null,null,null,3,"R3($)",0,0,0,0,0.23690320912457902,0.23755837541730854,0.23818159839080932,0.23877472246845993,0.23933947257449634,0.23853172807192508,0.23910743460840311,0.23965579921906291,null,null,3,"R3($)",{"$f":"IFERROR((SUMIF('D. Population Risk Index'!O:O,$AX190,'C. Population PoC & Risk'!BR:BR))/D8, 0)","v":0},{"$f":"IFERROR((SUMIF('D. Population Risk Index'!P:P,$AX190,'C. Population PoC & Risk'!BS:BS))/E8, 0)","v":0},{"$f":"IFERROR((SUMIF('D. Population Risk Index'!Q:Q,$AX190,'C. Population PoC & Risk'!BT:BT))/F8, 0)","v":0},{"$f":"IFERROR((SUMIF('D. Population Risk Index'!R:R,$AX190,'C. Population PoC & Risk'!BU:BU))/G8, 0)","v":0},{"$f":"IFERROR((SUMIF('D. Population Risk Index'!S:S,$AX190,'C. Population PoC & Risk'!BV:BV))/H8, 0)","v":0.23690320912457902},{"$f":"IFERROR((SUMIF('D. Population Risk Index'!T:T,$AX190,'C. Population PoC & Risk'!BW:BW))/I8, 0)","v":0.23755837541730854},{"$f":"IFERROR((SUMIF('D. Population Risk Index'!U:U,$AX190,'C. Population PoC & Risk'!BX:BX))/J8, 0)","v":0.23818159839080932},{"$f":"IFERROR((SUMIF('D. Population Risk Index'!V:V,$AX190,'C. Population PoC & Risk'!BY:BY))/K8, 0)","v":0.23877472246845993},{"$f":"IFERROR((SUMIF('D. Population Risk Index'!W:W,$AX190,'C. Population PoC & Risk'!BZ:BZ))/L8, 0)","v":0.23933947257449634},{"$f":"IFERROR((SUMIF('D. Population Risk Index'!X:X,$AX190,'C. Population PoC & Risk'!CA:CA))/M8, 0)","v":0.23853172807192508},{"$f":"IFERROR((SUMIF('D. Population Risk Index'!Y:Y,$AX190,'C. Population PoC & Risk'!CB:CB))/N8, 0)","v":0.23910743460840311},{"$f":"IFERROR((SUMIF('D. Population Risk Index'!Z:Z,$AX190,'C. Population PoC & Risk'!CC:CC))/O8, 0)","v":0.23965579921906291}]
[null,null,null,null,null,null,null,null,null,null,null,null,null,null,null,null,null,null,null,null,null,null,null,null,null,null,null,null,null,null,null,null,null,4,"R4($)",0,0,0,0,0,0,0,0,0,0,0,0,null,null,4,"R4($)",{"$f":"IFERROR((SUMIF('D. Population Risk Index'!O:O,$AX191,'C. Population PoC & Risk'!BR:BR))/D9, 0)","v":0},{"$f":"IFERROR((SUMIF('D. Population Risk Index'!P:P,$AX191,'C. Population PoC & Risk'!BS:BS))/E9, 0)","v":0},{"$f":"IFERROR((SUMIF('D. Population Risk Index'!Q:Q,$AX191,'C. Population PoC & Risk'!BT:BT))/F9, 0)","v":0},{"$f":"IFERROR((SUMIF('D. Population Risk Index'!R:R,$AX191,'C. Population PoC & Risk'!BU:BU))/G9, 0)","v":0},{"$f":"IFERROR((SUMIF('D. Population Risk Index'!S:S,$AX191,'C. Population PoC & Risk'!BV:BV))/H9, 0)","v":0},{"$f":"IFERROR((SUMIF('D. Population Risk Index'!T:T,$AX191,'C. Population PoC & Risk'!BW:BW))/I9, 0)","v":0},{"$f":"IFERROR((SUMIF('D. Population Risk Index'!U:U,$AX191,'C. Population PoC & Risk'!BX:BX))/J9, 0)","v":0},{"$f":"IFERROR((SUMIF('D. Population Risk Index'!V:V,$AX191,'C. Population PoC & Risk'!BY:BY))/K9, 0)","v":0},{"$f":"IFERROR((SUMIF('D. Population Risk Index'!W:W,$AX191,'C. Population PoC & Risk'!BZ:BZ))/L9, 0)","v":0},{"$f":"IFERROR((SUMIF('D. Population Risk Index'!X:X,$AX191,'C. Population PoC & Risk'!CA:CA))/M9, 0)","v":0},{"$f":"IFERROR((SUMIF('D. Population Risk Index'!Y:Y,$AX191,'C. Population PoC & Risk'!CB:CB))/N9, 0)","v":0},{"$f":"IFERROR((SUMIF('D. Population Risk Index'!Z:Z,$AX191,'C. Population PoC & Risk'!CC:CC))/O9, 0)","v":0}]
[null,null,null,null,null,null,null,null,null,null,null,null,null,null,null,null,null,null,null,null,null,null,null,null,null,null,null,null,null,null,null,null,null,5,"R5($)",0,0,0,0,0,0,0,0,0,0,0,0,null,null,5,"R5($)",{"$f":"IFERROR((SUMIF('D. Population Risk Index'!O:O,$AX192,'C. Population PoC & Risk'!BR:BR))/D10, 0)","v":0},{"$f":"IFERROR((SUMIF('D. Population Risk Index'!P:P,$AX192,'C. Population PoC & Risk'!BS:BS))/E10, 0)","v":0},{"$f":"IFERROR((SUMIF('D. Population Risk Index'!Q:Q,$AX192,'C. Population PoC & Risk'!BT:BT))/F10, 0)","v":0},{"$f":"IFERROR((SUMIF('D. Population Risk Index'!R:R,$AX192,'C. Population PoC & Risk'!BU:BU))/G10, 0)","v":0},{"$f":"IFERROR((SUMIF('D. Population Risk Index'!S:S,$AX192,'C. Population PoC & Risk'!BV:BV))/H10, 0)","v":0},{"$f":"IFERROR((SUMIF('D. Population Risk Index'!T:T,$AX192,'C. Population PoC & Risk'!BW:BW))/I10, 0)","v":0},{"$f":"IFERROR((SUMIF('D. Population Risk Index'!U:U,$AX192,'C. Population PoC & Risk'!BX:BX))/J10, 0)","v":0},{"$f":"IFERROR((SUMIF('D. Population Risk Index'!V:V,$AX192,'C. Population PoC & Risk'!BY:BY))/K10, 0)","v":0},{"$f":"IFERROR((SUMIF('D. Population Risk Index'!W:W,$AX192,'C. Population PoC & Risk'!BZ:BZ))/L10, 0)","v":0},{"$f":"IFERROR((SUMIF('D. Population Risk Index'!X:X,$AX192,'C. Population PoC & Risk'!CA:CA))/M10, 0)","v":0},{"$f":"IFERROR((SUMIF('D. Population Risk Index'!Y:Y,$AX192,'C. Population PoC & Risk'!CB:CB))/N10, 0)","v":0},{"$f":"IFERROR((SUMIF('D. Population Risk Index'!Z:Z,$AX192,'C. Population PoC & Risk'!CC:CC))/O10, 0)","v":0}]
[null,null,null,null,null,null,null,null,null,null,null,null,null,null,null,null,null,null,null,null,null,null,null,null,null,null,null,null,null,null,null,null,null,6,"R6($)",0,0,0,0,0,0,0,0,0,0,0,0,null,null,6,"R6($)",{"$f":"IFERROR((SUMIF('D. Population Risk Index'!O:O,$AX193,'C. Population PoC & Risk'!BR:BR))/D11, 0)","v":0},{"$f":"IFERROR((SUMIF('D. Population Risk Index'!P:P,$AX193,'C. Population PoC & Risk'!BS:BS))/E11, 0)","v":0},{"$f":"IFERROR((SUMIF('D. Population Risk Index'!Q:Q,$AX193,'C. Population PoC & Risk'!BT:BT))/F11, 0)","v":0},{"$f":"IFERROR((SUMIF('D. Population Risk Index'!R:R,$AX193,'C. Population PoC & Risk'!BU:BU))/G11, 0)","v":0},{"$f":"IFERROR((SUMIF('D. Population Risk Index'!S:S,$AX193,'C. Population PoC & Risk'!BV:BV))/H11, 0)","v":0},{"$f":"IFERROR((SUMIF('D. Population Risk Index'!T:T,$AX193,'C. Population PoC & Risk'!BW:BW))/I11, 0)","v":0},{"$f":"IFERROR((SUMIF('D. Population Risk Index'!U:U,$AX193,'C. Population PoC & Risk'!BX:BX))/J11, 0)","v":0},{"$f":"IFERROR((SUMIF('D. Population Risk Index'!V:V,$AX193,'C. Population PoC & Risk'!BY:BY))/K11, 0)","v":0},{"$f":"IFERROR((SUMIF('D. Population Risk Index'!W:W,$AX193,'C. Population PoC & Risk'!BZ:BZ))/L11, 0)","v":0},{"$f":"IFERROR((SUMIF('D. Population Risk Index'!X:X,$AX193,'C. Population PoC & Risk'!CA:CA))/M11, 0)","v":0},{"$f":"IFERROR((SUMIF('D. Population Risk Index'!Y:Y,$AX193,'C. Population PoC & Risk'!CB:CB))/N11, 0)","v":0},{"$f":"IFERROR((SUMIF('D. Population Risk Index'!Z:Z,$AX193,'C. Population PoC & Risk'!CC:CC))/O11, 0)","v":0}]
[null,null,null,null,null,null,null,null,null,null,null,null,null,null,null,null,null,null,null,null,null,null,null,null,null,null,null,null,null,null,null,null,null,7,"R7($)",0,0,0,0,0,0,0,0,0,0,0,0,null,null,7,"R7($)",{"$f":"IFERROR((SUMIF('D. Population Risk Index'!O:O,$AX194,'C. Population PoC & Risk'!BR:BR))/D12, 0)","v":0},{"$f":"IFERROR((SUMIF('D. Population Risk Index'!P:P,$AX194,'C. Population PoC & Risk'!BS:BS))/E12, 0)","v":0},{"$f":"IFERROR((SUMIF('D. Population Risk Index'!Q:Q,$AX194,'C. Population PoC & Risk'!BT:BT))/F12, 0)","v":0},{"$f":"IFERROR((SUMIF('D. Population Risk Index'!R:R,$AX194,'C. Population PoC & Risk'!BU:BU))/G12, 0)","v":0},{"$f":"IFERROR((SUMIF('D. Population Risk Index'!S:S,$AX194,'C. Population PoC & Risk'!BV:BV))/H12, 0)","v":0},{"$f":"IFERROR((SUMIF('D. Population Risk Index'!T:T,$AX194,'C. Population PoC & Risk'!BW:BW))/I12, 0)","v":0},{"$f":"IFERROR((SUMIF('D. Population Risk Index'!U:U,$AX194,'C. Population PoC & Risk'!BX:BX))/J12, 0)","v":0},{"$f":"IFERROR((SUMIF('D. Population Risk Index'!V:V,$AX194,'C. Population PoC & Risk'!BY:BY))/K12, 0)","v":0},{"$f":"IFERROR((SUMIF('D. Population Risk Index'!W:W,$AX194,'C. Population PoC & Risk'!BZ:BZ))/L12, 0)","v":0},{"$f":"IFERROR((SUMIF('D. Population Risk Index'!X:X,$AX194,'C. Population PoC & Risk'!CA:CA))/M12, 0)","v":0},{"$f":"IFERROR((SUMIF('D. Population Risk Index'!Y:Y,$AX194,'C. Population PoC & Risk'!CB:CB))/N12, 0)","v":0},{"$f":"IFERROR((SUMIF('D. Population Risk Index'!Z:Z,$AX194,'C. Population PoC & Risk'!CC:CC))/O12, 0)","v":0}]
[null,null,null,null,null,null,null,null,null,null,null,null,null,null,null,null,null,null,null,null,null,null,null,null,null,null,null,null,null,null,null,null,null,8,"R8($)",0,0,0,0,0,0,0,0,0,0,0,0,null,null,8,"R8($)",{"$f":"IFERROR((SUMIF('D. Population Risk Index'!O:O,$AX195,'C. Population PoC & Risk'!BR:BR))/D13, 0)","v":0},{"$f":"IFERROR((SUMIF('D. Population Risk Index'!P:P,$AX195,'C. Population PoC & Risk'!BS:BS))/E13, 0)","v":0},{"$f":"IFERROR((SUMIF('D. Population Risk Index'!Q:Q,$AX195,'C. Population PoC & Risk'!BT:BT))/F13, 0)","v":0},{"$f":"IFERROR((SUMIF('D. Population Risk Index'!R:R,$AX195,'C. Population PoC & Risk'!BU:BU))/G13, 0)","v":0},{"$f":"IFERROR((SUMIF('D. Population Risk Index'!S:S,$AX195,'C. Population PoC & Risk'!BV:BV))/H13, 0)","v":0},{"$f":"IFERROR((SUMIF('D. Population Risk Index'!T:T,$AX195,'C. Population PoC & Risk'!BW:BW))/I13, 0)","v":0},{"$f":"IFERROR((SUMIF('D. Population Risk Index'!U:U,$AX195,'C. Population PoC & Risk'!BX:BX))/J13, 0)","v":0},{"$f":"IFERROR((SUMIF('D. Population Risk Index'!V:V,$AX195,'C. Population PoC & Risk'!BY:BY))/K13, 0)","v":0},{"$f":"IFERROR((SUMIF('D. Population Risk Index'!W:W,$AX195,'C. Population PoC & Risk'!BZ:BZ))/L13, 0)","v":0},{"$f":"IFERROR((SUMIF('D. Population Risk Index'!X:X,$AX195,'C. Population PoC & Risk'!CA:CA))/M13, 0)","v":0},{"$f":"IFERROR((SUMIF('D. Population Risk Index'!Y:Y,$AX195,'C. Population PoC & Risk'!CB:CB))/N13, 0)","v":0},{"$f":"IFERROR((SUMIF('D. Population Risk Index'!Z:Z,$AX195,'C. Population PoC & Risk'!CC:CC))/O13, 0)","v":0}]
[null,null,null,null,null,null,null,null,null,null,null,null,null,null,null,null,null,null,null,null,null,null,null,null,null,null,null,null,null,null,null,null,null,9,"R9($)",0,0,0,0,0,0,0,0,0,0,0,0,null,null,9,"R9($)",{"$f":"IFERROR((SUMIF('D. Population Risk Index'!O:O,$AX196,'C. Population PoC & Risk'!BR:BR))/D14, 0)","v":0},{"$f":"IFERROR((SUMIF('D. Population Risk Index'!P:P,$AX196,'C. Population PoC & Risk'!BS:BS))/E14, 0)","v":0},{"$f":"IFERROR((SUMIF('D. Population Risk Index'!Q:Q,$AX196,'C. Population PoC & Risk'!BT:BT))/F14, 0)","v":0},{"$f":"IFERROR((SUMIF('D. Population Risk Index'!R:R,$AX196,'C. Population PoC & Risk'!BU:BU))/G14, 0)","v":0},{"$f":"IFERROR((SUMIF('D. Population Risk Index'!S:S,$AX196,'C. Population PoC & Risk'!BV:BV))/H14, 0)","v":0},{"$f":"IFERROR((SUMIF('D. Population Risk Index'!T:T,$AX196,'C. Population PoC & Risk'!BW:BW))/I14, 0)","v":0},{"$f":"IFERROR((SUMIF('D. Population Risk Index'!U:U,$AX196,'C. Population PoC & Risk'!BX:BX))/J14, 0)","v":0},{"$f":"IFERROR((SUMIF('D. Population Risk Index'!V:V,$AX196,'C. Population PoC & Risk'!BY:BY))/K14, 0)","v":0},{"$f":"IFERROR((SUMIF('D. Population Risk Index'!W:W,$AX196,'C. Population PoC & Risk'!BZ:BZ))/L14, 0)","v":0},{"$f":"IFERROR((SUMIF('D. Population Risk Index'!X:X,$AX196,'C. Population PoC & Risk'!CA:CA))/M14, 0)","v":0},{"$f":"IFERROR((SUMIF('D. Population Risk Index'!Y:Y,$AX196,'C. Population PoC & Risk'!CB:CB))/N14, 0)","v":0},{"$f":"IFERROR((SUMIF('D. Population Risk Index'!Z:Z,$AX196,'C. Population PoC & Risk'!CC:CC))/O14, 0)","v":0}]
[null,null,null,null,null,null,null,null,null,null,null,null,null,null,null,null,null,null,null,null,null,null,null,null,null,null,null,null,null,null,null,null,null,10,"R10($)",0,0,0,0,0,0,0,0,0,0,0,0,null,null,10,"R10($)",{"$f":"IFERROR((SUMIF('D. Population Risk Index'!O:O,$AX197,'C. Population PoC & Risk'!BR:BR))/D15, 0)","v":0},{"$f":"IFERROR((SUMIF('D. Population Risk Index'!P:P,$AX197,'C. Population PoC & Risk'!BS:BS))/E15, 0)","v":0},{"$f":"IFERROR((SUMIF('D. Population Risk Index'!Q:Q,$AX197,'C. Population PoC & Risk'!BT:BT))/F15, 0)","v":0},{"$f":"IFERROR((SUMIF('D. Population Risk Index'!R:R,$AX197,'C. Population PoC & Risk'!BU:BU))/G15, 0)","v":0},{"$f":"IFERROR((SUMIF('D. Population Risk Index'!S:S,$AX197,'C. Population PoC & Risk'!BV:BV))/H15, 0)","v":0},{"$f":"IFERROR((SUMIF('D. Population Risk Index'!T:T,$AX197,'C. Population PoC & Risk'!BW:BW))/I15, 0)","v":0},{"$f":"IFERROR((SUMIF('D. Population Risk Index'!U:U,$AX197,'C. Population PoC & Risk'!BX:BX))/J15, 0)","v":0},{"$f":"IFERROR((SUMIF('D. Population Risk Index'!V:V,$AX197,'C. Population PoC & Risk'!BY:BY))/K15, 0)","v":0},{"$f":"IFERROR((SUMIF('D. Population Risk Index'!W:W,$AX197,'C. Population PoC & Risk'!BZ:BZ))/L15, 0)","v":0},{"$f":"IFERROR((SUMIF('D. Population Risk Index'!X:X,$AX197,'C. Population PoC & Risk'!CA:CA))/M15, 0)","v":0},{"$f":"IFERROR((SUMIF('D. Population Risk Index'!Y:Y,$AX197,'C. Population PoC & Risk'!CB:CB))/N15, 0)","v":0},{"$f":"IFERROR((SUMIF('D. Population Risk Index'!Z:Z,$AX197,'C. Population PoC & Risk'!CC:CC))/O15, 0)","v":0}]
[null,null,null,null,null,null,null,null,null,null,null,null,null,null,null,null,null,null,null,null,null,null,null,null,null,null,null,null,null,null,null,null,null,"Estimated Total Realised Benefit - R1($) to R6($)",null,{"$f":"SUMPRODUCT(AJ188:AJ193, AJ$113:AJ$118)","v":11403.977447576213},11956.274201178672,12314.269440608203,12151.994602914649,13088.432769123659,13111.5308609438,13085.175622568913,13303.111695377427,13816.569956667659,15438.321818135157,15964.874893153647,16498.380305085411,null,null,"Estimated Total Realised Benefit - R1($) to R6($)",null,{"$f":"SUMPRODUCT(AZ188:AZ193, AZ$113:AZ$118)","v":11403.977447576213},11956.274201178672,12314.269440608203,12151.994602914649,13088.432769123659,13111.5308609438,13085.175622568913,13303.111695377427,13816.569956667659,15438.321818135157,15964.874893153647,16498.380305085411]
[null,null,null,null,null,null,null,null,null,null,null,null,null,null,null,null,null,null,null,null,null,null,null,null,null,null,null,null,null,null,null,null,null,"Estimated Total Realised Benefit - R7($) to R10($)",null,{"$f":"SUMPRODUCT(AJ194:AJ197, AJ$119:AJ$122)","v":0},0,0,0,0,0,0,0,0,0,0,0,null,null,"Estimated Total Realised Benefit - R7($) to R10($)",null,{"$f":"SUMPRODUCT(AZ194:AZ197, AZ$119:AZ$122)","v":0},0,0,0,0,0,0,0,0,0,0,0]
[null,null,null,null,null,null,null,null,null,null,null,null,null,null,null,null,null,null,null,null,null,null,null,null,null,null,null,null,null,null,null,null,null,"Estimated Total Realised Benefit",null,{"$f":"SUM(AJ198:AJ199)","v":11403.977447576213},{"$f":"SUM(AK198:AK199)","v":11956.274201178672},12314.269440608203,12151.994602914649,13088.432769123659,13111.5308609438,13085.175622568913,13303.111695377427,13816.569956667659,15438.321818135157,15964.874893153647,16498.380305085411,null,null,"Estimated Total Realised Benefit",null,{"$f":"SUM(AZ198:AZ199)","v":11403.977447576213},{"$f":"SUM(BA198:BA199)","v":11956.274201178672},12314.269440608203,12151.994602914649,13088.432769123659,13111.5308609438,13085.175622568913,13303.111695377427,13816.569956667659,15438.321818135157,15964.874893153647,16498.380305085411]
[]
[null,null,null,null,null,null,null,null,null,null,null,null,null,null,null,null,null,null,null,null,null,null,null,null,null,null,null,null,null,null,null,null,null,"TOTAL VALUE OF UNSERVED ENERGY RISK BY RISK INDEX CATEGORY",null,2019,2020,2021,2022,2023,2024,2025,2026,2027,2028,2029,2030,null,null,"TOTAL VALUE OF UNSERVED ENERGY RISK BY RISK INDEX CATEGORY",null,2019,2020,2021,2022,2023,2024,2025,2026,2027,2028,2029,2030]
[null,null,null,null,null,null,null,null,null,null,null,null,null,null,null,null,null,null,null,null,null,null,null,null,null,null,null,null,null,null,null,null,null,1,"R1($)",{"$f":"AZ203","v":0},{"$f":"BA203","v":0},0,0,0,0,0,0,0,0,0,0,null,null,1,"R1($)",{"$f":"IFERROR((SUMIF('D. Population Risk Index'!O:O,$AX203,'C. Population PoC & Risk'!CD:CD))/D6, 0)","v":0},{"$f":"IFERROR((SUMIF('D. Population Risk Index'!P:P,$AX203,'C. Population PoC & Risk'!CE:CE))/E6, 0)","v":0},{"$f":"IFERROR((SUMIF('D. Population Risk Index'!Q:Q,$AX203,'C. Population PoC & Risk'!CF:CF))/F6, 0)","v":0},{"$f":"IFERROR((SUMIF('D. Population Risk Index'!R:R,$AX203,'C. Population PoC & Risk'!CG:CG))/G6, 0)","v":0},{"$f":"IFERROR((SUMIF('D. Population Risk Index'!S:S,$AX203,'C. Population PoC & Risk'!CH:CH))/H6, 0)","v":0},{"$f":"IFERROR((SUMIF('D. Population Risk Index'!T:T,$AX203,'C. Population PoC & Risk'!CI:CI))/I6, 0)","v":0},{"$f":"IFERROR((SUMIF('D. Population Risk Index'!U:U,$AX203,'C. Population PoC & Risk'!CJ:CJ))/J6, 0)","v":0},{"$f":"IFERROR((SUMIF('D. Population Risk Index'!V:V,$AX203,'C. Population PoC & Risk'!CK:CK))/K6, 0)","v":0},{"$f":"IFERROR((SUMIF('D. Population Risk Index'!W:W,$AX203,'C. Population PoC & Risk'!CL:CL))/L6, 0)","v":0},{"$f":"IFERROR((SUMIF('D. Population Risk Index'!X:X,$AX203,'C. Population PoC & Risk'!CM:CM))/M6, 0)","v":0},{"$f":"IFERROR((SUMIF('D. Population Risk Index'!Y:Y,$AX203,'C. Population PoC & Risk'!CN:CN))/N6, 0)","v":0},{"$f":"IFERROR((SUMIF('D. Population Risk Index'!Z:Z,$AX203,'C. Population PoC & Risk'!CO:CO))/O6, 0)","v":0}]
[null,null,null,null,null,null,null,null,null,null,null,null,null,null,null,null,null,null,null,null,null,null,null,null,null,null,null,null,null,null,null,null,null,2,"R2($)",{"$f":"AZ204","v":0},0,0,0,0,0,0,0,0,0,0,0,null,null,2,"R2($)",{"$f":"IFERROR((SUMIF('D. Population Risk Index'!O:O,$AX204,'C. Population PoC & Risk'!CD:CD))/D7, 0)","v":0},{"$f":"IFERROR((SUMIF('D. Population Risk Index'!P:P,$AX204,'C. Population PoC & Risk'!CE:CE))/E7, 0)","v":0},{"$f":"IFERROR((SUMIF('D. Population Risk Index'!Q:Q,$AX204,'C. Population PoC & Risk'!CF:CF))/F7, 0)","v":0},{"$f":"IFERROR((SUMIF('D. Population Risk Index'!R:R,$AX204,'C. Population PoC & Risk'!CG:CG))/G7, 0)","v":0},{"$f":"IFERROR((SUMIF('D. Population Risk Index'!S:S,$AX204,'C. Population PoC & Risk'!CH:CH))/H7, 0)","v":0},{"$f":"IFERROR((SUMIF('D. Population Risk Index'!T:T,$AX204,'C. Population PoC & Risk'!CI:CI))/I7, 0)","v":0},{"$f":"IFERROR((SUMIF('D. Population Risk Index'!U:U,$AX204,'C. Population PoC & Risk'!CJ:CJ))/J7, 0)","v":0},{"$f":"IFERROR((SUMIF('D. Population Risk Index'!V:V,$AX204,'C. Population PoC & Risk'!CK:CK))/K7, 0)","v":0},{"$f":"IFERROR((SUMIF('D. Population Risk Index'!W:W,$AX204,'C. Population PoC & Risk'!CL:CL))/L7, 0)","v":0},{"$f":"IFERROR((SUMIF('D. Population Risk Index'!X:X,$AX204,'C. Population PoC & Risk'!CM:CM))/M7, 0)","v":0},{"$f":"IFERROR((SUMIF('D. Population Risk Index'!Y:Y,$AX204,'C. Population PoC & Risk'!CN:CN))/N7, 0)","v":0},{"$f":"IFERROR((SUMIF('D. Population Risk Index'!Z:Z,$AX204,'C. Population PoC & Risk'!CO:CO))/O7, 0)","v":0}]
[null,null,null,null,null,null,null,null,null,null,null,null,null,null,null,null,null,null,null,null,null,null,null,null,null,null,null,null,null,null,null,null,null,3,"R3($)",0,0,0,0,0,0,0,0,0,0,0,0,null,null,3,"R3($)",{"$f":"IFERROR((SUMIF('D. Population Risk Index'!O:O,$AX205,'C. Population PoC & Risk'!CD:CD))/D8, 0)","v":0},{"$f":"IFERROR((SUMIF('D. Population Risk Index'!P:P,$AX205,'C. Population PoC & Risk'!CE:CE))/E8, 0)","v":0},{"$f":"IFERROR((SUMIF('D. Population Risk Index'!Q:Q,$AX205,'C. Population PoC & Risk'!CF:CF))/F8, 0)","v":0},{"$f":"IFERROR((SUMIF('D. Population Risk Index'!R:R,$AX205,'C. Population PoC & Risk'!CG:CG))/G8, 0)","v":0},{"$f":"IFERROR((SUMIF('D. Population Risk Index'!S:S,$AX205,'C. Population PoC & Risk'!CH:CH))/H8, 0)","v":0},{"$f":"IFERROR((SUMIF('D. Population Risk Index'!T:T,$AX205,'C. Population PoC & Risk'!CI:CI))/I8, 0)","v":0},{"$f":"IFERROR((SUMIF('D. Population Risk Index'!U:U,$AX205,'C. Population PoC & Risk'!CJ:CJ))/J8, 0)","v":0},{"$f":"IFERROR((SUMIF('D. Population Risk Index'!V:V,$AX205,'C. Population PoC & Risk'!CK:CK))/K8, 0)","v":0},{"$f":"IFERROR((SUMIF('D. Population Risk Index'!W:W,$AX205,'C. Population PoC & Risk'!CL:CL))/L8, 0)","v":0},{"$f":"IFERROR((SUMIF('D. Population Risk Index'!X:X,$AX205,'C. Population PoC & Risk'!CM:CM))/M8, 0)","v":0},{"$f":"IFERROR((SUMIF('D. Population Risk Index'!Y:Y,$AX205,'C. Population PoC & Risk'!CN:CN))/N8, 0)","v":0},{"$f":"IFERROR((SUMIF('D. Population Risk Index'!Z:Z,$AX205,'C. Population PoC & Risk'!CO:CO))/O8, 0)","v":0}]
[null,null,null,null,null,null,null,null,null,null,null,null,null,null,null,null,null,null,null,null,null,null,null,null,null,null,null,null,null,null,null,null,null,4,"R4($)",0,0,0,0,0,0,0,0,0,0,0,0,null,null,4,"R4($)",{"$f":"IFERROR((SUMIF('D. Population Risk Index'!O:O,$AX206,'C. Population PoC & Risk'!CD:CD))/D9, 0)","v":0},{"$f":"IFERROR((SUMIF('D. Population Risk Index'!P:P,$AX206,'C. Population PoC & Risk'!CE:CE))/E9, 0)","v":0},{"$f":"IFERROR((SUMIF('D. Population Risk Index'!Q:Q,$AX206,'C. Population PoC & Risk'!CF:CF))/F9, 0)","v":0},{"$f":"IFERROR((SUMIF('D. Population Risk Index'!R:R,$AX206,'C. Population PoC & Risk'!CG:CG))/G9, 0)","v":0},{"$f":"IFERROR((SUMIF('D. Population Risk Index'!S:S,$AX206,'C. Population PoC & Risk'!CH:CH))/H9, 0)","v":0},{"$f":"IFERROR((SUMIF('D. Population Risk Index'!T:T,$AX206,'C. Population PoC & Risk'!CI:CI))/I9, 0)","v":0},{"$f":"IFERROR((SUMIF('D. Population Risk Index'!U:U,$AX206,'C. Population PoC & Risk'!CJ:CJ))/J9, 0)","v":0},{"$f":"IFERROR((SUMIF('D. Population Risk Index'!V:V,$AX206,'C. Population PoC & Risk'!CK:CK))/K9, 0)","v":0},{"$f":"IFERROR((SUMIF('D. Population Risk Index'!W:W,$AX206,'C. Population PoC & Risk'!CL:CL))/L9, 0)","v":0},{"$f":"IFERROR((SUMIF('D. Population Risk Index'!X:X,$AX206,'C. Population PoC & Risk'!CM:CM))/M9, 0)","v":0},{"$f":"IFERROR((SUMIF('D. Population Risk Index'!Y:Y,$AX206,'C. Population PoC & Risk'!CN:CN))/N9, 0)","v":0},{"$f":"IFERROR((SUMIF('D. Population Risk Index'!Z:Z,$AX206,'C. Population PoC & Risk'!CO:CO))/O9, 0)","v":0}]
[null,null,null,null,null,null,null,null,null,null,null,null,null,null,null,null,null,null,null,null,null,null,null,null,null,null,null,null,null,null,null,null,null,5,"R5($)",0,0,0,0,0,0,0,0,0,0,0,0,null,null,5,"R5($)",{"$f":"IFERROR((SUMIF('D. Population Risk Index'!O:O,$AX207,'C. Population PoC & Risk'!CD:CD))/D10, 0)","v":0},{"$f":"IFERROR((SUMIF('D. Population Risk Index'!P:P,$AX207,'C. Population PoC & Risk'!CE:CE))/E10, 0)","v":0},{"$f":"IFERROR((SUMIF('D. Population Risk Index'!Q:Q,$AX207,'C. Population PoC & Risk'!CF:CF))/F10, 0)","v":0},{"$f":"IFERROR((SUMIF('D. Population Risk Index'!R:R,$AX207,'C. Population PoC & Risk'!CG:CG))/G10, 0)","v":0},{"$f":"IFERROR((SUMIF('D. Population Risk Index'!S:S,$AX207,'C. Population PoC & Risk'!CH:CH))/H10, 0)","v":0},{"$f":"IFERROR((SUMIF('D. Population Risk Index'!T:T,$AX207,'C. Population PoC & Risk'!CI:CI))/I10, 0)","v":0},{"$f":"IFERROR((SUMIF('D. Population Risk Index'!U:U,$AX207,'C. Population PoC & Risk'!CJ:CJ))/J10, 0)","v":0},{"$f":"IFERROR((SUMIF('D. Population Risk Index'!V:V,$AX207,'C. Population PoC & Risk'!CK:CK))/K10, 0)","v":0},{"$f":"IFERROR((SUMIF('D. Population Risk Index'!W:W,$AX207,'C. Population PoC & Risk'!CL:CL))/L10, 0)","v":0},{"$f":"IFERROR((SUMIF('D. Population Risk Index'!X:X,$AX207,'C. Population PoC & Risk'!CM:CM))/M10, 0)","v":0},{"$f":"IFERROR((SUMIF('D. Population Risk Index'!Y:Y,$AX207,'C. Population PoC & Risk'!CN:CN))/N10, 0)","v":0},{"$f":"IFERROR((SUMIF('D. Population Risk Index'!Z:Z,$AX207,'C. Population PoC & Risk'!CO:CO))/O10, 0)","v":0}]
[null,null,null,null,null,null,null,null,null,null,null,null,null,null,null,null,null,null,null,null,null,null,null,null,null,null,null,null,null,null,null,null,null,6,"R6($)",0,0,0,0,0,0,0,0,0,0,0,0,null,null,6,"R6($)",{"$f":"IFERROR((SUMIF('D. Population Risk Index'!O:O,$AX208,'C. Population PoC & Risk'!CD:CD))/D11, 0)","v":0},{"$f":"IFERROR((SUMIF('D. Population Risk Index'!P:P,$AX208,'C. Population PoC & Risk'!CE:CE))/E11, 0)","v":0},{"$f":"IFERROR((SUMIF('D. Population Risk Index'!Q:Q,$AX208,'C. Population PoC & Risk'!CF:CF))/F11, 0)","v":0},{"$f":"IFERROR((SUMIF('D. Population Risk Index'!R:R,$AX208,'C. Population PoC & Risk'!CG:CG))/G11, 0)","v":0},{"$f":"IFERROR((SUMIF('D. Population Risk Index'!S:S,$AX208,'C. Population PoC & Risk'!CH:CH))/H11, 0)","v":0},{"$f":"IFERROR((SUMIF('D. Population Risk Index'!T:T,$AX208,'C. Population PoC & Risk'!CI:CI))/I11, 0)","v":0},{"$f":"IFERROR((SUMIF('D. Population Risk Index'!U:U,$AX208,'C. Population PoC & Risk'!CJ:CJ))/J11, 0)","v":0},{"$f":"IFERROR((SUMIF('D. Population Risk Index'!V:V,$AX208,'C. Population PoC & Risk'!CK:CK))/K11, 0)","v":0},{"$f":"IFERROR((SUMIF('D. Population Risk Index'!W:W,$AX208,'C. Population PoC & Risk'!CL:CL))/L11, 0)","v":0},{"$f":"IFERROR((SUMIF('D. Population Risk Index'!X:X,$AX208,'C. Population PoC & Risk'!CM:CM))/M11, 0)","v":0},{"$f":"IFERROR((SUMIF('D. Population Risk Index'!Y:Y,$AX208,'C. Population PoC & Risk'!CN:CN))/N11, 0)","v":0},{"$f":"IFERROR((SUMIF('D. Population Risk Index'!Z:Z,$AX208,'C. Population PoC & Risk'!CO:CO))/O11, 0)","v":0}]
[null,null,null,null,null,null,null,null,null,null,null,null,null,null,null,null,null,null,null,null,null,null,null,null,null,null,null,null,null,null,null,null,null,7,"R7($)",0,0,0,0,0,0,0,0,0,0,0,0,null,null,7,"R7($)",{"$f":"IFERROR((SUMIF('D. Population Risk Index'!O:O,$AX209,'C. Population PoC & Risk'!CD:CD))/D12, 0)","v":0},{"$f":"IFERROR((SUMIF('D. Population Risk Index'!P:P,$AX209,'C. Population PoC & Risk'!CE:CE))/E12, 0)","v":0},{"$f":"IFERROR((SUMIF('D. Population Risk Index'!Q:Q,$AX209,'C. Population PoC & Risk'!CF:CF))/F12, 0)","v":0},{"$f":"IFERROR((SUMIF('D. Population Risk Index'!R:R,$AX209,'C. Population PoC & Risk'!CG:CG))/G12, 0)","v":0},{"$f":"IFERROR((SUMIF('D. Population Risk Index'!S:S,$AX209,'C. Population PoC & Risk'!CH:CH))/H12, 0)","v":0},{"$f":"IFERROR((SUMIF('D. Population Risk Index'!T:T,$AX209,'C. Population PoC & Risk'!CI:CI))/I12, 0)","v":0},{"$f":"IFERROR((SUMIF('D. Population Risk Index'!U:U,$AX209,'C. Population PoC & Risk'!CJ:CJ))/J12, 0)","v":0},{"$f":"IFERROR((SUMIF('D. Population Risk Index'!V:V,$AX209,'C. Population PoC & Risk'!CK:CK))/K12, 0)","v":0},{"$f":"IFERROR((SUMIF('D. Population Risk Index'!W:W,$AX209,'C. Population PoC & Risk'!CL:CL))/L12, 0)","v":0},{"$f":"IFERROR((SUMIF('D. Population Risk Index'!X:X,$AX209,'C. Population PoC & Risk'!CM:CM))/M12, 0)","v":0},{"$f":"IFERROR((SUMIF('D. Population Risk Index'!Y:Y,$AX209,'C. Population PoC & Risk'!CN:CN))/N12, 0)","v":0},{"$f":"IFERROR((SUMIF('D. Population Risk Index'!Z:Z,$AX209,'C. Population PoC & Risk'!CO:CO))/O12, 0)","v":0}]
[null,null,null,null,null,null,null,null,null,null,null,null,null,null,null,null,null,null,null,null,null,null,null,null,null,null,null,null,null,null,null,null,null,8,"R8($)",0,0,0,0,0,0,0,0,0,0,0,0,null,null,8,"R8($)",{"$f":"IFERROR((SUMIF('D. Population Risk Index'!O:O,$AX210,'C. Population PoC & Risk'!CD:CD))/D13, 0)","v":0},{"$f":"IFERROR((SUMIF('D. Population Risk Index'!P:P,$AX210,'C. Population PoC & Risk'!CE:CE))/E13, 0)","v":0},{"$f":"IFERROR((SUMIF('D. Population Risk Index'!Q:Q,$AX210,'C. Population PoC & Risk'!CF:CF))/F13, 0)","v":0},{"$f":"IFERROR((SUMIF('D. Population Risk Index'!R:R,$AX210,'C. Population PoC & Risk'!CG:CG))/G13, 0)","v":0},{"$f":"IFERROR((SUMIF('D. Population Risk Index'!S:S,$AX210,'C. Population PoC & Risk'!CH:CH))/H13, 0)","v":0},{"$f":"IFERROR((SUMIF('D. Population Risk Index'!T:T,$AX210,'C. Population PoC & Risk'!CI:CI))/I13, 0)","v":0},{"$f":"IFERROR((SUMIF('D. Population Risk Index'!U:U,$AX210,'C. Population PoC & Risk'!CJ:CJ))/J13, 0)","v":0},{"$f":"IFERROR((SUMIF('D. Population Risk Index'!V:V,$AX210,'C. Population PoC & Risk'!CK:CK))/K13, 0)","v":0},{"$f":"IFERROR((SUMIF('D. Population Risk Index'!W:W,$AX210,'C. Population PoC & Risk'!CL:CL))/L13, 0)","v":0},{"$f":"IFERROR((SUMIF('D. Population Risk Index'!X:X,$AX210,'C. Population PoC & Risk'!CM:CM))/M13, 0)","v":0},{"$f":"IFERROR((SUMIF('D. Population Risk Index'!Y:Y,$AX210,'C. Population PoC & Risk'!CN:CN))/N13, 0)","v":0},{"$f":"IFERROR((SUMIF('D. Population Risk Index'!Z:Z,$AX210,'C. Population PoC & Risk'!CO:CO))/O13, 0)","v":0}]
[null,null,null,null,null,null,null,null,null,null,null,null,null,null,null,null,null,null,null,null,null,null,null,null,null,null,null,null,null,null,null,null,null,9,"R9($)",0,0,0,0,0,0,0,0,0,0,0,0,null,null,9,"R9($)",{"$f":"IFERROR((SUMIF('D. Population Risk Index'!O:O,$AX211,'C. Population PoC & Risk'!CD:CD))/D14, 0)","v":0},{"$f":"IFERROR((SUMIF('D. Population Risk Index'!P:P,$AX211,'C. Population PoC & Risk'!CE:CE))/E14, 0)","v":0},{"$f":"IFERROR((SUMIF('D. Population Risk Index'!Q:Q,$AX211,'C. Population PoC & Risk'!CF:CF))/F14, 0)","v":0},{"$f":"IFERROR((SUMIF('D. Population Risk Index'!R:R,$AX211,'C. Population PoC & Risk'!CG:CG))/G14, 0)","v":0},{"$f":"IFERROR((SUMIF('D. Population Risk Index'!S:S,$AX211,'C. Population PoC & Risk'!CH:CH))/H14, 0)","v":0},{"$f":"IFERROR((SUMIF('D. Population Risk Index'!T:T,$AX211,'C. Population PoC & Risk'!CI:CI))/I14, 0)","v":0},{"$f":"IFERROR((SUMIF('D. Population Risk Index'!U:U,$AX211,'C. Population PoC & Risk'!CJ:CJ))/J14, 0)","v":0},{"$f":"IFERROR((SUMIF('D. Population Risk Index'!V:V,$AX211,'C. Population PoC & Risk'!CK:CK))/K14, 0)","v":0},{"$f":"IFERROR((SUMIF('D. Population Risk Index'!W:W,$AX211,'C. Population PoC & Risk'!CL:CL))/L14, 0)","v":0},{"$f":"IFERROR((SUMIF('D. Population Risk Index'!X:X,$AX211,'C. Population PoC & Risk'!CM:CM))/M14, 0)","v":0},{"$f":"IFERROR((SUMIF('D. Population Risk Index'!Y:Y,$AX211,'C. Population PoC & Risk'!CN:CN))/N14, 0)","v":0},{"$f":"IFERROR((SUMIF('D. Population Risk Index'!Z:Z,$AX211,'C. Population PoC & Risk'!CO:CO))/O14, 0)","v":0}]
[null,null,null,null,null,null,null,null,null,null,null,null,null,null,null,null,null,null,null,null,null,null,null,null,null,null,null,null,null,null,null,null,null,10,"R10($)",0,0,0,0,0,0,0,0,0,0,0,0,null,null,10,"R10($)",{"$f":"IFERROR((SUMIF('D. Population Risk Index'!O:O,$AX212,'C. Population PoC & Risk'!CD:CD))/D15, 0)","v":0},{"$f":"IFERROR((SUMIF('D. Population Risk Index'!P:P,$AX212,'C. Population PoC & Risk'!CE:CE))/E15, 0)","v":0},{"$f":"IFERROR((SUMIF('D. Population Risk Index'!Q:Q,$AX212,'C. Population PoC & Risk'!CF:CF))/F15, 0)","v":0},{"$f":"IFERROR((SUMIF('D. Population Risk Index'!R:R,$AX212,'C. Population PoC & Risk'!CG:CG))/G15, 0)","v":0},{"$f":"IFERROR((SUMIF('D. Population Risk Index'!S:S,$AX212,'C. Population PoC & Risk'!CH:CH))/H15, 0)","v":0},{"$f":"IFERROR((SUMIF('D. Population Risk Index'!T:T,$AX212,'C. Population PoC & Risk'!CI:CI))/I15, 0)","v":0},{"$f":"IFERROR((SUMIF('D. Population Risk Index'!U:U,$AX212,'C. Population PoC & Risk'!CJ:CJ))/J15, 0)","v":0},{"$f":"IFERROR((SUMIF('D. Population Risk Index'!V:V,$AX212,'C. Population PoC & Risk'!CK:CK))/K15, 0)","v":0},{"$f":"IFERROR((SUMIF('D. Population Risk Index'!W:W,$AX212,'C. Population PoC & Risk'!CL:CL))/L15, 0)","v":0},{"$f":"IFERROR((SUMIF('D. Population Risk Index'!X:X,$AX212,'C. Population PoC & Risk'!CM:CM))/M15, 0)","v":0},{"$f":"IFERROR((SUMIF('D. Population Risk Index'!Y:Y,$AX212,'C. Population PoC & Risk'!CN:CN))/N15, 0)","v":0},{"$f":"IFERROR((SUMIF('D. Population Risk Index'!Z:Z,$AX212,'C. Population PoC & Risk'!CO:CO))/O15, 0)","v":0}]
[null,null,null,null,null,null,null,null,null,null,null,null,null,null,null,null,null,null,null,null,null,null,null,null,null,null,null,null,null,null,null,null,null,"Estimated Total Realised Benefit - R1($) to R6($)",null,{"$f":"SUMPRODUCT(AJ203:AJ208, AJ$113:AJ$118)","v":0},0,0,0,0,0,0,0,0,0,0,0,null,null,"Estimated Total Realised Benefit - R1($) to R6($)",null,{"$f":"SUMPRODUCT(AZ203:AZ208, AZ$113:AZ$118)","v":0},0,0,0,0,0,0,0,0,0,0,0]
[null,null,null,null,null,null,null,null,null,null,null,null,null,null,null,null,null,null,null,null,null,null,null,null,null,null,null,null,null,null,null,null,null,"Estimated Total Realised Benefit - R7($) to R10($)",null,{"$f":"SUMPRODUCT(AJ209:AJ212, AJ$119:AJ$122)","v":0},0,0,0,0,0,0,0,0,0,0,0,null,null,"Estimated Total Realised Benefit - R7($) to R10($)",null,{"$f":"SUMPRODUCT(AZ209:AZ212, AZ$119:AZ$122)","v":0},0,0,0,0,0,0,0,0,0,0,0]
[null,null,null,null,null,null,null,null,null,null,null,null,null,null,null,null,null,null,null,null,null,null,null,null,null,null,null,null,null,null,null,null,null,"Estimated Total Realised Benefit",null,{"$f":"SUM(AJ213:AJ214)","v":0},{"$f":"SUM(AK213:AK214)","v":0},0,0,0,0,0,0,0,0,0,0,null,null,"Estimated Total Realised Benefit",null,{"$f":"SUM(AZ213:AZ214)","v":0},{"$f":"SUM(BA213:BA214)","v":0},0,0,0,0,0,0,0,0,0,0]
[]
[null,null,null,null,null,null,null,null,null,null,null,null,null,null,null,null,null,null,null,null,null,null,null,null,null,null,null,null,null,null,null,null,null,"TOTAL FINANCE RISK BY RISK INDEX CATEGORY",null,2019,2020,2021,2022,2023,2024,2025,2026,2027,2028,2029,2030,null,null,"TOTAL FINANCE RISK BY RISK INDEX CATEGORY",null,2019,2020,2021,2022,2023,2024,2025,2026,2027,2028,2029,2030]
[null,null,null,null,null,null,null,null,null,null,null,null,null,null,null,null,null,null,null,null,null,null,null,null,null,null,null,null,null,null,null,null,null,1,"R1($)",{"$f":"AZ218","v":0.60481353094863288},{"$f":"BA218","v":0.59337890688871664},0.58379278306524485,0.5790688389016363,0.57407554960998863,0.57390599076302384,0.58045079214117135,0.58467799062938808,0.57716372576122899,0.57298707292611462,0.56878995896414231,0.56453784381609484,null,null,1,"R1($)",{"$f":"IFERROR((SUMIF('D. Population Risk Index'!O:O,$AX218,'C. Population PoC & Risk'!CP:CP))/D6, 0)","v":0.60481353094863288},{"$f":"IFERROR((SUMIF('D. Population Risk Index'!P:P,$AX218,'C. Population PoC & Risk'!CQ:CQ))/E6, 0)","v":0.59337890688871664},{"$f":"IFERROR((SUMIF('D. Population Risk Index'!Q:Q,$AX218,'C. Population PoC & Risk'!CR:CR))/F6, 0)","v":0.58379278306524485},{"$f":"IFERROR((SUMIF('D. Population Risk Index'!R:R,$AX218,'C. Population PoC & Risk'!CS:CS))/G6, 0)","v":0.5790688389016363},{"$f":"IFERROR((SUMIF('D. Population Risk Index'!S:S,$AX218,'C. Population PoC & Risk'!CT:CT))/H6, 0)","v":0.57407554960998863},{"$f":"IFERROR((SUMIF('D. Population Risk Index'!T:T,$AX218,'C. Population PoC & Risk'!CU:CU))/I6, 0)","v":0.57390599076302384},{"$f":"IFERROR((SUMIF('D. Population Risk Index'!U:U,$AX218,'C. Population PoC & Risk'!CV:CV))/J6, 0)","v":0.58045079214117135},{"$f":"IFERROR((SUMIF('D. Population Risk Index'!V:V,$AX218,'C. Population PoC & Risk'!CW:CW))/K6, 0)","v":0.58467799062938808},{"$f":"IFERROR((SUMIF('D. Population Risk Index'!W:W,$AX218,'C. Population PoC & Risk'!CX:CX))/L6, 0)","v":0.57716372576122899},{"$f":"IFERROR((SUMIF('D. Population Risk Index'!X:X,$AX218,'C. Population PoC & Risk'!CY:CY))/M6, 0)","v":0.57298707292611462},{"$f":"IFERROR((SUMIF('D. Population Risk Index'!Y:Y,$AX218,'C. Population PoC & Risk'!CZ:CZ))/N6, 0)","v":0.56878995896414231},{"$f":"IFERROR((SUMIF('D. Population Risk Index'!Z:Z,$AX218,'C. Population PoC & Risk'!DA:DA))/O6, 0)","v":0.56453784381609484}]
[null,null,null,null,null,null,null,null,null,null,null,null,null,null,null,null,null,null,null,null,null,null,null,null,null,null,null,null,null,null,null,null,null,2,"R2($)",{"$f":"AZ219","v":0.30939077622692324},0.30579474421514186,0.30361808159224646,0.30459052884568311,0.30728470368036087,0.3082143848342922,0.30959978867693005,0.30904359280638499,0.3062289257272055,0.30506376508534983,0.30306144210736108,0.30116391708794132,null,null,2,"R2($)",{"$f":"IFERROR((SUMIF('D. Population Risk Index'!O:O,$AX219,'C. Population PoC & Risk'!CP:CP))/D7, 0)","v":0.30939077622692324},{"$f":"IFERROR((SUMIF('D. Population Risk Index'!P:P,$AX219,'C. Population PoC & Risk'!CQ:CQ))/E7, 0)","v":0.30579474421514186},{"$f":"IFERROR((SUMIF('D. Population Risk Index'!Q:Q,$AX219,'C. Population PoC & Risk'!CR:CR))/F7, 0)","v":0.30361808159224646},{"$f":"IFERROR((SUMIF('D. Population Risk Index'!R:R,$AX219,'C. Population PoC & Risk'!CS:CS))/G7, 0)","v":0.30459052884568311},{"$f":"IFERROR((SUMIF('D. Population Risk Index'!S:S,$AX219,'C. Population PoC & Risk'!CT:CT))/H7, 0)","v":0.30728470368036087},{"$f":"IFERROR((SUMIF('D. Population Risk Index'!T:T,$AX219,'C. Population PoC & Risk'!CU:CU))/I7, 0)","v":0.3082143848342922},{"$f":"IFERROR((SUMIF('D. Population Risk Index'!U:U,$AX219,'C. Population PoC & Risk'!CV:CV))/J7, 0)","v":0.30959978867693005},{"$f":"IFERROR((SUMIF('D. Population Risk Index'!V:V,$AX219,'C. Population PoC & Risk'!CW:CW))/K7, 0)","v":0.30904359280638499},{"$f":"IFERROR((SUMIF('D. Population Risk Index'!W:W,$AX219,'C. Population PoC & Risk'!CX:CX))/L7, 0)","v":0.3062289257272055},{"$f":"IFERROR((SUMIF('D. Population Risk Index'!X:X,$AX219,'C. Population PoC & Risk'!CY:CY))/M7, 0)","v":0.30506376508534983},{"$f":"IFERROR((SUMIF('D. Population Risk Index'!Y:Y,$AX219,'C. Population PoC & Risk'!CZ:CZ))/N7, 0)","v":0.30306144210736108},{"$f":"IFERROR((SUMIF('D. Population Risk Index'!Z:Z,$AX219,'C. Population PoC & Risk'!DA:DA))/O7, 0)","v":0.30116391708794132}]
[null,null,null,null,null,null,null,null,null,null,null,null,null,null,null,null,null,null,null,null,null,null,null,null,null,null,null,null,null,null,null,null,null,3,"R3($)",0,0,0,0,0.27461094311485268,0.27260484762571957,0.27069656142458515,0.2688804369537825,0.2671511925576962,0.26962447700618242,0.26786168441640873,0.26618261181445635,null,null,3,"R3($)",{"$f":"IFERROR((SUMIF('D. Population Risk Index'!O:O,$AX220,'C. Population PoC & Risk'!CP:CP))/D8, 0)","v":0},{"$f":"IFERROR((SUMIF('D. Population Risk Index'!P:P,$AX220,'C. Population PoC & Risk'!CQ:CQ))/E8, 0)","v":0},{"$f":"IFERROR((SUMIF('D. Population Risk Index'!Q:Q,$AX220,'C. Population PoC & Risk'!CR:CR))/F8, 0)","v":0},{"$f":"IFERROR((SUMIF('D. Population Risk Index'!R:R,$AX220,'C. Population PoC & Risk'!CS:CS))/G8, 0)","v":0},{"$f":"IFERROR((SUMIF('D. Population Risk Index'!S:S,$AX220,'C. Population PoC & Risk'!CT:CT))/H8, 0)","v":0.27461094311485268},{"$f":"IFERROR((SUMIF('D. Population Risk Index'!T:T,$AX220,'C. Population PoC & Risk'!CU:CU))/I8, 0)","v":0.27260484762571957},{"$f":"IFERROR((SUMIF('D. Population Risk Index'!U:U,$AX220,'C. Population PoC & Risk'!CV:CV))/J8, 0)","v":0.27069656142458515},{"$f":"IFERROR((SUMIF('D. Population Risk Index'!V:V,$AX220,'C. Population PoC & Risk'!CW:CW))/K8, 0)","v":0.2688804369537825},{"$f":"IFERROR((SUMIF('D. Population Risk Index'!W:W,$AX220,'C. Population PoC & Risk'!CX:CX))/L8, 0)","v":0.2671511925576962},{"$f":"IFERROR((SUMIF('D. Population Risk Index'!X:X,$AX220,'C. Population PoC & Risk'!CY:CY))/M8, 0)","v":0.26962447700618242},{"$f":"IFERROR((SUMIF('D. Population Risk Index'!Y:Y,$AX220,'C. Population PoC & Risk'!CZ:CZ))/N8, 0)","v":0.26786168441640873},{"$f":"IFERROR((SUMIF('D. Population Risk Index'!Z:Z,$AX220,'C. Population PoC & Risk'!DA:DA))/O8, 0)","v":0.26618261181445635}]
[null,null,null,null,null,null,null,null,null,null,null,null,null,null,null,null,null,null,null,null,null,null,null,null,null,null,null,null,null,null,null,null,null,4,"R4($)",0,0,0,0,0,0,0,0,0,0,0,0,null,null,4,"R4($)",{"$f":"IFERROR((SUMIF('D. Population Risk Index'!O:O,$AX221,'C. Population PoC & Risk'!CP:CP))/D9, 0)","v":0},{"$f":"IFERROR((SUMIF('D. Population Risk Index'!P:P,$AX221,'C. Population PoC & Risk'!CQ:CQ))/E9, 0)","v":0},{"$f":"IFERROR((SUMIF('D. Population Risk Index'!Q:Q,$AX221,'C. Population PoC & Risk'!CR:CR))/F9, 0)","v":0},{"$f":"IFERROR((SUMIF('D. Population Risk Index'!R:R,$AX221,'C. Population PoC & Risk'!CS:CS))/G9, 0)","v":0},{"$f":"IFERROR((SUMIF('D. Population Risk Index'!S:S,$AX221,'C. Population PoC & Risk'!CT:CT))/H9, 0)","v":0},{"$f":"IFERROR((SUMIF('D. Population Risk Index'!T:T,$AX221,'C. Population PoC & Risk'!CU:CU))/I9, 0)","v":0},{"$f":"IFERROR((SUMIF('D. Population Risk Index'!U:U,$AX221,'C. Population PoC & Risk'!CV:CV))/J9, 0)","v":0},{"$f":"IFERROR((SUMIF('D. Population Risk Index'!V:V,$AX221,'C. Population PoC & Risk'!CW:CW))/K9, 0)","v":0},{"$f":"IFERROR((SUMIF('D. Population Risk Index'!W:W,$AX221,'C. Population PoC & Risk'!CX:CX))/L9, 0)","v":0},{"$f":"IFERROR((SUMIF('D. Population Risk Index'!X:X,$AX221,'C. Population PoC & Risk'!CY:CY))/M9, 0)","v":0},{"$f":"IFERROR((SUMIF('D. Population Risk Index'!Y:Y,$AX221,'C. Population PoC & Risk'!CZ:CZ))/N9, 0)","v":0},{"$f":"IFERROR((SUMIF('D. Population Risk Index'!Z:Z,$AX221,'C. Population PoC & Risk'!DA:DA))/O9, 0)","v":0}]
[null,null,null,null,null,null,null,null,null,null,null,null,null,null,null,null,null,null,null,null,null,null,null,null,null,null,null,null,null,null,null,null,null,5,"R5($)",0,0,0,0,0,0,0,0,0,0,0,0,null,null,5,"R5($)",{"$f":"IFERROR((SUMIF('D. Population Risk Index'!O:O,$AX222,'C. Population PoC & Risk'!CP:CP))/D10, 0)","v":0},{"$f":"IFERROR((SUMIF('D. Population Risk Index'!P:P,$AX222,'C. Population PoC & Risk'!CQ:CQ))/E10, 0)","v":0},{"$f":"IFERROR((SUMIF('D. Population Risk Index'!Q:Q,$AX222,'C. Population PoC & Risk'!CR:CR))/F10, 0)","v":0},{"$f":"IFERROR((SUMIF('D. Population Risk Index'!R:R,$AX222,'C. Population PoC & Risk'!CS:CS))/G10, 0)","v":0},{"$f":"IFERROR((SUMIF('D. Population Risk Index'!S:S,$AX222,'C. Population PoC & Risk'!CT:CT))/H10, 0)","v":0},{"$f":"IFERROR((SUMIF('D. Population Risk Index'!T:T,$AX222,'C. Population PoC & Risk'!CU:CU))/I10, 0)","v":0},{"$f":"IFERROR((SUMIF('D. Population Risk Index'!U:U,$AX222,'C. Population PoC & Risk'!CV:CV))/J10, 0)","v":0},{"$f":"IFERROR((SUMIF('D. Population Risk Index'!V:V,$AX222,'C. Population PoC & Risk'!CW:CW))/K10, 0)","v":0},{"$f":"IFERROR((SUMIF('D. Population Risk Index'!W:W,$AX222,'C. Population PoC & Risk'!CX:CX))/L10, 0)","v":0},{"$f":"IFERROR((SUMIF('D. Population Risk Index'!X:X,$AX222,'C. Population PoC & Risk'!CY:CY))/M10, 0)","v":0},{"$f":"IFERROR((SUMIF('D. Population Risk Index'!Y:Y,$AX222,'C. Population PoC & Risk'!CZ:CZ))/N10, 0)","v":0},{"$f":"IFERROR((SUMIF('D. Population Risk Index'!Z:Z,$AX222,'C. Population PoC & Risk'!DA:DA))/O10, 0)","v":0}]
[null,null,null,null,null,null,null,null,null,null,null,null,null,null,null,null,null,null,null,null,null,null,null,null,null,null,null,null,null,null,null,null,null,6,"R6($)",0,0,0,0,0,0,0,0,0,0,0,0,null,null,6,"R6($)",{"$f":"IFERROR((SUMIF('D. Population Risk Index'!O:O,$AX223,'C. Population PoC & Risk'!CP:CP))/D11, 0)","v":0},{"$f":"IFERROR((SUMIF('D. Population Risk Index'!P:P,$AX223,'C. Population PoC & Risk'!CQ:CQ))/E11, 0)","v":0},{"$f":"IFERROR((SUMIF('D. Population Risk Index'!Q:Q,$AX223,'C. Population PoC & Risk'!CR:CR))/F11, 0)","v":0},{"$f":"IFERROR((SUMIF('D. Population Risk Index'!R:R,$AX223,'C. Population PoC & Risk'!CS:CS))/G11, 0)","v":0},{"$f":"IFERROR((SUMIF('D. Population Risk Index'!S:S,$AX223,'C. Population PoC & Risk'!CT:CT))/H11, 0)","v":0},{"$f":"IFERROR((SUMIF('D. Population Risk Index'!T:T,$AX223,'C. Population PoC & Risk'!CU:CU))/I11, 0)","v":0},{"$f":"IFERROR((SUMIF('D. Population Risk Index'!U:U,$AX223,'C. Population PoC & Risk'!CV:CV))/J11, 0)","v":0},{"$f":"IFERROR((SUMIF('D. Population Risk Index'!V:V,$AX223,'C. Population PoC & Risk'!CW:CW))/K11, 0)","v":0},{"$f":"IFERROR((SUMIF('D. Population Risk Index'!W:W,$AX223,'C. Population PoC & Risk'!CX:CX))/L11, 0)","v":0},{"$f":"IFERROR((SUMIF('D. Population Risk Index'!X:X,$AX223,'C. Population PoC & Risk'!CY:CY))/M11, 0)","v":0},{"$f":"IFERROR((SUMIF('D. Population Risk Index'!Y:Y,$AX223,'C. Population PoC & Risk'!CZ:CZ))/N11, 0)","v":0},{"$f":"IFERROR((SUMIF('D. Population Risk Index'!Z:Z,$AX223,'C. Population PoC & Risk'!DA:DA))/O11, 0)","v":0}]
[null,null,null,null,null,null,null,null,null,null,null,null,null,null,null,null,null,null,null,null,null,null,null,null,null,null,null,null,null,null,null,null,null,7,"R7($)",0,0,0,0,0,0,0,0,0,0,0,0,null,null,7,"R7($)",{"$f":"IFERROR((SUMIF('D. Population Risk Index'!O:O,$AX224,'C. Population PoC & Risk'!CP:CP))/D12, 0)","v":0},{"$f":"IFERROR((SUMIF('D. Population Risk Index'!P:P,$AX224,'C. Population PoC & Risk'!CQ:CQ))/E12, 0)","v":0},{"$f":"IFERROR((SUMIF('D. Population Risk Index'!Q:Q,$AX224,'C. Population PoC & Risk'!CR:CR))/F12, 0)","v":0},{"$f":"IFERROR((SUMIF('D. Population Risk Index'!R:R,$AX224,'C. Population PoC & Risk'!CS:CS))/G12, 0)","v":0},{"$f":"IFERROR((SUMIF('D. Population Risk Index'!S:S,$AX224,'C. Population PoC & Risk'!CT:CT))/H12, 0)","v":0},{"$f":"IFERROR((SUMIF('D. Population Risk Index'!T:T,$AX224,'C. Population PoC & Risk'!CU:CU))/I12, 0)","v":0},{"$f":"IFERROR((SUMIF('D. Population Risk Index'!U:U,$AX224,'C. Population PoC & Risk'!CV:CV))/J12, 0)","v":0},{"$f":"IFERROR((SUMIF('D. Population Risk Index'!V:V,$AX224,'C. Population PoC & Risk'!CW:CW))/K12, 0)","v":0},{"$f":"IFERROR((SUMIF('D. Population Risk Index'!W:W,$AX224,'C. Population PoC & Risk'!CX:CX))/L12, 0)","v":0},{"$f":"IFERROR((SUMIF('D. Population Risk Index'!X:X,$AX224,'C. Population PoC & Risk'!CY:CY))/M12, 0)","v":0},{"$f":"IFERROR((SUMIF('D. Population Risk Index'!Y:Y,$AX224,'C. Population PoC & Risk'!CZ:CZ))/N12, 0)","v":0},{"$f":"IFERROR((SUMIF('D. Population Risk Index'!Z:Z,$AX224,'C. Population PoC & Risk'!DA:DA))/O12, 0)","v":0}]
[null,null,null,null,null,null,null,null,null,null,null,null,null,null,null,null,null,null,null,null,null,null,null,null,null,null,null,null,null,null,null,null,null,8,"R8($)",0,0,0,0,0,0,0,0,0,0,0,0,null,null,8,"R8($)",{"$f":"IFERROR((SUMIF('D. Population Risk Index'!O:O,$AX225,'C. Population PoC & Risk'!CP:CP))/D13, 0)","v":0},{"$f":"IFERROR((SUMIF('D. Population Risk Index'!P:P,$AX225,'C. Population PoC & Risk'!CQ:CQ))/E13, 0)","v":0},{"$f":"IFERROR((SUMIF('D. Population Risk Index'!Q:Q,$AX225,'C. Population PoC & Risk'!CR:CR))/F13, 0)","v":0},{"$f":"IFERROR((SUMIF('D. Population Risk Index'!R:R,$AX225,'C. Population PoC & Risk'!CS:CS))/G13, 0)","v":0},{"$f":"IFERROR((SUMIF('D. Population Risk Index'!S:S,$AX225,'C. Population PoC & Risk'!CT:CT))/H13, 0)","v":0},{"$f":"IFERROR((SUMIF('D. Population Risk Index'!T:T,$AX225,'C. Population PoC & Risk'!CU:CU))/I13, 0)","v":0},{"$f":"IFERROR((SUMIF('D. Population Risk Index'!U:U,$AX225,'C. Population PoC & Risk'!CV:CV))/J13, 0)","v":0},{"$f":"IFERROR((SUMIF('D. Population Risk Index'!V:V,$AX225,'C. Population PoC & Risk'!CW:CW))/K13, 0)","v":0},{"$f":"IFERROR((SUMIF('D. Population Risk Index'!W:W,$AX225,'C. Population PoC & Risk'!CX:CX))/L13, 0)","v":0},{"$f":"IFERROR((SUMIF('D. Population Risk Index'!X:X,$AX225,'C. Population PoC & Risk'!CY:CY))/M13, 0)","v":0},{"$f":"IFERROR((SUMIF('D. Population Risk Index'!Y:Y,$AX225,'C. Population PoC & Risk'!CZ:CZ))/N13, 0)","v":0},{"$f":"IFERROR((SUMIF('D. Population Risk Index'!Z:Z,$AX225,'C. Population PoC & Risk'!DA:DA))/O13, 0)","v":0}]
[null,null,null,null,null,null,null,null,null,null,null,null,null,null,null,null,null,null,null,null,null,null,null,null,null,null,null,null,null,null,null,null,null,9,"R9($)",0,0,0,0,0,0,0,0,0,0,0,0,null,null,9,"R9($)",{"$f":"IFERROR((SUMIF('D. Population Risk Index'!O:O,$AX226,'C. Population PoC & Risk'!CP:CP))/D14, 0)","v":0},{"$f":"IFERROR((SUMIF('D. Population Risk Index'!P:P,$AX226,'C. Population PoC & Risk'!CQ:CQ))/E14, 0)","v":0},{"$f":"IFERROR((SUMIF('D. Population Risk Index'!Q:Q,$AX226,'C. Population PoC & Risk'!CR:CR))/F14, 0)","v":0},{"$f":"IFERROR((SUMIF('D. Population Risk Index'!R:R,$AX226,'C. Population PoC & Risk'!CS:CS))/G14, 0)","v":0},{"$f":"IFERROR((SUMIF('D. Population Risk Index'!S:S,$AX226,'C. Population PoC & Risk'!CT:CT))/H14, 0)","v":0},{"$f":"IFERROR((SUMIF('D. Population Risk Index'!T:T,$AX226,'C. Population PoC & Risk'!CU:CU))/I14, 0)","v":0},{"$f":"IFERROR((SUMIF('D. Population Risk Index'!U:U,$AX226,'C. Population PoC & Risk'!CV:CV))/J14, 0)","v":0},{"$f":"IFERROR((SUMIF('D. Population Risk Index'!V:V,$AX226,'C. Population PoC & Risk'!CW:CW))/K14, 0)","v":0},{"$f":"IFERROR((SUMIF('D. Population Risk Index'!W:W,$AX226,'C. Population PoC & Risk'!CX:CX))/L14, 0)","v":0},{"$f":"IFERROR((SUMIF('D. Population Risk Index'!X:X,$AX226,'C. Population PoC & Risk'!CY:CY))/M14, 0)","v":0},{"$f":"IFERROR((SUMIF('D. Population Risk Index'!Y:Y,$AX226,'C. Population PoC & Risk'!CZ:CZ))/N14, 0)","v":0},{"$f":"IFERROR((SUMIF('D. Population Risk Index'!Z:Z,$AX226,'C. Population PoC & Risk'!DA:DA))/O14, 0)","v":0}]
[null,null,null,null,null,null,null,null,null,null,null,null,null,null,null,null,null,null,null,null,null,null,null,null,null,null,null,null,null,null,null,null,null,10,"R10($)",0,0,0,0,0,0,0,0,0,0,0,0,null,null,10,"R10($)",{"$f":"IFERROR((SUMIF('D. Population Risk Index'!O:O,$AX227,'C. Population PoC & Risk'!CP:CP))/D15, 0)","v":0},{"$f":"IFERROR((SUMIF('D. Population Risk Index'!P:P,$AX227,'C. Population PoC & Risk'!CQ:CQ))/E15, 0)","v":0},{"$f":"IFERROR((SUMIF('D. Population Risk Index'!Q:Q,$AX227,'C. Population PoC & Risk'!CR:CR))/F15, 0)","v":0},{"$f":"IFERROR((SUMIF('D. Population Risk Index'!R:R,$AX227,'C. Population PoC & Risk'!CS:CS))/G15, 0)","v":0},{"$f":"IFERROR((SUMIF('D. Population Risk Index'!S:S,$AX227,'C. Population PoC & Risk'!CT:CT))/H15, 0)","v":0},{"$f":"IFERROR((SUMIF('D. Population Risk Index'!T:T,$AX227,'C. Population PoC & Risk'!CU:CU))/I15, 0)","v":0},{"$f":"IFERROR((SUMIF('D. Population Risk Index'!U:U,$AX227,'C. Population PoC & Risk'!CV:CV))/J15, 0)","v":0},{"$f":"IFERROR((SUMIF('D. Population Risk Index'!V:V,$AX227,'C. Population PoC & Risk'!CW:CW))/K15, 0)","v":0},{"$f":"IFERROR((SUMIF('D. Population Risk Index'!W:W,$AX227,'C. Population PoC & Risk'!CX:CX))/L15, 0)","v":0},{"$f":"IFERROR((SUMIF('D. Population Risk Index'!X:X,$AX227,'C. Population PoC & Risk'!CY:CY))/M15, 0)","v":0},{"$f":"IFERROR((SUMIF('D. Population Risk Index'!Y:Y,$AX227,'C. Population PoC & Risk'!CZ:CZ))/N15, 0)","v":0},{"$f":"IFERROR((SUMIF('D. Population Risk Index'!Z:Z,$AX227,'C. Population PoC & Risk'!DA:DA))/O15, 0)","v":0}]
[null,null,null,null,null,null,null,null,null,null,null,null,null,null,null,null,null,null,null,null,null,null,null,null,null,null,null,null,null,null,null,null,null,"Estimated Total Realised Benefit - R1($) to R6($)",null,{"$f":"SUMPRODUCT(AJ218:AJ223, AJ$113:AJ$118)","v":15643.408748102347},16126.422792916861,16439.509421605726,16297.591104659759,17116.558052100616,17136.758610377979,17113.709497366763,17304.306641658513,17753.354277755505,19171.66593934589,19632.16571399651,20098.745691638542,null,null,"Estimated Total Realised Benefit - R1($) to R6($)",null,{"$f":"SUMPRODUCT(AZ218:AZ223, AZ$113:AZ$118)","v":15643.408748102347},16126.422792916861,16439.509421605726,16297.591104659759,17116.558052100616,17136.758610377979,17113.709497366763,17304.306641658513,17753.354277755505,19171.66593934589,19632.16571399651,20098.745691638542]
[null,null,null,null,null,null,null,null,null,null,null,null,null,null,null,null,null,null,null,null,null,null,null,null,null,null,null,null,null,null,null,null,null,"Estimated Total Realised Benefit - R7($) to R10($)",null,{"$f":"SUMPRODUCT(AJ224:AJ227, AJ$119:AJ$122)","v":0},0,0,0,0,0,0,0,0,0,0,0,null,null,"Estimated Total Realised Benefit - R7($) to R10($)",null,{"$f":"SUMPRODUCT(AZ224:AZ227, AZ$119:AZ$122)","v":0},0,0,0,0,0,0,0,0,0,0,0]
[null,null,null,null,null,null,null,null,null,null,null,null,null,null,null,null,null,null,null,null,null,null,null,null,null,null,null,null,null,null,null,null,null,"Estimated Total Realised Benefit",null,{"$f":"SUM(AJ228:AJ229)","v":15643.408748102347},{"$f":"SUM(AK228:AK229)","v":16126.422792916861},16439.509421605726,16297.591104659759,17116.558052100616,17136.758610377979,17113.709497366763,17304.306641658513,17753.354277755505,19171.66593934589,19632.16571399651,20098.745691638542,null,null,"Estimated Total Realised Benefit",null,{"$f":"SUM(AZ228:AZ229)","v":15643.408748102347},{"$f":"SUM(BA228:BA229)","v":16126.422792916861},16439.509421605726,16297.591104659759,17116.558052100616,17136.758610377979,17113.709497366763,17304.306641658513,17753.354277755505,19171.66593934589,19632.16571399651,20098.745691638542]
[]
[null,null,null,null,null,null,null,null,null,null,null,null,null,null,null,null,null,null,null,null,null,null,null,null,null,null,null,null,null,null,null,null,null,"TOTAL RISK CHECK",null,2019,2020,2021,2022,2023,2024,2025,2026,2027,2028,2029,2030,null,null,"TOTAL RISK CHECK",null,2019,2020,2021,2022,2023,2024,2025,2026,2027,2028,2029,2030]
[null,null,null,null,null,null,null,null,null,null,null,null,null,null,null,null,null,null,null,null,null,null,null,null,null,null,null,null,null,null,null,null,null,"Total R1($) to R6($)",null,{"$f":"AJ123-AJ138-AJ153-AJ168-AJ183-AJ198-AJ213-AJ228","v":0},0,0,0,0,0,0,0,0,0,0,0,null,null,"Total R1($) to R6($)",null,{"$f":"AZ123-AZ138-AZ153-AZ168-AZ183-AZ198-AZ213-AZ228","v":0},0,0,0,0,0,0,0,0,0,0,0]
[null,null,null,null,null,null,null,null,null,null,null,null,null,null,null,null,null,null,null,null,null,null,null,null,null,null,null,null,null,null,null,null,null,"Total R7($) to R10($)",null,0,0,0,0,0,0,0,0,0,0,0,0,null,null,"Total R7($) to R10($)",null,0,0,0,0,0,0,0,0,0,0,0,0]
[null,null,null,null,null,null,null,null,null,null,null,null,null,null,null,null,null,null,null,null,null,null,null,null,null,null,null,null,null,null,null,null,null,"Total",null,0,0,0,0,0,0,0,0,0,0,0,0,null,null,"Total",null,0,0,0,0,0,0,0,0,0,0,0,0]
[]
[null,null,null,null,null,null,null,null,null,null,null,null,null,null,null,null,null,null,null,null,null,null,null,null,null,null,null,null,null,null,null,null,null,"ESTIMATED REALISED BENEFIT (ALL RISK CATEGORIES)",null,2019,2020,2021,2022,2023,2024,2025,2026,2027,2028,2029,2030,null,null,"ESTIMATED REALISED BENEFIT (ALL RISK CATEGORIES)",null,2019,2020,2021,2022,2023,2024,2025,2026,2027,2028,2029,2030]
[null,null,null,null,null,null,null,null,null,null,null,null,null,null,null,null,null,null,null,null,null,null,null,null,null,null,null,null,null,null,null,null,null,"Worker Safety","$",{"$f":"AJ140","v":23514.58898301475},{"$f":"AK140","v":24653.404910818572},25391.578144829178,25056.973299441619,26987.874924566549,27035.502354376844,26981.158806190793,27430.535104962219,28489.267466515546,31833.261141542709,32918.994535327511,34019.063396341953,null,null,"Worker Safety","$",{"$f":"AZ140","v":23514.58898301475},{"$f":"BA140","v":24653.404910818572},25391.578144829178,25056.973299441619,26987.874924566549,27035.502354376844,26981.158806190793,27430.535104962219,28489.267466515546,31833.261141542709,32918.994535327511,34019.063396341953]
[null,null,null,null,null,null,null,null,null,null,null,null,null,null,null,null,null,null,null,null,null,null,null,null,null,null,null,null,null,null,null,null,null,"Physical Impact","$",{"$f":"AJ155","v":0},{"$f":"AK155","v":0},0,0,0,0,0,0,0,0,0,0,null,null,"Physical Impact","$",{"$f":"AZ155","v":0},{"$f":"BA155","v":0},0,0,0,0,0,0,0,0,0,0]
[null,null,null,null,null,null,null,null,null,null,null,null,null,null,null,null,null,null,null,null,null,null,null,null,null,null,null,null,null,null,null,null,null,"Shock","$",{"$f":"AJ170","v":0},{"$f":"AK170","v":0},0,0,0,0,0,0,0,0,0,0,null,null,"Shock","$",{"$f":"AZ170","v":0},{"$f":"BA170","v":0},0,0,0,0,0,0,0,0,0,0]
[null,null,null,null,null,null,null,null,null,null,null,null,null,null,null,null,null,null,null,null,null,null,null,null,null,null,null,null,null,null,null,null,null,"Fire","$",{"$f":"AJ185","v":0},{"$f":"AK185","v":0},0,0,0,0,0,0,0,0,0,0,null,null,"Fire","$",{"$f":"AZ185","v":0},{"$f":"BA185","v":0},0,0,0,0,0,0,0,0,0,0]
[null,null,null,null,null,null,null,null,null,null,null,null,null,null,null,null,null,null,null,null,null,null,null,null,null,null,null,null,null,null,null,null,null,"Environment","$",{"$f":"AJ200","v":11403.977447576213},{"$f":"AK200","v":11956.274201178672},12314.269440608203,12151.994602914649,13088.432769123659,13111.5308609438,13085.175622568913,13303.111695377427,13816.569956667659,15438.321818135157,15964.874893153647,16498.380305085411,null,null,"Environment","$",{"$f":"AZ200","v":11403.977447576213},{"$f":"BA200","v":11956.274201178672},12314.269440608203,12151.994602914649,13088.432769123659,13111.5308609438,13085.175622568913,13303.111695377427,13816.569956667659,15438.321818135157,15964.874893153647,16498.380305085411]
[null,null,null,null,null,null,null,null,null,null,null,null,null,null,null,null,null,null,null,null,null,null,null,null,null,null,null,null,null,null,null,null,null,"Value of Unserved Energy","$",{"$f":"AJ215","v":0},{"$f":"AK215","v":0},0,0,0,0,0,0,0,0,0,0,null,null,"Value of Unserved Energy","$",{"$f":"AZ215","v":0},{"$f":"BA215","v":0},0,0,0,0,0,0,0,0,0,0]
[null,null,null,null,null,null,null,null,null,null,null,null,null,null,null,null,null,null,null,null,null,null,null,null,null,null,null,null,null,null,null,null,null,"Finance","$",{"$f":"AJ230","v":15643.408748102347},{"$f":"AK230","v":16126.422792916861},16439.509421605726,16297.591104659759,17116.558052100616,17136.758610377979,17113.709497366763,17304.306641658513,17753.354277755505,19171.66593934589,19632.16571399651,20098.745691638542,null,null,"Finance","$",{"$f":"AZ230","v":15643.408748102347},{"$f":"BA230","v":16126.422792916861},16439.509421605726,16297.591104659759,17116.558052100616,17136.758610377979,17113.709497366763,17304.306641658513,17753.354277755505,19171.66593934589,19632.16571399651,20098.745691638542]
[null,null,null,null,null,null,null,null,null,null,null,null,null,null,null,null,null,null,null,null,null,null,null,null,null,null,null,null,null,null,null,null,null,"Estimated Total Realised Benefit",null,{"$f":"SUM(AJ238:AJ244)","v":50561.975178693305},{"$f":"SUM(AK238:AK244)","v":52736.10190491411},54145.357007043109,53506.559007016025,57192.865745790827,57283.791825698616,57180.043926126469,58037.953441998157,60059.191700938711,66443.248899023747,68516.03514247766,70616.189393065899,null,null,"Estimated Total Realised Benefit",null,{"$f":"SUM(AZ238:AZ244)","v":50561.975178693305},{"$f":"SUM(BA238:BA244)","v":52736.10190491411},54145.357007043109,53506.559007016025,57192.865745790827,57283.791825698616,57180.043926126469,58037.953441998157,60059.191700938711,66443.248899023747,68516.03514247766,70616.189393065899]
[]
[null,null,null,null,null,null,null,null,null,null,null,null,null,null,null,null,null,null,null,null,null,null,null,null,null,null,null,null,null,null,null,null,null,"ESTIMATED REALISED BENEFIT (ALL RISK CATEGORIES)",null,2019,2020,2021,2022,2023,2024,2025,2026,2027,2028,2029,2030,null,null,"ESTIMATED REALISED BENEFIT (ALL RISK CATEGORIES)",null,2019,2020,2021,2022,2023,2024,2025,2026,2027,2028,2029,2030]
[null,null,null,null,null,null,null,null,null,null,null,null,null,null,null,null,null,null,null,null,null,null,null,null,null,null,null,null,null,null,null,null,null,"Safety","$",{"$f":"SUM(AJ238:AJ240)","v":23514.58898301475},{"$f":"SUM(AK238:AK240)","v":24653.404910818572},25391.578144829178,25056.973299441619,26987.874924566549,27035.502354376844,26981.158806190793,27430.535104962219,28489.267466515546,31833.261141542709,32918.994535327511,34019.063396341953,null,null,"Safety","$",{"$f":"SUM(AZ238:AZ240)","v":23514.58898301475},{"$f":"SUM(BA238:BA240)","v":24653.404910818572},25391.578144829178,25056.973299441619,26987.874924566549,27035.502354376844,26981.158806190793,27430.535104962219,28489.267466515546,31833.261141542709,32918.994535327511,34019.063396341953]
[null,null,null,null,null,null,null,null,null,null,null,null,null,null,null,null,null,null,null,null,null,null,null,null,null,null,null,null,null,null,null,null,null,"Fire","$",{"$f":"AJ241","v":0},{"$f":"AK241","v":0},0,0,0,0,0,0,0,0,0,0,null,null,"Fire","$",{"$f":"AZ241","v":0},{"$f":"BA241","v":0},0,0,0,0,0,0,0,0,0,0]
[null,null,null,null,null,null,null,null,null,null,null,null,null,null,null,null,null,null,null,null,null,null,null,null,null,null,null,null,null,null,null,null,null,"Environment","$",{"$f":"AJ242","v":11403.977447576213},11956.274201178672,12314.269440608203,12151.994602914649,13088.432769123659,13111.5308609438,13085.175622568913,13303.111695377427,13816.569956667659,15438.321818135157,15964.874893153647,16498.380305085411,null,null,"Environment","$",{"$f":"AZ242","v":11403.977447576213},11956.274201178672,12314.269440608203,12151.994602914649,13088.432769123659,13111.5308609438,13085.175622568913,13303.111695377427,13816.569956667659,15438.321818135157,15964.874893153647,16498.380305085411]
[null,null,null,null,null,null,null,null,null,null,null,null,null,null,null,null,null,null,null,null,null,null,null,null,null,null,null,null,null,null,null,null,null,"Value of Unserved Energy","$",{"$f":"AJ243","v":0},0,0,0,0,0,0,0,0,0,0,0,null,null,"Value of Unserved Energy","$",0,0,0,0,0,0,0,0,0,0,0,0]
[null,null,null,null,null,null,null,null,null,null,null,null,null,null,null,null,null,null,null,null,null,null,null,null,null,null,null,null,null,null,null,null,null,"Finance","$",15643.408748102347,16126.422792916861,16439.509421605726,16297.591104659759,17116.558052100616,17136.758610377979,17113.709497366763,17304.306641658513,17753.354277755505,19171.66593934589,19632.16571399651,20098.745691638542,null,null,"Finance","$",15643.408748102347,16126.422792916861,16439.509421605726,16297.591104659759,17116.558052100616,17136.758610377979,17113.709497366763,17304.306641658513,17753.354277755505,19171.66593934589,19632.16571399651,20098.745691638542]
[null,null,null,null,null,null,null,null,null,null,null,null,null,null,null,null,null,null,null,null,null,null,null,null,null,null,null,null,null,null,null,null,null,"Estimated Total Realised Benefit",null,{"$f":"SUM(AJ248:AJ252)","v":50561.975178693305},{"$f":"SUM(AK248:AK252)","v":52736.10190491411},54145.357007043109,53506.559007016025,57192.865745790827,57283.791825698616,57180.043926126469,58037.953441998157,60059.191700938711,66443.248899023747,68516.03514247766,70616.189393065899,null,null,"Estimated Total Realised Benefit",null,{"$f":"SUM(AZ248:AZ252)","v":50561.975178693305},{"$f":"SUM(BA248:BA252)","v":52736.10190491411},54145.357007043109,53506.559007016025,57192.865745790827,57283.791825698616,57180.043926126469,58037.953441998157,60059.191700938711,66443.248899023747,68516.03514247766,70616.189393065899]
[null,null,null,null,null,null,null,null,null,null,null,null,null,null,null,null,null,null,null,null,null,null,null,null,null,null,null,null,null,null,null,null,null,"Annual Deferral Benefit (ADB)",null,{"$f":"AJ61","v":252242.54090471606},252242.54090471606,252242.54090471606,252242.54090471606,252242.54090471606,252242.54090471606,252242.54090471606,252242.54090471606,252242.54090471606,252242.54090471606,252242.54090471606,252242.54090471606,null,null,"Annual Deferral Benefit (ADB)",null,{"$f":"AZ61","v":252242.54090471606},252242.54090471606,252242.54090471606,252242.54090471606,252242.54090471606,252242.54090471606,252242.54090471606,252242.54090471606,252242.54090471606,252242.54090471606,252242.54090471606,252242.54090471606]